{"text_format":"1","workbook":"xlsx","n_sheets":84,"sheets":["WP Data Req Summary","Print & Input","Rev req link","CustomerCharge","FR-16(7)(v)-1 Functional","FR-16(7)(v)-2 PROD Classified","FR-16(7)(v)-3 PROD Demand","FR-16(7)(v)-4 PROD Energy","FR-16(7)(v)-5 PROD Cust","FR-16(7)(v)-6 TRANS Classified","FR-16(7)(v)-7 TRANS Demand","FR-16(7)(v)-8 TRANS Energy","FR-16(7)(v)-9 TRANS Cust","FR-16(7)(v)-10 DIST Classified","FR-16(7)(v)-11 DIST Demand","FR-16(7)(v)-12 DIST Energy","FR-16(7)(v)-13 DIST Cust","Allocated COSS Check Total","FR-16(7)(v)-14 TOTAL CLASS","FR-16(7)(v)-15 RES Classified","FR-16(7)(v)-16 DS Classified","FR-16(7)(v)-17 GSFL Classified","FR-16(7)(v)-18 EH Classified","FR-16(7)(v)-19 SP Classified","FR-16(7)(v)-20 DTS Classified","FR-16(7)(v)-21 DTP Classified","FR-16(7)(v)-22 DP Classified","FR-16(7)(v)-23 TT Classified","FR-16(7)(v)-24 LT Classified","FR-16(7)(v)-25 OTH Classified","Input Data","WP FR-16(7)(v)-KW & KWH @Gen","WP FR-16(7)(v)-KW & KWH @Dist","WP FR-16(7)(v) Meters","WP FR-16(7)(v) CustAcct","WP FR-16(7)(v) Distlines","WP FR-16(7)(v) Wtd services","WP FR-16(7)(v) kwh analysis","WP FR-16(7)(v) CP NCP sum","WP FR-16(7)(v) Sys Peak","WP FR-16(7)(v) RS - KW","WP FR-16(7)(v) DS Tot - KW","WP FR-16(7)(v) DS Sec - KW","WP FR-16(7)(v) DP Pri - KW","WP FR-16(7)(v) TT - KW","WP FR-16(7)(v) LT - KW","WP FR-16(7)(v) DT Pri - KW","WP FR-16(7)(v) DT Sec - KW","WP FR-16(7)(v) OTHER - KW","WP FR-16(7)(v) GSFL - KW","WP FR-16(7)(v) EH - KW","WP FR-16(7)(v) SP - KW","WP FR-16(7)(v) LossRatios","WP FR-16(7)(v) Load Res RS","WP FR-16(7)(v) LoadRes DS","WP FR-16(7)(v) LoadRes DS_LG","WP FR-16(7)(v) LoadRes DP","WP FR-16(7)(v) LoadRes DTSEC","WP FR-16(7)(v) LoadRes DTPRI","WP FR-16(7)(v) LoadRes EH","WP FR-16(7)(v) LoadRes TT","WP FR-16(7)(v) Conduct&dev","WP FR-16(7)(v) Serv cost wgt","WP FR-16(7)(v) BurnHours","WP FR-16(7)(v) KWH","WP FR-16(7)(v) AVG CUST","WP FR-16(7)(v) Min Siz Trans 1","WP FR-16(7)(v) Min Siz Trans 2","WP FR-16(7)(v) MinSizPrimPole1","WP FR-16(7)(v) MinSizPrimPole2","WP FR-16(7)(v) MinSizSecPole1","WP FR-16(7)(v) MinSizSecPole2","WP FR-16(7)(v) MinSizOHPRIM1","WP FR-16(7)(v) MinSizeOHPRIM2","WP FR-16(7)(v) MinSizOHSEC1","WP FR-16(7)(v) MinSizOHSEC2","WP FR-16(7)(v) MinSizUGPRIM1","WP FR-16(7)(v) MinSizUGPRIM2","WP FR-16(7)(v) MinSizUGSEC1","WP FR-16(7)(v) MinSizUGSEC2","Minimum Size Summary","WP FR-16(7)(v) A&G WP","WP FR-16(7)(v) Pres NOI","WP FR-16(7)(v) Rate Incr"],"not_rendered":{"charts":0,"images":0,"macros":1,"external_links":3,"defined_names":782,"comments":31,"pivot_tables":0},"unopened":[],"bounds":{"document_bytes":16777216,"sheet_cells":100000,"rows_first":2000,"rows_last":500,"rows_between":2000,"halvings":0,"cell_chars":16384,"cell_head_chars":4096},"cells_cut":0,"cells_raw":0,"read":"whole","date_system":"1900"}

{"sheet":"WP Data Req Summary","index":0,"n_rows":79,"n_cols":10,"rows_kept":79,"cut":false,"hidden":false,"merged":[]}
[{"$f":"co_name","v":"DUKE ENERGY KENTUCKY, INC."}]
[{"$f":"coss_type","v":"ELECTRIC COST OF SERVICE STUDY "}]
[]
[]
["Page"]
["Number","Title",null,"Purpose",null,"Data to be Requested",null,"To be Requested from",null,"Date Requested"]
["Page 1","Rate Increase Exhibit ",null,"Calculate Proposed Revenue Distribution by Rate Class",null,"None - Pulls from other WPs"]
["Page 2","Computation of Present Return Earned (NOI)",null,"Computation of Present Return Earned (NOI)",null,"None - Pulls from other WPs"]
["Page 3","KW, KWH, Allocation Factors - Generation Level",null,"Computation of KW & KWH Allocation Factors @ Gen",null,"None - Pulls from other WPs"]
["Page 4","KW, KWH and Customer Allocation Factors - Distribution Level",null,"Computation of KW & KWH Allocation Factors @ Distr",null,"None - Pulls from other WPs"]
["Page 5","Meter Allocation Factors",null,"Compute Allocation Factor for Meters",null,"Cost of meters by rate group",null,"Meter Support - Jason Tharp"]
["Page 6","Customer Accounts (include uncollectible) allocation factors",null,"Compute Allocation Factor for Customer Accounts",null,"Charge off Study",null,"Tiffany Dennison"]
["Page 7","Weighted Distribution Line Allocators",null,"Compute Primary & Secondary Distribution Line Alloc",null,"None - Pulls from other WPs"]
["Page 8","Weighted Services Allocators",null,"Compute Weighted Customer Services Alloc Factor",null,"None - Pulls from other WPs"]
["Page 9","KWH Energy Analysis",null,"Calculate KWH Sales at Source by applying loss factors",null,"None - Pulls from other WPs"]
["Page 10","Summary of Adjusted Rate Group Coincident and Non-coincident KW demands",null,"Summarize KW Demands by rate group for use in calculating demand allocation factors ",null,"None - Pulls from other WPs"]
["Page 11","Reconciliation of Rate Group System Peak with System Peak Sendouts at Generation",null,"Summarize KW Demands by rate group for use in calculating demand allocation factors ",null,"None - Pulls from other WPs"]
["Page 12","Reconciliation of Rate Group System Peak with System Peak Sendouts at Generation",null,"Summarize KW Demands by rate group for use in calculating demand allocation factors ",null,"None - Pulls from other WPs"]
["Page 13","RS Coincident and Non-coincident KW Demands",null,"Derive RS Coincident & Non-coincident KW demands",null,"None - Pulls from other WPs"]
["Page 14","Total DS Coincident and Non-coincident KW Demands",null,"Total DS Coincident & Non-coincident KW demands",null,"None - Pulls from other WPs"]
["Page 15","Total DS Large - Coincident and Non-coincident KW Demands",null,"Total DS Large - Coincident & Non-coincident KW demands",null,"None - Pulls from other WPs"]
["Page 16","DS Large - Excl. RTP - Coincident and Non-coincident KW Demands",null,"DS Large - Excl. RTP - Coincident and Non-coincident KW Demands",null,"None - Pulls from other WPs"]
["Page 17","DS Large - RTP - Coincident and Non-coincident KW Demands",null,"DS Large - RTP - Coincident and Non-coincident KW Demands",null,"None - Pulls from other WPs"]
["Page 18","DS Large - Interdepartmental - Coincident and Non-coincident KW Demands",null,"DS Large - Interdepartmental - Coincident and Non-coincident KW Demands",null,"None - Pulls from other WPs"]
["Page 19","DS Small/Medium - Coincident and Non-coincident KW Demands",null,"Derive DS Small/Medium Coincident & Non-coincident KW demands",null,"None - Pulls from other WPs"]
["Page 20","DP Excluding RTP - Coincident and Non-coincident KW Demands",null,"DP Excluding RTP - Coincident and Non-coincident KW Demands",null,"None - Pulls from other WPs"]
["Page 21","DP RTP - Coincident and Non-coincident KW Demands",null,"DP RTP - Coincident and Non-coincident KW Demands",null,"None - Pulls from other WPs"]
["Page 22","Transmission Excluding RTP - Coincident and Non-coincident KW Demands",null,"DP TP - Coincident and Non-coincident KW Demands",null,"None - Pulls from other WPs"]
["Page 23","Transmission RTP - Coincident and Non-coincident KW Demands",null,"Transmission RTP - Coincident and Non-coincident KW Demands",null,"None - Pulls from other WPs"]
["Page 24","Lighting Coincident and Non-coincident KW Demands",null,"Lighting Coincident and Non-coincident KW Demands",null,"None - Pulls from other WPs"]
["Page 25","DT Primary Excl. RTP - Coincident and Non-coincident KW Demands",null,"DT Primary Excl. RTP - Coincident and Non-coincident KW Demands",null,"None - Pulls from other WPs"]
["Page 26","DT Primary RTP - Coincident and Non-coincident KW Demands",null,"DT Primary RTP - Coincident and Non-coincident KW Demands",null,"None - Pulls from other WPs"]
["Page 27","DT Secondary Excl. RTP - Coincident and Non-coincident KW Demands",null,"DT Secondary Excl. RTP - Coincident and Non-coincident KW Demands",null,"None - Pulls from other WPs"]
["Page 28","DT Secondary RTP - Coincident and Non-coincident KW Demands",null,"DT Secondary RTP - Coincident and Non-coincident KW Demands",null,"None - Pulls from other WPs"]
["Page 29","\"Other\" Coincident and Non-coincident KW Demands",null,"\"Other\" Coincident and Non-coincident KW Demands",null,"None - Pulls from other WPs"]
["Page 30","GSFL Coincident and Non-coincident KW Demands",null,"GSFL Coincident and Non-coincident KW Demands",null,"None - Pulls from other WPs"]
["Page 31","EH Coincident and Non-coincident KW Demands",null,"Electric Space Heating Coincident and Non-coincident KW Demands",null,"None - Pulls from other WPs"]
["Page 32","SP Coincident and Non-coincident KW Demands",null,"Seasonal Sports Coincident and Non-coincident KW Demands",null,"None - Pulls from other WPs"]
["Page 33","Distribution Monthly Loss Ratios",null,"Distribution Monthly Loss Ratios",null,"System Peak KW",null,"FERC Form 1, Page 401b, Column (d)"]
["Page 34","Transmission Monthly Loss Ratios",null,"Transmission Monthly Loss Ratios",null,"None - Pulls from other WPs"]
["Page 35","Development of Factors for \"KW\" demand losses & company use",null,"Development of Factors for \"KW\" demand losses & company use",null,"None - Pulls from other WPs"]
["Page 36","Estimated Monthly Coincident KW for Interdepartmental Sales",null,"Estimated Monthly Coincident KW for Interdepartmental Sales",null,"None - Pulls from other WPs",null,"FERC Form 1, Page 401a"]
["Page 37","Estimated Monthly Coincident KW for Company Use",null,"Estimated Monthly Coincident KW for Company Use",null,"Monthly Company Use KWH",null,"Financial Statements; total ties to FERC Form 1, page 401a, line 26."]
["Page 38","Factors for \"KW\" Losses & Company Use",null,"Development of Factors for \"KW\" Losses & Company Use",null,"Loss Study for transmission & distribution losses; KWH Available for delivery & sales to other utilities",null,"Jeff Gindling / Jeff Antoni; FERC Form 1, page 401a"]
["Page 39","RS - Load Research Statistics",null,"Used to Derive Coincident and Non-Coincident Peaks",null,"Load Research Data",null,"Donna Hendrix",null,"2019-04-05"]
["Page 40","DS Small & Med - Load Research Statistics",null,"Used to Derive Coincident and Non-Coincident Peaks",null,"Load Research Data",null,"Donna Hendrix",null,"2019-04-05"]
["Page 41","DS Large - Load Research Statistics",null,"Used to Derive Coincident and Non-Coincident Peaks",null,"Load Research Data",null,"Donna Hendrix",null,"2019-04-05"]
["Page 42","DP - Load Research Statistics",null,"Used to Derive Coincident and Non-Coincident Peaks",null,"Load Research Data",null,"Donna Hendrix",null,"2019-04-05"]
["Page 43","DT Secondary - Load Research Statistics",null,"Used to Derive Coincident and Non-Coincident Peaks",null,"Load Research Data",null,"Donna Hendrix",null,"2019-04-05"]
["Page 44","DT Primary - Load Research Statistics",null,"Used to Derive Coincident and Non-Coincident Peaks",null,"Load Research Data",null,"Donna Hendrix",null,"2019-04-05"]
["Page 45","EH - Load Research Statistics",null,"Used to Derive Coincident and Non-Coincident Peaks",null,"Load Research Data",null,"Donna Hendrix",null,"2019-04-05"]
["Page 46","TT - Load Research Statistics",null,"Used to Derive Coincident and Non-Coincident Peaks",null,"Load Research Data",null,"Donna Hendrix",null,"2019-04-05"]
["Page 47","Cost Support for Primary and Secondary Line Allocation",null,"To Allocate Primary and Secondary Lines",null,"Circuit Mile Report",null,"Jeff Gindling / Jeff Antoni"]
["Page 48","Service Cost Weighting",null,"Create a weighting factor for services",null,"Csot of Minimum Size ",null,"Wes Needham"]
["Page 49","Burn Hours",null,"Determine Lighting Demands at CP",null,"Burn Hours used from CMS, Sunrise / Sunset table",null,"Can get from sites on internet"]
["Page 50","Kwh Sales and Statistics",null,"Used to Derive Coincident and Non-Coincident Peaks",null,"Revenue Stats File",null,"Jim Ziolkowski"]
["Page 51","Electric Customer count by rate class by month  ACTUAL",null,"Used to calculate customer allocation factor",null,"Revenue Stats File",null,"Jim Ziolkowski"]
["Page 52","Line Transformers Minimum Size Study",null,"Demand / Customer Allocation for line transformers",null,"Gross Plant & Accumulated Depreciation for Account 368 - Line Transformers",null,"Fixed Assets Accounting"]
["Page 53","Line Transformers Minimum Size Study",null,"Determine customer Component of Transformers",null,"Quantity of Transformers by Engineering in Service Year / Handy Whitman Factor",null,"Fixed Assets Accounting"]
["Page 54","Line Transformers Minimum Size Study",null,"Determine customer Component of Transformers",null,"Quantity of Transformers by Engineering in Service Year / Handy Whitman Factor",null,"Fixed Assets Accounting"]
["Page 55","Primary Pole Minimum Size Study",null,"Demand / Customer Allocation for primary poles",null,"Gross Plant & Accumulated Depreciation for Account 364 - Primary Poles",null,"Fixed Assets Accounting"]
["Page 56","Primary Pole Minimum Size Study",null,"Determine customer Component of Primary Poles",null,"Quantity of Primary Poles by Engineering in Service Year / Handy Whitman Factor",null,"Fixed Assets Accounting"]
["Page 57","Primary Pole Minimum Size Study",null,"Determine customer Component of Primary Poles",null,"Quantity of Primary Poles by Engineering in Service Year / Handy Whitman Factor",null,"Fixed Assets Accounting"]
["Page 58","Secondary Pole Minimum Size Study",null,"Demand / Customer Allocation for Secondary poles",null,"Gross Plant & Accumulated Depreciation for Account 364 - Secondary Poles",null,"Fixed Assets Accounting"]
["Page 59","Secondary Pole Minimum Size Study",null,"Determine customer Component of Secondary Poles",null,"Quantity of Secondary Poles by Engineering in Service Year / Handy Whitman Factor",null,"Fixed Assets Accounting"]
["Page 60","Secondary Pole Minimum Size Study",null,"Determine customer Component of Secondary Poles",null,"Quantity of Secondary Poles by Engineering in Service Year / Handy Whitman Factor",null,"Fixed Assets Accounting"]
["Page 61","Overhead Lines - Primary Minimum Size Study",null,"Demand / Customer Allocation for Overhead Lines - Primary",null,"Gross Plant & Accumulated Depreciation for Account 365 - Overhead Lines - Primary",null,"Fixed Assets Accounting"]
["Page 62","Overhead Lines - Primary Minimum Size Study",null,"Determine customer Component of Overhead Lines - Primary",null,"Quantity of Overhead Lines - Primary by Engineering in Service Year / Handy Whitman Factor",null,"Fixed Assets Accounting"]
["Page 63","Overhead Lines - Primary Minimum Size Study",null,"Determine customer Component of Overhead Lines - Primary",null,"Quantity of Overhead Lines - Primary by Engineering in Service Year / Handy Whitman Factor",null,"Fixed Assets Accounting"]
["Page 64","Overhead Lines - Secondary Minimum Size Study",null,"Demand / Customer Allocation for Overhead Lines - Secondary",null,"Gross Plant & Accumulated Depreciation for Account 365 - Overhead Lines - Secondary",null,"Fixed Assets Accounting"]
["Page 65","Overhead Lines - Secondary Minimum Size Study",null,"Determine customer Component of Overhead Lines - Secondary",null,"Quantity of Overhead Lines - Secondary by Engineering in Service Year / Handy Whitman Factor",null,"Fixed Assets Accounting"]
["Page 66","Overhead Lines - Secondary Minimum Size Study",null,"Determine customer Component of Overhead Lines - Secondary",null,"Quantity of Overhead Lines - Secondary by Engineering in Service Year / Handy Whitman Factor",null,"Fixed Assets Accounting"]
["Page 67","Underground Lines - Primary Minimum Size Study",null,"Demand / Customer Allocation for Underground Lines - Primary",null,"Gross Plant & Accumulated Depreciation for Account 367 - Underground Lines - Primary",null,"Fixed Assets Accounting"]
["Page 68","Underground Lines - Primary Minimum Size Study",null,"Determine customer Component of Underground Lines - Primary",null,"Quantity of Underground Lines - Primary by Engineering in Service Year / Handy Whitman Factor",null,"Fixed Assets Accounting"]
["Page 69","Underground Lines - Primary Minimum Size Study",null,"Determine customer Component of Underground Lines - Primary",null,"Quantity of Underground Lines - Primary by Engineering in Service Year / Handy Whitman Factor",null,"Fixed Assets Accounting"]
["Page 70","Underground Lines - Secondary Minimum Size Study",null,"Demand / Customer Allocation for Underground Lines - Secondary",null,"Gross Plant & Accumulated Depreciation for Account 367 - Underground Lines - Secondary",null,"Fixed Assets Accounting"]
["Page 71","Underground Lines - Secondary Minimum Size Study",null,"Determine customer Component of Underground Lines - Secondary",null,"Quantity of Underground Lines - Secondary by Engineering in Service Year / Handy Whitman Factor",null,"Fixed Assets Accounting"]
["Page 72","Underground Lines - Secondary Minimum Size Study",null,"Determine customer Component of Underground Lines - Secondary",null,"Quantity of Underground Lines - Secondary by Engineering in Service Year / Handy Whitman Factor",null,"Fixed Assets Accounting"]
["Page 73","Functional Labor ",null,"To allocate General & Common Plant & A&G Exp",null,"Functional Labor",null,"FERC Form 1, Page 354-355"]

{"sheet":"Print & Input","index":1,"n_rows":555,"n_cols":27,"rows_kept":555,"cut":false,"hidden":false,"merged":[]}
["DUKE ENERGY KENTUCKY, INC.","company_name","WorkingCap","No"]
["ELECTRIC COST OF SERVICE STUDY ","coss_type","Pages",18]
["CASE NO: 2019-00271","case_name","Pages2",15]
["TWELVE MONTHS ENDING MARCH 31, 2021","test_period","WPpages",73]
["DATA: 12 MONTHS ACTUAL  & 0 MONTHS ESTIMATED","data_filing"]
["JAMES E. ZIOLKOWSKI","witness"]
["JEFF KERN","witness1"]
["TYPE OF FILING: \"X\" ORIGINAL   UPDATED    REVISED  ","type"]
["ALLOCATION FACTORS FOR COST OF SERVICE STUDY","alloc_factors"]
["TWELVE MONTHS ENDING DECEMBER 31, 2018","time_period"]
["TOTAL KW (12 COIN PEAK)","Allocator"]
[]
[]
["FR-16(7)(v) - Reference",null,"FR-16(7)(v)-1","FR-16(7)(v)-2","FR-16(7)(v)-3","FR-16(7)(v)-4","FR-16(7)(v)-5","FR-16(7)(v)-6","FR-16(7)(v)-7","FR-16(7)(v)-8","FR-16(7)(v)-9","FR-16(7)(v)-10","FR-16(7)(v)-11","FR-16(7)(v)-12","FR-16(7)(v)-13","FR-16(7)(v)-14","FR-16(7)(v)-15","FR-16(7)(v)-16","FR-16(7)(v)-17","FR-16(7)(v)-18","FR-16(7)(v)-19","FR-16(7)(v)-20","FR-16(7)(v)-21","FR-16(7)(v)-22","FR-16(7)(v)-23","FR-16(7)(v)-24","FR-16(7)(v)-25"]
[null,null,null,null,"Production","Production","Production",null,"Transmission","Transmission","Transmission",null,"Distribution","Distribution","Distribution","Total"]
[null,null,null,"Production","Demand","Energy","Customer","Transmission","Demand","Energy","Customer","Distribution","Demand","Energy","Customer","Class","Res","DS","GSFL","EH","SP","DTS","DTP","DP","TT","LT","Other"]
["Schedule Name","Range name","Functional","Classified","Allocated","Allocated","Allocated","Classified","Allocated","Allocated","Allocated","Classified","Allocated","Allocated","Allocated","Allocated","Classified","Classified","Classified","Classified","Classified","Classified","Classified","Classified","Classified","Classified","Classified"]
[]
["Schedule 1 - Summary","FR_16(7)(v)_Summary_1"]
["Schedule 2 - Gross Plant","FR_16(7)(v)_Gross_Plant_2"]
["Schedule 3 - Accum Deprec","FR_16(7)(v)_Depreciation_Reserve_3"]
["Schedule 4 - Net Plant","FR_16(7)(v)_Net_Plant_4"]
["Schedule 5 - Subtractive Adjustments","FR_16(7)(v)_RB_Subtractive_Adj_5"]
["Schedule 5.1 - Additive Adjustments","FR_16(7)(v)_RB_Additive_Adj_5.1"]
["Schedule 5.2 - Total Rate Base","FR_16(7)(v)_RB_Total_5.2"]
["Schedule 6 - O & M Expenses","FR_16(7)(v)_OMEXP_6"]
["Schedule 6.1 - O & M Expenses","FR_16(7)(v)_OMEXP_6.1"]
["Schedule 7 - Depreciation Exp","FR_16(7)(v)_Depreciation_Expense_7"]
["Schedule 8 - Oth Tax & Misc Exp","FR_16(7)(v)_Taxes_Other_Than_Income_8"]
["Schedule 9 - Income Tax - Fed","FR_16(7)(v)_FIT_Return_9"]
["Schedule 9.1 - Income Tax - State","FR_16(7)(v)_SIT_Return_9"]
["Schedule 10 - Oth Revenues COS Calc ","FR_16(7)(v)_COS_Compute_10"]
["Schedule 11 - Rate of Return & Tax Rates ","FR_16(7)(v)_RofR_11"]
["Schedule 12 - Allocation Factors","FR_16(7)(v)_Alloc1"]
["Schedule 13 - Income Tax Calculation","FR_16(7)(v)_FIT_Revenue_13"]
[" "]
[]
[]
[]
[]
[]
[]
[]
[]
[]
[]
[]
[]
[]
[]
[]
[]
[]
[]
[]
[]
[]
[]
[]
[]
[]
[]
[]
[]
[]
[]
[]
[]
[]
[]
[]
[]
[]
[]
[]
[]
[]
[]
[]
[]
[]
[]
[]
[]
[]
[]
[]
[]
[]
[]
[]
[]
[]
[]
[]
[]
[]
[]
[]
[]
[]
[]
[]
[]
[]
[]
[]
[]
[]
[]
[]
[]
[]
[]
[]
[]
[]
[]
[]
[]
[]
[]
[]
[]
[]
[]
[]
[]
[]
[]
[]
[]
[]
[]
[]
[]
[]
[]
[]
[]
[]
[]
[]
[]
[]
[]
[]
[]
[]
[]
[]
[]
[]
[]
[]
[]
[]
[]
[]
[]
[]
[]
[]
[]
[]
[]
[]
[]
[]
[]
[]
[]
[]
[]
[]
[]
[]
[]
[]
[]
[]
[]
[]
[]
[]
[]
[]
[]
[]
[]
[]
[]
[]
[]
[]
[]
[]
[]
[]
[]
[]
[]
[]
[]
[]
[]
[]
[]
[]
[]
[]
[]
[]
[]
[]
[]
[]
[]
[]
[]
[]
[]
[]
[]
[]
[]
[]
[]
[]
[]
[]
[]
[]
[]
[]
[]
[]
[]
[]
[]
[]
[]
[]
[]
[]
[]
[]
[]
[]
[]
[]
[]
[]
[]
[]
[]
[]
[]
[]
[]
[]
[]
[]
[]
[]
[]
[]
[]
[]
[]
[]
[]
[]
[]
[]
[]
[]
[]
[]
[]
[]
[]
[]
[]
[]
[]
[]
[]
[]
[]
[]
[]
[]
[]
[]
[]
[]
[]
[]
[]
[]
[]
[]
[]
[]
[]
[]
[]
[]
[]
[]
[]
[]
[]
[]
[]
[]
[]
[]
[]
[]
[]
[]
[]
[]
[]
[]
[]
[]
[]
[]
[]
[]
[]
[]
[]
[]
[]
[]
[]
[]
[]
[]
[]
[]
[]
[]
[]
[]
[]
[]
[]
[]
[]
[]
[]
[]
[]
[]
[]
[]
[]
[]
[]
[]
[]
[]
[]
[]
[]
[]
[]
[]
[]
[]
[]
[]
[]
[]
[]
[]
[]
[]
[]
[]
[]
[]
[]
[]
[]
[]
[]
[]
[]
[]
[]
[]
[]
[]
[]
[]
[]
[]
[]
[]
[]
[]
[]
[]
[]
[]
[]
[]
[]
[]
[]
[]
[]
[]
[]
[]
[]
[]
[]
[]
[]
[]
[]
[]
[]
[]
[]
[]
[]
[]
[]
[]
[]
[]
[]
[]
[]
[]
[]
[]
[]
[]
[]
[]
[]
[]
[]
[]
[]
[]
[]
[]
[]
[]
[]
[]
[]
[]
[]
[]
[]
[]
[]
[]
[]
[]
[]
[]
[]
[]
[]
[]
[]
[]
[]
[]
[]
[]
[]
[]
[]
[]
[]
[]
[]
[]
[]
[]
[]
[]
[]
[]
[]
[]
[]
[]
[]
[]
[]
[]
[]
[]
[]
[]
[]
[]
[]
[]
[]
[]
[]
[]
[]
[]
[]
[]
[]
[]
[]
[]
[]
[]
[]
[]
[]
[]
[]
[]
[]
[]
[]
[]
[]
[]
[]
[]
[]
[]
[]
[]
[]
[]
[]
[]
[]
[]
[]
[]
[]
[null,null,null,null,null,0]

{"sheet":"Rev req link","index":2,"n_rows":565,"n_cols":10,"rows_kept":565,"cut":false,"hidden":false,"merged":[]}
[]
[null,null,"COSS","Rev Req Model","Difference"]
[null,"Gross Plant (Sch. B-1)",{"$f":"'FR-16(7)(v)-1 Functional'!F123","v":1949359835},{"$f":"[3]!PLANT_IN_SERVICE","v":1949359830},{"$f":"D3-C3","v":-5},"Linked To Sch. B-1"]
[null,"Depreciation (Sch B-1)",{"$f":"-'FR-16(7)(v)-1 Functional'!F200","v":-795436883},{"$f":"[3]SCH_B1!$I$20","v":-795436884},{"$f":"D4-C4","v":-1},"Linked To Sch. B-1"]
[null,"Net Plant",{"$f":"C3+C4","v":1153922952},{"$f":"D3+D4","v":1153922946},{"$f":"E3-E4","v":-4}]
[]
[null,"CWIP",{"$f":"'FR-16(7)(v)-1 Functional'!F375","v":0},0,{"$f":"D7-C7","v":0}]
[]
[null,"Schedule B-5"]
[null,"Cash WC",{"$f":"'FR-16(7)(v)-1 Functional'!F408","v":14965228},{"$f":"[3]SCH_B1!$I$26","v":14965228},{"$f":"D10-C10","v":0},"Linked To Sch. B-1"]
[null,"Fuel Stock",{"$f":"'FR-16(7)(v)-1 Functional'!F396","v":19518014},{"$f":"[3]SCH_B5s!$O$27","v":19518014},0,"Linked To Sch. B-5"]
[null,"Emission Allowances",{"$f":"'FR-16(7)(v)-1 Functional'!F397","v":0},{"$f":"[3]SCH_B5s!$O$33","v":0},0,"Linked To Sch. B-5"]
[null,"Prepayments",{"$f":"'FR-16(7)(v)-1 Functional'!F405","v":236038},{"$f":"[3]SCH_B5s!$O$37","v":236038},0,"Linked To Sch. B-5"]
[null,"Mat & Supp",{"$f":"'FR-16(7)(v)-1 Functional'!F395","v":18759249},{"$f":"[3]SCH_B5s!$O$35","v":18759249},0,"Linked To Sch. B-5"]
[null,"Tot Working Capital",{"$f":"SUM(C10:C14)","v":53478529},{"$f":"SUM(D10:D14)","v":53478529},0]
[]
["Rate Base Deductions","Schedule B-6"]
["Customer Advances","Customer Advances - Acct 252",0,0,{"$f":"D18-C18","v":0}]
[null,"Customer Service Deposits",{"$f":"'FR-16(7)(v)-1 Functional'!F319","v":0},0,{"$f":"D19-C19","v":0}]
["Post Retirement Benefits","ITC   Acct 255",0,0,0]
[null,"Account 254 - Excess EDIT",{"$f":"'FR-16(7)(v)-1 Functional'!F322","v":63555450},{"$f":"-[3]SCH_B1!$I$38","v":63555450},0]
["ITC","Acct 281",0,{"$f":"'[3]WPB-6''s'!$T$145","v":0},0]
[null,"Acct 282",{"$f":"'FR-16(7)(v)-1 Functional'!F301","v":202108496},{"$f":"-('[3]WPB-6''s'!$R$154-'[3]WPB-6''s'!$R$144-'[3]WPB-6''s'!$R$148-[3]SCH_D1!$AA$297-[3]SCH_D1!$AA$302+[3]SCH_B6!$N$71)","v":202108496},0,"Linked To Sch. B-6",null,null,-198366893,"Per Sch. B-1"]
[null,"Acct 283",{"$f":"'FR-16(7)(v)-1 Functional'!F315","v":16147269},{"$f":"-'[3]WPB-6''s'!$R$148","v":16147269},0,"Linked To Sch. B-6",null,null,{"$f":"-D23-D24+D27","v":-198366893}]
[null,"Total Rate Base Reductions",{"$f":"SUM(C18:C24)","v":281811215},{"$f":"SUM(D18:D24)","v":281811215},0,null,null,null,{"$f":"I24-I23","v":0},"Need Depreciation Adj"]
[null,null,null,null,null,null,null,null,null,"and ADIT Adj on B-6"]
["Rate Base Additions ","Acct 190",{"$f":"'FR-16(7)(v)-1 Functional'!F361","v":19888872},{"$f":"'[3]WPB-6''s'!$R$144","v":19888872},{"$f":"D27-C27","v":0},"Linked To Sch. B-6",null,null,{"$f":"D25-D27","v":261922343}]
[null,"Other Rate Base Adj.",{"$f":"'FR-16(7)(v)-1 Functional'!F365","v":948688},{"$f":"[3]SCH_B1!$I$40","v":948688},{"$f":"D28-C28","v":0}]
[null,"Total Rate Base Additions",{"$f":"SUM(C27:C28)","v":20837560},{"$f":"SUM(D27:D28)","v":20837560},{"$f":"D29-C29","v":0}]
[]
["Jurisdictional Rate Base","Total Rate Base",{"$f":"C5+C7+C15-C25+C29","v":946427826},{"$f":"D5+D7+D15-D25+D29","v":946427820},{"$f":"D31-C31","v":-6}]
[]
[null,"Schedule C-2"]
["O&M Expenses","Prod O&M",{"$f":"'FR-16(7)(v)-1 Functional'!F459","v":141063339},{"$f":"[3]SCH_C2!$N$27","v":141063339},{"$f":"D34-C34","v":0},"Linked To Sch. C-2"]
[null,"Trans",{"$f":"'FR-16(7)(v)-1 Functional'!F466","v":23151925},{"$f":"[3]SCH_C2!$N$29","v":23151925},{"$f":"D35-C35","v":0},"Linked To Sch. C-2"]
[null,"Regional Market",{"$f":"'FR-16(7)(v)-1 Functional'!F470","v":1826852},{"$f":"[3]SCH_C2!$N$30","v":1826852},0,"Linked To Sch. C-2"]
[null,"Dist",{"$f":"'FR-16(7)(v)-1 Functional'!F492","v":17847749},{"$f":"[3]SCH_C2!$N$31","v":17847749},0,"Linked To Sch. C-2"]
[null,"Cust Acct",{"$f":"'FR-16(7)(v)-1 Functional'!F503","v":4160730},{"$f":"[3]SCH_C2!$N$32+[3]SCH_C1!$G$20-1241796","v":4160730},0,"Linked To Sch. C-2"]
[null,"Cust serv",{"$f":"'FR-16(7)(v)-1 Functional'!F518","v":604867},{"$f":"[3]SCH_C2!$N$33","v":604867},0,"Linked To Sch. C-2"]
[null,"Sales",{"$f":"'FR-16(7)(v)-1 Functional'!F522","v":1497140},{"$f":"[3]SCH_C2!$N$34","v":1497140},0,"Linked To Sch. C-2"]
[null,"A&G & AMORT OF DEF EXP",{"$f":"'FR-16(7)(v)-1 Functional'!F547","v":19639682},{"$f":"[3]SCH_C2!$N$35+[3]SCH_C2!$N$36","v":19639682},0,"Linked To Sch. C-2"]
[null,"Total O&M",{"$f":"SUM(C34:C41)","v":209792284},{"$f":"SUM(D34:D41)","v":209792284},{"$f":"D42-C42","v":0}]
["Depreciation","Total Deprec Exp",{"$f":"'FR-16(7)(v)-1 Functional'!F582","v":58197795},{"$f":"[3]SCH_C2!$N$39","v":58197795},0,"Linked To Sch. C-2"]
["Property Tax","Property Tax",{"$f":"'FR-16(7)(v)-1 Functional'!F598","v":13645092},{"$f":"'[3]SCH_C2.1 - Forecasted Period'!$G$321+'[3]SCH_C2.1 - Forecasted Period'!$G$319","v":13645092},0]
["Misc taxes","Misc Taxes",{"$f":"'FR-16(7)(v)-1 Functional'!F605","v":843976},{"$f":"[3]SCH_C2!$N$43-D44","v":843976},0]
["total prop & misc taxes","Total Prop & Misc Taxes",{"$f":"C44+C45","v":14489068},{"$f":"D44+D45","v":14489068},0]
[null,"Misc. Expenses",{"$f":"'FR-16(7)(v)-1 Functional'!F610","v":89261},{"$f":"[3]SCH_C1!$G$22","v":89261},0]
[null,"Total O&M, Depr & MISC TAX",{"$f":"C42+C43+C46+C47","v":282568408},{"$f":"D42+D43+D46+D47","v":282568408},{"$f":"D48-C48","v":0}]
[]
[null,"Schedule E-1"]
[null,"Tax Calculation"]
[null,"Interest Deduction",{"$f":"'FR-16(7)(v)-1 Functional'!F632","v":18775174},{"$f":"-[3]SCH_E1!$Q$24","v":18775174},{"$f":"D52-C52","v":0}]
[null,"Other Deductions",{"$f":"'FR-16(7)(v)-1 Functional'!F639","v":70001537},{"$f":"-[3]SCH_E1!$Q$27-[3]SCH_E1!$Q$31-[3]SCH_E1!$Q$36","v":70001537},{"$f":"D53-C53","v":0}]
[]
[null,"State Tax Calc"]
[null,"Total State Inc Tax Payable",{"$f":"'FR-16(7)(v)-1 Functional'!F720","v":-1203994},{"$f":"[3]SCH_E1!$Q$108","v":-1203994},{"$f":"D56-C56","v":0}]
[null,"State prov Acct 410.1 & 411.1 - Net",{"$f":"'FR-16(7)(v)-1 Functional'!F701","v":3665560},{"$f":"[3]SCH_E1!$Q$114","v":3665560},{"$f":"D57-C57","v":0}]
[null,"Total SIT Adj",{"$f":"SUM(C56:C57)","v":2461566},{"$f":"SUM(D56:D57)","v":2461566},{"$f":"SUM(E56:E57)","v":0}]
[]
[null,"Fed Tax Calc"]
[null,"Total Fed Inc Tax Payable",{"$f":"'FR-16(7)(v)-1 Functional'!F674","v":-3039279},{"$f":"[3]SCH_E1!$Q$128","v":-3039280},{"$f":"D61-C61","v":-1}]
[null,"FIT prov Acct 410.1 & 411.1 - Net",{"$f":"'FR-16(7)(v)-1 Functional'!F649","v":10163328},{"$f":"[3]SCH_E1!$Q$134","v":10163328},{"$f":"D62-C62","v":0}]
[null,"ITC Amort & Other Credits",{"$f":"-'FR-16(7)(v)-1 Functional'!F652","v":-428},{"$f":"[3]SCH_E1!$Q$136","v":-428},{"$f":"D63-C63","v":0}]
[null,"Total FIT Adj",{"$f":"SUM(C61:C63)","v":7123621},{"$f":"SUM(D61:D63)","v":7123620},{"$f":"SUM(E61:E63)","v":-1}]
[]
[null,"Total Income Taxes",{"$f":"C64+C58","v":9585187},{"$f":"D64+D58","v":9585186},{"$f":"D66-C66","v":-1}]
[]
[null,"Other Operating Revenues",{"$f":"'FR-16(7)(v)-1 Functional'!F750","v":1695053},{"$f":"[3]SCH_C2!$N$19","v":1695053},{"$f":"D68-C68","v":0}]
[]
[null,"Revenue Tax",{"$f":"'FR-16(7)(v)-1 Functional'!F767","v":0}]
[null,"Deficiency @ROR",{"$f":"'FR-16(7)(v)-1 Functional'!F43","v":44392659},{"$f":"'[3]SCH A Rate Base'!$I$31-1241797","v":44392659},{"$f":"D71-C71","v":0}]
[]
[null,"Incr Uncollectible Exp",0,0,{"$f":"D73-C73","v":0}]
[]
[]
[null,"Present Revenue (Sch M) vs Sch C-2",{"$f":"'FR-16(7)(v)-1 Functional'!F867","v":309580654},{"$f":"[3]SCH_C2!$N$17+[3]SCH_C2!$N$18","v":309580654},{"$f":"D76-C76","v":0}]
[]
[]
[]
[]
[]
[]
[]
[]
[]
[]
[]
[]
[]
[]
[]
[]
[]
[]
[]
[]
[]
[]
[]
[]
[]
[]
[]
[]
[]
[]
[]
[]
[]
[]
[]
[]
[]
[]
[]
[]
[]
[]
[]
[]
[]
[]
[]
[]
[]
[]
[]
[]
[]
[]
[]
[]
[]
[]
[]
[]
[]
[]
[]
[]
[]
[]
[]
[]
[]
[]
[]
[]
[]
[]
[]
[]
[]
[]
[]
[]
[]
[]
[]
[]
[]
[]
[]
[]
[]
[]
[]
[]
[]
[]
[]
[]
[]
[]
[]
[]
[]
[]
[]
[]
[]
[]
[]
[]
[]
[]
[]
[]
[]
[]
[]
[]
[]
[]
[]
[]
[]
[]
[]
[]
[]
[]
[]
[]
[]
[]
[]
[]
[]
[]
[]
[]
[]
[]
[]
[]
[]
[]
[]
[]
[]
[]
[]
[]
[]
[]
[]
[]
[]
[]
[]
[]
[]
[]
[]
[]
[]
[]
[]
[]
[]
[]
[]
[]
[]
[]
[]
[]
[]
[]
[]
[]
[]
[]
[]
[]
[]
[]
[]
[]
[]
[]
[]
[]
[]
[]
[]
[]
[]
[]
[]
[]
[]
[]
[]
[]
[]
[]
[]
[]
[]
[]
[]
[]
[]
[]
[]
[]
[]
[]
[]
[]
[]
[]
[]
[]
[]
[]
[]
[]
[]
[]
[]
[]
[]
[]
[]
[]
[]
[]
[]
[]
[]
[]
[]
[]
[]
[]
[]
[]
[]
[]
[]
[]
[]
[]
[]
[]
[]
[]
[]
[]
[]
[]
[]
[]
[]
[]
[]
[]
[]
[]
[]
[]
[]
[]
[]
[]
[]
[]
[]
[]
[]
[]
[]
[]
[]
[]
[]
[]
[]
[]
[]
[]
[]
[]
[]
[]
[]
[]
[]
[]
[]
[]
[]
[]
[]
[]
[]
[]
[]
[]
[]
[]
[]
[]
[]
[]
[]
[]
[]
[]
[]
[]
[]
[]
[]
[]
[]
[]
[]
[]
[]
[]
[]
[]
[]
[]
[]
[]
[]
[]
[]
[]
[]
[]
[]
[]
[]
[]
[]
[]
[]
[]
[]
[]
[]
[]
[]
[]
[]
[]
[]
[]
[]
[]
[]
[]
[]
[]
[]
[]
[]
[]
[]
[]
[]
[]
[]
[]
[]
[]
[]
[]
[]
[]
[]
[]
[]
[]
[]
[]
[]
[]
[]
[]
[]
[]
[]
[]
[]
[]
[]
[]
[]
[]
[]
[]
[]
[]
[]
[]
[]
[]
[]
[]
[]
[]
[]
[]
[]
[]
[]
[]
[]
[]
[]
[]
[]
[]
[]
[]
[]
[]
[]
[]
[]
[]
[]
[]
[]
[]
[]
[]
[]
[]
[]
[]
[]
[]
[]
[]
[]
[]
[]
[]
[]
[]
[]
[]
[]
[]
[]
[]
[]
[]
[]
[]
[]
[]
[]
[]
[]
[]
[]
[]
[]
[]
[]
[]
[]
[]
[]
[]
[]
[]
[]
[]
[]
[]
[]
[]
[]
[]
[null,null,null,null,null,0]

{"sheet":"CustomerCharge","index":3,"n_rows":33,"n_cols":13,"rows_kept":33,"cut":false,"hidden":false,"merged":[]}
[{"$f":"co_name","v":"DUKE ENERGY KENTUCKY, INC."}]
[{"$f":"case_name","v":"CASE NO: 2019-00271"}]
["CUSTOMER CHARGE ANALYSIS / MINIMUM BILL RATIONALE"]
[{"$f":"test_period","v":"TWELVE MONTHS ENDING MARCH 31, 2021"}]
[]
[]
[{"$f":"data_filing","v":"DATA: 12 MONTHS ACTUAL  & 0 MONTHS ESTIMATED"},null,null,null,null,null,null,null,null,null,null,"WP FR-16(7)(v)"]
[{"$f":"type","v":"TYPE OF FILING: \"X\" ORIGINAL   UPDATED    REVISED  "},null,null,null,null,null,null,null,null,null,null,"PAGE 1 of 1"]
["WORK PAPER REFERENCE NO(S).: FR-16(12)(v)-5, FR-16(12)(v)-9, FR-16(12)(v)-13",null,null,null,null,null,null,null,null,null,null,"WITNESS RESPONSIBLE:"]
[null,null,null,null,null,null,null,null,null,null,null,{"$f":"Witness1","v":"JEFF KERN"}]
[]
[]
[null,null,null,"DS","GSFL","EH","SP","DT SEC","DT PRI","DP","TT",null,"OTHER"]
["LINE",null,"RS","SECONDARY","SECONDARY","SECONDARY","SECONDARY","SECONDARY","PRIMARY","PRIMARY","TRANSMISSION","LT","WATER"]
["NO.","DESCRIPTION","RESIDENTIAL","DISTRIBUTION","DISTRIBUTION","DISTRIBUTION","DISTRIBUTION","DISTRIBUTION","DISTRIBUTION","DISTRIBUTION","TIME OF DAY","LIGHTING","PUMPING"]
[]
[1,"Capitalization Allocated to Electric Operations",{"$f":"'FR-16(7)(v)-5 PROD Cust'!G431+'FR-16(7)(v)-9 TRANS Cust'!G431+'FR-16(7)(v)-13 DIST Cust'!G431","v":79565687},{"$f":"'FR-16(7)(v)-5 PROD Cust'!H431+'FR-16(7)(v)-9 TRANS Cust'!H431+'FR-16(7)(v)-13 DIST Cust'!H431","v":10557884},{"$f":"'FR-16(7)(v)-5 PROD Cust'!I431+'FR-16(7)(v)-9 TRANS Cust'!I431+'FR-16(7)(v)-13 DIST Cust'!I431","v":87365},{"$f":"'FR-16(7)(v)-5 PROD Cust'!J431+'FR-16(7)(v)-9 TRANS Cust'!J431+'FR-16(7)(v)-13 DIST Cust'!J431","v":105030},{"$f":"'FR-16(7)(v)-5 PROD Cust'!K431+'FR-16(7)(v)-9 TRANS Cust'!K431+'FR-16(7)(v)-13 DIST Cust'!K431","v":12083},{"$f":"'FR-16(7)(v)-5 PROD Cust'!L431+'FR-16(7)(v)-9 TRANS Cust'!L431+'FR-16(7)(v)-13 DIST Cust'!L431","v":303956},{"$f":"'FR-16(7)(v)-5 PROD Cust'!M431+'FR-16(7)(v)-9 TRANS Cust'!M431+'FR-16(7)(v)-13 DIST Cust'!M431","v":31612},{"$f":"'FR-16(7)(v)-5 PROD Cust'!N431+'FR-16(7)(v)-9 TRANS Cust'!N431+'FR-16(7)(v)-13 DIST Cust'!N431","v":14872},{"$f":"'FR-16(7)(v)-5 PROD Cust'!O431+'FR-16(7)(v)-9 TRANS Cust'!O431+'FR-16(7)(v)-13 DIST Cust'!O431","v":11159},{"$f":"'FR-16(7)(v)-5 PROD Cust'!P431+'FR-16(7)(v)-9 TRANS Cust'!P431+'FR-16(7)(v)-13 DIST Cust'!P431","v":2246377},{"$f":"'FR-16(7)(v)-5 PROD Cust'!Q431+'FR-16(7)(v)-9 TRANS Cust'!Q431+'FR-16(7)(v)-13 DIST Cust'!Q431","v":9295}]
[]
[2,"Operating Expense",{"$f":"'FR-16(7)(v)-5 PROD Cust'!G26+'FR-16(7)(v)-9 TRANS Cust'!G26+'FR-16(7)(v)-13 DIST Cust'!G26","v":15900037},{"$f":"'FR-16(7)(v)-5 PROD Cust'!H26+'FR-16(7)(v)-9 TRANS Cust'!H26+'FR-16(7)(v)-13 DIST Cust'!H26","v":2555895},{"$f":"'FR-16(7)(v)-5 PROD Cust'!I26+'FR-16(7)(v)-9 TRANS Cust'!I26+'FR-16(7)(v)-13 DIST Cust'!I26","v":18128},{"$f":"'FR-16(7)(v)-5 PROD Cust'!J26+'FR-16(7)(v)-9 TRANS Cust'!J26+'FR-16(7)(v)-13 DIST Cust'!J26","v":21353},{"$f":"'FR-16(7)(v)-5 PROD Cust'!K26+'FR-16(7)(v)-9 TRANS Cust'!K26+'FR-16(7)(v)-13 DIST Cust'!K26","v":2857},{"$f":"'FR-16(7)(v)-5 PROD Cust'!L26+'FR-16(7)(v)-9 TRANS Cust'!L26+'FR-16(7)(v)-13 DIST Cust'!L26","v":77524},{"$f":"'FR-16(7)(v)-5 PROD Cust'!M26+'FR-16(7)(v)-9 TRANS Cust'!M26+'FR-16(7)(v)-13 DIST Cust'!M26","v":528},{"$f":"'FR-16(7)(v)-5 PROD Cust'!N26+'FR-16(7)(v)-9 TRANS Cust'!N26+'FR-16(7)(v)-13 DIST Cust'!N26","v":3274},{"$f":"'FR-16(7)(v)-5 PROD Cust'!O26+'FR-16(7)(v)-9 TRANS Cust'!O26+'FR-16(7)(v)-13 DIST Cust'!O26","v":1053},{"$f":"'FR-16(7)(v)-5 PROD Cust'!P26+'FR-16(7)(v)-9 TRANS Cust'!P26+'FR-16(7)(v)-13 DIST Cust'!P26","v":847091},{"$f":"'FR-16(7)(v)-5 PROD Cust'!Q26+'FR-16(7)(v)-9 TRANS Cust'!Q26+'FR-16(7)(v)-13 DIST Cust'!Q26","v":2164}]
[]
[3,{"$f":"\"Return @ \"&TEXT(RofR,\"0.00%\")","v":"Return @ 6.71%"},{"$f":"'FR-16(7)(v)-5 PROD Cust'!G28+'FR-16(7)(v)-9 TRANS Cust'!G28+'FR-16(7)(v)-13 DIST Cust'!G28","v":5339654},{"$f":"'FR-16(7)(v)-5 PROD Cust'!H28+'FR-16(7)(v)-9 TRANS Cust'!H28+'FR-16(7)(v)-13 DIST Cust'!H28","v":708539},{"$f":"'FR-16(7)(v)-5 PROD Cust'!I28+'FR-16(7)(v)-9 TRANS Cust'!I28+'FR-16(7)(v)-13 DIST Cust'!I28","v":5863},{"$f":"'FR-16(7)(v)-5 PROD Cust'!J28+'FR-16(7)(v)-9 TRANS Cust'!J28+'FR-16(7)(v)-13 DIST Cust'!J28","v":7048},{"$f":"'FR-16(7)(v)-5 PROD Cust'!K28+'FR-16(7)(v)-9 TRANS Cust'!K28+'FR-16(7)(v)-13 DIST Cust'!K28","v":811},{"$f":"'FR-16(7)(v)-5 PROD Cust'!L28+'FR-16(7)(v)-9 TRANS Cust'!L28+'FR-16(7)(v)-13 DIST Cust'!L28","v":20399},{"$f":"'FR-16(7)(v)-5 PROD Cust'!M28+'FR-16(7)(v)-9 TRANS Cust'!M28+'FR-16(7)(v)-13 DIST Cust'!M28","v":2122},{"$f":"'FR-16(7)(v)-5 PROD Cust'!N28+'FR-16(7)(v)-9 TRANS Cust'!N28+'FR-16(7)(v)-13 DIST Cust'!N28","v":998},{"$f":"'FR-16(7)(v)-5 PROD Cust'!O28+'FR-16(7)(v)-9 TRANS Cust'!O28+'FR-16(7)(v)-13 DIST Cust'!O28","v":748},{"$f":"'FR-16(7)(v)-5 PROD Cust'!P28+'FR-16(7)(v)-9 TRANS Cust'!P28+'FR-16(7)(v)-13 DIST Cust'!P28","v":150754},{"$f":"'FR-16(7)(v)-5 PROD Cust'!Q28+'FR-16(7)(v)-9 TRANS Cust'!Q28+'FR-16(7)(v)-13 DIST Cust'!Q28","v":624}]
[]
[4,"Operating Expense Plus Return",{"$f":"C19+C21","v":21239691},{"$f":"D19+D21","v":3264434},{"$f":"E19+E21","v":23991},28401,3668,97923,2650,4272,1801,{"$f":"L19+L21","v":997845},{"$f":"M19+M21","v":2788}]
[]
[5,"Less: Revenue Credits",{"$f":"-'FR-16(7)(v)-5 PROD Cust'!G29-'FR-16(7)(v)-9 TRANS Cust'!G29-'FR-16(7)(v)-13 DIST Cust'!G29","v":315588},{"$f":"-'FR-16(7)(v)-5 PROD Cust'!H29-'FR-16(7)(v)-9 TRANS Cust'!H29-'FR-16(7)(v)-13 DIST Cust'!H29","v":39673},{"$f":"-'FR-16(7)(v)-5 PROD Cust'!I29-'FR-16(7)(v)-9 TRANS Cust'!I29-'FR-16(7)(v)-13 DIST Cust'!I29","v":338},{"$f":"-'FR-16(7)(v)-5 PROD Cust'!J29-'FR-16(7)(v)-9 TRANS Cust'!J29-'FR-16(7)(v)-13 DIST Cust'!J29","v":411},{"$f":"-'FR-16(7)(v)-5 PROD Cust'!K29-'FR-16(7)(v)-9 TRANS Cust'!K29-'FR-16(7)(v)-13 DIST Cust'!K29","v":44},{"$f":"-'FR-16(7)(v)-5 PROD Cust'!L29-'FR-16(7)(v)-9 TRANS Cust'!L29-'FR-16(7)(v)-13 DIST Cust'!L29","v":1073},{"$f":"-'FR-16(7)(v)-5 PROD Cust'!M29-'FR-16(7)(v)-9 TRANS Cust'!M29-'FR-16(7)(v)-13 DIST Cust'!M29","v":136},{"$f":"-'FR-16(7)(v)-5 PROD Cust'!N29-'FR-16(7)(v)-9 TRANS Cust'!N29-'FR-16(7)(v)-13 DIST Cust'!N29","v":55},{"$f":"-'FR-16(7)(v)-5 PROD Cust'!O29-'FR-16(7)(v)-9 TRANS Cust'!O29-'FR-16(7)(v)-13 DIST Cust'!O29","v":41},{"$f":"-'FR-16(7)(v)-5 PROD Cust'!P29-'FR-16(7)(v)-9 TRANS Cust'!P29-'FR-16(7)(v)-13 DIST Cust'!P29","v":10034},{"$f":"-'FR-16(7)(v)-5 PROD Cust'!Q29-'FR-16(7)(v)-9 TRANS Cust'!Q29-'FR-16(7)(v)-13 DIST Cust'!Q29","v":33}]
[]
[6,"Customer Cost Component (Revenue Requirement)",{"$f":"C23-C25","v":20924103},{"$f":"D23-D25","v":3224761},{"$f":"E23-E25","v":23653},27990,3624,96850,2514,4217,1760,{"$f":"L23-L25","v":987811},{"$f":"M23-M25","v":2755}]
[]
[7,"Total Customers",{"$f":"'WP FR-16(7)(v) AVG CUST'!$O11","v":128431},{"$f":"'WP FR-16(7)(v) AVG CUST'!$O12","v":12968},{"$f":"'WP FR-16(7)(v) AVG CUST'!$O20","v":172},{"$f":"'WP FR-16(7)(v) AVG CUST'!$O18","v":103},{"$f":"'WP FR-16(7)(v) AVG CUST'!$O19","v":14},{"$f":"'WP FR-16(7)(v) AVG CUST'!$O14","v":155},{"$f":"'WP FR-16(7)(v) AVG CUST'!$O16","v":37},{"$f":"'WP FR-16(7)(v) AVG CUST'!$O21","v":10},{"$f":"'WP FR-16(7)(v) AVG CUST'!$O23","v":11},{"$f":"'WP FR-16(7)(v) AVG CUST'!$O25","v":468},{"$f":"'WP FR-16(7)(v) AVG CUST'!$O22","v":11}]
[]
[8,"Annual Revenue / Customer",{"$f":"ROUND(C27/C29,2)","v":162.91999999999999},{"$f":"ROUND(D27/D29,2)","v":248.67},{"$f":"ROUND(E27/E29,2)","v":137.52000000000001},271.75,258.86,624.84,67.95,421.7,160,{"$f":"ROUND(L27/L29,2)","v":2110.71},{"$f":"ROUND(M27/M29,2)","v":250.45}]
[]
[9,"Monthly Revenue / Customer",{"$f":"ROUND(C31/12,2)","v":13.58},{"$f":"ROUND(D31/12,2)","v":20.72},{"$f":"ROUND(E31/12,2)","v":11.46},22.65,21.57,52.07,5.66,35.14,13.33,{"$f":"ROUND(L31/12,2)","v":175.89},{"$f":"ROUND(M31/12,2)","v":20.87}]

{"sheet":"FR-16(7)(v)-1 Functional","index":4,"n_rows":1040,"n_cols":15,"rows_kept":1040,"cut":false,"hidden":false,"merged":[]}
[{"$f":"co_name","v":"DUKE ENERGY KENTUCKY, INC."},null,null,null,null,null,null,null,null,"FR-16(7)(v)-1"]
["FUNCTIONAL ELECTRIC COST OF SERVICE",null,null,null,null,null,null,null,null,"WITNESS RESPONSIBLE:"]
[{"$f":"case_name","v":"CASE NO: 2019-00271"},null,null,null,null,null,null,null,null,{"$f":"Witness","v":"JAMES E. ZIOLKOWSKI"}]
[{"$f":"data_filing","v":"DATA: 12 MONTHS ACTUAL  & 0 MONTHS ESTIMATED"},null,null,null,null,null,null,null,null,{"$f":"\"PAGE \"&Pages-17&\" OF \"&Pages","v":"PAGE 1 OF 18"}]
[{"$f":"type","v":"TYPE OF FILING: \"X\" ORIGINAL   UPDATED    REVISED  "}]
[]
[]
["LINE",null,null,null,null,"TOTAL","FUNCTIONAL",null,null,"TOTAL","ALL"]
["NO.","SUMMARY OF RESULTS",null,"ALLO",null,"ELECTRIC","PRODUCTION","TRANSMISSION","DISTRIBUTION","AT ISSUE","OTHER"]
[null,null,"Schedule 1",null,null,null,3,4,5]
[1,"NET INCOME COMPUTATION"]
[2,null,"GROSS ELECTRIC PLANT IN SERVICE",null,null,{"$f":"F123","v":1949359835},{"$f":"G123","v":1279398113},{"$f":"H123","v":76508105},{"$f":"I123","v":593453617},{"$f":"SUM(G12:I12)","v":1949359835},{"$f":"F12-J12","v":0}]
[3,null,"TOTAL DEPRECIATION RESERVE",null,null,{"$f":"-F200","v":-795436883},{"$f":"-G200","v":-621319440},{"$f":"-H200","v":-21904404},{"$f":"-I200","v":-152213039},{"$f":"SUM(G13:I13)","v":-795436883},{"$f":"F13-J13","v":0}]
[4,null,"TOTAL RATE BASE ADJUSTMENTS",null,null,{"$f":"F421","v":-207495126},{"$f":"G421","v":-103578968},{"$f":"H421","v":-12562247},{"$f":"I421","v":-91353911},{"$f":"SUM(G14:I14)","v":-207495126},{"$f":"F14-J14","v":0}]
[5,null,"  TOTAL RATE BASE",null,null,{"$f":"SUM(F12:F14)","v":946427826},554499705,42041454,349886667,946427826,0]
[6]
[7,"OPERATING EXPENSES"]
[8,null,"TOTAL O&M EXPENSE",null,null,{"$f":"F549","v":209792284},{"$f":"G549","v":154356566},{"$f":"H549","v":25891009},{"$f":"I549","v":29544709},{"$f":"SUM(G18:I18)","v":209792284},{"$f":"F18-J18","v":0}]
[9,null,"TOTAL DEPRECIATION EXPENSE",null,null,{"$f":"F582","v":58197795},{"$f":"G582","v":41854660},{"$f":"H582","v":1721902},{"$f":"I582","v":14621233},{"$f":"SUM(G19:I19)","v":58197795},0]
[10,null,"TOTAL OTHER TAX & MISC EXPENSE",null,null,{"$f":"F612","v":14578329},{"$f":"G612","v":8383957},{"$f":"H612","v":689082},{"$f":"I612","v":5505290},{"$f":"SUM(G20:I20)","v":14578329},0]
[11,null,"  TOTAL OP EXP EXCLUDING INC & REV TAX",null,null,{"$f":"SUM(F17:F20)","v":282568408},{"$f":"SUM(G17:G20)","v":204595183},{"$f":"SUM(H17:H20)","v":28301993},{"$f":"SUM(I17:I20)","v":49671232},{"$f":"SUM(J17:J20)","v":282568408},0]
[12,null,"NET FED INCOME TAX EXP ALLOWABLE",null,null,{"$f":"F676","v":7123621},{"$f":"G676","v":4058141},{"$f":"H676","v":1988925},{"$f":"I676","v":1076379},{"$f":"SUM(G22:I22)","v":7123445},176]
[13,null,"NET STATE INCOME TAX EXP ALLOWABLE",null,null,{"$f":"F722","v":2461566},{"$f":"G722","v":1182568},{"$f":"H722","v":258160},{"$f":"I722","v":1020829},{"$f":"SUM(G23:I23)","v":2461557},9]
[14,null,"RESERVED","CW29",null,0,{"$f":"F24-SUM(H24:I24)","v":0},{"$f":"ROUND(F24*VLOOKUP(D24,ALLOCTABLE_FUNCTIONAL,$H$10,FALSE),0)","v":0},{"$f":"ROUND(F24*VLOOKUP(D24,ALLOCTABLE_FUNCTIONAL,$I$10,FALSE),0)","v":0},{"$f":"SUM(G24:I24)","v":0},{"$f":"F24-J24","v":0}]
[15,null,"REVENUE TAX",null,null,{"$f":"F767","v":0},{"$f":"G767","v":0},{"$f":"H767","v":0},{"$f":"I767","v":0},{"$f":"SUM(G25:I25)","v":0},0]
[16,null,"  TOTAL OPERATING EXPENSE",null,null,{"$f":"SUM(F21:F25)","v":292153595},{"$f":"SUM(G21:G25)","v":209835892},{"$f":"SUM(H21:H25)","v":30549078},{"$f":"SUM(I21:I25)","v":51768440},{"$f":"SUM(J21:J25)","v":292153410},185]
[17]
[18,"RETURN ON RATE BASE",null,null,null,{"$f":"F433","v":63514771},{"$f":"G433","v":37212475},{"$f":"H433","v":2821326},{"$f":"I433","v":23480970},{"$f":"SUM(G28:I28)","v":63514771},{"$f":"F28-J28","v":0}]
[19,"TOTAL OTHER OPERATING REVENUES",null,null,null,{"$f":"-F750","v":-1695053},{"$f":"-G750","v":0},{"$f":"-H750","v":-169516},{"$f":"-I750","v":-1525537},{"$f":"SUM(G29:I29)","v":-1695053},0]
[20,null,"TOTAL ELECTRIC COST OF SERVICE",null,null,{"$f":"SUM(F26:F29)","v":353973313},{"$f":"SUM(G26:G29)","v":247048367},{"$f":"SUM(H26:H29)","v":33200888},{"$f":"SUM(I26:I29)","v":73723873},{"$f":"SUM(J26:J29)","v":353973128},185]
[21,"ADJUSTMENT FOR INTERCLASS SUBSIDIZATION",null,{"$f":"1-'WP FR-16(7)(v) Rate Incr'!I11","v":0.95},null,{"$f":"SUM(G31:I31)","v":0},{"$f":"'WP FR-16(7)(v) Rate Incr'!Q27","v":0},{"$f":"'WP FR-16(7)(v) Rate Incr'!R27","v":0},{"$f":"'WP FR-16(7)(v) Rate Incr'!S27","v":0},{"$f":"SUM(G31:I31)","v":0},0]
[22,"REQUESTED REVENUES (COST OF SERVICE ADJUSTED FOR SUBSIDIES)",null,null,null,{"$f":"F31+F30","v":353973313},{"$f":"G31+G30","v":247048367},{"$f":"H31+H30","v":33200888},{"$f":"I31+I30","v":73723873},{"$f":"SUM(G32:I32)","v":353973128},185]
[23,"PROPOSED REVENUES",null,null,null,{"$f":"F868","v":355094168},{"$f":"G868","v":229117410},{"$f":"H868","v":16511879},{"$f":"I868","v":109464879},{"$f":"J868","v":355094168},0]
[24,"DIFFERENCE (REQUESTED LESS PROPOSED)",null,null,null,{"$f":"F32-F33","v":-1120855},17930957,16689009,-35741006,-1121040,185]
[25]
[26,"TOTAL RETURN EARNED",null,null,null,{"$f":"F777+F28","v":64356252},{"$f":"G777+G28","v":23750876},{"$f":"H777+H28","v":-9707928},{"$f":"I777+I28","v":50313489},{"$f":"J777+J28","v":64356437},{"$f":"F36-J36","v":-185}]
[27,"RATE OF RETURN EARNED",null,null,null,{"$f":"IF(F431=0,0,ROUND(F36/F431,5))","v":6.8000000000000005E-2},{"$f":"IF(G431=0,0,ROUND(G36/G431,5))","v":4.283E-2},-0.23091999999999999,0.14380000000000001,6.8000000000000005E-2,0]
[28,"TOTAL RATE OF RETURN ALLOWABLE",null,null,null,{"$f":"$F$811","v":6.7110000000000003E-2},{"$f":"F811","v":6.7110000000000003E-2},{"$f":"F811","v":6.7110000000000003E-2},{"$f":"F811","v":6.7110000000000003E-2},{"$f":"F811","v":6.7110000000000003E-2},{"$f":"F811","v":6.7110000000000003E-2},null,null,"Not Part of print range"]
[29,"RETURN EARNED ON COMMON EQUITY",null,null,null,{"$f":"IF(Equity=0,0,(F37-$F$806-$F$807-$F$809)*TotalCap/Equity)","v":9.9845832793106853E-2},{"$f":"IF(Equity=0,0,(G37-$F$806-$F$807-$F$809)*TotalCap/Equity)","v":4.7663116609500143E-2},{"$f":"IF(Equity=0,0,(H37-F806-F807-F809)*TotalCap/Equity)","v":-0.51987834367108543},{"$f":"IF(Equity=0,0,(I37-F806-F807-F809)*TotalCap/Equity)","v":0.25699521247993207},{"$f":"IF(Equity=0,0,(J37-F806-F807-F809)*TotalCap/Equity)","v":9.9845832793106853E-2},{"$f":"IF(Equity=0,0,(K37-F806-F807-F809)*TotalCap/Equity)","v":-4.1132502545997512E-2},null,null,"Not Filed"]
[30,"ALLOWED RETURN ON COMMON EQUITY",null,null,null,{"$f":"IF(Equity=0,0,(F38-$F$806-$F$807-$F$809)*TotalCap/Equity)","v":9.8000675168815637E-2},{"$f":"IF(Equity=0,0,(G38-F806-F807-F809)*TotalCap/Equity)","v":9.8000675168815637E-2},{"$f":"IF(Equity=0,0,(H38-F806-F807-F809)*TotalCap/Equity)","v":9.8000675168815637E-2},{"$f":"IF(Equity=0,0,(I38-F806-F807-F809)*TotalCap/Equity)","v":9.8000675168815637E-2},{"$f":"IF(Equity=0,0,(J38-F806-F807-F809)*TotalCap/Equity)","v":9.8000675168815637E-2},{"$f":"IF(Equity=0,0,(K38-F806-F807-F809)*TotalCap/Equity)","v":9.8000675168815637E-2}]
[31,null,null,null,null," "]
[32,"PRESENT REVENUES",null,null,null,{"$f":"F867","v":309580654},{"$f":"G867","v":216065589},{"$f":"H867","v":29037083},{"$f":"I867","v":64477982},{"$f":"J867","v":309580654},{"$f":"F42-J42","v":0}]
[33,"REVENUE INCREASE JUSTIFIED",null,null,null,{"$f":"F30-F42","v":44392659},{"$f":"G30-G42","v":30982778},4163805,9245891,44392474,185]
[34,null,"PER UNIT PRES REV",null,null,{"$f":"IF(F42=0,0,ROUND(F43/F42,5))","v":0.1434},{"$f":"IF(G42=0,0,ROUND(G43/G42,5))","v":0.1434},{"$f":"IF(H42=0,0,ROUND(H43/H42,5))","v":0.1434},{"$f":"IF(I42=0,0,ROUND(I43/I42,5))","v":0.1434},0.1434,0]
[35,"REVENUE INCREASE REQUESTED",null,null,null,{"$f":"F33-F42","v":45513514},13051821,-12525204,44986897,45513514,0]
[36,null,"PER UNIT PRES REV",null,null,{"$f":"IF(F42=0,0,ROUND(F45/F42,5))","v":0.14702000000000001},{"$f":"IF(G42=0,0,ROUND(G45/G42,5))","v":6.0409999999999998E-2},{"$f":"IF(H42=0,0,ROUND(H45/H42,5))","v":-0.43135000000000001},{"$f":"IF(I42=0,0,ROUND(I45/I42,5))","v":0.69771000000000005},0.14702000000000001,0]
[]
[{"$f":"co_name","v":"DUKE ENERGY KENTUCKY, INC."},null,null,null,null,null,null,null,null,{"$f":"J1","v":"FR-16(7)(v)-1"}]
[{"$f":"$A$2","v":"FUNCTIONAL ELECTRIC COST OF SERVICE"},null,null,null,null,null,null,null,null,{"$f":"J2","v":"WITNESS RESPONSIBLE:"}]
[{"$f":"case_name","v":"CASE NO: 2019-00271"},null,null,null,null,null,null,null,null,{"$f":"Witness","v":"JAMES E. ZIOLKOWSKI"}]
[{"$f":"data_filing","v":"DATA: 12 MONTHS ACTUAL  & 0 MONTHS ESTIMATED"},null,null,null,null,null,null,null,null,{"$f":"\"PAGE \"&Pages-16&\" OF \"&Pages","v":"PAGE 2 OF 18"}]
[{"$f":"type","v":"TYPE OF FILING: \"X\" ORIGINAL   UPDATED    REVISED  "}]
[]
[]
["LINE",null,null,null,null,"TOTAL","FUNCTIONAL",null,null,"TOTAL","ALL"]
["NO.","GROSS ELECTRIC PLANT IN SERVICE",null,"ALLO",null,{"$f":"$F$9","v":"ELECTRIC"},{"$f":"G9","v":"PRODUCTION"},"TRANSMISSION","DISTRIBUTION","AT ISSUE","OTHER"]
[null,null,"Schedule 2",null,null,null,3,4,5,null," "]
[1,"PRODUCTION PLANT"]
[2,null,"PRODUCTION STEAM","K201",null,{"$f":"'[3]SCH B-2.1'!$I$294","v":835340554},{"$f":"F59-SUM(H59:I59)","v":835340554},{"$f":"ROUND(F59*VLOOKUP(D59,ALLOCTABLE_FUNCTIONAL,$H$10,FALSE),0)","v":0},{"$f":"ROUND(F59*VLOOKUP(D59,ALLOCTABLE_FUNCTIONAL,$I$10,FALSE),0)","v":0},{"$f":"SUM(G59:I59)","v":835340554},{"$f":"F59-J59","v":0}]
[3,null,"PRODUCTION OTHER","K201",null,{"$f":"'[3]SCH B-2.1'!$I$335","v":373451984},{"$f":"F60-SUM(H60:I60)","v":373451984},{"$f":"ROUND(F60*VLOOKUP(D60,ALLOCTABLE_FUNCTIONAL,$H$10,FALSE),0)","v":0},{"$f":"ROUND(F60*VLOOKUP(D60,ALLOCTABLE_FUNCTIONAL,$I$10,FALSE),0)","v":0},{"$f":"SUM(G60:I60)","v":373451984},{"$f":"F60-J60","v":0}]
[4,null,"ADJUSTMENT","K201",null,0,{"$f":"F61-SUM(H61:I61)","v":0},{"$f":"ROUND(F61*VLOOKUP(D61,ALLOCTABLE_FUNCTIONAL,$H$10,FALSE),0)","v":0},{"$f":"ROUND(F61*VLOOKUP(D61,ALLOCTABLE_FUNCTIONAL,$I$10,FALSE),0)","v":0},{"$f":"SUM(G61:I61)","v":0},{"$f":"F61-J61","v":0}]
[5,null,"  PRODUCTION PLANT IN SERVICE",null,null,{"$f":"SUM(F59:F61)","v":1208792538},1208792538,0,0,1208792538,0]
[6]
[7,"TRANSMISSION PLANT"]
[8,null,"MAIN STEP-UP TRANSFORMERS","K202",null,0,{"$f":"F65-SUM(H65:I65)","v":0},{"$f":"ROUND(F65*VLOOKUP(D65,ALLOCTABLE_FUNCTIONAL,$H$10,FALSE),0)","v":0},{"$f":"ROUND(F65*VLOOKUP(D65,ALLOCTABLE_FUNCTIONAL,$I$10,FALSE),0)","v":0},{"$f":"SUM(G65:I65)","v":0},{"$f":"F65-J65","v":0}]
[9,null,"OTHER TRANSMISSION","K202",null,{"$f":"'[3]SCH B-2.1'!$I$374","v":72371702},{"$f":"F66-SUM(H66:I66)","v":0},{"$f":"ROUND(F66*VLOOKUP(D66,ALLOCTABLE_FUNCTIONAL,$H$10,FALSE),0)","v":72371702},{"$f":"ROUND(F66*VLOOKUP(D66,ALLOCTABLE_FUNCTIONAL,$I$10,FALSE),0)","v":0},{"$f":"SUM(G66:I66)","v":72371702},{"$f":"F66-J66","v":0}]
[10,null,"ADJUSTMENT","K202",null,0,{"$f":"F67-SUM(H67:I67)","v":0},{"$f":"ROUND(F67*VLOOKUP(D67,ALLOCTABLE_FUNCTIONAL,$H$10,FALSE),0)","v":0},{"$f":"ROUND(F67*VLOOKUP(D67,ALLOCTABLE_FUNCTIONAL,$I$10,FALSE),0)","v":0},{"$f":"SUM(G67:I67)","v":0},{"$f":"F67-J67","v":0}]
[11,null,"  TRANSMISSION PLANT IN SERVICE",null,null,{"$f":"SUM(F65:F67)","v":72371702},0,72371702,0,72371702,0]
[12]
[13,"TOTAL PROD & TRANS PLANT",null,null,null,{"$f":"F68+F62","v":1281164240},1208792538,72371702,0,1281164240,0]
[14]
[15,"DISTRIBUTION PLANT"]
[16,null,"SUBSTATIONS","K215",null,{"$f":"'[3]SCH B-2.1'!$I$399+'[3]SCH B-2.1'!$I$400+'[3]SCH B-2.1'!$I$401+'[3]SCH B-2.1'!$I$402+'[3]SCH B-2.1'!$I$403+'[3]SCH B-2.1'!$I$404+4","v":90976376},{"$f":"F73-SUM(H73:I73)","v":0},{"$f":"ROUND(F73*VLOOKUP(D73,ALLOCTABLE_FUNCTIONAL,$H$10,FALSE),0)","v":0},{"$f":"ROUND(F73*VLOOKUP(D73,ALLOCTABLE_FUNCTIONAL,$I$10,FALSE),0)","v":90976376},{"$f":"SUM(G73:I73)","v":90976376},{"$f":"F73-J73","v":0}]
[17,null,"POLES, TOWERS  & FIXTURES - PRIMARY - DEMAND","K205",null,{"$f":"'WP FR-16(7)(v) MinSizPrimPole1'!F16","v":33009975},{"$f":"F74-SUM(H74:I74)","v":0},{"$f":"ROUND(F74*VLOOKUP(D74,ALLOCTABLE_FUNCTIONAL,$H$10,FALSE),0)","v":0},{"$f":"ROUND(F74*VLOOKUP(D74,ALLOCTABLE_FUNCTIONAL,$I$10,FALSE),0)","v":33009975},{"$f":"SUM(G74:I74)","v":33009975},{"$f":"F74-J74","v":0}]
[18,null,"POLES, TOWERS  & FIXTURES - PRIMARY - CUSTOMER","K405",null,{"$f":"'WP FR-16(7)(v) MinSizPrimPole1'!G16","v":15106661},{"$f":"F75-SUM(H75:I75)","v":0},{"$f":"ROUND(F75*VLOOKUP(D75,ALLOCTABLE_FUNCTIONAL,$H$10,FALSE),0)","v":0},{"$f":"ROUND(F75*VLOOKUP(D75,ALLOCTABLE_FUNCTIONAL,$I$10,FALSE),0)","v":15106661},{"$f":"SUM(G75:I75)","v":15106661},{"$f":"F75-J75","v":0}]
[19,null,"POLES, TOWERS  & FIXTURES - SECONDARY - DEMAND","K206",null,{"$f":"'WP FR-16(7)(v) MinSizSecPole1'!F16","v":12624115},0,0,12624115,12624115,0]
[20,null,"POLES, TOWERS  & FIXTURES - SECONDARY - CUSTOMER","K405",null,{"$f":"'WP FR-16(7)(v) MinSizSecPole1'!G16","v":3414764},0,0,3414764,3414764,0]
[21,null,"CONDUCTORS - OVERHEAD / PRIMARY - DEMAND","K205",null,{"$f":"'WP FR-16(7)(v) MinSizOHPRIM1'!F16","v":75222822},0,0,75222822,75222822,0]
[22,null,"CONDUCTORS - OVERHEAD / PRIMARY - CUSTOMER","K405",null,{"$f":"'WP FR-16(7)(v) MinSizOHPRIM1'!G16","v":16426781},0,0,16426781,16426781,0]
[23,null,"CONDUCTORS - OVERHEAD / SECONDARY - DEMAND","K206",null,{"$f":"'WP FR-16(7)(v) MinSizOHSEC1'!F16","v":30629852},0,0,30629852,30629852,0]
[24,null,"CONDUCTORS - OVERHEAD / SECONDARY - CUSTOMER","K405",null,{"$f":"'WP FR-16(7)(v) MinSizOHSEC1'!G16","v":6804493},0,0,6804493,6804493,0]
[25,null,"CONDUCTORS - UNDERGROUND / PRIMARY - DEMAND","K205",null,{"$f":"'WP FR-16(7)(v) MinSizUGPRIM1'!F16","v":56141307},0,0,56141307,56141307,0]
[26,null,"CONDUCTORS - UNDERGROUND / PRIMARY - CUSTOMER","K405",null,{"$f":"'WP FR-16(7)(v) MinSizUGPRIM1'!G16","v":17434066},0,0,17434066,17434066,0]
[27,null,"CONDUCTORS - UNDERGROUND / SECONDARY - DEMAND","K206",null,{"$f":"'WP FR-16(7)(v) MinSizUGSEC1'!F16","v":9617808},0,0,9617808,9617808,0]
[28,null,"CONDUCTORS - UNDERGROUND / SECONDARY - CUSTOMER","K405",null,{"$f":"'WP FR-16(7)(v) MinSizUGSEC1'!G16","v":5451847},0,0,5451847,5451847,0]
[29,null,"TRANSFORMERS DEMAND RELATED","K215",null,{"$f":"'WP FR-16(7)(v) Min Siz Trans 1'!F17","v":47116092},{"$f":"F86-SUM(H86:I86)","v":0},{"$f":"ROUND(F86*VLOOKUP(D86,ALLOCTABLE_FUNCTIONAL,$H$10,FALSE),0)","v":0},{"$f":"ROUND(F86*VLOOKUP(D86,ALLOCTABLE_FUNCTIONAL,$I$10,FALSE),0)","v":47116092},{"$f":"SUM(G86:I86)","v":47116092},{"$f":"F86-J86","v":0}]
[30,null,"TRANSFORMERS CUSTOMER RELATED","K405",null,{"$f":"'WP FR-16(7)(v) Min Siz Trans 1'!G17","v":15311023},0,0,15311023,15311023,0]
[31,null,"SERVICES","K217",null,{"$f":"'[3]SCH B-2.1'!$I$412+'[3]SCH B-2.1'!$I$413","v":21226508},0,0,21226508,21226508,0]
[32,null,"METERS","K407",null,{"$f":"'[3]SCH B-2.1'!$I$414+'[3]SCH B-2.1'!$I$415","v":22573919},0,5192,22568727,22573919,0]
[33,null,"STREET LIGHTS","K401",null,{"$f":"'[3]SCH B-2.1'!$I$416+'[3]SCH B-2.1'!$I$417+'[3]SCH B-2.1'!$I$418+'[3]SCH B-2.1'!$I$419+'[3]SCH B-2.1'!$I$420+'[3]SCH B-2.1'!$I$421","v":5595857},0,0,5595857,{"$f":"SUM(G90:I90)","v":5595857},0]
[34,null,"ADJUSTMENT  ","K209",null,0,0,0,0,0,0]
[35,null,"CONSTRUCTION NOT CLASSIFIED","K209",null,{"$f":"'[3]SCH B-2.1'!$I$422","v":94687831},0,947,94686884,94687831,0]
[36,null,"RWIP","K215",null,0,{"$f":"F93-SUM(H93:I93)","v":0},{"$f":"ROUND(F93*VLOOKUP(D93,ALLOCTABLE_FUNCTIONAL,$H$10,FALSE),0)","v":0},{"$f":"ROUND(F93*VLOOKUP(D93,ALLOCTABLE_FUNCTIONAL,$I$10,FALSE),0)","v":0},{"$f":"SUM(G93:I93)","v":0},{"$f":"F93-J93","v":0}]
[37,null,"  DISTRIBUTION PLANT IN SERVICE",null,null,{"$f":"SUM(F73:F93)","v":579372097},{"$f":"SUM(G73:G92)","v":0},6139,579365958,579372097,0]
[38]
[39,"TOTAL TRANS & DIST PLANT",null,null,null,{"$f":"F94+F68","v":651743799},0,72377841,579365958,651743799,0]
[40,"TOTAL GROSS PTD PLANT",null,null,null,{"$f":"F94+F70","v":1860536337},1208792538,72377841,579365958,1860536337,0]
[41]
[42,"GENERAL & INTANGIBLE PLANT"]
[43,null,"PRODUCTION - DEMAND","K201",null,{"$f":"'WP FR-16(7)(v) A&G WP'!D12","v":16704047},{"$f":"F100-SUM(H100:I100)","v":16704047},{"$f":"ROUND(F100*VLOOKUP(D100,ALLOCTABLE_FUNCTIONAL,$H$10,FALSE),0)","v":0},{"$f":"ROUND(F100*VLOOKUP(D100,ALLOCTABLE_FUNCTIONAL,$I$10,FALSE),0)","v":0},{"$f":"SUM(G100:I100)","v":16704047},{"$f":"F100-J100","v":0}]
[44,null,"PRODUCTION - ENERGY","K301",null,{"$f":"'WP FR-16(7)(v) A&G WP'!D13","v":19517654},19517654,0,0,19517654,0]
[45,null,"TRANSMISSION","K202",null,{"$f":"'WP FR-16(7)(v) A&G WP'!D14","v":2639608},0,2639608,0,2639608,0]
[46,null,"DISTRIBUTION - DEMAND","K201",null,{"$f":"ROUND('WP FR-16(7)(v) A&G WP'!D15*NPdemand,0)","v":8865387},8865387,0,0,8865387,0]
[47,null,"DISTRIBUTION - CUSTOMER","K405",null,{"$f":"ROUND('WP FR-16(7)(v) A&G WP'!D15-F103,0)","v":1946061},{"$f":"F104-SUM(H104:I104)","v":0},{"$f":"ROUND(F104*VLOOKUP(D104,ALLOCTABLE_FUNCTIONAL,$H$10,FALSE),0)","v":0},{"$f":"ROUND(F104*VLOOKUP(D104,ALLOCTABLE_FUNCTIONAL,$I$10,FALSE),0)","v":1946061},{"$f":"SUM(G104:I104)","v":1946061},{"$f":"F104-J104","v":0}]
[48,null,"CUSTOMER ACCOUNTING","A308",null,{"$f":"'WP FR-16(7)(v) A&G WP'!D16","v":6615123},{"$f":"F105-SUM(H105:I105)","v":0},-2117,6617240,{"$f":"SUM(G105:I105)","v":6615123},{"$f":"F105-J105","v":0}]
[49,null,"CUSTOMER SERVICE & INFORMATION","A310",null,{"$f":"'WP FR-16(7)(v) A&G WP'!D17","v":432753},0,0,432753,432753,0]
[50,null,"SALES","A312",null,{"$f":"'WP FR-16(7)(v) A&G WP'!D18","v":0},{"$f":"F107-SUM(H107:I107)","v":0},0,0,{"$f":"SUM(G107:I107)","v":0},{"$f":"F107-J107","v":0}]
[51,null,"ADJUSTMENT","A315",null,0,0,0,0,0,0]
[52,null,"  GEN & INTANG PLANT IN SERVICE",null,null,{"$f":"SUM(F100:F108)","v":56720633},45087088,2637491,8996054,56720633,0]
[53]
[54,"COMMON & OTHER PLANT"]
[55,null,"PRODUCTION - DEMAND","K201",null,{"$f":"'WP FR-16(7)(v) A&G WP'!F12","v":9454192},{"$f":"F112-SUM(H112:I112)","v":9454192},{"$f":"ROUND(F112*VLOOKUP(D112,ALLOCTABLE_FUNCTIONAL,$H$10,FALSE),0)","v":0},{"$f":"ROUND(F112*VLOOKUP(D112,ALLOCTABLE_FUNCTIONAL,$I$10,FALSE),0)","v":0},{"$f":"SUM(G112:I112)","v":9454192},{"$f":"F112-J112","v":0}]
[56,null,"PRODUCTION - ENERGY","K301",null,{"$f":"'WP FR-16(7)(v) A&G WP'!F13","v":11046644},11046644,0,0,11046644,0]
[57,null,"TRANSMISSION","K202",null,{"$f":"'WP FR-16(7)(v) A&G WP'!F14","v":1493971},{"$f":"F114-SUM(H114:I114)","v":0},1493971,0,{"$f":"SUM(G114:I114)","v":1493971},{"$f":"F114-J114","v":0}]
[58,null,"DISTRIBUTION - DEMAND","K201",null,{"$f":"ROUND('WP FR-16(7)(v) A&G WP'!F15*NPdemand,0)","v":5017651},5017651,0,0,5017651,0]
[59,null,"DISTRIBUTION - CUSTOMER","K405",null,{"$f":"ROUND('WP FR-16(7)(v) A&G WP'!F15-F115,0)","v":1101435},{"$f":"F116-SUM(H116:I116)","v":0},{"$f":"ROUND(F116*VLOOKUP(D116,ALLOCTABLE_FUNCTIONAL,$H$10,FALSE),0)","v":0},{"$f":"ROUND(F116*VLOOKUP(D116,ALLOCTABLE_FUNCTIONAL,$I$10,FALSE),0)","v":1101435},{"$f":"SUM(G116:I116)","v":1101435},{"$f":"F116-J116","v":0}]
[60,null,"CUSTOMER ACCOUNTING","A308",null,{"$f":"'WP FR-16(7)(v) A&G WP'!F16","v":3744042},0,-1198,3745240,3744042,0]
[61,null,"CUSTOMER SERVICE & INFORMATION","A310",null,{"$f":"'WP FR-16(7)(v) A&G WP'!F17","v":244930},0,0,244930,244930,0]
[62,null,"SALES","A312",null,{"$f":"'WP FR-16(7)(v) A&G WP'!F18","v":0},{"$f":"F119-SUM(H119:I119)","v":0},0,0,{"$f":"SUM(G119:I119)","v":0},{"$f":"F119-J119","v":0}]
[63,null,"ADJUSTMENT","A315",null,0,0,0,0,0,0]
[64,null,"  COMMON & OTHER PLANT IN SERVICE",null,null,{"$f":"SUM(F112:F120)","v":32102865},25518487,1492773,5091605,32102865,0]
[65]
[66,"GROSS ELECTRIC PLANT IN SERVICE",null,null,null,{"$f":"F97+F109+F121","v":1949359835},1279398113,76508105,593453617,1949359835,0,null,{"$f":"ROUND(G123/F123,4)","v":0.65629999999999999},{"$f":"ROUND(H123/F123,4)","v":3.9199999999999999E-2},{"$f":"ROUND(I123/F123,4)","v":0.3044}]
[]
[{"$f":"co_name","v":"DUKE ENERGY KENTUCKY, INC."},null,null,null,null,null,null,null,null,{"$f":"J1","v":"FR-16(7)(v)-1"}]
[{"$f":"$A$2","v":"FUNCTIONAL ELECTRIC COST OF SERVICE"},null,null,null,null,null,null,null,null,{"$f":"J2","v":"WITNESS RESPONSIBLE:"}]
[{"$f":"case_name","v":"CASE NO: 2019-00271"},null,null,null,null,null,null,null,null,{"$f":"Witness","v":"JAMES E. ZIOLKOWSKI"}]
[{"$f":"data_filing","v":"DATA: 12 MONTHS ACTUAL  & 0 MONTHS ESTIMATED"},null,null,null,null,null,null,null,null,{"$f":"\"PAGE \"&Pages-15&\" OF \"&Pages","v":"PAGE 3 OF 18"}]
[{"$f":"type","v":"TYPE OF FILING: \"X\" ORIGINAL   UPDATED    REVISED  "}]
[]
[]
["LINE",null,null,null,null,"TOTAL","FUNCTIONAL",null,null,"TOTAL","ALL"]
["NO.","DEPRECIATION RESERVE",null,"ALLO",null,{"$f":"$F$9","v":"ELECTRIC"},{"$f":"G9","v":"PRODUCTION"},"TRANSMISSION","DISTRIBUTION","AT ISSUE","OTHER"]
[null,null,"Schedule 3",null,null,null,3,4,5]
[1,"PRODUCTION PLANT"]
[2,null,"PRODUCTION STEAM","K201",null,{"$f":"'[3]SCH B-3'!$K$315","v":401160304},{"$f":"F136-SUM(H136:I136)","v":401160304},{"$f":"ROUND(F136*VLOOKUP(D136,ALLOCTABLE_FUNCTIONAL,$H$10,FALSE),0)","v":0},{"$f":"ROUND(F136*VLOOKUP(D136,ALLOCTABLE_FUNCTIONAL,$I$10,FALSE),0)","v":0},{"$f":"SUM(G136:I136)","v":401160304},{"$f":"F136-J136","v":0}]
[3,null,"PRODUCTION OTHER","K201",null,{"$f":"'[3]SCH B-3'!$K$358","v":184221788},{"$f":"F137-SUM(H137:I137)","v":184221788},{"$f":"ROUND(F137*VLOOKUP(D137,ALLOCTABLE_FUNCTIONAL,$H$10,FALSE),0)","v":0},{"$f":"ROUND(F137*VLOOKUP(D137,ALLOCTABLE_FUNCTIONAL,$I$10,FALSE),0)","v":0},{"$f":"SUM(G137:I137)","v":184221788},{"$f":"F137-J137","v":0}]
[4,null,"ADJUSTMENT","K201",null,{"$f":"[3]SCH_D2.24!$V$52","v":1553366},{"$f":"F138-SUM(H138:I138)","v":1553366},{"$f":"ROUND(F138*VLOOKUP(D138,ALLOCTABLE_FUNCTIONAL,$H$10,FALSE),0)","v":0},{"$f":"ROUND(F138*VLOOKUP(D138,ALLOCTABLE_FUNCTIONAL,$I$10,FALSE),0)","v":0},{"$f":"SUM(G138:I138)","v":1553366},{"$f":"F138-J138","v":0}]
[5,null,"  TOTAL PROD DEPREC RESERVE",null,null,{"$f":"SUM(F136:F138)","v":586935458},586935458,0,0,586935458,0]
[6]
[7,"TRANSMISSION PLANT"]
[8,null,"MAIN STEP-UP TRANSFORMERS","K202",null,0,{"$f":"F142-SUM(H142:I142)","v":0},{"$f":"ROUND(F142*VLOOKUP(D142,ALLOCTABLE_FUNCTIONAL,$H$10,FALSE),0)","v":0},{"$f":"ROUND(F142*VLOOKUP(D142,ALLOCTABLE_FUNCTIONAL,$I$10,FALSE),0)","v":0},{"$f":"SUM(G142:I142)","v":0},{"$f":"F142-J142","v":0}]
[9,null,"OTHER TRANSMISSION","K202",null,{"$f":"'[3]SCH B-3'!$K$398","v":19959025},{"$f":"F143-SUM(H143:I143)","v":0},{"$f":"ROUND(F143*VLOOKUP(D143,ALLOCTABLE_FUNCTIONAL,$H$10,FALSE),0)","v":19959025},{"$f":"ROUND(F143*VLOOKUP(D143,ALLOCTABLE_FUNCTIONAL,$I$10,FALSE),0)","v":0},{"$f":"SUM(G143:I143)","v":19959025},{"$f":"F143-J143","v":0}]
[10,null,"ADJUSTMENT","K202",null,{"$f":"[3]SCH_D2.24!$W$52","v":-70176},{"$f":"F144-SUM(H144:I144)","v":0},{"$f":"ROUND(F144*VLOOKUP(D144,ALLOCTABLE_FUNCTIONAL,$H$10,FALSE),0)","v":-70176},{"$f":"ROUND(F144*VLOOKUP(D144,ALLOCTABLE_FUNCTIONAL,$I$10,FALSE),0)","v":0},{"$f":"SUM(G144:I144)","v":-70176},{"$f":"F144-J144","v":0}]
[11,null,"  TOTAL TRANS DEPREC RESERVE",null,null,{"$f":"SUM(F142:F144)","v":19888849},0,19888849,0,19888849,0]
[12]
[13,null,"TOTAL PROD & TRANS DEPREC RESERVE",null,null,{"$f":"F145+F139","v":606824307},{"$f":"G145+G139","v":586935458},{"$f":"H145+H139","v":19888849},{"$f":"I145+I139","v":0},{"$f":"J145+J139","v":606824307},{"$f":"F147-J147","v":0}]
[14]
[15,"DISTRIBUTION PLANT"]
[16,null,"SUBSTATIONS","K215",null,{"$f":"'[3]SCH B-3'!$K$424+'[3]SCH B-3'!$K$425+'[3]SCH B-3'!$K$426+'[3]SCH B-3'!$K$427+'[3]SCH B-3'!$K$428+'[3]SCH B-3'!$K$429","v":18483835},{"$f":"F150-SUM(H150:I150)","v":0},{"$f":"ROUND(F150*VLOOKUP(D150,ALLOCTABLE_FUNCTIONAL,$H$10,FALSE),0)","v":0},{"$f":"ROUND(F150*VLOOKUP(D150,ALLOCTABLE_FUNCTIONAL,$I$10,FALSE),0)","v":18483835},{"$f":"SUM(G150:I150)","v":18483835},{"$f":"F150-J150","v":0}]
[17,null,"POLES, TOWERS  & FIXTURES - PRIMARY - DEMAND","K205",null,{"$f":"'WP FR-16(7)(v) MinSizPrimPole1'!F22","v":15103464},{"$f":"F151-SUM(H151:I151)","v":0},{"$f":"ROUND(F151*VLOOKUP(D151,ALLOCTABLE_FUNCTIONAL,$H$10,FALSE),0)","v":0},{"$f":"ROUND(F151*VLOOKUP(D151,ALLOCTABLE_FUNCTIONAL,$I$10,FALSE),0)","v":15103464},{"$f":"SUM(G151:I151)","v":15103464},{"$f":"F151-J151","v":0}]
[18,null,"POLES, TOWERS  & FIXTURES - PRIMARY - CUSTOMER","K405",null,{"$f":"'WP FR-16(7)(v) MinSizPrimPole1'!G22","v":6911939},{"$f":"F152-SUM(H152:I152)","v":0},{"$f":"ROUND(F152*VLOOKUP(D152,ALLOCTABLE_FUNCTIONAL,$H$10,FALSE),0)","v":0},{"$f":"ROUND(F152*VLOOKUP(D152,ALLOCTABLE_FUNCTIONAL,$I$10,FALSE),0)","v":6911939},{"$f":"SUM(G152:I152)","v":6911939},{"$f":"F152-J152","v":0}]
[19,null,"POLES, TOWERS  & FIXTURES - SECONDARY - DEMAND","K206",null,{"$f":"'WP FR-16(7)(v) MinSizSecPole1'!F22","v":5776068},0,0,5776068,5776068,0]
[20,null,"POLES, TOWERS  & FIXTURES - SECONDARY - CUSTOMER","K405",null,{"$f":"'WP FR-16(7)(v) MinSizSecPole1'!G22","v":1562400},0,0,1562400,1562400,0]
[21,null,"CONDUCTORS - OVERHEAD / PRIMARY - DEMAND","K205",null,{"$f":"'WP FR-16(7)(v) MinSizOHPRIM1'!F22","v":22430547},0,0,22430547,22430547,0]
[22,null,"CONDUCTORS - OVERHEAD / PRIMARY - CUSTOMER","K405",null,{"$f":"'WP FR-16(7)(v) MinSizOHPRIM1'!G22","v":4898270},0,0,4898270,4898270,0]
[23,null,"CONDUCTORS - OVERHEAD / SECONDARY - DEMAND","K206",null,{"$f":"'WP FR-16(7)(v) MinSizOHSEC1'!F22","v":9133457},0,0,9133457,9133457,0]
[24,null,"CONDUCTORS - OVERHEAD / SECONDARY - CUSTOMER","K405",null,{"$f":"'WP FR-16(7)(v) MinSizOHSEC1'!G22","v":2029018},0,0,2029018,2029018,0]
[25,null,"CONDUCTORS - UNDERGROUND / PRIMARY - DEMAND","K205",null,{"$f":"'WP FR-16(7)(v) MinSizUGPRIM1'!F22","v":16606325},0,0,16606325,16606325,0]
[26,null,"CONDUCTORS - UNDERGROUND / PRIMARY - CUSTOMER","K405",null,{"$f":"'WP FR-16(7)(v) MinSizUGPRIM1'!G22","v":5156912},0,0,5156912,5156912,0]
[27,null,"CONDUCTORS - UNDERGROUND / SECONDARY - DEMAND","K206",null,{"$f":"'WP FR-16(7)(v) MinSizUGSEC1'!F22","v":2844900},0,0,2844900,2844900,0]
[28,null,"CONDUCTORS - UNDERGROUND / SECONDARY - CUSTOMER","K405",null,{"$f":"'WP FR-16(7)(v) MinSizUGSEC1'!G22","v":1612630},0,0,1612630,1612630,0]
[29,null,"TRANSFORMERS DEMAND RELATED","K215",null,{"$f":"'WP FR-16(7)(v) Min Siz Trans 1'!F23","v":20506142},{"$f":"F163-SUM(H163:I163)","v":0},{"$f":"ROUND(F163*VLOOKUP(D163,ALLOCTABLE_FUNCTIONAL,$H$10,FALSE),0)","v":0},{"$f":"ROUND(F163*VLOOKUP(D163,ALLOCTABLE_FUNCTIONAL,$I$10,FALSE),0)","v":20506142},{"$f":"SUM(G163:I163)","v":20506142},{"$f":"F163-J163","v":0}]
[30,null,"TRANSFORMERS CUSTOMER RELATED","K405",null,{"$f":"'WP FR-16(7)(v) Min Siz Trans 1'!G23","v":6663753},0,0,6663753,6663753,0]
[31,null,"SERVICES","K217",null,{"$f":"'[3]SCH B-3'!$K$437+'[3]SCH B-3'!$K$438","v":11659391},0,0,11659391,11659391,0]
[32,null,"METERS","K407",null,{"$f":"'[3]SCH B-3'!$K$439+'[3]SCH B-3'!$K$440","v":4965805},0,1142,4964663,4965805,0]
[33,null,"STREET LIGHTS","K401",null,{"$f":"'[3]SCH B-3'!$K$441+'[3]SCH B-3'!$K$442+'[3]SCH B-3'!$K$443+'[3]SCH B-3'!$K$444+'[3]SCH B-3'!$K$445+'[3]SCH B-3'!$K$446","v":4073494},0,0,4073494,4073494,0]
[34,null,"ADJUSTMENT  ","K209",null,{"$f":"[3]SCH_D2.24!$X$52","v":467132},0,5,467127,467132,0]
[35,null,"CONSTRUCTION NOT CLASSIFIED","K209",null,{"$f":"'[3]SCH B-3'!$K$447","v":1525727},0,15,1525712,1525727,0]
[36,null,"RWIP","K215",null,{"$f":"'[3]SCH B-3'!$K$448","v":-17119217},{"$f":"F170-SUM(H170:I170)","v":0},{"$f":"ROUND(F170*VLOOKUP(D170,ALLOCTABLE_FUNCTIONAL,$H$10,FALSE),0)","v":0},{"$f":"ROUND(F170*VLOOKUP(D170,ALLOCTABLE_FUNCTIONAL,$I$10,FALSE),0)","v":-17119217},{"$f":"SUM(G170:I170)","v":-17119217},{"$f":"F170-J170","v":0}]
[37,null,"  TOTAL DIST DEPREC RESERVE",null,null,{"$f":"SUM(F149:F170)","v":145291992},{"$f":"SUM(G149:G169)","v":0},{"$f":"SUM(H149:H170)","v":1162},{"$f":"SUM(I149:I170)","v":145290830},{"$f":"SUM(J149:J170)","v":145291992},{"$f":"SUM(K149:K169)","v":0}]
[38]
[39,null,"TOTAL TRANS & DIST DEPREC RESERVE",null,null,{"$f":"F171+F145","v":165180841},{"$f":"G171+G145","v":0},{"$f":"H171+H145","v":19890011},{"$f":"I171+I145","v":145290830},{"$f":"J171+J145","v":165180841},{"$f":"F173-J173","v":0}]
[40,null,"TOTAL GROSS PTD PLANT DEPREC RESERVE",null,null,{"$f":"F147+F171","v":752116299},{"$f":"G147+G171","v":586935458},{"$f":"H147+H171","v":19890011},{"$f":"I147+I171","v":145290830},{"$f":"J147+J171","v":752116299},{"$f":"F174-J174","v":0}]
[41]
[42,"GENERAL & INTANGIBLE PLANT"]
[43,null,"PRODUCTION - DEMAND","K201",null,{"$f":"'WP FR-16(7)(v) A&G WP'!E12","v":5383063},{"$f":"F177-SUM(H177:I177)","v":5383063},{"$f":"ROUND(F177*VLOOKUP(D177,ALLOCTABLE_FUNCTIONAL,$H$10,FALSE),0)","v":0},{"$f":"ROUND(F177*VLOOKUP(D177,ALLOCTABLE_FUNCTIONAL,$I$10,FALSE),0)","v":0},{"$f":"SUM(G177:I177)","v":5383063},{"$f":"F177-J177","v":0}]
[44,null,"PRODUCTION - ENERGY","K301",null,{"$f":"'WP FR-16(7)(v) A&G WP'!E13","v":6289780},6289780,0,0,6289780,0]
[45,null,"TRANSMISSION","K202",null,{"$f":"'WP FR-16(7)(v) A&G WP'!E14","v":850643},0,850643,0,850643,0]
[46,null,"DISTRIBUTION - DEMAND","K201",null,{"$f":"ROUND('WP FR-16(7)(v) A&G WP'!E15*NPdemand,0)","v":2856969},2856969,0,0,2856969,0]
[47,null,"DISTRIBUTION - CUSTOMER","K405",null,{"$f":"ROUND('WP FR-16(7)(v) A&G WP'!E15-F180,0)","v":627139},{"$f":"F181-SUM(H181:I181)","v":0},0,627139,{"$f":"SUM(G181:I181)","v":627139},{"$f":"F181-J181","v":0}]
[48,null,"CUSTOMER ACCOUNTING","A308",null,{"$f":"'WP FR-16(7)(v) A&G WP'!E16","v":2131797},0,-682,2132479,2131797,0]
[49,null,"CUSTOMER SERVICE & INFORMATION","A310",null,{"$f":"'WP FR-16(7)(v) A&G WP'!E17","v":139459},{"$f":"F183-SUM(H183:I183)","v":0},{"$f":"ROUND(F183*VLOOKUP(D183,ALLOCTABLE_FUNCTIONAL,H10,FALSE),0)","v":0},{"$f":"ROUND(F183*VLOOKUP(D183,ALLOCTABLE_FUNCTIONAL,I10,FALSE),0)","v":139459},{"$f":"SUM(G183:I183)","v":139459},{"$f":"F183-J183","v":0}]
[50,null,"SALES","A312",null,{"$f":"'WP FR-16(7)(v) A&G WP'!E18","v":0},{"$f":"F184-SUM(H184:I184)","v":0},{"$f":"ROUND(F184*VLOOKUP(D184,ALLOCTABLE_FUNCTIONAL,H10,FALSE),0)","v":0},{"$f":"ROUND(F184*VLOOKUP(D184,ALLOCTABLE_FUNCTIONAL,I10,FALSE),0)","v":0},{"$f":"SUM(G184:I184)","v":0},{"$f":"F184-J184","v":0}]
[51,null,"ADJUSTMENT","A315",null,{"$f":"[3]SCH_D2.24!$Y$52","v":325445},209990,{"$f":"ROUND(F185*VLOOKUP(D185,ALLOCTABLE_FUNCTIONAL,$H$10,FALSE),0)","v":15133},{"$f":"ROUND(F185*VLOOKUP(D185,ALLOCTABLE_FUNCTIONAL,$I$10,FALSE),0)","v":100322},325445,0]
[52,null,"  GENERAL & INTANG PLANT",null,null,{"$f":"SUM(F176:F185)","v":18604295},14739802,865094,2999399,18604295,0]
[53]
[54,"COMMON & OTHER PLANT"]
[55,null,"PRODUCTION - DEMAND","K201",null,{"$f":"'WP FR-16(7)(v) A&G WP'!G12","v":7273485},{"$f":"F189-SUM(H189:I189)","v":7273485},{"$f":"ROUND(F189*VLOOKUP(D189,ALLOCTABLE_FUNCTIONAL,$H$10,FALSE),0)","v":0},{"$f":"ROUND(F189*VLOOKUP(D189,ALLOCTABLE_FUNCTIONAL,$I$10,FALSE),0)","v":0},{"$f":"SUM(G189:I189)","v":7273485},{"$f":"F189-J189","v":0}]
[56,null,"PRODUCTION - ENERGY","K301",null,{"$f":"'WP FR-16(7)(v) A&G WP'!G13","v":8498622},8498622,0,0,8498622,0]
[57,null,"TRANSMISSION","K202",null,{"$f":"'WP FR-16(7)(v) A&G WP'!G14","v":1149371},0,1149371,0,1149371,0]
[58,null,"DISTRIBUTION - DEMAND","K201",null,{"$f":"ROUND('WP FR-16(7)(v) A&G WP'!G15*NPdemand,0)","v":3860278},3860278,0,0,3860278,0]
[59,null,"DISTRIBUTION - CUSTOMER","K405",null,{"$f":"ROUND('WP FR-16(7)(v) A&G WP'!G15-F192,0)","v":847378},{"$f":"F193-SUM(H193:I193)","v":0},0,847378,{"$f":"SUM(G193:I193)","v":847378},{"$f":"F193-J193","v":0}]
[60,null,"CUSTOMER ACCOUNTING","A308",null,{"$f":"'WP FR-16(7)(v) A&G WP'!G16","v":2880440},0,-922,2881362,2880440,0]
[61,null,"CUSTOMER SERVICE & INFORMATION","A310",null,{"$f":"'WP FR-16(7)(v) A&G WP'!G17","v":188435},{"$f":"F195-SUM(H195:I195)","v":0},{"$f":"ROUND(F195*VLOOKUP(D195,ALLOCTABLE_FUNCTIONAL,H10,FALSE),0)","v":0},{"$f":"ROUND(F195*VLOOKUP(D195,ALLOCTABLE_FUNCTIONAL,I10,FALSE),0)","v":188435},{"$f":"SUM(G195:I195)","v":188435},{"$f":"F195-J195","v":0}]
[62,null,"SALES","A312",null,{"$f":"'WP FR-16(7)(v) A&G WP'!G18","v":0},{"$f":"F196-SUM(H196:I196)","v":0},{"$f":"ROUND(F196*VLOOKUP(D196,ALLOCTABLE_FUNCTIONAL,H10,FALSE),0)","v":0},{"$f":"ROUND(F196*VLOOKUP(D196,ALLOCTABLE_FUNCTIONAL,I10,FALSE),0)","v":0},{"$f":"SUM(G196:I196)","v":0},{"$f":"F196-J196","v":0}]
[63,null,"ADJUSTMENT","A315",null,{"$f":"[3]SCH_D2.24!$Z$52","v":18280},11795,{"$f":"ROUND(F197*VLOOKUP(D197,ALLOCTABLE_FUNCTIONAL,$H$10,FALSE),0)","v":850},{"$f":"ROUND(F197*VLOOKUP(D197,ALLOCTABLE_FUNCTIONAL,$I$10,FALSE),0)","v":5635},18280,0]
[64,null,"  COMMON & OTHER PLANT IN SERVICE",null,null,{"$f":"SUM(F189:F197)","v":24716289},{"$f":"SUM(G188:G197)","v":19644180},{"$f":"SUM(H188:H197)","v":1149299},{"$f":"SUM(I188:I197)","v":3922810},{"$f":"SUM(J188:J197)","v":24716289},{"$f":"SUM(K188:K197)","v":0}]
[65]
[66,"TOTAL DEPRECIATION RESERVE",null,null,null,{"$f":"F198+F186+F171+F145+F139","v":795436883},621319440,21904404,152213039,795436883,0,null,{"$f":"ROUND(G200/F200,4)","v":0.78110000000000002},{"$f":"ROUND(H200/F200,4)","v":2.75E-2},{"$f":"ROUND(I200/F200,4)","v":0.19139999999999999}]
[]
[{"$f":"co_name","v":"DUKE ENERGY KENTUCKY, INC."},null,null,null,null,null,null,null,null,{"$f":"J1","v":"FR-16(7)(v)-1"}]
[{"$f":"$A$2","v":"FUNCTIONAL ELECTRIC COST OF SERVICE"},null,null,null,null,null,null,null,null,{"$f":"J2","v":"WITNESS RESPONSIBLE:"}]
[{"$f":"case_name","v":"CASE NO: 2019-00271"},null,null,null,null,null,null,null,null,{"$f":"Witness","v":"JAMES E. ZIOLKOWSKI"}]
[{"$f":"data_filing","v":"DATA: 12 MONTHS ACTUAL  & 0 MONTHS ESTIMATED"},null,null,null,null,null,null,null,null,{"$f":"\"PAGE \"&Pages-14&\" OF \"&Pages","v":"PAGE 4 OF 18"}]
[{"$f":"type","v":"TYPE OF FILING: \"X\" ORIGINAL   UPDATED    REVISED  "}]
[]
[]
["LINE",null,null,null,null,"TOTAL","FUNCTIONAL",null,null,"TOTAL","ALL"]
["NO.",{"$f":"\"NET ELECTRIC PLANT\"","v":"NET ELECTRIC PLANT"},null,"ALLO",null,{"$f":"$F$9","v":"ELECTRIC"},{"$f":"G9","v":"PRODUCTION"},"TRANSMISSION","DISTRIBUTION","AT ISSUE","OTHER"]
[null,null,"Schedule 4",null,null,null,3,4,5]
[1,"PRODUCTION PLANT"]
[2,null,"PRODUCTION STEAM",null,null,{"$f":"F59-F136","v":434180250},434180250,0,0,434180250,0]
[3,null,"PRODUCTION OTHER",null,null,{"$f":"F60-F137","v":189230196},189230196,0,0,189230196,0]
[4,null,"ADJUSTMENT",null,null,{"$f":"F61-F138","v":-1553366},-1553366,0,0,-1553366,0]
[5,null,"  NET PRODUCTION PLANT",null,null,{"$f":"SUM(F213:F215)","v":621857080},621857080,0,0,621857080,0]
[6]
[7,"TRANSMISSION PLANT"]
[8,null,"MAIN STEP-UP TRANSFORMERS",null,null,{"$f":"F65-F142","v":0},0,0,0,0,0]
[9,null,"OTHER TRANSMISSION",null,null,{"$f":"F66-F143","v":52412677},0,52412677,0,52412677,0]
[10,null,"ADJUSTMENT",null,null,{"$f":"F67-F144","v":70176},0,70176,0,70176,0]
[11,null,"    NET TRANSMISSION PLANT",null,null,{"$f":"SUM(F218:F221)","v":52482853},0,52482853,0,52482853,0]
[12]
[13,"NET PROD & TRANS PLANT",null,null,null,{"$f":"F70-F147","v":674339933},621857080,52482853,0,674339933,0]
[14]
[15,"DISTRIBUTION PLANT"]
[16,null,"SUBSTATIONS","K201",null,{"$f":"F73-F150","v":72492541},0,0,72492541,72492541,0]
[17,null,"POLES, TOWERS  & FIXTURES - PRIMARY - DEMAND","K205",null,17906511,0,0,17906511,17906511,0]
[18,null,"POLES, TOWERS  & FIXTURES - PRIMARY - CUSTOMER","K405",null,8194722,0,0,8194722,8194722,0]
[19,null,"POLES, TOWERS  & FIXTURES - SECONDARY - DEMAND","K206",null,6848047,0,0,6848047,6848047,0]
[20,null,"POLES, TOWERS  & FIXTURES - SECONDARY - CUSTOMER","K405",null,1852364,0,0,1852364,1852364,0]
[21,null,"CONDUCTORS - OVERHEAD / PRIMARY - DEMAND","K205",null,52792275,0,0,52792275,52792275,0]
[22,null,"CONDUCTORS - OVERHEAD / PRIMARY - CUSTOMER","K405",null,11528511,0,0,11528511,11528511,0]
[23,null,"CONDUCTORS - OVERHEAD / SECONDARY - DEMAND","K206",null,21496395,0,0,21496395,21496395,0]
[24,null,"CONDUCTORS - OVERHEAD / SECONDARY - CUSTOMER","K405",null,4775475,0,0,4775475,4775475,0]
[25,null,"CONDUCTORS - UNDERGROUND / PRIMARY - DEMAND","K205",null,39534982,0,0,39534982,39534982,0]
[26,null,"CONDUCTORS - UNDERGROUND / PRIMARY - CUSTOMER","K405",null,12277154,0,0,12277154,12277154,0]
[27,null,"CONDUCTORS - UNDERGROUND / SECONDARY - DEMAND","K206",null,6772908,0,0,6772908,6772908,0]
[28,null,"CONDUCTORS - UNDERGROUND / SECONDARY - CUSTOMER","K405",null,3839217,0,0,3839217,3839217,0]
[29,null,"TRANSFORMERS DEMAND RELATED",null,null,26609950,0,0,26609950,26609950,0]
[30,null,"TRANSFORMERS CUSTOMER RELATED",null,null,8647270,0,0,8647270,8647270,0]
[31,null,"SERVICES",null,null,{"$f":"F88-F165","v":9567117},{"$f":"G88-G165","v":0},0,9567117,{"$f":"J88-J165","v":9567117},0]
[32,null,"METERS",null,null,{"$f":"F89-F166","v":17608114},0,4050,17604064,17608114,0]
[33,null,"STREET LIGHTS",null,null,{"$f":"F90-F167","v":1522363},0,0,1522363,1522363,0]
[34,null,"ADJUSTMENT  ",null,null,{"$f":"F91-F168","v":-467132},0,-5,-467127,-467132,0]
[35,null,"CONSTRUCTION NOT CLASSIFIED",null,null,{"$f":"F92-F169","v":93162104},0,932,93161172,93162104,0]
[36,null,{"$f":"C170","v":"RWIP"},null,null,17119217,0,0,17119217,17119217,0]
[37,null,"  NET DISTRIBUTION PLANT",null,null,{"$f":"SUM(F226:F247)","v":434080105},{"$f":"SUM(G226:G247)","v":0},{"$f":"SUM(H226:H247)","v":4977},434075128,434080105,{"$f":"SUM(K226:K246)","v":0}]
[38]
[39,"NET PTD PLANT",null,null,null,{"$f":"F96-F173","v":486562958},0,52487830,434075128,486562958,0]
[40,"NET TRANS & DIST PLANT",null,null,null,{"$f":"F97-F174","v":1108420038},621857080,52487830,434075128,1108420038,0]
[41]
[42,"GENERAL & INTANGIBLE PLANT"]
[43,null,"PRODUCTION - DEMAND",null,null,{"$f":"F100-F177","v":11320984},11320984,0,0,11320984,0]
[44,null,"PRODUCTION - ENERGY",null,null,{"$f":"F101-F178","v":13227874},13227874,0,0,13227874,0]
[45,null,"TRANSMISSION",null,null,{"$f":"F102-F179","v":1788965},0,1788965,0,1788965,0]
[46,null,"DISTRIBUTION - DEMAND",null,null,6008418,6008418,0,0,6008418,0]
[47,null,"DISTRIBUTION - CUSTOMER",null,null,1318922,0,0,1318922,1318922,0]
[48,null,"CUSTOMER ACCOUNTING",null,null,{"$f":"F105-F182","v":4483326},0,-1435,4484761,4483326,0]
[49,null,"CUSTOMER SERVICE & INFORMATION",null,null,{"$f":"F106-F183","v":293294},0,0,293294,293294,0]
[50,null,"SALES",null,null,0,0,0,0,0,0]
[51,null,"ADJUSTMENT",null,null,{"$f":"F108-F185","v":-325445},-209990,-15133,-100322,-325445,0]
[52,null,"  NET GENERAL & INTANG PLANT",null,null,{"$f":"SUM(F253:F262)","v":38116338},30347286,1772397,5996655,38116338,0]
[53]
[54,"COMMON & OTHER PLANT"]
[55,null,"PRODUCTION - DEMAND",null,null,{"$f":"F112-F189","v":2180707},2180707,0,0,2180707,0]
[56,null,"PRODUCTION - ENERGY",null,null,{"$f":"F113-F190","v":2548022},2548022,0,0,2548022,0]
[57,null,"TRANSMISSION",null,null,{"$f":"F114-F191","v":344600},0,344600,0,344600,0]
[58,null,"DISTRIBUTION - DEMAND",null,null,{"$f":"F115-F192","v":1157373},1157373,0,0,1157373,0]
[59,null,"DISTRIBUTION - CUSTOMER",null,null,254057,0,0,254057,254057,0]
[60,null,"CUSTOMER ACCOUNTING",null,null,{"$f":"F117-F194","v":863602},0,-276,863878,863602,0]
[61,null,"CUSTOMER SERVICE & INFORMATION",null,null,{"$f":"F118-F195","v":56495},0,0,56495,56495,0]
[62,null,"SALES",null,null,0,0,0,0,0,0]
[63,null,"ADJUSTMENT",null,null,{"$f":"F120-F197","v":-18280},-11795,-850,-5635,-18280,0]
[64,null,"  COMMON & OTHER PLANT IN SERVICE",null,null,{"$f":"SUM(F265:F274)","v":7386576},5874307,343474,1168795,7386576,0]
[65]
[66,null,{"$f":"\"NET ELECTRIC PLANT IN SERVICE\"","v":"NET ELECTRIC PLANT IN SERVICE"},null,null,{"$f":"F275+F263+F248+F222+F216","v":1153922952},658078673,54603701,441240578,1153922952,0,null,{"$f":"J277-F277","v":0}]
[]
[{"$f":"co_name","v":"DUKE ENERGY KENTUCKY, INC."},null,null,null,null,null,null,null,null,{"$f":"J1","v":"FR-16(7)(v)-1"}]
[{"$f":"$A$2","v":"FUNCTIONAL ELECTRIC COST OF SERVICE"},null,null,null,null,null,null,null,null,{"$f":"J2","v":"WITNESS RESPONSIBLE:"}]
[{"$f":"case_name","v":"CASE NO: 2019-00271"},null,null,null,null,null,null,null,null,{"$f":"Witness","v":"JAMES E. ZIOLKOWSKI"}]
[{"$f":"data_filing","v":"DATA: 12 MONTHS ACTUAL  & 0 MONTHS ESTIMATED"},null,null,null,null,null,null,null,null,{"$f":"\"PAGE \"&Pages-13&\" OF \"&Pages","v":"PAGE 5 OF 18"}]
[{"$f":"type","v":"TYPE OF FILING: \"X\" ORIGINAL   UPDATED    REVISED  "}]
[]
[]
["LINE",null,null,null,null,"TOTAL","FUNCTIONAL",null,null,"TOTAL","ALL"]
["NO.","SUBTRACTIVE RATE BASE ADJUSTMENTS",null,"ALLO",null,{"$f":"$F$9","v":"ELECTRIC"},{"$f":"G9","v":"PRODUCTION"},"TRANSMISSION","DISTRIBUTION","AT ISSUE","OTHER"]
[null,null,"Schedule 5",null,null,null,3,4,5]
[1,"RATE BASE ADJUSTMENTS"]
[2,"ACCUMULATED DEFERRED INCOME TAXES"]
[3," ACCUM DEF INC TAXES (282)"]
[4,null,"LIBERALIZED DEPRECIATION","NP29"," ",{"$f":"-'[3]WPB-6''s'!$T$147","v":68331279},{"$f":"F292-SUM(H292:I292)","v":38969329},{"$f":"ROUND(F292*VLOOKUP(D292,ALLOCTABLE_FUNCTIONAL,$H$10,FALSE),0)","v":3233436},{"$f":"ROUND(F292*VLOOKUP(D292,ALLOCTABLE_FUNCTIONAL,$I$10,FALSE),0)","v":26128514},{"$f":"SUM(G292:I292)","v":68331279},{"$f":"F292-J292","v":0}]
[5,null,"LEASED METERS","NP29"," ",1549912,883915,73342,592655,1549912,0]
[6,null,"CONTRIB AID CONSTR","D249"," ",{"$f":"'[3]WPB-6''s'!$T$134","v":0},0,0,0,0,0]
[7,null,"TAX INTEREST, EXPENSING, DEPR.","NP29"," ",{"$f":"165437482-97210112","v":68227370},38910069,3228519,26088782,68227370,0]
[8,null,"AFUDC IN DEBT","NP29"," ",0,0,0,0,0,0]
[9,null,"CASUALTY LOSS","K411"," ",{"$f":"-381694","v":-381694},0,-2569,-379125,-381694,0]
[10,null,"NON-CASH OVERHEADS","G229"," ",0,0,0,0,0,0]
[11,null,"PLANT FAS 109","NP29"," ",null,0,0,0,0,0]
[12,null,"MISCELLANEOUS","NP29",null,{"$f":"F301-F292-F293-F294-F295-F296-F297-F298-F299","v":64381629},36716843,3046539,24618247,64381629,0]
[13,null,"  TOTAL ACCOUNT 282",null,null,{"$f":"-('[3]WPB-6''s'!$R$154-'[3]WPB-6''s'!$R$144-'[3]WPB-6''s'!$R$148-[3]SCH_D1!$AA$297-[3]SCH_D1!$AA$302+[3]SCH_B6!$N$71)","v":202108496},{"$f":"SUM(G292:G300)","v":115480156},9579267,77049073,202108496,0]
[14]
[15," ACCUM DEF INC TAXES (283)"]
[16,null,"TRANSITION FROM MISO TO PJM","NP29",null,-3666482,{"$f":"F304-SUM(H304:I304)","v":-2090995},{"$f":"ROUND(F304*VLOOKUP(D304,ALLOCTABLE_FUNCTIONAL,$H$10,FALSE),0)","v":-173498},{"$f":"ROUND(F304*VLOOKUP(D304,ALLOCTABLE_FUNCTIONAL,$I$10,FALSE),0)","v":-1401989},{"$f":"SUM(G304:I304)","v":-3666482},{"$f":"F304-J304","v":0}]
[17,null,"DEFERRED PLANT COSTS","NP29",null,714287,407358,33800,273129,714287,0]
[18,null,"MISCELLANEOUS","OM39",null,{"$f":"F315-F304-F305-F307-F308-F309-F310-F311-F312-F313-F314","v":10906524},8024584,1345974,1535966,10906524,0]
[19,null,"ENVIRONMENTAL RESERVE","NP29",null,0,0,0,0,0,0]
[20,null,"POST IN-SERVICE CARRYING COSTS","NP29",null,0,0,0,0,0,0]
[21,null,"ARO CUMULATIVE EFFECT","NP29",null,0,0,0,0,0,0]
[22,null,"LOSS ON REACQUIRED DEBT","D249",null,0,0,0,0,0,0]
[23,null,"VACATION PAY ACCRUAL","A315",null,0,0,0,0,0,0]
[24,null,"NON-AMI METERS RETIRED EARLY","OM39",null,1308623,962833,161497,184293,{"$f":"SUM(G312:I312)","v":1308623},{"$f":"F312-J312","v":0}]
[25,null,"PENSION EXPENSE","A315",null,{"$f":"1282235+5602082","v":6884317},4442036,320121,2122160,{"$f":"SUM(G313:I313)","v":6884317},{"$f":"F313-J313","v":0}]
[26,null,"UNCOLLECTIBLE ACCOUNTS","K411",null,0,0,0,0,0,0]
[27,null,"  TOTAL ACCOUNT 283",null,null,{"$f":"-'[3]WPB-6''s'!$R$148","v":16147269},{"$f":"SUM(G303:G314)","v":11745816},1687894,2713559,16147269,0]
[28]
[29," OTHER ACCUMULATED DEFERRED INCOME TAXES"]
[30,null,"EXCESS ADIT","NP29",null,{"$f":"-[3]SCH_B1!$I$38","v":63555450},{"$f":"F318-SUM(H318:I318)","v":36245673},{"$f":"ROUND(F318*VLOOKUP(D318,ALLOCTABLE_FUNCTIONAL,$H$10,FALSE),0)","v":3007444},{"$f":"ROUND(F318*VLOOKUP(D318,ALLOCTABLE_FUNCTIONAL,$I$10,FALSE),0)","v":24302333},{"$f":"SUM(G318:I318)","v":63555450},{"$f":"F318-J318","v":0}]
[31,null,"CUSTOMER SERVICE DEPOSITS","NP29",null,0,{"$f":"F319-SUM(H319:I319)","v":0},{"$f":"ROUND(F319*VLOOKUP(D319,ALLOCTABLE_FUNCTIONAL,$H$10,FALSE),0)","v":0},{"$f":"ROUND(F319*VLOOKUP(D319,ALLOCTABLE_FUNCTIONAL,$I$10,FALSE),0)","v":0},{"$f":"SUM(G319:I319)","v":0},{"$f":"F319-J319","v":0}]
[32,null,"POST RETIREMENT BENEFITS","NP29",null,0,{"$f":"F320-SUM(H320:I320)","v":0},{"$f":"ROUND(F320*VLOOKUP(D320,ALLOCTABLE_FUNCTIONAL,$H$10,FALSE),0)","v":0},{"$f":"ROUND(F320*VLOOKUP(D320,ALLOCTABLE_FUNCTIONAL,$I$10,FALSE),0)","v":0},{"$f":"SUM(G320:I320)","v":0},{"$f":"F320-J320","v":0}]
[33,null,"INVESTMENT TAX CREDIT","NP29",null,0,{"$f":"F321-SUM(H321:I321)","v":0},{"$f":"ROUND(F321*VLOOKUP(D321,ALLOCTABLE_FUNCTIONAL,$H$10,FALSE),0)","v":0},{"$f":"ROUND(F321*VLOOKUP(D321,ALLOCTABLE_FUNCTIONAL,$I$10,FALSE),0)","v":0},{"$f":"SUM(G321:I321)","v":0},{"$f":"F321-J321","v":0}]
[34,null,"  TOTAL OTHER SUBTRACTIVE ADJUSTMENTS",null,null,{"$f":"SUM(F317:F321)","v":63555450},36245673,3007444,24302333,63555450,0]
[35]
[36,"TOTAL SUBTRACTIVE RATE BASE ADJUSTMENTS",null,null,null,{"$f":"F322+F315+F301","v":281811215},163471645,14274605,104064965,281811215,0]
[]
[{"$f":"co_name","v":"DUKE ENERGY KENTUCKY, INC."},null,null,null,null,null,null,null,null,{"$f":"J1","v":"FR-16(7)(v)-1"}]
[{"$f":"$A$2","v":"FUNCTIONAL ELECTRIC COST OF SERVICE"},null,null,null,null,null,null,null,null,{"$f":"J2","v":"WITNESS RESPONSIBLE:"}]
[{"$f":"case_name","v":"CASE NO: 2019-00271"},null,null,null,null,null,null,null,null,{"$f":"Witness","v":"JAMES E. ZIOLKOWSKI"}]
[{"$f":"data_filing","v":"DATA: 12 MONTHS ACTUAL  & 0 MONTHS ESTIMATED"},null,null,null,null,null,null,null,null,{"$f":"\"PAGE \"&Pages-12&\" OF \"&Pages","v":"PAGE 6 OF 18"}]
[{"$f":"type","v":"TYPE OF FILING: \"X\" ORIGINAL   UPDATED    REVISED  "}]
[]
[]
["LINE",null,null,null,null,"TOTAL","FUNCTIONAL",null,null,"TOTAL","ALL"]
["NO.","ADDITIVE RATE BASE ADJUSTMENTS",null,"ALLO",null,{"$f":"$F$9","v":"ELECTRIC"},{"$f":"G9","v":"PRODUCTION"},"TRANSMISSION","DISTRIBUTION","AT ISSUE","OTHER"]
[null,null,"Schedule 5.1",null,null,null,3,4,5]
[1,"OTHER ACCUMULATED DEFERRED INCOME TAXES"]
[2," ACCUM DEF INC TAXES (190)"]
[3,null,"UNCOLLECTIBLE ACCTS","K411",null,70274,{"$f":"F338-SUM(H338:I338)","v":0},{"$f":"ROUND(F338*VLOOKUP(D338,ALLOCTABLE_FUNCTIONAL,$H$10,FALSE),0)","v":473},{"$f":"ROUND(F338*VLOOKUP(D338,ALLOCTABLE_FUNCTIONAL,$I$10,FALSE),0)","v":69801},{"$f":"SUM(G338:I338)","v":70274},{"$f":"F338-J338","v":0}]
[4,null,"CASH FLOW HEDGE","A315",null,276611,178481,12862,85268,276611,0]
[5,null,"RESERVED FOR FUTURE USE","NP29",null,0,{"$f":"F340-SUM(H340:I340)","v":0},0,0,0,0]
[6,null,"RESERVED FOR FUTURE USE","NP29",null,0,0,0,0,0,0]
[7,null,"ELECTRIC METERS","K407",null,0,0,0,0,0,0]
[8,null,"UNAMORTIZED DEBT PREMIUM","D249",null,0,0,0,0,0,0]
[9,null,"ARO CUMULATIVE EFFECT","NP29",null,null,0,0,0,0,0]
[10,null,"RETIREMENT PLAN","A315",null,2841332,1833341,132122,875869,2841332,0]
[11,null,"POST RETIREMENT BENEFITS ","A315",null,0,0,0,0,0,0]
[12,null,"POST RETIREMENT BENEFITS - HEALTH CARE","A315",null,0,0,0,0,0,0]
[13,null,"POST EMPLOYMENT BENEFITS - SFAS 112","A315",null,0,0,0,0,0,0]
[14,null,"SUPPLEMENTAL PENSION PLAN","A315",null,0,0,0,0,0,0]
[15,null,"INCENTIVE PLAN","A315",null,0,0,0,0,0,0]
[16,null,"FEDERAL DEFERRED TAX RECEIVEABLE","A315",null,0,0,0,0,0,0]
[17,null,"MISCELLANEOUS","A315",null,{"$f":"F361-F338-F339-F340-F341-F342-F343-F344-F345-F346-F347-F348-F349-F350-F351-F353-F354-F355-F356-F357-F358-F359-F360","v":9119839},5884484,424073,2811282,9119839,0]
[18,null,"DEFERRED TAX","A315",null,4155837,2681513,193246,1281078,4155837,0]
[19,null,"NET OPERATING LOSS","NP29",null,0,0,0,0,0,0]
[20,null,"401K INCENTIVE PLAN","A315",null,0,0,0,0,0,0]
[21,null,"ENVIRONMENTAL RESERVE","NP29",null,0,0,0,0,0,0]
[22,null,"VACATION PAY ACCRUALS","A315",null,450495,290677,20948,138870,450495,0]
[23,null,"DEMAND SIDE MANAGEMENT DEFERRAL","NP29",null,632806,360890,29944,241972,632806,0]
[24,null,"OPERATING LEASE OBLIGATION","NP29",null,2341678,1335459,110808,895411,2341678,0]
[25,null,"INJURIES & DAMAGES","NP29",null,0,0,0,0,0,0]
[26,null,"  TOTAL ACCOUNT 190",null,null,{"$f":"'[3]WPB-6''s'!$R$144","v":19888872},{"$f":"SUM(G337:G360)","v":12564845},924476,6399551,19888872,0]
[27]
[28," OTHER"]
[29,null,"RESERVED FOR FUTURE USE","NP29",null,0,{"$f":"F364-SUM(H364:I364)","v":0},{"$f":"ROUND(F364*VLOOKUP(D364,ALLOCTABLE_FUNCTIONAL,$H$10,FALSE),0)","v":0},{"$f":"ROUND(F364*VLOOKUP(D364,ALLOCTABLE_FUNCTIONAL,$I$10,FALSE),0)","v":0},{"$f":"SUM(G364:I364)","v":0},{"$f":"F364-J364","v":0}]
[30,null,"RATE CASE EXPENSE REGULATORY ASSET","NP29",null,{"$f":"[3]SCH_B1!$I$40","v":948688},{"$f":"F365-SUM(H365:I365)","v":541037},{"$f":"ROUND(F365*VLOOKUP(D365,ALLOCTABLE_FUNCTIONAL,$H$10,FALSE),0)","v":44892},{"$f":"ROUND(F365*VLOOKUP(D365,ALLOCTABLE_FUNCTIONAL,$I$10,FALSE),0)","v":362759},{"$f":"SUM(G365:I365)","v":948688},{"$f":"F365-J365","v":0}]
[31,null,"RESERVED FOR FUTURE USE","NP29",null,0,{"$f":"F366-SUM(H366:I366)","v":0},{"$f":"ROUND(F366*VLOOKUP(D366,ALLOCTABLE_FUNCTIONAL,$H$10,FALSE),0)","v":0},{"$f":"ROUND(F366*VLOOKUP(D366,ALLOCTABLE_FUNCTIONAL,$I$10,FALSE),0)","v":0},{"$f":"SUM(G366:I366)","v":0},{"$f":"F366-J366","v":0}]
[32,null,"  OTHER",null,null,{"$f":"SUM(F364:F366)","v":948688},{"$f":"SUM(G363:G366)","v":541037},{"$f":"SUM(H363:H366)","v":44892},{"$f":"SUM(I363:I366)","v":362759},{"$f":"SUM(J363:J366)","v":948688},{"$f":"SUM(K363:K366)","v":0}]
[33,null,null,null,null," "]
[34,"CONSTRUCTION WORK IN PROGRESS"]
[35,null,"PRODUCTION","P129",null,0,{"$f":"F370-SUM(H370:I370)","v":0},{"$f":"ROUND(F370*VLOOKUP(D370,ALLOCTABLE_FUNCTIONAL,$H$10,FALSE),0)","v":0},{"$f":"ROUND(F370*VLOOKUP(D370,ALLOCTABLE_FUNCTIONAL,$I$10,FALSE),0)","v":0},{"$f":"SUM(G370:I370)","v":0},{"$f":"F370-J370","v":0}]
[36,null,"TRANSMISSION","T129",null,0,{"$f":"F371-SUM(H371:I371)","v":0},{"$f":"ROUND(F371*VLOOKUP(D371,ALLOCTABLE_FUNCTIONAL,$H$10,FALSE),0)","v":0},{"$f":"ROUND(F371*VLOOKUP(D371,ALLOCTABLE_FUNCTIONAL,$I$10,FALSE),0)","v":0},{"$f":"SUM(G371:I371)","v":0},{"$f":"F371-J371","v":0}]
[37,null,"DISTRIBUTION","D149",null,0,{"$f":"F372-SUM(H372:I372)","v":0},{"$f":"ROUND(F372*VLOOKUP(D372,ALLOCTABLE_FUNCTIONAL,$H$10,FALSE),0)","v":0},{"$f":"ROUND(F372*VLOOKUP(D372,ALLOCTABLE_FUNCTIONAL,$I$10,FALSE),0)","v":0},{"$f":"SUM(G372:I372)","v":0},{"$f":"F372-J372","v":0}]
[38,null,"COMMON","C129",null,0,{"$f":"F373-SUM(H373:I373)","v":0},{"$f":"ROUND(F373*VLOOKUP(D373,ALLOCTABLE_FUNCTIONAL,$H$10,FALSE),0)","v":0},{"$f":"ROUND(F373*VLOOKUP(D373,ALLOCTABLE_FUNCTIONAL,$I$10,FALSE),0)","v":0},{"$f":"SUM(G373:I373)","v":0},{"$f":"F373-J373","v":0}]
[39,null,"GENERAL","G129",null,0,{"$f":"F374-SUM(H374:I374)","v":0},{"$f":"ROUND(F374*VLOOKUP(D374,ALLOCTABLE_FUNCTIONAL,$H$10,FALSE),0)","v":0},{"$f":"ROUND(F374*VLOOKUP(D374,ALLOCTABLE_FUNCTIONAL,$I$10,FALSE),0)","v":0},{"$f":"SUM(G374:I374)","v":0},{"$f":"F374-J374","v":0}]
[40,null,"TOTAL CONSTRUCTION WORK IN PROGRESS",null,null,{"$f":"SUM(F370:F374)","v":0},0,0,0,0,0]
[41]
[42,"TOTAL ADDITIVE RATE BASE ADJUSTMENTS",null,null,null,{"$f":"F361+F367+F375","v":20837560},13105882,969368,6762310,20837560,0]
[]
[{"$f":"co_name","v":"DUKE ENERGY KENTUCKY, INC."},null,null,null,null,null,null,null,null,{"$f":"J1","v":"FR-16(7)(v)-1"}]
[{"$f":"$A$2","v":"FUNCTIONAL ELECTRIC COST OF SERVICE"},null,null,null,null,null,null,null,null,{"$f":"J2","v":"WITNESS RESPONSIBLE:"}]
[{"$f":"case_name","v":"CASE NO: 2019-00271"},null,null,null,null,null,null,null,null,{"$f":"Witness","v":"JAMES E. ZIOLKOWSKI"}]
[{"$f":"data_filing","v":"DATA: 12 MONTHS ACTUAL  & 0 MONTHS ESTIMATED"},null,null,null,null,null,null,null,null,{"$f":"\"PAGE \"&Pages-11&\" OF \"&Pages","v":"PAGE 7 OF 18"}]
[{"$f":"type","v":"TYPE OF FILING: \"X\" ORIGINAL   UPDATED    REVISED  "}]
[]
[]
["LINE",null,null,null,null,"TOTAL","FUNCTIONAL",null,null,"TOTAL","ALL"]
["NO.","WORKING CAPITAL",null,"ALLO",null,{"$f":"$F$9","v":"ELECTRIC"},{"$f":"G9","v":"PRODUCTION"},"TRANSMISSION","DISTRIBUTION","AT ISSUE","OTHER"]
[null,null,"Schedule 5.2",null,null,null,3,4,5]
[]
[1,"NET ORIGINAL COST RATE BASE",null,null,null,{"$f":"F277-F324+F377","v":892949297},{"$f":"G277-G324+G377","v":507712910},41298464,343937923,892949297,0]
[2]
[3,"WORKING CAPITAL"]
[4]
[5,"PLANT MATERIALS & SUPPLIES"]
[6,null,"OTHER MATERIALS & SUPPLIES","PD29",null,{"$f":"[3]SCH_B5s!$O$35","v":18759249},{"$f":"F395-SUM(H395:I395)","v":12187884},{"$f":"ROUND(F395*VLOOKUP(D395,ALLOCTABLE_FUNCTIONAL,$H$10,FALSE),0)","v":729735},{"$f":"ROUND(F395*VLOOKUP(D395,ALLOCTABLE_FUNCTIONAL,$I$10,FALSE),0)","v":5841630},{"$f":"SUM(G395:I395)","v":18759249},{"$f":"F395-J395","v":0}]
[7,null,"FUEL","K301",null,{"$f":"[3]SCH_B5s!$O$27","v":19518014},{"$f":"F396-SUM(H396:I396)","v":19518014},{"$f":"ROUND(F396*VLOOKUP(D396,ALLOCTABLE_FUNCTIONAL,$H$10,FALSE),0)","v":0},{"$f":"ROUND(F396*VLOOKUP(D396,ALLOCTABLE_FUNCTIONAL,$I$10,FALSE),0)","v":0},{"$f":"SUM(G396:I396)","v":19518014},{"$f":"F396-J396","v":0}]
[8,null,"EMISSION ALLOWANCES","K301",null,0,{"$f":"F397-SUM(H397:I397)","v":0},{"$f":"ROUND(F397*VLOOKUP(D397,ALLOCTABLE_FUNCTIONAL,$H$10,FALSE),0)","v":0},{"$f":"ROUND(F397*VLOOKUP(D397,ALLOCTABLE_FUNCTIONAL,$I$10,FALSE),0)","v":0},{"$f":"SUM(G397:I397)","v":0},{"$f":"F397-J397","v":0}]
[9,null,"  TOTAL PLANT MATS. & SUPPLIES",null,null,{"$f":"SUM(F394:F397)","v":38277263},31705898,729735,5841630,38277263,0]
[10,"TOTAL MATERIALS & SUPPLIES",null,null,null,{"$f":"F398","v":38277263},31705898,729735,5841630,38277263,0]
[11]
[12,"PREPAYMENTS"]
[13,null,"INSURANCE GENERAL","NP29",null,{"$f":"'[3]WPB-5''s'!$AC$106","v":280124},{"$f":"F402-SUM(H402:I402)","v":159755},{"$f":"ROUND(F402*VLOOKUP(D402,ALLOCTABLE_FUNCTIONAL,$H$10,FALSE),0)","v":13255},{"$f":"ROUND(F402*VLOOKUP(D402,ALLOCTABLE_FUNCTIONAL,$I$10,FALSE),0)","v":107114},{"$f":"SUM(G402:I402)","v":280124},{"$f":"F402-J402","v":0}]
[14,null,"EXCISE TAX","NP29",null,0,{"$f":"F403-SUM(H403:I403)","v":0},{"$f":"ROUND(F403*VLOOKUP(D403,ALLOCTABLE_FUNCTIONAL,$H$10,FALSE),0)","v":0},{"$f":"ROUND(F403*VLOOKUP(D403,ALLOCTABLE_FUNCTIONAL,$I$10,FALSE),0)","v":0},{"$f":"SUM(G403:I403)","v":0},{"$f":"F403-J403","v":0}]
[15,null,"COLLATERAL ASSET","K301",null,{"$f":"'[3]WPB-5''s'!$AC$108","v":-44086},{"$f":"F404-SUM(H404:I404)","v":-44086},{"$f":"ROUND(F404*VLOOKUP(D404,ALLOCTABLE_FUNCTIONAL,$H$10,FALSE),0)","v":0},{"$f":"ROUND(F404*VLOOKUP(D404,ALLOCTABLE_FUNCTIONAL,$I$10,FALSE),0)","v":0},{"$f":"SUM(G404:I404)","v":-44086},{"$f":"F404-J404","v":0}]
[16,null,"  TOTAL PREPAYMENTS",null,null,{"$f":"SUM(F401:F404)","v":236038},115669,13255,107114,236038,0]
[17]
[18,"AUTO CALC (O&M-ELECTRIC FUEL COST)/8",null,null,null,{"$f":"[3]SCH_B5s!$O$17","v":14965228},{"$f":"F407-SUM(H407:I407)","v":14965228},{"$f":"IF(WorkingCap=\"No\",0,ROUND((H549-H447-H448)/8,0))","v":0},{"$f":"IF(WorkingCap=\"No\",0,ROUND((I549-I447-I448)/8,0))","v":0},{"$f":"SUM(G407:I407)","v":14965228},{"$f":"F407-J407","v":0}]
[19,"  TOTAL WORKING CASH",null,null,null,{"$f":"F407","v":14965228},14965228,0,0,14965228,0]
[20]
[21,"MISCELLANEOUS WORKING CAPITAL"]
[22,null,"RESERVED FOR FUTURE USE","K301",null,0,{"$f":"F411-SUM(H411:I411)","v":0},{"$f":"ROUND(F411*VLOOKUP(D411,ALLOCTABLE_FUNCTIONAL,$H$10,FALSE),0)","v":0},{"$f":"ROUND(F411*VLOOKUP(D411,ALLOCTABLE_FUNCTIONAL,$I$10,FALSE),0)","v":0},{"$f":"SUM(G411:I411)","v":0},{"$f":"F411-J411","v":0}]
[23,null,"PIPP UNCOLLECTIBLES","A315",null,0,{"$f":"F412-SUM(H412:I412)","v":0},{"$f":"ROUND(F412*VLOOKUP(D412,ALLOCTABLE_FUNCTIONAL,$H$10,FALSE),0)","v":0},{"$f":"ROUND(F412*VLOOKUP(D412,ALLOCTABLE_FUNCTIONAL,$I$10,FALSE),0)","v":0},{"$f":"SUM(G412:I412)","v":0},{"$f":"F412-J412","v":0}]
[24,null,"RESERVED FOR FUTURE USE","D249",null,0,{"$f":"F413-SUM(H413:I413)","v":0},{"$f":"ROUND(F413*VLOOKUP(D413,ALLOCTABLE_FUNCTIONAL,$H$10,FALSE),0)","v":0},{"$f":"ROUND(F413*VLOOKUP(D413,ALLOCTABLE_FUNCTIONAL,$I$10,FALSE),0)","v":0},{"$f":"SUM(G413:I413)","v":0},{"$f":"F413-J413","v":0}]
[25,null,"  TOTAL MISC WORK CAPITAL",null,null,{"$f":"SUM(F410:F413)","v":0},0,0,0,0,0]
[26]
[27,"TOTAL WORKING CAPITAL",null,null,null,{"$f":"F399+F405+F408+F414","v":53478529},46786795,742990,5948744,53478529,0]
[28,"PRELIMINARY SUMMARY"]
[29,null,"TOTAL ACCUMULATED DEFERRED INCOME TAXES",null,null,{"$f":"-F324","v":-281811215},-163471645,-14274605,-104064965,-281811215,0]
[30,null,"TOTAL OTHER ACCUMULATED DEFERRED INCOME TAXES",null,null,{"$f":"F377","v":20837560},{"$f":"G377","v":13105882},969368,6762310,20837560,0]
[31,null,"TOTAL WORKING CAPITAL",null,null,{"$f":"F416","v":53478529},46786795,742990,5948744,53478529,0]
[32,null,"  TOTAL RATE BASE ADJUSTMENTS",null,null,{"$f":"SUM(F417:F420)","v":-207495126},-103578968,-12562247,-91353911,-207495126,0]
[33]
[34,"RATE BASE CALCULATION"]
[35,null,"NET ELECTRIC PLANT IN SERVICE",null,null,{"$f":"F277","v":1153922952},658078673,54603701,441240578,1153922952,0]
[36,null,"TOTAL RATE BASE ADJUSTMENTS",null,null,{"$f":"F421","v":-207495126},-103578968,-12562247,-91353911,-207495126,0]
[37,null,"  TOTAL RATE BASE",null,null,{"$f":"SUM(F423:F425)","v":946427826},554499705,42041454,349886667,946427826,0,null,{"$f":"J426-F426","v":0}]
[38]
[39,"TOTAL RATE OF RETURN ALLOWABLE",null,null,null,{"$f":"$F$811","v":6.7110000000000003E-2},{"$f":"F811","v":6.7110000000000003E-2},{"$f":"F811","v":6.7110000000000003E-2},{"$f":"F811","v":6.7110000000000003E-2},{"$f":"F811","v":6.7110000000000003E-2},{"$f":"F811","v":6.7110000000000003E-2}]
[40,"RETURN ON RATE BASE",null,null,null,{"$f":"ROUND(F428*F426,0)","v":63514771},{"$f":"F429-SUM(H429:I429)","v":37212475},{"$f":"ROUND(H426*H428,0)","v":2821402},{"$f":"ROUND(I426*I428,0)","v":23480894},{"$f":"SUM(G429:I429)","v":63514771},{"$f":"F429-J429","v":0}]
[41]
[42,"ELECTRIC RATE BASE",null,"RB99",null,{"$f":"F426","v":946427826},{"$f":"F431-SUM(H431:I431)","v":554499705},{"$f":"ROUND(F431*VLOOKUP(D431,ALLOCTABLE_FUNCTIONAL,$H$10,FALSE),0)","v":42040324},{"$f":"ROUND(F431*VLOOKUP(D431,ALLOCTABLE_FUNCTIONAL,$I$10,FALSE),0)","v":349887797},{"$f":"SUM(G431:I431)","v":946427826},{"$f":"F431-J431","v":0}]
[43,"TOTAL RATE OF RETURN ALLOWABLE",null,null,null,{"$f":"RofR","v":6.7110000000000003E-2},{"$f":"RofR","v":6.7110000000000003E-2},{"$f":"RofR","v":6.7110000000000003E-2},{"$f":"RofR","v":6.7110000000000003E-2},{"$f":"RofR","v":6.7110000000000003E-2}]
[44,"RETURN ON RATE BASE",null,null,null,{"$f":"ROUND(F431*F432,0)","v":63514771},{"$f":"F433-H433-I433","v":37212475},{"$f":"ROUND(H431*H432,0)","v":2821326},{"$f":"ROUND(I431*I432,0)","v":23480970},{"$f":"ROUND(J431*J432,0)","v":63514771},{"$f":"F433-J433","v":0}]
[]
[{"$f":"co_name","v":"DUKE ENERGY KENTUCKY, INC."},null,null,null,null,null,null,null,null,{"$f":"J1","v":"FR-16(7)(v)-1"}]
[{"$f":"$A$2","v":"FUNCTIONAL ELECTRIC COST OF SERVICE"},null,null,null,null,null,null,null,null,{"$f":"J2","v":"WITNESS RESPONSIBLE:"}]
[{"$f":"case_name","v":"CASE NO: 2019-00271"},null,null,null,null,null,null,null,null,{"$f":"Witness","v":"JAMES E. ZIOLKOWSKI"}]
[{"$f":"data_filing","v":"DATA: 12 MONTHS ACTUAL  & 0 MONTHS ESTIMATED"},null,null,null,null,null,null,null,null,{"$f":"\"PAGE \"&Pages-10&\" OF \"&Pages","v":"PAGE 8 OF 18"}]
[{"$f":"type","v":"TYPE OF FILING: \"X\" ORIGINAL   UPDATED    REVISED  "}]
[]
[]
["LINE",null,null,null,null,"TOTAL","FUNCTIONAL",null,null,"TOTAL","ALL"]
["NO.","O&M EXPENSES",null,"ALLO",null,{"$f":"$F$9","v":"ELECTRIC"},{"$f":"G9","v":"PRODUCTION"},"TRANSMISSION","DISTRIBUTION","AT ISSUE","OTHER"]
[null,null,"Schedule 6",null,null,null,3,4,5]
[1,"PRODUCTION O&M"]
[2,"ENERGY RELATED PRODUCTION O&M"]
[3,null,"FUEL","K302",null,0,{"$f":"F447-SUM(H447:I447)","v":0},{"$f":"ROUND(F447*VLOOKUP(D447,ALLOCTABLE_FUNCTIONAL,$H$10,FALSE),0)","v":0},{"$f":"ROUND(F447*VLOOKUP(D447,ALLOCTABLE_FUNCTIONAL,$I$10,FALSE),0)","v":0},{"$f":"SUM(G447:I447)","v":0},{"$f":"F447-J447","v":0}]
[4,null,"FUEL AND PURCHASED POWER ADJUSTMENT","K302",null,{"$f":"[3]SCH_C2!$N$25","v":100379685},100379685,0,0,100379685,0]
[5,null,"EMISSION ALLOWANCES","K301",null,0,0,0,0,0,0]
[6,null,"ELIMINATE EMISSION ALLOW & OTHER VAR COST","K301",null,0,0,0,0,0,0]
[7,null,"OTHER PRODUCTION EXPENSE - MAINTENANCE","K301",null,{"$f":"[3]SCH_C2!$N$26","v":40683654},40683654,0,0,40683654,0]
[8,null,"MISO TRANSMISSION CHARGES - ACCT 555","K301",null,0,0,0,0,0,0]
[9,null,"  TOTAL ENERGY RELATED",null,null,{"$f":"SUM(F447:F452)","v":141063339},141063339,0,0,141063339,0]
[10]
[11,"DEMAND RELATED & OTHER PROD O&M"]
[12,null,"OTHER PRODUCTION EXPENSES - OPERATIONS","K201",null,0,{"$f":"F456-SUM(H456:I456)","v":0},{"$f":"ROUND(F456*VLOOKUP(D456,ALLOCTABLE_FUNCTIONAL,$H$10,FALSE),0)","v":0},{"$f":"ROUND(F456*VLOOKUP(D456,ALLOCTABLE_FUNCTIONAL,$I$10,FALSE),0)","v":0},{"$f":"SUM(G456:I456)","v":0},{"$f":"F456-J456","v":0}]
[13,null,"  TOTAL DEMAND REL & OTH PROD O&M ",null,null,{"$f":"SUM(F455:F456)","v":0},0,0,0,0,0]
[14]
[15,"TOTAL PRODUCTION O&M",null,null," ",{"$f":"F457+F453","v":141063339},141063339,0,0,141063339,0]
[16]
[17,"TRANSMISSION O & M"]
[18,null,"TRANSFORMER LEASE PAYMENTS","K202",null,0,{"$f":"F462-SUM(H462:I462)","v":0},{"$f":"ROUND(F462*VLOOKUP(D462,ALLOCTABLE_FUNCTIONAL,$H$10,FALSE),0)","v":0},{"$f":"ROUND(F462*VLOOKUP(D462,ALLOCTABLE_FUNCTIONAL,$I$10,FALSE),0)","v":0},{"$f":"SUM(G462:I462)","v":0},{"$f":"F462-J462","v":0}]
[19,null,"OTHER TRANSMISSION","K202",null,{"$f":"[3]SCH_C2!$N$29","v":23151925},{"$f":"F463-SUM(H463:I463)","v":0},{"$f":"ROUND(F463*VLOOKUP(D463,ALLOCTABLE_FUNCTIONAL,$H$10,FALSE),0)","v":23151925},{"$f":"ROUND(F463*VLOOKUP(D463,ALLOCTABLE_FUNCTIONAL,$I$10,FALSE),0)","v":0},{"$f":"SUM(G463:I463)","v":23151925},{"$f":"F463-J463","v":0}]
[20,null,"MISCELLANEOUS ADJUSTMENTS","K202",null,0,{"$f":"F464-SUM(H464:I464)","v":0},{"$f":"ROUND(F464*VLOOKUP(D464,ALLOCTABLE_FUNCTIONAL,$H$10,FALSE),0)","v":0},{"$f":"ROUND(F464*VLOOKUP(D464,ALLOCTABLE_FUNCTIONAL,$I$10,FALSE),0)","v":0},{"$f":"SUM(G464:I464)","v":0},{"$f":"F464-J464","v":0}]
[21,null,"NETWORK SERVICE RATES ADJUSTMENT","K202",null,0,{"$f":"F465-SUM(H465:I465)","v":0},{"$f":"ROUND(F465*VLOOKUP(D465,ALLOCTABLE_FUNCTIONAL,$H$10,FALSE),0)","v":0},{"$f":"ROUND(F465*VLOOKUP(D465,ALLOCTABLE_FUNCTIONAL,$I$10,FALSE),0)","v":0},{"$f":"SUM(G465:I465)","v":0},{"$f":"F465-J465","v":0}]
[22,null,"  TOTAL TRANSMISSION O & M",null,null,{"$f":"SUM(F462:F465)","v":23151925},0,23151925,0,23151925,0]
[23]
[24,"REGIONAL MARKET O&M"]
[25,null,"MARKET FACILITATION - MONITORING & COMPLIANCE","K202",null,{"$f":"[3]SCH_C2!$N$30","v":1826852},{"$f":"F469-SUM(H469:I469)","v":0},{"$f":"ROUND(F469*VLOOKUP(D469,ALLOCTABLE_FUNCTIONAL,$H$10,FALSE),0)","v":1826852},{"$f":"ROUND(F469*VLOOKUP(D469,ALLOCTABLE_FUNCTIONAL,$I$10,FALSE),0)","v":0},{"$f":"SUM(G469:I469)","v":1826852},{"$f":"F469-J469","v":0}]
[26,null,"TOTAL REGIONAL MARKET O&M",null,null,{"$f":"SUM(F468:F469)","v":1826852},0,1826852,0,1826852,0]
[27]
[28,"DISTRIBUTION O & M"]
[29,null,"SUBSTATIONS","K201",null,{"$f":"'[3]SCH_C2.1 - Forecasted Period'!$J$171+'[3]SCH_C2.1 - Forecasted Period'!$J$185+'[3]SCH_C2.1 - Forecasted Period'!$J$184","v":621124},{"$f":"F473-SUM(H473:I473)","v":621124},{"$f":"ROUND(F473*VLOOKUP(D473,ALLOCTABLE_FUNCTIONAL,$H$10,FALSE),0)","v":0},{"$f":"ROUND(F473*VLOOKUP(D473,ALLOCTABLE_FUNCTIONAL,$I$10,FALSE),0)","v":0},{"$f":"SUM(G473:I473)","v":621124},{"$f":"F473-J473","v":0}]
[30,null,"POLES, TOWERS & FIXTURES","PL49",null,null,0,0,0,0,0]
[31,null,"OVERHEAD LINES - PRIMARY / DEMAND","K205",null,{"$f":"'WP FR-16(7)(v) MinSizOHPRIM1'!F28","v":5171363},0,0,5171363,5171363,0]
[32,null,"OVERHEAD LINES - PRIMARY / CUSTOMER","K405",null,{"$f":"'WP FR-16(7)(v) MinSizOHPRIM1'!G28","v":1129296},{"$f":"F476-SUM(H476:I476)","v":0},{"$f":"ROUND(F476*VLOOKUP(D476,ALLOCTABLE_FUNCTIONAL,$H$10,FALSE),0)","v":0},{"$f":"ROUND(F476*VLOOKUP(D476,ALLOCTABLE_FUNCTIONAL,$I$10,FALSE),0)","v":1129296},{"$f":"SUM(G476:I476)","v":1129296},{"$f":"F476-J476","v":0}]
[33,null,"OVERHEAD LINES - SECONDARY / DEMAND","K206",null,{"$f":"'WP FR-16(7)(v) MinSizOHSEC1'!F28","v":2105718},0,0,2105718,2105718,0]
[34,null,"OVERHEAD LINES - SECONDARY / CUSTOMER","K405",null,{"$f":"'WP FR-16(7)(v) MinSizOHSEC1'!G28","v":467790},0,0,467790,467790,0]
[35,null,"UNDERGROUND LINES - PRIMARY / DEMAND","K205",null,{"$f":"'WP FR-16(7)(v) MinSizUGPRIM1'!F28","v":674043},0,0,674043,674043,0]
[36,null,"UNDERGROUND LINES - PRIMARY / CUSTOMER","K405",null,{"$f":"'WP FR-16(7)(v) MinSizUGPRIM1'!G28","v":209317},0,0,209317,209317,0]
[37,null,"UNDERGROUND LINES - SECONDARY / DEMAND","K206",null,{"$f":"'WP FR-16(7)(v) MinSizUGSEC1'!F28","v":115473},0,0,115473,115473,0]
[38,null,"UNDERGROUND LINES - SECONDARY / CUSTOMER","K405",null,{"$f":"'WP FR-16(7)(v) MinSizUGSEC1'!G28","v":65456},0,0,65456,65456,0]
[39,null,"TRANSFORMERS DEMAND RELATED","K203",null,{"$f":"'WP FR-16(7)(v) Min Siz Trans 1'!F29","v":271379},0,0,271379,271379,0]
[40,null,"TRANSFORMERS CUSTOMER RELATED","K401",null,{"$f":"'WP FR-16(7)(v) Min Siz Trans 1'!G29","v":88189},{"$f":"F484-SUM(H484:I484)","v":0},{"$f":"ROUND(F484*VLOOKUP(D484,ALLOCTABLE_FUNCTIONAL,$H$10,FALSE),0)","v":0},{"$f":"ROUND(F484*VLOOKUP(D484,ALLOCTABLE_FUNCTIONAL,$I$10,FALSE),0)","v":88189},{"$f":"SUM(G484:I484)","v":88189},{"$f":"F484-J484","v":0}]
[41,null,"OTHER MAINTENANCE","K203",null,{"$f":"[3]SCH_D1!$U$466+'[3]SCH_C2.1 - Forecasted Period'!$J$176","v":1892935},0,0,1892935,1892935,0]
[42,null,"LOAD DISPATCH","K215",null,{"$f":"'[3]SCH_C2.1 - Forecasted Period'!$J$170","v":578857},0,0,578857,578857,0]
[43,null,"METERS","K407",null,{"$f":"'[3]SCH_C2.1 - Forecasted Period'!$J$175+'[3]SCH_C2.1 - Forecasted Period'!$J$190","v":1076097},0,248,1075849,1076097,0]
[44,null,"STREET LIGHTING AND SIGNAL SYSTEMS","K401",null,{"$f":"'[3]SCH_C2.1 - Forecasted Period'!$J$174+'[3]SCH_C2.1 - Forecasted Period'!$J$189","v":430143},0,0,430143,430143,0]
[45,null,"OTHER OPERATIONS","K203",null,{"$f":"'[3]SCH_C2.1 - Forecasted Period'!$J$169+'[3]SCH_C2.1 - Forecasted Period'!$J$183","v":722843},0,0,722843,722843,0]
[46,null,"MISCELLANEOUS EXPENSES ADJUSTMENT","K203",null,{"$f":"'[3]SCH_C2.1 - Forecasted Period'!$J$177+'[3]SCH_C2.1 - Forecasted Period'!$J$191","v":2227726},0,0,2227726,2227726,0]
[47,null,"AFFILIATED COMPANY RENTS ADJUSTMENT","D249",null,{"$f":"'[3]SCH_C2.1 - Forecasted Period'!$G$178","v":0},0,0,0,0,0]
[48,null,"  TOTAL DISTRIBUTION O & M",null," ",{"$f":"SUM(F472:F491)","v":17847749},621124,248,17226377,17847749,0]
[49,null," "]
[50,"CUSTOMER ACCOUNTING",null,null,null," "]
[51,null,"CUSTOMER ACCOUNTING EXPENSE","K409",null,{"$f":"'[3]SCH_C2.1 - Forecasted Period'!$J$215-1241796","v":3880551},{"$f":"F495-SUM(H495:I495)","v":0},{"$f":"ROUND(F495*VLOOKUP(D495,ALLOCTABLE_FUNCTIONAL,$H$10,FALSE),0)","v":0},{"$f":"ROUND(F495*VLOOKUP(D495,ALLOCTABLE_FUNCTIONAL,$I$10,FALSE),0)","v":3880551},{"$f":"SUM(G495:I495)","v":3880551},{"$f":"F495-J495","v":0}]
[52,null,"UNCOLLECTIBLE EXP","K411",null,{"$f":"'[3]SCH_C2.1 - Forecasted Period'!$J$216","v":1554931},0,10465,1544466,1554931,0]
[53,null,"METER READING","K407",null,{"$f":"'[3]SCH_C2.1 - Forecasted Period'!$J$214","v":0},0,0,0,0,0]
[54,null,"UNCOLLECTIBLE EXP ADJUSTMENT","K411",null,{"$f":"[3]SCH_D1!$AC$343","v":-2199572},0,-14803,-2184769,-2199572,0]
[55,null,"CREDIT CARD FEES","K407",null,{"$f":"[3]SCH_D1!$AA$343","v":492981},0,113,492868,492981,0]
[56,null,"ELIMINATE REV & EXP - DSM RIDER","K405",null,0,0,0,0,0,0]
[57,null,"SALE OF A/R","K411",null,{"$f":"'[3]SCH_C2.1 - Forecasted Period'!$J$218","v":433029},0,2914,430115,433029,0]
[58,null,"ELIMINATE MISC EXPENSE","K405",null,{"$f":"[3]SCH_D1!$Y$281","v":-1190},0,0,-1190,-1190,0]
[59,null,"  TOTAL CUSTOMER ACCT EXPENSE",null," ",{"$f":"SUM(F494:F502)","v":4160730},0,-1311,4162041,4160730,0]
[]
[{"$f":"co_name","v":"DUKE ENERGY KENTUCKY, INC."},null,null,null,null,null,null,null,null,{"$f":"J1","v":"FR-16(7)(v)-1"}]
[{"$f":"$A$2","v":"FUNCTIONAL ELECTRIC COST OF SERVICE"},null,null,null,null,null,null,null,null,{"$f":"J2","v":"WITNESS RESPONSIBLE:"}]
[{"$f":"case_name","v":"CASE NO: 2019-00271"},null,null,null,null,null,null,null,null,{"$f":"Witness","v":"JAMES E. ZIOLKOWSKI"}]
[{"$f":"data_filing","v":"DATA: 12 MONTHS ACTUAL  & 0 MONTHS ESTIMATED"},null,null,null,null,null,null,null,null,{"$f":"\"PAGE \"&Pages-9&\" OF \"&Pages","v":"PAGE 9 OF 18"}]
[{"$f":"type","v":"TYPE OF FILING: \"X\" ORIGINAL   UPDATED    REVISED  "}]
[]
[]
["LINE",null,null,null,null,"TOTAL","FUNCTIONAL",null,null,"TOTAL","ALL"]
["NO.","O&M EXPENSES",null,"ALLO",null,{"$f":"$F$9","v":"ELECTRIC"},{"$f":"G9","v":"PRODUCTION"},"TRANSMISSION","DISTRIBUTION","AT ISSUE","OTHER"]
[null,null,"Schedule 6.1",null,null,null,3,4,5]
[1,"CUSTOMER SERVICE & INFORMATION"]
[2,null,"TOTAL CUST SERVICE & INFO","K405",null,{"$f":"[3]SCH_C2!$N$33","v":604867},{"$f":"F516-SUM(H516:I516)","v":0},{"$f":"ROUND(F516*VLOOKUP(D516,ALLOCTABLE_FUNCTIONAL,$H$10,FALSE),0)","v":0},{"$f":"ROUND(F516*VLOOKUP(D516,ALLOCTABLE_FUNCTIONAL,$I$10,FALSE),0)","v":604867},{"$f":"SUM(G516:I516)","v":604867},{"$f":"F516-J516","v":0}]
[3,null,"INFORMATIONAL & INSTRUCTIONAL ADV","K405",null,0,{"$f":"F517-SUM(H517:I517)","v":0},{"$f":"ROUND(F517*VLOOKUP(D517,ALLOCTABLE_FUNCTIONAL,$H$10,FALSE),0)","v":0},{"$f":"ROUND(F517*VLOOKUP(D517,ALLOCTABLE_FUNCTIONAL,$I$10,FALSE),0)","v":0},{"$f":"SUM(G517:I517)","v":0},{"$f":"F517-J517","v":0}]
[4,null,"TOTAL CUSTOMER SERV. & INFO.",null," ",{"$f":"SUM(F516:F517)","v":604867},0,0,604867,604867,0]
[5]
[6,"SALES"]
[7,null,"SALES EXPENSE","K405"," ",{"$f":"[3]SCH_C2!$N$34","v":1497140},{"$f":"F521-SUM(H521:I521)","v":0},{"$f":"ROUND(F521*VLOOKUP(D521,ALLOCTABLE_FUNCTIONAL,$H$10,FALSE),0)","v":0},{"$f":"ROUND(F521*VLOOKUP(D521,ALLOCTABLE_FUNCTIONAL,$I$10,FALSE),0)","v":1497140},{"$f":"SUM(G521:I521)","v":1497140},{"$f":"F521-J521","v":0}]
[8,null,"TOTAL SALES EXPENSE",null," ",{"$f":"SUM(F520:F521)","v":1497140},0,0,1497140,1497140,0]
[9]
[10,"ADMINISTRATIVE & GENERAL "]
[11,null,"PRODUCTION - DEMAND RELATED","P349",null,{"$f":"'WP FR-16(7)(v) A&G WP'!H12","v":9286338},{"$f":"F525-SUM(H525:I525)","v":9286338},{"$f":"ROUND(F525*VLOOKUP(D525,ALLOCTABLE_FUNCTIONAL,$H$10,FALSE),0)","v":0},{"$f":"ROUND(F525*VLOOKUP(D525,ALLOCTABLE_FUNCTIONAL,$I$10,FALSE),0)","v":0},{"$f":"SUM(G525:I525)","v":9286338},{"$f":"F525-J525","v":0}]
[12,null,"PRODUCTION - ENERGY RELATED","E349",null,{"$f":"'WP FR-16(7)(v) A&G WP'!H13","v":10850517},10850517,0,0,10850517,0]
[13,null,"TRANSMISSION","T349",null,{"$f":"'WP FR-16(7)(v) A&G WP'!H14","v":1467447},{"$f":"F527-SUM(H527:I527)","v":0},1467447,0,{"$f":"SUM(G527:I527)","v":1467447},{"$f":"F527-J527","v":0}]
[14,null,"DISTRIBUTION","D349",null,{"$f":"'WP FR-16(7)(v) A&G WP'!H15","v":6010445},{"$f":"F528-SUM(H528:I528)","v":209224},60,{"$f":"ROUND(F528*VLOOKUP(D528,ALLOCTABLE_FUNCTIONAL,$I$10,FALSE),0)","v":5801161},6010445,0]
[15,null,"CUSTOMER ACCOUNTING","C319",null,{"$f":"'WP FR-16(7)(v) A&G WP'!H16","v":3677568},0,-1177,3678745,3677568,0]
[16,null,"CUSTOMER SERVICE & INFORMATION","C331",null,{"$f":"'WP FR-16(7)(v) A&G WP'!H17","v":240582},0,0,240582,240582,0]
[17,null,"SALES","S319",null,{"$f":"'WP FR-16(7)(v) A&G WP'!H18","v":0},0,0,0,0,0]
[18,null,"TOT ADMIN & GEN LESS REG EXP"," ",null,{"$f":"SUM(F525:F531)","v":31532897},20346079,1466330,9720488,31532897,0]
[19,null,"RATE CASE EXPENSE ADJUSTMENT","A315",null,{"$f":"[3]SCH_D1!$Y$223","v":135335},{"$f":"F533-SUM(H533:I533)","v":87324},{"$f":"ROUND(F533*VLOOKUP(D533,ALLOCTABLE_FUNCTIONAL,$H$10,FALSE),0)","v":6293},{"$f":"ROUND(F533*VLOOKUP(D533,ALLOCTABLE_FUNCTIONAL,$I$10,FALSE),0)","v":41718},{"$f":"SUM(G533:I533)","v":135335},{"$f":"F533-J533","v":0}]
[20,null,"ELIMINATE MISCELLANEOUS EXPENSES ADJUSTMENT","A315",null,{"$f":"[3]SCH_D1!$Y$285","v":0},0,0,0,0,0]
[21,null,"RIDER ESM ELIMINATION","A315",null,{"$f":"[3]SCH_D1!$AA$223","v":-9302212},-6002159,-432553,-2867500,-9302212,0]
[22,null,"ELIMINATE DSM","A315",null,{"$f":"[3]SCH_D1!$W$284","v":-130286},-84066,-6058,-40162,-130286,0]
[23,null,"DSM DEFERRAL - ELECTRIC","A315",null,0,0,0,0,0,0]
[24,null,"PENSION ADJUSTMENT","A315",null,{"$f":"[3]SCH_D1!$Y$346","v":-567560},-366212,-26392,-174956,-567560,0]
[25,null,"ELIMINATE MISC EXPENSES","A315",null,{"$f":"[3]SCH_D1!$Y$284","v":-547465},-353246,-25457,-168762,-547465,0]
[26,null,"ELIMINATE MERGER COSTS AND CREDITS","A315",null,null,0,0,0,{"$f":"SUM(G540:I540)","v":0},{"$f":"F540-J540","v":0}]
[27,null,"ANNUALIZE KYPSC MAINT TAX","A315",null,null,0,0,0,0,0]
[28,null,"REMOVE INCENTIVE COMP","A315",null,{"$f":"[3]SCH_D1!$W$346","v":-1580476},-1019786,-73492,-487198,-1580476,0]
[29,null,"CREDIT CARD FEES","A315",null,{"$f":"[3]SCH_D1!$AA$347","v":0},0,0,0,0,0]
[30,null,"ELIMINATE INCENTIVE COMPENSATION ADJUSTMENT","A315",null,{"$f":"[3]SCH_D1!$W$347","v":0},0,0,0,0,0]
[31,null,"AMORTIZATION OF DEFERRAL ASSET","A315",null,null,0,0,0,0,0]
[32,null,"AMORTIZATION OF DEFERRED EXPENSES","A315",null,{"$f":"[3]SCH_D1!$U$347+[3]SCH_D1!$AE$285","v":99449},64169,4624,30656,99449,0]
[33,null,"TOTAL ADMIN. & GENERAL",null," ",{"$f":"SUM(F532:F546)","v":19639682},12672103,913295,6054284,19639682,0]
[34]
[35,null,"TOTAL O & M EXPENSE",null,null,{"$f":"F547+F522+F518+F503+F492+F470+F466+F459","v":209792284},154356566,25891009,29544709,209792284,0]
[]
[{"$f":"co_name","v":"DUKE ENERGY KENTUCKY, INC."},null,null,null,null,null,null,null,null,{"$f":"J1","v":"FR-16(7)(v)-1"}]
[{"$f":"$A$2","v":"FUNCTIONAL ELECTRIC COST OF SERVICE"},null,null,null,null,null,null,null,null,{"$f":"J2","v":"WITNESS RESPONSIBLE:"}]
[{"$f":"case_name","v":"CASE NO: 2019-00271"},null,null,null,null,null,null,null,null,{"$f":"Witness","v":"JAMES E. ZIOLKOWSKI"}]
[{"$f":"data_filing","v":"DATA: 12 MONTHS ACTUAL  & 0 MONTHS ESTIMATED"},null,null,null,null,null,null,null,null,{"$f":"\"PAGE \"&Pages-8&\" OF \"&Pages","v":"PAGE 10 OF 18"}]
[{"$f":"type","v":"TYPE OF FILING: \"X\" ORIGINAL   UPDATED    REVISED  "}]
[]
[]
["LINE",null,null,null,null,"TOTAL","FUNCTIONAL",null,null,"TOTAL","ALL"]
["NO.","DEPRECIATION EXPENSE",null,"ALLO",null,{"$f":"$F$9","v":"ELECTRIC"},{"$f":"G9","v":"PRODUCTION"},"TRANSMISSION","DISTRIBUTION","AT ISSUE","OTHER"]
[null,null,"Schedule 7",null,null,null,3,4,5]
[1,"PRODUCTION DEPRECIATION"]
[2,null,"PRODUCTION DEPRECIATION","P229",null,{"$f":"[3]SCH_D2.24!$V$46","v":37535245},{"$f":"F562-SUM(H562:I562)","v":37535245},{"$f":"ROUND(F562*VLOOKUP(D562,ALLOCTABLE_FUNCTIONAL,$H$10,FALSE),0)","v":0},{"$f":"ROUND(F562*VLOOKUP(D562,ALLOCTABLE_FUNCTIONAL,$I$10,FALSE),0)","v":0},{"$f":"SUM(G562:I562)","v":37535245},{"$f":"F562-J562","v":0}]
[3,null,"  TOTAL PRODUCTION DEPREC EXP.",null,null,{"$f":"SUM(F562:F562)","v":37535245},37535245,0,0,37535245,0]
[4]
[5,"TRANSMISSION DEPRECIATION"]
[6,null,"TRANSMISSION DEPRECIATION","T229",null,{"$f":"[3]SCH_D2.24!$W$46","v":1469491},{"$f":"F566-SUM(H566:I566)","v":0},{"$f":"ROUND(F566*VLOOKUP(D566,ALLOCTABLE_FUNCTIONAL,$H$10,FALSE),0)","v":1469491},{"$f":"ROUND(F566*VLOOKUP(D566,ALLOCTABLE_FUNCTIONAL,$I$10,FALSE),0)","v":0},{"$f":"SUM(G566:I566)","v":1469491},{"$f":"F566-J566","v":0}]
[7,null,"  TOTAL TRANSMISSION DEP. EXP.",null,null,{"$f":"SUM(F566:F566)","v":1469491},0,1469491,0,1469491,0]
[8]
[9,"DISTRIBUTION DEPRECIATION"]
[10,null,"DISTRIBUTION DEPRECIATION","D249",null,{"$f":"[3]SCH_D2.24!$X$46","v":13767842},{"$f":"F570-SUM(H570:I570)","v":0},{"$f":"ROUND(F570*VLOOKUP(D570,ALLOCTABLE_FUNCTIONAL,$H$10,FALSE),0)","v":138},{"$f":"ROUND(F570*VLOOKUP(D570,ALLOCTABLE_FUNCTIONAL,$I$10,FALSE),0)","v":13767704},{"$f":"SUM(G570:I570)","v":13767842},{"$f":"F570-J570","v":0}]
[11,null,"  TOTAL DIST. DEPREC EXP.",null,null,{"$f":"SUM(F570:F570)","v":13767842},0,138,13767704,13767842,0]
[12,null,null,null,null," "]
[13,"GENERAL DEPRECIATION"]
[14,null,"GENERAL DEPRECIATION","G229",null,{"$f":"[3]SCH_D2.24!$Y$46","v":5388657},{"$f":"F574-SUM(H574:I574)","v":4290340},{"$f":"ROUND(F574*VLOOKUP(D574,ALLOCTABLE_FUNCTIONAL,$H$10,FALSE),0)","v":250573},{"$f":"ROUND(F574*VLOOKUP(D574,ALLOCTABLE_FUNCTIONAL,$I$10,FALSE),0)","v":847744},{"$f":"SUM(G574:I574)","v":5388657},{"$f":"F574-J574","v":0}]
[15,null,"  TOTAL GENERAL DEPREC EXP.",null,null,{"$f":"SUM(F574:F574)","v":5388657},4290340,250573,847744,5388657,0]
[16]
[17,"COMMON AND OTHER DEPRECIATION"]
[18,null,"COMMON DEPRECIATION","C229",null,{"$f":"[3]SCH_D2.24!$Z$46","v":36560},{"$f":"F578-SUM(H578:I578)","v":29075},{"$f":"ROUND(F578*VLOOKUP(D578,ALLOCTABLE_FUNCTIONAL,$H$10,FALSE),0)","v":1700},{"$f":"ROUND(F578*VLOOKUP(D578,ALLOCTABLE_FUNCTIONAL,$I$10,FALSE),0)","v":5785},{"$f":"SUM(G578:I578)","v":36560},{"$f":"F578-J578","v":0}]
[19,null,"  TOTAL COM & OTHER DEPREC EXP.",null,null,{"$f":"SUM(F578:F578)","v":36560},29075,1700,5785,36560,0]
[20]
[21]
[22,"TOTAL DEPRECIATION EXPENSE",null,null," ",{"$f":"F579+F575+F571+F567+F563","v":58197795},41854660,1721902,14621233,58197795,0]
[]
[{"$f":"co_name","v":"DUKE ENERGY KENTUCKY, INC."},null,null,null,null,null,null,null,null,{"$f":"J1","v":"FR-16(7)(v)-1"}]
[{"$f":"$A$2","v":"FUNCTIONAL ELECTRIC COST OF SERVICE"},null,null,null,null,null,null,null,null,{"$f":"J2","v":"WITNESS RESPONSIBLE:"}]
[{"$f":"case_name","v":"CASE NO: 2019-00271"},null,null,null,null,null,null,null,null,{"$f":"Witness","v":"JAMES E. ZIOLKOWSKI"}]
[{"$f":"data_filing","v":"DATA: 12 MONTHS ACTUAL  & 0 MONTHS ESTIMATED"},null,null,null,null,null,null,null,null,{"$f":"\"PAGE \"&Pages-7&\" OF \"&Pages","v":"PAGE 11 OF 18"}]
[{"$f":"type","v":"TYPE OF FILING: \"X\" ORIGINAL   UPDATED    REVISED  "}]
[]
[]
["LINE",null,null,null,null,"TOTAL","FUNCTIONAL",null,null,"TOTAL","ALL"]
["NO.","OTHER TAXES & MISC EXPENSES",null,"ALLO",null,{"$f":"$F$9","v":"ELECTRIC"},{"$f":"G9","v":"PRODUCTION"},"TRANSMISSION","DISTRIBUTION","AT ISSUE","OTHER"]
[null,null,"Schedule 8",null,null,null,3,4,5]
[1,"TAXES OTHER THAN INC & REV"]
[2," REAL ESTATE & PROPERTY TAX"]
[3,null,"REAL ESTATE & PROPERTY TAX","NP29",null,{"$f":"'[3]SCH_C2.1 - Forecasted Period'!$G$321+'[3]SCH_C2.1 - Forecasted Period'!$G$319","v":13645092},{"$f":"F596-SUM(H596:I596)","v":7781796},{"$f":"ROUND(F596*VLOOKUP(D596,ALLOCTABLE_FUNCTIONAL,$H$10,FALSE),0)","v":645686},{"$f":"ROUND(F596*VLOOKUP(D596,ALLOCTABLE_FUNCTIONAL,$I$10,FALSE),0)","v":5217610},{"$f":"SUM(G596:I596)","v":13645092},{"$f":"F596-J596","v":0}]
[4,null,"ANNUALIZE PROPERTY TAX","NP29"," ",0,{"$f":"F597-SUM(H597:I597)","v":0},{"$f":"ROUND(F597*VLOOKUP(D597,ALLOCTABLE_FUNCTIONAL,$H$10,FALSE),0)","v":0},{"$f":"ROUND(F597*VLOOKUP(D597,ALLOCTABLE_FUNCTIONAL,$I$10,FALSE),0)","v":0},{"$f":"SUM(G597:I597)","v":0},{"$f":"F597-J597","v":0}]
[5,null,"  TOTAL REAL ESTATE & PROPERTY TAX",null,null,{"$f":"SUM(F596:F597)","v":13645092},7781796,645686,5217610,13645092,0]
[6]
[7," MISCELLANEOUS TAXES"]
[8,null,"PAYROLL ","A315",null,{"$f":"'[3]SCH_C2.1 - Forecasted Period'!$G$326","v":1882313},{"$f":"F601-SUM(H601:I601)","v":1214543},{"$f":"ROUND(F601*VLOOKUP(D601,ALLOCTABLE_FUNCTIONAL,$H$10,FALSE),0)","v":87528},{"$f":"ROUND(F601*VLOOKUP(D601,ALLOCTABLE_FUNCTIONAL,$I$10,FALSE),0)","v":580242},{"$f":"SUM(G601:I601)","v":1882313},{"$f":"F601-J601","v":0}]
[9,null,"ELIMINATE DSM ","A315",null,{"$f":"[3]SCH_D1!$W$292","v":-37033},{"$f":"F602-SUM(H602:I602)","v":-23895},{"$f":"ROUND(F602*VLOOKUP(D602,ALLOCTABLE_FUNCTIONAL,$H$10,FALSE),0)","v":-1722},{"$f":"ROUND(F602*VLOOKUP(D602,ALLOCTABLE_FUNCTIONAL,$I$10,FALSE),0)","v":-11416},{"$f":"SUM(G602:I602)","v":-37033},{"$f":"F602-J602","v":0}]
[10,null,"FRANCHISE & LICENSE","A315",null,0,{"$f":"F603-SUM(H603:I603)","v":0},{"$f":"ROUND(F603*VLOOKUP(D603,ALLOCTABLE_FUNCTIONAL,$H$10,FALSE),0)","v":0},{"$f":"ROUND(F603*VLOOKUP(D603,ALLOCTABLE_FUNCTIONAL,$I$10,FALSE),0)","v":0},{"$f":"SUM(G603:I603)","v":0},{"$f":"F603-J603","v":0}]
[11,null,"ELIMINATE ESM","A315",null,{"$f":"[3]SCH_D1!$AA$230","v":-1001304},{"$f":"F604-SUM(H604:I604)","v":-646081},{"$f":"ROUND(F604*VLOOKUP(D604,ALLOCTABLE_FUNCTIONAL,$H$10,FALSE),0)","v":-46561},{"$f":"ROUND(F604*VLOOKUP(D604,ALLOCTABLE_FUNCTIONAL,$I$10,FALSE),0)","v":-308662},{"$f":"SUM(G604:I604)","v":-1001304},{"$f":"F604-J604","v":0}]
[12,null,"  TOTAL MISCELLANEOUS TAXES",null,null,{"$f":"SUM(F601:F604)","v":843976},544567,39245,260164,843976,0]
[13]
[14," MISCELLANEOUS EXPENSES"]
[15,null,"PSC MAINT. EXP ON INCREASE","K902",null,{"$f":"[3]SCH_C1!$G$22","v":89261},{"$f":"F608-SUM(H608:I608)","v":57594},{"$f":"ROUND(F608*VLOOKUP(D608,ALLOCTABLE_FUNCTIONAL,$H$10,FALSE),0)","v":4151},{"$f":"ROUND(F608*VLOOKUP(D608,ALLOCTABLE_FUNCTIONAL,$I$10,FALSE),0)","v":27516},{"$f":"SUM(G608:I608)","v":89261},{"$f":"F608-J608","v":0}]
[16,null,"RESERVED FOR FUTURE USE",{"$f":"D608","v":"K902"},null,{"$f":"[3]SCH_C1!$P$60","v":0},{"$f":"F609-SUM(H609:I609)","v":0},{"$f":"ROUND(F609*VLOOKUP(D609,ALLOCTABLE_FUNCTIONAL,$H$10,FALSE),0)","v":0},{"$f":"ROUND(F609*VLOOKUP(D609,ALLOCTABLE_FUNCTIONAL,$I$10,FALSE),0)","v":0},{"$f":"SUM(G609:I609)","v":0},{"$f":"F609-J609","v":0}]
[17,null,"  TOTAL MISCELLANEOUS EXPENSES",null,null,{"$f":"SUM(F608:F609)","v":89261},57594,4151,27516,89261,0]
[18]
[19,"TOTAL OTHER TAX & MISC EXPENSE",null,null," ",{"$f":"F605+F598+F610","v":14578329},8383957,689082,5505290,14578329,0]
[20]
[21,"PRELIMINARY SUMMARY"]
[22,null,"TOTAL O&M EXPENSE",null,null,{"$f":"F549","v":209792284},154356566,25891009,29544709,209792284,0]
[23,null,"TOTAL DEPRECIATION EXPENSE",null,null,{"$f":"F582","v":58197795},41854660,1721902,14621233,58197795,0]
[24,null,"TOTAL OTHER TAX & MISC EXPENSE",null,null,{"$f":"F612","v":14578329},{"$f":"G612","v":8383957},{"$f":"H612","v":689082},{"$f":"I612","v":5505290},{"$f":"J612","v":14578329},{"$f":"K324","v":0}]
[25,null,"  TOTAL OPER EXP EXCL INCOME & REV TAX",null,null,{"$f":"SUM(F615:F617)","v":282568408},204595183,28301993,49671232,282568408,0]
[]
[{"$f":"co_name","v":"DUKE ENERGY KENTUCKY, INC."},null,null,null,null,null,null,null,null,{"$f":"J1","v":"FR-16(7)(v)-1"}]
[{"$f":"$A$2","v":"FUNCTIONAL ELECTRIC COST OF SERVICE"},null,null,null,null,null,null,null,null,{"$f":"J2","v":"WITNESS RESPONSIBLE:"}]
[{"$f":"case_name","v":"CASE NO: 2019-00271"},null,null,null,null,null,null,null,null,{"$f":"Witness","v":"JAMES E. ZIOLKOWSKI"}]
[{"$f":"data_filing","v":"DATA: 12 MONTHS ACTUAL  & 0 MONTHS ESTIMATED"},null,null,null,null,null,null,null,null,{"$f":"\"PAGE \"&Pages-6&\" OF \"&Pages","v":"PAGE 12 OF 18"}]
[{"$f":"type","v":"TYPE OF FILING: \"X\" ORIGINAL   UPDATED    REVISED  "}]
[]
[]
["LINE",null,null,null,null,"TOTAL","FUNCTIONAL",null,null,"TOTAL","ALL"]
["NO.","FEDERAL INCOME TAX BASED ON RETURN",null,"ALLO",null,{"$f":"$F$9","v":"ELECTRIC"},{"$f":"G9","v":"PRODUCTION"},"TRANSMISSION","DISTRIBUTION","AT ISSUE","OTHER"]
[null,null,"Schedule 9",null,null,null,3,4,5]
[1,"FEDERAL INCOME TAX DEDUCTIONS"]
[2," AUTOMATIC INTEREST CALCULATION"]
[3,null,"AUTO PROC INTEREST DED","RB99",null,{"$f":"-[3]SCH_E1!$Q$24","v":18775174},{"$f":"F632-SUM(H632:I632)","v":11000130},{"$f":"ROUND(F632*VLOOKUP(D632,ALLOCTABLE_FUNCTIONAL,$H$10,FALSE),0)","v":833993},{"$f":"ROUND(F632*VLOOKUP(D632,ALLOCTABLE_FUNCTIONAL,$I$10,FALSE),0)","v":6941051},{"$f":"SUM(G632:I632)","v":18775174},{"$f":"F632-J632","v":0}]
[4,null,"  TOTAL INTEREST EXPENSE",null,null,{"$f":"F632","v":18775174},{"$f":"G632","v":11000130},{"$f":"H632","v":833993},6941051,18775174,0]
[5]
[6," OTHER DEDUCTIONS"]
[7,null,"DEPREC EXCESS TAX-BOOK","DE49",null,{"$f":"-[3]SCH_E1!$Q$31","v":-13803383},{"$f":"F636-SUM(H636:I636)","v":-9927117},{"$f":"ROUND(F636*VLOOKUP(D636,ALLOCTABLE_FUNCTIONAL,$H$10,FALSE),0)","v":-408442},{"$f":"ROUND(F636*VLOOKUP(D636,ALLOCTABLE_FUNCTIONAL,$I$10,FALSE),0)","v":-3467824},{"$f":"SUM(G636:I636)","v":-13803383},{"$f":"F636-J636","v":0}]
[8,null,"PERMANENT DIFFERENCES","A357",null,{"$f":"-[3]SCH_E1!$Q$27","v":-421236.99999999965},{"$f":"F637-SUM(H637:I637)","v":-271793.99999999965},{"$f":"ROUND(F637*VLOOKUP(D637,ALLOCTABLE_FUNCTIONAL,$H$10,FALSE),0)","v":-19588},{"$f":"ROUND(F637*VLOOKUP(D637,ALLOCTABLE_FUNCTIONAL,$I$10,FALSE),0)","v":-129855},{"$f":"SUM(G637:I637)","v":-421236.99999999965},{"$f":"F637-J637","v":0}]
[9,null,"TEMPORARY DIFFERENCES","DE49",null,{"$f":"-[3]SCH_E1!$Q$36","v":84226157},{"$f":"F638-SUM(H638:I638)","v":60573768},{"$f":"ROUND(F638*VLOOKUP(D638,ALLOCTABLE_FUNCTIONAL,$H$10,FALSE),0)","v":2492252},{"$f":"ROUND(F638*VLOOKUP(D638,ALLOCTABLE_FUNCTIONAL,$I$10,FALSE),0)","v":21160137},{"$f":"SUM(G638:I638)","v":84226157},{"$f":"F638-J638","v":0}]
[10,null,"  TOTAL OTHER DEDUCTIONS",null,null,{"$f":"SUM(F636:F638)","v":70001537},50374857,2064222,17562458,70001537,0]
[11]
[12,"NET DEDUCTIONS AND ADDITIONS",null,null,null,{"$f":"F639+F633","v":88776711},61374987,2898215,24503509,88776711,0]
[13]
[14," FED DEFERRED INCOME TAX (410 & 411)"]
[15,null,"DEFERRED INCOME TAXES - NET","OM39",null,{"$f":"[3]SCH_E1!$Q$130","v":13964732},{"$f":"ROUND(F644*VLOOKUP(D644,ALLOCTABLE_FUNCTIONAL,$G$10,FALSE),0)","v":10274552},{"$f":"ROUND(F644*VLOOKUP(D644,ALLOCTABLE_FUNCTIONAL,$H$10,FALSE),0)","v":1723388},{"$f":"ROUND(F644*VLOOKUP(D644,ALLOCTABLE_FUNCTIONAL,$I$10,FALSE),0)","v":1966653},{"$f":"SUM(G644:I644)","v":13964593},{"$f":"F644-J644","v":139}]
[16,null,"AMORT OF DEFERRED MERGER COST","A357",null,0,{"$f":"ROUND(F645*VLOOKUP(D645,ALLOCTABLE_FUNCTIONAL,$G$10,FALSE),0)","v":0},{"$f":"ROUND(F645*VLOOKUP(D645,ALLOCTABLE_FUNCTIONAL,$H$10,FALSE),0)","v":0},{"$f":"ROUND(F645*VLOOKUP(D645,ALLOCTABLE_FUNCTIONAL,$I$10,FALSE),0)","v":0},{"$f":"SUM(G645:I645)","v":0},{"$f":"F645-J645","v":0}]
[17,null,"DIT ADJUSTMENT - S/L DEPRECIATION","DE49",null,0,{"$f":"ROUND(F646*VLOOKUP(D646,ALLOCTABLE_FUNCTIONAL,$G$10,FALSE),0)","v":0},{"$f":"ROUND(F646*VLOOKUP(D646,ALLOCTABLE_FUNCTIONAL,$H$10,FALSE),0)","v":0},{"$f":"ROUND(F646*VLOOKUP(D646,ALLOCTABLE_FUNCTIONAL,$I$10,FALSE),0)","v":0},{"$f":"SUM(G646:I646)","v":0},{"$f":"F646-J646","v":0}]
[18,null,"DIT ADJUSTMENT - ARAM","K201",null,{"$f":"[3]SCH_E1!$Q$131","v":-107523},{"$f":"ROUND(F647*VLOOKUP(D647,ALLOCTABLE_FUNCTIONAL,$G$10,FALSE),0)","v":-107523},{"$f":"ROUND(F647*VLOOKUP(D647,ALLOCTABLE_FUNCTIONAL,$H$10,FALSE),0)","v":0},{"$f":"ROUND(F647*VLOOKUP(D647,ALLOCTABLE_FUNCTIONAL,$I$10,FALSE),0)","v":0},{"$f":"SUM(G647:I647)","v":-107523},{"$f":"F647-J647","v":0}]
[19,null,"DIT ADJUSTMENT - AMORT OF EXCESS DEF TAXES","A357",null,{"$f":"[3]SCH_E1!$Q$132","v":-3693881},{"$f":"ROUND(F648*VLOOKUP(D648,ALLOCTABLE_FUNCTIONAL,$G$10,FALSE),0)","v":-2383403},{"$f":"ROUND(F648*VLOOKUP(D648,ALLOCTABLE_FUNCTIONAL,$H$10,FALSE),0)","v":-171765},{"$f":"ROUND(F648*VLOOKUP(D648,ALLOCTABLE_FUNCTIONAL,$I$10,FALSE),0)","v":-1138713},{"$f":"SUM(G648:I648)","v":-3693881},{"$f":"F648-J648","v":0}]
[20,null,"  TOTAL FED DEF IT (410 & 411)",null,null,{"$f":"SUM(F644:F648)","v":10163328},7783626,1551623,827940,10163189,139]
[21]
[22," AMORT INV TAX CREDIT"]
[23,null,"AMORTIZE ITC","NP29",null,{"$f":"-[3]SCH_E1!$Q$136","v":428},{"$f":"F652-SUM(H652:I652)","v":244},{"$f":"ROUND(F652*VLOOKUP(D652,ALLOCTABLE_FUNCTIONAL,$H$10,FALSE),0)","v":20},{"$f":"ROUND(F652*VLOOKUP(D652,ALLOCTABLE_FUNCTIONAL,$I$10,FALSE),0)","v":164},{"$f":"SUM(G652:I652)","v":428},{"$f":"F652-J652","v":0}]
[24,null,"  TOTAL AMORTIZED ITC",null,null,{"$f":"SUM(F652:F652)","v":428},244,20,164,428,0]
[25]
[26," OTHER FEDERAL TAX CREDITS"]
[27,null,"FUEL TAX CREDIT","K301",null,0,{"$f":"ROUND(F656*VLOOKUP(D656,ALLOCTABLE_FUNCTIONAL,$G$10,FALSE),0)","v":0},{"$f":"ROUND(F656*VLOOKUP(D656,ALLOCTABLE_FUNCTIONAL,$H$10,FALSE),0)","v":0},{"$f":"ROUND(F656*VLOOKUP(D656,ALLOCTABLE_FUNCTIONAL,$I$10,FALSE),0)","v":0},{"$f":"SUM(G656:I656)","v":0},{"$f":"F656-J656","v":0}]
[28,null,"R&D CREDIT - SECTION 41","A315",null,0,{"$f":"ROUND(F657*VLOOKUP(D657,ALLOCTABLE_FUNCTIONAL,$G$10,FALSE),0)","v":0},{"$f":"ROUND(F657*VLOOKUP(D657,ALLOCTABLE_FUNCTIONAL,$H$10,FALSE),0)","v":0},{"$f":"ROUND(F657*VLOOKUP(D657,ALLOCTABLE_FUNCTIONAL,$I$10,FALSE),0)","v":0},{"$f":"SUM(G657:I657)","v":0},{"$f":"F657-J657","v":0}]
[29,null,"  TOTAL OTHER FEDERAL TAX CREDITS",null,null,{"$f":"SUM(F656:F657)","v":0},0,0,0,0,0]
[30]
[31,"PRELIMINARY SUMMARY"]
[32,null,"TOTAL FED DEF IT (410 & 411)",null,null,{"$f":"F649","v":10163328},7783626,1551623,827940,10163189,{"$f":"K649","v":139}]
[33,null,"TOTAL AMORTIZED ITC & OTHER FEDERAL TAX CREDITS",null,null,{"$f":"-F653-F658","v":-428},{"$f":"-G653-G658","v":-244},-20,-164,-428,0]
[34,null,"  TOTAL FEDERAL TAX ADJUSTMENTS",null,null,{"$f":"SUM(F661:F662)","v":10162900},7783382,1551603,827776,10162761,139]
[35]
[36,"FEDERAL INCOME TAX COMPUTATION"]
[37,null,"RETURN ON RATE BASE",null,null,{"$f":"F433","v":63514771},{"$f":"G433","v":37212475},{"$f":"H433","v":2821326},{"$f":"I433","v":23480970},{"$f":"J433","v":63514771},{"$f":"F666-J666","v":0}]
[38,null,"NET DEDUCTIONS AND ADDITIONS",null,null,{"$f":"-F641","v":-88776711},{"$f":"-G641","v":-61374987},{"$f":"-H641","v":-2898215},{"$f":"-I641","v":-24503509},{"$f":"-J641","v":-88776711},{"$f":"F667-J667","v":0}]
[39,null,"TOTAL FEDERAL TAX ADJUSTMENTS",null,null,{"$f":"F663","v":10162900},{"$f":"G663","v":7783382},{"$f":"H663","v":1551603},{"$f":"I663","v":827776},{"$f":"J663","v":10162761},{"$f":"F668-J668","v":139}]
[40,null,"TOTAL STATE PROV DEF IT (410 & 411)",null,null,{"$f":"F707","v":3665560},{"$f":"G707","v":2365129},{"$f":"H707","v":170449},{"$f":"I707","v":1129982},{"$f":"J707","v":3665560},{"$f":"F669-J669","v":0}]
[41,null,"RESERVED",null,null,null,{"$f":"G24","v":0},{"$f":"H24","v":0},{"$f":"I24","v":0},{"$f":"J24","v":0},{"$f":"F670-J670","v":0}]
[42,null,"  BASE FOR FIT COMPUATION",null,null,{"$f":"SUM(F666:F670)","v":-11433480},{"$f":"SUM(G666:G670)","v":-14014001},1645163,935219,-11433619,139]
[43]
[44,null,"FIT FACTOR K190/(1-K190)",null,null,{"$f":"ROUND(F815/(1-F815),9)","v":0.26582278500000001},{"$f":"ROUND(G815/(1-G815),9)","v":0.26582278500000001},{"$f":"ROUND(H815/(1-H815),9)","v":0.26582278500000001},{"$f":"ROUND(I815/(1-I815),9)","v":0.26582278500000001},null,{"$f":"ROUND(K815/(1-K815),9)","v":0.26582278500000001}]
[45,null,"PRELIM FED INCOME TAX","Rounding added",null,{"$f":"ROUND(F673*F671,0)","v":-3039279},{"$f":"ROUND(G671*G673,0)","v":-3725241},{"$f":"ROUND(H671*H673,0)","v":437322},{"$f":"ROUND(I671*I673,0)","v":248603},{"$f":"SUM(G674:I674)","v":-3039316},{"$f":"F674-J674","v":37}]
[46,null,"TOTAL FEDERAL TAX ADJUSTMENTS",null,null,{"$f":"F663","v":10162900},{"$f":"G663","v":7783382},{"$f":"H663","v":1551603},{"$f":"I663","v":827776},{"$f":"J663","v":10162761},{"$f":"F675-J675","v":139}]
[47,null,"  NET FED INCOME TAX ALLOWABLE",null,null,{"$f":"SUM(F674:F675)","v":7123621},4058141,1988925,1076379,7123445,176]
[48]
[49,"INCOME TAX BASED ON RETURN"]
[50,"FEDERAL INCOME TAX PAYABLE"]
[51,null,"PRELIM FEDERAL INCOME TAX",null,null,{"$f":"F674","v":-3039279},-3725241,437322,248603,-3039316,37]
[53,null,"  NET FED INCOME TAX PAYABLE",null,null,{"$f":"SUM(F680:F680)","v":-3039279},-3725241,437322,248603,-3039316,37]
[]
[{"$f":"co_name","v":"DUKE ENERGY KENTUCKY, INC."},null,null,null,null,null,null,null,null,{"$f":"J1","v":"FR-16(7)(v)-1"}]
[{"$f":"$A$2","v":"FUNCTIONAL ELECTRIC COST OF SERVICE"},null,null,null,null,null,null,null,null,{"$f":"J2","v":"WITNESS RESPONSIBLE:"}]
[{"$f":"case_name","v":"CASE NO: 2019-00271"},null,null,null,null,null,null,null,null,{"$f":"Witness","v":"JAMES E. ZIOLKOWSKI"}]
[{"$f":"data_filing","v":"DATA: 12 MONTHS ACTUAL  & 0 MONTHS ESTIMATED"},null,null,null,null,null,null,null,null,{"$f":"\"PAGE \"&Pages-5&\" OF \"&Pages","v":"PAGE 13 OF 18"}]
[{"$f":"type","v":"TYPE OF FILING: \"X\" ORIGINAL   UPDATED    REVISED  "}]
[]
[]
["LINE",null,null,null,null,"TOTAL","FUNCTIONAL",null,null,"TOTAL","ALL"]
["NO.","STATE INCOME TAX BASED ON RETURN",null,"Allo",null,{"$f":"$F$9","v":"ELECTRIC"},"PRODUCTION","STORAGE","DISTRIBUTION","AT ISSUE","OTHER"]
[null,null,"Schedule 9.1",null,null,null,{"$f":"$G$10","v":3},{"$f":"$H$10","v":4},{"$f":"$I$10","v":5}]
[1,"DEDUCTIONS IN ADDITION TO Y871"]
[2,"KY TAXABLE INCOME ADJUSTMENT",null,"NP29",null,{"$f":"-[3]SCH_E1!$Q$70","v":8555793},{"$f":"ROUND(F694*VLOOKUP(D694,ALLOCTABLE_FUNCTIONAL,$G$10,FALSE),0)","v":4879369},{"$f":"ROUND(F694*VLOOKUP(D694,ALLOCTABLE_FUNCTIONAL,$H$10,FALSE),0)","v":404860},{"$f":"ROUND(F694*VLOOKUP(D694,ALLOCTABLE_FUNCTIONAL,$I$10,FALSE),0)","v":3271564},{"$f":"SUM(G694:I694)","v":8555793},{"$f":"F694-J694","v":0}]
[3,"RESERVED FOR FUTURE USE",null,"NP29",null,null,{"$f":"ROUND(F695*VLOOKUP(D695,ALLOCTABLE_FUNCTIONAL,$G$10,FALSE),0)","v":0},{"$f":"ROUND(F695*VLOOKUP(D695,ALLOCTABLE_FUNCTIONAL,$H$10,FALSE),0)","v":0},{"$f":"ROUND(F695*VLOOKUP(D695,ALLOCTABLE_FUNCTIONAL,$I$10,FALSE),0)","v":0},{"$f":"SUM(G695:I695)","v":0},{"$f":"F695-J695","v":0}]
[4,"  DEDUCTIONS IN ADD TO Y871",null,null,null,{"$f":"SUM(F694:F695)","v":8555793},4879369,404860,3271564,8555793,0]
[5]
[6,"STATE INCOME TAX ADJUSTMENTS"]
[7,"STATE PROV DEF INC TAX (410 & 411)"]
[8,"OTHER DEFERRED INCOME TAXES - NET",null,"A357",null,{"$f":"[3]SCH_E1!$Q$114","v":3665560},{"$f":"F700-SUM(H700:I700)","v":2365129},{"$f":"ROUND(F700*VLOOKUP(D700,ALLOCTABLE_FUNCTIONAL,$H$10,FALSE),0)","v":170449},{"$f":"ROUND(F700*VLOOKUP(D700,ALLOCTABLE_FUNCTIONAL,$I$10,FALSE),0)","v":1129982},{"$f":"SUM(G700:I700)","v":3665560},{"$f":"F700-J700","v":0}]
[9,"  TOT STATE PROV DEF IT (410 & 411)",null,null,null,{"$f":"SUM(F700)","v":3665560},2365129,170449,1129982,3665560,0]
[10]
[11,"OTHER SIT ADJUSTMENTS"]
[12,"CURRENT YEAR PAYABLE ADJUSTMENT",null,"NP29",null,0,{"$f":"ROUND(F704*VLOOKUP(D704,ALLOCTABLE_FUNCTIONAL,$G$10,FALSE),0)","v":0},{"$f":"ROUND(F704*VLOOKUP(D704,ALLOCTABLE_FUNCTIONAL,$H$10,FALSE),0)","v":0},{"$f":"ROUND(F704*VLOOKUP(D704,ALLOCTABLE_FUNCTIONAL,$I$10,FALSE),0)","v":0},{"$f":"SUM(G704:I704)","v":0},{"$f":"F704-J704","v":0}]
[13,"  OTHER SIT ADJUSMENTS",null,null,null,{"$f":"SUM(F704)","v":0},0,0,0,0,0]
[14]
[15,"TOTAL STATE INC TAX ADJUSTMENT",null,null,null,{"$f":"F705+F701","v":3665560},{"$f":"G705+G701","v":2365129},170449,1129982,3665560,0]
[16]
[17,"INCOME TAX BASED ON RETURN"]
[18,"SUMMARY OF SIT CALCULATION"]
[19,"RETURN ON RATE BASE",null,null,null,{"$f":"F433","v":63514771},37212475,2821326,23480970,63514771,0]
[20,"NET FED INCOME TAX ALLOWABLE",null,null,null,{"$f":"F676","v":7123621},{"$f":"G676","v":4058141},1988925,1076379,7123445,176]
[21,"NET FED. DED. AND ADDITIONS",null,null,null,{"$f":"-F641","v":-88776711},{"$f":"-G641","v":-61374987},-2898215,-24503509,-88776711,0]
[22,"DEDUCTIONS IN ADD TO Y871",null,null,null,{"$f":"-F696","v":-8555793},-4879369,-404860,-3271564,-8555793,0]
[23,"RESERVED",null,null,null,{"$f":"F24","v":0},0,0,0,0,0]
[24,"TOTAL STATE INC TAX ADJ",null,null,null,{"$f":"F707","v":3665560},{"$f":"G707","v":2365129},170449,1129982,3665560,0]
[25,"  BASE FOR SIT COMPUTATION",null,null,null,{"$f":"SUM(F711:F716)","v":-23028552},-22618611,1677625,-2087742,-23028728,176]
[26]
[27,"SIT FACTOR K192/(1-K192)",null,null,null,{"$f":"ROUND(SIT/(1-SIT),8)","v":5.2282660000000002E-2},{"$f":"ROUND(SIT/(1-SIT),8)","v":5.2282660000000002E-2},5.2282660000000002E-2,5.2282660000000002E-2,5.2282660000000002E-2,5.2282660000000002E-2]
[28,"PRELIMINARY STATE INCOME TAX",null,"Rounding added",null,{"$f":"ROUND(F717*F719,0)","v":-1203994},{"$f":"ROUND(G717*G719,0)","v":-1182561},{"$f":"ROUND(H717*H719,0)","v":87711},{"$f":"ROUND(I717*I719,0)","v":-109153},{"$f":"SUM(G720:I720)","v":-1204003},{"$f":"F720-J720","v":9}]
[29,"TOTAL STATE INCOME TAX ADJ.",null,null,null,{"$f":"F707","v":3665560},{"$f":"G707","v":2365129},{"$f":"H707","v":170449},{"$f":"I707","v":1129982},{"$f":"SUM(G721:I721)","v":3665560},{"$f":"F721-J721","v":0}]
[30,"  NET STATE INC TAX ALLOWABLE",null,null,null,{"$f":"F721+F720","v":2461566},1182568,258160,1020829,2461557,9]
[31]
[32,"STATE INCOME TAX PAYABLE"]
[33,"PRELIMINARY STATE INCOME TAX",null,null,null,{"$f":"F720","v":-1203994},-1182561,87711,-109153,-1204003,9]
[34,"OTHER SIT ADJUSTMENTS",null,null,null,{"$f":"F705","v":0},0,0,0,0,0]
[35,"  NET STATE INCOME TAX PAYABLE",null,null,null,{"$f":"F725+F726","v":-1203994},-1182561,87711,-109153,-1204003,9]
[36]
[37,"COMPOSITE TAX RATE",null,null,null,{"$f":"(SIT*(1-FIT))+((1-SIT)*(1-FIT)*RevTax)+FIT","v":0.24925115},{"$f":"(SIT*(1-FIT))+((1-SIT)*(1-FIT)*RevTax)+FIT","v":0.24925115},0.24925115,0.24925115,0.24925115,0.24925115]
[]
[{"$f":"co_name","v":"DUKE ENERGY KENTUCKY, INC."},null,null,null,null,null,null,null,null,{"$f":"J1","v":"FR-16(7)(v)-1"}]
[{"$f":"$A$2","v":"FUNCTIONAL ELECTRIC COST OF SERVICE"},null,null,null,null,null,null,null,null,{"$f":"J2","v":"WITNESS RESPONSIBLE:"}]
[{"$f":"case_name","v":"CASE NO: 2019-00271"},null,null,null,null,null,null,null,null,{"$f":"Witness","v":"JAMES E. ZIOLKOWSKI"}]
[{"$f":"data_filing","v":"DATA: 12 MONTHS ACTUAL  & 0 MONTHS ESTIMATED"},null,null,null,null,null,null,null,null,{"$f":"\"PAGE \"&Pages-4&\" OF \"&Pages","v":"PAGE 14 OF 18"}]
[{"$f":"type","v":"TYPE OF FILING: \"X\" ORIGINAL   UPDATED    REVISED  "}]
[]
[]
["LINE",null,null,null,null,"TOTAL","FUNCTIONAL",null,null,"TOTAL","ALL"]
["NO.","COST OF SERVICE COMPUTATION",null,"ALLO",null,{"$f":"$F$9","v":"ELECTRIC"},{"$f":"G9","v":"PRODUCTION"},"TRANSMISSION","DISTRIBUTION","AT ISSUE","OTHER"]
[null,null,"Schedule 10",null,null,null,3,4,5]
[1,"OTHER OPERATING REVENUES"]
[2,null,"MISC SERVICE REVENUE","D249",null,{"$f":"319904-67392","v":252512},{"$f":"ROUND(F742*VLOOKUP(D742,ALLOCTABLE_FUNCTIONAL,$G$10,FALSE),0)","v":0},{"$f":"ROUND(F742*VLOOKUP(D742,ALLOCTABLE_FUNCTIONAL,$H$10,FALSE),0)","v":3},{"$f":"ROUND(F742*VLOOKUP(D742,ALLOCTABLE_FUNCTIONAL,$I$10,FALSE),0)","v":252509},{"$f":"SUM(G742:I742)","v":252512},{"$f":"F742-J742","v":0}]
[3,null,"INTERDEPARTMENTAL",{"$f":"D608","v":"K902"},null,0,0,0,0,0,{"$f":"F743-J743","v":0}]
[4,null,"POLE & LINE ATTACHMENTS","D249",null,215037,0,2,215035,215037,0]
[5,null,"RENTS","D249",null,1058004,0,11,1057993,1058004,0]
[6,null,"TRANSMISSION CHARGE PTP","T229",null,144996,0,144996,0,{"$f":"SUM(G746:I746)","v":144996},{"$f":"F746-J746","v":0}]
[7,null,"PJM REACTIVE REVENUE","K401",null,0,0,0,0,{"$f":"SUM(G747:I747)","v":0},{"$f":"F747-J747","v":0}]
[8,null,"OTHER TRANSMISSION REVENUES","T229",null,24504,0,24504,0,{"$f":"SUM(G748:I748)","v":24504},{"$f":"F748-J748","v":0}]
[9,null,"FIXED BILL PREMIUM",{"$f":"D608","v":"K902"},null,null,0,0,0,0,0]
[10,null,"  TOTAL OTHER OPERATING REVS",null,null,{"$f":"SUM(F742:F749)","v":1695053},0,169516,1525537,1695053,0]
[11]
[12,"COST OF SERVICE COMPUTATION"]
[13,null,"TOTAL OP EXP EXC INC & REV TAX",null,null,{"$f":"F618","v":282568408},{"$f":"G618","v":204595183},{"$f":"H618","v":28301993},{"$f":"I618","v":49671232},{"$f":"SUM(G753:I753)","v":282568408},{"$f":"F753-J753","v":0}]
[14,null,"RETURN ON RATE BASE",null,null,{"$f":"F433","v":63514771},{"$f":"G433","v":37212475},{"$f":"H433","v":2821326},{"$f":"I433","v":23480970},{"$f":"SUM(G754:I754)","v":63514771},{"$f":"F754-J754","v":0}]
[15,null,"NET FED INCOME TAX ALLOWABLE",null,null,{"$f":"F676","v":7123621},{"$f":"G676","v":4058141},{"$f":"H676","v":1988925},{"$f":"I676","v":1076379},{"$f":"SUM(G755:I755)","v":7123445},{"$f":"F755-J755","v":176}]
[16,null,"NET STATE INCOME TAX ALLOWABLE",null,null,{"$f":"F722","v":2461566},{"$f":"G722","v":1182568},{"$f":"H722","v":258160},{"$f":"I722","v":1020829},{"$f":"SUM(G756:I756)","v":2461557},{"$f":"F756-J756","v":9}]
[17,null,"TOTAL OTHER OPERATING REVENUES",null,null,{"$f":"-F750","v":-1695053},{"$f":"-G750","v":0},{"$f":"-H750","v":-169516},{"$f":"-I750","v":-1525537},{"$f":"SUM(G757:I757)","v":-1695053},{"$f":"F757-J757","v":0}]
[18,null,"  SUBTOTAL B",null,null,{"$f":"SUM(F752:F757)","v":353973313},{"$f":"SUM(G752:G757)","v":247048367},{"$f":"SUM(H752:H757)","v":33200888},{"$f":"SUM(I752:I757)","v":73723873},{"$f":"SUM(J752:J757)","v":353973128},{"$f":"J758-F758","v":-185}]
[19]
[20,null,"TOTAL OTHER OPERATING REVENUES",null,null,{"$f":"-F757","v":1695053},0,169516,1525537,1695053,0]
[21,null,"LESS: REVS EXCL FROM REV TAX CALC",null,null,{"$f":"'FR-16(7)(v)-4 PROD Energy'!F989","v":0},{"$f":"G989","v":0},{"$f":"H989","v":0},{"$f":"I989","v":0},{"$f":"SUM(G761:I761)","v":0},{"$f":"F761-J761","v":0}]
[22,null,"OTHER OPERATING REVS TO BE TAXED",null,null,{"$f":"F760-F761","v":1695053},0,169516,1525537,1695053,0]
[23]
[24,null,"REVENUE TAX FACTOR",null,null,{"$f":"ROUND(F817/(1-F817),8)","v":0},0,0,0,0,0]
[25,null,"REVENUE TAX ON OTHER OPER. REVS",null,null,{"$f":"ROUND(F764*F762,0)","v":0},{"$f":"ROUND(G764*G762,0)","v":0},{"$f":"ROUND(H764*H762,0)","v":0},{"$f":"ROUND(I764*I762,0)","v":0},{"$f":"SUM(G765:I765)","v":0},{"$f":"ROUND(K764*K762,0)","v":0}]
[26,null,"REVENUE TAX ON COST OF SERVICE",null,null,{"$f":"ROUND(F764*F758,0)","v":0},{"$f":"ROUND(G764*G758,0)","v":0},{"$f":"ROUND(H764*H758,0)","v":0},{"$f":"ROUND(I764*I758,0)","v":0},{"$f":"SUM(G766:I766)","v":0},{"$f":"ROUND(K764*K758,0)","v":0}]
[27,null,"TOTAL REVENUE TAX",null,null,{"$f":"F766+F765","v":0},0,0,0,0,0]
[28]
[29,null,"RESERVED",null,null,{"$f":"F24","v":0},0,0,0,0,0]
[30,null,"  TOTAL ELECTRIC COST OF SERVICE",null,null,{"$f":"F769+F767+F758","v":353973313},{"$f":"G769+G767+G758","v":247048367},33200888,73723873,353973128,-185]
[31]
[32,"PROPOSED REVENUES",null,null,null,{"$f":"F868","v":355094168},{"$f":"G868","v":229117410},{"$f":"H868","v":16511879},{"$f":"I868","v":109464879},{"$f":"SUM(G772:I772)","v":355094168},{"$f":"F772-J772","v":0}]
[33,"TOTAL ELECTRIC COST OF SERVICE",null,null,null,{"$f":"-F770","v":-353973313},{"$f":"-G770","v":-247048367},{"$f":"-H770","v":-33200888},{"$f":"-I770","v":-73723873},{"$f":"SUM(G773:I773)","v":-353973128},{"$f":"F773-J773","v":-185}]
[34,"EXCESS REVENUES",null,null,null,{"$f":"F773+F772","v":1120855},{"$f":"G773+G772","v":-17930957},{"$f":"H773+H772","v":-16689009},{"$f":"I773+I772","v":35741006},{"$f":"SUM(G774:I774)","v":1121040},{"$f":"F774-J774","v":-185}]
[35,"COMPOSITE TAX RATE",null,null,null,{"$f":"F729","v":0.24925115},0.24925115,0.24925115,0.24925115,0.24925115,0.24925115]
[36,"EXCESS TAX",null,null,null,{"$f":"ROUND(F775*F774,0)","v":279374},{"$f":"F776-H776-I776","v":-4469358},{"$f":"ROUND(H775*H774,0)","v":-4159755},{"$f":"ROUND(I775*I774,0)","v":8908487},{"$f":"SUM(G776:I776)","v":279374},{"$f":"F776-J776","v":0}]
[37,"EXCESS RETURN",null,null,null,{"$f":"F774-F776","v":841481},{"$f":"G774-G776","v":-13461599},{"$f":"H774-H776","v":-12529254},{"$f":"I774-I776","v":26832519},{"$f":"SUM(G777:I777)","v":841666},{"$f":"F777-J777","v":-185}]
[]
[{"$f":"co_name","v":"DUKE ENERGY KENTUCKY, INC."},null,null,null,null,null,null,null,null,{"$f":"J1","v":"FR-16(7)(v)-1"}]
[{"$f":"$A$2","v":"FUNCTIONAL ELECTRIC COST OF SERVICE"},null,null,null,null,null,null,null,null,{"$f":"J2","v":"WITNESS RESPONSIBLE:"}]
[{"$f":"case_name","v":"CASE NO: 2019-00271"},null,null,null,null,null,null,null,null,{"$f":"Witness","v":"JAMES E. ZIOLKOWSKI"}]
[{"$f":"data_filing","v":"DATA: 12 MONTHS ACTUAL  & 0 MONTHS ESTIMATED"},null,null,null,null,null,null,null,null,{"$f":"\"PAGE \"&Pages-3&\" OF \"&Pages","v":"PAGE 15 OF 18"}]
[{"$f":"type","v":"TYPE OF FILING: \"X\" ORIGINAL   UPDATED    REVISED  "}]
[]
[]
["LINE",null,null,null,null,"TOTAL","FUNCTIONAL",null,null,"TOTAL","ALL"]
["NO.","ROR, TAX RATES & SPEC FACTORS",null,"ALLO",null,{"$f":"$F$9","v":"ELECTRIC"},{"$f":"G9","v":"PRODUCTION"},"TRANSMISSION","DISTRIBUTION","AT ISSUE","OTHER"]
[null,null,"Schedule 11",null,null,null,3,4,5]
[1,"RATE OF RETURN"]
[2," CAPITALIZATION AMOUNTS",null,null,null,null,"RATIO"]
[3,null,"LONG TERM DEBT",null,null,{"$f":"'[3]SCH_J1 - Forecast'!$G$18","v":665948506},{"$f":"'[3]SCH_J1 - Forecast'!$I$18","v":0.45931},{"$f":"IF(TotalCap=0,0,1-SUM(G792:G795))","v":0.45931}]
[4,null,"PREFERRED STOCK",null,null,0,{"$f":"IF(TotalCap=0,0,ROUND(F792/TotalCap,5))","v":0}]
[5,null,"COMMON STOCK",null,null,{"$f":"'[3]SCH_J1 - Forecast'!$G$17","v":699348680},{"$f":"'[3]SCH_J1 - Forecast'!$I$17","v":0.48233999999999999}]
[6,null,"SHORT TERM DEBT",null,null,{"$f":"'[3]SCH_J1 - Forecast'!$G$19","v":84600060},{"$f":"'[3]SCH_J1 - Forecast'!$I$19","v":5.8349999999999999E-2}]
[7,null,"UNAMORTIZED DISCOUNT",null,null,0,{"$f":"IF(TotalCap=0,0,ROUND(F795/TotalCap,5))","v":0}]
[8,null,"  TOTAL",null,null,{"$f":"SUM(F790:F795)","v":1449897246},{"$f":"SUM(G791:G795)","v":1}]
[9]
[10," COST OF CAPITAL"]
[11,null,"LONG TERM DEBT",null,null,{"$f":"'[3]SCH_J1 - Forecast'!$K$18","v":4.0730000000000002E-2}]
[12,null,"PREFERRED STOCK",null,null,0]
[13,null,"COMMON STOCK",null,null,{"$f":"'[3]SCH_J1 - Forecast'!$K$17","v":9.8000000000000004E-2}]
[14,null,"SHORT TERM DEBT",null,null,{"$f":"'[3]SCH_J1 - Forecast'!$K$19","v":1.9369999999999998E-2}]
[15,null,"UNAMORTIZED DISCOUNT",null,null,0]
[16]
[17," WEIGHTED COST OF CAPITAL"]
[18,null,"LONG TERM DEBT",null,null,{"$f":"ROUND(G791*F799,5)","v":1.8710000000000001E-2}]
[19,null,"PREFERRED STOCK",null,null,{"$f":"ROUND(G792*F800,5)","v":0}]
[20,null,"COMMON STOCK",null,null,{"$f":"ROUND(G793*F801,5)","v":4.727E-2}]
[21,null,"SHORT TERM DEBT",null,null,{"$f":"ROUND(G794*F802,5)","v":1.1299999999999999E-3}]
[22,null,"UNAMORTIZED DISCOUNT",null,null,{"$f":"ROUND(G795*F803,5)","v":0}]
[23,null,"  TOT RATE OF RETURN ALLOWABLE",null,null,{"$f":"SUM(F806:F810)","v":6.7110000000000003E-2}]
[24]
[25,"TAX RATES AND SPECIAL FACTORS"]
[26,null,"SHORT TERM DEBT COST",null,null,0,{"$f":"F814","v":0},{"$f":"F814","v":0},{"$f":"F814","v":0},{"$f":"F814","v":0},{"$f":"F814","v":0}]
[27,null,"FEDERAL INCOME TAX RATE",null,null,{"$f":"[3]!FIT","v":0.21},{"$f":"FIT","v":0.21},{"$f":"FIT","v":0.21},{"$f":"FIT","v":0.21},{"$f":"FIT","v":0.21},{"$f":"FIT","v":0.21}]
[28,null,"STATE INCOME TAX RATE",null,{"$f":"F719","v":5.2282660000000002E-2},{"$f":"[3]!KPSC*0.9937","v":4.9685000000000007E-2},{"$f":"SIT","v":4.9685000000000007E-2},{"$f":"SIT","v":4.9685000000000007E-2},{"$f":"SIT","v":4.9685000000000007E-2},{"$f":"SIT","v":4.9685000000000007E-2},{"$f":"SIT","v":4.9685000000000007E-2}]
[29,null,"REVENUE TAX RATE",null,null,0,{"$f":"RevTax","v":0},{"$f":"RevTax","v":0},{"$f":"RevTax","v":0},{"$f":"RevTax","v":0},{"$f":"RevTax","v":0}]
[]
[{"$f":"co_name","v":"DUKE ENERGY KENTUCKY, INC."},null,null,null,null,null,null,null,null,{"$f":"J1","v":"FR-16(7)(v)-1"}]
[{"$f":"$A$2","v":"FUNCTIONAL ELECTRIC COST OF SERVICE"},null,null,null,null,null,null,null,null,{"$f":"J2","v":"WITNESS RESPONSIBLE:"}]
[{"$f":"case_name","v":"CASE NO: 2019-00271"},null,null,null,null,null,null,null,null,{"$f":"Witness","v":"JAMES E. ZIOLKOWSKI"}]
[{"$f":"data_filing","v":"DATA: 12 MONTHS ACTUAL  & 0 MONTHS ESTIMATED"},null,null,null,null,null,null,null,null,{"$f":"\"PAGE \"&Pages-2&\" OF \"&Pages","v":"PAGE 16 OF 18"}]
[{"$f":"type","v":"TYPE OF FILING: \"X\" ORIGINAL   UPDATED    REVISED  "}]
[]
[]
["LINE",null,null,null,null,"TOTAL","FUNCTIONAL",null,null,"TOTAL","ALL"]
["NO.","ALLOCATORS",null,"SOURCE","ALLO",{"$f":"$F$9","v":"ELECTRIC"},{"$f":"G9","v":"PRODUCTION"},"TRANSMISSION","DISTRIBUTION","AT ISSUE","OTHER"]
[null,null,"Schedule 12",null,1,2,3,4,5]
[1,"DEMAND ENERGY & SPEC. ASSIGN"]
[2,null,"TOTAL KW (12 COIN PEAK) - PRODUCTION","External",null,{"$f":"'WP FR-16(7)(v)-KW & KWH @Gen'!D38","v":717751},{"$f":"'WP FR-16(7)(v)-KW & KWH @Gen'!D38","v":717751},0,0,{"$f":"SUM(G830:I830)","v":717751},{"$f":"F830-J830","v":0}]
[3,null,"RATIO TO TOTAL ELECTRIC",null,"K201",1,{"$f":"ROUND(G830/(G830+H830+I830),5)","v":1},{"$f":"ROUND(H830/(G830+H830+I830),5)","v":0},0,{"$f":"SUM(G831:I831)","v":1},{"$f":"F831-J831","v":0}]
[4,null,"TOTAL KW (12 COIN PEAK) - TRANSMISSION","External",null,{"$f":"'WP FR-16(7)(v)-KW & KWH @Gen'!D38","v":717751},0,{"$f":"'WP FR-16(7)(v)-KW & KWH @Gen'!D38","v":717751},0,{"$f":"SUM(G832:I832)","v":717751},{"$f":"F832-J832","v":0}]
[5,null,"RATIO TO TOTAL ELECTRIC",null,"K202",1,{"$f":"ROUND(G832/(G832+H832+I832),5)","v":0},{"$f":"ROUND(H832/(G832+H832+I832),5)","v":1},0,{"$f":"SUM(G833:I833)","v":1},{"$f":"F833-J833","v":0}]
[6,null,"DISTRIBUTION KW (NON-COIN PEAK) ","External",null,{"$f":"'WP FR-16(7)(v)-KW & KWH @Dist'!D39","v":1514633},0,0,{"$f":"'WP FR-16(7)(v)-KW & KWH @Dist'!D39","v":1514633},1514633,0]
[7,null,"RATIO TO TOTAL ELECTRIC",null,"K203",1,{"$f":"ROUND(G834/(G834+H834+I834),5)","v":0},{"$f":"ROUND(H834/(G834+H834+I834),5)","v":0},{"$f":"ROUND(I834/(G834+H834+I834),5)","v":1},1,0]
[8,null,"DISTRIBUTION LINE - OVERHEAD - PRIMARY","External",null,{"$f":"'WP FR-16(7)(v) Distlines'!G38","v":731338},0,0,{"$f":"'WP FR-16(7)(v) Distlines'!G38","v":731338},731338,0]
[9,null,"RATIO TO TOTAL ELECTRIC",null,"K205",1,{"$f":"ROUND(G836/(G836+H836+I836),5)","v":0},{"$f":"ROUND(H836/(G836+H836+I836),5)","v":0},{"$f":"ROUND(I836/(G836+H836+I836),5)","v":1},1,0]
[10,null,"DISTRIBUTION LINE - OVERHEAD - SECONDARY","External",null,{"$f":"'WP FR-16(7)(v) Distlines'!K38","v":731338},0,0,{"$f":"'WP FR-16(7)(v) Distlines'!K38","v":731338},{"$f":"SUM(G838:I838)","v":731338},{"$f":"F838-J838","v":0}]
[11,null,"RATIO TO TOTAL ELECTRIC",null,"K206",1,{"$f":"ROUND(G838/(G838+H838+I838),5)","v":0},{"$f":"ROUND(H838/(G838+H838+I838),5)","v":0},{"$f":"ROUND(I838/(G838+H838+I838),5)","v":1},{"$f":"SUM(G839:I839)","v":1},{"$f":"F839-J839","v":0}]
[12,null,"GROSS DISTRIBUTION PLANT EXCL. CCNC","External",null,{"$f":"SUM(F73:F90)","v":484684266},{"$f":"SUM(G73:G90)","v":0},{"$f":"SUM(H73:H90)","v":5192},{"$f":"SUM(I73:I90)","v":484679074},484684266,0]
[13,null,"RATIO TO TOTAL ELECTRIC",null,"K209",1,{"$f":"ROUND(G840/(G840+H840+I840),5)","v":0},{"$f":"ROUND(H840/(G840+H840+I840),5)","v":1.0000000000000001E-5},{"$f":"ROUND(I840/(G840+H840+I840),5)","v":0.99999000000000005},1,0]
[14,null,"TOTAL DIVERSIFIED CLASS DEMANDS","External",null,{"$f":"'WP FR-16(7)(v)-KW & KWH @Dist'!L39","v":731338},0,0,{"$f":"'WP FR-16(7)(v)-KW & KWH @Dist'!L39","v":731338},731338,0]
[15,null,"RATIO TO TOTAL ELECTRIC",null,"K215",1,{"$f":"ROUND(G842/(G842+H842+I842),5)","v":0},{"$f":"ROUND(H842/(G842+H842+I842),5)","v":0},{"$f":"ROUND(I842/(G842+H842+I842),5)","v":1},1,0]
[16,null,"WEIGHTED CUSTOMER SERVICE","External",null,{"$f":"'WP FR-16(7)(v) Wtd services'!H38","v":143810},0,0,{"$f":"'WP FR-16(7)(v) Wtd services'!H38","v":143810},143810,0]
[17,null,"RATIO TO TOTAL ELECTRIC",null,"K217",1,{"$f":"ROUND(G844/(G844+H844+I844),5)","v":0},{"$f":"ROUND(H844/(G844+H844+I844),5)","v":0},{"$f":"ROUND(I844/(G844+H844+I844),5)","v":1},1,0]
[18,null,"TOTAL KWH","External",null,{"$f":"'WP FR-16(7)(v)-KW & KWH @Gen'!F38","v":4261970981},{"$f":"'WP FR-16(7)(v)-KW & KWH @Gen'!F38","v":4261970981},0,0,4261970981,0]
[19,null,"RATIO TO TOTAL ELECTRIC",null,"K301",1,{"$f":"ROUND(G846/(G846+H846+I846),5)","v":1},{"$f":"ROUND(H846/(G846+H846+I846),5)","v":0},{"$f":"ROUND(I846/(G846+H846+I846),5)","v":0},1,0]
[20,null,"DISTRIBUTION KWH","External",null,{"$f":"'WP FR-16(7)(v)-KW & KWH @Dist'!F39","v":4261970981},0,0,{"$f":"'WP FR-16(7)(v)-KW & KWH @Dist'!F39","v":4261970981},4261970981,0]
[21,null,"RATIO TO TOTAL ELECTRIC",null,"K303",1,{"$f":"ROUND(G848/(G848+H848+I848),5)","v":0},{"$f":"ROUND(H848/(G848+H848+I848),5)","v":0},{"$f":"ROUND(I848/(G848+H848+I848),5)","v":1},1,0]
[22,null,"TOTAL KWH LESS LIGHTING","External",null,{"$f":"'WP FR-16(7)(v)-KW & KWH @Gen'!F38-'WP FR-16(7)(v)-KW & KWH @Gen'!F26","v":4243371852},{"$f":"'WP FR-16(7)(v)-KW & KWH @Gen'!F38-'WP FR-16(7)(v)-KW & KWH @Gen'!F26","v":4243371852},0,0,4243371852,0]
[23,null,"RATIO TO TOTAL ELECTRIC",null,"K305",1,{"$f":"ROUND(G850/(G850+H850+I850),5)","v":1},{"$f":"ROUND(H850/(G850+H850+I850),5)","v":0},{"$f":"ROUND(I850/(G850+H850+I850),5)","v":0},1,0]
[24,null,"ASSIGN 100% TO RESIDENTIAL","External",null,1,0,0,1,1,0]
[25,null,"RATIO TO TOTAL ELECTRIC",null,"K307",1,{"$f":"ROUND(G852/(G852+H852+I852),5)","v":0},{"$f":"ROUND(H852/(G852+H852+I852),5)","v":0},{"$f":"ROUND(I852/(G852+H852+I852),5)","v":1},1,0]
[26,null,"ASSIGN 100% TO LIGHTING","External",null,1,0,0,1,1,0]
[27,null,"RATIO TO TOTAL ELECTRIC",null,"K401",1,{"$f":"ROUND(G854/(G854+H854+I854),5)","v":0},{"$f":"ROUND(H854/(G854+H854+I854),5)","v":0},{"$f":"ROUND(I854/(G854+H854+I854),5)","v":1},1,0]
[28,null,"DISTRIBUTION CUSTOMERS","External",null,{"$f":"'WP FR-16(7)(v)-KW & KWH @Dist'!H39","v":142392},0,0,{"$f":"'WP FR-16(7)(v)-KW & KWH @Dist'!H39","v":142392},142392,0]
[29,null,"RATIO TO TOTAL ELECTRIC",null,"K405",1,{"$f":"ROUND(G856/(G856+H856+I856),5)","v":0},{"$f":"ROUND(H856/(G856+H856+I856),5)","v":0},{"$f":"ROUND(I856/(G856+H856+I856),5)","v":1},1,0]
[30,null,"METERS","External",null,{"$f":"'WP FR-16(7)(v) Meters'!E40","v":15813241},0,{"$f":"'WP FR-16(7)(v) Meters'!E27","v":3619},{"$f":"'WP FR-16(7)(v) Meters'!E40-H858","v":15809622},15813241,0]
[31,null,"RATIO TO TOTAL ELECTRIC",null,"K407",1,{"$f":"ROUND(G858/(G858+H858+I858),5)","v":0},{"$f":"ROUND(H858/(G858+H858+I858),5)","v":2.3000000000000001E-4},{"$f":"ROUND(I858/(G858+H858+I858),5)","v":0.99977000000000005},1,0]
[32,null,"WEIGHTED CUSTOMER","External",null,{"$f":"'WP FR-16(7)(v) Meters'!H40","v":156470},0,0,{"$f":"F860","v":156470},156470,0]
[33,null,"RATIO TO TOTAL ELECTRIC",null,"K409",1,{"$f":"ROUND(G860/(G860+H860+I860),5)","v":0},{"$f":"ROUND(H860/(G860+H860+I860),5)","v":0},{"$f":"ROUND(I860/(G860+H860+I860),5)","v":1},1,0]
[34,null,"UNCOLLECTIBLE ACCOUNT 904","External",null,{"$f":"'WP FR-16(7)(v) CustAcct'!G31","v":5781023.7599999998},0,{"$f":"'WP FR-16(7)(v) CustAcct'!G26","v":38893},{"$f":"F862-H862","v":5742130.7599999998},5781023.7599999998,0]
[35,null,"RATIO TO TOTAL ELECTRIC",null,"K411",1,{"$f":"ROUND(G862/(G862+H862+I862),5)","v":0},{"$f":"ROUND(H862/(G862+H862+I862),5)","v":6.7299999999999999E-3},{"$f":"ROUND(I862/(G862+H862+I862),5)","v":0.99326999999999999},1,0]
[36,null,"KWH SALES LESS RTP","External",null,{"$f":"'WP FR-16(7)(v)-KW & KWH @Gen'!F28","v":4244213606},{"$f":"'WP FR-16(7)(v)-KW & KWH @Gen'!F28","v":4244213606},0,0,{"$f":"SUM(G864:I864)","v":4244213606},{"$f":"F864-J864","v":0}]
[37,null,"RATIO TO TOTAL ELECTRIC",null,"K302",1,{"$f":"ROUND(G864/(G864+H864+I864),5)","v":1},{"$f":"ROUND(H864/(G864+H864+I864),5)","v":0},{"$f":"ROUND(I864/(G864+H864+I864),5)","v":0},{"$f":"SUM(G865:I865)","v":1},{"$f":"F865-J865","v":0}]
[38]
[39,null,"PRESENT REVENUES","CS09","R600",{"$f":"'FR-16(7)(v)-3 PROD Demand'!R881","v":309580654},{"$f":"F867-H867-I867","v":216065589},{"$f":"ROUND(F867*VLOOKUP(D867,ALLOCTABLE_FUNCTIONAL,$H$10,FALSE),0)","v":29037083},{"$f":"ROUND(F867*VLOOKUP(D867,ALLOCTABLE_FUNCTIONAL,$I$10,FALSE),0)","v":64477982},{"$f":"SUM(G867:I867)","v":309580654},{"$f":"F867-J867","v":0}]
[40,null,"PROPOSED REVENUES","A357","R602",{"$f":"'FR-16(7)(v)-3 PROD Demand'!F883","v":355094168},{"$f":"F868-H868-I868","v":229117410},{"$f":"ROUND(F868*VLOOKUP(D868,ALLOCTABLE_FUNCTIONAL,$H$10,FALSE),0)","v":16511879},{"$f":"ROUND(F868*VLOOKUP(D868,ALLOCTABLE_FUNCTIONAL,$I$10,FALSE),0)","v":109464879},{"$f":"SUM(G868:I868)","v":355094168},{"$f":"F868-J868","v":0}]
[]
[{"$f":"co_name","v":"DUKE ENERGY KENTUCKY, INC."},null,null,null,null,null,null,null,null,{"$f":"J1","v":"FR-16(7)(v)-1"}]
[{"$f":"$A$2","v":"FUNCTIONAL ELECTRIC COST OF SERVICE"},null,null,null,null,null,null,null,null,{"$f":"J2","v":"WITNESS RESPONSIBLE:"}]
[{"$f":"case_name","v":"CASE NO: 2019-00271"},null,null,null,null,null,null,null,null,{"$f":"Witness","v":"JAMES E. ZIOLKOWSKI"}]
[{"$f":"data_filing","v":"DATA: 12 MONTHS ACTUAL  & 0 MONTHS ESTIMATED"},null,null,null,null,null,null,null,null,{"$f":"\"PAGE \"&Pages-1&\" OF \"&Pages","v":"PAGE 17 OF 18"}]
[{"$f":"type","v":"TYPE OF FILING: \"X\" ORIGINAL   UPDATED    REVISED  "}]
[]
[]
["LINE",null,null,null,null,"TOTAL","FUNCTIONAL",null,null,"TOTAL","ALL"]
["NO.","ALLOCATORS",null,"SOURCE","ALLO",{"$f":"$F$9","v":"ELECTRIC"},{"$f":"G9","v":"PRODUCTION"},"TRANSMISSION","DISTRIBUTION","AT ISSUE","OTHER"]
[null,null,"Schedule 12.1",null,1,2,3,4,5]
[]
[1,null,"PRESENT REVENUES","Internal",null,{"$f":"F867","v":309580654},{"$f":"G867","v":216065589},{"$f":"H867","v":29037083},{"$f":"I867","v":64477982},{"$f":"SUM(G881:I881)","v":309580654},{"$f":"F881-J881","v":0}]
[2,null,"RATIO TO TOTAL ELECTRIC",null,"K901",1,{"$f":"ROUND(G881/(G881+H881+I881),5)","v":0.69793000000000005},{"$f":"ROUND(H881/(G881+H881+I881),5)","v":9.3789999999999998E-2},{"$f":"ROUND(I881/(G881+H881+I881),5)","v":0.20827999999999999},{"$f":"SUM(G882:I882)","v":1},{"$f":"F882-J882","v":0}]
[3,null,"PROPOSED REVENUES","Internal",null,{"$f":"F868","v":355094168},{"$f":"G868","v":229117410},{"$f":"H868","v":16511879},{"$f":"I868","v":109464879},{"$f":"SUM(G883:I883)","v":355094168},{"$f":"F883-J883","v":0}]
[4,null,"RATIO TO TOTAL ELECTRIC",null,"K902",1,{"$f":"ROUND(G883/(G883+H883+I883),5)","v":0.64522999999999997},{"$f":"ROUND(H883/(G883+H883+I883),5)","v":4.65E-2},{"$f":"ROUND(I883/(G883+H883+I883),5)","v":0.30826999999999999},{"$f":"SUM(G884:I884)","v":1},{"$f":"F884-J884","v":0}]
[5]
[6,"WEIGHTED RATIOS"]
[7,"GROSS ELECTRIC PLANT IN SERVICE"]
[8,null,"WTD GROSS PROD PLANT RATIOS","Internal","P129",1,{"$f":"ROUND(IF(F62=0,0,G62/F62),5)","v":1},{"$f":"ROUND(IF(F62=0,0,H62/F62),5)","v":0},{"$f":"ROUND(IF(F62=0,0,I62/F62),5)","v":0},{"$f":"SUM(G888:I888)","v":1},{"$f":"F888-J888","v":0}]
[9,null,"WTD GROSS TRANS PLANT RATIOS","Internal","T129",1,{"$f":"ROUND(IF(F68=0,0,G68/F68),5)","v":0},{"$f":"ROUND(IF(F68=0,0,H68/F68),5)","v":1},{"$f":"ROUND(IF(F68=0,0,I68/F68),5)","v":0},1,0]
[10,null,"WTD GROSS P & T PLT RATIOS","Internal","PT29",1,{"$f":"ROUND(IF(F70=0,0,G70/F70),5)","v":0.94350999999999996},{"$f":"ROUND(IF(F70=0,0,H70/F70),5)","v":5.6489999999999999E-2},{"$f":"ROUND(IF(F70=0,0,I70/F70),5)","v":0},{"$f":"SUM(G890:I890)","v":1},{"$f":"F890-J890","v":0}]
[11,null,"WTD GROSS DIST PLANT RATIOS","Internal","D149",1,{"$f":"ROUND(IF(F94=0,0,G94/F94),5)","v":0},{"$f":"ROUND(IF(F94=0,0,H94/F94),5)","v":1.0000000000000001E-5},{"$f":"ROUND(IF(F94=0,0,I94/F94),5)","v":0.99999000000000005},{"$f":"SUM(G891:I891)","v":1},{"$f":"F891-J891","v":0}]
[12,null,"WTD GROSS TRANS & DIST RATIOS","Internal","TD29",1,{"$f":"ROUND(IF(F96=0,0,G96/F96),5)","v":0},{"$f":"ROUND(IF(F96=0,0,H96/F96),5)","v":0.11105},{"$f":"ROUND(IF(F96=0,0,I96/F96),5)","v":0.88895000000000002},1,0]
[13,null,"WTD GROSS PTD PLT RATIOS","Internal","PD29",1,{"$f":"ROUND(IF(F97=0,0,G97/F97),5)","v":0.64970000000000006},{"$f":"ROUND(IF(F97=0,0,H97/F97),5)","v":3.8899999999999997E-2},{"$f":"1-SUM(G893:H893)","v":0.3113999999999999},1,0]
[14,null,"WTD GROSS G & I PLT RATIOS","Internal","G129",1,{"$f":"ROUND(IF(F109=0,0,$G$109/F109),5)","v":0.79490000000000005},{"$f":"ROUND(IF(F109=0,0,$H$109/F109),5)","v":4.65E-2},{"$f":"1-SUM(G894:H894)","v":0.15859999999999996},1,0]
[15,null,"WTD GROSS C & O PLANT RATIOS","Internal","C129",1,{"$f":"ROUND(IF(F121=0,0,$G$121/F121),5)","v":0.79490000000000005},{"$f":"ROUND(IF(F121=0,0,$H$121/F121),5)","v":4.65E-2},{"$f":"1-SUM(G895:H895)","v":0.15859999999999996},1,0]
[16,null,"WTD GROSS PLANT RATIOS","Internal","GP19",1,{"$f":"ROUND(IF(F123=0,0,G123/F123),5)","v":0.65632000000000001},{"$f":"ROUND(IF(F123=0,0,H123/F123),5)","v":3.925E-2},{"$f":"1-SUM(G896:H896)","v":0.30442999999999998},1,0]
[17,null,"WTD TOTAL DEPRC RES RATIOS","Internal","DR19",1,{"$f":"ROUND(IF(F200=0,0,G200/F200),5)","v":0.78110000000000002},{"$f":"ROUND(IF(F200=0,0,H200/F200),5)","v":2.7539999999999999E-2},{"$f":"1-SUM(G897:H897)","v":0.19135999999999997},1,0]
[18]
[19,"NET ELECTRIC PLANT"]
[20,null,"WTD NET PROD PLANT RATIOS","Internal","P229",1,{"$f":"ROUND(IF(F216=0,0,G216/F216),5)","v":1},{"$f":"ROUND(IF(F216=0,0,H216/F216),5)","v":0},{"$f":"1-SUM(G900:H900)","v":0},{"$f":"SUM(G900:I900)","v":1},{"$f":"F900-J900","v":0}]
[21,null,"WTD NET TRANS PLANT RATIOS","Internal","T229",1,{"$f":"ROUND(IF(F222=0,0,G222/F222),5)","v":0},{"$f":"ROUND(IF(F222=0,0,H222/F222),5)","v":1},0,1,0]
[22,null,"WTD NET DIST LINES  - POLES, TOWERS & FIXTURES","Internal","PL49",1,{"$f":"ROUND(IF(SUM($F$228:$F$231)=0,0,SUM(G228:G231)/SUM($F$228:$F$231)),5)","v":0},{"$f":"ROUND(IF(SUM($F$228:$F$231)=0,0,SUM(H228:H231)/SUM($F$228:$F$231)),5)","v":0},{"$f":"ROUND(IF(SUM($F$228:$F$231)=0,0,SUM(I228:I231)/SUM($F$228:$F$231)),5)","v":1},1,0]
[23,null,"WTD NET TOTAL DIST PLANT RATIOS","Internal","D249",1,{"$f":"ROUND(IF($F$248=0,0,G248/$F$248),5)","v":0},{"$f":"ROUND(IF($F$248=0,0,H248/$F$248),5)","v":1.0000000000000001E-5},{"$f":"1-SUM(G903:H903)","v":0.99999000000000005},1,0]
[24,null,"WTD NET TRANS & DIST RATIOS","Internal","NT29",1,{"$f":"ROUND(IF($F$251=0,0,G251/$F$251),5)","v":0.56103000000000003},{"$f":"ROUND(IF($F$251=0,0,H251/$F$251),5)","v":4.7350000000000003E-2},0.39161999999999997,1,0]
[25,null,"WTD NET G & I PLT RATIOS","Internal","G229",1,{"$f":"ROUND(IF($F$263=0,0,G263/$F$263),5)","v":0.79618},{"$f":"ROUND(IF($F$263=0,0,H263/$F$263),5)","v":4.65E-2},0.15732000000000002,1,0]
[26,null,"WTD NET C & O PLANT RATIOS","Internal","C229",1,{"$f":"ROUND(IF($F$275=0,0,G275/$F$275),5)","v":0.79527000000000003},{"$f":"ROUND(IF($F$275=0,0,H275/$F$275),5)","v":4.65E-2},0.15822999999999998,1,0]
[27,null,"WTD NET PLANT RATIOS","Internal","NP29",1,{"$f":"ROUND(IF(F277=0,0,G277/F277),5)","v":0.57030000000000003},{"$f":"ROUND(IF(F277=0,0,H277/F277),5)","v":4.7320000000000001E-2},0.38237999999999994,1,0]
[28]
[29,"WORKING CAPITAL"]
[30,null,"WTD MATERIAL & SUPPLY RATIOS","Internal","W669",1,{"$f":"1-H910-I910","v":0.82833000000000001},{"$f":"ROUND(IF(F399=0,0,H399/F399),5)","v":1.9060000000000001E-2},{"$f":"ROUND(IF(F399=0,0,I399/F399),5)","v":0.15261},{"$f":"SUM(G910:I910)","v":1},{"$f":"F910-J910","v":0}]
[31,null,"WTD PREPAYMENTS RATIOS","Internal","W689",1,{"$f":"ROUND(IF(F405=0,0,G405/F405),5)","v":0.49003999999999998},{"$f":"ROUND(IF(F405=0,0,H405/F405),5)","v":5.6160000000000002E-2},{"$f":"ROUND(IF(F405=0,0,I405/F405),5)","v":0.45379999999999998},{"$f":"SUM(G911:I911)","v":1},{"$f":"F911-J911","v":0}]
[32,null,"WTD TOTAL WORKING CASH RATIOS","Internal","W719",1,{"$f":"ROUND(IF(F408=0,0,G408/F408),5)","v":1},{"$f":"ROUND(IF(F408=0,0,H408/F408),5)","v":0},{"$f":"ROUND(IF(F408=0,0,I408/F408),5)","v":0},{"$f":"SUM(G912:I912)","v":1},{"$f":"F912-J912","v":0}]
[33,null,"WTD TOTAL MISC WRKNG CAP RATIO","Internal","W749",1,{"$f":"ROUND(IF(F414=0,0,G414/F414),5)","v":0},{"$f":"ROUND(IF(F414=0,0,H414/F414),5)","v":0},{"$f":"ROUND(IF(F414=0,0,I414/F414),5)","v":0},{"$f":"SUM(G913:I913)","v":0},{"$f":"F913-J913","v":1}]
[34,null,"WTD TOTAL WRKNG CAP RATIOS","Internal","WC79",1,{"$f":"ROUND(IF($F$416=0,0,G416/F416),5)","v":0.87487000000000004},{"$f":"ROUND(IF($F$416=0,0,H416/F416),5)","v":1.389E-2},{"$f":"ROUND(IF($F$416=0,0,I416/F416),5)","v":0.11124000000000001},{"$f":"SUM(G914:I914)","v":1},{"$f":"F914-J914","v":0}]
[35]
[36,"RATE BASE"]
[37,null,"WTD NET OCRB RATIOS","Internal","RB29",1,{"$f":"ROUND(IF($F$390=0,0,G390/$F$390),5)","v":0.56857999999999997},{"$f":"ROUND(IF($F$390=0,0,H390/$F$390),5)","v":4.6249999999999999E-2},{"$f":"1-SUM(G917:H917)","v":0.38517000000000001},{"$f":"SUM(G917:I917)","v":1},{"$f":"F917-J917","v":0}]
[38,null,"WTD TOTAL RATE BASE RATIOS","Internal","RB99",1,{"$f":"ROUND(IF($F$426=0,0,G426/$F$426),10)","v":0.58588694220000004},{"$f":"ROUND(IF($F$426=0,0,H426/$F$426),5)","v":4.4420000000000001E-2},{"$f":"1-SUM(G918:H918)","v":0.36969305779999995},{"$f":"SUM(G918:I918)","v":1},{"$f":"F918-J918","v":0}]
[39,null,"WTD CWIP RATIO","Internal","CW29",1,{"$f":"ROUND(IF($F$375=0,0,G375/$F$375),5)","v":0},{"$f":"ROUND(IF($F$375=0,0,H375/$F$375),5)","v":0},{"$f":"1-SUM(G919:H919)","v":1},{"$f":"SUM(G919:I919)","v":1},{"$f":"F919-J919","v":0}]
[]
[{"$f":"co_name","v":"DUKE ENERGY KENTUCKY, INC."},null,null,null,null,null,null,null,null,{"$f":"J1","v":"FR-16(7)(v)-1"}]
[{"$f":"$A$2","v":"FUNCTIONAL ELECTRIC COST OF SERVICE"},null,null,null,null,null,null,null,null,{"$f":"J2","v":"WITNESS RESPONSIBLE:"}]
[{"$f":"case_name","v":"CASE NO: 2019-00271"},null,null,null,null,null,null,null,null,{"$f":"Witness","v":"JAMES E. ZIOLKOWSKI"}]
[{"$f":"data_filing","v":"DATA: 12 MONTHS ACTUAL  & 0 MONTHS ESTIMATED"},null,null,null,null,null,null,null,null,{"$f":"\"PAGE \"&Pages&\" OF \"&Pages","v":"PAGE 18 OF 18"}]
[{"$f":"type","v":"TYPE OF FILING: \"X\" ORIGINAL   UPDATED    REVISED  "}]
[]
[]
["LINE",null,null,null,null,"TOTAL","FUNCTIONAL",null,null,"TOTAL","ALL"]
["NO.","ALLOCATORS",null,"SOURCE","ALLO",{"$f":"$F$9","v":"ELECTRIC"},{"$f":"G9","v":"PRODUCTION"},"TRANSMISSION","DISTRIBUTION","AT ISSUE","OTHER"]
[null,null,"Schedule 12.2",null,1,2,3,4,5]
[1,"WEIGHTED O & M EXPENSE RATIOS"]
[2,null,"WTD PROD DEMAND O&M EXP RATIOS","Internal","P349",1,{"$f":"ROUND(IF($F$457=0,0,G457/$F$457),5)","v":0},{"$f":"ROUND(IF($F$457=0,0,H457/$F$457),5)","v":0},{"$f":"ROUND(IF($F$457=0,0,I457/$F$457),5)","v":0},{"$f":"SUM(G932:I932)","v":0},{"$f":"F932-J932","v":1}]
[3,null,"WTD PROD ENERGY O&M EXP RATIOS","Internal","E349",1,{"$f":"ROUND(IF($F$453=0,0,G453/$F$453),5)","v":1},{"$f":"ROUND(IF($F$453=0,0,H453/$F$453),5)","v":0},{"$f":"ROUND(IF($F$453=0,0,I453/$F$453),5)","v":0},1,0]
[4,null,"WTD TOTAL PROD O&M EXP RATIOS","Internal","P459",1,{"$f":"ROUND(IF($F$459=0,0,G459/$F$459),5)","v":1},{"$f":"ROUND(IF($F$459=0,0,H459/$F$459),5)","v":0},{"$f":"ROUND(IF($F$459=0,0,I459/$F$459),5)","v":0},1,0]
[5,null,"WTD TRANS O&M EXP RATIOS","Internal","T349",1,{"$f":"ROUND(IF($F$466=0,0,G466/$F$466),5)","v":0},{"$f":"ROUND(IF($F$466=0,0,H466/$F$466),5)","v":1},{"$f":"ROUND(IF($F$466=0,0,I466/$F$466),5)","v":0},1,0]
[6,null,"WTD DIST O&M EXP RATIOS","Internal","D349",1,{"$f":"ROUND(IF($F$492=0,0,G492/$F$492),5)","v":3.4799999999999998E-2},{"$f":"ROUND(IF($F$492=0,0,H492/$F$492),5)","v":1.0000000000000001E-5},{"$f":"ROUND(IF($F$492=0,0,I492/$F$492),5)","v":0.96518000000000004},0.99999000000000005,9.9999999999544897E-6]
[7,null,"WTD UNCOLLECTIBLE ACCOUNT O&M","Internal","C311",1,{"$f":"ROUND(IF($F$496=0,0,G496/$F$496),5)","v":0},{"$f":"ROUND(IF($F$496=0,0,H496/$F$496),5)","v":6.7299999999999999E-3},{"$f":"ROUND(IF($F$496=0,0,I496/$F$496),5)","v":0.99326999999999999},1,0]
[8,null,"WTD CUST ACCT O&M EXP RATIOS","Internal","C319",1,{"$f":"ROUND(IF($F$503=0,0,G503/$F$503),5)","v":0},{"$f":"ROUND(IF($F$503=0,0,H503/$F$503),5)","v":-3.2000000000000003E-4},{"$f":"ROUND(IF($F$503=0,0,I503/$F$503),5)","v":1.0003200000000001},1,0]
[9,null,"WTD CUST SERV & INFO O&M  EXP RATIOS","Internal","C331",1,{"$f":"ROUND(IF($F$518=0,0,G518/$F$518),5)","v":0},{"$f":"ROUND(IF($F$518=0,0,H518/$F$518),5)","v":0},{"$f":"ROUND(IF($F$518=0,0,I518/$F$518),5)","v":1},{"$f":"SUM(G939:I939)","v":1},{"$f":"F939-J939","v":0}]
[10,null,"WTD SALES O&M EXP RATIOS","Internal","S319",1,{"$f":"ROUND(IF($F$522=0,0,G522/$F$522),5)","v":0},{"$f":"ROUND(IF($F$522=0,0,H522/$F$522),5)","v":0},{"$f":"ROUND(IF($F$522=0,0,I522/$F$522),5)","v":1},{"$f":"SUM(G940:I940)","v":1},{"$f":"F940-J940","v":0}]
[11,null,"WTD O&M EXP RATIOS","Internal","OM39",1,{"$f":"ROUND(IF($F$549=0,0,G549/$F$549),5)-0.00001","v":0.73575000000000002},{"$f":"ROUND(IF($F$549=0,0,H549/$F$549),5)","v":0.12341000000000001},{"$f":"ROUND(IF($F$549=0,0,I549/$F$549),5)","v":0.14083000000000001},{"$f":"SUM(G941:I941)","v":0.99999000000000005},{"$f":"F941-J941","v":9.9999999999544897E-6}]
[12]
[13,"A & G EXPENSES"]
[14,null,"WTD PROD DEMAND A&G EXP RATIOS","Internal","A300",1,{"$f":"ROUND(IF($F$525=0,0,G525/$F$525),5)","v":1},{"$f":"ROUND(IF($F$525=0,0,H525/$F$525),5)","v":0},{"$f":"ROUND(IF($F$525=0,0,I525/$F$525),5)","v":0}]
[15,null,"WTD PROD ENERGY A&G EXP RATIOS","Internal","A302",1,{"$f":"ROUND(IF($F$526=0,0,G526/$F$526),5)","v":1},{"$f":"ROUND(IF($F$526=0,0,H526/$F$526),5)","v":0},{"$f":"ROUND(IF($F$526=0,0,I526/$F$526),5)","v":0},{"$f":"SUM(G945:I945)","v":1},{"$f":"F945-J945","v":0}]
[16,null,"WTD TRANS A&G EXP RATIOS","Internal","A304",1,{"$f":"ROUND(IF($F$527=0,0,G527/$F$527),5)","v":0},{"$f":"ROUND(IF($F$527=0,0,H527/$F$527),5)","v":1},{"$f":"ROUND(IF($F$527=0,0,I527/$F$527),5)","v":0},1,0]
[17,null,"WTD DIST A&G EXP RATIOS","Internal","A306",1,{"$f":"ROUND(IF($F$528=0,0,G528/$F$528),5)","v":3.4810000000000001E-2},{"$f":"ROUND(IF($F$528=0,0,H528/$F$528),5)","v":1.0000000000000001E-5},{"$f":"ROUND(IF($F$528=0,0,I528/$F$528),5)","v":0.96518000000000004},1,0]
[18,null,"WTD CUST ACCT A&G EXP RATIOS","Internal","A308",1,{"$f":"ROUND(IF($F$529=0,0,G529/$F$529),5)","v":0},{"$f":"ROUND(IF($F$529=0,0,H529/$F$529),5)","v":-3.2000000000000003E-4},{"$f":"ROUND(IF($F$529=0,0,I529/$F$529),5)","v":1.0003200000000001},1,0]
[19,null,"WTD CUST SERV & INFO A&G  EXP RATIOS","Internal","A310",1,{"$f":"ROUND(IF($F$530=0,0,G530/$F$530),5)","v":0},{"$f":"ROUND(IF($F$530=0,0,H530/$F$530),5)","v":0},{"$f":"ROUND(IF($F$530=0,0,I530/$F$530),5)","v":1},1,0]
[20,null,"WTD SALES A&G EXP RATIOS","Internal","A312",1,{"$f":"ROUND(IF($F$531=0,0,G531/$F$531),5)","v":0},{"$f":"ROUND(IF($F$531=0,0,H531/$F$531),5)","v":0},{"$f":"ROUND(IF($F$531=0,0,I531/$F$531),5)","v":0},0,1]
[21,null,"WTD A&G EXPENSE UNADJUSTED","Internal","A315",1,{"$f":"1-H951-I951","v":0.64524000000000004},{"$f":"ROUND(IF($F$532=0,0,H532/$F$532),5)","v":4.65E-2},{"$f":"ROUND(IF($F$532=0,0,I532/$F$532),5)","v":0.30825999999999998},1,0]
[22,null,"WTD A&G EXP RATIOS","Internal","A357",1,{"$f":"ROUND(IF($F$547=0,0,G547/$F$547),5)","v":0.64522999999999997},{"$f":"ROUND(IF($F$547=0,0,H547/$F$547),5)","v":4.65E-2},{"$f":"ROUND(IF($F$547=0,0,I547/$F$547),5)","v":0.30826999999999999},1,0]
[23]
[24,"DEPRECIATION EXPENSES"]
[25,null,"WTD PRODUCTION DEPREC RATIOS","Internal","P489",1,{"$f":"ROUND(IF(F563=0,0,G563/F563),5)","v":1},{"$f":"ROUND(IF(G563=0,0,H563/G563),5)","v":0},{"$f":"ROUND(IF(H563=0,0,I563/H563),5)","v":0},{"$f":"SUM(G955:I955)","v":1},{"$f":"F955-J955","v":0}]
[26,null,"WTD TRANS DEPREC RATIOS","Internal","T489",1,{"$f":"ROUND(IF($F$567=0,0,G567/$F$567),5)","v":0},{"$f":"ROUND(IF($F$567=0,0,H567/$F$567),5)","v":1},{"$f":"ROUND(IF($F$567=0,0,I567/$F$567),5)","v":0},1,0]
[27,null,"WTD DIST DEPREC RATIOS","Internal","D489",1,{"$f":"ROUND(IF($F$571=0,0,G571/$F$571),5)","v":0},{"$f":"ROUND(IF($F$571=0,0,H571/$F$571),5)","v":1.0000000000000001E-5},{"$f":"ROUND(IF($F$571=0,0,I571/$F$571),5)","v":0.99999000000000005},1,0]
[28,null,"WTD GENERAL DEPREC EXP RATIOS","Internal","G489",1,{"$f":"ROUND(IF($F$575=0,0,G575/$F$575),5)","v":0.79618},{"$f":"ROUND(IF($F$575=0,0,H575/$F$575),5)","v":4.65E-2},{"$f":"ROUND(IF($F$575=0,0,I575/$F$575),5)","v":0.15731999999999999},1,0]
[29,null,"WTD COM & OTHER DEP EXP RATIOS","Internal","C489",1,{"$f":"ROUND(IF($F$579=0,0,G579/$F$579),5)","v":0.79527000000000003},{"$f":"ROUND(IF($F$579=0,0,H579/$F$579),5)","v":4.65E-2},{"$f":"ROUND(IF($F$579=0,0,I579/$F$579),5)","v":0.15823000000000001},1,0]
[30,null,"WTD TOT DEPREC EXP RATIOS","Internal","DE49",1,{"$f":"1-H960-I960","v":0.71917999999999993},{"$f":"ROUND(IF($F$582=0,0,H582/$F$582),5)","v":2.9590000000000002E-2},{"$f":"ROUND(IF($F$582=0,0,I582/$F$582),5)","v":0.25123000000000001},1,0]
[31]
[32,"OTHER TAXES & MISC EXPENSES"]
[33,null,"WTD R. E. & PROP TAX RATIOS","Internal","L529",1,{"$f":"ROUND(IF(F598=0,0,G598/F598),5)","v":0.57030000000000003},{"$f":"ROUND(IF(F598=0,0,H598/F598),5)","v":4.7320000000000001E-2},{"$f":"ROUND(IF(F598=0,0,I598/F598),5)","v":0.38238},{"$f":"SUM(G963:I963)","v":1},{"$f":"F963-J963","v":0}]
[34,null,"WTD MISC TAX RATIOS","Internal","L589",1,{"$f":"ROUND(IF(F605=0,0,G605/F605),5)","v":0.64524000000000004},{"$f":"ROUND(IF(F605=0,0,H605/F605),5)","v":4.65E-2},{"$f":"ROUND(IF(F605=0,0,I605/F605),5)","v":0.30825999999999998},{"$f":"SUM(G964:I964)","v":1},{"$f":"F964-J964","v":0}]
[35,null,"WTD OTHER TAX RATIOS","Internal","L599",1,{"$f":"1-H965-I965","v":0.57508999999999999},{"$f":"ROUND(IF(F617=0,0,H617/F617),5)","v":4.727E-2},{"$f":"ROUND(IF(F617=0,0,I617/F617),5)","v":0.37763999999999998},{"$f":"SUM(G965:I965)","v":1},{"$f":"F965-J965","v":0}]
[36,null,"WTD OP EXP EX IT & REV RATIOS","Internal","OP69",1,{"$f":"1-H966-I966","v":0.72405999999999993},{"$f":"ROUND(IF(F618=0,0,H618/F618),5)","v":0.10016},{"$f":"ROUND(IF(F618=0,0,I618/F618),5)","v":0.17577999999999999},{"$f":"SUM(G966:I966)","v":1},{"$f":"F966-J966","v":0}]
[37]
[38,"TOTAL COST OF SERVICE"]
[39,null,"WTD TOTAL COST OF SERVICE","Internal","CS09",1,{"$f":"ROUND(IF(F770=0,0,G770/F770),9)","v":0.697929358},{"$f":"ROUND(IF(F770=0,0,H770/F770),9)","v":9.3794890000000006E-2},{"$f":"ROUND(IF(F770=0,0,I770/F770),9)","v":0.20827522900000001},{"$f":"SUM(G969:I969)","v":0.99999947700000003},{"$f":"F969-J969","v":5.2299999997451607E-7}]
[40]
[41,"WAGES & SALARIES (K600-K639)"]
[42,null,"WTD RATIOS","Internal","K669"]
[]
[]
[]
[]
[]
[]
[]
[]
[]
[1,"REVENUE NOT TO BE INCLUDED IN REVENUE TAX CALC"]
[2,null,"GOVERNMENTAL",null,"A357",{"$f":"ROUND(0.06889*0,0)","v":0},{"$f":"ROUND(F983*VLOOKUP(E983,ALLOCTABLE_FUNCTIONAL,H10,FALSE),0)","v":0},{"$f":"ROUND(F983*VLOOKUP(E983,ALLOCTABLE_FUNCTIONAL,$H$10,FALSE),0)","v":0},{"$f":"ROUND(F983*VLOOKUP(E983,ALLOCTABLE_FUNCTIONAL,$I$10,FALSE),0)","v":0},{"$f":"SUM(G983:I983)","v":0},{"$f":"F983-J983","v":0}]
[3,null,"INTERDEPARTMENTAL",null,"A357",0,{"$f":"ROUND(F984*VLOOKUP(E984,ALLOCTABLE_FUNCTIONAL,H10,FALSE),0)","v":0},0,0,0,0]
[4,null,"UNCOLLECTIBLE EXPENSE",null,"A357",0,{"$f":"ROUND(F985*VLOOKUP(E985,ALLOCTABLE_FUNCTIONAL,H10,FALSE),0)","v":0},0,0,0,0]
[5,null,"OTHER PROD ELECTRIC ASSC COS  489050"," ","K301",0,{"$f":"ROUND(F986*VLOOKUP(E986,ALLOCTABLE_FUNCTIONAL,H10,FALSE),0)","v":0},0,0,0,0]
[6,null,"MISC. REV. - SALE OF MATERIAL",null,"A357",0,{"$f":"ROUND(F987*VLOOKUP(E987,ALLOCTABLE_FUNCTIONAL,H10,FALSE),0)","v":0},0,0,0,0]
[7,null,"RENT ASSOC. CO. "," ","NP29",0,{"$f":"ROUND(F988*VLOOKUP(E988,ALLOCTABLE_FUNCTIONAL,H10,FALSE),0)","v":0},0,0,0,0]
[8,null,"TOTAL","REXC",null,{"$f":"SUM(F983:F988)","v":0},0,0,0,0,0]
[]
[]
[]
[]
[]
["DO NOT FILE THIS PAGE"]
[]
[{"$f":"co_name","v":"DUKE ENERGY KENTUCKY, INC."},null,null,null,null,null,null,null,null,{"$f":"J1","v":"FR-16(7)(v)-1"}]
[{"$f":"$A$2","v":"FUNCTIONAL ELECTRIC COST OF SERVICE"},null,null,null,null,null,null,null,null,{"$f":"J2","v":"WITNESS RESPONSIBLE:"}]
[{"$f":"case_name","v":"CASE NO: 2019-00271"},null,null,null,null,null,null,null,null,{"$f":"Witness","v":"JAMES E. ZIOLKOWSKI"}]
[{"$f":"data_filing","v":"DATA: 12 MONTHS ACTUAL  & 0 MONTHS ESTIMATED"},null,null,null,null,null,null,null,null,{"$f":"\"PAGE \"&Pages&\" OF \"&Pages","v":"PAGE 18 OF 18"}]
[{"$f":"type","v":"TYPE OF FILING: \"X\" ORIGINAL   UPDATED    REVISED  "}]
[]
[]
["LINE",null,null,null,null,"TOTAL","FUNCTIONAL",null,null,"TOTAL","ALL"]
["NO.","INCOME TAX BASED ON REVENUES",null,"ALLO",null,{"$f":"$F$9","v":"ELECTRIC"},{"$f":"G9","v":"PRODUCTION"},"TRANSMISSION","DISTRIBUTION","AT ISSUE","OTHER"]
[null,null,"Schedule 13",null,null,null,3,4,5]
[1,"NET INCOME COMPUTATION"]
[2,null,"TOTAL ELECTRIC COST OF SERVICE",null,null,{"$f":"F770","v":353973313},247048367,33200888,73723873,353973128,-185]
[3,null,"TOTAL OTHER OPERATING REVENUES",null,null,{"$f":"F750","v":1695053},0,169516,1525537,1695053,0]
[4,null,"  TOTAL ELECTRIC REVENUE",null,null,{"$f":"SUM(F1007:F1009)","v":355668366},247048367,33370404,75249410,355668181,-185]
[5,null,"TOTAL OP EXP EX INC & REV TAX",null,null,{"$f":"-F618","v":-282568408},-204595183,-28301993,-49671232,-282568408,0]
[6,null,"FIRM SERVICE REVENUE TAX",null,null,{"$f":"-ROUND(F817*F1008,0)","v":0},{"$f":"-ROUND(G817*G1008,0)","v":0},{"$f":"-ROUND(H817*H1008,0)","v":0},{"$f":"-ROUND(I817*I1008,0)","v":0},{"$f":"SUM(G1012:I1012)","v":0},{"$f":"-ROUND(K817*K1008,0)","v":0}]
[7,null,"  NET INCOME",null,null,{"$f":"SUM(F1010:F1012)","v":73099958},{"$f":"SUM(G1010:G1012)","v":42453184},{"$f":"SUM(H1010:H1012)","v":5068411},{"$f":"SUM(I1010:I1012)","v":25578178},{"$f":"SUM(G1013:I1013)","v":73099773},{"$f":"SUM(K1010:K1012)","v":-185}]
[8]
[9,"ADJUSTMENTS TO NET INCOME"]
[10,null,"TOTAL INTEREST EXPENSE",null,null,{"$f":"-F633","v":-18775174},-11000130,-833993,-6941051,-18775174,0]
[11,null,"TOTAL OTHER DEDUCTIONS",null,null,{"$f":"-F639","v":-70001537},-50374857,-2064222,-17562458,-70001537,0]
[12,null,"  PRELIMINARY TAXABLE INCOME",null,null,{"$f":"SUM(F1015:F1017)+F1013","v":-15676753},{"$f":"SUM(G1015:G1017)+G1013","v":-18921803},{"$f":"SUM(H1015:H1017)+H1013","v":2170196},{"$f":"SUM(I1015:I1017)+I1013","v":1074669},{"$f":"SUM(G1018:I1018)","v":-15676938},{"$f":"SUM(K1015:K1017)+K1013","v":-185}]
[13]
[14,"INCOME TAX BASED ON REVENUES"]
[15,"FEDERAL INCOME TAX COMPUTATION"]
[16,null,"PRELIMINARY TAXABLE INCOME",null,null,{"$f":"F1018","v":-15676753},-18921803,2170196,1074669,-15676938,-185]
[17,null,"  NET FEDERAL TAXABLE INCOME",null,null,{"$f":"SUM(F1022:F1022)","v":-15676753},-18921803,2170196,1074669,-15676938,-185]
[18,null,"  FEDERAL INCOME TAX RATE",null,null,{"$f":"F815","v":0.21},{"$f":"G815","v":0.21},{"$f":"H815","v":0.21},{"$f":"I815","v":0.21},null,{"$f":"K815","v":0.21}]
[19,null,"PRELIMINARY FIT = FI01 * K190",null,null,{"$f":"ROUND(F1024*F1023,0)","v":-3292118},{"$f":"ROUND(G1024*G1023,0)","v":-3973579},{"$f":"ROUND(H1024*H1023,0)","v":455741},{"$f":"ROUND(I1024*I1023,0)","v":225680},{"$f":"SUM(G1025:I1025)","v":-3292158},{"$f":"ROUND(K1024*K1023,0)","v":-39}]
[20,null,"TOTAL FED DEF IT (410 & 411)",null,null,{"$f":"F649","v":10163328},7783626,1551623,827940,10163189,139]
[21,null,"TOTAL AMORTIZED ITC",null,null,{"$f":"-F653","v":-428},-244,-20,-164,-428,0]
[22,null,"  NET FED INC TAX ALLOWABLE",null,null,{"$f":"SUM(F1025:F1027)","v":6870782},3809803,2007344,1053456,6870603,100]
[23]
[24,"FEDERAL INCOME TAX PAYABLE"]
[25,null,"PRELIM FIT",null,null,{"$f":"F1025","v":-3292118},-3973579,455741,225680,-3292158,-39]
[26,null,"TEST YEAR INV TAX CREDIT",null,null,{"$f":"-F658","v":0},0,0,0,0,0]
[27,null,"  FED INC TAX PAYABLE",null,null,{"$f":"SUM(F1030:F1032)","v":-3292118},-3973579,455741,225680,-3292158,-39]
[28]
[29,"PRELIMINARY SUMMARY"]
[30,null,"NET INCOME",null,null,{"$f":"F1013","v":73099958},42453184,5068411,25578178,73099773,-185]
[31,null,"NET FED INC TAX ALLOWABLE",null,null,{"$f":"-F1028","v":-6870782},-3809803,-2007344,-1053456,-6870603,-100]
[32,null,"  OVERALL RETURN EARNED",null,null,{"$f":"SUM(F1035:F1037)","v":66229176},38643381,3061067,24524722,66229170,-285]
[33]
[34,null,"  RATE OF RETURN EARNED",null,null,{"$f":"IF(F426=0,0,ROUND(F1038/F426,5))","v":6.9980000000000001E-2},6.9690000000000002E-2,7.281E-2,7.009E-2,6.9980000000000001E-2,0]

{"sheet":"FR-16(7)(v)-2 PROD Classified","index":5,"n_rows":1040,"n_cols":16,"rows_kept":1040,"cut":false,"hidden":false,"merged":[]}
[{"$f":"co_name","v":"DUKE ENERGY KENTUCKY, INC."},null,null,null,null,null,null,null,null,"FR-16(7)(v)-2"]
["PRODUCTION CLASSIFIED - ELECTRIC COST OF SERVICE",null,null,null,null,null,null,null,null,"WITNESS RESPONSIBLE:"]
[{"$f":"case_name","v":"CASE NO: 2019-00271"},null,null,null,null,null,null,null,null,{"$f":"Witness","v":"JAMES E. ZIOLKOWSKI"}]
[{"$f":"data_filing","v":"DATA: 12 MONTHS ACTUAL  & 0 MONTHS ESTIMATED"},null,null,null,null,null,null,null,null,{"$f":"\"PAGE \"&Pages-17&\" OF \"&Pages","v":"PAGE 1 OF 18"}]
[{"$f":"type","v":"TYPE OF FILING: \"X\" ORIGINAL   UPDATED    REVISED  "}]
[]
[]
["LINE",null,null,null,null,"TOTAL","CLASSIFIED",null,null,"TOTAL","ALL"]
["NO.","SUMMARY OF RESULTS",null,"ALLO",null,"PRODUCTION","DEMAND","ENERGY","CUSTOMER","AT ISSUE","OTHER"]
[null,null,"Schedule 1",null,null,null,3,4,5]
[1,"NET INCOME COMPUTATION"]
[2,null,{"$f":"'FR-16(7)(v)-1 Functional'!C12","v":"GROSS ELECTRIC PLANT IN SERVICE"},null,null,{"$f":"F123","v":1279398113},{"$f":"G123","v":1248833815},{"$f":"H123","v":30564298},{"$f":"I123","v":0},{"$f":"SUM(G12:I12)","v":1279398113},{"$f":"F12-J12","v":0}]
[3,null,{"$f":"'FR-16(7)(v)-1 Functional'!C13","v":"TOTAL DEPRECIATION RESERVE"},null,null,{"$f":"-F200","v":-621319440},{"$f":"-G200","v":-606412760},{"$f":"-H200","v":-14906680},{"$f":"-I200","v":0},{"$f":"SUM(G13:I13)","v":-621319440},{"$f":"F13-J13","v":0}]
[4,null,{"$f":"'FR-16(7)(v)-1 Functional'!C14","v":"TOTAL RATE BASE ADJUSTMENTS"},null,null,{"$f":"F421","v":-103578968},{"$f":"G421","v":-119636775},{"$f":"H421","v":16057807},{"$f":"I421","v":0},{"$f":"SUM(G14:I14)","v":-103578968},{"$f":"F14-J14","v":0}]
[5,null,{"$f":"'FR-16(7)(v)-1 Functional'!C15","v":"  TOTAL RATE BASE"},null,null,{"$f":"SUM(F12:F14)","v":554499705},522784280,31715425,0,554499705,0]
[6]
[7,"OPERATING EXPENSES"]
[8,null,{"$f":"'FR-16(7)(v)-1 Functional'!C18","v":"TOTAL O&M EXPENSE"},null,null,{"$f":"F549","v":154356566},{"$f":"G549","v":6535241},{"$f":"H549","v":147821325},{"$f":"I549","v":0},{"$f":"SUM(G18:I18)","v":154356566},{"$f":"F18-J18","v":0}]
[9,null,{"$f":"'FR-16(7)(v)-1 Functional'!C19","v":"TOTAL DEPRECIATION EXPENSE"},null,null,{"$f":"F582","v":41854660},{"$f":"G582","v":39987838},{"$f":"H582","v":1866822},{"$f":"I582","v":0},{"$f":"SUM(G19:I19)","v":41854660},0]
[10,null,{"$f":"'FR-16(7)(v)-1 Functional'!C20","v":"TOTAL OTHER TAX & MISC EXPENSE"},null,null,{"$f":"F612","v":8383957},{"$f":"G612","v":7877695},{"$f":"H612","v":506262},{"$f":"I612","v":0},{"$f":"SUM(G20:I20)","v":8383957},0]
[11,null,{"$f":"'FR-16(7)(v)-1 Functional'!C21","v":"  TOTAL OP EXP EXCLUDING INC & REV TAX"},null,null,{"$f":"SUM(F17:F20)","v":204595183},{"$f":"SUM(G17:G20)","v":54400774},{"$f":"SUM(H17:H20)","v":150194409},{"$f":"SUM(I17:I20)","v":0},{"$f":"SUM(J17:J20)","v":204595183},0]
[12,null,{"$f":"'FR-16(7)(v)-1 Functional'!C22","v":"NET FED INCOME TAX EXP ALLOWABLE"},null,null,{"$f":"F676","v":4058141},{"$f":"G676","v":-6959929},{"$f":"H676","v":11018070},{"$f":"I676","v":0},{"$f":"SUM(G22:I22)","v":4058141},0]
[13,null,"NET STATE INCOME TAX EXP ALLOWABLE",null,null,{"$f":"F722","v":1182568},{"$f":"G722","v":-682555},{"$f":"H722","v":1865123},{"$f":"I722","v":0},{"$f":"SUM(G23:I23)","v":1182568},0]
[14,null,"RESERVED",{"$f":"'FR-16(7)(v)-1 Functional'!D24","v":"CW29"},null,{"$f":"'FR-16(7)(v)-1 Functional'!G24","v":0},{"$f":"ROUND(F24*VLOOKUP(D24,AllocTable_Classified_Production,$G$10,FALSE),0)","v":0},{"$f":"ROUND(F24*VLOOKUP(D24,AllocTable_Classified_Production,$H$10,FALSE),0)","v":0},{"$f":"ROUND(F24*VLOOKUP(D24,AllocTable_Classified_Production,$I$10,FALSE),0)","v":0},{"$f":"SUM(G24:I24)","v":0},{"$f":"F24-J24","v":0}]
[15,null,{"$f":"'FR-16(7)(v)-1 Functional'!C25","v":"REVENUE TAX"},null,null,{"$f":"F767","v":0},{"$f":"G767","v":0},{"$f":"H767","v":0},{"$f":"I767","v":0},{"$f":"SUM(G25:I25)","v":0},0]
[16,null,{"$f":"'FR-16(7)(v)-1 Functional'!C26","v":"  TOTAL OPERATING EXPENSE"},null,null,{"$f":"SUM(F21:F25)","v":209835892},{"$f":"SUM(G21:G25)","v":46758290},{"$f":"SUM(H21:H25)","v":163077602},{"$f":"SUM(I21:I25)","v":0},{"$f":"SUM(G26:I26)","v":209835892},0]
[17]
[18,"RETURN ON RATE BASE",null,null,null,{"$f":"F433","v":37212475},{"$f":"G433","v":35083921},{"$f":"H433","v":2128554},{"$f":"I433","v":0},{"$f":"SUM(G28:I28)","v":37212475},{"$f":"F28-J28","v":0}]
[19,"TOTAL OTHER OPERATING REVENUES",null,null,null,{"$f":"-F750","v":0},{"$f":"-G750","v":0},{"$f":"-H750","v":0},{"$f":"-I750","v":0},{"$f":"SUM(G29:I29)","v":0},0]
[20,null,{"$f":"'FR-16(7)(v)-1 Functional'!C30","v":"TOTAL ELECTRIC COST OF SERVICE"},null,null,{"$f":"SUM(F26:F29)","v":247048367},{"$f":"SUM(G26:G29)","v":81842211},{"$f":"SUM(H26:H29)","v":165206156},{"$f":"SUM(I26:I29)","v":0},{"$f":"SUM(J26:J29)","v":247048367},0]
[21,"ADJUSTMENT FOR INTERCLASS SUBSIDIZATION",null,{"$f":"1-'WP FR-16(7)(v) Rate Incr'!I11","v":0.95},null,{"$f":"'WP FR-16(7)(v) Rate Incr'!Q27","v":0},0,0,0,{"$f":"SUM(G31:I31)","v":0},0]
[22,{"$f":"'FR-16(7)(v)-1 Functional'!$B$32","v":"REQUESTED REVENUES (COST OF SERVICE ADJUSTED FOR SUBSIDIES)"},null,null,null,{"$f":"F31+F30","v":247048367},{"$f":"G31+G30","v":81842211},{"$f":"H31+H30","v":165206156},{"$f":"I31+I30","v":0},{"$f":"J31+J30","v":247048367},0]
[23,"PROPOSED REVENUES",null,null,null,{"$f":"F868","v":229117410},{"$f":"G868","v":106929095},{"$f":"H868","v":122188315},{"$f":"I868","v":0},{"$f":"J868","v":229117410},0]
[24,"DIFFERENCE (REQUESTED LESS PROPOSED)",null,null,null,{"$f":"F32-F33","v":17930957},-25086884,43017841,0,17930957,0]
[25]
[26,"TOTAL RETURN EARNED",null,null,null,{"$f":"F777+F28","v":23750830},{"$f":"G777+G28","v":53917871},{"$f":"H777+H28","v":-30167041},{"$f":"I777+I28","v":0},{"$f":"J777+J28","v":23750830},{"$f":"F36-J36","v":0}]
[27,"RATE OF RETURN EARNED",null,null,null,{"$f":"IF(F431=0,0,ROUND(F36/F431,5))","v":4.283E-2},0.10314,-0.95111999999999997,0,4.283E-2,0]
[28,"TOTAL RATE OF RETURN ALLOWABLE",null,null,null,{"$f":"$F$811","v":6.7110000000000003E-2},{"$f":"F811","v":6.7110000000000003E-2},{"$f":"F811","v":6.7110000000000003E-2},{"$f":"F811","v":6.7110000000000003E-2},{"$f":"F811","v":6.7110000000000003E-2},{"$f":"F811","v":6.7110000000000003E-2},null,null,"Not Part of print range"]
[29,"RETURN EARNED ON COMMON EQUITY",null,null,null,{"$f":"IF(Equity=0,0,(F37-$F$806-$F$807-$F$809)*TotalCap/Equity)","v":4.7663116609500143E-2},{"$f":"IF(Equity=0,0,(G37-$F$806-$F$807-$F$809)*TotalCap/Equity)","v":0.17269846079040282},{"$f":"IF(Equity=0,0,(H37-F806-F807-F809)*TotalCap/Equity)","v":-2.0130047717773056},{"$f":"IF(Equity=0,0,(I37-F806-F807-F809)*TotalCap/Equity)","v":-4.1132502545997512E-2},{"$f":"IF(Equity=0,0,(J37-F806-F807-F809)*TotalCap/Equity)","v":4.7663116609500143E-2},{"$f":"IF(Equity=0,0,(K37-F806-F807-F809)*TotalCap/Equity)","v":-4.1132502545997512E-2},null,null,"Not Filed"]
[30,"ALLOWED RETURN ON COMMON EQUITY",null,null,null,{"$f":"IF(Equity=0,0,(F38-$F$806-$F$807-$F$809)*TotalCap/Equity)","v":9.8000675168815637E-2},{"$f":"IF(Equity=0,0,(G38-F806-F807-F809)*TotalCap/Equity)","v":9.8000675168815637E-2},{"$f":"IF(Equity=0,0,(H38-F806-F807-F809)*TotalCap/Equity)","v":9.8000675168815637E-2},{"$f":"IF(Equity=0,0,(I38-F806-F807-F809)*TotalCap/Equity)","v":9.8000675168815637E-2},{"$f":"IF(Equity=0,0,(J38-F806-F807-F809)*TotalCap/Equity)","v":9.8000675168815637E-2},{"$f":"IF(Equity=0,0,(K38-F806-F807-F809)*TotalCap/Equity)","v":9.8000675168815637E-2}]
[31,null,null,null,null," "]
[32,"PRESENT REVENUES",null,null,null,{"$f":"F867","v":216065589},{"$f":"G867","v":71578233},{"$f":"H867","v":144487356},{"$f":"I867","v":0},{"$f":"J867","v":216065589},{"$f":"F42-J42","v":0}]
[33,"REVENUE INCREASE JUSTIFIED",null,null,null,{"$f":"F30-F42","v":30982778},10263978,20718800,0,30982778,0]
[34,null,"PER UNIT PRES REV",null,null,{"$f":"IF(F42=0,0,ROUND(F43/F42,5))","v":0.1434},0.1434,0.1434,0,0.1434,0]
[35,"REVENUE INCREASE REQUESTED",null,null,null,{"$f":"F33-F42","v":13051821},35350862,-22299041,0,13051821,0]
[36,null,"PER UNIT PRES REV",null,null,{"$f":"IF(F42=0,0,ROUND(F45/F42,5))","v":6.0409999999999998E-2},0.49387999999999999,-0.15432999999999999,0,6.0409999999999998E-2,0]
[]
[{"$f":"co_name","v":"DUKE ENERGY KENTUCKY, INC."},null,null,null,null,null,null,null,null,{"$f":"J1","v":"FR-16(7)(v)-2"}]
[{"$f":"$A$2","v":"PRODUCTION CLASSIFIED - ELECTRIC COST OF SERVICE"},null,null,null,null,null,null,null,null,{"$f":"J2","v":"WITNESS RESPONSIBLE:"}]
[{"$f":"case_name","v":"CASE NO: 2019-00271"},null,null,null,null,null,null,null,null,{"$f":"Witness","v":"JAMES E. ZIOLKOWSKI"}]
[{"$f":"data_filing","v":"DATA: 12 MONTHS ACTUAL  & 0 MONTHS ESTIMATED"},null,null,null,null,null,null,null,null,{"$f":"\"PAGE \"&Pages-16&\" OF \"&Pages","v":"PAGE 2 OF 18"}]
[{"$f":"type","v":"TYPE OF FILING: \"X\" ORIGINAL   UPDATED    REVISED  "}]
[]
[]
["LINE",null,null,null,null,{"$f":"$F$8","v":"TOTAL"},"CLASSIFIED",null,null,"TOTAL","ALL"]
["NO.","GROSS ELECTRIC PLANT IN SERVICE",null,"ALLO",null,{"$f":"$F$9","v":"PRODUCTION"},{"$f":"G9","v":"DEMAND"},"ENERGY","CUSTOMER","AT ISSUE","OTHER"]
[null,null,"Schedule 2",null,null,null,3,4,5,null," "]
[1,"PRODUCTION PLANT"]
[2,null,"PRODUCTION STEAM",{"$f":"'FR-16(7)(v)-1 Functional'!D59","v":"K201"},null,{"$f":"'FR-16(7)(v)-1 Functional'!G59","v":835340554},{"$f":"ROUND(F59*VLOOKUP(D59,AllocTable_Classified_Production,$G$10,FALSE),0)","v":835340554},{"$f":"ROUND(F59*VLOOKUP(D59,AllocTable_Classified_Production,$H$10,FALSE),0)","v":0},{"$f":"ROUND(F59*VLOOKUP(D59,AllocTable_Classified_Production,$I$10,FALSE),0)","v":0},{"$f":"SUM(G59:I59)","v":835340554},{"$f":"F59-J59","v":0}]
[3,null,"PRODUCTION OTHER",{"$f":"'FR-16(7)(v)-1 Functional'!D60","v":"K201"},null,{"$f":"'FR-16(7)(v)-1 Functional'!G60","v":373451984},{"$f":"ROUND(F60*VLOOKUP(D60,AllocTable_Classified_Production,$G$10,FALSE),0)","v":373451984},{"$f":"ROUND(F60*VLOOKUP(D60,AllocTable_Classified_Production,$H$10,FALSE),0)","v":0},{"$f":"ROUND(F60*VLOOKUP(D60,AllocTable_Classified_Production,$I$10,FALSE),0)","v":0},{"$f":"SUM(G60:I60)","v":373451984},{"$f":"F60-J60","v":0}]
[4,null,{"$f":"'FR-16(7)(v)-1 Functional'!C61","v":"ADJUSTMENT"},{"$f":"'FR-16(7)(v)-1 Functional'!D61","v":"K201"},null,{"$f":"'FR-16(7)(v)-1 Functional'!G61","v":0},{"$f":"ROUND(F61*VLOOKUP(D61,AllocTable_Classified_Production,$G$10,FALSE),0)","v":0},{"$f":"ROUND(F61*VLOOKUP(D61,AllocTable_Classified_Production,$H$10,FALSE),0)","v":0},{"$f":"ROUND(F61*VLOOKUP(D61,AllocTable_Classified_Production,$I$10,FALSE),0)","v":0},{"$f":"SUM(G61:I61)","v":0},{"$f":"F61-J61","v":0}]
[5,null,{"$f":"'FR-16(7)(v)-1 Functional'!C62","v":"  PRODUCTION PLANT IN SERVICE"},null,null,{"$f":"SUM(F59:F61)","v":1208792538},1208792538,0,0,1208792538,0]
[6]
[7,"TRANSMISSION PLANT"]
[8,null,"MAIN STEP-UP TRANSFORMERS",{"$f":"'FR-16(7)(v)-1 Functional'!D65","v":"K202"},null,{"$f":"'FR-16(7)(v)-1 Functional'!G65","v":0},{"$f":"ROUND(F65*VLOOKUP(D65,AllocTable_Classified_Production,$G$10,FALSE),0)","v":0},{"$f":"ROUND(F65*VLOOKUP(D65,AllocTable_Classified_Production,$H$10,FALSE),0)","v":0},{"$f":"ROUND(F65*VLOOKUP(D65,AllocTable_Classified_Production,$I$10,FALSE),0)","v":0},{"$f":"SUM(G65:I65)","v":0},{"$f":"F65-J65","v":0}]
[9,null,"OTHER TRANSMISSION",{"$f":"'FR-16(7)(v)-1 Functional'!D66","v":"K202"},null,{"$f":"'FR-16(7)(v)-1 Functional'!G66","v":0},{"$f":"ROUND(F66*VLOOKUP(D66,AllocTable_Classified_Production,$G$10,FALSE),0)","v":0},{"$f":"ROUND(F66*VLOOKUP(D66,AllocTable_Classified_Production,$H$10,FALSE),0)","v":0},{"$f":"ROUND(F66*VLOOKUP(D66,AllocTable_Classified_Production,$I$10,FALSE),0)","v":0},{"$f":"SUM(G66:I66)","v":0},{"$f":"F66-J66","v":0}]
[10,null,"ADJUSTMENT",{"$f":"'FR-16(7)(v)-1 Functional'!D67","v":"K202"},null,{"$f":"'FR-16(7)(v)-1 Functional'!G67","v":0},{"$f":"ROUND(F67*VLOOKUP(D67,AllocTable_Classified_Production,$G$10,FALSE),0)","v":0},{"$f":"ROUND(F67*VLOOKUP(D67,AllocTable_Classified_Production,$H$10,FALSE),0)","v":0},{"$f":"ROUND(F67*VLOOKUP(D67,AllocTable_Classified_Production,$I$10,FALSE),0)","v":0},{"$f":"SUM(G67:I67)","v":0},{"$f":"F67-J67","v":0}]
[11,null,{"$f":"'FR-16(7)(v)-1 Functional'!C68","v":"  TRANSMISSION PLANT IN SERVICE"},null,null,{"$f":"SUM(F65:F67)","v":0},0,0,0,0,0]
[12]
[13,"TOTAL PROD & TRANS PLANT",null,null,null,{"$f":"F68+F62","v":1208792538},1208792538,0,0,1208792538,0]
[14]
[15,"DISTRIBUTION PLANT"]
[16,null,{"$f":"'FR-16(7)(v)-1 Functional'!C73","v":"SUBSTATIONS"},{"$f":"'FR-16(7)(v)-1 Functional'!D73","v":"K215"},null,{"$f":"'FR-16(7)(v)-1 Functional'!G73","v":0},{"$f":"ROUND(F73*VLOOKUP(D73,AllocTable_Classified_Production,$G$10,FALSE),0)","v":0},{"$f":"ROUND(F73*VLOOKUP(D73,AllocTable_Classified_Production,$H$10,FALSE),0)","v":0},{"$f":"ROUND(F73*VLOOKUP(D73,AllocTable_Classified_Production,$I$10,FALSE),0)","v":0},{"$f":"SUM(G73:I73)","v":0},{"$f":"F73-J73","v":0}]
[17,null,{"$f":"'FR-16(7)(v)-1 Functional'!C74","v":"POLES, TOWERS  & FIXTURES - PRIMARY - DEMAND"},{"$f":"'FR-16(7)(v)-1 Functional'!D74","v":"K205"},null,{"$f":"'FR-16(7)(v)-1 Functional'!G74","v":0},{"$f":"ROUND(F74*VLOOKUP(D74,AllocTable_Classified_Production,$G$10,FALSE),0)","v":0},{"$f":"ROUND(F74*VLOOKUP(D74,AllocTable_Classified_Production,$H$10,FALSE),0)","v":0},{"$f":"ROUND(F74*VLOOKUP(D74,AllocTable_Classified_Production,$I$10,FALSE),0)","v":0},{"$f":"SUM(G74:I74)","v":0},{"$f":"F74-J74","v":0}]
[18,null,{"$f":"'FR-16(7)(v)-1 Functional'!C75","v":"POLES, TOWERS  & FIXTURES - PRIMARY - CUSTOMER"},{"$f":"'FR-16(7)(v)-1 Functional'!D75","v":"K405"},null,{"$f":"'FR-16(7)(v)-1 Functional'!G75","v":0},{"$f":"ROUND(F75*VLOOKUP(D75,AllocTable_Classified_Production,$G$10,FALSE),0)","v":0},{"$f":"ROUND(F75*VLOOKUP(D75,AllocTable_Classified_Production,$H$10,FALSE),0)","v":0},{"$f":"ROUND(F75*VLOOKUP(D75,AllocTable_Classified_Production,$I$10,FALSE),0)","v":0},{"$f":"SUM(G75:I75)","v":0},{"$f":"F75-J75","v":0}]
[19,null,{"$f":"'FR-16(7)(v)-1 Functional'!C76","v":"POLES, TOWERS  & FIXTURES - SECONDARY - DEMAND"},{"$f":"'FR-16(7)(v)-1 Functional'!D76","v":"K206"},null,{"$f":"'FR-16(7)(v)-1 Functional'!G76","v":0},0,0,0,0,0]
[20,null,{"$f":"'FR-16(7)(v)-1 Functional'!C77","v":"POLES, TOWERS  & FIXTURES - SECONDARY - CUSTOMER"},{"$f":"'FR-16(7)(v)-1 Functional'!D77","v":"K405"},null,{"$f":"'FR-16(7)(v)-1 Functional'!G77","v":0},0,0,0,0,0]
[21,null,{"$f":"'FR-16(7)(v)-1 Functional'!C78","v":"CONDUCTORS - OVERHEAD / PRIMARY - DEMAND"},{"$f":"'FR-16(7)(v)-1 Functional'!D78","v":"K205"},null,{"$f":"'FR-16(7)(v)-1 Functional'!G78","v":0},0,0,0,0,0]
[22,null,{"$f":"'FR-16(7)(v)-1 Functional'!C79","v":"CONDUCTORS - OVERHEAD / PRIMARY - CUSTOMER"},{"$f":"'FR-16(7)(v)-1 Functional'!D79","v":"K405"},null,{"$f":"'FR-16(7)(v)-1 Functional'!G79","v":0},0,0,0,0,0]
[23,null,{"$f":"'FR-16(7)(v)-1 Functional'!C80","v":"CONDUCTORS - OVERHEAD / SECONDARY - DEMAND"},{"$f":"'FR-16(7)(v)-1 Functional'!D80","v":"K206"},null,{"$f":"'FR-16(7)(v)-1 Functional'!G80","v":0},0,0,0,0,0]
[24,null,{"$f":"'FR-16(7)(v)-1 Functional'!C81","v":"CONDUCTORS - OVERHEAD / SECONDARY - CUSTOMER"},{"$f":"'FR-16(7)(v)-1 Functional'!D81","v":"K405"},null,{"$f":"'FR-16(7)(v)-1 Functional'!G81","v":0},0,0,0,0,0]
[25,null,{"$f":"'FR-16(7)(v)-1 Functional'!C82","v":"CONDUCTORS - UNDERGROUND / PRIMARY - DEMAND"},{"$f":"'FR-16(7)(v)-1 Functional'!D82","v":"K205"},null,{"$f":"'FR-16(7)(v)-1 Functional'!G82","v":0},0,0,0,0,0]
[26,null,{"$f":"'FR-16(7)(v)-1 Functional'!C83","v":"CONDUCTORS - UNDERGROUND / PRIMARY - CUSTOMER"},{"$f":"'FR-16(7)(v)-1 Functional'!D83","v":"K405"},null,{"$f":"'FR-16(7)(v)-1 Functional'!G83","v":0},0,0,0,0,0]
[27,null,{"$f":"'FR-16(7)(v)-1 Functional'!C84","v":"CONDUCTORS - UNDERGROUND / SECONDARY - DEMAND"},{"$f":"'FR-16(7)(v)-1 Functional'!D84","v":"K206"},null,{"$f":"'FR-16(7)(v)-1 Functional'!G84","v":0},0,0,0,0,0]
[28,null,{"$f":"'FR-16(7)(v)-1 Functional'!C85","v":"CONDUCTORS - UNDERGROUND / SECONDARY - CUSTOMER"},{"$f":"'FR-16(7)(v)-1 Functional'!D85","v":"K405"},null,{"$f":"'FR-16(7)(v)-1 Functional'!G85","v":0},0,0,0,0,0]
[29,null,{"$f":"'FR-16(7)(v)-1 Functional'!C86","v":"TRANSFORMERS DEMAND RELATED"},{"$f":"'FR-16(7)(v)-1 Functional'!D86","v":"K215"},null,{"$f":"'FR-16(7)(v)-1 Functional'!G86","v":0},{"$f":"ROUND(F86*VLOOKUP(D86,AllocTable_Classified_Production,$G$10,FALSE),0)","v":0},{"$f":"ROUND(F86*VLOOKUP(D86,AllocTable_Classified_Production,$H$10,FALSE),0)","v":0},{"$f":"ROUND(F86*VLOOKUP(D86,AllocTable_Classified_Production,$I$10,FALSE),0)","v":0},{"$f":"SUM(G86:I86)","v":0},{"$f":"F86-J86","v":0}]
[30,null,{"$f":"'FR-16(7)(v)-1 Functional'!C87","v":"TRANSFORMERS CUSTOMER RELATED"},{"$f":"'FR-16(7)(v)-1 Functional'!D87","v":"K405"},null,{"$f":"'FR-16(7)(v)-1 Functional'!G87","v":0},0,0,0,0,0]
[31,null,{"$f":"'FR-16(7)(v)-1 Functional'!C88","v":"SERVICES"},{"$f":"'FR-16(7)(v)-1 Functional'!D88","v":"K217"},null,{"$f":"'FR-16(7)(v)-1 Functional'!G88","v":0},0,0,0,0,0]
[32,null,{"$f":"'FR-16(7)(v)-1 Functional'!C89","v":"METERS"},{"$f":"'FR-16(7)(v)-1 Functional'!D89","v":"K407"},null,{"$f":"'FR-16(7)(v)-1 Functional'!G89","v":0},0,0,0,0,0]
[33,null,{"$f":"'FR-16(7)(v)-1 Functional'!C90","v":"STREET LIGHTS"},{"$f":"'FR-16(7)(v)-1 Functional'!D90","v":"K401"},null,{"$f":"'FR-16(7)(v)-1 Functional'!G90","v":0},0,0,0,0,0]
[34,null,{"$f":"'FR-16(7)(v)-1 Functional'!C91","v":"ADJUSTMENT  "},{"$f":"'FR-16(7)(v)-1 Functional'!D91","v":"K209"},null,{"$f":"'FR-16(7)(v)-1 Functional'!G91","v":0},0,0,0,0,0]
[35,null,{"$f":"'FR-16(7)(v)-1 Functional'!C92","v":"CONSTRUCTION NOT CLASSIFIED"},{"$f":"'FR-16(7)(v)-1 Functional'!D92","v":"K209"},null,{"$f":"'FR-16(7)(v)-1 Functional'!G92","v":0},0,0,0,0,0]
[36,null,{"$f":"'FR-16(7)(v)-1 Functional'!C93","v":"RWIP"},{"$f":"'FR-16(7)(v)-1 Functional'!D93","v":"K215"},null,{"$f":"'FR-16(7)(v)-1 Functional'!G93","v":0},{"$f":"ROUND(F93*VLOOKUP(D93,AllocTable_Classified_Production,$G$10,FALSE),0)","v":0},{"$f":"ROUND(F93*VLOOKUP(D93,AllocTable_Classified_Production,$H$10,FALSE),0)","v":0},{"$f":"ROUND(F93*VLOOKUP(D93,AllocTable_Classified_Production,$I$10,FALSE),0)","v":0},{"$f":"SUM(G93:I93)","v":0},{"$f":"F93-J93","v":0}]
[37,null,{"$f":"'FR-16(7)(v)-1 Functional'!C94","v":"  DISTRIBUTION PLANT IN SERVICE"},null,null,{"$f":"SUM(F73:F93)","v":0},{"$f":"SUM(G73:G92)","v":0},0,0,0,0]
[38]
[39,"TOTAL TRANS & DIST PLANT",null,null,null,{"$f":"F94+F68","v":0},0,0,0,0,0]
[40,"TOTAL GROSS PTD PLANT",null,null,null,{"$f":"F94+F70","v":1208792538},1208792538,0,0,1208792538,0]
[41]
[42,"GENERAL & INTANGIBLE PLANT"]
[43,null,{"$f":"'FR-16(7)(v)-1 Functional'!C100","v":"PRODUCTION - DEMAND"},{"$f":"'FR-16(7)(v)-1 Functional'!D100","v":"K201"},null,{"$f":"'FR-16(7)(v)-1 Functional'!G100","v":16704047},{"$f":"ROUND(F100*VLOOKUP(D100,AllocTable_Classified_Production,$G$10,FALSE),0)","v":16704047},{"$f":"ROUND(F100*VLOOKUP(D100,AllocTable_Classified_Production,$H$10,FALSE),0)","v":0},{"$f":"ROUND(F100*VLOOKUP(D100,AllocTable_Classified_Production,$I$10,FALSE),0)","v":0},{"$f":"SUM(G100:I100)","v":16704047},{"$f":"F100-J100","v":0}]
[44,null,{"$f":"'FR-16(7)(v)-1 Functional'!C101","v":"PRODUCTION - ENERGY"},{"$f":"'FR-16(7)(v)-1 Functional'!D101","v":"K301"},null,{"$f":"'FR-16(7)(v)-1 Functional'!G101","v":19517654},0,19517654,0,{"$f":"SUM(G101:I101)","v":19517654},{"$f":"F101-J101","v":0}]
[45,null,{"$f":"'FR-16(7)(v)-1 Functional'!C102","v":"TRANSMISSION"},{"$f":"'FR-16(7)(v)-1 Functional'!D102","v":"K202"},null,{"$f":"'FR-16(7)(v)-1 Functional'!G102","v":0},0,0,0,0,0]
[46,null,{"$f":"'FR-16(7)(v)-1 Functional'!C103","v":"DISTRIBUTION - DEMAND"},{"$f":"'FR-16(7)(v)-1 Functional'!D103","v":"K201"},null,{"$f":"'FR-16(7)(v)-1 Functional'!G103","v":8865387},8865387,0,0,8865387,0]
[47,null,{"$f":"'FR-16(7)(v)-1 Functional'!C104","v":"DISTRIBUTION - CUSTOMER"},{"$f":"'FR-16(7)(v)-1 Functional'!D104","v":"K405"},null,{"$f":"'FR-16(7)(v)-1 Functional'!G104","v":0},0,0,0,0,0]
[48,null,{"$f":"'FR-16(7)(v)-1 Functional'!C105","v":"CUSTOMER ACCOUNTING"},{"$f":"'FR-16(7)(v)-1 Functional'!D105","v":"A308"},null,{"$f":"'FR-16(7)(v)-1 Functional'!G105","v":0},0,0,0,0,0]
[49,null,{"$f":"'FR-16(7)(v)-1 Functional'!C106","v":"CUSTOMER SERVICE & INFORMATION"},{"$f":"'FR-16(7)(v)-1 Functional'!D106","v":"A310"},null,{"$f":"'FR-16(7)(v)-1 Functional'!G106","v":0},0,0,0,0,0]
[50,null,{"$f":"'FR-16(7)(v)-1 Functional'!C107","v":"SALES"},{"$f":"'FR-16(7)(v)-1 Functional'!D107","v":"A312"},null,{"$f":"'FR-16(7)(v)-1 Functional'!G107","v":0},0,0,0,0,0]
[51,null,{"$f":"'FR-16(7)(v)-1 Functional'!C108","v":"ADJUSTMENT"},{"$f":"'FR-16(7)(v)-1 Functional'!D108","v":"A315"},null,{"$f":"'FR-16(7)(v)-1 Functional'!G108","v":0},0,0,0,0,0]
[52,null,{"$f":"'FR-16(7)(v)-1 Functional'!C109","v":"  GEN & INTANG PLANT IN SERVICE"},null,null,{"$f":"SUM(F100:F108)","v":45087088},25569434,19517654,0,45087088,0]
[53]
[54,"COMMON & OTHER PLANT"]
[55,null,{"$f":"'FR-16(7)(v)-1 Functional'!C112","v":"PRODUCTION - DEMAND"},{"$f":"'FR-16(7)(v)-1 Functional'!D112","v":"K201"},null,{"$f":"'FR-16(7)(v)-1 Functional'!G112","v":9454192},{"$f":"ROUND(F112*VLOOKUP(D112,AllocTable_Classified_Production,$G$10,FALSE),0)","v":9454192},{"$f":"ROUND(F112*VLOOKUP(D112,AllocTable_Classified_Production,$H$10,FALSE),0)","v":0},{"$f":"ROUND(F112*VLOOKUP(D112,AllocTable_Classified_Production,$I$10,FALSE),0)","v":0},{"$f":"SUM(G112:I112)","v":9454192},{"$f":"F112-J112","v":0}]
[56,null,{"$f":"'FR-16(7)(v)-1 Functional'!C113","v":"PRODUCTION - ENERGY"},{"$f":"'FR-16(7)(v)-1 Functional'!D113","v":"K301"},null,{"$f":"'FR-16(7)(v)-1 Functional'!G113","v":11046644},{"$f":"ROUND(F113*VLOOKUP(D113,AllocTable_Classified_Production,$G$10,FALSE),0)","v":0},{"$f":"ROUND(F113*VLOOKUP(D113,AllocTable_Classified_Production,$H$10,FALSE),0)","v":11046644},{"$f":"ROUND(F113*VLOOKUP(D113,AllocTable_Classified_Production,$I$10,FALSE),0)","v":0},{"$f":"SUM(G113:I113)","v":11046644},{"$f":"F113-J113","v":0}]
[57,null,{"$f":"'FR-16(7)(v)-1 Functional'!C114","v":"TRANSMISSION"},{"$f":"'FR-16(7)(v)-1 Functional'!D114","v":"K202"},null,{"$f":"'FR-16(7)(v)-1 Functional'!G114","v":0},0,0,0,0,0]
[58,null,{"$f":"'FR-16(7)(v)-1 Functional'!C115","v":"DISTRIBUTION - DEMAND"},{"$f":"'FR-16(7)(v)-1 Functional'!D115","v":"K201"},null,{"$f":"'FR-16(7)(v)-1 Functional'!G115","v":5017651},5017651,0,0,5017651,0]
[59,null,{"$f":"'FR-16(7)(v)-1 Functional'!C116","v":"DISTRIBUTION - CUSTOMER"},{"$f":"'FR-16(7)(v)-1 Functional'!D116","v":"K405"},null,{"$f":"'FR-16(7)(v)-1 Functional'!G116","v":0},0,0,0,0,0]
[60,null,{"$f":"'FR-16(7)(v)-1 Functional'!C117","v":"CUSTOMER ACCOUNTING"},{"$f":"'FR-16(7)(v)-1 Functional'!D117","v":"A308"},null,{"$f":"'FR-16(7)(v)-1 Functional'!G117","v":0},0,0,0,0,0]
[61,null,{"$f":"'FR-16(7)(v)-1 Functional'!C118","v":"CUSTOMER SERVICE & INFORMATION"},{"$f":"'FR-16(7)(v)-1 Functional'!D118","v":"A310"},null,{"$f":"'FR-16(7)(v)-1 Functional'!G118","v":0},0,0,0,0,0]
[62,null,{"$f":"'FR-16(7)(v)-1 Functional'!C119","v":"SALES"},{"$f":"'FR-16(7)(v)-1 Functional'!D119","v":"A312"},null,{"$f":"'FR-16(7)(v)-1 Functional'!G119","v":0},0,0,0,0,0]
[63,null,{"$f":"'FR-16(7)(v)-1 Functional'!C120","v":"ADJUSTMENT"},{"$f":"'FR-16(7)(v)-1 Functional'!D120","v":"A315"},null,{"$f":"'FR-16(7)(v)-1 Functional'!G120","v":0},0,0,0,0,0]
[64,null,{"$f":"'FR-16(7)(v)-1 Functional'!C121","v":"  COMMON & OTHER PLANT IN SERVICE"},null,null,{"$f":"SUM(F112:F120)","v":25518487},14471843,11046644,0,25518487,0]
[65]
[66,"GROSS ELECTRIC PLANT IN SERVICE",null,null,null,{"$f":"F97+F109+F121","v":1279398113},1248833815,30564298,0,1279398113,0]
[]
[{"$f":"co_name","v":"DUKE ENERGY KENTUCKY, INC."},null,null,null,null,null,null,null,null,{"$f":"J1","v":"FR-16(7)(v)-2"}]
[{"$f":"$A$2","v":"PRODUCTION CLASSIFIED - ELECTRIC COST OF SERVICE"},null,null,null,null,null,null,null,null,{"$f":"J2","v":"WITNESS RESPONSIBLE:"}]
[{"$f":"case_name","v":"CASE NO: 2019-00271"},null,null,null,null,null,null,null,null,{"$f":"Witness","v":"JAMES E. ZIOLKOWSKI"}]
[{"$f":"data_filing","v":"DATA: 12 MONTHS ACTUAL  & 0 MONTHS ESTIMATED"},null,null,null,null,null,null,null,null,{"$f":"\"PAGE \"&Pages-15&\" OF \"&Pages","v":"PAGE 3 OF 18"}]
[{"$f":"type","v":"TYPE OF FILING: \"X\" ORIGINAL   UPDATED    REVISED  "}]
[]
[]
["LINE",null,null,null,null,{"$f":"$F$8","v":"TOTAL"},"CLASSIFIED",null,null,"TOTAL","ALL"]
["NO.","DEPRECIATION RESERVE",null,"ALLO",null,{"$f":"$F$9","v":"PRODUCTION"},{"$f":"G9","v":"DEMAND"},"ENERGY","CUSTOMER","AT ISSUE","OTHER"]
[null,null,"Schedule 3",null,null,null,3,4,5]
[1,"PRODUCTION PLANT"]
[2,null,{"$f":"'FR-16(7)(v)-1 Functional'!C136","v":"PRODUCTION STEAM"},{"$f":"'FR-16(7)(v)-1 Functional'!D136","v":"K201"},null,{"$f":"'FR-16(7)(v)-1 Functional'!G136","v":401160304},{"$f":"F136-SUM(H136:I136)","v":401160304},{"$f":"ROUND(F136*VLOOKUP(D136,AllocTable_Classified_Production,$H$10,FALSE),0)","v":0},{"$f":"ROUND(F136*VLOOKUP(D136,AllocTable_Classified_Production,$I$10,FALSE),0)","v":0},{"$f":"SUM(G136:I136)","v":401160304},{"$f":"F136-J136","v":0}]
[3,null,{"$f":"'FR-16(7)(v)-1 Functional'!C137","v":"PRODUCTION OTHER"},{"$f":"'FR-16(7)(v)-1 Functional'!D137","v":"K201"},null,{"$f":"'FR-16(7)(v)-1 Functional'!G137","v":184221788},{"$f":"F137-SUM(H137:I137)","v":184221788},{"$f":"ROUND(F137*VLOOKUP(D137,AllocTable_Classified_Production,$H$10,FALSE),0)","v":0},{"$f":"ROUND(F137*VLOOKUP(D137,AllocTable_Classified_Production,$I$10,FALSE),0)","v":0},{"$f":"SUM(G137:I137)","v":184221788},{"$f":"F137-J137","v":0}]
[4,null,{"$f":"'FR-16(7)(v)-1 Functional'!C138","v":"ADJUSTMENT"},{"$f":"'FR-16(7)(v)-1 Functional'!D138","v":"K201"},null,{"$f":"'FR-16(7)(v)-1 Functional'!G138","v":1553366},{"$f":"F138-SUM(H138:I138)","v":1553366},{"$f":"ROUND(F138*VLOOKUP(D138,AllocTable_Classified_Production,$H$10,FALSE),0)","v":0},{"$f":"ROUND(F138*VLOOKUP(D138,AllocTable_Classified_Production,$I$10,FALSE),0)","v":0},{"$f":"SUM(G138:I138)","v":1553366},{"$f":"F138-J138","v":0}]
[5,null,{"$f":"'FR-16(7)(v)-1 Functional'!C139","v":"  TOTAL PROD DEPREC RESERVE"},null,null,{"$f":"SUM(F136:F138)","v":586935458},586935458,0,0,586935458,0]
[6]
[7,"TRANSMISSION PLANT"]
[8,null,{"$f":"'FR-16(7)(v)-1 Functional'!C142","v":"MAIN STEP-UP TRANSFORMERS"},{"$f":"'FR-16(7)(v)-1 Functional'!D142","v":"K202"},null,{"$f":"'FR-16(7)(v)-1 Functional'!G142","v":0},{"$f":"F142-SUM(H142:I142)","v":0},{"$f":"ROUND(F142*VLOOKUP(D142,AllocTable_Classified_Production,$H$10,FALSE),0)","v":0},{"$f":"ROUND(F142*VLOOKUP(D142,AllocTable_Classified_Production,$I$10,FALSE),0)","v":0},{"$f":"SUM(G142:I142)","v":0},{"$f":"F142-J142","v":0}]
[9,null,{"$f":"'FR-16(7)(v)-1 Functional'!C143","v":"OTHER TRANSMISSION"},{"$f":"'FR-16(7)(v)-1 Functional'!D143","v":"K202"},null,{"$f":"'FR-16(7)(v)-1 Functional'!G143","v":0},{"$f":"F143-SUM(H143:I143)","v":0},{"$f":"ROUND(F143*VLOOKUP(D143,AllocTable_Classified_Production,$H$10,FALSE),0)","v":0},{"$f":"ROUND(F143*VLOOKUP(D143,AllocTable_Classified_Production,$I$10,FALSE),0)","v":0},{"$f":"SUM(G143:I143)","v":0},{"$f":"F143-J143","v":0}]
[10,null,{"$f":"'FR-16(7)(v)-1 Functional'!C144","v":"ADJUSTMENT"},{"$f":"'FR-16(7)(v)-1 Functional'!D144","v":"K202"},null,{"$f":"'FR-16(7)(v)-1 Functional'!G144","v":0},{"$f":"F144-SUM(H144:I144)","v":0},{"$f":"ROUND(F144*VLOOKUP(D144,AllocTable_Classified_Production,$H$10,FALSE),0)","v":0},{"$f":"ROUND(F144*VLOOKUP(D144,AllocTable_Classified_Production,$I$10,FALSE),0)","v":0},{"$f":"SUM(G144:I144)","v":0},{"$f":"F144-J144","v":0}]
[11,null,{"$f":"'FR-16(7)(v)-1 Functional'!C145","v":"  TOTAL TRANS DEPREC RESERVE"},null,null,{"$f":"SUM(F142:F144)","v":0},0,0,0,0,0]
[12]
[13,null,{"$f":"'FR-16(7)(v)-1 Functional'!C147","v":"TOTAL PROD & TRANS DEPREC RESERVE"},null,null,{"$f":"F145+F139","v":586935458},{"$f":"G145+G139","v":586935458},{"$f":"H145+H139","v":0},{"$f":"I145+I139","v":0},{"$f":"J145+J139","v":586935458},{"$f":"F147-J147","v":0}]
[14]
[15,"DISTRIBUTION PLANT"]
[16,null,{"$f":"'FR-16(7)(v)-1 Functional'!C150","v":"SUBSTATIONS"},{"$f":"'FR-16(7)(v)-1 Functional'!D150","v":"K215"},null,{"$f":"'FR-16(7)(v)-1 Functional'!G150","v":0},{"$f":"F150-SUM(H150:I150)","v":0},{"$f":"ROUND(F150*VLOOKUP(D150,AllocTable_Classified_Production,$H$10,FALSE),0)","v":0},{"$f":"ROUND(F150*VLOOKUP(D150,AllocTable_Classified_Production,$I$10,FALSE),0)","v":0},{"$f":"SUM(G150:I150)","v":0},{"$f":"F150-J150","v":0}]
[17,null,{"$f":"'FR-16(7)(v)-1 Functional'!C151","v":"POLES, TOWERS  & FIXTURES - PRIMARY - DEMAND"},{"$f":"'FR-16(7)(v)-1 Functional'!D151","v":"K205"},null,{"$f":"'FR-16(7)(v)-1 Functional'!G151","v":0},{"$f":"F151-SUM(H151:I151)","v":0},{"$f":"ROUND(F151*VLOOKUP(D151,AllocTable_Classified_Production,$H$10,FALSE),0)","v":0},{"$f":"ROUND(F151*VLOOKUP(D151,AllocTable_Classified_Production,$I$10,FALSE),0)","v":0},{"$f":"SUM(G151:I151)","v":0},{"$f":"F151-J151","v":0}]
[18,null,{"$f":"'FR-16(7)(v)-1 Functional'!C152","v":"POLES, TOWERS  & FIXTURES - PRIMARY - CUSTOMER"},{"$f":"'FR-16(7)(v)-1 Functional'!D152","v":"K405"},null,{"$f":"'FR-16(7)(v)-1 Functional'!G152","v":0},{"$f":"F152-SUM(H152:I152)","v":0},{"$f":"ROUND(F152*VLOOKUP(D152,AllocTable_Classified_Production,$H$10,FALSE),0)","v":0},{"$f":"ROUND(F152*VLOOKUP(D152,AllocTable_Classified_Production,$I$10,FALSE),0)","v":0},{"$f":"SUM(G152:I152)","v":0},{"$f":"F152-J152","v":0}]
[19,null,{"$f":"'FR-16(7)(v)-1 Functional'!C153","v":"POLES, TOWERS  & FIXTURES - SECONDARY - DEMAND"},{"$f":"'FR-16(7)(v)-1 Functional'!D153","v":"K206"},null,{"$f":"'FR-16(7)(v)-1 Functional'!G153","v":0},0,0,0,0,0]
[20,null,{"$f":"'FR-16(7)(v)-1 Functional'!C154","v":"POLES, TOWERS  & FIXTURES - SECONDARY - CUSTOMER"},{"$f":"'FR-16(7)(v)-1 Functional'!D154","v":"K405"},null,{"$f":"'FR-16(7)(v)-1 Functional'!G154","v":0},0,0,0,0,0]
[21,null,{"$f":"'FR-16(7)(v)-1 Functional'!C155","v":"CONDUCTORS - OVERHEAD / PRIMARY - DEMAND"},{"$f":"'FR-16(7)(v)-1 Functional'!D155","v":"K205"},null,{"$f":"'FR-16(7)(v)-1 Functional'!G155","v":0},0,0,0,0,0]
[22,null,{"$f":"'FR-16(7)(v)-1 Functional'!C156","v":"CONDUCTORS - OVERHEAD / PRIMARY - CUSTOMER"},{"$f":"'FR-16(7)(v)-1 Functional'!D156","v":"K405"},null,{"$f":"'FR-16(7)(v)-1 Functional'!G156","v":0},0,0,0,0,0]
[23,null,{"$f":"'FR-16(7)(v)-1 Functional'!C157","v":"CONDUCTORS - OVERHEAD / SECONDARY - DEMAND"},{"$f":"'FR-16(7)(v)-1 Functional'!D157","v":"K206"},null,{"$f":"'FR-16(7)(v)-1 Functional'!G157","v":0},0,0,0,0,0]
[24,null,{"$f":"'FR-16(7)(v)-1 Functional'!C158","v":"CONDUCTORS - OVERHEAD / SECONDARY - CUSTOMER"},{"$f":"'FR-16(7)(v)-1 Functional'!D158","v":"K405"},null,{"$f":"'FR-16(7)(v)-1 Functional'!G158","v":0},0,0,0,0,0]
[25,null,{"$f":"'FR-16(7)(v)-1 Functional'!C159","v":"CONDUCTORS - UNDERGROUND / PRIMARY - DEMAND"},{"$f":"'FR-16(7)(v)-1 Functional'!D159","v":"K205"},null,{"$f":"'FR-16(7)(v)-1 Functional'!G159","v":0},0,0,0,0,0]
[26,null,{"$f":"'FR-16(7)(v)-1 Functional'!C160","v":"CONDUCTORS - UNDERGROUND / PRIMARY - CUSTOMER"},{"$f":"'FR-16(7)(v)-1 Functional'!D160","v":"K405"},null,{"$f":"'FR-16(7)(v)-1 Functional'!G160","v":0},0,0,0,0,0]
[27,null,{"$f":"'FR-16(7)(v)-1 Functional'!C161","v":"CONDUCTORS - UNDERGROUND / SECONDARY - DEMAND"},{"$f":"'FR-16(7)(v)-1 Functional'!D161","v":"K206"},null,{"$f":"'FR-16(7)(v)-1 Functional'!G161","v":0},0,0,0,0,0]
[28,null,{"$f":"'FR-16(7)(v)-1 Functional'!C162","v":"CONDUCTORS - UNDERGROUND / SECONDARY - CUSTOMER"},{"$f":"'FR-16(7)(v)-1 Functional'!D162","v":"K405"},null,{"$f":"'FR-16(7)(v)-1 Functional'!G162","v":0},0,0,0,0,0]
[29,null,{"$f":"'FR-16(7)(v)-1 Functional'!C163","v":"TRANSFORMERS DEMAND RELATED"},{"$f":"'FR-16(7)(v)-1 Functional'!D163","v":"K215"},null,{"$f":"'FR-16(7)(v)-1 Functional'!G163","v":0},{"$f":"F163-SUM(H163:I163)","v":0},{"$f":"ROUND(F163*VLOOKUP(D163,AllocTable_Classified_Production,$H$10,FALSE),0)","v":0},{"$f":"ROUND(F163*VLOOKUP(D163,AllocTable_Classified_Production,$I$10,FALSE),0)","v":0},{"$f":"SUM(G163:I163)","v":0},{"$f":"F163-J163","v":0}]
[30,null,{"$f":"'FR-16(7)(v)-1 Functional'!C164","v":"TRANSFORMERS CUSTOMER RELATED"},{"$f":"'FR-16(7)(v)-1 Functional'!D164","v":"K405"},null,{"$f":"'FR-16(7)(v)-1 Functional'!G164","v":0},0,0,0,0,0]
[31,null,{"$f":"'FR-16(7)(v)-1 Functional'!C165","v":"SERVICES"},{"$f":"'FR-16(7)(v)-1 Functional'!D165","v":"K217"},null,{"$f":"'FR-16(7)(v)-1 Functional'!G165","v":0},0,0,0,0,0]
[32,null,{"$f":"'FR-16(7)(v)-1 Functional'!C166","v":"METERS"},{"$f":"'FR-16(7)(v)-1 Functional'!D166","v":"K407"},null,{"$f":"'FR-16(7)(v)-1 Functional'!G166","v":0},0,0,0,0,0]
[33,null,{"$f":"'FR-16(7)(v)-1 Functional'!C167","v":"STREET LIGHTS"},{"$f":"'FR-16(7)(v)-1 Functional'!D167","v":"K401"},null,{"$f":"'FR-16(7)(v)-1 Functional'!G167","v":0},0,0,0,0,0]
[34,null,{"$f":"'FR-16(7)(v)-1 Functional'!C168","v":"ADJUSTMENT  "},{"$f":"'FR-16(7)(v)-1 Functional'!D168","v":"K209"},null,{"$f":"'FR-16(7)(v)-1 Functional'!G168","v":0},0,0,0,0,0]
[35,null,{"$f":"'FR-16(7)(v)-1 Functional'!C169","v":"CONSTRUCTION NOT CLASSIFIED"},{"$f":"'FR-16(7)(v)-1 Functional'!D169","v":"K209"},null,{"$f":"'FR-16(7)(v)-1 Functional'!G169","v":0},0,0,0,0,0]
[36,null,{"$f":"'FR-16(7)(v)-1 Functional'!C170","v":"RWIP"},{"$f":"'FR-16(7)(v)-1 Functional'!D170","v":"K215"},null,{"$f":"'FR-16(7)(v)-1 Functional'!G170","v":0},{"$f":"F170-SUM(H170:I170)","v":0},{"$f":"ROUND(F170*VLOOKUP(D170,AllocTable_Classified_Production,$H$10,FALSE),0)","v":0},{"$f":"ROUND(F170*VLOOKUP(D170,AllocTable_Classified_Production,$I$10,FALSE),0)","v":0},{"$f":"SUM(G170:I170)","v":0},{"$f":"F170-J170","v":0}]
[37,null,{"$f":"'FR-16(7)(v)-1 Functional'!C171","v":"  TOTAL DIST DEPREC RESERVE"},null,null,{"$f":"SUM(F149:F170)","v":0},{"$f":"SUM(G149:G170)","v":0},{"$f":"SUM(H149:H170)","v":0},{"$f":"SUM(I149:I170)","v":0},{"$f":"SUM(J149:J169)","v":0},0]
[38]
[39,null,"TOTAL TRANS & DIST DEPREC RESERVE",null,null,{"$f":"F171+F145","v":0},{"$f":"G171+G145","v":0},{"$f":"H171+H145","v":0},{"$f":"I171+I145","v":0},{"$f":"J171+J145","v":0},{"$f":"F173-J173","v":0}]
[40,null,"TOTAL GROSS PTD PLANT DEPREC RESERVE",null,null,{"$f":"F147+F171","v":586935458},{"$f":"G147+G171","v":586935458},{"$f":"H147+H171","v":0},{"$f":"I147+I171","v":0},{"$f":"J147+J171","v":586935458},{"$f":"F174-J174","v":0}]
[41]
[42,"GENERAL & INTANGIBLE PLANT"]
[43,null,{"$f":"'FR-16(7)(v)-1 Functional'!C177","v":"PRODUCTION - DEMAND"},{"$f":"'FR-16(7)(v)-1 Functional'!D177","v":"K201"},null,{"$f":"'FR-16(7)(v)-1 Functional'!G177","v":5383063},{"$f":"F177-SUM(H177:I177)","v":5383063},{"$f":"ROUND(F177*VLOOKUP(D177,AllocTable_Classified_Production,$H$10,FALSE),0)","v":0},{"$f":"ROUND(F177*VLOOKUP(D177,AllocTable_Classified_Production,$I$10,FALSE),0)","v":0},{"$f":"SUM(G177:I177)","v":5383063},{"$f":"F177-J177","v":0}]
[44,null,{"$f":"'FR-16(7)(v)-1 Functional'!C178","v":"PRODUCTION - ENERGY"},{"$f":"'FR-16(7)(v)-1 Functional'!D178","v":"K301"},null,{"$f":"'FR-16(7)(v)-1 Functional'!G178","v":6289780},{"$f":"F178-SUM(H178:I178)","v":0},6289780,0,{"$f":"SUM(G178:I178)","v":6289780},{"$f":"F178-J178","v":0}]
[45,null,{"$f":"'FR-16(7)(v)-1 Functional'!C179","v":"TRANSMISSION"},{"$f":"'FR-16(7)(v)-1 Functional'!D179","v":"K202"},null,{"$f":"'FR-16(7)(v)-1 Functional'!G179","v":0},0,0,0,0,0]
[46,null,{"$f":"'FR-16(7)(v)-1 Functional'!C180","v":"DISTRIBUTION - DEMAND"},{"$f":"'FR-16(7)(v)-1 Functional'!D180","v":"K201"},null,{"$f":"'FR-16(7)(v)-1 Functional'!G180","v":2856969},2856969,0,0,2856969,0]
[47,null,{"$f":"'FR-16(7)(v)-1 Functional'!C181","v":"DISTRIBUTION - CUSTOMER"},{"$f":"'FR-16(7)(v)-1 Functional'!D181","v":"K405"},null,{"$f":"'FR-16(7)(v)-1 Functional'!G181","v":0},0,0,0,0,0]
[48,null,{"$f":"'FR-16(7)(v)-1 Functional'!C182","v":"CUSTOMER ACCOUNTING"},{"$f":"'FR-16(7)(v)-1 Functional'!D182","v":"A308"},null,{"$f":"'FR-16(7)(v)-1 Functional'!G182","v":0},0,0,0,0,0]
[49,null,{"$f":"'FR-16(7)(v)-1 Functional'!C183","v":"CUSTOMER SERVICE & INFORMATION"},{"$f":"'FR-16(7)(v)-1 Functional'!D183","v":"A310"},null,{"$f":"'FR-16(7)(v)-1 Functional'!G183","v":0},0,0,0,0,0]
[50,null,{"$f":"'FR-16(7)(v)-1 Functional'!C184","v":"SALES"},{"$f":"'FR-16(7)(v)-1 Functional'!D184","v":"A312"},null,{"$f":"'FR-16(7)(v)-1 Functional'!G184","v":0},0,0,0,0,0]
[51,null,{"$f":"'FR-16(7)(v)-1 Functional'!C185","v":"ADJUSTMENT"},{"$f":"'FR-16(7)(v)-1 Functional'!D185","v":"A315"},null,{"$f":"'FR-16(7)(v)-1 Functional'!G185","v":209990},98002,111988,0,209990,0]
[52,null,{"$f":"'FR-16(7)(v)-1 Functional'!C186","v":"  GENERAL & INTANG PLANT"},null,null,{"$f":"SUM(F176:F185)","v":14739802},8338034,6401768,0,14739802,0]
[53]
[54,"COMMON & OTHER PLANT"]
[55,null,{"$f":"'FR-16(7)(v)-1 Functional'!C189","v":"PRODUCTION - DEMAND"},{"$f":"'FR-16(7)(v)-1 Functional'!D189","v":"K201"},null,{"$f":"'FR-16(7)(v)-1 Functional'!G189","v":7273485},{"$f":"F189-SUM(H189:I189)","v":7273485},{"$f":"ROUND(F189*VLOOKUP(D189,AllocTable_Classified_Production,$H$10,FALSE),0)","v":0},{"$f":"ROUND(F189*VLOOKUP(D189,AllocTable_Classified_Production,$I$10,FALSE),0)","v":0},{"$f":"SUM(G189:I189)","v":7273485},{"$f":"F189-J189","v":0}]
[56,null,{"$f":"'FR-16(7)(v)-1 Functional'!C190","v":"PRODUCTION - ENERGY"},{"$f":"'FR-16(7)(v)-1 Functional'!D190","v":"K301"},null,{"$f":"'FR-16(7)(v)-1 Functional'!G190","v":8498622},{"$f":"F190-SUM(H190:I190)","v":0},8498622,0,{"$f":"SUM(G190:I190)","v":8498622},{"$f":"F190-J190","v":0}]
[57,null,{"$f":"'FR-16(7)(v)-1 Functional'!C191","v":"TRANSMISSION"},{"$f":"'FR-16(7)(v)-1 Functional'!D191","v":"K202"},null,{"$f":"'FR-16(7)(v)-1 Functional'!G191","v":0},0,0,0,0,0]
[58,null,{"$f":"'FR-16(7)(v)-1 Functional'!C192","v":"DISTRIBUTION - DEMAND"},{"$f":"'FR-16(7)(v)-1 Functional'!D192","v":"K201"},null,{"$f":"'FR-16(7)(v)-1 Functional'!G192","v":3860278},3860278,0,0,3860278,0]
[59,null,{"$f":"'FR-16(7)(v)-1 Functional'!C193","v":"DISTRIBUTION - CUSTOMER"},{"$f":"'FR-16(7)(v)-1 Functional'!D193","v":"K405"},null,{"$f":"'FR-16(7)(v)-1 Functional'!G193","v":0},0,0,0,0,0]
[60,null,{"$f":"'FR-16(7)(v)-1 Functional'!C194","v":"CUSTOMER ACCOUNTING"},{"$f":"'FR-16(7)(v)-1 Functional'!D194","v":"A308"},null,{"$f":"'FR-16(7)(v)-1 Functional'!G194","v":0},0,0,0,0,0]
[61,null,{"$f":"'FR-16(7)(v)-1 Functional'!C195","v":"CUSTOMER SERVICE & INFORMATION"},{"$f":"'FR-16(7)(v)-1 Functional'!D195","v":"A310"},null,{"$f":"'FR-16(7)(v)-1 Functional'!G195","v":0},0,0,0,0,0]
[62,null,{"$f":"'FR-16(7)(v)-1 Functional'!C196","v":"SALES"},{"$f":"'FR-16(7)(v)-1 Functional'!D196","v":"A312"},null,{"$f":"'FR-16(7)(v)-1 Functional'!G196","v":0},0,0,0,0,0]
[63,null,{"$f":"'FR-16(7)(v)-1 Functional'!C197","v":"ADJUSTMENT"},{"$f":"'FR-16(7)(v)-1 Functional'!D197","v":"A315"},null,{"$f":"'FR-16(7)(v)-1 Functional'!G197","v":11795},5505,6290,0,11795,0]
[64,null,{"$f":"'FR-16(7)(v)-1 Functional'!C198","v":"  COMMON & OTHER PLANT IN SERVICE"},null,null,{"$f":"SUM(F189:F197)","v":19644180},{"$f":"SUM(G188:G197)","v":11139268},{"$f":"SUM(H188:H197)","v":8504912},{"$f":"SUM(I188:I197)","v":0},{"$f":"SUM(J188:J197)","v":19644180},{"$f":"SUM(K188:K197)","v":0}]
[65]
[66,"TOTAL DEPRECIATION RESERVE",null,null,null,{"$f":"F198+F186+F171+F145+F139","v":621319440},606412760,14906680,0,621319440,0]
[]
[{"$f":"co_name","v":"DUKE ENERGY KENTUCKY, INC."},null,null,null,null,null,null,null,null,{"$f":"J1","v":"FR-16(7)(v)-2"}]
[{"$f":"$A$2","v":"PRODUCTION CLASSIFIED - ELECTRIC COST OF SERVICE"},null,null,null,null,null,null,null,null,{"$f":"J2","v":"WITNESS RESPONSIBLE:"}]
[{"$f":"case_name","v":"CASE NO: 2019-00271"},null,null,null,null,null,null,null,null,{"$f":"Witness","v":"JAMES E. ZIOLKOWSKI"}]
[{"$f":"data_filing","v":"DATA: 12 MONTHS ACTUAL  & 0 MONTHS ESTIMATED"},null,null,null,null,null,null,null,null,{"$f":"\"PAGE \"&Pages-14&\" OF \"&Pages","v":"PAGE 4 OF 18"}]
[{"$f":"type","v":"TYPE OF FILING: \"X\" ORIGINAL   UPDATED    REVISED  "}]
[]
[]
["LINE",null,null,null,null,{"$f":"$F$8","v":"TOTAL"},"CLASSIFIED",null,null,"TOTAL","ALL"]
["NO.",{"$f":"\"NET ELECTRIC PLANT\"","v":"NET ELECTRIC PLANT"},null,"ALLO",null,{"$f":"$F$9","v":"PRODUCTION"},{"$f":"G9","v":"DEMAND"},"ENERGY","CUSTOMER","AT ISSUE","OTHER"]
[null,null,"Schedule 4",null,null,null,3,4,5]
[1,"PRODUCTION PLANT"]
[2,null,{"$f":"'FR-16(7)(v)-1 Functional'!C213","v":"PRODUCTION STEAM"},null,null,{"$f":"F59-F136","v":434180250},434180250,0,0,434180250,0]
[3,null,{"$f":"'FR-16(7)(v)-1 Functional'!C214","v":"PRODUCTION OTHER"},null,null,{"$f":"F60-F137","v":189230196},189230196,0,0,189230196,0]
[4,null,{"$f":"'FR-16(7)(v)-1 Functional'!C215","v":"ADJUSTMENT"},null,null,{"$f":"F61-F138","v":-1553366},-1553366,0,0,-1553366,0]
[5,null,{"$f":"'FR-16(7)(v)-1 Functional'!C216","v":"  NET PRODUCTION PLANT"},null,null,{"$f":"SUM(F213:F215)","v":621857080},621857080,0,0,621857080,0]
[6]
[7,"TRANSMISSION PLANT"]
[8,null,{"$f":"'FR-16(7)(v)-1 Functional'!C219","v":"MAIN STEP-UP TRANSFORMERS"},null,null,{"$f":"F65-F142","v":0},0,0,0,0,0]
[9,null,{"$f":"'FR-16(7)(v)-1 Functional'!C220","v":"OTHER TRANSMISSION"},null,null,{"$f":"F66-F143","v":0},0,0,0,0,0]
[10,null,{"$f":"'FR-16(7)(v)-1 Functional'!C221","v":"ADJUSTMENT"},null,null,{"$f":"F67-F144","v":0},0,0,0,0,0]
[11,null,{"$f":"'FR-16(7)(v)-1 Functional'!C222","v":"    NET TRANSMISSION PLANT"},null,null,{"$f":"SUM(F218:F221)","v":0},0,0,0,0,0]
[12]
[13,"NET PROD & TRANS PLANT",null,null,null,{"$f":"F70-F147","v":621857080},621857080,0,0,621857080,0]
[14]
[15,"DISTRIBUTION PLANT"]
[16,null,{"$f":"'FR-16(7)(v)-1 Functional'!C227","v":"SUBSTATIONS"},null,null,{"$f":"F73-F150","v":0},0,0,0,0,0]
[17,null,{"$f":"'FR-16(7)(v)-1 Functional'!C228","v":"POLES, TOWERS  & FIXTURES - PRIMARY - DEMAND"},null,null,{"$f":"F74-F151","v":0},0,0,0,0,0]
[18,null,{"$f":"'FR-16(7)(v)-1 Functional'!C229","v":"POLES, TOWERS  & FIXTURES - PRIMARY - CUSTOMER"},null,null,0,0,0,0,0,0]
[19,null,{"$f":"'FR-16(7)(v)-1 Functional'!C230","v":"POLES, TOWERS  & FIXTURES - SECONDARY - DEMAND"},null,null,0,0,0,0,0,0]
[20,null,{"$f":"'FR-16(7)(v)-1 Functional'!C231","v":"POLES, TOWERS  & FIXTURES - SECONDARY - CUSTOMER"},null,null,0,0,0,0,0,0]
[21,null,{"$f":"'FR-16(7)(v)-1 Functional'!C232","v":"CONDUCTORS - OVERHEAD / PRIMARY - DEMAND"},null,null,0,0,0,0,0,0]
[22,null,{"$f":"'FR-16(7)(v)-1 Functional'!C233","v":"CONDUCTORS - OVERHEAD / PRIMARY - CUSTOMER"},null,null,0,0,0,0,0,0]
[23,null,{"$f":"'FR-16(7)(v)-1 Functional'!C234","v":"CONDUCTORS - OVERHEAD / SECONDARY - DEMAND"},null,null,0,0,0,0,0,0]
[24,null,{"$f":"'FR-16(7)(v)-1 Functional'!C235","v":"CONDUCTORS - OVERHEAD / SECONDARY - CUSTOMER"},null,null,0,0,0,0,0,0]
[25,null,{"$f":"'FR-16(7)(v)-1 Functional'!C236","v":"CONDUCTORS - UNDERGROUND / PRIMARY - DEMAND"},null,null,0,0,0,0,0,0]
[26,null,{"$f":"'FR-16(7)(v)-1 Functional'!C237","v":"CONDUCTORS - UNDERGROUND / PRIMARY - CUSTOMER"},null,null,0,0,0,0,0,0]
[27,null,{"$f":"'FR-16(7)(v)-1 Functional'!C238","v":"CONDUCTORS - UNDERGROUND / SECONDARY - DEMAND"},null,null,0,0,0,0,0,0]
[28,null,{"$f":"'FR-16(7)(v)-1 Functional'!C239","v":"CONDUCTORS - UNDERGROUND / SECONDARY - CUSTOMER"},null,null,0,0,0,0,0,0]
[29,null,{"$f":"'FR-16(7)(v)-1 Functional'!C240","v":"TRANSFORMERS DEMAND RELATED"},null,null,0,0,0,0,0,0]
[30,null,{"$f":"'FR-16(7)(v)-1 Functional'!C241","v":"TRANSFORMERS CUSTOMER RELATED"},null,null,0,0,0,0,0,0]
[31,null,{"$f":"'FR-16(7)(v)-1 Functional'!C242","v":"SERVICES"},null,null,{"$f":"F88-F165","v":0},0,0,0,0,0]
[32,null,{"$f":"'FR-16(7)(v)-1 Functional'!C243","v":"METERS"},null,null,{"$f":"F89-F166","v":0},0,0,0,0,0]
[33,null,{"$f":"'FR-16(7)(v)-1 Functional'!C244","v":"STREET LIGHTS"},null,null,{"$f":"F90-F167","v":0},0,0,0,0,0]
[34,null,{"$f":"'FR-16(7)(v)-1 Functional'!C245","v":"ADJUSTMENT  "},null,null,{"$f":"F91-F168","v":0},0,0,0,0,0]
[35,null,{"$f":"'FR-16(7)(v)-1 Functional'!C246","v":"CONSTRUCTION NOT CLASSIFIED"},null,null,{"$f":"F92-F169","v":0},0,0,0,0,0]
[36,null,{"$f":"'FR-16(7)(v)-1 Functional'!C247","v":"RWIP"},null,null,0,0,0,0,0,0]
[37,null,{"$f":"'FR-16(7)(v)-1 Functional'!C248","v":"  NET DISTRIBUTION PLANT"},null,null,{"$f":"SUM(F226:F247)","v":0},{"$f":"SUM(G226:G247)","v":0},0,0,0,0]
[38]
[39,"NET PTD PLANT",null,null,null,{"$f":"F96-F173","v":0},0,0,0,0,0]
[40,"NET TRANS & DIST PLANT",null,null,null,{"$f":"F97-F174","v":621857080},621857080,0,0,621857080,0]
[41]
[42,"GENERAL & INTANGIBLE PLANT"]
[43,null,{"$f":"'FR-16(7)(v)-1 Functional'!C254","v":"PRODUCTION - DEMAND"},null,null,{"$f":"F100-F177","v":11320984},11320984,0,0,11320984,0]
[44,null,{"$f":"'FR-16(7)(v)-1 Functional'!C255","v":"PRODUCTION - ENERGY"},null,null,{"$f":"F101-F178","v":13227874},0,13227874,0,13227874,0]
[45,null,{"$f":"'FR-16(7)(v)-1 Functional'!C256","v":"TRANSMISSION"},null,null,{"$f":"F102-F179","v":0},0,0,0,0,0]
[46,null,{"$f":"'FR-16(7)(v)-1 Functional'!C257","v":"DISTRIBUTION - DEMAND"},null,null,{"$f":"F103-F180","v":6008418},6008418,0,0,6008418,0]
[47,null,{"$f":"'FR-16(7)(v)-1 Functional'!C258","v":"DISTRIBUTION - CUSTOMER"}]
[48,null,{"$f":"'FR-16(7)(v)-1 Functional'!C259","v":"CUSTOMER ACCOUNTING"},null,null,{"$f":"F105-F182","v":0},0,0,0,0,0]
[49,null,{"$f":"'FR-16(7)(v)-1 Functional'!C260","v":"CUSTOMER SERVICE & INFORMATION"},null,null,{"$f":"F106-F183","v":0},0,0,0,0,0]
[50,null,{"$f":"'FR-16(7)(v)-1 Functional'!C261","v":"SALES"},null,null,0,0,0,0,0,0]
[51,null,{"$f":"'FR-16(7)(v)-1 Functional'!C262","v":"ADJUSTMENT"},null,null,{"$f":"F108-F185","v":-209990},-98002,-111988,0,-209990,0]
[52,null,{"$f":"'FR-16(7)(v)-1 Functional'!C263","v":"  NET GENERAL & INTANG PLANT"},null,null,{"$f":"SUM(F253:F262)","v":30347286},17231400,13115886,0,30347286,0]
[53]
[54,"COMMON & OTHER PLANT"]
[55,null,{"$f":"'FR-16(7)(v)-1 Functional'!C266","v":"PRODUCTION - DEMAND"},null,null,{"$f":"F112-F189","v":2180707},2180707,0,0,2180707,0]
[56,null,{"$f":"'FR-16(7)(v)-1 Functional'!C267","v":"PRODUCTION - ENERGY"},null,null,{"$f":"F113-F190","v":2548022},0,2548022,0,2548022,0]
[57,null,{"$f":"'FR-16(7)(v)-1 Functional'!C268","v":"TRANSMISSION"},null,null,{"$f":"F114-F191","v":0},0,0,0,0,0]
[58,null,{"$f":"'FR-16(7)(v)-1 Functional'!C269","v":"DISTRIBUTION - DEMAND"},null,null,{"$f":"F115-F192","v":1157373},1157373,0,0,1157373,0]
[59,null,{"$f":"'FR-16(7)(v)-1 Functional'!C270","v":"DISTRIBUTION - CUSTOMER"}]
[60,null,{"$f":"'FR-16(7)(v)-1 Functional'!C271","v":"CUSTOMER ACCOUNTING"},null,null,{"$f":"F117-F194","v":0},0,0,0,0,0]
[61,null,{"$f":"'FR-16(7)(v)-1 Functional'!C272","v":"CUSTOMER SERVICE & INFORMATION"},null,null,{"$f":"F118-F195","v":0},0,0,0,0,0]
[62,null,{"$f":"'FR-16(7)(v)-1 Functional'!C273","v":"SALES"},null,null,0,0,0,0,0,0]
[63,null,{"$f":"'FR-16(7)(v)-1 Functional'!C274","v":"ADJUSTMENT"},null,null,{"$f":"F120-F197","v":-11795},-5505,-6290,0,-11795,0]
[64,null,{"$f":"'FR-16(7)(v)-1 Functional'!C275","v":"  COMMON & OTHER PLANT IN SERVICE"},null,null,{"$f":"SUM(F265:F274)","v":5874307},3332575,2541732,0,5874307,0]
[65]
[66,null,{"$f":"'FR-16(7)(v)-1 Functional'!C277","v":"NET ELECTRIC PLANT IN SERVICE"},null,null,{"$f":"F275+F263+F248+F222+F216","v":658078673},642421055,15657618,0,658078673,0]
[]
[{"$f":"co_name","v":"DUKE ENERGY KENTUCKY, INC."},null,null,null,null,null,null,null,null,{"$f":"J1","v":"FR-16(7)(v)-2"}]
[{"$f":"$A$2","v":"PRODUCTION CLASSIFIED - ELECTRIC COST OF SERVICE"},null,null,null,null,null,null,null,null,{"$f":"J2","v":"WITNESS RESPONSIBLE:"}]
[{"$f":"case_name","v":"CASE NO: 2019-00271"},null,null,null,null,null,null,null,null,{"$f":"Witness","v":"JAMES E. ZIOLKOWSKI"}]
[{"$f":"data_filing","v":"DATA: 12 MONTHS ACTUAL  & 0 MONTHS ESTIMATED"},null,null,null,null,null,null,null,null,{"$f":"\"PAGE \"&Pages-13&\" OF \"&Pages","v":"PAGE 5 OF 18"}]
[{"$f":"type","v":"TYPE OF FILING: \"X\" ORIGINAL   UPDATED    REVISED  "}]
[]
[]
["LINE",null,null,null,null,{"$f":"$F$8","v":"TOTAL"},"CLASSIFIED",null,null,"TOTAL","ALL"]
["NO.","SUBTRACTIVE RATE BASE ADJUSTMENTS",null,"ALLO",null,{"$f":"$F$9","v":"PRODUCTION"},{"$f":"G9","v":"DEMAND"},"ENERGY","CUSTOMER","AT ISSUE","OTHER"]
[null,null,"Schedule 5",null,null,null,3,4,5]
[1,"RATE BASE ADJUSTMENTS"]
[2,"ACCUMULATED DEFERRED INCOME TAXES"]
[3," ACCUM DEF INC TAXES (282)"]
[4,null,{"$f":"'FR-16(7)(v)-1 Functional'!C292","v":"LIBERALIZED DEPRECIATION"},{"$f":"'FR-16(7)(v)-1 Functional'!D292","v":"NP29"}," ",{"$f":"'FR-16(7)(v)-1 Functional'!G292","v":38969329},{"$f":"F292-SUM(H292:I292)","v":38042249},{"$f":"ROUND(F292*VLOOKUP(D292,AllocTable_Classified_Production,$H$10,FALSE),0)","v":927080},{"$f":"ROUND(F292*VLOOKUP(D292,AllocTable_Classified_Production,$I$10,FALSE),0)","v":0},{"$f":"SUM(G292:I292)","v":38969329},{"$f":"F292-J292","v":0}]
[5,null,{"$f":"'FR-16(7)(v)-1 Functional'!C293","v":"LEASED METERS"},{"$f":"'FR-16(7)(v)-1 Functional'!D293","v":"NP29"}," ",{"$f":"'FR-16(7)(v)-1 Functional'!G293","v":883915},862887,21028,0,883915,0]
[6,null,{"$f":"'FR-16(7)(v)-1 Functional'!C294","v":"CONTRIB AID CONSTR"},{"$f":"'FR-16(7)(v)-1 Functional'!D294","v":"D249"}," ",{"$f":"'FR-16(7)(v)-1 Functional'!G294","v":0},0,0,0,0,0]
[7,null,{"$f":"'FR-16(7)(v)-1 Functional'!C295","v":"TAX INTEREST, EXPENSING, DEPR."},{"$f":"'FR-16(7)(v)-1 Functional'!D295","v":"NP29"}," ",{"$f":"'FR-16(7)(v)-1 Functional'!G295","v":38910069},37984398,925671,0,38910069,0]
[8,null,{"$f":"'FR-16(7)(v)-1 Functional'!C296","v":"AFUDC IN DEBT"},{"$f":"'FR-16(7)(v)-1 Functional'!D296","v":"NP29"}," ",{"$f":"'FR-16(7)(v)-1 Functional'!G296","v":0},0,0,0,0,0]
[9,null,{"$f":"'FR-16(7)(v)-1 Functional'!C297","v":"CASUALTY LOSS"},{"$f":"'FR-16(7)(v)-1 Functional'!D297","v":"K411"}," ",{"$f":"'FR-16(7)(v)-1 Functional'!G297","v":0},0,0,0,0,0]
[10,null,{"$f":"'FR-16(7)(v)-1 Functional'!C298","v":"NON-CASH OVERHEADS"},{"$f":"'FR-16(7)(v)-1 Functional'!D298","v":"G229"}," ",{"$f":"'FR-16(7)(v)-1 Functional'!G298","v":0},0,0,0,0,0]
[11,null,{"$f":"'FR-16(7)(v)-1 Functional'!C299","v":"PLANT FAS 109"},{"$f":"'FR-16(7)(v)-1 Functional'!D299","v":"NP29"}," ",{"$f":"'FR-16(7)(v)-1 Functional'!G299","v":0},0,0,0,0,0]
[12,null,{"$f":"'FR-16(7)(v)-1 Functional'!C300","v":"MISCELLANEOUS"},{"$f":"'FR-16(7)(v)-1 Functional'!D300","v":"NP29"},null,{"$f":"'FR-16(7)(v)-1 Functional'!G300","v":36716843},35843349,873494,0,36716843,0]
[13,null,{"$f":"'FR-16(7)(v)-1 Functional'!C301","v":"  TOTAL ACCOUNT 282"},null,null,{"$f":"SUM(F292:F300)","v":115480156},112732883,2747273,0,115480156,0]
[14]
[15," ACCUM DEF INC TAXES (283)"]
[16,null,{"$f":"'FR-16(7)(v)-1 Functional'!C304","v":"TRANSITION FROM MISO TO PJM"},{"$f":"'FR-16(7)(v)-1 Functional'!D304","v":"NP29"},null,{"$f":"'FR-16(7)(v)-1 Functional'!G304","v":-2090995},{"$f":"F304-SUM(H304:I304)","v":-2041250},{"$f":"ROUND(F304*VLOOKUP(D304,AllocTable_Classified_Production,$H$10,FALSE),0)","v":-49745},{"$f":"ROUND(F304*VLOOKUP(D304,AllocTable_Classified_Production,$I$10,FALSE),0)","v":0},{"$f":"SUM(G304:I304)","v":-2090995},{"$f":"F304-J304","v":0}]
[17,null,{"$f":"'FR-16(7)(v)-1 Functional'!C305","v":"DEFERRED PLANT COSTS"},{"$f":"'FR-16(7)(v)-1 Functional'!D305","v":"NP29"},null,{"$f":"'FR-16(7)(v)-1 Functional'!G305","v":407358},397667,9691,0,407358,0]
[18,null,{"$f":"'FR-16(7)(v)-1 Functional'!C306","v":"MISCELLANEOUS"},{"$f":"'FR-16(7)(v)-1 Functional'!D306","v":"OM39"},null,{"$f":"'FR-16(7)(v)-1 Functional'!G306","v":8024584},339761,7684823,0,8024584,0]
[19,null,{"$f":"'FR-16(7)(v)-1 Functional'!C307","v":"ENVIRONMENTAL RESERVE"},{"$f":"'FR-16(7)(v)-1 Functional'!D307","v":"NP29"},null,{"$f":"'FR-16(7)(v)-1 Functional'!G307","v":0},0,0,0,0,0]
[20,null,{"$f":"'FR-16(7)(v)-1 Functional'!C308","v":"POST IN-SERVICE CARRYING COSTS"},{"$f":"'FR-16(7)(v)-1 Functional'!D308","v":"NP29"},null,{"$f":"'FR-16(7)(v)-1 Functional'!G308","v":0},0,0,0,0,0]
[21,null,{"$f":"'FR-16(7)(v)-1 Functional'!C309","v":"ARO CUMULATIVE EFFECT"},{"$f":"'FR-16(7)(v)-1 Functional'!D309","v":"NP29"},null,{"$f":"'FR-16(7)(v)-1 Functional'!G309","v":0},0,0,0,0,0]
[22,null,{"$f":"'FR-16(7)(v)-1 Functional'!C310","v":"LOSS ON REACQUIRED DEBT"},{"$f":"'FR-16(7)(v)-1 Functional'!D310","v":"D249"},null,{"$f":"'FR-16(7)(v)-1 Functional'!G310","v":0},0,0,0,0,0]
[23,null,{"$f":"'FR-16(7)(v)-1 Functional'!C311","v":"VACATION PAY ACCRUAL"},{"$f":"'FR-16(7)(v)-1 Functional'!D311","v":"A315"},null,{"$f":"'FR-16(7)(v)-1 Functional'!G311","v":0},0,0,0,0,0]
[24,null,{"$f":"'FR-16(7)(v)-1 Functional'!C312","v":"NON-AMI METERS RETIRED EARLY"},{"$f":"'FR-16(7)(v)-1 Functional'!D312","v":"OM39"},null,{"$f":"'FR-16(7)(v)-1 Functional'!G312","v":962833},{"$f":"F312-SUM(H312:I312)","v":40766},922067,0,{"$f":"SUM(G312:I312)","v":962833},{"$f":"F312-J312","v":0}]
[25,null,{"$f":"'FR-16(7)(v)-1 Functional'!C313","v":"PENSION EXPENSE"},{"$f":"'FR-16(7)(v)-1 Functional'!D313","v":"A315"},null,{"$f":"'FR-16(7)(v)-1 Functional'!G313","v":4442036},{"$f":"F313-SUM(H313:I313)","v":2073098},2368938,0,{"$f":"SUM(G313:I313)","v":4442036},{"$f":"F313-J313","v":0}]
[26,null,{"$f":"'FR-16(7)(v)-1 Functional'!C314","v":"UNCOLLECTIBLE ACCOUNTS"},{"$f":"'FR-16(7)(v)-1 Functional'!D314","v":"K411"},null,{"$f":"'FR-16(7)(v)-1 Functional'!G314","v":0},0,0,0,0,0]
[27,null,{"$f":"'FR-16(7)(v)-1 Functional'!C315","v":"  TOTAL ACCOUNT 283"},null,null,{"$f":"SUM(F303:F314)","v":11745816},810042,10935774,0,11745816,0]
[28]
[29," OTHER ACCUMULATED DEFERRED INCOME TAXES"]
[30,null,{"$f":"'FR-16(7)(v)-1 Functional'!C318","v":"EXCESS ADIT"},{"$f":"'FR-16(7)(v)-1 Functional'!D318","v":"NP29"},null,{"$f":"'FR-16(7)(v)-1 Functional'!G318","v":36245673},{"$f":"F318-SUM(H318:I318)","v":35383388},{"$f":"ROUND(F318*VLOOKUP(D318,AllocTable_Classified_Production,$H$10,FALSE),0)","v":862285},{"$f":"ROUND(F318*VLOOKUP(D318,AllocTable_Classified_Production,$I$10,FALSE),0)","v":0},{"$f":"SUM(G318:I318)","v":36245673},{"$f":"F318-J318","v":0}]
[31,null,{"$f":"'FR-16(7)(v)-1 Functional'!C319","v":"CUSTOMER SERVICE DEPOSITS"},{"$f":"'FR-16(7)(v)-1 Functional'!D319","v":"NP29"},null,{"$f":"'FR-16(7)(v)-1 Functional'!G319","v":0},{"$f":"F319-SUM(H319:I319)","v":0},{"$f":"ROUND(F319*VLOOKUP(D319,AllocTable_Classified_Production,$H$10,FALSE),0)","v":0},{"$f":"ROUND(F319*VLOOKUP(D319,AllocTable_Classified_Production,$I$10,FALSE),0)","v":0},{"$f":"SUM(G319:I319)","v":0},{"$f":"F319-J319","v":0}]
[32,null,{"$f":"'FR-16(7)(v)-1 Functional'!C320","v":"POST RETIREMENT BENEFITS"},{"$f":"'FR-16(7)(v)-1 Functional'!D320","v":"NP29"},null,{"$f":"'FR-16(7)(v)-1 Functional'!G320","v":0},{"$f":"F320-SUM(H320:I320)","v":0},{"$f":"ROUND(F320*VLOOKUP(D320,AllocTable_Classified_Production,$H$10,FALSE),0)","v":0},{"$f":"ROUND(F320*VLOOKUP(D320,AllocTable_Classified_Production,$I$10,FALSE),0)","v":0},{"$f":"SUM(G320:I320)","v":0},{"$f":"F320-J320","v":0}]
[33,null,{"$f":"'FR-16(7)(v)-1 Functional'!C321","v":"INVESTMENT TAX CREDIT"},{"$f":"'FR-16(7)(v)-1 Functional'!D321","v":"NP29"},null,{"$f":"'FR-16(7)(v)-1 Functional'!G321","v":0},{"$f":"F321-SUM(H321:I321)","v":0},{"$f":"ROUND(F321*VLOOKUP(D321,AllocTable_Classified_Production,$H$10,FALSE),0)","v":0},{"$f":"ROUND(F321*VLOOKUP(D321,AllocTable_Classified_Production,$I$10,FALSE),0)","v":0},{"$f":"SUM(G321:I321)","v":0},{"$f":"F321-J321","v":0}]
[34,null,{"$f":"'FR-16(7)(v)-1 Functional'!C322","v":"  TOTAL OTHER SUBTRACTIVE ADJUSTMENTS"},null,null,{"$f":"SUM(F317:F321)","v":36245673},35383388,862285,0,36245673,0]
[35]
[36,{"$f":"'FR-16(7)(v)-1 Functional'!B324","v":"TOTAL SUBTRACTIVE RATE BASE ADJUSTMENTS"},null,null,null,{"$f":"F322+F315+F301","v":163471645},148926313,14545332,0,163471645,0]
[]
[{"$f":"co_name","v":"DUKE ENERGY KENTUCKY, INC."},null,null,null,null,null,null,null,null,{"$f":"J1","v":"FR-16(7)(v)-2"}]
[{"$f":"$A$2","v":"PRODUCTION CLASSIFIED - ELECTRIC COST OF SERVICE"},null,null,null,null,null,null,null,null,{"$f":"J2","v":"WITNESS RESPONSIBLE:"}]
[{"$f":"case_name","v":"CASE NO: 2019-00271"},null,null,null,null,null,null,null,null,{"$f":"Witness","v":"JAMES E. ZIOLKOWSKI"}]
[{"$f":"data_filing","v":"DATA: 12 MONTHS ACTUAL  & 0 MONTHS ESTIMATED"},null,null,null,null,null,null,null,null,{"$f":"\"PAGE \"&Pages-12&\" OF \"&Pages","v":"PAGE 6 OF 18"}]
[{"$f":"type","v":"TYPE OF FILING: \"X\" ORIGINAL   UPDATED    REVISED  "}]
[]
[]
["LINE",null,null,null,null,{"$f":"$F$8","v":"TOTAL"},"CLASSIFIED",null,null,"TOTAL","ALL"]
["NO.","ADDITIVE RATE BASE ADJUSTMENTS",null,"ALLO",null,{"$f":"$F$9","v":"PRODUCTION"},{"$f":"G9","v":"DEMAND"},"ENERGY","CUSTOMER","AT ISSUE","OTHER"]
[null,null,"Schedule 5.1",null,null,null,3,4,5]
[1,"OTHER ACCUMULATED DEFERRED INCOME TAXES"]
[2," ACCUM DEF INC TAXES (190)"]
[3,null,{"$f":"'FR-16(7)(v)-1 Functional'!C338","v":"UNCOLLECTIBLE ACCTS"},{"$f":"'FR-16(7)(v)-1 Functional'!D338","v":"K411"},null,{"$f":"'FR-16(7)(v)-1 Functional'!G338","v":0},{"$f":"F338-SUM(H338:I338)","v":0},{"$f":"ROUND(F338*VLOOKUP(D338,AllocTable_Classified_Production,$H$10,FALSE),0)","v":0},{"$f":"ROUND(F338*VLOOKUP(D338,AllocTable_Classified_Production,$I$10,FALSE),0)","v":0},{"$f":"SUM(G338:I338)","v":0},{"$f":"F338-J338","v":0}]
[4,null,{"$f":"'FR-16(7)(v)-1 Functional'!C339","v":"CASH FLOW HEDGE"},{"$f":"'FR-16(7)(v)-1 Functional'!D339","v":"A315"},null,{"$f":"'FR-16(7)(v)-1 Functional'!G339","v":178481},{"$f":"F339-SUM(H339:I339)","v":83297},95184,0,178481,0]
[5,null,{"$f":"'FR-16(7)(v)-1 Functional'!C340","v":"RESERVED FOR FUTURE USE"},{"$f":"'FR-16(7)(v)-1 Functional'!D340","v":"NP29"},null,{"$f":"'FR-16(7)(v)-1 Functional'!G340","v":0},0,0,0,0,0]
[6,null,{"$f":"'FR-16(7)(v)-1 Functional'!C341","v":"RESERVED FOR FUTURE USE"},{"$f":"'FR-16(7)(v)-1 Functional'!D341","v":"NP29"},null,{"$f":"'FR-16(7)(v)-1 Functional'!G341","v":0},0,0,0,0,0]
[7,null,{"$f":"'FR-16(7)(v)-1 Functional'!C342","v":"ELECTRIC METERS"},{"$f":"'FR-16(7)(v)-1 Functional'!D342","v":"K407"},null,{"$f":"'FR-16(7)(v)-1 Functional'!G342","v":0},0,0,0,0,0]
[8,null,{"$f":"'FR-16(7)(v)-1 Functional'!C343","v":"UNAMORTIZED DEBT PREMIUM"},{"$f":"'FR-16(7)(v)-1 Functional'!D343","v":"D249"},null,{"$f":"'FR-16(7)(v)-1 Functional'!G343","v":0},0,0,0,0,0]
[9,null,{"$f":"'FR-16(7)(v)-1 Functional'!C344","v":"ARO CUMULATIVE EFFECT"},{"$f":"'FR-16(7)(v)-1 Functional'!D344","v":"NP29"},null,{"$f":"'FR-16(7)(v)-1 Functional'!G344","v":0},0,0,0,0,0]
[10,null,{"$f":"'FR-16(7)(v)-1 Functional'!C345","v":"RETIREMENT PLAN"},{"$f":"'FR-16(7)(v)-1 Functional'!D345","v":"A315"},null,{"$f":"'FR-16(7)(v)-1 Functional'!G345","v":1833341},855620,977721,0,1833341,0]
[11,null,{"$f":"'FR-16(7)(v)-1 Functional'!C346","v":"POST RETIREMENT BENEFITS "},{"$f":"'FR-16(7)(v)-1 Functional'!D346","v":"A315"},null,{"$f":"'FR-16(7)(v)-1 Functional'!G346","v":0},0,0,0,0,0]
[12,null,{"$f":"'FR-16(7)(v)-1 Functional'!C347","v":"POST RETIREMENT BENEFITS - HEALTH CARE"},{"$f":"'FR-16(7)(v)-1 Functional'!D347","v":"A315"},null,{"$f":"'FR-16(7)(v)-1 Functional'!G347","v":0},0,0,0,0,0]
[13,null,{"$f":"'FR-16(7)(v)-1 Functional'!C348","v":"POST EMPLOYMENT BENEFITS - SFAS 112"},{"$f":"'FR-16(7)(v)-1 Functional'!D348","v":"A315"},null,{"$f":"'FR-16(7)(v)-1 Functional'!G348","v":0},0,0,0,0,0]
[14,null,{"$f":"'FR-16(7)(v)-1 Functional'!C349","v":"SUPPLEMENTAL PENSION PLAN"},{"$f":"'FR-16(7)(v)-1 Functional'!D349","v":"A315"},null,{"$f":"'FR-16(7)(v)-1 Functional'!G349","v":0},0,0,0,0,0]
[15,null,{"$f":"'FR-16(7)(v)-1 Functional'!C350","v":"INCENTIVE PLAN"},{"$f":"'FR-16(7)(v)-1 Functional'!D350","v":"A315"},null,{"$f":"'FR-16(7)(v)-1 Functional'!G350","v":0},0,0,0,0,0]
[16,null,{"$f":"'FR-16(7)(v)-1 Functional'!C351","v":"FEDERAL DEFERRED TAX RECEIVEABLE"},{"$f":"'FR-16(7)(v)-1 Functional'!D351","v":"A315"},null,{"$f":"'FR-16(7)(v)-1 Functional'!G351","v":0},0,0,0,0,0]
[17,null,{"$f":"'FR-16(7)(v)-1 Functional'!C352","v":"MISCELLANEOUS"},{"$f":"'FR-16(7)(v)-1 Functional'!D352","v":"A315"},null,{"$f":"'FR-16(7)(v)-1 Functional'!G352","v":5884484},2746289,3138195,0,5884484,0]
[18,null,{"$f":"'FR-16(7)(v)-1 Functional'!C353","v":"DEFERRED TAX"},{"$f":"'FR-16(7)(v)-1 Functional'!D353","v":"A315"},null,{"$f":"'FR-16(7)(v)-1 Functional'!G353","v":2681513},1251462,1430051,0,2681513,0]
[19,null,{"$f":"'FR-16(7)(v)-1 Functional'!C354","v":"NET OPERATING LOSS"},{"$f":"'FR-16(7)(v)-1 Functional'!D354","v":"NP29"},null,{"$f":"'FR-16(7)(v)-1 Functional'!G354","v":0},0,0,0,0,0]
[20,null,{"$f":"'FR-16(7)(v)-1 Functional'!C355","v":"401K INCENTIVE PLAN"},{"$f":"'FR-16(7)(v)-1 Functional'!D355","v":"A315"},null,{"$f":"'FR-16(7)(v)-1 Functional'!G355","v":0},0,0,0,0,0]
[21,null,{"$f":"'FR-16(7)(v)-1 Functional'!C356","v":"ENVIRONMENTAL RESERVE"},{"$f":"'FR-16(7)(v)-1 Functional'!D356","v":"NP29"},null,{"$f":"'FR-16(7)(v)-1 Functional'!G356","v":0},0,0,0,0,0]
[22,null,{"$f":"'FR-16(7)(v)-1 Functional'!C357","v":"VACATION PAY ACCRUALS"},{"$f":"'FR-16(7)(v)-1 Functional'!D357","v":"A315"},null,{"$f":"'FR-16(7)(v)-1 Functional'!G357","v":290677},135659,155018,0,290677,0]
[23,null,{"$f":"'FR-16(7)(v)-1 Functional'!C358","v":"DEMAND SIDE MANAGEMENT DEFERRAL"},{"$f":"'FR-16(7)(v)-1 Functional'!D358","v":"NP29"},null,{"$f":"'FR-16(7)(v)-1 Functional'!G358","v":360890},352304,8586,0,360890,0]
[24,null,{"$f":"'FR-16(7)(v)-1 Functional'!C359","v":"OPERATING LEASE OBLIGATION"},{"$f":"'FR-16(7)(v)-1 Functional'!D359","v":"NP29"},null,{"$f":"'FR-16(7)(v)-1 Functional'!G359","v":1335459},1303688,31771,0,1335459,0]
[25,null,{"$f":"'FR-16(7)(v)-1 Functional'!C360","v":"INJURIES & DAMAGES"},{"$f":"'FR-16(7)(v)-1 Functional'!D360","v":"NP29"},null,{"$f":"'FR-16(7)(v)-1 Functional'!G360","v":0},0,0,0,0,0]
[26,null,{"$f":"'FR-16(7)(v)-1 Functional'!C361","v":"  TOTAL ACCOUNT 190"},null,null,{"$f":"SUM(F337:F360)","v":12564845},6728319,5836526,0,12564845,0]
[27]
[28," OTHER"]
[29,null,{"$f":"'FR-16(7)(v)-1 Functional'!C364","v":"RESERVED FOR FUTURE USE"},{"$f":"'FR-16(7)(v)-1 Functional'!D364","v":"NP29"},null,{"$f":"'FR-16(7)(v)-1 Functional'!G364","v":0},{"$f":"F364-SUM(H364:I364)","v":0},{"$f":"ROUND(F364*VLOOKUP(D364,AllocTable_Classified_Production,$H$10,FALSE),0)","v":0},{"$f":"ROUND(F364*VLOOKUP(D364,AllocTable_Classified_Production,$I$10,FALSE),0)","v":0},{"$f":"SUM(G364:I364)","v":0},{"$f":"F364-J364","v":0}]
[30,null,{"$f":"'FR-16(7)(v)-1 Functional'!C365","v":"RATE CASE EXPENSE REGULATORY ASSET"},{"$f":"'FR-16(7)(v)-1 Functional'!D365","v":"NP29"},null,{"$f":"'FR-16(7)(v)-1 Functional'!G365","v":541037},{"$f":"ROUND(F365*VLOOKUP(D365,AllocTable_Classified_Production,$G$10,FALSE),0)","v":528166},{"$f":"ROUND(F365*VLOOKUP(D365,AllocTable_Classified_Production,$H$10,FALSE),0)","v":12871},{"$f":"ROUND(F365*VLOOKUP(D365,AllocTable_Classified_Production,$I$10,FALSE),0)","v":0},{"$f":"SUM(G365:I365)","v":541037},{"$f":"F365-J365","v":0}]
[31,null,{"$f":"'FR-16(7)(v)-1 Functional'!C366","v":"RESERVED FOR FUTURE USE"},{"$f":"'FR-16(7)(v)-1 Functional'!D366","v":"NP29"},null,0,{"$f":"ROUND(F366*VLOOKUP(D366,AllocTable_Classified_Production,$G$10,FALSE),0)","v":0},{"$f":"ROUND(F366*VLOOKUP(D366,AllocTable_Classified_Production,$H$10,FALSE),0)","v":0},{"$f":"ROUND(F366*VLOOKUP(D366,AllocTable_Classified_Production,$I$10,FALSE),0)","v":0},{"$f":"SUM(G366:I366)","v":0},{"$f":"F366-J366","v":0}]
[32,null,{"$f":"'FR-16(7)(v)-1 Functional'!C367","v":"  OTHER"},null,null,{"$f":"SUM(F364:F366)","v":541037},{"$f":"SUM(G363:G366)","v":528166},{"$f":"SUM(H363:H366)","v":12871},{"$f":"SUM(I363:I366)","v":0},{"$f":"SUM(J363:J366)","v":541037},{"$f":"SUM(K363:K366)","v":0}]
[33,null,null,null,null," "]
[34,"CONSTRUCTION WORK IN PROGRESS"]
[35,null,{"$f":"'FR-16(7)(v)-1 Functional'!C370","v":"PRODUCTION"},{"$f":"'FR-16(7)(v)-1 Functional'!D370","v":"P129"},null,{"$f":"'FR-16(7)(v)-1 Functional'!G370","v":0},{"$f":"F370-SUM(H370:I370)","v":0},{"$f":"ROUND(F370*VLOOKUP(D370,AllocTable_Classified_Production,$H$10,FALSE),0)","v":0},{"$f":"ROUND(F370*VLOOKUP(D370,AllocTable_Classified_Production,$I$10,FALSE),0)","v":0},{"$f":"SUM(G370:I370)","v":0},{"$f":"F370-J370","v":0}]
[36,null,{"$f":"'FR-16(7)(v)-1 Functional'!C371","v":"TRANSMISSION"},{"$f":"'FR-16(7)(v)-1 Functional'!D371","v":"T129"},null,{"$f":"'FR-16(7)(v)-1 Functional'!G371","v":0},{"$f":"F371-SUM(H371:I371)","v":0},{"$f":"ROUND(F371*VLOOKUP(D371,AllocTable_Classified_Production,$H$10,FALSE),0)","v":0},{"$f":"ROUND(F371*VLOOKUP(D371,AllocTable_Classified_Production,$I$10,FALSE),0)","v":0},{"$f":"SUM(G371:I371)","v":0},{"$f":"F371-J371","v":0}]
[37,null,{"$f":"'FR-16(7)(v)-1 Functional'!C372","v":"DISTRIBUTION"},{"$f":"'FR-16(7)(v)-1 Functional'!D372","v":"D149"},null,{"$f":"'FR-16(7)(v)-1 Functional'!G372","v":0},{"$f":"F372-SUM(H372:I372)","v":0},{"$f":"ROUND(F372*VLOOKUP(D372,AllocTable_Classified_Production,$H$10,FALSE),0)","v":0},{"$f":"ROUND(F372*VLOOKUP(D372,AllocTable_Classified_Production,$I$10,FALSE),0)","v":0},{"$f":"SUM(G372:I372)","v":0},{"$f":"F372-J372","v":0}]
[38,null,{"$f":"'FR-16(7)(v)-1 Functional'!C373","v":"COMMON"},{"$f":"'FR-16(7)(v)-1 Functional'!D373","v":"C129"},null,{"$f":"'FR-16(7)(v)-1 Functional'!G373","v":0},{"$f":"F373-SUM(H373:I373)","v":0},{"$f":"ROUND(F373*VLOOKUP(D373,AllocTable_Classified_Production,$H$10,FALSE),0)","v":0},{"$f":"ROUND(F373*VLOOKUP(D373,AllocTable_Classified_Production,$I$10,FALSE),0)","v":0},{"$f":"SUM(G373:I373)","v":0},{"$f":"F373-J373","v":0}]
[39,null,{"$f":"'FR-16(7)(v)-1 Functional'!C374","v":"GENERAL"},{"$f":"'FR-16(7)(v)-1 Functional'!D374","v":"G129"},null,{"$f":"'FR-16(7)(v)-1 Functional'!G374","v":0},{"$f":"F374-SUM(H374:I374)","v":0},{"$f":"ROUND(F374*VLOOKUP(D374,AllocTable_Classified_Production,$H$10,FALSE),0)","v":0},{"$f":"ROUND(F374*VLOOKUP(D374,AllocTable_Classified_Production,$I$10,FALSE),0)","v":0},{"$f":"SUM(G374:I374)","v":0},{"$f":"F374-J374","v":0}]
[40,null,{"$f":"'FR-16(7)(v)-1 Functional'!C375","v":"TOTAL CONSTRUCTION WORK IN PROGRESS"},null,null,{"$f":"SUM(F370:F374)","v":0},0,0,0,0,0]
[41]
[42,{"$f":"'FR-16(7)(v)-1 Functional'!B377","v":"TOTAL ADDITIVE RATE BASE ADJUSTMENTS"},null,null,null,{"$f":"F361+F367+F375","v":13105882},7256485,5849397,0,13105882,0]
[]
[{"$f":"co_name","v":"DUKE ENERGY KENTUCKY, INC."},null,null,null,null,null,null,null,null,{"$f":"J1","v":"FR-16(7)(v)-2"}]
[{"$f":"$A$2","v":"PRODUCTION CLASSIFIED - ELECTRIC COST OF SERVICE"},null,null,null,null,null,null,null,null,{"$f":"J2","v":"WITNESS RESPONSIBLE:"}]
[{"$f":"case_name","v":"CASE NO: 2019-00271"},null,null,null,null,null,null,null,null,{"$f":"Witness","v":"JAMES E. ZIOLKOWSKI"}]
[{"$f":"data_filing","v":"DATA: 12 MONTHS ACTUAL  & 0 MONTHS ESTIMATED"},null,null,null,null,null,null,null,null,{"$f":"\"PAGE \"&Pages-11&\" OF \"&Pages","v":"PAGE 7 OF 18"}]
[{"$f":"type","v":"TYPE OF FILING: \"X\" ORIGINAL   UPDATED    REVISED  "}]
[]
[]
["LINE",null,null,null,null,{"$f":"$F$8","v":"TOTAL"},"CLASSIFIED",null,null,"TOTAL","ALL"]
["NO.","WORKING CAPITAL",null,"ALLO",null,{"$f":"$F$9","v":"PRODUCTION"},{"$f":"G9","v":"DEMAND"},"ENERGY","CUSTOMER","AT ISSUE","OTHER"]
[null,null,"Schedule 5.2",null,null,null,3,4,5]
[]
[1,"NET ORIGINAL COST RATE BASE",null,null,null,{"$f":"F277-F324+F377","v":507712910},500751227,6961683,0,507712910,0]
[2]
[3,"WORKING CAPITAL"]
[4]
[5,"PLANT MATERIALS & SUPPLIES"]
[6,null,{"$f":"'FR-16(7)(v)-1 Functional'!C395","v":"OTHER MATERIALS & SUPPLIES"},{"$f":"'FR-16(7)(v)-1 Functional'!D395","v":"PD29"},null,{"$f":"'FR-16(7)(v)-1 Functional'!G395","v":12187884},{"$f":"ROUND(F395*VLOOKUP(D395,AllocTable_Classified_Production,$G$10,FALSE),0)","v":6911871},{"$f":"ROUND(F395*VLOOKUP(D395,AllocTable_Classified_Production,$H$10,FALSE),0)","v":5276013},{"$f":"ROUND(F395*VLOOKUP(D395,AllocTable_Classified_Production,$I$10,FALSE),0)","v":0},{"$f":"SUM(G395:I395)","v":12187884},{"$f":"F395-J395","v":0}]
[7,null,{"$f":"'FR-16(7)(v)-1 Functional'!C396","v":"FUEL"},{"$f":"'FR-16(7)(v)-1 Functional'!D396","v":"K301"},null,{"$f":"'FR-16(7)(v)-1 Functional'!G396","v":19518014},{"$f":"ROUND(F396*VLOOKUP(D396,AllocTable_Classified_Production,$G$10,FALSE),0)","v":0},{"$f":"ROUND(F396*VLOOKUP(D396,AllocTable_Classified_Production,$H$10,FALSE),0)","v":19518014},{"$f":"ROUND(F396*VLOOKUP(D396,AllocTable_Classified_Production,$I$10,FALSE),0)","v":0},{"$f":"SUM(G396:I396)","v":19518014},{"$f":"F396-J396","v":0}]
[8,null,{"$f":"'FR-16(7)(v)-1 Functional'!C397","v":"EMISSION ALLOWANCES"},{"$f":"'FR-16(7)(v)-1 Functional'!D397","v":"K301"},null,{"$f":"'FR-16(7)(v)-1 Functional'!G397","v":0},{"$f":"ROUND(F397*VLOOKUP(D397,AllocTable_Classified_Production,$G$10,FALSE),0)","v":0},{"$f":"ROUND(F397*VLOOKUP(D397,AllocTable_Classified_Production,$H$10,FALSE),0)","v":0},{"$f":"ROUND(F397*VLOOKUP(D397,AllocTable_Classified_Production,$I$10,FALSE),0)","v":0},{"$f":"SUM(G397:I397)","v":0},{"$f":"F397-J397","v":0}]
[9,null,{"$f":"'FR-16(7)(v)-1 Functional'!C398","v":"  TOTAL PLANT MATS. & SUPPLIES"},null,null,{"$f":"SUM(F394:F397)","v":31705898},6911871,24794027,0,31705898,0]
[10,"TOTAL MATERIALS & SUPPLIES",null,null,null,{"$f":"F398","v":31705898},6911871,24794027,0,31705898,0]
[11]
[12,"PREPAYMENTS"]
[13,null,{"$f":"'FR-16(7)(v)-1 Functional'!C402","v":"INSURANCE GENERAL"},{"$f":"'FR-16(7)(v)-1 Functional'!D402","v":"NP29"},null,{"$f":"'FR-16(7)(v)-1 Functional'!G402","v":159755},{"$f":"ROUND(F402*VLOOKUP(D402,AllocTable_Classified_Production,$G$10,FALSE),0)","v":155954},{"$f":"ROUND(F402*VLOOKUP(D402,AllocTable_Classified_Production,$H$10,FALSE),0)","v":3801},{"$f":"ROUND(F402*VLOOKUP(D402,AllocTable_Classified_Production,$I$10,FALSE),0)","v":0},{"$f":"SUM(G402:I402)","v":159755},{"$f":"F402-J402","v":0}]
[14,null,{"$f":"'FR-16(7)(v)-1 Functional'!C403","v":"EXCISE TAX"},{"$f":"'FR-16(7)(v)-1 Functional'!D403","v":"NP29"},null,{"$f":"'FR-16(7)(v)-1 Functional'!G403","v":0},{"$f":"ROUND(F403*VLOOKUP(D403,AllocTable_Classified_Production,$G$10,FALSE),0)","v":0},{"$f":"ROUND(F403*VLOOKUP(D403,AllocTable_Classified_Production,$H$10,FALSE),0)","v":0},{"$f":"ROUND(F403*VLOOKUP(D403,AllocTable_Classified_Production,$I$10,FALSE),0)","v":0},{"$f":"SUM(G403:I403)","v":0},{"$f":"F403-J403","v":0}]
[15,null,{"$f":"'FR-16(7)(v)-1 Functional'!C404","v":"COLLATERAL ASSET"},{"$f":"'FR-16(7)(v)-1 Functional'!D404","v":"K301"},null,{"$f":"'FR-16(7)(v)-1 Functional'!G404","v":-44086},{"$f":"ROUND(F404*VLOOKUP(D404,AllocTable_Classified_Production,$G$10,FALSE),0)","v":0},{"$f":"ROUND(F404*VLOOKUP(D404,AllocTable_Classified_Production,$H$10,FALSE),0)","v":-44086},{"$f":"ROUND(F404*VLOOKUP(D404,AllocTable_Classified_Production,$I$10,FALSE),0)","v":0},{"$f":"SUM(G404:I404)","v":-44086},{"$f":"F404-J404","v":0}]
[16,null,{"$f":"'FR-16(7)(v)-1 Functional'!C405","v":"  TOTAL PREPAYMENTS"},null,null,{"$f":"SUM(F401:F404)","v":115669},155954,-40285,0,115669,0]
[17]
[18,"AUTO CALC (O&M-ELECTRIC FUEL COST)/8",null,null,null,{"$f":"'FR-16(7)(v)-1 Functional'!G407","v":14965228},{"$f":"F407-SUM(H407:I407)","v":14965228},{"$f":"IF(WorkingCap=\"No\",0,ROUND((H549-H447-H448)/8,0))","v":0},{"$f":"IF(WorkingCap=\"No\",0,ROUND((I549-I447-I448)/8,0))","v":0},{"$f":"SUM(G407:I407)","v":14965228},{"$f":"F407-J407","v":0}]
[19,"  TOTAL WORKING CASH",null,null,null,{"$f":"F407","v":14965228},14965228,0,0,14965228,0]
[20]
[21,"MISCELLANEOUS WORKING CAPITAL"]
[22,null,{"$f":"'FR-16(7)(v)-1 Functional'!C411","v":"RESERVED FOR FUTURE USE"},{"$f":"'FR-16(7)(v)-1 Functional'!D411","v":"K301"},null,{"$f":"'FR-16(7)(v)-1 Functional'!G411","v":0},{"$f":"ROUND(F411*VLOOKUP(D411,AllocTable_Classified_Production,$G$10,FALSE),0)","v":0},{"$f":"ROUND(F411*VLOOKUP(D411,AllocTable_Classified_Production,$H$10,FALSE),0)","v":0},{"$f":"ROUND(F411*VLOOKUP(D411,AllocTable_Classified_Production,$I$10,FALSE),0)","v":0},{"$f":"SUM(G411:I411)","v":0},{"$f":"F411-J411","v":0}]
[23,null,{"$f":"'FR-16(7)(v)-1 Functional'!C412","v":"PIPP UNCOLLECTIBLES"},{"$f":"'FR-16(7)(v)-1 Functional'!D412","v":"A315"},null,{"$f":"'FR-16(7)(v)-1 Functional'!G412","v":0},{"$f":"ROUND(F412*VLOOKUP(D412,AllocTable_Classified_Production,$G$10,FALSE),0)","v":0},{"$f":"ROUND(F412*VLOOKUP(D412,AllocTable_Classified_Production,$H$10,FALSE),0)","v":0},{"$f":"ROUND(F412*VLOOKUP(D412,AllocTable_Classified_Production,$I$10,FALSE),0)","v":0},{"$f":"SUM(G412:I412)","v":0},{"$f":"F412-J412","v":0}]
[24,null,{"$f":"'FR-16(7)(v)-1 Functional'!C413","v":"RESERVED FOR FUTURE USE"},{"$f":"'FR-16(7)(v)-1 Functional'!D413","v":"D249"},null,{"$f":"'FR-16(7)(v)-1 Functional'!G413","v":0},{"$f":"ROUND(F413*VLOOKUP(D413,AllocTable_Classified_Production,$G$10,FALSE),0)","v":0},{"$f":"ROUND(F413*VLOOKUP(D413,AllocTable_Classified_Production,$H$10,FALSE),0)","v":0},{"$f":"ROUND(F413*VLOOKUP(D413,AllocTable_Classified_Production,$I$10,FALSE),0)","v":0},{"$f":"SUM(G413:I413)","v":0},{"$f":"F413-J413","v":0}]
[25,null,{"$f":"'FR-16(7)(v)-1 Functional'!C414","v":"  TOTAL MISC WORK CAPITAL"},null,null,{"$f":"SUM(F410:F413)","v":0},0,0,0,0,0]
[26]
[27,"TOTAL WORKING CAPITAL",null,null,null,{"$f":"F399+F405+F408+F414","v":46786795},22033053,24753742,0,46786795,0]
[28,"PRELIMINARY SUMMARY"]
[29,null,{"$f":"'FR-16(7)(v)-1 Functional'!C418","v":"TOTAL ACCUMULATED DEFERRED INCOME TAXES"},null,null,{"$f":"-F324","v":-163471645},-148926313,-14545332,0,-163471645,0]
[30,null,{"$f":"'FR-16(7)(v)-1 Functional'!C419","v":"TOTAL OTHER ACCUMULATED DEFERRED INCOME TAXES"},null,null,{"$f":"F377","v":13105882},7256485,5849397,0,13105882,0]
[31,null,{"$f":"'FR-16(7)(v)-1 Functional'!C420","v":"TOTAL WORKING CAPITAL"},null,null,{"$f":"F416","v":46786795},22033053,24753742,0,46786795,0]
[32,null,{"$f":"'FR-16(7)(v)-1 Functional'!C421","v":"  TOTAL RATE BASE ADJUSTMENTS"},null,null,{"$f":"SUM(F417:F420)","v":-103578968},-119636775,16057807,0,{"$f":"SUM(J417:J420)","v":-103578968},0]
[33]
[34,"RATE BASE CALCULATION"]
[35,null,{"$f":"'FR-16(7)(v)-1 Functional'!C424","v":"NET ELECTRIC PLANT IN SERVICE"},null,null,{"$f":"F277","v":658078673},642421055,15657618,0,658078673,0]
[36,null,{"$f":"'FR-16(7)(v)-1 Functional'!C425","v":"TOTAL RATE BASE ADJUSTMENTS"},null,null,{"$f":"F421","v":-103578968},-119636775,16057807,0,-103578968,0]
[37,null,{"$f":"'FR-16(7)(v)-1 Functional'!C426","v":"  TOTAL RATE BASE"},null,null,{"$f":"SUM(F423:F425)","v":554499705},522784280,31715425,0,{"$f":"SUM(J423:J425)","v":554499705},0]
[38]
[39,"TOTAL RATE OF RETURN ALLOWABLE",null,null,null,{"$f":"$F$811","v":6.7110000000000003E-2},{"$f":"F811","v":6.7110000000000003E-2},{"$f":"F811","v":6.7110000000000003E-2},{"$f":"F811","v":6.7110000000000003E-2},{"$f":"F811","v":6.7110000000000003E-2}]
[40,"RETURN ON RATE BASE",null,null,null,{"$f":"ROUND(F428*F426,0)+1","v":37212476},{"$f":"ROUND(G426*G428,0)","v":35084053},{"$f":"ROUND(H426*H428,0)+1","v":2128423},{"$f":"ROUND(I426*I428,0)","v":0},{"$f":"SUM(G429:I429)","v":37212476},{"$f":"ROUND(K426*K428,0)","v":0},null,{"$f":"F426*F428","v":37212475.202550001},{"$f":"G426*G428","v":35084053.0308},2128422.1717500002,0]
[41]
[42,{"$f":"'FR-16(7)(v)-1 Functional'!B431","v":"ELECTRIC RATE BASE"},null,{"$f":"'FR-16(7)(v)-1 Functional'!D431","v":"RB99"},null,{"$f":"'FR-16(7)(v)-1 Functional'!G431","v":554499705},{"$f":"ROUND(F431*VLOOKUP(D431,AllocTable_Classified_Production,$G$10,FALSE),0)","v":522782322},{"$f":"ROUND(F431*VLOOKUP(D431,AllocTable_Classified_Production,$H$10,FALSE),0)","v":31717383},{"$f":"ROUND(F431*VLOOKUP(D431,AllocTable_Classified_Production,$I$10,FALSE),0)","v":0},{"$f":"SUM(G431:I431)","v":554499705},{"$f":"F431-J431","v":0}]
[43,{"$f":"'FR-16(7)(v)-1 Functional'!B432","v":"TOTAL RATE OF RETURN ALLOWABLE"},null,null,null,{"$f":"RofR","v":6.7110000000000003E-2},{"$f":"RofR","v":6.7110000000000003E-2},{"$f":"RofR","v":6.7110000000000003E-2},{"$f":"RofR","v":6.7110000000000003E-2},{"$f":"RofR","v":6.7110000000000003E-2}]
[44,{"$f":"'FR-16(7)(v)-1 Functional'!B433","v":"RETURN ON RATE BASE"},null,null,null,{"$f":"ROUND(F431*F432,0)","v":37212475},{"$f":"F433-H433-I433","v":35083921},{"$f":"ROUND(H431*H432,0)","v":2128554},{"$f":"ROUND(I431*I432,0)","v":0},{"$f":"ROUND(J431*J432,0)","v":37212475},{"$f":"F433-J433","v":0}]
[]
[{"$f":"co_name","v":"DUKE ENERGY KENTUCKY, INC."},null,null,null,null,null,null,null,null,{"$f":"J1","v":"FR-16(7)(v)-2"}]
[{"$f":"$A$2","v":"PRODUCTION CLASSIFIED - ELECTRIC COST OF SERVICE"},null,null,null,null,null,null,null,null,{"$f":"J2","v":"WITNESS RESPONSIBLE:"}]
[{"$f":"case_name","v":"CASE NO: 2019-00271"},null,null,null,null,null,null,null,null,{"$f":"Witness","v":"JAMES E. ZIOLKOWSKI"}]
[{"$f":"data_filing","v":"DATA: 12 MONTHS ACTUAL  & 0 MONTHS ESTIMATED"},null,null,null,null,null,null,null,null,{"$f":"\"PAGE \"&Pages-10&\" OF \"&Pages","v":"PAGE 8 OF 18"}]
[{"$f":"type","v":"TYPE OF FILING: \"X\" ORIGINAL   UPDATED    REVISED  "}]
[]
[]
["LINE",null,null,null,null,{"$f":"$F$8","v":"TOTAL"},"CLASSIFIED",null,null,"TOTAL","ALL"]
["NO.","O&M EXPENSES",null,"ALLO",null,{"$f":"$F$9","v":"PRODUCTION"},{"$f":"G9","v":"DEMAND"},"ENERGY","CUSTOMER","AT ISSUE","OTHER"]
[null,null,"Schedule 6",null,null,null,3,4,5]
[1,"PRODUCTION O&M"]
[2,{"$f":"'FR-16(7)(v)-1 Functional'!B446","v":"ENERGY RELATED PRODUCTION O&M"}]
[3,null,{"$f":"'FR-16(7)(v)-1 Functional'!C447","v":"FUEL"},{"$f":"'FR-16(7)(v)-1 Functional'!D447","v":"K302"},null,{"$f":"'FR-16(7)(v)-1 Functional'!G447","v":0},{"$f":"F447-SUM(H447:I447)","v":0},{"$f":"ROUND(F447*VLOOKUP(D447,AllocTable_Classified_Production,$H$10,FALSE),0)","v":0},{"$f":"ROUND(F447*VLOOKUP(D447,AllocTable_Classified_Production,$I$10,FALSE),0)","v":0},{"$f":"SUM(G447:I447)","v":0},{"$f":"F447-J447","v":0}]
[4,null,{"$f":"'FR-16(7)(v)-1 Functional'!C448","v":"FUEL AND PURCHASED POWER ADJUSTMENT"},{"$f":"'FR-16(7)(v)-1 Functional'!D448","v":"K302"},null,{"$f":"'FR-16(7)(v)-1 Functional'!G448","v":100379685},0,100379685,0,100379685,0]
[5,null,{"$f":"'FR-16(7)(v)-1 Functional'!C449","v":"EMISSION ALLOWANCES"},{"$f":"'FR-16(7)(v)-1 Functional'!D449","v":"K301"},null,{"$f":"'FR-16(7)(v)-1 Functional'!G449","v":0},0,0,0,0,0]
[6,null,{"$f":"'FR-16(7)(v)-1 Functional'!C450","v":"ELIMINATE EMISSION ALLOW & OTHER VAR COST"},{"$f":"'FR-16(7)(v)-1 Functional'!D450","v":"K301"},null,{"$f":"'FR-16(7)(v)-1 Functional'!G450","v":0},0,0,0,0,0]
[7,null,{"$f":"'FR-16(7)(v)-1 Functional'!C451","v":"OTHER PRODUCTION EXPENSE - MAINTENANCE"},{"$f":"'FR-16(7)(v)-1 Functional'!D451","v":"K301"},null,{"$f":"'FR-16(7)(v)-1 Functional'!G451","v":40683654},0,40683654,0,40683654,0]
[8,null,{"$f":"'FR-16(7)(v)-1 Functional'!C452","v":"MISO TRANSMISSION CHARGES - ACCT 555"},{"$f":"'FR-16(7)(v)-1 Functional'!D452","v":"K301"},null,{"$f":"'FR-16(7)(v)-1 Functional'!G452","v":0},0,0,0,0,0]
[9,null,"  TOTAL ENERGY RELATED",null,null,{"$f":"SUM(F447:F452)","v":141063339},0,141063339,0,141063339,0]
[10]
[11,"DEMAND RELATED & OTHER PROD O&M"]
[12,null,{"$f":"'FR-16(7)(v)-1 Functional'!C456","v":"OTHER PRODUCTION EXPENSES - OPERATIONS"},{"$f":"'FR-16(7)(v)-1 Functional'!D456","v":"K201"},null,{"$f":"'FR-16(7)(v)-1 Functional'!G456","v":0},{"$f":"F456-SUM(H456:I456)","v":0},{"$f":"ROUND(F456*VLOOKUP(D456,AllocTable_Classified_Production,$H$10,FALSE),0)","v":0},{"$f":"ROUND(F456*VLOOKUP(D456,AllocTable_Classified_Production,$I$10,FALSE),0)","v":0},{"$f":"SUM(G456:I456)","v":0},{"$f":"F456-J456","v":0}]
[13,null,"  TOTAL DEMAND REL & OTH PROD O&M ",null,null,{"$f":"SUM(F455:F456)","v":0},0,0,0,0,0]
[14]
[15,"TOTAL PRODUCTION O&M",null,null," ",{"$f":"F457+F453","v":141063339},0,141063339,0,141063339,0]
[16]
[17,"TRANSMISSION O & M"]
[18,null,{"$f":"'FR-16(7)(v)-1 Functional'!C462","v":"TRANSFORMER LEASE PAYMENTS"},{"$f":"'FR-16(7)(v)-1 Functional'!D462","v":"K202"},null,{"$f":"'FR-16(7)(v)-1 Functional'!G462","v":0},{"$f":"F462-SUM(H462:I462)","v":0},{"$f":"ROUND(F462*VLOOKUP(D462,AllocTable_Classified_Production,$H$10,FALSE),0)","v":0},{"$f":"ROUND(F462*VLOOKUP(D462,AllocTable_Classified_Production,$I$10,FALSE),0)","v":0},{"$f":"SUM(G462:I462)","v":0},{"$f":"F462-J462","v":0}]
[19,null,{"$f":"'FR-16(7)(v)-1 Functional'!C463","v":"OTHER TRANSMISSION"},{"$f":"'FR-16(7)(v)-1 Functional'!D463","v":"K202"},null,{"$f":"'FR-16(7)(v)-1 Functional'!G463","v":0},{"$f":"F463-SUM(H463:I463)","v":0},{"$f":"ROUND(F463*VLOOKUP(D463,AllocTable_Classified_Production,$H$10,FALSE),0)","v":0},{"$f":"ROUND(F463*VLOOKUP(D463,AllocTable_Classified_Production,$I$10,FALSE),0)","v":0},{"$f":"SUM(G463:I463)","v":0},{"$f":"F463-J463","v":0}]
[20,null,{"$f":"'FR-16(7)(v)-1 Functional'!C464","v":"MISCELLANEOUS ADJUSTMENTS"},{"$f":"'FR-16(7)(v)-1 Functional'!D464","v":"K202"},null,{"$f":"'FR-16(7)(v)-1 Functional'!G464","v":0},{"$f":"F464-SUM(H464:I464)","v":0},{"$f":"ROUND(F464*VLOOKUP(D464,AllocTable_Classified_Production,$H$10,FALSE),0)","v":0},{"$f":"ROUND(F464*VLOOKUP(D464,AllocTable_Classified_Production,$I$10,FALSE),0)","v":0},{"$f":"SUM(G464:I464)","v":0},{"$f":"F464-J464","v":0}]
[21,null,{"$f":"'FR-16(7)(v)-1 Functional'!C465","v":"NETWORK SERVICE RATES ADJUSTMENT"},{"$f":"'FR-16(7)(v)-1 Functional'!D465","v":"K202"},null,{"$f":"'FR-16(7)(v)-1 Functional'!G465","v":0},{"$f":"F465-SUM(H465:I465)","v":0},{"$f":"ROUND(F465*VLOOKUP(D465,AllocTable_Classified_Production,$H$10,FALSE),0)","v":0},{"$f":"ROUND(F465*VLOOKUP(D465,AllocTable_Classified_Production,$I$10,FALSE),0)","v":0},{"$f":"SUM(G465:I465)","v":0},{"$f":"F465-J465","v":0}]
[22,null,{"$f":"'FR-16(7)(v)-1 Functional'!C466","v":"  TOTAL TRANSMISSION O & M"},null,null,{"$f":"SUM(F462:F465)","v":0},0,0,0,0,0]
[23]
[24,"REGIONAL MARKET O&M"]
[25,null,{"$f":"'FR-16(7)(v)-1 Functional'!C469","v":"MARKET FACILITATION - MONITORING & COMPLIANCE"},{"$f":"'FR-16(7)(v)-1 Functional'!D469","v":"K202"},null,{"$f":"'FR-16(7)(v)-1 Functional'!G469","v":0},{"$f":"F469-SUM(H469:I469)","v":0},{"$f":"ROUND(F469*VLOOKUP(D469,AllocTable_Classified_Production,$H$10,FALSE),0)","v":0},{"$f":"ROUND(F469*VLOOKUP(D469,AllocTable_Classified_Production,$I$10,FALSE),0)","v":0},{"$f":"SUM(G469:I469)","v":0},{"$f":"F469-J469","v":0}]
[26,null,"TOTAL REGIONAL MARKET O&M",null,null,{"$f":"SUM(F468:F469)","v":0},0,0,0,0,0]
[27]
[28,"DISTRIBUTION O & M"]
[29,null,{"$f":"'FR-16(7)(v)-1 Functional'!C473","v":"SUBSTATIONS"},{"$f":"'FR-16(7)(v)-1 Functional'!D473","v":"K201"},null,{"$f":"'FR-16(7)(v)-1 Functional'!G473","v":621124},{"$f":"F473-SUM(H473:I473)","v":621124},{"$f":"ROUND(F473*VLOOKUP(D473,AllocTable_Classified_Production,$H$10,FALSE),0)","v":0},{"$f":"ROUND(F473*VLOOKUP(D473,AllocTable_Classified_Production,$I$10,FALSE),0)","v":0},{"$f":"SUM(G473:I473)","v":621124},{"$f":"F473-J473","v":0}]
[30,null,{"$f":"'FR-16(7)(v)-1 Functional'!C474","v":"POLES, TOWERS & FIXTURES"},{"$f":"'FR-16(7)(v)-1 Functional'!D474","v":"PL49"},null,{"$f":"'FR-16(7)(v)-1 Functional'!G474","v":0},0,0,0,0,0]
[31,null,{"$f":"'FR-16(7)(v)-1 Functional'!C475","v":"OVERHEAD LINES - PRIMARY / DEMAND"},{"$f":"'FR-16(7)(v)-1 Functional'!D475","v":"K205"},null,{"$f":"'FR-16(7)(v)-1 Functional'!G475","v":0},0,0,0,0,0]
[32,null,{"$f":"'FR-16(7)(v)-1 Functional'!C476","v":"OVERHEAD LINES - PRIMARY / CUSTOMER"},{"$f":"'FR-16(7)(v)-1 Functional'!D476","v":"K405"},null,{"$f":"'FR-16(7)(v)-1 Functional'!G476","v":0},{"$f":"F476-SUM(H476:I476)","v":0},{"$f":"ROUND(F476*VLOOKUP(D476,AllocTable_Classified_Production,$H$10,FALSE),0)","v":0},{"$f":"ROUND(F476*VLOOKUP(D476,AllocTable_Classified_Production,$I$10,FALSE),0)","v":0},{"$f":"SUM(G476:I476)","v":0},{"$f":"F476-J476","v":0}]
[33,null,{"$f":"'FR-16(7)(v)-1 Functional'!C477","v":"OVERHEAD LINES - SECONDARY / DEMAND"},{"$f":"'FR-16(7)(v)-1 Functional'!D477","v":"K206"},null,{"$f":"'FR-16(7)(v)-1 Functional'!G477","v":0},0,0,0,0,0]
[34,null,{"$f":"'FR-16(7)(v)-1 Functional'!C478","v":"OVERHEAD LINES - SECONDARY / CUSTOMER"},{"$f":"'FR-16(7)(v)-1 Functional'!D478","v":"K405"},null,{"$f":"'FR-16(7)(v)-1 Functional'!G478","v":0},0,0,0,0,0]
[35,null,{"$f":"'FR-16(7)(v)-1 Functional'!C479","v":"UNDERGROUND LINES - PRIMARY / DEMAND"},{"$f":"'FR-16(7)(v)-1 Functional'!D479","v":"K205"},null,{"$f":"'FR-16(7)(v)-1 Functional'!G479","v":0},0,0,0,0,0]
[36,null,{"$f":"'FR-16(7)(v)-1 Functional'!C480","v":"UNDERGROUND LINES - PRIMARY / CUSTOMER"},{"$f":"'FR-16(7)(v)-1 Functional'!D480","v":"K405"},null,{"$f":"'FR-16(7)(v)-1 Functional'!G480","v":0},0,0,0,0,0]
[37,null,{"$f":"'FR-16(7)(v)-1 Functional'!C481","v":"UNDERGROUND LINES - SECONDARY / DEMAND"},{"$f":"'FR-16(7)(v)-1 Functional'!D481","v":"K206"},null,{"$f":"'FR-16(7)(v)-1 Functional'!G481","v":0},0,0,0,0,0]
[38,null,{"$f":"'FR-16(7)(v)-1 Functional'!C482","v":"UNDERGROUND LINES - SECONDARY / CUSTOMER"},{"$f":"'FR-16(7)(v)-1 Functional'!D482","v":"K405"},null,{"$f":"'FR-16(7)(v)-1 Functional'!G482","v":0},0,0,0,0,0]
[39,null,{"$f":"'FR-16(7)(v)-1 Functional'!C483","v":"TRANSFORMERS DEMAND RELATED"},{"$f":"'FR-16(7)(v)-1 Functional'!D483","v":"K203"},null,{"$f":"'FR-16(7)(v)-1 Functional'!G483","v":0},0,0,0,0,0]
[40,null,{"$f":"'FR-16(7)(v)-1 Functional'!C484","v":"TRANSFORMERS CUSTOMER RELATED"},{"$f":"'FR-16(7)(v)-1 Functional'!D484","v":"K401"},null,{"$f":"'FR-16(7)(v)-1 Functional'!G484","v":0},{"$f":"F484-SUM(H484:I484)","v":0},{"$f":"ROUND(F484*VLOOKUP(D484,AllocTable_Classified_Production,$H$10,FALSE),0)","v":0},{"$f":"ROUND(F484*VLOOKUP(D484,AllocTable_Classified_Production,$I$10,FALSE),0)","v":0},{"$f":"SUM(G484:I484)","v":0},{"$f":"F484-J484","v":0}]
[41,null,{"$f":"'FR-16(7)(v)-1 Functional'!C485","v":"OTHER MAINTENANCE"},{"$f":"'FR-16(7)(v)-1 Functional'!D485","v":"K203"},null,{"$f":"'FR-16(7)(v)-1 Functional'!G485","v":0},0,0,0,0,0]
[42,null,{"$f":"'FR-16(7)(v)-1 Functional'!C486","v":"LOAD DISPATCH"},{"$f":"'FR-16(7)(v)-1 Functional'!D486","v":"K215"},null,{"$f":"'FR-16(7)(v)-1 Functional'!G486","v":0},0,0,0,0,0]
[43,null,{"$f":"'FR-16(7)(v)-1 Functional'!C487","v":"METERS"},{"$f":"'FR-16(7)(v)-1 Functional'!D487","v":"K407"},null,{"$f":"'FR-16(7)(v)-1 Functional'!G487","v":0},0,0,0,0,0]
[44,null,{"$f":"'FR-16(7)(v)-1 Functional'!C488","v":"STREET LIGHTING AND SIGNAL SYSTEMS"},{"$f":"'FR-16(7)(v)-1 Functional'!D488","v":"K401"},null,{"$f":"'FR-16(7)(v)-1 Functional'!G488","v":0},0,0,0,0,0]
[45,null,{"$f":"'FR-16(7)(v)-1 Functional'!C489","v":"OTHER OPERATIONS"},{"$f":"'FR-16(7)(v)-1 Functional'!D489","v":"K203"},null,{"$f":"'FR-16(7)(v)-1 Functional'!G489","v":0},0,0,0,0,0]
[46,null,{"$f":"'FR-16(7)(v)-1 Functional'!C490","v":"MISCELLANEOUS EXPENSES ADJUSTMENT"},{"$f":"'FR-16(7)(v)-1 Functional'!D490","v":"K203"},null,{"$f":"'FR-16(7)(v)-1 Functional'!G490","v":0},0,0,0,0,0]
[47,null,{"$f":"'FR-16(7)(v)-1 Functional'!C491","v":"AFFILIATED COMPANY RENTS ADJUSTMENT"},{"$f":"'FR-16(7)(v)-1 Functional'!D491","v":"D249"},null,{"$f":"'FR-16(7)(v)-1 Functional'!G491","v":0},0,0,0,0,0]
[48,null,{"$f":"'FR-16(7)(v)-1 Functional'!C492","v":"  TOTAL DISTRIBUTION O & M"},null," ",{"$f":"SUM(F472:F491)","v":621124},621124,0,0,621124,0]
[49,null," "]
[50,"CUSTOMER ACCOUNTING",null,null,null," "]
[51,null,{"$f":"'FR-16(7)(v)-1 Functional'!C495","v":"CUSTOMER ACCOUNTING EXPENSE"},{"$f":"'FR-16(7)(v)-1 Functional'!D495","v":"K409"},null,{"$f":"'FR-16(7)(v)-1 Functional'!G495","v":0},{"$f":"F495-SUM(H495:I495)","v":0},{"$f":"ROUND(F495*VLOOKUP(D495,AllocTable_Classified_Production,$H$10,FALSE),0)","v":0},{"$f":"ROUND(F495*VLOOKUP(D495,AllocTable_Classified_Production,$I$10,FALSE),0)","v":0},{"$f":"SUM(G495:I495)","v":0},{"$f":"F495-J495","v":0}]
[52,null,{"$f":"'FR-16(7)(v)-1 Functional'!C496","v":"UNCOLLECTIBLE EXP"},{"$f":"'FR-16(7)(v)-1 Functional'!D496","v":"K411"},null,{"$f":"'FR-16(7)(v)-1 Functional'!G496","v":0},0,0,0,0,0]
[53,null,{"$f":"'FR-16(7)(v)-1 Functional'!C497","v":"METER READING"},{"$f":"'FR-16(7)(v)-1 Functional'!D497","v":"K407"},null,{"$f":"'FR-16(7)(v)-1 Functional'!G497","v":0},0,0,0,0,0]
[54,null,{"$f":"'FR-16(7)(v)-1 Functional'!C498","v":"UNCOLLECTIBLE EXP ADJUSTMENT"},{"$f":"'FR-16(7)(v)-1 Functional'!D498","v":"K411"},null,{"$f":"'FR-16(7)(v)-1 Functional'!G498","v":0},0,0,0,0,0]
[55,null,{"$f":"'FR-16(7)(v)-1 Functional'!C499","v":"CREDIT CARD FEES"},{"$f":"'FR-16(7)(v)-1 Functional'!D499","v":"K407"},null,{"$f":"'FR-16(7)(v)-1 Functional'!G499","v":0},0,0,0,0,0]
[56,null,{"$f":"'FR-16(7)(v)-1 Functional'!C500","v":"ELIMINATE REV & EXP - DSM RIDER"},{"$f":"'FR-16(7)(v)-1 Functional'!D500","v":"K405"},null,{"$f":"'FR-16(7)(v)-1 Functional'!G500","v":0},0,0,0,0,0]
[57,null,{"$f":"'FR-16(7)(v)-1 Functional'!C501","v":"SALE OF A/R"},{"$f":"'FR-16(7)(v)-1 Functional'!D501","v":"K411"},null,{"$f":"'FR-16(7)(v)-1 Functional'!G501","v":0},0,0,0,0,0]
[58,null,{"$f":"'FR-16(7)(v)-1 Functional'!C502","v":"ELIMINATE MISC EXPENSE"},{"$f":"'FR-16(7)(v)-1 Functional'!D502","v":"K405"},null,{"$f":"'FR-16(7)(v)-1 Functional'!G502","v":0},0,0,0,0,0]
[59,null,{"$f":"'FR-16(7)(v)-1 Functional'!C503","v":"  TOTAL CUSTOMER ACCT EXPENSE"},null," ",{"$f":"SUM(F494:F502)","v":0},0,0,0,0,0]
[]
[{"$f":"co_name","v":"DUKE ENERGY KENTUCKY, INC."},null,null,null,null,null,null,null,null,{"$f":"J1","v":"FR-16(7)(v)-2"}]
[{"$f":"$A$2","v":"PRODUCTION CLASSIFIED - ELECTRIC COST OF SERVICE"},null,null,null,null,null,null,null,null,{"$f":"J2","v":"WITNESS RESPONSIBLE:"}]
[{"$f":"case_name","v":"CASE NO: 2019-00271"},null,null,null,null,null,null,null,null,{"$f":"Witness","v":"JAMES E. ZIOLKOWSKI"}]
[{"$f":"data_filing","v":"DATA: 12 MONTHS ACTUAL  & 0 MONTHS ESTIMATED"},null,null,null,null,null,null,null,null,{"$f":"\"PAGE \"&Pages-9&\" OF \"&Pages","v":"PAGE 9 OF 18"}]
[{"$f":"type","v":"TYPE OF FILING: \"X\" ORIGINAL   UPDATED    REVISED  "}]
[]
[]
["LINE",null,null,null,null,{"$f":"$F$8","v":"TOTAL"},"CLASSIFIED",null,null,"TOTAL","ALL"]
["NO.","O&M EXPENSES",null,"ALLO",null,{"$f":"$F$9","v":"PRODUCTION"},{"$f":"G9","v":"DEMAND"},"ENERGY","CUSTOMER","AT ISSUE","OTHER"]
[null,null,"Schedule 6.1",null,null,null,3,4,5]
[1,"CUSTOMER SERVICE & INFORMATION"]
[2,null,{"$f":"'FR-16(7)(v)-1 Functional'!C516","v":"TOTAL CUST SERVICE & INFO"},{"$f":"'FR-16(7)(v)-1 Functional'!D516","v":"K405"},null,{"$f":"'FR-16(7)(v)-1 Functional'!G516","v":0},{"$f":"F516-SUM(H516:I516)","v":0},{"$f":"ROUND(F516*VLOOKUP(D516,AllocTable_Classified_Production,$H$10,FALSE),0)","v":0},{"$f":"ROUND(F516*VLOOKUP(D516,AllocTable_Classified_Production,$I$10,FALSE),0)","v":0},{"$f":"SUM(G516:I516)","v":0},{"$f":"F516-J516","v":0}]
[3,null,{"$f":"'FR-16(7)(v)-1 Functional'!C517","v":"INFORMATIONAL & INSTRUCTIONAL ADV"},{"$f":"'FR-16(7)(v)-1 Functional'!D517","v":"K405"},null,{"$f":"'FR-16(7)(v)-1 Functional'!G517","v":0},{"$f":"F517-SUM(H517:I517)","v":0},{"$f":"ROUND(F517*VLOOKUP(D517,AllocTable_Classified_Production,$H$10,FALSE),0)","v":0},{"$f":"ROUND(F517*VLOOKUP(D517,AllocTable_Classified_Production,$I$10,FALSE),0)","v":0},{"$f":"SUM(G517:I517)","v":0},{"$f":"F517-J517","v":0}]
[4,null,{"$f":"'FR-16(7)(v)-1 Functional'!C518","v":"TOTAL CUSTOMER SERV. & INFO."},null," ",{"$f":"SUM(F516:F517)","v":0},0,0,0,0,0]
[5]
[6,"SALES"]
[7,null,{"$f":"'FR-16(7)(v)-1 Functional'!C521","v":"SALES EXPENSE"},{"$f":"'FR-16(7)(v)-1 Functional'!D521","v":"K405"}," ",{"$f":"'FR-16(7)(v)-1 Functional'!G521","v":0},{"$f":"F521-SUM(H521:I521)","v":0},{"$f":"ROUND(F521*VLOOKUP(D521,AllocTable_Classified_Production,$H$10,FALSE),0)","v":0},{"$f":"ROUND(F521*VLOOKUP(D521,AllocTable_Classified_Production,$I$10,FALSE),0)","v":0},{"$f":"SUM(G521:I521)","v":0},{"$f":"F521-J521","v":0}]
[8,null,{"$f":"'FR-16(7)(v)-1 Functional'!C522","v":"TOTAL SALES EXPENSE"},null," ",{"$f":"SUM(F520:F521)","v":0},0,0,0,0,0]
[9]
[10,"ADMINISTRATIVE & GENERAL "]
[11,null,{"$f":"'FR-16(7)(v)-1 Functional'!C525","v":"PRODUCTION - DEMAND RELATED"},{"$f":"'FR-16(7)(v)-1 Functional'!D525","v":"P349"},null,{"$f":"'FR-16(7)(v)-1 Functional'!G525","v":9286338},{"$f":"F525-SUM(H525:I525)","v":9286338},{"$f":"ROUND(F525*VLOOKUP(D525,AllocTable_Classified_Production,$H$10,FALSE),0)","v":0},{"$f":"ROUND(F525*VLOOKUP(D525,AllocTable_Classified_Production,$I$10,FALSE),0)","v":0},{"$f":"SUM(G525:I525)","v":9286338},{"$f":"F525-J525","v":0}]
[12,null,{"$f":"'FR-16(7)(v)-1 Functional'!C526","v":"PRODUCTION - ENERGY RELATED"},{"$f":"'FR-16(7)(v)-1 Functional'!D526","v":"E349"},null,{"$f":"'FR-16(7)(v)-1 Functional'!G526","v":10850517},0,10850517,0,10850517,0]
[13,null,"TRANSMISSION",{"$f":"'FR-16(7)(v)-1 Functional'!D527","v":"T349"},null,{"$f":"'FR-16(7)(v)-1 Functional'!G527","v":0},{"$f":"F527-SUM(H527:I527)","v":0},0,0,{"$f":"SUM(G527:I527)","v":0},{"$f":"F527-J527","v":0}]
[14,null,{"$f":"'FR-16(7)(v)-1 Functional'!C528","v":"DISTRIBUTION"},{"$f":"'FR-16(7)(v)-1 Functional'!D528","v":"D349"},null,{"$f":"'FR-16(7)(v)-1 Functional'!G528","v":209224},209224,0,0,209224,0]
[15,null,{"$f":"'FR-16(7)(v)-1 Functional'!C529","v":"CUSTOMER ACCOUNTING"},"C319",null,{"$f":"'FR-16(7)(v)-1 Functional'!G529","v":0},0,0,0,0,0]
[16,null,{"$f":"'FR-16(7)(v)-1 Functional'!C530","v":"CUSTOMER SERVICE & INFORMATION"},"C331",null,{"$f":"'FR-16(7)(v)-1 Functional'!G530","v":0},0,0,0,0,0]
[17,null,{"$f":"'FR-16(7)(v)-1 Functional'!C531","v":"SALES"},"S319",null,{"$f":"'FR-16(7)(v)-1 Functional'!G531","v":0},0,0,0,0,0]
[18,null,{"$f":"'FR-16(7)(v)-1 Functional'!C532","v":"TOT ADMIN & GEN LESS REG EXP"}," ",null,{"$f":"SUM(F525:F531)","v":20346079},9495562,10850517,0,20346079,0]
[19,null,{"$f":"'FR-16(7)(v)-1 Functional'!C533","v":"RATE CASE EXPENSE ADJUSTMENT"},{"$f":"'FR-16(7)(v)-1 Functional'!D533","v":"A315"},null,{"$f":"'FR-16(7)(v)-1 Functional'!G533","v":87324},{"$f":"F533-SUM(H533:I533)","v":40754},{"$f":"ROUND(F533*VLOOKUP(D533,AllocTable_Classified_Production,$H$10,FALSE),0)","v":46570},{"$f":"ROUND(F533*VLOOKUP(D533,AllocTable_Classified_Production,$I$10,FALSE),0)","v":0},{"$f":"SUM(G533:I533)","v":87324},{"$f":"F533-J533","v":0}]
[20,null,{"$f":"'FR-16(7)(v)-1 Functional'!C534","v":"ELIMINATE MISCELLANEOUS EXPENSES ADJUSTMENT"},{"$f":"'FR-16(7)(v)-1 Functional'!D534","v":"A315"},null,{"$f":"'FR-16(7)(v)-1 Functional'!G534","v":0},0,0,0,0,0]
[21,null,{"$f":"'FR-16(7)(v)-1 Functional'!C535","v":"RIDER ESM ELIMINATION"},{"$f":"'FR-16(7)(v)-1 Functional'!D535","v":"A315"},null,{"$f":"'FR-16(7)(v)-1 Functional'!G535","v":-6002159},-2801208,-3200951,0,-6002159,0]
[22,null,{"$f":"'FR-16(7)(v)-1 Functional'!C536","v":"ELIMINATE DSM"},{"$f":"'FR-16(7)(v)-1 Functional'!D536","v":"A315"},null,{"$f":"'FR-16(7)(v)-1 Functional'!G536","v":-84066},-39234,-44832,0,-84066,0]
[23,null,{"$f":"'FR-16(7)(v)-1 Functional'!C537","v":"DSM DEFERRAL - ELECTRIC"},{"$f":"'FR-16(7)(v)-1 Functional'!D537","v":"A315"},null,{"$f":"'FR-16(7)(v)-1 Functional'!G537","v":0},0,0,0,0,0]
[24,null,{"$f":"'FR-16(7)(v)-1 Functional'!C538","v":"PENSION ADJUSTMENT"},{"$f":"'FR-16(7)(v)-1 Functional'!D538","v":"A315"},null,{"$f":"'FR-16(7)(v)-1 Functional'!G538","v":-366212},-170911,-195301,0,-366212,0]
[25,null,{"$f":"'FR-16(7)(v)-1 Functional'!C539","v":"ELIMINATE MISC EXPENSES"},{"$f":"'FR-16(7)(v)-1 Functional'!D539","v":"A315"},null,{"$f":"'FR-16(7)(v)-1 Functional'!G539","v":-353246},-164860,-188386,0,-353246,0]
[26,null,{"$f":"'FR-16(7)(v)-1 Functional'!C540","v":"ELIMINATE MERGER COSTS AND CREDITS"},{"$f":"'FR-16(7)(v)-1 Functional'!D540","v":"A315"},null,{"$f":"'FR-16(7)(v)-1 Functional'!G540","v":0},{"$f":"F540-SUM(H540:I540)","v":0},0,0,{"$f":"SUM(G540:I540)","v":0},{"$f":"F540-J540","v":0}]
[27,null,{"$f":"'FR-16(7)(v)-1 Functional'!C541","v":"ANNUALIZE KYPSC MAINT TAX"},{"$f":"'FR-16(7)(v)-1 Functional'!D541","v":"A315"},null,{"$f":"'FR-16(7)(v)-1 Functional'!G541","v":0},0,0,0,0,0]
[28,null,{"$f":"'FR-16(7)(v)-1 Functional'!C542","v":"REMOVE INCENTIVE COMP"},{"$f":"'FR-16(7)(v)-1 Functional'!D542","v":"A315"},null,{"$f":"'FR-16(7)(v)-1 Functional'!G542","v":-1019786},-475934,-543852,0,-1019786,0]
[29,null,{"$f":"'FR-16(7)(v)-1 Functional'!C543","v":"CREDIT CARD FEES"},{"$f":"'FR-16(7)(v)-1 Functional'!D543","v":"A315"},null,{"$f":"'FR-16(7)(v)-1 Functional'!G543","v":0},0,0,0,0,0]
[30,null,{"$f":"'FR-16(7)(v)-1 Functional'!C544","v":"ELIMINATE INCENTIVE COMPENSATION ADJUSTMENT"},{"$f":"'FR-16(7)(v)-1 Functional'!D544","v":"A315"},null,{"$f":"'FR-16(7)(v)-1 Functional'!G544","v":0},0,0,0,0,0]
[31,null,{"$f":"'FR-16(7)(v)-1 Functional'!C545","v":"AMORTIZATION OF DEFERRAL ASSET"},{"$f":"'FR-16(7)(v)-1 Functional'!D545","v":"A315"},null,{"$f":"'FR-16(7)(v)-1 Functional'!G545","v":0},0,0,0,0,0]
[32,null,{"$f":"'FR-16(7)(v)-1 Functional'!C546","v":"AMORTIZATION OF DEFERRED EXPENSES"},{"$f":"'FR-16(7)(v)-1 Functional'!D546","v":"A315"},null,{"$f":"'FR-16(7)(v)-1 Functional'!G546","v":64169},29948,34221,0,64169,0]
[33,null,{"$f":"'FR-16(7)(v)-1 Functional'!C547","v":"TOTAL ADMIN. & GENERAL"},null," ",{"$f":"SUM(F532:F546)","v":12672103},5914117,6757986,0,12672103,0]
[34]
[35,null,{"$f":"'FR-16(7)(v)-1 Functional'!C549","v":"TOTAL O & M EXPENSE"},null,null,{"$f":"F547+F522+F518+F503+F492+F470+F466+F459","v":154356566},6535241,147821325,0,154356566,0]
[]
[{"$f":"co_name","v":"DUKE ENERGY KENTUCKY, INC."},null,null,null,null,null,null,null,null,{"$f":"J1","v":"FR-16(7)(v)-2"}]
[{"$f":"$A$2","v":"PRODUCTION CLASSIFIED - ELECTRIC COST OF SERVICE"},null,null,null,null,null,null,null,null,{"$f":"J2","v":"WITNESS RESPONSIBLE:"}]
[{"$f":"case_name","v":"CASE NO: 2019-00271"},null,null,null,null,null,null,null,null,{"$f":"Witness","v":"JAMES E. ZIOLKOWSKI"}]
[{"$f":"data_filing","v":"DATA: 12 MONTHS ACTUAL  & 0 MONTHS ESTIMATED"},null,null,null,null,null,null,null,null,{"$f":"\"PAGE \"&Pages-8&\" OF \"&Pages","v":"PAGE 10 OF 18"}]
[{"$f":"type","v":"TYPE OF FILING: \"X\" ORIGINAL   UPDATED    REVISED  "}]
[]
[]
["LINE",null,null,null,null,{"$f":"$F$8","v":"TOTAL"},"CLASSIFIED",null,null,"TOTAL","ALL"]
["NO.","DEPRECIATION EXPENSE",null,"ALLO",null,{"$f":"$F$9","v":"PRODUCTION"},{"$f":"G9","v":"DEMAND"},"ENERGY","CUSTOMER","AT ISSUE","OTHER"]
[null,null,"Schedule 7",null,null,null,3,4,5]
[1,"PRODUCTION DEPRECIATION"]
[2,null,{"$f":"'FR-16(7)(v)-1 Functional'!C562","v":"PRODUCTION DEPRECIATION"},{"$f":"'FR-16(7)(v)-1 Functional'!D562","v":"P229"},null,{"$f":"'FR-16(7)(v)-1 Functional'!G562","v":37535245},{"$f":"F562-SUM(H562:I562)","v":37535245},{"$f":"ROUND(F562*VLOOKUP(D562,AllocTable_Classified_Production,$H$10,FALSE),0)","v":0},{"$f":"ROUND(F562*VLOOKUP(D562,AllocTable_Classified_Production,$I$10,FALSE),0)","v":0},{"$f":"SUM(G562:I562)","v":37535245},{"$f":"F562-J562","v":0}]
[3,null,{"$f":"'FR-16(7)(v)-1 Functional'!C563","v":"  TOTAL PRODUCTION DEPREC EXP."},null,null,{"$f":"SUM(F562:F562)","v":37535245},37535245,0,0,37535245,0]
[4]
[5,"TRANSMISSION DEPRECIATION"]
[6,null,"TRANSMISSION DEPRECIATION",{"$f":"'FR-16(7)(v)-1 Functional'!D566","v":"T229"},null,{"$f":"'FR-16(7)(v)-1 Functional'!G566","v":0},{"$f":"F566-SUM(H566:I566)","v":0},{"$f":"ROUND(F566*VLOOKUP(D566,AllocTable_Classified_Production,$H$10,FALSE),0)","v":0},{"$f":"ROUND(F566*VLOOKUP(D566,AllocTable_Classified_Production,$I$10,FALSE),0)","v":0},{"$f":"SUM(G566:I566)","v":0},{"$f":"F566-J566","v":0}]
[7,null,{"$f":"'FR-16(7)(v)-1 Functional'!C567","v":"  TOTAL TRANSMISSION DEP. EXP."},null,null,{"$f":"SUM(F566:F566)","v":0},0,0,0,0,0]
[8]
[9,"DISTRIBUTION DEPRECIATION"]
[10,null,{"$f":"'FR-16(7)(v)-1 Functional'!C570","v":"DISTRIBUTION DEPRECIATION"},{"$f":"'FR-16(7)(v)-1 Functional'!D570","v":"D249"},null,{"$f":"'FR-16(7)(v)-1 Functional'!G570","v":0},{"$f":"F570-SUM(H570:I570)","v":0},{"$f":"ROUND(F570*VLOOKUP(D570,AllocTable_Classified_Production,$H$10,FALSE),0)","v":0},{"$f":"ROUND(F570*VLOOKUP(D570,AllocTable_Classified_Production,$I$10,FALSE),0)","v":0},{"$f":"SUM(G570:I570)","v":0},{"$f":"F570-J570","v":0}]
[11,null,{"$f":"'FR-16(7)(v)-1 Functional'!C571","v":"  TOTAL DIST. DEPREC EXP."},null,null,{"$f":"SUM(F570:F570)","v":0},0,0,0,0,0]
[12,null,null,null,null," "]
[13,"GENERAL DEPRECIATION"]
[14,null,{"$f":"'FR-16(7)(v)-1 Functional'!C574","v":"GENERAL DEPRECIATION"},{"$f":"'FR-16(7)(v)-1 Functional'!D574","v":"G229"},null,{"$f":"'FR-16(7)(v)-1 Functional'!G574","v":4290340},{"$f":"F574-SUM(H574:I574)","v":2436098},{"$f":"ROUND(F574*VLOOKUP(D574,AllocTable_Classified_Production,$H$10,FALSE),0)","v":1854242},{"$f":"ROUND(F574*VLOOKUP(D574,AllocTable_Classified_Production,$I$10,FALSE),0)","v":0},{"$f":"SUM(G574:I574)","v":4290340},{"$f":"F574-J574","v":0}]
[15,null,{"$f":"'FR-16(7)(v)-1 Functional'!C575","v":"  TOTAL GENERAL DEPREC EXP."},null,null,{"$f":"SUM(F574:F574)","v":4290340},2436098,1854242,0,4290340,0]
[16]
[17,"COMMON AND OTHER DEPRECIATION"]
[18,null,{"$f":"'FR-16(7)(v)-1 Functional'!C578","v":"COMMON DEPRECIATION"},{"$f":"'FR-16(7)(v)-1 Functional'!D578","v":"C229"},null,{"$f":"'FR-16(7)(v)-1 Functional'!G578","v":29075},{"$f":"F578-SUM(H578:I578)","v":16495},{"$f":"ROUND(F578*VLOOKUP(D578,AllocTable_Classified_Production,$H$10,FALSE),0)","v":12580},{"$f":"ROUND(F578*VLOOKUP(D578,AllocTable_Classified_Production,$I$10,FALSE),0)","v":0},{"$f":"SUM(G578:I578)","v":29075},{"$f":"F578-J578","v":0}]
[19,null,{"$f":"'FR-16(7)(v)-1 Functional'!C579","v":"  TOTAL COM & OTHER DEPREC EXP."},null,null,{"$f":"SUM(F578:F578)","v":29075},16495,12580,0,29075,0]
[20]
[21]
[22,"TOTAL DEPRECIATION EXPENSE",null,null," ",{"$f":"F579+F575+F571+F567+F563","v":41854660},39987838,1866822,0,41854660,0]
[]
[{"$f":"co_name","v":"DUKE ENERGY KENTUCKY, INC."},null,null,null,null,null,null,null,null,{"$f":"J1","v":"FR-16(7)(v)-2"}]
[{"$f":"$A$2","v":"PRODUCTION CLASSIFIED - ELECTRIC COST OF SERVICE"},null,null,null,null,null,null,null,null,{"$f":"J2","v":"WITNESS RESPONSIBLE:"}]
[{"$f":"case_name","v":"CASE NO: 2019-00271"},null,null,null,null,null,null,null,null,{"$f":"Witness","v":"JAMES E. ZIOLKOWSKI"}]
[{"$f":"data_filing","v":"DATA: 12 MONTHS ACTUAL  & 0 MONTHS ESTIMATED"},null,null,null,null,null,null,null,null,{"$f":"\"PAGE \"&Pages-7&\" OF \"&Pages","v":"PAGE 11 OF 18"}]
[{"$f":"type","v":"TYPE OF FILING: \"X\" ORIGINAL   UPDATED    REVISED  "}]
[]
[]
["LINE",null,null,null,null,{"$f":"$F$8","v":"TOTAL"},"CLASSIFIED",null,null,"TOTAL","ALL"]
["NO.","OTHER TAXES & MISC EXPENSES",null,"ALLO",null,{"$f":"$F$9","v":"PRODUCTION"},{"$f":"G9","v":"DEMAND"},"ENERGY","CUSTOMER","AT ISSUE","OTHER"]
[null,null,"Schedule 8",null,null,null,3,4,5]
[1,"TAXES OTHER THAN INC & REV"]
[2," REAL ESTATE & PROPERTY TAX"]
[3,null,{"$f":"'FR-16(7)(v)-1 Functional'!C596","v":"REAL ESTATE & PROPERTY TAX"},{"$f":"'FR-16(7)(v)-1 Functional'!D596","v":"NP29"},null,{"$f":"'FR-16(7)(v)-1 Functional'!G596","v":7781796},{"$f":"F596-SUM(H596:I596)","v":7596667},{"$f":"ROUND(F596*VLOOKUP(D596,AllocTable_Classified_Production,$H$10,FALSE),0)","v":185129},{"$f":"ROUND(F596*VLOOKUP(D596,AllocTable_Classified_Production,$I$10,FALSE),0)","v":0},{"$f":"SUM(G596:I596)","v":7781796},{"$f":"F596-J596","v":0}]
[4,null,{"$f":"'FR-16(7)(v)-1 Functional'!C597","v":"ANNUALIZE PROPERTY TAX"},{"$f":"'FR-16(7)(v)-1 Functional'!D597","v":"NP29"}," ",{"$f":"'FR-16(7)(v)-1 Functional'!G597","v":0},{"$f":"F597-SUM(H597:I597)","v":0},{"$f":"ROUND(F597*VLOOKUP(D597,AllocTable_Classified_Production,$H$10,FALSE),0)","v":0},{"$f":"ROUND(F597*VLOOKUP(D597,AllocTable_Classified_Production,$I$10,FALSE),0)","v":0},{"$f":"SUM(G597:I597)","v":0},{"$f":"F597-J597","v":0}]
[5,null,{"$f":"'FR-16(7)(v)-1 Functional'!C598","v":"  TOTAL REAL ESTATE & PROPERTY TAX"},null,null,{"$f":"SUM(F596:F597)","v":7781796},7596667,185129,0,7781796,0]
[6]
[7," MISCELLANEOUS TAXES"]
[8,null,{"$f":"'FR-16(7)(v)-1 Functional'!C601","v":"PAYROLL "},{"$f":"'FR-16(7)(v)-1 Functional'!D601","v":"A315"},null,{"$f":"'FR-16(7)(v)-1 Functional'!G601","v":1214543},{"$f":"F601-SUM(H601:I601)","v":566827},{"$f":"ROUND(F601*VLOOKUP(D601,AllocTable_Classified_Production,$H$10,FALSE),0)","v":647716},{"$f":"ROUND(F601*VLOOKUP(D601,AllocTable_Classified_Production,$I$10,FALSE),0)","v":0},{"$f":"SUM(G601:I601)","v":1214543},{"$f":"F601-J601","v":0}]
[9,null,{"$f":"'FR-16(7)(v)-1 Functional'!C602","v":"ELIMINATE DSM "},{"$f":"'FR-16(7)(v)-1 Functional'!D602","v":"A315"},null,{"$f":"'FR-16(7)(v)-1 Functional'!G602","v":-23895},{"$f":"F602-SUM(H602:I602)","v":-11152},{"$f":"ROUND(F602*VLOOKUP(D602,AllocTable_Classified_Production,$H$10,FALSE),0)","v":-12743},{"$f":"ROUND(F602*VLOOKUP(D602,AllocTable_Classified_Production,$I$10,FALSE),0)","v":0},{"$f":"SUM(G602:I602)","v":-23895},{"$f":"F602-J602","v":0}]
[10,null,{"$f":"'FR-16(7)(v)-1 Functional'!C603","v":"FRANCHISE & LICENSE"},{"$f":"'FR-16(7)(v)-1 Functional'!D603","v":"A315"},null,{"$f":"'FR-16(7)(v)-1 Functional'!G603","v":0},{"$f":"F603-SUM(H603:I603)","v":0},{"$f":"ROUND(F603*VLOOKUP(D603,AllocTable_Classified_Production,$H$10,FALSE),0)","v":0},{"$f":"ROUND(F603*VLOOKUP(D603,AllocTable_Classified_Production,$I$10,FALSE),0)","v":0},{"$f":"SUM(G603:I603)","v":0},{"$f":"F603-J603","v":0}]
[11,null,{"$f":"'FR-16(7)(v)-1 Functional'!C604","v":"ELIMINATE ESM"},{"$f":"'FR-16(7)(v)-1 Functional'!D604","v":"A315"},null,{"$f":"'FR-16(7)(v)-1 Functional'!G604","v":-646081},{"$f":"F604-SUM(H604:I604)","v":-301526},{"$f":"ROUND(F604*VLOOKUP(D604,AllocTable_Classified_Production,$H$10,FALSE),0)","v":-344555},{"$f":"ROUND(F604*VLOOKUP(D604,AllocTable_Classified_Production,$I$10,FALSE),0)","v":0},{"$f":"SUM(G604:I604)","v":-646081},{"$f":"F604-J604","v":0}]
[12,null,{"$f":"'FR-16(7)(v)-1 Functional'!C605","v":"  TOTAL MISCELLANEOUS TAXES"},null,null,{"$f":"SUM(F601:F604)","v":544567},254149,290418,0,544567,0]
[13]
[14," MISCELLANEOUS EXPENSES"]
[15,null,{"$f":"'FR-16(7)(v)-1 Functional'!C608","v":"PSC MAINT. EXP ON INCREASE"},{"$f":"'FR-16(7)(v)-1 Functional'!D608","v":"K902"},null,{"$f":"'FR-16(7)(v)-1 Functional'!G608","v":57594},{"$f":"F608-SUM(H608:I608)","v":26879},{"$f":"ROUND(F608*VLOOKUP(D608,AllocTable_Classified_Production,$H$10,FALSE),0)","v":30715},{"$f":"ROUND(F608*VLOOKUP(D608,AllocTable_Classified_Production,$I$10,FALSE),0)","v":0},{"$f":"SUM(G608:I608)","v":57594},{"$f":"F608-J608","v":0}]
[16,null,{"$f":"'FR-16(7)(v)-1 Functional'!C609","v":"RESERVED FOR FUTURE USE"},{"$f":"'FR-16(7)(v)-1 Functional'!D609","v":"K902"},null,{"$f":"'FR-16(7)(v)-1 Functional'!G609","v":0},{"$f":"F609-SUM(H609:I609)","v":0},{"$f":"ROUND(F609*VLOOKUP(D609,AllocTable_Classified_Production,$H$10,FALSE),0)","v":0},{"$f":"ROUND(F609*VLOOKUP(D609,AllocTable_Classified_Production,$I$10,FALSE),0)","v":0},{"$f":"SUM(G609:I609)","v":0},{"$f":"F609-J609","v":0}]
[17,null,{"$f":"'FR-16(7)(v)-1 Functional'!C610","v":"  TOTAL MISCELLANEOUS EXPENSES"},null,null,{"$f":"SUM(F608:F609)","v":57594},26879,30715,0,57594,0]
[18]
[19,"TOTAL OTHER TAX & MISC EXPENSE",null,null," ",{"$f":"F605+F598+F610","v":8383957},7877695,506262,0,8383957,0]
[20]
[21,"PRELIMINARY SUMMARY"]
[22,null,{"$f":"'FR-16(7)(v)-1 Functional'!C615","v":"TOTAL O&M EXPENSE"},null,null,{"$f":"F549","v":154356566},6535241,147821325,0,154356566,0]
[23,null,{"$f":"'FR-16(7)(v)-1 Functional'!C616","v":"TOTAL DEPRECIATION EXPENSE"},null,null,{"$f":"F582","v":41854660},39987838,1866822,0,41854660,0]
[24,null,{"$f":"'FR-16(7)(v)-1 Functional'!C617","v":"TOTAL OTHER TAX & MISC EXPENSE"},null,null,{"$f":"F612","v":8383957},7877695,506262,0,8383957,0]
[25,null,{"$f":"'FR-16(7)(v)-1 Functional'!C618","v":"  TOTAL OPER EXP EXCL INCOME & REV TAX"},null,null,{"$f":"SUM(F615:F617)","v":204595183},54400774,150194409,0,204595183,0]
[]
[{"$f":"co_name","v":"DUKE ENERGY KENTUCKY, INC."},null,null,null,null,null,null,null,null,{"$f":"J1","v":"FR-16(7)(v)-2"}]
[{"$f":"$A$2","v":"PRODUCTION CLASSIFIED - ELECTRIC COST OF SERVICE"},null,null,null,null,null,null,null,null,{"$f":"J2","v":"WITNESS RESPONSIBLE:"}]
[{"$f":"case_name","v":"CASE NO: 2019-00271"},null,null,null,null,null,null,null,null,{"$f":"Witness","v":"JAMES E. ZIOLKOWSKI"}]
[{"$f":"data_filing","v":"DATA: 12 MONTHS ACTUAL  & 0 MONTHS ESTIMATED"},null,null,null,null,null,null,null,null,{"$f":"\"PAGE \"&Pages-6&\" OF \"&Pages","v":"PAGE 12 OF 18"}]
[{"$f":"type","v":"TYPE OF FILING: \"X\" ORIGINAL   UPDATED    REVISED  "}]
[]
[]
["LINE",null,null,null,null,{"$f":"$F$8","v":"TOTAL"},"CLASSIFIED",null,null,"TOTAL","ALL"]
["NO.","FEDERAL INCOME TAX BASED ON RETURN",null,"ALLO",null,{"$f":"$F$9","v":"PRODUCTION"},{"$f":"$G$9","v":"DEMAND"},{"$f":"$H$9","v":"ENERGY"},{"$f":"$I$9","v":"CUSTOMER"},"AT ISSUE","OTHER"]
[null,null,"Schedule 9",null,null,null,{"$f":"G10","v":3},{"$f":"H10","v":4},{"$f":"I10","v":5}]
[1,"FEDERAL INCOME TAX DEDUCTIONS"]
[2," AUTOMATIC INTEREST CALCULATION",null,null,null," "]
[3,null,{"$f":"'FR-16(7)(v)-1 Functional'!C632","v":"AUTO PROC INTEREST DED"},{"$f":"'FR-16(7)(v)-1 Functional'!D632","v":"RB99"},null,{"$f":"'FR-16(7)(v)-1 Functional'!G632","v":11000130},{"$f":"F632-SUM(H632:I632)","v":10370923},{"$f":"ROUND(F632*VLOOKUP(D632,AllocTable_Classified_Production,$H$10,FALSE),0)","v":629207},{"$f":"ROUND(F632*VLOOKUP(D632,AllocTable_Classified_Production,$I$10,FALSE),0)","v":0},{"$f":"SUM(G632:I632)","v":11000130},{"$f":"F632-J632","v":0}]
[4,null,{"$f":"'FR-16(7)(v)-1 Functional'!C633","v":"  TOTAL INTEREST EXPENSE"},null,null,{"$f":"F632","v":11000130},10370923,629207,0,11000130,0]
[5]
[6," OTHER DEDUCTIONS"]
[7,null,{"$f":"'FR-16(7)(v)-1 Functional'!C636","v":"DEPREC EXCESS TAX-BOOK"},{"$f":"'FR-16(7)(v)-1 Functional'!D636","v":"DE49"},null,{"$f":"'FR-16(7)(v)-1 Functional'!G636","v":-9927117},{"$f":"F636-SUM(H636:I636)","v":-9484368},{"$f":"ROUND(F636*VLOOKUP(D636,AllocTable_Classified_Production,$H$10,FALSE),0)","v":-442749},{"$f":"ROUND(F636*VLOOKUP(D636,AllocTable_Classified_Production,$I$10,FALSE),0)","v":0},{"$f":"SUM(G636:I636)","v":-9927117},{"$f":"F636-J636","v":0}]
[8,null,{"$f":"'FR-16(7)(v)-1 Functional'!C637","v":"PERMANENT DIFFERENCES"},"A357",null,{"$f":"'FR-16(7)(v)-1 Functional'!G637","v":-271793.99999999965},{"$f":"F637-SUM(H637:I637)","v":-126845.99999999965},{"$f":"ROUND(F637*VLOOKUP(D637,AllocTable_Classified_Production,$H$10,FALSE),0)","v":-144948},{"$f":"ROUND(F637*VLOOKUP(D637,AllocTable_Classified_Production,$I$10,FALSE),0)","v":0},{"$f":"SUM(G637:I637)","v":-271793.99999999965},{"$f":"F637-J637","v":0}]
[9,null,{"$f":"'FR-16(7)(v)-1 Functional'!C638","v":"TEMPORARY DIFFERENCES"},{"$f":"'FR-16(7)(v)-1 Functional'!D638","v":"DE49"},null,{"$f":"'FR-16(7)(v)-1 Functional'!G638","v":60573768},{"$f":"F638-SUM(H638:I638)","v":57872178},{"$f":"ROUND(F638*VLOOKUP(D638,AllocTable_Classified_Production,$H$10,FALSE),0)","v":2701590},{"$f":"ROUND(F638*VLOOKUP(D638,AllocTable_Classified_Production,$I$10,FALSE),0)","v":0},{"$f":"SUM(G638:I638)","v":60573768},{"$f":"F638-J638","v":0}]
[10,null,{"$f":"'FR-16(7)(v)-1 Functional'!C639","v":"  TOTAL OTHER DEDUCTIONS"},null,null,{"$f":"SUM(F636:F638)","v":50374857},48260964,2113893,0,50374857,0]
[11]
[12,"NET DEDUCTIONS AND ADDITIONS",null,null,null,{"$f":"F639+F633","v":61374987},58631887,2743100,0,61374987,0]
[13]
[14," FED DEFERRED INCOME TAX (410 & 411)"]
[15,null,{"$f":"'FR-16(7)(v)-1 Functional'!C644","v":"DEFERRED INCOME TAXES - NET"},{"$f":"'FR-16(7)(v)-1 Functional'!D644","v":"OM39"},null,{"$f":"'FR-16(7)(v)-1 Functional'!G644","v":10274552},{"$f":"F644-SUM(H644:I644)","v":435025},{"$f":"ROUND(F644*VLOOKUP(D644,AllocTable_Classified_Production,$H$10,FALSE),0)","v":9839527},{"$f":"ROUND(F644*VLOOKUP(D644,AllocTable_Classified_Production,$I$10,FALSE),0)","v":0},{"$f":"SUM(G644:I644)","v":10274552},{"$f":"F644-J644","v":0}]
[16,null,{"$f":"'FR-16(7)(v)-1 Functional'!C645","v":"AMORT OF DEFERRED MERGER COST"},"A357",null,{"$f":"'FR-16(7)(v)-1 Functional'!G645","v":0},{"$f":"F645-SUM(H645:I645)","v":0},{"$f":"ROUND(F645*VLOOKUP(D645,AllocTable_Classified_Production,$H$10,FALSE),0)","v":0},{"$f":"ROUND(F645*VLOOKUP(D645,AllocTable_Classified_Production,$I$10,FALSE),0)","v":0},{"$f":"SUM(G645:I645)","v":0},{"$f":"F645-J645","v":0}]
[17,null,{"$f":"'FR-16(7)(v)-1 Functional'!C646","v":"DIT ADJUSTMENT - S/L DEPRECIATION"},{"$f":"'FR-16(7)(v)-1 Functional'!D646","v":"DE49"},null,{"$f":"'FR-16(7)(v)-1 Functional'!G646","v":0},{"$f":"F646-SUM(H646:I646)","v":0},{"$f":"ROUND(F646*VLOOKUP(D646,AllocTable_Classified_Production,$H$10,FALSE),0)","v":0},{"$f":"ROUND(F646*VLOOKUP(D646,AllocTable_Classified_Production,$I$10,FALSE),0)","v":0},{"$f":"SUM(G646:I646)","v":0},{"$f":"F646-J646","v":0}]
[18,null,{"$f":"'FR-16(7)(v)-1 Functional'!C647","v":"DIT ADJUSTMENT - ARAM"},{"$f":"'FR-16(7)(v)-1 Functional'!D647","v":"K201"},null,{"$f":"'FR-16(7)(v)-1 Functional'!G647","v":-107523},{"$f":"F647-SUM(H647:I647)","v":-107523},{"$f":"ROUND(F647*VLOOKUP(D647,AllocTable_Classified_Production,$H$10,FALSE),0)","v":0},{"$f":"ROUND(F647*VLOOKUP(D647,AllocTable_Classified_Production,$I$10,FALSE),0)","v":0},{"$f":"SUM(G647:I647)","v":-107523},{"$f":"F647-J647","v":0}]
[19,null,{"$f":"'FR-16(7)(v)-1 Functional'!C648","v":"DIT ADJUSTMENT - AMORT OF EXCESS DEF TAXES"},"A357",null,{"$f":"'FR-16(7)(v)-1 Functional'!G648","v":-2383403},{"$f":"F648-SUM(H648:I648)","v":-1112334},{"$f":"ROUND(F648*VLOOKUP(D648,AllocTable_Classified_Production,$H$10,FALSE),0)","v":-1271069},{"$f":"ROUND(F648*VLOOKUP(D648,AllocTable_Classified_Production,$I$10,FALSE),0)","v":0},{"$f":"SUM(G648:I648)","v":-2383403},{"$f":"F648-J648","v":0}]
[20,null,{"$f":"'FR-16(7)(v)-1 Functional'!C649","v":"  TOTAL FED DEF IT (410 & 411)"},null,null,{"$f":"SUM(F644:F648)","v":7783626},-784832,8568458,0,7783626,0]
[21]
[22," AMORT INV TAX CREDIT"]
[23,null,{"$f":"'FR-16(7)(v)-1 Functional'!C652","v":"AMORTIZE ITC"},{"$f":"'FR-16(7)(v)-1 Functional'!D652","v":"NP29"},null,{"$f":"'FR-16(7)(v)-1 Functional'!G652","v":244},{"$f":"F652-SUM(H652:I652)","v":238},{"$f":"ROUND(F652*VLOOKUP(D652,AllocTable_Classified_Production,$H$10,FALSE),0)","v":6},{"$f":"ROUND(F652*VLOOKUP(D652,AllocTable_Classified_Production,$I$10,FALSE),0)","v":0},{"$f":"SUM(G652:I652)","v":244},{"$f":"F652-J652","v":0}]
[24,null,{"$f":"'FR-16(7)(v)-1 Functional'!C653","v":"  TOTAL AMORTIZED ITC"},null,null,{"$f":"SUM(F652:F652)","v":244},238,6,0,244,0]
[25]
[26," OTHER FEDERAL TAX CREDITS"]
[27,null,{"$f":"'FR-16(7)(v)-1 Functional'!C656","v":"FUEL TAX CREDIT"},{"$f":"'FR-16(7)(v)-1 Functional'!D656","v":"K301"},null,{"$f":"'FR-16(7)(v)-1 Functional'!G656","v":0},{"$f":"ROUND(F656*VLOOKUP(D656,AllocTable_Classified_Production,$G$10,FALSE),0)","v":0},{"$f":"ROUND(F656*VLOOKUP(D656,AllocTable_Classified_Production,$H$10,FALSE),0)","v":0},{"$f":"ROUND(F656*VLOOKUP(D656,AllocTable_Classified_Production,$I$10,FALSE),0)","v":0},{"$f":"SUM(G656:I656)","v":0},{"$f":"F656-J656","v":0}]
[28,null,{"$f":"'FR-16(7)(v)-1 Functional'!C657","v":"R&D CREDIT - SECTION 41"},{"$f":"'FR-16(7)(v)-1 Functional'!D657","v":"A315"},null,{"$f":"'FR-16(7)(v)-1 Functional'!G657","v":0},{"$f":"ROUND(F657*VLOOKUP(D657,AllocTable_Classified_Production,$G$10,FALSE),0)","v":0},{"$f":"ROUND(F657*VLOOKUP(D657,AllocTable_Classified_Production,$H$10,FALSE),0)","v":0},{"$f":"ROUND(F657*VLOOKUP(D657,AllocTable_Classified_Production,$I$10,FALSE),0)","v":0},{"$f":"SUM(G657:I657)","v":0},{"$f":"F657-J657","v":0}]
[29,null,"  TOTAL OTHER FEDERAL TAX CREDITS",null,null,{"$f":"SUM(F656:F657)","v":0},0,0,0,0,0]
[30]
[31,"PRELIMINARY SUMMARY"]
[32,null,{"$f":"'FR-16(7)(v)-1 Functional'!C661","v":"TOTAL FED DEF IT (410 & 411)"},null,null,{"$f":"F649","v":7783626},-784832,8568458,0,7783626,0]
[33,null,{"$f":"'FR-16(7)(v)-1 Functional'!C662","v":"TOTAL AMORTIZED ITC & OTHER FEDERAL TAX CREDITS"},null,null,{"$f":"-F653-F658","v":-244},-238,-6,0,-244,0]
[34,null,{"$f":"'FR-16(7)(v)-1 Functional'!C663","v":"  TOTAL FEDERAL TAX ADJUSTMENTS"},null,null,{"$f":"SUM(F661:F662)","v":7783382},-785070,8568452,0,7783382,0]
[35]
[36,"FEDERAL INCOME TAX COMPUTATION"]
[37,null,"RETURN ON RATE BASE",null,null,{"$f":"F433","v":37212475},{"$f":"G433","v":35083921},{"$f":"H433","v":2128554},{"$f":"I433","v":0},{"$f":"J433","v":37212475},{"$f":"F666-J666","v":0}]
[38,null,{"$f":"'FR-16(7)(v)-1 Functional'!C667","v":"NET DEDUCTIONS AND ADDITIONS"},null,null,{"$f":"-F641","v":-61374987},{"$f":"-G641","v":-58631887},{"$f":"-H641","v":-2743100},{"$f":"-I641","v":0},{"$f":"-J641","v":-61374987},{"$f":"F667-J667","v":0}]
[39,null,{"$f":"'FR-16(7)(v)-1 Functional'!C668","v":"TOTAL FEDERAL TAX ADJUSTMENTS"},null,null,{"$f":"F663","v":7783382},{"$f":"G663","v":-785070},{"$f":"H663","v":8568452},{"$f":"I663","v":0},{"$f":"J663","v":7783382},{"$f":"F668-J668","v":0}]
[40,null,"TOTAL STATE PROV DEF IT (410 & 411)",null,null,{"$f":"F707","v":2365129},{"$f":"G707","v":1103806},{"$f":"H707","v":1261323},{"$f":"I707","v":0},{"$f":"J707","v":2365129},{"$f":"F669-J669","v":0}]
[41,null,"RESERVED",null,null,{"$f":"F24","v":0},{"$f":"G24","v":0},{"$f":"H24","v":0},{"$f":"I24","v":0},{"$f":"J24","v":0},{"$f":"F670-J670","v":0}]
[42,null,{"$f":"'FR-16(7)(v)-1 Functional'!C671","v":"  BASE FOR FIT COMPUATION"},null,null,{"$f":"SUM(F666:F670)","v":-14014001},-23229230,9215229,0,-14014001,0]
[43]
[44,null,{"$f":"'FR-16(7)(v)-1 Functional'!C673","v":"FIT FACTOR K190/(1-K190)"},null,null,{"$f":"ROUND(FIT/(1-FIT),9)","v":0.26582278500000001},{"$f":"ROUND(FIT/(1-FIT),9)","v":0.26582278500000001},{"$f":"ROUND(FIT/(1-FIT),9)","v":0.26582278500000001},{"$f":"ROUND(FIT/(1-FIT),9)","v":0.26582278500000001},null,{"$f":"ROUND(FIT/(1-FIT),9)","v":0.26582278500000001}]
[45,null,{"$f":"'FR-16(7)(v)-1 Functional'!C674","v":"PRELIM FED INCOME TAX"},null,null,{"$f":"ROUND(F673*F671,0)","v":-3725241},{"$f":"ROUND(G671*G673,0)","v":-6174859},{"$f":"ROUND(H671*H673,0)","v":2449618},{"$f":"ROUND(I671*I673,0)","v":0},{"$f":"SUM(G674:I674)","v":-3725241},{"$f":"F674-J674","v":0}]
[46,null,{"$f":"'FR-16(7)(v)-1 Functional'!C675","v":"TOTAL FEDERAL TAX ADJUSTMENTS"},null,null,{"$f":"F663","v":7783382},{"$f":"G663","v":-785070},{"$f":"H663","v":8568452},{"$f":"I663","v":0},{"$f":"J663","v":7783382},{"$f":"F675-J675","v":0}]
[47,null,{"$f":"'FR-16(7)(v)-1 Functional'!C676","v":"  NET FED INCOME TAX ALLOWABLE"},null,null,{"$f":"SUM(F674:F675)","v":4058141},-6959929,11018070,0,4058141,0]
[48]
[49,"INCOME TAX BASED ON RETURN"]
[50,"FEDERAL INCOME TAX PAYABLE"]
[51,null,{"$f":"'FR-16(7)(v)-1 Functional'!C680","v":"PRELIM FEDERAL INCOME TAX"},null,null,{"$f":"F674","v":-3725241},-6174859,2449618,0,-3725241,0]
[53,null,{"$f":"'FR-16(7)(v)-1 Functional'!C681","v":"  NET FED INCOME TAX PAYABLE"},null,null,{"$f":"SUM(F680:F680)","v":-3725241},-6174859,2449618,0,-3725241,0]
[]
[{"$f":"co_name","v":"DUKE ENERGY KENTUCKY, INC."},null,null,null,null,null,null,null,null,{"$f":"J1","v":"FR-16(7)(v)-2"}]
[{"$f":"$A$2","v":"PRODUCTION CLASSIFIED - ELECTRIC COST OF SERVICE"},null,null,null,null,null,null,null,null,{"$f":"J2","v":"WITNESS RESPONSIBLE:"}]
[{"$f":"case_name","v":"CASE NO: 2019-00271"},null,null,null,null,null,null,null,null,{"$f":"Witness","v":"JAMES E. ZIOLKOWSKI"}]
[{"$f":"data_filing","v":"DATA: 12 MONTHS ACTUAL  & 0 MONTHS ESTIMATED"},null,null,null,null,null,null,null,null,{"$f":"\"PAGE \"&Pages-5&\" OF \"&Pages","v":"PAGE 13 OF 18"}]
[{"$f":"type","v":"TYPE OF FILING: \"X\" ORIGINAL   UPDATED    REVISED  "}]
[]
[]
["LINE",null,null,null,null,"TOTAL","CLASSIFIED",null,null,"TOTAL","ALL"]
["NO.","STATE INCOME TAX BASED ON RETURN",null,"Allo",null,"GAS",{"$f":"$G$9","v":"DEMAND"},{"$f":"$H$9","v":"ENERGY"},{"$f":"$I$9","v":"CUSTOMER"},"AT ISSUE","OTHER"]
[null,null,"Schedule 9.1",null,null,null,{"$f":"$G$10","v":3},{"$f":"$H$10","v":4},{"$f":"$I$10","v":5}]
[1,"DEDUCTIONS IN ADDITION TO Y871"]
[2,"KY TAXABLE INCOME ADJUSTMENT",null,{"$f":"'FR-16(7)(v)-1 Functional'!D694","v":"NP29"},null,{"$f":"'FR-16(7)(v)-1 Functional'!G694","v":4879369},{"$f":"ROUND(F694*VLOOKUP(D694,AllocTable_Classified_Production,$G$10,FALSE),0)","v":4763289},{"$f":"ROUND(F694*VLOOKUP(D694,AllocTable_Classified_Production,$H$10,FALSE),0)","v":116080},{"$f":"ROUND(F694*VLOOKUP(D694,AllocTable_Classified_Production,$I$10,FALSE),0)","v":0},{"$f":"SUM(G694:I694)","v":4879369},{"$f":"F694-J694","v":0}]
[3,"RESERVED FOR FUTURE USE",null,{"$f":"'FR-16(7)(v)-1 Functional'!D695","v":"NP29"},null,{"$f":"'FR-16(7)(v)-1 Functional'!G695","v":0},{"$f":"ROUND(F695*VLOOKUP(D695,AllocTable_Classified_Production,$G$10,FALSE),0)","v":0},{"$f":"ROUND(F695*VLOOKUP(D695,AllocTable_Classified_Production,$H$10,FALSE),0)","v":0},{"$f":"ROUND(F695*VLOOKUP(D695,AllocTable_Classified_Production,$I$10,FALSE),0)","v":0},{"$f":"SUM(G695:I695)","v":0},{"$f":"F695-J695","v":0}]
[4,"  DEDUCTIONS IN ADD TO Y871",null,null,null,{"$f":"SUM(F694:F695)","v":4879369},4763289,116080,0,4879369,0]
[5]
[6,"STATE INCOME TAX ADJUSTMENTS"]
[7,"STATE PROV DEF INC TAX (410 & 411)"]
[8,"OTHER DEFERRED INCOME TAXES - NET",null,"A357",null,{"$f":"'FR-16(7)(v)-1 Functional'!G700","v":2365129},{"$f":"F700-SUM(H700:I700)","v":1103806},{"$f":"ROUND(F700*VLOOKUP(D700,AllocTable_Classified_Production,$H$10,FALSE),0)","v":1261323},{"$f":"ROUND(F700*VLOOKUP(D700,AllocTable_Classified_Production,$I$10,FALSE),0)","v":0},{"$f":"SUM(G700:I700)","v":2365129},{"$f":"F700-J700","v":0}]
[9,"  TOT STATE PROV DEF IT (410 & 411)",null,null,null,{"$f":"SUM(F700)","v":2365129},1103806,1261323,0,2365129,0]
[10]
[11,"OTHER SIT ADJUSTMENTS"]
[12,"CURRENT YEAR PAYABLE ADJUSTMENT",null,{"$f":"'FR-16(7)(v)-1 Functional'!D704","v":"NP29"},null,{"$f":"'FR-16(7)(v)-1 Functional'!G704","v":0},{"$f":"ROUND(F704*VLOOKUP(D704,AllocTable_Classified_Production,$G$10,FALSE),0)","v":0},{"$f":"ROUND(F704*VLOOKUP(D704,AllocTable_Classified_Production,$H$10,FALSE),0)","v":0},{"$f":"ROUND(F704*VLOOKUP(D704,AllocTable_Classified_Production,$I$10,FALSE),0)","v":0},{"$f":"SUM(G704:I704)","v":0},{"$f":"F704-J704","v":0}]
[13,"  OTHER SIT ADJUSMENTS",null,null,null,{"$f":"SUM(F704)","v":0},0,0,0,0,0]
[14]
[15,"TOTAL STATE INC TAX ADJUSTMENT",null,null,null,{"$f":"F705+F701","v":2365129},1103806,1261323,0,2365129,0]
[16]
[17,"INCOME TAX BASED ON RETURN"]
[18,"SUMMARY OF SIT CALCULATION"]
[19,"RETURN ON RATE BASE",null,null,null,{"$f":"F433","v":37212475},35083921,2128554,0,37212475,0]
[20,"NET FED INCOME TAX ALLOWABLE",null,null,null,{"$f":"F676","v":4058141},-6959929,11018070,0,4058141,0]
[21,"NET FED. DED. AND ADDITIONS",null,null,null,{"$f":"-F641","v":-61374987},-58631887,-2743100,0,-61374987,0]
[22,"DEDUCTIONS IN ADD TO Y871",null,null,null,{"$f":"-F696","v":-4879369},-4763289,-116080,0,-4879369,0]
[23,"RESERVED",null,null,null,{"$f":"F24","v":0},0,0,0,0,0]
[24,"TOTAL STATE INC TAX ADJ",null,null,null,{"$f":"F707","v":2365129},1103806,1261323,0,2365129,0]
[25,"  BASE FOR SIT COMPUTATION",null,null,null,{"$f":"SUM(F711:F716)","v":-22618611},-34167378,11548767,0,-22618611,0]
[26]
[27,"SIT FACTOR K192/(1-K192)",null,null,null,{"$f":"ROUND(SIT/(1-SIT),8)","v":5.2282660000000002E-2},{"$f":"ROUND(SIT/(1-SIT),8)","v":5.2282660000000002E-2},{"$f":"ROUND(SIT/(1-SIT),8)","v":5.2282660000000002E-2},{"$f":"ROUND(SIT/(1-SIT),8)","v":5.2282660000000002E-2},null,{"$f":"ROUND(SIT/(1-SIT),8)","v":5.2282660000000002E-2}]
[28,"PRELIMINARY STATE INCOME TAX",null,null,null,{"$f":"ROUND(F717*F719,0)","v":-1182561},{"$f":"ROUND(G717*G719,0)","v":-1786361},{"$f":"ROUND(H717*H719,0)","v":603800},{"$f":"ROUND(I717*I719,0)","v":0},{"$f":"SUM(G720:I720)","v":-1182561},{"$f":"F720-J720","v":0}]
[29,"TOTAL STATE INCOME TAX ADJ.",null,null,null,{"$f":"F707","v":2365129},1103806,1261323,0,2365129,0]
[30,"  NET STATE INC TAX ALLOWABLE",null,null,null,{"$f":"F721+F720","v":1182568},-682555,1865123,0,1182568,0]
[31]
[32,"STATE INCOME TAX PAYABLE"]
[33,"PRELIMINARY STATE INCOME TAX",null,null,null,{"$f":"F720","v":-1182561},-1786361,603800,0,-1182561,0]
[34,"OTHER SIT ADJUSTMENTS",null,null,null,{"$f":"F705","v":0},0,0,0,0,0]
[35,"  NET STATE INCOME TAX PAYABLE",null,null,null,{"$f":"F725+F726","v":-1182561},-1786361,603800,0,-1182561,0]
[36]
[37,"COMPOSITE TAX RATE",null,null,null,{"$f":"(SIT*(1-FIT))+((1-SIT)*(1-FIT)*RevTax)+FIT","v":0.24925115},0.24925115,0.24925115,0.24925115,0.24925115,0.24925115]
[]
[{"$f":"co_name","v":"DUKE ENERGY KENTUCKY, INC."},null,null,null,null,null,null,null,null,{"$f":"J1","v":"FR-16(7)(v)-2"}]
[{"$f":"$A$2","v":"PRODUCTION CLASSIFIED - ELECTRIC COST OF SERVICE"},null,null,null,null,null,null,null,null,{"$f":"J2","v":"WITNESS RESPONSIBLE:"}]
[{"$f":"case_name","v":"CASE NO: 2019-00271"},null,null,null,null,null,null,null,null,{"$f":"Witness","v":"JAMES E. ZIOLKOWSKI"}]
[{"$f":"data_filing","v":"DATA: 12 MONTHS ACTUAL  & 0 MONTHS ESTIMATED"},null,null,null,null,null,null,null,null,{"$f":"\"PAGE \"&Pages-4&\" OF \"&Pages","v":"PAGE 14 OF 18"}]
[{"$f":"type","v":"TYPE OF FILING: \"X\" ORIGINAL   UPDATED    REVISED  "}]
[]
[]
["LINE",null,null,null,null,{"$f":"$F$8","v":"TOTAL"},"CLASSIFIED",null,null,"TOTAL","ALL"]
["NO.","COST OF SERVICE COMPUTATION",null,"ALLO",null,{"$f":"$F$9","v":"PRODUCTION"},{"$f":"G9","v":"DEMAND"},"ENERGY","CUSTOMER","AT ISSUE","OTHER"]
[null,null,"Schedule 10",null,null,null,3,4,5]
[1,"OTHER OPERATING REVENUES"]
[2,null,{"$f":"'FR-16(7)(v)-1 Functional'!C742","v":"MISC SERVICE REVENUE"},{"$f":"'FR-16(7)(v)-1 Functional'!D742","v":"D249"},null,{"$f":"'FR-16(7)(v)-1 Functional'!G742","v":0},{"$f":"ROUND(F742*VLOOKUP(D742,AllocTable_Classified_Production,$G$10,FALSE),0)","v":0},{"$f":"ROUND(F742*VLOOKUP(D742,AllocTable_Classified_Production,$H$10,FALSE),0)","v":0},{"$f":"ROUND(F742*VLOOKUP(D742,AllocTable_Classified_Production,$I$10,FALSE),0)","v":0},{"$f":"SUM(G742:I742)","v":0},{"$f":"F742-J742","v":0}]
[3,null,{"$f":"'FR-16(7)(v)-1 Functional'!C743","v":"INTERDEPARTMENTAL"},{"$f":"'FR-16(7)(v)-1 Functional'!D743","v":"K902"},null,{"$f":"'FR-16(7)(v)-1 Functional'!G743","v":0},0,0,0,0,{"$f":"F743-J743","v":0}]
[4,null,{"$f":"'FR-16(7)(v)-1 Functional'!C744","v":"POLE & LINE ATTACHMENTS"},{"$f":"'FR-16(7)(v)-1 Functional'!D744","v":"D249"},null,{"$f":"'FR-16(7)(v)-1 Functional'!G744","v":0},0,0,0,0,0]
[5,null,{"$f":"'FR-16(7)(v)-1 Functional'!C745","v":"RENTS"},{"$f":"'FR-16(7)(v)-1 Functional'!D745","v":"D249"},null,{"$f":"'FR-16(7)(v)-1 Functional'!G745","v":0},0,0,0,0,0]
[6,null,{"$f":"'FR-16(7)(v)-1 Functional'!C746","v":"TRANSMISSION CHARGE PTP"},{"$f":"'FR-16(7)(v)-1 Functional'!D746","v":"T229"},null,{"$f":"'FR-16(7)(v)-1 Functional'!G746","v":0},0,0,0,0,{"$f":"F746-J746","v":0}]
[7,null,{"$f":"'FR-16(7)(v)-1 Functional'!C747","v":"PJM REACTIVE REVENUE"},{"$f":"'FR-16(7)(v)-1 Functional'!D747","v":"K401"},null,{"$f":"'FR-16(7)(v)-1 Functional'!G747","v":0},0,0,0,0,{"$f":"F747-J747","v":0}]
[8,null,{"$f":"'FR-16(7)(v)-1 Functional'!C748","v":"OTHER TRANSMISSION REVENUES"},{"$f":"'FR-16(7)(v)-1 Functional'!D748","v":"T229"},null,{"$f":"'FR-16(7)(v)-1 Functional'!G748","v":0},0,0,0,0,{"$f":"F748-J748","v":0}]
[9,null,{"$f":"'FR-16(7)(v)-1 Functional'!C749","v":"FIXED BILL PREMIUM"},{"$f":"'FR-16(7)(v)-1 Functional'!D749","v":"K902"},null,{"$f":"'FR-16(7)(v)-1 Functional'!G749","v":0},0,0,0,0,0]
[10,null,{"$f":"'FR-16(7)(v)-1 Functional'!C750","v":"  TOTAL OTHER OPERATING REVS"},null,null,{"$f":"SUM(F742:F749)","v":0},0,0,0,0,0]
[11]
[12,"COST OF SERVICE COMPUTATION"]
[13,null,{"$f":"'FR-16(7)(v)-1 Functional'!C753","v":"TOTAL OP EXP EXC INC & REV TAX"},null,null,{"$f":"F618","v":204595183},{"$f":"G618","v":54400774},{"$f":"H618","v":150194409},{"$f":"I618","v":0},{"$f":"J618","v":204595183},{"$f":"F753-J753","v":0}]
[14,null,"RETURN ON RATE BASE",null,null,{"$f":"F433","v":37212475},{"$f":"G433","v":35083921},{"$f":"H433","v":2128554},{"$f":"I433","v":0},{"$f":"J433","v":37212475},{"$f":"F754-J754","v":0}]
[15,null,{"$f":"'FR-16(7)(v)-1 Functional'!C755","v":"NET FED INCOME TAX ALLOWABLE"},null,null,{"$f":"F676","v":4058141},{"$f":"G676","v":-6959929},{"$f":"H676","v":11018070},{"$f":"I676","v":0},{"$f":"J676","v":4058141},{"$f":"F755-J755","v":0}]
[16,null,{"$f":"'FR-16(7)(v)-1 Functional'!C756","v":"NET STATE INCOME TAX ALLOWABLE"},null,null,{"$f":"F722","v":1182568},{"$f":"G722","v":-682555},{"$f":"H722","v":1865123},{"$f":"I722","v":0},{"$f":"J722","v":1182568},{"$f":"F756-J756","v":0}]
[17,null,{"$f":"'FR-16(7)(v)-1 Functional'!C757","v":"TOTAL OTHER OPERATING REVENUES"},null,null,{"$f":"-F750","v":0},{"$f":"-G750","v":0},{"$f":"-H750","v":0},{"$f":"-I750","v":0},{"$f":"-J750","v":0},{"$f":"F757-J757","v":0}]
[18,null,{"$f":"'FR-16(7)(v)-1 Functional'!C758","v":"  SUBTOTAL B"},null,null,{"$f":"SUM(F752:F757)","v":247048367},{"$f":"SUM(G752:G757)","v":81842211},{"$f":"SUM(H752:H757)","v":165206156},{"$f":"SUM(I752:I757)","v":0},{"$f":"SUM(J752:J757)","v":247048367},{"$f":"J758-F758","v":0}]
[19]
[20,null,{"$f":"'FR-16(7)(v)-1 Functional'!C760","v":"TOTAL OTHER OPERATING REVENUES"},null,null,{"$f":"-F757","v":0},{"$f":"-G757","v":0},{"$f":"-H757","v":0},{"$f":"-I757","v":0},{"$f":"-J757","v":0},{"$f":"F760-J760","v":0}]
[21,null,{"$f":"'FR-16(7)(v)-1 Functional'!C761","v":"LESS: REVS EXCL FROM REV TAX CALC"},null,null,{"$f":"'FR-16(7)(v)-4 PROD Energy'!F989","v":0},{"$f":"G989","v":0},{"$f":"H989","v":0},{"$f":"I989","v":0},{"$f":"SUM(G761:I761)","v":0},{"$f":"F761-J761","v":0}]
[22,null,{"$f":"'FR-16(7)(v)-1 Functional'!C762","v":"OTHER OPERATING REVS TO BE TAXED"},null,null,{"$f":"F760-F761","v":0},0,0,0,0,0]
[23]
[24,null,{"$f":"'FR-16(7)(v)-1 Functional'!C764","v":"REVENUE TAX FACTOR"},null,null,{"$f":"ROUND(F817/(1-F817),8)","v":0},0,0,0,0,0]
[25,null,{"$f":"'FR-16(7)(v)-1 Functional'!C765","v":"REVENUE TAX ON OTHER OPER. REVS"},null,null,{"$f":"ROUND(F764*F762,0)","v":0},{"$f":"ROUND(G764*G762,0)","v":0},{"$f":"ROUND(H764*H762,0)","v":0},{"$f":"ROUND(I764*I762,0)","v":0},{"$f":"SUM(G765:I765)","v":0},{"$f":"F765-J765","v":0}]
[26,null,{"$f":"'FR-16(7)(v)-1 Functional'!C766","v":"REVENUE TAX ON COST OF SERVICE"},null,null,{"$f":"ROUND(F764*F758,0)","v":0},{"$f":"ROUND(G764*G758,0)","v":0},{"$f":"ROUND(H764*H758,0)","v":0},{"$f":"ROUND(I764*I758,0)","v":0},{"$f":"SUM(G766:I766)","v":0},{"$f":"F766-J766","v":0}]
[27,null,{"$f":"'FR-16(7)(v)-1 Functional'!C767","v":"TOTAL REVENUE TAX"},null,null,{"$f":"F766+F765","v":0},0,0,0,0,0]
[28]
[29,null,"RESERVED",null,null,{"$f":"F24","v":0},{"$f":"G24","v":0},{"$f":"H24","v":0},{"$f":"I24","v":0},{"$f":"J24","v":0},{"$f":"F769-J769","v":0}]
[30,null,{"$f":"'FR-16(7)(v)-1 Functional'!C770","v":"  TOTAL ELECTRIC COST OF SERVICE"},null,null,{"$f":"F769+F767+F758","v":247048367},81842211,165206156,0,247048367,0]
[31]
[32,"PROPOSED REVENUES",null,null,null,{"$f":"F868","v":229117410},{"$f":"G868","v":106929095},{"$f":"H868","v":122188315},{"$f":"I868","v":0},{"$f":"SUM(G772:I772)","v":229117410},{"$f":"F772-J772","v":0}]
[33,"TOTAL ELECTRIC COST OF SERVICE",null,null,null,{"$f":"-F770","v":-247048367},{"$f":"-G770","v":-81842211},{"$f":"-H770","v":-165206156},{"$f":"-I770","v":0},{"$f":"SUM(G773:I773)","v":-247048367},{"$f":"F773-J773","v":0}]
[34,"EXCESS REVENUES",null,null,null,{"$f":"F773+F772","v":-17930957},{"$f":"G773+G772","v":25086884},{"$f":"H773+H772","v":-43017841},{"$f":"I773+I772","v":0},{"$f":"SUM(G774:I774)","v":-17930957},{"$f":"F774-J774","v":0}]
[35,"COMPOSITE TAX RATE",null,null,null,{"$f":"F729","v":0.24925115},0.24925115,0.24925115,0.24925115,0.24925115,0.24925115]
[36,"EXCESS TAX",null,null,null,{"$f":"ROUND(F775*F774,0)","v":-4469312},{"$f":"F776-SUM(H776:I776)","v":6252934},{"$f":"ROUND(H775*H774,0)","v":-10722246},{"$f":"ROUND(I775*I774,0)","v":0},{"$f":"SUM(G776:I776)","v":-4469312},{"$f":"F776-J776","v":0}]
[37,"EXCESS RETURN",null,null,null,{"$f":"F774-F776","v":-13461645},{"$f":"F777-SUM(H777:I777)","v":18833950},{"$f":"H774-H776","v":-32295595},{"$f":"I774-I776","v":0},{"$f":"SUM(G777:I777)","v":-13461645},{"$f":"F777-J777","v":0}]
[]
[{"$f":"co_name","v":"DUKE ENERGY KENTUCKY, INC."},null,null,null,null,null,null,null,null,{"$f":"J1","v":"FR-16(7)(v)-2"}]
[{"$f":"$A$2","v":"PRODUCTION CLASSIFIED - ELECTRIC COST OF SERVICE"},null,null,null,null,null,null,null,null,{"$f":"J2","v":"WITNESS RESPONSIBLE:"}]
[{"$f":"case_name","v":"CASE NO: 2019-00271"},null,null,null,null,null,null,null,null,{"$f":"Witness","v":"JAMES E. ZIOLKOWSKI"}]
[{"$f":"data_filing","v":"DATA: 12 MONTHS ACTUAL  & 0 MONTHS ESTIMATED"},null,null,null,null,null,null,null,null,{"$f":"\"PAGE \"&Pages-3&\" OF \"&Pages","v":"PAGE 15 OF 18"}]
[{"$f":"type","v":"TYPE OF FILING: \"X\" ORIGINAL   UPDATED    REVISED  "}]
[]
[]
["LINE",null,null,null,null,{"$f":"$F$8","v":"TOTAL"},"CLASSIFIED",null,null,"TOTAL","ALL"]
["NO.","ROR, TAX RATES & SPEC FACTORS",null,"ALLO",null,{"$f":"$F$9","v":"PRODUCTION"},{"$f":"G9","v":"DEMAND"},"ENERGY","CUSTOMER","AT ISSUE","OTHER"]
[null,null,"Schedule 11",null,null,null,3,4,5]
[1,"RATE OF RETURN"]
[2," CAPITALIZATION AMOUNTS",null,null,null,null,"RATIO"]
[3,null,{"$f":"'FR-16(7)(v)-1 Functional'!C791","v":"LONG TERM DEBT"},null,null,{"$f":"'FR-16(7)(v)-1 Functional'!$F$791","v":665948506},{"$f":"IF(TotalCap=0,0,ROUND(F791/TotalCap,4))","v":0.45929999999999999}]
[4,null,{"$f":"'FR-16(7)(v)-1 Functional'!C792","v":"PREFERRED STOCK"},null,null,{"$f":"'FR-16(7)(v)-1 Functional'!$F$792","v":0},{"$f":"IF(TotalCap=0,0,ROUND(F792/TotalCap,4))","v":0}]
[5,null,{"$f":"'FR-16(7)(v)-1 Functional'!C793","v":"COMMON STOCK"},null,null,{"$f":"[0]!Equity","v":699348680},{"$f":"1-G791-G792-G794-G795","v":0.48239999999999994}]
[6,null,{"$f":"'FR-16(7)(v)-1 Functional'!C794","v":"SHORT TERM DEBT"},null,null,{"$f":"'FR-16(7)(v)-1 Functional'!$F$794","v":84600060},{"$f":"IF(TotalCap=0,0,ROUND(F794/TotalCap,4))","v":5.8299999999999998E-2}]
[7,null,{"$f":"'FR-16(7)(v)-1 Functional'!C795","v":"UNAMORTIZED DISCOUNT"},null,null,{"$f":"'FR-16(7)(v)-1 Functional'!$F$795","v":0},{"$f":"IF(TotalCap=0,0,ROUND(F795/TotalCap,4))","v":0}]
[8,null,{"$f":"'FR-16(7)(v)-1 Functional'!C796","v":"  TOTAL"},null,null,{"$f":"SUM(F790:F795)","v":1449897246},{"$f":"SUM(G791:G795)","v":1}]
[9]
[10," COST OF CAPITAL"]
[11,null,{"$f":"'FR-16(7)(v)-1 Functional'!C799","v":"LONG TERM DEBT"},null,null,{"$f":"'FR-16(7)(v)-1 Functional'!$F$799","v":4.0730000000000002E-2}]
[12,null,{"$f":"'FR-16(7)(v)-1 Functional'!C800","v":"PREFERRED STOCK"},null,null,{"$f":"'FR-16(7)(v)-1 Functional'!$F$800","v":0}]
[13,null,{"$f":"'FR-16(7)(v)-1 Functional'!C801","v":"COMMON STOCK"},null,null,{"$f":"'FR-16(7)(v)-1 Functional'!$F$801","v":9.8000000000000004E-2}]
[14,null,{"$f":"'FR-16(7)(v)-1 Functional'!C802","v":"SHORT TERM DEBT"},null,null,{"$f":"'FR-16(7)(v)-1 Functional'!$F$802","v":1.9369999999999998E-2}]
[15,null,{"$f":"'FR-16(7)(v)-1 Functional'!C803","v":"UNAMORTIZED DISCOUNT"},null,null,{"$f":"'FR-16(7)(v)-1 Functional'!$F$803","v":0}]
[16]
[17," WEIGHTED COST OF CAPITAL"]
[18,null,{"$f":"'FR-16(7)(v)-1 Functional'!C806","v":"LONG TERM DEBT"},null,null,{"$f":"'FR-16(7)(v)-1 Functional'!F806","v":1.8710000000000001E-2}]
[19,null,{"$f":"'FR-16(7)(v)-1 Functional'!C807","v":"PREFERRED STOCK"},null,null,{"$f":"'FR-16(7)(v)-1 Functional'!F807","v":0}]
[20,null,{"$f":"'FR-16(7)(v)-1 Functional'!C808","v":"COMMON STOCK"},null,null,{"$f":"'FR-16(7)(v)-1 Functional'!F808","v":4.727E-2}]
[21,null,{"$f":"'FR-16(7)(v)-1 Functional'!C809","v":"SHORT TERM DEBT"},null,null,{"$f":"'FR-16(7)(v)-1 Functional'!F809","v":1.1299999999999999E-3}]
[22,null,{"$f":"'FR-16(7)(v)-1 Functional'!C810","v":"UNAMORTIZED DISCOUNT"},null,null,{"$f":"'FR-16(7)(v)-1 Functional'!F810","v":0}]
[23,null,{"$f":"'FR-16(7)(v)-1 Functional'!C811","v":"  TOT RATE OF RETURN ALLOWABLE"},null,null,{"$f":"SUM(F806:F810)","v":6.7110000000000003E-2}]
[24]
[25,"TAX RATES AND SPECIAL FACTORS"]
[26,null,{"$f":"'FR-16(7)(v)-1 Functional'!C814","v":"SHORT TERM DEBT COST"},null,null,0,{"$f":"F814","v":0},{"$f":"F814","v":0},{"$f":"F814","v":0},{"$f":"F814","v":0},{"$f":"F814","v":0}]
[27,null,{"$f":"'FR-16(7)(v)-1 Functional'!C815","v":"FEDERAL INCOME TAX RATE"},null,null,{"$f":"FIT","v":0.21},0.21,0.21,0.21,0.21,0.21]
[28,null,{"$f":"'FR-16(7)(v)-1 Functional'!C816","v":"STATE INCOME TAX RATE"},null,null,{"$f":"SIT","v":4.9685000000000007E-2},4.9685000000000007E-2,4.9685000000000007E-2,4.9685000000000007E-2,4.9685000000000007E-2,4.9685000000000007E-2]
[29,null,{"$f":"'FR-16(7)(v)-1 Functional'!C817","v":"REVENUE TAX RATE"},null,null,0,{"$f":"RevTax","v":0},{"$f":"RevTax","v":0},{"$f":"RevTax","v":0},{"$f":"RevTax","v":0},{"$f":"RevTax","v":0}]
[]
[{"$f":"co_name","v":"DUKE ENERGY KENTUCKY, INC."},null,null,null,null,null,null,null,null,{"$f":"J1","v":"FR-16(7)(v)-2"}]
[{"$f":"$A$2","v":"PRODUCTION CLASSIFIED - ELECTRIC COST OF SERVICE"},null,null,null,null,null,null,null,null,{"$f":"J2","v":"WITNESS RESPONSIBLE:"}]
[{"$f":"case_name","v":"CASE NO: 2019-00271"},null,null,null,null,null,null,null,null,{"$f":"Witness","v":"JAMES E. ZIOLKOWSKI"}]
[{"$f":"data_filing","v":"DATA: 12 MONTHS ACTUAL  & 0 MONTHS ESTIMATED"},null,null,null,null,null,null,null,null,{"$f":"\"PAGE \"&Pages-2&\" OF \"&Pages","v":"PAGE 16 OF 18"}]
[{"$f":"type","v":"TYPE OF FILING: \"X\" ORIGINAL   UPDATED    REVISED  "}]
[]
[]
["LINE",null,null,null,null,{"$f":"$F$8","v":"TOTAL"},"CLASSIFIED",null,null,"TOTAL","ALL",null,null,null,"CLASSIFIED"]
["NO.","ALLOCATORS",null,"SOURCE","ALLO",{"$f":"$F$9","v":"PRODUCTION"},{"$f":"G9","v":"DEMAND"},"ENERGY","CUSTOMER","AT ISSUE","OTHER",null,null,null,"CHECK"]
[null,null,"Schedule 12",null,1,2,3,4,5]
[1,"DEMAND ENERGY & SPEC. ASSIGN"]
[2,null,"TOTAL KW (12 COIN PEAK) - PRODUCTION","External",null,{"$f":"'WP FR-16(7)(v)-KW & KWH @Gen'!D38","v":717751},{"$f":"'WP FR-16(7)(v)-KW & KWH @Gen'!D38","v":717751},0,0,{"$f":"SUM(G830:I830)","v":717751},{"$f":"F830-J830","v":0}]
[3,null,{"$f":"'FR-16(7)(v)-1 Functional'!C831","v":"RATIO TO TOTAL ELECTRIC"},null,{"$f":"'FR-16(7)(v)-1 Functional'!E831","v":"K201"},1,{"$f":"ROUND(G830/(G830+H830+I830),5)","v":1},{"$f":"ROUND(H830/(G830+H830+I830),5)","v":0},{"$f":"ROUND(I830/(G830+H830+I830),5)","v":0},{"$f":"SUM(G831:I831)","v":1},{"$f":"F831-J831","v":0},null,null,null,{"$f":"SUM(G831:I831)","v":1}]
[4,null,"TOTAL KW (12 COIN PEAK) - TRANSMISSION","External",null,{"$f":"'WP FR-16(7)(v)-KW & KWH @Gen'!D38","v":717751},{"$f":"'WP FR-16(7)(v)-KW & KWH @Gen'!D38","v":717751},0,0,{"$f":"SUM(G832:I832)","v":717751},{"$f":"F832-J832","v":0}]
[5,null,{"$f":"'FR-16(7)(v)-1 Functional'!C833","v":"RATIO TO TOTAL ELECTRIC"},null,"K202",1,{"$f":"ROUND(G832/(G832+H832+I832),5)","v":1},{"$f":"ROUND(H832/(G832+H832+I832),5)","v":0},{"$f":"ROUND(I832/(G832+H832+I832),5)","v":0},{"$f":"SUM(G833:I833)","v":1},{"$f":"F833-J833","v":0},null,null,null,{"$f":"SUM(G833:I833)","v":1}]
[6,null,{"$f":"'FR-16(7)(v)-1 Functional'!C834","v":"DISTRIBUTION KW (NON-COIN PEAK) "},"External",null,{"$f":"'WP FR-16(7)(v)-KW & KWH @Dist'!D39","v":1514633},{"$f":"'WP FR-16(7)(v)-KW & KWH @Dist'!D39","v":1514633},0,0,1514633,0]
[7,null,{"$f":"'FR-16(7)(v)-1 Functional'!C835","v":"RATIO TO TOTAL ELECTRIC"},null,{"$f":"'FR-16(7)(v)-1 Functional'!E835","v":"K203"},1,{"$f":"ROUND(G834/(G834+H834+I834),5)","v":1},{"$f":"ROUND(H834/(G834+H834+I834),5)","v":0},{"$f":"ROUND(I834/(G834+H834+I834),5)","v":0},1,0,null,null,null,{"$f":"SUM(G835:I835)","v":1}]
[8,null,"DISTRIBUTION LINE - PRIMARY","External",null,{"$f":"'WP FR-16(7)(v) Distlines'!G38","v":731338},{"$f":"'WP FR-16(7)(v) Distlines'!G38","v":731338},0,0,731338,0]
[9,null,{"$f":"'FR-16(7)(v)-1 Functional'!C837","v":"RATIO TO TOTAL ELECTRIC"},null,{"$f":"'FR-16(7)(v)-1 Functional'!E837","v":"K205"},1,{"$f":"ROUND(G836/(G836+H836+I836),5)","v":1},{"$f":"ROUND(H836/(G836+H836+I836),5)","v":0},{"$f":"ROUND(I836/(G836+H836+I836),5)","v":0},1,0,null,null,null,{"$f":"SUM(G837:I837)","v":1}]
[10,null,"DISTRIBUTION LINE - SECONDARY","External",null,{"$f":"'WP FR-16(7)(v) Distlines'!K38","v":731338},{"$f":"'WP FR-16(7)(v) Distlines'!K38","v":731338},0,0,{"$f":"SUM(G838:I838)","v":731338},{"$f":"F838-J838","v":0}]
[11,null,{"$f":"'FR-16(7)(v)-1 Functional'!C839","v":"RATIO TO TOTAL ELECTRIC"},null,"K206",1,{"$f":"ROUND(G838/(G838+H838+I838),5)","v":1},{"$f":"ROUND(H838/(G838+H838+I838),5)","v":0},{"$f":"ROUND(I838/(G838+H838+I838),5)","v":0},{"$f":"SUM(G839:I839)","v":1},{"$f":"F839-J839","v":0}]
[12,null,{"$f":"'FR-16(7)(v)-1 Functional'!C840","v":"GROSS DISTRIBUTION PLANT EXCL. CCNC"},"External",null,{"$f":"SUM(F73:F90)","v":0},{"$f":"SUM(G73:G90)","v":0},{"$f":"SUM(H73:H90)","v":0},{"$f":"SUM(I73:I90)","v":0},0,0]
[13,null,{"$f":"'FR-16(7)(v)-1 Functional'!C841","v":"RATIO TO TOTAL ELECTRIC"},null,{"$f":"'FR-16(7)(v)-1 Functional'!E841","v":"K209"},1,{"$f":"IF(F840=0,0,ROUND(G840/(G840+H840+I840),5))","v":0},{"$f":"IF(F840=0,0,ROUND(H840/(G840+H840+I840),5))","v":0},{"$f":"IF(F840=0,0,ROUND(I840/(G840+H840+I840),5))","v":0},0,1,null,null,null,{"$f":"SUM(G841:I841)","v":0}]
[14,null,{"$f":"'FR-16(7)(v)-1 Functional'!C842","v":"TOTAL DIVERSIFIED CLASS DEMANDS"},"External",null,{"$f":"'WP FR-16(7)(v)-KW & KWH @Dist'!L39","v":731338},{"$f":"'WP FR-16(7)(v)-KW & KWH @Dist'!L39","v":731338},0,0,731338,0]
[15,null,{"$f":"'FR-16(7)(v)-1 Functional'!C843","v":"RATIO TO TOTAL ELECTRIC"},null,{"$f":"'FR-16(7)(v)-1 Functional'!E843","v":"K215"},1,{"$f":"ROUND(G842/(G842+H842+I842),5)","v":1},{"$f":"ROUND(H842/(G842+H842+I842),5)","v":0},{"$f":"ROUND(I842/(G842+H842+I842),5)","v":0},1,0,null,null,null,{"$f":"SUM(G843:I843)","v":1}]
[16,null,{"$f":"'FR-16(7)(v)-1 Functional'!C844","v":"WEIGHTED CUSTOMER SERVICE"},"External",null,{"$f":"'WP FR-16(7)(v) Wtd services'!H38","v":143810},0,0,{"$f":"'WP FR-16(7)(v) Wtd services'!H38","v":143810},143810,0]
[17,null,{"$f":"'FR-16(7)(v)-1 Functional'!C845","v":"RATIO TO TOTAL ELECTRIC"},null,{"$f":"'FR-16(7)(v)-1 Functional'!E845","v":"K217"},1,{"$f":"ROUND(G844/(G844+H844+I844),5)","v":0},{"$f":"ROUND(H844/(G844+H844+I844),5)","v":0},{"$f":"ROUND(I844/(G844+H844+I844),5)","v":1},1,0,null,null,null,{"$f":"SUM(G845:I845)","v":1}]
[18,null,{"$f":"'FR-16(7)(v)-1 Functional'!C846","v":"TOTAL KWH"},"External",null,{"$f":"'WP FR-16(7)(v)-KW & KWH @Gen'!F38","v":4261970981},0,{"$f":"'WP FR-16(7)(v)-KW & KWH @Gen'!F38","v":4261970981},0,4261970981,0]
[19,null,{"$f":"'FR-16(7)(v)-1 Functional'!C847","v":"RATIO TO TOTAL ELECTRIC"},null,{"$f":"'FR-16(7)(v)-1 Functional'!E847","v":"K301"},1,{"$f":"ROUND(G846/(G846+H846+I846),5)","v":0},{"$f":"ROUND(H846/(G846+H846+I846),5)","v":1},{"$f":"ROUND(I846/(G846+H846+I846),5)","v":0},1,0,null,null,null,{"$f":"SUM(G847:I847)","v":1}]
[20,null,{"$f":"'FR-16(7)(v)-1 Functional'!C848","v":"DISTRIBUTION KWH"},"External",null,{"$f":"'WP FR-16(7)(v)-KW & KWH @Dist'!F39","v":4261970981},0,{"$f":"'WP FR-16(7)(v)-KW & KWH @Dist'!F39","v":4261970981},0,4261970981,0]
[21,null,{"$f":"'FR-16(7)(v)-1 Functional'!C849","v":"RATIO TO TOTAL ELECTRIC"},null,{"$f":"'FR-16(7)(v)-1 Functional'!E849","v":"K303"},1,{"$f":"ROUND(G848/(G848+H848+I848),5)","v":0},{"$f":"ROUND(H848/(G848+H848+I848),5)","v":1},{"$f":"ROUND(I848/(G848+H848+I848),5)","v":0},1,0,null,null,null,{"$f":"SUM(G849:I849)","v":1}]
[22,null,{"$f":"'FR-16(7)(v)-1 Functional'!C850","v":"TOTAL KWH LESS LIGHTING"},"External",null,{"$f":"'WP FR-16(7)(v)-KW & KWH @Gen'!F38-'WP FR-16(7)(v)-KW & KWH @Gen'!F26","v":4243371852},0,{"$f":"'WP FR-16(7)(v)-KW & KWH @Gen'!F38-'WP FR-16(7)(v)-KW & KWH @Gen'!F26","v":4243371852},0,4243371852,0]
[23,null,{"$f":"'FR-16(7)(v)-1 Functional'!C851","v":"RATIO TO TOTAL ELECTRIC"},null,{"$f":"'FR-16(7)(v)-1 Functional'!E851","v":"K305"},1,{"$f":"ROUND(G850/(G850+H850+I850),5)","v":0},{"$f":"ROUND(H850/(G850+H850+I850),5)","v":1},{"$f":"ROUND(I850/(G850+H850+I850),5)","v":0},1,0,null,null,null,{"$f":"SUM(G851:I851)","v":1}]
[24,null,{"$f":"'FR-16(7)(v)-1 Functional'!C852","v":"ASSIGN 100% TO RESIDENTIAL"},"External",null,1,1,0,0,1,0]
[25,null,{"$f":"'FR-16(7)(v)-1 Functional'!C853","v":"RATIO TO TOTAL ELECTRIC"},null,{"$f":"'FR-16(7)(v)-1 Functional'!E853","v":"K307"},1,{"$f":"ROUND(G852/(G852+H852+I852),5)","v":1},{"$f":"ROUND(H852/(G852+H852+I852),5)","v":0},{"$f":"ROUND(I852/(G852+H852+I852),5)","v":0},1,0,null,null,null,{"$f":"SUM(G853:I853)","v":1}]
[26,null,{"$f":"'FR-16(7)(v)-1 Functional'!C854","v":"ASSIGN 100% TO LIGHTING"},"External",null,1,1,0,0,1,0]
[27,null,{"$f":"'FR-16(7)(v)-1 Functional'!C855","v":"RATIO TO TOTAL ELECTRIC"},null,{"$f":"'FR-16(7)(v)-1 Functional'!E855","v":"K401"},1,{"$f":"ROUND(G854/(G854+H854+I854),5)","v":1},{"$f":"ROUND(H854/(G854+H854+I854),5)","v":0},{"$f":"ROUND(I854/(G854+H854+I854),5)","v":0},1,0,null,null,null,{"$f":"SUM(G855:I855)","v":1}]
[28,null,{"$f":"'FR-16(7)(v)-1 Functional'!C856","v":"DISTRIBUTION CUSTOMERS"},"External",null,{"$f":"'WP FR-16(7)(v)-KW & KWH @Dist'!H39","v":142392},0,{"$f":"ROUND(H855/(G855+H855+I855),5)","v":0},{"$f":"'WP FR-16(7)(v)-KW & KWH @Dist'!H39","v":142392},142392,0]
[29,null,{"$f":"'FR-16(7)(v)-1 Functional'!C857","v":"RATIO TO TOTAL ELECTRIC"},null,{"$f":"'FR-16(7)(v)-1 Functional'!E857","v":"K405"},1,{"$f":"ROUND(G856/(G856+H856+I856),5)","v":0},{"$f":"ROUND(H856/(G856+H856+I856),5)","v":0},{"$f":"ROUND(I856/(G856+H856+I856),5)","v":1},1,0,null,null,null,{"$f":"SUM(G857:I857)","v":1}]
[30,null,{"$f":"'FR-16(7)(v)-1 Functional'!C858","v":"METERS"},"External",null,{"$f":"'WP FR-16(7)(v) Meters'!E40","v":15813241},0,0,{"$f":"'WP FR-16(7)(v) Meters'!E40","v":15813241},15813241,0]
[31,null,{"$f":"'FR-16(7)(v)-1 Functional'!C859","v":"RATIO TO TOTAL ELECTRIC"},null,{"$f":"'FR-16(7)(v)-1 Functional'!E859","v":"K407"},1,{"$f":"ROUND(G858/(G858+H858+I858),5)","v":0},{"$f":"ROUND(H858/(G858+H858+I858),5)","v":0},{"$f":"ROUND(I858/(G858+H858+I858),5)","v":1},1,0,null,null,null,{"$f":"SUM(G859:I859)","v":1}]
[32,null,{"$f":"'FR-16(7)(v)-1 Functional'!C860","v":"WEIGHTED CUSTOMER"},"External",null,{"$f":"'WP FR-16(7)(v) Meters'!H40","v":156470},0,0,{"$f":"F860","v":156470},156470,0]
[33,null,{"$f":"'FR-16(7)(v)-1 Functional'!C861","v":"RATIO TO TOTAL ELECTRIC"},null,{"$f":"'FR-16(7)(v)-1 Functional'!E861","v":"K409"},1,{"$f":"ROUND(G860/(G860+H860+I860),5)","v":0},{"$f":"ROUND(H860/(G860+H860+I860),5)","v":0},{"$f":"ROUND(I860/(G860+H860+I860),5)","v":1},1,0,null,null,null,{"$f":"SUM(G861:I861)","v":1}]
[34,null,{"$f":"'FR-16(7)(v)-1 Functional'!C862","v":"UNCOLLECTIBLE ACCOUNT 904"},"External",null,{"$f":"'WP FR-16(7)(v) CustAcct'!G31","v":5781023.7599999998},0,0,{"$f":"F862","v":5781023.7599999998},5781023.7599999998,0]
[35,null,{"$f":"'FR-16(7)(v)-1 Functional'!C863","v":"RATIO TO TOTAL ELECTRIC"},null,{"$f":"'FR-16(7)(v)-1 Functional'!E863","v":"K411"},1,{"$f":"ROUND(G862/(G862+H862+I862),5)","v":0},{"$f":"ROUND(H862/(G862+H862+I862),5)","v":0},{"$f":"ROUND(I862/(G862+H862+I862),5)","v":1},1,0,null,null,null,{"$f":"SUM(G863:I863)","v":1}]
[36,null,{"$f":"'FR-16(7)(v)-1 Functional'!C864","v":"KWH SALES LESS RTP"},"External",null,{"$f":"'WP FR-16(7)(v)-KW & KWH @Gen'!F28","v":4244213606},0,{"$f":"'WP FR-16(7)(v)-KW & KWH @Gen'!F28","v":4244213606},0,{"$f":"SUM(G864:I864)","v":4244213606},{"$f":"F864-J864","v":0}]
[37,null,{"$f":"'FR-16(7)(v)-1 Functional'!C865","v":"RATIO TO TOTAL ELECTRIC"},null,{"$f":"'FR-16(7)(v)-1 Functional'!E865","v":"K302"},1,{"$f":"ROUND(G864/(G864+H864+I864),5)","v":0},{"$f":"ROUND(H864/(G864+H864+I864),5)","v":1},{"$f":"ROUND(I864/(G864+H864+I864),5)","v":0},{"$f":"SUM(G865:I865)","v":1},{"$f":"F865-J865","v":0},null,null,null,{"$f":"SUM(G865:I865)","v":1}]
[38]
[39,null,{"$f":"'FR-16(7)(v)-1 Functional'!C867","v":"PRESENT REVENUES"},{"$f":"'FR-16(7)(v)-1 Functional'!D867","v":"CS09"},{"$f":"'FR-16(7)(v)-1 Functional'!E867","v":"R600"},{"$f":"'FR-16(7)(v)-1 Functional'!G867","v":216065589},{"$f":"ROUND(F867*VLOOKUP(D867,AllocTable_Classified_Production,$G$10,FALSE),0)","v":71578233},{"$f":"ROUND(F867*VLOOKUP(D867,AllocTable_Classified_Production,$H$10,FALSE),0)","v":144487356},{"$f":"ROUND(F867*VLOOKUP(D867,AllocTable_Classified_Production,$I$10,FALSE),0)","v":0},{"$f":"SUM(G867:I867)","v":216065589},{"$f":"F867-J867","v":0}]
[40,null,{"$f":"'FR-16(7)(v)-1 Functional'!C868","v":"PROPOSED REVENUES"},{"$f":"'FR-16(7)(v)-1 Functional'!D868","v":"A357"},{"$f":"'FR-16(7)(v)-1 Functional'!E868","v":"R602"},{"$f":"'FR-16(7)(v)-1 Functional'!G868","v":229117410},{"$f":"ROUND(F868*VLOOKUP(D868,AllocTable_Classified_Production,$G$10,FALSE),0)","v":106929095},{"$f":"ROUND(F868*VLOOKUP(D868,AllocTable_Classified_Production,$H$10,FALSE),0)","v":122188315},{"$f":"ROUND(F868*VLOOKUP(D868,AllocTable_Classified_Production,$I$10,FALSE),0)","v":0},{"$f":"SUM(G868:I868)","v":229117410},{"$f":"F868-J868","v":0}]
[]
[{"$f":"co_name","v":"DUKE ENERGY KENTUCKY, INC."},null,null,null,null,null,null,null,null,{"$f":"J1","v":"FR-16(7)(v)-2"}]
[{"$f":"$A$2","v":"PRODUCTION CLASSIFIED - ELECTRIC COST OF SERVICE"},null,null,null,null,null,null,null,null,{"$f":"J2","v":"WITNESS RESPONSIBLE:"}]
[{"$f":"case_name","v":"CASE NO: 2019-00271"},null,null,null,null,null,null,null,null,{"$f":"Witness","v":"JAMES E. ZIOLKOWSKI"}]
[{"$f":"data_filing","v":"DATA: 12 MONTHS ACTUAL  & 0 MONTHS ESTIMATED"},null,null,null,null,null,null,null,null,{"$f":"\"PAGE \"&Pages-1&\" OF \"&Pages","v":"PAGE 17 OF 18"}]
[{"$f":"type","v":"TYPE OF FILING: \"X\" ORIGINAL   UPDATED    REVISED  "}]
[]
[]
["LINE",null,null,null,null,{"$f":"$F$8","v":"TOTAL"},"CLASSIFIED",null,null,"TOTAL","ALL"]
["NO.","ALLOCATORS",null,"SOURCE","ALLO",{"$f":"$F$9","v":"PRODUCTION"},{"$f":"G9","v":"DEMAND"},"ENERGY","CUSTOMER","AT ISSUE","OTHER"]
[null,null,"Schedule 12.1",null,1,2,3,4,5]
[]
[1,null,{"$f":"'FR-16(7)(v)-1 Functional'!C881","v":"PRESENT REVENUES"},"Internal",null,{"$f":"F867","v":216065589},{"$f":"G867","v":71578233},{"$f":"H867","v":144487356},{"$f":"I867","v":0},{"$f":"SUM(G881:I881)","v":216065589},{"$f":"F881-J881","v":0}]
[2,null,{"$f":"'FR-16(7)(v)-1 Functional'!C882","v":"RATIO TO TOTAL ELECTRIC"},null,{"$f":"'FR-16(7)(v)-1 Functional'!E882","v":"K901"},1,{"$f":"ROUND(G881/(G881+H881+I881),5)","v":0.33128000000000002},{"$f":"ROUND(H881/(G881+H881+I881),5)","v":0.66871999999999998},{"$f":"1-SUM(G882:H882)","v":0},{"$f":"SUM(G882:I882)","v":1},{"$f":"F882-J882","v":0},null,null,null,{"$f":"SUM(G882:I882)","v":1}]
[3,null,{"$f":"'FR-16(7)(v)-1 Functional'!C883","v":"PROPOSED REVENUES"},"Internal",null,{"$f":"F868","v":229117410},{"$f":"G868","v":106929095},{"$f":"H868","v":122188315},{"$f":"I868","v":0},{"$f":"SUM(G883:I883)","v":229117410},{"$f":"F883-J883","v":0}]
[4,null,{"$f":"'FR-16(7)(v)-1 Functional'!C884","v":"RATIO TO TOTAL ELECTRIC"},null,{"$f":"'FR-16(7)(v)-1 Functional'!E884","v":"K902"},1,{"$f":"ROUND(G883/(G883+H883+I883),5)","v":0.4667},{"$f":"ROUND(H883/(G883+H883+I883),5)","v":0.5333},{"$f":"1-SUM(G884:H884)","v":0},{"$f":"SUM(G884:I884)","v":1},{"$f":"F884-J884","v":0},null,null,null,{"$f":"SUM(G884:I884)","v":1}]
[5]
[6,"WEIGHTED RATIOS"]
[7,"GROSS ELECTRIC PLANT IN SERVICE"]
[8,null,{"$f":"'FR-16(7)(v)-1 Functional'!C888","v":"WTD GROSS PROD PLANT RATIOS"},"Internal",{"$f":"'FR-16(7)(v)-1 Functional'!E888","v":"P129"},1,{"$f":"ROUND(IF($F$62=0,0,G62/$F$62),5)","v":1},{"$f":"ROUND(IF(F62=0,0,H62/F62),5)","v":0},{"$f":"ROUND(IF(F62=0,0,I62/F62),5)","v":0},{"$f":"SUM(G888:I888)","v":1},{"$f":"F888-J888","v":0},null,null,null,{"$f":"SUM(G888:I888)","v":1}]
[9,null,{"$f":"'FR-16(7)(v)-1 Functional'!C889","v":"WTD GROSS TRANS PLANT RATIOS"},"Internal",{"$f":"'FR-16(7)(v)-1 Functional'!E889","v":"T129"},0,{"$f":"ROUND(IF($F$68=0,0,G68/$F$68),5)","v":0},{"$f":"ROUND(IF(F68=0,0,H68/F68),5)","v":0},{"$f":"ROUND(IF($F$68=0,0,I68/$F$68),5)","v":0},0,0,null,null,null,0]
[10,null,{"$f":"'FR-16(7)(v)-1 Functional'!C890","v":"WTD GROSS P & T PLT RATIOS"},"Internal",{"$f":"'FR-16(7)(v)-1 Functional'!E890","v":"PT29"},1,{"$f":"ROUND(IF($F$70=0,0,G70/$F$70),5)","v":1},{"$f":"ROUND(IF(F70=0,0,H70/F70),5)","v":0},{"$f":"ROUND(IF($F$70=0,0,I70/$F$70),5)","v":0},{"$f":"SUM(G890:I890)","v":1},{"$f":"F890-J890","v":0},null,null,null,1]
[11,null,{"$f":"'FR-16(7)(v)-1 Functional'!C891","v":"WTD GROSS DIST PLANT RATIOS"},"Internal",{"$f":"'FR-16(7)(v)-1 Functional'!E891","v":"D149"},0,{"$f":"ROUND(IF($F$94=0,0,G94/F94),5)","v":0},{"$f":"ROUND(IF(F94=0,0,H94/F94),5)","v":0},{"$f":"ROUND(IF($F$94=0,0,I94/$F$94),5)","v":0},{"$f":"SUM(G891:I891)","v":0},{"$f":"F891-J891","v":0},null,null,null,0]
[12,null,{"$f":"'FR-16(7)(v)-1 Functional'!C892","v":"WTD GROSS TRANS & DIST RATIOS"},"Internal",{"$f":"'FR-16(7)(v)-1 Functional'!E892","v":"TD29"},1,{"$f":"ROUND(IF($F$97=0,0,G97/$F$97),5)","v":1},{"$f":"ROUND(IF(F97=0,0,H97/F97),5)","v":0},{"$f":"ROUND(IF($F$97=0,0,I97/$F$97),5)","v":0},1,0,null,null,null,1]
[13,null,{"$f":"'FR-16(7)(v)-1 Functional'!C893","v":"WTD GROSS PTD PLT RATIOS"},"Internal",{"$f":"'FR-16(7)(v)-1 Functional'!E893","v":"PD29"},1,{"$f":"ROUND(IF($F$109=0,0,G109/$F$109),5)","v":0.56711},{"$f":"ROUND(IF(F109=0,0,H109/F109),5)","v":0.43289},{"$f":"ROUND(IF($F$109=0,0,I109/$F$109),5)","v":0},1,0,null,null,null,1]
[14,null,{"$f":"'FR-16(7)(v)-1 Functional'!C894","v":"WTD GROSS G & I PLT RATIOS"},"Internal",{"$f":"'FR-16(7)(v)-1 Functional'!E894","v":"G129"},1,{"$f":"ROUND(IF($F$121=0,0,G121/$F$121),5)","v":0.56711},{"$f":"ROUND(IF(F121=0,0,$H$121/F121),5)","v":0.43289},{"$f":"ROUND(IF($F$121=0,0,I121/$F$121),5)","v":0},1,0,null,null,null,1]
[15,null,{"$f":"'FR-16(7)(v)-1 Functional'!C895","v":"WTD GROSS C & O PLANT RATIOS"},"Internal",{"$f":"'FR-16(7)(v)-1 Functional'!E895","v":"C129"},1,{"$f":"ROUND(IF($F$123=0,0,G123/$F$123),5)","v":0.97611000000000003},{"$f":"ROUND(IF(F123=0,0,$H$123/F123),5)","v":2.3890000000000002E-2},{"$f":"ROUND(IF($F$123=0,0,I123/$F$123),5)","v":0},1,0,null,null,null,1]
[16,null,{"$f":"'FR-16(7)(v)-1 Functional'!C896","v":"WTD GROSS PLANT RATIOS"},"Internal",{"$f":"'FR-16(7)(v)-1 Functional'!E896","v":"GP19"},0,{"$f":"ROUND(IF($F$171=0,0,G171/$F$171),5)","v":0},{"$f":"ROUND(IF(F171=0,0,H171/F171),5)","v":0},{"$f":"ROUND(IF($F$171=0,0,I171/$F$171),5)","v":0},0,0,null,null,null,0]
[17,null,{"$f":"'FR-16(7)(v)-1 Functional'!C897","v":"WTD TOTAL DEPRC RES RATIOS"},"Internal",{"$f":"'FR-16(7)(v)-1 Functional'!E897","v":"DR19"},1,{"$f":"ROUND(IF($F$200=0,0,G200/$F$200),5)","v":0.97601000000000004},{"$f":"ROUND(IF(F200=0,0,H200/F200),5)","v":2.3990000000000001E-2},{"$f":"ROUND(IF($F$200=0,0,I200/$F$200),5)","v":0},1,0,null,null,null,1]
[18]
[19,"NET ELECTRIC PLANT"]
[20,null,{"$f":"'FR-16(7)(v)-1 Functional'!C900","v":"WTD NET PROD PLANT RATIOS"},"Internal",{"$f":"'FR-16(7)(v)-1 Functional'!E900","v":"P229"},1,{"$f":"ROUND(IF($F$216=0,0,G216/$F$216),5)","v":1},{"$f":"ROUND(IF(F216=0,0,H216/F216),5)","v":0},{"$f":"ROUND(IF(F216=0,0,I216/F216),5)","v":0},{"$f":"SUM(G900:I900)","v":1},{"$f":"F900-J900","v":0},null,null,null,{"$f":"SUM(G900:I900)","v":1}]
[21,null,{"$f":"'FR-16(7)(v)-1 Functional'!C901","v":"WTD NET TRANS PLANT RATIOS"},"Internal",{"$f":"'FR-16(7)(v)-1 Functional'!E901","v":"T229"},0,{"$f":"ROUND(IF($F$222=0,0,G222/$F$222),5)","v":0},{"$f":"ROUND(IF(F222=0,0,H222/F222),5)","v":0},{"$f":"ROUND(IF(F222=0,0,I222/F222),5)","v":0},0,0,null,null,null,0]
[22,null,{"$f":"'FR-16(7)(v)-1 Functional'!C902","v":"WTD NET DIST LINES  - POLES, TOWERS & FIXTURES"},"Internal",{"$f":"'FR-16(7)(v)-1 Functional'!E902","v":"PL49"},0,{"$f":"ROUND(IF(SUM($F$228:$F$231)=0,0,SUM(G228:G231)/SUM($F$228:$F$231)),5)","v":0},{"$f":"ROUND(IF(SUM($F$228:$F$231)=0,0,SUM(H228:H231)/SUM($F$228:$F$231)),5)","v":0},{"$f":"ROUND(IF(SUM($F$228:$F$231)=0,0,SUM(I228:I231)/SUM($F$228:$F$231)),5)","v":0},0,0,null,null,null,0]
[23,null,{"$f":"'FR-16(7)(v)-1 Functional'!C903","v":"WTD NET TOTAL DIST PLANT RATIOS"},"Internal",{"$f":"'FR-16(7)(v)-1 Functional'!E903","v":"D249"},0,{"$f":"ROUND(IF($F$248=0,0,G248/$F$248),5)","v":0},{"$f":"ROUND(IF($F$248=0,0,H248/$F$248),5)","v":0},{"$f":"ROUND(IF($F$248=0,0,I248/$F$248),5)","v":0},0,0,null,null,null,0]
[24,null,{"$f":"'FR-16(7)(v)-1 Functional'!C904","v":"WTD NET TRANS & DIST RATIOS"},"Internal",{"$f":"'FR-16(7)(v)-1 Functional'!E904","v":"NT29"},1,{"$f":"ROUND(IF($F$251=0,0,G251/$F$251),5)","v":1},{"$f":"ROUND(IF($F$251=0,0,H251/$F$251),5)","v":0},{"$f":"ROUND(IF($F$251=0,0,I251/$F$251),5)","v":0},1,0,null,null,null,1]
[25,null,{"$f":"'FR-16(7)(v)-1 Functional'!C905","v":"WTD NET G & I PLT RATIOS"},"Internal",{"$f":"'FR-16(7)(v)-1 Functional'!E905","v":"G229"},1,{"$f":"ROUND(IF($F$263=0,0,G263/$F$263),5)","v":0.56781000000000004},{"$f":"ROUND(IF($F$263=0,0,H263/$F$263),5)","v":0.43219000000000002},{"$f":"ROUND(IF($F$263=0,0,I263/$F$263),5)","v":0},1,0,null,null,null,1]
[26,null,{"$f":"'FR-16(7)(v)-1 Functional'!C906","v":"WTD NET C & O PLANT RATIOS"},"Internal",{"$f":"'FR-16(7)(v)-1 Functional'!E906","v":"C229"},1,{"$f":"ROUND(IF($F$275=0,0,G275/$F$275),5)","v":0.56730999999999998},{"$f":"ROUND(IF($F$275=0,0,H275/$F$275),5)","v":0.43269000000000002},{"$f":"ROUND(IF($F$275=0,0,I275/$F$275),5)","v":0},1,0,null,null,null,1]
[27,null,{"$f":"'FR-16(7)(v)-1 Functional'!C907","v":"WTD NET PLANT RATIOS"},"Internal",{"$f":"'FR-16(7)(v)-1 Functional'!E907","v":"NP29"},1,{"$f":"ROUND(IF($F$277=0,0,G277/$F$277),5)","v":0.97621000000000002},{"$f":"ROUND(IF(F277=0,0,H277/F277),5)","v":2.3789999999999999E-2},{"$f":"ROUND(IF($F$277=0,0,I277/$F$277),5)","v":0},1,0,null,null,null,1]
[28]
[29,"WORKING CAPITAL"]
[30,null,{"$f":"'FR-16(7)(v)-1 Functional'!C910","v":"WTD MATERIAL & SUPPLY RATIOS"},"Internal",{"$f":"'FR-16(7)(v)-1 Functional'!E910","v":"W669"},1,{"$f":"ROUND(IF($F$399=0,0,G399/$F$399),5)","v":0.218},{"$f":"ROUND(IF(F399=0,0,H399/F399),5)","v":0.78200000000000003},{"$f":"ROUND(IF(F399=0,0,I399/F399),5)","v":0},{"$f":"SUM(G910:I910)","v":1},{"$f":"F910-J910","v":0},null,null,null,{"$f":"SUM(G910:I910)","v":1}]
[31,null,{"$f":"'FR-16(7)(v)-1 Functional'!C911","v":"WTD PREPAYMENTS RATIOS"},"Internal",{"$f":"'FR-16(7)(v)-1 Functional'!E911","v":"W689"},1,{"$f":"ROUND(IF($F$405=0,0,G405/$F$405),5)","v":1.3482799999999999},{"$f":"ROUND(IF(F405=0,0,H405/F405),5)","v":-0.34827999999999998},{"$f":"ROUND(IF(F405=0,0,I405/F405),5)","v":0},{"$f":"SUM(G911:I911)","v":1},{"$f":"F911-J911","v":0},null,null,null,{"$f":"SUM(G911:I911)","v":1}]
[32,null,{"$f":"'FR-16(7)(v)-1 Functional'!C912","v":"WTD TOTAL WORKING CASH RATIOS"},"Internal",{"$f":"'FR-16(7)(v)-1 Functional'!E912","v":"W719"},1,{"$f":"ROUND(IF($F$408=0,0,G408/F408),5)","v":1},{"$f":"ROUND(IF(F408=0,0,H408/F408),5)","v":0},{"$f":"ROUND(IF(F408=0,0,I408/F408),5)","v":0},{"$f":"SUM(G912:I912)","v":1},{"$f":"F912-J912","v":0},null,null,null,{"$f":"SUM(G912:I912)","v":1}]
[33,null,{"$f":"'FR-16(7)(v)-1 Functional'!C913","v":"WTD TOTAL MISC WRKNG CAP RATIO"},"Internal",{"$f":"'FR-16(7)(v)-1 Functional'!E913","v":"W749"},1,{"$f":"ROUND(IF($F$414=0,0,G414/$F$414),5)","v":0},{"$f":"ROUND(IF(F414=0,0,H414/F414),5)","v":0},{"$f":"ROUND(IF(F414=0,0,I414/F414),5)","v":0},{"$f":"SUM(G913:I913)","v":0},{"$f":"F913-J913","v":1},null,null,null,{"$f":"SUM(G913:I913)","v":0}]
[34,null,{"$f":"'FR-16(7)(v)-1 Functional'!C914","v":"WTD TOTAL WRKNG CAP RATIOS"},"Internal",{"$f":"'FR-16(7)(v)-1 Functional'!E914","v":"WC79"},1,{"$f":"ROUND(IF($F$416=0,0,G416/$F$416),5)","v":0.47092000000000001},{"$f":"ROUND(IF($F$416=0,0,H416/$F$416),5)","v":0.52907999999999999},{"$f":"ROUND(IF($F$416=0,0,I416/$F$416),5)","v":0},{"$f":"SUM(G914:I914)","v":1},{"$f":"F914-J914","v":0},null,null,null,{"$f":"SUM(G914:I914)","v":1}]
[35]
[36,"RATE BASE"]
[37,null,{"$f":"'FR-16(7)(v)-1 Functional'!C917","v":"WTD NET OCRB RATIOS"},"Internal",{"$f":"'FR-16(7)(v)-1 Functional'!E917","v":"RB29"},1,{"$f":"ROUND(IF($F$390=0,0,G390/$F$390),5)","v":0.98629},{"$f":"ROUND(IF($F$390=0,0,H390/$F$390),5)","v":1.371E-2},{"$f":"ROUND(IF($F$390=0,0,I390/$F$390),5)","v":0},{"$f":"SUM(G917:I917)","v":1},{"$f":"F917-J917","v":0},null,null,null,{"$f":"SUM(G917:I917)","v":1}]
[38,null,{"$f":"'FR-16(7)(v)-1 Functional'!C918","v":"WTD TOTAL RATE BASE RATIOS"},"Internal",{"$f":"'FR-16(7)(v)-1 Functional'!E918","v":"RB99"},1,{"$f":"ROUND(IF($F$426=0,0,G426/$F$426),5)","v":0.94279999999999997},{"$f":"ROUND(IF($F$426=0,0,H426/$F$426),5)","v":5.7200000000000001E-2},{"$f":"ROUND(IF($F$426=0,0,I426/$F$426),5)","v":0},{"$f":"SUM(G918:I918)","v":1},{"$f":"F918-J918","v":0},null,null,null,{"$f":"SUM(G918:I918)","v":1}]
[39,null,{"$f":"'FR-16(7)(v)-1 Functional'!C919","v":"WTD CWIP RATIO"},"Internal",{"$f":"'FR-16(7)(v)-1 Functional'!E919","v":"CW29"},1,{"$f":"ROUND(IF($F$375=0,0,G375/$F$375),5)","v":0},{"$f":"ROUND(IF($F$375=0,0,H375/$F$375),5)","v":0},{"$f":"ROUND(IF($F$375=0,0,I375/$F$375),5)","v":0},{"$f":"SUM(G919:I919)","v":0},{"$f":"F919-J919","v":1},null,null,null,{"$f":"SUM(G919:I919)","v":0}]
[]
[{"$f":"co_name","v":"DUKE ENERGY KENTUCKY, INC."},null,null,null,null,null,null,null,null,{"$f":"J1","v":"FR-16(7)(v)-2"}]
[{"$f":"$A$2","v":"PRODUCTION CLASSIFIED - ELECTRIC COST OF SERVICE"},null,null,null,null,null,null,null,null,{"$f":"J2","v":"WITNESS RESPONSIBLE:"}]
[{"$f":"case_name","v":"CASE NO: 2019-00271"},null,null,null,null,null,null,null,null,{"$f":"Witness","v":"JAMES E. ZIOLKOWSKI"}]
[{"$f":"data_filing","v":"DATA: 12 MONTHS ACTUAL  & 0 MONTHS ESTIMATED"},null,null,null,null,null,null,null,null,{"$f":"\"PAGE \"&Pages&\" OF \"&Pages","v":"PAGE 18 OF 18"}]
[{"$f":"type","v":"TYPE OF FILING: \"X\" ORIGINAL   UPDATED    REVISED  "}]
[]
[]
["LINE",null,null,null,null,{"$f":"$F$8","v":"TOTAL"},"CLASSIFIED",null,null,"TOTAL","ALL"]
["NO.","ALLOCATORS",null,"SOURCE","ALLO",{"$f":"$F$9","v":"PRODUCTION"},{"$f":"G9","v":"DEMAND"},"ENERGY","CUSTOMER","AT ISSUE","OTHER"]
[null,null,"Schedule 12.2",null,1,2,3,4,5]
[1,"WEIGHTED O & M EXPENSE RATIOS"]
[2,null,{"$f":"'FR-16(7)(v)-1 Functional'!C932","v":"WTD PROD DEMAND O&M EXP RATIOS"},"Internal",{"$f":"'FR-16(7)(v)-1 Functional'!E932","v":"P349"},1,{"$f":"ROUND(IF($F$457=0,0,G457/$F$457),5)","v":0},{"$f":"ROUND(IF($F$457=0,0,H457/$F$457),5)","v":0},{"$f":"ROUND(IF($F$457=0,0,I457/$F$457),5)","v":0},{"$f":"SUM(G932:I932)","v":0},{"$f":"F932-J932","v":1},null,null,null,{"$f":"SUM(G932:I932)","v":0}]
[3,null,{"$f":"'FR-16(7)(v)-1 Functional'!C933","v":"WTD PROD ENERGY O&M EXP RATIOS"},"Internal",{"$f":"'FR-16(7)(v)-1 Functional'!E933","v":"E349"},1,{"$f":"ROUND(IF($F$453=0,0,G453/$F$453),5)","v":0},{"$f":"ROUND(IF($F$453=0,0,H453/$F$453),5)","v":1},{"$f":"ROUND(IF($F$453=0,0,I453/$F$453),5)","v":0},1,0,null,null,null,{"$f":"SUM(G933:I933)","v":1}]
[4,null,{"$f":"'FR-16(7)(v)-1 Functional'!C934","v":"WTD TOTAL PROD O&M EXP RATIOS"},"Internal",{"$f":"'FR-16(7)(v)-1 Functional'!E934","v":"P459"},1,{"$f":"ROUND(IF($F$459=0,0,G459/$F$459),5)","v":0},{"$f":"ROUND(IF($F$459=0,0,H459/$F$459),5)","v":1},{"$f":"ROUND(IF($F$459=0,0,I459/$F$459),5)","v":0},1,0,null,null,null,{"$f":"SUM(G934:I934)","v":1}]
[5,null,{"$f":"'FR-16(7)(v)-1 Functional'!C935","v":"WTD TRANS O&M EXP RATIOS"},"Internal",{"$f":"'FR-16(7)(v)-1 Functional'!E935","v":"T349"},1,{"$f":"ROUND(IF($F$466=0,0,G466/$F$466),5)","v":0},{"$f":"ROUND(IF($F$466=0,0,H466/$F$466),5)","v":0},{"$f":"ROUND(IF($F$466=0,0,I466/$F$466),5)","v":0},0,1,null,null,null,{"$f":"SUM(G935:I935)","v":0}]
[6,null,{"$f":"'FR-16(7)(v)-1 Functional'!C936","v":"WTD DIST O&M EXP RATIOS"},"Internal",{"$f":"'FR-16(7)(v)-1 Functional'!E936","v":"D349"},1,{"$f":"ROUND(IF($F$492=0,0,G492/$F$492),5)","v":1},{"$f":"ROUND(IF($F$492=0,0,H492/$F$492),5)","v":0},{"$f":"ROUND(IF($F$492=0,0,I492/$F$492),5)","v":0},1,0,null,null,null,{"$f":"SUM(G936:I936)","v":1}]
[7,null,{"$f":"'FR-16(7)(v)-1 Functional'!C937","v":"WTD UNCOLLECTIBLE ACCOUNT O&M"},"Internal",{"$f":"'FR-16(7)(v)-1 Functional'!E937","v":"C311"},1,{"$f":"ROUND(IF($F$496=0,0,G496/$F$496),5)","v":0},{"$f":"ROUND(IF($F$496=0,0,H496/$F$496),5)","v":0},{"$f":"ROUND(IF($F$496=0,0,I496/$F$496),5)","v":0},0,1,null,null,null,0]
[8,null,{"$f":"'FR-16(7)(v)-1 Functional'!C938","v":"WTD CUST ACCT O&M EXP RATIOS"},"Internal",{"$f":"'FR-16(7)(v)-1 Functional'!E938","v":"C319"},1,{"$f":"ROUND(IF($F$503=0,0,G503/$F$503),5)","v":0},{"$f":"ROUND(IF($F$503=0,0,H503/$F$503),5)","v":0},{"$f":"ROUND(IF($F$503=0,0,I503/$F$503),5)","v":0},0,1,null,null,null,0]
[9,null,{"$f":"'FR-16(7)(v)-1 Functional'!C939","v":"WTD CUST SERV & INFO O&M  EXP RATIOS"},"Internal",{"$f":"'FR-16(7)(v)-1 Functional'!E939","v":"C331"},1,{"$f":"ROUND(IF($F$518=0,0,G518/$F$518),5)","v":0},{"$f":"ROUND(IF($F$518=0,0,H518/$F$518),5)","v":0},{"$f":"ROUND(IF($F$518=0,0,I518/$F$518),5)","v":0},{"$f":"SUM(G939:I939)","v":0},{"$f":"F939-J939","v":1},null,null,null,0]
[10,null,{"$f":"'FR-16(7)(v)-1 Functional'!C940","v":"WTD SALES O&M EXP RATIOS"},"Internal",{"$f":"'FR-16(7)(v)-1 Functional'!E940","v":"S319"},1,{"$f":"ROUND(IF($F$522=0,0,G522/$F$522),5)","v":0},{"$f":"ROUND(IF($F$522=0,0,H522/$F$522),5)","v":0},{"$f":"ROUND(IF($F$522=0,0,I522/$F$522),5)","v":0},{"$f":"SUM(G940:I940)","v":0},{"$f":"F940-J940","v":1},null,null,null,0]
[11,null,{"$f":"'FR-16(7)(v)-1 Functional'!C941","v":"WTD O&M EXP RATIOS"},"Internal",{"$f":"'FR-16(7)(v)-1 Functional'!E941","v":"OM39"},1,{"$f":"ROUND(IF($F$549=0,0,G549/$F$549),5)","v":4.2340000000000003E-2},{"$f":"ROUND(IF($F$549=0,0,H549/$F$549),5)","v":0.95765999999999996},{"$f":"ROUND(IF($F$549=0,0,I549/$F$549),5)","v":0},{"$f":"SUM(G941:I941)","v":1},{"$f":"F941-J941","v":0},null,null,null,1]
[12]
[13,"A & G EXPENSES"]
[14,null,{"$f":"'FR-16(7)(v)-1 Functional'!C944","v":"WTD PROD DEMAND A&G EXP RATIOS"},"Internal",{"$f":"'FR-16(7)(v)-1 Functional'!E944","v":"A300"},1,{"$f":"ROUND(IF($F$525=0,0,G525/$F$525),5)","v":1},{"$f":"ROUND(IF($F$525=0,0,H525/$F$525),5)","v":0},{"$f":"ROUND(IF($F$525=0,0,I525/$F$525),5)","v":0},{"$f":"SUM(G944:I944)","v":1},{"$f":"F944-J944","v":0},null,null,null,{"$f":"SUM(G944:I944)","v":1}]
[15,null,{"$f":"'FR-16(7)(v)-1 Functional'!C945","v":"WTD PROD ENERGY A&G EXP RATIOS"},"Internal",{"$f":"'FR-16(7)(v)-1 Functional'!E945","v":"A302"},1,{"$f":"ROUND(IF($F$526=0,0,G526/$F$526),5)","v":0},{"$f":"ROUND(IF($F$526=0,0,H526/$F$526),5)","v":1},{"$f":"ROUND(IF($F$526=0,0,I526/$F$526),5)","v":0},{"$f":"SUM(G945:I945)","v":1},{"$f":"F945-J945","v":0},null,null,null,1]
[16,null,{"$f":"'FR-16(7)(v)-1 Functional'!C946","v":"WTD TRANS A&G EXP RATIOS"},"Internal",{"$f":"'FR-16(7)(v)-1 Functional'!E946","v":"A304"},1,{"$f":"ROUND(IF($F$527=0,0,G527/$F$527),5)","v":0},{"$f":"ROUND(IF($F$527=0,0,H527/$F$527),5)","v":0},{"$f":"ROUND(IF($F$527=0,0,I527/$F$527),5)","v":0},0,1,null,null,null,0]
[17,null,{"$f":"'FR-16(7)(v)-1 Functional'!C947","v":"WTD DIST A&G EXP RATIOS"},"Internal",{"$f":"'FR-16(7)(v)-1 Functional'!E947","v":"A306"},1,{"$f":"ROUND(IF($F$528=0,0,G528/$F$528),5)","v":1},{"$f":"ROUND(IF($F$528=0,0,H528/$F$528),5)","v":0},{"$f":"ROUND(IF($F$528=0,0,I528/$F$528),5)","v":0},1,0,null,null,null,1]
[18,null,{"$f":"'FR-16(7)(v)-1 Functional'!C948","v":"WTD CUST ACCT A&G EXP RATIOS"},"Internal",{"$f":"'FR-16(7)(v)-1 Functional'!E948","v":"A308"},1,{"$f":"ROUND(IF($F$529=0,0,G529/$F$529),5)","v":0},{"$f":"ROUND(IF($F$529=0,0,H529/$F$529),5)","v":0},{"$f":"ROUND(IF($F$529=0,0,I529/$F$529),5)","v":0},0,1,null,null,null,0]
[19,null,{"$f":"'FR-16(7)(v)-1 Functional'!C949","v":"WTD CUST SERV & INFO A&G  EXP RATIOS"},"Internal",{"$f":"'FR-16(7)(v)-1 Functional'!E949","v":"A310"},1,{"$f":"ROUND(IF($F$530=0,0,G530/$F$530),5)","v":0},{"$f":"ROUND(IF($F$530=0,0,H530/$F$530),5)","v":0},{"$f":"ROUND(IF($F$530=0,0,I530/$F$530),5)","v":0},0,1,null,null,null,0]
[20,null,{"$f":"'FR-16(7)(v)-1 Functional'!C950","v":"WTD SALES A&G EXP RATIOS"},"Internal",{"$f":"'FR-16(7)(v)-1 Functional'!E950","v":"A312"},1,{"$f":"ROUND(IF($F$531=0,0,G531/$F$531),5)","v":0},{"$f":"ROUND(IF($F$531=0,0,H531/$F$531),5)","v":0},{"$f":"ROUND(IF($F$531=0,0,I531/$F$531),5)","v":0},0,1,null,null,null,0]
[21,null,{"$f":"'FR-16(7)(v)-1 Functional'!C951","v":"WTD A&G EXPENSE UNADJUSTED"},"Internal",{"$f":"'FR-16(7)(v)-1 Functional'!E951","v":"A315"},1,{"$f":"ROUND(IF($F$532=0,0,G532/$F$532),5)","v":0.4667},{"$f":"ROUND(IF($F$532=0,0,H532/$F$532),5)","v":0.5333},{"$f":"ROUND(IF($F$532=0,0,I532/$F$532),5)","v":0},1,0,null,null,null,1]
[22,null,{"$f":"'FR-16(7)(v)-1 Functional'!C952","v":"WTD A&G EXP RATIOS"},"Internal",{"$f":"'FR-16(7)(v)-1 Functional'!E952","v":"A357"},1,{"$f":"ROUND(IF($F$547=0,0,G547/$F$547),5)","v":0.4667},{"$f":"ROUND(IF($F$547=0,0,H547/$F$547),5)","v":0.5333},{"$f":"ROUND(IF($F$547=0,0,I547/$F$547),5)","v":0},1,0,null,null,null,1]
[23]
[24,"DEPRECIATION EXPENSES"]
[25,null,{"$f":"'FR-16(7)(v)-1 Functional'!C955","v":"WTD PRODUCTION DEPREC RATIOS"},"Internal",{"$f":"'FR-16(7)(v)-1 Functional'!E955","v":"P489"},1,{"$f":"ROUND(IF($F$563=0,0,G563/$F$563),5)","v":1},{"$f":"ROUND(IF(G563=0,0,H563/G563),5)","v":0},{"$f":"ROUND(IF(H563=0,0,I563/H563),5)","v":0},{"$f":"SUM(G955:I955)","v":1},{"$f":"F955-J955","v":0},null,null,null,{"$f":"SUM(G955:I955)","v":1}]
[26,null,{"$f":"'FR-16(7)(v)-1 Functional'!C956","v":"WTD TRANS DEPREC RATIOS"},"Internal",{"$f":"'FR-16(7)(v)-1 Functional'!E956","v":"T489"},1,{"$f":"ROUND(IF($F$567=0,0,G567/$F$567),5)","v":0},{"$f":"ROUND(IF($F$567=0,0,H567/$F$567),5)","v":0},{"$f":"ROUND(IF($F$567=0,0,I567/$F$567),5)","v":0},0,1,null,null,null,0]
[27,null,{"$f":"'FR-16(7)(v)-1 Functional'!C957","v":"WTD DIST DEPREC RATIOS"},"Internal",{"$f":"'FR-16(7)(v)-1 Functional'!E957","v":"D489"},1,{"$f":"ROUND(IF($F$571=0,0,G571/$F$571),5)","v":0},{"$f":"ROUND(IF($F$571=0,0,H571/$F$571),5)","v":0},{"$f":"ROUND(IF($F$571=0,0,I571/$F$571),5)","v":0},0,1,null,null,null,0]
[28,null,{"$f":"'FR-16(7)(v)-1 Functional'!C958","v":"WTD GENERAL DEPREC EXP RATIOS"},"Internal",{"$f":"'FR-16(7)(v)-1 Functional'!E958","v":"G489"},1,{"$f":"ROUND(IF($F$575=0,0,G575/$F$575),5)","v":0.56781000000000004},{"$f":"ROUND(IF($F$575=0,0,H575/$F$575),5)","v":0.43219000000000002},{"$f":"ROUND(IF($F$575=0,0,I575/$F$575),5)","v":0},1,0,null,null,null,1]
[29,null,{"$f":"'FR-16(7)(v)-1 Functional'!C959","v":"WTD COM & OTHER DEP EXP RATIOS"},"Internal",{"$f":"'FR-16(7)(v)-1 Functional'!E959","v":"C489"},1,{"$f":"ROUND(IF($F$579=0,0,G579/$F$579),5)","v":0.56733},{"$f":"ROUND(IF($F$579=0,0,H579/$F$579),5)","v":0.43267},{"$f":"ROUND(IF($F$579=0,0,I579/$F$579),5)","v":0},1,0,null,null,null,1]
[30,null,{"$f":"'FR-16(7)(v)-1 Functional'!C960","v":"WTD TOT DEPREC EXP RATIOS"},"Internal",{"$f":"'FR-16(7)(v)-1 Functional'!E960","v":"DE49"},1,{"$f":"ROUND(IF($F$582=0,0,G582/$F$582),5)","v":0.95540000000000003},{"$f":"ROUND(IF($F$582=0,0,H582/$F$582),5)","v":4.4600000000000001E-2},{"$f":"ROUND(IF($F$582=0,0,I582/$F$582),5)","v":0},1,0,null,null,null,1]
[31]
[32,"OTHER TAXES & MISC EXPENSES"]
[33,null,{"$f":"'FR-16(7)(v)-1 Functional'!C963","v":"WTD R. E. & PROP TAX RATIOS"},"Internal",{"$f":"'FR-16(7)(v)-1 Functional'!E963","v":"L529"},1,{"$f":"ROUND(IF($F$598=0,0,G598/$F$598),5)","v":0.97621000000000002},{"$f":"ROUND(IF(F598=0,0,H598/F598),5)","v":2.3789999999999999E-2},{"$f":"1-SUM(G963:H963)","v":0},{"$f":"SUM(G963:I963)","v":1},{"$f":"F963-J963","v":0},null,null,null,{"$f":"SUM(G963:I963)","v":1}]
[34,null,{"$f":"'FR-16(7)(v)-1 Functional'!C964","v":"WTD MISC TAX RATIOS"},"Internal",{"$f":"'FR-16(7)(v)-1 Functional'!E964","v":"L589"},1,{"$f":"ROUND(IF($F$605=0,0,G605/$F$605),5)","v":0.4667},{"$f":"ROUND(IF(F605=0,0,H605/F605),5)","v":0.5333},{"$f":"1-SUM(G964:H964)","v":0},{"$f":"SUM(G964:I964)","v":1},{"$f":"F964-J964","v":0},null,null,null,{"$f":"SUM(G964:I964)","v":1}]
[35,null,{"$f":"'FR-16(7)(v)-1 Functional'!C965","v":"WTD OTHER TAX RATIOS"},"Internal",{"$f":"'FR-16(7)(v)-1 Functional'!E965","v":"L599"},1,{"$f":"ROUND(IF($F$612=0,0,G612/$F$612),5)","v":0.93962000000000001},{"$f":"ROUND(IF(F617=0,0,H617/F617),5)","v":6.0380000000000003E-2},{"$f":"1-SUM(G965:H965)","v":0},{"$f":"SUM(G965:I965)","v":1},{"$f":"F965-J965","v":0},null,null,null,{"$f":"SUM(G965:I965)","v":1}]
[36,null,{"$f":"'FR-16(7)(v)-1 Functional'!C966","v":"WTD OP EXP EX IT & REV RATIOS"},"Internal",{"$f":"'FR-16(7)(v)-1 Functional'!E966","v":"OP69"},1,{"$f":"ROUND(IF($F$618=0,0,G618/$F$618),5)","v":0.26589000000000002},{"$f":"ROUND(IF(F618=0,0,H618/F618),5)","v":0.73411000000000004},{"$f":"1-SUM(G966:H966)","v":0},{"$f":"SUM(G966:I966)","v":1},{"$f":"F966-J966","v":0},null,null,null,{"$f":"SUM(G966:I966)","v":1}]
[37]
[38,"TOTAL COST OF SERVICE"]
[39,null,{"$f":"'FR-16(7)(v)-1 Functional'!C969","v":"WTD TOTAL COST OF SERVICE"},"Internal",{"$f":"'FR-16(7)(v)-1 Functional'!E969","v":"CS09"},1,{"$f":"ROUND(IF($F$770=0,0,G770/$F$770),9)","v":0.33128011299999999},{"$f":"ROUND(IF(F770=0,0,H770/F770),9)","v":0.66871988699999996},{"$f":"1-SUM(G969:H969)","v":0},{"$f":"SUM(G969:I969)","v":1},{"$f":"F969-J969","v":0},null,null,null,{"$f":"SUM(G969:I969)","v":1}]
[40]
[41,"WAGES & SALARIES (K600-K639)"]
[42,null,{"$f":"'FR-16(7)(v)-1 Functional'!C972","v":"WTD RATIOS"},"Internal",{"$f":"'FR-16(7)(v)-1 Functional'!E972","v":"K669"}]
[]
[]
[]
[]
[]
[]
[]
[]
[]
[1,"REVENUE NOT TO BE INCLUDED IN REVENUE TAX CALC"]
[2,null,"GOVERNMENTAL",null,"A357",{"$f":"ROUND(0.06889*0,0)","v":0},{"$f":"ROUND(F983*VLOOKUP(E983,AllocTable_Classified_Production,H10,FALSE),0)","v":0},{"$f":"ROUND(F983*VLOOKUP(E983,AllocTable_Classified_Production,$H$10,FALSE),0)","v":0},{"$f":"ROUND(F983*VLOOKUP(E983,AllocTable_Classified_Production,$I$10,FALSE),0)","v":0},{"$f":"SUM(G983:I983)","v":0},{"$f":"F983-J983","v":0}]
[3,null,"INTERDEPARTMENTAL",null,"A357",0,{"$f":"ROUND(F984*VLOOKUP(E984,AllocTable_Classified_Production,H10,FALSE),0)","v":0},0,0,0,0]
[4,null,"UNCOLLECTIBLE EXPENSE",null,"A357",0,{"$f":"ROUND(F985*VLOOKUP(E985,AllocTable_Classified_Production,H10,FALSE),0)","v":0},0,0,0,0]
[5,null,"OTHER PROD GAS ASSC COS  489050"," ",{"$f":"'FR-16(7)(v)-1 Functional'!E986","v":"K301"},0,{"$f":"ROUND(F986*VLOOKUP(E986,AllocTable_Classified_Production,H10,FALSE),0)","v":0},0,0,0,0]
[6,null,"MISC. REV. - SALE OF MATERIAL",null,"A357",0,{"$f":"ROUND(F987*VLOOKUP(E987,AllocTable_Classified_Production,H10,FALSE),0)","v":0},0,0,0,0]
[7,null,"RENT ASSOC. COS  49302,04,05,06,07,08,11 & 50"," ",{"$f":"'FR-16(7)(v)-1 Functional'!E988","v":"NP29"},0,{"$f":"ROUND(F988*VLOOKUP(E988,AllocTable_Classified_Production,H10,FALSE),0)","v":0},0,0,0,0]
[8,null,"TOTAL","REXC",null,{"$f":"SUM(F983:F988)","v":0},0,0,0,0,0]
[]
[]
[]
[]
[]
["DO NOT FILE THIS PAGE"]
[]
[{"$f":"co_name","v":"DUKE ENERGY KENTUCKY, INC."},null,null,null,null,null,null,null,null,{"$f":"J1","v":"FR-16(7)(v)-2"}]
[{"$f":"$A$2","v":"PRODUCTION CLASSIFIED - ELECTRIC COST OF SERVICE"},null,null,null,null,null,null,null,null,{"$f":"J2","v":"WITNESS RESPONSIBLE:"}]
[{"$f":"case_name","v":"CASE NO: 2019-00271"},null,null,null,null,null,null,null,null,{"$f":"Witness","v":"JAMES E. ZIOLKOWSKI"}]
[{"$f":"data_filing","v":"DATA: 12 MONTHS ACTUAL  & 0 MONTHS ESTIMATED"},null,null,null,null,null,null,null,null,{"$f":"\"PAGE \"&Pages&\" OF \"&Pages","v":"PAGE 18 OF 18"}]
[{"$f":"type","v":"TYPE OF FILING: \"X\" ORIGINAL   UPDATED    REVISED  "}]
[]
[]
["LINE",null,null,null,null,{"$f":"$F$8","v":"TOTAL"},"CLASSIFIED",null,null,"TOTAL","ALL"]
["NO.","INCOME TAX BASED ON REVENUES",null,"ALLO",null,{"$f":"$F$9","v":"PRODUCTION"},{"$f":"G9","v":"DEMAND"},"ENERGY","CUSTOMER","AT ISSUE","OTHER"]
[null,null,"Schedule 13",null,null,null,3,4,5]
[1,"NET INCOME COMPUTATION"]
[2,null,{"$f":"'FR-16(7)(v)-1 Functional'!C1008","v":"TOTAL ELECTRIC COST OF SERVICE"},null,null,{"$f":"F770","v":247048367},81842211,165206156,0,247048367,0]
[3,null,{"$f":"'FR-16(7)(v)-1 Functional'!C1009","v":"TOTAL OTHER OPERATING REVENUES"},null,null,{"$f":"F750","v":0},0,0,0,0,0]
[4,null,{"$f":"'FR-16(7)(v)-1 Functional'!C1010","v":"  TOTAL ELECTRIC REVENUE"},null,null,{"$f":"SUM(F1007:F1009)","v":247048367},81842211,165206156,0,247048367,0]
[5,null,{"$f":"'FR-16(7)(v)-1 Functional'!C1011","v":"TOTAL OP EXP EX INC & REV TAX"},null,null,{"$f":"-F618","v":-204595183},-54400774,-150194409,0,-204595183,0]
[6,null,{"$f":"'FR-16(7)(v)-1 Functional'!C1012","v":"FIRM SERVICE REVENUE TAX"},null,null,{"$f":"-ROUND(F817*F1008,0)","v":0},{"$f":"-ROUND(G817*G1008,0)","v":0},{"$f":"-ROUND(H817*H1008,0)","v":0},{"$f":"-ROUND(I817*I1008,0)","v":0},{"$f":"SUM(G1012:I1012)","v":0},{"$f":"-ROUND('FR-16(7)(v)-1 Functional'!K817*K1008,0)","v":0}]
[7,null,{"$f":"'FR-16(7)(v)-1 Functional'!C1013","v":"  NET INCOME"},null,null,{"$f":"SUM(F1010:F1012)","v":42453184},{"$f":"SUM(G1010:G1012)","v":27441437},{"$f":"SUM(H1010:H1012)","v":15011747},{"$f":"SUM(I1010:I1012)","v":0},{"$f":"SUM(G1013:I1013)","v":42453184},{"$f":"SUM(K1010:K1012)","v":0}]
[8]
[9,"ADJUSTMENTS TO NET INCOME"]
[10,null,{"$f":"'FR-16(7)(v)-1 Functional'!C1016","v":"TOTAL INTEREST EXPENSE"},null,null,{"$f":"-F633","v":-11000130},-10370923,-629207,0,-11000130,0]
[11,null,{"$f":"'FR-16(7)(v)-1 Functional'!C1017","v":"TOTAL OTHER DEDUCTIONS"},null,null,{"$f":"-F639","v":-50374857},-48260964,-2113893,0,-50374857,0]
[12,null,{"$f":"'FR-16(7)(v)-1 Functional'!C1018","v":"  PRELIMINARY TAXABLE INCOME"},null,null,{"$f":"SUM(F1015:F1017)+F1013","v":-18921803},{"$f":"SUM(G1015:G1017)+G1013","v":-31190450},{"$f":"SUM(H1015:H1017)+H1013","v":12268647},{"$f":"SUM(I1015:I1017)+I1013","v":0},{"$f":"SUM(G1018:I1018)","v":-18921803},{"$f":"SUM(K1015:K1017)+K1013","v":0}]
[13]
[14,"INCOME TAX BASED ON REVENUES"]
[15,"FEDERAL INCOME TAX COMPUTATION"]
[16,null,{"$f":"'FR-16(7)(v)-1 Functional'!C1022","v":"PRELIMINARY TAXABLE INCOME"},null,null,{"$f":"F1018","v":-18921803},-31190450,12268647,0,-18921803,0]
[17,null,{"$f":"'FR-16(7)(v)-1 Functional'!C1023","v":"  NET FEDERAL TAXABLE INCOME"},null,null,{"$f":"SUM(F1022:F1022)","v":-18921803},-31190450,12268647,0,-18921803,0]
[18,null,{"$f":"'FR-16(7)(v)-1 Functional'!C1024","v":"  FEDERAL INCOME TAX RATE"},null,null,{"$f":"F815","v":0.21},{"$f":"G815","v":0.21},{"$f":"H815","v":0.21},{"$f":"I815","v":0.21},null,{"$f":"'FR-16(7)(v)-1 Functional'!K815","v":0.21}]
[19,null,{"$f":"'FR-16(7)(v)-1 Functional'!C1025","v":"PRELIMINARY FIT = FI01 * K190"},null,null,{"$f":"ROUND(F1024*F1023,0)","v":-3973579},{"$f":"ROUND(G1024*G1023,0)","v":-6549995},{"$f":"ROUND(H1024*H1023,0)","v":2576416},{"$f":"ROUND(I1024*I1023,0)","v":0},{"$f":"SUM(G1025:I1025)","v":-3973579},{"$f":"ROUND(K1024*K1023,0)","v":0}]
[20,null,{"$f":"'FR-16(7)(v)-1 Functional'!C1026","v":"TOTAL FED DEF IT (410 & 411)"},null,null,{"$f":"F649","v":7783626},-784832,8568458,0,7783626,0]
[21,null,{"$f":"'FR-16(7)(v)-1 Functional'!C1027","v":"TOTAL AMORTIZED ITC"},null,null,{"$f":"-F653","v":-244},-238,-6,0,-244,0]
[22,null,{"$f":"'FR-16(7)(v)-1 Functional'!C1028","v":"  NET FED INC TAX ALLOWABLE"},null,null,{"$f":"SUM(F1025:F1027)","v":3809803},-7335065,11144868,0,3809803,0]
[23]
[24,"FEDERAL INCOME TAX PAYABLE"]
[25,null,{"$f":"'FR-16(7)(v)-1 Functional'!C1031","v":"PRELIM FIT"},null,null,{"$f":"F1025","v":-3973579},-6549995,2576416,0,-3973579,0]
[26,null,{"$f":"'FR-16(7)(v)-1 Functional'!C1032","v":"TEST YEAR INV TAX CREDIT"},null,null,{"$f":"-F658","v":0},0,0,0,0,0]
[27,null,{"$f":"'FR-16(7)(v)-1 Functional'!C1033","v":"  FED INC TAX PAYABLE"},null,null,{"$f":"SUM(F1030:F1032)","v":-3973579},-6549995,2576416,0,-3973579,0]
[28]
[29,"PRELIMINARY SUMMARY"]
[30,null,{"$f":"'FR-16(7)(v)-1 Functional'!C1036","v":"NET INCOME"},null,null,{"$f":"F1013","v":42453184},27441437,15011747,0,42453184,0]
[31,null,{"$f":"'FR-16(7)(v)-1 Functional'!C1037","v":"NET FED INC TAX ALLOWABLE"},null,null,{"$f":"-F1028","v":-3809803},7335065,-11144868,0,-3809803,0]
[32,null,{"$f":"'FR-16(7)(v)-1 Functional'!C1038","v":"  OVERALL RETURN EARNED"},null,null,{"$f":"SUM(F1035:F1037)","v":38643381},34776502,3866879,0,38643381,0]
[33]
[34,null,{"$f":"'FR-16(7)(v)-1 Functional'!C1040","v":"  RATE OF RETURN EARNED"},null,null,{"$f":"IF(F426=0,0,ROUND(F1038/F426,5))","v":6.9690000000000002E-2},6.6519999999999996E-2,0.12192,0,6.9690000000000002E-2,0]

{"sheet":"FR-16(7)(v)-3 PROD Demand","index":6,"n_rows":1040,"n_cols":23,"rows_kept":1040,"cut":false,"hidden":false,"merged":[]}
[{"$f":"co_name","v":"DUKE ENERGY KENTUCKY, INC."},null,null,null,null,null,null,null,null,null,null,null,null,null,null,null,null,"FR-16(7)(v)-3"]
[{"$f":"F8&\" \"&F9&\" ALLOCATED - ELECTRIC COST OF SERVICE\"","v":"PRODUCTION DEMAND ALLOCATED - ELECTRIC COST OF SERVICE"},null,null,null,null,null,null,null,null,null,null,null,null,null,null,null,null,"WITNESS RESPONSIBLE:"]
[{"$f":"case_name","v":"CASE NO: 2019-00271"},null,null,null,null,null,null,null,null,null,null,null,null,null,null,null,null,{"$f":"Witness","v":"JAMES E. ZIOLKOWSKI"}]
[{"$f":"data_filing","v":"DATA: 12 MONTHS ACTUAL  & 0 MONTHS ESTIMATED"},null,null,null,null,null,null,null,null,null,null,null,null,null,null,null,null,{"$f":"\"PAGE \"&Pages-17&\" OF \"&Pages","v":"PAGE 1 OF 18"}]
[{"$f":"type","v":"TYPE OF FILING: \"X\" ORIGINAL   UPDATED    REVISED  "}]
[]
[null,null,null,null,null,"TOTAL",null,"DS","GSFL","EH","SP","DT SEC","DT PRI","DP","TT",null,"OTHER"]
["LINE",null,null,null,null,"PRODUCTION","RS","SECONDARY","SECONDARY","SECONDARY","SECONDARY","SECONDARY","PRIMARY","PRIMARY","TRANSMISSION","LT","WATER","TOTAL","ALL"]
["NO.","SUMMARY OF RESULTS",null,"ALLO",null,"DEMAND","RESIDENTIAL","DISTRIBUTION","DISTRIBUTION","DISTRIBUTION","DISTRIBUTION","DISTRIBUTION","DISTRIBUTION","DISTRIBUTION","TIME OF DAY","LIGHTING","PUMPING","AT ISSUE","OTHER"]
[null,null,"Schedule 1",null,null,null,3,4,5,6,7,8,9,10,11,12,13]
[1,"NET INCOME COMPUTATION"]
[2,null,{"$f":"'FR-16(7)(v)-1 Functional'!C12","v":"GROSS ELECTRIC PLANT IN SERVICE"},null,null,{"$f":"F123","v":1248833815},{"$f":"G123","v":562949308},{"$f":"H123","v":337984384},{"$f":"I123","v":1623484},{"$f":"J123","v":6406518},87419,168517635,111408464,5382474,52788205,1548553,{"$f":"Q123","v":137371},{"$f":"SUM(G12:Q12)","v":1248833815},{"$f":"F12-R12","v":0}]
[3,null,{"$f":"'FR-16(7)(v)-1 Functional'!C13","v":"TOTAL DEPRECIATION RESERVE"},null,null,{"$f":"-F200","v":-606412760},{"$f":"-G200","v":-273414340},{"$f":"-H200","v":-164092154},{"$f":"-I200","v":-788204},{"$f":"-J200","v":-3110378},-42442,-81815677,-54089053,-2613203,-25628788,-751827,{"$f":"-Q200","v":-66694},{"$f":"SUM(G13:Q13)","v":-606412760},{"$f":"F13-R13","v":0}]
[4,null,{"$f":"'FR-16(7)(v)-1 Functional'!C14","v":"TOTAL RATE BASE ADJUSTMENTS"},null,null,{"$f":"F421","v":-119636775},{"$f":"G421","v":-52493518},{"$f":"H421","v":-33086355},{"$f":"I421","v":-158898},{"$f":"J421","v":-627065},-8560,-16496735,-10905699,-526843,-5168090,-151560,{"$f":"Q421","v":-13452},{"$f":"SUM(G14:Q14)","v":-119636775},{"$f":"F14-R14","v":0}]
[5,null,{"$f":"'FR-16(7)(v)-1 Functional'!C15","v":"  TOTAL RATE BASE"},null,null,{"$f":"SUM($F$12:F14)","v":522784280},{"$f":"SUM(G12:G14)","v":237041450},{"$f":"SUM(H12:H14)","v":140805875},{"$f":"SUM(I12:I14)","v":676382},{"$f":"SUM(J12:J14)","v":2669075},36417,70205223,46413712,2242428,21991327,645166,{"$f":"SUM(Q12:Q14)","v":57225},{"$f":"SUM(R12:R14)","v":522784280},{"$f":"F15-R15","v":0}]
[6]
[7,"OPERATING EXPENSES"]
[8,null,{"$f":"'FR-16(7)(v)-1 Functional'!C18","v":"TOTAL O&M EXPENSE"},null,null,{"$f":"F549","v":6535241},{"$f":"G549","v":6122502},{"$f":"H549","v":203378},{"$f":"I549","v":972},{"$f":"J549","v":3865},58,101408,67019,3257,31769,922,{"$f":"Q549","v":91},{"$f":"SUM(G18:Q18)","v":6535241},{"$f":"F18-R18","v":0}]
[9,null,{"$f":"'FR-16(7)(v)-1 Functional'!C19","v":"TOTAL DEPRECIATION EXPENSE"},null,null,{"$f":"F582","v":39987838},{"$f":"G582","v":18018226},{"$f":"H582","v":10825994},{"$f":"I582","v":52008},{"$f":"J582","v":205211},2799,5397789,3568535,172396,1690872,49609,{"$f":"Q582","v":4399},{"$f":"SUM(G19:Q19)","v":39987838},0]
[10,null,{"$f":"'FR-16(7)(v)-1 Functional'!C20","v":"TOTAL OTHER TAX & MISC EXPENSE"},null,null,{"$f":"F612","v":7877695},{"$f":"G612","v":3686034},{"$f":"H612","v":2065471},{"$f":"I612","v":9933},{"$f":"J612","v":39050},535,1029975,680814,32882,322577,9587,{"$f":"$Q$612","v":837},{"$f":"SUM(G20:Q20)","v":7877695},0]
[11,null,{"$f":"'FR-16(7)(v)-1 Functional'!C21","v":"  TOTAL OP EXP EXCLUDING INC & REV TAX"},null,null,{"$f":"SUM($F$17:F20)","v":54400774},{"$f":"SUM(G17:G20)","v":27826762},{"$f":"SUM(H17:H20)","v":13094843},{"$f":"SUM(I17:I20)","v":62913},{"$f":"SUM(J17:J20)","v":248126},3392,6529172,4316368,208535,2045218,60118,{"$f":"SUM(Q17:Q20)","v":5327},{"$f":"SUM(R17:R20)","v":54400774},0]
[12,null,{"$f":"'FR-16(7)(v)-1 Functional'!C22","v":"NET FED INCOME TAX EXP ALLOWABLE"},null,null,{"$f":"F676","v":-6959928},{"$f":"G676","v":-3430658},{"$f":"H676","v":-1739140},{"$f":"I676","v":-8374},{"$f":"J676","v":-32909},-446,-867202,-573274,-27675,-271555,-7992,{"$f":"$Q$676","v":-703},{"$f":"SUM(G22:Q22)","v":-6959928},0]
[13,null,"NET STATE INCOME TAX EXP ALLOWABLE",null,null,{"$f":"F722","v":-682555},{"$f":"G722","v":308320},-488275,-2349,-9246,-127,-243473,-160956,-7765,-76245,-2239,-200,{"$f":"SUM(G23:Q23)","v":-682555},0]
[14,null,"RESERVED",{"$f":"'FR-16(7)(v)-1 Functional'!D24","v":"CW29"},null,{"$f":"'FR-16(7)(v)-2 PROD Classified'!G24","v":0},{"$f":"F24-SUM(H24:Q24)","v":0},{"$f":"ROUND(F24*VLOOKUP(D73,ALLOCTABLE_Prod_Demand,$H$10,FALSE),0)","v":0},{"$f":"ROUND(F24*VLOOKUP($D$24,ALLOCTABLE_Prod_Demand,$I$10,FALSE),0)","v":0},{"$f":"ROUND(F24*VLOOKUP($D$24,ALLOCTABLE_Prod_Demand,$J$10,FALSE),0)","v":0},{"$f":"ROUND(F24*VLOOKUP($D$24,ALLOCTABLE_Prod_Demand,$K$10,FALSE),0)","v":0},{"$f":"ROUND(F24*VLOOKUP($D$24,ALLOCTABLE_Prod_Demand,$L$10,FALSE),0)","v":0},{"$f":"ROUND(F24*VLOOKUP($D$24,ALLOCTABLE_Prod_Demand,$M$10,FALSE),0)","v":0},{"$f":"ROUND(F24*VLOOKUP($D$24,ALLOCTABLE_Prod_Demand,$N$10,FALSE),0)","v":0},{"$f":"ROUND(F24*VLOOKUP($D$24,ALLOCTABLE_Prod_Demand,$O$10,FALSE),0)","v":0},{"$f":"ROUND(F24*VLOOKUP($D$24,ALLOCTABLE_Prod_Demand,$P$10,FALSE),0)","v":0},{"$f":"ROUND(F24*VLOOKUP(D24,ALLOCTABLE_Prod_Demand,$Q$10,FALSE),0)","v":0},{"$f":"SUM(G24:Q24)","v":0},{"$f":"F24-R24","v":0}]
[15,null,{"$f":"'FR-16(7)(v)-1 Functional'!C25","v":"REVENUE TAX"},null,null,{"$f":"F767","v":0},{"$f":"G767","v":0},{"$f":"H767","v":0},{"$f":"I767","v":0},{"$f":"J767","v":0},0,0,0,0,0,0,{"$f":"Q767","v":0},{"$f":"SUM(G25:Q25)","v":0},0]
[16,null,{"$f":"'FR-16(7)(v)-1 Functional'!C26","v":"  TOTAL OPERATING EXPENSE"},null,null,{"$f":"SUM($F$21:F25)","v":46758291},{"$f":"SUM(G21:G25)","v":24704424},{"$f":"SUM(H21:H25)","v":10867428},{"$f":"SUM(I21:I25)","v":52190},{"$f":"SUM(J21:J25)","v":205971},2819,5418497,3582138,173095,1697418,49887,{"$f":"SUM(Q21:Q25)","v":4424},{"$f":"SUM(R21:R25)","v":46758291},0]
[17]
[18,"RETURN ON RATE BASE",null,null,null,{"$f":"F433","v":35083922},15907752,9449503,45258,179279,2456,4711420,3114751,150510,1475981,43153,3859,{"$f":"SUM(G28:Q28)","v":35083922},{"$f":"F28-R28","v":0}]
[19,"TOTAL OTHER OPERATING REVENUES",null,null,null,{"$f":"-F750","v":0},{"$f":"-G750","v":0},{"$f":"-H750","v":0},{"$f":"-I750","v":0},{"$f":"-J750","v":0},0,0,0,0,0,0,{"$f":"-$Q$750","v":0},{"$f":"SUM(G29:Q29)","v":0},0]
[20,null,{"$f":"'FR-16(7)(v)-1 Functional'!C30","v":"TOTAL ELECTRIC COST OF SERVICE"},null,null,{"$f":"SUM($F$26:F29)","v":81842213},{"$f":"SUM(G26:G29)","v":40612176},{"$f":"SUM(H26:H29)","v":20316931},{"$f":"SUM(I26:I29)","v":97448},{"$f":"SUM(J26:J29)","v":385250},5275,10129917,6696889,323605,3173399,93040,{"$f":"SUM(Q26:Q29)","v":8283},{"$f":"SUM(R26:R29)","v":81842213},0]
[21,"ADJUSTMENT FOR INTERCLASS SUBSIDIZATION",null,{"$f":"1-'WP FR-16(7)(v) Rate Incr'!I11","v":0.95},null,{"$f":"'WP FR-16(7)(v) Rate Incr'!Q27","v":0},{"$f":"'WP FR-16(7)(v) Rate Incr'!Q15","v":-9336840},{"$f":"'WP FR-16(7)(v) Rate Incr'!Q16","v":6445498},{"$f":"'WP FR-16(7)(v) Rate Incr'!Q17","v":89344},{"$f":"'WP FR-16(7)(v) Rate Incr'!R17","v":6774},{"$f":"'WP FR-16(7)(v) Rate Incr'!S17","v":56376},{"$f":"'WP FR-16(7)(v) Rate Incr'!T17","v":111986},{"$f":"'WP FR-16(7)(v) Rate Incr'!U17","v":0},{"$f":"'WP FR-16(7)(v) Rate Incr'!V17","v":40507},{"$f":"'WP FR-16(7)(v) Rate Incr'!W17","v":0},{"$f":"'WP FR-16(7)(v) Rate Incr'!X17","v":0},{"$f":"'WP FR-16(7)(v) Rate Incr'!Q25","v":-9875},{"$f":"SUM(G31:Q31)","v":-2596230},2596230]
[22,{"$f":"'FR-16(7)(v)-1 Functional'!$B$32","v":"REQUESTED REVENUES (COST OF SERVICE ADJUSTED FOR SUBSIDIES)"},null,null,null,{"$f":"F31+F30","v":81842213},31275336,26762429,186792,{"$f":"J31+J30","v":392024},61651,10241903,6696889,364112,3173399,93040,-1592,79245983,2596230]
[23,"PROPOSED REVENUES",null,null,null,{"$f":"F868","v":106929095},105636323,637297,3208,{"$f":"J868","v":11762},0,317579,209581,10693,99444,3208,0,106929095,0]
[24,"DIFFERENCE (REQUESTED LESS PROPOSED)",null,null,null,{"$f":"F32-F33","v":-25086882},{"$f":"G32-G33","v":-74360987},26125132,183584,{"$f":"J32-J33","v":380262},61651,9924324,6487308,353419,3073955,89832,-1592,-27683112,2596230]
[25]
[26,"TOTAL RETURN EARNED",null,null,null,{"$f":"F777+F28","v":53917870},{"$f":"G777+G28","v":64724555},{"$f":"H777+H28","v":-5324960},{"$f":"I777+I28","v":-25493},{"$f":"J777+J28","v":-101117},-1504,-2655181,-1755588,-84408,-831787,-24288,{"$f":"Q777+Q28","v":-2359},{"$f":"R777+R28","v":53917870},{"$f":"F36-R36","v":0}]
[27,"RATE OF RETURN EARNED",null,null,null,{"$f":"IF($F$431=0,0,ROUND($F$36/F431,5))","v":0.10314},{"$f":"IF(G431=0,0,ROUND(G36/G431,5))","v":0.27305000000000001},-3.7819999999999999E-2,-3.78E-2,-3.7850000000000002E-2,-4.1099999999999998E-2,-3.7819999999999999E-2,-3.7830000000000003E-2,-3.764E-2,-3.7819999999999999E-2,-3.7769999999999998E-2,-4.1020000000000001E-2,0.10314,0]
[28,"TOTAL RATE OF RETURN ALLOWABLE",null,null,null,{"$f":"$F$811","v":6.7100000000000007E-2},{"$f":"$F$811","v":6.7100000000000007E-2},6.7100000000000007E-2,6.7100000000000007E-2,6.7100000000000007E-2,6.7100000000000007E-2,6.7100000000000007E-2,6.7100000000000007E-2,6.7100000000000007E-2,6.7100000000000007E-2,6.7100000000000007E-2,6.7100000000000007E-2,{"$f":"F811","v":6.7100000000000007E-2},{"$f":"F811","v":6.7100000000000007E-2},null,null,"Not Part of print range"]
[29,"RETURN EARNED ON COMMON EQUITY",null,null,null,{"$f":"IF(Equity=0,0,(F37-$F$806-$F$807-$F$809)*TotalCap/Equity)","v":0.17278138922295525},0.52504063859747341,-0.11945840709175286,-0.11941694287547665,-0.11952060341616717,-0.12625853856105082,-0.11945840709175286,-0.11947913919989096,-0.11908522914526699,-0.11945840709175286,-0.11935474655106233,-0.12609268169594601,{"$f":"IF(Equity=0,0,(R37-F806-F807-F809)*TotalCap/Equity)","v":0.17278138922295525},{"$f":"IF(Equity=0,0,(S37-F806-F807-F809)*TotalCap/Equity)","v":-4.1049574113445099E-2},null,null,"Not Filed"]
[30,"ALLOWED RETURN ON COMMON EQUITY",null,null,null,{"$f":"IF(Equity=0,0,(F38-$F$806-$F$807-$F$809)*TotalCap/Equity)","v":9.8062871493229981E-2},9.8062871493229981E-2,9.8062871493229981E-2,9.8062871493229981E-2,9.8062871493229981E-2,9.8062871493229981E-2,9.8062871493229981E-2,9.8062871493229981E-2,9.8062871493229981E-2,9.8062871493229981E-2,9.8062871493229981E-2,9.8062871493229981E-2,{"$f":"IF(Equity=0,0,(R38-F806-F807-F809)*TotalCap/Equity)","v":9.8062871493229981E-2},{"$f":"IF(Equity=0,0,(S38-F806-F807-F809)*TotalCap/Equity)","v":9.8062871493229981E-2}]
[31,null,null,null,null," "]
[32,"PRESENT REVENUES",null,null,null,{"$f":"F867","v":71578233},35518930,17768948,85227,{"$f":"J867","v":336935},4613,8859506,5857020,283021,2775417,81372,7244,71578233,{"$f":"F42-R42","v":0}]
[33,"REVENUE INCREASE JUSTIFIED",null,null,null,{"$f":"F30-F42","v":10263980},5093246,2547983,12221,{"$f":"J30-J42","v":48315},662,1270411,839869,40584,397982,11668,1039,10263980,0]
[34,null,"PER UNIT PRES REV",null,null,{"$f":"IF($F$42=0,0,ROUND($F$43/F42,5))","v":0.1434},{"$f":"IF(G42=0,0,ROUND(G43/G42,5))","v":0.1434},0.1434,0.14338999999999999,{"$f":"IF(J42=0,0,ROUND(J43/J42,5))","v":0.1434},0.14351,0.1434,0.1434,0.1434,0.1434,0.14338999999999999,0.14343,0.1434,0]
[35,"REVENUE INCREASE REQUESTED",null,null,null,{"$f":"F33-F42","v":35350862},70117393,-17131651,-82019,{"$f":"J33-J42","v":-325173},-4613,-8541927,-5647439,-272328,-2675973,-78164,-7244,35350862,0]
[36,null,"PER UNIT PRES REV",null,null,{"$f":"IF($F$42=0,0,ROUND($F$45/F42,5))","v":0.49387999999999999},{"$f":"IF(G42=0,0,ROUND(G45/G42,5))","v":1.9740899999999999},-0.96413000000000004,-0.96235999999999999,{"$f":"IF(J42=0,0,ROUND(J45/J42,5))","v":-0.96509},-1,-0.96414999999999995,-0.96421999999999997,-0.96221999999999996,-0.96416999999999997,-0.96057999999999999,-1,0.49387999999999999,0]
[]
[{"$f":"co_name","v":"DUKE ENERGY KENTUCKY, INC."},null,null,null,null,null,null,null,null,null,null,null,null,null,null,null,null,{"$f":"R1","v":"FR-16(7)(v)-3"}]
[{"$f":"$A$2","v":"PRODUCTION DEMAND ALLOCATED - ELECTRIC COST OF SERVICE"},null,null,null,null,null,null,null,null,null,null,null,null,null,null,null,null,{"$f":"R2","v":"WITNESS RESPONSIBLE:"}]
[{"$f":"case_name","v":"CASE NO: 2019-00271"},null,null,null,null,null,null,null,null,null,null,null,null,null,null,null,null,{"$f":"Witness","v":"JAMES E. ZIOLKOWSKI"}]
[{"$f":"data_filing","v":"DATA: 12 MONTHS ACTUAL  & 0 MONTHS ESTIMATED"},null,null,null,null,null,null,null,null,null,null,null,null,null,null,null,null,{"$f":"\"PAGE \"&Pages-16&\" OF \"&Pages","v":"PAGE 2 OF 18"}]
[{"$f":"type","v":"TYPE OF FILING: \"X\" ORIGINAL   UPDATED    REVISED  "}]
[]
[null,null,null,null,null,{"$f":"F$7","v":"TOTAL"},null,{"$f":"H$7","v":"DS"},{"$f":"I$7","v":"GSFL"},{"$f":"J$7","v":"EH"},{"$f":"K$7","v":"SP"},"DT SEC","DT PRI","DP","TT",null,"OTHER"]
["LINE",null,null,null,null,{"$f":"F$8","v":"PRODUCTION"},{"$f":"G$8","v":"RS"},{"$f":"H$8","v":"SECONDARY"},{"$f":"I$8","v":"SECONDARY"},{"$f":"J$8","v":"SECONDARY"},{"$f":"K$8","v":"SECONDARY"},"SECONDARY","PRIMARY","PRIMARY","TRANSMISSION","LT","WATER",{"$f":"R8","v":"TOTAL"},"ALL"]
["NO.","GROSS ELECTRIC PLANT IN SERVICE",null,"ALLO",null,{"$f":"F$9","v":"DEMAND"},{"$f":"G$9","v":"RESIDENTIAL"},{"$f":"H$9","v":"DISTRIBUTION"},{"$f":"I$9","v":"DISTRIBUTION"},{"$f":"J$9","v":"DISTRIBUTION"},{"$f":"K$9","v":"DISTRIBUTION"},"DISTRIBUTION","DISTRIBUTION","DISTRIBUTION","TIME OF DAY","LIGHTING","PUMPING",{"$f":"R9","v":"AT ISSUE"},"OTHER"]
[null,null,"Schedule 2",null,null,null,{"$f":"G$10","v":3},{"$f":"H$10","v":4},{"$f":"I$10","v":5},{"$f":"J$10","v":6},{"$f":"K$10","v":7},8,9,10,11,12,13,null," "]
[1,"PRODUCTION PLANT"]
[2,null,"PRODUCTION STEAM",{"$f":"'FR-16(7)(v)-1 Functional'!D59","v":"K201"},null,{"$f":"'FR-16(7)(v)-2 PROD Classified'!G59","v":835340554},{"$f":"F59-SUM(H59:Q59)","v":376554815},{"$f":"ROUND($F$59*VLOOKUP(D59,ALLOCTABLE_Prod_Demand,$H$10,FALSE),0)","v":226076568},{"$f":"ROUND($F$59*VLOOKUP($D$59,ALLOCTABLE_Prod_Demand,$I$10,FALSE),0)","v":1085943},{"$f":"ROUND($F$59*VLOOKUP($D$59,ALLOCTABLE_Prod_Demand,$J$10,FALSE),0)","v":4285297},{"$f":"ROUND($F$59*VLOOKUP($D$59,ALLOCTABLE_Prod_Demand,$K$10,FALSE),0)","v":58474},{"$f":"ROUND($F$59*VLOOKUP($D$59,ALLOCTABLE_Prod_Demand,$L$10,FALSE),0)","v":112720854},{"$f":"ROUND($F$59*VLOOKUP($D$59,ALLOCTABLE_Prod_Demand,$M$10,FALSE),0)","v":74520731},{"$f":"ROUND($F$59*VLOOKUP($D$59,ALLOCTABLE_Prod_Demand,$N$10,FALSE),0)","v":3600318},{"$f":"ROUND($F$59*VLOOKUP($D$59,ALLOCTABLE_Prod_Demand,$O$10,FALSE),0)","v":35309845},{"$f":"ROUND($F$59*VLOOKUP($D$59,ALLOCTABLE_Prod_Demand,$P$10,FALSE),0)","v":1035822},{"$f":"ROUND($F$59*VLOOKUP(D59,ALLOCTABLE_Prod_Demand,$Q$10,FALSE),0)","v":91887},{"$f":"SUM(G59:Q59)","v":835340554},{"$f":"F59-R59","v":0}]
[3,null,"PRODUCTION OTHER",{"$f":"'FR-16(7)(v)-1 Functional'!D60","v":"K201"},null,{"$f":"'FR-16(7)(v)-2 PROD Classified'!G60","v":373451984},{"$f":"F60-SUM(H60:Q60)","v":168344685},{"$f":"ROUND($F$60*VLOOKUP(D60,ALLOCTABLE_Prod_Demand,$H$10,FALSE),0)","v":101071045},{"$f":"ROUND($F$60*VLOOKUP($D$60,ALLOCTABLE_Prod_Demand,$I$10,FALSE),0)","v":485488},{"$f":"ROUND($F$60*VLOOKUP($D$60,ALLOCTABLE_Prod_Demand,$J$10,FALSE),0)","v":1915809},{"$f":"ROUND($F$60*VLOOKUP($D$60,ALLOCTABLE_Prod_Demand,$K$10,FALSE),0)","v":26142},{"$f":"ROUND($F$60*VLOOKUP($D$60,ALLOCTABLE_Prod_Demand,$L$10,FALSE),0)","v":50393611},{"$f":"ROUND($F$60*VLOOKUP($D$60,ALLOCTABLE_Prod_Demand,$M$10,FALSE),0)","v":33315651},{"$f":"ROUND($F$60*VLOOKUP($D$60,ALLOCTABLE_Prod_Demand,$N$10,FALSE),0)","v":1609578},{"$f":"ROUND($F$60*VLOOKUP($D$60,ALLOCTABLE_Prod_Demand,$O$10,FALSE),0)","v":15785815},{"$f":"ROUND($F$60*VLOOKUP($D$60,ALLOCTABLE_Prod_Demand,$P$10,FALSE),0)","v":463080},{"$f":"ROUND($F$60*VLOOKUP(D60,ALLOCTABLE_Prod_Demand,$Q$10,FALSE),0)","v":41080},{"$f":"SUM(G60:Q60)","v":373451984},{"$f":"F60-R60","v":0}]
[4,null,{"$f":"'FR-16(7)(v)-1 Functional'!C61","v":"ADJUSTMENT"},{"$f":"'FR-16(7)(v)-1 Functional'!D61","v":"K201"},null,{"$f":"'FR-16(7)(v)-2 PROD Classified'!G61","v":0},{"$f":"F61-SUM(H61:Q61)","v":0},{"$f":"ROUND($F$61*VLOOKUP(D61,ALLOCTABLE_Prod_Demand,$H$10,FALSE),0)","v":0},{"$f":"ROUND($F$61*VLOOKUP($D$61,ALLOCTABLE_Prod_Demand,$I$10,FALSE),0)","v":0},{"$f":"ROUND($F$61*VLOOKUP($D$61,ALLOCTABLE_Prod_Demand,$J$10,FALSE),0)","v":0},{"$f":"ROUND($F$61*VLOOKUP($D$61,ALLOCTABLE_Prod_Demand,$K$10,FALSE),0)","v":0},{"$f":"ROUND($F$61*VLOOKUP($D$61,ALLOCTABLE_Prod_Demand,$L$10,FALSE),0)","v":0},{"$f":"ROUND($F$61*VLOOKUP($D$61,ALLOCTABLE_Prod_Demand,$M$10,FALSE),0)","v":0},{"$f":"ROUND($F$61*VLOOKUP($D$61,ALLOCTABLE_Prod_Demand,$N$10,FALSE),0)","v":0},{"$f":"ROUND($F$61*VLOOKUP($D$61,ALLOCTABLE_Prod_Demand,$O$10,FALSE),0)","v":0},{"$f":"ROUND($F$61*VLOOKUP($D$61,ALLOCTABLE_Prod_Demand,$P$10,FALSE),0)","v":0},{"$f":"ROUND($F$61*VLOOKUP(D61,ALLOCTABLE_Prod_Demand,$Q$10,FALSE),0)","v":0},{"$f":"SUM(G61:Q61)","v":0},{"$f":"F61-R61","v":0}]
[5,null,{"$f":"'FR-16(7)(v)-1 Functional'!C62","v":"  PRODUCTION PLANT IN SERVICE"},null,null,{"$f":"SUM($F$59:F61)","v":1208792538},{"$f":"SUM(G59:G61)","v":544899500},{"$f":"SUM(H59:H61)","v":327147613},{"$f":"SUM(I59:I61)","v":1571431},{"$f":"SUM(J59:J61)","v":6201106},84616,163114465,107836382,5209896,51095660,1498902,{"$f":"SUM($Q$59:$Q$61)","v":132967},{"$f":"SUM(R59:R61)","v":1208792538},{"$f":"SUM(S59:S61)","v":0}]
[6]
[7,"TRANSMISSION PLANT"]
[8,null,"MAIN STEP-UP TRANSFORMERS",{"$f":"'FR-16(7)(v)-1 Functional'!D65","v":"K202"},null,{"$f":"'FR-16(7)(v)-2 PROD Classified'!G65","v":0},{"$f":"F65-SUM(H65:Q65)","v":0},{"$f":"ROUND($F$65*VLOOKUP(D65,ALLOCTABLE_Prod_Demand,$H$10,FALSE),0)","v":0},{"$f":"ROUND($F$65*VLOOKUP($D$65,ALLOCTABLE_Prod_Demand,$I$10,FALSE),0)","v":0},{"$f":"ROUND($F$65*VLOOKUP($D$65,ALLOCTABLE_Prod_Demand,$J$10,FALSE),0)","v":0},{"$f":"ROUND($F$65*VLOOKUP($D$65,ALLOCTABLE_Prod_Demand,$K$10,FALSE),0)","v":0},{"$f":"ROUND($F$65*VLOOKUP($D$65,ALLOCTABLE_Prod_Demand,$L$10,FALSE),0)","v":0},{"$f":"ROUND($F$65*VLOOKUP($D$65,ALLOCTABLE_Prod_Demand,$M$10,FALSE),0)","v":0},{"$f":"ROUND($F$65*VLOOKUP($D$65,ALLOCTABLE_Prod_Demand,$N$10,FALSE),0)","v":0},{"$f":"ROUND($F$65*VLOOKUP($D$65,ALLOCTABLE_Prod_Demand,$O$10,FALSE),0)","v":0},{"$f":"ROUND($F$65*VLOOKUP($D$65,ALLOCTABLE_Prod_Demand,$P$10,FALSE),0)","v":0},{"$f":"ROUND($F$65*VLOOKUP(D65,ALLOCTABLE_Prod_Demand,$Q$10,FALSE),0)","v":0},{"$f":"SUM(G65:Q65)","v":0},{"$f":"F65-R65","v":0}]
[9,null,"OTHER TRANSMISSION",{"$f":"'FR-16(7)(v)-1 Functional'!D66","v":"K202"},null,{"$f":"'FR-16(7)(v)-2 PROD Classified'!G66","v":0},{"$f":"F66-SUM(H66:Q66)","v":0},{"$f":"ROUND($F$66*VLOOKUP(D66,ALLOCTABLE_Prod_Demand,$H$10,FALSE),0)","v":0},{"$f":"ROUND($F$66*VLOOKUP($D$66,ALLOCTABLE_Prod_Demand,$I$10,FALSE),0)","v":0},{"$f":"ROUND($F$66*VLOOKUP($D$66,ALLOCTABLE_Prod_Demand,$J$10,FALSE),0)","v":0},{"$f":"ROUND($F$66*VLOOKUP($D$66,ALLOCTABLE_Prod_Demand,$K$10,FALSE),0)","v":0},{"$f":"ROUND($F$66*VLOOKUP($D$66,ALLOCTABLE_Prod_Demand,$L$10,FALSE),0)","v":0},{"$f":"ROUND($F$66*VLOOKUP($D$66,ALLOCTABLE_Prod_Demand,$M$10,FALSE),0)","v":0},{"$f":"ROUND($F$66*VLOOKUP($D$66,ALLOCTABLE_Prod_Demand,$N$10,FALSE),0)","v":0},{"$f":"ROUND($F$66*VLOOKUP($D$66,ALLOCTABLE_Prod_Demand,$O$10,FALSE),0)","v":0},{"$f":"ROUND($F$66*VLOOKUP($D$66,ALLOCTABLE_Prod_Demand,$P$10,FALSE),0)","v":0},{"$f":"ROUND($F$66*VLOOKUP(D66,ALLOCTABLE_Prod_Demand,$Q$10,FALSE),0)","v":0},{"$f":"SUM(G66:Q66)","v":0},{"$f":"F66-R66","v":0}]
[10,null,"ADJUSTMENT",{"$f":"'FR-16(7)(v)-1 Functional'!D67","v":"K202"},null,{"$f":"'FR-16(7)(v)-2 PROD Classified'!G67","v":0},{"$f":"F67-SUM(H67:Q67)","v":0},{"$f":"ROUND($F$67*VLOOKUP(D67,ALLOCTABLE_Prod_Demand,$H$10,FALSE),0)","v":0},{"$f":"ROUND($F$67*VLOOKUP($D$67,ALLOCTABLE_Prod_Demand,$I$10,FALSE),0)","v":0},{"$f":"ROUND($F$67*VLOOKUP($D$67,ALLOCTABLE_Prod_Demand,$J$10,FALSE),0)","v":0},{"$f":"ROUND($F$67*VLOOKUP($D$67,ALLOCTABLE_Prod_Demand,$K$10,FALSE),0)","v":0},{"$f":"ROUND($F$67*VLOOKUP($D$67,ALLOCTABLE_Prod_Demand,$L$10,FALSE),0)","v":0},{"$f":"ROUND($F$67*VLOOKUP($D$67,ALLOCTABLE_Prod_Demand,$M$10,FALSE),0)","v":0},{"$f":"ROUND($F$67*VLOOKUP($D$67,ALLOCTABLE_Prod_Demand,$N$10,FALSE),0)","v":0},{"$f":"ROUND($F$67*VLOOKUP($D$67,ALLOCTABLE_Prod_Demand,$O$10,FALSE),0)","v":0},{"$f":"ROUND($F$67*VLOOKUP($D$67,ALLOCTABLE_Prod_Demand,$P$10,FALSE),0)","v":0},{"$f":"ROUND($F$67*VLOOKUP(D67,ALLOCTABLE_Prod_Demand,$Q$10,FALSE),0)","v":0},{"$f":"SUM(G67:Q67)","v":0},{"$f":"F67-R67","v":0}]
[11,null,{"$f":"'FR-16(7)(v)-1 Functional'!C68","v":"  TRANSMISSION PLANT IN SERVICE"},null,null,{"$f":"SUM($F$65:F67)","v":0},{"$f":"SUM(G65:G67)","v":0},0,0,0,0,0,0,0,0,0,0,0,{"$f":"SUM(S65)","v":0}]
[12]
[13,"TOTAL PROD & TRANS PLANT",null,null,null,{"$f":"F68+F62","v":1208792538},{"$f":"G68+G62","v":544899500},{"$f":"H68+H62","v":327147613},{"$f":"I68+I62","v":1571431},{"$f":"J68+J62","v":6201106},84616,163114465,107836382,5209896,51095660,1498902,{"$f":"$Q$68+$Q$62","v":132967},{"$f":"R68+R62","v":1208792538},{"$f":"S68+S62","v":0}]
[14]
[15,"DISTRIBUTION PLANT"]
[16,null,{"$f":"'FR-16(7)(v)-1 Functional'!C73","v":"SUBSTATIONS"},{"$f":"'FR-16(7)(v)-1 Functional'!D73","v":"K215"},null,{"$f":"'FR-16(7)(v)-2 PROD Classified'!G73","v":0},{"$f":"F73-SUM(H73:Q73)","v":0},{"$f":"ROUND($F$73*VLOOKUP(D73,ALLOCTABLE_Prod_Demand,$H$10,FALSE),0)","v":0},{"$f":"ROUND($F$73*VLOOKUP($D$73,ALLOCTABLE_Prod_Demand,$I$10,FALSE),0)","v":0},{"$f":"ROUND($F$73*VLOOKUP($D$73,ALLOCTABLE_Prod_Demand,$J$10,FALSE),0)","v":0},{"$f":"ROUND($F$73*VLOOKUP($D$73,ALLOCTABLE_Prod_Demand,$K$10,FALSE),0)","v":0},{"$f":"ROUND($F$73*VLOOKUP($D$73,ALLOCTABLE_Prod_Demand,$L$10,FALSE),0)","v":0},{"$f":"ROUND($F$73*VLOOKUP($D$73,ALLOCTABLE_Prod_Demand,$M$10,FALSE),0)","v":0},{"$f":"ROUND($F$73*VLOOKUP($D$73,ALLOCTABLE_Prod_Demand,$N$10,FALSE),0)","v":0},{"$f":"ROUND($F$73*VLOOKUP($D$73,ALLOCTABLE_Prod_Demand,$O$10,FALSE),0)","v":0},{"$f":"ROUND($F$73*VLOOKUP($D$73,ALLOCTABLE_Prod_Demand,$P$10,FALSE),0)","v":0},{"$f":"ROUND($F$73*VLOOKUP(D73,ALLOCTABLE_Prod_Demand,$Q$10,FALSE),0)","v":0},{"$f":"SUM(G73:Q73)","v":0},{"$f":"F73-R73","v":0}]
[17,null,{"$f":"'FR-16(7)(v)-1 Functional'!C74","v":"POLES, TOWERS  & FIXTURES - PRIMARY - DEMAND"},{"$f":"'FR-16(7)(v)-1 Functional'!D74","v":"K205"},null,{"$f":"'FR-16(7)(v)-2 PROD Classified'!G74","v":0},{"$f":"F74-SUM(H74:Q74)","v":0},{"$f":"ROUND(F74*VLOOKUP(D74,ALLOCTABLE_Prod_Demand,$H$10,FALSE),0)","v":0},{"$f":"ROUND(F74*VLOOKUP(D74,ALLOCTABLE_Prod_Demand,$I$10,FALSE),0)","v":0},{"$f":"ROUND(F74*VLOOKUP(D74,ALLOCTABLE_Prod_Demand,$J$10,FALSE),0)","v":0},{"$f":"ROUND(F74*VLOOKUP(D74,ALLOCTABLE_Prod_Demand,$K$10,FALSE),0)","v":0},{"$f":"ROUND(F74*VLOOKUP(D74,ALLOCTABLE_Prod_Demand,$L$10,FALSE),0)","v":0},{"$f":"ROUND(F74*VLOOKUP(D74,ALLOCTABLE_Prod_Demand,$M$10,FALSE),0)","v":0},{"$f":"ROUND(F74*VLOOKUP(D74,ALLOCTABLE_Prod_Demand,$N$10,FALSE),0)","v":0},{"$f":"ROUND(F74*VLOOKUP(D74,ALLOCTABLE_Prod_Demand,$O$10,FALSE),0)","v":0},{"$f":"ROUND(F74*VLOOKUP(D74,ALLOCTABLE_Prod_Demand,$P$10,FALSE),0)","v":0},{"$f":"ROUND(F74*VLOOKUP(D74,ALLOCTABLE_Prod_Demand,$Q$10,FALSE),0)","v":0},{"$f":"SUM(G74:Q74)","v":0},{"$f":"F74-R74","v":0}]
[18,null,{"$f":"'FR-16(7)(v)-1 Functional'!C75","v":"POLES, TOWERS  & FIXTURES - PRIMARY - CUSTOMER"},{"$f":"'FR-16(7)(v)-1 Functional'!D75","v":"K405"},null,{"$f":"'FR-16(7)(v)-2 PROD Classified'!G75","v":0},{"$f":"F75-SUM(H75:Q75)","v":0},0,0,0,0,0,0,0,0,{"$f":"ROUND(F75*VLOOKUP(D75,ALLOCTABLE_Prod_Demand,$P$10,FALSE),0)","v":0},{"$f":"ROUND(F75*VLOOKUP(D75,ALLOCTABLE_Prod_Demand,$Q$10,FALSE),0)","v":0},{"$f":"SUM(G75:Q75)","v":0},{"$f":"F75-R75","v":0}]
[19,null,{"$f":"'FR-16(7)(v)-1 Functional'!C76","v":"POLES, TOWERS  & FIXTURES - SECONDARY - DEMAND"},{"$f":"'FR-16(7)(v)-1 Functional'!D76","v":"K206"},null,{"$f":"'FR-16(7)(v)-2 PROD Classified'!G76","v":0},0,0,0,0,0,0,0,0,0,0,0,0,0]
[20,null,{"$f":"'FR-16(7)(v)-1 Functional'!C77","v":"POLES, TOWERS  & FIXTURES - SECONDARY - CUSTOMER"},{"$f":"'FR-16(7)(v)-1 Functional'!D77","v":"K405"},null,{"$f":"'FR-16(7)(v)-2 PROD Classified'!G77","v":0},0,0,0,0,0,0,0,0,0,0,0,0,0]
[21,null,{"$f":"'FR-16(7)(v)-1 Functional'!C78","v":"CONDUCTORS - OVERHEAD / PRIMARY - DEMAND"},{"$f":"'FR-16(7)(v)-1 Functional'!D78","v":"K205"},null,{"$f":"'FR-16(7)(v)-2 PROD Classified'!G78","v":0},0,0,0,0,0,0,0,0,0,0,0,0,0]
[22,null,{"$f":"'FR-16(7)(v)-1 Functional'!C79","v":"CONDUCTORS - OVERHEAD / PRIMARY - CUSTOMER"},{"$f":"'FR-16(7)(v)-1 Functional'!D79","v":"K405"},null,{"$f":"'FR-16(7)(v)-2 PROD Classified'!G79","v":0},0,0,0,0,0,0,0,0,0,0,0,0,0]
[23,null,{"$f":"'FR-16(7)(v)-1 Functional'!C80","v":"CONDUCTORS - OVERHEAD / SECONDARY - DEMAND"},{"$f":"'FR-16(7)(v)-1 Functional'!D80","v":"K206"},null,{"$f":"'FR-16(7)(v)-2 PROD Classified'!G80","v":0},0,0,0,0,0,0,0,0,0,0,0,0,0]
[24,null,{"$f":"'FR-16(7)(v)-1 Functional'!C81","v":"CONDUCTORS - OVERHEAD / SECONDARY - CUSTOMER"},{"$f":"'FR-16(7)(v)-1 Functional'!D81","v":"K405"},null,{"$f":"'FR-16(7)(v)-2 PROD Classified'!G81","v":0},0,0,0,0,0,0,0,0,0,0,0,0,0]
[25,null,{"$f":"'FR-16(7)(v)-1 Functional'!C82","v":"CONDUCTORS - UNDERGROUND / PRIMARY - DEMAND"},{"$f":"'FR-16(7)(v)-1 Functional'!D82","v":"K205"},null,{"$f":"'FR-16(7)(v)-2 PROD Classified'!G82","v":0},0,0,0,0,0,0,0,0,0,0,0,0,0]
[26,null,{"$f":"'FR-16(7)(v)-1 Functional'!C83","v":"CONDUCTORS - UNDERGROUND / PRIMARY - CUSTOMER"},{"$f":"'FR-16(7)(v)-1 Functional'!D83","v":"K405"},null,{"$f":"'FR-16(7)(v)-2 PROD Classified'!G83","v":0},0,0,0,0,0,0,0,0,0,0,0,0,0]
[27,null,{"$f":"'FR-16(7)(v)-1 Functional'!C84","v":"CONDUCTORS - UNDERGROUND / SECONDARY - DEMAND"},{"$f":"'FR-16(7)(v)-1 Functional'!D84","v":"K206"},null,{"$f":"'FR-16(7)(v)-2 PROD Classified'!G84","v":0},0,0,0,0,0,0,0,0,0,0,0,0,0]
[28,null,{"$f":"'FR-16(7)(v)-1 Functional'!C85","v":"CONDUCTORS - UNDERGROUND / SECONDARY - CUSTOMER"},{"$f":"'FR-16(7)(v)-1 Functional'!D85","v":"K405"},null,{"$f":"'FR-16(7)(v)-2 PROD Classified'!G85","v":0},0,0,0,0,0,0,0,0,0,0,0,0,0]
[29,null,{"$f":"'FR-16(7)(v)-1 Functional'!C86","v":"TRANSFORMERS DEMAND RELATED"},{"$f":"'FR-16(7)(v)-1 Functional'!D86","v":"K215"},null,{"$f":"'FR-16(7)(v)-2 PROD Classified'!G86","v":0},{"$f":"F86-SUM(H86:Q86)","v":0},{"$f":"ROUND($F$86*VLOOKUP(D86,ALLOCTABLE_Prod_Demand,$H$10,FALSE),0)","v":0},{"$f":"ROUND($F$86*VLOOKUP($D$86,ALLOCTABLE_Prod_Demand,$I$10,FALSE),0)","v":0},{"$f":"ROUND($F$86*VLOOKUP($D$86,ALLOCTABLE_Prod_Demand,$J$10,FALSE),0)","v":0},{"$f":"ROUND($F$86*VLOOKUP($D$86,ALLOCTABLE_Prod_Demand,$K$10,FALSE),0)","v":0},{"$f":"ROUND($F$86*VLOOKUP($D$86,ALLOCTABLE_Prod_Demand,$L$10,FALSE),0)","v":0},{"$f":"ROUND($F$86*VLOOKUP($D$86,ALLOCTABLE_Prod_Demand,$M$10,FALSE),0)","v":0},{"$f":"ROUND($F$86*VLOOKUP($D$86,ALLOCTABLE_Prod_Demand,$N$10,FALSE),0)","v":0},{"$f":"ROUND($F$86*VLOOKUP($D$86,ALLOCTABLE_Prod_Demand,$O$10,FALSE),0)","v":0},{"$f":"ROUND(F86*VLOOKUP(D86,ALLOCTABLE_Prod_Demand,$P$10,FALSE),0)","v":0},{"$f":"ROUND(F86*VLOOKUP(D86,ALLOCTABLE_Prod_Demand,$Q$10,FALSE),0)","v":0},{"$f":"SUM(G86:Q86)","v":0},{"$f":"F86-R86","v":0}]
[30,null,{"$f":"'FR-16(7)(v)-1 Functional'!C87","v":"TRANSFORMERS CUSTOMER RELATED"},{"$f":"'FR-16(7)(v)-1 Functional'!D87","v":"K405"},null,{"$f":"'FR-16(7)(v)-2 PROD Classified'!G87","v":0},0,{"$f":"ROUND($F$86*VLOOKUP(D87,ALLOCTABLE_Prod_Demand,$H$10,FALSE),0)","v":0},{"$f":"ROUND($F$86*VLOOKUP($D$86,ALLOCTABLE_Prod_Demand,$I$10,FALSE),0)","v":0},{"$f":"ROUND($F$86*VLOOKUP($D$86,ALLOCTABLE_Prod_Demand,$J$10,FALSE),0)","v":0},{"$f":"ROUND($F$86*VLOOKUP($D$86,ALLOCTABLE_Prod_Demand,$K$10,FALSE),0)","v":0},{"$f":"ROUND($F$86*VLOOKUP($D$86,ALLOCTABLE_Prod_Demand,$L$10,FALSE),0)","v":0},{"$f":"ROUND($F$86*VLOOKUP($D$86,ALLOCTABLE_Prod_Demand,$M$10,FALSE),0)","v":0},{"$f":"ROUND($F$86*VLOOKUP($D$86,ALLOCTABLE_Prod_Demand,$N$10,FALSE),0)","v":0},{"$f":"ROUND($F$86*VLOOKUP($D$86,ALLOCTABLE_Prod_Demand,$O$10,FALSE),0)","v":0},{"$f":"ROUND(F87*VLOOKUP(D87,ALLOCTABLE_Prod_Demand,$P$10,FALSE),0)","v":0},{"$f":"ROUND(F87*VLOOKUP(D87,ALLOCTABLE_Prod_Demand,$Q$10,FALSE),0)","v":0},0,0]
[31,null,{"$f":"'FR-16(7)(v)-1 Functional'!C88","v":"SERVICES"},{"$f":"'FR-16(7)(v)-1 Functional'!D88","v":"K217"},null,{"$f":"'FR-16(7)(v)-2 PROD Classified'!G88","v":0},0,{"$f":"ROUND($F$88*VLOOKUP(D88,ALLOCTABLE_Prod_Demand,$H$10,FALSE),0)","v":0},{"$f":"ROUND($F$88*VLOOKUP($D$88,ALLOCTABLE_Prod_Demand,$I$10,FALSE),0)","v":0},{"$f":"ROUND($F$88*VLOOKUP($D$88,ALLOCTABLE_Prod_Demand,$J$10,FALSE),0)","v":0},{"$f":"ROUND($F$88*VLOOKUP($D$88,ALLOCTABLE_Prod_Demand,$K$10,FALSE),0)","v":0},{"$f":"ROUND($F$88*VLOOKUP($D$88,ALLOCTABLE_Prod_Demand,$L$10,FALSE),0)","v":0},{"$f":"ROUND($F$88*VLOOKUP($D$88,ALLOCTABLE_Prod_Demand,$M$10,FALSE),0)","v":0},{"$f":"ROUND($F$88*VLOOKUP($D$88,ALLOCTABLE_Prod_Demand,$N$10,FALSE),0)","v":0},{"$f":"ROUND($F$88*VLOOKUP($D$88,ALLOCTABLE_Prod_Demand,$O$10,FALSE),0)","v":0},{"$f":"ROUND($F$88*VLOOKUP($D$88,ALLOCTABLE_Prod_Demand,$P$10,FALSE),0)","v":0},{"$f":"ROUND($F$88*VLOOKUP(D88,ALLOCTABLE_Prod_Demand,$Q$10,FALSE),0)","v":0},0,0]
[32,null,{"$f":"'FR-16(7)(v)-1 Functional'!C89","v":"METERS"},{"$f":"'FR-16(7)(v)-1 Functional'!D89","v":"K407"},null,{"$f":"'FR-16(7)(v)-2 PROD Classified'!G89","v":0},0,{"$f":"ROUND($F$89*VLOOKUP(D89,ALLOCTABLE_Prod_Demand,$H$10,FALSE),0)","v":0},{"$f":"ROUND($F$89*VLOOKUP($D$89,ALLOCTABLE_Prod_Demand,$I$10,FALSE),0)","v":0},{"$f":"ROUND($F$89*VLOOKUP($D$89,ALLOCTABLE_Prod_Demand,$J$10,FALSE),0)","v":0},{"$f":"ROUND($F$89*VLOOKUP($D$89,ALLOCTABLE_Prod_Demand,$K$10,FALSE),0)","v":0},{"$f":"ROUND($F$89*VLOOKUP($D$89,ALLOCTABLE_Prod_Demand,$L$10,FALSE),0)","v":0},{"$f":"ROUND($F$89*VLOOKUP($D$89,ALLOCTABLE_Prod_Demand,$M$10,FALSE),0)","v":0},{"$f":"ROUND($F$89*VLOOKUP($D$89,ALLOCTABLE_Prod_Demand,$N$10,FALSE),0)","v":0},{"$f":"ROUND($F$89*VLOOKUP($D$89,ALLOCTABLE_Prod_Demand,$O$10,FALSE),0)","v":0},{"$f":"ROUND($F$89*VLOOKUP($D$89,ALLOCTABLE_Prod_Demand,$P$10,FALSE),0)","v":0},{"$f":"ROUND($F$89*VLOOKUP(D89,ALLOCTABLE_Prod_Demand,$Q$10,FALSE),0)","v":0},0,0]
[33,null,{"$f":"'FR-16(7)(v)-1 Functional'!C90","v":"STREET LIGHTS"},{"$f":"'FR-16(7)(v)-1 Functional'!D90","v":"K401"},null,{"$f":"'FR-16(7)(v)-2 PROD Classified'!G90","v":0},0,{"$f":"ROUND($F$90*VLOOKUP(D90,ALLOCTABLE_Prod_Demand,$H$10,FALSE),0)","v":0},{"$f":"ROUND($F$90*VLOOKUP($D$90,ALLOCTABLE_Prod_Demand,$I$10,FALSE),0)","v":0},{"$f":"ROUND($F$90*VLOOKUP($D$90,ALLOCTABLE_Prod_Demand,$J$10,FALSE),0)","v":0},{"$f":"ROUND($F$90*VLOOKUP($D$90,ALLOCTABLE_Prod_Demand,$K$10,FALSE),0)","v":0},{"$f":"ROUND($F$90*VLOOKUP($D$90,ALLOCTABLE_Prod_Demand,$L$10,FALSE),0)","v":0},{"$f":"ROUND($F$90*VLOOKUP($D$90,ALLOCTABLE_Prod_Demand,$M$10,FALSE),0)","v":0},{"$f":"ROUND($F$90*VLOOKUP($D$90,ALLOCTABLE_Prod_Demand,$N$10,FALSE),0)","v":0},{"$f":"ROUND($F$90*VLOOKUP($D$90,ALLOCTABLE_Prod_Demand,$O$10,FALSE),0)","v":0},{"$f":"ROUND($F$90*VLOOKUP($D$90,ALLOCTABLE_Prod_Demand,$P$10,FALSE),0)","v":0},{"$f":"ROUND($F$90*VLOOKUP(D90,ALLOCTABLE_Prod_Demand,$Q$10,FALSE),0)","v":0},0,0]
[34,null,{"$f":"'FR-16(7)(v)-1 Functional'!C91","v":"ADJUSTMENT  "},{"$f":"'FR-16(7)(v)-1 Functional'!D91","v":"K209"},null,{"$f":"'FR-16(7)(v)-2 PROD Classified'!G91","v":0},0,{"$f":"ROUND($F$91*VLOOKUP(D91,ALLOCTABLE_Prod_Demand,$H$10,FALSE),0)","v":0},{"$f":"ROUND($F$91*VLOOKUP($D$91,ALLOCTABLE_Prod_Demand,$I$10,FALSE),0)","v":0},{"$f":"ROUND($F$91*VLOOKUP($D$91,ALLOCTABLE_Prod_Demand,$J$10,FALSE),0)","v":0},{"$f":"ROUND($F$91*VLOOKUP($D$91,ALLOCTABLE_Prod_Demand,$K$10,FALSE),0)","v":0},{"$f":"ROUND($F$91*VLOOKUP($D$91,ALLOCTABLE_Prod_Demand,$L$10,FALSE),0)","v":0},{"$f":"ROUND($F$91*VLOOKUP($D$91,ALLOCTABLE_Prod_Demand,$M$10,FALSE),0)","v":0},{"$f":"ROUND($F$91*VLOOKUP($D$91,ALLOCTABLE_Prod_Demand,$N$10,FALSE),0)","v":0},{"$f":"ROUND($F$91*VLOOKUP($D$91,ALLOCTABLE_Prod_Demand,$O$10,FALSE),0)","v":0},{"$f":"ROUND($F$91*VLOOKUP($D$91,ALLOCTABLE_Prod_Demand,$P$10,FALSE),0)","v":0},{"$f":"ROUND($F$91*VLOOKUP(D91,ALLOCTABLE_Prod_Demand,$Q$10,FALSE),0)","v":0},0,0]
[35,null,{"$f":"'FR-16(7)(v)-1 Functional'!C92","v":"CONSTRUCTION NOT CLASSIFIED"},{"$f":"'FR-16(7)(v)-1 Functional'!D92","v":"K209"},null,{"$f":"'FR-16(7)(v)-2 PROD Classified'!G92","v":0},0,{"$f":"ROUND($F$92*VLOOKUP(D92,ALLOCTABLE_Prod_Demand,$H$10,FALSE),0)","v":0},{"$f":"ROUND($F$92*VLOOKUP($D$92,ALLOCTABLE_Prod_Demand,$I$10,FALSE),0)","v":0},{"$f":"ROUND($F$92*VLOOKUP($D$92,ALLOCTABLE_Prod_Demand,$J$10,FALSE),0)","v":0},{"$f":"ROUND($F$92*VLOOKUP($D$92,ALLOCTABLE_Prod_Demand,$K$10,FALSE),0)","v":0},{"$f":"ROUND($F$92*VLOOKUP($D$92,ALLOCTABLE_Prod_Demand,$L$10,FALSE),0)","v":0},{"$f":"ROUND($F$92*VLOOKUP($D$92,ALLOCTABLE_Prod_Demand,$M$10,FALSE),0)","v":0},{"$f":"ROUND($F$92*VLOOKUP($D$92,ALLOCTABLE_Prod_Demand,$N$10,FALSE),0)","v":0},{"$f":"ROUND($F$92*VLOOKUP($D$92,ALLOCTABLE_Prod_Demand,$O$10,FALSE),0)","v":0},{"$f":"ROUND($F$92*VLOOKUP($D$92,ALLOCTABLE_Prod_Demand,$P$10,FALSE),0)","v":0},{"$f":"ROUND($F$92*VLOOKUP(D92,ALLOCTABLE_Prod_Demand,$Q$10,FALSE),0)","v":0},0,0]
[36,null,{"$f":"'FR-16(7)(v)-1 Functional'!C93","v":"RWIP"},{"$f":"'FR-16(7)(v)-1 Functional'!D93","v":"K215"},null,{"$f":"'FR-16(7)(v)-2 PROD Classified'!G93","v":0},{"$f":"F93-SUM(H93:Q93)","v":0},{"$f":"ROUND($F$92*VLOOKUP(D93,ALLOCTABLE_Prod_Demand,$H$10,FALSE),0)","v":0},{"$f":"ROUND($F$92*VLOOKUP($D$92,ALLOCTABLE_Prod_Demand,$I$10,FALSE),0)","v":0},{"$f":"ROUND($F$92*VLOOKUP($D$92,ALLOCTABLE_Prod_Demand,$J$10,FALSE),0)","v":0},{"$f":"ROUND($F$92*VLOOKUP($D$92,ALLOCTABLE_Prod_Demand,$K$10,FALSE),0)","v":0}]
[37,null,{"$f":"'FR-16(7)(v)-1 Functional'!C94","v":"  DISTRIBUTION PLANT IN SERVICE"},null,null,{"$f":"SUM(F73:F93)","v":0},{"$f":"SUM(G73:G92)","v":0},{"$f":"SUM(H73:H92)","v":0},{"$f":"SUM(I73:I92)","v":0},{"$f":"SUM(J73:J92)","v":0},0,0,0,0,0,0,{"$f":"SUM(Q73:Q92)","v":0},{"$f":"SUM(R73:R92)","v":0},{"$f":"SUM(S73:S92)","v":0}]
[38]
[39,"TOTAL TRANS & DIST PLANT",null,null,null,{"$f":"F94+F68","v":0},{"$f":"G94+G68","v":0},{"$f":"H94+H68","v":0},{"$f":"I94+I68","v":0},{"$f":"J94+J68","v":0},0,0,0,0,0,0,{"$f":"Q94+$Q$68","v":0},{"$f":"R94+R68","v":0},{"$f":"S94+S68","v":0}]
[40,"TOTAL GROSS PTD PLANT",null,null,null,{"$f":"F94+F70","v":1208792538},{"$f":"G94+G70","v":544899500},{"$f":"H94+H70","v":327147613},{"$f":"I94+I70","v":1571431},{"$f":"J94+J70","v":6201106},84616,163114465,107836382,5209896,51095660,1498902,{"$f":"Q94+Q70","v":132967},{"$f":"R94+R70","v":1208792538},{"$f":"S94+S70","v":0}]
[41]
[42,"GENERAL & INTANGIBLE PLANT"]
[43,null,{"$f":"'FR-16(7)(v)-1 Functional'!C100","v":"PRODUCTION - DEMAND"},{"$f":"'FR-16(7)(v)-1 Functional'!D100","v":"K201"},null,{"$f":"'FR-16(7)(v)-2 PROD Classified'!G100","v":16704047},{"$f":"F100-SUM(H100:Q100)","v":7529852},{"$f":"ROUND(F100*VLOOKUP(D100,ALLOCTABLE_Prod_Demand,$H$10,FALSE),0)","v":4520783},{"$f":"ROUND(F100*VLOOKUP(D100,ALLOCTABLE_Prod_Demand,$I$10,FALSE),0)","v":21715},{"$f":"ROUND(F100*VLOOKUP(D100,ALLOCTABLE_Prod_Demand,$J$10,FALSE),0)","v":85692},{"$f":"ROUND(F100*VLOOKUP(D100,ALLOCTABLE_Prod_Demand,$K$10,FALSE),0)","v":1169},{"$f":"ROUND(F100*VLOOKUP(D100,ALLOCTABLE_Prod_Demand,$L$10,FALSE),0)","v":2254044},{"$f":"ROUND(F100*VLOOKUP(D100,ALLOCTABLE_Prod_Demand,$M$10,FALSE),0)","v":1490168},{"$f":"ROUND(F100*VLOOKUP(D100,ALLOCTABLE_Prod_Demand,$N$10,FALSE),0)","v":71994},{"$f":"ROUND(F100*VLOOKUP(D100,ALLOCTABLE_Prod_Demand,$O$10,FALSE),0)","v":706080},{"$f":"ROUND(F100*VLOOKUP(D100,ALLOCTABLE_Prod_Demand,$P$10,FALSE),0)","v":20713},{"$f":"ROUND(F100*VLOOKUP(D100,ALLOCTABLE_Prod_Demand,$Q$10,FALSE),0)","v":1837},{"$f":"SUM(G100:Q100)","v":16704047},{"$f":"F100-R100","v":0}]
[44,null,{"$f":"'FR-16(7)(v)-1 Functional'!C101","v":"PRODUCTION - ENERGY"},{"$f":"'FR-16(7)(v)-1 Functional'!D101","v":"K301"},null,{"$f":"'FR-16(7)(v)-2 PROD Classified'!G101","v":0},{"$f":"F101-SUM(H101:Q101)","v":0},0,0,0,0,0,0,0,0,0,0,{"$f":"SUM(G101:Q101)","v":0},{"$f":"F101-R101","v":0}]
[45,null,{"$f":"'FR-16(7)(v)-1 Functional'!C102","v":"TRANSMISSION"},{"$f":"'FR-16(7)(v)-1 Functional'!D102","v":"K202"},null,{"$f":"'FR-16(7)(v)-2 PROD Classified'!G102","v":0},0,0,0,0,0,0,0,0,0,0,0,0,0]
[46,null,{"$f":"'FR-16(7)(v)-1 Functional'!C103","v":"DISTRIBUTION - DEMAND"},{"$f":"'FR-16(7)(v)-1 Functional'!D103","v":"K201"},null,{"$f":"'FR-16(7)(v)-2 PROD Classified'!G103","v":8865387},3996340,2399328,11525,45479,621,1196295,790881,38210,374740,10993,975,8865387,0]
[47,null,{"$f":"'FR-16(7)(v)-1 Functional'!C104","v":"DISTRIBUTION - CUSTOMER"},{"$f":"'FR-16(7)(v)-1 Functional'!D104","v":"K405"},null,{"$f":"'FR-16(7)(v)-2 PROD Classified'!G104","v":0},0,0,0,0,0,0,0,0,0,0,0,0,0]
[48,null,{"$f":"'FR-16(7)(v)-1 Functional'!C105","v":"CUSTOMER ACCOUNTING"},{"$f":"'FR-16(7)(v)-1 Functional'!D105","v":"A308"},null,{"$f":"'FR-16(7)(v)-2 PROD Classified'!G105","v":0},0,0,0,0,0,0,0,0,0,0,0,0,0]
[49,null,{"$f":"'FR-16(7)(v)-1 Functional'!C106","v":"CUSTOMER SERVICE & INFORMATION"},{"$f":"'FR-16(7)(v)-1 Functional'!D106","v":"A310"},null,{"$f":"'FR-16(7)(v)-2 PROD Classified'!G106","v":0},0,0,0,0,0,0,0,0,0,0,0,0,0]
[50,null,{"$f":"'FR-16(7)(v)-1 Functional'!C107","v":"SALES"},{"$f":"'FR-16(7)(v)-1 Functional'!D107","v":"A312"},null,{"$f":"'FR-16(7)(v)-2 PROD Classified'!G107","v":0},0,0,0,0,0,0,0,0,0,0,0,0,0]
[51,null,{"$f":"'FR-16(7)(v)-1 Functional'!C108","v":"ADJUSTMENT"},{"$f":"'FR-16(7)(v)-1 Functional'!D108","v":"A315"},null,{"$f":"'FR-16(7)(v)-2 PROD Classified'!G108","v":0},0,0,0,0,0,0,0,0,0,0,0,0,0]
[52,null,{"$f":"'FR-16(7)(v)-1 Functional'!C109","v":"  GEN & INTANG PLANT IN SERVICE"},null,null,{"$f":"SUM($F$100:F108)","v":25569434},{"$f":"SUM(G100:G108)","v":11526192},{"$f":"SUM(H100:H108)","v":6920111},{"$f":"SUM(I100:I108)","v":33240},{"$f":"SUM(J100:J108)","v":131171},1790,3450339,2281049,110204,1080820,31706,{"$f":"SUM(Q100:Q108)","v":2812},{"$f":"SUM(R100:R108)","v":25569434},{"$f":"SUM(S100:S108)","v":0}]
[53]
[54,"COMMON & OTHER PLANT"]
[55,null,{"$f":"'FR-16(7)(v)-1 Functional'!C112","v":"PRODUCTION - DEMAND"},{"$f":"'FR-16(7)(v)-1 Functional'!D112","v":"K201"},null,{"$f":"'FR-16(7)(v)-2 PROD Classified'!G112","v":9454192},{"$f":"F112-SUM(H112:Q112)","v":4261760},{"$f":"ROUND(F112*VLOOKUP(D112,ALLOCTABLE_Prod_Demand,$H$10,FALSE),0)","v":2558683},{"$f":"ROUND(F112*VLOOKUP(D112,ALLOCTABLE_Prod_Demand,$I$10,FALSE),0)","v":12290},{"$f":"ROUND(F112*VLOOKUP(D112,ALLOCTABLE_Prod_Demand,$J$10,FALSE),0)","v":48500},{"$f":"ROUND(F112*VLOOKUP(D112,ALLOCTABLE_Prod_Demand,$K$10,FALSE),0)","v":662},{"$f":"ROUND(F112*VLOOKUP(D112,ALLOCTABLE_Prod_Demand,$L$10,FALSE),0)","v":1275749},{"$f":"ROUND(F112*VLOOKUP(D112,ALLOCTABLE_Prod_Demand,$M$10,FALSE),0)","v":843408},{"$f":"ROUND(F112*VLOOKUP(D112,ALLOCTABLE_Prod_Demand,$N$10,FALSE),0)","v":40748},{"$f":"ROUND(F112*VLOOKUP(D112,ALLOCTABLE_Prod_Demand,$O$10,FALSE),0)","v":399629},{"$f":"ROUND(F112*VLOOKUP(D112,ALLOCTABLE_Prod_Demand,$P$10,FALSE),0)","v":11723},{"$f":"ROUND(F112*VLOOKUP(D112,ALLOCTABLE_Prod_Demand,$Q$10,FALSE),0)","v":1040},{"$f":"SUM(G112:Q112)","v":9454192},{"$f":"F112-R112","v":0}]
[56,null,{"$f":"'FR-16(7)(v)-1 Functional'!C113","v":"PRODUCTION - ENERGY"},{"$f":"'FR-16(7)(v)-1 Functional'!D113","v":"K301"},null,{"$f":"'FR-16(7)(v)-2 PROD Classified'!G113","v":0},0,0,0,0,0,0,0,0,0,0,0,0,0]
[57,null,{"$f":"'FR-16(7)(v)-1 Functional'!C114","v":"TRANSMISSION"},{"$f":"'FR-16(7)(v)-1 Functional'!D114","v":"K202"},null,{"$f":"'FR-16(7)(v)-2 PROD Classified'!G114","v":0},0,0,0,0,0,0,0,0,0,0,0,0,0]
[58,null,{"$f":"'FR-16(7)(v)-1 Functional'!C115","v":"DISTRIBUTION - DEMAND"},{"$f":"'FR-16(7)(v)-1 Functional'!D115","v":"K201"},null,{"$f":"'FR-16(7)(v)-2 PROD Classified'!G115","v":5017651},2261856,1357977,6523,25741,351,677082,447625,21626,212096,6222,552,5017651,0]
[59,null,{"$f":"'FR-16(7)(v)-1 Functional'!C116","v":"DISTRIBUTION - CUSTOMER"},{"$f":"'FR-16(7)(v)-1 Functional'!D116","v":"K405"},null,{"$f":"'FR-16(7)(v)-2 PROD Classified'!G116","v":0},0,0,0,0,0,0,0,0,0,0,0,0,0]
[60,null,{"$f":"'FR-16(7)(v)-1 Functional'!C117","v":"CUSTOMER ACCOUNTING"},{"$f":"'FR-16(7)(v)-1 Functional'!D117","v":"A308"},null,{"$f":"'FR-16(7)(v)-2 PROD Classified'!G117","v":0},0,0,0,0,0,0,0,0,0,0,0,0,0]
[61,null,{"$f":"'FR-16(7)(v)-1 Functional'!C118","v":"CUSTOMER SERVICE & INFORMATION"},{"$f":"'FR-16(7)(v)-1 Functional'!D118","v":"A310"},null,{"$f":"'FR-16(7)(v)-2 PROD Classified'!G118","v":0},0,0,0,0,0,0,0,0,0,0,0,0,0]
[62,null,{"$f":"'FR-16(7)(v)-1 Functional'!C119","v":"SALES"},{"$f":"'FR-16(7)(v)-1 Functional'!D119","v":"A312"},null,{"$f":"'FR-16(7)(v)-2 PROD Classified'!G119","v":0},0,0,0,0,0,0,0,0,0,0,0,0,0]
[63,null,{"$f":"'FR-16(7)(v)-1 Functional'!C120","v":"ADJUSTMENT"},{"$f":"'FR-16(7)(v)-1 Functional'!D120","v":"A315"},null,{"$f":"'FR-16(7)(v)-2 PROD Classified'!G120","v":0},0,0,0,0,0,0,0,0,0,0,0,0,0]
[64,null,{"$f":"'FR-16(7)(v)-1 Functional'!C121","v":"  COMMON & OTHER PLANT IN SERVICE"},null,null,{"$f":"SUM($F$112:F120)","v":14471843},{"$f":"SUM(G112:G120)","v":6523616},{"$f":"SUM(H112:H120)","v":3916660},{"$f":"SUM(I112:I120)","v":18813},{"$f":"SUM(J112:J120)","v":74241},1013,1952831,1291033,62374,611725,17945,{"$f":"SUM(Q112:Q120)","v":1592},{"$f":"SUM(R112:R120)","v":14471843},{"$f":"SUM(S112:S120)","v":0}]
[65]
[66,"GROSS ELECTRIC PLANT IN SERVICE",null,null,null,{"$f":"F97+F109+F121","v":1248833815},{"$f":"G97+G109+G121","v":562949308},{"$f":"H97+H109+H121","v":337984384},{"$f":"I97+I109+I121","v":1623484},{"$f":"J97+J109+J121","v":6406518},87419,168517635,111408464,5382474,52788205,1548553,{"$f":"Q97+Q109+Q121","v":137371},{"$f":"R97+R109+R121","v":1248833815},{"$f":"S97+S109+S121","v":0}]
[]
[{"$f":"co_name","v":"DUKE ENERGY KENTUCKY, INC."},null,null,null,null,null,null,null,null,null,null,null,null,null,null,null,null,{"$f":"R1","v":"FR-16(7)(v)-3"}]
[{"$f":"$A$2","v":"PRODUCTION DEMAND ALLOCATED - ELECTRIC COST OF SERVICE"},null,null,null,null,null,null,null,null,null,null,null,null,null,null,null,null,{"$f":"R2","v":"WITNESS RESPONSIBLE:"}]
[{"$f":"case_name","v":"CASE NO: 2019-00271"},null,null,null,null,null,null,null,null,null,null,null,null,null,null,null,null,{"$f":"Witness","v":"JAMES E. ZIOLKOWSKI"}]
[{"$f":"data_filing","v":"DATA: 12 MONTHS ACTUAL  & 0 MONTHS ESTIMATED"},null,null,null,null,null,null,null,null,null,null,null,null,null,null,null,null,{"$f":"\"PAGE \"&Pages-15&\" OF \"&Pages","v":"PAGE 3 OF 18"}]
[{"$f":"type","v":"TYPE OF FILING: \"X\" ORIGINAL   UPDATED    REVISED  "}]
[]
[null,null,null,null,null,{"$f":"F$7","v":"TOTAL"},null,{"$f":"H$7","v":"DS"},{"$f":"I$7","v":"GSFL"},{"$f":"J$7","v":"EH"},{"$f":"K$7","v":"SP"},"DT SEC","DT PRI","DP","TT",null,"OTHER"]
["LINE",null,null,null,null,{"$f":"F$8","v":"PRODUCTION"},{"$f":"G$8","v":"RS"},{"$f":"H$8","v":"SECONDARY"},{"$f":"I$8","v":"SECONDARY"},{"$f":"J$8","v":"SECONDARY"},{"$f":"K$8","v":"SECONDARY"},"SECONDARY","PRIMARY","PRIMARY","TRANSMISSION","LT","WATER",{"$f":"R8","v":"TOTAL"},"ALL"]
["NO.","DEPRECIATION RESERVE",null,"ALLO",null,{"$f":"F$9","v":"DEMAND"},{"$f":"G$9","v":"RESIDENTIAL"},{"$f":"H$9","v":"DISTRIBUTION"},{"$f":"I$9","v":"DISTRIBUTION"},{"$f":"J$9","v":"DISTRIBUTION"},{"$f":"K$9","v":"DISTRIBUTION"},"DISTRIBUTION","DISTRIBUTION","DISTRIBUTION","TIME OF DAY","LIGHTING","PUMPING",{"$f":"R9","v":"AT ISSUE"},"OTHER"]
[null,null,"Schedule 3",null,null,null,{"$f":"G$10","v":3},{"$f":"H$10","v":4},{"$f":"I$10","v":5},{"$f":"J$10","v":6},{"$f":"K$10","v":7},8,9,10,11,12,13,null," "]
[1,"PRODUCTION PLANT"]
[2,null,"PRODUCTION STEAM",{"$f":"'FR-16(7)(v)-1 Functional'!D136","v":"K201"},null,{"$f":"'FR-16(7)(v)-2 PROD Classified'!G136","v":401160304},{"$f":"F136-SUM(H136:Q136)","v":180835042},{"$f":"ROUND(F136*VLOOKUP(D136,ALLOCTABLE_Prod_Demand,$H$10,FALSE),0)","v":108570025},{"$f":"ROUND(F136*VLOOKUP(D136,ALLOCTABLE_Prod_Demand,$I$10,FALSE),0)","v":521508},{"$f":"ROUND(F136*VLOOKUP(D136,ALLOCTABLE_Prod_Demand,$J$10,FALSE),0)","v":2057952},{"$f":"ROUND(F136*VLOOKUP(D136,ALLOCTABLE_Prod_Demand,$K$10,FALSE),0)","v":28081},{"$f":"ROUND(F136*VLOOKUP(D136,ALLOCTABLE_Prod_Demand,$L$10,FALSE),0)","v":54132571},{"$f":"ROUND(F136*VLOOKUP(D136,ALLOCTABLE_Prod_Demand,$M$10,FALSE),0)","v":35787511},{"$f":"ROUND(F136*VLOOKUP(D136,ALLOCTABLE_Prod_Demand,$N$10,FALSE),0)","v":1729001},{"$f":"ROUND(F136*VLOOKUP(D136,ALLOCTABLE_Prod_Demand,$O$10,FALSE),0)","v":16957046},{"$f":"ROUND(F136*VLOOKUP(D136,ALLOCTABLE_Prod_Demand,$P$10,FALSE),0)","v":497439},{"$f":"ROUND(F136*VLOOKUP(D136,ALLOCTABLE_Prod_Demand,$Q$10,FALSE),0)","v":44128},{"$f":"SUM(G136:Q136)","v":401160304},{"$f":"F136-R136","v":0}]
[3,null,"PRODUCTION OTHER",{"$f":"'FR-16(7)(v)-1 Functional'!D137","v":"K201"},null,{"$f":"'FR-16(7)(v)-2 PROD Classified'!G137","v":184221788},{"$f":"F137-SUM(H137:Q137)","v":83043497},{"$f":"ROUND(F137*VLOOKUP(D137,ALLOCTABLE_Prod_Demand,$H$10,FALSE),0)","v":49857785},{"$f":"ROUND(F137*VLOOKUP(D137,ALLOCTABLE_Prod_Demand,$I$10,FALSE),0)","v":239488},{"$f":"ROUND(F137*VLOOKUP(D137,ALLOCTABLE_Prod_Demand,$J$10,FALSE),0)","v":945058},{"$f":"ROUND(F137*VLOOKUP(D137,ALLOCTABLE_Prod_Demand,$K$10,FALSE),0)","v":12896},{"$f":"ROUND(F137*VLOOKUP(D137,ALLOCTABLE_Prod_Demand,$L$10,FALSE),0)","v":24858888},{"$f":"ROUND(F137*VLOOKUP(D137,ALLOCTABLE_Prod_Demand,$M$10,FALSE),0)","v":16434426},{"$f":"ROUND(F137*VLOOKUP(D137,ALLOCTABLE_Prod_Demand,$N$10,FALSE),0)","v":793996},{"$f":"ROUND(F137*VLOOKUP(D137,ALLOCTABLE_Prod_Demand,$O$10,FALSE),0)","v":7787055},{"$f":"ROUND(F137*VLOOKUP(D137,ALLOCTABLE_Prod_Demand,$P$10,FALSE),0)","v":228435},{"$f":"ROUND(F137*VLOOKUP(D137,ALLOCTABLE_Prod_Demand,$Q$10,FALSE),0)","v":20264},{"$f":"SUM(G137:Q137)","v":184221788},{"$f":"F137-R137","v":0}]
[4,null,{"$f":"'FR-16(7)(v)-1 Functional'!C138","v":"ADJUSTMENT"},{"$f":"'FR-16(7)(v)-1 Functional'!D138","v":"K201"},null,{"$f":"'FR-16(7)(v)-2 PROD Classified'!G138","v":1553366},{"$f":"F138-SUM(H138:Q138)","v":700226},{"$f":"ROUND(F138*VLOOKUP(D138,ALLOCTABLE_Prod_Demand,$H$10,FALSE),0)","v":420403},{"$f":"ROUND(F138*VLOOKUP(D138,ALLOCTABLE_Prod_Demand,$I$10,FALSE),0)","v":2019},{"$f":"ROUND(F138*VLOOKUP(D138,ALLOCTABLE_Prod_Demand,$J$10,FALSE),0)","v":7969},{"$f":"ROUND(F138*VLOOKUP(D138,ALLOCTABLE_Prod_Demand,$K$10,FALSE),0)","v":109},{"$f":"ROUND(F138*VLOOKUP(D138,ALLOCTABLE_Prod_Demand,$L$10,FALSE),0)","v":209611},{"$f":"ROUND(F138*VLOOKUP(D138,ALLOCTABLE_Prod_Demand,$M$10,FALSE),0)","v":138576},{"$f":"ROUND(F138*VLOOKUP(D138,ALLOCTABLE_Prod_Demand,$N$10,FALSE),0)","v":6695},{"$f":"ROUND(F138*VLOOKUP(D138,ALLOCTABLE_Prod_Demand,$O$10,FALSE),0)","v":65661},{"$f":"ROUND(F138*VLOOKUP(D138,ALLOCTABLE_Prod_Demand,$P$10,FALSE),0)","v":1926},{"$f":"ROUND(F138*VLOOKUP(D138,ALLOCTABLE_Prod_Demand,$Q$10,FALSE),0)","v":171},{"$f":"SUM(G138:Q138)","v":1553366},{"$f":"F138-R138","v":0}]
[5,null,{"$f":"'FR-16(7)(v)-1 Functional'!C139","v":"  TOTAL PROD DEPREC RESERVE"},null,null,{"$f":"SUM($F$136:F138)","v":586935458},{"$f":"SUM(G136:G138)","v":264578765},158848213,763015,3010979,41086,79201070,52360513,2529692,24809762,727800,64563,586935458,{"$f":"SUM(S136:S136)","v":0}]
[6]
[7,"TRANSMISSION PLANT"]
[8,null,"MAIN STEP-UP TRANSFORMERS",{"$f":"'FR-16(7)(v)-1 Functional'!D142","v":"K202"},null,{"$f":"'FR-16(7)(v)-2 PROD Classified'!G142","v":0},{"$f":"F142-SUM(H142:Q142)","v":0},{"$f":"ROUND(F142*VLOOKUP(D142,ALLOCTABLE_Prod_Demand,$H$10,FALSE),0)","v":0},{"$f":"ROUND(F142*VLOOKUP(D142,ALLOCTABLE_Prod_Demand,$I$10,FALSE),0)","v":0},{"$f":"ROUND(F142*VLOOKUP(D142,ALLOCTABLE_Prod_Demand,$J$10,FALSE),0)","v":0},{"$f":"ROUND(F142*VLOOKUP(D142,ALLOCTABLE_Prod_Demand,$K$10,FALSE),0)","v":0},{"$f":"ROUND(F142*VLOOKUP(D142,ALLOCTABLE_Prod_Demand,$L$10,FALSE),0)","v":0},{"$f":"ROUND(F142*VLOOKUP(D142,ALLOCTABLE_Prod_Demand,$M$10,FALSE),0)","v":0},{"$f":"ROUND(F142*VLOOKUP(D142,ALLOCTABLE_Prod_Demand,$N$10,FALSE),0)","v":0},{"$f":"ROUND(F142*VLOOKUP(D142,ALLOCTABLE_Prod_Demand,$O$10,FALSE),0)","v":0},{"$f":"ROUND(F142*VLOOKUP(D142,ALLOCTABLE_Prod_Demand,$P$10,FALSE),0)","v":0},{"$f":"ROUND(F142*VLOOKUP(D142,ALLOCTABLE_Prod_Demand,$Q$10,FALSE),0)","v":0},{"$f":"SUM(G142:Q142)","v":0},{"$f":"F142-R142","v":0}]
[9,null,"OTHER TRANSMISSION",{"$f":"'FR-16(7)(v)-1 Functional'!D143","v":"K202"},null,{"$f":"'FR-16(7)(v)-2 PROD Classified'!G143","v":0},{"$f":"F143-SUM(H143:Q143)","v":0},{"$f":"ROUND(F143*VLOOKUP(D143,ALLOCTABLE_Prod_Demand,$H$10,FALSE),0)","v":0},{"$f":"ROUND(F143*VLOOKUP(D143,ALLOCTABLE_Prod_Demand,$I$10,FALSE),0)","v":0},{"$f":"ROUND(F143*VLOOKUP(D143,ALLOCTABLE_Prod_Demand,$J$10,FALSE),0)","v":0},{"$f":"ROUND(F143*VLOOKUP(D143,ALLOCTABLE_Prod_Demand,$K$10,FALSE),0)","v":0},{"$f":"ROUND(F143*VLOOKUP(D143,ALLOCTABLE_Prod_Demand,$L$10,FALSE),0)","v":0},{"$f":"ROUND(F143*VLOOKUP(D143,ALLOCTABLE_Prod_Demand,$M$10,FALSE),0)","v":0},{"$f":"ROUND(F143*VLOOKUP(D143,ALLOCTABLE_Prod_Demand,$N$10,FALSE),0)","v":0},{"$f":"ROUND(F143*VLOOKUP(D143,ALLOCTABLE_Prod_Demand,$O$10,FALSE),0)","v":0},{"$f":"ROUND(F143*VLOOKUP(D143,ALLOCTABLE_Prod_Demand,$P$10,FALSE),0)","v":0},{"$f":"ROUND(F143*VLOOKUP(D143,ALLOCTABLE_Prod_Demand,$Q$10,FALSE),0)","v":0},{"$f":"SUM(G143:Q143)","v":0},{"$f":"F143-R143","v":0}]
[10,null,"ADJUSTMENT",{"$f":"'FR-16(7)(v)-1 Functional'!D144","v":"K202"},null,{"$f":"'FR-16(7)(v)-2 PROD Classified'!G144","v":0},{"$f":"F144-SUM(H144:Q144)","v":0},{"$f":"ROUND(F144*VLOOKUP(D144,ALLOCTABLE_Prod_Demand,$H$10,FALSE),0)","v":0},{"$f":"ROUND(F144*VLOOKUP(D144,ALLOCTABLE_Prod_Demand,$I$10,FALSE),0)","v":0},{"$f":"ROUND(F144*VLOOKUP(D144,ALLOCTABLE_Prod_Demand,$J$10,FALSE),0)","v":0},{"$f":"ROUND(F144*VLOOKUP(D144,ALLOCTABLE_Prod_Demand,$K$10,FALSE),0)","v":0},{"$f":"ROUND(F144*VLOOKUP(D144,ALLOCTABLE_Prod_Demand,$L$10,FALSE),0)","v":0},{"$f":"ROUND(F144*VLOOKUP(D144,ALLOCTABLE_Prod_Demand,$M$10,FALSE),0)","v":0},{"$f":"ROUND(F144*VLOOKUP(D144,ALLOCTABLE_Prod_Demand,$N$10,FALSE),0)","v":0},{"$f":"ROUND(F144*VLOOKUP(D144,ALLOCTABLE_Prod_Demand,$O$10,FALSE),0)","v":0},{"$f":"ROUND(F144*VLOOKUP(D144,ALLOCTABLE_Prod_Demand,$P$10,FALSE),0)","v":0},{"$f":"ROUND(F144*VLOOKUP(D144,ALLOCTABLE_Prod_Demand,$Q$10,FALSE),0)","v":0},{"$f":"SUM(G144:Q144)","v":0},{"$f":"F144-R144","v":0}]
[11,null,"  TOTAL TRANS DEPREC RESERVE",null,null,{"$f":"SUM($F$142:F144)","v":0},{"$f":"SUM(G142:G144)","v":0},0,0,0,0,0,0,0,0,0,0,{"$f":"SUM(R142:R144)","v":0},{"$f":"SUM(S142:S142)","v":0}]
[12]
[13,null,"TOTAL PROD & TRANS DEPREC RESERVE",null,null,{"$f":"F145+F139","v":586935458},{"$f":"G145+G139","v":264578765},{"$f":"$H$114+H139","v":158848213},{"$f":"$I$114+I139","v":763015},{"$f":"$J$114+J139","v":3010979},{"$f":"$K$114+K139","v":41086},{"$f":"$L$114+L139","v":79201070},{"$f":"$M$114+M139","v":52360513},{"$f":"$N$114+N139","v":2529692},{"$f":"$O$114+O139","v":24809762},{"$f":"$P$114+P139","v":727800},{"$f":"$Q$114+Q139","v":64563},{"$f":"SUM(G147:Q147)","v":586935458},{"$f":"F147-R147","v":0}]
[14]
[15,"DISTRIBUTION PLANT"]
[16,null,{"$f":"'FR-16(7)(v)-1 Functional'!C150","v":"SUBSTATIONS"},{"$f":"'FR-16(7)(v)-1 Functional'!D150","v":"K215"},null,{"$f":"'FR-16(7)(v)-2 PROD Classified'!G150","v":0},{"$f":"F150-SUM(H150:Q150)","v":0},{"$f":"ROUND($F$150*VLOOKUP(D150,ALLOCTABLE_Prod_Demand,$H$10,FALSE),0)","v":0},{"$f":"ROUND($F$150*VLOOKUP($D$150,ALLOCTABLE_Prod_Demand,$I$10,FALSE),0)","v":0},{"$f":"ROUND($F$150*VLOOKUP($D$150,ALLOCTABLE_Prod_Demand,$J$10,FALSE),0)","v":0},{"$f":"ROUND($F$150*VLOOKUP($D$150,ALLOCTABLE_Prod_Demand,$K$10,FALSE),0)","v":0},{"$f":"ROUND($F$150*VLOOKUP($D$150,ALLOCTABLE_Prod_Demand,$L$10,FALSE),0)","v":0},{"$f":"ROUND($F$150*VLOOKUP($D$150,ALLOCTABLE_Prod_Demand,$M$10,FALSE),0)","v":0},{"$f":"ROUND($F$150*VLOOKUP($D$150,ALLOCTABLE_Prod_Demand,$N$10,FALSE),0)","v":0},{"$f":"ROUND($F$150*VLOOKUP($D$150,ALLOCTABLE_Prod_Demand,$O$10,FALSE),0)","v":0},{"$f":"ROUND($F$150*VLOOKUP($D$150,ALLOCTABLE_Prod_Demand,$P$10,FALSE),0)","v":0},{"$f":"ROUND($F$150*VLOOKUP(D150,ALLOCTABLE_Prod_Demand,$Q$10,FALSE),0)","v":0},{"$f":"SUM(G150:Q150)","v":0},{"$f":"F150-R150","v":0}]
[17,null,{"$f":"'FR-16(7)(v)-1 Functional'!C151","v":"POLES, TOWERS  & FIXTURES - PRIMARY - DEMAND"},{"$f":"'FR-16(7)(v)-1 Functional'!D151","v":"K205"},null,{"$f":"'FR-16(7)(v)-2 PROD Classified'!G151","v":0},{"$f":"F151-SUM(H151:Q151)","v":0},{"$f":"ROUND(F151*VLOOKUP(D151,ALLOCTABLE_Prod_Demand,$H$10,FALSE),0)","v":0},{"$f":"ROUND(F151*VLOOKUP(D151,ALLOCTABLE_Prod_Demand,$I$10,FALSE),0)","v":0},{"$f":"ROUND(F151*VLOOKUP(D151,ALLOCTABLE_Prod_Demand,$J$10,FALSE),0)","v":0},{"$f":"ROUND(F151*VLOOKUP(D151,ALLOCTABLE_Prod_Demand,$K$10,FALSE),0)","v":0},{"$f":"ROUND(F151*VLOOKUP(D151,ALLOCTABLE_Prod_Demand,$L$10,FALSE),0)","v":0},{"$f":"ROUND(F151*VLOOKUP(D151,ALLOCTABLE_Prod_Demand,$M$10,FALSE),0)","v":0},{"$f":"ROUND(F151*VLOOKUP(D151,ALLOCTABLE_Prod_Demand,$N$10,FALSE),0)","v":0},{"$f":"ROUND(F151*VLOOKUP(D151,ALLOCTABLE_Prod_Demand,$O$10,FALSE),0)","v":0},{"$f":"ROUND(F151*VLOOKUP(D151,ALLOCTABLE_Prod_Demand,$P$10,FALSE),0)","v":0},{"$f":"ROUND(F151*VLOOKUP(D151,ALLOCTABLE_Prod_Demand,$Q$10,FALSE),0)","v":0},{"$f":"SUM(G151:Q151)","v":0},{"$f":"F151-R151","v":0}]
[18,null,{"$f":"'FR-16(7)(v)-1 Functional'!C152","v":"POLES, TOWERS  & FIXTURES - PRIMARY - CUSTOMER"},{"$f":"'FR-16(7)(v)-1 Functional'!D152","v":"K405"},null,{"$f":"'FR-16(7)(v)-2 PROD Classified'!G152","v":0},{"$f":"F152-SUM(H152:Q152)","v":0},0,0,0,0,0,0,0,0,{"$f":"ROUND(F152*VLOOKUP(D152,ALLOCTABLE_Prod_Demand,$P$10,FALSE),0)","v":0},{"$f":"ROUND(F152*VLOOKUP(D152,ALLOCTABLE_Prod_Demand,$Q$10,FALSE),0)","v":0},{"$f":"SUM(G152:Q152)","v":0},{"$f":"F152-R152","v":0}]
[19,null,{"$f":"'FR-16(7)(v)-1 Functional'!C153","v":"POLES, TOWERS  & FIXTURES - SECONDARY - DEMAND"},{"$f":"'FR-16(7)(v)-1 Functional'!D153","v":"K206"},null,{"$f":"'FR-16(7)(v)-2 PROD Classified'!G153","v":0},0,0,0,0,0,0,0,0,0,0,0,0,0]
[20,null,{"$f":"'FR-16(7)(v)-1 Functional'!C154","v":"POLES, TOWERS  & FIXTURES - SECONDARY - CUSTOMER"},{"$f":"'FR-16(7)(v)-1 Functional'!D154","v":"K405"},null,{"$f":"'FR-16(7)(v)-2 PROD Classified'!G154","v":0},0,0,0,0,0,0,0,0,0,0,0,0,0]
[21,null,{"$f":"'FR-16(7)(v)-1 Functional'!C155","v":"CONDUCTORS - OVERHEAD / PRIMARY - DEMAND"},{"$f":"'FR-16(7)(v)-1 Functional'!D155","v":"K205"},null,{"$f":"'FR-16(7)(v)-2 PROD Classified'!G155","v":0},0,0,0,0,0,0,0,0,0,0,0,0,0]
[22,null,{"$f":"'FR-16(7)(v)-1 Functional'!C156","v":"CONDUCTORS - OVERHEAD / PRIMARY - CUSTOMER"},{"$f":"'FR-16(7)(v)-1 Functional'!D156","v":"K405"},null,{"$f":"'FR-16(7)(v)-2 PROD Classified'!G156","v":0},0,0,0,0,0,0,0,0,0,0,0,0,0]
[23,null,{"$f":"'FR-16(7)(v)-1 Functional'!C157","v":"CONDUCTORS - OVERHEAD / SECONDARY - DEMAND"},{"$f":"'FR-16(7)(v)-1 Functional'!D157","v":"K206"},null,{"$f":"'FR-16(7)(v)-2 PROD Classified'!G157","v":0},0,0,0,0,0,0,0,0,0,0,0,0,0]
[24,null,{"$f":"'FR-16(7)(v)-1 Functional'!C158","v":"CONDUCTORS - OVERHEAD / SECONDARY - CUSTOMER"},{"$f":"'FR-16(7)(v)-1 Functional'!D158","v":"K405"},null,{"$f":"'FR-16(7)(v)-2 PROD Classified'!G158","v":0},0,0,0,0,0,0,0,0,0,0,0,0,0]
[25,null,{"$f":"'FR-16(7)(v)-1 Functional'!C159","v":"CONDUCTORS - UNDERGROUND / PRIMARY - DEMAND"},{"$f":"'FR-16(7)(v)-1 Functional'!D159","v":"K205"},null,{"$f":"'FR-16(7)(v)-2 PROD Classified'!G159","v":0},0,0,0,0,0,0,0,0,0,0,0,0,0]
[26,null,{"$f":"'FR-16(7)(v)-1 Functional'!C160","v":"CONDUCTORS - UNDERGROUND / PRIMARY - CUSTOMER"},{"$f":"'FR-16(7)(v)-1 Functional'!D160","v":"K405"},null,{"$f":"'FR-16(7)(v)-2 PROD Classified'!G160","v":0},0,0,0,0,0,0,0,0,0,0,0,0,0]
[27,null,{"$f":"'FR-16(7)(v)-1 Functional'!C161","v":"CONDUCTORS - UNDERGROUND / SECONDARY - DEMAND"},{"$f":"'FR-16(7)(v)-1 Functional'!D161","v":"K206"},null,{"$f":"'FR-16(7)(v)-2 PROD Classified'!G161","v":0},0,0,0,0,0,0,0,0,0,0,0,0,0]
[28,null,{"$f":"'FR-16(7)(v)-1 Functional'!C162","v":"CONDUCTORS - UNDERGROUND / SECONDARY - CUSTOMER"},{"$f":"'FR-16(7)(v)-1 Functional'!D162","v":"K405"},null,{"$f":"'FR-16(7)(v)-2 PROD Classified'!G162","v":0},0,0,0,0,0,0,0,0,0,0,0,0,0]
[29,null,{"$f":"'FR-16(7)(v)-1 Functional'!C163","v":"TRANSFORMERS DEMAND RELATED"},{"$f":"'FR-16(7)(v)-1 Functional'!D163","v":"K215"},null,{"$f":"'FR-16(7)(v)-2 PROD Classified'!G163","v":0},{"$f":"F163-SUM(H163:Q163)","v":0},{"$f":"ROUND($F$163*VLOOKUP(D163,ALLOCTABLE_Prod_Demand,$H$10,FALSE),0)","v":0},{"$f":"ROUND($F$163*VLOOKUP($D$163,ALLOCTABLE_Prod_Demand,$I$10,FALSE),0)","v":0},{"$f":"ROUND($F$163*VLOOKUP($D$163,ALLOCTABLE_Prod_Demand,$J$10,FALSE),0)","v":0},{"$f":"ROUND($F$163*VLOOKUP($D$163,ALLOCTABLE_Prod_Demand,$K$10,FALSE),0)","v":0},{"$f":"ROUND($F$163*VLOOKUP($D$163,ALLOCTABLE_Prod_Demand,$L$10,FALSE),0)","v":0},{"$f":"ROUND($F$163*VLOOKUP($D$163,ALLOCTABLE_Prod_Demand,$M$10,FALSE),0)","v":0},{"$f":"ROUND($F$163*VLOOKUP($D$163,ALLOCTABLE_Prod_Demand,$N$10,FALSE),0)","v":0},{"$f":"ROUND($F$163*VLOOKUP($D$163,ALLOCTABLE_Prod_Demand,$O$10,FALSE),0)","v":0},{"$f":"ROUND(F163*VLOOKUP(D163,ALLOCTABLE_Prod_Demand,$P$10,FALSE),0)","v":0},{"$f":"ROUND(F163*VLOOKUP(D163,ALLOCTABLE_Prod_Demand,$Q$10,FALSE),0)","v":0},{"$f":"SUM(G163:Q163)","v":0},{"$f":"F163-R163","v":0}]
[30,null,{"$f":"'FR-16(7)(v)-1 Functional'!C164","v":"TRANSFORMERS CUSTOMER RELATED"},{"$f":"'FR-16(7)(v)-1 Functional'!D164","v":"K405"},null,{"$f":"'FR-16(7)(v)-2 PROD Classified'!G164","v":0},0,{"$f":"ROUND($F$163*VLOOKUP(D164,ALLOCTABLE_Prod_Demand,$H$10,FALSE),0)","v":0},{"$f":"ROUND($F$163*VLOOKUP($D$163,ALLOCTABLE_Prod_Demand,$I$10,FALSE),0)","v":0},{"$f":"ROUND($F$163*VLOOKUP($D$163,ALLOCTABLE_Prod_Demand,$J$10,FALSE),0)","v":0},{"$f":"ROUND($F$163*VLOOKUP($D$163,ALLOCTABLE_Prod_Demand,$K$10,FALSE),0)","v":0},{"$f":"ROUND($F$163*VLOOKUP($D$163,ALLOCTABLE_Prod_Demand,$L$10,FALSE),0)","v":0},{"$f":"ROUND($F$163*VLOOKUP($D$163,ALLOCTABLE_Prod_Demand,$M$10,FALSE),0)","v":0},{"$f":"ROUND($F$163*VLOOKUP($D$163,ALLOCTABLE_Prod_Demand,$N$10,FALSE),0)","v":0},{"$f":"ROUND($F$163*VLOOKUP($D$163,ALLOCTABLE_Prod_Demand,$O$10,FALSE),0)","v":0},{"$f":"ROUND(F164*VLOOKUP(D164,ALLOCTABLE_Prod_Demand,$P$10,FALSE),0)","v":0},{"$f":"ROUND(F164*VLOOKUP(D164,ALLOCTABLE_Prod_Demand,$Q$10,FALSE),0)","v":0},0,0]
[31,null,{"$f":"'FR-16(7)(v)-1 Functional'!C165","v":"SERVICES"},{"$f":"'FR-16(7)(v)-1 Functional'!D165","v":"K217"},null,{"$f":"'FR-16(7)(v)-2 PROD Classified'!G165","v":0},0,{"$f":"ROUND($F$165*VLOOKUP(D165,ALLOCTABLE_Prod_Demand,$H$10,FALSE),0)","v":0},{"$f":"ROUND($F$165*VLOOKUP($D$165,ALLOCTABLE_Prod_Demand,$I$10,FALSE),0)","v":0},{"$f":"ROUND($F$165*VLOOKUP($D$165,ALLOCTABLE_Prod_Demand,$J$10,FALSE),0)","v":0},{"$f":"ROUND($F$165*VLOOKUP($D$165,ALLOCTABLE_Prod_Demand,$K$10,FALSE),0)","v":0},{"$f":"ROUND($F$165*VLOOKUP($D$165,ALLOCTABLE_Prod_Demand,$L$10,FALSE),0)","v":0},{"$f":"ROUND($F$165*VLOOKUP($D$165,ALLOCTABLE_Prod_Demand,$M$10,FALSE),0)","v":0},{"$f":"ROUND($F$165*VLOOKUP($D$165,ALLOCTABLE_Prod_Demand,$N$10,FALSE),0)","v":0},{"$f":"ROUND($F$165*VLOOKUP($D$165,ALLOCTABLE_Prod_Demand,$O$10,FALSE),0)","v":0},{"$f":"ROUND($F$165*VLOOKUP($D$165,ALLOCTABLE_Prod_Demand,$P$10,FALSE),0)","v":0},{"$f":"ROUND($F$165*VLOOKUP(D165,ALLOCTABLE_Prod_Demand,$Q$10,FALSE),0)","v":0},0,0]
[32,null,{"$f":"'FR-16(7)(v)-1 Functional'!C166","v":"METERS"},{"$f":"'FR-16(7)(v)-1 Functional'!D166","v":"K407"},null,{"$f":"'FR-16(7)(v)-2 PROD Classified'!G166","v":0},0,{"$f":"ROUND($F$166*VLOOKUP(D166,ALLOCTABLE_Prod_Demand,$H$10,FALSE),0)","v":0},{"$f":"ROUND($F$166*VLOOKUP($D$166,ALLOCTABLE_Prod_Demand,$I$10,FALSE),0)","v":0},{"$f":"ROUND($F$166*VLOOKUP($D$166,ALLOCTABLE_Prod_Demand,$J$10,FALSE),0)","v":0},{"$f":"ROUND($F$166*VLOOKUP($D$166,ALLOCTABLE_Prod_Demand,$K$10,FALSE),0)","v":0},{"$f":"ROUND($F$166*VLOOKUP($D$166,ALLOCTABLE_Prod_Demand,$L$10,FALSE),0)","v":0},{"$f":"ROUND($F$166*VLOOKUP($D$166,ALLOCTABLE_Prod_Demand,$M$10,FALSE),0)","v":0},{"$f":"ROUND($F$166*VLOOKUP($D$166,ALLOCTABLE_Prod_Demand,$N$10,FALSE),0)","v":0},{"$f":"ROUND($F$166*VLOOKUP($D$166,ALLOCTABLE_Prod_Demand,$O$10,FALSE),0)","v":0},{"$f":"ROUND($F$166*VLOOKUP($D$166,ALLOCTABLE_Prod_Demand,$P$10,FALSE),0)","v":0},{"$f":"ROUND($F$166*VLOOKUP(D166,ALLOCTABLE_Prod_Demand,$Q$10,FALSE),0)","v":0},0,0]
[33,null,{"$f":"'FR-16(7)(v)-1 Functional'!C167","v":"STREET LIGHTS"},{"$f":"'FR-16(7)(v)-1 Functional'!D167","v":"K401"},null,{"$f":"'FR-16(7)(v)-2 PROD Classified'!G167","v":0},0,{"$f":"ROUND($F$167*VLOOKUP(D167,ALLOCTABLE_Prod_Demand,$H$10,FALSE),0)","v":0},{"$f":"ROUND($F$167*VLOOKUP($D$167,ALLOCTABLE_Prod_Demand,$I$10,FALSE),0)","v":0},{"$f":"ROUND($F$167*VLOOKUP($D$167,ALLOCTABLE_Prod_Demand,$J$10,FALSE),0)","v":0},{"$f":"ROUND($F$167*VLOOKUP($D$167,ALLOCTABLE_Prod_Demand,$K$10,FALSE),0)","v":0},{"$f":"ROUND($F$167*VLOOKUP($D$167,ALLOCTABLE_Prod_Demand,$L$10,FALSE),0)","v":0},{"$f":"ROUND($F$167*VLOOKUP($D$167,ALLOCTABLE_Prod_Demand,$M$10,FALSE),0)","v":0},{"$f":"ROUND($F$167*VLOOKUP($D$167,ALLOCTABLE_Prod_Demand,$N$10,FALSE),0)","v":0},{"$f":"ROUND($F$167*VLOOKUP($D$167,ALLOCTABLE_Prod_Demand,$O$10,FALSE),0)","v":0},{"$f":"ROUND($F$167*VLOOKUP($D$167,ALLOCTABLE_Prod_Demand,$P$10,FALSE),0)","v":0},{"$f":"ROUND($F$167*VLOOKUP(D167,ALLOCTABLE_Prod_Demand,$Q$10,FALSE),0)","v":0},0,0]
[34,null,{"$f":"'FR-16(7)(v)-1 Functional'!C168","v":"ADJUSTMENT  "},{"$f":"'FR-16(7)(v)-1 Functional'!D168","v":"K209"},null,{"$f":"'FR-16(7)(v)-2 PROD Classified'!G168","v":0},0,{"$f":"ROUND($F$168*VLOOKUP(D168,ALLOCTABLE_Prod_Demand,$H$10,FALSE),0)","v":0},{"$f":"ROUND($F$168*VLOOKUP($D$168,ALLOCTABLE_Prod_Demand,$I$10,FALSE),0)","v":0},{"$f":"ROUND($F$168*VLOOKUP($D$168,ALLOCTABLE_Prod_Demand,$J$10,FALSE),0)","v":0},{"$f":"ROUND($F$168*VLOOKUP($D$168,ALLOCTABLE_Prod_Demand,$K$10,FALSE),0)","v":0},{"$f":"ROUND($F$168*VLOOKUP($D$168,ALLOCTABLE_Prod_Demand,$L$10,FALSE),0)","v":0},{"$f":"ROUND($F$168*VLOOKUP($D$168,ALLOCTABLE_Prod_Demand,$M$10,FALSE),0)","v":0},{"$f":"ROUND($F$168*VLOOKUP($D$168,ALLOCTABLE_Prod_Demand,$N$10,FALSE),0)","v":0},{"$f":"ROUND($F$168*VLOOKUP($D$168,ALLOCTABLE_Prod_Demand,$O$10,FALSE),0)","v":0},{"$f":"ROUND($F$168*VLOOKUP($D$168,ALLOCTABLE_Prod_Demand,$P$10,FALSE),0)","v":0},{"$f":"ROUND($F$168*VLOOKUP(D168,ALLOCTABLE_Prod_Demand,$Q$10,FALSE),0)","v":0},0,0]
[35,null,{"$f":"'FR-16(7)(v)-1 Functional'!C169","v":"CONSTRUCTION NOT CLASSIFIED"},{"$f":"'FR-16(7)(v)-1 Functional'!D169","v":"K209"},null,{"$f":"'FR-16(7)(v)-2 PROD Classified'!G169","v":0},0,{"$f":"ROUND($F$169*VLOOKUP(D169,ALLOCTABLE_Prod_Demand,$H$10,FALSE),0)","v":0},{"$f":"ROUND($F$169*VLOOKUP($D$169,ALLOCTABLE_Prod_Demand,$I$10,FALSE),0)","v":0},{"$f":"ROUND($F$169*VLOOKUP($D$169,ALLOCTABLE_Prod_Demand,$J$10,FALSE),0)","v":0},{"$f":"ROUND($F$169*VLOOKUP($D$169,ALLOCTABLE_Prod_Demand,$K$10,FALSE),0)","v":0},{"$f":"ROUND($F$169*VLOOKUP($D$169,ALLOCTABLE_Prod_Demand,$L$10,FALSE),0)","v":0},{"$f":"ROUND($F$169*VLOOKUP($D$169,ALLOCTABLE_Prod_Demand,$M$10,FALSE),0)","v":0},{"$f":"ROUND($F$169*VLOOKUP($D$169,ALLOCTABLE_Prod_Demand,$N$10,FALSE),0)","v":0},{"$f":"ROUND($F$169*VLOOKUP($D$169,ALLOCTABLE_Prod_Demand,$O$10,FALSE),0)","v":0},{"$f":"ROUND($F$169*VLOOKUP($D$169,ALLOCTABLE_Prod_Demand,$P$10,FALSE),0)","v":0},{"$f":"ROUND($F$169*VLOOKUP(D169,ALLOCTABLE_Prod_Demand,$Q$10,FALSE),0)","v":0},0,0]
[36,null,{"$f":"'FR-16(7)(v)-1 Functional'!C170","v":"RWIP"},{"$f":"'FR-16(7)(v)-1 Functional'!D170","v":"K215"},null,{"$f":"'FR-16(7)(v)-2 PROD Classified'!G170","v":0},{"$f":"F170-SUM(H170:Q170)","v":0},{"$f":"ROUND($F$170*VLOOKUP($D170,ALLOCTABLE_Prod_Demand,H$10,FALSE),0)","v":0},0,0,0,0,0,0,0,0,0,{"$f":"SUM(G170:Q170)","v":0},{"$f":"F170-R170","v":0}]
[37,null,{"$f":"'FR-16(7)(v)-1 Functional'!C171","v":"  TOTAL DIST DEPREC RESERVE"},null,null,{"$f":"SUM(F149:F170)","v":0},{"$f":"SUM(G149:G170)","v":0},{"$f":"SUM(H149:H170)","v":0},0,0,0,0,0,0,0,0,0,0,0]
[38]
[39,null,"TOTAL TRANS & DIST DEPREC RESERVE",null,null,{"$f":"F171+F145","v":0},{"$f":"G171+G145","v":0},{"$f":"H171+$H$114","v":0},{"$f":"I171+$I$114","v":0},{"$f":"J171+$J$114","v":0},{"$f":"K171+$K$114","v":0},{"$f":"L171+$L$114","v":0},{"$f":"M171+$M$114","v":0},{"$f":"N171+$N$114","v":0},{"$f":"O171+$O$114","v":0},{"$f":"P171+$P$114","v":0},{"$f":"Q171+$Q$114","v":0},{"$f":"SUM(G173:Q173)","v":0},{"$f":"F173-R173","v":0}]
[40,null,"TOTAL GROSS PTD PLANT DEPREC RESERVE",null,null,{"$f":"F147+F171","v":586935458},{"$f":"G147+G171","v":264578765},158848213,763015,3010979,41086,79201070,52360513,2529692,24809762,727800,64563,{"$f":"SUM(G174:Q174)","v":586935458},{"$f":"F174-R174","v":0}]
[41]
[42,"GENERAL & INTANGIBLE PLANT"]
[43,null,{"$f":"'FR-16(7)(v)-1 Functional'!C177","v":"PRODUCTION - DEMAND"},{"$f":"'FR-16(7)(v)-1 Functional'!D177","v":"K201"},null,{"$f":"'FR-16(7)(v)-2 PROD Classified'!G177","v":5383063},{"$f":"F177-SUM(H177:Q177)","v":2426577},{"$f":"ROUND(F177*VLOOKUP(D177,ALLOCTABLE_Prod_Demand,$H$10,FALSE),0)","v":1456872},{"$f":"ROUND(F177*VLOOKUP(D177,ALLOCTABLE_Prod_Demand,$I$10,FALSE),0)","v":6998},{"$f":"ROUND(F177*VLOOKUP(D177,ALLOCTABLE_Prod_Demand,$J$10,FALSE),0)","v":27615},{"$f":"ROUND(F177*VLOOKUP(D177,ALLOCTABLE_Prod_Demand,$K$10,FALSE),0)","v":377},{"$f":"ROUND(F177*VLOOKUP(D177,ALLOCTABLE_Prod_Demand,$L$10,FALSE),0)","v":726391},{"$f":"ROUND(F177*VLOOKUP(D177,ALLOCTABLE_Prod_Demand,$M$10,FALSE),0)","v":480223},{"$f":"ROUND(F177*VLOOKUP(D177,ALLOCTABLE_Prod_Demand,$N$10,FALSE),0)","v":23201},{"$f":"ROUND(F177*VLOOKUP(D177,ALLOCTABLE_Prod_Demand,$O$10,FALSE),0)","v":227542},{"$f":"ROUND(F177*VLOOKUP(D177,ALLOCTABLE_Prod_Demand,$P$10,FALSE),0)","v":6675},{"$f":"ROUND(F177*VLOOKUP(D177,ALLOCTABLE_Prod_Demand,$Q$10,FALSE),0)","v":592},{"$f":"SUM(G177:Q177)","v":5383063},{"$f":"F177-R177","v":0}]
[44,null,{"$f":"'FR-16(7)(v)-1 Functional'!C178","v":"PRODUCTION - ENERGY"},{"$f":"'FR-16(7)(v)-1 Functional'!D178","v":"K301"},null,{"$f":"'FR-16(7)(v)-2 PROD Classified'!G178","v":0},0,0,0,0,0,0,0,0,0,0,0,0,0]
[45,null,{"$f":"'FR-16(7)(v)-1 Functional'!C179","v":"TRANSMISSION"},{"$f":"'FR-16(7)(v)-1 Functional'!D179","v":"K202"},null,{"$f":"'FR-16(7)(v)-2 PROD Classified'!G179","v":0},0,0,0,0,0,0,0,0,0,0,0,0,0]
[46,null,{"$f":"'FR-16(7)(v)-1 Functional'!C180","v":"DISTRIBUTION - DEMAND"},{"$f":"'FR-16(7)(v)-1 Functional'!D180","v":"K201"},null,{"$f":"'FR-16(7)(v)-2 PROD Classified'!G180","v":2856969},1287865,773210,3714,14656,200,385519,254870,12314,120764,3543,314,2856969,0]
[47,null,{"$f":"'FR-16(7)(v)-1 Functional'!C181","v":"DISTRIBUTION - CUSTOMER"},{"$f":"'FR-16(7)(v)-1 Functional'!D181","v":"K405"},null,{"$f":"'FR-16(7)(v)-2 PROD Classified'!G181","v":0},0,0,0,0,0,0,0,0,0,0,0,0,0]
[48,null,{"$f":"'FR-16(7)(v)-1 Functional'!C182","v":"CUSTOMER ACCOUNTING"},{"$f":"'FR-16(7)(v)-1 Functional'!D182","v":"A308"},null,{"$f":"'FR-16(7)(v)-2 PROD Classified'!G182","v":0},0,0,0,0,0,0,0,0,0,0,0,0,0]
[49,null,{"$f":"'FR-16(7)(v)-1 Functional'!C183","v":"CUSTOMER SERVICE & INFORMATION"},{"$f":"'FR-16(7)(v)-1 Functional'!D183","v":"A310"},null,{"$f":"'FR-16(7)(v)-2 PROD Classified'!G183","v":0},0,0,0,0,0,0,0,0,0,0,0,0,0]
[50,null,{"$f":"'FR-16(7)(v)-1 Functional'!C184","v":"SALES"},{"$f":"'FR-16(7)(v)-1 Functional'!D184","v":"A312"},null,{"$f":"'FR-16(7)(v)-2 PROD Classified'!G184","v":0},0,0,0,0,0,0,0,0,0,0,0,0,0]
[51,null,{"$f":"'FR-16(7)(v)-1 Functional'!C185","v":"ADJUSTMENT"},{"$f":"'FR-16(7)(v)-1 Functional'!D185","v":"A315"},null,{"$f":"'FR-16(7)(v)-2 PROD Classified'!G185","v":98002},96817,584,3,11,0,291,193,9,91,3,0,98002,0]
[52,null,"  GENERAL & INTANG PLANT",null,null,{"$f":"SUM($F$176:F185)","v":8338034},{"$f":"SUM(G176:G185)","v":3811259},{"$f":"SUM(H176:H185)","v":2230666},{"$f":"SUM(I176:I185)","v":10715},{"$f":"SUM(J176:J185)","v":42282},577,1112201,735286,35524,348397,10221,{"$f":"SUM(Q176:Q185)","v":906},{"$f":"SUM(R176:R185)","v":8338034},{"$f":"SUM(S176:S185)","v":0}]
[53]
[54,"COMMON & OTHER PLANT"]
[55,null,{"$f":"'FR-16(7)(v)-1 Functional'!C189","v":"PRODUCTION - DEMAND"},{"$f":"'FR-16(7)(v)-1 Functional'!D189","v":"K201"},null,{"$f":"'FR-16(7)(v)-2 PROD Classified'!G189","v":7273485},{"$f":"F189-SUM(H189:Q189)","v":3278741},{"$f":"ROUND(F189*VLOOKUP(D189,ALLOCTABLE_Prod_Demand,$H$10,FALSE),0)","v":1968496},{"$f":"ROUND(F189*VLOOKUP(D189,ALLOCTABLE_Prod_Demand,$I$10,FALSE),0)","v":9456},{"$f":"ROUND(F189*VLOOKUP(D189,ALLOCTABLE_Prod_Demand,$J$10,FALSE),0)","v":37313},{"$f":"ROUND(F189*VLOOKUP(D189,ALLOCTABLE_Prod_Demand,$K$10,FALSE),0)","v":509},{"$f":"ROUND(F189*VLOOKUP(D189,ALLOCTABLE_Prod_Demand,$L$10,FALSE),0)","v":981484},{"$f":"ROUND(F189*VLOOKUP(D189,ALLOCTABLE_Prod_Demand,$M$10,FALSE),0)","v":648868},{"$f":"ROUND(F189*VLOOKUP(D189,ALLOCTABLE_Prod_Demand,$N$10,FALSE),0)","v":31349},{"$f":"ROUND(F189*VLOOKUP(D189,ALLOCTABLE_Prod_Demand,$O$10,FALSE),0)","v":307450},{"$f":"ROUND(F189*VLOOKUP(D189,ALLOCTABLE_Prod_Demand,$P$10,FALSE),0)","v":9019},{"$f":"ROUND(F189*VLOOKUP(D189,ALLOCTABLE_Prod_Demand,$Q$10,FALSE),0)","v":800},{"$f":"SUM(G189:Q189)","v":7273485},{"$f":"F189-R189","v":0}]
[56,null,{"$f":"'FR-16(7)(v)-1 Functional'!C190","v":"PRODUCTION - ENERGY"},{"$f":"'FR-16(7)(v)-1 Functional'!D190","v":"K301"},null,{"$f":"'FR-16(7)(v)-2 PROD Classified'!G190","v":0},0,0,0,0,0,0,0,0,0,0,0,0,0]
[57,null,{"$f":"'FR-16(7)(v)-1 Functional'!C191","v":"TRANSMISSION"},{"$f":"'FR-16(7)(v)-1 Functional'!D191","v":"K202"},null,{"$f":"'FR-16(7)(v)-2 PROD Classified'!G191","v":0},0,0,0,0,0,0,0,0,0,0,0,0,0]
[58,null,{"$f":"'FR-16(7)(v)-1 Functional'!C192","v":"DISTRIBUTION - DEMAND"},{"$f":"'FR-16(7)(v)-1 Functional'!D192","v":"K201"},null,{"$f":"'FR-16(7)(v)-2 PROD Classified'!G192","v":3860278},1740136,1044746,5018,19803,270,520906,344375,16638,163174,4787,425,3860278,0]
[59,null,{"$f":"'FR-16(7)(v)-1 Functional'!C193","v":"DISTRIBUTION - CUSTOMER"},{"$f":"'FR-16(7)(v)-1 Functional'!D193","v":"K405"},null,{"$f":"'FR-16(7)(v)-2 PROD Classified'!G193","v":0},0,0,0,0,0,0,0,0,0,0,0,0,0]
[60,null,{"$f":"'FR-16(7)(v)-1 Functional'!C194","v":"CUSTOMER ACCOUNTING"},{"$f":"'FR-16(7)(v)-1 Functional'!D194","v":"A308"},null,{"$f":"'FR-16(7)(v)-2 PROD Classified'!G194","v":0},0,0,0,0,0,0,0,0,0,0,0,0,0]
[61,null,{"$f":"'FR-16(7)(v)-1 Functional'!C195","v":"CUSTOMER SERVICE & INFORMATION"},{"$f":"'FR-16(7)(v)-1 Functional'!D195","v":"A310"},null,{"$f":"'FR-16(7)(v)-2 PROD Classified'!G195","v":0},0,0,0,0,0,0,0,0,0,0,0,0,0]
[62,null,{"$f":"'FR-16(7)(v)-1 Functional'!C196","v":"SALES"},{"$f":"'FR-16(7)(v)-1 Functional'!D196","v":"A312"},null,{"$f":"'FR-16(7)(v)-2 PROD Classified'!G196","v":0},0,0,0,0,0,0,0,0,0,0,0,0,0]
[63,null,{"$f":"'FR-16(7)(v)-1 Functional'!C197","v":"ADJUSTMENT"},{"$f":"'FR-16(7)(v)-1 Functional'!D197","v":"A315"},null,{"$f":"'FR-16(7)(v)-2 PROD Classified'!G197","v":5505},5439,33,0,1,0,16,11,0,5,0,0,5505,0]
[64,null,{"$f":"'FR-16(7)(v)-1 Functional'!C198","v":"  COMMON & OTHER PLANT IN SERVICE"},null,null,{"$f":"SUM($F$189:F197)","v":11139268},{"$f":"SUM(G188:G197)","v":5024316},3013275,14474,{"$f":"SUM(J188:J197)","v":57117},779,1502406,993254,47987,470629,13806,1225,11139268,0]
[65]
[66,"TOTAL DEPRECIATION RESERVE",null,null,null,{"$f":"F198+F186+F171+F145+F139","v":606412760},{"$f":"G198+G186+G171+G145+G139","v":273414340},{"$f":"H198+H186+H171+$H$114+H139","v":164092154},{"$f":"I198+I186+I171+$I$114+I139","v":788204},{"$f":"J198+J186+J171+$J$114+J139","v":3110378},{"$f":"K198+K186+K171+$K$114+K139","v":42442},{"$f":"L198+L186+L171+$L$114+L139","v":81815677},{"$f":"M198+M186+M171+$M$114+M139","v":54089053},{"$f":"N198+N186+N171+$N$114+N139","v":2613203},{"$f":"O198+O186+O171+$O$114+O139","v":25628788},{"$f":"P198+P186+P171+$P$114+P139","v":751827},{"$f":"Q198+Q186+Q171+$Q$114+Q139","v":66694},{"$f":"R198+R186+R171+R145+R139","v":606412760},{"$f":"S198+S186+S171+S145+S139","v":0}]
[]
[{"$f":"co_name","v":"DUKE ENERGY KENTUCKY, INC."},null,null,null,null,null,null,null,null,null,null,null,null,null,null,null,null,{"$f":"R1","v":"FR-16(7)(v)-3"}]
[{"$f":"$A$2","v":"PRODUCTION DEMAND ALLOCATED - ELECTRIC COST OF SERVICE"},null,null,null,null,null,null,null,null,null,null,null,null,null,null,null,null,{"$f":"R2","v":"WITNESS RESPONSIBLE:"}]
[{"$f":"case_name","v":"CASE NO: 2019-00271"},null,null,null,null,null,null,null,null,null,null,null,null,null,null,null,null,{"$f":"Witness","v":"JAMES E. ZIOLKOWSKI"}]
[{"$f":"data_filing","v":"DATA: 12 MONTHS ACTUAL  & 0 MONTHS ESTIMATED"},null,null,null,null,null,null,null,null,null,null,null,null,null,null,null,null,{"$f":"\"PAGE \"&Pages-14&\" OF \"&Pages","v":"PAGE 4 OF 18"}]
[{"$f":"type","v":"TYPE OF FILING: \"X\" ORIGINAL   UPDATED    REVISED  "}]
[]
[null,null,null,null,null,{"$f":"F$7","v":"TOTAL"},null,{"$f":"H$7","v":"DS"},{"$f":"I$7","v":"GSFL"},{"$f":"J$7","v":"EH"},{"$f":"K$7","v":"SP"},"DT SEC","DT PRI","DP","TT",null,"OTHER"]
["LINE",null,null,null,null,{"$f":"F$8","v":"PRODUCTION"},{"$f":"G$8","v":"RS"},{"$f":"H$8","v":"SECONDARY"},{"$f":"I$8","v":"SECONDARY"},{"$f":"J$8","v":"SECONDARY"},{"$f":"K$8","v":"SECONDARY"},"SECONDARY","PRIMARY","PRIMARY","TRANSMISSION","LT","WATER",{"$f":"R8","v":"TOTAL"},"ALL"]
["NO.",{"$f":"\"NET ELECTRIC PLANT\"","v":"NET ELECTRIC PLANT"},null,"ALLO",null,{"$f":"F$9","v":"DEMAND"},{"$f":"G$9","v":"RESIDENTIAL"},{"$f":"H$9","v":"DISTRIBUTION"},{"$f":"I$9","v":"DISTRIBUTION"},{"$f":"J$9","v":"DISTRIBUTION"},{"$f":"K$9","v":"DISTRIBUTION"},"DISTRIBUTION","DISTRIBUTION","DISTRIBUTION","TIME OF DAY","LIGHTING","PUMPING",{"$f":"R9","v":"AT ISSUE"},"OTHER"]
[null,null,"Schedule 4",null,null,null,{"$f":"G$10","v":3},{"$f":"H$10","v":4},{"$f":"I$10","v":5},{"$f":"J$10","v":6},{"$f":"K$10","v":7},8,9,10,11,12,13,null," "]
[1,"PRODUCTION PLANT"]
[2,null,"PRODUCTION STEAM",null,null,{"$f":"F59-F136","v":434180250},{"$f":"G59-G136","v":195719773},{"$f":"H59-H136","v":117506543},{"$f":"I59-I136","v":564435},{"$f":"J59-J136","v":2227345},30393,58588283,38733220,1871317,18352799,538383,{"$f":"Q59-Q136","v":47759},{"$f":"R59-R136","v":434180250},{"$f":"F213-R213","v":0}]
[3,null,"PRODUCTION OTHER",null,null,{"$f":"F60-F137","v":189230196},85301188,51213260,246000,{"$f":"J60-J137","v":970751},13246,25534723,16881225,815582,7998760,234645,20816,189230196,{"$f":"F214-R214","v":0}]
[4,null,"ADJUSTMENT",null,null,{"$f":"F61-F138","v":-1553366},-700226,-420403,-2019,{"$f":"J61-J138","v":-7969},-109,-209611,-138576,-6695,-65661,-1926,-171,-1553366,{"$f":"F215-R215","v":0}]
[5,null,{"$f":"'FR-16(7)(v)-1 Functional'!C216","v":"  NET PRODUCTION PLANT"},null,null,{"$f":"SUM($F$213:F215)","v":621857080},{"$f":"SUM(G213:G215)","v":280320735},168299400,808416,{"$f":"SUM(J213:J215)","v":3190127},43530,83913395,55475869,2680204,26285898,771102,68404,621857080,0]
[6]
[7,"TRANSMISSION PLANT"]
[8,null,"MAIN STEP-UP TRANSFORMERS",null,null,{"$f":"F65-F142","v":0},0,0,0,{"$f":"J65-J142","v":0},0,0,0,0,0,0,0,0,{"$f":"F219-R219","v":0}]
[9,null,"OTHER TRANSMISSION",null,null,{"$f":"F66-F143","v":0},0,0,0,{"$f":"J66-J143","v":0},0,0,0,0,0,0,0,0,{"$f":"F220-R220","v":0}]
[10,null,"ADJUSTMENT",null,null,{"$f":"F67-F144","v":0},{"$f":"G67-G144","v":0},{"$f":"H67-H144","v":0},{"$f":"I67-I144","v":0},0,0,0,0,0,0,0,0,{"$f":"R67-R144","v":0},{"$f":"F221-R221","v":0}]
[11,null,{"$f":"'FR-16(7)(v)-1 Functional'!C222","v":"    NET TRANSMISSION PLANT"},null,null,{"$f":"SUM($F$218:F221)","v":0},{"$f":"SUM(G218:G221)","v":0},0,0,{"$f":"SUM(J218:J221)","v":0},0,0,0,0,0,0,0,0,0]
[12]
[13,"NET PROD & TRANS PLANT",null,null,null,{"$f":"F70-F147","v":621857080},{"$f":"G70-G147","v":280320735},{"$f":"H70-H147","v":168299400},808416,3190127,43530,83913395,55475869,2680204,26285898,771102,68404,621857080,{"$f":"F224-R224","v":0}]
[14]
[15,"DISTRIBUTION PLANT"]
[16,null,{"$f":"'FR-16(7)(v)-1 Functional'!C227","v":"SUBSTATIONS"},null,null,{"$f":"F73-F150","v":0},{"$f":"G73-G150","v":0},{"$f":"H73-H150","v":0},0,0,0,0,0,0,0,0,0,{"$f":"R73-R150","v":0},{"$f":"F227-R227","v":0}]
[17,null,{"$f":"'FR-16(7)(v)-1 Functional'!C228","v":"POLES, TOWERS  & FIXTURES - PRIMARY - DEMAND"},null,null,{"$f":"F74-F151","v":0},{"$f":"G74-G151","v":0},{"$f":"H74-H151","v":0},0,0,0,0,0,0,0,0,0,{"$f":"R74-R151","v":0},{"$f":"F228-R228","v":0}]
[18,null,{"$f":"'FR-16(7)(v)-1 Functional'!C229","v":"POLES, TOWERS  & FIXTURES - PRIMARY - CUSTOMER"},null,null,{"$f":"F75-F152","v":0},{"$f":"G75-G152","v":0},0,0,0,0,0,0,0,0,0,0,0,{"$f":"F229-R229","v":0}]
[19,null,{"$f":"'FR-16(7)(v)-1 Functional'!C230","v":"POLES, TOWERS  & FIXTURES - SECONDARY - DEMAND"},null,null,0,{"$f":"G76-G153","v":0},0,0,0,0,0,0,0,0,0,0,0,0]
[20,null,{"$f":"'FR-16(7)(v)-1 Functional'!C231","v":"POLES, TOWERS  & FIXTURES - SECONDARY - CUSTOMER"},null,null,0,{"$f":"G77-G154","v":0},0,0,0,0,0,0,0,0,0,0,0,0]
[21,null,{"$f":"'FR-16(7)(v)-1 Functional'!C232","v":"CONDUCTORS - OVERHEAD / PRIMARY - DEMAND"},null,null,0,{"$f":"G78-G155","v":0},0,0,0,0,0,0,0,0,0,0,0,0]
[22,null,{"$f":"'FR-16(7)(v)-1 Functional'!C233","v":"CONDUCTORS - OVERHEAD / PRIMARY - CUSTOMER"},null,null,0,{"$f":"G79-G156","v":0},0,0,0,0,0,0,0,0,0,0,0,0]
[23,null,{"$f":"'FR-16(7)(v)-1 Functional'!C234","v":"CONDUCTORS - OVERHEAD / SECONDARY - DEMAND"},null,null,0,{"$f":"G80-G157","v":0},0,0,0,0,0,0,0,0,0,0,0,0]
[24,null,{"$f":"'FR-16(7)(v)-1 Functional'!C235","v":"CONDUCTORS - OVERHEAD / SECONDARY - CUSTOMER"},null,null,0,{"$f":"G81-G158","v":0},0,0,0,0,0,0,0,0,0,0,0,0]
[25,null,{"$f":"'FR-16(7)(v)-1 Functional'!C236","v":"CONDUCTORS - UNDERGROUND / PRIMARY - DEMAND"},null,null,0,{"$f":"G82-G159","v":0},0,0,0,0,0,0,0,0,0,0,0,0]
[26,null,{"$f":"'FR-16(7)(v)-1 Functional'!C237","v":"CONDUCTORS - UNDERGROUND / PRIMARY - CUSTOMER"},null,null,0,{"$f":"G83-G160","v":0},0,0,0,0,0,0,0,0,0,0,0,0]
[27,null,{"$f":"'FR-16(7)(v)-1 Functional'!C238","v":"CONDUCTORS - UNDERGROUND / SECONDARY - DEMAND"},null,null,0,{"$f":"G84-G161","v":0},0,0,0,0,0,0,0,0,0,0,0,0]
[28,null,{"$f":"'FR-16(7)(v)-1 Functional'!C239","v":"CONDUCTORS - UNDERGROUND / SECONDARY - CUSTOMER"},null,null,0,{"$f":"G85-G162","v":0},0,0,0,0,0,0,0,0,0,0,0,0]
[29,null,"TRANSFORMERS DEMAND RELATED",null,null,0,{"$f":"G86-G163","v":0},0,0,0,0,0,0,0,0,0,0,0,{"$f":"F240-R240","v":0}]
[30,null,"TRANSFORMERS CUSTOMER RELATED",null,null,0,{"$f":"G87-G164","v":0},0,0,0,0,0,0,0,0,0,0,0,0]
[31,null,{"$f":"'FR-16(7)(v)-1 Functional'!C242","v":"SERVICES"},null,null,0,{"$f":"G88-G165","v":0},{"$f":"H88-H165","v":0},0,0,0,0,0,0,0,0,0,{"$f":"R88-R165","v":0},0]
[32,null,{"$f":"'FR-16(7)(v)-1 Functional'!C243","v":"METERS"},null,null,0,0,{"$f":"H89-H166","v":0},0,0,0,0,0,0,0,0,0,{"$f":"R89-R166","v":0},0]
[33,null,{"$f":"'FR-16(7)(v)-1 Functional'!C244","v":"STREET LIGHTS"},null,null,0,0,{"$f":"H90-H167","v":0},0,0,0,0,0,0,0,0,0,{"$f":"R90-R167","v":0},0]
[34,null,{"$f":"'FR-16(7)(v)-1 Functional'!C245","v":"ADJUSTMENT  "},null,null,0,0,{"$f":"H91-H168","v":0},0,0,0,0,0,0,0,0,0,{"$f":"R91-R168","v":0},0]
[35,null,{"$f":"'FR-16(7)(v)-1 Functional'!C246","v":"CONSTRUCTION NOT CLASSIFIED"},null,null,0,0,{"$f":"H92-H169","v":0},0,0,0,0,0,0,0,0,0,{"$f":"R92-R169","v":0},0]
[36,null,{"$f":"'FR-16(7)(v)-1 Functional'!C247","v":"RWIP"},null,null,0,0,0,0,0,0,0,0,0,0,0,0,0,0]
[37,null,{"$f":"'FR-16(7)(v)-1 Functional'!C248","v":"  NET DISTRIBUTION PLANT"},null,null,{"$f":"SUM($F$226:F247)","v":0},{"$f":"SUM($F$226:G247)","v":0},{"$f":"SUM($F$226:H247)","v":0},{"$f":"SUM($F$226:I247)","v":0},{"$f":"SUM($F$226:J247)","v":0},{"$f":"SUM($F$226:K247)","v":0},{"$f":"SUM($F$226:L247)","v":0},{"$f":"SUM($F$226:M247)","v":0},{"$f":"SUM($F$226:N247)","v":0},{"$f":"SUM($F$226:O247)","v":0},{"$f":"SUM($F$226:P247)","v":0},{"$f":"SUM($F$226:Q247)","v":0},{"$f":"SUM($F$226:R247)","v":0},{"$f":"SUM($F$226:S247)","v":0}]
[38]
[39,"NET PTD PLANT",null,null,null,{"$f":"F96-F173","v":0},0,0,0,{"$f":"J96-J173","v":0},0,0,0,0,0,0,0,0,{"$f":"S248+S222+S216","v":0}]
[40,"NET TRANS & DIST PLANT",null,null,null,{"$f":"F97-F174","v":621857080},280320735,168299400,808416,{"$f":"J97-J174","v":3190127},43530,83913395,55475869,2680204,26285898,771102,68404,621857080,{"$f":"S248+S222","v":0}]
[41]
[42,"GENERAL & INTANGIBLE PLANT"]
[43,null,{"$f":"'FR-16(7)(v)-1 Functional'!C254","v":"PRODUCTION - DEMAND"},null,null,{"$f":"F100-F177","v":11320984},5103275,3063911,14717,{"$f":"J100-J177","v":58077},792,1527653,1009945,48793,478538,14038,1245,11320984,{"$f":"F254-R254","v":0}]
[44,null,{"$f":"'FR-16(7)(v)-1 Functional'!C255","v":"PRODUCTION - ENERGY"},null,null,{"$f":"F101-F178","v":0},0,0,0,{"$f":"J101-J178","v":0},0,0,0,0,0,0,0,0,{"$f":"F255-R255","v":0}]
[45,null,{"$f":"'FR-16(7)(v)-1 Functional'!C256","v":"TRANSMISSION"},null,null,{"$f":"F102-F179","v":0},0,0,0,{"$f":"J102-J179","v":0},0,0,0,0,0,0,0,0,0]
[46,null,{"$f":"'FR-16(7)(v)-1 Functional'!C257","v":"DISTRIBUTION - DEMAND"},null,null,{"$f":"F103-F180","v":6008418},2708475,1626118,7811,30823,421,810776,536011,25896,253976,7450,661,6008418,0]
[47,null,{"$f":"'FR-16(7)(v)-1 Functional'!C258","v":"DISTRIBUTION - CUSTOMER"},null,null,{"$f":"F104-F181","v":0},0,0,0,0,0,0,0,0,0,0,0,0,{"$f":"F258-R258","v":0}]
[48,null,{"$f":"'FR-16(7)(v)-1 Functional'!C259","v":"CUSTOMER ACCOUNTING"},null,null,{"$f":"F105-F182","v":0},0,0,0,{"$f":"J105-J182","v":0},0,0,0,0,0,0,0,0,0]
[49,null,{"$f":"'FR-16(7)(v)-1 Functional'!C260","v":"CUSTOMER SERVICE & INFORMATION"},null,null,{"$f":"F106-F183","v":0},0,0,0,{"$f":"J106-J183","v":0},0,0,0,0,0,0,{"$f":"Q106-Q183","v":0},{"$f":"R106-R183","v":0},0]
[50,null,{"$f":"'FR-16(7)(v)-1 Functional'!C261","v":"SALES"},null,null,0,0,0,0,{"$f":"J107-J184","v":0},0,0,0,0,0,0,{"$f":"Q107-Q184","v":0},{"$f":"R107-R184","v":0},{"$f":"F261-R261","v":0}]
[51,null,{"$f":"'FR-16(7)(v)-1 Functional'!C262","v":"ADJUSTMENT"},null,null,{"$f":"F108-F185","v":-98002},-96817,-584,-3,{"$f":"J108-J185","v":-11},0,-291,-193,-9,-91,-3,0,-98002,{"$f":"F262-R262","v":0}]
[52,null,{"$f":"'FR-16(7)(v)-1 Functional'!C263","v":"  NET GENERAL & INTANG PLANT"},null,null,{"$f":"SUM($F$253:F262)","v":17231400},{"$f":"SUM(G253:G262)","v":7714933},4689445,22525,{"$f":"SUM(J253:J262)","v":88889},1213,2338138,1545763,74680,732423,21485,1906,17231400,0]
[53]
[54,"COMMON & OTHER PLANT"]
[55,null,{"$f":"'FR-16(7)(v)-1 Functional'!C266","v":"PRODUCTION - DEMAND"},null,null,{"$f":"F112-F189","v":2180707},983019,590187,2834,{"$f":"J112-J189","v":11187},153,294265,194540,9399,92179,2704,240,2180707,{"$f":"F266-R266","v":0}]
[56,null,{"$f":"'FR-16(7)(v)-1 Functional'!C267","v":"PRODUCTION - ENERGY"},null,null,{"$f":"F113-F190","v":0},0,0,0,{"$f":"J113-J190","v":0},0,0,0,0,0,0,0,0,{"$f":"F267-R267","v":0}]
[57,null,{"$f":"'FR-16(7)(v)-1 Functional'!C268","v":"TRANSMISSION"},null,null,{"$f":"F114-F191","v":0},0,0,0,{"$f":"J114-J191","v":0},0,0,0,0,0,0,0,0,0]
[58,null,{"$f":"'FR-16(7)(v)-1 Functional'!C269","v":"DISTRIBUTION - DEMAND"},null,null,{"$f":"F115-F192","v":1157373},521720,313231,1505,5938,81,156176,103250,4988,48922,1435,127,1157373,0]
[59,null,{"$f":"'FR-16(7)(v)-1 Functional'!C270","v":"DISTRIBUTION - CUSTOMER"},null,null,{"$f":"F116-F193","v":0},0,0,0,0,0,0,0,0,0,0,0,0,{"$f":"F270-R270","v":0}]
[60,null,{"$f":"'FR-16(7)(v)-1 Functional'!C271","v":"CUSTOMER ACCOUNTING"},null,null,{"$f":"F117-F194","v":0},0,0,0,{"$f":"J117-J194","v":0},0,0,0,0,0,0,0,0,0]
[61,null,{"$f":"'FR-16(7)(v)-1 Functional'!C272","v":"CUSTOMER SERVICE & INFORMATION"},null,null,{"$f":"F118-F195","v":0},0,0,0,{"$f":"J118-J195","v":0},0,{"$f":"L118-L195","v":0},0,0,0,0,{"$f":"Q118-Q195","v":0},{"$f":"R118-R195","v":0},0]
[62,null,{"$f":"'FR-16(7)(v)-1 Functional'!C273","v":"SALES"},null,null,0,0,0,0,{"$f":"J119-J196","v":0},0,0,0,0,0,0,{"$f":"Q119-Q196","v":0},{"$f":"R119-R196","v":0},{"$f":"F273-R273","v":0}]
[63,null,{"$f":"'FR-16(7)(v)-1 Functional'!C274","v":"ADJUSTMENT"},null,null,{"$f":"F120-F197","v":-5505},-5439,-33,0,{"$f":"J120-J197","v":-1},0,-16,-11,0,-5,0,0,-5505,{"$f":"F274-R274","v":0}]
[64,null,"  COMMON & OTHER PLANT IN SERVICE",null,null,{"$f":"SUM($F$265:F274)","v":3332575},{"$f":"SUM(G265:G274)","v":1499300},903385,4339,{"$f":"SUM(J265:J274)","v":17124},234,450425,297779,14387,141096,4139,367,3332575,0]
[65]
[66,null,{"$f":"'FR-16(7)(v)-1 Functional'!C277","v":"NET ELECTRIC PLANT IN SERVICE"},null,null,{"$f":"F275+F263+F248+F222+F216","v":642421055},{"$f":"G275+G263+G248+G222+G216","v":289534968},{"$f":"H275+H263+H248+H222+H216","v":173892230},{"$f":"I275+I263+I248+I222+I216","v":835280},{"$f":"J275+J263+J248+J222+J216","v":3296140},44977,86701958,57319411,2769271,27159417,796726,{"$f":"Q275+Q263+Q248+Q222+Q216","v":70677},{"$f":"R275+R263+R248+R222+R216","v":642421055},{"$f":"S275+S263+S248+S222+S216","v":0}]
[]
[{"$f":"co_name","v":"DUKE ENERGY KENTUCKY, INC."},null,null,null,null,null,null,null,null,null,null,null,null,null,null,null,null,{"$f":"R1","v":"FR-16(7)(v)-3"}]
[{"$f":"$A$2","v":"PRODUCTION DEMAND ALLOCATED - ELECTRIC COST OF SERVICE"},null,null,null,null,null,null,null,null,null,null,null,null,null,null,null,null,{"$f":"R2","v":"WITNESS RESPONSIBLE:"}]
[{"$f":"case_name","v":"CASE NO: 2019-00271"},null,null,null,null,null,null,null,null,null,null,null,null,null,null,null,null,{"$f":"Witness","v":"JAMES E. ZIOLKOWSKI"}]
[{"$f":"data_filing","v":"DATA: 12 MONTHS ACTUAL  & 0 MONTHS ESTIMATED"},null,null,null,null,null,null,null,null,null,null,null,null,null,null,null,null,{"$f":"\"PAGE \"&Pages-13&\" OF \"&Pages","v":"PAGE 5 OF 18"}]
[{"$f":"type","v":"TYPE OF FILING: \"X\" ORIGINAL   UPDATED    REVISED  "}]
[]
[null,null,null,null,null,{"$f":"F$7","v":"TOTAL"},null,{"$f":"H$7","v":"DS"},{"$f":"I$7","v":"GSFL"},{"$f":"J$7","v":"EH"},{"$f":"K$7","v":"SP"},"DT SEC","DT PRI","DP","TT",null,"OTHER"]
["LINE",null,null,null,null,{"$f":"F$8","v":"PRODUCTION"},{"$f":"G$8","v":"RS"},{"$f":"H$8","v":"SECONDARY"},{"$f":"I$8","v":"SECONDARY"},{"$f":"J$8","v":"SECONDARY"},{"$f":"K$8","v":"SECONDARY"},"SECONDARY","PRIMARY","PRIMARY","TRANSMISSION","LT","WATER",{"$f":"R8","v":"TOTAL"},"ALL"]
["NO.","SUBTRACTIVE RATE BASE ADJUSTMENTS",null,"ALLO",null,{"$f":"F$9","v":"DEMAND"},{"$f":"G$9","v":"RESIDENTIAL"},{"$f":"H$9","v":"DISTRIBUTION"},{"$f":"I$9","v":"DISTRIBUTION"},{"$f":"J$9","v":"DISTRIBUTION"},{"$f":"K$9","v":"DISTRIBUTION"},"DISTRIBUTION","DISTRIBUTION","DISTRIBUTION","TIME OF DAY","LIGHTING","PUMPING",{"$f":"R9","v":"AT ISSUE"},"OTHER"]
[null,null,"Schedule 5",null,null,null,{"$f":"G$10","v":3},{"$f":"H$10","v":4},{"$f":"I$10","v":5},{"$f":"J$10","v":6},{"$f":"K$10","v":7},8,9,10,11,12,13,null," "]
[1,"RATE BASE ADJUSTMENTS"]
[2,"ACCUMULATED DEFERRED INCOME TAXES"]
[3," ACCUM DEF INC TAXES (282)"]
[4,null,{"$f":"'FR-16(7)(v)-1 Functional'!C292","v":"LIBERALIZED DEPRECIATION"},{"$f":"'FR-16(7)(v)-1 Functional'!D292","v":"NP29"}," ",{"$f":"'FR-16(7)(v)-2 PROD Classified'!G292","v":38042249},{"$f":"F292-SUM(H292:Q292)","v":17145642},{"$f":"ROUND(F292*VLOOKUP(D292,ALLOCTABLE_Prod_Demand,$H$10,FALSE),0)","v":10297276},{"$f":"ROUND(F292*VLOOKUP(D292,ALLOCTABLE_Prod_Demand,$I$10,FALSE),0)","v":49455},{"$f":"ROUND(F292*VLOOKUP(D292,ALLOCTABLE_Prod_Demand,$J$10,FALSE),0)","v":195157},{"$f":"ROUND(F292*VLOOKUP(D292,ALLOCTABLE_Prod_Demand,$K$10,FALSE),0)","v":2663},{"$f":"ROUND(F292*VLOOKUP(D292,ALLOCTABLE_Prod_Demand,$L$10,FALSE),0)","v":5134182},{"$f":"ROUND(F292*VLOOKUP(D292,ALLOCTABLE_Prod_Demand,$M$10,FALSE),0)","v":3394129},{"$f":"ROUND(F292*VLOOKUP(D292,ALLOCTABLE_Prod_Demand,$N$10,FALSE),0)","v":163962},{"$f":"ROUND(F292*VLOOKUP(D292,ALLOCTABLE_Prod_Demand,$O$10,FALSE),0)","v":1608426},{"$f":"ROUND(F292*VLOOKUP(D292,ALLOCTABLE_Prod_Demand,$P$10,FALSE),0)","v":47172},{"$f":"ROUND(F292*VLOOKUP(D292,ALLOCTABLE_Prod_Demand,$Q$10,FALSE),0)","v":4185},{"$f":"SUM(G292:Q292)","v":38042249},{"$f":"F292-R292","v":0}]
[5,null,{"$f":"'FR-16(7)(v)-1 Functional'!C293","v":"LEASED METERS"},{"$f":"'FR-16(7)(v)-1 Functional'!D293","v":"NP29"}," ",{"$f":"'FR-16(7)(v)-2 PROD Classified'!G293","v":862887},388903,233566,1122,4427,60,116455,76987,3719,36483,1070,95,862887,0]
[6,null,{"$f":"'FR-16(7)(v)-1 Functional'!C294","v":"CONTRIB AID CONSTR"},{"$f":"'FR-16(7)(v)-1 Functional'!D294","v":"D249"}," ",{"$f":"'FR-16(7)(v)-2 PROD Classified'!G294","v":0},0,0,0,0,0,0,0,0,0,0,0,0,0]
[7,null,{"$f":"'FR-16(7)(v)-1 Functional'!C295","v":"TAX INTEREST, EXPENSING, DEPR."},{"$f":"'FR-16(7)(v)-1 Functional'!D295","v":"NP29"}," ",{"$f":"'FR-16(7)(v)-2 PROD Classified'!G295","v":37984398},17119568,10281617,49380,194860,2659,5126374,3388968,163713,1605980,47101,4178,37984398,0]
[8,null,{"$f":"'FR-16(7)(v)-1 Functional'!C296","v":"AFUDC IN DEBT"},{"$f":"'FR-16(7)(v)-1 Functional'!D296","v":"NP29"}," ",{"$f":"'FR-16(7)(v)-2 PROD Classified'!G296","v":0},0,0,0,0,0,0,0,0,0,0,0,0,0]
[9,null,{"$f":"'FR-16(7)(v)-1 Functional'!C297","v":"CASUALTY LOSS"},{"$f":"'FR-16(7)(v)-1 Functional'!D297","v":"K411"}," ",{"$f":"'FR-16(7)(v)-2 PROD Classified'!G297","v":0},0,0,0,0,0,0,0,0,0,0,0,0,0]
[10,null,{"$f":"'FR-16(7)(v)-1 Functional'!C298","v":"NON-CASH OVERHEADS"},{"$f":"'FR-16(7)(v)-1 Functional'!D298","v":"G229"}," ",{"$f":"'FR-16(7)(v)-2 PROD Classified'!G298","v":0},0,0,0,0,0,0,0,0,0,0,0,0,0]
[11,null,{"$f":"'FR-16(7)(v)-1 Functional'!C299","v":"PLANT FAS 109"},{"$f":"'FR-16(7)(v)-1 Functional'!D299","v":"NP29"}," ",{"$f":"'FR-16(7)(v)-2 PROD Classified'!G299","v":0},0,0,0,0,0,0,0,0,0,0,0,0,0]
[12,null,{"$f":"'FR-16(7)(v)-1 Functional'!C300","v":"MISCELLANEOUS"},{"$f":"'FR-16(7)(v)-1 Functional'!D300","v":"NP29"},null,{"$f":"'FR-16(7)(v)-2 PROD Classified'!G300","v":35843349},16154597,9702078,46596,183876,2509,4837418,3197944,154485,1515457,44446,3943,35843349,0]
[13,null,{"$f":"'FR-16(7)(v)-1 Functional'!C301","v":"  TOTAL ACCOUNT 282"},null,null,{"$f":"SUM($F$292:F300)","v":112732883},{"$f":"SUM(G292:G300)","v":50808710},{"$f":"SUM(H292:H300)","v":30514537},{"$f":"SUM(I292:I300)","v":146553},{"$f":"SUM(J292:J300)","v":578320},7891,15214429,10058028,485879,4766346,139789,{"$f":"SUM(Q292:Q300)","v":12401},{"$f":"SUM(R292:R300)","v":112732883},{"$f":"SUM(S292:S300)","v":0}]
[14]
[15," ACCUM DEF INC TAXES (283)"]
[16,null,{"$f":"'FR-16(7)(v)-1 Functional'!C304","v":"TRANSITION FROM MISO TO PJM"},{"$f":"'FR-16(7)(v)-1 Functional'!D304","v":"NP29"},null,{"$f":"'FR-16(7)(v)-2 PROD Classified'!G304","v":-2041250},{"$f":"F304-SUM(H304:Q304)","v":-919990},{"$f":"ROUND(F304*VLOOKUP(D304,ALLOCTABLE_Prod_Demand,$H$10,FALSE),0)","v":-552526},{"$f":"ROUND(F304*VLOOKUP(D304,ALLOCTABLE_Prod_Demand,$I$10,FALSE),0)","v":-2654},{"$f":"ROUND(F304*VLOOKUP(D304,ALLOCTABLE_Prod_Demand,$J$10,FALSE),0)","v":-10472},{"$f":"ROUND(F304*VLOOKUP(D304,ALLOCTABLE_Prod_Demand,$K$10,FALSE),0)","v":-143},{"$f":"ROUND(F304*VLOOKUP(D304,ALLOCTABLE_Prod_Demand,$L$10,FALSE),0)","v":-275487},{"$f":"ROUND(F304*VLOOKUP(D304,ALLOCTABLE_Prod_Demand,$M$10,FALSE),0)","v":-182120},{"$f":"ROUND(F304*VLOOKUP(D304,ALLOCTABLE_Prod_Demand,$N$10,FALSE),0)","v":-8798},{"$f":"ROUND(F304*VLOOKUP(D304,ALLOCTABLE_Prod_Demand,$O$10,FALSE),0)","v":-86304},{"$f":"ROUND(F304*VLOOKUP(D304,ALLOCTABLE_Prod_Demand,$P$10,FALSE),0)","v":-2531},{"$f":"ROUND(F304*VLOOKUP(D304,ALLOCTABLE_Prod_Demand,$Q$10,FALSE),0)","v":-225},{"$f":"SUM(G304:Q304)","v":-2041250},{"$f":"F304-R304","v":0}]
[17,null,{"$f":"'FR-16(7)(v)-1 Functional'!C305","v":"DEFERRED PLANT COSTS"},{"$f":"'FR-16(7)(v)-1 Functional'!D305","v":"NP29"},null,{"$f":"'FR-16(7)(v)-2 PROD Classified'!G305","v":397667},179228,107641,517,2040,28,53669,35480,1714,16813,493,44,397667,0]
[18,null,{"$f":"'FR-16(7)(v)-1 Functional'!C306","v":"MISCELLANEOUS"},{"$f":"'FR-16(7)(v)-1 Functional'!D306","v":"OM39"},null,{"$f":"'FR-16(7)(v)-2 PROD Classified'!G306","v":339761},318303,10573,51,200,3,5273,3486,170,1651,48,3,339761,0]
[19,null,{"$f":"'FR-16(7)(v)-1 Functional'!C307","v":"ENVIRONMENTAL RESERVE"},{"$f":"'FR-16(7)(v)-1 Functional'!D307","v":"NP29"},null,{"$f":"'FR-16(7)(v)-2 PROD Classified'!G307","v":0},0,0,0,0,0,0,0,0,0,0,0,0,0]
[20,null,{"$f":"'FR-16(7)(v)-1 Functional'!C308","v":"POST IN-SERVICE CARRYING COSTS"},{"$f":"'FR-16(7)(v)-1 Functional'!D308","v":"NP29"},null,{"$f":"'FR-16(7)(v)-2 PROD Classified'!G308","v":0},0,0,0,0,0,0,0,0,0,0,0,0,0]
[21,null,{"$f":"'FR-16(7)(v)-1 Functional'!C309","v":"ARO CUMULATIVE EFFECT"},{"$f":"'FR-16(7)(v)-1 Functional'!D309","v":"NP29"},null,{"$f":"'FR-16(7)(v)-2 PROD Classified'!G309","v":0},0,0,0,0,0,0,0,0,0,0,0,0,0]
[22,null,{"$f":"'FR-16(7)(v)-1 Functional'!C310","v":"LOSS ON REACQUIRED DEBT"},{"$f":"'FR-16(7)(v)-1 Functional'!D310","v":"D249"},null,{"$f":"'FR-16(7)(v)-2 PROD Classified'!G310","v":0},0,0,0,0,0,0,0,0,0,0,0,0,0]
[23,null,{"$f":"'FR-16(7)(v)-1 Functional'!C311","v":"VACATION PAY ACCRUAL"},{"$f":"'FR-16(7)(v)-1 Functional'!D311","v":"A315"},null,{"$f":"'FR-16(7)(v)-2 PROD Classified'!G311","v":0},0,0,0,0,0,0,0,0,0,0,0,0,0]
[24,null,{"$f":"'FR-16(7)(v)-1 Functional'!C312","v":"NON-AMI METERS RETIRED EARLY"},{"$f":"'FR-16(7)(v)-1 Functional'!D312","v":"OM39"},null,{"$f":"'FR-16(7)(v)-2 PROD Classified'!G312","v":40766},38192,1269,6,24,0,633,418,20,198,6,0,{"$f":"SUM(G312:Q312)","v":40766},{"$f":"F312-R312","v":0}]
[25,null,{"$f":"'FR-16(7)(v)-1 Functional'!C313","v":"PENSION EXPENSE"},{"$f":"'FR-16(7)(v)-1 Functional'!D313","v":"A315"},null,{"$f":"'FR-16(7)(v)-2 PROD Classified'!G313","v":2073098},2048034,12356,62,228,0,6157,4084,187,1928,62,0,{"$f":"SUM(G313:Q313)","v":2073098},{"$f":"F313-R313","v":0}]
[26,null,{"$f":"'FR-16(7)(v)-1 Functional'!C314","v":"UNCOLLECTIBLE ACCOUNTS"},{"$f":"'FR-16(7)(v)-1 Functional'!D314","v":"K411"},null,{"$f":"'FR-16(7)(v)-2 PROD Classified'!G314","v":0},0,0,0,0,0,0,0,0,0,0,0,0,0]
[27,null,{"$f":"'FR-16(7)(v)-1 Functional'!C315","v":"  TOTAL ACCOUNT 283"},null,null,{"$f":"SUM($F$303:F314)","v":810042},{"$f":"SUM(G303:G314)","v":1663767},{"$f":"SUM(H303:H314)","v":-420687},{"$f":"SUM(I303:I314)","v":-2018},{"$f":"SUM(J303:J314)","v":-7980},-112,-209755,-138652,-6707,-65714,-1922,{"$f":"SUM(Q303:Q314)","v":-178},{"$f":"SUM(R303:R314)","v":810042},{"$f":"SUM(S303:S314)","v":0}]
[28]
[29," OTHER ACCUMULATED DEFERRED INCOME TAXES"]
[30,null,{"$f":"'FR-16(7)(v)-1 Functional'!C318","v":"EXCESS ADIT"},{"$f":"'FR-16(7)(v)-1 Functional'!D318","v":"NP29"},null,{"$f":"'FR-16(7)(v)-2 PROD Classified'!G318","v":35383388},{"$f":"F318-SUM(H318:Q318)","v":15947294},{"$f":"ROUND(F318*VLOOKUP(D318,ALLOCTABLE_Prod_Demand,$H$10,FALSE),0)","v":9577575},{"$f":"ROUND(F318*VLOOKUP(D318,ALLOCTABLE_Prod_Demand,$I$10,FALSE),0)","v":45998},{"$f":"ROUND(F318*VLOOKUP(D318,ALLOCTABLE_Prod_Demand,$J$10,FALSE),0)","v":181517},{"$f":"ROUND(F318*VLOOKUP(D318,ALLOCTABLE_Prod_Demand,$K$10,FALSE),0)","v":2477},{"$f":"ROUND(F318*VLOOKUP(D318,ALLOCTABLE_Prod_Demand,$L$10,FALSE),0)","v":4775342},{"$f":"ROUND(F318*VLOOKUP(D318,ALLOCTABLE_Prod_Demand,$M$10,FALSE),0)","v":3156906},{"$f":"ROUND(F318*VLOOKUP(D318,ALLOCTABLE_Prod_Demand,$N$10,FALSE),0)","v":152502},{"$f":"ROUND(F318*VLOOKUP(D318,ALLOCTABLE_Prod_Demand,$O$10,FALSE),0)","v":1496010},{"$f":"ROUND(F318*VLOOKUP(D318,ALLOCTABLE_Prod_Demand,$P$10,FALSE),0)","v":43875},{"$f":"ROUND(F318*VLOOKUP(D318,ALLOCTABLE_Prod_Demand,$Q$10,FALSE),0)","v":3892},{"$f":"SUM(G318:Q318)","v":35383388},{"$f":"F318-R318","v":0}]
[31,null,{"$f":"'FR-16(7)(v)-1 Functional'!C319","v":"CUSTOMER SERVICE DEPOSITS"},{"$f":"'FR-16(7)(v)-1 Functional'!D319","v":"NP29"},null,{"$f":"'FR-16(7)(v)-2 PROD Classified'!G319","v":0},{"$f":"F319-SUM(H319:Q319)","v":0},{"$f":"ROUND(F319*VLOOKUP(D319,ALLOCTABLE_Prod_Demand,$H$10,FALSE),0)","v":0},{"$f":"ROUND(F319*VLOOKUP(D319,ALLOCTABLE_Prod_Demand,$I$10,FALSE),0)","v":0},{"$f":"ROUND(F319*VLOOKUP(D319,ALLOCTABLE_Prod_Demand,$J$10,FALSE),0)","v":0},{"$f":"ROUND(F319*VLOOKUP(D319,ALLOCTABLE_Prod_Demand,$K$10,FALSE),0)","v":0},{"$f":"ROUND(F319*VLOOKUP(D319,ALLOCTABLE_Prod_Demand,$L$10,FALSE),0)","v":0},{"$f":"ROUND(F319*VLOOKUP(D319,ALLOCTABLE_Prod_Demand,$M$10,FALSE),0)","v":0},{"$f":"ROUND(F319*VLOOKUP(D319,ALLOCTABLE_Prod_Demand,$N$10,FALSE),0)","v":0},{"$f":"ROUND(F319*VLOOKUP(D319,ALLOCTABLE_Prod_Demand,$O$10,FALSE),0)","v":0},{"$f":"ROUND(F319*VLOOKUP(D319,ALLOCTABLE_Prod_Demand,$P$10,FALSE),0)","v":0},{"$f":"ROUND(F319*VLOOKUP(D319,ALLOCTABLE_Prod_Demand,$Q$10,FALSE),0)","v":0},{"$f":"SUM(G319:Q319)","v":0},{"$f":"F319-R319","v":0}]
[32,null,{"$f":"'FR-16(7)(v)-1 Functional'!C320","v":"POST RETIREMENT BENEFITS"},{"$f":"'FR-16(7)(v)-1 Functional'!D320","v":"NP29"},null,{"$f":"'FR-16(7)(v)-2 PROD Classified'!G320","v":0},{"$f":"F320-SUM(H320:Q320)","v":0},{"$f":"ROUND(F320*VLOOKUP(D320,ALLOCTABLE_Prod_Demand,$H$10,FALSE),0)","v":0},{"$f":"ROUND(F320*VLOOKUP(D320,ALLOCTABLE_Prod_Demand,$I$10,FALSE),0)","v":0},{"$f":"ROUND(F320*VLOOKUP(D320,ALLOCTABLE_Prod_Demand,$J$10,FALSE),0)","v":0},{"$f":"ROUND(F320*VLOOKUP(D320,ALLOCTABLE_Prod_Demand,$K$10,FALSE),0)","v":0},{"$f":"ROUND(F320*VLOOKUP(D320,ALLOCTABLE_Prod_Demand,$L$10,FALSE),0)","v":0},{"$f":"ROUND(F320*VLOOKUP(D320,ALLOCTABLE_Prod_Demand,$M$10,FALSE),0)","v":0},{"$f":"ROUND(F320*VLOOKUP(D320,ALLOCTABLE_Prod_Demand,$N$10,FALSE),0)","v":0},{"$f":"ROUND(F320*VLOOKUP(D320,ALLOCTABLE_Prod_Demand,$O$10,FALSE),0)","v":0},{"$f":"ROUND(F320*VLOOKUP(D320,ALLOCTABLE_Prod_Demand,$P$10,FALSE),0)","v":0},{"$f":"ROUND(F320*VLOOKUP(D320,ALLOCTABLE_Prod_Demand,$Q$10,FALSE),0)","v":0},{"$f":"SUM(G320:Q320)","v":0},{"$f":"F320-R320","v":0}]
[33,null,{"$f":"'FR-16(7)(v)-1 Functional'!C321","v":"INVESTMENT TAX CREDIT"},{"$f":"'FR-16(7)(v)-1 Functional'!D321","v":"NP29"},null,{"$f":"'FR-16(7)(v)-2 PROD Classified'!G321","v":0},{"$f":"F321-SUM(H321:Q321)","v":0},{"$f":"ROUND(F321*VLOOKUP(D321,ALLOCTABLE_Prod_Demand,$H$10,FALSE),0)","v":0},{"$f":"ROUND(F321*VLOOKUP(D321,ALLOCTABLE_Prod_Demand,$I$10,FALSE),0)","v":0},{"$f":"ROUND(F321*VLOOKUP(D321,ALLOCTABLE_Prod_Demand,$J$10,FALSE),0)","v":0},{"$f":"ROUND(F321*VLOOKUP(D321,ALLOCTABLE_Prod_Demand,$K$10,FALSE),0)","v":0},{"$f":"ROUND(F321*VLOOKUP(D321,ALLOCTABLE_Prod_Demand,$L$10,FALSE),0)","v":0},{"$f":"ROUND(F321*VLOOKUP(D321,ALLOCTABLE_Prod_Demand,$M$10,FALSE),0)","v":0},{"$f":"ROUND(F321*VLOOKUP(D321,ALLOCTABLE_Prod_Demand,$N$10,FALSE),0)","v":0},{"$f":"ROUND(F321*VLOOKUP(D321,ALLOCTABLE_Prod_Demand,$O$10,FALSE),0)","v":0},{"$f":"ROUND(F321*VLOOKUP(D321,ALLOCTABLE_Prod_Demand,$P$10,FALSE),0)","v":0},{"$f":"ROUND(F321*VLOOKUP(D321,ALLOCTABLE_Prod_Demand,$Q$10,FALSE),0)","v":0},{"$f":"SUM(G321:Q321)","v":0},{"$f":"F321-R321","v":0}]
[34,null,{"$f":"'FR-16(7)(v)-1 Functional'!C322","v":"  TOTAL OTHER SUBTRACTIVE ADJUSTMENTS"},null,null,{"$f":"SUM($F$317:F321)","v":35383388},{"$f":"SUM(G317:G321)","v":15947294},{"$f":"SUM(H317:H321)","v":9577575},{"$f":"SUM(I317:I321)","v":45998},{"$f":"SUM(J317:J321)","v":181517},2477,4775342,3156906,152502,1496010,43875,{"$f":"SUM(Q317:Q321)","v":3892},{"$f":"SUM(R317:R321)","v":35383388},{"$f":"SUM(S317:S321)","v":0}]
[35]
[36,{"$f":"'FR-16(7)(v)-1 Functional'!B324","v":"TOTAL SUBTRACTIVE RATE BASE ADJUSTMENTS"},null,null,null,{"$f":"F322+F315+F301","v":148926313},{"$f":"G322+G315+G301","v":68419771},{"$f":"H322+H315+H301","v":39671425},{"$f":"I322+I315+I301","v":190533},{"$f":"J322+J315+J301","v":751857},10256,19780016,13076282,631674,6196642,181742,{"$f":"Q322+Q315+Q301","v":16115},{"$f":"R322+R315+R301","v":148926313},{"$f":"S322+S315+S301","v":0}]
[]
[{"$f":"co_name","v":"DUKE ENERGY KENTUCKY, INC."},null,null,null,null,null,null,null,null,null,null,null,null,null,null,null,null,{"$f":"R1","v":"FR-16(7)(v)-3"}]
[{"$f":"$A$2","v":"PRODUCTION DEMAND ALLOCATED - ELECTRIC COST OF SERVICE"},null,null,null,null,null,null,null,null,null,null,null,null,null,null,null,null,{"$f":"R2","v":"WITNESS RESPONSIBLE:"}]
[{"$f":"case_name","v":"CASE NO: 2019-00271"},null,null,null,null,null,null,null,null,null,null,null,null,null,null,null,null,{"$f":"Witness","v":"JAMES E. ZIOLKOWSKI"}]
[{"$f":"data_filing","v":"DATA: 12 MONTHS ACTUAL  & 0 MONTHS ESTIMATED"},null,null,null,null,null,null,null,null,null,null,null,null,null,null,null,null,{"$f":"\"PAGE \"&Pages-12&\" OF \"&Pages","v":"PAGE 6 OF 18"}]
[{"$f":"type","v":"TYPE OF FILING: \"X\" ORIGINAL   UPDATED    REVISED  "}]
[]
[null,null,null,null,null,{"$f":"F$7","v":"TOTAL"},null,{"$f":"H$7","v":"DS"},{"$f":"I$7","v":"GSFL"},{"$f":"J$7","v":"EH"},{"$f":"K$7","v":"SP"},"DT SEC","DT PRI","DP","TT",null,"OTHER"]
["LINE",null,null,null,null,{"$f":"F$8","v":"PRODUCTION"},{"$f":"G$8","v":"RS"},{"$f":"H$8","v":"SECONDARY"},{"$f":"I$8","v":"SECONDARY"},{"$f":"J$8","v":"SECONDARY"},{"$f":"K$8","v":"SECONDARY"},"SECONDARY","PRIMARY","PRIMARY","TRANSMISSION","LT","WATER",{"$f":"R8","v":"TOTAL"},"ALL"]
["NO.","ADDITIVE RATE BASE ADJUSTMENTS",null,"ALLO",null,{"$f":"F$9","v":"DEMAND"},{"$f":"G$9","v":"RESIDENTIAL"},{"$f":"H$9","v":"DISTRIBUTION"},{"$f":"I$9","v":"DISTRIBUTION"},{"$f":"J$9","v":"DISTRIBUTION"},{"$f":"K$9","v":"DISTRIBUTION"},"DISTRIBUTION","DISTRIBUTION","DISTRIBUTION","TIME OF DAY","LIGHTING","PUMPING",{"$f":"R9","v":"AT ISSUE"},"OTHER"]
[null,null,"Schedule 5.1",null,null,null,{"$f":"G$10","v":3},{"$f":"H$10","v":4},{"$f":"I$10","v":5},{"$f":"J$10","v":6},{"$f":"K$10","v":7},8,9,10,11,12,13,null," "]
[1,"OTHER ACCUMULATED DEFERRED INCOME TAXES"]
[2," ACCUM DEF INC TAXES (190)"]
[3,null,{"$f":"'FR-16(7)(v)-1 Functional'!C338","v":"UNCOLLECTIBLE ACCTS"},{"$f":"'FR-16(7)(v)-1 Functional'!D338","v":"K411"},null,{"$f":"'FR-16(7)(v)-2 PROD Classified'!G338","v":0},{"$f":"F338-SUM(H338:Q338)","v":0},{"$f":"ROUND(F338*VLOOKUP(D338,ALLOCTABLE_Prod_Demand,$H$10,FALSE),0)","v":0},{"$f":"ROUND(F338*VLOOKUP(D338,ALLOCTABLE_Prod_Demand,$I$10,FALSE),0)","v":0},{"$f":"ROUND(F338*VLOOKUP(D338,ALLOCTABLE_Prod_Demand,$J$10,FALSE),0)","v":0},{"$f":"ROUND(F338*VLOOKUP(D338,ALLOCTABLE_Prod_Demand,$K$10,FALSE),0)","v":0},{"$f":"ROUND(F338*VLOOKUP(D338,ALLOCTABLE_Prod_Demand,$L$10,FALSE),0)","v":0},{"$f":"ROUND(F338*VLOOKUP(D338,ALLOCTABLE_Prod_Demand,$M$10,FALSE),0)","v":0},{"$f":"ROUND(F338*VLOOKUP(D338,ALLOCTABLE_Prod_Demand,$N$10,FALSE),0)","v":0},{"$f":"ROUND(F338*VLOOKUP(D338,ALLOCTABLE_Prod_Demand,$O$10,FALSE),0)","v":0},{"$f":"ROUND(F338*VLOOKUP(D338,ALLOCTABLE_Prod_Demand,$P$10,FALSE),0)","v":0},{"$f":"ROUND(F338*VLOOKUP(D338,ALLOCTABLE_Prod_Demand,$Q$10,FALSE),0)","v":0},{"$f":"SUM(G338:Q338)","v":0},{"$f":"F338-R338","v":0}]
[4,null,{"$f":"'FR-16(7)(v)-1 Functional'!C339","v":"CASH FLOW HEDGE"},{"$f":"'FR-16(7)(v)-1 Functional'!D339","v":"A315"},null,{"$f":"'FR-16(7)(v)-2 PROD Classified'!G339","v":83297},82293,496,2,9,0,247,164,7,77,2,0,83297,0]
[5,null,{"$f":"'FR-16(7)(v)-1 Functional'!C340","v":"RESERVED FOR FUTURE USE"},{"$f":"'FR-16(7)(v)-1 Functional'!D340","v":"NP29"},null,{"$f":"'FR-16(7)(v)-2 PROD Classified'!G340","v":0},0,0,0,0,0,0,0,0,0,0,0,0,0]
[6,null,{"$f":"'FR-16(7)(v)-1 Functional'!C341","v":"RESERVED FOR FUTURE USE"},{"$f":"'FR-16(7)(v)-1 Functional'!D341","v":"NP29"},null,{"$f":"'FR-16(7)(v)-2 PROD Classified'!G341","v":0},0,0,0,0,0,0,0,0,0,0,0,0,0]
[7,null,{"$f":"'FR-16(7)(v)-1 Functional'!C342","v":"ELECTRIC METERS"},{"$f":"'FR-16(7)(v)-1 Functional'!D342","v":"K407"},null,{"$f":"'FR-16(7)(v)-2 PROD Classified'!G342","v":0},0,0,0,0,0,0,0,0,0,0,0,0,0]
[8,null,{"$f":"'FR-16(7)(v)-1 Functional'!C343","v":"UNAMORTIZED DEBT PREMIUM"},{"$f":"'FR-16(7)(v)-1 Functional'!D343","v":"D249"},null,{"$f":"'FR-16(7)(v)-2 PROD Classified'!G343","v":0},0,0,0,0,0,0,0,0,0,0,0,0,0]
[9,null,{"$f":"'FR-16(7)(v)-1 Functional'!C344","v":"ARO CUMULATIVE EFFECT"},{"$f":"'FR-16(7)(v)-1 Functional'!D344","v":"NP29"},null,{"$f":"'FR-16(7)(v)-2 PROD Classified'!G344","v":0},0,0,0,0,0,0,0,0,0,0,0,0,0]
[10,null,{"$f":"'FR-16(7)(v)-1 Functional'!C345","v":"RETIREMENT PLAN"},{"$f":"'FR-16(7)(v)-1 Functional'!D345","v":"A315"},null,{"$f":"'FR-16(7)(v)-2 PROD Classified'!G345","v":855620},845275,5099,26,94,0,2541,1686,77,796,26,0,855620,0]
[11,null,{"$f":"'FR-16(7)(v)-1 Functional'!C346","v":"POST RETIREMENT BENEFITS "},{"$f":"'FR-16(7)(v)-1 Functional'!D346","v":"A315"},null,{"$f":"'FR-16(7)(v)-2 PROD Classified'!G346","v":0},0,0,0,0,0,0,0,0,0,0,0,0,0]
[12,null,{"$f":"'FR-16(7)(v)-1 Functional'!C347","v":"POST RETIREMENT BENEFITS - HEALTH CARE"},{"$f":"'FR-16(7)(v)-1 Functional'!D347","v":"A315"},null,{"$f":"'FR-16(7)(v)-2 PROD Classified'!G347","v":0},0,0,0,0,0,0,0,0,0,0,0,0,0]
[13,null,{"$f":"'FR-16(7)(v)-1 Functional'!C348","v":"POST EMPLOYMENT BENEFITS - SFAS 112"},{"$f":"'FR-16(7)(v)-1 Functional'!D348","v":"A315"},null,{"$f":"'FR-16(7)(v)-2 PROD Classified'!G348","v":0},0,0,0,0,0,0,0,0,0,0,0,0,0]
[14,null,{"$f":"'FR-16(7)(v)-1 Functional'!C349","v":"SUPPLEMENTAL PENSION PLAN"},{"$f":"'FR-16(7)(v)-1 Functional'!D349","v":"A315"},null,{"$f":"'FR-16(7)(v)-2 PROD Classified'!G349","v":0},0,0,0,0,0,0,0,0,0,0,0,0,0]
[15,null,{"$f":"'FR-16(7)(v)-1 Functional'!C350","v":"INCENTIVE PLAN"},{"$f":"'FR-16(7)(v)-1 Functional'!D350","v":"A315"},null,{"$f":"'FR-16(7)(v)-2 PROD Classified'!G350","v":0},0,0,0,0,0,0,0,0,0,0,0,0,0]
[16,null,{"$f":"'FR-16(7)(v)-1 Functional'!C351","v":"FEDERAL DEFERRED TAX RECEIVEABLE"},{"$f":"'FR-16(7)(v)-1 Functional'!D351","v":"A315"},null,{"$f":"'FR-16(7)(v)-2 PROD Classified'!G351","v":0},0,0,0,0,0,0,0,0,0,0,0,0,0]
[17,null,{"$f":"'FR-16(7)(v)-1 Functional'!C352","v":"MISCELLANEOUS"},{"$f":"'FR-16(7)(v)-1 Functional'!D352","v":"A315"},null,{"$f":"'FR-16(7)(v)-2 PROD Classified'!G352","v":2746289},2713088,16368,82,302,0,8156,5410,247,2554,82,0,2746289,0]
[18,null,{"$f":"'FR-16(7)(v)-1 Functional'!C353","v":"DEFERRED TAX"},{"$f":"'FR-16(7)(v)-1 Functional'!D353","v":"A315"},null,{"$f":"'FR-16(7)(v)-2 PROD Classified'!G353","v":1251462},1236330,7459,38,138,0,3717,2465,113,1164,38,0,1251462,0]
[19,null,{"$f":"'FR-16(7)(v)-1 Functional'!C354","v":"NET OPERATING LOSS"},{"$f":"'FR-16(7)(v)-1 Functional'!D354","v":"NP29"},null,{"$f":"'FR-16(7)(v)-2 PROD Classified'!G354","v":0},0,0,0,0,0,0,0,0,0,0,0,0,0]
[20,null,{"$f":"'FR-16(7)(v)-1 Functional'!C355","v":"401K INCENTIVE PLAN"},{"$f":"'FR-16(7)(v)-1 Functional'!D355","v":"A315"},null,{"$f":"'FR-16(7)(v)-2 PROD Classified'!G355","v":0},0,0,0,0,0,0,0,0,0,0,0,0,0]
[21,null,{"$f":"'FR-16(7)(v)-1 Functional'!C356","v":"ENVIRONMENTAL RESERVE"},{"$f":"'FR-16(7)(v)-1 Functional'!D356","v":"NP29"},null,{"$f":"'FR-16(7)(v)-2 PROD Classified'!G356","v":0},0,0,0,0,0,0,0,0,0,0,0,0,0]
[22,null,{"$f":"'FR-16(7)(v)-1 Functional'!C357","v":"VACATION PAY ACCRUALS"},{"$f":"'FR-16(7)(v)-1 Functional'!D357","v":"A315"},null,{"$f":"'FR-16(7)(v)-2 PROD Classified'!G357","v":135659},134019,809,4,15,0,403,267,12,126,4,0,135659,0]
[23,null,{"$f":"'FR-16(7)(v)-1 Functional'!C358","v":"DEMAND SIDE MANAGEMENT DEFERRAL"},{"$f":"'FR-16(7)(v)-1 Functional'!D358","v":"NP29"},null,{"$f":"'FR-16(7)(v)-2 PROD Classified'!G358","v":352304},158783,95362,458,1807,25,47547,31433,1518,14895,437,39,352304,0]
[24,null,{"$f":"'FR-16(7)(v)-1 Functional'!C359","v":"OPERATING LEASE OBLIGATION"},{"$f":"'FR-16(7)(v)-1 Functional'!D359","v":"NP29"},null,{"$f":"'FR-16(7)(v)-2 PROD Classified'!G359","v":1303688},587572,352882,1695,6688,91,175946,116315,5619,55120,1617,143,1303688,0]
[25,null,{"$f":"'FR-16(7)(v)-1 Functional'!C360","v":"INJURIES & DAMAGES"},{"$f":"'FR-16(7)(v)-1 Functional'!D360","v":"NP29"},null,{"$f":"'FR-16(7)(v)-2 PROD Classified'!G360","v":0},0,0,0,0,0,0,0,0,0,0,0,0,0]
[26,null,{"$f":"'FR-16(7)(v)-1 Functional'!C361","v":"  TOTAL ACCOUNT 190"},null,null,{"$f":"SUM($F$337:F360)","v":6728319},{"$f":"SUM(G337:G360)","v":5757360},{"$f":"SUM(H337:H360)","v":478475},{"$f":"SUM(I337:I360)","v":2305},{"$f":"SUM(J337:J360)","v":9053},116,238557,157740,7593,74732,2206,{"$f":"SUM(Q337:Q360)","v":182},{"$f":"SUM(R337:R360)","v":6728319},{"$f":"SUM(S337:S360)","v":0}]
[27]
[28," OTHER"]
[29,null,{"$f":"'FR-16(7)(v)-1 Functional'!C364","v":"RESERVED FOR FUTURE USE"},{"$f":"'FR-16(7)(v)-1 Functional'!D364","v":"NP29"},null,{"$f":"'FR-16(7)(v)-2 PROD Classified'!G364","v":0},{"$f":"F364-SUM(H364:Q364)","v":0},{"$f":"ROUND(F364*VLOOKUP(D364,ALLOCTABLE_Prod_Demand,$H$10,FALSE),0)","v":0},{"$f":"ROUND(F364*VLOOKUP(D364,ALLOCTABLE_Prod_Demand,$I$10,FALSE),0)","v":0},{"$f":"ROUND(F364*VLOOKUP(D364,ALLOCTABLE_Prod_Demand,$J$10,FALSE),0)","v":0},{"$f":"ROUND(F364*VLOOKUP(D364,ALLOCTABLE_Prod_Demand,$K$10,FALSE),0)","v":0},{"$f":"ROUND(F364*VLOOKUP(D364,ALLOCTABLE_Prod_Demand,$L$10,FALSE),0)","v":0},{"$f":"ROUND(F364*VLOOKUP(D364,ALLOCTABLE_Prod_Demand,$M$10,FALSE),0)","v":0},{"$f":"ROUND(F364*VLOOKUP(D364,ALLOCTABLE_Prod_Demand,$N$10,FALSE),0)","v":0},{"$f":"ROUND(F364*VLOOKUP(D364,ALLOCTABLE_Prod_Demand,$O$10,FALSE),0)","v":0},{"$f":"ROUND(F364*VLOOKUP(D364,ALLOCTABLE_Prod_Demand,$P$10,FALSE),0)","v":0},{"$f":"ROUND(F364*VLOOKUP(D364,ALLOCTABLE_Prod_Demand,$Q$10,FALSE),0)","v":0},{"$f":"SUM(G364:Q364)","v":0},{"$f":"F364-R364","v":0}]
[30,null,{"$f":"'FR-16(7)(v)-1 Functional'!C365","v":"RATE CASE EXPENSE REGULATORY ASSET"},{"$f":"'FR-16(7)(v)-1 Functional'!D365","v":"NP29"},null,{"$f":"'FR-16(7)(v)-2 PROD Classified'!G365","v":528166},{"$f":"F365-SUM(H365:Q365)","v":238045},{"$f":"ROUND(F365*VLOOKUP(D365,ALLOCTABLE_Prod_Demand,$H$10,FALSE),0)","v":142964},{"$f":"ROUND(F365*VLOOKUP(D365,ALLOCTABLE_Prod_Demand,$I$10,FALSE),0)","v":687},{"$f":"ROUND(F365*VLOOKUP(D365,ALLOCTABLE_Prod_Demand,$J$10,FALSE),0)","v":2709},{"$f":"ROUND(F365*VLOOKUP(D365,ALLOCTABLE_Prod_Demand,$K$10,FALSE),0)","v":37},{"$f":"ROUND(F365*VLOOKUP(D365,ALLOCTABLE_Prod_Demand,$L$10,FALSE),0)","v":71281},{"$f":"ROUND(F365*VLOOKUP(D365,ALLOCTABLE_Prod_Demand,$M$10,FALSE),0)","v":47123},{"$f":"ROUND(F365*VLOOKUP(D365,ALLOCTABLE_Prod_Demand,$N$10,FALSE),0)","v":2276},{"$f":"ROUND(F365*VLOOKUP(D365,ALLOCTABLE_Prod_Demand,$O$10,FALSE),0)","v":22331},{"$f":"ROUND(F365*VLOOKUP(D365,ALLOCTABLE_Prod_Demand,$P$10,FALSE),0)","v":655},{"$f":"ROUND(F365*VLOOKUP(D365,ALLOCTABLE_Prod_Demand,$Q$10,FALSE),0)","v":58},{"$f":"SUM(G365:Q365)","v":528166},{"$f":"F365-R365","v":0}]
[31,null,{"$f":"'FR-16(7)(v)-1 Functional'!C366","v":"RESERVED FOR FUTURE USE"},{"$f":"'FR-16(7)(v)-1 Functional'!D366","v":"NP29"},null,0,{"$f":"F366-SUM(H366:Q366)","v":0},{"$f":"ROUND(F366*VLOOKUP(D366,ALLOCTABLE_Prod_Demand,$H$10,FALSE),0)","v":0},{"$f":"ROUND(F366*VLOOKUP(D366,ALLOCTABLE_Prod_Demand,$I$10,FALSE),0)","v":0},{"$f":"ROUND(F366*VLOOKUP(D366,ALLOCTABLE_Prod_Demand,$J$10,FALSE),0)","v":0},{"$f":"ROUND(F366*VLOOKUP(D366,ALLOCTABLE_Prod_Demand,$K$10,FALSE),0)","v":0},{"$f":"ROUND(F366*VLOOKUP(D366,ALLOCTABLE_Prod_Demand,$L$10,FALSE),0)","v":0},{"$f":"ROUND(F366*VLOOKUP(D366,ALLOCTABLE_Prod_Demand,$M$10,FALSE),0)","v":0},{"$f":"ROUND(F366*VLOOKUP(D366,ALLOCTABLE_Prod_Demand,$N$10,FALSE),0)","v":0},{"$f":"ROUND(F366*VLOOKUP(D366,ALLOCTABLE_Prod_Demand,$O$10,FALSE),0)","v":0},{"$f":"ROUND(F366*VLOOKUP(D366,ALLOCTABLE_Prod_Demand,$P$10,FALSE),0)","v":0},{"$f":"ROUND(F366*VLOOKUP(D366,ALLOCTABLE_Prod_Demand,$Q$10,FALSE),0)","v":0},{"$f":"SUM(G366:Q366)","v":0},{"$f":"F366-R366","v":0}]
[32,null,{"$f":"'FR-16(7)(v)-1 Functional'!C367","v":"  OTHER"},null,null,{"$f":"SUM($F$364:F366)","v":528166},{"$f":"SUM(G363:G366)","v":238045},142964,687,{"$f":"SUM(J363:J366)","v":2709},37,71281,47123,2276,22331,655,58,528166,0]
[33,null,null,null,null," "]
[34,"CONSTRUCTION WORK IN PROGRESS"]
[35,null,"PRODUCTION",{"$f":"'FR-16(7)(v)-1 Functional'!D370","v":"P129"},null,{"$f":"'FR-16(7)(v)-2 PROD Classified'!G370","v":0},{"$f":"F370-SUM(H370:Q370)","v":0},{"$f":"ROUND(F370*VLOOKUP(D370,ALLOCTABLE_Prod_Demand,$H$10,FALSE),0)","v":0},{"$f":"ROUND(F370*VLOOKUP(D370,ALLOCTABLE_Prod_Demand,$I$10,FALSE),0)","v":0},{"$f":"ROUND(F370*VLOOKUP(D370,ALLOCTABLE_Prod_Demand,$J$10,FALSE),0)","v":0},{"$f":"ROUND(F370*VLOOKUP(D370,ALLOCTABLE_Prod_Demand,$K$10,FALSE),0)","v":0},{"$f":"ROUND(F370*VLOOKUP(D370,ALLOCTABLE_Prod_Demand,$L$10,FALSE),0)","v":0},{"$f":"ROUND(F370*VLOOKUP(D370,ALLOCTABLE_Prod_Demand,$M$10,FALSE),0)","v":0},{"$f":"ROUND(F370*VLOOKUP(D370,ALLOCTABLE_Prod_Demand,$N$10,FALSE),0)","v":0},{"$f":"ROUND(F370*VLOOKUP(D370,ALLOCTABLE_Prod_Demand,$O$10,FALSE),0)","v":0},{"$f":"ROUND(F370*VLOOKUP(D370,ALLOCTABLE_Prod_Demand,$P$10,FALSE),0)","v":0},{"$f":"ROUND(F370*VLOOKUP(D370,ALLOCTABLE_Prod_Demand,$Q$10,FALSE),0)","v":0},{"$f":"SUM(G370:Q370)","v":0},{"$f":"F370-R370","v":0}]
[36,null,"TRANSMISSION",{"$f":"'FR-16(7)(v)-1 Functional'!D371","v":"T129"},null,{"$f":"'FR-16(7)(v)-2 PROD Classified'!G371","v":0},{"$f":"F371-SUM(H371:Q371)","v":0},{"$f":"ROUND(F371*VLOOKUP(D371,ALLOCTABLE_Prod_Demand,$H$10,FALSE),0)","v":0},{"$f":"ROUND(F371*VLOOKUP(D371,ALLOCTABLE_Prod_Demand,$I$10,FALSE),0)","v":0},{"$f":"ROUND(F371*VLOOKUP(D371,ALLOCTABLE_Prod_Demand,$J$10,FALSE),0)","v":0},{"$f":"ROUND(F371*VLOOKUP(D371,ALLOCTABLE_Prod_Demand,$K$10,FALSE),0)","v":0},{"$f":"ROUND(F371*VLOOKUP(D371,ALLOCTABLE_Prod_Demand,$L$10,FALSE),0)","v":0},{"$f":"ROUND(F371*VLOOKUP(D371,ALLOCTABLE_Prod_Demand,$M$10,FALSE),0)","v":0},{"$f":"ROUND(F371*VLOOKUP(D371,ALLOCTABLE_Prod_Demand,$N$10,FALSE),0)","v":0},{"$f":"ROUND(F371*VLOOKUP(D371,ALLOCTABLE_Prod_Demand,$O$10,FALSE),0)","v":0},{"$f":"ROUND(F371*VLOOKUP(D371,ALLOCTABLE_Prod_Demand,$P$10,FALSE),0)","v":0},{"$f":"ROUND(F371*VLOOKUP(D371,ALLOCTABLE_Prod_Demand,$Q$10,FALSE),0)","v":0},{"$f":"SUM(G371:Q371)","v":0},{"$f":"F371-R371","v":0}]
[37,null,"DISTRIBUTION",{"$f":"'FR-16(7)(v)-1 Functional'!D372","v":"D149"},null,{"$f":"'FR-16(7)(v)-2 PROD Classified'!G372","v":0},{"$f":"F372-SUM(H372:Q372)","v":0},{"$f":"ROUND(F372*VLOOKUP(D372,ALLOCTABLE_Prod_Demand,$H$10,FALSE),0)","v":0},{"$f":"ROUND(F372*VLOOKUP(D372,ALLOCTABLE_Prod_Demand,$I$10,FALSE),0)","v":0},{"$f":"ROUND(F372*VLOOKUP(D372,ALLOCTABLE_Prod_Demand,$J$10,FALSE),0)","v":0},{"$f":"ROUND(F372*VLOOKUP(D372,ALLOCTABLE_Prod_Demand,$K$10,FALSE),0)","v":0},{"$f":"ROUND(F372*VLOOKUP(D372,ALLOCTABLE_Prod_Demand,$L$10,FALSE),0)","v":0},{"$f":"ROUND(F372*VLOOKUP(D372,ALLOCTABLE_Prod_Demand,$M$10,FALSE),0)","v":0},{"$f":"ROUND(F372*VLOOKUP(D372,ALLOCTABLE_Prod_Demand,$N$10,FALSE),0)","v":0},{"$f":"ROUND(F372*VLOOKUP(D372,ALLOCTABLE_Prod_Demand,$O$10,FALSE),0)","v":0},{"$f":"ROUND(F372*VLOOKUP(D372,ALLOCTABLE_Prod_Demand,$P$10,FALSE),0)","v":0},{"$f":"ROUND(F372*VLOOKUP(D372,ALLOCTABLE_Prod_Demand,$Q$10,FALSE),0)","v":0},{"$f":"SUM(G372:Q372)","v":0},{"$f":"F372-R372","v":0}]
[38,null,"COMMON",{"$f":"'FR-16(7)(v)-1 Functional'!D373","v":"C129"},null,{"$f":"'FR-16(7)(v)-2 PROD Classified'!G373","v":0},{"$f":"F373-SUM(H373:Q373)","v":0},{"$f":"ROUND(F373*VLOOKUP(D373,ALLOCTABLE_Prod_Demand,$H$10,FALSE),0)","v":0},{"$f":"ROUND(F373*VLOOKUP(D373,ALLOCTABLE_Prod_Demand,$I$10,FALSE),0)","v":0},{"$f":"ROUND(F373*VLOOKUP(D373,ALLOCTABLE_Prod_Demand,$J$10,FALSE),0)","v":0},{"$f":"ROUND(F373*VLOOKUP(D373,ALLOCTABLE_Prod_Demand,$K$10,FALSE),0)","v":0},{"$f":"ROUND(F373*VLOOKUP(D373,ALLOCTABLE_Prod_Demand,$L$10,FALSE),0)","v":0},{"$f":"ROUND(F373*VLOOKUP(D373,ALLOCTABLE_Prod_Demand,$M$10,FALSE),0)","v":0},{"$f":"ROUND(F373*VLOOKUP(D373,ALLOCTABLE_Prod_Demand,$N$10,FALSE),0)","v":0},{"$f":"ROUND(F373*VLOOKUP(D373,ALLOCTABLE_Prod_Demand,$O$10,FALSE),0)","v":0},{"$f":"ROUND(F373*VLOOKUP(D373,ALLOCTABLE_Prod_Demand,$P$10,FALSE),0)","v":0},{"$f":"ROUND(F373*VLOOKUP(D373,ALLOCTABLE_Prod_Demand,$Q$10,FALSE),0)","v":0},{"$f":"SUM(G373:Q373)","v":0},{"$f":"F373-R373","v":0}]
[39,null,"GENERAL",{"$f":"'FR-16(7)(v)-1 Functional'!D374","v":"G129"},null,{"$f":"'FR-16(7)(v)-2 PROD Classified'!G374","v":0},{"$f":"F374-SUM(H374:Q374)","v":0},{"$f":"ROUND(F374*VLOOKUP(D374,ALLOCTABLE_Prod_Demand,$H$10,FALSE),0)","v":0},{"$f":"ROUND(F374*VLOOKUP(D374,ALLOCTABLE_Prod_Demand,$I$10,FALSE),0)","v":0},{"$f":"ROUND(F374*VLOOKUP(D374,ALLOCTABLE_Prod_Demand,$J$10,FALSE),0)","v":0},{"$f":"ROUND(F374*VLOOKUP(D374,ALLOCTABLE_Prod_Demand,$K$10,FALSE),0)","v":0},{"$f":"ROUND(F374*VLOOKUP(D374,ALLOCTABLE_Prod_Demand,$L$10,FALSE),0)","v":0},{"$f":"ROUND(F374*VLOOKUP(D374,ALLOCTABLE_Prod_Demand,$M$10,FALSE),0)","v":0},{"$f":"ROUND(F374*VLOOKUP(D374,ALLOCTABLE_Prod_Demand,$N$10,FALSE),0)","v":0},{"$f":"ROUND(F374*VLOOKUP(D374,ALLOCTABLE_Prod_Demand,$O$10,FALSE),0)","v":0},{"$f":"ROUND(F374*VLOOKUP(D374,ALLOCTABLE_Prod_Demand,$P$10,FALSE),0)","v":0},{"$f":"ROUND(F374*VLOOKUP(D374,ALLOCTABLE_Prod_Demand,$Q$10,FALSE),0)","v":0},{"$f":"SUM(G374:Q374)","v":0},{"$f":"F374-R374","v":0}]
[40,null,"TOTAL CONSTRUCTION WORK IN PROGRESS",null,null,{"$f":"SUM($F$370:F374)","v":0},{"$f":"SUM(G370:G374)","v":0},0,0,0,0,0,0,0,0,0,0,0]
[41]
[42,{"$f":"'FR-16(7)(v)-1 Functional'!B377","v":"TOTAL ADDITIVE RATE BASE ADJUSTMENTS"},null,null,null,{"$f":"F361+F367+F375","v":7256485},{"$f":"G361+G367+G375","v":5995405},{"$f":"H361+H367+H375","v":621439},{"$f":"I361+I367+I375","v":2992},{"$f":"J361+J367+J375","v":11762},153,309838,204863,9869,97063,2861,{"$f":"Q361+Q367+Q375","v":240},{"$f":"R361+R367+R375","v":7256485},{"$f":"S361+S367+S375","v":0}]
[]
[{"$f":"co_name","v":"DUKE ENERGY KENTUCKY, INC."},null,null,null,null,null,null,null,null,null,null,null,null,null,null,null,null,{"$f":"R1","v":"FR-16(7)(v)-3"}]
[{"$f":"$A$2","v":"PRODUCTION DEMAND ALLOCATED - ELECTRIC COST OF SERVICE"},null,null,null,null,null,null,null,null,null,null,null,null,null,null,null,null,{"$f":"R2","v":"WITNESS RESPONSIBLE:"}]
[{"$f":"case_name","v":"CASE NO: 2019-00271"},null,null,null,null,null,null,null,null,null,null,null,null,null,null,null,null,{"$f":"Witness","v":"JAMES E. ZIOLKOWSKI"}]
[{"$f":"data_filing","v":"DATA: 12 MONTHS ACTUAL  & 0 MONTHS ESTIMATED"},null,null,null,null,null,null,null,null,null,null,null,null,null,null,null,null,{"$f":"\"PAGE \"&Pages-11&\" OF \"&Pages","v":"PAGE 7 OF 18"}]
[{"$f":"type","v":"TYPE OF FILING: \"X\" ORIGINAL   UPDATED    REVISED  "}]
[]
[null,null,null,null,null,{"$f":"F$7","v":"TOTAL"},null,{"$f":"H$7","v":"DS"},{"$f":"I$7","v":"GSFL"},{"$f":"J$7","v":"EH"},{"$f":"K$7","v":"SP"},"DT SEC","DT PRI","DP","TT",null,"OTHER"]
["LINE",null,null,null,null,{"$f":"F$8","v":"PRODUCTION"},{"$f":"G$8","v":"RS"},{"$f":"H$8","v":"SECONDARY"},{"$f":"I$8","v":"SECONDARY"},{"$f":"J$8","v":"SECONDARY"},{"$f":"K$8","v":"SECONDARY"},"SECONDARY","PRIMARY","PRIMARY","TRANSMISSION","LT","WATER",{"$f":"R8","v":"TOTAL"},"ALL"]
["NO.","WORKING CAPITAL",null,"ALLO",null,{"$f":"F$9","v":"DEMAND"},{"$f":"G$9","v":"RESIDENTIAL"},{"$f":"H$9","v":"DISTRIBUTION"},{"$f":"I$9","v":"DISTRIBUTION"},{"$f":"J$9","v":"DISTRIBUTION"},{"$f":"K$9","v":"DISTRIBUTION"},"DISTRIBUTION","DISTRIBUTION","DISTRIBUTION","TIME OF DAY","LIGHTING","PUMPING",{"$f":"R9","v":"AT ISSUE"},"OTHER"]
[null,null,"Schedule 5.2",null,null,null,{"$f":"G$10","v":3},{"$f":"H$10","v":4},{"$f":"I$10","v":5},{"$f":"J$10","v":6},{"$f":"K$10","v":7},8,9,10,11,12,13,null," "]
[]
[1,"NET ORIGINAL COST RATE BASE",null,null,null,{"$f":"F277-F324+F377","v":500751227},{"$f":"G277-G324+G377","v":227110602},{"$f":"H277-H324+H377","v":134842244},{"$f":"I277-I324+I377","v":647739},{"$f":"J277-J324+J377","v":2556045},34874,67231780,44447992,2147466,21059838,617845,{"$f":"Q277-Q324+Q377","v":54802},{"$f":"R277-R324+R377","v":500751227},{"$f":"S277-S324+S377","v":0}]
[2]
[3,"WORKING CAPITAL"]
[4]
[5,"PLANT MATERIALS & SUPPLIES"]
[6,null,"OTHER MATERIALS & SUPPLIES",{"$f":"'FR-16(7)(v)-1 Functional'!D395","v":"PD29"},null,{"$f":"'FR-16(7)(v)-2 PROD Classified'!G395","v":6911871},{"$f":"F395-SUM(H395:Q395)","v":3115733},{"$f":"ROUND(F395*VLOOKUP(D395,ALLOCTABLE_Prod_Demand,$H$10,FALSE),0)","v":1870629},{"$f":"ROUND(F395*VLOOKUP(D395,ALLOCTABLE_Prod_Demand,$I$10,FALSE),0)","v":8985},{"$f":"ROUND(F395*VLOOKUP(D395,ALLOCTABLE_Prod_Demand,$J$10,FALSE),0)","v":35458},{"$f":"ROUND(F395*VLOOKUP(D395,ALLOCTABLE_Prod_Demand,$K$10,FALSE),0)","v":484},{"$f":"ROUND(F395*VLOOKUP(D395,ALLOCTABLE_Prod_Demand,$L$10,FALSE),0)","v":932688},{"$f":"ROUND(F395*VLOOKUP(D395,ALLOCTABLE_Prod_Demand,$M$10,FALSE),0)","v":616608},{"$f":"ROUND(F395*VLOOKUP(D395,ALLOCTABLE_Prod_Demand,$N$10,FALSE),0)","v":29790},{"$f":"ROUND(F395*VLOOKUP(D395,ALLOCTABLE_Prod_Demand,$O$10,FALSE),0)","v":292165},{"$f":"ROUND(F395*VLOOKUP(D395,ALLOCTABLE_Prod_Demand,$P$10,FALSE),0)","v":8571},{"$f":"ROUND(F395*VLOOKUP(D395,ALLOCTABLE_Prod_Demand,$Q$10,FALSE),0)","v":760},{"$f":"SUM(G395:Q395)","v":6911871},{"$f":"F395-R395","v":0}]
[7,null,{"$f":"'FR-16(7)(v)-1 Functional'!C396","v":"FUEL"},{"$f":"'FR-16(7)(v)-1 Functional'!D396","v":"K301"},null,{"$f":"'FR-16(7)(v)-2 PROD Classified'!G396","v":0},{"$f":"F396-SUM(H396:Q396)","v":0},{"$f":"ROUND(F396*VLOOKUP(D396,ALLOCTABLE_Prod_Demand,$H$10,FALSE),0)","v":0},{"$f":"ROUND(F396*VLOOKUP(D396,ALLOCTABLE_Prod_Demand,$I$10,FALSE),0)","v":0},{"$f":"ROUND(F396*VLOOKUP(D396,ALLOCTABLE_Prod_Demand,$J$10,FALSE),0)","v":0},{"$f":"ROUND(F396*VLOOKUP(D396,ALLOCTABLE_Prod_Demand,$K$10,FALSE),0)","v":0},{"$f":"ROUND(F396*VLOOKUP(D396,ALLOCTABLE_Prod_Demand,$L$10,FALSE),0)","v":0},{"$f":"ROUND(F396*VLOOKUP(D396,ALLOCTABLE_Prod_Demand,$M$10,FALSE),0)","v":0},{"$f":"ROUND(F396*VLOOKUP(D396,ALLOCTABLE_Prod_Demand,$N$10,FALSE),0)","v":0},{"$f":"ROUND(F396*VLOOKUP(D396,ALLOCTABLE_Prod_Demand,$O$10,FALSE),0)","v":0},{"$f":"ROUND(F396*VLOOKUP(D396,ALLOCTABLE_Prod_Demand,$P$10,FALSE),0)","v":0},{"$f":"ROUND(F396*VLOOKUP(D396,ALLOCTABLE_Prod_Demand,$Q$10,FALSE),0)","v":0},{"$f":"SUM(G396:Q396)","v":0},{"$f":"F396-R396","v":0}]
[8,null,{"$f":"'FR-16(7)(v)-1 Functional'!C397","v":"EMISSION ALLOWANCES"},{"$f":"'FR-16(7)(v)-1 Functional'!D397","v":"K301"},null,{"$f":"'FR-16(7)(v)-2 PROD Classified'!G397","v":0},{"$f":"F397-SUM(H397:Q397)","v":0},{"$f":"ROUND(F397*VLOOKUP(D397,ALLOCTABLE_Prod_Demand,$H$10,FALSE),0)","v":0},{"$f":"ROUND(F397*VLOOKUP(D397,ALLOCTABLE_Prod_Demand,$I$10,FALSE),0)","v":0},{"$f":"ROUND(F397*VLOOKUP(D397,ALLOCTABLE_Prod_Demand,$J$10,FALSE),0)","v":0},{"$f":"ROUND(F397*VLOOKUP(D397,ALLOCTABLE_Prod_Demand,$K$10,FALSE),0)","v":0},{"$f":"ROUND(F397*VLOOKUP(D397,ALLOCTABLE_Prod_Demand,$L$10,FALSE),0)","v":0},{"$f":"ROUND(F397*VLOOKUP(D397,ALLOCTABLE_Prod_Demand,$M$10,FALSE),0)","v":0},{"$f":"ROUND(F397*VLOOKUP(D397,ALLOCTABLE_Prod_Demand,$N$10,FALSE),0)","v":0},{"$f":"ROUND(F397*VLOOKUP(D397,ALLOCTABLE_Prod_Demand,$O$10,FALSE),0)","v":0},{"$f":"ROUND(F397*VLOOKUP(D397,ALLOCTABLE_Prod_Demand,$P$10,FALSE),0)","v":0},{"$f":"ROUND(F397*VLOOKUP(D397,ALLOCTABLE_Prod_Demand,$Q$10,FALSE),0)","v":0},{"$f":"SUM(G397:Q397)","v":0},{"$f":"F397-R397","v":0}]
[9,null,{"$f":"'FR-16(7)(v)-1 Functional'!C398","v":"  TOTAL PLANT MATS. & SUPPLIES"},null,null,{"$f":"SUM($F$394:F397)","v":6911871},{"$f":"SUM(G394:G397)","v":3115733},{"$f":"SUM(H394:H397)","v":1870629},{"$f":"SUM(I394:I397)","v":8985},{"$f":"SUM(J394:J397)","v":35458},484,932688,616608,29790,292165,8571,{"$f":"SUM(Q394:Q397)","v":760},{"$f":"SUM(R394:R397)","v":6911871},{"$f":"SUM(S394:S397)","v":0}]
[10,"TOTAL MATERIALS & SUPPLIES",null,null,null,{"$f":"F398","v":6911871},3115733,1870629,8985,{"$f":"J398","v":35458},484,932688,616608,29790,292165,8571,760,6911871,0]
[11]
[12,"PREPAYMENTS"]
[13,null,{"$f":"'FR-16(7)(v)-1 Functional'!C402","v":"INSURANCE GENERAL"},{"$f":"'FR-16(7)(v)-1 Functional'!D402","v":"NP29"},null,{"$f":"'FR-16(7)(v)-2 PROD Classified'!G402","v":155954},{"$f":"F402-SUM(H402:Q402)","v":70288},{"$f":"ROUND(F402*VLOOKUP(D402,ALLOCTABLE_Prod_Demand,$H$10,FALSE),0)","v":42214},{"$f":"ROUND(F402*VLOOKUP(D402,ALLOCTABLE_Prod_Demand,$I$10,FALSE),0)","v":203},{"$f":"ROUND(F402*VLOOKUP(D402,ALLOCTABLE_Prod_Demand,$J$10,FALSE),0)","v":800},{"$f":"ROUND(F402*VLOOKUP(D402,ALLOCTABLE_Prod_Demand,$K$10,FALSE),0)","v":11},{"$f":"ROUND(F402*VLOOKUP(D402,ALLOCTABLE_Prod_Demand,$L$10,FALSE),0)","v":21048},{"$f":"ROUND(F402*VLOOKUP(D402,ALLOCTABLE_Prod_Demand,$M$10,FALSE),0)","v":13914},{"$f":"ROUND(F402*VLOOKUP(D402,ALLOCTABLE_Prod_Demand,$N$10,FALSE),0)","v":672},{"$f":"ROUND(F402*VLOOKUP(D402,ALLOCTABLE_Prod_Demand,$O$10,FALSE),0)","v":6594},{"$f":"ROUND(F402*VLOOKUP(D402,ALLOCTABLE_Prod_Demand,$P$10,FALSE),0)","v":193},{"$f":"ROUND(F402*VLOOKUP(D402,ALLOCTABLE_Prod_Demand,$Q$10,FALSE),0)","v":17},{"$f":"SUM(G402:Q402)","v":155954},{"$f":"F402-R402","v":0}]
[14,null,{"$f":"'FR-16(7)(v)-1 Functional'!C403","v":"EXCISE TAX"},{"$f":"'FR-16(7)(v)-1 Functional'!D403","v":"NP29"},null,{"$f":"'FR-16(7)(v)-2 PROD Classified'!G403","v":0},{"$f":"F403-SUM(H403:Q403)","v":0},{"$f":"ROUND(F403*VLOOKUP(D403,ALLOCTABLE_Prod_Demand,$H$10,FALSE),0)","v":0},{"$f":"ROUND(F403*VLOOKUP(D403,ALLOCTABLE_Prod_Demand,$I$10,FALSE),0)","v":0},{"$f":"ROUND(F403*VLOOKUP(D403,ALLOCTABLE_Prod_Demand,$J$10,FALSE),0)","v":0},{"$f":"ROUND(F403*VLOOKUP(D403,ALLOCTABLE_Prod_Demand,$K$10,FALSE),0)","v":0},{"$f":"ROUND(F403*VLOOKUP(D403,ALLOCTABLE_Prod_Demand,$L$10,FALSE),0)","v":0},{"$f":"ROUND(F403*VLOOKUP(D403,ALLOCTABLE_Prod_Demand,$M$10,FALSE),0)","v":0},{"$f":"ROUND(F403*VLOOKUP(D403,ALLOCTABLE_Prod_Demand,$N$10,FALSE),0)","v":0},{"$f":"ROUND(F403*VLOOKUP(D403,ALLOCTABLE_Prod_Demand,$O$10,FALSE),0)","v":0},{"$f":"ROUND(F403*VLOOKUP(D403,ALLOCTABLE_Prod_Demand,$P$10,FALSE),0)","v":0},{"$f":"ROUND(F403*VLOOKUP(D403,ALLOCTABLE_Prod_Demand,$Q$10,FALSE),0)","v":0},{"$f":"SUM(G403:Q403)","v":0},{"$f":"F403-R403","v":0}]
[15,null,{"$f":"'FR-16(7)(v)-1 Functional'!C404","v":"COLLATERAL ASSET"},{"$f":"'FR-16(7)(v)-1 Functional'!D404","v":"K301"},null,{"$f":"'FR-16(7)(v)-2 PROD Classified'!G404","v":0},{"$f":"F404-SUM(H404:Q404)","v":0},{"$f":"ROUND(F404*VLOOKUP(D404,ALLOCTABLE_Prod_Demand,$H$10,FALSE),0)","v":0},{"$f":"ROUND(F404*VLOOKUP(D404,ALLOCTABLE_Prod_Demand,$I$10,FALSE),0)","v":0},{"$f":"ROUND(F404*VLOOKUP(D404,ALLOCTABLE_Prod_Demand,$J$10,FALSE),0)","v":0},{"$f":"ROUND(F404*VLOOKUP(D404,ALLOCTABLE_Prod_Demand,$K$10,FALSE),0)","v":0},{"$f":"ROUND(F404*VLOOKUP(D404,ALLOCTABLE_Prod_Demand,$L$10,FALSE),0)","v":0},{"$f":"ROUND(F404*VLOOKUP(D404,ALLOCTABLE_Prod_Demand,$M$10,FALSE),0)","v":0},{"$f":"ROUND(F404*VLOOKUP(D404,ALLOCTABLE_Prod_Demand,$N$10,FALSE),0)","v":0},{"$f":"ROUND(F404*VLOOKUP(D404,ALLOCTABLE_Prod_Demand,$O$10,FALSE),0)","v":0},{"$f":"ROUND(F404*VLOOKUP(D404,ALLOCTABLE_Prod_Demand,$P$10,FALSE),0)","v":0},{"$f":"ROUND(F404*VLOOKUP(D404,ALLOCTABLE_Prod_Demand,$Q$10,FALSE),0)","v":0},{"$f":"SUM(G404:Q404)","v":0},{"$f":"F404-R404","v":0}]
[16,null,{"$f":"'FR-16(7)(v)-1 Functional'!C405","v":"  TOTAL PREPAYMENTS"},null,null,{"$f":"SUM($F$401:F404)","v":155954},{"$f":"SUM(G401:G404)","v":70288},{"$f":"SUM(H401:H404)","v":42214},{"$f":"SUM(I401:I404)","v":203},{"$f":"SUM(J401:J404)","v":800},11,21048,13914,672,6594,193,{"$f":"SUM(Q401:Q404)","v":17},{"$f":"SUM(R401:R404)","v":155954},{"$f":"SUM(S401:S404)","v":0}]
[17]
[18,"AUTO CALC (O&M-ELECTRIC FUEL COST)/8",null,{"$f":"D402","v":"NP29"},null,{"$f":"'FR-16(7)(v)-2 PROD Classified'!G407","v":14965228},{"$f":"F407-SUM(H407:Q407)","v":6744827},{"$f":"ROUND($F407*VLOOKUP($D407,ALLOCTABLE_Prod_Demand,H$10,FALSE),0)","v":4050788},19455,76772,1048,2019707,1335198,64500,632730,18557,1646,{"$f":"SUM(G407:Q407)","v":14965228},{"$f":"F407-R407","v":0}]
[19,"  TOTAL WORKING CASH",null,null,null,{"$f":"F407","v":14965228},6744827,4050788,19455,{"$f":"J407","v":76772},1048,2019707,1335198,64500,632730,18557,1646,14965228,0]
[20]
[21,"MISCELLANEOUS WORKING CAPITAL"]
[22,null,{"$f":"'FR-16(7)(v)-1 Functional'!C411","v":"RESERVED FOR FUTURE USE"},{"$f":"'FR-16(7)(v)-1 Functional'!D411","v":"K301"},null,{"$f":"'FR-16(7)(v)-2 PROD Classified'!G411","v":0},{"$f":"F411-SUM(H411:Q411)","v":0},{"$f":"ROUND(F411*VLOOKUP(D411,ALLOCTABLE_Prod_Demand,$H$10,FALSE),0)","v":0},{"$f":"ROUND(F411*VLOOKUP(D411,ALLOCTABLE_Prod_Demand,$I$10,FALSE),0)","v":0},{"$f":"ROUND(F411*VLOOKUP(D411,ALLOCTABLE_Prod_Demand,$J$10,FALSE),0)","v":0},{"$f":"ROUND(F411*VLOOKUP(D411,ALLOCTABLE_Prod_Demand,$K$10,FALSE),0)","v":0},{"$f":"ROUND(F411*VLOOKUP(D411,ALLOCTABLE_Prod_Demand,$L$10,FALSE),0)","v":0},{"$f":"ROUND(F411*VLOOKUP(D411,ALLOCTABLE_Prod_Demand,$M$10,FALSE),0)","v":0},{"$f":"ROUND(F411*VLOOKUP(D411,ALLOCTABLE_Prod_Demand,$N$10,FALSE),0)","v":0},{"$f":"ROUND(F411*VLOOKUP(D411,ALLOCTABLE_Prod_Demand,$O$10,FALSE),0)","v":0},{"$f":"ROUND(F411*VLOOKUP(D411,ALLOCTABLE_Prod_Demand,$P$10,FALSE),0)","v":0},{"$f":"ROUND(F411*VLOOKUP(D411,ALLOCTABLE_Prod_Demand,$Q$10,FALSE),0)","v":0},{"$f":"SUM(G411:Q411)","v":0},{"$f":"F411-R411","v":0}]
[23,null,{"$f":"'FR-16(7)(v)-1 Functional'!C412","v":"PIPP UNCOLLECTIBLES"},{"$f":"'FR-16(7)(v)-1 Functional'!D412","v":"A315"},null,{"$f":"'FR-16(7)(v)-2 PROD Classified'!G412","v":0},{"$f":"F412-SUM(H412:Q412)","v":0},{"$f":"ROUND(F412*VLOOKUP(D412,ALLOCTABLE_Prod_Demand,$H$10,FALSE),0)","v":0},{"$f":"ROUND(F412*VLOOKUP(D412,ALLOCTABLE_Prod_Demand,$I$10,FALSE),0)","v":0},{"$f":"ROUND(F412*VLOOKUP(D412,ALLOCTABLE_Prod_Demand,$J$10,FALSE),0)","v":0},{"$f":"ROUND(F412*VLOOKUP(D412,ALLOCTABLE_Prod_Demand,$K$10,FALSE),0)","v":0},{"$f":"ROUND(F412*VLOOKUP(D412,ALLOCTABLE_Prod_Demand,$L$10,FALSE),0)","v":0},{"$f":"ROUND(F412*VLOOKUP(D412,ALLOCTABLE_Prod_Demand,$M$10,FALSE),0)","v":0},{"$f":"ROUND(F412*VLOOKUP(D412,ALLOCTABLE_Prod_Demand,$N$10,FALSE),0)","v":0},{"$f":"ROUND(F412*VLOOKUP(D412,ALLOCTABLE_Prod_Demand,$O$10,FALSE),0)","v":0},{"$f":"ROUND(F412*VLOOKUP(D412,ALLOCTABLE_Prod_Demand,$P$10,FALSE),0)","v":0},{"$f":"ROUND(F412*VLOOKUP(D412,ALLOCTABLE_Prod_Demand,$Q$10,FALSE),0)","v":0},{"$f":"SUM(G412:Q412)","v":0},{"$f":"F412-R412","v":0}]
[24,null,{"$f":"'FR-16(7)(v)-1 Functional'!C413","v":"RESERVED FOR FUTURE USE"},{"$f":"'FR-16(7)(v)-1 Functional'!D413","v":"D249"},null,{"$f":"'FR-16(7)(v)-2 PROD Classified'!G413","v":0},{"$f":"F413-SUM(H413:Q413)","v":0},{"$f":"ROUND(F413*VLOOKUP(D413,ALLOCTABLE_Prod_Demand,$H$10,FALSE),0)","v":0},{"$f":"ROUND(F413*VLOOKUP(D413,ALLOCTABLE_Prod_Demand,$I$10,FALSE),0)","v":0},{"$f":"ROUND(F413*VLOOKUP(D413,ALLOCTABLE_Prod_Demand,$J$10,FALSE),0)","v":0},{"$f":"ROUND(F413*VLOOKUP(D413,ALLOCTABLE_Prod_Demand,$K$10,FALSE),0)","v":0},{"$f":"ROUND(F413*VLOOKUP(D413,ALLOCTABLE_Prod_Demand,$L$10,FALSE),0)","v":0},{"$f":"ROUND(F413*VLOOKUP(D413,ALLOCTABLE_Prod_Demand,$M$10,FALSE),0)","v":0},{"$f":"ROUND(F413*VLOOKUP(D413,ALLOCTABLE_Prod_Demand,$N$10,FALSE),0)","v":0},{"$f":"ROUND(F413*VLOOKUP(D413,ALLOCTABLE_Prod_Demand,$O$10,FALSE),0)","v":0},{"$f":"ROUND(F413*VLOOKUP(D413,ALLOCTABLE_Prod_Demand,$P$10,FALSE),0)","v":0},{"$f":"ROUND(F413*VLOOKUP(D413,ALLOCTABLE_Prod_Demand,$Q$10,FALSE),0)","v":0},{"$f":"SUM(G413:Q413)","v":0},{"$f":"F413-R413","v":0}]
[25,null,{"$f":"'FR-16(7)(v)-1 Functional'!C414","v":"  TOTAL MISC WORK CAPITAL"},null,null,{"$f":"SUM($F$410:F413)","v":0},{"$f":"SUM(G410:G413)","v":0},{"$f":"SUM(H410:H413)","v":0},{"$f":"SUM(I410:I413)","v":0},{"$f":"SUM(J410:J413)","v":0},0,0,0,0,0,0,{"$f":"SUM(Q410:Q413)","v":0},{"$f":"SUM(R410:R413)","v":0},{"$f":"SUM(S410:S413)","v":0}]
[26]
[27,"TOTAL WORKING CAPITAL",null,null,null,{"$f":"F399+F405+F408+F414","v":22033053},{"$f":"G399+G405+G408+G414","v":9930848},{"$f":"H399+H405+H408+H414","v":5963631},{"$f":"I399+I405+I408+I414","v":28643},{"$f":"J399+J405+J408+J414","v":113030},1543,2973443,1965720,94962,931489,27321,{"$f":"Q399+Q405+Q408+Q414","v":2423},{"$f":"R399+R405+R408+R414","v":22033053},{"$f":"S399+S405+S408+S414","v":0}]
[28,"PRELIMINARY SUMMARY"]
[29,null,{"$f":"'FR-16(7)(v)-1 Functional'!C418","v":"TOTAL ACCUMULATED DEFERRED INCOME TAXES"},null,null,{"$f":"-F324","v":-148926313},{"$f":"-G324","v":-68419771},{"$f":"-H324","v":-39671425},{"$f":"-I324","v":-190533},{"$f":"-J324","v":-751857},-10256,-19780016,-13076282,-631674,-6196642,-181742,{"$f":"-Q324","v":-16115},{"$f":"-R324","v":-148926313},{"$f":"-S324","v":0}]
[30,null,{"$f":"'FR-16(7)(v)-1 Functional'!C419","v":"TOTAL OTHER ACCUMULATED DEFERRED INCOME TAXES"},null,null,{"$f":"F377","v":7256485},{"$f":"G377","v":5995405},{"$f":"H377","v":621439},{"$f":"I377","v":2992},{"$f":"J377","v":11762},153,309838,204863,9869,97063,2861,{"$f":"Q377","v":240},{"$f":"R377","v":7256485},{"$f":"S377","v":0}]
[31,null,{"$f":"'FR-16(7)(v)-1 Functional'!C420","v":"TOTAL WORKING CAPITAL"},null,null,{"$f":"F416","v":22033053},{"$f":"G416","v":9930848},{"$f":"H416","v":5963631},{"$f":"I416","v":28643},{"$f":"J416","v":113030},1543,2973443,1965720,94962,931489,27321,{"$f":"Q416","v":2423},{"$f":"R416","v":22033053},{"$f":"S416","v":0}]
[32,null,{"$f":"'FR-16(7)(v)-1 Functional'!C421","v":"  TOTAL RATE BASE ADJUSTMENTS"},null,null,{"$f":"SUM($F$417:F420)","v":-119636775},{"$f":"SUM(G417:G420)","v":-52493518},{"$f":"SUM(H417:H420)","v":-33086355},{"$f":"SUM(I417:I420)","v":-158898},{"$f":"SUM(J417:J420)","v":-627065},-8560,-16496735,-10905699,-526843,-5168090,-151560,{"$f":"SUM(Q417:Q420)","v":-13452},{"$f":"SUM(R417:R420)","v":-119636775},{"$f":"SUM(S417:S420)","v":0}]
[33]
[34,"RATE BASE CALCULATION"]
[35,null,{"$f":"'FR-16(7)(v)-1 Functional'!C424","v":"NET ELECTRIC PLANT IN SERVICE"},null,null,{"$f":"F277","v":642421055},{"$f":"G277","v":289534968},{"$f":"H277","v":173892230},{"$f":"I277","v":835280},{"$f":"J277","v":3296140},44977,86701958,57319411,2769271,27159417,796726,{"$f":"Q277","v":70677},{"$f":"R277","v":642421055},{"$f":"S277","v":0}]
[36,null,{"$f":"'FR-16(7)(v)-1 Functional'!C425","v":"TOTAL RATE BASE ADJUSTMENTS"},null,null,{"$f":"F421","v":-119636775},{"$f":"G421","v":-52493518},{"$f":"H421","v":-33086355},{"$f":"I421","v":-158898},{"$f":"J421","v":-627065},-8560,-16496735,-10905699,-526843,-5168090,-151560,{"$f":"Q421","v":-13452},{"$f":"R421","v":-119636775},{"$f":"S421","v":0}]
[37,null,{"$f":"'FR-16(7)(v)-1 Functional'!C426","v":"  TOTAL RATE BASE"},null,null,{"$f":"SUM($F$423:F425)","v":522784280},{"$f":"SUM(G423:G425)","v":237041450},{"$f":"SUM(H423:H425)","v":140805875},{"$f":"SUM(I423:I425)","v":676382},{"$f":"SUM(J423:J425)","v":2669075},36417,70205223,46413712,2242428,21991327,645166,{"$f":"SUM(Q423:Q425)","v":57225},{"$f":"SUM(R423:R425)","v":522784280},{"$f":"SUM(S423:S425)","v":0}]
[38]
[39,"TOTAL RATE OF RETURN ALLOWABLE",null,null,null,{"$f":"$F$811","v":6.7100000000000007E-2},{"$f":"$F$811","v":6.7100000000000007E-2},6.7100000000000007E-2,6.7100000000000007E-2,6.7100000000000007E-2,6.7100000000000007E-2,6.7100000000000007E-2,6.7100000000000007E-2,6.7100000000000007E-2,6.7100000000000007E-2,6.7100000000000007E-2,6.7100000000000007E-2,{"$f":"F811","v":6.7100000000000007E-2}]
[40,"RETURN ON RATE BASE",null,null,null,{"$f":"ROUND($F$428*F426,0)","v":35078825},{"$f":"F429-SUM(H429:Q429)","v":15905481},{"$f":"ROUND(H426*H428,0)","v":9448074},{"$f":"ROUND(I426*I428,0)","v":45385},{"$f":"ROUND(J426*J428,0)","v":179095},2444,4710770,3114360,150467,1475618,43291,{"$f":"ROUND(Q426*Q428,0)","v":3840},{"$f":"SUM(G429:Q429)","v":35078825},{"$f":"F429-R429","v":0}]
[41]
[42,{"$f":"'FR-16(7)(v)-1 Functional'!B431","v":"ELECTRIC RATE BASE"},null,{"$f":"'FR-16(7)(v)-1 Functional'!D431","v":"RB99"},null,{"$f":"'FR-16(7)(v)-2 PROD Classified'!G431","v":522782322},{"$f":"F431-SUM(H431:Q431)","v":237039960},{"$f":"ROUND(F431*VLOOKUP(D431,ALLOCTABLE_Prod_Demand,$H$10,FALSE),0)","v":140806191},{"$f":"ROUND(F431*VLOOKUP(D431,ALLOCTABLE_Prod_Demand,$I$10,FALSE),0)","v":674389},{"$f":"ROUND(F431*VLOOKUP(D431,ALLOCTABLE_Prod_Demand,$J$10,FALSE),0)","v":2671418},{"$f":"ROUND(F431*VLOOKUP(D431,ALLOCTABLE_Prod_Demand,$K$10,FALSE),0)","v":36595},{"$f":"ROUND(F431*VLOOKUP(D431,ALLOCTABLE_Prod_Demand,$L$10,FALSE),0)","v":70204438},{"$f":"ROUND(F431*VLOOKUP(D431,ALLOCTABLE_Prod_Demand,$M$10,FALSE),0)","v":46412615},{"$f":"ROUND(F431*VLOOKUP(D431,ALLOCTABLE_Prod_Demand,$N$10,FALSE),0)","v":2242736},{"$f":"ROUND(F431*VLOOKUP(D431,ALLOCTABLE_Prod_Demand,$O$10,FALSE),0)","v":21993452},{"$f":"ROUND(F431*VLOOKUP(D431,ALLOCTABLE_Prod_Demand,$P$10,FALSE),0)","v":643022},{"$f":"ROUND(F431*VLOOKUP(D431,ALLOCTABLE_Prod_Demand,$Q$10,FALSE),0)","v":57506},{"$f":"SUM(G431:Q431)","v":522782322},{"$f":"F431-R431","v":0}]
[43,{"$f":"'FR-16(7)(v)-1 Functional'!B432","v":"TOTAL RATE OF RETURN ALLOWABLE"},null,null,null,{"$f":"RofR","v":6.7110000000000003E-2},6.7110000000000003E-2,6.7110000000000003E-2,6.7110000000000003E-2,6.7110000000000003E-2,6.7110000000000003E-2,6.7110000000000003E-2,6.7110000000000003E-2,6.7110000000000003E-2,6.7110000000000003E-2,6.7110000000000003E-2,6.7110000000000003E-2,6.7110000000000003E-2]
[44,{"$f":"'FR-16(7)(v)-1 Functional'!B433","v":"RETURN ON RATE BASE"},null,null,null,{"$f":"ROUND($F$431*F432,0)","v":35083922},{"$f":"F433-SUM(H433:Q433)","v":15907752},{"$f":"ROUND(H431*H432,0)","v":9449503},45258,179279,2456,4711420,3114751,150510,1475981,43153,3859,35083922,{"$f":"F429-R429","v":0}]
[]
[{"$f":"co_name","v":"DUKE ENERGY KENTUCKY, INC."},null,null,null,null,null,null,null,null,null,null,null,null,null,null,null,null,{"$f":"R1","v":"FR-16(7)(v)-3"}]
[{"$f":"$A$2","v":"PRODUCTION DEMAND ALLOCATED - ELECTRIC COST OF SERVICE"},null,null,null,null,null,null,null,null,null,null,null,null,null,null,null,null,{"$f":"R2","v":"WITNESS RESPONSIBLE:"}]
[{"$f":"case_name","v":"CASE NO: 2019-00271"},null,null,null,null,null,null,null,null,null,null,null,null,null,null,null,null,{"$f":"Witness","v":"JAMES E. ZIOLKOWSKI"}]
[{"$f":"data_filing","v":"DATA: 12 MONTHS ACTUAL  & 0 MONTHS ESTIMATED"},null,null,null,null,null,null,null,null,null,null,null,null,null,null,null,null,{"$f":"\"PAGE \"&Pages-10&\" OF \"&Pages","v":"PAGE 8 OF 18"}]
[{"$f":"type","v":"TYPE OF FILING: \"X\" ORIGINAL   UPDATED    REVISED  "}]
[]
[null,null,null,null,null,{"$f":"F$7","v":"TOTAL"},null,{"$f":"H$7","v":"DS"},{"$f":"I$7","v":"GSFL"},{"$f":"J$7","v":"EH"},{"$f":"K$7","v":"SP"},"DT SEC","DT PRI","DP","TT",null,"OTHER"]
["LINE",null,null,null,null,{"$f":"F$8","v":"PRODUCTION"},{"$f":"G$8","v":"RS"},{"$f":"H$8","v":"SECONDARY"},{"$f":"I$8","v":"SECONDARY"},{"$f":"J$8","v":"SECONDARY"},{"$f":"K$8","v":"SECONDARY"},"SECONDARY","PRIMARY","PRIMARY","TRANSMISSION","LT","WATER",{"$f":"R8","v":"TOTAL"},"ALL"]
["NO.","O&M EXPENSES",null,"ALLO",null,{"$f":"F$9","v":"DEMAND"},{"$f":"G$9","v":"RESIDENTIAL"},{"$f":"H$9","v":"DISTRIBUTION"},{"$f":"I$9","v":"DISTRIBUTION"},{"$f":"J$9","v":"DISTRIBUTION"},{"$f":"K$9","v":"DISTRIBUTION"},"DISTRIBUTION","DISTRIBUTION","DISTRIBUTION","TIME OF DAY","LIGHTING","PUMPING",{"$f":"R9","v":"AT ISSUE"},"OTHER"]
[null,null,"Schedule 6",null,null,null,{"$f":"G$10","v":3},{"$f":"H$10","v":4},{"$f":"I$10","v":5},{"$f":"J$10","v":6},{"$f":"K$10","v":7},8,9,10,11,12,13,null," "]
[1,"PRODUCTION O&M"]
[2,{"$f":"'FR-16(7)(v)-1 Functional'!B446","v":"ENERGY RELATED PRODUCTION O&M"}]
[3,null,{"$f":"'FR-16(7)(v)-1 Functional'!C447","v":"FUEL"},{"$f":"'FR-16(7)(v)-1 Functional'!D447","v":"K302"},null,{"$f":"'FR-16(7)(v)-2 PROD Classified'!G447","v":0},{"$f":"F447-SUM(H447:Q447)","v":0},{"$f":"ROUND(F447*VLOOKUP(D447,ALLOCTABLE_Prod_Demand,$H$10,FALSE),0)","v":0},{"$f":"ROUND(F447*VLOOKUP(D447,ALLOCTABLE_Prod_Demand,$I$10,FALSE),0)","v":0},{"$f":"ROUND(F447*VLOOKUP(D447,ALLOCTABLE_Prod_Demand,$J$10,FALSE),0)","v":0},{"$f":"ROUND(F447*VLOOKUP(D447,ALLOCTABLE_Prod_Demand,$K$10,FALSE),0)","v":0},{"$f":"ROUND(F447*VLOOKUP(D447,ALLOCTABLE_Prod_Demand,$L$10,FALSE),0)","v":0},{"$f":"ROUND(F447*VLOOKUP(D447,ALLOCTABLE_Prod_Demand,$M$10,FALSE),0)","v":0},{"$f":"ROUND(F447*VLOOKUP(D447,ALLOCTABLE_Prod_Demand,$N$10,FALSE),0)","v":0},{"$f":"ROUND(F447*VLOOKUP(D447,ALLOCTABLE_Prod_Demand,$O$10,FALSE),0)","v":0},{"$f":"ROUND(F447*VLOOKUP(D447,ALLOCTABLE_Prod_Demand,$P$10,FALSE),0)","v":0},{"$f":"ROUND(F447*VLOOKUP(D447,ALLOCTABLE_Prod_Demand,$Q$10,FALSE),0)","v":0},{"$f":"SUM(G447:Q447)","v":0},{"$f":"F447-R447","v":0}]
[4,null,{"$f":"'FR-16(7)(v)-1 Functional'!C448","v":"FUEL AND PURCHASED POWER ADJUSTMENT"},{"$f":"'FR-16(7)(v)-1 Functional'!D448","v":"K302"},null,{"$f":"'FR-16(7)(v)-2 PROD Classified'!G448","v":0},0,0,0,0,0,0,0,0,0,0,0,0,0]
[5,null,{"$f":"'FR-16(7)(v)-1 Functional'!C449","v":"EMISSION ALLOWANCES"},{"$f":"'FR-16(7)(v)-1 Functional'!D449","v":"K301"},null,{"$f":"'FR-16(7)(v)-2 PROD Classified'!G449","v":0},0,0,0,0,0,0,0,0,0,0,0,0,0]
[6,null,{"$f":"'FR-16(7)(v)-1 Functional'!C450","v":"ELIMINATE EMISSION ALLOW & OTHER VAR COST"},{"$f":"'FR-16(7)(v)-1 Functional'!D450","v":"K301"},null,{"$f":"'FR-16(7)(v)-2 PROD Classified'!G450","v":0},0,0,0,0,0,0,0,0,0,0,0,0,0]
[7,null,{"$f":"'FR-16(7)(v)-1 Functional'!C451","v":"OTHER PRODUCTION EXPENSE - MAINTENANCE"},{"$f":"'FR-16(7)(v)-1 Functional'!D451","v":"K301"},null,{"$f":"'FR-16(7)(v)-2 PROD Classified'!G451","v":0},0,0,0,0,0,0,0,0,0,0,0,0,0]
[8,null,{"$f":"'FR-16(7)(v)-1 Functional'!C452","v":"MISO TRANSMISSION CHARGES - ACCT 555"},{"$f":"'FR-16(7)(v)-1 Functional'!D452","v":"K301"},null,{"$f":"'FR-16(7)(v)-2 PROD Classified'!G452","v":0},0,0,0,0,0,0,0,0,0,0,0,0,0]
[9,null,"  TOTAL ENERGY RELATED",null,null,{"$f":"SUM($F$447:F452)","v":0},{"$f":"SUM(G447:G452)","v":0},{"$f":"SUM(H447:H452)","v":0},{"$f":"SUM(I447:I452)","v":0},{"$f":"SUM(J447:J452)","v":0},0,0,0,0,0,0,{"$f":"SUM(Q447:Q452)","v":0},{"$f":"SUM(R447:R452)","v":0},{"$f":"SUM(S447:S452)","v":0}]
[10]
[11,"DEMAND RELATED & OTHER PROD O&M"]
[12,null,{"$f":"'FR-16(7)(v)-1 Functional'!C456","v":"OTHER PRODUCTION EXPENSES - OPERATIONS"},{"$f":"'FR-16(7)(v)-1 Functional'!D456","v":"K201"},null,{"$f":"'FR-16(7)(v)-2 PROD Classified'!G456","v":0},{"$f":"F456-SUM(H456:Q456)","v":0},{"$f":"ROUND(F456*VLOOKUP(D456,ALLOCTABLE_Prod_Demand,$H$10,FALSE),0)","v":0},{"$f":"ROUND(F456*VLOOKUP(D456,ALLOCTABLE_Prod_Demand,$I$10,FALSE),0)","v":0},{"$f":"ROUND(F456*VLOOKUP(D456,ALLOCTABLE_Prod_Demand,$J$10,FALSE),0)","v":0},{"$f":"ROUND(F456*VLOOKUP(D456,ALLOCTABLE_Prod_Demand,$K$10,FALSE),0)","v":0},{"$f":"ROUND(F456*VLOOKUP(D456,ALLOCTABLE_Prod_Demand,$L$10,FALSE),0)","v":0},{"$f":"ROUND(F456*VLOOKUP(D456,ALLOCTABLE_Prod_Demand,$M$10,FALSE),0)","v":0},{"$f":"ROUND(F456*VLOOKUP(D456,ALLOCTABLE_Prod_Demand,$N$10,FALSE),0)","v":0},{"$f":"ROUND(F456*VLOOKUP(D456,ALLOCTABLE_Prod_Demand,$O$10,FALSE),0)","v":0},{"$f":"ROUND(F456*VLOOKUP(D456,ALLOCTABLE_Prod_Demand,$P$10,FALSE),0)","v":0},{"$f":"ROUND(F456*VLOOKUP(D456,ALLOCTABLE_Prod_Demand,$Q$10,FALSE),0)","v":0},{"$f":"SUM(G456:Q456)","v":0},{"$f":"F456-R456","v":0}]
[13,null,"  TOTAL DEMAND REL & OTH PROD O&M ",null,null,{"$f":"SUM($F$455:F456)","v":0},{"$f":"SUM(G455:G456)","v":0},{"$f":"SUM(H455:H456)","v":0},{"$f":"SUM(I455:I456)","v":0},{"$f":"SUM(J455:J456)","v":0},0,0,0,0,0,0,{"$f":"SUM(Q455:Q456)","v":0},{"$f":"SUM(R455:R456)","v":0},{"$f":"SUM(S455:S456)","v":0}]
[14]
[15,"TOTAL PRODUCTION O&M",null,null," ",{"$f":"F457+F453","v":0},{"$f":"G457+G453","v":0},0,0,{"$f":"J457+J453","v":0},0,0,0,0,0,0,0,0,0]
[16]
[17,"TRANSMISSION O & M"]
[18,null,{"$f":"'FR-16(7)(v)-1 Functional'!C462","v":"TRANSFORMER LEASE PAYMENTS"},{"$f":"'FR-16(7)(v)-1 Functional'!D462","v":"K202"},null,{"$f":"'FR-16(7)(v)-2 PROD Classified'!G462","v":0},{"$f":"F462-SUM(H462:Q462)","v":0},{"$f":"ROUND(F462*VLOOKUP(D462,ALLOCTABLE_Prod_Demand,$H$10,FALSE),0)","v":0},{"$f":"ROUND(F462*VLOOKUP(D462,ALLOCTABLE_Prod_Demand,$I$10,FALSE),0)","v":0},{"$f":"ROUND(F462*VLOOKUP(D462,ALLOCTABLE_Prod_Demand,$J$10,FALSE),0)","v":0},{"$f":"ROUND(F462*VLOOKUP(D462,ALLOCTABLE_Prod_Demand,$K$10,FALSE),0)","v":0},{"$f":"ROUND(F462*VLOOKUP(D462,ALLOCTABLE_Prod_Demand,$L$10,FALSE),0)","v":0},{"$f":"ROUND(F462*VLOOKUP(D462,ALLOCTABLE_Prod_Demand,$M$10,FALSE),0)","v":0},{"$f":"ROUND(F462*VLOOKUP(D462,ALLOCTABLE_Prod_Demand,$N$10,FALSE),0)","v":0},{"$f":"ROUND(F462*VLOOKUP(D462,ALLOCTABLE_Prod_Demand,$O$10,FALSE),0)","v":0},{"$f":"ROUND(F462*VLOOKUP(D462,ALLOCTABLE_Prod_Demand,$P$10,FALSE),0)","v":0},{"$f":"ROUND(F462*VLOOKUP(D462,ALLOCTABLE_Prod_Demand,$Q$10,FALSE),0)","v":0},{"$f":"SUM(G462:Q462)","v":0},{"$f":"F462-R462","v":0}]
[19,null,{"$f":"'FR-16(7)(v)-1 Functional'!C463","v":"OTHER TRANSMISSION"},{"$f":"'FR-16(7)(v)-1 Functional'!D463","v":"K202"},null,{"$f":"'FR-16(7)(v)-2 PROD Classified'!G463","v":0},{"$f":"F463-SUM(H463:Q463)","v":0},{"$f":"ROUND(F463*VLOOKUP(D463,ALLOCTABLE_Prod_Demand,$H$10,FALSE),0)","v":0},{"$f":"ROUND(F463*VLOOKUP(D463,ALLOCTABLE_Prod_Demand,$I$10,FALSE),0)","v":0},{"$f":"ROUND(F463*VLOOKUP(D463,ALLOCTABLE_Prod_Demand,$J$10,FALSE),0)","v":0},{"$f":"ROUND(F463*VLOOKUP(D463,ALLOCTABLE_Prod_Demand,$K$10,FALSE),0)","v":0},{"$f":"ROUND(F463*VLOOKUP(D463,ALLOCTABLE_Prod_Demand,$L$10,FALSE),0)","v":0},{"$f":"ROUND(F463*VLOOKUP(D463,ALLOCTABLE_Prod_Demand,$M$10,FALSE),0)","v":0},{"$f":"ROUND(F463*VLOOKUP(D463,ALLOCTABLE_Prod_Demand,$N$10,FALSE),0)","v":0},{"$f":"ROUND(F463*VLOOKUP(D463,ALLOCTABLE_Prod_Demand,$O$10,FALSE),0)","v":0},{"$f":"ROUND(F463*VLOOKUP(D463,ALLOCTABLE_Prod_Demand,$P$10,FALSE),0)","v":0},{"$f":"ROUND(F463*VLOOKUP(D463,ALLOCTABLE_Prod_Demand,$Q$10,FALSE),0)","v":0},{"$f":"SUM(G463:Q463)","v":0},{"$f":"F463-R463","v":0}]
[20,null,{"$f":"'FR-16(7)(v)-1 Functional'!C464","v":"MISCELLANEOUS ADJUSTMENTS"},{"$f":"'FR-16(7)(v)-1 Functional'!D464","v":"K202"},null,{"$f":"'FR-16(7)(v)-2 PROD Classified'!G464","v":0},{"$f":"F464-SUM(H464:Q464)","v":0},{"$f":"ROUND(F464*VLOOKUP(D464,ALLOCTABLE_Prod_Demand,$H$10,FALSE),0)","v":0},{"$f":"ROUND(F464*VLOOKUP(D464,ALLOCTABLE_Prod_Demand,$I$10,FALSE),0)","v":0},{"$f":"ROUND(F464*VLOOKUP(D464,ALLOCTABLE_Prod_Demand,$J$10,FALSE),0)","v":0},{"$f":"ROUND(F464*VLOOKUP(D464,ALLOCTABLE_Prod_Demand,$K$10,FALSE),0)","v":0},{"$f":"ROUND(F464*VLOOKUP(D464,ALLOCTABLE_Prod_Demand,$L$10,FALSE),0)","v":0},{"$f":"ROUND(F464*VLOOKUP(D464,ALLOCTABLE_Prod_Demand,$M$10,FALSE),0)","v":0},{"$f":"ROUND(F464*VLOOKUP(D464,ALLOCTABLE_Prod_Demand,$N$10,FALSE),0)","v":0},{"$f":"ROUND(F464*VLOOKUP(D464,ALLOCTABLE_Prod_Demand,$O$10,FALSE),0)","v":0},{"$f":"ROUND(F464*VLOOKUP(D464,ALLOCTABLE_Prod_Demand,$P$10,FALSE),0)","v":0},{"$f":"ROUND(F464*VLOOKUP(D464,ALLOCTABLE_Prod_Demand,$Q$10,FALSE),0)","v":0},{"$f":"SUM(G464:Q464)","v":0},{"$f":"F464-R464","v":0}]
[21,null,{"$f":"'FR-16(7)(v)-1 Functional'!C465","v":"NETWORK SERVICE RATES ADJUSTMENT"},{"$f":"'FR-16(7)(v)-1 Functional'!D465","v":"K202"},null,{"$f":"'FR-16(7)(v)-2 PROD Classified'!G465","v":0},{"$f":"F465-SUM(H465:Q465)","v":0},{"$f":"ROUND(F465*VLOOKUP(D465,ALLOCTABLE_Prod_Demand,$H$10,FALSE),0)","v":0},{"$f":"ROUND(F465*VLOOKUP(D465,ALLOCTABLE_Prod_Demand,$I$10,FALSE),0)","v":0},{"$f":"ROUND(F465*VLOOKUP(D465,ALLOCTABLE_Prod_Demand,$J$10,FALSE),0)","v":0},{"$f":"ROUND(F465*VLOOKUP(D465,ALLOCTABLE_Prod_Demand,$K$10,FALSE),0)","v":0},{"$f":"ROUND(F465*VLOOKUP(D465,ALLOCTABLE_Prod_Demand,$L$10,FALSE),0)","v":0},{"$f":"ROUND(F465*VLOOKUP(D465,ALLOCTABLE_Prod_Demand,$M$10,FALSE),0)","v":0},{"$f":"ROUND(F465*VLOOKUP(D465,ALLOCTABLE_Prod_Demand,$N$10,FALSE),0)","v":0},{"$f":"ROUND(F465*VLOOKUP(D465,ALLOCTABLE_Prod_Demand,$O$10,FALSE),0)","v":0},{"$f":"ROUND(F465*VLOOKUP(D465,ALLOCTABLE_Prod_Demand,$P$10,FALSE),0)","v":0},{"$f":"ROUND(F465*VLOOKUP(D465,ALLOCTABLE_Prod_Demand,$Q$10,FALSE),0)","v":0},{"$f":"SUM(G465:Q465)","v":0},{"$f":"F465-R465","v":0}]
[22,null,{"$f":"'FR-16(7)(v)-1 Functional'!C466","v":"  TOTAL TRANSMISSION O & M"},null,null,{"$f":"SUM($F$462:F465)","v":0},{"$f":"SUM(G462:G465)","v":0},0,0,{"$f":"SUM(J462:J465)","v":0},0,0,0,0,0,0,0,0,0]
[23]
[24,"REGIONAL MARKET O&M"]
[25,null,{"$f":"'FR-16(7)(v)-1 Functional'!C469","v":"MARKET FACILITATION - MONITORING & COMPLIANCE"},{"$f":"'FR-16(7)(v)-1 Functional'!D469","v":"K202"},null,{"$f":"'FR-16(7)(v)-2 PROD Classified'!G469","v":0},{"$f":"F469-SUM(H469:Q469)","v":0},{"$f":"ROUND($F$469*VLOOKUP(D469,ALLOCTABLE_Prod_Demand,$H$10,FALSE),0)","v":0},{"$f":"ROUND($F$469*VLOOKUP($D$469,ALLOCTABLE_Prod_Demand,$I$10,FALSE),0)","v":0},{"$f":"ROUND($F$469*VLOOKUP($D$469,ALLOCTABLE_Prod_Demand,$J$10,FALSE),0)","v":0},{"$f":"ROUND($F$469*VLOOKUP($D$469,ALLOCTABLE_Prod_Demand,$K$10,FALSE),0)","v":0},{"$f":"ROUND($F$469*VLOOKUP($D$469,ALLOCTABLE_Prod_Demand,$L$10,FALSE),0)","v":0},{"$f":"ROUND($F$469*VLOOKUP($D$469,ALLOCTABLE_Prod_Demand,$M$10,FALSE),0)","v":0},{"$f":"ROUND($F$469*VLOOKUP($D$469,ALLOCTABLE_Prod_Demand,$N$10,FALSE),0)","v":0},{"$f":"ROUND($F$469*VLOOKUP($D$469,ALLOCTABLE_Prod_Demand,$O$10,FALSE),0)","v":0},{"$f":"ROUND($F$469*VLOOKUP($D$469,ALLOCTABLE_Prod_Demand,$P$10,FALSE),0)","v":0},{"$f":"ROUND($F$469*VLOOKUP(D469,ALLOCTABLE_Prod_Demand,$Q$10,FALSE),0)","v":0},{"$f":"SUM(G469:Q469)","v":0},{"$f":"F469-R469","v":0}]
[26,null,"TOTAL REGIONAL MARKET O&M",null,null,{"$f":"SUM($F$468:F469)","v":0},{"$f":"SUM(G468:G469)","v":0},{"$f":"SUM(H468:H469)","v":0},{"$f":"SUM(I468:I469)","v":0},{"$f":"SUM(J468:J469)","v":0},0,0,0,0,0,0,{"$f":"SUM(Q468:Q469)","v":0},{"$f":"SUM(R468:R469)","v":0},{"$f":"SUM(S468:S469)","v":0}]
[27]
[28,"DISTRIBUTION O & M"]
[29,null,{"$f":"'FR-16(7)(v)-1 Functional'!C473","v":"SUBSTATIONS"},{"$f":"'FR-16(7)(v)-1 Functional'!D473","v":"K201"},null,{"$f":"'FR-16(7)(v)-2 PROD Classified'!G473","v":621124},{"$f":"F473-SUM(H473:Q473)","v":279993},{"$f":"ROUND(F473*VLOOKUP(D473,ALLOCTABLE_Prod_Demand,$H$10,FALSE),0)","v":168101},{"$f":"ROUND(F473*VLOOKUP(D473,ALLOCTABLE_Prod_Demand,$I$10,FALSE),0)","v":807},{"$f":"ROUND(F473*VLOOKUP(D473,ALLOCTABLE_Prod_Demand,$J$10,FALSE),0)","v":3186},{"$f":"ROUND(F473*VLOOKUP(D473,ALLOCTABLE_Prod_Demand,$K$10,FALSE),0)","v":43},{"$f":"ROUND(F473*VLOOKUP(D473,ALLOCTABLE_Prod_Demand,$L$10,FALSE),0)","v":83814},{"$f":"ROUND(F473*VLOOKUP(D473,ALLOCTABLE_Prod_Demand,$M$10,FALSE),0)","v":55410},{"$f":"ROUND(F473*VLOOKUP(D473,ALLOCTABLE_Prod_Demand,$N$10,FALSE),0)","v":2677},{"$f":"ROUND(F473*VLOOKUP(D473,ALLOCTABLE_Prod_Demand,$O$10,FALSE),0)","v":26255},{"$f":"ROUND(F473*VLOOKUP(D473,ALLOCTABLE_Prod_Demand,$P$10,FALSE),0)","v":770},{"$f":"ROUND(F473*VLOOKUP(D473,ALLOCTABLE_Prod_Demand,$Q$10,FALSE),0)","v":68},{"$f":"SUM(G473:Q473)","v":621124},{"$f":"F473-R473","v":0}]
[30,null,{"$f":"'FR-16(7)(v)-1 Functional'!C474","v":"POLES, TOWERS & FIXTURES"},{"$f":"'FR-16(7)(v)-1 Functional'!D474","v":"PL49"},null,{"$f":"'FR-16(7)(v)-2 PROD Classified'!G474","v":0},0,0,0,0,0,0,0,0,0,0,0,0,0]
[31,null,{"$f":"'FR-16(7)(v)-1 Functional'!C475","v":"OVERHEAD LINES - PRIMARY / DEMAND"},{"$f":"'FR-16(7)(v)-1 Functional'!D475","v":"K205"},null,{"$f":"'FR-16(7)(v)-2 PROD Classified'!G475","v":0},0,0,0,0,0,0,0,0,0,0,0,0,0]
[32,null,{"$f":"'FR-16(7)(v)-1 Functional'!C476","v":"OVERHEAD LINES - PRIMARY / CUSTOMER"},{"$f":"'FR-16(7)(v)-1 Functional'!D476","v":"K405"},null,{"$f":"'FR-16(7)(v)-2 PROD Classified'!G476","v":0},0,0,0,0,0,0,0,0,0,0,0,0,0]
[33,null,{"$f":"'FR-16(7)(v)-1 Functional'!C477","v":"OVERHEAD LINES - SECONDARY / DEMAND"},{"$f":"'FR-16(7)(v)-1 Functional'!D477","v":"K206"},null,{"$f":"'FR-16(7)(v)-2 PROD Classified'!G477","v":0},0,0,0,0,0,0,0,0,0,0,0,0,0]
[34,null,{"$f":"'FR-16(7)(v)-1 Functional'!C478","v":"OVERHEAD LINES - SECONDARY / CUSTOMER"},{"$f":"'FR-16(7)(v)-1 Functional'!D478","v":"K405"},null,{"$f":"'FR-16(7)(v)-2 PROD Classified'!G478","v":0},0,0,0,0,0,0,0,0,0,0,0,0,0]
[35,null,{"$f":"'FR-16(7)(v)-1 Functional'!C479","v":"UNDERGROUND LINES - PRIMARY / DEMAND"},{"$f":"'FR-16(7)(v)-1 Functional'!D479","v":"K205"},null,{"$f":"'FR-16(7)(v)-2 PROD Classified'!G479","v":0},0,0,0,0,0,0,0,0,0,0,0,0,0]
[36,null,{"$f":"'FR-16(7)(v)-1 Functional'!C480","v":"UNDERGROUND LINES - PRIMARY / CUSTOMER"},{"$f":"'FR-16(7)(v)-1 Functional'!D480","v":"K405"},null,{"$f":"'FR-16(7)(v)-2 PROD Classified'!G480","v":0},0,0,0,0,0,0,0,0,0,0,0,0,0]
[37,null,{"$f":"'FR-16(7)(v)-1 Functional'!C481","v":"UNDERGROUND LINES - SECONDARY / DEMAND"},{"$f":"'FR-16(7)(v)-1 Functional'!D481","v":"K206"},null,{"$f":"'FR-16(7)(v)-2 PROD Classified'!G481","v":0},0,0,0,0,0,0,0,0,0,0,0,0,0]
[38,null,{"$f":"'FR-16(7)(v)-1 Functional'!C482","v":"UNDERGROUND LINES - SECONDARY / CUSTOMER"},{"$f":"'FR-16(7)(v)-1 Functional'!D482","v":"K405"},null,{"$f":"'FR-16(7)(v)-2 PROD Classified'!G482","v":0},0,0,0,0,0,0,0,0,0,0,0,0,0]
[39,null,{"$f":"'FR-16(7)(v)-1 Functional'!C483","v":"TRANSFORMERS DEMAND RELATED"},{"$f":"'FR-16(7)(v)-1 Functional'!D483","v":"K203"},null,{"$f":"'FR-16(7)(v)-2 PROD Classified'!G483","v":0},0,0,0,0,0,0,0,0,0,0,0,0,0]
[40,null,{"$f":"'FR-16(7)(v)-1 Functional'!C484","v":"TRANSFORMERS CUSTOMER RELATED"},{"$f":"'FR-16(7)(v)-1 Functional'!D484","v":"K401"},null,{"$f":"'FR-16(7)(v)-2 PROD Classified'!G484","v":0},0,0,0,0,0,0,0,0,0,0,0,0,0]
[41,null,{"$f":"'FR-16(7)(v)-1 Functional'!C485","v":"OTHER MAINTENANCE"},{"$f":"'FR-16(7)(v)-1 Functional'!D485","v":"K203"},null,{"$f":"'FR-16(7)(v)-2 PROD Classified'!G485","v":0},0,0,0,0,0,0,0,0,0,0,0,0,0]
[42,null,{"$f":"'FR-16(7)(v)-1 Functional'!C486","v":"LOAD DISPATCH"},{"$f":"'FR-16(7)(v)-1 Functional'!D486","v":"K215"},null,{"$f":"'FR-16(7)(v)-2 PROD Classified'!G486","v":0},0,0,0,0,0,0,0,0,0,0,0,0,0]
[43,null,{"$f":"'FR-16(7)(v)-1 Functional'!C487","v":"METERS"},{"$f":"'FR-16(7)(v)-1 Functional'!D487","v":"K407"},null,{"$f":"'FR-16(7)(v)-2 PROD Classified'!G487","v":0},0,0,0,0,0,0,0,0,0,0,0,0,0]
[44,null,{"$f":"'FR-16(7)(v)-1 Functional'!C488","v":"STREET LIGHTING AND SIGNAL SYSTEMS"},{"$f":"'FR-16(7)(v)-1 Functional'!D488","v":"K401"},null,{"$f":"'FR-16(7)(v)-2 PROD Classified'!G488","v":0},0,0,0,0,0,0,0,0,0,0,0,0,0]
[45,null,{"$f":"'FR-16(7)(v)-1 Functional'!C489","v":"OTHER OPERATIONS"},{"$f":"'FR-16(7)(v)-1 Functional'!D489","v":"K203"},null,{"$f":"'FR-16(7)(v)-2 PROD Classified'!G489","v":0},0,0,0,0,0,0,0,0,0,0,0,0,0]
[46,null,{"$f":"'FR-16(7)(v)-1 Functional'!C490","v":"MISCELLANEOUS EXPENSES ADJUSTMENT"},{"$f":"'FR-16(7)(v)-1 Functional'!D490","v":"K203"},null,{"$f":"'FR-16(7)(v)-2 PROD Classified'!G490","v":0},0,0,0,0,0,0,0,0,0,0,0,0,0]
[47,null,{"$f":"'FR-16(7)(v)-1 Functional'!C491","v":"AFFILIATED COMPANY RENTS ADJUSTMENT"},{"$f":"'FR-16(7)(v)-1 Functional'!D491","v":"D249"},null,{"$f":"'FR-16(7)(v)-2 PROD Classified'!G491","v":0},0,0,0,0,0,0,0,0,0,0,0,0,0]
[48,null,{"$f":"'FR-16(7)(v)-1 Functional'!C492","v":"  TOTAL DISTRIBUTION O & M"},null," ",{"$f":"SUM($F$472:F491)","v":621124},{"$f":"SUM(G472:G491)","v":279993},{"$f":"SUM(H472:H491)","v":168101},{"$f":"SUM(I472:I491)","v":807},{"$f":"SUM(J472:J491)","v":3186},43,83814,55410,2677,26255,770,{"$f":"SUM(Q472:Q491)","v":68},{"$f":"SUM(R472:R491)","v":621124},{"$f":"SUM(S472:S491)","v":0}]
[49,null," "]
[50,"CUSTOMER ACCOUNTING",null,null,null," "]
[51,null,{"$f":"'FR-16(7)(v)-1 Functional'!C495","v":"CUSTOMER ACCOUNTING EXPENSE"},{"$f":"'FR-16(7)(v)-1 Functional'!D495","v":"K409"},null,{"$f":"'FR-16(7)(v)-2 PROD Classified'!G495","v":0},{"$f":"F495-SUM(H495:Q495)","v":0},{"$f":"ROUND(F495*VLOOKUP(D495,ALLOCTABLE_Prod_Demand,$H$10,FALSE),0)","v":0},{"$f":"ROUND(F495*VLOOKUP(D495,ALLOCTABLE_Prod_Demand,$I$10,FALSE),0)","v":0},{"$f":"ROUND(F495*VLOOKUP(D495,ALLOCTABLE_Prod_Demand,$J$10,FALSE),0)","v":0},{"$f":"ROUND(F495*VLOOKUP(D495,ALLOCTABLE_Prod_Demand,$K$10,FALSE),0)","v":0},{"$f":"ROUND(F495*VLOOKUP(D495,ALLOCTABLE_Prod_Demand,$L$10,FALSE),0)","v":0},{"$f":"ROUND(F495*VLOOKUP(D495,ALLOCTABLE_Prod_Demand,$M$10,FALSE),0)","v":0},{"$f":"ROUND(F495*VLOOKUP(D495,ALLOCTABLE_Prod_Demand,$N$10,FALSE),0)","v":0},{"$f":"ROUND(F495*VLOOKUP(D495,ALLOCTABLE_Prod_Demand,$O$10,FALSE),0)","v":0},{"$f":"ROUND(F495*VLOOKUP(D495,ALLOCTABLE_Prod_Demand,$P$10,FALSE),0)","v":0},{"$f":"ROUND(F495*VLOOKUP(D495,ALLOCTABLE_Prod_Demand,$Q$10,FALSE),0)","v":0},{"$f":"SUM(G495:Q495)","v":0},{"$f":"F495-R495","v":0}]
[52,null,{"$f":"'FR-16(7)(v)-1 Functional'!C496","v":"UNCOLLECTIBLE EXP"},{"$f":"'FR-16(7)(v)-1 Functional'!D496","v":"K411"},null,{"$f":"'FR-16(7)(v)-2 PROD Classified'!G496","v":0},0,0,0,0,0,0,0,0,0,0,0,0,0]
[53,null,{"$f":"'FR-16(7)(v)-1 Functional'!C497","v":"METER READING"},{"$f":"'FR-16(7)(v)-1 Functional'!D497","v":"K407"},null,{"$f":"'FR-16(7)(v)-2 PROD Classified'!G497","v":0},0,0,0,0,0,0,0,0,0,0,0,0,0]
[54,null,{"$f":"'FR-16(7)(v)-1 Functional'!C498","v":"UNCOLLECTIBLE EXP ADJUSTMENT"},{"$f":"'FR-16(7)(v)-1 Functional'!D498","v":"K411"},null,{"$f":"'FR-16(7)(v)-2 PROD Classified'!G498","v":0},0,0,0,0,0,0,0,0,0,0,0,0,0]
[55,null,{"$f":"'FR-16(7)(v)-1 Functional'!C499","v":"CREDIT CARD FEES"},{"$f":"'FR-16(7)(v)-1 Functional'!D499","v":"K407"},null,{"$f":"'FR-16(7)(v)-2 PROD Classified'!G499","v":0},0,0,0,0,0,0,0,0,0,0,0,0,0]
[56,null,{"$f":"'FR-16(7)(v)-1 Functional'!C500","v":"ELIMINATE REV & EXP - DSM RIDER"},{"$f":"'FR-16(7)(v)-1 Functional'!D500","v":"K405"},null,{"$f":"'FR-16(7)(v)-2 PROD Classified'!G500","v":0},0,0,0,0,0,0,0,0,0,0,0,0,0]
[57,null,{"$f":"'FR-16(7)(v)-1 Functional'!C501","v":"SALE OF A/R"},{"$f":"'FR-16(7)(v)-1 Functional'!D501","v":"K411"},null,{"$f":"'FR-16(7)(v)-2 PROD Classified'!G501","v":0},0,0,0,0,0,0,0,0,0,0,0,0,0]
[58,null,{"$f":"'FR-16(7)(v)-1 Functional'!C502","v":"ELIMINATE MISC EXPENSE"},{"$f":"'FR-16(7)(v)-1 Functional'!D502","v":"K405"},null,{"$f":"'FR-16(7)(v)-2 PROD Classified'!G502","v":0},0,0,0,0,0,0,0,0,0,0,0,0,0]
[59,null,{"$f":"'FR-16(7)(v)-1 Functional'!C503","v":"  TOTAL CUSTOMER ACCT EXPENSE"},null," ",{"$f":"SUM($F$494:F502)","v":0},{"$f":"SUM(G494:G502)","v":0},{"$f":"SUM(H494:H502)","v":0},{"$f":"SUM(I494:I502)","v":0},{"$f":"SUM(J494:J502)","v":0},0,0,0,0,0,0,{"$f":"SUM(Q494:Q502)","v":0},{"$f":"SUM(R494:R502)","v":0},{"$f":"SUM(S494:S502)","v":0}]
[]
[{"$f":"co_name","v":"DUKE ENERGY KENTUCKY, INC."},null,null,null,null,null,null,null,null,null,null,null,null,null,null,null,null,{"$f":"R1","v":"FR-16(7)(v)-3"}]
[{"$f":"$A$2","v":"PRODUCTION DEMAND ALLOCATED - ELECTRIC COST OF SERVICE"},null,null,null,null,null,null,null,null,null,null,null,null,null,null,null,null,{"$f":"R2","v":"WITNESS RESPONSIBLE:"}]
[{"$f":"case_name","v":"CASE NO: 2019-00271"},null,null,null,null,null,null,null,null,null,null,null,null,null,null,null,null,{"$f":"Witness","v":"JAMES E. ZIOLKOWSKI"}]
[{"$f":"data_filing","v":"DATA: 12 MONTHS ACTUAL  & 0 MONTHS ESTIMATED"},null,null,null,null,null,null,null,null,null,null,null,null,null,null,null,null,{"$f":"\"PAGE \"&Pages-9&\" OF \"&Pages","v":"PAGE 9 OF 18"}]
[{"$f":"type","v":"TYPE OF FILING: \"X\" ORIGINAL   UPDATED    REVISED  "}]
[]
[null,null,null,null,null,{"$f":"F$7","v":"TOTAL"},null,{"$f":"H$7","v":"DS"},{"$f":"I$7","v":"GSFL"},{"$f":"J$7","v":"EH"},{"$f":"K$7","v":"SP"},"DT SEC","DT PRI","DP","TT",null,"OTHER"]
["LINE",null,null,null,null,{"$f":"F$8","v":"PRODUCTION"},{"$f":"G$8","v":"RS"},{"$f":"H$8","v":"SECONDARY"},{"$f":"I$8","v":"SECONDARY"},{"$f":"J$8","v":"SECONDARY"},{"$f":"K$8","v":"SECONDARY"},"SECONDARY","PRIMARY","PRIMARY","TRANSMISSION","LT","WATER",{"$f":"R8","v":"TOTAL"},"ALL"]
["NO.","O&M EXPENSES",null,"ALLO",null,{"$f":"F$9","v":"DEMAND"},{"$f":"G$9","v":"RESIDENTIAL"},{"$f":"H$9","v":"DISTRIBUTION"},{"$f":"I$9","v":"DISTRIBUTION"},{"$f":"J$9","v":"DISTRIBUTION"},{"$f":"K$9","v":"DISTRIBUTION"},"DISTRIBUTION","DISTRIBUTION","DISTRIBUTION","TIME OF DAY","LIGHTING","PUMPING",{"$f":"R9","v":"AT ISSUE"},"OTHER"]
[null,null,"Schedule 6.1",null,null,null,{"$f":"G$10","v":3},{"$f":"H$10","v":4},{"$f":"I$10","v":5},{"$f":"J$10","v":6},{"$f":"K$10","v":7},8,9,10,11,12,13,null," "]
[1,"CUSTOMER SERVICE & INFORMATION"]
[2,null,{"$f":"'FR-16(7)(v)-1 Functional'!C516","v":"TOTAL CUST SERVICE & INFO"},{"$f":"'FR-16(7)(v)-1 Functional'!D516","v":"K405"},null,{"$f":"'FR-16(7)(v)-2 PROD Classified'!G516","v":0},{"$f":"F516-SUM(H516:Q516)","v":0},{"$f":"ROUND(F516*VLOOKUP(D516,ALLOCTABLE_Prod_Demand,$H$10,FALSE),0)","v":0},{"$f":"ROUND(F516*VLOOKUP(D516,ALLOCTABLE_Prod_Demand,$I$10,FALSE),0)","v":0},{"$f":"ROUND(F516*VLOOKUP(D516,ALLOCTABLE_Prod_Demand,$J$10,FALSE),0)","v":0},{"$f":"ROUND(F516*VLOOKUP(D516,ALLOCTABLE_Prod_Demand,$K$10,FALSE),0)","v":0},{"$f":"ROUND(F516*VLOOKUP(D516,ALLOCTABLE_Prod_Demand,$L$10,FALSE),0)","v":0},{"$f":"ROUND(F516*VLOOKUP(D516,ALLOCTABLE_Prod_Demand,$M$10,FALSE),0)","v":0},{"$f":"ROUND(F516*VLOOKUP(D516,ALLOCTABLE_Prod_Demand,$N$10,FALSE),0)","v":0},{"$f":"ROUND(F516*VLOOKUP(D516,ALLOCTABLE_Prod_Demand,$O$10,FALSE),0)","v":0},{"$f":"ROUND(F516*VLOOKUP(D516,ALLOCTABLE_Prod_Demand,$P$10,FALSE),0)","v":0},{"$f":"ROUND(F516*VLOOKUP(D516,ALLOCTABLE_Prod_Demand,$Q$10,FALSE),0)","v":0},{"$f":"SUM(G516:Q516)","v":0},{"$f":"F516-R516","v":0}]
[3,null,{"$f":"'FR-16(7)(v)-1 Functional'!C517","v":"INFORMATIONAL & INSTRUCTIONAL ADV"},{"$f":"'FR-16(7)(v)-1 Functional'!D517","v":"K405"},null,{"$f":"'FR-16(7)(v)-2 PROD Classified'!G517","v":0},{"$f":"F517-SUM(H517:Q517)","v":0},{"$f":"ROUND(F517*VLOOKUP(D517,ALLOCTABLE_Prod_Demand,$H$10,FALSE),0)","v":0},{"$f":"ROUND(F517*VLOOKUP(D517,ALLOCTABLE_Prod_Demand,$I$10,FALSE),0)","v":0},{"$f":"ROUND(F517*VLOOKUP(D517,ALLOCTABLE_Prod_Demand,$J$10,FALSE),0)","v":0},{"$f":"ROUND(F517*VLOOKUP(D517,ALLOCTABLE_Prod_Demand,$K$10,FALSE),0)","v":0},{"$f":"ROUND(F517*VLOOKUP(D517,ALLOCTABLE_Prod_Demand,$L$10,FALSE),0)","v":0},{"$f":"ROUND(F517*VLOOKUP(D517,ALLOCTABLE_Prod_Demand,$M$10,FALSE),0)","v":0},{"$f":"ROUND(F517*VLOOKUP(D517,ALLOCTABLE_Prod_Demand,$N$10,FALSE),0)","v":0},{"$f":"ROUND(F517*VLOOKUP(D517,ALLOCTABLE_Prod_Demand,$O$10,FALSE),0)","v":0},{"$f":"ROUND(F517*VLOOKUP(D517,ALLOCTABLE_Prod_Demand,$P$10,FALSE),0)","v":0},{"$f":"ROUND(F517*VLOOKUP(D517,ALLOCTABLE_Prod_Demand,$Q$10,FALSE),0)","v":0},{"$f":"SUM(G517:Q517)","v":0}]
[4,null,{"$f":"'FR-16(7)(v)-1 Functional'!C518","v":"TOTAL CUSTOMER SERV. & INFO."},null," ",{"$f":"SUM($F$516:F517)","v":0},{"$f":"SUM(G516:G517)","v":0},0,0,{"$f":"SUM(J516:J517)","v":0},0,0,0,0,0,0,0,0,0]
[5]
[6,"SALES"]
[7,null,{"$f":"'FR-16(7)(v)-1 Functional'!C521","v":"SALES EXPENSE"},{"$f":"'FR-16(7)(v)-1 Functional'!D521","v":"K405"}," ",{"$f":"'FR-16(7)(v)-2 PROD Classified'!G521","v":0},{"$f":"F521-SUM(H521:Q521)","v":0},{"$f":"ROUND(F521*VLOOKUP(D521,ALLOCTABLE_Prod_Demand,$H$10,FALSE),0)","v":0},{"$f":"ROUND(F521*VLOOKUP(D521,ALLOCTABLE_Prod_Demand,$I$10,FALSE),0)","v":0},{"$f":"ROUND(F521*VLOOKUP(D521,ALLOCTABLE_Prod_Demand,$J$10,FALSE),0)","v":0},{"$f":"ROUND(F521*VLOOKUP(D521,ALLOCTABLE_Prod_Demand,$K$10,FALSE),0)","v":0},{"$f":"ROUND(F521*VLOOKUP(D521,ALLOCTABLE_Prod_Demand,$L$10,FALSE),0)","v":0},{"$f":"ROUND(F521*VLOOKUP(D521,ALLOCTABLE_Prod_Demand,$M$10,FALSE),0)","v":0},{"$f":"ROUND(F521*VLOOKUP(D521,ALLOCTABLE_Prod_Demand,$N$10,FALSE),0)","v":0},{"$f":"ROUND(F521*VLOOKUP(D521,ALLOCTABLE_Prod_Demand,$O$10,FALSE),0)","v":0},{"$f":"ROUND(F521*VLOOKUP(D521,ALLOCTABLE_Prod_Demand,$P$10,FALSE),0)","v":0},{"$f":"ROUND(F521*VLOOKUP(D521,ALLOCTABLE_Prod_Demand,$Q$10,FALSE),0)","v":0},{"$f":"SUM(G521:Q521)","v":0},{"$f":"F521-R521","v":0}]
[8,null,{"$f":"'FR-16(7)(v)-1 Functional'!C522","v":"TOTAL SALES EXPENSE"},null," ",{"$f":"SUM($F$520:F521)","v":0},{"$f":"SUM(G520:G521)","v":0},{"$f":"SUM(H520:H521)","v":0},{"$f":"SUM(I520:I521)","v":0},{"$f":"SUM(J520:J521)","v":0},0,0,0,0,0,0,{"$f":"SUM(Q520:Q521)","v":0},{"$f":"SUM(R520:R521)","v":0},{"$f":"SUM(S520:S521)","v":0}]
[9]
[10,"ADMINISTRATIVE & GENERAL "]
[11,null,{"$f":"'FR-16(7)(v)-1 Functional'!C525","v":"PRODUCTION - DEMAND RELATED"},{"$f":"'FR-16(7)(v)-1 Functional'!D525","v":"P349"},null,{"$f":"'FR-16(7)(v)-2 PROD Classified'!G525","v":9286338},{"$f":"F525-SUM(H525:Q525)","v":9286338},{"$f":"ROUND(F525*VLOOKUP(D525,ALLOCTABLE_Prod_Demand,$H$10,FALSE),0)","v":0},{"$f":"ROUND(F525*VLOOKUP(D525,ALLOCTABLE_Prod_Demand,$I$10,FALSE),0)","v":0},{"$f":"ROUND(F525*VLOOKUP(D525,ALLOCTABLE_Prod_Demand,$J$10,FALSE),0)","v":0},{"$f":"ROUND(F525*VLOOKUP(D525,ALLOCTABLE_Prod_Demand,$K$10,FALSE),0)","v":0},{"$f":"ROUND(F525*VLOOKUP(D525,ALLOCTABLE_Prod_Demand,$L$10,FALSE),0)","v":0},{"$f":"ROUND(F525*VLOOKUP(D525,ALLOCTABLE_Prod_Demand,$M$10,FALSE),0)","v":0},{"$f":"ROUND(F525*VLOOKUP(D525,ALLOCTABLE_Prod_Demand,$N$10,FALSE),0)","v":0},{"$f":"ROUND(F525*VLOOKUP(D525,ALLOCTABLE_Prod_Demand,$O$10,FALSE),0)","v":0},{"$f":"ROUND(F525*VLOOKUP(D525,ALLOCTABLE_Prod_Demand,$P$10,FALSE),0)","v":0},{"$f":"ROUND(F525*VLOOKUP(D525,ALLOCTABLE_Prod_Demand,$Q$10,FALSE),0)","v":0},{"$f":"SUM(G525:Q525)","v":9286338},{"$f":"F525-R525","v":0}]
[12,null,{"$f":"'FR-16(7)(v)-1 Functional'!C526","v":"PRODUCTION - ENERGY RELATED"},{"$f":"'FR-16(7)(v)-1 Functional'!D526","v":"E349"},null,{"$f":"'FR-16(7)(v)-2 PROD Classified'!G526","v":0},0,0,0,0,0,0,0,0,0,0,0,0,0]
[13,null,"TRANSMISSION",{"$f":"'FR-16(7)(v)-1 Functional'!D527","v":"T349"},null,{"$f":"'FR-16(7)(v)-2 PROD Classified'!G527","v":0},0,0,0,0,0,0,0,0,0,0,0,{"$f":"SUM(G527:Q527)","v":0},{"$f":"F527-R527","v":0}]
[14,null,{"$f":"'FR-16(7)(v)-1 Functional'!C528","v":"DISTRIBUTION"},{"$f":"'FR-16(7)(v)-1 Functional'!D528","v":"D349"},null,{"$f":"'FR-16(7)(v)-2 PROD Classified'!G528","v":209224},94314,56624,272,1073,15,28233,18665,902,8844,259,23,209224,0]
[15,null,{"$f":"'FR-16(7)(v)-1 Functional'!C529","v":"CUSTOMER ACCOUNTING"},{"$f":"'FR-16(7)(v)-1 Functional'!D529","v":"C319"},null,{"$f":"'FR-16(7)(v)-2 PROD Classified'!G529","v":0},0,0,0,0,0,0,0,0,0,0,0,0,0]
[16,null,{"$f":"'FR-16(7)(v)-1 Functional'!C530","v":"CUSTOMER SERVICE & INFORMATION"},{"$f":"'FR-16(7)(v)-1 Functional'!D530","v":"C331"},null,{"$f":"'FR-16(7)(v)-2 PROD Classified'!G530","v":0},0,0,0,0,0,0,0,0,0,0,0,0,0]
[17,null,{"$f":"'FR-16(7)(v)-1 Functional'!C531","v":"SALES"},{"$f":"'FR-16(7)(v)-1 Functional'!D531","v":"S319"},null,{"$f":"'FR-16(7)(v)-2 PROD Classified'!G531","v":0},0,0,0,0,0,0,0,0,0,0,0,0,0]
[18,null,{"$f":"'FR-16(7)(v)-1 Functional'!C532","v":"TOT ADMIN & GEN LESS REG EXP"}," ",null,{"$f":"SUM($F$525:F531)","v":9495562},{"$f":"SUM(G525:G531)","v":9380652},{"$f":"SUM(H525:H531)","v":56624},{"$f":"SUM(I525:I531)","v":272},{"$f":"SUM(J525:J531)","v":1073},15,28233,18665,902,8844,259,{"$f":"SUM(Q525:Q531)","v":23},{"$f":"SUM(R525:R531)","v":9495562},{"$f":"SUM(S525:S531)","v":0}]
[19,null,{"$f":"'FR-16(7)(v)-1 Functional'!C533","v":"RATE CASE EXPENSE ADJUSTMENT"},{"$f":"'FR-16(7)(v)-1 Functional'!D533","v":"A315"},null,{"$f":"'FR-16(7)(v)-2 PROD Classified'!G533","v":40754},{"$f":"F533-SUM(H533:Q533)","v":40262},{"$f":"ROUND(F533*VLOOKUP(D533,ALLOCTABLE_Prod_Demand,$H$10,FALSE),0)","v":243},{"$f":"ROUND(F533*VLOOKUP(D533,ALLOCTABLE_Prod_Demand,$I$10,FALSE),0)","v":1},{"$f":"ROUND(F533*VLOOKUP(D533,ALLOCTABLE_Prod_Demand,$J$10,FALSE),0)","v":4},{"$f":"ROUND(F533*VLOOKUP(D533,ALLOCTABLE_Prod_Demand,$K$10,FALSE),0)","v":0},{"$f":"ROUND(F533*VLOOKUP(D533,ALLOCTABLE_Prod_Demand,$L$10,FALSE),0)","v":121},{"$f":"ROUND(F533*VLOOKUP(D533,ALLOCTABLE_Prod_Demand,$M$10,FALSE),0)","v":80},{"$f":"ROUND(F533*VLOOKUP(D533,ALLOCTABLE_Prod_Demand,$N$10,FALSE),0)","v":4},{"$f":"ROUND(F533*VLOOKUP(D533,ALLOCTABLE_Prod_Demand,$O$10,FALSE),0)","v":38},{"$f":"ROUND(F533*VLOOKUP(D533,ALLOCTABLE_Prod_Demand,$P$10,FALSE),0)","v":1},{"$f":"ROUND(F533*VLOOKUP(D533,ALLOCTABLE_Prod_Demand,$Q$10,FALSE),0)","v":0},{"$f":"SUM(G533:Q533)","v":40754},{"$f":"F533-R533","v":0}]
[20,null,{"$f":"'FR-16(7)(v)-1 Functional'!C534","v":"ELIMINATE MISCELLANEOUS EXPENSES ADJUSTMENT"},{"$f":"'FR-16(7)(v)-1 Functional'!D534","v":"A315"},null,{"$f":"'FR-16(7)(v)-2 PROD Classified'!G534","v":0},0,0,0,0,0,0,0,0,0,0,0,0,0]
[21,null,{"$f":"'FR-16(7)(v)-1 Functional'!C535","v":"RIDER ESM ELIMINATION"},{"$f":"'FR-16(7)(v)-1 Functional'!D535","v":"A315"},null,{"$f":"'FR-16(7)(v)-2 PROD Classified'!G535","v":-2801208},-2767342,-16695,-84,-308,0,-8320,-5518,-252,-2605,-84,0,-2801208,0]
[22,null,{"$f":"'FR-16(7)(v)-1 Functional'!C536","v":"ELIMINATE DSM"},{"$f":"'FR-16(7)(v)-1 Functional'!D536","v":"A315"},null,{"$f":"'FR-16(7)(v)-2 PROD Classified'!G536","v":-39234},-38760,-234,-1,-4,0,-117,-77,-4,-36,-1,0,-39234,0]
[23,null,{"$f":"'FR-16(7)(v)-1 Functional'!C537","v":"DSM DEFERRAL - ELECTRIC"},{"$f":"'FR-16(7)(v)-1 Functional'!D537","v":"A315"},null,{"$f":"'FR-16(7)(v)-2 PROD Classified'!G537","v":0},0,0,0,0,0,0,0,0,0,0,0,0,0]
[24,null,{"$f":"'FR-16(7)(v)-1 Functional'!C538","v":"PENSION ADJUSTMENT"},{"$f":"'FR-16(7)(v)-1 Functional'!D538","v":"A315"},null,{"$f":"'FR-16(7)(v)-2 PROD Classified'!G538","v":-170911},-168844,-1019,-5,-19,0,-508,-337,-15,-159,-5,0,-170911,0]
[25,null,{"$f":"'FR-16(7)(v)-1 Functional'!C539","v":"ELIMINATE MISC EXPENSES"},{"$f":"'FR-16(7)(v)-1 Functional'!D539","v":"A315"},null,{"$f":"'FR-16(7)(v)-2 PROD Classified'!G539","v":-164860},-162866,-983,-5,-18,0,-490,-325,-15,-153,-5,0,-164860,0]
[26,null,{"$f":"'FR-16(7)(v)-1 Functional'!C540","v":"ELIMINATE MERGER COSTS AND CREDITS"},{"$f":"'FR-16(7)(v)-1 Functional'!D540","v":"A315"},null,{"$f":"'FR-16(7)(v)-2 PROD Classified'!G540","v":0},0,0,0,0,0,0,0,0,0,0,0,0,0]
[27,null,{"$f":"'FR-16(7)(v)-1 Functional'!C541","v":"ANNUALIZE KYPSC MAINT TAX"},{"$f":"'FR-16(7)(v)-1 Functional'!D541","v":"A315"},null,{"$f":"'FR-16(7)(v)-2 PROD Classified'!G541","v":0},0,0,0,0,0,0,0,0,0,0,0,0,0]
[28,null,{"$f":"'FR-16(7)(v)-1 Functional'!C542","v":"REMOVE INCENTIVE COMP"},{"$f":"'FR-16(7)(v)-1 Functional'!D542","v":"A315"},null,{"$f":"'FR-16(7)(v)-2 PROD Classified'!G542","v":-475934},-470179,-2837,-14,-52,0,-1414,-938,-43,-443,-14,0,-475934,0]
[29,null,{"$f":"'FR-16(7)(v)-1 Functional'!C543","v":"CREDIT CARD FEES"},{"$f":"'FR-16(7)(v)-1 Functional'!D543","v":"A315"},null,{"$f":"'FR-16(7)(v)-2 PROD Classified'!G543","v":0},0,0,0,0,0,0,0,0,0,0,0,0,0]
[30,null,{"$f":"'FR-16(7)(v)-1 Functional'!C544","v":"ELIMINATE INCENTIVE COMPENSATION ADJUSTMENT"},{"$f":"'FR-16(7)(v)-1 Functional'!D544","v":"A315"},null,{"$f":"'FR-16(7)(v)-2 PROD Classified'!G544","v":0},0,0,0,0,0,0,0,0,0,0,0,0,0]
[31,null,{"$f":"'FR-16(7)(v)-1 Functional'!C545","v":"AMORTIZATION OF DEFERRAL ASSET"},{"$f":"'FR-16(7)(v)-1 Functional'!D545","v":"A315"},null,{"$f":"'FR-16(7)(v)-2 PROD Classified'!G545","v":0},0,0,0,0,0,0,0,0,0,0,0,0,0]
[32,null,{"$f":"'FR-16(7)(v)-1 Functional'!C546","v":"AMORTIZATION OF DEFERRED EXPENSES"},{"$f":"'FR-16(7)(v)-1 Functional'!D546","v":"A315"},null,{"$f":"'FR-16(7)(v)-2 PROD Classified'!G546","v":29948},29586,178,1,3,0,89,59,3,28,1,0,29948,0]
[33,null,{"$f":"'FR-16(7)(v)-1 Functional'!C547","v":"TOTAL ADMIN. & GENERAL"},null," ",{"$f":"SUM($F$532:F546)","v":5914117},{"$f":"SUM(G532:G546)","v":5842509},{"$f":"SUM(H532:H546)","v":35277},{"$f":"SUM(I532:I546)","v":165},{"$f":"SUM(J532:J546)","v":679},15,17594,11609,580,5514,152,{"$f":"SUM(Q532:Q546)","v":23},{"$f":"SUM(R532:R546)","v":5914117},{"$f":"SUM(S532:S546)","v":0}]
[34]
[35,null,{"$f":"'FR-16(7)(v)-1 Functional'!C549","v":"TOTAL O & M EXPENSE"},null,null,{"$f":"F547+F522+F518+F503+F492+F470+F466+F459","v":6535241},{"$f":"G547+G522+G518+G503+G492+G470+G466+G459","v":6122502},{"$f":"H547+H522+H518+H503+H492+H470+H466+H459","v":203378},{"$f":"I547+I522+I518+I503+I492+I470+I466+I459","v":972},{"$f":"J547+J522+J518+J503+J492+J470+J466+J459","v":3865},58,101408,67019,3257,31769,922,{"$f":"Q547+Q522+Q518+Q503+Q492+Q470+Q466+Q459","v":91},{"$f":"R547+R522+R518+R503+R492+R470+R466+R459","v":6535241},{"$f":"S547+S522+S518+S503+S492+S466+S459","v":0}]
[]
[{"$f":"co_name","v":"DUKE ENERGY KENTUCKY, INC."},null,null,null,null,null,null,null,null,null,null,null,null,null,null,null,null,{"$f":"R1","v":"FR-16(7)(v)-3"}]
[{"$f":"$A$2","v":"PRODUCTION DEMAND ALLOCATED - ELECTRIC COST OF SERVICE"},null,null,null,null,null,null,null,null,null,null,null,null,null,null,null,null,{"$f":"R2","v":"WITNESS RESPONSIBLE:"}]
[{"$f":"case_name","v":"CASE NO: 2019-00271"},null,null,null,null,null,null,null,null,null,null,null,null,null,null,null,null,{"$f":"Witness","v":"JAMES E. ZIOLKOWSKI"}]
[{"$f":"data_filing","v":"DATA: 12 MONTHS ACTUAL  & 0 MONTHS ESTIMATED"},null,null,null,null,null,null,null,null,null,null,null,null,null,null,null,null,{"$f":"\"PAGE \"&Pages-8&\" OF \"&Pages","v":"PAGE 10 OF 18"}]
[{"$f":"type","v":"TYPE OF FILING: \"X\" ORIGINAL   UPDATED    REVISED  "}]
[]
[null,null,null,null,null,{"$f":"F$7","v":"TOTAL"},null,{"$f":"H$7","v":"DS"},{"$f":"I$7","v":"GSFL"},{"$f":"J$7","v":"EH"},{"$f":"K$7","v":"SP"},"DT SEC","DT PRI","DP","TT",null,"OTHER"]
["LINE",null,null,null,null,{"$f":"F$8","v":"PRODUCTION"},{"$f":"G$8","v":"RS"},{"$f":"H$8","v":"SECONDARY"},{"$f":"I$8","v":"SECONDARY"},{"$f":"J$8","v":"SECONDARY"},{"$f":"K$8","v":"SECONDARY"},"SECONDARY","PRIMARY","PRIMARY","TRANSMISSION","LT","WATER",{"$f":"R8","v":"TOTAL"},"ALL"]
["NO.","DEPRECIATION EXPENSE",null,"ALLO",null,{"$f":"F$9","v":"DEMAND"},{"$f":"G$9","v":"RESIDENTIAL"},{"$f":"H$9","v":"DISTRIBUTION"},{"$f":"I$9","v":"DISTRIBUTION"},{"$f":"J$9","v":"DISTRIBUTION"},{"$f":"K$9","v":"DISTRIBUTION"},"DISTRIBUTION","DISTRIBUTION","DISTRIBUTION","TIME OF DAY","LIGHTING","PUMPING",{"$f":"R9","v":"AT ISSUE"},"OTHER"]
[null,null,"Schedule 7",null,null,null,{"$f":"G$10","v":3},{"$f":"H$10","v":4},{"$f":"I$10","v":5},{"$f":"J$10","v":6},{"$f":"K$10","v":7},8,9,10,11,12,13,null," "]
[1,"PRODUCTION DEPRECIATION"]
[2,null,{"$f":"'FR-16(7)(v)-1 Functional'!C562","v":"PRODUCTION DEPRECIATION"},{"$f":"'FR-16(7)(v)-1 Functional'!D562","v":"P229"},null,{"$f":"'FR-16(7)(v)-2 PROD Classified'!G562","v":37535245},{"$f":"F562-SUM(H562:Q562)","v":16920137},{"$f":"ROUND(F562*VLOOKUP(D562,ALLOCTABLE_Prod_Demand,$H$10,FALSE),0)","v":10158539},{"$f":"ROUND(F562*VLOOKUP(D562,ALLOCTABLE_Prod_Demand,$I$10,FALSE),0)","v":48796},{"$f":"ROUND(F562*VLOOKUP(D562,ALLOCTABLE_Prod_Demand,$J$10,FALSE),0)","v":192556},{"$f":"ROUND(F562*VLOOKUP(D562,ALLOCTABLE_Prod_Demand,$K$10,FALSE),0)","v":2627},{"$f":"ROUND(F562*VLOOKUP(D562,ALLOCTABLE_Prod_Demand,$L$10,FALSE),0)","v":5065006},{"$f":"ROUND(F562*VLOOKUP(D562,ALLOCTABLE_Prod_Demand,$M$10,FALSE),0)","v":3348519},{"$f":"ROUND(F562*VLOOKUP(D562,ALLOCTABLE_Prod_Demand,$N$10,FALSE),0)","v":161777},{"$f":"ROUND(F562*VLOOKUP(D562,ALLOCTABLE_Prod_Demand,$O$10,FALSE),0)","v":1586615},{"$f":"ROUND(F562*VLOOKUP(D562,ALLOCTABLE_Prod_Demand,$P$10,FALSE),0)","v":46544},{"$f":"ROUND(F562*VLOOKUP(D562,ALLOCTABLE_Prod_Demand,$Q$10,FALSE),0)","v":4129},{"$f":"SUM(G562:Q562)","v":37535245},{"$f":"F562-R562","v":0}]
[3,null,{"$f":"'FR-16(7)(v)-1 Functional'!C563","v":"  TOTAL PRODUCTION DEPREC EXP."},null,null,{"$f":"SUM($F$562:F562)","v":37535245},{"$f":"SUM(G562:G562)","v":16920137},{"$f":"SUM(H562:H562)","v":10158539},{"$f":"SUM(I562:I562)","v":48796},{"$f":"SUM(J562:J562)","v":192556},2627,5065006,3348519,161777,1586615,46544,{"$f":"SUM(Q562:Q562)","v":4129},{"$f":"SUM(R562:R562)","v":37535245},{"$f":"SUM(S562:S562)","v":0}]
[4]
[5,"TRANSMISSION DEPRECIATION"]
[6,null,"TRANSMISSION DEPRECIATION",{"$f":"'FR-16(7)(v)-1 Functional'!D566","v":"T229"},null,{"$f":"'FR-16(7)(v)-2 PROD Classified'!G566","v":0},{"$f":"F566-SUM(H566:Q566)","v":0},{"$f":"ROUND(F566*VLOOKUP(D566,ALLOCTABLE_Prod_Demand,$H$10,FALSE),0)","v":0},{"$f":"ROUND(F566*VLOOKUP(D566,ALLOCTABLE_Prod_Demand,$I$10,FALSE),0)","v":0},{"$f":"ROUND(F566*VLOOKUP(D566,ALLOCTABLE_Prod_Demand,$J$10,FALSE),0)","v":0},{"$f":"ROUND(F566*VLOOKUP(D566,ALLOCTABLE_Prod_Demand,$K$10,FALSE),0)","v":0},{"$f":"ROUND(F566*VLOOKUP(D566,ALLOCTABLE_Prod_Demand,$L$10,FALSE),0)","v":0},{"$f":"ROUND(F566*VLOOKUP(D566,ALLOCTABLE_Prod_Demand,$M$10,FALSE),0)","v":0},{"$f":"ROUND(F566*VLOOKUP(D566,ALLOCTABLE_Prod_Demand,$N$10,FALSE),0)","v":0},{"$f":"ROUND(F566*VLOOKUP(D566,ALLOCTABLE_Prod_Demand,$O$10,FALSE),0)","v":0},{"$f":"ROUND(F566*VLOOKUP(D566,ALLOCTABLE_Prod_Demand,$P$10,FALSE),0)","v":0},{"$f":"ROUND(F566*VLOOKUP(D566,ALLOCTABLE_Prod_Demand,$Q$10,FALSE),0)","v":0},{"$f":"SUM(G566:Q566)","v":0},{"$f":"F566-R566","v":0}]
[7,null,{"$f":"'FR-16(7)(v)-1 Functional'!C567","v":"  TOTAL TRANSMISSION DEP. EXP."},null,null,{"$f":"SUM($F$566:F566)","v":0},{"$f":"SUM(G566:G566)","v":0},{"$f":"SUM(H566:H566)","v":0},{"$f":"SUM(I566:I566)","v":0},{"$f":"SUM(J566:J566)","v":0},0,0,0,0,0,0,{"$f":"SUM(Q566:Q566)","v":0},{"$f":"SUM(R566:R566)","v":0},{"$f":"SUM(S566:S566)","v":0}]
[8]
[9,"DISTRIBUTION DEPRECIATION"]
[10,null,{"$f":"'FR-16(7)(v)-1 Functional'!C570","v":"DISTRIBUTION DEPRECIATION"},{"$f":"'FR-16(7)(v)-1 Functional'!D570","v":"D249"},null,{"$f":"'FR-16(7)(v)-2 PROD Classified'!G570","v":0},{"$f":"F570-SUM(H570:Q570)","v":0},{"$f":"ROUND(F570*VLOOKUP(D570,ALLOCTABLE_Prod_Demand,$H$10,FALSE),0)","v":0},{"$f":"ROUND(F570*VLOOKUP(D570,ALLOCTABLE_Prod_Demand,$I$10,FALSE),0)","v":0},{"$f":"ROUND(F570*VLOOKUP(D570,ALLOCTABLE_Prod_Demand,$J$10,FALSE),0)","v":0},{"$f":"ROUND(F570*VLOOKUP(D570,ALLOCTABLE_Prod_Demand,$K$10,FALSE),0)","v":0},{"$f":"ROUND(F570*VLOOKUP(D570,ALLOCTABLE_Prod_Demand,$L$10,FALSE),0)","v":0},{"$f":"ROUND(F570*VLOOKUP(D570,ALLOCTABLE_Prod_Demand,$M$10,FALSE),0)","v":0},{"$f":"ROUND(F570*VLOOKUP(D570,ALLOCTABLE_Prod_Demand,$N$10,FALSE),0)","v":0},{"$f":"ROUND(F570*VLOOKUP(D570,ALLOCTABLE_Prod_Demand,$O$10,FALSE),0)","v":0},{"$f":"ROUND(F570*VLOOKUP(D570,ALLOCTABLE_Prod_Demand,$P$10,FALSE),0)","v":0},{"$f":"ROUND(F570*VLOOKUP(D570,ALLOCTABLE_Prod_Demand,$Q$10,FALSE),0)","v":0},{"$f":"SUM(G570:Q570)","v":0},{"$f":"F570-R570","v":0}]
[11,null,{"$f":"'FR-16(7)(v)-1 Functional'!C571","v":"  TOTAL DIST. DEPREC EXP."},null,null,{"$f":"SUM($F$570:F570)","v":0},{"$f":"SUM(G570:G570)","v":0},{"$f":"SUM(H570:H570)","v":0},{"$f":"SUM(I570:I570)","v":0},{"$f":"SUM(J570:J570)","v":0},0,0,0,0,0,0,{"$f":"SUM(Q570:Q570)","v":0},{"$f":"SUM(R570:R570)","v":0},{"$f":"SUM(S570:S570)","v":0}]
[12,null,null,null,null," "]
[13,"GENERAL DEPRECIATION"]
[14,null,{"$f":"'FR-16(7)(v)-1 Functional'!C574","v":"GENERAL DEPRECIATION"},{"$f":"'FR-16(7)(v)-1 Functional'!D574","v":"G229"},null,{"$f":"'FR-16(7)(v)-2 PROD Classified'!G574","v":2436098},{"$f":"F574-SUM(H574:Q574)","v":1090666},{"$f":"ROUND(F574*VLOOKUP(D574,ALLOCTABLE_Prod_Demand,$H$10,FALSE),0)","v":662984},{"$f":"ROUND(F574*VLOOKUP(D574,ALLOCTABLE_Prod_Demand,$I$10,FALSE),0)","v":3191},{"$f":"ROUND(F574*VLOOKUP(D574,ALLOCTABLE_Prod_Demand,$J$10,FALSE),0)","v":12570},{"$f":"ROUND(F574*VLOOKUP(D574,ALLOCTABLE_Prod_Demand,$K$10,FALSE),0)","v":171},{"$f":"ROUND(F574*VLOOKUP(D574,ALLOCTABLE_Prod_Demand,$L$10,FALSE),0)","v":330554},{"$f":"ROUND(F574*VLOOKUP(D574,ALLOCTABLE_Prod_Demand,$M$10,FALSE),0)","v":218542},{"$f":"ROUND(F574*VLOOKUP(D574,ALLOCTABLE_Prod_Demand,$N$10,FALSE),0)","v":10548},{"$f":"ROUND(F574*VLOOKUP(D574,ALLOCTABLE_Prod_Demand,$O$10,FALSE),0)","v":103559},{"$f":"ROUND(F574*VLOOKUP(D574,ALLOCTABLE_Prod_Demand,$P$10,FALSE),0)","v":3045},{"$f":"ROUND(F574*VLOOKUP(D574,ALLOCTABLE_Prod_Demand,$Q$10,FALSE),0)","v":268},{"$f":"SUM(G574:Q574)","v":2436098},{"$f":"F574-R574","v":0}]
[15,null,{"$f":"'FR-16(7)(v)-1 Functional'!C575","v":"  TOTAL GENERAL DEPREC EXP."},null,null,{"$f":"SUM($F$574:F574)","v":2436098},{"$f":"SUM(G574:G574)","v":1090666},{"$f":"SUM(H574:H574)","v":662984},{"$f":"SUM(I574:I574)","v":3191},{"$f":"SUM(J574:J574)","v":12570},171,330554,218542,10548,103559,3045,{"$f":"SUM(Q574:Q574)","v":268},{"$f":"SUM(R574:R574)","v":2436098},{"$f":"SUM(S574:S574)","v":0}]
[16]
[17,"COMMON AND OTHER DEPRECIATION"]
[18,null,{"$f":"'FR-16(7)(v)-1 Functional'!C578","v":"COMMON DEPRECIATION"},{"$f":"'FR-16(7)(v)-1 Functional'!D578","v":"C229"},null,{"$f":"'FR-16(7)(v)-2 PROD Classified'!G578","v":16495},{"$f":"F578-SUM(H578:Q578)","v":7423},{"$f":"ROUND(F578*VLOOKUP(D578,ALLOCTABLE_Prod_Demand,$H$10,FALSE),0)","v":4471},{"$f":"ROUND(F578*VLOOKUP(D578,ALLOCTABLE_Prod_Demand,$I$10,FALSE),0)","v":21},{"$f":"ROUND(F578*VLOOKUP(D578,ALLOCTABLE_Prod_Demand,$J$10,FALSE),0)","v":85},{"$f":"ROUND(F578*VLOOKUP(D578,ALLOCTABLE_Prod_Demand,$K$10,FALSE),0)","v":1},{"$f":"ROUND(F578*VLOOKUP(D578,ALLOCTABLE_Prod_Demand,$L$10,FALSE),0)","v":2229},{"$f":"ROUND(F578*VLOOKUP(D578,ALLOCTABLE_Prod_Demand,$M$10,FALSE),0)","v":1474},{"$f":"ROUND(F578*VLOOKUP(D578,ALLOCTABLE_Prod_Demand,$N$10,FALSE),0)","v":71},{"$f":"ROUND(F578*VLOOKUP(D578,ALLOCTABLE_Prod_Demand,$O$10,FALSE),0)","v":698},{"$f":"ROUND(F578*VLOOKUP(D578,ALLOCTABLE_Prod_Demand,$P$10,FALSE),0)","v":20},{"$f":"ROUND(F578*VLOOKUP(D578,ALLOCTABLE_Prod_Demand,$Q$10,FALSE),0)","v":2},{"$f":"SUM(G578:Q578)","v":16495},{"$f":"F578-R578","v":0}]
[19,null,{"$f":"'FR-16(7)(v)-1 Functional'!C579","v":"  TOTAL COM & OTHER DEPREC EXP."},null,null,{"$f":"SUM($F$578:F578)","v":16495},{"$f":"SUM(G578:G578)","v":7423},{"$f":"SUM(H578:H578)","v":4471},{"$f":"SUM(I578:I578)","v":21},{"$f":"SUM(J578:J578)","v":85},1,2229,1474,71,698,20,{"$f":"SUM(Q578:Q578)","v":2},{"$f":"SUM(R578:R578)","v":16495},{"$f":"SUM(S578:S578)","v":0}]
[20]
[21]
[22,"TOTAL DEPRECIATION EXPENSE",null,null," ",{"$f":"F579+F575+F571+F567+F563","v":39987838},{"$f":"G579+G575+G571+G567+G563","v":18018226},{"$f":"H579+H575+H571+H567+H563","v":10825994},{"$f":"I579+I575+I571+I567+I563","v":52008},{"$f":"J579+J575+J571+J567+J563","v":205211},2799,5397789,3568535,172396,1690872,49609,{"$f":"Q579+Q575+Q571+Q567+Q563","v":4399},{"$f":"R579+R575+R571+R567+R563","v":39987838},{"$f":"S579+S575+S571+S567+S563","v":0}]
[]
[{"$f":"co_name","v":"DUKE ENERGY KENTUCKY, INC."},null,null,null,null,null,null,null,null,null,null,null,null,null,null,null,null,{"$f":"R1","v":"FR-16(7)(v)-3"}]
[{"$f":"$A$2","v":"PRODUCTION DEMAND ALLOCATED - ELECTRIC COST OF SERVICE"},null,null,null,null,null,null,null,null,null,null,null,null,null,null,null,null,{"$f":"R2","v":"WITNESS RESPONSIBLE:"}]
[{"$f":"case_name","v":"CASE NO: 2019-00271"},null,null,null,null,null,null,null,null,null,null,null,null,null,null,null,null,{"$f":"Witness","v":"JAMES E. ZIOLKOWSKI"}]
[{"$f":"data_filing","v":"DATA: 12 MONTHS ACTUAL  & 0 MONTHS ESTIMATED"},null,null,null,null,null,null,null,null,null,null,null,null,null,null,null,null,{"$f":"\"PAGE \"&Pages-7&\" OF \"&Pages","v":"PAGE 11 OF 18"}]
[{"$f":"type","v":"TYPE OF FILING: \"X\" ORIGINAL   UPDATED    REVISED  "}]
[]
[null,null,null,null,null,{"$f":"F$7","v":"TOTAL"},null,{"$f":"H$7","v":"DS"},{"$f":"I$7","v":"GSFL"},{"$f":"J$7","v":"EH"},{"$f":"K$7","v":"SP"},"DT SEC","DT PRI","DP","TT",null,"OTHER"]
["LINE",null,null,null,null,{"$f":"F$8","v":"PRODUCTION"},{"$f":"G$8","v":"RS"},{"$f":"H$8","v":"SECONDARY"},{"$f":"I$8","v":"SECONDARY"},{"$f":"J$8","v":"SECONDARY"},{"$f":"K$8","v":"SECONDARY"},"SECONDARY","PRIMARY","PRIMARY","TRANSMISSION","LT","WATER",{"$f":"R8","v":"TOTAL"},"ALL"]
["NO.","OTHER TAXES & MISC EXPENSES",null,"ALLO",null,{"$f":"F$9","v":"DEMAND"},{"$f":"G$9","v":"RESIDENTIAL"},{"$f":"H$9","v":"DISTRIBUTION"},{"$f":"I$9","v":"DISTRIBUTION"},{"$f":"J$9","v":"DISTRIBUTION"},{"$f":"K$9","v":"DISTRIBUTION"},"DISTRIBUTION","DISTRIBUTION","DISTRIBUTION","TIME OF DAY","LIGHTING","PUMPING",{"$f":"R9","v":"AT ISSUE"},"OTHER"]
[null,null,"Schedule 8",null,null,null,{"$f":"G$10","v":3},{"$f":"H$10","v":4},{"$f":"I$10","v":5},{"$f":"J$10","v":6},{"$f":"K$10","v":7},8,9,10,11,12,13,null," "]
[1,"TAXES OTHER THAN INC & REV"]
[2," REAL ESTATE & PROPERTY TAX"]
[3,null,{"$f":"'FR-16(7)(v)-1 Functional'!C596","v":"REAL ESTATE & PROPERTY TAX"},{"$f":"'FR-16(7)(v)-1 Functional'!D596","v":"NP29"},null,{"$f":"'FR-16(7)(v)-2 PROD Classified'!G596","v":7596667},{"$f":"F596-SUM(H596:Q596)","v":3423816},{"$f":"ROUND(F596*VLOOKUP(D596,ALLOCTABLE_Prod_Demand,$H$10,FALSE),0)","v":2056266},{"$f":"ROUND(F596*VLOOKUP(D596,ALLOCTABLE_Prod_Demand,$I$10,FALSE),0)","v":9876},{"$f":"ROUND(F596*VLOOKUP(D596,ALLOCTABLE_Prod_Demand,$J$10,FALSE),0)","v":38971},{"$f":"ROUND(F596*VLOOKUP(D596,ALLOCTABLE_Prod_Demand,$K$10,FALSE),0)","v":532},{"$f":"ROUND(F596*VLOOKUP(D596,ALLOCTABLE_Prod_Demand,$L$10,FALSE),0)","v":1025246},{"$f":"ROUND(F596*VLOOKUP(D596,ALLOCTABLE_Prod_Demand,$M$10,FALSE),0)","v":677775},{"$f":"ROUND(F596*VLOOKUP(D596,ALLOCTABLE_Prod_Demand,$N$10,FALSE),0)","v":32742},{"$f":"ROUND(F596*VLOOKUP(D596,ALLOCTABLE_Prod_Demand,$O$10,FALSE),0)","v":321187},{"$f":"ROUND(F596*VLOOKUP(D596,ALLOCTABLE_Prod_Demand,$P$10,FALSE),0)","v":9420},{"$f":"ROUND(F596*VLOOKUP(D596,ALLOCTABLE_Prod_Demand,$Q$10,FALSE),0)","v":836},{"$f":"SUM(G596:Q596)","v":7596667},{"$f":"F596-R596","v":0}]
[4,null,{"$f":"'FR-16(7)(v)-1 Functional'!C597","v":"ANNUALIZE PROPERTY TAX"},{"$f":"'FR-16(7)(v)-1 Functional'!D597","v":"NP29"}," ",{"$f":"'FR-16(7)(v)-2 PROD Classified'!G597","v":0},{"$f":"F597-SUM(H597:Q597)","v":0},{"$f":"ROUND(F597*VLOOKUP(D597,ALLOCTABLE_Prod_Demand,$H$10,FALSE),0)","v":0},{"$f":"ROUND(F597*VLOOKUP(D597,ALLOCTABLE_Prod_Demand,$I$10,FALSE),0)","v":0},{"$f":"ROUND(F597*VLOOKUP(D597,ALLOCTABLE_Prod_Demand,$J$10,FALSE),0)","v":0},{"$f":"ROUND(F597*VLOOKUP(D597,ALLOCTABLE_Prod_Demand,$K$10,FALSE),0)","v":0},{"$f":"ROUND(F597*VLOOKUP(D597,ALLOCTABLE_Prod_Demand,$L$10,FALSE),0)","v":0},{"$f":"ROUND(F597*VLOOKUP(D597,ALLOCTABLE_Prod_Demand,$M$10,FALSE),0)","v":0},{"$f":"ROUND(F597*VLOOKUP(D597,ALLOCTABLE_Prod_Demand,$N$10,FALSE),0)","v":0},{"$f":"ROUND(F597*VLOOKUP(D597,ALLOCTABLE_Prod_Demand,$O$10,FALSE),0)","v":0},{"$f":"ROUND(F597*VLOOKUP(D597,ALLOCTABLE_Prod_Demand,$P$10,FALSE),0)","v":0},{"$f":"ROUND(F597*VLOOKUP(D597,ALLOCTABLE_Prod_Demand,$Q$10,FALSE),0)","v":0},{"$f":"SUM(G597:Q597)","v":0},{"$f":"F597-R597","v":0}]
[5,null,{"$f":"'FR-16(7)(v)-1 Functional'!C598","v":"  TOTAL REAL ESTATE & PROPERTY TAX"},null,null,{"$f":"SUM($F$596:F597)","v":7596667},{"$f":"SUM(G596:G597)","v":3423816},{"$f":"SUM(H596:H597)","v":2056266},{"$f":"SUM(I596:I597)","v":9876},{"$f":"SUM(J596:J597)","v":38971},532,1025246,677775,32742,321187,9420,{"$f":"SUM($Q$596:$Q$597)","v":836},{"$f":"SUM(R596:R597)","v":7596667},{"$f":"SUM(S596:S597)","v":0}]
[6]
[7," MISCELLANEOUS TAXES"]
[8,null,{"$f":"'FR-16(7)(v)-1 Functional'!C601","v":"PAYROLL "},{"$f":"'FR-16(7)(v)-1 Functional'!D601","v":"A315"},null,{"$f":"'FR-16(7)(v)-2 PROD Classified'!G601","v":566827},{"$f":"F601-SUM(H601:Q601)","v":559975},{"$f":"ROUND(F601*VLOOKUP(D601,ALLOCTABLE_Prod_Demand,$H$10,FALSE),0)","v":3378},{"$f":"ROUND(F601*VLOOKUP(D601,ALLOCTABLE_Prod_Demand,$I$10,FALSE),0)","v":17},{"$f":"ROUND(F601*VLOOKUP(D601,ALLOCTABLE_Prod_Demand,$J$10,FALSE),0)","v":62},{"$f":"ROUND(F601*VLOOKUP(D601,ALLOCTABLE_Prod_Demand,$K$10,FALSE),0)","v":0},{"$f":"ROUND(F601*VLOOKUP(D601,ALLOCTABLE_Prod_Demand,$L$10,FALSE),0)","v":1683},{"$f":"ROUND(F601*VLOOKUP(D601,ALLOCTABLE_Prod_Demand,$M$10,FALSE),0)","v":1117},{"$f":"ROUND(F601*VLOOKUP(D601,ALLOCTABLE_Prod_Demand,$N$10,FALSE),0)","v":51},{"$f":"ROUND(F601*VLOOKUP(D601,ALLOCTABLE_Prod_Demand,$O$10,FALSE),0)","v":527},{"$f":"ROUND(F601*VLOOKUP(D601,ALLOCTABLE_Prod_Demand,$P$10,FALSE),0)","v":17},{"$f":"ROUND(F601*VLOOKUP(D601,ALLOCTABLE_Prod_Demand,$Q$10,FALSE),0)","v":0},{"$f":"SUM(G601:Q601)","v":566827},{"$f":"F601-R601","v":0}]
[9,null,{"$f":"'FR-16(7)(v)-1 Functional'!C602","v":"ELIMINATE DSM "},{"$f":"'FR-16(7)(v)-1 Functional'!D602","v":"A315"},null,{"$f":"'FR-16(7)(v)-2 PROD Classified'!G602","v":-11152},{"$f":"F602-SUM(H602:Q602)","v":-11019},{"$f":"ROUND(F602*VLOOKUP(D602,ALLOCTABLE_Prod_Demand,$H$10,FALSE),0)","v":-66},{"$f":"ROUND(F602*VLOOKUP(D602,ALLOCTABLE_Prod_Demand,$I$10,FALSE),0)","v":0},{"$f":"ROUND(F602*VLOOKUP(D602,ALLOCTABLE_Prod_Demand,$J$10,FALSE),0)","v":-1},{"$f":"ROUND(F602*VLOOKUP(D602,ALLOCTABLE_Prod_Demand,$K$10,FALSE),0)","v":0},{"$f":"ROUND(F602*VLOOKUP(D602,ALLOCTABLE_Prod_Demand,$L$10,FALSE),0)","v":-33},{"$f":"ROUND(F602*VLOOKUP(D602,ALLOCTABLE_Prod_Demand,$M$10,FALSE),0)","v":-22},{"$f":"ROUND(F602*VLOOKUP(D602,ALLOCTABLE_Prod_Demand,$N$10,FALSE),0)","v":-1},{"$f":"ROUND(F602*VLOOKUP(D602,ALLOCTABLE_Prod_Demand,$O$10,FALSE),0)","v":-10},{"$f":"ROUND(F602*VLOOKUP(D602,ALLOCTABLE_Prod_Demand,$P$10,FALSE),0)","v":0},{"$f":"ROUND(F602*VLOOKUP(D602,ALLOCTABLE_Prod_Demand,$Q$10,FALSE),0)","v":0},{"$f":"SUM(G602:Q602)","v":-11152},{"$f":"F602-R602","v":0}]
[10,null,{"$f":"'FR-16(7)(v)-1 Functional'!C603","v":"FRANCHISE & LICENSE"},{"$f":"'FR-16(7)(v)-1 Functional'!D603","v":"A315"},null,{"$f":"'FR-16(7)(v)-2 PROD Classified'!G603","v":0},{"$f":"F603-SUM(H603:Q603)","v":0},{"$f":"ROUND(F603*VLOOKUP(D603,ALLOCTABLE_Prod_Demand,$H$10,FALSE),0)","v":0},{"$f":"ROUND(F603*VLOOKUP(D603,ALLOCTABLE_Prod_Demand,$I$10,FALSE),0)","v":0},{"$f":"ROUND(F603*VLOOKUP(D603,ALLOCTABLE_Prod_Demand,$J$10,FALSE),0)","v":0},{"$f":"ROUND(F603*VLOOKUP(D603,ALLOCTABLE_Prod_Demand,$K$10,FALSE),0)","v":0},{"$f":"ROUND(F603*VLOOKUP(D603,ALLOCTABLE_Prod_Demand,$L$10,FALSE),0)","v":0},{"$f":"ROUND(F603*VLOOKUP(D603,ALLOCTABLE_Prod_Demand,$M$10,FALSE),0)","v":0},{"$f":"ROUND(F603*VLOOKUP(D603,ALLOCTABLE_Prod_Demand,$N$10,FALSE),0)","v":0},{"$f":"ROUND(F603*VLOOKUP(D603,ALLOCTABLE_Prod_Demand,$O$10,FALSE),0)","v":0},{"$f":"ROUND(F603*VLOOKUP(D603,ALLOCTABLE_Prod_Demand,$P$10,FALSE),0)","v":0},{"$f":"ROUND(F603*VLOOKUP(D603,ALLOCTABLE_Prod_Demand,$Q$10,FALSE),0)","v":0},{"$f":"SUM(G603:Q603)","v":0},{"$f":"F603-R603","v":0}]
[11,null,{"$f":"'FR-16(7)(v)-1 Functional'!C604","v":"ELIMINATE ESM"},{"$f":"'FR-16(7)(v)-1 Functional'!D604","v":"A315"},null,{"$f":"'FR-16(7)(v)-2 PROD Classified'!G604","v":-301526},{"$f":"F604-SUM(H604:Q604)","v":-297881},{"$f":"ROUND(F604*VLOOKUP(D604,ALLOCTABLE_Prod_Demand,$H$10,FALSE),0)","v":-1797},{"$f":"ROUND(F604*VLOOKUP(D604,ALLOCTABLE_Prod_Demand,$I$10,FALSE),0)","v":-9},{"$f":"ROUND(F604*VLOOKUP(D604,ALLOCTABLE_Prod_Demand,$J$10,FALSE),0)","v":-33},{"$f":"ROUND(F604*VLOOKUP(D604,ALLOCTABLE_Prod_Demand,$K$10,FALSE),0)","v":0},{"$f":"ROUND(F604*VLOOKUP(D604,ALLOCTABLE_Prod_Demand,$L$10,FALSE),0)","v":-896},{"$f":"ROUND(F604*VLOOKUP(D604,ALLOCTABLE_Prod_Demand,$M$10,FALSE),0)","v":-594},{"$f":"ROUND(F604*VLOOKUP(D604,ALLOCTABLE_Prod_Demand,$N$10,FALSE),0)","v":-27},{"$f":"ROUND(F604*VLOOKUP(D604,ALLOCTABLE_Prod_Demand,$O$10,FALSE),0)","v":-280},{"$f":"ROUND(F604*VLOOKUP(D604,ALLOCTABLE_Prod_Demand,$P$10,FALSE),0)","v":-9},{"$f":"ROUND(F604*VLOOKUP(D604,ALLOCTABLE_Prod_Demand,$Q$10,FALSE),0)","v":0},{"$f":"SUM(G604:Q604)","v":-301526},{"$f":"F604-R604","v":0}]
[12,null,{"$f":"'FR-16(7)(v)-1 Functional'!C605","v":"  TOTAL MISCELLANEOUS TAXES"},null,null,{"$f":"SUM($F$601:F604)","v":254149},{"$f":"SUM(G601:G604)","v":251075},{"$f":"SUM(H601:H604)","v":1515},{"$f":"SUM(I601:I604)","v":8},{"$f":"SUM(J601:J604)","v":28},0,754,501,23,237,8,{"$f":"SUM($Q$601:$Q$604)","v":0},{"$f":"SUM(R601:R604)","v":254149},{"$f":"SUM(S601:S604)","v":0}]
[13]
[14," MISCELLANEOUS EXPENSES"]
[15,null,{"$f":"'FR-16(7)(v)-1 Functional'!C608","v":"PSC MAINT. EXP ON INCREASE"},{"$f":"'FR-16(7)(v)-1 Functional'!D608","v":"K902"},null,{"$f":"'FR-16(7)(v)-2 PROD Classified'!G608","v":26879},{"$f":"F608-SUM(H608:Q608)","v":11143},{"$f":"ROUND(F608*VLOOKUP(D608,ALLOCTABLE_Prod_Demand,$H$10,FALSE),0)","v":7690},{"$f":"ROUND(F608*VLOOKUP(D608,ALLOCTABLE_Prod_Demand,$I$10,FALSE),0)","v":49},{"$f":"ROUND(F608*VLOOKUP(D608,ALLOCTABLE_Prod_Demand,$J$10,FALSE),0)","v":51},{"$f":"ROUND(F608*VLOOKUP(D608,ALLOCTABLE_Prod_Demand,$K$10,FALSE),0)","v":3},{"$f":"ROUND(F608*VLOOKUP(D608,ALLOCTABLE_Prod_Demand,$L$10,FALSE),0)","v":3975},{"$f":"ROUND(F608*VLOOKUP(D608,ALLOCTABLE_Prod_Demand,$M$10,FALSE),0)","v":2538},{"$f":"ROUND(F608*VLOOKUP(D608,ALLOCTABLE_Prod_Demand,$N$10,FALSE),0)","v":117},{"$f":"ROUND(F608*VLOOKUP(D608,ALLOCTABLE_Prod_Demand,$O$10,FALSE),0)","v":1153},{"$f":"ROUND(F608*VLOOKUP(D608,ALLOCTABLE_Prod_Demand,$P$10,FALSE),0)","v":159},{"$f":"ROUND(F608*VLOOKUP(D608,ALLOCTABLE_Prod_Demand,$Q$10,FALSE),0)","v":1},{"$f":"SUM(G608:Q608)","v":26879},{"$f":"F608-R608","v":0}]
[16,null,{"$f":"'FR-16(7)(v)-1 Functional'!C609","v":"RESERVED FOR FUTURE USE"},{"$f":"'FR-16(7)(v)-1 Functional'!D609","v":"K902"},null,{"$f":"'FR-16(7)(v)-2 PROD Classified'!G609","v":0},{"$f":"F609-SUM(H609:Q609)","v":0},{"$f":"ROUND(F609*VLOOKUP(D609,ALLOCTABLE_Prod_Demand,$H$10,FALSE),0)","v":0},{"$f":"ROUND(F609*VLOOKUP(D609,ALLOCTABLE_Prod_Demand,$I$10,FALSE),0)","v":0},{"$f":"ROUND(F609*VLOOKUP(D609,ALLOCTABLE_Prod_Demand,$J$10,FALSE),0)","v":0},{"$f":"ROUND(F609*VLOOKUP(D609,ALLOCTABLE_Prod_Demand,$K$10,FALSE),0)","v":0},{"$f":"ROUND(F609*VLOOKUP(D609,ALLOCTABLE_Prod_Demand,$L$10,FALSE),0)","v":0},{"$f":"ROUND(F609*VLOOKUP(D609,ALLOCTABLE_Prod_Demand,$M$10,FALSE),0)","v":0},{"$f":"ROUND(F609*VLOOKUP(D609,ALLOCTABLE_Prod_Demand,$N$10,FALSE),0)","v":0},{"$f":"ROUND(F609*VLOOKUP(D609,ALLOCTABLE_Prod_Demand,$O$10,FALSE),0)","v":0},{"$f":"ROUND(F609*VLOOKUP(D609,ALLOCTABLE_Prod_Demand,$P$10,FALSE),0)","v":0},{"$f":"ROUND(F609*VLOOKUP(D609,ALLOCTABLE_Prod_Demand,$Q$10,FALSE),0)","v":0},{"$f":"SUM(G609:Q609)","v":0},{"$f":"F609-R609","v":0}]
[17,null,{"$f":"'FR-16(7)(v)-1 Functional'!C610","v":"  TOTAL MISCELLANEOUS EXPENSES"},null,null,{"$f":"SUM($F$608:F609)","v":26879},{"$f":"SUM(G608:G609)","v":11143},{"$f":"SUM(H608:H609)","v":7690},{"$f":"SUM(I608:I609)","v":49},{"$f":"SUM(J608:J609)","v":51},3,3975,2538,117,1153,159,{"$f":"SUM($Q$608:$Q$609)","v":1},{"$f":"SUM(R608:R609)","v":26879},{"$f":"SUM(S608:S609)","v":0}]
[18]
[19,"TOTAL OTHER TAX & MISC EXPENSE",null,null," ",{"$f":"F605+F598+F610","v":7877695},{"$f":"G605+G598+G610","v":3686034},{"$f":"H605+H598+H610","v":2065471},{"$f":"I605+I598+I610","v":9933},{"$f":"J605+J598+J610","v":39050},535,1029975,680814,32882,322577,9587,{"$f":"$Q$605+$Q$598+$Q$610","v":837},{"$f":"R605+R598+R610","v":7877695},{"$f":"S605+S598+S610","v":0}]
[20]
[21,"PRELIMINARY SUMMARY"]
[22,null,{"$f":"'FR-16(7)(v)-1 Functional'!C615","v":"TOTAL O&M EXPENSE"},null,null,{"$f":"F549","v":6535241},{"$f":"G549","v":6122502},{"$f":"H549","v":203378},{"$f":"I549","v":972},{"$f":"J549","v":3865},58,101408,67019,3257,31769,922,{"$f":"Q549","v":91},{"$f":"R549","v":6535241},{"$f":"S549","v":0}]
[23,null,{"$f":"'FR-16(7)(v)-1 Functional'!C616","v":"TOTAL DEPRECIATION EXPENSE"},null,null,{"$f":"F582","v":39987838},{"$f":"G582","v":18018226},{"$f":"H582","v":10825994},{"$f":"I582","v":52008},{"$f":"J582","v":205211},2799,5397789,3568535,172396,1690872,49609,{"$f":"Q582","v":4399},{"$f":"R582","v":39987838},{"$f":"S582","v":0}]
[24,null,{"$f":"'FR-16(7)(v)-1 Functional'!C617","v":"TOTAL OTHER TAX & MISC EXPENSE"},null,null,{"$f":"F612","v":7877695},{"$f":"G612","v":3686034},{"$f":"H612","v":2065471},{"$f":"I612","v":9933},{"$f":"J612","v":39050},535,1029975,680814,32882,322577,9587,{"$f":"$Q$612","v":837},{"$f":"R612","v":7877695},{"$f":"S612","v":0}]
[25,null,{"$f":"'FR-16(7)(v)-1 Functional'!C618","v":"  TOTAL OPER EXP EXCL INCOME & REV TAX"},null,null,{"$f":"SUM($F$615:F617)","v":54400774},{"$f":"SUM(G615:G617)","v":27826762},{"$f":"SUM(H615:H617)","v":13094843},{"$f":"SUM(I615:I617)","v":62913},{"$f":"SUM(J615:J617)","v":248126},3392,6529172,4316368,208535,2045218,60118,{"$f":"SUM($Q$615:$Q$617)","v":5327},{"$f":"SUM(R615:R617)","v":54400774},{"$f":"SUM(S615:S617)","v":0}]
[]
[{"$f":"co_name","v":"DUKE ENERGY KENTUCKY, INC."},null,null,null,null,null,null,null,null,null,null,null,null,null,null,null,null,{"$f":"R1","v":"FR-16(7)(v)-3"}]
[{"$f":"$A$2","v":"PRODUCTION DEMAND ALLOCATED - ELECTRIC COST OF SERVICE"},null,null,null,null,null,null,null,null,null,null,null,null,null,null,null,null,{"$f":"R2","v":"WITNESS RESPONSIBLE:"}]
[{"$f":"case_name","v":"CASE NO: 2019-00271"},null,null,null,null,null,null,null,null,null,null,null,null,null,null,null,null,{"$f":"Witness","v":"JAMES E. ZIOLKOWSKI"}]
[{"$f":"data_filing","v":"DATA: 12 MONTHS ACTUAL  & 0 MONTHS ESTIMATED"},null,null,null,null,null,null,null,null,null,null,null,null,null,null,null,null,{"$f":"\"PAGE \"&Pages-6&\" OF \"&Pages","v":"PAGE 12 OF 18"}]
[{"$f":"type","v":"TYPE OF FILING: \"X\" ORIGINAL   UPDATED    REVISED  "}]
[]
[null,null,null,null,null,{"$f":"F$7","v":"TOTAL"},null,{"$f":"H$7","v":"DS"},{"$f":"I$7","v":"GSFL"},{"$f":"J$7","v":"EH"},{"$f":"K$7","v":"SP"},"DT SEC","DT PRI","DP","TT",null,"OTHER"]
["LINE",null,null,null,null,{"$f":"F$8","v":"PRODUCTION"},{"$f":"G$8","v":"RS"},{"$f":"H$8","v":"SECONDARY"},{"$f":"I$8","v":"SECONDARY"},{"$f":"J$8","v":"SECONDARY"},{"$f":"K$8","v":"SECONDARY"},"SECONDARY","PRIMARY","PRIMARY","TRANSMISSION","LT","WATER",{"$f":"R8","v":"TOTAL"},"ALL"]
["NO.","FEDERAL INCOME TAX BASED ON RETURN",null,"ALLO",null,{"$f":"F$9","v":"DEMAND"},{"$f":"G$9","v":"RESIDENTIAL"},{"$f":"H$9","v":"DISTRIBUTION"},{"$f":"I$9","v":"DISTRIBUTION"},{"$f":"J$9","v":"DISTRIBUTION"},{"$f":"K$9","v":"DISTRIBUTION"},"DISTRIBUTION","DISTRIBUTION","DISTRIBUTION","TIME OF DAY","LIGHTING","PUMPING",{"$f":"R9","v":"AT ISSUE"},"OTHER"]
[null,null,"Schedule 9",null,null,null,{"$f":"G$10","v":3},{"$f":"H$10","v":4},{"$f":"I$10","v":5},{"$f":"J$10","v":6},{"$f":"K$10","v":7},8,9,10,11,12,13,null," "]
[1,"FEDERAL INCOME TAX DEDUCTIONS"]
[2," AUTOMATIC INTEREST CALCULATION",null,null,null," "]
[3,null,{"$f":"'FR-16(7)(v)-1 Functional'!C632","v":"AUTO PROC INTEREST DED"},{"$f":"'FR-16(7)(v)-1 Functional'!D632","v":"RB99"},null,{"$f":"'FR-16(7)(v)-2 PROD Classified'!G632","v":10370923},{"$f":"F632-SUM(H632:Q632)","v":4702385},{"$f":"ROUND(F632*VLOOKUP(D632,ALLOCTABLE_Prod_Demand,$H$10,FALSE),0)","v":2793304},{"$f":"ROUND(F632*VLOOKUP(D632,ALLOCTABLE_Prod_Demand,$I$10,FALSE),0)","v":13378},{"$f":"ROUND(F632*VLOOKUP(D632,ALLOCTABLE_Prod_Demand,$J$10,FALSE),0)","v":52995},{"$f":"ROUND(F632*VLOOKUP(D632,ALLOCTABLE_Prod_Demand,$K$10,FALSE),0)","v":726},{"$f":"ROUND(F632*VLOOKUP(D632,ALLOCTABLE_Prod_Demand,$L$10,FALSE),0)","v":1392711},{"$f":"ROUND(F632*VLOOKUP(D632,ALLOCTABLE_Prod_Demand,$M$10,FALSE),0)","v":920731},{"$f":"ROUND(F632*VLOOKUP(D632,ALLOCTABLE_Prod_Demand,$N$10,FALSE),0)","v":44491},{"$f":"ROUND(F632*VLOOKUP(D632,ALLOCTABLE_Prod_Demand,$O$10,FALSE),0)","v":436305},{"$f":"ROUND(F632*VLOOKUP(D632,ALLOCTABLE_Prod_Demand,$P$10,FALSE),0)","v":12756},{"$f":"ROUND(F632*VLOOKUP(D632,ALLOCTABLE_Prod_Demand,$Q$10,FALSE),0)","v":1141},{"$f":"SUM(G632:Q632)","v":10370923},{"$f":"F632-R632","v":0}]
[4,null,{"$f":"'FR-16(7)(v)-1 Functional'!C633","v":"  TOTAL INTEREST EXPENSE"},null,null,{"$f":"F632","v":10370923},{"$f":"G632","v":4702385},{"$f":"H632","v":2793304},{"$f":"I632","v":13378},{"$f":"J632","v":52995},726,1392711,920731,44491,436305,12756,{"$f":"$Q$632","v":1141},{"$f":"R632","v":10370923},{"$f":"S632","v":0}]
[5]
[6," OTHER DEDUCTIONS"]
[7,null,{"$f":"'FR-16(7)(v)-1 Functional'!C636","v":"DEPREC EXCESS TAX-BOOK"},{"$f":"'FR-16(7)(v)-1 Functional'!D636","v":"DE49"},null,{"$f":"'FR-16(7)(v)-2 PROD Classified'!G636","v":-9484368},{"$f":"F636-SUM(H636:Q636)","v":-4273655},{"$f":"ROUND(F636*VLOOKUP(D636,ALLOCTABLE_Prod_Demand,$H$10,FALSE),0)","v":-2567703},{"$f":"ROUND(F636*VLOOKUP(D636,ALLOCTABLE_Prod_Demand,$I$10,FALSE),0)","v":-12330},{"$f":"ROUND(F636*VLOOKUP(D636,ALLOCTABLE_Prod_Demand,$J$10,FALSE),0)","v":-48655},{"$f":"ROUND(F636*VLOOKUP(D636,ALLOCTABLE_Prod_Demand,$K$10,FALSE),0)","v":-664},{"$f":"ROUND(F636*VLOOKUP(D636,ALLOCTABLE_Prod_Demand,$L$10,FALSE),0)","v":-1280295},{"$f":"ROUND(F636*VLOOKUP(D636,ALLOCTABLE_Prod_Demand,$M$10,FALSE),0)","v":-846385},{"$f":"ROUND(F636*VLOOKUP(D636,ALLOCTABLE_Prod_Demand,$N$10,FALSE),0)","v":-40878},{"$f":"ROUND(F636*VLOOKUP(D636,ALLOCTABLE_Prod_Demand,$O$10,FALSE),0)","v":-400999},{"$f":"ROUND(F636*VLOOKUP(D636,ALLOCTABLE_Prod_Demand,$P$10,FALSE),0)","v":-11761},{"$f":"ROUND(F636*VLOOKUP(D636,ALLOCTABLE_Prod_Demand,$Q$10,FALSE),0)","v":-1043},{"$f":"SUM(G636:Q636)","v":-9484368},{"$f":"F636-R636","v":0}]
[8,null,{"$f":"'FR-16(7)(v)-1 Functional'!C637","v":"PERMANENT DIFFERENCES"},{"$f":"'FR-16(7)(v)-1 Functional'!D637","v":"A357"},null,{"$f":"'FR-16(7)(v)-2 PROD Classified'!G637","v":-126845.99999999965},{"$f":"F637-SUM(H637:Q637)","v":-125310.99999999965},{"$f":"ROUND(F637*VLOOKUP(D637,ALLOCTABLE_Prod_Demand,$H$10,FALSE),0)","v":-756},{"$f":"ROUND(F637*VLOOKUP(D637,ALLOCTABLE_Prod_Demand,$I$10,FALSE),0)","v":-4},{"$f":"ROUND(F637*VLOOKUP(D637,ALLOCTABLE_Prod_Demand,$J$10,FALSE),0)","v":-14},{"$f":"ROUND(F637*VLOOKUP(D637,ALLOCTABLE_Prod_Demand,$K$10,FALSE),0)","v":0},{"$f":"ROUND(F637*VLOOKUP(D637,ALLOCTABLE_Prod_Demand,$L$10,FALSE),0)","v":-377},{"$f":"ROUND(F637*VLOOKUP(D637,ALLOCTABLE_Prod_Demand,$M$10,FALSE),0)","v":-249},{"$f":"ROUND(F637*VLOOKUP(D637,ALLOCTABLE_Prod_Demand,$N$10,FALSE),0)","v":-13},{"$f":"ROUND(F637*VLOOKUP(D637,ALLOCTABLE_Prod_Demand,$O$10,FALSE),0)","v":-118},{"$f":"ROUND(F637*VLOOKUP(D637,ALLOCTABLE_Prod_Demand,$P$10,FALSE),0)","v":-4},{"$f":"ROUND(F637*VLOOKUP(D637,ALLOCTABLE_Prod_Demand,$Q$10,FALSE),0)","v":0},{"$f":"SUM(G637:Q637)","v":-126845.99999999965},{"$f":"F637-R637","v":0}]
[9,null,{"$f":"'FR-16(7)(v)-1 Functional'!C638","v":"TEMPORARY DIFFERENCES"},{"$f":"'FR-16(7)(v)-1 Functional'!D638","v":"DE49"},null,{"$f":"'FR-16(7)(v)-2 PROD Classified'!G638","v":57872178},{"$f":"F638-SUM(H638:Q638)","v":26077203},{"$f":"ROUND(F638*VLOOKUP(D638,ALLOCTABLE_Prod_Demand,$H$10,FALSE),0)","v":15667735},{"$f":"ROUND(F638*VLOOKUP(D638,ALLOCTABLE_Prod_Demand,$I$10,FALSE),0)","v":75234},{"$f":"ROUND(F638*VLOOKUP(D638,ALLOCTABLE_Prod_Demand,$J$10,FALSE),0)","v":296884},{"$f":"ROUND(F638*VLOOKUP(D638,ALLOCTABLE_Prod_Demand,$K$10,FALSE),0)","v":4051},{"$f":"ROUND(F638*VLOOKUP(D638,ALLOCTABLE_Prod_Demand,$L$10,FALSE),0)","v":7812165},{"$f":"ROUND(F638*VLOOKUP(D638,ALLOCTABLE_Prod_Demand,$M$10,FALSE),0)","v":5164513},{"$f":"ROUND(F638*VLOOKUP(D638,ALLOCTABLE_Prod_Demand,$N$10,FALSE),0)","v":249429},{"$f":"ROUND(F638*VLOOKUP(D638,ALLOCTABLE_Prod_Demand,$O$10,FALSE),0)","v":2446836},{"$f":"ROUND(F638*VLOOKUP(D638,ALLOCTABLE_Prod_Demand,$P$10,FALSE),0)","v":71762},{"$f":"ROUND(F638*VLOOKUP(D638,ALLOCTABLE_Prod_Demand,$Q$10,FALSE),0)","v":6366},{"$f":"SUM(G638:Q638)","v":57872178},{"$f":"F638-R638","v":0}]
[10,null,{"$f":"'FR-16(7)(v)-1 Functional'!C639","v":"  TOTAL OTHER DEDUCTIONS"},null,null,{"$f":"SUM($F$636:F638)","v":48260964},{"$f":"SUM(G636:G638)","v":21678237},{"$f":"SUM(H636:H638)","v":13099276},{"$f":"SUM(I636:I638)","v":62900},{"$f":"SUM(J636:J638)","v":248215},3387,6531493,4317879,208538,2045719,59997,{"$f":"SUM($Q$636:$Q$638)","v":5323},{"$f":"SUM(R636:R638)","v":48260964},{"$f":"SUM(S636:S638)","v":0}]
[11]
[12,"NET DEDUCTIONS AND ADDITIONS",null,null,null,{"$f":"F639+F633","v":58631887},{"$f":"G639+G633","v":26380622},{"$f":"H639+H633","v":15892580},{"$f":"I639+I633","v":76278},{"$f":"J639+J633","v":301210},4113,7924204,5238610,253029,2482024,72753,{"$f":"$Q$639+$Q$633","v":6464},{"$f":"R639+R633","v":58631887},{"$f":"S639+S633","v":0}]
[13]
[14," FED DEFERRED INCOME TAX (410 & 411)"]
[15,null,{"$f":"'FR-16(7)(v)-1 Functional'!C644","v":"DEFERRED INCOME TAXES - NET"},{"$f":"'FR-16(7)(v)-1 Functional'!D644","v":"OM39"},null,{"$f":"'FR-16(7)(v)-2 PROD Classified'!G644","v":435025},{"$f":"F644-SUM(H644:Q644)","v":407549},{"$f":"ROUND(F644*VLOOKUP(D644,ALLOCTABLE_Prod_Demand,$H$10,FALSE),0)","v":13538},{"$f":"ROUND(F644*VLOOKUP(D644,ALLOCTABLE_Prod_Demand,$I$10,FALSE),0)","v":65},{"$f":"ROUND(F644*VLOOKUP(D644,ALLOCTABLE_Prod_Demand,$J$10,FALSE),0)","v":257},{"$f":"ROUND(F644*VLOOKUP(D644,ALLOCTABLE_Prod_Demand,$K$10,FALSE),0)","v":4},{"$f":"ROUND(F644*VLOOKUP(D644,ALLOCTABLE_Prod_Demand,$L$10,FALSE),0)","v":6752},{"$f":"ROUND(F644*VLOOKUP(D644,ALLOCTABLE_Prod_Demand,$M$10,FALSE),0)","v":4463},{"$f":"ROUND(F644*VLOOKUP(D644,ALLOCTABLE_Prod_Demand,$N$10,FALSE),0)","v":218},{"$f":"ROUND(F644*VLOOKUP(D644,ALLOCTABLE_Prod_Demand,$O$10,FALSE),0)","v":2114},{"$f":"ROUND(F644*VLOOKUP(D644,ALLOCTABLE_Prod_Demand,$P$10,FALSE),0)","v":61},{"$f":"ROUND(F644*VLOOKUP(D644,ALLOCTABLE_Prod_Demand,$Q$10,FALSE),0)","v":4},{"$f":"SUM(G644:Q644)","v":435025},{"$f":"F644-R644","v":0}]
[16,null,{"$f":"'FR-16(7)(v)-1 Functional'!C645","v":"AMORT OF DEFERRED MERGER COST"},{"$f":"'FR-16(7)(v)-1 Functional'!D645","v":"A357"},null,{"$f":"'FR-16(7)(v)-2 PROD Classified'!G645","v":0},{"$f":"F645-SUM(H645:Q645)","v":0},{"$f":"ROUND(F645*VLOOKUP(D645,ALLOCTABLE_Prod_Demand,$H$10,FALSE),0)","v":0},{"$f":"ROUND(F645*VLOOKUP(D645,ALLOCTABLE_Prod_Demand,$I$10,FALSE),0)","v":0},{"$f":"ROUND(F645*VLOOKUP(D645,ALLOCTABLE_Prod_Demand,$J$10,FALSE),0)","v":0},{"$f":"ROUND(F645*VLOOKUP(D645,ALLOCTABLE_Prod_Demand,$K$10,FALSE),0)","v":0},{"$f":"ROUND(F645*VLOOKUP(D645,ALLOCTABLE_Prod_Demand,$L$10,FALSE),0)","v":0},{"$f":"ROUND(F645*VLOOKUP(D645,ALLOCTABLE_Prod_Demand,$M$10,FALSE),0)","v":0},{"$f":"ROUND(F645*VLOOKUP(D645,ALLOCTABLE_Prod_Demand,$N$10,FALSE),0)","v":0},{"$f":"ROUND(F645*VLOOKUP(D645,ALLOCTABLE_Prod_Demand,$O$10,FALSE),0)","v":0},{"$f":"ROUND(F645*VLOOKUP(D645,ALLOCTABLE_Prod_Demand,$P$10,FALSE),0)","v":0},{"$f":"ROUND(F645*VLOOKUP(D645,ALLOCTABLE_Prod_Demand,$Q$10,FALSE),0)","v":0},{"$f":"SUM(G645:Q645)","v":0},{"$f":"F645-R645","v":0}]
[17,null,{"$f":"'FR-16(7)(v)-1 Functional'!C646","v":"DIT ADJUSTMENT - S/L DEPRECIATION"},{"$f":"'FR-16(7)(v)-1 Functional'!D646","v":"DE49"},null,{"$f":"'FR-16(7)(v)-2 PROD Classified'!G646","v":0},{"$f":"F646-SUM(H646:Q646)","v":0},{"$f":"ROUND(F646*VLOOKUP(D646,ALLOCTABLE_Prod_Demand,$H$10,FALSE),0)","v":0},{"$f":"ROUND(F646*VLOOKUP(D646,ALLOCTABLE_Prod_Demand,$I$10,FALSE),0)","v":0},{"$f":"ROUND(F646*VLOOKUP(D646,ALLOCTABLE_Prod_Demand,$J$10,FALSE),0)","v":0},{"$f":"ROUND(F646*VLOOKUP(D646,ALLOCTABLE_Prod_Demand,$K$10,FALSE),0)","v":0},{"$f":"ROUND(F646*VLOOKUP(D646,ALLOCTABLE_Prod_Demand,$L$10,FALSE),0)","v":0},{"$f":"ROUND(F646*VLOOKUP(D646,ALLOCTABLE_Prod_Demand,$M$10,FALSE),0)","v":0},{"$f":"ROUND(F646*VLOOKUP(D646,ALLOCTABLE_Prod_Demand,$N$10,FALSE),0)","v":0},{"$f":"ROUND(F646*VLOOKUP(D646,ALLOCTABLE_Prod_Demand,$O$10,FALSE),0)","v":0},{"$f":"ROUND(F646*VLOOKUP(D646,ALLOCTABLE_Prod_Demand,$P$10,FALSE),0)","v":0},{"$f":"ROUND(F646*VLOOKUP(D646,ALLOCTABLE_Prod_Demand,$Q$10,FALSE),0)","v":0},{"$f":"SUM(G646:Q646)","v":0},{"$f":"F646-R646","v":0}]
[18,null,{"$f":"'FR-16(7)(v)-1 Functional'!C647","v":"DIT ADJUSTMENT - ARAM"},{"$f":"'FR-16(7)(v)-1 Functional'!D647","v":"K201"},null,{"$f":"'FR-16(7)(v)-2 PROD Classified'!G647","v":-107523},{"$f":"F647-SUM(H647:Q647)","v":-48469},{"$f":"ROUND(F647*VLOOKUP(D647,ALLOCTABLE_Prod_Demand,$H$10,FALSE),0)","v":-29100},{"$f":"ROUND(F647*VLOOKUP(D647,ALLOCTABLE_Prod_Demand,$I$10,FALSE),0)","v":-140},{"$f":"ROUND(F647*VLOOKUP(D647,ALLOCTABLE_Prod_Demand,$J$10,FALSE),0)","v":-552},{"$f":"ROUND(F647*VLOOKUP(D647,ALLOCTABLE_Prod_Demand,$K$10,FALSE),0)","v":-8},{"$f":"ROUND(F647*VLOOKUP(D647,ALLOCTABLE_Prod_Demand,$L$10,FALSE),0)","v":-14509},{"$f":"ROUND(F647*VLOOKUP(D647,ALLOCTABLE_Prod_Demand,$M$10,FALSE),0)","v":-9592},{"$f":"ROUND(F647*VLOOKUP(D647,ALLOCTABLE_Prod_Demand,$N$10,FALSE),0)","v":-463},{"$f":"ROUND(F647*VLOOKUP(D647,ALLOCTABLE_Prod_Demand,$O$10,FALSE),0)","v":-4545},{"$f":"ROUND(F647*VLOOKUP(D647,ALLOCTABLE_Prod_Demand,$P$10,FALSE),0)","v":-133},{"$f":"ROUND(F647*VLOOKUP(D647,ALLOCTABLE_Prod_Demand,$Q$10,FALSE),0)","v":-12},{"$f":"SUM(G647:Q647)","v":-107523},{"$f":"F647-R647","v":0}]
[19,null,{"$f":"'FR-16(7)(v)-1 Functional'!C648","v":"DIT ADJUSTMENT - AMORT OF EXCESS DEF TAXES"},{"$f":"'FR-16(7)(v)-1 Functional'!D648","v":"A357"},null,{"$f":"'FR-16(7)(v)-2 PROD Classified'!G648","v":-1112334},{"$f":"F648-SUM(H648:Q648)","v":-1098887},{"$f":"ROUND(F648*VLOOKUP(D648,ALLOCTABLE_Prod_Demand,$H$10,FALSE),0)","v":-6630},{"$f":"ROUND(F648*VLOOKUP(D648,ALLOCTABLE_Prod_Demand,$I$10,FALSE),0)","v":-33},{"$f":"ROUND(F648*VLOOKUP(D648,ALLOCTABLE_Prod_Demand,$J$10,FALSE),0)","v":-122},{"$f":"ROUND(F648*VLOOKUP(D648,ALLOCTABLE_Prod_Demand,$K$10,FALSE),0)","v":0},{"$f":"ROUND(F648*VLOOKUP(D648,ALLOCTABLE_Prod_Demand,$L$10,FALSE),0)","v":-3304},{"$f":"ROUND(F648*VLOOKUP(D648,ALLOCTABLE_Prod_Demand,$M$10,FALSE),0)","v":-2180},{"$f":"ROUND(F648*VLOOKUP(D648,ALLOCTABLE_Prod_Demand,$N$10,FALSE),0)","v":-111},{"$f":"ROUND(F648*VLOOKUP(D648,ALLOCTABLE_Prod_Demand,$O$10,FALSE),0)","v":-1034},{"$f":"ROUND(F648*VLOOKUP(D648,ALLOCTABLE_Prod_Demand,$P$10,FALSE),0)","v":-33},{"$f":"ROUND(F648*VLOOKUP(D648,ALLOCTABLE_Prod_Demand,$Q$10,FALSE),0)","v":0},{"$f":"SUM(G648:Q648)","v":-1112334},{"$f":"F648-R648","v":0}]
[20,null,{"$f":"'FR-16(7)(v)-1 Functional'!C649","v":"  TOTAL FED DEF IT (410 & 411)"},null,null,{"$f":"SUM($F$644:F648)","v":-784832},{"$f":"SUM(G644:G648)","v":-739807},{"$f":"SUM(H644:H648)","v":-22192},{"$f":"SUM(I644:I648)","v":-108},{"$f":"SUM(J644:J648)","v":-417},-4,-11061,-7309,-356,-3465,-105,{"$f":"SUM($Q$644:$Q$648)","v":-8},{"$f":"SUM(R644:R648)","v":-784832},{"$f":"SUM(S644:S648)","v":0}]
[21]
[22," AMORT INV TAX CREDIT"]
[23,null,{"$f":"'FR-16(7)(v)-1 Functional'!C652","v":"AMORTIZE ITC"},{"$f":"'FR-16(7)(v)-1 Functional'!D652","v":"NP29"},null,{"$f":"'FR-16(7)(v)-2 PROD Classified'!G652","v":238},{"$f":"F652-SUM(H652:Q652)","v":109},{"$f":"ROUND(F652*VLOOKUP(D652,ALLOCTABLE_Prod_Demand,$H$10,FALSE),0)","v":64},{"$f":"ROUND(F652*VLOOKUP(D652,ALLOCTABLE_Prod_Demand,$I$10,FALSE),0)","v":0},{"$f":"ROUND(F652*VLOOKUP(D652,ALLOCTABLE_Prod_Demand,$J$10,FALSE),0)","v":1},{"$f":"ROUND(F652*VLOOKUP(D652,ALLOCTABLE_Prod_Demand,$K$10,FALSE),0)","v":0},{"$f":"ROUND(F652*VLOOKUP(D652,ALLOCTABLE_Prod_Demand,$L$10,FALSE),0)","v":32},{"$f":"ROUND(F652*VLOOKUP(D652,ALLOCTABLE_Prod_Demand,$M$10,FALSE),0)","v":21},{"$f":"ROUND(F652*VLOOKUP(D652,ALLOCTABLE_Prod_Demand,$N$10,FALSE),0)","v":1},{"$f":"ROUND(F652*VLOOKUP(D652,ALLOCTABLE_Prod_Demand,$O$10,FALSE),0)","v":10},{"$f":"ROUND(F652*VLOOKUP(D652,ALLOCTABLE_Prod_Demand,$P$10,FALSE),0)","v":0},{"$f":"ROUND(F652*VLOOKUP(D652,ALLOCTABLE_Prod_Demand,$Q$10,FALSE),0)","v":0},{"$f":"SUM(G652:Q652)","v":238},{"$f":"F652-R652","v":0}]
[24,null,{"$f":"'FR-16(7)(v)-1 Functional'!C653","v":"  TOTAL AMORTIZED ITC"},null,null,{"$f":"SUM($F$652:F652)","v":238},{"$f":"SUM(G652:G652)","v":109},{"$f":"SUM(H652:H652)","v":64},{"$f":"SUM(I652:I652)","v":0},{"$f":"SUM(J652:J652)","v":1},0,32,21,1,10,0,{"$f":"SUM($Q$652:$Q$652)","v":0},{"$f":"SUM(R652:R652)","v":238},{"$f":"SUM(S652:S652)","v":0}]
[25]
[26," OTHER FEDERAL TAX CREDITS"]
[27,null,{"$f":"'FR-16(7)(v)-1 Functional'!C656","v":"FUEL TAX CREDIT"},{"$f":"'FR-16(7)(v)-1 Functional'!D656","v":"K301"},null,{"$f":"'FR-16(7)(v)-2 PROD Classified'!G656","v":0},{"$f":"F656-SUM(H656:Q656)","v":0},{"$f":"ROUND(F656*VLOOKUP(D656,ALLOCTABLE_Prod_Demand,$H$10,FALSE),0)","v":0},{"$f":"ROUND(F656*VLOOKUP(D656,ALLOCTABLE_Prod_Demand,$I$10,FALSE),0)","v":0},{"$f":"ROUND(F656*VLOOKUP(D656,ALLOCTABLE_Prod_Demand,$J$10,FALSE),0)","v":0},{"$f":"ROUND(F656*VLOOKUP(D656,ALLOCTABLE_Prod_Demand,$K$10,FALSE),0)","v":0},{"$f":"ROUND(F656*VLOOKUP(D656,ALLOCTABLE_Prod_Demand,$L$10,FALSE),0)","v":0},{"$f":"ROUND(F656*VLOOKUP(D656,ALLOCTABLE_Prod_Demand,$M$10,FALSE),0)","v":0},{"$f":"ROUND(F656*VLOOKUP(D656,ALLOCTABLE_Prod_Demand,$N$10,FALSE),0)","v":0},{"$f":"ROUND(F656*VLOOKUP(D656,ALLOCTABLE_Prod_Demand,$O$10,FALSE),0)","v":0},{"$f":"ROUND(F656*VLOOKUP(D656,ALLOCTABLE_Prod_Demand,$P$10,FALSE),0)","v":0},{"$f":"ROUND(F656*VLOOKUP(D656,ALLOCTABLE_Prod_Demand,$Q$10,FALSE),0)","v":0},{"$f":"SUM(G656:Q656)","v":0},{"$f":"F656-R656","v":0}]
[28,null,{"$f":"'FR-16(7)(v)-1 Functional'!C657","v":"R&D CREDIT - SECTION 41"},{"$f":"'FR-16(7)(v)-1 Functional'!D657","v":"A315"},null,{"$f":"'FR-16(7)(v)-2 PROD Classified'!G657","v":0},{"$f":"F657-SUM(H657:Q657)","v":0},{"$f":"ROUND(F657*VLOOKUP(D657,ALLOCTABLE_Prod_Demand,$H$10,FALSE),0)","v":0},{"$f":"ROUND(F657*VLOOKUP(D657,ALLOCTABLE_Prod_Demand,$I$10,FALSE),0)","v":0},{"$f":"ROUND(F657*VLOOKUP(D657,ALLOCTABLE_Prod_Demand,$J$10,FALSE),0)","v":0},{"$f":"ROUND(F657*VLOOKUP(D657,ALLOCTABLE_Prod_Demand,$K$10,FALSE),0)","v":0},{"$f":"ROUND(F657*VLOOKUP(D657,ALLOCTABLE_Prod_Demand,$L$10,FALSE),0)","v":0},{"$f":"ROUND(F657*VLOOKUP(D657,ALLOCTABLE_Prod_Demand,$M$10,FALSE),0)","v":0},{"$f":"ROUND(F657*VLOOKUP(D657,ALLOCTABLE_Prod_Demand,$N$10,FALSE),0)","v":0},{"$f":"ROUND(F657*VLOOKUP(D657,ALLOCTABLE_Prod_Demand,$O$10,FALSE),0)","v":0},{"$f":"ROUND(F657*VLOOKUP(D657,ALLOCTABLE_Prod_Demand,$P$10,FALSE),0)","v":0},{"$f":"ROUND(F657*VLOOKUP(D657,ALLOCTABLE_Prod_Demand,$Q$10,FALSE),0)","v":0},{"$f":"SUM(G657:Q657)","v":0},{"$f":"F657-R657","v":0}]
[29,null,"  TOTAL OTHER FEDERAL TAX CREDITS",null,null,{"$f":"SUM($F$656:F657)","v":0},{"$f":"SUM(G656:G657)","v":0},{"$f":"SUM(H656:H657)","v":0},{"$f":"SUM(I656:I657)","v":0},{"$f":"SUM(J656:J657)","v":0},0,0,0,0,0,0,{"$f":"SUM($Q$656:$Q$657)","v":0},{"$f":"SUM(R656:R657)","v":0},{"$f":"SUM(S656:S657)","v":0}]
[30]
[31,"PRELIMINARY SUMMARY"]
[32,null,{"$f":"'FR-16(7)(v)-1 Functional'!C661","v":"TOTAL FED DEF IT (410 & 411)"},null,null,{"$f":"F649","v":-784832},{"$f":"G649","v":-739807},{"$f":"H649","v":-22192},{"$f":"I649","v":-108},{"$f":"J649","v":-417},-4,-11061,-7309,-356,-3465,-105,{"$f":"$Q$649","v":-8},{"$f":"R649","v":-784832},{"$f":"S649","v":0}]
[33,null,{"$f":"'FR-16(7)(v)-1 Functional'!C662","v":"TOTAL AMORTIZED ITC & OTHER FEDERAL TAX CREDITS"},null,null,{"$f":"-F653-F658","v":-238},{"$f":"-G653-G658","v":-109},-64,0,{"$f":"-J653-J658","v":-1},0,-32,-21,-1,-10,0,0,-238,0]
[34,null,{"$f":"'FR-16(7)(v)-1 Functional'!C663","v":"  TOTAL FEDERAL TAX ADJUSTMENTS"},null,null,{"$f":"SUM($F$661:F662)","v":-785070},{"$f":"SUM(G661:G662)","v":-739916},{"$f":"SUM(H661:H662)","v":-22256},{"$f":"SUM(I661:I662)","v":-108},{"$f":"SUM(J661:J662)","v":-418},-4,-11093,-7330,-357,-3475,-105,{"$f":"SUM($Q$661:$Q$662)","v":-8},{"$f":"SUM(R661:R662)","v":-785070},{"$f":"SUM(S661:S662)","v":0}]
[35]
[36,"FEDERAL INCOME TAX COMPUTATION"]
[37,null,"RETURN ON RATE BASE",null,null,{"$f":"F433","v":35083922},{"$f":"G433","v":15907752},{"$f":"H433","v":9449503},{"$f":"I433","v":45258},{"$f":"J433","v":179279},2456,4711420,3114751,150510,1475981,43153,{"$f":"Q433","v":3859},{"$f":"R433","v":35083922},{"$f":"F666-R666","v":0}]
[38,null,{"$f":"'FR-16(7)(v)-1 Functional'!C667","v":"NET DEDUCTIONS AND ADDITIONS"},null,null,{"$f":"-F641","v":-58631887},{"$f":"-G641","v":-26380622},{"$f":"-H641","v":-15892580},{"$f":"-I641","v":-76278},{"$f":"-J641","v":-301210},-4113,-7924204,-5238610,-253029,-2482024,-72753,{"$f":"-$Q$641","v":-6464},{"$f":"-R641","v":-58631887},{"$f":"F667-R667","v":0}]
[39,null,{"$f":"'FR-16(7)(v)-1 Functional'!C668","v":"TOTAL FEDERAL TAX ADJUSTMENTS"},null,null,{"$f":"F663","v":-785070},{"$f":"G663","v":-739916},{"$f":"H663","v":-22256},{"$f":"I663","v":-108},{"$f":"J663","v":-418},-4,-11093,-7330,-357,-3475,-105,{"$f":"$Q$663","v":-8},{"$f":"R663","v":-785070},{"$f":"F668-R668","v":0}]
[40,null,"TOTAL STATE PROV DEF IT (410 & 411)",null,null,{"$f":"F707","v":1103806},{"$f":"G707","v":1090462},{"$f":"H707","v":6579},{"$f":"I707","v":33},{"$f":"J707","v":121},0,3278,2163,110,1027,33,{"$f":"Q707","v":0},{"$f":"R707","v":1103806},{"$f":"F669-R669","v":0}]
[41,null,"RESERVED",null,null,{"$f":"F24","v":0},{"$f":"G24","v":0},{"$f":"H24","v":0},{"$f":"I24","v":0},{"$f":"J24","v":0},0,0,0,0,0,0,{"$f":"Q24","v":0},{"$f":"R24","v":0},{"$f":"F670-R670","v":0}]
[42,null,{"$f":"'FR-16(7)(v)-1 Functional'!C671","v":"  BASE FOR FIT COMPUATION"},null,null,{"$f":"SUM($F$666:F670)","v":-23229229},{"$f":"SUM(G666:G670)","v":-10122324},{"$f":"SUM(H666:H670)","v":-6458754},{"$f":"SUM(I666:I670)","v":-31095},{"$f":"SUM(J666:J670)","v":-122228},-1661,-3220599,-2129026,-102766,-1008491,-29672,{"$f":"SUM($Q$666:$Q$670)","v":-2613},{"$f":"SUM(R666:R670)","v":-23229229},{"$f":"SUM(S666:S670)","v":0}]
[43]
[44,null,{"$f":"'FR-16(7)(v)-1 Functional'!C673","v":"FIT FACTOR K190/(1-K190)"},null,null,{"$f":"ROUND(FIT/(1-FIT),9)","v":0.26582278500000001},0.26582278500000001,0.26582278500000001,0.26582278500000001,0.26582278500000001,0.26582278500000001,0.26582278500000001,0.26582278500000001,0.26582278500000001,0.26582278500000001,0.26582278500000001,0.26582278500000001,null,{"$f":"ROUND(R815/(1-R815),9)","v":0.26582278500000001}]
[45,null,{"$f":"'FR-16(7)(v)-1 Functional'!C674","v":"PRELIM FED INCOME TAX"},null,null,{"$f":"ROUND(F673*F671,0)","v":-6174858},{"$f":"F674-SUM(H674:Q674)","v":-2690742},{"$f":"ROUND(H671*H673,0)","v":-1716884},{"$f":"ROUND(I671*I673,0)","v":-8266},{"$f":"ROUND(J671*J673,0)","v":-32491},-442,-856109,-565944,-27318,-268080,-7887,{"$f":"ROUND($Q$671*$Q$673,0)","v":-695},{"$f":"SUM(G674:Q674)","v":-6174858},{"$f":"F674-R674","v":0}]
[46,null,{"$f":"'FR-16(7)(v)-1 Functional'!C675","v":"TOTAL FEDERAL TAX ADJUSTMENTS"},null,null,{"$f":"F663","v":-785070},{"$f":"G663","v":-739916},{"$f":"H663","v":-22256},{"$f":"I663","v":-108},{"$f":"J663","v":-418},-4,-11093,-7330,-357,-3475,-105,{"$f":"$Q$663","v":-8},{"$f":"R663","v":-785070},{"$f":"F675-R675","v":0}]
[47,null,{"$f":"'FR-16(7)(v)-1 Functional'!C676","v":"  NET FED INCOME TAX ALLOWABLE"},null,null,{"$f":"SUM(F674:F675)","v":-6959928},{"$f":"SUM(G674:G675)","v":-3430658},{"$f":"SUM(H674:H675)","v":-1739140},{"$f":"SUM(I674:I675)","v":-8374},{"$f":"SUM(J674:J675)","v":-32909},-446,-867202,-573274,-27675,-271555,-7992,{"$f":"SUM($Q$674:$Q$675)","v":-703},{"$f":"SUM(R674:R675)","v":-6959928},{"$f":"SUM(S674:S675)","v":0}]
[48]
[49,"INCOME TAX BASED ON RETURN"]
[50,"FEDERAL INCOME TAX PAYABLE"]
[51,null,{"$f":"'FR-16(7)(v)-1 Functional'!C680","v":"PRELIM FEDERAL INCOME TAX"},null,null,{"$f":"F674","v":-6174858},{"$f":"G674","v":-2690742},{"$f":"H674","v":-1716884},{"$f":"I674","v":-8266},{"$f":"J674","v":-32491},-442,-856109,-565944,-27318,-268080,-7887,{"$f":"$Q$674","v":-695},{"$f":"R674","v":-6174858},{"$f":"S674","v":0}]
[53,null,{"$f":"'FR-16(7)(v)-1 Functional'!C681","v":"  NET FED INCOME TAX PAYABLE"},null,null,{"$f":"SUM(F680:F680)","v":-6174858},{"$f":"SUM(G680:G680)","v":-2690742},{"$f":"SUM(H680:H680)","v":-1716884},{"$f":"SUM(I680:I680)","v":-8266},{"$f":"SUM(J680:J680)","v":-32491},-442,-856109,-565944,-27318,-268080,-7887,{"$f":"SUM($Q$680:$Q$680)","v":-695},{"$f":"SUM(R680:R680)","v":-6174858},{"$f":"SUM(S680:S680)","v":0}]
[]
[{"$f":"co_name","v":"DUKE ENERGY KENTUCKY, INC."},null,null,null,null,null,null,null,null,null,null,null,null,null,null,null,null,{"$f":"R1","v":"FR-16(7)(v)-3"}]
[{"$f":"$A$2","v":"PRODUCTION DEMAND ALLOCATED - ELECTRIC COST OF SERVICE"},null,null,null,null,null,null,null,null,null,null,null,null,null,null,null,null,{"$f":"R2","v":"WITNESS RESPONSIBLE:"}]
[{"$f":"case_name","v":"CASE NO: 2019-00271"},null,null,null,null,null,null,null,null,null,null,null,null,null,null,null,null,{"$f":"Witness","v":"JAMES E. ZIOLKOWSKI"}]
[{"$f":"data_filing","v":"DATA: 12 MONTHS ACTUAL  & 0 MONTHS ESTIMATED"},null,null,null,null,null,null,null,null,null,null,null,null,null,null,null,null,{"$f":"\"PAGE \"&Pages-5&\" OF \"&Pages","v":"PAGE 13 OF 18"}]
[{"$f":"type","v":"TYPE OF FILING: \"X\" ORIGINAL   UPDATED    REVISED  "}]
[]
[null,null,null,null,null,{"$f":"F$7","v":"TOTAL"},null,{"$f":"H$7","v":"DS"},{"$f":"I$7","v":"GSFL"},{"$f":"J$7","v":"EH"},{"$f":"K$7","v":"SP"},"DT SEC","DT PRI","DP","TT",null,"OTHER"]
["LINE",null,null,null,null,{"$f":"F$8","v":"PRODUCTION"},{"$f":"G$8","v":"RS"},{"$f":"H$8","v":"SECONDARY"},{"$f":"I$8","v":"SECONDARY"},{"$f":"J$8","v":"SECONDARY"},{"$f":"K$8","v":"SECONDARY"},"SECONDARY","PRIMARY","PRIMARY","TRANSMISSION","LT","WATER",{"$f":"R8","v":"TOTAL"},"ALL"]
["NO.","STATE INCOME TAX BASED ON RETURN",null,"Allo",null,{"$f":"F$9","v":"DEMAND"},{"$f":"G$9","v":"RESIDENTIAL"},{"$f":"H$9","v":"DISTRIBUTION"},{"$f":"I$9","v":"DISTRIBUTION"},{"$f":"J$9","v":"DISTRIBUTION"},{"$f":"K$9","v":"DISTRIBUTION"},"DISTRIBUTION","DISTRIBUTION","DISTRIBUTION","TIME OF DAY","LIGHTING","PUMPING",{"$f":"R9","v":"AT ISSUE"},"OTHER"]
[null,null,"Schedule 9.1",null,null,null,{"$f":"G$10","v":3},{"$f":"H$10","v":4},{"$f":"I$10","v":5},{"$f":"J$10","v":6},{"$f":"K$10","v":7},8,9,10,11,12,13,null," "]
[1,"DEDUCTIONS IN ADDITION TO Y871"]
[2,"KY TAXABLE INCOME ADJUSTMENT",null,{"$f":"'FR-16(7)(v)-1 Functional'!D694","v":"NP29"},null,{"$f":"'FR-16(7)(v)-2 PROD Classified'!G694","v":4763289},{"$f":"F694-SUM(H694:Q694)","v":2146815},{"$f":"ROUND(F694*VLOOKUP(D694,ALLOCTABLE_Prod_Demand,$H$10,FALSE),0)","v":1289327},{"$f":"ROUND(F694*VLOOKUP(D694,ALLOCTABLE_Prod_Demand,$I$10,FALSE),0)","v":6192},{"$f":"ROUND(F694*VLOOKUP(D694,ALLOCTABLE_Prod_Demand,$J$10,FALSE),0)","v":24436},{"$f":"ROUND(F694*VLOOKUP(D694,ALLOCTABLE_Prod_Demand,$K$10,FALSE),0)","v":333},{"$f":"ROUND(F694*VLOOKUP(D694,ALLOCTABLE_Prod_Demand,$L$10,FALSE),0)","v":642853},{"$f":"ROUND(F694*VLOOKUP(D694,ALLOCTABLE_Prod_Demand,$M$10,FALSE),0)","v":424981},{"$f":"ROUND(F694*VLOOKUP(D694,ALLOCTABLE_Prod_Demand,$N$10,FALSE),0)","v":20530},{"$f":"ROUND(F694*VLOOKUP(D694,ALLOCTABLE_Prod_Demand,$O$10,FALSE),0)","v":201392},{"$f":"ROUND(F694*VLOOKUP(D694,ALLOCTABLE_Prod_Demand,$P$10,FALSE),0)","v":5906},{"$f":"ROUND(F694*VLOOKUP(D694,ALLOCTABLE_Prod_Demand,$Q$10,FALSE),0)","v":524},{"$f":"SUM(G694:Q694)","v":4763289},{"$f":"F694-R694","v":0}]
[3,"RESERVED FOR FUTURE USE",null,{"$f":"'FR-16(7)(v)-1 Functional'!D695","v":"NP29"},null,{"$f":"'FR-16(7)(v)-2 PROD Classified'!G695","v":0},{"$f":"F695-SUM(H695:Q695)","v":0},{"$f":"ROUND(F695*VLOOKUP(D695,ALLOCTABLE_Prod_Demand,$H$10,FALSE),0)","v":0},{"$f":"ROUND(F695*VLOOKUP(D695,ALLOCTABLE_Prod_Demand,$I$10,FALSE),0)","v":0},{"$f":"ROUND(F695*VLOOKUP(D695,ALLOCTABLE_Prod_Demand,$J$10,FALSE),0)","v":0},{"$f":"ROUND(F695*VLOOKUP(D695,ALLOCTABLE_Prod_Demand,$K$10,FALSE),0)","v":0},{"$f":"ROUND(F695*VLOOKUP(D695,ALLOCTABLE_Prod_Demand,$L$10,FALSE),0)","v":0},{"$f":"ROUND(F695*VLOOKUP(D695,ALLOCTABLE_Prod_Demand,$M$10,FALSE),0)","v":0},{"$f":"ROUND(F695*VLOOKUP(D695,ALLOCTABLE_Prod_Demand,$N$10,FALSE),0)","v":0},{"$f":"ROUND(F695*VLOOKUP(D695,ALLOCTABLE_Prod_Demand,$O$10,FALSE),0)","v":0},{"$f":"ROUND(F695*VLOOKUP(D695,ALLOCTABLE_Prod_Demand,$P$10,FALSE),0)","v":0},{"$f":"ROUND(F695*VLOOKUP(D695,ALLOCTABLE_Prod_Demand,$Q$10,FALSE),0)","v":0},{"$f":"SUM(G695:Q695)","v":0},{"$f":"F695-R695","v":0}]
[4,"  DEDUCTIONS IN ADD TO Y871",null,null,null,{"$f":"SUM(F694:F695)","v":4763289},{"$f":"SUM(G694:G695)","v":2146815},1289327,6192,{"$f":"SUM(J694:J695)","v":24436},333,642853,424981,20530,201392,5906,524,4763289,0]
[5]
[6,"STATE INCOME TAX ADJUSTMENTS"]
[7,"STATE PROV DEF INC TAX (410 & 411)"]
[8,"OTHER DEFERRED INCOME TAXES - NET",null,{"$f":"'FR-16(7)(v)-1 Functional'!D700","v":"A357"},null,{"$f":"'FR-16(7)(v)-2 PROD Classified'!G700","v":1103806},{"$f":"F700-SUM(H700:Q700)","v":1090462},{"$f":"ROUND(F700*VLOOKUP(D700,ALLOCTABLE_Prod_Demand,$H$10,FALSE),0)","v":6579},{"$f":"ROUND(F700*VLOOKUP(D700,ALLOCTABLE_Prod_Demand,$I$10,FALSE),0)","v":33},{"$f":"ROUND(F700*VLOOKUP(D700,ALLOCTABLE_Prod_Demand,$J$10,FALSE),0)","v":121},{"$f":"ROUND(F700*VLOOKUP(D700,ALLOCTABLE_Prod_Demand,$K$10,FALSE),0)","v":0},{"$f":"ROUND(F700*VLOOKUP(D700,ALLOCTABLE_Prod_Demand,$L$10,FALSE),0)","v":3278},{"$f":"ROUND(F700*VLOOKUP(D700,ALLOCTABLE_Prod_Demand,$M$10,FALSE),0)","v":2163},{"$f":"ROUND(F700*VLOOKUP(D700,ALLOCTABLE_Prod_Demand,$N$10,FALSE),0)","v":110},{"$f":"ROUND(F700*VLOOKUP(D700,ALLOCTABLE_Prod_Demand,$O$10,FALSE),0)","v":1027},{"$f":"ROUND(F700*VLOOKUP(D700,ALLOCTABLE_Prod_Demand,$P$10,FALSE),0)","v":33},{"$f":"ROUND(F700*VLOOKUP(D700,ALLOCTABLE_Prod_Demand,$Q$10,FALSE),0)","v":0},{"$f":"SUM(G700:Q700)","v":1103806},{"$f":"F700-R700","v":0}]
[9,"  TOT STATE PROV DEF IT (410 & 411)",null,null,null,{"$f":"SUM(F700)","v":1103806},{"$f":"SUM(G700)","v":1090462},6579,33,{"$f":"SUM(J700)","v":121},0,3278,2163,110,1027,33,0,1103806,0]
[10]
[11,"OTHER SIT ADJUSTMENTS"]
[12,"CURRENT YEAR PAYABLE ADJUSTMENT",null,{"$f":"'FR-16(7)(v)-1 Functional'!D704","v":"NP29"},null,{"$f":"'FR-16(7)(v)-2 PROD Classified'!G704","v":0},{"$f":"F704-SUM(H704:Q704)","v":0},{"$f":"ROUND(F704*VLOOKUP(D704,ALLOCTABLE_Prod_Demand,$H$10,FALSE),0)","v":0},{"$f":"ROUND(F704*VLOOKUP(D704,ALLOCTABLE_Prod_Demand,$I$10,FALSE),0)","v":0},{"$f":"ROUND(F704*VLOOKUP(D704,ALLOCTABLE_Prod_Demand,$J$10,FALSE),0)","v":0},{"$f":"ROUND(F704*VLOOKUP(D704,ALLOCTABLE_Prod_Demand,$K$10,FALSE),0)","v":0},{"$f":"ROUND(F704*VLOOKUP(D704,ALLOCTABLE_Prod_Demand,$L$10,FALSE),0)","v":0},{"$f":"ROUND(F704*VLOOKUP(D704,ALLOCTABLE_Prod_Demand,$M$10,FALSE),0)","v":0},{"$f":"ROUND(F704*VLOOKUP(D704,ALLOCTABLE_Prod_Demand,$N$10,FALSE),0)","v":0},{"$f":"ROUND(F704*VLOOKUP(D704,ALLOCTABLE_Prod_Demand,$O$10,FALSE),0)","v":0},{"$f":"ROUND(F704*VLOOKUP(D704,ALLOCTABLE_Prod_Demand,$P$10,FALSE),0)","v":0},{"$f":"ROUND(F704*VLOOKUP(D704,ALLOCTABLE_Prod_Demand,$Q$10,FALSE),0)","v":0},{"$f":"SUM(G704:Q704)","v":0},{"$f":"F704-R704","v":0}]
[13,"  OTHER SIT ADJUSMENTS",null,null,null,{"$f":"SUM(F704)","v":0},{"$f":"SUM(G704)","v":0},{"$f":"SUM(H704)","v":0},{"$f":"SUM(I704)","v":0},{"$f":"SUM(J704)","v":0},0,0,0,0,0,0,{"$f":"SUM(Q704)","v":0},{"$f":"SUM(R704)","v":0},{"$f":"SUM(S704)","v":0}]
[14]
[15,"TOTAL STATE INC TAX ADJUSTMENT",null,null,null,{"$f":"F705+F701","v":1103806},{"$f":"G705+G701","v":1090462},{"$f":"H705+H701","v":6579},{"$f":"I705+I701","v":33},{"$f":"J705+J701","v":121},0,3278,2163,110,1027,33,{"$f":"Q705+Q701","v":0},{"$f":"R705+R701","v":1103806},{"$f":"S705+S701","v":0}]
[16]
[17,"INCOME TAX BASED ON RETURN"]
[18,"SUMMARY OF SIT CALCULATION"]
[19,"RETURN ON RATE BASE",null,null,null,{"$f":"F433","v":35083922},{"$f":"G433","v":15907752},{"$f":"H433","v":9449503},{"$f":"I433","v":45258},{"$f":"J433","v":179279},2456,4711420,3114751,150510,1475981,43153,{"$f":"Q433","v":3859},{"$f":"R433","v":35083922},{"$f":"S433","v":0}]
[20,"NET FED INCOME TAX ALLOWABLE",null,null,null,{"$f":"F676","v":-6959928},{"$f":"G676","v":-3430658},{"$f":"H676","v":-1739140},{"$f":"I676","v":-8374},{"$f":"J676","v":-32909},-446,-867202,-573274,-27675,-271555,-7992,{"$f":"Q676","v":-703},{"$f":"R676","v":-6959928},{"$f":"S676","v":0}]
[21,"NET FED. DED. AND ADDITIONS",null,null,null,{"$f":"-F641","v":-58631887},{"$f":"-G641","v":-26380622},{"$f":"-H641","v":-15892580},{"$f":"-I641","v":-76278},{"$f":"-J641","v":-301210},-4113,-7924204,-5238610,-253029,-2482024,-72753,{"$f":"-Q641","v":-6464},{"$f":"-R641","v":-58631887},{"$f":"-S641","v":0}]
[22,"DEDUCTIONS IN ADD TO Y871",null,null,null,{"$f":"-F696","v":-4763289},{"$f":"-G696","v":-2146815},{"$f":"-H696","v":-1289327},{"$f":"-I696","v":-6192},{"$f":"-J696","v":-24436},-333,-642853,-424981,-20530,-201392,-5906,{"$f":"-Q696","v":-524},{"$f":"-R696","v":-4763289},{"$f":"-S696","v":0}]
[23,"RESERVED",null,null,null,{"$f":"F24","v":0},{"$f":"G24","v":0},{"$f":"H24","v":0},{"$f":"I24","v":0},{"$f":"J24","v":0},0,0,0,0,0,0,{"$f":"Q24","v":0},{"$f":"R24","v":0},{"$f":"S24","v":0}]
[24,"TOTAL STATE INC TAX ADJ",null,null,null,{"$f":"F707","v":1103806},{"$f":"G707","v":1090462},{"$f":"H707","v":6579},{"$f":"I707","v":33},{"$f":"J707","v":121},0,3278,2163,110,1027,33,{"$f":"Q707","v":0},{"$f":"R707","v":1103806},{"$f":"S707","v":0}]
[25,"  BASE FOR SIT COMPUTATION",null,null,null,{"$f":"SUM(F711:F716)","v":-34167376},{"$f":"SUM(G711:G716)","v":-14959881},{"$f":"SUM(H711:H716)","v":-9464965},{"$f":"SUM(I711:I716)","v":-45553},{"$f":"SUM(J711:J716)","v":-179155},-2436,-4719561,-3119951,-150614,-1477963,-43465,{"$f":"SUM(Q711:Q716)","v":-3832},{"$f":"SUM(R711:R716)","v":-34167376},{"$f":"SUM(S711:S716)","v":0}]
[26]
[27,"SIT FACTOR K192/(1-K192)",null,null,null,{"$f":"ROUND(SIT/(1-SIT),8)","v":5.2282660000000002E-2},5.2282660000000002E-2,5.2282660000000002E-2,5.2282660000000002E-2,5.2282660000000002E-2,5.2282660000000002E-2,5.2282660000000002E-2,5.2282660000000002E-2,5.2282660000000002E-2,5.2282660000000002E-2,5.2282660000000002E-2,5.2282660000000002E-2,5.2282660000000002E-2,5.2282660000000002E-2]
[28,"PRELIMINARY STATE INCOME TAX",null,null,null,{"$f":"ROUND(F717*F719,0)","v":-1786361},{"$f":"F720-SUM(H720:Q720)","v":-782142},{"$f":"ROUND(H717*H719,0)","v":-494854},{"$f":"ROUND(I717*I719,0)","v":-2382},{"$f":"ROUND(J717*J719,0)","v":-9367},-127,-246751,-163119,-7875,-77272,-2272,{"$f":"ROUND(Q717*Q719,0)","v":-200},{"$f":"SUM(G720:Q720)","v":-1786361},{"$f":"F720-R720","v":0}]
[29,"TOTAL STATE INCOME TAX ADJ.",null,null,null,{"$f":"F707","v":1103806},{"$f":"G707","v":1090462},{"$f":"H707","v":6579},{"$f":"I707","v":33},{"$f":"J707","v":121},0,3278,2163,110,1027,33,{"$f":"Q707","v":0},{"$f":"SUM(G721:Q721)","v":1103806},{"$f":"F721-R721","v":0}]
[30,"  NET STATE INC TAX ALLOWABLE",null,null,null,{"$f":"F721+F720","v":-682555},308320,-488275,-2349,{"$f":"J721+J720","v":-9246},-127,-243473,-160956,-7765,-76245,-2239,-200,-682555,{"$f":"S721+S720","v":0}]
[31]
[32,"STATE INCOME TAX PAYABLE"]
[33,"PRELIMINARY STATE INCOME TAX",null,null,null,{"$f":"F720","v":-1786361},{"$f":"G720","v":-782142},{"$f":"H720","v":-494854},{"$f":"I720","v":-2382},{"$f":"J720","v":-9367},-127,-246751,-163119,-7875,-77272,-2272,{"$f":"Q720","v":-200},{"$f":"SUM(G725:Q725)","v":-1786361},{"$f":"F725-R725","v":0}]
[34,"OTHER SIT ADJUSTMENTS",null,null,null,{"$f":"F705","v":0},{"$f":"G705","v":0},{"$f":"H705","v":0},{"$f":"I705","v":0},{"$f":"J705","v":0},0,0,0,0,0,0,{"$f":"Q705","v":0},{"$f":"SUM(G726:Q726)","v":0},{"$f":"F726-R726","v":0}]
[35,"  NET STATE INCOME TAX PAYABLE",null,null,null,{"$f":"F725+F726","v":-1786361},-782142,-494854,-2382,{"$f":"J725+J726","v":-9367},-127,-246751,-163119,-7875,-77272,-2272,-200,-1786361,{"$f":"S725+S726","v":0}]
[36]
[37,"COMPOSITE TAX RATE",null,null,null,{"$f":"(SIT*(1-FIT))+((1-SIT)*(1-FIT)*RevTax)+FIT","v":0.24925115},0.24925115,0.24925115,0.24925115,0.24925115,0.24925115,0.24925115,0.24925115,0.24925115,0.24925115,0.24925115,0.24925115,0.24925115,0.24925115]
[]
[{"$f":"co_name","v":"DUKE ENERGY KENTUCKY, INC."},null,null,null,null,null,null,null,null,null,null,null,null,null,null,null,null,{"$f":"R1","v":"FR-16(7)(v)-3"}]
[{"$f":"$A$2","v":"PRODUCTION DEMAND ALLOCATED - ELECTRIC COST OF SERVICE"},null,null,null,null,null,null,null,null,null,null,null,null,null,null,null,null,{"$f":"R2","v":"WITNESS RESPONSIBLE:"}]
[{"$f":"case_name","v":"CASE NO: 2019-00271"},null,null,null,null,null,null,null,null,null,null,null,null,null,null,null,null,{"$f":"Witness","v":"JAMES E. ZIOLKOWSKI"}]
[{"$f":"data_filing","v":"DATA: 12 MONTHS ACTUAL  & 0 MONTHS ESTIMATED"},null,null,null,null,null,null,null,null,null,null,null,null,null,null,null,null,{"$f":"\"PAGE \"&Pages-4&\" OF \"&Pages","v":"PAGE 14 OF 18"}]
[{"$f":"type","v":"TYPE OF FILING: \"X\" ORIGINAL   UPDATED    REVISED  "}]
[]
[null,null,null,null,null,{"$f":"F$7","v":"TOTAL"},null,{"$f":"H$7","v":"DS"},{"$f":"I$7","v":"GSFL"},{"$f":"J$7","v":"EH"},{"$f":"K$7","v":"SP"},"DT SEC","DT PRI","DP","TT",null,"OTHER"]
["LINE",null,null,null,null,{"$f":"F$8","v":"PRODUCTION"},{"$f":"G$8","v":"RS"},{"$f":"H$8","v":"SECONDARY"},{"$f":"I$8","v":"SECONDARY"},{"$f":"J$8","v":"SECONDARY"},{"$f":"K$8","v":"SECONDARY"},"SECONDARY","PRIMARY","PRIMARY","TRANSMISSION","LT","WATER",{"$f":"R8","v":"TOTAL"},"ALL"]
["NO.","COST OF SERVICE COMPUTATION",null,"ALLO",null,{"$f":"F$9","v":"DEMAND"},{"$f":"G$9","v":"RESIDENTIAL"},{"$f":"H$9","v":"DISTRIBUTION"},{"$f":"I$9","v":"DISTRIBUTION"},{"$f":"J$9","v":"DISTRIBUTION"},{"$f":"K$9","v":"DISTRIBUTION"},"DISTRIBUTION","DISTRIBUTION","DISTRIBUTION","TIME OF DAY","LIGHTING","PUMPING",{"$f":"R9","v":"AT ISSUE"},"OTHER"]
[null,null,"Schedule 10",null,null,null,{"$f":"G$10","v":3},{"$f":"H$10","v":4},{"$f":"I$10","v":5},{"$f":"J$10","v":6},{"$f":"K$10","v":7},8,9,10,11,12,13,null," "]
[1,"OTHER OPERATING REVENUES"]
[2,null,{"$f":"'FR-16(7)(v)-1 Functional'!C742","v":"MISC SERVICE REVENUE"},{"$f":"'FR-16(7)(v)-1 Functional'!D742","v":"D249"},null,{"$f":"'FR-16(7)(v)-2 PROD Classified'!G742","v":0},{"$f":"F742-SUM(H742:Q742)","v":0},{"$f":"ROUND(F742*VLOOKUP(D742,ALLOCTABLE_Prod_Demand,$H$10,FALSE),0)","v":0},{"$f":"ROUND(F742*VLOOKUP(D742,ALLOCTABLE_Prod_Demand,$I$10,FALSE),0)","v":0},{"$f":"ROUND(F742*VLOOKUP(D742,ALLOCTABLE_Prod_Demand,$J$10,FALSE),0)","v":0},{"$f":"ROUND(F742*VLOOKUP(D742,ALLOCTABLE_Prod_Demand,$K$10,FALSE),0)","v":0},{"$f":"ROUND(F742*VLOOKUP(D742,ALLOCTABLE_Prod_Demand,$L$10,FALSE),0)","v":0},{"$f":"ROUND(F742*VLOOKUP(D742,ALLOCTABLE_Prod_Demand,$M$10,FALSE),0)","v":0},{"$f":"ROUND(F742*VLOOKUP(D742,ALLOCTABLE_Prod_Demand,$N$10,FALSE),0)","v":0},{"$f":"ROUND(F742*VLOOKUP(D742,ALLOCTABLE_Prod_Demand,$O$10,FALSE),0)","v":0},{"$f":"ROUND(F742*VLOOKUP(D742,ALLOCTABLE_Prod_Demand,$P$10,FALSE),0)","v":0},{"$f":"ROUND(F742*VLOOKUP(D742,ALLOCTABLE_Prod_Demand,$Q$10,FALSE),0)","v":0},{"$f":"SUM(G742:Q742)","v":0},{"$f":"F742-R742","v":0}]
[3,null,{"$f":"'FR-16(7)(v)-1 Functional'!C743","v":"INTERDEPARTMENTAL"},{"$f":"'FR-16(7)(v)-1 Functional'!D743","v":"K902"},null,{"$f":"'FR-16(7)(v)-2 PROD Classified'!G743","v":0},0,0,0,0,0,0,0,0,0,0,0,0,0]
[4,null,{"$f":"'FR-16(7)(v)-1 Functional'!C744","v":"POLE & LINE ATTACHMENTS"},{"$f":"'FR-16(7)(v)-1 Functional'!D744","v":"D249"},null,{"$f":"'FR-16(7)(v)-2 PROD Classified'!G744","v":0},0,0,0,0,0,0,0,0,0,0,0,0,0]
[5,null,{"$f":"'FR-16(7)(v)-1 Functional'!C745","v":"RENTS"},{"$f":"'FR-16(7)(v)-1 Functional'!D745","v":"D249"},null,{"$f":"'FR-16(7)(v)-2 PROD Classified'!G745","v":0},0,0,0,0,0,0,0,0,0,0,0,0,0]
[6,null,{"$f":"'FR-16(7)(v)-1 Functional'!C746","v":"TRANSMISSION CHARGE PTP"},{"$f":"'FR-16(7)(v)-1 Functional'!D746","v":"T229"},null,0,{"$f":"F746-SUM(H746:Q746)","v":0},0,0,0,0,0,0,0,0,0,0,0,0]
[7,null,{"$f":"'FR-16(7)(v)-1 Functional'!C747","v":"PJM REACTIVE REVENUE"},{"$f":"'FR-16(7)(v)-1 Functional'!D747","v":"K401"},null,0,{"$f":"F747-SUM(H747:Q747)","v":0},0,0,0,0,0,0,0,0,0,0,0,0]
[8,null,{"$f":"'FR-16(7)(v)-1 Functional'!C748","v":"OTHER TRANSMISSION REVENUES"},{"$f":"'FR-16(7)(v)-1 Functional'!D748","v":"T229"},null,0,{"$f":"F748-SUM(H748:Q748)","v":0},0,0,0,0,0,0,0,0,0,0,0,0]
[9,null,{"$f":"'FR-16(7)(v)-1 Functional'!C749","v":"FIXED BILL PREMIUM"},{"$f":"'FR-16(7)(v)-1 Functional'!D749","v":"K902"},null,{"$f":"'FR-16(7)(v)-2 PROD Classified'!G749","v":0},0,0,0,0,0,0,0,0,0,0,0,0,0]
[10,null,{"$f":"'FR-16(7)(v)-1 Functional'!C750","v":"  TOTAL OTHER OPERATING REVS"},null,null,{"$f":"SUM(F742:F749)","v":0},{"$f":"SUM(G742:G749)","v":0},{"$f":"SUM(H742:H749)","v":0},{"$f":"SUM(I742:I749)","v":0},{"$f":"SUM(J742:J749)","v":0},0,0,0,0,0,0,{"$f":"SUM($Q$742:$Q$749)","v":0},{"$f":"SUM(R742:R749)","v":0},{"$f":"SUM(S742:S749)","v":0}]
[11]
[12,"COST OF SERVICE COMPUTATION"]
[13,null,{"$f":"'FR-16(7)(v)-1 Functional'!C753","v":"TOTAL OP EXP EXC INC & REV TAX"},null,null,{"$f":"F618","v":54400774},{"$f":"G618","v":27826762},{"$f":"H618","v":13094843},{"$f":"I618","v":62913},{"$f":"J618","v":248126},3392,6529172,4316368,208535,2045218,60118,{"$f":"$Q$618","v":5327},{"$f":"R618","v":54400774},{"$f":"S618","v":0}]
[14,null,"RETURN ON RATE BASE",null,null,{"$f":"F433","v":35083922},{"$f":"G433","v":15907752},{"$f":"H433","v":9449503},{"$f":"I433","v":45258},{"$f":"J433","v":179279},2456,4711420,3114751,150510,1475981,43153,{"$f":"Q433","v":3859},{"$f":"R433","v":35083922},{"$f":"S433","v":0}]
[15,null,{"$f":"'FR-16(7)(v)-1 Functional'!C755","v":"NET FED INCOME TAX ALLOWABLE"},null,null,{"$f":"F676","v":-6959928},{"$f":"G676","v":-3430658},{"$f":"H676","v":-1739140},{"$f":"I676","v":-8374},{"$f":"J676","v":-32909},-446,-867202,-573274,-27675,-271555,-7992,{"$f":"$Q$676","v":-703},{"$f":"R676","v":-6959928},{"$f":"S676","v":0}]
[16,null,{"$f":"'FR-16(7)(v)-1 Functional'!C756","v":"NET STATE INCOME TAX ALLOWABLE"},null,null,{"$f":"F722","v":-682555},{"$f":"G722","v":308320},-488275,-2349,{"$f":"J722","v":-9246},-127,-243473,-160956,-7765,-76245,-2239,-200,-682555,0]
[17,null,{"$f":"'FR-16(7)(v)-1 Functional'!C757","v":"TOTAL OTHER OPERATING REVENUES"},null,null,{"$f":"-F750","v":0},{"$f":"-G750","v":0},{"$f":"-H750","v":0},{"$f":"-I750","v":0},{"$f":"-J750","v":0},0,0,0,0,0,0,{"$f":"-$Q$750","v":0},{"$f":"-R750","v":0},{"$f":"-S750","v":0}]
[18,null,{"$f":"'FR-16(7)(v)-1 Functional'!C758","v":"  SUBTOTAL B"},null,null,{"$f":"SUM(F752:F757)","v":81842213},{"$f":"SUM(G752:G757)","v":40612176},{"$f":"SUM(H752:H757)","v":20316931},{"$f":"SUM(I752:I757)","v":97448},{"$f":"SUM(J752:J757)","v":385250},5275,10129917,6696889,323605,3173399,93040,{"$f":"SUM($Q$752:$Q$757)","v":8283},{"$f":"SUM(R752:R757)","v":81842213},{"$f":"R758-F758","v":0}]
[19]
[20,null,{"$f":"'FR-16(7)(v)-1 Functional'!C760","v":"TOTAL OTHER OPERATING REVENUES"},null,null,{"$f":"-F757","v":0},{"$f":"-G757","v":0},{"$f":"-H757","v":0},{"$f":"-I757","v":0},{"$f":"-J757","v":0},0,0,0,0,0,0,{"$f":"-$Q$757","v":0},{"$f":"-R757","v":0},{"$f":"-S757","v":0}]
[21,null,{"$f":"'FR-16(7)(v)-1 Functional'!C761","v":"LESS: REVS EXCL FROM REV TAX CALC"},null,null,{"$f":"F989","v":0},{"$f":"G989","v":0},{"$f":"H989","v":0},{"$f":"I989","v":0},{"$f":"J989","v":0},0,0,0,0,0,0,{"$f":"Q989","v":0},{"$f":"R989","v":0},{"$f":"S989","v":0}]
[22,null,{"$f":"'FR-16(7)(v)-1 Functional'!C762","v":"OTHER OPERATING REVS TO BE TAXED"},null,null,{"$f":"F760-F761","v":0},{"$f":"G760-G761","v":0},{"$f":"H760-H761","v":0},{"$f":"I760-I761","v":0},{"$f":"J760-J761","v":0},0,0,0,0,0,0,{"$f":"$Q$760-Q761","v":0},{"$f":"R760-R761","v":0},{"$f":"S760-S761","v":0}]
[23]
[24,null,{"$f":"'FR-16(7)(v)-1 Functional'!C764","v":"REVENUE TAX FACTOR"},null,null,{"$f":"ROUND(F817/(1-F817),8)","v":0},0,0,0,{"$f":"ROUND(J817/(1-J817),8)","v":0},0,0,0,0,0,0,0,0,0]
[25,null,{"$f":"'FR-16(7)(v)-1 Functional'!C765","v":"REVENUE TAX ON OTHER OPER. REVS"},null,null,{"$f":"ROUND(F764*F762,0)","v":0},{"$f":"ROUND(G764*G762,0)","v":0},{"$f":"ROUND(H764*H762,0)","v":0},{"$f":"ROUND(I764*I762,0)","v":0},{"$f":"ROUND(J764*J762,0)","v":0},0,0,0,0,0,0,{"$f":"ROUND(Q764*Q762,0)","v":0},{"$f":"SUM(G765:Q765)","v":0},{"$f":"ROUND(S764*S762,0)","v":0}]
[26,null,{"$f":"'FR-16(7)(v)-1 Functional'!C766","v":"REVENUE TAX ON COST OF SERVICE"},null,null,{"$f":"ROUND(F764*F758,0)","v":0},{"$f":"ROUND(G764*G758,0)","v":0},{"$f":"ROUND(H764*H758,0)","v":0},{"$f":"ROUND(I764*I758,0)","v":0},{"$f":"ROUND(J764*J758,0)","v":0},0,0,0,0,0,0,{"$f":"ROUND(Q764*$Q$758,0)","v":0},{"$f":"SUM(G766:Q766)","v":0},{"$f":"ROUND(S764*S758,0)","v":0}]
[27,null,{"$f":"'FR-16(7)(v)-1 Functional'!C767","v":"TOTAL REVENUE TAX"},null,null,{"$f":"F766+F765","v":0},{"$f":"G766+G765","v":0},{"$f":"H766+H765","v":0},{"$f":"I766+I765","v":0},{"$f":"J766+J765","v":0},0,0,0,0,0,0,{"$f":"Q766+Q765","v":0},{"$f":"R766+R765","v":0},{"$f":"S766+S765","v":0}]
[28]
[29,null,"RESERVED",null,null,{"$f":"F24","v":0},{"$f":"G24","v":0},{"$f":"H24","v":0},{"$f":"I24","v":0},{"$f":"J24","v":0},0,0,0,0,0,0,{"$f":"Q24","v":0},{"$f":"R24","v":0}]
[30,null,{"$f":"'FR-16(7)(v)-1 Functional'!C770","v":"  TOTAL ELECTRIC COST OF SERVICE"},null,null,{"$f":"F769+F767+F758","v":81842213},40612176,20316931,97448,385250,5275,10129917,6696889,323605,3173399,93040,8283,81842213,{"$f":"S767+S758","v":0}]
[31]
[32,"PROPOSED REVENUES",null,null,null,{"$f":"F868","v":106929095},{"$f":"G868","v":105636323},{"$f":"H868","v":637297},{"$f":"I868","v":3208},{"$f":"J868","v":11762},0,317579,209581,10693,99444,3208,{"$f":"Q868","v":0},{"$f":"R868","v":106929095},{"$f":"S868","v":0}]
[33,"TOTAL ELECTRIC COST OF SERVICE",null,null,null,{"$f":"-F770","v":-81842213},{"$f":"-G770","v":-40612176},{"$f":"-H770","v":-20316931},{"$f":"-I770","v":-97448},{"$f":"-J770","v":-385250},-5275,-10129917,-6696889,-323605,-3173399,-93040,{"$f":"-Q770","v":-8283},{"$f":"-R770","v":-81842213},{"$f":"-S770","v":0}]
[34,"EXCESS REVENUES",null,null,null,{"$f":"F773+F772","v":25086882},{"$f":"G773+G772","v":65024147},{"$f":"H773+H772","v":-19679634},{"$f":"I773+I772","v":-94240},{"$f":"J773+J772","v":-373488},-5275,-9812338,-6487308,-312912,-3073955,-89832,{"$f":"Q773+Q772","v":-8283},{"$f":"SUM(G774:Q774)","v":25086882},{"$f":"F774-R774","v":0}]
[35,"COMPOSITE TAX RATE",null,null,null,{"$f":"F729","v":0.24925115},{"$f":"G729","v":0.24925115},0.24925115,0.24925115,{"$f":"J729","v":0.24925115},0.24925115,0.24925115,0.24925115,0.24925115,0.24925115,0.24925115,0.24925115,0.24925115,0.24925115]
[36,"EXCESS TAX",null,null,null,{"$f":"'FR-16(7)(v)-2 PROD Classified'!G776","v":6252934},{"$f":"F776-SUM(H776:Q776)","v":16207344},{"$f":"ROUND(H775*H774,0)","v":-4905171},{"$f":"ROUND(I775*I774,0)","v":-23489},{"$f":"ROUND(J775*J774,0)","v":-93092},-1315,-2445737,-1616969,-77994,-766187,-22391,{"$f":"ROUND(Q775*Q774,0)","v":-2065},{"$f":"SUM(G776:Q776)","v":6252934},{"$f":"F776-R776","v":0}]
[37,"EXCESS RETURN",null,null,null,{"$f":"F774-F776","v":18833948},{"$f":"G774-G776","v":48816803},{"$f":"H774-H776","v":-14774463},{"$f":"I774-I776","v":-70751},{"$f":"J774-J776","v":-280396},-3960,-7366601,-4870339,-234918,-2307768,-67441,{"$f":"Q774-Q776","v":-6218},{"$f":"SUM(G777:Q777)","v":18833948},{"$f":"F777-R777","v":0}]
[]
[{"$f":"co_name","v":"DUKE ENERGY KENTUCKY, INC."},null,null,null,null,null,null,null,null,null,null,null,null,null,null,null,null,{"$f":"R1","v":"FR-16(7)(v)-3"}]
[{"$f":"$A$2","v":"PRODUCTION DEMAND ALLOCATED - ELECTRIC COST OF SERVICE"},null,null,null,null,null,null,null,null,null,null,null,null,null,null,null,null,{"$f":"R2","v":"WITNESS RESPONSIBLE:"}]
[{"$f":"case_name","v":"CASE NO: 2019-00271"},null,null,null,null,null,null,null,null,null,null,null,null,null,null,null,null,{"$f":"Witness","v":"JAMES E. ZIOLKOWSKI"}]
[{"$f":"data_filing","v":"DATA: 12 MONTHS ACTUAL  & 0 MONTHS ESTIMATED"},null,null,null,null,null,null,null,null,null,null,null,null,null,null,null,null,{"$f":"\"PAGE \"&Pages-3&\" OF \"&Pages","v":"PAGE 15 OF 18"}]
[{"$f":"type","v":"TYPE OF FILING: \"X\" ORIGINAL   UPDATED    REVISED  "}]
[]
[null,null,null,null,null,{"$f":"F$7","v":"TOTAL"},null,{"$f":"H$7","v":"DS"},{"$f":"I$7","v":"GSFL"},{"$f":"J$7","v":"EH"},{"$f":"K$7","v":"SP"},"DT SEC","DT PRI","DP","TT",null,"OTHER"]
["LINE",null,null,null,null,{"$f":"F$8","v":"PRODUCTION"},{"$f":"G$8","v":"RS"},{"$f":"H$8","v":"SECONDARY"},{"$f":"I$8","v":"SECONDARY"},{"$f":"J$8","v":"SECONDARY"},{"$f":"K$8","v":"SECONDARY"},"SECONDARY","PRIMARY","PRIMARY","TRANSMISSION","LT","WATER",{"$f":"R8","v":"TOTAL"},"ALL"]
["NO.","ROR, TAX RATES & SPEC FACTORS",null,"ALLO",null,{"$f":"F$9","v":"DEMAND"},{"$f":"G$9","v":"RESIDENTIAL"},{"$f":"H$9","v":"DISTRIBUTION"},{"$f":"I$9","v":"DISTRIBUTION"},{"$f":"J$9","v":"DISTRIBUTION"},{"$f":"K$9","v":"DISTRIBUTION"},"DISTRIBUTION","DISTRIBUTION","DISTRIBUTION","TIME OF DAY","LIGHTING","PUMPING",{"$f":"R9","v":"AT ISSUE"},"OTHER"]
[null,null,"Schedule 11",null,null,null,{"$f":"G$10","v":3},{"$f":"H$10","v":4},{"$f":"I$10","v":5},{"$f":"J$10","v":6},{"$f":"K$10","v":7},8,9,10,11,12,13,null," "]
[1,"RATE OF RETURN"]
[2," CAPITALIZATION AMOUNTS",null,null,null,null,"RATIO"]
[3,null,{"$f":"'FR-16(7)(v)-1 Functional'!C791","v":"LONG TERM DEBT"},null,null,{"$f":"'FR-16(7)(v)-2 PROD Classified'!$F$791","v":665948506},{"$f":"IF(TotalCap=0,0,ROUND(F791/TotalCap,4))","v":0.45929999999999999}]
[4,null,{"$f":"'FR-16(7)(v)-1 Functional'!C792","v":"PREFERRED STOCK"},null,null,{"$f":"'FR-16(7)(v)-2 PROD Classified'!$F$792","v":0},{"$f":"IF(TotalCap=0,0,ROUND(F792/TotalCap,4))","v":0}]
[5,null,{"$f":"'FR-16(7)(v)-1 Functional'!C793","v":"COMMON STOCK"},null,null,{"$f":"[0]!Equity","v":699348680},{"$f":"1-G791-G792-G794-G795","v":0.48239999999999994}]
[6,null,{"$f":"'FR-16(7)(v)-1 Functional'!C794","v":"SHORT TERM DEBT"},null,null,{"$f":"'FR-16(7)(v)-2 PROD Classified'!$F$794","v":84600060},{"$f":"IF(TotalCap=0,0,ROUND(F794/TotalCap,4))","v":5.8299999999999998E-2}]
[7,null,{"$f":"'FR-16(7)(v)-1 Functional'!C795","v":"UNAMORTIZED DISCOUNT"},null,null,{"$f":"'FR-16(7)(v)-2 PROD Classified'!$F$795","v":0},{"$f":"IF(TotalCap=0,0,ROUND(F795/TotalCap,4))","v":0}]
[8,null,{"$f":"'FR-16(7)(v)-1 Functional'!C796","v":"  TOTAL"},null,null,{"$f":"SUM(F790:F795)","v":1449897246},{"$f":"SUM(G791:G795)","v":1}]
[9]
[10," COST OF CAPITAL"]
[11,null,{"$f":"'FR-16(7)(v)-1 Functional'!C799","v":"LONG TERM DEBT"},null,null,{"$f":"'FR-16(7)(v)-2 PROD Classified'!$F$799","v":4.0730000000000002E-2}]
[12,null,{"$f":"'FR-16(7)(v)-1 Functional'!C800","v":"PREFERRED STOCK"},null,null,{"$f":"'FR-16(7)(v)-2 PROD Classified'!$F$800","v":0}]
[13,null,{"$f":"'FR-16(7)(v)-1 Functional'!C801","v":"COMMON STOCK"},null,null,{"$f":"'FR-16(7)(v)-2 PROD Classified'!$F$801","v":9.8000000000000004E-2}]
[14,null,{"$f":"'FR-16(7)(v)-1 Functional'!C802","v":"SHORT TERM DEBT"},null,null,{"$f":"'FR-16(7)(v)-2 PROD Classified'!$F$802","v":1.9369999999999998E-2}]
[15,null,{"$f":"'FR-16(7)(v)-1 Functional'!C803","v":"UNAMORTIZED DISCOUNT"},null,null,{"$f":"'FR-16(7)(v)-2 PROD Classified'!$F$803","v":0}]
[16]
[17," WEIGHTED COST OF CAPITAL"]
[18,null,{"$f":"'FR-16(7)(v)-1 Functional'!C806","v":"LONG TERM DEBT"},null,null,{"$f":"ROUND(G791*F799,4)","v":1.8700000000000001E-2}]
[19,null,{"$f":"'FR-16(7)(v)-1 Functional'!C807","v":"PREFERRED STOCK"},null,null,{"$f":"ROUND(G792*F800,4)","v":0}]
[20,null,{"$f":"'FR-16(7)(v)-1 Functional'!C808","v":"COMMON STOCK"},null,null,{"$f":"ROUND(G793*F801,4)","v":4.7300000000000002E-2}]
[21,null,{"$f":"'FR-16(7)(v)-1 Functional'!C809","v":"SHORT TERM DEBT"},null,null,{"$f":"ROUND(G794*F802,4)","v":1.1000000000000001E-3}]
[22,null,{"$f":"'FR-16(7)(v)-1 Functional'!C810","v":"UNAMORTIZED DISCOUNT"},null,null,{"$f":"ROUND(G795*F803,4)","v":0}]
[23,null,{"$f":"'FR-16(7)(v)-1 Functional'!C811","v":"  TOT RATE OF RETURN ALLOWABLE"},null,null,{"$f":"SUM(F806:F810)","v":6.7100000000000007E-2}]
[24]
[25,"TAX RATES AND SPECIAL FACTORS"]
[26,null,{"$f":"'FR-16(7)(v)-1 Functional'!C814","v":"SHORT TERM DEBT COST"},null,null,0,{"$f":"F814","v":0},{"$f":"F814","v":0},{"$f":"F814","v":0},{"$f":"G814","v":0},0,0,0,0,0,0,{"$f":"$F$814","v":0},{"$f":"F814","v":0},{"$f":"F814","v":0}]
[27,null,{"$f":"'FR-16(7)(v)-1 Functional'!C815","v":"FEDERAL INCOME TAX RATE"},null,null,{"$f":"FIT","v":0.21},{"$f":"FIT","v":0.21},0.21,0.21,0.21,0.21,0.21,0.21,0.21,0.21,0.21,0.21,0.21,0.21]
[28,null,{"$f":"'FR-16(7)(v)-1 Functional'!C816","v":"STATE INCOME TAX RATE"},null,null,{"$f":"SIT","v":4.9685000000000007E-2},{"$f":"SIT","v":4.9685000000000007E-2},4.9685000000000007E-2,4.9685000000000007E-2,4.9685000000000007E-2,4.9685000000000007E-2,4.9685000000000007E-2,4.9685000000000007E-2,4.9685000000000007E-2,4.9685000000000007E-2,4.9685000000000007E-2,4.9685000000000007E-2,4.9685000000000007E-2,4.9685000000000007E-2]
[29,null,{"$f":"'FR-16(7)(v)-1 Functional'!C817","v":"REVENUE TAX RATE"},null,null,0,{"$f":"RevTax","v":0},0,0,0,0,0,0,0,0,0,0,0,0]
[]
[{"$f":"co_name","v":"DUKE ENERGY KENTUCKY, INC."},null,null,null,null,null,null,null,null,null,null,null,null,null,null,null,null,{"$f":"R1","v":"FR-16(7)(v)-3"}]
[{"$f":"$A$2","v":"PRODUCTION DEMAND ALLOCATED - ELECTRIC COST OF SERVICE"},null,null,null,null,null,null,null,null,null,null,null,null,null,null,null,null,{"$f":"R2","v":"WITNESS RESPONSIBLE:"}]
[{"$f":"case_name","v":"CASE NO: 2019-00271"},null,null,null,null,null,null,null,null,null,null,null,null,null,null,null,null,{"$f":"Witness","v":"JAMES E. ZIOLKOWSKI"}]
[{"$f":"data_filing","v":"DATA: 12 MONTHS ACTUAL  & 0 MONTHS ESTIMATED"},null,null,null,null,null,null,null,null,null,null,null,null,null,null,null,null,{"$f":"\"PAGE \"&Pages-2&\" OF \"&Pages","v":"PAGE 16 OF 18"}]
[{"$f":"type","v":"TYPE OF FILING: \"X\" ORIGINAL   UPDATED    REVISED  "}]
[]
[null,null,null,null,null,{"$f":"F$7","v":"TOTAL"},null,{"$f":"H$7","v":"DS"},{"$f":"I$7","v":"GSFL"},{"$f":"J$7","v":"EH"},{"$f":"K$7","v":"SP"},"DT SEC","DT PRI","DP","TT",null,"OTHER"]
["LINE",null,null,null,null,{"$f":"F$8","v":"PRODUCTION"},{"$f":"G$8","v":"RS"},{"$f":"H$8","v":"SECONDARY"},{"$f":"I$8","v":"SECONDARY"},{"$f":"J$8","v":"SECONDARY"},{"$f":"K$8","v":"SECONDARY"},"SECONDARY","PRIMARY","PRIMARY","TRANSMISSION","LT","WATER",{"$f":"R8","v":"TOTAL"},"ALL",null,null,null,"RATE GRP"]
["NO.","ALLOCATORS",null,"SOURCE","ALLO",{"$f":"F$9","v":"DEMAND"},{"$f":"G$9","v":"RESIDENTIAL"},{"$f":"H$9","v":"DISTRIBUTION"},{"$f":"I$9","v":"DISTRIBUTION"},{"$f":"J$9","v":"DISTRIBUTION"},{"$f":"K$9","v":"DISTRIBUTION"},"DISTRIBUTION","DISTRIBUTION","DISTRIBUTION","TIME OF DAY","LIGHTING","PUMPING",{"$f":"R9","v":"AT ISSUE"},"OTHER",null,null,null,"CHECK"]
[null,null,"Schedule 12",null,1,null,{"$f":"G$10","v":3},{"$f":"H$10","v":4},{"$f":"I$10","v":5},{"$f":"J$10","v":6},{"$f":"K$10","v":7},8,9,10,11,12,13,null," "]
[1,"DEMAND ENERGY & SPEC. ASSIGN"]
[2,null,"TOTAL KW (12 COIN PEAK) - PRODUCTION","External",null,{"$f":"'WP FR-16(7)(v)-KW & KWH @Gen'!$D$38","v":717751},{"$f":"'WP FR-16(7)(v)-KW & KWH @Gen'!$D$17","v":323558},{"$f":"'WP FR-16(7)(v)-KW & KWH @Gen'!$D$18+'WP FR-16(7)(v)-KW & KWH @Gen'!$D$31","v":194251},{"$f":"'WP FR-16(7)(v)-KW & KWH @Gen'!$D$19","v":933},{"$f":"'WP FR-16(7)(v)-KW & KWH @Gen'!$D$20","v":3682},{"$f":"'WP FR-16(7)(v)-KW & KWH @Gen'!$D$21","v":51},{"$f":"'WP FR-16(7)(v)-KW & KWH @Gen'!$D$22+'WP FR-16(7)(v)-KW & KWH @Gen'!$D$32","v":96851},{"$f":"'WP FR-16(7)(v)-KW & KWH @Gen'!$D$23","v":64029},{"$f":"'WP FR-16(7)(v)-KW & KWH @Gen'!$D$24","v":3090},{"$f":"'WP FR-16(7)(v)-KW & KWH @Gen'!$D$25+'WP FR-16(7)(v)-KW & KWH @Gen'!$D$35","v":30336},{"$f":"'WP FR-16(7)(v)-KW & KWH @Gen'!$D$26","v":891},{"$f":"'WP FR-16(7)(v)-KW & KWH @Gen'!$D$27","v":79},{"$f":"SUM(G830:Q830)","v":717751},{"$f":"F830-R830","v":0}]
[3,null,{"$f":"'FR-16(7)(v)-1 Functional'!C831","v":"RATIO TO TOTAL ELECTRIC"},null,{"$f":"'FR-16(7)(v)-1 Functional'!E831","v":"K201"},{"$f":"IF(F830=0,0,ROUND(F830/F830,5))","v":1},{"$f":"IF(S830=0,F831-SUM(H831:Q831),ROUND(G830/F830,5))","v":0.45077999999999985},{"$f":"IF(F830=0,0,ROUND(H830/F830,5))","v":0.27063999999999999},{"$f":"IF(F830=0,0,ROUND(I830/F830,5))","v":1.2999999999999999E-3},{"$f":"IF(F830=0,0,ROUND(J830/F830,5))","v":5.13E-3},{"$f":"IF(F830=0,0,ROUND(K830/F830,5))","v":6.9999999999999994E-5},{"$f":"IF(F830=0,0,ROUND(L830/F830,5))","v":0.13494},{"$f":"IF(F830=0,0,ROUND(M830/F830,5))","v":8.9209999999999998E-2},{"$f":"IF(F830=0,0,ROUND(N830/F830,5))","v":4.3099999999999996E-3},{"$f":"IF(F830=0,0,ROUND(O830/F830,5))","v":4.2270000000000002E-2},{"$f":"IF(F830=0,0,ROUND(P830/F830,5))","v":1.24E-3},{"$f":"IF(F830=0,0,ROUND(Q830/F830,5))","v":1.1E-4},0.99999999999999989,0,null,null,null,{"$f":"R831","v":0.99999999999999989}]
[4,null,"TOTAL KW (12 COIN PEAK) - TRANSMISSION","External",null,{"$f":"'WP FR-16(7)(v)-KW & KWH @Gen'!D38","v":717751},{"$f":"'WP FR-16(7)(v)-KW & KWH @Gen'!D17","v":323558},{"$f":"'WP FR-16(7)(v)-KW & KWH @Gen'!D18+'WP FR-16(7)(v)-KW & KWH @Gen'!D31","v":194251},{"$f":"'WP FR-16(7)(v)-KW & KWH @Gen'!D19","v":933},{"$f":"'WP FR-16(7)(v)-KW & KWH @Gen'!D20","v":3682},{"$f":"'WP FR-16(7)(v)-KW & KWH @Gen'!D21","v":51},{"$f":"'WP FR-16(7)(v)-KW & KWH @Gen'!D22+'WP FR-16(7)(v)-KW & KWH @Gen'!D32","v":96851},{"$f":"'WP FR-16(7)(v)-KW & KWH @Gen'!D23","v":64029},{"$f":"'WP FR-16(7)(v)-KW & KWH @Gen'!D24","v":3090},{"$f":"'WP FR-16(7)(v)-KW & KWH @Gen'!D25+'WP FR-16(7)(v)-KW & KWH @Gen'!D35","v":30336},{"$f":"'WP FR-16(7)(v)-KW & KWH @Gen'!D26","v":891},{"$f":"'WP FR-16(7)(v)-KW & KWH @Gen'!D27","v":79},{"$f":"SUM(G832:Q832)","v":717751},0]
[5,null,{"$f":"'FR-16(7)(v)-1 Functional'!C833","v":"RATIO TO TOTAL ELECTRIC"},null,"K202",{"$f":"IF(F832=0,0,ROUND(F832/F832,5))","v":1},{"$f":"IF(S832=0,F833-SUM(H833:Q833),ROUND(G832/F832,5))","v":0.45077999999999985},{"$f":"IF(F832=0,0,ROUND(H832/F832,5))","v":0.27063999999999999},{"$f":"IF(F832=0,0,ROUND(I832/F832,5))","v":1.2999999999999999E-3},{"$f":"IF(F832=0,0,ROUND(J832/F832,5))","v":5.13E-3},{"$f":"IF(F832=0,0,ROUND(K832/F832,5))","v":6.9999999999999994E-5},{"$f":"IF(F832=0,0,ROUND(L832/F832,5))","v":0.13494},{"$f":"IF(F832=0,0,ROUND(M832/F832,5))","v":8.9209999999999998E-2},{"$f":"IF(F832=0,0,ROUND(N832/F832,5))","v":4.3099999999999996E-3},{"$f":"IF(F832=0,0,ROUND(O832/F832,5))","v":4.2270000000000002E-2},{"$f":"IF(F832=0,0,ROUND(P832/F832,5))","v":1.24E-3},{"$f":"IF(F832=0,0,ROUND(Q832/F832,5))","v":1.1E-4},{"$f":"SUM(G833:Q833)","v":0.99999999999999989},0]
[6,null,{"$f":"'FR-16(7)(v)-1 Functional'!C834","v":"DISTRIBUTION KW (NON-COIN PEAK) "},"External",null,{"$f":"'WP FR-16(7)(v)-KW & KWH @Dist'!D39","v":1514633},{"$f":"'WP FR-16(7)(v)-KW & KWH @Dist'!D18","v":899439},{"$f":"'WP FR-16(7)(v)-KW & KWH @Dist'!D19+'WP FR-16(7)(v)-KW & KWH @Dist'!D32","v":321857},{"$f":"'WP FR-16(7)(v)-KW & KWH @Dist'!D20","v":1158},{"$f":"'WP FR-16(7)(v)-KW & KWH @Dist'!D21","v":10653},{"$f":"'WP FR-16(7)(v)-KW & KWH @Dist'!D22","v":109},{"$f":"'WP FR-16(7)(v)-KW & KWH @Dist'!D23+'WP FR-16(7)(v)-KW & KWH @Dist'!D33","v":138051},{"$f":"'WP FR-16(7)(v)-KW & KWH @Dist'!D24+'WP FR-16(7)(v)-KW & KWH @Dist'!D34","v":84382},{"$f":"'WP FR-16(7)(v)-KW & KWH @Dist'!D25+'WP FR-16(7)(v)-KW & KWH @Dist'!D35","v":5687},{"$f":"'WP FR-16(7)(v)-KW & KWH @Dist'!D26+'WP FR-16(7)(v)-KW & KWH @Dist'!D36","v":45755},{"$f":"'WP FR-16(7)(v)-KW & KWH @Dist'!D27","v":7098},{"$f":"'WP FR-16(7)(v)-KW & KWH @Dist'!D28","v":444},1514633,0]
[7,null,{"$f":"'FR-16(7)(v)-1 Functional'!C835","v":"RATIO TO TOTAL ELECTRIC"},null,{"$f":"'FR-16(7)(v)-1 Functional'!E835","v":"K203"},{"$f":"IF(F834=0,0,ROUND(F834/F834,5))","v":1},{"$f":"IF(S834=0,F835-SUM(H835:Q835),ROUND(G834/F834,5))","v":0.59384999999999999},{"$f":"IF(F834=0,0,ROUND(H834/F834,5))","v":0.21249999999999999},{"$f":"IF(F834=0,0,ROUND(I834/F834,5))","v":7.6000000000000004E-4},{"$f":"IF(F834=0,0,ROUND(J834/F834,5))","v":7.0299999999999998E-3},{"$f":"IF(F834=0,0,ROUND(K834/F834,5))","v":6.9999999999999994E-5},{"$f":"IF(F834=0,0,ROUND(L834/F834,5))","v":9.1139999999999999E-2},{"$f":"IF(F834=0,0,ROUND(M834/F834,5))","v":5.5710000000000003E-2},{"$f":"IF(F834=0,0,ROUND(N834/F834,5))","v":3.7499999999999999E-3},{"$f":"IF(F834=0,0,ROUND(O834/F834,5))","v":3.0210000000000001E-2},{"$f":"IF(F834=0,0,ROUND(P834/F834,5))","v":4.6899999999999997E-3},{"$f":"IF(F834=0,0,ROUND(Q834/F834,5))","v":2.9E-4},{"$f":"SUM(G835:Q835)","v":1},0,null,null,null,{"$f":"R835","v":1}]
[8,null,"DISTRIBUTION LINE - PRIMARY","External",null,{"$f":"'WP FR-16(7)(v) Distlines'!G38","v":731338},{"$f":"'WP FR-16(7)(v) Distlines'!$G$17","v":343307},{"$f":"'WP FR-16(7)(v) Distlines'!$G$18+'WP FR-16(7)(v) Distlines'!$G$31","v":202748},{"$f":"'WP FR-16(7)(v) Distlines'!$G$19","v":945},{"$f":"'WP FR-16(7)(v) Distlines'!$G$20","v":4447},{"$f":"'WP FR-16(7)(v) Distlines'!$G$21","v":53},{"$f":"'WP FR-16(7)(v) Distlines'!$G$22+'WP FR-16(7)(v) Distlines'!$G$32","v":103544},{"$f":"'WP FR-16(7)(v) Distlines'!$G$23+'WP FR-16(7)(v) Distlines'!$G$33","v":68199},{"$f":"'WP FR-16(7)(v) Distlines'!$G$24+'WP FR-16(7)(v) Distlines'!$G$34","v":3420},{"$f":"'WP FR-16(7)(v) Distlines'!$G$25+'WP FR-16(7)(v) Distlines'!$G$35","v":0},{"$f":"'WP FR-16(7)(v) Distlines'!$G$26","v":4595},{"$f":"'WP FR-16(7)(v) Distlines'!$G$27","v":80},731338,0]
[9,null,{"$f":"'FR-16(7)(v)-1 Functional'!C837","v":"RATIO TO TOTAL ELECTRIC"},null,{"$f":"'FR-16(7)(v)-1 Functional'!E837","v":"K205"},{"$f":"IF(F836=0,0,ROUND(F836/F836,5))","v":1},{"$f":"IF(S836=0,F837-SUM(H837:Q837),ROUND(G836/F836,5))","v":0.4694299999999999},{"$f":"IF(F836=0,0,ROUND(H836/F836,5))","v":0.27722999999999998},{"$f":"IF(F836=0,0,ROUND(I836/F836,5))","v":1.2899999999999999E-3},{"$f":"IF(F836=0,0,ROUND(J836/F836,5))","v":6.0800000000000003E-3},{"$f":"IF(F836=0,0,ROUND(K836/F836,5))","v":6.9999999999999994E-5},{"$f":"IF(F836=0,0,ROUND(L836/F836,5))","v":0.14158000000000001},{"$f":"IF(F836=0,0,ROUND(M836/F836,5))","v":9.325E-2},{"$f":"IF(F836=0,0,ROUND(N836/F836,5))","v":4.6800000000000001E-3},{"$f":"IF(F836=0,0,ROUND(O836/F836,5))","v":0},{"$f":"IF(F836=0,0,ROUND(P836/F836,5))","v":6.28E-3},{"$f":"IF(F836=0,0,ROUND(Q836/F836,5))","v":1.1E-4},{"$f":"SUM(G837:Q837)","v":0.99999999999999989},0,null,null,null,{"$f":"R837","v":0.99999999999999989}]
[10,null,"DISTRIBUTION LINE - SECONDARY","External",null,{"$f":"'WP FR-16(7)(v) Distlines'!K38","v":731338},{"$f":"'WP FR-16(7)(v) Distlines'!K17","v":343307},{"$f":"'WP FR-16(7)(v) Distlines'!K18+'WP FR-16(7)(v) Distlines'!K31","v":202748},{"$f":"'WP FR-16(7)(v) Distlines'!K19","v":945},{"$f":"'WP FR-16(7)(v) Distlines'!K20","v":4447},{"$f":"'WP FR-16(7)(v) Distlines'!K21","v":53},{"$f":"'WP FR-16(7)(v) Distlines'!K22+'WP FR-16(7)(v) Distlines'!K32","v":103544},{"$f":"'WP FR-16(7)(v) Distlines'!K23","v":68199},{"$f":"'WP FR-16(7)(v) Distlines'!K24+'WP FR-16(7)(v) Distlines'!K34","v":3420},{"$f":"'WP FR-16(7)(v) Distlines'!K25+'WP FR-16(7)(v) Distlines'!K35","v":0},{"$f":"'WP FR-16(7)(v) Distlines'!K26","v":4595},{"$f":"'WP FR-16(7)(v) Distlines'!K27","v":80},{"$f":"SUM(G838:Q838)","v":731338},{"$f":"F838-R838","v":0}]
[11,null,{"$f":"'FR-16(7)(v)-1 Functional'!C839","v":"RATIO TO TOTAL ELECTRIC"},null,"K206",{"$f":"IF(F838=0,0,ROUND(F838/F838,5))","v":1},{"$f":"IF(S838=0,F839-SUM(H839:Q839),ROUND(G838/F838,5))","v":0.4694299999999999},{"$f":"IF(F838=0,0,ROUND(H838/F838,5))","v":0.27722999999999998},{"$f":"IF(F838=0,0,ROUND(I838/F838,5))","v":1.2899999999999999E-3},{"$f":"IF(F838=0,0,ROUND(J838/F838,5))","v":6.0800000000000003E-3},{"$f":"IF(F838=0,0,ROUND(K838/F838,5))","v":6.9999999999999994E-5},{"$f":"IF(F838=0,0,ROUND(L838/F838,5))","v":0.14158000000000001},{"$f":"IF($F$838=0,0,ROUND(M838/$F$838,5))","v":9.325E-2},{"$f":"IF($F$838=0,0,ROUND(N838/$F$838,5))","v":4.6800000000000001E-3},{"$f":"IF($F$838=0,0,ROUND(O838/$F$838,5))","v":0},{"$f":"IF($F$838=0,0,ROUND(P838/$F$838,5))","v":6.28E-3},{"$f":"IF($F$838=0,0,ROUND(Q838/$F$838,5))","v":1.1E-4},{"$f":"SUM(G839:Q839)","v":0.99999999999999989},{"$f":"F839-R839","v":0}]
[12,null,{"$f":"'FR-16(7)(v)-1 Functional'!C840","v":"GROSS DISTRIBUTION PLANT EXCL. CCNC"},"External",null,{"$f":"SUM(F73:F90)","v":0},{"$f":"SUM(G73:G90)","v":0},0,0,0,0,0,0,0,0,0,0,0,0]
[13,null,{"$f":"'FR-16(7)(v)-1 Functional'!C841","v":"RATIO TO TOTAL ELECTRIC"},null,{"$f":"'FR-16(7)(v)-1 Functional'!E841","v":"K209"},{"$f":"IF(F840=0,0,ROUND(F840/F840,5))","v":0},{"$f":"IF(S840=0,F841-SUM(H841:Q841),ROUND(G840/F840,5))","v":0},{"$f":"IF(F840=0,0,ROUND(H840/F840,5))","v":0},{"$f":"IF(F840=0,0,ROUND(I840/F840,5))","v":0},{"$f":"IF(F840=0,0,ROUND(J840/F840,5))","v":0},{"$f":"IF(F840=0,0,ROUND(K840/F840,5))","v":0},{"$f":"IF(F840=0,0,ROUND(L840/F840,5))","v":0},{"$f":"IF(F840=0,0,ROUND(M840/F840,5))","v":0},{"$f":"IF(F840=0,0,ROUND(N840/F840,5))","v":0},{"$f":"IF(F840=0,0,ROUND(O840/F840,5))","v":0},{"$f":"IF(F840=0,0,ROUND(P840/F840,5))","v":0},{"$f":"IF(F840=0,0,ROUND(Q840/F840,5))","v":0},{"$f":"SUM(G841:Q841)","v":0},0,null,null,null,{"$f":"R841","v":0}]
[14,null,{"$f":"'FR-16(7)(v)-1 Functional'!C842","v":"TOTAL DIVERSIFIED CLASS DEMANDS"},"External",null,{"$f":"'WP FR-16(7)(v)-KW & KWH @Dist'!L39","v":731338},{"$f":"'WP FR-16(7)(v)-KW & KWH @Dist'!L18","v":343307},{"$f":"'WP FR-16(7)(v)-KW & KWH @Dist'!L19+'WP FR-16(7)(v)-KW & KWH @Dist'!L32","v":202748},{"$f":"'WP FR-16(7)(v)-KW & KWH @Dist'!L20","v":945},{"$f":"'WP FR-16(7)(v)-KW & KWH @Dist'!L21","v":4447},{"$f":"'WP FR-16(7)(v)-KW & KWH @Dist'!L22","v":53},{"$f":"'WP FR-16(7)(v)-KW & KWH @Dist'!L23+'WP FR-16(7)(v)-KW & KWH @Dist'!L33","v":103544},{"$f":"'WP FR-16(7)(v)-KW & KWH @Dist'!L24","v":68199},{"$f":"'WP FR-16(7)(v)-KW & KWH @Dist'!L25","v":3420},{"$f":"'WP FR-16(7)(v)-KW & KWH @Dist'!L26","v":0},{"$f":"'WP FR-16(7)(v)-KW & KWH @Dist'!L27","v":4595},{"$f":"'WP FR-16(7)(v)-KW & KWH @Dist'!L28","v":80},731338,0]
[15,null,{"$f":"'FR-16(7)(v)-1 Functional'!C843","v":"RATIO TO TOTAL ELECTRIC"},null,{"$f":"'FR-16(7)(v)-1 Functional'!E843","v":"K215"},{"$f":"IF(F842=0,0,ROUND(F842/F842,5))","v":1},{"$f":"IF(S842=0,F843-SUM(H843:Q843),ROUND(G842/F842,5))","v":0.4694299999999999},{"$f":"IF(F842=0,0,ROUND(H842/F842,5))","v":0.27722999999999998},{"$f":"IF(F842=0,0,ROUND(I842/F842,5))","v":1.2899999999999999E-3},{"$f":"IF(F842=0,0,ROUND(J842/F842,5))","v":6.0800000000000003E-3},{"$f":"IF(F842=0,0,ROUND(K842/F842,5))","v":6.9999999999999994E-5},{"$f":"IF(F842=0,0,ROUND(L842/F842,5))","v":0.14158000000000001},{"$f":"IF(F842=0,0,ROUND(M842/F842,5))","v":9.325E-2},{"$f":"IF(F842=0,0,ROUND(N842/F842,5))","v":4.6800000000000001E-3},{"$f":"IF(F842=0,0,ROUND(O842/F842,5))","v":0},{"$f":"IF(F842=0,0,ROUND(P842/F842,5))","v":6.28E-3},{"$f":"IF(F842=0,0,ROUND(Q842/F842,5))","v":1.1E-4},{"$f":"SUM(G843:Q843)","v":0.99999999999999989},0,null,null,null,{"$f":"R843","v":0.99999999999999989}]
[16,null,{"$f":"'FR-16(7)(v)-1 Functional'!C844","v":"WEIGHTED CUSTOMER SERVICE"},"External",null,{"$f":"'WP FR-16(7)(v) Wtd services'!H38","v":143810},{"$f":"'WP FR-16(7)(v) Wtd services'!H17","v":128431},{"$f":"'WP FR-16(7)(v) Wtd services'!H18","v":12968},{"$f":"'WP FR-16(7)(v) Wtd services'!H19","v":172},{"$f":"'WP FR-16(7)(v) Wtd services'!H20","v":412},{"$f":"'WP FR-16(7)(v) Wtd services'!H21","v":14},{"$f":"'WP FR-16(7)(v) Wtd services'!H22","v":930},{"$f":"'WP FR-16(7)(v) Wtd services'!H23","v":222},{"$f":"'WP FR-16(7)(v) Wtd services'!H24","v":60},{"$f":"'WP FR-16(7)(v) Wtd services'!H25","v":66},{"$f":"'WP FR-16(7)(v) Wtd services'!H26","v":468},{"$f":"'WP FR-16(7)(v) Wtd services'!H27","v":11},143754,56]
[17,null,{"$f":"'FR-16(7)(v)-1 Functional'!C845","v":"RATIO TO TOTAL ELECTRIC"},null,{"$f":"'FR-16(7)(v)-1 Functional'!E845","v":"K217"},{"$f":"IF(F844=0,0,ROUND(F844/F844,5))","v":1},{"$f":"IF(S844=0,F845-SUM(H845:Q845),ROUND(G844/F844,5))","v":0.89305999999999996},{"$f":"IF(F844=0,0,ROUND(H844/F844,5))","v":9.017E-2},{"$f":"IF(F844=0,0,ROUND(I844/F844,5))","v":1.1999999999999999E-3},{"$f":"IF(F844=0,0,ROUND(J844/F844,5))","v":2.8600000000000001E-3},{"$f":"IF(F844=0,0,ROUND(K844/F844,5))","v":1E-4},{"$f":"IF(F844=0,0,ROUND(L844/F844,5))","v":6.4700000000000001E-3},{"$f":"IF(F844=0,0,ROUND(M844/F844,5))","v":1.5399999999999999E-3},{"$f":"IF(F844=0,0,ROUND(N844/F844,5))","v":4.2000000000000002E-4},{"$f":"IF(F844=0,0,ROUND(O844/F844,5))","v":4.6000000000000001E-4},{"$f":"IF(F844=0,0,ROUND(P844/F844,5))","v":3.2499999999999999E-3},{"$f":"IF(F844=0,0,ROUND(Q844/F844,5))","v":8.0000000000000007E-5},{"$f":"SUM(G845:Q845)","v":0.99960999999999978},3.900000000002235E-4,null,null,null,{"$f":"R845","v":0.99960999999999978}]
[18,null,{"$f":"'FR-16(7)(v)-1 Functional'!C846","v":"TOTAL KWH"},"External",null,{"$f":"'WP FR-16(7)(v)-KW & KWH @Gen'!F38","v":4261970981},{"$f":"'WP FR-16(7)(v)-KW & KWH @Gen'!$F$17","v":1608724299},{"$f":"'WP FR-16(7)(v)-KW & KWH @Gen'!$F$18+'WP FR-16(7)(v)-KW & KWH @Gen'!$F$31","v":1147823576},{"$f":"'WP FR-16(7)(v)-KW & KWH @Gen'!$F$19","v":6420710},{"$f":"'WP FR-16(7)(v)-KW & KWH @Gen'!$F$20","v":18228802},{"$f":"'WP FR-16(7)(v)-KW & KWH @Gen'!$F$21","v":298034},{"$f":"'WP FR-16(7)(v)-KW & KWH @Gen'!$F$22+'WP FR-16(7)(v)-KW & KWH @Gen'!$F$32","v":703280622},{"$f":"'WP FR-16(7)(v)-KW & KWH @Gen'!$F$23","v":488455966},{"$f":"'WP FR-16(7)(v)-KW & KWH @Gen'!$F$24","v":22905598},{"$f":"'WP FR-16(7)(v)-KW & KWH @Gen'!$F$25+'WP FR-16(7)(v)-KW & KWH @Gen'!$F$35","v":246755000},{"$f":"'WP FR-16(7)(v)-KW & KWH @Gen'!$F$26","v":18599129},{"$f":"'WP FR-16(7)(v)-KW & KWH @Gen'!$F$27","v":479245},4261970981,0]
[19,null,{"$f":"'FR-16(7)(v)-1 Functional'!C847","v":"RATIO TO TOTAL ELECTRIC"},null,{"$f":"'FR-16(7)(v)-1 Functional'!E847","v":"K301"},{"$f":"IF(F846=0,0,ROUND(F846/F846,5))","v":1},{"$f":"IF(S846=0,F847-SUM(H847:Q847),ROUND(G846/F846,5))","v":0.37745999999999991},{"$f":"IF(F846=0,0,ROUND(H846/F846,5))","v":0.26932},{"$f":"IF(F846=0,0,ROUND(I846/F846,5))","v":1.5100000000000001E-3},{"$f":"IF(F846=0,0,ROUND(J846/F846,5))","v":4.28E-3},{"$f":"IF(F846=0,0,ROUND(K846/F846,5))","v":6.9999999999999994E-5},{"$f":"IF(F846=0,0,ROUND(L846/F846,5))","v":0.16500999999999999},{"$f":"IF(F846=0,0,ROUND(M846/F846,5))","v":0.11461},{"$f":"IF(F846=0,0,ROUND(N846/F846,5))","v":5.3699999999999998E-3},{"$f":"IF(F846=0,0,ROUND(O846/F846,5))","v":5.79E-2},{"$f":"IF(F846=0,0,ROUND(P846/F846,5))","v":4.3600000000000002E-3},{"$f":"IF(F846=0,0,ROUND(Q846/F846,5))","v":1.1E-4},{"$f":"SUM(G847:Q847)","v":0.99999999999999989},0,null,null,null,{"$f":"R847","v":0.99999999999999989}]
[20,null,{"$f":"'FR-16(7)(v)-1 Functional'!C848","v":"DISTRIBUTION KWH"},"External",null,{"$f":"'WP FR-16(7)(v)-KW & KWH @Dist'!F39","v":4261970981},{"$f":"'WP FR-16(7)(v)-KW & KWH @Dist'!F18","v":1608724299},{"$f":"'WP FR-16(7)(v)-KW & KWH @Dist'!F19+'WP FR-16(7)(v)-KW & KWH @Dist'!F32","v":1147823576},{"$f":"'WP FR-16(7)(v)-KW & KWH @Dist'!F20","v":6420710},{"$f":"'WP FR-16(7)(v)-KW & KWH @Dist'!F21","v":18228802},{"$f":"'WP FR-16(7)(v)-KW & KWH @Dist'!F22","v":298034},{"$f":"'WP FR-16(7)(v)-KW & KWH @Dist'!F23+'WP FR-16(7)(v)-KW & KWH @Dist'!F33","v":703280622},{"$f":"'WP FR-16(7)(v)-KW & KWH @Dist'!F24","v":488455966},{"$f":"'WP FR-16(7)(v)-KW & KWH @Dist'!F25","v":22905598},{"$f":"'WP FR-16(7)(v)-KW & KWH @Dist'!F26","v":232255694},{"$f":"'WP FR-16(7)(v)-KW & KWH @Dist'!F27","v":18599129},{"$f":"'WP FR-16(7)(v)-KW & KWH @Dist'!F28","v":479245},4247471675,14499306]
[21,null,{"$f":"'FR-16(7)(v)-1 Functional'!C849","v":"RATIO TO TOTAL ELECTRIC"},null,{"$f":"'FR-16(7)(v)-1 Functional'!E849","v":"K303"},{"$f":"IF(F848=0,0,ROUND(F848/F848,5))","v":1},{"$f":"IF(S848=0,F849-SUM(H849:Q849),ROUND(G848/F848,5))","v":0.37746000000000002},{"$f":"IF(F848=0,0,ROUND(H848/F848,5))","v":0.26932},{"$f":"IF(F848=0,0,ROUND(I848/F848,5))","v":1.5100000000000001E-3},{"$f":"IF(F848=0,0,ROUND(J848/F848,5))","v":4.28E-3},{"$f":"IF(F848=0,0,ROUND(K848/F848,5))","v":6.9999999999999994E-5},{"$f":"IF(F848=0,0,ROUND(L848/F848,5))","v":0.16500999999999999},{"$f":"IF(F848=0,0,ROUND(M848/F848,5))","v":0.11461},{"$f":"IF(F848=0,0,ROUND(N848/F848,5))","v":5.3699999999999998E-3},{"$f":"IF(F848=0,0,ROUND(O848/F848,5))","v":5.4489999999999997E-2},{"$f":"IF(F848=0,0,ROUND(P848/F848,5))","v":4.3600000000000002E-3},{"$f":"IF(F848=0,0,ROUND(Q848/F848,5))","v":1.1E-4},{"$f":"SUM(G849:Q849)","v":0.99659000000000009},3.4099999999999131E-3,null,null,null,{"$f":"R849","v":0.99659000000000009}]
[22,null,{"$f":"'FR-16(7)(v)-1 Functional'!C850","v":"TOTAL KWH LESS LIGHTING"},"External",null,{"$f":"'WP FR-16(7)(v)-KW & KWH @Gen'!F38-'WP FR-16(7)(v)-KW & KWH @Gen'!F26","v":4243371852},{"$f":"'WP FR-16(7)(v)-KW & KWH @Gen'!F17","v":1608724299},{"$f":"'WP FR-16(7)(v)-KW & KWH @Gen'!F18+'WP FR-16(7)(v)-KW & KWH @Gen'!F31","v":1147823576},{"$f":"'WP FR-16(7)(v)-KW & KWH @Gen'!F19","v":6420710},{"$f":"'WP FR-16(7)(v)-KW & KWH @Gen'!F20","v":18228802},{"$f":"'WP FR-16(7)(v)-KW & KWH @Gen'!F21","v":298034},{"$f":"'WP FR-16(7)(v)-KW & KWH @Gen'!F22+'WP FR-16(7)(v)-KW & KWH @Gen'!F32","v":703280622},{"$f":"'WP FR-16(7)(v)-KW & KWH @Gen'!F23","v":488455966},{"$f":"'WP FR-16(7)(v)-KW & KWH @Gen'!F24","v":22905598},{"$f":"'WP FR-16(7)(v)-KW & KWH @Gen'!F25+'WP FR-16(7)(v)-KW & KWH @Gen'!F35","v":246755000},0,{"$f":"'WP FR-16(7)(v)-KW & KWH @Gen'!F27","v":479245},4243371852,0]
[23,null,{"$f":"'FR-16(7)(v)-1 Functional'!C851","v":"RATIO TO TOTAL ELECTRIC"},null,{"$f":"'FR-16(7)(v)-1 Functional'!E851","v":"K305"},{"$f":"IF(F850=0,0,ROUND(F850/F850,5))","v":1},{"$f":"IF(S850=0,F851-SUM(H851:Q851),ROUND(G850/F850,5))","v":0.37910999999999984},{"$f":"IF(F850=0,0,ROUND(H850/F850,5))","v":0.27050000000000002},{"$f":"IF(F850=0,0,ROUND(I850/F850,5))","v":1.5100000000000001E-3},{"$f":"IF(F850=0,0,ROUND(J850/F850,5))","v":4.3E-3},{"$f":"IF(F850=0,0,ROUND(K850/F850,5))","v":6.9999999999999994E-5},{"$f":"IF(F850=0,0,ROUND(L850/F850,5))","v":0.16574},{"$f":"IF(F850=0,0,ROUND(M850/F850,5))","v":0.11511},{"$f":"IF(F850=0,0,ROUND(N850/F850,5))","v":5.4000000000000003E-3},{"$f":"IF(F850=0,0,ROUND(O850/F850,5))","v":5.815E-2},{"$f":"IF(F850=0,0,ROUND(P850/F850,5))","v":0},{"$f":"IF(F850=0,0,ROUND(Q850/F850,5))","v":1.1E-4},{"$f":"SUM(G851:Q851)","v":0.99999999999999989},0,null,null,null,{"$f":"R851","v":0.99999999999999989}]
[24,null,{"$f":"'FR-16(7)(v)-1 Functional'!C852","v":"ASSIGN 100% TO RESIDENTIAL"},"External",null,1,1,0,0,0,0,0,0,0,0,0,0,1,0]
[25,null,{"$f":"'FR-16(7)(v)-1 Functional'!C853","v":"RATIO TO TOTAL ELECTRIC"},null,{"$f":"'FR-16(7)(v)-1 Functional'!E853","v":"K307"},{"$f":"IF(F852=0,0,ROUND(F852/F852,5))","v":1},{"$f":"IF(S852=0,F853-SUM(H853:Q853),ROUND(G852/F852,5))","v":1},{"$f":"IF(F852=0,0,ROUND(H852/F852,5))","v":0},{"$f":"IF(F852=0,0,ROUND(I852/F852,5))","v":0},{"$f":"IF(F852=0,0,ROUND(J852/F852,5))","v":0},{"$f":"IF(F852=0,0,ROUND(K852/F852,5))","v":0},{"$f":"IF(F852=0,0,ROUND(L852/F852,5))","v":0},{"$f":"IF(F852=0,0,ROUND(M852/F852,5))","v":0},{"$f":"IF(F852=0,0,ROUND(N852/F852,5))","v":0},{"$f":"IF(F852=0,0,ROUND(O852/F852,5))","v":0},{"$f":"IF(F852=0,0,ROUND(P852/F852,5))","v":0},{"$f":"IF(F852=0,0,ROUND(Q852/F852,5))","v":0},{"$f":"SUM(G853:Q853)","v":1},0,null,null,null,{"$f":"R853","v":1}]
[26,null,{"$f":"'FR-16(7)(v)-1 Functional'!C854","v":"ASSIGN 100% TO LIGHTING"},"External",null,1,0,0,0,0,0,0,0,0,0,1,0,1,0]
[27,null,{"$f":"'FR-16(7)(v)-1 Functional'!C855","v":"RATIO TO TOTAL ELECTRIC"},null,{"$f":"'FR-16(7)(v)-1 Functional'!E855","v":"K401"},{"$f":"IF(F854=0,0,ROUND(F854/F854,5))","v":1},{"$f":"IF(S854=0,F855-SUM(H855:Q855),ROUND(G854/F854,5))","v":0},{"$f":"IF(F854=0,0,ROUND(H854/F854,5))","v":0},{"$f":"IF(F854=0,0,ROUND(I854/F854,5))","v":0},{"$f":"IF(F854=0,0,ROUND(J854/F854,5))","v":0},{"$f":"IF(F854=0,0,ROUND(K854/F854,5))","v":0},{"$f":"IF(F854=0,0,ROUND(L854/F854,5))","v":0},{"$f":"IF(F854=0,0,ROUND(M854/F854,5))","v":0},{"$f":"IF(F854=0,0,ROUND(N854/F854,5))","v":0},{"$f":"IF(F854=0,0,ROUND(O854/F854,5))","v":0},{"$f":"IF(F854=0,0,ROUND(P854/F854,5))","v":1},{"$f":"IF(F854=0,0,ROUND(Q854/F854,5))","v":0},{"$f":"SUM(G855:Q855)","v":1},0,null,null,null,{"$f":"R855","v":1}]
[28,null,{"$f":"'FR-16(7)(v)-1 Functional'!C856","v":"DISTRIBUTION CUSTOMERS"},"External",null,{"$f":"'WP FR-16(7)(v)-KW & KWH @Dist'!H39","v":142392},{"$f":"'WP FR-16(7)(v)-KW & KWH @Dist'!$H18","v":128431},{"$f":"'WP FR-16(7)(v)-KW & KWH @Dist'!$H19+'WP FR-16(7)(v)-KW & KWH @Dist'!$H32","v":12972},{"$f":"'WP FR-16(7)(v)-KW & KWH @Dist'!$H20","v":172},{"$f":"'WP FR-16(7)(v)-KW & KWH @Dist'!$H21","v":103},{"$f":"'WP FR-16(7)(v)-KW & KWH @Dist'!$H22","v":14},{"$f":"'WP FR-16(7)(v)-KW & KWH @Dist'!$H23+'WP FR-16(7)(v)-KW & KWH @Dist'!$H33","v":159},{"$f":"'WP FR-16(7)(v)-KW & KWH @Dist'!$H24","v":37},{"$f":"'WP FR-16(7)(v)-KW & KWH @Dist'!$H25","v":10},{"$f":"'WP FR-16(7)(v)-KW & KWH @Dist'!$H26","v":11},{"$f":"'WP FR-16(7)(v)-KW & KWH @Dist'!$H27","v":468},{"$f":"'WP FR-16(7)(v)-KW & KWH @Dist'!$H28","v":11},142388,4]
[29,null,{"$f":"'FR-16(7)(v)-1 Functional'!C857","v":"RATIO TO TOTAL ELECTRIC"},null,{"$f":"'FR-16(7)(v)-1 Functional'!E857","v":"K405"},{"$f":"IF(F856=0,0,ROUND(F856/F856,5))","v":1},{"$f":"IF(S856=0,F857-SUM(H857:Q857),ROUND(G856/F856,5))","v":0.90195000000000003},{"$f":"IF(F856=0,0,ROUND(H856/F856,5))","v":9.11E-2},{"$f":"IF(F856=0,0,ROUND(I856/F856,5))","v":1.2099999999999999E-3},{"$f":"IF(F856=0,0,ROUND(J856/F856,5))","v":7.2000000000000005E-4},{"$f":"IF(F856=0,0,ROUND(K856/F856,5))","v":1E-4},{"$f":"IF(F856=0,0,ROUND(L856/F856,5))","v":1.1199999999999999E-3},{"$f":"IF(F856=0,0,ROUND(M856/F856,5))","v":2.5999999999999998E-4},{"$f":"IF(F856=0,0,ROUND(N856/F856,5))","v":6.9999999999999994E-5},{"$f":"IF(F856=0,0,ROUND(O856/F856,5))","v":8.0000000000000007E-5},{"$f":"IF(F856=0,0,ROUND(P856/F856,5))","v":3.29E-3},{"$f":"IF(F856=0,0,ROUND(Q856/F856,5))","v":8.0000000000000007E-5},{"$f":"SUM(G857:Q857)","v":0.99998000000000009},1.9999999999908979E-5,null,null,null,{"$f":"R857","v":0.99998000000000009}]
[30,null,{"$f":"'FR-16(7)(v)-1 Functional'!C858","v":"METERS"},"External",null,{"$f":"'WP FR-16(7)(v) Meters'!E40","v":15813241},{"$f":"'WP FR-16(7)(v) Meters'!$E19","v":12782441},{"$f":"'WP FR-16(7)(v) Meters'!$E20","v":2892747},{"$f":"'WP FR-16(7)(v) Meters'!$E21","v":0},{"$f":"'WP FR-16(7)(v) Meters'!$E22","v":22093},{"$f":"'WP FR-16(7)(v) Meters'!$E23","v":3451},{"$f":"'WP FR-16(7)(v) Meters'!$E24","v":102877},{"$f":"'WP FR-16(7)(v) Meters'!$E25","v":0},{"$f":"'WP FR-16(7)(v) Meters'!$E26","v":3805},{"$f":"'WP FR-16(7)(v) Meters'!$E27","v":3619},{"$f":"'WP FR-16(7)(v) Meters'!$E28","v":0},{"$f":"'WP FR-16(7)(v) Meters'!$E29","v":2208},15813241,0]
[31,null,{"$f":"'FR-16(7)(v)-1 Functional'!C859","v":"RATIO TO TOTAL ELECTRIC"},null,{"$f":"'FR-16(7)(v)-1 Functional'!E859","v":"K407"},{"$f":"IF(F858=0,0,ROUND(F858/F858,5))","v":1},{"$f":"IF(S858=0,F859-SUM(H859:Q859),ROUND(G858/F858,5))","v":0.80832999999999999},{"$f":"IF(F858=0,0,ROUND(H858/F858,5))","v":0.18293000000000001},{"$f":"IF(F858=0,0,ROUND(I858/F858,5))","v":0},{"$f":"IF(F858=0,0,ROUND(J858/F858,5))","v":1.4E-3},{"$f":"IF(F858=0,0,ROUND(K858/F858,5))","v":2.2000000000000001E-4},{"$f":"IF(F858=0,0,ROUND(L858/F858,5))","v":6.5100000000000002E-3},{"$f":"IF(F858=0,0,ROUND(M858/F858,5))","v":0},{"$f":"IF(F858=0,0,ROUND(N858/F858,5))","v":2.4000000000000001E-4},{"$f":"IF(F858=0,0,ROUND(O858/F858,5))","v":2.3000000000000001E-4},{"$f":"IF(F858=0,0,ROUND(P858/F858,5))","v":0},{"$f":"IF(F858=0,0,ROUND(Q858/F858,5))","v":1.3999999999999999E-4},{"$f":"SUM(G859:Q859)","v":1},0,null,null,null,{"$f":"R859","v":1}]
[32,null,{"$f":"'FR-16(7)(v)-1 Functional'!C860","v":"WEIGHTED CUSTOMER"},"External",null,{"$f":"'WP FR-16(7)(v) Meters'!H40","v":156470},{"$f":"'WP FR-16(7)(v) Meters'!H19","v":128431},{"$f":"'WP FR-16(7)(v) Meters'!H20+'WP FR-16(7)(v) Meters'!H33","v":25940},{"$f":"'WP FR-16(7)(v) Meters'!H21","v":172},{"$f":"'WP FR-16(7)(v) Meters'!H22","v":206},{"$f":"'WP FR-16(7)(v) Meters'!H23","v":28},{"$f":"'WP FR-16(7)(v) Meters'!H24+'WP FR-16(7)(v) Meters'!H34","v":1089},{"$f":"'WP FR-16(7)(v) Meters'!H25+'WP FR-16(7)(v) Meters'!H35","v":37},{"$f":"'WP FR-16(7)(v) Meters'!H26+'WP FR-16(7)(v) Meters'!H36","v":40},{"$f":"'WP FR-16(7)(v) Meters'!H27+'WP FR-16(7)(v) Meters'!H37","v":37},{"$f":"'WP FR-16(7)(v) Meters'!H28","v":468},{"$f":"'WP FR-16(7)(v) Meters'!H29","v":22},156470,0]
[33,null,{"$f":"'FR-16(7)(v)-1 Functional'!C861","v":"RATIO TO TOTAL ELECTRIC"},null,{"$f":"'FR-16(7)(v)-1 Functional'!E861","v":"K409"},{"$f":"IF(F860=0,0,ROUND(F860/F860,5))","v":1},{"$f":"IF(S860=0,F861-SUM(H861:Q861),ROUND(G860/F860,5))","v":0.82079000000000002},{"$f":"IF(F860=0,0,ROUND(H860/F860,5))","v":0.16578000000000001},{"$f":"IF(F860=0,0,ROUND(I860/F860,5))","v":1.1000000000000001E-3},{"$f":"IF(F860=0,0,ROUND(J860/F860,5))","v":1.32E-3},{"$f":"IF(F860=0,0,ROUND(K860/F860,5))","v":1.8000000000000001E-4},{"$f":"IF(F860=0,0,ROUND(L860/F860,5))","v":6.96E-3},{"$f":"IF(F860=0,0,ROUND(M860/F860,5))","v":2.4000000000000001E-4},{"$f":"IF(F860=0,0,ROUND(N860/F860,5))","v":2.5999999999999998E-4},{"$f":"IF(F860=0,0,ROUND(O860/F860,5))","v":2.4000000000000001E-4},{"$f":"IF(F860=0,0,ROUND(P860/F860,5))","v":2.99E-3},{"$f":"IF(F860=0,0,ROUND(Q860/F860,5))","v":1.3999999999999999E-4},{"$f":"SUM(G861:Q861)","v":1},0,null,null,null,{"$f":"R861","v":1}]
[34,null,{"$f":"'FR-16(7)(v)-1 Functional'!C862","v":"UNCOLLECTIBLE ACCOUNT 904"},"External",null,{"$f":"'WP FR-16(7)(v) CustAcct'!G31","v":5781023.7599999998},{"$f":"'WP FR-16(7)(v) CustAcct'!G17","v":5267443},{"$f":"'WP FR-16(7)(v) CustAcct'!G19","v":249785.75999999978},{"$f":"'WP FR-16(7)(v) CustAcct'!G20","v":1597},{"$f":"'WP FR-16(7)(v) CustAcct'!G21","v":1664},{"$f":"'WP FR-16(7)(v) CustAcct'!G22","v":82},{"$f":"'WP FR-16(7)(v) CustAcct'!G23","v":129741},{"$f":"'WP FR-16(7)(v) CustAcct'!G24","v":82815},{"$f":"'WP FR-16(7)(v) CustAcct'!G25","v":3765},{"$f":"'WP FR-16(7)(v) CustAcct'!G26","v":38893},{"$f":"'WP FR-16(7)(v) CustAcct'!G27","v":5192},{"$f":"'WP FR-16(7)(v) CustAcct'!G28","v":46},5781023.7599999998,0]
[35,null,{"$f":"'FR-16(7)(v)-1 Functional'!C864","v":"KWH SALES LESS RTP"},null,{"$f":"'FR-16(7)(v)-1 Functional'!E863","v":"K411"},{"$f":"IF(F862=0,0,ROUND(F862/F862,5))","v":1},{"$f":"IF(S862=0,F863-SUM(H863:Q863),ROUND(G862/F862,5))","v":0.91115000000000002},{"$f":"IF(F862=0,0,ROUND(H862/F862,5))","v":4.3209999999999998E-2},{"$f":"IF(F862=0,0,ROUND(I862/F862,5))","v":2.7999999999999998E-4},{"$f":"IF(F862=0,0,ROUND(J862/F862,5))","v":2.9E-4},{"$f":"IF(F862=0,0,ROUND(K862/F862,5))","v":1.0000000000000001E-5},{"$f":"IF(F862=0,0,ROUND(L862/F862,5))","v":2.2440000000000002E-2},{"$f":"IF(F862=0,0,ROUND(M862/F862,5))","v":1.4330000000000001E-2},{"$f":"IF(F862=0,0,ROUND(N862/F862,5))","v":6.4999999999999997E-4},{"$f":"IF(F862=0,0,ROUND(O862/F862,5))","v":6.7299999999999999E-3},{"$f":"IF(F862=0,0,ROUND(P862/F862,5))","v":8.9999999999999998E-4},{"$f":"IF(F862=0,0,ROUND(Q862/F862,5))","v":1.0000000000000001E-5},{"$f":"SUM(G863:Q863)","v":0.99999999999999989},{"$f":"F864-R864","v":0},null,null,null,{"$f":"R864","v":4244213606}]
[36,null,{"$f":"'FR-16(7)(v)-1 Functional'!C864","v":"KWH SALES LESS RTP"},"External",null,{"$f":"'WP FR-16(7)(v)-KW & KWH @Gen'!F28","v":4244213606},{"$f":"'WP FR-16(7)(v)-KW & KWH @Gen'!F17","v":1608724299},{"$f":"'WP FR-16(7)(v)-KW & KWH @Gen'!F18","v":1146956880},{"$f":"'WP FR-16(7)(v)-KW & KWH @Gen'!F19","v":6420710},{"$f":"'WP FR-16(7)(v)-KW & KWH @Gen'!F20","v":18228802},{"$f":"'WP FR-16(7)(v)-KW & KWH @Gen'!F21","v":298034},{"$f":"'WP FR-16(7)(v)-KW & KWH @Gen'!F22","v":700889249},{"$f":"'WP FR-16(7)(v)-KW & KWH @Gen'!F23","v":488455966},{"$f":"'WP FR-16(7)(v)-KW & KWH @Gen'!F24","v":22905598},{"$f":"'WP FR-16(7)(v)-KW & KWH @Gen'!F25","v":232255694},{"$f":"'WP FR-16(7)(v)-KW & KWH @Gen'!F26","v":18599129},{"$f":"'WP FR-16(7)(v)-KW & KWH @Gen'!F27","v":479245},{"$f":"SUM(G864:Q864)","v":4244213606},{"$f":"F864-R864","v":0}]
[37,null,{"$f":"'FR-16(7)(v)-1 Functional'!C865","v":"RATIO TO TOTAL ELECTRIC"},null,{"$f":"'FR-16(7)(v)-1 Functional'!E865","v":"K302"},{"$f":"IF(F864=0,0,ROUND(F864/F864,5))","v":1},{"$f":"IF(S864=0,F865-SUM(H865:Q865),ROUND(G864/F864,5))","v":0.37904999999999989},{"$f":"IF(F864=0,0,ROUND(H864/F864,5))","v":0.27023999999999998},{"$f":"IF(F864=0,0,ROUND(I864/F864,5))","v":1.5100000000000001E-3},{"$f":"IF(F864=0,0,ROUND(J864/F864,5))","v":4.2900000000000004E-3},{"$f":"IF(F864=0,0,ROUND(K864/F864,5))","v":6.9999999999999994E-5},{"$f":"IF(F864=0,0,ROUND(L864/F864,5))","v":0.16514000000000001},{"$f":"IF(F864=0,0,ROUND(M864/F864,5))","v":0.11509},{"$f":"IF(F864=0,0,ROUND(N864/F864,5))","v":5.4000000000000003E-3},{"$f":"IF(F864=0,0,ROUND(O864/F864,5))","v":5.4719999999999998E-2},{"$f":"IF(F864=0,0,ROUND(P864/F864,5))","v":4.3800000000000002E-3},{"$f":"IF(F864=0,0,ROUND(Q864/F864,5))","v":1.1E-4},{"$f":"SUM(G865:Q865)","v":1},{"$f":"F865-R865","v":0}]
[38]
[39,null,{"$f":"'FR-16(7)(v)-1 Functional'!C867","v":"PRESENT REVENUES"},{"$f":"'FR-16(7)(v)-1 Functional'!$D$867","v":"CS09"},{"$f":"'FR-16(7)(v)-1 Functional'!E867","v":"R600"},{"$f":"'FR-16(7)(v)-2 PROD Classified'!G867","v":71578233},{"$f":"F867-SUM(H867:Q867)","v":35518930},{"$f":"ROUND(F867*VLOOKUP(D867,ALLOCTABLE_Prod_Demand,$H$10,FALSE),0)","v":17768948},{"$f":"ROUND($F$867*VLOOKUP($D$867,ALLOCTABLE_Prod_Demand,I10,FALSE),0)","v":85227},336935,4613,8859506,5857020,283021,2775417,81372,7244,{"$f":"SUM(G867:Q867)","v":71578233},{"$f":"F867-R867","v":0}]
[40,null,{"$f":"'FR-16(7)(v)-1 Functional'!C868","v":"PROPOSED REVENUES"},{"$f":"'FR-16(7)(v)-1 Functional'!$D$868","v":"A357"},{"$f":"'FR-16(7)(v)-1 Functional'!E868","v":"R602"},{"$f":"'FR-16(7)(v)-2 PROD Classified'!G868","v":106929095},{"$f":"F868-SUM(H868:Q868)","v":105636323},{"$f":"ROUND(F868*VLOOKUP(D868,ALLOCTABLE_Prod_Demand,$H$10,FALSE),0)","v":637297},{"$f":"ROUND($F$868*VLOOKUP($D$868,ALLOCTABLE_Prod_Demand,I10,FALSE),0)","v":3208},11762,0,317579,209581,10693,99444,3208,0,{"$f":"SUM(G868:Q868)","v":106929095},{"$f":"F868-R868","v":0}]
[]
[{"$f":"co_name","v":"DUKE ENERGY KENTUCKY, INC."},null,null,null,null,null,null,null,null,null,null,null,null,null,null,null,null,{"$f":"R1","v":"FR-16(7)(v)-3"}]
[{"$f":"$A$2","v":"PRODUCTION DEMAND ALLOCATED - ELECTRIC COST OF SERVICE"},null,null,null,null,null,null,null,null,null,null,null,null,null,null,null,null,{"$f":"R2","v":"WITNESS RESPONSIBLE:"}]
[{"$f":"case_name","v":"CASE NO: 2019-00271"},null,null,null,null,null,null,null,null,null,null,null,null,null,null,null,null,{"$f":"Witness","v":"JAMES E. ZIOLKOWSKI"}]
[{"$f":"data_filing","v":"DATA: 12 MONTHS ACTUAL  & 0 MONTHS ESTIMATED"},null,null,null,null,null,null,null,null,null,null,null,null,null,null,null,null,{"$f":"\"PAGE \"&Pages-1&\" OF \"&Pages","v":"PAGE 17 OF 18"}]
[{"$f":"type","v":"TYPE OF FILING: \"X\" ORIGINAL   UPDATED    REVISED  "}]
[]
[null,null,null,null,null,{"$f":"F$7","v":"TOTAL"},null,{"$f":"H$7","v":"DS"},{"$f":"I$7","v":"GSFL"},{"$f":"J$7","v":"EH"},{"$f":"K$7","v":"SP"},"DT SEC","DT PRI","DP","TT",null,"OTHER"]
["LINE",null,null,null,null,{"$f":"F$8","v":"PRODUCTION"},{"$f":"G$8","v":"RS"},{"$f":"H$8","v":"SECONDARY"},{"$f":"I$8","v":"SECONDARY"},{"$f":"J$8","v":"SECONDARY"},{"$f":"K$8","v":"SECONDARY"},"SECONDARY","PRIMARY","PRIMARY","TRANSMISSION","LT","WATER",{"$f":"R8","v":"TOTAL"},"ALL"]
["NO.","ALLOCATORS",null,"SOURCE","ALLO",{"$f":"F$9","v":"DEMAND"},{"$f":"G$9","v":"RESIDENTIAL"},{"$f":"H$9","v":"DISTRIBUTION"},{"$f":"I$9","v":"DISTRIBUTION"},{"$f":"J$9","v":"DISTRIBUTION"},{"$f":"K$9","v":"DISTRIBUTION"},"DISTRIBUTION","DISTRIBUTION","DISTRIBUTION","TIME OF DAY","LIGHTING","PUMPING",{"$f":"R9","v":"AT ISSUE"},"OTHER"]
[null,null,"Schedule 12.1",null,1,null,{"$f":"G$10","v":3},{"$f":"H$10","v":4},{"$f":"I$10","v":5},{"$f":"J$10","v":6},{"$f":"K$10","v":7},8,9,10,11,12,13,null," "]
[]
[1,null,{"$f":"'FR-16(7)(v)-1 Functional'!C881","v":"PRESENT REVENUES"},"Internal",null,{"$f":"[3]SCH_C2!$N$17+[3]SCH_C2!$N$18","v":309580654},123883637,{"$f":"90215137+58828+44258","v":90318223},577046,600937,29960,{"$f":"46843605+66511","v":46910116},{"$f":"29943872+0","v":29943872},1361377,{"$f":"13540845+521323","v":14062168},1876470,16848,{"$f":"SUM(G881:Q881)","v":309580654},{"$f":"F881-R881","v":0}]
[2,null,{"$f":"'FR-16(7)(v)-1 Functional'!C882","v":"RATIO TO TOTAL ELECTRIC"},null,{"$f":"'FR-16(7)(v)-1 Functional'!E882","v":"K901"},{"$f":"IF($F881=0,0,ROUND(F881/$F881,9))","v":1},{"$f":"IF(S881=0,F882-SUM(H882:Q882),ROUND(G881/F881,9))","v":0.40016595199999994},{"$f":"IF(F881=0,0,ROUND(H881/F881,9))","v":0.29174375699999999},{"$f":"IF($F$881=0,0,ROUND(I881/$F$881,9))","v":1.86396E-3},{"$f":"IF($F$881=0,0,ROUND(J881/$F$881,9))","v":1.9411319999999999E-3},9.6775999999999996E-5,0.151527931,9.6723977000000003E-2,4.3974870000000003E-3,4.5423277999999997E-2,6.0613280000000004E-3,5.4422000000000002E-5,{"$f":"SUM(G882:Q882)","v":1},{"$f":"F882-R882","v":0},null,null,null,{"$f":"R882","v":1}]
[3,null,{"$f":"'FR-16(7)(v)-1 Functional'!C883","v":"PROPOSED REVENUES"},"Internal",null,355094168,147195469,{"$f":"101477400+51766+66205","v":101595371},649414,676300,33717,{"$f":"52436785+81470","v":52518255},33522516,1546768,{"$f":"14667334+565186","v":15232520},2104877,18961,{"$f":"SUM(G883:Q883)","v":355094168},{"$f":"F883-R883","v":0}]
[4,null,{"$f":"'FR-16(7)(v)-1 Functional'!C884","v":"RATIO TO TOTAL ELECTRIC"},null,{"$f":"'FR-16(7)(v)-1 Functional'!E884","v":"K902"},{"$f":"IF($F883=0,0,ROUND(F883/$F883,9))","v":1},{"$f":"IF(S883=0,F884-SUM(H884:Q884),ROUND(G883/F883,5))","v":0.41452516699999997},{"$f":"IF(F883=0,0,ROUND(H883/F883,9))","v":0.28610825000000001},{"$f":"IF($F$883=0,0,ROUND(I883/$F$883,9))","v":1.8288499999999999E-3},{"$f":"IF($F$883=0,0,ROUND(J883/$F$883,9))","v":1.904565E-3},9.4951999999999995E-5,0.14789951400000001,9.4404581000000001E-2,4.3559369999999998E-3,4.2897128E-2,5.9276590000000001E-3,5.3396999999999997E-5,{"$f":"SUM(G884:Q884)","v":1},{"$f":"F884-R884","v":0}]
[5]
[6,"WEIGHTED RATIOS"]
[7,"GROSS ELECTRIC PLANT IN SERVICE"]
[8,null,{"$f":"'FR-16(7)(v)-1 Functional'!C888","v":"WTD GROSS PROD PLANT RATIOS"},"Internal",{"$f":"'FR-16(7)(v)-1 Functional'!E888","v":"P129"},1,{"$f":"IF(F888=0,0,F888-SUM(H888:Q888))","v":0.45077999999999985},{"$f":"ROUND(IF($F$62=0,0,H62/$F$62),5)","v":0.27063999999999999},1.2999999999999999E-3,5.13E-3,6.9999999999999994E-5,0.13494,8.9209999999999998E-2,4.3099999999999996E-3,4.2270000000000002E-2,1.24E-3,1.1E-4,{"$f":"SUM(G888:Q888)","v":0.99999999999999989},{"$f":"F888-R888","v":0},null,null,null,{"$f":"R888","v":0.99999999999999989}]
[9,null,{"$f":"'FR-16(7)(v)-1 Functional'!C889","v":"WTD GROSS TRANS PLANT RATIOS"},"Internal",{"$f":"'FR-16(7)(v)-1 Functional'!E889","v":"T129"},0,0,{"$f":"ROUND(IF($F$68=0,0,H68/$F$68),5)","v":0},0,0,0,0,0,0,0,0,0,0,0,null,null,null,0]
[10,null,{"$f":"'FR-16(7)(v)-1 Functional'!C890","v":"WTD GROSS P & T PLT RATIOS"},"Internal",{"$f":"'FR-16(7)(v)-1 Functional'!E890","v":"PT29"},1,0.45077999999999985,{"$f":"ROUND(IF($F$70=0,0,H70/$F$70),5)","v":0.27063999999999999},1.2999999999999999E-3,5.13E-3,6.9999999999999994E-5,0.13494,8.9209999999999998E-2,4.3099999999999996E-3,4.2270000000000002E-2,1.24E-3,1.1E-4,0.99999999999999989,0]
[11,null,{"$f":"'FR-16(7)(v)-1 Functional'!C891","v":"WTD GROSS DIST PLANT RATIOS"},"Internal",{"$f":"'FR-16(7)(v)-1 Functional'!E891","v":"D149"},0,0,{"$f":"ROUND(IF($F$94=0,0,H94/$F$94),5)","v":0},0,0,0,0,0,0,0,0,0,0,0]
[12,null,{"$f":"'FR-16(7)(v)-1 Functional'!C892","v":"WTD GROSS TRANS & DIST RATIOS"},"Internal",{"$f":"'FR-16(7)(v)-1 Functional'!E892","v":"TD29"},1,0.45077999999999985,{"$f":"ROUND(IF($F$97=0,0,H97/$F$97),5)","v":0.27063999999999999},1.2999999999999999E-3,5.13E-3,6.9999999999999994E-5,0.13494,8.9209999999999998E-2,4.3099999999999996E-3,4.2270000000000002E-2,1.24E-3,1.1E-4,0.99999999999999989,0,null,null,null,0.99999999999999989]
[13,null,{"$f":"'FR-16(7)(v)-1 Functional'!C893","v":"WTD GROSS PTD PLT RATIOS"},"Internal",{"$f":"'FR-16(7)(v)-1 Functional'!E893","v":"PD29"},1,0.45077999999999985,{"$f":"ROUND(IF($F$109=0,0,H109/$F$109),5)","v":0.27063999999999999},1.2999999999999999E-3,5.13E-3,6.9999999999999994E-5,0.13494,8.9209999999999998E-2,4.3099999999999996E-3,4.2270000000000002E-2,1.24E-3,1.1E-4,0.99999999999999989,0,null,null,null,0.99999999999999989]
[14,null,{"$f":"'FR-16(7)(v)-1 Functional'!C894","v":"WTD GROSS G & I PLT RATIOS"},"Internal",{"$f":"'FR-16(7)(v)-1 Functional'!E894","v":"G129"},1,0.45077999999999985,{"$f":"ROUND(IF($F$121=0,0,H121/$F$121),5)","v":0.27063999999999999},1.2999999999999999E-3,5.13E-3,6.9999999999999994E-5,0.13494,8.9209999999999998E-2,4.3099999999999996E-3,4.2270000000000002E-2,1.24E-3,1.1E-4,0.99999999999999989,0,null,null,null,0.99999999999999989]
[15,null,{"$f":"'FR-16(7)(v)-1 Functional'!C895","v":"WTD GROSS C & O PLANT RATIOS"},"Internal",{"$f":"'FR-16(7)(v)-1 Functional'!E895","v":"C129"},1,0.45077999999999985,{"$f":"ROUND(IF($F$123=0,0,H123/$F$123),5)","v":0.27063999999999999},1.2999999999999999E-3,5.13E-3,6.9999999999999994E-5,0.13494,8.9209999999999998E-2,4.3099999999999996E-3,4.2270000000000002E-2,1.24E-3,1.1E-4,0.99999999999999989,0,null,null,null,0.99999999999999989]
[16,null,{"$f":"'FR-16(7)(v)-1 Functional'!C896","v":"WTD GROSS PLANT RATIOS"},"Internal",{"$f":"'FR-16(7)(v)-1 Functional'!E896","v":"GP19"},1,1,{"$f":"ROUND(IF($F$171=0,0,H171/$F$171),5)","v":0},0,0,0,0,0,0,0,0,0,1,0,null,null,null,1]
[17,null,{"$f":"'FR-16(7)(v)-1 Functional'!C897","v":"WTD TOTAL DEPRC RES RATIOS"},"Internal",{"$f":"'FR-16(7)(v)-1 Functional'!E897","v":"DR19"},1,0.45086999999999977,{"$f":"ROUND(IF($F$200=0,0,H200/$F$200),5)","v":0.27059},1.2999999999999999E-3,5.13E-3,6.9999999999999994E-5,0.13492000000000001,8.9200000000000002E-2,4.3099999999999996E-3,4.2259999999999999E-2,1.24E-3,1.1E-4,0.99999999999999989,0,null,null,null,0.99999999999999989]
[18]
[19,"NET ELECTRIC PLANT"]
[20,null,{"$f":"'FR-16(7)(v)-1 Functional'!C900","v":"WTD NET PROD PLANT RATIOS"},"Internal",{"$f":"'FR-16(7)(v)-1 Functional'!E900","v":"P229"},1,{"$f":"IF(F900=0,0,F900-SUM(H900:Q900))","v":0.45077999999999985},{"$f":"ROUND(IF($F$216=0,0,H216/$F$216),5)","v":0.27063999999999999},1.2999999999999999E-3,5.13E-3,6.9999999999999994E-5,0.13494,8.9209999999999998E-2,4.3099999999999996E-3,4.2270000000000002E-2,1.24E-3,1.1E-4,{"$f":"SUM(G900:Q900)","v":0.99999999999999989},{"$f":"F900-R900","v":0},null,null,null,{"$f":"R900","v":0.99999999999999989}]
[21,null,{"$f":"'FR-16(7)(v)-1 Functional'!C901","v":"WTD NET TRANS PLANT RATIOS"},"Internal",{"$f":"'FR-16(7)(v)-1 Functional'!E901","v":"T229"},0,0,{"$f":"ROUND(IF($F$222=0,0,H222/$F$222),5)","v":0},0,0,0,0,0,0,0,0,0,0,0,null,null,null,{"$f":"R901","v":0}]
[22,null,{"$f":"'FR-16(7)(v)-1 Functional'!C902","v":"WTD NET DIST LINES  - POLES, TOWERS & FIXTURES"},"Internal",{"$f":"'FR-16(7)(v)-1 Functional'!E902","v":"PL49"},0,0,{"$f":"ROUND(IF(SUM($F$228:$F$231)=0,0,SUM(H228:H231)/SUM($F$228:$F$231)),5)","v":0},{"$f":"ROUND(IF(SUM($F$228:$F$231)=0,0,SUM(I228:I231)/SUM($F$228:$F$231)),5)","v":0},0,0,0,0,0,0,0,0,0,0,null,null,null,{"$f":"R902","v":0}]
[23,null,{"$f":"'FR-16(7)(v)-1 Functional'!C903","v":"WTD NET TOTAL DIST PLANT RATIOS"},"Internal",{"$f":"'FR-16(7)(v)-1 Functional'!E903","v":"D249"},0,0,{"$f":"ROUND(IF($F$248=0,0,H248/$F$248),5)","v":0},0,0,0,0,0,0,0,0,0,0,0]
[24,null,{"$f":"'FR-16(7)(v)-1 Functional'!C904","v":"WTD NET TRANS & DIST RATIOS"},"Internal",{"$f":"'FR-16(7)(v)-1 Functional'!E904","v":"NT29"},1,0.45077999999999985,{"$f":"ROUND(IF($F$251=0,0,H251/$F$251),5)","v":0.27063999999999999},1.2999999999999999E-3,5.13E-3,6.9999999999999994E-5,0.13494,8.9209999999999998E-2,4.3099999999999996E-3,4.2270000000000002E-2,1.24E-3,1.1E-4,0.99999999999999989,0]
[25,null,{"$f":"'FR-16(7)(v)-1 Functional'!C905","v":"WTD NET G & I PLT RATIOS"},"Internal",{"$f":"'FR-16(7)(v)-1 Functional'!E905","v":"G229"},1,0.44771000000000005,{"$f":"ROUND(IF($F$263=0,0,H263/$F$263),5)","v":0.27215},1.31E-3,5.1599999999999997E-3,6.9999999999999994E-5,0.13569000000000001,8.9709999999999998E-2,4.3299999999999996E-3,4.2509999999999999E-2,1.25E-3,1.1E-4,1,0]
[26,null,{"$f":"'FR-16(7)(v)-1 Functional'!C906","v":"WTD NET C & O PLANT RATIOS"},"Internal",{"$f":"'FR-16(7)(v)-1 Functional'!E906","v":"C229"},1,0.4498899999999999,{"$f":"ROUND(IF($F$275=0,0,H275/$F$275),5)","v":0.27107999999999999},1.2999999999999999E-3,5.1399999999999996E-3,6.9999999999999994E-5,0.13516,8.9349999999999999E-2,4.3200000000000001E-3,4.2340000000000003E-2,1.24E-3,1.1E-4,1,0]
[27,null,{"$f":"'FR-16(7)(v)-1 Functional'!C907","v":"WTD NET PLANT RATIOS"},"Internal",{"$f":"'FR-16(7)(v)-1 Functional'!E907","v":"NP29"},1,0.45069999999999988,{"$f":"ROUND(IF($F$277=0,0,H277/$F$277),5)","v":0.27067999999999998},1.2999999999999999E-3,5.13E-3,6.9999999999999994E-5,0.13496,8.9219999999999994E-2,4.3099999999999996E-3,4.2279999999999998E-2,1.24E-3,1.1E-4,0.99999999999999989,0]
[28]
[29,"WORKING CAPITAL"]
[30,null,{"$f":"'FR-16(7)(v)-1 Functional'!C910","v":"WTD MATERIAL & SUPPLY RATIOS"},"Internal",{"$f":"'FR-16(7)(v)-1 Functional'!E910","v":"W669"},1,{"$f":"IF(F910=0,0,F910-SUM(H910:Q910))","v":0.45077999999999985},{"$f":"ROUND(IF($F$399=0,0,H399/$F$399),5)","v":0.27063999999999999},1.2999999999999999E-3,5.13E-3,6.9999999999999994E-5,0.13494,8.9209999999999998E-2,4.3099999999999996E-3,4.2270000000000002E-2,1.24E-3,1.1E-4,{"$f":"SUM(G910:Q910)","v":0.99999999999999989},{"$f":"F910-R910","v":0},null,null,null,{"$f":"R910","v":0.99999999999999989}]
[31,null,{"$f":"'FR-16(7)(v)-1 Functional'!C911","v":"WTD PREPAYMENTS RATIOS"},"Internal",{"$f":"'FR-16(7)(v)-1 Functional'!E911","v":"W689"},1,{"$f":"IF(F911=0,0,F911-SUM(H911:Q911))","v":0.45069999999999988},{"$f":"ROUND(IF($F$405=0,0,H405/$F$405),5)","v":0.27067999999999998},1.2999999999999999E-3,5.13E-3,6.9999999999999994E-5,0.13496,8.9219999999999994E-2,4.3099999999999996E-3,4.2279999999999998E-2,1.24E-3,1.1E-4,{"$f":"SUM(G911:Q911)","v":0.99999999999999989},{"$f":"F911-R911","v":0},null,null,null,{"$f":"R911","v":0.99999999999999989}]
[32,null,{"$f":"'FR-16(7)(v)-1 Functional'!C912","v":"WTD TOTAL WORKING CASH RATIOS"},"Internal",{"$f":"'FR-16(7)(v)-1 Functional'!E912","v":"W719"},1,{"$f":"IF(F912=0,0,F912-SUM(H912:Q912))","v":0.45069999999999988},{"$f":"ROUND(IF($F$408=0,0,H408/$F$408),5)","v":0.27067999999999998},1.2999999999999999E-3,5.13E-3,6.9999999999999994E-5,0.13496,8.9219999999999994E-2,4.3099999999999996E-3,4.2279999999999998E-2,1.24E-3,1.1E-4,{"$f":"SUM(G912:Q912)","v":0.99999999999999989},{"$f":"F912-R912","v":0},null,null,null,{"$f":"R912","v":0.99999999999999989}]
[33,null,{"$f":"'FR-16(7)(v)-1 Functional'!C913","v":"WTD TOTAL MISC WRKNG CAP RATIO"},"Internal",{"$f":"'FR-16(7)(v)-1 Functional'!E913","v":"W749"},1,{"$f":"IF(F913=0,0,F913-SUM(H913:Q913))","v":1},{"$f":"ROUND(IF($F$414=0,0,H414/$F$414),5)","v":0},0,0,0,0,0,0,0,0,0,{"$f":"SUM(G913:Q913)","v":1},{"$f":"F913-R913","v":0},null,null,null,{"$f":"R913","v":1}]
[34,null,{"$f":"'FR-16(7)(v)-1 Functional'!C914","v":"WTD TOTAL WRKNG CAP RATIOS"},"Internal",{"$f":"'FR-16(7)(v)-1 Functional'!E914","v":"WC79"},1,{"$f":"IF(F914=0,0,F914-SUM(H914:Q914))","v":0.4507199999999999},{"$f":"ROUND(IF($F$416=0,0,H416/$F$416),5)","v":0.27067000000000002},1.2999999999999999E-3,5.13E-3,6.9999999999999994E-5,0.13494999999999999,8.9219999999999994E-2,4.3099999999999996E-3,4.2279999999999998E-2,1.24E-3,1.1E-4,{"$f":"SUM(G914:Q914)","v":1},{"$f":"F914-R914","v":0}]
[35]
[36,"RATE BASE"]
[37,null,{"$f":"'FR-16(7)(v)-1 Functional'!C917","v":"WTD NET OCRB RATIOS"},"Internal",{"$f":"'FR-16(7)(v)-1 Functional'!E917","v":"RB29"},1,{"$f":"IF(F917=0,0,F917-SUM(H917:Q917))","v":0.45355000000000001},{"$f":"ROUND(IF($F$390=0,0,H390/$F$390),5)","v":0.26928000000000002},1.2899999999999999E-3,5.1000000000000004E-3,6.9999999999999994E-5,0.13425999999999999,8.8760000000000006E-2,4.2900000000000004E-3,4.206E-2,1.23E-3,1.1E-4,{"$f":"SUM(G917:Q917)","v":1},{"$f":"F917-R917","v":0}]
[38,null,{"$f":"'FR-16(7)(v)-1 Functional'!C918","v":"WTD TOTAL RATE BASE RATIOS"},"Internal",{"$f":"'FR-16(7)(v)-1 Functional'!E918","v":"RB99"},1,{"$f":"IF(F918=0,0,F918-SUM(H918:Q918))","v":0.45341999999999993},{"$f":"ROUND(IF($F$426=0,0,H426/$F$426),5)","v":0.26934000000000002},1.2899999999999999E-3,5.11E-3,6.9999999999999994E-5,0.13428999999999999,8.8779999999999998E-2,4.2900000000000004E-3,4.2070000000000003E-2,1.23E-3,1.1E-4,{"$f":"SUM(G918:Q918)","v":1},{"$f":"F918-R918","v":0}]
[39,null,{"$f":"'FR-16(7)(v)-1 Functional'!C919","v":"WTD CWIP RATIO"},"Internal",{"$f":"'FR-16(7)(v)-1 Functional'!E919","v":"CW29"},1,{"$f":"IF(F919=0,0,F919-SUM(H919:Q919))","v":1},{"$f":"ROUND(IF($F$375=0,0,H375/$F$375),5)","v":0},0,0,0,0,0,0,0,0,0,{"$f":"SUM(G919:Q919)","v":1},{"$f":"F919-R919","v":0},null,null,null,{"$f":"R919","v":1}]
[]
[{"$f":"co_name","v":"DUKE ENERGY KENTUCKY, INC."},null,null,null,null,null,null,null,null,null,null,null,null,null,null,null,null,{"$f":"R1","v":"FR-16(7)(v)-3"}]
[{"$f":"$A$2","v":"PRODUCTION DEMAND ALLOCATED - ELECTRIC COST OF SERVICE"},null,null,null,null,null,null,null,null,null,null,null,null,null,null,null,null,{"$f":"R2","v":"WITNESS RESPONSIBLE:"}]
[{"$f":"case_name","v":"CASE NO: 2019-00271"},null,null,null,null,null,null,null,null,null,null,null,null,null,null,null,null,{"$f":"Witness","v":"JAMES E. ZIOLKOWSKI"}]
[{"$f":"data_filing","v":"DATA: 12 MONTHS ACTUAL  & 0 MONTHS ESTIMATED"},null,null,null,null,null,null,null,null,null,null,null,null,null,null,null,null,{"$f":"\"PAGE \"&Pages&\" OF \"&Pages","v":"PAGE 18 OF 18"}]
[{"$f":"type","v":"TYPE OF FILING: \"X\" ORIGINAL   UPDATED    REVISED  "}]
[]
[null,null,null,null,null,{"$f":"F$7","v":"TOTAL"},null,{"$f":"H$7","v":"DS"},{"$f":"I$7","v":"GSFL"},{"$f":"J$7","v":"EH"},{"$f":"K$7","v":"SP"},"DT SEC","DT PRI","DP","TT",null,"OTHER"]
["LINE",null,null,null,null,{"$f":"F$8","v":"PRODUCTION"},{"$f":"G$8","v":"RS"},{"$f":"H$8","v":"SECONDARY"},{"$f":"I$8","v":"SECONDARY"},{"$f":"J$8","v":"SECONDARY"},{"$f":"K$8","v":"SECONDARY"},"SECONDARY","PRIMARY","PRIMARY","TRANSMISSION","LT","WATER",{"$f":"R8","v":"TOTAL"},"ALL"]
["NO.","ALLOCATORS",null,"SOURCE","ALLO",{"$f":"F$9","v":"DEMAND"},{"$f":"G$9","v":"RESIDENTIAL"},{"$f":"H$9","v":"DISTRIBUTION"},{"$f":"I$9","v":"DISTRIBUTION"},{"$f":"J$9","v":"DISTRIBUTION"},{"$f":"K$9","v":"DISTRIBUTION"},"DISTRIBUTION","DISTRIBUTION","DISTRIBUTION","TIME OF DAY","LIGHTING","PUMPING",{"$f":"R9","v":"AT ISSUE"},"OTHER"]
[null,null,"Schedule 12.2",null,1,null,{"$f":"G$10","v":3},{"$f":"H$10","v":4},{"$f":"I$10","v":5},{"$f":"J$10","v":6},{"$f":"K$10","v":7},8,9,10,11,12,13,null," "]
[1,"WEIGHTED O & M EXPENSE RATIOS"]
[2,null,{"$f":"'FR-16(7)(v)-1 Functional'!C932","v":"WTD PROD DEMAND O&M EXP RATIOS"},"Internal",{"$f":"'FR-16(7)(v)-1 Functional'!E932","v":"P349"},1,{"$f":"ROUND(IF($F$457=0,0,G457/$F$457),5)","v":0},{"$f":"ROUND(IF($F$457=0,0,H457/$F$457),5)","v":0},0,0,0,0,0,0,0,0,0,{"$f":"SUM(G932:Q932)","v":0},{"$f":"F932-R932","v":1},null,null,null,{"$f":"R932","v":0}]
[3,null,{"$f":"'FR-16(7)(v)-1 Functional'!C933","v":"WTD PROD ENERGY O&M EXP RATIOS"},"Internal",{"$f":"'FR-16(7)(v)-1 Functional'!E933","v":"E349"},1,{"$f":"ROUND(IF($F$453=0,0,G453/$F$453),5)","v":0},{"$f":"ROUND(IF($F$453=0,0,H453/$F$453),5)","v":0},0,0,0,0,0,0,0,0,0,0,1,null,null,null,{"$f":"R933","v":0}]
[4,null,{"$f":"'FR-16(7)(v)-1 Functional'!C934","v":"WTD TOTAL PROD O&M EXP RATIOS"},"Internal",{"$f":"'FR-16(7)(v)-1 Functional'!E934","v":"P459"},1,{"$f":"ROUND(IF($F$459=0,0,G459/$F$459),5)","v":0},{"$f":"ROUND(IF($F$459=0,0,H459/$F$459),5)","v":0},0,0,0,0,0,0,0,0,0,0,1,null,null,null,{"$f":"R934","v":0}]
[5,null,{"$f":"'FR-16(7)(v)-1 Functional'!C935","v":"WTD TRANS O&M EXP RATIOS"},"Internal",{"$f":"'FR-16(7)(v)-1 Functional'!E935","v":"T349"},1,{"$f":"ROUND(IF($F$466=0,0,G466/$F$466),5)","v":0},{"$f":"ROUND(IF($F$466=0,0,H466/$F$466),5)","v":0},0,0,0,0,0,0,0,0,0,0,1,null,null,null,{"$f":"R935","v":0}]
[6,null,{"$f":"'FR-16(7)(v)-1 Functional'!C936","v":"WTD DIST O&M EXP RATIOS"},"Internal",{"$f":"'FR-16(7)(v)-1 Functional'!E936","v":"D349"},1,{"$f":"ROUND(IF($F$492=0,0,G492/$F$492),5)","v":0.45078000000000001},{"$f":"ROUND(IF($F$492=0,0,H492/$F$492),5)","v":0.27063999999999999},1.2999999999999999E-3,5.13E-3,6.9999999999999994E-5,0.13494,8.9209999999999998E-2,4.3099999999999996E-3,4.2270000000000002E-2,1.24E-3,1.1E-4,1,0]
[7,null,{"$f":"'FR-16(7)(v)-1 Functional'!C937","v":"WTD UNCOLLECTIBLE ACCOUNT O&M"},"Internal",{"$f":"'FR-16(7)(v)-1 Functional'!E937","v":"C311"},1,{"$f":"ROUND(IF($F$496=0,0,G496/$F$496),5)","v":0},{"$f":"ROUND(IF($F$496=0,0,H496/$F$496),5)","v":0},0,0,0,0,0,0,0,0,0,0,1,null,null,null,{"$f":"R937","v":0}]
[8,null,{"$f":"'FR-16(7)(v)-1 Functional'!C938","v":"WTD CUST ACCT O&M EXP RATIOS"},"Internal",{"$f":"'FR-16(7)(v)-1 Functional'!E938","v":"C319"},1,{"$f":"ROUND(IF($F$503=0,0,G503/$F$503),5)","v":0},{"$f":"ROUND(IF($F$503=0,0,H503/$F$503),5)","v":0},0,0,0,0,0,0,0,0,0,0,1,null,null,null,{"$f":"R938","v":0}]
[9,null,{"$f":"'FR-16(7)(v)-1 Functional'!C939","v":"WTD CUST SERV & INFO O&M  EXP RATIOS"},"Internal",{"$f":"'FR-16(7)(v)-1 Functional'!E939","v":"C331"},1,{"$f":"ROUND(IF($F$518=0,0,G518/$F$518),5)","v":0},{"$f":"ROUND(IF($F$518=0,0,H518/$F$518),5)","v":0},0,0,0,0,0,0,0,0,0,0,1,null,null,null,{"$f":"R939","v":0}]
[10,null,{"$f":"'FR-16(7)(v)-1 Functional'!C940","v":"WTD SALES O&M EXP RATIOS"},"Internal",{"$f":"'FR-16(7)(v)-1 Functional'!E940","v":"S319"},1,{"$f":"ROUND(IF($F$522=0,0,G522/$F$522),5)","v":0},{"$f":"ROUND(IF($F$522=0,0,H522/$F$522),5)","v":0},0,0,0,0,0,0,0,0,0,{"$f":"SUM(G940:Q940)","v":0},{"$f":"F940-R940","v":1}]
[11,null,{"$f":"'FR-16(7)(v)-1 Functional'!C941","v":"WTD O&M EXP RATIOS"},"Internal",{"$f":"'FR-16(7)(v)-1 Functional'!E941","v":"OM39"},1,{"$f":"ROUND(IF($F$549=0,0,G549/$F$549),5)","v":0.93684000000000001},{"$f":"ROUND(IF($F$549=0,0,H549/$F$549),5)","v":3.1119999999999998E-2},1.4999999999999999E-4,5.9000000000000003E-4,1.0000000000000001E-5,1.5520000000000001E-2,1.026E-2,5.0000000000000001E-4,4.8599999999999997E-3,1.3999999999999999E-4,1.0000000000000001E-5,{"$f":"SUM(G941:Q941)","v":0.99999999999999989},{"$f":"F941-R941","v":0}]
[12]
[13,"A & G EXPENSES"]
[14,null,{"$f":"'FR-16(7)(v)-1 Functional'!C944","v":"WTD PROD DEMAND A&G EXP RATIOS"},"Internal",{"$f":"'FR-16(7)(v)-1 Functional'!E944","v":"A300"},1,{"$f":"ROUND(IF($F$525=0,0,G525/$F$525),5)","v":1},{"$f":"ROUND(IF($F$525=0,0,H525/$F$525),5)","v":0},0,0,0,0,0,0,0,0,0,{"$f":"SUM(G944:Q944)","v":1},{"$f":"F944-R944","v":0}]
[15,null,{"$f":"'FR-16(7)(v)-1 Functional'!C945","v":"WTD PROD ENERGY A&G EXP RATIOS"},"Internal",{"$f":"'FR-16(7)(v)-1 Functional'!E945","v":"A302"},1,{"$f":"ROUND(IF($F$526=0,0,G526/$F$526),5)","v":0},{"$f":"ROUND(IF($F$526=0,0,H526/$F$526),5)","v":0},0,0,0,0,0,0,0,0,0,0,1]
[16,null,{"$f":"'FR-16(7)(v)-1 Functional'!C946","v":"WTD TRANS A&G EXP RATIOS"},"Internal",{"$f":"'FR-16(7)(v)-1 Functional'!E946","v":"A304"},1,{"$f":"ROUND(IF($F$527=0,0,G527/$F$527),5)","v":0},{"$f":"ROUND(IF($F$527=0,0,H527/$F$527),5)","v":0},0,0,0,0,0,0,0,0,0,0,1]
[17,null,{"$f":"'FR-16(7)(v)-1 Functional'!C947","v":"WTD DIST A&G EXP RATIOS"},"Internal",{"$f":"'FR-16(7)(v)-1 Functional'!E947","v":"A306"},1,{"$f":"ROUND(IF($F$528=0,0,G528/$F$528),5)","v":0.45078000000000001},{"$f":"ROUND(IF($F$528=0,0,H528/$F$528),5)","v":0.27063999999999999},1.2999999999999999E-3,5.13E-3,6.9999999999999994E-5,0.13494,8.9209999999999998E-2,4.3099999999999996E-3,4.2270000000000002E-2,1.24E-3,1.1E-4,1,0]
[18,null,{"$f":"'FR-16(7)(v)-1 Functional'!C948","v":"WTD CUST ACCT A&G EXP RATIOS"},"Internal",{"$f":"'FR-16(7)(v)-1 Functional'!E948","v":"A308"},1,{"$f":"ROUND(IF($F$529=0,0,G529/$F$529),5)","v":0},{"$f":"ROUND(IF($F$529=0,0,H529/$F$529),5)","v":0},0,0,0,0,0,0,0,0,0,0,1]
[19,null,{"$f":"'FR-16(7)(v)-1 Functional'!C949","v":"WTD CUST SERV & INFO A&G  EXP RATIOS"},"Internal",{"$f":"'FR-16(7)(v)-1 Functional'!E949","v":"A310"},1,{"$f":"ROUND(IF($F$530=0,0,G530/$F$530),5)","v":0},{"$f":"ROUND(IF($F$530=0,0,H530/$F$530),5)","v":0},0,0,0,0,0,0,0,0,0,0,1]
[20,null,{"$f":"'FR-16(7)(v)-1 Functional'!C950","v":"WTD SALES A&G EXP RATIOS"},"Internal",{"$f":"'FR-16(7)(v)-1 Functional'!E950","v":"A312"},1,{"$f":"ROUND(IF($F$531=0,0,G531/$F$531),5)","v":0},{"$f":"ROUND(IF($F$531=0,0,H531/$F$531),5)","v":0},0,0,0,0,0,0,0,0,0,0,1]
[21,null,{"$f":"'FR-16(7)(v)-1 Functional'!C951","v":"WTD A&G EXPENSE UNADJUSTED"},"Internal",{"$f":"'FR-16(7)(v)-1 Functional'!E951","v":"A315"},1,{"$f":"ROUND(IF($F$532=0,0,G532/$F$532),5)","v":0.9879},{"$f":"ROUND(IF($F$532=0,0,H532/$F$532),5)","v":5.96E-3},3.0000000000000001E-5,1.1E-4,0,2.97E-3,1.97E-3,9.0000000000000006E-5,9.3000000000000005E-4,3.0000000000000001E-5,0,0.99999000000000005,9.9999999999544897E-6]
[22,null,{"$f":"'FR-16(7)(v)-1 Functional'!C952","v":"WTD A&G EXP RATIOS"},"Internal",{"$f":"'FR-16(7)(v)-1 Functional'!E952","v":"A357"},1,{"$f":"ROUND(IF($F$547=0,0,G547/$F$547),5)","v":0.98789000000000005},{"$f":"ROUND(IF($F$547=0,0,H547/$F$547),5)","v":5.96E-3},3.0000000000000001E-5,1.1E-4,0,2.97E-3,1.9599999999999999E-3,1E-4,9.3000000000000005E-4,3.0000000000000001E-5,0,0.99997999999999998,2.0000000000020002E-5]
[23]
[24,"DEPRECIATION EXPENSES"]
[25,null,{"$f":"'FR-16(7)(v)-1 Functional'!C955","v":"WTD PRODUCTION DEPREC RATIOS"},"Internal",{"$f":"'FR-16(7)(v)-1 Functional'!E955","v":"P489"},1,{"$f":"ROUND(IF($F$563=0,0,G563/$F$563),5)","v":0.45078000000000001},{"$f":"ROUND(IF($F$563=0,0,H563/$F$563),5)","v":0.27063999999999999},1.2999999999999999E-3,5.13E-3,6.9999999999999994E-5,0.13494,8.9209999999999998E-2,4.3099999999999996E-3,4.2270000000000002E-2,1.24E-3,1.1E-4,{"$f":"SUM(G955:Q955)","v":1},{"$f":"F955-R955","v":0},null,null,null,{"$f":"R955","v":1}]
[26,null,{"$f":"'FR-16(7)(v)-1 Functional'!C956","v":"WTD TRANS DEPREC RATIOS"},"Internal",{"$f":"'FR-16(7)(v)-1 Functional'!E956","v":"T489"},1,{"$f":"ROUND(IF($F$567=0,0,G567/$F$567),5)","v":0},{"$f":"ROUND(IF($F$567=0,0,H567/$F$567),5)","v":0},0,0,0,0,0,0,0,0,0,0,1,null,null,null,{"$f":"R956","v":0}]
[27,null,{"$f":"'FR-16(7)(v)-1 Functional'!C957","v":"WTD DIST DEPREC RATIOS"},"Internal",{"$f":"'FR-16(7)(v)-1 Functional'!E957","v":"D489"},1,{"$f":"ROUND(IF($F$571=0,0,G571/$F$571),5)","v":0},{"$f":"ROUND(IF($F$571=0,0,H571/$F$571),5)","v":0},0,0,0,0,0,0,0,0,0,0,1,null,null,null,{"$f":"R957","v":0}]
[28,null,{"$f":"'FR-16(7)(v)-1 Functional'!C958","v":"WTD GENERAL DEPREC EXP RATIOS"},"Internal",{"$f":"'FR-16(7)(v)-1 Functional'!E958","v":"G489"},1,{"$f":"ROUND(IF($F$575=0,0,G575/$F$575),5)","v":0.44771},{"$f":"ROUND(IF($F$575=0,0,H575/$F$575),5)","v":0.27215},1.31E-3,5.1599999999999997E-3,6.9999999999999994E-5,0.13569000000000001,8.9709999999999998E-2,4.3299999999999996E-3,4.2509999999999999E-2,1.25E-3,1.1E-4,1,0,null,null,null,{"$f":"R958","v":1}]
[29,null,{"$f":"'FR-16(7)(v)-1 Functional'!C959","v":"WTD COM & OTHER DEP EXP RATIOS"},"Internal",{"$f":"'FR-16(7)(v)-1 Functional'!E959","v":"C489"},1,{"$f":"ROUND(IF($F$579=0,0,G579/$F$579),5)","v":0.45001999999999998},{"$f":"ROUND(IF($F$579=0,0,H579/$F$579),5)","v":0.27105000000000001},1.2700000000000001E-3,5.1500000000000001E-3,6.0000000000000002E-5,0.13513,8.9359999999999995E-2,4.3E-3,4.2320000000000003E-2,1.2099999999999999E-3,1.2E-4,0.99998999999999993,1.0000000000065512E-5]
[30,null,{"$f":"'FR-16(7)(v)-1 Functional'!C960","v":"WTD TOT DEPREC EXP RATIOS"},"Internal",{"$f":"'FR-16(7)(v)-1 Functional'!E960","v":"DE49"},1,{"$f":"ROUND(IF($F$582=0,0,G582/$F$582),5)","v":0.45058999999999999},{"$f":"ROUND(IF($F$582=0,0,H582/$F$582),5)","v":0.27073000000000003},1.2999999999999999E-3,5.13E-3,6.9999999999999994E-5,0.13499,8.924E-2,4.3099999999999996E-3,4.2279999999999998E-2,1.24E-3,1.1E-4,0.99998999999999993,1.0000000000065512E-5,null,null,null,{"$f":"R960","v":0.99998999999999993}]
[31]
[32,"OTHER TAXES & MISC EXPENSES"]
[33,null,{"$f":"'FR-16(7)(v)-1 Functional'!C963","v":"WTD R. E. & PROP TAX RATIOS"},"Internal",{"$f":"'FR-16(7)(v)-1 Functional'!E963","v":"L529"},1,{"$f":"ROUND(IF($F$598=0,0,G598/$F$598),5)","v":0.45069999999999999},{"$f":"ROUND(IF($F$598=0,0,H598/$F$598),5)","v":0.27067999999999998},1.2999999999999999E-3,5.13E-3,6.9999999999999994E-5,0.13496,8.9219999999999994E-2,4.3099999999999996E-3,4.2279999999999998E-2,1.24E-3,1.1E-4,{"$f":"SUM(G963:Q963)","v":0.99999999999999989},{"$f":"F963-R963","v":0},null,null,null,{"$f":"R963","v":0.99999999999999989}]
[34,null,{"$f":"'FR-16(7)(v)-1 Functional'!C964","v":"WTD MISC TAX RATIOS"},"Internal",{"$f":"'FR-16(7)(v)-1 Functional'!E964","v":"L589"},1,{"$f":"ROUND(IF($F$605=0,0,G605/$F$605),5)","v":0.9879},{"$f":"ROUND(IF($F$605=0,0,H605/$F$605),5)","v":5.96E-3},3.0000000000000001E-5,1.1E-4,0,2.97E-3,1.97E-3,9.0000000000000006E-5,9.3000000000000005E-4,3.0000000000000001E-5,0,{"$f":"SUM(G964:Q964)","v":0.99999000000000005},{"$f":"F964-R964","v":9.9999999999544897E-6},null,null,null,{"$f":"R964","v":0.99999000000000005}]
[35,null,{"$f":"'FR-16(7)(v)-1 Functional'!C965","v":"WTD OTHER TAX RATIOS"},"Internal",{"$f":"'FR-16(7)(v)-1 Functional'!E965","v":"L599"},1,{"$f":"ROUND(IF($F$612=0,0,G612/$F$612),5)","v":0.46790999999999999},{"$f":"ROUND(IF($F$612=0,0,H612/$F$612),5)","v":0.26218999999999998},1.2600000000000001E-3,4.96E-3,6.9999999999999994E-5,0.13075000000000001,8.6419999999999997E-2,4.1700000000000001E-3,4.095E-2,1.2199999999999999E-3,1.1E-4,{"$f":"SUM(G965:Q965)","v":1.0000100000000001},{"$f":"F965-R965","v":-1.0000000000065512E-5},null,null,null,{"$f":"R965","v":1.0000100000000001}]
[36,null,{"$f":"'FR-16(7)(v)-1 Functional'!C966","v":"WTD OP EXP EX IT & REV RATIOS"},"Internal",{"$f":"'FR-16(7)(v)-1 Functional'!E966","v":"OP69"},1,{"$f":"ROUND(IF($F$618=0,0,G618/$F$618),5)","v":0.51151000000000002},{"$f":"ROUND(IF($F$618=0,0,H618/$F$618),5)","v":0.24071000000000001},1.16E-3,4.5599999999999998E-3,6.0000000000000002E-5,0.12002,7.9339999999999994E-2,3.8300000000000001E-3,3.7600000000000001E-2,1.1100000000000001E-3,1E-4,{"$f":"SUM(G966:Q966)","v":1},{"$f":"F966-R966","v":0},null,null,null,{"$f":"R966","v":1}]
[37]
[38,"TOTAL COST OF SERVICE"]
[39,null,{"$f":"'FR-16(7)(v)-1 Functional'!C969","v":"WTD TOTAL COST OF SERVICE"},"Internal",{"$f":"'FR-16(7)(v)-1 Functional'!E969","v":"CS09"},1,{"$f":"ROUND(IF($F$770=0,0,G770/$F$770),9)","v":0.49622529100000001},0.24824513200000001,1.1906810000000001E-3,4.7072290000000003E-3,6.4453000000000001E-5,0.12377374300000001,8.1826832000000002E-2,3.9540110000000003E-3,3.8774599E-2,1.136822E-3,1.01207E-4,{"$f":"SUM(G969:Q969)","v":1},{"$f":"F969-R969","v":0},null,null,null,{"$f":"R969","v":1}]
[40]
[41,"WAGES & SALARIES (K600-K639)"]
[42,null,{"$f":"'FR-16(7)(v)-1 Functional'!C972","v":"WTD RATIOS"},"Internal",{"$f":"'FR-16(7)(v)-1 Functional'!E972","v":"K669"}]
[]
[]
[]
[]
[]
[]
[]
[]
[]
[1,"REVENUE NOT TO BE INCLUDED IN REVENUE TAX CALC"]
[2,null,"GOVERNMENTAL",null,{"$f":"'FR-16(7)(v)-1 Functional'!E983","v":"A357"},{"$f":"ROUND(0.06889*0,0)","v":0},{"$f":"F983-SUM(H983:Q983)","v":0},{"$f":"ROUND(F983*VLOOKUP(E983,ALLOCTABLE_Prod_Demand,$H$10,FALSE),0)","v":0},{"$f":"ROUND($F$983*VLOOKUP($E$983,ALLOCTABLE_Prod_Demand,$I$10,FALSE),0)","v":0},0,0,0,0,0,0,0,{"$f":"ROUND($F$983*VLOOKUP($E$983,ALLOCTABLE_Prod_Demand,$Q$10,FALSE),0)","v":0},{"$f":"SUM(G983:Q983)","v":0},{"$f":"F983-R983","v":0}]
[3,null,"INTERDEPARTMENTAL",null,{"$f":"'FR-16(7)(v)-1 Functional'!E984","v":"A357"},0,0,0,{"$f":"ROUND($F$984*VLOOKUP($E$984,ALLOCTABLE_Prod_Demand,$I$10,FALSE),0)","v":0},0,0,0,0,0,0,0,{"$f":"ROUND($F$984*VLOOKUP($E$984,ALLOCTABLE_Prod_Demand,$Q$10,FALSE),0)","v":0},0,0]
[4,null,"UNCOLLECTIBLE EXPENSE",null,{"$f":"'FR-16(7)(v)-1 Functional'!E985","v":"A357"},0,0,0,{"$f":"ROUND($F$985*VLOOKUP($E$985,ALLOCTABLE_Prod_Demand,$I$10,FALSE),0)","v":0},0,0,0,0,0,0,0,{"$f":"ROUND($F$985*VLOOKUP($E$985,ALLOCTABLE_Prod_Demand,$Q$10,FALSE),0)","v":0},0,0]
[5,null,"OTHER PROD GAS ASSC COS  489050"," ",{"$f":"'FR-16(7)(v)-1 Functional'!E986","v":"K301"},0,0,0,{"$f":"ROUND($F$986*VLOOKUP($E$986,ALLOCTABLE_Prod_Demand,$I$10,FALSE),0)","v":0},0,0,0,0,0,0,0,{"$f":"ROUND($F$986*VLOOKUP($E$986,ALLOCTABLE_Prod_Demand,$Q$10,FALSE),0)","v":0},0,0]
[6,null,"MISC. REV. - SALE OF MATERIAL",null,{"$f":"'FR-16(7)(v)-1 Functional'!E987","v":"A357"},0,0,0,{"$f":"ROUND($F$987*VLOOKUP($E$987,ALLOCTABLE_Prod_Demand,$I$10,FALSE),0)","v":0},0,0,0,0,0,0,0,{"$f":"ROUND($F$987*VLOOKUP($E$987,ALLOCTABLE_Prod_Demand,$Q$10,FALSE),0)","v":0},0,0]
[7,null,"RENT ASSOC. COS  49302,04,05,06,07,08,11 & 50"," ",{"$f":"'FR-16(7)(v)-1 Functional'!E988","v":"NP29"},0,0,0,{"$f":"ROUND($F$988*VLOOKUP($E$988,ALLOCTABLE_Prod_Demand,$I$10,FALSE),0)","v":0},0,0,0,0,0,0,0,{"$f":"ROUND($F$988*VLOOKUP($E$988,ALLOCTABLE_Prod_Demand,$Q$10,FALSE),0)","v":0},0,0]
[8,null,"TOTAL","REXC",null,{"$f":"SUM(F982:F988)","v":0},0,0,0,{"$f":"SUM(J982:J988)","v":0},0,0,0,0,0,0,0,0,0]
[]
[]
[]
[]
[]
["DO NOT FILE THIS PAGE"]
[]
[{"$f":"co_name","v":"DUKE ENERGY KENTUCKY, INC."},null,null,null,null,null,null,null,null,null,null,null,null,null,null,null,null,{"$f":"R1","v":"FR-16(7)(v)-3"}]
[{"$f":"$A$2","v":"PRODUCTION DEMAND ALLOCATED - ELECTRIC COST OF SERVICE"},null,null,null,null,null,null,null,null,null,null,null,null,null,null,null,null,{"$f":"R2","v":"WITNESS RESPONSIBLE:"}]
[{"$f":"case_name","v":"CASE NO: 2019-00271"},null,null,null,null,null,null,null,null,null,null,null,null,null,null,null,null,{"$f":"Witness","v":"JAMES E. ZIOLKOWSKI"}]
[{"$f":"data_filing","v":"DATA: 12 MONTHS ACTUAL  & 0 MONTHS ESTIMATED"},null,null,null,null,null,null,null,null,null,null,null,null,null,null,null,null,{"$f":"\"PAGE \"&Pages&\" OF \"&Pages","v":"PAGE 18 OF 18"}]
[{"$f":"type","v":"TYPE OF FILING: \"X\" ORIGINAL   UPDATED    REVISED  "}]
[]
[null,null,null,null,null,{"$f":"F$7","v":"TOTAL"},null,{"$f":"H$7","v":"DS"},{"$f":"I$7","v":"GSFL"},{"$f":"J$7","v":"EH"},{"$f":"K$7","v":"SP"},"DT SEC","DT PRI","DP","TT",null,"OTHER"]
["LINE",null,null,null,null,{"$f":"F$8","v":"PRODUCTION"},{"$f":"G$8","v":"RS"},{"$f":"H$8","v":"SECONDARY"},{"$f":"I$8","v":"SECONDARY"},{"$f":"J$8","v":"SECONDARY"},{"$f":"K$8","v":"SECONDARY"},"SECONDARY","PRIMARY","PRIMARY","TRANSMISSION","LT","WATER",{"$f":"R8","v":"TOTAL"},"ALL"]
["NO.","INCOME TAX BASED ON REVENUES",null,"ALLO",null,{"$f":"F$9","v":"DEMAND"},{"$f":"G$9","v":"RESIDENTIAL"},{"$f":"H$9","v":"DISTRIBUTION"},{"$f":"I$9","v":"DISTRIBUTION"},{"$f":"J$9","v":"DISTRIBUTION"},{"$f":"K$9","v":"DISTRIBUTION"},"DISTRIBUTION","DISTRIBUTION","DISTRIBUTION","TIME OF DAY","LIGHTING","PUMPING",{"$f":"R9","v":"AT ISSUE"},"OTHER"]
[null,null,"Schedule 13",null,null,null,{"$f":"G$10","v":3},{"$f":"H$10","v":4},{"$f":"I$10","v":5},{"$f":"J$10","v":6},{"$f":"K$10","v":7},8,9,10,11,12,13,null," "]
[1,"NET INCOME COMPUTATION"]
[2,null,{"$f":"'FR-16(7)(v)-1 Functional'!C1008","v":"TOTAL ELECTRIC COST OF SERVICE"},null,null,{"$f":"F770","v":81842213},40612176,20316931,97448,{"$f":"J770","v":385250},5275,10129917,6696889,323605,3173399,93040,8283,81842213,0]
[3,null,{"$f":"'FR-16(7)(v)-1 Functional'!C1009","v":"TOTAL OTHER OPERATING REVENUES"},null,null,{"$f":"F750","v":0},{"$f":"G750","v":0},{"$f":"H750","v":0},{"$f":"I750","v":0},{"$f":"J750","v":0},0,0,0,0,0,0,{"$f":"$Q$750","v":0},{"$f":"R750","v":0},{"$f":"S750","v":0}]
[4,null,{"$f":"'FR-16(7)(v)-1 Functional'!C1010","v":"  TOTAL ELECTRIC REVENUE"},null,null,{"$f":"SUM(F1007:F1009)","v":81842213},40612176,20316931,97448,{"$f":"SUM(J1007:J1009)","v":385250},5275,10129917,6696889,323605,3173399,93040,8283,81842213,0]
[5,null,{"$f":"'FR-16(7)(v)-1 Functional'!C1011","v":"TOTAL OP EXP EX INC & REV TAX"},null,null,{"$f":"-F618","v":-54400774},{"$f":"-G618","v":-27826762},{"$f":"-H618","v":-13094843},{"$f":"-I618","v":-62913},{"$f":"-J618","v":-248126},-3392,-6529172,-4316368,-208535,-2045218,-60118,{"$f":"-$Q$618","v":-5327},{"$f":"-R618","v":-54400774},{"$f":"-S618","v":0}]
[6,null,{"$f":"'FR-16(7)(v)-1 Functional'!C1012","v":"FIRM SERVICE REVENUE TAX"},null,null,{"$f":"-ROUND(F817*F1008,0)","v":0},{"$f":"F1012-SUM(H1012:Q1012)","v":0},{"$f":"-ROUND(H817*H1008,0)","v":0},0,0,0,0,0,0,0,0,0,{"$f":"SUM(G1012:Q1012)","v":0},{"$f":"-ROUND('FR-16(7)(v)-1 Functional'!K817*S1008,0)","v":0}]
[7,null,{"$f":"'FR-16(7)(v)-1 Functional'!C1013","v":"  NET INCOME"},null,null,{"$f":"SUM(F1010:F1012)","v":27441439},{"$f":"SUM(G1010:G1012)","v":12785414},{"$f":"SUM(H1010:H1012)","v":7222088},{"$f":"SUM(I1010:I1012)","v":34535},{"$f":"SUM(J1010:J1012)","v":137124},1883,3600745,2380521,115070,1128181,32922,{"$f":"SUM(Q1010:Q1012)","v":2956},{"$f":"SUM(G1013:Q1013)","v":27441439},{"$f":"SUM(S1010:S1012)","v":0}]
[8]
[9,"ADJUSTMENTS TO NET INCOME"]
[10,null,{"$f":"'FR-16(7)(v)-1 Functional'!C1016","v":"TOTAL INTEREST EXPENSE"},null,null,{"$f":"-F633","v":-10370923},{"$f":"-G633","v":-4702385},{"$f":"-H633","v":-2793304},{"$f":"-I633","v":-13378},{"$f":"-J633","v":-52995},-726,-1392711,-920731,-44491,-436305,-12756,{"$f":"-$Q$633","v":-1141},{"$f":"-R633","v":-10370923},{"$f":"-S633","v":0}]
[11,null,{"$f":"'FR-16(7)(v)-1 Functional'!C1017","v":"TOTAL OTHER DEDUCTIONS"},null,null,{"$f":"-F639","v":-48260964},{"$f":"-G639","v":-21678237},{"$f":"-H639","v":-13099276},{"$f":"-I639","v":-62900},{"$f":"-J639","v":-248215},-3387,-6531493,-4317879,-208538,-2045719,-59997,{"$f":"-$Q$639","v":-5323},{"$f":"-R639","v":-48260964},{"$f":"-S639","v":0}]
[12,null,{"$f":"'FR-16(7)(v)-1 Functional'!C1018","v":"  PRELIMINARY TAXABLE INCOME"},null,null,{"$f":"SUM(F1015:F1017)+F1013","v":-31190448},{"$f":"SUM(G1015:G1017)+G1013","v":-13595208},{"$f":"SUM(H1015:H1017)+H1013","v":-8670492},{"$f":"SUM(I1015:I1017)+I1013","v":-41743},{"$f":"SUM(J1015:J1017)+J1013","v":-164086},-2230,-4323459,-2858089,-137959,-1353843,-39831,{"$f":"SUM(Q1015:Q1017)+Q1013","v":-3508},{"$f":"SUM(G1018:Q1018)","v":-31190448},{"$f":"SUM(S1015:S1017)+S1013","v":0}]
[13]
[14,"INCOME TAX BASED ON REVENUES"]
[15,"FEDERAL INCOME TAX COMPUTATION"]
[16,null,{"$f":"'FR-16(7)(v)-1 Functional'!C1022","v":"PRELIMINARY TAXABLE INCOME"},null,null,{"$f":"F1018","v":-31190448},-13595208,-8670492,-41743,{"$f":"J1018","v":-164086},-2230,-4323459,-2858089,-137959,-1353843,-39831,-3508,-31190448,0]
[17,null,{"$f":"'FR-16(7)(v)-1 Functional'!C1023","v":"  NET FEDERAL TAXABLE INCOME"},null,null,{"$f":"SUM(F1022:F1022)","v":-31190448},-13595208,-8670492,-41743,{"$f":"SUM(J1022:J1022)","v":-164086},-2230,-4323459,-2858089,-137959,-1353843,-39831,-3508,-31190448,0]
[18,null,{"$f":"'FR-16(7)(v)-1 Functional'!C1024","v":"  FEDERAL INCOME TAX RATE"},null,null,{"$f":"F815","v":0.21},{"$f":"G815","v":0.21},{"$f":"H815","v":0.21},{"$f":"I815","v":0.21},{"$f":"J815","v":0.21},0.21,0.21,0.21,0.21,0.21,0.21,{"$f":"Q815","v":0.21},null,{"$f":"'FR-16(7)(v)-1 Functional'!K815","v":0.21}]
[19,null,{"$f":"'FR-16(7)(v)-1 Functional'!C1025","v":"PRELIMINARY FIT = FI01 * K190"},null,null,{"$f":"ROUND(F1024*F1023,0)","v":-6549994},{"$f":"ROUND(G1024*G1023,0)","v":-2854994},{"$f":"ROUND(H1024*H1023,0)","v":-1820803},{"$f":"ROUND(I1024*I1023,0)","v":-8766},{"$f":"ROUND(J1024*J1023,0)","v":-34458},-468,-907926,-600199,-28971,-284307,-8365,{"$f":"ROUND(Q1024*Q1023,0)","v":-737},{"$f":"SUM(G1025:Q1025)","v":-6549994},{"$f":"ROUND(S1024*S1023,0)","v":0}]
[20,null,{"$f":"'FR-16(7)(v)-1 Functional'!C1026","v":"TOTAL FED DEF IT (410 & 411)"},null,null,{"$f":"F649","v":-784832},{"$f":"G649","v":-739807},{"$f":"H649","v":-22192},{"$f":"I649","v":-108},{"$f":"J649","v":-417},-4,-11061,-7309,-356,-3465,-105,{"$f":"$Q$649","v":-8},{"$f":"R649","v":-784832},{"$f":"S649","v":0}]
[21,null,{"$f":"'FR-16(7)(v)-1 Functional'!C1027","v":"TOTAL AMORTIZED ITC"},null,null,{"$f":"-F653","v":-238},{"$f":"-G653","v":-109},{"$f":"-H653","v":-64},{"$f":"-I653","v":0},{"$f":"-J653","v":-1},0,-32,-21,-1,-10,0,{"$f":"-$Q$653","v":0},{"$f":"-R653","v":-238},{"$f":"-S653","v":0}]
[22,null,{"$f":"'FR-16(7)(v)-1 Functional'!C1028","v":"  NET FED INC TAX ALLOWABLE"},null,null,{"$f":"SUM(F1025:F1027)","v":-7335064},-3594910,-1843059,-8874,{"$f":"SUM(J1025:J1027)","v":-34876},-472,-919019,-607529,-29328,-287782,-8470,-745,-7335064,0]
[23]
[24,"FEDERAL INCOME TAX PAYABLE"]
[25,null,{"$f":"'FR-16(7)(v)-1 Functional'!C1031","v":"PRELIM FIT"},null,null,{"$f":"F1025","v":-6549994},-2854994,-1820803,-8766,{"$f":"J1025","v":-34458},-468,-907926,-600199,-28971,-284307,-8365,-737,-6549994,0]
[26,null,{"$f":"'FR-16(7)(v)-1 Functional'!C1032","v":"TEST YEAR INV TAX CREDIT"},null,null,{"$f":"-F658","v":0},{"$f":"-G658","v":0},{"$f":"-H658","v":0},{"$f":"-I658","v":0},{"$f":"-J658","v":0},0,0,0,0,0,0,{"$f":"-$Q$658","v":0},{"$f":"-R658","v":0},{"$f":"-S658","v":0}]
[27,null,{"$f":"'FR-16(7)(v)-1 Functional'!C1033","v":"  FED INC TAX PAYABLE"},null,null,{"$f":"SUM(F1030:F1032)","v":-6549994},-2854994,-1820803,-8766,{"$f":"SUM(J1030:J1032)","v":-34458},-468,-907926,-600199,-28971,-284307,-8365,-737,-6549994,0]
[28]
[29,"PRELIMINARY SUMMARY"]
[30,null,{"$f":"'FR-16(7)(v)-1 Functional'!C1036","v":"NET INCOME"},null,null,{"$f":"F1013","v":27441439},12785414,7222088,34535,{"$f":"J1013","v":137124},1883,3600745,2380521,115070,1128181,32922,2956,27441439,0]
[31,null,{"$f":"'FR-16(7)(v)-1 Functional'!C1037","v":"NET FED INC TAX ALLOWABLE"},null,null,{"$f":"-F1028","v":7335064},3594910,1843059,8874,{"$f":"-J1028","v":34876},472,919019,607529,29328,287782,8470,745,7335064,0]
[32,null,{"$f":"'FR-16(7)(v)-1 Functional'!C1038","v":"  OVERALL RETURN EARNED"},null,null,{"$f":"SUM(F1035:F1037)","v":34776503},16380324,9065147,43409,{"$f":"SUM(J1035:J1037)","v":172000},2355,4519764,2988050,144398,1415963,41392,3701,34776503,0]
[33]
[34,null,{"$f":"'FR-16(7)(v)-1 Functional'!C1040","v":"  RATE OF RETURN EARNED"},null,null,{"$f":"IF(F426=0,0,ROUND(F1038/F426,5))","v":6.6519999999999996E-2},6.9099999999999995E-2,6.4380000000000007E-2,6.4180000000000001E-2,6.4439999999999997E-2,6.4670000000000005E-2,6.4380000000000007E-2,6.4380000000000007E-2,6.4390000000000003E-2,6.4390000000000003E-2,6.4159999999999995E-2,6.4670000000000005E-2,6.6519999999999996E-2,0]

{"sheet":"FR-16(7)(v)-4 PROD Energy","index":7,"n_rows":1040,"n_cols":23,"rows_kept":1040,"cut":false,"hidden":false,"merged":[]}
[{"$f":"co_name","v":"DUKE ENERGY KENTUCKY, INC."},null,null,null,null,null,null,null,null,null,null,null,null,null,null,null,null,"FR-16(7)(v)-4"]
[{"$f":"F8&\" \"&F9&\" ALLOCATED - ELECTRIC COST OF SERVICE\"","v":"PRODUCTION ENERGY ALLOCATED - ELECTRIC COST OF SERVICE"},null,null,null,null,null,null,null,null,null,null,null,null,null,null,null,null,"WITNESS RESPONSIBLE:"]
[{"$f":"case_name","v":"CASE NO: 2019-00271"},null,null,null,null,null,null,null,null,null,null,null,null,null,null,null,null,{"$f":"Witness","v":"JAMES E. ZIOLKOWSKI"}]
[{"$f":"data_filing","v":"DATA: 12 MONTHS ACTUAL  & 0 MONTHS ESTIMATED"},null,null,null,null,null,null,null,null,null,null,null,null,null,null,null,null,{"$f":"\"PAGE \"&Pages-17&\" OF \"&Pages","v":"PAGE 1 OF 18"}]
[{"$f":"type","v":"TYPE OF FILING: \"X\" ORIGINAL   UPDATED    REVISED  "}]
[]
[null,null,null,null,null,{"$f":"'FR-16(7)(v)-3 PROD Demand'!F7","v":"TOTAL"},null,{"$f":"'FR-16(7)(v)-3 PROD Demand'!H7","v":"DS"},{"$f":"'FR-16(7)(v)-3 PROD Demand'!I7","v":"GSFL"},{"$f":"'FR-16(7)(v)-3 PROD Demand'!J7","v":"EH"},{"$f":"'FR-16(7)(v)-3 PROD Demand'!K7","v":"SP"},{"$f":"'FR-16(7)(v)-3 PROD Demand'!L7","v":"DT SEC"},{"$f":"'FR-16(7)(v)-3 PROD Demand'!M7","v":"DT PRI"},{"$f":"'FR-16(7)(v)-3 PROD Demand'!N7","v":"DP"},{"$f":"'FR-16(7)(v)-3 PROD Demand'!O7","v":"TT"},null,{"$f":"'FR-16(7)(v)-3 PROD Demand'!Q7","v":"OTHER"}]
["LINE",null,null,null,null,{"$f":"'FR-16(7)(v)-3 PROD Demand'!F8","v":"PRODUCTION"},{"$f":"'FR-16(7)(v)-3 PROD Demand'!G8","v":"RS"},{"$f":"'FR-16(7)(v)-3 PROD Demand'!H8","v":"SECONDARY"},{"$f":"'FR-16(7)(v)-3 PROD Demand'!I8","v":"SECONDARY"},{"$f":"'FR-16(7)(v)-3 PROD Demand'!J8","v":"SECONDARY"},{"$f":"'FR-16(7)(v)-3 PROD Demand'!K8","v":"SECONDARY"},{"$f":"'FR-16(7)(v)-3 PROD Demand'!L8","v":"SECONDARY"},{"$f":"'FR-16(7)(v)-3 PROD Demand'!M8","v":"PRIMARY"},{"$f":"'FR-16(7)(v)-3 PROD Demand'!N8","v":"PRIMARY"},{"$f":"'FR-16(7)(v)-3 PROD Demand'!O8","v":"TRANSMISSION"},{"$f":"'FR-16(7)(v)-3 PROD Demand'!P8","v":"LT"},{"$f":"'FR-16(7)(v)-3 PROD Demand'!Q8","v":"WATER"},{"$f":"'FR-16(7)(v)-3 PROD Demand'!R8","v":"TOTAL"},{"$f":"'FR-16(7)(v)-3 PROD Demand'!S8","v":"ALL"}]
["NO.","SUMMARY OF RESULTS",null,"ALLO",null,"ENERGY",{"$f":"'FR-16(7)(v)-3 PROD Demand'!G9","v":"RESIDENTIAL"},{"$f":"'FR-16(7)(v)-3 PROD Demand'!H9","v":"DISTRIBUTION"},{"$f":"'FR-16(7)(v)-3 PROD Demand'!I9","v":"DISTRIBUTION"},{"$f":"'FR-16(7)(v)-3 PROD Demand'!J9","v":"DISTRIBUTION"},{"$f":"'FR-16(7)(v)-3 PROD Demand'!K9","v":"DISTRIBUTION"},{"$f":"'FR-16(7)(v)-3 PROD Demand'!L9","v":"DISTRIBUTION"},{"$f":"'FR-16(7)(v)-3 PROD Demand'!M9","v":"DISTRIBUTION"},{"$f":"'FR-16(7)(v)-3 PROD Demand'!N9","v":"DISTRIBUTION"},{"$f":"'FR-16(7)(v)-3 PROD Demand'!O9","v":"TIME OF DAY"},{"$f":"'FR-16(7)(v)-3 PROD Demand'!P9","v":"LIGHTING"},{"$f":"'FR-16(7)(v)-3 PROD Demand'!Q9","v":"PUMPING"},{"$f":"'FR-16(7)(v)-3 PROD Demand'!R9","v":"AT ISSUE"},{"$f":"'FR-16(7)(v)-3 PROD Demand'!S9","v":"OTHER"}]
[null,null,"Schedule 1",null,null,null,3,4,5,6,7,8,9,10,11,12,13]
[1,"NET INCOME COMPUTATION"]
[2,null,{"$f":"'FR-16(7)(v)-1 Functional'!C12","v":"GROSS ELECTRIC PLANT IN SERVICE"},null,null,{"$f":"F123","v":30564298},{"$f":"G123","v":11536800},{"$f":"H123","v":8231577},{"$f":"I123","v":46152},{"$f":"J123","v":130816},2139,5043415,3502974,164130,1769673,133260,{"$f":"Q123","v":3362},{"$f":"SUM(G12:Q12)","v":30564298},{"$f":"F12-R12","v":0}]
[3,null,{"$f":"'FR-16(7)(v)-1 Functional'!C13","v":"TOTAL DEPRECIATION RESERVE"},null,null,{"$f":"-F200","v":-14906680},{"$f":"-G200","v":-5626812},{"$f":"-H200","v":-4014744},{"$f":"-I200","v":-22509},{"$f":"-J200","v":-63801},-1043,-2459762,-1708495,-80052,-862829,-64993,{"$f":"-Q200","v":-1640},{"$f":"SUM(G13:Q13)","v":-14906680},{"$f":"F13-R13","v":0}]
[4,null,{"$f":"'FR-16(7)(v)-1 Functional'!C14","v":"TOTAL RATE BASE ADJUSTMENTS"},null,null,{"$f":"F421","v":16057807},{"$f":"G421","v":6055355},{"$f":"H421","v":4321323},{"$f":"I421","v":24246},{"$f":"J421","v":68673},1123,2649232,1838624,86127,941379,69961,{"$f":"Q421","v":1764},{"$f":"SUM(G14:Q14)","v":16057807},{"$f":"F14-R14","v":0}]
[5,null,{"$f":"'FR-16(7)(v)-1 Functional'!C15","v":"  TOTAL RATE BASE"},null,null,{"$f":"SUM(F12:F14)","v":31715425},{"$f":"SUM(G12:G14)","v":11965343},{"$f":"SUM(H12:H14)","v":8538156},{"$f":"SUM(I12:I14)","v":47889},{"$f":"SUM(J12:J14)","v":135688},2219,5232885,3633103,170205,1848223,138228,{"$f":"SUM(Q12:Q14)","v":3486},{"$f":"SUM(R12:R14)","v":31715425},{"$f":"F15-R15","v":0}]
[6]
[7,"OPERATING EXPENSES"]
[8,null,{"$f":"'FR-16(7)(v)-1 Functional'!C18","v":"TOTAL O&M EXPENSE"},null,null,{"$f":"F549","v":147821325},{"$f":"G549","v":55963941},{"$f":"H549","v":39907982},{"$f":"I549","v":223210},{"$f":"J549","v":633748},10348,24405654,16992283,796946,8224374,646578,{"$f":"Q549","v":16261},{"$f":"SUM(G18:Q18)","v":147821325},{"$f":"F18-R18","v":0}]
[9,null,{"$f":"'FR-16(7)(v)-1 Functional'!C19","v":"TOTAL DEPRECIATION EXPENSE"},null,null,{"$f":"F582","v":1866822},{"$f":"G582","v":704631},{"$f":"H582","v":502754},{"$f":"I582","v":2819},{"$f":"J582","v":7990},131,308044,213957,10025,108127,8139,{"$f":"Q582","v":205},{"$f":"SUM(G19:Q19)","v":1866822},0]
[10,null,{"$f":"'FR-16(7)(v)-1 Functional'!C20","v":"TOTAL OTHER TAX & MISC EXPENSE"},null,null,{"$f":"F612","v":506262},{"$f":"G612","v":192559},{"$f":"H612","v":137051},{"$f":"I612","v":775},{"$f":"J612","v":2096},36,83039,57501,2693,28200,2258,{"$f":"$Q$612","v":54},{"$f":"SUM(G20:Q20)","v":506262},0]
[11,null,{"$f":"'FR-16(7)(v)-1 Functional'!C21","v":"  TOTAL OP EXP EXCLUDING INC & REV TAX"},null,null,{"$f":"SUM(F17:F20)","v":150194409},56861131,40547787,226804,{"$f":"SUM(J17:J20)","v":643834},10515,24796737,17263741,809664,8360701,656975,16520,150194409,0]
[12,null,{"$f":"'FR-16(7)(v)-1 Functional'!C22","v":"NET FED INCOME TAX EXP ALLOWABLE"},null,null,{"$f":"F676","v":11018070},{"$f":"G676","v":4171600},{"$f":"H676","v":2974642},{"$f":"I676","v":16638},{"$f":"J676","v":47270},771,1819094,1266572,59391,612729,48151,{"$f":"$Q$676","v":1212},{"$f":"SUM(G22:Q22)","v":11018070},0]
[13,null,"NET STATE INCOME TAX EXP ALLOWABLE",null,null,{"$f":"F722","v":1865123},{"$f":"G722","v":706182},503554,2817,8002,130,307935,214409,10055,103683,8151,205,{"$f":"SUM(G23:Q23)","v":1865123},0]
[14,null,"RESERVED",{"$f":"'FR-16(7)(v)-1 Functional'!D24","v":"CW29"},null,{"$f":"'FR-16(7)(v)-2 PROD Classified'!H24","v":0},{"$f":"F24-SUM(H24:Q24)","v":0},{"$f":"ROUND(F24*VLOOKUP(D73,ALLOCTABLE_Prod_Energy,$H$10,FALSE),0)","v":0},{"$f":"ROUND(F24*VLOOKUP(D24,ALLOCTABLE_Prod_Energy,$I$10,FALSE),0)","v":0},{"$f":"ROUND(F24*VLOOKUP(D24,ALLOCTABLE_Prod_Energy,$J$10,FALSE),0)","v":0},{"$f":"ROUND(F24*VLOOKUP(D24,ALLOCTABLE_Prod_Energy,$K$10,FALSE),0)","v":0},{"$f":"ROUND(F24*VLOOKUP(D24,ALLOCTABLE_Prod_Energy,$L$10,FALSE),0)","v":0},{"$f":"ROUND(F24*VLOOKUP(D24,ALLOCTABLE_Prod_Energy,$M$10,FALSE),0)","v":0},{"$f":"ROUND(F24*VLOOKUP(D24,ALLOCTABLE_Prod_Energy,$N$10,FALSE),0)","v":0},{"$f":"ROUND(F24*VLOOKUP(D24,ALLOCTABLE_Prod_Energy,$O$10,FALSE),0)","v":0},{"$f":"ROUND(F24*VLOOKUP(D24,ALLOCTABLE_Prod_Energy,$P$10,FALSE),0)","v":0},{"$f":"ROUND(F24*VLOOKUP(D24,ALLOCTABLE_Prod_Energy,$Q$10,FALSE),0)","v":0},{"$f":"SUM(G24:Q24)","v":0},{"$f":"F24-R24","v":0}]
[15,null,{"$f":"'FR-16(7)(v)-1 Functional'!C25","v":"REVENUE TAX"},null,null,{"$f":"F767","v":0},{"$f":"G767","v":0},{"$f":"H767","v":0},{"$f":"I767","v":0},{"$f":"J767","v":0},0,0,0,0,0,0,{"$f":"Q767","v":0},{"$f":"SUM(G25:Q25)","v":0},0]
[16,null,{"$f":"'FR-16(7)(v)-1 Functional'!C26","v":"  TOTAL OPERATING EXPENSE"},null,null,{"$f":"SUM(F21:F25)","v":163077602},61738913,44025983,246259,{"$f":"SUM(J21:J25)","v":699106},11416,26923766,18744722,879110,9077113,713277,17937,163077602,0]
[17]
[18,"RETURN ON RATE BASE",null,null,null,{"$f":"F433","v":2128554},803040,573028,3214,9110,149,351190,243826,11430,124052,9281,234,{"$f":"SUM(G28:Q28)","v":2128554},{"$f":"F28-R28","v":0}]
[19,"TOTAL OTHER OPERATING REVENUES",null,null,null,{"$f":"-F750","v":0},{"$f":"-G750","v":0},{"$f":"-H750","v":0},{"$f":"-I750","v":0},{"$f":"-J750","v":0},0,0,0,0,0,0,{"$f":"-$Q$750","v":0},{"$f":"SUM(G29:Q29)","v":0},0]
[20,null,{"$f":"'FR-16(7)(v)-1 Functional'!C30","v":"TOTAL ELECTRIC COST OF SERVICE"},null,null,{"$f":"SUM(F26:F29)","v":165206156},62541953,44599011,249473,{"$f":"SUM(J26:J29)","v":708216},11565,27274956,18988548,890540,9201165,722558,18171,165206156,0]
[21,"ADJUSTMENT FOR INTERCLASS SUBSIDIZATION",null,{"$f":"1-'WP FR-16(7)(v) Rate Incr'!I11","v":0.95},null,{"$f":"'WP FR-16(7)(v) Rate Incr'!Q27","v":0},{"$f":"'WP FR-16(7)(v) Rate Incr'!Q15","v":-9336840},{"$f":"'WP FR-16(7)(v) Rate Incr'!Q16","v":6445498},{"$f":"'WP FR-16(7)(v) Rate Incr'!Q17","v":89344},{"$f":"'WP FR-16(7)(v) Rate Incr'!R17","v":6774},{"$f":"'WP FR-16(7)(v) Rate Incr'!S17","v":56376},{"$f":"'WP FR-16(7)(v) Rate Incr'!T17","v":111986},{"$f":"'WP FR-16(7)(v) Rate Incr'!U17","v":0},{"$f":"'WP FR-16(7)(v) Rate Incr'!V17","v":40507},{"$f":"'WP FR-16(7)(v) Rate Incr'!W17","v":0},{"$f":"'WP FR-16(7)(v) Rate Incr'!X17","v":0},{"$f":"'WP FR-16(7)(v) Rate Incr'!Q25","v":-9875},{"$f":"SUM(G31:Q31)","v":-2596230},2596230]
[22,{"$f":"'FR-16(7)(v)-1 Functional'!$B$32","v":"REQUESTED REVENUES (COST OF SERVICE ADJUSTED FOR SUBSIDIES)"},null,null,null,{"$f":"F31+F30","v":165206156},53205113,51044509,338817,{"$f":"J31+J30","v":714990},67941,27386942,18988548,931047,9201165,722558,8296,162609926,2596230]
[23,"PROPOSED REVENUES",null,null,null,{"$f":"F868","v":122188315},46260496,32987179,184504,{"$f":"J868","v":524188},8553,20173291,14045547,658595,6798558,533963,13441,122188315,0]
[24,"DIFFERENCE (REQUESTED LESS PROPOSED)",null,null,null,{"$f":"F32-F33","v":43017841},{"$f":"G32-G33","v":6944617},18057330,154313,{"$f":"J32-J33","v":190802},59388,7213651,4943001,272452,2402607,188595,-5145,40421611,2596230]
[25]
[26,"TOTAL RETURN EARNED",null,null,null,{"$f":"F777+F28","v":-30167041},{"$f":"G777+G28","v":-11420247},{"$f":"H777+H28","v":-8144542},{"$f":"I777+I28","v":-45561},{"$f":"J777+J28","v":-129049},-2112,-4980377,-3467126,-162702,-1679702,-132306,{"$f":"Q777+Q28","v":-3317},{"$f":"R777+R28","v":-30167041},{"$f":"F36-R36","v":0}]
[27,"RATE OF RETURN EARNED",null,null,null,{"$f":"IF(F431=0,0,ROUND(F36/F431,5))","v":-0.95111999999999997},-0.95438999999999996,-0.95384999999999998,-0.95130999999999999,-0.95064000000000004,-0.95135000000000003,{"$f":"IF(F431=0,0,ROUND(F36/L431,5))","v":-5.76471},{"$f":"IF(F431=0,0,ROUND(F36/M431,5))","v":-8.3031000000000006},{"$f":"IF(N431=0,0,ROUND(N36/N431,5))","v":-0.95526},-0.90869,-0.95674000000000003,-0.95069999999999999,-0.95111999999999997,0]
[28,"TOTAL RATE OF RETURN ALLOWABLE",null,null,null,{"$f":"$F$811","v":6.7100000000000007E-2},{"$f":"$F$811","v":6.7100000000000007E-2},6.7100000000000007E-2,6.7100000000000007E-2,6.7100000000000007E-2,6.7100000000000007E-2,6.7100000000000007E-2,6.7100000000000007E-2,6.7100000000000007E-2,6.7100000000000007E-2,6.7100000000000007E-2,6.7100000000000007E-2,{"$f":"F811","v":6.7100000000000007E-2},{"$f":"F811","v":6.7100000000000007E-2},null,null,"Not Part of print range"]
[29,"RETURN EARNED ON COMMON EQUITY",null,null,null,{"$f":"IF(Equity=0,0,(F37-$F$806-$F$807-$F$809)*TotalCap/Equity)","v":-2.0129218433447531},-2.0197012427059131,-2.0185817088664555,-2.0133157533993775,-2.0119267021541245,-2.01339868183193,-11.992508684594158,-17.255126282262232,-2.0215049361139283,-1.9249555085147798,-2.024573288118368,-2.0120510948029531,{"$f":"IF(Equity=0,0,(R37-F806-F807-F809)*TotalCap/Equity)","v":-2.0129218433447531},{"$f":"IF(Equity=0,0,(S37-F806-F807-F809)*TotalCap/Equity)","v":-4.1049574113445099E-2},null,null,"Not Filed"]
[30,"ALLOWED RETURN ON COMMON EQUITY",null,null,null,{"$f":"IF(Equity=0,0,(F38-$F$806-$F$807-$F$809)*TotalCap/Equity)","v":9.8062871493229981E-2},9.8062871493229981E-2,9.8062871493229981E-2,9.8062871493229981E-2,9.8062871493229981E-2,9.8062871493229981E-2,9.8062871493229981E-2,9.8062871493229981E-2,9.8062871493229981E-2,9.8062871493229981E-2,9.8062871493229981E-2,9.8062871493229981E-2,{"$f":"IF(Equity=0,0,(R38-F806-F807-F809)*TotalCap/Equity)","v":9.8062871493229981E-2},{"$f":"IF(Equity=0,0,(S38-F806-F807-F809)*TotalCap/Equity)","v":9.8062871493229981E-2}]
[31,null,null,null,null," "]
[32,"PRESENT REVENUES",null,null,null,{"$f":"F867","v":144487356},54698455,39005769,218186,{"$f":"J867","v":619397},10115,23854355,16607160,778856,8047230,631941,15892,144487356,{"$f":"F42-R42","v":0}]
[33,"REVENUE INCREASE JUSTIFIED",null,null,null,{"$f":"F30-F42","v":20718800},7843498,5593242,31287,{"$f":"J30-J42","v":88819},1450,3420601,2381388,111684,1153935,90617,2279,20718800,0]
[34,null,"PER UNIT PRES REV",null,null,{"$f":"IF(F42=0,0,ROUND(F43/F42,5))","v":0.1434},0.1434,0.1434,0.1434,{"$f":"IF(J42=0,0,ROUND(J43/J42,5))","v":0.1434},0.14335000000000001,{"$f":"IF(F42=0,0,ROUND(F43/L42,5))","v":0.86855000000000004},{"$f":"IF(F42=0,0,ROUND(F43/M42,5))","v":1.2475799999999999},0.14338999999999999,0.1434,0.14338999999999999,0.14341000000000001,0.1434,0]
[35,"REVENUE INCREASE REQUESTED",null,null,null,{"$f":"F33-F42","v":-22299041},-8437959,-6018590,-33682,{"$f":"J33-J42","v":-95209},-1562,-3681064,-2561613,-120261,-1248672,-97978,-2451,-22299041,0]
[36,null,"PER UNIT PRES REV",null,null,{"$f":"IF(F42=0,0,ROUND(F45/F42,5))","v":-0.15432999999999999},-0.15426000000000001,-0.15429999999999999,-0.15437000000000001,{"$f":"IF(J42=0,0,ROUND(J45/J42,5))","v":-0.15371000000000001},-0.15442,{"$f":"IF(F42=0,0,ROUND(F45/L42,5))","v":-0.93479999999999996},{"$f":"IF(F42=0,0,ROUND(F45/M42,5))","v":-1.34274},-0.15440999999999999,-0.15517,-0.15504000000000001,-0.15423000000000001,-0.15432999999999999,0]
[]
[{"$f":"co_name","v":"DUKE ENERGY KENTUCKY, INC."},null,null,null,null,null,null,null,null,null,null,null,null,null,null,null,null,{"$f":"R1","v":"FR-16(7)(v)-4"}]
[{"$f":"$A$2","v":"PRODUCTION ENERGY ALLOCATED - ELECTRIC COST OF SERVICE"},null,null,null,null,null,null,null,null,null,null,null,null,null,null,null,null,{"$f":"R2","v":"WITNESS RESPONSIBLE:"}]
[{"$f":"case_name","v":"CASE NO: 2019-00271"},null,null,null,null,null,null,null,null,null,null,null,null,null,null,null,null,{"$f":"Witness","v":"JAMES E. ZIOLKOWSKI"}]
[{"$f":"data_filing","v":"DATA: 12 MONTHS ACTUAL  & 0 MONTHS ESTIMATED"},null,null,null,null,null,null,null,null,null,null,null,null,null,null,null,null,{"$f":"\"PAGE \"&Pages-16&\" OF \"&Pages","v":"PAGE 2 OF 18"}]
[{"$f":"type","v":"TYPE OF FILING: \"X\" ORIGINAL   UPDATED    REVISED  "}]
[]
[null,null,null,null,null,{"$f":"F$7","v":"TOTAL"},null,{"$f":"H$7","v":"DS"},{"$f":"I$7","v":"GSFL"},{"$f":"J$7","v":"EH"},{"$f":"K$7","v":"SP"},"DT SEC","DT PRI","DP","TT",null,"OTHER"]
["LINE",null,null,null,null,{"$f":"F$8","v":"PRODUCTION"},{"$f":"G$8","v":"RS"},{"$f":"H$8","v":"SECONDARY"},{"$f":"I$8","v":"SECONDARY"},{"$f":"J$8","v":"SECONDARY"},{"$f":"K$8","v":"SECONDARY"},"SECONDARY","PRIMARY","PRIMARY","TRANSMISSION","LT","WATER",{"$f":"R8","v":"TOTAL"},"ALL"]
["NO.","GROSS ELECTRIC PLANT IN SERVICE",null,"ALLO",null,{"$f":"F$9","v":"ENERGY"},{"$f":"G$9","v":"RESIDENTIAL"},{"$f":"H$9","v":"DISTRIBUTION"},{"$f":"I$9","v":"DISTRIBUTION"},{"$f":"J$9","v":"DISTRIBUTION"},{"$f":"K$9","v":"DISTRIBUTION"},"DISTRIBUTION","DISTRIBUTION","DISTRIBUTION","TIME OF DAY","LIGHTING","PUMPING",{"$f":"R9","v":"AT ISSUE"},"OTHER"]
[null,null,"Schedule 2",null,null,null,{"$f":"G$10","v":3},{"$f":"H$10","v":4},{"$f":"I$10","v":5},{"$f":"J$10","v":6},{"$f":"K$10","v":7},8,9,10,11,12,13,null," "]
[1,"PRODUCTION PLANT"]
[2,null,"PRODUCTION STEAM",{"$f":"'FR-16(7)(v)-1 Functional'!D59","v":"K201"},null,{"$f":"'FR-16(7)(v)-2 PROD Classified'!H59","v":0},{"$f":"F59-SUM(H59:Q59)","v":0},{"$f":"ROUND(F59*VLOOKUP(D59,ALLOCTABLE_Prod_Energy,$H$10,FALSE),0)","v":0},{"$f":"ROUND(F59*VLOOKUP(D59,ALLOCTABLE_Prod_Energy,$I$10,FALSE),0)","v":0},{"$f":"ROUND(F59*VLOOKUP(D59,ALLOCTABLE_Prod_Energy,$J$10,FALSE),0)","v":0},{"$f":"ROUND(F59*VLOOKUP(D59,ALLOCTABLE_Prod_Energy,$K$10,FALSE),0)","v":0},{"$f":"ROUND(F59*VLOOKUP(D59,ALLOCTABLE_Prod_Energy,$L$10,FALSE),0)","v":0},{"$f":"ROUND(F59*VLOOKUP(D59,ALLOCTABLE_Prod_Energy,$M$10,FALSE),0)","v":0},{"$f":"ROUND(F59*VLOOKUP(D59,ALLOCTABLE_Prod_Energy,$N$10,FALSE),0)","v":0},{"$f":"ROUND(F59*VLOOKUP(D59,ALLOCTABLE_Prod_Energy,$O$10,FALSE),0)","v":0},{"$f":"ROUND(F59*VLOOKUP(D59,ALLOCTABLE_Prod_Energy,$P$10,FALSE),0)","v":0},{"$f":"ROUND(F59*VLOOKUP(D59,ALLOCTABLE_Prod_Energy,$Q$10,FALSE),0)","v":0},{"$f":"SUM(G59:Q59)","v":0},{"$f":"F59-R59","v":0}]
[3,null,"PRODUCTION OTHER",{"$f":"'FR-16(7)(v)-1 Functional'!D60","v":"K201"},null,{"$f":"'FR-16(7)(v)-2 PROD Classified'!H60","v":0},{"$f":"F60-SUM(H60:Q60)","v":0},{"$f":"ROUND(F60*VLOOKUP(D60,ALLOCTABLE_Prod_Energy,$H$10,FALSE),0)","v":0},{"$f":"ROUND(F60*VLOOKUP(D60,ALLOCTABLE_Prod_Energy,$I$10,FALSE),0)","v":0},{"$f":"ROUND(F60*VLOOKUP(D60,ALLOCTABLE_Prod_Energy,$J$10,FALSE),0)","v":0},{"$f":"ROUND(F60*VLOOKUP(D60,ALLOCTABLE_Prod_Energy,$K$10,FALSE),0)","v":0},{"$f":"ROUND(F60*VLOOKUP(D60,ALLOCTABLE_Prod_Energy,$L$10,FALSE),0)","v":0},{"$f":"ROUND(F60*VLOOKUP(D60,ALLOCTABLE_Prod_Energy,$M$10,FALSE),0)","v":0},{"$f":"ROUND(F60*VLOOKUP(D60,ALLOCTABLE_Prod_Energy,$N$10,FALSE),0)","v":0},{"$f":"ROUND(F60*VLOOKUP(D60,ALLOCTABLE_Prod_Energy,$O$10,FALSE),0)","v":0},{"$f":"ROUND(F60*VLOOKUP(D60,ALLOCTABLE_Prod_Energy,$P$10,FALSE),0)","v":0},{"$f":"ROUND(F60*VLOOKUP(D60,ALLOCTABLE_Prod_Energy,$Q$10,FALSE),0)","v":0},{"$f":"SUM(G60:Q60)","v":0},{"$f":"F60-R60","v":0}]
[4,null,{"$f":"'FR-16(7)(v)-1 Functional'!C61","v":"ADJUSTMENT"},{"$f":"'FR-16(7)(v)-1 Functional'!D61","v":"K201"},null,{"$f":"'FR-16(7)(v)-2 PROD Classified'!H61","v":0},{"$f":"F61-SUM(H61:Q61)","v":0},{"$f":"ROUND(F61*VLOOKUP(D61,ALLOCTABLE_Prod_Energy,$H$10,FALSE),0)","v":0},{"$f":"ROUND(F61*VLOOKUP(D61,ALLOCTABLE_Prod_Energy,$I$10,FALSE),0)","v":0},{"$f":"ROUND(F61*VLOOKUP(D61,ALLOCTABLE_Prod_Energy,$J$10,FALSE),0)","v":0},{"$f":"ROUND(F61*VLOOKUP(D61,ALLOCTABLE_Prod_Energy,$K$10,FALSE),0)","v":0},{"$f":"ROUND(F61*VLOOKUP(D61,ALLOCTABLE_Prod_Energy,$L$10,FALSE),0)","v":0},{"$f":"ROUND(F61*VLOOKUP(D61,ALLOCTABLE_Prod_Energy,$M$10,FALSE),0)","v":0},{"$f":"ROUND(F61*VLOOKUP(D61,ALLOCTABLE_Prod_Energy,$N$10,FALSE),0)","v":0},{"$f":"ROUND(F61*VLOOKUP(D61,ALLOCTABLE_Prod_Energy,$O$10,FALSE),0)","v":0},{"$f":"ROUND(F61*VLOOKUP(D61,ALLOCTABLE_Prod_Energy,$P$10,FALSE),0)","v":0},{"$f":"ROUND(F61*VLOOKUP(D61,ALLOCTABLE_Prod_Energy,$Q$10,FALSE),0)","v":0},{"$f":"SUM(G61:Q61)","v":0},{"$f":"F61-R61","v":0}]
[5,null,{"$f":"'FR-16(7)(v)-1 Functional'!C62","v":"  PRODUCTION PLANT IN SERVICE"},null,null,{"$f":"SUM(F59:F61)","v":0},{"$f":"SUM(G59:G61)","v":0},{"$f":"SUM(H59:H61)","v":0},{"$f":"SUM(I59:I61)","v":0},{"$f":"SUM(J59:J61)","v":0},0,0,0,0,0,0,{"$f":"SUM($Q$59:$Q$61)","v":0},{"$f":"SUM(R59:R61)","v":0},{"$f":"SUM(S59:S61)","v":0}]
[6]
[7,"TRANSMISSION PLANT"]
[8,null,"MAIN STEP-UP TRANSFORMERS",{"$f":"'FR-16(7)(v)-1 Functional'!D65","v":"K202"},null,{"$f":"'FR-16(7)(v)-2 PROD Classified'!H65","v":0},{"$f":"F65-SUM(H65:Q65)","v":0},{"$f":"ROUND(F65*VLOOKUP(D65,ALLOCTABLE_Prod_Energy,$H$10,FALSE),0)","v":0},{"$f":"ROUND(F65*VLOOKUP(D65,ALLOCTABLE_Prod_Energy,$I$10,FALSE),0)","v":0},{"$f":"ROUND(F65*VLOOKUP(D65,ALLOCTABLE_Prod_Energy,$J$10,FALSE),0)","v":0},{"$f":"ROUND(F65*VLOOKUP(D65,ALLOCTABLE_Prod_Energy,$K$10,FALSE),0)","v":0},{"$f":"ROUND(F65*VLOOKUP(D65,ALLOCTABLE_Prod_Energy,$L$10,FALSE),0)","v":0},{"$f":"ROUND(F65*VLOOKUP(D65,ALLOCTABLE_Prod_Energy,$M$10,FALSE),0)","v":0},{"$f":"ROUND(F65*VLOOKUP(D65,ALLOCTABLE_Prod_Energy,$N$10,FALSE),0)","v":0},{"$f":"ROUND(F65*VLOOKUP(D65,ALLOCTABLE_Prod_Energy,$O$10,FALSE),0)","v":0},{"$f":"ROUND(F65*VLOOKUP(D65,ALLOCTABLE_Prod_Energy,$P$10,FALSE),0)","v":0},{"$f":"ROUND(F65*VLOOKUP(D65,ALLOCTABLE_Prod_Energy,$Q$10,FALSE),0)","v":0},{"$f":"SUM(G65:Q65)","v":0},{"$f":"F65-R65","v":0}]
[9,null,"OTHER TRANSMISSION",{"$f":"'FR-16(7)(v)-1 Functional'!D66","v":"K202"},null,{"$f":"'FR-16(7)(v)-2 PROD Classified'!H66","v":0},{"$f":"F66-SUM(H66:Q66)","v":0},{"$f":"ROUND(F66*VLOOKUP(D66,ALLOCTABLE_Prod_Energy,$H$10,FALSE),0)","v":0},{"$f":"ROUND(F66*VLOOKUP(D66,ALLOCTABLE_Prod_Energy,$I$10,FALSE),0)","v":0},{"$f":"ROUND(F66*VLOOKUP(D66,ALLOCTABLE_Prod_Energy,$J$10,FALSE),0)","v":0},{"$f":"ROUND(F66*VLOOKUP(D66,ALLOCTABLE_Prod_Energy,$K$10,FALSE),0)","v":0},{"$f":"ROUND(F66*VLOOKUP(D66,ALLOCTABLE_Prod_Energy,$L$10,FALSE),0)","v":0},{"$f":"ROUND(F66*VLOOKUP(D66,ALLOCTABLE_Prod_Energy,$M$10,FALSE),0)","v":0},{"$f":"ROUND(F66*VLOOKUP(D66,ALLOCTABLE_Prod_Energy,$N$10,FALSE),0)","v":0},{"$f":"ROUND(F66*VLOOKUP(D66,ALLOCTABLE_Prod_Energy,$O$10,FALSE),0)","v":0},{"$f":"ROUND(F66*VLOOKUP(D66,ALLOCTABLE_Prod_Energy,$P$10,FALSE),0)","v":0},{"$f":"ROUND(F66*VLOOKUP(D66,ALLOCTABLE_Prod_Energy,$Q$10,FALSE),0)","v":0},{"$f":"SUM(G66:Q66)","v":0},{"$f":"F66-R66","v":0}]
[10,null,"ADJUSTMENT",{"$f":"'FR-16(7)(v)-1 Functional'!D67","v":"K202"},null,{"$f":"'FR-16(7)(v)-2 PROD Classified'!H67","v":0},{"$f":"F67-SUM(H67:Q67)","v":0},{"$f":"ROUND(F67*VLOOKUP(D67,ALLOCTABLE_Prod_Energy,$H$10,FALSE),0)","v":0},{"$f":"ROUND(F67*VLOOKUP(D67,ALLOCTABLE_Prod_Energy,$I$10,FALSE),0)","v":0},{"$f":"ROUND(F67*VLOOKUP(D67,ALLOCTABLE_Prod_Energy,$J$10,FALSE),0)","v":0},{"$f":"ROUND(F67*VLOOKUP(D67,ALLOCTABLE_Prod_Energy,$K$10,FALSE),0)","v":0},{"$f":"ROUND(F67*VLOOKUP(D67,ALLOCTABLE_Prod_Energy,$L$10,FALSE),0)","v":0},{"$f":"ROUND(F67*VLOOKUP(D67,ALLOCTABLE_Prod_Energy,$M$10,FALSE),0)","v":0},{"$f":"ROUND(F67*VLOOKUP(D67,ALLOCTABLE_Prod_Energy,$N$10,FALSE),0)","v":0},{"$f":"ROUND(F67*VLOOKUP(D67,ALLOCTABLE_Prod_Energy,$O$10,FALSE),0)","v":0},{"$f":"ROUND(F67*VLOOKUP(D67,ALLOCTABLE_Prod_Energy,$P$10,FALSE),0)","v":0},{"$f":"ROUND(F67*VLOOKUP(D67,ALLOCTABLE_Prod_Energy,$Q$10,FALSE),0)","v":0},{"$f":"SUM(G67:Q67)","v":0},{"$f":"F67-R67","v":0}]
[11,null,{"$f":"'FR-16(7)(v)-1 Functional'!C68","v":"  TRANSMISSION PLANT IN SERVICE"},null,null,{"$f":"SUM(F65:F67)","v":0},0,0,0,0,0,0,0,0,0,0,0,0,{"$f":"SUM(S65)","v":0}]
[12]
[13,"TOTAL PROD & TRANS PLANT",null,null,null,{"$f":"F68+F62","v":0},{"$f":"G68+G62","v":0},{"$f":"H68+H62","v":0},{"$f":"I68+I62","v":0},{"$f":"J68+J62","v":0},0,0,0,0,0,0,{"$f":"$Q$68+$Q$62","v":0},{"$f":"R68+R62","v":0},{"$f":"S68+S62","v":0}]
[14]
[15,"DISTRIBUTION PLANT"]
[16,null,{"$f":"'FR-16(7)(v)-1 Functional'!C73","v":"SUBSTATIONS"},{"$f":"'FR-16(7)(v)-1 Functional'!D73","v":"K215"},null,{"$f":"'FR-16(7)(v)-2 PROD Classified'!H73","v":0},{"$f":"F73-SUM(H73:Q73)","v":0},{"$f":"ROUND(F73*VLOOKUP(D73,ALLOCTABLE_Prod_Energy,$H$10,FALSE),0)","v":0},{"$f":"ROUND(F73*VLOOKUP(D73,ALLOCTABLE_Prod_Energy,$I$10,FALSE),0)","v":0},{"$f":"ROUND(F73*VLOOKUP(D73,ALLOCTABLE_Prod_Energy,$J$10,FALSE),0)","v":0},{"$f":"ROUND(F73*VLOOKUP(D73,ALLOCTABLE_Prod_Energy,$K$10,FALSE),0)","v":0},{"$f":"ROUND(F73*VLOOKUP(D73,ALLOCTABLE_Prod_Energy,$L$10,FALSE),0)","v":0},{"$f":"ROUND(F73*VLOOKUP(D73,ALLOCTABLE_Prod_Energy,$M$10,FALSE),0)","v":0},{"$f":"ROUND(F73*VLOOKUP(D73,ALLOCTABLE_Prod_Energy,$N$10,FALSE),0)","v":0},{"$f":"ROUND(F73*VLOOKUP(D73,ALLOCTABLE_Prod_Energy,$O$10,FALSE),0)","v":0},{"$f":"ROUND(F73*VLOOKUP(D73,ALLOCTABLE_Prod_Energy,$P$10,FALSE),0)","v":0},{"$f":"ROUND(F73*VLOOKUP(D73,ALLOCTABLE_Prod_Energy,$Q$10,FALSE),0)","v":0},{"$f":"SUM(G73:Q73)","v":0},{"$f":"F73-R73","v":0}]
[17,null,{"$f":"'FR-16(7)(v)-1 Functional'!C74","v":"POLES, TOWERS  & FIXTURES - PRIMARY - DEMAND"},{"$f":"'FR-16(7)(v)-1 Functional'!D74","v":"K205"},null,{"$f":"'FR-16(7)(v)-2 PROD Classified'!H74","v":0},{"$f":"F74-SUM(H74:Q74)","v":0},{"$f":"ROUND(F74*VLOOKUP(D74,ALLOCTABLE_Prod_Energy,$H$10,FALSE),0)","v":0},0,0,0,0,0,0,0,0,{"$f":"ROUND(F74*VLOOKUP(D74,ALLOCTABLE_Prod_Energy,$Q$10,FALSE),0)","v":0},{"$f":"SUM(G74:Q74)","v":0},{"$f":"F74-R74","v":0}]
[18,null,{"$f":"'FR-16(7)(v)-1 Functional'!C75","v":"POLES, TOWERS  & FIXTURES - PRIMARY - CUSTOMER"},{"$f":"'FR-16(7)(v)-1 Functional'!D75","v":"K405"},null,{"$f":"'FR-16(7)(v)-2 PROD Classified'!H75","v":0},{"$f":"F75-SUM(H75:Q75)","v":0},{"$f":"ROUND(F75*VLOOKUP(D75,ALLOCTABLE_Prod_Energy,$H$10,FALSE),0)","v":0},0,0,0,0,0,0,0,0,{"$f":"ROUND(F75*VLOOKUP(D75,ALLOCTABLE_Prod_Energy,$Q$10,FALSE),0)","v":0},{"$f":"SUM(G75:Q75)","v":0},{"$f":"F75-R75","v":0}]
[19,null,{"$f":"'FR-16(7)(v)-1 Functional'!C76","v":"POLES, TOWERS  & FIXTURES - SECONDARY - DEMAND"},{"$f":"'FR-16(7)(v)-1 Functional'!D76","v":"K206"},null,{"$f":"'FR-16(7)(v)-2 PROD Classified'!H76","v":0},0,0,0,0,0,0,0,0,0,0,0,0,0]
[20,null,{"$f":"'FR-16(7)(v)-1 Functional'!C77","v":"POLES, TOWERS  & FIXTURES - SECONDARY - CUSTOMER"},{"$f":"'FR-16(7)(v)-1 Functional'!D77","v":"K405"},null,{"$f":"'FR-16(7)(v)-2 PROD Classified'!H77","v":0},0,0,0,0,0,0,0,0,0,0,0,0,0]
[21,null,{"$f":"'FR-16(7)(v)-1 Functional'!C78","v":"CONDUCTORS - OVERHEAD / PRIMARY - DEMAND"},{"$f":"'FR-16(7)(v)-1 Functional'!D78","v":"K205"},null,{"$f":"'FR-16(7)(v)-2 PROD Classified'!H78","v":0},0,0,0,0,0,0,0,0,0,0,0,0,0]
[22,null,{"$f":"'FR-16(7)(v)-1 Functional'!C79","v":"CONDUCTORS - OVERHEAD / PRIMARY - CUSTOMER"},{"$f":"'FR-16(7)(v)-1 Functional'!D79","v":"K405"},null,{"$f":"'FR-16(7)(v)-2 PROD Classified'!H79","v":0},0,0,0,0,0,0,0,0,0,0,0,0,0]
[23,null,{"$f":"'FR-16(7)(v)-1 Functional'!C80","v":"CONDUCTORS - OVERHEAD / SECONDARY - DEMAND"},{"$f":"'FR-16(7)(v)-1 Functional'!D80","v":"K206"},null,{"$f":"'FR-16(7)(v)-2 PROD Classified'!H80","v":0},0,0,0,0,0,0,0,0,0,0,0,0,0]
[24,null,{"$f":"'FR-16(7)(v)-1 Functional'!C81","v":"CONDUCTORS - OVERHEAD / SECONDARY - CUSTOMER"},{"$f":"'FR-16(7)(v)-1 Functional'!D81","v":"K405"},null,{"$f":"'FR-16(7)(v)-2 PROD Classified'!H81","v":0},0,0,0,0,0,0,0,0,0,0,0,0,0]
[25,null,{"$f":"'FR-16(7)(v)-1 Functional'!C82","v":"CONDUCTORS - UNDERGROUND / PRIMARY - DEMAND"},{"$f":"'FR-16(7)(v)-1 Functional'!D82","v":"K205"},null,{"$f":"'FR-16(7)(v)-2 PROD Classified'!H82","v":0},0,0,0,0,0,0,0,0,0,0,0,0,0]
[26,null,{"$f":"'FR-16(7)(v)-1 Functional'!C83","v":"CONDUCTORS - UNDERGROUND / PRIMARY - CUSTOMER"},{"$f":"'FR-16(7)(v)-1 Functional'!D83","v":"K405"},null,{"$f":"'FR-16(7)(v)-2 PROD Classified'!H83","v":0},0,0,0,0,0,0,0,0,0,0,0,0,0]
[27,null,{"$f":"'FR-16(7)(v)-1 Functional'!C84","v":"CONDUCTORS - UNDERGROUND / SECONDARY - DEMAND"},{"$f":"'FR-16(7)(v)-1 Functional'!D84","v":"K206"},null,{"$f":"'FR-16(7)(v)-2 PROD Classified'!H84","v":0},0,0,0,0,0,0,0,0,0,0,0,0,0]
[28,null,{"$f":"'FR-16(7)(v)-1 Functional'!C85","v":"CONDUCTORS - UNDERGROUND / SECONDARY - CUSTOMER"},{"$f":"'FR-16(7)(v)-1 Functional'!D85","v":"K405"},null,{"$f":"'FR-16(7)(v)-2 PROD Classified'!H85","v":0},0,0,0,0,0,0,0,0,0,0,{"$f":"ROUND(F85*VLOOKUP(D85,ALLOCTABLE_Prod_Energy,$Q$10,FALSE),0)","v":0},{"$f":"SUM(G85:Q85)","v":0},0]
[29,null,{"$f":"'FR-16(7)(v)-1 Functional'!C86","v":"TRANSFORMERS DEMAND RELATED"},{"$f":"'FR-16(7)(v)-1 Functional'!D86","v":"K215"},null,{"$f":"'FR-16(7)(v)-2 PROD Classified'!H86","v":0},{"$f":"F86-SUM(H86:Q86)","v":0},{"$f":"ROUND(F86*VLOOKUP(D86,ALLOCTABLE_Prod_Energy,$H$10,FALSE),0)","v":0},0,0,0,0,0,0,0,0,0,0,{"$f":"F86-R86","v":0}]
[30,null,{"$f":"'FR-16(7)(v)-1 Functional'!C87","v":"TRANSFORMERS CUSTOMER RELATED"},{"$f":"'FR-16(7)(v)-1 Functional'!D87","v":"K405"},null,{"$f":"'FR-16(7)(v)-2 PROD Classified'!H87","v":0},0,0,{"$f":"ROUND(F87*VLOOKUP(D86,ALLOCTABLE_Prod_Energy,$I$10,FALSE),0)","v":0},{"$f":"ROUND(F87*VLOOKUP(D86,ALLOCTABLE_Prod_Energy,$J$10,FALSE),0)","v":0},{"$f":"ROUND(F87*VLOOKUP(D86,ALLOCTABLE_Prod_Energy,$K$10,FALSE),0)","v":0},{"$f":"ROUND(F87*VLOOKUP(D86,ALLOCTABLE_Prod_Energy,$L$10,FALSE),0)","v":0},{"$f":"ROUND(F87*VLOOKUP(D86,ALLOCTABLE_Prod_Energy,$M$10,FALSE),0)","v":0},{"$f":"ROUND(F87*VLOOKUP(D86,ALLOCTABLE_Prod_Energy,$N$10,FALSE),0)","v":0},{"$f":"ROUND(F87*VLOOKUP(D86,ALLOCTABLE_Prod_Energy,$O$10,FALSE),0)","v":0},0,0,0,0]
[31,null,{"$f":"'FR-16(7)(v)-1 Functional'!C88","v":"SERVICES"},{"$f":"'FR-16(7)(v)-1 Functional'!D88","v":"K217"},null,{"$f":"'FR-16(7)(v)-2 PROD Classified'!H88","v":0},0,0,{"$f":"ROUND(F88*VLOOKUP(D88,ALLOCTABLE_Prod_Energy,$I$10,FALSE),0)","v":0},{"$f":"ROUND(F88*VLOOKUP(D88,ALLOCTABLE_Prod_Energy,$J$10,FALSE),0)","v":0},{"$f":"ROUND(F88*VLOOKUP(D88,ALLOCTABLE_Prod_Energy,$K$10,FALSE),0)","v":0},{"$f":"ROUND(F88*VLOOKUP(D88,ALLOCTABLE_Prod_Energy,$L$10,FALSE),0)","v":0},{"$f":"ROUND(F88*VLOOKUP(D88,ALLOCTABLE_Prod_Energy,$M$10,FALSE),0)","v":0},{"$f":"ROUND(F88*VLOOKUP(D88,ALLOCTABLE_Prod_Energy,$N$10,FALSE),0)","v":0},{"$f":"ROUND(F88*VLOOKUP(D88,ALLOCTABLE_Prod_Energy,$O$10,FALSE),0)","v":0},0,0,0,0]
[32,null,{"$f":"'FR-16(7)(v)-1 Functional'!C89","v":"METERS"},{"$f":"'FR-16(7)(v)-1 Functional'!D89","v":"K407"},null,{"$f":"'FR-16(7)(v)-2 PROD Classified'!H89","v":0},0,0,0,0,0,{"$f":"ROUND(F89*VLOOKUP(D89,ALLOCTABLE_Prod_Energy,$L$10,FALSE),0)","v":0},{"$f":"ROUND(F89*VLOOKUP(D89,ALLOCTABLE_Prod_Energy,$M$10,FALSE),0)","v":0},{"$f":"ROUND(F89*VLOOKUP(D89,ALLOCTABLE_Prod_Energy,$N$10,FALSE),0)","v":0},{"$f":"ROUND(F89*VLOOKUP(D89,ALLOCTABLE_Prod_Energy,$O$10,FALSE),0)","v":0},0,0,0,0]
[33,null,{"$f":"'FR-16(7)(v)-1 Functional'!C90","v":"STREET LIGHTS"},{"$f":"'FR-16(7)(v)-1 Functional'!D90","v":"K401"},null,{"$f":"'FR-16(7)(v)-2 PROD Classified'!H90","v":0},0,0,0,0,0,{"$f":"ROUND(F90*VLOOKUP(D90,ALLOCTABLE_Prod_Energy,$L$10,FALSE),0)","v":0},{"$f":"ROUND(F90*VLOOKUP(D90,ALLOCTABLE_Prod_Energy,$M$10,FALSE),0)","v":0},{"$f":"ROUND(F90*VLOOKUP(D90,ALLOCTABLE_Prod_Energy,$N$10,FALSE),0)","v":0},{"$f":"ROUND(F90*VLOOKUP(D90,ALLOCTABLE_Prod_Energy,$O$10,FALSE),0)","v":0},0,0,0,0]
[34,null,{"$f":"'FR-16(7)(v)-1 Functional'!C91","v":"ADJUSTMENT  "},{"$f":"'FR-16(7)(v)-1 Functional'!D91","v":"K209"},null,{"$f":"'FR-16(7)(v)-2 PROD Classified'!H91","v":0},0,0,0,0,0,{"$f":"ROUND(F91*VLOOKUP(D91,ALLOCTABLE_Prod_Energy,$L$10,FALSE),0)","v":0},{"$f":"ROUND(F91*VLOOKUP(D91,ALLOCTABLE_Prod_Energy,$M$10,FALSE),0)","v":0},{"$f":"ROUND(F91*VLOOKUP(D91,ALLOCTABLE_Prod_Energy,$N$10,FALSE),0)","v":0},{"$f":"ROUND(F91*VLOOKUP(D91,ALLOCTABLE_Prod_Energy,$O$10,FALSE),0)","v":0},0,0,0,0]
[35,null,{"$f":"'FR-16(7)(v)-1 Functional'!C92","v":"CONSTRUCTION NOT CLASSIFIED"},{"$f":"'FR-16(7)(v)-1 Functional'!D92","v":"K209"},null,{"$f":"'FR-16(7)(v)-2 PROD Classified'!H92","v":0},0,0,0,0,0,{"$f":"ROUND(F92*VLOOKUP(D92,ALLOCTABLE_Prod_Energy,$L$10,FALSE),0)","v":0},{"$f":"ROUND(F92*VLOOKUP(D92,ALLOCTABLE_Prod_Energy,$M$10,FALSE),0)","v":0},{"$f":"ROUND(F92*VLOOKUP(D92,ALLOCTABLE_Prod_Energy,$N$10,FALSE),0)","v":0},{"$f":"ROUND(F92*VLOOKUP(D92,ALLOCTABLE_Prod_Energy,$O$10,FALSE),0)","v":0},0,0,0,0]
[36,null,{"$f":"'FR-16(7)(v)-1 Functional'!C93","v":"RWIP"},{"$f":"'FR-16(7)(v)-1 Functional'!D93","v":"K215"},null,{"$f":"'FR-16(7)(v)-2 PROD Classified'!H93","v":0},{"$f":"F93-SUM(H93:Q93)","v":0},{"$f":"ROUND(F93*VLOOKUP(D93,ALLOCTABLE_Prod_Energy,$H$10,FALSE),0)","v":0},0,0,0]
[37,null,{"$f":"'FR-16(7)(v)-1 Functional'!C94","v":"  DISTRIBUTION PLANT IN SERVICE"},null,null,{"$f":"SUM(F73:F93)","v":0},{"$f":"SUM(G73:G92)","v":0},{"$f":"SUM(H73:H92)","v":0},{"$f":"SUM(I73:I92)","v":0},{"$f":"SUM(J73:J92)","v":0},0,0,0,0,0,0,{"$f":"SUM(Q73:Q92)","v":0},{"$f":"SUM(R73:R92)","v":0},{"$f":"SUM(S73:S92)","v":0}]
[38]
[39,"TOTAL TRANS & DIST PLANT",null,null,null,{"$f":"F94+F68","v":0},{"$f":"G94+G68","v":0},{"$f":"H94+H68","v":0},{"$f":"I94+I68","v":0},{"$f":"J94+J68","v":0},0,0,0,0,0,0,{"$f":"Q94+$Q$68","v":0},{"$f":"R94+R68","v":0},{"$f":"S94+S68","v":0}]
[40,"TOTAL GROSS PTD PLANT",null,null,null,{"$f":"F94+F70","v":0},{"$f":"G94+G70","v":0},{"$f":"H94+H70","v":0},{"$f":"I94+I70","v":0},{"$f":"J94+J70","v":0},0,0,0,0,0,0,{"$f":"Q94+Q70","v":0},{"$f":"R94+R70","v":0},{"$f":"S94+S70","v":0}]
[41]
[42,"GENERAL & INTANGIBLE PLANT"]
[43,null,{"$f":"'FR-16(7)(v)-1 Functional'!C100","v":"PRODUCTION - DEMAND"},{"$f":"'FR-16(7)(v)-1 Functional'!D100","v":"K201"},null,{"$f":"'FR-16(7)(v)-2 PROD Classified'!H100","v":0},{"$f":"F100-SUM(H100:Q100)","v":0},{"$f":"ROUND(F100*VLOOKUP(D100,ALLOCTABLE_Prod_Energy,$H$10,FALSE),0)","v":0},{"$f":"ROUND(F100*VLOOKUP(D100,ALLOCTABLE_Prod_Energy,$I$10,FALSE),0)","v":0},{"$f":"ROUND(F100*VLOOKUP(D100,ALLOCTABLE_Prod_Energy,$J$10,FALSE),0)","v":0},{"$f":"ROUND(F100*VLOOKUP(D100,ALLOCTABLE_Prod_Energy,$K$10,FALSE),0)","v":0},{"$f":"ROUND(F100*VLOOKUP(D100,ALLOCTABLE_Prod_Energy,$L$10,FALSE),0)","v":0},{"$f":"ROUND(F100*VLOOKUP(D100,ALLOCTABLE_Prod_Energy,$M$10,FALSE),0)","v":0},{"$f":"ROUND(F100*VLOOKUP(D100,ALLOCTABLE_Prod_Energy,$N$10,FALSE),0)","v":0},{"$f":"ROUND(F100*VLOOKUP(D100,ALLOCTABLE_Prod_Energy,$O$10,FALSE),0)","v":0},{"$f":"ROUND(F100*VLOOKUP(D100,ALLOCTABLE_Prod_Energy,$P$10,FALSE),0)","v":0},{"$f":"ROUND(F100*VLOOKUP(D100,ALLOCTABLE_Prod_Energy,$Q$10,FALSE),0)","v":0},{"$f":"SUM(G100:Q100)","v":0},{"$f":"F100-R100","v":0}]
[44,null,{"$f":"'FR-16(7)(v)-1 Functional'!C101","v":"PRODUCTION - ENERGY"},{"$f":"'FR-16(7)(v)-1 Functional'!D101","v":"K301"},null,{"$f":"'FR-16(7)(v)-2 PROD Classified'!H101","v":19517654},7367133,5256495,29472,83536,1366,3220608,2236918,104810,1130072,85097,2147,19517654,0]
[45,null,{"$f":"'FR-16(7)(v)-1 Functional'!C102","v":"TRANSMISSION"},{"$f":"'FR-16(7)(v)-1 Functional'!D102","v":"K202"},null,{"$f":"'FR-16(7)(v)-2 PROD Classified'!H102","v":0},0,0,0,0,0,0,0,0,0,0,0,0,0]
[46,null,{"$f":"'FR-16(7)(v)-1 Functional'!C103","v":"DISTRIBUTION - DEMAND"},{"$f":"'FR-16(7)(v)-1 Functional'!D103","v":"K201"},null,{"$f":"'FR-16(7)(v)-2 PROD Classified'!H103","v":0},0,0,0,0,0,0,0,0,0,0,0,0,0]
[47,null,{"$f":"'FR-16(7)(v)-1 Functional'!C104","v":"DISTRIBUTION - CUSTOMER"},{"$f":"'FR-16(7)(v)-1 Functional'!D104","v":"K405"},null,{"$f":"'FR-16(7)(v)-2 PROD Classified'!H104","v":0},0,0,0,0,0,0,0,0,0,0,0,0,0]
[48,null,{"$f":"'FR-16(7)(v)-1 Functional'!C105","v":"CUSTOMER ACCOUNTING"},{"$f":"'FR-16(7)(v)-1 Functional'!D105","v":"A308"},null,{"$f":"'FR-16(7)(v)-2 PROD Classified'!H105","v":0},0,0,0,0,0,0,0,0,0,0,0,0,0]
[49,null,{"$f":"'FR-16(7)(v)-1 Functional'!C106","v":"CUSTOMER SERVICE & INFORMATION"},{"$f":"'FR-16(7)(v)-1 Functional'!D106","v":"A310"},null,{"$f":"'FR-16(7)(v)-2 PROD Classified'!H106","v":0},0,0,0,0,0,0,0,0,0,0,0,0,0]
[50,null,{"$f":"'FR-16(7)(v)-1 Functional'!C107","v":"SALES"},{"$f":"'FR-16(7)(v)-1 Functional'!D107","v":"A312"},null,{"$f":"'FR-16(7)(v)-2 PROD Classified'!H107","v":0},0,0,0,0,0,0,0,0,0,0,0,0,0]
[51,null,{"$f":"'FR-16(7)(v)-1 Functional'!C108","v":"ADJUSTMENT"},{"$f":"'FR-16(7)(v)-1 Functional'!D108","v":"A315"},null,{"$f":"'FR-16(7)(v)-2 PROD Classified'!H108","v":0},0,0,0,0,0,0,0,0,0,0,0,0,0]
[52,null,{"$f":"'FR-16(7)(v)-1 Functional'!C109","v":"  GEN & INTANG PLANT IN SERVICE"},null,null,{"$f":"SUM(F100:F108)","v":19517654},{"$f":"SUM(G100:G108)","v":7367133},{"$f":"SUM(H100:H108)","v":5256495},{"$f":"SUM(I100:I108)","v":29472},{"$f":"SUM(J100:J108)","v":83536},1366,3220608,2236918,104810,1130072,85097,{"$f":"SUM(Q100:Q108)","v":2147},{"$f":"SUM(R100:R108)","v":19517654},{"$f":"SUM(S100:S108)","v":0}]
[53]
[54,"COMMON & OTHER PLANT"]
[55,null,{"$f":"'FR-16(7)(v)-1 Functional'!C112","v":"PRODUCTION - DEMAND"},{"$f":"'FR-16(7)(v)-1 Functional'!D112","v":"K201"},null,{"$f":"'FR-16(7)(v)-2 PROD Classified'!H112","v":0},{"$f":"F112-SUM(H112:Q112)","v":0},{"$f":"ROUND(F112*VLOOKUP(D112,ALLOCTABLE_Prod_Energy,$H$10,FALSE),0)","v":0},{"$f":"ROUND(F112*VLOOKUP(D112,ALLOCTABLE_Prod_Energy,$I$10,FALSE),0)","v":0},{"$f":"ROUND(F112*VLOOKUP(D112,ALLOCTABLE_Prod_Energy,$J$10,FALSE),0)","v":0},{"$f":"ROUND(F112*VLOOKUP(D112,ALLOCTABLE_Prod_Energy,$K$10,FALSE),0)","v":0},{"$f":"ROUND(F112*VLOOKUP(D112,ALLOCTABLE_Prod_Energy,$L$10,FALSE),0)","v":0},{"$f":"ROUND(F112*VLOOKUP(D112,ALLOCTABLE_Prod_Energy,$M$10,FALSE),0)","v":0},{"$f":"ROUND(F112*VLOOKUP(D112,ALLOCTABLE_Prod_Energy,$N$10,FALSE),0)","v":0},{"$f":"ROUND(F112*VLOOKUP(D112,ALLOCTABLE_Prod_Energy,$O$10,FALSE),0)","v":0},{"$f":"ROUND(F112*VLOOKUP(D112,ALLOCTABLE_Prod_Energy,$P$10,FALSE),0)","v":0},{"$f":"ROUND(F112*VLOOKUP(D112,ALLOCTABLE_Prod_Energy,$Q$10,FALSE),0)","v":0},{"$f":"SUM(G112:Q112)","v":0},{"$f":"F112-R112","v":0}]
[56,null,{"$f":"'FR-16(7)(v)-1 Functional'!C113","v":"PRODUCTION - ENERGY"},{"$f":"'FR-16(7)(v)-1 Functional'!D113","v":"K301"},null,{"$f":"'FR-16(7)(v)-2 PROD Classified'!H113","v":11046644},4169667,2975082,16680,47280,773,1822807,1266056,59320,639601,48163,1215,11046644,0]
[57,null,{"$f":"'FR-16(7)(v)-1 Functional'!C114","v":"TRANSMISSION"},{"$f":"'FR-16(7)(v)-1 Functional'!D114","v":"K202"},null,{"$f":"'FR-16(7)(v)-2 PROD Classified'!H114","v":0},0,0,0,0,0,0,0,0,0,0,0,0,0]
[58,null,{"$f":"'FR-16(7)(v)-1 Functional'!C115","v":"DISTRIBUTION - DEMAND"},{"$f":"'FR-16(7)(v)-1 Functional'!D115","v":"K201"},null,{"$f":"'FR-16(7)(v)-2 PROD Classified'!H115","v":0},0,0,0,0,0,0,0,0,0,0,0,0,0]
[59,null,{"$f":"'FR-16(7)(v)-1 Functional'!C116","v":"DISTRIBUTION - CUSTOMER"},{"$f":"'FR-16(7)(v)-1 Functional'!D116","v":"K405"},null,{"$f":"'FR-16(7)(v)-2 PROD Classified'!H116","v":0},0,0,0,0,0,0,0,0,0,0,0,0,0]
[60,null,{"$f":"'FR-16(7)(v)-1 Functional'!C117","v":"CUSTOMER ACCOUNTING"},{"$f":"'FR-16(7)(v)-1 Functional'!D117","v":"A308"},null,{"$f":"'FR-16(7)(v)-2 PROD Classified'!H117","v":0},0,0,0,0,0,0,0,0,0,0,0,0,0]
[61,null,{"$f":"'FR-16(7)(v)-1 Functional'!C118","v":"CUSTOMER SERVICE & INFORMATION"},{"$f":"'FR-16(7)(v)-1 Functional'!D118","v":"A310"},null,{"$f":"'FR-16(7)(v)-2 PROD Classified'!H118","v":0},0,0,0,0,0,0,0,0,0,0,0,0,0]
[62,null,{"$f":"'FR-16(7)(v)-1 Functional'!C119","v":"SALES"},{"$f":"'FR-16(7)(v)-1 Functional'!D119","v":"A312"},null,{"$f":"'FR-16(7)(v)-2 PROD Classified'!H119","v":0},0,0,0,0,0,0,0,0,0,0,0,0,0]
[63,null,{"$f":"'FR-16(7)(v)-1 Functional'!C120","v":"ADJUSTMENT"},{"$f":"'FR-16(7)(v)-1 Functional'!D120","v":"A315"},null,{"$f":"'FR-16(7)(v)-2 PROD Classified'!H120","v":0},0,0,0,0,0,0,0,0,0,0,0,0,0]
[64,null,{"$f":"'FR-16(7)(v)-1 Functional'!C121","v":"  COMMON & OTHER PLANT IN SERVICE"},null,null,{"$f":"SUM(F112:F120)","v":11046644},{"$f":"SUM(G112:G120)","v":4169667},{"$f":"SUM(H112:H120)","v":2975082},{"$f":"SUM(I112:I120)","v":16680},{"$f":"SUM(J112:J120)","v":47280},773,1822807,1266056,59320,639601,48163,{"$f":"SUM(Q112:Q120)","v":1215},{"$f":"SUM(R112:R120)","v":11046644},{"$f":"SUM(S112:S120)","v":0}]
[65]
[66,"GROSS ELECTRIC PLANT IN SERVICE",null,null,null,{"$f":"F97+F109+F121","v":30564298},{"$f":"G97+G109+G121","v":11536800},{"$f":"H97+H109+H121","v":8231577},{"$f":"I97+I109+I121","v":46152},{"$f":"J97+J109+J121","v":130816},2139,5043415,3502974,164130,1769673,133260,{"$f":"Q97+Q109+Q121","v":3362},{"$f":"R97+R109+R121","v":30564298},{"$f":"S97+S109+S121","v":0}]
[]
[{"$f":"co_name","v":"DUKE ENERGY KENTUCKY, INC."},null,null,null,null,null,null,null,null,null,null,null,null,null,null,null,null,{"$f":"R1","v":"FR-16(7)(v)-4"}]
[{"$f":"$A$2","v":"PRODUCTION ENERGY ALLOCATED - ELECTRIC COST OF SERVICE"},null,null,null,null,null,null,null,null,null,null,null,null,null,null,null,null,{"$f":"R2","v":"WITNESS RESPONSIBLE:"}]
[{"$f":"case_name","v":"CASE NO: 2019-00271"},null,null,null,null,null,null,null,null,null,null,null,null,null,null,null,null,{"$f":"Witness","v":"JAMES E. ZIOLKOWSKI"}]
[{"$f":"data_filing","v":"DATA: 12 MONTHS ACTUAL  & 0 MONTHS ESTIMATED"},null,null,null,null,null,null,null,null,null,null,null,null,null,null,null,null,{"$f":"\"PAGE \"&Pages-15&\" OF \"&Pages","v":"PAGE 3 OF 18"}]
[{"$f":"type","v":"TYPE OF FILING: \"X\" ORIGINAL   UPDATED    REVISED  "}]
[]
[null,null,null,null,null,{"$f":"F$7","v":"TOTAL"},null,{"$f":"H$7","v":"DS"},{"$f":"I$7","v":"GSFL"},{"$f":"J$7","v":"EH"},{"$f":"K$7","v":"SP"},"DT SEC","DT PRI","DP","TT",null,"OTHER"]
["LINE",null,null,null,null,{"$f":"F$8","v":"PRODUCTION"},{"$f":"G$8","v":"RS"},{"$f":"H$8","v":"SECONDARY"},{"$f":"I$8","v":"SECONDARY"},{"$f":"J$8","v":"SECONDARY"},{"$f":"K$8","v":"SECONDARY"},"SECONDARY","PRIMARY","PRIMARY","TRANSMISSION","LT","WATER",{"$f":"R8","v":"TOTAL"},"ALL"]
["NO.","DEPRECIATION RESERVE",null,"ALLO",null,{"$f":"F$9","v":"ENERGY"},{"$f":"G$9","v":"RESIDENTIAL"},{"$f":"H$9","v":"DISTRIBUTION"},{"$f":"I$9","v":"DISTRIBUTION"},{"$f":"J$9","v":"DISTRIBUTION"},{"$f":"K$9","v":"DISTRIBUTION"},"DISTRIBUTION","DISTRIBUTION","DISTRIBUTION","TIME OF DAY","LIGHTING","PUMPING",{"$f":"R9","v":"AT ISSUE"},"OTHER"]
[null,null,"Schedule 3",null,null,null,{"$f":"G$10","v":3},{"$f":"H$10","v":4},{"$f":"I$10","v":5},{"$f":"J$10","v":6},{"$f":"K$10","v":7},8,9,10,11,12,13,null," "]
[1,"PRODUCTION PLANT"]
[2,null,"PRODUCTION STEAM",{"$f":"'FR-16(7)(v)-1 Functional'!D136","v":"K201"},null,{"$f":"'FR-16(7)(v)-2 PROD Classified'!H136","v":0},{"$f":"F136-SUM(H136:Q136)","v":0},{"$f":"ROUND(F136*VLOOKUP(D136,ALLOCTABLE_Prod_Energy,$H$10,FALSE),0)","v":0},{"$f":"ROUND(F136*VLOOKUP(D136,ALLOCTABLE_Prod_Energy,$I$10,FALSE),0)","v":0},{"$f":"ROUND(F136*VLOOKUP(D136,ALLOCTABLE_Prod_Energy,$J$10,FALSE),0)","v":0},{"$f":"ROUND(F136*VLOOKUP(D136,ALLOCTABLE_Prod_Energy,$K$10,FALSE),0)","v":0},{"$f":"ROUND(F136*VLOOKUP(D136,ALLOCTABLE_Prod_Energy,$L$10,FALSE),0)","v":0},{"$f":"ROUND(F136*VLOOKUP(D136,ALLOCTABLE_Prod_Energy,$M$10,FALSE),0)","v":0},{"$f":"ROUND(F136*VLOOKUP(D136,ALLOCTABLE_Prod_Energy,$N$10,FALSE),0)","v":0},{"$f":"ROUND(F136*VLOOKUP(D136,ALLOCTABLE_Prod_Energy,$O$10,FALSE),0)","v":0},{"$f":"ROUND(F136*VLOOKUP(D136,ALLOCTABLE_Prod_Energy,$P$10,FALSE),0)","v":0},{"$f":"ROUND(F136*VLOOKUP(D136,ALLOCTABLE_Prod_Energy,$Q$10,FALSE),0)","v":0},{"$f":"SUM(G136:Q136)","v":0},{"$f":"F136-R136","v":0}]
[3,null,"PRODUCTION OTHER",{"$f":"'FR-16(7)(v)-1 Functional'!D137","v":"K201"},null,{"$f":"'FR-16(7)(v)-2 PROD Classified'!H137","v":0},{"$f":"F137-SUM(H137:Q137)","v":0},{"$f":"ROUND(F136*VLOOKUP(D136,ALLOCTABLE_Prod_Energy,$H$10,FALSE),0)","v":0},{"$f":"ROUND(F137*VLOOKUP(D137,ALLOCTABLE_Prod_Energy,$I$10,FALSE),0)","v":0},{"$f":"ROUND(F137*VLOOKUP(D137,ALLOCTABLE_Prod_Energy,$J$10,FALSE),0)","v":0},{"$f":"ROUND(F137*VLOOKUP(D137,ALLOCTABLE_Prod_Energy,$K$10,FALSE),0)","v":0},{"$f":"ROUND(F137*VLOOKUP(D137,ALLOCTABLE_Prod_Energy,$L$10,FALSE),0)","v":0},{"$f":"ROUND(F137*VLOOKUP(D137,ALLOCTABLE_Prod_Energy,$M$10,FALSE),0)","v":0},{"$f":"ROUND(F137*VLOOKUP(D137,ALLOCTABLE_Prod_Energy,$N$10,FALSE),0)","v":0},{"$f":"ROUND(F137*VLOOKUP(D137,ALLOCTABLE_Prod_Energy,$O$10,FALSE),0)","v":0},{"$f":"ROUND(F137*VLOOKUP(D137,ALLOCTABLE_Prod_Energy,$P$10,FALSE),0)","v":0},{"$f":"ROUND(F137*VLOOKUP(D137,ALLOCTABLE_Prod_Energy,$Q$10,FALSE),0)","v":0},{"$f":"SUM(G137:Q137)","v":0},{"$f":"F137-R137","v":0}]
[4,null,{"$f":"'FR-16(7)(v)-1 Functional'!C138","v":"ADJUSTMENT"},{"$f":"'FR-16(7)(v)-1 Functional'!D138","v":"K201"},null,{"$f":"'FR-16(7)(v)-2 PROD Classified'!H138","v":0},{"$f":"F138-SUM(H138:Q138)","v":0},{"$f":"ROUND(F136*VLOOKUP(D136,ALLOCTABLE_Prod_Energy,$H$10,FALSE),0)","v":0},{"$f":"ROUND(F138*VLOOKUP(D138,ALLOCTABLE_Prod_Energy,$I$10,FALSE),0)","v":0},{"$f":"ROUND(F138*VLOOKUP(D138,ALLOCTABLE_Prod_Energy,$J$10,FALSE),0)","v":0},{"$f":"ROUND(F138*VLOOKUP(D138,ALLOCTABLE_Prod_Energy,$K$10,FALSE),0)","v":0},{"$f":"ROUND(F138*VLOOKUP(D138,ALLOCTABLE_Prod_Energy,$L$10,FALSE),0)","v":0},{"$f":"ROUND(F138*VLOOKUP(D138,ALLOCTABLE_Prod_Energy,$M$10,FALSE),0)","v":0},{"$f":"ROUND(F138*VLOOKUP(D138,ALLOCTABLE_Prod_Energy,$N$10,FALSE),0)","v":0},{"$f":"ROUND(F138*VLOOKUP(D138,ALLOCTABLE_Prod_Energy,$O$10,FALSE),0)","v":0},{"$f":"ROUND(F138*VLOOKUP(D138,ALLOCTABLE_Prod_Energy,$P$10,FALSE),0)","v":0},{"$f":"ROUND(F138*VLOOKUP(D138,ALLOCTABLE_Prod_Energy,$Q$10,FALSE),0)","v":0},{"$f":"SUM(G138:Q138)","v":0},{"$f":"F138-R138","v":0}]
[5,null,{"$f":"'FR-16(7)(v)-1 Functional'!C139","v":"  TOTAL PROD DEPREC RESERVE"},null,null,{"$f":"SUM(F136:F138)","v":0},{"$f":"SUM(G136:G138)","v":0},0,0,0,0,0,0,0,0,0,0,0,{"$f":"SUM(S136:S136)","v":0}]
[6]
[7,"TRANSMISSION PLANT"]
[8,null,"MAIN STEP-UP TRANSFORMERS",{"$f":"'FR-16(7)(v)-1 Functional'!D142","v":"K202"},null,{"$f":"'FR-16(7)(v)-2 PROD Classified'!H142","v":0},{"$f":"F142-SUM(H142:Q142)","v":0},{"$f":"ROUND(F136*VLOOKUP(D136,ALLOCTABLE_Prod_Energy,$H$10,FALSE),0)","v":0},{"$f":"ROUND(F142*VLOOKUP(D142,ALLOCTABLE_Prod_Energy,$I$10,FALSE),0)","v":0},{"$f":"ROUND(F142*VLOOKUP(D142,ALLOCTABLE_Prod_Energy,$J$10,FALSE),0)","v":0},{"$f":"ROUND(F142*VLOOKUP(D142,ALLOCTABLE_Prod_Energy,$K$10,FALSE),0)","v":0},{"$f":"ROUND(F142*VLOOKUP(D142,ALLOCTABLE_Prod_Energy,$L$10,FALSE),0)","v":0},{"$f":"ROUND(F142*VLOOKUP(D142,ALLOCTABLE_Prod_Energy,$M$10,FALSE),0)","v":0},{"$f":"ROUND(F142*VLOOKUP(D142,ALLOCTABLE_Prod_Energy,$N$10,FALSE),0)","v":0},{"$f":"ROUND(F142*VLOOKUP(D142,ALLOCTABLE_Prod_Energy,$O$10,FALSE),0)","v":0},{"$f":"ROUND(F142*VLOOKUP(D142,ALLOCTABLE_Prod_Energy,$P$10,FALSE),0)","v":0},{"$f":"ROUND(F142*VLOOKUP(D142,ALLOCTABLE_Prod_Energy,$Q$10,FALSE),0)","v":0},{"$f":"SUM(G142:Q142)","v":0},{"$f":"F142-R142","v":0}]
[9,null,"OTHER TRANSMISSION",{"$f":"'FR-16(7)(v)-1 Functional'!D143","v":"K202"},null,{"$f":"'FR-16(7)(v)-2 PROD Classified'!H143","v":0},{"$f":"F143-SUM(H143:Q143)","v":0},{"$f":"ROUND(F136*VLOOKUP(D136,ALLOCTABLE_Prod_Energy,$H$10,FALSE),0)","v":0},{"$f":"ROUND(F143*VLOOKUP(D143,ALLOCTABLE_Prod_Energy,$I$10,FALSE),0)","v":0},{"$f":"ROUND(F143*VLOOKUP(D143,ALLOCTABLE_Prod_Energy,$J$10,FALSE),0)","v":0},{"$f":"ROUND(F143*VLOOKUP(D143,ALLOCTABLE_Prod_Energy,$K$10,FALSE),0)","v":0},{"$f":"ROUND(F143*VLOOKUP(D143,ALLOCTABLE_Prod_Energy,$L$10,FALSE),0)","v":0},{"$f":"ROUND(F143*VLOOKUP(D143,ALLOCTABLE_Prod_Energy,$M$10,FALSE),0)","v":0},{"$f":"ROUND(F143*VLOOKUP(D143,ALLOCTABLE_Prod_Energy,$N$10,FALSE),0)","v":0},{"$f":"ROUND(F143*VLOOKUP(D143,ALLOCTABLE_Prod_Energy,$O$10,FALSE),0)","v":0},{"$f":"ROUND(F143*VLOOKUP(D143,ALLOCTABLE_Prod_Energy,$P$10,FALSE),0)","v":0},{"$f":"ROUND(F143*VLOOKUP(D143,ALLOCTABLE_Prod_Energy,$Q$10,FALSE),0)","v":0},{"$f":"SUM(G143:Q143)","v":0},{"$f":"F143-R143","v":0}]
[10,null,"ADJUSTMENT",{"$f":"'FR-16(7)(v)-1 Functional'!D144","v":"K202"},null,{"$f":"'FR-16(7)(v)-2 PROD Classified'!H144","v":0},{"$f":"F144-SUM(H144:Q144)","v":0},{"$f":"ROUND(F136*VLOOKUP(D136,ALLOCTABLE_Prod_Energy,$H$10,FALSE),0)","v":0},{"$f":"ROUND(F144*VLOOKUP(D144,ALLOCTABLE_Prod_Energy,$I$10,FALSE),0)","v":0},{"$f":"ROUND(F144*VLOOKUP(D144,ALLOCTABLE_Prod_Energy,$J$10,FALSE),0)","v":0},{"$f":"ROUND(F144*VLOOKUP(D144,ALLOCTABLE_Prod_Energy,$K$10,FALSE),0)","v":0},{"$f":"ROUND(F144*VLOOKUP(D144,ALLOCTABLE_Prod_Energy,$L$10,FALSE),0)","v":0},{"$f":"ROUND(F144*VLOOKUP(D144,ALLOCTABLE_Prod_Energy,$M$10,FALSE),0)","v":0},{"$f":"ROUND(F144*VLOOKUP(D144,ALLOCTABLE_Prod_Energy,$N$10,FALSE),0)","v":0},{"$f":"ROUND(F144*VLOOKUP(D144,ALLOCTABLE_Prod_Energy,$O$10,FALSE),0)","v":0},{"$f":"ROUND(F144*VLOOKUP(D144,ALLOCTABLE_Prod_Energy,$P$10,FALSE),0)","v":0},{"$f":"ROUND(F144*VLOOKUP(D144,ALLOCTABLE_Prod_Energy,$Q$10,FALSE),0)","v":0},{"$f":"SUM(G144:Q144)","v":0},{"$f":"F144-R144","v":0}]
[11,null,"  TOTAL TRANS DEPREC RESERVE",null,null,{"$f":"SUM(F142:F144)","v":0},{"$f":"SUM(G142:G144)","v":0},0,0,0,0,0,0,0,0,0,0,{"$f":"SUM(R142:R144)","v":0},{"$f":"SUM(S142:S142)","v":0}]
[12]
[13,null,"TOTAL PROD & TRANS DEPREC RESERVE",null,null,{"$f":"F145+F139","v":0},{"$f":"G145+G139","v":0},{"$f":"$H$114+H139","v":0},{"$f":"$I$114+I139","v":0},{"$f":"$J$114+J139","v":0},{"$f":"$K$114+K139","v":0},{"$f":"$L$114+L139","v":0},{"$f":"$M$114+M139","v":0},{"$f":"$N$114+N139","v":0},{"$f":"$O$114+O139","v":0},{"$f":"$P$114+P139","v":0},{"$f":"$Q$114+Q139","v":0},{"$f":"SUM(G147:Q147)","v":0},{"$f":"F147-R147","v":0}]
[14]
[15,"DISTRIBUTION PLANT"]
[16,null,{"$f":"'FR-16(7)(v)-1 Functional'!C150","v":"SUBSTATIONS"},{"$f":"'FR-16(7)(v)-1 Functional'!D150","v":"K215"},null,{"$f":"'FR-16(7)(v)-2 PROD Classified'!H150","v":0},{"$f":"F150-SUM(H150:Q150)","v":0},{"$f":"ROUND(F150*VLOOKUP(D150,ALLOCTABLE_Prod_Energy,$H$10,FALSE),0)","v":0},{"$f":"ROUND(F150*VLOOKUP(D150,ALLOCTABLE_Prod_Energy,$I$10,FALSE),0)","v":0},{"$f":"ROUND(F150*VLOOKUP(D150,ALLOCTABLE_Prod_Energy,$J$10,FALSE),0)","v":0},{"$f":"ROUND(F150*VLOOKUP(D150,ALLOCTABLE_Prod_Energy,$K$10,FALSE),0)","v":0},{"$f":"ROUND(F150*VLOOKUP(D150,ALLOCTABLE_Prod_Energy,$L$10,FALSE),0)","v":0},{"$f":"ROUND(F150*VLOOKUP(D150,ALLOCTABLE_Prod_Energy,$M$10,FALSE),0)","v":0},{"$f":"ROUND(F150*VLOOKUP(D150,ALLOCTABLE_Prod_Energy,$N$10,FALSE),0)","v":0},{"$f":"ROUND(F150*VLOOKUP(D150,ALLOCTABLE_Prod_Energy,$O$10,FALSE),0)","v":0},{"$f":"ROUND(F150*VLOOKUP(D150,ALLOCTABLE_Prod_Energy,$P$10,FALSE),0)","v":0},{"$f":"ROUND(F150*VLOOKUP(D150,ALLOCTABLE_Prod_Energy,$Q$10,FALSE),0)","v":0},{"$f":"SUM(G150:Q150)","v":0},{"$f":"F150-R150","v":0}]
[17,null,{"$f":"'FR-16(7)(v)-1 Functional'!C151","v":"POLES, TOWERS  & FIXTURES - PRIMARY - DEMAND"},{"$f":"'FR-16(7)(v)-1 Functional'!D151","v":"K205"},null,{"$f":"'FR-16(7)(v)-2 PROD Classified'!H151","v":0},{"$f":"F151-SUM(H151:Q151)","v":0},{"$f":"ROUND(F151*VLOOKUP(D151,ALLOCTABLE_Prod_Energy,$H$10,FALSE),0)","v":0},0,0,0,0,0,0,0,0,{"$f":"ROUND(F151*VLOOKUP(D151,ALLOCTABLE_Prod_Energy,$Q$10,FALSE),0)","v":0},{"$f":"SUM(G151:Q151)","v":0},{"$f":"F151-R151","v":0}]
[18,null,{"$f":"'FR-16(7)(v)-1 Functional'!C152","v":"POLES, TOWERS  & FIXTURES - PRIMARY - CUSTOMER"},{"$f":"'FR-16(7)(v)-1 Functional'!D152","v":"K405"},null,{"$f":"'FR-16(7)(v)-2 PROD Classified'!H152","v":0},{"$f":"F152-SUM(H152:Q152)","v":0},{"$f":"ROUND(F152*VLOOKUP(D152,ALLOCTABLE_Prod_Energy,$H$10,FALSE),0)","v":0},0,0,0,0,0,0,0,0,{"$f":"ROUND(F152*VLOOKUP(D152,ALLOCTABLE_Prod_Energy,$Q$10,FALSE),0)","v":0},{"$f":"SUM(G152:Q152)","v":0},{"$f":"F152-R152","v":0}]
[19,null,{"$f":"'FR-16(7)(v)-1 Functional'!C153","v":"POLES, TOWERS  & FIXTURES - SECONDARY - DEMAND"},{"$f":"'FR-16(7)(v)-1 Functional'!D153","v":"K206"},null,{"$f":"'FR-16(7)(v)-2 PROD Classified'!H153","v":0},0,0,0,0,0,0,0,0,0,0,0,0,0]
[20,null,{"$f":"'FR-16(7)(v)-1 Functional'!C154","v":"POLES, TOWERS  & FIXTURES - SECONDARY - CUSTOMER"},{"$f":"'FR-16(7)(v)-1 Functional'!D154","v":"K405"},null,{"$f":"'FR-16(7)(v)-2 PROD Classified'!H154","v":0},0,0,0,0,0,0,0,0,0,0,0,0,0]
[21,null,{"$f":"'FR-16(7)(v)-1 Functional'!C155","v":"CONDUCTORS - OVERHEAD / PRIMARY - DEMAND"},{"$f":"'FR-16(7)(v)-1 Functional'!D155","v":"K205"},null,{"$f":"'FR-16(7)(v)-2 PROD Classified'!H155","v":0},0,0,0,0,0,0,0,0,0,0,0,0,0]
[22,null,{"$f":"'FR-16(7)(v)-1 Functional'!C156","v":"CONDUCTORS - OVERHEAD / PRIMARY - CUSTOMER"},{"$f":"'FR-16(7)(v)-1 Functional'!D156","v":"K405"},null,{"$f":"'FR-16(7)(v)-2 PROD Classified'!H156","v":0},0,0,0,0,0,0,0,0,0,0,0,0,0]
[23,null,{"$f":"'FR-16(7)(v)-1 Functional'!C157","v":"CONDUCTORS - OVERHEAD / SECONDARY - DEMAND"},{"$f":"'FR-16(7)(v)-1 Functional'!D157","v":"K206"},null,{"$f":"'FR-16(7)(v)-2 PROD Classified'!H157","v":0},0,0,0,0,0,0,0,0,0,0,0,0,0]
[24,null,{"$f":"'FR-16(7)(v)-1 Functional'!C158","v":"CONDUCTORS - OVERHEAD / SECONDARY - CUSTOMER"},{"$f":"'FR-16(7)(v)-1 Functional'!D158","v":"K405"},null,{"$f":"'FR-16(7)(v)-2 PROD Classified'!H158","v":0},0,0,0,0,0,0,0,0,0,0,0,0,0]
[25,null,{"$f":"'FR-16(7)(v)-1 Functional'!C159","v":"CONDUCTORS - UNDERGROUND / PRIMARY - DEMAND"},{"$f":"'FR-16(7)(v)-1 Functional'!D159","v":"K205"},null,{"$f":"'FR-16(7)(v)-2 PROD Classified'!H159","v":0},0,0,0,0,0,0,0,0,0,0,0,0,0]
[26,null,{"$f":"'FR-16(7)(v)-1 Functional'!C160","v":"CONDUCTORS - UNDERGROUND / PRIMARY - CUSTOMER"},{"$f":"'FR-16(7)(v)-1 Functional'!D160","v":"K405"},null,{"$f":"'FR-16(7)(v)-2 PROD Classified'!H160","v":0},0,0,0,0,0,0,0,0,0,0,0,0,0]
[27,null,{"$f":"'FR-16(7)(v)-1 Functional'!C161","v":"CONDUCTORS - UNDERGROUND / SECONDARY - DEMAND"},{"$f":"'FR-16(7)(v)-1 Functional'!D161","v":"K206"},null,{"$f":"'FR-16(7)(v)-2 PROD Classified'!H161","v":0},0,0,0,0,0,0,0,0,0,0,0,0,0]
[28,null,{"$f":"'FR-16(7)(v)-1 Functional'!C162","v":"CONDUCTORS - UNDERGROUND / SECONDARY - CUSTOMER"},{"$f":"'FR-16(7)(v)-1 Functional'!D162","v":"K405"},null,{"$f":"'FR-16(7)(v)-2 PROD Classified'!H162","v":0},0,0,0,0,0,0,0,0,0,0,0,0,0]
[29,null,{"$f":"'FR-16(7)(v)-1 Functional'!C163","v":"TRANSFORMERS DEMAND RELATED"},{"$f":"'FR-16(7)(v)-1 Functional'!D163","v":"K215"},null,{"$f":"'FR-16(7)(v)-2 PROD Classified'!H163","v":0},{"$f":"F163-SUM(H163:Q163)","v":0},{"$f":"ROUND(F163*VLOOKUP(D163,ALLOCTABLE_Prod_Energy,$H$10,FALSE),0)","v":0},0,0,0,0,0,0,0,0,{"$f":"ROUND(F163*VLOOKUP(D163,ALLOCTABLE_Prod_Energy,$Q$10,FALSE),0)","v":0},{"$f":"SUM(G163:Q163)","v":0},{"$f":"F163-R163","v":0}]
[30,null,{"$f":"'FR-16(7)(v)-1 Functional'!C164","v":"TRANSFORMERS CUSTOMER RELATED"},{"$f":"'FR-16(7)(v)-1 Functional'!D164","v":"K405"},null,{"$f":"'FR-16(7)(v)-2 PROD Classified'!H164","v":0},0,0,{"$f":"ROUND(F164*VLOOKUP(D163,ALLOCTABLE_Prod_Energy,$I$10,FALSE),0)","v":0},{"$f":"ROUND(F164*VLOOKUP(D163,ALLOCTABLE_Prod_Energy,$J$10,FALSE),0)","v":0},{"$f":"ROUND(F164*VLOOKUP(D163,ALLOCTABLE_Prod_Energy,$K$10,FALSE),0)","v":0},{"$f":"ROUND(F164*VLOOKUP(D163,ALLOCTABLE_Prod_Energy,$L$10,FALSE),0)","v":0},{"$f":"ROUND(F164*VLOOKUP(D163,ALLOCTABLE_Prod_Energy,$M$10,FALSE),0)","v":0},{"$f":"ROUND(F164*VLOOKUP(D163,ALLOCTABLE_Prod_Energy,$N$10,FALSE),0)","v":0},{"$f":"ROUND(F164*VLOOKUP(D163,ALLOCTABLE_Prod_Energy,$O$10,FALSE),0)","v":0},0,0,0,0]
[31,null,{"$f":"'FR-16(7)(v)-1 Functional'!C165","v":"SERVICES"},{"$f":"'FR-16(7)(v)-1 Functional'!D165","v":"K217"},null,{"$f":"'FR-16(7)(v)-2 PROD Classified'!H165","v":0},0,0,{"$f":"ROUND(F165*VLOOKUP(D165,ALLOCTABLE_Prod_Energy,$I$10,FALSE),0)","v":0},{"$f":"ROUND(F165*VLOOKUP(D165,ALLOCTABLE_Prod_Energy,$J$10,FALSE),0)","v":0},{"$f":"ROUND(F165*VLOOKUP(D165,ALLOCTABLE_Prod_Energy,$K$10,FALSE),0)","v":0},{"$f":"ROUND(F165*VLOOKUP(D165,ALLOCTABLE_Prod_Energy,$L$10,FALSE),0)","v":0},{"$f":"ROUND(F165*VLOOKUP(D165,ALLOCTABLE_Prod_Energy,$M$10,FALSE),0)","v":0},{"$f":"ROUND(F165*VLOOKUP(D165,ALLOCTABLE_Prod_Energy,$N$10,FALSE),0)","v":0},{"$f":"ROUND(F165*VLOOKUP(D165,ALLOCTABLE_Prod_Energy,$O$10,FALSE),0)","v":0},0,0,0,0]
[32,null,{"$f":"'FR-16(7)(v)-1 Functional'!C166","v":"METERS"},{"$f":"'FR-16(7)(v)-1 Functional'!D166","v":"K407"},null,{"$f":"'FR-16(7)(v)-2 PROD Classified'!H166","v":0},0,0,0,0,0,{"$f":"ROUND(F166*VLOOKUP(D166,ALLOCTABLE_Prod_Energy,$L$10,FALSE),0)","v":0},{"$f":"ROUND(F166*VLOOKUP(D166,ALLOCTABLE_Prod_Energy,$M$10,FALSE),0)","v":0},{"$f":"ROUND(F166*VLOOKUP(D166,ALLOCTABLE_Prod_Energy,$N$10,FALSE),0)","v":0},{"$f":"ROUND(F166*VLOOKUP(D166,ALLOCTABLE_Prod_Energy,$O$10,FALSE),0)","v":0},0,0,0,0]
[33,null,{"$f":"'FR-16(7)(v)-1 Functional'!C167","v":"STREET LIGHTS"},{"$f":"'FR-16(7)(v)-1 Functional'!D167","v":"K401"},null,{"$f":"'FR-16(7)(v)-2 PROD Classified'!H167","v":0},0,0,0,0,0,{"$f":"ROUND(F167*VLOOKUP(D167,ALLOCTABLE_Prod_Energy,$L$10,FALSE),0)","v":0},{"$f":"ROUND(F167*VLOOKUP(D167,ALLOCTABLE_Prod_Energy,$M$10,FALSE),0)","v":0},{"$f":"ROUND(F167*VLOOKUP(D167,ALLOCTABLE_Prod_Energy,$N$10,FALSE),0)","v":0},{"$f":"ROUND(F167*VLOOKUP(D167,ALLOCTABLE_Prod_Energy,$O$10,FALSE),0)","v":0},0,0,0,0]
[34,null,{"$f":"'FR-16(7)(v)-1 Functional'!C168","v":"ADJUSTMENT  "},{"$f":"'FR-16(7)(v)-1 Functional'!D168","v":"K209"},null,{"$f":"'FR-16(7)(v)-2 PROD Classified'!H168","v":0},0,0,0,0,0,{"$f":"ROUND(F168*VLOOKUP(D168,ALLOCTABLE_Prod_Energy,$L$10,FALSE),0)","v":0},{"$f":"ROUND(F168*VLOOKUP(D168,ALLOCTABLE_Prod_Energy,$M$10,FALSE),0)","v":0},{"$f":"ROUND(F168*VLOOKUP(D168,ALLOCTABLE_Prod_Energy,$N$10,FALSE),0)","v":0},{"$f":"ROUND(F168*VLOOKUP(D168,ALLOCTABLE_Prod_Energy,$O$10,FALSE),0)","v":0},0,0,0,0]
[35,null,{"$f":"'FR-16(7)(v)-1 Functional'!C169","v":"CONSTRUCTION NOT CLASSIFIED"},{"$f":"'FR-16(7)(v)-1 Functional'!D169","v":"K209"},null,{"$f":"'FR-16(7)(v)-2 PROD Classified'!H169","v":0},0,0,0,0,0,{"$f":"ROUND(F169*VLOOKUP(D169,ALLOCTABLE_Prod_Energy,$L$10,FALSE),0)","v":0},{"$f":"ROUND(F169*VLOOKUP(D169,ALLOCTABLE_Prod_Energy,$M$10,FALSE),0)","v":0},{"$f":"ROUND(F169*VLOOKUP(D169,ALLOCTABLE_Prod_Energy,$N$10,FALSE),0)","v":0},{"$f":"ROUND(F169*VLOOKUP(D169,ALLOCTABLE_Prod_Energy,$O$10,FALSE),0)","v":0},0,0,0,0]
[36,null,{"$f":"'FR-16(7)(v)-1 Functional'!C170","v":"RWIP"},{"$f":"'FR-16(7)(v)-1 Functional'!D170","v":"K215"},null,{"$f":"'FR-16(7)(v)-2 PROD Classified'!H170","v":0},{"$f":"F170-SUM(H170:Q170)","v":0},{"$f":"ROUND($F$170*VLOOKUP($D170,ALLOCTABLE_Prod_Energy,H$10,FALSE),0)","v":0},0,0,0,0,0,0,0,0,0,{"$f":"SUM(G170:Q170)","v":0},{"$f":"F170-R170","v":0}]
[37,null,{"$f":"'FR-16(7)(v)-1 Functional'!C171","v":"  TOTAL DIST DEPREC RESERVE"},null,null,{"$f":"SUM(F149:F170)","v":0},{"$f":"SUM(G149:G170)","v":0},0,0,0,0,0,0,0,0,0,0,0,0]
[38]
[39,null,"TOTAL TRANS & DIST DEPREC RESERVE",null,null,{"$f":"F171+F145","v":0},{"$f":"G171+G145","v":0},{"$f":"H171+$H$114","v":0},{"$f":"I171+$I$114","v":0},{"$f":"J171+$J$114","v":0},{"$f":"K171+$K$114","v":0},{"$f":"L171+$L$114","v":0},{"$f":"M171+$M$114","v":0},{"$f":"N171+$N$114","v":0},{"$f":"O171+$O$114","v":0},{"$f":"P171+$P$114","v":0},{"$f":"Q171+$Q$114","v":0},{"$f":"SUM(G173:Q173)","v":0},{"$f":"F173-R173","v":0}]
[40,null,"TOTAL GROSS PTD PLANT DEPREC RESERVE",null,null,{"$f":"F147+F171","v":0},{"$f":"G147+G171","v":0},{"$f":"$H$117+H171","v":0},{"$f":"$I$117+I171","v":0},{"$f":"$J$117+J171","v":0},{"$f":"$K$117+K171","v":0},{"$f":"$L$117+L171","v":0},{"$f":"$M$117+M171","v":0},{"$f":"$N$117+N171","v":0},{"$f":"$O$117+O171","v":0},{"$f":"$P$117+P171","v":0},{"$f":"$Q$117+Q171","v":0},{"$f":"SUM(G174:Q174)","v":0},{"$f":"F174-R174","v":0}]
[41]
[42,"GENERAL & INTANGIBLE PLANT"]
[43,null,{"$f":"'FR-16(7)(v)-1 Functional'!C177","v":"PRODUCTION - DEMAND"},{"$f":"'FR-16(7)(v)-1 Functional'!D177","v":"K201"},null,{"$f":"'FR-16(7)(v)-2 PROD Classified'!H177","v":0},{"$f":"F177-SUM(H177:Q177)","v":0},{"$f":"ROUND(F177*VLOOKUP(D177,ALLOCTABLE_Prod_Energy,$H$10,FALSE),0)","v":0},{"$f":"ROUND(F177*VLOOKUP(D177,ALLOCTABLE_Prod_Energy,$I$10,FALSE),0)","v":0},{"$f":"ROUND(F177*VLOOKUP(D177,ALLOCTABLE_Prod_Energy,$J$10,FALSE),0)","v":0},{"$f":"ROUND(F177*VLOOKUP(D177,ALLOCTABLE_Prod_Energy,$K$10,FALSE),0)","v":0},{"$f":"ROUND(F177*VLOOKUP(D177,ALLOCTABLE_Prod_Energy,$L$10,FALSE),0)","v":0},{"$f":"ROUND(F177*VLOOKUP(D177,ALLOCTABLE_Prod_Energy,$M$10,FALSE),0)","v":0},{"$f":"ROUND(F177*VLOOKUP(D177,ALLOCTABLE_Prod_Energy,$N$10,FALSE),0)","v":0},{"$f":"ROUND(F177*VLOOKUP(D177,ALLOCTABLE_Prod_Energy,$O$10,FALSE),0)","v":0},{"$f":"ROUND(F177*VLOOKUP(D177,ALLOCTABLE_Prod_Energy,$P$10,FALSE),0)","v":0},{"$f":"ROUND(F177*VLOOKUP(D177,ALLOCTABLE_Prod_Energy,$Q$10,FALSE),0)","v":0},{"$f":"SUM(G177:Q177)","v":0},{"$f":"F177-R177","v":0}]
[44,null,{"$f":"'FR-16(7)(v)-1 Functional'!C178","v":"PRODUCTION - ENERGY"},{"$f":"'FR-16(7)(v)-1 Functional'!D178","v":"K301"},null,{"$f":"'FR-16(7)(v)-2 PROD Classified'!H178","v":6289780},2374140,1693964,9498,26920,440,1037877,720872,33776,364178,27423,692,6289780,0]
[45,null,{"$f":"'FR-16(7)(v)-1 Functional'!C179","v":"TRANSMISSION"},{"$f":"'FR-16(7)(v)-1 Functional'!D179","v":"K202"},null,{"$f":"'FR-16(7)(v)-2 PROD Classified'!H179","v":0},0,0,0,0,0,0,0,0,0,0,0,0,0]
[46,null,{"$f":"'FR-16(7)(v)-1 Functional'!C180","v":"DISTRIBUTION - DEMAND"},{"$f":"'FR-16(7)(v)-1 Functional'!D180","v":"K201"},null,{"$f":"'FR-16(7)(v)-2 PROD Classified'!H180","v":0},0,0,0,0,0,0,0,0,0,0,0,0,0]
[47,null,{"$f":"'FR-16(7)(v)-1 Functional'!C181","v":"DISTRIBUTION - CUSTOMER"},{"$f":"'FR-16(7)(v)-1 Functional'!D181","v":"K405"},null,{"$f":"'FR-16(7)(v)-2 PROD Classified'!H181","v":0},0,0,0,0,0,0,0,0,0,0,0,0,0]
[48,null,{"$f":"'FR-16(7)(v)-1 Functional'!C182","v":"CUSTOMER ACCOUNTING"},{"$f":"'FR-16(7)(v)-1 Functional'!D182","v":"A308"},null,{"$f":"'FR-16(7)(v)-2 PROD Classified'!H182","v":0},0,0,0,0,0,0,0,0,0,0,0,0,0]
[49,null,{"$f":"'FR-16(7)(v)-1 Functional'!C183","v":"CUSTOMER SERVICE & INFORMATION"},{"$f":"'FR-16(7)(v)-1 Functional'!D183","v":"A310"},null,{"$f":"'FR-16(7)(v)-2 PROD Classified'!H183","v":0},0,0,0,0,0,0,0,0,0,0,0,0,0]
[50,null,{"$f":"'FR-16(7)(v)-1 Functional'!C184","v":"SALES"},{"$f":"'FR-16(7)(v)-1 Functional'!D184","v":"A312"},null,{"$f":"'FR-16(7)(v)-2 PROD Classified'!H184","v":0},0,0,0,0,0,0,0,0,0,0,0,0,0]
[51,null,{"$f":"'FR-16(7)(v)-1 Functional'!C185","v":"ADJUSTMENT"},{"$f":"'FR-16(7)(v)-1 Functional'!D185","v":"A315"},null,{"$f":"'FR-16(7)(v)-2 PROD Classified'!H185","v":111988},42400,30233,169,480,8,18489,12873,604,6231,489,12,111988,0]
[52,null,"  GENERAL & INTANG PLANT",null,null,{"$f":"SUM(F176:F185)","v":6401768},{"$f":"SUM(G176:G185)","v":2416540},{"$f":"SUM(H176:H185)","v":1724197},9667,27400,448,{"$f":"SUM(L176:L185)","v":1056366},{"$f":"SUM(M176:M185)","v":733745},34380,370409,27912,704,{"$f":"SUM(R176:R185)","v":6401768},{"$f":"SUM(S176:S185)","v":0}]
[53]
[54,"COMMON & OTHER PLANT"]
[55,null,{"$f":"'FR-16(7)(v)-1 Functional'!C189","v":"PRODUCTION - DEMAND"},{"$f":"'FR-16(7)(v)-1 Functional'!D189","v":"K201"},null,{"$f":"'FR-16(7)(v)-2 PROD Classified'!H189","v":0},{"$f":"F189-SUM(H189:Q189)","v":0},{"$f":"ROUND(F189*VLOOKUP(D189,ALLOCTABLE_Prod_Energy,$H$10,FALSE),0)","v":0},{"$f":"ROUND(F189*VLOOKUP(D189,ALLOCTABLE_Prod_Energy,$I$10,FALSE),0)","v":0},{"$f":"ROUND(F189*VLOOKUP(D189,ALLOCTABLE_Prod_Energy,$J$10,FALSE),0)","v":0},{"$f":"ROUND(F189*VLOOKUP(D189,ALLOCTABLE_Prod_Energy,$K$10,FALSE),0)","v":0},{"$f":"ROUND(F189*VLOOKUP(D189,ALLOCTABLE_Prod_Energy,$L$10,FALSE),0)","v":0},{"$f":"ROUND(F189*VLOOKUP(D189,ALLOCTABLE_Prod_Energy,$M$10,FALSE),0)","v":0},{"$f":"ROUND(F189*VLOOKUP(D189,ALLOCTABLE_Prod_Energy,$N$10,FALSE),0)","v":0},{"$f":"ROUND(F189*VLOOKUP(D189,ALLOCTABLE_Prod_Energy,$O$10,FALSE),0)","v":0},{"$f":"ROUND(F189*VLOOKUP(D189,ALLOCTABLE_Prod_Energy,$P$10,FALSE),0)","v":0},{"$f":"ROUND(F189*VLOOKUP(D189,ALLOCTABLE_Prod_Energy,$Q$10,FALSE),0)","v":0},{"$f":"SUM(G189:Q189)","v":0},{"$f":"F189-R189","v":0}]
[56,null,{"$f":"'FR-16(7)(v)-1 Functional'!C190","v":"PRODUCTION - ENERGY"},{"$f":"'FR-16(7)(v)-1 Functional'!D190","v":"K301"},null,{"$f":"'FR-16(7)(v)-2 PROD Classified'!H190","v":8498622},3207889,2288849,12833,36374,595,1402358,974027,45638,492070,37054,935,8498622,0]
[57,null,{"$f":"'FR-16(7)(v)-1 Functional'!C191","v":"TRANSMISSION"},{"$f":"'FR-16(7)(v)-1 Functional'!D191","v":"K202"},null,{"$f":"'FR-16(7)(v)-2 PROD Classified'!H191","v":0},0,0,0,0,0,0,0,0,0,0,0,0,0]
[58,null,{"$f":"'FR-16(7)(v)-1 Functional'!C192","v":"DISTRIBUTION - DEMAND"},{"$f":"'FR-16(7)(v)-1 Functional'!D192","v":"K201"},null,{"$f":"'FR-16(7)(v)-2 PROD Classified'!H192","v":0},0,0,0,0,0,0,0,0,0,0,0,0,0]
[59,null,{"$f":"'FR-16(7)(v)-1 Functional'!C193","v":"DISTRIBUTION - CUSTOMER"},{"$f":"'FR-16(7)(v)-1 Functional'!D193","v":"K405"},null,{"$f":"'FR-16(7)(v)-2 PROD Classified'!H193","v":0},0,0,0,0,0,0,0,0,0,0,0,0,0]
[60,null,{"$f":"'FR-16(7)(v)-1 Functional'!C194","v":"CUSTOMER ACCOUNTING"},{"$f":"'FR-16(7)(v)-1 Functional'!D194","v":"A308"},null,{"$f":"'FR-16(7)(v)-2 PROD Classified'!H194","v":0},0,0,0,0,0,0,0,0,0,0,0,0,0]
[61,null,{"$f":"'FR-16(7)(v)-1 Functional'!C195","v":"CUSTOMER SERVICE & INFORMATION"},{"$f":"'FR-16(7)(v)-1 Functional'!D195","v":"A310"},null,{"$f":"'FR-16(7)(v)-2 PROD Classified'!H195","v":0},0,0,0,0,0,0,0,0,0,0,0,0,0]
[62,null,{"$f":"'FR-16(7)(v)-1 Functional'!C196","v":"SALES"},{"$f":"'FR-16(7)(v)-1 Functional'!D196","v":"A312"},null,{"$f":"'FR-16(7)(v)-2 PROD Classified'!H196","v":0},0,0,0,0,0,0,0,0,0,0,0,0,0]
[63,null,{"$f":"'FR-16(7)(v)-1 Functional'!C197","v":"ADJUSTMENT"},{"$f":"'FR-16(7)(v)-1 Functional'!D197","v":"A315"},null,{"$f":"'FR-16(7)(v)-2 PROD Classified'!H197","v":6290},2383,1698,9,27,0,1038,723,34,350,27,1,6290,0]
[64,null,{"$f":"'FR-16(7)(v)-1 Functional'!C198","v":"  COMMON & OTHER PLANT IN SERVICE"},null,null,{"$f":"SUM(F189:F197)","v":8504912},{"$f":"SUM(G189:G197)","v":3210272},2290547,12842,36401,595,{"$f":"SUM(L189:L197)","v":1403396},{"$f":"SUM(M189:M197)","v":974750},45672,492420,37081,936,{"$f":"SUM(R188:R197)","v":8504912},{"$f":"SUM(S188:S197)","v":0}]
[65]
[66,"TOTAL DEPRECIATION RESERVE",null,null,null,{"$f":"F198+F186+F171+F145+F139","v":14906680},{"$f":"G198+G186+G171+G145+G139","v":5626812},{"$f":"H198+H186+H171+H145+H139","v":4014744},22509,63801,1043,2459762,1708495,80052,862829,64993,1640,{"$f":"R198+R186+R171+R145+R139","v":14906680},{"$f":"S198+S186+S171+S145+S139","v":0}]
[]
[{"$f":"co_name","v":"DUKE ENERGY KENTUCKY, INC."},null,null,null,null,null,null,null,null,null,null,null,null,null,null,null,null,{"$f":"R1","v":"FR-16(7)(v)-4"}]
[{"$f":"$A$2","v":"PRODUCTION ENERGY ALLOCATED - ELECTRIC COST OF SERVICE"},null,null,null,null,null,null,null,null,null,null,null,null,null,null,null,null,{"$f":"R2","v":"WITNESS RESPONSIBLE:"}]
[{"$f":"case_name","v":"CASE NO: 2019-00271"},null,null,null,null,null,null,null,null,null,null,null,null,null,null,null,null,{"$f":"Witness","v":"JAMES E. ZIOLKOWSKI"}]
[{"$f":"data_filing","v":"DATA: 12 MONTHS ACTUAL  & 0 MONTHS ESTIMATED"},null,null,null,null,null,null,null,null,null,null,null,null,null,null,null,null,{"$f":"\"PAGE \"&Pages-14&\" OF \"&Pages","v":"PAGE 4 OF 18"}]
[{"$f":"type","v":"TYPE OF FILING: \"X\" ORIGINAL   UPDATED    REVISED  "}]
[]
[null,null,null,null,null,{"$f":"F$7","v":"TOTAL"},null,{"$f":"H$7","v":"DS"},{"$f":"I$7","v":"GSFL"},{"$f":"J$7","v":"EH"},{"$f":"K$7","v":"SP"},"DT SEC","DT PRI","DP","TT",null,"OTHER"]
["LINE",null,null,null,null,{"$f":"F$8","v":"PRODUCTION"},{"$f":"G$8","v":"RS"},{"$f":"H$8","v":"SECONDARY"},{"$f":"I$8","v":"SECONDARY"},{"$f":"J$8","v":"SECONDARY"},{"$f":"K$8","v":"SECONDARY"},"SECONDARY","PRIMARY","PRIMARY","TRANSMISSION","LT","WATER",{"$f":"R8","v":"TOTAL"},"ALL"]
["NO.",{"$f":"\"NET ELECTRIC PLANT\"","v":"NET ELECTRIC PLANT"},null,"ALLO",null,{"$f":"F$9","v":"ENERGY"},{"$f":"G$9","v":"RESIDENTIAL"},{"$f":"H$9","v":"DISTRIBUTION"},{"$f":"I$9","v":"DISTRIBUTION"},{"$f":"J$9","v":"DISTRIBUTION"},{"$f":"K$9","v":"DISTRIBUTION"},"DISTRIBUTION","DISTRIBUTION","DISTRIBUTION","TIME OF DAY","LIGHTING","PUMPING",{"$f":"R9","v":"AT ISSUE"},"OTHER"]
[null,null,"Schedule 4",null,null,null,{"$f":"G$10","v":3},{"$f":"H$10","v":4},{"$f":"I$10","v":5},{"$f":"J$10","v":6},{"$f":"K$10","v":7},8,9,10,11,12,13,null," "]
[1,"PRODUCTION PLANT"]
[2,null,"PRODUCTION STEAM",null,null,{"$f":"F59-F136","v":0},{"$f":"G59-G136","v":0},{"$f":"H59-H136","v":0},{"$f":"I59-I136","v":0},{"$f":"J59-J136","v":0},0,0,0,0,0,0,{"$f":"Q59-Q136","v":0},{"$f":"R59-R136","v":0},{"$f":"F213-R213","v":0}]
[3,null,"PRODUCTION OTHER",null,null,{"$f":"F60-F137","v":0},0,0,0,{"$f":"J60-J137","v":0},0,0,0,0,0,0,0,0,{"$f":"F214-R214","v":0}]
[4,null,"ADJUSTMENT",null,null,{"$f":"F61-F138","v":0},0,0,0,{"$f":"J61-J138","v":0},0,0,0,0,0,0,0,0,{"$f":"F215-R215","v":0}]
[5,null,{"$f":"'FR-16(7)(v)-1 Functional'!C216","v":"  NET PRODUCTION PLANT"},null,null,{"$f":"SUM(F213:F215)","v":0},0,0,0,{"$f":"SUM(J213:J215)","v":0},0,0,0,0,0,0,0,0,0]
[6]
[7,"TRANSMISSION PLANT"]
[8,null,"MAIN STEP-UP TRANSFORMERS",null,null,{"$f":"F65-F142","v":0},0,0,0,{"$f":"J65-J142","v":0},0,0,0,0,0,0,0,0,{"$f":"F219-R219","v":0}]
[9,null,"OTHER TRANSMISSION",null,null,{"$f":"F66-F143","v":0},0,0,0,0,0,0,0,0,0,0,0,0,{"$f":"F220-R220","v":0}]
[10,null,"ADJUSTMENT",null,null,{"$f":"F67-F144","v":0},0,0,0,0,0,0,0,0,0,0,0,0,{"$f":"F221-R221","v":0}]
[11,null,{"$f":"'FR-16(7)(v)-1 Functional'!C222","v":"    NET TRANSMISSION PLANT"},null,null,{"$f":"SUM(F218:F221)","v":0},0,0,0,{"$f":"SUM(J218:J221)","v":0},0,0,0,0,0,0,0,0,0]
[12]
[13,"NET PROD & TRANS PLANT",null,null,null,{"$f":"F70-F147","v":0},{"$f":"G70-G147","v":0},{"$f":"H70-H147","v":0},0,0,0,0,0,0,0,0,0,0,{"$f":"F224-R224","v":0}]
[14]
[15,"DISTRIBUTION PLANT"]
[16,null,{"$f":"'FR-16(7)(v)-1 Functional'!C227","v":"SUBSTATIONS"},null,null,{"$f":"F73-F150","v":0},{"$f":"G73-G150","v":0},{"$f":"H73-H150","v":0},0,0,0,0,0,0,0,0,0,{"$f":"R73-R150","v":0},{"$f":"F227-R227","v":0}]
[17,null,{"$f":"'FR-16(7)(v)-1 Functional'!C228","v":"POLES, TOWERS  & FIXTURES - PRIMARY - DEMAND"},null,null,{"$f":"F74-F151","v":0},{"$f":"G74-G151","v":0},{"$f":"H74-H151","v":0},0,0,0,0,0,0,0,0,0,{"$f":"R74-R151","v":0},{"$f":"F228-R228","v":0}]
[18,null,{"$f":"'FR-16(7)(v)-1 Functional'!C229","v":"POLES, TOWERS  & FIXTURES - PRIMARY - CUSTOMER"},null,null,{"$f":"F75-F152","v":0},{"$f":"G75-G152","v":0},0,0,0,0,0,0,0,0,0,0,0,{"$f":"F229-R229","v":0}]
[19,null,{"$f":"'FR-16(7)(v)-1 Functional'!C230","v":"POLES, TOWERS  & FIXTURES - SECONDARY - DEMAND"},null,null,0,{"$f":"G76-G153","v":0},0,0,0,0,0,0,0,0,0,0,0,0]
[20,null,{"$f":"'FR-16(7)(v)-1 Functional'!C231","v":"POLES, TOWERS  & FIXTURES - SECONDARY - CUSTOMER"},null,null,0,{"$f":"G77-G154","v":0},0,0,0,0,0,0,0,0,0,0,0,0]
[21,null,{"$f":"'FR-16(7)(v)-1 Functional'!C232","v":"CONDUCTORS - OVERHEAD / PRIMARY - DEMAND"},null,null,0,{"$f":"G78-G155","v":0},0,0,0,0,0,0,0,0,0,0,0,0]
[22,null,{"$f":"'FR-16(7)(v)-1 Functional'!C233","v":"CONDUCTORS - OVERHEAD / PRIMARY - CUSTOMER"},null,null,0,{"$f":"G79-G156","v":0},0,0,0,0,0,0,0,0,0,0,0,0]
[23,null,{"$f":"'FR-16(7)(v)-1 Functional'!C234","v":"CONDUCTORS - OVERHEAD / SECONDARY - DEMAND"},null,null,0,{"$f":"G80-G157","v":0},0,0,0,0,0,0,0,0,0,0,0,0]
[24,null,{"$f":"'FR-16(7)(v)-1 Functional'!C235","v":"CONDUCTORS - OVERHEAD / SECONDARY - CUSTOMER"},null,null,0,{"$f":"G81-G158","v":0},0,0,0,0,0,0,0,0,0,0,0,0]
[25,null,{"$f":"'FR-16(7)(v)-1 Functional'!C236","v":"CONDUCTORS - UNDERGROUND / PRIMARY - DEMAND"},null,null,0,{"$f":"G82-G159","v":0},0,0,0,0,0,0,0,0,0,0,0,0]
[26,null,{"$f":"'FR-16(7)(v)-1 Functional'!C237","v":"CONDUCTORS - UNDERGROUND / PRIMARY - CUSTOMER"},null,null,0,{"$f":"G83-G160","v":0},0,0,0,0,0,0,0,0,0,0,0,0]
[27,null,{"$f":"'FR-16(7)(v)-1 Functional'!C238","v":"CONDUCTORS - UNDERGROUND / SECONDARY - DEMAND"},null,null,0,{"$f":"G84-G161","v":0},0,0,0,0,0,0,0,0,0,0,0,0]
[28,null,{"$f":"'FR-16(7)(v)-1 Functional'!C239","v":"CONDUCTORS - UNDERGROUND / SECONDARY - CUSTOMER"},null,null,0,{"$f":"G85-G162","v":0},0,0,0,0,0,0,0,0,0,0,0,0]
[29,null,"TRANSFORMERS DEMAND RELATED",null,null,0,{"$f":"G86-G163","v":0},0,0,0,0,0,0,0,0,0,0,0,{"$f":"F240-R240","v":0}]
[30,null,"TRANSFORMERS CUSTOMER RELATED",null,null,0,{"$f":"G87-G164","v":0},0,0,0,0,0,0,0,0,0,0,0,0]
[31,null,{"$f":"'FR-16(7)(v)-1 Functional'!C242","v":"SERVICES"},null,null,0,{"$f":"G88-G165","v":0},{"$f":"H88-H165","v":0},0,0,0,0,0,0,0,0,0,{"$f":"R88-R165","v":0},0]
[32,null,{"$f":"'FR-16(7)(v)-1 Functional'!C243","v":"METERS"},null,null,0,0,{"$f":"H89-H166","v":0},0,0,0,0,0,0,0,0,0,{"$f":"R89-R166","v":0},0]
[33,null,{"$f":"'FR-16(7)(v)-1 Functional'!C244","v":"STREET LIGHTS"},null,null,0,0,{"$f":"H90-H167","v":0},0,0,0,0,0,0,0,0,0,{"$f":"R90-R167","v":0},0]
[34,null,{"$f":"'FR-16(7)(v)-1 Functional'!C245","v":"ADJUSTMENT  "},null,null,0,0,{"$f":"H91-H168","v":0},0,0,0,0,0,0,0,0,0,{"$f":"R91-R168","v":0},0]
[35,null,{"$f":"'FR-16(7)(v)-1 Functional'!C246","v":"CONSTRUCTION NOT CLASSIFIED"},null,null,0,0,{"$f":"H92-H169","v":0},0,0,0,0,0,0,0,0,0,{"$f":"R92-R169","v":0},0]
[36,null,{"$f":"'FR-16(7)(v)-1 Functional'!C247","v":"RWIP"},null,null,0,0,0,0,0,0,0,0,0,0,0,0,0,0]
[37,null,{"$f":"'FR-16(7)(v)-1 Functional'!C248","v":"  NET DISTRIBUTION PLANT"},null,null,{"$f":"SUM(F226:F247)","v":0},{"$f":"SUM(G226:G247)","v":0},0,0,0,0,0,0,0,0,0,0,0,0]
[38]
[39,"NET PTD PLANT",null,null,null,{"$f":"F96-F173","v":0},0,0,0,{"$f":"J96-J173","v":0},0,0,0,0,0,0,0,0,{"$f":"S248+S222+S216","v":0}]
[40,"NET TRANS & DIST PLANT",null,null,null,{"$f":"F97-F174","v":0},0,0,0,{"$f":"J97-J174","v":0},0,0,0,0,0,0,0,0,{"$f":"S248+S222","v":0}]
[41]
[42,"GENERAL & INTANGIBLE PLANT"]
[43,null,{"$f":"'FR-16(7)(v)-1 Functional'!C254","v":"PRODUCTION - DEMAND"},null,null,{"$f":"F100-F177","v":0},0,0,0,{"$f":"J100-J177","v":0},0,0,0,0,0,0,0,0,{"$f":"F254-R254","v":0}]
[44,null,{"$f":"'FR-16(7)(v)-1 Functional'!C255","v":"PRODUCTION - ENERGY"},null,null,{"$f":"F101-F178","v":13227874},4992993,3562531,19974,{"$f":"J101-J178","v":56616},926,2182731,1516046,71034,765894,57674,1455,13227874,{"$f":"F255-R255","v":0}]
[45,null,{"$f":"'FR-16(7)(v)-1 Functional'!C256","v":"TRANSMISSION"},null,null,{"$f":"F102-F179","v":0},0,0,0,{"$f":"J102-J179","v":0},0,0,0,0,0,0,0,0,0]
[46,null,{"$f":"'FR-16(7)(v)-1 Functional'!C257","v":"DISTRIBUTION - DEMAND"},null,null,{"$f":"F103-F180","v":0},0,0,0,0,0,0,0,0,0,0,0,0,0]
[47,null,{"$f":"'FR-16(7)(v)-1 Functional'!C258","v":"DISTRIBUTION - CUSTOMER"},null,null,{"$f":"F104-F181","v":0},0,0,0,0,0,0,0,0,0,0,0,0,{"$f":"F258-R258","v":0}]
[48,null,{"$f":"'FR-16(7)(v)-1 Functional'!C259","v":"CUSTOMER ACCOUNTING"},null,null,{"$f":"F105-F182","v":0},0,0,0,{"$f":"J105-J182","v":0},0,0,0,0,0,0,0,0,0]
[49,null,{"$f":"'FR-16(7)(v)-1 Functional'!C260","v":"CUSTOMER SERVICE & INFORMATION"},null,null,{"$f":"F106-F183","v":0},0,0,0,{"$f":"J106-J183","v":0},0,0,0,0,0,0,{"$f":"Q106-Q183","v":0},{"$f":"R106-R183","v":0},0]
[50,null,{"$f":"'FR-16(7)(v)-1 Functional'!C261","v":"SALES"},null,null,0,0,0,0,{"$f":"J107-J184","v":0},0,0,0,0,0,0,{"$f":"Q107-Q184","v":0},{"$f":"R107-R184","v":0},{"$f":"F261-R261","v":0}]
[51,null,{"$f":"'FR-16(7)(v)-1 Functional'!C262","v":"ADJUSTMENT"},null,null,{"$f":"F108-F185","v":-111988},-42400,-30233,-169,{"$f":"J108-J185","v":-480},-8,-18489,-12873,-604,-6231,-489,-12,-111988,{"$f":"F262-R262","v":0}]
[52,null,{"$f":"'FR-16(7)(v)-1 Functional'!C263","v":"  NET GENERAL & INTANG PLANT"},null,null,{"$f":"SUM(F253:F262)","v":13115886},4950593,3532298,19805,56136,918,2164242,1503173,70430,759663,57185,1443,13115886,0]
[53]
[54,"COMMON & OTHER PLANT"]
[55,null,{"$f":"'FR-16(7)(v)-1 Functional'!C266","v":"PRODUCTION - DEMAND"},null,null,{"$f":"F112-F189","v":0},0,0,0,{"$f":"J112-J189","v":0},0,0,0,0,0,0,0,0,{"$f":"F266-R266","v":0}]
[56,null,{"$f":"'FR-16(7)(v)-1 Functional'!C267","v":"PRODUCTION - ENERGY"},null,null,{"$f":"F113-F190","v":2548022},961778,686233,3847,{"$f":"J113-J190","v":10906},178,420449,292029,13682,147531,11109,280,2548022,{"$f":"F267-R267","v":0}]
[57,null,{"$f":"'FR-16(7)(v)-1 Functional'!C268","v":"TRANSMISSION"},null,null,{"$f":"F114-F191","v":0},0,0,0,{"$f":"J114-J191","v":0},0,0,0,0,0,0,0,0,0]
[58,null,{"$f":"'FR-16(7)(v)-1 Functional'!C269","v":"DISTRIBUTION - DEMAND"},null,null,{"$f":"F115-F192","v":0},0,0,0,0,0,0,0,0,0,0,0,0,0]
[59,null,{"$f":"'FR-16(7)(v)-1 Functional'!C270","v":"DISTRIBUTION - CUSTOMER"},null,null,{"$f":"F116-F193","v":0},0,0,0,0,0,0,0,0,0,0,0,0,{"$f":"F270-R270","v":0}]
[60,null,{"$f":"'FR-16(7)(v)-1 Functional'!C271","v":"CUSTOMER ACCOUNTING"},null,null,{"$f":"F117-F194","v":0},0,0,0,{"$f":"J117-J194","v":0},0,0,0,0,0,0,0,0,0]
[61,null,{"$f":"'FR-16(7)(v)-1 Functional'!C272","v":"CUSTOMER SERVICE & INFORMATION"},null,null,{"$f":"F118-F195","v":0},0,0,0,{"$f":"J118-J195","v":0},0,{"$f":"L118-L195","v":0},0,0,0,0,{"$f":"Q118-Q195","v":0},{"$f":"R118-R195","v":0},0]
[62,null,{"$f":"'FR-16(7)(v)-1 Functional'!C273","v":"SALES"},null,null,0,0,0,0,{"$f":"J119-J196","v":0},0,0,0,0,0,0,{"$f":"Q119-Q196","v":0},{"$f":"R119-R196","v":0},{"$f":"F273-R273","v":0}]
[63,null,{"$f":"'FR-16(7)(v)-1 Functional'!C274","v":"ADJUSTMENT"},null,null,{"$f":"F120-F197","v":-6290},-2383,-1698,-9,{"$f":"J120-J197","v":-27},0,-1038,-723,-34,-350,-27,-1,-6290,{"$f":"F274-R274","v":0}]
[64,null,"  COMMON & OTHER PLANT IN SERVICE",null,null,{"$f":"SUM(F265:F274)","v":2541732},959395,684535,3838,10879,178,419411,291306,13648,147181,11082,279,2541732,0]
[65]
[66,null,{"$f":"'FR-16(7)(v)-1 Functional'!C277","v":"NET ELECTRIC PLANT IN SERVICE"},null,null,{"$f":"F275+F263+F248+F222+F216","v":15657618},{"$f":"G275+G263+G248+G222+G216","v":5909988},{"$f":"H275+H263+H248+H222+H216","v":4216833},{"$f":"I275+I263+I248+I222+I216","v":23643},{"$f":"J275+J263+J248+J222+J216","v":67015},1096,2583653,1794479,84078,906844,68267,{"$f":"Q275+Q263+Q248+Q222+Q216","v":1722},{"$f":"R275+R263+R248+R222+R216","v":15657618},{"$f":"S275+S263+S248+S222+S216","v":0}]
[]
[{"$f":"co_name","v":"DUKE ENERGY KENTUCKY, INC."},null,null,null,null,null,null,null,null,null,null,null,null,null,null,null,null,{"$f":"R1","v":"FR-16(7)(v)-4"}]
[{"$f":"$A$2","v":"PRODUCTION ENERGY ALLOCATED - ELECTRIC COST OF SERVICE"},null,null,null,null,null,null,null,null,null,null,null,null,null,null,null,null,{"$f":"R2","v":"WITNESS RESPONSIBLE:"}]
[{"$f":"case_name","v":"CASE NO: 2019-00271"},null,null,null,null,null,null,null,null,null,null,null,null,null,null,null,null,{"$f":"Witness","v":"JAMES E. ZIOLKOWSKI"}]
[{"$f":"data_filing","v":"DATA: 12 MONTHS ACTUAL  & 0 MONTHS ESTIMATED"},null,null,null,null,null,null,null,null,null,null,null,null,null,null,null,null,{"$f":"\"PAGE \"&Pages-13&\" OF \"&Pages","v":"PAGE 5 OF 18"}]
[{"$f":"type","v":"TYPE OF FILING: \"X\" ORIGINAL   UPDATED    REVISED  "}]
[]
[null,null,null,null,null,{"$f":"F$7","v":"TOTAL"},null,{"$f":"H$7","v":"DS"},{"$f":"I$7","v":"GSFL"},{"$f":"J$7","v":"EH"},{"$f":"K$7","v":"SP"},"DT SEC","DT PRI","DP","TT",null,"OTHER"]
["LINE",null,null,null,null,{"$f":"F$8","v":"PRODUCTION"},{"$f":"G$8","v":"RS"},{"$f":"H$8","v":"SECONDARY"},{"$f":"I$8","v":"SECONDARY"},{"$f":"J$8","v":"SECONDARY"},{"$f":"K$8","v":"SECONDARY"},"SECONDARY","PRIMARY","PRIMARY","TRANSMISSION","LT","WATER",{"$f":"R8","v":"TOTAL"},"ALL"]
["NO.","SUBTRACTIVE RATE BASE ADJUSTMENTS",null,"ALLO",null,{"$f":"F$9","v":"ENERGY"},{"$f":"G$9","v":"RESIDENTIAL"},{"$f":"H$9","v":"DISTRIBUTION"},{"$f":"I$9","v":"DISTRIBUTION"},{"$f":"J$9","v":"DISTRIBUTION"},{"$f":"K$9","v":"DISTRIBUTION"},"DISTRIBUTION","DISTRIBUTION","DISTRIBUTION","TIME OF DAY","LIGHTING","PUMPING",{"$f":"R9","v":"AT ISSUE"},"OTHER"]
[null,null,"Schedule 5",null,null,null,{"$f":"G$10","v":3},{"$f":"H$10","v":4},{"$f":"I$10","v":5},{"$f":"J$10","v":6},{"$f":"K$10","v":7},8,9,10,11,12,13,null," "]
[1,"RATE BASE ADJUSTMENTS"]
[2,"ACCUMULATED DEFERRED INCOME TAXES"]
[3," ACCUM DEF INC TAXES (282)"]
[4,null,{"$f":"'FR-16(7)(v)-1 Functional'!C292","v":"LIBERALIZED DEPRECIATION"},{"$f":"'FR-16(7)(v)-1 Functional'!D292","v":"NP29"}," ",{"$f":"'FR-16(7)(v)-2 PROD Classified'!H292","v":927080},{"$f":"F292-SUM(H292:Q292)","v":349918},{"$f":"ROUND(F292*VLOOKUP(D292,ALLOCTABLE_Prod_Energy,$H$10,FALSE),0)","v":249681},{"$f":"ROUND(F292*VLOOKUP(D292,ALLOCTABLE_Prod_Energy,$I$10,FALSE),0)","v":1400},{"$f":"ROUND(F292*VLOOKUP(D292,ALLOCTABLE_Prod_Energy,$J$10,FALSE),0)","v":3968},{"$f":"ROUND(F292*VLOOKUP(D292,ALLOCTABLE_Prod_Energy,$K$10,FALSE),0)","v":65},{"$f":"ROUND(F292*VLOOKUP(D292,ALLOCTABLE_Prod_Energy,$L$10,FALSE),0)","v":152977},{"$f":"ROUND(F292*VLOOKUP(D292,ALLOCTABLE_Prod_Energy,$M$10,FALSE),0)","v":106253},{"$f":"ROUND(F292*VLOOKUP(D292,ALLOCTABLE_Prod_Energy,$N$10,FALSE),0)","v":4978},{"$f":"ROUND(F292*VLOOKUP(D292,ALLOCTABLE_Prod_Energy,$O$10,FALSE),0)","v":53696},{"$f":"ROUND(F292*VLOOKUP(D292,ALLOCTABLE_Prod_Energy,$P$10,FALSE),0)","v":4042},{"$f":"ROUND(F292*VLOOKUP(D292,ALLOCTABLE_Prod_Energy,$Q$10,FALSE),0)","v":102},{"$f":"SUM(G292:Q292)","v":927080},{"$f":"F292-R292","v":0}]
[5,null,{"$f":"'FR-16(7)(v)-1 Functional'!C293","v":"LEASED METERS"},{"$f":"'FR-16(7)(v)-1 Functional'!D293","v":"NP29"}," ",{"$f":"'FR-16(7)(v)-2 PROD Classified'!H293","v":21028},7937,5663,32,90,1,3470,2410,113,1218,92,2,21028,0]
[6,null,{"$f":"'FR-16(7)(v)-1 Functional'!C294","v":"CONTRIB AID CONSTR"},{"$f":"'FR-16(7)(v)-1 Functional'!D294","v":"D249"}," ",{"$f":"'FR-16(7)(v)-2 PROD Classified'!H294","v":0},0,0,0,0,0,0,0,0,0,0,0,0,0]
[7,null,{"$f":"'FR-16(7)(v)-1 Functional'!C295","v":"TAX INTEREST, EXPENSING, DEPR."},{"$f":"'FR-16(7)(v)-1 Functional'!D295","v":"NP29"}," ",{"$f":"'FR-16(7)(v)-2 PROD Classified'!H295","v":925671},349384,249302,1398,3962,65,152745,106091,4971,53615,4036,102,925671,0]
[8,null,{"$f":"'FR-16(7)(v)-1 Functional'!C296","v":"AFUDC IN DEBT"},{"$f":"'FR-16(7)(v)-1 Functional'!D296","v":"NP29"}," ",{"$f":"'FR-16(7)(v)-2 PROD Classified'!H296","v":0},0,0,0,0,0,0,0,0,0,0,0,0,0]
[9,null,{"$f":"'FR-16(7)(v)-1 Functional'!C297","v":"CASUALTY LOSS"},{"$f":"'FR-16(7)(v)-1 Functional'!D297","v":"K411"}," ",{"$f":"'FR-16(7)(v)-2 PROD Classified'!H297","v":0},0,0,0,0,0,0,0,0,0,0,0,0,0]
[10,null,{"$f":"'FR-16(7)(v)-1 Functional'!C298","v":"NON-CASH OVERHEADS"},{"$f":"'FR-16(7)(v)-1 Functional'!D298","v":"G229"}," ",{"$f":"'FR-16(7)(v)-2 PROD Classified'!H298","v":0},0,0,0,0,0,0,0,0,0,0,0,0,0]
[11,null,{"$f":"'FR-16(7)(v)-1 Functional'!C299","v":"PLANT FAS 109"},{"$f":"'FR-16(7)(v)-1 Functional'!D299","v":"NP29"}," ",{"$f":"'FR-16(7)(v)-2 PROD Classified'!H299","v":0},0,0,0,0,0,0,0,0,0,0,0,0,0]
[12,null,{"$f":"'FR-16(7)(v)-1 Functional'!C300","v":"MISCELLANEOUS"},{"$f":"'FR-16(7)(v)-1 Functional'!D300","v":"NP29"},null,{"$f":"'FR-16(7)(v)-2 PROD Classified'!H300","v":873494},329692,235249,1319,3739,61,144135,100111,4691,50593,3808,96,873494,0]
[13,null,{"$f":"'FR-16(7)(v)-1 Functional'!C301","v":"  TOTAL ACCOUNT 282"},null,null,{"$f":"SUM(F292:F300)","v":2747273},{"$f":"SUM(G292:G300)","v":1036931},{"$f":"SUM(H292:H300)","v":739895},4149,11759,192,453327,314865,14753,159122,11978,302,{"$f":"SUM(R292:R300)","v":2747273},{"$f":"SUM(S292:S300)","v":0}]
[14]
[15," ACCUM DEF INC TAXES (283)"]
[16,null,{"$f":"'FR-16(7)(v)-1 Functional'!C304","v":"TRANSITION FROM MISO TO PJM"},{"$f":"'FR-16(7)(v)-1 Functional'!D304","v":"NP29"},null,{"$f":"'FR-16(7)(v)-2 PROD Classified'!H304","v":-49745},{"$f":"F304-SUM(H304:Q304)","v":-18778},{"$f":"ROUND(F304*VLOOKUP(D304,ALLOCTABLE_Prod_Energy,$H$10,FALSE),0)","v":-13397},{"$f":"ROUND(F304*VLOOKUP(D304,ALLOCTABLE_Prod_Energy,$I$10,FALSE),0)","v":-75},{"$f":"ROUND(F304*VLOOKUP(D304,ALLOCTABLE_Prod_Energy,$J$10,FALSE),0)","v":-213},{"$f":"ROUND(F304*VLOOKUP(D304,ALLOCTABLE_Prod_Energy,$K$10,FALSE),0)","v":-3},{"$f":"ROUND(F304*VLOOKUP(D304,ALLOCTABLE_Prod_Energy,$L$10,FALSE),0)","v":-8208},{"$f":"ROUND(F304*VLOOKUP(D304,ALLOCTABLE_Prod_Energy,$M$10,FALSE),0)","v":-5701},{"$f":"ROUND(F304*VLOOKUP(D304,ALLOCTABLE_Prod_Energy,$N$10,FALSE),0)","v":-267},{"$f":"ROUND(F304*VLOOKUP(D304,ALLOCTABLE_Prod_Energy,$O$10,FALSE),0)","v":-2881},{"$f":"ROUND(F304*VLOOKUP(D304,ALLOCTABLE_Prod_Energy,$P$10,FALSE),0)","v":-217},{"$f":"ROUND(F304*VLOOKUP(D304,ALLOCTABLE_Prod_Energy,$Q$10,FALSE),0)","v":-5},{"$f":"SUM(G304:Q304)","v":-49745},{"$f":"F304-R304","v":0}]
[17,null,{"$f":"'FR-16(7)(v)-1 Functional'!C305","v":"DEFERRED PLANT COSTS"},{"$f":"'FR-16(7)(v)-1 Functional'!D305","v":"NP29"},null,{"$f":"'FR-16(7)(v)-2 PROD Classified'!H305","v":9691},3658,2610,15,41,1,1599,1111,52,561,42,1,9691,0]
[18,null,{"$f":"'FR-16(7)(v)-1 Functional'!C306","v":"MISCELLANEOUS"},{"$f":"'FR-16(7)(v)-1 Functional'!D306","v":"OM39"},null,{"$f":"'FR-16(7)(v)-2 PROD Classified'!H306","v":7684823},2909474,2074672,11604,32968,538,1268764,883370,41421,427584,33583,845,7684823,0]
[19,null,{"$f":"'FR-16(7)(v)-1 Functional'!C307","v":"ENVIRONMENTAL RESERVE"},{"$f":"'FR-16(7)(v)-1 Functional'!D307","v":"NP29"},null,{"$f":"'FR-16(7)(v)-2 PROD Classified'!H307","v":0},0,0,0,0,0,0,0,0,0,0,0,0,0]
[20,null,{"$f":"'FR-16(7)(v)-1 Functional'!C308","v":"POST IN-SERVICE CARRYING COSTS"},{"$f":"'FR-16(7)(v)-1 Functional'!D308","v":"NP29"},null,{"$f":"'FR-16(7)(v)-2 PROD Classified'!H308","v":0},0,0,0,0,0,0,0,0,0,0,0,0,0]
[21,null,{"$f":"'FR-16(7)(v)-1 Functional'!C309","v":"ARO CUMULATIVE EFFECT"},{"$f":"'FR-16(7)(v)-1 Functional'!D309","v":"NP29"},null,{"$f":"'FR-16(7)(v)-2 PROD Classified'!H309","v":0},0,0,0,0,0,0,0,0,0,0,0,0,0]
[22,null,{"$f":"'FR-16(7)(v)-1 Functional'!C310","v":"LOSS ON REACQUIRED DEBT"},{"$f":"'FR-16(7)(v)-1 Functional'!D310","v":"D249"},null,{"$f":"'FR-16(7)(v)-2 PROD Classified'!H310","v":0},0,0,0,0,0,0,0,0,0,0,0,0,0]
[23,null,{"$f":"'FR-16(7)(v)-1 Functional'!C311","v":"VACATION PAY ACCRUAL"},{"$f":"'FR-16(7)(v)-1 Functional'!D311","v":"A315"},null,{"$f":"'FR-16(7)(v)-2 PROD Classified'!H311","v":0},0,0,0,0,0,0,0,0,0,0,0,0,0]
[24,null,{"$f":"'FR-16(7)(v)-1 Functional'!C312","v":"NON-AMI METERS RETIRED EARLY"},{"$f":"'FR-16(7)(v)-1 Functional'!D312","v":"OM39"},null,{"$f":"'FR-16(7)(v)-2 PROD Classified'!H312","v":922067},349095,248930,1392,3956,65,152233,105992,4970,51304,4029,101,{"$f":"SUM(G312:Q312)","v":922067},{"$f":"F312-R312","v":0}]
[25,null,{"$f":"'FR-16(7)(v)-1 Functional'!C313","v":"PENSION EXPENSE"},{"$f":"'FR-16(7)(v)-1 Functional'!D313","v":"A315"},null,{"$f":"'FR-16(7)(v)-2 PROD Classified'!H313","v":2368938},896879,639542,3577,10163,166,391112,272309,12769,131808,10352,261,{"$f":"SUM(G313:Q313)","v":2368938},{"$f":"F313-R313","v":0}]
[26,null,{"$f":"'FR-16(7)(v)-1 Functional'!C314","v":"UNCOLLECTIBLE ACCOUNTS"},{"$f":"'FR-16(7)(v)-1 Functional'!D314","v":"K411"},null,{"$f":"'FR-16(7)(v)-2 PROD Classified'!H314","v":0},0,0,0,0,0,0,0,0,0,0,0,0,0]
[27,null,{"$f":"'FR-16(7)(v)-1 Functional'!C315","v":"  TOTAL ACCOUNT 283"},null,null,{"$f":"SUM(F303:F314)","v":10935774},{"$f":"SUM(G303:G314)","v":4140328},{"$f":"SUM(H303:H314)","v":2952357},16513,46915,767,1805500,1257081,58945,608376,47789,1203,{"$f":"SUM(R303:R314)","v":10935774},{"$f":"SUM(S303:S314)","v":0}]
[28]
[29," OTHER ACCUMULATED DEFERRED INCOME TAXES"]
[30,null,{"$f":"'FR-16(7)(v)-1 Functional'!C318","v":"EXCESS ADIT"},{"$f":"'FR-16(7)(v)-1 Functional'!D318","v":"NP29"},null,{"$f":"'FR-16(7)(v)-2 PROD Classified'!H318","v":862285},{"$f":"F318-SUM(H318:Q318)","v":325460},{"$f":"ROUND(F318*VLOOKUP(D318,ALLOCTABLE_Prod_Energy,$H$10,FALSE),0)","v":232231},{"$f":"ROUND(F318*VLOOKUP(D318,ALLOCTABLE_Prod_Energy,$I$10,FALSE),0)","v":1302},{"$f":"ROUND(F318*VLOOKUP(D318,ALLOCTABLE_Prod_Energy,$J$10,FALSE),0)","v":3691},{"$f":"ROUND(F318*VLOOKUP(D318,ALLOCTABLE_Prod_Energy,$K$10,FALSE),0)","v":60},{"$f":"ROUND(F318*VLOOKUP(D318,ALLOCTABLE_Prod_Energy,$L$10,FALSE),0)","v":142286},{"$f":"ROUND(F318*VLOOKUP(D318,ALLOCTABLE_Prod_Energy,$M$10,FALSE),0)","v":98826},{"$f":"ROUND(F318*VLOOKUP(D318,ALLOCTABLE_Prod_Energy,$N$10,FALSE),0)","v":4630},{"$f":"ROUND(F318*VLOOKUP(D318,ALLOCTABLE_Prod_Energy,$O$10,FALSE),0)","v":49944},{"$f":"ROUND(F318*VLOOKUP(D318,ALLOCTABLE_Prod_Energy,$P$10,FALSE),0)","v":3760},{"$f":"ROUND(F318*VLOOKUP(D318,ALLOCTABLE_Prod_Energy,$Q$10,FALSE),0)","v":95},{"$f":"SUM(G318:Q318)","v":862285},{"$f":"F318-R318","v":0}]
[31,null,{"$f":"'FR-16(7)(v)-1 Functional'!C319","v":"CUSTOMER SERVICE DEPOSITS"},{"$f":"'FR-16(7)(v)-1 Functional'!D319","v":"NP29"},null,{"$f":"'FR-16(7)(v)-2 PROD Classified'!H319","v":0},{"$f":"F319-SUM(H319:Q319)","v":0},{"$f":"ROUND(F319*VLOOKUP(D319,ALLOCTABLE_Prod_Energy,$H$10,FALSE),0)","v":0},{"$f":"ROUND(F319*VLOOKUP(D319,ALLOCTABLE_Prod_Energy,$I$10,FALSE),0)","v":0},{"$f":"ROUND(F319*VLOOKUP(D319,ALLOCTABLE_Prod_Energy,$J$10,FALSE),0)","v":0},{"$f":"ROUND(F319*VLOOKUP(D319,ALLOCTABLE_Prod_Energy,$K$10,FALSE),0)","v":0},{"$f":"ROUND(F319*VLOOKUP(D319,ALLOCTABLE_Prod_Energy,$L$10,FALSE),0)","v":0},{"$f":"ROUND(F319*VLOOKUP(D319,ALLOCTABLE_Prod_Energy,$M$10,FALSE),0)","v":0},{"$f":"ROUND(F319*VLOOKUP(D319,ALLOCTABLE_Prod_Energy,$N$10,FALSE),0)","v":0},{"$f":"ROUND(F319*VLOOKUP(D319,ALLOCTABLE_Prod_Energy,$O$10,FALSE),0)","v":0},{"$f":"ROUND(F319*VLOOKUP(D319,ALLOCTABLE_Prod_Energy,$P$10,FALSE),0)","v":0},{"$f":"ROUND(F319*VLOOKUP(D319,ALLOCTABLE_Prod_Energy,$Q$10,FALSE),0)","v":0},{"$f":"SUM(G319:Q319)","v":0},{"$f":"F319-R319","v":0}]
[32,null,{"$f":"'FR-16(7)(v)-1 Functional'!C320","v":"POST RETIREMENT BENEFITS"},{"$f":"'FR-16(7)(v)-1 Functional'!D320","v":"NP29"},null,{"$f":"'FR-16(7)(v)-2 PROD Classified'!H320","v":0},{"$f":"F320-SUM(H320:Q320)","v":0},{"$f":"ROUND(F320*VLOOKUP(D320,ALLOCTABLE_Prod_Energy,$H$10,FALSE),0)","v":0},{"$f":"ROUND(F320*VLOOKUP(D320,ALLOCTABLE_Prod_Energy,$I$10,FALSE),0)","v":0},{"$f":"ROUND(F320*VLOOKUP(D320,ALLOCTABLE_Prod_Energy,$J$10,FALSE),0)","v":0},{"$f":"ROUND(F320*VLOOKUP(D320,ALLOCTABLE_Prod_Energy,$K$10,FALSE),0)","v":0},{"$f":"ROUND(F320*VLOOKUP(D320,ALLOCTABLE_Prod_Energy,$L$10,FALSE),0)","v":0},{"$f":"ROUND(F320*VLOOKUP(D320,ALLOCTABLE_Prod_Energy,$M$10,FALSE),0)","v":0},{"$f":"ROUND(F320*VLOOKUP(D320,ALLOCTABLE_Prod_Energy,$N$10,FALSE),0)","v":0},{"$f":"ROUND(F320*VLOOKUP(D320,ALLOCTABLE_Prod_Energy,$O$10,FALSE),0)","v":0},{"$f":"ROUND(F320*VLOOKUP(D320,ALLOCTABLE_Prod_Energy,$P$10,FALSE),0)","v":0},{"$f":"ROUND(F320*VLOOKUP(D320,ALLOCTABLE_Prod_Energy,$Q$10,FALSE),0)","v":0},{"$f":"SUM(G320:Q320)","v":0},{"$f":"F320-R320","v":0}]
[33,null,{"$f":"'FR-16(7)(v)-1 Functional'!C321","v":"INVESTMENT TAX CREDIT"},{"$f":"'FR-16(7)(v)-1 Functional'!D321","v":"NP29"},null,{"$f":"'FR-16(7)(v)-2 PROD Classified'!H321","v":0},{"$f":"F321-SUM(H321:Q321)","v":0},{"$f":"ROUND(F321*VLOOKUP(D321,ALLOCTABLE_Prod_Energy,$H$10,FALSE),0)","v":0},{"$f":"ROUND(F321*VLOOKUP(D321,ALLOCTABLE_Prod_Energy,$I$10,FALSE),0)","v":0},{"$f":"ROUND(F321*VLOOKUP(D321,ALLOCTABLE_Prod_Energy,$J$10,FALSE),0)","v":0},{"$f":"ROUND(F321*VLOOKUP(D321,ALLOCTABLE_Prod_Energy,$K$10,FALSE),0)","v":0},{"$f":"ROUND(F321*VLOOKUP(D321,ALLOCTABLE_Prod_Energy,$L$10,FALSE),0)","v":0},{"$f":"ROUND(F321*VLOOKUP(D321,ALLOCTABLE_Prod_Energy,$M$10,FALSE),0)","v":0},{"$f":"ROUND(F321*VLOOKUP(D321,ALLOCTABLE_Prod_Energy,$N$10,FALSE),0)","v":0},{"$f":"ROUND(F321*VLOOKUP(D321,ALLOCTABLE_Prod_Energy,$O$10,FALSE),0)","v":0},{"$f":"ROUND(F321*VLOOKUP(D321,ALLOCTABLE_Prod_Energy,$P$10,FALSE),0)","v":0},{"$f":"ROUND(F321*VLOOKUP(D321,ALLOCTABLE_Prod_Energy,$Q$10,FALSE),0)","v":0},{"$f":"SUM(G321:Q321)","v":0},{"$f":"F321-R321","v":0}]
[34,null,{"$f":"'FR-16(7)(v)-1 Functional'!C322","v":"  TOTAL OTHER SUBTRACTIVE ADJUSTMENTS"},null,null,{"$f":"SUM(F317:F321)","v":862285},{"$f":"SUM(G317:G321)","v":325460},{"$f":"SUM(H317:H321)","v":232231},1302,3691,60,142286,98826,4630,49944,3760,95,{"$f":"SUM(R317:R321)","v":862285},{"$f":"SUM(S317:S321)","v":0}]
[35]
[36,{"$f":"'FR-16(7)(v)-1 Functional'!B324","v":"TOTAL SUBTRACTIVE RATE BASE ADJUSTMENTS"},null,null,null,{"$f":"F322+F315+F301","v":14545332},{"$f":"G322+G315+G301","v":5502719},{"$f":"H322+H315+H301","v":3924483},{"$f":"I322+I315+I301","v":21964},{"$f":"J322+J315+J301","v":62365},1019,2401113,1670772,78328,817442,63527,{"$f":"Q322+Q315+Q301","v":1600},{"$f":"R322+R315+R301","v":14545332},{"$f":"S322+S315+S301","v":0}]
[]
[{"$f":"co_name","v":"DUKE ENERGY KENTUCKY, INC."},null,null,null,null,null,null,null,null,null,null,null,null,null,null,null,null,{"$f":"R1","v":"FR-16(7)(v)-4"}]
[{"$f":"$A$2","v":"PRODUCTION ENERGY ALLOCATED - ELECTRIC COST OF SERVICE"},null,null,null,null,null,null,null,null,null,null,null,null,null,null,null,null,{"$f":"R2","v":"WITNESS RESPONSIBLE:"}]
[{"$f":"case_name","v":"CASE NO: 2019-00271"},null,null,null,null,null,null,null,null,null,null,null,null,null,null,null,null,{"$f":"Witness","v":"JAMES E. ZIOLKOWSKI"}]
[{"$f":"data_filing","v":"DATA: 12 MONTHS ACTUAL  & 0 MONTHS ESTIMATED"},null,null,null,null,null,null,null,null,null,null,null,null,null,null,null,null,{"$f":"\"PAGE \"&Pages-12&\" OF \"&Pages","v":"PAGE 6 OF 18"}]
[{"$f":"type","v":"TYPE OF FILING: \"X\" ORIGINAL   UPDATED    REVISED  "}]
[]
[null,null,null,null,null,{"$f":"F$7","v":"TOTAL"},null,{"$f":"H$7","v":"DS"},{"$f":"I$7","v":"GSFL"},{"$f":"J$7","v":"EH"},{"$f":"K$7","v":"SP"},"DT SEC","DT PRI","DP","TT",null,"OTHER"]
["LINE",null,null,null,null,{"$f":"F$8","v":"PRODUCTION"},{"$f":"G$8","v":"RS"},{"$f":"H$8","v":"SECONDARY"},{"$f":"I$8","v":"SECONDARY"},{"$f":"J$8","v":"SECONDARY"},{"$f":"K$8","v":"SECONDARY"},"SECONDARY","PRIMARY","PRIMARY","TRANSMISSION","LT","WATER",{"$f":"R8","v":"TOTAL"},"ALL"]
["NO.","ADDITIVE RATE BASE ADJUSTMENTS",null,"ALLO",null,{"$f":"F$9","v":"ENERGY"},{"$f":"G$9","v":"RESIDENTIAL"},{"$f":"H$9","v":"DISTRIBUTION"},{"$f":"I$9","v":"DISTRIBUTION"},{"$f":"J$9","v":"DISTRIBUTION"},{"$f":"K$9","v":"DISTRIBUTION"},"DISTRIBUTION","DISTRIBUTION","DISTRIBUTION","TIME OF DAY","LIGHTING","PUMPING",{"$f":"R9","v":"AT ISSUE"},"OTHER"]
[null,null,"Schedule 5.1",null,null,null,{"$f":"G$10","v":3},{"$f":"H$10","v":4},{"$f":"I$10","v":5},{"$f":"J$10","v":6},{"$f":"K$10","v":7},8,9,10,11,12,13,null," "]
[1,"OTHER ACCUMULATED DEFERRED INCOME TAXES"]
[2," ACCUM DEF INC TAXES (190)"]
[3,null,{"$f":"'FR-16(7)(v)-1 Functional'!C338","v":"UNCOLLECTIBLE ACCTS"},{"$f":"'FR-16(7)(v)-1 Functional'!D338","v":"K411"},null,{"$f":"'FR-16(7)(v)-2 PROD Classified'!H338","v":0},{"$f":"F338-SUM(H338:Q338)","v":0},{"$f":"ROUND(F338*VLOOKUP(D338,ALLOCTABLE_Prod_Energy,$H$10,FALSE),0)","v":0},{"$f":"ROUND(F338*VLOOKUP(D338,ALLOCTABLE_Prod_Energy,$I$10,FALSE),0)","v":0},{"$f":"ROUND(F338*VLOOKUP(D338,ALLOCTABLE_Prod_Energy,$J$10,FALSE),0)","v":0},{"$f":"ROUND(F338*VLOOKUP(D338,ALLOCTABLE_Prod_Energy,$K$10,FALSE),0)","v":0},{"$f":"ROUND(F338*VLOOKUP(D338,ALLOCTABLE_Prod_Energy,$L$10,FALSE),0)","v":0},{"$f":"ROUND(F338*VLOOKUP(D338,ALLOCTABLE_Prod_Energy,$M$10,FALSE),0)","v":0},{"$f":"ROUND(F338*VLOOKUP(D338,ALLOCTABLE_Prod_Energy,$N$10,FALSE),0)","v":0},{"$f":"ROUND(F338*VLOOKUP(D338,ALLOCTABLE_Prod_Energy,$O$10,FALSE),0)","v":0},{"$f":"ROUND(F338*VLOOKUP(D338,ALLOCTABLE_Prod_Energy,$P$10,FALSE),0)","v":0},{"$f":"ROUND(F338*VLOOKUP(D338,ALLOCTABLE_Prod_Energy,$Q$10,FALSE),0)","v":0},{"$f":"SUM(G338:Q338)","v":0},{"$f":"F338-R338","v":0}]
[4,null,{"$f":"'FR-16(7)(v)-1 Functional'!C339","v":"CASH FLOW HEDGE"},{"$f":"'FR-16(7)(v)-1 Functional'!D339","v":"A315"},null,{"$f":"'FR-16(7)(v)-2 PROD Classified'!H339","v":95184},36037,25697,144,408,7,15715,10941,513,5296,416,10,95184,0]
[5,null,{"$f":"'FR-16(7)(v)-1 Functional'!C340","v":"RESERVED FOR FUTURE USE"},{"$f":"'FR-16(7)(v)-1 Functional'!D340","v":"NP29"},null,{"$f":"'FR-16(7)(v)-2 PROD Classified'!H340","v":0},0,0,0,0,0,0,0,0,0,0,0,0,0]
[6,null,{"$f":"'FR-16(7)(v)-1 Functional'!C341","v":"RESERVED FOR FUTURE USE"},{"$f":"'FR-16(7)(v)-1 Functional'!D341","v":"NP29"},null,{"$f":"'FR-16(7)(v)-2 PROD Classified'!H341","v":0},0,0,0,0,0,0,0,0,0,0,0,0,0]
[7,null,{"$f":"'FR-16(7)(v)-1 Functional'!C342","v":"ELECTRIC METERS"},{"$f":"'FR-16(7)(v)-1 Functional'!D342","v":"K407"},null,{"$f":"'FR-16(7)(v)-2 PROD Classified'!H342","v":0},0,0,0,0,0,0,0,0,0,0,0,0,0]
[8,null,{"$f":"'FR-16(7)(v)-1 Functional'!C343","v":"UNAMORTIZED DEBT PREMIUM"},{"$f":"'FR-16(7)(v)-1 Functional'!D343","v":"D249"},null,{"$f":"'FR-16(7)(v)-2 PROD Classified'!H343","v":0},0,0,0,0,0,0,0,0,0,0,0,0,0]
[9,null,{"$f":"'FR-16(7)(v)-1 Functional'!C344","v":"ARO CUMULATIVE EFFECT"},{"$f":"'FR-16(7)(v)-1 Functional'!D344","v":"NP29"},null,{"$f":"'FR-16(7)(v)-2 PROD Classified'!H344","v":0},0,0,0,0,0,0,0,0,0,0,0,0,0]
[10,null,{"$f":"'FR-16(7)(v)-1 Functional'!C345","v":"RETIREMENT PLAN"},{"$f":"'FR-16(7)(v)-1 Functional'!D345","v":"A315"},null,{"$f":"'FR-16(7)(v)-2 PROD Classified'!H345","v":977721},370166,263955,1476,4194,68,161422,112389,5270,54400,4273,108,977721,0]
[11,null,{"$f":"'FR-16(7)(v)-1 Functional'!C346","v":"POST RETIREMENT BENEFITS "},{"$f":"'FR-16(7)(v)-1 Functional'!D346","v":"A315"},null,{"$f":"'FR-16(7)(v)-2 PROD Classified'!H346","v":0},0,0,0,0,0,0,0,0,0,0,0,0,0]
[12,null,{"$f":"'FR-16(7)(v)-1 Functional'!C347","v":"POST RETIREMENT BENEFITS - HEALTH CARE"},{"$f":"'FR-16(7)(v)-1 Functional'!D347","v":"A315"},null,{"$f":"'FR-16(7)(v)-2 PROD Classified'!H347","v":0},0,0,0,0,0,0,0,0,0,0,0,0,0]
[13,null,{"$f":"'FR-16(7)(v)-1 Functional'!C348","v":"POST EMPLOYMENT BENEFITS - SFAS 112"},{"$f":"'FR-16(7)(v)-1 Functional'!D348","v":"A315"},null,{"$f":"'FR-16(7)(v)-2 PROD Classified'!H348","v":0},0,0,0,0,0,0,0,0,0,0,0,0,0]
[14,null,{"$f":"'FR-16(7)(v)-1 Functional'!C349","v":"SUPPLEMENTAL PENSION PLAN"},{"$f":"'FR-16(7)(v)-1 Functional'!D349","v":"A315"},null,{"$f":"'FR-16(7)(v)-2 PROD Classified'!H349","v":0},0,0,0,0,0,0,0,0,0,0,0,0,0]
[15,null,{"$f":"'FR-16(7)(v)-1 Functional'!C350","v":"INCENTIVE PLAN"},{"$f":"'FR-16(7)(v)-1 Functional'!D350","v":"A315"},null,{"$f":"'FR-16(7)(v)-2 PROD Classified'!H350","v":0},0,0,0,0,0,0,0,0,0,0,0,0,0]
[16,null,{"$f":"'FR-16(7)(v)-1 Functional'!C351","v":"FEDERAL DEFERRED TAX RECEIVEABLE"},{"$f":"'FR-16(7)(v)-1 Functional'!D351","v":"A315"},null,{"$f":"'FR-16(7)(v)-2 PROD Classified'!H351","v":0},0,0,0,0,0,0,0,0,0,0,0,0,0]
[17,null,{"$f":"'FR-16(7)(v)-1 Functional'!C352","v":"MISCELLANEOUS"},{"$f":"'FR-16(7)(v)-1 Functional'!D352","v":"A315"},null,{"$f":"'FR-16(7)(v)-2 PROD Classified'!H352","v":3138195},1188119,847219,4739,13463,220,518116,360736,16915,174609,13714,345,3138195,0]
[18,null,{"$f":"'FR-16(7)(v)-1 Functional'!C353","v":"DEFERRED TAX"},{"$f":"'FR-16(7)(v)-1 Functional'!D353","v":"A315"},null,{"$f":"'FR-16(7)(v)-2 PROD Classified'!H353","v":1430051},541419,386071,2159,6135,100,236101,164384,7708,79568,6249,157,1430051,0]
[19,null,{"$f":"'FR-16(7)(v)-1 Functional'!C354","v":"NET OPERATING LOSS"},{"$f":"'FR-16(7)(v)-1 Functional'!D354","v":"NP29"},null,{"$f":"'FR-16(7)(v)-2 PROD Classified'!H354","v":0},0,0,0,0,0,0,0,0,0,0,0,0,0]
[20,null,{"$f":"'FR-16(7)(v)-1 Functional'!C355","v":"401K INCENTIVE PLAN"},{"$f":"'FR-16(7)(v)-1 Functional'!D355","v":"A315"},null,{"$f":"'FR-16(7)(v)-2 PROD Classified'!H355","v":0},0,0,0,0,0,0,0,0,0,0,0,0,0]
[21,null,{"$f":"'FR-16(7)(v)-1 Functional'!C356","v":"ENVIRONMENTAL RESERVE"},{"$f":"'FR-16(7)(v)-1 Functional'!D356","v":"NP29"},null,{"$f":"'FR-16(7)(v)-2 PROD Classified'!H356","v":0},0,0,0,0,0,0,0,0,0,0,0,0,0]
[22,null,{"$f":"'FR-16(7)(v)-1 Functional'!C357","v":"VACATION PAY ACCRUALS"},{"$f":"'FR-16(7)(v)-1 Functional'!D357","v":"A315"},null,{"$f":"'FR-16(7)(v)-2 PROD Classified'!H357","v":155018},58691,41850,234,665,11,25593,17819,836,8625,677,17,155018,0]
[23,null,{"$f":"'FR-16(7)(v)-1 Functional'!C358","v":"DEMAND SIDE MANAGEMENT DEFERRAL"},{"$f":"'FR-16(7)(v)-1 Functional'!D358","v":"NP29"},null,{"$f":"'FR-16(7)(v)-2 PROD Classified'!H358","v":8586},3241,2312,13,37,1,1417,984,46,497,37,1,8586,0]
[24,null,{"$f":"'FR-16(7)(v)-1 Functional'!C359","v":"OPERATING LEASE OBLIGATION"},{"$f":"'FR-16(7)(v)-1 Functional'!D359","v":"NP29"},null,{"$f":"'FR-16(7)(v)-2 PROD Classified'!H359","v":31771},11991,8557,48,136,2,5243,3641,171,1840,139,3,31771,0]
[25,null,{"$f":"'FR-16(7)(v)-1 Functional'!C360","v":"INJURIES & DAMAGES"},{"$f":"'FR-16(7)(v)-1 Functional'!D360","v":"NP29"},null,{"$f":"'FR-16(7)(v)-2 PROD Classified'!H360","v":0},0,0,0,0,0,0,0,0,0,0,0,0,0]
[26,null,{"$f":"'FR-16(7)(v)-1 Functional'!C361","v":"  TOTAL ACCOUNT 190"},null,null,{"$f":"SUM(F337:F360)","v":5836526},{"$f":"SUM(G337:G360)","v":2209664},{"$f":"SUM(H337:H360)","v":1575661},8813,25038,409,963607,670894,31459,324835,25505,641,{"$f":"SUM(R337:R360)","v":5836526},{"$f":"SUM(S337:S360)","v":0}]
[27]
[28," OTHER"]
[29,null,{"$f":"'FR-16(7)(v)-1 Functional'!C364","v":"RESERVED FOR FUTURE USE"},{"$f":"'FR-16(7)(v)-1 Functional'!D364","v":"NP29"},null,{"$f":"'FR-16(7)(v)-2 PROD Classified'!H364","v":0},{"$f":"F364-SUM(H364:Q364)","v":0},{"$f":"ROUND(F364*VLOOKUP(D364,ALLOCTABLE_Prod_Energy,$H$10,FALSE),0)","v":0},{"$f":"ROUND(F364*VLOOKUP(D364,ALLOCTABLE_Prod_Energy,$I$10,FALSE),0)","v":0},{"$f":"ROUND(F364*VLOOKUP(D364,ALLOCTABLE_Prod_Energy,$J$10,FALSE),0)","v":0},{"$f":"ROUND(F364*VLOOKUP(D364,ALLOCTABLE_Prod_Energy,$K$10,FALSE),0)","v":0},{"$f":"ROUND(F364*VLOOKUP(D364,ALLOCTABLE_Prod_Energy,$L$10,FALSE),0)","v":0},{"$f":"ROUND(F364*VLOOKUP(D364,ALLOCTABLE_Prod_Energy,$M$10,FALSE),0)","v":0},{"$f":"ROUND(F364*VLOOKUP(D364,ALLOCTABLE_Prod_Energy,$N$10,FALSE),0)","v":0},{"$f":"ROUND(F364*VLOOKUP(D364,ALLOCTABLE_Prod_Energy,$O$10,FALSE),0)","v":0},{"$f":"ROUND(F364*VLOOKUP(D364,ALLOCTABLE_Prod_Energy,$P$10,FALSE),0)","v":0},{"$f":"ROUND(F364*VLOOKUP(D364,ALLOCTABLE_Prod_Energy,$Q$10,FALSE),0)","v":0},{"$f":"SUM(G364:Q364)","v":0},{"$f":"F364-R364","v":0}]
[30,null,{"$f":"'FR-16(7)(v)-1 Functional'!C365","v":"RATE CASE EXPENSE REGULATORY ASSET"},{"$f":"'FR-16(7)(v)-1 Functional'!D365","v":"NP29"},null,{"$f":"'FR-16(7)(v)-2 PROD Classified'!H365","v":12871},{"$f":"F365-SUM(H365:Q365)","v":4860},{"$f":"ROUND(F365*VLOOKUP(D365,ALLOCTABLE_Prod_Energy,$H$10,FALSE),0)","v":3466},{"$f":"ROUND(F365*VLOOKUP(D365,ALLOCTABLE_Prod_Energy,$I$10,FALSE),0)","v":19},{"$f":"ROUND(F365*VLOOKUP(D365,ALLOCTABLE_Prod_Energy,$J$10,FALSE),0)","v":55},{"$f":"ROUND(F365*VLOOKUP(D365,ALLOCTABLE_Prod_Energy,$K$10,FALSE),0)","v":1},{"$f":"ROUND(F365*VLOOKUP(D365,ALLOCTABLE_Prod_Energy,$L$10,FALSE),0)","v":2124},{"$f":"ROUND(F365*VLOOKUP(D365,ALLOCTABLE_Prod_Energy,$M$10,FALSE),0)","v":1475},{"$f":"ROUND(F365*VLOOKUP(D365,ALLOCTABLE_Prod_Energy,$N$10,FALSE),0)","v":69},{"$f":"ROUND(F365*VLOOKUP(D365,ALLOCTABLE_Prod_Energy,$O$10,FALSE),0)","v":745},{"$f":"ROUND(F365*VLOOKUP(D365,ALLOCTABLE_Prod_Energy,$P$10,FALSE),0)","v":56},{"$f":"ROUND(F365*VLOOKUP(D365,ALLOCTABLE_Prod_Energy,$Q$10,FALSE),0)","v":1},{"$f":"SUM(G365:Q365)","v":12871},{"$f":"F365-R365","v":0}]
[31,null,{"$f":"'FR-16(7)(v)-1 Functional'!C366","v":"RESERVED FOR FUTURE USE"},{"$f":"'FR-16(7)(v)-1 Functional'!D366","v":"NP29"},null,0,{"$f":"F366-SUM(H366:Q366)","v":0},{"$f":"ROUND(F366*VLOOKUP(D366,ALLOCTABLE_Prod_Energy,$H$10,FALSE),0)","v":0},{"$f":"ROUND(F366*VLOOKUP(D366,ALLOCTABLE_Prod_Energy,$I$10,FALSE),0)","v":0},{"$f":"ROUND(F366*VLOOKUP(D366,ALLOCTABLE_Prod_Energy,$J$10,FALSE),0)","v":0},{"$f":"ROUND(F366*VLOOKUP(D366,ALLOCTABLE_Prod_Energy,$K$10,FALSE),0)","v":0},{"$f":"ROUND(F366*VLOOKUP(D366,ALLOCTABLE_Prod_Energy,$L$10,FALSE),0)","v":0},{"$f":"ROUND(F366*VLOOKUP(D366,ALLOCTABLE_Prod_Energy,$M$10,FALSE),0)","v":0},{"$f":"ROUND(F366*VLOOKUP(D366,ALLOCTABLE_Prod_Energy,$N$10,FALSE),0)","v":0},{"$f":"ROUND(F366*VLOOKUP(D366,ALLOCTABLE_Prod_Energy,$O$10,FALSE),0)","v":0},{"$f":"ROUND(F366*VLOOKUP(D366,ALLOCTABLE_Prod_Energy,$P$10,FALSE),0)","v":0},{"$f":"ROUND(F366*VLOOKUP(D366,ALLOCTABLE_Prod_Energy,$Q$10,FALSE),0)","v":0},{"$f":"SUM(G366:Q366)","v":0},{"$f":"F366-R366","v":0}]
[32,null,{"$f":"'FR-16(7)(v)-1 Functional'!C367","v":"  OTHER"},null,null,{"$f":"SUM(F364:F366)","v":12871},{"$f":"SUM(G363:G366)","v":4860},3466,19,55,1,2124,1475,69,745,56,1,12871,0]
[33,null,null,null,null," "]
[34,"CONSTRUCTION WORK IN PROGRESS"]
[35,null,"PRODUCTION",{"$f":"'FR-16(7)(v)-1 Functional'!D370","v":"P129"},null,{"$f":"'FR-16(7)(v)-2 PROD Classified'!H370","v":0},{"$f":"F370-SUM(H370:Q370)","v":0},{"$f":"ROUND(F370*VLOOKUP(D370,ALLOCTABLE_Prod_Energy,$H$10,FALSE),0)","v":0},{"$f":"ROUND(F370*VLOOKUP(D370,ALLOCTABLE_Prod_Energy,$I$10,FALSE),0)","v":0},{"$f":"ROUND(F370*VLOOKUP(D370,ALLOCTABLE_Prod_Energy,$J$10,FALSE),0)","v":0},{"$f":"ROUND(F370*VLOOKUP(D370,ALLOCTABLE_Prod_Energy,$K$10,FALSE),0)","v":0},{"$f":"ROUND(F370*VLOOKUP(D370,ALLOCTABLE_Prod_Energy,$L$10,FALSE),0)","v":0},{"$f":"ROUND(F370*VLOOKUP(D370,ALLOCTABLE_Prod_Energy,$M$10,FALSE),0)","v":0},{"$f":"ROUND(F370*VLOOKUP(D370,ALLOCTABLE_Prod_Energy,$N$10,FALSE),0)","v":0},{"$f":"ROUND(F370*VLOOKUP(D370,ALLOCTABLE_Prod_Energy,$O$10,FALSE),0)","v":0},{"$f":"ROUND(F370*VLOOKUP(D370,ALLOCTABLE_Prod_Energy,$P$10,FALSE),0)","v":0},{"$f":"ROUND(F370*VLOOKUP(D370,ALLOCTABLE_Prod_Energy,$Q$10,FALSE),0)","v":0},{"$f":"SUM(G370:Q370)","v":0},{"$f":"F370-R370","v":0}]
[36,null,"TRANSMISSION",{"$f":"'FR-16(7)(v)-1 Functional'!D371","v":"T129"},null,{"$f":"'FR-16(7)(v)-2 PROD Classified'!H371","v":0},{"$f":"F371-SUM(H371:Q371)","v":0},{"$f":"ROUND(F371*VLOOKUP(D371,ALLOCTABLE_Prod_Energy,$H$10,FALSE),0)","v":0},{"$f":"ROUND(F371*VLOOKUP(D371,ALLOCTABLE_Prod_Energy,$I$10,FALSE),0)","v":0},{"$f":"ROUND(F371*VLOOKUP(D371,ALLOCTABLE_Prod_Energy,$J$10,FALSE),0)","v":0},{"$f":"ROUND(F371*VLOOKUP(D371,ALLOCTABLE_Prod_Energy,$K$10,FALSE),0)","v":0},{"$f":"ROUND(F371*VLOOKUP(D371,ALLOCTABLE_Prod_Energy,$L$10,FALSE),0)","v":0},{"$f":"ROUND(F371*VLOOKUP(D371,ALLOCTABLE_Prod_Energy,$M$10,FALSE),0)","v":0},{"$f":"ROUND(F371*VLOOKUP(D371,ALLOCTABLE_Prod_Energy,$N$10,FALSE),0)","v":0},{"$f":"ROUND(F371*VLOOKUP(D371,ALLOCTABLE_Prod_Energy,$O$10,FALSE),0)","v":0},{"$f":"ROUND(F371*VLOOKUP(D371,ALLOCTABLE_Prod_Energy,$P$10,FALSE),0)","v":0},{"$f":"ROUND(F371*VLOOKUP(D371,ALLOCTABLE_Prod_Energy,$Q$10,FALSE),0)","v":0},{"$f":"SUM(G371:Q371)","v":0},0]
[37,null,"DISTRIBUTION",{"$f":"'FR-16(7)(v)-1 Functional'!D372","v":"D149"},null,{"$f":"'FR-16(7)(v)-2 PROD Classified'!H372","v":0},{"$f":"F372-SUM(H372:Q372)","v":0},{"$f":"ROUND(F372*VLOOKUP(D372,ALLOCTABLE_Prod_Energy,$H$10,FALSE),0)","v":0},{"$f":"ROUND(F372*VLOOKUP(D372,ALLOCTABLE_Prod_Energy,$I$10,FALSE),0)","v":0},{"$f":"ROUND(F372*VLOOKUP(D372,ALLOCTABLE_Prod_Energy,$J$10,FALSE),0)","v":0},{"$f":"ROUND(F372*VLOOKUP(D372,ALLOCTABLE_Prod_Energy,$K$10,FALSE),0)","v":0},{"$f":"ROUND(F372*VLOOKUP(D372,ALLOCTABLE_Prod_Energy,$L$10,FALSE),0)","v":0},{"$f":"ROUND(F372*VLOOKUP(D372,ALLOCTABLE_Prod_Energy,$M$10,FALSE),0)","v":0},{"$f":"ROUND(F372*VLOOKUP(D372,ALLOCTABLE_Prod_Energy,$N$10,FALSE),0)","v":0},{"$f":"ROUND(F372*VLOOKUP(D372,ALLOCTABLE_Prod_Energy,$O$10,FALSE),0)","v":0},{"$f":"ROUND(F372*VLOOKUP(D372,ALLOCTABLE_Prod_Energy,$P$10,FALSE),0)","v":0},{"$f":"ROUND(F372*VLOOKUP(D372,ALLOCTABLE_Prod_Energy,$Q$10,FALSE),0)","v":0},{"$f":"SUM(G372:Q372)","v":0},0]
[38,null,"COMMON",{"$f":"'FR-16(7)(v)-1 Functional'!D373","v":"C129"},null,{"$f":"'FR-16(7)(v)-2 PROD Classified'!H373","v":0},{"$f":"F373-SUM(H373:Q373)","v":0},{"$f":"ROUND(F373*VLOOKUP(D373,ALLOCTABLE_Prod_Energy,$H$10,FALSE),0)","v":0},{"$f":"ROUND(F373*VLOOKUP(D373,ALLOCTABLE_Prod_Energy,$I$10,FALSE),0)","v":0},{"$f":"ROUND(F373*VLOOKUP(D373,ALLOCTABLE_Prod_Energy,$J$10,FALSE),0)","v":0},{"$f":"ROUND(F373*VLOOKUP(D373,ALLOCTABLE_Prod_Energy,$K$10,FALSE),0)","v":0},{"$f":"ROUND(F373*VLOOKUP(D373,ALLOCTABLE_Prod_Energy,$L$10,FALSE),0)","v":0},{"$f":"ROUND(F373*VLOOKUP(D373,ALLOCTABLE_Prod_Energy,$M$10,FALSE),0)","v":0},{"$f":"ROUND(F373*VLOOKUP(D373,ALLOCTABLE_Prod_Energy,$N$10,FALSE),0)","v":0},{"$f":"ROUND(F373*VLOOKUP(D373,ALLOCTABLE_Prod_Energy,$O$10,FALSE),0)","v":0},{"$f":"ROUND(F373*VLOOKUP(D373,ALLOCTABLE_Prod_Energy,$P$10,FALSE),0)","v":0},{"$f":"ROUND(F373*VLOOKUP(D373,ALLOCTABLE_Prod_Energy,$Q$10,FALSE),0)","v":0},{"$f":"SUM(G373:Q373)","v":0},0]
[39,null,"GENERAL",{"$f":"'FR-16(7)(v)-1 Functional'!D374","v":"G129"},null,{"$f":"'FR-16(7)(v)-2 PROD Classified'!H374","v":0},{"$f":"F374-SUM(H374:Q374)","v":0},{"$f":"ROUND(F374*VLOOKUP(D374,ALLOCTABLE_Prod_Energy,$H$10,FALSE),0)","v":0},{"$f":"ROUND(F374*VLOOKUP(D374,ALLOCTABLE_Prod_Energy,$I$10,FALSE),0)","v":0},{"$f":"ROUND(F374*VLOOKUP(D374,ALLOCTABLE_Prod_Energy,$J$10,FALSE),0)","v":0},{"$f":"ROUND(F374*VLOOKUP(D374,ALLOCTABLE_Prod_Energy,$K$10,FALSE),0)","v":0},{"$f":"ROUND(F374*VLOOKUP(D374,ALLOCTABLE_Prod_Energy,$L$10,FALSE),0)","v":0},{"$f":"ROUND(F374*VLOOKUP(D374,ALLOCTABLE_Prod_Energy,$M$10,FALSE),0)","v":0},{"$f":"ROUND(F374*VLOOKUP(D374,ALLOCTABLE_Prod_Energy,$N$10,FALSE),0)","v":0},{"$f":"ROUND(F374*VLOOKUP(D374,ALLOCTABLE_Prod_Energy,$O$10,FALSE),0)","v":0},{"$f":"ROUND(F374*VLOOKUP(D374,ALLOCTABLE_Prod_Energy,$P$10,FALSE),0)","v":0},{"$f":"ROUND(F374*VLOOKUP(D374,ALLOCTABLE_Prod_Energy,$Q$10,FALSE),0)","v":0},{"$f":"SUM(G374:Q374)","v":0},0]
[40,null,"TOTAL CONSTRUCTION WORK IN PROGRESS",null,null,{"$f":"SUM(F370:F374)","v":0},{"$f":"SUM(G370:G374)","v":0},0,0,0,0,0,0,0,0,0,0,0,0]
[41]
[42,{"$f":"'FR-16(7)(v)-1 Functional'!B377","v":"TOTAL ADDITIVE RATE BASE ADJUSTMENTS"},null,null,null,{"$f":"F361+F367+F375","v":5849397},{"$f":"G361+G367+G375","v":2214524},{"$f":"H361+H367+H375","v":1579127},{"$f":"I361+I367+I375","v":8832},{"$f":"J361+J367+J375","v":25093},410,965731,672369,31528,325580,25561,{"$f":"Q361+Q367+Q375","v":642},{"$f":"R361+R367+R375","v":5849397},{"$f":"S361+S367+S375","v":0}]
[]
[{"$f":"co_name","v":"DUKE ENERGY KENTUCKY, INC."},null,null,null,null,null,null,null,null,null,null,null,null,null,null,null,null,{"$f":"R1","v":"FR-16(7)(v)-4"}]
[{"$f":"$A$2","v":"PRODUCTION ENERGY ALLOCATED - ELECTRIC COST OF SERVICE"},null,null,null,null,null,null,null,null,null,null,null,null,null,null,null,null,{"$f":"R2","v":"WITNESS RESPONSIBLE:"}]
[{"$f":"case_name","v":"CASE NO: 2019-00271"},null,null,null,null,null,null,null,null,null,null,null,null,null,null,null,null,{"$f":"Witness","v":"JAMES E. ZIOLKOWSKI"}]
[{"$f":"data_filing","v":"DATA: 12 MONTHS ACTUAL  & 0 MONTHS ESTIMATED"},null,null,null,null,null,null,null,null,null,null,null,null,null,null,null,null,{"$f":"\"PAGE \"&Pages-11&\" OF \"&Pages","v":"PAGE 7 OF 18"}]
[{"$f":"type","v":"TYPE OF FILING: \"X\" ORIGINAL   UPDATED    REVISED  "}]
[]
[null,null,null,null,null,{"$f":"F$7","v":"TOTAL"},null,{"$f":"H$7","v":"DS"},{"$f":"I$7","v":"GSFL"},{"$f":"J$7","v":"EH"},{"$f":"K$7","v":"SP"},"DT SEC","DT PRI","DP","TT",null,"OTHER"]
["LINE",null,null,null,null,{"$f":"F$8","v":"PRODUCTION"},{"$f":"G$8","v":"RS"},{"$f":"H$8","v":"SECONDARY"},{"$f":"I$8","v":"SECONDARY"},{"$f":"J$8","v":"SECONDARY"},{"$f":"K$8","v":"SECONDARY"},"SECONDARY","PRIMARY","PRIMARY","TRANSMISSION","LT","WATER",{"$f":"R8","v":"TOTAL"},"ALL"]
["NO.","WORKING CAPITAL",null,"ALLO",null,{"$f":"F$9","v":"ENERGY"},{"$f":"G$9","v":"RESIDENTIAL"},{"$f":"H$9","v":"DISTRIBUTION"},{"$f":"I$9","v":"DISTRIBUTION"},{"$f":"J$9","v":"DISTRIBUTION"},{"$f":"K$9","v":"DISTRIBUTION"},"DISTRIBUTION","DISTRIBUTION","DISTRIBUTION","TIME OF DAY","LIGHTING","PUMPING",{"$f":"R9","v":"AT ISSUE"},"OTHER"]
[null,null,"Schedule 5.2",null,null,null,{"$f":"G$10","v":3},{"$f":"H$10","v":4},{"$f":"I$10","v":5},{"$f":"J$10","v":6},{"$f":"K$10","v":7},8,9,10,11,12,13,null," "]
[]
[1,"NET ORIGINAL COST RATE BASE",null,null,null,{"$f":"F277-F324+F377","v":6961683},{"$f":"G277-G324+G377","v":2621793},{"$f":"H277-H324+H377","v":1871477},{"$f":"I277-I324+I377","v":10511},{"$f":"J277-J324+J377","v":29743},487,1148271,796076,37278,414982,30301,{"$f":"Q277-Q324+Q377","v":764},{"$f":"R277-R324+R377","v":6961683},{"$f":"S277-S324+S377","v":0}]
[2]
[3,"WORKING CAPITAL"]
[4]
[5,"PLANT MATERIALS & SUPPLIES"]
[6,null,"OTHER MATERIALS & SUPPLIES",{"$f":"'FR-16(7)(v)-1 Functional'!D395","v":"PD29"},null,{"$f":"'FR-16(7)(v)-2 PROD Classified'!H395","v":5276013},{"$f":"F395-SUM(H395:Q395)","v":1991485},{"$f":"ROUND(F395*VLOOKUP(D395,ALLOCTABLE_Prod_Energy,$H$10,FALSE),0)","v":1420936},{"$f":"ROUND(F395*VLOOKUP(D395,ALLOCTABLE_Prod_Energy,$I$10,FALSE),0)","v":7967},{"$f":"ROUND(F395*VLOOKUP(D395,ALLOCTABLE_Prod_Energy,$J$10,FALSE),0)","v":22581},{"$f":"ROUND(F395*VLOOKUP(D395,ALLOCTABLE_Prod_Energy,$K$10,FALSE),0)","v":369},{"$f":"ROUND(F395*VLOOKUP(D395,ALLOCTABLE_Prod_Energy,$L$10,FALSE),0)","v":870595},{"$f":"ROUND(F395*VLOOKUP(D395,ALLOCTABLE_Prod_Energy,$M$10,FALSE),0)","v":604684},{"$f":"ROUND(F395*VLOOKUP(D395,ALLOCTABLE_Prod_Energy,$N$10,FALSE),0)","v":28332},{"$f":"ROUND(F395*VLOOKUP(D395,ALLOCTABLE_Prod_Energy,$O$10,FALSE),0)","v":305481},{"$f":"ROUND(F395*VLOOKUP(D395,ALLOCTABLE_Prod_Energy,$P$10,FALSE),0)","v":23003},{"$f":"ROUND(F395*VLOOKUP(D395,ALLOCTABLE_Prod_Energy,$Q$10,FALSE),0)","v":580},{"$f":"SUM(G395:Q395)","v":5276013},{"$f":"F395-R395","v":0}]
[7,null,{"$f":"'FR-16(7)(v)-1 Functional'!C396","v":"FUEL"},{"$f":"'FR-16(7)(v)-1 Functional'!D396","v":"K301"},null,{"$f":"'FR-16(7)(v)-2 PROD Classified'!H396","v":19518014},{"$f":"F396-SUM(H396:Q396)","v":7367269},{"$f":"ROUND(F396*VLOOKUP(D396,ALLOCTABLE_Prod_Energy,$H$10,FALSE),0)","v":5256592},{"$f":"ROUND(F396*VLOOKUP(D396,ALLOCTABLE_Prod_Energy,$I$10,FALSE),0)","v":29472},{"$f":"ROUND(F396*VLOOKUP(D396,ALLOCTABLE_Prod_Energy,$J$10,FALSE),0)","v":83537},{"$f":"ROUND(F396*VLOOKUP(D396,ALLOCTABLE_Prod_Energy,$K$10,FALSE),0)","v":1366},{"$f":"ROUND(F396*VLOOKUP(D396,ALLOCTABLE_Prod_Energy,$L$10,FALSE),0)","v":3220667},{"$f":"ROUND(F396*VLOOKUP(D396,ALLOCTABLE_Prod_Energy,$M$10,FALSE),0)","v":2236960},{"$f":"ROUND(F396*VLOOKUP(D396,ALLOCTABLE_Prod_Energy,$N$10,FALSE),0)","v":104812},{"$f":"ROUND(F396*VLOOKUP(D396,ALLOCTABLE_Prod_Energy,$O$10,FALSE),0)","v":1130093},{"$f":"ROUND(F396*VLOOKUP(D396,ALLOCTABLE_Prod_Energy,$P$10,FALSE),0)","v":85099},{"$f":"ROUND(F396*VLOOKUP(D396,ALLOCTABLE_Prod_Energy,$Q$10,FALSE),0)","v":2147},{"$f":"SUM(G396:Q396)","v":19518014},{"$f":"F396-R396","v":0}]
[8,null,{"$f":"'FR-16(7)(v)-1 Functional'!C397","v":"EMISSION ALLOWANCES"},{"$f":"'FR-16(7)(v)-1 Functional'!D397","v":"K301"},null,{"$f":"'FR-16(7)(v)-2 PROD Classified'!H397","v":0},{"$f":"F397-SUM(H397:Q397)","v":0},{"$f":"ROUND(F397*VLOOKUP(D397,ALLOCTABLE_Prod_Energy,$H$10,FALSE),0)","v":0},{"$f":"ROUND(F397*VLOOKUP(D397,ALLOCTABLE_Prod_Energy,$I$10,FALSE),0)","v":0},{"$f":"ROUND(F397*VLOOKUP(D397,ALLOCTABLE_Prod_Energy,$J$10,FALSE),0)","v":0},{"$f":"ROUND(F397*VLOOKUP(D397,ALLOCTABLE_Prod_Energy,$K$10,FALSE),0)","v":0},{"$f":"ROUND(F397*VLOOKUP(D397,ALLOCTABLE_Prod_Energy,$L$10,FALSE),0)","v":0},{"$f":"ROUND(F397*VLOOKUP(D397,ALLOCTABLE_Prod_Energy,$M$10,FALSE),0)","v":0},{"$f":"ROUND(F397*VLOOKUP(D397,ALLOCTABLE_Prod_Energy,$N$10,FALSE),0)","v":0},{"$f":"ROUND(F397*VLOOKUP(D397,ALLOCTABLE_Prod_Energy,$O$10,FALSE),0)","v":0},{"$f":"ROUND(F397*VLOOKUP(D397,ALLOCTABLE_Prod_Energy,$P$10,FALSE),0)","v":0},{"$f":"ROUND(F397*VLOOKUP(D397,ALLOCTABLE_Prod_Energy,$Q$10,FALSE),0)","v":0},{"$f":"SUM(G397:Q397)","v":0},{"$f":"F397-R397","v":0}]
[9,null,{"$f":"'FR-16(7)(v)-1 Functional'!C398","v":"  TOTAL PLANT MATS. & SUPPLIES"},null,null,{"$f":"SUM(F394:F397)","v":24794027},{"$f":"SUM(G394:G397)","v":9358754},{"$f":"SUM(H394:H397)","v":6677528},37439,106118,1735,4091262,2841644,133144,1435574,108102,2727,{"$f":"SUM(R394:R397)","v":24794027},{"$f":"SUM(S394:S397)","v":0}]
[10,"TOTAL MATERIALS & SUPPLIES",null,null,null,{"$f":"F398","v":24794027},9358754,6677528,37439,{"$f":"J398","v":106118},1735,4091262,2841644,133144,1435574,108102,2727,24794027,0]
[11]
[12,"PREPAYMENTS"]
[13,null,{"$f":"'FR-16(7)(v)-1 Functional'!C402","v":"INSURANCE GENERAL"},{"$f":"'FR-16(7)(v)-1 Functional'!D402","v":"NP29"},null,{"$f":"'FR-16(7)(v)-2 PROD Classified'!H402","v":3801},{"$f":"F402-SUM(H402:Q402)","v":1435},{"$f":"ROUND(F402*VLOOKUP(D402,ALLOCTABLE_Prod_Energy,$H$10,FALSE),0)","v":1024},{"$f":"ROUND(F402*VLOOKUP(D402,ALLOCTABLE_Prod_Energy,$I$10,FALSE),0)","v":6},{"$f":"ROUND(F402*VLOOKUP(D402,ALLOCTABLE_Prod_Energy,$J$10,FALSE),0)","v":16},{"$f":"ROUND(F402*VLOOKUP(D402,ALLOCTABLE_Prod_Energy,$K$10,FALSE),0)","v":0},{"$f":"ROUND(F402*VLOOKUP(D402,ALLOCTABLE_Prod_Energy,$L$10,FALSE),0)","v":627},{"$f":"ROUND(F402*VLOOKUP(D402,ALLOCTABLE_Prod_Energy,$M$10,FALSE),0)","v":436},{"$f":"ROUND(F402*VLOOKUP(D402,ALLOCTABLE_Prod_Energy,$N$10,FALSE),0)","v":20},{"$f":"ROUND(F402*VLOOKUP(D402,ALLOCTABLE_Prod_Energy,$O$10,FALSE),0)","v":220},{"$f":"ROUND(F402*VLOOKUP(D402,ALLOCTABLE_Prod_Energy,$P$10,FALSE),0)","v":17},{"$f":"ROUND(F402*VLOOKUP(D402,ALLOCTABLE_Prod_Energy,$Q$10,FALSE),0)","v":0},{"$f":"SUM(G402:Q402)","v":3801},{"$f":"F402-R402","v":0}]
[14,null,{"$f":"'FR-16(7)(v)-1 Functional'!C403","v":"EXCISE TAX"},{"$f":"'FR-16(7)(v)-1 Functional'!D403","v":"NP29"},null,{"$f":"'FR-16(7)(v)-2 PROD Classified'!H403","v":0},{"$f":"F403-SUM(H403:Q403)","v":0},{"$f":"ROUND(F403*VLOOKUP(D403,ALLOCTABLE_Prod_Energy,$H$10,FALSE),0)","v":0},{"$f":"ROUND(F403*VLOOKUP(D403,ALLOCTABLE_Prod_Energy,$I$10,FALSE),0)","v":0},{"$f":"ROUND(F403*VLOOKUP(D403,ALLOCTABLE_Prod_Energy,$J$10,FALSE),0)","v":0},{"$f":"ROUND(F403*VLOOKUP(D403,ALLOCTABLE_Prod_Energy,$K$10,FALSE),0)","v":0},{"$f":"ROUND(F403*VLOOKUP(D403,ALLOCTABLE_Prod_Energy,$L$10,FALSE),0)","v":0},{"$f":"ROUND(F403*VLOOKUP(D403,ALLOCTABLE_Prod_Energy,$M$10,FALSE),0)","v":0},{"$f":"ROUND(F403*VLOOKUP(D403,ALLOCTABLE_Prod_Energy,$N$10,FALSE),0)","v":0},{"$f":"ROUND(F403*VLOOKUP(D403,ALLOCTABLE_Prod_Energy,$O$10,FALSE),0)","v":0},{"$f":"ROUND(F403*VLOOKUP(D403,ALLOCTABLE_Prod_Energy,$P$10,FALSE),0)","v":0},{"$f":"ROUND(F403*VLOOKUP(D403,ALLOCTABLE_Prod_Energy,$Q$10,FALSE),0)","v":0},{"$f":"SUM(G403:Q403)","v":0},{"$f":"F403-R403","v":0}]
[15,null,{"$f":"'FR-16(7)(v)-1 Functional'!C404","v":"COLLATERAL ASSET"},{"$f":"'FR-16(7)(v)-1 Functional'!D404","v":"K301"},null,{"$f":"'FR-16(7)(v)-2 PROD Classified'!H404","v":-44086},{"$f":"F404-SUM(H404:Q404)","v":-16639},{"$f":"ROUND(F404*VLOOKUP(D404,ALLOCTABLE_Prod_Energy,$H$10,FALSE),0)","v":-11873},{"$f":"ROUND(F404*VLOOKUP(D404,ALLOCTABLE_Prod_Energy,$I$10,FALSE),0)","v":-67},{"$f":"ROUND(F404*VLOOKUP(D404,ALLOCTABLE_Prod_Energy,$J$10,FALSE),0)","v":-189},{"$f":"ROUND(F404*VLOOKUP(D404,ALLOCTABLE_Prod_Energy,$K$10,FALSE),0)","v":-3},{"$f":"ROUND(F404*VLOOKUP(D404,ALLOCTABLE_Prod_Energy,$L$10,FALSE),0)","v":-7275},{"$f":"ROUND(F404*VLOOKUP(D404,ALLOCTABLE_Prod_Energy,$M$10,FALSE),0)","v":-5053},{"$f":"ROUND(F404*VLOOKUP(D404,ALLOCTABLE_Prod_Energy,$N$10,FALSE),0)","v":-237},{"$f":"ROUND(F404*VLOOKUP(D404,ALLOCTABLE_Prod_Energy,$O$10,FALSE),0)","v":-2553},{"$f":"ROUND(F404*VLOOKUP(D404,ALLOCTABLE_Prod_Energy,$P$10,FALSE),0)","v":-192},{"$f":"ROUND(F404*VLOOKUP(D404,ALLOCTABLE_Prod_Energy,$Q$10,FALSE),0)","v":-5},{"$f":"SUM(G404:Q404)","v":-44086},{"$f":"F404-R404","v":0}]
[16,null,{"$f":"'FR-16(7)(v)-1 Functional'!C405","v":"  TOTAL PREPAYMENTS"},null,null,{"$f":"SUM(F401:F404)","v":-40285},{"$f":"SUM(G401:G404)","v":-15204},{"$f":"SUM(H401:H404)","v":-10849},-61,{"$f":"SUM(J401:J404)","v":-173},{"$f":"SUM(K401:K404)","v":-3},{"$f":"SUM(L401:L404)","v":-6648},{"$f":"SUM(M401:M404)","v":-4617},{"$f":"SUM(N401:N404)","v":-217},-2333,-175,-5,{"$f":"SUM(R401:R404)","v":-40285},{"$f":"SUM(S401:S404)","v":0}]
[17]
[18,"AUTO CALC (O&M-ELECTRIC FUEL COST)/8",null,null,null,{"$f":"IF(WorkingCap=\"No\",0,ROUND((F549-F447-F448)/8,0))","v":0},{"$f":"F407-SUM(H407:Q407)","v":0},{"$f":"IF(WorkingCap=\"No\",0,ROUND((H549-H447-H448)/8,0))","v":0},0,0,0,0,0,0,0,0,0,{"$f":"SUM(G407:Q407)","v":0},{"$f":"F407-R407","v":0}]
[19,"  TOTAL WORKING CASH",null,null,null,{"$f":"F407","v":0},0,0,0,{"$f":"J407","v":0},0,0,0,0,0,0,0,0,0]
[20]
[21,"MISCELLANEOUS WORKING CAPITAL"]
[22,null,{"$f":"'FR-16(7)(v)-1 Functional'!C411","v":"RESERVED FOR FUTURE USE"},{"$f":"'FR-16(7)(v)-1 Functional'!D411","v":"K301"},null,{"$f":"'FR-16(7)(v)-2 PROD Classified'!H411","v":0},{"$f":"F411-SUM(H411:Q411)","v":0},{"$f":"ROUND(F411*VLOOKUP(D411,ALLOCTABLE_Prod_Energy,$H$10,FALSE),0)","v":0},{"$f":"ROUND(F411*VLOOKUP(D411,ALLOCTABLE_Prod_Energy,$I$10,FALSE),0)","v":0},{"$f":"ROUND(F411*VLOOKUP(D411,ALLOCTABLE_Prod_Energy,$J$10,FALSE),0)","v":0},{"$f":"ROUND(F411*VLOOKUP(D411,ALLOCTABLE_Prod_Energy,$K$10,FALSE),0)","v":0},{"$f":"ROUND(F411*VLOOKUP(D411,ALLOCTABLE_Prod_Energy,$L$10,FALSE),0)","v":0},{"$f":"ROUND(F411*VLOOKUP(D411,ALLOCTABLE_Prod_Energy,$M$10,FALSE),0)","v":0},{"$f":"ROUND(F411*VLOOKUP(D411,ALLOCTABLE_Prod_Energy,$N$10,FALSE),0)","v":0},{"$f":"ROUND(F411*VLOOKUP(D411,ALLOCTABLE_Prod_Energy,$O$10,FALSE),0)","v":0},{"$f":"ROUND(F411*VLOOKUP(D411,ALLOCTABLE_Prod_Energy,$P$10,FALSE),0)","v":0},{"$f":"ROUND(F411*VLOOKUP(D411,ALLOCTABLE_Prod_Energy,$Q$10,FALSE),0)","v":0},{"$f":"SUM(G411:Q411)","v":0},{"$f":"F411-R411","v":0}]
[23,null,{"$f":"'FR-16(7)(v)-1 Functional'!C412","v":"PIPP UNCOLLECTIBLES"},{"$f":"'FR-16(7)(v)-1 Functional'!D412","v":"A315"},null,{"$f":"'FR-16(7)(v)-2 PROD Classified'!H412","v":0},{"$f":"F412-SUM(H412:Q412)","v":0},{"$f":"ROUND(F412*VLOOKUP(D412,ALLOCTABLE_Prod_Energy,$H$10,FALSE),0)","v":0},{"$f":"ROUND(F412*VLOOKUP(D412,ALLOCTABLE_Prod_Energy,$I$10,FALSE),0)","v":0},{"$f":"ROUND(F412*VLOOKUP(D412,ALLOCTABLE_Prod_Energy,$J$10,FALSE),0)","v":0},{"$f":"ROUND(F412*VLOOKUP(D412,ALLOCTABLE_Prod_Energy,$K$10,FALSE),0)","v":0},{"$f":"ROUND(F412*VLOOKUP(D412,ALLOCTABLE_Prod_Energy,$L$10,FALSE),0)","v":0},{"$f":"ROUND(F412*VLOOKUP(D412,ALLOCTABLE_Prod_Energy,$M$10,FALSE),0)","v":0},{"$f":"ROUND(F412*VLOOKUP(D412,ALLOCTABLE_Prod_Energy,$N$10,FALSE),0)","v":0},{"$f":"ROUND(F412*VLOOKUP(D412,ALLOCTABLE_Prod_Energy,$O$10,FALSE),0)","v":0},{"$f":"ROUND(F412*VLOOKUP(D412,ALLOCTABLE_Prod_Energy,$P$10,FALSE),0)","v":0},{"$f":"ROUND(F412*VLOOKUP(D412,ALLOCTABLE_Prod_Energy,$Q$10,FALSE),0)","v":0},{"$f":"SUM(G412:Q412)","v":0},{"$f":"F412-R412","v":0}]
[24,null,{"$f":"'FR-16(7)(v)-1 Functional'!C413","v":"RESERVED FOR FUTURE USE"},{"$f":"'FR-16(7)(v)-1 Functional'!D413","v":"D249"},null,{"$f":"'FR-16(7)(v)-2 PROD Classified'!H413","v":0},{"$f":"F413-SUM(H413:Q413)","v":0},{"$f":"ROUND(F413*VLOOKUP(D413,ALLOCTABLE_Prod_Energy,$H$10,FALSE),0)","v":0},{"$f":"ROUND(F413*VLOOKUP(D413,ALLOCTABLE_Prod_Energy,$I$10,FALSE),0)","v":0},{"$f":"ROUND(F413*VLOOKUP(D413,ALLOCTABLE_Prod_Energy,$J$10,FALSE),0)","v":0},{"$f":"ROUND(F413*VLOOKUP(D413,ALLOCTABLE_Prod_Energy,$K$10,FALSE),0)","v":0},{"$f":"ROUND(F413*VLOOKUP(D413,ALLOCTABLE_Prod_Energy,$L$10,FALSE),0)","v":0},{"$f":"ROUND(F413*VLOOKUP(D413,ALLOCTABLE_Prod_Energy,$M$10,FALSE),0)","v":0},{"$f":"ROUND(F413*VLOOKUP(D413,ALLOCTABLE_Prod_Energy,$N$10,FALSE),0)","v":0},{"$f":"ROUND(F413*VLOOKUP(D413,ALLOCTABLE_Prod_Energy,$O$10,FALSE),0)","v":0},{"$f":"ROUND(F413*VLOOKUP(D413,ALLOCTABLE_Prod_Energy,$P$10,FALSE),0)","v":0},{"$f":"ROUND(F413*VLOOKUP(D413,ALLOCTABLE_Prod_Energy,$Q$10,FALSE),0)","v":0},{"$f":"SUM(G413:Q413)","v":0},{"$f":"F413-R413","v":0}]
[25,null,{"$f":"'FR-16(7)(v)-1 Functional'!C414","v":"  TOTAL MISC WORK CAPITAL"},null,null,{"$f":"SUM(F410:F413)","v":0},{"$f":"SUM(G410:G413)","v":0},{"$f":"SUM(H410:H413)","v":0},{"$f":"SUM(I410:I413)","v":0},{"$f":"SUM(J410:J413)","v":0},0,0,0,0,0,0,{"$f":"SUM(Q410:Q413)","v":0},{"$f":"SUM(R410:R413)","v":0},{"$f":"SUM(S410:S413)","v":0}]
[26]
[27,"TOTAL WORKING CAPITAL",null,null,null,{"$f":"F399+F405+F408+F414","v":24753742},{"$f":"G399+G405+G408+G414","v":9343550},{"$f":"H399+H405+H408+H414","v":6666679},{"$f":"I399+I405+I408+I414","v":37378},{"$f":"J399+J405+J408+J414","v":105945},1732,4084614,2837027,132927,1433241,107927,{"$f":"Q399+Q405+Q408+Q414","v":2722},{"$f":"R399+R405+R408+R414","v":24753742},{"$f":"S399+S405+S408+S414","v":0}]
[28,"PRELIMINARY SUMMARY"]
[29,null,{"$f":"'FR-16(7)(v)-1 Functional'!C418","v":"TOTAL ACCUMULATED DEFERRED INCOME TAXES"},null,null,{"$f":"-F324","v":-14545332},{"$f":"-G324","v":-5502719},{"$f":"-H324","v":-3924483},{"$f":"-I324","v":-21964},{"$f":"-J324","v":-62365},-1019,-2401113,-1670772,-78328,-817442,-63527,{"$f":"-Q324","v":-1600},{"$f":"-R324","v":-14545332},{"$f":"-S324","v":0}]
[30,null,{"$f":"'FR-16(7)(v)-1 Functional'!C419","v":"TOTAL OTHER ACCUMULATED DEFERRED INCOME TAXES"},null,null,{"$f":"F377","v":5849397},{"$f":"G377","v":2214524},{"$f":"H377","v":1579127},{"$f":"I377","v":8832},{"$f":"J377","v":25093},410,965731,672369,31528,325580,25561,{"$f":"Q377","v":642},{"$f":"R377","v":5849397},{"$f":"S377","v":0}]
[31,null,{"$f":"'FR-16(7)(v)-1 Functional'!C420","v":"TOTAL WORKING CAPITAL"},null,null,{"$f":"F416","v":24753742},{"$f":"G416","v":9343550},{"$f":"H416","v":6666679},{"$f":"I416","v":37378},{"$f":"J416","v":105945},1732,4084614,2837027,132927,1433241,107927,{"$f":"Q416","v":2722},{"$f":"R416","v":24753742},{"$f":"S416","v":0}]
[32,null,{"$f":"'FR-16(7)(v)-1 Functional'!C421","v":"  TOTAL RATE BASE ADJUSTMENTS"},null,null,{"$f":"SUM(F417:F420)","v":16057807},{"$f":"SUM(G417:G420)","v":6055355},4321323,24246,68673,1123,2649232,1838624,86127,941379,{"$f":"SUM(P417:P420)","v":69961},1764,16057807,0]
[33]
[34,"RATE BASE CALCULATION"]
[35,null,{"$f":"'FR-16(7)(v)-1 Functional'!C424","v":"NET ELECTRIC PLANT IN SERVICE"},null,null,{"$f":"F277","v":15657618},{"$f":"G277","v":5909988},{"$f":"H277","v":4216833},{"$f":"I277","v":23643},{"$f":"J277","v":67015},1096,2583653,1794479,84078,906844,68267,{"$f":"Q277","v":1722},{"$f":"R277","v":15657618},{"$f":"S277","v":0}]
[36,null,{"$f":"'FR-16(7)(v)-1 Functional'!C425","v":"TOTAL RATE BASE ADJUSTMENTS"},null,null,{"$f":"F421","v":16057807},{"$f":"G421","v":6055355},{"$f":"H421","v":4321323},{"$f":"I421","v":24246},{"$f":"J421","v":68673},1123,2649232,1838624,86127,941379,69961,{"$f":"Q421","v":1764},{"$f":"R421","v":16057807},{"$f":"S421","v":0}]
[37,null,{"$f":"'FR-16(7)(v)-1 Functional'!C426","v":"  TOTAL RATE BASE"},null,null,{"$f":"SUM(F423:F425)","v":31715425},{"$f":"SUM(G423:G425)","v":11965343},{"$f":"SUM(H423:H425)","v":8538156},{"$f":"SUM(I423:I425)","v":47889},{"$f":"SUM(J423:J425)","v":135688},2219,5232885,3633103,170205,1848223,138228,{"$f":"SUM(Q423:Q425)","v":3486},{"$f":"SUM(R423:R425)","v":31715425},{"$f":"SUM(S423:S425)","v":0}]
[38]
[39,"TOTAL RATE OF RETURN ALLOWABLE",null,null,null,{"$f":"$F$811","v":6.7100000000000007E-2},{"$f":"$F$811","v":6.7100000000000007E-2},6.7100000000000007E-2,6.7100000000000007E-2,6.7100000000000007E-2,6.7100000000000007E-2,6.7100000000000007E-2,6.7100000000000007E-2,6.7100000000000007E-2,6.7100000000000007E-2,6.7100000000000007E-2,6.7100000000000007E-2,{"$f":"F811","v":6.7100000000000007E-2}]
[40,"RETURN ON RATE BASE",null,null,null,{"$f":"ROUND(F428*F426,0)","v":2128105},{"$f":"F429-SUM(H429:Q429)","v":802874},{"$f":"ROUND(H426*H428,0)","v":572910},{"$f":"ROUND(I426*I428,0)","v":3213},{"$f":"ROUND(J426*J428,0)","v":9105},149,351127,243781,11421,124016,9275,{"$f":"ROUND(Q426*Q428,0)","v":234},{"$f":"SUM(G429:Q429)","v":2128105},{"$f":"F429-R429","v":0}]
[41]
[42,{"$f":"'FR-16(7)(v)-1 Functional'!B431","v":"ELECTRIC RATE BASE"},null,{"$f":"'FR-16(7)(v)-1 Functional'!D431","v":"RB99"},null,{"$f":"'FR-16(7)(v)-2 PROD Classified'!H431","v":31717383},{"$f":"F431-SUM(H431:Q431)","v":11966018},{"$f":"ROUND(F431*VLOOKUP(D431,ALLOCTABLE_Prod_Energy,$H$10,FALSE),0)","v":8538637},{"$f":"ROUND(F431*VLOOKUP(D431,ALLOCTABLE_Prod_Energy,$I$10,FALSE),0)","v":47893},{"$f":"ROUND(F431*VLOOKUP(D431,ALLOCTABLE_Prod_Energy,$J$10,FALSE),0)","v":135750},{"$f":"ROUND(F431*VLOOKUP(D431,ALLOCTABLE_Prod_Energy,$K$10,FALSE),0)","v":2220},{"$f":"ROUND(F431*VLOOKUP(D431,ALLOCTABLE_Prod_Energy,$L$10,FALSE),0)","v":5233051},{"$f":"ROUND(F431*VLOOKUP(D431,ALLOCTABLE_Prod_Energy,$M$10,FALSE),0)","v":3633226},{"$f":"ROUND(F431*VLOOKUP(D431,ALLOCTABLE_Prod_Energy,$N$10,FALSE),0)","v":170322},{"$f":"ROUND(F431*VLOOKUP(D431,ALLOCTABLE_Prod_Energy,$O$10,FALSE),0)","v":1848489},{"$f":"ROUND(F431*VLOOKUP(D431,ALLOCTABLE_Prod_Energy,$P$10,FALSE),0)","v":138288},{"$f":"ROUND(F431*VLOOKUP(D431,ALLOCTABLE_Prod_Energy,$Q$10,FALSE),0)","v":3489},{"$f":"SUM(G431:Q431)","v":31717383},{"$f":"F431-R431","v":0}]
[43,{"$f":"'FR-16(7)(v)-1 Functional'!B432","v":"TOTAL RATE OF RETURN ALLOWABLE"},null,null,null,{"$f":"RofR","v":6.7110000000000003E-2},6.7110000000000003E-2,6.7110000000000003E-2,6.7110000000000003E-2,6.7110000000000003E-2,6.7110000000000003E-2,6.7110000000000003E-2,6.7110000000000003E-2,6.7110000000000003E-2,6.7110000000000003E-2,6.7110000000000003E-2,6.7110000000000003E-2,6.7110000000000003E-2]
[44,{"$f":"'FR-16(7)(v)-1 Functional'!B433","v":"RETURN ON RATE BASE"},null,null,null,{"$f":"ROUND(F431*F432,0)","v":2128554},{"$f":"F433-SUM(H433:Q433)","v":803040},{"$f":"ROUND(H431*H432,0)","v":573028},3214,9110,149,351190,243826,11430,124052,9281,234,2128554,{"$f":"F429-R429","v":0}]
[]
[{"$f":"co_name","v":"DUKE ENERGY KENTUCKY, INC."},null,null,null,null,null,null,null,null,null,null,null,null,null,null,null,null,{"$f":"R1","v":"FR-16(7)(v)-4"}]
[{"$f":"$A$2","v":"PRODUCTION ENERGY ALLOCATED - ELECTRIC COST OF SERVICE"},null,null,null,null,null,null,null,null,null,null,null,null,null,null,null,null,{"$f":"R2","v":"WITNESS RESPONSIBLE:"}]
[{"$f":"case_name","v":"CASE NO: 2019-00271"},null,null,null,null,null,null,null,null,null,null,null,null,null,null,null,null,{"$f":"Witness","v":"JAMES E. ZIOLKOWSKI"}]
[{"$f":"data_filing","v":"DATA: 12 MONTHS ACTUAL  & 0 MONTHS ESTIMATED"},null,null,null,null,null,null,null,null,null,null,null,null,null,null,null,null,{"$f":"\"PAGE \"&Pages-10&\" OF \"&Pages","v":"PAGE 8 OF 18"}]
[{"$f":"type","v":"TYPE OF FILING: \"X\" ORIGINAL   UPDATED    REVISED  "}]
[]
[null,null,null,null,null,{"$f":"F$7","v":"TOTAL"},null,{"$f":"H$7","v":"DS"},{"$f":"I$7","v":"GSFL"},{"$f":"J$7","v":"EH"},{"$f":"K$7","v":"SP"},"DT SEC","DT PRI","DP","TT",null,"OTHER"]
["LINE",null,null,null,null,{"$f":"F$8","v":"PRODUCTION"},{"$f":"G$8","v":"RS"},{"$f":"H$8","v":"SECONDARY"},{"$f":"I$8","v":"SECONDARY"},{"$f":"J$8","v":"SECONDARY"},{"$f":"K$8","v":"SECONDARY"},"SECONDARY","PRIMARY","PRIMARY","TRANSMISSION","LT","WATER",{"$f":"R8","v":"TOTAL"},"ALL"]
["NO.","O&M EXPENSES",null,"ALLO",null,{"$f":"F$9","v":"ENERGY"},{"$f":"G$9","v":"RESIDENTIAL"},{"$f":"H$9","v":"DISTRIBUTION"},{"$f":"I$9","v":"DISTRIBUTION"},{"$f":"J$9","v":"DISTRIBUTION"},{"$f":"K$9","v":"DISTRIBUTION"},"DISTRIBUTION","DISTRIBUTION","DISTRIBUTION","TIME OF DAY","LIGHTING","PUMPING",{"$f":"R9","v":"AT ISSUE"},"OTHER"]
[null,null,"Schedule 6",null,null,null,{"$f":"G$10","v":3},{"$f":"H$10","v":4},{"$f":"I$10","v":5},{"$f":"J$10","v":6},{"$f":"K$10","v":7},8,9,10,11,12,13,null," "]
[1,"PRODUCTION O&M"]
[2,{"$f":"'FR-16(7)(v)-1 Functional'!B446","v":"ENERGY RELATED PRODUCTION O&M"}]
[3,null,{"$f":"'FR-16(7)(v)-1 Functional'!C447","v":"FUEL"},{"$f":"'FR-16(7)(v)-1 Functional'!D447","v":"K302"},null,{"$f":"'FR-16(7)(v)-2 PROD Classified'!H447","v":0},{"$f":"F447-SUM(H447:Q447)","v":0},{"$f":"ROUND(F447*VLOOKUP(D447,ALLOCTABLE_Prod_Energy,$H$10,FALSE),0)","v":0},{"$f":"ROUND(F447*VLOOKUP(D447,ALLOCTABLE_Prod_Energy,$I$10,FALSE),0)","v":0},{"$f":"ROUND(F447*VLOOKUP(D447,ALLOCTABLE_Prod_Energy,$J$10,FALSE),0)","v":0},{"$f":"ROUND(F447*VLOOKUP(D447,ALLOCTABLE_Prod_Energy,$K$10,FALSE),0)","v":0},{"$f":"ROUND(F447*VLOOKUP(D447,ALLOCTABLE_Prod_Energy,$L$10,FALSE),0)","v":0},{"$f":"ROUND(F447*VLOOKUP(D447,ALLOCTABLE_Prod_Energy,$M$10,FALSE),0)","v":0},{"$f":"ROUND(F447*VLOOKUP(D447,ALLOCTABLE_Prod_Energy,$N$10,FALSE),0)","v":0},{"$f":"ROUND(F447*VLOOKUP(D447,ALLOCTABLE_Prod_Energy,$O$10,FALSE),0)","v":0},{"$f":"ROUND(F447*VLOOKUP(D447,ALLOCTABLE_Prod_Energy,$P$10,FALSE),0)","v":0},{"$f":"ROUND(F447*VLOOKUP(D447,ALLOCTABLE_Prod_Energy,$Q$10,FALSE),0)","v":0},{"$f":"SUM(G447:Q447)","v":0},{"$f":"F447-R447","v":0}]
[4,null,{"$f":"'FR-16(7)(v)-1 Functional'!C448","v":"FUEL AND PURCHASED POWER ADJUSTMENT"},{"$f":"'FR-16(7)(v)-1 Functional'!D448","v":"K302"},null,{"$f":"'FR-16(7)(v)-2 PROD Classified'!H448","v":100379685},38048920,27126606,151573,430629,7027,16576701,11552698,542050,5492776,439663,11042,100379685,0]
[5,null,{"$f":"'FR-16(7)(v)-1 Functional'!C449","v":"EMISSION ALLOWANCES"},{"$f":"'FR-16(7)(v)-1 Functional'!D449","v":"K301"},null,{"$f":"'FR-16(7)(v)-2 PROD Classified'!H449","v":0},0,0,0,0,0,0,0,0,0,0,0,0,0]
[6,null,{"$f":"'FR-16(7)(v)-1 Functional'!C450","v":"ELIMINATE EMISSION ALLOW & OTHER VAR COST"},{"$f":"'FR-16(7)(v)-1 Functional'!D450","v":"K301"},null,{"$f":"'FR-16(7)(v)-2 PROD Classified'!H450","v":0},0,0,0,0,0,0,0,0,0,0,0,0,0]
[7,null,{"$f":"'FR-16(7)(v)-1 Functional'!C451","v":"OTHER PRODUCTION EXPENSE - MAINTENANCE"},{"$f":"'FR-16(7)(v)-1 Functional'!D451","v":"K301"},null,{"$f":"'FR-16(7)(v)-2 PROD Classified'!H451","v":40683654},15356451,10956922,61432,174126,2848,6713210,4662754,218471,2355584,177381,4475,40683654,0]
[8,null,{"$f":"'FR-16(7)(v)-1 Functional'!C452","v":"MISO TRANSMISSION CHARGES - ACCT 555"},{"$f":"'FR-16(7)(v)-1 Functional'!D452","v":"K301"},null,{"$f":"'FR-16(7)(v)-2 PROD Classified'!H452","v":0},0,0,0,0,0,0,0,0,0,0,0,0,0]
[9,null,"  TOTAL ENERGY RELATED",null,null,{"$f":"SUM(F447:F452)","v":141063339},{"$f":"SUM(G447:G452)","v":53405371},{"$f":"SUM(H447:H452)","v":38083528},213005,604755,9875,23289911,16215452,760521,7848360,617044,15517,{"$f":"SUM(R447:R452)","v":141063339},{"$f":"SUM(S447:S452)","v":0}]
[10]
[11,"DEMAND RELATED & OTHER PROD O&M"]
[12,null,{"$f":"'FR-16(7)(v)-1 Functional'!C456","v":"OTHER PRODUCTION EXPENSES - OPERATIONS"},{"$f":"'FR-16(7)(v)-1 Functional'!D456","v":"K201"},null,{"$f":"'FR-16(7)(v)-2 PROD Classified'!H456","v":0},{"$f":"F456-SUM(H456:Q456)","v":0},{"$f":"ROUND(F456*VLOOKUP(D456,ALLOCTABLE_Prod_Energy,$H$10,FALSE),0)","v":0},{"$f":"ROUND(F456*VLOOKUP(D456,ALLOCTABLE_Prod_Energy,$I$10,FALSE),0)","v":0},{"$f":"ROUND(F456*VLOOKUP(D456,ALLOCTABLE_Prod_Energy,$J$10,FALSE),0)","v":0},{"$f":"ROUND(F456*VLOOKUP(D456,ALLOCTABLE_Prod_Energy,$K$10,FALSE),0)","v":0},{"$f":"ROUND(F456*VLOOKUP(D456,ALLOCTABLE_Prod_Energy,$L$10,FALSE),0)","v":0},{"$f":"ROUND(F456*VLOOKUP(D456,ALLOCTABLE_Prod_Energy,$M$10,FALSE),0)","v":0},{"$f":"ROUND(F456*VLOOKUP(D456,ALLOCTABLE_Prod_Energy,$N$10,FALSE),0)","v":0},{"$f":"ROUND(F456*VLOOKUP(D456,ALLOCTABLE_Prod_Energy,$O$10,FALSE),0)","v":0},{"$f":"ROUND(F456*VLOOKUP(D456,ALLOCTABLE_Prod_Energy,$P$10,FALSE),0)","v":0},{"$f":"ROUND(F456*VLOOKUP(D456,ALLOCTABLE_Prod_Energy,$Q$10,FALSE),0)","v":0},{"$f":"SUM(G456:Q456)","v":0},{"$f":"F456-R456","v":0}]
[13,null,"  TOTAL DEMAND REL & OTH PROD O&M ",null,null,{"$f":"SUM(F455:F456)","v":0},{"$f":"SUM(G455:G456)","v":0},{"$f":"SUM(H455:H456)","v":0},0,0,0,0,0,0,0,0,0,{"$f":"SUM(R455:R456)","v":0},{"$f":"SUM(S455:S456)","v":0}]
[14]
[15,"TOTAL PRODUCTION O&M",null,null," ",{"$f":"F457+F453","v":141063339},{"$f":"G457+G453","v":53405371},38083528,213005,{"$f":"J457+J453","v":604755},9875,23289911,16215452,760521,7848360,617044,15517,141063339,0]
[16]
[17,"TRANSMISSION O & M"]
[18,null,{"$f":"'FR-16(7)(v)-1 Functional'!C462","v":"TRANSFORMER LEASE PAYMENTS"},{"$f":"'FR-16(7)(v)-1 Functional'!D462","v":"K202"},null,{"$f":"'FR-16(7)(v)-2 PROD Classified'!H462","v":0},{"$f":"F462-SUM(H462:Q462)","v":0},{"$f":"ROUND(F462*VLOOKUP(D462,ALLOCTABLE_Prod_Energy,$H$10,FALSE),0)","v":0},{"$f":"ROUND(F462*VLOOKUP(D462,ALLOCTABLE_Prod_Energy,$I$10,FALSE),0)","v":0},{"$f":"ROUND(F462*VLOOKUP(D462,ALLOCTABLE_Prod_Energy,$J$10,FALSE),0)","v":0},{"$f":"ROUND(F462*VLOOKUP(D462,ALLOCTABLE_Prod_Energy,$K$10,FALSE),0)","v":0},{"$f":"ROUND(F462*VLOOKUP(D462,ALLOCTABLE_Prod_Energy,$L$10,FALSE),0)","v":0},{"$f":"ROUND(F462*VLOOKUP(D462,ALLOCTABLE_Prod_Energy,$M$10,FALSE),0)","v":0},{"$f":"ROUND(F462*VLOOKUP(D462,ALLOCTABLE_Prod_Energy,$N$10,FALSE),0)","v":0},{"$f":"ROUND(F462*VLOOKUP(D462,ALLOCTABLE_Prod_Energy,$O$10,FALSE),0)","v":0},{"$f":"ROUND(F462*VLOOKUP(D462,ALLOCTABLE_Prod_Energy,$P$10,FALSE),0)","v":0},{"$f":"ROUND(F462*VLOOKUP(D462,ALLOCTABLE_Prod_Energy,$Q$10,FALSE),0)","v":0},{"$f":"SUM(G462:Q462)","v":0},{"$f":"F462-R462","v":0}]
[19,null,{"$f":"'FR-16(7)(v)-1 Functional'!C463","v":"OTHER TRANSMISSION"},{"$f":"'FR-16(7)(v)-1 Functional'!D463","v":"K202"},null,{"$f":"'FR-16(7)(v)-2 PROD Classified'!H463","v":0},{"$f":"F463-SUM(H463:Q463)","v":0},{"$f":"ROUND(F463*VLOOKUP(D463,ALLOCTABLE_Prod_Energy,$H$10,FALSE),0)","v":0},{"$f":"ROUND(F463*VLOOKUP(D463,ALLOCTABLE_Prod_Energy,$I$10,FALSE),0)","v":0},{"$f":"ROUND(F463*VLOOKUP(D463,ALLOCTABLE_Prod_Energy,$J$10,FALSE),0)","v":0},{"$f":"ROUND(F463*VLOOKUP(D463,ALLOCTABLE_Prod_Energy,$K$10,FALSE),0)","v":0},{"$f":"ROUND(F463*VLOOKUP(D463,ALLOCTABLE_Prod_Energy,$L$10,FALSE),0)","v":0},{"$f":"ROUND(F463*VLOOKUP(D463,ALLOCTABLE_Prod_Energy,$M$10,FALSE),0)","v":0},{"$f":"ROUND(F463*VLOOKUP(D463,ALLOCTABLE_Prod_Energy,$N$10,FALSE),0)","v":0},{"$f":"ROUND(F463*VLOOKUP(D463,ALLOCTABLE_Prod_Energy,$O$10,FALSE),0)","v":0},{"$f":"ROUND(F463*VLOOKUP(D463,ALLOCTABLE_Prod_Energy,$P$10,FALSE),0)","v":0},{"$f":"ROUND(F463*VLOOKUP(D463,ALLOCTABLE_Prod_Energy,$Q$10,FALSE),0)","v":0},{"$f":"SUM(G463:Q463)","v":0},{"$f":"F463-R463","v":0}]
[20,null,{"$f":"'FR-16(7)(v)-1 Functional'!C464","v":"MISCELLANEOUS ADJUSTMENTS"},{"$f":"'FR-16(7)(v)-1 Functional'!D464","v":"K202"},null,{"$f":"'FR-16(7)(v)-2 PROD Classified'!H464","v":0},{"$f":"F464-SUM(H464:Q464)","v":0},{"$f":"ROUND(F464*VLOOKUP(D464,ALLOCTABLE_Prod_Energy,$H$10,FALSE),0)","v":0},{"$f":"ROUND(F464*VLOOKUP(D464,ALLOCTABLE_Prod_Energy,$I$10,FALSE),0)","v":0},{"$f":"ROUND(F464*VLOOKUP(D464,ALLOCTABLE_Prod_Energy,$J$10,FALSE),0)","v":0},{"$f":"ROUND(F464*VLOOKUP(D464,ALLOCTABLE_Prod_Energy,$K$10,FALSE),0)","v":0},{"$f":"ROUND(F464*VLOOKUP(D464,ALLOCTABLE_Prod_Energy,$L$10,FALSE),0)","v":0},{"$f":"ROUND(F464*VLOOKUP(D464,ALLOCTABLE_Prod_Energy,$M$10,FALSE),0)","v":0},{"$f":"ROUND(F464*VLOOKUP(D464,ALLOCTABLE_Prod_Energy,$N$10,FALSE),0)","v":0},{"$f":"ROUND(F464*VLOOKUP(D464,ALLOCTABLE_Prod_Energy,$O$10,FALSE),0)","v":0},{"$f":"ROUND(F464*VLOOKUP(D464,ALLOCTABLE_Prod_Energy,$P$10,FALSE),0)","v":0},{"$f":"ROUND(F464*VLOOKUP(D464,ALLOCTABLE_Prod_Energy,$Q$10,FALSE),0)","v":0},{"$f":"SUM(G464:Q464)","v":0},{"$f":"F464-R464","v":0}]
[21,null,{"$f":"'FR-16(7)(v)-1 Functional'!C465","v":"NETWORK SERVICE RATES ADJUSTMENT"},{"$f":"'FR-16(7)(v)-1 Functional'!D465","v":"K202"},null,{"$f":"'FR-16(7)(v)-2 PROD Classified'!H465","v":0},{"$f":"F465-SUM(H465:Q465)","v":0},{"$f":"ROUND(F465*VLOOKUP(D465,ALLOCTABLE_Prod_Energy,$H$10,FALSE),0)","v":0},{"$f":"ROUND(F465*VLOOKUP(D465,ALLOCTABLE_Prod_Energy,$I$10,FALSE),0)","v":0},{"$f":"ROUND(F465*VLOOKUP(D465,ALLOCTABLE_Prod_Energy,$J$10,FALSE),0)","v":0},{"$f":"ROUND(F465*VLOOKUP(D465,ALLOCTABLE_Prod_Energy,$K$10,FALSE),0)","v":0},{"$f":"ROUND(F465*VLOOKUP(D465,ALLOCTABLE_Prod_Energy,$L$10,FALSE),0)","v":0},{"$f":"ROUND(F465*VLOOKUP(D465,ALLOCTABLE_Prod_Energy,$M$10,FALSE),0)","v":0},{"$f":"ROUND(F465*VLOOKUP(D465,ALLOCTABLE_Prod_Energy,$N$10,FALSE),0)","v":0},{"$f":"ROUND(F465*VLOOKUP(D465,ALLOCTABLE_Prod_Energy,$O$10,FALSE),0)","v":0},{"$f":"ROUND(F465*VLOOKUP(D465,ALLOCTABLE_Prod_Energy,$P$10,FALSE),0)","v":0},{"$f":"ROUND(F465*VLOOKUP(D465,ALLOCTABLE_Prod_Energy,$Q$10,FALSE),0)","v":0},{"$f":"SUM(G465:Q465)","v":0},{"$f":"F465-R465","v":0}]
[22,null,{"$f":"'FR-16(7)(v)-1 Functional'!C466","v":"  TOTAL TRANSMISSION O & M"},null,null,{"$f":"SUM(F462:F465)","v":0},{"$f":"SUM(G462:G465)","v":0},0,0,0,0,0,0,0,0,0,0,0,0]
[23]
[24,"REGIONAL MARKET O&M"]
[25,null,{"$f":"'FR-16(7)(v)-1 Functional'!C469","v":"MARKET FACILITATION - MONITORING & COMPLIANCE"},{"$f":"'FR-16(7)(v)-1 Functional'!D469","v":"K202"},null,{"$f":"'FR-16(7)(v)-2 PROD Classified'!H469","v":0},{"$f":"F469-SUM(H469:Q469)","v":0},{"$f":"ROUND(F469*VLOOKUP(D469,ALLOCTABLE_Prod_Energy,$H$10,FALSE),0)","v":0},{"$f":"ROUND(F469*VLOOKUP(D469,ALLOCTABLE_Prod_Energy,$I$10,FALSE),0)","v":0},{"$f":"ROUND(F469*VLOOKUP(D469,ALLOCTABLE_Prod_Energy,$J$10,FALSE),0)","v":0},{"$f":"ROUND(F469*VLOOKUP(D469,ALLOCTABLE_Prod_Energy,$K$10,FALSE),0)","v":0},{"$f":"ROUND(F469*VLOOKUP(D469,ALLOCTABLE_Prod_Energy,$L$10,FALSE),0)","v":0},{"$f":"ROUND(F469*VLOOKUP(D469,ALLOCTABLE_Prod_Energy,$M$10,FALSE),0)","v":0},{"$f":"ROUND(F469*VLOOKUP(D469,ALLOCTABLE_Prod_Energy,$N$10,FALSE),0)","v":0},{"$f":"ROUND(F469*VLOOKUP(D469,ALLOCTABLE_Prod_Energy,$O$10,FALSE),0)","v":0},{"$f":"ROUND(F469*VLOOKUP(D469,ALLOCTABLE_Prod_Energy,$P$10,FALSE),0)","v":0},{"$f":"ROUND(F469*VLOOKUP(D469,ALLOCTABLE_Prod_Energy,$Q$10,FALSE),0)","v":0},{"$f":"SUM(G469:Q469)","v":0},{"$f":"F469-R469","v":0}]
[26,null,"TOTAL REGIONAL MARKET O&M",null,null,{"$f":"SUM(F468:F469)","v":0},{"$f":"SUM(G468:G469)","v":0},{"$f":"SUM(H468:H469)","v":0},0,0,0,0,0,0,0,0,0,{"$f":"SUM(R468:R469)","v":0},{"$f":"SUM(S468:S469)","v":0}]
[27]
[28,"DISTRIBUTION O & M"]
[29,null,{"$f":"'FR-16(7)(v)-1 Functional'!C473","v":"SUBSTATIONS"},{"$f":"'FR-16(7)(v)-1 Functional'!D473","v":"K201"},null,{"$f":"'FR-16(7)(v)-2 PROD Classified'!H473","v":0},{"$f":"F473-SUM(H473:Q473)","v":0},{"$f":"ROUND(F473*VLOOKUP(D473,ALLOCTABLE_Prod_Energy,$H$10,FALSE),0)","v":0},{"$f":"ROUND(F473*VLOOKUP(D473,ALLOCTABLE_Prod_Energy,$I$10,FALSE),0)","v":0},{"$f":"ROUND(F473*VLOOKUP(D473,ALLOCTABLE_Prod_Energy,$J$10,FALSE),0)","v":0},{"$f":"ROUND(F473*VLOOKUP(D473,ALLOCTABLE_Prod_Energy,$K$10,FALSE),0)","v":0},{"$f":"ROUND(F473*VLOOKUP(D473,ALLOCTABLE_Prod_Energy,$L$10,FALSE),0)","v":0},{"$f":"ROUND(F473*VLOOKUP(D473,ALLOCTABLE_Prod_Energy,$M$10,FALSE),0)","v":0},{"$f":"ROUND(F473*VLOOKUP(D473,ALLOCTABLE_Prod_Energy,$N$10,FALSE),0)","v":0},{"$f":"ROUND(F473*VLOOKUP(D473,ALLOCTABLE_Prod_Energy,$O$10,FALSE),0)","v":0},{"$f":"ROUND(F473*VLOOKUP(D473,ALLOCTABLE_Prod_Energy,$P$10,FALSE),0)","v":0},{"$f":"ROUND(F473*VLOOKUP(D473,ALLOCTABLE_Prod_Energy,$Q$10,FALSE),0)","v":0},{"$f":"SUM(G473:Q473)","v":0},{"$f":"F473-R473","v":0}]
[30,null,{"$f":"'FR-16(7)(v)-1 Functional'!C474","v":"POLES, TOWERS & FIXTURES"},{"$f":"'FR-16(7)(v)-1 Functional'!D474","v":"PL49"},null,{"$f":"'FR-16(7)(v)-2 PROD Classified'!H474","v":0},0,0,0,0,0,0,0,0,0,0,0,0,0]
[31,null,{"$f":"'FR-16(7)(v)-1 Functional'!C475","v":"OVERHEAD LINES - PRIMARY / DEMAND"},{"$f":"'FR-16(7)(v)-1 Functional'!D475","v":"K205"},null,{"$f":"'FR-16(7)(v)-2 PROD Classified'!H475","v":0},0,0,0,0,0,0,0,0,0,0,0,0,0]
[32,null,{"$f":"'FR-16(7)(v)-1 Functional'!C476","v":"OVERHEAD LINES - PRIMARY / CUSTOMER"},{"$f":"'FR-16(7)(v)-1 Functional'!D476","v":"K405"},null,{"$f":"'FR-16(7)(v)-2 PROD Classified'!H476","v":0},0,0,0,0,0,0,0,0,0,0,0,0,0]
[33,null,{"$f":"'FR-16(7)(v)-1 Functional'!C477","v":"OVERHEAD LINES - SECONDARY / DEMAND"},{"$f":"'FR-16(7)(v)-1 Functional'!D477","v":"K206"},null,{"$f":"'FR-16(7)(v)-2 PROD Classified'!H477","v":0},0,0,0,0,0,0,0,0,0,0,0,0,0]
[34,null,{"$f":"'FR-16(7)(v)-1 Functional'!C478","v":"OVERHEAD LINES - SECONDARY / CUSTOMER"},{"$f":"'FR-16(7)(v)-1 Functional'!D478","v":"K405"},null,{"$f":"'FR-16(7)(v)-2 PROD Classified'!H478","v":0},0,0,0,0,0,0,0,0,0,0,0,0,0]
[35,null,{"$f":"'FR-16(7)(v)-1 Functional'!C479","v":"UNDERGROUND LINES - PRIMARY / DEMAND"},{"$f":"'FR-16(7)(v)-1 Functional'!D479","v":"K205"},null,{"$f":"'FR-16(7)(v)-2 PROD Classified'!H479","v":0},0,0,0,0,0,0,0,0,0,0,0,0,0]
[36,null,{"$f":"'FR-16(7)(v)-1 Functional'!C480","v":"UNDERGROUND LINES - PRIMARY / CUSTOMER"},{"$f":"'FR-16(7)(v)-1 Functional'!D480","v":"K405"},null,{"$f":"'FR-16(7)(v)-2 PROD Classified'!H480","v":0},0,0,0,0,0,0,0,0,0,0,0,0,0]
[37,null,{"$f":"'FR-16(7)(v)-1 Functional'!C481","v":"UNDERGROUND LINES - SECONDARY / DEMAND"},{"$f":"'FR-16(7)(v)-1 Functional'!D481","v":"K206"},null,{"$f":"'FR-16(7)(v)-2 PROD Classified'!H481","v":0},0,0,0,0,0,0,0,0,0,0,0,0,0]
[38,null,{"$f":"'FR-16(7)(v)-1 Functional'!C482","v":"UNDERGROUND LINES - SECONDARY / CUSTOMER"},{"$f":"'FR-16(7)(v)-1 Functional'!D482","v":"K405"},null,{"$f":"'FR-16(7)(v)-2 PROD Classified'!H482","v":0},0,0,0,0,0,0,0,0,0,0,0,0,0]
[39,null,{"$f":"'FR-16(7)(v)-1 Functional'!C483","v":"TRANSFORMERS DEMAND RELATED"},{"$f":"'FR-16(7)(v)-1 Functional'!D483","v":"K203"},null,{"$f":"'FR-16(7)(v)-2 PROD Classified'!H483","v":0},0,0,0,0,0,0,0,0,0,0,0,0,0]
[40,null,{"$f":"'FR-16(7)(v)-1 Functional'!C484","v":"TRANSFORMERS CUSTOMER RELATED"},{"$f":"'FR-16(7)(v)-1 Functional'!D484","v":"K401"},null,{"$f":"'FR-16(7)(v)-2 PROD Classified'!H484","v":0},0,0,0,0,0,0,0,0,0,0,0,0,0]
[41,null,{"$f":"'FR-16(7)(v)-1 Functional'!C485","v":"OTHER MAINTENANCE"},{"$f":"'FR-16(7)(v)-1 Functional'!D485","v":"K203"},null,{"$f":"'FR-16(7)(v)-2 PROD Classified'!H485","v":0},0,0,0,0,0,0,0,0,0,0,0,0,0]
[42,null,{"$f":"'FR-16(7)(v)-1 Functional'!C486","v":"LOAD DISPATCH"},{"$f":"'FR-16(7)(v)-1 Functional'!D486","v":"K215"},null,{"$f":"'FR-16(7)(v)-2 PROD Classified'!H486","v":0},0,0,0,0,0,0,0,0,0,0,0,0,0]
[43,null,{"$f":"'FR-16(7)(v)-1 Functional'!C487","v":"METERS"},{"$f":"'FR-16(7)(v)-1 Functional'!D487","v":"K407"},null,{"$f":"'FR-16(7)(v)-2 PROD Classified'!H487","v":0},0,0,0,0,0,0,0,0,0,0,0,0,0]
[44,null,{"$f":"'FR-16(7)(v)-1 Functional'!C488","v":"STREET LIGHTING AND SIGNAL SYSTEMS"},{"$f":"'FR-16(7)(v)-1 Functional'!D488","v":"K401"},null,{"$f":"'FR-16(7)(v)-2 PROD Classified'!H488","v":0},0,0,0,0,0,0,0,0,0,0,0,0,0]
[45,null,{"$f":"'FR-16(7)(v)-1 Functional'!C489","v":"OTHER OPERATIONS"},{"$f":"'FR-16(7)(v)-1 Functional'!D489","v":"K203"},null,{"$f":"'FR-16(7)(v)-2 PROD Classified'!H489","v":0},0,0,0,0,0,0,0,0,0,0,0,0,0]
[46,null,{"$f":"'FR-16(7)(v)-1 Functional'!C490","v":"MISCELLANEOUS EXPENSES ADJUSTMENT"},{"$f":"'FR-16(7)(v)-1 Functional'!D490","v":"K203"},null,{"$f":"'FR-16(7)(v)-2 PROD Classified'!H490","v":0},0,0,0,0,0,0,0,0,0,0,0,0,0]
[47,null,{"$f":"'FR-16(7)(v)-1 Functional'!C491","v":"AFFILIATED COMPANY RENTS ADJUSTMENT"},{"$f":"'FR-16(7)(v)-1 Functional'!D491","v":"D249"},null,{"$f":"'FR-16(7)(v)-2 PROD Classified'!H491","v":0},0,0,0,0,0,0,0,0,0,0,0,0,0]
[48,null,{"$f":"'FR-16(7)(v)-1 Functional'!C492","v":"  TOTAL DISTRIBUTION O & M"},null," ",{"$f":"SUM(F472:F491)","v":0},{"$f":"SUM(G472:G491)","v":0},{"$f":"SUM(H472:H491)","v":0},0,0,0,0,0,0,0,0,0,{"$f":"SUM(R472:R491)","v":0},{"$f":"SUM(S472:S491)","v":0}]
[49,null," "]
[50,"CUSTOMER ACCOUNTING",null,null,null," "]
[51,null,{"$f":"'FR-16(7)(v)-1 Functional'!C495","v":"CUSTOMER ACCOUNTING EXPENSE"},{"$f":"'FR-16(7)(v)-1 Functional'!D495","v":"K409"},null,{"$f":"'FR-16(7)(v)-2 PROD Classified'!H495","v":0},{"$f":"F495-SUM(H495:Q495)","v":0},{"$f":"ROUND(F495*VLOOKUP(D495,ALLOCTABLE_Prod_Energy,$H$10,FALSE),0)","v":0},{"$f":"ROUND(F495*VLOOKUP(D495,ALLOCTABLE_Prod_Energy,$I$10,FALSE),0)","v":0},{"$f":"ROUND(F495*VLOOKUP(D495,ALLOCTABLE_Prod_Energy,$J$10,FALSE),0)","v":0},{"$f":"ROUND(F495*VLOOKUP(D495,ALLOCTABLE_Prod_Energy,$K$10,FALSE),0)","v":0},{"$f":"ROUND(F495*VLOOKUP(D495,ALLOCTABLE_Prod_Energy,$L$10,FALSE),0)","v":0},{"$f":"ROUND(F495*VLOOKUP(D495,ALLOCTABLE_Prod_Energy,$M$10,FALSE),0)","v":0},{"$f":"ROUND(F495*VLOOKUP(D495,ALLOCTABLE_Prod_Energy,$N$10,FALSE),0)","v":0},{"$f":"ROUND(F495*VLOOKUP(D495,ALLOCTABLE_Prod_Energy,$O$10,FALSE),0)","v":0},{"$f":"ROUND(F495*VLOOKUP(D495,ALLOCTABLE_Prod_Energy,$P$10,FALSE),0)","v":0},{"$f":"ROUND(F495*VLOOKUP(D495,ALLOCTABLE_Prod_Energy,$Q$10,FALSE),0)","v":0},{"$f":"SUM(G495:Q495)","v":0},{"$f":"F495-R495","v":0}]
[52,null,{"$f":"'FR-16(7)(v)-1 Functional'!C496","v":"UNCOLLECTIBLE EXP"},{"$f":"'FR-16(7)(v)-1 Functional'!D496","v":"K411"},null,{"$f":"'FR-16(7)(v)-2 PROD Classified'!H496","v":0},0,0,0,0,0,0,0,0,0,0,0,0,0]
[53,null,{"$f":"'FR-16(7)(v)-1 Functional'!C497","v":"METER READING"},{"$f":"'FR-16(7)(v)-1 Functional'!D497","v":"K407"},null,{"$f":"'FR-16(7)(v)-2 PROD Classified'!H497","v":0},0,0,0,0,0,0,0,0,0,0,0,0,0]
[54,null,{"$f":"'FR-16(7)(v)-1 Functional'!C498","v":"UNCOLLECTIBLE EXP ADJUSTMENT"},{"$f":"'FR-16(7)(v)-1 Functional'!D498","v":"K411"},null,{"$f":"'FR-16(7)(v)-2 PROD Classified'!H498","v":0},0,0,0,0,0,0,0,0,0,0,0,0,0]
[55,null,{"$f":"'FR-16(7)(v)-1 Functional'!C499","v":"CREDIT CARD FEES"},{"$f":"'FR-16(7)(v)-1 Functional'!D499","v":"K407"},null,{"$f":"'FR-16(7)(v)-2 PROD Classified'!H499","v":0},0,0,0,0,0,0,0,0,0,0,0,0,0]
[56,null,{"$f":"'FR-16(7)(v)-1 Functional'!C500","v":"ELIMINATE REV & EXP - DSM RIDER"},{"$f":"'FR-16(7)(v)-1 Functional'!D500","v":"K405"},null,{"$f":"'FR-16(7)(v)-2 PROD Classified'!H500","v":0},0,0,0,0,0,0,0,0,0,0,0,0,0]
[57,null,{"$f":"'FR-16(7)(v)-1 Functional'!C501","v":"SALE OF A/R"},{"$f":"'FR-16(7)(v)-1 Functional'!D501","v":"K411"},null,{"$f":"'FR-16(7)(v)-2 PROD Classified'!H501","v":0},0,0,0,0,0,0,0,0,0,0,0,0,0]
[58,null,{"$f":"'FR-16(7)(v)-1 Functional'!C502","v":"ELIMINATE MISC EXPENSE"},{"$f":"'FR-16(7)(v)-1 Functional'!D502","v":"K405"},null,{"$f":"'FR-16(7)(v)-2 PROD Classified'!H502","v":0},0,0,0,0,0,0,0,0,0,0,0,0,0]
[59,null,{"$f":"'FR-16(7)(v)-1 Functional'!C503","v":"  TOTAL CUSTOMER ACCT EXPENSE"},null," ",{"$f":"SUM(F494:F502)","v":0},{"$f":"SUM(G494:G502)","v":0},{"$f":"SUM(H494:H502)","v":0},0,0,0,0,0,0,0,0,0,{"$f":"SUM(R494:R502)","v":0},{"$f":"SUM(S494:S502)","v":0}]
[]
[{"$f":"co_name","v":"DUKE ENERGY KENTUCKY, INC."},null,null,null,null,null,null,null,null,null,null,null,null,null,null,null,null,{"$f":"R1","v":"FR-16(7)(v)-4"}]
[{"$f":"$A$2","v":"PRODUCTION ENERGY ALLOCATED - ELECTRIC COST OF SERVICE"},null,null,null,null,null,null,null,null,null,null,null,null,null,null,null,null,{"$f":"R2","v":"WITNESS RESPONSIBLE:"}]
[{"$f":"case_name","v":"CASE NO: 2019-00271"},null,null,null,null,null,null,null,null,null,null,null,null,null,null,null,null,{"$f":"Witness","v":"JAMES E. ZIOLKOWSKI"}]
[{"$f":"data_filing","v":"DATA: 12 MONTHS ACTUAL  & 0 MONTHS ESTIMATED"},null,null,null,null,null,null,null,null,null,null,null,null,null,null,null,null,{"$f":"\"PAGE \"&Pages-9&\" OF \"&Pages","v":"PAGE 9 OF 18"}]
[{"$f":"type","v":"TYPE OF FILING: \"X\" ORIGINAL   UPDATED    REVISED  "}]
[]
[null,null,null,null,null,{"$f":"F$7","v":"TOTAL"},null,{"$f":"H$7","v":"DS"},{"$f":"I$7","v":"GSFL"},{"$f":"J$7","v":"EH"},{"$f":"K$7","v":"SP"},"DT SEC","DT PRI","DP","TT",null,"OTHER"]
["LINE",null,null,null,null,{"$f":"F$8","v":"PRODUCTION"},{"$f":"G$8","v":"RS"},{"$f":"H$8","v":"SECONDARY"},{"$f":"I$8","v":"SECONDARY"},{"$f":"J$8","v":"SECONDARY"},{"$f":"K$8","v":"SECONDARY"},"SECONDARY","PRIMARY","PRIMARY","TRANSMISSION","LT","WATER",{"$f":"R8","v":"TOTAL"},"ALL"]
["NO.","O&M EXPENSES",null,"ALLO",null,{"$f":"F$9","v":"ENERGY"},{"$f":"G$9","v":"RESIDENTIAL"},{"$f":"H$9","v":"DISTRIBUTION"},{"$f":"I$9","v":"DISTRIBUTION"},{"$f":"J$9","v":"DISTRIBUTION"},{"$f":"K$9","v":"DISTRIBUTION"},"DISTRIBUTION","DISTRIBUTION","DISTRIBUTION","TIME OF DAY","LIGHTING","PUMPING",{"$f":"R9","v":"AT ISSUE"},"OTHER"]
[null,null,"Schedule 6.1",null,null,null,{"$f":"G$10","v":3},{"$f":"H$10","v":4},{"$f":"I$10","v":5},{"$f":"J$10","v":6},{"$f":"K$10","v":7},8,9,10,11,12,13,null," "]
[1,"CUSTOMER SERVICE & INFORMATION"]
[2,null,{"$f":"'FR-16(7)(v)-1 Functional'!C516","v":"TOTAL CUST SERVICE & INFO"},{"$f":"'FR-16(7)(v)-1 Functional'!D516","v":"K405"},null,{"$f":"'FR-16(7)(v)-2 PROD Classified'!H516","v":0},{"$f":"F516-SUM(H516:Q516)","v":0},{"$f":"ROUND(F516*VLOOKUP(D516,ALLOCTABLE_Prod_Energy,$H$10,FALSE),0)","v":0},{"$f":"ROUND(F516*VLOOKUP(D516,ALLOCTABLE_Prod_Energy,$I$10,FALSE),0)","v":0},{"$f":"ROUND(F516*VLOOKUP(D516,ALLOCTABLE_Prod_Energy,$J$10,FALSE),0)","v":0},{"$f":"ROUND(F516*VLOOKUP(D516,ALLOCTABLE_Prod_Energy,$K$10,FALSE),0)","v":0},{"$f":"ROUND(F516*VLOOKUP(D516,ALLOCTABLE_Prod_Energy,$L$10,FALSE),0)","v":0},{"$f":"ROUND(F516*VLOOKUP(D516,ALLOCTABLE_Prod_Energy,$M$10,FALSE),0)","v":0},{"$f":"ROUND(F516*VLOOKUP(D516,ALLOCTABLE_Prod_Energy,$N$10,FALSE),0)","v":0},{"$f":"ROUND(F516*VLOOKUP(D516,ALLOCTABLE_Prod_Energy,$O$10,FALSE),0)","v":0},{"$f":"ROUND(F516*VLOOKUP(D516,ALLOCTABLE_Prod_Energy,$P$10,FALSE),0)","v":0},{"$f":"ROUND(F516*VLOOKUP(D516,ALLOCTABLE_Prod_Energy,$Q$10,FALSE),0)","v":0},{"$f":"SUM(G516:Q516)","v":0},{"$f":"F516-R516","v":0}]
[3,null,{"$f":"'FR-16(7)(v)-1 Functional'!C517","v":"INFORMATIONAL & INSTRUCTIONAL ADV"},{"$f":"'FR-16(7)(v)-1 Functional'!D517","v":"K405"},null,{"$f":"'FR-16(7)(v)-2 PROD Classified'!H517","v":0},{"$f":"F517-SUM(H517:Q517)","v":0},{"$f":"ROUND(F517*VLOOKUP(D517,ALLOCTABLE_Prod_Energy,$H$10,FALSE),0)","v":0},{"$f":"ROUND(F517*VLOOKUP(D517,ALLOCTABLE_Prod_Energy,$I$10,FALSE),0)","v":0},{"$f":"ROUND(F517*VLOOKUP(D517,ALLOCTABLE_Prod_Energy,$J$10,FALSE),0)","v":0},{"$f":"ROUND(F517*VLOOKUP(D517,ALLOCTABLE_Prod_Energy,$K$10,FALSE),0)","v":0},{"$f":"ROUND(F517*VLOOKUP(D517,ALLOCTABLE_Prod_Energy,$L$10,FALSE),0)","v":0},{"$f":"ROUND(F517*VLOOKUP(D517,ALLOCTABLE_Prod_Energy,$M$10,FALSE),0)","v":0},{"$f":"ROUND(F517*VLOOKUP(D517,ALLOCTABLE_Prod_Energy,$N$10,FALSE),0)","v":0},{"$f":"ROUND(F517*VLOOKUP(D517,ALLOCTABLE_Prod_Energy,$O$10,FALSE),0)","v":0},{"$f":"ROUND(F517*VLOOKUP(D517,ALLOCTABLE_Prod_Energy,$P$10,FALSE),0)","v":0},{"$f":"ROUND(F517*VLOOKUP(D517,ALLOCTABLE_Prod_Energy,$Q$10,FALSE),0)","v":0},{"$f":"SUM(G517:Q517)","v":0}]
[4,null,{"$f":"'FR-16(7)(v)-1 Functional'!C518","v":"TOTAL CUSTOMER SERV. & INFO."},null," ",{"$f":"SUM(F516:F517)","v":0},{"$f":"SUM(G516:G517)","v":0},0,0,0,0,0,0,0,0,0,0,0,0]
[5]
[6,"SALES"]
[7,null,{"$f":"'FR-16(7)(v)-1 Functional'!C521","v":"SALES EXPENSE"},{"$f":"'FR-16(7)(v)-1 Functional'!D521","v":"K405"}," ",{"$f":"'FR-16(7)(v)-2 PROD Classified'!H521","v":0},{"$f":"F521-SUM(H521:Q521)","v":0},{"$f":"ROUND(F521*VLOOKUP(D521,ALLOCTABLE_Prod_Energy,$H$10,FALSE),0)","v":0},{"$f":"ROUND(F521*VLOOKUP(D521,ALLOCTABLE_Prod_Energy,$I$10,FALSE),0)","v":0},{"$f":"ROUND(F521*VLOOKUP(D521,ALLOCTABLE_Prod_Energy,$J$10,FALSE),0)","v":0},{"$f":"ROUND(F521*VLOOKUP(D521,ALLOCTABLE_Prod_Energy,$K$10,FALSE),0)","v":0},{"$f":"ROUND(F521*VLOOKUP(D521,ALLOCTABLE_Prod_Energy,$L$10,FALSE),0)","v":0},{"$f":"ROUND(F521*VLOOKUP(D521,ALLOCTABLE_Prod_Energy,$M$10,FALSE),0)","v":0},{"$f":"ROUND(F521*VLOOKUP(D521,ALLOCTABLE_Prod_Energy,$N$10,FALSE),0)","v":0},{"$f":"ROUND(F521*VLOOKUP(D521,ALLOCTABLE_Prod_Energy,$O$10,FALSE),0)","v":0},{"$f":"ROUND(F521*VLOOKUP(D521,ALLOCTABLE_Prod_Energy,$P$10,FALSE),0)","v":0},{"$f":"ROUND(F521*VLOOKUP(D521,ALLOCTABLE_Prod_Energy,$Q$10,FALSE),0)","v":0},{"$f":"SUM(G521:Q521)","v":0},{"$f":"F521-R521","v":0}]
[8,null,{"$f":"'FR-16(7)(v)-1 Functional'!C522","v":"TOTAL SALES EXPENSE"},null," ",{"$f":"SUM(F520:F521)","v":0},{"$f":"SUM(G520:G521)","v":0},{"$f":"SUM(H520:H521)","v":0},0,0,0,0,0,0,0,0,0,{"$f":"SUM(R520:R521)","v":0},{"$f":"SUM(S520:S521)","v":0}]
[9]
[10,"ADMINISTRATIVE & GENERAL "]
[11,null,{"$f":"'FR-16(7)(v)-1 Functional'!C525","v":"PRODUCTION - DEMAND RELATED"},{"$f":"'FR-16(7)(v)-1 Functional'!D525","v":"P349"},null,{"$f":"'FR-16(7)(v)-2 PROD Classified'!H525","v":0},{"$f":"F525-SUM(H525:Q525)","v":0},{"$f":"ROUND(F525*VLOOKUP(D525,ALLOCTABLE_Prod_Energy,$H$10,FALSE),0)","v":0},{"$f":"ROUND(F525*VLOOKUP(D525,ALLOCTABLE_Prod_Energy,$I$10,FALSE),0)","v":0},{"$f":"ROUND(F525*VLOOKUP(D525,ALLOCTABLE_Prod_Energy,$J$10,FALSE),0)","v":0},{"$f":"ROUND(F525*VLOOKUP(D525,ALLOCTABLE_Prod_Energy,$K$10,FALSE),0)","v":0},{"$f":"ROUND(F525*VLOOKUP(D525,ALLOCTABLE_Prod_Energy,$L$10,FALSE),0)","v":0},{"$f":"ROUND(F525*VLOOKUP(D525,ALLOCTABLE_Prod_Energy,$M$10,FALSE),0)","v":0},{"$f":"ROUND(F525*VLOOKUP(D525,ALLOCTABLE_Prod_Energy,$N$10,FALSE),0)","v":0},{"$f":"ROUND(F525*VLOOKUP(D525,ALLOCTABLE_Prod_Energy,$O$10,FALSE),0)","v":0},{"$f":"ROUND(F525*VLOOKUP(D525,ALLOCTABLE_Prod_Energy,$P$10,FALSE),0)","v":0},{"$f":"ROUND(F525*VLOOKUP(D525,ALLOCTABLE_Prod_Energy,$Q$10,FALSE),0)","v":0},{"$f":"SUM(G525:Q525)","v":0},{"$f":"F525-R525","v":0}]
[12,null,{"$f":"'FR-16(7)(v)-1 Functional'!C526","v":"PRODUCTION - ENERGY RELATED"},{"$f":"'FR-16(7)(v)-1 Functional'!D526","v":"E349"},null,{"$f":"'FR-16(7)(v)-2 PROD Classified'!H526","v":10850517},4108005,2929314,16384,46549,760,1791420,1247267,58484,603723,47417,1194,10850517,0]
[13,null,"TRANSMISSION",{"$f":"'FR-16(7)(v)-1 Functional'!D527","v":"T349"},null,{"$f":"'FR-16(7)(v)-2 PROD Classified'!H527","v":0},0,0,0,0,0,0,0,0,0,0,0,{"$f":"SUM(G527:Q527)","v":0},{"$f":"F527-R527","v":0}]
[14,null,{"$f":"'FR-16(7)(v)-1 Functional'!C528","v":"DISTRIBUTION"},{"$f":"'FR-16(7)(v)-1 Functional'!D528","v":"D349"},null,{"$f":"'FR-16(7)(v)-2 PROD Classified'!H528","v":0},0,0,0,0,0,0,0,0,0,0,0,0,0]
[15,null,{"$f":"'FR-16(7)(v)-1 Functional'!C529","v":"CUSTOMER ACCOUNTING"},{"$f":"'FR-16(7)(v)-1 Functional'!D529","v":"C319"},null,{"$f":"'FR-16(7)(v)-2 PROD Classified'!H529","v":0},0,0,0,0,0,0,0,0,0,0,0,0,0]
[16,null,{"$f":"'FR-16(7)(v)-1 Functional'!C530","v":"CUSTOMER SERVICE & INFORMATION"},{"$f":"'FR-16(7)(v)-1 Functional'!D530","v":"C331"},null,{"$f":"'FR-16(7)(v)-2 PROD Classified'!H530","v":0},0,0,0,0,0,0,0,0,0,0,0,0,0]
[17,null,{"$f":"'FR-16(7)(v)-1 Functional'!C531","v":"SALES"},{"$f":"'FR-16(7)(v)-1 Functional'!D531","v":"S319"},null,{"$f":"'FR-16(7)(v)-2 PROD Classified'!H531","v":0},0,0,0,0,0,0,0,0,0,0,0,0,0]
[18,null,{"$f":"'FR-16(7)(v)-1 Functional'!C532","v":"TOT ADMIN & GEN LESS REG EXP"}," ",null,{"$f":"SUM(F525:F531)","v":10850517},{"$f":"SUM(G525:G531)","v":4108005},2929314,16384,46549,760,1791420,1247267,58484,{"$f":"SUM(O525:O531)","v":603723},{"$f":"SUM(P525:P531)","v":47417},1194,10850517,0]
[19,null,{"$f":"'FR-16(7)(v)-1 Functional'!C533","v":"RATE CASE EXPENSE ADJUSTMENT"},{"$f":"'FR-16(7)(v)-1 Functional'!D533","v":"A315"},null,{"$f":"'FR-16(7)(v)-2 PROD Classified'!H533","v":46570},{"$f":"F533-SUM(H533:Q533)","v":17631},{"$f":"ROUND(F533*VLOOKUP(D533,ALLOCTABLE_Prod_Energy,$H$10,FALSE),0)","v":12573},{"$f":"ROUND(F533*VLOOKUP(D533,ALLOCTABLE_Prod_Energy,$I$10,FALSE),0)","v":70},{"$f":"ROUND(F533*VLOOKUP(D533,ALLOCTABLE_Prod_Energy,$J$10,FALSE),0)","v":200},{"$f":"ROUND(F533*VLOOKUP(D533,ALLOCTABLE_Prod_Energy,$K$10,FALSE),0)","v":3},{"$f":"ROUND(F533*VLOOKUP(D533,ALLOCTABLE_Prod_Energy,$L$10,FALSE),0)","v":7689},{"$f":"ROUND(F533*VLOOKUP(D533,ALLOCTABLE_Prod_Energy,$M$10,FALSE),0)","v":5353},{"$f":"ROUND(F533*VLOOKUP(D533,ALLOCTABLE_Prod_Energy,$N$10,FALSE),0)","v":251},{"$f":"ROUND(F533*VLOOKUP(D533,ALLOCTABLE_Prod_Energy,$O$10,FALSE),0)","v":2591},{"$f":"ROUND(F533*VLOOKUP(D533,ALLOCTABLE_Prod_Energy,$P$10,FALSE),0)","v":204},{"$f":"ROUND(F533*VLOOKUP(D533,ALLOCTABLE_Prod_Energy,$Q$10,FALSE),0)","v":5},{"$f":"SUM(G533:Q533)","v":46570},{"$f":"F533-R533","v":0}]
[20,null,{"$f":"'FR-16(7)(v)-1 Functional'!C534","v":"ELIMINATE MISCELLANEOUS EXPENSES ADJUSTMENT"},{"$f":"'FR-16(7)(v)-1 Functional'!D534","v":"A315"},null,{"$f":"'FR-16(7)(v)-2 PROD Classified'!H534","v":0},0,0,0,0,0,0,0,0,0,0,0,0,0]
[21,null,{"$f":"'FR-16(7)(v)-1 Functional'!C535","v":"RIDER ESM ELIMINATION"},{"$f":"'FR-16(7)(v)-1 Functional'!D535","v":"A315"},null,{"$f":"'FR-16(7)(v)-2 PROD Classified'!H535","v":-3200951},-1211881,-864161,-4833,-13732,-224,-528477,-367949,-17253,-178101,-13988,-352,-3200951,0]
[22,null,{"$f":"'FR-16(7)(v)-1 Functional'!C536","v":"ELIMINATE DSM"},{"$f":"'FR-16(7)(v)-1 Functional'!D536","v":"A315"},null,{"$f":"'FR-16(7)(v)-2 PROD Classified'!H536","v":-44832},-16974,-12103,-68,-192,-3,-7402,-5153,-242,-2494,-196,-5,-44832,0]
[23,null,{"$f":"'FR-16(7)(v)-1 Functional'!C537","v":"DSM DEFERRAL - ELECTRIC"},{"$f":"'FR-16(7)(v)-1 Functional'!D537","v":"A315"},null,{"$f":"'FR-16(7)(v)-2 PROD Classified'!H537","v":0},0,0,0,0,0,0,0,0,0,0,0,0,0]
[24,null,{"$f":"'FR-16(7)(v)-1 Functional'!C538","v":"PENSION ADJUSTMENT"},{"$f":"'FR-16(7)(v)-1 Functional'!D538","v":"A315"},null,{"$f":"'FR-16(7)(v)-2 PROD Classified'!H538","v":-195301},-73941,-52725,-295,-838,-14,-32244,-22450,-1053,-10867,-853,-21,-195301,0]
[25,null,{"$f":"'FR-16(7)(v)-1 Functional'!C539","v":"ELIMINATE MISC EXPENSES"},{"$f":"'FR-16(7)(v)-1 Functional'!D539","v":"A315"},null,{"$f":"'FR-16(7)(v)-2 PROD Classified'!H539","v":-188386},-71323,-50859,-284,-808,-13,-31103,-21655,-1015,-10482,-823,-21,-188386,0]
[26,null,{"$f":"'FR-16(7)(v)-1 Functional'!C540","v":"ELIMINATE MERGER COSTS AND CREDITS"},{"$f":"'FR-16(7)(v)-1 Functional'!D540","v":"A315"},null,{"$f":"'FR-16(7)(v)-2 PROD Classified'!H540","v":0},0,0,0,0,0,0,0,0,0,0,0,{"$f":"SUM(G540:Q540)","v":0},{"$f":"F540-R540","v":0}]
[27,null,{"$f":"'FR-16(7)(v)-1 Functional'!C541","v":"ANNUALIZE KYPSC MAINT TAX"},{"$f":"'FR-16(7)(v)-1 Functional'!D541","v":"A315"},null,{"$f":"'FR-16(7)(v)-2 PROD Classified'!H541","v":0},0,0,0,0,0,0,0,0,0,0,0,0,0]
[28,null,{"$f":"'FR-16(7)(v)-1 Functional'!C542","v":"REMOVE INCENTIVE COMP"},{"$f":"'FR-16(7)(v)-1 Functional'!D542","v":"A315"},null,{"$f":"'FR-16(7)(v)-2 PROD Classified'!H542","v":-543852},-205902,-146824,-821,-2333,-38,-89790,-62516,-2931,-30260,-2377,-60,-543852,0]
[29,null,{"$f":"'FR-16(7)(v)-1 Functional'!C543","v":"CREDIT CARD FEES"},{"$f":"'FR-16(7)(v)-1 Functional'!D543","v":"A315"},null,{"$f":"'FR-16(7)(v)-2 PROD Classified'!H543","v":0},0,0,0,0,0,0,0,0,0,0,0,0,0]
[30,null,{"$f":"'FR-16(7)(v)-1 Functional'!C544","v":"ELIMINATE INCENTIVE COMPENSATION ADJUSTMENT"},{"$f":"'FR-16(7)(v)-1 Functional'!D544","v":"A315"},null,{"$f":"'FR-16(7)(v)-2 PROD Classified'!H544","v":0},0,0,0,0,0,0,0,0,0,0,0,0,0]
[31,null,{"$f":"'FR-16(7)(v)-1 Functional'!C545","v":"AMORTIZATION OF DEFERRAL ASSET"},{"$f":"'FR-16(7)(v)-1 Functional'!D545","v":"A315"},null,{"$f":"'FR-16(7)(v)-2 PROD Classified'!H545","v":0},0,0,0,0,0,0,0,0,0,0,0,0,0]
[32,null,{"$f":"'FR-16(7)(v)-1 Functional'!C546","v":"AMORTIZATION OF DEFERRED EXPENSES"},{"$f":"'FR-16(7)(v)-1 Functional'!D546","v":"A315"},null,{"$f":"'FR-16(7)(v)-2 PROD Classified'!H546","v":34221},12955,9239,52,147,2,5650,3934,184,1904,150,4,34221,0]
[33,null,{"$f":"'FR-16(7)(v)-1 Functional'!C547","v":"TOTAL ADMIN. & GENERAL"},null," ",{"$f":"SUM(F532:F546)","v":6757986},{"$f":"SUM(G532:G546)","v":2558570},{"$f":"SUM(H532:H546)","v":1824454},10205,28993,473,1115743,776831,36425,376014,29534,744,{"$f":"SUM(R532:R546)","v":6757986},{"$f":"SUM(S532:S546)","v":0}]
[34]
[35,null,{"$f":"'FR-16(7)(v)-1 Functional'!C549","v":"TOTAL O & M EXPENSE"},null,null,{"$f":"F547+F522+F518+F503+F492+F470+F466+F459","v":147821325},{"$f":"G547+G522+G518+G503+G492+G470+G466+G459","v":55963941},{"$f":"H547+H522+H518+H503+H492+H470+H466+H459","v":39907982},{"$f":"I547+I522+I518+I503+I492+I470+I466+I459","v":223210},{"$f":"J547+J522+J518+J503+J492+J470+J466+J459","v":633748},10348,24405654,16992283,796946,8224374,646578,{"$f":"Q547+Q522+Q518+Q503+Q492+Q470+Q466+Q459","v":16261},{"$f":"R547+R522+R518+R503+R492+R470+R466+R459","v":147821325},{"$f":"S547+S522+S518+S503+S492+S466+S459","v":0}]
[]
[{"$f":"co_name","v":"DUKE ENERGY KENTUCKY, INC."},null,null,null,null,null,null,null,null,null,null,null,null,null,null,null,null,{"$f":"R1","v":"FR-16(7)(v)-4"}]
[{"$f":"$A$2","v":"PRODUCTION ENERGY ALLOCATED - ELECTRIC COST OF SERVICE"},null,null,null,null,null,null,null,null,null,null,null,null,null,null,null,null,{"$f":"R2","v":"WITNESS RESPONSIBLE:"}]
[{"$f":"case_name","v":"CASE NO: 2019-00271"},null,null,null,null,null,null,null,null,null,null,null,null,null,null,null,null,{"$f":"Witness","v":"JAMES E. ZIOLKOWSKI"}]
[{"$f":"data_filing","v":"DATA: 12 MONTHS ACTUAL  & 0 MONTHS ESTIMATED"},null,null,null,null,null,null,null,null,null,null,null,null,null,null,null,null,{"$f":"\"PAGE \"&Pages-8&\" OF \"&Pages","v":"PAGE 10 OF 18"}]
[{"$f":"type","v":"TYPE OF FILING: \"X\" ORIGINAL   UPDATED    REVISED  "}]
[]
[null,null,null,null,null,{"$f":"F$7","v":"TOTAL"},null,{"$f":"H$7","v":"DS"},{"$f":"I$7","v":"GSFL"},{"$f":"J$7","v":"EH"},{"$f":"K$7","v":"SP"},"DT SEC","DT PRI","DP","TT",null,"OTHER"]
["LINE",null,null,null,null,{"$f":"F$8","v":"PRODUCTION"},{"$f":"G$8","v":"RS"},{"$f":"H$8","v":"SECONDARY"},{"$f":"I$8","v":"SECONDARY"},{"$f":"J$8","v":"SECONDARY"},{"$f":"K$8","v":"SECONDARY"},"SECONDARY","PRIMARY","PRIMARY","TRANSMISSION","LT","WATER",{"$f":"R8","v":"TOTAL"},"ALL"]
["NO.","DEPRECIATION EXPENSE",null,"ALLO",null,{"$f":"F$9","v":"ENERGY"},{"$f":"G$9","v":"RESIDENTIAL"},{"$f":"H$9","v":"DISTRIBUTION"},{"$f":"I$9","v":"DISTRIBUTION"},{"$f":"J$9","v":"DISTRIBUTION"},{"$f":"K$9","v":"DISTRIBUTION"},"DISTRIBUTION","DISTRIBUTION","DISTRIBUTION","TIME OF DAY","LIGHTING","PUMPING",{"$f":"R9","v":"AT ISSUE"},"OTHER"]
[null,null,"Schedule 7",null,null,null,{"$f":"G$10","v":3},{"$f":"H$10","v":4},{"$f":"I$10","v":5},{"$f":"J$10","v":6},{"$f":"K$10","v":7},8,9,10,11,12,13,null," "]
[1,"PRODUCTION DEPRECIATION"]
[2,null,{"$f":"'FR-16(7)(v)-1 Functional'!C562","v":"PRODUCTION DEPRECIATION"},{"$f":"'FR-16(7)(v)-1 Functional'!D562","v":"P229"},null,{"$f":"'FR-16(7)(v)-2 PROD Classified'!H562","v":0},{"$f":"F562-SUM(H562:Q562)","v":0},{"$f":"ROUND(F562*VLOOKUP(D562,ALLOCTABLE_Prod_Energy,$H$10,FALSE),0)","v":0},{"$f":"ROUND(F562*VLOOKUP(D562,ALLOCTABLE_Prod_Energy,$I$10,FALSE),0)","v":0},{"$f":"ROUND(F562*VLOOKUP(D562,ALLOCTABLE_Prod_Energy,$J$10,FALSE),0)","v":0},{"$f":"ROUND(F562*VLOOKUP(D562,ALLOCTABLE_Prod_Energy,$K$10,FALSE),0)","v":0},{"$f":"ROUND(F562*VLOOKUP(D562,ALLOCTABLE_Prod_Energy,$L$10,FALSE),0)","v":0},{"$f":"ROUND(F562*VLOOKUP(D562,ALLOCTABLE_Prod_Energy,$M$10,FALSE),0)","v":0},{"$f":"ROUND(F562*VLOOKUP(D562,ALLOCTABLE_Prod_Energy,$N$10,FALSE),0)","v":0},{"$f":"ROUND(F562*VLOOKUP(D562,ALLOCTABLE_Prod_Energy,$O$10,FALSE),0)","v":0},{"$f":"ROUND(F562*VLOOKUP(D562,ALLOCTABLE_Prod_Energy,$P$10,FALSE),0)","v":0},{"$f":"ROUND(F562*VLOOKUP(D562,ALLOCTABLE_Prod_Energy,$Q$10,FALSE),0)","v":0},{"$f":"SUM(G562:Q562)","v":0},{"$f":"F562-R562","v":0}]
[3,null,{"$f":"'FR-16(7)(v)-1 Functional'!C563","v":"  TOTAL PRODUCTION DEPREC EXP."},null,null,{"$f":"SUM(F562:F562)","v":0},{"$f":"SUM(G562:G562)","v":0},{"$f":"SUM(H562:H562)","v":0},{"$f":"SUM(I562:I562)","v":0},{"$f":"SUM(J562:J562)","v":0},0,0,0,0,0,0,{"$f":"SUM(Q562:Q562)","v":0},{"$f":"SUM(R562:R562)","v":0},{"$f":"SUM(S562:S562)","v":0}]
[4]
[5,"TRANSMISSION DEPRECIATION"]
[6,null,"TRANSMISSION DEPRECIATION",{"$f":"'FR-16(7)(v)-1 Functional'!D566","v":"T229"},null,{"$f":"'FR-16(7)(v)-2 PROD Classified'!H566","v":0},{"$f":"F566-SUM(H566:Q566)","v":0},{"$f":"ROUND(F566*VLOOKUP(D566,ALLOCTABLE_Prod_Energy,$H$10,FALSE),0)","v":0},{"$f":"ROUND(F566*VLOOKUP(D566,ALLOCTABLE_Prod_Energy,$I$10,FALSE),0)","v":0},{"$f":"ROUND(F566*VLOOKUP(D566,ALLOCTABLE_Prod_Energy,$J$10,FALSE),0)","v":0},{"$f":"ROUND(F566*VLOOKUP(D566,ALLOCTABLE_Prod_Energy,$K$10,FALSE),0)","v":0},{"$f":"ROUND(F566*VLOOKUP(D566,ALLOCTABLE_Prod_Energy,$L$10,FALSE),0)","v":0},{"$f":"ROUND(F566*VLOOKUP(D566,ALLOCTABLE_Prod_Energy,$M$10,FALSE),0)","v":0},{"$f":"ROUND(F566*VLOOKUP(D566,ALLOCTABLE_Prod_Energy,$N$10,FALSE),0)","v":0},{"$f":"ROUND(F566*VLOOKUP(D566,ALLOCTABLE_Prod_Energy,$O$10,FALSE),0)","v":0},{"$f":"ROUND(F566*VLOOKUP(D566,ALLOCTABLE_Prod_Energy,$P$10,FALSE),0)","v":0},{"$f":"ROUND(F566*VLOOKUP(D566,ALLOCTABLE_Prod_Energy,$Q$10,FALSE),0)","v":0},{"$f":"SUM(G566:Q566)","v":0},{"$f":"F566-R566","v":0}]
[7,null,{"$f":"'FR-16(7)(v)-1 Functional'!C567","v":"  TOTAL TRANSMISSION DEP. EXP."},null,null,{"$f":"SUM(F566:F566)","v":0},{"$f":"SUM(G566:G566)","v":0},{"$f":"SUM(H566:H566)","v":0},{"$f":"SUM(I566:I566)","v":0},{"$f":"SUM(J566:J566)","v":0},0,0,0,0,0,0,{"$f":"SUM(Q566:Q566)","v":0},{"$f":"SUM(R566:R566)","v":0},{"$f":"SUM(S566:S566)","v":0}]
[8]
[9,"DISTRIBUTION DEPRECIATION"]
[10,null,{"$f":"'FR-16(7)(v)-1 Functional'!C570","v":"DISTRIBUTION DEPRECIATION"},{"$f":"'FR-16(7)(v)-1 Functional'!D570","v":"D249"},null,{"$f":"'FR-16(7)(v)-2 PROD Classified'!H570","v":0},{"$f":"F570-SUM(H570:Q570)","v":0},{"$f":"ROUND(F570*VLOOKUP(D570,ALLOCTABLE_Prod_Energy,$H$10,FALSE),0)","v":0},{"$f":"ROUND(F570*VLOOKUP(D570,ALLOCTABLE_Prod_Energy,$I$10,FALSE),0)","v":0},{"$f":"ROUND(F570*VLOOKUP(D570,ALLOCTABLE_Prod_Energy,$J$10,FALSE),0)","v":0},{"$f":"ROUND(F570*VLOOKUP(D570,ALLOCTABLE_Prod_Energy,$K$10,FALSE),0)","v":0},{"$f":"ROUND(F570*VLOOKUP(D570,ALLOCTABLE_Prod_Energy,$L$10,FALSE),0)","v":0},{"$f":"ROUND(F570*VLOOKUP(D570,ALLOCTABLE_Prod_Energy,$M$10,FALSE),0)","v":0},{"$f":"ROUND(F570*VLOOKUP(D570,ALLOCTABLE_Prod_Energy,$N$10,FALSE),0)","v":0},{"$f":"ROUND(F570*VLOOKUP(D570,ALLOCTABLE_Prod_Energy,$O$10,FALSE),0)","v":0},{"$f":"ROUND(F570*VLOOKUP(D570,ALLOCTABLE_Prod_Energy,$P$10,FALSE),0)","v":0},{"$f":"ROUND(F570*VLOOKUP(D570,ALLOCTABLE_Prod_Energy,$Q$10,FALSE),0)","v":0},{"$f":"SUM(G570:Q570)","v":0},{"$f":"F570-R570","v":0}]
[11,null,{"$f":"'FR-16(7)(v)-1 Functional'!C571","v":"  TOTAL DIST. DEPREC EXP."},null,null,{"$f":"SUM(F570:F570)","v":0},{"$f":"SUM(G570:G570)","v":0},{"$f":"SUM(H570:H570)","v":0},{"$f":"SUM(I570:I570)","v":0},{"$f":"SUM(J570:J570)","v":0},0,0,0,0,0,0,{"$f":"SUM(Q570:Q570)","v":0},{"$f":"SUM(R570:R570)","v":0},{"$f":"SUM(S570:S570)","v":0}]
[12,null,null,null,null," "]
[13,"GENERAL DEPRECIATION"]
[14,null,{"$f":"'FR-16(7)(v)-1 Functional'!C574","v":"GENERAL DEPRECIATION"},{"$f":"'FR-16(7)(v)-1 Functional'!D574","v":"G229"},null,{"$f":"'FR-16(7)(v)-2 PROD Classified'!H574","v":1854242},{"$f":"F574-SUM(H574:Q574)","v":699884},{"$f":"ROUND(F574*VLOOKUP(D574,ALLOCTABLE_Prod_Energy,$H$10,FALSE),0)","v":499366},{"$f":"ROUND(F574*VLOOKUP(D574,ALLOCTABLE_Prod_Energy,$I$10,FALSE),0)","v":2800},{"$f":"ROUND(F574*VLOOKUP(D574,ALLOCTABLE_Prod_Energy,$J$10,FALSE),0)","v":7936},{"$f":"ROUND(F574*VLOOKUP(D574,ALLOCTABLE_Prod_Energy,$K$10,FALSE),0)","v":130},{"$f":"ROUND(F574*VLOOKUP(D574,ALLOCTABLE_Prod_Energy,$L$10,FALSE),0)","v":305968},{"$f":"ROUND(F574*VLOOKUP(D574,ALLOCTABLE_Prod_Energy,$M$10,FALSE),0)","v":212515},{"$f":"ROUND(F574*VLOOKUP(D574,ALLOCTABLE_Prod_Energy,$N$10,FALSE),0)","v":9957},{"$f":"ROUND(F574*VLOOKUP(D574,ALLOCTABLE_Prod_Energy,$O$10,FALSE),0)","v":107398},{"$f":"ROUND(F574*VLOOKUP(D574,ALLOCTABLE_Prod_Energy,$P$10,FALSE),0)","v":8084},{"$f":"ROUND(F574*VLOOKUP(D574,ALLOCTABLE_Prod_Energy,$Q$10,FALSE),0)","v":204},{"$f":"SUM(G574:Q574)","v":1854242},{"$f":"F574-R574","v":0}]
[15,null,{"$f":"'FR-16(7)(v)-1 Functional'!C575","v":"  TOTAL GENERAL DEPREC EXP."},null,null,{"$f":"SUM(F574:F574)","v":1854242},{"$f":"SUM(G574:G574)","v":699884},499366,2800,7936,130,305968,212515,9957,107398,{"$f":"SUM(P574:P574)","v":8084},204,1854242,0]
[16]
[17,"COMMON AND OTHER DEPRECIATION"]
[18,null,{"$f":"'FR-16(7)(v)-1 Functional'!C578","v":"COMMON DEPRECIATION"},{"$f":"'FR-16(7)(v)-1 Functional'!D578","v":"C229"},null,{"$f":"'FR-16(7)(v)-2 PROD Classified'!H578","v":12580},{"$f":"F578-SUM(H578:Q578)","v":4747},{"$f":"ROUND(F578*VLOOKUP(D578,ALLOCTABLE_Prod_Energy,$H$10,FALSE),0)","v":3388},{"$f":"ROUND(F578*VLOOKUP(D578,ALLOCTABLE_Prod_Energy,$I$10,FALSE),0)","v":19},{"$f":"ROUND(F578*VLOOKUP(D578,ALLOCTABLE_Prod_Energy,$J$10,FALSE),0)","v":54},{"$f":"ROUND(F578*VLOOKUP(D578,ALLOCTABLE_Prod_Energy,$K$10,FALSE),0)","v":1},{"$f":"ROUND(F578*VLOOKUP(D578,ALLOCTABLE_Prod_Energy,$L$10,FALSE),0)","v":2076},{"$f":"ROUND(F578*VLOOKUP(D578,ALLOCTABLE_Prod_Energy,$M$10,FALSE),0)","v":1442},{"$f":"ROUND(F578*VLOOKUP(D578,ALLOCTABLE_Prod_Energy,$N$10,FALSE),0)","v":68},{"$f":"ROUND(F578*VLOOKUP(D578,ALLOCTABLE_Prod_Energy,$O$10,FALSE),0)","v":729},{"$f":"ROUND(F578*VLOOKUP(D578,ALLOCTABLE_Prod_Energy,$P$10,FALSE),0)","v":55},{"$f":"ROUND(F578*VLOOKUP(D578,ALLOCTABLE_Prod_Energy,$Q$10,FALSE),0)","v":1},{"$f":"SUM(G578:Q578)","v":12580},{"$f":"F578-R578","v":0}]
[19,null,{"$f":"'FR-16(7)(v)-1 Functional'!C579","v":"  TOTAL COM & OTHER DEPREC EXP."},null,null,{"$f":"SUM(F578:F578)","v":12580},{"$f":"SUM(G578:G578)","v":4747},3388,19,54,1,2076,1442,68,729,{"$f":"SUM(P578:P578)","v":55},1,12580,0]
[20]
[21]
[22,"TOTAL DEPRECIATION EXPENSE",null,null," ",{"$f":"F579+F575+F571+F567+F563","v":1866822},{"$f":"G579+G575+G571+G567+G563","v":704631},{"$f":"H579+H575+H571+H567+H563","v":502754},{"$f":"I579+I575+I571+I567+I563","v":2819},{"$f":"J579+J575+J571+J567+J563","v":7990},131,308044,213957,10025,108127,8139,{"$f":"Q579+Q575+Q571+Q567+Q563","v":205},{"$f":"R579+R575+R571+R567+R563","v":1866822},{"$f":"S579+S575+S571+S567+S563","v":0}]
[]
[{"$f":"co_name","v":"DUKE ENERGY KENTUCKY, INC."},null,null,null,null,null,null,null,null,null,null,null,null,null,null,null,null,{"$f":"R1","v":"FR-16(7)(v)-4"}]
[{"$f":"$A$2","v":"PRODUCTION ENERGY ALLOCATED - ELECTRIC COST OF SERVICE"},null,null,null,null,null,null,null,null,null,null,null,null,null,null,null,null,{"$f":"R2","v":"WITNESS RESPONSIBLE:"}]
[{"$f":"case_name","v":"CASE NO: 2019-00271"},null,null,null,null,null,null,null,null,null,null,null,null,null,null,null,null,{"$f":"Witness","v":"JAMES E. ZIOLKOWSKI"}]
[{"$f":"data_filing","v":"DATA: 12 MONTHS ACTUAL  & 0 MONTHS ESTIMATED"},null,null,null,null,null,null,null,null,null,null,null,null,null,null,null,null,{"$f":"\"PAGE \"&Pages-7&\" OF \"&Pages","v":"PAGE 11 OF 18"}]
[{"$f":"type","v":"TYPE OF FILING: \"X\" ORIGINAL   UPDATED    REVISED  "}]
[]
[null,null,null,null,null,{"$f":"F$7","v":"TOTAL"},null,{"$f":"H$7","v":"DS"},{"$f":"I$7","v":"GSFL"},{"$f":"J$7","v":"EH"},{"$f":"K$7","v":"SP"},"DT SEC","DT PRI","DP","TT",null,"OTHER"]
["LINE",null,null,null,null,{"$f":"F$8","v":"PRODUCTION"},{"$f":"G$8","v":"RS"},{"$f":"H$8","v":"SECONDARY"},{"$f":"I$8","v":"SECONDARY"},{"$f":"J$8","v":"SECONDARY"},{"$f":"K$8","v":"SECONDARY"},"SECONDARY","PRIMARY","PRIMARY","TRANSMISSION","LT","WATER",{"$f":"R8","v":"TOTAL"},"ALL"]
["NO.","OTHER TAXES & MISC EXPENSES",null,"ALLO",null,{"$f":"F$9","v":"ENERGY"},{"$f":"G$9","v":"RESIDENTIAL"},{"$f":"H$9","v":"DISTRIBUTION"},{"$f":"I$9","v":"DISTRIBUTION"},{"$f":"J$9","v":"DISTRIBUTION"},{"$f":"K$9","v":"DISTRIBUTION"},"DISTRIBUTION","DISTRIBUTION","DISTRIBUTION","TIME OF DAY","LIGHTING","PUMPING",{"$f":"R9","v":"AT ISSUE"},"OTHER"]
[null,null,"Schedule 8",null,null,null,{"$f":"G$10","v":3},{"$f":"H$10","v":4},{"$f":"I$10","v":5},{"$f":"J$10","v":6},{"$f":"K$10","v":7},8,9,10,11,12,13,null," "]
[1,"TAXES OTHER THAN INC & REV"]
[2," REAL ESTATE & PROPERTY TAX"]
[3,null,{"$f":"'FR-16(7)(v)-1 Functional'!C596","v":"REAL ESTATE & PROPERTY TAX"},{"$f":"'FR-16(7)(v)-1 Functional'!D596","v":"NP29"},null,{"$f":"'FR-16(7)(v)-2 PROD Classified'!H596","v":185129},{"$f":"F596-SUM(H596:Q596)","v":69875},{"$f":"ROUND(F596*VLOOKUP(D596,ALLOCTABLE_Prod_Energy,$H$10,FALSE),0)","v":49859},{"$f":"ROUND(F596*VLOOKUP(D596,ALLOCTABLE_Prod_Energy,$I$10,FALSE),0)","v":280},{"$f":"ROUND(F596*VLOOKUP(D596,ALLOCTABLE_Prod_Energy,$J$10,FALSE),0)","v":792},{"$f":"ROUND(F596*VLOOKUP(D596,ALLOCTABLE_Prod_Energy,$K$10,FALSE),0)","v":13},{"$f":"ROUND(F596*VLOOKUP(D596,ALLOCTABLE_Prod_Energy,$L$10,FALSE),0)","v":30548},{"$f":"ROUND(F596*VLOOKUP(D596,ALLOCTABLE_Prod_Energy,$M$10,FALSE),0)","v":21218},{"$f":"ROUND(F596*VLOOKUP(D596,ALLOCTABLE_Prod_Energy,$N$10,FALSE),0)","v":994},{"$f":"ROUND(F596*VLOOKUP(D596,ALLOCTABLE_Prod_Energy,$O$10,FALSE),0)","v":10723},{"$f":"ROUND(F596*VLOOKUP(D596,ALLOCTABLE_Prod_Energy,$P$10,FALSE),0)","v":807},{"$f":"ROUND(F596*VLOOKUP(D596,ALLOCTABLE_Prod_Energy,$Q$10,FALSE),0)","v":20},{"$f":"SUM(G596:Q596)","v":185129},{"$f":"F596-R596","v":0}]
[4,null,{"$f":"'FR-16(7)(v)-1 Functional'!C597","v":"ANNUALIZE PROPERTY TAX"},{"$f":"'FR-16(7)(v)-1 Functional'!D597","v":"NP29"}," ",{"$f":"'FR-16(7)(v)-2 PROD Classified'!H597","v":0},{"$f":"F597-SUM(H597:Q597)","v":0},{"$f":"ROUND(F597*VLOOKUP(D597,ALLOCTABLE_Prod_Energy,$H$10,FALSE),0)","v":0},{"$f":"ROUND(F597*VLOOKUP(D597,ALLOCTABLE_Prod_Energy,$I$10,FALSE),0)","v":0},{"$f":"ROUND(F597*VLOOKUP(D597,ALLOCTABLE_Prod_Energy,$J$10,FALSE),0)","v":0},{"$f":"ROUND(F597*VLOOKUP(D597,ALLOCTABLE_Prod_Energy,$K$10,FALSE),0)","v":0},{"$f":"ROUND(F597*VLOOKUP(D597,ALLOCTABLE_Prod_Energy,$L$10,FALSE),0)","v":0},{"$f":"ROUND(F597*VLOOKUP(D597,ALLOCTABLE_Prod_Energy,$M$10,FALSE),0)","v":0},{"$f":"ROUND(F597*VLOOKUP(D597,ALLOCTABLE_Prod_Energy,$N$10,FALSE),0)","v":0},{"$f":"ROUND(F597*VLOOKUP(D597,ALLOCTABLE_Prod_Energy,$O$10,FALSE),0)","v":0},{"$f":"ROUND(F597*VLOOKUP(D597,ALLOCTABLE_Prod_Energy,$P$10,FALSE),0)","v":0},{"$f":"ROUND(F597*VLOOKUP(D597,ALLOCTABLE_Prod_Energy,$Q$10,FALSE),0)","v":0},{"$f":"SUM(G597:Q597)","v":0},{"$f":"F597-R597","v":0}]
[5,null,{"$f":"'FR-16(7)(v)-1 Functional'!C598","v":"  TOTAL REAL ESTATE & PROPERTY TAX"},null,null,{"$f":"SUM(F596:F597)","v":185129},{"$f":"SUM(G596:G597)","v":69875},{"$f":"SUM(H596:H597)","v":49859},{"$f":"SUM(I596:I597)","v":280},{"$f":"SUM(J596:J597)","v":792},13,30548,21218,994,10723,{"$f":"SUM(P596:P597)","v":807},{"$f":"SUM($Q$596:$Q$597)","v":20},{"$f":"SUM(R596:R597)","v":185129},{"$f":"SUM(S596:S597)","v":0}]
[6]
[7," MISCELLANEOUS TAXES"]
[8,null,{"$f":"'FR-16(7)(v)-1 Functional'!C601","v":"PAYROLL "},{"$f":"'FR-16(7)(v)-1 Functional'!D601","v":"A315"},null,{"$f":"'FR-16(7)(v)-2 PROD Classified'!H601","v":647716},{"$f":"F601-SUM(H601:Q601)","v":245225},{"$f":"ROUND(F601*VLOOKUP(D601,ALLOCTABLE_Prod_Energy,$H$10,FALSE),0)","v":174864},{"$f":"ROUND(F601*VLOOKUP(D601,ALLOCTABLE_Prod_Energy,$I$10,FALSE),0)","v":978},{"$f":"ROUND(F601*VLOOKUP(D601,ALLOCTABLE_Prod_Energy,$J$10,FALSE),0)","v":2779},{"$f":"ROUND(F601*VLOOKUP(D601,ALLOCTABLE_Prod_Energy,$K$10,FALSE),0)","v":45},{"$f":"ROUND(F601*VLOOKUP(D601,ALLOCTABLE_Prod_Energy,$L$10,FALSE),0)","v":106938},{"$f":"ROUND(F601*VLOOKUP(D601,ALLOCTABLE_Prod_Energy,$M$10,FALSE),0)","v":74455},{"$f":"ROUND(F601*VLOOKUP(D601,ALLOCTABLE_Prod_Energy,$N$10,FALSE),0)","v":3491},{"$f":"ROUND(F601*VLOOKUP(D601,ALLOCTABLE_Prod_Energy,$O$10,FALSE),0)","v":36039},{"$f":"ROUND(F601*VLOOKUP(D601,ALLOCTABLE_Prod_Energy,$P$10,FALSE),0)","v":2831},{"$f":"ROUND(F601*VLOOKUP(D601,ALLOCTABLE_Prod_Energy,$Q$10,FALSE),0)","v":71},{"$f":"SUM(G601:Q601)","v":647716},{"$f":"F601-R601","v":0}]
[9,null,{"$f":"'FR-16(7)(v)-1 Functional'!C602","v":"ELIMINATE DSM "},{"$f":"'FR-16(7)(v)-1 Functional'!D602","v":"A315"},null,{"$f":"'FR-16(7)(v)-2 PROD Classified'!H602","v":-12743},{"$f":"F602-SUM(H602:Q602)","v":-4824},{"$f":"ROUND(F602*VLOOKUP(D602,ALLOCTABLE_Prod_Energy,$H$10,FALSE),0)","v":-3440},{"$f":"ROUND(F602*VLOOKUP(D602,ALLOCTABLE_Prod_Energy,$I$10,FALSE),0)","v":-19},{"$f":"ROUND(F602*VLOOKUP(D602,ALLOCTABLE_Prod_Energy,$J$10,FALSE),0)","v":-55},{"$f":"ROUND(F602*VLOOKUP(D602,ALLOCTABLE_Prod_Energy,$K$10,FALSE),0)","v":-1},{"$f":"ROUND(F602*VLOOKUP(D602,ALLOCTABLE_Prod_Energy,$L$10,FALSE),0)","v":-2104},{"$f":"ROUND(F602*VLOOKUP(D602,ALLOCTABLE_Prod_Energy,$M$10,FALSE),0)","v":-1465},{"$f":"ROUND(F602*VLOOKUP(D602,ALLOCTABLE_Prod_Energy,$N$10,FALSE),0)","v":-69},{"$f":"ROUND(F602*VLOOKUP(D602,ALLOCTABLE_Prod_Energy,$O$10,FALSE),0)","v":-709},{"$f":"ROUND(F602*VLOOKUP(D602,ALLOCTABLE_Prod_Energy,$P$10,FALSE),0)","v":-56},{"$f":"ROUND(F602*VLOOKUP(D602,ALLOCTABLE_Prod_Energy,$Q$10,FALSE),0)","v":-1},{"$f":"SUM(G602:Q602)","v":-12743},{"$f":"F602-R602","v":0}]
[10,null,{"$f":"'FR-16(7)(v)-1 Functional'!C603","v":"FRANCHISE & LICENSE"},{"$f":"'FR-16(7)(v)-1 Functional'!D603","v":"A315"},null,{"$f":"'FR-16(7)(v)-2 PROD Classified'!H603","v":0},{"$f":"F603-SUM(H603:Q603)","v":0},{"$f":"ROUND(F603*VLOOKUP(D603,ALLOCTABLE_Prod_Energy,$H$10,FALSE),0)","v":0},{"$f":"ROUND(F603*VLOOKUP(D603,ALLOCTABLE_Prod_Energy,$I$10,FALSE),0)","v":0},{"$f":"ROUND(F603*VLOOKUP(D603,ALLOCTABLE_Prod_Energy,$J$10,FALSE),0)","v":0},{"$f":"ROUND(F603*VLOOKUP(D603,ALLOCTABLE_Prod_Energy,$K$10,FALSE),0)","v":0},{"$f":"ROUND(F603*VLOOKUP(D603,ALLOCTABLE_Prod_Energy,$L$10,FALSE),0)","v":0},{"$f":"ROUND(F603*VLOOKUP(D603,ALLOCTABLE_Prod_Energy,$M$10,FALSE),0)","v":0},{"$f":"ROUND(F603*VLOOKUP(D603,ALLOCTABLE_Prod_Energy,$N$10,FALSE),0)","v":0},{"$f":"ROUND(F603*VLOOKUP(D603,ALLOCTABLE_Prod_Energy,$O$10,FALSE),0)","v":0},{"$f":"ROUND(F603*VLOOKUP(D603,ALLOCTABLE_Prod_Energy,$P$10,FALSE),0)","v":0},{"$f":"ROUND(F603*VLOOKUP(D603,ALLOCTABLE_Prod_Energy,$Q$10,FALSE),0)","v":0},{"$f":"SUM(G603:Q603)","v":0},{"$f":"F603-R603","v":0}]
[11,null,{"$f":"'FR-16(7)(v)-1 Functional'!C604","v":"ELIMINATE ESM"},{"$f":"'FR-16(7)(v)-1 Functional'!D604","v":"A315"},null,{"$f":"'FR-16(7)(v)-2 PROD Classified'!H604","v":-344555},{"$f":"F604-SUM(H604:Q604)","v":-130448},{"$f":"ROUND(F604*VLOOKUP(D604,ALLOCTABLE_Prod_Energy,$H$10,FALSE),0)","v":-93020},{"$f":"ROUND(F604*VLOOKUP(D604,ALLOCTABLE_Prod_Energy,$I$10,FALSE),0)","v":-520},{"$f":"ROUND(F604*VLOOKUP(D604,ALLOCTABLE_Prod_Energy,$J$10,FALSE),0)","v":-1478},{"$f":"ROUND(F604*VLOOKUP(D604,ALLOCTABLE_Prod_Energy,$K$10,FALSE),0)","v":-24},{"$f":"ROUND(F604*VLOOKUP(D604,ALLOCTABLE_Prod_Energy,$L$10,FALSE),0)","v":-56886},{"$f":"ROUND(F604*VLOOKUP(D604,ALLOCTABLE_Prod_Energy,$M$10,FALSE),0)","v":-39607},{"$f":"ROUND(F604*VLOOKUP(D604,ALLOCTABLE_Prod_Energy,$N$10,FALSE),0)","v":-1857},{"$f":"ROUND(F604*VLOOKUP(D604,ALLOCTABLE_Prod_Energy,$O$10,FALSE),0)","v":-19171},{"$f":"ROUND(F604*VLOOKUP(D604,ALLOCTABLE_Prod_Energy,$P$10,FALSE),0)","v":-1506},{"$f":"ROUND(F604*VLOOKUP(D604,ALLOCTABLE_Prod_Energy,$Q$10,FALSE),0)","v":-38},{"$f":"SUM(G604:Q604)","v":-344555},{"$f":"F604-R604","v":0}]
[12,null,{"$f":"'FR-16(7)(v)-1 Functional'!C605","v":"  TOTAL MISCELLANEOUS TAXES"},null,null,{"$f":"SUM(F601:F604)","v":290418},{"$f":"SUM(G601:G604)","v":109953},{"$f":"SUM(H601:H604)","v":78404},{"$f":"SUM(I601:I604)","v":439},{"$f":"SUM(J601:J604)","v":1246},20,47948,33383,1565,16159,{"$f":"SUM(P601:P604)","v":1269},{"$f":"SUM($Q$601:$Q$604)","v":32},{"$f":"SUM(R601:R604)","v":290418},{"$f":"SUM(S601:S604)","v":0}]
[13]
[14," MISCELLANEOUS EXPENSES"]
[15,null,{"$f":"'FR-16(7)(v)-1 Functional'!C608","v":"PSC MAINT. EXP ON INCREASE"},{"$f":"'FR-16(7)(v)-1 Functional'!D608","v":"K902"},null,{"$f":"'FR-16(7)(v)-2 PROD Classified'!H608","v":30715},{"$f":"F608-SUM(H608:Q608)","v":12731},{"$f":"ROUND(F608*VLOOKUP(D608,ALLOCTABLE_Prod_Energy,$H$10,FALSE),0)","v":8788},{"$f":"ROUND(F608*VLOOKUP(D608,ALLOCTABLE_Prod_Energy,$I$10,FALSE),0)","v":56},{"$f":"ROUND(F608*VLOOKUP(D608,ALLOCTABLE_Prod_Energy,$J$10,FALSE),0)","v":58},{"$f":"ROUND(F608*VLOOKUP(D608,ALLOCTABLE_Prod_Energy,$K$10,FALSE),0)","v":3},{"$f":"ROUND(F608*VLOOKUP(D608,ALLOCTABLE_Prod_Energy,$L$10,FALSE),0)","v":4543},{"$f":"ROUND(F608*VLOOKUP(D608,ALLOCTABLE_Prod_Energy,$M$10,FALSE),0)","v":2900},{"$f":"ROUND(F608*VLOOKUP(D608,ALLOCTABLE_Prod_Energy,$N$10,FALSE),0)","v":134},{"$f":"ROUND(F608*VLOOKUP(D608,ALLOCTABLE_Prod_Energy,$O$10,FALSE),0)","v":1318},{"$f":"ROUND(F608*VLOOKUP(D608,ALLOCTABLE_Prod_Energy,$P$10,FALSE),0)","v":182},{"$f":"ROUND(F608*VLOOKUP(D608,ALLOCTABLE_Prod_Energy,$Q$10,FALSE),0)","v":2},{"$f":"SUM(G608:Q608)","v":30715},{"$f":"F608-R608","v":0}]
[16,null,{"$f":"'FR-16(7)(v)-1 Functional'!C609","v":"RESERVED FOR FUTURE USE"},{"$f":"'FR-16(7)(v)-1 Functional'!D609","v":"K902"},null,{"$f":"'FR-16(7)(v)-2 PROD Classified'!H609","v":0},{"$f":"F609-SUM(H609:Q609)","v":0},{"$f":"ROUND(F609*VLOOKUP(D609,ALLOCTABLE_Prod_Energy,$H$10,FALSE),0)","v":0},{"$f":"ROUND(F609*VLOOKUP(D609,ALLOCTABLE_Prod_Energy,$I$10,FALSE),0)","v":0},{"$f":"ROUND(F609*VLOOKUP(D609,ALLOCTABLE_Prod_Energy,$J$10,FALSE),0)","v":0},{"$f":"ROUND(F609*VLOOKUP(D609,ALLOCTABLE_Prod_Energy,$K$10,FALSE),0)","v":0},{"$f":"ROUND(F609*VLOOKUP(D609,ALLOCTABLE_Prod_Energy,$L$10,FALSE),0)","v":0},{"$f":"ROUND(F609*VLOOKUP(D609,ALLOCTABLE_Prod_Energy,$M$10,FALSE),0)","v":0},{"$f":"ROUND(F609*VLOOKUP(D609,ALLOCTABLE_Prod_Energy,$N$10,FALSE),0)","v":0},{"$f":"ROUND(F609*VLOOKUP(D609,ALLOCTABLE_Prod_Energy,$O$10,FALSE),0)","v":0},{"$f":"ROUND(F609*VLOOKUP(D609,ALLOCTABLE_Prod_Energy,$P$10,FALSE),0)","v":0},{"$f":"ROUND(F609*VLOOKUP(D609,ALLOCTABLE_Prod_Energy,$Q$10,FALSE),0)","v":0},{"$f":"SUM(G609:Q609)","v":0},{"$f":"F609-R609","v":0}]
[17,null,{"$f":"'FR-16(7)(v)-1 Functional'!C610","v":"  TOTAL MISCELLANEOUS EXPENSES"},null,null,{"$f":"SUM(F608:F609)","v":30715},{"$f":"SUM(G608:G609)","v":12731},{"$f":"SUM(H608:H609)","v":8788},{"$f":"SUM(I608:I609)","v":56},58,3,4543,2900,134,1318,{"$f":"SUM(P608:P609)","v":182},{"$f":"SUM($Q$608:$Q$609)","v":2},{"$f":"SUM(R608:R609)","v":30715},{"$f":"SUM(S608:S609)","v":0}]
[18]
[19,"TOTAL OTHER TAX & MISC EXPENSE",null,null," ",{"$f":"F605+F598+F610","v":506262},{"$f":"G605+G598+G610","v":192559},{"$f":"H605+H598+H610","v":137051},{"$f":"I605+I598+I610","v":775},{"$f":"J605+J598+J610","v":2096},36,83039,57501,2693,28200,2258,{"$f":"$Q$605+$Q$598+$Q$610","v":54},{"$f":"R605+R598+R610","v":506262},{"$f":"S605+S598+S610","v":0}]
[20]
[21,"PRELIMINARY SUMMARY"]
[22,null,{"$f":"'FR-16(7)(v)-1 Functional'!C615","v":"TOTAL O&M EXPENSE"},null,null,{"$f":"F549","v":147821325},{"$f":"G549","v":55963941},{"$f":"H549","v":39907982},{"$f":"I549","v":223210},{"$f":"J549","v":633748},10348,24405654,16992283,796946,8224374,646578,{"$f":"Q549","v":16261},{"$f":"R549","v":147821325},{"$f":"S549","v":0}]
[23,null,{"$f":"'FR-16(7)(v)-1 Functional'!C616","v":"TOTAL DEPRECIATION EXPENSE"},null,null,{"$f":"F582","v":1866822},{"$f":"G582","v":704631},{"$f":"H582","v":502754},{"$f":"I582","v":2819},{"$f":"J582","v":7990},131,308044,213957,10025,108127,8139,{"$f":"Q582","v":205},{"$f":"R582","v":1866822},{"$f":"S582","v":0}]
[24,null,{"$f":"'FR-16(7)(v)-1 Functional'!C617","v":"TOTAL OTHER TAX & MISC EXPENSE"},null,null,{"$f":"F612","v":506262},{"$f":"G612","v":192559},{"$f":"H612","v":137051},{"$f":"I612","v":775},{"$f":"J612","v":2096},36,83039,57501,2693,28200,2258,{"$f":"$Q$612","v":54},{"$f":"R612","v":506262},{"$f":"S612","v":0}]
[25,null,{"$f":"'FR-16(7)(v)-1 Functional'!C618","v":"  TOTAL OPER EXP EXCL INCOME & REV TAX"},null,null,{"$f":"SUM(F615:F617)","v":150194409},{"$f":"SUM(G615:G617)","v":56861131},{"$f":"SUM(H615:H617)","v":40547787},{"$f":"SUM(I615:I617)","v":226804},643834,10515,24796737,17263741,809664,8360701,{"$f":"SUM(P615:P617)","v":656975},{"$f":"SUM($Q$615:$Q$617)","v":16520},{"$f":"SUM(R615:R617)","v":150194409},{"$f":"SUM(S615:S617)","v":0}]
[]
[{"$f":"co_name","v":"DUKE ENERGY KENTUCKY, INC."},null,null,null,null,null,null,null,null,null,null,null,null,null,null,null,null,{"$f":"R1","v":"FR-16(7)(v)-4"}]
[{"$f":"$A$2","v":"PRODUCTION ENERGY ALLOCATED - ELECTRIC COST OF SERVICE"},null,null,null,null,null,null,null,null,null,null,null,null,null,null,null,null,{"$f":"R2","v":"WITNESS RESPONSIBLE:"}]
[{"$f":"case_name","v":"CASE NO: 2019-00271"},null,null,null,null,null,null,null,null,null,null,null,null,null,null,null,null,{"$f":"Witness","v":"JAMES E. ZIOLKOWSKI"}]
[{"$f":"data_filing","v":"DATA: 12 MONTHS ACTUAL  & 0 MONTHS ESTIMATED"},null,null,null,null,null,null,null,null,null,null,null,null,null,null,null,null,{"$f":"\"PAGE \"&Pages-6&\" OF \"&Pages","v":"PAGE 12 OF 18"}]
[{"$f":"type","v":"TYPE OF FILING: \"X\" ORIGINAL   UPDATED    REVISED  "}]
[]
[null,null,null,null,null,{"$f":"F$7","v":"TOTAL"},null,{"$f":"H$7","v":"DS"},{"$f":"I$7","v":"GSFL"},{"$f":"J$7","v":"EH"},{"$f":"K$7","v":"SP"},"DT SEC","DT PRI","DP","TT",null,"OTHER"]
["LINE",null,null,null,null,{"$f":"F$8","v":"PRODUCTION"},{"$f":"G$8","v":"RS"},{"$f":"H$8","v":"SECONDARY"},{"$f":"I$8","v":"SECONDARY"},{"$f":"J$8","v":"SECONDARY"},{"$f":"K$8","v":"SECONDARY"},"SECONDARY","PRIMARY","PRIMARY","TRANSMISSION","LT","WATER",{"$f":"R8","v":"TOTAL"},"ALL"]
["NO.","FEDERAL INCOME TAX BASED ON RETURN",null,"ALLO",null,{"$f":"F$9","v":"ENERGY"},{"$f":"G$9","v":"RESIDENTIAL"},{"$f":"H$9","v":"DISTRIBUTION"},{"$f":"I$9","v":"DISTRIBUTION"},{"$f":"J$9","v":"DISTRIBUTION"},{"$f":"K$9","v":"DISTRIBUTION"},"DISTRIBUTION","DISTRIBUTION","DISTRIBUTION","TIME OF DAY","LIGHTING","PUMPING",{"$f":"R9","v":"AT ISSUE"},"OTHER"]
[null,null,"Schedule 9",null,null,null,{"$f":"G$10","v":3},{"$f":"H$10","v":4},{"$f":"I$10","v":5},{"$f":"J$10","v":6},{"$f":"K$10","v":7},8,9,10,11,12,13,null," "]
[1,"FEDERAL INCOME TAX DEDUCTIONS"]
[2," AUTOMATIC INTEREST CALCULATION",null,null,null," "]
[3,null,{"$f":"'FR-16(7)(v)-1 Functional'!C632","v":"AUTO PROC INTEREST DED"},{"$f":"'FR-16(7)(v)-1 Functional'!D632","v":"RB99"},null,{"$f":"'FR-16(7)(v)-2 PROD Classified'!H632","v":629207},{"$f":"F632-SUM(H632:Q632)","v":237381},{"$f":"ROUND(F632*VLOOKUP(D632,ALLOCTABLE_Prod_Energy,$H$10,FALSE),0)","v":169389},{"$f":"ROUND(F632*VLOOKUP(D632,ALLOCTABLE_Prod_Energy,$I$10,FALSE),0)","v":950},{"$f":"ROUND(F632*VLOOKUP(D632,ALLOCTABLE_Prod_Energy,$J$10,FALSE),0)","v":2693},{"$f":"ROUND(F632*VLOOKUP(D632,ALLOCTABLE_Prod_Energy,$K$10,FALSE),0)","v":44},{"$f":"ROUND(F632*VLOOKUP(D632,ALLOCTABLE_Prod_Energy,$L$10,FALSE),0)","v":103813},{"$f":"ROUND(F632*VLOOKUP(D632,ALLOCTABLE_Prod_Energy,$M$10,FALSE),0)","v":72076},{"$f":"ROUND(F632*VLOOKUP(D632,ALLOCTABLE_Prod_Energy,$N$10,FALSE),0)","v":3379},{"$f":"ROUND(F632*VLOOKUP(D632,ALLOCTABLE_Prod_Energy,$O$10,FALSE),0)","v":36670},{"$f":"ROUND(F632*VLOOKUP(D632,ALLOCTABLE_Prod_Energy,$P$10,FALSE),0)","v":2743},{"$f":"ROUND(F632*VLOOKUP(D632,ALLOCTABLE_Prod_Energy,$Q$10,FALSE),0)","v":69},{"$f":"SUM(G632:Q632)","v":629207},{"$f":"F632-R632","v":0}]
[4,null,{"$f":"'FR-16(7)(v)-1 Functional'!C633","v":"  TOTAL INTEREST EXPENSE"},null,null,{"$f":"F632","v":629207},{"$f":"G632","v":237381},{"$f":"H632","v":169389},{"$f":"I632","v":950},{"$f":"J632","v":2693},44,103813,72076,3379,36670,2743,{"$f":"$Q$632","v":69},{"$f":"R632","v":629207},{"$f":"S632","v":0}]
[5]
[6," OTHER DEDUCTIONS"]
[7,null,{"$f":"'FR-16(7)(v)-1 Functional'!C636","v":"DEPREC EXCESS TAX-BOOK"},{"$f":"'FR-16(7)(v)-1 Functional'!D636","v":"DE49"},null,{"$f":"'FR-16(7)(v)-2 PROD Classified'!H636","v":-442749},{"$f":"F636-SUM(H636:Q636)","v":-167115},{"$f":"ROUND(F636*VLOOKUP(D636,ALLOCTABLE_Prod_Energy,$H$10,FALSE),0)","v":-119237},{"$f":"ROUND(F636*VLOOKUP(D636,ALLOCTABLE_Prod_Energy,$I$10,FALSE),0)","v":-669},{"$f":"ROUND(F636*VLOOKUP(D636,ALLOCTABLE_Prod_Energy,$J$10,FALSE),0)","v":-1895},{"$f":"ROUND(F636*VLOOKUP(D636,ALLOCTABLE_Prod_Energy,$K$10,FALSE),0)","v":-31},{"$f":"ROUND(F636*VLOOKUP(D636,ALLOCTABLE_Prod_Energy,$L$10,FALSE),0)","v":-73058},{"$f":"ROUND(F636*VLOOKUP(D636,ALLOCTABLE_Prod_Energy,$M$10,FALSE),0)","v":-50743},{"$f":"ROUND(F636*VLOOKUP(D636,ALLOCTABLE_Prod_Energy,$N$10,FALSE),0)","v":-2378},{"$f":"ROUND(F636*VLOOKUP(D636,ALLOCTABLE_Prod_Energy,$O$10,FALSE),0)","v":-25644},{"$f":"ROUND(F636*VLOOKUP(D636,ALLOCTABLE_Prod_Energy,$P$10,FALSE),0)","v":-1930},{"$f":"ROUND(F636*VLOOKUP(D636,ALLOCTABLE_Prod_Energy,$Q$10,FALSE),0)","v":-49},{"$f":"SUM(G636:Q636)","v":-442749},{"$f":"F636-R636","v":0}]
[8,null,{"$f":"'FR-16(7)(v)-1 Functional'!C637","v":"PERMANENT DIFFERENCES"},{"$f":"'FR-16(7)(v)-1 Functional'!D637","v":"A357"},null,{"$f":"'FR-16(7)(v)-2 PROD Classified'!H637","v":-144948},{"$f":"F637-SUM(H637:Q637)","v":-54877},{"$f":"ROUND(F637*VLOOKUP(D637,ALLOCTABLE_Prod_Energy,$H$10,FALSE),0)","v":-39132},{"$f":"ROUND(F637*VLOOKUP(D637,ALLOCTABLE_Prod_Energy,$I$10,FALSE),0)","v":-219},{"$f":"ROUND(F637*VLOOKUP(D637,ALLOCTABLE_Prod_Energy,$J$10,FALSE),0)","v":-622},{"$f":"ROUND(F637*VLOOKUP(D637,ALLOCTABLE_Prod_Energy,$K$10,FALSE),0)","v":-10},{"$f":"ROUND(F637*VLOOKUP(D637,ALLOCTABLE_Prod_Energy,$L$10,FALSE),0)","v":-23931},{"$f":"ROUND(F637*VLOOKUP(D637,ALLOCTABLE_Prod_Energy,$M$10,FALSE),0)","v":-16662},{"$f":"ROUND(F637*VLOOKUP(D637,ALLOCTABLE_Prod_Energy,$N$10,FALSE),0)","v":-781},{"$f":"ROUND(F637*VLOOKUP(D637,ALLOCTABLE_Prod_Energy,$O$10,FALSE),0)","v":-8065},{"$f":"ROUND(F637*VLOOKUP(D637,ALLOCTABLE_Prod_Energy,$P$10,FALSE),0)","v":-633},{"$f":"ROUND(F637*VLOOKUP(D637,ALLOCTABLE_Prod_Energy,$Q$10,FALSE),0)","v":-16},{"$f":"SUM(G637:Q637)","v":-144948},{"$f":"F637-R637","v":0}]
[9,null,{"$f":"'FR-16(7)(v)-1 Functional'!C638","v":"TEMPORARY DIFFERENCES"},{"$f":"'FR-16(7)(v)-1 Functional'!D638","v":"DE49"},null,{"$f":"'FR-16(7)(v)-2 PROD Classified'!H638","v":2701590},{"$f":"F638-SUM(H638:Q638)","v":1019716},{"$f":"ROUND(F638*VLOOKUP(D638,ALLOCTABLE_Prod_Energy,$H$10,FALSE),0)","v":727565},{"$f":"ROUND(F638*VLOOKUP(D638,ALLOCTABLE_Prod_Energy,$I$10,FALSE),0)","v":4079},{"$f":"ROUND(F638*VLOOKUP(D638,ALLOCTABLE_Prod_Energy,$J$10,FALSE),0)","v":11563},{"$f":"ROUND(F638*VLOOKUP(D638,ALLOCTABLE_Prod_Energy,$K$10,FALSE),0)","v":189},{"$f":"ROUND(F638*VLOOKUP(D638,ALLOCTABLE_Prod_Energy,$L$10,FALSE),0)","v":445789},{"$f":"ROUND(F638*VLOOKUP(D638,ALLOCTABLE_Prod_Energy,$M$10,FALSE),0)","v":309629},{"$f":"ROUND(F638*VLOOKUP(D638,ALLOCTABLE_Prod_Energy,$N$10,FALSE),0)","v":14508},{"$f":"ROUND(F638*VLOOKUP(D638,ALLOCTABLE_Prod_Energy,$O$10,FALSE),0)","v":156476},{"$f":"ROUND(F638*VLOOKUP(D638,ALLOCTABLE_Prod_Energy,$P$10,FALSE),0)","v":11779},{"$f":"ROUND(F638*VLOOKUP(D638,ALLOCTABLE_Prod_Energy,$Q$10,FALSE),0)","v":297},{"$f":"SUM(G638:Q638)","v":2701590},{"$f":"F638-R638","v":0}]
[10,null,{"$f":"'FR-16(7)(v)-1 Functional'!C639","v":"  TOTAL OTHER DEDUCTIONS"},null,null,{"$f":"SUM(F636:F638)","v":2113893},{"$f":"SUM(G636:G638)","v":797724},{"$f":"SUM(H636:H638)","v":569196},{"$f":"SUM(I636:I638)","v":3191},{"$f":"SUM(J636:J638)","v":9046},148,348800,242224,11349,122767,9216,{"$f":"SUM($Q$636:$Q$638)","v":232},{"$f":"SUM(R636:R638)","v":2113893},{"$f":"SUM(S636:S638)","v":0}]
[11]
[12,"NET DEDUCTIONS AND ADDITIONS",null,null,null,{"$f":"F639+F633","v":2743100},{"$f":"G639+G633","v":1035105},{"$f":"H639+H633","v":738585},{"$f":"I639+I633","v":4141},{"$f":"J639+J633","v":11739},192,452613,314300,14728,159437,11959,{"$f":"$Q$639+$Q$633","v":301},{"$f":"R639+R633","v":2743100},{"$f":"S639+S633","v":0}]
[13]
[14," FED DEFERRED INCOME TAX (410 & 411)"]
[15,null,{"$f":"'FR-16(7)(v)-1 Functional'!C644","v":"DEFERRED INCOME TAXES - NET"},{"$f":"'FR-16(7)(v)-1 Functional'!D644","v":"OM39"},null,{"$f":"'FR-16(7)(v)-2 PROD Classified'!H644","v":9839527},{"$f":"F644-SUM(H644:Q644)","v":3725244},{"$f":"ROUND(F644*VLOOKUP(D644,ALLOCTABLE_Prod_Energy,$H$10,FALSE),0)","v":2656377},{"$f":"ROUND(F644*VLOOKUP(D644,ALLOCTABLE_Prod_Energy,$I$10,FALSE),0)","v":14858},{"$f":"ROUND(F644*VLOOKUP(D644,ALLOCTABLE_Prod_Energy,$J$10,FALSE),0)","v":42212},{"$f":"ROUND(F644*VLOOKUP(D644,ALLOCTABLE_Prod_Energy,$K$10,FALSE),0)","v":689},{"$f":"ROUND(F644*VLOOKUP(D644,ALLOCTABLE_Prod_Energy,$L$10,FALSE),0)","v":1624506},{"$f":"ROUND(F644*VLOOKUP(D644,ALLOCTABLE_Prod_Energy,$M$10,FALSE),0)","v":1131054},{"$f":"ROUND(F644*VLOOKUP(D644,ALLOCTABLE_Prod_Energy,$N$10,FALSE),0)","v":53035},{"$f":"ROUND(F644*VLOOKUP(D644,ALLOCTABLE_Prod_Energy,$O$10,FALSE),0)","v":547471},{"$f":"ROUND(F644*VLOOKUP(D644,ALLOCTABLE_Prod_Energy,$P$10,FALSE),0)","v":42999},{"$f":"ROUND(F644*VLOOKUP(D644,ALLOCTABLE_Prod_Energy,$Q$10,FALSE),0)","v":1082},{"$f":"SUM(G644:Q644)","v":9839527},{"$f":"F644-R644","v":0}]
[16,null,{"$f":"'FR-16(7)(v)-1 Functional'!C645","v":"AMORT OF DEFERRED MERGER COST"},{"$f":"'FR-16(7)(v)-1 Functional'!D645","v":"A357"},null,{"$f":"'FR-16(7)(v)-2 PROD Classified'!H645","v":0},{"$f":"F645-SUM(H645:Q645)","v":0},{"$f":"ROUND(F645*VLOOKUP(D645,ALLOCTABLE_Prod_Energy,$H$10,FALSE),0)","v":0},{"$f":"ROUND(F645*VLOOKUP(D645,ALLOCTABLE_Prod_Energy,$I$10,FALSE),0)","v":0},{"$f":"ROUND(F645*VLOOKUP(D645,ALLOCTABLE_Prod_Energy,$J$10,FALSE),0)","v":0},{"$f":"ROUND(F645*VLOOKUP(D645,ALLOCTABLE_Prod_Energy,$K$10,FALSE),0)","v":0},{"$f":"ROUND(F645*VLOOKUP(D645,ALLOCTABLE_Prod_Energy,$L$10,FALSE),0)","v":0},{"$f":"ROUND(F645*VLOOKUP(D645,ALLOCTABLE_Prod_Energy,$M$10,FALSE),0)","v":0},{"$f":"ROUND(F645*VLOOKUP(D645,ALLOCTABLE_Prod_Energy,$N$10,FALSE),0)","v":0},{"$f":"ROUND(F645*VLOOKUP(D645,ALLOCTABLE_Prod_Energy,$O$10,FALSE),0)","v":0},{"$f":"ROUND(F645*VLOOKUP(D645,ALLOCTABLE_Prod_Energy,$P$10,FALSE),0)","v":0},{"$f":"ROUND(F645*VLOOKUP(D645,ALLOCTABLE_Prod_Energy,$Q$10,FALSE),0)","v":0},{"$f":"SUM(G645:Q645)","v":0},{"$f":"F645-R645","v":0}]
[17,null,{"$f":"'FR-16(7)(v)-1 Functional'!C646","v":"DIT ADJUSTMENT - S/L DEPRECIATION"},{"$f":"'FR-16(7)(v)-1 Functional'!D646","v":"DE49"},null,{"$f":"'FR-16(7)(v)-2 PROD Classified'!H646","v":0},{"$f":"F646-SUM(H646:Q646)","v":0},{"$f":"ROUND(F646*VLOOKUP(D646,ALLOCTABLE_Prod_Energy,$H$10,FALSE),0)","v":0},{"$f":"ROUND(F646*VLOOKUP(D646,ALLOCTABLE_Prod_Energy,$I$10,FALSE),0)","v":0},{"$f":"ROUND(F646*VLOOKUP(D646,ALLOCTABLE_Prod_Energy,$J$10,FALSE),0)","v":0},{"$f":"ROUND(F646*VLOOKUP(D646,ALLOCTABLE_Prod_Energy,$K$10,FALSE),0)","v":0},{"$f":"ROUND(F646*VLOOKUP(D646,ALLOCTABLE_Prod_Energy,$L$10,FALSE),0)","v":0},{"$f":"ROUND(F646*VLOOKUP(D646,ALLOCTABLE_Prod_Energy,$M$10,FALSE),0)","v":0},{"$f":"ROUND(F646*VLOOKUP(D646,ALLOCTABLE_Prod_Energy,$N$10,FALSE),0)","v":0},{"$f":"ROUND(F646*VLOOKUP(D646,ALLOCTABLE_Prod_Energy,$O$10,FALSE),0)","v":0},{"$f":"ROUND(F646*VLOOKUP(D646,ALLOCTABLE_Prod_Energy,$P$10,FALSE),0)","v":0},{"$f":"ROUND(F646*VLOOKUP(D646,ALLOCTABLE_Prod_Energy,$Q$10,FALSE),0)","v":0},{"$f":"SUM(G646:Q646)","v":0},{"$f":"F646-R646","v":0}]
[18,null,{"$f":"'FR-16(7)(v)-1 Functional'!C647","v":"DIT ADJUSTMENT - ARAM"},{"$f":"'FR-16(7)(v)-1 Functional'!D647","v":"K201"},null,{"$f":"'FR-16(7)(v)-2 PROD Classified'!H647","v":0},{"$f":"F647-SUM(H647:Q647)","v":0},{"$f":"ROUND(F647*VLOOKUP(D647,ALLOCTABLE_Prod_Energy,$H$10,FALSE),0)","v":0},{"$f":"ROUND(F647*VLOOKUP(D647,ALLOCTABLE_Prod_Energy,$I$10,FALSE),0)","v":0},{"$f":"ROUND(F647*VLOOKUP(D647,ALLOCTABLE_Prod_Energy,$J$10,FALSE),0)","v":0},{"$f":"ROUND(F647*VLOOKUP(D647,ALLOCTABLE_Prod_Energy,$K$10,FALSE),0)","v":0},{"$f":"ROUND(F647*VLOOKUP(D647,ALLOCTABLE_Prod_Energy,$L$10,FALSE),0)","v":0},{"$f":"ROUND(F647*VLOOKUP(D647,ALLOCTABLE_Prod_Energy,$M$10,FALSE),0)","v":0},{"$f":"ROUND(F647*VLOOKUP(D647,ALLOCTABLE_Prod_Energy,$N$10,FALSE),0)","v":0},{"$f":"ROUND(F647*VLOOKUP(D647,ALLOCTABLE_Prod_Energy,$O$10,FALSE),0)","v":0},{"$f":"ROUND(F647*VLOOKUP(D647,ALLOCTABLE_Prod_Energy,$P$10,FALSE),0)","v":0},{"$f":"ROUND(F647*VLOOKUP(D647,ALLOCTABLE_Prod_Energy,$Q$10,FALSE),0)","v":0},{"$f":"SUM(G647:Q647)","v":0},{"$f":"F647-R647","v":0}]
[19,null,{"$f":"'FR-16(7)(v)-1 Functional'!C648","v":"DIT ADJUSTMENT - AMORT OF EXCESS DEF TAXES"},{"$f":"'FR-16(7)(v)-1 Functional'!D648","v":"A357"},null,{"$f":"'FR-16(7)(v)-2 PROD Classified'!H648","v":-1271069},{"$f":"F648-SUM(H648:Q648)","v":-481228},{"$f":"ROUND(F648*VLOOKUP(D648,ALLOCTABLE_Prod_Energy,$H$10,FALSE),0)","v":-343150},{"$f":"ROUND(F648*VLOOKUP(D648,ALLOCTABLE_Prod_Energy,$I$10,FALSE),0)","v":-1919},{"$f":"ROUND(F648*VLOOKUP(D648,ALLOCTABLE_Prod_Energy,$J$10,FALSE),0)","v":-5453},{"$f":"ROUND(F648*VLOOKUP(D648,ALLOCTABLE_Prod_Energy,$K$10,FALSE),0)","v":-89},{"$f":"ROUND(F648*VLOOKUP(D648,ALLOCTABLE_Prod_Energy,$L$10,FALSE),0)","v":-209853},{"$f":"ROUND(F648*VLOOKUP(D648,ALLOCTABLE_Prod_Energy,$M$10,FALSE),0)","v":-146109},{"$f":"ROUND(F648*VLOOKUP(D648,ALLOCTABLE_Prod_Energy,$N$10,FALSE),0)","v":-6851},{"$f":"ROUND(F648*VLOOKUP(D648,ALLOCTABLE_Prod_Energy,$O$10,FALSE),0)","v":-70722},{"$f":"ROUND(F648*VLOOKUP(D648,ALLOCTABLE_Prod_Energy,$P$10,FALSE),0)","v":-5555},{"$f":"ROUND(F648*VLOOKUP(D648,ALLOCTABLE_Prod_Energy,$Q$10,FALSE),0)","v":-140},{"$f":"SUM(G648:Q648)","v":-1271069},{"$f":"F648-R648","v":0}]
[20,null,{"$f":"'FR-16(7)(v)-1 Functional'!C649","v":"  TOTAL FED DEF IT (410 & 411)"},null,null,{"$f":"SUM(F644:F648)","v":8568458},{"$f":"SUM(G644:G648)","v":3244016},{"$f":"SUM(H644:H648)","v":2313227},{"$f":"SUM(I644:I648)","v":12939},{"$f":"SUM(J644:J648)","v":36759},600,1414653,984945,46184,476749,37444,{"$f":"SUM($Q$644:$Q$648)","v":942},{"$f":"SUM(R644:R648)","v":8568458},{"$f":"SUM(S644:S648)","v":0}]
[21]
[22," AMORT INV TAX CREDIT"]
[23,null,{"$f":"'FR-16(7)(v)-1 Functional'!C652","v":"AMORTIZE ITC"},{"$f":"'FR-16(7)(v)-1 Functional'!D652","v":"NP29"},null,{"$f":"'FR-16(7)(v)-2 PROD Classified'!H652","v":6},{"$f":"F652-SUM(H652:Q652)","v":2},{"$f":"ROUND(F652*VLOOKUP(D652,ALLOCTABLE_Prod_Energy,$H$10,FALSE),0)","v":2},{"$f":"ROUND(F652*VLOOKUP(D652,ALLOCTABLE_Prod_Energy,$I$10,FALSE),0)","v":0},{"$f":"ROUND(F652*VLOOKUP(D652,ALLOCTABLE_Prod_Energy,$J$10,FALSE),0)","v":0},{"$f":"ROUND(F652*VLOOKUP(D652,ALLOCTABLE_Prod_Energy,$K$10,FALSE),0)","v":0},{"$f":"ROUND(F652*VLOOKUP(D652,ALLOCTABLE_Prod_Energy,$L$10,FALSE),0)","v":1},{"$f":"ROUND(F652*VLOOKUP(D652,ALLOCTABLE_Prod_Energy,$M$10,FALSE),0)","v":1},{"$f":"ROUND(F652*VLOOKUP(D652,ALLOCTABLE_Prod_Energy,$N$10,FALSE),0)","v":0},{"$f":"ROUND(F652*VLOOKUP(D652,ALLOCTABLE_Prod_Energy,$O$10,FALSE),0)","v":0},{"$f":"ROUND(F652*VLOOKUP(D652,ALLOCTABLE_Prod_Energy,$P$10,FALSE),0)","v":0},{"$f":"ROUND(F652*VLOOKUP(D652,ALLOCTABLE_Prod_Energy,$Q$10,FALSE),0)","v":0},{"$f":"SUM(G652:Q652)","v":6},{"$f":"F652-R652","v":0}]
[24,null,{"$f":"'FR-16(7)(v)-1 Functional'!C653","v":"  TOTAL AMORTIZED ITC"},null,null,{"$f":"SUM(F652:F652)","v":6},{"$f":"SUM(G652:G652)","v":2},{"$f":"SUM(H652:H652)","v":2},{"$f":"SUM(I652:I652)","v":0},{"$f":"SUM(J652:J652)","v":0},0,1,1,0,0,0,{"$f":"SUM($Q$652:$Q$652)","v":0},{"$f":"SUM(R652:R652)","v":6},{"$f":"SUM(S652:S652)","v":0}]
[25]
[26," OTHER FEDERAL TAX CREDITS"]
[27,null,{"$f":"'FR-16(7)(v)-1 Functional'!C656","v":"FUEL TAX CREDIT"},{"$f":"'FR-16(7)(v)-1 Functional'!D656","v":"K301"},null,{"$f":"'FR-16(7)(v)-2 PROD Classified'!H656","v":0},{"$f":"F656-SUM(H656:Q656)","v":0},{"$f":"ROUND(F656*VLOOKUP(D656,ALLOCTABLE_Prod_Energy,$H$10,FALSE),0)","v":0},{"$f":"ROUND(F656*VLOOKUP(D656,ALLOCTABLE_Prod_Energy,$I$10,FALSE),0)","v":0},{"$f":"ROUND(F656*VLOOKUP(D656,ALLOCTABLE_Prod_Energy,$J$10,FALSE),0)","v":0},{"$f":"ROUND(F656*VLOOKUP(D656,ALLOCTABLE_Prod_Energy,$K$10,FALSE),0)","v":0},{"$f":"ROUND(F656*VLOOKUP(D656,ALLOCTABLE_Prod_Energy,$L$10,FALSE),0)","v":0},{"$f":"ROUND(F656*VLOOKUP(D656,ALLOCTABLE_Prod_Energy,$M$10,FALSE),0)","v":0},{"$f":"ROUND(F656*VLOOKUP(D656,ALLOCTABLE_Prod_Energy,$N$10,FALSE),0)","v":0},{"$f":"ROUND(F656*VLOOKUP(D656,ALLOCTABLE_Prod_Energy,$O$10,FALSE),0)","v":0},{"$f":"ROUND(F656*VLOOKUP(D656,ALLOCTABLE_Prod_Energy,$P$10,FALSE),0)","v":0},{"$f":"ROUND(F656*VLOOKUP(D656,ALLOCTABLE_Prod_Energy,$Q$10,FALSE),0)","v":0},{"$f":"SUM(G656:Q656)","v":0},{"$f":"F656-R656","v":0}]
[28,null,{"$f":"'FR-16(7)(v)-1 Functional'!C657","v":"R&D CREDIT - SECTION 41"},{"$f":"'FR-16(7)(v)-1 Functional'!D657","v":"A315"},null,{"$f":"'FR-16(7)(v)-2 PROD Classified'!H657","v":0},{"$f":"F657-SUM(H657:Q657)","v":0},{"$f":"ROUND(F657*VLOOKUP(D657,ALLOCTABLE_Prod_Energy,$H$10,FALSE),0)","v":0},{"$f":"ROUND(F657*VLOOKUP(D657,ALLOCTABLE_Prod_Energy,$I$10,FALSE),0)","v":0},{"$f":"ROUND(F657*VLOOKUP(D657,ALLOCTABLE_Prod_Energy,$J$10,FALSE),0)","v":0},{"$f":"ROUND(F657*VLOOKUP(D657,ALLOCTABLE_Prod_Energy,$K$10,FALSE),0)","v":0},{"$f":"ROUND(F657*VLOOKUP(D657,ALLOCTABLE_Prod_Energy,$L$10,FALSE),0)","v":0},{"$f":"ROUND(F657*VLOOKUP(D657,ALLOCTABLE_Prod_Energy,$M$10,FALSE),0)","v":0},{"$f":"ROUND(F657*VLOOKUP(D657,ALLOCTABLE_Prod_Energy,$N$10,FALSE),0)","v":0},{"$f":"ROUND(F657*VLOOKUP(D657,ALLOCTABLE_Prod_Energy,$O$10,FALSE),0)","v":0},{"$f":"ROUND(F657*VLOOKUP(D657,ALLOCTABLE_Prod_Energy,$P$10,FALSE),0)","v":0},{"$f":"ROUND(F657*VLOOKUP(D657,ALLOCTABLE_Prod_Energy,$Q$10,FALSE),0)","v":0},{"$f":"SUM(G657:Q657)","v":0},{"$f":"F657-R657","v":0}]
[29,null,"  TOTAL OTHER FEDERAL TAX CREDITS",null,null,{"$f":"SUM(F656:F657)","v":0},{"$f":"SUM(G656:G657)","v":0},{"$f":"SUM(H656:H657)","v":0},{"$f":"SUM(I656:I657)","v":0},{"$f":"SUM(J656:J657)","v":0},0,0,0,0,0,0,{"$f":"SUM($Q$656:$Q$657)","v":0},{"$f":"SUM(R656:R657)","v":0},{"$f":"SUM(S656:S657)","v":0}]
[30]
[31,"PRELIMINARY SUMMARY"]
[32,null,{"$f":"'FR-16(7)(v)-1 Functional'!C661","v":"TOTAL FED DEF IT (410 & 411)"},null,null,{"$f":"F649","v":8568458},{"$f":"G649","v":3244016},{"$f":"H649","v":2313227},{"$f":"I649","v":12939},{"$f":"J649","v":36759},600,1414653,984945,46184,476749,37444,{"$f":"$Q$649","v":942},{"$f":"R649","v":8568458},{"$f":"S649","v":0}]
[33,null,{"$f":"'FR-16(7)(v)-1 Functional'!C662","v":"TOTAL AMORTIZED ITC & OTHER FEDERAL TAX CREDITS"},null,null,{"$f":"-F653-F658","v":-6},{"$f":"-G653-G658","v":-2},-2,0,{"$f":"-J653-J658","v":0},0,-1,-1,0,0,0,0,-6,0]
[34,null,{"$f":"'FR-16(7)(v)-1 Functional'!C663","v":"  TOTAL FEDERAL TAX ADJUSTMENTS"},null,null,{"$f":"SUM(F661:F662)","v":8568452},{"$f":"SUM(G661:G662)","v":3244014},{"$f":"SUM(H661:H662)","v":2313225},{"$f":"SUM(I661:I662)","v":12939},{"$f":"SUM(J661:J662)","v":36759},600,1414652,984944,46184,476749,37444,{"$f":"SUM($Q$661:$Q$662)","v":942},{"$f":"SUM(R661:R662)","v":8568452},{"$f":"SUM(S661:S662)","v":0}]
[35]
[36,"FEDERAL INCOME TAX COMPUTATION"]
[37,null,"RETURN ON RATE BASE",null,null,{"$f":"F433","v":2128554},{"$f":"G433","v":803040},{"$f":"H433","v":573028},{"$f":"I433","v":3214},{"$f":"J433","v":9110},149,351190,243826,11430,124052,9281,{"$f":"Q433","v":234},{"$f":"R433","v":2128554},{"$f":"F666-R666","v":0}]
[38,null,{"$f":"'FR-16(7)(v)-1 Functional'!C667","v":"NET DEDUCTIONS AND ADDITIONS"},null,null,{"$f":"-F641","v":-2743100},{"$f":"-G641","v":-1035105},{"$f":"-H641","v":-738585},{"$f":"-I641","v":-4141},{"$f":"-J641","v":-11739},-192,-452613,-314300,-14728,-159437,-11959,{"$f":"-$Q$641","v":-301},{"$f":"-R641","v":-2743100},{"$f":"F667-R667","v":0}]
[39,null,{"$f":"'FR-16(7)(v)-1 Functional'!C668","v":"TOTAL FEDERAL TAX ADJUSTMENTS"},null,null,{"$f":"F663","v":8568452},{"$f":"G663","v":3244014},{"$f":"H663","v":2313225},{"$f":"I663","v":12939},{"$f":"J663","v":36759},600,1414652,984944,46184,476749,37444,{"$f":"$Q$663","v":942},{"$f":"R663","v":8568452},{"$f":"F668-R668","v":0}]
[40,null,"TOTAL STATE PROV DEF IT (410 & 411)",null,null,{"$f":"F707","v":1261323},{"$f":"G707","v":477537},{"$f":"H707","v":340519},{"$f":"I707","v":1905},{"$f":"J707","v":5411},88,208244,144989,6799,70180,5512,{"$f":"Q707","v":139},{"$f":"R707","v":1261323},{"$f":"F669-R669","v":0}]
[41,null,"RESERVED",null,null,{"$f":"F24","v":0},{"$f":"G24","v":0},{"$f":"H24","v":0},{"$f":"I24","v":0},{"$f":"J24","v":0},0,0,0,0,0,0,{"$f":"Q24","v":0},{"$f":"R24","v":0},{"$f":"F670-R670","v":0}]
[42,null,{"$f":"'FR-16(7)(v)-1 Functional'!C671","v":"  BASE FOR FIT COMPUATION"},null,null,{"$f":"SUM(F666:F670)","v":9215229},{"$f":"SUM(G666:G670)","v":3489486},{"$f":"SUM(H666:H670)","v":2488187},{"$f":"SUM(I666:I670)","v":13917},{"$f":"SUM(J666:J670)","v":39541},645,1521473,1059459,49685,511544,40278,{"$f":"SUM($Q$666:$Q$670)","v":1014},{"$f":"SUM(R666:R670)","v":9215229},{"$f":"SUM(S666:S670)","v":0}]
[43]
[44,null,{"$f":"'FR-16(7)(v)-1 Functional'!C673","v":"FIT FACTOR K190/(1-K190)"},null,null,{"$f":"ROUND(FIT/(1-FIT),9)","v":0.26582278500000001},0.26582278500000001,0.26582278500000001,0.26582278500000001,0.26582278500000001,0.26582278500000001,0.26582278500000001,0.26582278500000001,0.26582278500000001,0.26582278500000001,0.26582278500000001,0.26582278500000001,null,{"$f":"ROUND(R815/(1-R815),9)","v":0.26582278500000001}]
[45,null,{"$f":"'FR-16(7)(v)-1 Functional'!C674","v":"PRELIM FED INCOME TAX"},null,null,{"$f":"ROUND(F673*F671,0)","v":2449618},{"$f":"F674-SUM(H674:Q674)","v":927586},{"$f":"ROUND(H671*H673,0)","v":661417},{"$f":"ROUND(I671*I673,0)","v":3699},{"$f":"ROUND(J671*J673,0)","v":10511},171,404442,281628,13207,135980,10707,{"$f":"ROUND($Q$671*$Q$673,0)","v":270},{"$f":"SUM(G674:Q674)","v":2449618},{"$f":"F674-R674","v":0}]
[46,null,{"$f":"'FR-16(7)(v)-1 Functional'!C675","v":"TOTAL FEDERAL TAX ADJUSTMENTS"},null,null,{"$f":"F663","v":8568452},{"$f":"G663","v":3244014},{"$f":"H663","v":2313225},{"$f":"I663","v":12939},{"$f":"J663","v":36759},600,1414652,984944,46184,476749,37444,{"$f":"$Q$663","v":942},{"$f":"R663","v":8568452},{"$f":"F675-R675","v":0}]
[47,null,{"$f":"'FR-16(7)(v)-1 Functional'!C676","v":"  NET FED INCOME TAX ALLOWABLE"},null,null,{"$f":"SUM(F674:F675)","v":11018070},{"$f":"SUM(G674:G675)","v":4171600},{"$f":"SUM(H674:H675)","v":2974642},{"$f":"SUM(I674:I675)","v":16638},{"$f":"SUM(J674:J675)","v":47270},771,1819094,1266572,59391,612729,48151,{"$f":"SUM($Q$674:$Q$675)","v":1212},{"$f":"SUM(R674:R675)","v":11018070},{"$f":"SUM(S674:S675)","v":0}]
[48]
[49,"INCOME TAX BASED ON RETURN"]
[50,"FEDERAL INCOME TAX PAYABLE"]
[51,null,{"$f":"'FR-16(7)(v)-1 Functional'!C680","v":"PRELIM FEDERAL INCOME TAX"},null,null,{"$f":"F674","v":2449618},{"$f":"G674","v":927586},{"$f":"H674","v":661417},{"$f":"I674","v":3699},{"$f":"J674","v":10511},171,404442,281628,13207,135980,10707,{"$f":"$Q$674","v":270},{"$f":"R674","v":2449618},{"$f":"S674","v":0}]
[53,null,{"$f":"'FR-16(7)(v)-1 Functional'!C681","v":"  NET FED INCOME TAX PAYABLE"},null,null,{"$f":"SUM(F680:F680)","v":2449618},{"$f":"SUM(G680:G680)","v":927586},{"$f":"SUM(H680:H680)","v":661417},{"$f":"SUM(I680:I680)","v":3699},{"$f":"SUM(J680:J680)","v":10511},171,404442,281628,13207,135980,10707,{"$f":"SUM($Q$680:$Q$680)","v":270},{"$f":"SUM(R680:R680)","v":2449618},{"$f":"SUM(S680:S680)","v":0}]
[]
[{"$f":"co_name","v":"DUKE ENERGY KENTUCKY, INC."},null,null,null,null,null,null,null,null,null,null,null,null,null,null,null,null,{"$f":"R1","v":"FR-16(7)(v)-4"}]
[{"$f":"$A$2","v":"PRODUCTION ENERGY ALLOCATED - ELECTRIC COST OF SERVICE"},null,null,null,null,null,null,null,null,null,null,null,null,null,null,null,null,{"$f":"R2","v":"WITNESS RESPONSIBLE:"}]
[{"$f":"case_name","v":"CASE NO: 2019-00271"},null,null,null,null,null,null,null,null,null,null,null,null,null,null,null,null,{"$f":"Witness","v":"JAMES E. ZIOLKOWSKI"}]
[{"$f":"data_filing","v":"DATA: 12 MONTHS ACTUAL  & 0 MONTHS ESTIMATED"},null,null,null,null,null,null,null,null,null,null,null,null,null,null,null,null,{"$f":"\"PAGE \"&Pages-5&\" OF \"&Pages","v":"PAGE 13 OF 18"}]
[{"$f":"type","v":"TYPE OF FILING: \"X\" ORIGINAL   UPDATED    REVISED  "}]
[]
[null,null,null,null,null,{"$f":"F$7","v":"TOTAL"},null,{"$f":"H$7","v":"DS"},{"$f":"I$7","v":"GSFL"},{"$f":"J$7","v":"EH"},{"$f":"K$7","v":"SP"},"DT SEC","DT PRI","DP","TT",null,"OTHER"]
["LINE",null,null,null,null,{"$f":"F$8","v":"PRODUCTION"},{"$f":"G$8","v":"RS"},{"$f":"H$8","v":"SECONDARY"},{"$f":"I$8","v":"SECONDARY"},{"$f":"J$8","v":"SECONDARY"},{"$f":"K$8","v":"SECONDARY"},"SECONDARY","PRIMARY","PRIMARY","TRANSMISSION","LT","WATER",{"$f":"R8","v":"TOTAL"},"ALL"]
["NO.","STATE INCOME TAX BASED ON RETURN",null,"Allo",null,{"$f":"F$9","v":"ENERGY"},{"$f":"G$9","v":"RESIDENTIAL"},{"$f":"H$9","v":"DISTRIBUTION"},{"$f":"I$9","v":"DISTRIBUTION"},{"$f":"J$9","v":"DISTRIBUTION"},{"$f":"K$9","v":"DISTRIBUTION"},"DISTRIBUTION","DISTRIBUTION","DISTRIBUTION","TIME OF DAY","LIGHTING","PUMPING",{"$f":"R9","v":"AT ISSUE"},"OTHER"]
[null,null,"Schedule 9.1",null,null,null,{"$f":"G$10","v":3},{"$f":"H$10","v":4},{"$f":"I$10","v":5},{"$f":"J$10","v":6},{"$f":"K$10","v":7},8,9,10,11,12,13,null," "]
[1,"DEDUCTIONS IN ADDITION TO Y871"]
[2,"KY TAXABLE INCOME ADJUSTMENT",null,{"$f":"'FR-16(7)(v)-1 Functional'!D694","v":"NP29"},null,{"$f":"'FR-16(7)(v)-2 PROD Classified'!H694","v":116080},{"$f":"F694-SUM(H694:Q694)","v":43814},{"$f":"ROUND(F694*VLOOKUP(D694,ALLOCTABLE_Prod_Energy,$H$10,FALSE),0)","v":31263},{"$f":"ROUND(F694*VLOOKUP(D694,ALLOCTABLE_Prod_Energy,$I$10,FALSE),0)","v":175},{"$f":"ROUND(F694*VLOOKUP(D694,ALLOCTABLE_Prod_Energy,$J$10,FALSE),0)","v":497},{"$f":"ROUND(F694*VLOOKUP(D694,ALLOCTABLE_Prod_Energy,$K$10,FALSE),0)","v":8},{"$f":"ROUND(F694*VLOOKUP(D694,ALLOCTABLE_Prod_Energy,$L$10,FALSE),0)","v":19154},{"$f":"ROUND(F694*VLOOKUP(D694,ALLOCTABLE_Prod_Energy,$M$10,FALSE),0)","v":13304},{"$f":"ROUND(F694*VLOOKUP(D694,ALLOCTABLE_Prod_Energy,$N$10,FALSE),0)","v":623},{"$f":"ROUND(F694*VLOOKUP(D694,ALLOCTABLE_Prod_Energy,$O$10,FALSE),0)","v":6723},{"$f":"ROUND(F694*VLOOKUP(D694,ALLOCTABLE_Prod_Energy,$P$10,FALSE),0)","v":506},{"$f":"ROUND(F694*VLOOKUP(D694,ALLOCTABLE_Prod_Energy,$Q$10,FALSE),0)","v":13},{"$f":"SUM(G694:Q694)","v":116080},{"$f":"F694-R694","v":0}]
[3,"RESERVED FOR FUTURE USE",null,{"$f":"'FR-16(7)(v)-1 Functional'!D695","v":"NP29"},null,{"$f":"'FR-16(7)(v)-2 PROD Classified'!H695","v":0},{"$f":"F695-SUM(H695:Q695)","v":0},{"$f":"ROUND(F695*VLOOKUP(D695,ALLOCTABLE_Prod_Energy,$H$10,FALSE),0)","v":0},{"$f":"ROUND(F695*VLOOKUP(D695,ALLOCTABLE_Prod_Energy,$I$10,FALSE),0)","v":0},{"$f":"ROUND(F695*VLOOKUP(D695,ALLOCTABLE_Prod_Energy,$J$10,FALSE),0)","v":0},{"$f":"ROUND(F695*VLOOKUP(D695,ALLOCTABLE_Prod_Energy,$K$10,FALSE),0)","v":0},{"$f":"ROUND(F695*VLOOKUP(D695,ALLOCTABLE_Prod_Energy,$L$10,FALSE),0)","v":0},{"$f":"ROUND(F695*VLOOKUP(D695,ALLOCTABLE_Prod_Energy,$M$10,FALSE),0)","v":0},{"$f":"ROUND(F695*VLOOKUP(D695,ALLOCTABLE_Prod_Energy,$N$10,FALSE),0)","v":0},{"$f":"ROUND(F695*VLOOKUP(D695,ALLOCTABLE_Prod_Energy,$O$10,FALSE),0)","v":0},{"$f":"ROUND(F695*VLOOKUP(D695,ALLOCTABLE_Prod_Energy,$P$10,FALSE),0)","v":0},{"$f":"ROUND(F695*VLOOKUP(D695,ALLOCTABLE_Prod_Energy,$Q$10,FALSE),0)","v":0},{"$f":"SUM(G695:Q695)","v":0},{"$f":"F695-R695","v":0}]
[4,"  DEDUCTIONS IN ADD TO Y871",null,null,null,{"$f":"SUM(F694:F695)","v":116080},{"$f":"SUM(G694:G695)","v":43814},31263,175,{"$f":"SUM(J694:J695)","v":497},8,19154,13304,623,6723,506,13,116080,0]
[5]
[6,"STATE INCOME TAX ADJUSTMENTS"]
[7,"STATE PROV DEF INC TAX (410 & 411)"]
[8,"OTHER DEFERRED INCOME TAXES - NET",null,{"$f":"'FR-16(7)(v)-1 Functional'!D700","v":"A357"},null,{"$f":"'FR-16(7)(v)-2 PROD Classified'!H700","v":1261323},{"$f":"F700-SUM(H700:Q700)","v":477537},{"$f":"ROUND(F700*VLOOKUP(D700,ALLOCTABLE_Prod_Energy,$H$10,FALSE),0)","v":340519},{"$f":"ROUND(F700*VLOOKUP(D700,ALLOCTABLE_Prod_Energy,$I$10,FALSE),0)","v":1905},{"$f":"ROUND(F700*VLOOKUP(D700,ALLOCTABLE_Prod_Energy,$J$10,FALSE),0)","v":5411},{"$f":"ROUND(F700*VLOOKUP(D700,ALLOCTABLE_Prod_Energy,$K$10,FALSE),0)","v":88},{"$f":"ROUND(F700*VLOOKUP(D700,ALLOCTABLE_Prod_Energy,$L$10,FALSE),0)","v":208244},{"$f":"ROUND(F700*VLOOKUP(D700,ALLOCTABLE_Prod_Energy,$M$10,FALSE),0)","v":144989},{"$f":"ROUND(F700*VLOOKUP(D700,ALLOCTABLE_Prod_Energy,$N$10,FALSE),0)","v":6799},{"$f":"ROUND(F700*VLOOKUP(D700,ALLOCTABLE_Prod_Energy,$O$10,FALSE),0)","v":70180},{"$f":"ROUND(F700*VLOOKUP(D700,ALLOCTABLE_Prod_Energy,$P$10,FALSE),0)","v":5512},{"$f":"ROUND(F700*VLOOKUP(D700,ALLOCTABLE_Prod_Energy,$Q$10,FALSE),0)","v":139},{"$f":"SUM(G700:Q700)","v":1261323},{"$f":"F700-R700","v":0}]
[9,"  TOT STATE PROV DEF IT (410 & 411)",null,null,null,{"$f":"SUM(F700)","v":1261323},{"$f":"SUM(G700)","v":477537},340519,1905,{"$f":"SUM(J700)","v":5411},88,208244,144989,6799,70180,5512,139,1261323,0]
[10]
[11,"OTHER SIT ADJUSTMENTS"]
[12,"CURRENT YEAR PAYABLE ADJUSTMENT",null,{"$f":"'FR-16(7)(v)-1 Functional'!D704","v":"NP29"},null,{"$f":"'FR-16(7)(v)-2 PROD Classified'!H704","v":0},{"$f":"F704-SUM(H704:Q704)","v":0},{"$f":"ROUND(F704*VLOOKUP(D704,ALLOCTABLE_Prod_Energy,$H$10,FALSE),0)","v":0},{"$f":"ROUND(F704*VLOOKUP(D704,ALLOCTABLE_Prod_Energy,$I$10,FALSE),0)","v":0},{"$f":"ROUND(F704*VLOOKUP(D704,ALLOCTABLE_Prod_Energy,$J$10,FALSE),0)","v":0},{"$f":"ROUND(F704*VLOOKUP(D704,ALLOCTABLE_Prod_Energy,$K$10,FALSE),0)","v":0},{"$f":"ROUND(F704*VLOOKUP(D704,ALLOCTABLE_Prod_Energy,$L$10,FALSE),0)","v":0},{"$f":"ROUND(F704*VLOOKUP(D704,ALLOCTABLE_Prod_Energy,$M$10,FALSE),0)","v":0},{"$f":"ROUND(F704*VLOOKUP(D704,ALLOCTABLE_Prod_Energy,$N$10,FALSE),0)","v":0},{"$f":"ROUND(F704*VLOOKUP(D704,ALLOCTABLE_Prod_Energy,$O$10,FALSE),0)","v":0},{"$f":"ROUND(F704*VLOOKUP(D704,ALLOCTABLE_Prod_Energy,$P$10,FALSE),0)","v":0},{"$f":"ROUND(F704*VLOOKUP(D704,ALLOCTABLE_Prod_Energy,$Q$10,FALSE),0)","v":0},{"$f":"SUM(G704:Q704)","v":0},{"$f":"F704-R704","v":0}]
[13,"  OTHER SIT ADJUSMENTS",null,null,null,{"$f":"SUM(F704)","v":0},{"$f":"SUM(G704)","v":0},{"$f":"SUM(H704)","v":0},{"$f":"SUM(I704)","v":0},{"$f":"SUM(J704)","v":0},0,{"$f":"SUM(F704)","v":0},{"$f":"SUM(F704)","v":0},0,0,0,{"$f":"SUM(Q704)","v":0},{"$f":"SUM(R704)","v":0},{"$f":"SUM(S704)","v":0}]
[14]
[15,"TOTAL STATE INC TAX ADJUSTMENT",null,null,null,{"$f":"F705+F701","v":1261323},{"$f":"G705+G701","v":477537},{"$f":"H705+H701","v":340519},{"$f":"I705+I701","v":1905},{"$f":"J705+J701","v":5411},88,208244,144989,6799,70180,5512,{"$f":"Q705+Q701","v":139},{"$f":"R705+R701","v":1261323},{"$f":"S705+S701","v":0}]
[16]
[17,"INCOME TAX BASED ON RETURN"]
[18,"SUMMARY OF SIT CALCULATION"]
[19,"RETURN ON RATE BASE",null,null,null,{"$f":"F433","v":2128554},{"$f":"G433","v":803040},{"$f":"H433","v":573028},{"$f":"I433","v":3214},{"$f":"J433","v":9110},149,351190,243826,11430,124052,9281,{"$f":"Q433","v":234},{"$f":"R433","v":2128554},{"$f":"S433","v":0}]
[20,"NET FED INCOME TAX ALLOWABLE",null,null,null,{"$f":"F676","v":11018070},{"$f":"G676","v":4171600},{"$f":"H676","v":2974642},{"$f":"I676","v":16638},{"$f":"J676","v":47270},771,1819094,1266572,59391,612729,48151,{"$f":"Q676","v":1212},{"$f":"R676","v":11018070},{"$f":"S676","v":0}]
[21,"NET FED. DED. AND ADDITIONS",null,null,null,{"$f":"-F641","v":-2743100},{"$f":"-G641","v":-1035105},{"$f":"-H641","v":-738585},{"$f":"-I641","v":-4141},{"$f":"-J641","v":-11739},-192,-452613,-314300,-14728,-159437,-11959,{"$f":"-Q641","v":-301},{"$f":"-R641","v":-2743100},{"$f":"-S641","v":0}]
[22,"DEDUCTIONS IN ADD TO Y871",null,null,null,{"$f":"-F696","v":-116080},{"$f":"-G696","v":-43814},{"$f":"-H696","v":-31263},{"$f":"-I696","v":-175},{"$f":"-J696","v":-497},-8,-19154,-13304,-623,-6723,-506,{"$f":"-Q696","v":-13},{"$f":"-R696","v":-116080},{"$f":"-S696","v":0}]
[23,"RESERVED",null,null,null,{"$f":"F24","v":0},{"$f":"G24","v":0},{"$f":"H24","v":0},{"$f":"I24","v":0},{"$f":"J24","v":0},0,0,0,0,0,0,{"$f":"Q24","v":0},{"$f":"R24","v":0},{"$f":"S24","v":0}]
[24,"TOTAL STATE INC TAX ADJ",null,null,null,{"$f":"F707","v":1261323},{"$f":"G707","v":477537},{"$f":"H707","v":340519},{"$f":"I707","v":1905},{"$f":"J707","v":5411},88,208244,144989,6799,70180,5512,{"$f":"Q707","v":139},{"$f":"R707","v":1261323},{"$f":"S707","v":0}]
[25,"  BASE FOR SIT COMPUTATION",null,null,null,{"$f":"SUM(F711:F716)","v":11548767},{"$f":"SUM(G711:G716)","v":4373258},{"$f":"SUM(H711:H716)","v":3118341},{"$f":"SUM(I711:I716)","v":17441},{"$f":"SUM(J711:J716)","v":49555},808,1906761,1327783,62269,640801,50479,{"$f":"SUM(Q711:Q716)","v":1271},{"$f":"SUM(R711:R716)","v":11548767},{"$f":"SUM(S711:S716)","v":0}]
[26]
[27,"SIT FACTOR K192/(1-K192)",null,null,null,{"$f":"ROUND(SIT/(1-SIT),8)","v":5.2282660000000002E-2},5.2282660000000002E-2,5.2282660000000002E-2,5.2282660000000002E-2,5.2282660000000002E-2,5.2282660000000002E-2,5.2282660000000002E-2,5.2282660000000002E-2,5.2282660000000002E-2,5.2282660000000002E-2,5.2282660000000002E-2,5.2282660000000002E-2,5.2282660000000002E-2,5.2282660000000002E-2]
[28,"PRELIMINARY STATE INCOME TAX",null,null,null,{"$f":"ROUND(F717*F719,0)","v":603800},{"$f":"F720-SUM(H720:Q720)","v":228645},{"$f":"ROUND(H717*H719,0)","v":163035},{"$f":"ROUND(I717*I719,0)","v":912},{"$f":"ROUND(J717*J719,0)","v":2591},42,99691,69420,3256,33503,2639,{"$f":"ROUND(Q717*Q719,0)","v":66},{"$f":"SUM(G720:Q720)","v":603800},{"$f":"F720-R720","v":0}]
[29,"TOTAL STATE INCOME TAX ADJ.",null,null,null,{"$f":"F707","v":1261323},{"$f":"G707","v":477537},{"$f":"H707","v":340519},{"$f":"I707","v":1905},{"$f":"J707","v":5411},88,208244,144989,6799,70180,5512,{"$f":"Q707","v":139},{"$f":"SUM(G721:Q721)","v":1261323},{"$f":"F721-R721","v":0}]
[30,"  NET STATE INC TAX ALLOWABLE",null,null,null,{"$f":"F721+F720","v":1865123},706182,503554,2817,{"$f":"J721+J720","v":8002},130,307935,214409,10055,103683,8151,205,1865123,{"$f":"S721+S720","v":0}]
[31]
[32,"STATE INCOME TAX PAYABLE"]
[33,"PRELIMINARY STATE INCOME TAX",null,null,null,{"$f":"F720","v":603800},{"$f":"G720","v":228645},{"$f":"H720","v":163035},{"$f":"I720","v":912},{"$f":"J720","v":2591},42,99691,69420,3256,33503,2639,{"$f":"Q720","v":66},{"$f":"SUM(G725:Q725)","v":603800},{"$f":"F725-R725","v":0}]
[34,"OTHER SIT ADJUSTMENTS",null,null,null,{"$f":"F705","v":0},{"$f":"G705","v":0},{"$f":"H705","v":0},{"$f":"I705","v":0},{"$f":"J705","v":0},0,0,0,0,0,0,{"$f":"Q705","v":0},{"$f":"SUM(G726:Q726)","v":0},{"$f":"F726-R726","v":0}]
[35,"  NET STATE INCOME TAX PAYABLE",null,null,null,{"$f":"F725+F726","v":603800},228645,163035,912,{"$f":"J725+J726","v":2591},42,99691,69420,3256,33503,2639,66,603800,{"$f":"S725+S726","v":0}]
[36]
[37,"COMPOSITE TAX RATE",null,null,null,{"$f":"(SIT*(1-FIT))+((1-SIT)*(1-FIT)*RevTax)+FIT","v":0.24925115},0.24925115,0.24925115,0.24925115,0.24925115,0.24925115,0.24925115,0.24925115,0.24925115,0.24925115,0.24925115,0.24925115,0.24925115,0.24925115]
[]
[{"$f":"co_name","v":"DUKE ENERGY KENTUCKY, INC."},null,null,null,null,null,null,null,null,null,null,null,null,null,null,null,null,{"$f":"R1","v":"FR-16(7)(v)-4"}]
[{"$f":"$A$2","v":"PRODUCTION ENERGY ALLOCATED - ELECTRIC COST OF SERVICE"},null,null,null,null,null,null,null,null,null,null,null,null,null,null,null,null,{"$f":"R2","v":"WITNESS RESPONSIBLE:"}]
[{"$f":"case_name","v":"CASE NO: 2019-00271"},null,null,null,null,null,null,null,null,null,null,null,null,null,null,null,null,{"$f":"Witness","v":"JAMES E. ZIOLKOWSKI"}]
[{"$f":"data_filing","v":"DATA: 12 MONTHS ACTUAL  & 0 MONTHS ESTIMATED"},null,null,null,null,null,null,null,null,null,null,null,null,null,null,null,null,{"$f":"\"PAGE \"&Pages-4&\" OF \"&Pages","v":"PAGE 14 OF 18"}]
[{"$f":"type","v":"TYPE OF FILING: \"X\" ORIGINAL   UPDATED    REVISED  "}]
[]
[null,null,null,null,null,{"$f":"F$7","v":"TOTAL"},null,{"$f":"H$7","v":"DS"},{"$f":"I$7","v":"GSFL"},{"$f":"J$7","v":"EH"},{"$f":"K$7","v":"SP"},"DT SEC","DT PRI","DP","TT",null,"OTHER"]
["LINE",null,null,null,null,{"$f":"F$8","v":"PRODUCTION"},{"$f":"G$8","v":"RS"},{"$f":"H$8","v":"SECONDARY"},{"$f":"I$8","v":"SECONDARY"},{"$f":"J$8","v":"SECONDARY"},{"$f":"K$8","v":"SECONDARY"},"SECONDARY","PRIMARY","PRIMARY","TRANSMISSION","LT","WATER",{"$f":"R8","v":"TOTAL"},"ALL"]
["NO.","COST OF SERVICE COMPUTATION",null,"ALLO",null,{"$f":"F$9","v":"ENERGY"},{"$f":"G$9","v":"RESIDENTIAL"},{"$f":"H$9","v":"DISTRIBUTION"},{"$f":"I$9","v":"DISTRIBUTION"},{"$f":"J$9","v":"DISTRIBUTION"},{"$f":"K$9","v":"DISTRIBUTION"},"DISTRIBUTION","DISTRIBUTION","DISTRIBUTION","TIME OF DAY","LIGHTING","PUMPING",{"$f":"R9","v":"AT ISSUE"},"OTHER"]
[null,null,"Schedule 10",null,null,null,{"$f":"G$10","v":3},{"$f":"H$10","v":4},{"$f":"I$10","v":5},{"$f":"J$10","v":6},{"$f":"K$10","v":7},8,9,10,11,12,13,null," "]
[1,"OTHER OPERATING REVENUES"]
[2,null,{"$f":"'FR-16(7)(v)-1 Functional'!C742","v":"MISC SERVICE REVENUE"},{"$f":"'FR-16(7)(v)-1 Functional'!D742","v":"D249"},null,{"$f":"'FR-16(7)(v)-2 PROD Classified'!H742","v":0},{"$f":"F742-SUM(H742:Q742)","v":0},{"$f":"ROUND(F742*VLOOKUP(D742,ALLOCTABLE_Prod_Energy,$H$10,FALSE),0)","v":0},{"$f":"ROUND(F742*VLOOKUP(D742,ALLOCTABLE_Prod_Energy,$I$10,FALSE),0)","v":0},{"$f":"ROUND(F742*VLOOKUP(D742,ALLOCTABLE_Prod_Energy,$J$10,FALSE),0)","v":0},{"$f":"ROUND(F742*VLOOKUP(D742,ALLOCTABLE_Prod_Energy,$K$10,FALSE),0)","v":0},{"$f":"ROUND(F742*VLOOKUP(D742,ALLOCTABLE_Prod_Energy,$L$10,FALSE),0)","v":0},{"$f":"ROUND(F742*VLOOKUP(D742,ALLOCTABLE_Prod_Energy,$M$10,FALSE),0)","v":0},{"$f":"ROUND(F742*VLOOKUP(D742,ALLOCTABLE_Prod_Energy,$N$10,FALSE),0)","v":0},{"$f":"ROUND(F742*VLOOKUP(D742,ALLOCTABLE_Prod_Energy,$O$10,FALSE),0)","v":0},{"$f":"ROUND(F742*VLOOKUP(D742,ALLOCTABLE_Prod_Energy,$P$10,FALSE),0)","v":0},{"$f":"ROUND(F742*VLOOKUP(D742,ALLOCTABLE_Prod_Energy,$Q$10,FALSE),0)","v":0},{"$f":"SUM(G742:Q742)","v":0},{"$f":"F742-R742","v":0}]
[3,null,{"$f":"'FR-16(7)(v)-1 Functional'!C743","v":"INTERDEPARTMENTAL"},{"$f":"'FR-16(7)(v)-1 Functional'!D743","v":"K902"},null,{"$f":"'FR-16(7)(v)-2 PROD Classified'!H743","v":0},0,0,0,0,0,0,0,0,0,0,0,0,0]
[4,null,{"$f":"'FR-16(7)(v)-1 Functional'!C744","v":"POLE & LINE ATTACHMENTS"},{"$f":"'FR-16(7)(v)-1 Functional'!D744","v":"D249"},null,{"$f":"'FR-16(7)(v)-2 PROD Classified'!H744","v":0},0,0,0,0,0,0,0,0,0,0,0,0,0]
[5,null,{"$f":"'FR-16(7)(v)-1 Functional'!C745","v":"RENTS"},{"$f":"'FR-16(7)(v)-1 Functional'!D745","v":"D249"},null,{"$f":"'FR-16(7)(v)-2 PROD Classified'!H745","v":0},0,0,0,0,0,0,0,0,0,0,0,0,0]
[6,null,{"$f":"'FR-16(7)(v)-1 Functional'!C746","v":"TRANSMISSION CHARGE PTP"},{"$f":"'FR-16(7)(v)-1 Functional'!D746","v":"T229"},null,0,{"$f":"F746-SUM(H746:Q746)","v":0},0,0,0,0,0,0,0,0,0,{"$f":"ROUND(F746*VLOOKUP(D746,ALLOCTABLE_Prod_Energy,$Q$10,FALSE),0)","v":0},0,0]
[7,null,{"$f":"'FR-16(7)(v)-1 Functional'!C747","v":"PJM REACTIVE REVENUE"},{"$f":"'FR-16(7)(v)-1 Functional'!D747","v":"K401"},null,0,{"$f":"F747-SUM(H747:Q747)","v":0},0,0,0,0,0,0,0,0,0,{"$f":"ROUND(F747*VLOOKUP(D747,ALLOCTABLE_Prod_Energy,$Q$10,FALSE),0)","v":0},0,0]
[8,null,{"$f":"'FR-16(7)(v)-1 Functional'!C748","v":"OTHER TRANSMISSION REVENUES"},{"$f":"'FR-16(7)(v)-1 Functional'!D748","v":"T229"},null,0,{"$f":"F748-SUM(H748:Q748)","v":0},0,0,0,0,0,0,0,0,0,{"$f":"ROUND(F748*VLOOKUP(D748,ALLOCTABLE_Prod_Energy,$Q$10,FALSE),0)","v":0},0,0]
[9,null,{"$f":"'FR-16(7)(v)-1 Functional'!C749","v":"FIXED BILL PREMIUM"},{"$f":"'FR-16(7)(v)-1 Functional'!D749","v":"K902"},null,{"$f":"'FR-16(7)(v)-2 PROD Classified'!H749","v":0},0,0,0,0,0,0,0,0,0,0,0,0,0]
[10,null,{"$f":"'FR-16(7)(v)-1 Functional'!C750","v":"  TOTAL OTHER OPERATING REVS"},null,null,{"$f":"SUM(F742:F749)","v":0},{"$f":"SUM(G742:G749)","v":0},{"$f":"SUM(H742:H749)","v":0},{"$f":"SUM(I742:I749)","v":0},{"$f":"SUM(J742:J749)","v":0},0,0,0,0,0,0,{"$f":"SUM($Q$742:$Q$749)","v":0},{"$f":"SUM(R742:R749)","v":0},{"$f":"SUM(S742:S749)","v":0}]
[11]
[12,"COST OF SERVICE COMPUTATION"]
[13,null,{"$f":"'FR-16(7)(v)-1 Functional'!C753","v":"TOTAL OP EXP EXC INC & REV TAX"},null,null,{"$f":"F618","v":150194409},{"$f":"G618","v":56861131},{"$f":"H618","v":40547787},{"$f":"I618","v":226804},{"$f":"J618","v":643834},10515,24796737,17263741,809664,8360701,656975,{"$f":"$Q$618","v":16520},{"$f":"R618","v":150194409},{"$f":"S618","v":0}]
[14,null,"RETURN ON RATE BASE",null,null,{"$f":"F433","v":2128554},{"$f":"G433","v":803040},{"$f":"H433","v":573028},{"$f":"I433","v":3214},{"$f":"J433","v":9110},149,351190,243826,11430,124052,9281,{"$f":"Q433","v":234},{"$f":"R433","v":2128554},{"$f":"S433","v":0}]
[15,null,{"$f":"'FR-16(7)(v)-1 Functional'!C755","v":"NET FED INCOME TAX ALLOWABLE"},null,null,{"$f":"F676","v":11018070},{"$f":"G676","v":4171600},{"$f":"H676","v":2974642},{"$f":"I676","v":16638},{"$f":"J676","v":47270},771,1819094,1266572,59391,612729,48151,{"$f":"$Q$676","v":1212},{"$f":"R676","v":11018070},{"$f":"S676","v":0}]
[16,null,{"$f":"'FR-16(7)(v)-1 Functional'!C756","v":"NET STATE INCOME TAX ALLOWABLE"},null,null,{"$f":"F722","v":1865123},{"$f":"G722","v":706182},503554,2817,{"$f":"J722","v":8002},130,307935,214409,10055,103683,8151,205,1865123,0]
[17,null,{"$f":"'FR-16(7)(v)-1 Functional'!C757","v":"TOTAL OTHER OPERATING REVENUES"},null,null,{"$f":"-F750","v":0},{"$f":"-G750","v":0},{"$f":"-H750","v":0},{"$f":"-I750","v":0},{"$f":"-J750","v":0},0,0,0,0,0,0,{"$f":"-$Q$750","v":0},{"$f":"-R750","v":0},{"$f":"-S750","v":0}]
[18,null,{"$f":"'FR-16(7)(v)-1 Functional'!C758","v":"  SUBTOTAL B"},null,null,{"$f":"SUM(F752:F757)","v":165206156},{"$f":"SUM(G752:G757)","v":62541953},{"$f":"SUM(H752:H757)","v":44599011},{"$f":"SUM(I752:I757)","v":249473},{"$f":"SUM(J752:J757)","v":708216},11565,27274956,18988548,890540,9201165,722558,{"$f":"SUM($Q$752:$Q$757)","v":18171},{"$f":"SUM(R752:R757)","v":165206156},{"$f":"R758-F758","v":0}]
[19]
[20,null,{"$f":"'FR-16(7)(v)-1 Functional'!C760","v":"TOTAL OTHER OPERATING REVENUES"},null,null,{"$f":"-F757","v":0},{"$f":"-G757","v":0},{"$f":"-H757","v":0},{"$f":"-I757","v":0},{"$f":"-J757","v":0},0,0,0,0,0,0,{"$f":"-$Q$757","v":0},{"$f":"-R757","v":0},{"$f":"-S757","v":0}]
[21,null,{"$f":"'FR-16(7)(v)-1 Functional'!C761","v":"LESS: REVS EXCL FROM REV TAX CALC"},null,null,{"$f":"F989","v":0},{"$f":"G989","v":0},{"$f":"H989","v":0},{"$f":"I989","v":0},{"$f":"J989","v":0},0,0,0,0,0,0,{"$f":"Q989","v":0},{"$f":"R989","v":0},{"$f":"S989","v":0}]
[22,null,{"$f":"'FR-16(7)(v)-1 Functional'!C762","v":"OTHER OPERATING REVS TO BE TAXED"},null,null,{"$f":"F760-F761","v":0},{"$f":"G760-G761","v":0},{"$f":"H760-H761","v":0},{"$f":"I760-I761","v":0},{"$f":"J760-J761","v":0},0,0,0,0,0,0,{"$f":"$Q$760-Q761","v":0},{"$f":"R760-R761","v":0},{"$f":"S760-S761","v":0}]
[23]
[24,null,{"$f":"'FR-16(7)(v)-1 Functional'!C764","v":"REVENUE TAX FACTOR"},null,null,{"$f":"ROUND(F817/(1-F817),8)","v":0},0,0,0,{"$f":"ROUND(J817/(1-J817),8)","v":0},0,{"$f":"ROUND(F817/(1-L817),8)","v":0},{"$f":"ROUND(F817/(1-M817),8)","v":0},0,0,0,0,0,0]
[25,null,{"$f":"'FR-16(7)(v)-1 Functional'!C765","v":"REVENUE TAX ON OTHER OPER. REVS"},null,null,{"$f":"ROUND(F764*F762,0)","v":0},{"$f":"ROUND(G764*G762,0)","v":0},{"$f":"ROUND(H764*H762,0)","v":0},{"$f":"ROUND(I764*I762,0)","v":0},{"$f":"ROUND(J764*J762,0)","v":0},0,{"$f":"ROUND(F764*L762,0)","v":0},{"$f":"ROUND(F764*M762,0)","v":0},0,0,0,{"$f":"ROUND(Q764*Q762,0)","v":0},{"$f":"SUM(G765:Q765)","v":0},{"$f":"ROUND(S764*S762,0)","v":0}]
[26,null,{"$f":"'FR-16(7)(v)-1 Functional'!C766","v":"REVENUE TAX ON COST OF SERVICE"},null,null,{"$f":"ROUND(F764*F758,0)","v":0},{"$f":"ROUND(G764*G758,0)","v":0},{"$f":"ROUND(H764*H758,0)","v":0},{"$f":"ROUND(I764*I758,0)","v":0},{"$f":"ROUND(J764*J758,0)","v":0},0,{"$f":"ROUND(F764*L758,0)","v":0},{"$f":"ROUND(F764*M758,0)","v":0},0,0,0,{"$f":"ROUND(Q764*$Q$758,0)","v":0},{"$f":"SUM(G766:Q766)","v":0},{"$f":"ROUND(S764*S758,0)","v":0}]
[27,null,{"$f":"'FR-16(7)(v)-1 Functional'!C767","v":"TOTAL REVENUE TAX"},null,null,{"$f":"F766+F765","v":0},{"$f":"G766+G765","v":0},{"$f":"H766+H765","v":0},{"$f":"I766+I765","v":0},{"$f":"J766+J765","v":0},0,0,0,0,0,0,{"$f":"Q766+Q765","v":0},{"$f":"R766+R765","v":0},{"$f":"S766+S765","v":0}]
[28]
[29,null,"RESERVED",null,null,{"$f":"F24","v":0},{"$f":"G24","v":0},{"$f":"H24","v":0},{"$f":"I24","v":0},{"$f":"J24","v":0},0,0,0,0,0,0,{"$f":"Q24","v":0},{"$f":"R24","v":0}]
[30,null,{"$f":"'FR-16(7)(v)-1 Functional'!C770","v":"  TOTAL ELECTRIC COST OF SERVICE"},null,null,{"$f":"F769+F767+F758","v":165206156},62541953,44599011,249473,708216,11565,27274956,18988548,890540,9201165,722558,18171,165206156,{"$f":"S767+S758","v":0}]
[31]
[32,"PROPOSED REVENUES",null,null,null,{"$f":"F868","v":122188315},{"$f":"G868","v":46260496},{"$f":"H868","v":32987179},{"$f":"I868","v":184504},{"$f":"J868","v":524188},8553,20173291,14045547,658595,6798558,533963,{"$f":"Q868","v":13441},{"$f":"R868","v":122188315},{"$f":"S868","v":0}]
[33,"TOTAL ELECTRIC COST OF SERVICE",null,null,null,{"$f":"-F770","v":-165206156},{"$f":"-G770","v":-62541953},{"$f":"-H770","v":-44599011},{"$f":"-I770","v":-249473},{"$f":"-J770","v":-708216},-11565,-27274956,-18988548,-890540,-9201165,-722558,{"$f":"-Q770","v":-18171},{"$f":"-R770","v":-165206156},{"$f":"-S770","v":0}]
[34,"EXCESS REVENUES",null,null,null,{"$f":"F773+F772","v":-43017841},{"$f":"G773+G772","v":-16281457},{"$f":"H773+H772","v":-11611832},{"$f":"I773+I772","v":-64969},{"$f":"J773+J772","v":-184028},-3012,-7101665,-4943001,-231945,-2402607,-188595,{"$f":"Q773+Q772","v":-4730},{"$f":"SUM(G774:Q774)","v":-43017841},{"$f":"F774-R774","v":0}]
[35,"COMPOSITE TAX RATE",null,null,null,{"$f":"F729","v":0.24925115},{"$f":"G729","v":0.24925115},0.24925115,0.24925115,{"$f":"J729","v":0.24925115},0.24925115,0.24925115,0.24925115,0.24925115,0.24925115,0.24925115,0.24925115,0.24925115,0.24925115]
[36,"EXCESS TAX",null,null,null,{"$f":"'FR-16(7)(v)-2 PROD Classified'!H776","v":-10722246},{"$f":"F776-SUM(H776:Q776)","v":-4058170},{"$f":"ROUND(H775*H774,0)","v":-2894262},{"$f":"ROUND(I775*I774,0)","v":-16194},{"$f":"ROUND(J775*J774,0)","v":-45869},-751,{"$f":"ROUND(F775*L774,0)","v":-1770098},{"$f":"ROUND(F775*M774,0)","v":-1232049},-57813,-598853,-47008,{"$f":"ROUND(Q775*Q774,0)","v":-1179},{"$f":"SUM(G776:Q776)","v":-10722246},{"$f":"F776-R776","v":0}]
[37,"EXCESS RETURN",null,null,null,{"$f":"F774-F776","v":-32295595},{"$f":"G774-G776","v":-12223287},{"$f":"H774-H776","v":-8717570},{"$f":"I774-I776","v":-48775},{"$f":"J774-J776","v":-138159},-2261,-5331567,-3710952,-174132,-1803754,-141587,{"$f":"Q774-Q776","v":-3551},{"$f":"SUM(G777:Q777)","v":-32295595},{"$f":"F777-R777","v":0}]
[]
[{"$f":"co_name","v":"DUKE ENERGY KENTUCKY, INC."},null,null,null,null,null,null,null,null,null,null,null,null,null,null,null,null,{"$f":"R1","v":"FR-16(7)(v)-4"}]
[{"$f":"$A$2","v":"PRODUCTION ENERGY ALLOCATED - ELECTRIC COST OF SERVICE"},null,null,null,null,null,null,null,null,null,null,null,null,null,null,null,null,{"$f":"R2","v":"WITNESS RESPONSIBLE:"}]
[{"$f":"case_name","v":"CASE NO: 2019-00271"},null,null,null,null,null,null,null,null,null,null,null,null,null,null,null,null,{"$f":"Witness","v":"JAMES E. ZIOLKOWSKI"}]
[{"$f":"data_filing","v":"DATA: 12 MONTHS ACTUAL  & 0 MONTHS ESTIMATED"},null,null,null,null,null,null,null,null,null,null,null,null,null,null,null,null,{"$f":"\"PAGE \"&Pages-3&\" OF \"&Pages","v":"PAGE 15 OF 18"}]
[{"$f":"type","v":"TYPE OF FILING: \"X\" ORIGINAL   UPDATED    REVISED  "}]
[]
[null,null,null,null,null,{"$f":"F$7","v":"TOTAL"},null,{"$f":"H$7","v":"DS"},{"$f":"I$7","v":"GSFL"},{"$f":"J$7","v":"EH"},{"$f":"K$7","v":"SP"},"DT SEC","DT PRI","DP","TT",null,"OTHER"]
["LINE",null,null,null,null,{"$f":"F$8","v":"PRODUCTION"},{"$f":"G$8","v":"RS"},{"$f":"H$8","v":"SECONDARY"},{"$f":"I$8","v":"SECONDARY"},{"$f":"J$8","v":"SECONDARY"},{"$f":"K$8","v":"SECONDARY"},"SECONDARY","PRIMARY","PRIMARY","TRANSMISSION","LT","WATER",{"$f":"R8","v":"TOTAL"},"ALL"]
["NO.","ROR, TAX RATES & SPEC FACTORS",null,"ALLO",null,{"$f":"F$9","v":"ENERGY"},{"$f":"G$9","v":"RESIDENTIAL"},{"$f":"H$9","v":"DISTRIBUTION"},{"$f":"I$9","v":"DISTRIBUTION"},{"$f":"J$9","v":"DISTRIBUTION"},{"$f":"K$9","v":"DISTRIBUTION"},"DISTRIBUTION","DISTRIBUTION","DISTRIBUTION","TIME OF DAY","LIGHTING","PUMPING",{"$f":"R9","v":"AT ISSUE"},"OTHER"]
[null,null,"Schedule 11",null,null,null,{"$f":"G$10","v":3},{"$f":"H$10","v":4},{"$f":"I$10","v":5},{"$f":"J$10","v":6},{"$f":"K$10","v":7},8,9,10,11,12,13,null," "]
[1,"RATE OF RETURN"]
[2," CAPITALIZATION AMOUNTS",null,null,null,null,"RATIO"]
[3,null,{"$f":"'FR-16(7)(v)-1 Functional'!C791","v":"LONG TERM DEBT"},null,null,{"$f":"'FR-16(7)(v)-2 PROD Classified'!$F$791","v":665948506},{"$f":"IF(TotalCap=0,0,ROUND(F791/TotalCap,4))","v":0.45929999999999999}]
[4,null,{"$f":"'FR-16(7)(v)-1 Functional'!C792","v":"PREFERRED STOCK"},null,null,{"$f":"'FR-16(7)(v)-2 PROD Classified'!$F$792","v":0},{"$f":"IF(TotalCap=0,0,ROUND(F792/TotalCap,4))","v":0}]
[5,null,{"$f":"'FR-16(7)(v)-1 Functional'!C793","v":"COMMON STOCK"},null,null,{"$f":"[0]!Equity","v":699348680},{"$f":"1-G791-G792-G794-G795","v":0.48239999999999994}]
[6,null,{"$f":"'FR-16(7)(v)-1 Functional'!C794","v":"SHORT TERM DEBT"},null,null,{"$f":"'FR-16(7)(v)-2 PROD Classified'!$F$794","v":84600060},{"$f":"IF(TotalCap=0,0,ROUND(F794/TotalCap,4))","v":5.8299999999999998E-2}]
[7,null,{"$f":"'FR-16(7)(v)-1 Functional'!C795","v":"UNAMORTIZED DISCOUNT"},null,null,{"$f":"'FR-16(7)(v)-2 PROD Classified'!$F$795","v":0},{"$f":"IF(TotalCap=0,0,ROUND(F795/TotalCap,4))","v":0}]
[8,null,{"$f":"'FR-16(7)(v)-1 Functional'!C796","v":"  TOTAL"},null,null,{"$f":"SUM(F790:F795)","v":1449897246},{"$f":"SUM(G791:G795)","v":1}]
[9]
[10," COST OF CAPITAL"]
[11,null,{"$f":"'FR-16(7)(v)-1 Functional'!C799","v":"LONG TERM DEBT"},null,null,{"$f":"'FR-16(7)(v)-2 PROD Classified'!$F$799","v":4.0730000000000002E-2}]
[12,null,{"$f":"'FR-16(7)(v)-1 Functional'!C800","v":"PREFERRED STOCK"},null,null,{"$f":"'FR-16(7)(v)-2 PROD Classified'!$F$800","v":0}]
[13,null,{"$f":"'FR-16(7)(v)-1 Functional'!C801","v":"COMMON STOCK"},null,null,{"$f":"'FR-16(7)(v)-2 PROD Classified'!$F$801","v":9.8000000000000004E-2}]
[14,null,{"$f":"'FR-16(7)(v)-1 Functional'!C802","v":"SHORT TERM DEBT"},null,null,{"$f":"'FR-16(7)(v)-2 PROD Classified'!$F$802","v":1.9369999999999998E-2}]
[15,null,{"$f":"'FR-16(7)(v)-1 Functional'!C803","v":"UNAMORTIZED DISCOUNT"},null,null,{"$f":"'FR-16(7)(v)-2 PROD Classified'!$F$803","v":0}]
[16]
[17," WEIGHTED COST OF CAPITAL"]
[18,null,{"$f":"'FR-16(7)(v)-1 Functional'!C806","v":"LONG TERM DEBT"},null,null,{"$f":"ROUND(G791*F799,4)","v":1.8700000000000001E-2}]
[19,null,{"$f":"'FR-16(7)(v)-1 Functional'!C807","v":"PREFERRED STOCK"},null,null,{"$f":"ROUND(G792*F800,4)","v":0}]
[20,null,{"$f":"'FR-16(7)(v)-1 Functional'!C808","v":"COMMON STOCK"},null,null,{"$f":"ROUND(G793*F801,4)","v":4.7300000000000002E-2}]
[21,null,{"$f":"'FR-16(7)(v)-1 Functional'!C809","v":"SHORT TERM DEBT"},null,null,{"$f":"ROUND(G794*F802,4)","v":1.1000000000000001E-3}]
[22,null,{"$f":"'FR-16(7)(v)-1 Functional'!C810","v":"UNAMORTIZED DISCOUNT"},null,null,{"$f":"ROUND(G795*F803,4)","v":0}]
[23,null,{"$f":"'FR-16(7)(v)-1 Functional'!C811","v":"  TOT RATE OF RETURN ALLOWABLE"},null,null,{"$f":"SUM(F806:F810)","v":6.7100000000000007E-2}]
[24]
[25,"TAX RATES AND SPECIAL FACTORS"]
[26,null,{"$f":"'FR-16(7)(v)-1 Functional'!C814","v":"SHORT TERM DEBT COST"},null,null,0,{"$f":"F814","v":0},{"$f":"F814","v":0},{"$f":"F814","v":0},{"$f":"G814","v":0},0,0,0,0,0,0,{"$f":"$F$814","v":0},{"$f":"F814","v":0},{"$f":"F814","v":0}]
[27,null,{"$f":"'FR-16(7)(v)-1 Functional'!C815","v":"FEDERAL INCOME TAX RATE"},null,null,{"$f":"FIT","v":0.21},{"$f":"FIT","v":0.21},0.21,0.21,0.21,0.21,0.21,0.21,0.21,0.21,0.21,0.21,0.21,0.21]
[28,null,{"$f":"'FR-16(7)(v)-1 Functional'!C816","v":"STATE INCOME TAX RATE"},null,null,{"$f":"SIT","v":4.9685000000000007E-2},{"$f":"SIT","v":4.9685000000000007E-2},4.9685000000000007E-2,4.9685000000000007E-2,4.9685000000000007E-2,4.9685000000000007E-2,4.9685000000000007E-2,4.9685000000000007E-2,4.9685000000000007E-2,4.9685000000000007E-2,4.9685000000000007E-2,4.9685000000000007E-2,4.9685000000000007E-2,4.9685000000000007E-2]
[29,null,{"$f":"'FR-16(7)(v)-1 Functional'!C817","v":"REVENUE TAX RATE"},null,null,0,{"$f":"RevTax","v":0},0,0,0,0,0,0,0,0,0,0,0,0]
[]
[{"$f":"co_name","v":"DUKE ENERGY KENTUCKY, INC."},null,null,null,null,null,null,null,null,null,null,null,null,null,null,null,null,{"$f":"R1","v":"FR-16(7)(v)-4"}]
[{"$f":"$A$2","v":"PRODUCTION ENERGY ALLOCATED - ELECTRIC COST OF SERVICE"},null,null,null,null,null,null,null,null,null,null,null,null,null,null,null,null,{"$f":"R2","v":"WITNESS RESPONSIBLE:"}]
[{"$f":"case_name","v":"CASE NO: 2019-00271"},null,null,null,null,null,null,null,null,null,null,null,null,null,null,null,null,{"$f":"Witness","v":"JAMES E. ZIOLKOWSKI"}]
[{"$f":"data_filing","v":"DATA: 12 MONTHS ACTUAL  & 0 MONTHS ESTIMATED"},null,null,null,null,null,null,null,null,null,null,null,null,null,null,null,null,{"$f":"\"PAGE \"&Pages-2&\" OF \"&Pages","v":"PAGE 16 OF 18"}]
[{"$f":"type","v":"TYPE OF FILING: \"X\" ORIGINAL   UPDATED    REVISED  "}]
[]
[null,null,null,null,null,{"$f":"F$7","v":"TOTAL"},null,{"$f":"H$7","v":"DS"},{"$f":"I$7","v":"GSFL"},{"$f":"J$7","v":"EH"},{"$f":"K$7","v":"SP"},"DT SEC","DT PRI","DP","TT",null,"OTHER"]
["LINE",null,null,null,null,{"$f":"F$8","v":"PRODUCTION"},{"$f":"G$8","v":"RS"},{"$f":"H$8","v":"SECONDARY"},{"$f":"I$8","v":"SECONDARY"},{"$f":"J$8","v":"SECONDARY"},{"$f":"K$8","v":"SECONDARY"},"SECONDARY","PRIMARY","PRIMARY","TRANSMISSION","LT","WATER",{"$f":"R8","v":"TOTAL"},"ALL",null,null,null,"RATE GRP"]
["NO.","ALLOCATORS",null,"SOURCE","ALLO",{"$f":"F$9","v":"ENERGY"},{"$f":"G$9","v":"RESIDENTIAL"},{"$f":"H$9","v":"DISTRIBUTION"},{"$f":"I$9","v":"DISTRIBUTION"},{"$f":"J$9","v":"DISTRIBUTION"},{"$f":"K$9","v":"DISTRIBUTION"},"DISTRIBUTION","DISTRIBUTION","DISTRIBUTION","TIME OF DAY","LIGHTING","PUMPING",{"$f":"R9","v":"AT ISSUE"},"OTHER",null,null,null,"CHECK"]
[null,null,"Schedule 12",null,1,null,{"$f":"G$10","v":3},{"$f":"H$10","v":4},{"$f":"I$10","v":5},{"$f":"J$10","v":6},{"$f":"K$10","v":7},8,9,10,11,12,13,null," "]
[1,"DEMAND ENERGY & SPEC. ASSIGN"]
[2,null,"TOTAL KW (12 COIN PEAK) - PRODUCTION","External",null,{"$f":"'WP FR-16(7)(v)-KW & KWH @Gen'!$D$38","v":717751},{"$f":"'WP FR-16(7)(v)-KW & KWH @Gen'!$D$17","v":323558},{"$f":"'WP FR-16(7)(v)-KW & KWH @Gen'!$D$18+'WP FR-16(7)(v)-KW & KWH @Gen'!$D$31","v":194251},{"$f":"'WP FR-16(7)(v)-KW & KWH @Gen'!$D$19","v":933},{"$f":"'WP FR-16(7)(v)-KW & KWH @Gen'!$D$20","v":3682},{"$f":"'WP FR-16(7)(v)-KW & KWH @Gen'!$D$21","v":51},{"$f":"'WP FR-16(7)(v)-KW & KWH @Gen'!$D$22+'WP FR-16(7)(v)-KW & KWH @Gen'!$D$32","v":96851},{"$f":"'WP FR-16(7)(v)-KW & KWH @Gen'!$D$23","v":64029},{"$f":"'WP FR-16(7)(v)-KW & KWH @Gen'!$D$24","v":3090},{"$f":"'WP FR-16(7)(v)-KW & KWH @Gen'!$D$25+'WP FR-16(7)(v)-KW & KWH @Gen'!$D$35","v":30336},{"$f":"'WP FR-16(7)(v)-KW & KWH @Gen'!$D$26","v":891},{"$f":"'WP FR-16(7)(v)-KW & KWH @Gen'!$D$27","v":79},{"$f":"SUM(G830:Q830)","v":717751},{"$f":"F830-R830","v":0}]
[3,null,{"$f":"'FR-16(7)(v)-1 Functional'!C831","v":"RATIO TO TOTAL ELECTRIC"},null,{"$f":"'FR-16(7)(v)-1 Functional'!E831","v":"K201"},{"$f":"IF($F830=0,0,ROUND(F830/$F830,5))","v":1},{"$f":"IF(S830=0,F831-SUM(H831:Q831),ROUND(G830/F830,5))","v":0.45077999999999985},{"$f":"IF($F$830=0,0,ROUND(H830/$F$830,5))","v":0.27063999999999999},{"$f":"IF($F$830=0,0,ROUND(I830/$F$830,5))","v":1.2999999999999999E-3},5.13E-3,6.9999999999999994E-5,0.13494,8.9209999999999998E-2,4.3099999999999996E-3,4.2270000000000002E-2,1.24E-3,1.1E-4,{"$f":"SUM(G831:Q831)","v":0.99999999999999989},{"$f":"F831-R831","v":0},null,null,null,{"$f":"R831","v":0.99999999999999989}]
[4,null,"TOTAL KW (12 COIN PEAK) - TRANSMISSION","External",null,{"$f":"'WP FR-16(7)(v)-KW & KWH @Gen'!D38","v":717751},{"$f":"'WP FR-16(7)(v)-KW & KWH @Gen'!D17","v":323558},{"$f":"'WP FR-16(7)(v)-KW & KWH @Gen'!D18+'WP FR-16(7)(v)-KW & KWH @Gen'!D31","v":194251},{"$f":"'WP FR-16(7)(v)-KW & KWH @Gen'!D19","v":933},{"$f":"'WP FR-16(7)(v)-KW & KWH @Gen'!D20","v":3682},{"$f":"'WP FR-16(7)(v)-KW & KWH @Gen'!D21","v":51},{"$f":"'WP FR-16(7)(v)-KW & KWH @Gen'!D22+'WP FR-16(7)(v)-KW & KWH @Gen'!D32","v":96851},{"$f":"'WP FR-16(7)(v)-KW & KWH @Gen'!D23","v":64029},{"$f":"'WP FR-16(7)(v)-KW & KWH @Gen'!D24","v":3090},{"$f":"'WP FR-16(7)(v)-KW & KWH @Gen'!D25+'WP FR-16(7)(v)-KW & KWH @Gen'!D35","v":30336},{"$f":"'WP FR-16(7)(v)-KW & KWH @Gen'!D26","v":891},{"$f":"'WP FR-16(7)(v)-KW & KWH @Gen'!D27","v":79},{"$f":"SUM(G832:Q832)","v":717751},{"$f":"F832-R832","v":0}]
[5,null,{"$f":"'FR-16(7)(v)-1 Functional'!C833","v":"RATIO TO TOTAL ELECTRIC"},null,"K202",{"$f":"IF($F832=0,0,ROUND(F832/$F832,5))","v":1},{"$f":"IF(S832=0,F833-SUM(H833:Q833),ROUND(G832/F832,5))","v":0.45077999999999985},{"$f":"IF($F$830=0,0,ROUND(H832/$F$830,5))","v":0.27063999999999999},{"$f":"IF($F$830=0,0,ROUND(I832/$F$830,5))","v":1.2999999999999999E-3},5.13E-3,6.9999999999999994E-5,0.13494,8.9209999999999998E-2,4.3099999999999996E-3,4.2270000000000002E-2,1.24E-3,1.1E-4,{"$f":"SUM(G833:Q833)","v":0.99999999999999989},{"$f":"F833-R833","v":0}]
[6,null,{"$f":"'FR-16(7)(v)-1 Functional'!C834","v":"DISTRIBUTION KW (NON-COIN PEAK) "},"External",null,{"$f":"'WP FR-16(7)(v)-KW & KWH @Dist'!D39","v":1514633},{"$f":"'WP FR-16(7)(v)-KW & KWH @Dist'!D18","v":899439},{"$f":"'WP FR-16(7)(v)-KW & KWH @Dist'!D19+'WP FR-16(7)(v)-KW & KWH @Dist'!D32","v":321857},{"$f":"'WP FR-16(7)(v)-KW & KWH @Dist'!D20","v":1158},{"$f":"'WP FR-16(7)(v)-KW & KWH @Dist'!D21","v":10653},{"$f":"'WP FR-16(7)(v)-KW & KWH @Dist'!D22","v":109},{"$f":"'WP FR-16(7)(v)-KW & KWH @Dist'!D23+'WP FR-16(7)(v)-KW & KWH @Dist'!D33","v":138051},{"$f":"'WP FR-16(7)(v)-KW & KWH @Dist'!D24+'WP FR-16(7)(v)-KW & KWH @Dist'!D34","v":84382},{"$f":"'WP FR-16(7)(v)-KW & KWH @Dist'!D25+'WP FR-16(7)(v)-KW & KWH @Dist'!D35","v":5687},{"$f":"'WP FR-16(7)(v)-KW & KWH @Dist'!D26+'WP FR-16(7)(v)-KW & KWH @Dist'!D36","v":45755},{"$f":"'WP FR-16(7)(v)-KW & KWH @Dist'!D27","v":7098},{"$f":"'WP FR-16(7)(v)-KW & KWH @Dist'!D28","v":444},{"$f":"SUM(G834:Q834)","v":1514633},{"$f":"F834-R834","v":0}]
[7,null,{"$f":"'FR-16(7)(v)-1 Functional'!C835","v":"RATIO TO TOTAL ELECTRIC"},null,{"$f":"'FR-16(7)(v)-1 Functional'!E835","v":"K203"},{"$f":"IF($F834=0,0,ROUND(F834/$F834,5))","v":1},{"$f":"IF(S834=0,F835-SUM(H835:Q835),ROUND(G834/F834,5))","v":0.59384999999999999},{"$f":"IF($F$834=0,0,ROUND(H834/$F$834,5))","v":0.21249999999999999},{"$f":"IF($F$834=0,0,ROUND(I834/$F$834,5))","v":7.6000000000000004E-4},7.0299999999999998E-3,6.9999999999999994E-5,9.1139999999999999E-2,5.5710000000000003E-2,3.7499999999999999E-3,3.0210000000000001E-2,4.6899999999999997E-3,2.9E-4,1,0,null,null,null,{"$f":"R835","v":1}]
[8,null,"DISTRIBUTION LINE - PRIMARY","External",null,{"$f":"'WP FR-16(7)(v) Distlines'!G38","v":731338},{"$f":"'WP FR-16(7)(v) Distlines'!$G$17","v":343307},{"$f":"'WP FR-16(7)(v) Distlines'!$G$18+'WP FR-16(7)(v) Distlines'!$G$31","v":202748},{"$f":"'WP FR-16(7)(v) Distlines'!$G$19","v":945},{"$f":"'WP FR-16(7)(v) Distlines'!$G$20","v":4447},{"$f":"'WP FR-16(7)(v) Distlines'!$G$21","v":53},{"$f":"'WP FR-16(7)(v) Distlines'!$G$22+'WP FR-16(7)(v) Distlines'!$G$32","v":103544},{"$f":"'WP FR-16(7)(v) Distlines'!$G$23+'WP FR-16(7)(v) Distlines'!$G$33","v":68199},{"$f":"'WP FR-16(7)(v) Distlines'!$G$24+'WP FR-16(7)(v) Distlines'!$G$34","v":3420},{"$f":"'WP FR-16(7)(v) Distlines'!$G$25+'WP FR-16(7)(v) Distlines'!$G$35","v":0},{"$f":"'WP FR-16(7)(v) Distlines'!$G$26","v":4595},{"$f":"'WP FR-16(7)(v) Distlines'!$G$27","v":80},731338,0]
[9,null,{"$f":"'FR-16(7)(v)-1 Functional'!C837","v":"RATIO TO TOTAL ELECTRIC"},null,{"$f":"'FR-16(7)(v)-1 Functional'!E837","v":"K205"},{"$f":"IF($F836=0,0,ROUND(F836/$F836,5))","v":1},{"$f":"IF(S836=0,F837-SUM(H837:Q837),ROUND(G836/F836,5))","v":0.4694299999999999},{"$f":"IF($F$836=0,0,ROUND(H836/$F$836,5))","v":0.27722999999999998},{"$f":"IF($F$836=0,0,ROUND(I836/$F$836,5))","v":1.2899999999999999E-3},6.0800000000000003E-3,6.9999999999999994E-5,0.14158000000000001,9.325E-2,4.6800000000000001E-3,0,6.28E-3,1.1E-4,0.99999999999999989,0,null,null,null,{"$f":"R837","v":0.99999999999999989}]
[10,null,"DISTRIBUTION LINE - SECONDARY","External",null,{"$f":"'WP FR-16(7)(v) Distlines'!K38","v":731338},{"$f":"'WP FR-16(7)(v) Distlines'!K17","v":343307},{"$f":"'WP FR-16(7)(v) Distlines'!K18+'WP FR-16(7)(v) Distlines'!K31","v":202748},{"$f":"'WP FR-16(7)(v) Distlines'!K19","v":945},{"$f":"'WP FR-16(7)(v) Distlines'!K20","v":4447},{"$f":"'WP FR-16(7)(v) Distlines'!K21","v":53},{"$f":"'WP FR-16(7)(v) Distlines'!K22+'WP FR-16(7)(v) Distlines'!K32","v":103544},{"$f":"'WP FR-16(7)(v) Distlines'!K23","v":68199},{"$f":"'WP FR-16(7)(v) Distlines'!K24+'WP FR-16(7)(v) Distlines'!K34","v":3420},{"$f":"'WP FR-16(7)(v) Distlines'!K25+'WP FR-16(7)(v) Distlines'!K35","v":0},{"$f":"'WP FR-16(7)(v) Distlines'!K26","v":4595},{"$f":"'WP FR-16(7)(v) Distlines'!K27","v":80},{"$f":"SUM(G838:Q838)","v":731338},{"$f":"F838-R838","v":0}]
[11,null,{"$f":"'FR-16(7)(v)-1 Functional'!C839","v":"RATIO TO TOTAL ELECTRIC"},null,"K206",{"$f":"IF($F838=0,0,ROUND(F838/$F838,5))","v":1},{"$f":"IF(S838=0,F839-SUM(H839:Q839),ROUND(G838/F838,5))","v":0.4694299999999999},{"$f":"IF($F$836=0,0,ROUND(H838/$F$836,5))","v":0.27722999999999998},{"$f":"IF($F$836=0,0,ROUND(I838/$F$836,5))","v":1.2899999999999999E-3},{"$f":"IF($F$836=0,0,ROUND(J838/$F$836,5))","v":6.0800000000000003E-3},{"$f":"IF($F$836=0,0,ROUND(K838/$F$836,5))","v":6.9999999999999994E-5},{"$f":"IF($F$836=0,0,ROUND(L838/$F$836,5))","v":0.14158000000000001},{"$f":"IF($F$838=0,0,ROUND(M838/$F$838,5))","v":9.325E-2},{"$f":"IF($F$838=0,0,ROUND(N838/$F$838,5))","v":4.6800000000000001E-3},{"$f":"IF($F$838=0,0,ROUND(O838/$F$838,5))","v":0},{"$f":"IF($F$838=0,0,ROUND(P838/$F$838,5))","v":6.28E-3},{"$f":"IF($F$838=0,0,ROUND(Q838/$F$838,5))","v":1.1E-4},{"$f":"SUM(G839:Q839)","v":0.99999999999999989},{"$f":"F839-R839","v":0}]
[12,null,{"$f":"'FR-16(7)(v)-1 Functional'!C840","v":"GROSS DISTRIBUTION PLANT EXCL. CCNC"},"External",null,{"$f":"SUM(F73:F90)","v":0},{"$f":"SUM(G73:G90)","v":0},0,0,0,0,{"$f":"SUM(F73:L90)","v":0},{"$f":"SUM(F73:M90)","v":0},0,0,0,0,0,0]
[13,null,{"$f":"'FR-16(7)(v)-1 Functional'!C841","v":"RATIO TO TOTAL ELECTRIC"},null,{"$f":"'FR-16(7)(v)-1 Functional'!E841","v":"K209"},{"$f":"IF($F840=0,0,ROUND(F840/$F840,5))","v":0},{"$f":"IF(S840=0,F841-SUM(H841:Q841),ROUND(G840/F840,5))","v":0},{"$f":"IF($F$840=0,0,ROUND(H840/$F$840,5))","v":0},{"$f":"IF($F$840=0,0,ROUND(I840/$F$840,5))","v":0},0,0,0,0,0,0,0,0,0,0,null,null,null,{"$f":"R841","v":0}]
[14,null,{"$f":"'FR-16(7)(v)-1 Functional'!C842","v":"TOTAL DIVERSIFIED CLASS DEMANDS"},"External",null,{"$f":"'WP FR-16(7)(v)-KW & KWH @Dist'!L39","v":731338},{"$f":"'WP FR-16(7)(v)-KW & KWH @Dist'!L18","v":343307},{"$f":"'WP FR-16(7)(v)-KW & KWH @Dist'!L19+'WP FR-16(7)(v)-KW & KWH @Dist'!L32","v":202748},{"$f":"'WP FR-16(7)(v)-KW & KWH @Dist'!L20","v":945},{"$f":"'WP FR-16(7)(v)-KW & KWH @Dist'!L21","v":4447},{"$f":"'WP FR-16(7)(v)-KW & KWH @Dist'!L22","v":53},{"$f":"'WP FR-16(7)(v)-KW & KWH @Dist'!L23+'WP FR-16(7)(v)-KW & KWH @Dist'!L33","v":103544},{"$f":"'WP FR-16(7)(v)-KW & KWH @Dist'!L24","v":68199},{"$f":"'WP FR-16(7)(v)-KW & KWH @Dist'!L25","v":3420},{"$f":"'WP FR-16(7)(v)-KW & KWH @Dist'!L26","v":0},{"$f":"'WP FR-16(7)(v)-KW & KWH @Dist'!L27","v":4595},{"$f":"'WP FR-16(7)(v)-KW & KWH @Dist'!L28","v":80},731338,0]
[15,null,{"$f":"'FR-16(7)(v)-1 Functional'!C843","v":"RATIO TO TOTAL ELECTRIC"},null,{"$f":"'FR-16(7)(v)-1 Functional'!E843","v":"K215"},{"$f":"IF($F842=0,0,ROUND(F842/$F842,5))","v":1},{"$f":"IF(S842=0,F843-SUM(H843:Q843),ROUND(G842/F842,5))","v":0.4694299999999999},{"$f":"IF($F$842=0,0,ROUND(H842/$F$842,5))","v":0.27722999999999998},{"$f":"IF($F$842=0,0,ROUND(I842/$F$842,5))","v":1.2899999999999999E-3},6.0800000000000003E-3,6.9999999999999994E-5,0.14158000000000001,9.325E-2,4.6800000000000001E-3,0,6.28E-3,1.1E-4,0.99999999999999989,0,null,null,null,{"$f":"R843","v":0.99999999999999989}]
[16,null,{"$f":"'FR-16(7)(v)-1 Functional'!C844","v":"WEIGHTED CUSTOMER SERVICE"},"External",null,{"$f":"'WP FR-16(7)(v) Wtd services'!H38","v":143810},{"$f":"'WP FR-16(7)(v) Wtd services'!H17","v":128431},{"$f":"'WP FR-16(7)(v) Wtd services'!H18","v":12968},{"$f":"'WP FR-16(7)(v) Wtd services'!H19","v":172},{"$f":"'WP FR-16(7)(v) Wtd services'!H20","v":412},{"$f":"'WP FR-16(7)(v) Wtd services'!H21","v":14},{"$f":"'WP FR-16(7)(v) Wtd services'!H22","v":930},{"$f":"'WP FR-16(7)(v) Wtd services'!H23","v":222},{"$f":"'WP FR-16(7)(v) Wtd services'!H24","v":60},{"$f":"'WP FR-16(7)(v) Wtd services'!H25","v":66},{"$f":"'WP FR-16(7)(v) Wtd services'!H26","v":468},{"$f":"'WP FR-16(7)(v) Wtd services'!H27","v":11},143754,56]
[17,null,{"$f":"'FR-16(7)(v)-1 Functional'!C845","v":"RATIO TO TOTAL ELECTRIC"},null,{"$f":"'FR-16(7)(v)-1 Functional'!E845","v":"K217"},{"$f":"IF($F844=0,0,ROUND(F844/$F844,5))","v":1},{"$f":"IF(S844=0,F845-SUM(H845:Q845),ROUND(G844/F844,5))","v":0.89305999999999996},{"$f":"IF($F$844=0,0,ROUND(H844/$F$844,5))","v":9.017E-2},{"$f":"IF($F$844=0,0,ROUND(I844/$F$844,5))","v":1.1999999999999999E-3},2.8600000000000001E-3,1E-4,6.4700000000000001E-3,1.5399999999999999E-3,4.2000000000000002E-4,4.6000000000000001E-4,3.2499999999999999E-3,8.0000000000000007E-5,0.99960999999999978,3.900000000002235E-4,null,null,null,{"$f":"R845","v":0.99960999999999978}]
[18,null,{"$f":"'FR-16(7)(v)-1 Functional'!C846","v":"TOTAL KWH"},"External",null,{"$f":"'WP FR-16(7)(v)-KW & KWH @Gen'!F38","v":4261970981},{"$f":"'WP FR-16(7)(v)-KW & KWH @Gen'!$F$17","v":1608724299},{"$f":"'WP FR-16(7)(v)-KW & KWH @Gen'!$F$18+'WP FR-16(7)(v)-KW & KWH @Gen'!$F$31","v":1147823576},{"$f":"'WP FR-16(7)(v)-KW & KWH @Gen'!$F$19","v":6420710},{"$f":"'WP FR-16(7)(v)-KW & KWH @Gen'!$F$20","v":18228802},{"$f":"'WP FR-16(7)(v)-KW & KWH @Gen'!$F$21","v":298034},{"$f":"'WP FR-16(7)(v)-KW & KWH @Gen'!$F$22+'WP FR-16(7)(v)-KW & KWH @Gen'!$F$32","v":703280622},{"$f":"'WP FR-16(7)(v)-KW & KWH @Gen'!$F$23","v":488455966},{"$f":"'WP FR-16(7)(v)-KW & KWH @Gen'!$F$24","v":22905598},{"$f":"'WP FR-16(7)(v)-KW & KWH @Gen'!$F$25+'WP FR-16(7)(v)-KW & KWH @Gen'!$F$35","v":246755000},{"$f":"'WP FR-16(7)(v)-KW & KWH @Gen'!$F$26","v":18599129},{"$f":"'WP FR-16(7)(v)-KW & KWH @Gen'!$F$27","v":479245},4261970981,0]
[19,null,{"$f":"'FR-16(7)(v)-1 Functional'!C847","v":"RATIO TO TOTAL ELECTRIC"},null,{"$f":"'FR-16(7)(v)-1 Functional'!E847","v":"K301"},{"$f":"IF($F846=0,0,ROUND(F846/$F846,5))","v":1},{"$f":"IF(S846=0,F847-SUM(H847:Q847),ROUND(G846/F846,5))","v":0.37745999999999991},{"$f":"IF($F$846=0,0,ROUND(H846/$F$846,5))","v":0.26932},{"$f":"IF($F$846=0,0,ROUND(I846/$F$846,5))","v":1.5100000000000001E-3},4.28E-3,6.9999999999999994E-5,0.16500999999999999,0.11461,5.3699999999999998E-3,5.79E-2,4.3600000000000002E-3,1.1E-4,0.99999999999999989,0,null,null,null,{"$f":"R847","v":0.99999999999999989}]
[20,null,{"$f":"'FR-16(7)(v)-1 Functional'!C848","v":"DISTRIBUTION KWH"},"External",null,{"$f":"'WP FR-16(7)(v)-KW & KWH @Dist'!F39","v":4261970981},{"$f":"'WP FR-16(7)(v)-KW & KWH @Dist'!F18","v":1608724299},{"$f":"'WP FR-16(7)(v)-KW & KWH @Dist'!F19+'WP FR-16(7)(v)-KW & KWH @Dist'!F32","v":1147823576},{"$f":"'WP FR-16(7)(v)-KW & KWH @Dist'!F20","v":6420710},{"$f":"'WP FR-16(7)(v)-KW & KWH @Dist'!F21","v":18228802},{"$f":"'WP FR-16(7)(v)-KW & KWH @Dist'!F22","v":298034},{"$f":"'WP FR-16(7)(v)-KW & KWH @Dist'!F23+'WP FR-16(7)(v)-KW & KWH @Dist'!F33","v":703280622},{"$f":"'WP FR-16(7)(v)-KW & KWH @Dist'!F24","v":488455966},{"$f":"'WP FR-16(7)(v)-KW & KWH @Dist'!F25","v":22905598},{"$f":"'WP FR-16(7)(v)-KW & KWH @Dist'!F26","v":232255694},{"$f":"'WP FR-16(7)(v)-KW & KWH @Dist'!F27","v":18599129},{"$f":"'WP FR-16(7)(v)-KW & KWH @Dist'!F28","v":479245},4247471675,14499306]
[21,null,{"$f":"'FR-16(7)(v)-1 Functional'!C849","v":"RATIO TO TOTAL ELECTRIC"},null,{"$f":"'FR-16(7)(v)-1 Functional'!E849","v":"K303"},{"$f":"IF($F848=0,0,ROUND(F848/$F848,5))","v":1},{"$f":"IF(S848=0,F849-SUM(H849:Q849),ROUND(G848/F848,5))","v":0.37746000000000002},{"$f":"IF($F$848=0,0,ROUND(H848/$F$848,5))","v":0.26932},{"$f":"IF($F$848=0,0,ROUND(I848/$F$848,5))","v":1.5100000000000001E-3},4.28E-3,6.9999999999999994E-5,0.16500999999999999,0.11461,5.3699999999999998E-3,5.4489999999999997E-2,4.3600000000000002E-3,1.1E-4,0.99659000000000009,3.4099999999999131E-3,null,null,null,{"$f":"R849","v":0.99659000000000009}]
[22,null,{"$f":"'FR-16(7)(v)-1 Functional'!C850","v":"TOTAL KWH LESS LIGHTING"},"External",null,{"$f":"'WP FR-16(7)(v)-KW & KWH @Gen'!F38-'WP FR-16(7)(v)-KW & KWH @Gen'!F26","v":4243371852},{"$f":"'WP FR-16(7)(v)-KW & KWH @Gen'!F17","v":1608724299},{"$f":"'WP FR-16(7)(v)-KW & KWH @Gen'!F18+'WP FR-16(7)(v)-KW & KWH @Gen'!F31","v":1147823576},{"$f":"'WP FR-16(7)(v)-KW & KWH @Gen'!F19","v":6420710},{"$f":"'WP FR-16(7)(v)-KW & KWH @Gen'!F20","v":18228802},{"$f":"'WP FR-16(7)(v)-KW & KWH @Gen'!F21","v":298034},{"$f":"'WP FR-16(7)(v)-KW & KWH @Gen'!F22+'WP FR-16(7)(v)-KW & KWH @Gen'!F32","v":703280622},{"$f":"'WP FR-16(7)(v)-KW & KWH @Gen'!F23","v":488455966},{"$f":"'WP FR-16(7)(v)-KW & KWH @Gen'!F24","v":22905598},{"$f":"'WP FR-16(7)(v)-KW & KWH @Gen'!F25+'WP FR-16(7)(v)-KW & KWH @Gen'!F35","v":246755000},0,{"$f":"'WP FR-16(7)(v)-KW & KWH @Gen'!F27","v":479245},4243371852,0]
[23,null,{"$f":"'FR-16(7)(v)-1 Functional'!C851","v":"RATIO TO TOTAL ELECTRIC"},null,{"$f":"'FR-16(7)(v)-1 Functional'!E851","v":"K305"},{"$f":"IF($F850=0,0,ROUND(F850/$F850,5))","v":1},{"$f":"IF(S850=0,F851-SUM(H851:Q851),ROUND(G850/F850,5))","v":0.37910999999999984},{"$f":"IF($F$850=0,0,ROUND(H850/$F$850,5))","v":0.27050000000000002},{"$f":"IF($F$850=0,0,ROUND(I850/$F$850,5))","v":1.5100000000000001E-3},4.3E-3,6.9999999999999994E-5,0.16574,0.11511,5.4000000000000003E-3,5.815E-2,0,1.1E-4,0.99999999999999989,0,null,null,null,{"$f":"R851","v":0.99999999999999989}]
[24,null,{"$f":"'FR-16(7)(v)-1 Functional'!C852","v":"ASSIGN 100% TO RESIDENTIAL"},"External",null,1,1,0,0,0,0,0,0,0,0,0,0,1,0]
[25,null,{"$f":"'FR-16(7)(v)-1 Functional'!C853","v":"RATIO TO TOTAL ELECTRIC"},null,{"$f":"'FR-16(7)(v)-1 Functional'!E853","v":"K307"},{"$f":"IF($F852=0,0,ROUND(F852/$F852,5))","v":1},{"$f":"IF(S852=0,F853-SUM(H853:Q853),ROUND(G852/F852,5))","v":1},{"$f":"IF($F$852=0,0,ROUND(H852/$F$852,5))","v":0},{"$f":"IF($F$852=0,0,ROUND(I852/$F$852,5))","v":0},0,0,0,0,0,0,0,0,1,0,null,null,null,{"$f":"R853","v":1}]
[26,null,{"$f":"'FR-16(7)(v)-1 Functional'!C854","v":"ASSIGN 100% TO LIGHTING"},"External",null,1,0,0,0,0,0,0,0,0,0,1,0,1,0]
[27,null,{"$f":"'FR-16(7)(v)-1 Functional'!C855","v":"RATIO TO TOTAL ELECTRIC"},null,{"$f":"'FR-16(7)(v)-1 Functional'!E855","v":"K401"},{"$f":"IF($F854=0,0,ROUND(F854/$F854,5))","v":1},{"$f":"IF(S854=0,F855-SUM(H855:Q855),ROUND(G854/F854,5))","v":0},{"$f":"IF($F$854=0,0,ROUND(H854/$F$854,5))","v":0},{"$f":"IF($F$854=0,0,ROUND(I854/$F$854,5))","v":0},0,0,0,0,0,0,1,0,1,0,null,null,null,{"$f":"R855","v":1}]
[28,null,{"$f":"'FR-16(7)(v)-1 Functional'!C856","v":"DISTRIBUTION CUSTOMERS"},"External",null,{"$f":"'WP FR-16(7)(v)-KW & KWH @Dist'!H39","v":142392},{"$f":"'WP FR-16(7)(v)-KW & KWH @Dist'!$H18","v":128431},{"$f":"'WP FR-16(7)(v)-KW & KWH @Dist'!$H19+'WP FR-16(7)(v)-KW & KWH @Dist'!$H32","v":12972},{"$f":"'WP FR-16(7)(v)-KW & KWH @Dist'!$H20","v":172},{"$f":"'WP FR-16(7)(v)-KW & KWH @Dist'!$H21","v":103},{"$f":"'WP FR-16(7)(v)-KW & KWH @Dist'!$H22","v":14},{"$f":"'WP FR-16(7)(v)-KW & KWH @Dist'!$H23+'WP FR-16(7)(v)-KW & KWH @Dist'!$H33","v":159},{"$f":"'WP FR-16(7)(v)-KW & KWH @Dist'!$H24","v":37},{"$f":"'WP FR-16(7)(v)-KW & KWH @Dist'!$H25","v":10},{"$f":"'WP FR-16(7)(v)-KW & KWH @Dist'!$H26","v":11},{"$f":"'WP FR-16(7)(v)-KW & KWH @Dist'!$H27","v":468},{"$f":"'WP FR-16(7)(v)-KW & KWH @Dist'!$H28","v":11},142388,4]
[29,null,{"$f":"'FR-16(7)(v)-1 Functional'!C857","v":"RATIO TO TOTAL ELECTRIC"},null,{"$f":"'FR-16(7)(v)-1 Functional'!E857","v":"K405"},{"$f":"IF($F856=0,0,ROUND(F856/$F856,5))","v":1},{"$f":"IF(S856=0,F857-SUM(H857:Q857),ROUND(G856/F856,5))","v":0.90195000000000003},{"$f":"IF($F$856=0,0,ROUND(H856/$F$856,5))","v":9.11E-2},{"$f":"IF($F$856=0,0,ROUND(I856/$F$856,5))","v":1.2099999999999999E-3},7.2000000000000005E-4,1E-4,1.1199999999999999E-3,2.5999999999999998E-4,6.9999999999999994E-5,8.0000000000000007E-5,3.29E-3,8.0000000000000007E-5,0.99998000000000009,1.9999999999908979E-5,null,null,null,{"$f":"R857","v":0.99998000000000009}]
[30,null,{"$f":"'FR-16(7)(v)-1 Functional'!C858","v":"METERS"},"External",null,{"$f":"'WP FR-16(7)(v) Meters'!E40","v":15813241},{"$f":"'WP FR-16(7)(v) Meters'!$E19","v":12782441},{"$f":"'WP FR-16(7)(v) Meters'!$E20","v":2892747},{"$f":"'WP FR-16(7)(v) Meters'!$E21","v":0},{"$f":"'WP FR-16(7)(v) Meters'!$E22","v":22093},{"$f":"'WP FR-16(7)(v) Meters'!$E23","v":3451},{"$f":"'WP FR-16(7)(v) Meters'!$E24","v":102877},{"$f":"'WP FR-16(7)(v) Meters'!$E25","v":0},{"$f":"'WP FR-16(7)(v) Meters'!$E26","v":3805},{"$f":"'WP FR-16(7)(v) Meters'!$E27","v":3619},{"$f":"'WP FR-16(7)(v) Meters'!$E28","v":0},{"$f":"'WP FR-16(7)(v) Meters'!$E29","v":2208},15813241,0]
[31,null,{"$f":"'FR-16(7)(v)-1 Functional'!C859","v":"RATIO TO TOTAL ELECTRIC"},null,{"$f":"'FR-16(7)(v)-1 Functional'!E859","v":"K407"},{"$f":"IF($F858=0,0,ROUND(F858/$F858,5))","v":1},{"$f":"IF(S858=0,F859-SUM(H859:Q859),ROUND(G858/F858,5))","v":0.80832999999999999},{"$f":"IF($F$858=0,0,ROUND(H858/$F$858,5))","v":0.18293000000000001},{"$f":"IF($F$858=0,0,ROUND(I858/$F$858,5))","v":0},1.4E-3,2.2000000000000001E-4,6.5100000000000002E-3,0,2.4000000000000001E-4,2.3000000000000001E-4,0,1.3999999999999999E-4,1,0,null,null,null,{"$f":"R859","v":1}]
[32,null,{"$f":"'FR-16(7)(v)-1 Functional'!C860","v":"WEIGHTED CUSTOMER"},"External",null,{"$f":"'WP FR-16(7)(v) Meters'!H40","v":156470},{"$f":"'WP FR-16(7)(v) Meters'!H19","v":128431},{"$f":"'WP FR-16(7)(v) Meters'!H20+'WP FR-16(7)(v) Meters'!H33","v":25940},{"$f":"'WP FR-16(7)(v) Meters'!H21","v":172},{"$f":"'WP FR-16(7)(v) Meters'!H22","v":206},{"$f":"'WP FR-16(7)(v) Meters'!H23","v":28},{"$f":"'WP FR-16(7)(v) Meters'!H24+'WP FR-16(7)(v) Meters'!H34","v":1089},{"$f":"'WP FR-16(7)(v) Meters'!H25+'WP FR-16(7)(v) Meters'!H35","v":37},{"$f":"'WP FR-16(7)(v) Meters'!H26+'WP FR-16(7)(v) Meters'!H36","v":40},{"$f":"'WP FR-16(7)(v) Meters'!H27+'WP FR-16(7)(v) Meters'!H37","v":37},{"$f":"'WP FR-16(7)(v) Meters'!H28","v":468},{"$f":"'WP FR-16(7)(v) Meters'!H29","v":22},156470,0]
[33,null,{"$f":"'FR-16(7)(v)-1 Functional'!C861","v":"RATIO TO TOTAL ELECTRIC"},null,{"$f":"'FR-16(7)(v)-1 Functional'!E861","v":"K409"},{"$f":"IF($F860=0,0,ROUND(F860/$F860,5))","v":1},{"$f":"IF(S860=0,F861-SUM(H861:Q861),ROUND(G860/F860,5))","v":0.82079000000000002},{"$f":"IF($F$860=0,0,ROUND(H860/$F$860,5))","v":0.16578000000000001},{"$f":"IF($F$860=0,0,ROUND(I860/$F$860,5))","v":1.1000000000000001E-3},1.32E-3,1.8000000000000001E-4,6.96E-3,2.4000000000000001E-4,2.5999999999999998E-4,2.4000000000000001E-4,2.99E-3,1.3999999999999999E-4,1,0,null,null,null,{"$f":"R861","v":1}]
[34,null,{"$f":"'FR-16(7)(v)-1 Functional'!C862","v":"UNCOLLECTIBLE ACCOUNT 904"},"External",null,{"$f":"'WP FR-16(7)(v) CustAcct'!G31","v":5781023.7599999998},{"$f":"'WP FR-16(7)(v) CustAcct'!G17","v":5267443},{"$f":"'WP FR-16(7)(v) CustAcct'!G19","v":249785.75999999978},{"$f":"'WP FR-16(7)(v) CustAcct'!G20","v":1597},{"$f":"'WP FR-16(7)(v) CustAcct'!G21","v":1664},{"$f":"'WP FR-16(7)(v) CustAcct'!G22","v":82},{"$f":"'WP FR-16(7)(v) CustAcct'!G23","v":129741},{"$f":"'WP FR-16(7)(v) CustAcct'!G24","v":82815},{"$f":"'WP FR-16(7)(v) CustAcct'!G25","v":3765},{"$f":"'WP FR-16(7)(v) CustAcct'!G26","v":38893},{"$f":"'WP FR-16(7)(v) CustAcct'!G27","v":5192},{"$f":"'WP FR-16(7)(v) CustAcct'!G28","v":46},5781023.7599999998,0]
[35,null,{"$f":"'FR-16(7)(v)-1 Functional'!C863","v":"RATIO TO TOTAL ELECTRIC"},null,{"$f":"'FR-16(7)(v)-1 Functional'!E863","v":"K411"},{"$f":"IF($F862=0,0,ROUND(F862/$F862,5))","v":1},{"$f":"IF(S862=0,F863-SUM(H863:Q863),ROUND(G862/F862,5))","v":0.91115000000000002},{"$f":"IF($F$862=0,0,ROUND(H862/$F$862,5))","v":4.3209999999999998E-2},{"$f":"IF($F$862=0,0,ROUND(I862/$F$862,5))","v":2.7999999999999998E-4},2.9E-4,1.0000000000000001E-5,2.2440000000000002E-2,1.4330000000000001E-2,6.4999999999999997E-4,6.7299999999999999E-3,8.9999999999999998E-4,1.0000000000000001E-5,0.99999999999999989,0,null,null,null,{"$f":"R863","v":0.99999999999999989}]
[36,null,{"$f":"'FR-16(7)(v)-1 Functional'!C864","v":"KWH SALES LESS RTP"},"External",null,{"$f":"'WP FR-16(7)(v)-KW & KWH @Gen'!F28","v":4244213606},{"$f":"'WP FR-16(7)(v)-KW & KWH @Gen'!F17","v":1608724299},{"$f":"'WP FR-16(7)(v)-KW & KWH @Gen'!F18","v":1146956880},{"$f":"'WP FR-16(7)(v)-KW & KWH @Gen'!F19","v":6420710},{"$f":"'WP FR-16(7)(v)-KW & KWH @Gen'!F20","v":18228802},{"$f":"'WP FR-16(7)(v)-KW & KWH @Gen'!F21","v":298034},{"$f":"'WP FR-16(7)(v)-KW & KWH @Gen'!F22","v":700889249},{"$f":"'WP FR-16(7)(v)-KW & KWH @Gen'!F23","v":488455966},{"$f":"'WP FR-16(7)(v)-KW & KWH @Gen'!F24","v":22905598},{"$f":"'WP FR-16(7)(v)-KW & KWH @Gen'!F25","v":232255694},{"$f":"'WP FR-16(7)(v)-KW & KWH @Gen'!F26","v":18599129},{"$f":"'WP FR-16(7)(v)-KW & KWH @Gen'!F27","v":479245},{"$f":"SUM(G864:Q864)","v":4244213606},{"$f":"F864-R864","v":0}]
[37,null,{"$f":"'FR-16(7)(v)-1 Functional'!C865","v":"RATIO TO TOTAL ELECTRIC"},null,{"$f":"'FR-16(7)(v)-1 Functional'!E865","v":"K302"},{"$f":"IF($F864=0,0,ROUND(F864/$F864,5))","v":1},{"$f":"IF(S864=0,F865-SUM(H865:Q865),ROUND(G864/F863,5))","v":0.37904999999999989},{"$f":"IF($F$864=0,0,ROUND(H864/$F$864,5))","v":0.27023999999999998},{"$f":"IF($F$864=0,0,ROUND(I864/$F$864,5))","v":1.5100000000000001E-3},4.2900000000000004E-3,6.9999999999999994E-5,0.16514000000000001,0.11509,5.4000000000000003E-3,5.4719999999999998E-2,4.3800000000000002E-3,1.1E-4,{"$f":"SUM(G865:Q865)","v":1},{"$f":"F865-R865","v":0}]
[38]
[39,null,{"$f":"'FR-16(7)(v)-1 Functional'!C867","v":"PRESENT REVENUES"},{"$f":"'FR-16(7)(v)-1 Functional'!$D$867","v":"CS09"},{"$f":"'FR-16(7)(v)-1 Functional'!E867","v":"R600"},{"$f":"'FR-16(7)(v)-2 PROD Classified'!H867","v":144487356},{"$f":"F867-SUM(H867:Q867)","v":54698455},{"$f":"ROUND(F867*VLOOKUP(D867,ALLOCTABLE_Prod_Energy,$H$10,FALSE),0)","v":39005769},{"$f":"ROUND($F$867*VLOOKUP($D$867,ALLOCTABLE_Prod_Energy,I10,FALSE),0)","v":218186},619397,10115,23854355,16607160,778856,8047230,631941,15892,{"$f":"SUM(G867:Q867)","v":144487356},{"$f":"F867-R867","v":0}]
[40,null,{"$f":"'FR-16(7)(v)-1 Functional'!C868","v":"PROPOSED REVENUES"},{"$f":"'FR-16(7)(v)-1 Functional'!$D$868","v":"A357"},{"$f":"'FR-16(7)(v)-1 Functional'!E868","v":"R602"},{"$f":"'FR-16(7)(v)-2 PROD Classified'!H868","v":122188315},{"$f":"F868-SUM(H868:Q868)","v":46260496},{"$f":"ROUND(F868*VLOOKUP(D868,ALLOCTABLE_Prod_Energy,$H$10,FALSE),0)","v":32987179},{"$f":"ROUND($F$868*VLOOKUP($D$868,ALLOCTABLE_Prod_Energy,I10,FALSE),0)","v":184504},524188,8553,20173291,14045547,658595,6798558,533963,13441,{"$f":"SUM(G868:Q868)","v":122188315},{"$f":"F868-R868","v":0}]
[]
[{"$f":"co_name","v":"DUKE ENERGY KENTUCKY, INC."},null,null,null,null,null,null,null,null,null,null,null,null,null,null,null,null,{"$f":"R1","v":"FR-16(7)(v)-4"}]
[{"$f":"$A$2","v":"PRODUCTION ENERGY ALLOCATED - ELECTRIC COST OF SERVICE"},null,null,null,null,null,null,null,null,null,null,null,null,null,null,null,null,{"$f":"R2","v":"WITNESS RESPONSIBLE:"}]
[{"$f":"case_name","v":"CASE NO: 2019-00271"},null,null,null,null,null,null,null,null,null,null,null,null,null,null,null,null,{"$f":"Witness","v":"JAMES E. ZIOLKOWSKI"}]
[{"$f":"data_filing","v":"DATA: 12 MONTHS ACTUAL  & 0 MONTHS ESTIMATED"},null,null,null,null,null,null,null,null,null,null,null,null,null,null,null,null,{"$f":"\"PAGE \"&Pages-1&\" OF \"&Pages","v":"PAGE 17 OF 18"}]
[{"$f":"type","v":"TYPE OF FILING: \"X\" ORIGINAL   UPDATED    REVISED  "}]
[]
[null,null,null,null,null,{"$f":"F$7","v":"TOTAL"},null,{"$f":"H$7","v":"DS"},{"$f":"I$7","v":"GSFL"},{"$f":"J$7","v":"EH"},{"$f":"K$7","v":"SP"},"DT SEC","DT PRI","DP","TT",null,"OTHER"]
["LINE",null,null,null,null,{"$f":"F$8","v":"PRODUCTION"},{"$f":"G$8","v":"RS"},{"$f":"H$8","v":"SECONDARY"},{"$f":"I$8","v":"SECONDARY"},{"$f":"J$8","v":"SECONDARY"},{"$f":"K$8","v":"SECONDARY"},"SECONDARY","PRIMARY","PRIMARY","TRANSMISSION","LT","WATER",{"$f":"R8","v":"TOTAL"},"ALL"]
["NO.","ALLOCATORS",null,"SOURCE","ALLO",{"$f":"F$9","v":"ENERGY"},{"$f":"G$9","v":"RESIDENTIAL"},{"$f":"H$9","v":"DISTRIBUTION"},{"$f":"I$9","v":"DISTRIBUTION"},{"$f":"J$9","v":"DISTRIBUTION"},{"$f":"K$9","v":"DISTRIBUTION"},"DISTRIBUTION","DISTRIBUTION","DISTRIBUTION","TIME OF DAY","LIGHTING","PUMPING",{"$f":"R9","v":"AT ISSUE"},"OTHER"]
[null,null,"Schedule 12.1",null,1,null,{"$f":"G$10","v":3},{"$f":"H$10","v":4},{"$f":"I$10","v":5},{"$f":"J$10","v":6},{"$f":"K$10","v":7},8,9,10,11,12,13,null," "]
[]
[1,null,{"$f":"'FR-16(7)(v)-1 Functional'!C881","v":"PRESENT REVENUES"},"Internal",null,{"$f":"'FR-16(7)(v)-3 PROD Demand'!F881","v":309580654},{"$f":"'FR-16(7)(v)-3 PROD Demand'!G881","v":123883637},{"$f":"'FR-16(7)(v)-3 PROD Demand'!H881","v":90318223},{"$f":"'FR-16(7)(v)-3 PROD Demand'!I881","v":577046},{"$f":"'FR-16(7)(v)-3 PROD Demand'!J881","v":600937},{"$f":"'FR-16(7)(v)-3 PROD Demand'!K881","v":29960},{"$f":"'FR-16(7)(v)-3 PROD Demand'!L881","v":46910116},{"$f":"'FR-16(7)(v)-3 PROD Demand'!M881","v":29943872},{"$f":"'FR-16(7)(v)-3 PROD Demand'!N881","v":1361377},{"$f":"'FR-16(7)(v)-3 PROD Demand'!O881","v":14062168},{"$f":"'FR-16(7)(v)-3 PROD Demand'!P881","v":1876470},{"$f":"'FR-16(7)(v)-3 PROD Demand'!Q881","v":16848},{"$f":"SUM(G881:Q881)","v":309580654},{"$f":"F881-R881","v":0}]
[2,null,{"$f":"'FR-16(7)(v)-1 Functional'!C882","v":"RATIO TO TOTAL ELECTRIC"},null,{"$f":"'FR-16(7)(v)-1 Functional'!E882","v":"K901"},{"$f":"IF($F881=0,0,ROUND(F881/$F881,9))","v":1},{"$f":"IF(S881=0,F882-SUM(H882:Q882),ROUND(G881/F881,5))","v":0.40016595199999994},{"$f":"IF($F$881=0,0,ROUND(H881/$F$881,9))","v":0.29174375699999999},{"$f":"IF($F$881=0,0,ROUND(I881/$F$881,9))","v":1.86396E-3},1.9411319999999999E-3,9.6775999999999996E-5,0.151527931,9.6723977000000003E-2,4.3974870000000003E-3,4.5423277999999997E-2,6.0613280000000004E-3,5.4422000000000002E-5,{"$f":"SUM(G882:Q882)","v":1},{"$f":"F882-R882","v":0},null,null,null,{"$f":"R882","v":1}]
[3,null,{"$f":"'FR-16(7)(v)-1 Functional'!C883","v":"PROPOSED REVENUES"},"Internal",null,{"$f":"'FR-16(7)(v)-3 PROD Demand'!F883","v":355094168},{"$f":"'FR-16(7)(v)-3 PROD Demand'!G883","v":147195469},{"$f":"'FR-16(7)(v)-3 PROD Demand'!H883","v":101595371},{"$f":"'FR-16(7)(v)-3 PROD Demand'!I883","v":649414},{"$f":"'FR-16(7)(v)-3 PROD Demand'!J883","v":676300},{"$f":"'FR-16(7)(v)-3 PROD Demand'!K883","v":33717},{"$f":"'FR-16(7)(v)-3 PROD Demand'!L883","v":52518255},{"$f":"'FR-16(7)(v)-3 PROD Demand'!M883","v":33522516},{"$f":"'FR-16(7)(v)-3 PROD Demand'!N883","v":1546768},{"$f":"'FR-16(7)(v)-3 PROD Demand'!O883","v":15232520},{"$f":"'FR-16(7)(v)-3 PROD Demand'!P883","v":2104877},{"$f":"'FR-16(7)(v)-3 PROD Demand'!Q883","v":18961},{"$f":"SUM(G883:Q883)","v":355094168},{"$f":"F883-R883","v":0}]
[4,null,{"$f":"'FR-16(7)(v)-1 Functional'!C884","v":"RATIO TO TOTAL ELECTRIC"},null,{"$f":"'FR-16(7)(v)-1 Functional'!E884","v":"K902"},{"$f":"IF($F883=0,0,ROUND(F883/$F883,9))","v":1},{"$f":"IF(S883=0,F884-SUM(H884:Q884),ROUND(G883/F883,5))","v":0.41452516699999997},{"$f":"IF($F$883=0,0,ROUND(H883/$F$883,9))","v":0.28610825000000001},{"$f":"IF($F$883=0,0,ROUND(I883/$F$883,9))","v":1.8288499999999999E-3},1.904565E-3,9.4951999999999995E-5,0.14789951400000001,9.4404581000000001E-2,4.3559369999999998E-3,4.2897128E-2,5.9276590000000001E-3,5.3396999999999997E-5,{"$f":"SUM(G884:Q884)","v":1},{"$f":"F884-R884","v":0}]
[5]
[6,"WEIGHTED RATIOS"]
[7,"GROSS ELECTRIC PLANT IN SERVICE"]
[8,null,{"$f":"'FR-16(7)(v)-1 Functional'!C888","v":"WTD GROSS PROD PLANT RATIOS"},"Internal",{"$f":"'FR-16(7)(v)-1 Functional'!E888","v":"P129"},1,{"$f":"IF(F888=0,0,F888-SUM(H888:Q888))","v":1},{"$f":"ROUND(IF($F$62=0,0,H62/$F$62),5)","v":0},0,0,0,{"$f":"ROUND(IF($F$62=0,0,L62/$F$62),5)","v":0},0,0,0,0,0,{"$f":"SUM(G888:Q888)","v":1},{"$f":"F888-R888","v":0},null,null,null,{"$f":"R888","v":1}]
[9,null,{"$f":"'FR-16(7)(v)-1 Functional'!C889","v":"WTD GROSS TRANS PLANT RATIOS"},"Internal",{"$f":"'FR-16(7)(v)-1 Functional'!E889","v":"T129"},0,0,{"$f":"ROUND(IF($F$68=0,0,H68/$F$68),5)","v":0},0,0,0,0,0,0,0,0,0,0,0,null,null,null,0]
[10,null,{"$f":"'FR-16(7)(v)-1 Functional'!C890","v":"WTD GROSS P & T PLT RATIOS"},"Internal",{"$f":"'FR-16(7)(v)-1 Functional'!E890","v":"PT29"},1,1,{"$f":"ROUND(IF($F$70=0,0,H70/$F$70),5)","v":0},0,0,0,{"$f":"ROUND(IF($F$70=0,0,L70/$F$70),5)","v":0},0,0,0,0,0,1,0]
[11,null,{"$f":"'FR-16(7)(v)-1 Functional'!C891","v":"WTD GROSS DIST PLANT RATIOS"},"Internal",{"$f":"'FR-16(7)(v)-1 Functional'!E891","v":"D149"},0,0,{"$f":"ROUND(IF($F$94=0,0,H94/$F$94),5)","v":0},0,0,0,{"$f":"ROUND(IF($F$94=0,0,L94/$F$94),5)","v":0},0,0,0,0,0,0,0]
[12,null,{"$f":"'FR-16(7)(v)-1 Functional'!C892","v":"WTD GROSS TRANS & DIST RATIOS"},"Internal",{"$f":"'FR-16(7)(v)-1 Functional'!E892","v":"TD29"},0,0,{"$f":"ROUND(IF($F$97=0,0,H97/$F$97),5)","v":0},0,0,0,{"$f":"ROUND(IF($F$97=0,0,L97/$F$97),5)","v":0},0,0,0,0,0,0,0,null,null,null,0]
[13,null,{"$f":"'FR-16(7)(v)-1 Functional'!C893","v":"WTD GROSS PTD PLT RATIOS"},"Internal",{"$f":"'FR-16(7)(v)-1 Functional'!E893","v":"PD29"},1,0.37745999999999991,{"$f":"ROUND(IF($F$109=0,0,H109/$F$109),5)","v":0.26932},1.5100000000000001E-3,4.28E-3,6.9999999999999994E-5,{"$f":"ROUND(IF($F$109=0,0,L109/$F$109),5)","v":0.16500999999999999},0.11461,5.3699999999999998E-3,5.79E-2,4.3600000000000002E-3,1.1E-4,0.99999999999999989,0,null,null,null,0.99999999999999989]
[14,null,{"$f":"'FR-16(7)(v)-1 Functional'!C894","v":"WTD GROSS G & I PLT RATIOS"},"Internal",{"$f":"'FR-16(7)(v)-1 Functional'!E894","v":"G129"},1,0.37745999999999991,{"$f":"ROUND(IF($F$121=0,0,H121/$F$121),5)","v":0.26932},1.5100000000000001E-3,4.28E-3,6.9999999999999994E-5,{"$f":"ROUND(IF($F$121=0,0,L121/$F$121),5)","v":0.16500999999999999},0.11461,5.3699999999999998E-3,5.79E-2,4.3600000000000002E-3,1.1E-4,0.99999999999999989,0,null,null,null,0.99999999999999989]
[15,null,{"$f":"'FR-16(7)(v)-1 Functional'!C895","v":"WTD GROSS C & O PLANT RATIOS"},"Internal",{"$f":"'FR-16(7)(v)-1 Functional'!E895","v":"C129"},1,0.37745999999999991,{"$f":"ROUND(IF($F$123=0,0,H123/$F$123),5)","v":0.26932},1.5100000000000001E-3,4.28E-3,6.9999999999999994E-5,{"$f":"ROUND(IF($F$123=0,0,L123/$F$123),5)","v":0.16500999999999999},0.11461,5.3699999999999998E-3,5.79E-2,4.3600000000000002E-3,1.1E-4,0.99999999999999989,0,null,null,null,0.99999999999999989]
[16,null,{"$f":"'FR-16(7)(v)-1 Functional'!C896","v":"WTD GROSS PLANT RATIOS"},"Internal",{"$f":"'FR-16(7)(v)-1 Functional'!E896","v":"GP19"},1,1,{"$f":"ROUND(IF($F$171=0,0,H171/$F$171),5)","v":0},0,0,0,{"$f":"ROUND(IF($F$171=0,0,L171/$F$171),5)","v":0},0,0,0,0,0,1,0,null,null,null,1]
[17,null,{"$f":"'FR-16(7)(v)-1 Functional'!C897","v":"WTD TOTAL DEPRC RES RATIOS"},"Internal",{"$f":"'FR-16(7)(v)-1 Functional'!E897","v":"DR19"},1,0.37746999999999986,{"$f":"ROUND(IF($F$200=0,0,H200/$F$200),5)","v":0.26933000000000001},1.5100000000000001E-3,4.28E-3,6.9999999999999994E-5,0.16500999999999999,0.11461,5.3699999999999998E-3,5.7880000000000001E-2,4.3600000000000002E-3,1.1E-4,0.99999999999999989,0,null,null,null,0.99999999999999989]
[18]
[19,"NET ELECTRIC PLANT"]
[20,null,{"$f":"'FR-16(7)(v)-1 Functional'!C900","v":"WTD NET PROD PLANT RATIOS"},"Internal",{"$f":"'FR-16(7)(v)-1 Functional'!E900","v":"P229"},1,{"$f":"IF(F900=0,0,F900-SUM(H900:Q900))","v":1},{"$f":"ROUND(IF($F$216=0,0,H216/$F$216),5)","v":0},0,0,0,{"$f":"ROUND(IF($F$216=0,0,L216/$F$216),5)","v":0},0,0,0,0,0,{"$f":"SUM(G900:Q900)","v":1},{"$f":"F900-R900","v":0},null,null,null,{"$f":"R900","v":1}]
[21,null,{"$f":"'FR-16(7)(v)-1 Functional'!C901","v":"WTD NET TRANS PLANT RATIOS"},"Internal",{"$f":"'FR-16(7)(v)-1 Functional'!E901","v":"T229"},0,0,{"$f":"ROUND(IF($F$222=0,0,H222/$F$222),5)","v":0},0,0,0,0,0,0,0,0,0,0,0,null,null,null,{"$f":"R901","v":0}]
[22,null,{"$f":"'FR-16(7)(v)-1 Functional'!C902","v":"WTD NET DIST LINES  - POLES, TOWERS & FIXTURES"},"Internal",{"$f":"'FR-16(7)(v)-1 Functional'!E902","v":"PL49"},0,0,{"$f":"ROUND(IF(SUM($F$228:$F$231)=0,0,SUM(H228:H231)/SUM($F$228:$F$231)),5)","v":0},{"$f":"ROUND(IF(SUM($F$228:$F$231)=0,0,SUM(I228:I231)/SUM($F$228:$F$231)),5)","v":0},0,0,0,0,0,0,0,0,0,0,null,null,null,{"$f":"R902","v":0}]
[23,null,{"$f":"'FR-16(7)(v)-1 Functional'!C903","v":"WTD NET TOTAL DIST PLANT RATIOS"},"Internal",{"$f":"'FR-16(7)(v)-1 Functional'!E903","v":"D249"},0,0,{"$f":"ROUND(IF($F$248=0,0,H248/$F$248),5)","v":0},0,0,0,{"$f":"ROUND(IF($F$248=0,0,L248/$F$248),5)","v":0},0,0,0,0,0,0,0]
[24,null,{"$f":"'FR-16(7)(v)-1 Functional'!C904","v":"WTD NET TRANS & DIST RATIOS"},"Internal",{"$f":"'FR-16(7)(v)-1 Functional'!E904","v":"NT29"},0,0,{"$f":"ROUND(IF($F$251=0,0,H251/$F$251),5)","v":0},0,0,0,{"$f":"ROUND(IF($F$251=0,0,L251/$F$251),5)","v":0},0,0,0,0,0,0,0]
[25,null,{"$f":"'FR-16(7)(v)-1 Functional'!C905","v":"WTD NET G & I PLT RATIOS"},"Internal",{"$f":"'FR-16(7)(v)-1 Functional'!E905","v":"G229"},1,0.37744999999999995,{"$f":"ROUND(IF($F$263=0,0,H263/$F$263),5)","v":0.26930999999999999},1.5100000000000001E-3,4.28E-3,6.9999999999999994E-5,{"$f":"ROUND(IF($F$263=0,0,L263/$F$263),5)","v":0.16500999999999999},0.11461,5.3699999999999998E-3,5.7919999999999999E-2,4.3600000000000002E-3,1.1E-4,1,0]
[26,null,{"$f":"'FR-16(7)(v)-1 Functional'!C906","v":"WTD NET C & O PLANT RATIOS"},"Internal",{"$f":"'FR-16(7)(v)-1 Functional'!E906","v":"C229"},1,0.37744999999999984,{"$f":"ROUND(IF($F$275=0,0,H275/$F$275),5)","v":0.26932},1.5100000000000001E-3,4.28E-3,6.9999999999999994E-5,{"$f":"ROUND(IF($F$275=0,0,L275/$F$275),5)","v":0.16500999999999999},0.11461,5.3699999999999998E-3,5.7910000000000003E-2,4.3600000000000002E-3,1.1E-4,0.99999999999999989,0]
[27,null,{"$f":"'FR-16(7)(v)-1 Functional'!C907","v":"WTD NET PLANT RATIOS"},"Internal",{"$f":"'FR-16(7)(v)-1 Functional'!E907","v":"NP29"},1,0.37743999999999989,{"$f":"ROUND(IF($F$277=0,0,H277/$F$277),5)","v":0.26932},1.5100000000000001E-3,4.28E-3,6.9999999999999994E-5,{"$f":"ROUND(IF($F$277=0,0,L277/$F$277),5)","v":0.16500999999999999},0.11461,5.3699999999999998E-3,5.7919999999999999E-2,4.3600000000000002E-3,1.1E-4,0.99999999999999989,0]
[28]
[29,"WORKING CAPITAL"]
[30,null,{"$f":"'FR-16(7)(v)-1 Functional'!C910","v":"WTD MATERIAL & SUPPLY RATIOS"},"Internal",{"$f":"'FR-16(7)(v)-1 Functional'!E910","v":"W669"},1,{"$f":"IF(F910=0,0,F910-SUM(H910:Q910))","v":0.37745999999999991},{"$f":"ROUND(IF($F$399=0,0,H399/$F$399),5)","v":0.26932},1.5100000000000001E-3,4.28E-3,6.9999999999999994E-5,{"$f":"ROUND(IF($F$399=0,0,L399/$F$399),5)","v":0.16500999999999999},0.11461,5.3699999999999998E-3,5.79E-2,4.3600000000000002E-3,1.1E-4,{"$f":"SUM(G910:Q910)","v":0.99999999999999989},{"$f":"F910-R910","v":0},null,null,null,{"$f":"R910","v":0.99999999999999989}]
[31,null,{"$f":"'FR-16(7)(v)-1 Functional'!C911","v":"WTD PREPAYMENTS RATIOS"},"Internal",{"$f":"'FR-16(7)(v)-1 Functional'!E911","v":"W689"},1,{"$f":"IF(F911=0,0,F911-SUM(H911:Q911))","v":0.37742999999999993},{"$f":"ROUND(IF($F$405=0,0,H405/$F$405),5)","v":0.26930999999999999},1.5100000000000001E-3,4.2900000000000004E-3,6.9999999999999994E-5,{"$f":"ROUND(IF($F$405=0,0,L405/$F$405),5)","v":0.16502},0.11461,5.3899999999999998E-3,5.7910000000000003E-2,4.3400000000000001E-3,1.2E-4,{"$f":"SUM(G911:Q911)","v":0.99999999999999989},{"$f":"F911-R911","v":0},null,null,null,{"$f":"R911","v":0.99999999999999989}]
[32,null,{"$f":"'FR-16(7)(v)-1 Functional'!C912","v":"WTD TOTAL WORKING CASH RATIOS"},"Internal",{"$f":"'FR-16(7)(v)-1 Functional'!E912","v":"W719"},1,{"$f":"IF(F912=0,0,F912-SUM(H912:Q912))","v":1},{"$f":"ROUND(IF($F$408=0,0,H408/$F$408),5)","v":0},0,0,0,{"$f":"ROUND(IF($F$408=0,0,L408/$F$408),5)","v":0},0,0,0,0,0,{"$f":"SUM(G912:Q912)","v":1},{"$f":"F912-R912","v":0},null,null,null,{"$f":"R912","v":1}]
[33,null,{"$f":"'FR-16(7)(v)-1 Functional'!C913","v":"WTD TOTAL MISC WRKNG CAP RATIO"},"Internal",{"$f":"'FR-16(7)(v)-1 Functional'!E913","v":"W749"},1,{"$f":"IF(F913=0,0,F913-SUM(H913:Q913))","v":1},{"$f":"ROUND(IF($F$414=0,0,H414/$F$414),5)","v":0},0,0,0,{"$f":"ROUND(IF($F$414=0,0,L414/$F$414),5)","v":0},0,0,0,0,0,{"$f":"SUM(G913:Q913)","v":1},{"$f":"F913-R913","v":0},null,null,null,{"$f":"R913","v":1}]
[34,null,{"$f":"'FR-16(7)(v)-1 Functional'!C914","v":"WTD TOTAL WRKNG CAP RATIOS"},"Internal",{"$f":"'FR-16(7)(v)-1 Functional'!E914","v":"WC79"},1,{"$f":"IF(F914=0,0,F914-SUM(H914:Q914))","v":0.37745999999999991},{"$f":"ROUND(IF($F$416=0,0,H416/$F$416),5)","v":0.26932},1.5100000000000001E-3,4.28E-3,6.9999999999999994E-5,{"$f":"ROUND(IF($F$416=0,0,L416/$F$416),5)","v":0.16500999999999999},0.11461,5.3699999999999998E-3,5.79E-2,4.3600000000000002E-3,1.1E-4,{"$f":"SUM(G914:Q914)","v":0.99999999999999989},{"$f":"F914-R914","v":0}]
[35]
[36,"RATE BASE"]
[37,null,{"$f":"'FR-16(7)(v)-1 Functional'!C917","v":"WTD NET OCRB RATIOS"},"Internal",{"$f":"'FR-16(7)(v)-1 Functional'!E917","v":"RB29"},1,{"$f":"IF(F917=0,0,F917-SUM(H917:Q917))","v":0.37661},{"$f":"ROUND(IF($F$390=0,0,H390/$F$390),5)","v":0.26883000000000001},1.5100000000000001E-3,4.2700000000000004E-3,6.9999999999999994E-5,{"$f":"ROUND(IF($F$390=0,0,L390/$F$390),5)","v":0.16494},0.11434999999999999,5.3499999999999997E-3,5.9610000000000003E-2,4.3499999999999997E-3,1.1E-4,{"$f":"SUM(G917:Q917)","v":1},{"$f":"F917-R917","v":0}]
[38,null,{"$f":"'FR-16(7)(v)-1 Functional'!C918","v":"WTD TOTAL RATE BASE RATIOS"},"Internal",{"$f":"'FR-16(7)(v)-1 Functional'!E918","v":"RB99"},1,{"$f":"IF(F918=0,0,F918-SUM(H918:Q918))","v":0.37726999999999988},{"$f":"ROUND(IF($F$426=0,0,H426/$F$426),5)","v":0.26921},1.5100000000000001E-3,4.28E-3,6.9999999999999994E-5,{"$f":"ROUND(IF($F$426=0,0,L426/$F$426),5)","v":0.16499},0.11455,5.3699999999999998E-3,5.8279999999999998E-2,4.3600000000000002E-3,1.1E-4,{"$f":"SUM(G918:Q918)","v":1},{"$f":"F918-R918","v":0}]
[39,null,{"$f":"'FR-16(7)(v)-1 Functional'!C919","v":"WTD CWIP RATIO"},"Internal",{"$f":"'FR-16(7)(v)-1 Functional'!E919","v":"CW29"},1,{"$f":"IF(F919=0,0,F919-SUM(H919:Q919))","v":1},{"$f":"ROUND(IF($F$375=0,0,H375/$F$375),5)","v":0},0,0,0,{"$f":"ROUND(IF($F$375=0,0,L375/$F$375),5)","v":0},0,0,0,0,0,{"$f":"SUM(G919:Q919)","v":1},{"$f":"F919-R919","v":0},null,null,null,{"$f":"R919","v":1}]
[]
[{"$f":"co_name","v":"DUKE ENERGY KENTUCKY, INC."},null,null,null,null,null,null,null,null,null,null,null,null,null,null,null,null,{"$f":"R1","v":"FR-16(7)(v)-4"}]
[{"$f":"$A$2","v":"PRODUCTION ENERGY ALLOCATED - ELECTRIC COST OF SERVICE"},null,null,null,null,null,null,null,null,null,null,null,null,null,null,null,null,{"$f":"R2","v":"WITNESS RESPONSIBLE:"}]
[{"$f":"case_name","v":"CASE NO: 2019-00271"},null,null,null,null,null,null,null,null,null,null,null,null,null,null,null,null,{"$f":"Witness","v":"JAMES E. ZIOLKOWSKI"}]
[{"$f":"data_filing","v":"DATA: 12 MONTHS ACTUAL  & 0 MONTHS ESTIMATED"},null,null,null,null,null,null,null,null,null,null,null,null,null,null,null,null,{"$f":"\"PAGE \"&Pages&\" OF \"&Pages","v":"PAGE 18 OF 18"}]
[{"$f":"type","v":"TYPE OF FILING: \"X\" ORIGINAL   UPDATED    REVISED  "}]
[]
[null,null,null,null,null,{"$f":"F$7","v":"TOTAL"},null,{"$f":"H$7","v":"DS"},{"$f":"I$7","v":"GSFL"},{"$f":"J$7","v":"EH"},{"$f":"K$7","v":"SP"},"DT SEC","DT PRI","DP","TT",null,"OTHER"]
["LINE",null,null,null,null,{"$f":"F$8","v":"PRODUCTION"},{"$f":"G$8","v":"RS"},{"$f":"H$8","v":"SECONDARY"},{"$f":"I$8","v":"SECONDARY"},{"$f":"J$8","v":"SECONDARY"},{"$f":"K$8","v":"SECONDARY"},"SECONDARY","PRIMARY","PRIMARY","TRANSMISSION","LT","WATER",{"$f":"R8","v":"TOTAL"},"ALL"]
["NO.","ALLOCATORS",null,"SOURCE","ALLO",{"$f":"F$9","v":"ENERGY"},{"$f":"G$9","v":"RESIDENTIAL"},{"$f":"H$9","v":"DISTRIBUTION"},{"$f":"I$9","v":"DISTRIBUTION"},{"$f":"J$9","v":"DISTRIBUTION"},{"$f":"K$9","v":"DISTRIBUTION"},"DISTRIBUTION","DISTRIBUTION","DISTRIBUTION","TIME OF DAY","LIGHTING","PUMPING",{"$f":"R9","v":"AT ISSUE"},"OTHER"]
[null,null,"Schedule 12.2",null,1,null,{"$f":"G$10","v":3},{"$f":"H$10","v":4},{"$f":"I$10","v":5},{"$f":"J$10","v":6},{"$f":"K$10","v":7},8,9,10,11,12,13,null," "]
[1,"WEIGHTED O & M EXPENSE RATIOS"]
[2,null,{"$f":"'FR-16(7)(v)-1 Functional'!C932","v":"WTD PROD DEMAND O&M EXP RATIOS"},"Internal",{"$f":"'FR-16(7)(v)-1 Functional'!E932","v":"P349"},1,{"$f":"IF(F932=0,0,F932-SUM(H932:Q932))","v":1},{"$f":"ROUND(IF($F$457=0,0,H457/$F$457),5)","v":0},0,0,0,{"$f":"ROUND(IF($F$457=0,0,L457/$F$457),5)","v":0},0,0,0,0,0,{"$f":"SUM(G932:Q932)","v":1},{"$f":"F932-R932","v":0},null,null,null,{"$f":"R932","v":1}]
[3,null,{"$f":"'FR-16(7)(v)-1 Functional'!C933","v":"WTD PROD ENERGY O&M EXP RATIOS"},"Internal",{"$f":"'FR-16(7)(v)-1 Functional'!E933","v":"E349"},1,0.37859999999999994,{"$f":"ROUND(IF($F$453=0,0,H453/$F$453),5)","v":0.26996999999999999},1.5100000000000001E-3,4.2900000000000004E-3,6.9999999999999994E-5,{"$f":"ROUND(IF($F$453=0,0,L453/$F$453),5)","v":0.1651},0.11495,5.3899999999999998E-3,5.5640000000000002E-2,4.3699999999999998E-3,1.1E-4,1,0,null,null,null,{"$f":"R933","v":1}]
[4,null,{"$f":"'FR-16(7)(v)-1 Functional'!C934","v":"WTD TOTAL PROD O&M EXP RATIOS"},"Internal",{"$f":"'FR-16(7)(v)-1 Functional'!E934","v":"P459"},1,0.37859999999999994,{"$f":"ROUND(IF($F$459=0,0,H459/$F$459),5)","v":0.26996999999999999},1.5100000000000001E-3,4.2900000000000004E-3,6.9999999999999994E-5,{"$f":"ROUND(IF($F$459=0,0,L459/$F$459),5)","v":0.1651},0.11495,5.3899999999999998E-3,5.5640000000000002E-2,4.3699999999999998E-3,1.1E-4,1,0,null,null,null,{"$f":"R934","v":1}]
[5,null,{"$f":"'FR-16(7)(v)-1 Functional'!C935","v":"WTD TRANS O&M EXP RATIOS"},"Internal",{"$f":"'FR-16(7)(v)-1 Functional'!E935","v":"T349"},1,1,{"$f":"ROUND(IF($F$466=0,0,H466/$F$466),5)","v":0},0,0,0,{"$f":"ROUND(IF($F$466=0,0,L466/$F$466),5)","v":0},0,0,0,0,0,1,0,null,null,null,{"$f":"R935","v":1}]
[6,null,{"$f":"'FR-16(7)(v)-1 Functional'!C936","v":"WTD DIST O&M EXP RATIOS"},"Internal",{"$f":"'FR-16(7)(v)-1 Functional'!E936","v":"D349"},1,1,{"$f":"ROUND(IF($F$492=0,0,H492/$F$492),5)","v":0},0,0,0,{"$f":"ROUND(IF($F$492=0,0,L492/$F$492),5)","v":0},0,0,0,0,0,1,0]
[7,null,{"$f":"'FR-16(7)(v)-1 Functional'!C937","v":"WTD UNCOLLECTIBLE ACCOUNT O&M"},"Internal",{"$f":"'FR-16(7)(v)-1 Functional'!E937","v":"C311"},1,1,{"$f":"ROUND(IF($F$496=0,0,H496/$F$496),5)","v":0},0,0,0,{"$f":"ROUND(IF($F$496=0,0,L496/$F$496),5)","v":0},0,0,0,0,0,1,0,null,null,null,{"$f":"R937","v":1}]
[8,null,{"$f":"'FR-16(7)(v)-1 Functional'!C938","v":"WTD CUST ACCT O&M EXP RATIOS"},"Internal",{"$f":"'FR-16(7)(v)-1 Functional'!E938","v":"C319"},1,1,{"$f":"ROUND(IF($F$503=0,0,H503/$F$503),5)","v":0},0,0,0,{"$f":"ROUND(IF($F$503=0,0,L503/$F$503),5)","v":0},0,0,0,0,0,1,0,null,null,null,{"$f":"R938","v":1}]
[9,null,{"$f":"'FR-16(7)(v)-1 Functional'!C939","v":"WTD CUST SERV & INFO O&M  EXP RATIOS"},"Internal",{"$f":"'FR-16(7)(v)-1 Functional'!E939","v":"C331"},1,1,{"$f":"ROUND(IF($F$518=0,0,H518/$F$518),5)","v":0},0,0,0,{"$f":"ROUND(IF($F$518=0,0,L518/$F$518),5)","v":0},0,0,0,0,0,1,0,null,null,null,{"$f":"R939","v":1}]
[10,null,{"$f":"'FR-16(7)(v)-1 Functional'!C940","v":"WTD SALES O&M EXP RATIOS"},"Internal",{"$f":"'FR-16(7)(v)-1 Functional'!E940","v":"S319"},1,1,{"$f":"ROUND(IF($F$522=0,0,H522/$F$522),5)","v":0},0,0,0,{"$f":"ROUND(IF($F$522=0,0,L522/$F$522),5)","v":0},0,0,0,0,0,{"$f":"SUM(G940:Q940)","v":1},{"$f":"F940-R940","v":0}]
[11,null,{"$f":"'FR-16(7)(v)-1 Functional'!C941","v":"WTD O&M EXP RATIOS"},"Internal",{"$f":"'FR-16(7)(v)-1 Functional'!E941","v":"OM39"},1,0.37859999999999994,{"$f":"ROUND(IF($F$549=0,0,H549/$F$549),5)","v":0.26996999999999999},1.5100000000000001E-3,4.2900000000000004E-3,6.9999999999999994E-5,{"$f":"ROUND(IF($F$549=0,0,L549/$F$549),5)","v":0.1651},0.11495,5.3899999999999998E-3,5.5640000000000002E-2,4.3699999999999998E-3,1.1E-4,{"$f":"SUM(G941:Q941)","v":1},{"$f":"F941-R941","v":0}]
[12]
[13,"A & G EXPENSES"]
[14,null,{"$f":"'FR-16(7)(v)-1 Functional'!C944","v":"WTD PROD DEMAND A&G EXP RATIOS"},"Internal",{"$f":"'FR-16(7)(v)-1 Functional'!E944","v":"A300"},1,{"$f":"IF(F944=0,0,F944-SUM(H944:Q944))","v":1},{"$f":"ROUND(IF($F$525=0,0,H525/$F$525),5)","v":0},0,0,0,{"$f":"ROUND(IF($F$525=0,0,L525/$F$525),5)","v":0},0,0,0,0,0,{"$f":"SUM(G944:Q944)","v":1},{"$f":"F944-R944","v":0}]
[15,null,{"$f":"'FR-16(7)(v)-1 Functional'!C945","v":"WTD PROD ENERGY A&G EXP RATIOS"},"Internal",{"$f":"'FR-16(7)(v)-1 Functional'!E945","v":"A302"},1,0.37859999999999994,{"$f":"ROUND(IF($F$526=0,0,H526/$F$526),5)","v":0.26996999999999999},1.5100000000000001E-3,4.2900000000000004E-3,6.9999999999999994E-5,{"$f":"ROUND(IF($F$526=0,0,L526/$F$526),5)","v":0.1651},0.11495,5.3899999999999998E-3,5.5640000000000002E-2,4.3699999999999998E-3,1.1E-4,1,0]
[16,null,{"$f":"'FR-16(7)(v)-1 Functional'!C946","v":"WTD TRANS A&G EXP RATIOS"},"Internal",{"$f":"'FR-16(7)(v)-1 Functional'!E946","v":"A304"},1,1,{"$f":"ROUND(IF($F$527=0,0,H527/$F$527),5)","v":0},0,0,0,{"$f":"ROUND(IF($F$527=0,0,L527/$F$527),5)","v":0},0,0,0,0,0,1,0]
[17,null,{"$f":"'FR-16(7)(v)-1 Functional'!C947","v":"WTD DIST A&G EXP RATIOS"},"Internal",{"$f":"'FR-16(7)(v)-1 Functional'!E947","v":"A306"},1,1,{"$f":"ROUND(IF($F$528=0,0,H528/$F$528),5)","v":0},0,0,0,{"$f":"ROUND(IF($F$528=0,0,L528/$F$528),5)","v":0},0,0,0,0,0,1,0]
[18,null,{"$f":"'FR-16(7)(v)-1 Functional'!C948","v":"WTD CUST ACCT A&G EXP RATIOS"},"Internal",{"$f":"'FR-16(7)(v)-1 Functional'!E948","v":"A308"},1,1,{"$f":"ROUND(IF($F$529=0,0,H529/$F$529),5)","v":0},0,0,0,{"$f":"ROUND(IF($F$529=0,0,L529/$F$529),5)","v":0},0,0,0,0,0,1,0]
[19,null,{"$f":"'FR-16(7)(v)-1 Functional'!C949","v":"WTD CUST SERV & INFO A&G  EXP RATIOS"},"Internal",{"$f":"'FR-16(7)(v)-1 Functional'!E949","v":"A310"},1,1,{"$f":"ROUND(IF($F$530=0,0,H530/$F$530),5)","v":0},0,0,0,{"$f":"ROUND(IF($F$530=0,0,L530/$F$530),5)","v":0},0,0,0,0,0,1,0]
[20,null,{"$f":"'FR-16(7)(v)-1 Functional'!C950","v":"WTD SALES A&G EXP RATIOS"},"Internal",{"$f":"'FR-16(7)(v)-1 Functional'!E950","v":"A312"},1,1,{"$f":"ROUND(IF($F$531=0,0,H531/$F$531),5)","v":0},0,0,0,{"$f":"ROUND(IF($F$531=0,0,L531/$F$531),5)","v":0},0,0,0,0,0,1,0]
[21,null,{"$f":"'FR-16(7)(v)-1 Functional'!C951","v":"WTD A&G EXPENSE UNADJUSTED"},"Internal",{"$f":"'FR-16(7)(v)-1 Functional'!E951","v":"A315"},1,0.37859999999999994,{"$f":"ROUND(IF($F$532=0,0,H532/$F$532),5)","v":0.26996999999999999},1.5100000000000001E-3,4.2900000000000004E-3,6.9999999999999994E-5,{"$f":"ROUND(IF($F$532=0,0,L532/$F$532),5)","v":0.1651},0.11495,5.3899999999999998E-3,5.5640000000000002E-2,4.3699999999999998E-3,1.1E-4,1,0]
[22,null,{"$f":"'FR-16(7)(v)-1 Functional'!C952","v":"WTD A&G EXP RATIOS"},"Internal",{"$f":"'FR-16(7)(v)-1 Functional'!E952","v":"A357"},1,0.37859999999999994,{"$f":"ROUND(IF($F$547=0,0,H547/$F$547),5)","v":0.26996999999999999},1.5100000000000001E-3,4.2900000000000004E-3,6.9999999999999994E-5,{"$f":"ROUND(IF($F$547=0,0,L547/$F$547),5)","v":0.1651},0.11495,5.3899999999999998E-3,5.5640000000000002E-2,4.3699999999999998E-3,1.1E-4,1,0]
[23]
[24,"DEPRECIATION EXPENSES"]
[25,null,{"$f":"'FR-16(7)(v)-1 Functional'!C955","v":"WTD PRODUCTION DEPREC RATIOS"},"Internal",{"$f":"'FR-16(7)(v)-1 Functional'!E955","v":"P489"},1,{"$f":"IF(F955=0,0,F955-SUM(H955:Q955))","v":1},{"$f":"ROUND(IF($F$563=0,0,H563/$F$563),5)","v":0},0,0,0,{"$f":"ROUND(IF($F$563=0,0,L563/$F$563),5)","v":0},0,0,0,0,0,{"$f":"SUM(G955:Q955)","v":1},{"$f":"F955-R955","v":0},null,null,null,{"$f":"R955","v":1}]
[26,null,{"$f":"'FR-16(7)(v)-1 Functional'!C956","v":"WTD TRANS DEPREC RATIOS"},"Internal",{"$f":"'FR-16(7)(v)-1 Functional'!E956","v":"T489"},1,1,{"$f":"ROUND(IF($F$567=0,0,H567/$F$567),5)","v":0},0,0,0,{"$f":"ROUND(IF($F$567=0,0,L567/$F$567),5)","v":0},0,0,0,0,0,1,0,null,null,null,{"$f":"R956","v":1}]
[27,null,{"$f":"'FR-16(7)(v)-1 Functional'!C957","v":"WTD DIST DEPREC RATIOS"},"Internal",{"$f":"'FR-16(7)(v)-1 Functional'!E957","v":"D489"},1,1,{"$f":"ROUND(IF($F$571=0,0,H571/$F$571),5)","v":0},0,0,0,{"$f":"ROUND(IF($F$571=0,0,L571/$F$571),5)","v":0},0,0,0,0,0,1,0,null,null,null,{"$f":"R957","v":1}]
[28,null,{"$f":"'FR-16(7)(v)-1 Functional'!C958","v":"WTD GENERAL DEPREC EXP RATIOS"},"Internal",{"$f":"'FR-16(7)(v)-1 Functional'!E958","v":"G489"},1,0.37744999999999995,{"$f":"ROUND(IF($F$575=0,0,H575/$F$575),5)","v":0.26930999999999999},1.5100000000000001E-3,4.28E-3,6.9999999999999994E-5,{"$f":"ROUND(IF($F$575=0,0,L575/$F$575),5)","v":0.16500999999999999},0.11461,5.3699999999999998E-3,5.7919999999999999E-2,4.3600000000000002E-3,1.1E-4,1,0,null,null,null,{"$f":"R958","v":1}]
[29,null,{"$f":"'FR-16(7)(v)-1 Functional'!C959","v":"WTD COM & OTHER DEP EXP RATIOS"},"Internal",{"$f":"'FR-16(7)(v)-1 Functional'!E959","v":"C489"},1,0.3773399999999999,{"$f":"ROUND(IF($F$579=0,0,H579/$F$579),5)","v":0.26932},1.5100000000000001E-3,4.2900000000000004E-3,8.0000000000000007E-5,{"$f":"ROUND(IF($F$579=0,0,L579/$F$579),5)","v":0.16502},0.11463,5.4099999999999999E-3,5.7950000000000002E-2,4.3699999999999998E-3,8.0000000000000007E-5,0.99999999999999989,0]
[30,null,{"$f":"'FR-16(7)(v)-1 Functional'!C960","v":"WTD TOT DEPREC EXP RATIOS"},"Internal",{"$f":"'FR-16(7)(v)-1 Functional'!E960","v":"DE49"},1,0.37744999999999995,{"$f":"ROUND(IF($F$582=0,0,H582/$F$582),5)","v":0.26930999999999999},1.5100000000000001E-3,4.28E-3,6.9999999999999994E-5,{"$f":"ROUND(IF($F$582=0,0,L582/$F$582),5)","v":0.16500999999999999},0.11461,5.3699999999999998E-3,5.7919999999999999E-2,4.3600000000000002E-3,1.1E-4,1,0,null,null,null,{"$f":"R960","v":1}]
[31]
[32,"OTHER TAXES & MISC EXPENSES"]
[33,null,{"$f":"'FR-16(7)(v)-1 Functional'!C963","v":"WTD R. E. & PROP TAX RATIOS"},"Internal",{"$f":"'FR-16(7)(v)-1 Functional'!E963","v":"L529"},1,{"$f":"IF(F963=0,0,F963-SUM(H963:Q963))","v":0.37743999999999989},{"$f":"ROUND(IF($F$598=0,0,H598/$F$598),5)","v":0.26932},1.5100000000000001E-3,4.28E-3,6.9999999999999994E-5,{"$f":"ROUND(IF($F$598=0,0,L598/$F$598),5)","v":0.16500999999999999},0.11461,5.3699999999999998E-3,5.7919999999999999E-2,4.3600000000000002E-3,1.1E-4,{"$f":"SUM(G963:Q963)","v":0.99999999999999989},{"$f":"F963-R963","v":0},null,null,null,{"$f":"R963","v":0.99999999999999989}]
[34,null,{"$f":"'FR-16(7)(v)-1 Functional'!C964","v":"WTD MISC TAX RATIOS"},"Internal",{"$f":"'FR-16(7)(v)-1 Functional'!E964","v":"L589"},1,{"$f":"IF(F964=0,0,F964-SUM(H964:Q964))","v":0.37859999999999994},{"$f":"ROUND(IF($F$605=0,0,H605/$F$605),5)","v":0.26996999999999999},1.5100000000000001E-3,4.2900000000000004E-3,6.9999999999999994E-5,{"$f":"ROUND(IF($F$605=0,0,L605/$F$605),5)","v":0.1651},0.11495,5.3899999999999998E-3,5.5640000000000002E-2,4.3699999999999998E-3,1.1E-4,{"$f":"SUM(G964:Q964)","v":1},{"$f":"F964-R964","v":0},null,null,null,{"$f":"R964","v":1}]
[35,null,{"$f":"'FR-16(7)(v)-1 Functional'!C965","v":"WTD OTHER TAX RATIOS"},"Internal",{"$f":"'FR-16(7)(v)-1 Functional'!E965","v":"L599"},1,{"$f":"IF(F965=0,0,F965-SUM(H965:Q965))","v":0.38036000000000003},{"$f":"ROUND(IF($F$612=0,0,H612/$F$612),5)","v":0.27071000000000001},1.5299999999999999E-3,4.1399999999999996E-3,6.9999999999999994E-5,{"$f":"ROUND(IF($F$612=0,0,L612/$F$612),5)","v":0.16402},0.11358,5.3200000000000001E-3,5.57E-2,4.4600000000000004E-3,1.1E-4,{"$f":"SUM(G965:Q965)","v":1.0000000000000002},{"$f":"F965-R965","v":0},null,null,null,{"$f":"R965","v":1.0000000000000002}]
[36,null,{"$f":"'FR-16(7)(v)-1 Functional'!C966","v":"WTD OP EXP EX IT & REV RATIOS"},"Internal",{"$f":"'FR-16(7)(v)-1 Functional'!E966","v":"OP69"},1,{"$f":"IF(F966=0,0,F966-SUM(H966:Q966))","v":0.37857999999999992},{"$f":"ROUND(IF($F$618=0,0,H618/$F$618),5)","v":0.26996999999999999},1.5100000000000001E-3,4.2900000000000004E-3,6.9999999999999994E-5,{"$f":"ROUND(IF($F$618=0,0,L618/$F$618),5)","v":0.1651},0.11494,5.3899999999999998E-3,5.5669999999999997E-2,4.3699999999999998E-3,1.1E-4,{"$f":"SUM(G966:Q966)","v":1},{"$f":"F966-R966","v":0},null,null,null,{"$f":"R966","v":1}]
[37]
[38,"TOTAL COST OF SERVICE"]
[39,null,{"$f":"'FR-16(7)(v)-1 Functional'!C969","v":"WTD TOTAL COST OF SERVICE"},"Internal",{"$f":"'FR-16(7)(v)-1 Functional'!E969","v":"CS09"},1,{"$f":"IF(F969=0,0,F969-SUM(H969:Q969))","v":0.37856914500000005},{"$f":"ROUND(IF($F$770=0,0,H770/$F$770),9)","v":0.26995974},1.510071E-3,4.2868619999999998E-3,7.0003E-5,0.16509648699999999,0.114938501,5.3904770000000003E-3,5.5695049000000003E-2,4.3736749999999996E-3,1.0999E-4,{"$f":"SUM(G969:Q969)","v":1},{"$f":"F969-R969","v":0},null,null,null,{"$f":"R969","v":1}]
[40]
[41,"WAGES & SALARIES (K600-K639)"]
[42,null,{"$f":"'FR-16(7)(v)-1 Functional'!C972","v":"WTD RATIOS"},"Internal",{"$f":"'FR-16(7)(v)-1 Functional'!E972","v":"K669"}]
[]
[]
[]
[]
[]
[]
[]
[]
[]
[1,"REVENUE NOT TO BE INCLUDED IN REVENUE TAX CALC"]
[2,null,"GOVERNMENTAL",null,"A357",{"$f":"'FR-16(7)(v)-2 PROD Classified'!H983","v":0},{"$f":"F983-SUM(H983:Q983)","v":0},{"$f":"ROUND(F983*VLOOKUP(E983,ALLOCTABLE_Prod_Energy,$H$10,FALSE),0)","v":0},{"$f":"ROUND(F983*VLOOKUP(E983,ALLOCTABLE_Prod_Energy,$I$10,FALSE),0)","v":0},{"$f":"ROUND(F983*VLOOKUP(E983,ALLOCTABLE_Prod_Energy,$J$10,FALSE),0)","v":0},{"$f":"ROUND(F983*VLOOKUP(E983,ALLOCTABLE_Prod_Energy,$K$10,FALSE),0)","v":0},{"$f":"ROUND(F983*VLOOKUP(E983,ALLOCTABLE_Prod_Energy,$L$10,FALSE),0)","v":0},{"$f":"ROUND(F983*VLOOKUP(E983,ALLOCTABLE_Prod_Energy,$M$10,FALSE),0)","v":0},{"$f":"ROUND(F983*VLOOKUP(E983,ALLOCTABLE_Prod_Energy,$N$10,FALSE),0)","v":0},{"$f":"ROUND(F983*VLOOKUP(E983,ALLOCTABLE_Prod_Energy,$O$10,FALSE),0)","v":0},{"$f":"ROUND(F983*VLOOKUP(E983,ALLOCTABLE_Prod_Energy,$P$10,FALSE),0)","v":0},{"$f":"ROUND(F983*VLOOKUP(E983,ALLOCTABLE_Prod_Energy,$Q$10,FALSE),0)","v":0},{"$f":"SUM(G983:Q983)","v":0},{"$f":"F983-R983","v":0}]
[3,null,"INTERDEPARTMENTAL",null,"A357",{"$f":"'FR-16(7)(v)-2 PROD Classified'!H984","v":0},0,0,0,0,0,0,0,0,0,0,0,0,0]
[4,null,"UNCOLLECTIBLE EXPENSE",null,"A357",{"$f":"'FR-16(7)(v)-2 PROD Classified'!H985","v":0},0,0,0,0,0,0,0,0,0,0,0,0,0]
[5,null,"OTHER PROD GAS ASSC COS  489050",null,"K301",{"$f":"'FR-16(7)(v)-2 PROD Classified'!H986","v":0},0,0,0,0,0,0,0,0,0,0,0,0,0]
[6,null,"MISC. REV. - SALE OF MATERIAL",null,"A357",{"$f":"'FR-16(7)(v)-2 PROD Classified'!H987","v":0},0,0,0,0,0,0,0,0,0,0,0,0,0]
[7,null,"RENT ASSOC. COS  49302,04,05,06,07,08,11 & 50",null,"NP29",{"$f":"'FR-16(7)(v)-2 PROD Classified'!H988","v":0},0,0,0,0,0,0,0,0,0,0,0,0,0]
[8,null,"TOTAL","REXC",null,{"$f":"SUM(F982:F988)","v":0},0,0,0,{"$f":"SUM(J982:J988)","v":0},0,0,0,0,0,0,0,0,0]
[]
[]
[]
[]
[]
["DO NOT FILE THIS PAGE"]
[]
[{"$f":"co_name","v":"DUKE ENERGY KENTUCKY, INC."},null,null,null,null,null,null,null,null,null,null,null,null,null,null,null,null,{"$f":"R1","v":"FR-16(7)(v)-4"}]
[{"$f":"$A$2","v":"PRODUCTION ENERGY ALLOCATED - ELECTRIC COST OF SERVICE"},null,null,null,null,null,null,null,null,null,null,null,null,null,null,null,null,{"$f":"R2","v":"WITNESS RESPONSIBLE:"}]
[{"$f":"case_name","v":"CASE NO: 2019-00271"},null,null,null,null,null,null,null,null,null,null,null,null,null,null,null,null,{"$f":"Witness","v":"JAMES E. ZIOLKOWSKI"}]
[{"$f":"data_filing","v":"DATA: 12 MONTHS ACTUAL  & 0 MONTHS ESTIMATED"},null,null,null,null,null,null,null,null,null,null,null,null,null,null,null,null,{"$f":"\"PAGE \"&Pages&\" OF \"&Pages","v":"PAGE 18 OF 18"}]
[{"$f":"type","v":"TYPE OF FILING: \"X\" ORIGINAL   UPDATED    REVISED  "}]
[]
[null,null,null,null,null,{"$f":"F$7","v":"TOTAL"},null,{"$f":"H$7","v":"DS"},{"$f":"I$7","v":"GSFL"},{"$f":"J$7","v":"EH"},{"$f":"K$7","v":"SP"},"DT SEC","DT PRI","DP","TT",null,"OTHER"]
["LINE",null,null,null,null,{"$f":"F$8","v":"PRODUCTION"},{"$f":"G$8","v":"RS"},{"$f":"H$8","v":"SECONDARY"},{"$f":"I$8","v":"SECONDARY"},{"$f":"J$8","v":"SECONDARY"},{"$f":"K$8","v":"SECONDARY"},"SECONDARY","PRIMARY","PRIMARY","TRANSMISSION","LT","WATER",{"$f":"R8","v":"TOTAL"},"ALL"]
["NO.","INCOME TAX BASED ON REVENUES",null,"ALLO",null,{"$f":"F$9","v":"ENERGY"},{"$f":"G$9","v":"RESIDENTIAL"},{"$f":"H$9","v":"DISTRIBUTION"},{"$f":"I$9","v":"DISTRIBUTION"},{"$f":"J$9","v":"DISTRIBUTION"},{"$f":"K$9","v":"DISTRIBUTION"},"DISTRIBUTION","DISTRIBUTION","DISTRIBUTION","TIME OF DAY","LIGHTING","PUMPING",{"$f":"R9","v":"AT ISSUE"},"OTHER"]
[null,null,"Schedule 13",null,null,null,{"$f":"G$10","v":3},{"$f":"H$10","v":4},{"$f":"I$10","v":5},{"$f":"J$10","v":6},{"$f":"K$10","v":7},8,9,10,11,12,13,null," "]
[1,"NET INCOME COMPUTATION"]
[2,null,{"$f":"'FR-16(7)(v)-1 Functional'!C1008","v":"TOTAL ELECTRIC COST OF SERVICE"},null,null,{"$f":"F770","v":165206156},62541953,44599011,249473,{"$f":"J770","v":708216},11565,27274956,18988548,890540,9201165,722558,18171,165206156,0]
[3,null,{"$f":"'FR-16(7)(v)-1 Functional'!C1009","v":"TOTAL OTHER OPERATING REVENUES"},null,null,{"$f":"F750","v":0},{"$f":"G750","v":0},{"$f":"H750","v":0},{"$f":"I750","v":0},{"$f":"J750","v":0},0,0,0,0,0,0,{"$f":"$Q$750","v":0},{"$f":"R750","v":0},{"$f":"S750","v":0}]
[4,null,{"$f":"'FR-16(7)(v)-1 Functional'!C1010","v":"  TOTAL ELECTRIC REVENUE"},null,null,{"$f":"SUM(F1007:F1009)","v":165206156},62541953,44599011,249473,{"$f":"SUM(J1007:J1009)","v":708216},11565,27274956,18988548,890540,9201165,722558,18171,165206156,0]
[5,null,{"$f":"'FR-16(7)(v)-1 Functional'!C1011","v":"TOTAL OP EXP EX INC & REV TAX"},null,null,{"$f":"-F618","v":-150194409},{"$f":"-G618","v":-56861131},{"$f":"-H618","v":-40547787},{"$f":"-I618","v":-226804},{"$f":"-J618","v":-643834},-10515,-24796737,-17263741,-809664,-8360701,-656975,{"$f":"-$Q$618","v":-16520},{"$f":"-R618","v":-150194409},{"$f":"-S618","v":0}]
[6,null,{"$f":"'FR-16(7)(v)-1 Functional'!C1012","v":"FIRM SERVICE REVENUE TAX"},null,null,{"$f":"-ROUND(F817*F1008,0)","v":0},{"$f":"F1012-SUM(H1012:Q1012)","v":0},{"$f":"-ROUND(H817*H1008,0)","v":0},0,0,0,0,0,0,0,0,0,{"$f":"SUM(G1012:Q1012)","v":0},{"$f":"-ROUND('FR-16(7)(v)-1 Functional'!K817*S1008,0)","v":0}]
[7,null,{"$f":"'FR-16(7)(v)-1 Functional'!C1013","v":"  NET INCOME"},null,null,{"$f":"SUM(F1010:F1012)","v":15011747},{"$f":"SUM(G1010:G1012)","v":5680822},{"$f":"SUM(H1010:H1012)","v":4051224},{"$f":"SUM(I1010:I1012)","v":22669},{"$f":"SUM(J1010:J1012)","v":64382},1050,2478219,1724807,80876,840464,65583,{"$f":"SUM(Q1010:Q1012)","v":1651},{"$f":"SUM(G1013:Q1013)","v":15011747},{"$f":"SUM(S1010:S1012)","v":0}]
[8]
[9,"ADJUSTMENTS TO NET INCOME"]
[10,null,{"$f":"'FR-16(7)(v)-1 Functional'!C1016","v":"TOTAL INTEREST EXPENSE"},null,null,{"$f":"-F633","v":-629207},{"$f":"-G633","v":-237381},{"$f":"-H633","v":-169389},{"$f":"-I633","v":-950},{"$f":"-J633","v":-2693},-44,-103813,-72076,-3379,-36670,-2743,{"$f":"-$Q$633","v":-69},{"$f":"-R633","v":-629207},{"$f":"-S633","v":0}]
[11,null,{"$f":"'FR-16(7)(v)-1 Functional'!C1017","v":"TOTAL OTHER DEDUCTIONS"},null,null,{"$f":"-F639","v":-2113893},{"$f":"-G639","v":-797724},{"$f":"-H639","v":-569196},{"$f":"-I639","v":-3191},{"$f":"-J639","v":-9046},-148,-348800,-242224,-11349,-122767,-9216,{"$f":"-$Q$639","v":-232},{"$f":"-R639","v":-2113893},{"$f":"-S639","v":0}]
[12,null,{"$f":"'FR-16(7)(v)-1 Functional'!C1018","v":"  PRELIMINARY TAXABLE INCOME"},null,null,{"$f":"SUM(F1015:F1017)+F1013","v":12268647},{"$f":"SUM(G1015:G1017)+G1013","v":4645717},{"$f":"SUM(H1015:H1017)+H1013","v":3312639},{"$f":"SUM(I1015:I1017)+I1013","v":18528},{"$f":"SUM(J1015:J1017)+J1013","v":52643},858,2025606,1410507,66148,681027,53624,{"$f":"SUM(Q1015:Q1017)+Q1013","v":1350},{"$f":"SUM(G1018:Q1018)","v":12268647},{"$f":"SUM(S1015:S1017)+S1013","v":0}]
[13]
[14,"INCOME TAX BASED ON REVENUES"]
[15,"FEDERAL INCOME TAX COMPUTATION"]
[16,null,{"$f":"'FR-16(7)(v)-1 Functional'!C1022","v":"PRELIMINARY TAXABLE INCOME"},null,null,{"$f":"F1018","v":12268647},4645717,3312639,18528,{"$f":"J1018","v":52643},858,2025606,1410507,66148,681027,53624,1350,12268647,0]
[17,null,{"$f":"'FR-16(7)(v)-1 Functional'!C1023","v":"  NET FEDERAL TAXABLE INCOME"},null,null,{"$f":"SUM(F1022:F1022)","v":12268647},4645717,3312639,18528,{"$f":"SUM(J1022:J1022)","v":52643},858,2025606,1410507,66148,681027,53624,1350,12268647,0]
[18,null,{"$f":"'FR-16(7)(v)-1 Functional'!C1024","v":"  FEDERAL INCOME TAX RATE"},null,null,{"$f":"F815","v":0.21},{"$f":"G815","v":0.21},{"$f":"H815","v":0.21},{"$f":"I815","v":0.21},{"$f":"J815","v":0.21},0.21,0.21,0.21,0.21,0.21,0.21,{"$f":"Q815","v":0.21},null,{"$f":"'FR-16(7)(v)-1 Functional'!K815","v":0.21}]
[19,null,{"$f":"'FR-16(7)(v)-1 Functional'!C1025","v":"PRELIMINARY FIT = FI01 * K190"},null,null,{"$f":"ROUND(F1024*F1023,0)","v":2576416},{"$f":"ROUND(G1024*G1023,0)","v":975601},{"$f":"ROUND(H1024*H1023,0)","v":695654},{"$f":"ROUND(I1024*I1023,0)","v":3891},{"$f":"ROUND(J1024*J1023,0)","v":11055},180,425377,296206,13891,143016,11261,{"$f":"ROUND(Q1024*Q1023,0)","v":284},{"$f":"SUM(G1025:Q1025)","v":2576416},{"$f":"ROUND(S1024*S1023,0)","v":0}]
[20,null,{"$f":"'FR-16(7)(v)-1 Functional'!C1026","v":"TOTAL FED DEF IT (410 & 411)"},null,null,{"$f":"F649","v":8568458},{"$f":"G649","v":3244016},{"$f":"H649","v":2313227},{"$f":"I649","v":12939},{"$f":"J649","v":36759},600,1414653,984945,46184,476749,37444,{"$f":"$Q$649","v":942},{"$f":"R649","v":8568458},{"$f":"S649","v":0}]
[21,null,{"$f":"'FR-16(7)(v)-1 Functional'!C1027","v":"TOTAL AMORTIZED ITC"},null,null,{"$f":"-F653","v":-6},{"$f":"-G653","v":-2},{"$f":"-H653","v":-2},{"$f":"-I653","v":0},{"$f":"-J653","v":0},0,-1,-1,0,0,0,{"$f":"-$Q$653","v":0},{"$f":"-R653","v":-6},{"$f":"-S653","v":0}]
[22,null,{"$f":"'FR-16(7)(v)-1 Functional'!C1028","v":"  NET FED INC TAX ALLOWABLE"},null,null,{"$f":"SUM(F1025:F1027)","v":11144868},4219615,3008879,16830,{"$f":"SUM(J1025:J1027)","v":47814},780,1840029,1281150,60075,619765,48705,1226,11144868,0]
[23]
[24,"FEDERAL INCOME TAX PAYABLE"]
[25,null,{"$f":"'FR-16(7)(v)-1 Functional'!C1031","v":"PRELIM FIT"},null,null,{"$f":"F1025","v":2576416},975601,695654,3891,{"$f":"J1025","v":11055},180,425377,296206,13891,143016,11261,284,2576416,0]
[26,null,{"$f":"'FR-16(7)(v)-1 Functional'!C1032","v":"TEST YEAR INV TAX CREDIT"},null,null,{"$f":"-F658","v":0},{"$f":"-G658","v":0},{"$f":"-H658","v":0},{"$f":"-I658","v":0},{"$f":"-J658","v":0},0,0,0,0,0,0,{"$f":"-$Q$658","v":0},{"$f":"-R658","v":0},{"$f":"-S658","v":0}]
[27,null,{"$f":"'FR-16(7)(v)-1 Functional'!C1033","v":"  FED INC TAX PAYABLE"},null,null,{"$f":"SUM(F1030:F1032)","v":2576416},975601,695654,3891,{"$f":"SUM(J1030:J1032)","v":11055},180,425377,296206,13891,143016,11261,284,2576416,0]
[28]
[29,"PRELIMINARY SUMMARY"]
[30,null,{"$f":"'FR-16(7)(v)-1 Functional'!C1036","v":"NET INCOME"},null,null,{"$f":"F1013","v":15011747},5680822,4051224,22669,{"$f":"J1013","v":64382},1050,2478219,1724807,80876,840464,65583,1651,15011747,0]
[31,null,{"$f":"'FR-16(7)(v)-1 Functional'!C1037","v":"NET FED INC TAX ALLOWABLE"},null,null,{"$f":"-F1028","v":-11144868},-4219615,-3008879,-16830,{"$f":"-J1028","v":-47814},-780,-1840029,-1281150,-60075,-619765,-48705,-1226,-11144868,0]
[32,null,{"$f":"'FR-16(7)(v)-1 Functional'!C1038","v":"  OVERALL RETURN EARNED"},null,null,{"$f":"SUM(F1035:F1037)","v":3866879},1461207,1042345,5839,{"$f":"SUM(J1035:J1037)","v":16568},270,638190,443657,20801,220699,16878,425,3866879,0]
[33]
[34,null,{"$f":"'FR-16(7)(v)-1 Functional'!C1040","v":"  RATE OF RETURN EARNED"},null,null,{"$f":"IF(F426=0,0,ROUND(F1038/F426,5))","v":0.12192},0.12212000000000001,0.12207999999999999,0.12193,0.1221,0.12168,0.12196,0.12212000000000001,0.12221,0.11941,0.1221,0.12192,0.12192,0]

{"sheet":"FR-16(7)(v)-5 PROD Cust","index":8,"n_rows":1040,"n_cols":23,"rows_kept":1040,"cut":false,"hidden":false,"merged":[]}
[{"$f":"co_name","v":"DUKE ENERGY KENTUCKY, INC."},null,null,null,null,null,null,null,null,null,null,null,null,null,null,null,null,"FR-16(7)(v)-5"]
[{"$f":"F8&\" \"&F9&\" ALLOCATED - ELECTRIC COST OF SERVICE\"","v":"PRODUCTION CUSTOMER ALLOCATED - ELECTRIC COST OF SERVICE"},null,null,null,null,null,null,null,null,null,null,null,null,null,null,null,null,"WITNESS RESPONSIBLE:"]
[{"$f":"case_name","v":"CASE NO: 2019-00271"},null,null,null,null,null,null,null,null,null,null,null,null,null,null,null,null,{"$f":"Witness","v":"JAMES E. ZIOLKOWSKI"}]
[{"$f":"data_filing","v":"DATA: 12 MONTHS ACTUAL  & 0 MONTHS ESTIMATED"},null,null,null,null,null,null,null,null,null,null,null,null,null,null,null,null,{"$f":"\"PAGE \"&Pages-17&\" OF \"&Pages","v":"PAGE 1 OF 18"}]
[{"$f":"type","v":"TYPE OF FILING: \"X\" ORIGINAL   UPDATED    REVISED  "}]
[]
[null,null,null,null,null,{"$f":"'FR-16(7)(v)-3 PROD Demand'!F7","v":"TOTAL"},null,{"$f":"'FR-16(7)(v)-3 PROD Demand'!H7","v":"DS"},{"$f":"'FR-16(7)(v)-3 PROD Demand'!I7","v":"GSFL"},{"$f":"'FR-16(7)(v)-3 PROD Demand'!J7","v":"EH"},{"$f":"'FR-16(7)(v)-3 PROD Demand'!K7","v":"SP"},{"$f":"'FR-16(7)(v)-3 PROD Demand'!L7","v":"DT SEC"},{"$f":"'FR-16(7)(v)-3 PROD Demand'!M7","v":"DT PRI"},{"$f":"'FR-16(7)(v)-3 PROD Demand'!N7","v":"DP"},{"$f":"'FR-16(7)(v)-3 PROD Demand'!O7","v":"TT"},null,{"$f":"'FR-16(7)(v)-3 PROD Demand'!Q7","v":"OTHER"}]
["LINE",null,null,null,null,{"$f":"'FR-16(7)(v)-3 PROD Demand'!F8","v":"PRODUCTION"},{"$f":"'FR-16(7)(v)-3 PROD Demand'!G8","v":"RS"},{"$f":"'FR-16(7)(v)-3 PROD Demand'!H8","v":"SECONDARY"},{"$f":"'FR-16(7)(v)-3 PROD Demand'!I8","v":"SECONDARY"},{"$f":"'FR-16(7)(v)-3 PROD Demand'!J8","v":"SECONDARY"},{"$f":"'FR-16(7)(v)-3 PROD Demand'!K8","v":"SECONDARY"},{"$f":"'FR-16(7)(v)-3 PROD Demand'!L8","v":"SECONDARY"},{"$f":"'FR-16(7)(v)-3 PROD Demand'!M8","v":"PRIMARY"},{"$f":"'FR-16(7)(v)-3 PROD Demand'!N8","v":"PRIMARY"},{"$f":"'FR-16(7)(v)-3 PROD Demand'!O8","v":"TRANSMISSION"},{"$f":"'FR-16(7)(v)-3 PROD Demand'!P8","v":"LT"},{"$f":"'FR-16(7)(v)-3 PROD Demand'!Q8","v":"WATER"},{"$f":"'FR-16(7)(v)-3 PROD Demand'!R8","v":"TOTAL"},{"$f":"'FR-16(7)(v)-3 PROD Demand'!S8","v":"ALL"}]
["NO.","SUMMARY OF RESULTS",null,"ALLO",null,"CUSTOMER",{"$f":"'FR-16(7)(v)-3 PROD Demand'!G9","v":"RESIDENTIAL"},{"$f":"'FR-16(7)(v)-3 PROD Demand'!H9","v":"DISTRIBUTION"},{"$f":"'FR-16(7)(v)-3 PROD Demand'!I9","v":"DISTRIBUTION"},{"$f":"'FR-16(7)(v)-3 PROD Demand'!J9","v":"DISTRIBUTION"},{"$f":"'FR-16(7)(v)-3 PROD Demand'!K9","v":"DISTRIBUTION"},{"$f":"'FR-16(7)(v)-3 PROD Demand'!L9","v":"DISTRIBUTION"},{"$f":"'FR-16(7)(v)-3 PROD Demand'!M9","v":"DISTRIBUTION"},{"$f":"'FR-16(7)(v)-3 PROD Demand'!N9","v":"DISTRIBUTION"},{"$f":"'FR-16(7)(v)-3 PROD Demand'!O9","v":"TIME OF DAY"},{"$f":"'FR-16(7)(v)-3 PROD Demand'!P9","v":"LIGHTING"},{"$f":"'FR-16(7)(v)-3 PROD Demand'!Q9","v":"PUMPING"},{"$f":"'FR-16(7)(v)-3 PROD Demand'!R9","v":"AT ISSUE"},{"$f":"'FR-16(7)(v)-3 PROD Demand'!S9","v":"OTHER"}]
[null,null,"Schedule 1",null,null,null,3,4,5,6,7,8,9,10,11,12,13]
[1,"NET INCOME COMPUTATION"]
[2,null,{"$f":"'FR-16(7)(v)-1 Functional'!C12","v":"GROSS ELECTRIC PLANT IN SERVICE"},null,null,{"$f":"F123","v":0},{"$f":"G123","v":0},{"$f":"H123","v":0},{"$f":"I123","v":0},{"$f":"J123","v":0},0,0,0,0,0,0,{"$f":"Q123","v":0},{"$f":"SUM(G12:Q12)","v":0},{"$f":"F12-R12","v":0}]
[3,null,{"$f":"'FR-16(7)(v)-1 Functional'!C13","v":"TOTAL DEPRECIATION RESERVE"},null,null,{"$f":"-F200","v":0},{"$f":"-G200","v":0},{"$f":"-H200","v":0},{"$f":"-I200","v":0},{"$f":"-J200","v":0},0,0,0,0,0,0,{"$f":"-Q200","v":0},{"$f":"SUM(G13:Q13)","v":0},{"$f":"F13-R13","v":0}]
[4,null,{"$f":"'FR-16(7)(v)-1 Functional'!C14","v":"TOTAL RATE BASE ADJUSTMENTS"},null,null,{"$f":"F421","v":0},{"$f":"G421","v":0},{"$f":"H421","v":0},{"$f":"I421","v":0},{"$f":"J421","v":0},0,0,0,0,0,0,{"$f":"Q421","v":0},{"$f":"SUM(G14:Q14)","v":0},{"$f":"F14-R14","v":0}]
[5,null,{"$f":"'FR-16(7)(v)-1 Functional'!C15","v":"  TOTAL RATE BASE"},null,null,{"$f":"SUM(F12:F14)","v":0},{"$f":"SUM(G12:G14)","v":0},{"$f":"SUM(H12:H14)","v":0},{"$f":"SUM(I12:I14)","v":0},{"$f":"SUM(J12:J14)","v":0},0,0,0,0,0,0,{"$f":"SUM(Q12:Q14)","v":0},{"$f":"SUM(R12:R14)","v":0},{"$f":"F15-R15","v":0}]
[6]
[7,"OPERATING EXPENSES"]
[8,null,{"$f":"'FR-16(7)(v)-1 Functional'!C18","v":"TOTAL O&M EXPENSE"},null,null,{"$f":"F549","v":0},{"$f":"G549","v":0},{"$f":"H549","v":0},{"$f":"I549","v":0},{"$f":"J549","v":0},0,0,0,0,0,0,{"$f":"Q549","v":0},{"$f":"SUM(G18:Q18)","v":0},{"$f":"F18-R18","v":0}]
[9,null,{"$f":"'FR-16(7)(v)-1 Functional'!C19","v":"TOTAL DEPRECIATION EXPENSE"},null,null,{"$f":"F582","v":0},{"$f":"G582","v":0},{"$f":"H582","v":0},{"$f":"I582","v":0},{"$f":"J582","v":0},0,0,0,0,0,0,{"$f":"Q582","v":0},{"$f":"SUM(G19:Q19)","v":0},0]
[10,null,{"$f":"'FR-16(7)(v)-1 Functional'!C20","v":"TOTAL OTHER TAX & MISC EXPENSE"},null,null,{"$f":"F612","v":0},{"$f":"G612","v":0},{"$f":"H612","v":0},{"$f":"I612","v":0},{"$f":"J612","v":0},0,0,0,0,0,0,{"$f":"$Q$612","v":0},{"$f":"SUM(G20:Q20)","v":0},0]
[11,null,{"$f":"'FR-16(7)(v)-1 Functional'!C21","v":"  TOTAL OP EXP EXCLUDING INC & REV TAX"},null,null,{"$f":"SUM(F17:F20)","v":0},0,0,0,{"$f":"SUM(J17:J20)","v":0},0,0,0,0,0,0,0,0,0]
[12,null,{"$f":"'FR-16(7)(v)-1 Functional'!C22","v":"NET FED INCOME TAX EXP ALLOWABLE"},null,null,{"$f":"F676","v":0},{"$f":"G676","v":0},{"$f":"H676","v":0},{"$f":"I676","v":0},{"$f":"J676","v":0},0,0,0,0,0,0,{"$f":"$Q$676","v":0},{"$f":"SUM(G22:Q22)","v":0},0]
[13,null,"NET STATE INCOME TAX EXP ALLOWABLE",null,null,{"$f":"F722","v":0},{"$f":"G722","v":0},0,0,0,0,0,0,0,0,0,0,{"$f":"SUM(G23:Q23)","v":0},0]
[14,null,"RESERVED",{"$f":"'FR-16(7)(v)-1 Functional'!D24","v":"CW29"},null,{"$f":"'FR-16(7)(v)-2 PROD Classified'!I24","v":0},{"$f":"F24-SUM(H24:Q24)","v":0},{"$f":"ROUND(F24*VLOOKUP(D73,ALLOCTABLE_Prod_Customer,$H$10,FALSE),0)","v":0},{"$f":"ROUND(F24*VLOOKUP($D$24,ALLOCTABLE_Prod_Customer,$I$10,FALSE),0)","v":0},{"$f":"ROUND(F24*VLOOKUP($D$24,ALLOCTABLE_Prod_Customer,$J$10,FALSE),0)","v":0},{"$f":"ROUND(F24*VLOOKUP($D$24,ALLOCTABLE_Prod_Customer,$K$10,FALSE),0)","v":0},{"$f":"ROUND(F24*VLOOKUP($D$24,ALLOCTABLE_Prod_Customer,$L$10,FALSE),0)","v":0},{"$f":"ROUND(F24*VLOOKUP($D$24,ALLOCTABLE_Prod_Customer,$M$10,FALSE),0)","v":0},{"$f":"ROUND(F24*VLOOKUP($D$24,ALLOCTABLE_Prod_Customer,$N$10,FALSE),0)","v":0},{"$f":"ROUND(F24*VLOOKUP($D$24,ALLOCTABLE_Prod_Customer,$O$10,FALSE),0)","v":0},{"$f":"ROUND(F24*VLOOKUP($D$24,ALLOCTABLE_Prod_Customer,$P$10,FALSE),0)","v":0},{"$f":"ROUND(F24*VLOOKUP(D24,ALLOCTABLE_Prod_Customer,$Q$10,FALSE),0)","v":0},{"$f":"SUM(G24:Q24)","v":0},{"$f":"F24-R24","v":0}]
[15,null,{"$f":"'FR-16(7)(v)-1 Functional'!C25","v":"REVENUE TAX"},null,null,{"$f":"F767","v":0},{"$f":"G767","v":0},{"$f":"H767","v":0},{"$f":"I767","v":0},{"$f":"J767","v":0},0,0,0,0,0,0,{"$f":"Q767","v":0},{"$f":"SUM(G25:Q25)","v":0},0]
[16,null,{"$f":"'FR-16(7)(v)-1 Functional'!C26","v":"  TOTAL OPERATING EXPENSE"},null,null,{"$f":"SUM(F21:F25)","v":0},0,0,0,{"$f":"SUM(J21:J25)","v":0},0,0,0,0,0,0,0,0,0]
[17]
[18,"RETURN ON RATE BASE",null,null,null,{"$f":"F433","v":0},0,0,0,0,0,0,0,0,0,0,0,{"$f":"SUM(G28:Q28)","v":0},{"$f":"F28-R28","v":0}]
[19,"TOTAL OTHER OPERATING REVENUES",null,null,null,{"$f":"-F750","v":0},{"$f":"-G750","v":0},{"$f":"-H750","v":0},{"$f":"-I750","v":0},{"$f":"-J750","v":0},0,0,0,0,0,0,{"$f":"-$Q$750","v":0},{"$f":"SUM(G29:Q29)","v":0},0]
[20,null,{"$f":"'FR-16(7)(v)-1 Functional'!C30","v":"TOTAL ELECTRIC COST OF SERVICE"},null,null,{"$f":"SUM(F26:F29)","v":0},0,0,0,{"$f":"SUM(J26:J29)","v":0},0,0,0,0,0,0,0,0,0]
[21,"ADJUSTMENT FOR INTERCLASS SUBSIDIZATION",null,{"$f":"1-'WP FR-16(7)(v) Rate Incr'!I11","v":0.95},null,{"$f":"'WP FR-16(7)(v) Rate Incr'!Q27","v":0},{"$f":"'WP FR-16(7)(v) Rate Incr'!Q15","v":-9336840},{"$f":"'WP FR-16(7)(v) Rate Incr'!Q16","v":6445498},{"$f":"'WP FR-16(7)(v) Rate Incr'!Q17","v":89344},{"$f":"'WP FR-16(7)(v) Rate Incr'!R17","v":6774},{"$f":"'WP FR-16(7)(v) Rate Incr'!S17","v":56376},{"$f":"'WP FR-16(7)(v) Rate Incr'!T17","v":111986},{"$f":"'WP FR-16(7)(v) Rate Incr'!U17","v":0},{"$f":"'WP FR-16(7)(v) Rate Incr'!V17","v":40507},{"$f":"'WP FR-16(7)(v) Rate Incr'!W17","v":0},{"$f":"'WP FR-16(7)(v) Rate Incr'!X17","v":0},{"$f":"'WP FR-16(7)(v) Rate Incr'!Q25","v":-9875},{"$f":"SUM(G31:Q31)","v":-2596230},2596230]
[22,{"$f":"'FR-16(7)(v)-1 Functional'!$B$32","v":"REQUESTED REVENUES (COST OF SERVICE ADJUSTED FOR SUBSIDIES)"},null,null,null,{"$f":"F31+F30","v":0},-9336840,6445498,89344,{"$f":"J31+J30","v":6774},56376,111986,0,40507,0,0,-9875,-2596230,2596230]
[23,"PROPOSED REVENUES",null,null,null,{"$f":"F868","v":0},0,0,0,{"$f":"J868","v":0},0,0,0,0,0,0,0,0,0]
[24,"DIFFERENCE (REQUESTED LESS PROPOSED)",null,null,null,{"$f":"F32-F33","v":0},{"$f":"G32-G33","v":-9336840},6445498,89344,{"$f":"J32-J33","v":6774},56376,111986,0,40507,0,0,-9875,-2596230,2596230]
[25]
[26,"TOTAL RETURN EARNED",null,null,null,{"$f":"F777+F28","v":0},{"$f":"G777+G28","v":0},{"$f":"H777+H28","v":0},{"$f":"I777+I28","v":0},{"$f":"J777+J28","v":0},0,0,0,0,0,0,{"$f":"Q777+Q28","v":0},{"$f":"R777+R28","v":0},{"$f":"F36-R36","v":0}]
[27,"RATE OF RETURN EARNED",null,null,null,{"$f":"IF(F431=0,0,ROUND(F36/F431,5))","v":0},0,0,0,0,0,0,0,0,0,0,0,0,0]
[28,"TOTAL RATE OF RETURN ALLOWABLE",null,null,null,{"$f":"$F$811","v":6.7100000000000007E-2},{"$f":"$F$811","v":6.7100000000000007E-2},6.7100000000000007E-2,6.7100000000000007E-2,6.7100000000000007E-2,6.7100000000000007E-2,6.7100000000000007E-2,6.7100000000000007E-2,6.7100000000000007E-2,6.7100000000000007E-2,6.7100000000000007E-2,6.7100000000000007E-2,{"$f":"F811","v":6.7100000000000007E-2},{"$f":"F811","v":6.7100000000000007E-2},null,null,"Not Part of print range"]
[29,"RETURN EARNED ON COMMON EQUITY",null,null,null,{"$f":"IF(Equity=0,0,(F37-$F$806-$F$807-$F$809)*TotalCap/Equity)","v":-4.1049574113445099E-2},-4.1049574113445099E-2,-4.1049574113445099E-2,-4.1049574113445099E-2,-4.1049574113445099E-2,-4.1049574113445099E-2,-4.1049574113445099E-2,-4.1049574113445099E-2,-4.1049574113445099E-2,-4.1049574113445099E-2,-4.1049574113445099E-2,-4.1049574113445099E-2,{"$f":"IF(Equity=0,0,(R37-F806-F807-F809)*TotalCap/Equity)","v":-4.1049574113445099E-2},{"$f":"IF(Equity=0,0,(S37-F806-F807-F809)*TotalCap/Equity)","v":-4.1049574113445099E-2},null,null,"Not Filed"]
[30,"ALLOWED RETURN ON COMMON EQUITY",null,null,null,{"$f":"IF(Equity=0,0,(F38-$F$806-$F$807-$F$809)*TotalCap/Equity)","v":9.8062871493229981E-2},9.8062871493229981E-2,9.8062871493229981E-2,9.8062871493229981E-2,9.8062871493229981E-2,9.8062871493229981E-2,9.8062871493229981E-2,9.8062871493229981E-2,9.8062871493229981E-2,9.8062871493229981E-2,9.8062871493229981E-2,9.8062871493229981E-2,{"$f":"IF(Equity=0,0,(R38-F806-F807-F809)*TotalCap/Equity)","v":9.8062871493229981E-2},{"$f":"IF(Equity=0,0,(S38-F806-F807-F809)*TotalCap/Equity)","v":9.8062871493229981E-2}]
[31,null,null,null,null," "]
[32,"PRESENT REVENUES",null,null,null,{"$f":"F867","v":0},0,0,0,{"$f":"J867","v":0},0,0,0,0,0,0,0,0,{"$f":"F42-R42","v":0}]
[33,"REVENUE INCREASE JUSTIFIED",null,null,null,{"$f":"F30-F42","v":0},0,0,0,{"$f":"J30-J42","v":0},0,0,0,0,0,0,0,0,0]
[34,null,"PER UNIT PRES REV",null,null,{"$f":"IF(F42=0,0,ROUND(F43/F42,5))","v":0},0,0,0,{"$f":"IF(J42=0,0,ROUND(J43/J42,5))","v":0},0,0,0,0,0,0,0,0,0]
[35,"REVENUE INCREASE REQUESTED",null,null,null,{"$f":"F33-F42","v":0},0,0,0,{"$f":"J33-J42","v":0},0,0,0,0,0,0,0,0,0]
[36,null,"PER UNIT PRES REV",null,null,{"$f":"IF(F42=0,0,ROUND(F45/F42,5))","v":0},0,0,0,{"$f":"IF(J42=0,0,ROUND(J45/J42,5))","v":0},0,0,0,0,0,0,0,0,0]
[]
[{"$f":"co_name","v":"DUKE ENERGY KENTUCKY, INC."},null,null,null,null,null,null,null,null,null,null,null,null,null,null,null,null,{"$f":"R1","v":"FR-16(7)(v)-5"}]
[{"$f":"$A$2","v":"PRODUCTION CUSTOMER ALLOCATED - ELECTRIC COST OF SERVICE"},null,null,null,null,null,null,null,null,null,null,null,null,null,null,null,null,{"$f":"R2","v":"WITNESS RESPONSIBLE:"}]
[{"$f":"case_name","v":"CASE NO: 2019-00271"},null,null,null,null,null,null,null,null,null,null,null,null,null,null,null,null,{"$f":"Witness","v":"JAMES E. ZIOLKOWSKI"}]
[{"$f":"data_filing","v":"DATA: 12 MONTHS ACTUAL  & 0 MONTHS ESTIMATED"},null,null,null,null,null,null,null,null,null,null,null,null,null,null,null,null,{"$f":"\"PAGE \"&Pages-16&\" OF \"&Pages","v":"PAGE 2 OF 18"}]
[{"$f":"type","v":"TYPE OF FILING: \"X\" ORIGINAL   UPDATED    REVISED  "}]
[]
[null,null,null,null,null,{"$f":"F$7","v":"TOTAL"},null,{"$f":"H$7","v":"DS"},{"$f":"I$7","v":"GSFL"},{"$f":"J$7","v":"EH"},{"$f":"K$7","v":"SP"},"DT SEC","DT PRI","DP","TT",null,"OTHER"]
["LINE",null,null,null,null,{"$f":"F$8","v":"PRODUCTION"},{"$f":"G$8","v":"RS"},{"$f":"H$8","v":"SECONDARY"},{"$f":"I$8","v":"SECONDARY"},{"$f":"J$8","v":"SECONDARY"},{"$f":"K$8","v":"SECONDARY"},"SECONDARY","PRIMARY","PRIMARY","TRANSMISSION","LT","WATER",{"$f":"R8","v":"TOTAL"},"ALL"]
["NO.","GROSS ELECTRIC PLANT IN SERVICE",null,"ALLO",null,{"$f":"F$9","v":"CUSTOMER"},{"$f":"G$9","v":"RESIDENTIAL"},{"$f":"H$9","v":"DISTRIBUTION"},{"$f":"I$9","v":"DISTRIBUTION"},{"$f":"J$9","v":"DISTRIBUTION"},{"$f":"K$9","v":"DISTRIBUTION"},"DISTRIBUTION","DISTRIBUTION","DISTRIBUTION","TIME OF DAY","LIGHTING","PUMPING",{"$f":"R9","v":"AT ISSUE"},"OTHER"]
[null,null,"Schedule 2",null,null,null,{"$f":"G$10","v":3},{"$f":"H$10","v":4},{"$f":"I$10","v":5},{"$f":"J$10","v":6},{"$f":"K$10","v":7},8,9,10,11,12,13,null," "]
[1,"PRODUCTION PLANT"]
[2,null,"PRODUCTION STEAM",{"$f":"'FR-16(7)(v)-1 Functional'!D59","v":"K201"},null,{"$f":"'FR-16(7)(v)-2 PROD Classified'!I59","v":0},{"$f":"F59-SUM(H59:Q59)","v":0},{"$f":"ROUND(F59*VLOOKUP(D59,ALLOCTABLE_Prod_Customer,$H$10,FALSE),0)","v":0},{"$f":"ROUND(F59*VLOOKUP($D$59,ALLOCTABLE_Prod_Customer,$I$10,FALSE),0)","v":0},{"$f":"ROUND(F59*VLOOKUP($D$59,ALLOCTABLE_Prod_Customer,$J$10,FALSE),0)","v":0},{"$f":"ROUND(F59*VLOOKUP($D$59,ALLOCTABLE_Prod_Customer,$K$10,FALSE),0)","v":0},{"$f":"ROUND(F59*VLOOKUP($D$59,ALLOCTABLE_Prod_Customer,$L$10,FALSE),0)","v":0},{"$f":"ROUND(F59*VLOOKUP($D$59,ALLOCTABLE_Prod_Customer,$M$10,FALSE),0)","v":0},{"$f":"ROUND(F59*VLOOKUP($D$59,ALLOCTABLE_Prod_Customer,$N$10,FALSE),0)","v":0},{"$f":"ROUND(F59*VLOOKUP($D$59,ALLOCTABLE_Prod_Customer,$O$10,FALSE),0)","v":0},{"$f":"ROUND(F59*VLOOKUP($D$59,ALLOCTABLE_Prod_Customer,$P$10,FALSE),0)","v":0},{"$f":"ROUND(F59*VLOOKUP(D59,ALLOCTABLE_Prod_Customer,$Q$10,FALSE),0)","v":0},{"$f":"SUM(G59:Q59)","v":0},{"$f":"F59-R59","v":0}]
[3,null,"PRODUCTION OTHER",{"$f":"'FR-16(7)(v)-1 Functional'!D60","v":"K201"},null,{"$f":"'FR-16(7)(v)-2 PROD Classified'!I60","v":0},{"$f":"F60-SUM(H60:Q60)","v":0},{"$f":"ROUND(F60*VLOOKUP(D60,ALLOCTABLE_Prod_Customer,$H$10,FALSE),0)","v":0},{"$f":"ROUND(F60*VLOOKUP($D$60,ALLOCTABLE_Prod_Customer,$I$10,FALSE),0)","v":0},{"$f":"ROUND(F60*VLOOKUP($D$60,ALLOCTABLE_Prod_Customer,$J$10,FALSE),0)","v":0},{"$f":"ROUND(F60*VLOOKUP($D$60,ALLOCTABLE_Prod_Customer,$K$10,FALSE),0)","v":0},{"$f":"ROUND(F60*VLOOKUP($D$60,ALLOCTABLE_Prod_Customer,$L$10,FALSE),0)","v":0},{"$f":"ROUND(F60*VLOOKUP($D$60,ALLOCTABLE_Prod_Customer,$M$10,FALSE),0)","v":0},{"$f":"ROUND(F60*VLOOKUP($D$60,ALLOCTABLE_Prod_Customer,$N$10,FALSE),0)","v":0},{"$f":"ROUND(F60*VLOOKUP($D$60,ALLOCTABLE_Prod_Customer,$O$10,FALSE),0)","v":0},{"$f":"ROUND(F60*VLOOKUP($D$60,ALLOCTABLE_Prod_Customer,$P$10,FALSE),0)","v":0},{"$f":"ROUND(F60*VLOOKUP(D60,ALLOCTABLE_Prod_Customer,$Q$10,FALSE),0)","v":0},{"$f":"SUM(G60:Q60)","v":0},{"$f":"F60-R60","v":0}]
[4,null,{"$f":"'FR-16(7)(v)-1 Functional'!C61","v":"ADJUSTMENT"},{"$f":"'FR-16(7)(v)-1 Functional'!D61","v":"K201"},null,{"$f":"'FR-16(7)(v)-2 PROD Classified'!I61","v":0},{"$f":"F61-SUM(H61:Q61)","v":0},{"$f":"ROUND(F61*VLOOKUP(D61,ALLOCTABLE_Prod_Customer,$H$10,FALSE),0)","v":0},{"$f":"ROUND(F61*VLOOKUP($D$61,ALLOCTABLE_Prod_Customer,$I$10,FALSE),0)","v":0},{"$f":"ROUND(F61*VLOOKUP($D$61,ALLOCTABLE_Prod_Customer,$J$10,FALSE),0)","v":0},{"$f":"ROUND(F61*VLOOKUP($D$61,ALLOCTABLE_Prod_Customer,$K$10,FALSE),0)","v":0},{"$f":"ROUND(F61*VLOOKUP($D$61,ALLOCTABLE_Prod_Customer,$L$10,FALSE),0)","v":0},{"$f":"ROUND(F61*VLOOKUP($D$61,ALLOCTABLE_Prod_Customer,$M$10,FALSE),0)","v":0},{"$f":"ROUND(F61*VLOOKUP($D$61,ALLOCTABLE_Prod_Customer,$N$10,FALSE),0)","v":0},{"$f":"ROUND(F61*VLOOKUP($D$61,ALLOCTABLE_Prod_Customer,$O$10,FALSE),0)","v":0},{"$f":"ROUND(F61*VLOOKUP($D$61,ALLOCTABLE_Prod_Customer,$P$10,FALSE),0)","v":0},{"$f":"ROUND(F61*VLOOKUP(D61,ALLOCTABLE_Prod_Customer,$Q$10,FALSE),0)","v":0},{"$f":"SUM(G61:Q61)","v":0},{"$f":"F61-R61","v":0}]
[5,null,{"$f":"'FR-16(7)(v)-1 Functional'!C62","v":"  PRODUCTION PLANT IN SERVICE"},null,null,{"$f":"SUM(F59:F61)","v":0},{"$f":"SUM(G59:G61)","v":0},{"$f":"SUM(H59:H61)","v":0},{"$f":"SUM(I59:I61)","v":0},{"$f":"SUM(J59:J61)","v":0},0,0,0,0,0,0,{"$f":"SUM($Q$59:$Q$61)","v":0},{"$f":"SUM(R59:R61)","v":0},{"$f":"SUM(S59:S61)","v":0}]
[6]
[7,"TRANSMISSION PLANT"]
[8,null,"MAIN STEP-UP TRANSFORMERS",{"$f":"'FR-16(7)(v)-1 Functional'!D65","v":"K202"},null,{"$f":"'FR-16(7)(v)-2 PROD Classified'!I65","v":0},{"$f":"F65-SUM(H65:Q65)","v":0},{"$f":"ROUND(F65*VLOOKUP(D65,ALLOCTABLE_Prod_Customer,$H$10,FALSE),0)","v":0},{"$f":"ROUND(F65*VLOOKUP($D$65,ALLOCTABLE_Prod_Customer,$I$10,FALSE),0)","v":0},{"$f":"ROUND(F65*VLOOKUP($D$65,ALLOCTABLE_Prod_Customer,$J$10,FALSE),0)","v":0},{"$f":"ROUND(F65*VLOOKUP($D$65,ALLOCTABLE_Prod_Customer,$K$10,FALSE),0)","v":0},{"$f":"ROUND(F65*VLOOKUP($D$65,ALLOCTABLE_Prod_Customer,$L$10,FALSE),0)","v":0},{"$f":"ROUND(F65*VLOOKUP($D$65,ALLOCTABLE_Prod_Customer,$M$10,FALSE),0)","v":0},{"$f":"ROUND(F65*VLOOKUP($D$65,ALLOCTABLE_Prod_Customer,$N$10,FALSE),0)","v":0},{"$f":"ROUND(F65*VLOOKUP($D$65,ALLOCTABLE_Prod_Customer,$O$10,FALSE),0)","v":0},{"$f":"ROUND(F65*VLOOKUP($D$65,ALLOCTABLE_Prod_Customer,$P$10,FALSE),0)","v":0},{"$f":"ROUND(F65*VLOOKUP(D65,ALLOCTABLE_Prod_Customer,$Q$10,FALSE),0)","v":0},{"$f":"SUM(G65:Q65)","v":0},{"$f":"F65-R65","v":0}]
[9,null,"OTHER TRANSMISSION",{"$f":"'FR-16(7)(v)-1 Functional'!D66","v":"K202"},null,{"$f":"'FR-16(7)(v)-2 PROD Classified'!I66","v":0},{"$f":"F66-SUM(H66:Q66)","v":0},{"$f":"ROUND(F66*VLOOKUP(D66,ALLOCTABLE_Prod_Customer,$H$10,FALSE),0)","v":0},{"$f":"ROUND(F66*VLOOKUP($D$66,ALLOCTABLE_Prod_Customer,$I$10,FALSE),0)","v":0},{"$f":"ROUND(F66*VLOOKUP($D$66,ALLOCTABLE_Prod_Customer,$J$10,FALSE),0)","v":0},{"$f":"ROUND(F66*VLOOKUP($D$66,ALLOCTABLE_Prod_Customer,$K$10,FALSE),0)","v":0},{"$f":"ROUND(F66*VLOOKUP($D$66,ALLOCTABLE_Prod_Customer,$L$10,FALSE),0)","v":0},{"$f":"ROUND(F66*VLOOKUP($D$66,ALLOCTABLE_Prod_Customer,$M$10,FALSE),0)","v":0},{"$f":"ROUND(F66*VLOOKUP($D$66,ALLOCTABLE_Prod_Customer,$N$10,FALSE),0)","v":0},{"$f":"ROUND(F66*VLOOKUP($D$66,ALLOCTABLE_Prod_Customer,$O$10,FALSE),0)","v":0},{"$f":"ROUND(F66*VLOOKUP($D$66,ALLOCTABLE_Prod_Customer,$P$10,FALSE),0)","v":0},{"$f":"ROUND(F66*VLOOKUP(D66,ALLOCTABLE_Prod_Customer,$Q$10,FALSE),0)","v":0},{"$f":"SUM(G66:Q66)","v":0},{"$f":"F66-R66","v":0}]
[10,null,"ADJUSTMENT",{"$f":"'FR-16(7)(v)-1 Functional'!D67","v":"K202"},null,{"$f":"'FR-16(7)(v)-2 PROD Classified'!I67","v":0},{"$f":"F67-SUM(H67:Q67)","v":0},{"$f":"ROUND(F67*VLOOKUP(D67,ALLOCTABLE_Prod_Customer,$H$10,FALSE),0)","v":0},{"$f":"ROUND(F67*VLOOKUP($D$67,ALLOCTABLE_Prod_Customer,$I$10,FALSE),0)","v":0},{"$f":"ROUND(F67*VLOOKUP($D$67,ALLOCTABLE_Prod_Customer,$J$10,FALSE),0)","v":0},{"$f":"ROUND(F67*VLOOKUP($D$67,ALLOCTABLE_Prod_Customer,$K$10,FALSE),0)","v":0},{"$f":"ROUND(F67*VLOOKUP($D$67,ALLOCTABLE_Prod_Customer,$L$10,FALSE),0)","v":0},{"$f":"ROUND(F67*VLOOKUP($D$67,ALLOCTABLE_Prod_Customer,$M$10,FALSE),0)","v":0},{"$f":"ROUND(F67*VLOOKUP($D$67,ALLOCTABLE_Prod_Customer,$N$10,FALSE),0)","v":0},{"$f":"ROUND(F67*VLOOKUP($D$67,ALLOCTABLE_Prod_Customer,$O$10,FALSE),0)","v":0},{"$f":"ROUND(F67*VLOOKUP($D$67,ALLOCTABLE_Prod_Customer,$P$10,FALSE),0)","v":0},{"$f":"ROUND(F67*VLOOKUP(D67,ALLOCTABLE_Prod_Customer,$Q$10,FALSE),0)","v":0},{"$f":"SUM(G67:Q67)","v":0},{"$f":"F67-R67","v":0}]
[11,null,{"$f":"'FR-16(7)(v)-1 Functional'!C68","v":"  TRANSMISSION PLANT IN SERVICE"},null,null,{"$f":"SUM(F65:F67)","v":0},0,0,0,0,0,0,0,0,0,0,0,0,{"$f":"SUM(S65)","v":0}]
[12]
[13,"TOTAL PROD & TRANS PLANT",null,null,null,{"$f":"F68+F62","v":0},{"$f":"G68+G62","v":0},{"$f":"H68+H62","v":0},{"$f":"I68+I62","v":0},{"$f":"J68+J62","v":0},0,0,0,0,0,0,{"$f":"$Q$68+$Q$62","v":0},{"$f":"R68+R62","v":0},{"$f":"S68+S62","v":0}]
[14]
[15,"DISTRIBUTION PLANT"]
[16,null,{"$f":"'FR-16(7)(v)-1 Functional'!C73","v":"SUBSTATIONS"},{"$f":"'FR-16(7)(v)-1 Functional'!D73","v":"K215"},null,{"$f":"'FR-16(7)(v)-2 PROD Classified'!I73","v":0},{"$f":"F73-SUM(H73:Q73)","v":0},{"$f":"ROUND(F73*VLOOKUP(D73,ALLOCTABLE_Prod_Customer,$H$10,FALSE),0)","v":0},{"$f":"ROUND(F73*VLOOKUP($D$73,ALLOCTABLE_Prod_Customer,$I$10,FALSE),0)","v":0},{"$f":"ROUND(F73*VLOOKUP($D$73,ALLOCTABLE_Prod_Customer,$J$10,FALSE),0)","v":0},{"$f":"ROUND(F73*VLOOKUP($D$73,ALLOCTABLE_Prod_Customer,$K$10,FALSE),0)","v":0},{"$f":"ROUND(F73*VLOOKUP($D$73,ALLOCTABLE_Prod_Customer,$L$10,FALSE),0)","v":0},{"$f":"ROUND(F73*VLOOKUP($D$73,ALLOCTABLE_Prod_Customer,$M$10,FALSE),0)","v":0},{"$f":"ROUND(F73*VLOOKUP($D$73,ALLOCTABLE_Prod_Customer,$N$10,FALSE),0)","v":0},{"$f":"ROUND(F73*VLOOKUP($D$73,ALLOCTABLE_Prod_Customer,$O$10,FALSE),0)","v":0},{"$f":"ROUND(F73*VLOOKUP($D$73,ALLOCTABLE_Prod_Customer,$P$10,FALSE),0)","v":0},{"$f":"ROUND(F73*VLOOKUP(D73,ALLOCTABLE_Prod_Customer,$Q$10,FALSE),0)","v":0},{"$f":"SUM(G73:Q73)","v":0},{"$f":"F73-R73","v":0}]
[17,null,{"$f":"'FR-16(7)(v)-1 Functional'!C74","v":"POLES, TOWERS  & FIXTURES - PRIMARY - DEMAND"},{"$f":"'FR-16(7)(v)-1 Functional'!D74","v":"K205"},null,{"$f":"'FR-16(7)(v)-2 PROD Classified'!I74","v":0},{"$f":"F74-SUM(H74:Q74)","v":0},{"$f":"ROUND(F74*VLOOKUP(D74,ALLOCTABLE_Prod_Customer,$H$10,FALSE),0)","v":0},{"$f":"ROUND(F74*VLOOKUP(D74,ALLOCTABLE_Prod_Customer,$I$10,FALSE),0)","v":0},{"$f":"ROUND(F74*VLOOKUP(D74,ALLOCTABLE_Prod_Customer,$J$10,FALSE),0)","v":0},{"$f":"ROUND(F74*VLOOKUP(D74,ALLOCTABLE_Prod_Customer,$K$10,FALSE),0)","v":0},{"$f":"ROUND(F74*VLOOKUP(D74,ALLOCTABLE_Prod_Customer,$L$10,FALSE),0)","v":0},{"$f":"ROUND(F74*VLOOKUP(D74,ALLOCTABLE_Prod_Customer,$M$10,FALSE),0)","v":0},{"$f":"ROUND(F74*VLOOKUP(D74,ALLOCTABLE_Prod_Customer,$N$10,FALSE),0)","v":0},{"$f":"ROUND(F74*VLOOKUP(D74,ALLOCTABLE_Prod_Customer,$O$10,FALSE),0)","v":0},{"$f":"ROUND(F74*VLOOKUP(D74,ALLOCTABLE_Prod_Customer,$P$10,FALSE),0)","v":0},{"$f":"ROUND(F74*VLOOKUP(D74,ALLOCTABLE_Prod_Customer,$Q$10,FALSE),0)","v":0},{"$f":"SUM(G74:Q74)","v":0},{"$f":"F74-R74","v":0}]
[18,null,{"$f":"'FR-16(7)(v)-1 Functional'!C75","v":"POLES, TOWERS  & FIXTURES - PRIMARY - CUSTOMER"},{"$f":"'FR-16(7)(v)-1 Functional'!D75","v":"K405"},null,{"$f":"'FR-16(7)(v)-2 PROD Classified'!I75","v":0},{"$f":"F75-SUM(H75:Q75)","v":0},{"$f":"ROUND(F75*VLOOKUP(D75,ALLOCTABLE_Prod_Customer,$H$10,FALSE),0)","v":0},0,0,0,0,0,0,0,0,{"$f":"ROUND(F75*VLOOKUP(D75,ALLOCTABLE_Prod_Customer,$Q$10,FALSE),0)","v":0},{"$f":"SUM(G75:Q75)","v":0},{"$f":"F75-R75","v":0}]
[19,null,{"$f":"'FR-16(7)(v)-1 Functional'!C76","v":"POLES, TOWERS  & FIXTURES - SECONDARY - DEMAND"},{"$f":"'FR-16(7)(v)-1 Functional'!D76","v":"K206"},null,{"$f":"'FR-16(7)(v)-2 PROD Classified'!I76","v":0},0,0,0,0,0,0,0,0,0,0,0,0,0]
[20,null,{"$f":"'FR-16(7)(v)-1 Functional'!C77","v":"POLES, TOWERS  & FIXTURES - SECONDARY - CUSTOMER"},{"$f":"'FR-16(7)(v)-1 Functional'!D77","v":"K405"},null,{"$f":"'FR-16(7)(v)-2 PROD Classified'!I77","v":0},0,0,0,0,0,0,0,0,0,0,0,0,0]
[21,null,{"$f":"'FR-16(7)(v)-1 Functional'!C78","v":"CONDUCTORS - OVERHEAD / PRIMARY - DEMAND"},{"$f":"'FR-16(7)(v)-1 Functional'!D78","v":"K205"},null,{"$f":"'FR-16(7)(v)-2 PROD Classified'!I78","v":0},0,0,0,0,0,0,0,0,0,0,0,0,0]
[22,null,{"$f":"'FR-16(7)(v)-1 Functional'!C79","v":"CONDUCTORS - OVERHEAD / PRIMARY - CUSTOMER"},{"$f":"'FR-16(7)(v)-1 Functional'!D79","v":"K405"},null,{"$f":"'FR-16(7)(v)-2 PROD Classified'!I79","v":0},0,0,0,0,0,0,0,0,0,0,0,0,0]
[23,null,{"$f":"'FR-16(7)(v)-1 Functional'!C80","v":"CONDUCTORS - OVERHEAD / SECONDARY - DEMAND"},{"$f":"'FR-16(7)(v)-1 Functional'!D80","v":"K206"},null,{"$f":"'FR-16(7)(v)-2 PROD Classified'!I80","v":0},0,0,0,0,0,0,0,0,0,0,0,0,0]
[24,null,{"$f":"'FR-16(7)(v)-1 Functional'!C81","v":"CONDUCTORS - OVERHEAD / SECONDARY - CUSTOMER"},{"$f":"'FR-16(7)(v)-1 Functional'!D81","v":"K405"},null,{"$f":"'FR-16(7)(v)-2 PROD Classified'!I81","v":0},0,0,0,0,0,0,0,0,0,0,0,0,0]
[25,null,{"$f":"'FR-16(7)(v)-1 Functional'!C82","v":"CONDUCTORS - UNDERGROUND / PRIMARY - DEMAND"},{"$f":"'FR-16(7)(v)-1 Functional'!D82","v":"K205"},null,{"$f":"'FR-16(7)(v)-2 PROD Classified'!I82","v":0},0,0,0,0,0,0,0,0,0,0,0,0,0]
[26,null,{"$f":"'FR-16(7)(v)-1 Functional'!C83","v":"CONDUCTORS - UNDERGROUND / PRIMARY - CUSTOMER"},{"$f":"'FR-16(7)(v)-1 Functional'!D83","v":"K405"},null,{"$f":"'FR-16(7)(v)-2 PROD Classified'!I83","v":0},0,0,0,0,0,0,0,0,0,0,0,0,0]
[27,null,{"$f":"'FR-16(7)(v)-1 Functional'!C84","v":"CONDUCTORS - UNDERGROUND / SECONDARY - DEMAND"},{"$f":"'FR-16(7)(v)-1 Functional'!D84","v":"K206"},null,{"$f":"'FR-16(7)(v)-2 PROD Classified'!I84","v":0},0,0,0,0,0,0,0,0,0,0,{"$f":"ROUND(F84*VLOOKUP(D84,ALLOCTABLE_Prod_Customer,$Q$10,FALSE),0)","v":0},{"$f":"SUM(G84:Q84)","v":0},0]
[28,null,{"$f":"'FR-16(7)(v)-1 Functional'!C85","v":"CONDUCTORS - UNDERGROUND / SECONDARY - CUSTOMER"},{"$f":"'FR-16(7)(v)-1 Functional'!D85","v":"K405"},null,{"$f":"'FR-16(7)(v)-2 PROD Classified'!I85","v":0},0,0,0,0,0,0,0,0,0,0,0,0,0]
[29,null,{"$f":"'FR-16(7)(v)-1 Functional'!C86","v":"TRANSFORMERS DEMAND RELATED"},{"$f":"'FR-16(7)(v)-1 Functional'!D86","v":"K215"},null,{"$f":"'FR-16(7)(v)-2 PROD Classified'!I86","v":0},{"$f":"F86-SUM(H86:Q86)","v":0},{"$f":"ROUND(F86*VLOOKUP(D86,ALLOCTABLE_Prod_Customer,$H$10,FALSE),0)","v":0},{"$f":"ROUND(F86*VLOOKUP($D$86,ALLOCTABLE_Prod_Customer,$I$10,FALSE),0)","v":0},{"$f":"ROUND(F86*VLOOKUP($D$86,ALLOCTABLE_Prod_Customer,$J$10,FALSE),0)","v":0},{"$f":"ROUND(F86*VLOOKUP($D$86,ALLOCTABLE_Prod_Customer,$K$10,FALSE),0)","v":0},{"$f":"ROUND(F86*VLOOKUP($D$86,ALLOCTABLE_Prod_Customer,$L$10,FALSE),0)","v":0},{"$f":"ROUND(F86*VLOOKUP($D$86,ALLOCTABLE_Prod_Customer,$M$10,FALSE),0)","v":0},{"$f":"ROUND(F86*VLOOKUP($D$86,ALLOCTABLE_Prod_Customer,$N$10,FALSE),0)","v":0},{"$f":"ROUND(F86*VLOOKUP($D$86,ALLOCTABLE_Prod_Customer,$O$10,FALSE),0)","v":0},0,0,0,{"$f":"F86-R86","v":0}]
[30,null,{"$f":"'FR-16(7)(v)-1 Functional'!C87","v":"TRANSFORMERS CUSTOMER RELATED"},{"$f":"'FR-16(7)(v)-1 Functional'!D87","v":"K405"},null,{"$f":"'FR-16(7)(v)-2 PROD Classified'!I87","v":0},0,0,{"$f":"ROUND(F87*VLOOKUP($D$86,ALLOCTABLE_Prod_Customer,$I$10,FALSE),0)","v":0},{"$f":"ROUND(F87*VLOOKUP($D$86,ALLOCTABLE_Prod_Customer,$J$10,FALSE),0)","v":0},{"$f":"ROUND(F87*VLOOKUP($D$86,ALLOCTABLE_Prod_Customer,$K$10,FALSE),0)","v":0},{"$f":"ROUND(F87*VLOOKUP($D$86,ALLOCTABLE_Prod_Customer,$L$10,FALSE),0)","v":0},{"$f":"ROUND(F87*VLOOKUP($D$86,ALLOCTABLE_Prod_Customer,$M$10,FALSE),0)","v":0},{"$f":"ROUND(F87*VLOOKUP($D$86,ALLOCTABLE_Prod_Customer,$N$10,FALSE),0)","v":0},{"$f":"ROUND(F87*VLOOKUP($D$86,ALLOCTABLE_Prod_Customer,$O$10,FALSE),0)","v":0},0,0,0,0]
[31,null,{"$f":"'FR-16(7)(v)-1 Functional'!C88","v":"SERVICES"},{"$f":"'FR-16(7)(v)-1 Functional'!D88","v":"K217"},null,{"$f":"'FR-16(7)(v)-2 PROD Classified'!I88","v":0},0,0,{"$f":"ROUND(F88*VLOOKUP($D$88,ALLOCTABLE_Prod_Customer,$I$10,FALSE),0)","v":0},{"$f":"ROUND(F88*VLOOKUP($D$88,ALLOCTABLE_Prod_Customer,$J$10,FALSE),0)","v":0},{"$f":"ROUND(F88*VLOOKUP($D$88,ALLOCTABLE_Prod_Customer,$K$10,FALSE),0)","v":0},{"$f":"ROUND(F88*VLOOKUP($D$88,ALLOCTABLE_Prod_Customer,$L$10,FALSE),0)","v":0},{"$f":"ROUND(F88*VLOOKUP($D$88,ALLOCTABLE_Prod_Customer,$M$10,FALSE),0)","v":0},{"$f":"ROUND(F88*VLOOKUP($D$88,ALLOCTABLE_Prod_Customer,$N$10,FALSE),0)","v":0},{"$f":"ROUND(F88*VLOOKUP($D$88,ALLOCTABLE_Prod_Customer,$O$10,FALSE),0)","v":0},0,0,0,0]
[32,null,{"$f":"'FR-16(7)(v)-1 Functional'!C89","v":"METERS"},{"$f":"'FR-16(7)(v)-1 Functional'!D89","v":"K407"},null,{"$f":"'FR-16(7)(v)-2 PROD Classified'!I89","v":0},0,0,{"$f":"ROUND(F89*VLOOKUP($D$89,ALLOCTABLE_Prod_Customer,$I$10,FALSE),0)","v":0},{"$f":"ROUND(F89*VLOOKUP($D$89,ALLOCTABLE_Prod_Customer,$J$10,FALSE),0)","v":0},{"$f":"ROUND(F89*VLOOKUP($D$89,ALLOCTABLE_Prod_Customer,$K$10,FALSE),0)","v":0},{"$f":"ROUND(F89*VLOOKUP($D$89,ALLOCTABLE_Prod_Customer,$L$10,FALSE),0)","v":0},{"$f":"ROUND(F89*VLOOKUP($D$89,ALLOCTABLE_Prod_Customer,$M$10,FALSE),0)","v":0},{"$f":"ROUND(F89*VLOOKUP($D$89,ALLOCTABLE_Prod_Customer,$N$10,FALSE),0)","v":0},{"$f":"ROUND(F89*VLOOKUP($D$89,ALLOCTABLE_Prod_Customer,$O$10,FALSE),0)","v":0},0,0,0,0]
[33,null,{"$f":"'FR-16(7)(v)-1 Functional'!C90","v":"STREET LIGHTS"},{"$f":"'FR-16(7)(v)-1 Functional'!D90","v":"K401"},null,{"$f":"'FR-16(7)(v)-2 PROD Classified'!I90","v":0},0,0,{"$f":"ROUND(F90*VLOOKUP($D$90,ALLOCTABLE_Prod_Customer,$I$10,FALSE),0)","v":0},{"$f":"ROUND(F90*VLOOKUP($D$90,ALLOCTABLE_Prod_Customer,$J$10,FALSE),0)","v":0},{"$f":"ROUND(F90*VLOOKUP($D$90,ALLOCTABLE_Prod_Customer,$K$10,FALSE),0)","v":0},{"$f":"ROUND(F90*VLOOKUP($D$90,ALLOCTABLE_Prod_Customer,$L$10,FALSE),0)","v":0},{"$f":"ROUND(F90*VLOOKUP($D$90,ALLOCTABLE_Prod_Customer,$M$10,FALSE),0)","v":0},{"$f":"ROUND(F90*VLOOKUP($D$90,ALLOCTABLE_Prod_Customer,$N$10,FALSE),0)","v":0},{"$f":"ROUND(F90*VLOOKUP($D$90,ALLOCTABLE_Prod_Customer,$O$10,FALSE),0)","v":0},0,0,0,0]
[34,null,{"$f":"'FR-16(7)(v)-1 Functional'!C91","v":"ADJUSTMENT  "},{"$f":"'FR-16(7)(v)-1 Functional'!D91","v":"K209"},null,{"$f":"'FR-16(7)(v)-2 PROD Classified'!I91","v":0},0,0,{"$f":"ROUND(F91*VLOOKUP($D$91,ALLOCTABLE_Prod_Customer,$I$10,FALSE),0)","v":0},{"$f":"ROUND(F91*VLOOKUP($D$91,ALLOCTABLE_Prod_Customer,$J$10,FALSE),0)","v":0},{"$f":"ROUND(F91*VLOOKUP($D$91,ALLOCTABLE_Prod_Customer,$K$10,FALSE),0)","v":0},{"$f":"ROUND(F91*VLOOKUP($D$91,ALLOCTABLE_Prod_Customer,$L$10,FALSE),0)","v":0},{"$f":"ROUND(F91*VLOOKUP($D$91,ALLOCTABLE_Prod_Customer,$M$10,FALSE),0)","v":0},{"$f":"ROUND(F91*VLOOKUP($D$91,ALLOCTABLE_Prod_Customer,$N$10,FALSE),0)","v":0},{"$f":"ROUND(F91*VLOOKUP($D$91,ALLOCTABLE_Prod_Customer,$O$10,FALSE),0)","v":0},0,0,0,0]
[35,null,{"$f":"'FR-16(7)(v)-1 Functional'!C92","v":"CONSTRUCTION NOT CLASSIFIED"},{"$f":"'FR-16(7)(v)-1 Functional'!D92","v":"K209"},null,{"$f":"'FR-16(7)(v)-2 PROD Classified'!I92","v":0},0,0,{"$f":"ROUND(F92*VLOOKUP($D$92,ALLOCTABLE_Prod_Customer,$I$10,FALSE),0)","v":0},{"$f":"ROUND(F92*VLOOKUP($D$92,ALLOCTABLE_Prod_Customer,$J$10,FALSE),0)","v":0},{"$f":"ROUND(F92*VLOOKUP($D$92,ALLOCTABLE_Prod_Customer,$K$10,FALSE),0)","v":0},{"$f":"ROUND(F92*VLOOKUP($D$92,ALLOCTABLE_Prod_Customer,$L$10,FALSE),0)","v":0},{"$f":"ROUND(F92*VLOOKUP($D$92,ALLOCTABLE_Prod_Customer,$M$10,FALSE),0)","v":0},{"$f":"ROUND(F92*VLOOKUP($D$92,ALLOCTABLE_Prod_Customer,$N$10,FALSE),0)","v":0},{"$f":"ROUND(F92*VLOOKUP($D$92,ALLOCTABLE_Prod_Customer,$O$10,FALSE),0)","v":0},0,0,0,0]
[36,null,{"$f":"'FR-16(7)(v)-1 Functional'!C93","v":"RWIP"},{"$f":"'FR-16(7)(v)-1 Functional'!D93","v":"K215"},null,{"$f":"'FR-16(7)(v)-2 PROD Classified'!I93","v":0},{"$f":"F93-SUM(H93:Q93)","v":0},{"$f":"ROUND(F93*VLOOKUP(D93,ALLOCTABLE_Prod_Customer,$H$10,FALSE),0)","v":0},{"$f":"ROUND(F93*VLOOKUP($D$92,ALLOCTABLE_Prod_Customer,$I$10,FALSE),0)","v":0},{"$f":"ROUND(F93*VLOOKUP($D$92,ALLOCTABLE_Prod_Customer,$J$10,FALSE),0)","v":0},{"$f":"ROUND(F93*VLOOKUP($D$92,ALLOCTABLE_Prod_Customer,$K$10,FALSE),0)","v":0}]
[37,null,{"$f":"'FR-16(7)(v)-1 Functional'!C94","v":"  DISTRIBUTION PLANT IN SERVICE"},null,null,{"$f":"SUM(F73:F93)","v":0},{"$f":"SUM(G73:G92)","v":0},{"$f":"SUM(H73:H92)","v":0},{"$f":"SUM(I73:I92)","v":0},{"$f":"SUM(J73:J92)","v":0},0,0,0,0,0,0,{"$f":"SUM(Q73:Q92)","v":0},{"$f":"SUM(R73:R92)","v":0},{"$f":"SUM(S73:S92)","v":0}]
[38]
[39,"TOTAL TRANS & DIST PLANT",null,null,null,{"$f":"F94+F68","v":0},{"$f":"G94+G68","v":0},{"$f":"H94+H68","v":0},{"$f":"I94+I68","v":0},{"$f":"J94+J68","v":0},0,0,0,0,0,0,{"$f":"Q94+$Q$68","v":0},{"$f":"R94+R68","v":0},{"$f":"S94+S68","v":0}]
[40,"TOTAL GROSS PTD PLANT",null,null,null,{"$f":"F94+F70","v":0},{"$f":"G94+G70","v":0},{"$f":"H94+H70","v":0},{"$f":"I94+I70","v":0},{"$f":"J94+J70","v":0},0,0,0,0,0,0,{"$f":"Q94+Q70","v":0},{"$f":"R94+R70","v":0},{"$f":"S94+S70","v":0}]
[41]
[42,"GENERAL & INTANGIBLE PLANT"]
[43,null,{"$f":"'FR-16(7)(v)-1 Functional'!C100","v":"PRODUCTION - DEMAND"},{"$f":"'FR-16(7)(v)-1 Functional'!D100","v":"K201"},null,{"$f":"'FR-16(7)(v)-2 PROD Classified'!I100","v":0},{"$f":"F100-SUM(H100:Q100)","v":0},{"$f":"ROUND(F100*VLOOKUP(D100,ALLOCTABLE_Prod_Customer,$H$10,FALSE),0)","v":0},{"$f":"ROUND(F100*VLOOKUP(D100,ALLOCTABLE_Prod_Customer,$I$10,FALSE),0)","v":0},{"$f":"ROUND(F100*VLOOKUP(D100,ALLOCTABLE_Prod_Customer,$J$10,FALSE),0)","v":0},{"$f":"ROUND(F100*VLOOKUP(D100,ALLOCTABLE_Prod_Customer,$K$10,FALSE),0)","v":0},{"$f":"ROUND(F100*VLOOKUP(D100,ALLOCTABLE_Prod_Customer,$L$10,FALSE),0)","v":0},{"$f":"ROUND(F100*VLOOKUP(D100,ALLOCTABLE_Prod_Customer,$M$10,FALSE),0)","v":0},{"$f":"ROUND(F100*VLOOKUP(D100,ALLOCTABLE_Prod_Customer,$N$10,FALSE),0)","v":0},{"$f":"ROUND(F100*VLOOKUP(D100,ALLOCTABLE_Prod_Customer,$O$10,FALSE),0)","v":0},{"$f":"ROUND(F100*VLOOKUP(D100,ALLOCTABLE_Prod_Customer,$P$10,FALSE),0)","v":0},{"$f":"ROUND(F100*VLOOKUP(D100,ALLOCTABLE_Prod_Customer,$Q$10,FALSE),0)","v":0},{"$f":"SUM(G100:Q100)","v":0},{"$f":"F100-R100","v":0}]
[44,null,{"$f":"'FR-16(7)(v)-1 Functional'!C101","v":"PRODUCTION - ENERGY"},{"$f":"'FR-16(7)(v)-1 Functional'!D101","v":"K301"},null,{"$f":"'FR-16(7)(v)-2 PROD Classified'!I101","v":0},0,0,0,0,0,0,0,0,0,0,0,0,0]
[45,null,{"$f":"'FR-16(7)(v)-1 Functional'!C102","v":"TRANSMISSION"},{"$f":"'FR-16(7)(v)-1 Functional'!D102","v":"K202"},null,{"$f":"'FR-16(7)(v)-2 PROD Classified'!I102","v":0},0,0,0,0,0,0,0,0,0,0,0,0,0]
[46,null,{"$f":"'FR-16(7)(v)-1 Functional'!C103","v":"DISTRIBUTION - DEMAND"},{"$f":"'FR-16(7)(v)-1 Functional'!D103","v":"K201"},null,{"$f":"'FR-16(7)(v)-2 PROD Classified'!I103","v":0},0,0,0,0,0,0,0,0,0,0,0,0,0]
[47,null,{"$f":"'FR-16(7)(v)-1 Functional'!C104","v":"DISTRIBUTION - CUSTOMER"},{"$f":"'FR-16(7)(v)-1 Functional'!D104","v":"K405"},null,{"$f":"'FR-16(7)(v)-2 PROD Classified'!I104","v":0},0,0,0,0,0,0,0,0,0,0,0,0,0]
[48,null,{"$f":"'FR-16(7)(v)-1 Functional'!C105","v":"CUSTOMER ACCOUNTING"},{"$f":"'FR-16(7)(v)-1 Functional'!D105","v":"A308"},null,{"$f":"'FR-16(7)(v)-2 PROD Classified'!I105","v":0},0,0,0,0,0,0,0,0,0,0,0,0,0]
[49,null,{"$f":"'FR-16(7)(v)-1 Functional'!C106","v":"CUSTOMER SERVICE & INFORMATION"},{"$f":"'FR-16(7)(v)-1 Functional'!D106","v":"A310"},null,{"$f":"'FR-16(7)(v)-2 PROD Classified'!I106","v":0},0,0,0,0,0,0,0,0,0,0,0,0,0]
[50,null,{"$f":"'FR-16(7)(v)-1 Functional'!C107","v":"SALES"},{"$f":"'FR-16(7)(v)-1 Functional'!D107","v":"A312"},null,{"$f":"'FR-16(7)(v)-2 PROD Classified'!I107","v":0},0,0,0,0,0,0,0,0,0,0,0,0,0]
[51,null,{"$f":"'FR-16(7)(v)-1 Functional'!C108","v":"ADJUSTMENT"},{"$f":"'FR-16(7)(v)-1 Functional'!D108","v":"A315"},null,{"$f":"'FR-16(7)(v)-2 PROD Classified'!I108","v":0},0,0,0,0,0,0,0,0,0,0,0,0,0]
[52,null,{"$f":"'FR-16(7)(v)-1 Functional'!C109","v":"  GEN & INTANG PLANT IN SERVICE"},null,null,{"$f":"SUM(F100:F108)","v":0},{"$f":"SUM(G100:G108)","v":0},{"$f":"SUM(H100:H108)","v":0},{"$f":"SUM(I100:I108)","v":0},{"$f":"SUM(J100:J108)","v":0},0,0,0,0,0,0,{"$f":"SUM(Q100:Q108)","v":0},{"$f":"SUM(R100:R108)","v":0},{"$f":"SUM(S100:S108)","v":0}]
[53]
[54,"COMMON & OTHER PLANT"]
[55,null,{"$f":"'FR-16(7)(v)-1 Functional'!C112","v":"PRODUCTION - DEMAND"},{"$f":"'FR-16(7)(v)-1 Functional'!D112","v":"K201"},null,{"$f":"'FR-16(7)(v)-2 PROD Classified'!I112","v":0},{"$f":"F112-SUM(H112:Q112)","v":0},{"$f":"ROUND(F112*VLOOKUP(D112,ALLOCTABLE_Prod_Customer,$H$10,FALSE),0)","v":0},{"$f":"ROUND(F112*VLOOKUP(D112,ALLOCTABLE_Prod_Customer,$I$10,FALSE),0)","v":0},{"$f":"ROUND(F112*VLOOKUP(D112,ALLOCTABLE_Prod_Customer,$J$10,FALSE),0)","v":0},{"$f":"ROUND(F112*VLOOKUP(D112,ALLOCTABLE_Prod_Customer,$K$10,FALSE),0)","v":0},{"$f":"ROUND(F112*VLOOKUP(D112,ALLOCTABLE_Prod_Customer,$L$10,FALSE),0)","v":0},{"$f":"ROUND(F112*VLOOKUP(D112,ALLOCTABLE_Prod_Customer,$M$10,FALSE),0)","v":0},{"$f":"ROUND(F112*VLOOKUP(D112,ALLOCTABLE_Prod_Customer,$N$10,FALSE),0)","v":0},{"$f":"ROUND(F112*VLOOKUP(D112,ALLOCTABLE_Prod_Customer,$O$10,FALSE),0)","v":0},{"$f":"ROUND(F112*VLOOKUP(D112,ALLOCTABLE_Prod_Customer,$P$10,FALSE),0)","v":0},{"$f":"ROUND(F112*VLOOKUP(D112,ALLOCTABLE_Prod_Customer,$Q$10,FALSE),0)","v":0},{"$f":"SUM(G112:Q112)","v":0},{"$f":"F112-R112","v":0}]
[56,null,{"$f":"'FR-16(7)(v)-1 Functional'!C113","v":"PRODUCTION - ENERGY"},{"$f":"'FR-16(7)(v)-1 Functional'!D113","v":"K301"},null,{"$f":"'FR-16(7)(v)-2 PROD Classified'!I113","v":0},0,0,0,0,0,0,0,0,0,0,0,0,0]
[57,null,{"$f":"'FR-16(7)(v)-1 Functional'!C114","v":"TRANSMISSION"},{"$f":"'FR-16(7)(v)-1 Functional'!D114","v":"K202"},null,{"$f":"'FR-16(7)(v)-2 PROD Classified'!I114","v":0},0,0,0,0,0,0,0,0,0,0,0,0,0]
[58,null,{"$f":"'FR-16(7)(v)-1 Functional'!C115","v":"DISTRIBUTION - DEMAND"},{"$f":"'FR-16(7)(v)-1 Functional'!D115","v":"K201"},null,{"$f":"'FR-16(7)(v)-2 PROD Classified'!I115","v":0},0,0,0,0,0,0,0,0,0,0,0,0,0]
[59,null,{"$f":"'FR-16(7)(v)-1 Functional'!C116","v":"DISTRIBUTION - CUSTOMER"},{"$f":"'FR-16(7)(v)-1 Functional'!D116","v":"K405"},null,{"$f":"'FR-16(7)(v)-2 PROD Classified'!I116","v":0},0,0,0,0,0,0,0,0,0,0,0,0,0]
[60,null,{"$f":"'FR-16(7)(v)-1 Functional'!C117","v":"CUSTOMER ACCOUNTING"},{"$f":"'FR-16(7)(v)-1 Functional'!D117","v":"A308"},null,{"$f":"'FR-16(7)(v)-2 PROD Classified'!I117","v":0},0,0,0,0,0,0,0,0,0,0,0,0,0]
[61,null,{"$f":"'FR-16(7)(v)-1 Functional'!C118","v":"CUSTOMER SERVICE & INFORMATION"},{"$f":"'FR-16(7)(v)-1 Functional'!D118","v":"A310"},null,{"$f":"'FR-16(7)(v)-2 PROD Classified'!I118","v":0},0,0,0,0,0,0,0,0,0,0,0,0,0]
[62,null,{"$f":"'FR-16(7)(v)-1 Functional'!C119","v":"SALES"},{"$f":"'FR-16(7)(v)-1 Functional'!D119","v":"A312"},null,{"$f":"'FR-16(7)(v)-2 PROD Classified'!I119","v":0},0,0,0,0,0,0,0,0,0,0,0,0,0]
[63,null,{"$f":"'FR-16(7)(v)-1 Functional'!C120","v":"ADJUSTMENT"},{"$f":"'FR-16(7)(v)-1 Functional'!D120","v":"A315"},null,{"$f":"'FR-16(7)(v)-2 PROD Classified'!I120","v":0},0,0,0,0,0,0,0,0,0,0,0,0,0]
[64,null,{"$f":"'FR-16(7)(v)-1 Functional'!C121","v":"  COMMON & OTHER PLANT IN SERVICE"},null,null,{"$f":"SUM(F112:F120)","v":0},{"$f":"SUM(G112:G120)","v":0},{"$f":"SUM(H112:H120)","v":0},{"$f":"SUM(I112:I120)","v":0},{"$f":"SUM(J112:J120)","v":0},0,0,0,0,0,0,{"$f":"SUM(Q112:Q120)","v":0},{"$f":"SUM(R112:R120)","v":0},{"$f":"SUM(S112:S120)","v":0}]
[65]
[66,"GROSS ELECTRIC PLANT IN SERVICE",null,null,null,{"$f":"F97+F109+F121","v":0},{"$f":"G97+G109+G121","v":0},{"$f":"H97+H109+H121","v":0},{"$f":"I97+I109+I121","v":0},{"$f":"J97+J109+J121","v":0},0,0,0,0,0,0,{"$f":"Q97+Q109+Q121","v":0},{"$f":"R97+R109+R121","v":0},{"$f":"S97+S109+S121","v":0}]
[]
[{"$f":"co_name","v":"DUKE ENERGY KENTUCKY, INC."},null,null,null,null,null,null,null,null,null,null,null,null,null,null,null,null,{"$f":"R1","v":"FR-16(7)(v)-5"}]
[{"$f":"$A$2","v":"PRODUCTION CUSTOMER ALLOCATED - ELECTRIC COST OF SERVICE"},null,null,null,null,null,null,null,null,null,null,null,null,null,null,null,null,{"$f":"R2","v":"WITNESS RESPONSIBLE:"}]
[{"$f":"case_name","v":"CASE NO: 2019-00271"},null,null,null,null,null,null,null,null,null,null,null,null,null,null,null,null,{"$f":"Witness","v":"JAMES E. ZIOLKOWSKI"}]
[{"$f":"data_filing","v":"DATA: 12 MONTHS ACTUAL  & 0 MONTHS ESTIMATED"},null,null,null,null,null,null,null,null,null,null,null,null,null,null,null,null,{"$f":"\"PAGE \"&Pages-15&\" OF \"&Pages","v":"PAGE 3 OF 18"}]
[{"$f":"type","v":"TYPE OF FILING: \"X\" ORIGINAL   UPDATED    REVISED  "}]
[]
[null,null,null,null,null,{"$f":"F$7","v":"TOTAL"},null,{"$f":"H$7","v":"DS"},{"$f":"I$7","v":"GSFL"},{"$f":"J$7","v":"EH"},{"$f":"K$7","v":"SP"},"DT SEC","DT PRI","DP","TT",null,"OTHER"]
["LINE",null,null,null,null,{"$f":"F$8","v":"PRODUCTION"},{"$f":"G$8","v":"RS"},{"$f":"H$8","v":"SECONDARY"},{"$f":"I$8","v":"SECONDARY"},{"$f":"J$8","v":"SECONDARY"},{"$f":"K$8","v":"SECONDARY"},"SECONDARY","PRIMARY","PRIMARY","TRANSMISSION","LT","WATER",{"$f":"R8","v":"TOTAL"},"ALL"]
["NO.","DEPRECIATION RESERVE",null,"ALLO",null,{"$f":"F$9","v":"CUSTOMER"},{"$f":"G$9","v":"RESIDENTIAL"},{"$f":"H$9","v":"DISTRIBUTION"},{"$f":"I$9","v":"DISTRIBUTION"},{"$f":"J$9","v":"DISTRIBUTION"},{"$f":"K$9","v":"DISTRIBUTION"},"DISTRIBUTION","DISTRIBUTION","DISTRIBUTION","TIME OF DAY","LIGHTING","PUMPING",{"$f":"R9","v":"AT ISSUE"},"OTHER"]
[null,null,"Schedule 3",null,null,null,{"$f":"G$10","v":3},{"$f":"H$10","v":4},{"$f":"I$10","v":5},{"$f":"J$10","v":6},{"$f":"K$10","v":7},8,9,10,11,12,13,null," "]
[1,"PRODUCTION PLANT"]
[2,null,"PRODUCTION STEAM",{"$f":"'FR-16(7)(v)-1 Functional'!D136","v":"K201"},null,{"$f":"'FR-16(7)(v)-2 PROD Classified'!I136","v":0},{"$f":"F136-SUM(H136:Q136)","v":0},{"$f":"ROUND(F136*VLOOKUP(D136,ALLOCTABLE_Prod_Customer,$H$10,FALSE),0)","v":0},{"$f":"ROUND(F136*VLOOKUP($D$136,ALLOCTABLE_Prod_Customer,$I$10,FALSE),0)","v":0},{"$f":"ROUND(F136*VLOOKUP($D$136,ALLOCTABLE_Prod_Customer,$J$10,FALSE),0)","v":0},{"$f":"ROUND(F136*VLOOKUP($D$136,ALLOCTABLE_Prod_Customer,$K$10,FALSE),0)","v":0},{"$f":"ROUND(F136*VLOOKUP($D$136,ALLOCTABLE_Prod_Customer,$L$10,FALSE),0)","v":0},{"$f":"ROUND(F136*VLOOKUP($D$136,ALLOCTABLE_Prod_Customer,$M$10,FALSE),0)","v":0},{"$f":"ROUND(F136*VLOOKUP($D$136,ALLOCTABLE_Prod_Customer,$N$10,FALSE),0)","v":0},{"$f":"ROUND(F136*VLOOKUP($D$136,ALLOCTABLE_Prod_Customer,$O$10,FALSE),0)","v":0},{"$f":"ROUND(F136*VLOOKUP($D$136,ALLOCTABLE_Prod_Customer,$P$10,FALSE),0)","v":0},{"$f":"ROUND(F136*VLOOKUP(D136,ALLOCTABLE_Prod_Customer,$Q$10,FALSE),0)","v":0},{"$f":"SUM(G136:Q136)","v":0},{"$f":"F136-R136","v":0}]
[3,null,"PRODUCTION OTHER",{"$f":"'FR-16(7)(v)-1 Functional'!D137","v":"K201"},null,{"$f":"'FR-16(7)(v)-2 PROD Classified'!I137","v":0},{"$f":"F137-SUM(H137:Q137)","v":0},{"$f":"ROUND(F136*VLOOKUP(D136,ALLOCTABLE_Prod_Customer,$H$10,FALSE),0)","v":0},{"$f":"ROUND(F137*VLOOKUP($D$137,ALLOCTABLE_Prod_Customer,$I$10,FALSE),0)","v":0},{"$f":"ROUND(F137*VLOOKUP($D$137,ALLOCTABLE_Prod_Customer,$J$10,FALSE),0)","v":0},{"$f":"ROUND(F137*VLOOKUP($D$137,ALLOCTABLE_Prod_Customer,$K$10,FALSE),0)","v":0},{"$f":"ROUND(F137*VLOOKUP($D$137,ALLOCTABLE_Prod_Customer,$L$10,FALSE),0)","v":0},{"$f":"ROUND(F137*VLOOKUP($D$137,ALLOCTABLE_Prod_Customer,$M$10,FALSE),0)","v":0},{"$f":"ROUND(F137*VLOOKUP($D$137,ALLOCTABLE_Prod_Customer,$N$10,FALSE),0)","v":0},{"$f":"ROUND(F137*VLOOKUP($D$137,ALLOCTABLE_Prod_Customer,$O$10,FALSE),0)","v":0},{"$f":"ROUND(F137*VLOOKUP($D$137,ALLOCTABLE_Prod_Customer,$P$10,FALSE),0)","v":0},{"$f":"ROUND(F137*VLOOKUP(D137,ALLOCTABLE_Prod_Customer,$Q$10,FALSE),0)","v":0},{"$f":"SUM(G137:Q137)","v":0},{"$f":"F137-R137","v":0}]
[4,null,{"$f":"'FR-16(7)(v)-1 Functional'!C138","v":"ADJUSTMENT"},{"$f":"'FR-16(7)(v)-1 Functional'!D138","v":"K201"},null,{"$f":"'FR-16(7)(v)-2 PROD Classified'!I138","v":0},{"$f":"F138-SUM(H138:Q138)","v":0},{"$f":"ROUND(F136*VLOOKUP(D136,ALLOCTABLE_Prod_Customer,$H$10,FALSE),0)","v":0},{"$f":"ROUND(F138*VLOOKUP($D$138,ALLOCTABLE_Prod_Customer,$I$10,FALSE),0)","v":0},{"$f":"ROUND(F138*VLOOKUP($D$138,ALLOCTABLE_Prod_Customer,$J$10,FALSE),0)","v":0},{"$f":"ROUND(F138*VLOOKUP($D$138,ALLOCTABLE_Prod_Customer,$K$10,FALSE),0)","v":0},{"$f":"ROUND(F138*VLOOKUP($D$138,ALLOCTABLE_Prod_Customer,$L$10,FALSE),0)","v":0},{"$f":"ROUND(F138*VLOOKUP($D$138,ALLOCTABLE_Prod_Customer,$M$10,FALSE),0)","v":0},{"$f":"ROUND(F138*VLOOKUP($D$138,ALLOCTABLE_Prod_Customer,$N$10,FALSE),0)","v":0},{"$f":"ROUND(F138*VLOOKUP($D$138,ALLOCTABLE_Prod_Customer,$O$10,FALSE),0)","v":0},{"$f":"ROUND(F138*VLOOKUP($D$138,ALLOCTABLE_Prod_Customer,$P$10,FALSE),0)","v":0},{"$f":"ROUND(F138*VLOOKUP(D138,ALLOCTABLE_Prod_Customer,$Q$10,FALSE),0)","v":0},{"$f":"SUM(G138:Q138)","v":0},{"$f":"F138-R138","v":0}]
[5,null,{"$f":"'FR-16(7)(v)-1 Functional'!C139","v":"  TOTAL PROD DEPREC RESERVE"},null,null,{"$f":"SUM(F136:F138)","v":0},0,0,0,0,0,0,0,0,0,0,0,0,{"$f":"SUM(S136:S136)","v":0}]
[6]
[7,"TRANSMISSION PLANT"]
[8,null,"MAIN STEP-UP TRANSFORMERS",{"$f":"'FR-16(7)(v)-1 Functional'!D142","v":"K202"},null,{"$f":"'FR-16(7)(v)-2 PROD Classified'!I142","v":0},{"$f":"F142-SUM(H142:Q142)","v":0},{"$f":"ROUND(F136*VLOOKUP(D136,ALLOCTABLE_Prod_Customer,$H$10,FALSE),0)","v":0},{"$f":"ROUND(F142*VLOOKUP($D$142,ALLOCTABLE_Prod_Customer,$I$10,FALSE),0)","v":0},{"$f":"ROUND(F142*VLOOKUP($D$142,ALLOCTABLE_Prod_Customer,$J$10,FALSE),0)","v":0},{"$f":"ROUND(F142*VLOOKUP($D$142,ALLOCTABLE_Prod_Customer,$K$10,FALSE),0)","v":0},{"$f":"ROUND(F142*VLOOKUP($D$142,ALLOCTABLE_Prod_Customer,$L$10,FALSE),0)","v":0},{"$f":"ROUND(F142*VLOOKUP($D$142,ALLOCTABLE_Prod_Customer,$M$10,FALSE),0)","v":0},{"$f":"ROUND(F142*VLOOKUP($D$142,ALLOCTABLE_Prod_Customer,$N$10,FALSE),0)","v":0},{"$f":"ROUND(F142*VLOOKUP($D$142,ALLOCTABLE_Prod_Customer,$O$10,FALSE),0)","v":0},{"$f":"ROUND(F142*VLOOKUP($D$142,ALLOCTABLE_Prod_Customer,$P$10,FALSE),0)","v":0},{"$f":"ROUND(F142*VLOOKUP(D142,ALLOCTABLE_Prod_Customer,$Q$10,FALSE),0)","v":0},{"$f":"SUM(G142:Q142)","v":0},{"$f":"F142-R142","v":0}]
[9,null,"OTHER TRANSMISSION",{"$f":"'FR-16(7)(v)-1 Functional'!D143","v":"K202"},null,{"$f":"'FR-16(7)(v)-2 PROD Classified'!I143","v":0},{"$f":"F143-SUM(H143:Q143)","v":0},{"$f":"ROUND(F136*VLOOKUP(D136,ALLOCTABLE_Prod_Customer,$H$10,FALSE),0)","v":0},{"$f":"ROUND(F143*VLOOKUP($D$143,ALLOCTABLE_Prod_Customer,$I$10,FALSE),0)","v":0},{"$f":"ROUND(F143*VLOOKUP($D$143,ALLOCTABLE_Prod_Customer,$J$10,FALSE),0)","v":0},{"$f":"ROUND(F143*VLOOKUP($D$143,ALLOCTABLE_Prod_Customer,$K$10,FALSE),0)","v":0},{"$f":"ROUND(F143*VLOOKUP($D$143,ALLOCTABLE_Prod_Customer,$L$10,FALSE),0)","v":0},{"$f":"ROUND(F143*VLOOKUP($D$143,ALLOCTABLE_Prod_Customer,$M$10,FALSE),0)","v":0},{"$f":"ROUND(F143*VLOOKUP($D$143,ALLOCTABLE_Prod_Customer,$N$10,FALSE),0)","v":0},{"$f":"ROUND(F143*VLOOKUP($D$143,ALLOCTABLE_Prod_Customer,$O$10,FALSE),0)","v":0},{"$f":"ROUND(F143*VLOOKUP($D$143,ALLOCTABLE_Prod_Customer,$P$10,FALSE),0)","v":0},{"$f":"ROUND(F143*VLOOKUP(D143,ALLOCTABLE_Prod_Customer,$Q$10,FALSE),0)","v":0},{"$f":"SUM(G143:Q143)","v":0},{"$f":"F143-R143","v":0}]
[10,null,"ADJUSTMENT",{"$f":"'FR-16(7)(v)-1 Functional'!D144","v":"K202"},null,{"$f":"'FR-16(7)(v)-2 PROD Classified'!I144","v":0},{"$f":"F144-SUM(H144:Q144)","v":0},{"$f":"ROUND(F136*VLOOKUP(D136,ALLOCTABLE_Prod_Customer,$H$10,FALSE),0)","v":0},{"$f":"ROUND(F144*VLOOKUP($D$144,ALLOCTABLE_Prod_Customer,$I$10,FALSE),0)","v":0},{"$f":"ROUND(F144*VLOOKUP($D$144,ALLOCTABLE_Prod_Customer,$J$10,FALSE),0)","v":0},{"$f":"ROUND(F144*VLOOKUP($D$144,ALLOCTABLE_Prod_Customer,$K$10,FALSE),0)","v":0},{"$f":"ROUND(F144*VLOOKUP($D$144,ALLOCTABLE_Prod_Customer,$L$10,FALSE),0)","v":0},{"$f":"ROUND(F144*VLOOKUP($D$144,ALLOCTABLE_Prod_Customer,$M$10,FALSE),0)","v":0},{"$f":"ROUND(F144*VLOOKUP($D$144,ALLOCTABLE_Prod_Customer,$N$10,FALSE),0)","v":0},{"$f":"ROUND(F144*VLOOKUP($D$144,ALLOCTABLE_Prod_Customer,$O$10,FALSE),0)","v":0},{"$f":"ROUND(F144*VLOOKUP($D$144,ALLOCTABLE_Prod_Customer,$P$10,FALSE),0)","v":0},{"$f":"ROUND(F144*VLOOKUP(D144,ALLOCTABLE_Prod_Customer,$Q$10,FALSE),0)","v":0},{"$f":"SUM(G144:Q144)","v":0},{"$f":"F144-R144","v":0}]
[11,null,"  TOTAL TRANS DEPREC RESERVE",null,null,{"$f":"SUM(F142:F144)","v":0},{"$f":"SUM(G142:G144)","v":0},0,0,0,0,0,0,0,0,0,0,{"$f":"SUM(R142:R144)","v":0},{"$f":"SUM(S142:S142)","v":0}]
[12]
[13,null,"TOTAL PROD & TRANS DEPREC RESERVE",null,null,{"$f":"F145+F139","v":0},{"$f":"G145+G139","v":0},{"$f":"$H$114+H139","v":0},{"$f":"$I$114+I139","v":0},{"$f":"$J$114+J139","v":0},{"$f":"$K$114+K139","v":0},{"$f":"$L$114+L139","v":0},{"$f":"$M$114+M139","v":0},{"$f":"$N$114+N139","v":0},{"$f":"$O$114+O139","v":0},{"$f":"$P$114+P139","v":0},{"$f":"$Q$114+Q139","v":0},{"$f":"SUM(G147:Q147)","v":0},{"$f":"F147-R147","v":0}]
[14]
[15,"DISTRIBUTION PLANT"]
[16,null,{"$f":"'FR-16(7)(v)-1 Functional'!C150","v":"SUBSTATIONS"},{"$f":"'FR-16(7)(v)-1 Functional'!D150","v":"K215"},null,{"$f":"'FR-16(7)(v)-2 PROD Classified'!I150","v":0},{"$f":"F150-SUM(H150:Q150)","v":0},{"$f":"ROUND(F150*VLOOKUP(D150,ALLOCTABLE_Prod_Customer,$H$10,FALSE),0)","v":0},{"$f":"ROUND(F150*VLOOKUP($D$150,ALLOCTABLE_Prod_Customer,$I$10,FALSE),0)","v":0},{"$f":"ROUND(F150*VLOOKUP($D$150,ALLOCTABLE_Prod_Customer,$J$10,FALSE),0)","v":0},{"$f":"ROUND(F150*VLOOKUP($D$150,ALLOCTABLE_Prod_Customer,$K$10,FALSE),0)","v":0},{"$f":"ROUND(F150*VLOOKUP($D$150,ALLOCTABLE_Prod_Customer,$L$10,FALSE),0)","v":0},{"$f":"ROUND(F150*VLOOKUP($D$150,ALLOCTABLE_Prod_Customer,$M$10,FALSE),0)","v":0},{"$f":"ROUND(F150*VLOOKUP($D$150,ALLOCTABLE_Prod_Customer,$N$10,FALSE),0)","v":0},{"$f":"ROUND(F150*VLOOKUP($D$150,ALLOCTABLE_Prod_Customer,$O$10,FALSE),0)","v":0},{"$f":"ROUND(F150*VLOOKUP($D$150,ALLOCTABLE_Prod_Customer,$P$10,FALSE),0)","v":0},{"$f":"ROUND(F150*VLOOKUP(D150,ALLOCTABLE_Prod_Customer,$Q$10,FALSE),0)","v":0},{"$f":"SUM(G150:Q150)","v":0},{"$f":"F150-R150","v":0}]
[17,null,{"$f":"'FR-16(7)(v)-1 Functional'!C151","v":"POLES, TOWERS  & FIXTURES - PRIMARY - DEMAND"},{"$f":"'FR-16(7)(v)-1 Functional'!D151","v":"K205"},null,{"$f":"'FR-16(7)(v)-2 PROD Classified'!I151","v":0},{"$f":"F151-SUM(H151:Q151)","v":0},{"$f":"ROUND(F151*VLOOKUP(D151,ALLOCTABLE_Prod_Customer,$H$10,FALSE),0)","v":0},{"$f":"ROUND(F151*VLOOKUP(D151,ALLOCTABLE_Prod_Customer,$I$10,FALSE),0)","v":0},{"$f":"ROUND(F151*VLOOKUP(D151,ALLOCTABLE_Prod_Customer,$J$10,FALSE),0)","v":0},{"$f":"ROUND(F151*VLOOKUP(D151,ALLOCTABLE_Prod_Customer,$K$10,FALSE),0)","v":0},{"$f":"ROUND(F151*VLOOKUP(D151,ALLOCTABLE_Prod_Customer,$L$10,FALSE),0)","v":0},{"$f":"ROUND(F151*VLOOKUP(D151,ALLOCTABLE_Prod_Customer,$M$10,FALSE),0)","v":0},{"$f":"ROUND(F151*VLOOKUP(D151,ALLOCTABLE_Prod_Customer,$N$10,FALSE),0)","v":0},{"$f":"ROUND(F151*VLOOKUP(D151,ALLOCTABLE_Prod_Customer,$O$10,FALSE),0)","v":0},{"$f":"ROUND(F151*VLOOKUP(D151,ALLOCTABLE_Prod_Customer,$P$10,FALSE),0)","v":0},{"$f":"ROUND(F151*VLOOKUP(D151,ALLOCTABLE_Prod_Customer,$Q$10,FALSE),0)","v":0},{"$f":"SUM(G151:Q151)","v":0},{"$f":"F151-R151","v":0}]
[18,null,{"$f":"'FR-16(7)(v)-1 Functional'!C152","v":"POLES, TOWERS  & FIXTURES - PRIMARY - CUSTOMER"},{"$f":"'FR-16(7)(v)-1 Functional'!D152","v":"K405"},null,{"$f":"'FR-16(7)(v)-2 PROD Classified'!I152","v":0},{"$f":"F152-SUM(H152:Q152)","v":0},{"$f":"ROUND(F152*VLOOKUP(D152,ALLOCTABLE_Prod_Customer,$H$10,FALSE),0)","v":0},0,0,0,0,0,0,0,0,{"$f":"ROUND(F152*VLOOKUP(D152,ALLOCTABLE_Prod_Customer,$Q$10,FALSE),0)","v":0},{"$f":"SUM(G152:Q152)","v":0},{"$f":"F152-R152","v":0}]
[19,null,{"$f":"'FR-16(7)(v)-1 Functional'!C153","v":"POLES, TOWERS  & FIXTURES - SECONDARY - DEMAND"},{"$f":"'FR-16(7)(v)-1 Functional'!D153","v":"K206"},null,{"$f":"'FR-16(7)(v)-2 PROD Classified'!I153","v":0},0,0,0,0,0,0,0,0,0,0,0,0,0]
[20,null,{"$f":"'FR-16(7)(v)-1 Functional'!C154","v":"POLES, TOWERS  & FIXTURES - SECONDARY - CUSTOMER"},{"$f":"'FR-16(7)(v)-1 Functional'!D154","v":"K405"},null,{"$f":"'FR-16(7)(v)-2 PROD Classified'!I154","v":0},0,0,0,0,0,0,0,0,0,0,0,0,0]
[21,null,{"$f":"'FR-16(7)(v)-1 Functional'!C155","v":"CONDUCTORS - OVERHEAD / PRIMARY - DEMAND"},{"$f":"'FR-16(7)(v)-1 Functional'!D155","v":"K205"},null,{"$f":"'FR-16(7)(v)-2 PROD Classified'!I155","v":0},0,0,0,0,0,0,0,0,0,0,0,0,0]
[22,null,{"$f":"'FR-16(7)(v)-1 Functional'!C156","v":"CONDUCTORS - OVERHEAD / PRIMARY - CUSTOMER"},{"$f":"'FR-16(7)(v)-1 Functional'!D156","v":"K405"},null,{"$f":"'FR-16(7)(v)-2 PROD Classified'!I156","v":0},0,0,0,0,0,0,0,0,0,0,0,0,0]
[23,null,{"$f":"'FR-16(7)(v)-1 Functional'!C157","v":"CONDUCTORS - OVERHEAD / SECONDARY - DEMAND"},{"$f":"'FR-16(7)(v)-1 Functional'!D157","v":"K206"},null,{"$f":"'FR-16(7)(v)-2 PROD Classified'!I157","v":0},0,0,0,0,0,0,0,0,0,0,0,0,0]
[24,null,{"$f":"'FR-16(7)(v)-1 Functional'!C158","v":"CONDUCTORS - OVERHEAD / SECONDARY - CUSTOMER"},{"$f":"'FR-16(7)(v)-1 Functional'!D158","v":"K405"},null,{"$f":"'FR-16(7)(v)-2 PROD Classified'!I158","v":0},0,0,0,0,0,0,0,0,0,0,0,0,0]
[25,null,{"$f":"'FR-16(7)(v)-1 Functional'!C159","v":"CONDUCTORS - UNDERGROUND / PRIMARY - DEMAND"},{"$f":"'FR-16(7)(v)-1 Functional'!D159","v":"K205"},null,{"$f":"'FR-16(7)(v)-2 PROD Classified'!I159","v":0},0,0,0,0,0,0,0,0,0,0,0,0,0]
[26,null,{"$f":"'FR-16(7)(v)-1 Functional'!C160","v":"CONDUCTORS - UNDERGROUND / PRIMARY - CUSTOMER"},{"$f":"'FR-16(7)(v)-1 Functional'!D160","v":"K405"},null,{"$f":"'FR-16(7)(v)-2 PROD Classified'!I160","v":0},0,0,0,0,0,0,0,0,0,0,0,0,0]
[27,null,{"$f":"'FR-16(7)(v)-1 Functional'!C161","v":"CONDUCTORS - UNDERGROUND / SECONDARY - DEMAND"},{"$f":"'FR-16(7)(v)-1 Functional'!D161","v":"K206"},null,{"$f":"'FR-16(7)(v)-2 PROD Classified'!I161","v":0},0,0,0,0,0,0,0,0,0,0,{"$f":"ROUND(F161*VLOOKUP(D161,ALLOCTABLE_Prod_Customer,$Q$10,FALSE),0)","v":0},{"$f":"SUM(G161:Q161)","v":0},0]
[28,null,{"$f":"'FR-16(7)(v)-1 Functional'!C162","v":"CONDUCTORS - UNDERGROUND / SECONDARY - CUSTOMER"},{"$f":"'FR-16(7)(v)-1 Functional'!D162","v":"K405"},null,{"$f":"'FR-16(7)(v)-2 PROD Classified'!I162","v":0},0,0,0,0,0,0,0,0,0,0,0,0,0]
[29,null,{"$f":"'FR-16(7)(v)-1 Functional'!C163","v":"TRANSFORMERS DEMAND RELATED"},{"$f":"'FR-16(7)(v)-1 Functional'!D163","v":"K215"},null,{"$f":"'FR-16(7)(v)-2 PROD Classified'!I163","v":0},{"$f":"F163-SUM(H163:Q163)","v":0},{"$f":"ROUND(F163*VLOOKUP(D163,ALLOCTABLE_Prod_Customer,$H$10,FALSE),0)","v":0},{"$f":"ROUND(F163*VLOOKUP($D$163,ALLOCTABLE_Prod_Customer,$I$10,FALSE),0)","v":0},{"$f":"ROUND(F163*VLOOKUP($D$163,ALLOCTABLE_Prod_Customer,$J$10,FALSE),0)","v":0},{"$f":"ROUND(F163*VLOOKUP($D$163,ALLOCTABLE_Prod_Customer,$K$10,FALSE),0)","v":0},{"$f":"ROUND(F163*VLOOKUP($D$163,ALLOCTABLE_Prod_Customer,$L$10,FALSE),0)","v":0},{"$f":"ROUND(F163*VLOOKUP($D$163,ALLOCTABLE_Prod_Customer,$M$10,FALSE),0)","v":0},{"$f":"ROUND(F163*VLOOKUP($D$163,ALLOCTABLE_Prod_Customer,$N$10,FALSE),0)","v":0},{"$f":"ROUND(F163*VLOOKUP($D$163,ALLOCTABLE_Prod_Customer,$O$10,FALSE),0)","v":0},0,0,0,{"$f":"F163-R163","v":0}]
[30,null,{"$f":"'FR-16(7)(v)-1 Functional'!C164","v":"TRANSFORMERS CUSTOMER RELATED"},{"$f":"'FR-16(7)(v)-1 Functional'!D164","v":"K405"},null,{"$f":"'FR-16(7)(v)-2 PROD Classified'!I164","v":0},0,0,{"$f":"ROUND(F164*VLOOKUP($D$163,ALLOCTABLE_Prod_Customer,$I$10,FALSE),0)","v":0},{"$f":"ROUND(F164*VLOOKUP($D$163,ALLOCTABLE_Prod_Customer,$J$10,FALSE),0)","v":0},{"$f":"ROUND(F164*VLOOKUP($D$163,ALLOCTABLE_Prod_Customer,$K$10,FALSE),0)","v":0},{"$f":"ROUND(F164*VLOOKUP($D$163,ALLOCTABLE_Prod_Customer,$L$10,FALSE),0)","v":0},{"$f":"ROUND(F164*VLOOKUP($D$163,ALLOCTABLE_Prod_Customer,$M$10,FALSE),0)","v":0},{"$f":"ROUND(F164*VLOOKUP($D$163,ALLOCTABLE_Prod_Customer,$N$10,FALSE),0)","v":0},{"$f":"ROUND(F164*VLOOKUP($D$163,ALLOCTABLE_Prod_Customer,$O$10,FALSE),0)","v":0},0,0,0,0]
[31,null,{"$f":"'FR-16(7)(v)-1 Functional'!C165","v":"SERVICES"},{"$f":"'FR-16(7)(v)-1 Functional'!D165","v":"K217"},null,{"$f":"'FR-16(7)(v)-2 PROD Classified'!I165","v":0},0,0,{"$f":"ROUND(F165*VLOOKUP($D$165,ALLOCTABLE_Prod_Customer,$I$10,FALSE),0)","v":0},{"$f":"ROUND(F165*VLOOKUP($D$165,ALLOCTABLE_Prod_Customer,$J$10,FALSE),0)","v":0},{"$f":"ROUND(F165*VLOOKUP($D$165,ALLOCTABLE_Prod_Customer,$K$10,FALSE),0)","v":0},{"$f":"ROUND(F165*VLOOKUP($D$165,ALLOCTABLE_Prod_Customer,$L$10,FALSE),0)","v":0},{"$f":"ROUND(F165*VLOOKUP($D$165,ALLOCTABLE_Prod_Customer,$M$10,FALSE),0)","v":0},{"$f":"ROUND(F165*VLOOKUP($D$165,ALLOCTABLE_Prod_Customer,$N$10,FALSE),0)","v":0},{"$f":"ROUND(F165*VLOOKUP($D$165,ALLOCTABLE_Prod_Customer,$O$10,FALSE),0)","v":0},0,0,0,0]
[32,null,{"$f":"'FR-16(7)(v)-1 Functional'!C166","v":"METERS"},{"$f":"'FR-16(7)(v)-1 Functional'!D166","v":"K407"},null,{"$f":"'FR-16(7)(v)-2 PROD Classified'!I166","v":0},0,0,{"$f":"ROUND(F166*VLOOKUP($D$166,ALLOCTABLE_Prod_Customer,$I$10,FALSE),0)","v":0},{"$f":"ROUND(F166*VLOOKUP($D$166,ALLOCTABLE_Prod_Customer,$J$10,FALSE),0)","v":0},{"$f":"ROUND(F166*VLOOKUP($D$166,ALLOCTABLE_Prod_Customer,$K$10,FALSE),0)","v":0},{"$f":"ROUND(F166*VLOOKUP($D$166,ALLOCTABLE_Prod_Customer,$L$10,FALSE),0)","v":0},{"$f":"ROUND(F166*VLOOKUP($D$166,ALLOCTABLE_Prod_Customer,$M$10,FALSE),0)","v":0},{"$f":"ROUND(F166*VLOOKUP($D$166,ALLOCTABLE_Prod_Customer,$N$10,FALSE),0)","v":0},{"$f":"ROUND(F166*VLOOKUP($D$166,ALLOCTABLE_Prod_Customer,$O$10,FALSE),0)","v":0},0,0,0,0]
[33,null,{"$f":"'FR-16(7)(v)-1 Functional'!C167","v":"STREET LIGHTS"},{"$f":"'FR-16(7)(v)-1 Functional'!D167","v":"K401"},null,{"$f":"'FR-16(7)(v)-2 PROD Classified'!I167","v":0},0,0,{"$f":"ROUND(F167*VLOOKUP($D$167,ALLOCTABLE_Prod_Customer,$I$10,FALSE),0)","v":0},{"$f":"ROUND(F167*VLOOKUP($D$167,ALLOCTABLE_Prod_Customer,$J$10,FALSE),0)","v":0},{"$f":"ROUND(F167*VLOOKUP($D$167,ALLOCTABLE_Prod_Customer,$K$10,FALSE),0)","v":0},{"$f":"ROUND(F167*VLOOKUP($D$167,ALLOCTABLE_Prod_Customer,$L$10,FALSE),0)","v":0},{"$f":"ROUND(F167*VLOOKUP($D$167,ALLOCTABLE_Prod_Customer,$M$10,FALSE),0)","v":0},{"$f":"ROUND(F167*VLOOKUP($D$167,ALLOCTABLE_Prod_Customer,$N$10,FALSE),0)","v":0},{"$f":"ROUND(F167*VLOOKUP($D$167,ALLOCTABLE_Prod_Customer,$O$10,FALSE),0)","v":0},0,0,0,0]
[34,null,{"$f":"'FR-16(7)(v)-1 Functional'!C168","v":"ADJUSTMENT  "},{"$f":"'FR-16(7)(v)-1 Functional'!D168","v":"K209"},null,{"$f":"'FR-16(7)(v)-2 PROD Classified'!I168","v":0},0,0,{"$f":"ROUND(F168*VLOOKUP($D$168,ALLOCTABLE_Prod_Customer,$I$10,FALSE),0)","v":0},{"$f":"ROUND(F168*VLOOKUP($D$168,ALLOCTABLE_Prod_Customer,$J$10,FALSE),0)","v":0},{"$f":"ROUND(F168*VLOOKUP($D$168,ALLOCTABLE_Prod_Customer,$K$10,FALSE),0)","v":0},{"$f":"ROUND(F168*VLOOKUP($D$168,ALLOCTABLE_Prod_Customer,$L$10,FALSE),0)","v":0},{"$f":"ROUND(F168*VLOOKUP($D$168,ALLOCTABLE_Prod_Customer,$M$10,FALSE),0)","v":0},{"$f":"ROUND(F168*VLOOKUP($D$168,ALLOCTABLE_Prod_Customer,$N$10,FALSE),0)","v":0},{"$f":"ROUND(F168*VLOOKUP($D$168,ALLOCTABLE_Prod_Customer,$O$10,FALSE),0)","v":0},0,0,0,0]
[35,null,{"$f":"'FR-16(7)(v)-1 Functional'!C169","v":"CONSTRUCTION NOT CLASSIFIED"},{"$f":"'FR-16(7)(v)-1 Functional'!D169","v":"K209"},null,{"$f":"'FR-16(7)(v)-2 PROD Classified'!I169","v":0},0,0,{"$f":"ROUND(F169*VLOOKUP($D$169,ALLOCTABLE_Prod_Customer,$I$10,FALSE),0)","v":0},{"$f":"ROUND(F169*VLOOKUP($D$169,ALLOCTABLE_Prod_Customer,$J$10,FALSE),0)","v":0},{"$f":"ROUND(F169*VLOOKUP($D$169,ALLOCTABLE_Prod_Customer,$K$10,FALSE),0)","v":0},{"$f":"ROUND(F169*VLOOKUP($D$169,ALLOCTABLE_Prod_Customer,$L$10,FALSE),0)","v":0},{"$f":"ROUND(F169*VLOOKUP($D$169,ALLOCTABLE_Prod_Customer,$M$10,FALSE),0)","v":0},{"$f":"ROUND(F169*VLOOKUP($D$169,ALLOCTABLE_Prod_Customer,$N$10,FALSE),0)","v":0},{"$f":"ROUND(F169*VLOOKUP($D$169,ALLOCTABLE_Prod_Customer,$O$10,FALSE),0)","v":0},0,0,0,0]
[36,null,{"$f":"'FR-16(7)(v)-1 Functional'!C170","v":"RWIP"},{"$f":"'FR-16(7)(v)-1 Functional'!D170","v":"K215"},null,{"$f":"'FR-16(7)(v)-2 PROD Classified'!I170","v":0},{"$f":"F170-SUM(H170:Q170)","v":0},{"$f":"ROUND($F$170*VLOOKUP($D$170,ALLOCTABLE_Prod_Customer,H$10,FALSE),0)","v":0},0,0,0,0,0,0,0,0,0,{"$f":"SUM(G170:Q170)","v":0},{"$f":"F170-R170","v":0}]
[37,null,{"$f":"'FR-16(7)(v)-1 Functional'!C171","v":"  TOTAL DIST DEPREC RESERVE"},null,null,{"$f":"SUM(F149:F170)","v":0},{"$f":"SUM(G149:G170)","v":0},0,0,0,0,0,0,0,0,0,0,0,0]
[38]
[39,null,"TOTAL TRANS & DIST DEPREC RESERVE",null,null,{"$f":"F171+F145","v":0},{"$f":"G171+G145","v":0},{"$f":"H171+$H$114","v":0},{"$f":"I171+$I$114","v":0},{"$f":"J171+$J$114","v":0},{"$f":"K171+$K$114","v":0},{"$f":"L171+$L$114","v":0},{"$f":"M171+$M$114","v":0},{"$f":"N171+$N$114","v":0},{"$f":"O171+$O$114","v":0},{"$f":"P171+$P$114","v":0},{"$f":"Q171+$Q$114","v":0},{"$f":"SUM(G173:Q173)","v":0},{"$f":"F173-R173","v":0}]
[40,null,"TOTAL GROSS PTD PLANT DEPREC RESERVE",null,null,{"$f":"F147+F171","v":0},{"$f":"G147+G171","v":0},{"$f":"$H$117+H171","v":0},{"$f":"$I$117+I171","v":0},{"$f":"$J$117+J171","v":0},{"$f":"$K$117+K171","v":0},{"$f":"$L$117+L171","v":0},{"$f":"$M$117+M171","v":0},{"$f":"$N$117+N171","v":0},{"$f":"$O$117+O171","v":0},{"$f":"$P$117+P171","v":0},{"$f":"$Q$117+Q171","v":0},{"$f":"SUM(G174:Q174)","v":0},{"$f":"F174-R174","v":0}]
[41]
[42,"GENERAL & INTANGIBLE PLANT"]
[43,null,{"$f":"'FR-16(7)(v)-1 Functional'!C177","v":"PRODUCTION - DEMAND"},{"$f":"'FR-16(7)(v)-1 Functional'!D177","v":"K201"},null,{"$f":"'FR-16(7)(v)-2 PROD Classified'!I177","v":0},{"$f":"F177-SUM(H177:Q177)","v":0},{"$f":"ROUND(F177*VLOOKUP(D177,ALLOCTABLE_Prod_Customer,$H$10,FALSE),0)","v":0},{"$f":"ROUND(F177*VLOOKUP($D$167,ALLOCTABLE_Prod_Customer,$I$10,FALSE),0)","v":0},{"$f":"ROUND(F177*VLOOKUP($D$167,ALLOCTABLE_Prod_Customer,$J$10,FALSE),0)","v":0},{"$f":"ROUND(F177*VLOOKUP($D$167,ALLOCTABLE_Prod_Customer,$K$10,FALSE),0)","v":0},{"$f":"ROUND(F177*VLOOKUP($D$167,ALLOCTABLE_Prod_Customer,$L$10,FALSE),0)","v":0},{"$f":"ROUND(F177*VLOOKUP($D$167,ALLOCTABLE_Prod_Customer,$M$10,FALSE),0)","v":0},{"$f":"ROUND(F177*VLOOKUP($D$167,ALLOCTABLE_Prod_Customer,$N$10,FALSE),0)","v":0},{"$f":"ROUND(F177*VLOOKUP($D$167,ALLOCTABLE_Prod_Customer,$O$10,FALSE),0)","v":0},{"$f":"ROUND(F177*VLOOKUP($D$167,ALLOCTABLE_Prod_Customer,$P$10,FALSE),0)","v":0},{"$f":"ROUND(F177*VLOOKUP(D177,ALLOCTABLE_Prod_Customer,$Q$10,FALSE),0)","v":0},{"$f":"SUM(G177:Q177)","v":0},{"$f":"F177-R177","v":0}]
[44,null,{"$f":"'FR-16(7)(v)-1 Functional'!C178","v":"PRODUCTION - ENERGY"},{"$f":"'FR-16(7)(v)-1 Functional'!D178","v":"K301"},null,{"$f":"'FR-16(7)(v)-2 PROD Classified'!I178","v":0},0,0,0,0,0,0,0,0,0,0,0,0,0]
[45,null,{"$f":"'FR-16(7)(v)-1 Functional'!C179","v":"TRANSMISSION"},{"$f":"'FR-16(7)(v)-1 Functional'!D179","v":"K202"},null,{"$f":"'FR-16(7)(v)-2 PROD Classified'!I179","v":0},0,0,0,0,0,0,0,0,0,0,0,0,0]
[46,null,{"$f":"'FR-16(7)(v)-1 Functional'!C180","v":"DISTRIBUTION - DEMAND"},{"$f":"'FR-16(7)(v)-1 Functional'!D180","v":"K201"},null,{"$f":"'FR-16(7)(v)-2 PROD Classified'!I180","v":0},0,0,0,0,0,0,0,0,0,0,0,0,0]
[47,null,{"$f":"'FR-16(7)(v)-1 Functional'!C181","v":"DISTRIBUTION - CUSTOMER"},{"$f":"'FR-16(7)(v)-1 Functional'!D181","v":"K405"},null,{"$f":"'FR-16(7)(v)-2 PROD Classified'!I181","v":0},0,0,0,0,0,0,0,0,0,0,0,0,0]
[48,null,{"$f":"'FR-16(7)(v)-1 Functional'!C182","v":"CUSTOMER ACCOUNTING"},{"$f":"'FR-16(7)(v)-1 Functional'!D182","v":"A308"},null,{"$f":"'FR-16(7)(v)-2 PROD Classified'!I182","v":0},0,0,0,0,0,0,0,0,0,0,0,0,0]
[49,null,{"$f":"'FR-16(7)(v)-1 Functional'!C183","v":"CUSTOMER SERVICE & INFORMATION"},{"$f":"'FR-16(7)(v)-1 Functional'!D183","v":"A310"},null,{"$f":"'FR-16(7)(v)-2 PROD Classified'!I183","v":0},0,0,0,0,0,0,0,0,0,0,0,0,0]
[50,null,{"$f":"'FR-16(7)(v)-1 Functional'!C184","v":"SALES"},{"$f":"'FR-16(7)(v)-1 Functional'!D184","v":"A312"},null,{"$f":"'FR-16(7)(v)-2 PROD Classified'!I184","v":0},0,0,0,0,0,0,0,0,0,0,0,0,0]
[51,null,{"$f":"'FR-16(7)(v)-1 Functional'!C185","v":"ADJUSTMENT"},{"$f":"'FR-16(7)(v)-1 Functional'!D185","v":"A315"},null,{"$f":"'FR-16(7)(v)-2 PROD Classified'!I185","v":0},0,0,0,0,0,0,0,0,0,0,0,0,0]
[52,null,"  GENERAL & INTANG PLANT",null,null,{"$f":"SUM(F176:F185)","v":0},{"$f":"SUM(G176:G185)","v":0},{"$f":"SUM(H176:H185)","v":0},{"$f":"SUM(I176:I185)","v":0},{"$f":"SUM(J176:J185)","v":0},0,0,0,0,0,0,{"$f":"SUM(Q176:Q185)","v":0},{"$f":"SUM(R176:R185)","v":0},{"$f":"SUM(S176:S185)","v":0}]
[53]
[54,"COMMON & OTHER PLANT"]
[55,null,{"$f":"'FR-16(7)(v)-1 Functional'!C189","v":"PRODUCTION - DEMAND"},{"$f":"'FR-16(7)(v)-1 Functional'!D189","v":"K201"},null,{"$f":"'FR-16(7)(v)-2 PROD Classified'!I189","v":0},{"$f":"F189-SUM(H189:Q189)","v":0},{"$f":"ROUND(F189*VLOOKUP(D189,ALLOCTABLE_Prod_Customer,$H$10,FALSE),0)","v":0},{"$f":"ROUND(F189*VLOOKUP($D$167,ALLOCTABLE_Prod_Customer,$I$10,FALSE),0)","v":0},{"$f":"ROUND(F189*VLOOKUP($D$167,ALLOCTABLE_Prod_Customer,$J$10,FALSE),0)","v":0},{"$f":"ROUND(F189*VLOOKUP($D$167,ALLOCTABLE_Prod_Customer,$K$10,FALSE),0)","v":0},{"$f":"ROUND(F189*VLOOKUP($D$167,ALLOCTABLE_Prod_Customer,$L$10,FALSE),0)","v":0},{"$f":"ROUND(F189*VLOOKUP($D$167,ALLOCTABLE_Prod_Customer,$M$10,FALSE),0)","v":0},{"$f":"ROUND(F189*VLOOKUP($D$167,ALLOCTABLE_Prod_Customer,$N$10,FALSE),0)","v":0},{"$f":"ROUND(F189*VLOOKUP($D$167,ALLOCTABLE_Prod_Customer,$O$10,FALSE),0)","v":0},{"$f":"ROUND(F189*VLOOKUP($D$167,ALLOCTABLE_Prod_Customer,$P$10,FALSE),0)","v":0},{"$f":"ROUND(F189*VLOOKUP(D189,ALLOCTABLE_Prod_Customer,$Q$10,FALSE),0)","v":0},{"$f":"SUM(G189:Q189)","v":0},{"$f":"F189-R189","v":0}]
[56,null,{"$f":"'FR-16(7)(v)-1 Functional'!C190","v":"PRODUCTION - ENERGY"},{"$f":"'FR-16(7)(v)-1 Functional'!D190","v":"K301"},null,{"$f":"'FR-16(7)(v)-2 PROD Classified'!I190","v":0},0,0,0,0,0,0,0,0,0,0,0,0,0]
[57,null,{"$f":"'FR-16(7)(v)-1 Functional'!C191","v":"TRANSMISSION"},{"$f":"'FR-16(7)(v)-1 Functional'!D191","v":"K202"},null,{"$f":"'FR-16(7)(v)-2 PROD Classified'!I191","v":0},0,0,0,0,0,0,0,0,0,0,0,0,0]
[58,null,{"$f":"'FR-16(7)(v)-1 Functional'!C192","v":"DISTRIBUTION - DEMAND"},{"$f":"'FR-16(7)(v)-1 Functional'!D192","v":"K201"},null,{"$f":"'FR-16(7)(v)-2 PROD Classified'!I192","v":0},0,0,0,0,0,0,0,0,0,0,0,0,0]
[59,null,{"$f":"'FR-16(7)(v)-1 Functional'!C193","v":"DISTRIBUTION - CUSTOMER"},{"$f":"'FR-16(7)(v)-1 Functional'!D193","v":"K405"},null,{"$f":"'FR-16(7)(v)-2 PROD Classified'!I193","v":0},0,0,0,0,0,0,0,0,0,0,0,0,0]
[60,null,{"$f":"'FR-16(7)(v)-1 Functional'!C194","v":"CUSTOMER ACCOUNTING"},{"$f":"'FR-16(7)(v)-1 Functional'!D194","v":"A308"},null,{"$f":"'FR-16(7)(v)-2 PROD Classified'!I194","v":0},0,0,0,0,0,0,0,0,0,0,0,0,0]
[61,null,{"$f":"'FR-16(7)(v)-1 Functional'!C195","v":"CUSTOMER SERVICE & INFORMATION"},{"$f":"'FR-16(7)(v)-1 Functional'!D195","v":"A310"},null,{"$f":"'FR-16(7)(v)-2 PROD Classified'!I195","v":0},0,0,0,0,0,0,0,0,0,0,0,0,0]
[62,null,{"$f":"'FR-16(7)(v)-1 Functional'!C196","v":"SALES"},{"$f":"'FR-16(7)(v)-1 Functional'!D196","v":"A312"},null,{"$f":"'FR-16(7)(v)-2 PROD Classified'!I196","v":0},0,0,0,0,0,0,0,0,0,0,0,0,0]
[63,null,{"$f":"'FR-16(7)(v)-1 Functional'!C197","v":"ADJUSTMENT"},{"$f":"'FR-16(7)(v)-1 Functional'!D197","v":"A315"},null,{"$f":"'FR-16(7)(v)-2 PROD Classified'!I197","v":0},0,0,0,0,0,0,0,0,0,0,0,0,0]
[64,null,{"$f":"'FR-16(7)(v)-1 Functional'!C198","v":"  COMMON & OTHER PLANT IN SERVICE"},null,null,{"$f":"SUM(F189:F197)","v":0},{"$f":"SUM(G188:G197)","v":0},0,0,{"$f":"SUM(J188:J197)","v":0},0,0,0,0,0,0,0,0,0]
[65]
[66,"TOTAL DEPRECIATION RESERVE",null,null,null,{"$f":"F198+F186+F171+F145+F139","v":0},{"$f":"G198+G186+G171+G145+G139","v":0},{"$f":"H198+H186+H171+$H$114+H139","v":0},{"$f":"I198+I186+I171+$I$114+I139","v":0},{"$f":"J198+J186+J171+$J$114+J139","v":0},{"$f":"K198+K186+K171+$K$114+K139","v":0},{"$f":"L198+L186+L171+$L$114+L139","v":0},{"$f":"M198+M186+M171+$M$114+M139","v":0},{"$f":"N198+N186+N171+$N$114+N139","v":0},{"$f":"O198+O186+O171+$O$114+O139","v":0},{"$f":"P198+P186+P171+$P$114+P139","v":0},{"$f":"Q198+Q186+Q171+$Q$114+Q139","v":0},{"$f":"R198+R186+R171+R145+R139","v":0},{"$f":"S198+S186+S171+S145+S139","v":0}]
[]
[{"$f":"co_name","v":"DUKE ENERGY KENTUCKY, INC."},null,null,null,null,null,null,null,null,null,null,null,null,null,null,null,null,{"$f":"R1","v":"FR-16(7)(v)-5"}]
[{"$f":"$A$2","v":"PRODUCTION CUSTOMER ALLOCATED - ELECTRIC COST OF SERVICE"},null,null,null,null,null,null,null,null,null,null,null,null,null,null,null,null,{"$f":"R2","v":"WITNESS RESPONSIBLE:"}]
[{"$f":"case_name","v":"CASE NO: 2019-00271"},null,null,null,null,null,null,null,null,null,null,null,null,null,null,null,null,{"$f":"Witness","v":"JAMES E. ZIOLKOWSKI"}]
[{"$f":"data_filing","v":"DATA: 12 MONTHS ACTUAL  & 0 MONTHS ESTIMATED"},null,null,null,null,null,null,null,null,null,null,null,null,null,null,null,null,{"$f":"\"PAGE \"&Pages-14&\" OF \"&Pages","v":"PAGE 4 OF 18"}]
[{"$f":"type","v":"TYPE OF FILING: \"X\" ORIGINAL   UPDATED    REVISED  "}]
[]
[null,null,null,null,null,{"$f":"F$7","v":"TOTAL"},null,{"$f":"H$7","v":"DS"},{"$f":"I$7","v":"GSFL"},{"$f":"J$7","v":"EH"},{"$f":"K$7","v":"SP"},"DT SEC","DT PRI","DP","TT",null,"OTHER"]
["LINE",null,null,null,null,{"$f":"F$8","v":"PRODUCTION"},{"$f":"G$8","v":"RS"},{"$f":"H$8","v":"SECONDARY"},{"$f":"I$8","v":"SECONDARY"},{"$f":"J$8","v":"SECONDARY"},{"$f":"K$8","v":"SECONDARY"},"SECONDARY","PRIMARY","PRIMARY","TRANSMISSION","LT","WATER",{"$f":"R8","v":"TOTAL"},"ALL"]
["NO.",{"$f":"\"NET ELECTRIC PLANT\"","v":"NET ELECTRIC PLANT"},null,"ALLO",null,{"$f":"F$9","v":"CUSTOMER"},{"$f":"G$9","v":"RESIDENTIAL"},{"$f":"H$9","v":"DISTRIBUTION"},{"$f":"I$9","v":"DISTRIBUTION"},{"$f":"J$9","v":"DISTRIBUTION"},{"$f":"K$9","v":"DISTRIBUTION"},"DISTRIBUTION","DISTRIBUTION","DISTRIBUTION","TIME OF DAY","LIGHTING","PUMPING",{"$f":"R9","v":"AT ISSUE"},"OTHER"]
[null,null,"Schedule 4",null,null,null,{"$f":"G$10","v":3},{"$f":"H$10","v":4},{"$f":"I$10","v":5},{"$f":"J$10","v":6},{"$f":"K$10","v":7},8,9,10,11,12,13,null," "]
[1,"PRODUCTION PLANT"]
[2,null,"PRODUCTION STEAM",null,null,{"$f":"F59-F136","v":0},{"$f":"G59-G136","v":0},{"$f":"H59-H136","v":0},{"$f":"I59-I136","v":0},{"$f":"J59-J136","v":0},0,0,0,0,0,0,{"$f":"Q59-Q136","v":0},{"$f":"R59-R136","v":0},{"$f":"F213-R213","v":0}]
[3,null,"PRODUCTION OTHER",null,null,{"$f":"F60-F137","v":0},0,0,0,{"$f":"J60-J137","v":0},0,0,0,0,0,0,0,0,{"$f":"F214-R214","v":0}]
[4,null,"ADJUSTMENT",null,null,{"$f":"F61-F138","v":0},0,0,0,{"$f":"J61-J138","v":0},0,0,0,0,0,0,0,0,{"$f":"F215-R215","v":0}]
[5,null,{"$f":"'FR-16(7)(v)-1 Functional'!C216","v":"  NET PRODUCTION PLANT"},null,null,{"$f":"SUM(F213:F215)","v":0},0,0,0,{"$f":"SUM(J213:J215)","v":0},0,0,0,0,0,0,0,0,0]
[6]
[7,"TRANSMISSION PLANT"]
[8,null,"MAIN STEP-UP TRANSFORMERS",null,null,{"$f":"F65-F142","v":0},0,0,0,{"$f":"J65-J142","v":0},0,0,0,0,0,0,0,0,{"$f":"F219-R219","v":0}]
[9,null,"OTHER TRANSMISSION",null,null,{"$f":"F66-F143","v":0},0,0,0,{"$f":"J66-J143","v":0},0,0,0,0,0,0,{"$f":"Q66-Q143","v":0},{"$f":"R66-R143","v":0},{"$f":"F220-R220","v":0}]
[10,null,"ADJUSTMENT",null,null,0,0,0,0,{"$f":"J67-J144","v":0},0,0,0,0,0,0,{"$f":"Q67-Q144","v":0},{"$f":"R67-R144","v":0},{"$f":"F221-R221","v":0}]
[11,null,{"$f":"'FR-16(7)(v)-1 Functional'!C222","v":"    NET TRANSMISSION PLANT"},null,null,{"$f":"SUM(F218:F221)","v":0},0,0,0,{"$f":"SUM(J218:J221)","v":0},0,0,0,0,0,0,0,0,0]
[12]
[13,"NET PROD & TRANS PLANT",null,null,null,{"$f":"F70-F147","v":0},{"$f":"G70-G147","v":0},{"$f":"H70-H147","v":0},0,0,0,0,0,0,0,0,0,0,{"$f":"F224-R224","v":0}]
[14]
[15,"DISTRIBUTION PLANT"]
[16,null,{"$f":"'FR-16(7)(v)-1 Functional'!C227","v":"SUBSTATIONS"},null,null,{"$f":"F73-F150","v":0},{"$f":"G73-G150","v":0},{"$f":"H73-H150","v":0},0,0,0,0,0,0,0,0,0,{"$f":"R73-R150","v":0},{"$f":"F227-R227","v":0}]
[17,null,{"$f":"'FR-16(7)(v)-1 Functional'!C228","v":"POLES, TOWERS  & FIXTURES - PRIMARY - DEMAND"},null,null,{"$f":"F74-F151","v":0},{"$f":"G74-G151","v":0},{"$f":"H74-H151","v":0},0,0,0,0,0,0,0,0,0,{"$f":"R74-R151","v":0},{"$f":"F228-R228","v":0}]
[18,null,{"$f":"'FR-16(7)(v)-1 Functional'!C229","v":"POLES, TOWERS  & FIXTURES - PRIMARY - CUSTOMER"},null,null,{"$f":"F75-F152","v":0},{"$f":"G75-G152","v":0},0,0,0,0,0,0,0,0,0,0,0,{"$f":"F229-R229","v":0}]
[19,null,{"$f":"'FR-16(7)(v)-1 Functional'!C230","v":"POLES, TOWERS  & FIXTURES - SECONDARY - DEMAND"},null,null,0,{"$f":"G76-G153","v":0},0,0,0,0,0,0,0,0,0,0,0,0]
[20,null,{"$f":"'FR-16(7)(v)-1 Functional'!C231","v":"POLES, TOWERS  & FIXTURES - SECONDARY - CUSTOMER"},null,null,0,{"$f":"G77-G154","v":0},0,0,0,0,0,0,0,0,0,0,0,0]
[21,null,{"$f":"'FR-16(7)(v)-1 Functional'!C232","v":"CONDUCTORS - OVERHEAD / PRIMARY - DEMAND"},null,null,0,{"$f":"G78-G155","v":0},0,0,0,0,0,0,0,0,0,0,0,0]
[22,null,{"$f":"'FR-16(7)(v)-1 Functional'!C233","v":"CONDUCTORS - OVERHEAD / PRIMARY - CUSTOMER"},null,null,0,{"$f":"G79-G156","v":0},0,0,0,0,0,0,0,0,0,0,0,0]
[23,null,{"$f":"'FR-16(7)(v)-1 Functional'!C234","v":"CONDUCTORS - OVERHEAD / SECONDARY - DEMAND"},null,null,0,{"$f":"G80-G157","v":0},0,0,0,0,0,0,0,0,0,0,0,0]
[24,null,{"$f":"'FR-16(7)(v)-1 Functional'!C235","v":"CONDUCTORS - OVERHEAD / SECONDARY - CUSTOMER"},null,null,0,{"$f":"G81-G158","v":0},0,0,0,0,0,0,0,0,0,0,0,0]
[25,null,{"$f":"'FR-16(7)(v)-1 Functional'!C236","v":"CONDUCTORS - UNDERGROUND / PRIMARY - DEMAND"},null,null,0,{"$f":"G82-G159","v":0},0,0,0,0,0,0,0,0,0,0,0,0]
[26,null,{"$f":"'FR-16(7)(v)-1 Functional'!C237","v":"CONDUCTORS - UNDERGROUND / PRIMARY - CUSTOMER"},null,null,0,{"$f":"G83-G160","v":0},0,0,0,0,0,0,0,0,0,0,0,0]
[27,null,{"$f":"'FR-16(7)(v)-1 Functional'!C238","v":"CONDUCTORS - UNDERGROUND / SECONDARY - DEMAND"},null,null,0,{"$f":"G84-G161","v":0},0,0,0,0,0,0,0,0,0,0,0,0]
[28,null,{"$f":"'FR-16(7)(v)-1 Functional'!C239","v":"CONDUCTORS - UNDERGROUND / SECONDARY - CUSTOMER"},null,null,0,{"$f":"G85-G162","v":0},0,0,0,0,0,0,0,0,0,0,0,0]
[29,null,"TRANSFORMERS DEMAND RELATED",null,null,0,{"$f":"G86-G163","v":0},0,0,0,0,0,0,0,0,0,0,0,{"$f":"F240-R240","v":0}]
[30,null,"TRANSFORMERS CUSTOMER RELATED",null,null,0,{"$f":"G87-G164","v":0},0,0,0,0,0,0,0,0,0,0,0,0]
[31,null,{"$f":"'FR-16(7)(v)-1 Functional'!C242","v":"SERVICES"},null,null,0,{"$f":"G88-G165","v":0},{"$f":"H88-H165","v":0},0,0,0,0,0,0,0,0,0,{"$f":"R88-R165","v":0},0]
[32,null,{"$f":"'FR-16(7)(v)-1 Functional'!C243","v":"METERS"},null,null,0,0,{"$f":"H89-H166","v":0},0,0,0,0,0,0,0,0,0,{"$f":"R89-R166","v":0},0]
[33,null,{"$f":"'FR-16(7)(v)-1 Functional'!C244","v":"STREET LIGHTS"},null,null,0,0,{"$f":"H90-H167","v":0},0,0,0,0,0,0,0,0,0,{"$f":"R90-R167","v":0},0]
[34,null,{"$f":"'FR-16(7)(v)-1 Functional'!C245","v":"ADJUSTMENT  "},null,null,0,0,{"$f":"H91-H168","v":0},0,0,0,0,0,0,0,0,0,{"$f":"R91-R168","v":0},0]
[35,null,{"$f":"'FR-16(7)(v)-1 Functional'!C246","v":"CONSTRUCTION NOT CLASSIFIED"},null,null,0,0,{"$f":"H92-H169","v":0},0,0,0,0,0,0,0,0,0,{"$f":"R92-R169","v":0},0]
[36,null,{"$f":"'FR-16(7)(v)-1 Functional'!C247","v":"RWIP"},null,null,0,0,0,0,0,0,0,0,0,0,0,0,0,0]
[37,null,{"$f":"'FR-16(7)(v)-1 Functional'!C248","v":"  NET DISTRIBUTION PLANT"},null,null,{"$f":"SUM(F226:F247)","v":0},{"$f":"SUM(G226:G247)","v":0},0,0,0,0,0,0,0,0,0,0,0,0]
[38]
[39,"NET PTD PLANT",null,null,null,{"$f":"F96-F173","v":0},0,0,0,{"$f":"J96-J173","v":0},0,0,0,0,0,0,0,0,{"$f":"S248+S222+S216","v":0}]
[40,"NET TRANS & DIST PLANT",null,null,null,{"$f":"F97-F174","v":0},0,0,0,{"$f":"J97-J174","v":0},0,0,0,0,0,0,0,0,{"$f":"S248+S222","v":0}]
[41]
[42,"GENERAL & INTANGIBLE PLANT"]
[43,null,{"$f":"'FR-16(7)(v)-1 Functional'!C254","v":"PRODUCTION - DEMAND"},null,null,{"$f":"F100-F177","v":0},0,0,0,{"$f":"J100-J177","v":0},0,0,0,0,0,0,0,0,{"$f":"F254-R254","v":0}]
[44,null,{"$f":"'FR-16(7)(v)-1 Functional'!C255","v":"PRODUCTION - ENERGY"},null,null,{"$f":"F101-F178","v":0},0,0,0,{"$f":"J101-J178","v":0},0,0,0,0,0,0,0,0,{"$f":"F255-R255","v":0}]
[45,null,{"$f":"'FR-16(7)(v)-1 Functional'!C256","v":"TRANSMISSION"},null,null,{"$f":"F102-F179","v":0},0,0,0,{"$f":"J102-J179","v":0},0,0,0,0,0,0,0,0,0]
[46,null,{"$f":"'FR-16(7)(v)-1 Functional'!C257","v":"DISTRIBUTION - DEMAND"},null,null,{"$f":"F103-F180","v":0},0,0,0,0,0,0,0,0,0,0,0,0,0]
[47,null,{"$f":"'FR-16(7)(v)-1 Functional'!C258","v":"DISTRIBUTION - CUSTOMER"},null,null,{"$f":"F104-F181","v":0},0,0,0,0,0,0,0,0,0,0,0,0,{"$f":"F258-R258","v":0}]
[48,null,{"$f":"'FR-16(7)(v)-1 Functional'!C259","v":"CUSTOMER ACCOUNTING"},null,null,{"$f":"F105-F182","v":0},0,0,0,{"$f":"J105-J182","v":0},0,0,0,0,0,0,0,0,0]
[49,null,{"$f":"'FR-16(7)(v)-1 Functional'!C260","v":"CUSTOMER SERVICE & INFORMATION"},null,null,{"$f":"F106-F183","v":0},0,0,0,{"$f":"J106-J183","v":0},0,0,0,0,0,0,{"$f":"Q106-Q183","v":0},{"$f":"R106-R183","v":0},0]
[50,null,{"$f":"'FR-16(7)(v)-1 Functional'!C261","v":"SALES"},null,null,0,0,0,0,{"$f":"J107-J184","v":0},0,0,0,0,0,0,{"$f":"Q107-Q184","v":0},{"$f":"R107-R184","v":0},{"$f":"F261-R261","v":0}]
[51,null,{"$f":"'FR-16(7)(v)-1 Functional'!C262","v":"ADJUSTMENT"},null,null,{"$f":"F108-F185","v":0},0,0,0,{"$f":"J108-J185","v":0},0,0,0,0,0,0,0,0,{"$f":"F262-R262","v":0}]
[52,null,{"$f":"'FR-16(7)(v)-1 Functional'!C263","v":"  NET GENERAL & INTANG PLANT"},null,null,{"$f":"SUM(F253:F262)","v":0},0,0,0,{"$f":"SUM(J253:J262)","v":0},0,0,0,0,0,0,0,0,0]
[53]
[54,"COMMON & OTHER PLANT"]
[55,null,{"$f":"'FR-16(7)(v)-1 Functional'!C266","v":"PRODUCTION - DEMAND"},null,null,{"$f":"F112-F189","v":0},0,0,0,{"$f":"J112-J189","v":0},0,0,0,0,0,0,0,0,{"$f":"F266-R266","v":0}]
[56,null,{"$f":"'FR-16(7)(v)-1 Functional'!C267","v":"PRODUCTION - ENERGY"},null,null,{"$f":"F113-F190","v":0},0,0,0,{"$f":"J113-J190","v":0},0,0,0,0,0,0,0,0,{"$f":"F267-R267","v":0}]
[57,null,{"$f":"'FR-16(7)(v)-1 Functional'!C268","v":"TRANSMISSION"},null,null,{"$f":"F114-F191","v":0},0,0,0,{"$f":"J114-J191","v":0},0,0,0,0,0,0,0,0,0]
[58,null,{"$f":"'FR-16(7)(v)-1 Functional'!C269","v":"DISTRIBUTION - DEMAND"},null,null,{"$f":"F115-F192","v":0},0,0,0,0,0,0,0,0,0,0,0,0,0]
[59,null,{"$f":"'FR-16(7)(v)-1 Functional'!C270","v":"DISTRIBUTION - CUSTOMER"},null,null,{"$f":"F116-F193","v":0},0,0,0,0,0,0,0,0,0,0,0,0,{"$f":"F270-R270","v":0}]
[60,null,{"$f":"'FR-16(7)(v)-1 Functional'!C271","v":"CUSTOMER ACCOUNTING"},null,null,{"$f":"F117-F194","v":0},0,0,0,{"$f":"J117-J194","v":0},0,0,0,0,0,0,0,0,0]
[61,null,{"$f":"'FR-16(7)(v)-1 Functional'!C272","v":"CUSTOMER SERVICE & INFORMATION"},null,null,{"$f":"F118-F195","v":0},0,0,0,{"$f":"J118-J195","v":0},0,{"$f":"L118-L195","v":0},0,0,0,0,{"$f":"Q118-Q195","v":0},{"$f":"R118-R195","v":0},0]
[62,null,{"$f":"'FR-16(7)(v)-1 Functional'!C273","v":"SALES"},null,null,0,0,0,0,{"$f":"J119-J196","v":0},0,0,0,0,0,0,{"$f":"Q119-Q196","v":0},{"$f":"R119-R196","v":0},{"$f":"F273-R273","v":0}]
[63,null,{"$f":"'FR-16(7)(v)-1 Functional'!C274","v":"ADJUSTMENT"},null,null,{"$f":"F120-F197","v":0},0,0,0,{"$f":"J120-J197","v":0},0,0,0,0,0,0,0,0,{"$f":"F274-R274","v":0}]
[64,null,"  COMMON & OTHER PLANT IN SERVICE",null,null,{"$f":"SUM(F265:F274)","v":0},0,0,0,{"$f":"SUM(J265:J274)","v":0},0,0,0,0,0,0,0,0,0]
[65]
[66,null,{"$f":"'FR-16(7)(v)-1 Functional'!C277","v":"NET ELECTRIC PLANT IN SERVICE"},null,null,{"$f":"F275+F263+F248+F222+F216","v":0},{"$f":"G275+G263+G248+G222+G216","v":0},{"$f":"H275+H263+H248+H222+H216","v":0},{"$f":"I275+I263+I248+I222+I216","v":0},{"$f":"J275+J263+J248+J222+J216","v":0},0,0,0,0,0,0,{"$f":"Q275+Q263+Q248+Q222+Q216","v":0},{"$f":"R275+R263+R248+R222+R216","v":0},{"$f":"S275+S263+S248+S222+S216","v":0}]
[]
[{"$f":"co_name","v":"DUKE ENERGY KENTUCKY, INC."},null,null,null,null,null,null,null,null,null,null,null,null,null,null,null,null,{"$f":"R1","v":"FR-16(7)(v)-5"}]
[{"$f":"$A$2","v":"PRODUCTION CUSTOMER ALLOCATED - ELECTRIC COST OF SERVICE"},null,null,null,null,null,null,null,null,null,null,null,null,null,null,null,null,{"$f":"R2","v":"WITNESS RESPONSIBLE:"}]
[{"$f":"case_name","v":"CASE NO: 2019-00271"},null,null,null,null,null,null,null,null,null,null,null,null,null,null,null,null,{"$f":"Witness","v":"JAMES E. ZIOLKOWSKI"}]
[{"$f":"data_filing","v":"DATA: 12 MONTHS ACTUAL  & 0 MONTHS ESTIMATED"},null,null,null,null,null,null,null,null,null,null,null,null,null,null,null,null,{"$f":"\"PAGE \"&Pages-13&\" OF \"&Pages","v":"PAGE 5 OF 18"}]
[{"$f":"type","v":"TYPE OF FILING: \"X\" ORIGINAL   UPDATED    REVISED  "}]
[]
[null,null,null,null,null,{"$f":"F$7","v":"TOTAL"},null,{"$f":"H$7","v":"DS"},{"$f":"I$7","v":"GSFL"},{"$f":"J$7","v":"EH"},{"$f":"K$7","v":"SP"},"DT SEC","DT PRI","DP","TT",null,"OTHER"]
["LINE",null,null,null,null,{"$f":"F$8","v":"PRODUCTION"},{"$f":"G$8","v":"RS"},{"$f":"H$8","v":"SECONDARY"},{"$f":"I$8","v":"SECONDARY"},{"$f":"J$8","v":"SECONDARY"},{"$f":"K$8","v":"SECONDARY"},"SECONDARY","PRIMARY","PRIMARY","TRANSMISSION","LT","WATER",{"$f":"R8","v":"TOTAL"},"ALL"]
["NO.","SUBTRACTIVE RATE BASE ADJUSTMENTS",null,"ALLO",null,{"$f":"F$9","v":"CUSTOMER"},{"$f":"G$9","v":"RESIDENTIAL"},{"$f":"H$9","v":"DISTRIBUTION"},{"$f":"I$9","v":"DISTRIBUTION"},{"$f":"J$9","v":"DISTRIBUTION"},{"$f":"K$9","v":"DISTRIBUTION"},"DISTRIBUTION","DISTRIBUTION","DISTRIBUTION","TIME OF DAY","LIGHTING","PUMPING",{"$f":"R9","v":"AT ISSUE"},"OTHER"]
[null,null,"Schedule 5",null,null,null,{"$f":"G$10","v":3},{"$f":"H$10","v":4},{"$f":"I$10","v":5},{"$f":"J$10","v":6},{"$f":"K$10","v":7},8,9,10,11,12,13,null," "]
[1,"RATE BASE ADJUSTMENTS"]
[2,"ACCUMULATED DEFERRED INCOME TAXES"]
[3," ACCUM DEF INC TAXES (282)"]
[4,null,{"$f":"'FR-16(7)(v)-1 Functional'!C292","v":"LIBERALIZED DEPRECIATION"},{"$f":"'FR-16(7)(v)-1 Functional'!D292","v":"NP29"}," ",{"$f":"'FR-16(7)(v)-2 PROD Classified'!I292","v":0},{"$f":"F292-SUM(H292:Q292)","v":0},{"$f":"ROUND(F292*VLOOKUP(D292,ALLOCTABLE_Prod_Customer,$H$10,FALSE),0)","v":0},{"$f":"ROUND(F292*VLOOKUP(D292,ALLOCTABLE_Prod_Customer,$I$10,FALSE),0)","v":0},{"$f":"ROUND(F292*VLOOKUP(D292,ALLOCTABLE_Prod_Customer,$J$10,FALSE),0)","v":0},{"$f":"ROUND(F292*VLOOKUP(D292,ALLOCTABLE_Prod_Customer,$K$10,FALSE),0)","v":0},{"$f":"ROUND(F292*VLOOKUP(D292,ALLOCTABLE_Prod_Customer,$L$10,FALSE),0)","v":0},{"$f":"ROUND(F292*VLOOKUP(D292,ALLOCTABLE_Prod_Customer,$M$10,FALSE),0)","v":0},{"$f":"ROUND(F292*VLOOKUP(D292,ALLOCTABLE_Prod_Customer,$N$10,FALSE),0)","v":0},{"$f":"ROUND(F292*VLOOKUP(D292,ALLOCTABLE_Prod_Customer,$O$10,FALSE),0)","v":0},{"$f":"ROUND(F292*VLOOKUP(D292,ALLOCTABLE_Prod_Customer,$P$10,FALSE),0)","v":0},{"$f":"ROUND(F292*VLOOKUP(D292,ALLOCTABLE_Prod_Customer,$Q$10,FALSE),0)","v":0},{"$f":"SUM(G292:Q292)","v":0},{"$f":"F292-R292","v":0}]
[5,null,{"$f":"'FR-16(7)(v)-1 Functional'!C293","v":"LEASED METERS"},{"$f":"'FR-16(7)(v)-1 Functional'!D293","v":"NP29"}," ",{"$f":"'FR-16(7)(v)-2 PROD Classified'!I293","v":0},0,0,0,0,0,0,0,0,0,0,0,0,0]
[6,null,{"$f":"'FR-16(7)(v)-1 Functional'!C294","v":"CONTRIB AID CONSTR"},{"$f":"'FR-16(7)(v)-1 Functional'!D294","v":"D249"}," ",{"$f":"'FR-16(7)(v)-2 PROD Classified'!I294","v":0},0,0,0,0,0,0,0,0,0,0,0,0,0]
[7,null,{"$f":"'FR-16(7)(v)-1 Functional'!C295","v":"TAX INTEREST, EXPENSING, DEPR."},{"$f":"'FR-16(7)(v)-1 Functional'!D295","v":"NP29"}," ",{"$f":"'FR-16(7)(v)-2 PROD Classified'!I295","v":0},0,0,0,0,0,0,0,0,0,0,0,0,0]
[8,null,{"$f":"'FR-16(7)(v)-1 Functional'!C296","v":"AFUDC IN DEBT"},{"$f":"'FR-16(7)(v)-1 Functional'!D296","v":"NP29"}," ",{"$f":"'FR-16(7)(v)-2 PROD Classified'!I296","v":0},0,0,0,0,0,0,0,0,0,0,0,0,0]
[9,null,{"$f":"'FR-16(7)(v)-1 Functional'!C297","v":"CASUALTY LOSS"},{"$f":"'FR-16(7)(v)-1 Functional'!D297","v":"K411"}," ",{"$f":"'FR-16(7)(v)-2 PROD Classified'!I297","v":0},0,0,0,0,0,0,0,0,0,0,0,0,0]
[10,null,{"$f":"'FR-16(7)(v)-1 Functional'!C298","v":"NON-CASH OVERHEADS"},{"$f":"'FR-16(7)(v)-1 Functional'!D298","v":"G229"}," ",{"$f":"'FR-16(7)(v)-2 PROD Classified'!I298","v":0},0,0,0,0,0,0,0,0,0,0,0,0,0]
[11,null,{"$f":"'FR-16(7)(v)-1 Functional'!C299","v":"PLANT FAS 109"},{"$f":"'FR-16(7)(v)-1 Functional'!D299","v":"NP29"}," ",{"$f":"'FR-16(7)(v)-2 PROD Classified'!I299","v":0},0,0,0,0,0,0,0,0,0,0,0,0,0]
[12,null,{"$f":"'FR-16(7)(v)-1 Functional'!C300","v":"MISCELLANEOUS"},{"$f":"'FR-16(7)(v)-1 Functional'!D300","v":"NP29"},null,{"$f":"'FR-16(7)(v)-2 PROD Classified'!I300","v":0},0,0,0,0,0,0,0,0,0,0,0,0,0]
[13,null,{"$f":"'FR-16(7)(v)-1 Functional'!C301","v":"  TOTAL ACCOUNT 282"},null,null,{"$f":"SUM(F292:F300)","v":0},{"$f":"SUM(G292:G300)","v":0},{"$f":"SUM(H292:H300)","v":0},{"$f":"SUM(I292:I300)","v":0},{"$f":"SUM(J292:J300)","v":0},0,0,0,0,0,0,{"$f":"SUM(Q292:Q300)","v":0},{"$f":"SUM(R292:R300)","v":0},{"$f":"SUM(S292:S300)","v":0}]
[14]
[15," ACCUM DEF INC TAXES (283)"]
[16,null,{"$f":"'FR-16(7)(v)-1 Functional'!C304","v":"TRANSITION FROM MISO TO PJM"},{"$f":"'FR-16(7)(v)-1 Functional'!D304","v":"NP29"},null,{"$f":"'FR-16(7)(v)-2 PROD Classified'!I304","v":0},{"$f":"F304-SUM(H304:Q304)","v":0},{"$f":"ROUND(F304*VLOOKUP(D304,ALLOCTABLE_Prod_Customer,$H$10,FALSE),0)","v":0},{"$f":"ROUND(F304*VLOOKUP(D304,ALLOCTABLE_Prod_Customer,$I$10,FALSE),0)","v":0},{"$f":"ROUND(F304*VLOOKUP(D304,ALLOCTABLE_Prod_Customer,$J$10,FALSE),0)","v":0},{"$f":"ROUND(F304*VLOOKUP(D304,ALLOCTABLE_Prod_Customer,$K$10,FALSE),0)","v":0},{"$f":"ROUND(F304*VLOOKUP(D304,ALLOCTABLE_Prod_Customer,$L$10,FALSE),0)","v":0},{"$f":"ROUND(F304*VLOOKUP(D304,ALLOCTABLE_Prod_Customer,$M$10,FALSE),0)","v":0},{"$f":"ROUND(F304*VLOOKUP(D304,ALLOCTABLE_Prod_Customer,$N$10,FALSE),0)","v":0},{"$f":"ROUND(F304*VLOOKUP(D304,ALLOCTABLE_Prod_Customer,$O$10,FALSE),0)","v":0},{"$f":"ROUND(F304*VLOOKUP(D304,ALLOCTABLE_Prod_Customer,$P$10,FALSE),0)","v":0},{"$f":"ROUND(F304*VLOOKUP(D304,ALLOCTABLE_Prod_Customer,$Q$10,FALSE),0)","v":0},{"$f":"SUM(G304:Q304)","v":0},{"$f":"F304-R304","v":0}]
[17,null,{"$f":"'FR-16(7)(v)-1 Functional'!C305","v":"DEFERRED PLANT COSTS"},{"$f":"'FR-16(7)(v)-1 Functional'!D305","v":"NP29"},null,{"$f":"'FR-16(7)(v)-2 PROD Classified'!I305","v":0},0,0,0,0,0,0,0,0,0,0,0,0,0]
[18,null,{"$f":"'FR-16(7)(v)-1 Functional'!C306","v":"MISCELLANEOUS"},{"$f":"'FR-16(7)(v)-1 Functional'!D306","v":"OM39"},null,{"$f":"'FR-16(7)(v)-2 PROD Classified'!I306","v":0},0,0,0,0,0,0,0,0,0,0,0,0,0]
[19,null,{"$f":"'FR-16(7)(v)-1 Functional'!C307","v":"ENVIRONMENTAL RESERVE"},{"$f":"'FR-16(7)(v)-1 Functional'!D307","v":"NP29"},null,{"$f":"'FR-16(7)(v)-2 PROD Classified'!I307","v":0},0,0,0,0,0,0,0,0,0,0,0,0,0]
[20,null,{"$f":"'FR-16(7)(v)-1 Functional'!C308","v":"POST IN-SERVICE CARRYING COSTS"},{"$f":"'FR-16(7)(v)-1 Functional'!D308","v":"NP29"},null,{"$f":"'FR-16(7)(v)-2 PROD Classified'!I308","v":0},0,0,0,0,0,0,0,0,0,0,0,0,0]
[21,null,{"$f":"'FR-16(7)(v)-1 Functional'!C309","v":"ARO CUMULATIVE EFFECT"},{"$f":"'FR-16(7)(v)-1 Functional'!D309","v":"NP29"},null,{"$f":"'FR-16(7)(v)-2 PROD Classified'!I309","v":0},0,0,0,0,0,0,0,0,0,0,0,0,0]
[22,null,{"$f":"'FR-16(7)(v)-1 Functional'!C310","v":"LOSS ON REACQUIRED DEBT"},{"$f":"'FR-16(7)(v)-1 Functional'!D310","v":"D249"},null,{"$f":"'FR-16(7)(v)-2 PROD Classified'!I310","v":0},0,0,0,0,0,0,0,0,0,0,0,0,0]
[23,null,{"$f":"'FR-16(7)(v)-1 Functional'!C311","v":"VACATION PAY ACCRUAL"},{"$f":"'FR-16(7)(v)-1 Functional'!D311","v":"A315"},null,{"$f":"'FR-16(7)(v)-2 PROD Classified'!I311","v":0},0,0,0,0,0,0,0,0,0,0,0,0,0]
[24,null,{"$f":"'FR-16(7)(v)-1 Functional'!C312","v":"NON-AMI METERS RETIRED EARLY"},{"$f":"'FR-16(7)(v)-1 Functional'!D312","v":"OM39"},null,{"$f":"'FR-16(7)(v)-2 PROD Classified'!I312","v":0},0,0,0,0,0,0,0,0,0,0,0,{"$f":"SUM(G312:Q312)","v":0},{"$f":"F312-R312","v":0}]
[25,null,{"$f":"'FR-16(7)(v)-1 Functional'!C313","v":"PENSION EXPENSE"},{"$f":"'FR-16(7)(v)-1 Functional'!D313","v":"A315"},null,{"$f":"'FR-16(7)(v)-2 PROD Classified'!I313","v":0},0,0,0,0,0,0,0,0,0,0,0,{"$f":"SUM(G313:Q313)","v":0},{"$f":"F313-R313","v":0}]
[26,null,{"$f":"'FR-16(7)(v)-1 Functional'!C314","v":"UNCOLLECTIBLE ACCOUNTS"},{"$f":"'FR-16(7)(v)-1 Functional'!D314","v":"K411"},null,{"$f":"'FR-16(7)(v)-2 PROD Classified'!I314","v":0},0,0,0,0,0,0,0,0,0,0,0,0,0]
[27,null,{"$f":"'FR-16(7)(v)-1 Functional'!C315","v":"  TOTAL ACCOUNT 283"},null,null,{"$f":"SUM(F303:F314)","v":0},{"$f":"SUM(G303:G314)","v":0},{"$f":"SUM(H303:H314)","v":0},{"$f":"SUM(I303:I314)","v":0},{"$f":"SUM(J303:J314)","v":0},0,0,0,0,0,0,{"$f":"SUM(Q303:Q314)","v":0},{"$f":"SUM(R303:R314)","v":0},{"$f":"SUM(S303:S314)","v":0}]
[28]
[29," OTHER ACCUMULATED DEFERRED INCOME TAXES"]
[30,null,{"$f":"'FR-16(7)(v)-1 Functional'!C318","v":"EXCESS ADIT"},{"$f":"'FR-16(7)(v)-1 Functional'!D318","v":"NP29"},null,{"$f":"'FR-16(7)(v)-2 PROD Classified'!I318","v":0},{"$f":"F318-SUM(H318:Q318)","v":0},{"$f":"ROUND(F318*VLOOKUP(D318,ALLOCTABLE_Prod_Customer,$H$10,FALSE),0)","v":0},{"$f":"ROUND(F318*VLOOKUP(D318,ALLOCTABLE_Prod_Customer,$I$10,FALSE),0)","v":0},{"$f":"ROUND(F318*VLOOKUP(D318,ALLOCTABLE_Prod_Customer,$J$10,FALSE),0)","v":0},{"$f":"ROUND(F318*VLOOKUP(D318,ALLOCTABLE_Prod_Customer,$K$10,FALSE),0)","v":0},{"$f":"ROUND(F318*VLOOKUP(D318,ALLOCTABLE_Prod_Customer,$L$10,FALSE),0)","v":0},{"$f":"ROUND(F318*VLOOKUP(D318,ALLOCTABLE_Prod_Customer,$M$10,FALSE),0)","v":0},{"$f":"ROUND(F318*VLOOKUP(D318,ALLOCTABLE_Prod_Customer,$N$10,FALSE),0)","v":0},{"$f":"ROUND(F318*VLOOKUP(D318,ALLOCTABLE_Prod_Customer,$O$10,FALSE),0)","v":0},{"$f":"ROUND(F318*VLOOKUP(D318,ALLOCTABLE_Prod_Customer,$P$10,FALSE),0)","v":0},{"$f":"ROUND(F318*VLOOKUP(D318,ALLOCTABLE_Prod_Customer,$Q$10,FALSE),0)","v":0},{"$f":"SUM(G318:Q318)","v":0},{"$f":"F318-R318","v":0}]
[31,null,{"$f":"'FR-16(7)(v)-1 Functional'!C319","v":"CUSTOMER SERVICE DEPOSITS"},{"$f":"'FR-16(7)(v)-1 Functional'!D319","v":"NP29"},null,{"$f":"'FR-16(7)(v)-2 PROD Classified'!I319","v":0},{"$f":"F319-SUM(H319:Q319)","v":0},{"$f":"ROUND(F319*VLOOKUP(D319,ALLOCTABLE_Prod_Customer,$H$10,FALSE),0)","v":0},{"$f":"ROUND(F319*VLOOKUP(D319,ALLOCTABLE_Prod_Customer,$I$10,FALSE),0)","v":0},{"$f":"ROUND(F319*VLOOKUP(D319,ALLOCTABLE_Prod_Customer,$J$10,FALSE),0)","v":0},{"$f":"ROUND(F319*VLOOKUP(D319,ALLOCTABLE_Prod_Customer,$K$10,FALSE),0)","v":0},{"$f":"ROUND(F319*VLOOKUP(D319,ALLOCTABLE_Prod_Customer,$L$10,FALSE),0)","v":0},{"$f":"ROUND(F319*VLOOKUP(D319,ALLOCTABLE_Prod_Customer,$M$10,FALSE),0)","v":0},{"$f":"ROUND(F319*VLOOKUP(D319,ALLOCTABLE_Prod_Customer,$N$10,FALSE),0)","v":0},{"$f":"ROUND(F319*VLOOKUP(D319,ALLOCTABLE_Prod_Customer,$O$10,FALSE),0)","v":0},{"$f":"ROUND(F319*VLOOKUP(D319,ALLOCTABLE_Prod_Customer,$P$10,FALSE),0)","v":0},{"$f":"ROUND(F319*VLOOKUP(D319,ALLOCTABLE_Prod_Customer,$Q$10,FALSE),0)","v":0},{"$f":"SUM(G319:Q319)","v":0},{"$f":"F319-R319","v":0}]
[32,null,{"$f":"'FR-16(7)(v)-1 Functional'!C320","v":"POST RETIREMENT BENEFITS"},{"$f":"'FR-16(7)(v)-1 Functional'!D320","v":"NP29"},null,{"$f":"'FR-16(7)(v)-2 PROD Classified'!I320","v":0},{"$f":"F320-SUM(H320:Q320)","v":0},{"$f":"ROUND(F320*VLOOKUP(D320,ALLOCTABLE_Prod_Customer,$H$10,FALSE),0)","v":0},{"$f":"ROUND(F320*VLOOKUP(D320,ALLOCTABLE_Prod_Customer,$I$10,FALSE),0)","v":0},{"$f":"ROUND(F320*VLOOKUP(D320,ALLOCTABLE_Prod_Customer,$J$10,FALSE),0)","v":0},{"$f":"ROUND(F320*VLOOKUP(D320,ALLOCTABLE_Prod_Customer,$K$10,FALSE),0)","v":0},{"$f":"ROUND(F320*VLOOKUP(D320,ALLOCTABLE_Prod_Customer,$L$10,FALSE),0)","v":0},{"$f":"ROUND(F320*VLOOKUP(D320,ALLOCTABLE_Prod_Customer,$M$10,FALSE),0)","v":0},{"$f":"ROUND(F320*VLOOKUP(D320,ALLOCTABLE_Prod_Customer,$N$10,FALSE),0)","v":0},{"$f":"ROUND(F320*VLOOKUP(D320,ALLOCTABLE_Prod_Customer,$O$10,FALSE),0)","v":0},{"$f":"ROUND(F320*VLOOKUP(D320,ALLOCTABLE_Prod_Customer,$P$10,FALSE),0)","v":0},{"$f":"ROUND(F320*VLOOKUP(D320,ALLOCTABLE_Prod_Customer,$Q$10,FALSE),0)","v":0},{"$f":"SUM(G320:Q320)","v":0},{"$f":"F320-R320","v":0}]
[33,null,{"$f":"'FR-16(7)(v)-1 Functional'!C321","v":"INVESTMENT TAX CREDIT"},{"$f":"'FR-16(7)(v)-1 Functional'!D321","v":"NP29"},null,{"$f":"'FR-16(7)(v)-2 PROD Classified'!I321","v":0},{"$f":"F321-SUM(H321:Q321)","v":0},{"$f":"ROUND(F321*VLOOKUP(D321,ALLOCTABLE_Prod_Customer,$H$10,FALSE),0)","v":0},{"$f":"ROUND(F321*VLOOKUP(D321,ALLOCTABLE_Prod_Customer,$I$10,FALSE),0)","v":0},{"$f":"ROUND(F321*VLOOKUP(D321,ALLOCTABLE_Prod_Customer,$J$10,FALSE),0)","v":0},{"$f":"ROUND(F321*VLOOKUP(D321,ALLOCTABLE_Prod_Customer,$K$10,FALSE),0)","v":0},{"$f":"ROUND(F321*VLOOKUP(D321,ALLOCTABLE_Prod_Customer,$L$10,FALSE),0)","v":0},{"$f":"ROUND(F321*VLOOKUP(D321,ALLOCTABLE_Prod_Customer,$M$10,FALSE),0)","v":0},{"$f":"ROUND(F321*VLOOKUP(D321,ALLOCTABLE_Prod_Customer,$N$10,FALSE),0)","v":0},{"$f":"ROUND(F321*VLOOKUP(D321,ALLOCTABLE_Prod_Customer,$O$10,FALSE),0)","v":0},{"$f":"ROUND(F321*VLOOKUP(D321,ALLOCTABLE_Prod_Customer,$P$10,FALSE),0)","v":0},{"$f":"ROUND(F321*VLOOKUP(D321,ALLOCTABLE_Prod_Customer,$Q$10,FALSE),0)","v":0},{"$f":"SUM(G321:Q321)","v":0},{"$f":"F321-R321","v":0}]
[34,null,{"$f":"'FR-16(7)(v)-1 Functional'!C322","v":"  TOTAL OTHER SUBTRACTIVE ADJUSTMENTS"},null,null,{"$f":"SUM(F317:F321)","v":0},{"$f":"SUM(G317:G321)","v":0},{"$f":"SUM(H317:H321)","v":0},{"$f":"SUM(I317:I321)","v":0},{"$f":"SUM(J317:J321)","v":0},0,0,0,0,0,0,{"$f":"SUM(Q317:Q321)","v":0},{"$f":"SUM(R317:R321)","v":0},{"$f":"SUM(S317:S321)","v":0}]
[35]
[36,{"$f":"'FR-16(7)(v)-1 Functional'!B324","v":"TOTAL SUBTRACTIVE RATE BASE ADJUSTMENTS"},null,null,null,{"$f":"F322+F315+F301","v":0},{"$f":"G322+G315+G301","v":0},{"$f":"H322+H315+H301","v":0},{"$f":"I322+I315+I301","v":0},{"$f":"J322+J315+J301","v":0},0,0,0,0,0,0,{"$f":"Q322+Q315+Q301","v":0},{"$f":"R322+R315+R301","v":0},{"$f":"S322+S315+S301","v":0}]
[]
[{"$f":"co_name","v":"DUKE ENERGY KENTUCKY, INC."},null,null,null,null,null,null,null,null,null,null,null,null,null,null,null,null,{"$f":"R1","v":"FR-16(7)(v)-5"}]
[{"$f":"$A$2","v":"PRODUCTION CUSTOMER ALLOCATED - ELECTRIC COST OF SERVICE"},null,null,null,null,null,null,null,null,null,null,null,null,null,null,null,null,{"$f":"R2","v":"WITNESS RESPONSIBLE:"}]
[{"$f":"case_name","v":"CASE NO: 2019-00271"},null,null,null,null,null,null,null,null,null,null,null,null,null,null,null,null,{"$f":"Witness","v":"JAMES E. ZIOLKOWSKI"}]
[{"$f":"data_filing","v":"DATA: 12 MONTHS ACTUAL  & 0 MONTHS ESTIMATED"},null,null,null,null,null,null,null,null,null,null,null,null,null,null,null,null,{"$f":"\"PAGE \"&Pages-12&\" OF \"&Pages","v":"PAGE 6 OF 18"}]
[{"$f":"type","v":"TYPE OF FILING: \"X\" ORIGINAL   UPDATED    REVISED  "}]
[]
[null,null,null,null,null,{"$f":"F$7","v":"TOTAL"},null,{"$f":"H$7","v":"DS"},{"$f":"I$7","v":"GSFL"},{"$f":"J$7","v":"EH"},{"$f":"K$7","v":"SP"},"DT SEC","DT PRI","DP","TT",null,"OTHER"]
["LINE",null,null,null,null,{"$f":"F$8","v":"PRODUCTION"},{"$f":"G$8","v":"RS"},{"$f":"H$8","v":"SECONDARY"},{"$f":"I$8","v":"SECONDARY"},{"$f":"J$8","v":"SECONDARY"},{"$f":"K$8","v":"SECONDARY"},"SECONDARY","PRIMARY","PRIMARY","TRANSMISSION","LT","WATER",{"$f":"R8","v":"TOTAL"},"ALL"]
["NO.","ADDITIVE RATE BASE ADJUSTMENTS",null,"ALLO",null,{"$f":"F$9","v":"CUSTOMER"},{"$f":"G$9","v":"RESIDENTIAL"},{"$f":"H$9","v":"DISTRIBUTION"},{"$f":"I$9","v":"DISTRIBUTION"},{"$f":"J$9","v":"DISTRIBUTION"},{"$f":"K$9","v":"DISTRIBUTION"},"DISTRIBUTION","DISTRIBUTION","DISTRIBUTION","TIME OF DAY","LIGHTING","PUMPING",{"$f":"R9","v":"AT ISSUE"},"OTHER"]
[null,null,"Schedule 5.1",null,null,null,{"$f":"G$10","v":3},{"$f":"H$10","v":4},{"$f":"I$10","v":5},{"$f":"J$10","v":6},{"$f":"K$10","v":7},8,9,10,11,12,13,null," "]
[1,"OTHER ACCUMULATED DEFERRED INCOME TAXES"]
[2," ACCUM DEF INC TAXES (190)"]
[3,null,{"$f":"'FR-16(7)(v)-1 Functional'!C338","v":"UNCOLLECTIBLE ACCTS"},{"$f":"'FR-16(7)(v)-1 Functional'!D338","v":"K411"},null,{"$f":"'FR-16(7)(v)-2 PROD Classified'!I338","v":0},{"$f":"F338-SUM(H338:Q338)","v":0},{"$f":"ROUND(F338*VLOOKUP(D338,ALLOCTABLE_Prod_Customer,$H$10,FALSE),0)","v":0},{"$f":"ROUND(F338*VLOOKUP(D338,ALLOCTABLE_Prod_Customer,$I$10,FALSE),0)","v":0},{"$f":"ROUND(F338*VLOOKUP(D338,ALLOCTABLE_Prod_Customer,$J$10,FALSE),0)","v":0},{"$f":"ROUND(F338*VLOOKUP(D338,ALLOCTABLE_Prod_Customer,$K$10,FALSE),0)","v":0},{"$f":"ROUND(F338*VLOOKUP(D338,ALLOCTABLE_Prod_Customer,$L$10,FALSE),0)","v":0},{"$f":"ROUND(F338*VLOOKUP(D338,ALLOCTABLE_Prod_Customer,$M$10,FALSE),0)","v":0},{"$f":"ROUND(F338*VLOOKUP(D338,ALLOCTABLE_Prod_Customer,$N$10,FALSE),0)","v":0},{"$f":"ROUND(F338*VLOOKUP(D338,ALLOCTABLE_Prod_Customer,$O$10,FALSE),0)","v":0},{"$f":"ROUND(F338*VLOOKUP(D338,ALLOCTABLE_Prod_Customer,$P$10,FALSE),0)","v":0},{"$f":"ROUND(F338*VLOOKUP(D338,ALLOCTABLE_Prod_Customer,$Q$10,FALSE),0)","v":0},{"$f":"SUM(G338:Q338)","v":0},{"$f":"F338-R338","v":0}]
[4,null,{"$f":"'FR-16(7)(v)-1 Functional'!C339","v":"CASH FLOW HEDGE"},{"$f":"'FR-16(7)(v)-1 Functional'!D339","v":"A315"},null,{"$f":"'FR-16(7)(v)-2 PROD Classified'!I339","v":0},0,0,0,0,0,0,0,0,0,0,0,0,0]
[5,null,{"$f":"'FR-16(7)(v)-1 Functional'!C340","v":"RESERVED FOR FUTURE USE"},{"$f":"'FR-16(7)(v)-1 Functional'!D340","v":"NP29"},null,{"$f":"'FR-16(7)(v)-2 PROD Classified'!I340","v":0},0,0,0,0,0,0,0,0,0,0,0,0,0]
[6,null,{"$f":"'FR-16(7)(v)-1 Functional'!C341","v":"RESERVED FOR FUTURE USE"},{"$f":"'FR-16(7)(v)-1 Functional'!D341","v":"NP29"},null,{"$f":"'FR-16(7)(v)-2 PROD Classified'!I341","v":0},0,0,0,0,0,0,0,0,0,0,0,0,0]
[7,null,{"$f":"'FR-16(7)(v)-1 Functional'!C342","v":"ELECTRIC METERS"},{"$f":"'FR-16(7)(v)-1 Functional'!D342","v":"K407"},null,{"$f":"'FR-16(7)(v)-2 PROD Classified'!I342","v":0},0,0,0,0,0,0,0,0,0,0,0,0,0]
[8,null,{"$f":"'FR-16(7)(v)-1 Functional'!C343","v":"UNAMORTIZED DEBT PREMIUM"},{"$f":"'FR-16(7)(v)-1 Functional'!D343","v":"D249"},null,{"$f":"'FR-16(7)(v)-2 PROD Classified'!I343","v":0},0,0,0,0,0,0,0,0,0,0,0,0,0]
[9,null,{"$f":"'FR-16(7)(v)-1 Functional'!C344","v":"ARO CUMULATIVE EFFECT"},{"$f":"'FR-16(7)(v)-1 Functional'!D344","v":"NP29"},null,{"$f":"'FR-16(7)(v)-2 PROD Classified'!I344","v":0},0,0,0,0,0,0,0,0,0,0,0,0,0]
[10,null,{"$f":"'FR-16(7)(v)-1 Functional'!C345","v":"RETIREMENT PLAN"},{"$f":"'FR-16(7)(v)-1 Functional'!D345","v":"A315"},null,{"$f":"'FR-16(7)(v)-2 PROD Classified'!I345","v":0},0,0,0,0,0,0,0,0,0,0,0,0,0]
[11,null,{"$f":"'FR-16(7)(v)-1 Functional'!C346","v":"POST RETIREMENT BENEFITS "},{"$f":"'FR-16(7)(v)-1 Functional'!D346","v":"A315"},null,{"$f":"'FR-16(7)(v)-2 PROD Classified'!I346","v":0},0,0,0,0,0,0,0,0,0,0,0,0,0]
[12,null,{"$f":"'FR-16(7)(v)-1 Functional'!C347","v":"POST RETIREMENT BENEFITS - HEALTH CARE"},{"$f":"'FR-16(7)(v)-1 Functional'!D347","v":"A315"},null,{"$f":"'FR-16(7)(v)-2 PROD Classified'!I347","v":0},0,0,0,0,0,0,0,0,0,0,0,0,0]
[13,null,{"$f":"'FR-16(7)(v)-1 Functional'!C348","v":"POST EMPLOYMENT BENEFITS - SFAS 112"},{"$f":"'FR-16(7)(v)-1 Functional'!D348","v":"A315"},null,{"$f":"'FR-16(7)(v)-2 PROD Classified'!I348","v":0},0,0,0,0,0,0,0,0,0,0,0,0,0]
[14,null,{"$f":"'FR-16(7)(v)-1 Functional'!C349","v":"SUPPLEMENTAL PENSION PLAN"},{"$f":"'FR-16(7)(v)-1 Functional'!D349","v":"A315"},null,{"$f":"'FR-16(7)(v)-2 PROD Classified'!I349","v":0},0,0,0,0,0,0,0,0,0,0,0,0,0]
[15,null,{"$f":"'FR-16(7)(v)-1 Functional'!C350","v":"INCENTIVE PLAN"},{"$f":"'FR-16(7)(v)-1 Functional'!D350","v":"A315"},null,{"$f":"'FR-16(7)(v)-2 PROD Classified'!I350","v":0},0,0,0,0,0,0,0,0,0,0,0,0,0]
[16,null,{"$f":"'FR-16(7)(v)-1 Functional'!C351","v":"FEDERAL DEFERRED TAX RECEIVEABLE"},{"$f":"'FR-16(7)(v)-1 Functional'!D351","v":"A315"},null,{"$f":"'FR-16(7)(v)-2 PROD Classified'!I351","v":0},0,0,0,0,0,0,0,0,0,0,0,0,0]
[17,null,{"$f":"'FR-16(7)(v)-1 Functional'!C352","v":"MISCELLANEOUS"},{"$f":"'FR-16(7)(v)-1 Functional'!D352","v":"A315"},null,{"$f":"'FR-16(7)(v)-2 PROD Classified'!I352","v":0},0,0,0,0,0,0,0,0,0,0,0,0,0]
[18,null,{"$f":"'FR-16(7)(v)-1 Functional'!C353","v":"DEFERRED TAX"},{"$f":"'FR-16(7)(v)-1 Functional'!D353","v":"A315"},null,{"$f":"'FR-16(7)(v)-2 PROD Classified'!I353","v":0},0,0,0,0,0,0,0,0,0,0,0,0,0]
[19,null,{"$f":"'FR-16(7)(v)-1 Functional'!C354","v":"NET OPERATING LOSS"},{"$f":"'FR-16(7)(v)-1 Functional'!D354","v":"NP29"},null,{"$f":"'FR-16(7)(v)-2 PROD Classified'!I354","v":0},0,0,0,0,0,0,0,0,0,0,0,0,0]
[20,null,{"$f":"'FR-16(7)(v)-1 Functional'!C355","v":"401K INCENTIVE PLAN"},{"$f":"'FR-16(7)(v)-1 Functional'!D355","v":"A315"},null,{"$f":"'FR-16(7)(v)-2 PROD Classified'!I355","v":0},0,0,0,0,0,0,0,0,0,0,0,0,0]
[21,null,{"$f":"'FR-16(7)(v)-1 Functional'!C356","v":"ENVIRONMENTAL RESERVE"},{"$f":"'FR-16(7)(v)-1 Functional'!D356","v":"NP29"},null,{"$f":"'FR-16(7)(v)-2 PROD Classified'!I356","v":0},0,0,0,0,0,0,0,0,0,0,0,0,0]
[22,null,{"$f":"'FR-16(7)(v)-1 Functional'!C357","v":"VACATION PAY ACCRUALS"},{"$f":"'FR-16(7)(v)-1 Functional'!D357","v":"A315"},null,{"$f":"'FR-16(7)(v)-2 PROD Classified'!I357","v":0},0,0,0,0,0,0,0,0,0,0,0,0,0]
[23,null,{"$f":"'FR-16(7)(v)-1 Functional'!C358","v":"DEMAND SIDE MANAGEMENT DEFERRAL"},{"$f":"'FR-16(7)(v)-1 Functional'!D358","v":"NP29"},null,{"$f":"'FR-16(7)(v)-2 PROD Classified'!I358","v":0},0,0,0,0,0,0,0,0,0,0,0,0,0]
[24,null,{"$f":"'FR-16(7)(v)-1 Functional'!C359","v":"OPERATING LEASE OBLIGATION"},{"$f":"'FR-16(7)(v)-1 Functional'!D359","v":"NP29"},null,{"$f":"'FR-16(7)(v)-2 PROD Classified'!I359","v":0},0,0,0,0,0,0,0,0,0,0,0,0,0]
[25,null,{"$f":"'FR-16(7)(v)-1 Functional'!C360","v":"INJURIES & DAMAGES"},{"$f":"'FR-16(7)(v)-1 Functional'!D360","v":"NP29"},null,{"$f":"'FR-16(7)(v)-2 PROD Classified'!I360","v":0},0,0,0,0,0,0,0,0,0,0,0,0,0]
[26,null,{"$f":"'FR-16(7)(v)-1 Functional'!C361","v":"  TOTAL ACCOUNT 190"},null,null,{"$f":"SUM(F337:F360)","v":0},{"$f":"SUM(G337:G360)","v":0},{"$f":"SUM(H337:H360)","v":0},{"$f":"SUM(I337:I360)","v":0},{"$f":"SUM(J337:J360)","v":0},0,0,0,0,0,0,{"$f":"SUM(Q337:Q360)","v":0},{"$f":"SUM(R337:R360)","v":0},{"$f":"SUM(S337:S360)","v":0}]
[27]
[28," OTHER"]
[29,null,{"$f":"'FR-16(7)(v)-1 Functional'!C364","v":"RESERVED FOR FUTURE USE"},{"$f":"'FR-16(7)(v)-1 Functional'!D364","v":"NP29"},null,{"$f":"'FR-16(7)(v)-2 PROD Classified'!I364","v":0},{"$f":"F364-SUM(H364:Q364)","v":0},{"$f":"ROUND(F364*VLOOKUP(D364,ALLOCTABLE_Prod_Customer,$H$10,FALSE),0)","v":0},{"$f":"ROUND(F364*VLOOKUP(D364,ALLOCTABLE_Prod_Customer,$I$10,FALSE),0)","v":0},{"$f":"ROUND(F364*VLOOKUP(D364,ALLOCTABLE_Prod_Customer,$J$10,FALSE),0)","v":0},{"$f":"ROUND(F364*VLOOKUP(D364,ALLOCTABLE_Prod_Customer,$K$10,FALSE),0)","v":0},{"$f":"ROUND(F364*VLOOKUP(D364,ALLOCTABLE_Prod_Customer,$L$10,FALSE),0)","v":0},{"$f":"ROUND(F364*VLOOKUP(D364,ALLOCTABLE_Prod_Customer,$M$10,FALSE),0)","v":0},{"$f":"ROUND(F364*VLOOKUP(D364,ALLOCTABLE_Prod_Customer,$N$10,FALSE),0)","v":0},{"$f":"ROUND(F364*VLOOKUP(D364,ALLOCTABLE_Prod_Customer,$O$10,FALSE),0)","v":0},{"$f":"ROUND(F364*VLOOKUP(D364,ALLOCTABLE_Prod_Customer,$P$10,FALSE),0)","v":0},{"$f":"ROUND(F364*VLOOKUP(D364,ALLOCTABLE_Prod_Customer,$Q$10,FALSE),0)","v":0},{"$f":"SUM(G364:Q364)","v":0},{"$f":"F364-R364","v":0}]
[30,null,{"$f":"'FR-16(7)(v)-1 Functional'!C365","v":"RATE CASE EXPENSE REGULATORY ASSET"},{"$f":"'FR-16(7)(v)-1 Functional'!D365","v":"NP29"},null,{"$f":"'FR-16(7)(v)-2 PROD Classified'!I365","v":0},{"$f":"F365-SUM(H365:Q365)","v":0},{"$f":"ROUND(F365*VLOOKUP(D365,ALLOCTABLE_Prod_Customer,$H$10,FALSE),0)","v":0},{"$f":"ROUND(F365*VLOOKUP(D365,ALLOCTABLE_Prod_Customer,$I$10,FALSE),0)","v":0},{"$f":"ROUND(F365*VLOOKUP(D365,ALLOCTABLE_Prod_Customer,$J$10,FALSE),0)","v":0},{"$f":"ROUND(F365*VLOOKUP(D365,ALLOCTABLE_Prod_Customer,$K$10,FALSE),0)","v":0},{"$f":"ROUND(F365*VLOOKUP(D365,ALLOCTABLE_Prod_Customer,$L$10,FALSE),0)","v":0},{"$f":"ROUND(F365*VLOOKUP(D365,ALLOCTABLE_Prod_Customer,$M$10,FALSE),0)","v":0},{"$f":"ROUND(F365*VLOOKUP(D365,ALLOCTABLE_Prod_Customer,$N$10,FALSE),0)","v":0},{"$f":"ROUND(F365*VLOOKUP(D365,ALLOCTABLE_Prod_Customer,$O$10,FALSE),0)","v":0},{"$f":"ROUND(F365*VLOOKUP(D365,ALLOCTABLE_Prod_Customer,$P$10,FALSE),0)","v":0},{"$f":"ROUND(F365*VLOOKUP(D365,ALLOCTABLE_Prod_Customer,$Q$10,FALSE),0)","v":0},{"$f":"SUM(G365:Q365)","v":0},{"$f":"F365-R365","v":0}]
[31,null,{"$f":"'FR-16(7)(v)-1 Functional'!C366","v":"RESERVED FOR FUTURE USE"},{"$f":"'FR-16(7)(v)-1 Functional'!D366","v":"NP29"},null,0,{"$f":"F366-SUM(H366:Q366)","v":0},{"$f":"ROUND(F366*VLOOKUP(D366,ALLOCTABLE_Prod_Customer,$H$10,FALSE),0)","v":0},{"$f":"ROUND(F366*VLOOKUP(D366,ALLOCTABLE_Prod_Customer,$I$10,FALSE),0)","v":0},{"$f":"ROUND(F366*VLOOKUP(D366,ALLOCTABLE_Prod_Customer,$J$10,FALSE),0)","v":0},{"$f":"ROUND(F366*VLOOKUP(D366,ALLOCTABLE_Prod_Customer,$K$10,FALSE),0)","v":0},{"$f":"ROUND(F366*VLOOKUP(D366,ALLOCTABLE_Prod_Customer,$L$10,FALSE),0)","v":0},{"$f":"ROUND(F366*VLOOKUP(D366,ALLOCTABLE_Prod_Customer,$M$10,FALSE),0)","v":0},{"$f":"ROUND(F366*VLOOKUP(D366,ALLOCTABLE_Prod_Customer,$N$10,FALSE),0)","v":0},{"$f":"ROUND(F366*VLOOKUP(D366,ALLOCTABLE_Prod_Customer,$O$10,FALSE),0)","v":0},{"$f":"ROUND(F366*VLOOKUP(D366,ALLOCTABLE_Prod_Customer,$P$10,FALSE),0)","v":0},{"$f":"ROUND(F366*VLOOKUP(D366,ALLOCTABLE_Prod_Customer,$Q$10,FALSE),0)","v":0},{"$f":"SUM(G366:Q366)","v":0},{"$f":"F366-R366","v":0}]
[32,null,{"$f":"'FR-16(7)(v)-1 Functional'!C367","v":"  OTHER"},null,null,{"$f":"SUM(F364:F366)","v":0},{"$f":"SUM(G363:G366)","v":0},0,0,{"$f":"SUM(J363:J366)","v":0},0,0,0,0,0,0,0,0,0]
[33,null,null,null,null," "]
[34,"CONSTRUCTION WORK IN PROGRESS"]
[35,null,"PRODUCTION",{"$f":"'FR-16(7)(v)-1 Functional'!D370","v":"P129"},null,{"$f":"'FR-16(7)(v)-2 PROD Classified'!I370","v":0},{"$f":"F370-SUM(H370:Q370)","v":0},{"$f":"ROUND(F370*VLOOKUP(D370,ALLOCTABLE_Prod_Customer,$H$10,FALSE),0)","v":0},{"$f":"ROUND(F370*VLOOKUP(D370,ALLOCTABLE_Prod_Customer,$I$10,FALSE),0)","v":0},{"$f":"ROUND(F370*VLOOKUP(D370,ALLOCTABLE_Prod_Customer,$J$10,FALSE),0)","v":0},{"$f":"ROUND(F370*VLOOKUP(D370,ALLOCTABLE_Prod_Customer,$K$10,FALSE),0)","v":0},{"$f":"ROUND(F370*VLOOKUP(D370,ALLOCTABLE_Prod_Customer,$L$10,FALSE),0)","v":0},{"$f":"ROUND(F370*VLOOKUP(D370,ALLOCTABLE_Prod_Customer,$M$10,FALSE),0)","v":0},{"$f":"ROUND(F370*VLOOKUP(D370,ALLOCTABLE_Prod_Customer,$N$10,FALSE),0)","v":0},{"$f":"ROUND(F370*VLOOKUP(D370,ALLOCTABLE_Prod_Customer,$O$10,FALSE),0)","v":0},{"$f":"ROUND(F370*VLOOKUP(D370,ALLOCTABLE_Prod_Customer,$P$10,FALSE),0)","v":0},{"$f":"ROUND(F370*VLOOKUP(D370,ALLOCTABLE_Prod_Customer,$Q$10,FALSE),0)","v":0},{"$f":"SUM(G370:Q370)","v":0},{"$f":"F370-R370","v":0}]
[36,null,"TRANSMISSION",{"$f":"'FR-16(7)(v)-1 Functional'!D371","v":"T129"},null,{"$f":"'FR-16(7)(v)-2 PROD Classified'!I371","v":0},{"$f":"F371-SUM(H371:Q371)","v":0},{"$f":"ROUND(F371*VLOOKUP(D371,ALLOCTABLE_Prod_Customer,$H$10,FALSE),0)","v":0},{"$f":"ROUND(F371*VLOOKUP(D371,ALLOCTABLE_Prod_Customer,$I$10,FALSE),0)","v":0},{"$f":"ROUND(F371*VLOOKUP(D371,ALLOCTABLE_Prod_Customer,$J$10,FALSE),0)","v":0},{"$f":"ROUND(F371*VLOOKUP(D371,ALLOCTABLE_Prod_Customer,$K$10,FALSE),0)","v":0},{"$f":"ROUND(F371*VLOOKUP(D371,ALLOCTABLE_Prod_Customer,$L$10,FALSE),0)","v":0},{"$f":"ROUND(F371*VLOOKUP(D371,ALLOCTABLE_Prod_Customer,$M$10,FALSE),0)","v":0},{"$f":"ROUND(F371*VLOOKUP(D371,ALLOCTABLE_Prod_Customer,$N$10,FALSE),0)","v":0},{"$f":"ROUND(F371*VLOOKUP(D371,ALLOCTABLE_Prod_Customer,$O$10,FALSE),0)","v":0},{"$f":"ROUND(F371*VLOOKUP(D371,ALLOCTABLE_Prod_Customer,$P$10,FALSE),0)","v":0},{"$f":"ROUND(F371*VLOOKUP(D371,ALLOCTABLE_Prod_Customer,$Q$10,FALSE),0)","v":0},{"$f":"SUM(G371:Q371)","v":0},0]
[37,null,"DISTRIBUTION",{"$f":"'FR-16(7)(v)-1 Functional'!D372","v":"D149"},null,{"$f":"'FR-16(7)(v)-2 PROD Classified'!I372","v":0},{"$f":"F372-SUM(H372:Q372)","v":0},{"$f":"ROUND(F372*VLOOKUP(D372,ALLOCTABLE_Prod_Customer,$H$10,FALSE),0)","v":0},{"$f":"ROUND(F372*VLOOKUP(D372,ALLOCTABLE_Prod_Customer,$I$10,FALSE),0)","v":0},{"$f":"ROUND(F372*VLOOKUP(D372,ALLOCTABLE_Prod_Customer,$J$10,FALSE),0)","v":0},{"$f":"ROUND(F372*VLOOKUP(D372,ALLOCTABLE_Prod_Customer,$K$10,FALSE),0)","v":0},{"$f":"ROUND(F372*VLOOKUP(D372,ALLOCTABLE_Prod_Customer,$L$10,FALSE),0)","v":0},{"$f":"ROUND(F372*VLOOKUP(D372,ALLOCTABLE_Prod_Customer,$M$10,FALSE),0)","v":0},{"$f":"ROUND(F372*VLOOKUP(D372,ALLOCTABLE_Prod_Customer,$N$10,FALSE),0)","v":0},{"$f":"ROUND(F372*VLOOKUP(D372,ALLOCTABLE_Prod_Customer,$O$10,FALSE),0)","v":0},{"$f":"ROUND(F372*VLOOKUP(D372,ALLOCTABLE_Prod_Customer,$P$10,FALSE),0)","v":0},{"$f":"ROUND(F372*VLOOKUP(D372,ALLOCTABLE_Prod_Customer,$Q$10,FALSE),0)","v":0},{"$f":"SUM(G372:Q372)","v":0},0]
[38,null,"COMMON",{"$f":"'FR-16(7)(v)-1 Functional'!D373","v":"C129"},null,{"$f":"'FR-16(7)(v)-2 PROD Classified'!I373","v":0},{"$f":"F373-SUM(H373:Q373)","v":0},{"$f":"ROUND(F373*VLOOKUP(D373,ALLOCTABLE_Prod_Customer,$H$10,FALSE),0)","v":0},{"$f":"ROUND(F373*VLOOKUP(D373,ALLOCTABLE_Prod_Customer,$I$10,FALSE),0)","v":0},{"$f":"ROUND(F373*VLOOKUP(D373,ALLOCTABLE_Prod_Customer,$J$10,FALSE),0)","v":0},{"$f":"ROUND(F373*VLOOKUP(D373,ALLOCTABLE_Prod_Customer,$K$10,FALSE),0)","v":0},{"$f":"ROUND(F373*VLOOKUP(D373,ALLOCTABLE_Prod_Customer,$L$10,FALSE),0)","v":0},{"$f":"ROUND(F373*VLOOKUP(D373,ALLOCTABLE_Prod_Customer,$M$10,FALSE),0)","v":0},{"$f":"ROUND(F373*VLOOKUP(D373,ALLOCTABLE_Prod_Customer,$N$10,FALSE),0)","v":0},{"$f":"ROUND(F373*VLOOKUP(D373,ALLOCTABLE_Prod_Customer,$O$10,FALSE),0)","v":0},{"$f":"ROUND(F373*VLOOKUP(D373,ALLOCTABLE_Prod_Customer,$P$10,FALSE),0)","v":0},{"$f":"ROUND(F373*VLOOKUP(D373,ALLOCTABLE_Prod_Customer,$Q$10,FALSE),0)","v":0},{"$f":"SUM(G373:Q373)","v":0},0]
[39,null,"GENERAL",{"$f":"'FR-16(7)(v)-1 Functional'!D374","v":"G129"},null,{"$f":"'FR-16(7)(v)-2 PROD Classified'!I374","v":0},{"$f":"F374-SUM(H374:Q374)","v":0},{"$f":"ROUND(F374*VLOOKUP(D374,ALLOCTABLE_Prod_Customer,$H$10,FALSE),0)","v":0},{"$f":"ROUND(F374*VLOOKUP(D374,ALLOCTABLE_Prod_Customer,$I$10,FALSE),0)","v":0},{"$f":"ROUND(F374*VLOOKUP(D374,ALLOCTABLE_Prod_Customer,$J$10,FALSE),0)","v":0},{"$f":"ROUND(F374*VLOOKUP(D374,ALLOCTABLE_Prod_Customer,$K$10,FALSE),0)","v":0},{"$f":"ROUND(F374*VLOOKUP(D374,ALLOCTABLE_Prod_Customer,$L$10,FALSE),0)","v":0},{"$f":"ROUND(F374*VLOOKUP(D374,ALLOCTABLE_Prod_Customer,$M$10,FALSE),0)","v":0},{"$f":"ROUND(F374*VLOOKUP(D374,ALLOCTABLE_Prod_Customer,$N$10,FALSE),0)","v":0},{"$f":"ROUND(F374*VLOOKUP(D374,ALLOCTABLE_Prod_Customer,$O$10,FALSE),0)","v":0},{"$f":"ROUND(F374*VLOOKUP(D374,ALLOCTABLE_Prod_Customer,$P$10,FALSE),0)","v":0},{"$f":"ROUND(F374*VLOOKUP(D374,ALLOCTABLE_Prod_Customer,$Q$10,FALSE),0)","v":0},{"$f":"SUM(G374:Q374)","v":0},0]
[40,null,"TOTAL CONSTRUCTION WORK IN PROGRESS",null,null,{"$f":"SUM(F370:F374)","v":0},0,0,0,0,0,0,0,0,0,0,0,0,0]
[41]
[42,{"$f":"'FR-16(7)(v)-1 Functional'!B377","v":"TOTAL ADDITIVE RATE BASE ADJUSTMENTS"},null,null,null,{"$f":"F361+F367+F375","v":0},{"$f":"G361+G367+G375","v":0},{"$f":"H361+H367+H375","v":0},{"$f":"I361+I367+I375","v":0},{"$f":"J361+J367+J375","v":0},0,0,0,0,0,0,{"$f":"Q361+Q367+Q375","v":0},{"$f":"R361+R367+R375","v":0},{"$f":"S361+S367+S375","v":0}]
[]
[{"$f":"co_name","v":"DUKE ENERGY KENTUCKY, INC."},null,null,null,null,null,null,null,null,null,null,null,null,null,null,null,null,{"$f":"R1","v":"FR-16(7)(v)-5"}]
[{"$f":"$A$2","v":"PRODUCTION CUSTOMER ALLOCATED - ELECTRIC COST OF SERVICE"},null,null,null,null,null,null,null,null,null,null,null,null,null,null,null,null,{"$f":"R2","v":"WITNESS RESPONSIBLE:"}]
[{"$f":"case_name","v":"CASE NO: 2019-00271"},null,null,null,null,null,null,null,null,null,null,null,null,null,null,null,null,{"$f":"Witness","v":"JAMES E. ZIOLKOWSKI"}]
[{"$f":"data_filing","v":"DATA: 12 MONTHS ACTUAL  & 0 MONTHS ESTIMATED"},null,null,null,null,null,null,null,null,null,null,null,null,null,null,null,null,{"$f":"\"PAGE \"&Pages-11&\" OF \"&Pages","v":"PAGE 7 OF 18"}]
[{"$f":"type","v":"TYPE OF FILING: \"X\" ORIGINAL   UPDATED    REVISED  "}]
[]
[null,null,null,null,null,{"$f":"F$7","v":"TOTAL"},null,{"$f":"H$7","v":"DS"},{"$f":"I$7","v":"GSFL"},{"$f":"J$7","v":"EH"},{"$f":"K$7","v":"SP"},"DT SEC","DT PRI","DP","TT",null,"OTHER"]
["LINE",null,null,null,null,{"$f":"F$8","v":"PRODUCTION"},{"$f":"G$8","v":"RS"},{"$f":"H$8","v":"SECONDARY"},{"$f":"I$8","v":"SECONDARY"},{"$f":"J$8","v":"SECONDARY"},{"$f":"K$8","v":"SECONDARY"},"SECONDARY","PRIMARY","PRIMARY","TRANSMISSION","LT","WATER",{"$f":"R8","v":"TOTAL"},"ALL"]
["NO.","WORKING CAPITAL",null,"ALLO",null,{"$f":"F$9","v":"CUSTOMER"},{"$f":"G$9","v":"RESIDENTIAL"},{"$f":"H$9","v":"DISTRIBUTION"},{"$f":"I$9","v":"DISTRIBUTION"},{"$f":"J$9","v":"DISTRIBUTION"},{"$f":"K$9","v":"DISTRIBUTION"},"DISTRIBUTION","DISTRIBUTION","DISTRIBUTION","TIME OF DAY","LIGHTING","PUMPING",{"$f":"R9","v":"AT ISSUE"},"OTHER"]
[null,null,"Schedule 5.2",null,null,null,{"$f":"G$10","v":3},{"$f":"H$10","v":4},{"$f":"I$10","v":5},{"$f":"J$10","v":6},{"$f":"K$10","v":7},8,9,10,11,12,13,null," "]
[]
[1,"NET ORIGINAL COST RATE BASE",null,null,null,{"$f":"F277-F324+F377","v":0},{"$f":"G277-G324+G377","v":0},{"$f":"H277-H324+H377","v":0},{"$f":"I277-I324+I377","v":0},{"$f":"J277-J324+J377","v":0},0,0,0,0,0,0,{"$f":"Q277-Q324+Q377","v":0},{"$f":"R277-R324+R377","v":0},{"$f":"S277-S324+S377","v":0}]
[2]
[3,"WORKING CAPITAL"]
[4]
[5,"PLANT MATERIALS & SUPPLIES"]
[6,null,"OTHER MATERIALS & SUPPLIES",{"$f":"'FR-16(7)(v)-1 Functional'!D395","v":"PD29"},null,{"$f":"'FR-16(7)(v)-2 PROD Classified'!I395","v":0},{"$f":"F395-SUM(H395:Q395)","v":0},{"$f":"ROUND(F395*VLOOKUP(D395,ALLOCTABLE_Prod_Customer,$H$10,FALSE),0)","v":0},{"$f":"ROUND(F395*VLOOKUP(D395,ALLOCTABLE_Prod_Customer,$I$10,FALSE),0)","v":0},{"$f":"ROUND(F395*VLOOKUP(D395,ALLOCTABLE_Prod_Customer,$J$10,FALSE),0)","v":0},{"$f":"ROUND(F395*VLOOKUP(D395,ALLOCTABLE_Prod_Customer,$K$10,FALSE),0)","v":0},{"$f":"ROUND(F395*VLOOKUP(D395,ALLOCTABLE_Prod_Customer,$L$10,FALSE),0)","v":0},{"$f":"ROUND(F395*VLOOKUP(D395,ALLOCTABLE_Prod_Customer,$M$10,FALSE),0)","v":0},{"$f":"ROUND(F395*VLOOKUP(D395,ALLOCTABLE_Prod_Customer,$N$10,FALSE),0)","v":0},{"$f":"ROUND(F395*VLOOKUP(D395,ALLOCTABLE_Prod_Customer,$O$10,FALSE),0)","v":0},{"$f":"ROUND(F395*VLOOKUP(D395,ALLOCTABLE_Prod_Customer,$P$10,FALSE),0)","v":0},{"$f":"ROUND(F395*VLOOKUP(D395,ALLOCTABLE_Prod_Customer,$Q$10,FALSE),0)","v":0},{"$f":"SUM(G395:Q395)","v":0},{"$f":"F395-R395","v":0}]
[7,null,{"$f":"'FR-16(7)(v)-1 Functional'!C396","v":"FUEL"},{"$f":"'FR-16(7)(v)-1 Functional'!D396","v":"K301"},null,{"$f":"'FR-16(7)(v)-2 PROD Classified'!I396","v":0},{"$f":"F396-SUM(H396:Q396)","v":0},{"$f":"ROUND(F396*VLOOKUP(D396,ALLOCTABLE_Prod_Customer,$H$10,FALSE),0)","v":0},{"$f":"ROUND(F396*VLOOKUP(D396,ALLOCTABLE_Prod_Customer,$I$10,FALSE),0)","v":0},{"$f":"ROUND(F396*VLOOKUP(D396,ALLOCTABLE_Prod_Customer,$J$10,FALSE),0)","v":0},{"$f":"ROUND(F396*VLOOKUP(D396,ALLOCTABLE_Prod_Customer,$K$10,FALSE),0)","v":0},{"$f":"ROUND(F396*VLOOKUP(D396,ALLOCTABLE_Prod_Customer,$L$10,FALSE),0)","v":0},{"$f":"ROUND(F396*VLOOKUP(D396,ALLOCTABLE_Prod_Customer,$M$10,FALSE),0)","v":0},{"$f":"ROUND(F396*VLOOKUP(D396,ALLOCTABLE_Prod_Customer,$N$10,FALSE),0)","v":0},{"$f":"ROUND(F396*VLOOKUP(D396,ALLOCTABLE_Prod_Customer,$O$10,FALSE),0)","v":0},{"$f":"ROUND(F396*VLOOKUP(D396,ALLOCTABLE_Prod_Customer,$P$10,FALSE),0)","v":0},{"$f":"ROUND(F396*VLOOKUP(D396,ALLOCTABLE_Prod_Customer,$Q$10,FALSE),0)","v":0},{"$f":"SUM(G396:Q396)","v":0},{"$f":"F396-R396","v":0}]
[8,null,{"$f":"'FR-16(7)(v)-1 Functional'!C397","v":"EMISSION ALLOWANCES"},{"$f":"'FR-16(7)(v)-1 Functional'!D397","v":"K301"},null,{"$f":"'FR-16(7)(v)-2 PROD Classified'!I397","v":0},{"$f":"F397-SUM(H397:Q397)","v":0},{"$f":"ROUND(F397*VLOOKUP(D397,ALLOCTABLE_Prod_Customer,$H$10,FALSE),0)","v":0},{"$f":"ROUND(F397*VLOOKUP(D397,ALLOCTABLE_Prod_Customer,$I$10,FALSE),0)","v":0},{"$f":"ROUND(F397*VLOOKUP(D397,ALLOCTABLE_Prod_Customer,$J$10,FALSE),0)","v":0},{"$f":"ROUND(F397*VLOOKUP(D397,ALLOCTABLE_Prod_Customer,$K$10,FALSE),0)","v":0},{"$f":"ROUND(F397*VLOOKUP(D397,ALLOCTABLE_Prod_Customer,$L$10,FALSE),0)","v":0},{"$f":"ROUND(F397*VLOOKUP(D397,ALLOCTABLE_Prod_Customer,$M$10,FALSE),0)","v":0},{"$f":"ROUND(F397*VLOOKUP(D397,ALLOCTABLE_Prod_Customer,$N$10,FALSE),0)","v":0},{"$f":"ROUND(F397*VLOOKUP(D397,ALLOCTABLE_Prod_Customer,$O$10,FALSE),0)","v":0},{"$f":"ROUND(F397*VLOOKUP(D397,ALLOCTABLE_Prod_Customer,$P$10,FALSE),0)","v":0},{"$f":"ROUND(F397*VLOOKUP(D397,ALLOCTABLE_Prod_Customer,$Q$10,FALSE),0)","v":0},{"$f":"SUM(G397:Q397)","v":0},{"$f":"F397-R397","v":0}]
[9,null,{"$f":"'FR-16(7)(v)-1 Functional'!C398","v":"  TOTAL PLANT MATS. & SUPPLIES"},null,null,{"$f":"SUM(F394:F397)","v":0},{"$f":"SUM(G394:G397)","v":0},{"$f":"SUM(H394:H397)","v":0},{"$f":"SUM(I394:I397)","v":0},{"$f":"SUM(J394:J397)","v":0},0,0,0,0,0,0,{"$f":"SUM(Q394:Q397)","v":0},{"$f":"SUM(R394:R397)","v":0},{"$f":"SUM(S394:S397)","v":0}]
[10,"TOTAL MATERIALS & SUPPLIES",null,null,null,{"$f":"F398","v":0},0,0,0,{"$f":"J398","v":0},0,0,0,0,0,0,0,0,0]
[11]
[12,"PREPAYMENTS"]
[13,null,{"$f":"'FR-16(7)(v)-1 Functional'!C402","v":"INSURANCE GENERAL"},{"$f":"'FR-16(7)(v)-1 Functional'!D402","v":"NP29"},null,{"$f":"'FR-16(7)(v)-2 PROD Classified'!I402","v":0},{"$f":"F402-SUM(H402:Q402)","v":0},{"$f":"ROUND(F402*VLOOKUP(D402,ALLOCTABLE_Prod_Customer,$H$10,FALSE),0)","v":0},{"$f":"ROUND(F402*VLOOKUP(D402,ALLOCTABLE_Prod_Customer,$I$10,FALSE),0)","v":0},{"$f":"ROUND(F402*VLOOKUP(D402,ALLOCTABLE_Prod_Customer,$J$10,FALSE),0)","v":0},{"$f":"ROUND(F402*VLOOKUP(D402,ALLOCTABLE_Prod_Customer,$K$10,FALSE),0)","v":0},{"$f":"ROUND(F402*VLOOKUP(D402,ALLOCTABLE_Prod_Customer,$L$10,FALSE),0)","v":0},{"$f":"ROUND(F402*VLOOKUP(D402,ALLOCTABLE_Prod_Customer,$M$10,FALSE),0)","v":0},{"$f":"ROUND(F402*VLOOKUP(D402,ALLOCTABLE_Prod_Customer,$N$10,FALSE),0)","v":0},{"$f":"ROUND(F402*VLOOKUP(D402,ALLOCTABLE_Prod_Customer,$O$10,FALSE),0)","v":0},{"$f":"ROUND(F402*VLOOKUP(D402,ALLOCTABLE_Prod_Customer,$P$10,FALSE),0)","v":0},{"$f":"ROUND(F402*VLOOKUP(D402,ALLOCTABLE_Prod_Customer,$Q$10,FALSE),0)","v":0},{"$f":"SUM(G402:Q402)","v":0},{"$f":"F402-R402","v":0}]
[14,null,{"$f":"'FR-16(7)(v)-1 Functional'!C403","v":"EXCISE TAX"},{"$f":"'FR-16(7)(v)-1 Functional'!D403","v":"NP29"},null,{"$f":"'FR-16(7)(v)-2 PROD Classified'!I403","v":0},{"$f":"F403-SUM(H403:Q403)","v":0},{"$f":"ROUND(F403*VLOOKUP(D403,ALLOCTABLE_Prod_Customer,$H$10,FALSE),0)","v":0},{"$f":"ROUND(F403*VLOOKUP(D403,ALLOCTABLE_Prod_Customer,$I$10,FALSE),0)","v":0},{"$f":"ROUND(F403*VLOOKUP(D403,ALLOCTABLE_Prod_Customer,$J$10,FALSE),0)","v":0},{"$f":"ROUND(F403*VLOOKUP(D403,ALLOCTABLE_Prod_Customer,$K$10,FALSE),0)","v":0},{"$f":"ROUND(F403*VLOOKUP(D403,ALLOCTABLE_Prod_Customer,$L$10,FALSE),0)","v":0},{"$f":"ROUND(F403*VLOOKUP(D403,ALLOCTABLE_Prod_Customer,$M$10,FALSE),0)","v":0},{"$f":"ROUND(F403*VLOOKUP(D403,ALLOCTABLE_Prod_Customer,$N$10,FALSE),0)","v":0},{"$f":"ROUND(F403*VLOOKUP(D403,ALLOCTABLE_Prod_Customer,$O$10,FALSE),0)","v":0},{"$f":"ROUND(F403*VLOOKUP(D403,ALLOCTABLE_Prod_Customer,$P$10,FALSE),0)","v":0},{"$f":"ROUND(F403*VLOOKUP(D403,ALLOCTABLE_Prod_Customer,$Q$10,FALSE),0)","v":0},{"$f":"SUM(G403:Q403)","v":0},{"$f":"F403-R403","v":0}]
[15,null,{"$f":"'FR-16(7)(v)-1 Functional'!C404","v":"COLLATERAL ASSET"},{"$f":"'FR-16(7)(v)-1 Functional'!D404","v":"K301"},null,{"$f":"'FR-16(7)(v)-2 PROD Classified'!I404","v":0},{"$f":"F404-SUM(H404:Q404)","v":0},{"$f":"ROUND(F404*VLOOKUP(D404,ALLOCTABLE_Prod_Customer,$H$10,FALSE),0)","v":0},{"$f":"ROUND(F404*VLOOKUP(D404,ALLOCTABLE_Prod_Customer,$I$10,FALSE),0)","v":0},{"$f":"ROUND(F404*VLOOKUP(D404,ALLOCTABLE_Prod_Customer,$J$10,FALSE),0)","v":0},{"$f":"ROUND(F404*VLOOKUP(D404,ALLOCTABLE_Prod_Customer,$K$10,FALSE),0)","v":0},{"$f":"ROUND(F404*VLOOKUP(D404,ALLOCTABLE_Prod_Customer,$L$10,FALSE),0)","v":0},{"$f":"ROUND(F404*VLOOKUP(D404,ALLOCTABLE_Prod_Customer,$M$10,FALSE),0)","v":0},{"$f":"ROUND(F404*VLOOKUP(D404,ALLOCTABLE_Prod_Customer,$N$10,FALSE),0)","v":0},{"$f":"ROUND(F404*VLOOKUP(D404,ALLOCTABLE_Prod_Customer,$O$10,FALSE),0)","v":0},{"$f":"ROUND(F404*VLOOKUP(D404,ALLOCTABLE_Prod_Customer,$P$10,FALSE),0)","v":0},{"$f":"ROUND(F404*VLOOKUP(D404,ALLOCTABLE_Prod_Customer,$Q$10,FALSE),0)","v":0},{"$f":"SUM(G404:Q404)","v":0},{"$f":"F404-R404","v":0}]
[16,null,{"$f":"'FR-16(7)(v)-1 Functional'!C405","v":"  TOTAL PREPAYMENTS"},null,null,{"$f":"SUM(F401:F404)","v":0},{"$f":"SUM(G401:G404)","v":0},{"$f":"SUM(H401:H404)","v":0},{"$f":"SUM(I401:I404)","v":0},{"$f":"SUM(J401:J404)","v":0},0,0,0,0,0,0,{"$f":"SUM(Q401:Q404)","v":0},{"$f":"SUM(R401:R404)","v":0},{"$f":"SUM(S401:S404)","v":0}]
[17]
[18,"AUTO CALC (O&M-ELECTRIC FUEL COST)/8",null,null,null,{"$f":"IF(WorkingCap=\"No\",0,ROUND((F549-F447-F448)/8,0))","v":0},{"$f":"F407-SUM(H407:Q407)","v":0},{"$f":"IF(WorkingCap=\"No\",0,ROUND((H549-H447-H448)/8,0))","v":0},0,0,0,0,0,0,0,0,0,{"$f":"SUM(G407:Q407)","v":0},{"$f":"F407-R407","v":0}]
[19,"  TOTAL WORKING CASH",null,null,null,{"$f":"F407","v":0},0,0,0,{"$f":"J407","v":0},0,0,0,0,0,0,0,0,0]
[20]
[21,"MISCELLANEOUS WORKING CAPITAL"]
[22,null,{"$f":"'FR-16(7)(v)-1 Functional'!C411","v":"RESERVED FOR FUTURE USE"},{"$f":"'FR-16(7)(v)-1 Functional'!D411","v":"K301"},null,{"$f":"'FR-16(7)(v)-2 PROD Classified'!I411","v":0},{"$f":"F411-SUM(H411:Q411)","v":0},{"$f":"ROUND(F411*VLOOKUP(D411,ALLOCTABLE_Prod_Customer,$H$10,FALSE),0)","v":0},{"$f":"ROUND(F411*VLOOKUP(D411,ALLOCTABLE_Prod_Customer,$I$10,FALSE),0)","v":0},{"$f":"ROUND(F411*VLOOKUP(D411,ALLOCTABLE_Prod_Customer,$J$10,FALSE),0)","v":0},{"$f":"ROUND(F411*VLOOKUP(D411,ALLOCTABLE_Prod_Customer,$K$10,FALSE),0)","v":0},{"$f":"ROUND(F411*VLOOKUP(D411,ALLOCTABLE_Prod_Customer,$L$10,FALSE),0)","v":0},{"$f":"ROUND(F411*VLOOKUP(D411,ALLOCTABLE_Prod_Customer,$M$10,FALSE),0)","v":0},{"$f":"ROUND(F411*VLOOKUP(D411,ALLOCTABLE_Prod_Customer,$N$10,FALSE),0)","v":0},{"$f":"ROUND(F411*VLOOKUP(D411,ALLOCTABLE_Prod_Customer,$O$10,FALSE),0)","v":0},{"$f":"ROUND(F411*VLOOKUP(D411,ALLOCTABLE_Prod_Customer,$P$10,FALSE),0)","v":0},{"$f":"ROUND(F411*VLOOKUP(D411,ALLOCTABLE_Prod_Customer,$Q$10,FALSE),0)","v":0},{"$f":"SUM(G411:Q411)","v":0},{"$f":"F411-R411","v":0}]
[23,null,{"$f":"'FR-16(7)(v)-1 Functional'!C412","v":"PIPP UNCOLLECTIBLES"},{"$f":"'FR-16(7)(v)-1 Functional'!D412","v":"A315"},null,{"$f":"'FR-16(7)(v)-2 PROD Classified'!I412","v":0},{"$f":"F412-SUM(H412:Q412)","v":0},{"$f":"ROUND(F412*VLOOKUP(D412,ALLOCTABLE_Prod_Customer,$H$10,FALSE),0)","v":0},{"$f":"ROUND(F412*VLOOKUP(D412,ALLOCTABLE_Prod_Customer,$I$10,FALSE),0)","v":0},{"$f":"ROUND(F412*VLOOKUP(D412,ALLOCTABLE_Prod_Customer,$J$10,FALSE),0)","v":0},{"$f":"ROUND(F412*VLOOKUP(D412,ALLOCTABLE_Prod_Customer,$K$10,FALSE),0)","v":0},{"$f":"ROUND(F412*VLOOKUP(D412,ALLOCTABLE_Prod_Customer,$L$10,FALSE),0)","v":0},{"$f":"ROUND(F412*VLOOKUP(D412,ALLOCTABLE_Prod_Customer,$M$10,FALSE),0)","v":0},{"$f":"ROUND(F412*VLOOKUP(D412,ALLOCTABLE_Prod_Customer,$N$10,FALSE),0)","v":0},{"$f":"ROUND(F412*VLOOKUP(D412,ALLOCTABLE_Prod_Customer,$O$10,FALSE),0)","v":0},{"$f":"ROUND(F412*VLOOKUP(D412,ALLOCTABLE_Prod_Customer,$P$10,FALSE),0)","v":0},{"$f":"ROUND(F412*VLOOKUP(D412,ALLOCTABLE_Prod_Customer,$Q$10,FALSE),0)","v":0},{"$f":"SUM(G412:Q412)","v":0},{"$f":"F412-R412","v":0}]
[24,null,{"$f":"'FR-16(7)(v)-1 Functional'!C413","v":"RESERVED FOR FUTURE USE"},{"$f":"'FR-16(7)(v)-1 Functional'!D413","v":"D249"},null,{"$f":"'FR-16(7)(v)-2 PROD Classified'!I413","v":0},{"$f":"F413-SUM(H413:Q413)","v":0},{"$f":"ROUND(F413*VLOOKUP(D413,ALLOCTABLE_Prod_Customer,$H$10,FALSE),0)","v":0},{"$f":"ROUND(F413*VLOOKUP(D413,ALLOCTABLE_Prod_Customer,$I$10,FALSE),0)","v":0},{"$f":"ROUND(F413*VLOOKUP(D413,ALLOCTABLE_Prod_Customer,$J$10,FALSE),0)","v":0},{"$f":"ROUND(F413*VLOOKUP(D413,ALLOCTABLE_Prod_Customer,$K$10,FALSE),0)","v":0},{"$f":"ROUND(F413*VLOOKUP(D413,ALLOCTABLE_Prod_Customer,$L$10,FALSE),0)","v":0},{"$f":"ROUND(F413*VLOOKUP(D413,ALLOCTABLE_Prod_Customer,$M$10,FALSE),0)","v":0},{"$f":"ROUND(F413*VLOOKUP(D413,ALLOCTABLE_Prod_Customer,$N$10,FALSE),0)","v":0},{"$f":"ROUND(F413*VLOOKUP(D413,ALLOCTABLE_Prod_Customer,$O$10,FALSE),0)","v":0},{"$f":"ROUND(F413*VLOOKUP(D413,ALLOCTABLE_Prod_Customer,$P$10,FALSE),0)","v":0},{"$f":"ROUND(F413*VLOOKUP(D413,ALLOCTABLE_Prod_Customer,$Q$10,FALSE),0)","v":0},{"$f":"SUM(G413:Q413)","v":0},{"$f":"F413-R413","v":0}]
[25,null,{"$f":"'FR-16(7)(v)-1 Functional'!C414","v":"  TOTAL MISC WORK CAPITAL"},null,null,{"$f":"SUM(F410:F413)","v":0},{"$f":"SUM(G410:G413)","v":0},{"$f":"SUM(H410:H413)","v":0},{"$f":"SUM(I410:I413)","v":0},{"$f":"SUM(J410:J413)","v":0},0,0,0,0,0,0,{"$f":"SUM(Q410:Q413)","v":0},{"$f":"SUM(R410:R413)","v":0},{"$f":"SUM(S410:S413)","v":0}]
[26]
[27,"TOTAL WORKING CAPITAL",null,null,null,{"$f":"F399+F405+F408+F414","v":0},{"$f":"G399+G405+G408+G414","v":0},{"$f":"H399+H405+H408+H414","v":0},{"$f":"I399+I405+I408+I414","v":0},{"$f":"J399+J405+J408+J414","v":0},0,0,0,0,0,0,{"$f":"Q399+Q405+Q408+Q414","v":0},{"$f":"R399+R405+R408+R414","v":0},{"$f":"S399+S405+S408+S414","v":0}]
[28,"PRELIMINARY SUMMARY"]
[29,null,{"$f":"'FR-16(7)(v)-1 Functional'!C418","v":"TOTAL ACCUMULATED DEFERRED INCOME TAXES"},null,null,{"$f":"-F324","v":0},{"$f":"-G324","v":0},{"$f":"-H324","v":0},{"$f":"-I324","v":0},{"$f":"-J324","v":0},0,0,0,0,0,0,{"$f":"-Q324","v":0},{"$f":"-R324","v":0},{"$f":"-S324","v":0}]
[30,null,{"$f":"'FR-16(7)(v)-1 Functional'!C419","v":"TOTAL OTHER ACCUMULATED DEFERRED INCOME TAXES"},null,null,{"$f":"F377","v":0},{"$f":"G377","v":0},{"$f":"H377","v":0},{"$f":"I377","v":0},{"$f":"J377","v":0},0,0,0,0,0,0,{"$f":"Q377","v":0},{"$f":"R377","v":0},{"$f":"S377","v":0}]
[31,null,{"$f":"'FR-16(7)(v)-1 Functional'!C420","v":"TOTAL WORKING CAPITAL"},null,null,{"$f":"F416","v":0},{"$f":"G416","v":0},{"$f":"H416","v":0},{"$f":"I416","v":0},{"$f":"J416","v":0},0,0,0,0,0,0,{"$f":"Q416","v":0},{"$f":"R416","v":0},{"$f":"S416","v":0}]
[32,null,{"$f":"'FR-16(7)(v)-1 Functional'!C421","v":"  TOTAL RATE BASE ADJUSTMENTS"},null,null,{"$f":"SUM(F417:F420)","v":0},{"$f":"SUM(G417:G420)","v":0},{"$f":"SUM(H417:H420)","v":0},{"$f":"SUM(I417:I420)","v":0},{"$f":"SUM(J417:J420)","v":0},0,0,0,0,0,0,{"$f":"SUM(Q417:Q420)","v":0},{"$f":"SUM(R417:R420)","v":0},{"$f":"SUM(S417:S420)","v":0}]
[33]
[34,"RATE BASE CALCULATION"]
[35,null,{"$f":"'FR-16(7)(v)-1 Functional'!C424","v":"NET ELECTRIC PLANT IN SERVICE"},null,null,{"$f":"F277","v":0},{"$f":"G277","v":0},{"$f":"H277","v":0},{"$f":"I277","v":0},{"$f":"J277","v":0},0,0,0,0,0,0,{"$f":"Q277","v":0},{"$f":"R277","v":0},{"$f":"S277","v":0}]
[36,null,{"$f":"'FR-16(7)(v)-1 Functional'!C425","v":"TOTAL RATE BASE ADJUSTMENTS"},null,null,{"$f":"F421","v":0},{"$f":"G421","v":0},{"$f":"H421","v":0},{"$f":"I421","v":0},{"$f":"J421","v":0},0,0,0,0,0,0,{"$f":"Q421","v":0},{"$f":"R421","v":0},{"$f":"S421","v":0}]
[37,null,{"$f":"'FR-16(7)(v)-1 Functional'!C426","v":"  TOTAL RATE BASE"},null,null,{"$f":"SUM(F423:F425)","v":0},{"$f":"SUM(G423:G425)","v":0},{"$f":"SUM(H423:H425)","v":0},{"$f":"SUM(I423:I425)","v":0},{"$f":"SUM(J423:J425)","v":0},0,0,0,0,0,0,{"$f":"SUM(Q423:Q425)","v":0},{"$f":"SUM(R423:R425)","v":0},{"$f":"SUM(S423:S425)","v":0}]
[38]
[39,"TOTAL RATE OF RETURN ALLOWABLE",null,null,null,{"$f":"$F$811","v":6.7100000000000007E-2},{"$f":"$F$811","v":6.7100000000000007E-2},6.7100000000000007E-2,6.7100000000000007E-2,6.7100000000000007E-2,6.7100000000000007E-2,6.7100000000000007E-2,6.7100000000000007E-2,6.7100000000000007E-2,6.7100000000000007E-2,6.7100000000000007E-2,6.7100000000000007E-2,{"$f":"F811","v":6.7100000000000007E-2}]
[40,"RETURN ON RATE BASE",null,null,null,{"$f":"ROUND(F428*F426,0)","v":0},{"$f":"F429-SUM(H429:Q429)","v":0},{"$f":"ROUND(H426*H428,0)","v":0},{"$f":"ROUND(I426*I428,0)","v":0},{"$f":"ROUND(J426*J428,0)","v":0},0,0,0,0,0,0,{"$f":"ROUND(Q426*Q428,0)","v":0},{"$f":"SUM(G429:Q429)","v":0},{"$f":"F429-R429","v":0}]
[41]
[42,{"$f":"'FR-16(7)(v)-1 Functional'!B431","v":"ELECTRIC RATE BASE"},null,{"$f":"'FR-16(7)(v)-1 Functional'!D431","v":"RB99"},null,{"$f":"'FR-16(7)(v)-2 PROD Classified'!I431","v":0},{"$f":"F431-SUM(H431:Q431)","v":0},{"$f":"ROUND(F431*VLOOKUP(D431,ALLOCTABLE_Prod_Customer,$H$10,FALSE),0)","v":0},{"$f":"ROUND(F431*VLOOKUP(D431,ALLOCTABLE_Prod_Customer,$I$10,FALSE),0)","v":0},{"$f":"ROUND(F431*VLOOKUP(D431,ALLOCTABLE_Prod_Customer,$J$10,FALSE),0)","v":0},{"$f":"ROUND(F431*VLOOKUP(D431,ALLOCTABLE_Prod_Customer,$K$10,FALSE),0)","v":0},{"$f":"ROUND(F431*VLOOKUP(D431,ALLOCTABLE_Prod_Customer,$L$10,FALSE),0)","v":0},{"$f":"ROUND(F431*VLOOKUP(D431,ALLOCTABLE_Prod_Customer,$M$10,FALSE),0)","v":0},{"$f":"ROUND(F431*VLOOKUP(D431,ALLOCTABLE_Prod_Customer,$N$10,FALSE),0)","v":0},{"$f":"ROUND(F431*VLOOKUP(D431,ALLOCTABLE_Prod_Customer,$O$10,FALSE),0)","v":0},{"$f":"ROUND(F431*VLOOKUP(D431,ALLOCTABLE_Prod_Customer,$P$10,FALSE),0)","v":0},{"$f":"ROUND(F431*VLOOKUP(D431,ALLOCTABLE_Prod_Customer,$Q$10,FALSE),0)","v":0},{"$f":"SUM(G431:Q431)","v":0},{"$f":"F431-R431","v":0}]
[43,{"$f":"'FR-16(7)(v)-1 Functional'!B432","v":"TOTAL RATE OF RETURN ALLOWABLE"},null,null,null,{"$f":"RofR","v":6.7110000000000003E-2},6.7110000000000003E-2,6.7110000000000003E-2,6.7110000000000003E-2,6.7110000000000003E-2,6.7110000000000003E-2,6.7110000000000003E-2,6.7110000000000003E-2,6.7110000000000003E-2,6.7110000000000003E-2,6.7110000000000003E-2,6.7110000000000003E-2,6.7110000000000003E-2]
[44,{"$f":"'FR-16(7)(v)-1 Functional'!B433","v":"RETURN ON RATE BASE"},null,null,null,{"$f":"ROUND(F431*F432,0)","v":0},{"$f":"F433-SUM(H433:Q433)","v":0},{"$f":"ROUND(H431*H432,0)","v":0},0,0,0,0,0,0,0,0,0,0,{"$f":"F429-R429","v":0}]
[]
[{"$f":"co_name","v":"DUKE ENERGY KENTUCKY, INC."},null,null,null,null,null,null,null,null,null,null,null,null,null,null,null,null,{"$f":"R1","v":"FR-16(7)(v)-5"}]
[{"$f":"$A$2","v":"PRODUCTION CUSTOMER ALLOCATED - ELECTRIC COST OF SERVICE"},null,null,null,null,null,null,null,null,null,null,null,null,null,null,null,null,{"$f":"R2","v":"WITNESS RESPONSIBLE:"}]
[{"$f":"case_name","v":"CASE NO: 2019-00271"},null,null,null,null,null,null,null,null,null,null,null,null,null,null,null,null,{"$f":"Witness","v":"JAMES E. ZIOLKOWSKI"}]
[{"$f":"data_filing","v":"DATA: 12 MONTHS ACTUAL  & 0 MONTHS ESTIMATED"},null,null,null,null,null,null,null,null,null,null,null,null,null,null,null,null,{"$f":"\"PAGE \"&Pages-10&\" OF \"&Pages","v":"PAGE 8 OF 18"}]
[{"$f":"type","v":"TYPE OF FILING: \"X\" ORIGINAL   UPDATED    REVISED  "}]
[]
[null,null,null,null,null,{"$f":"F$7","v":"TOTAL"},null,{"$f":"H$7","v":"DS"},{"$f":"I$7","v":"GSFL"},{"$f":"J$7","v":"EH"},{"$f":"K$7","v":"SP"},"DT SEC","DT PRI","DP","TT",null,"OTHER"]
["LINE",null,null,null,null,{"$f":"F$8","v":"PRODUCTION"},{"$f":"G$8","v":"RS"},{"$f":"H$8","v":"SECONDARY"},{"$f":"I$8","v":"SECONDARY"},{"$f":"J$8","v":"SECONDARY"},{"$f":"K$8","v":"SECONDARY"},"SECONDARY","PRIMARY","PRIMARY","TRANSMISSION","LT","WATER",{"$f":"R8","v":"TOTAL"},"ALL"]
["NO.","O&M EXPENSES",null,"ALLO",null,{"$f":"F$9","v":"CUSTOMER"},{"$f":"G$9","v":"RESIDENTIAL"},{"$f":"H$9","v":"DISTRIBUTION"},{"$f":"I$9","v":"DISTRIBUTION"},{"$f":"J$9","v":"DISTRIBUTION"},{"$f":"K$9","v":"DISTRIBUTION"},"DISTRIBUTION","DISTRIBUTION","DISTRIBUTION","TIME OF DAY","LIGHTING","PUMPING",{"$f":"R9","v":"AT ISSUE"},"OTHER"]
[null,null,"Schedule 6",null,null,null,{"$f":"G$10","v":3},{"$f":"H$10","v":4},{"$f":"I$10","v":5},{"$f":"J$10","v":6},{"$f":"K$10","v":7},8,9,10,11,12,13,null," "]
[1,"PRODUCTION O&M"]
[2,{"$f":"'FR-16(7)(v)-1 Functional'!B446","v":"ENERGY RELATED PRODUCTION O&M"}]
[3,null,{"$f":"'FR-16(7)(v)-1 Functional'!C447","v":"FUEL"},{"$f":"'FR-16(7)(v)-1 Functional'!D447","v":"K302"},null,{"$f":"'FR-16(7)(v)-2 PROD Classified'!I447","v":0},{"$f":"F447-SUM(H447:Q447)","v":0},{"$f":"ROUND(F447*VLOOKUP(D447,ALLOCTABLE_Prod_Customer,$H$10,FALSE),0)","v":0},{"$f":"ROUND(F447*VLOOKUP(D447,ALLOCTABLE_Prod_Customer,$I$10,FALSE),0)","v":0},{"$f":"ROUND(F447*VLOOKUP(D447,ALLOCTABLE_Prod_Customer,$J$10,FALSE),0)","v":0},{"$f":"ROUND(F447*VLOOKUP(D447,ALLOCTABLE_Prod_Customer,$K$10,FALSE),0)","v":0},{"$f":"ROUND(F447*VLOOKUP(D447,ALLOCTABLE_Prod_Customer,$L$10,FALSE),0)","v":0},{"$f":"ROUND(F447*VLOOKUP(D447,ALLOCTABLE_Prod_Customer,$M$10,FALSE),0)","v":0},{"$f":"ROUND(F447*VLOOKUP(D447,ALLOCTABLE_Prod_Customer,$N$10,FALSE),0)","v":0},{"$f":"ROUND(F447*VLOOKUP(D447,ALLOCTABLE_Prod_Customer,$O$10,FALSE),0)","v":0},{"$f":"ROUND(F447*VLOOKUP(D447,ALLOCTABLE_Prod_Customer,$P$10,FALSE),0)","v":0},{"$f":"ROUND(F447*VLOOKUP(D447,ALLOCTABLE_Prod_Customer,$Q$10,FALSE),0)","v":0},{"$f":"SUM(G447:Q447)","v":0},{"$f":"F447-R447","v":0}]
[4,null,{"$f":"'FR-16(7)(v)-1 Functional'!C448","v":"FUEL AND PURCHASED POWER ADJUSTMENT"},{"$f":"'FR-16(7)(v)-1 Functional'!D448","v":"K302"},null,{"$f":"'FR-16(7)(v)-2 PROD Classified'!I448","v":0},0,0,0,0,0,0,0,0,0,0,0,0,0]
[5,null,{"$f":"'FR-16(7)(v)-1 Functional'!C449","v":"EMISSION ALLOWANCES"},{"$f":"'FR-16(7)(v)-1 Functional'!D449","v":"K301"},null,{"$f":"'FR-16(7)(v)-2 PROD Classified'!I449","v":0},0,0,0,0,0,0,0,0,0,0,0,0,0]
[6,null,{"$f":"'FR-16(7)(v)-1 Functional'!C450","v":"ELIMINATE EMISSION ALLOW & OTHER VAR COST"},{"$f":"'FR-16(7)(v)-1 Functional'!D450","v":"K301"},null,{"$f":"'FR-16(7)(v)-2 PROD Classified'!I450","v":0},0,0,0,0,0,0,0,0,0,0,0,0,0]
[7,null,{"$f":"'FR-16(7)(v)-1 Functional'!C451","v":"OTHER PRODUCTION EXPENSE - MAINTENANCE"},{"$f":"'FR-16(7)(v)-1 Functional'!D451","v":"K301"},null,{"$f":"'FR-16(7)(v)-2 PROD Classified'!I451","v":0},0,0,0,0,0,0,0,0,0,0,0,0,0]
[8,null,{"$f":"'FR-16(7)(v)-1 Functional'!C452","v":"MISO TRANSMISSION CHARGES - ACCT 555"},{"$f":"'FR-16(7)(v)-1 Functional'!D452","v":"K301"},null,{"$f":"'FR-16(7)(v)-2 PROD Classified'!I452","v":0},0,0,0,0,0,0,0,0,0,0,0,0,0]
[9,null,"  TOTAL ENERGY RELATED",null,null,{"$f":"SUM(F447:F452)","v":0},{"$f":"SUM(G447:G452)","v":0},{"$f":"SUM(H447:H452)","v":0},{"$f":"SUM(I447:I452)","v":0},{"$f":"SUM(J447:J452)","v":0},0,0,0,0,0,0,{"$f":"SUM(Q447:Q452)","v":0},{"$f":"SUM(R447:R452)","v":0},{"$f":"SUM(S447:S452)","v":0}]
[10]
[11,"DEMAND RELATED & OTHER PROD O&M"]
[12,null,{"$f":"'FR-16(7)(v)-1 Functional'!C456","v":"OTHER PRODUCTION EXPENSES - OPERATIONS"},{"$f":"'FR-16(7)(v)-1 Functional'!D456","v":"K201"},null,{"$f":"'FR-16(7)(v)-2 PROD Classified'!I456","v":0},{"$f":"F456-SUM(H456:Q456)","v":0},{"$f":"ROUND(F456*VLOOKUP(D456,ALLOCTABLE_Prod_Customer,$H$10,FALSE),0)","v":0},{"$f":"ROUND(F456*VLOOKUP(D456,ALLOCTABLE_Prod_Customer,$I$10,FALSE),0)","v":0},{"$f":"ROUND(F456*VLOOKUP(D456,ALLOCTABLE_Prod_Customer,$J$10,FALSE),0)","v":0},{"$f":"ROUND(F456*VLOOKUP(D456,ALLOCTABLE_Prod_Customer,$K$10,FALSE),0)","v":0},{"$f":"ROUND(F456*VLOOKUP(D456,ALLOCTABLE_Prod_Customer,$L$10,FALSE),0)","v":0},{"$f":"ROUND(F456*VLOOKUP(D456,ALLOCTABLE_Prod_Customer,$M$10,FALSE),0)","v":0},{"$f":"ROUND(F456*VLOOKUP(D456,ALLOCTABLE_Prod_Customer,$N$10,FALSE),0)","v":0},{"$f":"ROUND(F456*VLOOKUP(D456,ALLOCTABLE_Prod_Customer,$O$10,FALSE),0)","v":0},{"$f":"ROUND(F456*VLOOKUP(D456,ALLOCTABLE_Prod_Customer,$P$10,FALSE),0)","v":0},{"$f":"ROUND(F456*VLOOKUP(D456,ALLOCTABLE_Prod_Customer,$Q$10,FALSE),0)","v":0},{"$f":"SUM(G456:Q456)","v":0},{"$f":"F456-R456","v":0}]
[13,null,"  TOTAL DEMAND REL & OTH PROD O&M ",null,null,{"$f":"SUM(F455:F456)","v":0},{"$f":"SUM(G455:G456)","v":0},{"$f":"SUM(H455:H456)","v":0},{"$f":"SUM(I455:I456)","v":0},{"$f":"SUM(J455:J456)","v":0},0,0,0,0,0,0,{"$f":"SUM(Q455:Q456)","v":0},{"$f":"SUM(R455:R456)","v":0},{"$f":"SUM(S455:S456)","v":0}]
[14]
[15,"TOTAL PRODUCTION O&M",null,null," ",{"$f":"F457+F453","v":0},{"$f":"G457+G453","v":0},0,0,{"$f":"J457+J453","v":0},0,0,0,0,0,0,0,0,0]
[16]
[17,"TRANSMISSION O & M"]
[18,null,{"$f":"'FR-16(7)(v)-1 Functional'!C462","v":"TRANSFORMER LEASE PAYMENTS"},{"$f":"'FR-16(7)(v)-1 Functional'!D462","v":"K202"},null,{"$f":"'FR-16(7)(v)-2 PROD Classified'!I462","v":0},{"$f":"F462-SUM(H462:Q462)","v":0},{"$f":"ROUND(F462*VLOOKUP(D462,ALLOCTABLE_Prod_Customer,$H$10,FALSE),0)","v":0},{"$f":"ROUND(F462*VLOOKUP(D462,ALLOCTABLE_Prod_Customer,$I$10,FALSE),0)","v":0},{"$f":"ROUND(F462*VLOOKUP(D462,ALLOCTABLE_Prod_Customer,$J$10,FALSE),0)","v":0},{"$f":"ROUND(F462*VLOOKUP(D462,ALLOCTABLE_Prod_Customer,$K$10,FALSE),0)","v":0},{"$f":"ROUND(F462*VLOOKUP(D462,ALLOCTABLE_Prod_Customer,$L$10,FALSE),0)","v":0},{"$f":"ROUND(F462*VLOOKUP(D462,ALLOCTABLE_Prod_Customer,$M$10,FALSE),0)","v":0},{"$f":"ROUND(F462*VLOOKUP(D462,ALLOCTABLE_Prod_Customer,$N$10,FALSE),0)","v":0},{"$f":"ROUND(F462*VLOOKUP(D462,ALLOCTABLE_Prod_Customer,$O$10,FALSE),0)","v":0},{"$f":"ROUND(F462*VLOOKUP(D462,ALLOCTABLE_Prod_Customer,$P$10,FALSE),0)","v":0},{"$f":"ROUND(F462*VLOOKUP(D462,ALLOCTABLE_Prod_Customer,$Q$10,FALSE),0)","v":0},{"$f":"SUM(G462:Q462)","v":0},{"$f":"F462-R462","v":0}]
[19,null,{"$f":"'FR-16(7)(v)-1 Functional'!C463","v":"OTHER TRANSMISSION"},{"$f":"'FR-16(7)(v)-1 Functional'!D463","v":"K202"},null,{"$f":"'FR-16(7)(v)-2 PROD Classified'!I463","v":0},{"$f":"F463-SUM(H463:Q463)","v":0},{"$f":"ROUND(F463*VLOOKUP(D463,ALLOCTABLE_Prod_Customer,$H$10,FALSE),0)","v":0},{"$f":"ROUND(F463*VLOOKUP(D463,ALLOCTABLE_Prod_Customer,$I$10,FALSE),0)","v":0},{"$f":"ROUND(F463*VLOOKUP(D463,ALLOCTABLE_Prod_Customer,$J$10,FALSE),0)","v":0},{"$f":"ROUND(F463*VLOOKUP(D463,ALLOCTABLE_Prod_Customer,$K$10,FALSE),0)","v":0},{"$f":"ROUND(F463*VLOOKUP(D463,ALLOCTABLE_Prod_Customer,$L$10,FALSE),0)","v":0},{"$f":"ROUND(F463*VLOOKUP(D463,ALLOCTABLE_Prod_Customer,$M$10,FALSE),0)","v":0},{"$f":"ROUND(F463*VLOOKUP(D463,ALLOCTABLE_Prod_Customer,$N$10,FALSE),0)","v":0},{"$f":"ROUND(F463*VLOOKUP(D463,ALLOCTABLE_Prod_Customer,$O$10,FALSE),0)","v":0},{"$f":"ROUND(F463*VLOOKUP(D463,ALLOCTABLE_Prod_Customer,$P$10,FALSE),0)","v":0},{"$f":"ROUND(F463*VLOOKUP(D463,ALLOCTABLE_Prod_Customer,$Q$10,FALSE),0)","v":0},{"$f":"SUM(G463:Q463)","v":0},{"$f":"F463-R463","v":0}]
[20,null,{"$f":"'FR-16(7)(v)-1 Functional'!C464","v":"MISCELLANEOUS ADJUSTMENTS"},{"$f":"'FR-16(7)(v)-1 Functional'!D464","v":"K202"},null,{"$f":"'FR-16(7)(v)-2 PROD Classified'!I464","v":0},{"$f":"F464-SUM(H464:Q464)","v":0},{"$f":"ROUND(F464*VLOOKUP(D464,ALLOCTABLE_Prod_Customer,$H$10,FALSE),0)","v":0},{"$f":"ROUND(F464*VLOOKUP(D464,ALLOCTABLE_Prod_Customer,$I$10,FALSE),0)","v":0},{"$f":"ROUND(F464*VLOOKUP(D464,ALLOCTABLE_Prod_Customer,$J$10,FALSE),0)","v":0},{"$f":"ROUND(F464*VLOOKUP(D464,ALLOCTABLE_Prod_Customer,$K$10,FALSE),0)","v":0},{"$f":"ROUND(F464*VLOOKUP(D464,ALLOCTABLE_Prod_Customer,$L$10,FALSE),0)","v":0},{"$f":"ROUND(F464*VLOOKUP(D464,ALLOCTABLE_Prod_Customer,$M$10,FALSE),0)","v":0},{"$f":"ROUND(F464*VLOOKUP(D464,ALLOCTABLE_Prod_Customer,$N$10,FALSE),0)","v":0},{"$f":"ROUND(F464*VLOOKUP(D464,ALLOCTABLE_Prod_Customer,$O$10,FALSE),0)","v":0},{"$f":"ROUND(F464*VLOOKUP(D464,ALLOCTABLE_Prod_Customer,$P$10,FALSE),0)","v":0},{"$f":"ROUND(F464*VLOOKUP(D464,ALLOCTABLE_Prod_Customer,$Q$10,FALSE),0)","v":0},{"$f":"SUM(G464:Q464)","v":0},{"$f":"F464-R464","v":0}]
[21,null,{"$f":"'FR-16(7)(v)-1 Functional'!C465","v":"NETWORK SERVICE RATES ADJUSTMENT"},{"$f":"'FR-16(7)(v)-1 Functional'!D465","v":"K202"},null,{"$f":"'FR-16(7)(v)-2 PROD Classified'!I465","v":0},{"$f":"F465-SUM(H465:Q465)","v":0},{"$f":"ROUND(F465*VLOOKUP(D465,ALLOCTABLE_Prod_Customer,$H$10,FALSE),0)","v":0},{"$f":"ROUND(F465*VLOOKUP(D465,ALLOCTABLE_Prod_Customer,$I$10,FALSE),0)","v":0},{"$f":"ROUND(F465*VLOOKUP(D465,ALLOCTABLE_Prod_Customer,$J$10,FALSE),0)","v":0},{"$f":"ROUND(F465*VLOOKUP(D465,ALLOCTABLE_Prod_Customer,$K$10,FALSE),0)","v":0},{"$f":"ROUND(F465*VLOOKUP(D465,ALLOCTABLE_Prod_Customer,$L$10,FALSE),0)","v":0},{"$f":"ROUND(F465*VLOOKUP(D465,ALLOCTABLE_Prod_Customer,$M$10,FALSE),0)","v":0},{"$f":"ROUND(F465*VLOOKUP(D465,ALLOCTABLE_Prod_Customer,$N$10,FALSE),0)","v":0},{"$f":"ROUND(F465*VLOOKUP(D465,ALLOCTABLE_Prod_Customer,$O$10,FALSE),0)","v":0},{"$f":"ROUND(F465*VLOOKUP(D465,ALLOCTABLE_Prod_Customer,$P$10,FALSE),0)","v":0},{"$f":"ROUND(F465*VLOOKUP(D465,ALLOCTABLE_Prod_Customer,$Q$10,FALSE),0)","v":0},{"$f":"SUM(G465:Q465)","v":0},{"$f":"F465-R465","v":0}]
[22,null,{"$f":"'FR-16(7)(v)-1 Functional'!C466","v":"  TOTAL TRANSMISSION O & M"},null,null,{"$f":"SUM(F462:F465)","v":0},{"$f":"SUM(G462:G465)","v":0},0,0,{"$f":"SUM(J462:J465)","v":0},0,0,0,0,0,0,0,0,0]
[23]
[24,"REGIONAL MARKET O&M"]
[25,null,{"$f":"'FR-16(7)(v)-1 Functional'!C469","v":"MARKET FACILITATION - MONITORING & COMPLIANCE"},{"$f":"'FR-16(7)(v)-1 Functional'!D469","v":"K202"},null,{"$f":"'FR-16(7)(v)-2 PROD Classified'!I469","v":0},{"$f":"F469-SUM(H469:Q469)","v":0},{"$f":"ROUND(F469*VLOOKUP(D469,ALLOCTABLE_Prod_Customer,$H$10,FALSE),0)","v":0},{"$f":"ROUND(F469*VLOOKUP($D$469,ALLOCTABLE_Prod_Customer,$I$10,FALSE),0)","v":0},{"$f":"ROUND(F469*VLOOKUP($D$469,ALLOCTABLE_Prod_Customer,$J$10,FALSE),0)","v":0},{"$f":"ROUND(F469*VLOOKUP($D$469,ALLOCTABLE_Prod_Customer,$K$10,FALSE),0)","v":0},{"$f":"ROUND(F469*VLOOKUP($D$469,ALLOCTABLE_Prod_Customer,$L$10,FALSE),0)","v":0},{"$f":"ROUND(F469*VLOOKUP($D$469,ALLOCTABLE_Prod_Customer,$M$10,FALSE),0)","v":0},{"$f":"ROUND(F469*VLOOKUP($D$469,ALLOCTABLE_Prod_Customer,$N$10,FALSE),0)","v":0},{"$f":"ROUND(F469*VLOOKUP($D$469,ALLOCTABLE_Prod_Customer,$O$10,FALSE),0)","v":0},{"$f":"ROUND(F469*VLOOKUP($D$469,ALLOCTABLE_Prod_Customer,$P$10,FALSE),0)","v":0},{"$f":"ROUND(F469*VLOOKUP(D469,ALLOCTABLE_Prod_Customer,$Q$10,FALSE),0)","v":0},{"$f":"SUM(G469:Q469)","v":0},{"$f":"F469-R469","v":0}]
[26,null,"TOTAL REGIONAL MARKET O&M",null,null,{"$f":"'FR-16(7)(v)-2 PROD Classified'!I470","v":0},{"$f":"SUM(G468:G469)","v":0},{"$f":"SUM(H468:H469)","v":0},{"$f":"SUM(I468:I469)","v":0},{"$f":"SUM(J468:J469)","v":0},0,0,0,0,0,0,{"$f":"SUM(Q468:Q469)","v":0},{"$f":"SUM(R468:R469)","v":0},{"$f":"SUM(S468:S469)","v":0}]
[27]
[28,"DISTRIBUTION O & M"]
[29,null,{"$f":"'FR-16(7)(v)-1 Functional'!C473","v":"SUBSTATIONS"},{"$f":"'FR-16(7)(v)-1 Functional'!D473","v":"K201"},null,{"$f":"'FR-16(7)(v)-2 PROD Classified'!I473","v":0},{"$f":"F473-SUM(H473:Q473)","v":0},{"$f":"ROUND(F473*VLOOKUP(D473,ALLOCTABLE_Prod_Customer,$H$10,FALSE),0)","v":0},{"$f":"ROUND(F473*VLOOKUP(D473,ALLOCTABLE_Prod_Customer,$I$10,FALSE),0)","v":0},{"$f":"ROUND(F473*VLOOKUP(D473,ALLOCTABLE_Prod_Customer,$J$10,FALSE),0)","v":0},{"$f":"ROUND(F473*VLOOKUP(D473,ALLOCTABLE_Prod_Customer,$K$10,FALSE),0)","v":0},{"$f":"ROUND(F473*VLOOKUP(D473,ALLOCTABLE_Prod_Customer,$L$10,FALSE),0)","v":0},{"$f":"ROUND(F473*VLOOKUP(D473,ALLOCTABLE_Prod_Customer,$M$10,FALSE),0)","v":0},{"$f":"ROUND(F473*VLOOKUP(D473,ALLOCTABLE_Prod_Customer,$N$10,FALSE),0)","v":0},{"$f":"ROUND(F473*VLOOKUP(D473,ALLOCTABLE_Prod_Customer,$O$10,FALSE),0)","v":0},{"$f":"ROUND(F473*VLOOKUP(D473,ALLOCTABLE_Prod_Customer,$P$10,FALSE),0)","v":0},{"$f":"ROUND(F473*VLOOKUP(D473,ALLOCTABLE_Prod_Customer,$Q$10,FALSE),0)","v":0},{"$f":"SUM(G473:Q473)","v":0},{"$f":"F473-R473","v":0}]
[30,null,{"$f":"'FR-16(7)(v)-1 Functional'!C474","v":"POLES, TOWERS & FIXTURES"},{"$f":"'FR-16(7)(v)-1 Functional'!D474","v":"PL49"},null,{"$f":"'FR-16(7)(v)-2 PROD Classified'!I474","v":0},0,0,0,0,0,0,0,0,0,0,0,0,0]
[31,null,{"$f":"'FR-16(7)(v)-1 Functional'!C475","v":"OVERHEAD LINES - PRIMARY / DEMAND"},{"$f":"'FR-16(7)(v)-1 Functional'!D475","v":"K205"},null,{"$f":"'FR-16(7)(v)-2 PROD Classified'!I475","v":0},0,0,0,0,0,0,0,0,0,0,0,0,0]
[32,null,{"$f":"'FR-16(7)(v)-1 Functional'!C476","v":"OVERHEAD LINES - PRIMARY / CUSTOMER"},{"$f":"'FR-16(7)(v)-1 Functional'!D476","v":"K405"},null,{"$f":"'FR-16(7)(v)-2 PROD Classified'!I476","v":0},0,0,0,0,0,0,0,0,0,0,0,0,0]
[33,null,{"$f":"'FR-16(7)(v)-1 Functional'!C477","v":"OVERHEAD LINES - SECONDARY / DEMAND"},{"$f":"'FR-16(7)(v)-1 Functional'!D477","v":"K206"},null,{"$f":"'FR-16(7)(v)-2 PROD Classified'!I477","v":0},0,0,0,0,0,0,0,0,0,0,0,0,0]
[34,null,{"$f":"'FR-16(7)(v)-1 Functional'!C478","v":"OVERHEAD LINES - SECONDARY / CUSTOMER"},{"$f":"'FR-16(7)(v)-1 Functional'!D478","v":"K405"},null,{"$f":"'FR-16(7)(v)-2 PROD Classified'!I478","v":0},0,0,0,0,0,0,0,0,0,0,0,0,0]
[35,null,{"$f":"'FR-16(7)(v)-1 Functional'!C479","v":"UNDERGROUND LINES - PRIMARY / DEMAND"},{"$f":"'FR-16(7)(v)-1 Functional'!D479","v":"K205"},null,{"$f":"'FR-16(7)(v)-2 PROD Classified'!I479","v":0},0,0,0,0,0,0,0,0,0,0,0,0,0]
[36,null,{"$f":"'FR-16(7)(v)-1 Functional'!C480","v":"UNDERGROUND LINES - PRIMARY / CUSTOMER"},{"$f":"'FR-16(7)(v)-1 Functional'!D480","v":"K405"},null,{"$f":"'FR-16(7)(v)-2 PROD Classified'!I480","v":0},0,0,0,0,0,0,0,0,0,0,0,0,0]
[37,null,{"$f":"'FR-16(7)(v)-1 Functional'!C481","v":"UNDERGROUND LINES - SECONDARY / DEMAND"},{"$f":"'FR-16(7)(v)-1 Functional'!D481","v":"K206"},null,{"$f":"'FR-16(7)(v)-2 PROD Classified'!I481","v":0},0,0,0,0,0,0,0,0,0,0,0,0,0]
[38,null,{"$f":"'FR-16(7)(v)-1 Functional'!C482","v":"UNDERGROUND LINES - SECONDARY / CUSTOMER"},{"$f":"'FR-16(7)(v)-1 Functional'!D482","v":"K405"},null,{"$f":"'FR-16(7)(v)-2 PROD Classified'!I482","v":0},0,0,0,0,0,0,0,0,0,0,0,0,0]
[39,null,{"$f":"'FR-16(7)(v)-1 Functional'!C483","v":"TRANSFORMERS DEMAND RELATED"},{"$f":"'FR-16(7)(v)-1 Functional'!D483","v":"K203"},null,{"$f":"'FR-16(7)(v)-2 PROD Classified'!I483","v":0},0,0,0,0,0,0,0,0,0,0,0,0,0]
[40,null,{"$f":"'FR-16(7)(v)-1 Functional'!C484","v":"TRANSFORMERS CUSTOMER RELATED"},{"$f":"'FR-16(7)(v)-1 Functional'!D484","v":"K401"},null,{"$f":"'FR-16(7)(v)-2 PROD Classified'!I484","v":0},0,0,0,0,0,0,0,0,0,0,0,0,0]
[41,null,{"$f":"'FR-16(7)(v)-1 Functional'!C485","v":"OTHER MAINTENANCE"},{"$f":"'FR-16(7)(v)-1 Functional'!D485","v":"K203"},null,{"$f":"'FR-16(7)(v)-2 PROD Classified'!I485","v":0},0,0,0,0,0,0,0,0,0,0,0,0,0]
[42,null,{"$f":"'FR-16(7)(v)-1 Functional'!C486","v":"LOAD DISPATCH"},{"$f":"'FR-16(7)(v)-1 Functional'!D486","v":"K215"},null,{"$f":"'FR-16(7)(v)-2 PROD Classified'!I486","v":0},0,0,0,0,0,0,0,0,0,0,0,0,0]
[43,null,{"$f":"'FR-16(7)(v)-1 Functional'!C487","v":"METERS"},{"$f":"'FR-16(7)(v)-1 Functional'!D487","v":"K407"},null,{"$f":"'FR-16(7)(v)-2 PROD Classified'!I487","v":0},0,0,0,0,0,0,0,0,0,0,0,0,0]
[44,null,{"$f":"'FR-16(7)(v)-1 Functional'!C488","v":"STREET LIGHTING AND SIGNAL SYSTEMS"},{"$f":"'FR-16(7)(v)-1 Functional'!D488","v":"K401"},null,{"$f":"'FR-16(7)(v)-2 PROD Classified'!I488","v":0},0,0,0,0,0,0,0,0,0,0,0,0,0]
[45,null,{"$f":"'FR-16(7)(v)-1 Functional'!C489","v":"OTHER OPERATIONS"},{"$f":"'FR-16(7)(v)-1 Functional'!D489","v":"K203"},null,{"$f":"'FR-16(7)(v)-2 PROD Classified'!I489","v":0},0,0,0,0,0,0,0,0,0,0,0,0,0]
[46,null,{"$f":"'FR-16(7)(v)-1 Functional'!C490","v":"MISCELLANEOUS EXPENSES ADJUSTMENT"},{"$f":"'FR-16(7)(v)-1 Functional'!D490","v":"K203"},null,{"$f":"'FR-16(7)(v)-2 PROD Classified'!I490","v":0},0,0,0,0,0,0,0,0,0,0,0,0,0]
[47,null,{"$f":"'FR-16(7)(v)-1 Functional'!C491","v":"AFFILIATED COMPANY RENTS ADJUSTMENT"},{"$f":"'FR-16(7)(v)-1 Functional'!D491","v":"D249"},null,{"$f":"'FR-16(7)(v)-2 PROD Classified'!I491","v":0},0,0,0,0,0,0,0,0,0,0,0,0,0]
[48,null,{"$f":"'FR-16(7)(v)-1 Functional'!C492","v":"  TOTAL DISTRIBUTION O & M"},null," ",{"$f":"SUM(F472:F491)","v":0},{"$f":"SUM(G472:G491)","v":0},{"$f":"SUM(H472:H491)","v":0},{"$f":"SUM(I472:I491)","v":0},{"$f":"SUM(J472:J491)","v":0},0,0,0,0,0,0,{"$f":"SUM(Q472:Q491)","v":0},{"$f":"SUM(R472:R491)","v":0},{"$f":"SUM(S472:S491)","v":0}]
[49,null," "]
[50,"CUSTOMER ACCOUNTING",null,null,null," "]
[51,null,{"$f":"'FR-16(7)(v)-1 Functional'!C495","v":"CUSTOMER ACCOUNTING EXPENSE"},{"$f":"'FR-16(7)(v)-1 Functional'!D495","v":"K409"},null,{"$f":"'FR-16(7)(v)-2 PROD Classified'!I495","v":0},{"$f":"F495-SUM(H495:Q495)","v":0},{"$f":"ROUND(F495*VLOOKUP(D495,ALLOCTABLE_Prod_Customer,$H$10,FALSE),0)","v":0},{"$f":"ROUND(F495*VLOOKUP(D495,ALLOCTABLE_Prod_Customer,$I$10,FALSE),0)","v":0},{"$f":"ROUND(F495*VLOOKUP(D495,ALLOCTABLE_Prod_Customer,$J$10,FALSE),0)","v":0},{"$f":"ROUND(F495*VLOOKUP(D495,ALLOCTABLE_Prod_Customer,$K$10,FALSE),0)","v":0},{"$f":"ROUND(F495*VLOOKUP(D495,ALLOCTABLE_Prod_Customer,$L$10,FALSE),0)","v":0},{"$f":"ROUND(F495*VLOOKUP(D495,ALLOCTABLE_Prod_Customer,$M$10,FALSE),0)","v":0},{"$f":"ROUND(F495*VLOOKUP(D495,ALLOCTABLE_Prod_Customer,$N$10,FALSE),0)","v":0},{"$f":"ROUND(F495*VLOOKUP(D495,ALLOCTABLE_Prod_Customer,$O$10,FALSE),0)","v":0},{"$f":"ROUND(F495*VLOOKUP(D495,ALLOCTABLE_Prod_Customer,$P$10,FALSE),0)","v":0},{"$f":"ROUND(F495*VLOOKUP(D495,ALLOCTABLE_Prod_Customer,$Q$10,FALSE),0)","v":0},{"$f":"SUM(G495:Q495)","v":0},{"$f":"F495-R495","v":0}]
[52,null,{"$f":"'FR-16(7)(v)-1 Functional'!C496","v":"UNCOLLECTIBLE EXP"},{"$f":"'FR-16(7)(v)-1 Functional'!D496","v":"K411"},null,{"$f":"'FR-16(7)(v)-2 PROD Classified'!I496","v":0},0,0,0,0,0,0,0,0,0,0,0,0,0]
[53,null,{"$f":"'FR-16(7)(v)-1 Functional'!C497","v":"METER READING"},{"$f":"'FR-16(7)(v)-1 Functional'!D497","v":"K407"},null,{"$f":"'FR-16(7)(v)-2 PROD Classified'!I497","v":0},0,0,0,0,0,0,0,0,0,0,0,0,0]
[54,null,{"$f":"'FR-16(7)(v)-1 Functional'!C498","v":"UNCOLLECTIBLE EXP ADJUSTMENT"},{"$f":"'FR-16(7)(v)-1 Functional'!D498","v":"K411"},null,{"$f":"'FR-16(7)(v)-2 PROD Classified'!I498","v":0},0,0,0,0,0,0,0,0,0,0,0,0,0]
[55,null,{"$f":"'FR-16(7)(v)-1 Functional'!C499","v":"CREDIT CARD FEES"},{"$f":"'FR-16(7)(v)-1 Functional'!D499","v":"K407"},null,{"$f":"'FR-16(7)(v)-2 PROD Classified'!I499","v":0},0,0,0,0,0,0,0,0,0,0,0,0,0]
[56,null,{"$f":"'FR-16(7)(v)-1 Functional'!C500","v":"ELIMINATE REV & EXP - DSM RIDER"},{"$f":"'FR-16(7)(v)-1 Functional'!D500","v":"K405"},null,{"$f":"'FR-16(7)(v)-2 PROD Classified'!I500","v":0},0,0,0,0,0,0,0,0,0,0,0,0,0]
[57,null,{"$f":"'FR-16(7)(v)-1 Functional'!C501","v":"SALE OF A/R"},{"$f":"'FR-16(7)(v)-1 Functional'!D501","v":"K411"},null,{"$f":"'FR-16(7)(v)-2 PROD Classified'!I501","v":0},0,0,0,0,0,0,0,0,0,0,0,0,0]
[58,null,{"$f":"'FR-16(7)(v)-1 Functional'!C502","v":"ELIMINATE MISC EXPENSE"},{"$f":"'FR-16(7)(v)-1 Functional'!D502","v":"K405"},null,{"$f":"'FR-16(7)(v)-2 PROD Classified'!I502","v":0},0,0,0,0,0,0,0,0,0,0,0,0,0]
[59,null,{"$f":"'FR-16(7)(v)-1 Functional'!C503","v":"  TOTAL CUSTOMER ACCT EXPENSE"},null," ",{"$f":"SUM(F494:F502)","v":0},{"$f":"SUM(G494:G502)","v":0},{"$f":"SUM(H494:H502)","v":0},{"$f":"SUM(I494:I502)","v":0},{"$f":"SUM(J494:J502)","v":0},0,0,0,0,0,0,{"$f":"SUM(Q494:Q502)","v":0},{"$f":"SUM(R494:R502)","v":0},{"$f":"SUM(S494:S502)","v":0}]
[]
[{"$f":"co_name","v":"DUKE ENERGY KENTUCKY, INC."},null,null,null,null,null,null,null,null,null,null,null,null,null,null,null,null,{"$f":"R1","v":"FR-16(7)(v)-5"}]
[{"$f":"$A$2","v":"PRODUCTION CUSTOMER ALLOCATED - ELECTRIC COST OF SERVICE"},null,null,null,null,null,null,null,null,null,null,null,null,null,null,null,null,{"$f":"R2","v":"WITNESS RESPONSIBLE:"}]
[{"$f":"case_name","v":"CASE NO: 2019-00271"},null,null,null,null,null,null,null,null,null,null,null,null,null,null,null,null,{"$f":"Witness","v":"JAMES E. ZIOLKOWSKI"}]
[{"$f":"data_filing","v":"DATA: 12 MONTHS ACTUAL  & 0 MONTHS ESTIMATED"},null,null,null,null,null,null,null,null,null,null,null,null,null,null,null,null,{"$f":"\"PAGE \"&Pages-9&\" OF \"&Pages","v":"PAGE 9 OF 18"}]
[{"$f":"type","v":"TYPE OF FILING: \"X\" ORIGINAL   UPDATED    REVISED  "}]
[]
[null,null,null,null,null,{"$f":"F$7","v":"TOTAL"},null,{"$f":"H$7","v":"DS"},{"$f":"I$7","v":"GSFL"},{"$f":"J$7","v":"EH"},{"$f":"K$7","v":"SP"},"DT SEC","DT PRI","DP","TT",null,"OTHER"]
["LINE",null,null,null,null,{"$f":"F$8","v":"PRODUCTION"},{"$f":"G$8","v":"RS"},{"$f":"H$8","v":"SECONDARY"},{"$f":"I$8","v":"SECONDARY"},{"$f":"J$8","v":"SECONDARY"},{"$f":"K$8","v":"SECONDARY"},"SECONDARY","PRIMARY","PRIMARY","TRANSMISSION","LT","WATER",{"$f":"R8","v":"TOTAL"},"ALL"]
["NO.","O&M EXPENSES",null,"ALLO",null,{"$f":"F$9","v":"CUSTOMER"},{"$f":"G$9","v":"RESIDENTIAL"},{"$f":"H$9","v":"DISTRIBUTION"},{"$f":"I$9","v":"DISTRIBUTION"},{"$f":"J$9","v":"DISTRIBUTION"},{"$f":"K$9","v":"DISTRIBUTION"},"DISTRIBUTION","DISTRIBUTION","DISTRIBUTION","TIME OF DAY","LIGHTING","PUMPING",{"$f":"R9","v":"AT ISSUE"},"OTHER"]
[null,null,"Schedule 6.1",null,null,null,{"$f":"G$10","v":3},{"$f":"H$10","v":4},{"$f":"I$10","v":5},{"$f":"J$10","v":6},{"$f":"K$10","v":7},8,9,10,11,12,13,null," "]
[1,"CUSTOMER SERVICE & INFORMATION"]
[2,null,{"$f":"'FR-16(7)(v)-1 Functional'!C516","v":"TOTAL CUST SERVICE & INFO"},{"$f":"'FR-16(7)(v)-1 Functional'!D516","v":"K405"},null,{"$f":"'FR-16(7)(v)-2 PROD Classified'!I516","v":0},{"$f":"F516-SUM(H516:Q516)","v":0},{"$f":"ROUND(F516*VLOOKUP(D516,ALLOCTABLE_Prod_Customer,$H$10,FALSE),0)","v":0},{"$f":"ROUND(F516*VLOOKUP(D516,ALLOCTABLE_Prod_Customer,$I$10,FALSE),0)","v":0},{"$f":"ROUND(F516*VLOOKUP(D516,ALLOCTABLE_Prod_Customer,$J$10,FALSE),0)","v":0},{"$f":"ROUND(F516*VLOOKUP(D516,ALLOCTABLE_Prod_Customer,$K$10,FALSE),0)","v":0},{"$f":"ROUND(F516*VLOOKUP(D516,ALLOCTABLE_Prod_Customer,$L$10,FALSE),0)","v":0},{"$f":"ROUND(F516*VLOOKUP(D516,ALLOCTABLE_Prod_Customer,$M$10,FALSE),0)","v":0},{"$f":"ROUND(F516*VLOOKUP(D516,ALLOCTABLE_Prod_Customer,$N$10,FALSE),0)","v":0},{"$f":"ROUND(F516*VLOOKUP(D516,ALLOCTABLE_Prod_Customer,$O$10,FALSE),0)","v":0},{"$f":"ROUND(F516*VLOOKUP(D516,ALLOCTABLE_Prod_Customer,$P$10,FALSE),0)","v":0},{"$f":"ROUND(F516*VLOOKUP(D516,ALLOCTABLE_Prod_Customer,$Q$10,FALSE),0)","v":0},{"$f":"SUM(G516:Q516)","v":0},{"$f":"F516-R516","v":0}]
[3,null,{"$f":"'FR-16(7)(v)-1 Functional'!C517","v":"INFORMATIONAL & INSTRUCTIONAL ADV"},{"$f":"'FR-16(7)(v)-1 Functional'!D517","v":"K405"},null,{"$f":"'FR-16(7)(v)-2 PROD Classified'!I517","v":0},{"$f":"F517-SUM(H517:Q517)","v":0},{"$f":"ROUND(F517*VLOOKUP(D517,ALLOCTABLE_Prod_Customer,$H$10,FALSE),0)","v":0},{"$f":"ROUND(F517*VLOOKUP(D517,ALLOCTABLE_Prod_Customer,$I$10,FALSE),0)","v":0},{"$f":"ROUND(F517*VLOOKUP(D517,ALLOCTABLE_Prod_Customer,$J$10,FALSE),0)","v":0},{"$f":"ROUND(F517*VLOOKUP(D517,ALLOCTABLE_Prod_Customer,$K$10,FALSE),0)","v":0},{"$f":"ROUND(F517*VLOOKUP(D517,ALLOCTABLE_Prod_Customer,$L$10,FALSE),0)","v":0},{"$f":"ROUND(F517*VLOOKUP(D517,ALLOCTABLE_Prod_Customer,$M$10,FALSE),0)","v":0},{"$f":"ROUND(F517*VLOOKUP(D517,ALLOCTABLE_Prod_Customer,$N$10,FALSE),0)","v":0},{"$f":"ROUND(F517*VLOOKUP(D517,ALLOCTABLE_Prod_Customer,$O$10,FALSE),0)","v":0},{"$f":"ROUND(F517*VLOOKUP(D517,ALLOCTABLE_Prod_Customer,$P$10,FALSE),0)","v":0},{"$f":"ROUND(F517*VLOOKUP(D517,ALLOCTABLE_Prod_Customer,$Q$10,FALSE),0)","v":0},{"$f":"SUM(G517:Q517)","v":0}]
[4,null,{"$f":"'FR-16(7)(v)-1 Functional'!C518","v":"TOTAL CUSTOMER SERV. & INFO."},null," ",{"$f":"SUM(F516:F517)","v":0},{"$f":"SUM(G516:G517)","v":0},0,0,{"$f":"SUM(J516:J517)","v":0},0,0,0,0,0,0,0,0,0]
[5]
[6,"SALES"]
[7,null,{"$f":"'FR-16(7)(v)-1 Functional'!C521","v":"SALES EXPENSE"},{"$f":"'FR-16(7)(v)-1 Functional'!D521","v":"K405"}," ",{"$f":"'FR-16(7)(v)-2 PROD Classified'!I521","v":0},{"$f":"F521-SUM(H521:Q521)","v":0},{"$f":"ROUND(F521*VLOOKUP(D521,ALLOCTABLE_Prod_Customer,$H$10,FALSE),0)","v":0},{"$f":"ROUND(F521*VLOOKUP(D521,ALLOCTABLE_Prod_Customer,$I$10,FALSE),0)","v":0},{"$f":"ROUND(F521*VLOOKUP(D521,ALLOCTABLE_Prod_Customer,$J$10,FALSE),0)","v":0},{"$f":"ROUND(F521*VLOOKUP(D521,ALLOCTABLE_Prod_Customer,$K$10,FALSE),0)","v":0},{"$f":"ROUND(F521*VLOOKUP(D521,ALLOCTABLE_Prod_Customer,$L$10,FALSE),0)","v":0},{"$f":"ROUND(F521*VLOOKUP(D521,ALLOCTABLE_Prod_Customer,$M$10,FALSE),0)","v":0},{"$f":"ROUND(F521*VLOOKUP(D521,ALLOCTABLE_Prod_Customer,$N$10,FALSE),0)","v":0},{"$f":"ROUND(F521*VLOOKUP(D521,ALLOCTABLE_Prod_Customer,$O$10,FALSE),0)","v":0},{"$f":"ROUND(F521*VLOOKUP(D521,ALLOCTABLE_Prod_Customer,$P$10,FALSE),0)","v":0},{"$f":"ROUND(F521*VLOOKUP(D521,ALLOCTABLE_Prod_Customer,$Q$10,FALSE),0)","v":0},{"$f":"SUM(G521:Q521)","v":0},{"$f":"F521-R521","v":0}]
[8,null,{"$f":"'FR-16(7)(v)-1 Functional'!C522","v":"TOTAL SALES EXPENSE"},null," ",{"$f":"SUM(F520:F521)","v":0},{"$f":"SUM(G520:G521)","v":0},{"$f":"SUM(H520:H521)","v":0},{"$f":"SUM(I520:I521)","v":0},{"$f":"SUM(J520:J521)","v":0},0,0,0,0,0,0,{"$f":"SUM(Q520:Q521)","v":0},{"$f":"SUM(R520:R521)","v":0},{"$f":"SUM(S520:S521)","v":0}]
[9]
[10,"ADMINISTRATIVE & GENERAL "]
[11,null,{"$f":"'FR-16(7)(v)-1 Functional'!C525","v":"PRODUCTION - DEMAND RELATED"},{"$f":"'FR-16(7)(v)-1 Functional'!D525","v":"P349"},null,{"$f":"'FR-16(7)(v)-2 PROD Classified'!I525","v":0},{"$f":"F525-SUM(H525:Q525)","v":0},{"$f":"ROUND(F525*VLOOKUP(D525,ALLOCTABLE_Prod_Customer,$H$10,FALSE),0)","v":0},{"$f":"ROUND(F525*VLOOKUP(D525,ALLOCTABLE_Prod_Customer,$I$10,FALSE),0)","v":0},{"$f":"ROUND(F525*VLOOKUP(D525,ALLOCTABLE_Prod_Customer,$J$10,FALSE),0)","v":0},{"$f":"ROUND(F525*VLOOKUP(D525,ALLOCTABLE_Prod_Customer,$K$10,FALSE),0)","v":0},{"$f":"ROUND(F525*VLOOKUP(D525,ALLOCTABLE_Prod_Customer,$L$10,FALSE),0)","v":0},{"$f":"ROUND(F525*VLOOKUP(D525,ALLOCTABLE_Prod_Customer,$M$10,FALSE),0)","v":0},{"$f":"ROUND(F525*VLOOKUP(D525,ALLOCTABLE_Prod_Customer,$N$10,FALSE),0)","v":0},{"$f":"ROUND(F525*VLOOKUP(D525,ALLOCTABLE_Prod_Customer,$O$10,FALSE),0)","v":0},{"$f":"ROUND(F525*VLOOKUP(D525,ALLOCTABLE_Prod_Customer,$P$10,FALSE),0)","v":0},{"$f":"ROUND(F525*VLOOKUP(D525,ALLOCTABLE_Prod_Customer,$Q$10,FALSE),0)","v":0},{"$f":"SUM(G525:Q525)","v":0},{"$f":"F525-R525","v":0}]
[12,null,{"$f":"'FR-16(7)(v)-1 Functional'!C526","v":"PRODUCTION - ENERGY RELATED"},{"$f":"'FR-16(7)(v)-1 Functional'!D526","v":"E349"},null,{"$f":"'FR-16(7)(v)-2 PROD Classified'!I526","v":0},0,0,0,0,0,0,0,0,0,0,0,0,0]
[13,null,"TRANSMISSION",{"$f":"'FR-16(7)(v)-1 Functional'!D527","v":"T349"},null,{"$f":"'FR-16(7)(v)-2 PROD Classified'!I527","v":0},0,0,0,0,0,0,0,0,0,0,0,{"$f":"SUM(G527:Q527)","v":0},{"$f":"F527-R527","v":0}]
[14,null,{"$f":"'FR-16(7)(v)-1 Functional'!C528","v":"DISTRIBUTION"},{"$f":"'FR-16(7)(v)-1 Functional'!D528","v":"D349"},null,{"$f":"'FR-16(7)(v)-2 PROD Classified'!I528","v":0},0,0,0,0,0,0,0,0,0,0,0,0,0]
[15,null,{"$f":"'FR-16(7)(v)-1 Functional'!C529","v":"CUSTOMER ACCOUNTING"},{"$f":"'FR-16(7)(v)-1 Functional'!D529","v":"C319"},null,{"$f":"'FR-16(7)(v)-2 PROD Classified'!I529","v":0},0,0,0,0,0,0,0,0,0,0,0,0,0]
[16,null,{"$f":"'FR-16(7)(v)-1 Functional'!C530","v":"CUSTOMER SERVICE & INFORMATION"},{"$f":"'FR-16(7)(v)-1 Functional'!D530","v":"C331"},null,{"$f":"'FR-16(7)(v)-2 PROD Classified'!I530","v":0},0,0,0,0,0,0,0,0,0,0,0,0,0]
[17,null,{"$f":"'FR-16(7)(v)-1 Functional'!C531","v":"SALES"},{"$f":"'FR-16(7)(v)-1 Functional'!D531","v":"S319"},null,{"$f":"'FR-16(7)(v)-2 PROD Classified'!I531","v":0},0,0,0,0,0,0,0,0,0,0,0,0,0]
[18,null,{"$f":"'FR-16(7)(v)-1 Functional'!C532","v":"TOT ADMIN & GEN LESS REG EXP"}," ",null,{"$f":"SUM(F525:F531)","v":0},{"$f":"SUM(G525:G531)","v":0},{"$f":"SUM(H525:H531)","v":0},{"$f":"SUM(I525:I531)","v":0},{"$f":"SUM(J525:J531)","v":0},0,0,0,0,0,0,{"$f":"SUM(Q525:Q531)","v":0},{"$f":"SUM(R525:R531)","v":0},{"$f":"SUM(S525:S531)","v":0}]
[19,null,{"$f":"'FR-16(7)(v)-1 Functional'!C533","v":"RATE CASE EXPENSE ADJUSTMENT"},{"$f":"'FR-16(7)(v)-1 Functional'!D533","v":"A315"},null,{"$f":"'FR-16(7)(v)-2 PROD Classified'!I533","v":0},{"$f":"F533-SUM(H533:Q533)","v":0},{"$f":"ROUND(F533*VLOOKUP(D533,ALLOCTABLE_Prod_Customer,$H$10,FALSE),0)","v":0},{"$f":"ROUND(F533*VLOOKUP(D533,ALLOCTABLE_Prod_Customer,$I$10,FALSE),0)","v":0},{"$f":"ROUND(F533*VLOOKUP(D533,ALLOCTABLE_Prod_Customer,$J$10,FALSE),0)","v":0},{"$f":"ROUND(F533*VLOOKUP(D533,ALLOCTABLE_Prod_Customer,$K$10,FALSE),0)","v":0},{"$f":"ROUND(F533*VLOOKUP(D533,ALLOCTABLE_Prod_Customer,$L$10,FALSE),0)","v":0},{"$f":"ROUND(F533*VLOOKUP(D533,ALLOCTABLE_Prod_Customer,$M$10,FALSE),0)","v":0},{"$f":"ROUND(F533*VLOOKUP(D533,ALLOCTABLE_Prod_Customer,$N$10,FALSE),0)","v":0},{"$f":"ROUND(F533*VLOOKUP(D533,ALLOCTABLE_Prod_Customer,$O$10,FALSE),0)","v":0},{"$f":"ROUND(F533*VLOOKUP(D533,ALLOCTABLE_Prod_Customer,$P$10,FALSE),0)","v":0},{"$f":"ROUND(F533*VLOOKUP(D533,ALLOCTABLE_Prod_Customer,$Q$10,FALSE),0)","v":0},{"$f":"SUM(G533:Q533)","v":0},{"$f":"F533-R533","v":0}]
[20,null,{"$f":"'FR-16(7)(v)-1 Functional'!C534","v":"ELIMINATE MISCELLANEOUS EXPENSES ADJUSTMENT"},{"$f":"'FR-16(7)(v)-1 Functional'!D534","v":"A315"},null,{"$f":"'FR-16(7)(v)-2 PROD Classified'!I534","v":0},0,0,0,0,0,0,0,0,0,0,0,0,0]
[21,null,{"$f":"'FR-16(7)(v)-1 Functional'!C535","v":"RIDER ESM ELIMINATION"},{"$f":"'FR-16(7)(v)-1 Functional'!D535","v":"A315"},null,{"$f":"'FR-16(7)(v)-2 PROD Classified'!I535","v":0},0,0,0,0,0,0,0,0,0,0,0,0,0]
[22,null,{"$f":"'FR-16(7)(v)-1 Functional'!C536","v":"ELIMINATE DSM"},{"$f":"'FR-16(7)(v)-1 Functional'!D536","v":"A315"},null,{"$f":"'FR-16(7)(v)-2 PROD Classified'!I536","v":0},0,0,0,0,0,0,0,0,0,0,0,0,0]
[23,null,{"$f":"'FR-16(7)(v)-1 Functional'!C537","v":"DSM DEFERRAL - ELECTRIC"},{"$f":"'FR-16(7)(v)-1 Functional'!D537","v":"A315"},null,{"$f":"'FR-16(7)(v)-2 PROD Classified'!I537","v":0},0,0,0,0,0,0,0,0,0,0,0,0,0]
[24,null,{"$f":"'FR-16(7)(v)-1 Functional'!C538","v":"PENSION ADJUSTMENT"},{"$f":"'FR-16(7)(v)-1 Functional'!D538","v":"A315"},null,{"$f":"'FR-16(7)(v)-2 PROD Classified'!I538","v":0},0,0,0,0,0,0,0,0,0,0,0,0,0]
[25,null,{"$f":"'FR-16(7)(v)-1 Functional'!C539","v":"ELIMINATE MISC EXPENSES"},{"$f":"'FR-16(7)(v)-1 Functional'!D539","v":"A315"},null,{"$f":"'FR-16(7)(v)-2 PROD Classified'!I539","v":0},0,0,0,0,0,0,0,0,0,0,0,0,0]
[26,null,{"$f":"'FR-16(7)(v)-1 Functional'!C540","v":"ELIMINATE MERGER COSTS AND CREDITS"},{"$f":"'FR-16(7)(v)-1 Functional'!D540","v":"A315"},null,{"$f":"'FR-16(7)(v)-2 PROD Classified'!I540","v":0},0,0,0,0,0,0,0,0,0,0,0,0,0]
[27,null,{"$f":"'FR-16(7)(v)-1 Functional'!C541","v":"ANNUALIZE KYPSC MAINT TAX"},{"$f":"'FR-16(7)(v)-1 Functional'!D541","v":"A315"},null,{"$f":"'FR-16(7)(v)-2 PROD Classified'!I541","v":0},0,0,0,0,0,0,0,0,0,0,0,0,0]
[28,null,{"$f":"'FR-16(7)(v)-1 Functional'!C542","v":"REMOVE INCENTIVE COMP"},{"$f":"'FR-16(7)(v)-1 Functional'!D542","v":"A315"},null,{"$f":"'FR-16(7)(v)-2 PROD Classified'!I542","v":0},0,0,0,0,0,0,0,0,0,0,0,0,0]
[29,null,{"$f":"'FR-16(7)(v)-1 Functional'!C543","v":"CREDIT CARD FEES"},{"$f":"'FR-16(7)(v)-1 Functional'!D543","v":"A315"},null,{"$f":"'FR-16(7)(v)-2 PROD Classified'!I543","v":0},0,0,0,0,0,0,0,0,0,0,0,0,0]
[30,null,{"$f":"'FR-16(7)(v)-1 Functional'!C544","v":"ELIMINATE INCENTIVE COMPENSATION ADJUSTMENT"},{"$f":"'FR-16(7)(v)-1 Functional'!D544","v":"A315"},null,{"$f":"'FR-16(7)(v)-2 PROD Classified'!I544","v":0},0,0,0,0,0,0,0,0,0,0,0,0,0]
[31,null,{"$f":"'FR-16(7)(v)-1 Functional'!C545","v":"AMORTIZATION OF DEFERRAL ASSET"},{"$f":"'FR-16(7)(v)-1 Functional'!D545","v":"A315"},null,{"$f":"'FR-16(7)(v)-2 PROD Classified'!I545","v":0},0,0,0,0,0,0,0,0,0,0,0,0,0]
[32,null,{"$f":"'FR-16(7)(v)-1 Functional'!C546","v":"AMORTIZATION OF DEFERRED EXPENSES"},{"$f":"'FR-16(7)(v)-1 Functional'!D546","v":"A315"},null,{"$f":"'FR-16(7)(v)-2 PROD Classified'!I546","v":0},0,0,0,0,0,0,0,0,0,0,0,0,0]
[33,null,{"$f":"'FR-16(7)(v)-1 Functional'!C547","v":"TOTAL ADMIN. & GENERAL"},null," ",{"$f":"SUM(F532:F546)","v":0},{"$f":"SUM(G532:G546)","v":0},{"$f":"SUM(H532:H546)","v":0},{"$f":"SUM(I532:I546)","v":0},{"$f":"SUM(J532:J546)","v":0},0,0,0,0,0,0,{"$f":"SUM(Q532:Q546)","v":0},{"$f":"SUM(R532:R546)","v":0},{"$f":"SUM(S532:S546)","v":0}]
[34]
[35,null,{"$f":"'FR-16(7)(v)-1 Functional'!C549","v":"TOTAL O & M EXPENSE"},null,null,{"$f":"F547+F522+F518+F503+F492+F470+F466+F459","v":0},{"$f":"G547+G522+G518+G503+G492+G470+G466+G459","v":0},{"$f":"H547+H522+H518+H503+H492+H470+H466+H459","v":0},{"$f":"I547+I522+I518+I503+I492+I470+I466+I459","v":0},{"$f":"J547+J522+J518+J503+J492+J470+J466+J459","v":0},0,0,0,0,0,0,{"$f":"Q547+Q522+Q518+Q503+Q492+Q470+Q466+Q459","v":0},{"$f":"R547+R522+R518+R503+R492+R470+R466+R459","v":0},{"$f":"S547+S522+S518+S503+S492+S466+S459","v":0}]
[]
[{"$f":"co_name","v":"DUKE ENERGY KENTUCKY, INC."},null,null,null,null,null,null,null,null,null,null,null,null,null,null,null,null,{"$f":"R1","v":"FR-16(7)(v)-5"}]
[{"$f":"$A$2","v":"PRODUCTION CUSTOMER ALLOCATED - ELECTRIC COST OF SERVICE"},null,null,null,null,null,null,null,null,null,null,null,null,null,null,null,null,{"$f":"R2","v":"WITNESS RESPONSIBLE:"}]
[{"$f":"case_name","v":"CASE NO: 2019-00271"},null,null,null,null,null,null,null,null,null,null,null,null,null,null,null,null,{"$f":"Witness","v":"JAMES E. ZIOLKOWSKI"}]
[{"$f":"data_filing","v":"DATA: 12 MONTHS ACTUAL  & 0 MONTHS ESTIMATED"},null,null,null,null,null,null,null,null,null,null,null,null,null,null,null,null,{"$f":"\"PAGE \"&Pages-8&\" OF \"&Pages","v":"PAGE 10 OF 18"}]
[{"$f":"type","v":"TYPE OF FILING: \"X\" ORIGINAL   UPDATED    REVISED  "}]
[]
[null,null,null,null,null,{"$f":"F$7","v":"TOTAL"},null,{"$f":"H$7","v":"DS"},{"$f":"I$7","v":"GSFL"},{"$f":"J$7","v":"EH"},{"$f":"K$7","v":"SP"},"DT SEC","DT PRI","DP","TT",null,"OTHER"]
["LINE",null,null,null,null,{"$f":"F$8","v":"PRODUCTION"},{"$f":"G$8","v":"RS"},{"$f":"H$8","v":"SECONDARY"},{"$f":"I$8","v":"SECONDARY"},{"$f":"J$8","v":"SECONDARY"},{"$f":"K$8","v":"SECONDARY"},"SECONDARY","PRIMARY","PRIMARY","TRANSMISSION","LT","WATER",{"$f":"R8","v":"TOTAL"},"ALL"]
["NO.","DEPRECIATION EXPENSE",null,"ALLO",null,{"$f":"F$9","v":"CUSTOMER"},{"$f":"G$9","v":"RESIDENTIAL"},{"$f":"H$9","v":"DISTRIBUTION"},{"$f":"I$9","v":"DISTRIBUTION"},{"$f":"J$9","v":"DISTRIBUTION"},{"$f":"K$9","v":"DISTRIBUTION"},"DISTRIBUTION","DISTRIBUTION","DISTRIBUTION","TIME OF DAY","LIGHTING","PUMPING",{"$f":"R9","v":"AT ISSUE"},"OTHER"]
[null,null,"Schedule 7",null,null,null,{"$f":"G$10","v":3},{"$f":"H$10","v":4},{"$f":"I$10","v":5},{"$f":"J$10","v":6},{"$f":"K$10","v":7},8,9,10,11,12,13,null," "]
[1,"PRODUCTION DEPRECIATION"]
[2,null,{"$f":"'FR-16(7)(v)-1 Functional'!C562","v":"PRODUCTION DEPRECIATION"},{"$f":"'FR-16(7)(v)-1 Functional'!D562","v":"P229"},null,{"$f":"'FR-16(7)(v)-2 PROD Classified'!I562","v":0},{"$f":"F562-SUM(H562:Q562)","v":0},{"$f":"ROUND(F562*VLOOKUP(D562,ALLOCTABLE_Prod_Customer,$H$10,FALSE),0)","v":0},{"$f":"ROUND(F562*VLOOKUP(D562,ALLOCTABLE_Prod_Customer,$I$10,FALSE),0)","v":0},{"$f":"ROUND(F562*VLOOKUP(D562,ALLOCTABLE_Prod_Customer,$J$10,FALSE),0)","v":0},{"$f":"ROUND(F562*VLOOKUP(D562,ALLOCTABLE_Prod_Customer,$K$10,FALSE),0)","v":0},{"$f":"ROUND(F562*VLOOKUP(D562,ALLOCTABLE_Prod_Customer,$L$10,FALSE),0)","v":0},{"$f":"ROUND(F562*VLOOKUP(D562,ALLOCTABLE_Prod_Customer,$M$10,FALSE),0)","v":0},{"$f":"ROUND(F562*VLOOKUP(D562,ALLOCTABLE_Prod_Customer,$N$10,FALSE),0)","v":0},{"$f":"ROUND(F562*VLOOKUP(D562,ALLOCTABLE_Prod_Customer,$O$10,FALSE),0)","v":0},{"$f":"ROUND(F562*VLOOKUP(D562,ALLOCTABLE_Prod_Customer,$P$10,FALSE),0)","v":0},{"$f":"ROUND(F562*VLOOKUP(D562,ALLOCTABLE_Prod_Customer,$Q$10,FALSE),0)","v":0},{"$f":"SUM(G562:Q562)","v":0},{"$f":"F562-R562","v":0}]
[3,null,{"$f":"'FR-16(7)(v)-1 Functional'!C563","v":"  TOTAL PRODUCTION DEPREC EXP."},null,null,{"$f":"SUM(F562:F562)","v":0},{"$f":"SUM(G562:G562)","v":0},{"$f":"SUM(H562:H562)","v":0},{"$f":"SUM(I562:I562)","v":0},{"$f":"SUM(J562:J562)","v":0},0,0,0,0,0,0,{"$f":"SUM(Q562:Q562)","v":0},{"$f":"SUM(R562:R562)","v":0},{"$f":"SUM(S562:S562)","v":0}]
[4]
[5,"TRANSMISSION DEPRECIATION"]
[6,null,"TRANSMISSION DEPRECIATION",{"$f":"'FR-16(7)(v)-1 Functional'!D566","v":"T229"},null,{"$f":"'FR-16(7)(v)-2 PROD Classified'!I566","v":0},{"$f":"F566-SUM(H566:Q566)","v":0},{"$f":"ROUND(F566*VLOOKUP(D566,ALLOCTABLE_Prod_Customer,$H$10,FALSE),0)","v":0},{"$f":"ROUND(F566*VLOOKUP(D566,ALLOCTABLE_Prod_Customer,$I$10,FALSE),0)","v":0},{"$f":"ROUND(F566*VLOOKUP(D566,ALLOCTABLE_Prod_Customer,$J$10,FALSE),0)","v":0},{"$f":"ROUND(F566*VLOOKUP(D566,ALLOCTABLE_Prod_Customer,$K$10,FALSE),0)","v":0},{"$f":"ROUND(F566*VLOOKUP(D566,ALLOCTABLE_Prod_Customer,$L$10,FALSE),0)","v":0},{"$f":"ROUND(F566*VLOOKUP(D566,ALLOCTABLE_Prod_Customer,$M$10,FALSE),0)","v":0},{"$f":"ROUND(F566*VLOOKUP(D566,ALLOCTABLE_Prod_Customer,$N$10,FALSE),0)","v":0},{"$f":"ROUND(F566*VLOOKUP(D566,ALLOCTABLE_Prod_Customer,$O$10,FALSE),0)","v":0},{"$f":"ROUND(F566*VLOOKUP(D566,ALLOCTABLE_Prod_Customer,$P$10,FALSE),0)","v":0},{"$f":"ROUND(F566*VLOOKUP(D566,ALLOCTABLE_Prod_Customer,$Q$10,FALSE),0)","v":0},{"$f":"SUM(G566:Q566)","v":0},{"$f":"F566-R566","v":0}]
[7,null,{"$f":"'FR-16(7)(v)-1 Functional'!C567","v":"  TOTAL TRANSMISSION DEP. EXP."},null,null,{"$f":"SUM(F566:F566)","v":0},{"$f":"SUM(G566:G566)","v":0},{"$f":"SUM(H566:H566)","v":0},{"$f":"SUM(I566:I566)","v":0},{"$f":"SUM(J566:J566)","v":0},0,0,0,0,0,0,{"$f":"SUM(Q566:Q566)","v":0},{"$f":"SUM(R566:R566)","v":0},{"$f":"SUM(S566:S566)","v":0}]
[8]
[9,"DISTRIBUTION DEPRECIATION"]
[10,null,{"$f":"'FR-16(7)(v)-1 Functional'!C570","v":"DISTRIBUTION DEPRECIATION"},{"$f":"'FR-16(7)(v)-1 Functional'!D570","v":"D249"},null,{"$f":"'FR-16(7)(v)-2 PROD Classified'!I570","v":0},{"$f":"F570-SUM(H570:Q570)","v":0},{"$f":"ROUND(F570*VLOOKUP(D570,ALLOCTABLE_Prod_Customer,$H$10,FALSE),0)","v":0},{"$f":"ROUND(F570*VLOOKUP(D570,ALLOCTABLE_Prod_Customer,$I$10,FALSE),0)","v":0},{"$f":"ROUND(F570*VLOOKUP(D570,ALLOCTABLE_Prod_Customer,$J$10,FALSE),0)","v":0},{"$f":"ROUND(F570*VLOOKUP(D570,ALLOCTABLE_Prod_Customer,$K$10,FALSE),0)","v":0},{"$f":"ROUND(F570*VLOOKUP(D570,ALLOCTABLE_Prod_Customer,$L$10,FALSE),0)","v":0},{"$f":"ROUND(F570*VLOOKUP(D570,ALLOCTABLE_Prod_Customer,$M$10,FALSE),0)","v":0},{"$f":"ROUND(F570*VLOOKUP(D570,ALLOCTABLE_Prod_Customer,$N$10,FALSE),0)","v":0},{"$f":"ROUND(F570*VLOOKUP(D570,ALLOCTABLE_Prod_Customer,$O$10,FALSE),0)","v":0},{"$f":"ROUND(F570*VLOOKUP(D570,ALLOCTABLE_Prod_Customer,$P$10,FALSE),0)","v":0},{"$f":"ROUND(F570*VLOOKUP(D570,ALLOCTABLE_Prod_Customer,$Q$10,FALSE),0)","v":0},{"$f":"SUM(G570:Q570)","v":0},{"$f":"F570-R570","v":0}]
[11,null,{"$f":"'FR-16(7)(v)-1 Functional'!C571","v":"  TOTAL DIST. DEPREC EXP."},null,null,{"$f":"SUM(F570:F570)","v":0},{"$f":"SUM(G570:G570)","v":0},{"$f":"SUM(H570:H570)","v":0},{"$f":"SUM(I570:I570)","v":0},{"$f":"SUM(J570:J570)","v":0},0,0,0,0,0,0,{"$f":"SUM(Q570:Q570)","v":0},{"$f":"SUM(R570:R570)","v":0},{"$f":"SUM(S570:S570)","v":0}]
[12,null,null,null,null," "]
[13,"GENERAL DEPRECIATION"]
[14,null,{"$f":"'FR-16(7)(v)-1 Functional'!C574","v":"GENERAL DEPRECIATION"},{"$f":"'FR-16(7)(v)-1 Functional'!D574","v":"G229"},null,{"$f":"'FR-16(7)(v)-2 PROD Classified'!I574","v":0},{"$f":"F574-SUM(H574:Q574)","v":0},{"$f":"ROUND(F574*VLOOKUP(D574,ALLOCTABLE_Prod_Customer,$H$10,FALSE),0)","v":0},{"$f":"ROUND(F574*VLOOKUP(D574,ALLOCTABLE_Prod_Customer,$I$10,FALSE),0)","v":0},{"$f":"ROUND(F574*VLOOKUP(D574,ALLOCTABLE_Prod_Customer,$J$10,FALSE),0)","v":0},{"$f":"ROUND(F574*VLOOKUP(D574,ALLOCTABLE_Prod_Customer,$K$10,FALSE),0)","v":0},{"$f":"ROUND(F574*VLOOKUP(D574,ALLOCTABLE_Prod_Customer,$L$10,FALSE),0)","v":0},{"$f":"ROUND(F574*VLOOKUP(D574,ALLOCTABLE_Prod_Customer,$M$10,FALSE),0)","v":0},{"$f":"ROUND(F574*VLOOKUP(D574,ALLOCTABLE_Prod_Customer,$N$10,FALSE),0)","v":0},{"$f":"ROUND(F574*VLOOKUP(D574,ALLOCTABLE_Prod_Customer,$O$10,FALSE),0)","v":0},{"$f":"ROUND(F574*VLOOKUP(D574,ALLOCTABLE_Prod_Customer,$P$10,FALSE),0)","v":0},{"$f":"ROUND(F574*VLOOKUP(D574,ALLOCTABLE_Prod_Customer,$Q$10,FALSE),0)","v":0},{"$f":"SUM(G574:Q574)","v":0},{"$f":"F574-R574","v":0}]
[15,null,{"$f":"'FR-16(7)(v)-1 Functional'!C575","v":"  TOTAL GENERAL DEPREC EXP."},null,null,{"$f":"SUM(F574:F574)","v":0},{"$f":"SUM(G574:G574)","v":0},{"$f":"SUM(H574:H574)","v":0},{"$f":"SUM(I574:I574)","v":0},{"$f":"SUM(J574:J574)","v":0},0,0,0,0,0,0,{"$f":"SUM(Q574:Q574)","v":0},{"$f":"SUM(R574:R574)","v":0},{"$f":"SUM(S574:S574)","v":0}]
[16]
[17,"COMMON AND OTHER DEPRECIATION"]
[18,null,{"$f":"'FR-16(7)(v)-1 Functional'!C578","v":"COMMON DEPRECIATION"},{"$f":"'FR-16(7)(v)-1 Functional'!D578","v":"C229"},null,{"$f":"'FR-16(7)(v)-2 PROD Classified'!I578","v":0},{"$f":"F578-SUM(H578:Q578)","v":0},{"$f":"ROUND(F578*VLOOKUP(D578,ALLOCTABLE_Prod_Customer,$H$10,FALSE),0)","v":0},{"$f":"ROUND(F578*VLOOKUP(D578,ALLOCTABLE_Prod_Customer,$I$10,FALSE),0)","v":0},{"$f":"ROUND(F578*VLOOKUP(D578,ALLOCTABLE_Prod_Customer,$J$10,FALSE),0)","v":0},{"$f":"ROUND(F578*VLOOKUP(D578,ALLOCTABLE_Prod_Customer,$K$10,FALSE),0)","v":0},{"$f":"ROUND(F578*VLOOKUP(D578,ALLOCTABLE_Prod_Customer,$L$10,FALSE),0)","v":0},{"$f":"ROUND(F578*VLOOKUP(D578,ALLOCTABLE_Prod_Customer,$M$10,FALSE),0)","v":0},{"$f":"ROUND(F578*VLOOKUP(D578,ALLOCTABLE_Prod_Customer,$N$10,FALSE),0)","v":0},{"$f":"ROUND(F578*VLOOKUP(D578,ALLOCTABLE_Prod_Customer,$O$10,FALSE),0)","v":0},{"$f":"ROUND(F578*VLOOKUP(D578,ALLOCTABLE_Prod_Customer,$P$10,FALSE),0)","v":0},{"$f":"ROUND(F578*VLOOKUP(D578,ALLOCTABLE_Prod_Customer,$Q$10,FALSE),0)","v":0},{"$f":"SUM(G578:Q578)","v":0},{"$f":"F578-R578","v":0}]
[19,null,{"$f":"'FR-16(7)(v)-1 Functional'!C579","v":"  TOTAL COM & OTHER DEPREC EXP."},null,null,{"$f":"SUM(F578:F578)","v":0},{"$f":"SUM(G578:G578)","v":0},{"$f":"SUM(H578:H578)","v":0},{"$f":"SUM(I578:I578)","v":0},{"$f":"SUM(J578:J578)","v":0},0,0,0,0,0,0,{"$f":"SUM(Q578:Q578)","v":0},{"$f":"SUM(R578:R578)","v":0},{"$f":"SUM(S578:S578)","v":0}]
[20]
[21]
[22,"TOTAL DEPRECIATION EXPENSE",null,null," ",{"$f":"F579+F575+F571+F567+F563","v":0},{"$f":"G579+G575+G571+G567+G563","v":0},{"$f":"H579+H575+H571+H567+H563","v":0},{"$f":"I579+I575+I571+I567+I563","v":0},{"$f":"J579+J575+J571+J567+J563","v":0},0,0,0,0,0,0,{"$f":"Q579+Q575+Q571+Q567+Q563","v":0},{"$f":"R579+R575+R571+R567+R563","v":0},{"$f":"S579+S575+S571+S567+S563","v":0}]
[]
[{"$f":"co_name","v":"DUKE ENERGY KENTUCKY, INC."},null,null,null,null,null,null,null,null,null,null,null,null,null,null,null,null,{"$f":"R1","v":"FR-16(7)(v)-5"}]
[{"$f":"$A$2","v":"PRODUCTION CUSTOMER ALLOCATED - ELECTRIC COST OF SERVICE"},null,null,null,null,null,null,null,null,null,null,null,null,null,null,null,null,{"$f":"R2","v":"WITNESS RESPONSIBLE:"}]
[{"$f":"case_name","v":"CASE NO: 2019-00271"},null,null,null,null,null,null,null,null,null,null,null,null,null,null,null,null,{"$f":"Witness","v":"JAMES E. ZIOLKOWSKI"}]
[{"$f":"data_filing","v":"DATA: 12 MONTHS ACTUAL  & 0 MONTHS ESTIMATED"},null,null,null,null,null,null,null,null,null,null,null,null,null,null,null,null,{"$f":"\"PAGE \"&Pages-7&\" OF \"&Pages","v":"PAGE 11 OF 18"}]
[{"$f":"type","v":"TYPE OF FILING: \"X\" ORIGINAL   UPDATED    REVISED  "}]
[]
[null,null,null,null,null,{"$f":"F$7","v":"TOTAL"},null,{"$f":"H$7","v":"DS"},{"$f":"I$7","v":"GSFL"},{"$f":"J$7","v":"EH"},{"$f":"K$7","v":"SP"},"DT SEC","DT PRI","DP","TT",null,"OTHER"]
["LINE",null,null,null,null,{"$f":"F$8","v":"PRODUCTION"},{"$f":"G$8","v":"RS"},{"$f":"H$8","v":"SECONDARY"},{"$f":"I$8","v":"SECONDARY"},{"$f":"J$8","v":"SECONDARY"},{"$f":"K$8","v":"SECONDARY"},"SECONDARY","PRIMARY","PRIMARY","TRANSMISSION","LT","WATER",{"$f":"R8","v":"TOTAL"},"ALL"]
["NO.","OTHER TAXES & MISC EXPENSES",null,"ALLO",null,{"$f":"F$9","v":"CUSTOMER"},{"$f":"G$9","v":"RESIDENTIAL"},{"$f":"H$9","v":"DISTRIBUTION"},{"$f":"I$9","v":"DISTRIBUTION"},{"$f":"J$9","v":"DISTRIBUTION"},{"$f":"K$9","v":"DISTRIBUTION"},"DISTRIBUTION","DISTRIBUTION","DISTRIBUTION","TIME OF DAY","LIGHTING","PUMPING",{"$f":"R9","v":"AT ISSUE"},"OTHER"]
[null,null,"Schedule 8",null,null,null,{"$f":"G$10","v":3},{"$f":"H$10","v":4},{"$f":"I$10","v":5},{"$f":"J$10","v":6},{"$f":"K$10","v":7},8,9,10,11,12,13,null," "]
[1,"TAXES OTHER THAN INC & REV"]
[2," REAL ESTATE & PROPERTY TAX"]
[3,null,{"$f":"'FR-16(7)(v)-1 Functional'!C596","v":"REAL ESTATE & PROPERTY TAX"},{"$f":"'FR-16(7)(v)-1 Functional'!D596","v":"NP29"},null,{"$f":"'FR-16(7)(v)-2 PROD Classified'!I596","v":0},{"$f":"F596-SUM(H596:Q596)","v":0},{"$f":"ROUND(F596*VLOOKUP(D596,ALLOCTABLE_Prod_Customer,$H$10,FALSE),0)","v":0},{"$f":"ROUND(F596*VLOOKUP(D596,ALLOCTABLE_Prod_Customer,$I$10,FALSE),0)","v":0},{"$f":"ROUND(F596*VLOOKUP(D596,ALLOCTABLE_Prod_Customer,$J$10,FALSE),0)","v":0},{"$f":"ROUND(F596*VLOOKUP(D596,ALLOCTABLE_Prod_Customer,$K$10,FALSE),0)","v":0},{"$f":"ROUND(F596*VLOOKUP(D596,ALLOCTABLE_Prod_Customer,$L$10,FALSE),0)","v":0},{"$f":"ROUND(F596*VLOOKUP(D596,ALLOCTABLE_Prod_Customer,$M$10,FALSE),0)","v":0},{"$f":"ROUND(F596*VLOOKUP(D596,ALLOCTABLE_Prod_Customer,$N$10,FALSE),0)","v":0},{"$f":"ROUND(F596*VLOOKUP(D596,ALLOCTABLE_Prod_Customer,$O$10,FALSE),0)","v":0},{"$f":"ROUND(F596*VLOOKUP(D596,ALLOCTABLE_Prod_Customer,$P$10,FALSE),0)","v":0},{"$f":"ROUND(F596*VLOOKUP(D596,ALLOCTABLE_Prod_Customer,$Q$10,FALSE),0)","v":0},{"$f":"SUM(G596:Q596)","v":0},{"$f":"F596-R596","v":0}]
[4,null,{"$f":"'FR-16(7)(v)-1 Functional'!C597","v":"ANNUALIZE PROPERTY TAX"},{"$f":"'FR-16(7)(v)-1 Functional'!D597","v":"NP29"}," ",{"$f":"'FR-16(7)(v)-2 PROD Classified'!I597","v":0},{"$f":"F597-SUM(H597:Q597)","v":0},{"$f":"ROUND(F597*VLOOKUP(D597,ALLOCTABLE_Prod_Customer,$H$10,FALSE),0)","v":0},{"$f":"ROUND(F597*VLOOKUP(D597,ALLOCTABLE_Prod_Customer,$I$10,FALSE),0)","v":0},{"$f":"ROUND(F597*VLOOKUP(D597,ALLOCTABLE_Prod_Customer,$J$10,FALSE),0)","v":0},{"$f":"ROUND(F597*VLOOKUP(D597,ALLOCTABLE_Prod_Customer,$K$10,FALSE),0)","v":0},{"$f":"ROUND(F597*VLOOKUP(D597,ALLOCTABLE_Prod_Customer,$L$10,FALSE),0)","v":0},{"$f":"ROUND(F597*VLOOKUP(D597,ALLOCTABLE_Prod_Customer,$M$10,FALSE),0)","v":0},{"$f":"ROUND(F597*VLOOKUP(D597,ALLOCTABLE_Prod_Customer,$N$10,FALSE),0)","v":0},{"$f":"ROUND(F597*VLOOKUP(D597,ALLOCTABLE_Prod_Customer,$O$10,FALSE),0)","v":0},{"$f":"ROUND(F597*VLOOKUP(D597,ALLOCTABLE_Prod_Customer,$P$10,FALSE),0)","v":0},{"$f":"ROUND(F597*VLOOKUP(D597,ALLOCTABLE_Prod_Customer,$Q$10,FALSE),0)","v":0},{"$f":"SUM(G597:Q597)","v":0},{"$f":"F597-R597","v":0}]
[5,null,{"$f":"'FR-16(7)(v)-1 Functional'!C598","v":"  TOTAL REAL ESTATE & PROPERTY TAX"},null,null,{"$f":"SUM(F596:F597)","v":0},{"$f":"SUM(G596:G597)","v":0},{"$f":"SUM(H596:H597)","v":0},{"$f":"SUM(I596:I597)","v":0},{"$f":"SUM(J596:J597)","v":0},0,0,0,0,0,0,{"$f":"SUM($Q$596:$Q$597)","v":0},{"$f":"SUM(R596:R597)","v":0},{"$f":"SUM(S596:S597)","v":0}]
[6]
[7," MISCELLANEOUS TAXES"]
[8,null,{"$f":"'FR-16(7)(v)-1 Functional'!C601","v":"PAYROLL "},{"$f":"'FR-16(7)(v)-1 Functional'!D601","v":"A315"},null,{"$f":"'FR-16(7)(v)-2 PROD Classified'!I601","v":0},{"$f":"F601-SUM(H601:Q601)","v":0},{"$f":"ROUND(F601*VLOOKUP(D601,ALLOCTABLE_Prod_Customer,$H$10,FALSE),0)","v":0},{"$f":"ROUND(F601*VLOOKUP(D601,ALLOCTABLE_Prod_Customer,$I$10,FALSE),0)","v":0},{"$f":"ROUND(F601*VLOOKUP(D601,ALLOCTABLE_Prod_Customer,$J$10,FALSE),0)","v":0},{"$f":"ROUND(F601*VLOOKUP(D601,ALLOCTABLE_Prod_Customer,$K$10,FALSE),0)","v":0},{"$f":"ROUND(F601*VLOOKUP(D601,ALLOCTABLE_Prod_Customer,$L$10,FALSE),0)","v":0},{"$f":"ROUND(F601*VLOOKUP(D601,ALLOCTABLE_Prod_Customer,$M$10,FALSE),0)","v":0},{"$f":"ROUND(F601*VLOOKUP(D601,ALLOCTABLE_Prod_Customer,$N$10,FALSE),0)","v":0},{"$f":"ROUND(F601*VLOOKUP(D601,ALLOCTABLE_Prod_Customer,$O$10,FALSE),0)","v":0},{"$f":"ROUND(F601*VLOOKUP(D601,ALLOCTABLE_Prod_Customer,$P$10,FALSE),0)","v":0},{"$f":"ROUND(F601*VLOOKUP(D601,ALLOCTABLE_Prod_Customer,$Q$10,FALSE),0)","v":0},{"$f":"SUM(G601:Q601)","v":0},{"$f":"F601-R601","v":0}]
[9,null,{"$f":"'FR-16(7)(v)-1 Functional'!C602","v":"ELIMINATE DSM "},{"$f":"'FR-16(7)(v)-1 Functional'!D602","v":"A315"},null,{"$f":"'FR-16(7)(v)-2 PROD Classified'!I602","v":0},{"$f":"F602-SUM(H602:Q602)","v":0},{"$f":"ROUND(F602*VLOOKUP(D602,ALLOCTABLE_Prod_Customer,$H$10,FALSE),0)","v":0},{"$f":"ROUND(F602*VLOOKUP(D602,ALLOCTABLE_Prod_Customer,$I$10,FALSE),0)","v":0},{"$f":"ROUND(F602*VLOOKUP(D602,ALLOCTABLE_Prod_Customer,$J$10,FALSE),0)","v":0},{"$f":"ROUND(F602*VLOOKUP(D602,ALLOCTABLE_Prod_Customer,$K$10,FALSE),0)","v":0},{"$f":"ROUND(F602*VLOOKUP(D602,ALLOCTABLE_Prod_Customer,$L$10,FALSE),0)","v":0},{"$f":"ROUND(F602*VLOOKUP(D602,ALLOCTABLE_Prod_Customer,$M$10,FALSE),0)","v":0},{"$f":"ROUND(F602*VLOOKUP(D602,ALLOCTABLE_Prod_Customer,$N$10,FALSE),0)","v":0},{"$f":"ROUND(F602*VLOOKUP(D602,ALLOCTABLE_Prod_Customer,$O$10,FALSE),0)","v":0},{"$f":"ROUND(F602*VLOOKUP(D602,ALLOCTABLE_Prod_Customer,$P$10,FALSE),0)","v":0},{"$f":"ROUND(F602*VLOOKUP(D602,ALLOCTABLE_Prod_Customer,$Q$10,FALSE),0)","v":0},{"$f":"SUM(G602:Q602)","v":0},{"$f":"F602-R602","v":0}]
[10,null,{"$f":"'FR-16(7)(v)-1 Functional'!C603","v":"FRANCHISE & LICENSE"},{"$f":"'FR-16(7)(v)-1 Functional'!D603","v":"A315"},null,{"$f":"'FR-16(7)(v)-2 PROD Classified'!I603","v":0},{"$f":"F603-SUM(H603:Q603)","v":0},{"$f":"ROUND(F603*VLOOKUP(D603,ALLOCTABLE_Prod_Customer,$H$10,FALSE),0)","v":0},{"$f":"ROUND(F603*VLOOKUP(D603,ALLOCTABLE_Prod_Customer,$I$10,FALSE),0)","v":0},{"$f":"ROUND(F603*VLOOKUP(D603,ALLOCTABLE_Prod_Customer,$J$10,FALSE),0)","v":0},{"$f":"ROUND(F603*VLOOKUP(D603,ALLOCTABLE_Prod_Customer,$K$10,FALSE),0)","v":0},{"$f":"ROUND(F603*VLOOKUP(D603,ALLOCTABLE_Prod_Customer,$L$10,FALSE),0)","v":0},{"$f":"ROUND(F603*VLOOKUP(D603,ALLOCTABLE_Prod_Customer,$M$10,FALSE),0)","v":0},{"$f":"ROUND(F603*VLOOKUP(D603,ALLOCTABLE_Prod_Customer,$N$10,FALSE),0)","v":0},{"$f":"ROUND(F603*VLOOKUP(D603,ALLOCTABLE_Prod_Customer,$O$10,FALSE),0)","v":0},{"$f":"ROUND(F603*VLOOKUP(D603,ALLOCTABLE_Prod_Customer,$P$10,FALSE),0)","v":0},{"$f":"ROUND(F603*VLOOKUP(D603,ALLOCTABLE_Prod_Customer,$Q$10,FALSE),0)","v":0},{"$f":"SUM(G603:Q603)","v":0},{"$f":"F603-R603","v":0}]
[11,null,{"$f":"'FR-16(7)(v)-1 Functional'!C604","v":"ELIMINATE ESM"},{"$f":"'FR-16(7)(v)-1 Functional'!D604","v":"A315"},null,{"$f":"'FR-16(7)(v)-2 PROD Classified'!I604","v":0},{"$f":"F604-SUM(H604:Q604)","v":0},{"$f":"ROUND(F604*VLOOKUP(D604,ALLOCTABLE_Prod_Customer,$H$10,FALSE),0)","v":0},{"$f":"ROUND(F604*VLOOKUP(D604,ALLOCTABLE_Prod_Customer,$I$10,FALSE),0)","v":0},{"$f":"ROUND(F604*VLOOKUP(D604,ALLOCTABLE_Prod_Customer,$J$10,FALSE),0)","v":0},{"$f":"ROUND(F604*VLOOKUP(D604,ALLOCTABLE_Prod_Customer,$K$10,FALSE),0)","v":0},{"$f":"ROUND(F604*VLOOKUP(D604,ALLOCTABLE_Prod_Customer,$L$10,FALSE),0)","v":0},{"$f":"ROUND(F604*VLOOKUP(D604,ALLOCTABLE_Prod_Customer,$M$10,FALSE),0)","v":0},{"$f":"ROUND(F604*VLOOKUP(D604,ALLOCTABLE_Prod_Customer,$N$10,FALSE),0)","v":0},{"$f":"ROUND(F604*VLOOKUP(D604,ALLOCTABLE_Prod_Customer,$O$10,FALSE),0)","v":0},{"$f":"ROUND(F604*VLOOKUP(D604,ALLOCTABLE_Prod_Customer,$P$10,FALSE),0)","v":0},{"$f":"ROUND(F604*VLOOKUP(D604,ALLOCTABLE_Prod_Customer,$Q$10,FALSE),0)","v":0},{"$f":"SUM(G604:Q604)","v":0},{"$f":"F604-R604","v":0}]
[12,null,{"$f":"'FR-16(7)(v)-1 Functional'!C605","v":"  TOTAL MISCELLANEOUS TAXES"},null,null,{"$f":"SUM(F601:F604)","v":0},{"$f":"SUM(G601:G604)","v":0},{"$f":"SUM(H601:H604)","v":0},{"$f":"SUM(I601:I604)","v":0},{"$f":"SUM(J601:J604)","v":0},0,0,0,0,0,0,{"$f":"SUM($Q$601:$Q$604)","v":0},{"$f":"SUM(R601:R604)","v":0},{"$f":"SUM(S601:S604)","v":0}]
[13]
[14," MISCELLANEOUS EXPENSES"]
[15,null,{"$f":"'FR-16(7)(v)-1 Functional'!C608","v":"PSC MAINT. EXP ON INCREASE"},{"$f":"'FR-16(7)(v)-1 Functional'!D608","v":"K902"},null,{"$f":"'FR-16(7)(v)-2 PROD Classified'!I608","v":0},{"$f":"F608-SUM(H608:Q608)","v":0},{"$f":"ROUND(F608*VLOOKUP(D608,ALLOCTABLE_Prod_Customer,$H$10,FALSE),0)","v":0},{"$f":"ROUND(F608*VLOOKUP(D608,ALLOCTABLE_Prod_Customer,$I$10,FALSE),0)","v":0},{"$f":"ROUND(F608*VLOOKUP(D608,ALLOCTABLE_Prod_Customer,$J$10,FALSE),0)","v":0},{"$f":"ROUND(F608*VLOOKUP(D608,ALLOCTABLE_Prod_Customer,$K$10,FALSE),0)","v":0},{"$f":"ROUND(F608*VLOOKUP(D608,ALLOCTABLE_Prod_Customer,$L$10,FALSE),0)","v":0},{"$f":"ROUND(F608*VLOOKUP(D608,ALLOCTABLE_Prod_Customer,$M$10,FALSE),0)","v":0},{"$f":"ROUND(F608*VLOOKUP(D608,ALLOCTABLE_Prod_Customer,$N$10,FALSE),0)","v":0},{"$f":"ROUND(F608*VLOOKUP(D608,ALLOCTABLE_Prod_Customer,$O$10,FALSE),0)","v":0},{"$f":"ROUND(F608*VLOOKUP(D608,ALLOCTABLE_Prod_Customer,$P$10,FALSE),0)","v":0},{"$f":"ROUND(F608*VLOOKUP(D608,ALLOCTABLE_Prod_Customer,$Q$10,FALSE),0)","v":0},{"$f":"SUM(G608:Q608)","v":0},{"$f":"F608-R608","v":0}]
[16,null,{"$f":"'FR-16(7)(v)-1 Functional'!C609","v":"RESERVED FOR FUTURE USE"},{"$f":"'FR-16(7)(v)-1 Functional'!D609","v":"K902"},null,{"$f":"'FR-16(7)(v)-2 PROD Classified'!I609","v":0},{"$f":"F609-SUM(H609:Q609)","v":0},{"$f":"ROUND(F609*VLOOKUP(D609,ALLOCTABLE_Prod_Customer,$H$10,FALSE),0)","v":0},{"$f":"ROUND(F609*VLOOKUP(D609,ALLOCTABLE_Prod_Customer,$I$10,FALSE),0)","v":0},{"$f":"ROUND(F609*VLOOKUP(D609,ALLOCTABLE_Prod_Customer,$J$10,FALSE),0)","v":0},{"$f":"ROUND(F609*VLOOKUP(D609,ALLOCTABLE_Prod_Customer,$K$10,FALSE),0)","v":0},{"$f":"ROUND(F609*VLOOKUP(D609,ALLOCTABLE_Prod_Customer,$L$10,FALSE),0)","v":0},{"$f":"ROUND(F609*VLOOKUP(D609,ALLOCTABLE_Prod_Customer,$M$10,FALSE),0)","v":0},{"$f":"ROUND(F609*VLOOKUP(D609,ALLOCTABLE_Prod_Customer,$N$10,FALSE),0)","v":0},{"$f":"ROUND(F609*VLOOKUP(D609,ALLOCTABLE_Prod_Customer,$O$10,FALSE),0)","v":0},{"$f":"ROUND(F609*VLOOKUP(D609,ALLOCTABLE_Prod_Customer,$P$10,FALSE),0)","v":0},{"$f":"ROUND(F609*VLOOKUP(D609,ALLOCTABLE_Prod_Customer,$Q$10,FALSE),0)","v":0},{"$f":"SUM(G609:Q609)","v":0},{"$f":"F609-R609","v":0}]
[17,null,{"$f":"'FR-16(7)(v)-1 Functional'!C610","v":"  TOTAL MISCELLANEOUS EXPENSES"},null,null,{"$f":"SUM(F608:F609)","v":0},{"$f":"SUM(G608:G609)","v":0},{"$f":"SUM(H608:H609)","v":0},{"$f":"SUM(I608:I609)","v":0},{"$f":"SUM(J608:J609)","v":0},0,0,0,0,0,0,{"$f":"SUM($Q$608:$Q$609)","v":0},{"$f":"SUM(R608:R609)","v":0},{"$f":"SUM(S608:S609)","v":0}]
[18]
[19,"TOTAL OTHER TAX & MISC EXPENSE",null,null," ",{"$f":"F605+F598+F610","v":0},{"$f":"G605+G598+G610","v":0},{"$f":"H605+H598+H610","v":0},{"$f":"I605+I598+I610","v":0},{"$f":"J605+J598+J610","v":0},0,0,0,0,0,0,{"$f":"$Q$605+$Q$598+$Q$610","v":0},{"$f":"R605+R598+R610","v":0},{"$f":"S605+S598+S610","v":0}]
[20]
[21,"PRELIMINARY SUMMARY"]
[22,null,{"$f":"'FR-16(7)(v)-1 Functional'!C615","v":"TOTAL O&M EXPENSE"},null,null,{"$f":"F549","v":0},{"$f":"G549","v":0},{"$f":"H549","v":0},{"$f":"I549","v":0},{"$f":"J549","v":0},0,0,0,0,0,0,{"$f":"Q549","v":0},{"$f":"R549","v":0},{"$f":"S549","v":0}]
[23,null,{"$f":"'FR-16(7)(v)-1 Functional'!C616","v":"TOTAL DEPRECIATION EXPENSE"},null,null,{"$f":"F582","v":0},{"$f":"G582","v":0},{"$f":"H582","v":0},{"$f":"I582","v":0},{"$f":"J582","v":0},0,0,0,0,0,0,{"$f":"Q582","v":0},{"$f":"R582","v":0},{"$f":"S582","v":0}]
[24,null,{"$f":"'FR-16(7)(v)-1 Functional'!C617","v":"TOTAL OTHER TAX & MISC EXPENSE"},null,null,{"$f":"F612","v":0},{"$f":"G612","v":0},{"$f":"H612","v":0},{"$f":"I612","v":0},{"$f":"J612","v":0},0,0,0,0,0,0,{"$f":"$Q$612","v":0},{"$f":"R612","v":0},{"$f":"S612","v":0}]
[25,null,{"$f":"'FR-16(7)(v)-1 Functional'!C618","v":"  TOTAL OPER EXP EXCL INCOME & REV TAX"},null,null,{"$f":"SUM(F615:F617)","v":0},{"$f":"SUM(G615:G617)","v":0},{"$f":"SUM(H615:H617)","v":0},{"$f":"SUM(I615:I617)","v":0},{"$f":"SUM(J615:J617)","v":0},0,0,0,0,0,0,{"$f":"SUM($Q$615:$Q$617)","v":0},{"$f":"SUM(R615:R617)","v":0},{"$f":"SUM(S615:S617)","v":0}]
[]
[{"$f":"co_name","v":"DUKE ENERGY KENTUCKY, INC."},null,null,null,null,null,null,null,null,null,null,null,null,null,null,null,null,{"$f":"R1","v":"FR-16(7)(v)-5"}]
[{"$f":"$A$2","v":"PRODUCTION CUSTOMER ALLOCATED - ELECTRIC COST OF SERVICE"},null,null,null,null,null,null,null,null,null,null,null,null,null,null,null,null,{"$f":"R2","v":"WITNESS RESPONSIBLE:"}]
[{"$f":"case_name","v":"CASE NO: 2019-00271"},null,null,null,null,null,null,null,null,null,null,null,null,null,null,null,null,{"$f":"Witness","v":"JAMES E. ZIOLKOWSKI"}]
[{"$f":"data_filing","v":"DATA: 12 MONTHS ACTUAL  & 0 MONTHS ESTIMATED"},null,null,null,null,null,null,null,null,null,null,null,null,null,null,null,null,{"$f":"\"PAGE \"&Pages-6&\" OF \"&Pages","v":"PAGE 12 OF 18"}]
[{"$f":"type","v":"TYPE OF FILING: \"X\" ORIGINAL   UPDATED    REVISED  "}]
[]
[null,null,null,null,null,{"$f":"F$7","v":"TOTAL"},null,{"$f":"H$7","v":"DS"},{"$f":"I$7","v":"GSFL"},{"$f":"J$7","v":"EH"},{"$f":"K$7","v":"SP"},"DT SEC","DT PRI","DP","TT",null,"OTHER"]
["LINE",null,null,null,null,{"$f":"F$8","v":"PRODUCTION"},{"$f":"G$8","v":"RS"},{"$f":"H$8","v":"SECONDARY"},{"$f":"I$8","v":"SECONDARY"},{"$f":"J$8","v":"SECONDARY"},{"$f":"K$8","v":"SECONDARY"},"SECONDARY","PRIMARY","PRIMARY","TRANSMISSION","LT","WATER",{"$f":"R8","v":"TOTAL"},"ALL"]
["NO.","FEDERAL INCOME TAX BASED ON RETURN",null,"ALLO",null,{"$f":"F$9","v":"CUSTOMER"},{"$f":"G$9","v":"RESIDENTIAL"},{"$f":"H$9","v":"DISTRIBUTION"},{"$f":"I$9","v":"DISTRIBUTION"},{"$f":"J$9","v":"DISTRIBUTION"},{"$f":"K$9","v":"DISTRIBUTION"},"DISTRIBUTION","DISTRIBUTION","DISTRIBUTION","TIME OF DAY","LIGHTING","PUMPING",{"$f":"R9","v":"AT ISSUE"},"OTHER"]
[null,null,"Schedule 9",null,null,null,{"$f":"G$10","v":3},{"$f":"H$10","v":4},{"$f":"I$10","v":5},{"$f":"J$10","v":6},{"$f":"K$10","v":7},8,9,10,11,12,13,null," "]
[1,"FEDERAL INCOME TAX DEDUCTIONS"]
[2," AUTOMATIC INTEREST CALCULATION",null,null,null," "]
[3,null,{"$f":"'FR-16(7)(v)-1 Functional'!C632","v":"AUTO PROC INTEREST DED"},{"$f":"'FR-16(7)(v)-1 Functional'!D632","v":"RB99"},null,{"$f":"'FR-16(7)(v)-2 PROD Classified'!I632","v":0},{"$f":"F632-SUM(H632:Q632)","v":0},{"$f":"ROUND(F632*VLOOKUP(D632,ALLOCTABLE_Prod_Customer,$H$10,FALSE),0)","v":0},{"$f":"ROUND(F632*VLOOKUP(D632,ALLOCTABLE_Prod_Customer,$I$10,FALSE),0)","v":0},{"$f":"ROUND(F632*VLOOKUP(D632,ALLOCTABLE_Prod_Customer,$J$10,FALSE),0)","v":0},{"$f":"ROUND(F632*VLOOKUP(D632,ALLOCTABLE_Prod_Customer,$K$10,FALSE),0)","v":0},{"$f":"ROUND(F632*VLOOKUP(D632,ALLOCTABLE_Prod_Customer,$L$10,FALSE),0)","v":0},{"$f":"ROUND(F632*VLOOKUP(D632,ALLOCTABLE_Prod_Customer,$M$10,FALSE),0)","v":0},{"$f":"ROUND(F632*VLOOKUP(D632,ALLOCTABLE_Prod_Customer,$N$10,FALSE),0)","v":0},{"$f":"ROUND(F632*VLOOKUP(D632,ALLOCTABLE_Prod_Customer,$O$10,FALSE),0)","v":0},{"$f":"ROUND(F632*VLOOKUP(D632,ALLOCTABLE_Prod_Customer,$P$10,FALSE),0)","v":0},{"$f":"ROUND(F632*VLOOKUP(D632,ALLOCTABLE_Prod_Customer,$Q$10,FALSE),0)","v":0},{"$f":"SUM(G632:Q632)","v":0},{"$f":"F632-R632","v":0}]
[4,null,{"$f":"'FR-16(7)(v)-1 Functional'!C633","v":"  TOTAL INTEREST EXPENSE"},null,null,{"$f":"F632","v":0},{"$f":"G632","v":0},{"$f":"H632","v":0},{"$f":"I632","v":0},{"$f":"J632","v":0},0,0,0,0,0,0,{"$f":"$Q$632","v":0},{"$f":"R632","v":0},{"$f":"S632","v":0}]
[5]
[6," OTHER DEDUCTIONS"]
[7,null,{"$f":"'FR-16(7)(v)-1 Functional'!C636","v":"DEPREC EXCESS TAX-BOOK"},{"$f":"'FR-16(7)(v)-1 Functional'!D636","v":"DE49"},null,{"$f":"'FR-16(7)(v)-2 PROD Classified'!I636","v":0},{"$f":"F636-SUM(H636:Q636)","v":0},{"$f":"ROUND(F636*VLOOKUP(D636,ALLOCTABLE_Prod_Customer,$H$10,FALSE),0)","v":0},{"$f":"ROUND(F636*VLOOKUP(D636,ALLOCTABLE_Prod_Customer,$I$10,FALSE),0)","v":0},{"$f":"ROUND(F636*VLOOKUP(D636,ALLOCTABLE_Prod_Customer,$J$10,FALSE),0)","v":0},{"$f":"ROUND(F636*VLOOKUP(D636,ALLOCTABLE_Prod_Customer,$K$10,FALSE),0)","v":0},{"$f":"ROUND(F636*VLOOKUP(D636,ALLOCTABLE_Prod_Customer,$L$10,FALSE),0)","v":0},{"$f":"ROUND(F636*VLOOKUP(D636,ALLOCTABLE_Prod_Customer,$M$10,FALSE),0)","v":0},{"$f":"ROUND(F636*VLOOKUP(D636,ALLOCTABLE_Prod_Customer,$N$10,FALSE),0)","v":0},{"$f":"ROUND(F636*VLOOKUP(D636,ALLOCTABLE_Prod_Customer,$O$10,FALSE),0)","v":0},{"$f":"ROUND(F636*VLOOKUP(D636,ALLOCTABLE_Prod_Customer,$P$10,FALSE),0)","v":0},{"$f":"ROUND(F636*VLOOKUP(D636,ALLOCTABLE_Prod_Customer,$Q$10,FALSE),0)","v":0},{"$f":"SUM(G636:Q636)","v":0},{"$f":"F636-R636","v":0}]
[8,null,{"$f":"'FR-16(7)(v)-1 Functional'!C637","v":"PERMANENT DIFFERENCES"},{"$f":"'FR-16(7)(v)-1 Functional'!D637","v":"A357"},null,{"$f":"'FR-16(7)(v)-2 PROD Classified'!I637","v":0},{"$f":"F637-SUM(H637:Q637)","v":0},{"$f":"ROUND(F637*VLOOKUP(D637,ALLOCTABLE_Prod_Customer,$H$10,FALSE),0)","v":0},{"$f":"ROUND(F637*VLOOKUP(D637,ALLOCTABLE_Prod_Customer,$I$10,FALSE),0)","v":0},{"$f":"ROUND(F637*VLOOKUP(D637,ALLOCTABLE_Prod_Customer,$J$10,FALSE),0)","v":0},{"$f":"ROUND(F637*VLOOKUP(D637,ALLOCTABLE_Prod_Customer,$K$10,FALSE),0)","v":0},{"$f":"ROUND(F637*VLOOKUP(D637,ALLOCTABLE_Prod_Customer,$L$10,FALSE),0)","v":0},{"$f":"ROUND(F637*VLOOKUP(D637,ALLOCTABLE_Prod_Customer,$M$10,FALSE),0)","v":0},{"$f":"ROUND(F637*VLOOKUP(D637,ALLOCTABLE_Prod_Customer,$N$10,FALSE),0)","v":0},{"$f":"ROUND(F637*VLOOKUP(D637,ALLOCTABLE_Prod_Customer,$O$10,FALSE),0)","v":0},{"$f":"ROUND(F637*VLOOKUP(D637,ALLOCTABLE_Prod_Customer,$P$10,FALSE),0)","v":0},{"$f":"ROUND(F637*VLOOKUP(D637,ALLOCTABLE_Prod_Customer,$Q$10,FALSE),0)","v":0},{"$f":"SUM(G637:Q637)","v":0},{"$f":"F637-R637","v":0}]
[9,null,{"$f":"'FR-16(7)(v)-1 Functional'!C638","v":"TEMPORARY DIFFERENCES"},{"$f":"'FR-16(7)(v)-1 Functional'!D638","v":"DE49"},null,{"$f":"'FR-16(7)(v)-2 PROD Classified'!I638","v":0},{"$f":"F638-SUM(H638:Q638)","v":0},{"$f":"ROUND(F638*VLOOKUP(D638,ALLOCTABLE_Prod_Customer,$H$10,FALSE),0)","v":0},{"$f":"ROUND(F638*VLOOKUP(D638,ALLOCTABLE_Prod_Customer,$I$10,FALSE),0)","v":0},{"$f":"ROUND(F638*VLOOKUP(D638,ALLOCTABLE_Prod_Customer,$J$10,FALSE),0)","v":0},{"$f":"ROUND(F638*VLOOKUP(D638,ALLOCTABLE_Prod_Customer,$K$10,FALSE),0)","v":0},{"$f":"ROUND(F638*VLOOKUP(D638,ALLOCTABLE_Prod_Customer,$L$10,FALSE),0)","v":0},{"$f":"ROUND(F638*VLOOKUP(D638,ALLOCTABLE_Prod_Customer,$M$10,FALSE),0)","v":0},{"$f":"ROUND(F638*VLOOKUP(D638,ALLOCTABLE_Prod_Customer,$N$10,FALSE),0)","v":0},{"$f":"ROUND(F638*VLOOKUP(D638,ALLOCTABLE_Prod_Customer,$O$10,FALSE),0)","v":0},{"$f":"ROUND(F638*VLOOKUP(D638,ALLOCTABLE_Prod_Customer,$P$10,FALSE),0)","v":0},{"$f":"ROUND(F638*VLOOKUP(D638,ALLOCTABLE_Prod_Customer,$Q$10,FALSE),0)","v":0},{"$f":"SUM(G638:Q638)","v":0},{"$f":"F638-R638","v":0}]
[10,null,{"$f":"'FR-16(7)(v)-1 Functional'!C639","v":"  TOTAL OTHER DEDUCTIONS"},null,null,{"$f":"SUM(F636:F638)","v":0},{"$f":"SUM(G636:G638)","v":0},{"$f":"SUM(H636:H638)","v":0},{"$f":"SUM(I636:I638)","v":0},{"$f":"SUM(J636:J638)","v":0},0,0,0,0,0,0,{"$f":"SUM($Q$636:$Q$638)","v":0},{"$f":"SUM(R636:R638)","v":0},{"$f":"SUM(S636:S638)","v":0}]
[11]
[12,"NET DEDUCTIONS AND ADDITIONS",null,null,null,{"$f":"F639+F633","v":0},{"$f":"G639+G633","v":0},{"$f":"H639+H633","v":0},{"$f":"I639+I633","v":0},{"$f":"J639+J633","v":0},0,0,0,0,0,0,{"$f":"$Q$639+$Q$633","v":0},{"$f":"R639+R633","v":0},{"$f":"S639+S633","v":0}]
[13]
[14," FED DEFERRED INCOME TAX (410 & 411)"]
[15,null,{"$f":"'FR-16(7)(v)-1 Functional'!C644","v":"DEFERRED INCOME TAXES - NET"},{"$f":"'FR-16(7)(v)-1 Functional'!D644","v":"OM39"},null,{"$f":"'FR-16(7)(v)-2 PROD Classified'!I644","v":0},{"$f":"F644-SUM(H644:Q644)","v":0},{"$f":"ROUND(F644*VLOOKUP(D644,ALLOCTABLE_Prod_Customer,$H$10,FALSE),0)","v":0},{"$f":"ROUND(F644*VLOOKUP(D644,ALLOCTABLE_Prod_Customer,$I$10,FALSE),0)","v":0},{"$f":"ROUND(F644*VLOOKUP(D644,ALLOCTABLE_Prod_Customer,$J$10,FALSE),0)","v":0},{"$f":"ROUND(F644*VLOOKUP(D644,ALLOCTABLE_Prod_Customer,$K$10,FALSE),0)","v":0},{"$f":"ROUND(F644*VLOOKUP(D644,ALLOCTABLE_Prod_Customer,$L$10,FALSE),0)","v":0},{"$f":"ROUND(F644*VLOOKUP(D644,ALLOCTABLE_Prod_Customer,$M$10,FALSE),0)","v":0},{"$f":"ROUND(F644*VLOOKUP(D644,ALLOCTABLE_Prod_Customer,$N$10,FALSE),0)","v":0},{"$f":"ROUND(F644*VLOOKUP(D644,ALLOCTABLE_Prod_Customer,$O$10,FALSE),0)","v":0},{"$f":"ROUND(F644*VLOOKUP(D644,ALLOCTABLE_Prod_Customer,$P$10,FALSE),0)","v":0},{"$f":"ROUND(F644*VLOOKUP(D644,ALLOCTABLE_Prod_Customer,$Q$10,FALSE),0)","v":0},{"$f":"SUM(G644:Q644)","v":0},{"$f":"F644-R644","v":0}]
[16,null,{"$f":"'FR-16(7)(v)-1 Functional'!C645","v":"AMORT OF DEFERRED MERGER COST"},{"$f":"'FR-16(7)(v)-1 Functional'!D645","v":"A357"},null,{"$f":"'FR-16(7)(v)-2 PROD Classified'!I645","v":0},{"$f":"F645-SUM(H645:Q645)","v":0},{"$f":"ROUND(F645*VLOOKUP(D645,ALLOCTABLE_Prod_Customer,$H$10,FALSE),0)","v":0},{"$f":"ROUND(F645*VLOOKUP(D645,ALLOCTABLE_Prod_Customer,$I$10,FALSE),0)","v":0},{"$f":"ROUND(F645*VLOOKUP(D645,ALLOCTABLE_Prod_Customer,$J$10,FALSE),0)","v":0},{"$f":"ROUND(F645*VLOOKUP(D645,ALLOCTABLE_Prod_Customer,$K$10,FALSE),0)","v":0},{"$f":"ROUND(F645*VLOOKUP(D645,ALLOCTABLE_Prod_Customer,$L$10,FALSE),0)","v":0},{"$f":"ROUND(F645*VLOOKUP(D645,ALLOCTABLE_Prod_Customer,$M$10,FALSE),0)","v":0},{"$f":"ROUND(F645*VLOOKUP(D645,ALLOCTABLE_Prod_Customer,$N$10,FALSE),0)","v":0},{"$f":"ROUND(F645*VLOOKUP(D645,ALLOCTABLE_Prod_Customer,$O$10,FALSE),0)","v":0},{"$f":"ROUND(F645*VLOOKUP(D645,ALLOCTABLE_Prod_Customer,$P$10,FALSE),0)","v":0},{"$f":"ROUND(F645*VLOOKUP(D645,ALLOCTABLE_Prod_Customer,$Q$10,FALSE),0)","v":0},{"$f":"SUM(G645:Q645)","v":0},{"$f":"F645-R645","v":0}]
[17,null,{"$f":"'FR-16(7)(v)-1 Functional'!C646","v":"DIT ADJUSTMENT - S/L DEPRECIATION"},{"$f":"'FR-16(7)(v)-1 Functional'!D646","v":"DE49"},null,{"$f":"'FR-16(7)(v)-2 PROD Classified'!I646","v":0},{"$f":"F646-SUM(H646:Q646)","v":0},{"$f":"ROUND(F646*VLOOKUP(D646,ALLOCTABLE_Prod_Customer,$H$10,FALSE),0)","v":0},{"$f":"ROUND(F646*VLOOKUP(D646,ALLOCTABLE_Prod_Customer,$I$10,FALSE),0)","v":0},{"$f":"ROUND(F646*VLOOKUP(D646,ALLOCTABLE_Prod_Customer,$J$10,FALSE),0)","v":0},{"$f":"ROUND(F646*VLOOKUP(D646,ALLOCTABLE_Prod_Customer,$K$10,FALSE),0)","v":0},{"$f":"ROUND(F646*VLOOKUP(D646,ALLOCTABLE_Prod_Customer,$L$10,FALSE),0)","v":0},{"$f":"ROUND(F646*VLOOKUP(D646,ALLOCTABLE_Prod_Customer,$M$10,FALSE),0)","v":0},{"$f":"ROUND(F646*VLOOKUP(D646,ALLOCTABLE_Prod_Customer,$N$10,FALSE),0)","v":0},{"$f":"ROUND(F646*VLOOKUP(D646,ALLOCTABLE_Prod_Customer,$O$10,FALSE),0)","v":0},{"$f":"ROUND(F646*VLOOKUP(D646,ALLOCTABLE_Prod_Customer,$P$10,FALSE),0)","v":0},{"$f":"ROUND(F646*VLOOKUP(D646,ALLOCTABLE_Prod_Customer,$Q$10,FALSE),0)","v":0},{"$f":"SUM(G646:Q646)","v":0},{"$f":"F646-R646","v":0}]
[18,null,{"$f":"'FR-16(7)(v)-1 Functional'!C647","v":"DIT ADJUSTMENT - ARAM"},{"$f":"'FR-16(7)(v)-1 Functional'!D647","v":"K201"},null,{"$f":"'FR-16(7)(v)-2 PROD Classified'!I647","v":0},{"$f":"F647-SUM(H647:Q647)","v":0},{"$f":"ROUND(F647*VLOOKUP(D647,ALLOCTABLE_Prod_Customer,$H$10,FALSE),0)","v":0},{"$f":"ROUND(F647*VLOOKUP(D647,ALLOCTABLE_Prod_Customer,$I$10,FALSE),0)","v":0},{"$f":"ROUND(F647*VLOOKUP(D647,ALLOCTABLE_Prod_Customer,$J$10,FALSE),0)","v":0},{"$f":"ROUND(F647*VLOOKUP(D647,ALLOCTABLE_Prod_Customer,$K$10,FALSE),0)","v":0},{"$f":"ROUND(F647*VLOOKUP(D647,ALLOCTABLE_Prod_Customer,$L$10,FALSE),0)","v":0},{"$f":"ROUND(F647*VLOOKUP(D647,ALLOCTABLE_Prod_Customer,$M$10,FALSE),0)","v":0},{"$f":"ROUND(F647*VLOOKUP(D647,ALLOCTABLE_Prod_Customer,$N$10,FALSE),0)","v":0},{"$f":"ROUND(F647*VLOOKUP(D647,ALLOCTABLE_Prod_Customer,$O$10,FALSE),0)","v":0},{"$f":"ROUND(F647*VLOOKUP(D647,ALLOCTABLE_Prod_Customer,$P$10,FALSE),0)","v":0},{"$f":"ROUND(F647*VLOOKUP(D647,ALLOCTABLE_Prod_Customer,$Q$10,FALSE),0)","v":0},{"$f":"SUM(G647:Q647)","v":0},{"$f":"F647-R647","v":0}]
[19,null,{"$f":"'FR-16(7)(v)-1 Functional'!C648","v":"DIT ADJUSTMENT - AMORT OF EXCESS DEF TAXES"},{"$f":"'FR-16(7)(v)-1 Functional'!D648","v":"A357"},null,{"$f":"'FR-16(7)(v)-2 PROD Classified'!I648","v":0},{"$f":"F648-SUM(H648:Q648)","v":0},{"$f":"ROUND(F648*VLOOKUP(D648,ALLOCTABLE_Prod_Customer,$H$10,FALSE),0)","v":0},{"$f":"ROUND(F648*VLOOKUP(D648,ALLOCTABLE_Prod_Customer,$I$10,FALSE),0)","v":0},{"$f":"ROUND(F648*VLOOKUP(D648,ALLOCTABLE_Prod_Customer,$J$10,FALSE),0)","v":0},{"$f":"ROUND(F648*VLOOKUP(D648,ALLOCTABLE_Prod_Customer,$K$10,FALSE),0)","v":0},{"$f":"ROUND(F648*VLOOKUP(D648,ALLOCTABLE_Prod_Customer,$L$10,FALSE),0)","v":0},{"$f":"ROUND(F648*VLOOKUP(D648,ALLOCTABLE_Prod_Customer,$M$10,FALSE),0)","v":0},{"$f":"ROUND(F648*VLOOKUP(D648,ALLOCTABLE_Prod_Customer,$N$10,FALSE),0)","v":0},{"$f":"ROUND(F648*VLOOKUP(D648,ALLOCTABLE_Prod_Customer,$O$10,FALSE),0)","v":0},{"$f":"ROUND(F648*VLOOKUP(D648,ALLOCTABLE_Prod_Customer,$P$10,FALSE),0)","v":0},{"$f":"ROUND(F648*VLOOKUP(D648,ALLOCTABLE_Prod_Customer,$Q$10,FALSE),0)","v":0},{"$f":"SUM(G648:Q648)","v":0},{"$f":"F648-R648","v":0}]
[20,null,{"$f":"'FR-16(7)(v)-1 Functional'!C649","v":"  TOTAL FED DEF IT (410 & 411)"},null,null,{"$f":"SUM(F644:F648)","v":0},{"$f":"SUM(G644:G648)","v":0},{"$f":"SUM(H644:H648)","v":0},{"$f":"SUM(I644:I648)","v":0},{"$f":"SUM(J644:J648)","v":0},0,0,0,0,0,0,{"$f":"SUM($Q$644:$Q$648)","v":0},{"$f":"SUM(R644:R648)","v":0},{"$f":"SUM(S644:S648)","v":0}]
[21]
[22," AMORT INV TAX CREDIT"]
[23,null,{"$f":"'FR-16(7)(v)-1 Functional'!C652","v":"AMORTIZE ITC"},{"$f":"'FR-16(7)(v)-1 Functional'!D652","v":"NP29"},null,{"$f":"'FR-16(7)(v)-2 PROD Classified'!I652","v":0},{"$f":"F652-SUM(H652:Q652)","v":0},{"$f":"ROUND(F652*VLOOKUP(D652,ALLOCTABLE_Prod_Customer,$H$10,FALSE),0)","v":0},{"$f":"ROUND(F652*VLOOKUP(D652,ALLOCTABLE_Prod_Customer,$I$10,FALSE),0)","v":0},{"$f":"ROUND(F652*VLOOKUP(D652,ALLOCTABLE_Prod_Customer,$J$10,FALSE),0)","v":0},{"$f":"ROUND(F652*VLOOKUP(D652,ALLOCTABLE_Prod_Customer,$K$10,FALSE),0)","v":0},{"$f":"ROUND(F652*VLOOKUP(D652,ALLOCTABLE_Prod_Customer,$L$10,FALSE),0)","v":0},{"$f":"ROUND(F652*VLOOKUP(D652,ALLOCTABLE_Prod_Customer,$M$10,FALSE),0)","v":0},{"$f":"ROUND(F652*VLOOKUP(D652,ALLOCTABLE_Prod_Customer,$N$10,FALSE),0)","v":0},{"$f":"ROUND(F652*VLOOKUP(D652,ALLOCTABLE_Prod_Customer,$O$10,FALSE),0)","v":0},{"$f":"ROUND(F652*VLOOKUP(D652,ALLOCTABLE_Prod_Customer,$P$10,FALSE),0)","v":0},{"$f":"ROUND(F652*VLOOKUP(D652,ALLOCTABLE_Prod_Customer,$Q$10,FALSE),0)","v":0},{"$f":"SUM(G652:Q652)","v":0},{"$f":"F652-R652","v":0}]
[24,null,{"$f":"'FR-16(7)(v)-1 Functional'!C653","v":"  TOTAL AMORTIZED ITC"},null,null,{"$f":"SUM(F652:F652)","v":0},{"$f":"SUM(G652:G652)","v":0},{"$f":"SUM(H652:H652)","v":0},{"$f":"SUM(I652:I652)","v":0},{"$f":"SUM(J652:J652)","v":0},0,0,0,0,0,0,{"$f":"SUM($Q$652:$Q$652)","v":0},{"$f":"SUM(R652:R652)","v":0},{"$f":"SUM(S652:S652)","v":0}]
[25]
[26," OTHER FEDERAL TAX CREDITS"]
[27,null,{"$f":"'FR-16(7)(v)-1 Functional'!C656","v":"FUEL TAX CREDIT"},{"$f":"'FR-16(7)(v)-1 Functional'!D656","v":"K301"},null,0,{"$f":"F656-SUM(H656:Q656)","v":0},{"$f":"ROUND(F656*VLOOKUP(D656,ALLOCTABLE_Prod_Customer,$H$10,FALSE),0)","v":0},{"$f":"ROUND(F656*VLOOKUP(D656,ALLOCTABLE_Prod_Customer,$I$10,FALSE),0)","v":0},{"$f":"ROUND(F656*VLOOKUP(D656,ALLOCTABLE_Prod_Customer,$J$10,FALSE),0)","v":0},{"$f":"ROUND(F656*VLOOKUP(D656,ALLOCTABLE_Prod_Customer,$K$10,FALSE),0)","v":0},{"$f":"ROUND(F656*VLOOKUP(D656,ALLOCTABLE_Prod_Customer,$L$10,FALSE),0)","v":0},{"$f":"ROUND(F656*VLOOKUP(D656,ALLOCTABLE_Prod_Customer,$M$10,FALSE),0)","v":0},{"$f":"ROUND(F656*VLOOKUP(D656,ALLOCTABLE_Prod_Customer,$N$10,FALSE),0)","v":0},{"$f":"ROUND(F656*VLOOKUP(D656,ALLOCTABLE_Prod_Customer,$O$10,FALSE),0)","v":0},{"$f":"ROUND(F656*VLOOKUP(D656,ALLOCTABLE_Prod_Customer,$P$10,FALSE),0)","v":0},{"$f":"ROUND(F656*VLOOKUP(D656,ALLOCTABLE_Prod_Customer,$Q$10,FALSE),0)","v":0},{"$f":"SUM(G656:Q656)","v":0},{"$f":"F656-R656","v":0}]
[28,null,{"$f":"'FR-16(7)(v)-1 Functional'!C657","v":"R&D CREDIT - SECTION 41"},{"$f":"'FR-16(7)(v)-1 Functional'!D657","v":"A315"},null,0,{"$f":"F657-SUM(H657:Q657)","v":0},{"$f":"ROUND(F657*VLOOKUP(D657,ALLOCTABLE_Prod_Customer,$H$10,FALSE),0)","v":0},{"$f":"ROUND(F657*VLOOKUP(D657,ALLOCTABLE_Prod_Customer,$I$10,FALSE),0)","v":0},{"$f":"ROUND(F657*VLOOKUP(D657,ALLOCTABLE_Prod_Customer,$J$10,FALSE),0)","v":0},{"$f":"ROUND(F657*VLOOKUP(D657,ALLOCTABLE_Prod_Customer,$K$10,FALSE),0)","v":0},{"$f":"ROUND(F657*VLOOKUP(D657,ALLOCTABLE_Prod_Customer,$L$10,FALSE),0)","v":0},{"$f":"ROUND(F657*VLOOKUP(D657,ALLOCTABLE_Prod_Customer,$M$10,FALSE),0)","v":0},{"$f":"ROUND(F657*VLOOKUP(D657,ALLOCTABLE_Prod_Customer,$N$10,FALSE),0)","v":0},{"$f":"ROUND(F657*VLOOKUP(D657,ALLOCTABLE_Prod_Customer,$O$10,FALSE),0)","v":0},{"$f":"ROUND(F657*VLOOKUP(D657,ALLOCTABLE_Prod_Customer,$P$10,FALSE),0)","v":0},{"$f":"ROUND(F657*VLOOKUP(D657,ALLOCTABLE_Prod_Customer,$Q$10,FALSE),0)","v":0},{"$f":"SUM(G657:Q657)","v":0},{"$f":"F657-R657","v":0}]
[29,null,"  TOTAL OTHER FEDERAL TAX CREDITS",null,null,{"$f":"SUM(F656:F657)","v":0},{"$f":"SUM(G656:G657)","v":0},{"$f":"SUM(H656:H657)","v":0},{"$f":"SUM(I656:I657)","v":0},{"$f":"SUM(J656:J657)","v":0},0,0,0,0,0,0,{"$f":"SUM($Q$656:$Q$657)","v":0},{"$f":"SUM(R656:R657)","v":0},{"$f":"SUM(S656:S657)","v":0}]
[30]
[31,"PRELIMINARY SUMMARY"]
[32,null,{"$f":"'FR-16(7)(v)-1 Functional'!C661","v":"TOTAL FED DEF IT (410 & 411)"},null,null,{"$f":"F649","v":0},{"$f":"G649","v":0},{"$f":"H649","v":0},{"$f":"I649","v":0},{"$f":"J649","v":0},0,0,0,0,0,0,{"$f":"$Q$649","v":0},{"$f":"R649","v":0},{"$f":"S649","v":0}]
[33,null,{"$f":"'FR-16(7)(v)-1 Functional'!C662","v":"TOTAL AMORTIZED ITC & OTHER FEDERAL TAX CREDITS"},null,null,{"$f":"-F653-F658","v":0},{"$f":"-G653-G658","v":0},0,0,{"$f":"-J653-J658","v":0},0,0,0,0,0,0,0,0,0]
[34,null,{"$f":"'FR-16(7)(v)-1 Functional'!C663","v":"  TOTAL FEDERAL TAX ADJUSTMENTS"},null,null,{"$f":"SUM(F661:F662)","v":0},{"$f":"SUM(G661:G662)","v":0},{"$f":"SUM(H661:H662)","v":0},{"$f":"SUM(I661:I662)","v":0},{"$f":"SUM(J661:J662)","v":0},0,0,0,0,0,0,{"$f":"SUM($Q$661:$Q$662)","v":0},{"$f":"SUM(R661:R662)","v":0},{"$f":"SUM(S661:S662)","v":0}]
[35]
[36,"FEDERAL INCOME TAX COMPUTATION"]
[37,null,"RETURN ON RATE BASE",null,null,{"$f":"F433","v":0},{"$f":"G433","v":0},{"$f":"H433","v":0},{"$f":"I433","v":0},{"$f":"J433","v":0},0,0,0,0,0,0,{"$f":"Q433","v":0},{"$f":"R433","v":0},{"$f":"F666-R666","v":0}]
[38,null,{"$f":"'FR-16(7)(v)-1 Functional'!C667","v":"NET DEDUCTIONS AND ADDITIONS"},null,null,{"$f":"-F641","v":0},{"$f":"-G641","v":0},{"$f":"-H641","v":0},{"$f":"-I641","v":0},{"$f":"-J641","v":0},0,0,0,0,0,0,{"$f":"-$Q$641","v":0},{"$f":"-R641","v":0},{"$f":"F667-R667","v":0}]
[39,null,{"$f":"'FR-16(7)(v)-1 Functional'!C668","v":"TOTAL FEDERAL TAX ADJUSTMENTS"},null,null,{"$f":"F663","v":0},{"$f":"G663","v":0},{"$f":"H663","v":0},{"$f":"I663","v":0},{"$f":"J663","v":0},0,0,0,0,0,0,{"$f":"$Q$663","v":0},{"$f":"R663","v":0},{"$f":"F668-R668","v":0}]
[40,null,"TOTAL STATE PROV DEF IT (410 & 411)",null,null,{"$f":"F707","v":0},{"$f":"G707","v":0},{"$f":"H707","v":0},{"$f":"I707","v":0},{"$f":"J707","v":0},0,0,0,0,0,0,{"$f":"Q707","v":0},{"$f":"R707","v":0},{"$f":"F669-R669","v":0}]
[41,null,"RESERVED",null,null,{"$f":"F24","v":0},{"$f":"G24","v":0},{"$f":"H24","v":0},{"$f":"I24","v":0},{"$f":"J24","v":0},0,0,0,0,0,0,{"$f":"Q24","v":0},{"$f":"R24","v":0},{"$f":"F670-R670","v":0}]
[42,null,{"$f":"'FR-16(7)(v)-1 Functional'!C671","v":"  BASE FOR FIT COMPUATION"},null,null,{"$f":"SUM(F666:F670)","v":0},{"$f":"SUM(G666:G670)","v":0},{"$f":"SUM(H666:H670)","v":0},{"$f":"SUM(I666:I670)","v":0},{"$f":"SUM(J666:J670)","v":0},0,0,0,0,0,0,{"$f":"SUM($Q$666:$Q$670)","v":0},{"$f":"SUM(R666:R670)","v":0},{"$f":"SUM(S666:S670)","v":0}]
[43]
[44,null,{"$f":"'FR-16(7)(v)-1 Functional'!C673","v":"FIT FACTOR K190/(1-K190)"},null,null,{"$f":"ROUND(FIT/(1-FIT),9)","v":0.26582278500000001},0.26582278500000001,0.26582278500000001,0.26582278500000001,0.26582278500000001,0.26582278500000001,0.26582278500000001,0.26582278500000001,0.26582278500000001,0.26582278500000001,0.26582278500000001,0.26582278500000001,null,{"$f":"ROUND(R815/(1-R815),9)","v":0.26582278500000001}]
[45,null,{"$f":"'FR-16(7)(v)-1 Functional'!C674","v":"PRELIM FED INCOME TAX"},null,null,{"$f":"ROUND(F673*F671,0)","v":0},{"$f":"F674-SUM(H674:Q674)","v":0},{"$f":"ROUND(H671*H673,0)","v":0},{"$f":"ROUND(I671*I673,0)","v":0},{"$f":"ROUND(J671*J673,0)","v":0},0,0,0,0,0,0,{"$f":"ROUND($Q$671*$Q$673,0)","v":0},{"$f":"SUM(G674:Q674)","v":0},{"$f":"F674-R674","v":0}]
[46,null,{"$f":"'FR-16(7)(v)-1 Functional'!C675","v":"TOTAL FEDERAL TAX ADJUSTMENTS"},null,null,{"$f":"F663","v":0},{"$f":"G663","v":0},{"$f":"H663","v":0},{"$f":"I663","v":0},{"$f":"J663","v":0},0,0,0,0,0,0,{"$f":"$Q$663","v":0},{"$f":"R663","v":0},{"$f":"F675-R675","v":0}]
[47,null,{"$f":"'FR-16(7)(v)-1 Functional'!C676","v":"  NET FED INCOME TAX ALLOWABLE"},null,null,{"$f":"SUM(F674:F675)","v":0},{"$f":"SUM(G674:G675)","v":0},{"$f":"SUM(H674:H675)","v":0},{"$f":"SUM(I674:I675)","v":0},{"$f":"SUM(J674:J675)","v":0},0,0,0,0,0,0,{"$f":"SUM($Q$674:$Q$675)","v":0},{"$f":"SUM(R674:R675)","v":0},{"$f":"SUM(S674:S675)","v":0}]
[48]
[49,"INCOME TAX BASED ON RETURN"]
[50,"FEDERAL INCOME TAX PAYABLE"]
[51,null,{"$f":"'FR-16(7)(v)-1 Functional'!C680","v":"PRELIM FEDERAL INCOME TAX"},null,null,{"$f":"F674","v":0},{"$f":"G674","v":0},{"$f":"H674","v":0},{"$f":"I674","v":0},{"$f":"J674","v":0},0,0,0,0,0,0,{"$f":"$Q$674","v":0},{"$f":"R674","v":0},{"$f":"S674","v":0}]
[53,null,{"$f":"'FR-16(7)(v)-1 Functional'!C681","v":"  NET FED INCOME TAX PAYABLE"},null,null,{"$f":"SUM(F680:F680)","v":0},{"$f":"SUM(G680:G680)","v":0},{"$f":"SUM(H680:H680)","v":0},{"$f":"SUM(I680:I680)","v":0},{"$f":"SUM(J680:J680)","v":0},0,0,0,0,0,0,{"$f":"SUM($Q$680:$Q$680)","v":0},{"$f":"SUM(R680:R680)","v":0},{"$f":"SUM(S680:S680)","v":0}]
[]
[{"$f":"co_name","v":"DUKE ENERGY KENTUCKY, INC."},null,null,null,null,null,null,null,null,null,null,null,null,null,null,null,null,{"$f":"R1","v":"FR-16(7)(v)-5"}]
[{"$f":"$A$2","v":"PRODUCTION CUSTOMER ALLOCATED - ELECTRIC COST OF SERVICE"},null,null,null,null,null,null,null,null,null,null,null,null,null,null,null,null,{"$f":"R2","v":"WITNESS RESPONSIBLE:"}]
[{"$f":"case_name","v":"CASE NO: 2019-00271"},null,null,null,null,null,null,null,null,null,null,null,null,null,null,null,null,{"$f":"Witness","v":"JAMES E. ZIOLKOWSKI"}]
[{"$f":"data_filing","v":"DATA: 12 MONTHS ACTUAL  & 0 MONTHS ESTIMATED"},null,null,null,null,null,null,null,null,null,null,null,null,null,null,null,null,{"$f":"\"PAGE \"&Pages-5&\" OF \"&Pages","v":"PAGE 13 OF 18"}]
[{"$f":"type","v":"TYPE OF FILING: \"X\" ORIGINAL   UPDATED    REVISED  "}]
[]
[null,null,null,null,null,{"$f":"F$7","v":"TOTAL"},null,{"$f":"H$7","v":"DS"},{"$f":"I$7","v":"GSFL"},{"$f":"J$7","v":"EH"},{"$f":"K$7","v":"SP"},"DT SEC","DT PRI","DP","TT",null,"OTHER"]
["LINE",null,null,null,null,{"$f":"F$8","v":"PRODUCTION"},{"$f":"G$8","v":"RS"},{"$f":"H$8","v":"SECONDARY"},{"$f":"I$8","v":"SECONDARY"},{"$f":"J$8","v":"SECONDARY"},{"$f":"K$8","v":"SECONDARY"},"SECONDARY","PRIMARY","PRIMARY","TRANSMISSION","LT","WATER",{"$f":"R8","v":"TOTAL"},"ALL"]
["NO.","STATE INCOME TAX BASED ON RETURN",null,"Allo",null,{"$f":"F$9","v":"CUSTOMER"},{"$f":"G$9","v":"RESIDENTIAL"},{"$f":"H$9","v":"DISTRIBUTION"},{"$f":"I$9","v":"DISTRIBUTION"},{"$f":"J$9","v":"DISTRIBUTION"},{"$f":"K$9","v":"DISTRIBUTION"},"DISTRIBUTION","DISTRIBUTION","DISTRIBUTION","TIME OF DAY","LIGHTING","PUMPING",{"$f":"R9","v":"AT ISSUE"},"OTHER"]
[null,null,"Schedule 9.1",null,null,null,{"$f":"G$10","v":3},{"$f":"H$10","v":4},{"$f":"I$10","v":5},{"$f":"J$10","v":6},{"$f":"K$10","v":7},8,9,10,11,12,13,null," "]
[1,"DEDUCTIONS IN ADDITION TO Y871"]
[2,"KY TAXABLE INCOME ADJUSTMENT",null,{"$f":"'FR-16(7)(v)-1 Functional'!D694","v":"NP29"},null,{"$f":"'FR-16(7)(v)-2 PROD Classified'!I694","v":0},{"$f":"F694-SUM(H694:Q694)","v":0},{"$f":"ROUND(F694*VLOOKUP(D694,ALLOCTABLE_Prod_Customer,$H$10,FALSE),0)","v":0},{"$f":"ROUND(F694*VLOOKUP(D694,ALLOCTABLE_Prod_Customer,$I$10,FALSE),0)","v":0},{"$f":"ROUND(F694*VLOOKUP(D694,ALLOCTABLE_Prod_Customer,$J$10,FALSE),0)","v":0},{"$f":"ROUND(F694*VLOOKUP(D694,ALLOCTABLE_Prod_Customer,$K$10,FALSE),0)","v":0},{"$f":"ROUND(F694*VLOOKUP(D694,ALLOCTABLE_Prod_Customer,$L$10,FALSE),0)","v":0},{"$f":"ROUND(F694*VLOOKUP(D694,ALLOCTABLE_Prod_Customer,$M$10,FALSE),0)","v":0},{"$f":"ROUND(F694*VLOOKUP(D694,ALLOCTABLE_Prod_Customer,$N$10,FALSE),0)","v":0},{"$f":"ROUND(F694*VLOOKUP(D694,ALLOCTABLE_Prod_Customer,$O$10,FALSE),0)","v":0},{"$f":"ROUND(F694*VLOOKUP(D694,ALLOCTABLE_Prod_Customer,$P$10,FALSE),0)","v":0},{"$f":"ROUND(F694*VLOOKUP(D694,ALLOCTABLE_Prod_Customer,$Q$10,FALSE),0)","v":0},{"$f":"SUM(G694:Q694)","v":0},{"$f":"F694-R694","v":0}]
[3,"RESERVED FOR FUTURE USE",null,{"$f":"'FR-16(7)(v)-1 Functional'!D695","v":"NP29"},null,{"$f":"'FR-16(7)(v)-2 PROD Classified'!I695","v":0},{"$f":"F695-SUM(H695:Q695)","v":0},{"$f":"ROUND(F695*VLOOKUP(D695,ALLOCTABLE_Prod_Customer,$H$10,FALSE),0)","v":0},{"$f":"ROUND(F695*VLOOKUP(D695,ALLOCTABLE_Prod_Customer,$I$10,FALSE),0)","v":0},{"$f":"ROUND(F695*VLOOKUP(D695,ALLOCTABLE_Prod_Customer,$J$10,FALSE),0)","v":0},{"$f":"ROUND(F695*VLOOKUP(D695,ALLOCTABLE_Prod_Customer,$K$10,FALSE),0)","v":0},{"$f":"ROUND(F695*VLOOKUP(D695,ALLOCTABLE_Prod_Customer,$L$10,FALSE),0)","v":0},{"$f":"ROUND(F695*VLOOKUP(D695,ALLOCTABLE_Prod_Customer,$M$10,FALSE),0)","v":0},{"$f":"ROUND(F695*VLOOKUP(D695,ALLOCTABLE_Prod_Customer,$N$10,FALSE),0)","v":0},{"$f":"ROUND(F695*VLOOKUP(D695,ALLOCTABLE_Prod_Customer,$O$10,FALSE),0)","v":0},{"$f":"ROUND(F695*VLOOKUP(D695,ALLOCTABLE_Prod_Customer,$P$10,FALSE),0)","v":0},{"$f":"ROUND(F695*VLOOKUP(D695,ALLOCTABLE_Prod_Customer,$Q$10,FALSE),0)","v":0},{"$f":"SUM(G695:Q695)","v":0},{"$f":"F695-R695","v":0}]
[4,"  DEDUCTIONS IN ADD TO Y871",null,null,null,{"$f":"SUM(F694:F695)","v":0},{"$f":"SUM(G694:G695)","v":0},0,0,{"$f":"SUM(J694:J695)","v":0},0,0,0,0,0,0,0,0,0]
[5]
[6,"STATE INCOME TAX ADJUSTMENTS"]
[7,"STATE PROV DEF INC TAX (410 & 411)"]
[8,"OTHER DEFERRED INCOME TAXES - NET",null,{"$f":"'FR-16(7)(v)-1 Functional'!D700","v":"A357"},null,{"$f":"'FR-16(7)(v)-2 PROD Classified'!I700","v":0},{"$f":"F700-SUM(H700:Q700)","v":0},{"$f":"ROUND(F700*VLOOKUP(D700,ALLOCTABLE_Prod_Customer,$H$10,FALSE),0)","v":0},{"$f":"ROUND(F700*VLOOKUP(D700,ALLOCTABLE_Prod_Customer,$I$10,FALSE),0)","v":0},{"$f":"ROUND(F700*VLOOKUP(D700,ALLOCTABLE_Prod_Customer,$J$10,FALSE),0)","v":0},{"$f":"ROUND(F700*VLOOKUP(D700,ALLOCTABLE_Prod_Customer,$K$10,FALSE),0)","v":0},{"$f":"ROUND(F700*VLOOKUP(D700,ALLOCTABLE_Prod_Customer,$L$10,FALSE),0)","v":0},{"$f":"ROUND(F700*VLOOKUP(D700,ALLOCTABLE_Prod_Customer,$M$10,FALSE),0)","v":0},{"$f":"ROUND(F700*VLOOKUP(D700,ALLOCTABLE_Prod_Customer,$N$10,FALSE),0)","v":0},{"$f":"ROUND(F700*VLOOKUP(D700,ALLOCTABLE_Prod_Customer,$O$10,FALSE),0)","v":0},{"$f":"ROUND(F700*VLOOKUP(D700,ALLOCTABLE_Prod_Customer,$P$10,FALSE),0)","v":0},{"$f":"ROUND(F700*VLOOKUP(D700,ALLOCTABLE_Prod_Customer,$Q$10,FALSE),0)","v":0},{"$f":"SUM(G700:Q700)","v":0},{"$f":"F700-R700","v":0}]
[9,"  TOT STATE PROV DEF IT (410 & 411)",null,null,null,{"$f":"SUM(F700)","v":0},{"$f":"SUM(G700)","v":0},0,0,{"$f":"SUM(J700)","v":0},0,0,0,0,0,0,0,0,0]
[10]
[11,"OTHER SIT ADJUSTMENTS"]
[12,"CURRENT YEAR PAYABLE ADJUSTMENT",null,{"$f":"'FR-16(7)(v)-1 Functional'!D704","v":"NP29"},null,{"$f":"'FR-16(7)(v)-2 PROD Classified'!I704","v":0},{"$f":"F704-SUM(H704:Q704)","v":0},{"$f":"ROUND(F704*VLOOKUP(D704,ALLOCTABLE_Prod_Customer,$H$10,FALSE),0)","v":0},{"$f":"ROUND(F704*VLOOKUP(D704,ALLOCTABLE_Prod_Customer,$I$10,FALSE),0)","v":0},{"$f":"ROUND(F704*VLOOKUP(D704,ALLOCTABLE_Prod_Customer,$J$10,FALSE),0)","v":0},{"$f":"ROUND(F704*VLOOKUP(D704,ALLOCTABLE_Prod_Customer,$K$10,FALSE),0)","v":0},{"$f":"ROUND(F704*VLOOKUP(D704,ALLOCTABLE_Prod_Customer,$L$10,FALSE),0)","v":0},{"$f":"ROUND(F704*VLOOKUP(D704,ALLOCTABLE_Prod_Customer,$M$10,FALSE),0)","v":0},{"$f":"ROUND(F704*VLOOKUP(D704,ALLOCTABLE_Prod_Customer,$N$10,FALSE),0)","v":0},{"$f":"ROUND(F704*VLOOKUP(D704,ALLOCTABLE_Prod_Customer,$O$10,FALSE),0)","v":0},{"$f":"ROUND(F704*VLOOKUP(D704,ALLOCTABLE_Prod_Customer,$P$10,FALSE),0)","v":0},{"$f":"ROUND(F704*VLOOKUP(D704,ALLOCTABLE_Prod_Customer,$Q$10,FALSE),0)","v":0},{"$f":"SUM(G704:Q704)","v":0},{"$f":"F704-R704","v":0}]
[13,"  OTHER SIT ADJUSMENTS",null,null,null,{"$f":"SUM(F704)","v":0},{"$f":"SUM(G704)","v":0},{"$f":"SUM(H704)","v":0},{"$f":"SUM(I704)","v":0},{"$f":"SUM(J704)","v":0},0,0,0,0,0,0,{"$f":"SUM(Q704)","v":0},{"$f":"SUM(R704)","v":0},{"$f":"SUM(S704)","v":0}]
[14]
[15,"TOTAL STATE INC TAX ADJUSTMENT",null,null,null,{"$f":"F705+F701","v":0},{"$f":"G705+G701","v":0},{"$f":"H705+H701","v":0},{"$f":"I705+I701","v":0},{"$f":"J705+J701","v":0},0,0,0,0,0,0,{"$f":"Q705+Q701","v":0},{"$f":"R705+R701","v":0},{"$f":"S705+S701","v":0}]
[16]
[17,"INCOME TAX BASED ON RETURN"]
[18,"SUMMARY OF SIT CALCULATION"]
[19,"RETURN ON RATE BASE",null,null,null,{"$f":"F433","v":0},{"$f":"G433","v":0},{"$f":"H433","v":0},{"$f":"I433","v":0},{"$f":"J433","v":0},0,0,0,0,0,0,{"$f":"Q433","v":0},{"$f":"R433","v":0},{"$f":"S433","v":0}]
[20,"NET FED INCOME TAX ALLOWABLE",null,null,null,{"$f":"F676","v":0},{"$f":"G676","v":0},{"$f":"H676","v":0},{"$f":"I676","v":0},{"$f":"J676","v":0},0,0,0,0,0,0,{"$f":"Q676","v":0},{"$f":"R676","v":0},{"$f":"S676","v":0}]
[21,"NET FED. DED. AND ADDITIONS",null,null,null,{"$f":"-F641","v":0},{"$f":"-G641","v":0},{"$f":"-H641","v":0},{"$f":"-I641","v":0},{"$f":"-J641","v":0},0,0,0,0,0,0,{"$f":"-Q641","v":0},{"$f":"-R641","v":0},{"$f":"-S641","v":0}]
[22,"DEDUCTIONS IN ADD TO Y871",null,null,null,{"$f":"-F696","v":0},{"$f":"-G696","v":0},{"$f":"-H696","v":0},{"$f":"-I696","v":0},{"$f":"-J696","v":0},0,0,0,0,0,0,{"$f":"-Q696","v":0},{"$f":"-R696","v":0},{"$f":"-S696","v":0}]
[23,"RESERVED",null,null,null,{"$f":"F24","v":0},{"$f":"G24","v":0},{"$f":"H24","v":0},{"$f":"I24","v":0},{"$f":"J24","v":0},0,0,0,0,0,0,{"$f":"Q24","v":0},{"$f":"R24","v":0},{"$f":"S24","v":0}]
[24,"TOTAL STATE INC TAX ADJ",null,null,null,{"$f":"F707","v":0},{"$f":"G707","v":0},{"$f":"H707","v":0},{"$f":"I707","v":0},{"$f":"J707","v":0},0,0,0,0,0,0,{"$f":"Q707","v":0},{"$f":"R707","v":0},{"$f":"S707","v":0}]
[25,"  BASE FOR SIT COMPUTATION",null,null,null,{"$f":"SUM(F711:F716)","v":0},{"$f":"SUM(G711:G716)","v":0},{"$f":"SUM(H711:H716)","v":0},{"$f":"SUM(I711:I716)","v":0},{"$f":"SUM(J711:J716)","v":0},0,0,0,0,0,0,{"$f":"SUM(Q711:Q716)","v":0},{"$f":"SUM(R711:R716)","v":0},{"$f":"SUM(S711:S716)","v":0}]
[26]
[27,"SIT FACTOR K192/(1-K192)",null,null,null,{"$f":"ROUND(SIT/(1-SIT),8)","v":5.2282660000000002E-2},5.2282660000000002E-2,5.2282660000000002E-2,5.2282660000000002E-2,5.2282660000000002E-2,5.2282660000000002E-2,5.2282660000000002E-2,5.2282660000000002E-2,5.2282660000000002E-2,5.2282660000000002E-2,5.2282660000000002E-2,5.2282660000000002E-2,5.2282660000000002E-2,5.2282660000000002E-2]
[28,"PRELIMINARY STATE INCOME TAX",null,null,null,{"$f":"ROUND(F717*F719,0)","v":0},{"$f":"F720-SUM(H720:Q720)","v":0},{"$f":"ROUND(H717*H719,0)","v":0},{"$f":"ROUND(I717*I719,0)","v":0},{"$f":"ROUND(J717*J719,0)","v":0},0,0,0,0,0,0,{"$f":"ROUND(Q717*Q719,0)","v":0},{"$f":"SUM(G720:Q720)","v":0},{"$f":"F720-R720","v":0}]
[29,"TOTAL STATE INCOME TAX ADJ.",null,null,null,{"$f":"F707","v":0},{"$f":"G707","v":0},{"$f":"H707","v":0},{"$f":"I707","v":0},{"$f":"J707","v":0},0,0,0,0,0,0,{"$f":"Q707","v":0},{"$f":"SUM(G721:Q721)","v":0},{"$f":"F721-R721","v":0}]
[30,"  NET STATE INC TAX ALLOWABLE",null,null,null,{"$f":"F721+F720","v":0},0,0,0,{"$f":"J721+J720","v":0},0,0,0,0,0,0,0,0,{"$f":"S721+S720","v":0}]
[31]
[32,"STATE INCOME TAX PAYABLE"]
[33,"PRELIMINARY STATE INCOME TAX",null,null,null,{"$f":"F720","v":0},{"$f":"G720","v":0},{"$f":"H720","v":0},{"$f":"I720","v":0},{"$f":"J720","v":0},0,0,0,0,0,0,{"$f":"Q720","v":0},{"$f":"SUM(G725:Q725)","v":0},{"$f":"F725-R725","v":0}]
[34,"OTHER SIT ADJUSTMENTS",null,null,null,{"$f":"F705","v":0},{"$f":"G705","v":0},{"$f":"H705","v":0},{"$f":"I705","v":0},{"$f":"J705","v":0},0,0,0,0,0,0,{"$f":"Q705","v":0},{"$f":"SUM(G726:Q726)","v":0},{"$f":"F726-R726","v":0}]
[35,"  NET STATE INCOME TAX PAYABLE",null,null,null,{"$f":"F725+F726","v":0},0,0,0,{"$f":"J725+J726","v":0},0,0,0,0,0,0,0,0,{"$f":"S725+S726","v":0}]
[36]
[37,"COMPOSITE TAX RATE",null,null,null,{"$f":"(SIT*(1-FIT))+((1-SIT)*(1-FIT)*RevTax)+FIT","v":0.24925115},0.24925115,0.24925115,0.24925115,0.24925115,0.24925115,0.24925115,0.24925115,0.24925115,0.24925115,0.24925115,0.24925115,0.24925115,0.24925115]
[]
[{"$f":"co_name","v":"DUKE ENERGY KENTUCKY, INC."},null,null,null,null,null,null,null,null,null,null,null,null,null,null,null,null,{"$f":"R1","v":"FR-16(7)(v)-5"}]
[{"$f":"$A$2","v":"PRODUCTION CUSTOMER ALLOCATED - ELECTRIC COST OF SERVICE"},null,null,null,null,null,null,null,null,null,null,null,null,null,null,null,null,{"$f":"R2","v":"WITNESS RESPONSIBLE:"}]
[{"$f":"case_name","v":"CASE NO: 2019-00271"},null,null,null,null,null,null,null,null,null,null,null,null,null,null,null,null,{"$f":"Witness","v":"JAMES E. ZIOLKOWSKI"}]
[{"$f":"data_filing","v":"DATA: 12 MONTHS ACTUAL  & 0 MONTHS ESTIMATED"},null,null,null,null,null,null,null,null,null,null,null,null,null,null,null,null,{"$f":"\"PAGE \"&Pages-4&\" OF \"&Pages","v":"PAGE 14 OF 18"}]
[{"$f":"type","v":"TYPE OF FILING: \"X\" ORIGINAL   UPDATED    REVISED  "}]
[]
[null,null,null,null,null,{"$f":"F$7","v":"TOTAL"},null,{"$f":"H$7","v":"DS"},{"$f":"I$7","v":"GSFL"},{"$f":"J$7","v":"EH"},{"$f":"K$7","v":"SP"},"DT SEC","DT PRI","DP","TT",null,"OTHER"]
["LINE",null,null,null,null,{"$f":"F$8","v":"PRODUCTION"},{"$f":"G$8","v":"RS"},{"$f":"H$8","v":"SECONDARY"},{"$f":"I$8","v":"SECONDARY"},{"$f":"J$8","v":"SECONDARY"},{"$f":"K$8","v":"SECONDARY"},"SECONDARY","PRIMARY","PRIMARY","TRANSMISSION","LT","WATER",{"$f":"R8","v":"TOTAL"},"ALL"]
["NO.","COST OF SERVICE COMPUTATION",null,"ALLO",null,{"$f":"F$9","v":"CUSTOMER"},{"$f":"G$9","v":"RESIDENTIAL"},{"$f":"H$9","v":"DISTRIBUTION"},{"$f":"I$9","v":"DISTRIBUTION"},{"$f":"J$9","v":"DISTRIBUTION"},{"$f":"K$9","v":"DISTRIBUTION"},"DISTRIBUTION","DISTRIBUTION","DISTRIBUTION","TIME OF DAY","LIGHTING","PUMPING",{"$f":"R9","v":"AT ISSUE"},"OTHER"]
[null,null,"Schedule 10",null,null,null,{"$f":"G$10","v":3},{"$f":"H$10","v":4},{"$f":"I$10","v":5},{"$f":"J$10","v":6},{"$f":"K$10","v":7},8,9,10,11,12,13,null," "]
[1,"OTHER OPERATING REVENUES"]
[2,null,{"$f":"'FR-16(7)(v)-1 Functional'!C742","v":"MISC SERVICE REVENUE"},{"$f":"'FR-16(7)(v)-1 Functional'!D742","v":"D249"},null,{"$f":"'FR-16(7)(v)-2 PROD Classified'!I742","v":0},{"$f":"F742-SUM(H742:Q742)","v":0},{"$f":"ROUND(F742*VLOOKUP(D742,ALLOCTABLE_Prod_Customer,$H$10,FALSE),0)","v":0},{"$f":"ROUND(F742*VLOOKUP(D742,ALLOCTABLE_Prod_Customer,$I$10,FALSE),0)","v":0},{"$f":"ROUND(F742*VLOOKUP(D742,ALLOCTABLE_Prod_Customer,$J$10,FALSE),0)","v":0},{"$f":"ROUND(F742*VLOOKUP(D742,ALLOCTABLE_Prod_Customer,$K$10,FALSE),0)","v":0},{"$f":"ROUND(F742*VLOOKUP(D742,ALLOCTABLE_Prod_Customer,$L$10,FALSE),0)","v":0},{"$f":"ROUND(F742*VLOOKUP(D742,ALLOCTABLE_Prod_Customer,$M$10,FALSE),0)","v":0},{"$f":"ROUND(F742*VLOOKUP(D742,ALLOCTABLE_Prod_Customer,$N$10,FALSE),0)","v":0},{"$f":"ROUND(F742*VLOOKUP(D742,ALLOCTABLE_Prod_Customer,$O$10,FALSE),0)","v":0},{"$f":"ROUND(F742*VLOOKUP(D742,ALLOCTABLE_Prod_Customer,$P$10,FALSE),0)","v":0},{"$f":"ROUND(F742*VLOOKUP(D742,ALLOCTABLE_Prod_Customer,$Q$10,FALSE),0)","v":0},{"$f":"SUM(G742:Q742)","v":0},{"$f":"F742-R742","v":0}]
[3,null,{"$f":"'FR-16(7)(v)-1 Functional'!C743","v":"INTERDEPARTMENTAL"},{"$f":"'FR-16(7)(v)-1 Functional'!D743","v":"K902"},null,{"$f":"'FR-16(7)(v)-2 PROD Classified'!I743","v":0},0,0,0,0,0,0,0,0,0,0,0,0,0]
[4,null,{"$f":"'FR-16(7)(v)-1 Functional'!C744","v":"POLE & LINE ATTACHMENTS"},{"$f":"'FR-16(7)(v)-1 Functional'!D744","v":"D249"},null,{"$f":"'FR-16(7)(v)-2 PROD Classified'!I744","v":0},0,0,0,0,0,0,0,0,0,0,0,0,0]
[5,null,{"$f":"'FR-16(7)(v)-1 Functional'!C745","v":"RENTS"},{"$f":"'FR-16(7)(v)-1 Functional'!D745","v":"D249"},null,{"$f":"'FR-16(7)(v)-2 PROD Classified'!I745","v":0},0,0,0,0,0,0,0,0,0,0,0,0,0]
[6,null,{"$f":"'FR-16(7)(v)-1 Functional'!C746","v":"TRANSMISSION CHARGE PTP"},{"$f":"'FR-16(7)(v)-1 Functional'!D746","v":"T229"},null,0,{"$f":"F746-SUM(H746:Q746)","v":0},0,0,0,0,0,0,0,0,0,{"$f":"ROUND(F746*VLOOKUP(D746,ALLOCTABLE_Prod_Customer,$Q$10,FALSE),0)","v":0},0,0]
[7,null,{"$f":"'FR-16(7)(v)-1 Functional'!C747","v":"PJM REACTIVE REVENUE"},{"$f":"'FR-16(7)(v)-1 Functional'!D747","v":"K401"},null,0,{"$f":"F747-SUM(H747:Q747)","v":0},0,0,0,0,0,0,0,0,0,{"$f":"ROUND(F747*VLOOKUP(D747,ALLOCTABLE_Prod_Customer,$Q$10,FALSE),0)","v":0},0,0]
[8,null,{"$f":"'FR-16(7)(v)-1 Functional'!C748","v":"OTHER TRANSMISSION REVENUES"},{"$f":"'FR-16(7)(v)-1 Functional'!D748","v":"T229"},null,0,{"$f":"F748-SUM(H748:Q748)","v":0},0,0,0,0,0,0,0,0,0,{"$f":"ROUND(F748*VLOOKUP(D748,ALLOCTABLE_Prod_Customer,$Q$10,FALSE),0)","v":0},0,0]
[9,null,{"$f":"'FR-16(7)(v)-1 Functional'!C749","v":"FIXED BILL PREMIUM"},{"$f":"'FR-16(7)(v)-1 Functional'!D749","v":"K902"},null,{"$f":"'FR-16(7)(v)-2 PROD Classified'!I749","v":0},0,0,0,0,0,0,0,0,0,0,0,0,0]
[10,null,{"$f":"'FR-16(7)(v)-1 Functional'!C750","v":"  TOTAL OTHER OPERATING REVS"},null,null,{"$f":"SUM(F742:F749)","v":0},{"$f":"SUM(G742:G749)","v":0},{"$f":"SUM(H742:H749)","v":0},{"$f":"SUM(I742:I749)","v":0},{"$f":"SUM(J742:J749)","v":0},0,0,0,0,0,0,{"$f":"SUM($Q$742:$Q$749)","v":0},{"$f":"SUM(R742:R749)","v":0},{"$f":"SUM(S742:S749)","v":0}]
[11]
[12,"COST OF SERVICE COMPUTATION"]
[13,null,{"$f":"'FR-16(7)(v)-1 Functional'!C753","v":"TOTAL OP EXP EXC INC & REV TAX"},null,null,{"$f":"F618","v":0},{"$f":"G618","v":0},{"$f":"H618","v":0},{"$f":"I618","v":0},{"$f":"J618","v":0},0,0,0,0,0,0,{"$f":"$Q$618","v":0},{"$f":"R618","v":0},{"$f":"S618","v":0}]
[14,null,"RETURN ON RATE BASE",null,null,{"$f":"F433","v":0},{"$f":"G433","v":0},{"$f":"H433","v":0},{"$f":"I433","v":0},{"$f":"J433","v":0},0,0,0,0,0,0,{"$f":"Q433","v":0},{"$f":"R433","v":0},{"$f":"S433","v":0}]
[15,null,{"$f":"'FR-16(7)(v)-1 Functional'!C755","v":"NET FED INCOME TAX ALLOWABLE"},null,null,{"$f":"F676","v":0},{"$f":"G676","v":0},{"$f":"H676","v":0},{"$f":"I676","v":0},{"$f":"J676","v":0},0,0,0,0,0,0,{"$f":"$Q$676","v":0},{"$f":"R676","v":0},{"$f":"S676","v":0}]
[16,null,{"$f":"'FR-16(7)(v)-1 Functional'!C756","v":"NET STATE INCOME TAX ALLOWABLE"},null,null,{"$f":"F722","v":0},{"$f":"G722","v":0},0,0,{"$f":"J722","v":0},0,0,0,0,0,0,0,0,0]
[17,null,{"$f":"'FR-16(7)(v)-1 Functional'!C757","v":"TOTAL OTHER OPERATING REVENUES"},null,null,{"$f":"-F750","v":0},{"$f":"-G750","v":0},{"$f":"-H750","v":0},{"$f":"-I750","v":0},{"$f":"-J750","v":0},0,0,0,0,0,0,{"$f":"-$Q$750","v":0},{"$f":"-R750","v":0},{"$f":"-S750","v":0}]
[18,null,{"$f":"'FR-16(7)(v)-1 Functional'!C758","v":"  SUBTOTAL B"},null,null,{"$f":"SUM(F752:F757)","v":0},{"$f":"SUM(G752:G757)","v":0},{"$f":"SUM(H752:H757)","v":0},{"$f":"SUM(I752:I757)","v":0},{"$f":"SUM(J752:J757)","v":0},0,0,0,0,0,0,{"$f":"SUM($Q$752:$Q$757)","v":0},{"$f":"SUM(R752:R757)","v":0},{"$f":"R758-F758","v":0}]
[19]
[20,null,{"$f":"'FR-16(7)(v)-1 Functional'!C760","v":"TOTAL OTHER OPERATING REVENUES"},null,null,{"$f":"-F757","v":0},{"$f":"-G757","v":0},{"$f":"-H757","v":0},{"$f":"-I757","v":0},{"$f":"-J757","v":0},0,0,0,0,0,0,{"$f":"-$Q$757","v":0},{"$f":"-R757","v":0},{"$f":"-S757","v":0}]
[21,null,{"$f":"'FR-16(7)(v)-1 Functional'!C761","v":"LESS: REVS EXCL FROM REV TAX CALC"},null,null,{"$f":"F989","v":0},{"$f":"G989","v":0},{"$f":"H989","v":0},{"$f":"I989","v":0},{"$f":"J989","v":0},0,0,0,0,0,0,{"$f":"Q989","v":0},{"$f":"R989","v":0},{"$f":"S989","v":0}]
[22,null,{"$f":"'FR-16(7)(v)-1 Functional'!C762","v":"OTHER OPERATING REVS TO BE TAXED"},null,null,{"$f":"F760-F761","v":0},{"$f":"G760-G761","v":0},{"$f":"H760-H761","v":0},{"$f":"I760-I761","v":0},{"$f":"J760-J761","v":0},0,0,0,0,0,0,{"$f":"$Q$760-Q761","v":0},{"$f":"R760-R761","v":0},{"$f":"S760-S761","v":0}]
[23]
[24,null,{"$f":"'FR-16(7)(v)-1 Functional'!C764","v":"REVENUE TAX FACTOR"},null,null,{"$f":"ROUND(F817/(1-F817),8)","v":0},0,0,0,{"$f":"ROUND(J817/(1-J817),8)","v":0},0,0,0,0,0,0,0,0,0]
[25,null,{"$f":"'FR-16(7)(v)-1 Functional'!C765","v":"REVENUE TAX ON OTHER OPER. REVS"},null,null,{"$f":"ROUND(F764*F762,0)","v":0},{"$f":"ROUND(G764*G762,0)","v":0},{"$f":"ROUND(H764*H762,0)","v":0},{"$f":"ROUND(I764*I762,0)","v":0},{"$f":"ROUND(J764*J762,0)","v":0},0,0,0,0,0,0,{"$f":"ROUND(Q764*Q762,0)","v":0},{"$f":"SUM(G765:Q765)","v":0},{"$f":"ROUND(S764*S762,0)","v":0}]
[26,null,{"$f":"'FR-16(7)(v)-1 Functional'!C766","v":"REVENUE TAX ON COST OF SERVICE"},null,null,{"$f":"ROUND(F764*F758,0)","v":0},{"$f":"ROUND(G764*G758,0)","v":0},{"$f":"ROUND(H764*H758,0)","v":0},{"$f":"ROUND(I764*I758,0)","v":0},{"$f":"ROUND(J764*J758,0)","v":0},0,0,0,0,0,0,{"$f":"ROUND(Q764*$Q$758,0)","v":0},{"$f":"SUM(G766:Q766)","v":0},{"$f":"ROUND(S764*S758,0)","v":0}]
[27,null,{"$f":"'FR-16(7)(v)-1 Functional'!C767","v":"TOTAL REVENUE TAX"},null,null,{"$f":"F766+F765","v":0},{"$f":"G766+G765","v":0},{"$f":"H766+H765","v":0},{"$f":"I766+I765","v":0},{"$f":"J766+J765","v":0},0,0,0,0,0,0,{"$f":"Q766+Q765","v":0},{"$f":"R766+R765","v":0},{"$f":"S766+S765","v":0}]
[28]
[29,null,"RESERVED",null,null,{"$f":"F24","v":0},{"$f":"G24","v":0},{"$f":"H24","v":0},{"$f":"I24","v":0},{"$f":"J24","v":0},0,0,0,0,0,0,{"$f":"Q24","v":0},{"$f":"R24","v":0}]
[30,null,{"$f":"'FR-16(7)(v)-1 Functional'!C770","v":"  TOTAL ELECTRIC COST OF SERVICE"},null,null,{"$f":"F769+F767+F758","v":0},0,0,0,0,0,0,0,0,0,0,0,0,{"$f":"S767+S758","v":0}]
[31]
[32,"PROPOSED REVENUES",null,null,null,{"$f":"F868","v":0},{"$f":"G868","v":0},{"$f":"H868","v":0},{"$f":"I868","v":0},{"$f":"J868","v":0},0,0,0,0,0,0,{"$f":"Q868","v":0},{"$f":"R868","v":0},{"$f":"S868","v":0}]
[33,"TOTAL ELECTRIC COST OF SERVICE",null,null,null,{"$f":"-F770","v":0},{"$f":"-G770","v":0},{"$f":"-H770","v":0},{"$f":"-I770","v":0},{"$f":"-J770","v":0},0,0,0,0,0,0,{"$f":"-Q770","v":0},{"$f":"-R770","v":0},{"$f":"-S770","v":0}]
[34,"EXCESS REVENUES",null,null,null,{"$f":"F773+F772","v":0},{"$f":"G773+G772","v":0},{"$f":"H773+H772","v":0},{"$f":"I773+I772","v":0},{"$f":"J773+J772","v":0},0,0,0,0,0,0,{"$f":"Q773+Q772","v":0},{"$f":"SUM(G774:Q774)","v":0},{"$f":"F774-R774","v":0}]
[35,"COMPOSITE TAX RATE",null,null,null,{"$f":"F729","v":0.24925115},{"$f":"G729","v":0.24925115},0.24925115,0.24925115,{"$f":"J729","v":0.24925115},0.24925115,0.24925115,0.24925115,0.24925115,0.24925115,0.24925115,0.24925115,0.24925115,0.24925115]
[36,"EXCESS TAX",null,null,null,{"$f":"'FR-16(7)(v)-2 PROD Classified'!I776","v":0},{"$f":"F776-SUM(H776:Q776)","v":0},{"$f":"ROUND(H775*H774,0)","v":0},{"$f":"ROUND(I775*I774,0)","v":0},{"$f":"ROUND(J775*J774,0)","v":0},0,0,0,0,0,0,{"$f":"ROUND(Q775*Q774,0)","v":0},{"$f":"SUM(G776:Q776)","v":0},{"$f":"F776-R776","v":0}]
[37,"EXCESS RETURN",null,null,null,{"$f":"F774-F776","v":0},{"$f":"G774-G776","v":0},{"$f":"H774-H776","v":0},{"$f":"I774-I776","v":0},{"$f":"J774-J776","v":0},0,0,0,0,0,0,{"$f":"Q774-Q776","v":0},{"$f":"SUM(G777:Q777)","v":0},{"$f":"F777-R777","v":0}]
[]
[{"$f":"co_name","v":"DUKE ENERGY KENTUCKY, INC."},null,null,null,null,null,null,null,null,null,null,null,null,null,null,null,null,{"$f":"R1","v":"FR-16(7)(v)-5"}]
[{"$f":"$A$2","v":"PRODUCTION CUSTOMER ALLOCATED - ELECTRIC COST OF SERVICE"},null,null,null,null,null,null,null,null,null,null,null,null,null,null,null,null,{"$f":"R2","v":"WITNESS RESPONSIBLE:"}]
[{"$f":"case_name","v":"CASE NO: 2019-00271"},null,null,null,null,null,null,null,null,null,null,null,null,null,null,null,null,{"$f":"Witness","v":"JAMES E. ZIOLKOWSKI"}]
[{"$f":"data_filing","v":"DATA: 12 MONTHS ACTUAL  & 0 MONTHS ESTIMATED"},null,null,null,null,null,null,null,null,null,null,null,null,null,null,null,null,{"$f":"\"PAGE \"&Pages-3&\" OF \"&Pages","v":"PAGE 15 OF 18"}]
[{"$f":"type","v":"TYPE OF FILING: \"X\" ORIGINAL   UPDATED    REVISED  "}]
[]
[null,null,null,null,null,{"$f":"F$7","v":"TOTAL"},null,{"$f":"H$7","v":"DS"},{"$f":"I$7","v":"GSFL"},{"$f":"J$7","v":"EH"},{"$f":"K$7","v":"SP"},"DT SEC","DT PRI","DP","TT",null,"OTHER"]
["LINE",null,null,null,null,{"$f":"F$8","v":"PRODUCTION"},{"$f":"G$8","v":"RS"},{"$f":"H$8","v":"SECONDARY"},{"$f":"I$8","v":"SECONDARY"},{"$f":"J$8","v":"SECONDARY"},{"$f":"K$8","v":"SECONDARY"},"SECONDARY","PRIMARY","PRIMARY","TRANSMISSION","LT","WATER",{"$f":"R8","v":"TOTAL"},"ALL"]
["NO.","ROR, TAX RATES & SPEC FACTORS",null,"ALLO",null,{"$f":"F$9","v":"CUSTOMER"},{"$f":"G$9","v":"RESIDENTIAL"},{"$f":"H$9","v":"DISTRIBUTION"},{"$f":"I$9","v":"DISTRIBUTION"},{"$f":"J$9","v":"DISTRIBUTION"},{"$f":"K$9","v":"DISTRIBUTION"},"DISTRIBUTION","DISTRIBUTION","DISTRIBUTION","TIME OF DAY","LIGHTING","PUMPING",{"$f":"R9","v":"AT ISSUE"},"OTHER"]
[null,null,"Schedule 11",null,null,null,{"$f":"G$10","v":3},{"$f":"H$10","v":4},{"$f":"I$10","v":5},{"$f":"J$10","v":6},{"$f":"K$10","v":7},8,9,10,11,12,13,null," "]
[1,"RATE OF RETURN"]
[2," CAPITALIZATION AMOUNTS",null,null,null,null,"RATIO"]
[3,null,{"$f":"'FR-16(7)(v)-1 Functional'!C791","v":"LONG TERM DEBT"},null,null,{"$f":"'FR-16(7)(v)-2 PROD Classified'!$F$791","v":665948506},{"$f":"IF(TotalCap=0,0,ROUND(F791/TotalCap,4))","v":0.45929999999999999}]
[4,null,{"$f":"'FR-16(7)(v)-1 Functional'!C792","v":"PREFERRED STOCK"},null,null,{"$f":"'FR-16(7)(v)-2 PROD Classified'!$F$792","v":0},{"$f":"IF(TotalCap=0,0,ROUND(F792/TotalCap,4))","v":0}]
[5,null,{"$f":"'FR-16(7)(v)-1 Functional'!C793","v":"COMMON STOCK"},null,null,{"$f":"[0]!Equity","v":699348680},{"$f":"1-G791-G792-G794-G795","v":0.48239999999999994}]
[6,null,{"$f":"'FR-16(7)(v)-1 Functional'!C794","v":"SHORT TERM DEBT"},null,null,{"$f":"'FR-16(7)(v)-2 PROD Classified'!$F$794","v":84600060},{"$f":"IF(TotalCap=0,0,ROUND(F794/TotalCap,4))","v":5.8299999999999998E-2}]
[7,null,{"$f":"'FR-16(7)(v)-1 Functional'!C795","v":"UNAMORTIZED DISCOUNT"},null,null,{"$f":"'FR-16(7)(v)-2 PROD Classified'!$F$795","v":0},{"$f":"IF(TotalCap=0,0,ROUND(F795/TotalCap,4))","v":0}]
[8,null,{"$f":"'FR-16(7)(v)-1 Functional'!C796","v":"  TOTAL"},null,null,{"$f":"SUM(F790:F795)","v":1449897246},{"$f":"SUM(G791:G795)","v":1}]
[9]
[10," COST OF CAPITAL"]
[11,null,{"$f":"'FR-16(7)(v)-1 Functional'!C799","v":"LONG TERM DEBT"},null,null,{"$f":"'FR-16(7)(v)-2 PROD Classified'!$F$799","v":4.0730000000000002E-2}]
[12,null,{"$f":"'FR-16(7)(v)-1 Functional'!C800","v":"PREFERRED STOCK"},null,null,{"$f":"'FR-16(7)(v)-2 PROD Classified'!$F$800","v":0}]
[13,null,{"$f":"'FR-16(7)(v)-1 Functional'!C801","v":"COMMON STOCK"},null,null,{"$f":"'FR-16(7)(v)-2 PROD Classified'!$F$801","v":9.8000000000000004E-2}]
[14,null,{"$f":"'FR-16(7)(v)-1 Functional'!C802","v":"SHORT TERM DEBT"},null,null,{"$f":"'FR-16(7)(v)-2 PROD Classified'!$F$802","v":1.9369999999999998E-2}]
[15,null,{"$f":"'FR-16(7)(v)-1 Functional'!C803","v":"UNAMORTIZED DISCOUNT"},null,null,{"$f":"'FR-16(7)(v)-2 PROD Classified'!$F$803","v":0}]
[16]
[17," WEIGHTED COST OF CAPITAL"]
[18,null,{"$f":"'FR-16(7)(v)-1 Functional'!C806","v":"LONG TERM DEBT"},null,null,{"$f":"ROUND(G791*F799,4)","v":1.8700000000000001E-2}]
[19,null,{"$f":"'FR-16(7)(v)-1 Functional'!C807","v":"PREFERRED STOCK"},null,null,{"$f":"ROUND(G792*F800,4)","v":0}]
[20,null,{"$f":"'FR-16(7)(v)-1 Functional'!C808","v":"COMMON STOCK"},null,null,{"$f":"ROUND(G793*F801,4)","v":4.7300000000000002E-2}]
[21,null,{"$f":"'FR-16(7)(v)-1 Functional'!C809","v":"SHORT TERM DEBT"},null,null,{"$f":"ROUND(G794*F802,4)","v":1.1000000000000001E-3}]
[22,null,{"$f":"'FR-16(7)(v)-1 Functional'!C810","v":"UNAMORTIZED DISCOUNT"},null,null,{"$f":"ROUND(G795*F803,4)","v":0}]
[23,null,{"$f":"'FR-16(7)(v)-1 Functional'!C811","v":"  TOT RATE OF RETURN ALLOWABLE"},null,null,{"$f":"SUM(F806:F810)","v":6.7100000000000007E-2}]
[24]
[25,"TAX RATES AND SPECIAL FACTORS"]
[26,null,{"$f":"'FR-16(7)(v)-1 Functional'!C814","v":"SHORT TERM DEBT COST"},null,null,0,{"$f":"F814","v":0},{"$f":"F814","v":0},{"$f":"F814","v":0},{"$f":"G814","v":0},0,0,0,0,0,0,{"$f":"$F$814","v":0},{"$f":"F814","v":0},{"$f":"F814","v":0}]
[27,null,{"$f":"'FR-16(7)(v)-1 Functional'!C815","v":"FEDERAL INCOME TAX RATE"},null,null,{"$f":"FIT","v":0.21},{"$f":"FIT","v":0.21},0.21,0.21,0.21,0.21,0.21,0.21,0.21,0.21,0.21,0.21,0.21,0.21]
[28,null,{"$f":"'FR-16(7)(v)-1 Functional'!C816","v":"STATE INCOME TAX RATE"},null,null,{"$f":"SIT","v":4.9685000000000007E-2},{"$f":"SIT","v":4.9685000000000007E-2},4.9685000000000007E-2,4.9685000000000007E-2,4.9685000000000007E-2,4.9685000000000007E-2,4.9685000000000007E-2,4.9685000000000007E-2,4.9685000000000007E-2,4.9685000000000007E-2,4.9685000000000007E-2,4.9685000000000007E-2,4.9685000000000007E-2,4.9685000000000007E-2]
[29,null,{"$f":"'FR-16(7)(v)-1 Functional'!C817","v":"REVENUE TAX RATE"},null,null,0,{"$f":"RevTax","v":0},0,0,0,0,0,0,0,0,0,0,0,0]
[]
[{"$f":"co_name","v":"DUKE ENERGY KENTUCKY, INC."},null,null,null,null,null,null,null,null,null,null,null,null,null,null,null,null,{"$f":"R1","v":"FR-16(7)(v)-5"}]
[{"$f":"$A$2","v":"PRODUCTION CUSTOMER ALLOCATED - ELECTRIC COST OF SERVICE"},null,null,null,null,null,null,null,null,null,null,null,null,null,null,null,null,{"$f":"R2","v":"WITNESS RESPONSIBLE:"}]
[{"$f":"case_name","v":"CASE NO: 2019-00271"},null,null,null,null,null,null,null,null,null,null,null,null,null,null,null,null,{"$f":"Witness","v":"JAMES E. ZIOLKOWSKI"}]
[{"$f":"data_filing","v":"DATA: 12 MONTHS ACTUAL  & 0 MONTHS ESTIMATED"},null,null,null,null,null,null,null,null,null,null,null,null,null,null,null,null,{"$f":"\"PAGE \"&Pages-2&\" OF \"&Pages","v":"PAGE 16 OF 18"}]
[{"$f":"type","v":"TYPE OF FILING: \"X\" ORIGINAL   UPDATED    REVISED  "}]
[]
[null,null,null,null,null,{"$f":"F$7","v":"TOTAL"},null,{"$f":"H$7","v":"DS"},{"$f":"I$7","v":"GSFL"},{"$f":"J$7","v":"EH"},{"$f":"K$7","v":"SP"},"DT SEC","DT PRI","DP","TT",null,"OTHER"]
["LINE",null,null,null,null,{"$f":"F$8","v":"PRODUCTION"},{"$f":"G$8","v":"RS"},{"$f":"H$8","v":"SECONDARY"},{"$f":"I$8","v":"SECONDARY"},{"$f":"J$8","v":"SECONDARY"},{"$f":"K$8","v":"SECONDARY"},"SECONDARY","PRIMARY","PRIMARY","TRANSMISSION","LT","WATER",{"$f":"R8","v":"TOTAL"},"ALL",null,null,null,"RATE GRP"]
["NO.","ALLOCATORS",null,"SOURCE","ALLO",{"$f":"F$9","v":"CUSTOMER"},{"$f":"G$9","v":"RESIDENTIAL"},{"$f":"H$9","v":"DISTRIBUTION"},{"$f":"I$9","v":"DISTRIBUTION"},{"$f":"J$9","v":"DISTRIBUTION"},{"$f":"K$9","v":"DISTRIBUTION"},"DISTRIBUTION","DISTRIBUTION","DISTRIBUTION","TIME OF DAY","LIGHTING","PUMPING",{"$f":"R9","v":"AT ISSUE"},"OTHER",null,null,null,"CHECK"]
[null,null,"Schedule 12",null,1,null,{"$f":"G$10","v":3},{"$f":"H$10","v":4},{"$f":"I$10","v":5},{"$f":"J$10","v":6},{"$f":"K$10","v":7},8,9,10,11,12,13,null," "]
[1,"DEMAND ENERGY & SPEC. ASSIGN"]
[2,null,"TOTAL KW (12 COIN PEAK) - PRODUCTION","External",null,{"$f":"'WP FR-16(7)(v)-KW & KWH @Gen'!$D$38","v":717751},{"$f":"'WP FR-16(7)(v)-KW & KWH @Gen'!$D$17","v":323558},{"$f":"'WP FR-16(7)(v)-KW & KWH @Gen'!$D$18+'WP FR-16(7)(v)-KW & KWH @Gen'!$D$31","v":194251},{"$f":"'WP FR-16(7)(v)-KW & KWH @Gen'!$D$19","v":933},{"$f":"'WP FR-16(7)(v)-KW & KWH @Gen'!$D$20","v":3682},{"$f":"'WP FR-16(7)(v)-KW & KWH @Gen'!$D$21","v":51},{"$f":"'WP FR-16(7)(v)-KW & KWH @Gen'!$D$22+'WP FR-16(7)(v)-KW & KWH @Gen'!$D$32","v":96851},{"$f":"'WP FR-16(7)(v)-KW & KWH @Gen'!$D$23","v":64029},{"$f":"'WP FR-16(7)(v)-KW & KWH @Gen'!$D$24","v":3090},{"$f":"'WP FR-16(7)(v)-KW & KWH @Gen'!$D$25+'WP FR-16(7)(v)-KW & KWH @Gen'!$D$35","v":30336},{"$f":"'WP FR-16(7)(v)-KW & KWH @Gen'!$D$26","v":891},{"$f":"'WP FR-16(7)(v)-KW & KWH @Gen'!$D$27","v":79},{"$f":"SUM(G830:Q830)","v":717751},{"$f":"F830-R830","v":0}]
[3,null,{"$f":"'FR-16(7)(v)-1 Functional'!C831","v":"RATIO TO TOTAL ELECTRIC"},null,{"$f":"'FR-16(7)(v)-1 Functional'!E831","v":"K201"},{"$f":"IF($F830=0,0,ROUND(F830/$F830,5))","v":1},{"$f":"IF(S830=0,F831-SUM(H831:Q831),ROUND(G830/F830,5))","v":0.45077999999999985},{"$f":"IF($F$830=0,0,ROUND(H830/$F$830,5))","v":0.27063999999999999},{"$f":"IF($F$830=0,0,ROUND(I830/$F$830,5))","v":1.2999999999999999E-3},5.13E-3,6.9999999999999994E-5,0.13494,8.9209999999999998E-2,4.3099999999999996E-3,4.2270000000000002E-2,1.24E-3,1.1E-4,{"$f":"SUM(G831:Q831)","v":0.99999999999999989},{"$f":"F831-R831","v":0},null,null,null,{"$f":"R831","v":0.99999999999999989}]
[4,null,"TOTAL KW (12 COIN PEAK) - TRANSMISSION","External",null,{"$f":"'WP FR-16(7)(v)-KW & KWH @Gen'!D38","v":717751},{"$f":"'WP FR-16(7)(v)-KW & KWH @Gen'!D17","v":323558},{"$f":"'WP FR-16(7)(v)-KW & KWH @Gen'!D18+'WP FR-16(7)(v)-KW & KWH @Gen'!D31","v":194251},{"$f":"'WP FR-16(7)(v)-KW & KWH @Gen'!D19","v":933},{"$f":"'WP FR-16(7)(v)-KW & KWH @Gen'!D20","v":3682},{"$f":"'WP FR-16(7)(v)-KW & KWH @Gen'!D21","v":51},{"$f":"'WP FR-16(7)(v)-KW & KWH @Gen'!D22+'WP FR-16(7)(v)-KW & KWH @Gen'!D32","v":96851},{"$f":"'WP FR-16(7)(v)-KW & KWH @Gen'!D23","v":64029},{"$f":"'WP FR-16(7)(v)-KW & KWH @Gen'!D24","v":3090},{"$f":"'WP FR-16(7)(v)-KW & KWH @Gen'!D25+'WP FR-16(7)(v)-KW & KWH @Gen'!D35","v":30336},{"$f":"'WP FR-16(7)(v)-KW & KWH @Gen'!D26","v":891},{"$f":"'WP FR-16(7)(v)-KW & KWH @Gen'!D27","v":79},{"$f":"SUM(G832:Q832)","v":717751},{"$f":"F832-R832","v":0}]
[5,null,{"$f":"'FR-16(7)(v)-1 Functional'!C833","v":"RATIO TO TOTAL ELECTRIC"},null,"K202",{"$f":"IF($F832=0,0,ROUND(F832/$F832,5))","v":1},{"$f":"IF(S832=0,F833-SUM(H833:Q833),ROUND(G832/F832,5))","v":0.45077999999999985},{"$f":"IF($F$830=0,0,ROUND(H832/$F$830,5))","v":0.27063999999999999},1.2999999999999999E-3,5.13E-3,6.9999999999999994E-5,0.13494,8.9209999999999998E-2,4.3099999999999996E-3,4.2270000000000002E-2,1.24E-3,1.1E-4,{"$f":"SUM(G833:Q833)","v":0.99999999999999989},{"$f":"F833-R833","v":0}]
[6,null,{"$f":"'FR-16(7)(v)-1 Functional'!C834","v":"DISTRIBUTION KW (NON-COIN PEAK) "},"External",null,{"$f":"'WP FR-16(7)(v)-KW & KWH @Dist'!D39","v":1514633},{"$f":"'WP FR-16(7)(v)-KW & KWH @Dist'!D18","v":899439},{"$f":"'WP FR-16(7)(v)-KW & KWH @Dist'!D19+'WP FR-16(7)(v)-KW & KWH @Dist'!D32","v":321857},{"$f":"'WP FR-16(7)(v)-KW & KWH @Dist'!D20","v":1158},{"$f":"'WP FR-16(7)(v)-KW & KWH @Dist'!D21","v":10653},{"$f":"'WP FR-16(7)(v)-KW & KWH @Dist'!D22","v":109},{"$f":"'WP FR-16(7)(v)-KW & KWH @Dist'!D23+'WP FR-16(7)(v)-KW & KWH @Dist'!D33","v":138051},{"$f":"'WP FR-16(7)(v)-KW & KWH @Dist'!D24+'WP FR-16(7)(v)-KW & KWH @Dist'!D34","v":84382},{"$f":"'WP FR-16(7)(v)-KW & KWH @Dist'!D25+'WP FR-16(7)(v)-KW & KWH @Dist'!D35","v":5687},{"$f":"'WP FR-16(7)(v)-KW & KWH @Dist'!D26+'WP FR-16(7)(v)-KW & KWH @Dist'!D36","v":45755},{"$f":"'WP FR-16(7)(v)-KW & KWH @Dist'!D27","v":7098},{"$f":"'WP FR-16(7)(v)-KW & KWH @Dist'!D28","v":444},{"$f":"SUM(G834:Q834)","v":1514633},{"$f":"F834-R834","v":0}]
[7,null,{"$f":"'FR-16(7)(v)-1 Functional'!C835","v":"RATIO TO TOTAL ELECTRIC"},null,{"$f":"'FR-16(7)(v)-1 Functional'!E835","v":"K203"},{"$f":"IF($F834=0,0,ROUND(F834/$F834,5))","v":1},{"$f":"IF(S834=0,F835-SUM(H835:Q835),ROUND(G834/F834,5))","v":0.59384999999999999},{"$f":"IF(F834=0,0,ROUND(H834/F834,5))","v":0.21249999999999999},{"$f":"IF($F$834=0,0,ROUND(I834/$F$834,5))","v":7.6000000000000004E-4},{"$f":"IF($F$834=0,0,ROUND(J834/$F$834,5))","v":7.0299999999999998E-3},6.9999999999999994E-5,9.1139999999999999E-2,5.5710000000000003E-2,3.7499999999999999E-3,3.0210000000000001E-2,4.6899999999999997E-3,{"$f":"IF(G834=0,0,ROUND(Q834/F834,5))","v":2.9E-4},1,0,null,null,null,{"$f":"R835","v":1}]
[8,null,"DISTRIBUTION LINE - PRIMARY","External",null,{"$f":"'WP FR-16(7)(v) Distlines'!G38","v":731338},{"$f":"'WP FR-16(7)(v) Distlines'!$G$17","v":343307},{"$f":"'WP FR-16(7)(v) Distlines'!$G$18+'WP FR-16(7)(v) Distlines'!$G$31","v":202748},{"$f":"'WP FR-16(7)(v) Distlines'!$G$19","v":945},{"$f":"'WP FR-16(7)(v) Distlines'!$G$20","v":4447},{"$f":"'WP FR-16(7)(v) Distlines'!$G$21","v":53},{"$f":"'WP FR-16(7)(v) Distlines'!$G$22+'WP FR-16(7)(v) Distlines'!$G$32","v":103544},{"$f":"'WP FR-16(7)(v) Distlines'!$G$23+'WP FR-16(7)(v) Distlines'!$G$33","v":68199},{"$f":"'WP FR-16(7)(v) Distlines'!$G$24+'WP FR-16(7)(v) Distlines'!$G$34","v":3420},{"$f":"'WP FR-16(7)(v) Distlines'!$G$25+'WP FR-16(7)(v) Distlines'!$G$35","v":0},{"$f":"'WP FR-16(7)(v) Distlines'!$G$26","v":4595},{"$f":"'WP FR-16(7)(v) Distlines'!$G$27","v":80},731338,0]
[9,null,{"$f":"'FR-16(7)(v)-1 Functional'!C837","v":"RATIO TO TOTAL ELECTRIC"},null,{"$f":"'FR-16(7)(v)-1 Functional'!E837","v":"K205"},{"$f":"IF($F836=0,0,ROUND(F836/$F836,5))","v":1},{"$f":"IF(S836=0,F837-SUM(H837:Q837),ROUND(G836/F836,5))","v":0.4694299999999999},{"$f":"IF($F$836=0,0,ROUND(H836/$F$836,5))","v":0.27722999999999998},{"$f":"IF($F$836=0,0,ROUND(I836/$F$836,5))","v":1.2899999999999999E-3},6.0800000000000003E-3,6.9999999999999994E-5,0.14158000000000001,9.325E-2,4.6800000000000001E-3,0,6.28E-3,1.1E-4,0.99999999999999989,0,null,null,null,{"$f":"R837","v":0.99999999999999989}]
[10,null,"DISTRIBUTION LINE - SECONDARY","External",null,{"$f":"'WP FR-16(7)(v) Distlines'!K38","v":731338},{"$f":"'WP FR-16(7)(v) Distlines'!K17","v":343307},{"$f":"'WP FR-16(7)(v) Distlines'!K18+'WP FR-16(7)(v) Distlines'!K31","v":202748},{"$f":"'WP FR-16(7)(v) Distlines'!K19","v":945},{"$f":"'WP FR-16(7)(v) Distlines'!K20","v":4447},{"$f":"'WP FR-16(7)(v) Distlines'!K21","v":53},{"$f":"'WP FR-16(7)(v) Distlines'!K22+'WP FR-16(7)(v) Distlines'!K32","v":103544},{"$f":"'WP FR-16(7)(v) Distlines'!K23","v":68199},{"$f":"'WP FR-16(7)(v) Distlines'!K24+'WP FR-16(7)(v) Distlines'!K34","v":3420},{"$f":"'WP FR-16(7)(v) Distlines'!K25+'WP FR-16(7)(v) Distlines'!K35","v":0},{"$f":"'WP FR-16(7)(v) Distlines'!K26","v":4595},{"$f":"'WP FR-16(7)(v) Distlines'!K27","v":80},{"$f":"SUM(G838:Q838)","v":731338},{"$f":"F838-R838","v":0}]
[11,null,{"$f":"'FR-16(7)(v)-1 Functional'!C839","v":"RATIO TO TOTAL ELECTRIC"},null,"K206",{"$f":"IF($F838=0,0,ROUND(F838/$F838,5))","v":1},{"$f":"IF(S838=0,F839-SUM(H839:Q839),ROUND(G838/F838,5))","v":0.4694299999999999},{"$f":"IF($F$836=0,0,ROUND(H838/$F$836,5))","v":0.27722999999999998},{"$f":"IF($F$836=0,0,ROUND(I838/$F$836,5))","v":1.2899999999999999E-3},{"$f":"IF($F$836=0,0,ROUND(J838/$F$836,5))","v":6.0800000000000003E-3},{"$f":"IF($F$836=0,0,ROUND(K838/$F$836,5))","v":6.9999999999999994E-5},{"$f":"IF($F$836=0,0,ROUND(L838/$F$836,5))","v":0.14158000000000001},{"$f":"IF($F$838=0,0,ROUND(M838/$F$838,5))","v":9.325E-2},{"$f":"IF($F$838=0,0,ROUND(N838/$F$838,5))","v":4.6800000000000001E-3},{"$f":"IF($F$838=0,0,ROUND(O838/$F$838,5))","v":0},{"$f":"IF($F$838=0,0,ROUND(P838/$F$838,5))","v":6.28E-3},{"$f":"IF($F$838=0,0,ROUND(Q838/$F$838,5))","v":1.1E-4},{"$f":"SUM(G839:Q839)","v":0.99999999999999989},{"$f":"F839-R839","v":0}]
[12,null,{"$f":"'FR-16(7)(v)-1 Functional'!C840","v":"GROSS DISTRIBUTION PLANT EXCL. CCNC"},"External",null,{"$f":"SUM(F73:F90)","v":0},{"$f":"SUM(G73:G90)","v":0},0,0,0,0,0,0,0,0,0,0,0,0]
[13,null,{"$f":"'FR-16(7)(v)-1 Functional'!C841","v":"RATIO TO TOTAL ELECTRIC"},null,{"$f":"'FR-16(7)(v)-1 Functional'!E841","v":"K209"},{"$f":"IF($F840=0,0,ROUND(F840/$F840,5))","v":0},{"$f":"IF(S840=0,F841-SUM(H841:Q841),ROUND(G840/F840,5))","v":0},{"$f":"IF($F$840=0,0,ROUND(H840/$F$840,5))","v":0},{"$f":"IF($F$840=0,0,ROUND(I840/$F$840,5))","v":0},0,0,0,0,0,0,0,0,0,0,null,null,null,{"$f":"R841","v":0}]
[14,null,{"$f":"'FR-16(7)(v)-1 Functional'!C842","v":"TOTAL DIVERSIFIED CLASS DEMANDS"},"External",null,{"$f":"'WP FR-16(7)(v)-KW & KWH @Dist'!L39","v":731338},{"$f":"'WP FR-16(7)(v)-KW & KWH @Dist'!L18","v":343307},{"$f":"'WP FR-16(7)(v)-KW & KWH @Dist'!L19+'WP FR-16(7)(v)-KW & KWH @Dist'!L32","v":202748},{"$f":"'WP FR-16(7)(v)-KW & KWH @Dist'!L20","v":945},{"$f":"'WP FR-16(7)(v)-KW & KWH @Dist'!L21","v":4447},{"$f":"'WP FR-16(7)(v)-KW & KWH @Dist'!L22","v":53},{"$f":"'WP FR-16(7)(v)-KW & KWH @Dist'!L23+'WP FR-16(7)(v)-KW & KWH @Dist'!L33","v":103544},{"$f":"'WP FR-16(7)(v)-KW & KWH @Dist'!L24","v":68199},{"$f":"'WP FR-16(7)(v)-KW & KWH @Dist'!L25","v":3420},{"$f":"'WP FR-16(7)(v)-KW & KWH @Dist'!L26","v":0},{"$f":"'WP FR-16(7)(v)-KW & KWH @Dist'!L27","v":4595},{"$f":"'WP FR-16(7)(v)-KW & KWH @Dist'!L28","v":80},731338,0]
[15,null,{"$f":"'FR-16(7)(v)-1 Functional'!C843","v":"RATIO TO TOTAL ELECTRIC"},null,{"$f":"'FR-16(7)(v)-1 Functional'!E843","v":"K215"},{"$f":"IF($F842=0,0,ROUND(F842/$F842,5))","v":1},{"$f":"IF(S842=0,F843-SUM(H843:Q843),ROUND(G842/F842,5))","v":0.4694299999999999},{"$f":"IF($F$842=0,0,ROUND(H842/$F$842,5))","v":0.27722999999999998},{"$f":"IF($F$842=0,0,ROUND(I842/$F$842,5))","v":1.2899999999999999E-3},6.0800000000000003E-3,6.9999999999999994E-5,0.14158000000000001,9.325E-2,4.6800000000000001E-3,0,6.28E-3,1.1E-4,0.99999999999999989,0,null,null,null,{"$f":"R843","v":0.99999999999999989}]
[16,null,{"$f":"'FR-16(7)(v)-1 Functional'!C844","v":"WEIGHTED CUSTOMER SERVICE"},"External",null,{"$f":"'WP FR-16(7)(v) Wtd services'!H38","v":143810},{"$f":"'WP FR-16(7)(v) Wtd services'!H17","v":128431},{"$f":"'WP FR-16(7)(v) Wtd services'!H18","v":12968},{"$f":"'WP FR-16(7)(v) Wtd services'!H19","v":172},{"$f":"'WP FR-16(7)(v) Wtd services'!H20","v":412},{"$f":"'WP FR-16(7)(v) Wtd services'!H21","v":14},{"$f":"'WP FR-16(7)(v) Wtd services'!H22","v":930},{"$f":"'WP FR-16(7)(v) Wtd services'!H23","v":222},{"$f":"'WP FR-16(7)(v) Wtd services'!H24","v":60},{"$f":"'WP FR-16(7)(v) Wtd services'!H25","v":66},{"$f":"'WP FR-16(7)(v) Wtd services'!H26","v":468},{"$f":"'WP FR-16(7)(v) Wtd services'!H27","v":11},143754,56]
[17,null,{"$f":"'FR-16(7)(v)-1 Functional'!C845","v":"RATIO TO TOTAL ELECTRIC"},null,{"$f":"'FR-16(7)(v)-1 Functional'!E845","v":"K217"},{"$f":"IF($F844=0,0,ROUND(F844/$F844,5))","v":1},{"$f":"IF(S844=0,F845-SUM(H845:Q845),ROUND(G844/F844,5))","v":0.89305999999999996},{"$f":"IF($F$844=0,0,ROUND(H844/$F$844,5))","v":9.017E-2},{"$f":"IF($F$844=0,0,ROUND(I844/$F$844,5))","v":1.1999999999999999E-3},2.8600000000000001E-3,1E-4,6.4700000000000001E-3,1.5399999999999999E-3,4.2000000000000002E-4,4.6000000000000001E-4,3.2499999999999999E-3,8.0000000000000007E-5,0.99960999999999978,3.900000000002235E-4,null,null,null,{"$f":"R845","v":0.99960999999999978}]
[18,null,{"$f":"'FR-16(7)(v)-1 Functional'!C846","v":"TOTAL KWH"},"External",null,{"$f":"'WP FR-16(7)(v)-KW & KWH @Gen'!F38","v":4261970981},{"$f":"'WP FR-16(7)(v)-KW & KWH @Gen'!$F$17","v":1608724299},{"$f":"'WP FR-16(7)(v)-KW & KWH @Gen'!$F$18+'WP FR-16(7)(v)-KW & KWH @Gen'!$F$31","v":1147823576},{"$f":"'WP FR-16(7)(v)-KW & KWH @Gen'!$F$19","v":6420710},{"$f":"'WP FR-16(7)(v)-KW & KWH @Gen'!$F$20","v":18228802},{"$f":"'WP FR-16(7)(v)-KW & KWH @Gen'!$F$21","v":298034},{"$f":"'WP FR-16(7)(v)-KW & KWH @Gen'!$F$22+'WP FR-16(7)(v)-KW & KWH @Gen'!$F$32","v":703280622},{"$f":"'WP FR-16(7)(v)-KW & KWH @Gen'!$F$23","v":488455966},{"$f":"'WP FR-16(7)(v)-KW & KWH @Gen'!$F$24","v":22905598},{"$f":"'WP FR-16(7)(v)-KW & KWH @Gen'!$F$25+'WP FR-16(7)(v)-KW & KWH @Gen'!$F$35","v":246755000},{"$f":"'WP FR-16(7)(v)-KW & KWH @Gen'!$F$26","v":18599129},{"$f":"'WP FR-16(7)(v)-KW & KWH @Gen'!$F$27","v":479245},4261970981,0]
[19,null,{"$f":"'FR-16(7)(v)-1 Functional'!C847","v":"RATIO TO TOTAL ELECTRIC"},null,{"$f":"'FR-16(7)(v)-1 Functional'!E847","v":"K301"},{"$f":"IF($F846=0,0,ROUND(F846/$F846,5))","v":1},{"$f":"IF(S846=0,F847-SUM(H847:Q847),ROUND(G846/F846,5))","v":0.37745999999999991},{"$f":"IF($F$846=0,0,ROUND(H846/$F$846,5))","v":0.26932},{"$f":"IF($F$846=0,0,ROUND(I846/$F$846,5))","v":1.5100000000000001E-3},4.28E-3,6.9999999999999994E-5,0.16500999999999999,0.11461,5.3699999999999998E-3,5.79E-2,4.3600000000000002E-3,1.1E-4,0.99999999999999989,0,null,null,null,{"$f":"R847","v":0.99999999999999989}]
[20,null,{"$f":"'FR-16(7)(v)-1 Functional'!C848","v":"DISTRIBUTION KWH"},"External",null,{"$f":"'WP FR-16(7)(v)-KW & KWH @Dist'!F39","v":4261970981},{"$f":"'WP FR-16(7)(v)-KW & KWH @Dist'!F18","v":1608724299},{"$f":"'WP FR-16(7)(v)-KW & KWH @Dist'!F19+'WP FR-16(7)(v)-KW & KWH @Dist'!F32","v":1147823576},{"$f":"'WP FR-16(7)(v)-KW & KWH @Dist'!F20","v":6420710},{"$f":"'WP FR-16(7)(v)-KW & KWH @Dist'!F21","v":18228802},{"$f":"'WP FR-16(7)(v)-KW & KWH @Dist'!F22","v":298034},{"$f":"'WP FR-16(7)(v)-KW & KWH @Dist'!F23+'WP FR-16(7)(v)-KW & KWH @Dist'!F33","v":703280622},{"$f":"'WP FR-16(7)(v)-KW & KWH @Dist'!F24","v":488455966},{"$f":"'WP FR-16(7)(v)-KW & KWH @Dist'!F25","v":22905598},{"$f":"'WP FR-16(7)(v)-KW & KWH @Dist'!F26","v":232255694},{"$f":"'WP FR-16(7)(v)-KW & KWH @Dist'!F27","v":18599129},{"$f":"'WP FR-16(7)(v)-KW & KWH @Dist'!F28","v":479245},4247471675,14499306]
[21,null,{"$f":"'FR-16(7)(v)-1 Functional'!C849","v":"RATIO TO TOTAL ELECTRIC"},null,{"$f":"'FR-16(7)(v)-1 Functional'!E849","v":"K303"},{"$f":"IF($F848=0,0,ROUND(F848/$F848,5))","v":1},{"$f":"IF(S848=0,F849-SUM(H849:Q849),ROUND(G848/F848,5))","v":0.37746000000000002},{"$f":"IF($F$848=0,0,ROUND(H848/$F$848,5))","v":0.26932},{"$f":"IF($F$848=0,0,ROUND(I848/$F$848,5))","v":1.5100000000000001E-3},4.28E-3,6.9999999999999994E-5,0.16500999999999999,0.11461,5.3699999999999998E-3,5.4489999999999997E-2,4.3600000000000002E-3,1.1E-4,0.99659000000000009,3.4099999999999131E-3,null,null,null,{"$f":"R849","v":0.99659000000000009}]
[22,null,{"$f":"'FR-16(7)(v)-1 Functional'!C850","v":"TOTAL KWH LESS LIGHTING"},"External",null,{"$f":"'WP FR-16(7)(v)-KW & KWH @Gen'!F38-'WP FR-16(7)(v)-KW & KWH @Gen'!F26","v":4243371852},{"$f":"'WP FR-16(7)(v)-KW & KWH @Gen'!F17","v":1608724299},{"$f":"'WP FR-16(7)(v)-KW & KWH @Gen'!F18+'WP FR-16(7)(v)-KW & KWH @Gen'!F31","v":1147823576},{"$f":"'WP FR-16(7)(v)-KW & KWH @Gen'!F19","v":6420710},{"$f":"'WP FR-16(7)(v)-KW & KWH @Gen'!F20","v":18228802},{"$f":"'WP FR-16(7)(v)-KW & KWH @Gen'!F21","v":298034},{"$f":"'WP FR-16(7)(v)-KW & KWH @Gen'!F22+'WP FR-16(7)(v)-KW & KWH @Gen'!F32","v":703280622},{"$f":"'WP FR-16(7)(v)-KW & KWH @Gen'!F23","v":488455966},{"$f":"'WP FR-16(7)(v)-KW & KWH @Gen'!F24","v":22905598},{"$f":"'WP FR-16(7)(v)-KW & KWH @Gen'!F25+'WP FR-16(7)(v)-KW & KWH @Gen'!F35","v":246755000},0,{"$f":"'WP FR-16(7)(v)-KW & KWH @Gen'!F27","v":479245},4243371852,0]
[23,null,{"$f":"'FR-16(7)(v)-1 Functional'!C851","v":"RATIO TO TOTAL ELECTRIC"},null,{"$f":"'FR-16(7)(v)-1 Functional'!E851","v":"K305"},{"$f":"IF($F850=0,0,ROUND(F850/$F850,5))","v":1},{"$f":"IF(S850=0,F851-SUM(H851:Q851),ROUND(G850/F850,5))","v":0.37910999999999984},{"$f":"IF($F$850=0,0,ROUND(H850/$F$850,5))","v":0.27050000000000002},{"$f":"IF($F$850=0,0,ROUND(I850/$F$850,5))","v":1.5100000000000001E-3},4.3E-3,6.9999999999999994E-5,0.16574,0.11511,5.4000000000000003E-3,5.815E-2,0,1.1E-4,0.99999999999999989,0,null,null,null,{"$f":"R851","v":0.99999999999999989}]
[24,null,{"$f":"'FR-16(7)(v)-1 Functional'!C852","v":"ASSIGN 100% TO RESIDENTIAL"},"External",null,1,1,0,0,0,0,0,0,0,0,0,0,1,0]
[25,null,{"$f":"'FR-16(7)(v)-1 Functional'!C853","v":"RATIO TO TOTAL ELECTRIC"},null,{"$f":"'FR-16(7)(v)-1 Functional'!E853","v":"K307"},{"$f":"IF($F852=0,0,ROUND(F852/$F852,5))","v":1},{"$f":"IF(S852=0,F853-SUM(H853:Q853),ROUND(G852/F852,5))","v":1},{"$f":"IF($F$852=0,0,ROUND(H852/$F$852,5))","v":0},{"$f":"IF($F$852=0,0,ROUND(I852/$F$852,5))","v":0},0,0,0,0,0,0,0,0,1,0,null,null,null,{"$f":"R853","v":1}]
[26,null,{"$f":"'FR-16(7)(v)-1 Functional'!C854","v":"ASSIGN 100% TO LIGHTING"},"External",null,1,0,0,0,0,0,0,0,0,0,1,0,1,0]
[27,null,{"$f":"'FR-16(7)(v)-1 Functional'!C855","v":"RATIO TO TOTAL ELECTRIC"},null,{"$f":"'FR-16(7)(v)-1 Functional'!E855","v":"K401"},{"$f":"IF($F854=0,0,ROUND(F854/$F854,5))","v":1},{"$f":"IF(S854=0,F855-SUM(H855:Q855),ROUND(G854/F854,5))","v":0},{"$f":"IF($F$854=0,0,ROUND(H854/$F$854,5))","v":0},{"$f":"IF($F$854=0,0,ROUND(I854/$F$854,5))","v":0},0,0,0,0,0,0,1,0,1,0,null,null,null,{"$f":"R855","v":1}]
[28,null,{"$f":"'FR-16(7)(v)-1 Functional'!C856","v":"DISTRIBUTION CUSTOMERS"},"External",null,{"$f":"'WP FR-16(7)(v)-KW & KWH @Dist'!H39","v":142392},{"$f":"'WP FR-16(7)(v)-KW & KWH @Dist'!$H18","v":128431},{"$f":"'WP FR-16(7)(v)-KW & KWH @Dist'!$H19+'WP FR-16(7)(v)-KW & KWH @Dist'!$H32","v":12972},{"$f":"'WP FR-16(7)(v)-KW & KWH @Dist'!$H20","v":172},{"$f":"'WP FR-16(7)(v)-KW & KWH @Dist'!$H21","v":103},{"$f":"'WP FR-16(7)(v)-KW & KWH @Dist'!$H22","v":14},{"$f":"'WP FR-16(7)(v)-KW & KWH @Dist'!$H23+'WP FR-16(7)(v)-KW & KWH @Dist'!$H33","v":159},{"$f":"'WP FR-16(7)(v)-KW & KWH @Dist'!$H24","v":37},{"$f":"'WP FR-16(7)(v)-KW & KWH @Dist'!$H25","v":10},{"$f":"'WP FR-16(7)(v)-KW & KWH @Dist'!$H26","v":11},{"$f":"'WP FR-16(7)(v)-KW & KWH @Dist'!$H27","v":468},{"$f":"'WP FR-16(7)(v)-KW & KWH @Dist'!$H28","v":11},142388,4]
[29,null,{"$f":"'FR-16(7)(v)-1 Functional'!C857","v":"RATIO TO TOTAL ELECTRIC"},null,{"$f":"'FR-16(7)(v)-1 Functional'!E857","v":"K405"},{"$f":"IF($F856=0,0,ROUND(F856/$F856,5))","v":1},{"$f":"IF(S856=0,F857-SUM(H857:Q857),ROUND(G856/F856,5))","v":0.90195000000000003},{"$f":"IF($F$856=0,0,ROUND(H856/$F$856,5))","v":9.11E-2},{"$f":"IF($F$856=0,0,ROUND(I856/$F$856,5))","v":1.2099999999999999E-3},7.2000000000000005E-4,1E-4,1.1199999999999999E-3,2.5999999999999998E-4,6.9999999999999994E-5,8.0000000000000007E-5,3.29E-3,{"$f":"IF(G856=0,0,ROUND(Q856/F856,5))","v":8.0000000000000007E-5},0.99998000000000009,1.9999999999908979E-5,null,null,null,{"$f":"R857","v":0.99998000000000009}]
[30,null,{"$f":"'FR-16(7)(v)-1 Functional'!C858","v":"METERS"},"External",null,{"$f":"'WP FR-16(7)(v) Meters'!E40","v":15813241},{"$f":"'WP FR-16(7)(v) Meters'!$E19","v":12782441},{"$f":"'WP FR-16(7)(v) Meters'!$E20","v":2892747},{"$f":"'WP FR-16(7)(v) Meters'!$E21","v":0},{"$f":"'WP FR-16(7)(v) Meters'!$E22","v":22093},{"$f":"'WP FR-16(7)(v) Meters'!$E23","v":3451},{"$f":"'WP FR-16(7)(v) Meters'!$E24","v":102877},{"$f":"'WP FR-16(7)(v) Meters'!$E25","v":0},{"$f":"'WP FR-16(7)(v) Meters'!$E26","v":3805},{"$f":"'WP FR-16(7)(v) Meters'!$E27","v":3619},{"$f":"'WP FR-16(7)(v) Meters'!$E28","v":0},{"$f":"'WP FR-16(7)(v) Meters'!$E29","v":2208},15813241,0]
[31,null,{"$f":"'FR-16(7)(v)-1 Functional'!C859","v":"RATIO TO TOTAL ELECTRIC"},null,{"$f":"'FR-16(7)(v)-1 Functional'!E859","v":"K407"},{"$f":"IF($F858=0,0,ROUND(F858/$F858,5))","v":1},{"$f":"IF(S858=0,F859-SUM(H859:Q859),ROUND(G858/F858,5))","v":0.80832999999999999},{"$f":"IF($F$858=0,0,ROUND(H858/$F$858,5))","v":0.18293000000000001},{"$f":"IF($F$858=0,0,ROUND(I858/$F$858,5))","v":0},1.4E-3,2.2000000000000001E-4,6.5100000000000002E-3,0,2.4000000000000001E-4,2.3000000000000001E-4,0,1.3999999999999999E-4,1,0,null,null,null,{"$f":"R859","v":1}]
[32,null,{"$f":"'FR-16(7)(v)-1 Functional'!C860","v":"WEIGHTED CUSTOMER"},"External",null,{"$f":"'WP FR-16(7)(v) Meters'!H40","v":156470},{"$f":"'WP FR-16(7)(v) Meters'!H19","v":128431},{"$f":"'WP FR-16(7)(v) Meters'!H20+'WP FR-16(7)(v) Meters'!H33","v":25940},{"$f":"'WP FR-16(7)(v) Meters'!H21","v":172},{"$f":"'WP FR-16(7)(v) Meters'!H22","v":206},{"$f":"'WP FR-16(7)(v) Meters'!H23","v":28},{"$f":"'WP FR-16(7)(v) Meters'!H24+'WP FR-16(7)(v) Meters'!H34","v":1089},{"$f":"'WP FR-16(7)(v) Meters'!H25+'WP FR-16(7)(v) Meters'!H35","v":37},{"$f":"'WP FR-16(7)(v) Meters'!H26+'WP FR-16(7)(v) Meters'!H36","v":40},{"$f":"'WP FR-16(7)(v) Meters'!H27+'WP FR-16(7)(v) Meters'!H37","v":37},{"$f":"'WP FR-16(7)(v) Meters'!H28","v":468},{"$f":"'WP FR-16(7)(v) Meters'!H29","v":22},156470,0]
[33,null,{"$f":"'FR-16(7)(v)-1 Functional'!C861","v":"RATIO TO TOTAL ELECTRIC"},null,{"$f":"'FR-16(7)(v)-1 Functional'!E861","v":"K409"},{"$f":"IF($F860=0,0,ROUND(F860/$F860,5))","v":1},{"$f":"IF(S860=0,F861-SUM(H861:Q861),ROUND(G860/F860,5))","v":0.82079000000000002},{"$f":"IF($F$860=0,0,ROUND(H860/$F$860,5))","v":0.16578000000000001},{"$f":"IF($F$860=0,0,ROUND(I860/$F$860,5))","v":1.1000000000000001E-3},1.32E-3,1.8000000000000001E-4,6.96E-3,2.4000000000000001E-4,2.5999999999999998E-4,2.4000000000000001E-4,2.99E-3,1.3999999999999999E-4,1,0,null,null,null,{"$f":"R861","v":1}]
[34,null,{"$f":"'FR-16(7)(v)-1 Functional'!C862","v":"UNCOLLECTIBLE ACCOUNT 904"},"External",null,{"$f":"'WP FR-16(7)(v) CustAcct'!G31","v":5781023.7599999998},{"$f":"'WP FR-16(7)(v) CustAcct'!G17","v":5267443},{"$f":"'WP FR-16(7)(v) CustAcct'!G19","v":249785.75999999978},{"$f":"'WP FR-16(7)(v) CustAcct'!G20","v":1597},{"$f":"'WP FR-16(7)(v) CustAcct'!G21","v":1664},{"$f":"'WP FR-16(7)(v) CustAcct'!G22","v":82},{"$f":"'WP FR-16(7)(v) CustAcct'!G23","v":129741},{"$f":"'WP FR-16(7)(v) CustAcct'!G24","v":82815},{"$f":"'WP FR-16(7)(v) CustAcct'!G25","v":3765},{"$f":"'WP FR-16(7)(v) CustAcct'!G26","v":38893},{"$f":"'WP FR-16(7)(v) CustAcct'!G27","v":5192},{"$f":"'WP FR-16(7)(v) CustAcct'!G28","v":46},5781023.7599999998,0]
[35,null,{"$f":"'FR-16(7)(v)-1 Functional'!C863","v":"RATIO TO TOTAL ELECTRIC"},null,{"$f":"'FR-16(7)(v)-1 Functional'!E863","v":"K411"},{"$f":"IF($F862=0,0,ROUND(F862/$F862,5))","v":1},{"$f":"IF(S862=0,F863-SUM(H863:Q863),ROUND(G862/F862,5))","v":0.91115000000000002},{"$f":"IF($F$862=0,0,ROUND(H862/$F$862,5))","v":4.3209999999999998E-2},{"$f":"IF($F$862=0,0,ROUND(I862/$F$862,5))","v":2.7999999999999998E-4},2.9E-4,1.0000000000000001E-5,2.2440000000000002E-2,1.4330000000000001E-2,6.4999999999999997E-4,6.7299999999999999E-3,8.9999999999999998E-4,1.0000000000000001E-5,0.99999999999999989,0,null,null,null,{"$f":"R863","v":0.99999999999999989}]
[36,null,{"$f":"'FR-16(7)(v)-1 Functional'!C864","v":"KWH SALES LESS RTP"},"External",null,{"$f":"'WP FR-16(7)(v)-KW & KWH @Gen'!F28","v":4244213606},{"$f":"'WP FR-16(7)(v)-KW & KWH @Gen'!F17","v":1608724299},{"$f":"'WP FR-16(7)(v)-KW & KWH @Gen'!F18","v":1146956880},{"$f":"'WP FR-16(7)(v)-KW & KWH @Gen'!F19","v":6420710},{"$f":"'WP FR-16(7)(v)-KW & KWH @Gen'!F20","v":18228802},{"$f":"'WP FR-16(7)(v)-KW & KWH @Gen'!F21","v":298034},{"$f":"'WP FR-16(7)(v)-KW & KWH @Gen'!F22","v":700889249},{"$f":"'WP FR-16(7)(v)-KW & KWH @Gen'!F23","v":488455966},{"$f":"'WP FR-16(7)(v)-KW & KWH @Gen'!F24","v":22905598},{"$f":"'WP FR-16(7)(v)-KW & KWH @Gen'!F25","v":232255694},{"$f":"'WP FR-16(7)(v)-KW & KWH @Gen'!F26","v":18599129},{"$f":"'WP FR-16(7)(v)-KW & KWH @Gen'!F27","v":479245},{"$f":"SUM(G864:Q864)","v":4244213606},{"$f":"F864-R864","v":0}]
[37,null,{"$f":"'FR-16(7)(v)-1 Functional'!C865","v":"RATIO TO TOTAL ELECTRIC"},null,{"$f":"'FR-16(7)(v)-1 Functional'!E865","v":"K302"},{"$f":"IF($F864=0,0,ROUND(F864/$F864,5))","v":1},{"$f":"IF(S864=0,F865-SUM(H865:Q865),ROUND(G864/F863,5))","v":0.37904999999999989},{"$f":"IF(F864=0,0,ROUND(H864/F864,5))","v":0.27023999999999998},{"$f":"IF(F864=0,0,ROUND(I864/F864,5))","v":1.5100000000000001E-3},{"$f":"IF(F864=0,0,ROUND(J864/F864,5))","v":4.2900000000000004E-3},{"$f":"IF(F864=0,0,ROUND(K864/F864,5))","v":6.9999999999999994E-5},{"$f":"IF(F864=0,0,ROUND(L864/F864,5))","v":0.16514000000000001},{"$f":"IF(F864=0,0,ROUND(M864/F864,5))","v":0.11509},{"$f":"IF(F864=0,0,ROUND(N864/F864,5))","v":5.4000000000000003E-3},{"$f":"IF(F864=0,0,ROUND(O864/F864,5))","v":5.4719999999999998E-2},{"$f":"IF(F864=0,0,ROUND(P864/F864,5))","v":4.3800000000000002E-3},{"$f":"IF(F864=0,0,ROUND(Q864/F864,5))","v":1.1E-4},{"$f":"SUM(G865:Q865)","v":1},{"$f":"F865-R865","v":0}]
[38]
[39,null,{"$f":"'FR-16(7)(v)-1 Functional'!C867","v":"PRESENT REVENUES"},{"$f":"'FR-16(7)(v)-1 Functional'!$D$867","v":"CS09"},{"$f":"'FR-16(7)(v)-1 Functional'!E867","v":"R600"},{"$f":"'FR-16(7)(v)-2 PROD Classified'!I867","v":0},{"$f":"F867-SUM(H867:Q867)","v":0},{"$f":"ROUND(F867*VLOOKUP(D867,ALLOCTABLE_Prod_Customer,$H$10,FALSE),0)","v":0},{"$f":"ROUND($F$867*VLOOKUP($D$867,ALLOCTABLE_Prod_Customer,I10,FALSE),0)","v":0},0,0,0,0,0,0,0,0,{"$f":"SUM(G867:Q867)","v":0},{"$f":"F867-R867","v":0}]
[40,null,{"$f":"'FR-16(7)(v)-1 Functional'!C868","v":"PROPOSED REVENUES"},{"$f":"'FR-16(7)(v)-1 Functional'!$D$868","v":"A357"},{"$f":"'FR-16(7)(v)-1 Functional'!E868","v":"R602"},{"$f":"'FR-16(7)(v)-2 PROD Classified'!I868","v":0},{"$f":"F868-SUM(H868:Q868)","v":0},{"$f":"ROUND(F868*VLOOKUP(D868,ALLOCTABLE_Prod_Customer,$H$10,FALSE),0)","v":0},{"$f":"ROUND($F$868*VLOOKUP($D$868,ALLOCTABLE_Prod_Customer,I10,FALSE),0)","v":0},0,0,0,0,0,0,0,0,{"$f":"SUM(G868:Q868)","v":0},{"$f":"F868-R868","v":0}]
[]
[{"$f":"co_name","v":"DUKE ENERGY KENTUCKY, INC."},null,null,null,null,null,null,null,null,null,null,null,null,null,null,null,null,{"$f":"R1","v":"FR-16(7)(v)-5"}]
[{"$f":"$A$2","v":"PRODUCTION CUSTOMER ALLOCATED - ELECTRIC COST OF SERVICE"},null,null,null,null,null,null,null,null,null,null,null,null,null,null,null,null,{"$f":"R2","v":"WITNESS RESPONSIBLE:"}]
[{"$f":"case_name","v":"CASE NO: 2019-00271"},null,null,null,null,null,null,null,null,null,null,null,null,null,null,null,null,{"$f":"Witness","v":"JAMES E. ZIOLKOWSKI"}]
[{"$f":"data_filing","v":"DATA: 12 MONTHS ACTUAL  & 0 MONTHS ESTIMATED"},null,null,null,null,null,null,null,null,null,null,null,null,null,null,null,null,{"$f":"\"PAGE \"&Pages-1&\" OF \"&Pages","v":"PAGE 17 OF 18"}]
[{"$f":"type","v":"TYPE OF FILING: \"X\" ORIGINAL   UPDATED    REVISED  "}]
[]
[null,null,null,null,null,{"$f":"F$7","v":"TOTAL"},null,{"$f":"H$7","v":"DS"},{"$f":"I$7","v":"GSFL"},{"$f":"J$7","v":"EH"},{"$f":"K$7","v":"SP"},"DT SEC","DT PRI","DP","TT",null,"OTHER"]
["LINE",null,null,null,null,{"$f":"F$8","v":"PRODUCTION"},{"$f":"G$8","v":"RS"},{"$f":"H$8","v":"SECONDARY"},{"$f":"I$8","v":"SECONDARY"},{"$f":"J$8","v":"SECONDARY"},{"$f":"K$8","v":"SECONDARY"},"SECONDARY","PRIMARY","PRIMARY","TRANSMISSION","LT","WATER",{"$f":"R8","v":"TOTAL"},"ALL"]
["NO.","ALLOCATORS",null,"SOURCE","ALLO",{"$f":"F$9","v":"CUSTOMER"},{"$f":"G$9","v":"RESIDENTIAL"},{"$f":"H$9","v":"DISTRIBUTION"},{"$f":"I$9","v":"DISTRIBUTION"},{"$f":"J$9","v":"DISTRIBUTION"},{"$f":"K$9","v":"DISTRIBUTION"},"DISTRIBUTION","DISTRIBUTION","DISTRIBUTION","TIME OF DAY","LIGHTING","PUMPING",{"$f":"R9","v":"AT ISSUE"},"OTHER"]
[null,null,"Schedule 12.1",null,1,null,{"$f":"G$10","v":3},{"$f":"H$10","v":4},{"$f":"I$10","v":5},{"$f":"J$10","v":6},{"$f":"K$10","v":7},8,9,10,11,12,13,null," "]
[]
[1,null,{"$f":"'FR-16(7)(v)-1 Functional'!C881","v":"PRESENT REVENUES"},"Internal",null,{"$f":"'FR-16(7)(v)-3 PROD Demand'!F881","v":309580654},{"$f":"'FR-16(7)(v)-3 PROD Demand'!G881","v":123883637},{"$f":"'FR-16(7)(v)-3 PROD Demand'!H881","v":90318223},{"$f":"'FR-16(7)(v)-3 PROD Demand'!I881","v":577046},{"$f":"'FR-16(7)(v)-3 PROD Demand'!J881","v":600937},{"$f":"'FR-16(7)(v)-3 PROD Demand'!K881","v":29960},{"$f":"'FR-16(7)(v)-3 PROD Demand'!L881","v":46910116},{"$f":"'FR-16(7)(v)-3 PROD Demand'!M881","v":29943872},{"$f":"'FR-16(7)(v)-3 PROD Demand'!N881","v":1361377},{"$f":"'FR-16(7)(v)-3 PROD Demand'!O881","v":14062168},{"$f":"'FR-16(7)(v)-3 PROD Demand'!P881","v":1876470},{"$f":"'FR-16(7)(v)-3 PROD Demand'!Q881","v":16848},{"$f":"SUM(G881:Q881)","v":309580654},{"$f":"F881-R881","v":0}]
[2,null,{"$f":"'FR-16(7)(v)-1 Functional'!C882","v":"RATIO TO TOTAL ELECTRIC"},null,{"$f":"'FR-16(7)(v)-1 Functional'!E882","v":"K901"},{"$f":"IF($F881=0,0,ROUND(F881/$F881,9))","v":1},{"$f":"IF(S881=0,F882-SUM(H882:Q882),ROUND(G881/F881,5))","v":0.40016595199999994},{"$f":"IF($F$881=0,0,ROUND(H881/$F$881,9))","v":0.29174375699999999},{"$f":"IF($F$881=0,0,ROUND(I881/$F$881,9))","v":1.86396E-3},1.9411319999999999E-3,9.6775999999999996E-5,0.151527931,9.6723977000000003E-2,4.3974870000000003E-3,4.5423277999999997E-2,6.0613280000000004E-3,5.4422000000000002E-5,{"$f":"SUM(G882:Q882)","v":1},{"$f":"F882-R882","v":0},null,null,null,{"$f":"R882","v":1}]
[3,null,{"$f":"'FR-16(7)(v)-1 Functional'!C883","v":"PROPOSED REVENUES"},"Internal",null,{"$f":"'FR-16(7)(v)-3 PROD Demand'!F883","v":355094168},{"$f":"'FR-16(7)(v)-3 PROD Demand'!G883","v":147195469},{"$f":"'FR-16(7)(v)-3 PROD Demand'!H883","v":101595371},{"$f":"'FR-16(7)(v)-3 PROD Demand'!I883","v":649414},{"$f":"'FR-16(7)(v)-3 PROD Demand'!J883","v":676300},{"$f":"'FR-16(7)(v)-3 PROD Demand'!K883","v":33717},{"$f":"'FR-16(7)(v)-3 PROD Demand'!L883","v":52518255},{"$f":"'FR-16(7)(v)-3 PROD Demand'!M883","v":33522516},{"$f":"'FR-16(7)(v)-3 PROD Demand'!N883","v":1546768},{"$f":"'FR-16(7)(v)-3 PROD Demand'!O883","v":15232520},{"$f":"'FR-16(7)(v)-3 PROD Demand'!P883","v":2104877},{"$f":"'FR-16(7)(v)-3 PROD Demand'!Q883","v":18961},{"$f":"SUM(G883:Q883)","v":355094168},{"$f":"F883-R883","v":0}]
[4,null,{"$f":"'FR-16(7)(v)-1 Functional'!C884","v":"RATIO TO TOTAL ELECTRIC"},null,{"$f":"'FR-16(7)(v)-1 Functional'!E884","v":"K902"},{"$f":"IF($F883=0,0,ROUND(F883/$F883,9))","v":1},{"$f":"IF(S883=0,F884-SUM(H884:Q884),ROUND(G883/F883,5))","v":0.41452516699999997},{"$f":"IF($F$883=0,0,ROUND(H883/$F$883,9))","v":0.28610825000000001},{"$f":"IF($F$883=0,0,ROUND(I883/$F$883,9))","v":1.8288499999999999E-3},1.904565E-3,9.4951999999999995E-5,0.14789951400000001,9.4404581000000001E-2,4.3559369999999998E-3,4.2897128E-2,5.9276590000000001E-3,5.3396999999999997E-5,{"$f":"SUM(G884:Q884)","v":1},{"$f":"F884-R884","v":0}]
[5]
[6,"WEIGHTED RATIOS"]
[7,"GROSS ELECTRIC PLANT IN SERVICE"]
[8,null,{"$f":"'FR-16(7)(v)-1 Functional'!C888","v":"WTD GROSS PROD PLANT RATIOS"},"Internal",{"$f":"'FR-16(7)(v)-1 Functional'!E888","v":"P129"},1,{"$f":"IF(F888=0,0,F888-SUM(H888:Q888))","v":1},{"$f":"ROUND(IF($F$62=0,0,H62/$F$62),5)","v":0},0,0,0,{"$f":"ROUND(IF($F$62=0,0,L62/$F$62),5)","v":0},0,0,0,0,0,{"$f":"SUM(G888:Q888)","v":1},{"$f":"F888-R888","v":0},null,null,null,{"$f":"R888","v":1}]
[9,null,{"$f":"'FR-16(7)(v)-1 Functional'!C889","v":"WTD GROSS TRANS PLANT RATIOS"},"Internal",{"$f":"'FR-16(7)(v)-1 Functional'!E889","v":"T129"},0,0,{"$f":"ROUND(IF($F$68=0,0,H68/$F$68),5)","v":0},0,0,0,0,0,0,0,0,0,0,0,null,null,null,0]
[10,null,{"$f":"'FR-16(7)(v)-1 Functional'!C890","v":"WTD GROSS P & T PLT RATIOS"},"Internal",{"$f":"'FR-16(7)(v)-1 Functional'!E890","v":"PT29"},1,1,{"$f":"ROUND(IF($F$70=0,0,H70/$F$70),5)","v":0},0,0,0,{"$f":"ROUND(IF($F$70=0,0,L70/$F$70),5)","v":0},0,0,0,0,0,1,0]
[11,null,{"$f":"'FR-16(7)(v)-1 Functional'!C891","v":"WTD GROSS DIST PLANT RATIOS"},"Internal",{"$f":"'FR-16(7)(v)-1 Functional'!E891","v":"D149"},0,0,{"$f":"ROUND(IF($F$94=0,0,H94/$F$94),5)","v":0},0,0,0,{"$f":"ROUND(IF($F$94=0,0,L94/$F$94),5)","v":0},0,0,0,0,0,0,0]
[12,null,{"$f":"'FR-16(7)(v)-1 Functional'!C892","v":"WTD GROSS TRANS & DIST RATIOS"},"Internal",{"$f":"'FR-16(7)(v)-1 Functional'!E892","v":"TD29"},0,0,{"$f":"ROUND(IF($F$97=0,0,H97/$F$97),5)","v":0},0,0,0,{"$f":"ROUND(IF($F$97=0,0,L97/$F$97),5)","v":0},0,0,0,0,0,0,0,null,null,null,0]
[13,null,{"$f":"'FR-16(7)(v)-1 Functional'!C893","v":"WTD GROSS PTD PLT RATIOS"},"Internal",{"$f":"'FR-16(7)(v)-1 Functional'!E893","v":"PD29"},1,1,{"$f":"ROUND(IF($F$109=0,0,H109/$F$109),5)","v":0},0,0,0,{"$f":"ROUND(IF($F$109=0,0,L109/$F$109),5)","v":0},0,0,0,0,0,1,0,null,null,null,1]
[14,null,{"$f":"'FR-16(7)(v)-1 Functional'!C894","v":"WTD GROSS G & I PLT RATIOS"},"Internal",{"$f":"'FR-16(7)(v)-1 Functional'!E894","v":"G129"},1,1,{"$f":"ROUND(IF($F$121=0,0,H121/$F$121),5)","v":0},0,0,0,{"$f":"ROUND(IF($F$121=0,0,L121/$F$121),5)","v":0},0,0,0,0,0,1,0,null,null,null,1]
[15,null,{"$f":"'FR-16(7)(v)-1 Functional'!C895","v":"WTD GROSS C & O PLANT RATIOS"},"Internal",{"$f":"'FR-16(7)(v)-1 Functional'!E895","v":"C129"},1,1,{"$f":"ROUND(IF($F$123=0,0,H123/$F$123),5)","v":0},0,0,0,{"$f":"ROUND(IF($F$123=0,0,L123/$F$123),5)","v":0},0,0,0,0,0,1,0,null,null,null,1]
[16,null,{"$f":"'FR-16(7)(v)-1 Functional'!C896","v":"WTD GROSS PLANT RATIOS"},"Internal",{"$f":"'FR-16(7)(v)-1 Functional'!E896","v":"GP19"},1,1,{"$f":"ROUND(IF($F$171=0,0,H171/$F$171),5)","v":0},0,0,0,{"$f":"ROUND(IF($F$171=0,0,L171/$F$171),5)","v":0},0,0,0,0,0,1,0,null,null,null,1]
[17,null,{"$f":"'FR-16(7)(v)-1 Functional'!C897","v":"WTD TOTAL DEPRC RES RATIOS"},"Internal",{"$f":"'FR-16(7)(v)-1 Functional'!E897","v":"DR19"},1,1,{"$f":"ROUND(IF($F$200=0,0,H200/$F$200),5)","v":0},0,0,0,{"$f":"ROUND(IF($F$200=0,0,L200/$F$200),5)","v":0},0,0,0,0,0,1,0,null,null,null,1]
[18]
[19,"NET ELECTRIC PLANT"]
[20,null,{"$f":"'FR-16(7)(v)-1 Functional'!C900","v":"WTD NET PROD PLANT RATIOS"},"Internal",{"$f":"'FR-16(7)(v)-1 Functional'!E900","v":"P229"},1,{"$f":"IF(F900=0,0,F900-SUM(H900:Q900))","v":1},{"$f":"ROUND(IF($F$216=0,0,H216/$F$216),5)","v":0},0,0,0,{"$f":"ROUND(IF($F$216=0,0,L216/$F$216),5)","v":0},0,0,0,0,0,{"$f":"SUM(G900:Q900)","v":1},{"$f":"F900-R900","v":0},null,null,null,{"$f":"R900","v":1}]
[21,null,{"$f":"'FR-16(7)(v)-1 Functional'!C901","v":"WTD NET TRANS PLANT RATIOS"},"Internal",{"$f":"'FR-16(7)(v)-1 Functional'!E901","v":"T229"},0,0,{"$f":"ROUND(IF($F$222=0,0,H222/$F$222),5)","v":0},0,0,0,0,0,0,0,0,0,0,0,null,null,null,{"$f":"R901","v":0}]
[22,null,{"$f":"'FR-16(7)(v)-1 Functional'!C902","v":"WTD NET DIST LINES  - POLES, TOWERS & FIXTURES"},"Internal",{"$f":"'FR-16(7)(v)-1 Functional'!E902","v":"PL49"},0,0,{"$f":"ROUND(IF(SUM($F$228:$F$231)=0,0,SUM(H228:H231)/SUM($F$228:$F$231)),5)","v":0},{"$f":"ROUND(IF(SUM($F$228:$F$231)=0,0,SUM(I228:I231)/SUM($F$228:$F$231)),5)","v":0},0,0,0,0,0,0,0,0,0,0,null,null,null,{"$f":"R902","v":0}]
[23,null,{"$f":"'FR-16(7)(v)-1 Functional'!C903","v":"WTD NET TOTAL DIST PLANT RATIOS"},"Internal",{"$f":"'FR-16(7)(v)-1 Functional'!E903","v":"D249"},0,0,{"$f":"ROUND(IF($F$248=0,0,H248/$F$248),5)","v":0},0,0,0,{"$f":"ROUND(IF($F$248=0,0,L248/$F$248),5)","v":0},0,0,0,0,0,0,0]
[24,null,{"$f":"'FR-16(7)(v)-1 Functional'!C904","v":"WTD NET TRANS & DIST RATIOS"},"Internal",{"$f":"'FR-16(7)(v)-1 Functional'!E904","v":"NT29"},0,0,{"$f":"ROUND(IF($F$251=0,0,H251/$F$251),5)","v":0},0,0,0,{"$f":"ROUND(IF($F$251=0,0,L251/$F$251),5)","v":0},0,0,0,0,0,0,0]
[25,null,{"$f":"'FR-16(7)(v)-1 Functional'!C905","v":"WTD NET G & I PLT RATIOS"},"Internal",{"$f":"'FR-16(7)(v)-1 Functional'!E905","v":"G229"},1,1,{"$f":"ROUND(IF($F$263=0,0,H263/$F$263),5)","v":0},0,0,0,{"$f":"ROUND(IF($F$263=0,0,L263/$F$263),5)","v":0},0,0,0,0,0,1,0]
[26,null,{"$f":"'FR-16(7)(v)-1 Functional'!C906","v":"WTD NET C & O PLANT RATIOS"},"Internal",{"$f":"'FR-16(7)(v)-1 Functional'!E906","v":"C229"},1,1,{"$f":"ROUND(IF($F$275=0,0,H275/$F$275),5)","v":0},0,0,0,{"$f":"ROUND(IF($F$275=0,0,L275/$F$275),5)","v":0},0,0,0,0,0,1,0]
[27,null,{"$f":"'FR-16(7)(v)-1 Functional'!C907","v":"WTD NET PLANT RATIOS"},"Internal",{"$f":"'FR-16(7)(v)-1 Functional'!E907","v":"NP29"},1,1,{"$f":"ROUND(IF($F$277=0,0,H277/$F$277),5)","v":0},0,0,0,{"$f":"ROUND(IF($F$277=0,0,L277/$F$277),5)","v":0},0,0,0,0,0,1,0]
[28]
[29,"WORKING CAPITAL"]
[30,null,{"$f":"'FR-16(7)(v)-1 Functional'!C910","v":"WTD MATERIAL & SUPPLY RATIOS"},"Internal",{"$f":"'FR-16(7)(v)-1 Functional'!E910","v":"W669"},1,{"$f":"IF(F910=0,0,F910-SUM(H910:Q910))","v":1},{"$f":"ROUND(IF($F$399=0,0,H399/$F$399),5)","v":0},0,0,0,{"$f":"ROUND(IF($F$399=0,0,L399/$F$399),5)","v":0},0,0,0,0,0,{"$f":"SUM(G910:Q910)","v":1},{"$f":"F910-R910","v":0},null,null,null,{"$f":"R910","v":1}]
[31,null,{"$f":"'FR-16(7)(v)-1 Functional'!C911","v":"WTD PREPAYMENTS RATIOS"},"Internal",{"$f":"'FR-16(7)(v)-1 Functional'!E911","v":"W689"},1,{"$f":"IF(F911=0,0,F911-SUM(H911:Q911))","v":1},{"$f":"ROUND(IF($F$405=0,0,H405/$F$405),5)","v":0},0,0,0,{"$f":"ROUND(IF($F$405=0,0,L405/$F$405),5)","v":0},0,0,0,0,0,{"$f":"SUM(G911:Q911)","v":1},{"$f":"F911-R911","v":0},null,null,null,{"$f":"R911","v":1}]
[32,null,{"$f":"'FR-16(7)(v)-1 Functional'!C912","v":"WTD TOTAL WORKING CASH RATIOS"},"Internal",{"$f":"'FR-16(7)(v)-1 Functional'!E912","v":"W719"},1,{"$f":"IF(F912=0,0,F912-SUM(H912:Q912))","v":1},{"$f":"ROUND(IF($F$408=0,0,H408/$F$408),5)","v":0},0,0,0,{"$f":"ROUND(IF($F$408=0,0,L408/$F$408),5)","v":0},0,0,0,0,0,{"$f":"SUM(G912:Q912)","v":1},{"$f":"F912-R912","v":0},null,null,null,{"$f":"R912","v":1}]
[33,null,{"$f":"'FR-16(7)(v)-1 Functional'!C913","v":"WTD TOTAL MISC WRKNG CAP RATIO"},"Internal",{"$f":"'FR-16(7)(v)-1 Functional'!E913","v":"W749"},1,{"$f":"IF(F913=0,0,F913-SUM(H913:Q913))","v":1},{"$f":"ROUND(IF($F$414=0,0,H414/$F$414),5)","v":0},0,0,0,{"$f":"ROUND(IF($F$414=0,0,L414/$F$414),5)","v":0},0,0,0,0,0,{"$f":"SUM(G913:Q913)","v":1},{"$f":"F913-R913","v":0},null,null,null,{"$f":"R913","v":1}]
[34,null,{"$f":"'FR-16(7)(v)-1 Functional'!C914","v":"WTD TOTAL WRKNG CAP RATIOS"},"Internal",{"$f":"'FR-16(7)(v)-1 Functional'!E914","v":"WC79"},1,{"$f":"IF(F914=0,0,F914-SUM(H914:Q914))","v":1},{"$f":"ROUND(IF($F$416=0,0,H416/$F$416),5)","v":0},0,0,0,{"$f":"ROUND(IF($F$416=0,0,L416/$F$416),5)","v":0},0,0,0,0,0,{"$f":"SUM(G914:Q914)","v":1},{"$f":"F914-R914","v":0}]
[35]
[36,"RATE BASE"]
[37,null,{"$f":"'FR-16(7)(v)-1 Functional'!C917","v":"WTD NET OCRB RATIOS"},"Internal",{"$f":"'FR-16(7)(v)-1 Functional'!E917","v":"RB29"},1,{"$f":"IF(F917=0,0,F917-SUM(H917:Q917))","v":1},{"$f":"ROUND(IF($F$390=0,0,H390/$F$390),5)","v":0},0,0,0,{"$f":"ROUND(IF($F$390=0,0,L390/$F$390),5)","v":0},0,0,0,0,0,{"$f":"SUM(G917:Q917)","v":1},{"$f":"F917-R917","v":0}]
[38,null,{"$f":"'FR-16(7)(v)-1 Functional'!C918","v":"WTD TOTAL RATE BASE RATIOS"},"Internal",{"$f":"'FR-16(7)(v)-1 Functional'!E918","v":"RB99"},1,{"$f":"IF(F918=0,0,F918-SUM(H918:Q918))","v":1},{"$f":"ROUND(IF($F$426=0,0,H426/$F$426),5)","v":0},0,0,0,{"$f":"ROUND(IF($F$426=0,0,L426/$F$426),5)","v":0},0,0,0,0,0,{"$f":"SUM(G918:Q918)","v":1},{"$f":"F918-R918","v":0}]
[39,null,{"$f":"'FR-16(7)(v)-1 Functional'!C919","v":"WTD CWIP RATIO"},"Internal",{"$f":"'FR-16(7)(v)-1 Functional'!E919","v":"CW29"},1,{"$f":"IF(F919=0,0,F919-SUM(H919:Q919))","v":1},{"$f":"ROUND(IF($F$375=0,0,H375/$F$375),5)","v":0},0,0,0,{"$f":"ROUND(IF($F$375=0,0,L375/$F$375),5)","v":0},0,0,0,0,0,{"$f":"SUM(G919:Q919)","v":1},{"$f":"F919-R919","v":0},null,null,null,{"$f":"R919","v":1}]
[]
[{"$f":"co_name","v":"DUKE ENERGY KENTUCKY, INC."},null,null,null,null,null,null,null,null,null,null,null,null,null,null,null,null,{"$f":"R1","v":"FR-16(7)(v)-5"}]
[{"$f":"$A$2","v":"PRODUCTION CUSTOMER ALLOCATED - ELECTRIC COST OF SERVICE"},null,null,null,null,null,null,null,null,null,null,null,null,null,null,null,null,{"$f":"R2","v":"WITNESS RESPONSIBLE:"}]
[{"$f":"case_name","v":"CASE NO: 2019-00271"},null,null,null,null,null,null,null,null,null,null,null,null,null,null,null,null,{"$f":"Witness","v":"JAMES E. ZIOLKOWSKI"}]
[{"$f":"data_filing","v":"DATA: 12 MONTHS ACTUAL  & 0 MONTHS ESTIMATED"},null,null,null,null,null,null,null,null,null,null,null,null,null,null,null,null,{"$f":"\"PAGE \"&Pages&\" OF \"&Pages","v":"PAGE 18 OF 18"}]
[{"$f":"type","v":"TYPE OF FILING: \"X\" ORIGINAL   UPDATED    REVISED  "}]
[]
[null,null,null,null,null,{"$f":"F$7","v":"TOTAL"},null,{"$f":"H$7","v":"DS"},{"$f":"I$7","v":"GSFL"},{"$f":"J$7","v":"EH"},{"$f":"K$7","v":"SP"},"DT SEC","DT PRI","DP","TT",null,"OTHER"]
["LINE",null,null,null,null,{"$f":"F$8","v":"PRODUCTION"},{"$f":"G$8","v":"RS"},{"$f":"H$8","v":"SECONDARY"},{"$f":"I$8","v":"SECONDARY"},{"$f":"J$8","v":"SECONDARY"},{"$f":"K$8","v":"SECONDARY"},"SECONDARY","PRIMARY","PRIMARY","TRANSMISSION","LT","WATER",{"$f":"R8","v":"TOTAL"},"ALL"]
["NO.","ALLOCATORS",null,"SOURCE","ALLO",{"$f":"F$9","v":"CUSTOMER"},{"$f":"G$9","v":"RESIDENTIAL"},{"$f":"H$9","v":"DISTRIBUTION"},{"$f":"I$9","v":"DISTRIBUTION"},{"$f":"J$9","v":"DISTRIBUTION"},{"$f":"K$9","v":"DISTRIBUTION"},"DISTRIBUTION","DISTRIBUTION","DISTRIBUTION","TIME OF DAY","LIGHTING","PUMPING",{"$f":"R9","v":"AT ISSUE"},"OTHER"]
[null,null,"Schedule 12.2",null,1,null,{"$f":"G$10","v":3},{"$f":"H$10","v":4},{"$f":"I$10","v":5},{"$f":"J$10","v":6},{"$f":"K$10","v":7},8,9,10,11,12,13,null," "]
[1,"WEIGHTED O & M EXPENSE RATIOS"]
[2,null,{"$f":"'FR-16(7)(v)-1 Functional'!C932","v":"WTD PROD DEMAND O&M EXP RATIOS"},"Internal",{"$f":"'FR-16(7)(v)-1 Functional'!E932","v":"P349"},1,{"$f":"ROUND(IF($F$457=0,0,G457/$F$457),5)","v":0},{"$f":"ROUND(IF($F$457=0,0,H457/$F$457),5)","v":0},0,0,0,{"$f":"ROUND(IF($F$457=0,0,L457/$F$457),5)","v":0},0,0,0,0,0,{"$f":"SUM(G932:Q932)","v":0},{"$f":"F932-R932","v":1},null,null,null,{"$f":"R932","v":0}]
[3,null,{"$f":"'FR-16(7)(v)-1 Functional'!C933","v":"WTD PROD ENERGY O&M EXP RATIOS"},"Internal",{"$f":"'FR-16(7)(v)-1 Functional'!E933","v":"E349"},1,{"$f":"ROUND(IF($F$453=0,0,G453/$F$453),5)","v":0},{"$f":"ROUND(IF($F$453=0,0,H453/$F$453),5)","v":0},0,0,0,{"$f":"ROUND(IF($F$453=0,0,L453/$F$453),5)","v":0},0,0,0,0,0,0,1,null,null,null,{"$f":"R933","v":0}]
[4,null,{"$f":"'FR-16(7)(v)-1 Functional'!C934","v":"WTD TOTAL PROD O&M EXP RATIOS"},"Internal",{"$f":"'FR-16(7)(v)-1 Functional'!E934","v":"P459"},1,{"$f":"ROUND(IF($F$459=0,0,G459/$F$459),5)","v":0},{"$f":"ROUND(IF($F$459=0,0,H459/$F$459),5)","v":0},0,0,0,{"$f":"ROUND(IF($F$459=0,0,L459/$F$459),5)","v":0},0,0,0,0,0,0,1,null,null,null,{"$f":"R934","v":0}]
[5,null,{"$f":"'FR-16(7)(v)-1 Functional'!C935","v":"WTD TRANS O&M EXP RATIOS"},"Internal",{"$f":"'FR-16(7)(v)-1 Functional'!E935","v":"T349"},1,{"$f":"ROUND(IF($F$466=0,0,G466/$F$466),5)","v":0},{"$f":"ROUND(IF($F$466=0,0,H466/$F$466),5)","v":0},0,0,0,{"$f":"ROUND(IF($F$466=0,0,L466/$F$466),5)","v":0},0,0,0,0,0,0,1,null,null,null,{"$f":"R935","v":0}]
[6,null,{"$f":"'FR-16(7)(v)-1 Functional'!C936","v":"WTD DIST O&M EXP RATIOS"},"Internal",{"$f":"'FR-16(7)(v)-1 Functional'!E936","v":"D349"},1,{"$f":"ROUND(IF($F$492=0,0,G492/$F$492),5)","v":0},{"$f":"ROUND(IF($F$492=0,0,H492/$F$492),5)","v":0},0,0,0,{"$f":"ROUND(IF($F$492=0,0,L492/$F$492),5)","v":0},0,0,0,0,0,0,1]
[7,null,{"$f":"'FR-16(7)(v)-1 Functional'!C937","v":"WTD UNCOLLECTIBLE ACCOUNT O&M"},"Internal",{"$f":"'FR-16(7)(v)-1 Functional'!E937","v":"C311"},1,{"$f":"ROUND(IF($F$496=0,0,G496/$F$496),5)","v":0},{"$f":"ROUND(IF($F$496=0,0,H496/$F$496),5)","v":0},0,0,0,{"$f":"ROUND(IF($F$496=0,0,L496/$F$496),5)","v":0},0,0,0,0,0,0,1,null,null,null,{"$f":"R937","v":0}]
[8,null,{"$f":"'FR-16(7)(v)-1 Functional'!C938","v":"WTD CUST ACCT O&M EXP RATIOS"},"Internal",{"$f":"'FR-16(7)(v)-1 Functional'!E938","v":"C319"},1,{"$f":"ROUND(IF($F$503=0,0,G503/$F$503),5)","v":0},{"$f":"ROUND(IF($F$503=0,0,H503/$F$503),5)","v":0},0,0,0,{"$f":"ROUND(IF($F$503=0,0,L503/$F$503),5)","v":0},0,0,0,0,0,0,1,null,null,null,{"$f":"R938","v":0}]
[9,null,{"$f":"'FR-16(7)(v)-1 Functional'!C939","v":"WTD CUST SERV & INFO O&M  EXP RATIOS"},"Internal",{"$f":"'FR-16(7)(v)-1 Functional'!E939","v":"C331"},1,{"$f":"ROUND(IF($F$518=0,0,G518/$F$518),5)","v":0},{"$f":"ROUND(IF($F$518=0,0,H518/$F$518),5)","v":0},0,0,0,{"$f":"ROUND(IF($F$518=0,0,L518/$F$518),5)","v":0},0,0,0,0,0,0,1,null,null,null,{"$f":"R939","v":0}]
[10,null,{"$f":"'FR-16(7)(v)-1 Functional'!C940","v":"WTD SALES O&M EXP RATIOS"},"Internal",{"$f":"'FR-16(7)(v)-1 Functional'!E940","v":"S319"},1,{"$f":"ROUND(IF($F$522=0,0,G522/$F$522),5)","v":0},{"$f":"ROUND(IF($F$522=0,0,H522/$F$522),5)","v":0},0,0,0,{"$f":"ROUND(IF($F$522=0,0,L522/$F$522),5)","v":0},0,0,0,0,0,{"$f":"SUM(G940:Q940)","v":0},{"$f":"F940-R940","v":1}]
[11,null,{"$f":"'FR-16(7)(v)-1 Functional'!C941","v":"WTD O&M EXP RATIOS"},"Internal",{"$f":"'FR-16(7)(v)-1 Functional'!E941","v":"OM39"},1,{"$f":"ROUND(IF($F$549=0,0,G549/$F$549),5)","v":0},{"$f":"ROUND(IF($F$549=0,0,H549/$F$549),5)","v":0},0,0,0,{"$f":"ROUND(IF($F$549=0,0,L549/$F$549),5)","v":0},0,0,0,0,0,{"$f":"SUM(G941:Q941)","v":0},{"$f":"F941-R941","v":1}]
[12]
[13,"A & G EXPENSES"]
[14,null,{"$f":"'FR-16(7)(v)-1 Functional'!C944","v":"WTD PROD DEMAND A&G EXP RATIOS"},"Internal",{"$f":"'FR-16(7)(v)-1 Functional'!E944","v":"A300"},1,{"$f":"ROUND(IF($F$525=0,0,G525/$F$525),5)","v":0},{"$f":"ROUND(IF($F$525=0,0,H525/$F$525),5)","v":0},0,0,0,{"$f":"ROUND(IF($F$525=0,0,L525/$F$525),5)","v":0},0,0,0,0,0,{"$f":"SUM(G944:Q944)","v":0},{"$f":"F944-R944","v":1}]
[15,null,{"$f":"'FR-16(7)(v)-1 Functional'!C945","v":"WTD PROD ENERGY A&G EXP RATIOS"},"Internal",{"$f":"'FR-16(7)(v)-1 Functional'!E945","v":"A302"},1,{"$f":"ROUND(IF($F$526=0,0,G526/$F$526),5)","v":0},{"$f":"ROUND(IF($F$526=0,0,H526/$F$526),5)","v":0},0,0,0,{"$f":"ROUND(IF($F$526=0,0,L526/$F$526),5)","v":0},0,0,0,0,0,0,1]
[16,null,{"$f":"'FR-16(7)(v)-1 Functional'!C946","v":"WTD TRANS A&G EXP RATIOS"},"Internal",{"$f":"'FR-16(7)(v)-1 Functional'!E946","v":"A304"},1,{"$f":"ROUND(IF($F$527=0,0,G527/$F$527),5)","v":0},{"$f":"ROUND(IF($F$527=0,0,H527/$F$527),5)","v":0},0,0,0,{"$f":"ROUND(IF($F$527=0,0,L527/$F$527),5)","v":0},0,0,0,0,0,0,1]
[17,null,{"$f":"'FR-16(7)(v)-1 Functional'!C947","v":"WTD DIST A&G EXP RATIOS"},"Internal",{"$f":"'FR-16(7)(v)-1 Functional'!E947","v":"A306"},1,{"$f":"ROUND(IF($F$528=0,0,G528/$F$528),5)","v":0},{"$f":"ROUND(IF($F$528=0,0,H528/$F$528),5)","v":0},0,0,0,{"$f":"ROUND(IF($F$528=0,0,L528/$F$528),5)","v":0},0,0,0,0,0,0,1]
[18,null,{"$f":"'FR-16(7)(v)-1 Functional'!C948","v":"WTD CUST ACCT A&G EXP RATIOS"},"Internal",{"$f":"'FR-16(7)(v)-1 Functional'!E948","v":"A308"},1,{"$f":"ROUND(IF($F$529=0,0,G529/$F$529),5)","v":0},{"$f":"ROUND(IF($F$529=0,0,H529/$F$529),5)","v":0},0,0,0,{"$f":"ROUND(IF($F$529=0,0,L529/$F$529),5)","v":0},0,0,0,0,0,0,1]
[19,null,{"$f":"'FR-16(7)(v)-1 Functional'!C949","v":"WTD CUST SERV & INFO A&G  EXP RATIOS"},"Internal",{"$f":"'FR-16(7)(v)-1 Functional'!E949","v":"A310"},1,{"$f":"ROUND(IF($F$530=0,0,G530/$F$530),5)","v":0},{"$f":"ROUND(IF($F$530=0,0,H530/$F$530),5)","v":0},0,0,0,{"$f":"ROUND(IF($F$530=0,0,L530/$F$530),5)","v":0},0,0,0,0,0,0,1]
[20,null,{"$f":"'FR-16(7)(v)-1 Functional'!C950","v":"WTD SALES A&G EXP RATIOS"},"Internal",{"$f":"'FR-16(7)(v)-1 Functional'!E950","v":"A312"},1,{"$f":"ROUND(IF($F$531=0,0,G531/$F$531),5)","v":0},{"$f":"ROUND(IF($F$531=0,0,H531/$F$531),5)","v":0},0,0,0,{"$f":"ROUND(IF($F$531=0,0,L531/$F$531),5)","v":0},0,0,0,0,0,0,1]
[21,null,{"$f":"'FR-16(7)(v)-1 Functional'!C951","v":"WTD A&G EXPENSE UNADJUSTED"},"Internal",{"$f":"'FR-16(7)(v)-1 Functional'!E951","v":"A315"},1,{"$f":"ROUND(IF($F$532=0,0,G532/$F$532),5)","v":0},{"$f":"ROUND(IF($F$532=0,0,H532/$F$532),5)","v":0},0,0,0,{"$f":"ROUND(IF($F$532=0,0,L532/$F$532),5)","v":0},0,0,0,0,0,0,1]
[22,null,{"$f":"'FR-16(7)(v)-1 Functional'!C952","v":"WTD A&G EXP RATIOS"},"Internal",{"$f":"'FR-16(7)(v)-1 Functional'!E952","v":"A357"},1,{"$f":"ROUND(IF($F$547=0,0,G547/$F$547),5)","v":0},{"$f":"ROUND(IF($F$547=0,0,H547/$F$547),5)","v":0},0,0,0,{"$f":"ROUND(IF($F$547=0,0,L547/$F$547),5)","v":0},0,0,0,0,0,0,1]
[23]
[24,"DEPRECIATION EXPENSES"]
[25,null,{"$f":"'FR-16(7)(v)-1 Functional'!C955","v":"WTD PRODUCTION DEPREC RATIOS"},"Internal",{"$f":"'FR-16(7)(v)-1 Functional'!E955","v":"P489"},1,{"$f":"ROUND(IF($F$563=0,0,G563/$F$563),5)","v":0},{"$f":"ROUND(IF($F$563=0,0,H563/$F$563),5)","v":0},0,0,0,{"$f":"ROUND(IF($F$563=0,0,L563/$F$563),5)","v":0},0,0,0,0,0,{"$f":"SUM(G955:Q955)","v":0},{"$f":"F955-R955","v":1},null,null,null,{"$f":"R955","v":0}]
[26,null,{"$f":"'FR-16(7)(v)-1 Functional'!C956","v":"WTD TRANS DEPREC RATIOS"},"Internal",{"$f":"'FR-16(7)(v)-1 Functional'!E956","v":"T489"},1,{"$f":"ROUND(IF($F$567=0,0,G567/$F$567),5)","v":0},{"$f":"ROUND(IF($F$567=0,0,H567/$F$567),5)","v":0},0,0,0,{"$f":"ROUND(IF($F$567=0,0,L567/$F$567),5)","v":0},0,0,0,0,0,0,1,null,null,null,{"$f":"R956","v":0}]
[27,null,{"$f":"'FR-16(7)(v)-1 Functional'!C957","v":"WTD DIST DEPREC RATIOS"},"Internal",{"$f":"'FR-16(7)(v)-1 Functional'!E957","v":"D489"},1,{"$f":"ROUND(IF($F$571=0,0,G571/$F$571),5)","v":0},{"$f":"ROUND(IF($F$571=0,0,H571/$F$571),5)","v":0},0,0,0,{"$f":"ROUND(IF($F$571=0,0,L571/$F$571),5)","v":0},0,0,0,0,0,0,1,null,null,null,{"$f":"R957","v":0}]
[28,null,{"$f":"'FR-16(7)(v)-1 Functional'!C958","v":"WTD GENERAL DEPREC EXP RATIOS"},"Internal",{"$f":"'FR-16(7)(v)-1 Functional'!E958","v":"G489"},1,{"$f":"ROUND(IF($F$575=0,0,G575/$F$575),5)","v":0},{"$f":"ROUND(IF($F$575=0,0,H575/$F$575),5)","v":0},0,0,0,{"$f":"ROUND(IF($F$575=0,0,L575/$F$575),5)","v":0},0,0,0,0,0,0,1,null,null,null,{"$f":"R958","v":0}]
[29,null,{"$f":"'FR-16(7)(v)-1 Functional'!C959","v":"WTD COM & OTHER DEP EXP RATIOS"},"Internal",{"$f":"'FR-16(7)(v)-1 Functional'!E959","v":"C489"},1,{"$f":"ROUND(IF($F$579=0,0,G579/$F$579),5)","v":0},{"$f":"ROUND(IF($F$579=0,0,H579/$F$579),5)","v":0},0,0,0,{"$f":"ROUND(IF($F$579=0,0,L579/$F$579),5)","v":0},0,0,0,0,0,0,1]
[30,null,{"$f":"'FR-16(7)(v)-1 Functional'!C960","v":"WTD TOT DEPREC EXP RATIOS"},"Internal",{"$f":"'FR-16(7)(v)-1 Functional'!E960","v":"DE49"},1,{"$f":"ROUND(IF($F$582=0,0,G582/$F$582),5)","v":0},{"$f":"ROUND(IF($F$582=0,0,H582/$F$582),5)","v":0},0,0,0,{"$f":"ROUND(IF($F$582=0,0,L582/$F$582),5)","v":0},0,0,0,0,0,0,1,null,null,null,{"$f":"R960","v":0}]
[31]
[32,"OTHER TAXES & MISC EXPENSES"]
[33,null,{"$f":"'FR-16(7)(v)-1 Functional'!C963","v":"WTD R. E. & PROP TAX RATIOS"},"Internal",{"$f":"'FR-16(7)(v)-1 Functional'!E963","v":"L529"},1,{"$f":"ROUND(IF($F$598=0,0,G598/$F$598),5)","v":0},{"$f":"ROUND(IF($F$598=0,0,H598/$F$598),5)","v":0},0,0,0,{"$f":"ROUND(IF($F$598=0,0,L598/$F$598),5)","v":0},0,0,0,0,0,{"$f":"SUM(G963:Q963)","v":0},{"$f":"F963-R963","v":1},null,null,null,{"$f":"R963","v":0}]
[34,null,{"$f":"'FR-16(7)(v)-1 Functional'!C964","v":"WTD MISC TAX RATIOS"},"Internal",{"$f":"'FR-16(7)(v)-1 Functional'!E964","v":"L589"},1,{"$f":"ROUND(IF($F$605=0,0,G605/$F$605),5)","v":0},{"$f":"ROUND(IF($F$605=0,0,H605/$F$605),5)","v":0},0,0,0,{"$f":"ROUND(IF($F$605=0,0,L605/$F$605),5)","v":0},0,0,0,0,0,{"$f":"SUM(G964:Q964)","v":0},{"$f":"F964-R964","v":1},null,null,null,{"$f":"R964","v":0}]
[35,null,{"$f":"'FR-16(7)(v)-1 Functional'!C965","v":"WTD OTHER TAX RATIOS"},"Internal",{"$f":"'FR-16(7)(v)-1 Functional'!E965","v":"L599"},1,{"$f":"ROUND(IF($F$612=0,0,G612/$F$612),5)","v":0},{"$f":"ROUND(IF($F$612=0,0,H612/$F$612),5)","v":0},0,0,0,{"$f":"ROUND(IF($F$612=0,0,L612/$F$612),5)","v":0},0,0,0,0,0,{"$f":"SUM(G965:Q965)","v":0},{"$f":"F965-R965","v":1},null,null,null,{"$f":"R965","v":0}]
[36,null,{"$f":"'FR-16(7)(v)-1 Functional'!C966","v":"WTD OP EXP EX IT & REV RATIOS"},"Internal",{"$f":"'FR-16(7)(v)-1 Functional'!E966","v":"OP69"},1,{"$f":"ROUND(IF($F$618=0,0,G618/$F$618),5)","v":0},{"$f":"ROUND(IF($F$618=0,0,H618/$F$618),5)","v":0},0,0,0,{"$f":"ROUND(IF($F$618=0,0,L618/$F$618),5)","v":0},0,0,0,0,0,{"$f":"SUM(G966:Q966)","v":0},{"$f":"F966-R966","v":1},null,null,null,{"$f":"R966","v":0}]
[37]
[38,"TOTAL COST OF SERVICE"]
[39,null,{"$f":"'FR-16(7)(v)-1 Functional'!C969","v":"WTD TOTAL COST OF SERVICE"},"Internal",{"$f":"'FR-16(7)(v)-1 Functional'!E969","v":"CS09"},1,{"$f":"ROUND(IF($F$770=0,0,G770/$F$770),9)","v":0},0,0,0,0,0,0,0,0,0,0,{"$f":"SUM(G969:Q969)","v":0},{"$f":"F969-R969","v":1},null,null,null,{"$f":"R969","v":0}]
[40]
[41,"WAGES & SALARIES (K600-K639)"]
[42,null,{"$f":"'FR-16(7)(v)-1 Functional'!C972","v":"WTD RATIOS"},"Internal",{"$f":"'FR-16(7)(v)-1 Functional'!E972","v":"K669"}]
[]
[]
[]
[]
[]
[]
[]
[]
[]
[1,"REVENUE NOT TO BE INCLUDED IN REVENUE TAX CALC"]
[2,null,"GOVERNMENTAL",null,"A357",{"$f":"'FR-16(7)(v)-2 PROD Classified'!I983","v":0},{"$f":"F983-SUM(H983:Q983)","v":0},{"$f":"ROUND(F983*VLOOKUP(E983,ALLOCTABLE_Prod_Customer,$H$10,FALSE),0)","v":0},{"$f":"ROUND(F983*VLOOKUP(E983,ALLOCTABLE_Prod_Customer,$I$10,FALSE),0)","v":0},{"$f":"ROUND(F983*VLOOKUP(E983,ALLOCTABLE_Prod_Customer,$J$10,FALSE),0)","v":0},{"$f":"ROUND(F983*VLOOKUP(E983,ALLOCTABLE_Prod_Customer,$K$10,FALSE),0)","v":0},{"$f":"ROUND(F983*VLOOKUP(E983,ALLOCTABLE_Prod_Customer,$L$10,FALSE),0)","v":0},{"$f":"ROUND(F983*VLOOKUP(E983,ALLOCTABLE_Prod_Customer,$M$10,FALSE),0)","v":0},{"$f":"ROUND(F983*VLOOKUP(E983,ALLOCTABLE_Prod_Customer,$N$10,FALSE),0)","v":0},{"$f":"ROUND(F983*VLOOKUP(E983,ALLOCTABLE_Prod_Customer,$O$10,FALSE),0)","v":0},{"$f":"ROUND(F983*VLOOKUP(E983,ALLOCTABLE_Prod_Customer,$P$10,FALSE),0)","v":0},{"$f":"ROUND(F983*VLOOKUP(E983,ALLOCTABLE_Prod_Customer,$Q$10,FALSE),0)","v":0},{"$f":"SUM(G983:Q983)","v":0},{"$f":"F983-R983","v":0}]
[3,null,"INTERDEPARTMENTAL",null,"A357",{"$f":"'FR-16(7)(v)-2 PROD Classified'!I984","v":0},0,0,0,0,0,0,0,0,0,0,0,0,0]
[4,null,"UNCOLLECTIBLE EXPENSE",null,"A357",{"$f":"'FR-16(7)(v)-2 PROD Classified'!I985","v":0},0,0,0,0,0,0,0,0,0,0,0,0,0]
[5,null,"OTHER PROD GAS ASSC COS  489050",null,"K301",{"$f":"'FR-16(7)(v)-2 PROD Classified'!I986","v":0},0,0,0,0,0,0,0,0,0,0,0,0,0]
[6,null,"MISC. REV. - SALE OF MATERIAL",null,"A357",{"$f":"'FR-16(7)(v)-2 PROD Classified'!I987","v":0},0,0,0,0,0,0,0,0,0,0,0,0,0]
[7,null,"RENT ASSOC. COS  49302,04,05,06,07,08,11 & 50",null,"NP29",{"$f":"'FR-16(7)(v)-2 PROD Classified'!I988","v":0},0,0,0,0,0,0,0,0,0,0,0,0,0]
[8,null,"TOTAL","REXC",null,{"$f":"SUM(F982:F988)","v":0},0,0,0,{"$f":"SUM(J982:J988)","v":0},0,0,0,0,0,0,0,0,0]
[]
[]
[]
[]
[]
["DO NOT FILE THIS PAGE"]
[]
[{"$f":"co_name","v":"DUKE ENERGY KENTUCKY, INC."},null,null,null,null,null,null,null,null,null,null,null,null,null,null,null,null,{"$f":"R1","v":"FR-16(7)(v)-5"}]
[{"$f":"$A$2","v":"PRODUCTION CUSTOMER ALLOCATED - ELECTRIC COST OF SERVICE"},null,null,null,null,null,null,null,null,null,null,null,null,null,null,null,null,{"$f":"R2","v":"WITNESS RESPONSIBLE:"}]
[{"$f":"case_name","v":"CASE NO: 2019-00271"},null,null,null,null,null,null,null,null,null,null,null,null,null,null,null,null,{"$f":"Witness","v":"JAMES E. ZIOLKOWSKI"}]
[{"$f":"data_filing","v":"DATA: 12 MONTHS ACTUAL  & 0 MONTHS ESTIMATED"},null,null,null,null,null,null,null,null,null,null,null,null,null,null,null,null,{"$f":"\"PAGE \"&Pages&\" OF \"&Pages","v":"PAGE 18 OF 18"}]
[{"$f":"type","v":"TYPE OF FILING: \"X\" ORIGINAL   UPDATED    REVISED  "}]
[]
[null,null,null,null,null,{"$f":"F$7","v":"TOTAL"},null,{"$f":"H$7","v":"DS"},{"$f":"I$7","v":"GSFL"},{"$f":"J$7","v":"EH"},{"$f":"K$7","v":"SP"},"DT SEC","DT PRI","DP","TT",null,"OTHER"]
["LINE",null,null,null,null,{"$f":"F$8","v":"PRODUCTION"},{"$f":"G$8","v":"RS"},{"$f":"H$8","v":"SECONDARY"},{"$f":"I$8","v":"SECONDARY"},{"$f":"J$8","v":"SECONDARY"},{"$f":"K$8","v":"SECONDARY"},"SECONDARY","PRIMARY","PRIMARY","TRANSMISSION","LT","WATER",{"$f":"R8","v":"TOTAL"},"ALL"]
["NO.","INCOME TAX BASED ON REVENUES",null,"ALLO",null,{"$f":"F$9","v":"CUSTOMER"},{"$f":"G$9","v":"RESIDENTIAL"},{"$f":"H$9","v":"DISTRIBUTION"},{"$f":"I$9","v":"DISTRIBUTION"},{"$f":"J$9","v":"DISTRIBUTION"},{"$f":"K$9","v":"DISTRIBUTION"},"DISTRIBUTION","DISTRIBUTION","DISTRIBUTION","TIME OF DAY","LIGHTING","PUMPING",{"$f":"R9","v":"AT ISSUE"},"OTHER"]
[null,null,"Schedule 13",null,null,null,{"$f":"G$10","v":3},{"$f":"H$10","v":4},{"$f":"I$10","v":5},{"$f":"J$10","v":6},{"$f":"K$10","v":7},8,9,10,11,12,13,null," "]
[1,"NET INCOME COMPUTATION"]
[2,null,{"$f":"'FR-16(7)(v)-1 Functional'!C1008","v":"TOTAL ELECTRIC COST OF SERVICE"},null,null,{"$f":"F770","v":0},0,0,0,{"$f":"J770","v":0},0,0,0,0,0,0,0,0,0]
[3,null,{"$f":"'FR-16(7)(v)-1 Functional'!C1009","v":"TOTAL OTHER OPERATING REVENUES"},null,null,{"$f":"F750","v":0},{"$f":"G750","v":0},{"$f":"H750","v":0},{"$f":"I750","v":0},{"$f":"J750","v":0},0,0,0,0,0,0,{"$f":"$Q$750","v":0},{"$f":"R750","v":0},{"$f":"S750","v":0}]
[4,null,{"$f":"'FR-16(7)(v)-1 Functional'!C1010","v":"  TOTAL ELECTRIC REVENUE"},null,null,{"$f":"SUM(F1007:F1009)","v":0},0,0,0,{"$f":"SUM(J1007:J1009)","v":0},0,0,0,0,0,0,0,0,0]
[5,null,{"$f":"'FR-16(7)(v)-1 Functional'!C1011","v":"TOTAL OP EXP EX INC & REV TAX"},null,null,{"$f":"-F618","v":0},{"$f":"-G618","v":0},{"$f":"-H618","v":0},{"$f":"-I618","v":0},{"$f":"-J618","v":0},0,0,0,0,0,0,{"$f":"-$Q$618","v":0},{"$f":"-R618","v":0},{"$f":"-S618","v":0}]
[6,null,{"$f":"'FR-16(7)(v)-1 Functional'!C1012","v":"FIRM SERVICE REVENUE TAX"},null,null,{"$f":"-ROUND(F817*F1008,0)","v":0},{"$f":"F1012-SUM(H1012:Q1012)","v":0},{"$f":"-ROUND(H817*H1008,0)","v":0},0,0,0,0,0,0,0,0,0,{"$f":"SUM(G1012:Q1012)","v":0},{"$f":"-ROUND('FR-16(7)(v)-1 Functional'!K817*S1008,0)","v":0}]
[7,null,{"$f":"'FR-16(7)(v)-1 Functional'!C1013","v":"  NET INCOME"},null,null,{"$f":"SUM(F1010:F1012)","v":0},{"$f":"SUM(G1010:G1012)","v":0},{"$f":"SUM(H1010:H1012)","v":0},{"$f":"SUM(I1010:I1012)","v":0},{"$f":"SUM(J1010:J1012)","v":0},0,0,0,0,0,0,{"$f":"SUM(Q1010:Q1012)","v":0},{"$f":"SUM(G1013:Q1013)","v":0},{"$f":"SUM(S1010:S1012)","v":0}]
[8]
[9,"ADJUSTMENTS TO NET INCOME"]
[10,null,{"$f":"'FR-16(7)(v)-1 Functional'!C1016","v":"TOTAL INTEREST EXPENSE"},null,null,{"$f":"-F633","v":0},{"$f":"-G633","v":0},{"$f":"-H633","v":0},{"$f":"-I633","v":0},{"$f":"-J633","v":0},0,0,0,0,0,0,{"$f":"-$Q$633","v":0},{"$f":"-R633","v":0},{"$f":"-S633","v":0}]
[11,null,{"$f":"'FR-16(7)(v)-1 Functional'!C1017","v":"TOTAL OTHER DEDUCTIONS"},null,null,{"$f":"-F639","v":0},{"$f":"-G639","v":0},{"$f":"-H639","v":0},{"$f":"-I639","v":0},{"$f":"-J639","v":0},0,0,0,0,0,0,{"$f":"-$Q$639","v":0},{"$f":"-R639","v":0},{"$f":"-S639","v":0}]
[12,null,{"$f":"'FR-16(7)(v)-1 Functional'!C1018","v":"  PRELIMINARY TAXABLE INCOME"},null,null,{"$f":"SUM(F1015:F1017)+F1013","v":0},{"$f":"SUM(G1015:G1017)+G1013","v":0},{"$f":"SUM(H1015:H1017)+H1013","v":0},{"$f":"SUM(I1015:I1017)+I1013","v":0},{"$f":"SUM(J1015:J1017)+J1013","v":0},0,0,0,0,0,0,{"$f":"SUM(Q1015:Q1017)+Q1013","v":0},{"$f":"SUM(G1018:Q1018)","v":0},{"$f":"SUM(S1015:S1017)+S1013","v":0}]
[13]
[14,"INCOME TAX BASED ON REVENUES"]
[15,"FEDERAL INCOME TAX COMPUTATION"]
[16,null,{"$f":"'FR-16(7)(v)-1 Functional'!C1022","v":"PRELIMINARY TAXABLE INCOME"},null,null,{"$f":"F1018","v":0},0,0,0,{"$f":"J1018","v":0},0,0,0,0,0,0,0,0,0]
[17,null,{"$f":"'FR-16(7)(v)-1 Functional'!C1023","v":"  NET FEDERAL TAXABLE INCOME"},null,null,{"$f":"SUM(F1022:F1022)","v":0},0,0,0,{"$f":"SUM(J1022:J1022)","v":0},0,0,0,0,0,0,0,0,0]
[18,null,{"$f":"'FR-16(7)(v)-1 Functional'!C1024","v":"  FEDERAL INCOME TAX RATE"},null,null,{"$f":"F815","v":0.21},{"$f":"G815","v":0.21},{"$f":"H815","v":0.21},{"$f":"I815","v":0.21},{"$f":"J815","v":0.21},0.21,0.21,0.21,0.21,0.21,0.21,{"$f":"Q815","v":0.21},null,{"$f":"'FR-16(7)(v)-1 Functional'!K815","v":0.21}]
[19,null,{"$f":"'FR-16(7)(v)-1 Functional'!C1025","v":"PRELIMINARY FIT = FI01 * K190"},null,null,{"$f":"ROUND(F1024*F1023,0)","v":0},{"$f":"ROUND(G1024*G1023,0)","v":0},{"$f":"ROUND(H1024*H1023,0)","v":0},{"$f":"ROUND(I1024*I1023,0)","v":0},{"$f":"ROUND(J1024*J1023,0)","v":0},0,0,0,0,0,0,{"$f":"ROUND(Q1024*Q1023,0)","v":0},{"$f":"SUM(G1025:Q1025)","v":0},{"$f":"ROUND(S1024*S1023,0)","v":0}]
[20,null,{"$f":"'FR-16(7)(v)-1 Functional'!C1026","v":"TOTAL FED DEF IT (410 & 411)"},null,null,{"$f":"F649","v":0},{"$f":"G649","v":0},{"$f":"H649","v":0},{"$f":"I649","v":0},{"$f":"J649","v":0},0,0,0,0,0,0,{"$f":"$Q$649","v":0},{"$f":"R649","v":0},{"$f":"S649","v":0}]
[21,null,{"$f":"'FR-16(7)(v)-1 Functional'!C1027","v":"TOTAL AMORTIZED ITC"},null,null,{"$f":"-F653","v":0},{"$f":"-G653","v":0},{"$f":"-H653","v":0},{"$f":"-I653","v":0},{"$f":"-J653","v":0},0,0,0,0,0,0,{"$f":"-$Q$653","v":0},{"$f":"-R653","v":0},{"$f":"-S653","v":0}]
[22,null,{"$f":"'FR-16(7)(v)-1 Functional'!C1028","v":"  NET FED INC TAX ALLOWABLE"},null,null,{"$f":"SUM(F1025:F1027)","v":0},0,0,0,{"$f":"SUM(J1025:J1027)","v":0},0,0,0,0,0,0,0,0,0]
[23]
[24,"FEDERAL INCOME TAX PAYABLE"]
[25,null,{"$f":"'FR-16(7)(v)-1 Functional'!C1031","v":"PRELIM FIT"},null,null,{"$f":"F1025","v":0},0,0,0,{"$f":"J1025","v":0},0,0,0,0,0,0,0,0,0]
[26,null,{"$f":"'FR-16(7)(v)-1 Functional'!C1032","v":"TEST YEAR INV TAX CREDIT"},null,null,{"$f":"-F658","v":0},{"$f":"-G658","v":0},{"$f":"-H658","v":0},{"$f":"-I658","v":0},{"$f":"-J658","v":0},0,0,0,0,0,0,{"$f":"-$Q$658","v":0},{"$f":"-R658","v":0},{"$f":"-S658","v":0}]
[27,null,{"$f":"'FR-16(7)(v)-1 Functional'!C1033","v":"  FED INC TAX PAYABLE"},null,null,{"$f":"SUM(F1030:F1032)","v":0},0,0,0,{"$f":"SUM(J1030:J1032)","v":0},0,0,0,0,0,0,0,0,0]
[28]
[29,"PRELIMINARY SUMMARY"]
[30,null,{"$f":"'FR-16(7)(v)-1 Functional'!C1036","v":"NET INCOME"},null,null,{"$f":"F1013","v":0},0,0,0,{"$f":"J1013","v":0},0,0,0,0,0,0,0,0,0]
[31,null,{"$f":"'FR-16(7)(v)-1 Functional'!C1037","v":"NET FED INC TAX ALLOWABLE"},null,null,{"$f":"-F1028","v":0},0,0,0,{"$f":"-J1028","v":0},0,0,0,0,0,0,0,0,0]
[32,null,{"$f":"'FR-16(7)(v)-1 Functional'!C1038","v":"  OVERALL RETURN EARNED"},null,null,{"$f":"SUM(F1035:F1037)","v":0},0,0,0,{"$f":"SUM(J1035:J1037)","v":0},0,0,0,0,0,0,0,0,0]
[33]
[34,null,{"$f":"'FR-16(7)(v)-1 Functional'!C1040","v":"  RATE OF RETURN EARNED"},null,null,{"$f":"IF(F426=0,0,ROUND(F1038/F426,5))","v":0},0,0,0,0,0,0,0,0,0,0,0,0,0]

{"sheet":"FR-16(7)(v)-6 TRANS Classified","index":9,"n_rows":1040,"n_cols":15,"rows_kept":1040,"cut":false,"hidden":false,"merged":[]}
[{"$f":"co_name","v":"DUKE ENERGY KENTUCKY, INC."},null,null,null,null,null,null,null,null,"FR-16(7)(v)-6"]
["TRANSMISSION CLASSIFIED -  ELECTRIC COST OF SERVICE",null,null,null,null,null,null,null,null,"WITNESS RESPONSIBLE:"]
[{"$f":"case_name","v":"CASE NO: 2019-00271"},null,null,null,null,null,null,null,null,{"$f":"Witness","v":"JAMES E. ZIOLKOWSKI"}]
[{"$f":"data_filing","v":"DATA: 12 MONTHS ACTUAL  & 0 MONTHS ESTIMATED"},null,null,null,null,null,null,null,null,{"$f":"\"PAGE \"&Pages-17&\" OF \"&Pages","v":"PAGE 1 OF 18"}]
[{"$f":"type","v":"TYPE OF FILING: \"X\" ORIGINAL   UPDATED    REVISED  "}]
[]
[]
["LINE",null,null,null,null,"TOTAL","CLASSIFIED",null,null,"TOTAL","ALL"]
["NO.","SUMMARY OF RESULTS",null,"ALLO",null,"TRANSMISSION","DEMAND","ENERGY","CUSTOMER","AT ISSUE","OTHER"]
[null,null,"Schedule 1",null,null,null,3,4,5]
[1,"NET INCOME COMPUTATION"]
[2,null,{"$f":"'FR-16(7)(v)-1 Functional'!C12","v":"GROSS ELECTRIC PLANT IN SERVICE"},null,null,{"$f":"F123","v":76508105},{"$f":"G123","v":76505281},{"$f":"H123","v":0},{"$f":"I123","v":2824},{"$f":"SUM(G12:I12)","v":76508105},{"$f":"F12-J12","v":0}]
[3,null,{"$f":"'FR-16(7)(v)-1 Functional'!C13","v":"TOTAL DEPRECIATION RESERVE"},null,null,{"$f":"-F200","v":-21904404},{"$f":"-G200","v":-21904859},{"$f":"-H200","v":0},{"$f":"-I200","v":455},{"$f":"SUM(G13:I13)","v":-21904404},{"$f":"F13-J13","v":0}]
[4,null,{"$f":"'FR-16(7)(v)-1 Functional'!C14","v":"TOTAL RATE BASE ADJUSTMENTS"},null,null,{"$f":"F421","v":-12562247},{"$f":"G421","v":-12563724},{"$f":"H421","v":0},{"$f":"I421","v":1477},{"$f":"SUM(G14:I14)","v":-12562247},{"$f":"F14-J14","v":0}]
[5,null,{"$f":"'FR-16(7)(v)-1 Functional'!C15","v":"  TOTAL RATE BASE"},null,null,{"$f":"SUM(F12:F14)","v":42041454},42036698,0,4756,42041454,0]
[6]
[7,"OPERATING EXPENSES"]
[8,null,{"$f":"'FR-16(7)(v)-1 Functional'!C18","v":"TOTAL O&M EXPENSE"},null,null,{"$f":"F549","v":25891009},{"$f":"G549","v":25892769},{"$f":"H549","v":0},{"$f":"I549","v":-1760},{"$f":"SUM(G18:I18)","v":25891009},{"$f":"F18-J18","v":0}]
[9,null,{"$f":"'FR-16(7)(v)-1 Functional'!C19","v":"TOTAL DEPRECIATION EXPENSE"},null,null,{"$f":"F582","v":1721902},{"$f":"G582","v":1721965},{"$f":"H582","v":0},{"$f":"I582","v":-63},{"$f":"SUM(G19:I19)","v":1721902},{"$f":"F19-J19","v":0}]
[10,null,{"$f":"'FR-16(7)(v)-1 Functional'!C20","v":"TOTAL OTHER TAX & MISC EXPENSE"},null,null,{"$f":"F612","v":689082},{"$f":"G612","v":689077},{"$f":"H612","v":0},{"$f":"I612","v":5},{"$f":"SUM(G20:I20)","v":689082},{"$f":"F20-J20","v":0}]
[11,null,{"$f":"'FR-16(7)(v)-1 Functional'!C21","v":"  TOTAL OP EXP EXCLUDING INC & REV TAX"},null,null,{"$f":"SUM(F17:F20)","v":28301993},28303811,0,-1818,28301993,0]
[12,null,{"$f":"'FR-16(7)(v)-1 Functional'!C22","v":"NET FED INCOME TAX EXP ALLOWABLE"},null,null,{"$f":"F676","v":1988925},{"$f":"G676","v":1988871},{"$f":"H676","v":0},{"$f":"I676","v":54},{"$f":"SUM(G22:I22)","v":1988925},{"$f":"F22-J22","v":0}]
[13,null,"NET STATE INCOME TAX EXP ALLOWABLE",null,null,{"$f":"F722","v":258160},{"$f":"G722","v":258280},{"$f":"H722","v":0},{"$f":"I722","v":-120},{"$f":"SUM(G23:I23)","v":258160},{"$f":"F23-J23","v":0}]
[14,null,"RESERVED",{"$f":"'FR-16(7)(v)-1 Functional'!D24","v":"CW29"},null,{"$f":"'FR-16(7)(v)-1 Functional'!H24","v":0},{"$f":"ROUND(F24*VLOOKUP(D24,AllocTable_Classified_Transmission,$G$10,FALSE),0)","v":0},{"$f":"ROUND(F24*VLOOKUP(D24,AllocTable_Classified_Transmission,$H$10,FALSE),0)","v":0},{"$f":"ROUND(F24*VLOOKUP(D24,AllocTable_Classified_Transmission,$I$10,FALSE),0)","v":0},{"$f":"SUM(G24:I24)","v":0},{"$f":"F24-J24","v":0}]
[15,null,{"$f":"'FR-16(7)(v)-1 Functional'!C25","v":"REVENUE TAX"},null,null,{"$f":"F767","v":0},{"$f":"G767","v":0},{"$f":"H767","v":0},{"$f":"I767","v":0},{"$f":"SUM(G25:I25)","v":0},{"$f":"F25-J25","v":0}]
[16,null,{"$f":"'FR-16(7)(v)-1 Functional'!C26","v":"  TOTAL OPERATING EXPENSE"},null,null,{"$f":"SUM(F21:F25)","v":30549078},30550962,0,-1884,{"$f":"SUM(J21:J25)","v":30549078},0]
[17]
[18,"RETURN ON RATE BASE",null,null,null,{"$f":"F433","v":2821326},{"$f":"G433","v":2821016},{"$f":"H433","v":0},{"$f":"I433","v":310},{"$f":"SUM(G28:I28)","v":2821326},{"$f":"F28-J28","v":0}]
[19,"TOTAL OTHER OPERATING REVENUES",null,null,null,{"$f":"-F750","v":-169516},{"$f":"-G750","v":-169500},{"$f":"-H750","v":0},{"$f":"-I750","v":-16},{"$f":"SUM(G29:I29)","v":-169516},{"$f":"F29-J29","v":0}]
[20,null,{"$f":"'FR-16(7)(v)-1 Functional'!C30","v":"TOTAL ELECTRIC COST OF SERVICE"},null,null,{"$f":"SUM(F26:F29)","v":33200888},33202478,0,-1590,33200888,0]
[21,"ADJUSTMENT FOR INTERCLASS SUBSIDIZATION",null,{"$f":"1-'WP FR-16(7)(v) Rate Incr'!I11","v":0.95},null,{"$f":"'WP FR-16(7)(v) Rate Incr'!R27","v":0},0,0,0,null,{"$f":"K612","v":0}]
[22,{"$f":"'FR-16(7)(v)-1 Functional'!$B$32","v":"REQUESTED REVENUES (COST OF SERVICE ADJUSTED FOR SUBSIDIES)"},null,null,null,{"$f":"F30+F31","v":33200888},33202478,0,-1590,33200888,0]
[23,"PROPOSED REVENUES",null,null,null,{"$f":"F868","v":16511879},{"$f":"G868","v":16524428},{"$f":"H868","v":0},{"$f":"I868","v":-12549},{"$f":"K868","v":0},{"$f":"L868","v":0}]
[24,"DIFFERENCE (REQUESTED LESS PROPOSED)",null,null,null,{"$f":"F32-F33","v":16689009},16678050,0,10959,33200888,0]
[25]
[26,"TOTAL RETURN EARNED",null,null,null,{"$f":"F777+F28","v":-9707928},-9700011,0,-7917,-9707928,0]
[27,"RATE OF RETURN EARNED",null,null,null,{"$f":"IF(F431=0,0,ROUND(F36/F431,5))","v":-0.23091999999999999},-0.23075999999999999,0,-1.7121500000000001,-0.23091999999999999,0]
[28,"TOTAL RATE OF RETURN ALLOWABLE",null,null,null,{"$f":"$F$811","v":6.7100000000000007E-2},{"$f":"F811","v":6.7100000000000007E-2},{"$f":"F811","v":6.7100000000000007E-2},{"$f":"F811","v":6.7100000000000007E-2},{"$f":"F811","v":6.7100000000000007E-2},{"$f":"F811","v":6.7100000000000007E-2},null,null,"Not Part of print range"]
[29,"RETURN EARNED ON COMMON EQUITY",null,null,null,{"$f":"IF(Equity=0,0,(F37-$F$806-$F$807-$F$809)*TotalCap/Equity)","v":-0.51979541523853312},-0.51946370150832344,-4.1049574113445099E-2,-3.5906974689788504,-0.51979541523853312,-4.1049574113445099E-2,null,null,"Not Filed"]
[30,"ALLOWED RETURN ON COMMON EQUITY",null,null,null,9.8062871493229981E-2,9.8062871493229981E-2,9.8062871493229981E-2,9.8062871493229981E-2,9.8062871493229981E-2,9.8062871493229981E-2]
[31,null,null,null,null," "]
[32,"PRESENT REVENUES",null,null,null,{"$f":"F867","v":29037083},{"$f":"G867","v":29038474},{"$f":"H867","v":0},{"$f":"I867","v":-1391},{"$f":"K867","v":0},{"$f":"L867","v":0}]
[33,"REVENUE INCREASE JUSTIFIED",null,null,null,{"$f":"F30-F42","v":4163805},4164004,0,-199,33200888,0]
[34,null,"PER UNIT PRES REV",null,null,{"$f":"IF(F42=0,0,ROUND(F43/F42,5))","v":0.1434},0.1434,0,0.14305999999999999,0,0]
[35,"REVENUE INCREASE REQUESTED",null,null,null,{"$f":"F33-F42","v":-12525204},-12514046,0,-11158,0,0]
[36,null,"PER UNIT PRES REV",null,null,{"$f":"IF(F42=0,0,ROUND(F45/F42,5))","v":-0.43135000000000001},-0.43095,0,8.0215700000000005,0,0]
[]
[{"$f":"co_name","v":"DUKE ENERGY KENTUCKY, INC."},null,null,null,null,null,null,null,null,{"$f":"J1","v":"FR-16(7)(v)-6"}]
[{"$f":"$A$2","v":"TRANSMISSION CLASSIFIED -  ELECTRIC COST OF SERVICE"},null,null,null,null,null,null,null,null,{"$f":"J2","v":"WITNESS RESPONSIBLE:"}]
[{"$f":"case_name","v":"CASE NO: 2019-00271"},null,null,null,null,null,null,null,null,{"$f":"Witness","v":"JAMES E. ZIOLKOWSKI"}]
[{"$f":"data_filing","v":"DATA: 12 MONTHS ACTUAL  & 0 MONTHS ESTIMATED"},null,null,null,null,null,null,null,null,{"$f":"\"PAGE \"&Pages-16&\" OF \"&Pages","v":"PAGE 2 OF 18"}]
[{"$f":"type","v":"TYPE OF FILING: \"X\" ORIGINAL   UPDATED    REVISED  "}]
[]
[]
["LINE",null,null,null,null,{"$f":"$F$8","v":"TOTAL"},"CLASSIFIED",null,null,"TOTAL","ALL"]
["NO.","GROSS ELECTRIC PLANT IN SERVICE",null,"ALLO",null,{"$f":"$F$9","v":"TRANSMISSION"},{"$f":"G9","v":"DEMAND"},"ENERGY","CUSTOMER","AT ISSUE","OTHER"]
[null,null,"Schedule 2",null,null,null,3,4,5,null," "]
[1,"PRODUCTION PLANT"]
[2,null,"PRODUCTION STEAM",{"$f":"'FR-16(7)(v)-1 Functional'!D59","v":"K201"},null,{"$f":"'FR-16(7)(v)-1 Functional'!H59","v":0},{"$f":"ROUND(F59*VLOOKUP(D59,AllocTable_Classified_Transmission,$G$10,FALSE),0)","v":0},{"$f":"ROUND(F59*VLOOKUP(D59,AllocTable_Classified_Transmission,$H$10,FALSE),0)","v":0},{"$f":"ROUND(F59*VLOOKUP(D59,AllocTable_Classified_Transmission,$I$10,FALSE),0)","v":0},{"$f":"SUM(G59:I59)","v":0},{"$f":"F59-J59","v":0}]
[3,null,"PRODUCTION OTHER",{"$f":"'FR-16(7)(v)-1 Functional'!D60","v":"K201"},null,{"$f":"'FR-16(7)(v)-1 Functional'!H60","v":0},{"$f":"ROUND(F60*VLOOKUP(D60,AllocTable_Classified_Transmission,$G$10,FALSE),0)","v":0},{"$f":"ROUND(F60*VLOOKUP(D60,AllocTable_Classified_Transmission,$H$10,FALSE),0)","v":0},{"$f":"ROUND(F60*VLOOKUP(D60,AllocTable_Classified_Transmission,$I$10,FALSE),0)","v":0},{"$f":"SUM(G60:I60)","v":0},{"$f":"F60-J60","v":0}]
[4,null,{"$f":"'FR-16(7)(v)-1 Functional'!C61","v":"ADJUSTMENT"},{"$f":"'FR-16(7)(v)-1 Functional'!D61","v":"K201"},null,{"$f":"'FR-16(7)(v)-1 Functional'!H61","v":0},{"$f":"ROUND(F61*VLOOKUP(D61,AllocTable_Classified_Transmission,$G$10,FALSE),0)","v":0},{"$f":"ROUND(F61*VLOOKUP(D61,AllocTable_Classified_Transmission,$H$10,FALSE),0)","v":0},{"$f":"ROUND(F61*VLOOKUP(D61,AllocTable_Classified_Transmission,$I$10,FALSE),0)","v":0},{"$f":"SUM(G61:I61)","v":0},{"$f":"F61-J61","v":0}]
[5,null,{"$f":"'FR-16(7)(v)-1 Functional'!C62","v":"  PRODUCTION PLANT IN SERVICE"},null,null,{"$f":"SUM(F59:F61)","v":0},0,0,0,0,0]
[6]
[7,"TRANSMISSION PLANT"]
[8,null,"MAIN STEP-UP TRANSFORMERS",{"$f":"'FR-16(7)(v)-1 Functional'!D65","v":"K202"},null,{"$f":"'FR-16(7)(v)-1 Functional'!H65","v":0},{"$f":"ROUND(F65*VLOOKUP(D65,AllocTable_Classified_Transmission,$G$10,FALSE),0)","v":0},{"$f":"ROUND(F65*VLOOKUP(D65,AllocTable_Classified_Transmission,$H$10,FALSE),0)","v":0},{"$f":"ROUND(F65*VLOOKUP(D65,AllocTable_Classified_Transmission,$I$10,FALSE),0)","v":0},{"$f":"SUM(G65:I65)","v":0},{"$f":"F65-J65","v":0}]
[9,null,"OTHER TRANSMISSION",{"$f":"'FR-16(7)(v)-1 Functional'!D66","v":"K202"},null,{"$f":"'FR-16(7)(v)-1 Functional'!H66","v":72371702},{"$f":"ROUND(F66*VLOOKUP(D66,AllocTable_Classified_Transmission,$G$10,FALSE),0)","v":72371702},{"$f":"ROUND(F66*VLOOKUP(D66,AllocTable_Classified_Transmission,$H$10,FALSE),0)","v":0},{"$f":"ROUND(F66*VLOOKUP(D66,AllocTable_Classified_Transmission,$I$10,FALSE),0)","v":0},{"$f":"SUM(G66:I66)","v":72371702},{"$f":"F66-J66","v":0}]
[10,null,"ADJUSTMENT",{"$f":"'FR-16(7)(v)-1 Functional'!D67","v":"K202"},null,{"$f":"'FR-16(7)(v)-1 Functional'!H67","v":0},{"$f":"ROUND(F67*VLOOKUP(D67,AllocTable_Classified_Transmission,$G$10,FALSE),0)","v":0},{"$f":"ROUND(F67*VLOOKUP(D67,AllocTable_Classified_Transmission,$H$10,FALSE),0)","v":0},{"$f":"ROUND(F67*VLOOKUP(D67,AllocTable_Classified_Transmission,$I$10,FALSE),0)","v":0},{"$f":"SUM(G67:I67)","v":0},{"$f":"F67-J67","v":0}]
[11,null,{"$f":"'FR-16(7)(v)-1 Functional'!C68","v":"  TRANSMISSION PLANT IN SERVICE"},null,null,{"$f":"SUM(F65:F67)","v":72371702},72371702,0,0,72371702,0]
[12]
[13,"TOTAL PROD & TRANS PLANT",null,null,null,{"$f":"F68+F62","v":72371702},72371702,0,0,72371702,0]
[14]
[15,"DISTRIBUTION PLANT"]
[16,null,{"$f":"'FR-16(7)(v)-1 Functional'!C73","v":"SUBSTATIONS"},{"$f":"'FR-16(7)(v)-1 Functional'!D73","v":"K215"},null,{"$f":"'FR-16(7)(v)-1 Functional'!H73","v":0},{"$f":"ROUND(F73*VLOOKUP(D73,AllocTable_Classified_Transmission,$G$10,FALSE),0)","v":0},{"$f":"ROUND(F73*VLOOKUP(D73,AllocTable_Classified_Transmission,$H$10,FALSE),0)","v":0},{"$f":"ROUND(F73*VLOOKUP(D73,AllocTable_Classified_Transmission,$I$10,FALSE),0)","v":0},{"$f":"SUM(G73:I73)","v":0},{"$f":"F73-J73","v":0}]
[17,null,{"$f":"'FR-16(7)(v)-1 Functional'!C74","v":"POLES, TOWERS  & FIXTURES - PRIMARY - DEMAND"},{"$f":"'FR-16(7)(v)-1 Functional'!D74","v":"K205"},null,{"$f":"'FR-16(7)(v)-1 Functional'!H74","v":0},{"$f":"ROUND(F74*VLOOKUP(D74,AllocTable_Classified_Transmission,$G$10,FALSE),0)","v":0},{"$f":"ROUND(F74*VLOOKUP(D74,AllocTable_Classified_Transmission,$H$10,FALSE),0)","v":0},{"$f":"ROUND(F74*VLOOKUP(D74,AllocTable_Classified_Transmission,$I$10,FALSE),0)","v":0},{"$f":"SUM(G74:I74)","v":0},{"$f":"F74-J74","v":0}]
[18,null,{"$f":"'FR-16(7)(v)-1 Functional'!C75","v":"POLES, TOWERS  & FIXTURES - PRIMARY - CUSTOMER"},{"$f":"'FR-16(7)(v)-1 Functional'!D75","v":"K405"},null,{"$f":"'FR-16(7)(v)-1 Functional'!H75","v":0},{"$f":"ROUND(F75*VLOOKUP(D75,AllocTable_Classified_Transmission,$G$10,FALSE),0)","v":0},{"$f":"ROUND(F75*VLOOKUP(D75,AllocTable_Classified_Transmission,$H$10,FALSE),0)","v":0},{"$f":"ROUND(F75*VLOOKUP(D75,AllocTable_Classified_Transmission,$I$10,FALSE),0)","v":0},{"$f":"SUM(G75:I75)","v":0},{"$f":"F75-J75","v":0}]
[19,null,{"$f":"'FR-16(7)(v)-1 Functional'!C76","v":"POLES, TOWERS  & FIXTURES - SECONDARY - DEMAND"},{"$f":"'FR-16(7)(v)-1 Functional'!D76","v":"K206"},null,{"$f":"'FR-16(7)(v)-1 Functional'!H76","v":0},0,0,0,0,0]
[20,null,{"$f":"'FR-16(7)(v)-1 Functional'!C77","v":"POLES, TOWERS  & FIXTURES - SECONDARY - CUSTOMER"},{"$f":"'FR-16(7)(v)-1 Functional'!D77","v":"K405"},null,{"$f":"'FR-16(7)(v)-1 Functional'!H77","v":0},0,0,0,0,0]
[21,null,{"$f":"'FR-16(7)(v)-1 Functional'!C78","v":"CONDUCTORS - OVERHEAD / PRIMARY - DEMAND"},{"$f":"'FR-16(7)(v)-1 Functional'!D78","v":"K205"},null,{"$f":"'FR-16(7)(v)-1 Functional'!H78","v":0},0,0,0,0,0]
[22,null,{"$f":"'FR-16(7)(v)-1 Functional'!C79","v":"CONDUCTORS - OVERHEAD / PRIMARY - CUSTOMER"},{"$f":"'FR-16(7)(v)-1 Functional'!D79","v":"K405"},null,{"$f":"'FR-16(7)(v)-1 Functional'!H79","v":0},0,0,0,0,0]
[23,null,{"$f":"'FR-16(7)(v)-1 Functional'!C80","v":"CONDUCTORS - OVERHEAD / SECONDARY - DEMAND"},{"$f":"'FR-16(7)(v)-1 Functional'!D80","v":"K206"},null,{"$f":"'FR-16(7)(v)-1 Functional'!H80","v":0},0,0,0,0,0]
[24,null,{"$f":"'FR-16(7)(v)-1 Functional'!C81","v":"CONDUCTORS - OVERHEAD / SECONDARY - CUSTOMER"},{"$f":"'FR-16(7)(v)-1 Functional'!D81","v":"K405"},null,{"$f":"'FR-16(7)(v)-1 Functional'!H81","v":0},0,0,0,0,0]
[25,null,{"$f":"'FR-16(7)(v)-1 Functional'!C82","v":"CONDUCTORS - UNDERGROUND / PRIMARY - DEMAND"},{"$f":"'FR-16(7)(v)-1 Functional'!D82","v":"K205"},null,{"$f":"'FR-16(7)(v)-1 Functional'!H82","v":0},0,0,0,0,0]
[26,null,{"$f":"'FR-16(7)(v)-1 Functional'!C83","v":"CONDUCTORS - UNDERGROUND / PRIMARY - CUSTOMER"},{"$f":"'FR-16(7)(v)-1 Functional'!D83","v":"K405"},null,{"$f":"'FR-16(7)(v)-1 Functional'!H83","v":0},0,0,0,0,0]
[27,null,{"$f":"'FR-16(7)(v)-1 Functional'!C84","v":"CONDUCTORS - UNDERGROUND / SECONDARY - DEMAND"},{"$f":"'FR-16(7)(v)-1 Functional'!D84","v":"K206"},null,{"$f":"'FR-16(7)(v)-1 Functional'!H84","v":0},0,0,0,0,0]
[28,null,{"$f":"'FR-16(7)(v)-1 Functional'!C85","v":"CONDUCTORS - UNDERGROUND / SECONDARY - CUSTOMER"},{"$f":"'FR-16(7)(v)-1 Functional'!D85","v":"K405"},null,{"$f":"'FR-16(7)(v)-1 Functional'!H85","v":0},0,0,0,0,0]
[29,null,{"$f":"'FR-16(7)(v)-1 Functional'!C86","v":"TRANSFORMERS DEMAND RELATED"},{"$f":"'FR-16(7)(v)-1 Functional'!D86","v":"K215"},null,{"$f":"'FR-16(7)(v)-1 Functional'!H86","v":0},{"$f":"ROUND(F86*VLOOKUP(D86,AllocTable_Classified_Transmission,$G$10,FALSE),0)","v":0},{"$f":"ROUND(F86*VLOOKUP(D86,AllocTable_Classified_Transmission,$H$10,FALSE),0)","v":0},{"$f":"ROUND(F86*VLOOKUP(D86,AllocTable_Classified_Transmission,$I$10,FALSE),0)","v":0},{"$f":"SUM(G86:I86)","v":0},{"$f":"F86-J86","v":0}]
[30,null,{"$f":"'FR-16(7)(v)-1 Functional'!C87","v":"TRANSFORMERS CUSTOMER RELATED"},{"$f":"'FR-16(7)(v)-1 Functional'!D87","v":"K405"},null,{"$f":"'FR-16(7)(v)-1 Functional'!H87","v":0},0,0,0,0,0]
[31,null,{"$f":"'FR-16(7)(v)-1 Functional'!C88","v":"SERVICES"},{"$f":"'FR-16(7)(v)-1 Functional'!D88","v":"K217"},null,{"$f":"'FR-16(7)(v)-1 Functional'!H88","v":0},0,0,0,0,0]
[32,null,{"$f":"'FR-16(7)(v)-1 Functional'!C89","v":"METERS"},{"$f":"'FR-16(7)(v)-1 Functional'!D89","v":"K407"},null,{"$f":"'FR-16(7)(v)-1 Functional'!H89","v":5192},0,0,5192,5192,0]
[33,null,{"$f":"'FR-16(7)(v)-1 Functional'!C90","v":"STREET LIGHTS"},{"$f":"'FR-16(7)(v)-1 Functional'!D90","v":"K401"},null,{"$f":"'FR-16(7)(v)-1 Functional'!H90","v":0},0,0,0,0,0]
[34,null,{"$f":"'FR-16(7)(v)-1 Functional'!C91","v":"ADJUSTMENT  "},{"$f":"'FR-16(7)(v)-1 Functional'!D91","v":"K209"},null,{"$f":"'FR-16(7)(v)-1 Functional'!H91","v":0},0,0,0,0,0]
[35,null,{"$f":"'FR-16(7)(v)-1 Functional'!C92","v":"CONSTRUCTION NOT CLASSIFIED"},{"$f":"'FR-16(7)(v)-1 Functional'!D92","v":"K209"},null,{"$f":"'FR-16(7)(v)-1 Functional'!H92","v":947},0,0,947,947,0]
[36,null,{"$f":"'FR-16(7)(v)-1 Functional'!C93","v":"RWIP"},{"$f":"'FR-16(7)(v)-1 Functional'!D93","v":"K215"},null,{"$f":"'FR-16(7)(v)-1 Functional'!H93","v":0},{"$f":"ROUND(F93*VLOOKUP(D93,AllocTable_Classified_Transmission,$G$10,FALSE),0)","v":0},{"$f":"ROUND(F93*VLOOKUP(D93,AllocTable_Classified_Transmission,$H$10,FALSE),0)","v":0},{"$f":"ROUND(F93*VLOOKUP(D93,AllocTable_Classified_Transmission,$I$10,FALSE),0)","v":0},{"$f":"SUM(G93:I93)","v":0},{"$f":"F93-J93","v":0}]
[37,null,{"$f":"'FR-16(7)(v)-1 Functional'!C94","v":"  DISTRIBUTION PLANT IN SERVICE"},null,null,{"$f":"SUM(F73:F93)","v":6139},{"$f":"SUM(G73:G92)","v":0},0,6139,6139,0]
[38]
[39,"TOTAL TRANS & DIST PLANT",null,null,null,{"$f":"F94+F68","v":72377841},72371702,0,6139,72377841,0]
[40,"TOTAL GROSS PTD PLANT",null,null,null,{"$f":"F94+F70","v":72377841},72371702,0,6139,72377841,0]
[41]
[42,"GENERAL & INTANGIBLE PLANT"]
[43,null,{"$f":"'FR-16(7)(v)-1 Functional'!C100","v":"PRODUCTION - DEMAND"},{"$f":"'FR-16(7)(v)-1 Functional'!D100","v":"K201"},null,{"$f":"'FR-16(7)(v)-1 Functional'!H100","v":0},{"$f":"ROUND(F100*VLOOKUP(D100,AllocTable_Classified_Transmission,$G$10,FALSE),0)","v":0},{"$f":"ROUND(F100*VLOOKUP(D100,AllocTable_Classified_Transmission,$H$10,FALSE),0)","v":0},{"$f":"ROUND(F100*VLOOKUP(D100,AllocTable_Classified_Transmission,$I$10,FALSE),0)","v":0},{"$f":"SUM(G100:I100)","v":0},{"$f":"F100-J100","v":0}]
[44,null,{"$f":"'FR-16(7)(v)-1 Functional'!C101","v":"PRODUCTION - ENERGY"},{"$f":"'FR-16(7)(v)-1 Functional'!D101","v":"K301"},null,{"$f":"'FR-16(7)(v)-1 Functional'!H101","v":0},0,{"$f":"ROUND(F101*VLOOKUP(D101,AllocTable_Classified_Transmission,$H$10,FALSE),0)","v":0},{"$f":"ROUND(F101*VLOOKUP(D101,AllocTable_Classified_Transmission,$I$10,FALSE),0)","v":0},{"$f":"SUM(G101:I101)","v":0},{"$f":"F101-J101","v":0}]
[45,null,{"$f":"'FR-16(7)(v)-1 Functional'!C102","v":"TRANSMISSION"},{"$f":"'FR-16(7)(v)-1 Functional'!D102","v":"K202"},null,{"$f":"'FR-16(7)(v)-1 Functional'!H102","v":2639608},2639608,0,0,2639608,0]
[46,null,{"$f":"'FR-16(7)(v)-1 Functional'!C103","v":"DISTRIBUTION - DEMAND"},{"$f":"'FR-16(7)(v)-1 Functional'!D103","v":"K201"},null,{"$f":"'FR-16(7)(v)-1 Functional'!H103","v":0},0,0,0,0,0]
[47,null,{"$f":"'FR-16(7)(v)-1 Functional'!C104","v":"DISTRIBUTION - CUSTOMER"},{"$f":"'FR-16(7)(v)-1 Functional'!D104","v":"K405"},null,{"$f":"'FR-16(7)(v)-1 Functional'!H104","v":0},0,0,0,0,0]
[48,null,{"$f":"'FR-16(7)(v)-1 Functional'!C105","v":"CUSTOMER ACCOUNTING"},{"$f":"'FR-16(7)(v)-1 Functional'!D105","v":"A308"},null,{"$f":"'FR-16(7)(v)-1 Functional'!H105","v":-2117},0,0,-2117,-2117,0]
[49,null,{"$f":"'FR-16(7)(v)-1 Functional'!C106","v":"CUSTOMER SERVICE & INFORMATION"},{"$f":"'FR-16(7)(v)-1 Functional'!D106","v":"A310"},null,{"$f":"'FR-16(7)(v)-1 Functional'!H106","v":0},0,0,0,0,0]
[50,null,{"$f":"'FR-16(7)(v)-1 Functional'!C107","v":"SALES"},{"$f":"'FR-16(7)(v)-1 Functional'!D107","v":"A312"},null,{"$f":"'FR-16(7)(v)-1 Functional'!H107","v":0},0,0,0,0,0]
[51,null,{"$f":"'FR-16(7)(v)-1 Functional'!C108","v":"ADJUSTMENT"},{"$f":"'FR-16(7)(v)-1 Functional'!D108","v":"A315"},null,{"$f":"'FR-16(7)(v)-1 Functional'!H108","v":0},0,0,0,0,0]
[52,null,{"$f":"'FR-16(7)(v)-1 Functional'!C109","v":"  GEN & INTANG PLANT IN SERVICE"},null,null,{"$f":"SUM(F100:F108)","v":2637491},2639608,0,-2117,2637491,0]
[53]
[54,"COMMON & OTHER PLANT"]
[55,null,{"$f":"'FR-16(7)(v)-1 Functional'!C112","v":"PRODUCTION - DEMAND"},{"$f":"'FR-16(7)(v)-1 Functional'!D112","v":"K201"},null,{"$f":"'FR-16(7)(v)-1 Functional'!H112","v":0},{"$f":"ROUND(F112*VLOOKUP(D112,AllocTable_Classified_Transmission,$G$10,FALSE),0)","v":0},{"$f":"ROUND(F112*VLOOKUP(D112,AllocTable_Classified_Transmission,$H$10,FALSE),0)","v":0},{"$f":"ROUND(F112*VLOOKUP(D112,AllocTable_Classified_Transmission,$I$10,FALSE),0)","v":0},{"$f":"SUM(G112:I112)","v":0},{"$f":"F112-J112","v":0}]
[56,null,{"$f":"'FR-16(7)(v)-1 Functional'!C113","v":"PRODUCTION - ENERGY"},{"$f":"'FR-16(7)(v)-1 Functional'!D113","v":"K301"},null,{"$f":"'FR-16(7)(v)-1 Functional'!H113","v":0},0,0,0,{"$f":"SUM(G113:I113)","v":0},{"$f":"F113-J113","v":0}]
[57,null,{"$f":"'FR-16(7)(v)-1 Functional'!C114","v":"TRANSMISSION"},{"$f":"'FR-16(7)(v)-1 Functional'!D114","v":"K202"},null,{"$f":"'FR-16(7)(v)-1 Functional'!H114","v":1493971},1493971,0,0,1493971,0]
[58,null,{"$f":"'FR-16(7)(v)-1 Functional'!C115","v":"DISTRIBUTION - DEMAND"},{"$f":"'FR-16(7)(v)-1 Functional'!D115","v":"K201"},null,{"$f":"'FR-16(7)(v)-1 Functional'!H115","v":0},0,0,0,0,0]
[59,null,{"$f":"'FR-16(7)(v)-1 Functional'!C116","v":"DISTRIBUTION - CUSTOMER"},{"$f":"'FR-16(7)(v)-1 Functional'!D116","v":"K405"},null,{"$f":"'FR-16(7)(v)-1 Functional'!H116","v":0},0,0,0,0,0]
[60,null,{"$f":"'FR-16(7)(v)-1 Functional'!C117","v":"CUSTOMER ACCOUNTING"},{"$f":"'FR-16(7)(v)-1 Functional'!D117","v":"A308"},null,{"$f":"'FR-16(7)(v)-1 Functional'!H117","v":-1198},0,0,-1198,-1198,0]
[61,null,{"$f":"'FR-16(7)(v)-1 Functional'!C118","v":"CUSTOMER SERVICE & INFORMATION"},{"$f":"'FR-16(7)(v)-1 Functional'!D118","v":"A310"},null,{"$f":"'FR-16(7)(v)-1 Functional'!H118","v":0},0,0,0,0,0]
[62,null,{"$f":"'FR-16(7)(v)-1 Functional'!C119","v":"SALES"},{"$f":"'FR-16(7)(v)-1 Functional'!D119","v":"A312"},null,{"$f":"'FR-16(7)(v)-1 Functional'!H119","v":0},0,0,0,0,0]
[63,null,{"$f":"'FR-16(7)(v)-1 Functional'!C120","v":"ADJUSTMENT"},{"$f":"'FR-16(7)(v)-1 Functional'!D120","v":"A315"},null,{"$f":"'FR-16(7)(v)-1 Functional'!H120","v":0},0,0,0,0,0]
[64,null,{"$f":"'FR-16(7)(v)-1 Functional'!C121","v":"  COMMON & OTHER PLANT IN SERVICE"},null,null,{"$f":"SUM(F112:F120)","v":1492773},1493971,0,-1198,1492773,0]
[65]
[66,"GROSS ELECTRIC PLANT IN SERVICE",null,null,null,{"$f":"F97+F109+F121","v":76508105},76505281,0,2824,76508105,0]
[]
[{"$f":"co_name","v":"DUKE ENERGY KENTUCKY, INC."},null,null,null,null,null,null,null,null,{"$f":"J1","v":"FR-16(7)(v)-6"}]
[{"$f":"$A$2","v":"TRANSMISSION CLASSIFIED -  ELECTRIC COST OF SERVICE"},null,null,null,null,null,null,null,null,{"$f":"J2","v":"WITNESS RESPONSIBLE:"}]
[{"$f":"case_name","v":"CASE NO: 2019-00271"},null,null,null,null,null,null,null,null,{"$f":"Witness","v":"JAMES E. ZIOLKOWSKI"}]
[{"$f":"data_filing","v":"DATA: 12 MONTHS ACTUAL  & 0 MONTHS ESTIMATED"},null,null,null,null,null,null,null,null,{"$f":"\"PAGE \"&Pages-15&\" OF \"&Pages","v":"PAGE 3 OF 18"}]
[{"$f":"type","v":"TYPE OF FILING: \"X\" ORIGINAL   UPDATED    REVISED  "}]
[]
[]
["LINE",null,null,null,null,{"$f":"$F$8","v":"TOTAL"},"CLASSIFIED",null,null,"TOTAL","ALL"]
["NO.","DEPRECIATION RESERVE",null,"ALLO",null,{"$f":"$F$9","v":"TRANSMISSION"},{"$f":"G9","v":"DEMAND"},"ENERGY","CUSTOMER","AT ISSUE","OTHER"]
[null,null,"Schedule 3",null,null,null,3,4,5]
[1,"PRODUCTION PLANT"]
[2,null,{"$f":"'FR-16(7)(v)-1 Functional'!C136","v":"PRODUCTION STEAM"},{"$f":"'FR-16(7)(v)-1 Functional'!D136","v":"K201"},null,{"$f":"'FR-16(7)(v)-1 Functional'!H136","v":0},{"$f":"F136-SUM(H136:I136)","v":0},{"$f":"ROUND(F136*VLOOKUP(D136,AllocTable_Classified_Transmission,$H$10,FALSE),0)","v":0},{"$f":"ROUND(F136*VLOOKUP(D136,AllocTable_Classified_Transmission,$I$10,FALSE),0)","v":0},{"$f":"SUM(G136:I136)","v":0},{"$f":"F136-J136","v":0}]
[3,null,{"$f":"'FR-16(7)(v)-1 Functional'!C137","v":"PRODUCTION OTHER"},{"$f":"'FR-16(7)(v)-1 Functional'!D137","v":"K201"},null,{"$f":"'FR-16(7)(v)-1 Functional'!H137","v":0},{"$f":"F137-SUM(H137:I137)","v":0},{"$f":"ROUND(F137*VLOOKUP(D137,AllocTable_Classified_Transmission,$H$10,FALSE),0)","v":0},{"$f":"ROUND(F137*VLOOKUP(D137,AllocTable_Classified_Transmission,$I$10,FALSE),0)","v":0},{"$f":"SUM(G137:I137)","v":0},{"$f":"F137-J137","v":0}]
[4,null,{"$f":"'FR-16(7)(v)-1 Functional'!C138","v":"ADJUSTMENT"},{"$f":"'FR-16(7)(v)-1 Functional'!D138","v":"K201"},null,{"$f":"'FR-16(7)(v)-1 Functional'!H138","v":0},{"$f":"F138-SUM(H138:I138)","v":0},{"$f":"ROUND(F138*VLOOKUP(D138,AllocTable_Classified_Transmission,$H$10,FALSE),0)","v":0},{"$f":"ROUND(F138*VLOOKUP(D138,AllocTable_Classified_Transmission,$I$10,FALSE),0)","v":0},{"$f":"SUM(G138:I138)","v":0},{"$f":"F138-J138","v":0}]
[5,null,{"$f":"'FR-16(7)(v)-1 Functional'!C139","v":"  TOTAL PROD DEPREC RESERVE"},null,null,{"$f":"SUM(F136:F138)","v":0},0,0,0,0,0]
[6]
[7,"TRANSMISSION PLANT"]
[8,null,{"$f":"'FR-16(7)(v)-1 Functional'!C142","v":"MAIN STEP-UP TRANSFORMERS"},{"$f":"'FR-16(7)(v)-1 Functional'!D142","v":"K202"},null,{"$f":"'FR-16(7)(v)-1 Functional'!H142","v":0},{"$f":"F142-SUM(H142:I142)","v":0},{"$f":"ROUND(F142*VLOOKUP(D142,AllocTable_Classified_Transmission,$H$10,FALSE),0)","v":0},{"$f":"ROUND(F142*VLOOKUP(D142,AllocTable_Classified_Transmission,$I$10,FALSE),0)","v":0},{"$f":"SUM(G142:I142)","v":0},{"$f":"F142-J142","v":0}]
[9,null,{"$f":"'FR-16(7)(v)-1 Functional'!C143","v":"OTHER TRANSMISSION"},{"$f":"'FR-16(7)(v)-1 Functional'!D143","v":"K202"},null,{"$f":"'FR-16(7)(v)-1 Functional'!H143","v":19959025},{"$f":"F143-SUM(H143:I143)","v":19959025},{"$f":"ROUND(F143*VLOOKUP(D143,AllocTable_Classified_Transmission,$H$10,FALSE),0)","v":0},{"$f":"ROUND(F143*VLOOKUP(D143,AllocTable_Classified_Transmission,$I$10,FALSE),0)","v":0},{"$f":"SUM(G143:I143)","v":19959025},{"$f":"F143-J143","v":0}]
[10,null,{"$f":"'FR-16(7)(v)-1 Functional'!C144","v":"ADJUSTMENT"},{"$f":"'FR-16(7)(v)-1 Functional'!D144","v":"K202"},null,{"$f":"'FR-16(7)(v)-1 Functional'!H144","v":-70176},{"$f":"F144-SUM(H144:I144)","v":-70176},{"$f":"ROUND(F144*VLOOKUP(D144,AllocTable_Classified_Transmission,$H$10,FALSE),0)","v":0},{"$f":"ROUND(F144*VLOOKUP(D144,AllocTable_Classified_Transmission,$I$10,FALSE),0)","v":0},{"$f":"SUM(G144:I144)","v":-70176},{"$f":"F144-J144","v":0}]
[11,null,{"$f":"'FR-16(7)(v)-1 Functional'!C145","v":"  TOTAL TRANS DEPREC RESERVE"},null,null,{"$f":"SUM(F142:F144)","v":19888849},19888849,0,0,19888849,0]
[12]
[13,null,{"$f":"'FR-16(7)(v)-1 Functional'!C147","v":"TOTAL PROD & TRANS DEPREC RESERVE"},null,null,{"$f":"F145+F139","v":19888849},{"$f":"G145+G139","v":19888849},{"$f":"H145+H139","v":0},{"$f":"I145+I139","v":0},{"$f":"J145+J139","v":19888849},{"$f":"F147-J147","v":0}]
[14]
[15,"DISTRIBUTION PLANT"]
[16,null,{"$f":"'FR-16(7)(v)-1 Functional'!C150","v":"SUBSTATIONS"},{"$f":"'FR-16(7)(v)-1 Functional'!D150","v":"K215"},null,{"$f":"'FR-16(7)(v)-1 Functional'!H150","v":0},{"$f":"F150-SUM(H150:I150)","v":0},{"$f":"ROUND(F150*VLOOKUP(D150,AllocTable_Classified_Transmission,$H$10,FALSE),0)","v":0},{"$f":"ROUND(F150*VLOOKUP(D150,AllocTable_Classified_Transmission,$I$10,FALSE),0)","v":0},{"$f":"SUM(G150:I150)","v":0},{"$f":"F150-J150","v":0}]
[17,null,{"$f":"'FR-16(7)(v)-1 Functional'!C151","v":"POLES, TOWERS  & FIXTURES - PRIMARY - DEMAND"},{"$f":"'FR-16(7)(v)-1 Functional'!D151","v":"K205"},null,{"$f":"'FR-16(7)(v)-1 Functional'!H151","v":0},{"$f":"F151-SUM(H151:I151)","v":0},{"$f":"ROUND(F151*VLOOKUP(D151,AllocTable_Classified_Transmission,$H$10,FALSE),0)","v":0},{"$f":"ROUND(F151*VLOOKUP(D151,AllocTable_Classified_Transmission,$I$10,FALSE),0)","v":0},{"$f":"SUM(G151:I151)","v":0},{"$f":"F151-J151","v":0}]
[18,null,{"$f":"'FR-16(7)(v)-1 Functional'!C152","v":"POLES, TOWERS  & FIXTURES - PRIMARY - CUSTOMER"},{"$f":"'FR-16(7)(v)-1 Functional'!D152","v":"K405"},null,{"$f":"'FR-16(7)(v)-1 Functional'!H152","v":0},{"$f":"F152-SUM(H152:I152)","v":0},{"$f":"ROUND(F152*VLOOKUP(D152,AllocTable_Classified_Transmission,$H$10,FALSE),0)","v":0},{"$f":"ROUND(F152*VLOOKUP(D152,AllocTable_Classified_Transmission,$I$10,FALSE),0)","v":0},{"$f":"SUM(G152:I152)","v":0},{"$f":"F152-J152","v":0}]
[19,null,{"$f":"'FR-16(7)(v)-1 Functional'!C153","v":"POLES, TOWERS  & FIXTURES - SECONDARY - DEMAND"},{"$f":"'FR-16(7)(v)-1 Functional'!D153","v":"K206"},null,{"$f":"'FR-16(7)(v)-1 Functional'!H153","v":0},0,0,0,0,0]
[20,null,{"$f":"'FR-16(7)(v)-1 Functional'!C154","v":"POLES, TOWERS  & FIXTURES - SECONDARY - CUSTOMER"},{"$f":"'FR-16(7)(v)-1 Functional'!D154","v":"K405"},null,{"$f":"'FR-16(7)(v)-1 Functional'!H154","v":0},0,0,0,0,0]
[21,null,{"$f":"'FR-16(7)(v)-1 Functional'!C155","v":"CONDUCTORS - OVERHEAD / PRIMARY - DEMAND"},{"$f":"'FR-16(7)(v)-1 Functional'!D155","v":"K205"},null,{"$f":"'FR-16(7)(v)-1 Functional'!H155","v":0},0,0,0,0,0]
[22,null,{"$f":"'FR-16(7)(v)-1 Functional'!C156","v":"CONDUCTORS - OVERHEAD / PRIMARY - CUSTOMER"},{"$f":"'FR-16(7)(v)-1 Functional'!D156","v":"K405"},null,{"$f":"'FR-16(7)(v)-1 Functional'!H156","v":0},0,0,0,0,0]
[23,null,{"$f":"'FR-16(7)(v)-1 Functional'!C157","v":"CONDUCTORS - OVERHEAD / SECONDARY - DEMAND"},{"$f":"'FR-16(7)(v)-1 Functional'!D157","v":"K206"},null,{"$f":"'FR-16(7)(v)-1 Functional'!H157","v":0},0,0,0,0,0]
[24,null,{"$f":"'FR-16(7)(v)-1 Functional'!C158","v":"CONDUCTORS - OVERHEAD / SECONDARY - CUSTOMER"},{"$f":"'FR-16(7)(v)-1 Functional'!D158","v":"K405"},null,{"$f":"'FR-16(7)(v)-1 Functional'!H158","v":0},0,0,0,0,0]
[25,null,{"$f":"'FR-16(7)(v)-1 Functional'!C159","v":"CONDUCTORS - UNDERGROUND / PRIMARY - DEMAND"},{"$f":"'FR-16(7)(v)-1 Functional'!D159","v":"K205"},null,{"$f":"'FR-16(7)(v)-1 Functional'!H159","v":0},0,0,0,0,0]
[26,null,{"$f":"'FR-16(7)(v)-1 Functional'!C160","v":"CONDUCTORS - UNDERGROUND / PRIMARY - CUSTOMER"},{"$f":"'FR-16(7)(v)-1 Functional'!D160","v":"K405"},null,{"$f":"'FR-16(7)(v)-1 Functional'!H160","v":0},0,0,0,0,0]
[27,null,{"$f":"'FR-16(7)(v)-1 Functional'!C161","v":"CONDUCTORS - UNDERGROUND / SECONDARY - DEMAND"},{"$f":"'FR-16(7)(v)-1 Functional'!D161","v":"K206"},null,{"$f":"'FR-16(7)(v)-1 Functional'!H161","v":0},0,0,0,0,0]
[28,null,{"$f":"'FR-16(7)(v)-1 Functional'!C162","v":"CONDUCTORS - UNDERGROUND / SECONDARY - CUSTOMER"},{"$f":"'FR-16(7)(v)-1 Functional'!D162","v":"K405"},null,{"$f":"'FR-16(7)(v)-1 Functional'!H162","v":0},0,0,0,0,0]
[29,null,{"$f":"'FR-16(7)(v)-1 Functional'!C163","v":"TRANSFORMERS DEMAND RELATED"},{"$f":"'FR-16(7)(v)-1 Functional'!D163","v":"K215"},null,{"$f":"'FR-16(7)(v)-1 Functional'!H163","v":0},{"$f":"F163-SUM(H163:I163)","v":0},{"$f":"ROUND(F163*VLOOKUP(D163,AllocTable_Classified_Transmission,$H$10,FALSE),0)","v":0},{"$f":"ROUND(F163*VLOOKUP(D163,AllocTable_Classified_Transmission,$I$10,FALSE),0)","v":0},{"$f":"SUM(G163:I163)","v":0},{"$f":"F163-J163","v":0}]
[30,null,{"$f":"'FR-16(7)(v)-1 Functional'!C164","v":"TRANSFORMERS CUSTOMER RELATED"},{"$f":"'FR-16(7)(v)-1 Functional'!D164","v":"K405"},null,{"$f":"'FR-16(7)(v)-1 Functional'!H164","v":0},0,0,0,0,0]
[31,null,{"$f":"'FR-16(7)(v)-1 Functional'!C165","v":"SERVICES"},{"$f":"'FR-16(7)(v)-1 Functional'!D165","v":"K217"},null,{"$f":"'FR-16(7)(v)-1 Functional'!H165","v":0},0,0,0,0,0]
[32,null,{"$f":"'FR-16(7)(v)-1 Functional'!C166","v":"METERS"},{"$f":"'FR-16(7)(v)-1 Functional'!D166","v":"K407"},null,{"$f":"'FR-16(7)(v)-1 Functional'!H166","v":1142},0,0,1142,1142,0]
[33,null,{"$f":"'FR-16(7)(v)-1 Functional'!C167","v":"STREET LIGHTS"},{"$f":"'FR-16(7)(v)-1 Functional'!D167","v":"K401"},null,{"$f":"'FR-16(7)(v)-1 Functional'!H167","v":0},0,0,0,0,0]
[34,null,{"$f":"'FR-16(7)(v)-1 Functional'!C168","v":"ADJUSTMENT  "},{"$f":"'FR-16(7)(v)-1 Functional'!D168","v":"K209"},null,{"$f":"'FR-16(7)(v)-1 Functional'!H168","v":5},0,0,5,5,0]
[35,null,{"$f":"'FR-16(7)(v)-1 Functional'!C169","v":"CONSTRUCTION NOT CLASSIFIED"},{"$f":"'FR-16(7)(v)-1 Functional'!D169","v":"K209"},null,{"$f":"'FR-16(7)(v)-1 Functional'!H169","v":15},0,0,15,15,0]
[36,null,{"$f":"'FR-16(7)(v)-1 Functional'!C170","v":"RWIP"},{"$f":"'FR-16(7)(v)-1 Functional'!D170","v":"K215"},null,{"$f":"'FR-16(7)(v)-1 Functional'!H170","v":0},{"$f":"F170-SUM(H170:I170)","v":0},{"$f":"ROUND(F170*VLOOKUP(D170,AllocTable_Classified_Transmission,$H$10,FALSE),0)","v":0},{"$f":"ROUND(F170*VLOOKUP(D170,AllocTable_Classified_Transmission,$I$10,FALSE),0)","v":0},{"$f":"SUM(G170:I170)","v":0},{"$f":"F170-J170","v":0}]
[37,null,{"$f":"'FR-16(7)(v)-1 Functional'!C171","v":"  TOTAL DIST DEPREC RESERVE"},null,null,{"$f":"SUM(F149:F170)","v":1162},{"$f":"SUM(G149:G170)","v":0},0,1162,1162,0]
[38]
[39,null,"TOTAL TRANS & DIST DEPREC RESERVE",null,null,{"$f":"F171+F145","v":19890011},{"$f":"G171+G145","v":19888849},{"$f":"H171+H145","v":0},{"$f":"I171+I145","v":1162},{"$f":"J171+J145","v":19890011},{"$f":"F173-J173","v":0}]
[40,null,"TOTAL GROSS PTD PLANT DEPREC RESERVE",null,null,{"$f":"F147+F171","v":19890011},{"$f":"G147+G171","v":19888849},{"$f":"H147+H171","v":0},{"$f":"I147+I171","v":1162},{"$f":"J147+J171","v":19890011},{"$f":"F174-J174","v":0}]
[41]
[42,"GENERAL & INTANGIBLE PLANT"]
[43,null,{"$f":"'FR-16(7)(v)-1 Functional'!C177","v":"PRODUCTION - DEMAND"},{"$f":"'FR-16(7)(v)-1 Functional'!D177","v":"K201"},null,{"$f":"'FR-16(7)(v)-1 Functional'!H177","v":0},{"$f":"F177-SUM(H177:I177)","v":0},{"$f":"ROUND(F177*VLOOKUP(D177,AllocTable_Classified_Transmission,$H$10,FALSE),0)","v":0},{"$f":"ROUND(F177*VLOOKUP(D177,AllocTable_Classified_Transmission,$I$10,FALSE),0)","v":0},{"$f":"SUM(G177:I177)","v":0},{"$f":"F177-J177","v":0}]
[44,null,{"$f":"'FR-16(7)(v)-1 Functional'!C178","v":"PRODUCTION - ENERGY"},{"$f":"'FR-16(7)(v)-1 Functional'!D178","v":"K301"},null,{"$f":"'FR-16(7)(v)-1 Functional'!H178","v":0},{"$f":"F178-SUM(H178:I178)","v":0},0,0,{"$f":"SUM(G178:I178)","v":0},{"$f":"F178-J178","v":0}]
[45,null,{"$f":"'FR-16(7)(v)-1 Functional'!C179","v":"TRANSMISSION"},{"$f":"'FR-16(7)(v)-1 Functional'!D179","v":"K202"},null,{"$f":"'FR-16(7)(v)-1 Functional'!H179","v":850643},850643,0,0,850643,0]
[46,null,{"$f":"'FR-16(7)(v)-1 Functional'!C180","v":"DISTRIBUTION - DEMAND"},{"$f":"'FR-16(7)(v)-1 Functional'!D180","v":"K201"},null,{"$f":"'FR-16(7)(v)-1 Functional'!H180","v":0},0,0,0,0,0]
[47,null,{"$f":"'FR-16(7)(v)-1 Functional'!C181","v":"DISTRIBUTION - CUSTOMER"},{"$f":"'FR-16(7)(v)-1 Functional'!D181","v":"K405"},null,{"$f":"'FR-16(7)(v)-1 Functional'!H181","v":0},0,0,0,0,0]
[48,null,{"$f":"'FR-16(7)(v)-1 Functional'!C182","v":"CUSTOMER ACCOUNTING"},{"$f":"'FR-16(7)(v)-1 Functional'!D182","v":"A308"},null,{"$f":"'FR-16(7)(v)-1 Functional'!H182","v":-682},0,0,-682,-682,0]
[49,null,{"$f":"'FR-16(7)(v)-1 Functional'!C183","v":"CUSTOMER SERVICE & INFORMATION"},{"$f":"'FR-16(7)(v)-1 Functional'!D183","v":"A310"},null,{"$f":"'FR-16(7)(v)-1 Functional'!H183","v":0},0,0,0,0,0]
[50,null,{"$f":"'FR-16(7)(v)-1 Functional'!C184","v":"SALES"},{"$f":"'FR-16(7)(v)-1 Functional'!D184","v":"A312"},null,{"$f":"'FR-16(7)(v)-1 Functional'!H184","v":0},0,0,0,0,0]
[51,null,{"$f":"'FR-16(7)(v)-1 Functional'!C185","v":"ADJUSTMENT"},{"$f":"'FR-16(7)(v)-1 Functional'!D185","v":"A315"},null,{"$f":"'FR-16(7)(v)-1 Functional'!H185","v":15133},15145,0,-12,15133,0]
[52,null,{"$f":"'FR-16(7)(v)-1 Functional'!C186","v":"  GENERAL & INTANG PLANT"},null,null,{"$f":"SUM(F176:F185)","v":865094},865788,0,-694,865094,0]
[53]
[54,"COMMON & OTHER PLANT"]
[55,null,{"$f":"'FR-16(7)(v)-1 Functional'!C189","v":"PRODUCTION - DEMAND"},{"$f":"'FR-16(7)(v)-1 Functional'!D189","v":"K201"},null,{"$f":"'FR-16(7)(v)-1 Functional'!H189","v":0},{"$f":"F189-SUM(H189:I189)","v":0},{"$f":"ROUND(F189*VLOOKUP(D189,AllocTable_Classified_Transmission,$H$10,FALSE),0)","v":0},{"$f":"ROUND(F189*VLOOKUP(D189,AllocTable_Classified_Transmission,$I$10,FALSE),0)","v":0},{"$f":"SUM(G189:I189)","v":0},{"$f":"F189-J189","v":0}]
[56,null,{"$f":"'FR-16(7)(v)-1 Functional'!C190","v":"PRODUCTION - ENERGY"},{"$f":"'FR-16(7)(v)-1 Functional'!D190","v":"K301"},null,{"$f":"'FR-16(7)(v)-1 Functional'!H190","v":0},{"$f":"F190-SUM(H190:I190)","v":0},0,0,{"$f":"SUM(G190:I190)","v":0},{"$f":"F190-J190","v":0}]
[57,null,{"$f":"'FR-16(7)(v)-1 Functional'!C191","v":"TRANSMISSION"},{"$f":"'FR-16(7)(v)-1 Functional'!D191","v":"K202"},null,{"$f":"'FR-16(7)(v)-1 Functional'!H191","v":1149371},1149371,0,0,1149371,0]
[58,null,{"$f":"'FR-16(7)(v)-1 Functional'!C192","v":"DISTRIBUTION - DEMAND"},{"$f":"'FR-16(7)(v)-1 Functional'!D192","v":"K201"},null,{"$f":"'FR-16(7)(v)-1 Functional'!H192","v":0},0,0,0,0,0]
[59,null,{"$f":"'FR-16(7)(v)-1 Functional'!C193","v":"DISTRIBUTION - CUSTOMER"},{"$f":"'FR-16(7)(v)-1 Functional'!D193","v":"K405"},null,{"$f":"'FR-16(7)(v)-1 Functional'!H193","v":0},0,0,0,0,0]
[60,null,{"$f":"'FR-16(7)(v)-1 Functional'!C194","v":"CUSTOMER ACCOUNTING"},{"$f":"'FR-16(7)(v)-1 Functional'!D194","v":"A308"},null,{"$f":"'FR-16(7)(v)-1 Functional'!H194","v":-922},0,0,-922,-922,0]
[61,null,{"$f":"'FR-16(7)(v)-1 Functional'!C195","v":"CUSTOMER SERVICE & INFORMATION"},{"$f":"'FR-16(7)(v)-1 Functional'!D195","v":"A310"},null,{"$f":"'FR-16(7)(v)-1 Functional'!H195","v":0},0,0,0,0,0]
[62,null,{"$f":"'FR-16(7)(v)-1 Functional'!C196","v":"SALES"},{"$f":"'FR-16(7)(v)-1 Functional'!D196","v":"A312"},null,{"$f":"'FR-16(7)(v)-1 Functional'!H196","v":0},0,0,0,0,0]
[63,null,{"$f":"'FR-16(7)(v)-1 Functional'!C197","v":"ADJUSTMENT"},{"$f":"'FR-16(7)(v)-1 Functional'!D197","v":"A315"},null,{"$f":"'FR-16(7)(v)-1 Functional'!H197","v":850},851,0,-1,850,0]
[64,null,{"$f":"'FR-16(7)(v)-1 Functional'!C198","v":"  COMMON & OTHER PLANT IN SERVICE"},null,null,{"$f":"SUM(F189:F197)","v":1149299},{"$f":"SUM(G188:G197)","v":1150222},{"$f":"SUM(H188:H197)","v":0},{"$f":"SUM(I188:I197)","v":-923},{"$f":"SUM(J188:J197)","v":1149299},{"$f":"SUM(K188:K197)","v":0}]
[65]
[66,"TOTAL DEPRECIATION RESERVE",null,null,null,{"$f":"F198+F186+F171+F145+F139","v":21904404},21904859,0,-455,21904404,0]
[]
[{"$f":"co_name","v":"DUKE ENERGY KENTUCKY, INC."},null,null,null,null,null,null,null,null,{"$f":"J1","v":"FR-16(7)(v)-6"}]
[{"$f":"$A$2","v":"TRANSMISSION CLASSIFIED -  ELECTRIC COST OF SERVICE"},null,null,null,null,null,null,null,null,{"$f":"J2","v":"WITNESS RESPONSIBLE:"}]
[{"$f":"case_name","v":"CASE NO: 2019-00271"},null,null,null,null,null,null,null,null,{"$f":"Witness","v":"JAMES E. ZIOLKOWSKI"}]
[{"$f":"data_filing","v":"DATA: 12 MONTHS ACTUAL  & 0 MONTHS ESTIMATED"},null,null,null,null,null,null,null,null,{"$f":"\"PAGE \"&Pages-14&\" OF \"&Pages","v":"PAGE 4 OF 18"}]
[{"$f":"type","v":"TYPE OF FILING: \"X\" ORIGINAL   UPDATED    REVISED  "}]
[]
[]
["LINE",null,null,null,null,{"$f":"$F$8","v":"TOTAL"},"CLASSIFIED",null,null,"TOTAL","ALL"]
["NO.",{"$f":"\"NET ELECTRIC PLANT\"","v":"NET ELECTRIC PLANT"},null,"ALLO",null,{"$f":"$F$9","v":"TRANSMISSION"},{"$f":"G9","v":"DEMAND"},"ENERGY","CUSTOMER","AT ISSUE","OTHER"]
[null,null,"Schedule 4",null,null,null,3,4,5]
[1,"PRODUCTION PLANT"]
[2,null,{"$f":"'FR-16(7)(v)-1 Functional'!C213","v":"PRODUCTION STEAM"},null,null,{"$f":"F59-F136","v":0},0,0,0,0,0]
[3,null,{"$f":"'FR-16(7)(v)-1 Functional'!C214","v":"PRODUCTION OTHER"},null,null,{"$f":"F60-F137","v":0},0,0,0,0,0]
[4,null,{"$f":"'FR-16(7)(v)-1 Functional'!C215","v":"ADJUSTMENT"},null,null,{"$f":"F61-F138","v":0},0,0,0,0,0]
[5,null,{"$f":"'FR-16(7)(v)-1 Functional'!C216","v":"  NET PRODUCTION PLANT"},null,null,{"$f":"SUM(F213:F215)","v":0},0,0,0,0,0]
[6]
[7,"TRANSMISSION PLANT"]
[8,null,{"$f":"'FR-16(7)(v)-1 Functional'!C219","v":"MAIN STEP-UP TRANSFORMERS"},null,null,{"$f":"F65-F142","v":0},0,0,0,0,0]
[9,null,{"$f":"'FR-16(7)(v)-1 Functional'!C220","v":"OTHER TRANSMISSION"},null,null,{"$f":"F66-F143","v":52412677},52412677,0,0,52412677,0]
[10,null,{"$f":"'FR-16(7)(v)-1 Functional'!C221","v":"ADJUSTMENT"},null,null,{"$f":"F67-F144","v":70176},70176,0,0,70176,0]
[11,null,{"$f":"'FR-16(7)(v)-1 Functional'!C222","v":"    NET TRANSMISSION PLANT"},null,null,{"$f":"SUM(F218:F221)","v":52482853},52482853,0,0,52482853,0]
[12]
[13,"NET PROD & TRANS PLANT",null,null,null,{"$f":"F70-F147","v":52482853},52482853,0,0,52482853,0]
[14]
[15,"DISTRIBUTION PLANT"]
[16,null,{"$f":"'FR-16(7)(v)-1 Functional'!C227","v":"SUBSTATIONS"},null,null,{"$f":"F73-F150","v":0},0,0,0,0,0]
[17,null,{"$f":"'FR-16(7)(v)-1 Functional'!C228","v":"POLES, TOWERS  & FIXTURES - PRIMARY - DEMAND"},null,null,{"$f":"F74-F151","v":0},0,0,0,0,0]
[18,null,{"$f":"'FR-16(7)(v)-1 Functional'!C229","v":"POLES, TOWERS  & FIXTURES - PRIMARY - CUSTOMER"},null,null,0,0,0,0,0,0]
[19,null,{"$f":"'FR-16(7)(v)-1 Functional'!C230","v":"POLES, TOWERS  & FIXTURES - SECONDARY - DEMAND"},null,null,0,0,0,0,0,0]
[20,null,{"$f":"'FR-16(7)(v)-1 Functional'!C231","v":"POLES, TOWERS  & FIXTURES - SECONDARY - CUSTOMER"},null,null,0,0,0,0,0,0]
[21,null,{"$f":"'FR-16(7)(v)-1 Functional'!C232","v":"CONDUCTORS - OVERHEAD / PRIMARY - DEMAND"},null,null,0,0,0,0,0,0]
[22,null,{"$f":"'FR-16(7)(v)-1 Functional'!C233","v":"CONDUCTORS - OVERHEAD / PRIMARY - CUSTOMER"},null,null,0,0,0,0,0,0]
[23,null,{"$f":"'FR-16(7)(v)-1 Functional'!C234","v":"CONDUCTORS - OVERHEAD / SECONDARY - DEMAND"},null,null,0,0,0,0,0,0]
[24,null,{"$f":"'FR-16(7)(v)-1 Functional'!C235","v":"CONDUCTORS - OVERHEAD / SECONDARY - CUSTOMER"},null,null,0,0,0,0,0,0]
[25,null,{"$f":"'FR-16(7)(v)-1 Functional'!C236","v":"CONDUCTORS - UNDERGROUND / PRIMARY - DEMAND"},null,null,0,0,0,0,0,0]
[26,null,{"$f":"'FR-16(7)(v)-1 Functional'!C237","v":"CONDUCTORS - UNDERGROUND / PRIMARY - CUSTOMER"},null,null,0,0,0,0,0,0]
[27,null,{"$f":"'FR-16(7)(v)-1 Functional'!C238","v":"CONDUCTORS - UNDERGROUND / SECONDARY - DEMAND"},null,null,0,0,0,0,0,0]
[28,null,{"$f":"'FR-16(7)(v)-1 Functional'!C239","v":"CONDUCTORS - UNDERGROUND / SECONDARY - CUSTOMER"},null,null,0,0,0,0,0,0]
[29,null,{"$f":"'FR-16(7)(v)-1 Functional'!C240","v":"TRANSFORMERS DEMAND RELATED"},null,null,0,0,0,0,0,0]
[30,null,{"$f":"'FR-16(7)(v)-1 Functional'!C241","v":"TRANSFORMERS CUSTOMER RELATED"},null,null,0,0,0,0,0,0]
[31,null,{"$f":"'FR-16(7)(v)-1 Functional'!C242","v":"SERVICES"},null,null,{"$f":"F88-F165","v":0},0,0,0,0,0]
[32,null,{"$f":"'FR-16(7)(v)-1 Functional'!C243","v":"METERS"},null,null,{"$f":"F89-F166","v":4050},0,0,4050,4050,0]
[33,null,{"$f":"'FR-16(7)(v)-1 Functional'!C244","v":"STREET LIGHTS"},null,null,{"$f":"F90-F167","v":0},0,0,0,0,0]
[34,null,{"$f":"'FR-16(7)(v)-1 Functional'!C245","v":"ADJUSTMENT  "},null,null,{"$f":"F91-F168","v":-5},0,0,-5,-5,0]
[35,null,{"$f":"'FR-16(7)(v)-1 Functional'!C246","v":"CONSTRUCTION NOT CLASSIFIED"},null,null,{"$f":"F92-F169","v":932},0,0,932,932,0]
[36,null,{"$f":"'FR-16(7)(v)-1 Functional'!C247","v":"RWIP"},null,null,0,0,0,0,0,0]
[37,null,{"$f":"'FR-16(7)(v)-1 Functional'!C248","v":"  NET DISTRIBUTION PLANT"},null,null,{"$f":"SUM(F226:F247)","v":4977},{"$f":"SUM(G226:G247)","v":0},0,4977,4977,0]
[38]
[39,"NET PTD PLANT",null,null,null,{"$f":"F96-F173","v":52487830},52482853,0,4977,52487830,0]
[40,"NET TRANS & DIST PLANT",null,null,null,{"$f":"F97-F174","v":52487830},52482853,0,4977,52487830,0]
[41]
[42,"GENERAL & INTANGIBLE PLANT"]
[43,null,{"$f":"'FR-16(7)(v)-1 Functional'!C254","v":"PRODUCTION - DEMAND"},null,null,{"$f":"F100-F177","v":0},0,0,0,0,0]
[44,null,{"$f":"'FR-16(7)(v)-1 Functional'!C255","v":"PRODUCTION - ENERGY"},null,null,{"$f":"F101-F178","v":0},0,0,0,0,0]
[45,null,{"$f":"'FR-16(7)(v)-1 Functional'!C256","v":"TRANSMISSION"},null,null,{"$f":"F102-F179","v":1788965},1788965,0,0,1788965,0]
[46,null,{"$f":"'FR-16(7)(v)-1 Functional'!C257","v":"DISTRIBUTION - DEMAND"},null,null,{"$f":"F103-F180","v":0},0,0,0,0,0]
[47,null,{"$f":"'FR-16(7)(v)-1 Functional'!C258","v":"DISTRIBUTION - CUSTOMER"}]
[48,null,{"$f":"'FR-16(7)(v)-1 Functional'!C259","v":"CUSTOMER ACCOUNTING"},null,null,{"$f":"F105-F182","v":-1435},0,0,-1435,-1435,0]
[49,null,{"$f":"'FR-16(7)(v)-1 Functional'!C260","v":"CUSTOMER SERVICE & INFORMATION"},null,null,{"$f":"F106-F183","v":0},0,0,0,0,0]
[50,null,{"$f":"'FR-16(7)(v)-1 Functional'!C261","v":"SALES"},null,null,0,0,0,0,0,0]
[51,null,{"$f":"'FR-16(7)(v)-1 Functional'!C262","v":"ADJUSTMENT"},null,null,{"$f":"F108-F185","v":-15133},-15145,0,12,-15133,0]
[52,null,{"$f":"'FR-16(7)(v)-1 Functional'!C263","v":"  NET GENERAL & INTANG PLANT"},null,null,{"$f":"SUM(F253:F262)","v":1772397},1773820,0,-1423,1772397,0]
[53]
[54,"COMMON & OTHER PLANT"]
[55,null,{"$f":"'FR-16(7)(v)-1 Functional'!C266","v":"PRODUCTION - DEMAND"},null,null,{"$f":"F112-F189","v":0},0,0,0,0,0]
[56,null,{"$f":"'FR-16(7)(v)-1 Functional'!C267","v":"PRODUCTION - ENERGY"},null,null,{"$f":"F113-F190","v":0},0,0,0,0,0]
[57,null,{"$f":"'FR-16(7)(v)-1 Functional'!C268","v":"TRANSMISSION"},null,null,{"$f":"F114-F191","v":344600},344600,0,0,344600,0]
[58,null,{"$f":"'FR-16(7)(v)-1 Functional'!C269","v":"DISTRIBUTION - DEMAND"},null,null,{"$f":"F115-F192","v":0},0,0,0,0,0]
[59,null,{"$f":"'FR-16(7)(v)-1 Functional'!C270","v":"DISTRIBUTION - CUSTOMER"}]
[60,null,{"$f":"'FR-16(7)(v)-1 Functional'!C271","v":"CUSTOMER ACCOUNTING"},null,null,{"$f":"F117-F194","v":-276},0,0,-276,-276,0]
[61,null,{"$f":"'FR-16(7)(v)-1 Functional'!C272","v":"CUSTOMER SERVICE & INFORMATION"},null,null,{"$f":"F118-F195","v":0},0,0,0,0,0]
[62,null,{"$f":"'FR-16(7)(v)-1 Functional'!C273","v":"SALES"},null,null,0,0,0,0,0,0]
[63,null,{"$f":"'FR-16(7)(v)-1 Functional'!C274","v":"ADJUSTMENT"},null,null,{"$f":"F120-F197","v":-850},-851,0,1,-850,0]
[64,null,{"$f":"'FR-16(7)(v)-1 Functional'!C275","v":"  COMMON & OTHER PLANT IN SERVICE"},null,null,{"$f":"SUM(F265:F274)","v":343474},343749,0,-275,343474,0]
[65]
[66,null,{"$f":"'FR-16(7)(v)-1 Functional'!C277","v":"NET ELECTRIC PLANT IN SERVICE"},null,null,{"$f":"F275+F263+F248+F222+F216","v":54603701},54600422,0,3279,54603701,0]
[]
[{"$f":"co_name","v":"DUKE ENERGY KENTUCKY, INC."},null,null,null,null,null,null,null,null,{"$f":"J1","v":"FR-16(7)(v)-6"}]
[{"$f":"$A$2","v":"TRANSMISSION CLASSIFIED -  ELECTRIC COST OF SERVICE"},null,null,null,null,null,null,null,null,{"$f":"J2","v":"WITNESS RESPONSIBLE:"}]
[{"$f":"case_name","v":"CASE NO: 2019-00271"},null,null,null,null,null,null,null,null,{"$f":"Witness","v":"JAMES E. ZIOLKOWSKI"}]
[{"$f":"data_filing","v":"DATA: 12 MONTHS ACTUAL  & 0 MONTHS ESTIMATED"},null,null,null,null,null,null,null,null,{"$f":"\"PAGE \"&Pages-13&\" OF \"&Pages","v":"PAGE 5 OF 18"}]
[{"$f":"type","v":"TYPE OF FILING: \"X\" ORIGINAL   UPDATED    REVISED  "}]
[]
[]
["LINE",null,null,null,null,{"$f":"$F$8","v":"TOTAL"},"CLASSIFIED",null,null,"TOTAL","ALL"]
["NO.","SUBTRACTIVE RATE BASE ADJUSTMENTS",null,"ALLO",null,{"$f":"$F$9","v":"TRANSMISSION"},{"$f":"G9","v":"DEMAND"},"ENERGY","CUSTOMER","AT ISSUE","OTHER"]
[null,null,"Schedule 5",null,null,null,3,4,5]
[1,"RATE BASE ADJUSTMENTS"]
[2,"ACCUMULATED DEFERRED INCOME TAXES"]
[3," ACCUM DEF INC TAXES (282)"]
[4,null,{"$f":"'FR-16(7)(v)-1 Functional'!C292","v":"LIBERALIZED DEPRECIATION"},{"$f":"'FR-16(7)(v)-1 Functional'!D292","v":"NP29"}," ",{"$f":"'FR-16(7)(v)-1 Functional'!H292","v":3233436},{"$f":"F292-SUM(H292:I292)","v":3233242},{"$f":"ROUND(F292*VLOOKUP(D292,AllocTable_Classified_Transmission,$H$10,FALSE),0)","v":0},{"$f":"ROUND(F292*VLOOKUP(D292,AllocTable_Classified_Transmission,$I$10,FALSE),0)","v":194},{"$f":"SUM(G292:I292)","v":3233436},{"$f":"F292-J292","v":0}]
[5,null,{"$f":"'FR-16(7)(v)-1 Functional'!C293","v":"LEASED METERS"},{"$f":"'FR-16(7)(v)-1 Functional'!D293","v":"NP29"}," ",{"$f":"'FR-16(7)(v)-1 Functional'!H293","v":73342},73338,0,4,73342,0]
[6,null,{"$f":"'FR-16(7)(v)-1 Functional'!C294","v":"CONTRIB AID CONSTR"},{"$f":"'FR-16(7)(v)-1 Functional'!D294","v":"D249"}," ",{"$f":"'FR-16(7)(v)-1 Functional'!H294","v":0},0,0,0,0,0]
[7,null,{"$f":"'FR-16(7)(v)-1 Functional'!C295","v":"TAX INTEREST, EXPENSING, DEPR."},{"$f":"'FR-16(7)(v)-1 Functional'!D295","v":"NP29"}," ",{"$f":"'FR-16(7)(v)-1 Functional'!H295","v":3228519},3228325,0,194,3228519,0]
[8,null,{"$f":"'FR-16(7)(v)-1 Functional'!C296","v":"AFUDC IN DEBT"},{"$f":"'FR-16(7)(v)-1 Functional'!D296","v":"NP29"}," ",{"$f":"'FR-16(7)(v)-1 Functional'!H296","v":0},0,0,0,0,0]
[9,null,{"$f":"'FR-16(7)(v)-1 Functional'!C297","v":"CASUALTY LOSS"},{"$f":"'FR-16(7)(v)-1 Functional'!D297","v":"K411"}," ",{"$f":"'FR-16(7)(v)-1 Functional'!H297","v":-2569},0,0,-2569,-2569,0]
[10,null,{"$f":"'FR-16(7)(v)-1 Functional'!C298","v":"NON-CASH OVERHEADS"},{"$f":"'FR-16(7)(v)-1 Functional'!D298","v":"G229"}," ",{"$f":"'FR-16(7)(v)-1 Functional'!H298","v":0},0,0,0,0,0]
[11,null,{"$f":"'FR-16(7)(v)-1 Functional'!C299","v":"PLANT FAS 109"},{"$f":"'FR-16(7)(v)-1 Functional'!D299","v":"NP29"}," ",{"$f":"'FR-16(7)(v)-1 Functional'!H299","v":0},0,0,0,0,0]
[12,null,{"$f":"'FR-16(7)(v)-1 Functional'!C300","v":"MISCELLANEOUS"},{"$f":"'FR-16(7)(v)-1 Functional'!D300","v":"NP29"},null,{"$f":"'FR-16(7)(v)-1 Functional'!H300","v":3046539},3046356,0,183,3046539,0]
[13,null,{"$f":"'FR-16(7)(v)-1 Functional'!C301","v":"  TOTAL ACCOUNT 282"},null,null,{"$f":"SUM(F292:F300)","v":9579267},9581261,0,-1994,9579267,0]
[14]
[15," ACCUM DEF INC TAXES (283)"]
[16,null,{"$f":"'FR-16(7)(v)-1 Functional'!C304","v":"TRANSITION FROM MISO TO PJM"},{"$f":"'FR-16(7)(v)-1 Functional'!D304","v":"NP29"},null,{"$f":"'FR-16(7)(v)-1 Functional'!H304","v":-173498},{"$f":"F304-SUM(H304:I304)","v":-173488},{"$f":"ROUND(F304*VLOOKUP(D304,AllocTable_Classified_Transmission,$H$10,FALSE),0)","v":0},{"$f":"ROUND(F304*VLOOKUP(D304,AllocTable_Classified_Transmission,$I$10,FALSE),0)","v":-10},{"$f":"SUM(G304:I304)","v":-173498},{"$f":"F304-J304","v":0}]
[17,null,{"$f":"'FR-16(7)(v)-1 Functional'!C305","v":"DEFERRED PLANT COSTS"},{"$f":"'FR-16(7)(v)-1 Functional'!D305","v":"NP29"},null,{"$f":"'FR-16(7)(v)-1 Functional'!H305","v":33800},33798,0,2,33800,0]
[18,null,{"$f":"'FR-16(7)(v)-1 Functional'!C306","v":"MISCELLANEOUS"},{"$f":"'FR-16(7)(v)-1 Functional'!D306","v":"OM39"},null,{"$f":"'FR-16(7)(v)-1 Functional'!H306","v":1345974},1346068,0,-94,1345974,0]
[19,null,{"$f":"'FR-16(7)(v)-1 Functional'!C307","v":"ENVIRONMENTAL RESERVE"},{"$f":"'FR-16(7)(v)-1 Functional'!D307","v":"NP29"},null,{"$f":"'FR-16(7)(v)-1 Functional'!H307","v":0},0,0,0,0,0]
[20,null,{"$f":"'FR-16(7)(v)-1 Functional'!C308","v":"POST IN-SERVICE CARRYING COSTS"},{"$f":"'FR-16(7)(v)-1 Functional'!D308","v":"NP29"},null,{"$f":"'FR-16(7)(v)-1 Functional'!H308","v":0},0,0,0,0,0]
[21,null,{"$f":"'FR-16(7)(v)-1 Functional'!C309","v":"ARO CUMULATIVE EFFECT"},{"$f":"'FR-16(7)(v)-1 Functional'!D309","v":"NP29"},null,{"$f":"'FR-16(7)(v)-1 Functional'!H309","v":0},0,0,0,0,0]
[22,null,{"$f":"'FR-16(7)(v)-1 Functional'!C310","v":"LOSS ON REACQUIRED DEBT"},{"$f":"'FR-16(7)(v)-1 Functional'!D310","v":"D249"},null,{"$f":"'FR-16(7)(v)-1 Functional'!H310","v":0},0,0,0,0,0]
[23,null,{"$f":"'FR-16(7)(v)-1 Functional'!C311","v":"VACATION PAY ACCRUAL"},{"$f":"'FR-16(7)(v)-1 Functional'!D311","v":"A315"},null,{"$f":"'FR-16(7)(v)-1 Functional'!H311","v":0},0,0,0,0,0]
[24,null,{"$f":"'FR-16(7)(v)-1 Functional'!C312","v":"NON-AMI METERS RETIRED EARLY"},{"$f":"'FR-16(7)(v)-1 Functional'!D312","v":"OM39"},null,{"$f":"'FR-16(7)(v)-1 Functional'!H312","v":161497},{"$f":"F312-SUM(H312:I312)","v":161508},0,-11,{"$f":"SUM(G312:I312)","v":161497},{"$f":"F312-J312","v":0}]
[25,null,{"$f":"'FR-16(7)(v)-1 Functional'!C313","v":"PENSION EXPENSE"},{"$f":"'FR-16(7)(v)-1 Functional'!D313","v":"A315"},null,{"$f":"'FR-16(7)(v)-1 Functional'!H313","v":320121},{"$f":"F313-SUM(H313:I313)","v":320364},0,-243,{"$f":"SUM(G313:I313)","v":320121},{"$f":"F313-J313","v":0}]
[26,null,{"$f":"'FR-16(7)(v)-1 Functional'!C314","v":"UNCOLLECTIBLE ACCOUNTS"},{"$f":"'FR-16(7)(v)-1 Functional'!D314","v":"K411"},null,{"$f":"'FR-16(7)(v)-1 Functional'!H314","v":0},0,0,0,0,0]
[27,null,{"$f":"'FR-16(7)(v)-1 Functional'!C315","v":"  TOTAL ACCOUNT 283"},null,null,{"$f":"SUM(F303:F314)","v":1687894},1688250,0,-356,1687894,0]
[28]
[29," OTHER ACCUMULATED DEFERRED INCOME TAXES"]
[30,null,{"$f":"'FR-16(7)(v)-1 Functional'!C318","v":"EXCESS ADIT"},{"$f":"'FR-16(7)(v)-1 Functional'!D318","v":"NP29"},null,{"$f":"'FR-16(7)(v)-1 Functional'!H318","v":3007444},{"$f":"F318-SUM(H318:I318)","v":3007264},{"$f":"ROUND(F318*VLOOKUP(D318,AllocTable_Classified_Transmission,$H$10,FALSE),0)","v":0},{"$f":"ROUND(F318*VLOOKUP(D318,AllocTable_Classified_Transmission,$I$10,FALSE),0)","v":180},{"$f":"SUM(G318:I318)","v":3007444},{"$f":"F318-J318","v":0}]
[31,null,{"$f":"'FR-16(7)(v)-1 Functional'!C319","v":"CUSTOMER SERVICE DEPOSITS"},{"$f":"'FR-16(7)(v)-1 Functional'!D319","v":"NP29"},null,{"$f":"'FR-16(7)(v)-1 Functional'!H319","v":0},{"$f":"F319-SUM(H319:I319)","v":0},{"$f":"ROUND(F319*VLOOKUP(D319,AllocTable_Classified_Transmission,$H$10,FALSE),0)","v":0},{"$f":"ROUND(F319*VLOOKUP(D319,AllocTable_Classified_Transmission,$I$10,FALSE),0)","v":0},{"$f":"SUM(G319:I319)","v":0},{"$f":"F319-J319","v":0}]
[32,null,{"$f":"'FR-16(7)(v)-1 Functional'!C320","v":"POST RETIREMENT BENEFITS"},{"$f":"'FR-16(7)(v)-1 Functional'!D320","v":"NP29"},null,{"$f":"'FR-16(7)(v)-1 Functional'!H320","v":0},{"$f":"F320-SUM(H320:I320)","v":0},{"$f":"ROUND(F320*VLOOKUP(D320,AllocTable_Classified_Transmission,$H$10,FALSE),0)","v":0},{"$f":"ROUND(F320*VLOOKUP(D320,AllocTable_Classified_Transmission,$I$10,FALSE),0)","v":0},{"$f":"SUM(G320:I320)","v":0},{"$f":"F320-J320","v":0}]
[33,null,{"$f":"'FR-16(7)(v)-1 Functional'!C321","v":"INVESTMENT TAX CREDIT"},{"$f":"'FR-16(7)(v)-1 Functional'!D321","v":"NP29"},null,{"$f":"'FR-16(7)(v)-1 Functional'!H321","v":0},{"$f":"F321-SUM(H321:I321)","v":0},{"$f":"ROUND(F321*VLOOKUP(D321,AllocTable_Classified_Transmission,$H$10,FALSE),0)","v":0},{"$f":"ROUND(F321*VLOOKUP(D321,AllocTable_Classified_Transmission,$I$10,FALSE),0)","v":0},{"$f":"SUM(G321:I321)","v":0},{"$f":"F321-J321","v":0}]
[34,null,{"$f":"'FR-16(7)(v)-1 Functional'!C322","v":"  TOTAL OTHER SUBTRACTIVE ADJUSTMENTS"},null,null,{"$f":"SUM(F317:F321)","v":3007444},3007264,0,180,3007444,0]
[35]
[36,{"$f":"'FR-16(7)(v)-1 Functional'!B324","v":"TOTAL SUBTRACTIVE RATE BASE ADJUSTMENTS"},null,null,null,{"$f":"F322+F315+F301","v":14274605},14276775,0,-2170,14274605,0]
[]
[{"$f":"co_name","v":"DUKE ENERGY KENTUCKY, INC."},null,null,null,null,null,null,null,null,{"$f":"J1","v":"FR-16(7)(v)-6"}]
[{"$f":"$A$2","v":"TRANSMISSION CLASSIFIED -  ELECTRIC COST OF SERVICE"},null,null,null,null,null,null,null,null,{"$f":"J2","v":"WITNESS RESPONSIBLE:"}]
[{"$f":"case_name","v":"CASE NO: 2019-00271"},null,null,null,null,null,null,null,null,{"$f":"Witness","v":"JAMES E. ZIOLKOWSKI"}]
[{"$f":"data_filing","v":"DATA: 12 MONTHS ACTUAL  & 0 MONTHS ESTIMATED"},null,null,null,null,null,null,null,null,{"$f":"\"PAGE \"&Pages-12&\" OF \"&Pages","v":"PAGE 6 OF 18"}]
[{"$f":"type","v":"TYPE OF FILING: \"X\" ORIGINAL   UPDATED    REVISED  "}]
[]
[]
["LINE",null,null,null,null,{"$f":"$F$8","v":"TOTAL"},"CLASSIFIED",null,null,"TOTAL","ALL"]
["NO.","ADDITIVE RATE BASE ADJUSTMENTS",null,"ALLO",null,{"$f":"$F$9","v":"TRANSMISSION"},{"$f":"G9","v":"DEMAND"},"ENERGY","CUSTOMER","AT ISSUE","OTHER"]
[null,null,"Schedule 5.1",null,null,null,3,4,5]
[1,"OTHER ACCUMULATED DEFERRED INCOME TAXES"]
[2," ACCUM DEF INC TAXES (190)"]
[3,null,{"$f":"'FR-16(7)(v)-1 Functional'!C338","v":"UNCOLLECTIBLE ACCTS"},{"$f":"'FR-16(7)(v)-1 Functional'!D338","v":"K411"},null,{"$f":"'FR-16(7)(v)-1 Functional'!H338","v":473},{"$f":"F338-SUM(H338:I338)","v":0},{"$f":"ROUND(F338*VLOOKUP(D338,AllocTable_Classified_Transmission,$H$10,FALSE),0)","v":0},{"$f":"ROUND(F338*VLOOKUP(D338,AllocTable_Classified_Transmission,$I$10,FALSE),0)","v":473},{"$f":"SUM(G338:I338)","v":473},{"$f":"F338-J338","v":0}]
[4,null,{"$f":"'FR-16(7)(v)-1 Functional'!C339","v":"CASH FLOW HEDGE"},{"$f":"'FR-16(7)(v)-1 Functional'!D339","v":"A315"},null,{"$f":"'FR-16(7)(v)-1 Functional'!H339","v":12862},{"$f":"F339-SUM(H339:I339)","v":12872},0,-10,12862,0]
[5,null,{"$f":"'FR-16(7)(v)-1 Functional'!C340","v":"RESERVED FOR FUTURE USE"},{"$f":"'FR-16(7)(v)-1 Functional'!D340","v":"NP29"},null,{"$f":"'FR-16(7)(v)-1 Functional'!H340","v":0},0,0,0,0,0]
[6,null,{"$f":"'FR-16(7)(v)-1 Functional'!C341","v":"RESERVED FOR FUTURE USE"},{"$f":"'FR-16(7)(v)-1 Functional'!D341","v":"NP29"},null,{"$f":"'FR-16(7)(v)-1 Functional'!H341","v":0},0,0,0,0,0]
[7,null,{"$f":"'FR-16(7)(v)-1 Functional'!C342","v":"ELECTRIC METERS"},{"$f":"'FR-16(7)(v)-1 Functional'!D342","v":"K407"},null,{"$f":"'FR-16(7)(v)-1 Functional'!H342","v":0},0,0,0,0,0]
[8,null,{"$f":"'FR-16(7)(v)-1 Functional'!C343","v":"UNAMORTIZED DEBT PREMIUM"},{"$f":"'FR-16(7)(v)-1 Functional'!D343","v":"D249"},null,{"$f":"'FR-16(7)(v)-1 Functional'!H343","v":0},0,0,0,0,0]
[9,null,{"$f":"'FR-16(7)(v)-1 Functional'!C344","v":"ARO CUMULATIVE EFFECT"},{"$f":"'FR-16(7)(v)-1 Functional'!D344","v":"NP29"},null,{"$f":"'FR-16(7)(v)-1 Functional'!H344","v":0},0,0,0,0,0]
[10,null,{"$f":"'FR-16(7)(v)-1 Functional'!C345","v":"RETIREMENT PLAN"},{"$f":"'FR-16(7)(v)-1 Functional'!D345","v":"A315"},null,{"$f":"'FR-16(7)(v)-1 Functional'!H345","v":132122},132222,0,-100,132122,0]
[11,null,{"$f":"'FR-16(7)(v)-1 Functional'!C346","v":"POST RETIREMENT BENEFITS "},{"$f":"'FR-16(7)(v)-1 Functional'!D346","v":"A315"},null,{"$f":"'FR-16(7)(v)-1 Functional'!H346","v":0},0,0,0,0,0]
[12,null,{"$f":"'FR-16(7)(v)-1 Functional'!C347","v":"POST RETIREMENT BENEFITS - HEALTH CARE"},{"$f":"'FR-16(7)(v)-1 Functional'!D347","v":"A315"},null,{"$f":"'FR-16(7)(v)-1 Functional'!H347","v":0},0,0,0,0,0]
[13,null,{"$f":"'FR-16(7)(v)-1 Functional'!C348","v":"POST EMPLOYMENT BENEFITS - SFAS 112"},{"$f":"'FR-16(7)(v)-1 Functional'!D348","v":"A315"},null,{"$f":"'FR-16(7)(v)-1 Functional'!H348","v":0},0,0,0,0,0]
[14,null,{"$f":"'FR-16(7)(v)-1 Functional'!C349","v":"SUPPLEMENTAL PENSION PLAN"},{"$f":"'FR-16(7)(v)-1 Functional'!D349","v":"A315"},null,{"$f":"'FR-16(7)(v)-1 Functional'!H349","v":0},0,0,0,0,0]
[15,null,{"$f":"'FR-16(7)(v)-1 Functional'!C350","v":"INCENTIVE PLAN"},{"$f":"'FR-16(7)(v)-1 Functional'!D350","v":"A315"},null,{"$f":"'FR-16(7)(v)-1 Functional'!H350","v":0},0,0,0,0,0]
[16,null,{"$f":"'FR-16(7)(v)-1 Functional'!C351","v":"FEDERAL DEFERRED TAX RECEIVEABLE"},{"$f":"'FR-16(7)(v)-1 Functional'!D351","v":"A315"},null,{"$f":"'FR-16(7)(v)-1 Functional'!H351","v":0},0,0,0,0,0]
[17,null,{"$f":"'FR-16(7)(v)-1 Functional'!C352","v":"MISCELLANEOUS"},{"$f":"'FR-16(7)(v)-1 Functional'!D352","v":"A315"},null,{"$f":"'FR-16(7)(v)-1 Functional'!H352","v":424073},424395,0,-322,424073,0]
[18,null,{"$f":"'FR-16(7)(v)-1 Functional'!C353","v":"DEFERRED TAX"},{"$f":"'FR-16(7)(v)-1 Functional'!D353","v":"A315"},null,{"$f":"'FR-16(7)(v)-1 Functional'!H353","v":193246},193393,0,-147,193246,0]
[19,null,{"$f":"'FR-16(7)(v)-1 Functional'!C354","v":"NET OPERATING LOSS"},{"$f":"'FR-16(7)(v)-1 Functional'!D354","v":"NP29"},null,{"$f":"'FR-16(7)(v)-1 Functional'!H354","v":0},0,0,0,0,0]
[20,null,{"$f":"'FR-16(7)(v)-1 Functional'!C355","v":"401K INCENTIVE PLAN"},{"$f":"'FR-16(7)(v)-1 Functional'!D355","v":"A315"},null,{"$f":"'FR-16(7)(v)-1 Functional'!H355","v":0},0,0,0,0,0]
[21,null,{"$f":"'FR-16(7)(v)-1 Functional'!C356","v":"ENVIRONMENTAL RESERVE"},{"$f":"'FR-16(7)(v)-1 Functional'!D356","v":"NP29"},null,{"$f":"'FR-16(7)(v)-1 Functional'!H356","v":0},0,0,0,0,0]
[22,null,{"$f":"'FR-16(7)(v)-1 Functional'!C357","v":"VACATION PAY ACCRUALS"},{"$f":"'FR-16(7)(v)-1 Functional'!D357","v":"A315"},null,{"$f":"'FR-16(7)(v)-1 Functional'!H357","v":20948},20964,0,-16,20948,0]
[23,null,{"$f":"'FR-16(7)(v)-1 Functional'!C358","v":"DEMAND SIDE MANAGEMENT DEFERRAL"},{"$f":"'FR-16(7)(v)-1 Functional'!D358","v":"NP29"},null,{"$f":"'FR-16(7)(v)-1 Functional'!H358","v":29944},29942,0,2,29944,0]
[24,null,{"$f":"'FR-16(7)(v)-1 Functional'!C359","v":"OPERATING LEASE OBLIGATION"},{"$f":"'FR-16(7)(v)-1 Functional'!D359","v":"NP29"},null,{"$f":"'FR-16(7)(v)-1 Functional'!H359","v":110808},110801,0,7,110808,0]
[25,null,{"$f":"'FR-16(7)(v)-1 Functional'!C360","v":"INJURIES & DAMAGES"},{"$f":"'FR-16(7)(v)-1 Functional'!D360","v":"NP29"},null,{"$f":"'FR-16(7)(v)-1 Functional'!H360","v":0},0,0,0,0,0]
[26,null,{"$f":"'FR-16(7)(v)-1 Functional'!C361","v":"  TOTAL ACCOUNT 190"},null,null,{"$f":"SUM(F337:F360)","v":924476},924589,0,-113,924476,0]
[27]
[28," OTHER"]
[29,null,{"$f":"'FR-16(7)(v)-1 Functional'!C364","v":"RESERVED FOR FUTURE USE"},{"$f":"'FR-16(7)(v)-1 Functional'!D364","v":"NP29"},null,{"$f":"'FR-16(7)(v)-1 Functional'!H364","v":0},{"$f":"F364-SUM(H364:I364)","v":0},{"$f":"ROUND(F364*VLOOKUP(D364,AllocTable_Classified_Transmission,$H$10,FALSE),0)","v":0},{"$f":"ROUND(F364*VLOOKUP(D364,AllocTable_Classified_Transmission,$I$10,FALSE),0)","v":0},{"$f":"SUM(G364:I364)","v":0},{"$f":"F364-J364","v":0}]
[30,null,{"$f":"'FR-16(7)(v)-1 Functional'!C365","v":"RATE CASE EXPENSE REGULATORY ASSET"},{"$f":"'FR-16(7)(v)-1 Functional'!D365","v":"NP29"},null,{"$f":"'FR-16(7)(v)-1 Functional'!H365","v":44892},{"$f":"ROUND(F365*VLOOKUP(D365,AllocTable_Classified_Transmission,$G$10,FALSE),0)","v":44889},{"$f":"ROUND(F365*VLOOKUP(D365,AllocTable_Classified_Transmission,$H$10,FALSE),0)","v":0},{"$f":"ROUND(F365*VLOOKUP(D365,AllocTable_Classified_Transmission,$I$10,FALSE),0)","v":3},{"$f":"SUM(G365:I365)","v":44892},{"$f":"F365-J365","v":0}]
[31,null,{"$f":"'FR-16(7)(v)-1 Functional'!C366","v":"RESERVED FOR FUTURE USE"},{"$f":"'FR-16(7)(v)-1 Functional'!D366","v":"NP29"},null,{"$f":"'FR-16(7)(v)-1 Functional'!H366","v":0},{"$f":"ROUND(F366*VLOOKUP(D366,AllocTable_Classified_Transmission,$G$10,FALSE),0)","v":0},{"$f":"ROUND(F366*VLOOKUP(D366,AllocTable_Classified_Transmission,$H$10,FALSE),0)","v":0},{"$f":"ROUND(F366*VLOOKUP(D366,AllocTable_Classified_Transmission,$I$10,FALSE),0)","v":0},{"$f":"SUM(G366:I366)","v":0},{"$f":"F366-J366","v":0}]
[32,null,{"$f":"'FR-16(7)(v)-1 Functional'!C367","v":"  OTHER"},null,null,{"$f":"SUM(F364:F366)","v":44892},{"$f":"SUM(G363:G366)","v":44889},{"$f":"SUM(H363:H366)","v":0},{"$f":"SUM(I363:I366)","v":3},{"$f":"SUM(J363:J366)","v":44892},{"$f":"SUM(K363:K366)","v":0}]
[33,null,null,null,null," "]
[34,"CONSTRUCTION WORK IN PROGRESS"]
[35,null,{"$f":"'FR-16(7)(v)-1 Functional'!C370","v":"PRODUCTION"},{"$f":"'FR-16(7)(v)-1 Functional'!D370","v":"P129"},null,{"$f":"'FR-16(7)(v)-1 Functional'!H370","v":0},{"$f":"F370-SUM(H370:I370)","v":0},{"$f":"ROUND(F370*VLOOKUP(D370,AllocTable_Classified_Transmission,$H$10,FALSE),0)","v":0},{"$f":"ROUND(F370*VLOOKUP(D370,AllocTable_Classified_Transmission,$I$10,FALSE),0)","v":0},{"$f":"SUM(G370:I370)","v":0},{"$f":"F370-J370","v":0}]
[36,null,{"$f":"'FR-16(7)(v)-1 Functional'!C371","v":"TRANSMISSION"},{"$f":"'FR-16(7)(v)-1 Functional'!D371","v":"T129"},null,{"$f":"'FR-16(7)(v)-1 Functional'!H371","v":0},{"$f":"F371-SUM(H371:I371)","v":0},{"$f":"ROUND(F371*VLOOKUP(D371,AllocTable_Classified_Transmission,$H$10,FALSE),0)","v":0},{"$f":"ROUND(F371*VLOOKUP(D371,AllocTable_Classified_Transmission,$I$10,FALSE),0)","v":0},{"$f":"SUM(G371:I371)","v":0},{"$f":"F371-J371","v":0}]
[37,null,{"$f":"'FR-16(7)(v)-1 Functional'!C372","v":"DISTRIBUTION"},{"$f":"'FR-16(7)(v)-1 Functional'!D372","v":"D149"},null,{"$f":"'FR-16(7)(v)-1 Functional'!H372","v":0},{"$f":"F372-SUM(H372:I372)","v":0},{"$f":"ROUND(F372*VLOOKUP(D372,AllocTable_Classified_Transmission,$H$10,FALSE),0)","v":0},{"$f":"ROUND(F372*VLOOKUP(D372,AllocTable_Classified_Transmission,$I$10,FALSE),0)","v":0},{"$f":"SUM(G372:I372)","v":0},{"$f":"F372-J372","v":0}]
[38,null,{"$f":"'FR-16(7)(v)-1 Functional'!C373","v":"COMMON"},{"$f":"'FR-16(7)(v)-1 Functional'!D373","v":"C129"},null,{"$f":"'FR-16(7)(v)-1 Functional'!H373","v":0},{"$f":"F373-SUM(H373:I373)","v":0},{"$f":"ROUND(F373*VLOOKUP(D373,AllocTable_Classified_Transmission,$H$10,FALSE),0)","v":0},{"$f":"ROUND(F373*VLOOKUP(D373,AllocTable_Classified_Transmission,$I$10,FALSE),0)","v":0},{"$f":"SUM(G373:I373)","v":0},{"$f":"F373-J373","v":0}]
[39,null,{"$f":"'FR-16(7)(v)-1 Functional'!C374","v":"GENERAL"},{"$f":"'FR-16(7)(v)-1 Functional'!D374","v":"G129"},null,{"$f":"'FR-16(7)(v)-1 Functional'!H374","v":0},{"$f":"F374-SUM(H374:I374)","v":0},{"$f":"ROUND(F374*VLOOKUP(D374,AllocTable_Classified_Transmission,$H$10,FALSE),0)","v":0},{"$f":"ROUND(F374*VLOOKUP(D374,AllocTable_Classified_Transmission,$I$10,FALSE),0)","v":0},{"$f":"SUM(G374:I374)","v":0},{"$f":"F374-J374","v":0}]
[40,null,{"$f":"'FR-16(7)(v)-1 Functional'!C375","v":"TOTAL CONSTRUCTION WORK IN PROGRESS"},null,null,{"$f":"SUM(F370:F374)","v":0},0,0,0,0,0]
[41]
[42,{"$f":"'FR-16(7)(v)-1 Functional'!B377","v":"TOTAL ADDITIVE RATE BASE ADJUSTMENTS"},null,null,null,{"$f":"F361+F367+F375","v":969368},969478,0,-110,969368,0]
[]
[{"$f":"co_name","v":"DUKE ENERGY KENTUCKY, INC."},null,null,null,null,null,null,null,null,{"$f":"J1","v":"FR-16(7)(v)-6"}]
[{"$f":"$A$2","v":"TRANSMISSION CLASSIFIED -  ELECTRIC COST OF SERVICE"},null,null,null,null,null,null,null,null,{"$f":"J2","v":"WITNESS RESPONSIBLE:"}]
[{"$f":"case_name","v":"CASE NO: 2019-00271"},null,null,null,null,null,null,null,null,{"$f":"Witness","v":"JAMES E. ZIOLKOWSKI"}]
[{"$f":"data_filing","v":"DATA: 12 MONTHS ACTUAL  & 0 MONTHS ESTIMATED"},null,null,null,null,null,null,null,null,{"$f":"\"PAGE \"&Pages-11&\" OF \"&Pages","v":"PAGE 7 OF 18"}]
[{"$f":"type","v":"TYPE OF FILING: \"X\" ORIGINAL   UPDATED    REVISED  "}]
[]
[]
["LINE",null,null,null,null,{"$f":"$F$8","v":"TOTAL"},"CLASSIFIED",null,null,"TOTAL","ALL"]
["NO.","WORKING CAPITAL",null,"ALLO",null,{"$f":"$F$9","v":"TRANSMISSION"},{"$f":"G9","v":"DEMAND"},"ENERGY","CUSTOMER","AT ISSUE","OTHER"]
[null,null,"Schedule 5.2",null,null,null,3,4,5]
[]
[1,"NET ORIGINAL COST RATE BASE",null,null,null,{"$f":"F277-F324+F377","v":41298464},41293125,0,5339,41298464,0]
[2]
[3,"WORKING CAPITAL"]
[4]
[5,"PLANT MATERIALS & SUPPLIES"]
[6,null,{"$f":"'FR-16(7)(v)-1 Functional'!C395","v":"OTHER MATERIALS & SUPPLIES"},{"$f":"'FR-16(7)(v)-1 Functional'!D395","v":"PD29"},null,{"$f":"'FR-16(7)(v)-1 Functional'!H395","v":729735},{"$f":"ROUND(F395*VLOOKUP(D395,AllocTable_Classified_Transmission,G10,FALSE),0)","v":730319},{"$f":"ROUND(F395*VLOOKUP(D395,AllocTable_Classified_Transmission,H10,FALSE),0)","v":0},{"$f":"ROUND(F395*VLOOKUP(D395,AllocTable_Classified_Transmission,I10,FALSE),0)","v":-584},{"$f":"SUM(G395:I395)","v":729735},{"$f":"F395-J395","v":0}]
[7,null,{"$f":"'FR-16(7)(v)-1 Functional'!C396","v":"FUEL"},{"$f":"'FR-16(7)(v)-1 Functional'!D396","v":"K301"},null,{"$f":"'FR-16(7)(v)-1 Functional'!H396","v":0},{"$f":"ROUND(F396*VLOOKUP(D396,AllocTable_Classified_Transmission,$G$10,FALSE),0)","v":0},{"$f":"ROUND(F396*VLOOKUP(D396,AllocTable_Classified_Transmission,$H$10,FALSE),0)","v":0},{"$f":"ROUND(F396*VLOOKUP(D396,AllocTable_Classified_Transmission,$I$10,FALSE),0)","v":0},{"$f":"SUM(G396:I396)","v":0},{"$f":"F396-J396","v":0}]
[8,null,{"$f":"'FR-16(7)(v)-1 Functional'!C397","v":"EMISSION ALLOWANCES"},{"$f":"'FR-16(7)(v)-1 Functional'!D397","v":"K301"},null,{"$f":"'FR-16(7)(v)-1 Functional'!H397","v":0},{"$f":"ROUND(F397*VLOOKUP(D397,AllocTable_Classified_Transmission,$G$10,FALSE),0)","v":0},{"$f":"ROUND(F397*VLOOKUP(D397,AllocTable_Classified_Transmission,$H$10,FALSE),0)","v":0},{"$f":"ROUND(F397*VLOOKUP(D397,AllocTable_Classified_Transmission,$I$10,FALSE),0)","v":0},{"$f":"SUM(G397:I397)","v":0},{"$f":"F397-J397","v":0}]
[9,null,{"$f":"'FR-16(7)(v)-1 Functional'!C398","v":"  TOTAL PLANT MATS. & SUPPLIES"},null,null,{"$f":"SUM(F394:F397)","v":729735},730319,0,-584,729735,0]
[10,"TOTAL MATERIALS & SUPPLIES",null,null,null,{"$f":"F398","v":729735},730319,0,-584,729735,0]
[11]
[12,"PREPAYMENTS"]
[13,null,{"$f":"'FR-16(7)(v)-1 Functional'!C402","v":"INSURANCE GENERAL"},{"$f":"'FR-16(7)(v)-1 Functional'!D402","v":"NP29"},null,{"$f":"'FR-16(7)(v)-1 Functional'!H402","v":13255},{"$f":"ROUND(F402*VLOOKUP(D402,AllocTable_Classified_Transmission,$G$10,FALSE),0)","v":13254},{"$f":"ROUND(F402*VLOOKUP(D402,AllocTable_Classified_Transmission,$H$10,FALSE),0)","v":0},{"$f":"ROUND(F402*VLOOKUP(D402,AllocTable_Classified_Transmission,$I$10,FALSE),0)","v":1},{"$f":"SUM(G402:I402)","v":13255},{"$f":"F402-J402","v":0}]
[14,null,{"$f":"'FR-16(7)(v)-1 Functional'!C403","v":"EXCISE TAX"},{"$f":"'FR-16(7)(v)-1 Functional'!D403","v":"NP29"},null,{"$f":"'FR-16(7)(v)-1 Functional'!H403","v":0},{"$f":"ROUND(F403*VLOOKUP(D403,AllocTable_Classified_Transmission,$G$10,FALSE),0)","v":0},{"$f":"ROUND(F403*VLOOKUP(D403,AllocTable_Classified_Transmission,$H$10,FALSE),0)","v":0},{"$f":"ROUND(F403*VLOOKUP(D403,AllocTable_Classified_Transmission,$I$10,FALSE),0)","v":0},{"$f":"SUM(G403:I403)","v":0},{"$f":"F403-J403","v":0}]
[15,null,{"$f":"'FR-16(7)(v)-1 Functional'!C404","v":"COLLATERAL ASSET"},{"$f":"'FR-16(7)(v)-1 Functional'!D404","v":"K301"},null,{"$f":"'FR-16(7)(v)-1 Functional'!H404","v":0},{"$f":"ROUND(F404*VLOOKUP(D404,AllocTable_Classified_Transmission,$G$10,FALSE),0)","v":0},{"$f":"ROUND(F404*VLOOKUP(D404,AllocTable_Classified_Transmission,$H$10,FALSE),0)","v":0},{"$f":"ROUND(F404*VLOOKUP(D404,AllocTable_Classified_Transmission,$I$10,FALSE),0)","v":0},{"$f":"SUM(G404:I404)","v":0},{"$f":"F404-J404","v":0}]
[16,null,{"$f":"'FR-16(7)(v)-1 Functional'!C405","v":"  TOTAL PREPAYMENTS"},null,null,{"$f":"SUM(F401:F404)","v":13255},13254,0,1,13255,0]
[17]
[18,"AUTO CALC (O&M-ELECTRIC FUEL COST)/8",null,null,null,{"$f":"IF(WorkingCap=\"No\",0,ROUND((F549-F447-F448)/8,0))","v":0},{"$f":"F407-SUM(H407:I407)","v":0},{"$f":"IF(WorkingCap=\"No\",0,ROUND((H549-H447-H448)/8,0))","v":0},{"$f":"IF(WorkingCap=\"No\",0,ROUND((I549-I447-I448)/8,0))","v":0},{"$f":"SUM(G407:I407)","v":0},{"$f":"F407-J407","v":0}]
[19,"  TOTAL WORKING CASH",null,null,null,{"$f":"F407","v":0},0,0,0,0,0]
[20]
[21,"MISCELLANEOUS WORKING CAPITAL"]
[22,null,{"$f":"'FR-16(7)(v)-1 Functional'!C411","v":"RESERVED FOR FUTURE USE"},{"$f":"'FR-16(7)(v)-1 Functional'!D411","v":"K301"},null,{"$f":"'FR-16(7)(v)-1 Functional'!H411","v":0},{"$f":"ROUND(F411*VLOOKUP(D411,AllocTable_Classified_Transmission,$G$10,FALSE),0)","v":0},{"$f":"ROUND(F411*VLOOKUP(D411,AllocTable_Classified_Transmission,$H$10,FALSE),0)","v":0},{"$f":"ROUND(F411*VLOOKUP(D411,AllocTable_Classified_Transmission,$I$10,FALSE),0)","v":0},{"$f":"SUM(G411:I411)","v":0},{"$f":"F411-J411","v":0}]
[23,null,{"$f":"'FR-16(7)(v)-1 Functional'!C412","v":"PIPP UNCOLLECTIBLES"},{"$f":"'FR-16(7)(v)-1 Functional'!D412","v":"A315"},null,{"$f":"'FR-16(7)(v)-1 Functional'!H412","v":0},{"$f":"ROUND(F412*VLOOKUP(D412,AllocTable_Classified_Transmission,$G$10,FALSE),0)","v":0},{"$f":"ROUND(F412*VLOOKUP(D412,AllocTable_Classified_Transmission,$H$10,FALSE),0)","v":0},{"$f":"ROUND(F412*VLOOKUP(D412,AllocTable_Classified_Transmission,$I$10,FALSE),0)","v":0},{"$f":"SUM(G412:I412)","v":0},{"$f":"F412-J412","v":0}]
[24,null,{"$f":"'FR-16(7)(v)-1 Functional'!C413","v":"RESERVED FOR FUTURE USE"},{"$f":"'FR-16(7)(v)-1 Functional'!D413","v":"D249"},null,{"$f":"'FR-16(7)(v)-1 Functional'!H413","v":0},{"$f":"ROUND(F413*VLOOKUP(D413,AllocTable_Classified_Transmission,$G$10,FALSE),0)","v":0},{"$f":"ROUND(F413*VLOOKUP(D413,AllocTable_Classified_Transmission,$H$10,FALSE),0)","v":0},{"$f":"ROUND(F413*VLOOKUP(D413,AllocTable_Classified_Transmission,$I$10,FALSE),0)","v":0},{"$f":"SUM(G413:I413)","v":0},{"$f":"F413-J413","v":0}]
[25,null,{"$f":"'FR-16(7)(v)-1 Functional'!C414","v":"  TOTAL MISC WORK CAPITAL"},null,null,{"$f":"SUM(F410:F413)","v":0},0,0,0,0,0]
[26]
[27,"TOTAL WORKING CAPITAL",null,null,null,{"$f":"F399+F405+F408+F414","v":742990},743573,0,-583,742990,0]
[28,"PRELIMINARY SUMMARY"]
[29,null,{"$f":"'FR-16(7)(v)-1 Functional'!C418","v":"TOTAL ACCUMULATED DEFERRED INCOME TAXES"},null,null,{"$f":"-F324","v":-14274605},-14276775,0,2170,-14274605,0]
[30,null,{"$f":"'FR-16(7)(v)-1 Functional'!C419","v":"TOTAL OTHER ACCUMULATED DEFERRED INCOME TAXES"},null,null,{"$f":"F377","v":969368},969478,0,-110,969368,0]
[31,null,{"$f":"'FR-16(7)(v)-1 Functional'!C420","v":"TOTAL WORKING CAPITAL"},null,null,{"$f":"F416","v":742990},743573,0,-583,742990,0]
[32,null,{"$f":"'FR-16(7)(v)-1 Functional'!C421","v":"  TOTAL RATE BASE ADJUSTMENTS"},null,null,{"$f":"SUM(F417:F420)","v":-12562247},-12563724,0,1477,{"$f":"SUM(J417:J420)","v":-12562247},0]
[33]
[34,"RATE BASE CALCULATION"]
[35,null,{"$f":"'FR-16(7)(v)-1 Functional'!C424","v":"NET ELECTRIC PLANT IN SERVICE"},null,null,{"$f":"F277","v":54603701},54600422,0,3279,54603701,0]
[36,null,{"$f":"'FR-16(7)(v)-1 Functional'!C425","v":"TOTAL RATE BASE ADJUSTMENTS"},null,null,{"$f":"F421","v":-12562247},-12563724,0,1477,-12562247,0]
[37,null,{"$f":"'FR-16(7)(v)-1 Functional'!C426","v":"  TOTAL RATE BASE"},null,null,{"$f":"SUM(F423:F425)","v":42041454},42036698,0,4756,{"$f":"SUM(J423:J425)","v":42041454},0]
[38]
[39,"TOTAL RATE OF RETURN ALLOWABLE",null,null,null,{"$f":"$F$811","v":6.7100000000000007E-2},{"$f":"F811","v":6.7100000000000007E-2},{"$f":"F811","v":6.7100000000000007E-2},{"$f":"F811","v":6.7100000000000007E-2},{"$f":"F811","v":6.7100000000000007E-2}]
[40,"RETURN ON RATE BASE",null,null,null,{"$f":"ROUND(F428*F426,0)","v":2820982},{"$f":"ROUND(G426*G428,0)","v":2820662},{"$f":"ROUND(H426*H428,0)","v":0},{"$f":"ROUND(I426*I428,0)","v":319},{"$f":"SUM(G429:I429)","v":2820981},{"$f":"ROUND(K426*K428,0)","v":0}]
[41]
[42,{"$f":"'FR-16(7)(v)-1 Functional'!B431","v":"ELECTRIC RATE BASE"},null,{"$f":"'FR-16(7)(v)-1 Functional'!D431","v":"RB99"},null,{"$f":"'FR-16(7)(v)-1 Functional'!H431","v":42040324},{"$f":"ROUND(F431*VLOOKUP(D431,AllocTable_Classified_Transmission,$G$10,FALSE),0)","v":42035700},{"$f":"ROUND(F431*VLOOKUP(D431,AllocTable_Classified_Transmission,$H$10,FALSE),0)","v":0},{"$f":"ROUND(F431*VLOOKUP(D431,AllocTable_Classified_Transmission,$I$10,FALSE),0)","v":4624},{"$f":"SUM(G431:I431)","v":42040324},{"$f":"F431-J431","v":0}]
[43,{"$f":"'FR-16(7)(v)-1 Functional'!B432","v":"TOTAL RATE OF RETURN ALLOWABLE"},null,null,null,{"$f":"RofR","v":6.7110000000000003E-2},{"$f":"RofR","v":6.7110000000000003E-2},{"$f":"RofR","v":6.7110000000000003E-2},{"$f":"RofR","v":6.7110000000000003E-2},{"$f":"RofR","v":6.7110000000000003E-2}]
[44,{"$f":"'FR-16(7)(v)-1 Functional'!B433","v":"RETURN ON RATE BASE"},null,null,null,{"$f":"ROUND(F431*F432,0)","v":2821326},{"$f":"F433-H433-I433","v":2821016},{"$f":"ROUND(H431*H432,0)","v":0},{"$f":"ROUND(I431*I432,0)","v":310},{"$f":"ROUND(J431*J432,0)","v":2821326},{"$f":"F433-J433","v":0}]
[]
[{"$f":"co_name","v":"DUKE ENERGY KENTUCKY, INC."},null,null,null,null,null,null,null,null,{"$f":"J1","v":"FR-16(7)(v)-6"}]
[{"$f":"$A$2","v":"TRANSMISSION CLASSIFIED -  ELECTRIC COST OF SERVICE"},null,null,null,null,null,null,null,null,{"$f":"J2","v":"WITNESS RESPONSIBLE:"}]
[{"$f":"case_name","v":"CASE NO: 2019-00271"},null,null,null,null,null,null,null,null,{"$f":"Witness","v":"JAMES E. ZIOLKOWSKI"}]
[{"$f":"data_filing","v":"DATA: 12 MONTHS ACTUAL  & 0 MONTHS ESTIMATED"},null,null,null,null,null,null,null,null,{"$f":"\"PAGE \"&Pages-10&\" OF \"&Pages","v":"PAGE 8 OF 18"}]
[{"$f":"type","v":"TYPE OF FILING: \"X\" ORIGINAL   UPDATED    REVISED  "}]
[]
[]
["LINE",null,null,null,null,{"$f":"$F$8","v":"TOTAL"},"CLASSIFIED",null,null,"TOTAL","ALL"]
["NO.","O&M EXPENSES",null,"ALLO",null,{"$f":"$F$9","v":"TRANSMISSION"},{"$f":"G9","v":"DEMAND"},"ENERGY","CUSTOMER","AT ISSUE","OTHER"]
[null,null,"Schedule 6",null,null,null,3,4,5]
[1,"PRODUCTION O&M"]
[2,{"$f":"'FR-16(7)(v)-1 Functional'!B446","v":"ENERGY RELATED PRODUCTION O&M"}]
[3,null,{"$f":"'FR-16(7)(v)-1 Functional'!C447","v":"FUEL"},{"$f":"'FR-16(7)(v)-1 Functional'!D447","v":"K302"},null,{"$f":"'FR-16(7)(v)-1 Functional'!H447","v":0},{"$f":"F447-SUM(H447:I447)","v":0},{"$f":"ROUND(F447*VLOOKUP(D447,AllocTable_Classified_Transmission,$H$10,FALSE),0)","v":0},{"$f":"ROUND(F447*VLOOKUP(D447,AllocTable_Classified_Transmission,$I$10,FALSE),0)","v":0},{"$f":"SUM(G447:I447)","v":0},{"$f":"F447-J447","v":0}]
[4,null,{"$f":"'FR-16(7)(v)-1 Functional'!C448","v":"FUEL AND PURCHASED POWER ADJUSTMENT"},{"$f":"'FR-16(7)(v)-1 Functional'!D448","v":"K302"},null,{"$f":"'FR-16(7)(v)-1 Functional'!H448","v":0},0,0,0,0,0]
[5,null,{"$f":"'FR-16(7)(v)-1 Functional'!C449","v":"EMISSION ALLOWANCES"},{"$f":"'FR-16(7)(v)-1 Functional'!D449","v":"K301"},null,{"$f":"'FR-16(7)(v)-1 Functional'!H449","v":0},0,0,0,0,0]
[6,null,{"$f":"'FR-16(7)(v)-1 Functional'!C450","v":"ELIMINATE EMISSION ALLOW & OTHER VAR COST"},{"$f":"'FR-16(7)(v)-1 Functional'!D450","v":"K301"},null,{"$f":"'FR-16(7)(v)-1 Functional'!H450","v":0},0,0,0,0,0]
[7,null,{"$f":"'FR-16(7)(v)-1 Functional'!C451","v":"OTHER PRODUCTION EXPENSE - MAINTENANCE"},{"$f":"'FR-16(7)(v)-1 Functional'!D451","v":"K301"},null,{"$f":"'FR-16(7)(v)-1 Functional'!H451","v":0},0,0,0,0,0]
[8,null,{"$f":"'FR-16(7)(v)-1 Functional'!C452","v":"MISO TRANSMISSION CHARGES - ACCT 555"},{"$f":"'FR-16(7)(v)-1 Functional'!D452","v":"K301"},null,{"$f":"'FR-16(7)(v)-1 Functional'!H452","v":0},0,0,0,0,0]
[9,null,"  TOTAL ENERGY RELATED",null,null,{"$f":"SUM(F447:F452)","v":0},0,0,0,0,0]
[10]
[11,"DEMAND RELATED & OTHER PROD O&M"]
[12,null,{"$f":"'FR-16(7)(v)-1 Functional'!C456","v":"OTHER PRODUCTION EXPENSES - OPERATIONS"},{"$f":"'FR-16(7)(v)-1 Functional'!D456","v":"K201"},null,{"$f":"'FR-16(7)(v)-1 Functional'!H456","v":0},{"$f":"F456-SUM(H456:I456)","v":0},{"$f":"ROUND(F456*VLOOKUP(D456,AllocTable_Classified_Transmission,$H$10,FALSE),0)","v":0},{"$f":"ROUND(F456*VLOOKUP(D456,AllocTable_Classified_Transmission,$I$10,FALSE),0)","v":0},{"$f":"SUM(G456:I456)","v":0},{"$f":"F456-J456","v":0}]
[13,null,"  TOTAL DEMAND REL & OTH PROD O&M ",null,null,{"$f":"SUM(F455:F456)","v":0},0,0,0,0,0]
[14]
[15,"TOTAL PRODUCTION O&M",null,null," ",{"$f":"F457+F453","v":0},0,0,0,0,0]
[16]
[17,"TRANSMISSION O & M"]
[18,null,{"$f":"'FR-16(7)(v)-1 Functional'!C462","v":"TRANSFORMER LEASE PAYMENTS"},{"$f":"'FR-16(7)(v)-1 Functional'!D462","v":"K202"},null,{"$f":"'FR-16(7)(v)-1 Functional'!H462","v":0},{"$f":"F462-SUM(H462:I462)","v":0},{"$f":"ROUND(F462*VLOOKUP(D462,AllocTable_Classified_Transmission,$H$10,FALSE),0)","v":0},{"$f":"ROUND(F462*VLOOKUP(D462,AllocTable_Classified_Transmission,$I$10,FALSE),0)","v":0},{"$f":"SUM(G462:I462)","v":0},{"$f":"F462-J462","v":0}]
[19,null,{"$f":"'FR-16(7)(v)-1 Functional'!C463","v":"OTHER TRANSMISSION"},{"$f":"'FR-16(7)(v)-1 Functional'!D463","v":"K202"},null,{"$f":"'FR-16(7)(v)-1 Functional'!H463","v":23151925},{"$f":"F463-SUM(H463:I463)","v":23151925},{"$f":"ROUND(F463*VLOOKUP(D463,AllocTable_Classified_Transmission,$H$10,FALSE),0)","v":0},{"$f":"ROUND(F463*VLOOKUP(D463,AllocTable_Classified_Transmission,$I$10,FALSE),0)","v":0},{"$f":"SUM(G463:I463)","v":23151925},{"$f":"F463-J463","v":0}]
[20,null,{"$f":"'FR-16(7)(v)-1 Functional'!C464","v":"MISCELLANEOUS ADJUSTMENTS"},{"$f":"'FR-16(7)(v)-1 Functional'!D464","v":"K202"},null,{"$f":"'FR-16(7)(v)-1 Functional'!H464","v":0},{"$f":"F464-SUM(H464:I464)","v":0},{"$f":"ROUND(F464*VLOOKUP(D464,AllocTable_Classified_Transmission,$H$10,FALSE),0)","v":0},{"$f":"ROUND(F464*VLOOKUP(D464,AllocTable_Classified_Transmission,$I$10,FALSE),0)","v":0},{"$f":"SUM(G464:I464)","v":0},{"$f":"F464-J464","v":0}]
[21,null,{"$f":"'FR-16(7)(v)-1 Functional'!C465","v":"NETWORK SERVICE RATES ADJUSTMENT"},{"$f":"'FR-16(7)(v)-1 Functional'!D465","v":"K202"},null,{"$f":"'FR-16(7)(v)-1 Functional'!H465","v":0},{"$f":"F465-SUM(H465:I465)","v":0},{"$f":"ROUND(F465*VLOOKUP(D465,AllocTable_Classified_Transmission,$H$10,FALSE),0)","v":0},{"$f":"ROUND(F465*VLOOKUP(D465,AllocTable_Classified_Transmission,$I$10,FALSE),0)","v":0},{"$f":"SUM(G465:I465)","v":0},{"$f":"F465-J465","v":0}]
[22,null,{"$f":"'FR-16(7)(v)-1 Functional'!C466","v":"  TOTAL TRANSMISSION O & M"},null,null,{"$f":"SUM(F462:F465)","v":23151925},23151925,0,0,23151925,0]
[23]
[24,"REGIONAL MARKET O&M"]
[25,null,{"$f":"'FR-16(7)(v)-1 Functional'!C469","v":"MARKET FACILITATION - MONITORING & COMPLIANCE"},{"$f":"'FR-16(7)(v)-1 Functional'!D469","v":"K202"},null,{"$f":"'FR-16(7)(v)-1 Functional'!H469","v":1826852},{"$f":"F469-SUM(H469:I469)","v":1826852},{"$f":"ROUND(F469*VLOOKUP(D469,AllocTable_Classified_Transmission,$H$10,FALSE),0)","v":0},{"$f":"ROUND(F469*VLOOKUP(D469,AllocTable_Classified_Transmission,$I$10,FALSE),0)","v":0},{"$f":"SUM(G469:I469)","v":1826852},{"$f":"F469-J469","v":0}]
[26,null,"TOTAL REGIONAL MARKET O&M",null,null,{"$f":"SUM(F468:F469)","v":1826852},1826852,0,0,1826852,0]
[27]
[28,"DISTRIBUTION O & M"]
[29,null,{"$f":"'FR-16(7)(v)-1 Functional'!C473","v":"SUBSTATIONS"},{"$f":"'FR-16(7)(v)-1 Functional'!D473","v":"K201"},null,{"$f":"'FR-16(7)(v)-1 Functional'!H473","v":0},{"$f":"F473-SUM(H473:I473)","v":0},{"$f":"ROUND(F473*VLOOKUP(D473,AllocTable_Classified_Transmission,$H$10,FALSE),0)","v":0},{"$f":"ROUND(F473*VLOOKUP(D473,AllocTable_Classified_Transmission,$I$10,FALSE),0)","v":0},{"$f":"SUM(G473:I473)","v":0},{"$f":"F473-J473","v":0}]
[30,null,{"$f":"'FR-16(7)(v)-1 Functional'!C474","v":"POLES, TOWERS & FIXTURES"},{"$f":"'FR-16(7)(v)-1 Functional'!D474","v":"PL49"},null,{"$f":"'FR-16(7)(v)-1 Functional'!H474","v":0},0,0,0,0,0]
[31,null,{"$f":"'FR-16(7)(v)-1 Functional'!C475","v":"OVERHEAD LINES - PRIMARY / DEMAND"},{"$f":"'FR-16(7)(v)-1 Functional'!D475","v":"K205"},null,{"$f":"'FR-16(7)(v)-1 Functional'!H475","v":0},0,0,0,0,0]
[32,null,{"$f":"'FR-16(7)(v)-1 Functional'!C476","v":"OVERHEAD LINES - PRIMARY / CUSTOMER"},{"$f":"'FR-16(7)(v)-1 Functional'!D476","v":"K405"},null,{"$f":"'FR-16(7)(v)-1 Functional'!H476","v":0},{"$f":"F476-SUM(H476:I476)","v":0},{"$f":"ROUND(F476*VLOOKUP(D476,AllocTable_Classified_Transmission,$H$10,FALSE),0)","v":0},{"$f":"ROUND(F476*VLOOKUP(D476,AllocTable_Classified_Transmission,$I$10,FALSE),0)","v":0},{"$f":"SUM(G476:I476)","v":0},{"$f":"F476-J476","v":0}]
[33,null,{"$f":"'FR-16(7)(v)-1 Functional'!C477","v":"OVERHEAD LINES - SECONDARY / DEMAND"},{"$f":"'FR-16(7)(v)-1 Functional'!D477","v":"K206"},null,{"$f":"'FR-16(7)(v)-1 Functional'!H477","v":0},0,0,0,0,0]
[34,null,{"$f":"'FR-16(7)(v)-1 Functional'!C478","v":"OVERHEAD LINES - SECONDARY / CUSTOMER"},{"$f":"'FR-16(7)(v)-1 Functional'!D478","v":"K405"},null,{"$f":"'FR-16(7)(v)-1 Functional'!H478","v":0},0,0,0,0,0]
[35,null,{"$f":"'FR-16(7)(v)-1 Functional'!C479","v":"UNDERGROUND LINES - PRIMARY / DEMAND"},{"$f":"'FR-16(7)(v)-1 Functional'!D479","v":"K205"},null,{"$f":"'FR-16(7)(v)-1 Functional'!H479","v":0},0,0,0,0,0]
[36,null,{"$f":"'FR-16(7)(v)-1 Functional'!C480","v":"UNDERGROUND LINES - PRIMARY / CUSTOMER"},{"$f":"'FR-16(7)(v)-1 Functional'!D480","v":"K405"},null,{"$f":"'FR-16(7)(v)-1 Functional'!H480","v":0},0,0,0,0,0]
[37,null,{"$f":"'FR-16(7)(v)-1 Functional'!C481","v":"UNDERGROUND LINES - SECONDARY / DEMAND"},{"$f":"'FR-16(7)(v)-1 Functional'!D481","v":"K206"},null,{"$f":"'FR-16(7)(v)-1 Functional'!H481","v":0},0,0,0,0,0]
[38,null,{"$f":"'FR-16(7)(v)-1 Functional'!C482","v":"UNDERGROUND LINES - SECONDARY / CUSTOMER"},{"$f":"'FR-16(7)(v)-1 Functional'!D482","v":"K405"},null,{"$f":"'FR-16(7)(v)-1 Functional'!H482","v":0},0,0,0,0,0]
[39,null,{"$f":"'FR-16(7)(v)-1 Functional'!C483","v":"TRANSFORMERS DEMAND RELATED"},{"$f":"'FR-16(7)(v)-1 Functional'!D483","v":"K203"},null,{"$f":"'FR-16(7)(v)-1 Functional'!H483","v":0},0,0,0,0,0]
[40,null,{"$f":"'FR-16(7)(v)-1 Functional'!C484","v":"TRANSFORMERS CUSTOMER RELATED"},{"$f":"'FR-16(7)(v)-1 Functional'!D484","v":"K401"},null,{"$f":"'FR-16(7)(v)-1 Functional'!H484","v":0},{"$f":"F484-SUM(H484:I484)","v":0},{"$f":"ROUND(F484*VLOOKUP(D484,AllocTable_Classified_Transmission,$H$10,FALSE),0)","v":0},{"$f":"ROUND(F484*VLOOKUP(D484,AllocTable_Classified_Transmission,$I$10,FALSE),0)","v":0},{"$f":"SUM(G484:I484)","v":0},{"$f":"F484-J484","v":0}]
[41,null,{"$f":"'FR-16(7)(v)-1 Functional'!C485","v":"OTHER MAINTENANCE"},{"$f":"'FR-16(7)(v)-1 Functional'!D485","v":"K203"},null,{"$f":"'FR-16(7)(v)-1 Functional'!H485","v":0},0,0,0,0,0]
[42,null,{"$f":"'FR-16(7)(v)-1 Functional'!C486","v":"LOAD DISPATCH"},{"$f":"'FR-16(7)(v)-1 Functional'!D486","v":"K215"},null,{"$f":"'FR-16(7)(v)-1 Functional'!H486","v":0},0,0,0,0,0]
[43,null,{"$f":"'FR-16(7)(v)-1 Functional'!C487","v":"METERS"},{"$f":"'FR-16(7)(v)-1 Functional'!D487","v":"K407"},null,{"$f":"'FR-16(7)(v)-1 Functional'!H487","v":248},0,0,248,248,0]
[44,null,{"$f":"'FR-16(7)(v)-1 Functional'!C488","v":"STREET LIGHTING AND SIGNAL SYSTEMS"},{"$f":"'FR-16(7)(v)-1 Functional'!D488","v":"K401"},null,{"$f":"'FR-16(7)(v)-1 Functional'!H488","v":0},0,0,0,0,0]
[45,null,{"$f":"'FR-16(7)(v)-1 Functional'!C489","v":"OTHER OPERATIONS"},{"$f":"'FR-16(7)(v)-1 Functional'!D489","v":"K203"},null,{"$f":"'FR-16(7)(v)-1 Functional'!H489","v":0},0,0,0,0,0]
[46,null,{"$f":"'FR-16(7)(v)-1 Functional'!C490","v":"MISCELLANEOUS EXPENSES ADJUSTMENT"},{"$f":"'FR-16(7)(v)-1 Functional'!D490","v":"K203"},null,{"$f":"'FR-16(7)(v)-1 Functional'!H490","v":0},0,0,0,0,0]
[47,null,{"$f":"'FR-16(7)(v)-1 Functional'!C491","v":"AFFILIATED COMPANY RENTS ADJUSTMENT"},{"$f":"'FR-16(7)(v)-1 Functional'!D491","v":"D249"},null,{"$f":"'FR-16(7)(v)-1 Functional'!H491","v":0},0,0,0,0,0]
[48,null,{"$f":"'FR-16(7)(v)-1 Functional'!C492","v":"  TOTAL DISTRIBUTION O & M"},null," ",{"$f":"SUM(F472:F491)","v":248},0,0,248,248,0]
[49,null," "]
[50,"CUSTOMER ACCOUNTING",null,null,null," "]
[51,null,{"$f":"'FR-16(7)(v)-1 Functional'!C495","v":"CUSTOMER ACCOUNTING EXPENSE"},{"$f":"'FR-16(7)(v)-1 Functional'!D495","v":"K409"},null,{"$f":"'FR-16(7)(v)-1 Functional'!H495","v":0},{"$f":"F495-SUM(H495:I495)","v":0},{"$f":"ROUND(F495*VLOOKUP(D495,AllocTable_Classified_Transmission,$H$10,FALSE),0)","v":0},{"$f":"ROUND(F495*VLOOKUP(D495,AllocTable_Classified_Transmission,$I$10,FALSE),0)","v":0},{"$f":"SUM(G495:I495)","v":0},{"$f":"F495-J495","v":0}]
[52,null,{"$f":"'FR-16(7)(v)-1 Functional'!C496","v":"UNCOLLECTIBLE EXP"},{"$f":"'FR-16(7)(v)-1 Functional'!D496","v":"K411"},null,{"$f":"'FR-16(7)(v)-1 Functional'!H496","v":10465},0,0,10465,10465,0]
[53,null,{"$f":"'FR-16(7)(v)-1 Functional'!C497","v":"METER READING"},{"$f":"'FR-16(7)(v)-1 Functional'!D497","v":"K407"},null,{"$f":"'FR-16(7)(v)-1 Functional'!H497","v":0},0,0,0,0,0]
[54,null,{"$f":"'FR-16(7)(v)-1 Functional'!C498","v":"UNCOLLECTIBLE EXP ADJUSTMENT"},{"$f":"'FR-16(7)(v)-1 Functional'!D498","v":"K411"},null,{"$f":"'FR-16(7)(v)-1 Functional'!H498","v":-14803},0,0,-14803,-14803,0]
[55,null,{"$f":"'FR-16(7)(v)-1 Functional'!C499","v":"CREDIT CARD FEES"},{"$f":"'FR-16(7)(v)-1 Functional'!D499","v":"K407"},null,{"$f":"'FR-16(7)(v)-1 Functional'!H499","v":113},0,0,113,113,0]
[56,null,{"$f":"'FR-16(7)(v)-1 Functional'!C500","v":"ELIMINATE REV & EXP - DSM RIDER"},{"$f":"'FR-16(7)(v)-1 Functional'!D500","v":"K405"},null,{"$f":"'FR-16(7)(v)-1 Functional'!H500","v":0},0,0,0,0,0]
[57,null,{"$f":"'FR-16(7)(v)-1 Functional'!C501","v":"SALE OF A/R"},{"$f":"'FR-16(7)(v)-1 Functional'!D501","v":"K411"},null,{"$f":"'FR-16(7)(v)-1 Functional'!H501","v":2914},0,0,2914,2914,0]
[58,null,{"$f":"'FR-16(7)(v)-1 Functional'!C502","v":"ELIMINATE MISC EXPENSE"},{"$f":"'FR-16(7)(v)-1 Functional'!D502","v":"K405"},null,{"$f":"'FR-16(7)(v)-1 Functional'!H502","v":0},0,0,0,0,0]
[59,null,{"$f":"'FR-16(7)(v)-1 Functional'!C503","v":"  TOTAL CUSTOMER ACCT EXPENSE"},null," ",{"$f":"SUM(F494:F502)","v":-1311},0,0,-1311,-1311,0]
[]
[{"$f":"co_name","v":"DUKE ENERGY KENTUCKY, INC."},null,null,null,null,null,null,null,null,{"$f":"J1","v":"FR-16(7)(v)-6"}]
[{"$f":"$A$2","v":"TRANSMISSION CLASSIFIED -  ELECTRIC COST OF SERVICE"},null,null,null,null,null,null,null,null,{"$f":"J2","v":"WITNESS RESPONSIBLE:"}]
[{"$f":"case_name","v":"CASE NO: 2019-00271"},null,null,null,null,null,null,null,null,{"$f":"Witness","v":"JAMES E. ZIOLKOWSKI"}]
[{"$f":"data_filing","v":"DATA: 12 MONTHS ACTUAL  & 0 MONTHS ESTIMATED"},null,null,null,null,null,null,null,null,{"$f":"\"PAGE \"&Pages-9&\" OF \"&Pages","v":"PAGE 9 OF 18"}]
[{"$f":"type","v":"TYPE OF FILING: \"X\" ORIGINAL   UPDATED    REVISED  "}]
[]
[]
["LINE",null,null,null,null,{"$f":"$F$8","v":"TOTAL"},"CLASSIFIED",null,null,"TOTAL","ALL"]
["NO.","O&M EXPENSES",null,"ALLO",null,{"$f":"$F$9","v":"TRANSMISSION"},{"$f":"G9","v":"DEMAND"},"ENERGY","CUSTOMER","AT ISSUE","OTHER"]
[null,null,"Schedule 6.1",null,null,null,3,4,5]
[1,"CUSTOMER SERVICE & INFORMATION"]
[2,null,{"$f":"'FR-16(7)(v)-1 Functional'!C516","v":"TOTAL CUST SERVICE & INFO"},{"$f":"'FR-16(7)(v)-1 Functional'!D516","v":"K405"},null,{"$f":"'FR-16(7)(v)-1 Functional'!H516","v":0},{"$f":"F516-SUM(H516:I516)","v":0},{"$f":"ROUND(F516*VLOOKUP(D516,AllocTable_Classified_Transmission,$H$10,FALSE),0)","v":0},{"$f":"ROUND(F516*VLOOKUP(D516,AllocTable_Classified_Transmission,$I$10,FALSE),0)","v":0},{"$f":"SUM(G516:I516)","v":0},{"$f":"F516-J516","v":0}]
[3,null,{"$f":"'FR-16(7)(v)-1 Functional'!C517","v":"INFORMATIONAL & INSTRUCTIONAL ADV"},{"$f":"'FR-16(7)(v)-1 Functional'!D517","v":"K405"},null,{"$f":"'FR-16(7)(v)-1 Functional'!H517","v":0},{"$f":"F517-SUM(H517:I517)","v":0},{"$f":"ROUND(F517*VLOOKUP(D517,AllocTable_Classified_Transmission,$H$10,FALSE),0)","v":0},{"$f":"ROUND(F517*VLOOKUP(D517,AllocTable_Classified_Transmission,$I$10,FALSE),0)","v":0},{"$f":"SUM(G517:I517)","v":0},{"$f":"F517-J517","v":0}]
[4,null,{"$f":"'FR-16(7)(v)-1 Functional'!C518","v":"TOTAL CUSTOMER SERV. & INFO."},null," ",{"$f":"SUM(F516:F517)","v":0},0,0,0,0,0]
[5]
[6,"SALES"]
[7,null,{"$f":"'FR-16(7)(v)-1 Functional'!C521","v":"SALES EXPENSE"},{"$f":"'FR-16(7)(v)-1 Functional'!D521","v":"K405"}," ",{"$f":"'FR-16(7)(v)-1 Functional'!H521","v":0},{"$f":"F521-SUM(H521:I521)","v":0},{"$f":"ROUND(F521*VLOOKUP(D521,AllocTable_Classified_Transmission,$H$10,FALSE),0)","v":0},{"$f":"ROUND(F521*VLOOKUP(D521,AllocTable_Classified_Transmission,$I$10,FALSE),0)","v":0},{"$f":"SUM(G521:I521)","v":0},{"$f":"F521-J521","v":0}]
[8,null,{"$f":"'FR-16(7)(v)-1 Functional'!C522","v":"TOTAL SALES EXPENSE"},null," ",{"$f":"SUM(F520:F521)","v":0},0,0,0,0,0]
[9]
[10,"ADMINISTRATIVE & GENERAL "]
[11,null,{"$f":"'FR-16(7)(v)-1 Functional'!C525","v":"PRODUCTION - DEMAND RELATED"},{"$f":"'FR-16(7)(v)-1 Functional'!D525","v":"P349"},null,{"$f":"'FR-16(7)(v)-1 Functional'!H525","v":0},{"$f":"F525-SUM(H525:I525)","v":0},{"$f":"ROUND(F525*VLOOKUP(D525,AllocTable_Classified_Transmission,$H$10,FALSE),0)","v":0},{"$f":"ROUND(F525*VLOOKUP(D525,AllocTable_Classified_Transmission,$I$10,FALSE),0)","v":0},{"$f":"SUM(G525:I525)","v":0},{"$f":"F525-J525","v":0}]
[12,null,{"$f":"'FR-16(7)(v)-1 Functional'!C526","v":"PRODUCTION - ENERGY RELATED"},{"$f":"'FR-16(7)(v)-1 Functional'!D526","v":"E349"},null,{"$f":"'FR-16(7)(v)-1 Functional'!H526","v":0},0,0,0,0,0]
[13,null,"TRANSMISSION",{"$f":"'FR-16(7)(v)-1 Functional'!D527","v":"T349"},null,{"$f":"'FR-16(7)(v)-1 Functional'!H527","v":1467447},{"$f":"F527-SUM(H527:I527)","v":1467447},0,0,{"$f":"SUM(G527:I527)","v":1467447},{"$f":"F527-J527","v":0}]
[14,null,{"$f":"'FR-16(7)(v)-1 Functional'!C528","v":"DISTRIBUTION"},{"$f":"'FR-16(7)(v)-1 Functional'!D528","v":"D349"},null,{"$f":"'FR-16(7)(v)-1 Functional'!H528","v":60},0,0,60,60,0]
[15,null,{"$f":"'FR-16(7)(v)-1 Functional'!C529","v":"CUSTOMER ACCOUNTING"},"C319",null,{"$f":"'FR-16(7)(v)-1 Functional'!H529","v":-1177},0,0,-1177,-1177,0]
[16,null,{"$f":"'FR-16(7)(v)-1 Functional'!C530","v":"CUSTOMER SERVICE & INFORMATION"},"C331",null,{"$f":"'FR-16(7)(v)-1 Functional'!H530","v":0},0,0,0,0,0]
[17,null,{"$f":"'FR-16(7)(v)-1 Functional'!C531","v":"SALES"},"S319",null,{"$f":"'FR-16(7)(v)-1 Functional'!H531","v":0},0,0,0,0,0]
[18,null,{"$f":"'FR-16(7)(v)-1 Functional'!C532","v":"TOT ADMIN & GEN LESS REG EXP"}," ",null,{"$f":"SUM(F525:F531)","v":1466330},1467447,0,-1117,1466330,0]
[19,null,{"$f":"'FR-16(7)(v)-1 Functional'!C533","v":"RATE CASE EXPENSE ADJUSTMENT"},{"$f":"'FR-16(7)(v)-1 Functional'!D533","v":"A315"},null,{"$f":"'FR-16(7)(v)-1 Functional'!H533","v":6293},{"$f":"F533-SUM(H533:I533)","v":6298},{"$f":"ROUND(F533*VLOOKUP(D533,AllocTable_Classified_Transmission,$H$10,FALSE),0)","v":0},{"$f":"ROUND(F533*VLOOKUP(D533,AllocTable_Classified_Transmission,$I$10,FALSE),0)","v":-5},{"$f":"SUM(G533:I533)","v":6293},{"$f":"F533-J533","v":0}]
[20,null,{"$f":"'FR-16(7)(v)-1 Functional'!C534","v":"ELIMINATE MISCELLANEOUS EXPENSES ADJUSTMENT"},{"$f":"'FR-16(7)(v)-1 Functional'!D534","v":"A315"},null,{"$f":"'FR-16(7)(v)-1 Functional'!H534","v":0},0,0,0,0,0]
[21,null,{"$f":"'FR-16(7)(v)-1 Functional'!C535","v":"RIDER ESM ELIMINATION"},{"$f":"'FR-16(7)(v)-1 Functional'!D535","v":"A315"},null,{"$f":"'FR-16(7)(v)-1 Functional'!H535","v":-432553},-432882,0,329,-432553,0]
[22,null,{"$f":"'FR-16(7)(v)-1 Functional'!C536","v":"ELIMINATE DSM"},{"$f":"'FR-16(7)(v)-1 Functional'!D536","v":"A315"},null,{"$f":"'FR-16(7)(v)-1 Functional'!H536","v":-6058},-6063,0,5,-6058,0]
[23,null,{"$f":"'FR-16(7)(v)-1 Functional'!C537","v":"DSM DEFERRAL - ELECTRIC"},{"$f":"'FR-16(7)(v)-1 Functional'!D537","v":"A315"},null,{"$f":"'FR-16(7)(v)-1 Functional'!H537","v":0},0,0,0,0,0]
[24,null,{"$f":"'FR-16(7)(v)-1 Functional'!C538","v":"PENSION ADJUSTMENT"},{"$f":"'FR-16(7)(v)-1 Functional'!D538","v":"A315"},null,{"$f":"'FR-16(7)(v)-1 Functional'!H538","v":-26392},-26412,0,20,-26392,0]
[25,null,{"$f":"'FR-16(7)(v)-1 Functional'!C539","v":"ELIMINATE MISC EXPENSES"},{"$f":"'FR-16(7)(v)-1 Functional'!D539","v":"A315"},null,{"$f":"'FR-16(7)(v)-1 Functional'!H539","v":-25457},-25476,0,19,-25457,0]
[26,null,{"$f":"'FR-16(7)(v)-1 Functional'!C540","v":"ELIMINATE MERGER COSTS AND CREDITS"},{"$f":"'FR-16(7)(v)-1 Functional'!D540","v":"A315"},null,{"$f":"'FR-16(7)(v)-1 Functional'!H540","v":0},{"$f":"F540-SUM(H540:I540)","v":0},0,0,{"$f":"SUM(G540:I540)","v":0},{"$f":"F540-J540","v":0}]
[27,null,{"$f":"'FR-16(7)(v)-1 Functional'!C541","v":"ANNUALIZE KYPSC MAINT TAX"},{"$f":"'FR-16(7)(v)-1 Functional'!D541","v":"A315"},null,{"$f":"'FR-16(7)(v)-1 Functional'!H541","v":0},0,0,0,0,0]
[28,null,{"$f":"'FR-16(7)(v)-1 Functional'!C542","v":"REMOVE INCENTIVE COMP"},{"$f":"'FR-16(7)(v)-1 Functional'!D542","v":"A315"},null,{"$f":"'FR-16(7)(v)-1 Functional'!H542","v":-73492},-73548,0,56,-73492,0]
[29,null,{"$f":"'FR-16(7)(v)-1 Functional'!C543","v":"CREDIT CARD FEES"},{"$f":"'FR-16(7)(v)-1 Functional'!D543","v":"A315"},null,{"$f":"'FR-16(7)(v)-1 Functional'!H543","v":0},0,0,0,0,0]
[30,null,{"$f":"'FR-16(7)(v)-1 Functional'!C544","v":"ELIMINATE INCENTIVE COMPENSATION ADJUSTMENT"},{"$f":"'FR-16(7)(v)-1 Functional'!D544","v":"A315"},null,{"$f":"'FR-16(7)(v)-1 Functional'!H544","v":0},0,0,0,0,0]
[31,null,{"$f":"'FR-16(7)(v)-1 Functional'!C545","v":"AMORTIZATION OF DEFERRAL ASSET"},{"$f":"'FR-16(7)(v)-1 Functional'!D545","v":"A315"},null,{"$f":"'FR-16(7)(v)-1 Functional'!H545","v":0},0,0,0,0,0]
[32,null,{"$f":"'FR-16(7)(v)-1 Functional'!C546","v":"AMORTIZATION OF DEFERRED EXPENSES"},{"$f":"'FR-16(7)(v)-1 Functional'!D546","v":"A315"},null,{"$f":"'FR-16(7)(v)-1 Functional'!H546","v":4624},4628,0,-4,4624,0]
[33,null,{"$f":"'FR-16(7)(v)-1 Functional'!C547","v":"TOTAL ADMIN. & GENERAL"},null," ",{"$f":"SUM(F532:F546)","v":913295},913992,0,-697,913295,0]
[34]
[35,null,{"$f":"'FR-16(7)(v)-1 Functional'!C549","v":"TOTAL O & M EXPENSE"},null,null,{"$f":"F547+F522+F518+F503+F492+F470+F466+F459","v":25891009},25892769,0,-1760,25891009,0]
[]
[{"$f":"co_name","v":"DUKE ENERGY KENTUCKY, INC."},null,null,null,null,null,null,null,null,{"$f":"J1","v":"FR-16(7)(v)-6"}]
[{"$f":"$A$2","v":"TRANSMISSION CLASSIFIED -  ELECTRIC COST OF SERVICE"},null,null,null,null,null,null,null,null,{"$f":"J2","v":"WITNESS RESPONSIBLE:"}]
[{"$f":"case_name","v":"CASE NO: 2019-00271"},null,null,null,null,null,null,null,null,{"$f":"Witness","v":"JAMES E. ZIOLKOWSKI"}]
[{"$f":"data_filing","v":"DATA: 12 MONTHS ACTUAL  & 0 MONTHS ESTIMATED"},null,null,null,null,null,null,null,null,{"$f":"\"PAGE \"&Pages-8&\" OF \"&Pages","v":"PAGE 10 OF 18"}]
[{"$f":"type","v":"TYPE OF FILING: \"X\" ORIGINAL   UPDATED    REVISED  "}]
[]
[]
["LINE",null,null,null,null,{"$f":"$F$8","v":"TOTAL"},"CLASSIFIED",null,null,"TOTAL","ALL"]
["NO.","DEPRECIATION EXPENSE",null,"ALLO",null,{"$f":"$F$9","v":"TRANSMISSION"},{"$f":"G9","v":"DEMAND"},"ENERGY","CUSTOMER","AT ISSUE","OTHER"]
[null,null,"Schedule 7",null,null,null,3,4,5]
[1,"PRODUCTION DEPRECIATION"]
[2,null,{"$f":"'FR-16(7)(v)-1 Functional'!C562","v":"PRODUCTION DEPRECIATION"},{"$f":"'FR-16(7)(v)-1 Functional'!D562","v":"P229"},null,{"$f":"'FR-16(7)(v)-1 Functional'!H562","v":0},{"$f":"F562-SUM(H562:I562)","v":0},{"$f":"ROUND(F562*VLOOKUP(D562,AllocTable_Classified_Transmission,$H$10,FALSE),0)","v":0},{"$f":"ROUND(F562*VLOOKUP(D562,AllocTable_Classified_Transmission,$I$10,FALSE),0)","v":0},{"$f":"SUM(G562:I562)","v":0},{"$f":"F562-J562","v":0}]
[3,null,{"$f":"'FR-16(7)(v)-1 Functional'!C563","v":"  TOTAL PRODUCTION DEPREC EXP."},null,null,{"$f":"SUM(F562:F562)","v":0},0,0,0,0,0]
[4]
[5,"TRANSMISSION DEPRECIATION"]
[6,null,"TRANSMISSION DEPRECIATION",{"$f":"'FR-16(7)(v)-1 Functional'!D566","v":"T229"},null,{"$f":"'FR-16(7)(v)-1 Functional'!H566","v":1469491},{"$f":"F566-SUM(H566:I566)","v":1469491},{"$f":"ROUND(F566*VLOOKUP(D566,AllocTable_Classified_Transmission,$H$10,FALSE),0)","v":0},{"$f":"ROUND(F566*VLOOKUP(D566,AllocTable_Classified_Transmission,$I$10,FALSE),0)","v":0},{"$f":"SUM(G566:I566)","v":1469491},{"$f":"F566-J566","v":0}]
[7,null,{"$f":"'FR-16(7)(v)-1 Functional'!C567","v":"  TOTAL TRANSMISSION DEP. EXP."},null,null,{"$f":"SUM(F566:F566)","v":1469491},1469491,0,0,1469491,0]
[8]
[9,"DISTRIBUTION DEPRECIATION"]
[10,null,{"$f":"'FR-16(7)(v)-1 Functional'!C570","v":"DISTRIBUTION DEPRECIATION"},{"$f":"'FR-16(7)(v)-1 Functional'!D570","v":"D249"},null,{"$f":"'FR-16(7)(v)-1 Functional'!H570","v":138},{"$f":"F570-SUM(H570:I570)","v":0},{"$f":"ROUND(F570*VLOOKUP(D570,AllocTable_Classified_Transmission,$H$10,FALSE),0)","v":0},{"$f":"ROUND(F570*VLOOKUP(D570,AllocTable_Classified_Transmission,$I$10,FALSE),0)","v":138},{"$f":"SUM(G570:I570)","v":138},{"$f":"F570-J570","v":0}]
[11,null,{"$f":"'FR-16(7)(v)-1 Functional'!C571","v":"  TOTAL DIST. DEPREC EXP."},null,null,{"$f":"SUM(F570:F570)","v":138},0,0,138,138,0]
[12,null,null,null,null," "]
[13,"GENERAL DEPRECIATION"]
[14,null,{"$f":"'FR-16(7)(v)-1 Functional'!C574","v":"GENERAL DEPRECIATION"},{"$f":"'FR-16(7)(v)-1 Functional'!D574","v":"G229"},null,{"$f":"'FR-16(7)(v)-1 Functional'!H574","v":250573},{"$f":"F574-SUM(H574:I574)","v":250773},{"$f":"ROUND(F574*VLOOKUP(D574,AllocTable_Classified_Transmission,$H$10,FALSE),0)","v":0},{"$f":"ROUND(F574*VLOOKUP(D574,AllocTable_Classified_Transmission,$I$10,FALSE),0)","v":-200},{"$f":"SUM(G574:I574)","v":250573},{"$f":"F574-J574","v":0}]
[15,null,{"$f":"'FR-16(7)(v)-1 Functional'!C575","v":"  TOTAL GENERAL DEPREC EXP."},null,null,{"$f":"SUM(F574:F574)","v":250573},250773,0,-200,250573,0]
[16]
[17,"COMMON AND OTHER DEPRECIATION"]
[18,null,{"$f":"'FR-16(7)(v)-1 Functional'!C578","v":"COMMON DEPRECIATION"},{"$f":"'FR-16(7)(v)-1 Functional'!D578","v":"C229"},null,{"$f":"'FR-16(7)(v)-1 Functional'!H578","v":1700},{"$f":"F578-SUM(H578:I578)","v":1701},{"$f":"ROUND(F578*VLOOKUP(D578,AllocTable_Classified_Transmission,$H$10,FALSE),0)","v":0},{"$f":"ROUND(F578*VLOOKUP(D578,AllocTable_Classified_Transmission,$I$10,FALSE),0)","v":-1},{"$f":"SUM(G578:I578)","v":1700},{"$f":"F578-J578","v":0}]
[19,null,{"$f":"'FR-16(7)(v)-1 Functional'!C579","v":"  TOTAL COM & OTHER DEPREC EXP."},null,null,{"$f":"SUM(F578:F578)","v":1700},1701,0,-1,1700,0]
[20]
[21]
[22,"TOTAL DEPRECIATION EXPENSE",null,null," ",{"$f":"F579+F575+F571+F567+F563","v":1721902},1721965,0,-63,1721902,0]
[]
[{"$f":"co_name","v":"DUKE ENERGY KENTUCKY, INC."},null,null,null,null,null,null,null,null,{"$f":"J1","v":"FR-16(7)(v)-6"}]
[{"$f":"$A$2","v":"TRANSMISSION CLASSIFIED -  ELECTRIC COST OF SERVICE"},null,null,null,null,null,null,null,null,{"$f":"J2","v":"WITNESS RESPONSIBLE:"}]
[{"$f":"case_name","v":"CASE NO: 2019-00271"},null,null,null,null,null,null,null,null,{"$f":"Witness","v":"JAMES E. ZIOLKOWSKI"}]
[{"$f":"data_filing","v":"DATA: 12 MONTHS ACTUAL  & 0 MONTHS ESTIMATED"},null,null,null,null,null,null,null,null,{"$f":"\"PAGE \"&Pages-7&\" OF \"&Pages","v":"PAGE 11 OF 18"}]
[{"$f":"type","v":"TYPE OF FILING: \"X\" ORIGINAL   UPDATED    REVISED  "}]
[]
[]
["LINE",null,null,null,null,{"$f":"$F$8","v":"TOTAL"},"CLASSIFIED",null,null,"TOTAL","ALL"]
["NO.","OTHER TAXES & MISC EXPENSES",null,"ALLO",null,{"$f":"$F$9","v":"TRANSMISSION"},{"$f":"G9","v":"DEMAND"},"ENERGY","CUSTOMER","AT ISSUE","OTHER"]
[null,null,"Schedule 8",null,null,null,3,4,5]
[1,"TAXES OTHER THAN INC & REV"]
[2," REAL ESTATE & PROPERTY TAX"]
[3,null,{"$f":"'FR-16(7)(v)-1 Functional'!C596","v":"REAL ESTATE & PROPERTY TAX"},{"$f":"'FR-16(7)(v)-1 Functional'!D596","v":"NP29"},null,{"$f":"'FR-16(7)(v)-1 Functional'!H596","v":645686},{"$f":"F596-SUM(H596:I596)","v":645647},{"$f":"ROUND(F596*VLOOKUP(D596,AllocTable_Classified_Transmission,$H$10,FALSE),0)","v":0},{"$f":"ROUND(F596*VLOOKUP(D596,AllocTable_Classified_Transmission,$I$10,FALSE),0)","v":39},{"$f":"SUM(G596:I596)","v":645686},{"$f":"F596-J596","v":0}]
[4,null,{"$f":"'FR-16(7)(v)-1 Functional'!C597","v":"ANNUALIZE PROPERTY TAX"},{"$f":"'FR-16(7)(v)-1 Functional'!D597","v":"NP29"}," ",{"$f":"'FR-16(7)(v)-1 Functional'!H597","v":0},{"$f":"F597-SUM(H597:I597)","v":0},{"$f":"ROUND(F597*VLOOKUP(D597,AllocTable_Classified_Transmission,$H$10,FALSE),0)","v":0},{"$f":"ROUND(F597*VLOOKUP(D597,AllocTable_Classified_Transmission,$I$10,FALSE),0)","v":0},{"$f":"SUM(G597:I597)","v":0},{"$f":"F597-J597","v":0}]
[5,null,{"$f":"'FR-16(7)(v)-1 Functional'!C598","v":"  TOTAL REAL ESTATE & PROPERTY TAX"},null,null,{"$f":"SUM(F596:F597)","v":645686},645647,0,39,645686,0]
[6]
[7," MISCELLANEOUS TAXES"]
[8,null,{"$f":"'FR-16(7)(v)-1 Functional'!C601","v":"PAYROLL "},{"$f":"'FR-16(7)(v)-1 Functional'!D601","v":"A315"},null,{"$f":"'FR-16(7)(v)-1 Functional'!H601","v":87528},{"$f":"F601-SUM(H601:I601)","v":87595},{"$f":"ROUND(F601*VLOOKUP(D601,AllocTable_Classified_Transmission,$H$10,FALSE),0)","v":0},{"$f":"ROUND(F601*VLOOKUP(D601,AllocTable_Classified_Transmission,$I$10,FALSE),0)","v":-67},{"$f":"SUM(G601:I601)","v":87528},{"$f":"F601-J601","v":0}]
[9,null,{"$f":"'FR-16(7)(v)-1 Functional'!C602","v":"ELIMINATE DSM "},{"$f":"'FR-16(7)(v)-1 Functional'!D602","v":"A315"},null,{"$f":"'FR-16(7)(v)-1 Functional'!H602","v":-1722},{"$f":"F602-SUM(H602:I602)","v":-1723},{"$f":"ROUND(F602*VLOOKUP(D602,AllocTable_Classified_Transmission,$H$10,FALSE),0)","v":0},{"$f":"ROUND(F602*VLOOKUP(D602,AllocTable_Classified_Transmission,$I$10,FALSE),0)","v":1},{"$f":"SUM(G602:I602)","v":-1722},{"$f":"F602-J602","v":0}]
[10,null,{"$f":"'FR-16(7)(v)-1 Functional'!C603","v":"FRANCHISE & LICENSE"},{"$f":"'FR-16(7)(v)-1 Functional'!D603","v":"A315"},null,{"$f":"'FR-16(7)(v)-1 Functional'!H603","v":0},{"$f":"F603-SUM(H603:I603)","v":0},{"$f":"ROUND(F603*VLOOKUP(D603,AllocTable_Classified_Transmission,$H$10,FALSE),0)","v":0},{"$f":"ROUND(F603*VLOOKUP(D603,AllocTable_Classified_Transmission,$I$10,FALSE),0)","v":0},{"$f":"SUM(G603:I603)","v":0},{"$f":"F603-J603","v":0}]
[11,null,{"$f":"'FR-16(7)(v)-1 Functional'!C604","v":"ELIMINATE ESM"},{"$f":"'FR-16(7)(v)-1 Functional'!D604","v":"A315"},null,{"$f":"'FR-16(7)(v)-1 Functional'!H604","v":-46561},{"$f":"F604-SUM(H604:I604)","v":-46596},{"$f":"ROUND(F604*VLOOKUP(D604,AllocTable_Classified_Transmission,$H$10,FALSE),0)","v":0},{"$f":"ROUND(F604*VLOOKUP(D604,AllocTable_Classified_Transmission,$I$10,FALSE),0)","v":35},{"$f":"SUM(G604:I604)","v":-46561},{"$f":"F604-J604","v":0}]
[12,null,{"$f":"'FR-16(7)(v)-1 Functional'!C605","v":"  TOTAL MISCELLANEOUS TAXES"},null,null,{"$f":"SUM(F601:F604)","v":39245},39276,0,-31,39245,0]
[13]
[14," MISCELLANEOUS EXPENSES"]
[15,null,{"$f":"'FR-16(7)(v)-1 Functional'!C608","v":"PSC MAINT. EXP ON INCREASE"},{"$f":"'FR-16(7)(v)-1 Functional'!D608","v":"K902"},null,{"$f":"'FR-16(7)(v)-1 Functional'!H608","v":4151},{"$f":"F608-SUM(H608:I608)","v":4154},{"$f":"ROUND(F608*VLOOKUP(D608,AllocTable_Classified_Transmission,$H$10,FALSE),0)","v":0},{"$f":"ROUND(F608*VLOOKUP(D608,AllocTable_Classified_Transmission,$I$10,FALSE),0)","v":-3},{"$f":"SUM(G608:I608)","v":4151},{"$f":"F608-J608","v":0}]
[16,null,{"$f":"'FR-16(7)(v)-1 Functional'!C609","v":"RESERVED FOR FUTURE USE"},{"$f":"'FR-16(7)(v)-1 Functional'!D609","v":"K902"},null,{"$f":"'FR-16(7)(v)-1 Functional'!H609","v":0},{"$f":"F609-SUM(H609:I609)","v":0},{"$f":"ROUND(F609*VLOOKUP(D609,AllocTable_Classified_Transmission,$H$10,FALSE),0)","v":0},{"$f":"ROUND(F609*VLOOKUP(D609,AllocTable_Classified_Transmission,$I$10,FALSE),0)","v":0},{"$f":"SUM(G609:I609)","v":0},{"$f":"F609-J609","v":0}]
[17,null,{"$f":"'FR-16(7)(v)-1 Functional'!C610","v":"  TOTAL MISCELLANEOUS EXPENSES"},null,null,{"$f":"SUM(F608:F609)","v":4151},4154,0,-3,4151,0]
[18]
[19,"TOTAL OTHER TAX & MISC EXPENSE",null,null," ",{"$f":"F605+F598+F610","v":689082},689077,0,5,689082,0]
[20]
[21,"PRELIMINARY SUMMARY"]
[22,null,{"$f":"'FR-16(7)(v)-1 Functional'!C615","v":"TOTAL O&M EXPENSE"},null,null,{"$f":"F549","v":25891009},25892769,0,-1760,25891009,0]
[23,null,{"$f":"'FR-16(7)(v)-1 Functional'!C616","v":"TOTAL DEPRECIATION EXPENSE"},null,null,{"$f":"F582","v":1721902},1721965,0,-63,1721902,0]
[24,null,{"$f":"'FR-16(7)(v)-1 Functional'!C617","v":"TOTAL OTHER TAX & MISC EXPENSE"},null,null,{"$f":"F612","v":689082},689077,0,5,689082,0]
[25,null,{"$f":"'FR-16(7)(v)-1 Functional'!C618","v":"  TOTAL OPER EXP EXCL INCOME & REV TAX"},null,null,{"$f":"SUM(F615:F617)","v":28301993},28303811,0,-1818,28301993,0]
[]
[{"$f":"co_name","v":"DUKE ENERGY KENTUCKY, INC."},null,null,null,null,null,null,null,null,{"$f":"J1","v":"FR-16(7)(v)-6"}]
[{"$f":"$A$2","v":"TRANSMISSION CLASSIFIED -  ELECTRIC COST OF SERVICE"},null,null,null,null,null,null,null,null,{"$f":"J2","v":"WITNESS RESPONSIBLE:"}]
[{"$f":"case_name","v":"CASE NO: 2019-00271"},null,null,null,null,null,null,null,null,{"$f":"Witness","v":"JAMES E. ZIOLKOWSKI"}]
[{"$f":"data_filing","v":"DATA: 12 MONTHS ACTUAL  & 0 MONTHS ESTIMATED"},null,null,null,null,null,null,null,null,{"$f":"\"PAGE \"&Pages-6&\" OF \"&Pages","v":"PAGE 12 OF 18"}]
[{"$f":"type","v":"TYPE OF FILING: \"X\" ORIGINAL   UPDATED    REVISED  "}]
[]
[]
["LINE",null,null,null,null,{"$f":"$F$8","v":"TOTAL"},"CLASSIFIED",null,null,"TOTAL","ALL"]
["NO.","FEDERAL INCOME TAX BASED ON RETURN",null,"ALLO",null,{"$f":"$F$9","v":"TRANSMISSION"},{"$f":"G9","v":"DEMAND"},"ENERGY","CUSTOMER","AT ISSUE","OTHER"]
[null,null,"Schedule 9",null,null,null,3,4,5]
[1,"FEDERAL INCOME TAX DEDUCTIONS"]
[2," AUTOMATIC INTEREST CALCULATION",null,null,null," "]
[3,null,{"$f":"'FR-16(7)(v)-1 Functional'!C632","v":"AUTO PROC INTEREST DED"},{"$f":"'FR-16(7)(v)-1 Functional'!D632","v":"RB99"},null,{"$f":"'FR-16(7)(v)-1 Functional'!H632","v":833993},{"$f":"F632-SUM(H632:I632)","v":833901},{"$f":"ROUND(F632*VLOOKUP(D632,AllocTable_Classified_Transmission,$H$10,FALSE),0)","v":0},{"$f":"ROUND(F632*VLOOKUP(D632,AllocTable_Classified_Transmission,$I$10,FALSE),0)","v":92},{"$f":"SUM(G632:I632)","v":833993},{"$f":"F632-J632","v":0}]
[4,null,{"$f":"'FR-16(7)(v)-1 Functional'!C633","v":"  TOTAL INTEREST EXPENSE"},null,null,{"$f":"F632","v":833993},833901,0,92,833993,0]
[5]
[6," OTHER DEDUCTIONS"]
[7,null,{"$f":"'FR-16(7)(v)-1 Functional'!C636","v":"DEPREC EXCESS TAX-BOOK"},{"$f":"'FR-16(7)(v)-1 Functional'!D636","v":"DE49"},null,{"$f":"'FR-16(7)(v)-1 Functional'!H636","v":-408442},{"$f":"F636-SUM(H636:I636)","v":-408458},{"$f":"ROUND(F636*VLOOKUP(D636,AllocTable_Classified_Transmission,$H$10,FALSE),0)","v":0},{"$f":"ROUND(F636*VLOOKUP(D636,AllocTable_Classified_Transmission,$I$10,FALSE),0)","v":16},{"$f":"SUM(G636:I636)","v":-408442},{"$f":"F636-J636","v":0}]
[8,null,{"$f":"'FR-16(7)(v)-1 Functional'!C637","v":"PERMANENT DIFFERENCES"},{"$f":"'FR-16(7)(v)-1 Functional'!D637","v":"A357"},null,{"$f":"'FR-16(7)(v)-1 Functional'!H637","v":-19588},{"$f":"F637-SUM(H637:I637)","v":-19603},{"$f":"ROUND(F637*VLOOKUP(D637,AllocTable_Classified_Transmission,$H$10,FALSE),0)","v":0},{"$f":"ROUND(F637*VLOOKUP(D637,AllocTable_Classified_Transmission,$I$10,FALSE),0)","v":15},{"$f":"SUM(G637:I637)","v":-19588},{"$f":"F637-J637","v":0}]
[9,null,{"$f":"'FR-16(7)(v)-1 Functional'!C638","v":"TEMPORARY DIFFERENCES"},{"$f":"'FR-16(7)(v)-1 Functional'!D638","v":"DE49"},null,{"$f":"'FR-16(7)(v)-1 Functional'!H638","v":2492252},{"$f":"F638-SUM(H638:I638)","v":2492352},{"$f":"ROUND(F638*VLOOKUP(D638,AllocTable_Classified_Transmission,$H$10,FALSE),0)","v":0},{"$f":"ROUND(F638*VLOOKUP(D638,AllocTable_Classified_Transmission,$I$10,FALSE),0)","v":-100},{"$f":"SUM(G638:I638)","v":2492252},{"$f":"F638-J638","v":0}]
[10,null,{"$f":"'FR-16(7)(v)-1 Functional'!C639","v":"  TOTAL OTHER DEDUCTIONS"},null,null,{"$f":"SUM(F636:F638)","v":2064222},2064291,0,-69,2064222,0]
[11]
[12,"NET DEDUCTIONS AND ADDITIONS",null,null,null,{"$f":"F639+F633","v":2898215},2898192,0,23,2898215,0]
[13]
[14," FED DEFERRED INCOME TAX (410 & 411)"]
[15,null,{"$f":"'FR-16(7)(v)-1 Functional'!C644","v":"DEFERRED INCOME TAXES - NET"},{"$f":"'FR-16(7)(v)-1 Functional'!D644","v":"OM39"},null,{"$f":"'FR-16(7)(v)-1 Functional'!H644","v":1723388},{"$f":"F644-SUM(H644:I644)","v":1723509},{"$f":"ROUND(F644*VLOOKUP(D644,AllocTable_Classified_Transmission,$H$10,FALSE),0)","v":0},{"$f":"ROUND(F644*VLOOKUP(D644,AllocTable_Classified_Transmission,$I$10,FALSE),0)","v":-121},{"$f":"SUM(G644:I644)","v":1723388},{"$f":"F644-J644","v":0}]
[16,null,{"$f":"'FR-16(7)(v)-1 Functional'!C645","v":"AMORT OF DEFERRED MERGER COST"},{"$f":"'FR-16(7)(v)-1 Functional'!D645","v":"A357"},null,{"$f":"'FR-16(7)(v)-1 Functional'!H645","v":0},{"$f":"F645-SUM(H645:I645)","v":0},{"$f":"ROUND(F645*VLOOKUP(D645,AllocTable_Classified_Transmission,$H$10,FALSE),0)","v":0},{"$f":"ROUND(F645*VLOOKUP(D645,AllocTable_Classified_Transmission,$I$10,FALSE),0)","v":0},{"$f":"SUM(G645:I645)","v":0},{"$f":"F645-J645","v":0}]
[17,null,{"$f":"'FR-16(7)(v)-1 Functional'!C646","v":"DIT ADJUSTMENT - S/L DEPRECIATION"},{"$f":"'FR-16(7)(v)-1 Functional'!D646","v":"DE49"},null,{"$f":"'FR-16(7)(v)-1 Functional'!H646","v":0},{"$f":"F646-SUM(H646:I646)","v":0},{"$f":"ROUND(F646*VLOOKUP(D646,AllocTable_Classified_Transmission,$H$10,FALSE),0)","v":0},{"$f":"ROUND(F646*VLOOKUP(D646,AllocTable_Classified_Transmission,$I$10,FALSE),0)","v":0},{"$f":"SUM(G646:I646)","v":0},{"$f":"F646-J646","v":0}]
[18,null,{"$f":"'FR-16(7)(v)-1 Functional'!C647","v":"DIT ADJUSTMENT - ARAM"},{"$f":"'FR-16(7)(v)-1 Functional'!D647","v":"K201"},null,{"$f":"'FR-16(7)(v)-1 Functional'!H647","v":0},{"$f":"F647-SUM(H647:I647)","v":0},{"$f":"ROUND(F647*VLOOKUP(D647,AllocTable_Classified_Transmission,$H$10,FALSE),0)","v":0},{"$f":"ROUND(F647*VLOOKUP(D647,AllocTable_Classified_Transmission,$I$10,FALSE),0)","v":0},{"$f":"SUM(G647:I647)","v":0},{"$f":"F647-J647","v":0}]
[19,null,{"$f":"'FR-16(7)(v)-1 Functional'!C648","v":"DIT ADJUSTMENT - AMORT OF EXCESS DEF TAXES"},{"$f":"'FR-16(7)(v)-1 Functional'!D648","v":"A357"},null,{"$f":"'FR-16(7)(v)-1 Functional'!H648","v":-171765},{"$f":"F648-SUM(H648:I648)","v":-171896},{"$f":"ROUND(F648*VLOOKUP(D648,AllocTable_Classified_Transmission,$H$10,FALSE),0)","v":0},{"$f":"ROUND(F648*VLOOKUP(D648,AllocTable_Classified_Transmission,$I$10,FALSE),0)","v":131},{"$f":"SUM(G648:I648)","v":-171765},{"$f":"F648-J648","v":0}]
[20,null,{"$f":"'FR-16(7)(v)-1 Functional'!C649","v":"  TOTAL FED DEF IT (410 & 411)"},null,null,{"$f":"SUM(F644:F648)","v":1551623},1551613,0,10,1551623,0]
[21]
[22," AMORT INV TAX CREDIT"]
[23,null,{"$f":"'FR-16(7)(v)-1 Functional'!C652","v":"AMORTIZE ITC"},{"$f":"'FR-16(7)(v)-1 Functional'!D652","v":"NP29"},null,{"$f":"'FR-16(7)(v)-1 Functional'!H652","v":20},{"$f":"F652-SUM(H652:I652)","v":20},{"$f":"ROUND(F652*VLOOKUP(D652,AllocTable_Classified_Transmission,$H$10,FALSE),0)","v":0},{"$f":"ROUND(F652*VLOOKUP(D652,AllocTable_Classified_Transmission,$I$10,FALSE),0)","v":0},{"$f":"SUM(G652:I652)","v":20},{"$f":"F652-J652","v":0}]
[24,null,{"$f":"'FR-16(7)(v)-1 Functional'!C653","v":"  TOTAL AMORTIZED ITC"},null,null,{"$f":"SUM(F652:F652)","v":20},20,0,0,20,0]
[25]
[26," OTHER FEDERAL TAX CREDITS"]
[27,null,{"$f":"'FR-16(7)(v)-1 Functional'!C656","v":"FUEL TAX CREDIT"},{"$f":"'FR-16(7)(v)-1 Functional'!D656","v":"K301"},null,{"$f":"'FR-16(7)(v)-1 Functional'!H656","v":0},{"$f":"ROUND(F656*VLOOKUP(D656,AllocTable_Classified_Transmission,$G$10,FALSE),0)","v":0},{"$f":"ROUND(F656*VLOOKUP(D656,AllocTable_Classified_Transmission,$H$10,FALSE),0)","v":0},{"$f":"ROUND(F656*VLOOKUP(D656,AllocTable_Classified_Transmission,$I$10,FALSE),0)","v":0},{"$f":"SUM(G656:I656)","v":0},{"$f":"F656-J656","v":0}]
[28,null,{"$f":"'FR-16(7)(v)-1 Functional'!C657","v":"R&D CREDIT - SECTION 41"},{"$f":"'FR-16(7)(v)-1 Functional'!D657","v":"A315"},null,{"$f":"'FR-16(7)(v)-1 Functional'!H657","v":0},{"$f":"ROUND(F657*VLOOKUP(D657,AllocTable_Classified_Transmission,$G$10,FALSE),0)","v":0},{"$f":"ROUND(F657*VLOOKUP(D657,AllocTable_Classified_Transmission,$H$10,FALSE),0)","v":0},{"$f":"ROUND(F657*VLOOKUP(D657,AllocTable_Classified_Transmission,$I$10,FALSE),0)","v":0},{"$f":"SUM(G657:I657)","v":0},{"$f":"F657-J657","v":0}]
[29,null,"  TOTAL OTHER FEDERAL TAX CREDITS",null,null,{"$f":"SUM(F656:F657)","v":0},0,0,0,0,0]
[30]
[31,"PRELIMINARY SUMMARY"]
[32,null,{"$f":"'FR-16(7)(v)-1 Functional'!C661","v":"TOTAL FED DEF IT (410 & 411)"},null,null,{"$f":"F649","v":1551623},1551613,0,10,1551623,0]
[33,null,{"$f":"'FR-16(7)(v)-1 Functional'!C662","v":"TOTAL AMORTIZED ITC & OTHER FEDERAL TAX CREDITS"},null,null,{"$f":"-F653-F658","v":-20},-20,0,0,-20,0]
[34,null,{"$f":"'FR-16(7)(v)-1 Functional'!C663","v":"  TOTAL FEDERAL TAX ADJUSTMENTS"},null,null,{"$f":"SUM(F661:F662)","v":1551603},1551593,0,10,1551603,0]
[35]
[36,"FEDERAL INCOME TAX COMPUTATION"]
[37,null,"RETURN ON RATE BASE",null,null,{"$f":"F433","v":2821326},{"$f":"G433","v":2821016},{"$f":"H433","v":0},{"$f":"I433","v":310},{"$f":"J433","v":2821326},{"$f":"F666-J666","v":0}]
[38,null,{"$f":"'FR-16(7)(v)-1 Functional'!C667","v":"NET DEDUCTIONS AND ADDITIONS"},null,null,{"$f":"-F641","v":-2898215},{"$f":"-G641","v":-2898192},{"$f":"-H641","v":0},{"$f":"-I641","v":-23},{"$f":"-J641","v":-2898215},{"$f":"F667-J667","v":0}]
[39,null,{"$f":"'FR-16(7)(v)-1 Functional'!C668","v":"TOTAL FEDERAL TAX ADJUSTMENTS"},null,null,{"$f":"F663","v":1551603},{"$f":"G663","v":1551593},{"$f":"H663","v":0},{"$f":"I663","v":10},{"$f":"J663","v":1551603},{"$f":"F668-J668","v":0}]
[40,null,"TOTAL STATE PROV DEF IT (410 & 411)",null,null,{"$f":"F707","v":170449},{"$f":"G707","v":170579},{"$f":"H707","v":0},{"$f":"I707","v":-130},{"$f":"J707","v":170449},{"$f":"F669-J669","v":0}]
[41,null,"RESERVED",null,null,{"$f":"F24","v":0},{"$f":"G24","v":0},{"$f":"H24","v":0},{"$f":"I24","v":0},{"$f":"J24","v":0},{"$f":"F670-J670","v":0}]
[42,null,{"$f":"'FR-16(7)(v)-1 Functional'!C671","v":"  BASE FOR FIT COMPUATION"},null,null,{"$f":"SUM(F666:F670)","v":1645163},1644996,0,167,1645163,0]
[43]
[44,null,{"$f":"'FR-16(7)(v)-1 Functional'!C673","v":"FIT FACTOR K190/(1-K190)"},null,null,{"$f":"ROUND(FIT/(1-FIT),9)","v":0.26582278500000001},{"$f":"ROUND(FIT/(1-FIT),9)","v":0.26582278500000001},{"$f":"ROUND(FIT/(1-FIT),9)","v":0.26582278500000001},{"$f":"ROUND(FIT/(1-FIT),9)","v":0.26582278500000001},null,{"$f":"ROUND(FIT/(1-FIT),9)","v":0.26582278500000001}]
[45,null,{"$f":"'FR-16(7)(v)-1 Functional'!C674","v":"PRELIM FED INCOME TAX"},null,null,{"$f":"ROUND(F673*F671,0)","v":437322},{"$f":"F674-SUM(H674:I674)","v":437278},{"$f":"ROUND(H671*H673,0)","v":0},{"$f":"ROUND(I671*I673,0)","v":44},{"$f":"SUM(G674:I674)","v":437322},{"$f":"F674-J674","v":0}]
[46,null,{"$f":"'FR-16(7)(v)-1 Functional'!C675","v":"TOTAL FEDERAL TAX ADJUSTMENTS"},null,null,{"$f":"F663","v":1551603},{"$f":"G663","v":1551593},{"$f":"H663","v":0},{"$f":"I663","v":10},{"$f":"J663","v":1551603},{"$f":"F675-J675","v":0}]
[47,null,{"$f":"'FR-16(7)(v)-1 Functional'!C676","v":"  NET FED INCOME TAX ALLOWABLE"},null,null,{"$f":"SUM(F674:F675)","v":1988925},1988871,0,54,1988925,0]
[48]
[49,"INCOME TAX BASED ON RETURN"]
[50,"FEDERAL INCOME TAX PAYABLE"]
[51,null,{"$f":"'FR-16(7)(v)-1 Functional'!C680","v":"PRELIM FEDERAL INCOME TAX"},null,null,{"$f":"F674","v":437322},437278,0,44,437322,0]
[53,null,{"$f":"'FR-16(7)(v)-1 Functional'!C681","v":"  NET FED INCOME TAX PAYABLE"},null,null,{"$f":"SUM(F680:F680)","v":437322},437278,0,44,437322,0]
[]
[{"$f":"co_name","v":"DUKE ENERGY KENTUCKY, INC."},null,null,null,null,null,null,null,null,{"$f":"J1","v":"FR-16(7)(v)-6"}]
[{"$f":"$A$2","v":"TRANSMISSION CLASSIFIED -  ELECTRIC COST OF SERVICE"},null,null,null,null,null,null,null,null,{"$f":"J2","v":"WITNESS RESPONSIBLE:"}]
[{"$f":"case_name","v":"CASE NO: 2019-00271"},null,null,null,null,null,null,null,null,{"$f":"Witness","v":"JAMES E. ZIOLKOWSKI"}]
[{"$f":"data_filing","v":"DATA: 12 MONTHS ACTUAL  & 0 MONTHS ESTIMATED"},null,null,null,null,null,null,null,null,{"$f":"\"PAGE \"&Pages-5&\" OF \"&Pages","v":"PAGE 13 OF 18"}]
[{"$f":"type","v":"TYPE OF FILING: \"X\" ORIGINAL   UPDATED    REVISED  "}]
[]
[]
["LINE",null,null,null,null,"TOTAL","CLASSIFIED",null,null,"TOTAL","ALL"]
["NO.","STATE INCOME TAX BASED ON RETURN",null,"Allo",null,"GAS",{"$f":"G9","v":"DEMAND"},{"$f":"H9","v":"ENERGY"},{"$f":"I9","v":"CUSTOMER"},"AT ISSUE","OTHER"]
[null,null,"Schedule 9.1",null,null,null,{"$f":"$G$10","v":3},{"$f":"$H$10","v":4},{"$f":"$I$10","v":5}]
[1,"DEDUCTIONS IN ADDITION TO Y871"]
[2,"KY TAXABLE INCOME ADJUSTMENT",null,{"$f":"'FR-16(7)(v)-1 Functional'!D694","v":"NP29"},null,{"$f":"'FR-16(7)(v)-1 Functional'!H694","v":404860},{"$f":"ROUND(F694*VLOOKUP(D694,AllocTable_Classified_Transmission,$G$10,FALSE),0)","v":404836},{"$f":"ROUND(F694*VLOOKUP(D694,AllocTable_Classified_Transmission,$H$10,FALSE),0)","v":0},{"$f":"ROUND(F694*VLOOKUP(D694,AllocTable_Classified_Transmission,$I$10,FALSE),0)","v":24},{"$f":"SUM(G694:I694)","v":404860},{"$f":"F694-J694","v":0}]
[3,"RESERVED FOR FUTURE USE",null,{"$f":"'FR-16(7)(v)-1 Functional'!D695","v":"NP29"},null,{"$f":"'FR-16(7)(v)-1 Functional'!H695","v":0},{"$f":"ROUND(F695*VLOOKUP(D695,AllocTable_Classified_Transmission,$G$10,FALSE),0)","v":0},{"$f":"ROUND(F695*VLOOKUP(D695,AllocTable_Classified_Transmission,$H$10,FALSE),0)","v":0},{"$f":"ROUND(F695*VLOOKUP(D695,AllocTable_Classified_Transmission,$I$10,FALSE),0)","v":0},{"$f":"SUM(G695:I695)","v":0},{"$f":"F695-J695","v":0}]
[4,"  DEDUCTIONS IN ADD TO Y871",null,null,null,{"$f":"SUM(F694:F695)","v":404860},404836,0,24,404860,0]
[5]
[6,"STATE INCOME TAX ADJUSTMENTS"]
[7,"STATE PROV DEF INC TAX (410 & 411)"]
[8,"OTHER DEFERRED INCOME TAXES - NET",null,{"$f":"'FR-16(7)(v)-1 Functional'!D700","v":"A357"},null,{"$f":"'FR-16(7)(v)-1 Functional'!H700","v":170449},{"$f":"F700-SUM(H700:I700)","v":170579},{"$f":"ROUND(F700*VLOOKUP(D700,AllocTable_Classified_Transmission,$H$10,FALSE),0)","v":0},{"$f":"ROUND(F700*VLOOKUP(D700,AllocTable_Classified_Transmission,$I$10,FALSE),0)","v":-130},{"$f":"SUM(G700:I700)","v":170449},{"$f":"F700-J700","v":0}]
[9,"  TOT STATE PROV DEF IT (410 & 411)",null,null,null,{"$f":"SUM(F700)","v":170449},170579,0,-130,170449,0]
[10]
[11,"OTHER SIT ADJUSTMENTS"]
[12,"CURRENT YEAR PAYABLE ADJUSTMENT",null,{"$f":"'FR-16(7)(v)-1 Functional'!D704","v":"NP29"},null,{"$f":"'FR-16(7)(v)-1 Functional'!H704","v":0},{"$f":"ROUND(F704*VLOOKUP(D704,AllocTable_Classified_Transmission,$G$10,FALSE),0)","v":0},{"$f":"ROUND(F704*VLOOKUP(D704,AllocTable_Classified_Transmission,$H$10,FALSE),0)","v":0},{"$f":"ROUND(F704*VLOOKUP(D704,AllocTable_Classified_Transmission,$I$10,FALSE),0)","v":0},{"$f":"SUM(G704:I704)","v":0},{"$f":"F704-J704","v":0}]
[13,"  OTHER SIT ADJUSMENTS",null,null,null,{"$f":"SUM(F704)","v":0},0,0,0,0,0]
[14]
[15,"TOTAL STATE INC TAX ADJUSTMENT",null,null,null,{"$f":"F705+F701","v":170449},170579,0,-130,170449,0]
[16]
[17,"INCOME TAX BASED ON RETURN"]
[18,"SUMMARY OF SIT CALCULATION"]
[19,"RETURN ON RATE BASE",null,null,null,{"$f":"F433","v":2821326},2821016,0,310,2821326,0]
[20,"NET FED INCOME TAX ALLOWABLE",null,null,null,{"$f":"F676","v":1988925},1988871,0,54,1988925,0]
[21,"NET FED. DED. AND ADDITIONS",null,null,null,{"$f":"-F641","v":-2898215},-2898192,0,-23,-2898215,0]
[22,"DEDUCTIONS IN ADD TO Y871",null,null,null,{"$f":"-F696","v":-404860},-404836,0,-24,-404860,0]
[23,"RESERVED",null,null,null,{"$f":"F24","v":0},0,0,0,0,0]
[24,"TOTAL STATE INC TAX ADJ",null,null,null,{"$f":"F707","v":170449},170579,0,-130,170449,0]
[25,"  BASE FOR SIT COMPUTATION",null,null,null,{"$f":"SUM(F711:F716)","v":1677625},1677438,0,187,1677625,0]
[26]
[27,"SIT FACTOR K192/(1-K192)",null,null,null,{"$f":"ROUND(SIT/(1-SIT),8)","v":5.2282660000000002E-2},{"$f":"ROUND(SIT/(1-SIT),8)","v":5.2282660000000002E-2},{"$f":"ROUND(SIT/(1-SIT),8)","v":5.2282660000000002E-2},{"$f":"ROUND(SIT/(1-SIT),8)","v":5.2282660000000002E-2},null,{"$f":"ROUND(SIT/(1-SIT),8)","v":5.2282660000000002E-2}]
[28,"PRELIMINARY STATE INCOME TAX",null,null,null,{"$f":"ROUND(F717*F719,0)","v":87711},{"$f":"F720-SUM(H720:I720)","v":87701},{"$f":"ROUND(H717*H719,0)","v":0},{"$f":"ROUND(I717*I719,0)","v":10},{"$f":"SUM(G720:I720)","v":87711},{"$f":"F720-J720","v":0}]
[29,"TOTAL STATE INCOME TAX ADJ.",null,null,null,{"$f":"F707","v":170449},170579,0,-130,170449,0]
[30,"  NET STATE INC TAX ALLOWABLE",null,null,null,{"$f":"F721+F720","v":258160},258280,0,-120,258160,0]
[31]
[32,"STATE INCOME TAX PAYABLE"]
[33,"PRELIMINARY STATE INCOME TAX",null,null,null,{"$f":"F720","v":87711},87701,0,10,87711,0]
[34,"OTHER SIT ADJUSTMENTS",null,null,null,{"$f":"F705","v":0},0,0,0,0,0]
[35,"  NET STATE INCOME TAX PAYABLE",null,null,null,{"$f":"F725+F726","v":87711},87701,0,10,87711,0]
[36]
[37,"COMPOSITE TAX RATE",null,null,null,{"$f":"(SIT*(1-FIT))+((1-SIT)*(1-FIT)*RevTax)+FIT","v":0.24925115},0.24925115,0.24925115,0.24925115,0.24925115,0.24925115]
[]
[{"$f":"co_name","v":"DUKE ENERGY KENTUCKY, INC."},null,null,null,null,null,null,null,null,{"$f":"J1","v":"FR-16(7)(v)-6"}]
[{"$f":"$A$2","v":"TRANSMISSION CLASSIFIED -  ELECTRIC COST OF SERVICE"},null,null,null,null,null,null,null,null,{"$f":"J2","v":"WITNESS RESPONSIBLE:"}]
[{"$f":"case_name","v":"CASE NO: 2019-00271"},null,null,null,null,null,null,null,null,{"$f":"Witness","v":"JAMES E. ZIOLKOWSKI"}]
[{"$f":"data_filing","v":"DATA: 12 MONTHS ACTUAL  & 0 MONTHS ESTIMATED"},null,null,null,null,null,null,null,null,{"$f":"\"PAGE \"&Pages-4&\" OF \"&Pages","v":"PAGE 14 OF 18"}]
[{"$f":"type","v":"TYPE OF FILING: \"X\" ORIGINAL   UPDATED    REVISED  "}]
[]
[]
["LINE",null,null,null,null,{"$f":"$F$8","v":"TOTAL"},"CLASSIFIED",null,null,"TOTAL","ALL"]
["NO.","COST OF SERVICE COMPUTATION",null,"ALLO",null,{"$f":"$F$9","v":"TRANSMISSION"},{"$f":"G9","v":"DEMAND"},"ENERGY","CUSTOMER","AT ISSUE","OTHER"]
[null,null,"Schedule 10",null,null,null,3,4,5]
[1,"OTHER OPERATING REVENUES"]
[2,null,{"$f":"'FR-16(7)(v)-1 Functional'!C742","v":"MISC SERVICE REVENUE"},{"$f":"'FR-16(7)(v)-1 Functional'!D742","v":"D249"},null,{"$f":"'FR-16(7)(v)-1 Functional'!H742","v":3},{"$f":"ROUND(F742*VLOOKUP(D742,AllocTable_Classified_Transmission,$G$10,FALSE),0)","v":0},{"$f":"ROUND(F742*VLOOKUP(D742,AllocTable_Classified_Transmission,$H$10,FALSE),0)","v":0},{"$f":"ROUND(F742*VLOOKUP(D742,AllocTable_Classified_Transmission,$I$10,FALSE),0)","v":3},{"$f":"SUM(G742:I742)","v":3},{"$f":"F742-J742","v":0}]
[3,null,{"$f":"'FR-16(7)(v)-1 Functional'!C743","v":"INTERDEPARTMENTAL"},{"$f":"'FR-16(7)(v)-1 Functional'!D743","v":"K902"},null,{"$f":"'FR-16(7)(v)-1 Functional'!H743","v":0},0,0,0,0,{"$f":"F743-J743","v":0}]
[4,null,{"$f":"'FR-16(7)(v)-1 Functional'!C744","v":"POLE & LINE ATTACHMENTS"},{"$f":"'FR-16(7)(v)-1 Functional'!D744","v":"D249"},null,{"$f":"'FR-16(7)(v)-1 Functional'!H744","v":2},0,0,2,2,0]
[5,null,{"$f":"'FR-16(7)(v)-1 Functional'!C745","v":"RENTS"},{"$f":"'FR-16(7)(v)-1 Functional'!D745","v":"D249"},null,{"$f":"'FR-16(7)(v)-1 Functional'!H745","v":11},0,0,11,11,0]
[6,null,{"$f":"'FR-16(7)(v)-1 Functional'!C746","v":"TRANSMISSION CHARGE PTP"},{"$f":"'FR-16(7)(v)-1 Functional'!D746","v":"T229"},null,{"$f":"'FR-16(7)(v)-1 Functional'!H746","v":144996},144996,0,0,144996,{"$f":"F746-J746","v":0}]
[7,null,{"$f":"'FR-16(7)(v)-1 Functional'!C747","v":"PJM REACTIVE REVENUE"},{"$f":"'FR-16(7)(v)-1 Functional'!D747","v":"K401"},null,{"$f":"'FR-16(7)(v)-1 Functional'!H747","v":0},0,0,0,0,{"$f":"F747-J747","v":0}]
[8,null,{"$f":"'FR-16(7)(v)-1 Functional'!C748","v":"OTHER TRANSMISSION REVENUES"},{"$f":"'FR-16(7)(v)-1 Functional'!D748","v":"T229"},null,{"$f":"'FR-16(7)(v)-1 Functional'!H748","v":24504},24504,0,0,24504,{"$f":"F748-J748","v":0}]
[9,null,{"$f":"'FR-16(7)(v)-1 Functional'!C749","v":"FIXED BILL PREMIUM"},{"$f":"'FR-16(7)(v)-1 Functional'!D749","v":"K902"},null,{"$f":"'FR-16(7)(v)-1 Functional'!H749","v":0},0,0,0,0,0]
[10,null,{"$f":"'FR-16(7)(v)-1 Functional'!C750","v":"  TOTAL OTHER OPERATING REVS"},null,null,{"$f":"SUM(F742:F749)","v":169516},169500,0,16,169516,0]
[11]
[12,"COST OF SERVICE COMPUTATION"]
[13,null,{"$f":"'FR-16(7)(v)-1 Functional'!C753","v":"TOTAL OP EXP EXC INC & REV TAX"},null,null,{"$f":"F618","v":28301993},{"$f":"G618","v":28303811},{"$f":"H618","v":0},{"$f":"I618","v":-1818},{"$f":"J618","v":28301993},{"$f":"F753-J753","v":0}]
[14,null,"RETURN ON RATE BASE",null,null,{"$f":"F433","v":2821326},{"$f":"G433","v":2821016},{"$f":"H433","v":0},{"$f":"I433","v":310},{"$f":"J433","v":2821326},{"$f":"F754-J754","v":0}]
[15,null,{"$f":"'FR-16(7)(v)-1 Functional'!C755","v":"NET FED INCOME TAX ALLOWABLE"},null,null,{"$f":"F676","v":1988925},{"$f":"G676","v":1988871},{"$f":"H676","v":0},{"$f":"I676","v":54},{"$f":"J676","v":1988925},{"$f":"F755-J755","v":0}]
[16,null,{"$f":"'FR-16(7)(v)-1 Functional'!C756","v":"NET STATE INCOME TAX ALLOWABLE"},null,null,{"$f":"F722","v":258160},{"$f":"G722","v":258280},{"$f":"H722","v":0},{"$f":"I722","v":-120},{"$f":"J722","v":258160},{"$f":"F756-J756","v":0}]
[17,null,{"$f":"'FR-16(7)(v)-1 Functional'!C757","v":"TOTAL OTHER OPERATING REVENUES"},null,null,{"$f":"-F750","v":-169516},{"$f":"-G750","v":-169500},{"$f":"-H750","v":0},{"$f":"-I750","v":-16},{"$f":"-J750","v":-169516},{"$f":"F757-J757","v":0}]
[18,null,{"$f":"'FR-16(7)(v)-1 Functional'!C758","v":"  SUBTOTAL B"},null,null,{"$f":"SUM(F752:F757)","v":33200888},{"$f":"SUM(G752:G757)","v":33202478},{"$f":"SUM(H752:H757)","v":0},{"$f":"SUM(I752:I757)","v":-1590},{"$f":"SUM(J752:J757)","v":33200888},{"$f":"J758-F758","v":0}]
[19]
[20,null,{"$f":"'FR-16(7)(v)-1 Functional'!C760","v":"TOTAL OTHER OPERATING REVENUES"},null,null,{"$f":"-F757","v":169516},{"$f":"-G757","v":169500},{"$f":"-H757","v":0},{"$f":"-I757","v":16},{"$f":"-J757","v":169516},{"$f":"F760-J760","v":0}]
[21,null,{"$f":"'FR-16(7)(v)-1 Functional'!C761","v":"LESS: REVS EXCL FROM REV TAX CALC"},null,null,{"$f":"'FR-16(7)(v)-4 PROD Energy'!F989","v":0},{"$f":"G989","v":0},{"$f":"H989","v":0},{"$f":"I989","v":0},{"$f":"SUM(G761:I761)","v":0},{"$f":"F761-J761","v":0}]
[22,null,{"$f":"'FR-16(7)(v)-1 Functional'!C762","v":"OTHER OPERATING REVS TO BE TAXED"},null,null,{"$f":"F760-F761","v":169516},169500,0,16,169516,0]
[23]
[24,null,{"$f":"'FR-16(7)(v)-1 Functional'!C764","v":"REVENUE TAX FACTOR"},null,null,{"$f":"ROUND(F817/(1-F817),8)","v":0},0,0,0,0,0]
[25,null,{"$f":"'FR-16(7)(v)-1 Functional'!C765","v":"REVENUE TAX ON OTHER OPER. REVS"},null,null,{"$f":"ROUND(F764*F762,0)","v":0},{"$f":"ROUND(G764*G762,0)","v":0},{"$f":"ROUND(H764*H762,0)","v":0},{"$f":"ROUND(I764*I762,0)","v":0},{"$f":"SUM(G765:I765)","v":0},{"$f":"F765-J765","v":0}]
[26,null,{"$f":"'FR-16(7)(v)-1 Functional'!C766","v":"REVENUE TAX ON COST OF SERVICE"},null,null,{"$f":"ROUND(F764*F758,0)","v":0},{"$f":"ROUND(G764*G758,0)","v":0},{"$f":"ROUND(H764*H758,0)","v":0},{"$f":"ROUND(I764*I758,0)","v":0},{"$f":"SUM(G766:I766)","v":0},{"$f":"F766-J766","v":0}]
[27,null,{"$f":"'FR-16(7)(v)-1 Functional'!C767","v":"TOTAL REVENUE TAX"},null,null,{"$f":"F766+F765","v":0},0,0,0,0,0]
[28]
[29,null,"RESERVED",null,null,{"$f":"F24","v":0},{"$f":"G24","v":0},{"$f":"H24","v":0},{"$f":"I24","v":0},{"$f":"J24","v":0},{"$f":"F769-J769","v":0}]
[30,null,{"$f":"'FR-16(7)(v)-1 Functional'!C770","v":"  TOTAL ELECTRIC COST OF SERVICE"},null,null,{"$f":"F769+F767+F758","v":33200888},33202478,0,-1590,33200888,0]
[31]
[32,"PROPOSED REVENUES",null,null,null,{"$f":"F868","v":16511879},{"$f":"G868","v":16524428},{"$f":"H868","v":0},{"$f":"I868","v":-12549},{"$f":"SUM(G772:I772)","v":16511879},{"$f":"F772-J772","v":0}]
[33,"TOTAL ELECTRIC COST OF SERVICE",null,null,null,{"$f":"-F770","v":-33200888},{"$f":"-G770","v":-33202478},{"$f":"-H770","v":0},{"$f":"-I770","v":1590},{"$f":"SUM(G773:I773)","v":-33200888},{"$f":"F773-J773","v":0}]
[34,"EXCESS REVENUES",null,null,null,{"$f":"F773+F772","v":-16689009},{"$f":"G773+G772","v":-16678050},{"$f":"H773+H772","v":0},{"$f":"I773+I772","v":-10959},{"$f":"SUM(G774:I774)","v":-16689009},{"$f":"F774-J774","v":0}]
[35,"COMPOSITE TAX RATE",null,null,null,{"$f":"F729","v":0.24925115},0.24925115,0.24925115,0.24925115,0.24925115,0.24925115]
[36,"EXCESS TAX",null,null,null,{"$f":"ROUND(F775*F774,0)","v":-4159755},{"$f":"F776-SUM(H776:I776)","v":-4157023},{"$f":"ROUND(H775*H774,0)","v":0},{"$f":"ROUND(I775*I774,0)","v":-2732},{"$f":"SUM(G776:I776)","v":-4159755},{"$f":"F776-J776","v":0}]
[37,"EXCESS RETURN",null,null,null,{"$f":"F774-F776","v":-12529254},{"$f":"F777-SUM(H777:I777)","v":-12521027},{"$f":"H774-H776","v":0},{"$f":"I774-I776","v":-8227},{"$f":"SUM(G777:I777)","v":-12529254},{"$f":"F777-J777","v":0}]
[]
[{"$f":"co_name","v":"DUKE ENERGY KENTUCKY, INC."},null,null,null,null,null,null,null,null,{"$f":"J1","v":"FR-16(7)(v)-6"}]
[{"$f":"$A$2","v":"TRANSMISSION CLASSIFIED -  ELECTRIC COST OF SERVICE"},null,null,null,null,null,null,null,null,{"$f":"J2","v":"WITNESS RESPONSIBLE:"}]
[{"$f":"case_name","v":"CASE NO: 2019-00271"},null,null,null,null,null,null,null,null,{"$f":"Witness","v":"JAMES E. ZIOLKOWSKI"}]
[{"$f":"data_filing","v":"DATA: 12 MONTHS ACTUAL  & 0 MONTHS ESTIMATED"},null,null,null,null,null,null,null,null,{"$f":"\"PAGE \"&Pages-3&\" OF \"&Pages","v":"PAGE 15 OF 18"}]
[{"$f":"type","v":"TYPE OF FILING: \"X\" ORIGINAL   UPDATED    REVISED  "}]
[]
[]
["LINE",null,null,null,null,{"$f":"$F$8","v":"TOTAL"},"CLASSIFIED",null,null,"TOTAL","ALL"]
["NO.","ROR, TAX RATES & SPEC FACTORS",null,"ALLO",null,{"$f":"$F$9","v":"TRANSMISSION"},{"$f":"G9","v":"DEMAND"},"ENERGY","CUSTOMER","AT ISSUE","OTHER"]
[null,null,"Schedule 11",null,null,null,3,4,5]
[1,"RATE OF RETURN"]
[2," CAPITALIZATION AMOUNTS",null,null,null,null,"RATIO"]
[3,null,{"$f":"'FR-16(7)(v)-1 Functional'!C791","v":"LONG TERM DEBT"},null,null,{"$f":"'FR-16(7)(v)-1 Functional'!$F$791","v":665948506},{"$f":"IF(TotalCap=0,0,ROUND(F791/TotalCap,4))","v":0.45929999999999999}]
[4,null,{"$f":"'FR-16(7)(v)-1 Functional'!C792","v":"PREFERRED STOCK"},null,null,{"$f":"'FR-16(7)(v)-1 Functional'!$F$792","v":0},{"$f":"IF(TotalCap=0,0,ROUND(F792/TotalCap,4))","v":0}]
[5,null,{"$f":"'FR-16(7)(v)-1 Functional'!C793","v":"COMMON STOCK"},null,null,{"$f":"[0]!Equity","v":699348680},{"$f":"1-G791-G792-G794-G795","v":0.48239999999999994}]
[6,null,{"$f":"'FR-16(7)(v)-1 Functional'!C794","v":"SHORT TERM DEBT"},null,null,{"$f":"'FR-16(7)(v)-1 Functional'!$F$794","v":84600060},{"$f":"IF(TotalCap=0,0,ROUND(F794/TotalCap,4))","v":5.8299999999999998E-2}]
[7,null,{"$f":"'FR-16(7)(v)-1 Functional'!C795","v":"UNAMORTIZED DISCOUNT"},null,null,{"$f":"'FR-16(7)(v)-1 Functional'!$F$795","v":0},{"$f":"IF(TotalCap=0,0,ROUND(F795/TotalCap,4))","v":0}]
[8,null,{"$f":"'FR-16(7)(v)-1 Functional'!C796","v":"  TOTAL"},null,null,{"$f":"SUM(F790:F795)","v":1449897246},{"$f":"SUM(G791:G795)","v":1}]
[9]
[10," COST OF CAPITAL"]
[11,null,{"$f":"'FR-16(7)(v)-1 Functional'!C799","v":"LONG TERM DEBT"},null,null,{"$f":"'FR-16(7)(v)-1 Functional'!$F$799","v":4.0730000000000002E-2}]
[12,null,{"$f":"'FR-16(7)(v)-1 Functional'!C800","v":"PREFERRED STOCK"},null,null,{"$f":"'FR-16(7)(v)-1 Functional'!$F$800","v":0}]
[13,null,{"$f":"'FR-16(7)(v)-1 Functional'!C801","v":"COMMON STOCK"},null,null,{"$f":"'FR-16(7)(v)-1 Functional'!$F$801","v":9.8000000000000004E-2}]
[14,null,{"$f":"'FR-16(7)(v)-1 Functional'!C802","v":"SHORT TERM DEBT"},null,null,{"$f":"'FR-16(7)(v)-1 Functional'!$F$802","v":1.9369999999999998E-2}]
[15,null,{"$f":"'FR-16(7)(v)-1 Functional'!C803","v":"UNAMORTIZED DISCOUNT"},null,null,{"$f":"'FR-16(7)(v)-1 Functional'!$F$803","v":0}]
[16]
[17," WEIGHTED COST OF CAPITAL"]
[18,null,{"$f":"'FR-16(7)(v)-1 Functional'!C806","v":"LONG TERM DEBT"},null,null,{"$f":"ROUND(G791*F799,4)","v":1.8700000000000001E-2}]
[19,null,{"$f":"'FR-16(7)(v)-1 Functional'!C807","v":"PREFERRED STOCK"},null,null,{"$f":"ROUND(G792*F800,4)","v":0}]
[20,null,{"$f":"'FR-16(7)(v)-1 Functional'!C808","v":"COMMON STOCK"},null,null,{"$f":"ROUND(G793*F801,4)","v":4.7300000000000002E-2}]
[21,null,{"$f":"'FR-16(7)(v)-1 Functional'!C809","v":"SHORT TERM DEBT"},null,null,{"$f":"ROUND(G794*F802,4)","v":1.1000000000000001E-3}]
[22,null,{"$f":"'FR-16(7)(v)-1 Functional'!C810","v":"UNAMORTIZED DISCOUNT"},null,null,{"$f":"ROUND(G795*F803,4)","v":0}]
[23,null,{"$f":"'FR-16(7)(v)-1 Functional'!C811","v":"  TOT RATE OF RETURN ALLOWABLE"},null,null,{"$f":"SUM(F806:F810)","v":6.7100000000000007E-2}]
[24]
[25,"TAX RATES AND SPECIAL FACTORS"]
[26,null,{"$f":"'FR-16(7)(v)-1 Functional'!C814","v":"SHORT TERM DEBT COST"},null,null,0,{"$f":"F814","v":0},{"$f":"F814","v":0},{"$f":"F814","v":0},{"$f":"F814","v":0},{"$f":"F814","v":0}]
[27,null,{"$f":"'FR-16(7)(v)-1 Functional'!C815","v":"FEDERAL INCOME TAX RATE"},null,null,0.35,{"$f":"FIT","v":0.21},{"$f":"FIT","v":0.21},{"$f":"FIT","v":0.21},{"$f":"FIT","v":0.21},{"$f":"FIT","v":0.21}]
[28,null,{"$f":"'FR-16(7)(v)-1 Functional'!C816","v":"STATE INCOME TAX RATE"},null,null,{"$f":"SIT","v":4.9685000000000007E-2},4.9685000000000007E-2,4.9685000000000007E-2,4.9685000000000007E-2,4.9685000000000007E-2,4.9685000000000007E-2]
[29,null,{"$f":"'FR-16(7)(v)-1 Functional'!C817","v":"REVENUE TAX RATE"},null,null,0,{"$f":"RevTax","v":0},{"$f":"RevTax","v":0},{"$f":"RevTax","v":0},{"$f":"RevTax","v":0},{"$f":"RevTax","v":0}]
[]
[{"$f":"co_name","v":"DUKE ENERGY KENTUCKY, INC."},null,null,null,null,null,null,null,null,{"$f":"J1","v":"FR-16(7)(v)-6"}]
[{"$f":"$A$2","v":"TRANSMISSION CLASSIFIED -  ELECTRIC COST OF SERVICE"},null,null,null,null,null,null,null,null,{"$f":"J2","v":"WITNESS RESPONSIBLE:"}]
[{"$f":"case_name","v":"CASE NO: 2019-00271"},null,null,null,null,null,null,null,null,{"$f":"Witness","v":"JAMES E. ZIOLKOWSKI"}]
[{"$f":"data_filing","v":"DATA: 12 MONTHS ACTUAL  & 0 MONTHS ESTIMATED"},null,null,null,null,null,null,null,null,{"$f":"\"PAGE \"&Pages-2&\" OF \"&Pages","v":"PAGE 16 OF 18"}]
[{"$f":"type","v":"TYPE OF FILING: \"X\" ORIGINAL   UPDATED    REVISED  "}]
[]
[]
["LINE",null,null,null,null,{"$f":"$F$8","v":"TOTAL"},"CLASSIFIED",null,null,"TOTAL","ALL",null,null,null,"CLASSIFIED"]
["NO.","ALLOCATORS",null,"SOURCE","ALLO",{"$f":"$F$9","v":"TRANSMISSION"},{"$f":"G9","v":"DEMAND"},"ENERGY","CUSTOMER","AT ISSUE","OTHER",null,null,null,"CHECK"]
[null,null,"Schedule 12",null,1,2,3,4,5]
[1,"DEMAND ENERGY & SPEC. ASSIGN"]
[2,null,"TOTAL KW (12 COIN PEAK) - PRODUCTION","External",null,{"$f":"'WP FR-16(7)(v)-KW & KWH @Gen'!D38","v":717751},{"$f":"'WP FR-16(7)(v)-KW & KWH @Gen'!D38","v":717751},0,0,{"$f":"SUM(G830:I830)","v":717751},{"$f":"F830-J830","v":0}]
[3,null,{"$f":"'FR-16(7)(v)-1 Functional'!C831","v":"RATIO TO TOTAL ELECTRIC"},null,{"$f":"'FR-16(7)(v)-1 Functional'!E831","v":"K201"},1,{"$f":"ROUND(G830/(G830+H830+I830),5)","v":1},{"$f":"ROUND(H830/(G830+H830+I830),5)","v":0},{"$f":"ROUND(I830/(G830+H830+I830),5)","v":0},{"$f":"SUM(G831:I831)","v":1},{"$f":"F831-J831","v":0},null,null,null,{"$f":"SUM(G831:I831)","v":1}]
[4,null,"TOTAL KW (12 COIN PEAK) - TRANSMISSION","External",null,{"$f":"'WP FR-16(7)(v)-KW & KWH @Gen'!D38","v":717751},{"$f":"'WP FR-16(7)(v)-KW & KWH @Gen'!D38","v":717751},0,0,{"$f":"SUM(G832:I832)","v":717751},{"$f":"F832-J832","v":0}]
[5,null,{"$f":"'FR-16(7)(v)-1 Functional'!C833","v":"RATIO TO TOTAL ELECTRIC"},null,"K202",1,{"$f":"ROUND(G832/(G832+H832+I832),5)","v":1},{"$f":"ROUND(H832/(G832+H832+I832),5)","v":0},{"$f":"ROUND(I832/(G832+H832+I832),5)","v":0},{"$f":"SUM(G833:I833)","v":1},{"$f":"F833-J833","v":0},null,null,null,{"$f":"SUM(G833:I833)","v":1}]
[6,null,{"$f":"'FR-16(7)(v)-1 Functional'!C834","v":"DISTRIBUTION KW (NON-COIN PEAK) "},"External",null,{"$f":"'WP FR-16(7)(v)-KW & KWH @Dist'!D39","v":1514633},{"$f":"'WP FR-16(7)(v)-KW & KWH @Dist'!D39","v":1514633},0,0,1514633,0]
[7,null,{"$f":"'FR-16(7)(v)-1 Functional'!C835","v":"RATIO TO TOTAL ELECTRIC"},null,{"$f":"'FR-16(7)(v)-1 Functional'!E835","v":"K203"},1,{"$f":"ROUND(G834/(G834+H834+I834),5)","v":1},{"$f":"ROUND(H834/(G834+H834+I834),5)","v":0},{"$f":"ROUND(I834/(G834+H834+I834),5)","v":0},1,0,null,null,null,{"$f":"SUM(G835:I835)","v":1}]
[8,null,"DISTRIBUTION LINE - PRIMARY","External",null,{"$f":"'WP FR-16(7)(v) Distlines'!G38","v":731338},{"$f":"'WP FR-16(7)(v) Distlines'!G38","v":731338},0,0,731338,0]
[9,null,{"$f":"'FR-16(7)(v)-1 Functional'!C837","v":"RATIO TO TOTAL ELECTRIC"},null,{"$f":"'FR-16(7)(v)-1 Functional'!E837","v":"K205"},1,{"$f":"ROUND(G836/(G836+H836+I836),5)","v":1},{"$f":"ROUND(H836/(G836+H836+I836),5)","v":0},{"$f":"ROUND(I836/(G836+H836+I836),5)","v":0},1,0,null,null,null,{"$f":"SUM(G837:I837)","v":1}]
[10,null,"DISTRIBUTION LINE - SECONDARY","External",null,{"$f":"'WP FR-16(7)(v) Distlines'!K38","v":731338},{"$f":"'WP FR-16(7)(v) Distlines'!K38","v":731338},0,0,{"$f":"SUM(G838:I838)","v":731338},{"$f":"F838-J838","v":0}]
[11,null,{"$f":"'FR-16(7)(v)-1 Functional'!C839","v":"RATIO TO TOTAL ELECTRIC"},null,"K206",1,{"$f":"ROUND(G838/(G838+H838+I838),5)","v":1},{"$f":"ROUND(H838/(G838+H838+I838),5)","v":0},{"$f":"ROUND(I838/(G838+H838+I838),5)","v":0},{"$f":"SUM(G839:I839)","v":1},{"$f":"F839-J839","v":0}]
[12,null,{"$f":"'FR-16(7)(v)-1 Functional'!C840","v":"GROSS DISTRIBUTION PLANT EXCL. CCNC"},"External",null,{"$f":"SUM(F73:F90)","v":5192},{"$f":"SUM(G73:G90)","v":0},{"$f":"SUM(H73:H90)","v":0},{"$f":"SUM(I73:I90)","v":5192},{"$f":"SUM(G840:I840)","v":5192},{"$f":"F840-J840","v":0}]
[13,null,{"$f":"'FR-16(7)(v)-1 Functional'!C841","v":"RATIO TO TOTAL ELECTRIC"},null,{"$f":"'FR-16(7)(v)-1 Functional'!E841","v":"K209"},1,{"$f":"IF($F$840=0,0,ROUND(G840/($G$840+$H$840+$I$840),5))","v":0},{"$f":"IF($F$840=0,0,ROUND(H840/($G$840+$H$840+$I$840),5))","v":0},{"$f":"IF($F$840=0,0,ROUND(I840/($G$840+$H$840+$I$840),5))","v":1},1,0,null,null,null,{"$f":"SUM(G841:I841)","v":1}]
[14,null,{"$f":"'FR-16(7)(v)-1 Functional'!C842","v":"TOTAL DIVERSIFIED CLASS DEMANDS"},"External",null,{"$f":"'WP FR-16(7)(v)-KW & KWH @Dist'!L39","v":731338},{"$f":"'WP FR-16(7)(v)-KW & KWH @Dist'!L39","v":731338},0,0,731338,0]
[15,null,{"$f":"'FR-16(7)(v)-1 Functional'!C843","v":"RATIO TO TOTAL ELECTRIC"},null,{"$f":"'FR-16(7)(v)-1 Functional'!E843","v":"K215"},1,{"$f":"ROUND(G842/(G842+H842+I842),5)","v":1},{"$f":"ROUND(H842/(G842+H842+I842),5)","v":0},{"$f":"ROUND(I842/(G842+H842+I842),5)","v":0},1,0,null,null,null,{"$f":"SUM(G843:I843)","v":1}]
[16,null,{"$f":"'FR-16(7)(v)-1 Functional'!C844","v":"WEIGHTED CUSTOMER SERVICE"},"External",null,{"$f":"'WP FR-16(7)(v) Wtd services'!H38","v":143810},0,0,{"$f":"'WP FR-16(7)(v) Wtd services'!H38","v":143810},143810,0]
[17,null,{"$f":"'FR-16(7)(v)-1 Functional'!C845","v":"RATIO TO TOTAL ELECTRIC"},null,{"$f":"'FR-16(7)(v)-1 Functional'!E845","v":"K217"},1,{"$f":"ROUND(G844/(G844+H844+I844),5)","v":0},{"$f":"ROUND(H844/(G844+H844+I844),5)","v":0},{"$f":"ROUND(I844/(G844+H844+I844),5)","v":1},1,0,null,null,null,{"$f":"SUM(G845:I845)","v":1}]
[18,null,{"$f":"'FR-16(7)(v)-1 Functional'!C846","v":"TOTAL KWH"},"External",null,{"$f":"'WP FR-16(7)(v)-KW & KWH @Gen'!F38","v":4261970981},0,{"$f":"'WP FR-16(7)(v)-KW & KWH @Gen'!F38","v":4261970981},0,4261970981,0]
[19,null,{"$f":"'FR-16(7)(v)-1 Functional'!C847","v":"RATIO TO TOTAL ELECTRIC"},null,{"$f":"'FR-16(7)(v)-1 Functional'!E847","v":"K301"},1,{"$f":"ROUND(G846/(G846+H846+I846),5)","v":0},{"$f":"ROUND(H846/(G846+H846+I846),5)","v":1},{"$f":"ROUND(I846/(G846+H846+I846),5)","v":0},1,0,null,null,null,{"$f":"SUM(G847:I847)","v":1}]
[20,null,{"$f":"'FR-16(7)(v)-1 Functional'!C848","v":"DISTRIBUTION KWH"},"External",null,{"$f":"'WP FR-16(7)(v)-KW & KWH @Dist'!F39","v":4261970981},0,{"$f":"'WP FR-16(7)(v)-KW & KWH @Dist'!F39","v":4261970981},0,4261970981,0]
[21,null,{"$f":"'FR-16(7)(v)-1 Functional'!C849","v":"RATIO TO TOTAL ELECTRIC"},null,{"$f":"'FR-16(7)(v)-1 Functional'!E849","v":"K303"},1,{"$f":"ROUND(G848/(G848+H848+I848),5)","v":0},{"$f":"ROUND(H848/(G848+H848+I848),5)","v":1},{"$f":"ROUND(I848/(G848+H848+I848),5)","v":0},1,0,null,null,null,{"$f":"SUM(G849:I849)","v":1}]
[22,null,{"$f":"'FR-16(7)(v)-1 Functional'!C850","v":"TOTAL KWH LESS LIGHTING"},"External",null,{"$f":"'WP FR-16(7)(v)-KW & KWH @Gen'!F38-'WP FR-16(7)(v)-KW & KWH @Gen'!F26","v":4243371852},0,{"$f":"'WP FR-16(7)(v)-KW & KWH @Gen'!F38-'WP FR-16(7)(v)-KW & KWH @Gen'!F26","v":4243371852},0,4243371852,0]
[23,null,{"$f":"'FR-16(7)(v)-1 Functional'!C851","v":"RATIO TO TOTAL ELECTRIC"},null,{"$f":"'FR-16(7)(v)-1 Functional'!E851","v":"K305"},1,{"$f":"ROUND(G850/(G850+H850+I850),5)","v":0},{"$f":"ROUND(H850/(G850+H850+I850),5)","v":1},{"$f":"ROUND(I850/(G850+H850+I850),5)","v":0},1,0,null,null,null,{"$f":"SUM(G851:I851)","v":1}]
[24,null,{"$f":"'FR-16(7)(v)-1 Functional'!C852","v":"ASSIGN 100% TO RESIDENTIAL"},"External",null,1,1,0,0,1,0]
[25,null,{"$f":"'FR-16(7)(v)-1 Functional'!C853","v":"RATIO TO TOTAL ELECTRIC"},null,{"$f":"'FR-16(7)(v)-1 Functional'!E853","v":"K307"},1,{"$f":"ROUND(G852/(G852+H852+I852),5)","v":1},{"$f":"ROUND(H852/(G852+H852+I852),5)","v":0},{"$f":"ROUND(I852/(G852+H852+I852),5)","v":0},1,0,null,null,null,{"$f":"SUM(G853:I853)","v":1}]
[26,null,{"$f":"'FR-16(7)(v)-1 Functional'!C854","v":"ASSIGN 100% TO LIGHTING"},"External",null,1,1,0,0,1,0]
[27,null,{"$f":"'FR-16(7)(v)-1 Functional'!C855","v":"RATIO TO TOTAL ELECTRIC"},null,{"$f":"'FR-16(7)(v)-1 Functional'!E855","v":"K401"},1,{"$f":"ROUND(G854/(G854+H854+I854),5)","v":1},{"$f":"ROUND(H854/(G854+H854+I854),5)","v":0},{"$f":"ROUND(I854/(G854+H854+I854),5)","v":0},1,0,null,null,null,{"$f":"SUM(G855:I855)","v":1}]
[28,null,{"$f":"'FR-16(7)(v)-1 Functional'!C856","v":"DISTRIBUTION CUSTOMERS"},"External",null,{"$f":"'WP FR-16(7)(v)-KW & KWH @Dist'!H39","v":142392},0,{"$f":"ROUND(H855/(G855+H855+I855),5)","v":0},{"$f":"'WP FR-16(7)(v)-KW & KWH @Dist'!H39","v":142392},142392,0]
[29,null,{"$f":"'FR-16(7)(v)-1 Functional'!C857","v":"RATIO TO TOTAL ELECTRIC"},null,{"$f":"'FR-16(7)(v)-1 Functional'!E857","v":"K405"},1,{"$f":"ROUND(G856/(G856+H856+I856),5)","v":0},{"$f":"ROUND(H856/(G856+H856+I856),5)","v":0},{"$f":"ROUND(I856/(G856+H856+I856),5)","v":1},1,0,null,null,null,{"$f":"SUM(G857:I857)","v":1}]
[30,null,{"$f":"'FR-16(7)(v)-1 Functional'!C858","v":"METERS"},"External",null,{"$f":"'WP FR-16(7)(v) Meters'!E40","v":15813241},0,0,{"$f":"'WP FR-16(7)(v) Meters'!E40","v":15813241},15813241,0]
[31,null,{"$f":"'FR-16(7)(v)-1 Functional'!C859","v":"RATIO TO TOTAL ELECTRIC"},null,{"$f":"'FR-16(7)(v)-1 Functional'!E859","v":"K407"},1,{"$f":"ROUND(G858/(G858+H858+I858),5)","v":0},{"$f":"ROUND(H858/(G858+H858+I858),5)","v":0},{"$f":"ROUND(I858/(G858+H858+I858),5)","v":1},1,0,null,null,null,{"$f":"SUM(G859:I859)","v":1}]
[32,null,{"$f":"'FR-16(7)(v)-1 Functional'!C860","v":"WEIGHTED CUSTOMER"},"External",null,{"$f":"'WP FR-16(7)(v) Meters'!H40","v":156470},0,0,{"$f":"F860","v":156470},156470,0]
[33,null,{"$f":"'FR-16(7)(v)-1 Functional'!C861","v":"RATIO TO TOTAL ELECTRIC"},null,{"$f":"'FR-16(7)(v)-1 Functional'!E861","v":"K409"},1,{"$f":"ROUND(G860/(G860+H860+I860),5)","v":0},{"$f":"ROUND(H860/(G860+H860+I860),5)","v":0},{"$f":"ROUND(I860/(G860+H860+I860),5)","v":1},1,0,null,null,null,{"$f":"SUM(G861:I861)","v":1}]
[34,null,{"$f":"'FR-16(7)(v)-1 Functional'!C862","v":"UNCOLLECTIBLE ACCOUNT 904"},"External",null,{"$f":"'WP FR-16(7)(v) CustAcct'!G31","v":5781023.7599999998},0,0,{"$f":"F862","v":5781023.7599999998},5781023.7599999998,0]
[35,null,{"$f":"'FR-16(7)(v)-1 Functional'!C863","v":"RATIO TO TOTAL ELECTRIC"},null,{"$f":"'FR-16(7)(v)-1 Functional'!E863","v":"K411"},1,{"$f":"ROUND(G862/(G862+H862+I862),5)","v":0},{"$f":"ROUND(H862/(G862+H862+I862),5)","v":0},{"$f":"ROUND(I862/(G862+H862+I862),5)","v":1},1,0,null,null,null,{"$f":"SUM(G863:I863)","v":1}]
[36,null,{"$f":"'FR-16(7)(v)-1 Functional'!C864","v":"KWH SALES LESS RTP"},"External",null,{"$f":"'WP FR-16(7)(v)-KW & KWH @Gen'!F28","v":4244213606},0,{"$f":"'WP FR-16(7)(v)-KW & KWH @Gen'!F28","v":4244213606},0,{"$f":"SUM(G864:I864)","v":4244213606},{"$f":"F864-J864","v":0}]
[37,null,{"$f":"'FR-16(7)(v)-1 Functional'!C865","v":"RATIO TO TOTAL ELECTRIC"},null,{"$f":"'FR-16(7)(v)-1 Functional'!E865","v":"K302"},1,{"$f":"ROUND(G864/(G864+H864+I864),5)","v":0},{"$f":"ROUND(H864/(G864+H864+I864),5)","v":1},{"$f":"ROUND(I864/(G864+H864+I864),5)","v":0},{"$f":"SUM(G865:I865)","v":1},{"$f":"F865-J865","v":0}]
[38]
[39,null,{"$f":"'FR-16(7)(v)-1 Functional'!C867","v":"PRESENT REVENUES"},{"$f":"'FR-16(7)(v)-1 Functional'!$D$867","v":"CS09"},{"$f":"'FR-16(7)(v)-1 Functional'!E867","v":"R600"},{"$f":"'FR-16(7)(v)-1 Functional'!H867","v":29037083},{"$f":"ROUND(F867*VLOOKUP(D867,AllocTable_Classified_Transmission,$G$10,FALSE),0)","v":29038474},{"$f":"ROUND(F867*VLOOKUP(D867,AllocTable_Classified_Transmission,$H$10,FALSE),0)","v":0},{"$f":"ROUND(F867*VLOOKUP(D867,AllocTable_Classified_Transmission,$I$10,FALSE),0)","v":-1391},{"$f":"SUM(G867:I867)","v":29037083},{"$f":"F867-J867","v":0},null,"Use allocator K901 in allocated studies"]
[40,null,{"$f":"'FR-16(7)(v)-1 Functional'!C868","v":"PROPOSED REVENUES"},{"$f":"'FR-16(7)(v)-1 Functional'!$D$868","v":"A357"},{"$f":"'FR-16(7)(v)-1 Functional'!E868","v":"R602"},{"$f":"'FR-16(7)(v)-1 Functional'!H868","v":16511879},{"$f":"ROUND(F868*VLOOKUP(D868,AllocTable_Classified_Transmission,$G$10,FALSE),0)","v":16524428},{"$f":"ROUND(F868*VLOOKUP(D868,AllocTable_Classified_Transmission,$H$10,FALSE),0)","v":0},{"$f":"ROUND(F868*VLOOKUP(D868,AllocTable_Classified_Transmission,$I$10,FALSE),0)","v":-12549},{"$f":"SUM(G868:I868)","v":16511879},{"$f":"F868-J868","v":0},null,"Use allocator K902 in allocated studies"]
[]
[{"$f":"co_name","v":"DUKE ENERGY KENTUCKY, INC."},null,null,null,null,null,null,null,null,{"$f":"J1","v":"FR-16(7)(v)-6"}]
[{"$f":"$A$2","v":"TRANSMISSION CLASSIFIED -  ELECTRIC COST OF SERVICE"},null,null,null,null,null,null,null,null,{"$f":"J2","v":"WITNESS RESPONSIBLE:"}]
[{"$f":"case_name","v":"CASE NO: 2019-00271"},null,null,null,null,null,null,null,null,{"$f":"Witness","v":"JAMES E. ZIOLKOWSKI"}]
[{"$f":"data_filing","v":"DATA: 12 MONTHS ACTUAL  & 0 MONTHS ESTIMATED"},null,null,null,null,null,null,null,null,{"$f":"\"PAGE \"&Pages-1&\" OF \"&Pages","v":"PAGE 17 OF 18"}]
[{"$f":"type","v":"TYPE OF FILING: \"X\" ORIGINAL   UPDATED    REVISED  "}]
[]
[]
["LINE",null,null,null,null,{"$f":"$F$8","v":"TOTAL"},"CLASSIFIED",null,null,"TOTAL","ALL"]
["NO.","ALLOCATORS",null,"SOURCE","ALLO",{"$f":"$F$9","v":"TRANSMISSION"},{"$f":"G9","v":"DEMAND"},"ENERGY","CUSTOMER","AT ISSUE","OTHER"]
[null,null,"Schedule 12.1",null,1,2,3,4,5]
[]
[1,null,{"$f":"'FR-16(7)(v)-1 Functional'!C881","v":"PRESENT REVENUES"},"Internal",null,{"$f":"F867","v":29037083},{"$f":"G867","v":29038474},{"$f":"H867","v":0},{"$f":"I867","v":-1391},{"$f":"SUM(G881:I881)","v":29037083},{"$f":"F881-J881","v":0}]
[2,null,{"$f":"'FR-16(7)(v)-1 Functional'!C882","v":"RATIO TO TOTAL ELECTRIC"},null,{"$f":"'FR-16(7)(v)-1 Functional'!E882","v":"K901"},1,{"$f":"IF(G881=0,0,ROUND(G881/(G881+H881+I881),5))","v":1.0000500000000001},{"$f":"IF(H881=0,0,ROUND(H881/(H881+I881+J881),5))","v":0},{"$f":"IF(I881=0,0,ROUND(I881/(I881+J881+K881),5))","v":-5.0000000000000002E-5},{"$f":"SUM(G882:I882)","v":1},{"$f":"F882-J882","v":0},null,null,null,{"$f":"SUM(G882:I882)","v":1}]
[3,null,{"$f":"'FR-16(7)(v)-1 Functional'!C883","v":"PROPOSED REVENUES"},"Internal",null,{"$f":"F868","v":16511879},{"$f":"G868","v":16524428},{"$f":"H868","v":0},{"$f":"I868","v":-12549},{"$f":"SUM(G883:I883)","v":16511879},{"$f":"F883-J883","v":0}]
[4,null,{"$f":"'FR-16(7)(v)-1 Functional'!C884","v":"RATIO TO TOTAL ELECTRIC"},null,{"$f":"'FR-16(7)(v)-1 Functional'!E884","v":"K902"},1,{"$f":"IF(G883=0,0,ROUND(G883/(G883+H883+I883),5))","v":1.0007600000000001},{"$f":"IF(H883=0,0,ROUND(H883/(H883+I883+J883),5))","v":0},{"$f":"IF(I883=0,0,ROUND(I883/(I883+J883+K883),5))","v":-7.6000000000000004E-4},{"$f":"SUM(G884:I884)","v":1},{"$f":"F884-J884","v":0}]
[5]
[6,"WEIGHTED RATIOS"]
[7,"GROSS ELECTRIC PLANT IN SERVICE"]
[8,null,{"$f":"'FR-16(7)(v)-1 Functional'!C888","v":"WTD GROSS PROD PLANT RATIOS"},"Internal",{"$f":"'FR-16(7)(v)-1 Functional'!E888","v":"P129"},0,{"$f":"ROUND(IF($F$62=0,0,G62/$F$62),5)","v":0},{"$f":"ROUND(IF(F62=0,0,H62/F62),5)","v":0},{"$f":"ROUND(IF(F62=0,0,I62/F62),5)","v":0},{"$f":"SUM(G888:I888)","v":0},{"$f":"F888-J888","v":0},null,null,null,{"$f":"SUM(G888:I888)","v":0}]
[9,null,{"$f":"'FR-16(7)(v)-1 Functional'!C889","v":"WTD GROSS TRANS PLANT RATIOS"},"Internal",{"$f":"'FR-16(7)(v)-1 Functional'!E889","v":"T129"},1,{"$f":"ROUND(IF($F$68=0,0,G68/$F$68),5)","v":1},{"$f":"ROUND(IF(F68=0,0,H68/F68),5)","v":0},{"$f":"ROUND(IF(F68=0,0,I68/F68),5)","v":0},1,0,null,null,null,1]
[10,null,{"$f":"'FR-16(7)(v)-1 Functional'!C890","v":"WTD GROSS P & T PLT RATIOS"},"Internal",{"$f":"'FR-16(7)(v)-1 Functional'!E890","v":"PT29"},1,{"$f":"ROUND(IF($F$70=0,0,G70/$F$70),5)","v":1},{"$f":"ROUND(IF(F70=0,0,H70/F70),5)","v":0},{"$f":"ROUND(IF(F70=0,0,I70/F70),5)","v":0},{"$f":"SUM(G890:I890)","v":1},{"$f":"F890-J890","v":0}]
[11,null,{"$f":"'FR-16(7)(v)-1 Functional'!C891","v":"WTD GROSS DIST PLANT RATIOS"},"Internal",{"$f":"'FR-16(7)(v)-1 Functional'!E891","v":"D149"},0,{"$f":"ROUND(IF($F$94=0,0,G94/F94),5)","v":0},{"$f":"ROUND(IF(F94=0,0,H94/F94),5)","v":0},{"$f":"ROUND(IF(F94=0,0,I94/F94),5)","v":1},{"$f":"SUM(G891:I891)","v":1},{"$f":"F891-J891","v":-1}]
[12,null,{"$f":"'FR-16(7)(v)-1 Functional'!C892","v":"WTD GROSS TRANS & DIST RATIOS"},"Internal",{"$f":"'FR-16(7)(v)-1 Functional'!E892","v":"TD29"},1,{"$f":"ROUND(IF($F$97=0,0,G97/$F$97),5)","v":0.99992000000000003},{"$f":"ROUND(IF(F97=0,0,H97/F97),5)","v":0},{"$f":"ROUND(IF(F97=0,0,I97/F97),5)","v":8.0000000000000007E-5},1,0,null,null,null,1]
[13,null,{"$f":"'FR-16(7)(v)-1 Functional'!C893","v":"WTD GROSS PTD PLT RATIOS"},"Internal",{"$f":"'FR-16(7)(v)-1 Functional'!E893","v":"PD29"},1,{"$f":"ROUND(IF($F$109=0,0,G109/$F$109),5)","v":1.0007999999999999},{"$f":"ROUND(IF(F109=0,0,H109/F109),5)","v":0},{"$f":"ROUND(IF(F109=0,0,I109/F109),5)","v":-8.0000000000000004E-4},0.99999999999999989,0,null,null,null,0.99999999999999989]
[14,null,{"$f":"'FR-16(7)(v)-1 Functional'!C894","v":"WTD GROSS G & I PLT RATIOS"},"Internal",{"$f":"'FR-16(7)(v)-1 Functional'!E894","v":"G129"},1,{"$f":"ROUND(IF($F$121=0,0,G121/$F$121),5)","v":1.0007999999999999},{"$f":"ROUND(IF(F121=0,0,$H$121/F121),5)","v":0},{"$f":"ROUND(IF(F121=0,0,I121/F121),5)","v":-8.0000000000000004E-4},0.99999999999999989,0,null,null,null,0.99999999999999989]
[15,null,{"$f":"'FR-16(7)(v)-1 Functional'!C895","v":"WTD GROSS C & O PLANT RATIOS"},"Internal",{"$f":"'FR-16(7)(v)-1 Functional'!E895","v":"C129"},1,{"$f":"ROUND(IF($F$123=0,0,G123/$F$123),5)","v":0.99995999999999996},{"$f":"ROUND(IF(F123=0,0,$H$123/F123),5)","v":0},{"$f":"ROUND(IF(F123=0,0,I123/F123),5)","v":4.0000000000000003E-5},1,0,null,null,null,1]
[16,null,{"$f":"'FR-16(7)(v)-1 Functional'!C896","v":"WTD GROSS PLANT RATIOS"},"Internal",{"$f":"'FR-16(7)(v)-1 Functional'!E896","v":"GP19"},0,{"$f":"ROUND(IF($F$171=0,0,G171/$F$171),5)","v":0},{"$f":"ROUND(IF(F171=0,0,H171/F171),5)","v":0},{"$f":"ROUND(IF(F171=0,0,I171/F171),5)","v":1},1,-1,null,null,null,1]
[17,null,{"$f":"'FR-16(7)(v)-1 Functional'!C897","v":"WTD TOTAL DEPRC RES RATIOS"},"Internal",{"$f":"'FR-16(7)(v)-1 Functional'!E897","v":"DR19"},1,{"$f":"ROUND(IF($F$200=0,0,G200/$F$200),5)","v":1.0000199999999999},{"$f":"ROUND(IF(F200=0,0,H200/F200),5)","v":0},{"$f":"ROUND(IF(F200=0,0,I200/F200),5)","v":-2.0000000000000002E-5},0.99999999999999989,0,null,null,null,0.99999999999999989]
[18]
[19,"NET ELECTRIC PLANT"]
[20,null,{"$f":"'FR-16(7)(v)-1 Functional'!C900","v":"WTD NET PROD PLANT RATIOS"},"Internal",{"$f":"'FR-16(7)(v)-1 Functional'!E900","v":"P229"},0,{"$f":"ROUND(IF($F$216=0,0,G216/$F$216),5)","v":0},{"$f":"ROUND(IF(F216=0,0,H216/F216),5)","v":0},{"$f":"ROUND(IF(F216=0,0,I216/F216),5)","v":0},{"$f":"SUM(G900:I900)","v":0},{"$f":"F900-J900","v":0},null,null,null,{"$f":"SUM(G900:I900)","v":0}]
[21,null,{"$f":"'FR-16(7)(v)-1 Functional'!C901","v":"WTD NET TRANS PLANT RATIOS"},"Internal",{"$f":"'FR-16(7)(v)-1 Functional'!E901","v":"T229"},1,{"$f":"ROUND(IF($F$222=0,0,G222/$F$222),5)","v":1},{"$f":"ROUND(IF(F222=0,0,H222/F222),5)","v":0},{"$f":"ROUND(IF(F222=0,0,I222/F222),5)","v":0},1,0,null,null,null,{"$f":"SUM(G901:I901)","v":1}]
[22,null,{"$f":"'FR-16(7)(v)-1 Functional'!C902","v":"WTD NET DIST LINES  - POLES, TOWERS & FIXTURES"},"Internal",{"$f":"'FR-16(7)(v)-1 Functional'!E902","v":"PL49"},0,{"$f":"ROUND(IF(SUM($F$228:$F$231)=0,0,SUM(G228:G231)/SUM($F$228:$F$231)),5)","v":0},{"$f":"ROUND(IF(SUM($F$228:$F$231)=0,0,SUM(H228:H231)/SUM($F$228:$F$231)),5)","v":0},{"$f":"ROUND(IF(SUM($F$228:$F$231)=0,0,SUM(I228:I231)/SUM($F$228:$F$231)),5)","v":0},0,0,null,null,null,{"$f":"SUM(G902:I902)","v":0}]
[23,null,{"$f":"'FR-16(7)(v)-1 Functional'!C903","v":"WTD NET TOTAL DIST PLANT RATIOS"},"Internal",{"$f":"'FR-16(7)(v)-1 Functional'!E903","v":"D249"},0,{"$f":"ROUND(IF($F$248=0,0,G248/$F$248),5)","v":0},{"$f":"ROUND(IF($F$248=0,0,H248/$F$248),5)","v":0},{"$f":"ROUND(IF($F$248=0,0,I248/$F$248),5)","v":1},1,-1]
[24,null,{"$f":"'FR-16(7)(v)-1 Functional'!C904","v":"WTD NET TRANS & DIST RATIOS"},"Internal",{"$f":"'FR-16(7)(v)-1 Functional'!E904","v":"NT29"},1,{"$f":"ROUND(IF($F$251=0,0,G251/$F$251),5)","v":0.99990999999999997},{"$f":"ROUND(IF($F$251=0,0,H251/$F$251),5)","v":0},{"$f":"ROUND(IF($F$251=0,0,I251/$F$251),5)","v":9.0000000000000006E-5},1,0]
[25,null,{"$f":"'FR-16(7)(v)-1 Functional'!C905","v":"WTD NET G & I PLT RATIOS"},"Internal",{"$f":"'FR-16(7)(v)-1 Functional'!E905","v":"G229"},1,{"$f":"ROUND(IF($F$263=0,0,G263/$F$263),5)","v":1.0007999999999999},{"$f":"ROUND(IF($F$263=0,0,H263/$F$263),5)","v":0},{"$f":"ROUND(IF($F$263=0,0,I263/$F$263),5)","v":-8.0000000000000004E-4},0.99999999999999989,0]
[26,null,{"$f":"'FR-16(7)(v)-1 Functional'!C906","v":"WTD NET C & O PLANT RATIOS"},"Internal",{"$f":"'FR-16(7)(v)-1 Functional'!E906","v":"C229"},1,{"$f":"ROUND(IF($F$275=0,0,G275/$F$275),5)","v":1.0007999999999999},{"$f":"ROUND(IF($F$275=0,0,H275/$F$275),5)","v":0},{"$f":"ROUND(IF($F$275=0,0,I275/$F$275),5)","v":-8.0000000000000004E-4},0.99999999999999989,0]
[27,null,{"$f":"'FR-16(7)(v)-1 Functional'!C907","v":"WTD NET PLANT RATIOS"},"Internal",{"$f":"'FR-16(7)(v)-1 Functional'!E907","v":"NP29"},1,{"$f":"ROUND(IF($F$277=0,0,G277/$F$277),5)","v":0.99994000000000005},{"$f":"ROUND(IF(F277=0,0,H277/F277),5)","v":0},{"$f":"ROUND(IF($F$277=0,0,I277/$F$277),5)","v":6.0000000000000002E-5},1,0]
[28]
[29,"WORKING CAPITAL"]
[30,null,{"$f":"'FR-16(7)(v)-1 Functional'!C910","v":"WTD MATERIAL & SUPPLY RATIOS"},"Internal",{"$f":"'FR-16(7)(v)-1 Functional'!E910","v":"W669"},1,{"$f":"ROUND(IF($F$399=0,0,G399/$F$399),5)","v":1.0007999999999999},{"$f":"ROUND(IF(F399=0,0,H399/F399),5)","v":0},{"$f":"ROUND(IF(F399=0,0,I399/F399),5)","v":-8.0000000000000004E-4},{"$f":"SUM(G910:I910)","v":0.99999999999999989},{"$f":"F910-J910","v":0},null,null,null,{"$f":"SUM(G910:I910)","v":0.99999999999999989}]
[31,null,{"$f":"'FR-16(7)(v)-1 Functional'!C911","v":"WTD PREPAYMENTS RATIOS"},"Internal",{"$f":"'FR-16(7)(v)-1 Functional'!E911","v":"W689"},1,{"$f":"ROUND(IF($F$405=0,0,G405/$F$405),5)","v":0.99992000000000003},{"$f":"ROUND(IF(F405=0,0,H405/F405),5)","v":0},{"$f":"ROUND(IF(F405=0,0,I405/F405),5)","v":8.0000000000000007E-5},{"$f":"SUM(G911:I911)","v":1},{"$f":"F911-J911","v":0},null,null,null,{"$f":"SUM(G911:I911)","v":1}]
[32,null,{"$f":"'FR-16(7)(v)-1 Functional'!C912","v":"WTD TOTAL WORKING CASH RATIOS"},"Internal",{"$f":"'FR-16(7)(v)-1 Functional'!E912","v":"W719"},1,{"$f":"ROUND(IF($F$408=0,0,G408/F408),5)","v":0},{"$f":"ROUND(IF(F408=0,0,H408/F408),5)","v":0},{"$f":"ROUND(IF(F408=0,0,I408/F408),5)","v":0},{"$f":"SUM(G912:I912)","v":0},{"$f":"F912-J912","v":1},null,null,null,{"$f":"SUM(G912:I912)","v":0}]
[33,null,{"$f":"'FR-16(7)(v)-1 Functional'!C913","v":"WTD TOTAL MISC WRKNG CAP RATIO"},"Internal",{"$f":"'FR-16(7)(v)-1 Functional'!E913","v":"W749"},1,{"$f":"ROUND(IF($F$414=0,0,G414/$F$414),5)","v":0},{"$f":"ROUND(IF(F414=0,0,H414/F414),5)","v":0},{"$f":"ROUND(IF(F414=0,0,I414/F414),5)","v":0},{"$f":"SUM(G913:I913)","v":0},{"$f":"F913-J913","v":1},null,null,null,{"$f":"SUM(G913:I913)","v":0}]
[34,null,{"$f":"'FR-16(7)(v)-1 Functional'!C914","v":"WTD TOTAL WRKNG CAP RATIOS"},"Internal",{"$f":"'FR-16(7)(v)-1 Functional'!E914","v":"WC79"},1,{"$f":"ROUND(IF($F$416=0,0,G416/$F$416),5)","v":1.00078},{"$f":"ROUND(IF($F$416=0,0,H416/$F$416),5)","v":0},{"$f":"ROUND(IF($F$416=0,0,I416/$F$416),5)","v":-7.7999999999999999E-4},{"$f":"SUM(G914:I914)","v":1},{"$f":"F914-J914","v":0}]
[35]
[36,"RATE BASE"]
[37,null,{"$f":"'FR-16(7)(v)-1 Functional'!C917","v":"WTD NET OCRB RATIOS"},"Internal",{"$f":"'FR-16(7)(v)-1 Functional'!E917","v":"RB29"},1,{"$f":"ROUND(IF($F$390=0,0,G390/$F$390),5)","v":0.99987000000000004},{"$f":"ROUND(IF($F$390=0,0,H390/$F$390),5)","v":0},{"$f":"ROUND(IF($F$390=0,0,I390/$F$390),5)","v":1.2999999999999999E-4},{"$f":"SUM(G917:I917)","v":1},{"$f":"F917-J917","v":0}]
[38,null,{"$f":"'FR-16(7)(v)-1 Functional'!C918","v":"WTD TOTAL RATE BASE RATIOS"},"Internal",{"$f":"'FR-16(7)(v)-1 Functional'!E918","v":"RB99"},1,{"$f":"ROUND(IF($F$426=0,0,G426/$F$426),5)","v":0.99988999999999995},{"$f":"ROUND(IF($F$426=0,0,H426/$F$426),5)","v":0},{"$f":"ROUND(IF($F$426=0,0,I426/$F$426),5)","v":1.1E-4},{"$f":"SUM(G918:I918)","v":1},{"$f":"F918-J918","v":0}]
[39,null,{"$f":"'FR-16(7)(v)-1 Functional'!C919","v":"WTD CWIP RATIO"},"Internal",{"$f":"'FR-16(7)(v)-1 Functional'!E919","v":"CW29"},1,{"$f":"ROUND(IF($F$375=0,0,G375/$F$375),5)","v":0},{"$f":"ROUND(IF($F$375=0,0,H375/$F$375),5)","v":0},{"$f":"ROUND(IF($F$375=0,0,I375/$F$375),5)","v":0},{"$f":"SUM(G919:I919)","v":0},{"$f":"F919-J919","v":1},null,null,null,{"$f":"SUM(G919:I919)","v":0}]
[]
[{"$f":"co_name","v":"DUKE ENERGY KENTUCKY, INC."},null,null,null,null,null,null,null,null,{"$f":"J1","v":"FR-16(7)(v)-6"}]
[{"$f":"$A$2","v":"TRANSMISSION CLASSIFIED -  ELECTRIC COST OF SERVICE"},null,null,null,null,null,null,null,null,{"$f":"J2","v":"WITNESS RESPONSIBLE:"}]
[{"$f":"case_name","v":"CASE NO: 2019-00271"},null,null,null,null,null,null,null,null,{"$f":"Witness","v":"JAMES E. ZIOLKOWSKI"}]
[{"$f":"data_filing","v":"DATA: 12 MONTHS ACTUAL  & 0 MONTHS ESTIMATED"},null,null,null,null,null,null,null,null,{"$f":"\"PAGE \"&Pages&\" OF \"&Pages","v":"PAGE 18 OF 18"}]
[{"$f":"type","v":"TYPE OF FILING: \"X\" ORIGINAL   UPDATED    REVISED  "}]
[]
[]
["LINE",null,null,null,null,{"$f":"$F$8","v":"TOTAL"},"CLASSIFIED",null,null,"TOTAL","ALL"]
["NO.","ALLOCATORS",null,"SOURCE","ALLO",{"$f":"$F$9","v":"TRANSMISSION"},{"$f":"G9","v":"DEMAND"},"ENERGY","CUSTOMER","AT ISSUE","OTHER"]
[null,null,"Schedule 12.2",null,1,2,3,4,5]
[1,"WEIGHTED O & M EXPENSE RATIOS"]
[2,null,{"$f":"'FR-16(7)(v)-1 Functional'!C932","v":"WTD PROD DEMAND O&M EXP RATIOS"},"Internal",{"$f":"'FR-16(7)(v)-1 Functional'!E932","v":"P349"},1,{"$f":"ROUND(IF($F$457=0,0,G457/$F$457),5)","v":0},{"$f":"ROUND(IF($F$457=0,0,H457/$F$457),5)","v":0},{"$f":"ROUND(IF($F$457=0,0,I457/$F$457),5)","v":0},{"$f":"SUM(G932:I932)","v":0},{"$f":"F932-J932","v":1},null,null,null,{"$f":"SUM(G932:I932)","v":0}]
[3,null,{"$f":"'FR-16(7)(v)-1 Functional'!C933","v":"WTD PROD ENERGY O&M EXP RATIOS"},"Internal",{"$f":"'FR-16(7)(v)-1 Functional'!E933","v":"E349"},1,{"$f":"ROUND(IF($F$453=0,0,G453/$F$453),5)","v":0},{"$f":"ROUND(IF($F$453=0,0,H453/$F$453),5)","v":0},{"$f":"ROUND(IF($F$453=0,0,I453/$F$453),5)","v":0},0,1,null,null,null,{"$f":"SUM(G933:I933)","v":0}]
[4,null,{"$f":"'FR-16(7)(v)-1 Functional'!C934","v":"WTD TOTAL PROD O&M EXP RATIOS"},"Internal",{"$f":"'FR-16(7)(v)-1 Functional'!E934","v":"P459"},1,{"$f":"ROUND(IF($F$459=0,0,G459/$F$459),5)","v":0},{"$f":"ROUND(IF($F$459=0,0,H459/$F$459),5)","v":0},{"$f":"ROUND(IF($F$459=0,0,I459/$F$459),5)","v":0},0,1,null,null,null,{"$f":"SUM(G934:I934)","v":0}]
[5,null,{"$f":"'FR-16(7)(v)-1 Functional'!C935","v":"WTD TRANS O&M EXP RATIOS"},"Internal",{"$f":"'FR-16(7)(v)-1 Functional'!E935","v":"T349"},1,{"$f":"ROUND(IF($F$466=0,0,G466/$F$466),5)","v":1},{"$f":"ROUND(IF($F$466=0,0,H466/$F$466),5)","v":0},{"$f":"ROUND(IF($F$466=0,0,I466/$F$466),5)","v":0},1,0,null,null,null,{"$f":"SUM(G935:I935)","v":1}]
[6,null,{"$f":"'FR-16(7)(v)-1 Functional'!C936","v":"WTD DIST O&M EXP RATIOS"},"Internal",{"$f":"'FR-16(7)(v)-1 Functional'!E936","v":"D349"},1,{"$f":"ROUND(IF($F$492=0,0,G492/$F$492),5)","v":0},{"$f":"ROUND(IF($F$492=0,0,H492/$F$492),5)","v":0},{"$f":"ROUND(IF($F$492=0,0,I492/$F$492),5)","v":1},1,0]
[7,null,{"$f":"'FR-16(7)(v)-1 Functional'!C937","v":"WTD UNCOLLECTIBLE ACCOUNT O&M"},"Internal",{"$f":"'FR-16(7)(v)-1 Functional'!E937","v":"C311"},1,{"$f":"ROUND(IF($F$496=0,0,G496/$F$496),5)","v":0},{"$f":"ROUND(IF($F$496=0,0,H496/$F$496),5)","v":0},{"$f":"ROUND(IF($F$496=0,0,I496/$F$496),5)","v":1},1,0,null,null,null,{"$f":"SUM(G937:I937)","v":1}]
[8,null,{"$f":"'FR-16(7)(v)-1 Functional'!C938","v":"WTD CUST ACCT O&M EXP RATIOS"},"Internal",{"$f":"'FR-16(7)(v)-1 Functional'!E938","v":"C319"},1,{"$f":"ROUND(IF($F$503=0,0,G503/$F$503),5)","v":0},{"$f":"ROUND(IF($F$503=0,0,H503/$F$503),5)","v":0},{"$f":"ROUND(IF($F$503=0,0,I503/$F$503),5)","v":1},1,0,null,null,null,{"$f":"SUM(G938:I938)","v":1}]
[9,null,{"$f":"'FR-16(7)(v)-1 Functional'!C939","v":"WTD CUST SERV & INFO O&M  EXP RATIOS"},"Internal",{"$f":"'FR-16(7)(v)-1 Functional'!E939","v":"C331"},1,{"$f":"ROUND(IF($F$518=0,0,G518/$F$518),5)","v":0},{"$f":"ROUND(IF($F$518=0,0,H518/$F$518),5)","v":0},{"$f":"ROUND(IF($F$518=0,0,I518/$F$518),5)","v":0},{"$f":"SUM(G939:I939)","v":0},{"$f":"F939-J939","v":1},null,null,null,{"$f":"SUM(G939:I939)","v":0}]
[10,null,{"$f":"'FR-16(7)(v)-1 Functional'!C940","v":"WTD SALES O&M EXP RATIOS"},"Internal",{"$f":"'FR-16(7)(v)-1 Functional'!E940","v":"S319"},1,{"$f":"ROUND(IF($F$522=0,0,G522/$F$522),5)","v":0},{"$f":"ROUND(IF($F$522=0,0,H522/$F$522),5)","v":0},{"$f":"ROUND(IF($F$522=0,0,I522/$F$522),5)","v":0},{"$f":"SUM(G940:I940)","v":0},{"$f":"F940-J940","v":1}]
[11,null,{"$f":"'FR-16(7)(v)-1 Functional'!C941","v":"WTD O&M EXP RATIOS"},"Internal",{"$f":"'FR-16(7)(v)-1 Functional'!E941","v":"OM39"},1,{"$f":"ROUND(IF($F$549=0,0,G549/$F$549),5)","v":1.00007},{"$f":"ROUND(IF($F$549=0,0,H549/$F$549),5)","v":0},{"$f":"ROUND(IF($F$549=0,0,I549/$F$549),5)","v":-6.9999999999999994E-5},{"$f":"SUM(G941:I941)","v":1},{"$f":"F941-J941","v":0}]
[12]
[13,"A & G EXPENSES"]
[14,null,{"$f":"'FR-16(7)(v)-1 Functional'!C944","v":"WTD PROD DEMAND A&G EXP RATIOS"},"Internal",{"$f":"'FR-16(7)(v)-1 Functional'!E944","v":"A300"},1,{"$f":"ROUND(IF($F$525=0,0,G525/$F$525),5)","v":0},{"$f":"ROUND(IF($F$525=0,0,H525/$F$525),5)","v":0},{"$f":"ROUND(IF($F$525=0,0,I525/$F$525),5)","v":0}]
[15,null,{"$f":"'FR-16(7)(v)-1 Functional'!C945","v":"WTD PROD ENERGY A&G EXP RATIOS"},"Internal",{"$f":"'FR-16(7)(v)-1 Functional'!E945","v":"A302"},1,{"$f":"ROUND(IF($F$526=0,0,G526/$F$526),5)","v":0},{"$f":"ROUND(IF($F$526=0,0,H526/$F$526),5)","v":0},{"$f":"ROUND(IF($F$526=0,0,I526/$F$526),5)","v":0},{"$f":"SUM(G945:I945)","v":0},{"$f":"F945-J945","v":1}]
[16,null,{"$f":"'FR-16(7)(v)-1 Functional'!C946","v":"WTD TRANS A&G EXP RATIOS"},"Internal",{"$f":"'FR-16(7)(v)-1 Functional'!E946","v":"A304"},1,{"$f":"ROUND(IF($F$527=0,0,G527/$F$527),5)","v":1},{"$f":"ROUND(IF($F$527=0,0,H527/$F$527),5)","v":0},{"$f":"ROUND(IF($F$527=0,0,I527/$F$527),5)","v":0},1,0]
[17,null,{"$f":"'FR-16(7)(v)-1 Functional'!C947","v":"WTD DIST A&G EXP RATIOS"},"Internal",{"$f":"'FR-16(7)(v)-1 Functional'!E947","v":"A306"},1,{"$f":"ROUND(IF($F$528=0,0,G528/$F$528),5)","v":0},{"$f":"ROUND(IF($F$528=0,0,H528/$F$528),5)","v":0},{"$f":"ROUND(IF($F$528=0,0,I528/$F$528),5)","v":1},1,0]
[18,null,{"$f":"'FR-16(7)(v)-1 Functional'!C948","v":"WTD CUST ACCT A&G EXP RATIOS"},"Internal",{"$f":"'FR-16(7)(v)-1 Functional'!E948","v":"A308"},1,{"$f":"ROUND(IF($F$529=0,0,G529/$F$529),5)","v":0},{"$f":"ROUND(IF($F$529=0,0,H529/$F$529),5)","v":0},{"$f":"ROUND(IF($F$529=0,0,I529/$F$529),5)","v":1},1,0]
[19,null,{"$f":"'FR-16(7)(v)-1 Functional'!C949","v":"WTD CUST SERV & INFO A&G  EXP RATIOS"},"Internal",{"$f":"'FR-16(7)(v)-1 Functional'!E949","v":"A310"},1,{"$f":"ROUND(IF($F$530=0,0,G530/$F$530),5)","v":0},{"$f":"ROUND(IF($F$530=0,0,H530/$F$530),5)","v":0},{"$f":"ROUND(IF($F$530=0,0,I530/$F$530),5)","v":0},0,1]
[20,null,{"$f":"'FR-16(7)(v)-1 Functional'!C950","v":"WTD SALES A&G EXP RATIOS"},"Internal",{"$f":"'FR-16(7)(v)-1 Functional'!E950","v":"A312"},1,{"$f":"ROUND(IF($F$531=0,0,G531/$F$531),5)","v":0},{"$f":"ROUND(IF($F$531=0,0,H531/$F$531),5)","v":0},{"$f":"ROUND(IF($F$531=0,0,I531/$F$531),5)","v":0},0,1]
[21,null,{"$f":"'FR-16(7)(v)-1 Functional'!C951","v":"WTD A&G EXPENSE UNADJUSTED"},"Internal",{"$f":"'FR-16(7)(v)-1 Functional'!E951","v":"A315"},1,{"$f":"ROUND(IF($F$532=0,0,G532/$F$532),5)","v":1.0007600000000001},{"$f":"ROUND(IF($F$532=0,0,H532/$F$532),5)","v":0},{"$f":"ROUND(IF($F$532=0,0,I532/$F$532),5)","v":-7.6000000000000004E-4},1,0]
[22,null,{"$f":"'FR-16(7)(v)-1 Functional'!C952","v":"WTD A&G EXP RATIOS"},"Internal",{"$f":"'FR-16(7)(v)-1 Functional'!E952","v":"A357"},1,{"$f":"ROUND(IF($F$547=0,0,G547/$F$547),5)","v":1.0007600000000001},{"$f":"ROUND(IF($F$547=0,0,H547/$F$547),5)","v":0},{"$f":"ROUND(IF($F$547=0,0,I547/$F$547),5)","v":-7.6000000000000004E-4},1,0]
[23]
[24,"DEPRECIATION EXPENSES"]
[25,null,{"$f":"'FR-16(7)(v)-1 Functional'!C955","v":"WTD PRODUCTION DEPREC RATIOS"},"Internal",{"$f":"'FR-16(7)(v)-1 Functional'!E955","v":"P489"},1,{"$f":"ROUND(IF($F$563=0,0,G563/$F$563),5)","v":0},{"$f":"ROUND(IF(G563=0,0,H563/G563),5)","v":0},{"$f":"ROUND(IF(H563=0,0,I563/H563),5)","v":0},{"$f":"SUM(G955:I955)","v":0},{"$f":"F955-J955","v":1},null,null,null,{"$f":"SUM(G955:I955)","v":0}]
[26,null,{"$f":"'FR-16(7)(v)-1 Functional'!C956","v":"WTD TRANS DEPREC RATIOS"},"Internal",{"$f":"'FR-16(7)(v)-1 Functional'!E956","v":"T489"},1,{"$f":"ROUND(IF($F$567=0,0,G567/$F$567),5)","v":1},{"$f":"ROUND(IF($F$567=0,0,H567/$F$567),5)","v":0},{"$f":"ROUND(IF($F$567=0,0,I567/$F$567),5)","v":0},1,0,null,null,null,{"$f":"SUM(G956:I956)","v":1}]
[27,null,{"$f":"'FR-16(7)(v)-1 Functional'!C957","v":"WTD DIST DEPREC RATIOS"},"Internal",{"$f":"'FR-16(7)(v)-1 Functional'!E957","v":"D489"},1,{"$f":"ROUND(IF($F$571=0,0,G571/$F$571),5)","v":0},{"$f":"ROUND(IF($F$571=0,0,H571/$F$571),5)","v":0},{"$f":"ROUND(IF($F$571=0,0,I571/$F$571),5)","v":1},1,0,null,null,null,{"$f":"SUM(G957:I957)","v":1}]
[28,null,{"$f":"'FR-16(7)(v)-1 Functional'!C958","v":"WTD GENERAL DEPREC EXP RATIOS"},"Internal",{"$f":"'FR-16(7)(v)-1 Functional'!E958","v":"G489"},1,{"$f":"ROUND(IF($F$575=0,0,G575/$F$575),5)","v":1.0007999999999999},{"$f":"ROUND(IF($F$575=0,0,H575/$F$575),5)","v":0},{"$f":"ROUND(IF($F$575=0,0,I575/$F$575),5)","v":-8.0000000000000004E-4},0.99999999999999989,0,null,null,null,{"$f":"SUM(G958:I958)","v":0.99999999999999989}]
[29,null,{"$f":"'FR-16(7)(v)-1 Functional'!C959","v":"WTD COM & OTHER DEP EXP RATIOS"},"Internal",{"$f":"'FR-16(7)(v)-1 Functional'!E959","v":"C489"},1,{"$f":"ROUND(IF($F$579=0,0,G579/$F$579),5)","v":1.0005900000000001},{"$f":"ROUND(IF($F$579=0,0,H579/$F$579),5)","v":0},{"$f":"ROUND(IF($F$579=0,0,I579/$F$579),5)","v":-5.9000000000000003E-4},1,0]
[30,null,{"$f":"'FR-16(7)(v)-1 Functional'!C960","v":"WTD TOT DEPREC EXP RATIOS"},"Internal",{"$f":"'FR-16(7)(v)-1 Functional'!E960","v":"DE49"},1,{"$f":"ROUND(IF($F$582=0,0,G582/$F$582),5)","v":1.00004},{"$f":"ROUND(IF($F$582=0,0,H582/$F$582),5)","v":0},{"$f":"ROUND(IF($F$582=0,0,I582/$F$582),5)","v":-4.0000000000000003E-5},1,0,null,null,null,{"$f":"SUM(G960:I960)","v":1}]
[31]
[32,"OTHER TAXES & MISC EXPENSES"]
[33,null,{"$f":"'FR-16(7)(v)-1 Functional'!C963","v":"WTD R. E. & PROP TAX RATIOS"},"Internal",{"$f":"'FR-16(7)(v)-1 Functional'!E963","v":"L529"},1,{"$f":"ROUND(IF($F$598=0,0,G598/$F$598),5)","v":0.99994000000000005},{"$f":"ROUND(IF(F598=0,0,H598/F598),5)","v":0},{"$f":"1-SUM(G963:H963)","v":5.9999999999948983E-5},{"$f":"SUM(G963:I963)","v":1},{"$f":"F963-J963","v":0},null,null,null,{"$f":"SUM(G963:I963)","v":1}]
[34,null,{"$f":"'FR-16(7)(v)-1 Functional'!C964","v":"WTD MISC TAX RATIOS"},"Internal",{"$f":"'FR-16(7)(v)-1 Functional'!E964","v":"L589"},1,{"$f":"ROUND(IF($F$605=0,0,G605/$F$605),5)","v":1.0007900000000001},{"$f":"ROUND(IF(F605=0,0,H605/F605),5)","v":0},{"$f":"1-SUM(G964:H964)","v":-7.9000000000006843E-4},{"$f":"SUM(G964:I964)","v":1},{"$f":"F964-J964","v":0},null,null,null,{"$f":"SUM(G964:I964)","v":1}]
[35,null,{"$f":"'FR-16(7)(v)-1 Functional'!C965","v":"WTD OTHER TAX RATIOS"},"Internal",{"$f":"'FR-16(7)(v)-1 Functional'!E965","v":"L599"},1,{"$f":"ROUND(IF($F$612=0,0,G612/$F$612),5)","v":0.99999000000000005},{"$f":"ROUND(IF(F617=0,0,H617/F617),5)","v":0},{"$f":"1-SUM(G965:H965)","v":9.9999999999544897E-6},{"$f":"SUM(G965:I965)","v":1},{"$f":"F965-J965","v":0},null,null,null,{"$f":"SUM(G965:I965)","v":1}]
[36,null,{"$f":"'FR-16(7)(v)-1 Functional'!C966","v":"WTD OP EXP EX IT & REV RATIOS"},"Internal",{"$f":"'FR-16(7)(v)-1 Functional'!E966","v":"OP69"},1,{"$f":"ROUND(IF($F$618=0,0,G618/$F$618),5)","v":1.0000599999999999},{"$f":"ROUND(IF(F618=0,0,H618/F618),5)","v":0},{"$f":"1-SUM(G966:H966)","v":-5.9999999999948983E-5},{"$f":"SUM(G966:I966)","v":1},{"$f":"F966-J966","v":0},null,null,null,{"$f":"SUM(G966:I966)","v":1}]
[37]
[38,"TOTAL COST OF SERVICE"]
[39,null,{"$f":"'FR-16(7)(v)-1 Functional'!C969","v":"WTD TOTAL COST OF SERVICE"},"Internal",{"$f":"'FR-16(7)(v)-1 Functional'!E969","v":"CS09"},1,{"$f":"ROUND(IF($F$770=0,0,G770/$F$770),9)","v":1.0000478900000001},{"$f":"ROUND(IF(F770=0,0,H770/F770),9)","v":0},{"$f":"1-SUM(G969:H969)","v":-4.7890000000050392E-5},{"$f":"SUM(G969:I969)","v":1},{"$f":"F969-J969","v":0},null,null,null,{"$f":"SUM(G969:I969)","v":1}]
[40]
[41,"WAGES & SALARIES (K600-K639)"]
[42,null,{"$f":"'FR-16(7)(v)-1 Functional'!C972","v":"WTD RATIOS"},"Internal",{"$f":"'FR-16(7)(v)-1 Functional'!E972","v":"K669"}]
[]
[]
[]
[]
[]
[]
[]
[]
[]
[1,"REVENUE NOT TO BE INCLUDED IN REVENUE TAX CALC"]
[2,null,"GOVERNMENTAL",null,"A357",{"$f":"ROUND(0.06889*0,0)","v":0},{"$f":"ROUND(F983*VLOOKUP(E983,AllocTable_Classified_Transmission,H10,FALSE),0)","v":0},{"$f":"ROUND(F983*VLOOKUP(E983,AllocTable_Classified_Transmission,$H$10,FALSE),0)","v":0},{"$f":"ROUND(F983*VLOOKUP(E983,AllocTable_Classified_Transmission,$I$10,FALSE),0)","v":0},{"$f":"SUM(G983:I983)","v":0},{"$f":"F983-J983","v":0}]
[3,null,"INTERDEPARTMENTAL",null,"A357",0,{"$f":"ROUND(F984*VLOOKUP(E984,AllocTable_Classified_Transmission,H10,FALSE),0)","v":0},0,0,0,0]
[4,null,"UNCOLLECTIBLE EXPENSE",null,"A357",0,{"$f":"ROUND(F985*VLOOKUP(E985,AllocTable_Classified_Transmission,H10,FALSE),0)","v":0},0,0,0,0]
[5,null,"OTHER PROD GAS ASSC COS  489050"," ","K301",0,{"$f":"ROUND(F986*VLOOKUP(E986,AllocTable_Classified_Transmission,H10,FALSE),0)","v":0},0,0,0,0]
[6,null,"MISC. REV. - SALE OF MATERIAL",null,"A357",0,{"$f":"ROUND(F987*VLOOKUP(E987,AllocTable_Classified_Transmission,H10,FALSE),0)","v":0},0,0,0,0]
[7,null,"RENT ASSOC. COS  49302,04,05,06,07,08,11 & 50"," ","NP29",0,{"$f":"ROUND(F988*VLOOKUP(E988,AllocTable_Classified_Transmission,H10,FALSE),0)","v":0},0,0,0,0]
[8,null,"TOTAL","REXC",null,{"$f":"SUM(F983:F988)","v":0},0,0,0,0,0]
[]
[]
[]
[]
[]
["DO NOT FILE THIS PAGE"]
[]
[{"$f":"co_name","v":"DUKE ENERGY KENTUCKY, INC."},null,null,null,null,null,null,null,null,{"$f":"J1","v":"FR-16(7)(v)-6"}]
[{"$f":"$A$2","v":"TRANSMISSION CLASSIFIED -  ELECTRIC COST OF SERVICE"},null,null,null,null,null,null,null,null,{"$f":"J2","v":"WITNESS RESPONSIBLE:"}]
[{"$f":"case_name","v":"CASE NO: 2019-00271"},null,null,null,null,null,null,null,null,{"$f":"Witness","v":"JAMES E. ZIOLKOWSKI"}]
[{"$f":"data_filing","v":"DATA: 12 MONTHS ACTUAL  & 0 MONTHS ESTIMATED"},null,null,null,null,null,null,null,null,{"$f":"\"PAGE \"&Pages&\" OF \"&Pages","v":"PAGE 18 OF 18"}]
[{"$f":"type","v":"TYPE OF FILING: \"X\" ORIGINAL   UPDATED    REVISED  "}]
[]
[]
["LINE",null,null,null,null,{"$f":"$F$8","v":"TOTAL"},"CLASSIFIED",null,null,"TOTAL","ALL"]
["NO.","INCOME TAX BASED ON REVENUES",null,"ALLO",null,{"$f":"$F$9","v":"TRANSMISSION"},{"$f":"G9","v":"DEMAND"},"ENERGY","CUSTOMER","AT ISSUE","OTHER"]
[null,null,"Schedule 13",null,null,null,3,4,5]
[1,"NET INCOME COMPUTATION"]
[2,null,{"$f":"'FR-16(7)(v)-1 Functional'!C1008","v":"TOTAL ELECTRIC COST OF SERVICE"},null,null,{"$f":"F770","v":33200888},33202478,0,-1590,33200888,0]
[3,null,{"$f":"'FR-16(7)(v)-1 Functional'!C1009","v":"TOTAL OTHER OPERATING REVENUES"},null,null,{"$f":"F750","v":169516},169500,0,16,169516,0]
[4,null,{"$f":"'FR-16(7)(v)-1 Functional'!C1010","v":"  TOTAL ELECTRIC REVENUE"},null,null,{"$f":"SUM(F1007:F1009)","v":33370404},33371978,0,-1574,33370404,0]
[5,null,{"$f":"'FR-16(7)(v)-1 Functional'!C1011","v":"TOTAL OP EXP EX INC & REV TAX"},null,null,{"$f":"-F618","v":-28301993},-28303811,0,1818,-28301993,0]
[6,null,{"$f":"'FR-16(7)(v)-1 Functional'!C1012","v":"FIRM SERVICE REVENUE TAX"},null,null,{"$f":"-ROUND(F817*F1008,0)","v":0},{"$f":"-ROUND(G817*G1008,0)","v":0},{"$f":"-ROUND(H817*H1008,0)","v":0},{"$f":"-ROUND(I817*I1008,0)","v":0},{"$f":"SUM(G1012:I1012)","v":0},{"$f":"-ROUND('FR-16(7)(v)-1 Functional'!K817*K1008,0)","v":0}]
[7,null,{"$f":"'FR-16(7)(v)-1 Functional'!C1013","v":"  NET INCOME"},null,null,{"$f":"SUM(F1010:F1012)","v":5068411},{"$f":"SUM(G1010:G1012)","v":5068167},{"$f":"SUM(H1010:H1012)","v":0},{"$f":"SUM(I1010:I1012)","v":244},{"$f":"SUM(G1013:I1013)","v":5068411},{"$f":"SUM(K1010:K1012)","v":0}]
[8]
[9,"ADJUSTMENTS TO NET INCOME"]
[10,null,{"$f":"'FR-16(7)(v)-1 Functional'!C1016","v":"TOTAL INTEREST EXPENSE"},null,null,{"$f":"-F633","v":-833993},-833901,0,-92,-833993,0]
[11,null,{"$f":"'FR-16(7)(v)-1 Functional'!C1017","v":"TOTAL OTHER DEDUCTIONS"},null,null,{"$f":"-F639","v":-2064222},-2064291,0,69,-2064222,0]
[12,null,{"$f":"'FR-16(7)(v)-1 Functional'!C1018","v":"  PRELIMINARY TAXABLE INCOME"},null,null,{"$f":"SUM(F1015:F1017)+F1013","v":2170196},{"$f":"SUM(G1015:G1017)+G1013","v":2169975},{"$f":"SUM(H1015:H1017)+H1013","v":0},{"$f":"SUM(I1015:I1017)+I1013","v":221},{"$f":"SUM(G1018:I1018)","v":2170196},{"$f":"SUM(K1015:K1017)+K1013","v":0}]
[13]
[14,"INCOME TAX BASED ON REVENUES"]
[15,"FEDERAL INCOME TAX COMPUTATION"]
[16,null,{"$f":"'FR-16(7)(v)-1 Functional'!C1022","v":"PRELIMINARY TAXABLE INCOME"},null,null,{"$f":"F1018","v":2170196},2169975,0,221,2170196,0]
[17,null,{"$f":"'FR-16(7)(v)-1 Functional'!C1023","v":"  NET FEDERAL TAXABLE INCOME"},null,null,{"$f":"SUM(F1022:F1022)","v":2170196},2169975,0,221,2170196,0]
[18,null,{"$f":"'FR-16(7)(v)-1 Functional'!C1024","v":"  FEDERAL INCOME TAX RATE"},null,null,{"$f":"F815","v":0.35},{"$f":"G815","v":0.21},{"$f":"H815","v":0.21},{"$f":"I815","v":0.21},null,{"$f":"'FR-16(7)(v)-1 Functional'!K815","v":0.21}]
[19,null,{"$f":"'FR-16(7)(v)-1 Functional'!C1025","v":"PRELIMINARY FIT = FI01 * K190"},null,null,{"$f":"ROUND(F1024*F1023,0)","v":759569},{"$f":"ROUND(G1024*G1023,0)","v":455695},{"$f":"ROUND(H1024*H1023,0)","v":0},{"$f":"ROUND(I1024*I1023,0)","v":46},{"$f":"SUM(G1025:I1025)","v":455741},{"$f":"ROUND(K1024*K1023,0)","v":0}]
[20,null,{"$f":"'FR-16(7)(v)-1 Functional'!C1026","v":"TOTAL FED DEF IT (410 & 411)"},null,null,{"$f":"F649","v":1551623},1551613,0,10,1551623,0]
[21,null,{"$f":"'FR-16(7)(v)-1 Functional'!C1027","v":"TOTAL AMORTIZED ITC"},null,null,{"$f":"-F653","v":-20},-20,0,0,-20,0]
[22,null,{"$f":"'FR-16(7)(v)-1 Functional'!C1028","v":"  NET FED INC TAX ALLOWABLE"},null,null,{"$f":"SUM(F1025:F1027)","v":2311172},2007288,0,56,2007344,0]
[23]
[24,"FEDERAL INCOME TAX PAYABLE"]
[25,null,{"$f":"'FR-16(7)(v)-1 Functional'!C1031","v":"PRELIM FIT"},null,null,{"$f":"F1025","v":759569},455695,0,46,455741,0]
[26,null,{"$f":"'FR-16(7)(v)-1 Functional'!C1032","v":"TEST YEAR INV TAX CREDIT"},null,null,{"$f":"-F658","v":0},0,0,0,0,0]
[27,null,{"$f":"'FR-16(7)(v)-1 Functional'!C1033","v":"  FED INC TAX PAYABLE"},null,null,{"$f":"SUM(F1030:F1032)","v":759569},455695,0,46,455741,0]
[28]
[29,"PRELIMINARY SUMMARY"]
[30,null,{"$f":"'FR-16(7)(v)-1 Functional'!C1036","v":"NET INCOME"},null,null,{"$f":"F1013","v":5068411},5068167,0,244,5068411,0]
[31,null,{"$f":"'FR-16(7)(v)-1 Functional'!C1037","v":"NET FED INC TAX ALLOWABLE"},null,null,{"$f":"-F1028","v":-2311172},-2007288,0,-56,-2007344,0]
[32,null,{"$f":"'FR-16(7)(v)-1 Functional'!C1038","v":"  OVERALL RETURN EARNED"},null,null,{"$f":"SUM(F1035:F1037)","v":2757239},3060879,0,188,3061067,0]
[33]
[34,null,{"$f":"'FR-16(7)(v)-1 Functional'!C1040","v":"  RATE OF RETURN EARNED"},null,null,{"$f":"IF(F426=0,0,ROUND(F1038/F426,5))","v":6.5579999999999999E-2},7.281E-2,0,3.9530000000000003E-2,7.281E-2,0]

{"sheet":"FR-16(7)(v)-7 TRANS Demand","index":10,"n_rows":1040,"n_cols":23,"rows_kept":1040,"cut":false,"hidden":false,"merged":[]}
[{"$f":"co_name","v":"DUKE ENERGY KENTUCKY, INC."},null,null,null,null,null,null,null,null,null,null,null,null,null,null,null,null,"FR-16(7)(v)-7"]
[{"$f":"F8&\" \"&F9&\" ALLOCATED - ELECTRIC COST OF SERVICE\"","v":"TRANSMISSION DEMAND ALLOCATED - ELECTRIC COST OF SERVICE"},null,null,null,null,null,null,null,null,null,null,null,null,null,null,null,null,"WITNESS RESPONSIBLE:"]
[{"$f":"case_name","v":"CASE NO: 2019-00271"},null,null,null,null,null,null,null,null,null,null,null,null,null,null,null,null,{"$f":"Witness","v":"JAMES E. ZIOLKOWSKI"}]
[{"$f":"data_filing","v":"DATA: 12 MONTHS ACTUAL  & 0 MONTHS ESTIMATED"},null,null,null,null,null,null,null,null,null,null,null,null,null,null,null,null,{"$f":"\"PAGE \"&Pages-17&\" OF \"&Pages","v":"PAGE 1 OF 18"}]
[{"$f":"type","v":"TYPE OF FILING: \"X\" ORIGINAL   UPDATED    REVISED  "}]
[]
[null,null,null,null,null,{"$f":"'FR-16(7)(v)-3 PROD Demand'!F7","v":"TOTAL"},null,{"$f":"'FR-16(7)(v)-3 PROD Demand'!H7","v":"DS"},{"$f":"'FR-16(7)(v)-3 PROD Demand'!I7","v":"GSFL"},{"$f":"'FR-16(7)(v)-3 PROD Demand'!J7","v":"EH"},{"$f":"'FR-16(7)(v)-3 PROD Demand'!K7","v":"SP"},{"$f":"'FR-16(7)(v)-3 PROD Demand'!L7","v":"DT SEC"},{"$f":"'FR-16(7)(v)-3 PROD Demand'!M7","v":"DT PRI"},{"$f":"'FR-16(7)(v)-3 PROD Demand'!N7","v":"DP"},{"$f":"'FR-16(7)(v)-3 PROD Demand'!O7","v":"TT"},null,{"$f":"'FR-16(7)(v)-3 PROD Demand'!Q7","v":"OTHER"}]
["LINE",null,null,null,null,{"$f":"'FR-16(7)(v)-6 TRANS Classified'!F9","v":"TRANSMISSION"},{"$f":"'FR-16(7)(v)-3 PROD Demand'!G8","v":"RS"},{"$f":"'FR-16(7)(v)-3 PROD Demand'!H8","v":"SECONDARY"},{"$f":"'FR-16(7)(v)-3 PROD Demand'!I8","v":"SECONDARY"},{"$f":"'FR-16(7)(v)-3 PROD Demand'!J8","v":"SECONDARY"},{"$f":"'FR-16(7)(v)-3 PROD Demand'!K8","v":"SECONDARY"},{"$f":"'FR-16(7)(v)-3 PROD Demand'!L8","v":"SECONDARY"},{"$f":"'FR-16(7)(v)-3 PROD Demand'!M8","v":"PRIMARY"},{"$f":"'FR-16(7)(v)-3 PROD Demand'!N8","v":"PRIMARY"},{"$f":"'FR-16(7)(v)-3 PROD Demand'!O8","v":"TRANSMISSION"},{"$f":"'FR-16(7)(v)-3 PROD Demand'!P8","v":"LT"},{"$f":"'FR-16(7)(v)-3 PROD Demand'!Q8","v":"WATER"},{"$f":"'FR-16(7)(v)-3 PROD Demand'!R8","v":"TOTAL"},{"$f":"'FR-16(7)(v)-3 PROD Demand'!S8","v":"ALL"}]
["NO.","SUMMARY OF RESULTS",null,"ALLO",null,"DEMAND",{"$f":"'FR-16(7)(v)-3 PROD Demand'!G9","v":"RESIDENTIAL"},{"$f":"'FR-16(7)(v)-3 PROD Demand'!H9","v":"DISTRIBUTION"},{"$f":"'FR-16(7)(v)-3 PROD Demand'!I9","v":"DISTRIBUTION"},{"$f":"'FR-16(7)(v)-3 PROD Demand'!J9","v":"DISTRIBUTION"},{"$f":"'FR-16(7)(v)-3 PROD Demand'!K9","v":"DISTRIBUTION"},{"$f":"'FR-16(7)(v)-3 PROD Demand'!L9","v":"DISTRIBUTION"},{"$f":"'FR-16(7)(v)-3 PROD Demand'!M9","v":"DISTRIBUTION"},{"$f":"'FR-16(7)(v)-3 PROD Demand'!N9","v":"DISTRIBUTION"},{"$f":"'FR-16(7)(v)-3 PROD Demand'!O9","v":"TIME OF DAY"},{"$f":"'FR-16(7)(v)-3 PROD Demand'!P9","v":"LIGHTING"},{"$f":"'FR-16(7)(v)-3 PROD Demand'!Q9","v":"PUMPING"},{"$f":"'FR-16(7)(v)-3 PROD Demand'!R9","v":"AT ISSUE"},{"$f":"'FR-16(7)(v)-3 PROD Demand'!S9","v":"OTHER"}]
[null,null,"Schedule 1",null,null,null,3,4,5,6,7,8,9,10,11,12,13]
[1,"NET INCOME COMPUTATION"]
[2,null,{"$f":"'FR-16(7)(v)-1 Functional'!C12","v":"GROSS ELECTRIC PLANT IN SERVICE"},null,null,{"$f":"F123","v":76505281},{"$f":"G123","v":34487052},{"$f":"H123","v":20705389},{"$f":"I123","v":99456},{"$f":"J123","v":392472},5356,10323622,6825036,329738,3233878,94867,{"$f":"Q123","v":8415},{"$f":"SUM(G12:Q12)","v":76505281},{"$f":"F12-R12","v":0}]
[3,null,{"$f":"'FR-16(7)(v)-1 Functional'!C13","v":"TOTAL DEPRECIATION RESERVE"},null,null,{"$f":"-F200","v":-21904859},{"$f":"-G200","v":-9874270},{"$f":"-H200","v":-5928332},{"$f":"-I200","v":-28477},{"$f":"-J200","v":-112372},-1533,-2955842,-1954133,-94410,-925919,-27162,{"$f":"-Q200","v":-2409},{"$f":"SUM(G13:Q13)","v":-21904859},{"$f":"F13-R13","v":0}]
[4,null,{"$f":"'FR-16(7)(v)-1 Functional'!C14","v":"TOTAL RATE BASE ADJUSTMENTS"},null,null,{"$f":"F421","v":-12563724},{"$f":"G421","v":-5663478},{"$f":"H421","v":-3400245},{"$f":"I421","v":-16332},{"$f":"J421","v":-64451},-878,-1695351,-1120809,-54150,-531068,-15578,{"$f":"Q421","v":-1384},{"$f":"SUM(G14:Q14)","v":-12563724},{"$f":"F14-R14","v":0}]
[5,null,{"$f":"'FR-16(7)(v)-1 Functional'!C15","v":"  TOTAL RATE BASE"},null,null,{"$f":"SUM(F12:F14)","v":42036698},{"$f":"SUM(G12:G14)","v":18949304},{"$f":"SUM(H12:H14)","v":11376812},{"$f":"SUM(I12:I14)","v":54647},{"$f":"SUM(J12:J14)","v":215649},2945,5672429,3750094,181178,1776891,52127,{"$f":"SUM(Q12:Q14)","v":4622},{"$f":"SUM(R12:R14)","v":42036698},{"$f":"F15-R15","v":0}]
[6]
[7,"OPERATING EXPENSES"]
[8,null,{"$f":"'FR-16(7)(v)-1 Functional'!C18","v":"TOTAL O&M EXPENSE"},null,null,{"$f":"F549","v":25892769},{"$f":"G549","v":11671942},{"$f":"H549","v":7007619},{"$f":"I549","v":33661},{"$f":"J549","v":132830},1813,3493970,2309894,111598,1094488,32106,{"$f":"Q549","v":2848},{"$f":"SUM(G18:Q18)","v":25892769},{"$f":"F18-R18","v":0}]
[9,null,{"$f":"'FR-16(7)(v)-1 Functional'!C19","v":"TOTAL DEPRECIATION EXPENSE"},null,null,{"$f":"F582","v":1721965},{"$f":"G582","v":776229},{"$f":"H582","v":466032},{"$f":"I582","v":2238},{"$f":"J582","v":8833},121,232362,153616,7422,72787,2135,{"$f":"Q582","v":190},{"$f":"SUM(G19:Q19)","v":1721965},0]
[10,null,{"$f":"'FR-16(7)(v)-1 Functional'!C20","v":"TOTAL OTHER TAX & MISC EXPENSE"},null,null,{"$f":"F612","v":689077},{"$f":"G612","v":310473},{"$f":"H612","v":186556},{"$f":"I612","v":898},{"$f":"J612","v":3521},48,93037,61493,2971,29129,875,{"$f":"$Q$612","v":76},{"$f":"SUM(G20:Q20)","v":689077},0]
[11,null,{"$f":"'FR-16(7)(v)-1 Functional'!C21","v":"  TOTAL OP EXP EXCLUDING INC & REV TAX"},null,null,{"$f":"SUM(F17:F20)","v":28303811},12758644,7660207,36797,{"$f":"SUM(J17:J20)","v":145184},1982,3819369,2525003,121991,1196404,35116,3114,28303811,0]
[12,null,{"$f":"'FR-16(7)(v)-1 Functional'!C22","v":"NET FED INCOME TAX EXP ALLOWABLE"},null,null,{"$f":"F676","v":1988870},{"$f":"G676","v":896543},{"$f":"H676","v":538268},{"$f":"I676","v":2587},{"$f":"J676","v":10203},140,268377,177426,8571,84070,2466,{"$f":"$Q$676","v":219},{"$f":"SUM(G22:Q22)","v":1988870},0]
[13,null,"NET STATE INCOME TAX EXP ALLOWABLE",null,null,{"$f":"F722","v":258280},{"$f":"G722","v":116427},69901,336,1325,18,34852,23041,1113,10917,321,29,{"$f":"SUM(G23:Q23)","v":258280},0]
[14,null,"RESERVED",{"$f":"'FR-16(7)(v)-1 Functional'!D24","v":"CW29"},null,{"$f":"'FR-16(7)(v)-6 TRANS Classified'!G24","v":0},{"$f":"F24-SUM(H24:Q24)","v":0},{"$f":"ROUND(F24*VLOOKUP(D73,ALLOCTABLE_Trans_Demand,$H$10,FALSE),0)","v":0},{"$f":"ROUND(F24*VLOOKUP(D24,ALLOCTABLE_Trans_Demand,$I$10,FALSE),0)","v":0},{"$f":"ROUND(F24*VLOOKUP(D24,ALLOCTABLE_Trans_Demand,$J$10,FALSE),0)","v":0},{"$f":"ROUND(F24*VLOOKUP(D24,ALLOCTABLE_Trans_Demand,$K$10,FALSE),0)","v":0},{"$f":"ROUND(F24*VLOOKUP(D24,ALLOCTABLE_Trans_Demand,$L$10,FALSE),0)","v":0},{"$f":"ROUND(F24*VLOOKUP(D24,ALLOCTABLE_Trans_Demand,$M$10,FALSE),0)","v":0},{"$f":"ROUND(F24*VLOOKUP(D24,ALLOCTABLE_Trans_Demand,$N$10,FALSE),0)","v":0},{"$f":"ROUND(F24*VLOOKUP(D24,ALLOCTABLE_Trans_Demand,$O$10,FALSE),0)","v":0},{"$f":"ROUND(F24*VLOOKUP(D24,ALLOCTABLE_Trans_Demand,$P$10,FALSE),0)","v":0},{"$f":"ROUND(F24*VLOOKUP(D24,ALLOCTABLE_Trans_Demand,$Q$10,FALSE),0)","v":0},{"$f":"SUM(G24:Q24)","v":0},{"$f":"F24-R24","v":0}]
[15,null,{"$f":"'FR-16(7)(v)-1 Functional'!C25","v":"REVENUE TAX"},null,null,{"$f":"F767","v":0},{"$f":"G767","v":0},{"$f":"H767","v":0},{"$f":"I767","v":0},{"$f":"J767","v":0},0,0,0,0,0,0,{"$f":"Q767","v":0},{"$f":"SUM(G25:Q25)","v":0},0]
[16,null,{"$f":"'FR-16(7)(v)-1 Functional'!C26","v":"  TOTAL OPERATING EXPENSE"},null,null,{"$f":"SUM(F21:F25)","v":30550961},13771614,8268376,39720,{"$f":"SUM(J21:J25)","v":156712},2140,4122598,2725470,131675,1291391,37903,3362,30550961,0]
[17]
[18,"RETURN ON RATE BASE",null,null,null,{"$f":"F433","v":2821016},1271658,763480,3667,14472,197,380668,251663,12159,119244,3498,310,{"$f":"SUM(G28:Q28)","v":2821016},{"$f":"F28-R28","v":0}]
[19,"TOTAL OTHER OPERATING REVENUES",null,null,null,{"$f":"-F750","v":-169500},{"$f":"-G750","v":-76405},{"$f":"-H750","v":-45874},{"$f":"-I750","v":-220},{"$f":"-J750","v":-870},-12,-22873,-15121,-731,-7165,-210,{"$f":"-$Q$750","v":-19},{"$f":"SUM(G29:Q29)","v":-169500},0]
[20,null,{"$f":"'FR-16(7)(v)-1 Functional'!C30","v":"TOTAL ELECTRIC COST OF SERVICE"},null,null,{"$f":"SUM(F26:F29)","v":33202477},14966867,8985982,43167,{"$f":"SUM(J26:J29)","v":170314},2325,4480393,2962012,143103,1403470,41191,3653,33202477,0]
[21,"ADJUSTMENT FOR INTERCLASS SUBSIDIZATION",null,{"$f":"1-'WP FR-16(7)(v) Rate Incr'!I11","v":0.95},null,{"$f":"'WP FR-16(7)(v) Rate Incr'!Q27","v":0},{"$f":"'WP FR-16(7)(v) Rate Incr'!Q15","v":-9336840},{"$f":"'WP FR-16(7)(v) Rate Incr'!Q16","v":6445498},{"$f":"'WP FR-16(7)(v) Rate Incr'!Q17","v":89344},{"$f":"'WP FR-16(7)(v) Rate Incr'!R17","v":6774},{"$f":"'WP FR-16(7)(v) Rate Incr'!S17","v":56376},{"$f":"'WP FR-16(7)(v) Rate Incr'!T17","v":111986},{"$f":"'WP FR-16(7)(v) Rate Incr'!U17","v":0},{"$f":"'WP FR-16(7)(v) Rate Incr'!V17","v":40507},{"$f":"'WP FR-16(7)(v) Rate Incr'!W17","v":0},{"$f":"'WP FR-16(7)(v) Rate Incr'!X17","v":0},{"$f":"'WP FR-16(7)(v) Rate Incr'!Q25","v":-9875},{"$f":"SUM(G31:Q31)","v":-2596230},2596230]
[22,{"$f":"'FR-16(7)(v)-1 Functional'!$B$32","v":"REQUESTED REVENUES (COST OF SERVICE ADJUSTED FOR SUBSIDIES)"},null,null,null,{"$f":"F31+F30","v":33202477},5630027,15431480,132511,{"$f":"J31+J30","v":177088},58701,4592379,2962012,183610,1403470,41191,-6222,30606247,2596230]
[23,"PROPOSED REVENUES",null,null,null,{"$f":"F868","v":16524428},7448882,4472171,21482,{"$f":"J868","v":84770},1157,2229806,1474144,71220,698488,20490,1818,16524428,0]
[24,"DIFFERENCE (REQUESTED LESS PROPOSED)",null,null,null,{"$f":"F32-F33","v":16678049},{"$f":"G32-G33","v":-1818855},10959309,111029,{"$f":"J32-J33","v":92318},57544,2362573,1487868,112390,704982,20701,-8040,14081819,2596230]
[25]
[26,"TOTAL RETURN EARNED",null,null,null,{"$f":"F777+F28","v":-9700010},{"$f":"G777+G28","v":-4372461},{"$f":"H777+H28","v":-2625258},{"$f":"I777+I28","v":-12613},{"$f":"J777+J28","v":-49750},-680,-1308958,-865352,-41807,-410020,-12043,{"$f":"Q777+Q28","v":-1068},{"$f":"R777+R28","v":-9700010},{"$f":"F36-R36","v":0}]
[27,"RATE OF RETURN EARNED",null,null,null,{"$f":"IF(F431=0,0,ROUND(F36/F431,5))","v":-0.23075999999999999},-0.23075000000000001,-0.23075999999999999,-0.23080999999999999,-0.23071,-0.23114000000000001,-0.23075999999999999,-0.23075999999999999,-0.23075999999999999,-0.23075999999999999,-0.23105000000000001,-0.23097000000000001,-0.23075999999999999,0]
[28,"TOTAL RATE OF RETURN ALLOWABLE",null,null,null,{"$f":"$F$811","v":6.7100000000000007E-2},{"$f":"$F$811","v":6.7100000000000007E-2},6.7100000000000007E-2,6.7100000000000007E-2,6.7100000000000007E-2,6.7100000000000007E-2,6.7100000000000007E-2,6.7100000000000007E-2,6.7100000000000007E-2,6.7100000000000007E-2,6.7100000000000007E-2,6.7100000000000007E-2,{"$f":"F811","v":6.7100000000000007E-2},{"$f":"F811","v":6.7100000000000007E-2},null,null,"Not Part of print range"]
[29,"RETURN EARNED ON COMMON EQUITY",null,null,null,{"$f":"IF(Equity=0,0,(F37-$F$806-$F$807-$F$809)*TotalCap/Equity)","v":-0.51946370150832344},-0.51944296940018531,-0.51946370150832344,-0.51956736204901399,-0.51936004096763289,-0.52025152161757138,-0.51946370150832344,-0.51946370150832344,-0.51946370150832344,-0.51946370150832344,-0.5200649326443284,-0.51989907577922356,{"$f":"IF(Equity=0,0,(R37-F806-F807-F809)*TotalCap/Equity)","v":-0.51946370150832344},{"$f":"IF(Equity=0,0,(S37-F806-F807-F809)*TotalCap/Equity)","v":-4.1049574113445099E-2},null,null,"Not Filed"]
[30,"ALLOWED RETURN ON COMMON EQUITY",null,null,null,{"$f":"IF(Equity=0,0,(F38-$F$806-$F$807-$F$809)*TotalCap/Equity)","v":9.8062871493229981E-2},9.8062871493229981E-2,9.8062871493229981E-2,9.8062871493229981E-2,9.8062871493229981E-2,9.8062871493229981E-2,9.8062871493229981E-2,9.8062871493229981E-2,9.8062871493229981E-2,9.8062871493229981E-2,9.8062871493229981E-2,9.8062871493229981E-2,{"$f":"IF(Equity=0,0,(R38-F806-F807-F809)*TotalCap/Equity)","v":9.8062871493229981E-2},{"$f":"IF(Equity=0,0,(S38-F806-F807-F809)*TotalCap/Equity)","v":9.8062871493229981E-2}]
[31,null,null,null,null," "]
[32,"PRESENT REVENUES",null,null,null,{"$f":"F867","v":29038474},13089837,7859028,37753,{"$f":"J867","v":148955},2033,3918496,2590539,125156,1227457,36025,3195,29038474,{"$f":"F42-R42","v":0}]
[33,"REVENUE INCREASE JUSTIFIED",null,null,null,{"$f":"F30-F42","v":4164003},1877030,1126954,5414,{"$f":"J30-J42","v":21359},292,561897,371473,17947,176013,5166,458,4164003,0]
[34,null,"PER UNIT PRES REV",null,null,{"$f":"IF(F42=0,0,ROUND(F43/F42,5))","v":0.1434},0.1434,0.1434,0.14341000000000001,{"$f":"IF(J42=0,0,ROUND(J43/J42,5))","v":0.14338999999999999},0.14363000000000001,0.1434,0.1434,0.1434,0.1434,0.1434,0.14335000000000001,0.1434,0]
[35,"REVENUE INCREASE REQUESTED",null,null,null,{"$f":"F33-F42","v":-12514046},-5640955,-3386857,-16271,{"$f":"J33-J42","v":-64185},-876,-1688690,-1116395,-53936,-528969,-15535,-1377,-12514046,0]
[36,null,"PER UNIT PRES REV",null,null,{"$f":"IF(F42=0,0,ROUND(F45/F42,5))","v":-0.43095},-0.43093999999999999,-0.43095,-0.43098999999999998,{"$f":"IF(J42=0,0,ROUND(J45/J42,5))","v":-0.43090000000000001},-0.43089,-0.43095,-0.43095,-0.43095,-0.43095,-0.43123,-0.43098999999999998,-0.43095,0]
[]
[{"$f":"co_name","v":"DUKE ENERGY KENTUCKY, INC."},null,null,null,null,null,null,null,null,null,null,null,null,null,null,null,null,{"$f":"R1","v":"FR-16(7)(v)-7"}]
[{"$f":"$A$2","v":"TRANSMISSION DEMAND ALLOCATED - ELECTRIC COST OF SERVICE"},null,null,null,null,null,null,null,null,null,null,null,null,null,null,null,null,{"$f":"R2","v":"WITNESS RESPONSIBLE:"}]
[{"$f":"case_name","v":"CASE NO: 2019-00271"},null,null,null,null,null,null,null,null,null,null,null,null,null,null,null,null,{"$f":"Witness","v":"JAMES E. ZIOLKOWSKI"}]
[{"$f":"data_filing","v":"DATA: 12 MONTHS ACTUAL  & 0 MONTHS ESTIMATED"},null,null,null,null,null,null,null,null,null,null,null,null,null,null,null,null,{"$f":"\"PAGE \"&Pages-16&\" OF \"&Pages","v":"PAGE 2 OF 18"}]
[{"$f":"type","v":"TYPE OF FILING: \"X\" ORIGINAL   UPDATED    REVISED  "}]
[]
[null,null,null,null,null,{"$f":"F$7","v":"TOTAL"},null,{"$f":"H$7","v":"DS"},{"$f":"I$7","v":"GSFL"},{"$f":"J$7","v":"EH"},{"$f":"K$7","v":"SP"},"DT SEC","DT PRI","DP","TT",null,"OTHER"]
["LINE",null,null,null,null,{"$f":"F$8","v":"TRANSMISSION"},{"$f":"G$8","v":"RS"},{"$f":"H$8","v":"SECONDARY"},{"$f":"I$8","v":"SECONDARY"},{"$f":"J$8","v":"SECONDARY"},{"$f":"K$8","v":"SECONDARY"},"SECONDARY","PRIMARY","PRIMARY","TRANSMISSION","LT","WATER",{"$f":"R8","v":"TOTAL"},"ALL"]
["NO.","GROSS ELECTRIC PLANT IN SERVICE",null,"ALLO",null,{"$f":"F$9","v":"DEMAND"},{"$f":"G$9","v":"RESIDENTIAL"},{"$f":"H$9","v":"DISTRIBUTION"},{"$f":"I$9","v":"DISTRIBUTION"},{"$f":"J$9","v":"DISTRIBUTION"},{"$f":"K$9","v":"DISTRIBUTION"},"DISTRIBUTION","DISTRIBUTION","DISTRIBUTION","TIME OF DAY","LIGHTING","PUMPING",{"$f":"R9","v":"AT ISSUE"},"OTHER"]
[null,null,"Schedule 2",null,null,null,{"$f":"G$10","v":3},{"$f":"H$10","v":4},{"$f":"I$10","v":5},{"$f":"J$10","v":6},{"$f":"K$10","v":7},8,9,10,11,12,13,null," "]
[1,"PRODUCTION PLANT"]
[2,null,"PRODUCTION STEAM",{"$f":"'FR-16(7)(v)-1 Functional'!D59","v":"K201"},null,{"$f":"'FR-16(7)(v)-6 TRANS Classified'!G59","v":0},{"$f":"F59-SUM(H59:Q59)","v":0},{"$f":"ROUND(F59*VLOOKUP(D59,ALLOCTABLE_Trans_Demand,$H$10,FALSE),0)","v":0},{"$f":"ROUND(F59*VLOOKUP(D59,ALLOCTABLE_Trans_Demand,$I$10,FALSE),0)","v":0},{"$f":"ROUND(F59*VLOOKUP(D59,ALLOCTABLE_Trans_Demand,$J$10,FALSE),0)","v":0},{"$f":"ROUND(F59*VLOOKUP(D59,ALLOCTABLE_Trans_Demand,$K$10,FALSE),0)","v":0},{"$f":"ROUND(F59*VLOOKUP(D59,ALLOCTABLE_Trans_Demand,$L$10,FALSE),0)","v":0},{"$f":"ROUND(F59*VLOOKUP(D59,ALLOCTABLE_Trans_Demand,$M$10,FALSE),0)","v":0},{"$f":"ROUND(F59*VLOOKUP(D59,ALLOCTABLE_Trans_Demand,$N$10,FALSE),0)","v":0},{"$f":"ROUND(F59*VLOOKUP(D59,ALLOCTABLE_Trans_Demand,$O$10,FALSE),0)","v":0},{"$f":"ROUND(F59*VLOOKUP(D59,ALLOCTABLE_Trans_Demand,$P$10,FALSE),0)","v":0},{"$f":"ROUND(F59*VLOOKUP(D59,ALLOCTABLE_Trans_Demand,$Q$10,FALSE),0)","v":0},{"$f":"SUM(G59:Q59)","v":0},{"$f":"F59-R59","v":0}]
[3,null,"PRODUCTION OTHER",{"$f":"'FR-16(7)(v)-1 Functional'!D60","v":"K201"},null,{"$f":"'FR-16(7)(v)-6 TRANS Classified'!G60","v":0},{"$f":"F60-SUM(H60:Q60)","v":0},{"$f":"ROUND(F60*VLOOKUP(D60,ALLOCTABLE_Trans_Demand,$H$10,FALSE),0)","v":0},{"$f":"ROUND(F60*VLOOKUP(D60,ALLOCTABLE_Trans_Demand,$I$10,FALSE),0)","v":0},{"$f":"ROUND(F60*VLOOKUP(D60,ALLOCTABLE_Trans_Demand,$J$10,FALSE),0)","v":0},{"$f":"ROUND(F60*VLOOKUP(D60,ALLOCTABLE_Trans_Demand,$K$10,FALSE),0)","v":0},{"$f":"ROUND(F60*VLOOKUP(D60,ALLOCTABLE_Trans_Demand,$L$10,FALSE),0)","v":0},{"$f":"ROUND(F60*VLOOKUP(D60,ALLOCTABLE_Trans_Demand,$M$10,FALSE),0)","v":0},{"$f":"ROUND(F60*VLOOKUP(D60,ALLOCTABLE_Trans_Demand,$N$10,FALSE),0)","v":0},{"$f":"ROUND(F60*VLOOKUP(D60,ALLOCTABLE_Trans_Demand,$O$10,FALSE),0)","v":0},{"$f":"ROUND(F60*VLOOKUP(D60,ALLOCTABLE_Trans_Demand,$P$10,FALSE),0)","v":0},{"$f":"ROUND(F60*VLOOKUP(D60,ALLOCTABLE_Trans_Demand,$Q$10,FALSE),0)","v":0},{"$f":"SUM(G60:Q60)","v":0},{"$f":"F60-R60","v":0}]
[4,null,{"$f":"'FR-16(7)(v)-1 Functional'!C61","v":"ADJUSTMENT"},{"$f":"'FR-16(7)(v)-1 Functional'!D61","v":"K201"},null,{"$f":"'FR-16(7)(v)-6 TRANS Classified'!G61","v":0},{"$f":"F61-SUM(H61:Q61)","v":0},{"$f":"ROUND(F61*VLOOKUP(D61,ALLOCTABLE_Trans_Demand,$H$10,FALSE),0)","v":0},{"$f":"ROUND(F61*VLOOKUP(D61,ALLOCTABLE_Trans_Demand,$I$10,FALSE),0)","v":0},{"$f":"ROUND(F61*VLOOKUP(D61,ALLOCTABLE_Trans_Demand,$J$10,FALSE),0)","v":0},{"$f":"ROUND(F61*VLOOKUP(D61,ALLOCTABLE_Trans_Demand,$K$10,FALSE),0)","v":0},{"$f":"ROUND(F61*VLOOKUP(D61,ALLOCTABLE_Trans_Demand,$L$10,FALSE),0)","v":0},{"$f":"ROUND(F61*VLOOKUP(D61,ALLOCTABLE_Trans_Demand,$M$10,FALSE),0)","v":0},{"$f":"ROUND(F61*VLOOKUP(D61,ALLOCTABLE_Trans_Demand,$N$10,FALSE),0)","v":0},{"$f":"ROUND(F61*VLOOKUP(D61,ALLOCTABLE_Trans_Demand,$O$10,FALSE),0)","v":0},{"$f":"ROUND(F61*VLOOKUP(D61,ALLOCTABLE_Trans_Demand,$P$10,FALSE),0)","v":0},{"$f":"ROUND(F61*VLOOKUP(D61,ALLOCTABLE_Trans_Demand,$Q$10,FALSE),0)","v":0},{"$f":"SUM(G61:Q61)","v":0},{"$f":"F61-R61","v":0}]
[5,null,{"$f":"'FR-16(7)(v)-1 Functional'!C62","v":"  PRODUCTION PLANT IN SERVICE"},null,null,{"$f":"SUM(F59:F61)","v":0},{"$f":"SUM(G59:G61)","v":0},{"$f":"SUM(H59:H61)","v":0},{"$f":"SUM(I59:I61)","v":0},{"$f":"SUM(J59:J61)","v":0},0,0,0,0,0,0,{"$f":"SUM($Q$59:$Q$61)","v":0},{"$f":"SUM(R59:R61)","v":0},{"$f":"SUM(S59:S61)","v":0}]
[6]
[7,"TRANSMISSION PLANT"]
[8,null,"MAIN STEP-UP TRANSFORMERS",{"$f":"'FR-16(7)(v)-1 Functional'!D65","v":"K202"},null,{"$f":"'FR-16(7)(v)-6 TRANS Classified'!G65","v":0},{"$f":"F65-SUM(H65:Q65)","v":0},{"$f":"ROUND(F65*VLOOKUP(D65,ALLOCTABLE_Trans_Demand,$H$10,FALSE),0)","v":0},{"$f":"ROUND(F65*VLOOKUP(D65,ALLOCTABLE_Trans_Demand,$I$10,FALSE),0)","v":0},{"$f":"ROUND(F65*VLOOKUP(D65,ALLOCTABLE_Trans_Demand,$J$10,FALSE),0)","v":0},{"$f":"ROUND(F65*VLOOKUP(D65,ALLOCTABLE_Trans_Demand,$K$10,FALSE),0)","v":0},{"$f":"ROUND(F65*VLOOKUP(D65,ALLOCTABLE_Trans_Demand,$L$10,FALSE),0)","v":0},{"$f":"ROUND(F65*VLOOKUP(D65,ALLOCTABLE_Trans_Demand,$M$10,FALSE),0)","v":0},{"$f":"ROUND(F65*VLOOKUP(D65,ALLOCTABLE_Trans_Demand,$N$10,FALSE),0)","v":0},{"$f":"ROUND(F65*VLOOKUP(D65,ALLOCTABLE_Trans_Demand,$O$10,FALSE),0)","v":0},{"$f":"ROUND(F65*VLOOKUP(D65,ALLOCTABLE_Trans_Demand,$P$10,FALSE),0)","v":0},{"$f":"ROUND(F65*VLOOKUP(D65,ALLOCTABLE_Trans_Demand,$Q$10,FALSE),0)","v":0},{"$f":"SUM(G65:Q65)","v":0},{"$f":"F65-R65","v":0}]
[9,null,"OTHER TRANSMISSION",{"$f":"'FR-16(7)(v)-1 Functional'!D66","v":"K202"},null,{"$f":"'FR-16(7)(v)-6 TRANS Classified'!G66","v":72371702},{"$f":"F66-SUM(H66:Q66)","v":32623716},{"$f":"ROUND(F66*VLOOKUP(D66,ALLOCTABLE_Trans_Demand,$H$10,FALSE),0)","v":19586677},{"$f":"ROUND(F66*VLOOKUP(D66,ALLOCTABLE_Trans_Demand,$I$10,FALSE),0)","v":94083},{"$f":"ROUND(F66*VLOOKUP(D66,ALLOCTABLE_Trans_Demand,$J$10,FALSE),0)","v":371267},{"$f":"ROUND(F66*VLOOKUP(D66,ALLOCTABLE_Trans_Demand,$K$10,FALSE),0)","v":5066},{"$f":"ROUND(F66*VLOOKUP(D66,ALLOCTABLE_Trans_Demand,$L$10,FALSE),0)","v":9765837},{"$f":"ROUND(F66*VLOOKUP(D66,ALLOCTABLE_Trans_Demand,$M$10,FALSE),0)","v":6456280},{"$f":"ROUND(F66*VLOOKUP(D66,ALLOCTABLE_Trans_Demand,$N$10,FALSE),0)","v":311922},{"$f":"ROUND(F66*VLOOKUP(D66,ALLOCTABLE_Trans_Demand,$O$10,FALSE),0)","v":3059152},{"$f":"ROUND(F66*VLOOKUP(D66,ALLOCTABLE_Trans_Demand,$P$10,FALSE),0)","v":89741},{"$f":"ROUND(F66*VLOOKUP(D66,ALLOCTABLE_Trans_Demand,$Q$10,FALSE),0)","v":7961},{"$f":"SUM(G66:Q66)","v":72371702},{"$f":"F66-R66","v":0}]
[10,null,"ADJUSTMENT",{"$f":"'FR-16(7)(v)-1 Functional'!D67","v":"K202"},null,{"$f":"'FR-16(7)(v)-6 TRANS Classified'!G67","v":0},{"$f":"F67-SUM(H67:Q67)","v":0},{"$f":"ROUND(F67*VLOOKUP(D67,ALLOCTABLE_Trans_Demand,$H$10,FALSE),0)","v":0},{"$f":"ROUND(F67*VLOOKUP(D67,ALLOCTABLE_Trans_Demand,$I$10,FALSE),0)","v":0},{"$f":"ROUND(F67*VLOOKUP(D67,ALLOCTABLE_Trans_Demand,$J$10,FALSE),0)","v":0},{"$f":"ROUND(F67*VLOOKUP(D67,ALLOCTABLE_Trans_Demand,$K$10,FALSE),0)","v":0},{"$f":"ROUND(F67*VLOOKUP(D67,ALLOCTABLE_Trans_Demand,$L$10,FALSE),0)","v":0},{"$f":"ROUND(F67*VLOOKUP(D67,ALLOCTABLE_Trans_Demand,$M$10,FALSE),0)","v":0},{"$f":"ROUND(F67*VLOOKUP(D67,ALLOCTABLE_Trans_Demand,$N$10,FALSE),0)","v":0},{"$f":"ROUND(F67*VLOOKUP(D67,ALLOCTABLE_Trans_Demand,$O$10,FALSE),0)","v":0},{"$f":"ROUND(F67*VLOOKUP(D67,ALLOCTABLE_Trans_Demand,$P$10,FALSE),0)","v":0},{"$f":"ROUND(F67*VLOOKUP(D67,ALLOCTABLE_Trans_Demand,$Q$10,FALSE),0)","v":0},{"$f":"SUM(G67:Q67)","v":0},{"$f":"F67-R67","v":0}]
[11,null,{"$f":"'FR-16(7)(v)-1 Functional'!C68","v":"  TRANSMISSION PLANT IN SERVICE"},null,null,{"$f":"SUM(F65:F67)","v":72371702},32623716,19586677,94083,371267,5066,9765837,6456280,311922,3059152,89741,7961,72371702,{"$f":"SUM(S65)","v":0}]
[12]
[13,"TOTAL PROD & TRANS PLANT",null,null,null,{"$f":"F68+F62","v":72371702},{"$f":"G68+G62","v":32623716},{"$f":"H68+H62","v":19586677},{"$f":"I68+I62","v":94083},{"$f":"J68+J62","v":371267},5066,9765837,6456280,311922,3059152,89741,{"$f":"$Q$68+$Q$62","v":7961},{"$f":"R68+R62","v":72371702},{"$f":"S68+S62","v":0}]
[14]
[15,"DISTRIBUTION PLANT"]
[16,null,{"$f":"'FR-16(7)(v)-1 Functional'!C73","v":"SUBSTATIONS"},{"$f":"'FR-16(7)(v)-1 Functional'!D73","v":"K215"},null,{"$f":"'FR-16(7)(v)-6 TRANS Classified'!G73","v":0},{"$f":"F73-SUM(H73:Q73)","v":0},{"$f":"ROUND(F73*VLOOKUP(D73,ALLOCTABLE_Trans_Demand,$H$10,FALSE),0)","v":0},{"$f":"ROUND(F73*VLOOKUP(D73,ALLOCTABLE_Trans_Demand,$I$10,FALSE),0)","v":0},{"$f":"ROUND(F73*VLOOKUP(D73,ALLOCTABLE_Trans_Demand,$J$10,FALSE),0)","v":0},{"$f":"ROUND(F73*VLOOKUP(D73,ALLOCTABLE_Trans_Demand,$K$10,FALSE),0)","v":0},{"$f":"ROUND(F73*VLOOKUP(D73,ALLOCTABLE_Trans_Demand,$L$10,FALSE),0)","v":0},{"$f":"ROUND(F73*VLOOKUP(D73,ALLOCTABLE_Trans_Demand,$M$10,FALSE),0)","v":0},{"$f":"ROUND(F73*VLOOKUP(D73,ALLOCTABLE_Trans_Demand,$N$10,FALSE),0)","v":0},{"$f":"ROUND(F73*VLOOKUP(D73,ALLOCTABLE_Trans_Demand,$O$10,FALSE),0)","v":0},{"$f":"ROUND(F73*VLOOKUP(D73,ALLOCTABLE_Trans_Demand,$P$10,FALSE),0)","v":0},{"$f":"ROUND(F73*VLOOKUP(D73,ALLOCTABLE_Trans_Demand,$Q$10,FALSE),0)","v":0},{"$f":"SUM(G73:Q73)","v":0},{"$f":"F73-R73","v":0}]
[17,null,{"$f":"'FR-16(7)(v)-1 Functional'!C74","v":"POLES, TOWERS  & FIXTURES - PRIMARY - DEMAND"},{"$f":"'FR-16(7)(v)-1 Functional'!D74","v":"K205"},null,{"$f":"'FR-16(7)(v)-6 TRANS Classified'!G74","v":0},0,0,0,0,0,0,0,0,0,0,0,0,0]
[18,null,{"$f":"'FR-16(7)(v)-1 Functional'!C75","v":"POLES, TOWERS  & FIXTURES - PRIMARY - CUSTOMER"},{"$f":"'FR-16(7)(v)-1 Functional'!D75","v":"K405"},null,{"$f":"'FR-16(7)(v)-6 TRANS Classified'!G75","v":0},0,0,0,0,0,0,0,0,0,0,0,0,0]
[19,null,{"$f":"'FR-16(7)(v)-1 Functional'!C76","v":"POLES, TOWERS  & FIXTURES - SECONDARY - DEMAND"},{"$f":"'FR-16(7)(v)-1 Functional'!D76","v":"K206"},null,{"$f":"'FR-16(7)(v)-6 TRANS Classified'!G76","v":0},0,0,0,0,0,0,0,0,0,0,0,0,0]
[20,null,{"$f":"'FR-16(7)(v)-1 Functional'!C77","v":"POLES, TOWERS  & FIXTURES - SECONDARY - CUSTOMER"},{"$f":"'FR-16(7)(v)-1 Functional'!D77","v":"K405"},null,{"$f":"'FR-16(7)(v)-6 TRANS Classified'!G77","v":0},0,0,0,0,0,0,0,0,0,0,0,0,0]
[21,null,{"$f":"'FR-16(7)(v)-1 Functional'!C78","v":"CONDUCTORS - OVERHEAD / PRIMARY - DEMAND"},{"$f":"'FR-16(7)(v)-1 Functional'!D78","v":"K205"},null,{"$f":"'FR-16(7)(v)-6 TRANS Classified'!G78","v":0},0,0,0,0,0,0,0,0,0,0,0,0,0]
[22,null,{"$f":"'FR-16(7)(v)-1 Functional'!C79","v":"CONDUCTORS - OVERHEAD / PRIMARY - CUSTOMER"},{"$f":"'FR-16(7)(v)-1 Functional'!D79","v":"K405"},null,{"$f":"'FR-16(7)(v)-6 TRANS Classified'!G79","v":0},0,0,0,0,0,0,0,0,0,0,0,0,0]
[23,null,{"$f":"'FR-16(7)(v)-1 Functional'!C80","v":"CONDUCTORS - OVERHEAD / SECONDARY - DEMAND"},{"$f":"'FR-16(7)(v)-1 Functional'!D80","v":"K206"},null,{"$f":"'FR-16(7)(v)-6 TRANS Classified'!G80","v":0},0,0,0,0,0,0,0,0,0,0,0,0,0]
[24,null,{"$f":"'FR-16(7)(v)-1 Functional'!C81","v":"CONDUCTORS - OVERHEAD / SECONDARY - CUSTOMER"},{"$f":"'FR-16(7)(v)-1 Functional'!D81","v":"K405"},null,{"$f":"'FR-16(7)(v)-6 TRANS Classified'!G81","v":0},0,0,0,0,0,0,0,0,0,0,0,0,0]
[25,null,{"$f":"'FR-16(7)(v)-1 Functional'!C82","v":"CONDUCTORS - UNDERGROUND / PRIMARY - DEMAND"},{"$f":"'FR-16(7)(v)-1 Functional'!D82","v":"K205"},null,{"$f":"'FR-16(7)(v)-6 TRANS Classified'!G82","v":0},0,0,0,0,0,0,0,0,0,0,0,0,0]
[26,null,{"$f":"'FR-16(7)(v)-1 Functional'!C83","v":"CONDUCTORS - UNDERGROUND / PRIMARY - CUSTOMER"},{"$f":"'FR-16(7)(v)-1 Functional'!D83","v":"K405"},null,{"$f":"'FR-16(7)(v)-6 TRANS Classified'!G83","v":0},0,0,0,0,0,0,0,0,0,0,0,0,0]
[27,null,{"$f":"'FR-16(7)(v)-1 Functional'!C84","v":"CONDUCTORS - UNDERGROUND / SECONDARY - DEMAND"},{"$f":"'FR-16(7)(v)-1 Functional'!D84","v":"K206"},null,{"$f":"'FR-16(7)(v)-6 TRANS Classified'!G84","v":0},0,0,0,0,0,0,0,0,0,0,0,0,0]
[28,null,{"$f":"'FR-16(7)(v)-1 Functional'!C85","v":"CONDUCTORS - UNDERGROUND / SECONDARY - CUSTOMER"},{"$f":"'FR-16(7)(v)-1 Functional'!D85","v":"K405"},null,{"$f":"'FR-16(7)(v)-6 TRANS Classified'!G85","v":0},0,0,0,0,0,0,0,0,0,0,0,0,0]
[29,null,{"$f":"'FR-16(7)(v)-1 Functional'!C86","v":"TRANSFORMERS DEMAND RELATED"},{"$f":"'FR-16(7)(v)-1 Functional'!D86","v":"K215"},null,{"$f":"'FR-16(7)(v)-6 TRANS Classified'!G86","v":0},0,0,0,0,0,0,0,0,0,0,0,0,0]
[30,null,{"$f":"'FR-16(7)(v)-1 Functional'!C87","v":"TRANSFORMERS CUSTOMER RELATED"},{"$f":"'FR-16(7)(v)-1 Functional'!D87","v":"K405"},null,{"$f":"'FR-16(7)(v)-6 TRANS Classified'!G87","v":0},0,0,0,0,0,0,0,0,0,0,0,0,0]
[31,null,{"$f":"'FR-16(7)(v)-1 Functional'!C88","v":"SERVICES"},{"$f":"'FR-16(7)(v)-1 Functional'!D88","v":"K217"},null,{"$f":"'FR-16(7)(v)-6 TRANS Classified'!G88","v":0},0,0,0,0,0,0,0,0,0,0,0,0,0]
[32,null,{"$f":"'FR-16(7)(v)-1 Functional'!C89","v":"METERS"},{"$f":"'FR-16(7)(v)-1 Functional'!D89","v":"K407"},null,{"$f":"'FR-16(7)(v)-6 TRANS Classified'!G89","v":0},0,0,0,0,0,0,0,0,0,0,0,0,0]
[33,null,{"$f":"'FR-16(7)(v)-1 Functional'!C90","v":"STREET LIGHTS"},{"$f":"'FR-16(7)(v)-1 Functional'!D90","v":"K401"},null,{"$f":"'FR-16(7)(v)-6 TRANS Classified'!G90","v":0},0,0,0,0,0,0,0,0,0,0,0,0,0]
[34,null,{"$f":"'FR-16(7)(v)-1 Functional'!C91","v":"ADJUSTMENT  "},{"$f":"'FR-16(7)(v)-1 Functional'!D91","v":"K209"},null,{"$f":"'FR-16(7)(v)-6 TRANS Classified'!G91","v":0},0,0,0,0,0,0,0,0,0,0,0,0,0]
[35,null,{"$f":"'FR-16(7)(v)-1 Functional'!C92","v":"CONSTRUCTION NOT CLASSIFIED"},{"$f":"'FR-16(7)(v)-1 Functional'!D92","v":"K209"},null,{"$f":"'FR-16(7)(v)-6 TRANS Classified'!G92","v":0},0,0,0,0,0,0,0,0,0,0,0,0,0]
[36,null,{"$f":"'FR-16(7)(v)-1 Functional'!C93","v":"RWIP"},{"$f":"'FR-16(7)(v)-1 Functional'!D93","v":"K215"},null,{"$f":"'FR-16(7)(v)-6 TRANS Classified'!G93","v":0},{"$f":"F93-SUM(H93:Q93)","v":0},{"$f":"ROUND(F93*VLOOKUP(D93,ALLOCTABLE_Trans_Demand,$H$10,FALSE),0)","v":0},{"$f":"ROUND(F93*VLOOKUP(D93,ALLOCTABLE_Trans_Demand,$I$10,FALSE),0)","v":0},{"$f":"ROUND(F93*VLOOKUP(D93,ALLOCTABLE_Trans_Demand,$J$10,FALSE),0)","v":0},{"$f":"ROUND(F93*VLOOKUP(D93,ALLOCTABLE_Trans_Demand,$K$10,FALSE),0)","v":0}]
[37,null,{"$f":"'FR-16(7)(v)-1 Functional'!C94","v":"  DISTRIBUTION PLANT IN SERVICE"},null,null,{"$f":"SUM(F73:F93)","v":0},{"$f":"SUM(G73:G92)","v":0},{"$f":"SUM(H73:H92)","v":0},{"$f":"SUM(I73:I92)","v":0},{"$f":"SUM(J73:J92)","v":0},0,0,0,0,0,0,{"$f":"SUM(Q73:Q92)","v":0},{"$f":"SUM(R73:R92)","v":0},{"$f":"SUM(S73:S92)","v":0}]
[38]
[39,"TOTAL TRANS & DIST PLANT",null,null,null,{"$f":"F94+F68","v":72371702},{"$f":"G94+G68","v":32623716},{"$f":"H94+H68","v":19586677},{"$f":"I94+I68","v":94083},{"$f":"J94+J68","v":371267},5066,9765837,6456280,311922,3059152,89741,{"$f":"Q94+$Q$68","v":7961},{"$f":"R94+R68","v":72371702},{"$f":"S94+S68","v":0}]
[40,"TOTAL GROSS PTD PLANT",null,null,null,{"$f":"F94+F70","v":72371702},{"$f":"G94+G70","v":32623716},{"$f":"H94+H70","v":19586677},{"$f":"I94+I70","v":94083},{"$f":"J94+J70","v":371267},5066,9765837,6456280,311922,3059152,89741,{"$f":"Q94+Q70","v":7961},{"$f":"R94+R70","v":72371702},{"$f":"S94+S70","v":0}]
[41]
[42,"GENERAL & INTANGIBLE PLANT"]
[43,null,{"$f":"'FR-16(7)(v)-1 Functional'!C100","v":"PRODUCTION - DEMAND"},{"$f":"'FR-16(7)(v)-1 Functional'!D100","v":"K201"},null,{"$f":"'FR-16(7)(v)-6 TRANS Classified'!G100","v":0},{"$f":"F100-SUM(H100:Q100)","v":0},{"$f":"ROUND(F100*VLOOKUP(D100,ALLOCTABLE_Trans_Demand,$H$10,FALSE),0)","v":0},{"$f":"ROUND(F100*VLOOKUP(D100,ALLOCTABLE_Trans_Demand,$I$10,FALSE),0)","v":0},{"$f":"ROUND(F100*VLOOKUP(D100,ALLOCTABLE_Trans_Demand,$J$10,FALSE),0)","v":0},{"$f":"ROUND(F100*VLOOKUP(D100,ALLOCTABLE_Trans_Demand,$K$10,FALSE),0)","v":0},{"$f":"ROUND(F100*VLOOKUP(D100,ALLOCTABLE_Trans_Demand,$L$10,FALSE),0)","v":0},{"$f":"ROUND(F100*VLOOKUP(D100,ALLOCTABLE_Trans_Demand,$M$10,FALSE),0)","v":0},{"$f":"ROUND(F100*VLOOKUP(D100,ALLOCTABLE_Trans_Demand,$N$10,FALSE),0)","v":0},{"$f":"ROUND(F100*VLOOKUP(D100,ALLOCTABLE_Trans_Demand,$O$10,FALSE),0)","v":0},{"$f":"ROUND(F100*VLOOKUP(D100,ALLOCTABLE_Trans_Demand,$P$10,FALSE),0)","v":0},{"$f":"ROUND(F100*VLOOKUP(D100,ALLOCTABLE_Trans_Demand,$Q$10,FALSE),0)","v":0},{"$f":"SUM(G100:Q100)","v":0},{"$f":"F100-R100","v":0}]
[44,null,{"$f":"'FR-16(7)(v)-1 Functional'!C101","v":"PRODUCTION - ENERGY"},{"$f":"'FR-16(7)(v)-1 Functional'!D101","v":"K301"},null,{"$f":"'FR-16(7)(v)-6 TRANS Classified'!G101","v":0},0,0,0,0,0,0,0,0,0,0,0,0,0]
[45,null,{"$f":"'FR-16(7)(v)-1 Functional'!C102","v":"TRANSMISSION"},{"$f":"'FR-16(7)(v)-1 Functional'!D102","v":"K202"},null,{"$f":"'FR-16(7)(v)-6 TRANS Classified'!G102","v":2639608},1189883,714384,3431,13541,185,356189,235479,11377,111576,3273,290,2639608,0]
[46,null,{"$f":"'FR-16(7)(v)-1 Functional'!C103","v":"DISTRIBUTION - DEMAND"},{"$f":"'FR-16(7)(v)-1 Functional'!D103","v":"K201"},null,{"$f":"'FR-16(7)(v)-6 TRANS Classified'!G103","v":0},0,0,0,0,0,0,0,0,0,0,0,0,0]
[47,null,{"$f":"'FR-16(7)(v)-1 Functional'!C104","v":"DISTRIBUTION - CUSTOMER"},{"$f":"'FR-16(7)(v)-1 Functional'!D104","v":"K405"},null,{"$f":"'FR-16(7)(v)-6 TRANS Classified'!G104","v":0},0,0,0,0,0,0,0,0,0,0,0,0,0]
[48,null,{"$f":"'FR-16(7)(v)-1 Functional'!C105","v":"CUSTOMER ACCOUNTING"},{"$f":"'FR-16(7)(v)-1 Functional'!D105","v":"A308"},null,{"$f":"'FR-16(7)(v)-6 TRANS Classified'!G105","v":0},0,0,0,0,0,0,0,0,0,0,0,0,0]
[49,null,{"$f":"'FR-16(7)(v)-1 Functional'!C106","v":"CUSTOMER SERVICE & INFORMATION"},{"$f":"'FR-16(7)(v)-1 Functional'!D106","v":"A310"},null,{"$f":"'FR-16(7)(v)-6 TRANS Classified'!G106","v":0},0,0,0,0,0,0,0,0,0,0,0,0,0]
[50,null,{"$f":"'FR-16(7)(v)-1 Functional'!C107","v":"SALES"},{"$f":"'FR-16(7)(v)-1 Functional'!D107","v":"A312"},null,{"$f":"'FR-16(7)(v)-6 TRANS Classified'!G107","v":0},0,0,0,0,0,0,0,0,0,0,0,0,0]
[51,null,{"$f":"'FR-16(7)(v)-1 Functional'!C108","v":"ADJUSTMENT"},{"$f":"'FR-16(7)(v)-1 Functional'!D108","v":"A315"},null,{"$f":"'FR-16(7)(v)-6 TRANS Classified'!G108","v":0},0,0,0,0,0,0,0,0,0,0,0,0,0]
[52,null,{"$f":"'FR-16(7)(v)-1 Functional'!C109","v":"  GEN & INTANG PLANT IN SERVICE"},null,null,{"$f":"SUM(F100:F108)","v":2639608},{"$f":"SUM(G100:G108)","v":1189883},{"$f":"SUM(H100:H108)","v":714384},{"$f":"SUM(I100:I108)","v":3431},{"$f":"SUM(J100:J108)","v":13541},185,356189,235479,11377,111576,3273,{"$f":"SUM(Q100:Q108)","v":290},{"$f":"SUM(R100:R108)","v":2639608},{"$f":"SUM(S100:S108)","v":0}]
[53]
[54,"COMMON & OTHER PLANT"]
[55,null,{"$f":"'FR-16(7)(v)-1 Functional'!C112","v":"PRODUCTION - DEMAND"},{"$f":"'FR-16(7)(v)-1 Functional'!D112","v":"K201"},null,{"$f":"'FR-16(7)(v)-6 TRANS Classified'!G112","v":0},{"$f":"F112-SUM(H112:Q112)","v":0},{"$f":"ROUND(F112*VLOOKUP(D112,ALLOCTABLE_Trans_Demand,$H$10,FALSE),0)","v":0},{"$f":"ROUND(F112*VLOOKUP(D112,ALLOCTABLE_Trans_Demand,$I$10,FALSE),0)","v":0},{"$f":"ROUND(F112*VLOOKUP(D112,ALLOCTABLE_Trans_Demand,$J$10,FALSE),0)","v":0},{"$f":"ROUND(F112*VLOOKUP(D112,ALLOCTABLE_Trans_Demand,$K$10,FALSE),0)","v":0},{"$f":"ROUND(F112*VLOOKUP(D112,ALLOCTABLE_Trans_Demand,$L$10,FALSE),0)","v":0},{"$f":"ROUND(F112*VLOOKUP(D112,ALLOCTABLE_Trans_Demand,$M$10,FALSE),0)","v":0},{"$f":"ROUND(F112*VLOOKUP(D112,ALLOCTABLE_Trans_Demand,$N$10,FALSE),0)","v":0},{"$f":"ROUND(F112*VLOOKUP(D112,ALLOCTABLE_Trans_Demand,$O$10,FALSE),0)","v":0},{"$f":"ROUND(F112*VLOOKUP(D112,ALLOCTABLE_Trans_Demand,$P$10,FALSE),0)","v":0},{"$f":"ROUND(F112*VLOOKUP(D112,ALLOCTABLE_Trans_Demand,$Q$10,FALSE),0)","v":0},{"$f":"SUM(G112:Q112)","v":0},{"$f":"F112-R112","v":0}]
[56,null,{"$f":"'FR-16(7)(v)-1 Functional'!C113","v":"PRODUCTION - ENERGY"},{"$f":"'FR-16(7)(v)-1 Functional'!D113","v":"K301"},null,{"$f":"'FR-16(7)(v)-6 TRANS Classified'!G113","v":0},0,0,0,0,0,0,0,0,0,0,0,0,0]
[57,null,{"$f":"'FR-16(7)(v)-1 Functional'!C114","v":"TRANSMISSION"},{"$f":"'FR-16(7)(v)-1 Functional'!D114","v":"K202"},null,{"$f":"'FR-16(7)(v)-6 TRANS Classified'!G114","v":1493971},673453,404328,1942,7664,105,201596,133277,6439,63150,1853,164,1493971,0]
[58,null,{"$f":"'FR-16(7)(v)-1 Functional'!C115","v":"DISTRIBUTION - DEMAND"},{"$f":"'FR-16(7)(v)-1 Functional'!D115","v":"K201"},null,{"$f":"'FR-16(7)(v)-6 TRANS Classified'!G115","v":0},0,0,0,0,0,0,0,0,0,0,0,0,0]
[59,null,{"$f":"'FR-16(7)(v)-1 Functional'!C116","v":"DISTRIBUTION - CUSTOMER"},{"$f":"'FR-16(7)(v)-1 Functional'!D116","v":"K405"},null,{"$f":"'FR-16(7)(v)-6 TRANS Classified'!G116","v":0},0,0,0,0,0,0,0,0,0,0,0,0,0]
[60,null,{"$f":"'FR-16(7)(v)-1 Functional'!C117","v":"CUSTOMER ACCOUNTING"},{"$f":"'FR-16(7)(v)-1 Functional'!D117","v":"A308"},null,{"$f":"'FR-16(7)(v)-6 TRANS Classified'!G117","v":0},0,0,0,0,0,0,0,0,0,0,0,0,0]
[61,null,{"$f":"'FR-16(7)(v)-1 Functional'!C118","v":"CUSTOMER SERVICE & INFORMATION"},{"$f":"'FR-16(7)(v)-1 Functional'!D118","v":"A310"},null,{"$f":"'FR-16(7)(v)-6 TRANS Classified'!G118","v":0},0,0,0,0,0,0,0,0,0,0,0,0,0]
[62,null,{"$f":"'FR-16(7)(v)-1 Functional'!C119","v":"SALES"},{"$f":"'FR-16(7)(v)-1 Functional'!D119","v":"A312"},null,{"$f":"'FR-16(7)(v)-6 TRANS Classified'!G119","v":0},0,0,0,0,0,0,0,0,0,0,0,0,0]
[63,null,{"$f":"'FR-16(7)(v)-1 Functional'!C120","v":"ADJUSTMENT"},{"$f":"'FR-16(7)(v)-1 Functional'!D120","v":"A315"},null,{"$f":"'FR-16(7)(v)-6 TRANS Classified'!G120","v":0},0,0,0,0,0,0,0,0,0,0,0,0,0]
[64,null,{"$f":"'FR-16(7)(v)-1 Functional'!C121","v":"  COMMON & OTHER PLANT IN SERVICE"},null,null,{"$f":"SUM(F112:F120)","v":1493971},{"$f":"SUM(G112:G120)","v":673453},{"$f":"SUM(H112:H120)","v":404328},{"$f":"SUM(I112:I120)","v":1942},{"$f":"SUM(J112:J120)","v":7664},105,201596,133277,6439,63150,1853,{"$f":"SUM(Q112:Q120)","v":164},{"$f":"SUM(R112:R120)","v":1493971},{"$f":"SUM(S112:S120)","v":0}]
[65]
[66,"GROSS ELECTRIC PLANT IN SERVICE",null,null,null,{"$f":"F97+F109+F121","v":76505281},{"$f":"G97+G109+G121","v":34487052},{"$f":"H97+H109+H121","v":20705389},{"$f":"I97+I109+I121","v":99456},{"$f":"J97+J109+J121","v":392472},5356,10323622,6825036,329738,3233878,94867,{"$f":"Q97+Q109+Q121","v":8415},{"$f":"R97+R109+R121","v":76505281},{"$f":"S97+S109+S121","v":0}]
[]
[{"$f":"co_name","v":"DUKE ENERGY KENTUCKY, INC."},null,null,null,null,null,null,null,null,null,null,null,null,null,null,null,null,{"$f":"R1","v":"FR-16(7)(v)-7"}]
[{"$f":"$A$2","v":"TRANSMISSION DEMAND ALLOCATED - ELECTRIC COST OF SERVICE"},null,null,null,null,null,null,null,null,null,null,null,null,null,null,null,null,{"$f":"R2","v":"WITNESS RESPONSIBLE:"}]
[{"$f":"case_name","v":"CASE NO: 2019-00271"},null,null,null,null,null,null,null,null,null,null,null,null,null,null,null,null,{"$f":"Witness","v":"JAMES E. ZIOLKOWSKI"}]
[{"$f":"data_filing","v":"DATA: 12 MONTHS ACTUAL  & 0 MONTHS ESTIMATED"},null,null,null,null,null,null,null,null,null,null,null,null,null,null,null,null,{"$f":"\"PAGE \"&Pages-15&\" OF \"&Pages","v":"PAGE 3 OF 18"}]
[{"$f":"type","v":"TYPE OF FILING: \"X\" ORIGINAL   UPDATED    REVISED  "}]
[]
[null,null,null,null,null,{"$f":"F$7","v":"TOTAL"},null,{"$f":"H$7","v":"DS"},{"$f":"I$7","v":"GSFL"},{"$f":"J$7","v":"EH"},{"$f":"K$7","v":"SP"},"DT SEC","DT PRI","DP","TT",null,"OTHER"]
["LINE",null,null,null,null,{"$f":"F$8","v":"TRANSMISSION"},{"$f":"G$8","v":"RS"},{"$f":"H$8","v":"SECONDARY"},{"$f":"I$8","v":"SECONDARY"},{"$f":"J$8","v":"SECONDARY"},{"$f":"K$8","v":"SECONDARY"},"SECONDARY","PRIMARY","PRIMARY","TRANSMISSION","LT","WATER",{"$f":"R8","v":"TOTAL"},"ALL"]
["NO.","DEPRECIATION RESERVE",null,"ALLO",null,{"$f":"F$9","v":"DEMAND"},{"$f":"G$9","v":"RESIDENTIAL"},{"$f":"H$9","v":"DISTRIBUTION"},{"$f":"I$9","v":"DISTRIBUTION"},{"$f":"J$9","v":"DISTRIBUTION"},{"$f":"K$9","v":"DISTRIBUTION"},"DISTRIBUTION","DISTRIBUTION","DISTRIBUTION","TIME OF DAY","LIGHTING","PUMPING",{"$f":"R9","v":"AT ISSUE"},"OTHER"]
[null,null,"Schedule 3",null,null,null,{"$f":"G$10","v":3},{"$f":"H$10","v":4},{"$f":"I$10","v":5},{"$f":"J$10","v":6},{"$f":"K$10","v":7},8,9,10,11,12,13,null," "]
[1,"PRODUCTION PLANT"]
[2,null,"PRODUCTION STEAM",{"$f":"'FR-16(7)(v)-1 Functional'!D136","v":"K201"},null,{"$f":"'FR-16(7)(v)-6 TRANS Classified'!G136","v":0},{"$f":"F136-SUM(H136:Q136)","v":0},{"$f":"ROUND(F136*VLOOKUP(D136,ALLOCTABLE_Trans_Demand,$H$10,FALSE),0)","v":0},{"$f":"ROUND(F136*VLOOKUP(D136,ALLOCTABLE_Trans_Demand,$I$10,FALSE),0)","v":0},{"$f":"ROUND(F136*VLOOKUP(D136,ALLOCTABLE_Trans_Demand,$J$10,FALSE),0)","v":0},{"$f":"ROUND(F136*VLOOKUP(D136,ALLOCTABLE_Trans_Demand,$K$10,FALSE),0)","v":0},{"$f":"ROUND(F136*VLOOKUP(D136,ALLOCTABLE_Trans_Demand,$L$10,FALSE),0)","v":0},{"$f":"ROUND(F136*VLOOKUP(D136,ALLOCTABLE_Trans_Demand,$M$10,FALSE),0)","v":0},{"$f":"ROUND(F136*VLOOKUP(D136,ALLOCTABLE_Trans_Demand,$N$10,FALSE),0)","v":0},{"$f":"ROUND(F136*VLOOKUP(D136,ALLOCTABLE_Trans_Demand,$O$10,FALSE),0)","v":0},{"$f":"ROUND(F136*VLOOKUP(D136,ALLOCTABLE_Trans_Demand,$P$10,FALSE),0)","v":0},{"$f":"ROUND(F136*VLOOKUP(D136,ALLOCTABLE_Trans_Demand,$Q$10,FALSE),0)","v":0},{"$f":"SUM(G136:Q136)","v":0},{"$f":"F136-R136","v":0}]
[3,null,"PRODUCTION OTHER",{"$f":"'FR-16(7)(v)-1 Functional'!D137","v":"K201"},null,{"$f":"'FR-16(7)(v)-6 TRANS Classified'!G137","v":0},{"$f":"F137-SUM(H137:Q137)","v":0},{"$f":"ROUND(F137*VLOOKUP(D137,ALLOCTABLE_Trans_Demand,$H$10,FALSE),0)","v":0},{"$f":"ROUND(F137*VLOOKUP(D137,ALLOCTABLE_Trans_Demand,$I$10,FALSE),0)","v":0},{"$f":"ROUND(F137*VLOOKUP(D137,ALLOCTABLE_Trans_Demand,$J$10,FALSE),0)","v":0},{"$f":"ROUND(F137*VLOOKUP(D137,ALLOCTABLE_Trans_Demand,$K$10,FALSE),0)","v":0},{"$f":"ROUND(F137*VLOOKUP(D137,ALLOCTABLE_Trans_Demand,$L$10,FALSE),0)","v":0},{"$f":"ROUND(F137*VLOOKUP(D137,ALLOCTABLE_Trans_Demand,$M$10,FALSE),0)","v":0},{"$f":"ROUND(F137*VLOOKUP(D137,ALLOCTABLE_Trans_Demand,$N$10,FALSE),0)","v":0},{"$f":"ROUND(F137*VLOOKUP(D137,ALLOCTABLE_Trans_Demand,$O$10,FALSE),0)","v":0},{"$f":"ROUND(F137*VLOOKUP(D137,ALLOCTABLE_Trans_Demand,$P$10,FALSE),0)","v":0},{"$f":"ROUND(F137*VLOOKUP(D137,ALLOCTABLE_Trans_Demand,$Q$10,FALSE),0)","v":0},{"$f":"SUM(G137:Q137)","v":0},{"$f":"F137-R137","v":0}]
[4,null,{"$f":"'FR-16(7)(v)-1 Functional'!C138","v":"ADJUSTMENT"},{"$f":"'FR-16(7)(v)-1 Functional'!D138","v":"K201"},null,{"$f":"'FR-16(7)(v)-6 TRANS Classified'!G138","v":0},{"$f":"F138-SUM(H138:Q138)","v":0},{"$f":"ROUND(F138*VLOOKUP(D138,ALLOCTABLE_Trans_Demand,$H$10,FALSE),0)","v":0},{"$f":"ROUND(F138*VLOOKUP(D138,ALLOCTABLE_Trans_Demand,$I$10,FALSE),0)","v":0},{"$f":"ROUND(F138*VLOOKUP(D138,ALLOCTABLE_Trans_Demand,$J$10,FALSE),0)","v":0},{"$f":"ROUND(F138*VLOOKUP(D138,ALLOCTABLE_Trans_Demand,$K$10,FALSE),0)","v":0},{"$f":"ROUND(F138*VLOOKUP(D138,ALLOCTABLE_Trans_Demand,$L$10,FALSE),0)","v":0},{"$f":"ROUND(F138*VLOOKUP(D138,ALLOCTABLE_Trans_Demand,$M$10,FALSE),0)","v":0},{"$f":"ROUND(F138*VLOOKUP(D138,ALLOCTABLE_Trans_Demand,$N$10,FALSE),0)","v":0},{"$f":"ROUND(F138*VLOOKUP(D138,ALLOCTABLE_Trans_Demand,$O$10,FALSE),0)","v":0},{"$f":"ROUND(F138*VLOOKUP(D138,ALLOCTABLE_Trans_Demand,$P$10,FALSE),0)","v":0},{"$f":"ROUND(F138*VLOOKUP(D138,ALLOCTABLE_Trans_Demand,$Q$10,FALSE),0)","v":0},{"$f":"SUM(G138:Q138)","v":0},{"$f":"F138-R138","v":0}]
[5,null,{"$f":"'FR-16(7)(v)-1 Functional'!C139","v":"  TOTAL PROD DEPREC RESERVE"},null,null,{"$f":"SUM(F136:F138)","v":0},0,0,0,0,0,0,0,0,0,0,0,0,{"$f":"SUM(S136:S136)","v":0}]
[6]
[7,"TRANSMISSION PLANT"]
[8,null,"MAIN STEP-UP TRANSFORMERS",{"$f":"'FR-16(7)(v)-1 Functional'!D142","v":"K202"},null,{"$f":"'FR-16(7)(v)-6 TRANS Classified'!G142","v":0},{"$f":"F142-SUM(H142:Q142)","v":0},{"$f":"ROUND(F142*VLOOKUP(D142,ALLOCTABLE_Trans_Demand,$H$10,FALSE),0)","v":0},{"$f":"ROUND(F142*VLOOKUP(D142,ALLOCTABLE_Trans_Demand,$I$10,FALSE),0)","v":0},{"$f":"ROUND(F142*VLOOKUP(D142,ALLOCTABLE_Trans_Demand,$J$10,FALSE),0)","v":0},{"$f":"ROUND(F142*VLOOKUP(D142,ALLOCTABLE_Trans_Demand,$K$10,FALSE),0)","v":0},{"$f":"ROUND(F142*VLOOKUP(D142,ALLOCTABLE_Trans_Demand,$L$10,FALSE),0)","v":0},{"$f":"ROUND(F142*VLOOKUP(D142,ALLOCTABLE_Trans_Demand,$M$10,FALSE),0)","v":0},{"$f":"ROUND(F142*VLOOKUP(D142,ALLOCTABLE_Trans_Demand,$N$10,FALSE),0)","v":0},{"$f":"ROUND(F142*VLOOKUP(D142,ALLOCTABLE_Trans_Demand,$O$10,FALSE),0)","v":0},{"$f":"ROUND(F142*VLOOKUP(D142,ALLOCTABLE_Trans_Demand,$P$10,FALSE),0)","v":0},{"$f":"ROUND(F142*VLOOKUP(D142,ALLOCTABLE_Trans_Demand,$Q$10,FALSE),0)","v":0},{"$f":"SUM(G142:Q142)","v":0},{"$f":"F142-R142","v":0}]
[9,null,"OTHER TRANSMISSION",{"$f":"'FR-16(7)(v)-1 Functional'!D143","v":"K202"},null,{"$f":"'FR-16(7)(v)-6 TRANS Classified'!G143","v":19959025},{"$f":"F143-SUM(H143:Q143)","v":8997129},{"$f":"ROUND(F143*VLOOKUP(D143,ALLOCTABLE_Trans_Demand,$H$10,FALSE),0)","v":5401711},{"$f":"ROUND(F143*VLOOKUP(D143,ALLOCTABLE_Trans_Demand,$I$10,FALSE),0)","v":25947},{"$f":"ROUND(F143*VLOOKUP(D143,ALLOCTABLE_Trans_Demand,$J$10,FALSE),0)","v":102390},{"$f":"ROUND(F143*VLOOKUP(D143,ALLOCTABLE_Trans_Demand,$K$10,FALSE),0)","v":1397},{"$f":"ROUND(F143*VLOOKUP(D143,ALLOCTABLE_Trans_Demand,$L$10,FALSE),0)","v":2693271},{"$f":"ROUND(F143*VLOOKUP(D143,ALLOCTABLE_Trans_Demand,$M$10,FALSE),0)","v":1780545},{"$f":"ROUND(F143*VLOOKUP(D143,ALLOCTABLE_Trans_Demand,$N$10,FALSE),0)","v":86023},{"$f":"ROUND(F143*VLOOKUP(D143,ALLOCTABLE_Trans_Demand,$O$10,FALSE),0)","v":843668},{"$f":"ROUND(F143*VLOOKUP(D143,ALLOCTABLE_Trans_Demand,$P$10,FALSE),0)","v":24749},{"$f":"ROUND(F143*VLOOKUP(D143,ALLOCTABLE_Trans_Demand,$Q$10,FALSE),0)","v":2195},{"$f":"SUM(G143:Q143)","v":19959025},{"$f":"F143-R143","v":0}]
[10,null,"ADJUSTMENT",{"$f":"'FR-16(7)(v)-1 Functional'!D144","v":"K202"},null,{"$f":"'FR-16(7)(v)-6 TRANS Classified'!G144","v":-70176},{"$f":"F144-SUM(H144:Q144)","v":-31635},{"$f":"ROUND(F144*VLOOKUP(D144,ALLOCTABLE_Trans_Demand,$H$10,FALSE),0)","v":-18992},{"$f":"ROUND(F144*VLOOKUP(D144,ALLOCTABLE_Trans_Demand,$I$10,FALSE),0)","v":-91},{"$f":"ROUND(F144*VLOOKUP(D144,ALLOCTABLE_Trans_Demand,$J$10,FALSE),0)","v":-360},{"$f":"ROUND(F144*VLOOKUP(D144,ALLOCTABLE_Trans_Demand,$K$10,FALSE),0)","v":-5},{"$f":"ROUND(F144*VLOOKUP(D144,ALLOCTABLE_Trans_Demand,$L$10,FALSE),0)","v":-9470},{"$f":"ROUND(F144*VLOOKUP(D144,ALLOCTABLE_Trans_Demand,$M$10,FALSE),0)","v":-6260},{"$f":"ROUND(F144*VLOOKUP(D144,ALLOCTABLE_Trans_Demand,$N$10,FALSE),0)","v":-302},{"$f":"ROUND(F144*VLOOKUP(D144,ALLOCTABLE_Trans_Demand,$O$10,FALSE),0)","v":-2966},{"$f":"ROUND(F144*VLOOKUP(D144,ALLOCTABLE_Trans_Demand,$P$10,FALSE),0)","v":-87},{"$f":"ROUND(F144*VLOOKUP(D144,ALLOCTABLE_Trans_Demand,$Q$10,FALSE),0)","v":-8},{"$f":"SUM(G144:Q144)","v":-70176},{"$f":"F144-R144","v":0}]
[11,null,"  TOTAL TRANS DEPREC RESERVE",null,null,{"$f":"SUM(F142:F144)","v":19888849},{"$f":"SUM(G142:G144)","v":8965494},5382719,25856,102030,1392,2683801,1774285,85721,840702,24662,2187,{"$f":"SUM(R142:R144)","v":19888849},{"$f":"SUM(S142:S142)","v":0}]
[12]
[13,null,"TOTAL PROD & TRANS DEPREC RESERVE",null,null,{"$f":"F145+F139","v":19888849},{"$f":"G145+G139","v":8965494},5382719,25856,102030,1392,2683801,1774285,85721,840702,24662,2187,{"$f":"SUM(G147:Q147)","v":19888849},{"$f":"F147-R147","v":0}]
[14]
[15,"DISTRIBUTION PLANT"]
[16,null,{"$f":"'FR-16(7)(v)-1 Functional'!C150","v":"SUBSTATIONS"},{"$f":"'FR-16(7)(v)-1 Functional'!D150","v":"K215"},null,{"$f":"'FR-16(7)(v)-6 TRANS Classified'!G150","v":0},{"$f":"F150-SUM(H150:Q150)","v":0},{"$f":"ROUND(F150*VLOOKUP(D150,ALLOCTABLE_Trans_Demand,$H$10,FALSE),0)","v":0},{"$f":"ROUND(F150*VLOOKUP(D150,ALLOCTABLE_Trans_Demand,$I$10,FALSE),0)","v":0},{"$f":"ROUND(F150*VLOOKUP(D150,ALLOCTABLE_Trans_Demand,$J$10,FALSE),0)","v":0},{"$f":"ROUND(F150*VLOOKUP(D150,ALLOCTABLE_Trans_Demand,$K$10,FALSE),0)","v":0},{"$f":"ROUND(F150*VLOOKUP(D150,ALLOCTABLE_Trans_Demand,$L$10,FALSE),0)","v":0},{"$f":"ROUND(F150*VLOOKUP(D150,ALLOCTABLE_Trans_Demand,$M$10,FALSE),0)","v":0},{"$f":"ROUND(F150*VLOOKUP(D150,ALLOCTABLE_Trans_Demand,$N$10,FALSE),0)","v":0},{"$f":"ROUND(F150*VLOOKUP(D150,ALLOCTABLE_Trans_Demand,$O$10,FALSE),0)","v":0},{"$f":"ROUND(F150*VLOOKUP(D150,ALLOCTABLE_Trans_Demand,$P$10,FALSE),0)","v":0},{"$f":"ROUND(F150*VLOOKUP(D150,ALLOCTABLE_Trans_Demand,$Q$10,FALSE),0)","v":0},{"$f":"SUM(G150:Q150)","v":0},{"$f":"F150-R150","v":0}]
[17,null,{"$f":"'FR-16(7)(v)-1 Functional'!C151","v":"POLES, TOWERS  & FIXTURES - PRIMARY - DEMAND"},{"$f":"'FR-16(7)(v)-1 Functional'!D151","v":"K205"},null,{"$f":"'FR-16(7)(v)-6 TRANS Classified'!G151","v":0},0,0,0,0,0,0,0,0,0,0,0,0,0]
[18,null,{"$f":"'FR-16(7)(v)-1 Functional'!C152","v":"POLES, TOWERS  & FIXTURES - PRIMARY - CUSTOMER"},{"$f":"'FR-16(7)(v)-1 Functional'!D152","v":"K405"},null,{"$f":"'FR-16(7)(v)-6 TRANS Classified'!G152","v":0},0,0,0,0,0,0,0,0,0,0,0,0,0]
[19,null,{"$f":"'FR-16(7)(v)-1 Functional'!C153","v":"POLES, TOWERS  & FIXTURES - SECONDARY - DEMAND"},{"$f":"'FR-16(7)(v)-1 Functional'!D153","v":"K206"},null,{"$f":"'FR-16(7)(v)-6 TRANS Classified'!G153","v":0},0,0,0,0,0,0,0,0,0,0,0,0,0]
[20,null,{"$f":"'FR-16(7)(v)-1 Functional'!C154","v":"POLES, TOWERS  & FIXTURES - SECONDARY - CUSTOMER"},{"$f":"'FR-16(7)(v)-1 Functional'!D154","v":"K405"},null,{"$f":"'FR-16(7)(v)-6 TRANS Classified'!G154","v":0},0,0,0,0,0,0,0,0,0,0,0,0,0]
[21,null,{"$f":"'FR-16(7)(v)-1 Functional'!C155","v":"CONDUCTORS - OVERHEAD / PRIMARY - DEMAND"},{"$f":"'FR-16(7)(v)-1 Functional'!D155","v":"K205"},null,{"$f":"'FR-16(7)(v)-6 TRANS Classified'!G155","v":0},0,0,0,0,0,0,0,0,0,0,0,0,0]
[22,null,{"$f":"'FR-16(7)(v)-1 Functional'!C156","v":"CONDUCTORS - OVERHEAD / PRIMARY - CUSTOMER"},{"$f":"'FR-16(7)(v)-1 Functional'!D156","v":"K405"},null,{"$f":"'FR-16(7)(v)-6 TRANS Classified'!G156","v":0},0,0,0,0,0,0,0,0,0,0,0,0,0]
[23,null,{"$f":"'FR-16(7)(v)-1 Functional'!C157","v":"CONDUCTORS - OVERHEAD / SECONDARY - DEMAND"},{"$f":"'FR-16(7)(v)-1 Functional'!D157","v":"K206"},null,{"$f":"'FR-16(7)(v)-6 TRANS Classified'!G157","v":0},0,0,0,0,0,0,0,0,0,0,0,0,0]
[24,null,{"$f":"'FR-16(7)(v)-1 Functional'!C158","v":"CONDUCTORS - OVERHEAD / SECONDARY - CUSTOMER"},{"$f":"'FR-16(7)(v)-1 Functional'!D158","v":"K405"},null,{"$f":"'FR-16(7)(v)-6 TRANS Classified'!G158","v":0},0,0,0,0,0,0,0,0,0,0,0,0,0]
[25,null,{"$f":"'FR-16(7)(v)-1 Functional'!C159","v":"CONDUCTORS - UNDERGROUND / PRIMARY - DEMAND"},{"$f":"'FR-16(7)(v)-1 Functional'!D159","v":"K205"},null,{"$f":"'FR-16(7)(v)-6 TRANS Classified'!G159","v":0},0,0,0,0,0,0,0,0,0,0,0,0,0]
[26,null,{"$f":"'FR-16(7)(v)-1 Functional'!C160","v":"CONDUCTORS - UNDERGROUND / PRIMARY - CUSTOMER"},{"$f":"'FR-16(7)(v)-1 Functional'!D160","v":"K405"},null,{"$f":"'FR-16(7)(v)-6 TRANS Classified'!G160","v":0},0,0,0,0,0,0,0,0,0,0,0,0,0]
[27,null,{"$f":"'FR-16(7)(v)-1 Functional'!C161","v":"CONDUCTORS - UNDERGROUND / SECONDARY - DEMAND"},{"$f":"'FR-16(7)(v)-1 Functional'!D161","v":"K206"},null,{"$f":"'FR-16(7)(v)-6 TRANS Classified'!G161","v":0},0,0,0,0,0,0,0,0,0,0,0,0,0]
[28,null,{"$f":"'FR-16(7)(v)-1 Functional'!C162","v":"CONDUCTORS - UNDERGROUND / SECONDARY - CUSTOMER"},{"$f":"'FR-16(7)(v)-1 Functional'!D162","v":"K405"},null,{"$f":"'FR-16(7)(v)-6 TRANS Classified'!G162","v":0},0,0,0,0,0,0,0,0,0,0,0,0,0]
[29,null,{"$f":"'FR-16(7)(v)-1 Functional'!C163","v":"TRANSFORMERS DEMAND RELATED"},{"$f":"'FR-16(7)(v)-1 Functional'!D163","v":"K215"},null,{"$f":"'FR-16(7)(v)-6 TRANS Classified'!G163","v":0},0,0,0,0,0,0,0,0,0,0,0,0,0]
[30,null,{"$f":"'FR-16(7)(v)-1 Functional'!C164","v":"TRANSFORMERS CUSTOMER RELATED"},{"$f":"'FR-16(7)(v)-1 Functional'!D164","v":"K405"},null,{"$f":"'FR-16(7)(v)-6 TRANS Classified'!G164","v":0},0,0,0,0,0,0,0,0,0,0,0,0,0]
[31,null,{"$f":"'FR-16(7)(v)-1 Functional'!C165","v":"SERVICES"},{"$f":"'FR-16(7)(v)-1 Functional'!D165","v":"K217"},null,{"$f":"'FR-16(7)(v)-6 TRANS Classified'!G165","v":0},0,0,0,0,0,0,0,0,0,0,0,0,0]
[32,null,{"$f":"'FR-16(7)(v)-1 Functional'!C166","v":"METERS"},{"$f":"'FR-16(7)(v)-1 Functional'!D166","v":"K407"},null,{"$f":"'FR-16(7)(v)-6 TRANS Classified'!G166","v":0},0,0,0,0,0,0,0,0,0,0,0,0,0]
[33,null,{"$f":"'FR-16(7)(v)-1 Functional'!C167","v":"STREET LIGHTS"},{"$f":"'FR-16(7)(v)-1 Functional'!D167","v":"K401"},null,{"$f":"'FR-16(7)(v)-6 TRANS Classified'!G167","v":0},0,0,0,0,0,0,0,0,0,0,0,0,0]
[34,null,{"$f":"'FR-16(7)(v)-1 Functional'!C168","v":"ADJUSTMENT  "},{"$f":"'FR-16(7)(v)-1 Functional'!D168","v":"K209"},null,{"$f":"'FR-16(7)(v)-6 TRANS Classified'!G168","v":0},0,0,0,0,0,0,0,0,0,0,0,0,0]
[35,null,{"$f":"'FR-16(7)(v)-1 Functional'!C169","v":"CONSTRUCTION NOT CLASSIFIED"},{"$f":"'FR-16(7)(v)-1 Functional'!D169","v":"K209"},null,{"$f":"'FR-16(7)(v)-6 TRANS Classified'!G169","v":0},0,0,0,0,0,0,0,0,0,0,0,0,0]
[36,null,{"$f":"'FR-16(7)(v)-1 Functional'!C170","v":"RWIP"},{"$f":"'FR-16(7)(v)-1 Functional'!D170","v":"K215"},null,{"$f":"'FR-16(7)(v)-6 TRANS Classified'!G170","v":0},{"$f":"F170-SUM(H170:Q170)","v":0},{"$f":"ROUND($F$170*VLOOKUP($D$170,ALLOCTABLE_Trans_Demand,H$10,FALSE),0)","v":0},0,0,0,0,0,0,0,0,0,{"$f":"SUM(G170:Q170)","v":0},{"$f":"F170-R170","v":0}]
[37,null,{"$f":"'FR-16(7)(v)-1 Functional'!C171","v":"  TOTAL DIST DEPREC RESERVE"},null,null,{"$f":"SUM(F149:F170)","v":0},{"$f":"SUM(G149:G170)","v":0},0,0,0,0,0,0,0,0,0,0,0,0]
[38]
[39,null,"TOTAL TRANS & DIST DEPREC RESERVE",null,null,{"$f":"F171+F145","v":19888849},{"$f":"G171+G145","v":8965494},5382719,25856,102030,1392,2683801,1774285,85721,840702,24662,2187,{"$f":"SUM(G173:Q173)","v":19888849},{"$f":"F173-R173","v":0}]
[40,null,"TOTAL GROSS PTD PLANT DEPREC RESERVE",null,null,{"$f":"F147+F171","v":19888849},{"$f":"G147+G171","v":8965494},5382719,25856,102030,1392,2683801,1774285,85721,840702,24662,2187,{"$f":"SUM(G174:Q174)","v":19888849},{"$f":"F174-R174","v":0}]
[41]
[42,"GENERAL & INTANGIBLE PLANT"]
[43,null,{"$f":"'FR-16(7)(v)-1 Functional'!C177","v":"PRODUCTION - DEMAND"},{"$f":"'FR-16(7)(v)-1 Functional'!D177","v":"K201"},null,{"$f":"'FR-16(7)(v)-6 TRANS Classified'!G177","v":0},{"$f":"F177-SUM(H177:Q177)","v":0},{"$f":"ROUND(F177*VLOOKUP(D177,ALLOCTABLE_Trans_Demand,$H$10,FALSE),0)","v":0},{"$f":"ROUND(F177*VLOOKUP(D177,ALLOCTABLE_Trans_Demand,$I$10,FALSE),0)","v":0},{"$f":"ROUND(F177*VLOOKUP(D177,ALLOCTABLE_Trans_Demand,$J$10,FALSE),0)","v":0},{"$f":"ROUND(F177*VLOOKUP(D177,ALLOCTABLE_Trans_Demand,$K$10,FALSE),0)","v":0},{"$f":"ROUND(F177*VLOOKUP(D177,ALLOCTABLE_Trans_Demand,$L$10,FALSE),0)","v":0},{"$f":"ROUND(F177*VLOOKUP(D177,ALLOCTABLE_Trans_Demand,$M$10,FALSE),0)","v":0},{"$f":"ROUND(F177*VLOOKUP(D177,ALLOCTABLE_Trans_Demand,$N$10,FALSE),0)","v":0},{"$f":"ROUND(F177*VLOOKUP(D177,ALLOCTABLE_Trans_Demand,$O$10,FALSE),0)","v":0},{"$f":"ROUND(F177*VLOOKUP(D177,ALLOCTABLE_Trans_Demand,$P$10,FALSE),0)","v":0},{"$f":"ROUND(F177*VLOOKUP(D177,ALLOCTABLE_Trans_Demand,$Q$10,FALSE),0)","v":0},{"$f":"SUM(G177:Q177)","v":0},{"$f":"F177-R177","v":0}]
[44,null,{"$f":"'FR-16(7)(v)-1 Functional'!C178","v":"PRODUCTION - ENERGY"},{"$f":"'FR-16(7)(v)-1 Functional'!D178","v":"K301"},null,{"$f":"'FR-16(7)(v)-6 TRANS Classified'!G178","v":0},0,0,0,0,0,0,0,0,0,0,0,0,0]
[45,null,{"$f":"'FR-16(7)(v)-1 Functional'!C179","v":"TRANSMISSION"},{"$f":"'FR-16(7)(v)-1 Functional'!D179","v":"K202"},null,{"$f":"'FR-16(7)(v)-6 TRANS Classified'!G179","v":850643},383451,230218,1106,4364,60,114786,75886,3666,35957,1055,94,850643,0]
[46,null,{"$f":"'FR-16(7)(v)-1 Functional'!C180","v":"DISTRIBUTION - DEMAND"},{"$f":"'FR-16(7)(v)-1 Functional'!D180","v":"K201"},null,{"$f":"'FR-16(7)(v)-6 TRANS Classified'!G180","v":0},0,0,0,0,0,0,0,0,0,0,0,0,0]
[47,null,{"$f":"'FR-16(7)(v)-1 Functional'!C181","v":"DISTRIBUTION - CUSTOMER"},{"$f":"'FR-16(7)(v)-1 Functional'!D181","v":"K405"},null,{"$f":"'FR-16(7)(v)-6 TRANS Classified'!G181","v":0},0,0,0,0,0,0,0,0,0,0,0,0,0]
[48,null,{"$f":"'FR-16(7)(v)-1 Functional'!C182","v":"CUSTOMER ACCOUNTING"},{"$f":"'FR-16(7)(v)-1 Functional'!D182","v":"A308"},null,{"$f":"'FR-16(7)(v)-6 TRANS Classified'!G182","v":0},0,0,0,0,0,0,0,0,0,0,0,0,0]
[49,null,{"$f":"'FR-16(7)(v)-1 Functional'!C183","v":"CUSTOMER SERVICE & INFORMATION"},{"$f":"'FR-16(7)(v)-1 Functional'!D183","v":"A310"},null,{"$f":"'FR-16(7)(v)-6 TRANS Classified'!G183","v":0},0,0,0,0,0,0,0,0,0,0,0,0,0]
[50,null,{"$f":"'FR-16(7)(v)-1 Functional'!C184","v":"SALES"},{"$f":"'FR-16(7)(v)-1 Functional'!D184","v":"A312"},null,{"$f":"'FR-16(7)(v)-6 TRANS Classified'!G184","v":0},0,0,0,0,0,0,0,0,0,0,0,0,0]
[51,null,{"$f":"'FR-16(7)(v)-1 Functional'!C185","v":"ADJUSTMENT"},{"$f":"'FR-16(7)(v)-1 Functional'!D185","v":"A315"},null,{"$f":"'FR-16(7)(v)-6 TRANS Classified'!G185","v":15145},6826,4099,20,78,1,2044,1351,65,640,19,2,15145,0]
[52,null,"  GENERAL & INTANG PLANT",null,null,{"$f":"SUM(F176:F185)","v":865788},{"$f":"SUM(G176:G185)","v":390277},{"$f":"SUM(H176:H185)","v":234317},{"$f":"SUM(I176:I185)","v":1126},{"$f":"SUM(J176:J185)","v":4442},61,116830,77237,3731,36597,1074,{"$f":"SUM(Q176:Q185)","v":96},{"$f":"SUM(R176:R185)","v":865788},{"$f":"SUM(S176:S185)","v":0}]
[53]
[54,"COMMON & OTHER PLANT"]
[55,null,{"$f":"'FR-16(7)(v)-1 Functional'!C189","v":"PRODUCTION - DEMAND"},{"$f":"'FR-16(7)(v)-1 Functional'!D189","v":"K201"},null,{"$f":"'FR-16(7)(v)-6 TRANS Classified'!G189","v":0},{"$f":"F189-SUM(H189:Q189)","v":0},{"$f":"ROUND(F189*VLOOKUP(D189,ALLOCTABLE_Trans_Demand,$H$10,FALSE),0)","v":0},{"$f":"ROUND(F189*VLOOKUP(D189,ALLOCTABLE_Trans_Demand,$I$10,FALSE),0)","v":0},{"$f":"ROUND(F189*VLOOKUP(D189,ALLOCTABLE_Trans_Demand,$J$10,FALSE),0)","v":0},{"$f":"ROUND(F189*VLOOKUP(D189,ALLOCTABLE_Trans_Demand,$K$10,FALSE),0)","v":0},{"$f":"ROUND(F189*VLOOKUP(D189,ALLOCTABLE_Trans_Demand,$L$10,FALSE),0)","v":0},{"$f":"ROUND(F189*VLOOKUP(D189,ALLOCTABLE_Trans_Demand,$M$10,FALSE),0)","v":0},{"$f":"ROUND(F189*VLOOKUP(D189,ALLOCTABLE_Trans_Demand,$N$10,FALSE),0)","v":0},{"$f":"ROUND(F189*VLOOKUP(D189,ALLOCTABLE_Trans_Demand,$O$10,FALSE),0)","v":0},{"$f":"ROUND(F189*VLOOKUP(D189,ALLOCTABLE_Trans_Demand,$P$10,FALSE),0)","v":0},{"$f":"ROUND(F189*VLOOKUP(D189,ALLOCTABLE_Trans_Demand,$Q$10,FALSE),0)","v":0},{"$f":"SUM(G189:Q189)","v":0},{"$f":"F189-R189","v":0}]
[56,null,{"$f":"'FR-16(7)(v)-1 Functional'!C190","v":"PRODUCTION - ENERGY"},{"$f":"'FR-16(7)(v)-1 Functional'!D190","v":"K301"},null,{"$f":"'FR-16(7)(v)-6 TRANS Classified'!G190","v":0},0,0,0,0,0,0,0,0,0,0,0,0,0]
[57,null,{"$f":"'FR-16(7)(v)-1 Functional'!C191","v":"TRANSMISSION"},{"$f":"'FR-16(7)(v)-1 Functional'!D191","v":"K202"},null,{"$f":"'FR-16(7)(v)-6 TRANS Classified'!G191","v":1149371},518115,311066,1494,5896,80,155096,102535,4954,48584,1425,126,1149371,0]
[58,null,{"$f":"'FR-16(7)(v)-1 Functional'!C192","v":"DISTRIBUTION - DEMAND"},{"$f":"'FR-16(7)(v)-1 Functional'!D192","v":"K201"},null,{"$f":"'FR-16(7)(v)-6 TRANS Classified'!G192","v":0},0,0,0,0,0,0,0,0,0,0,0,0,0]
[59,null,{"$f":"'FR-16(7)(v)-1 Functional'!C193","v":"DISTRIBUTION - CUSTOMER"},{"$f":"'FR-16(7)(v)-1 Functional'!D193","v":"K405"},null,{"$f":"'FR-16(7)(v)-6 TRANS Classified'!G193","v":0},0,0,0,0,0,0,0,0,0,0,0,0,0]
[60,null,{"$f":"'FR-16(7)(v)-1 Functional'!C194","v":"CUSTOMER ACCOUNTING"},{"$f":"'FR-16(7)(v)-1 Functional'!D194","v":"A308"},null,{"$f":"'FR-16(7)(v)-6 TRANS Classified'!G194","v":0},0,0,0,0,0,0,0,0,0,0,0,0,0]
[61,null,{"$f":"'FR-16(7)(v)-1 Functional'!C195","v":"CUSTOMER SERVICE & INFORMATION"},{"$f":"'FR-16(7)(v)-1 Functional'!D195","v":"A310"},null,{"$f":"'FR-16(7)(v)-6 TRANS Classified'!G195","v":0},0,0,0,0,0,0,0,0,0,0,0,0,0]
[62,null,{"$f":"'FR-16(7)(v)-1 Functional'!C196","v":"SALES"},{"$f":"'FR-16(7)(v)-1 Functional'!D196","v":"A312"},null,{"$f":"'FR-16(7)(v)-6 TRANS Classified'!G196","v":0},0,0,0,0,0,0,0,0,0,0,0,0,0]
[63,null,{"$f":"'FR-16(7)(v)-1 Functional'!C197","v":"ADJUSTMENT"},{"$f":"'FR-16(7)(v)-1 Functional'!D197","v":"A315"},null,{"$f":"'FR-16(7)(v)-6 TRANS Classified'!G197","v":851},384,230,1,4,0,115,76,4,36,1,0,851,0]
[64,null,{"$f":"'FR-16(7)(v)-1 Functional'!C198","v":"  COMMON & OTHER PLANT IN SERVICE"},null,null,{"$f":"SUM(F189:F197)","v":1150222},{"$f":"SUM(G188:G197)","v":518499},311296,1495,{"$f":"SUM(J188:J197)","v":5900},80,155211,102611,4958,48620,1426,126,1150222,0]
[65]
[66,"TOTAL DEPRECIATION RESERVE",null,null,null,{"$f":"F198+F186+F171+F145+F139","v":21904859},{"$f":"G198+G186+G171+G145+G139","v":9874270},{"$f":"H198+H186+H171+H145+H139","v":5928332},{"$f":"I198+I186+I171+I145+I139","v":28477},112372,1533,2955842,1954133,94410,925919,27162,2409,{"$f":"SUM(G200:Q200)","v":21904859},{"$f":"F200-R200","v":0}]
[]
[{"$f":"co_name","v":"DUKE ENERGY KENTUCKY, INC."},null,null,null,null,null,null,null,null,null,null,null,null,null,null,null,null,{"$f":"R1","v":"FR-16(7)(v)-7"}]
[{"$f":"$A$2","v":"TRANSMISSION DEMAND ALLOCATED - ELECTRIC COST OF SERVICE"},null,null,null,null,null,null,null,null,null,null,null,null,null,null,null,null,{"$f":"R2","v":"WITNESS RESPONSIBLE:"}]
[{"$f":"case_name","v":"CASE NO: 2019-00271"},null,null,null,null,null,null,null,null,null,null,null,null,null,null,null,null,{"$f":"Witness","v":"JAMES E. ZIOLKOWSKI"}]
[{"$f":"data_filing","v":"DATA: 12 MONTHS ACTUAL  & 0 MONTHS ESTIMATED"},null,null,null,null,null,null,null,null,null,null,null,null,null,null,null,null,{"$f":"\"PAGE \"&Pages-14&\" OF \"&Pages","v":"PAGE 4 OF 18"}]
[{"$f":"type","v":"TYPE OF FILING: \"X\" ORIGINAL   UPDATED    REVISED  "}]
[]
[null,null,null,null,null,{"$f":"F$7","v":"TOTAL"},null,{"$f":"H$7","v":"DS"},{"$f":"I$7","v":"GSFL"},{"$f":"J$7","v":"EH"},{"$f":"K$7","v":"SP"},"DT SEC","DT PRI","DP","TT",null,"OTHER"]
["LINE",null,null,null,null,{"$f":"F$8","v":"TRANSMISSION"},{"$f":"G$8","v":"RS"},{"$f":"H$8","v":"SECONDARY"},{"$f":"I$8","v":"SECONDARY"},{"$f":"J$8","v":"SECONDARY"},{"$f":"K$8","v":"SECONDARY"},"SECONDARY","PRIMARY","PRIMARY","TRANSMISSION","LT","WATER",{"$f":"R8","v":"TOTAL"},"ALL"]
["NO.",{"$f":"\"NET ELECTRIC PLANT\"","v":"NET ELECTRIC PLANT"},null,"ALLO",null,{"$f":"F$9","v":"DEMAND"},{"$f":"G$9","v":"RESIDENTIAL"},{"$f":"H$9","v":"DISTRIBUTION"},{"$f":"I$9","v":"DISTRIBUTION"},{"$f":"J$9","v":"DISTRIBUTION"},{"$f":"K$9","v":"DISTRIBUTION"},"DISTRIBUTION","DISTRIBUTION","DISTRIBUTION","TIME OF DAY","LIGHTING","PUMPING",{"$f":"R9","v":"AT ISSUE"},"OTHER"]
[null,null,"Schedule 4",null,null,null,{"$f":"G$10","v":3},{"$f":"H$10","v":4},{"$f":"I$10","v":5},{"$f":"J$10","v":6},{"$f":"K$10","v":7},8,9,10,11,12,13,null," "]
[1,"PRODUCTION PLANT"]
[2,null,"PRODUCTION STEAM",null,null,{"$f":"F59-F136","v":0},{"$f":"G59-G136","v":0},{"$f":"H59-H136","v":0},{"$f":"I59-I136","v":0},{"$f":"J59-J136","v":0},0,0,0,0,0,0,{"$f":"Q59-Q136","v":0},{"$f":"R59-R136","v":0},{"$f":"F213-R213","v":0}]
[3,null,"PRODUCTION OTHER",null,null,{"$f":"F60-F137","v":0},0,0,0,{"$f":"J60-J137","v":0},0,0,0,0,0,0,0,0,{"$f":"F214-R214","v":0}]
[4,null,"ADJUSTMENT",null,null,{"$f":"F61-F138","v":0},0,0,0,{"$f":"J61-J138","v":0},0,0,0,0,0,0,0,0,{"$f":"F215-R215","v":0}]
[5,null,{"$f":"'FR-16(7)(v)-1 Functional'!C216","v":"  NET PRODUCTION PLANT"},null,null,{"$f":"SUM(F213:F215)","v":0},0,0,0,{"$f":"SUM(J213:J215)","v":0},0,0,0,0,0,0,0,0,0]
[6]
[7,"TRANSMISSION PLANT"]
[8,null,"MAIN STEP-UP TRANSFORMERS",null,null,{"$f":"F65-F142","v":0},0,0,0,{"$f":"J65-J142","v":0},0,0,0,0,0,0,0,0,{"$f":"F219-R219","v":0}]
[9,null,"OTHER TRANSMISSION",null,null,{"$f":"F66-F143","v":52412677},23626587,14184966,68136,{"$f":"J66-J143","v":268877},3669,7072566,4675735,225899,2215484,64992,{"$f":"Q66-Q143","v":5766},{"$f":"R66-R143","v":52412677},{"$f":"F220-R220","v":0}]
[10,null,"ADJUSTMENT",null,null,70176,31635,18992,91,{"$f":"J67-J144","v":360},5,9470,6260,302,2966,87,{"$f":"Q67-Q144","v":8},{"$f":"R67-R144","v":70176},{"$f":"F221-R221","v":0}]
[11,null,{"$f":"'FR-16(7)(v)-1 Functional'!C222","v":"    NET TRANSMISSION PLANT"},null,null,{"$f":"SUM(F218:F221)","v":52482853},23658222,14203958,68227,{"$f":"SUM(J218:J221)","v":269237},3674,7082036,4681995,226201,2218450,65079,5774,52482853,0]
[12]
[13,"NET PROD & TRANS PLANT",null,null,null,{"$f":"F70-F147","v":52482853},{"$f":"G70-G147","v":23658222},{"$f":"H70-H147","v":14203958},68227,269237,3674,7082036,4681995,226201,2218450,65079,5774,52482853,{"$f":"F224-R224","v":0}]
[14]
[15,"DISTRIBUTION PLANT"]
[16,null,{"$f":"'FR-16(7)(v)-1 Functional'!C227","v":"SUBSTATIONS"},null,null,{"$f":"F73-F150","v":0},{"$f":"G73-G150","v":0},{"$f":"H73-H150","v":0},0,0,0,0,0,0,0,0,0,{"$f":"R73-R150","v":0},{"$f":"F227-R227","v":0}]
[17,null,{"$f":"'FR-16(7)(v)-1 Functional'!C228","v":"POLES, TOWERS  & FIXTURES - PRIMARY - DEMAND"},null,null,{"$f":"F74-F151","v":0},{"$f":"G74-G151","v":0},{"$f":"H74-H151","v":0},0,0,0,0,0,0,0,0,0,{"$f":"R74-R151","v":0},{"$f":"F228-R228","v":0}]
[18,null,{"$f":"'FR-16(7)(v)-1 Functional'!C229","v":"POLES, TOWERS  & FIXTURES - PRIMARY - CUSTOMER"},null,null,{"$f":"F75-F152","v":0},{"$f":"G75-G152","v":0},0,0,0,0,0,0,0,0,0,0,0,{"$f":"F229-R229","v":0}]
[19,null,{"$f":"'FR-16(7)(v)-1 Functional'!C230","v":"POLES, TOWERS  & FIXTURES - SECONDARY - DEMAND"},null,null,0,{"$f":"G76-G153","v":0},0,0,0,0,0,0,0,0,0,0,0,0]
[20,null,{"$f":"'FR-16(7)(v)-1 Functional'!C231","v":"POLES, TOWERS  & FIXTURES - SECONDARY - CUSTOMER"},null,null,0,{"$f":"G77-G154","v":0},0,0,0,0,0,0,0,0,0,0,0,0]
[21,null,{"$f":"'FR-16(7)(v)-1 Functional'!C232","v":"CONDUCTORS - OVERHEAD / PRIMARY - DEMAND"},null,null,0,{"$f":"G78-G155","v":0},0,0,0,0,0,0,0,0,0,0,0,0]
[22,null,{"$f":"'FR-16(7)(v)-1 Functional'!C233","v":"CONDUCTORS - OVERHEAD / PRIMARY - CUSTOMER"},null,null,0,{"$f":"G79-G156","v":0},0,0,0,0,0,0,0,0,0,0,0,0]
[23,null,{"$f":"'FR-16(7)(v)-1 Functional'!C234","v":"CONDUCTORS - OVERHEAD / SECONDARY - DEMAND"},null,null,0,{"$f":"G80-G157","v":0},0,0,0,0,0,0,0,0,0,0,0,0]
[24,null,{"$f":"'FR-16(7)(v)-1 Functional'!C235","v":"CONDUCTORS - OVERHEAD / SECONDARY - CUSTOMER"},null,null,0,{"$f":"G81-G158","v":0},0,0,0,0,0,0,0,0,0,0,0,0]
[25,null,{"$f":"'FR-16(7)(v)-1 Functional'!C236","v":"CONDUCTORS - UNDERGROUND / PRIMARY - DEMAND"},null,null,0,{"$f":"G82-G159","v":0},0,0,0,0,0,0,0,0,0,0,0,0]
[26,null,{"$f":"'FR-16(7)(v)-1 Functional'!C237","v":"CONDUCTORS - UNDERGROUND / PRIMARY - CUSTOMER"},null,null,0,{"$f":"G83-G160","v":0},0,0,0,0,0,0,0,0,0,0,0,0]
[27,null,{"$f":"'FR-16(7)(v)-1 Functional'!C238","v":"CONDUCTORS - UNDERGROUND / SECONDARY - DEMAND"},null,null,0,{"$f":"G84-G161","v":0},0,0,0,0,0,0,0,0,0,0,0,0]
[28,null,{"$f":"'FR-16(7)(v)-1 Functional'!C239","v":"CONDUCTORS - UNDERGROUND / SECONDARY - CUSTOMER"},null,null,0,{"$f":"G85-G162","v":0},0,0,0,0,0,0,0,0,0,0,0,0]
[29,null,"TRANSFORMERS DEMAND RELATED",null,null,0,{"$f":"G86-G163","v":0},0,0,0,0,0,0,0,0,0,0,0,{"$f":"F240-R240","v":0}]
[30,null,"TRANSFORMERS CUSTOMER RELATED",null,null,0,{"$f":"G87-G164","v":0},0,0,0,0,0,0,0,0,0,0,0,0]
[31,null,{"$f":"'FR-16(7)(v)-1 Functional'!C242","v":"SERVICES"},null,null,0,{"$f":"G88-G165","v":0},{"$f":"H88-H165","v":0},0,0,0,0,0,0,0,0,0,{"$f":"R88-R165","v":0},0]
[32,null,{"$f":"'FR-16(7)(v)-1 Functional'!C243","v":"METERS"},null,null,0,0,{"$f":"H89-H166","v":0},0,0,0,0,0,0,0,0,0,{"$f":"R89-R166","v":0},0]
[33,null,{"$f":"'FR-16(7)(v)-1 Functional'!C244","v":"STREET LIGHTS"},null,null,0,0,{"$f":"H90-H167","v":0},0,0,0,0,0,0,0,0,0,{"$f":"R90-R167","v":0},0]
[34,null,{"$f":"'FR-16(7)(v)-1 Functional'!C245","v":"ADJUSTMENT  "},null,null,0,0,{"$f":"H91-H168","v":0},0,0,0,0,0,0,0,0,0,{"$f":"R91-R168","v":0},0]
[35,null,{"$f":"'FR-16(7)(v)-1 Functional'!C246","v":"CONSTRUCTION NOT CLASSIFIED"},null,null,0,0,{"$f":"H92-H169","v":0},0,0,0,0,0,0,0,0,0,{"$f":"R92-R169","v":0},0]
[36,null,{"$f":"'FR-16(7)(v)-1 Functional'!C247","v":"RWIP"},null,null,0,0,0,0,0,0,0,0,0,0,0,0,0,0]
[37,null,{"$f":"'FR-16(7)(v)-1 Functional'!C248","v":"  NET DISTRIBUTION PLANT"},null,null,{"$f":"SUM(F226:F247)","v":0},{"$f":"SUM(G226:G247)","v":0},0,0,0,0,0,0,0,0,0,0,0,0]
[38]
[39,"NET PTD PLANT",null,null,null,{"$f":"F96-F173","v":52482853},23658222,14203958,68227,{"$f":"J96-J173","v":269237},3674,7082036,4681995,226201,2218450,65079,5774,52482853,{"$f":"S248+S222+S216","v":0}]
[40,"NET TRANS & DIST PLANT",null,null,null,{"$f":"F97-F174","v":52482853},23658222,14203958,68227,{"$f":"J97-J174","v":269237},3674,7082036,4681995,226201,2218450,65079,5774,52482853,{"$f":"S248+S222","v":0}]
[41]
[42,"GENERAL & INTANGIBLE PLANT"]
[43,null,{"$f":"'FR-16(7)(v)-1 Functional'!C254","v":"PRODUCTION - DEMAND"},null,null,{"$f":"F100-F177","v":0},0,0,0,{"$f":"J100-J177","v":0},0,0,0,0,0,0,0,0,{"$f":"F254-R254","v":0}]
[44,null,{"$f":"'FR-16(7)(v)-1 Functional'!C255","v":"PRODUCTION - ENERGY"},null,null,{"$f":"F101-F178","v":0},0,0,0,{"$f":"J101-J178","v":0},0,0,0,0,0,0,0,0,{"$f":"F255-R255","v":0}]
[45,null,{"$f":"'FR-16(7)(v)-1 Functional'!C256","v":"TRANSMISSION"},null,null,{"$f":"F102-F179","v":1788965},806432,484166,2325,{"$f":"J102-J179","v":9177},125,241403,159593,7711,75619,2218,196,1788965,0]
[46,null,{"$f":"'FR-16(7)(v)-1 Functional'!C257","v":"DISTRIBUTION - DEMAND"},null,null,{"$f":"F103-F180","v":0},0,0,0,0,0,0,0,0,0,0,0,0,0]
[47,null,{"$f":"'FR-16(7)(v)-1 Functional'!C258","v":"DISTRIBUTION - CUSTOMER"},null,null,{"$f":"F104-F181","v":0},0,0,0,0,0,0,0,0,0,0,0,0,{"$f":"F258-R258","v":0}]
[48,null,{"$f":"'FR-16(7)(v)-1 Functional'!C259","v":"CUSTOMER ACCOUNTING"},null,null,{"$f":"F105-F182","v":0},0,0,0,{"$f":"J105-J182","v":0},0,0,0,0,0,0,0,0,0]
[49,null,{"$f":"'FR-16(7)(v)-1 Functional'!C260","v":"CUSTOMER SERVICE & INFORMATION"},null,null,{"$f":"F106-F183","v":0},0,0,0,{"$f":"J106-J183","v":0},0,0,0,0,0,0,{"$f":"Q106-Q183","v":0},{"$f":"R106-R183","v":0},0]
[50,null,{"$f":"'FR-16(7)(v)-1 Functional'!C261","v":"SALES"},null,null,0,0,0,0,{"$f":"J107-J184","v":0},0,0,0,0,0,0,{"$f":"Q107-Q184","v":0},{"$f":"R107-R184","v":0},{"$f":"F261-R261","v":0}]
[51,null,{"$f":"'FR-16(7)(v)-1 Functional'!C262","v":"ADJUSTMENT"},null,null,{"$f":"F108-F185","v":-15145},-6826,-4099,-20,{"$f":"J108-J185","v":-78},-1,-2044,-1351,-65,-640,-19,-2,-15145,{"$f":"F262-R262","v":0}]
[52,null,{"$f":"'FR-16(7)(v)-1 Functional'!C263","v":"  NET GENERAL & INTANG PLANT"},null,null,{"$f":"SUM(F253:F262)","v":1773820},799606,480067,2305,{"$f":"SUM(J253:J262)","v":9099},124,239359,158242,7646,74979,2199,194,1773820,0]
[53]
[54,"COMMON & OTHER PLANT"]
[55,null,{"$f":"'FR-16(7)(v)-1 Functional'!C266","v":"PRODUCTION - DEMAND"},null,null,{"$f":"F112-F189","v":0},0,0,0,{"$f":"J112-J189","v":0},0,0,0,0,0,0,0,0,{"$f":"F266-R266","v":0}]
[56,null,{"$f":"'FR-16(7)(v)-1 Functional'!C267","v":"PRODUCTION - ENERGY"},null,null,{"$f":"F113-F190","v":0},0,0,0,{"$f":"J113-J190","v":0},0,0,0,0,0,0,0,0,{"$f":"F267-R267","v":0}]
[57,null,{"$f":"'FR-16(7)(v)-1 Functional'!C268","v":"TRANSMISSION"},null,null,{"$f":"F114-F191","v":344600},155338,93262,448,{"$f":"J114-J191","v":1768},25,46500,30742,1485,14566,428,38,344600,0]
[58,null,{"$f":"'FR-16(7)(v)-1 Functional'!C269","v":"DISTRIBUTION - DEMAND"},null,null,{"$f":"F115-F192","v":0},0,0,0,0,0,0,0,0,0,0,0,0,0]
[59,null,{"$f":"'FR-16(7)(v)-1 Functional'!C270","v":"DISTRIBUTION - CUSTOMER"},null,null,{"$f":"F116-F193","v":0},0,0,0,0,0,0,0,0,0,0,0,0,{"$f":"F270-R270","v":0}]
[60,null,{"$f":"'FR-16(7)(v)-1 Functional'!C271","v":"CUSTOMER ACCOUNTING"},null,null,{"$f":"F117-F194","v":0},0,0,0,{"$f":"J117-J194","v":0},0,0,0,0,0,0,0,0,0]
[61,null,{"$f":"'FR-16(7)(v)-1 Functional'!C272","v":"CUSTOMER SERVICE & INFORMATION"},null,null,{"$f":"F118-F195","v":0},0,0,0,{"$f":"J118-J195","v":0},0,{"$f":"L118-L195","v":0},0,0,0,0,{"$f":"Q118-Q195","v":0},{"$f":"R118-R195","v":0},0]
[62,null,{"$f":"'FR-16(7)(v)-1 Functional'!C273","v":"SALES"},null,null,0,0,0,0,{"$f":"J119-J196","v":0},0,0,0,0,0,0,{"$f":"Q119-Q196","v":0},{"$f":"R119-R196","v":0},{"$f":"F273-R273","v":0}]
[63,null,{"$f":"'FR-16(7)(v)-1 Functional'!C274","v":"ADJUSTMENT"},null,null,{"$f":"F120-F197","v":-851},-384,-230,-1,{"$f":"J120-J197","v":-4},0,-115,-76,-4,-36,-1,0,-851,{"$f":"F274-R274","v":0}]
[64,null,"  COMMON & OTHER PLANT IN SERVICE",null,null,{"$f":"SUM(F265:F274)","v":343749},154954,93032,447,{"$f":"SUM(J265:J274)","v":1764},25,46385,30666,1481,14530,427,38,343749,0]
[65]
[66,null,{"$f":"'FR-16(7)(v)-1 Functional'!C277","v":"NET ELECTRIC PLANT IN SERVICE"},null,null,{"$f":"F275+F263+F248+F222+F216","v":54600422},{"$f":"G275+G263+G248+G222+G216","v":24612782},{"$f":"H275+H263+H248+H222+H216","v":14777057},{"$f":"I275+I263+I248+I222+I216","v":70979},{"$f":"J275+J263+J248+J222+J216","v":280100},3823,7367780,4870903,235328,2307959,67705,{"$f":"Q275+Q263+Q248+Q222+Q216","v":6006},{"$f":"R275+R263+R248+R222+R216","v":54600422},{"$f":"S275+S263+S248+S222+S216","v":0}]
[]
[{"$f":"co_name","v":"DUKE ENERGY KENTUCKY, INC."},null,null,null,null,null,null,null,null,null,null,null,null,null,null,null,null,{"$f":"R1","v":"FR-16(7)(v)-7"}]
[{"$f":"$A$2","v":"TRANSMISSION DEMAND ALLOCATED - ELECTRIC COST OF SERVICE"},null,null,null,null,null,null,null,null,null,null,null,null,null,null,null,null,{"$f":"R2","v":"WITNESS RESPONSIBLE:"}]
[{"$f":"case_name","v":"CASE NO: 2019-00271"},null,null,null,null,null,null,null,null,null,null,null,null,null,null,null,null,{"$f":"Witness","v":"JAMES E. ZIOLKOWSKI"}]
[{"$f":"data_filing","v":"DATA: 12 MONTHS ACTUAL  & 0 MONTHS ESTIMATED"},null,null,null,null,null,null,null,null,null,null,null,null,null,null,null,null,{"$f":"\"PAGE \"&Pages-13&\" OF \"&Pages","v":"PAGE 5 OF 18"}]
[{"$f":"type","v":"TYPE OF FILING: \"X\" ORIGINAL   UPDATED    REVISED  "}]
[]
[null,null,null,null,null,{"$f":"F$7","v":"TOTAL"},null,{"$f":"H$7","v":"DS"},{"$f":"I$7","v":"GSFL"},{"$f":"J$7","v":"EH"},{"$f":"K$7","v":"SP"},"DT SEC","DT PRI","DP","TT",null,"OTHER"]
["LINE",null,null,null,null,{"$f":"F$8","v":"TRANSMISSION"},{"$f":"G$8","v":"RS"},{"$f":"H$8","v":"SECONDARY"},{"$f":"I$8","v":"SECONDARY"},{"$f":"J$8","v":"SECONDARY"},{"$f":"K$8","v":"SECONDARY"},"SECONDARY","PRIMARY","PRIMARY","TRANSMISSION","LT","WATER",{"$f":"R8","v":"TOTAL"},"ALL"]
["NO.","SUBTRACTIVE RATE BASE ADJUSTMENTS",null,"ALLO",null,{"$f":"F$9","v":"DEMAND"},{"$f":"G$9","v":"RESIDENTIAL"},{"$f":"H$9","v":"DISTRIBUTION"},{"$f":"I$9","v":"DISTRIBUTION"},{"$f":"J$9","v":"DISTRIBUTION"},{"$f":"K$9","v":"DISTRIBUTION"},"DISTRIBUTION","DISTRIBUTION","DISTRIBUTION","TIME OF DAY","LIGHTING","PUMPING",{"$f":"R9","v":"AT ISSUE"},"OTHER"]
[null,null,"Schedule 5",null,null,null,{"$f":"G$10","v":3},{"$f":"H$10","v":4},{"$f":"I$10","v":5},{"$f":"J$10","v":6},{"$f":"K$10","v":7},8,9,10,11,12,13,null," "]
[1,"RATE BASE ADJUSTMENTS"]
[2,"ACCUMULATED DEFERRED INCOME TAXES"]
[3," ACCUM DEF INC TAXES (282)"]
[4,null,{"$f":"'FR-16(7)(v)-1 Functional'!C292","v":"LIBERALIZED DEPRECIATION"},{"$f":"'FR-16(7)(v)-1 Functional'!D292","v":"NP29"}," ",{"$f":"'FR-16(7)(v)-6 TRANS Classified'!G292","v":3233242},{"$f":"F292-SUM(H292:Q292)","v":1457480},{"$f":"ROUND(F292*VLOOKUP(D292,ALLOCTABLE_Trans_Demand,$H$10,FALSE),0)","v":875045},{"$f":"ROUND(F292*VLOOKUP(D292,ALLOCTABLE_Trans_Demand,$I$10,FALSE),0)","v":4203},{"$f":"ROUND(F292*VLOOKUP(D292,ALLOCTABLE_Trans_Demand,$J$10,FALSE),0)","v":16587},{"$f":"ROUND(F292*VLOOKUP(D292,ALLOCTABLE_Trans_Demand,$K$10,FALSE),0)","v":226},{"$f":"ROUND(F292*VLOOKUP(D292,ALLOCTABLE_Trans_Demand,$L$10,FALSE),0)","v":436294},{"$f":"ROUND(F292*VLOOKUP(D292,ALLOCTABLE_Trans_Demand,$M$10,FALSE),0)","v":288438},{"$f":"ROUND(F292*VLOOKUP(D292,ALLOCTABLE_Trans_Demand,$N$10,FALSE),0)","v":13935},{"$f":"ROUND(F292*VLOOKUP(D292,ALLOCTABLE_Trans_Demand,$O$10,FALSE),0)","v":136669},{"$f":"ROUND(F292*VLOOKUP(D292,ALLOCTABLE_Trans_Demand,$P$10,FALSE),0)","v":4009},{"$f":"ROUND(F292*VLOOKUP(D292,ALLOCTABLE_Trans_Demand,$Q$10,FALSE),0)","v":356},{"$f":"SUM(G292:Q292)","v":3233242},{"$f":"F292-R292","v":0}]
[5,null,{"$f":"'FR-16(7)(v)-1 Functional'!C293","v":"LEASED METERS"},{"$f":"'FR-16(7)(v)-1 Functional'!D293","v":"NP29"}," ",{"$f":"'FR-16(7)(v)-6 TRANS Classified'!G293","v":73338},33061,19848,95,376,5,9896,6542,316,3100,91,8,73338,0]
[6,null,{"$f":"'FR-16(7)(v)-1 Functional'!C294","v":"CONTRIB AID CONSTR"},{"$f":"'FR-16(7)(v)-1 Functional'!D294","v":"D249"}," ",{"$f":"'FR-16(7)(v)-6 TRANS Classified'!G294","v":0},0,0,0,0,0,0,0,0,0,0,0,0,0]
[7,null,{"$f":"'FR-16(7)(v)-1 Functional'!C295","v":"TAX INTEREST, EXPENSING, DEPR."},{"$f":"'FR-16(7)(v)-1 Functional'!D295","v":"NP29"}," ",{"$f":"'FR-16(7)(v)-6 TRANS Classified'!G295","v":3228325},1455265,873714,4197,16561,226,435630,287999,13914,136461,4003,355,3228325,0]
[8,null,{"$f":"'FR-16(7)(v)-1 Functional'!C296","v":"AFUDC IN DEBT"},{"$f":"'FR-16(7)(v)-1 Functional'!D296","v":"NP29"}," ",{"$f":"'FR-16(7)(v)-6 TRANS Classified'!G296","v":0},0,0,0,0,0,0,0,0,0,0,0,0,0]
[9,null,{"$f":"'FR-16(7)(v)-1 Functional'!C297","v":"CASUALTY LOSS"},{"$f":"'FR-16(7)(v)-1 Functional'!D297","v":"K411"}," ",{"$f":"'FR-16(7)(v)-6 TRANS Classified'!G297","v":0},0,0,0,0,0,0,0,0,0,0,0,0,0]
[10,null,{"$f":"'FR-16(7)(v)-1 Functional'!C298","v":"NON-CASH OVERHEADS"},{"$f":"'FR-16(7)(v)-1 Functional'!D298","v":"G229"}," ",{"$f":"'FR-16(7)(v)-6 TRANS Classified'!G298","v":0},0,0,0,0,0,0,0,0,0,0,0,0,0]
[11,null,{"$f":"'FR-16(7)(v)-1 Functional'!C299","v":"PLANT FAS 109"},{"$f":"'FR-16(7)(v)-1 Functional'!D299","v":"NP29"}," ",{"$f":"'FR-16(7)(v)-6 TRANS Classified'!G299","v":0},0,0,0,0,0,0,0,0,0,0,0,0,0]
[12,null,{"$f":"'FR-16(7)(v)-1 Functional'!C300","v":"MISCELLANEOUS"},{"$f":"'FR-16(7)(v)-1 Functional'!D300","v":"NP29"},null,{"$f":"'FR-16(7)(v)-6 TRANS Classified'!G300","v":3046356},1373238,824466,3960,15628,213,411075,271765,13130,128769,3777,335,3046356,0]
[13,null,{"$f":"'FR-16(7)(v)-1 Functional'!C301","v":"  TOTAL ACCOUNT 282"},null,null,{"$f":"SUM(F292:F300)","v":9581261},{"$f":"SUM(G292:G300)","v":4319044},{"$f":"SUM(H292:H300)","v":2593073},{"$f":"SUM(I292:I300)","v":12455},{"$f":"SUM(J292:J300)","v":49152},670,1292895,854744,41295,404999,11880,{"$f":"SUM(Q292:Q300)","v":1054},{"$f":"SUM(R292:R300)","v":9581261},{"$f":"SUM(S292:S300)","v":0}]
[14]
[15," ACCUM DEF INC TAXES (283)"]
[16,null,{"$f":"'FR-16(7)(v)-1 Functional'!C304","v":"TRANSITION FROM MISO TO PJM"},{"$f":"'FR-16(7)(v)-1 Functional'!D304","v":"NP29"},null,{"$f":"'FR-16(7)(v)-6 TRANS Classified'!G304","v":-173488},{"$f":"F304-SUM(H304:Q304)","v":-78205},{"$f":"ROUND(F304*VLOOKUP(D304,ALLOCTABLE_Trans_Demand,$H$10,FALSE),0)","v":-46953},{"$f":"ROUND(F304*VLOOKUP(D304,ALLOCTABLE_Trans_Demand,$I$10,FALSE),0)","v":-226},{"$f":"ROUND(F304*VLOOKUP(D304,ALLOCTABLE_Trans_Demand,$J$10,FALSE),0)","v":-890},{"$f":"ROUND(F304*VLOOKUP(D304,ALLOCTABLE_Trans_Demand,$K$10,FALSE),0)","v":-12},{"$f":"ROUND(F304*VLOOKUP(D304,ALLOCTABLE_Trans_Demand,$L$10,FALSE),0)","v":-23410},{"$f":"ROUND(F304*VLOOKUP(D304,ALLOCTABLE_Trans_Demand,$M$10,FALSE),0)","v":-15477},{"$f":"ROUND(F304*VLOOKUP(D304,ALLOCTABLE_Trans_Demand,$N$10,FALSE),0)","v":-748},{"$f":"ROUND(F304*VLOOKUP(D304,ALLOCTABLE_Trans_Demand,$O$10,FALSE),0)","v":-7333},{"$f":"ROUND(F304*VLOOKUP(D304,ALLOCTABLE_Trans_Demand,$P$10,FALSE),0)","v":-215},{"$f":"ROUND(F304*VLOOKUP(D304,ALLOCTABLE_Trans_Demand,$Q$10,FALSE),0)","v":-19},{"$f":"SUM(G304:Q304)","v":-173488},{"$f":"F304-R304","v":0}]
[17,null,{"$f":"'FR-16(7)(v)-1 Functional'!C305","v":"DEFERRED PLANT COSTS"},{"$f":"'FR-16(7)(v)-1 Functional'!D305","v":"NP29"},null,{"$f":"'FR-16(7)(v)-6 TRANS Classified'!G305","v":33798},15235,9147,44,173,2,4561,3015,146,1429,42,4,33798,0]
[18,null,{"$f":"'FR-16(7)(v)-1 Functional'!C306","v":"MISCELLANEOUS"},{"$f":"'FR-16(7)(v)-1 Functional'!D306","v":"OM39"},null,{"$f":"'FR-16(7)(v)-6 TRANS Classified'!G306","v":1346068},606781,364300,1750,6905,94,181638,120083,5802,56898,1669,148,1346068,0]
[19,null,{"$f":"'FR-16(7)(v)-1 Functional'!C307","v":"ENVIRONMENTAL RESERVE"},{"$f":"'FR-16(7)(v)-1 Functional'!D307","v":"NP29"},null,{"$f":"'FR-16(7)(v)-6 TRANS Classified'!G307","v":0},0,0,0,0,0,0,0,0,0,0,0,0,0]
[20,null,{"$f":"'FR-16(7)(v)-1 Functional'!C308","v":"POST IN-SERVICE CARRYING COSTS"},{"$f":"'FR-16(7)(v)-1 Functional'!D308","v":"NP29"},null,{"$f":"'FR-16(7)(v)-6 TRANS Classified'!G308","v":0},0,0,0,0,0,0,0,0,0,0,0,0,0]
[21,null,{"$f":"'FR-16(7)(v)-1 Functional'!C309","v":"ARO CUMULATIVE EFFECT"},{"$f":"'FR-16(7)(v)-1 Functional'!D309","v":"NP29"},null,{"$f":"'FR-16(7)(v)-6 TRANS Classified'!G309","v":0},0,0,0,0,0,0,0,0,0,0,0,0,0]
[22,null,{"$f":"'FR-16(7)(v)-1 Functional'!C310","v":"LOSS ON REACQUIRED DEBT"},{"$f":"'FR-16(7)(v)-1 Functional'!D310","v":"D249"},null,{"$f":"'FR-16(7)(v)-6 TRANS Classified'!G310","v":0},0,0,0,0,0,0,0,0,0,0,0,0,0]
[23,null,{"$f":"'FR-16(7)(v)-1 Functional'!C311","v":"VACATION PAY ACCRUAL"},{"$f":"'FR-16(7)(v)-1 Functional'!D311","v":"A315"},null,{"$f":"'FR-16(7)(v)-6 TRANS Classified'!G311","v":0},0,0,0,0,0,0,0,0,0,0,0,0,0]
[24,null,{"$f":"'FR-16(7)(v)-1 Functional'!C312","v":"NON-AMI METERS RETIRED EARLY"},{"$f":"'FR-16(7)(v)-1 Functional'!D312","v":"OM39"},null,{"$f":"'FR-16(7)(v)-6 TRANS Classified'!G312","v":161508},72804,43711,210,829,11,21794,14408,696,6827,200,18,{"$f":"SUM(G312:Q312)","v":161508},{"$f":"F312-R312","v":0}]
[25,null,{"$f":"'FR-16(7)(v)-1 Functional'!C313","v":"PENSION EXPENSE"},{"$f":"'FR-16(7)(v)-1 Functional'!D313","v":"A315"},null,{"$f":"'FR-16(7)(v)-6 TRANS Classified'!G313","v":320364},144415,86703,416,1643,22,43230,28580,1381,13542,397,35,{"$f":"SUM(G313:Q313)","v":320364},{"$f":"F313-R313","v":0}]
[26,null,{"$f":"'FR-16(7)(v)-1 Functional'!C314","v":"UNCOLLECTIBLE ACCOUNTS"},{"$f":"'FR-16(7)(v)-1 Functional'!D314","v":"K411"},null,{"$f":"'FR-16(7)(v)-6 TRANS Classified'!G314","v":0},0,0,0,0,0,0,0,0,0,0,0,0,0]
[27,null,{"$f":"'FR-16(7)(v)-1 Functional'!C315","v":"  TOTAL ACCOUNT 283"},null,null,{"$f":"SUM(F303:F314)","v":1688250},{"$f":"SUM(G303:G314)","v":761030},{"$f":"SUM(H303:H314)","v":456908},{"$f":"SUM(I303:I314)","v":2194},{"$f":"SUM(J303:J314)","v":8660},117,227813,150609,7277,71363,2093,{"$f":"SUM(Q303:Q314)","v":186},{"$f":"SUM(R303:R314)","v":1688250},{"$f":"SUM(S303:S314)","v":0}]
[28]
[29," OTHER ACCUMULATED DEFERRED INCOME TAXES"]
[30,null,{"$f":"'FR-16(7)(v)-1 Functional'!C318","v":"EXCESS ADIT"},{"$f":"'FR-16(7)(v)-1 Functional'!D318","v":"NP29"},null,{"$f":"'FR-16(7)(v)-6 TRANS Classified'!G318","v":3007264},{"$f":"F318-SUM(H318:Q318)","v":1355615},{"$f":"ROUND(F318*VLOOKUP(D318,ALLOCTABLE_Trans_Demand,$H$10,FALSE),0)","v":813886},{"$f":"ROUND(F318*VLOOKUP(D318,ALLOCTABLE_Trans_Demand,$I$10,FALSE),0)","v":3909},{"$f":"ROUND(F318*VLOOKUP(D318,ALLOCTABLE_Trans_Demand,$J$10,FALSE),0)","v":15427},{"$f":"ROUND(F318*VLOOKUP(D318,ALLOCTABLE_Trans_Demand,$K$10,FALSE),0)","v":211},{"$f":"ROUND(F318*VLOOKUP(D318,ALLOCTABLE_Trans_Demand,$L$10,FALSE),0)","v":405800},{"$f":"ROUND(F318*VLOOKUP(D318,ALLOCTABLE_Trans_Demand,$M$10,FALSE),0)","v":268278},{"$f":"ROUND(F318*VLOOKUP(D318,ALLOCTABLE_Trans_Demand,$N$10,FALSE),0)","v":12961},{"$f":"ROUND(F318*VLOOKUP(D318,ALLOCTABLE_Trans_Demand,$O$10,FALSE),0)","v":127117},{"$f":"ROUND(F318*VLOOKUP(D318,ALLOCTABLE_Trans_Demand,$P$10,FALSE),0)","v":3729},{"$f":"ROUND(F318*VLOOKUP(D318,ALLOCTABLE_Trans_Demand,$Q$10,FALSE),0)","v":331},{"$f":"SUM(G318:Q318)","v":3007264},{"$f":"F318-R318","v":0}]
[31,null,{"$f":"'FR-16(7)(v)-1 Functional'!C319","v":"CUSTOMER SERVICE DEPOSITS"},{"$f":"'FR-16(7)(v)-1 Functional'!D319","v":"NP29"},null,{"$f":"'FR-16(7)(v)-6 TRANS Classified'!G319","v":0},{"$f":"F319-SUM(H319:Q319)","v":0},{"$f":"ROUND(F319*VLOOKUP(D319,ALLOCTABLE_Trans_Demand,$H$10,FALSE),0)","v":0},{"$f":"ROUND(F319*VLOOKUP(D319,ALLOCTABLE_Trans_Demand,$I$10,FALSE),0)","v":0},{"$f":"ROUND(F319*VLOOKUP(D319,ALLOCTABLE_Trans_Demand,$J$10,FALSE),0)","v":0},{"$f":"ROUND(F319*VLOOKUP(D319,ALLOCTABLE_Trans_Demand,$K$10,FALSE),0)","v":0},{"$f":"ROUND(F319*VLOOKUP(D319,ALLOCTABLE_Trans_Demand,$L$10,FALSE),0)","v":0},{"$f":"ROUND(F319*VLOOKUP(D319,ALLOCTABLE_Trans_Demand,$M$10,FALSE),0)","v":0},{"$f":"ROUND(F319*VLOOKUP(D319,ALLOCTABLE_Trans_Demand,$N$10,FALSE),0)","v":0},{"$f":"ROUND(F319*VLOOKUP(D319,ALLOCTABLE_Trans_Demand,$O$10,FALSE),0)","v":0},{"$f":"ROUND(F319*VLOOKUP(D319,ALLOCTABLE_Trans_Demand,$P$10,FALSE),0)","v":0},{"$f":"ROUND(F319*VLOOKUP(D319,ALLOCTABLE_Trans_Demand,$Q$10,FALSE),0)","v":0},{"$f":"SUM(G319:Q319)","v":0},{"$f":"F319-R319","v":0}]
[32,null,{"$f":"'FR-16(7)(v)-1 Functional'!C320","v":"POST RETIREMENT BENEFITS"},{"$f":"'FR-16(7)(v)-1 Functional'!D320","v":"NP29"},null,{"$f":"'FR-16(7)(v)-6 TRANS Classified'!G320","v":0},{"$f":"F320-SUM(H320:Q320)","v":0},{"$f":"ROUND(F320*VLOOKUP(D320,ALLOCTABLE_Trans_Demand,$H$10,FALSE),0)","v":0},{"$f":"ROUND(F320*VLOOKUP(D320,ALLOCTABLE_Trans_Demand,$I$10,FALSE),0)","v":0},{"$f":"ROUND(F320*VLOOKUP(D320,ALLOCTABLE_Trans_Demand,$J$10,FALSE),0)","v":0},{"$f":"ROUND(F320*VLOOKUP(D320,ALLOCTABLE_Trans_Demand,$K$10,FALSE),0)","v":0},{"$f":"ROUND(F320*VLOOKUP(D320,ALLOCTABLE_Trans_Demand,$L$10,FALSE),0)","v":0},{"$f":"ROUND(F320*VLOOKUP(D320,ALLOCTABLE_Trans_Demand,$M$10,FALSE),0)","v":0},{"$f":"ROUND(F320*VLOOKUP(D320,ALLOCTABLE_Trans_Demand,$N$10,FALSE),0)","v":0},{"$f":"ROUND(F320*VLOOKUP(D320,ALLOCTABLE_Trans_Demand,$O$10,FALSE),0)","v":0},{"$f":"ROUND(F320*VLOOKUP(D320,ALLOCTABLE_Trans_Demand,$P$10,FALSE),0)","v":0},{"$f":"ROUND(F320*VLOOKUP(D320,ALLOCTABLE_Trans_Demand,$Q$10,FALSE),0)","v":0},{"$f":"SUM(G320:Q320)","v":0},{"$f":"F320-R320","v":0}]
[33,null,{"$f":"'FR-16(7)(v)-1 Functional'!C321","v":"INVESTMENT TAX CREDIT"},{"$f":"'FR-16(7)(v)-1 Functional'!D321","v":"NP29"},null,{"$f":"'FR-16(7)(v)-6 TRANS Classified'!G321","v":0},{"$f":"F321-SUM(H321:Q321)","v":0},{"$f":"ROUND(F321*VLOOKUP(D321,ALLOCTABLE_Trans_Demand,$H$10,FALSE),0)","v":0},{"$f":"ROUND(F321*VLOOKUP(D321,ALLOCTABLE_Trans_Demand,$I$10,FALSE),0)","v":0},{"$f":"ROUND(F321*VLOOKUP(D321,ALLOCTABLE_Trans_Demand,$J$10,FALSE),0)","v":0},{"$f":"ROUND(F321*VLOOKUP(D321,ALLOCTABLE_Trans_Demand,$K$10,FALSE),0)","v":0},{"$f":"ROUND(F321*VLOOKUP(D321,ALLOCTABLE_Trans_Demand,$L$10,FALSE),0)","v":0},{"$f":"ROUND(F321*VLOOKUP(D321,ALLOCTABLE_Trans_Demand,$M$10,FALSE),0)","v":0},{"$f":"ROUND(F321*VLOOKUP(D321,ALLOCTABLE_Trans_Demand,$N$10,FALSE),0)","v":0},{"$f":"ROUND(F321*VLOOKUP(D321,ALLOCTABLE_Trans_Demand,$O$10,FALSE),0)","v":0},{"$f":"ROUND(F321*VLOOKUP(D321,ALLOCTABLE_Trans_Demand,$P$10,FALSE),0)","v":0},{"$f":"ROUND(F321*VLOOKUP(D321,ALLOCTABLE_Trans_Demand,$Q$10,FALSE),0)","v":0},{"$f":"SUM(G321:Q321)","v":0},{"$f":"F321-R321","v":0}]
[34,null,{"$f":"'FR-16(7)(v)-1 Functional'!C322","v":"  TOTAL OTHER SUBTRACTIVE ADJUSTMENTS"},null,null,{"$f":"SUM(F317:F321)","v":3007264},{"$f":"SUM(G317:G321)","v":1355615},{"$f":"SUM(H317:H321)","v":813886},{"$f":"SUM(I317:I321)","v":3909},{"$f":"SUM(J317:J321)","v":15427},211,405800,268278,12961,127117,3729,{"$f":"SUM(Q317:Q321)","v":331},{"$f":"SUM(R317:R321)","v":3007264},{"$f":"SUM(S317:S321)","v":0}]
[35]
[36,{"$f":"'FR-16(7)(v)-1 Functional'!B324","v":"TOTAL SUBTRACTIVE RATE BASE ADJUSTMENTS"},null,null,null,{"$f":"F322+F315+F301","v":14276775},{"$f":"G322+G315+G301","v":6435689},{"$f":"H322+H315+H301","v":3863867},{"$f":"I322+I315+I301","v":18558},{"$f":"J322+J315+J301","v":73239},998,1926508,1273631,61533,603479,17702,{"$f":"Q322+Q315+Q301","v":1571},{"$f":"R322+R315+R301","v":14276775},{"$f":"S322+S315+S301","v":0}]
[]
[{"$f":"co_name","v":"DUKE ENERGY KENTUCKY, INC."},null,null,null,null,null,null,null,null,null,null,null,null,null,null,null,null,{"$f":"R1","v":"FR-16(7)(v)-7"}]
[{"$f":"$A$2","v":"TRANSMISSION DEMAND ALLOCATED - ELECTRIC COST OF SERVICE"},null,null,null,null,null,null,null,null,null,null,null,null,null,null,null,null,{"$f":"R2","v":"WITNESS RESPONSIBLE:"}]
[{"$f":"case_name","v":"CASE NO: 2019-00271"},null,null,null,null,null,null,null,null,null,null,null,null,null,null,null,null,{"$f":"Witness","v":"JAMES E. ZIOLKOWSKI"}]
[{"$f":"data_filing","v":"DATA: 12 MONTHS ACTUAL  & 0 MONTHS ESTIMATED"},null,null,null,null,null,null,null,null,null,null,null,null,null,null,null,null,{"$f":"\"PAGE \"&Pages-12&\" OF \"&Pages","v":"PAGE 6 OF 18"}]
[{"$f":"type","v":"TYPE OF FILING: \"X\" ORIGINAL   UPDATED    REVISED  "}]
[]
[null,null,null,null,null,{"$f":"F$7","v":"TOTAL"},null,{"$f":"H$7","v":"DS"},{"$f":"I$7","v":"GSFL"},{"$f":"J$7","v":"EH"},{"$f":"K$7","v":"SP"},"DT SEC","DT PRI","DP","TT",null,"OTHER"]
["LINE",null,null,null,null,{"$f":"F$8","v":"TRANSMISSION"},{"$f":"G$8","v":"RS"},{"$f":"H$8","v":"SECONDARY"},{"$f":"I$8","v":"SECONDARY"},{"$f":"J$8","v":"SECONDARY"},{"$f":"K$8","v":"SECONDARY"},"SECONDARY","PRIMARY","PRIMARY","TRANSMISSION","LT","WATER",{"$f":"R8","v":"TOTAL"},"ALL"]
["NO.","ADDITIVE RATE BASE ADJUSTMENTS",null,"ALLO",null,{"$f":"F$9","v":"DEMAND"},{"$f":"G$9","v":"RESIDENTIAL"},{"$f":"H$9","v":"DISTRIBUTION"},{"$f":"I$9","v":"DISTRIBUTION"},{"$f":"J$9","v":"DISTRIBUTION"},{"$f":"K$9","v":"DISTRIBUTION"},"DISTRIBUTION","DISTRIBUTION","DISTRIBUTION","TIME OF DAY","LIGHTING","PUMPING",{"$f":"R9","v":"AT ISSUE"},"OTHER"]
[null,null,"Schedule 5.1",null,null,null,{"$f":"G$10","v":3},{"$f":"H$10","v":4},{"$f":"I$10","v":5},{"$f":"J$10","v":6},{"$f":"K$10","v":7},8,9,10,11,12,13,null," "]
[1,"OTHER ACCUMULATED DEFERRED INCOME TAXES"]
[2," ACCUM DEF INC TAXES (190)"]
[3,null,{"$f":"'FR-16(7)(v)-1 Functional'!C338","v":"UNCOLLECTIBLE ACCTS"},{"$f":"'FR-16(7)(v)-1 Functional'!D338","v":"K411"},null,{"$f":"'FR-16(7)(v)-6 TRANS Classified'!G338","v":0},{"$f":"F338-SUM(H338:Q338)","v":0},{"$f":"ROUND(F338*VLOOKUP(D338,ALLOCTABLE_Trans_Demand,$H$10,FALSE),0)","v":0},{"$f":"ROUND(F338*VLOOKUP(D338,ALLOCTABLE_Trans_Demand,$I$10,FALSE),0)","v":0},{"$f":"ROUND(F338*VLOOKUP(D338,ALLOCTABLE_Trans_Demand,$J$10,FALSE),0)","v":0},{"$f":"ROUND(F338*VLOOKUP(D338,ALLOCTABLE_Trans_Demand,$K$10,FALSE),0)","v":0},{"$f":"ROUND(F338*VLOOKUP(D338,ALLOCTABLE_Trans_Demand,$L$10,FALSE),0)","v":0},{"$f":"ROUND(F338*VLOOKUP(D338,ALLOCTABLE_Trans_Demand,$M$10,FALSE),0)","v":0},{"$f":"ROUND(F338*VLOOKUP(D338,ALLOCTABLE_Trans_Demand,$N$10,FALSE),0)","v":0},{"$f":"ROUND(F338*VLOOKUP(D338,ALLOCTABLE_Trans_Demand,$O$10,FALSE),0)","v":0},{"$f":"ROUND(F338*VLOOKUP(D338,ALLOCTABLE_Trans_Demand,$P$10,FALSE),0)","v":0},{"$f":"ROUND(F338*VLOOKUP(D338,ALLOCTABLE_Trans_Demand,$Q$10,FALSE),0)","v":0},{"$f":"SUM(G338:Q338)","v":0},{"$f":"F338-R338","v":0}]
[4,null,{"$f":"'FR-16(7)(v)-1 Functional'!C339","v":"CASH FLOW HEDGE"},{"$f":"'FR-16(7)(v)-1 Functional'!D339","v":"A315"},null,{"$f":"'FR-16(7)(v)-6 TRANS Classified'!G339","v":12872},5803,3484,17,66,1,1737,1148,55,544,16,1,12872,0]
[5,null,{"$f":"'FR-16(7)(v)-1 Functional'!C340","v":"RESERVED FOR FUTURE USE"},{"$f":"'FR-16(7)(v)-1 Functional'!D340","v":"NP29"},null,{"$f":"'FR-16(7)(v)-6 TRANS Classified'!G340","v":0},0,0,0,0,0,0,0,0,0,0,0,0,0]
[6,null,{"$f":"'FR-16(7)(v)-1 Functional'!C341","v":"RESERVED FOR FUTURE USE"},{"$f":"'FR-16(7)(v)-1 Functional'!D341","v":"NP29"},null,{"$f":"'FR-16(7)(v)-6 TRANS Classified'!G341","v":0},0,0,0,0,0,0,0,0,0,0,0,0,0]
[7,null,{"$f":"'FR-16(7)(v)-1 Functional'!C342","v":"ELECTRIC METERS"},{"$f":"'FR-16(7)(v)-1 Functional'!D342","v":"K407"},null,{"$f":"'FR-16(7)(v)-6 TRANS Classified'!G342","v":0},0,0,0,0,0,0,0,0,0,0,0,0,0]
[8,null,{"$f":"'FR-16(7)(v)-1 Functional'!C343","v":"UNAMORTIZED DEBT PREMIUM"},{"$f":"'FR-16(7)(v)-1 Functional'!D343","v":"D249"},null,{"$f":"'FR-16(7)(v)-6 TRANS Classified'!G343","v":0},0,0,0,0,0,0,0,0,0,0,0,0,0]
[9,null,{"$f":"'FR-16(7)(v)-1 Functional'!C344","v":"ARO CUMULATIVE EFFECT"},{"$f":"'FR-16(7)(v)-1 Functional'!D344","v":"NP29"},null,{"$f":"'FR-16(7)(v)-6 TRANS Classified'!G344","v":0},0,0,0,0,0,0,0,0,0,0,0,0,0]
[10,null,{"$f":"'FR-16(7)(v)-1 Functional'!C345","v":"RETIREMENT PLAN"},{"$f":"'FR-16(7)(v)-1 Functional'!D345","v":"A315"},null,{"$f":"'FR-16(7)(v)-6 TRANS Classified'!G345","v":132222},59602,35785,172,678,9,17842,11796,570,5589,164,15,132222,0]
[11,null,{"$f":"'FR-16(7)(v)-1 Functional'!C346","v":"POST RETIREMENT BENEFITS "},{"$f":"'FR-16(7)(v)-1 Functional'!D346","v":"A315"},null,{"$f":"'FR-16(7)(v)-6 TRANS Classified'!G346","v":0},0,0,0,0,0,0,0,0,0,0,0,0,0]
[12,null,{"$f":"'FR-16(7)(v)-1 Functional'!C347","v":"POST RETIREMENT BENEFITS - HEALTH CARE"},{"$f":"'FR-16(7)(v)-1 Functional'!D347","v":"A315"},null,{"$f":"'FR-16(7)(v)-6 TRANS Classified'!G347","v":0},0,0,0,0,0,0,0,0,0,0,0,0,0]
[13,null,{"$f":"'FR-16(7)(v)-1 Functional'!C348","v":"POST EMPLOYMENT BENEFITS - SFAS 112"},{"$f":"'FR-16(7)(v)-1 Functional'!D348","v":"A315"},null,{"$f":"'FR-16(7)(v)-6 TRANS Classified'!G348","v":0},0,0,0,0,0,0,0,0,0,0,0,0,0]
[14,null,{"$f":"'FR-16(7)(v)-1 Functional'!C349","v":"SUPPLEMENTAL PENSION PLAN"},{"$f":"'FR-16(7)(v)-1 Functional'!D349","v":"A315"},null,{"$f":"'FR-16(7)(v)-6 TRANS Classified'!G349","v":0},0,0,0,0,0,0,0,0,0,0,0,0,0]
[15,null,{"$f":"'FR-16(7)(v)-1 Functional'!C350","v":"INCENTIVE PLAN"},{"$f":"'FR-16(7)(v)-1 Functional'!D350","v":"A315"},null,{"$f":"'FR-16(7)(v)-6 TRANS Classified'!G350","v":0},0,0,0,0,0,0,0,0,0,0,0,0,0]
[16,null,{"$f":"'FR-16(7)(v)-1 Functional'!C351","v":"FEDERAL DEFERRED TAX RECEIVEABLE"},{"$f":"'FR-16(7)(v)-1 Functional'!D351","v":"A315"},null,{"$f":"'FR-16(7)(v)-6 TRANS Classified'!G351","v":0},0,0,0,0,0,0,0,0,0,0,0,0,0]
[17,null,{"$f":"'FR-16(7)(v)-1 Functional'!C352","v":"MISCELLANEOUS"},{"$f":"'FR-16(7)(v)-1 Functional'!D352","v":"A315"},null,{"$f":"'FR-16(7)(v)-6 TRANS Classified'!G352","v":424395},191309,114858,552,2177,30,57268,37860,1829,17939,526,47,424395,0]
[18,null,{"$f":"'FR-16(7)(v)-1 Functional'!C353","v":"DEFERRED TAX"},{"$f":"'FR-16(7)(v)-1 Functional'!D353","v":"A315"},null,{"$f":"'FR-16(7)(v)-6 TRANS Classified'!G353","v":193393},87177,52340,251,992,14,26096,17253,834,8175,240,21,193393,0]
[19,null,{"$f":"'FR-16(7)(v)-1 Functional'!C354","v":"NET OPERATING LOSS"},{"$f":"'FR-16(7)(v)-1 Functional'!D354","v":"NP29"},null,{"$f":"'FR-16(7)(v)-6 TRANS Classified'!G354","v":0},0,0,0,0,0,0,0,0,0,0,0,0,0]
[20,null,{"$f":"'FR-16(7)(v)-1 Functional'!C355","v":"401K INCENTIVE PLAN"},{"$f":"'FR-16(7)(v)-1 Functional'!D355","v":"A315"},null,{"$f":"'FR-16(7)(v)-6 TRANS Classified'!G355","v":0},0,0,0,0,0,0,0,0,0,0,0,0,0]
[21,null,{"$f":"'FR-16(7)(v)-1 Functional'!C356","v":"ENVIRONMENTAL RESERVE"},{"$f":"'FR-16(7)(v)-1 Functional'!D356","v":"NP29"},null,{"$f":"'FR-16(7)(v)-6 TRANS Classified'!G356","v":0},0,0,0,0,0,0,0,0,0,0,0,0,0]
[22,null,{"$f":"'FR-16(7)(v)-1 Functional'!C357","v":"VACATION PAY ACCRUALS"},{"$f":"'FR-16(7)(v)-1 Functional'!D357","v":"A315"},null,{"$f":"'FR-16(7)(v)-6 TRANS Classified'!G357","v":20964},9451,5674,27,108,1,2829,1870,90,886,26,2,20964,0]
[23,null,{"$f":"'FR-16(7)(v)-1 Functional'!C358","v":"DEMAND SIDE MANAGEMENT DEFERRAL"},{"$f":"'FR-16(7)(v)-1 Functional'!D358","v":"NP29"},null,{"$f":"'FR-16(7)(v)-6 TRANS Classified'!G358","v":29942},13497,8104,39,154,2,4040,2671,129,1266,37,3,29942,0]
[24,null,{"$f":"'FR-16(7)(v)-1 Functional'!C359","v":"OPERATING LEASE OBLIGATION"},{"$f":"'FR-16(7)(v)-1 Functional'!D359","v":"NP29"},null,{"$f":"'FR-16(7)(v)-6 TRANS Classified'!G359","v":110801},49947,29987,144,568,8,14951,9885,478,4684,137,12,110801,0]
[25,null,{"$f":"'FR-16(7)(v)-1 Functional'!C360","v":"INJURIES & DAMAGES"},{"$f":"'FR-16(7)(v)-1 Functional'!D360","v":"NP29"},null,{"$f":"'FR-16(7)(v)-6 TRANS Classified'!G360","v":0},0,0,0,0,0,0,0,0,0,0,0,0,0]
[26,null,{"$f":"'FR-16(7)(v)-1 Functional'!C361","v":"  TOTAL ACCOUNT 190"},null,null,{"$f":"SUM(F337:F360)","v":924589},{"$f":"SUM(G337:G360)","v":416786},{"$f":"SUM(H337:H360)","v":250232},{"$f":"SUM(I337:I360)","v":1202},{"$f":"SUM(J337:J360)","v":4743},65,124763,82483,3985,39083,1146,{"$f":"SUM(Q337:Q360)","v":101},{"$f":"SUM(R337:R360)","v":924589},{"$f":"SUM(S337:S360)","v":0}]
[27]
[28," OTHER"]
[29,null,{"$f":"'FR-16(7)(v)-1 Functional'!C364","v":"RESERVED FOR FUTURE USE"},{"$f":"'FR-16(7)(v)-1 Functional'!D364","v":"NP29"},null,{"$f":"'FR-16(7)(v)-6 TRANS Classified'!G364","v":0},{"$f":"F364-SUM(H364:Q364)","v":0},{"$f":"ROUND(F364*VLOOKUP(D364,ALLOCTABLE_Trans_Demand,$H$10,FALSE),0)","v":0},{"$f":"ROUND(F364*VLOOKUP(D364,ALLOCTABLE_Trans_Demand,$I$10,FALSE),0)","v":0},{"$f":"ROUND(F364*VLOOKUP(D364,ALLOCTABLE_Trans_Demand,$J$10,FALSE),0)","v":0},{"$f":"ROUND(F364*VLOOKUP(D364,ALLOCTABLE_Trans_Demand,$K$10,FALSE),0)","v":0},{"$f":"ROUND(F364*VLOOKUP(D364,ALLOCTABLE_Trans_Demand,$L$10,FALSE),0)","v":0},{"$f":"ROUND(F364*VLOOKUP(D364,ALLOCTABLE_Trans_Demand,$M$10,FALSE),0)","v":0},{"$f":"ROUND(F364*VLOOKUP(D364,ALLOCTABLE_Trans_Demand,$N$10,FALSE),0)","v":0},{"$f":"ROUND(F364*VLOOKUP(D364,ALLOCTABLE_Trans_Demand,$O$10,FALSE),0)","v":0},{"$f":"ROUND(F364*VLOOKUP(D364,ALLOCTABLE_Trans_Demand,$P$10,FALSE),0)","v":0},{"$f":"ROUND(F364*VLOOKUP(D364,ALLOCTABLE_Trans_Demand,$Q$10,FALSE),0)","v":0},{"$f":"SUM(G364:Q364)","v":0},{"$f":"F364-R364","v":0}]
[30,null,{"$f":"'FR-16(7)(v)-1 Functional'!C365","v":"RATE CASE EXPENSE REGULATORY ASSET"},{"$f":"'FR-16(7)(v)-1 Functional'!D365","v":"NP29"},null,{"$f":"'FR-16(7)(v)-6 TRANS Classified'!G365","v":44889},{"$f":"F365-SUM(H365:Q365)","v":20236},{"$f":"ROUND(F365*VLOOKUP(D365,ALLOCTABLE_Trans_Demand,$H$10,FALSE),0)","v":12149},{"$f":"ROUND(F365*VLOOKUP(D365,ALLOCTABLE_Trans_Demand,$I$10,FALSE),0)","v":58},{"$f":"ROUND(F365*VLOOKUP(D365,ALLOCTABLE_Trans_Demand,$J$10,FALSE),0)","v":230},{"$f":"ROUND(F365*VLOOKUP(D365,ALLOCTABLE_Trans_Demand,$K$10,FALSE),0)","v":3},{"$f":"ROUND(F365*VLOOKUP(D365,ALLOCTABLE_Trans_Demand,$L$10,FALSE),0)","v":6057},{"$f":"ROUND(F365*VLOOKUP(D365,ALLOCTABLE_Trans_Demand,$M$10,FALSE),0)","v":4005},{"$f":"ROUND(F365*VLOOKUP(D365,ALLOCTABLE_Trans_Demand,$N$10,FALSE),0)","v":193},{"$f":"ROUND(F365*VLOOKUP(D365,ALLOCTABLE_Trans_Demand,$O$10,FALSE),0)","v":1897},{"$f":"ROUND(F365*VLOOKUP(D365,ALLOCTABLE_Trans_Demand,$P$10,FALSE),0)","v":56},{"$f":"ROUND(F365*VLOOKUP(D365,ALLOCTABLE_Trans_Demand,$Q$10,FALSE),0)","v":5},{"$f":"SUM(G365:Q365)","v":44889},{"$f":"F365-R365","v":0}]
[31,null,{"$f":"'FR-16(7)(v)-1 Functional'!C366","v":"RESERVED FOR FUTURE USE"},{"$f":"'FR-16(7)(v)-1 Functional'!D366","v":"NP29"},null,{"$f":"'FR-16(7)(v)-6 TRANS Classified'!G366","v":0},{"$f":"F366-SUM(H366:Q366)","v":0},{"$f":"ROUND(F366*VLOOKUP(D366,ALLOCTABLE_Trans_Demand,$H$10,FALSE),0)","v":0},{"$f":"ROUND(F366*VLOOKUP(D366,ALLOCTABLE_Trans_Demand,$I$10,FALSE),0)","v":0},{"$f":"ROUND(F366*VLOOKUP(D366,ALLOCTABLE_Trans_Demand,$J$10,FALSE),0)","v":0},{"$f":"ROUND(F366*VLOOKUP(D366,ALLOCTABLE_Trans_Demand,$K$10,FALSE),0)","v":0},{"$f":"ROUND(F366*VLOOKUP(D366,ALLOCTABLE_Trans_Demand,$L$10,FALSE),0)","v":0},{"$f":"ROUND(F366*VLOOKUP(D366,ALLOCTABLE_Trans_Demand,$M$10,FALSE),0)","v":0},{"$f":"ROUND(F366*VLOOKUP(D366,ALLOCTABLE_Trans_Demand,$N$10,FALSE),0)","v":0},{"$f":"ROUND(F366*VLOOKUP(D366,ALLOCTABLE_Trans_Demand,$O$10,FALSE),0)","v":0},{"$f":"ROUND(F366*VLOOKUP(D366,ALLOCTABLE_Trans_Demand,$P$10,FALSE),0)","v":0},{"$f":"ROUND(F366*VLOOKUP(D366,ALLOCTABLE_Trans_Demand,$Q$10,FALSE),0)","v":0},{"$f":"SUM(G366:Q366)","v":0},{"$f":"F366-R366","v":0}]
[32,null,{"$f":"'FR-16(7)(v)-1 Functional'!C367","v":"  OTHER"},null,null,{"$f":"SUM(F364:F366)","v":44889},{"$f":"SUM(G363:G366)","v":20236},12149,58,{"$f":"SUM(J363:J366)","v":230},3,6057,4005,193,1897,56,5,44889,0]
[33,null,null,null,null," "]
[34,"CONSTRUCTION WORK IN PROGRESS"]
[35,null,"PRODUCTION",{"$f":"'FR-16(7)(v)-1 Functional'!D370","v":"P129"},null,{"$f":"'FR-16(7)(v)-6 TRANS Classified'!G370","v":0},{"$f":"F370-SUM(H370:Q370)","v":0},{"$f":"ROUND(F370*VLOOKUP(D370,ALLOCTABLE_Trans_Demand,$H$10,FALSE),0)","v":0},{"$f":"ROUND(F370*VLOOKUP(D370,ALLOCTABLE_Trans_Demand,$I$10,FALSE),0)","v":0},{"$f":"ROUND(F370*VLOOKUP(D370,ALLOCTABLE_Trans_Demand,$J$10,FALSE),0)","v":0},{"$f":"ROUND(F370*VLOOKUP(D370,ALLOCTABLE_Trans_Demand,$K$10,FALSE),0)","v":0},{"$f":"ROUND(F370*VLOOKUP(D370,ALLOCTABLE_Trans_Demand,$L$10,FALSE),0)","v":0},{"$f":"ROUND(F370*VLOOKUP(D370,ALLOCTABLE_Trans_Demand,$M$10,FALSE),0)","v":0},{"$f":"ROUND(F370*VLOOKUP(D370,ALLOCTABLE_Trans_Demand,$N$10,FALSE),0)","v":0},{"$f":"ROUND(F370*VLOOKUP(D370,ALLOCTABLE_Trans_Demand,$O$10,FALSE),0)","v":0},{"$f":"ROUND(F370*VLOOKUP(D370,ALLOCTABLE_Trans_Demand,$P$10,FALSE),0)","v":0},{"$f":"ROUND(F370*VLOOKUP(D370,ALLOCTABLE_Trans_Demand,$Q$10,FALSE),0)","v":0},{"$f":"SUM(G370:Q370)","v":0},{"$f":"F370-R370","v":0}]
[36,null,"TRANSMISSION",{"$f":"'FR-16(7)(v)-1 Functional'!D371","v":"T129"},null,{"$f":"'FR-16(7)(v)-6 TRANS Classified'!G371","v":0},{"$f":"F371-SUM(H371:Q371)","v":0},{"$f":"ROUND(F371*VLOOKUP(D371,ALLOCTABLE_Trans_Demand,$H$10,FALSE),0)","v":0},{"$f":"ROUND(F371*VLOOKUP(D371,ALLOCTABLE_Trans_Demand,$I$10,FALSE),0)","v":0},{"$f":"ROUND(F371*VLOOKUP(D371,ALLOCTABLE_Trans_Demand,$J$10,FALSE),0)","v":0},{"$f":"ROUND(F371*VLOOKUP(D371,ALLOCTABLE_Trans_Demand,$K$10,FALSE),0)","v":0},{"$f":"ROUND(F371*VLOOKUP(D371,ALLOCTABLE_Trans_Demand,$L$10,FALSE),0)","v":0},{"$f":"ROUND(F371*VLOOKUP(D371,ALLOCTABLE_Trans_Demand,$M$10,FALSE),0)","v":0},{"$f":"ROUND(F371*VLOOKUP(D371,ALLOCTABLE_Trans_Demand,$N$10,FALSE),0)","v":0},{"$f":"ROUND(F371*VLOOKUP(D371,ALLOCTABLE_Trans_Demand,$O$10,FALSE),0)","v":0},{"$f":"ROUND(F371*VLOOKUP(D371,ALLOCTABLE_Trans_Demand,$P$10,FALSE),0)","v":0},{"$f":"ROUND(F371*VLOOKUP(D371,ALLOCTABLE_Trans_Demand,$Q$10,FALSE),0)","v":0},{"$f":"SUM(G371:Q371)","v":0},{"$f":"F371-R371","v":0}]
[37,null,"DISTRIBUTION",{"$f":"'FR-16(7)(v)-1 Functional'!D372","v":"D149"},null,{"$f":"'FR-16(7)(v)-6 TRANS Classified'!G372","v":0},{"$f":"F372-SUM(H372:Q372)","v":0},{"$f":"ROUND(F372*VLOOKUP(D372,ALLOCTABLE_Trans_Demand,$H$10,FALSE),0)","v":0},{"$f":"ROUND(F372*VLOOKUP(D372,ALLOCTABLE_Trans_Demand,$I$10,FALSE),0)","v":0},{"$f":"ROUND(F372*VLOOKUP(D372,ALLOCTABLE_Trans_Demand,$J$10,FALSE),0)","v":0},{"$f":"ROUND(F372*VLOOKUP(D372,ALLOCTABLE_Trans_Demand,$K$10,FALSE),0)","v":0},{"$f":"ROUND(F372*VLOOKUP(D372,ALLOCTABLE_Trans_Demand,$L$10,FALSE),0)","v":0},{"$f":"ROUND(F372*VLOOKUP(D372,ALLOCTABLE_Trans_Demand,$M$10,FALSE),0)","v":0},{"$f":"ROUND(F372*VLOOKUP(D372,ALLOCTABLE_Trans_Demand,$N$10,FALSE),0)","v":0},{"$f":"ROUND(F372*VLOOKUP(D372,ALLOCTABLE_Trans_Demand,$O$10,FALSE),0)","v":0},{"$f":"ROUND(F372*VLOOKUP(D372,ALLOCTABLE_Trans_Demand,$P$10,FALSE),0)","v":0},{"$f":"ROUND(F372*VLOOKUP(D372,ALLOCTABLE_Trans_Demand,$Q$10,FALSE),0)","v":0},{"$f":"SUM(G372:Q372)","v":0},{"$f":"F372-R372","v":0}]
[38,null,"COMMON",{"$f":"'FR-16(7)(v)-1 Functional'!D373","v":"C129"},null,{"$f":"'FR-16(7)(v)-6 TRANS Classified'!G373","v":0},{"$f":"F373-SUM(H373:Q373)","v":0},{"$f":"ROUND(F373*VLOOKUP(D373,ALLOCTABLE_Trans_Demand,$H$10,FALSE),0)","v":0},{"$f":"ROUND(F373*VLOOKUP(D373,ALLOCTABLE_Trans_Demand,$I$10,FALSE),0)","v":0},{"$f":"ROUND(F373*VLOOKUP(D373,ALLOCTABLE_Trans_Demand,$J$10,FALSE),0)","v":0},{"$f":"ROUND(F373*VLOOKUP(D373,ALLOCTABLE_Trans_Demand,$K$10,FALSE),0)","v":0},{"$f":"ROUND(F373*VLOOKUP(D373,ALLOCTABLE_Trans_Demand,$L$10,FALSE),0)","v":0},{"$f":"ROUND(F373*VLOOKUP(D373,ALLOCTABLE_Trans_Demand,$M$10,FALSE),0)","v":0},{"$f":"ROUND(F373*VLOOKUP(D373,ALLOCTABLE_Trans_Demand,$N$10,FALSE),0)","v":0},{"$f":"ROUND(F373*VLOOKUP(D373,ALLOCTABLE_Trans_Demand,$O$10,FALSE),0)","v":0},{"$f":"ROUND(F373*VLOOKUP(D373,ALLOCTABLE_Trans_Demand,$P$10,FALSE),0)","v":0},{"$f":"ROUND(F373*VLOOKUP(D373,ALLOCTABLE_Trans_Demand,$Q$10,FALSE),0)","v":0},{"$f":"SUM(G373:Q373)","v":0},{"$f":"F373-R373","v":0}]
[39,null,"GENERAL",{"$f":"'FR-16(7)(v)-1 Functional'!D374","v":"G129"},null,{"$f":"'FR-16(7)(v)-6 TRANS Classified'!G374","v":0},{"$f":"F374-SUM(H374:Q374)","v":0},{"$f":"ROUND(F374*VLOOKUP(D374,ALLOCTABLE_Trans_Demand,$H$10,FALSE),0)","v":0},{"$f":"ROUND(F374*VLOOKUP(D374,ALLOCTABLE_Trans_Demand,$I$10,FALSE),0)","v":0},{"$f":"ROUND(F374*VLOOKUP(D374,ALLOCTABLE_Trans_Demand,$J$10,FALSE),0)","v":0},{"$f":"ROUND(F374*VLOOKUP(D374,ALLOCTABLE_Trans_Demand,$K$10,FALSE),0)","v":0},{"$f":"ROUND(F374*VLOOKUP(D374,ALLOCTABLE_Trans_Demand,$L$10,FALSE),0)","v":0},{"$f":"ROUND(F374*VLOOKUP(D374,ALLOCTABLE_Trans_Demand,$M$10,FALSE),0)","v":0},{"$f":"ROUND(F374*VLOOKUP(D374,ALLOCTABLE_Trans_Demand,$N$10,FALSE),0)","v":0},{"$f":"ROUND(F374*VLOOKUP(D374,ALLOCTABLE_Trans_Demand,$O$10,FALSE),0)","v":0},{"$f":"ROUND(F374*VLOOKUP(D374,ALLOCTABLE_Trans_Demand,$P$10,FALSE),0)","v":0},{"$f":"ROUND(F374*VLOOKUP(D374,ALLOCTABLE_Trans_Demand,$Q$10,FALSE),0)","v":0},{"$f":"SUM(G374:Q374)","v":0},{"$f":"F374-R374","v":0}]
[40,null,"TOTAL CONSTRUCTION WORK IN PROGRESS",null,null,{"$f":"SUM(F370:F374)","v":0},0,0,0,0,0,0,0,0,0,0,0,0]
[41]
[42,{"$f":"'FR-16(7)(v)-1 Functional'!B377","v":"TOTAL ADDITIVE RATE BASE ADJUSTMENTS"},null,null,null,{"$f":"F361+F367+F375","v":969478},{"$f":"G361+G367+G375","v":437022},{"$f":"H361+H367+H375","v":262381},{"$f":"I361+I367+I375","v":1260},{"$f":"J361+J367+J375","v":4973},68,130820,86488,4178,40980,1202,{"$f":"Q361+Q367+Q375","v":106},{"$f":"R361+R367+R375","v":969478},{"$f":"S361+S367+S375","v":0}]
[]
[{"$f":"co_name","v":"DUKE ENERGY KENTUCKY, INC."},null,null,null,null,null,null,null,null,null,null,null,null,null,null,null,null,{"$f":"R1","v":"FR-16(7)(v)-7"}]
[{"$f":"$A$2","v":"TRANSMISSION DEMAND ALLOCATED - ELECTRIC COST OF SERVICE"},null,null,null,null,null,null,null,null,null,null,null,null,null,null,null,null,{"$f":"R2","v":"WITNESS RESPONSIBLE:"}]
[{"$f":"case_name","v":"CASE NO: 2019-00271"},null,null,null,null,null,null,null,null,null,null,null,null,null,null,null,null,{"$f":"Witness","v":"JAMES E. ZIOLKOWSKI"}]
[{"$f":"data_filing","v":"DATA: 12 MONTHS ACTUAL  & 0 MONTHS ESTIMATED"},null,null,null,null,null,null,null,null,null,null,null,null,null,null,null,null,{"$f":"\"PAGE \"&Pages-11&\" OF \"&Pages","v":"PAGE 7 OF 18"}]
[{"$f":"type","v":"TYPE OF FILING: \"X\" ORIGINAL   UPDATED    REVISED  "}]
[]
[null,null,null,null,null,{"$f":"F$7","v":"TOTAL"},null,{"$f":"H$7","v":"DS"},{"$f":"I$7","v":"GSFL"},{"$f":"J$7","v":"EH"},{"$f":"K$7","v":"SP"},"DT SEC","DT PRI","DP","TT",null,"OTHER"]
["LINE",null,null,null,null,{"$f":"F$8","v":"TRANSMISSION"},{"$f":"G$8","v":"RS"},{"$f":"H$8","v":"SECONDARY"},{"$f":"I$8","v":"SECONDARY"},{"$f":"J$8","v":"SECONDARY"},{"$f":"K$8","v":"SECONDARY"},"SECONDARY","PRIMARY","PRIMARY","TRANSMISSION","LT","WATER",{"$f":"R8","v":"TOTAL"},"ALL"]
["NO.","WORKING CAPITAL",null,"ALLO",null,{"$f":"F$9","v":"DEMAND"},{"$f":"G$9","v":"RESIDENTIAL"},{"$f":"H$9","v":"DISTRIBUTION"},{"$f":"I$9","v":"DISTRIBUTION"},{"$f":"J$9","v":"DISTRIBUTION"},{"$f":"K$9","v":"DISTRIBUTION"},"DISTRIBUTION","DISTRIBUTION","DISTRIBUTION","TIME OF DAY","LIGHTING","PUMPING",{"$f":"R9","v":"AT ISSUE"},"OTHER"]
[null,null,"Schedule 5.2",null,null,null,{"$f":"G$10","v":3},{"$f":"H$10","v":4},{"$f":"I$10","v":5},{"$f":"J$10","v":6},{"$f":"K$10","v":7},8,9,10,11,12,13,null," "]
[]
[1,"NET ORIGINAL COST RATE BASE",null,null,null,{"$f":"F277-F324+F377","v":41293125},{"$f":"G277-G324+G377","v":18614115},{"$f":"H277-H324+H377","v":11175571},{"$f":"I277-I324+I377","v":53681},{"$f":"J277-J324+J377","v":211834},2893,5572092,3683760,177973,1745460,51205,{"$f":"Q277-Q324+Q377","v":4541},{"$f":"R277-R324+R377","v":41293125},{"$f":"S277-S324+S377","v":0}]
[2]
[3,"WORKING CAPITAL"]
[4]
[5,"PLANT MATERIALS & SUPPLIES"]
[6,null,"OTHER MATERIALS & SUPPLIES",{"$f":"'FR-16(7)(v)-1 Functional'!D395","v":"PD29"},null,{"$f":"'FR-16(7)(v)-6 TRANS Classified'!G395","v":730319},{"$f":"F395-SUM(H395:Q395)","v":329212},{"$f":"ROUND(F395*VLOOKUP(D395,ALLOCTABLE_Trans_Demand,$H$10,FALSE),0)","v":197654},{"$f":"ROUND(F395*VLOOKUP(D395,ALLOCTABLE_Trans_Demand,$I$10,FALSE),0)","v":949},{"$f":"ROUND(F395*VLOOKUP(D395,ALLOCTABLE_Trans_Demand,$J$10,FALSE),0)","v":3747},{"$f":"ROUND(F395*VLOOKUP(D395,ALLOCTABLE_Trans_Demand,$K$10,FALSE),0)","v":51},{"$f":"ROUND(F395*VLOOKUP(D395,ALLOCTABLE_Trans_Demand,$L$10,FALSE),0)","v":98549},{"$f":"ROUND(F395*VLOOKUP(D395,ALLOCTABLE_Trans_Demand,$M$10,FALSE),0)","v":65152},{"$f":"ROUND(F395*VLOOKUP(D395,ALLOCTABLE_Trans_Demand,$N$10,FALSE),0)","v":3148},{"$f":"ROUND(F395*VLOOKUP(D395,ALLOCTABLE_Trans_Demand,$O$10,FALSE),0)","v":30871},{"$f":"ROUND(F395*VLOOKUP(D395,ALLOCTABLE_Trans_Demand,$P$10,FALSE),0)","v":906},{"$f":"ROUND(F395*VLOOKUP(D395,ALLOCTABLE_Trans_Demand,$Q$10,FALSE),0)","v":80},{"$f":"SUM(G395:Q395)","v":730319},{"$f":"F395-R395","v":0}]
[7,null,{"$f":"'FR-16(7)(v)-1 Functional'!C396","v":"FUEL"},{"$f":"'FR-16(7)(v)-1 Functional'!D396","v":"K301"},null,{"$f":"'FR-16(7)(v)-6 TRANS Classified'!G396","v":0},{"$f":"F396-SUM(H396:Q396)","v":0},{"$f":"ROUND(F396*VLOOKUP(D396,ALLOCTABLE_Trans_Demand,$H$10,FALSE),0)","v":0},{"$f":"ROUND(F396*VLOOKUP(D396,ALLOCTABLE_Trans_Demand,$I$10,FALSE),0)","v":0},{"$f":"ROUND(F396*VLOOKUP(D396,ALLOCTABLE_Trans_Demand,$J$10,FALSE),0)","v":0},{"$f":"ROUND(F396*VLOOKUP(D396,ALLOCTABLE_Trans_Demand,$K$10,FALSE),0)","v":0},{"$f":"ROUND(F396*VLOOKUP(D396,ALLOCTABLE_Trans_Demand,$L$10,FALSE),0)","v":0},{"$f":"ROUND(F396*VLOOKUP(D396,ALLOCTABLE_Trans_Demand,$M$10,FALSE),0)","v":0},{"$f":"ROUND(F396*VLOOKUP(D396,ALLOCTABLE_Trans_Demand,$N$10,FALSE),0)","v":0},{"$f":"ROUND(F396*VLOOKUP(D396,ALLOCTABLE_Trans_Demand,$O$10,FALSE),0)","v":0},{"$f":"ROUND(F396*VLOOKUP(D396,ALLOCTABLE_Trans_Demand,$P$10,FALSE),0)","v":0},{"$f":"ROUND(F396*VLOOKUP(D396,ALLOCTABLE_Trans_Demand,$Q$10,FALSE),0)","v":0},{"$f":"SUM(G396:Q396)","v":0},{"$f":"F396-R396","v":0}]
[8,null,{"$f":"'FR-16(7)(v)-1 Functional'!C397","v":"EMISSION ALLOWANCES"},{"$f":"'FR-16(7)(v)-1 Functional'!D397","v":"K301"},null,{"$f":"'FR-16(7)(v)-6 TRANS Classified'!G397","v":0},{"$f":"F397-SUM(H397:Q397)","v":0},{"$f":"ROUND(F397*VLOOKUP(D397,ALLOCTABLE_Trans_Demand,$H$10,FALSE),0)","v":0},{"$f":"ROUND(F397*VLOOKUP(D397,ALLOCTABLE_Trans_Demand,$I$10,FALSE),0)","v":0},{"$f":"ROUND(F397*VLOOKUP(D397,ALLOCTABLE_Trans_Demand,$J$10,FALSE),0)","v":0},{"$f":"ROUND(F397*VLOOKUP(D397,ALLOCTABLE_Trans_Demand,$K$10,FALSE),0)","v":0},{"$f":"ROUND(F397*VLOOKUP(D397,ALLOCTABLE_Trans_Demand,$L$10,FALSE),0)","v":0},{"$f":"ROUND(F397*VLOOKUP(D397,ALLOCTABLE_Trans_Demand,$M$10,FALSE),0)","v":0},{"$f":"ROUND(F397*VLOOKUP(D397,ALLOCTABLE_Trans_Demand,$N$10,FALSE),0)","v":0},{"$f":"ROUND(F397*VLOOKUP(D397,ALLOCTABLE_Trans_Demand,$O$10,FALSE),0)","v":0},{"$f":"ROUND(F397*VLOOKUP(D397,ALLOCTABLE_Trans_Demand,$P$10,FALSE),0)","v":0},{"$f":"ROUND(F397*VLOOKUP(D397,ALLOCTABLE_Trans_Demand,$Q$10,FALSE),0)","v":0},{"$f":"SUM(G397:Q397)","v":0},{"$f":"F397-R397","v":0}]
[9,null,{"$f":"'FR-16(7)(v)-1 Functional'!C398","v":"  TOTAL PLANT MATS. & SUPPLIES"},null,null,{"$f":"SUM(F394:F397)","v":730319},{"$f":"SUM(G394:G397)","v":329212},{"$f":"SUM(H394:H397)","v":197654},{"$f":"SUM(I394:I397)","v":949},{"$f":"SUM(J394:J397)","v":3747},51,98549,65152,3148,30871,906,{"$f":"SUM(Q394:Q397)","v":80},{"$f":"SUM(R394:R397)","v":730319},{"$f":"SUM(S394:S397)","v":0}]
[10,"TOTAL MATERIALS & SUPPLIES",null,null,null,{"$f":"F398","v":730319},329212,197654,949,{"$f":"J398","v":3747},51,98549,65152,3148,30871,906,80,730319,0]
[11]
[12,"PREPAYMENTS"]
[13,null,{"$f":"'FR-16(7)(v)-1 Functional'!C402","v":"INSURANCE GENERAL"},{"$f":"'FR-16(7)(v)-1 Functional'!D402","v":"NP29"},null,{"$f":"'FR-16(7)(v)-6 TRANS Classified'!G402","v":13254},{"$f":"F402-SUM(H402:Q402)","v":5977},{"$f":"ROUND(F402*VLOOKUP(D402,ALLOCTABLE_Trans_Demand,$H$10,FALSE),0)","v":3587},{"$f":"ROUND(F402*VLOOKUP(D402,ALLOCTABLE_Trans_Demand,$I$10,FALSE),0)","v":17},{"$f":"ROUND(F402*VLOOKUP(D402,ALLOCTABLE_Trans_Demand,$J$10,FALSE),0)","v":68},{"$f":"ROUND(F402*VLOOKUP(D402,ALLOCTABLE_Trans_Demand,$K$10,FALSE),0)","v":1},{"$f":"ROUND(F402*VLOOKUP(D402,ALLOCTABLE_Trans_Demand,$L$10,FALSE),0)","v":1788},{"$f":"ROUND(F402*VLOOKUP(D402,ALLOCTABLE_Trans_Demand,$M$10,FALSE),0)","v":1182},{"$f":"ROUND(F402*VLOOKUP(D402,ALLOCTABLE_Trans_Demand,$N$10,FALSE),0)","v":57},{"$f":"ROUND(F402*VLOOKUP(D402,ALLOCTABLE_Trans_Demand,$O$10,FALSE),0)","v":560},{"$f":"ROUND(F402*VLOOKUP(D402,ALLOCTABLE_Trans_Demand,$P$10,FALSE),0)","v":16},{"$f":"ROUND(F402*VLOOKUP(D402,ALLOCTABLE_Trans_Demand,$Q$10,FALSE),0)","v":1},{"$f":"SUM(G402:Q402)","v":13254},{"$f":"F402-R402","v":0}]
[14,null,{"$f":"'FR-16(7)(v)-1 Functional'!C403","v":"EXCISE TAX"},{"$f":"'FR-16(7)(v)-1 Functional'!D403","v":"NP29"},null,{"$f":"'FR-16(7)(v)-6 TRANS Classified'!G403","v":0},{"$f":"F403-SUM(H403:Q403)","v":0},{"$f":"ROUND(F403*VLOOKUP(D403,ALLOCTABLE_Trans_Demand,$H$10,FALSE),0)","v":0},{"$f":"ROUND(F403*VLOOKUP(D403,ALLOCTABLE_Trans_Demand,$I$10,FALSE),0)","v":0},{"$f":"ROUND(F403*VLOOKUP(D403,ALLOCTABLE_Trans_Demand,$J$10,FALSE),0)","v":0},{"$f":"ROUND(F403*VLOOKUP(D403,ALLOCTABLE_Trans_Demand,$K$10,FALSE),0)","v":0},{"$f":"ROUND(F403*VLOOKUP(D403,ALLOCTABLE_Trans_Demand,$L$10,FALSE),0)","v":0},{"$f":"ROUND(F403*VLOOKUP(D403,ALLOCTABLE_Trans_Demand,$M$10,FALSE),0)","v":0},{"$f":"ROUND(F403*VLOOKUP(D403,ALLOCTABLE_Trans_Demand,$N$10,FALSE),0)","v":0},{"$f":"ROUND(F403*VLOOKUP(D403,ALLOCTABLE_Trans_Demand,$O$10,FALSE),0)","v":0},{"$f":"ROUND(F403*VLOOKUP(D403,ALLOCTABLE_Trans_Demand,$P$10,FALSE),0)","v":0},{"$f":"ROUND(F403*VLOOKUP(D403,ALLOCTABLE_Trans_Demand,$Q$10,FALSE),0)","v":0},{"$f":"SUM(G403:Q403)","v":0},{"$f":"F403-R403","v":0}]
[15,null,{"$f":"'FR-16(7)(v)-1 Functional'!C404","v":"COLLATERAL ASSET"},{"$f":"'FR-16(7)(v)-1 Functional'!D404","v":"K301"},null,{"$f":"'FR-16(7)(v)-6 TRANS Classified'!G404","v":0},{"$f":"F404-SUM(H404:Q404)","v":0},{"$f":"ROUND(F404*VLOOKUP(D404,ALLOCTABLE_Trans_Demand,$H$10,FALSE),0)","v":0},{"$f":"ROUND(F404*VLOOKUP(D404,ALLOCTABLE_Trans_Demand,$I$10,FALSE),0)","v":0},{"$f":"ROUND(F404*VLOOKUP(D404,ALLOCTABLE_Trans_Demand,$J$10,FALSE),0)","v":0},{"$f":"ROUND(F404*VLOOKUP(D404,ALLOCTABLE_Trans_Demand,$K$10,FALSE),0)","v":0},{"$f":"ROUND(F404*VLOOKUP(D404,ALLOCTABLE_Trans_Demand,$L$10,FALSE),0)","v":0},{"$f":"ROUND(F404*VLOOKUP(D404,ALLOCTABLE_Trans_Demand,$M$10,FALSE),0)","v":0},{"$f":"ROUND(F404*VLOOKUP(D404,ALLOCTABLE_Trans_Demand,$N$10,FALSE),0)","v":0},{"$f":"ROUND(F404*VLOOKUP(D404,ALLOCTABLE_Trans_Demand,$O$10,FALSE),0)","v":0},{"$f":"ROUND(F404*VLOOKUP(D404,ALLOCTABLE_Trans_Demand,$P$10,FALSE),0)","v":0},{"$f":"ROUND(F404*VLOOKUP(D404,ALLOCTABLE_Trans_Demand,$Q$10,FALSE),0)","v":0},{"$f":"SUM(G404:Q404)","v":0},{"$f":"F404-R404","v":0}]
[16,null,{"$f":"'FR-16(7)(v)-1 Functional'!C405","v":"  TOTAL PREPAYMENTS"},null,null,{"$f":"SUM(F401:F404)","v":13254},{"$f":"SUM(G401:G404)","v":5977},{"$f":"SUM(H401:H404)","v":3587},{"$f":"SUM(I401:I404)","v":17},{"$f":"SUM(J401:J404)","v":68},1,1788,1182,57,560,16,{"$f":"SUM(Q401:Q404)","v":1},{"$f":"SUM(R401:R404)","v":13254},{"$f":"SUM(S401:S404)","v":0}]
[17]
[18,"AUTO CALC (O&M-ELECTRIC FUEL COST)/8",null,null,null,{"$f":"IF(WorkingCap=\"No\",0,ROUND((F549-F447-F448)/8,0))","v":0},{"$f":"F407-SUM(H407:Q407)","v":0},{"$f":"IF(WorkingCap=\"No\",0,ROUND((H549-H447-H448)/8,0))","v":0},0,0,0,0,0,0,0,0,0,{"$f":"SUM(G407:Q407)","v":0},{"$f":"F407-R407","v":0}]
[19,"  TOTAL WORKING CASH",null,null,null,{"$f":"F407","v":0},0,0,0,{"$f":"J407","v":0},0,0,0,0,0,0,0,0,0]
[20]
[21,"MISCELLANEOUS WORKING CAPITAL"]
[22,null,{"$f":"'FR-16(7)(v)-1 Functional'!C411","v":"RESERVED FOR FUTURE USE"},{"$f":"'FR-16(7)(v)-1 Functional'!D411","v":"K301"},null,{"$f":"'FR-16(7)(v)-6 TRANS Classified'!G411","v":0},{"$f":"F411-SUM(H411:Q411)","v":0},{"$f":"ROUND(F411*VLOOKUP(D411,ALLOCTABLE_Trans_Demand,$H$10,FALSE),0)","v":0},{"$f":"ROUND(F411*VLOOKUP(D411,ALLOCTABLE_Trans_Demand,$I$10,FALSE),0)","v":0},{"$f":"ROUND(F411*VLOOKUP(D411,ALLOCTABLE_Trans_Demand,$J$10,FALSE),0)","v":0},{"$f":"ROUND(F411*VLOOKUP(D411,ALLOCTABLE_Trans_Demand,$K$10,FALSE),0)","v":0},{"$f":"ROUND(F411*VLOOKUP(D411,ALLOCTABLE_Trans_Demand,$L$10,FALSE),0)","v":0},{"$f":"ROUND(F411*VLOOKUP(D411,ALLOCTABLE_Trans_Demand,$M$10,FALSE),0)","v":0},{"$f":"ROUND(F411*VLOOKUP(D411,ALLOCTABLE_Trans_Demand,$N$10,FALSE),0)","v":0},{"$f":"ROUND(F411*VLOOKUP(D411,ALLOCTABLE_Trans_Demand,$O$10,FALSE),0)","v":0},{"$f":"ROUND(F411*VLOOKUP(D411,ALLOCTABLE_Trans_Demand,$P$10,FALSE),0)","v":0},{"$f":"ROUND(F411*VLOOKUP(D411,ALLOCTABLE_Trans_Demand,$Q$10,FALSE),0)","v":0},{"$f":"SUM(G411:Q411)","v":0},{"$f":"F411-R411","v":0}]
[23,null,{"$f":"'FR-16(7)(v)-1 Functional'!C412","v":"PIPP UNCOLLECTIBLES"},{"$f":"'FR-16(7)(v)-1 Functional'!D412","v":"A315"},null,{"$f":"'FR-16(7)(v)-6 TRANS Classified'!G412","v":0},{"$f":"F412-SUM(H412:Q412)","v":0},{"$f":"ROUND(F412*VLOOKUP(D412,ALLOCTABLE_Trans_Demand,$H$10,FALSE),0)","v":0},{"$f":"ROUND(F412*VLOOKUP(D412,ALLOCTABLE_Trans_Demand,$I$10,FALSE),0)","v":0},{"$f":"ROUND(F412*VLOOKUP(D412,ALLOCTABLE_Trans_Demand,$J$10,FALSE),0)","v":0},{"$f":"ROUND(F412*VLOOKUP(D412,ALLOCTABLE_Trans_Demand,$K$10,FALSE),0)","v":0},{"$f":"ROUND(F412*VLOOKUP(D412,ALLOCTABLE_Trans_Demand,$L$10,FALSE),0)","v":0},{"$f":"ROUND(F412*VLOOKUP(D412,ALLOCTABLE_Trans_Demand,$M$10,FALSE),0)","v":0},{"$f":"ROUND(F412*VLOOKUP(D412,ALLOCTABLE_Trans_Demand,$N$10,FALSE),0)","v":0},{"$f":"ROUND(F412*VLOOKUP(D412,ALLOCTABLE_Trans_Demand,$O$10,FALSE),0)","v":0},{"$f":"ROUND(F412*VLOOKUP(D412,ALLOCTABLE_Trans_Demand,$P$10,FALSE),0)","v":0},{"$f":"ROUND(F412*VLOOKUP(D412,ALLOCTABLE_Trans_Demand,$Q$10,FALSE),0)","v":0},{"$f":"SUM(G412:Q412)","v":0},{"$f":"F412-R412","v":0}]
[24,null,{"$f":"'FR-16(7)(v)-1 Functional'!C413","v":"RESERVED FOR FUTURE USE"},{"$f":"'FR-16(7)(v)-1 Functional'!D413","v":"D249"},null,{"$f":"'FR-16(7)(v)-6 TRANS Classified'!G413","v":0},{"$f":"F413-SUM(H413:Q413)","v":0},{"$f":"ROUND(F413*VLOOKUP(D413,ALLOCTABLE_Trans_Demand,$H$10,FALSE),0)","v":0},{"$f":"ROUND(F413*VLOOKUP(D413,ALLOCTABLE_Trans_Demand,$I$10,FALSE),0)","v":0},{"$f":"ROUND(F413*VLOOKUP(D413,ALLOCTABLE_Trans_Demand,$J$10,FALSE),0)","v":0},{"$f":"ROUND(F413*VLOOKUP(D413,ALLOCTABLE_Trans_Demand,$K$10,FALSE),0)","v":0},{"$f":"ROUND(F413*VLOOKUP(D413,ALLOCTABLE_Trans_Demand,$L$10,FALSE),0)","v":0},{"$f":"ROUND(F413*VLOOKUP(D413,ALLOCTABLE_Trans_Demand,$M$10,FALSE),0)","v":0},{"$f":"ROUND(F413*VLOOKUP(D413,ALLOCTABLE_Trans_Demand,$N$10,FALSE),0)","v":0},{"$f":"ROUND(F413*VLOOKUP(D413,ALLOCTABLE_Trans_Demand,$O$10,FALSE),0)","v":0},{"$f":"ROUND(F413*VLOOKUP(D413,ALLOCTABLE_Trans_Demand,$P$10,FALSE),0)","v":0},{"$f":"ROUND(F413*VLOOKUP(D413,ALLOCTABLE_Trans_Demand,$Q$10,FALSE),0)","v":0},{"$f":"SUM(G413:Q413)","v":0},{"$f":"F413-R413","v":0}]
[25,null,{"$f":"'FR-16(7)(v)-1 Functional'!C414","v":"  TOTAL MISC WORK CAPITAL"},null,null,{"$f":"SUM(F410:F413)","v":0},{"$f":"SUM(G410:G413)","v":0},{"$f":"SUM(H410:H413)","v":0},{"$f":"SUM(I410:I413)","v":0},{"$f":"SUM(J410:J413)","v":0},0,0,0,0,0,0,{"$f":"SUM(Q410:Q413)","v":0},{"$f":"SUM(R410:R413)","v":0},{"$f":"SUM(S410:S413)","v":0}]
[26]
[27,"TOTAL WORKING CAPITAL",null,null,null,{"$f":"F399+F405+F408+F414","v":743573},{"$f":"G399+G405+G408+G414","v":335189},{"$f":"H399+H405+H408+H414","v":201241},{"$f":"I399+I405+I408+I414","v":966},{"$f":"J399+J405+J408+J414","v":3815},52,100337,66334,3205,31431,922,{"$f":"Q399+Q405+Q408+Q414","v":81},{"$f":"R399+R405+R408+R414","v":743573},{"$f":"S399+S405+S408+S414","v":0}]
[28,"PRELIMINARY SUMMARY"]
[29,null,{"$f":"'FR-16(7)(v)-1 Functional'!C418","v":"TOTAL ACCUMULATED DEFERRED INCOME TAXES"},null,null,{"$f":"-F324","v":-14276775},{"$f":"-G324","v":-6435689},{"$f":"-H324","v":-3863867},{"$f":"-I324","v":-18558},{"$f":"-J324","v":-73239},-998,-1926508,-1273631,-61533,-603479,-17702,{"$f":"-Q324","v":-1571},{"$f":"-R324","v":-14276775},{"$f":"-S324","v":0}]
[30,null,{"$f":"'FR-16(7)(v)-1 Functional'!C419","v":"TOTAL OTHER ACCUMULATED DEFERRED INCOME TAXES"},null,null,{"$f":"F377","v":969478},{"$f":"G377","v":437022},{"$f":"H377","v":262381},{"$f":"I377","v":1260},{"$f":"J377","v":4973},68,130820,86488,4178,40980,1202,{"$f":"Q377","v":106},{"$f":"R377","v":969478},{"$f":"S377","v":0}]
[31,null,{"$f":"'FR-16(7)(v)-1 Functional'!C420","v":"TOTAL WORKING CAPITAL"},null,null,{"$f":"F416","v":743573},{"$f":"G416","v":335189},{"$f":"H416","v":201241},{"$f":"I416","v":966},{"$f":"J416","v":3815},52,100337,66334,3205,31431,922,{"$f":"Q416","v":81},{"$f":"R416","v":743573},{"$f":"S416","v":0}]
[32,null,{"$f":"'FR-16(7)(v)-1 Functional'!C421","v":"  TOTAL RATE BASE ADJUSTMENTS"},null,null,{"$f":"SUM(F417:F420)","v":-12563724},{"$f":"SUM(G417:G420)","v":-5663478},{"$f":"SUM(H417:H420)","v":-3400245},{"$f":"SUM(I417:I420)","v":-16332},{"$f":"SUM(J417:J420)","v":-64451},-878,-1695351,-1120809,-54150,-531068,-15578,{"$f":"SUM(Q417:Q420)","v":-1384},{"$f":"SUM(R417:R420)","v":-12563724},{"$f":"SUM(S417:S420)","v":0}]
[33]
[34,"RATE BASE CALCULATION"]
[35,null,{"$f":"'FR-16(7)(v)-1 Functional'!C424","v":"NET ELECTRIC PLANT IN SERVICE"},null,null,{"$f":"F277","v":54600422},{"$f":"G277","v":24612782},{"$f":"H277","v":14777057},{"$f":"I277","v":70979},{"$f":"J277","v":280100},3823,7367780,4870903,235328,2307959,67705,{"$f":"Q277","v":6006},{"$f":"R277","v":54600422},{"$f":"S277","v":0}]
[36,null,{"$f":"'FR-16(7)(v)-1 Functional'!C425","v":"TOTAL RATE BASE ADJUSTMENTS"},null,null,{"$f":"F421","v":-12563724},{"$f":"G421","v":-5663478},{"$f":"H421","v":-3400245},{"$f":"I421","v":-16332},{"$f":"J421","v":-64451},-878,-1695351,-1120809,-54150,-531068,-15578,{"$f":"Q421","v":-1384},{"$f":"R421","v":-12563724},{"$f":"S421","v":0}]
[37,null,{"$f":"'FR-16(7)(v)-1 Functional'!C426","v":"  TOTAL RATE BASE"},null,null,{"$f":"SUM(F423:F425)","v":42036698},{"$f":"SUM(G423:G425)","v":18949304},{"$f":"SUM(H423:H425)","v":11376812},{"$f":"SUM(I423:I425)","v":54647},{"$f":"SUM(J423:J425)","v":215649},2945,5672429,3750094,181178,1776891,52127,{"$f":"SUM(Q423:Q425)","v":4622},{"$f":"SUM(R423:R425)","v":42036698},{"$f":"SUM(S423:S425)","v":0}]
[38]
[39,"TOTAL RATE OF RETURN ALLOWABLE",null,null,null,{"$f":"$F$811","v":6.7100000000000007E-2},{"$f":"$F$811","v":6.7100000000000007E-2},6.7100000000000007E-2,6.7100000000000007E-2,6.7100000000000007E-2,6.7100000000000007E-2,6.7100000000000007E-2,6.7100000000000007E-2,6.7100000000000007E-2,6.7100000000000007E-2,6.7100000000000007E-2,6.7100000000000007E-2,{"$f":"F811","v":6.7100000000000007E-2}]
[40,"RETURN ON RATE BASE",null,null,null,{"$f":"ROUND(F428*F426,0)","v":2820662},{"$f":"F429-SUM(H429:Q429)","v":1271498},{"$f":"ROUND(H426*H428,0)","v":763384},{"$f":"ROUND(I426*I428,0)","v":3667},{"$f":"ROUND(J426*J428,0)","v":14470},198,380620,251631,12157,119229,3498,{"$f":"ROUND(Q426*Q428,0)","v":310},{"$f":"SUM(G429:Q429)","v":2820662},{"$f":"F429-R429","v":0}]
[41]
[42,{"$f":"'FR-16(7)(v)-1 Functional'!B431","v":"ELECTRIC RATE BASE"},null,{"$f":"'FR-16(7)(v)-1 Functional'!D431","v":"RB99"},null,{"$f":"'FR-16(7)(v)-6 TRANS Classified'!G431","v":42035700},{"$f":"F431-SUM(H431:Q431)","v":18948854},{"$f":"ROUND(F431*VLOOKUP(D431,ALLOCTABLE_Trans_Demand,$H$10,FALSE),0)","v":11376542},{"$f":"ROUND(F431*VLOOKUP(D431,ALLOCTABLE_Trans_Demand,$I$10,FALSE),0)","v":54646},{"$f":"ROUND(F431*VLOOKUP(D431,ALLOCTABLE_Trans_Demand,$J$10,FALSE),0)","v":215643},{"$f":"ROUND(F431*VLOOKUP(D431,ALLOCTABLE_Trans_Demand,$K$10,FALSE),0)","v":2942},{"$f":"ROUND(F431*VLOOKUP(D431,ALLOCTABLE_Trans_Demand,$L$10,FALSE),0)","v":5672297},{"$f":"ROUND(F431*VLOOKUP(D431,ALLOCTABLE_Trans_Demand,$M$10,FALSE),0)","v":3750005},{"$f":"ROUND(F431*VLOOKUP(D431,ALLOCTABLE_Trans_Demand,$N$10,FALSE),0)","v":181174},{"$f":"ROUND(F431*VLOOKUP(D431,ALLOCTABLE_Trans_Demand,$O$10,FALSE),0)","v":1776849},{"$f":"ROUND(F431*VLOOKUP(D431,ALLOCTABLE_Trans_Demand,$P$10,FALSE),0)","v":52124},{"$f":"ROUND(F431*VLOOKUP(D431,ALLOCTABLE_Trans_Demand,$Q$10,FALSE),0)","v":4624},{"$f":"SUM(G431:Q431)","v":42035700},{"$f":"F431-R431","v":0}]
[43,{"$f":"'FR-16(7)(v)-1 Functional'!B432","v":"TOTAL RATE OF RETURN ALLOWABLE"},null,null,null,{"$f":"RofR","v":6.7110000000000003E-2},6.7110000000000003E-2,6.7110000000000003E-2,6.7110000000000003E-2,6.7110000000000003E-2,6.7110000000000003E-2,6.7110000000000003E-2,6.7110000000000003E-2,6.7110000000000003E-2,6.7110000000000003E-2,6.7110000000000003E-2,6.7110000000000003E-2,6.7110000000000003E-2]
[44,{"$f":"'FR-16(7)(v)-1 Functional'!B433","v":"RETURN ON RATE BASE"},null,null,null,{"$f":"ROUND(F431*F432,0)","v":2821016},{"$f":"F433-SUM(H433:Q433)","v":1271658},{"$f":"ROUND(H431*H432,0)","v":763480},3667,14472,197,380668,251663,12159,119244,3498,310,2821016,{"$f":"F429-R429","v":0}]
[]
[{"$f":"co_name","v":"DUKE ENERGY KENTUCKY, INC."},null,null,null,null,null,null,null,null,null,null,null,null,null,null,null,null,{"$f":"R1","v":"FR-16(7)(v)-7"}]
[{"$f":"$A$2","v":"TRANSMISSION DEMAND ALLOCATED - ELECTRIC COST OF SERVICE"},null,null,null,null,null,null,null,null,null,null,null,null,null,null,null,null,{"$f":"R2","v":"WITNESS RESPONSIBLE:"}]
[{"$f":"case_name","v":"CASE NO: 2019-00271"},null,null,null,null,null,null,null,null,null,null,null,null,null,null,null,null,{"$f":"Witness","v":"JAMES E. ZIOLKOWSKI"}]
[{"$f":"data_filing","v":"DATA: 12 MONTHS ACTUAL  & 0 MONTHS ESTIMATED"},null,null,null,null,null,null,null,null,null,null,null,null,null,null,null,null,{"$f":"\"PAGE \"&Pages-10&\" OF \"&Pages","v":"PAGE 8 OF 18"}]
[{"$f":"type","v":"TYPE OF FILING: \"X\" ORIGINAL   UPDATED    REVISED  "}]
[]
[null,null,null,null,null,{"$f":"F$7","v":"TOTAL"},null,{"$f":"H$7","v":"DS"},{"$f":"I$7","v":"GSFL"},{"$f":"J$7","v":"EH"},{"$f":"K$7","v":"SP"},"DT SEC","DT PRI","DP","TT",null,"OTHER"]
["LINE",null,null,null,null,{"$f":"F$8","v":"TRANSMISSION"},{"$f":"G$8","v":"RS"},{"$f":"H$8","v":"SECONDARY"},{"$f":"I$8","v":"SECONDARY"},{"$f":"J$8","v":"SECONDARY"},{"$f":"K$8","v":"SECONDARY"},"SECONDARY","PRIMARY","PRIMARY","TRANSMISSION","LT","WATER",{"$f":"R8","v":"TOTAL"},"ALL"]
["NO.","O&M EXPENSES",null,"ALLO",null,{"$f":"F$9","v":"DEMAND"},{"$f":"G$9","v":"RESIDENTIAL"},{"$f":"H$9","v":"DISTRIBUTION"},{"$f":"I$9","v":"DISTRIBUTION"},{"$f":"J$9","v":"DISTRIBUTION"},{"$f":"K$9","v":"DISTRIBUTION"},"DISTRIBUTION","DISTRIBUTION","DISTRIBUTION","TIME OF DAY","LIGHTING","PUMPING",{"$f":"R9","v":"AT ISSUE"},"OTHER"]
[null,null,"Schedule 6",null,null,null,{"$f":"G$10","v":3},{"$f":"H$10","v":4},{"$f":"I$10","v":5},{"$f":"J$10","v":6},{"$f":"K$10","v":7},8,9,10,11,12,13,null," "]
[1,"PRODUCTION O&M"]
[2,{"$f":"'FR-16(7)(v)-1 Functional'!B446","v":"ENERGY RELATED PRODUCTION O&M"}]
[3,null,{"$f":"'FR-16(7)(v)-1 Functional'!C447","v":"FUEL"},{"$f":"'FR-16(7)(v)-1 Functional'!D447","v":"K302"},null,{"$f":"'FR-16(7)(v)-6 TRANS Classified'!G447","v":0},{"$f":"F447-SUM(H447:Q447)","v":0},{"$f":"ROUND(F447*VLOOKUP(D447,ALLOCTABLE_Trans_Demand,$H$10,FALSE),0)","v":0},{"$f":"ROUND(F447*VLOOKUP(D447,ALLOCTABLE_Trans_Demand,$I$10,FALSE),0)","v":0},{"$f":"ROUND(F447*VLOOKUP(D447,ALLOCTABLE_Trans_Demand,$J$10,FALSE),0)","v":0},{"$f":"ROUND(F447*VLOOKUP(D447,ALLOCTABLE_Trans_Demand,$K$10,FALSE),0)","v":0},{"$f":"ROUND(F447*VLOOKUP(D447,ALLOCTABLE_Trans_Demand,$L$10,FALSE),0)","v":0},{"$f":"ROUND(F447*VLOOKUP(D447,ALLOCTABLE_Trans_Demand,$M$10,FALSE),0)","v":0},{"$f":"ROUND(F447*VLOOKUP(D447,ALLOCTABLE_Trans_Demand,$N$10,FALSE),0)","v":0},{"$f":"ROUND(F447*VLOOKUP(D447,ALLOCTABLE_Trans_Demand,$O$10,FALSE),0)","v":0},{"$f":"ROUND(F447*VLOOKUP(D447,ALLOCTABLE_Trans_Demand,$P$10,FALSE),0)","v":0},{"$f":"ROUND(F447*VLOOKUP(D447,ALLOCTABLE_Trans_Demand,$Q$10,FALSE),0)","v":0},{"$f":"SUM(G447:Q447)","v":0},{"$f":"F447-R447","v":0}]
[4,null,{"$f":"'FR-16(7)(v)-1 Functional'!C448","v":"FUEL AND PURCHASED POWER ADJUSTMENT"},{"$f":"'FR-16(7)(v)-1 Functional'!D448","v":"K302"},null,{"$f":"'FR-16(7)(v)-6 TRANS Classified'!G448","v":0},0,0,0,0,0,0,0,0,0,0,0,0,0]
[5,null,{"$f":"'FR-16(7)(v)-1 Functional'!C449","v":"EMISSION ALLOWANCES"},{"$f":"'FR-16(7)(v)-1 Functional'!D449","v":"K301"},null,{"$f":"'FR-16(7)(v)-6 TRANS Classified'!G449","v":0},0,0,0,0,0,0,0,0,0,0,0,0,0]
[6,null,{"$f":"'FR-16(7)(v)-1 Functional'!C450","v":"ELIMINATE EMISSION ALLOW & OTHER VAR COST"},{"$f":"'FR-16(7)(v)-1 Functional'!D450","v":"K301"},null,{"$f":"'FR-16(7)(v)-6 TRANS Classified'!G450","v":0},0,0,0,0,0,0,0,0,0,0,0,0,0]
[7,null,{"$f":"'FR-16(7)(v)-1 Functional'!C451","v":"OTHER PRODUCTION EXPENSE - MAINTENANCE"},{"$f":"'FR-16(7)(v)-1 Functional'!D451","v":"K301"},null,{"$f":"'FR-16(7)(v)-6 TRANS Classified'!G451","v":0},0,0,0,0,0,0,0,0,0,0,0,0,0]
[8,null,{"$f":"'FR-16(7)(v)-1 Functional'!C452","v":"MISO TRANSMISSION CHARGES - ACCT 555"},{"$f":"'FR-16(7)(v)-1 Functional'!D452","v":"K301"},null,{"$f":"'FR-16(7)(v)-6 TRANS Classified'!G452","v":0},0,0,0,0,0,0,0,0,0,0,0,0,0]
[9,null,"  TOTAL ENERGY RELATED",null,null,{"$f":"SUM(F447:F452)","v":0},{"$f":"SUM(G447:G452)","v":0},{"$f":"SUM(H447:H452)","v":0},{"$f":"SUM(I447:I452)","v":0},{"$f":"SUM(J447:J452)","v":0},0,0,0,0,0,0,{"$f":"SUM(Q447:Q452)","v":0},{"$f":"SUM(R447:R452)","v":0},{"$f":"SUM(S447:S452)","v":0}]
[10]
[11,"DEMAND RELATED & OTHER PROD O&M"]
[12,null,{"$f":"'FR-16(7)(v)-1 Functional'!C456","v":"OTHER PRODUCTION EXPENSES - OPERATIONS"},{"$f":"'FR-16(7)(v)-1 Functional'!D456","v":"K201"},null,{"$f":"'FR-16(7)(v)-6 TRANS Classified'!G456","v":0},{"$f":"F456-SUM(H456:Q456)","v":0},{"$f":"ROUND(F456*VLOOKUP(D456,ALLOCTABLE_Trans_Demand,$H$10,FALSE),0)","v":0},{"$f":"ROUND(F456*VLOOKUP(D456,ALLOCTABLE_Trans_Demand,$I$10,FALSE),0)","v":0},{"$f":"ROUND(F456*VLOOKUP(D456,ALLOCTABLE_Trans_Demand,$J$10,FALSE),0)","v":0},{"$f":"ROUND(F456*VLOOKUP(D456,ALLOCTABLE_Trans_Demand,$K$10,FALSE),0)","v":0},{"$f":"ROUND(F456*VLOOKUP(D456,ALLOCTABLE_Trans_Demand,$L$10,FALSE),0)","v":0},{"$f":"ROUND(F456*VLOOKUP(D456,ALLOCTABLE_Trans_Demand,$M$10,FALSE),0)","v":0},{"$f":"ROUND(F456*VLOOKUP(D456,ALLOCTABLE_Trans_Demand,$N$10,FALSE),0)","v":0},{"$f":"ROUND(F456*VLOOKUP(D456,ALLOCTABLE_Trans_Demand,$O$10,FALSE),0)","v":0},{"$f":"ROUND(F456*VLOOKUP(D456,ALLOCTABLE_Trans_Demand,$P$10,FALSE),0)","v":0},{"$f":"ROUND(F456*VLOOKUP(D456,ALLOCTABLE_Trans_Demand,$Q$10,FALSE),0)","v":0},{"$f":"SUM(G456:Q456)","v":0},{"$f":"F456-R456","v":0}]
[13,null,"  TOTAL DEMAND REL & OTH PROD O&M ",null,null,{"$f":"SUM(F455:F456)","v":0},{"$f":"SUM(G455:G456)","v":0},{"$f":"SUM(H455:H456)","v":0},{"$f":"SUM(I455:I456)","v":0},{"$f":"SUM(J455:J456)","v":0},0,0,0,0,0,0,{"$f":"SUM(Q455:Q456)","v":0},{"$f":"SUM(R455:R456)","v":0},{"$f":"SUM(S455:S456)","v":0}]
[14]
[15,"TOTAL PRODUCTION O&M",null,null," ",{"$f":"F457+F453","v":0},{"$f":"G457+G453","v":0},0,0,{"$f":"J457+J453","v":0},0,0,0,0,0,0,0,0,0]
[16]
[17,"TRANSMISSION O & M"]
[18,null,{"$f":"'FR-16(7)(v)-1 Functional'!C462","v":"TRANSFORMER LEASE PAYMENTS"},{"$f":"'FR-16(7)(v)-1 Functional'!D462","v":"K202"},null,{"$f":"'FR-16(7)(v)-6 TRANS Classified'!G462","v":0},{"$f":"F462-SUM(H462:Q462)","v":0},{"$f":"ROUND(F462*VLOOKUP(D462,ALLOCTABLE_Trans_Demand,$H$10,FALSE),0)","v":0},{"$f":"ROUND(F462*VLOOKUP(D462,ALLOCTABLE_Trans_Demand,$I$10,FALSE),0)","v":0},{"$f":"ROUND(F462*VLOOKUP(D462,ALLOCTABLE_Trans_Demand,$J$10,FALSE),0)","v":0},{"$f":"ROUND(F462*VLOOKUP(D462,ALLOCTABLE_Trans_Demand,$K$10,FALSE),0)","v":0},{"$f":"ROUND(F462*VLOOKUP(D462,ALLOCTABLE_Trans_Demand,$L$10,FALSE),0)","v":0},{"$f":"ROUND(F462*VLOOKUP(D462,ALLOCTABLE_Trans_Demand,$M$10,FALSE),0)","v":0},{"$f":"ROUND(F462*VLOOKUP(D462,ALLOCTABLE_Trans_Demand,$N$10,FALSE),0)","v":0},{"$f":"ROUND(F462*VLOOKUP(D462,ALLOCTABLE_Trans_Demand,$O$10,FALSE),0)","v":0},{"$f":"ROUND(F462*VLOOKUP(D462,ALLOCTABLE_Trans_Demand,$P$10,FALSE),0)","v":0},{"$f":"ROUND(F462*VLOOKUP(D462,ALLOCTABLE_Trans_Demand,$Q$10,FALSE),0)","v":0},{"$f":"SUM(G462:Q462)","v":0},{"$f":"F462-R462","v":0}]
[19,null,{"$f":"'FR-16(7)(v)-1 Functional'!C463","v":"OTHER TRANSMISSION"},{"$f":"'FR-16(7)(v)-1 Functional'!D463","v":"K202"},null,{"$f":"'FR-16(7)(v)-6 TRANS Classified'!G463","v":23151925},{"$f":"F463-SUM(H463:Q463)","v":10436424},{"$f":"ROUND(F463*VLOOKUP(D463,ALLOCTABLE_Trans_Demand,$H$10,FALSE),0)","v":6265837},{"$f":"ROUND(F463*VLOOKUP(D463,ALLOCTABLE_Trans_Demand,$I$10,FALSE),0)","v":30098},{"$f":"ROUND(F463*VLOOKUP(D463,ALLOCTABLE_Trans_Demand,$J$10,FALSE),0)","v":118769},{"$f":"ROUND(F463*VLOOKUP(D463,ALLOCTABLE_Trans_Demand,$K$10,FALSE),0)","v":1621},{"$f":"ROUND(F463*VLOOKUP(D463,ALLOCTABLE_Trans_Demand,$L$10,FALSE),0)","v":3124121},{"$f":"ROUND(F463*VLOOKUP(D463,ALLOCTABLE_Trans_Demand,$M$10,FALSE),0)","v":2065383},{"$f":"ROUND(F463*VLOOKUP(D463,ALLOCTABLE_Trans_Demand,$N$10,FALSE),0)","v":99785},{"$f":"ROUND(F463*VLOOKUP(D463,ALLOCTABLE_Trans_Demand,$O$10,FALSE),0)","v":978632},{"$f":"ROUND(F463*VLOOKUP(D463,ALLOCTABLE_Trans_Demand,$P$10,FALSE),0)","v":28708},{"$f":"ROUND(F463*VLOOKUP(D463,ALLOCTABLE_Trans_Demand,$Q$10,FALSE),0)","v":2547},{"$f":"SUM(G463:Q463)","v":23151925},{"$f":"F463-R463","v":0}]
[20,null,{"$f":"'FR-16(7)(v)-1 Functional'!C464","v":"MISCELLANEOUS ADJUSTMENTS"},{"$f":"'FR-16(7)(v)-1 Functional'!D464","v":"K202"},null,{"$f":"'FR-16(7)(v)-6 TRANS Classified'!G464","v":0},{"$f":"F464-SUM(H464:Q464)","v":0},{"$f":"ROUND(F464*VLOOKUP(D464,ALLOCTABLE_Trans_Demand,$H$10,FALSE),0)","v":0},{"$f":"ROUND(F464*VLOOKUP(D464,ALLOCTABLE_Trans_Demand,$I$10,FALSE),0)","v":0},{"$f":"ROUND(F464*VLOOKUP(D464,ALLOCTABLE_Trans_Demand,$J$10,FALSE),0)","v":0},{"$f":"ROUND(F464*VLOOKUP(D464,ALLOCTABLE_Trans_Demand,$K$10,FALSE),0)","v":0},{"$f":"ROUND(F464*VLOOKUP(D464,ALLOCTABLE_Trans_Demand,$L$10,FALSE),0)","v":0},{"$f":"ROUND(F464*VLOOKUP(D464,ALLOCTABLE_Trans_Demand,$M$10,FALSE),0)","v":0},{"$f":"ROUND(F464*VLOOKUP(D464,ALLOCTABLE_Trans_Demand,$N$10,FALSE),0)","v":0},{"$f":"ROUND(F464*VLOOKUP(D464,ALLOCTABLE_Trans_Demand,$O$10,FALSE),0)","v":0},{"$f":"ROUND(F464*VLOOKUP(D464,ALLOCTABLE_Trans_Demand,$P$10,FALSE),0)","v":0},{"$f":"ROUND(F464*VLOOKUP(D464,ALLOCTABLE_Trans_Demand,$Q$10,FALSE),0)","v":0},{"$f":"SUM(G464:Q464)","v":0},{"$f":"F464-R464","v":0}]
[21,null,{"$f":"'FR-16(7)(v)-1 Functional'!C465","v":"NETWORK SERVICE RATES ADJUSTMENT"},{"$f":"'FR-16(7)(v)-1 Functional'!D465","v":"K202"},null,{"$f":"'FR-16(7)(v)-6 TRANS Classified'!G465","v":0},{"$f":"F465-SUM(H465:Q465)","v":0},{"$f":"ROUND(F465*VLOOKUP(D465,ALLOCTABLE_Trans_Demand,$H$10,FALSE),0)","v":0},{"$f":"ROUND(F465*VLOOKUP(D465,ALLOCTABLE_Trans_Demand,$I$10,FALSE),0)","v":0},{"$f":"ROUND(F465*VLOOKUP(D465,ALLOCTABLE_Trans_Demand,$J$10,FALSE),0)","v":0},{"$f":"ROUND(F465*VLOOKUP(D465,ALLOCTABLE_Trans_Demand,$K$10,FALSE),0)","v":0},{"$f":"ROUND(F465*VLOOKUP(D465,ALLOCTABLE_Trans_Demand,$L$10,FALSE),0)","v":0},{"$f":"ROUND(F465*VLOOKUP(D465,ALLOCTABLE_Trans_Demand,$M$10,FALSE),0)","v":0},{"$f":"ROUND(F465*VLOOKUP(D465,ALLOCTABLE_Trans_Demand,$N$10,FALSE),0)","v":0},{"$f":"ROUND(F465*VLOOKUP(D465,ALLOCTABLE_Trans_Demand,$O$10,FALSE),0)","v":0},{"$f":"ROUND(F465*VLOOKUP(D465,ALLOCTABLE_Trans_Demand,$P$10,FALSE),0)","v":0},{"$f":"ROUND(F465*VLOOKUP(D465,ALLOCTABLE_Trans_Demand,$Q$10,FALSE),0)","v":0},{"$f":"SUM(G465:Q465)","v":0},{"$f":"F465-R465","v":0}]
[22,null,{"$f":"'FR-16(7)(v)-1 Functional'!C466","v":"  TOTAL TRANSMISSION O & M"},null,null,{"$f":"SUM(F462:F465)","v":23151925},{"$f":"SUM(G462:G465)","v":10436424},6265837,30098,{"$f":"SUM(J462:J465)","v":118769},1621,3124121,2065383,99785,978632,28708,2547,23151925,0]
[23]
[24,"REGIONAL MARKET O&M"]
[25,null,{"$f":"'FR-16(7)(v)-1 Functional'!C469","v":"MARKET FACILITATION - MONITORING & COMPLIANCE"},{"$f":"'FR-16(7)(v)-1 Functional'!D469","v":"K202"},null,{"$f":"'FR-16(7)(v)-6 TRANS Classified'!G469","v":1826852},{"$f":"F469-SUM(H469:Q469)","v":823509},{"$f":"ROUND(F469*VLOOKUP(D469,ALLOCTABLE_Trans_Demand,$H$10,FALSE),0)","v":494419},{"$f":"ROUND(F469*VLOOKUP(D469,ALLOCTABLE_Trans_Demand,$I$10,FALSE),0)","v":2375},{"$f":"ROUND(F469*VLOOKUP(D469,ALLOCTABLE_Trans_Demand,$J$10,FALSE),0)","v":9372},{"$f":"ROUND(F469*VLOOKUP(D469,ALLOCTABLE_Trans_Demand,$K$10,FALSE),0)","v":128},{"$f":"ROUND(F469*VLOOKUP(D469,ALLOCTABLE_Trans_Demand,$L$10,FALSE),0)","v":246515},{"$f":"ROUND(F469*VLOOKUP(D469,ALLOCTABLE_Trans_Demand,$M$10,FALSE),0)","v":162973},{"$f":"ROUND(F469*VLOOKUP(D469,ALLOCTABLE_Trans_Demand,$N$10,FALSE),0)","v":7874},{"$f":"ROUND(F469*VLOOKUP(D469,ALLOCTABLE_Trans_Demand,$O$10,FALSE),0)","v":77221},{"$f":"ROUND(F469*VLOOKUP(D469,ALLOCTABLE_Trans_Demand,$P$10,FALSE),0)","v":2265},{"$f":"ROUND(F469*VLOOKUP(D469,ALLOCTABLE_Trans_Demand,$Q$10,FALSE),0)","v":201},{"$f":"SUM(G469:Q469)","v":1826852},{"$f":"F469-R469","v":0}]
[26,null,"TOTAL REGIONAL MARKET O&M",null,null,{"$f":"SUM(F468:F469)","v":1826852},{"$f":"SUM(G468:G469)","v":823509},{"$f":"SUM(H468:H469)","v":494419},{"$f":"SUM(I468:I469)","v":2375},{"$f":"SUM(J468:J469)","v":9372},128,246515,162973,7874,77221,2265,{"$f":"SUM(Q468:Q469)","v":201},{"$f":"SUM(R468:R469)","v":1826852},{"$f":"SUM(S468:S469)","v":0}]
[27]
[28,"DISTRIBUTION O & M"]
[29,null,{"$f":"'FR-16(7)(v)-1 Functional'!C473","v":"SUBSTATIONS"},{"$f":"'FR-16(7)(v)-1 Functional'!D473","v":"K201"},null,{"$f":"'FR-16(7)(v)-6 TRANS Classified'!G473","v":0},{"$f":"F473-SUM(H473:Q473)","v":0},{"$f":"ROUND(F473*VLOOKUP(D473,ALLOCTABLE_Trans_Demand,$H$10,FALSE),0)","v":0},{"$f":"ROUND(F473*VLOOKUP(D473,ALLOCTABLE_Trans_Demand,$I$10,FALSE),0)","v":0},{"$f":"ROUND(F473*VLOOKUP(D473,ALLOCTABLE_Trans_Demand,$J$10,FALSE),0)","v":0},{"$f":"ROUND(F473*VLOOKUP(D473,ALLOCTABLE_Trans_Demand,$K$10,FALSE),0)","v":0},{"$f":"ROUND(F473*VLOOKUP(D473,ALLOCTABLE_Trans_Demand,$L$10,FALSE),0)","v":0},{"$f":"ROUND(F473*VLOOKUP(D473,ALLOCTABLE_Trans_Demand,$M$10,FALSE),0)","v":0},{"$f":"ROUND(F473*VLOOKUP(D473,ALLOCTABLE_Trans_Demand,$N$10,FALSE),0)","v":0},{"$f":"ROUND(F473*VLOOKUP(D473,ALLOCTABLE_Trans_Demand,$O$10,FALSE),0)","v":0},{"$f":"ROUND(F473*VLOOKUP(D473,ALLOCTABLE_Trans_Demand,$P$10,FALSE),0)","v":0},{"$f":"ROUND(F473*VLOOKUP(D473,ALLOCTABLE_Trans_Demand,$Q$10,FALSE),0)","v":0},{"$f":"SUM(G473:Q473)","v":0},{"$f":"F473-R473","v":0}]
[30,null,{"$f":"'FR-16(7)(v)-1 Functional'!C474","v":"POLES, TOWERS & FIXTURES"},{"$f":"'FR-16(7)(v)-1 Functional'!D474","v":"PL49"},null,{"$f":"'FR-16(7)(v)-6 TRANS Classified'!G474","v":0},0,0,0,0,0,0,0,0,0,0,0,0,0]
[31,null,{"$f":"'FR-16(7)(v)-1 Functional'!C475","v":"OVERHEAD LINES - PRIMARY / DEMAND"},{"$f":"'FR-16(7)(v)-1 Functional'!D475","v":"K205"},null,{"$f":"'FR-16(7)(v)-6 TRANS Classified'!G475","v":0},0,0,0,0,0,0,0,0,0,0,0,0,0]
[32,null,{"$f":"'FR-16(7)(v)-1 Functional'!C476","v":"OVERHEAD LINES - PRIMARY / CUSTOMER"},{"$f":"'FR-16(7)(v)-1 Functional'!D476","v":"K405"},null,{"$f":"'FR-16(7)(v)-6 TRANS Classified'!G476","v":0},0,0,0,0,0,0,0,0,0,0,0,0,0]
[33,null,{"$f":"'FR-16(7)(v)-1 Functional'!C477","v":"OVERHEAD LINES - SECONDARY / DEMAND"},{"$f":"'FR-16(7)(v)-1 Functional'!D477","v":"K206"},null,{"$f":"'FR-16(7)(v)-6 TRANS Classified'!G477","v":0},0,0,0,0,0,0,0,0,0,0,0,0,0]
[34,null,{"$f":"'FR-16(7)(v)-1 Functional'!C478","v":"OVERHEAD LINES - SECONDARY / CUSTOMER"},{"$f":"'FR-16(7)(v)-1 Functional'!D478","v":"K405"},null,{"$f":"'FR-16(7)(v)-6 TRANS Classified'!G478","v":0},0,0,0,0,0,0,0,0,0,0,0,0,0]
[35,null,{"$f":"'FR-16(7)(v)-1 Functional'!C479","v":"UNDERGROUND LINES - PRIMARY / DEMAND"},{"$f":"'FR-16(7)(v)-1 Functional'!D479","v":"K205"},null,{"$f":"'FR-16(7)(v)-6 TRANS Classified'!G479","v":0},0,0,0,0,0,0,0,0,0,0,0,0,0]
[36,null,{"$f":"'FR-16(7)(v)-1 Functional'!C480","v":"UNDERGROUND LINES - PRIMARY / CUSTOMER"},{"$f":"'FR-16(7)(v)-1 Functional'!D480","v":"K405"},null,{"$f":"'FR-16(7)(v)-6 TRANS Classified'!G480","v":0},0,0,0,0,0,0,0,0,0,0,0,0,0]
[37,null,{"$f":"'FR-16(7)(v)-1 Functional'!C481","v":"UNDERGROUND LINES - SECONDARY / DEMAND"},{"$f":"'FR-16(7)(v)-1 Functional'!D481","v":"K206"},null,{"$f":"'FR-16(7)(v)-6 TRANS Classified'!G481","v":0},0,0,0,0,0,0,0,0,0,0,0,0,0]
[38,null,{"$f":"'FR-16(7)(v)-1 Functional'!C482","v":"UNDERGROUND LINES - SECONDARY / CUSTOMER"},{"$f":"'FR-16(7)(v)-1 Functional'!D482","v":"K405"},null,{"$f":"'FR-16(7)(v)-6 TRANS Classified'!G482","v":0},0,0,0,0,0,0,0,0,0,0,0,0,0]
[39,null,{"$f":"'FR-16(7)(v)-1 Functional'!C483","v":"TRANSFORMERS DEMAND RELATED"},{"$f":"'FR-16(7)(v)-1 Functional'!D483","v":"K203"},null,{"$f":"'FR-16(7)(v)-6 TRANS Classified'!G483","v":0},0,0,0,0,0,0,0,0,0,0,0,0,0]
[40,null,{"$f":"'FR-16(7)(v)-1 Functional'!C484","v":"TRANSFORMERS CUSTOMER RELATED"},{"$f":"'FR-16(7)(v)-1 Functional'!D484","v":"K401"},null,{"$f":"'FR-16(7)(v)-6 TRANS Classified'!G484","v":0},0,0,0,0,0,0,0,0,0,0,0,0,0]
[41,null,{"$f":"'FR-16(7)(v)-1 Functional'!C485","v":"OTHER MAINTENANCE"},{"$f":"'FR-16(7)(v)-1 Functional'!D485","v":"K203"},null,{"$f":"'FR-16(7)(v)-6 TRANS Classified'!G485","v":0},0,0,0,0,0,0,0,0,0,0,0,0,0]
[42,null,{"$f":"'FR-16(7)(v)-1 Functional'!C486","v":"LOAD DISPATCH"},{"$f":"'FR-16(7)(v)-1 Functional'!D486","v":"K215"},null,{"$f":"'FR-16(7)(v)-6 TRANS Classified'!G486","v":0},0,0,0,0,0,0,0,0,0,0,0,0,0]
[43,null,{"$f":"'FR-16(7)(v)-1 Functional'!C487","v":"METERS"},{"$f":"'FR-16(7)(v)-1 Functional'!D487","v":"K407"},null,{"$f":"'FR-16(7)(v)-6 TRANS Classified'!G487","v":0},0,0,0,0,0,0,0,0,0,0,0,0,0]
[44,null,{"$f":"'FR-16(7)(v)-1 Functional'!C488","v":"STREET LIGHTING AND SIGNAL SYSTEMS"},{"$f":"'FR-16(7)(v)-1 Functional'!D488","v":"K401"},null,{"$f":"'FR-16(7)(v)-6 TRANS Classified'!G488","v":0},0,0,0,0,0,0,0,0,0,0,0,0,0]
[45,null,{"$f":"'FR-16(7)(v)-1 Functional'!C489","v":"OTHER OPERATIONS"},{"$f":"'FR-16(7)(v)-1 Functional'!D489","v":"K203"},null,{"$f":"'FR-16(7)(v)-6 TRANS Classified'!G489","v":0},0,0,0,0,0,0,0,0,0,0,0,0,0]
[46,null,{"$f":"'FR-16(7)(v)-1 Functional'!C490","v":"MISCELLANEOUS EXPENSES ADJUSTMENT"},{"$f":"'FR-16(7)(v)-1 Functional'!D490","v":"K203"},null,{"$f":"'FR-16(7)(v)-6 TRANS Classified'!G490","v":0},0,0,0,0,0,0,0,0,0,0,0,0,0]
[47,null,{"$f":"'FR-16(7)(v)-1 Functional'!C491","v":"AFFILIATED COMPANY RENTS ADJUSTMENT"},{"$f":"'FR-16(7)(v)-1 Functional'!D491","v":"D249"},null,{"$f":"'FR-16(7)(v)-6 TRANS Classified'!G491","v":0},0,0,0,0,0,0,0,0,0,0,0,0,0]
[48,null,{"$f":"'FR-16(7)(v)-1 Functional'!C492","v":"  TOTAL DISTRIBUTION O & M"},null," ",{"$f":"SUM(F472:F491)","v":0},{"$f":"SUM(G472:G491)","v":0},{"$f":"SUM(H472:H491)","v":0},{"$f":"SUM(I472:I491)","v":0},{"$f":"SUM(J472:J491)","v":0},0,0,0,0,0,0,{"$f":"SUM(Q472:Q491)","v":0},{"$f":"SUM(R472:R491)","v":0},{"$f":"SUM(S472:S491)","v":0}]
[49,null," "]
[50,"CUSTOMER ACCOUNTING",null,null,null," "]
[51,null,{"$f":"'FR-16(7)(v)-1 Functional'!C495","v":"CUSTOMER ACCOUNTING EXPENSE"},{"$f":"'FR-16(7)(v)-1 Functional'!D495","v":"K409"},null,{"$f":"'FR-16(7)(v)-6 TRANS Classified'!G495","v":0},{"$f":"F495-SUM(H495:Q495)","v":0},{"$f":"ROUND(F495*VLOOKUP(D495,ALLOCTABLE_Trans_Demand,$H$10,FALSE),0)","v":0},{"$f":"ROUND(F495*VLOOKUP(D495,ALLOCTABLE_Trans_Demand,$I$10,FALSE),0)","v":0},{"$f":"ROUND(F495*VLOOKUP(D495,ALLOCTABLE_Trans_Demand,$J$10,FALSE),0)","v":0},{"$f":"ROUND(F495*VLOOKUP(D495,ALLOCTABLE_Trans_Demand,$K$10,FALSE),0)","v":0},{"$f":"ROUND(F495*VLOOKUP(D495,ALLOCTABLE_Trans_Demand,$L$10,FALSE),0)","v":0},{"$f":"ROUND(F495*VLOOKUP(D495,ALLOCTABLE_Trans_Demand,$M$10,FALSE),0)","v":0},{"$f":"ROUND(F495*VLOOKUP(D495,ALLOCTABLE_Trans_Demand,$N$10,FALSE),0)","v":0},{"$f":"ROUND(F495*VLOOKUP(D495,ALLOCTABLE_Trans_Demand,$O$10,FALSE),0)","v":0},{"$f":"ROUND(F495*VLOOKUP(D495,ALLOCTABLE_Trans_Demand,$P$10,FALSE),0)","v":0},{"$f":"ROUND(F495*VLOOKUP(D495,ALLOCTABLE_Trans_Demand,$Q$10,FALSE),0)","v":0},{"$f":"SUM(G495:Q495)","v":0},{"$f":"F495-R495","v":0}]
[52,null,{"$f":"'FR-16(7)(v)-1 Functional'!C496","v":"UNCOLLECTIBLE EXP"},{"$f":"'FR-16(7)(v)-1 Functional'!D496","v":"K411"},null,{"$f":"'FR-16(7)(v)-6 TRANS Classified'!G496","v":0},0,0,0,0,0,0,0,0,0,0,0,0,0]
[53,null,{"$f":"'FR-16(7)(v)-1 Functional'!C497","v":"METER READING"},{"$f":"'FR-16(7)(v)-1 Functional'!D497","v":"K407"},null,{"$f":"'FR-16(7)(v)-6 TRANS Classified'!G497","v":0},0,0,0,0,0,0,0,0,0,0,0,0,0]
[54,null,{"$f":"'FR-16(7)(v)-1 Functional'!C498","v":"UNCOLLECTIBLE EXP ADJUSTMENT"},{"$f":"'FR-16(7)(v)-1 Functional'!D498","v":"K411"},null,{"$f":"'FR-16(7)(v)-6 TRANS Classified'!G498","v":0},0,0,0,0,0,0,0,0,0,0,0,0,0]
[55,null,{"$f":"'FR-16(7)(v)-1 Functional'!C499","v":"CREDIT CARD FEES"},{"$f":"'FR-16(7)(v)-1 Functional'!D499","v":"K407"},null,{"$f":"'FR-16(7)(v)-6 TRANS Classified'!G499","v":0},0,0,0,0,0,0,0,0,0,0,0,0,0]
[56,null,{"$f":"'FR-16(7)(v)-1 Functional'!C500","v":"ELIMINATE REV & EXP - DSM RIDER"},{"$f":"'FR-16(7)(v)-1 Functional'!D500","v":"K405"},null,{"$f":"'FR-16(7)(v)-6 TRANS Classified'!G500","v":0},0,0,0,0,0,0,0,0,0,0,0,0,0]
[57,null,{"$f":"'FR-16(7)(v)-1 Functional'!C501","v":"SALE OF A/R"},{"$f":"'FR-16(7)(v)-1 Functional'!D501","v":"K411"},null,{"$f":"'FR-16(7)(v)-6 TRANS Classified'!G501","v":0},0,0,0,0,0,0,0,0,0,0,0,0,0]
[58,null,{"$f":"'FR-16(7)(v)-1 Functional'!C502","v":"ELIMINATE MISC EXPENSE"},{"$f":"'FR-16(7)(v)-1 Functional'!D502","v":"K405"},null,{"$f":"'FR-16(7)(v)-6 TRANS Classified'!G502","v":0},0,0,0,0,0,0,0,0,0,0,0,0,0]
[59,null,{"$f":"'FR-16(7)(v)-1 Functional'!C503","v":"  TOTAL CUSTOMER ACCT EXPENSE"},null," ",{"$f":"SUM(F494:F502)","v":0},{"$f":"SUM(G494:G502)","v":0},{"$f":"SUM(H494:H502)","v":0},{"$f":"SUM(I494:I502)","v":0},{"$f":"SUM(J494:J502)","v":0},0,0,0,0,0,0,{"$f":"SUM(Q494:Q502)","v":0},{"$f":"SUM(R494:R502)","v":0},{"$f":"SUM(S494:S502)","v":0}]
[]
[{"$f":"co_name","v":"DUKE ENERGY KENTUCKY, INC."},null,null,null,null,null,null,null,null,null,null,null,null,null,null,null,null,{"$f":"R1","v":"FR-16(7)(v)-7"}]
[{"$f":"$A$2","v":"TRANSMISSION DEMAND ALLOCATED - ELECTRIC COST OF SERVICE"},null,null,null,null,null,null,null,null,null,null,null,null,null,null,null,null,{"$f":"R2","v":"WITNESS RESPONSIBLE:"}]
[{"$f":"case_name","v":"CASE NO: 2019-00271"},null,null,null,null,null,null,null,null,null,null,null,null,null,null,null,null,{"$f":"Witness","v":"JAMES E. ZIOLKOWSKI"}]
[{"$f":"data_filing","v":"DATA: 12 MONTHS ACTUAL  & 0 MONTHS ESTIMATED"},null,null,null,null,null,null,null,null,null,null,null,null,null,null,null,null,{"$f":"\"PAGE \"&Pages-9&\" OF \"&Pages","v":"PAGE 9 OF 18"}]
[{"$f":"type","v":"TYPE OF FILING: \"X\" ORIGINAL   UPDATED    REVISED  "}]
[]
[null,null,null,null,null,{"$f":"F$7","v":"TOTAL"},null,{"$f":"H$7","v":"DS"},{"$f":"I$7","v":"GSFL"},{"$f":"J$7","v":"EH"},{"$f":"K$7","v":"SP"},"DT SEC","DT PRI","DP","TT",null,"OTHER"]
["LINE",null,null,null,null,{"$f":"F$8","v":"TRANSMISSION"},{"$f":"G$8","v":"RS"},{"$f":"H$8","v":"SECONDARY"},{"$f":"I$8","v":"SECONDARY"},{"$f":"J$8","v":"SECONDARY"},{"$f":"K$8","v":"SECONDARY"},"SECONDARY","PRIMARY","PRIMARY","TRANSMISSION","LT","WATER",{"$f":"R8","v":"TOTAL"},"ALL"]
["NO.","O&M EXPENSES",null,"ALLO",null,{"$f":"F$9","v":"DEMAND"},{"$f":"G$9","v":"RESIDENTIAL"},{"$f":"H$9","v":"DISTRIBUTION"},{"$f":"I$9","v":"DISTRIBUTION"},{"$f":"J$9","v":"DISTRIBUTION"},{"$f":"K$9","v":"DISTRIBUTION"},"DISTRIBUTION","DISTRIBUTION","DISTRIBUTION","TIME OF DAY","LIGHTING","PUMPING",{"$f":"R9","v":"AT ISSUE"},"OTHER"]
[null,null,"Schedule 6.1",null,null,null,{"$f":"G$10","v":3},{"$f":"H$10","v":4},{"$f":"I$10","v":5},{"$f":"J$10","v":6},{"$f":"K$10","v":7},8,9,10,11,12,13,null," "]
[1,"CUSTOMER SERVICE & INFORMATION"]
[2,null,{"$f":"'FR-16(7)(v)-1 Functional'!C516","v":"TOTAL CUST SERVICE & INFO"},{"$f":"'FR-16(7)(v)-1 Functional'!D516","v":"K405"},null,{"$f":"'FR-16(7)(v)-6 TRANS Classified'!G516","v":0},{"$f":"F516-SUM(H516:Q516)","v":0},{"$f":"ROUND(F516*VLOOKUP(D516,ALLOCTABLE_Trans_Demand,$H$10,FALSE),0)","v":0},{"$f":"ROUND(F516*VLOOKUP(D516,ALLOCTABLE_Trans_Demand,$I$10,FALSE),0)","v":0},{"$f":"ROUND(F516*VLOOKUP(D516,ALLOCTABLE_Trans_Demand,$J$10,FALSE),0)","v":0},{"$f":"ROUND(F516*VLOOKUP(D516,ALLOCTABLE_Trans_Demand,$K$10,FALSE),0)","v":0},{"$f":"ROUND(F516*VLOOKUP(D516,ALLOCTABLE_Trans_Demand,$L$10,FALSE),0)","v":0},{"$f":"ROUND(F516*VLOOKUP(D516,ALLOCTABLE_Trans_Demand,$M$10,FALSE),0)","v":0},{"$f":"ROUND(F516*VLOOKUP(D516,ALLOCTABLE_Trans_Demand,$N$10,FALSE),0)","v":0},{"$f":"ROUND(F516*VLOOKUP(D516,ALLOCTABLE_Trans_Demand,$O$10,FALSE),0)","v":0},{"$f":"ROUND(F516*VLOOKUP(D516,ALLOCTABLE_Trans_Demand,$P$10,FALSE),0)","v":0},{"$f":"ROUND(F516*VLOOKUP(D516,ALLOCTABLE_Trans_Demand,$Q$10,FALSE),0)","v":0},{"$f":"SUM(G516:Q516)","v":0},{"$f":"F516-R516","v":0}]
[3,null,{"$f":"'FR-16(7)(v)-1 Functional'!C517","v":"INFORMATIONAL & INSTRUCTIONAL ADV"},{"$f":"'FR-16(7)(v)-1 Functional'!D517","v":"K405"},null,{"$f":"'FR-16(7)(v)-6 TRANS Classified'!G517","v":0},{"$f":"F517-SUM(H517:Q517)","v":0},{"$f":"ROUND(F517*VLOOKUP(D517,ALLOCTABLE_Trans_Demand,$H$10,FALSE),0)","v":0},{"$f":"ROUND(F517*VLOOKUP(D517,ALLOCTABLE_Trans_Demand,$I$10,FALSE),0)","v":0},{"$f":"ROUND(F517*VLOOKUP(D517,ALLOCTABLE_Trans_Demand,$J$10,FALSE),0)","v":0},{"$f":"ROUND(F517*VLOOKUP(D517,ALLOCTABLE_Trans_Demand,$K$10,FALSE),0)","v":0},{"$f":"ROUND(F517*VLOOKUP(D517,ALLOCTABLE_Trans_Demand,$L$10,FALSE),0)","v":0},{"$f":"ROUND(F517*VLOOKUP(D517,ALLOCTABLE_Trans_Demand,$M$10,FALSE),0)","v":0},{"$f":"ROUND(F517*VLOOKUP(D517,ALLOCTABLE_Trans_Demand,$N$10,FALSE),0)","v":0},{"$f":"ROUND(F517*VLOOKUP(D517,ALLOCTABLE_Trans_Demand,$O$10,FALSE),0)","v":0},{"$f":"ROUND(F517*VLOOKUP(D517,ALLOCTABLE_Trans_Demand,$P$10,FALSE),0)","v":0},{"$f":"ROUND(F517*VLOOKUP(D517,ALLOCTABLE_Trans_Demand,$Q$10,FALSE),0)","v":0},{"$f":"SUM(G517:Q517)","v":0},{"$f":"F517-R517","v":0}]
[4,null,{"$f":"'FR-16(7)(v)-1 Functional'!C518","v":"TOTAL CUSTOMER SERV. & INFO."},null," ",{"$f":"SUM(F516:F517)","v":0},{"$f":"SUM(G516:G517)","v":0},0,0,{"$f":"SUM(J516:J517)","v":0},0,0,0,0,0,0,0,0,0]
[5]
[6,"SALES"]
[7,null,{"$f":"'FR-16(7)(v)-1 Functional'!C521","v":"SALES EXPENSE"},{"$f":"'FR-16(7)(v)-1 Functional'!D521","v":"K405"}," ",{"$f":"'FR-16(7)(v)-6 TRANS Classified'!G521","v":0},{"$f":"F521-SUM(H521:Q521)","v":0},{"$f":"ROUND(F521*VLOOKUP(D521,ALLOCTABLE_Trans_Demand,$H$10,FALSE),0)","v":0},{"$f":"ROUND(F521*VLOOKUP(D521,ALLOCTABLE_Trans_Demand,$I$10,FALSE),0)","v":0},{"$f":"ROUND(F521*VLOOKUP(D521,ALLOCTABLE_Trans_Demand,$J$10,FALSE),0)","v":0},{"$f":"ROUND(F521*VLOOKUP(D521,ALLOCTABLE_Trans_Demand,$K$10,FALSE),0)","v":0},{"$f":"ROUND(F521*VLOOKUP(D521,ALLOCTABLE_Trans_Demand,$L$10,FALSE),0)","v":0},{"$f":"ROUND(F521*VLOOKUP(D521,ALLOCTABLE_Trans_Demand,$M$10,FALSE),0)","v":0},{"$f":"ROUND(F521*VLOOKUP(D521,ALLOCTABLE_Trans_Demand,$N$10,FALSE),0)","v":0},{"$f":"ROUND(F521*VLOOKUP(D521,ALLOCTABLE_Trans_Demand,$O$10,FALSE),0)","v":0},{"$f":"ROUND(F521*VLOOKUP(D521,ALLOCTABLE_Trans_Demand,$P$10,FALSE),0)","v":0},{"$f":"ROUND(F521*VLOOKUP(D521,ALLOCTABLE_Trans_Demand,$Q$10,FALSE),0)","v":0},{"$f":"SUM(G521:Q521)","v":0},{"$f":"F521-R521","v":0}]
[8,null,{"$f":"'FR-16(7)(v)-1 Functional'!C522","v":"TOTAL SALES EXPENSE"},null," ",{"$f":"SUM(F520:F521)","v":0},{"$f":"SUM(G520:G521)","v":0},{"$f":"SUM(H520:H521)","v":0},{"$f":"SUM(I520:I521)","v":0},{"$f":"SUM(J520:J521)","v":0},0,0,0,0,0,0,{"$f":"SUM(Q520:Q521)","v":0},{"$f":"SUM(R520:R521)","v":0},{"$f":"SUM(S520:S521)","v":0}]
[9]
[10,"ADMINISTRATIVE & GENERAL "]
[11,null,{"$f":"'FR-16(7)(v)-1 Functional'!C525","v":"PRODUCTION - DEMAND RELATED"},{"$f":"'FR-16(7)(v)-1 Functional'!D525","v":"P349"},null,{"$f":"'FR-16(7)(v)-6 TRANS Classified'!G525","v":0},{"$f":"F525-SUM(H525:Q525)","v":0},{"$f":"ROUND(F525*VLOOKUP(D525,ALLOCTABLE_Trans_Demand,$H$10,FALSE),0)","v":0},{"$f":"ROUND(F525*VLOOKUP(D525,ALLOCTABLE_Trans_Demand,$I$10,FALSE),0)","v":0},{"$f":"ROUND(F525*VLOOKUP(D525,ALLOCTABLE_Trans_Demand,$J$10,FALSE),0)","v":0},{"$f":"ROUND(F525*VLOOKUP(D525,ALLOCTABLE_Trans_Demand,$K$10,FALSE),0)","v":0},{"$f":"ROUND(F525*VLOOKUP(D525,ALLOCTABLE_Trans_Demand,$L$10,FALSE),0)","v":0},{"$f":"ROUND(F525*VLOOKUP(D525,ALLOCTABLE_Trans_Demand,$M$10,FALSE),0)","v":0},{"$f":"ROUND(F525*VLOOKUP(D525,ALLOCTABLE_Trans_Demand,$N$10,FALSE),0)","v":0},{"$f":"ROUND(F525*VLOOKUP(D525,ALLOCTABLE_Trans_Demand,$O$10,FALSE),0)","v":0},{"$f":"ROUND(F525*VLOOKUP(D525,ALLOCTABLE_Trans_Demand,$P$10,FALSE),0)","v":0},{"$f":"ROUND(F525*VLOOKUP(D525,ALLOCTABLE_Trans_Demand,$Q$10,FALSE),0)","v":0},{"$f":"SUM(G525:Q525)","v":0},{"$f":"F525-R525","v":0}]
[12,null,{"$f":"'FR-16(7)(v)-1 Functional'!C526","v":"PRODUCTION - ENERGY RELATED"},{"$f":"'FR-16(7)(v)-1 Functional'!D526","v":"E349"},null,{"$f":"'FR-16(7)(v)-6 TRANS Classified'!G526","v":0},{"$f":"F526-SUM(H526:Q526)","v":0},{"$f":"ROUND(F526*VLOOKUP(D526,ALLOCTABLE_Trans_Demand,$H$10,FALSE),0)","v":0},{"$f":"ROUND(F526*VLOOKUP(D526,ALLOCTABLE_Trans_Demand,$I$10,FALSE),0)","v":0},{"$f":"ROUND(F526*VLOOKUP(D526,ALLOCTABLE_Trans_Demand,$J$10,FALSE),0)","v":0},{"$f":"ROUND(F526*VLOOKUP(D526,ALLOCTABLE_Trans_Demand,$K$10,FALSE),0)","v":0},{"$f":"ROUND(F526*VLOOKUP(D526,ALLOCTABLE_Trans_Demand,$L$10,FALSE),0)","v":0},{"$f":"ROUND(F526*VLOOKUP(D526,ALLOCTABLE_Trans_Demand,$M$10,FALSE),0)","v":0},{"$f":"ROUND(F526*VLOOKUP(D526,ALLOCTABLE_Trans_Demand,$N$10,FALSE),0)","v":0},{"$f":"ROUND(F526*VLOOKUP(D526,ALLOCTABLE_Trans_Demand,$O$10,FALSE),0)","v":0},{"$f":"ROUND(F526*VLOOKUP(D526,ALLOCTABLE_Trans_Demand,$P$10,FALSE),0)","v":0},{"$f":"ROUND(F526*VLOOKUP(D526,ALLOCTABLE_Trans_Demand,$Q$10,FALSE),0)","v":0},{"$f":"SUM(G526:Q526)","v":0},{"$f":"F526-R526","v":0}]
[13,null,"TRANSMISSION",{"$f":"'FR-16(7)(v)-1 Functional'!D527","v":"T349"},null,{"$f":"'FR-16(7)(v)-6 TRANS Classified'!G527","v":1467447},661495,397150,1908,7528,103,198017,130911,6325,62029,1820,161,{"$f":"SUM(G527:Q527)","v":1467447},{"$f":"F527-R527","v":0}]
[14,null,{"$f":"'FR-16(7)(v)-1 Functional'!C528","v":"DISTRIBUTION"},{"$f":"'FR-16(7)(v)-1 Functional'!D528","v":"D349"},null,{"$f":"'FR-16(7)(v)-6 TRANS Classified'!G528","v":0},0,0,0,0,0,0,0,0,0,0,0,0,0]
[15,null,{"$f":"'FR-16(7)(v)-1 Functional'!C529","v":"CUSTOMER ACCOUNTING"},{"$f":"'FR-16(7)(v)-1 Functional'!D529","v":"C319"},null,{"$f":"'FR-16(7)(v)-6 TRANS Classified'!G529","v":0},0,0,0,0,0,0,0,0,0,0,0,0,0]
[16,null,{"$f":"'FR-16(7)(v)-1 Functional'!C530","v":"CUSTOMER SERVICE & INFORMATION"},{"$f":"'FR-16(7)(v)-1 Functional'!D530","v":"C331"},null,{"$f":"'FR-16(7)(v)-6 TRANS Classified'!G530","v":0},0,0,0,0,0,0,0,0,0,0,0,0,0]
[17,null,{"$f":"'FR-16(7)(v)-1 Functional'!C531","v":"SALES"},{"$f":"'FR-16(7)(v)-1 Functional'!D531","v":"S319"},null,{"$f":"'FR-16(7)(v)-6 TRANS Classified'!G531","v":0},0,0,0,0,0,0,0,0,0,0,0,0,0]
[18,null,{"$f":"'FR-16(7)(v)-1 Functional'!C532","v":"TOT ADMIN & GEN LESS REG EXP"}," ",null,{"$f":"SUM(F525:F531)","v":1467447},{"$f":"SUM(G525:G531)","v":661495},{"$f":"SUM(H525:H531)","v":397150},{"$f":"SUM(I525:I531)","v":1908},{"$f":"SUM(J525:J531)","v":7528},103,198017,130911,6325,62029,1820,{"$f":"SUM(Q525:Q531)","v":161},{"$f":"SUM(R525:R531)","v":1467447},{"$f":"SUM(S525:S531)","v":0}]
[19,null,{"$f":"'FR-16(7)(v)-1 Functional'!C533","v":"RATE CASE EXPENSE ADJUSTMENT"},{"$f":"'FR-16(7)(v)-1 Functional'!D533","v":"A315"},null,{"$f":"'FR-16(7)(v)-6 TRANS Classified'!G533","v":6298},{"$f":"F533-SUM(H533:Q533)","v":2840},{"$f":"ROUND(F533*VLOOKUP(D533,ALLOCTABLE_Trans_Demand,$H$10,FALSE),0)","v":1704},{"$f":"ROUND(F533*VLOOKUP(D533,ALLOCTABLE_Trans_Demand,$I$10,FALSE),0)","v":8},{"$f":"ROUND(F533*VLOOKUP(D533,ALLOCTABLE_Trans_Demand,$J$10,FALSE),0)","v":32},{"$f":"ROUND(F533*VLOOKUP(D533,ALLOCTABLE_Trans_Demand,$K$10,FALSE),0)","v":0},{"$f":"ROUND(F533*VLOOKUP(D533,ALLOCTABLE_Trans_Demand,$L$10,FALSE),0)","v":850},{"$f":"ROUND(F533*VLOOKUP(D533,ALLOCTABLE_Trans_Demand,$M$10,FALSE),0)","v":562},{"$f":"ROUND(F533*VLOOKUP(D533,ALLOCTABLE_Trans_Demand,$N$10,FALSE),0)","v":27},{"$f":"ROUND(F533*VLOOKUP(D533,ALLOCTABLE_Trans_Demand,$O$10,FALSE),0)","v":266},{"$f":"ROUND(F533*VLOOKUP(D533,ALLOCTABLE_Trans_Demand,$P$10,FALSE),0)","v":8},{"$f":"ROUND(F533*VLOOKUP(D533,ALLOCTABLE_Trans_Demand,$Q$10,FALSE),0)","v":1},{"$f":"SUM(G533:Q533)","v":6298},{"$f":"F533-R533","v":0}]
[20,null,{"$f":"'FR-16(7)(v)-1 Functional'!C534","v":"ELIMINATE MISCELLANEOUS EXPENSES ADJUSTMENT"},{"$f":"'FR-16(7)(v)-1 Functional'!D534","v":"A315"},null,{"$f":"'FR-16(7)(v)-6 TRANS Classified'!G534","v":0},0,0,0,0,0,0,0,0,0,0,0,0,0]
[21,null,{"$f":"'FR-16(7)(v)-1 Functional'!C535","v":"RIDER ESM ELIMINATION"},{"$f":"'FR-16(7)(v)-1 Functional'!D535","v":"A315"},null,{"$f":"'FR-16(7)(v)-6 TRANS Classified'!G535","v":-432882},-195134,-117155,-563,-2221,-30,-58413,-38617,-1866,-18298,-537,-48,-432882,0]
[22,null,{"$f":"'FR-16(7)(v)-1 Functional'!C536","v":"ELIMINATE DSM"},{"$f":"'FR-16(7)(v)-1 Functional'!D536","v":"A315"},null,{"$f":"'FR-16(7)(v)-6 TRANS Classified'!G536","v":-6063},-2733,-1641,-8,-31,0,-818,-541,-26,-256,-8,-1,-6063,0]
[23,null,{"$f":"'FR-16(7)(v)-1 Functional'!C537","v":"DSM DEFERRAL - ELECTRIC"},{"$f":"'FR-16(7)(v)-1 Functional'!D537","v":"A315"},null,{"$f":"'FR-16(7)(v)-6 TRANS Classified'!G537","v":0},0,0,0,0,0,0,0,0,0,0,0,0,0]
[24,null,{"$f":"'FR-16(7)(v)-1 Functional'!C538","v":"PENSION ADJUSTMENT"},{"$f":"'FR-16(7)(v)-1 Functional'!D538","v":"A315"},null,{"$f":"'FR-16(7)(v)-6 TRANS Classified'!G538","v":-26412},-11907,-7148,-34,-135,-2,-3564,-2356,-114,-1116,-33,-3,-26412,0]
[25,null,{"$f":"'FR-16(7)(v)-1 Functional'!C539","v":"ELIMINATE MISC EXPENSES"},{"$f":"'FR-16(7)(v)-1 Functional'!D539","v":"A315"},null,{"$f":"'FR-16(7)(v)-6 TRANS Classified'!G539","v":-25476},-11482,-6895,-33,-131,-2,-3438,-2273,-110,-1077,-32,-3,-25476,0]
[26,null,{"$f":"'FR-16(7)(v)-1 Functional'!C540","v":"ELIMINATE MERGER COSTS AND CREDITS"},{"$f":"'FR-16(7)(v)-1 Functional'!D540","v":"A315"},null,{"$f":"'FR-16(7)(v)-6 TRANS Classified'!G540","v":0},0,0,0,0,0,0,0,0,0,0,0,0,0]
[27,null,{"$f":"'FR-16(7)(v)-1 Functional'!C541","v":"ANNUALIZE KYPSC MAINT TAX"},{"$f":"'FR-16(7)(v)-1 Functional'!D541","v":"A315"},null,{"$f":"'FR-16(7)(v)-6 TRANS Classified'!G541","v":0},0,0,0,0,0,0,0,0,0,0,0,0,0]
[28,null,{"$f":"'FR-16(7)(v)-1 Functional'!C542","v":"REMOVE INCENTIVE COMP"},{"$f":"'FR-16(7)(v)-1 Functional'!D542","v":"A315"},null,{"$f":"'FR-16(7)(v)-6 TRANS Classified'!G542","v":-73548},-33154,-19905,-96,-377,-5,-9925,-6561,-317,-3109,-91,-8,-73548,0]
[29,null,{"$f":"'FR-16(7)(v)-1 Functional'!C543","v":"CREDIT CARD FEES"},{"$f":"'FR-16(7)(v)-1 Functional'!D543","v":"A315"},null,{"$f":"'FR-16(7)(v)-6 TRANS Classified'!G543","v":0},0,0,0,0,0,0,0,0,0,0,0,0,0]
[30,null,{"$f":"'FR-16(7)(v)-1 Functional'!C544","v":"ELIMINATE INCENTIVE COMPENSATION ADJUSTMENT"},{"$f":"'FR-16(7)(v)-1 Functional'!D544","v":"A315"},null,{"$f":"'FR-16(7)(v)-6 TRANS Classified'!G544","v":0},0,0,0,0,0,0,0,0,0,0,0,0,0]
[31,null,{"$f":"'FR-16(7)(v)-1 Functional'!C545","v":"AMORTIZATION OF DEFERRAL ASSET"},{"$f":"'FR-16(7)(v)-1 Functional'!D545","v":"A315"},null,{"$f":"'FR-16(7)(v)-6 TRANS Classified'!G545","v":0},0,0,0,0,0,0,0,0,0,0,0,0,0]
[32,null,{"$f":"'FR-16(7)(v)-1 Functional'!C546","v":"AMORTIZATION OF DEFERRED EXPENSES"},{"$f":"'FR-16(7)(v)-1 Functional'!D546","v":"A315"},null,{"$f":"'FR-16(7)(v)-6 TRANS Classified'!G546","v":4628},2084,1253,6,24,0,625,413,20,196,6,1,4628,0]
[33,null,{"$f":"'FR-16(7)(v)-1 Functional'!C547","v":"TOTAL ADMIN. & GENERAL"},null," ",{"$f":"SUM(F532:F546)","v":913992},{"$f":"SUM(G532:G546)","v":412009},{"$f":"SUM(H532:H546)","v":247363},{"$f":"SUM(I532:I546)","v":1188},{"$f":"SUM(J532:J546)","v":4689},64,123334,81538,3939,38635,1133,{"$f":"SUM(Q532:Q546)","v":100},{"$f":"SUM(R532:R546)","v":913992},{"$f":"SUM(S532:S546)","v":0}]
[34]
[35,null,{"$f":"'FR-16(7)(v)-1 Functional'!C549","v":"TOTAL O & M EXPENSE"},null,null,{"$f":"F547+F522+F518+F503+F492+F470+F466+F459","v":25892769},{"$f":"G547+G522+G518+G503+G492+G470+G466+G459","v":11671942},{"$f":"H547+H522+H518+H503+H492+H470+H466+H459","v":7007619},{"$f":"I547+I522+I518+I503+I492+I470+I466+I459","v":33661},{"$f":"J547+J522+J518+J503+J492+J470+J466+J459","v":132830},1813,3493970,2309894,111598,1094488,32106,{"$f":"Q547+Q522+Q518+Q503+Q492+Q470+Q466+Q459","v":2848},{"$f":"R547+R522+R518+R503+R492+R470+R466+R459","v":25892769},{"$f":"S547+S522+S518+S503+S492+S466+S459","v":0}]
[]
[{"$f":"co_name","v":"DUKE ENERGY KENTUCKY, INC."},null,null,null,null,null,null,null,null,null,null,null,null,null,null,null,null,{"$f":"R1","v":"FR-16(7)(v)-7"}]
[{"$f":"$A$2","v":"TRANSMISSION DEMAND ALLOCATED - ELECTRIC COST OF SERVICE"},null,null,null,null,null,null,null,null,null,null,null,null,null,null,null,null,{"$f":"R2","v":"WITNESS RESPONSIBLE:"}]
[{"$f":"case_name","v":"CASE NO: 2019-00271"},null,null,null,null,null,null,null,null,null,null,null,null,null,null,null,null,{"$f":"Witness","v":"JAMES E. ZIOLKOWSKI"}]
[{"$f":"data_filing","v":"DATA: 12 MONTHS ACTUAL  & 0 MONTHS ESTIMATED"},null,null,null,null,null,null,null,null,null,null,null,null,null,null,null,null,{"$f":"\"PAGE \"&Pages-8&\" OF \"&Pages","v":"PAGE 10 OF 18"}]
[{"$f":"type","v":"TYPE OF FILING: \"X\" ORIGINAL   UPDATED    REVISED  "}]
[]
[null,null,null,null,null,{"$f":"F$7","v":"TOTAL"},null,{"$f":"H$7","v":"DS"},{"$f":"I$7","v":"GSFL"},{"$f":"J$7","v":"EH"},{"$f":"K$7","v":"SP"},"DT SEC","DT PRI","DP","TT",null,"OTHER"]
["LINE",null,null,null,null,{"$f":"F$8","v":"TRANSMISSION"},{"$f":"G$8","v":"RS"},{"$f":"H$8","v":"SECONDARY"},{"$f":"I$8","v":"SECONDARY"},{"$f":"J$8","v":"SECONDARY"},{"$f":"K$8","v":"SECONDARY"},"SECONDARY","PRIMARY","PRIMARY","TRANSMISSION","LT","WATER",{"$f":"R8","v":"TOTAL"},"ALL"]
["NO.","DEPRECIATION EXPENSE",null,"ALLO",null,{"$f":"F$9","v":"DEMAND"},{"$f":"G$9","v":"RESIDENTIAL"},{"$f":"H$9","v":"DISTRIBUTION"},{"$f":"I$9","v":"DISTRIBUTION"},{"$f":"J$9","v":"DISTRIBUTION"},{"$f":"K$9","v":"DISTRIBUTION"},"DISTRIBUTION","DISTRIBUTION","DISTRIBUTION","TIME OF DAY","LIGHTING","PUMPING",{"$f":"R9","v":"AT ISSUE"},"OTHER"]
[null,null,"Schedule 7",null,null,null,{"$f":"G$10","v":3},{"$f":"H$10","v":4},{"$f":"I$10","v":5},{"$f":"J$10","v":6},{"$f":"K$10","v":7},8,9,10,11,12,13,null," "]
[1,"PRODUCTION DEPRECIATION"]
[2,null,{"$f":"'FR-16(7)(v)-1 Functional'!C562","v":"PRODUCTION DEPRECIATION"},{"$f":"'FR-16(7)(v)-1 Functional'!D562","v":"P229"},null,{"$f":"'FR-16(7)(v)-6 TRANS Classified'!G562","v":0},{"$f":"F562-SUM(H562:Q562)","v":0},{"$f":"ROUND(F562*VLOOKUP(D562,ALLOCTABLE_Trans_Demand,$H$10,FALSE),0)","v":0},{"$f":"ROUND(F562*VLOOKUP(D562,ALLOCTABLE_Trans_Demand,$I$10,FALSE),0)","v":0},{"$f":"ROUND(F562*VLOOKUP(D562,ALLOCTABLE_Trans_Demand,$J$10,FALSE),0)","v":0},{"$f":"ROUND(F562*VLOOKUP(D562,ALLOCTABLE_Trans_Demand,$K$10,FALSE),0)","v":0},{"$f":"ROUND(F562*VLOOKUP(D562,ALLOCTABLE_Trans_Demand,$L$10,FALSE),0)","v":0},{"$f":"ROUND(F562*VLOOKUP(D562,ALLOCTABLE_Trans_Demand,$M$10,FALSE),0)","v":0},{"$f":"ROUND(F562*VLOOKUP(D562,ALLOCTABLE_Trans_Demand,$N$10,FALSE),0)","v":0},{"$f":"ROUND(F562*VLOOKUP(D562,ALLOCTABLE_Trans_Demand,$O$10,FALSE),0)","v":0},{"$f":"ROUND(F562*VLOOKUP(D562,ALLOCTABLE_Trans_Demand,$P$10,FALSE),0)","v":0},{"$f":"ROUND(F562*VLOOKUP(D562,ALLOCTABLE_Trans_Demand,$Q$10,FALSE),0)","v":0},{"$f":"SUM(G562:Q562)","v":0},{"$f":"F562-R562","v":0}]
[3,null,{"$f":"'FR-16(7)(v)-1 Functional'!C563","v":"  TOTAL PRODUCTION DEPREC EXP."},null,null,{"$f":"SUM(F562:F562)","v":0},{"$f":"SUM(G562:G562)","v":0},{"$f":"SUM(H562:H562)","v":0},{"$f":"SUM(I562:I562)","v":0},{"$f":"SUM(J562:J562)","v":0},0,0,0,0,0,0,{"$f":"SUM(Q562:Q562)","v":0},{"$f":"SUM(R562:R562)","v":0},{"$f":"SUM(S562:S562)","v":0}]
[4]
[5,"TRANSMISSION DEPRECIATION"]
[6,null,"TRANSMISSION DEPRECIATION",{"$f":"'FR-16(7)(v)-1 Functional'!D566","v":"T229"},null,{"$f":"'FR-16(7)(v)-6 TRANS Classified'!G566","v":1469491},{"$f":"F566-SUM(H566:Q566)","v":662418},{"$f":"ROUND(F566*VLOOKUP(D566,ALLOCTABLE_Trans_Demand,$H$10,FALSE),0)","v":397703},{"$f":"ROUND(F566*VLOOKUP(D566,ALLOCTABLE_Trans_Demand,$I$10,FALSE),0)","v":1910},{"$f":"ROUND(F566*VLOOKUP(D566,ALLOCTABLE_Trans_Demand,$J$10,FALSE),0)","v":7538},{"$f":"ROUND(F566*VLOOKUP(D566,ALLOCTABLE_Trans_Demand,$K$10,FALSE),0)","v":103},{"$f":"ROUND(F566*VLOOKUP(D566,ALLOCTABLE_Trans_Demand,$L$10,FALSE),0)","v":198293},{"$f":"ROUND(F566*VLOOKUP(D566,ALLOCTABLE_Trans_Demand,$M$10,FALSE),0)","v":131093},{"$f":"ROUND(F566*VLOOKUP(D566,ALLOCTABLE_Trans_Demand,$N$10,FALSE),0)","v":6334},{"$f":"ROUND(F566*VLOOKUP(D566,ALLOCTABLE_Trans_Demand,$O$10,FALSE),0)","v":62115},{"$f":"ROUND(F566*VLOOKUP(D566,ALLOCTABLE_Trans_Demand,$P$10,FALSE),0)","v":1822},{"$f":"ROUND(F566*VLOOKUP(D566,ALLOCTABLE_Trans_Demand,$Q$10,FALSE),0)","v":162},{"$f":"SUM(G566:Q566)","v":1469491},{"$f":"F566-R566","v":0}]
[7,null,{"$f":"'FR-16(7)(v)-1 Functional'!C567","v":"  TOTAL TRANSMISSION DEP. EXP."},null,null,{"$f":"SUM(F566:F566)","v":1469491},{"$f":"SUM(G566:G566)","v":662418},{"$f":"SUM(H566:H566)","v":397703},{"$f":"SUM(I566:I566)","v":1910},{"$f":"SUM(J566:J566)","v":7538},103,198293,131093,6334,62115,1822,{"$f":"SUM(Q566:Q566)","v":162},{"$f":"SUM(R566:R566)","v":1469491},{"$f":"SUM(S566:S566)","v":0}]
[8]
[9,"DISTRIBUTION DEPRECIATION"]
[10,null,{"$f":"'FR-16(7)(v)-1 Functional'!C570","v":"DISTRIBUTION DEPRECIATION"},{"$f":"'FR-16(7)(v)-1 Functional'!D570","v":"D249"},null,{"$f":"'FR-16(7)(v)-6 TRANS Classified'!G570","v":0},{"$f":"F570-SUM(H570:Q570)","v":0},{"$f":"ROUND(F570*VLOOKUP(D570,ALLOCTABLE_Trans_Demand,$H$10,FALSE),0)","v":0},{"$f":"ROUND(F570*VLOOKUP(D570,ALLOCTABLE_Trans_Demand,$I$10,FALSE),0)","v":0},{"$f":"ROUND(F570*VLOOKUP(D570,ALLOCTABLE_Trans_Demand,$J$10,FALSE),0)","v":0},{"$f":"ROUND(F570*VLOOKUP(D570,ALLOCTABLE_Trans_Demand,$K$10,FALSE),0)","v":0},{"$f":"ROUND(F570*VLOOKUP(D570,ALLOCTABLE_Trans_Demand,$L$10,FALSE),0)","v":0},{"$f":"ROUND(F570*VLOOKUP(D570,ALLOCTABLE_Trans_Demand,$M$10,FALSE),0)","v":0},{"$f":"ROUND(F570*VLOOKUP(D570,ALLOCTABLE_Trans_Demand,$N$10,FALSE),0)","v":0},{"$f":"ROUND(F570*VLOOKUP(D570,ALLOCTABLE_Trans_Demand,$O$10,FALSE),0)","v":0},{"$f":"ROUND(F570*VLOOKUP(D570,ALLOCTABLE_Trans_Demand,$P$10,FALSE),0)","v":0},{"$f":"ROUND(F570*VLOOKUP(D570,ALLOCTABLE_Trans_Demand,$Q$10,FALSE),0)","v":0},{"$f":"SUM(G570:Q570)","v":0},{"$f":"F570-R570","v":0}]
[11,null,{"$f":"'FR-16(7)(v)-1 Functional'!C571","v":"  TOTAL DIST. DEPREC EXP."},null,null,{"$f":"SUM(F570:F570)","v":0},{"$f":"SUM(G570:G570)","v":0},{"$f":"SUM(H570:H570)","v":0},{"$f":"SUM(I570:I570)","v":0},{"$f":"SUM(J570:J570)","v":0},0,0,0,0,0,0,{"$f":"SUM(Q570:Q570)","v":0},{"$f":"SUM(R570:R570)","v":0},{"$f":"SUM(S570:S570)","v":0}]
[12,null,null,null,null," "]
[13,"GENERAL DEPRECIATION"]
[14,null,{"$f":"'FR-16(7)(v)-1 Functional'!C574","v":"GENERAL DEPRECIATION"},{"$f":"'FR-16(7)(v)-1 Functional'!D574","v":"G229"},null,{"$f":"'FR-16(7)(v)-6 TRANS Classified'!G574","v":250773},{"$f":"F574-SUM(H574:Q574)","v":113044},{"$f":"ROUND(F574*VLOOKUP(D574,ALLOCTABLE_Trans_Demand,$H$10,FALSE),0)","v":67869},{"$f":"ROUND(F574*VLOOKUP(D574,ALLOCTABLE_Trans_Demand,$I$10,FALSE),0)","v":326},{"$f":"ROUND(F574*VLOOKUP(D574,ALLOCTABLE_Trans_Demand,$J$10,FALSE),0)","v":1286},{"$f":"ROUND(F574*VLOOKUP(D574,ALLOCTABLE_Trans_Demand,$K$10,FALSE),0)","v":18},{"$f":"ROUND(F574*VLOOKUP(D574,ALLOCTABLE_Trans_Demand,$L$10,FALSE),0)","v":33839},{"$f":"ROUND(F574*VLOOKUP(D574,ALLOCTABLE_Trans_Demand,$M$10,FALSE),0)","v":22371},{"$f":"ROUND(F574*VLOOKUP(D574,ALLOCTABLE_Trans_Demand,$N$10,FALSE),0)","v":1081},{"$f":"ROUND(F574*VLOOKUP(D574,ALLOCTABLE_Trans_Demand,$O$10,FALSE),0)","v":10600},{"$f":"ROUND(F574*VLOOKUP(D574,ALLOCTABLE_Trans_Demand,$P$10,FALSE),0)","v":311},{"$f":"ROUND(F574*VLOOKUP(D574,ALLOCTABLE_Trans_Demand,$Q$10,FALSE),0)","v":28},{"$f":"SUM(G574:Q574)","v":250773},{"$f":"F574-R574","v":0}]
[15,null,{"$f":"'FR-16(7)(v)-1 Functional'!C575","v":"  TOTAL GENERAL DEPREC EXP."},null,null,{"$f":"SUM(F574:F574)","v":250773},{"$f":"SUM(G574:G574)","v":113044},{"$f":"SUM(H574:H574)","v":67869},{"$f":"SUM(I574:I574)","v":326},{"$f":"SUM(J574:J574)","v":1286},18,33839,22371,1081,10600,311,{"$f":"SUM(Q574:Q574)","v":28},{"$f":"SUM(R574:R574)","v":250773},{"$f":"SUM(S574:S574)","v":0}]
[16]
[17,"COMMON AND OTHER DEPRECIATION"]
[18,null,{"$f":"'FR-16(7)(v)-1 Functional'!C578","v":"COMMON DEPRECIATION"},{"$f":"'FR-16(7)(v)-1 Functional'!D578","v":"C229"},null,{"$f":"'FR-16(7)(v)-6 TRANS Classified'!G578","v":1701},{"$f":"F578-SUM(H578:Q578)","v":767},{"$f":"ROUND(F578*VLOOKUP(D578,ALLOCTABLE_Trans_Demand,$H$10,FALSE),0)","v":460},{"$f":"ROUND(F578*VLOOKUP(D578,ALLOCTABLE_Trans_Demand,$I$10,FALSE),0)","v":2},{"$f":"ROUND(F578*VLOOKUP(D578,ALLOCTABLE_Trans_Demand,$J$10,FALSE),0)","v":9},{"$f":"ROUND(F578*VLOOKUP(D578,ALLOCTABLE_Trans_Demand,$K$10,FALSE),0)","v":0},{"$f":"ROUND(F578*VLOOKUP(D578,ALLOCTABLE_Trans_Demand,$L$10,FALSE),0)","v":230},{"$f":"ROUND(F578*VLOOKUP(D578,ALLOCTABLE_Trans_Demand,$M$10,FALSE),0)","v":152},{"$f":"ROUND(F578*VLOOKUP(D578,ALLOCTABLE_Trans_Demand,$N$10,FALSE),0)","v":7},{"$f":"ROUND(F578*VLOOKUP(D578,ALLOCTABLE_Trans_Demand,$O$10,FALSE),0)","v":72},{"$f":"ROUND(F578*VLOOKUP(D578,ALLOCTABLE_Trans_Demand,$P$10,FALSE),0)","v":2},{"$f":"ROUND(F578*VLOOKUP(D578,ALLOCTABLE_Trans_Demand,$Q$10,FALSE),0)","v":0},{"$f":"SUM(G578:Q578)","v":1701},{"$f":"F578-R578","v":0}]
[19,null,{"$f":"'FR-16(7)(v)-1 Functional'!C579","v":"  TOTAL COM & OTHER DEPREC EXP."},null,null,{"$f":"SUM(F578:F578)","v":1701},{"$f":"SUM(G578:G578)","v":767},{"$f":"SUM(H578:H578)","v":460},{"$f":"SUM(I578:I578)","v":2},{"$f":"SUM(J578:J578)","v":9},0,230,152,7,72,2,{"$f":"SUM(Q578:Q578)","v":0},{"$f":"SUM(R578:R578)","v":1701},{"$f":"SUM(S578:S578)","v":0}]
[20]
[21]
[22,"TOTAL DEPRECIATION EXPENSE",null,null," ",{"$f":"F579+F575+F571+F567+F563","v":1721965},{"$f":"G579+G575+G571+G567+G563","v":776229},{"$f":"H579+H575+H571+H567+H563","v":466032},{"$f":"I579+I575+I571+I567+I563","v":2238},{"$f":"J579+J575+J571+J567+J563","v":8833},121,232362,153616,7422,72787,2135,{"$f":"Q579+Q575+Q571+Q567+Q563","v":190},{"$f":"R579+R575+R571+R567+R563","v":1721965},{"$f":"S579+S575+S571+S567+S563","v":0}]
[]
[{"$f":"co_name","v":"DUKE ENERGY KENTUCKY, INC."},null,null,null,null,null,null,null,null,null,null,null,null,null,null,null,null,{"$f":"R1","v":"FR-16(7)(v)-7"}]
[{"$f":"$A$2","v":"TRANSMISSION DEMAND ALLOCATED - ELECTRIC COST OF SERVICE"},null,null,null,null,null,null,null,null,null,null,null,null,null,null,null,null,{"$f":"R2","v":"WITNESS RESPONSIBLE:"}]
[{"$f":"case_name","v":"CASE NO: 2019-00271"},null,null,null,null,null,null,null,null,null,null,null,null,null,null,null,null,{"$f":"Witness","v":"JAMES E. ZIOLKOWSKI"}]
[{"$f":"data_filing","v":"DATA: 12 MONTHS ACTUAL  & 0 MONTHS ESTIMATED"},null,null,null,null,null,null,null,null,null,null,null,null,null,null,null,null,{"$f":"\"PAGE \"&Pages-7&\" OF \"&Pages","v":"PAGE 11 OF 18"}]
[{"$f":"type","v":"TYPE OF FILING: \"X\" ORIGINAL   UPDATED    REVISED  "}]
[]
[null,null,null,null,null,{"$f":"F$7","v":"TOTAL"},null,{"$f":"H$7","v":"DS"},{"$f":"I$7","v":"GSFL"},{"$f":"J$7","v":"EH"},{"$f":"K$7","v":"SP"},"DT SEC","DT PRI","DP","TT",null,"OTHER"]
["LINE",null,null,null,null,{"$f":"F$8","v":"TRANSMISSION"},{"$f":"G$8","v":"RS"},{"$f":"H$8","v":"SECONDARY"},{"$f":"I$8","v":"SECONDARY"},{"$f":"J$8","v":"SECONDARY"},{"$f":"K$8","v":"SECONDARY"},"SECONDARY","PRIMARY","PRIMARY","TRANSMISSION","LT","WATER",{"$f":"R8","v":"TOTAL"},"ALL"]
["NO.","OTHER TAXES & MISC EXPENSES",null,"ALLO",null,{"$f":"F$9","v":"DEMAND"},{"$f":"G$9","v":"RESIDENTIAL"},{"$f":"H$9","v":"DISTRIBUTION"},{"$f":"I$9","v":"DISTRIBUTION"},{"$f":"J$9","v":"DISTRIBUTION"},{"$f":"K$9","v":"DISTRIBUTION"},"DISTRIBUTION","DISTRIBUTION","DISTRIBUTION","TIME OF DAY","LIGHTING","PUMPING",{"$f":"R9","v":"AT ISSUE"},"OTHER"]
[null,null,"Schedule 8",null,null,null,{"$f":"G$10","v":3},{"$f":"H$10","v":4},{"$f":"I$10","v":5},{"$f":"J$10","v":6},{"$f":"K$10","v":7},8,9,10,11,12,13,null," "]
[1,"TAXES OTHER THAN INC & REV"]
[2," REAL ESTATE & PROPERTY TAX"]
[3,null,{"$f":"'FR-16(7)(v)-1 Functional'!C596","v":"REAL ESTATE & PROPERTY TAX"},{"$f":"'FR-16(7)(v)-1 Functional'!D596","v":"NP29"},null,{"$f":"'FR-16(7)(v)-6 TRANS Classified'!G596","v":645647},{"$f":"F596-SUM(H596:Q596)","v":291045},{"$f":"ROUND(F596*VLOOKUP(D596,ALLOCTABLE_Trans_Demand,$H$10,FALSE),0)","v":174738},{"$f":"ROUND(F596*VLOOKUP(D596,ALLOCTABLE_Trans_Demand,$I$10,FALSE),0)","v":839},{"$f":"ROUND(F596*VLOOKUP(D596,ALLOCTABLE_Trans_Demand,$J$10,FALSE),0)","v":3312},{"$f":"ROUND(F596*VLOOKUP(D596,ALLOCTABLE_Trans_Demand,$K$10,FALSE),0)","v":45},{"$f":"ROUND(F596*VLOOKUP(D596,ALLOCTABLE_Trans_Demand,$L$10,FALSE),0)","v":87124},{"$f":"ROUND(F596*VLOOKUP(D596,ALLOCTABLE_Trans_Demand,$M$10,FALSE),0)","v":57598},{"$f":"ROUND(F596*VLOOKUP(D596,ALLOCTABLE_Trans_Demand,$N$10,FALSE),0)","v":2783},{"$f":"ROUND(F596*VLOOKUP(D596,ALLOCTABLE_Trans_Demand,$O$10,FALSE),0)","v":27291},{"$f":"ROUND(F596*VLOOKUP(D596,ALLOCTABLE_Trans_Demand,$P$10,FALSE),0)","v":801},{"$f":"ROUND(F596*VLOOKUP(D596,ALLOCTABLE_Trans_Demand,$Q$10,FALSE),0)","v":71},{"$f":"SUM(G596:Q596)","v":645647},{"$f":"F596-R596","v":0}]
[4,null,{"$f":"'FR-16(7)(v)-1 Functional'!C597","v":"ANNUALIZE PROPERTY TAX"},{"$f":"'FR-16(7)(v)-1 Functional'!D597","v":"NP29"}," ",{"$f":"'FR-16(7)(v)-6 TRANS Classified'!G597","v":0},{"$f":"F597-SUM(H597:Q597)","v":0},{"$f":"ROUND(F597*VLOOKUP(D597,ALLOCTABLE_Trans_Demand,$H$10,FALSE),0)","v":0},{"$f":"ROUND(F597*VLOOKUP(D597,ALLOCTABLE_Trans_Demand,$I$10,FALSE),0)","v":0},{"$f":"ROUND(F597*VLOOKUP(D597,ALLOCTABLE_Trans_Demand,$J$10,FALSE),0)","v":0},{"$f":"ROUND(F597*VLOOKUP(D597,ALLOCTABLE_Trans_Demand,$K$10,FALSE),0)","v":0},{"$f":"ROUND(F597*VLOOKUP(D597,ALLOCTABLE_Trans_Demand,$L$10,FALSE),0)","v":0},{"$f":"ROUND(F597*VLOOKUP(D597,ALLOCTABLE_Trans_Demand,$M$10,FALSE),0)","v":0},{"$f":"ROUND(F597*VLOOKUP(D597,ALLOCTABLE_Trans_Demand,$N$10,FALSE),0)","v":0},{"$f":"ROUND(F597*VLOOKUP(D597,ALLOCTABLE_Trans_Demand,$O$10,FALSE),0)","v":0},{"$f":"ROUND(F597*VLOOKUP(D597,ALLOCTABLE_Trans_Demand,$P$10,FALSE),0)","v":0},{"$f":"ROUND(F597*VLOOKUP(D597,ALLOCTABLE_Trans_Demand,$Q$10,FALSE),0)","v":0},{"$f":"SUM(G597:Q597)","v":0},{"$f":"F597-R597","v":0}]
[5,null,{"$f":"'FR-16(7)(v)-1 Functional'!C598","v":"  TOTAL REAL ESTATE & PROPERTY TAX"},null,null,{"$f":"SUM(F596:F597)","v":645647},{"$f":"SUM(G596:G597)","v":291045},{"$f":"SUM(H596:H597)","v":174738},{"$f":"SUM(I596:I597)","v":839},{"$f":"SUM(J596:J597)","v":3312},45,87124,57598,2783,27291,801,{"$f":"SUM($Q$596:$Q$597)","v":71},{"$f":"SUM(R596:R597)","v":645647},{"$f":"SUM(S596:S597)","v":0}]
[6]
[7," MISCELLANEOUS TAXES"]
[8,null,{"$f":"'FR-16(7)(v)-1 Functional'!C601","v":"PAYROLL "},{"$f":"'FR-16(7)(v)-1 Functional'!D601","v":"A315"},null,{"$f":"'FR-16(7)(v)-6 TRANS Classified'!G601","v":87595},{"$f":"F601-SUM(H601:Q601)","v":39485},{"$f":"ROUND(F601*VLOOKUP(D601,ALLOCTABLE_Trans_Demand,$H$10,FALSE),0)","v":23707},{"$f":"ROUND(F601*VLOOKUP(D601,ALLOCTABLE_Trans_Demand,$I$10,FALSE),0)","v":114},{"$f":"ROUND(F601*VLOOKUP(D601,ALLOCTABLE_Trans_Demand,$J$10,FALSE),0)","v":449},{"$f":"ROUND(F601*VLOOKUP(D601,ALLOCTABLE_Trans_Demand,$K$10,FALSE),0)","v":6},{"$f":"ROUND(F601*VLOOKUP(D601,ALLOCTABLE_Trans_Demand,$L$10,FALSE),0)","v":11820},{"$f":"ROUND(F601*VLOOKUP(D601,ALLOCTABLE_Trans_Demand,$M$10,FALSE),0)","v":7814},{"$f":"ROUND(F601*VLOOKUP(D601,ALLOCTABLE_Trans_Demand,$N$10,FALSE),0)","v":378},{"$f":"ROUND(F601*VLOOKUP(D601,ALLOCTABLE_Trans_Demand,$O$10,FALSE),0)","v":3703},{"$f":"ROUND(F601*VLOOKUP(D601,ALLOCTABLE_Trans_Demand,$P$10,FALSE),0)","v":109},{"$f":"ROUND(F601*VLOOKUP(D601,ALLOCTABLE_Trans_Demand,$Q$10,FALSE),0)","v":10},{"$f":"SUM(G601:Q601)","v":87595},{"$f":"F601-R601","v":0}]
[9,null,{"$f":"'FR-16(7)(v)-1 Functional'!C602","v":"ELIMINATE DSM "},{"$f":"'FR-16(7)(v)-1 Functional'!D602","v":"A315"},null,{"$f":"'FR-16(7)(v)-6 TRANS Classified'!G602","v":-1723},{"$f":"F602-SUM(H602:Q602)","v":-777},{"$f":"ROUND(F602*VLOOKUP(D602,ALLOCTABLE_Trans_Demand,$H$10,FALSE),0)","v":-466},{"$f":"ROUND(F602*VLOOKUP(D602,ALLOCTABLE_Trans_Demand,$I$10,FALSE),0)","v":-2},{"$f":"ROUND(F602*VLOOKUP(D602,ALLOCTABLE_Trans_Demand,$J$10,FALSE),0)","v":-9},{"$f":"ROUND(F602*VLOOKUP(D602,ALLOCTABLE_Trans_Demand,$K$10,FALSE),0)","v":0},{"$f":"ROUND(F602*VLOOKUP(D602,ALLOCTABLE_Trans_Demand,$L$10,FALSE),0)","v":-233},{"$f":"ROUND(F602*VLOOKUP(D602,ALLOCTABLE_Trans_Demand,$M$10,FALSE),0)","v":-154},{"$f":"ROUND(F602*VLOOKUP(D602,ALLOCTABLE_Trans_Demand,$N$10,FALSE),0)","v":-7},{"$f":"ROUND(F602*VLOOKUP(D602,ALLOCTABLE_Trans_Demand,$O$10,FALSE),0)","v":-73},{"$f":"ROUND(F602*VLOOKUP(D602,ALLOCTABLE_Trans_Demand,$P$10,FALSE),0)","v":-2},{"$f":"ROUND(F602*VLOOKUP(D602,ALLOCTABLE_Trans_Demand,$Q$10,FALSE),0)","v":0},{"$f":"SUM(G602:Q602)","v":-1723},{"$f":"F602-R602","v":0}]
[10,null,{"$f":"'FR-16(7)(v)-1 Functional'!C603","v":"FRANCHISE & LICENSE"},{"$f":"'FR-16(7)(v)-1 Functional'!D603","v":"A315"},null,{"$f":"'FR-16(7)(v)-6 TRANS Classified'!G603","v":0},{"$f":"F603-SUM(H603:Q603)","v":0},{"$f":"ROUND(F603*VLOOKUP(D603,ALLOCTABLE_Trans_Demand,$H$10,FALSE),0)","v":0},{"$f":"ROUND(F603*VLOOKUP(D603,ALLOCTABLE_Trans_Demand,$I$10,FALSE),0)","v":0},{"$f":"ROUND(F603*VLOOKUP(D603,ALLOCTABLE_Trans_Demand,$J$10,FALSE),0)","v":0},{"$f":"ROUND(F603*VLOOKUP(D603,ALLOCTABLE_Trans_Demand,$K$10,FALSE),0)","v":0},{"$f":"ROUND(F603*VLOOKUP(D603,ALLOCTABLE_Trans_Demand,$L$10,FALSE),0)","v":0},{"$f":"ROUND(F603*VLOOKUP(D603,ALLOCTABLE_Trans_Demand,$M$10,FALSE),0)","v":0},{"$f":"ROUND(F603*VLOOKUP(D603,ALLOCTABLE_Trans_Demand,$N$10,FALSE),0)","v":0},{"$f":"ROUND(F603*VLOOKUP(D603,ALLOCTABLE_Trans_Demand,$O$10,FALSE),0)","v":0},{"$f":"ROUND(F603*VLOOKUP(D603,ALLOCTABLE_Trans_Demand,$P$10,FALSE),0)","v":0},{"$f":"ROUND(F603*VLOOKUP(D603,ALLOCTABLE_Trans_Demand,$Q$10,FALSE),0)","v":0},{"$f":"SUM(G603:Q603)","v":0},{"$f":"F603-R603","v":0}]
[11,null,{"$f":"'FR-16(7)(v)-1 Functional'!C604","v":"ELIMINATE ESM"},{"$f":"'FR-16(7)(v)-1 Functional'!D604","v":"A315"},null,{"$f":"'FR-16(7)(v)-6 TRANS Classified'!G604","v":-46596},{"$f":"F604-SUM(H604:Q604)","v":-21003},{"$f":"ROUND(F604*VLOOKUP(D604,ALLOCTABLE_Trans_Demand,$H$10,FALSE),0)","v":-12611},{"$f":"ROUND(F604*VLOOKUP(D604,ALLOCTABLE_Trans_Demand,$I$10,FALSE),0)","v":-61},{"$f":"ROUND(F604*VLOOKUP(D604,ALLOCTABLE_Trans_Demand,$J$10,FALSE),0)","v":-239},{"$f":"ROUND(F604*VLOOKUP(D604,ALLOCTABLE_Trans_Demand,$K$10,FALSE),0)","v":-3},{"$f":"ROUND(F604*VLOOKUP(D604,ALLOCTABLE_Trans_Demand,$L$10,FALSE),0)","v":-6288},{"$f":"ROUND(F604*VLOOKUP(D604,ALLOCTABLE_Trans_Demand,$M$10,FALSE),0)","v":-4157},{"$f":"ROUND(F604*VLOOKUP(D604,ALLOCTABLE_Trans_Demand,$N$10,FALSE),0)","v":-201},{"$f":"ROUND(F604*VLOOKUP(D604,ALLOCTABLE_Trans_Demand,$O$10,FALSE),0)","v":-1970},{"$f":"ROUND(F604*VLOOKUP(D604,ALLOCTABLE_Trans_Demand,$P$10,FALSE),0)","v":-58},{"$f":"ROUND(F604*VLOOKUP(D604,ALLOCTABLE_Trans_Demand,$Q$10,FALSE),0)","v":-5},{"$f":"SUM(G604:Q604)","v":-46596},{"$f":"F604-R604","v":0}]
[12,null,{"$f":"'FR-16(7)(v)-1 Functional'!C605","v":"  TOTAL MISCELLANEOUS TAXES"},null,null,{"$f":"SUM(F601:F604)","v":39276},{"$f":"SUM(G601:G604)","v":17705},{"$f":"SUM(H601:H604)","v":10630},{"$f":"SUM(I601:I604)","v":51},{"$f":"SUM(J601:J604)","v":201},3,5299,3503,170,1660,49,{"$f":"SUM($Q$601:$Q$604)","v":5},{"$f":"SUM(R601:R604)","v":39276},{"$f":"SUM(S601:S604)","v":0}]
[13]
[14," MISCELLANEOUS EXPENSES"]
[15,null,{"$f":"'FR-16(7)(v)-1 Functional'!C608","v":"PSC MAINT. EXP ON INCREASE"},{"$f":"'FR-16(7)(v)-1 Functional'!D608","v":"K902"},null,{"$f":"'FR-16(7)(v)-6 TRANS Classified'!G608","v":4154},{"$f":"F608-SUM(H608:Q608)","v":1723},{"$f":"ROUND(F608*VLOOKUP(D608,ALLOCTABLE_Trans_Demand,$H$10,FALSE),0)","v":1188},{"$f":"ROUND(F608*VLOOKUP(D608,ALLOCTABLE_Trans_Demand,$I$10,FALSE),0)","v":8},{"$f":"ROUND(F608*VLOOKUP(D608,ALLOCTABLE_Trans_Demand,$J$10,FALSE),0)","v":8},{"$f":"ROUND(F608*VLOOKUP(D608,ALLOCTABLE_Trans_Demand,$K$10,FALSE),0)","v":0},{"$f":"ROUND(F608*VLOOKUP(D608,ALLOCTABLE_Trans_Demand,$L$10,FALSE),0)","v":614},{"$f":"ROUND(F608*VLOOKUP(D608,ALLOCTABLE_Trans_Demand,$M$10,FALSE),0)","v":392},{"$f":"ROUND(F608*VLOOKUP(D608,ALLOCTABLE_Trans_Demand,$N$10,FALSE),0)","v":18},{"$f":"ROUND(F608*VLOOKUP(D608,ALLOCTABLE_Trans_Demand,$O$10,FALSE),0)","v":178},{"$f":"ROUND(F608*VLOOKUP(D608,ALLOCTABLE_Trans_Demand,$P$10,FALSE),0)","v":25},{"$f":"ROUND(F608*VLOOKUP(D608,ALLOCTABLE_Trans_Demand,$Q$10,FALSE),0)","v":0},{"$f":"SUM(G608:Q608)","v":4154},{"$f":"F608-R608","v":0}]
[16,null,{"$f":"'FR-16(7)(v)-1 Functional'!C609","v":"RESERVED FOR FUTURE USE"},{"$f":"'FR-16(7)(v)-1 Functional'!D609","v":"K902"},null,{"$f":"'FR-16(7)(v)-6 TRANS Classified'!G609","v":0},{"$f":"F609-SUM(H609:Q609)","v":0},{"$f":"ROUND(F609*VLOOKUP(D609,ALLOCTABLE_Trans_Demand,$H$10,FALSE),0)","v":0},{"$f":"ROUND(F609*VLOOKUP(D609,ALLOCTABLE_Trans_Demand,$I$10,FALSE),0)","v":0},{"$f":"ROUND(F609*VLOOKUP(D609,ALLOCTABLE_Trans_Demand,$J$10,FALSE),0)","v":0},{"$f":"ROUND(F609*VLOOKUP(D609,ALLOCTABLE_Trans_Demand,$K$10,FALSE),0)","v":0},{"$f":"ROUND(F609*VLOOKUP(D609,ALLOCTABLE_Trans_Demand,$L$10,FALSE),0)","v":0},{"$f":"ROUND(F609*VLOOKUP(D609,ALLOCTABLE_Trans_Demand,$M$10,FALSE),0)","v":0},{"$f":"ROUND(F609*VLOOKUP(D609,ALLOCTABLE_Trans_Demand,$N$10,FALSE),0)","v":0},{"$f":"ROUND(F609*VLOOKUP(D609,ALLOCTABLE_Trans_Demand,$O$10,FALSE),0)","v":0},{"$f":"ROUND(F609*VLOOKUP(D609,ALLOCTABLE_Trans_Demand,$P$10,FALSE),0)","v":0},{"$f":"ROUND(F609*VLOOKUP(D609,ALLOCTABLE_Trans_Demand,$Q$10,FALSE),0)","v":0},{"$f":"SUM(G609:Q609)","v":0},{"$f":"F609-R609","v":0}]
[17,null,{"$f":"'FR-16(7)(v)-1 Functional'!C610","v":"  TOTAL MISCELLANEOUS EXPENSES"},null,null,{"$f":"SUM(F608:F609)","v":4154},{"$f":"SUM(G608:G609)","v":1723},{"$f":"SUM(H608:H609)","v":1188},{"$f":"SUM(I608:I609)","v":8},{"$f":"SUM(J608:J609)","v":8},0,614,392,18,178,25,{"$f":"SUM($Q$608:$Q$609)","v":0},{"$f":"SUM(R608:R609)","v":4154},{"$f":"SUM(S608:S609)","v":0}]
[18]
[19,"TOTAL OTHER TAX & MISC EXPENSE",null,null," ",{"$f":"F605+F598+F610","v":689077},{"$f":"G605+G598+G610","v":310473},{"$f":"H605+H598+H610","v":186556},{"$f":"I605+I598+I610","v":898},{"$f":"J605+J598+J610","v":3521},48,93037,61493,2971,29129,875,{"$f":"$Q$605+$Q$598+$Q$610","v":76},{"$f":"R605+R598+R610","v":689077},{"$f":"S605+S598+S610","v":0}]
[20]
[21,"PRELIMINARY SUMMARY"]
[22,null,{"$f":"'FR-16(7)(v)-1 Functional'!C615","v":"TOTAL O&M EXPENSE"},null,null,{"$f":"F549","v":25892769},{"$f":"G549","v":11671942},{"$f":"H549","v":7007619},{"$f":"I549","v":33661},{"$f":"J549","v":132830},1813,3493970,2309894,111598,1094488,32106,{"$f":"Q549","v":2848},{"$f":"R549","v":25892769},{"$f":"S549","v":0}]
[23,null,{"$f":"'FR-16(7)(v)-1 Functional'!C616","v":"TOTAL DEPRECIATION EXPENSE"},null,null,{"$f":"F582","v":1721965},{"$f":"G582","v":776229},{"$f":"H582","v":466032},{"$f":"I582","v":2238},{"$f":"J582","v":8833},121,232362,153616,7422,72787,2135,{"$f":"Q582","v":190},{"$f":"R582","v":1721965},{"$f":"S582","v":0}]
[24,null,{"$f":"'FR-16(7)(v)-1 Functional'!C617","v":"TOTAL OTHER TAX & MISC EXPENSE"},null,null,{"$f":"F612","v":689077},{"$f":"G612","v":310473},{"$f":"H612","v":186556},{"$f":"I612","v":898},{"$f":"J612","v":3521},48,93037,61493,2971,29129,875,{"$f":"$Q$612","v":76},{"$f":"R612","v":689077},{"$f":"S612","v":0}]
[25,null,{"$f":"'FR-16(7)(v)-1 Functional'!C618","v":"  TOTAL OPER EXP EXCL INCOME & REV TAX"},null,null,{"$f":"SUM(F615:F617)","v":28303811},{"$f":"SUM(G615:G617)","v":12758644},{"$f":"SUM(H615:H617)","v":7660207},{"$f":"SUM(I615:I617)","v":36797},{"$f":"SUM(J615:J617)","v":145184},1982,3819369,2525003,121991,1196404,35116,{"$f":"SUM($Q$615:$Q$617)","v":3114},{"$f":"SUM(R615:R617)","v":28303811},{"$f":"SUM(S615:S617)","v":0}]
[]
[{"$f":"co_name","v":"DUKE ENERGY KENTUCKY, INC."},null,null,null,null,null,null,null,null,null,null,null,null,null,null,null,null,{"$f":"R1","v":"FR-16(7)(v)-7"}]
[{"$f":"$A$2","v":"TRANSMISSION DEMAND ALLOCATED - ELECTRIC COST OF SERVICE"},null,null,null,null,null,null,null,null,null,null,null,null,null,null,null,null,{"$f":"R2","v":"WITNESS RESPONSIBLE:"}]
[{"$f":"case_name","v":"CASE NO: 2019-00271"},null,null,null,null,null,null,null,null,null,null,null,null,null,null,null,null,{"$f":"Witness","v":"JAMES E. ZIOLKOWSKI"}]
[{"$f":"data_filing","v":"DATA: 12 MONTHS ACTUAL  & 0 MONTHS ESTIMATED"},null,null,null,null,null,null,null,null,null,null,null,null,null,null,null,null,{"$f":"\"PAGE \"&Pages-6&\" OF \"&Pages","v":"PAGE 12 OF 18"}]
[{"$f":"type","v":"TYPE OF FILING: \"X\" ORIGINAL   UPDATED    REVISED  "}]
[]
[null,null,null,null,null,{"$f":"F$7","v":"TOTAL"},null,{"$f":"H$7","v":"DS"},{"$f":"I$7","v":"GSFL"},{"$f":"J$7","v":"EH"},{"$f":"K$7","v":"SP"},"DT SEC","DT PRI","DP","TT",null,"OTHER"]
["LINE",null,null,null,null,{"$f":"F$8","v":"TRANSMISSION"},{"$f":"G$8","v":"RS"},{"$f":"H$8","v":"SECONDARY"},{"$f":"I$8","v":"SECONDARY"},{"$f":"J$8","v":"SECONDARY"},{"$f":"K$8","v":"SECONDARY"},"SECONDARY","PRIMARY","PRIMARY","TRANSMISSION","LT","WATER",{"$f":"R8","v":"TOTAL"},"ALL"]
["NO.","FEDERAL INCOME TAX BASED ON RETURN",null,"ALLO",null,{"$f":"F$9","v":"DEMAND"},{"$f":"G$9","v":"RESIDENTIAL"},{"$f":"H$9","v":"DISTRIBUTION"},{"$f":"I$9","v":"DISTRIBUTION"},{"$f":"J$9","v":"DISTRIBUTION"},{"$f":"K$9","v":"DISTRIBUTION"},"DISTRIBUTION","DISTRIBUTION","DISTRIBUTION","TIME OF DAY","LIGHTING","PUMPING",{"$f":"R9","v":"AT ISSUE"},"OTHER"]
[null,null,"Schedule 9",null,null,null,{"$f":"G$10","v":3},{"$f":"H$10","v":4},{"$f":"I$10","v":5},{"$f":"J$10","v":6},{"$f":"K$10","v":7},8,9,10,11,12,13,null," "]
[1,"FEDERAL INCOME TAX DEDUCTIONS"]
[2," AUTOMATIC INTEREST CALCULATION",null,null,null," "]
[3,null,{"$f":"'FR-16(7)(v)-1 Functional'!C632","v":"AUTO PROC INTEREST DED"},{"$f":"'FR-16(7)(v)-1 Functional'!D632","v":"RB99"},null,{"$f":"'FR-16(7)(v)-6 TRANS Classified'!G632","v":833901},{"$f":"F632-SUM(H632:Q632)","v":375906},{"$f":"ROUND(F632*VLOOKUP(D632,ALLOCTABLE_Trans_Demand,$H$10,FALSE),0)","v":225687},{"$f":"ROUND(F632*VLOOKUP(D632,ALLOCTABLE_Trans_Demand,$I$10,FALSE),0)","v":1084},{"$f":"ROUND(F632*VLOOKUP(D632,ALLOCTABLE_Trans_Demand,$J$10,FALSE),0)","v":4278},{"$f":"ROUND(F632*VLOOKUP(D632,ALLOCTABLE_Trans_Demand,$K$10,FALSE),0)","v":58},{"$f":"ROUND(F632*VLOOKUP(D632,ALLOCTABLE_Trans_Demand,$L$10,FALSE),0)","v":112527},{"$f":"ROUND(F632*VLOOKUP(D632,ALLOCTABLE_Trans_Demand,$M$10,FALSE),0)","v":74392},{"$f":"ROUND(F632*VLOOKUP(D632,ALLOCTABLE_Trans_Demand,$N$10,FALSE),0)","v":3594},{"$f":"ROUND(F632*VLOOKUP(D632,ALLOCTABLE_Trans_Demand,$O$10,FALSE),0)","v":35249},{"$f":"ROUND(F632*VLOOKUP(D632,ALLOCTABLE_Trans_Demand,$P$10,FALSE),0)","v":1034},{"$f":"ROUND(F632*VLOOKUP(D632,ALLOCTABLE_Trans_Demand,$Q$10,FALSE),0)","v":92},{"$f":"SUM(G632:Q632)","v":833901},{"$f":"F632-R632","v":0}]
[4,null,{"$f":"'FR-16(7)(v)-1 Functional'!C633","v":"  TOTAL INTEREST EXPENSE"},null,null,{"$f":"F632","v":833901},{"$f":"G632","v":375906},{"$f":"H632","v":225687},{"$f":"I632","v":1084},{"$f":"J632","v":4278},58,112527,74392,3594,35249,1034,{"$f":"$Q$632","v":92},{"$f":"R632","v":833901},{"$f":"S632","v":0}]
[5]
[6," OTHER DEDUCTIONS"]
[7,null,{"$f":"'FR-16(7)(v)-1 Functional'!C636","v":"DEPREC EXCESS TAX-BOOK"},{"$f":"'FR-16(7)(v)-1 Functional'!D636","v":"DE49"},null,{"$f":"'FR-16(7)(v)-6 TRANS Classified'!G636","v":-408458},{"$f":"F636-SUM(H636:Q636)","v":-184125},{"$f":"ROUND(F636*VLOOKUP(D636,ALLOCTABLE_Trans_Demand,$H$10,FALSE),0)","v":-110545},{"$f":"ROUND(F636*VLOOKUP(D636,ALLOCTABLE_Trans_Demand,$I$10,FALSE),0)","v":-531},{"$f":"ROUND(F636*VLOOKUP(D636,ALLOCTABLE_Trans_Demand,$J$10,FALSE),0)","v":-2095},{"$f":"ROUND(F636*VLOOKUP(D636,ALLOCTABLE_Trans_Demand,$K$10,FALSE),0)","v":-29},{"$f":"ROUND(F636*VLOOKUP(D636,ALLOCTABLE_Trans_Demand,$L$10,FALSE),0)","v":-55117},{"$f":"ROUND(F636*VLOOKUP(D636,ALLOCTABLE_Trans_Demand,$M$10,FALSE),0)","v":-36439},{"$f":"ROUND(F636*VLOOKUP(D636,ALLOCTABLE_Trans_Demand,$N$10,FALSE),0)","v":-1760},{"$f":"ROUND(F636*VLOOKUP(D636,ALLOCTABLE_Trans_Demand,$O$10,FALSE),0)","v":-17266},{"$f":"ROUND(F636*VLOOKUP(D636,ALLOCTABLE_Trans_Demand,$P$10,FALSE),0)","v":-506},{"$f":"ROUND(F636*VLOOKUP(D636,ALLOCTABLE_Trans_Demand,$Q$10,FALSE),0)","v":-45},{"$f":"SUM(G636:Q636)","v":-408458},{"$f":"F636-R636","v":0}]
[8,null,{"$f":"'FR-16(7)(v)-1 Functional'!C637","v":"PERMANENT DIFFERENCES"},{"$f":"'FR-16(7)(v)-1 Functional'!D637","v":"A357"},null,{"$f":"'FR-16(7)(v)-6 TRANS Classified'!G637","v":-19603},{"$f":"F637-SUM(H637:Q637)","v":-8838},{"$f":"ROUND(F637*VLOOKUP(D637,ALLOCTABLE_Trans_Demand,$H$10,FALSE),0)","v":-5305},{"$f":"ROUND(F637*VLOOKUP(D637,ALLOCTABLE_Trans_Demand,$I$10,FALSE),0)","v":-25},{"$f":"ROUND(F637*VLOOKUP(D637,ALLOCTABLE_Trans_Demand,$J$10,FALSE),0)","v":-101},{"$f":"ROUND(F637*VLOOKUP(D637,ALLOCTABLE_Trans_Demand,$K$10,FALSE),0)","v":-1},{"$f":"ROUND(F637*VLOOKUP(D637,ALLOCTABLE_Trans_Demand,$L$10,FALSE),0)","v":-2645},{"$f":"ROUND(F637*VLOOKUP(D637,ALLOCTABLE_Trans_Demand,$M$10,FALSE),0)","v":-1749},{"$f":"ROUND(F637*VLOOKUP(D637,ALLOCTABLE_Trans_Demand,$N$10,FALSE),0)","v":-84},{"$f":"ROUND(F637*VLOOKUP(D637,ALLOCTABLE_Trans_Demand,$O$10,FALSE),0)","v":-829},{"$f":"ROUND(F637*VLOOKUP(D637,ALLOCTABLE_Trans_Demand,$P$10,FALSE),0)","v":-24},{"$f":"ROUND(F637*VLOOKUP(D637,ALLOCTABLE_Trans_Demand,$Q$10,FALSE),0)","v":-2},{"$f":"SUM(G637:Q637)","v":-19603},{"$f":"F637-R637","v":0}]
[9,null,{"$f":"'FR-16(7)(v)-1 Functional'!C638","v":"TEMPORARY DIFFERENCES"},{"$f":"'FR-16(7)(v)-1 Functional'!D638","v":"DE49"},null,{"$f":"'FR-16(7)(v)-6 TRANS Classified'!G638","v":2492352},{"$f":"F638-SUM(H638:Q638)","v":1123502},{"$f":"ROUND(F638*VLOOKUP(D638,ALLOCTABLE_Trans_Demand,$H$10,FALSE),0)","v":674530},{"$f":"ROUND(F638*VLOOKUP(D638,ALLOCTABLE_Trans_Demand,$I$10,FALSE),0)","v":3240},{"$f":"ROUND(F638*VLOOKUP(D638,ALLOCTABLE_Trans_Demand,$J$10,FALSE),0)","v":12786},{"$f":"ROUND(F638*VLOOKUP(D638,ALLOCTABLE_Trans_Demand,$K$10,FALSE),0)","v":174},{"$f":"ROUND(F638*VLOOKUP(D638,ALLOCTABLE_Trans_Demand,$L$10,FALSE),0)","v":336318},{"$f":"ROUND(F638*VLOOKUP(D638,ALLOCTABLE_Trans_Demand,$M$10,FALSE),0)","v":222343},{"$f":"ROUND(F638*VLOOKUP(D638,ALLOCTABLE_Trans_Demand,$N$10,FALSE),0)","v":10742},{"$f":"ROUND(F638*VLOOKUP(D638,ALLOCTABLE_Trans_Demand,$O$10,FALSE),0)","v":105352},{"$f":"ROUND(F638*VLOOKUP(D638,ALLOCTABLE_Trans_Demand,$P$10,FALSE),0)","v":3091},{"$f":"ROUND(F638*VLOOKUP(D638,ALLOCTABLE_Trans_Demand,$Q$10,FALSE),0)","v":274},{"$f":"SUM(G638:Q638)","v":2492352},{"$f":"F638-R638","v":0}]
[10,null,{"$f":"'FR-16(7)(v)-1 Functional'!C639","v":"  TOTAL OTHER DEDUCTIONS"},null,null,{"$f":"SUM(F636:F638)","v":2064291},{"$f":"SUM(G636:G638)","v":930539},{"$f":"SUM(H636:H638)","v":558680},{"$f":"SUM(I636:I638)","v":2684},{"$f":"SUM(J636:J638)","v":10590},144,278556,184155,8898,87257,2561,{"$f":"SUM($Q$636:$Q$638)","v":227},{"$f":"SUM(R636:R638)","v":2064291},{"$f":"SUM(S636:S638)","v":0}]
[11]
[12,"NET DEDUCTIONS AND ADDITIONS",null,null,null,{"$f":"F639+F633","v":2898192},{"$f":"G639+G633","v":1306445},{"$f":"H639+H633","v":784367},{"$f":"I639+I633","v":3768},{"$f":"J639+J633","v":14868},202,391083,258547,12492,122506,3595,{"$f":"$Q$639+$Q$633","v":319},{"$f":"R639+R633","v":2898192},{"$f":"S639+S633","v":0}]
[13]
[14," FED DEFERRED INCOME TAX (410 & 411)"]
[15,null,{"$f":"'FR-16(7)(v)-1 Functional'!C644","v":"DEFERRED INCOME TAXES - NET"},{"$f":"'FR-16(7)(v)-1 Functional'!D644","v":"OM39"},null,{"$f":"'FR-16(7)(v)-6 TRANS Classified'!G644","v":1723509},{"$f":"F644-SUM(H644:Q644)","v":776923},{"$f":"ROUND(F644*VLOOKUP(D644,ALLOCTABLE_Trans_Demand,$H$10,FALSE),0)","v":466450},{"$f":"ROUND(F644*VLOOKUP(D644,ALLOCTABLE_Trans_Demand,$I$10,FALSE),0)","v":2241},{"$f":"ROUND(F644*VLOOKUP(D644,ALLOCTABLE_Trans_Demand,$J$10,FALSE),0)","v":8842},{"$f":"ROUND(F644*VLOOKUP(D644,ALLOCTABLE_Trans_Demand,$K$10,FALSE),0)","v":121},{"$f":"ROUND(F644*VLOOKUP(D644,ALLOCTABLE_Trans_Demand,$L$10,FALSE),0)","v":232570},{"$f":"ROUND(F644*VLOOKUP(D644,ALLOCTABLE_Trans_Demand,$M$10,FALSE),0)","v":153754},{"$f":"ROUND(F644*VLOOKUP(D644,ALLOCTABLE_Trans_Demand,$N$10,FALSE),0)","v":7428},{"$f":"ROUND(F644*VLOOKUP(D644,ALLOCTABLE_Trans_Demand,$O$10,FALSE),0)","v":72853},{"$f":"ROUND(F644*VLOOKUP(D644,ALLOCTABLE_Trans_Demand,$P$10,FALSE),0)","v":2137},{"$f":"ROUND(F644*VLOOKUP(D644,ALLOCTABLE_Trans_Demand,$Q$10,FALSE),0)","v":190},{"$f":"SUM(G644:Q644)","v":1723509},{"$f":"F644-R644","v":0}]
[16,null,{"$f":"'FR-16(7)(v)-1 Functional'!C645","v":"AMORT OF DEFERRED MERGER COST"},{"$f":"'FR-16(7)(v)-1 Functional'!D645","v":"A357"},null,{"$f":"'FR-16(7)(v)-6 TRANS Classified'!G645","v":0},{"$f":"F645-SUM(H645:Q645)","v":0},{"$f":"ROUND(F645*VLOOKUP(D645,ALLOCTABLE_Trans_Demand,$H$10,FALSE),0)","v":0},{"$f":"ROUND(F645*VLOOKUP(D645,ALLOCTABLE_Trans_Demand,$I$10,FALSE),0)","v":0},{"$f":"ROUND(F645*VLOOKUP(D645,ALLOCTABLE_Trans_Demand,$J$10,FALSE),0)","v":0},{"$f":"ROUND(F645*VLOOKUP(D645,ALLOCTABLE_Trans_Demand,$K$10,FALSE),0)","v":0},{"$f":"ROUND(F645*VLOOKUP(D645,ALLOCTABLE_Trans_Demand,$L$10,FALSE),0)","v":0},{"$f":"ROUND(F645*VLOOKUP(D645,ALLOCTABLE_Trans_Demand,$M$10,FALSE),0)","v":0},{"$f":"ROUND(F645*VLOOKUP(D645,ALLOCTABLE_Trans_Demand,$N$10,FALSE),0)","v":0},{"$f":"ROUND(F645*VLOOKUP(D645,ALLOCTABLE_Trans_Demand,$O$10,FALSE),0)","v":0},{"$f":"ROUND(F645*VLOOKUP(D645,ALLOCTABLE_Trans_Demand,$P$10,FALSE),0)","v":0},{"$f":"ROUND(F645*VLOOKUP(D645,ALLOCTABLE_Trans_Demand,$Q$10,FALSE),0)","v":0},{"$f":"SUM(G645:Q645)","v":0},{"$f":"F645-R645","v":0}]
[17,null,{"$f":"'FR-16(7)(v)-1 Functional'!C646","v":"DIT ADJUSTMENT - S/L DEPRECIATION"},{"$f":"'FR-16(7)(v)-1 Functional'!D646","v":"DE49"},null,{"$f":"'FR-16(7)(v)-6 TRANS Classified'!G646","v":0},{"$f":"F646-SUM(H646:Q646)","v":0},{"$f":"ROUND(F646*VLOOKUP(D646,ALLOCTABLE_Trans_Demand,$H$10,FALSE),0)","v":0},{"$f":"ROUND(F646*VLOOKUP(D646,ALLOCTABLE_Trans_Demand,$I$10,FALSE),0)","v":0},{"$f":"ROUND(F646*VLOOKUP(D646,ALLOCTABLE_Trans_Demand,$J$10,FALSE),0)","v":0},{"$f":"ROUND(F646*VLOOKUP(D646,ALLOCTABLE_Trans_Demand,$K$10,FALSE),0)","v":0},{"$f":"ROUND(F646*VLOOKUP(D646,ALLOCTABLE_Trans_Demand,$L$10,FALSE),0)","v":0},{"$f":"ROUND(F646*VLOOKUP(D646,ALLOCTABLE_Trans_Demand,$M$10,FALSE),0)","v":0},{"$f":"ROUND(F646*VLOOKUP(D646,ALLOCTABLE_Trans_Demand,$N$10,FALSE),0)","v":0},{"$f":"ROUND(F646*VLOOKUP(D646,ALLOCTABLE_Trans_Demand,$O$10,FALSE),0)","v":0},{"$f":"ROUND(F646*VLOOKUP(D646,ALLOCTABLE_Trans_Demand,$P$10,FALSE),0)","v":0},{"$f":"ROUND(F646*VLOOKUP(D646,ALLOCTABLE_Trans_Demand,$Q$10,FALSE),0)","v":0},{"$f":"SUM(G646:Q646)","v":0},{"$f":"F646-R646","v":0}]
[18,null,{"$f":"'FR-16(7)(v)-1 Functional'!C647","v":"DIT ADJUSTMENT - ARAM"},{"$f":"'FR-16(7)(v)-1 Functional'!D647","v":"K201"},null,{"$f":"'FR-16(7)(v)-6 TRANS Classified'!G647","v":0},{"$f":"F647-SUM(H647:Q647)","v":0},{"$f":"ROUND(F647*VLOOKUP(D647,ALLOCTABLE_Trans_Demand,$H$10,FALSE),0)","v":0},{"$f":"ROUND(F647*VLOOKUP(D647,ALLOCTABLE_Trans_Demand,$I$10,FALSE),0)","v":0},{"$f":"ROUND(F647*VLOOKUP(D647,ALLOCTABLE_Trans_Demand,$J$10,FALSE),0)","v":0},{"$f":"ROUND(F647*VLOOKUP(D647,ALLOCTABLE_Trans_Demand,$K$10,FALSE),0)","v":0},{"$f":"ROUND(F647*VLOOKUP(D647,ALLOCTABLE_Trans_Demand,$L$10,FALSE),0)","v":0},{"$f":"ROUND(F647*VLOOKUP(D647,ALLOCTABLE_Trans_Demand,$M$10,FALSE),0)","v":0},{"$f":"ROUND(F647*VLOOKUP(D647,ALLOCTABLE_Trans_Demand,$N$10,FALSE),0)","v":0},{"$f":"ROUND(F647*VLOOKUP(D647,ALLOCTABLE_Trans_Demand,$O$10,FALSE),0)","v":0},{"$f":"ROUND(F647*VLOOKUP(D647,ALLOCTABLE_Trans_Demand,$P$10,FALSE),0)","v":0},{"$f":"ROUND(F647*VLOOKUP(D647,ALLOCTABLE_Trans_Demand,$Q$10,FALSE),0)","v":0},{"$f":"SUM(G647:Q647)","v":0},{"$f":"F647-R647","v":0}]
[19,null,{"$f":"'FR-16(7)(v)-1 Functional'!C648","v":"DIT ADJUSTMENT - AMORT OF EXCESS DEF TAXES"},{"$f":"'FR-16(7)(v)-1 Functional'!D648","v":"A357"},null,{"$f":"'FR-16(7)(v)-6 TRANS Classified'!G648","v":-171896},{"$f":"F648-SUM(H648:Q648)","v":-77487},{"$f":"ROUND(F648*VLOOKUP(D648,ALLOCTABLE_Trans_Demand,$H$10,FALSE),0)","v":-46522},{"$f":"ROUND(F648*VLOOKUP(D648,ALLOCTABLE_Trans_Demand,$I$10,FALSE),0)","v":-223},{"$f":"ROUND(F648*VLOOKUP(D648,ALLOCTABLE_Trans_Demand,$J$10,FALSE),0)","v":-882},{"$f":"ROUND(F648*VLOOKUP(D648,ALLOCTABLE_Trans_Demand,$K$10,FALSE),0)","v":-12},{"$f":"ROUND(F648*VLOOKUP(D648,ALLOCTABLE_Trans_Demand,$L$10,FALSE),0)","v":-23196},{"$f":"ROUND(F648*VLOOKUP(D648,ALLOCTABLE_Trans_Demand,$M$10,FALSE),0)","v":-15335},{"$f":"ROUND(F648*VLOOKUP(D648,ALLOCTABLE_Trans_Demand,$N$10,FALSE),0)","v":-741},{"$f":"ROUND(F648*VLOOKUP(D648,ALLOCTABLE_Trans_Demand,$O$10,FALSE),0)","v":-7266},{"$f":"ROUND(F648*VLOOKUP(D648,ALLOCTABLE_Trans_Demand,$P$10,FALSE),0)","v":-213},{"$f":"ROUND(F648*VLOOKUP(D648,ALLOCTABLE_Trans_Demand,$Q$10,FALSE),0)","v":-19},{"$f":"SUM(G648:Q648)","v":-171896},{"$f":"F648-R648","v":0}]
[20,null,{"$f":"'FR-16(7)(v)-1 Functional'!C649","v":"  TOTAL FED DEF IT (410 & 411)"},null,null,{"$f":"SUM(F644:F648)","v":1551613},{"$f":"SUM(G644:G648)","v":699436},{"$f":"SUM(H644:H648)","v":419928},{"$f":"SUM(I644:I648)","v":2018},{"$f":"SUM(J644:J648)","v":7960},109,209374,138419,6687,65587,1924,{"$f":"SUM($Q$644:$Q$648)","v":171},{"$f":"SUM(R644:R648)","v":1551613},{"$f":"SUM(S644:S648)","v":0}]
[21]
[22," AMORT INV TAX CREDIT"]
[23,null,{"$f":"'FR-16(7)(v)-1 Functional'!C652","v":"AMORTIZE ITC"},{"$f":"'FR-16(7)(v)-1 Functional'!D652","v":"NP29"},null,{"$f":"'FR-16(7)(v)-6 TRANS Classified'!G652","v":20},{"$f":"F652-SUM(H652:Q652)","v":9},{"$f":"ROUND(F652*VLOOKUP(D652,ALLOCTABLE_Trans_Demand,$H$10,FALSE),0)","v":5},{"$f":"ROUND(F652*VLOOKUP(D652,ALLOCTABLE_Trans_Demand,$I$10,FALSE),0)","v":0},{"$f":"ROUND(F652*VLOOKUP(D652,ALLOCTABLE_Trans_Demand,$J$10,FALSE),0)","v":0},{"$f":"ROUND(F652*VLOOKUP(D652,ALLOCTABLE_Trans_Demand,$K$10,FALSE),0)","v":0},{"$f":"ROUND(F652*VLOOKUP(D652,ALLOCTABLE_Trans_Demand,$L$10,FALSE),0)","v":3},{"$f":"ROUND(F652*VLOOKUP(D652,ALLOCTABLE_Trans_Demand,$M$10,FALSE),0)","v":2},{"$f":"ROUND(F652*VLOOKUP(D652,ALLOCTABLE_Trans_Demand,$N$10,FALSE),0)","v":0},{"$f":"ROUND(F652*VLOOKUP(D652,ALLOCTABLE_Trans_Demand,$O$10,FALSE),0)","v":1},{"$f":"ROUND(F652*VLOOKUP(D652,ALLOCTABLE_Trans_Demand,$P$10,FALSE),0)","v":0},{"$f":"ROUND(F652*VLOOKUP(D652,ALLOCTABLE_Trans_Demand,$Q$10,FALSE),0)","v":0},{"$f":"SUM(G652:Q652)","v":20},{"$f":"F652-R652","v":0}]
[24,null,{"$f":"'FR-16(7)(v)-1 Functional'!C653","v":"  TOTAL AMORTIZED ITC"},null,null,{"$f":"SUM(F652:F652)","v":20},{"$f":"SUM(G652:G652)","v":9},{"$f":"SUM(H652:H652)","v":5},{"$f":"SUM(I652:I652)","v":0},{"$f":"SUM(J652:J652)","v":0},0,3,2,0,1,0,{"$f":"SUM($Q$652:$Q$652)","v":0},{"$f":"SUM(R652:R652)","v":20},{"$f":"SUM(S652:S652)","v":0}]
[25]
[26," OTHER FEDERAL TAX CREDITS"]
[27,null,{"$f":"'FR-16(7)(v)-1 Functional'!C656","v":"FUEL TAX CREDIT"},{"$f":"'FR-16(7)(v)-1 Functional'!D656","v":"K301"},null,{"$f":"'FR-16(7)(v)-6 TRANS Classified'!G656","v":0},{"$f":"F656-SUM(H656:Q656)","v":0},{"$f":"ROUND(F656*VLOOKUP(D656,ALLOCTABLE_Trans_Demand,$H$10,FALSE),0)","v":0},{"$f":"ROUND(F656*VLOOKUP(D656,ALLOCTABLE_Trans_Demand,$I$10,FALSE),0)","v":0},{"$f":"ROUND(F656*VLOOKUP(D656,ALLOCTABLE_Trans_Demand,$J$10,FALSE),0)","v":0},{"$f":"ROUND(F656*VLOOKUP(D656,ALLOCTABLE_Trans_Demand,$K$10,FALSE),0)","v":0},{"$f":"ROUND(F656*VLOOKUP(D656,ALLOCTABLE_Trans_Demand,$L$10,FALSE),0)","v":0},{"$f":"ROUND(F656*VLOOKUP(D656,ALLOCTABLE_Trans_Demand,$M$10,FALSE),0)","v":0},{"$f":"ROUND(F656*VLOOKUP(D656,ALLOCTABLE_Trans_Demand,$N$10,FALSE),0)","v":0},{"$f":"ROUND(F656*VLOOKUP(D656,ALLOCTABLE_Trans_Demand,$O$10,FALSE),0)","v":0},{"$f":"ROUND(F656*VLOOKUP(D656,ALLOCTABLE_Trans_Demand,$P$10,FALSE),0)","v":0},{"$f":"ROUND(F656*VLOOKUP(D656,ALLOCTABLE_Trans_Demand,$Q$10,FALSE),0)","v":0},{"$f":"SUM(G656:Q656)","v":0},{"$f":"F656-R656","v":0}]
[28,null,{"$f":"'FR-16(7)(v)-1 Functional'!C657","v":"R&D CREDIT - SECTION 41"},{"$f":"'FR-16(7)(v)-1 Functional'!D657","v":"A315"},null,{"$f":"'FR-16(7)(v)-6 TRANS Classified'!G657","v":0},{"$f":"F657-SUM(H657:Q657)","v":0},{"$f":"ROUND(F657*VLOOKUP(D657,ALLOCTABLE_Trans_Demand,$H$10,FALSE),0)","v":0},{"$f":"ROUND(F657*VLOOKUP(D657,ALLOCTABLE_Trans_Demand,$I$10,FALSE),0)","v":0},{"$f":"ROUND(F657*VLOOKUP(D657,ALLOCTABLE_Trans_Demand,$J$10,FALSE),0)","v":0},{"$f":"ROUND(F657*VLOOKUP(D657,ALLOCTABLE_Trans_Demand,$K$10,FALSE),0)","v":0},{"$f":"ROUND(F657*VLOOKUP(D657,ALLOCTABLE_Trans_Demand,$L$10,FALSE),0)","v":0},{"$f":"ROUND(F657*VLOOKUP(D657,ALLOCTABLE_Trans_Demand,$M$10,FALSE),0)","v":0},{"$f":"ROUND(F657*VLOOKUP(D657,ALLOCTABLE_Trans_Demand,$N$10,FALSE),0)","v":0},{"$f":"ROUND(F657*VLOOKUP(D657,ALLOCTABLE_Trans_Demand,$O$10,FALSE),0)","v":0},{"$f":"ROUND(F657*VLOOKUP(D657,ALLOCTABLE_Trans_Demand,$P$10,FALSE),0)","v":0},{"$f":"ROUND(F657*VLOOKUP(D657,ALLOCTABLE_Trans_Demand,$Q$10,FALSE),0)","v":0},{"$f":"SUM(G657:Q657)","v":0},{"$f":"F657-R657","v":0}]
[29,null,"  TOTAL OTHER FEDERAL TAX CREDITS",null,null,{"$f":"SUM(F656:F657)","v":0},{"$f":"SUM(G656:G657)","v":0},{"$f":"SUM(H656:H657)","v":0},{"$f":"SUM(I656:I657)","v":0},{"$f":"SUM(J656:J657)","v":0},0,0,0,0,0,0,{"$f":"SUM($Q$656:$Q$657)","v":0},{"$f":"SUM(R656:R657)","v":0},{"$f":"SUM(S656:S657)","v":0}]
[30]
[31,"PRELIMINARY SUMMARY"]
[32,null,{"$f":"'FR-16(7)(v)-1 Functional'!C661","v":"TOTAL FED DEF IT (410 & 411)"},null,null,{"$f":"F649","v":1551613},{"$f":"G649","v":699436},{"$f":"H649","v":419928},{"$f":"I649","v":2018},{"$f":"J649","v":7960},109,209374,138419,6687,65587,1924,{"$f":"$Q$649","v":171},{"$f":"R649","v":1551613},{"$f":"S649","v":0}]
[33,null,{"$f":"'FR-16(7)(v)-1 Functional'!C662","v":"TOTAL AMORTIZED ITC & OTHER FEDERAL TAX CREDITS"},null,null,{"$f":"-F653-F658","v":-20},{"$f":"-G653-G658","v":-9},-5,0,{"$f":"-J653-J658","v":0},0,-3,-2,0,-1,0,0,-20,0]
[34,null,{"$f":"'FR-16(7)(v)-1 Functional'!C663","v":"  TOTAL FEDERAL TAX ADJUSTMENTS"},null,null,{"$f":"SUM(F661:F662)","v":1551593},{"$f":"SUM(G661:G662)","v":699427},{"$f":"SUM(H661:H662)","v":419923},{"$f":"SUM(I661:I662)","v":2018},{"$f":"SUM(J661:J662)","v":7960},109,209371,138417,6687,65586,1924,{"$f":"SUM($Q$661:$Q$662)","v":171},{"$f":"SUM(R661:R662)","v":1551593},{"$f":"SUM(S661:S662)","v":0}]
[35]
[36,"FEDERAL INCOME TAX COMPUTATION"]
[37,null,"RETURN ON RATE BASE",null,null,{"$f":"F433","v":2821016},{"$f":"G433","v":1271658},{"$f":"H433","v":763480},{"$f":"I433","v":3667},{"$f":"J433","v":14472},197,380668,251663,12159,119244,3498,{"$f":"Q433","v":310},{"$f":"R433","v":2821016},{"$f":"F666-R666","v":0}]
[38,null,{"$f":"'FR-16(7)(v)-1 Functional'!C667","v":"NET DEDUCTIONS AND ADDITIONS"},null,null,{"$f":"-F641","v":-2898192},{"$f":"-G641","v":-1306445},{"$f":"-H641","v":-784367},{"$f":"-I641","v":-3768},{"$f":"-J641","v":-14868},-202,-391083,-258547,-12492,-122506,-3595,{"$f":"-$Q$641","v":-319},{"$f":"-R641","v":-2898192},{"$f":"F667-R667","v":0}]
[39,null,{"$f":"'FR-16(7)(v)-1 Functional'!C668","v":"TOTAL FEDERAL TAX ADJUSTMENTS"},null,null,{"$f":"F663","v":1551593},{"$f":"G663","v":699427},{"$f":"H663","v":419923},{"$f":"I663","v":2018},{"$f":"J663","v":7960},109,209371,138417,6687,65586,1924,{"$f":"$Q$663","v":171},{"$f":"R663","v":1551593},{"$f":"F668-R668","v":0}]
[40,null,"TOTAL STATE PROV DEF IT (410 & 411)",null,null,{"$f":"F707","v":170579},{"$f":"G707","v":76893},{"$f":"H707","v":46166},{"$f":"I707","v":222},{"$f":"J707","v":875},12,23018,15217,735,7210,212,{"$f":"Q707","v":19},{"$f":"R707","v":170579},{"$f":"F669-R669","v":0}]
[41,null,"RESERVED",null,null,{"$f":"F24","v":0},{"$f":"G24","v":0},{"$f":"H24","v":0},{"$f":"I24","v":0},{"$f":"J24","v":0},0,0,0,0,0,0,{"$f":"Q24","v":0},{"$f":"R24","v":0},{"$f":"F670-R670","v":0}]
[42,null,{"$f":"'FR-16(7)(v)-1 Functional'!C671","v":"  BASE FOR FIT COMPUATION"},null,null,{"$f":"SUM(F666:F670)","v":1644996},{"$f":"SUM(G666:G670)","v":741533},{"$f":"SUM(H666:H670)","v":445202},{"$f":"SUM(I666:I670)","v":2139},{"$f":"SUM(J666:J670)","v":8439},116,221974,146750,7089,69534,2039,{"$f":"SUM($Q$666:$Q$670)","v":181},{"$f":"SUM(R666:R670)","v":1644996},{"$f":"SUM(S666:S670)","v":0}]
[43]
[44,null,{"$f":"'FR-16(7)(v)-1 Functional'!C673","v":"FIT FACTOR K190/(1-K190)"},null,null,{"$f":"ROUND(FIT/(1-FIT),9)","v":0.26582278500000001},0.26582278500000001,0.26582278500000001,0.26582278500000001,0.26582278500000001,0.26582278500000001,0.26582278500000001,0.26582278500000001,0.26582278500000001,0.26582278500000001,0.26582278500000001,0.26582278500000001,null,{"$f":"ROUND(R815/(1-R815),9)","v":0.26582278500000001}]
[45,null,{"$f":"'FR-16(7)(v)-1 Functional'!C674","v":"PRELIM FED INCOME TAX"},null,null,{"$f":"ROUND(F673*F671,0)","v":437277},{"$f":"F674-SUM(H674:Q674)","v":197116},{"$f":"ROUND(H671*H673,0)","v":118345},{"$f":"ROUND(I671*I673,0)","v":569},{"$f":"ROUND(J671*J673,0)","v":2243},31,59006,39009,1884,18484,542,{"$f":"ROUND($Q$671*$Q$673,0)","v":48},{"$f":"SUM(G674:Q674)","v":437277},{"$f":"F674-R674","v":0}]
[46,null,{"$f":"'FR-16(7)(v)-1 Functional'!C675","v":"TOTAL FEDERAL TAX ADJUSTMENTS"},null,null,{"$f":"F663","v":1551593},{"$f":"G663","v":699427},{"$f":"H663","v":419923},{"$f":"I663","v":2018},{"$f":"J663","v":7960},109,209371,138417,6687,65586,1924,{"$f":"$Q$663","v":171},{"$f":"R663","v":1551593},{"$f":"F675-R675","v":0}]
[47,null,{"$f":"'FR-16(7)(v)-1 Functional'!C676","v":"  NET FED INCOME TAX ALLOWABLE"},null,null,{"$f":"SUM(F674:F675)","v":1988870},{"$f":"SUM(G674:G675)","v":896543},{"$f":"SUM(H674:H675)","v":538268},{"$f":"SUM(I674:I675)","v":2587},{"$f":"SUM(J674:J675)","v":10203},140,268377,177426,8571,84070,2466,{"$f":"SUM($Q$674:$Q$675)","v":219},{"$f":"SUM(R674:R675)","v":1988870},{"$f":"SUM(S674:S675)","v":0}]
[48]
[49,"INCOME TAX BASED ON RETURN"]
[50,"FEDERAL INCOME TAX PAYABLE"]
[51,null,{"$f":"'FR-16(7)(v)-1 Functional'!C680","v":"PRELIM FEDERAL INCOME TAX"},null,null,{"$f":"F674","v":437277},{"$f":"G674","v":197116},{"$f":"H674","v":118345},{"$f":"I674","v":569},{"$f":"J674","v":2243},31,59006,39009,1884,18484,542,{"$f":"$Q$674","v":48},{"$f":"R674","v":437277},{"$f":"S674","v":0}]
[53,null,{"$f":"'FR-16(7)(v)-1 Functional'!C681","v":"  NET FED INCOME TAX PAYABLE"},null,null,{"$f":"SUM(F680:F680)","v":437277},{"$f":"SUM(G680:G680)","v":197116},{"$f":"SUM(H680:H680)","v":118345},{"$f":"SUM(I680:I680)","v":569},{"$f":"SUM(J680:J680)","v":2243},31,59006,39009,1884,18484,542,{"$f":"SUM($Q$680:$Q$680)","v":48},{"$f":"SUM(R680:R680)","v":437277},{"$f":"SUM(S680:S680)","v":0}]
[]
[{"$f":"co_name","v":"DUKE ENERGY KENTUCKY, INC."},null,null,null,null,null,null,null,null,null,null,null,null,null,null,null,null,{"$f":"R1","v":"FR-16(7)(v)-7"}]
[{"$f":"$A$2","v":"TRANSMISSION DEMAND ALLOCATED - ELECTRIC COST OF SERVICE"},null,null,null,null,null,null,null,null,null,null,null,null,null,null,null,null,{"$f":"R2","v":"WITNESS RESPONSIBLE:"}]
[{"$f":"case_name","v":"CASE NO: 2019-00271"},null,null,null,null,null,null,null,null,null,null,null,null,null,null,null,null,{"$f":"Witness","v":"JAMES E. ZIOLKOWSKI"}]
[{"$f":"data_filing","v":"DATA: 12 MONTHS ACTUAL  & 0 MONTHS ESTIMATED"},null,null,null,null,null,null,null,null,null,null,null,null,null,null,null,null,{"$f":"\"PAGE \"&Pages-5&\" OF \"&Pages","v":"PAGE 13 OF 18"}]
[{"$f":"type","v":"TYPE OF FILING: \"X\" ORIGINAL   UPDATED    REVISED  "}]
[]
[null,null,null,null,null,{"$f":"F$7","v":"TOTAL"},null,{"$f":"H$7","v":"DS"},{"$f":"I$7","v":"GSFL"},{"$f":"J$7","v":"EH"},{"$f":"K$7","v":"SP"},"DT SEC","DT PRI","DP","TT",null,"OTHER"]
["LINE",null,null,null,null,{"$f":"F$8","v":"TRANSMISSION"},{"$f":"G$8","v":"RS"},{"$f":"H$8","v":"SECONDARY"},{"$f":"I$8","v":"SECONDARY"},{"$f":"J$8","v":"SECONDARY"},{"$f":"K$8","v":"SECONDARY"},"SECONDARY","PRIMARY","PRIMARY","TRANSMISSION","LT","WATER",{"$f":"R8","v":"TOTAL"},"ALL"]
["NO.","STATE INCOME TAX BASED ON RETURN",null,"Allo",null,{"$f":"F$9","v":"DEMAND"},{"$f":"G$9","v":"RESIDENTIAL"},{"$f":"H$9","v":"DISTRIBUTION"},{"$f":"I$9","v":"DISTRIBUTION"},{"$f":"J$9","v":"DISTRIBUTION"},{"$f":"K$9","v":"DISTRIBUTION"},"DISTRIBUTION","DISTRIBUTION","DISTRIBUTION","TIME OF DAY","LIGHTING","PUMPING",{"$f":"R9","v":"AT ISSUE"},"OTHER"]
[null,null,"Schedule 9.1",null,null,null,{"$f":"G$10","v":3},{"$f":"H$10","v":4},{"$f":"I$10","v":5},{"$f":"J$10","v":6},{"$f":"K$10","v":7},8,9,10,11,12,13,null," "]
[1,"DEDUCTIONS IN ADDITION TO Y871"]
[2,"KY TAXABLE INCOME ADJUSTMENT",null,{"$f":"'FR-16(7)(v)-1 Functional'!D694","v":"NP29"},null,{"$f":"'FR-16(7)(v)-6 TRANS Classified'!G694","v":404836},{"$f":"F694-SUM(H694:Q694)","v":182492},{"$f":"ROUND(F694*VLOOKUP(D694,ALLOCTABLE_Trans_Demand,$H$10,FALSE),0)","v":109565},{"$f":"ROUND(F694*VLOOKUP(D694,ALLOCTABLE_Trans_Demand,$I$10,FALSE),0)","v":526},{"$f":"ROUND(F694*VLOOKUP(D694,ALLOCTABLE_Trans_Demand,$J$10,FALSE),0)","v":2077},{"$f":"ROUND(F694*VLOOKUP(D694,ALLOCTABLE_Trans_Demand,$K$10,FALSE),0)","v":28},{"$f":"ROUND(F694*VLOOKUP(D694,ALLOCTABLE_Trans_Demand,$L$10,FALSE),0)","v":54629},{"$f":"ROUND(F694*VLOOKUP(D694,ALLOCTABLE_Trans_Demand,$M$10,FALSE),0)","v":36115},{"$f":"ROUND(F694*VLOOKUP(D694,ALLOCTABLE_Trans_Demand,$N$10,FALSE),0)","v":1745},{"$f":"ROUND(F694*VLOOKUP(D694,ALLOCTABLE_Trans_Demand,$O$10,FALSE),0)","v":17112},{"$f":"ROUND(F694*VLOOKUP(D694,ALLOCTABLE_Trans_Demand,$P$10,FALSE),0)","v":502},{"$f":"ROUND(F694*VLOOKUP(D694,ALLOCTABLE_Trans_Demand,$Q$10,FALSE),0)","v":45},{"$f":"SUM(G694:Q694)","v":404836},{"$f":"F694-R694","v":0}]
[3,"RESERVED FOR FUTURE USE",null,{"$f":"'FR-16(7)(v)-1 Functional'!D695","v":"NP29"},null,{"$f":"'FR-16(7)(v)-6 TRANS Classified'!G695","v":0},{"$f":"F695-SUM(H695:Q695)","v":0},{"$f":"ROUND(F695*VLOOKUP(D695,ALLOCTABLE_Trans_Demand,$H$10,FALSE),0)","v":0},{"$f":"ROUND(F695*VLOOKUP(D695,ALLOCTABLE_Trans_Demand,$I$10,FALSE),0)","v":0},{"$f":"ROUND(F695*VLOOKUP(D695,ALLOCTABLE_Trans_Demand,$J$10,FALSE),0)","v":0},{"$f":"ROUND(F695*VLOOKUP(D695,ALLOCTABLE_Trans_Demand,$K$10,FALSE),0)","v":0},{"$f":"ROUND(F695*VLOOKUP(D695,ALLOCTABLE_Trans_Demand,$L$10,FALSE),0)","v":0},{"$f":"ROUND(F695*VLOOKUP(D695,ALLOCTABLE_Trans_Demand,$M$10,FALSE),0)","v":0},{"$f":"ROUND(F695*VLOOKUP(D695,ALLOCTABLE_Trans_Demand,$N$10,FALSE),0)","v":0},{"$f":"ROUND(F695*VLOOKUP(D695,ALLOCTABLE_Trans_Demand,$O$10,FALSE),0)","v":0},{"$f":"ROUND(F695*VLOOKUP(D695,ALLOCTABLE_Trans_Demand,$P$10,FALSE),0)","v":0},{"$f":"ROUND(F695*VLOOKUP(D695,ALLOCTABLE_Trans_Demand,$Q$10,FALSE),0)","v":0},{"$f":"SUM(G695:Q695)","v":0},{"$f":"F695-R695","v":0}]
[4,"  DEDUCTIONS IN ADD TO Y871",null,null,null,{"$f":"SUM(F694:F695)","v":404836},{"$f":"SUM(G694:G695)","v":182492},109565,526,{"$f":"SUM(J694:J695)","v":2077},28,54629,36115,1745,17112,502,45,404836,0]
[5]
[6,"STATE INCOME TAX ADJUSTMENTS"]
[7,"STATE PROV DEF INC TAX (410 & 411)"]
[8,"OTHER DEFERRED INCOME TAXES - NET",null,{"$f":"'FR-16(7)(v)-1 Functional'!D700","v":"A357"},null,{"$f":"'FR-16(7)(v)-6 TRANS Classified'!G700","v":170579},{"$f":"F700-SUM(H700:Q700)","v":76893},{"$f":"ROUND(F700*VLOOKUP(D700,ALLOCTABLE_Trans_Demand,$H$10,FALSE),0)","v":46166},{"$f":"ROUND(F700*VLOOKUP(D700,ALLOCTABLE_Trans_Demand,$I$10,FALSE),0)","v":222},{"$f":"ROUND(F700*VLOOKUP(D700,ALLOCTABLE_Trans_Demand,$J$10,FALSE),0)","v":875},{"$f":"ROUND(F700*VLOOKUP(D700,ALLOCTABLE_Trans_Demand,$K$10,FALSE),0)","v":12},{"$f":"ROUND(F700*VLOOKUP(D700,ALLOCTABLE_Trans_Demand,$L$10,FALSE),0)","v":23018},{"$f":"ROUND(F700*VLOOKUP(D700,ALLOCTABLE_Trans_Demand,$M$10,FALSE),0)","v":15217},{"$f":"ROUND(F700*VLOOKUP(D700,ALLOCTABLE_Trans_Demand,$N$10,FALSE),0)","v":735},{"$f":"ROUND(F700*VLOOKUP(D700,ALLOCTABLE_Trans_Demand,$O$10,FALSE),0)","v":7210},{"$f":"ROUND(F700*VLOOKUP(D700,ALLOCTABLE_Trans_Demand,$P$10,FALSE),0)","v":212},{"$f":"ROUND(F700*VLOOKUP(D700,ALLOCTABLE_Trans_Demand,$Q$10,FALSE),0)","v":19},{"$f":"SUM(G700:Q700)","v":170579},{"$f":"F700-R700","v":0}]
[9,"  TOT STATE PROV DEF IT (410 & 411)",null,null,null,{"$f":"SUM(F700)","v":170579},{"$f":"SUM(G700)","v":76893},46166,222,{"$f":"SUM(J700)","v":875},12,23018,15217,735,7210,212,19,170579,0]
[10]
[11,"OTHER SIT ADJUSTMENTS"]
[12,"CURRENT YEAR PAYABLE ADJUSTMENT",null,{"$f":"'FR-16(7)(v)-1 Functional'!D704","v":"NP29"},null,{"$f":"'FR-16(7)(v)-6 TRANS Classified'!G704","v":0},{"$f":"F704-SUM(H704:Q704)","v":0},{"$f":"ROUND(F704*VLOOKUP(D704,ALLOCTABLE_Trans_Demand,$H$10,FALSE),0)","v":0},{"$f":"ROUND(F704*VLOOKUP(D704,ALLOCTABLE_Trans_Demand,$I$10,FALSE),0)","v":0},{"$f":"ROUND(F704*VLOOKUP(D704,ALLOCTABLE_Trans_Demand,$J$10,FALSE),0)","v":0},{"$f":"ROUND(F704*VLOOKUP(D704,ALLOCTABLE_Trans_Demand,$K$10,FALSE),0)","v":0},{"$f":"ROUND(F704*VLOOKUP(D704,ALLOCTABLE_Trans_Demand,$L$10,FALSE),0)","v":0},{"$f":"ROUND(F704*VLOOKUP(D704,ALLOCTABLE_Trans_Demand,$M$10,FALSE),0)","v":0},{"$f":"ROUND(F704*VLOOKUP(D704,ALLOCTABLE_Trans_Demand,$N$10,FALSE),0)","v":0},{"$f":"ROUND(F704*VLOOKUP(D704,ALLOCTABLE_Trans_Demand,$O$10,FALSE),0)","v":0},{"$f":"ROUND(F704*VLOOKUP(D704,ALLOCTABLE_Trans_Demand,$P$10,FALSE),0)","v":0},{"$f":"ROUND(F704*VLOOKUP(D704,ALLOCTABLE_Trans_Demand,$Q$10,FALSE),0)","v":0},{"$f":"SUM(G704:Q704)","v":0},{"$f":"F704-R704","v":0}]
[13,"  OTHER SIT ADJUSMENTS",null,null,null,{"$f":"SUM(F704)","v":0},{"$f":"SUM(G704)","v":0},{"$f":"SUM(H704)","v":0},{"$f":"SUM(I704)","v":0},{"$f":"SUM(J704)","v":0},0,0,0,0,0,0,{"$f":"SUM(Q704)","v":0},{"$f":"SUM(R704)","v":0},{"$f":"SUM(S704)","v":0}]
[14]
[15,"TOTAL STATE INC TAX ADJUSTMENT",null,null,null,{"$f":"F705+F701","v":170579},{"$f":"G705+G701","v":76893},{"$f":"H705+H701","v":46166},{"$f":"I705+I701","v":222},{"$f":"J705+J701","v":875},12,23018,15217,735,7210,212,{"$f":"Q705+Q701","v":19},{"$f":"R705+R701","v":170579},{"$f":"S705+S701","v":0}]
[16]
[17,"INCOME TAX BASED ON RETURN"]
[18,"SUMMARY OF SIT CALCULATION"]
[19,"RETURN ON RATE BASE",null,null,null,{"$f":"F433","v":2821016},{"$f":"G433","v":1271658},{"$f":"H433","v":763480},{"$f":"I433","v":3667},{"$f":"J433","v":14472},197,380668,251663,12159,119244,3498,{"$f":"Q433","v":310},{"$f":"R433","v":2821016},{"$f":"S433","v":0}]
[20,"NET FED INCOME TAX ALLOWABLE",null,null,null,{"$f":"F676","v":1988870},{"$f":"G676","v":896543},{"$f":"H676","v":538268},{"$f":"I676","v":2587},{"$f":"J676","v":10203},140,268377,177426,8571,84070,2466,{"$f":"Q676","v":219},{"$f":"R676","v":1988870},{"$f":"S676","v":0}]
[21,"NET FED. DED. AND ADDITIONS",null,null,null,{"$f":"-F641","v":-2898192},{"$f":"-G641","v":-1306445},{"$f":"-H641","v":-784367},{"$f":"-I641","v":-3768},{"$f":"-J641","v":-14868},-202,-391083,-258547,-12492,-122506,-3595,{"$f":"-Q641","v":-319},{"$f":"-R641","v":-2898192},{"$f":"-S641","v":0}]
[22,"DEDUCTIONS IN ADD TO Y871",null,null,null,{"$f":"-F696","v":-404836},{"$f":"-G696","v":-182492},{"$f":"-H696","v":-109565},{"$f":"-I696","v":-526},{"$f":"-J696","v":-2077},-28,-54629,-36115,-1745,-17112,-502,{"$f":"-Q696","v":-45},{"$f":"-R696","v":-404836},{"$f":"-S696","v":0}]
[23,"RESERVED",null,null,null,{"$f":"F24","v":0},{"$f":"G24","v":0},{"$f":"H24","v":0},{"$f":"I24","v":0},{"$f":"J24","v":0},0,0,0,0,0,0,{"$f":"Q24","v":0},{"$f":"R24","v":0},{"$f":"S24","v":0}]
[24,"TOTAL STATE INC TAX ADJ",null,null,null,{"$f":"F707","v":170579},{"$f":"G707","v":76893},{"$f":"H707","v":46166},{"$f":"I707","v":222},{"$f":"J707","v":875},12,23018,15217,735,7210,212,{"$f":"Q707","v":19},{"$f":"R707","v":170579},{"$f":"S707","v":0}]
[25,"  BASE FOR SIT COMPUTATION",null,null,null,{"$f":"SUM(F711:F716)","v":1677437},{"$f":"SUM(G711:G716)","v":756157},{"$f":"SUM(H711:H716)","v":453982},{"$f":"SUM(I711:I716)","v":2182},{"$f":"SUM(J711:J716)","v":8605},119,226351,149644,7228,70906,2079,{"$f":"SUM(Q711:Q716)","v":184},{"$f":"SUM(R711:R716)","v":1677437},{"$f":"SUM(S711:S716)","v":0}]
[26]
[27,"SIT FACTOR K192/(1-K192)",null,null,null,{"$f":"ROUND(SIT/(1-SIT),8)","v":5.2282660000000002E-2},5.2282660000000002E-2,5.2282660000000002E-2,5.2282660000000002E-2,5.2282660000000002E-2,5.2282660000000002E-2,5.2282660000000002E-2,5.2282660000000002E-2,5.2282660000000002E-2,5.2282660000000002E-2,5.2282660000000002E-2,5.2282660000000002E-2,5.2282660000000002E-2,5.2282660000000002E-2]
[28,"PRELIMINARY STATE INCOME TAX",null,null,null,{"$f":"ROUND(F717*F719,0)","v":87701},{"$f":"F720-SUM(H720:Q720)","v":39534},{"$f":"ROUND(H717*H719,0)","v":23735},{"$f":"ROUND(I717*I719,0)","v":114},{"$f":"ROUND(J717*J719,0)","v":450},6,11834,7824,378,3707,109,{"$f":"ROUND(Q717*Q719,0)","v":10},{"$f":"SUM(G720:Q720)","v":87701},{"$f":"F720-R720","v":0}]
[29,"TOTAL STATE INCOME TAX ADJ.",null,null,null,{"$f":"F707","v":170579},{"$f":"G707","v":76893},{"$f":"H707","v":46166},{"$f":"I707","v":222},{"$f":"J707","v":875},12,23018,15217,735,7210,212,{"$f":"Q707","v":19},{"$f":"SUM(G721:Q721)","v":170579},{"$f":"F721-R721","v":0}]
[30,"  NET STATE INC TAX ALLOWABLE",null,null,null,{"$f":"F721+F720","v":258280},116427,69901,336,{"$f":"J721+J720","v":1325},18,34852,23041,1113,10917,321,29,258280,{"$f":"S721+S720","v":0}]
[31]
[32,"STATE INCOME TAX PAYABLE"]
[33,"PRELIMINARY STATE INCOME TAX",null,null,null,{"$f":"F720","v":87701},{"$f":"G720","v":39534},{"$f":"H720","v":23735},{"$f":"I720","v":114},{"$f":"J720","v":450},6,11834,7824,378,3707,109,{"$f":"Q720","v":10},{"$f":"SUM(G725:Q725)","v":87701},{"$f":"F725-R725","v":0}]
[34,"OTHER SIT ADJUSTMENTS",null,null,null,{"$f":"F705","v":0},{"$f":"G705","v":0},{"$f":"H705","v":0},{"$f":"I705","v":0},{"$f":"J705","v":0},0,0,0,0,0,0,{"$f":"Q705","v":0},{"$f":"SUM(G726:Q726)","v":0},{"$f":"F726-R726","v":0}]
[35,"  NET STATE INCOME TAX PAYABLE",null,null,null,{"$f":"F725+F726","v":87701},39534,23735,114,{"$f":"J725+J726","v":450},6,11834,7824,378,3707,109,10,87701,{"$f":"S725+S726","v":0}]
[36]
[37,"COMPOSITE TAX RATE",null,null,null,{"$f":"(SIT*(1-FIT))+((1-SIT)*(1-FIT)*RevTax)+FIT","v":0.24925115},0.24925115,0.24925115,0.24925115,0.24925115,0.24925115,0.24925115,0.24925115,0.24925115,0.24925115,0.24925115,0.24925115,0.24925115,0.24925115]
[]
[{"$f":"co_name","v":"DUKE ENERGY KENTUCKY, INC."},null,null,null,null,null,null,null,null,null,null,null,null,null,null,null,null,{"$f":"R1","v":"FR-16(7)(v)-7"}]
[{"$f":"$A$2","v":"TRANSMISSION DEMAND ALLOCATED - ELECTRIC COST OF SERVICE"},null,null,null,null,null,null,null,null,null,null,null,null,null,null,null,null,{"$f":"R2","v":"WITNESS RESPONSIBLE:"}]
[{"$f":"case_name","v":"CASE NO: 2019-00271"},null,null,null,null,null,null,null,null,null,null,null,null,null,null,null,null,{"$f":"Witness","v":"JAMES E. ZIOLKOWSKI"}]
[{"$f":"data_filing","v":"DATA: 12 MONTHS ACTUAL  & 0 MONTHS ESTIMATED"},null,null,null,null,null,null,null,null,null,null,null,null,null,null,null,null,{"$f":"\"PAGE \"&Pages-4&\" OF \"&Pages","v":"PAGE 14 OF 18"}]
[{"$f":"type","v":"TYPE OF FILING: \"X\" ORIGINAL   UPDATED    REVISED  "}]
[]
[null,null,null,null,null,{"$f":"F$7","v":"TOTAL"},null,{"$f":"H$7","v":"DS"},{"$f":"I$7","v":"GSFL"},{"$f":"J$7","v":"EH"},{"$f":"K$7","v":"SP"},"DT SEC","DT PRI","DP","TT",null,"OTHER"]
["LINE",null,null,null,null,{"$f":"F$8","v":"TRANSMISSION"},{"$f":"G$8","v":"RS"},{"$f":"H$8","v":"SECONDARY"},{"$f":"I$8","v":"SECONDARY"},{"$f":"J$8","v":"SECONDARY"},{"$f":"K$8","v":"SECONDARY"},"SECONDARY","PRIMARY","PRIMARY","TRANSMISSION","LT","WATER",{"$f":"R8","v":"TOTAL"},"ALL"]
["NO.","COST OF SERVICE COMPUTATION",null,"ALLO",null,{"$f":"F$9","v":"DEMAND"},{"$f":"G$9","v":"RESIDENTIAL"},{"$f":"H$9","v":"DISTRIBUTION"},{"$f":"I$9","v":"DISTRIBUTION"},{"$f":"J$9","v":"DISTRIBUTION"},{"$f":"K$9","v":"DISTRIBUTION"},"DISTRIBUTION","DISTRIBUTION","DISTRIBUTION","TIME OF DAY","LIGHTING","PUMPING",{"$f":"R9","v":"AT ISSUE"},"OTHER"]
[null,null,"Schedule 10",null,null,null,{"$f":"G$10","v":3},{"$f":"H$10","v":4},{"$f":"I$10","v":5},{"$f":"J$10","v":6},{"$f":"K$10","v":7},8,9,10,11,12,13,null," "]
[1,"OTHER OPERATING REVENUES"]
[2,null,{"$f":"'FR-16(7)(v)-1 Functional'!C742","v":"MISC SERVICE REVENUE"},{"$f":"'FR-16(7)(v)-1 Functional'!D742","v":"D249"},null,{"$f":"'FR-16(7)(v)-6 TRANS Classified'!G742","v":0},{"$f":"F742-SUM(H742:Q742)","v":0},{"$f":"ROUND(F742*VLOOKUP(D742,ALLOCTABLE_Trans_Demand,$H$10,FALSE),0)","v":0},{"$f":"ROUND(F742*VLOOKUP(D742,ALLOCTABLE_Trans_Demand,$I$10,FALSE),0)","v":0},{"$f":"ROUND(F742*VLOOKUP(D742,ALLOCTABLE_Trans_Demand,$J$10,FALSE),0)","v":0},{"$f":"ROUND(F742*VLOOKUP(D742,ALLOCTABLE_Trans_Demand,$K$10,FALSE),0)","v":0},{"$f":"ROUND(F742*VLOOKUP(D742,ALLOCTABLE_Trans_Demand,$L$10,FALSE),0)","v":0},{"$f":"ROUND(F742*VLOOKUP(D742,ALLOCTABLE_Trans_Demand,$M$10,FALSE),0)","v":0},{"$f":"ROUND(F742*VLOOKUP(D742,ALLOCTABLE_Trans_Demand,$N$10,FALSE),0)","v":0},{"$f":"ROUND(F742*VLOOKUP(D742,ALLOCTABLE_Trans_Demand,$O$10,FALSE),0)","v":0},{"$f":"ROUND(F742*VLOOKUP(D742,ALLOCTABLE_Trans_Demand,$P$10,FALSE),0)","v":0},{"$f":"ROUND(F742*VLOOKUP(D742,ALLOCTABLE_Trans_Demand,$Q$10,FALSE),0)","v":0},{"$f":"SUM(G742:Q742)","v":0},{"$f":"F742-R742","v":0}]
[3,null,{"$f":"'FR-16(7)(v)-1 Functional'!C743","v":"INTERDEPARTMENTAL"},{"$f":"'FR-16(7)(v)-1 Functional'!D743","v":"K902"},null,{"$f":"'FR-16(7)(v)-6 TRANS Classified'!G743","v":0},0,0,0,0,0,0,0,0,0,0,0,0,0]
[4,null,{"$f":"'FR-16(7)(v)-1 Functional'!C744","v":"POLE & LINE ATTACHMENTS"},{"$f":"'FR-16(7)(v)-1 Functional'!D744","v":"D249"},null,{"$f":"'FR-16(7)(v)-6 TRANS Classified'!G744","v":0},0,0,0,0,0,0,0,0,0,0,0,0,0]
[5,null,{"$f":"'FR-16(7)(v)-1 Functional'!C745","v":"RENTS"},{"$f":"'FR-16(7)(v)-1 Functional'!D745","v":"D249"},null,{"$f":"'FR-16(7)(v)-6 TRANS Classified'!G745","v":0},0,0,0,0,0,0,0,0,0,0,0,0,0]
[6,null,{"$f":"'FR-16(7)(v)-1 Functional'!C746","v":"TRANSMISSION CHARGE PTP"},{"$f":"'FR-16(7)(v)-1 Functional'!D746","v":"T229"},null,{"$f":"'FR-16(7)(v)-6 TRANS Classified'!G746","v":144996},{"$f":"F746-SUM(H746:Q746)","v":65361},39242,188,744,10,19566,12935,625,6129,180,{"$f":"ROUND(F746*VLOOKUP(D746,ALLOCTABLE_Trans_Demand,$Q$10,FALSE),0)","v":16},144996,0]
[7,null,{"$f":"'FR-16(7)(v)-1 Functional'!C747","v":"PJM REACTIVE REVENUE"},{"$f":"'FR-16(7)(v)-1 Functional'!D747","v":"K401"},null,{"$f":"'FR-16(7)(v)-6 TRANS Classified'!G747","v":0},{"$f":"F747-SUM(H747:Q747)","v":0},0,0,0,0,0,0,0,0,0,{"$f":"ROUND(F747*VLOOKUP(D747,ALLOCTABLE_Trans_Demand,$Q$10,FALSE),0)","v":0},0,0]
[8,null,{"$f":"'FR-16(7)(v)-1 Functional'!C748","v":"OTHER TRANSMISSION REVENUES"},{"$f":"'FR-16(7)(v)-1 Functional'!D748","v":"T229"},null,{"$f":"'FR-16(7)(v)-6 TRANS Classified'!G748","v":24504},{"$f":"F748-SUM(H748:Q748)","v":11044},6632,32,126,2,3307,2186,106,1036,30,{"$f":"ROUND(F748*VLOOKUP(D748,ALLOCTABLE_Trans_Demand,$Q$10,FALSE),0)","v":3},24504,0]
[9,null,{"$f":"'FR-16(7)(v)-1 Functional'!C749","v":"FIXED BILL PREMIUM"},{"$f":"'FR-16(7)(v)-1 Functional'!D749","v":"K902"},null,{"$f":"'FR-16(7)(v)-6 TRANS Classified'!G749","v":0},0,0,0,0,0,0,0,0,0,0,0,0,0]
[10,null,{"$f":"'FR-16(7)(v)-1 Functional'!C750","v":"  TOTAL OTHER OPERATING REVS"},null,null,{"$f":"SUM(F742:F749)","v":169500},{"$f":"SUM(G742:G749)","v":76405},{"$f":"SUM(H742:H749)","v":45874},{"$f":"SUM(I742:I749)","v":220},{"$f":"SUM(J742:J749)","v":870},12,22873,15121,731,7165,210,{"$f":"SUM($Q$742:$Q$749)","v":19},{"$f":"SUM(R742:R749)","v":169500},{"$f":"SUM(S742:S749)","v":0}]
[11]
[12,"COST OF SERVICE COMPUTATION"]
[13,null,{"$f":"'FR-16(7)(v)-1 Functional'!C753","v":"TOTAL OP EXP EXC INC & REV TAX"},null,null,{"$f":"F618","v":28303811},{"$f":"G618","v":12758644},{"$f":"H618","v":7660207},{"$f":"I618","v":36797},{"$f":"J618","v":145184},1982,3819369,2525003,121991,1196404,35116,{"$f":"$Q$618","v":3114},{"$f":"R618","v":28303811},{"$f":"S618","v":0}]
[14,null,"RETURN ON RATE BASE",null,null,{"$f":"F433","v":2821016},{"$f":"G433","v":1271658},{"$f":"H433","v":763480},{"$f":"I433","v":3667},{"$f":"J433","v":14472},197,380668,251663,12159,119244,3498,{"$f":"Q433","v":310},{"$f":"R433","v":2821016},{"$f":"S433","v":0}]
[15,null,{"$f":"'FR-16(7)(v)-1 Functional'!C755","v":"NET FED INCOME TAX ALLOWABLE"},null,null,{"$f":"F676","v":1988870},{"$f":"G676","v":896543},{"$f":"H676","v":538268},{"$f":"I676","v":2587},{"$f":"J676","v":10203},140,268377,177426,8571,84070,2466,{"$f":"$Q$676","v":219},{"$f":"R676","v":1988870},{"$f":"S676","v":0}]
[16,null,{"$f":"'FR-16(7)(v)-1 Functional'!C756","v":"NET STATE INCOME TAX ALLOWABLE"},null,null,{"$f":"F722","v":258280},{"$f":"G722","v":116427},69901,336,{"$f":"J722","v":1325},18,34852,23041,1113,10917,321,29,258280,0]
[17,null,{"$f":"'FR-16(7)(v)-1 Functional'!C757","v":"TOTAL OTHER OPERATING REVENUES"},null,null,{"$f":"-F750","v":-169500},{"$f":"-G750","v":-76405},{"$f":"-H750","v":-45874},{"$f":"-I750","v":-220},{"$f":"-J750","v":-870},-12,-22873,-15121,-731,-7165,-210,{"$f":"-$Q$750","v":-19},{"$f":"-R750","v":-169500},{"$f":"-S750","v":0}]
[18,null,{"$f":"'FR-16(7)(v)-1 Functional'!C758","v":"  SUBTOTAL B"},null,null,{"$f":"SUM(F752:F757)","v":33202477},{"$f":"SUM(G752:G757)","v":14966867},{"$f":"SUM(H752:H757)","v":8985982},{"$f":"SUM(I752:I757)","v":43167},{"$f":"SUM(J752:J757)","v":170314},2325,4480393,2962012,143103,1403470,41191,{"$f":"SUM($Q$752:$Q$757)","v":3653},{"$f":"SUM(R752:R757)","v":33202477},{"$f":"R758-F758","v":0}]
[19]
[20,null,{"$f":"'FR-16(7)(v)-1 Functional'!C760","v":"TOTAL OTHER OPERATING REVENUES"},null,null,{"$f":"-F757","v":169500},{"$f":"-G757","v":76405},{"$f":"-H757","v":45874},{"$f":"-I757","v":220},{"$f":"-J757","v":870},12,22873,15121,731,7165,210,{"$f":"-$Q$757","v":19},{"$f":"-R757","v":169500},{"$f":"-S757","v":0}]
[21,null,{"$f":"'FR-16(7)(v)-1 Functional'!C761","v":"LESS: REVS EXCL FROM REV TAX CALC"},null,null,{"$f":"F989","v":0},{"$f":"G989","v":0},{"$f":"H989","v":0},{"$f":"I989","v":0},{"$f":"J989","v":0},0,0,0,0,0,0,{"$f":"Q989","v":0},{"$f":"R989","v":0},{"$f":"S989","v":0}]
[22,null,{"$f":"'FR-16(7)(v)-1 Functional'!C762","v":"OTHER OPERATING REVS TO BE TAXED"},null,null,{"$f":"F760-F761","v":169500},{"$f":"G760-G761","v":76405},{"$f":"H760-H761","v":45874},{"$f":"I760-I761","v":220},{"$f":"J760-J761","v":870},12,22873,15121,731,7165,210,{"$f":"$Q$760-Q761","v":19},{"$f":"R760-R761","v":169500},{"$f":"S760-S761","v":0}]
[23]
[24,null,{"$f":"'FR-16(7)(v)-1 Functional'!C764","v":"REVENUE TAX FACTOR"},null,null,{"$f":"ROUND(F817/(1-F817),8)","v":0},0,0,0,{"$f":"ROUND(J817/(1-J817),8)","v":0},0,0,0,0,0,0,0,0,0]
[25,null,{"$f":"'FR-16(7)(v)-1 Functional'!C765","v":"REVENUE TAX ON OTHER OPER. REVS"},null,null,{"$f":"ROUND(F764*F762,0)","v":0},{"$f":"ROUND(G764*G762,0)","v":0},{"$f":"ROUND(H764*H762,0)","v":0},{"$f":"ROUND(I764*I762,0)","v":0},{"$f":"ROUND(J764*J762,0)","v":0},0,0,0,0,0,0,{"$f":"ROUND(Q764*Q762,0)","v":0},{"$f":"SUM(G765:Q765)","v":0},{"$f":"ROUND(S764*S762,0)","v":0}]
[26,null,{"$f":"'FR-16(7)(v)-1 Functional'!C766","v":"REVENUE TAX ON COST OF SERVICE"},null,null,{"$f":"ROUND(F764*F758,0)","v":0},{"$f":"ROUND(G764*G758,0)","v":0},{"$f":"ROUND(H764*H758,0)","v":0},{"$f":"ROUND(I764*I758,0)","v":0},{"$f":"ROUND(J764*J758,0)","v":0},0,0,0,0,0,0,{"$f":"ROUND(Q764*$Q$758,0)","v":0},{"$f":"SUM(G766:Q766)","v":0},{"$f":"ROUND(S764*S758,0)","v":0}]
[27,null,{"$f":"'FR-16(7)(v)-1 Functional'!C767","v":"TOTAL REVENUE TAX"},null,null,{"$f":"F766+F765","v":0},{"$f":"G766+G765","v":0},{"$f":"H766+H765","v":0},{"$f":"I766+I765","v":0},{"$f":"J766+J765","v":0},0,0,0,0,0,0,{"$f":"Q766+Q765","v":0},{"$f":"R766+R765","v":0},{"$f":"S766+S765","v":0}]
[28]
[29,null,"RESERVED",null,null,{"$f":"F24","v":0},{"$f":"G24","v":0},{"$f":"H24","v":0},{"$f":"I24","v":0},{"$f":"J24","v":0},0,0,0,0,0,0,{"$f":"Q24","v":0},{"$f":"R24","v":0}]
[30,null,{"$f":"'FR-16(7)(v)-1 Functional'!C770","v":"  TOTAL ELECTRIC COST OF SERVICE"},null,null,{"$f":"F769+F767+F758","v":33202477},14966867,8985982,43167,170314,2325,4480393,2962012,143103,1403470,41191,3653,33202477,{"$f":"S767+S758","v":0}]
[31]
[32,"PROPOSED REVENUES",null,null,null,{"$f":"F868","v":16524428},{"$f":"G868","v":7448882},{"$f":"H868","v":4472171},{"$f":"I868","v":21482},{"$f":"J868","v":84770},1157,2229806,1474144,71220,698488,20490,{"$f":"Q868","v":1818},{"$f":"R868","v":16524428},{"$f":"S868","v":0}]
[33,"TOTAL ELECTRIC COST OF SERVICE",null,null,null,{"$f":"-F770","v":-33202477},{"$f":"-G770","v":-14966867},{"$f":"-H770","v":-8985982},{"$f":"-I770","v":-43167},{"$f":"-J770","v":-170314},-2325,-4480393,-2962012,-143103,-1403470,-41191,{"$f":"-Q770","v":-3653},{"$f":"-R770","v":-33202477},{"$f":"-S770","v":0}]
[34,"EXCESS REVENUES",null,null,null,{"$f":"F773+F772","v":-16678049},{"$f":"G773+G772","v":-7517985},{"$f":"H773+H772","v":-4513811},{"$f":"I773+I772","v":-21685},{"$f":"J773+J772","v":-85544},-1168,-2250587,-1487868,-71883,-704982,-20701,{"$f":"Q773+Q772","v":-1835},{"$f":"SUM(G774:Q774)","v":-16678049},{"$f":"F774-R774","v":0}]
[35,"COMPOSITE TAX RATE",null,null,null,{"$f":"F729","v":0.24925115},{"$f":"G729","v":0.24925115},0.24925115,0.24925115,{"$f":"J729","v":0.24925115},0.24925115,0.24925115,0.24925115,0.24925115,0.24925115,0.24925115,0.24925115,0.24925115,0.24925115]
[36,"EXCESS TAX",null,null,null,{"$f":"'FR-16(7)(v)-6 TRANS Classified'!G776","v":-4157023},{"$f":"F776-SUM(H776:Q776)","v":-1873866},{"$f":"ROUND(H775*H774,0)","v":-1125073},{"$f":"ROUND(I775*I774,0)","v":-5405},{"$f":"ROUND(J775*J774,0)","v":-21322},-291,-560961,-370853,-17917,-175718,-5160,{"$f":"ROUND(Q775*Q774,0)","v":-457},{"$f":"SUM(G776:Q776)","v":-4157023},{"$f":"F776-R776","v":0}]
[37,"EXCESS RETURN",null,null,null,{"$f":"F774-F776","v":-12521026},{"$f":"G774-G776","v":-5644119},{"$f":"H774-H776","v":-3388738},{"$f":"I774-I776","v":-16280},{"$f":"J774-J776","v":-64222},-877,-1689626,-1117015,-53966,-529264,-15541,{"$f":"Q774-Q776","v":-1378},{"$f":"SUM(G777:Q777)","v":-12521026},{"$f":"F777-R777","v":0}]
[]
[{"$f":"co_name","v":"DUKE ENERGY KENTUCKY, INC."},null,null,null,null,null,null,null,null,null,null,null,null,null,null,null,null,{"$f":"R1","v":"FR-16(7)(v)-7"}]
[{"$f":"$A$2","v":"TRANSMISSION DEMAND ALLOCATED - ELECTRIC COST OF SERVICE"},null,null,null,null,null,null,null,null,null,null,null,null,null,null,null,null,{"$f":"R2","v":"WITNESS RESPONSIBLE:"}]
[{"$f":"case_name","v":"CASE NO: 2019-00271"},null,null,null,null,null,null,null,null,null,null,null,null,null,null,null,null,{"$f":"Witness","v":"JAMES E. ZIOLKOWSKI"}]
[{"$f":"data_filing","v":"DATA: 12 MONTHS ACTUAL  & 0 MONTHS ESTIMATED"},null,null,null,null,null,null,null,null,null,null,null,null,null,null,null,null,{"$f":"\"PAGE \"&Pages-3&\" OF \"&Pages","v":"PAGE 15 OF 18"}]
[{"$f":"type","v":"TYPE OF FILING: \"X\" ORIGINAL   UPDATED    REVISED  "}]
[]
[null,null,null,null,null,{"$f":"F$7","v":"TOTAL"},null,{"$f":"H$7","v":"DS"},{"$f":"I$7","v":"GSFL"},{"$f":"J$7","v":"EH"},{"$f":"K$7","v":"SP"},"DT SEC","DT PRI","DP","TT",null,"OTHER"]
["LINE",null,null,null,null,{"$f":"F$8","v":"TRANSMISSION"},{"$f":"G$8","v":"RS"},{"$f":"H$8","v":"SECONDARY"},{"$f":"I$8","v":"SECONDARY"},{"$f":"J$8","v":"SECONDARY"},{"$f":"K$8","v":"SECONDARY"},"SECONDARY","PRIMARY","PRIMARY","TRANSMISSION","LT","WATER",{"$f":"R8","v":"TOTAL"},"ALL"]
["NO.","ROR, TAX RATES & SPEC FACTORS",null,"ALLO",null,{"$f":"F$9","v":"DEMAND"},{"$f":"G$9","v":"RESIDENTIAL"},{"$f":"H$9","v":"DISTRIBUTION"},{"$f":"I$9","v":"DISTRIBUTION"},{"$f":"J$9","v":"DISTRIBUTION"},{"$f":"K$9","v":"DISTRIBUTION"},"DISTRIBUTION","DISTRIBUTION","DISTRIBUTION","TIME OF DAY","LIGHTING","PUMPING",{"$f":"R9","v":"AT ISSUE"},"OTHER"]
[null,null,"Schedule 11",null,null,null,{"$f":"G$10","v":3},{"$f":"H$10","v":4},{"$f":"I$10","v":5},{"$f":"J$10","v":6},{"$f":"K$10","v":7},8,9,10,11,12,13,null," "]
[1,"RATE OF RETURN"]
[2," CAPITALIZATION AMOUNTS",null,null,null,null,"RATIO"]
[3,null,{"$f":"'FR-16(7)(v)-1 Functional'!C791","v":"LONG TERM DEBT"},null,null,{"$f":"'FR-16(7)(v)-6 TRANS Classified'!$F$791","v":665948506},{"$f":"IF(TotalCap=0,0,ROUND(F791/TotalCap,4))","v":0.45929999999999999}]
[4,null,{"$f":"'FR-16(7)(v)-1 Functional'!C792","v":"PREFERRED STOCK"},null,null,{"$f":"'FR-16(7)(v)-6 TRANS Classified'!$F$792","v":0},{"$f":"IF(TotalCap=0,0,ROUND(F792/TotalCap,4))","v":0}]
[5,null,{"$f":"'FR-16(7)(v)-1 Functional'!C793","v":"COMMON STOCK"},null,null,{"$f":"[0]!Equity","v":699348680},{"$f":"1-G791-G792-G794-G795","v":0.48239999999999994}]
[6,null,{"$f":"'FR-16(7)(v)-1 Functional'!C794","v":"SHORT TERM DEBT"},null,null,{"$f":"'FR-16(7)(v)-6 TRANS Classified'!$F$794","v":84600060},{"$f":"IF(TotalCap=0,0,ROUND(F794/TotalCap,4))","v":5.8299999999999998E-2}]
[7,null,{"$f":"'FR-16(7)(v)-1 Functional'!C795","v":"UNAMORTIZED DISCOUNT"},null,null,{"$f":"'FR-16(7)(v)-6 TRANS Classified'!$F$795","v":0},{"$f":"IF(TotalCap=0,0,ROUND(F795/TotalCap,4))","v":0}]
[8,null,{"$f":"'FR-16(7)(v)-1 Functional'!C796","v":"  TOTAL"},null,null,{"$f":"SUM(F790:F795)","v":1449897246},{"$f":"SUM(G791:G795)","v":1}]
[9]
[10," COST OF CAPITAL"]
[11,null,{"$f":"'FR-16(7)(v)-1 Functional'!C799","v":"LONG TERM DEBT"},null,null,{"$f":"'FR-16(7)(v)-6 TRANS Classified'!$F$799","v":4.0730000000000002E-2}]
[12,null,{"$f":"'FR-16(7)(v)-1 Functional'!C800","v":"PREFERRED STOCK"},null,null,{"$f":"'FR-16(7)(v)-6 TRANS Classified'!$F$800","v":0}]
[13,null,{"$f":"'FR-16(7)(v)-1 Functional'!C801","v":"COMMON STOCK"},null,null,{"$f":"'FR-16(7)(v)-6 TRANS Classified'!$F$801","v":9.8000000000000004E-2}]
[14,null,{"$f":"'FR-16(7)(v)-1 Functional'!C802","v":"SHORT TERM DEBT"},null,null,{"$f":"'FR-16(7)(v)-6 TRANS Classified'!$F$802","v":1.9369999999999998E-2}]
[15,null,{"$f":"'FR-16(7)(v)-1 Functional'!C803","v":"UNAMORTIZED DISCOUNT"},null,null,{"$f":"'FR-16(7)(v)-6 TRANS Classified'!$F$803","v":0}]
[16]
[17," WEIGHTED COST OF CAPITAL"]
[18,null,{"$f":"'FR-16(7)(v)-1 Functional'!C806","v":"LONG TERM DEBT"},null,null,{"$f":"ROUND(G791*F799,4)","v":1.8700000000000001E-2}]
[19,null,{"$f":"'FR-16(7)(v)-1 Functional'!C807","v":"PREFERRED STOCK"},null,null,{"$f":"ROUND(G792*F800,4)","v":0}]
[20,null,{"$f":"'FR-16(7)(v)-1 Functional'!C808","v":"COMMON STOCK"},null,null,{"$f":"ROUND(G793*F801,4)","v":4.7300000000000002E-2}]
[21,null,{"$f":"'FR-16(7)(v)-1 Functional'!C809","v":"SHORT TERM DEBT"},null,null,{"$f":"ROUND(G794*F802,4)","v":1.1000000000000001E-3}]
[22,null,{"$f":"'FR-16(7)(v)-1 Functional'!C810","v":"UNAMORTIZED DISCOUNT"},null,null,{"$f":"ROUND(G795*F803,4)","v":0}]
[23,null,{"$f":"'FR-16(7)(v)-1 Functional'!C811","v":"  TOT RATE OF RETURN ALLOWABLE"},null,null,{"$f":"SUM(F806:F810)","v":6.7100000000000007E-2}]
[24]
[25,"TAX RATES AND SPECIAL FACTORS"]
[26,null,{"$f":"'FR-16(7)(v)-1 Functional'!C814","v":"SHORT TERM DEBT COST"},null,null,0,{"$f":"F814","v":0},{"$f":"F814","v":0},{"$f":"F814","v":0},{"$f":"G814","v":0},0,0,0,0,0,0,{"$f":"$F$814","v":0},{"$f":"F814","v":0},{"$f":"F814","v":0}]
[27,null,{"$f":"'FR-16(7)(v)-1 Functional'!C815","v":"FEDERAL INCOME TAX RATE"},null,null,{"$f":"FIT","v":0.21},{"$f":"FIT","v":0.21},0.21,0.21,0.21,0.21,0.21,0.21,0.21,0.21,0.21,0.21,0.21,0.21]
[28,null,{"$f":"'FR-16(7)(v)-1 Functional'!C816","v":"STATE INCOME TAX RATE"},null,null,{"$f":"SIT","v":4.9685000000000007E-2},{"$f":"SIT","v":4.9685000000000007E-2},4.9685000000000007E-2,4.9685000000000007E-2,4.9685000000000007E-2,4.9685000000000007E-2,4.9685000000000007E-2,4.9685000000000007E-2,4.9685000000000007E-2,4.9685000000000007E-2,4.9685000000000007E-2,4.9685000000000007E-2,4.9685000000000007E-2,4.9685000000000007E-2]
[29,null,{"$f":"'FR-16(7)(v)-1 Functional'!C817","v":"REVENUE TAX RATE"},null,null,0,{"$f":"RevTax","v":0},0,0,0,0,0,0,0,0,0,0,0,0]
[]
[{"$f":"co_name","v":"DUKE ENERGY KENTUCKY, INC."},null,null,null,null,null,null,null,null,null,null,null,null,null,null,null,null,{"$f":"R1","v":"FR-16(7)(v)-7"}]
[{"$f":"$A$2","v":"TRANSMISSION DEMAND ALLOCATED - ELECTRIC COST OF SERVICE"},null,null,null,null,null,null,null,null,null,null,null,null,null,null,null,null,{"$f":"R2","v":"WITNESS RESPONSIBLE:"}]
[{"$f":"case_name","v":"CASE NO: 2019-00271"},null,null,null,null,null,null,null,null,null,null,null,null,null,null,null,null,{"$f":"Witness","v":"JAMES E. ZIOLKOWSKI"}]
[{"$f":"data_filing","v":"DATA: 12 MONTHS ACTUAL  & 0 MONTHS ESTIMATED"},null,null,null,null,null,null,null,null,null,null,null,null,null,null,null,null,{"$f":"\"PAGE \"&Pages-2&\" OF \"&Pages","v":"PAGE 16 OF 18"}]
[{"$f":"type","v":"TYPE OF FILING: \"X\" ORIGINAL   UPDATED    REVISED  "}]
[]
[null,null,null,null,null,{"$f":"F$7","v":"TOTAL"},null,{"$f":"H$7","v":"DS"},{"$f":"I$7","v":"GSFL"},{"$f":"J$7","v":"EH"},{"$f":"K$7","v":"SP"},"DT SEC","DT PRI","DP","TT",null,"OTHER"]
["LINE",null,null,null,null,{"$f":"F$8","v":"TRANSMISSION"},{"$f":"G$8","v":"RS"},{"$f":"H$8","v":"SECONDARY"},{"$f":"I$8","v":"SECONDARY"},{"$f":"J$8","v":"SECONDARY"},{"$f":"K$8","v":"SECONDARY"},"SECONDARY","PRIMARY","PRIMARY","TRANSMISSION","LT","WATER",{"$f":"R8","v":"TOTAL"},"ALL",null,null,null,"RATE GRP"]
["NO.","ALLOCATORS",null,"SOURCE","ALLO",{"$f":"F$9","v":"DEMAND"},{"$f":"G$9","v":"RESIDENTIAL"},{"$f":"H$9","v":"DISTRIBUTION"},{"$f":"I$9","v":"DISTRIBUTION"},{"$f":"J$9","v":"DISTRIBUTION"},{"$f":"K$9","v":"DISTRIBUTION"},"DISTRIBUTION","DISTRIBUTION","DISTRIBUTION","TIME OF DAY","LIGHTING","PUMPING",{"$f":"R9","v":"AT ISSUE"},"OTHER",null,null,null,"CHECK"]
[null,null,"Schedule 12",null,1,null,{"$f":"G$10","v":3},{"$f":"H$10","v":4},{"$f":"I$10","v":5},{"$f":"J$10","v":6},{"$f":"K$10","v":7},8,9,10,11,12,13,null," "]
[1,"DEMAND ENERGY & SPEC. ASSIGN"]
[2,null,"TOTAL KW (12 COIN PEAK) - PRODUCTION","External",null,{"$f":"'WP FR-16(7)(v)-KW & KWH @Gen'!D38","v":717751},{"$f":"'WP FR-16(7)(v)-KW & KWH @Gen'!D17","v":323558},{"$f":"'WP FR-16(7)(v)-KW & KWH @Gen'!D18+'WP FR-16(7)(v)-KW & KWH @Gen'!D31","v":194251},{"$f":"'WP FR-16(7)(v)-KW & KWH @Gen'!D19","v":933},{"$f":"'WP FR-16(7)(v)-KW & KWH @Gen'!D20","v":3682},{"$f":"'WP FR-16(7)(v)-KW & KWH @Gen'!D21","v":51},{"$f":"'WP FR-16(7)(v)-KW & KWH @Gen'!D22+'WP FR-16(7)(v)-KW & KWH @Gen'!D32","v":96851},{"$f":"'WP FR-16(7)(v)-KW & KWH @Gen'!D23","v":64029},{"$f":"'WP FR-16(7)(v)-KW & KWH @Gen'!D24","v":3090},{"$f":"'WP FR-16(7)(v)-KW & KWH @Gen'!D25+'WP FR-16(7)(v)-KW & KWH @Gen'!D35","v":30336},{"$f":"'WP FR-16(7)(v)-KW & KWH @Gen'!D26","v":891},{"$f":"'WP FR-16(7)(v)-KW & KWH @Gen'!D27","v":79},{"$f":"SUM(G830:Q830)","v":717751},{"$f":"F830-R830","v":0}]
[3,null,{"$f":"'FR-16(7)(v)-1 Functional'!C831","v":"RATIO TO TOTAL ELECTRIC"},null,{"$f":"'FR-16(7)(v)-1 Functional'!E831","v":"K201"},{"$f":"IF($F830=0,0,ROUND(F830/$F830,5))","v":1},{"$f":"IF(S830=0,F831-SUM(H831:Q831),ROUND(G830/F830,5))","v":0.45077999999999985},{"$f":"IF($F$830=0,0,ROUND(H830/$F$830,5))","v":0.27063999999999999},{"$f":"IF($F$830=0,0,ROUND(I830/$F$830,5))","v":1.2999999999999999E-3},5.13E-3,6.9999999999999994E-5,0.13494,8.9209999999999998E-2,4.3099999999999996E-3,4.2270000000000002E-2,1.24E-3,1.1E-4,{"$f":"SUM(G831:Q831)","v":0.99999999999999989},{"$f":"F831-R831","v":0},null,null,null,{"$f":"R831","v":0.99999999999999989}]
[4,null,"TOTAL KW (12 COIN PEAK) - TRANSMISSION","External",null,{"$f":"'WP FR-16(7)(v)-KW & KWH @Gen'!D38","v":717751},{"$f":"'WP FR-16(7)(v)-KW & KWH @Gen'!D17","v":323558},{"$f":"'WP FR-16(7)(v)-KW & KWH @Gen'!D18+'WP FR-16(7)(v)-KW & KWH @Gen'!D31","v":194251},{"$f":"'WP FR-16(7)(v)-KW & KWH @Gen'!D19","v":933},{"$f":"'WP FR-16(7)(v)-KW & KWH @Gen'!D20","v":3682},{"$f":"'WP FR-16(7)(v)-KW & KWH @Gen'!D21","v":51},{"$f":"'WP FR-16(7)(v)-KW & KWH @Gen'!D22+'WP FR-16(7)(v)-KW & KWH @Gen'!D32","v":96851},{"$f":"'WP FR-16(7)(v)-KW & KWH @Gen'!D23","v":64029},{"$f":"'WP FR-16(7)(v)-KW & KWH @Gen'!D24","v":3090},{"$f":"'WP FR-16(7)(v)-KW & KWH @Gen'!D25+'WP FR-16(7)(v)-KW & KWH @Gen'!D35","v":30336},{"$f":"'WP FR-16(7)(v)-KW & KWH @Gen'!D26","v":891},{"$f":"'WP FR-16(7)(v)-KW & KWH @Gen'!D27","v":79},{"$f":"SUM(G832:Q832)","v":717751},{"$f":"F832-R832","v":0}]
[5,null,{"$f":"'FR-16(7)(v)-1 Functional'!C833","v":"RATIO TO TOTAL ELECTRIC"},null,"K202",{"$f":"IF($F832=0,0,ROUND(F832/$F832,5))","v":1},{"$f":"IF(S832=0,F833-SUM(H833:Q833),ROUND(G832/F832,5))","v":0.45077999999999985},{"$f":"IF($F$830=0,0,ROUND(H832/$F$830,5))","v":0.27063999999999999},1.2999999999999999E-3,5.13E-3,6.9999999999999994E-5,0.13494,8.9209999999999998E-2,4.3099999999999996E-3,4.2270000000000002E-2,1.24E-3,1.1E-4,{"$f":"SUM(G833:Q833)","v":0.99999999999999989},{"$f":"F833-R833","v":0}]
[6,null,{"$f":"'FR-16(7)(v)-1 Functional'!C834","v":"DISTRIBUTION KW (NON-COIN PEAK) "},"External",null,{"$f":"'WP FR-16(7)(v)-KW & KWH @Dist'!D39","v":1514633},{"$f":"'WP FR-16(7)(v)-KW & KWH @Dist'!D18","v":899439},{"$f":"'WP FR-16(7)(v)-KW & KWH @Dist'!D19+'WP FR-16(7)(v)-KW & KWH @Dist'!D32","v":321857},{"$f":"'WP FR-16(7)(v)-KW & KWH @Dist'!D20","v":1158},{"$f":"'WP FR-16(7)(v)-KW & KWH @Dist'!D21","v":10653},{"$f":"'WP FR-16(7)(v)-KW & KWH @Dist'!D22","v":109},{"$f":"'WP FR-16(7)(v)-KW & KWH @Dist'!D23+'WP FR-16(7)(v)-KW & KWH @Dist'!D33","v":138051},{"$f":"'WP FR-16(7)(v)-KW & KWH @Dist'!D24+'WP FR-16(7)(v)-KW & KWH @Dist'!D34","v":84382},{"$f":"'WP FR-16(7)(v)-KW & KWH @Dist'!D25+'WP FR-16(7)(v)-KW & KWH @Dist'!D35","v":5687},{"$f":"'WP FR-16(7)(v)-KW & KWH @Dist'!D26+'WP FR-16(7)(v)-KW & KWH @Dist'!D36","v":45755},{"$f":"'WP FR-16(7)(v)-KW & KWH @Dist'!D27","v":7098},{"$f":"'WP FR-16(7)(v)-KW & KWH @Dist'!D28","v":444},{"$f":"SUM(G834:Q834)","v":1514633},{"$f":"F834-R834","v":0}]
[7,null,{"$f":"'FR-16(7)(v)-1 Functional'!C835","v":"RATIO TO TOTAL ELECTRIC"},null,{"$f":"'FR-16(7)(v)-1 Functional'!E835","v":"K203"},{"$f":"IF($F834=0,0,ROUND(F834/$F834,5))","v":1},{"$f":"IF(S834=0,F835-SUM(H835:Q835),ROUND(G834/F834,5))","v":0.59384999999999999},{"$f":"IF(F834=0,0,ROUND(H834/F834,5))","v":0.21249999999999999},{"$f":"IF($F$834=0,0,ROUND(I834/$F$834,5))","v":7.6000000000000004E-4},{"$f":"IF($F$834=0,0,ROUND(J834/$F$834,5))","v":7.0299999999999998E-3},6.9999999999999994E-5,9.1139999999999999E-2,5.5710000000000003E-2,3.7499999999999999E-3,3.0210000000000001E-2,4.6899999999999997E-3,{"$f":"IF(G834=0,0,ROUND(Q834/F834,5))","v":2.9E-4},1,0,null,null,null,{"$f":"R835","v":1}]
[8,null,"DISTRIBUTION LINE - PRIMARY","External",null,{"$f":"'WP FR-16(7)(v) Distlines'!G38","v":731338},{"$f":"'WP FR-16(7)(v) Distlines'!$G$17","v":343307},{"$f":"'WP FR-16(7)(v) Distlines'!$G$18+'WP FR-16(7)(v) Distlines'!$G$31","v":202748},{"$f":"'WP FR-16(7)(v) Distlines'!$G$19","v":945},{"$f":"'WP FR-16(7)(v) Distlines'!$G$20","v":4447},{"$f":"'WP FR-16(7)(v) Distlines'!$G$21","v":53},{"$f":"'WP FR-16(7)(v) Distlines'!$G$22+'WP FR-16(7)(v) Distlines'!$G$32","v":103544},{"$f":"'WP FR-16(7)(v) Distlines'!$G$23+'WP FR-16(7)(v) Distlines'!$G$33","v":68199},{"$f":"'WP FR-16(7)(v) Distlines'!$G$24+'WP FR-16(7)(v) Distlines'!$G$34","v":3420},{"$f":"'WP FR-16(7)(v) Distlines'!$G$25+'WP FR-16(7)(v) Distlines'!$G$35","v":0},{"$f":"'WP FR-16(7)(v) Distlines'!$G$26","v":4595},{"$f":"'WP FR-16(7)(v) Distlines'!$G$27","v":80},731338,0]
[9,null,{"$f":"'FR-16(7)(v)-1 Functional'!C837","v":"RATIO TO TOTAL ELECTRIC"},null,{"$f":"'FR-16(7)(v)-1 Functional'!E837","v":"K205"},{"$f":"IF($F836=0,0,ROUND(F836/$F836,5))","v":1},{"$f":"IF(S836=0,F837-SUM(H837:Q837),ROUND(G836/F836,5))","v":0.4694299999999999},{"$f":"IF($F$836=0,0,ROUND(H836/$F$836,5))","v":0.27722999999999998},{"$f":"IF($F$836=0,0,ROUND(I836/$F$836,5))","v":1.2899999999999999E-3},6.0800000000000003E-3,6.9999999999999994E-5,0.14158000000000001,9.325E-2,4.6800000000000001E-3,0,6.28E-3,1.1E-4,0.99999999999999989,0,null,null,null,{"$f":"R837","v":0.99999999999999989}]
[10,null,"DISTRIBUTION LINE - SECONDARY","External",null,{"$f":"'WP FR-16(7)(v) Distlines'!K38","v":731338},{"$f":"'WP FR-16(7)(v) Distlines'!K17","v":343307},{"$f":"'WP FR-16(7)(v) Distlines'!K18+'WP FR-16(7)(v) Distlines'!K31","v":202748},{"$f":"'WP FR-16(7)(v) Distlines'!K19","v":945},{"$f":"'WP FR-16(7)(v) Distlines'!K20","v":4447},{"$f":"'WP FR-16(7)(v) Distlines'!K21","v":53},{"$f":"'WP FR-16(7)(v) Distlines'!K22+'WP FR-16(7)(v) Distlines'!K32","v":103544},{"$f":"'WP FR-16(7)(v) Distlines'!K23","v":68199},{"$f":"'WP FR-16(7)(v) Distlines'!K24+'WP FR-16(7)(v) Distlines'!K34","v":3420},{"$f":"'WP FR-16(7)(v) Distlines'!K25+'WP FR-16(7)(v) Distlines'!K35","v":0},{"$f":"'WP FR-16(7)(v) Distlines'!K26","v":4595},{"$f":"'WP FR-16(7)(v) Distlines'!K27","v":80},{"$f":"SUM(G838:Q838)","v":731338},{"$f":"F838-R838","v":0}]
[11,null,{"$f":"'FR-16(7)(v)-1 Functional'!C839","v":"RATIO TO TOTAL ELECTRIC"},null,"K206",{"$f":"IF($F838=0,0,ROUND(F838/$F838,5))","v":1},{"$f":"IF(S838=0,F839-SUM(H839:Q839),ROUND(G838/F838,5))","v":0.4694299999999999},{"$f":"IF($F$836=0,0,ROUND(H838/$F$836,5))","v":0.27722999999999998},{"$f":"IF($F$836=0,0,ROUND(I838/$F$836,5))","v":1.2899999999999999E-3},{"$f":"IF($F$836=0,0,ROUND(J838/$F$836,5))","v":6.0800000000000003E-3},{"$f":"IF($F$836=0,0,ROUND(K838/$F$836,5))","v":6.9999999999999994E-5},{"$f":"IF($F$836=0,0,ROUND(L838/$F$836,5))","v":0.14158000000000001},{"$f":"IF($F$838=0,0,ROUND(M838/$F$838,5))","v":9.325E-2},{"$f":"IF($F$838=0,0,ROUND(N838/$F$838,5))","v":4.6800000000000001E-3},{"$f":"IF($F$838=0,0,ROUND(O838/$F$838,5))","v":0},{"$f":"IF($F$838=0,0,ROUND(P838/$F$838,5))","v":6.28E-3},{"$f":"IF($F$838=0,0,ROUND(Q838/$F$838,5))","v":1.1E-4},{"$f":"SUM(G839:Q839)","v":0.99999999999999989},{"$f":"F839-R839","v":0}]
[12,null,{"$f":"'FR-16(7)(v)-1 Functional'!C840","v":"GROSS DISTRIBUTION PLANT EXCL. CCNC"},"External",null,{"$f":"SUM(F73:F90)","v":0},{"$f":"SUM(G73:G90)","v":0},0,0,0,0,0,0,0,0,0,0,0,0]
[13,null,{"$f":"'FR-16(7)(v)-1 Functional'!C841","v":"RATIO TO TOTAL ELECTRIC"},null,{"$f":"'FR-16(7)(v)-1 Functional'!E841","v":"K209"},{"$f":"IF($F840=0,0,ROUND(F840/$F840,5))","v":0},{"$f":"IF(S840=0,F841-SUM(H841:Q841),ROUND(G840/F840,5))","v":0},{"$f":"IF($F$840=0,0,ROUND(H840/$F$840,5))","v":0},{"$f":"IF($F$840=0,0,ROUND(I840/$F$840,5))","v":0},0,0,0,0,0,0,0,0,0,0,null,null,null,{"$f":"R841","v":0}]
[14,null,{"$f":"'FR-16(7)(v)-1 Functional'!C842","v":"TOTAL DIVERSIFIED CLASS DEMANDS"},"External",null,{"$f":"'WP FR-16(7)(v)-KW & KWH @Dist'!L39","v":731338},{"$f":"'WP FR-16(7)(v)-KW & KWH @Dist'!L18","v":343307},{"$f":"'WP FR-16(7)(v)-KW & KWH @Dist'!L19+'WP FR-16(7)(v)-KW & KWH @Dist'!L32","v":202748},{"$f":"'WP FR-16(7)(v)-KW & KWH @Dist'!L20","v":945},{"$f":"'WP FR-16(7)(v)-KW & KWH @Dist'!L21","v":4447},{"$f":"'WP FR-16(7)(v)-KW & KWH @Dist'!L22","v":53},{"$f":"'WP FR-16(7)(v)-KW & KWH @Dist'!L23+'WP FR-16(7)(v)-KW & KWH @Dist'!L33","v":103544},{"$f":"'WP FR-16(7)(v)-KW & KWH @Dist'!L24","v":68199},{"$f":"'WP FR-16(7)(v)-KW & KWH @Dist'!L25","v":3420},{"$f":"'WP FR-16(7)(v)-KW & KWH @Dist'!L26","v":0},{"$f":"'WP FR-16(7)(v)-KW & KWH @Dist'!L27","v":4595},{"$f":"'WP FR-16(7)(v)-KW & KWH @Dist'!L28","v":80},731338,0]
[15,null,{"$f":"'FR-16(7)(v)-1 Functional'!C843","v":"RATIO TO TOTAL ELECTRIC"},null,{"$f":"'FR-16(7)(v)-1 Functional'!E843","v":"K215"},{"$f":"IF($F842=0,0,ROUND(F842/$F842,5))","v":1},{"$f":"IF(S842=0,F843-SUM(H843:Q843),ROUND(G842/F842,5))","v":0.4694299999999999},{"$f":"IF($F$842=0,0,ROUND(H842/$F$842,5))","v":0.27722999999999998},{"$f":"IF($F$842=0,0,ROUND(I842/$F$842,5))","v":1.2899999999999999E-3},6.0800000000000003E-3,6.9999999999999994E-5,0.14158000000000001,9.325E-2,4.6800000000000001E-3,0,6.28E-3,1.1E-4,0.99999999999999989,0,null,null,null,{"$f":"R843","v":0.99999999999999989}]
[16,null,{"$f":"'FR-16(7)(v)-1 Functional'!C844","v":"WEIGHTED CUSTOMER SERVICE"},"External",null,{"$f":"'WP FR-16(7)(v) Wtd services'!H38","v":143810},{"$f":"'WP FR-16(7)(v) Wtd services'!H17","v":128431},{"$f":"'WP FR-16(7)(v) Wtd services'!H18","v":12968},{"$f":"'WP FR-16(7)(v) Wtd services'!H19","v":172},{"$f":"'WP FR-16(7)(v) Wtd services'!H20","v":412},{"$f":"'WP FR-16(7)(v) Wtd services'!H21","v":14},{"$f":"'WP FR-16(7)(v) Wtd services'!H22","v":930},{"$f":"'WP FR-16(7)(v) Wtd services'!H23","v":222},{"$f":"'WP FR-16(7)(v) Wtd services'!H24","v":60},{"$f":"'WP FR-16(7)(v) Wtd services'!H25","v":66},{"$f":"'WP FR-16(7)(v) Wtd services'!H26","v":468},{"$f":"'WP FR-16(7)(v) Wtd services'!H27","v":11},143754,56]
[17,null,{"$f":"'FR-16(7)(v)-1 Functional'!C845","v":"RATIO TO TOTAL ELECTRIC"},null,{"$f":"'FR-16(7)(v)-1 Functional'!E845","v":"K217"},{"$f":"IF($F844=0,0,ROUND(F844/$F844,5))","v":1},{"$f":"IF(S844=0,F845-SUM(H845:Q845),ROUND(G844/F844,5))","v":0.89305999999999996},{"$f":"IF($F$844=0,0,ROUND(H844/$F$844,5))","v":9.017E-2},{"$f":"IF($F$844=0,0,ROUND(I844/$F$844,5))","v":1.1999999999999999E-3},2.8600000000000001E-3,1E-4,6.4700000000000001E-3,1.5399999999999999E-3,4.2000000000000002E-4,4.6000000000000001E-4,3.2499999999999999E-3,8.0000000000000007E-5,0.99960999999999978,3.900000000002235E-4,null,null,null,{"$f":"R845","v":0.99960999999999978}]
[18,null,{"$f":"'FR-16(7)(v)-1 Functional'!C846","v":"TOTAL KWH"},"External",null,{"$f":"'WP FR-16(7)(v)-KW & KWH @Gen'!F38","v":4261970981},{"$f":"'WP FR-16(7)(v)-KW & KWH @Gen'!$F$17","v":1608724299},{"$f":"'WP FR-16(7)(v)-KW & KWH @Gen'!$F$18+'WP FR-16(7)(v)-KW & KWH @Gen'!$F$31","v":1147823576},{"$f":"'WP FR-16(7)(v)-KW & KWH @Gen'!$F$19","v":6420710},{"$f":"'WP FR-16(7)(v)-KW & KWH @Gen'!$F$20","v":18228802},{"$f":"'WP FR-16(7)(v)-KW & KWH @Gen'!$F$21","v":298034},{"$f":"'WP FR-16(7)(v)-KW & KWH @Gen'!$F$22+'WP FR-16(7)(v)-KW & KWH @Gen'!$F$32","v":703280622},{"$f":"'WP FR-16(7)(v)-KW & KWH @Gen'!$F$23","v":488455966},{"$f":"'WP FR-16(7)(v)-KW & KWH @Gen'!$F$24","v":22905598},{"$f":"'WP FR-16(7)(v)-KW & KWH @Gen'!$F$25+'WP FR-16(7)(v)-KW & KWH @Gen'!$F$35","v":246755000},{"$f":"'WP FR-16(7)(v)-KW & KWH @Gen'!$F$26","v":18599129},{"$f":"'WP FR-16(7)(v)-KW & KWH @Gen'!$F$27","v":479245},4261970981,0]
[19,null,{"$f":"'FR-16(7)(v)-1 Functional'!C847","v":"RATIO TO TOTAL ELECTRIC"},null,{"$f":"'FR-16(7)(v)-1 Functional'!E847","v":"K301"},{"$f":"IF($F846=0,0,ROUND(F846/$F846,5))","v":1},{"$f":"IF(S846=0,F847-SUM(H847:Q847),ROUND(G846/F846,5))","v":0.37745999999999991},{"$f":"IF($F$846=0,0,ROUND(H846/$F$846,5))","v":0.26932},{"$f":"IF($F$846=0,0,ROUND(I846/$F$846,5))","v":1.5100000000000001E-3},4.28E-3,6.9999999999999994E-5,0.16500999999999999,0.11461,5.3699999999999998E-3,5.79E-2,4.3600000000000002E-3,1.1E-4,0.99999999999999989,0,null,null,null,{"$f":"R847","v":0.99999999999999989}]
[20,null,{"$f":"'FR-16(7)(v)-1 Functional'!C848","v":"DISTRIBUTION KWH"},"External",null,{"$f":"'WP FR-16(7)(v)-KW & KWH @Dist'!F39","v":4261970981},{"$f":"'WP FR-16(7)(v)-KW & KWH @Dist'!F18","v":1608724299},{"$f":"'WP FR-16(7)(v)-KW & KWH @Dist'!F19+'WP FR-16(7)(v)-KW & KWH @Dist'!F32","v":1147823576},{"$f":"'WP FR-16(7)(v)-KW & KWH @Dist'!F20","v":6420710},{"$f":"'WP FR-16(7)(v)-KW & KWH @Dist'!F21","v":18228802},{"$f":"'WP FR-16(7)(v)-KW & KWH @Dist'!F22","v":298034},{"$f":"'WP FR-16(7)(v)-KW & KWH @Dist'!F23+'WP FR-16(7)(v)-KW & KWH @Dist'!F33","v":703280622},{"$f":"'WP FR-16(7)(v)-KW & KWH @Dist'!F24","v":488455966},{"$f":"'WP FR-16(7)(v)-KW & KWH @Dist'!F25","v":22905598},{"$f":"'WP FR-16(7)(v)-KW & KWH @Dist'!F26","v":232255694},{"$f":"'WP FR-16(7)(v)-KW & KWH @Dist'!F27","v":18599129},{"$f":"'WP FR-16(7)(v)-KW & KWH @Dist'!F28","v":479245},4247471675,14499306]
[21,null,{"$f":"'FR-16(7)(v)-1 Functional'!C849","v":"RATIO TO TOTAL ELECTRIC"},null,{"$f":"'FR-16(7)(v)-1 Functional'!E849","v":"K303"},{"$f":"IF($F848=0,0,ROUND(F848/$F848,5))","v":1},{"$f":"IF(S848=0,F849-SUM(H849:Q849),ROUND(G848/F848,5))","v":0.37746000000000002},{"$f":"IF($F$848=0,0,ROUND(H848/$F$848,5))","v":0.26932},{"$f":"IF($F$848=0,0,ROUND(I848/$F$848,5))","v":1.5100000000000001E-3},4.28E-3,6.9999999999999994E-5,0.16500999999999999,0.11461,5.3699999999999998E-3,5.4489999999999997E-2,4.3600000000000002E-3,1.1E-4,0.99659000000000009,3.4099999999999131E-3,null,null,null,{"$f":"R849","v":0.99659000000000009}]
[22,null,{"$f":"'FR-16(7)(v)-1 Functional'!C850","v":"TOTAL KWH LESS LIGHTING"},"External",null,{"$f":"'WP FR-16(7)(v)-KW & KWH @Gen'!F38-'WP FR-16(7)(v)-KW & KWH @Gen'!F26","v":4243371852},{"$f":"'WP FR-16(7)(v)-KW & KWH @Gen'!F17","v":1608724299},{"$f":"'WP FR-16(7)(v)-KW & KWH @Gen'!F18+'WP FR-16(7)(v)-KW & KWH @Gen'!F31","v":1147823576},{"$f":"'WP FR-16(7)(v)-KW & KWH @Gen'!F19","v":6420710},{"$f":"'WP FR-16(7)(v)-KW & KWH @Gen'!F20","v":18228802},{"$f":"'WP FR-16(7)(v)-KW & KWH @Gen'!F21","v":298034},{"$f":"'WP FR-16(7)(v)-KW & KWH @Gen'!F22+'WP FR-16(7)(v)-KW & KWH @Gen'!F32","v":703280622},{"$f":"'WP FR-16(7)(v)-KW & KWH @Gen'!F23","v":488455966},{"$f":"'WP FR-16(7)(v)-KW & KWH @Gen'!F24","v":22905598},{"$f":"'WP FR-16(7)(v)-KW & KWH @Gen'!F25+'WP FR-16(7)(v)-KW & KWH @Gen'!F35","v":246755000},0,{"$f":"'WP FR-16(7)(v)-KW & KWH @Gen'!F27","v":479245},4243371852,0]
[23,null,{"$f":"'FR-16(7)(v)-1 Functional'!C851","v":"RATIO TO TOTAL ELECTRIC"},null,{"$f":"'FR-16(7)(v)-1 Functional'!E851","v":"K305"},{"$f":"IF($F850=0,0,ROUND(F850/$F850,5))","v":1},{"$f":"IF(S850=0,F851-SUM(H851:Q851),ROUND(G850/F850,5))","v":0.37910999999999984},{"$f":"IF($F$850=0,0,ROUND(H850/$F$850,5))","v":0.27050000000000002},{"$f":"IF($F$850=0,0,ROUND(I850/$F$850,5))","v":1.5100000000000001E-3},4.3E-3,6.9999999999999994E-5,0.16574,0.11511,5.4000000000000003E-3,5.815E-2,0,1.1E-4,0.99999999999999989,0,null,null,null,{"$f":"R851","v":0.99999999999999989}]
[24,null,{"$f":"'FR-16(7)(v)-1 Functional'!C852","v":"ASSIGN 100% TO RESIDENTIAL"},"External",null,1,1,0,0,0,0,0,0,0,0,0,0,1,0]
[25,null,{"$f":"'FR-16(7)(v)-1 Functional'!C853","v":"RATIO TO TOTAL ELECTRIC"},null,{"$f":"'FR-16(7)(v)-1 Functional'!E853","v":"K307"},{"$f":"IF($F852=0,0,ROUND(F852/$F852,5))","v":1},{"$f":"IF(S852=0,F853-SUM(H853:Q853),ROUND(G852/F852,5))","v":1},{"$f":"IF($F$852=0,0,ROUND(H852/$F$852,5))","v":0},{"$f":"IF($F$852=0,0,ROUND(I852/$F$852,5))","v":0},0,0,0,0,0,0,0,0,1,0,null,null,null,{"$f":"R853","v":1}]
[26,null,{"$f":"'FR-16(7)(v)-1 Functional'!C854","v":"ASSIGN 100% TO LIGHTING"},"External",null,1,0,0,0,0,0,0,0,0,0,1,0,1,0]
[27,null,{"$f":"'FR-16(7)(v)-1 Functional'!C855","v":"RATIO TO TOTAL ELECTRIC"},null,{"$f":"'FR-16(7)(v)-1 Functional'!E855","v":"K401"},{"$f":"IF($F854=0,0,ROUND(F854/$F854,5))","v":1},{"$f":"IF(S854=0,F855-SUM(H855:Q855),ROUND(G854/F854,5))","v":0},{"$f":"IF($F$854=0,0,ROUND(H854/$F$854,5))","v":0},{"$f":"IF($F$854=0,0,ROUND(I854/$F$854,5))","v":0},0,0,0,0,0,0,1,0,1,0,null,null,null,{"$f":"R855","v":1}]
[28,null,{"$f":"'FR-16(7)(v)-1 Functional'!C856","v":"DISTRIBUTION CUSTOMERS"},"External",null,{"$f":"'WP FR-16(7)(v)-KW & KWH @Dist'!H39","v":142392},{"$f":"'WP FR-16(7)(v)-KW & KWH @Dist'!$H18","v":128431},{"$f":"'WP FR-16(7)(v)-KW & KWH @Dist'!$H19+'WP FR-16(7)(v)-KW & KWH @Dist'!$H32","v":12972},{"$f":"'WP FR-16(7)(v)-KW & KWH @Dist'!$H20","v":172},{"$f":"'WP FR-16(7)(v)-KW & KWH @Dist'!$H21","v":103},{"$f":"'WP FR-16(7)(v)-KW & KWH @Dist'!$H22","v":14},{"$f":"'WP FR-16(7)(v)-KW & KWH @Dist'!$H23+'WP FR-16(7)(v)-KW & KWH @Dist'!$H33","v":159},{"$f":"'WP FR-16(7)(v)-KW & KWH @Dist'!$H24","v":37},{"$f":"'WP FR-16(7)(v)-KW & KWH @Dist'!$H25","v":10},{"$f":"'WP FR-16(7)(v)-KW & KWH @Dist'!$H26","v":11},{"$f":"'WP FR-16(7)(v)-KW & KWH @Dist'!$H27","v":468},{"$f":"'WP FR-16(7)(v)-KW & KWH @Dist'!$H28","v":11},142388,4]
[29,null,{"$f":"'FR-16(7)(v)-1 Functional'!C857","v":"RATIO TO TOTAL ELECTRIC"},null,{"$f":"'FR-16(7)(v)-1 Functional'!E857","v":"K405"},{"$f":"IF($F856=0,0,ROUND(F856/$F856,5))","v":1},{"$f":"IF(S856=0,F857-SUM(H857:Q857),ROUND(G856/F856,5))","v":0.90195000000000003},{"$f":"IF($F$856=0,0,ROUND(H856/$F$856,5))","v":9.11E-2},{"$f":"IF($F$856=0,0,ROUND(I856/$F$856,5))","v":1.2099999999999999E-3},7.2000000000000005E-4,1E-4,1.1199999999999999E-3,2.5999999999999998E-4,6.9999999999999994E-5,8.0000000000000007E-5,3.29E-3,{"$f":"IF(G856=0,0,ROUND(Q856/F856,5))","v":8.0000000000000007E-5},0.99998000000000009,1.9999999999908979E-5,null,null,null,{"$f":"R857","v":0.99998000000000009}]
[30,null,{"$f":"'FR-16(7)(v)-1 Functional'!C858","v":"METERS"},"External",null,{"$f":"'WP FR-16(7)(v) Meters'!E40","v":15813241},{"$f":"'WP FR-16(7)(v) Meters'!$E19","v":12782441},{"$f":"'WP FR-16(7)(v) Meters'!$E20","v":2892747},{"$f":"'WP FR-16(7)(v) Meters'!$E21","v":0},{"$f":"'WP FR-16(7)(v) Meters'!$E22","v":22093},{"$f":"'WP FR-16(7)(v) Meters'!$E23","v":3451},{"$f":"'WP FR-16(7)(v) Meters'!$E24","v":102877},{"$f":"'WP FR-16(7)(v) Meters'!$E25","v":0},{"$f":"'WP FR-16(7)(v) Meters'!$E26","v":3805},{"$f":"'WP FR-16(7)(v) Meters'!$E27","v":3619},{"$f":"'WP FR-16(7)(v) Meters'!$E28","v":0},{"$f":"'WP FR-16(7)(v) Meters'!$E29","v":2208},15813241,0]
[31,null,{"$f":"'FR-16(7)(v)-1 Functional'!C859","v":"RATIO TO TOTAL ELECTRIC"},null,{"$f":"'FR-16(7)(v)-1 Functional'!E859","v":"K407"},{"$f":"IF($F858=0,0,ROUND(F858/$F858,5))","v":1},{"$f":"IF(S858=0,F859-SUM(H859:Q859),ROUND(G858/F858,5))","v":0.80832999999999999},{"$f":"IF($F$858=0,0,ROUND(H858/$F$858,5))","v":0.18293000000000001},{"$f":"IF($F$858=0,0,ROUND(I858/$F$858,5))","v":0},1.4E-3,2.2000000000000001E-4,6.5100000000000002E-3,0,2.4000000000000001E-4,2.3000000000000001E-4,0,1.3999999999999999E-4,1,0,null,null,null,{"$f":"R859","v":1}]
[32,null,{"$f":"'FR-16(7)(v)-1 Functional'!C860","v":"WEIGHTED CUSTOMER"},"External",null,{"$f":"'WP FR-16(7)(v) Meters'!H40","v":156470},{"$f":"'WP FR-16(7)(v) Meters'!H19","v":128431},{"$f":"'WP FR-16(7)(v) Meters'!H20+'WP FR-16(7)(v) Meters'!H33","v":25940},{"$f":"'WP FR-16(7)(v) Meters'!H21","v":172},{"$f":"'WP FR-16(7)(v) Meters'!H22","v":206},{"$f":"'WP FR-16(7)(v) Meters'!H23","v":28},{"$f":"'WP FR-16(7)(v) Meters'!H24+'WP FR-16(7)(v) Meters'!H34","v":1089},{"$f":"'WP FR-16(7)(v) Meters'!H25+'WP FR-16(7)(v) Meters'!H35","v":37},{"$f":"'WP FR-16(7)(v) Meters'!H26+'WP FR-16(7)(v) Meters'!H36","v":40},{"$f":"'WP FR-16(7)(v) Meters'!H27+'WP FR-16(7)(v) Meters'!H37","v":37},{"$f":"'WP FR-16(7)(v) Meters'!H28","v":468},{"$f":"'WP FR-16(7)(v) Meters'!H29","v":22},156470,0]
[33,null,{"$f":"'FR-16(7)(v)-1 Functional'!C861","v":"RATIO TO TOTAL ELECTRIC"},null,{"$f":"'FR-16(7)(v)-1 Functional'!E861","v":"K409"},{"$f":"IF($F860=0,0,ROUND(F860/$F860,5))","v":1},{"$f":"IF(S860=0,F861-SUM(H861:Q861),ROUND(G860/F860,5))","v":0.82079000000000002},{"$f":"IF($F$860=0,0,ROUND(H860/$F$860,5))","v":0.16578000000000001},{"$f":"IF($F$860=0,0,ROUND(I860/$F$860,5))","v":1.1000000000000001E-3},1.32E-3,1.8000000000000001E-4,6.96E-3,2.4000000000000001E-4,2.5999999999999998E-4,2.4000000000000001E-4,2.99E-3,1.3999999999999999E-4,1,0,null,null,null,{"$f":"R861","v":1}]
[34,null,{"$f":"'FR-16(7)(v)-1 Functional'!C862","v":"UNCOLLECTIBLE ACCOUNT 904"},"External",null,{"$f":"'WP FR-16(7)(v) CustAcct'!G31","v":5781023.7599999998},{"$f":"'WP FR-16(7)(v) CustAcct'!G17","v":5267443},{"$f":"'WP FR-16(7)(v) CustAcct'!G19","v":249785.75999999978},{"$f":"'WP FR-16(7)(v) CustAcct'!G20","v":1597},{"$f":"'WP FR-16(7)(v) CustAcct'!G21","v":1664},{"$f":"'WP FR-16(7)(v) CustAcct'!G22","v":82},{"$f":"'WP FR-16(7)(v) CustAcct'!G23","v":129741},{"$f":"'WP FR-16(7)(v) CustAcct'!G24","v":82815},{"$f":"'WP FR-16(7)(v) CustAcct'!G25","v":3765},{"$f":"'WP FR-16(7)(v) CustAcct'!G26","v":38893},{"$f":"'WP FR-16(7)(v) CustAcct'!G27","v":5192},{"$f":"'WP FR-16(7)(v) CustAcct'!G28","v":46},5781023.7599999998,0]
[35,null,{"$f":"'FR-16(7)(v)-1 Functional'!C863","v":"RATIO TO TOTAL ELECTRIC"},null,{"$f":"'FR-16(7)(v)-1 Functional'!E863","v":"K411"},{"$f":"IF($F862=0,0,ROUND(F862/$F862,5))","v":1},{"$f":"IF(S862=0,F863-SUM(H863:Q863),ROUND(G862/F862,5))","v":0.91115000000000002},{"$f":"IF($F$862=0,0,ROUND(H862/$F$862,5))","v":4.3209999999999998E-2},{"$f":"IF($F$862=0,0,ROUND(I862/$F$862,5))","v":2.7999999999999998E-4},2.9E-4,1.0000000000000001E-5,2.2440000000000002E-2,1.4330000000000001E-2,6.4999999999999997E-4,6.7299999999999999E-3,8.9999999999999998E-4,1.0000000000000001E-5,0.99999999999999989,0,null,null,null,{"$f":"R863","v":0.99999999999999989}]
[36,null,{"$f":"'FR-16(7)(v)-1 Functional'!C864","v":"KWH SALES LESS RTP"},"External",null,{"$f":"'WP FR-16(7)(v)-KW & KWH @Gen'!F28","v":4244213606},{"$f":"'WP FR-16(7)(v)-KW & KWH @Gen'!F17","v":1608724299},{"$f":"'WP FR-16(7)(v)-KW & KWH @Gen'!F18","v":1146956880},{"$f":"'WP FR-16(7)(v)-KW & KWH @Gen'!F19","v":6420710},{"$f":"'WP FR-16(7)(v)-KW & KWH @Gen'!F20","v":18228802},{"$f":"'WP FR-16(7)(v)-KW & KWH @Gen'!F21","v":298034},{"$f":"'WP FR-16(7)(v)-KW & KWH @Gen'!F22","v":700889249},{"$f":"'WP FR-16(7)(v)-KW & KWH @Gen'!F23","v":488455966},{"$f":"'WP FR-16(7)(v)-KW & KWH @Gen'!F24","v":22905598},{"$f":"'WP FR-16(7)(v)-KW & KWH @Gen'!F25","v":232255694},{"$f":"'WP FR-16(7)(v)-KW & KWH @Gen'!F26","v":18599129},{"$f":"'WP FR-16(7)(v)-KW & KWH @Gen'!F27","v":479245},{"$f":"SUM(G864:Q864)","v":4244213606},{"$f":"F864-R864","v":0}]
[37,null,{"$f":"'FR-16(7)(v)-1 Functional'!C865","v":"RATIO TO TOTAL ELECTRIC"},null,{"$f":"'FR-16(7)(v)-1 Functional'!E865","v":"K302"},{"$f":"IF($F864=0,0,ROUND(F864/$F864,5))","v":1},{"$f":"IF(S864=0,F865-SUM(H865:Q865),ROUND(G864/F863,5))","v":0.37904999999999989},{"$f":"IF(F864=0,0,ROUND(H864/F864,5))","v":0.27023999999999998},{"$f":"IF(F864=0,0,ROUND(I864/F864,5))","v":1.5100000000000001E-3},{"$f":"IF(F864=0,0,ROUND(J864/F864,5))","v":4.2900000000000004E-3},{"$f":"IF(F864=0,0,ROUND(K864/F864,5))","v":6.9999999999999994E-5},{"$f":"IF(F864=0,0,ROUND(L864/F864,5))","v":0.16514000000000001},{"$f":"IF(F864=0,0,ROUND(M864/F864,5))","v":0.11509},{"$f":"IF(F864=0,0,ROUND(N864/F864,5))","v":5.4000000000000003E-3},{"$f":"IF(F864=0,0,ROUND(O864/F864,5))","v":5.4719999999999998E-2},{"$f":"IF(F864=0,0,ROUND(P864/F864,5))","v":4.3800000000000002E-3},{"$f":"IF(F864=0,0,ROUND(Q864/F864,5))","v":1.1E-4},{"$f":"SUM(G865:Q865)","v":1},{"$f":"F865-R865","v":0}]
[38]
[39,null,{"$f":"'FR-16(7)(v)-1 Functional'!C867","v":"PRESENT REVENUES"},{"$f":"'FR-16(7)(v)-1 Functional'!$D$867","v":"CS09"},{"$f":"'FR-16(7)(v)-1 Functional'!E867","v":"R600"},{"$f":"'FR-16(7)(v)-6 TRANS Classified'!G867","v":29038474},{"$f":"F867-SUM(H867:Q867)","v":13089837},{"$f":"ROUND(F867*VLOOKUP(D867,ALLOCTABLE_Trans_Demand,$H$10,FALSE),0)","v":7859028},{"$f":"ROUND($F$867*VLOOKUP(D867,ALLOCTABLE_Trans_Demand,I10,FALSE),0)","v":37753},{"$f":"ROUND($F$867*VLOOKUP(D867,ALLOCTABLE_Trans_Demand,J10,FALSE),0)","v":148955},{"$f":"ROUND($F$867*VLOOKUP(D867,ALLOCTABLE_Trans_Demand,K10,FALSE),0)","v":2033},{"$f":"ROUND($F$867*VLOOKUP(D867,ALLOCTABLE_Trans_Demand,L10,FALSE),0)","v":3918496},{"$f":"ROUND($F$867*VLOOKUP(D867,ALLOCTABLE_Trans_Demand,M10,FALSE),0)","v":2590539},{"$f":"ROUND($F$867*VLOOKUP(D867,ALLOCTABLE_Trans_Demand,N10,FALSE),0)","v":125156},{"$f":"ROUND($F$867*VLOOKUP(D867,ALLOCTABLE_Trans_Demand,O10,FALSE),0)","v":1227457},{"$f":"ROUND($F$867*VLOOKUP(D867,ALLOCTABLE_Trans_Demand,P10,FALSE),0)","v":36025},{"$f":"ROUND($F$867*VLOOKUP(D867,ALLOCTABLE_Trans_Demand,Q10,FALSE),0)","v":3195},{"$f":"SUM(G867:Q867)","v":29038474},{"$f":"F867-R867","v":0}]
[40,null,{"$f":"'FR-16(7)(v)-1 Functional'!C868","v":"PROPOSED REVENUES"},{"$f":"'FR-16(7)(v)-1 Functional'!$D$868","v":"A357"},{"$f":"'FR-16(7)(v)-1 Functional'!E868","v":"R602"},{"$f":"'FR-16(7)(v)-6 TRANS Classified'!G868","v":16524428},{"$f":"F868-SUM(H868:Q868)","v":7448882},{"$f":"ROUND(F868*VLOOKUP(D868,ALLOCTABLE_Trans_Demand,$H$10,FALSE),0)","v":4472171},{"$f":"ROUND($F$868*VLOOKUP(D868,ALLOCTABLE_Trans_Demand,I10,FALSE),0)","v":21482},{"$f":"ROUND($F$868*VLOOKUP(D868,ALLOCTABLE_Trans_Demand,J10,FALSE),0)","v":84770},{"$f":"ROUND($F$868*VLOOKUP(D868,ALLOCTABLE_Trans_Demand,K10,FALSE),0)","v":1157},{"$f":"ROUND($F$868*VLOOKUP(D868,ALLOCTABLE_Trans_Demand,L10,FALSE),0)","v":2229806},{"$f":"ROUND($F$868*VLOOKUP(D868,ALLOCTABLE_Trans_Demand,M10,FALSE),0)","v":1474144},{"$f":"ROUND($F$868*VLOOKUP(D868,ALLOCTABLE_Trans_Demand,N10,FALSE),0)","v":71220},{"$f":"ROUND($F$868*VLOOKUP(D868,ALLOCTABLE_Trans_Demand,O10,FALSE),0)","v":698488},{"$f":"ROUND($F$868*VLOOKUP(D868,ALLOCTABLE_Trans_Demand,P10,FALSE),0)","v":20490},{"$f":"ROUND($F$868*VLOOKUP(D868,ALLOCTABLE_Trans_Demand,Q10,FALSE),0)","v":1818},{"$f":"SUM(G868:Q868)","v":16524428},{"$f":"F868-R868","v":0}]
[]
[{"$f":"co_name","v":"DUKE ENERGY KENTUCKY, INC."},null,null,null,null,null,null,null,null,null,null,null,null,null,null,null,null,{"$f":"R1","v":"FR-16(7)(v)-7"}]
[{"$f":"$A$2","v":"TRANSMISSION DEMAND ALLOCATED - ELECTRIC COST OF SERVICE"},null,null,null,null,null,null,null,null,null,null,null,null,null,null,null,null,{"$f":"R2","v":"WITNESS RESPONSIBLE:"}]
[{"$f":"case_name","v":"CASE NO: 2019-00271"},null,null,null,null,null,null,null,null,null,null,null,null,null,null,null,null,{"$f":"Witness","v":"JAMES E. ZIOLKOWSKI"}]
[{"$f":"data_filing","v":"DATA: 12 MONTHS ACTUAL  & 0 MONTHS ESTIMATED"},null,null,null,null,null,null,null,null,null,null,null,null,null,null,null,null,{"$f":"\"PAGE \"&Pages-1&\" OF \"&Pages","v":"PAGE 17 OF 18"}]
[{"$f":"type","v":"TYPE OF FILING: \"X\" ORIGINAL   UPDATED    REVISED  "}]
[]
[null,null,null,null,null,{"$f":"F$7","v":"TOTAL"},null,{"$f":"H$7","v":"DS"},{"$f":"I$7","v":"GSFL"},{"$f":"J$7","v":"EH"},{"$f":"K$7","v":"SP"},"DT SEC","DT PRI","DP","TT",null,"OTHER"]
["LINE",null,null,null,null,{"$f":"F$8","v":"TRANSMISSION"},{"$f":"G$8","v":"RS"},{"$f":"H$8","v":"SECONDARY"},{"$f":"I$8","v":"SECONDARY"},{"$f":"J$8","v":"SECONDARY"},{"$f":"K$8","v":"SECONDARY"},"SECONDARY","PRIMARY","PRIMARY","TRANSMISSION","LT","WATER",{"$f":"R8","v":"TOTAL"},"ALL"]
["NO.","ALLOCATORS",null,"SOURCE","ALLO",{"$f":"F$9","v":"DEMAND"},{"$f":"G$9","v":"RESIDENTIAL"},{"$f":"H$9","v":"DISTRIBUTION"},{"$f":"I$9","v":"DISTRIBUTION"},{"$f":"J$9","v":"DISTRIBUTION"},{"$f":"K$9","v":"DISTRIBUTION"},"DISTRIBUTION","DISTRIBUTION","DISTRIBUTION","TIME OF DAY","LIGHTING","PUMPING",{"$f":"R9","v":"AT ISSUE"},"OTHER"]
[null,null,"Schedule 12.1",null,1,null,{"$f":"G$10","v":3},{"$f":"H$10","v":4},{"$f":"I$10","v":5},{"$f":"J$10","v":6},{"$f":"K$10","v":7},8,9,10,11,12,13,null," "]
[]
[1,null,{"$f":"'FR-16(7)(v)-1 Functional'!C881","v":"PRESENT REVENUES"},"Internal",null,{"$f":"'FR-16(7)(v)-3 PROD Demand'!F881","v":309580654},{"$f":"'FR-16(7)(v)-3 PROD Demand'!G881","v":123883637},{"$f":"'FR-16(7)(v)-3 PROD Demand'!H881","v":90318223},{"$f":"'FR-16(7)(v)-3 PROD Demand'!I881","v":577046},{"$f":"'FR-16(7)(v)-3 PROD Demand'!J881","v":600937},{"$f":"'FR-16(7)(v)-3 PROD Demand'!K881","v":29960},{"$f":"'FR-16(7)(v)-3 PROD Demand'!L881","v":46910116},{"$f":"'FR-16(7)(v)-3 PROD Demand'!M881","v":29943872},{"$f":"'FR-16(7)(v)-3 PROD Demand'!N881","v":1361377},{"$f":"'FR-16(7)(v)-3 PROD Demand'!O881","v":14062168},{"$f":"'FR-16(7)(v)-3 PROD Demand'!P881","v":1876470},{"$f":"'FR-16(7)(v)-3 PROD Demand'!Q881","v":16848},{"$f":"SUM(G881:Q881)","v":309580654},{"$f":"F881-R881","v":0}]
[2,null,{"$f":"'FR-16(7)(v)-1 Functional'!C882","v":"RATIO TO TOTAL ELECTRIC"},null,{"$f":"'FR-16(7)(v)-1 Functional'!E882","v":"K901"},{"$f":"IF($F881=0,0,ROUND(F881/$F881,9))","v":1},{"$f":"IF(S881=0,F882-SUM(H882:Q882),ROUND(G881/F881,5))","v":0.40016595199999994},{"$f":"IF($F$881=0,0,ROUND(H881/$F$881,9))","v":0.29174375699999999},{"$f":"IF($F$881=0,0,ROUND(I881/$F$881,9))","v":1.86396E-3},1.9411319999999999E-3,9.6775999999999996E-5,0.151527931,9.6723977000000003E-2,4.3974870000000003E-3,4.5423277999999997E-2,6.0613280000000004E-3,5.4422000000000002E-5,{"$f":"SUM(G882:Q882)","v":1},{"$f":"F882-R882","v":0},null,null,null,{"$f":"R882","v":1}]
[3,null,{"$f":"'FR-16(7)(v)-1 Functional'!C883","v":"PROPOSED REVENUES"},"Internal",null,{"$f":"'FR-16(7)(v)-3 PROD Demand'!F883","v":355094168},{"$f":"'FR-16(7)(v)-3 PROD Demand'!G883","v":147195469},{"$f":"'FR-16(7)(v)-3 PROD Demand'!H883","v":101595371},{"$f":"'FR-16(7)(v)-3 PROD Demand'!I883","v":649414},{"$f":"'FR-16(7)(v)-3 PROD Demand'!J883","v":676300},{"$f":"'FR-16(7)(v)-3 PROD Demand'!K883","v":33717},{"$f":"'FR-16(7)(v)-3 PROD Demand'!L883","v":52518255},{"$f":"'FR-16(7)(v)-3 PROD Demand'!M883","v":33522516},{"$f":"'FR-16(7)(v)-3 PROD Demand'!N883","v":1546768},{"$f":"'FR-16(7)(v)-3 PROD Demand'!O883","v":15232520},{"$f":"'FR-16(7)(v)-3 PROD Demand'!P883","v":2104877},{"$f":"'FR-16(7)(v)-3 PROD Demand'!Q883","v":18961},{"$f":"SUM(G883:Q883)","v":355094168},{"$f":"F883-R883","v":0}]
[4,null,{"$f":"'FR-16(7)(v)-1 Functional'!C884","v":"RATIO TO TOTAL ELECTRIC"},null,{"$f":"'FR-16(7)(v)-1 Functional'!E884","v":"K902"},{"$f":"IF($F883=0,0,ROUND(F883/$F883,9))","v":1},{"$f":"IF(S883=0,F884-SUM(H884:Q884),ROUND(G883/F883,5))","v":0.41452516699999997},{"$f":"IF($F$883=0,0,ROUND(H883/$F$883,9))","v":0.28610825000000001},{"$f":"IF($F$883=0,0,ROUND(I883/$F$883,9))","v":1.8288499999999999E-3},1.904565E-3,9.4951999999999995E-5,0.14789951400000001,9.4404581000000001E-2,4.3559369999999998E-3,4.2897128E-2,5.9276590000000001E-3,5.3396999999999997E-5,{"$f":"SUM(G884:Q884)","v":1},{"$f":"F884-R884","v":0}]
[5]
[6,"WEIGHTED RATIOS"]
[7,"GROSS ELECTRIC PLANT IN SERVICE"]
[8,null,{"$f":"'FR-16(7)(v)-1 Functional'!C888","v":"WTD GROSS PROD PLANT RATIOS"},"Internal",{"$f":"'FR-16(7)(v)-1 Functional'!E888","v":"P129"},0,{"$f":"IF(F888=0,0,F888-SUM(H888:Q888))","v":0},{"$f":"ROUND(IF($F$62=0,0,H62/$F$62),5)","v":0},0,0,0,{"$f":"ROUND(IF($F$62=0,0,L62/$F$62),5)","v":0},0,0,0,0,0,{"$f":"SUM(G888:Q888)","v":0},{"$f":"F888-R888","v":0},null,null,null,{"$f":"R888","v":0}]
[9,null,{"$f":"'FR-16(7)(v)-1 Functional'!C889","v":"WTD GROSS TRANS PLANT RATIOS"},"Internal",{"$f":"'FR-16(7)(v)-1 Functional'!E889","v":"T129"},1,0.45077999999999985,{"$f":"ROUND(IF($F$68=0,0,H68/$F$68),5)","v":0.27063999999999999},1.2999999999999999E-3,5.13E-3,6.9999999999999994E-5,0.13494,8.9209999999999998E-2,4.3099999999999996E-3,4.2270000000000002E-2,1.24E-3,1.1E-4,0.99999999999999989,0,null,null,null,0.99999999999999989]
[10,null,{"$f":"'FR-16(7)(v)-1 Functional'!C890","v":"WTD GROSS P & T PLT RATIOS"},"Internal",{"$f":"'FR-16(7)(v)-1 Functional'!E890","v":"PT29"},1,0.45077999999999985,{"$f":"ROUND(IF($F$70=0,0,H70/$F$70),5)","v":0.27063999999999999},1.2999999999999999E-3,5.13E-3,6.9999999999999994E-5,{"$f":"ROUND(IF($F$70=0,0,L70/$F$70),5)","v":0.13494},8.9209999999999998E-2,4.3099999999999996E-3,4.2270000000000002E-2,1.24E-3,1.1E-4,0.99999999999999989,0]
[11,null,{"$f":"'FR-16(7)(v)-1 Functional'!C891","v":"WTD GROSS DIST PLANT RATIOS"},"Internal",{"$f":"'FR-16(7)(v)-1 Functional'!E891","v":"D149"},0,0,{"$f":"ROUND(IF($F$94=0,0,H94/$F$94),5)","v":0},0,0,0,{"$f":"ROUND(IF($F$94=0,0,L94/$F$94),5)","v":0},0,0,0,0,0,0,0]
[12,null,{"$f":"'FR-16(7)(v)-1 Functional'!C892","v":"WTD GROSS TRANS & DIST RATIOS"},"Internal",{"$f":"'FR-16(7)(v)-1 Functional'!E892","v":"TD29"},1,0.45077999999999985,{"$f":"ROUND(IF($F$97=0,0,H97/$F$97),5)","v":0.27063999999999999},1.2999999999999999E-3,5.13E-3,6.9999999999999994E-5,{"$f":"ROUND(IF($F$97=0,0,L97/$F$97),5)","v":0.13494},8.9209999999999998E-2,4.3099999999999996E-3,4.2270000000000002E-2,1.24E-3,1.1E-4,0.99999999999999989,0,null,null,null,0.99999999999999989]
[13,null,{"$f":"'FR-16(7)(v)-1 Functional'!C893","v":"WTD GROSS PTD PLT RATIOS"},"Internal",{"$f":"'FR-16(7)(v)-1 Functional'!E893","v":"PD29"},1,0.45077999999999985,{"$f":"ROUND(IF($F$109=0,0,H109/$F$109),5)","v":0.27063999999999999},1.2999999999999999E-3,5.13E-3,6.9999999999999994E-5,{"$f":"ROUND(IF($F$109=0,0,L109/$F$109),5)","v":0.13494},8.9209999999999998E-2,4.3099999999999996E-3,4.2270000000000002E-2,1.24E-3,1.1E-4,0.99999999999999989,0,null,null,null,0.99999999999999989]
[14,null,{"$f":"'FR-16(7)(v)-1 Functional'!C894","v":"WTD GROSS G & I PLT RATIOS"},"Internal",{"$f":"'FR-16(7)(v)-1 Functional'!E894","v":"G129"},1,0.45077999999999985,{"$f":"ROUND(IF($F$121=0,0,H121/$F$121),5)","v":0.27063999999999999},1.2999999999999999E-3,5.13E-3,6.9999999999999994E-5,{"$f":"ROUND(IF($F$121=0,0,L121/$F$121),5)","v":0.13494},8.9209999999999998E-2,4.3099999999999996E-3,4.2270000000000002E-2,1.24E-3,1.1E-4,0.99999999999999989,0,null,null,null,0.99999999999999989]
[15,null,{"$f":"'FR-16(7)(v)-1 Functional'!C895","v":"WTD GROSS C & O PLANT RATIOS"},"Internal",{"$f":"'FR-16(7)(v)-1 Functional'!E895","v":"C129"},1,0.45077999999999985,{"$f":"ROUND(IF($F$123=0,0,H123/$F$123),5)","v":0.27063999999999999},1.2999999999999999E-3,5.13E-3,6.9999999999999994E-5,{"$f":"ROUND(IF($F$123=0,0,L123/$F$123),5)","v":0.13494},8.9209999999999998E-2,4.3099999999999996E-3,4.2270000000000002E-2,1.24E-3,1.1E-4,0.99999999999999989,0,null,null,null,0.99999999999999989]
[16,null,{"$f":"'FR-16(7)(v)-1 Functional'!C896","v":"WTD GROSS PLANT RATIOS"},"Internal",{"$f":"'FR-16(7)(v)-1 Functional'!E896","v":"GP19"},0,0,{"$f":"ROUND(IF($F$171=0,0,H171/$F$171),5)","v":0},0,0,0,{"$f":"ROUND(IF($F$171=0,0,L171/$F$171),5)","v":0},0,0,0,0,0,0,0,null,null,null,0]
[17,null,{"$f":"'FR-16(7)(v)-1 Functional'!C897","v":"WTD TOTAL DEPRC RES RATIOS"},"Internal",{"$f":"'FR-16(7)(v)-1 Functional'!E897","v":"DR19"},1,0.45077999999999985,{"$f":"ROUND(IF($F$200=0,0,H200/$F$200),5)","v":0.27063999999999999},1.2999999999999999E-3,5.13E-3,6.9999999999999994E-5,{"$f":"ROUND(IF($F$200=0,0,L200/$F$200),5)","v":0.13494},8.9209999999999998E-2,4.3099999999999996E-3,4.2270000000000002E-2,1.24E-3,1.1E-4,0.99999999999999989,0,null,null,null,0.99999999999999989]
[18]
[19,"NET ELECTRIC PLANT"]
[20,null,{"$f":"'FR-16(7)(v)-1 Functional'!C900","v":"WTD NET PROD PLANT RATIOS"},"Internal",{"$f":"'FR-16(7)(v)-1 Functional'!E900","v":"P229"},0,{"$f":"IF(F900=0,0,F900-SUM(H900:Q900))","v":0},{"$f":"ROUND(IF($F$216=0,0,H216/$F$216),5)","v":0},0,0,0,{"$f":"ROUND(IF($F$216=0,0,L216/$F$216),5)","v":0},0,0,0,0,0,{"$f":"SUM(G900:Q900)","v":0},{"$f":"F900-R900","v":0},null,null,null,{"$f":"R900","v":0}]
[21,null,{"$f":"'FR-16(7)(v)-1 Functional'!C901","v":"WTD NET TRANS PLANT RATIOS"},"Internal",{"$f":"'FR-16(7)(v)-1 Functional'!E901","v":"T229"},1,0.45077999999999985,{"$f":"ROUND(IF($F$222=0,0,H222/$F$222),5)","v":0.27063999999999999},1.2999999999999999E-3,5.13E-3,6.9999999999999994E-5,0.13494,8.9209999999999998E-2,4.3099999999999996E-3,4.2270000000000002E-2,1.24E-3,1.1E-4,0.99999999999999989,0,null,null,null,{"$f":"R901","v":0.99999999999999989}]
[22,null,{"$f":"'FR-16(7)(v)-1 Functional'!C902","v":"WTD NET DIST LINES  - POLES, TOWERS & FIXTURES"},"Internal",{"$f":"'FR-16(7)(v)-1 Functional'!E902","v":"PL49"},0,0,{"$f":"ROUND(IF(SUM($F$228:$F$231)=0,0,SUM(H228:H231)/SUM($F$228:$F$231)),5)","v":0},{"$f":"ROUND(IF(SUM($F$228:$F$231)=0,0,SUM(I228:I231)/SUM($F$228:$F$231)),5)","v":0},0,0,0,0,0,0,0,0,0,0,null,null,null,{"$f":"R902","v":0}]
[23,null,{"$f":"'FR-16(7)(v)-1 Functional'!C903","v":"WTD NET TOTAL DIST PLANT RATIOS"},"Internal",{"$f":"'FR-16(7)(v)-1 Functional'!E903","v":"D249"},0,0,{"$f":"ROUND(IF($F$248=0,0,H248/$F$248),5)","v":0},0,0,0,{"$f":"ROUND(IF($F$248=0,0,L248/$F$248),5)","v":0},0,0,0,0,0,0,0]
[24,null,{"$f":"'FR-16(7)(v)-1 Functional'!C904","v":"WTD NET TRANS & DIST RATIOS"},"Internal",{"$f":"'FR-16(7)(v)-1 Functional'!E904","v":"NT29"},1,0.45077999999999985,{"$f":"ROUND(IF($F$251=0,0,H251/$F$251),5)","v":0.27063999999999999},1.2999999999999999E-3,5.13E-3,6.9999999999999994E-5,{"$f":"ROUND(IF($F$251=0,0,L251/$F$251),5)","v":0.13494},8.9209999999999998E-2,4.3099999999999996E-3,4.2270000000000002E-2,1.24E-3,1.1E-4,0.99999999999999989,0]
[25,null,{"$f":"'FR-16(7)(v)-1 Functional'!C905","v":"WTD NET G & I PLT RATIOS"},"Internal",{"$f":"'FR-16(7)(v)-1 Functional'!E905","v":"G229"},1,0.45077999999999985,{"$f":"ROUND(IF($F$263=0,0,H263/$F$263),5)","v":0.27063999999999999},1.2999999999999999E-3,5.13E-3,6.9999999999999994E-5,{"$f":"ROUND(IF($F$263=0,0,L263/$F$263),5)","v":0.13494},8.9209999999999998E-2,4.3099999999999996E-3,4.2270000000000002E-2,1.24E-3,1.1E-4,0.99999999999999989,0]
[26,null,{"$f":"'FR-16(7)(v)-1 Functional'!C906","v":"WTD NET C & O PLANT RATIOS"},"Internal",{"$f":"'FR-16(7)(v)-1 Functional'!E906","v":"C229"},1,0.45077999999999985,{"$f":"ROUND(IF($F$275=0,0,H275/$F$275),5)","v":0.27063999999999999},1.2999999999999999E-3,5.13E-3,6.9999999999999994E-5,{"$f":"ROUND(IF($F$275=0,0,L275/$F$275),5)","v":0.13494},8.9209999999999998E-2,4.3099999999999996E-3,4.2270000000000002E-2,1.24E-3,1.1E-4,0.99999999999999989,0]
[27,null,{"$f":"'FR-16(7)(v)-1 Functional'!C907","v":"WTD NET PLANT RATIOS"},"Internal",{"$f":"'FR-16(7)(v)-1 Functional'!E907","v":"NP29"},1,0.45077999999999985,{"$f":"ROUND(IF($F$277=0,0,H277/$F$277),5)","v":0.27063999999999999},1.2999999999999999E-3,5.13E-3,6.9999999999999994E-5,{"$f":"ROUND(IF($F$277=0,0,L277/$F$277),5)","v":0.13494},8.9209999999999998E-2,4.3099999999999996E-3,4.2270000000000002E-2,1.24E-3,1.1E-4,0.99999999999999989,0]
[28]
[29,"WORKING CAPITAL"]
[30,null,{"$f":"'FR-16(7)(v)-1 Functional'!C910","v":"WTD MATERIAL & SUPPLY RATIOS"},"Internal",{"$f":"'FR-16(7)(v)-1 Functional'!E910","v":"W669"},1,{"$f":"IF(F910=0,0,F910-SUM(H910:Q910))","v":0.45077999999999985},{"$f":"ROUND(IF($F$399=0,0,H399/$F$399),5)","v":0.27063999999999999},1.2999999999999999E-3,5.13E-3,6.9999999999999994E-5,{"$f":"ROUND(IF($F$399=0,0,L399/$F$399),5)","v":0.13494},8.9209999999999998E-2,4.3099999999999996E-3,4.2270000000000002E-2,1.24E-3,1.1E-4,{"$f":"SUM(G910:Q910)","v":0.99999999999999989},{"$f":"F910-R910","v":0},null,null,null,{"$f":"R910","v":0.99999999999999989}]
[31,null,{"$f":"'FR-16(7)(v)-1 Functional'!C911","v":"WTD PREPAYMENTS RATIOS"},"Internal",{"$f":"'FR-16(7)(v)-1 Functional'!E911","v":"W689"},1,{"$f":"IF(F911=0,0,F911-SUM(H911:Q911))","v":0.45094999999999996},{"$f":"ROUND(IF($F$405=0,0,H405/$F$405),5)","v":0.27063999999999999},1.2800000000000001E-3,5.13E-3,8.0000000000000007E-5,{"$f":"ROUND(IF($F$405=0,0,L405/$F$405),5)","v":0.13489999999999999},8.9179999999999995E-2,4.3E-3,4.2250000000000003E-2,1.2099999999999999E-3,8.0000000000000007E-5,{"$f":"SUM(G911:Q911)","v":0.99999999999999989},{"$f":"F911-R911","v":0},null,null,null,{"$f":"R911","v":0.99999999999999989}]
[32,null,{"$f":"'FR-16(7)(v)-1 Functional'!C912","v":"WTD TOTAL WORKING CASH RATIOS"},"Internal",{"$f":"'FR-16(7)(v)-1 Functional'!E912","v":"W719"},1,{"$f":"IF(F912=0,0,F912-SUM(H912:Q912))","v":1},{"$f":"ROUND(IF($F$408=0,0,H408/$F$408),5)","v":0},0,0,0,{"$f":"ROUND(IF($F$408=0,0,L408/$F$408),5)","v":0},0,0,0,0,0,{"$f":"SUM(G912:Q912)","v":1},{"$f":"F912-R912","v":0},null,null,null,{"$f":"R912","v":1}]
[33,null,{"$f":"'FR-16(7)(v)-1 Functional'!C913","v":"WTD TOTAL MISC WRKNG CAP RATIO"},"Internal",{"$f":"'FR-16(7)(v)-1 Functional'!E913","v":"W749"},1,{"$f":"IF(F913=0,0,F913-SUM(H913:Q913))","v":1},{"$f":"ROUND(IF($F$414=0,0,H414/$F$414),5)","v":0},0,0,0,{"$f":"ROUND(IF($F$414=0,0,L414/$F$414),5)","v":0},0,0,0,0,0,{"$f":"SUM(G913:Q913)","v":1},{"$f":"F913-R913","v":0},null,null,null,{"$f":"R913","v":1}]
[34,null,{"$f":"'FR-16(7)(v)-1 Functional'!C914","v":"WTD TOTAL WRKNG CAP RATIOS"},"Internal",{"$f":"'FR-16(7)(v)-1 Functional'!E914","v":"WC79"},1,{"$f":"IF(F914=0,0,F914-SUM(H914:Q914))","v":0.45077999999999985},{"$f":"ROUND(IF($F$416=0,0,H416/$F$416),5)","v":0.27063999999999999},1.2999999999999999E-3,5.13E-3,6.9999999999999994E-5,{"$f":"ROUND(IF($F$416=0,0,L416/$F$416),5)","v":0.13494},8.9209999999999998E-2,4.3099999999999996E-3,4.2270000000000002E-2,1.24E-3,1.1E-4,{"$f":"SUM(G914:Q914)","v":0.99999999999999989},{"$f":"F914-R914","v":0}]
[35]
[36,"RATE BASE"]
[37,null,{"$f":"'FR-16(7)(v)-1 Functional'!C917","v":"WTD NET OCRB RATIOS"},"Internal",{"$f":"'FR-16(7)(v)-1 Functional'!E917","v":"RB29"},1,{"$f":"IF(F917=0,0,F917-SUM(H917:Q917))","v":0.45077999999999985},{"$f":"ROUND(IF($F$390=0,0,H390/$F$390),5)","v":0.27063999999999999},1.2999999999999999E-3,5.13E-3,6.9999999999999994E-5,{"$f":"ROUND(IF($F$390=0,0,L390/$F$390),5)","v":0.13494},8.9209999999999998E-2,4.3099999999999996E-3,4.2270000000000002E-2,1.24E-3,1.1E-4,{"$f":"SUM(G917:Q917)","v":0.99999999999999989},{"$f":"F917-R917","v":0}]
[38,null,{"$f":"'FR-16(7)(v)-1 Functional'!C918","v":"WTD TOTAL RATE BASE RATIOS"},"Internal",{"$f":"'FR-16(7)(v)-1 Functional'!E918","v":"RB99"},1,{"$f":"IF(F918=0,0,F918-SUM(H918:Q918))","v":0.45077999999999985},{"$f":"ROUND(IF($F$426=0,0,H426/$F$426),5)","v":0.27063999999999999},1.2999999999999999E-3,5.13E-3,6.9999999999999994E-5,{"$f":"ROUND(IF($F$426=0,0,L426/$F$426),5)","v":0.13494},8.9209999999999998E-2,4.3099999999999996E-3,4.2270000000000002E-2,1.24E-3,1.1E-4,{"$f":"SUM(G918:Q918)","v":0.99999999999999989},{"$f":"F918-R918","v":0}]
[39,null,{"$f":"'FR-16(7)(v)-1 Functional'!C919","v":"WTD CWIP RATIO"},"Internal",{"$f":"'FR-16(7)(v)-1 Functional'!E919","v":"CW29"},1,{"$f":"IF(F919=0,0,F919-SUM(H919:Q919))","v":1},{"$f":"ROUND(IF($F$375=0,0,H375/$F$375),5)","v":0},0,0,0,{"$f":"ROUND(IF($F$375=0,0,L375/$F$375),5)","v":0},0,0,0,0,0,{"$f":"SUM(G919:Q919)","v":1},{"$f":"F919-R919","v":0},null,null,null,{"$f":"R919","v":1}]
[]
[{"$f":"co_name","v":"DUKE ENERGY KENTUCKY, INC."},null,null,null,null,null,null,null,null,null,null,null,null,null,null,null,null,{"$f":"R1","v":"FR-16(7)(v)-7"}]
[{"$f":"$A$2","v":"TRANSMISSION DEMAND ALLOCATED - ELECTRIC COST OF SERVICE"},null,null,null,null,null,null,null,null,null,null,null,null,null,null,null,null,{"$f":"R2","v":"WITNESS RESPONSIBLE:"}]
[{"$f":"case_name","v":"CASE NO: 2019-00271"},null,null,null,null,null,null,null,null,null,null,null,null,null,null,null,null,{"$f":"Witness","v":"JAMES E. ZIOLKOWSKI"}]
[{"$f":"data_filing","v":"DATA: 12 MONTHS ACTUAL  & 0 MONTHS ESTIMATED"},null,null,null,null,null,null,null,null,null,null,null,null,null,null,null,null,{"$f":"\"PAGE \"&Pages&\" OF \"&Pages","v":"PAGE 18 OF 18"}]
[{"$f":"type","v":"TYPE OF FILING: \"X\" ORIGINAL   UPDATED    REVISED  "}]
[]
[null,null,null,null,null,{"$f":"F$7","v":"TOTAL"},null,{"$f":"H$7","v":"DS"},{"$f":"I$7","v":"GSFL"},{"$f":"J$7","v":"EH"},{"$f":"K$7","v":"SP"},"DT SEC","DT PRI","DP","TT",null,"OTHER"]
["LINE",null,null,null,null,{"$f":"F$8","v":"TRANSMISSION"},{"$f":"G$8","v":"RS"},{"$f":"H$8","v":"SECONDARY"},{"$f":"I$8","v":"SECONDARY"},{"$f":"J$8","v":"SECONDARY"},{"$f":"K$8","v":"SECONDARY"},"SECONDARY","PRIMARY","PRIMARY","TRANSMISSION","LT","WATER",{"$f":"R8","v":"TOTAL"},"ALL"]
["NO.","ALLOCATORS",null,"SOURCE","ALLO",{"$f":"F$9","v":"DEMAND"},{"$f":"G$9","v":"RESIDENTIAL"},{"$f":"H$9","v":"DISTRIBUTION"},{"$f":"I$9","v":"DISTRIBUTION"},{"$f":"J$9","v":"DISTRIBUTION"},{"$f":"K$9","v":"DISTRIBUTION"},"DISTRIBUTION","DISTRIBUTION","DISTRIBUTION","TIME OF DAY","LIGHTING","PUMPING",{"$f":"R9","v":"AT ISSUE"},"OTHER"]
[null,null,"Schedule 12.2",null,1,null,{"$f":"G$10","v":3},{"$f":"H$10","v":4},{"$f":"I$10","v":5},{"$f":"J$10","v":6},{"$f":"K$10","v":7},8,9,10,11,12,13,null," "]
[1,"WEIGHTED O & M EXPENSE RATIOS"]
[2,null,{"$f":"'FR-16(7)(v)-1 Functional'!C932","v":"WTD PROD DEMAND O&M EXP RATIOS"},"Internal",{"$f":"'FR-16(7)(v)-1 Functional'!E932","v":"P349"},1,{"$f":"ROUND(IF($F$457=0,0,G457/$F$457),5)","v":0},{"$f":"ROUND(IF($F$457=0,0,H457/$F$457),5)","v":0},0,0,0,{"$f":"ROUND(IF($F$457=0,0,L457/$F$457),5)","v":0},0,0,0,0,0,{"$f":"SUM(G932:Q932)","v":0},{"$f":"F932-R932","v":1},null,null,null,{"$f":"R932","v":0}]
[3,null,{"$f":"'FR-16(7)(v)-1 Functional'!C933","v":"WTD PROD ENERGY O&M EXP RATIOS"},"Internal",{"$f":"'FR-16(7)(v)-1 Functional'!E933","v":"E349"},1,{"$f":"ROUND(IF($F$453=0,0,G453/$F$453),5)","v":0},{"$f":"ROUND(IF($F$453=0,0,H453/$F$453),5)","v":0},0,0,0,{"$f":"ROUND(IF($F$453=0,0,L453/$F$453),5)","v":0},0,0,0,0,0,0,1,null,null,null,{"$f":"R933","v":0}]
[4,null,{"$f":"'FR-16(7)(v)-1 Functional'!C934","v":"WTD TOTAL PROD O&M EXP RATIOS"},"Internal",{"$f":"'FR-16(7)(v)-1 Functional'!E934","v":"P459"},1,{"$f":"ROUND(IF($F$459=0,0,G459/$F$459),5)","v":0},{"$f":"ROUND(IF($F$459=0,0,H459/$F$459),5)","v":0},0,0,0,{"$f":"ROUND(IF($F$459=0,0,L459/$F$459),5)","v":0},0,0,0,0,0,0,1,null,null,null,{"$f":"R934","v":0}]
[5,null,{"$f":"'FR-16(7)(v)-1 Functional'!C935","v":"WTD TRANS O&M EXP RATIOS"},"Internal",{"$f":"'FR-16(7)(v)-1 Functional'!E935","v":"T349"},1,{"$f":"ROUND(IF($F$466=0,0,G466/$F$466),5)","v":0.45078000000000001},{"$f":"ROUND(IF($F$466=0,0,H466/$F$466),5)","v":0.27063999999999999},1.2999999999999999E-3,5.13E-3,6.9999999999999994E-5,{"$f":"ROUND(IF($F$466=0,0,L466/$F$466),5)","v":0.13494},8.9209999999999998E-2,4.3099999999999996E-3,4.2270000000000002E-2,1.24E-3,1.1E-4,1,0,null,null,null,{"$f":"R935","v":1}]
[6,null,{"$f":"'FR-16(7)(v)-1 Functional'!C936","v":"WTD DIST O&M EXP RATIOS"},"Internal",{"$f":"'FR-16(7)(v)-1 Functional'!E936","v":"D349"},1,{"$f":"ROUND(IF($F$492=0,0,G492/$F$492),5)","v":0},{"$f":"ROUND(IF($F$492=0,0,H492/$F$492),5)","v":0},0,0,0,{"$f":"ROUND(IF($F$492=0,0,L492/$F$492),5)","v":0},0,0,0,0,0,0,1]
[7,null,{"$f":"'FR-16(7)(v)-1 Functional'!C937","v":"WTD UNCOLLECTIBLE ACCOUNT O&M"},"Internal",{"$f":"'FR-16(7)(v)-1 Functional'!E937","v":"C311"},1,{"$f":"ROUND(IF($F$496=0,0,G496/$F$496),5)","v":0},{"$f":"ROUND(IF($F$496=0,0,H496/$F$496),5)","v":0},0,0,0,{"$f":"ROUND(IF($F$496=0,0,L496/$F$496),5)","v":0},0,0,0,0,0,0,1,null,null,null,{"$f":"R937","v":0}]
[8,null,{"$f":"'FR-16(7)(v)-1 Functional'!C938","v":"WTD CUST ACCT O&M EXP RATIOS"},"Internal",{"$f":"'FR-16(7)(v)-1 Functional'!E938","v":"C319"},1,{"$f":"ROUND(IF($F$503=0,0,G503/$F$503),5)","v":0},{"$f":"ROUND(IF($F$503=0,0,H503/$F$503),5)","v":0},0,0,0,{"$f":"ROUND(IF($F$503=0,0,L503/$F$503),5)","v":0},0,0,0,0,0,0,1,null,null,null,{"$f":"R938","v":0}]
[9,null,{"$f":"'FR-16(7)(v)-1 Functional'!C939","v":"WTD CUST SERV & INFO O&M  EXP RATIOS"},"Internal",{"$f":"'FR-16(7)(v)-1 Functional'!E939","v":"C331"},1,{"$f":"ROUND(IF($F$518=0,0,G518/$F$518),5)","v":0},{"$f":"ROUND(IF($F$518=0,0,H518/$F$518),5)","v":0},0,0,0,{"$f":"ROUND(IF($F$518=0,0,L518/$F$518),5)","v":0},0,0,0,0,0,0,1,null,null,null,{"$f":"R939","v":0}]
[10,null,{"$f":"'FR-16(7)(v)-1 Functional'!C940","v":"WTD SALES O&M EXP RATIOS"},"Internal",{"$f":"'FR-16(7)(v)-1 Functional'!E940","v":"S319"},1,{"$f":"ROUND(IF($F$522=0,0,G522/$F$522),5)","v":0},{"$f":"ROUND(IF($F$522=0,0,H522/$F$522),5)","v":0},0,0,0,{"$f":"ROUND(IF($F$522=0,0,L522/$F$522),5)","v":0},0,0,0,0,0,{"$f":"SUM(G940:Q940)","v":0},{"$f":"F940-R940","v":1}]
[11,null,{"$f":"'FR-16(7)(v)-1 Functional'!C941","v":"WTD O&M EXP RATIOS"},"Internal",{"$f":"'FR-16(7)(v)-1 Functional'!E941","v":"OM39"},1,{"$f":"ROUND(IF($F$549=0,0,G549/$F$549),5)","v":0.45078000000000001},{"$f":"ROUND(IF($F$549=0,0,H549/$F$549),5)","v":0.27063999999999999},1.2999999999999999E-3,5.13E-3,6.9999999999999994E-5,{"$f":"ROUND(IF($F$549=0,0,L549/$F$549),5)","v":0.13494},8.9209999999999998E-2,4.3099999999999996E-3,4.2270000000000002E-2,1.24E-3,1.1E-4,{"$f":"SUM(G941:Q941)","v":1},{"$f":"F941-R941","v":0}]
[12]
[13,"A & G EXPENSES"]
[14,null,{"$f":"'FR-16(7)(v)-1 Functional'!C944","v":"WTD PROD DEMAND A&G EXP RATIOS"},"Internal",{"$f":"'FR-16(7)(v)-1 Functional'!E944","v":"A300"},1,{"$f":"ROUND(IF($F$525=0,0,G525/$F$525),5)","v":0},{"$f":"ROUND(IF($F$525=0,0,H525/$F$525),5)","v":0},0,0,0,{"$f":"ROUND(IF($F$525=0,0,L525/$F$525),5)","v":0},0,0,0,0,0,{"$f":"SUM(G944:Q944)","v":0},{"$f":"F944-R944","v":1}]
[15,null,{"$f":"'FR-16(7)(v)-1 Functional'!C945","v":"WTD PROD ENERGY A&G EXP RATIOS"},"Internal",{"$f":"'FR-16(7)(v)-1 Functional'!E945","v":"A302"},1,{"$f":"ROUND(IF($F$526=0,0,G526/$F$526),5)","v":0},{"$f":"ROUND(IF($F$526=0,0,H526/$F$526),5)","v":0},0,0,0,{"$f":"ROUND(IF($F$526=0,0,L526/$F$526),5)","v":0},0,0,0,0,0,0,1]
[16,null,{"$f":"'FR-16(7)(v)-1 Functional'!C946","v":"WTD TRANS A&G EXP RATIOS"},"Internal",{"$f":"'FR-16(7)(v)-1 Functional'!E946","v":"A304"},1,{"$f":"ROUND(IF($F$527=0,0,G527/$F$527),5)","v":0.45078000000000001},{"$f":"ROUND(IF($F$527=0,0,H527/$F$527),5)","v":0.27063999999999999},1.2999999999999999E-3,5.13E-3,6.9999999999999994E-5,{"$f":"ROUND(IF($F$527=0,0,L527/$F$527),5)","v":0.13494},8.9209999999999998E-2,4.3099999999999996E-3,4.2270000000000002E-2,1.24E-3,1.1E-4,1,0]
[17,null,{"$f":"'FR-16(7)(v)-1 Functional'!C947","v":"WTD DIST A&G EXP RATIOS"},"Internal",{"$f":"'FR-16(7)(v)-1 Functional'!E947","v":"A306"},1,{"$f":"ROUND(IF($F$528=0,0,G528/$F$528),5)","v":0},{"$f":"ROUND(IF($F$528=0,0,H528/$F$528),5)","v":0},0,0,0,{"$f":"ROUND(IF($F$528=0,0,L528/$F$528),5)","v":0},0,0,0,0,0,0,1]
[18,null,{"$f":"'FR-16(7)(v)-1 Functional'!C948","v":"WTD CUST ACCT A&G EXP RATIOS"},"Internal",{"$f":"'FR-16(7)(v)-1 Functional'!E948","v":"A308"},1,{"$f":"ROUND(IF($F$529=0,0,G529/$F$529),5)","v":0},{"$f":"ROUND(IF($F$529=0,0,H529/$F$529),5)","v":0},0,0,0,{"$f":"ROUND(IF($F$529=0,0,L529/$F$529),5)","v":0},0,0,0,0,0,0,1]
[19,null,{"$f":"'FR-16(7)(v)-1 Functional'!C949","v":"WTD CUST SERV & INFO A&G  EXP RATIOS"},"Internal",{"$f":"'FR-16(7)(v)-1 Functional'!E949","v":"A310"},1,{"$f":"ROUND(IF($F$530=0,0,G530/$F$530),5)","v":0},{"$f":"ROUND(IF($F$530=0,0,H530/$F$530),5)","v":0},0,0,0,{"$f":"ROUND(IF($F$530=0,0,L530/$F$530),5)","v":0},0,0,0,0,0,0,1]
[20,null,{"$f":"'FR-16(7)(v)-1 Functional'!C950","v":"WTD SALES A&G EXP RATIOS"},"Internal",{"$f":"'FR-16(7)(v)-1 Functional'!E950","v":"A312"},1,{"$f":"ROUND(IF($F$531=0,0,G531/$F$531),5)","v":0},{"$f":"ROUND(IF($F$531=0,0,H531/$F$531),5)","v":0},0,0,0,{"$f":"ROUND(IF($F$531=0,0,L531/$F$531),5)","v":0},0,0,0,0,0,0,1]
[21,null,{"$f":"'FR-16(7)(v)-1 Functional'!C951","v":"WTD A&G EXPENSE UNADJUSTED"},"Internal",{"$f":"'FR-16(7)(v)-1 Functional'!E951","v":"A315"},1,{"$f":"ROUND(IF($F$532=0,0,G532/$F$532),5)","v":0.45078000000000001},{"$f":"ROUND(IF($F$532=0,0,H532/$F$532),5)","v":0.27063999999999999},1.2999999999999999E-3,5.13E-3,6.9999999999999994E-5,{"$f":"ROUND(IF($F$532=0,0,L532/$F$532),5)","v":0.13494},8.9209999999999998E-2,4.3099999999999996E-3,4.2270000000000002E-2,1.24E-3,1.1E-4,1,0]
[22,null,{"$f":"'FR-16(7)(v)-1 Functional'!C952","v":"WTD A&G EXP RATIOS"},"Internal",{"$f":"'FR-16(7)(v)-1 Functional'!E952","v":"A357"},1,{"$f":"ROUND(IF($F$547=0,0,G547/$F$547),5)","v":0.45078000000000001},{"$f":"ROUND(IF($F$547=0,0,H547/$F$547),5)","v":0.27063999999999999},1.2999999999999999E-3,5.13E-3,6.9999999999999994E-5,{"$f":"ROUND(IF($F$547=0,0,L547/$F$547),5)","v":0.13494},8.9209999999999998E-2,4.3099999999999996E-3,4.2270000000000002E-2,1.24E-3,1.1E-4,1,0]
[23]
[24,"DEPRECIATION EXPENSES"]
[25,null,{"$f":"'FR-16(7)(v)-1 Functional'!C955","v":"WTD PRODUCTION DEPREC RATIOS"},"Internal",{"$f":"'FR-16(7)(v)-1 Functional'!E955","v":"P489"},1,{"$f":"ROUND(IF($F$563=0,0,G563/$F$563),5)","v":0},{"$f":"ROUND(IF($F$563=0,0,H563/$F$563),5)","v":0},0,0,0,{"$f":"ROUND(IF($F$563=0,0,L563/$F$563),5)","v":0},0,0,0,0,0,{"$f":"SUM(G955:Q955)","v":0},{"$f":"F955-R955","v":1},null,null,null,{"$f":"R955","v":0}]
[26,null,{"$f":"'FR-16(7)(v)-1 Functional'!C956","v":"WTD TRANS DEPREC RATIOS"},"Internal",{"$f":"'FR-16(7)(v)-1 Functional'!E956","v":"T489"},1,{"$f":"ROUND(IF($F$567=0,0,G567/$F$567),5)","v":0.45078000000000001},{"$f":"ROUND(IF($F$567=0,0,H567/$F$567),5)","v":0.27063999999999999},1.2999999999999999E-3,5.13E-3,6.9999999999999994E-5,{"$f":"ROUND(IF($F$567=0,0,L567/$F$567),5)","v":0.13494},8.9209999999999998E-2,4.3099999999999996E-3,4.2270000000000002E-2,1.24E-3,1.1E-4,1,0,null,null,null,{"$f":"R956","v":1}]
[27,null,{"$f":"'FR-16(7)(v)-1 Functional'!C957","v":"WTD DIST DEPREC RATIOS"},"Internal",{"$f":"'FR-16(7)(v)-1 Functional'!E957","v":"D489"},1,{"$f":"ROUND(IF($F$571=0,0,G571/$F$571),5)","v":0},{"$f":"ROUND(IF($F$571=0,0,H571/$F$571),5)","v":0},0,0,0,{"$f":"ROUND(IF($F$571=0,0,L571/$F$571),5)","v":0},0,0,0,0,0,0,1,null,null,null,{"$f":"R957","v":0}]
[28,null,{"$f":"'FR-16(7)(v)-1 Functional'!C958","v":"WTD GENERAL DEPREC EXP RATIOS"},"Internal",{"$f":"'FR-16(7)(v)-1 Functional'!E958","v":"G489"},1,{"$f":"ROUND(IF($F$575=0,0,G575/$F$575),5)","v":0.45078000000000001},{"$f":"ROUND(IF($F$575=0,0,H575/$F$575),5)","v":0.27063999999999999},1.2999999999999999E-3,5.13E-3,6.9999999999999994E-5,{"$f":"ROUND(IF($F$575=0,0,L575/$F$575),5)","v":0.13494},8.9209999999999998E-2,4.3099999999999996E-3,4.2270000000000002E-2,1.24E-3,1.1E-4,1,0,null,null,null,{"$f":"R958","v":1}]
[29,null,{"$f":"'FR-16(7)(v)-1 Functional'!C959","v":"WTD COM & OTHER DEP EXP RATIOS"},"Internal",{"$f":"'FR-16(7)(v)-1 Functional'!E959","v":"C489"},1,{"$f":"ROUND(IF($F$579=0,0,G579/$F$579),5)","v":0.45090999999999998},{"$f":"ROUND(IF($F$579=0,0,H579/$F$579),5)","v":0.27043},1.1800000000000001E-3,5.2900000000000004E-3,0,{"$f":"ROUND(IF($F$579=0,0,L579/$F$579),5)","v":0.13521},8.9359999999999995E-2,4.1200000000000004E-3,4.233E-2,1.1800000000000001E-3,0,1.0000099999999998,-9.9999999998434674E-6]
[30,null,{"$f":"'FR-16(7)(v)-1 Functional'!C960","v":"WTD TOT DEPREC EXP RATIOS"},"Internal",{"$f":"'FR-16(7)(v)-1 Functional'!E960","v":"DE49"},1,{"$f":"ROUND(IF($F$582=0,0,G582/$F$582),5)","v":0.45078000000000001},{"$f":"ROUND(IF($F$582=0,0,H582/$F$582),5)","v":0.27063999999999999},1.2999999999999999E-3,5.13E-3,6.9999999999999994E-5,{"$f":"ROUND(IF($F$582=0,0,L582/$F$582),5)","v":0.13494},8.9209999999999998E-2,4.3099999999999996E-3,4.2270000000000002E-2,1.24E-3,1.1E-4,1,0,null,null,null,{"$f":"R960","v":1}]
[31]
[32,"OTHER TAXES & MISC EXPENSES"]
[33,null,{"$f":"'FR-16(7)(v)-1 Functional'!C963","v":"WTD R. E. & PROP TAX RATIOS"},"Internal",{"$f":"'FR-16(7)(v)-1 Functional'!E963","v":"L529"},1,{"$f":"ROUND(IF($F$598=0,0,G598/$F$598),5)","v":0.45078000000000001},{"$f":"ROUND(IF($F$598=0,0,H598/$F$598),5)","v":0.27063999999999999},1.2999999999999999E-3,5.13E-3,6.9999999999999994E-5,{"$f":"ROUND(IF($F$598=0,0,L598/$F$598),5)","v":0.13494},8.9209999999999998E-2,4.3099999999999996E-3,4.2270000000000002E-2,1.24E-3,1.1E-4,{"$f":"SUM(G963:Q963)","v":1},{"$f":"F963-R963","v":0},null,null,null,{"$f":"R963","v":1}]
[34,null,{"$f":"'FR-16(7)(v)-1 Functional'!C964","v":"WTD MISC TAX RATIOS"},"Internal",{"$f":"'FR-16(7)(v)-1 Functional'!E964","v":"L589"},1,{"$f":"ROUND(IF($F$605=0,0,G605/$F$605),5)","v":0.45078000000000001},{"$f":"ROUND(IF($F$605=0,0,H605/$F$605),5)","v":0.27065},1.2999999999999999E-3,5.1200000000000004E-3,8.0000000000000007E-5,{"$f":"ROUND(IF($F$605=0,0,L605/$F$605),5)","v":0.13492000000000001},8.9190000000000005E-2,4.3299999999999996E-3,4.2259999999999999E-2,1.25E-3,1.2999999999999999E-4,{"$f":"SUM(G964:Q964)","v":1.0000099999999998},{"$f":"F964-R964","v":-9.9999999998434674E-6},null,null,null,{"$f":"R964","v":1.0000099999999998}]
[35,null,{"$f":"'FR-16(7)(v)-1 Functional'!C965","v":"WTD OTHER TAX RATIOS"},"Internal",{"$f":"'FR-16(7)(v)-1 Functional'!E965","v":"L599"},1,{"$f":"ROUND(IF($F$612=0,0,G612/$F$612),5)","v":0.45056000000000002},{"$f":"ROUND(IF($F$612=0,0,H612/$F$612),5)","v":0.27073000000000003},1.2999999999999999E-3,5.11E-3,6.9999999999999994E-5,{"$f":"ROUND(IF($F$612=0,0,L612/$F$612),5)","v":0.13502},8.924E-2,4.3099999999999996E-3,4.2270000000000002E-2,1.2700000000000001E-3,1.1E-4,{"$f":"SUM(G965:Q965)","v":0.99999000000000005},{"$f":"F965-R965","v":9.9999999999544897E-6},null,null,null,{"$f":"R965","v":0.99999000000000005}]
[36,null,{"$f":"'FR-16(7)(v)-1 Functional'!C966","v":"WTD OP EXP EX IT & REV RATIOS"},"Internal",{"$f":"'FR-16(7)(v)-1 Functional'!E966","v":"OP69"},1,{"$f":"ROUND(IF($F$618=0,0,G618/$F$618),5)","v":0.45077},{"$f":"ROUND(IF($F$618=0,0,H618/$F$618),5)","v":0.27063999999999999},1.2999999999999999E-3,5.13E-3,6.9999999999999994E-5,{"$f":"ROUND(IF($F$618=0,0,L618/$F$618),5)","v":0.13494},8.9209999999999998E-2,4.3099999999999996E-3,4.2270000000000002E-2,1.24E-3,1.1E-4,{"$f":"SUM(G966:Q966)","v":0.99999000000000005},{"$f":"F966-R966","v":9.9999999999544897E-6},null,null,null,{"$f":"R966","v":0.99999000000000005}]
[37]
[38,"TOTAL COST OF SERVICE"]
[39,null,{"$f":"'FR-16(7)(v)-1 Functional'!C969","v":"WTD TOTAL COST OF SERVICE"},"Internal",{"$f":"'FR-16(7)(v)-1 Functional'!E969","v":"CS09"},1,{"$f":"ROUND(IF($F$770=0,0,G770/$F$770),9)","v":0.45077561500000002},0.27064191599999998,1.300114E-3,5.1295569999999999E-3,7.0024999999999994E-5,0.134941529,8.9210573000000001E-2,4.3100100000000004E-3,4.2270039000000002E-2,1.2405999999999999E-3,1.10022E-4,{"$f":"SUM(G969:Q969)","v":0.99999999999999989},{"$f":"F969-R969","v":0},null,null,null,{"$f":"R969","v":0.99999999999999989}]
[40]
[41,"WAGES & SALARIES (K600-K639)"]
[42,null,{"$f":"'FR-16(7)(v)-1 Functional'!C972","v":"WTD RATIOS"},"Internal",{"$f":"'FR-16(7)(v)-1 Functional'!E972","v":"K669"}]
[]
[]
[]
[]
[]
[]
[]
[]
[]
[1,"REVENUE NOT TO BE INCLUDED IN REVENUE TAX CALC"]
[2,null,"GOVERNMENTAL",null,"A357",{"$f":"'FR-16(7)(v)-6 TRANS Classified'!G983","v":0},{"$f":"F983-SUM(H983:Q983)","v":0},{"$f":"ROUND(F983*VLOOKUP(E983,ALLOCTABLE_Trans_Demand,$H$10,FALSE),0)","v":0},{"$f":"ROUND(F983*VLOOKUP(E983,ALLOCTABLE_Trans_Demand,$I$10,FALSE),0)","v":0},{"$f":"ROUND(F983*VLOOKUP(E983,ALLOCTABLE_Trans_Demand,$J$10,FALSE),0)","v":0},{"$f":"ROUND(F983*VLOOKUP(E983,ALLOCTABLE_Trans_Demand,$K$10,FALSE),0)","v":0},{"$f":"ROUND(F983*VLOOKUP(E983,ALLOCTABLE_Trans_Demand,$L$10,FALSE),0)","v":0},{"$f":"ROUND(F983*VLOOKUP(E983,ALLOCTABLE_Trans_Demand,$M$10,FALSE),0)","v":0},{"$f":"ROUND(F983*VLOOKUP(E983,ALLOCTABLE_Trans_Demand,$N$10,FALSE),0)","v":0},{"$f":"ROUND(F983*VLOOKUP(E983,ALLOCTABLE_Trans_Demand,$O$10,FALSE),0)","v":0},{"$f":"ROUND(F983*VLOOKUP(E983,ALLOCTABLE_Trans_Demand,$P$10,FALSE),0)","v":0},{"$f":"ROUND(F983*VLOOKUP(E983,ALLOCTABLE_Trans_Demand,$Q$10,FALSE),0)","v":0},{"$f":"SUM(G983:Q983)","v":0},{"$f":"F983-R983","v":0}]
[3,null,"INTERDEPARTMENTAL",null,"A357",{"$f":"'FR-16(7)(v)-6 TRANS Classified'!G984","v":0},0,0,0,0,0,0,0,0,0,0,0,0,0]
[4,null,"UNCOLLECTIBLE EXPENSE",null,"A357",{"$f":"'FR-16(7)(v)-6 TRANS Classified'!G985","v":0},0,0,0,0,0,0,0,0,0,0,0,0,0]
[5,null,"OTHER PROD GAS ASSC COS  489050",null,"K301",{"$f":"'FR-16(7)(v)-6 TRANS Classified'!G986","v":0},0,0,0,0,0,0,0,0,0,0,0,0,0]
[6,null,"MISC. REV. - SALE OF MATERIAL",null,"A357",{"$f":"'FR-16(7)(v)-6 TRANS Classified'!G987","v":0},0,0,0,0,0,0,0,0,0,0,0,0,0]
[7,null,"RENT ASSOC. COS  49302,04,05,06,07,08,11 & 50",null,"NP29",{"$f":"'FR-16(7)(v)-6 TRANS Classified'!G988","v":0},0,0,0,0,0,0,0,0,0,0,0,0,0]
[8,null,"TOTAL","REXC",null,{"$f":"SUM(F982:F988)","v":0},0,0,0,{"$f":"SUM(J982:J988)","v":0},0,0,0,0,0,0,0,0,0]
[]
[]
[]
[]
[]
["DO NOT FILE THIS PAGE"]
[]
[{"$f":"co_name","v":"DUKE ENERGY KENTUCKY, INC."},null,null,null,null,null,null,null,null,null,null,null,null,null,null,null,null,{"$f":"R1","v":"FR-16(7)(v)-7"}]
[{"$f":"$A$2","v":"TRANSMISSION DEMAND ALLOCATED - ELECTRIC COST OF SERVICE"},null,null,null,null,null,null,null,null,null,null,null,null,null,null,null,null,{"$f":"R2","v":"WITNESS RESPONSIBLE:"}]
[{"$f":"case_name","v":"CASE NO: 2019-00271"},null,null,null,null,null,null,null,null,null,null,null,null,null,null,null,null,{"$f":"Witness","v":"JAMES E. ZIOLKOWSKI"}]
[{"$f":"data_filing","v":"DATA: 12 MONTHS ACTUAL  & 0 MONTHS ESTIMATED"},null,null,null,null,null,null,null,null,null,null,null,null,null,null,null,null,{"$f":"\"PAGE \"&Pages&\" OF \"&Pages","v":"PAGE 18 OF 18"}]
[{"$f":"type","v":"TYPE OF FILING: \"X\" ORIGINAL   UPDATED    REVISED  "}]
[]
[null,null,null,null,null,{"$f":"F$7","v":"TOTAL"},null,{"$f":"H$7","v":"DS"},{"$f":"I$7","v":"GSFL"},{"$f":"J$7","v":"EH"},{"$f":"K$7","v":"SP"},"DT SEC","DT PRI","DP","TT",null,"OTHER"]
["LINE",null,null,null,null,{"$f":"F$8","v":"TRANSMISSION"},{"$f":"G$8","v":"RS"},{"$f":"H$8","v":"SECONDARY"},{"$f":"I$8","v":"SECONDARY"},{"$f":"J$8","v":"SECONDARY"},{"$f":"K$8","v":"SECONDARY"},"SECONDARY","PRIMARY","PRIMARY","TRANSMISSION","LT","WATER",{"$f":"R8","v":"TOTAL"},"ALL"]
["NO.","INCOME TAX BASED ON REVENUES",null,"ALLO",null,{"$f":"F$9","v":"DEMAND"},{"$f":"G$9","v":"RESIDENTIAL"},{"$f":"H$9","v":"DISTRIBUTION"},{"$f":"I$9","v":"DISTRIBUTION"},{"$f":"J$9","v":"DISTRIBUTION"},{"$f":"K$9","v":"DISTRIBUTION"},"DISTRIBUTION","DISTRIBUTION","DISTRIBUTION","TIME OF DAY","LIGHTING","PUMPING",{"$f":"R9","v":"AT ISSUE"},"OTHER"]
[null,null,"Schedule 13",null,null,null,{"$f":"G$10","v":3},{"$f":"H$10","v":4},{"$f":"I$10","v":5},{"$f":"J$10","v":6},{"$f":"K$10","v":7},8,9,10,11,12,13,null," "]
[1,"NET INCOME COMPUTATION"]
[2,null,{"$f":"'FR-16(7)(v)-1 Functional'!C1008","v":"TOTAL ELECTRIC COST OF SERVICE"},null,null,{"$f":"F770","v":33202477},14966867,8985982,43167,{"$f":"J770","v":170314},2325,4480393,2962012,143103,1403470,41191,3653,33202477,0]
[3,null,{"$f":"'FR-16(7)(v)-1 Functional'!C1009","v":"TOTAL OTHER OPERATING REVENUES"},null,null,{"$f":"F750","v":169500},{"$f":"G750","v":76405},{"$f":"H750","v":45874},{"$f":"I750","v":220},{"$f":"J750","v":870},12,22873,15121,731,7165,210,{"$f":"$Q$750","v":19},{"$f":"R750","v":169500},{"$f":"S750","v":0}]
[4,null,{"$f":"'FR-16(7)(v)-1 Functional'!C1010","v":"  TOTAL ELECTRIC REVENUE"},null,null,{"$f":"SUM(F1007:F1009)","v":33371977},15043272,9031856,43387,{"$f":"SUM(J1007:J1009)","v":171184},2337,4503266,2977133,143834,1410635,41401,3672,33371977,0]
[5,null,{"$f":"'FR-16(7)(v)-1 Functional'!C1011","v":"TOTAL OP EXP EX INC & REV TAX"},null,null,{"$f":"-F618","v":-28303811},{"$f":"-G618","v":-12758644},{"$f":"-H618","v":-7660207},{"$f":"-I618","v":-36797},{"$f":"-J618","v":-145184},-1982,-3819369,-2525003,-121991,-1196404,-35116,{"$f":"-$Q$618","v":-3114},{"$f":"-R618","v":-28303811},{"$f":"-S618","v":0}]
[6,null,{"$f":"'FR-16(7)(v)-1 Functional'!C1012","v":"FIRM SERVICE REVENUE TAX"},null,null,{"$f":"-ROUND(F817*F1008,0)","v":0},{"$f":"F1012-SUM(H1012:Q1012)","v":0},{"$f":"-ROUND(H817*H1008,0)","v":0},0,0,0,0,0,0,0,0,0,{"$f":"SUM(G1012:Q1012)","v":0},{"$f":"-ROUND('FR-16(7)(v)-1 Functional'!K817*S1008,0)","v":0}]
[7,null,{"$f":"'FR-16(7)(v)-1 Functional'!C1013","v":"  NET INCOME"},null,null,{"$f":"SUM(F1010:F1012)","v":5068166},{"$f":"SUM(G1010:G1012)","v":2284628},{"$f":"SUM(H1010:H1012)","v":1371649},{"$f":"SUM(I1010:I1012)","v":6590},{"$f":"SUM(J1010:J1012)","v":26000},355,683897,452130,21843,214231,6285,{"$f":"SUM(Q1010:Q1012)","v":558},{"$f":"SUM(G1013:Q1013)","v":5068166},{"$f":"SUM(S1010:S1012)","v":0}]
[8]
[9,"ADJUSTMENTS TO NET INCOME"]
[10,null,{"$f":"'FR-16(7)(v)-1 Functional'!C1016","v":"TOTAL INTEREST EXPENSE"},null,null,{"$f":"-F633","v":-833901},{"$f":"-G633","v":-375906},{"$f":"-H633","v":-225687},{"$f":"-I633","v":-1084},{"$f":"-J633","v":-4278},-58,-112527,-74392,-3594,-35249,-1034,{"$f":"-$Q$633","v":-92},{"$f":"-R633","v":-833901},{"$f":"-S633","v":0}]
[11,null,{"$f":"'FR-16(7)(v)-1 Functional'!C1017","v":"TOTAL OTHER DEDUCTIONS"},null,null,{"$f":"-F639","v":-2064291},{"$f":"-G639","v":-930539},{"$f":"-H639","v":-558680},{"$f":"-I639","v":-2684},{"$f":"-J639","v":-10590},-144,-278556,-184155,-8898,-87257,-2561,{"$f":"-$Q$639","v":-227},{"$f":"-R639","v":-2064291},{"$f":"-S639","v":0}]
[12,null,{"$f":"'FR-16(7)(v)-1 Functional'!C1018","v":"  PRELIMINARY TAXABLE INCOME"},null,null,{"$f":"SUM(F1015:F1017)+F1013","v":2169974},{"$f":"SUM(G1015:G1017)+G1013","v":978183},{"$f":"SUM(H1015:H1017)+H1013","v":587282},{"$f":"SUM(I1015:I1017)+I1013","v":2822},{"$f":"SUM(J1015:J1017)+J1013","v":11132},153,292814,193583,9351,91725,2690,{"$f":"SUM(Q1015:Q1017)+Q1013","v":239},{"$f":"SUM(G1018:Q1018)","v":2169974},{"$f":"SUM(S1015:S1017)+S1013","v":0}]
[13]
[14,"INCOME TAX BASED ON REVENUES"]
[15,"FEDERAL INCOME TAX COMPUTATION"]
[16,null,{"$f":"'FR-16(7)(v)-1 Functional'!C1022","v":"PRELIMINARY TAXABLE INCOME"},null,null,{"$f":"F1018","v":2169974},978183,587282,2822,{"$f":"J1018","v":11132},153,292814,193583,9351,91725,2690,239,2169974,0]
[17,null,{"$f":"'FR-16(7)(v)-1 Functional'!C1023","v":"  NET FEDERAL TAXABLE INCOME"},null,null,{"$f":"SUM(F1022:F1022)","v":2169974},978183,587282,2822,{"$f":"SUM(J1022:J1022)","v":11132},153,292814,193583,9351,91725,2690,239,2169974,0]
[18,null,{"$f":"'FR-16(7)(v)-1 Functional'!C1024","v":"  FEDERAL INCOME TAX RATE"},null,null,{"$f":"F815","v":0.21},{"$f":"G815","v":0.21},{"$f":"H815","v":0.21},{"$f":"I815","v":0.21},{"$f":"J815","v":0.21},0.21,0.21,0.21,0.21,0.21,0.21,{"$f":"Q815","v":0.21},null,{"$f":"'FR-16(7)(v)-1 Functional'!K815","v":0.21}]
[19,null,{"$f":"'FR-16(7)(v)-1 Functional'!C1025","v":"PRELIMINARY FIT = FI01 * K190"},null,null,{"$f":"ROUND(F1024*F1023,0)","v":455695},{"$f":"ROUND(G1024*G1023,0)","v":205418},{"$f":"ROUND(H1024*H1023,0)","v":123329},{"$f":"ROUND(I1024*I1023,0)","v":593},{"$f":"ROUND(J1024*J1023,0)","v":2338},32,61491,40652,1964,19262,565,{"$f":"ROUND(Q1024*Q1023,0)","v":50},{"$f":"SUM(G1025:Q1025)","v":455694},{"$f":"ROUND(S1024*S1023,0)","v":0}]
[20,null,{"$f":"'FR-16(7)(v)-1 Functional'!C1026","v":"TOTAL FED DEF IT (410 & 411)"},null,null,{"$f":"F649","v":1551613},{"$f":"G649","v":699436},{"$f":"H649","v":419928},{"$f":"I649","v":2018},{"$f":"J649","v":7960},109,209374,138419,6687,65587,1924,{"$f":"$Q$649","v":171},{"$f":"R649","v":1551613},{"$f":"S649","v":0}]
[21,null,{"$f":"'FR-16(7)(v)-1 Functional'!C1027","v":"TOTAL AMORTIZED ITC"},null,null,{"$f":"-F653","v":-20},{"$f":"-G653","v":-9},{"$f":"-H653","v":-5},{"$f":"-I653","v":0},{"$f":"-J653","v":0},0,-3,-2,0,-1,0,{"$f":"-$Q$653","v":0},{"$f":"-R653","v":-20},{"$f":"-S653","v":0}]
[22,null,{"$f":"'FR-16(7)(v)-1 Functional'!C1028","v":"  NET FED INC TAX ALLOWABLE"},null,null,{"$f":"SUM(F1025:F1027)","v":2007288},904845,543252,2611,{"$f":"SUM(J1025:J1027)","v":10298},141,270862,179069,8651,84848,2489,221,2007287,0]
[23]
[24,"FEDERAL INCOME TAX PAYABLE"]
[25,null,{"$f":"'FR-16(7)(v)-1 Functional'!C1031","v":"PRELIM FIT"},null,null,{"$f":"F1025","v":455695},205418,123329,593,{"$f":"J1025","v":2338},32,61491,40652,1964,19262,565,50,455694,0]
[26,null,{"$f":"'FR-16(7)(v)-1 Functional'!C1032","v":"TEST YEAR INV TAX CREDIT"},null,null,{"$f":"-F658","v":0},{"$f":"-G658","v":0},{"$f":"-H658","v":0},{"$f":"-I658","v":0},{"$f":"-J658","v":0},0,0,0,0,0,0,{"$f":"-$Q$658","v":0},{"$f":"-R658","v":0},{"$f":"-S658","v":0}]
[27,null,{"$f":"'FR-16(7)(v)-1 Functional'!C1033","v":"  FED INC TAX PAYABLE"},null,null,{"$f":"SUM(F1030:F1032)","v":455695},205418,123329,593,{"$f":"SUM(J1030:J1032)","v":2338},32,61491,40652,1964,19262,565,50,455694,0]
[28]
[29,"PRELIMINARY SUMMARY"]
[30,null,{"$f":"'FR-16(7)(v)-1 Functional'!C1036","v":"NET INCOME"},null,null,{"$f":"F1013","v":5068166},2284628,1371649,6590,{"$f":"J1013","v":26000},355,683897,452130,21843,214231,6285,558,5068166,0]
[31,null,{"$f":"'FR-16(7)(v)-1 Functional'!C1037","v":"NET FED INC TAX ALLOWABLE"},null,null,{"$f":"-F1028","v":-2007288},-904845,-543252,-2611,{"$f":"-J1028","v":-10298},-141,-270862,-179069,-8651,-84848,-2489,-221,-2007287,0]
[32,null,{"$f":"'FR-16(7)(v)-1 Functional'!C1038","v":"  OVERALL RETURN EARNED"},null,null,{"$f":"SUM(F1035:F1037)","v":3060878},1379783,828397,3979,{"$f":"SUM(J1035:J1037)","v":15702},214,413035,273061,13192,129383,3796,337,3060879,0]
[33]
[34,null,{"$f":"'FR-16(7)(v)-1 Functional'!C1040","v":"  RATE OF RETURN EARNED"},null,null,{"$f":"IF(F426=0,0,ROUND(F1038/F426,5))","v":7.281E-2},7.281E-2,7.281E-2,7.281E-2,7.281E-2,7.2669999999999998E-2,7.281E-2,7.281E-2,7.281E-2,7.281E-2,7.2819999999999996E-2,7.2910000000000003E-2,7.281E-2,0]

{"sheet":"FR-16(7)(v)-8 TRANS Energy","index":11,"n_rows":1040,"n_cols":23,"rows_kept":1040,"cut":false,"hidden":false,"merged":[]}
[{"$f":"co_name","v":"DUKE ENERGY KENTUCKY, INC."},null,null,null,null,null,null,null,null,null,null,null,null,null,null,null,null,"FR-16(7)(v)-8"]
[{"$f":"F8&\" \"&F9&\" ALLOCATED - ELECTRIC COST OF SERVICE\"","v":"TRANSMISSION ENERGY ALLOCATED - ELECTRIC COST OF SERVICE"},null,null,null,null,null,null,null,null,null,null,null,null,null,null,null,null,"WITNESS RESPONSIBLE:"]
[{"$f":"case_name","v":"CASE NO: 2019-00271"},null,null,null,null,null,null,null,null,null,null,null,null,null,null,null,null,{"$f":"Witness","v":"JAMES E. ZIOLKOWSKI"}]
[{"$f":"data_filing","v":"DATA: 12 MONTHS ACTUAL  & 0 MONTHS ESTIMATED"},null,null,null,null,null,null,null,null,null,null,null,null,null,null,null,null,{"$f":"\"PAGE \"&Pages-17&\" OF \"&Pages","v":"PAGE 1 OF 18"}]
[{"$f":"type","v":"TYPE OF FILING: \"X\" ORIGINAL   UPDATED    REVISED  "}]
[]
[null,null,null,null,null,{"$f":"'FR-16(7)(v)-3 PROD Demand'!F7","v":"TOTAL"},null,{"$f":"'FR-16(7)(v)-3 PROD Demand'!H7","v":"DS"},{"$f":"'FR-16(7)(v)-3 PROD Demand'!I7","v":"GSFL"},{"$f":"'FR-16(7)(v)-3 PROD Demand'!J7","v":"EH"},{"$f":"'FR-16(7)(v)-3 PROD Demand'!K7","v":"SP"},{"$f":"'FR-16(7)(v)-3 PROD Demand'!L7","v":"DT SEC"},{"$f":"'FR-16(7)(v)-3 PROD Demand'!M7","v":"DT PRI"},{"$f":"'FR-16(7)(v)-3 PROD Demand'!N7","v":"DP"},{"$f":"'FR-16(7)(v)-3 PROD Demand'!O7","v":"TT"},null,{"$f":"'FR-16(7)(v)-3 PROD Demand'!Q7","v":"OTHER"}]
["LINE",null,null,null,null,{"$f":"'FR-16(7)(v)-7 TRANS Demand'!F8","v":"TRANSMISSION"},{"$f":"'FR-16(7)(v)-3 PROD Demand'!G8","v":"RS"},{"$f":"'FR-16(7)(v)-3 PROD Demand'!H8","v":"SECONDARY"},{"$f":"'FR-16(7)(v)-3 PROD Demand'!I8","v":"SECONDARY"},{"$f":"'FR-16(7)(v)-3 PROD Demand'!J8","v":"SECONDARY"},{"$f":"'FR-16(7)(v)-3 PROD Demand'!K8","v":"SECONDARY"},{"$f":"'FR-16(7)(v)-3 PROD Demand'!L8","v":"SECONDARY"},{"$f":"'FR-16(7)(v)-3 PROD Demand'!M8","v":"PRIMARY"},{"$f":"'FR-16(7)(v)-3 PROD Demand'!N8","v":"PRIMARY"},{"$f":"'FR-16(7)(v)-3 PROD Demand'!O8","v":"TRANSMISSION"},{"$f":"'FR-16(7)(v)-3 PROD Demand'!P8","v":"LT"},{"$f":"'FR-16(7)(v)-3 PROD Demand'!Q8","v":"WATER"},{"$f":"'FR-16(7)(v)-3 PROD Demand'!R8","v":"TOTAL"},{"$f":"'FR-16(7)(v)-3 PROD Demand'!S8","v":"ALL"}]
["NO.","SUMMARY OF RESULTS",null,"ALLO",null,"ENERGY",{"$f":"'FR-16(7)(v)-3 PROD Demand'!G9","v":"RESIDENTIAL"},{"$f":"'FR-16(7)(v)-3 PROD Demand'!H9","v":"DISTRIBUTION"},{"$f":"'FR-16(7)(v)-3 PROD Demand'!I9","v":"DISTRIBUTION"},{"$f":"'FR-16(7)(v)-3 PROD Demand'!J9","v":"DISTRIBUTION"},{"$f":"'FR-16(7)(v)-3 PROD Demand'!K9","v":"DISTRIBUTION"},{"$f":"'FR-16(7)(v)-3 PROD Demand'!L9","v":"DISTRIBUTION"},{"$f":"'FR-16(7)(v)-3 PROD Demand'!M9","v":"DISTRIBUTION"},{"$f":"'FR-16(7)(v)-3 PROD Demand'!N9","v":"DISTRIBUTION"},{"$f":"'FR-16(7)(v)-3 PROD Demand'!O9","v":"TIME OF DAY"},{"$f":"'FR-16(7)(v)-3 PROD Demand'!P9","v":"LIGHTING"},{"$f":"'FR-16(7)(v)-3 PROD Demand'!Q9","v":"PUMPING"},{"$f":"'FR-16(7)(v)-3 PROD Demand'!R9","v":"AT ISSUE"},{"$f":"'FR-16(7)(v)-3 PROD Demand'!S9","v":"OTHER"}]
[null,null,"Schedule 1",null,null,null,3,4,5,6,7,8,9,10,11,12,13]
[1,"NET INCOME COMPUTATION"]
[2,null,{"$f":"'FR-16(7)(v)-1 Functional'!C12","v":"GROSS ELECTRIC PLANT IN SERVICE"},null,null,{"$f":"F123","v":0},{"$f":"G123","v":0},{"$f":"H123","v":0},{"$f":"I123","v":0},{"$f":"J123","v":0},0,0,0,0,0,0,{"$f":"Q123","v":0},{"$f":"SUM(G12:Q12)","v":0},{"$f":"F12-R12","v":0}]
[3,null,{"$f":"'FR-16(7)(v)-1 Functional'!C13","v":"TOTAL DEPRECIATION RESERVE"},null,null,{"$f":"-F200","v":0},{"$f":"-G200","v":0},{"$f":"-H200","v":0},{"$f":"-I200","v":0},{"$f":"-J200","v":0},0,0,0,0,0,0,{"$f":"-Q200","v":0},{"$f":"SUM(G13:Q13)","v":0},{"$f":"F13-R13","v":0}]
[4,null,{"$f":"'FR-16(7)(v)-1 Functional'!C14","v":"TOTAL RATE BASE ADJUSTMENTS"},null,null,{"$f":"F421","v":0},{"$f":"G421","v":0},{"$f":"H421","v":0},{"$f":"I421","v":0},{"$f":"J421","v":0},0,0,0,0,0,0,{"$f":"Q421","v":0},{"$f":"SUM(G14:Q14)","v":0},{"$f":"F14-R14","v":0}]
[5,null,{"$f":"'FR-16(7)(v)-1 Functional'!C15","v":"  TOTAL RATE BASE"},null,null,{"$f":"SUM(F12:F14)","v":0},{"$f":"SUM(G12:G14)","v":0},{"$f":"SUM(H12:H14)","v":0},{"$f":"SUM(I12:I14)","v":0},{"$f":"SUM(J12:J14)","v":0},0,0,0,0,0,0,{"$f":"SUM(Q12:Q14)","v":0},{"$f":"SUM(R12:R14)","v":0},{"$f":"F15-R15","v":0}]
[6]
[7,"OPERATING EXPENSES"]
[8,null,{"$f":"'FR-16(7)(v)-1 Functional'!C18","v":"TOTAL O&M EXPENSE"},null,null,{"$f":"F549","v":0},{"$f":"G549","v":0},{"$f":"H549","v":0},{"$f":"I549","v":0},{"$f":"J549","v":0},0,0,0,0,0,0,{"$f":"Q549","v":0},{"$f":"SUM(G18:Q18)","v":0},{"$f":"F18-R18","v":0}]
[9,null,{"$f":"'FR-16(7)(v)-1 Functional'!C19","v":"TOTAL DEPRECIATION EXPENSE"},null,null,{"$f":"F582","v":0},{"$f":"G582","v":0},{"$f":"H582","v":0},{"$f":"I582","v":0},{"$f":"J582","v":0},0,0,0,0,0,0,{"$f":"Q582","v":0},{"$f":"SUM(G19:Q19)","v":0},0]
[10,null,{"$f":"'FR-16(7)(v)-1 Functional'!C20","v":"TOTAL OTHER TAX & MISC EXPENSE"},null,null,{"$f":"F612","v":0},{"$f":"G612","v":0},{"$f":"H612","v":0},{"$f":"I612","v":0},{"$f":"J612","v":0},0,0,0,0,0,0,{"$f":"$Q$612","v":0},{"$f":"SUM(G20:Q20)","v":0},0]
[11,null,{"$f":"'FR-16(7)(v)-1 Functional'!C21","v":"  TOTAL OP EXP EXCLUDING INC & REV TAX"},null,null,{"$f":"SUM(F17:F20)","v":0},0,0,0,{"$f":"SUM(J17:J20)","v":0},0,0,0,0,0,0,0,0,0]
[12,null,{"$f":"'FR-16(7)(v)-1 Functional'!C22","v":"NET FED INCOME TAX EXP ALLOWABLE"},null,null,{"$f":"F676","v":0},{"$f":"G676","v":0},{"$f":"H676","v":0},{"$f":"I676","v":0},{"$f":"J676","v":0},0,0,0,0,0,0,{"$f":"$Q$676","v":0},{"$f":"SUM(G22:Q22)","v":0},0]
[13,null,"NET STATE INCOME TAX EXP ALLOWABLE",null,null,{"$f":"F722","v":0},{"$f":"G722","v":0},0,0,0,0,0,0,0,0,0,0,{"$f":"SUM(G23:Q23)","v":0},0]
[14,null,"RESERVED",{"$f":"'FR-16(7)(v)-1 Functional'!D24","v":"CW29"},null,{"$f":"'FR-16(7)(v)-6 TRANS Classified'!H24","v":0},{"$f":"F24-SUM(H24:Q24)","v":0},{"$f":"ROUND(F24*VLOOKUP(D73,ALLOCTABLE_Trans_Energy,$H$10,FALSE),0)","v":0},{"$f":"ROUND(F24*VLOOKUP($D$24,ALLOCTABLE_Trans_Energy,$I$10,FALSE),0)","v":0},{"$f":"ROUND(F24*VLOOKUP($D$24,ALLOCTABLE_Trans_Energy,$J$10,FALSE),0)","v":0},{"$f":"ROUND(F24*VLOOKUP($D$24,ALLOCTABLE_Trans_Energy,$K$10,FALSE),0)","v":0},{"$f":"ROUND(F24*VLOOKUP($D$24,ALLOCTABLE_Trans_Energy,$L$10,FALSE),0)","v":0},{"$f":"ROUND(F24*VLOOKUP($D$24,ALLOCTABLE_Trans_Energy,$M$10,FALSE),0)","v":0},{"$f":"ROUND(F24*VLOOKUP($D$24,ALLOCTABLE_Trans_Energy,$N$10,FALSE),0)","v":0},{"$f":"ROUND(F24*VLOOKUP($D$24,ALLOCTABLE_Trans_Energy,$O$10,FALSE),0)","v":0},{"$f":"ROUND(F24*VLOOKUP($D$24,ALLOCTABLE_Trans_Energy,$P$10,FALSE),0)","v":0},{"$f":"ROUND(F24*VLOOKUP(D24,ALLOCTABLE_Trans_Energy,$Q$10,FALSE),0)","v":0},{"$f":"SUM(G24:Q24)","v":0},{"$f":"F24-R24","v":0}]
[15,null,{"$f":"'FR-16(7)(v)-1 Functional'!C25","v":"REVENUE TAX"},null,null,{"$f":"F767","v":0},{"$f":"G767","v":0},{"$f":"H767","v":0},{"$f":"I767","v":0},{"$f":"J767","v":0},0,0,0,0,0,0,{"$f":"Q767","v":0},{"$f":"SUM(G25:Q25)","v":0},0]
[16,null,{"$f":"'FR-16(7)(v)-1 Functional'!C26","v":"  TOTAL OPERATING EXPENSE"},null,null,{"$f":"SUM(F21:F25)","v":0},0,0,0,{"$f":"SUM(J21:J25)","v":0},0,0,0,0,0,0,0,0,0]
[17]
[18,"RETURN ON RATE BASE",null,null,null,{"$f":"F433","v":0},0,0,0,0,0,0,0,0,0,0,0,{"$f":"SUM(G28:Q28)","v":0},{"$f":"F28-R28","v":0}]
[19,"TOTAL OTHER OPERATING REVENUES",null,null,null,{"$f":"-F750","v":0},{"$f":"-G750","v":0},{"$f":"-H750","v":0},{"$f":"-I750","v":0},{"$f":"-J750","v":0},0,0,0,0,0,0,{"$f":"-$Q$750","v":0},{"$f":"SUM(G29:Q29)","v":0},0]
[20,null,{"$f":"'FR-16(7)(v)-1 Functional'!C30","v":"TOTAL ELECTRIC COST OF SERVICE"},null,null,{"$f":"SUM(F26:F29)","v":0},0,0,0,{"$f":"SUM(J26:J29)","v":0},0,0,0,0,0,0,0,0,0]
[21,"ADJUSTMENT FOR INTERCLASS SUBSIDIZATION",null,{"$f":"1-'WP FR-16(7)(v) Rate Incr'!I11","v":0.95},null,{"$f":"'WP FR-16(7)(v) Rate Incr'!Q27","v":0},{"$f":"'WP FR-16(7)(v) Rate Incr'!Q15","v":-9336840},{"$f":"'WP FR-16(7)(v) Rate Incr'!Q16","v":6445498},{"$f":"'WP FR-16(7)(v) Rate Incr'!Q17","v":89344},{"$f":"'WP FR-16(7)(v) Rate Incr'!R17","v":6774},{"$f":"'WP FR-16(7)(v) Rate Incr'!S17","v":56376},{"$f":"'WP FR-16(7)(v) Rate Incr'!T17","v":111986},{"$f":"'WP FR-16(7)(v) Rate Incr'!U17","v":0},{"$f":"'WP FR-16(7)(v) Rate Incr'!V17","v":40507},{"$f":"'WP FR-16(7)(v) Rate Incr'!W17","v":0},{"$f":"'WP FR-16(7)(v) Rate Incr'!X17","v":0},{"$f":"'WP FR-16(7)(v) Rate Incr'!Q25","v":-9875},{"$f":"SUM(G31:Q31)","v":-2596230},2596230]
[22,{"$f":"'FR-16(7)(v)-1 Functional'!$B$32","v":"REQUESTED REVENUES (COST OF SERVICE ADJUSTED FOR SUBSIDIES)"},null,null,null,{"$f":"F31+F30","v":0},-9336840,6445498,89344,{"$f":"J31+J30","v":6774},56376,111986,0,40507,0,0,-9875,-2596230,2596230]
[23,"PROPOSED REVENUES",null,null,null,{"$f":"F868","v":0},0,0,0,{"$f":"J868","v":0},0,0,0,0,0,0,0,0,0]
[24,"DIFFERENCE (REQUESTED LESS PROPOSED)",null,null,null,{"$f":"F32-F33","v":0},{"$f":"G32-G33","v":-9336840},6445498,89344,{"$f":"J32-J33","v":6774},56376,111986,0,40507,0,0,-9875,-2596230,2596230]
[25]
[26,"TOTAL RETURN EARNED",null,null,null,{"$f":"F777+F28","v":0},{"$f":"G777+G28","v":0},{"$f":"H777+H28","v":0},{"$f":"I777+I28","v":0},{"$f":"J777+J28","v":0},0,0,0,0,0,0,{"$f":"Q777+Q28","v":0},{"$f":"R777+R28","v":0},{"$f":"F36-R36","v":0}]
[27,"RATE OF RETURN EARNED",null,null,null,{"$f":"IF(F431=0,0,ROUND(F36/F431,5))","v":0},0,0,0,0,0,0,0,0,0,0,0,0,0]
[28,"TOTAL RATE OF RETURN ALLOWABLE",null,null,null,{"$f":"$F$811","v":6.7100000000000007E-2},{"$f":"$F$811","v":6.7100000000000007E-2},6.7100000000000007E-2,6.7100000000000007E-2,6.7100000000000007E-2,6.7100000000000007E-2,6.7100000000000007E-2,6.7100000000000007E-2,6.7100000000000007E-2,6.7100000000000007E-2,6.7100000000000007E-2,6.7100000000000007E-2,{"$f":"F811","v":6.7100000000000007E-2},{"$f":"F811","v":6.7100000000000007E-2},null,null,"Not Part of print range"]
[29,"RETURN EARNED ON COMMON EQUITY",null,null,null,{"$f":"IF(Equity=0,0,(F37-$F$806-$F$807-$F$809)*TotalCap/Equity)","v":-4.1049574113445099E-2},-4.1049574113445099E-2,-4.1049574113445099E-2,-4.1049574113445099E-2,-4.1049574113445099E-2,-4.1049574113445099E-2,-4.1049574113445099E-2,-4.1049574113445099E-2,-4.1049574113445099E-2,-4.1049574113445099E-2,-4.1049574113445099E-2,-4.1049574113445099E-2,{"$f":"IF(Equity=0,0,(R37-F806-F807-F809)*TotalCap/Equity)","v":-4.1049574113445099E-2},{"$f":"IF(Equity=0,0,(S37-F806-F807-F809)*TotalCap/Equity)","v":-4.1049574113445099E-2},null,null,"Not Filed"]
[30,"ALLOWED RETURN ON COMMON EQUITY",null,null,null,{"$f":"IF(Equity=0,0,(F38-$F$806-$F$807-$F$809)*TotalCap/Equity)","v":9.8062871493229981E-2},9.8062871493229981E-2,9.8062871493229981E-2,9.8062871493229981E-2,9.8062871493229981E-2,9.8062871493229981E-2,9.8062871493229981E-2,9.8062871493229981E-2,9.8062871493229981E-2,9.8062871493229981E-2,9.8062871493229981E-2,9.8062871493229981E-2,{"$f":"IF(Equity=0,0,(R38-F806-F807-F809)*TotalCap/Equity)","v":9.8062871493229981E-2},{"$f":"IF(Equity=0,0,(S38-F806-F807-F809)*TotalCap/Equity)","v":9.8062871493229981E-2}]
[31,null,null,null,null," "]
[32,"PRESENT REVENUES",null,null,null,{"$f":"F867","v":0},0,0,0,{"$f":"J867","v":0},0,0,0,0,0,0,0,0,{"$f":"F42-R42","v":0}]
[33,"REVENUE INCREASE JUSTIFIED",null,null,null,{"$f":"F30-F42","v":0},0,0,0,{"$f":"J30-J42","v":0},0,0,0,0,0,0,0,0,0]
[34,null,"PER UNIT PRES REV",null,null,{"$f":"IF(F42=0,0,ROUND(F43/F42,5))","v":0},0,0,0,{"$f":"IF(J42=0,0,ROUND(J43/J42,5))","v":0},0,0,0,0,0,0,0,0,0]
[35,"REVENUE INCREASE REQUESTED",null,null,null,{"$f":"F33-F42","v":0},0,0,0,{"$f":"J33-J42","v":0},0,0,0,0,0,0,0,0,0]
[36,null,"PER UNIT PRES REV",null,null,{"$f":"IF(F42=0,0,ROUND(F45/F42,5))","v":0},0,0,0,{"$f":"IF(J42=0,0,ROUND(J45/J42,5))","v":0},0,0,0,0,0,0,0,0,0]
[]
[{"$f":"co_name","v":"DUKE ENERGY KENTUCKY, INC."},null,null,null,null,null,null,null,null,null,null,null,null,null,null,null,null,{"$f":"R1","v":"FR-16(7)(v)-8"}]
[{"$f":"$A$2","v":"TRANSMISSION ENERGY ALLOCATED - ELECTRIC COST OF SERVICE"},null,null,null,null,null,null,null,null,null,null,null,null,null,null,null,null,{"$f":"R2","v":"WITNESS RESPONSIBLE:"}]
[{"$f":"case_name","v":"CASE NO: 2019-00271"},null,null,null,null,null,null,null,null,null,null,null,null,null,null,null,null,{"$f":"Witness","v":"JAMES E. ZIOLKOWSKI"}]
[{"$f":"data_filing","v":"DATA: 12 MONTHS ACTUAL  & 0 MONTHS ESTIMATED"},null,null,null,null,null,null,null,null,null,null,null,null,null,null,null,null,{"$f":"\"PAGE \"&Pages-16&\" OF \"&Pages","v":"PAGE 2 OF 18"}]
[{"$f":"type","v":"TYPE OF FILING: \"X\" ORIGINAL   UPDATED    REVISED  "}]
[]
[null,null,null,null,null,{"$f":"F$7","v":"TOTAL"},null,{"$f":"H$7","v":"DS"},{"$f":"I$7","v":"GSFL"},{"$f":"J$7","v":"EH"},{"$f":"K$7","v":"SP"},"DT SEC","DT PRI","DP","TT",null,"OTHER"]
["LINE",null,null,null,null,{"$f":"F$8","v":"TRANSMISSION"},{"$f":"G$8","v":"RS"},{"$f":"H$8","v":"SECONDARY"},{"$f":"I$8","v":"SECONDARY"},{"$f":"J$8","v":"SECONDARY"},{"$f":"K$8","v":"SECONDARY"},"SECONDARY","PRIMARY","PRIMARY","TRANSMISSION","LT","WATER",{"$f":"R8","v":"TOTAL"},"ALL"]
["NO.","GROSS ELECTRIC PLANT IN SERVICE",null,"ALLO",null,{"$f":"F$9","v":"ENERGY"},{"$f":"G$9","v":"RESIDENTIAL"},{"$f":"H$9","v":"DISTRIBUTION"},{"$f":"I$9","v":"DISTRIBUTION"},{"$f":"J$9","v":"DISTRIBUTION"},{"$f":"K$9","v":"DISTRIBUTION"},"DISTRIBUTION","DISTRIBUTION","DISTRIBUTION","TIME OF DAY","LIGHTING","PUMPING",{"$f":"R9","v":"AT ISSUE"},"OTHER"]
[null,null,"Schedule 2",null,null,null,{"$f":"G$10","v":3},{"$f":"H$10","v":4},{"$f":"I$10","v":5},{"$f":"J$10","v":6},{"$f":"K$10","v":7},8,9,10,11,12,13,null," "]
[1,"PRODUCTION PLANT"]
[2,null,"PRODUCTION STEAM",{"$f":"'FR-16(7)(v)-1 Functional'!D59","v":"K201"},null,{"$f":"'FR-16(7)(v)-6 TRANS Classified'!H59","v":0},{"$f":"F59-SUM(H59:Q59)","v":0},{"$f":"ROUND(F59*VLOOKUP(D59,ALLOCTABLE_Trans_Energy,$H$10,FALSE),0)","v":0},{"$f":"ROUND(F59*VLOOKUP($D$59,ALLOCTABLE_Trans_Energy,$I$10,FALSE),0)","v":0},{"$f":"ROUND(F59*VLOOKUP($D$59,ALLOCTABLE_Trans_Energy,$J$10,FALSE),0)","v":0},{"$f":"ROUND(F59*VLOOKUP($D$59,ALLOCTABLE_Trans_Energy,$K$10,FALSE),0)","v":0},{"$f":"ROUND(F59*VLOOKUP($D$59,ALLOCTABLE_Trans_Energy,$L$10,FALSE),0)","v":0},{"$f":"ROUND(F59*VLOOKUP($D$59,ALLOCTABLE_Trans_Energy,$M$10,FALSE),0)","v":0},{"$f":"ROUND(F59*VLOOKUP($D$59,ALLOCTABLE_Trans_Energy,$N$10,FALSE),0)","v":0},{"$f":"ROUND(F59*VLOOKUP($D$59,ALLOCTABLE_Trans_Energy,$O$10,FALSE),0)","v":0},{"$f":"ROUND(F59*VLOOKUP($D$59,ALLOCTABLE_Trans_Energy,$P$10,FALSE),0)","v":0},{"$f":"ROUND(F59*VLOOKUP(D59,ALLOCTABLE_Trans_Energy,$Q$10,FALSE),0)","v":0},{"$f":"SUM(G59:Q59)","v":0},{"$f":"F59-R59","v":0}]
[3,null,"PRODUCTION OTHER",{"$f":"'FR-16(7)(v)-1 Functional'!D60","v":"K201"},null,{"$f":"'FR-16(7)(v)-6 TRANS Classified'!H60","v":0},{"$f":"F60-SUM(H60:Q60)","v":0},{"$f":"ROUND(F60*VLOOKUP(D60,ALLOCTABLE_Trans_Energy,$H$10,FALSE),0)","v":0},{"$f":"ROUND(F60*VLOOKUP($D$60,ALLOCTABLE_Trans_Energy,$I$10,FALSE),0)","v":0},{"$f":"ROUND(F60*VLOOKUP($D$60,ALLOCTABLE_Trans_Energy,$J$10,FALSE),0)","v":0},{"$f":"ROUND(F60*VLOOKUP($D$60,ALLOCTABLE_Trans_Energy,$K$10,FALSE),0)","v":0},{"$f":"ROUND(F60*VLOOKUP($D$60,ALLOCTABLE_Trans_Energy,$L$10,FALSE),0)","v":0},{"$f":"ROUND(F60*VLOOKUP($D$60,ALLOCTABLE_Trans_Energy,$M$10,FALSE),0)","v":0},{"$f":"ROUND(F60*VLOOKUP($D$60,ALLOCTABLE_Trans_Energy,$N$10,FALSE),0)","v":0},{"$f":"ROUND(F60*VLOOKUP($D$60,ALLOCTABLE_Trans_Energy,$O$10,FALSE),0)","v":0},{"$f":"ROUND(F60*VLOOKUP($D$60,ALLOCTABLE_Trans_Energy,$P$10,FALSE),0)","v":0},{"$f":"ROUND(F60*VLOOKUP(D60,ALLOCTABLE_Trans_Energy,$Q$10,FALSE),0)","v":0},{"$f":"SUM(G60:Q60)","v":0},{"$f":"F60-R60","v":0}]
[4,null,{"$f":"'FR-16(7)(v)-1 Functional'!C61","v":"ADJUSTMENT"},{"$f":"'FR-16(7)(v)-1 Functional'!D61","v":"K201"},null,{"$f":"'FR-16(7)(v)-6 TRANS Classified'!H61","v":0},{"$f":"F61-SUM(H61:Q61)","v":0},{"$f":"ROUND(F61*VLOOKUP(D61,ALLOCTABLE_Trans_Energy,$H$10,FALSE),0)","v":0},{"$f":"ROUND(F61*VLOOKUP($D$61,ALLOCTABLE_Trans_Energy,$I$10,FALSE),0)","v":0},{"$f":"ROUND(F61*VLOOKUP($D$61,ALLOCTABLE_Trans_Energy,$J$10,FALSE),0)","v":0},{"$f":"ROUND(F61*VLOOKUP($D$61,ALLOCTABLE_Trans_Energy,$K$10,FALSE),0)","v":0},{"$f":"ROUND(F61*VLOOKUP($D$61,ALLOCTABLE_Trans_Energy,$L$10,FALSE),0)","v":0},{"$f":"ROUND(F61*VLOOKUP($D$61,ALLOCTABLE_Trans_Energy,$M$10,FALSE),0)","v":0},{"$f":"ROUND(F61*VLOOKUP($D$61,ALLOCTABLE_Trans_Energy,$N$10,FALSE),0)","v":0},{"$f":"ROUND(F61*VLOOKUP($D$61,ALLOCTABLE_Trans_Energy,$O$10,FALSE),0)","v":0},{"$f":"ROUND(F61*VLOOKUP($D$61,ALLOCTABLE_Trans_Energy,$P$10,FALSE),0)","v":0},{"$f":"ROUND(F61*VLOOKUP(D61,ALLOCTABLE_Trans_Energy,$Q$10,FALSE),0)","v":0},{"$f":"SUM(G61:Q61)","v":0},{"$f":"F61-R61","v":0}]
[5,null,{"$f":"'FR-16(7)(v)-1 Functional'!C62","v":"  PRODUCTION PLANT IN SERVICE"},null,null,{"$f":"SUM(F59:F61)","v":0},{"$f":"SUM(G59:G61)","v":0},{"$f":"SUM(H59:H61)","v":0},{"$f":"SUM(I59:I61)","v":0},{"$f":"SUM(J59:J61)","v":0},0,0,0,0,0,0,{"$f":"SUM($Q$59:$Q$61)","v":0},{"$f":"SUM(R59:R61)","v":0},{"$f":"SUM(S59:S61)","v":0}]
[6]
[7,"TRANSMISSION PLANT"]
[8,null,"MAIN STEP-UP TRANSFORMERS",{"$f":"'FR-16(7)(v)-1 Functional'!D65","v":"K202"},null,{"$f":"'FR-16(7)(v)-6 TRANS Classified'!H65","v":0},{"$f":"F65-SUM(H65:Q65)","v":0},{"$f":"ROUND(F65*VLOOKUP(D65,ALLOCTABLE_Trans_Energy,$H$10,FALSE),0)","v":0},{"$f":"ROUND(F65*VLOOKUP($D$65,ALLOCTABLE_Trans_Energy,$I$10,FALSE),0)","v":0},{"$f":"ROUND(F65*VLOOKUP($D$65,ALLOCTABLE_Trans_Energy,$J$10,FALSE),0)","v":0},{"$f":"ROUND(F65*VLOOKUP($D$65,ALLOCTABLE_Trans_Energy,$K$10,FALSE),0)","v":0},{"$f":"ROUND(F65*VLOOKUP($D$65,ALLOCTABLE_Trans_Energy,$L$10,FALSE),0)","v":0},{"$f":"ROUND(F65*VLOOKUP($D$65,ALLOCTABLE_Trans_Energy,$M$10,FALSE),0)","v":0},{"$f":"ROUND(F65*VLOOKUP($D$65,ALLOCTABLE_Trans_Energy,$N$10,FALSE),0)","v":0},{"$f":"ROUND(F65*VLOOKUP($D$65,ALLOCTABLE_Trans_Energy,$O$10,FALSE),0)","v":0},{"$f":"ROUND(F65*VLOOKUP($D$65,ALLOCTABLE_Trans_Energy,$P$10,FALSE),0)","v":0},{"$f":"ROUND(F65*VLOOKUP(D65,ALLOCTABLE_Trans_Energy,$Q$10,FALSE),0)","v":0},{"$f":"SUM(G65:Q65)","v":0},{"$f":"F65-R65","v":0}]
[9,null,"OTHER TRANSMISSION",{"$f":"'FR-16(7)(v)-1 Functional'!D66","v":"K202"},null,{"$f":"'FR-16(7)(v)-6 TRANS Classified'!H66","v":0},{"$f":"F66-SUM(H66:Q66)","v":0},{"$f":"ROUND(F66*VLOOKUP(D66,ALLOCTABLE_Trans_Energy,$H$10,FALSE),0)","v":0},{"$f":"ROUND(F66*VLOOKUP($D$66,ALLOCTABLE_Trans_Energy,$I$10,FALSE),0)","v":0},{"$f":"ROUND(F66*VLOOKUP($D$66,ALLOCTABLE_Trans_Energy,$J$10,FALSE),0)","v":0},{"$f":"ROUND(F66*VLOOKUP($D$66,ALLOCTABLE_Trans_Energy,$K$10,FALSE),0)","v":0},{"$f":"ROUND(F66*VLOOKUP($D$66,ALLOCTABLE_Trans_Energy,$L$10,FALSE),0)","v":0},{"$f":"ROUND(F66*VLOOKUP($D$66,ALLOCTABLE_Trans_Energy,$M$10,FALSE),0)","v":0},{"$f":"ROUND(F66*VLOOKUP($D$66,ALLOCTABLE_Trans_Energy,$N$10,FALSE),0)","v":0},{"$f":"ROUND(F66*VLOOKUP($D$66,ALLOCTABLE_Trans_Energy,$O$10,FALSE),0)","v":0},{"$f":"ROUND(F66*VLOOKUP($D$66,ALLOCTABLE_Trans_Energy,$P$10,FALSE),0)","v":0},{"$f":"ROUND(F66*VLOOKUP(D66,ALLOCTABLE_Trans_Energy,$Q$10,FALSE),0)","v":0},{"$f":"SUM(G66:Q66)","v":0},{"$f":"F66-R66","v":0}]
[10,null,"ADJUSTMENT",{"$f":"'FR-16(7)(v)-1 Functional'!D67","v":"K202"},null,{"$f":"'FR-16(7)(v)-6 TRANS Classified'!H67","v":0},{"$f":"F67-SUM(H67:Q67)","v":0},{"$f":"ROUND(F67*VLOOKUP(D67,ALLOCTABLE_Trans_Energy,$H$10,FALSE),0)","v":0},{"$f":"ROUND(F67*VLOOKUP($D$67,ALLOCTABLE_Trans_Energy,$I$10,FALSE),0)","v":0},{"$f":"ROUND(F67*VLOOKUP($D$67,ALLOCTABLE_Trans_Energy,$J$10,FALSE),0)","v":0},{"$f":"ROUND(F67*VLOOKUP($D$67,ALLOCTABLE_Trans_Energy,$K$10,FALSE),0)","v":0},{"$f":"ROUND(F67*VLOOKUP($D$67,ALLOCTABLE_Trans_Energy,$L$10,FALSE),0)","v":0},{"$f":"ROUND(F67*VLOOKUP($D$67,ALLOCTABLE_Trans_Energy,$M$10,FALSE),0)","v":0},{"$f":"ROUND(F67*VLOOKUP($D$67,ALLOCTABLE_Trans_Energy,$N$10,FALSE),0)","v":0},{"$f":"ROUND(F67*VLOOKUP($D$67,ALLOCTABLE_Trans_Energy,$O$10,FALSE),0)","v":0},{"$f":"ROUND(F67*VLOOKUP($D$67,ALLOCTABLE_Trans_Energy,$P$10,FALSE),0)","v":0},{"$f":"ROUND(F67*VLOOKUP(D67,ALLOCTABLE_Trans_Energy,$Q$10,FALSE),0)","v":0},{"$f":"SUM(G67:Q67)","v":0},{"$f":"F67-R67","v":0}]
[11,null,{"$f":"'FR-16(7)(v)-1 Functional'!C68","v":"  TRANSMISSION PLANT IN SERVICE"},null,null,{"$f":"SUM(F65:F67)","v":0},0,0,0,0,0,0,0,0,0,0,0,0,{"$f":"SUM(S65)","v":0}]
[12]
[13,"TOTAL PROD & TRANS PLANT",null,null,null,{"$f":"F68+F62","v":0},{"$f":"G68+G62","v":0},{"$f":"H68+H62","v":0},{"$f":"I68+I62","v":0},{"$f":"J68+J62","v":0},0,0,0,0,0,0,{"$f":"$Q$68+$Q$62","v":0},{"$f":"R68+R62","v":0},{"$f":"S68+S62","v":0}]
[14]
[15,"DISTRIBUTION PLANT"]
[16,null,{"$f":"'FR-16(7)(v)-1 Functional'!C73","v":"SUBSTATIONS"},{"$f":"'FR-16(7)(v)-1 Functional'!D73","v":"K215"},null,{"$f":"'FR-16(7)(v)-6 TRANS Classified'!H73","v":0},{"$f":"F73-SUM(H73:Q73)","v":0},{"$f":"ROUND(F73*VLOOKUP(D73,ALLOCTABLE_Trans_Energy,$H$10,FALSE),0)","v":0},{"$f":"ROUND(F73*VLOOKUP(D73,ALLOCTABLE_Trans_Energy,$I$10,FALSE),0)","v":0},{"$f":"ROUND(F73*VLOOKUP(D73,ALLOCTABLE_Trans_Energy,$J$10,FALSE),0)","v":0},{"$f":"ROUND(F73*VLOOKUP(D73,ALLOCTABLE_Trans_Energy,$K$10,FALSE),0)","v":0},{"$f":"ROUND(F73*VLOOKUP(D73,ALLOCTABLE_Trans_Energy,$L$10,FALSE),0)","v":0},{"$f":"ROUND(F73*VLOOKUP(D73,ALLOCTABLE_Trans_Energy,$M$10,FALSE),0)","v":0},{"$f":"ROUND(F73*VLOOKUP(D73,ALLOCTABLE_Trans_Energy,$N$10,FALSE),0)","v":0},{"$f":"ROUND(F73*VLOOKUP(D73,ALLOCTABLE_Trans_Energy,$O$10,FALSE),0)","v":0},{"$f":"ROUND(F73*VLOOKUP(D73,ALLOCTABLE_Trans_Energy,$P$10,FALSE),0)","v":0},{"$f":"ROUND(F73*VLOOKUP(D73,ALLOCTABLE_Trans_Energy,$Q$10,FALSE),0)","v":0},{"$f":"SUM(G73:Q73)","v":0},{"$f":"F73-R73","v":0}]
[17,null,{"$f":"'FR-16(7)(v)-1 Functional'!C74","v":"POLES, TOWERS  & FIXTURES - PRIMARY - DEMAND"},{"$f":"'FR-16(7)(v)-1 Functional'!D74","v":"K205"},null,{"$f":"'FR-16(7)(v)-6 TRANS Classified'!H74","v":0},0,0,0,0,0,0,0,0,0,0,0,0,0]
[18,null,{"$f":"'FR-16(7)(v)-1 Functional'!C75","v":"POLES, TOWERS  & FIXTURES - PRIMARY - CUSTOMER"},{"$f":"'FR-16(7)(v)-1 Functional'!D75","v":"K405"},null,{"$f":"'FR-16(7)(v)-6 TRANS Classified'!H75","v":0},0,0,0,0,0,0,0,0,0,0,0,0,0]
[19,null,{"$f":"'FR-16(7)(v)-1 Functional'!C76","v":"POLES, TOWERS  & FIXTURES - SECONDARY - DEMAND"},{"$f":"'FR-16(7)(v)-1 Functional'!D76","v":"K206"},null,{"$f":"'FR-16(7)(v)-6 TRANS Classified'!H76","v":0},0,0,0,0,0,0,0,0,0,0,0,0,0]
[20,null,{"$f":"'FR-16(7)(v)-1 Functional'!C77","v":"POLES, TOWERS  & FIXTURES - SECONDARY - CUSTOMER"},{"$f":"'FR-16(7)(v)-1 Functional'!D77","v":"K405"},null,{"$f":"'FR-16(7)(v)-6 TRANS Classified'!H77","v":0},0,0,0,0,0,0,0,0,0,0,0,0,0]
[21,null,{"$f":"'FR-16(7)(v)-1 Functional'!C78","v":"CONDUCTORS - OVERHEAD / PRIMARY - DEMAND"},{"$f":"'FR-16(7)(v)-1 Functional'!D78","v":"K205"},null,{"$f":"'FR-16(7)(v)-6 TRANS Classified'!H78","v":0},0,0,0,0,0,0,0,0,0,0,0,0,0]
[22,null,{"$f":"'FR-16(7)(v)-1 Functional'!C79","v":"CONDUCTORS - OVERHEAD / PRIMARY - CUSTOMER"},{"$f":"'FR-16(7)(v)-1 Functional'!D79","v":"K405"},null,{"$f":"'FR-16(7)(v)-6 TRANS Classified'!H79","v":0},0,0,0,0,0,0,0,0,0,0,0,0,0]
[23,null,{"$f":"'FR-16(7)(v)-1 Functional'!C80","v":"CONDUCTORS - OVERHEAD / SECONDARY - DEMAND"},{"$f":"'FR-16(7)(v)-1 Functional'!D80","v":"K206"},null,{"$f":"'FR-16(7)(v)-6 TRANS Classified'!H80","v":0},0,0,0,0,0,0,0,0,0,0,0,0,0]
[24,null,{"$f":"'FR-16(7)(v)-1 Functional'!C81","v":"CONDUCTORS - OVERHEAD / SECONDARY - CUSTOMER"},{"$f":"'FR-16(7)(v)-1 Functional'!D81","v":"K405"},null,{"$f":"'FR-16(7)(v)-6 TRANS Classified'!H81","v":0},0,0,0,0,0,0,0,0,0,0,0,0,0]
[25,null,{"$f":"'FR-16(7)(v)-1 Functional'!C82","v":"CONDUCTORS - UNDERGROUND / PRIMARY - DEMAND"},{"$f":"'FR-16(7)(v)-1 Functional'!D82","v":"K205"},null,{"$f":"'FR-16(7)(v)-6 TRANS Classified'!H82","v":0},0,0,0,0,0,0,0,0,0,0,0,0,0]
[26,null,{"$f":"'FR-16(7)(v)-1 Functional'!C83","v":"CONDUCTORS - UNDERGROUND / PRIMARY - CUSTOMER"},{"$f":"'FR-16(7)(v)-1 Functional'!D83","v":"K405"},null,{"$f":"'FR-16(7)(v)-6 TRANS Classified'!H83","v":0},0,0,0,0,0,0,0,0,0,0,0,0,0]
[27,null,{"$f":"'FR-16(7)(v)-1 Functional'!C84","v":"CONDUCTORS - UNDERGROUND / SECONDARY - DEMAND"},{"$f":"'FR-16(7)(v)-1 Functional'!D84","v":"K206"},null,{"$f":"'FR-16(7)(v)-6 TRANS Classified'!H84","v":0},0,0,0,0,0,0,0,0,0,0,0,0,0]
[28,null,{"$f":"'FR-16(7)(v)-1 Functional'!C85","v":"CONDUCTORS - UNDERGROUND / SECONDARY - CUSTOMER"},{"$f":"'FR-16(7)(v)-1 Functional'!D85","v":"K405"},null,{"$f":"'FR-16(7)(v)-6 TRANS Classified'!H85","v":0},0,0,0,0,0,0,0,0,0,0,0,0,0]
[29,null,{"$f":"'FR-16(7)(v)-1 Functional'!C86","v":"TRANSFORMERS DEMAND RELATED"},{"$f":"'FR-16(7)(v)-1 Functional'!D86","v":"K215"},null,{"$f":"'FR-16(7)(v)-6 TRANS Classified'!H86","v":0},0,0,0,0,0,0,0,0,0,0,0,0,0]
[30,null,{"$f":"'FR-16(7)(v)-1 Functional'!C87","v":"TRANSFORMERS CUSTOMER RELATED"},{"$f":"'FR-16(7)(v)-1 Functional'!D87","v":"K405"},null,{"$f":"'FR-16(7)(v)-6 TRANS Classified'!H87","v":0},0,0,0,0,0,0,0,0,0,0,0,0,0]
[31,null,{"$f":"'FR-16(7)(v)-1 Functional'!C88","v":"SERVICES"},{"$f":"'FR-16(7)(v)-1 Functional'!D88","v":"K217"},null,{"$f":"'FR-16(7)(v)-6 TRANS Classified'!H88","v":0},0,0,0,0,0,0,0,0,0,0,0,0,0]
[32,null,{"$f":"'FR-16(7)(v)-1 Functional'!C89","v":"METERS"},{"$f":"'FR-16(7)(v)-1 Functional'!D89","v":"K407"},null,{"$f":"'FR-16(7)(v)-6 TRANS Classified'!H89","v":0},0,0,0,0,0,0,0,0,0,0,0,0,0]
[33,null,{"$f":"'FR-16(7)(v)-1 Functional'!C90","v":"STREET LIGHTS"},{"$f":"'FR-16(7)(v)-1 Functional'!D90","v":"K401"},null,{"$f":"'FR-16(7)(v)-6 TRANS Classified'!H90","v":0},0,0,0,0,0,0,0,0,0,0,0,0,0]
[34,null,{"$f":"'FR-16(7)(v)-1 Functional'!C91","v":"ADJUSTMENT  "},{"$f":"'FR-16(7)(v)-1 Functional'!D91","v":"K209"},null,{"$f":"'FR-16(7)(v)-6 TRANS Classified'!H91","v":0},0,0,0,0,0,0,0,0,0,0,0,0,0]
[35,null,{"$f":"'FR-16(7)(v)-1 Functional'!C92","v":"CONSTRUCTION NOT CLASSIFIED"},{"$f":"'FR-16(7)(v)-1 Functional'!D92","v":"K209"},null,{"$f":"'FR-16(7)(v)-6 TRANS Classified'!H92","v":0},0,0,0,0,0,0,0,0,0,0,0,0,0]
[36,null,{"$f":"'FR-16(7)(v)-1 Functional'!C93","v":"RWIP"},{"$f":"'FR-16(7)(v)-1 Functional'!D93","v":"K215"},null,{"$f":"'FR-16(7)(v)-6 TRANS Classified'!H93","v":0},{"$f":"F93-SUM(H93:Q93)","v":0},{"$f":"ROUND(F93*VLOOKUP(D93,ALLOCTABLE_Trans_Energy,$H$10,FALSE),0)","v":0},{"$f":"ROUND(F93*VLOOKUP(D93,ALLOCTABLE_Trans_Energy,$I$10,FALSE),0)","v":0},{"$f":"ROUND(F93*VLOOKUP(D93,ALLOCTABLE_Trans_Energy,$J$10,FALSE),0)","v":0},{"$f":"ROUND(F93*VLOOKUP(D93,ALLOCTABLE_Trans_Energy,$K$10,FALSE),0)","v":0}]
[37,null,{"$f":"'FR-16(7)(v)-1 Functional'!C94","v":"  DISTRIBUTION PLANT IN SERVICE"},null,null,{"$f":"SUM(F73:F93)","v":0},{"$f":"SUM(G73:G92)","v":0},{"$f":"SUM(H73:H92)","v":0},{"$f":"SUM(I73:I92)","v":0},{"$f":"SUM(J73:J92)","v":0},0,0,0,0,0,0,{"$f":"SUM(Q73:Q92)","v":0},{"$f":"SUM(R73:R92)","v":0},{"$f":"SUM(S73:S92)","v":0}]
[38]
[39,"TOTAL TRANS & DIST PLANT",null,null,null,{"$f":"F94+F68","v":0},{"$f":"G94+G68","v":0},{"$f":"H94+H68","v":0},{"$f":"I94+I68","v":0},{"$f":"J94+J68","v":0},0,0,0,0,0,0,{"$f":"Q94+$Q$68","v":0},{"$f":"R94+R68","v":0},{"$f":"S94+S68","v":0}]
[40,"TOTAL GROSS PTD PLANT",null,null,null,{"$f":"F94+F70","v":0},{"$f":"G94+G70","v":0},{"$f":"H94+H70","v":0},{"$f":"I94+I70","v":0},{"$f":"J94+J70","v":0},0,0,0,0,0,0,{"$f":"Q94+Q70","v":0},{"$f":"R94+R70","v":0},{"$f":"S94+S70","v":0}]
[41]
[42,"GENERAL & INTANGIBLE PLANT"]
[43,null,{"$f":"'FR-16(7)(v)-1 Functional'!C100","v":"PRODUCTION - DEMAND"},{"$f":"'FR-16(7)(v)-1 Functional'!D100","v":"K201"},null,{"$f":"'FR-16(7)(v)-6 TRANS Classified'!H100","v":0},{"$f":"F100-SUM(H100:Q100)","v":0},{"$f":"ROUND(F100*VLOOKUP(D100,ALLOCTABLE_Trans_Energy,$H$10,FALSE),0)","v":0},{"$f":"ROUND(F100*VLOOKUP($D$89,ALLOCTABLE_Trans_Energy,$I$10,FALSE),0)","v":0},{"$f":"ROUND(F100*VLOOKUP($D$89,ALLOCTABLE_Trans_Energy,$J$10,FALSE),0)","v":0},{"$f":"ROUND(F100*VLOOKUP($D$89,ALLOCTABLE_Trans_Energy,$K$10,FALSE),0)","v":0},{"$f":"ROUND(F100*VLOOKUP($D$89,ALLOCTABLE_Trans_Energy,$L$10,FALSE),0)","v":0},{"$f":"ROUND(F100*VLOOKUP($D$89,ALLOCTABLE_Trans_Energy,$M$10,FALSE),0)","v":0},{"$f":"ROUND(F100*VLOOKUP($D$89,ALLOCTABLE_Trans_Energy,$N$10,FALSE),0)","v":0},{"$f":"ROUND(F100*VLOOKUP($D$89,ALLOCTABLE_Trans_Energy,$O$10,FALSE),0)","v":0},{"$f":"ROUND(F100*VLOOKUP($D$89,ALLOCTABLE_Trans_Energy,$P$10,FALSE),0)","v":0},{"$f":"ROUND(F100*VLOOKUP(D100,ALLOCTABLE_Trans_Energy,$Q$10,FALSE),0)","v":0},{"$f":"SUM(G100:Q100)","v":0},{"$f":"F100-R100","v":0}]
[44,null,{"$f":"'FR-16(7)(v)-1 Functional'!C101","v":"PRODUCTION - ENERGY"},{"$f":"'FR-16(7)(v)-1 Functional'!D101","v":"K301"},null,{"$f":"'FR-16(7)(v)-6 TRANS Classified'!H101","v":0},0,0,0,0,0,0,0,0,0,0,0,0,0]
[45,null,{"$f":"'FR-16(7)(v)-1 Functional'!C102","v":"TRANSMISSION"},{"$f":"'FR-16(7)(v)-1 Functional'!D102","v":"K202"},null,{"$f":"'FR-16(7)(v)-6 TRANS Classified'!H102","v":0},0,0,0,0,0,0,0,0,0,0,0,0,0]
[46,null,{"$f":"'FR-16(7)(v)-1 Functional'!C103","v":"DISTRIBUTION - DEMAND"},{"$f":"'FR-16(7)(v)-1 Functional'!D103","v":"K201"},null,{"$f":"'FR-16(7)(v)-6 TRANS Classified'!H103","v":0},0,0,0,0,0,0,0,0,0,0,0,0,0]
[47,null,{"$f":"'FR-16(7)(v)-1 Functional'!C104","v":"DISTRIBUTION - CUSTOMER"},{"$f":"'FR-16(7)(v)-1 Functional'!D104","v":"K405"},null,{"$f":"'FR-16(7)(v)-6 TRANS Classified'!H104","v":0},0,0,0,0,0,0,0,0,0,0,0,0,0]
[48,null,{"$f":"'FR-16(7)(v)-1 Functional'!C105","v":"CUSTOMER ACCOUNTING"},{"$f":"'FR-16(7)(v)-1 Functional'!D105","v":"A308"},null,{"$f":"'FR-16(7)(v)-6 TRANS Classified'!H105","v":0},0,0,0,0,0,0,0,0,0,0,0,0,0]
[49,null,{"$f":"'FR-16(7)(v)-1 Functional'!C106","v":"CUSTOMER SERVICE & INFORMATION"},{"$f":"'FR-16(7)(v)-1 Functional'!D106","v":"A310"},null,{"$f":"'FR-16(7)(v)-6 TRANS Classified'!H106","v":0},0,0,0,0,0,0,0,0,0,0,0,0,0]
[50,null,{"$f":"'FR-16(7)(v)-1 Functional'!C107","v":"SALES"},{"$f":"'FR-16(7)(v)-1 Functional'!D107","v":"A312"},null,{"$f":"'FR-16(7)(v)-6 TRANS Classified'!H107","v":0},0,0,0,0,0,0,0,0,0,0,0,0,0]
[51,null,{"$f":"'FR-16(7)(v)-1 Functional'!C108","v":"ADJUSTMENT"},{"$f":"'FR-16(7)(v)-1 Functional'!D108","v":"A315"},null,{"$f":"'FR-16(7)(v)-6 TRANS Classified'!H108","v":0},0,0,0,0,0,0,0,0,0,0,0,0,0]
[52,null,{"$f":"'FR-16(7)(v)-1 Functional'!C109","v":"  GEN & INTANG PLANT IN SERVICE"},null,null,{"$f":"SUM(F100:F108)","v":0},{"$f":"SUM(G100:G108)","v":0},{"$f":"SUM(H100:H108)","v":0},{"$f":"SUM(I100:I108)","v":0},{"$f":"SUM(J100:J108)","v":0},0,0,0,0,0,0,{"$f":"SUM(Q100:Q108)","v":0},{"$f":"SUM(R100:R108)","v":0},{"$f":"SUM(S100:S108)","v":0}]
[53]
[54,"COMMON & OTHER PLANT"]
[55,null,{"$f":"'FR-16(7)(v)-1 Functional'!C112","v":"PRODUCTION - DEMAND"},{"$f":"'FR-16(7)(v)-1 Functional'!D112","v":"K201"},null,{"$f":"'FR-16(7)(v)-6 TRANS Classified'!H112","v":0},{"$f":"F112-SUM(H112:Q112)","v":0},{"$f":"ROUND(F112*VLOOKUP(D112,ALLOCTABLE_Trans_Energy,$H$10,FALSE),0)","v":0},{"$f":"ROUND(F112*VLOOKUP($D$89,ALLOCTABLE_Trans_Energy,$I$10,FALSE),0)","v":0},{"$f":"ROUND(F112*VLOOKUP($D$89,ALLOCTABLE_Trans_Energy,$J$10,FALSE),0)","v":0},{"$f":"ROUND(F112*VLOOKUP($D$89,ALLOCTABLE_Trans_Energy,$K$10,FALSE),0)","v":0},{"$f":"ROUND(F112*VLOOKUP($D$89,ALLOCTABLE_Trans_Energy,$L$10,FALSE),0)","v":0},{"$f":"ROUND(F112*VLOOKUP($D$89,ALLOCTABLE_Trans_Energy,$M$10,FALSE),0)","v":0},{"$f":"ROUND(F112*VLOOKUP($D$89,ALLOCTABLE_Trans_Energy,$N$10,FALSE),0)","v":0},{"$f":"ROUND(F112*VLOOKUP($D$89,ALLOCTABLE_Trans_Energy,$O$10,FALSE),0)","v":0},{"$f":"ROUND(F112*VLOOKUP($D$89,ALLOCTABLE_Trans_Energy,$P$10,FALSE),0)","v":0},{"$f":"ROUND(F112*VLOOKUP(D112,ALLOCTABLE_Trans_Energy,$Q$10,FALSE),0)","v":0},{"$f":"SUM(G112:Q112)","v":0},{"$f":"F112-R112","v":0}]
[56,null,{"$f":"'FR-16(7)(v)-1 Functional'!C113","v":"PRODUCTION - ENERGY"},{"$f":"'FR-16(7)(v)-1 Functional'!D113","v":"K301"},null,{"$f":"'FR-16(7)(v)-6 TRANS Classified'!H113","v":0},0,0,0,0,0,0,0,0,0,0,0,0,0]
[57,null,{"$f":"'FR-16(7)(v)-1 Functional'!C114","v":"TRANSMISSION"},{"$f":"'FR-16(7)(v)-1 Functional'!D114","v":"K202"},null,{"$f":"'FR-16(7)(v)-6 TRANS Classified'!H114","v":0},0,0,0,0,0,0,0,0,0,0,0,0,0]
[58,null,{"$f":"'FR-16(7)(v)-1 Functional'!C115","v":"DISTRIBUTION - DEMAND"},{"$f":"'FR-16(7)(v)-1 Functional'!D115","v":"K201"},null,{"$f":"'FR-16(7)(v)-6 TRANS Classified'!H115","v":0},0,0,0,0,0,0,0,0,0,0,0,0,0]
[59,null,{"$f":"'FR-16(7)(v)-1 Functional'!C116","v":"DISTRIBUTION - CUSTOMER"},{"$f":"'FR-16(7)(v)-1 Functional'!D116","v":"K405"},null,{"$f":"'FR-16(7)(v)-6 TRANS Classified'!H116","v":0},0,0,0,0,0,0,0,0,0,0,0,0,0]
[60,null,{"$f":"'FR-16(7)(v)-1 Functional'!C117","v":"CUSTOMER ACCOUNTING"},{"$f":"'FR-16(7)(v)-1 Functional'!D117","v":"A308"},null,{"$f":"'FR-16(7)(v)-6 TRANS Classified'!H117","v":0},0,0,0,0,0,0,0,0,0,0,0,0,0]
[61,null,{"$f":"'FR-16(7)(v)-1 Functional'!C118","v":"CUSTOMER SERVICE & INFORMATION"},{"$f":"'FR-16(7)(v)-1 Functional'!D118","v":"A310"},null,{"$f":"'FR-16(7)(v)-6 TRANS Classified'!H118","v":0},0,0,0,0,0,0,0,0,0,0,0,0,0]
[62,null,{"$f":"'FR-16(7)(v)-1 Functional'!C119","v":"SALES"},{"$f":"'FR-16(7)(v)-1 Functional'!D119","v":"A312"},null,{"$f":"'FR-16(7)(v)-6 TRANS Classified'!H119","v":0},0,0,0,0,0,0,0,0,0,0,0,0,0]
[63,null,{"$f":"'FR-16(7)(v)-1 Functional'!C120","v":"ADJUSTMENT"},{"$f":"'FR-16(7)(v)-1 Functional'!D120","v":"A315"},null,{"$f":"'FR-16(7)(v)-6 TRANS Classified'!H120","v":0},0,0,0,0,0,0,0,0,0,0,0,0,0]
[64,null,{"$f":"'FR-16(7)(v)-1 Functional'!C121","v":"  COMMON & OTHER PLANT IN SERVICE"},null,null,{"$f":"SUM(F112:F120)","v":0},{"$f":"SUM(G112:G120)","v":0},{"$f":"SUM(H112:H120)","v":0},{"$f":"SUM(I112:I120)","v":0},{"$f":"SUM(J112:J120)","v":0},0,0,0,0,0,0,{"$f":"SUM(Q112:Q120)","v":0},{"$f":"SUM(R112:R120)","v":0},{"$f":"SUM(S112:S120)","v":0}]
[65]
[66,"GROSS ELECTRIC PLANT IN SERVICE",null,null,null,{"$f":"F97+F109+F121","v":0},{"$f":"G97+G109+G121","v":0},{"$f":"H97+H109+H121","v":0},{"$f":"I97+I109+I121","v":0},{"$f":"J97+J109+J121","v":0},0,0,0,0,0,0,{"$f":"Q97+Q109+Q121","v":0},{"$f":"R97+R109+R121","v":0},{"$f":"S97+S109+S121","v":0}]
[]
[{"$f":"co_name","v":"DUKE ENERGY KENTUCKY, INC."},null,null,null,null,null,null,null,null,null,null,null,null,null,null,null,null,{"$f":"R1","v":"FR-16(7)(v)-8"}]
[{"$f":"$A$2","v":"TRANSMISSION ENERGY ALLOCATED - ELECTRIC COST OF SERVICE"},null,null,null,null,null,null,null,null,null,null,null,null,null,null,null,null,{"$f":"R2","v":"WITNESS RESPONSIBLE:"}]
[{"$f":"case_name","v":"CASE NO: 2019-00271"},null,null,null,null,null,null,null,null,null,null,null,null,null,null,null,null,{"$f":"Witness","v":"JAMES E. ZIOLKOWSKI"}]
[{"$f":"data_filing","v":"DATA: 12 MONTHS ACTUAL  & 0 MONTHS ESTIMATED"},null,null,null,null,null,null,null,null,null,null,null,null,null,null,null,null,{"$f":"\"PAGE \"&Pages-15&\" OF \"&Pages","v":"PAGE 3 OF 18"}]
[{"$f":"type","v":"TYPE OF FILING: \"X\" ORIGINAL   UPDATED    REVISED  "}]
[]
[null,null,null,null,null,{"$f":"F$7","v":"TOTAL"},null,{"$f":"H$7","v":"DS"},{"$f":"I$7","v":"GSFL"},{"$f":"J$7","v":"EH"},{"$f":"K$7","v":"SP"},"DT SEC","DT PRI","DP","TT",null,"OTHER"]
["LINE",null,null,null,null,{"$f":"F$8","v":"TRANSMISSION"},{"$f":"G$8","v":"RS"},{"$f":"H$8","v":"SECONDARY"},{"$f":"I$8","v":"SECONDARY"},{"$f":"J$8","v":"SECONDARY"},{"$f":"K$8","v":"SECONDARY"},"SECONDARY","PRIMARY","PRIMARY","TRANSMISSION","LT","WATER",{"$f":"R8","v":"TOTAL"},"ALL"]
["NO.","DEPRECIATION RESERVE",null,"ALLO",null,{"$f":"F$9","v":"ENERGY"},{"$f":"G$9","v":"RESIDENTIAL"},{"$f":"H$9","v":"DISTRIBUTION"},{"$f":"I$9","v":"DISTRIBUTION"},{"$f":"J$9","v":"DISTRIBUTION"},{"$f":"K$9","v":"DISTRIBUTION"},"DISTRIBUTION","DISTRIBUTION","DISTRIBUTION","TIME OF DAY","LIGHTING","PUMPING",{"$f":"R9","v":"AT ISSUE"},"OTHER"]
[null,null,"Schedule 3",null,null,null,{"$f":"G$10","v":3},{"$f":"H$10","v":4},{"$f":"I$10","v":5},{"$f":"J$10","v":6},{"$f":"K$10","v":7},8,9,10,11,12,13,null," "]
[1,"PRODUCTION PLANT"]
[2,null,"PRODUCTION STEAM",{"$f":"'FR-16(7)(v)-1 Functional'!D136","v":"K201"},null,{"$f":"'FR-16(7)(v)-6 TRANS Classified'!H136","v":0},{"$f":"F136-SUM(H136:Q136)","v":0},{"$f":"ROUND(F136*VLOOKUP(D136,ALLOCTABLE_Trans_Energy,$H$10,FALSE),0)","v":0},{"$f":"ROUND(F136*VLOOKUP($D$136,ALLOCTABLE_Trans_Energy,$I$10,FALSE),0)","v":0},{"$f":"ROUND(F136*VLOOKUP($D$136,ALLOCTABLE_Trans_Energy,$J$10,FALSE),0)","v":0},{"$f":"ROUND(F136*VLOOKUP($D$136,ALLOCTABLE_Trans_Energy,$K$10,FALSE),0)","v":0},{"$f":"ROUND(F136*VLOOKUP($D$136,ALLOCTABLE_Trans_Energy,$L$10,FALSE),0)","v":0},{"$f":"ROUND(F136*VLOOKUP($D$136,ALLOCTABLE_Trans_Energy,$M$10,FALSE),0)","v":0},{"$f":"ROUND(F136*VLOOKUP($D$136,ALLOCTABLE_Trans_Energy,$N$10,FALSE),0)","v":0},{"$f":"ROUND(F136*VLOOKUP($D$136,ALLOCTABLE_Trans_Energy,$O$10,FALSE),0)","v":0},{"$f":"ROUND(F136*VLOOKUP($D$136,ALLOCTABLE_Trans_Energy,$P$10,FALSE),0)","v":0},{"$f":"ROUND(F136*VLOOKUP(D136,ALLOCTABLE_Trans_Energy,$Q$10,FALSE),0)","v":0},{"$f":"SUM(G136:Q136)","v":0},{"$f":"F136-R136","v":0}]
[3,null,"PRODUCTION OTHER",{"$f":"'FR-16(7)(v)-1 Functional'!D137","v":"K201"},null,{"$f":"'FR-16(7)(v)-6 TRANS Classified'!H137","v":0},{"$f":"F137-SUM(H137:Q137)","v":0},{"$f":"ROUND(F136*VLOOKUP(D136,ALLOCTABLE_Trans_Energy,$H$10,FALSE),0)","v":0},{"$f":"ROUND(F137*VLOOKUP($D$137,ALLOCTABLE_Trans_Energy,$I$10,FALSE),0)","v":0},{"$f":"ROUND(F137*VLOOKUP($D$137,ALLOCTABLE_Trans_Energy,$J$10,FALSE),0)","v":0},{"$f":"ROUND(F137*VLOOKUP($D$137,ALLOCTABLE_Trans_Energy,$K$10,FALSE),0)","v":0},{"$f":"ROUND(F137*VLOOKUP($D$137,ALLOCTABLE_Trans_Energy,$L$10,FALSE),0)","v":0},{"$f":"ROUND(F137*VLOOKUP($D$137,ALLOCTABLE_Trans_Energy,$M$10,FALSE),0)","v":0},{"$f":"ROUND(F137*VLOOKUP($D$137,ALLOCTABLE_Trans_Energy,$N$10,FALSE),0)","v":0},{"$f":"ROUND(F137*VLOOKUP($D$137,ALLOCTABLE_Trans_Energy,$O$10,FALSE),0)","v":0},{"$f":"ROUND(F137*VLOOKUP($D$137,ALLOCTABLE_Trans_Energy,$P$10,FALSE),0)","v":0},{"$f":"ROUND(F137*VLOOKUP(D137,ALLOCTABLE_Trans_Energy,$Q$10,FALSE),0)","v":0},{"$f":"SUM(G137:Q137)","v":0},{"$f":"F137-R137","v":0}]
[4,null,{"$f":"'FR-16(7)(v)-1 Functional'!C138","v":"ADJUSTMENT"},{"$f":"'FR-16(7)(v)-1 Functional'!D138","v":"K201"},null,{"$f":"'FR-16(7)(v)-6 TRANS Classified'!H138","v":0},{"$f":"F138-SUM(H138:Q138)","v":0},{"$f":"ROUND(F136*VLOOKUP(D136,ALLOCTABLE_Trans_Energy,$H$10,FALSE),0)","v":0},{"$f":"ROUND(F138*VLOOKUP($D$138,ALLOCTABLE_Trans_Energy,$I$10,FALSE),0)","v":0},{"$f":"ROUND(F138*VLOOKUP($D$138,ALLOCTABLE_Trans_Energy,$J$10,FALSE),0)","v":0},{"$f":"ROUND(F138*VLOOKUP($D$138,ALLOCTABLE_Trans_Energy,$K$10,FALSE),0)","v":0},{"$f":"ROUND(F138*VLOOKUP($D$138,ALLOCTABLE_Trans_Energy,$L$10,FALSE),0)","v":0},{"$f":"ROUND(F138*VLOOKUP($D$138,ALLOCTABLE_Trans_Energy,$M$10,FALSE),0)","v":0},{"$f":"ROUND(F138*VLOOKUP($D$138,ALLOCTABLE_Trans_Energy,$N$10,FALSE),0)","v":0},{"$f":"ROUND(F138*VLOOKUP($D$138,ALLOCTABLE_Trans_Energy,$O$10,FALSE),0)","v":0},{"$f":"ROUND(F138*VLOOKUP($D$138,ALLOCTABLE_Trans_Energy,$P$10,FALSE),0)","v":0},{"$f":"ROUND(F138*VLOOKUP(D138,ALLOCTABLE_Trans_Energy,$Q$10,FALSE),0)","v":0},{"$f":"SUM(G138:Q138)","v":0},{"$f":"F138-R138","v":0}]
[5,null,{"$f":"'FR-16(7)(v)-1 Functional'!C139","v":"  TOTAL PROD DEPREC RESERVE"},null,null,{"$f":"SUM(F136:F138)","v":0},0,0,0,0,0,0,0,0,0,0,0,0,{"$f":"SUM(S136:S136)","v":0}]
[6]
[7,"TRANSMISSION PLANT"]
[8,null,"MAIN STEP-UP TRANSFORMERS",{"$f":"'FR-16(7)(v)-1 Functional'!D142","v":"K202"},null,{"$f":"'FR-16(7)(v)-6 TRANS Classified'!H142","v":0},{"$f":"F142-SUM(H142:Q142)","v":0},{"$f":"ROUND(F142*VLOOKUP(D142,ALLOCTABLE_Trans_Energy,$H$10,FALSE),0)","v":0},{"$f":"ROUND(F142*VLOOKUP($D$136,ALLOCTABLE_Trans_Energy,$I$10,FALSE),0)","v":0},{"$f":"ROUND(F142*VLOOKUP($D$136,ALLOCTABLE_Trans_Energy,$J$10,FALSE),0)","v":0},{"$f":"ROUND(F142*VLOOKUP($D$136,ALLOCTABLE_Trans_Energy,$K$10,FALSE),0)","v":0},{"$f":"ROUND(F142*VLOOKUP($D$136,ALLOCTABLE_Trans_Energy,$L$10,FALSE),0)","v":0},{"$f":"ROUND(F142*VLOOKUP($D$136,ALLOCTABLE_Trans_Energy,$M$10,FALSE),0)","v":0},{"$f":"ROUND(F142*VLOOKUP($D$136,ALLOCTABLE_Trans_Energy,$N$10,FALSE),0)","v":0},{"$f":"ROUND(F142*VLOOKUP($D$136,ALLOCTABLE_Trans_Energy,$O$10,FALSE),0)","v":0},{"$f":"ROUND(F142*VLOOKUP($D$136,ALLOCTABLE_Trans_Energy,$P$10,FALSE),0)","v":0},{"$f":"ROUND(F142*VLOOKUP(D142,ALLOCTABLE_Trans_Energy,$Q$10,FALSE),0)","v":0},{"$f":"SUM(G142:Q142)","v":0},{"$f":"F142-R142","v":0}]
[9,null,"OTHER TRANSMISSION",{"$f":"'FR-16(7)(v)-1 Functional'!D143","v":"K202"},null,{"$f":"'FR-16(7)(v)-6 TRANS Classified'!H143","v":0},{"$f":"F143-SUM(H143:Q143)","v":0},{"$f":"ROUND(F143*VLOOKUP(D143,ALLOCTABLE_Trans_Energy,$H$10,FALSE),0)","v":0},{"$f":"ROUND(F143*VLOOKUP($D$136,ALLOCTABLE_Trans_Energy,$I$10,FALSE),0)","v":0},{"$f":"ROUND(F143*VLOOKUP($D$136,ALLOCTABLE_Trans_Energy,$J$10,FALSE),0)","v":0},{"$f":"ROUND(F143*VLOOKUP($D$136,ALLOCTABLE_Trans_Energy,$K$10,FALSE),0)","v":0},{"$f":"ROUND(F143*VLOOKUP($D$136,ALLOCTABLE_Trans_Energy,$L$10,FALSE),0)","v":0},{"$f":"ROUND(F143*VLOOKUP($D$136,ALLOCTABLE_Trans_Energy,$M$10,FALSE),0)","v":0},{"$f":"ROUND(F143*VLOOKUP($D$136,ALLOCTABLE_Trans_Energy,$N$10,FALSE),0)","v":0},{"$f":"ROUND(F143*VLOOKUP($D$136,ALLOCTABLE_Trans_Energy,$O$10,FALSE),0)","v":0},{"$f":"ROUND(F143*VLOOKUP($D$136,ALLOCTABLE_Trans_Energy,$P$10,FALSE),0)","v":0},{"$f":"ROUND(F143*VLOOKUP(D143,ALLOCTABLE_Trans_Energy,$Q$10,FALSE),0)","v":0},{"$f":"SUM(G143:Q143)","v":0},{"$f":"F143-R143","v":0}]
[10,null,"ADJUSTMENT",{"$f":"'FR-16(7)(v)-1 Functional'!D144","v":"K202"},null,{"$f":"'FR-16(7)(v)-6 TRANS Classified'!H144","v":0},{"$f":"F144-SUM(H144:Q144)","v":0},{"$f":"ROUND(F144*VLOOKUP(D144,ALLOCTABLE_Trans_Energy,$H$10,FALSE),0)","v":0},{"$f":"ROUND(F144*VLOOKUP($D$136,ALLOCTABLE_Trans_Energy,$I$10,FALSE),0)","v":0},{"$f":"ROUND(F144*VLOOKUP($D$136,ALLOCTABLE_Trans_Energy,$J$10,FALSE),0)","v":0},{"$f":"ROUND(F144*VLOOKUP($D$136,ALLOCTABLE_Trans_Energy,$K$10,FALSE),0)","v":0},{"$f":"ROUND(F144*VLOOKUP($D$136,ALLOCTABLE_Trans_Energy,$L$10,FALSE),0)","v":0},{"$f":"ROUND(F144*VLOOKUP($D$136,ALLOCTABLE_Trans_Energy,$M$10,FALSE),0)","v":0},{"$f":"ROUND(F144*VLOOKUP($D$136,ALLOCTABLE_Trans_Energy,$N$10,FALSE),0)","v":0},{"$f":"ROUND(F144*VLOOKUP($D$136,ALLOCTABLE_Trans_Energy,$O$10,FALSE),0)","v":0},{"$f":"ROUND(F144*VLOOKUP($D$136,ALLOCTABLE_Trans_Energy,$P$10,FALSE),0)","v":0},{"$f":"ROUND(F144*VLOOKUP(D144,ALLOCTABLE_Trans_Energy,$Q$10,FALSE),0)","v":0},{"$f":"SUM(G144:Q144)","v":0},{"$f":"F144-R144","v":0}]
[11,null,"  TOTAL TRANS DEPREC RESERVE",null,null,{"$f":"SUM(F142:F144)","v":0},{"$f":"SUM(G142:G144)","v":0},0,0,0,0,0,0,0,0,0,0,{"$f":"SUM(R142:R144)","v":0},{"$f":"SUM(S142:S142)","v":0}]
[12]
[13,null,"TOTAL PROD & TRANS DEPREC RESERVE",null,null,{"$f":"F145+F139","v":0},{"$f":"G145+G139","v":0},{"$f":"$H$114+H139","v":0},{"$f":"$I$114+I139","v":0},{"$f":"$J$114+J139","v":0},{"$f":"$K$114+K139","v":0},{"$f":"$L$114+L139","v":0},{"$f":"$M$114+M139","v":0},{"$f":"$N$114+N139","v":0},{"$f":"$O$114+O139","v":0},{"$f":"$P$114+P139","v":0},{"$f":"$Q$114+Q139","v":0},{"$f":"SUM(G147:Q147)","v":0},{"$f":"F147-R147","v":0}]
[14]
[15,"DISTRIBUTION PLANT"]
[16,null,{"$f":"'FR-16(7)(v)-1 Functional'!C150","v":"SUBSTATIONS"},{"$f":"'FR-16(7)(v)-1 Functional'!D150","v":"K215"},null,{"$f":"'FR-16(7)(v)-6 TRANS Classified'!H150","v":0},{"$f":"F150-SUM(H150:Q150)","v":0},{"$f":"ROUND(F150*VLOOKUP(D150,ALLOCTABLE_Trans_Energy,$H$10,FALSE),0)","v":0},{"$f":"ROUND(F150*VLOOKUP($D$136,ALLOCTABLE_Trans_Energy,$I$10,FALSE),0)","v":0},{"$f":"ROUND(F150*VLOOKUP($D$136,ALLOCTABLE_Trans_Energy,$J$10,FALSE),0)","v":0},{"$f":"ROUND(F150*VLOOKUP($D$136,ALLOCTABLE_Trans_Energy,$K$10,FALSE),0)","v":0},{"$f":"ROUND(F150*VLOOKUP($D$136,ALLOCTABLE_Trans_Energy,$L$10,FALSE),0)","v":0},{"$f":"ROUND(F150*VLOOKUP($D$136,ALLOCTABLE_Trans_Energy,$M$10,FALSE),0)","v":0},{"$f":"ROUND(F150*VLOOKUP($D$136,ALLOCTABLE_Trans_Energy,$N$10,FALSE),0)","v":0},{"$f":"ROUND(F150*VLOOKUP($D$136,ALLOCTABLE_Trans_Energy,$O$10,FALSE),0)","v":0},{"$f":"ROUND(F150*VLOOKUP($D$136,ALLOCTABLE_Trans_Energy,$P$10,FALSE),0)","v":0},{"$f":"ROUND(F150*VLOOKUP(D150,ALLOCTABLE_Trans_Energy,$Q$10,FALSE),0)","v":0},{"$f":"SUM(G150:Q150)","v":0},{"$f":"F150-R150","v":0}]
[17,null,{"$f":"'FR-16(7)(v)-1 Functional'!C151","v":"POLES, TOWERS  & FIXTURES - PRIMARY - DEMAND"},{"$f":"'FR-16(7)(v)-1 Functional'!D151","v":"K205"},null,{"$f":"'FR-16(7)(v)-6 TRANS Classified'!H151","v":0},0,0,0,0,0,0,0,0,0,0,0,0,0]
[18,null,{"$f":"'FR-16(7)(v)-1 Functional'!C152","v":"POLES, TOWERS  & FIXTURES - PRIMARY - CUSTOMER"},{"$f":"'FR-16(7)(v)-1 Functional'!D152","v":"K405"},null,{"$f":"'FR-16(7)(v)-6 TRANS Classified'!H152","v":0},0,0,0,0,0,0,0,0,0,0,0,0,0]
[19,null,{"$f":"'FR-16(7)(v)-1 Functional'!C153","v":"POLES, TOWERS  & FIXTURES - SECONDARY - DEMAND"},{"$f":"'FR-16(7)(v)-1 Functional'!D153","v":"K206"},null,{"$f":"'FR-16(7)(v)-6 TRANS Classified'!H153","v":0},0,0,0,0,0,0,0,0,0,0,0,0,0]
[20,null,{"$f":"'FR-16(7)(v)-1 Functional'!C154","v":"POLES, TOWERS  & FIXTURES - SECONDARY - CUSTOMER"},{"$f":"'FR-16(7)(v)-1 Functional'!D154","v":"K405"},null,{"$f":"'FR-16(7)(v)-6 TRANS Classified'!H154","v":0},0,0,0,0,0,0,0,0,0,0,0,0,0]
[21,null,{"$f":"'FR-16(7)(v)-1 Functional'!C155","v":"CONDUCTORS - OVERHEAD / PRIMARY - DEMAND"},{"$f":"'FR-16(7)(v)-1 Functional'!D155","v":"K205"},null,{"$f":"'FR-16(7)(v)-6 TRANS Classified'!H155","v":0},0,0,0,0,0,0,0,0,0,0,0,0,0]
[22,null,{"$f":"'FR-16(7)(v)-1 Functional'!C156","v":"CONDUCTORS - OVERHEAD / PRIMARY - CUSTOMER"},{"$f":"'FR-16(7)(v)-1 Functional'!D156","v":"K405"},null,{"$f":"'FR-16(7)(v)-6 TRANS Classified'!H156","v":0},0,0,0,0,0,0,0,0,0,0,0,0,0]
[23,null,{"$f":"'FR-16(7)(v)-1 Functional'!C157","v":"CONDUCTORS - OVERHEAD / SECONDARY - DEMAND"},{"$f":"'FR-16(7)(v)-1 Functional'!D157","v":"K206"},null,{"$f":"'FR-16(7)(v)-6 TRANS Classified'!H157","v":0},0,0,0,0,0,0,0,0,0,0,0,0,0]
[24,null,{"$f":"'FR-16(7)(v)-1 Functional'!C158","v":"CONDUCTORS - OVERHEAD / SECONDARY - CUSTOMER"},{"$f":"'FR-16(7)(v)-1 Functional'!D158","v":"K405"},null,{"$f":"'FR-16(7)(v)-6 TRANS Classified'!H158","v":0},0,0,0,0,0,0,0,0,0,0,0,0,0]
[25,null,{"$f":"'FR-16(7)(v)-1 Functional'!C159","v":"CONDUCTORS - UNDERGROUND / PRIMARY - DEMAND"},{"$f":"'FR-16(7)(v)-1 Functional'!D159","v":"K205"},null,{"$f":"'FR-16(7)(v)-6 TRANS Classified'!H159","v":0},0,0,0,0,0,0,0,0,0,0,0,0,0]
[26,null,{"$f":"'FR-16(7)(v)-1 Functional'!C160","v":"CONDUCTORS - UNDERGROUND / PRIMARY - CUSTOMER"},{"$f":"'FR-16(7)(v)-1 Functional'!D160","v":"K405"},null,{"$f":"'FR-16(7)(v)-6 TRANS Classified'!H160","v":0},0,0,0,0,0,0,0,0,0,0,0,0,0]
[27,null,{"$f":"'FR-16(7)(v)-1 Functional'!C161","v":"CONDUCTORS - UNDERGROUND / SECONDARY - DEMAND"},{"$f":"'FR-16(7)(v)-1 Functional'!D161","v":"K206"},null,{"$f":"'FR-16(7)(v)-6 TRANS Classified'!H161","v":0},0,0,0,0,0,0,0,0,0,0,0,0,0]
[28,null,{"$f":"'FR-16(7)(v)-1 Functional'!C162","v":"CONDUCTORS - UNDERGROUND / SECONDARY - CUSTOMER"},{"$f":"'FR-16(7)(v)-1 Functional'!D162","v":"K405"},null,{"$f":"'FR-16(7)(v)-6 TRANS Classified'!H162","v":0},0,0,0,0,0,0,0,0,0,0,0,0,0]
[29,null,{"$f":"'FR-16(7)(v)-1 Functional'!C163","v":"TRANSFORMERS DEMAND RELATED"},{"$f":"'FR-16(7)(v)-1 Functional'!D163","v":"K215"},null,{"$f":"'FR-16(7)(v)-6 TRANS Classified'!H163","v":0},0,0,0,0,0,0,0,0,0,0,0,0,0]
[30,null,{"$f":"'FR-16(7)(v)-1 Functional'!C164","v":"TRANSFORMERS CUSTOMER RELATED"},{"$f":"'FR-16(7)(v)-1 Functional'!D164","v":"K405"},null,{"$f":"'FR-16(7)(v)-6 TRANS Classified'!H164","v":0},0,0,0,0,0,0,0,0,0,0,0,0,0]
[31,null,{"$f":"'FR-16(7)(v)-1 Functional'!C165","v":"SERVICES"},{"$f":"'FR-16(7)(v)-1 Functional'!D165","v":"K217"},null,{"$f":"'FR-16(7)(v)-6 TRANS Classified'!H165","v":0},0,0,0,0,0,0,0,0,0,0,0,0,0]
[32,null,{"$f":"'FR-16(7)(v)-1 Functional'!C166","v":"METERS"},{"$f":"'FR-16(7)(v)-1 Functional'!D166","v":"K407"},null,{"$f":"'FR-16(7)(v)-6 TRANS Classified'!H166","v":0},0,0,0,0,0,0,0,0,0,0,0,0,0]
[33,null,{"$f":"'FR-16(7)(v)-1 Functional'!C167","v":"STREET LIGHTS"},{"$f":"'FR-16(7)(v)-1 Functional'!D167","v":"K401"},null,{"$f":"'FR-16(7)(v)-6 TRANS Classified'!H167","v":0},0,0,0,0,0,0,0,0,0,0,0,0,0]
[34,null,{"$f":"'FR-16(7)(v)-1 Functional'!C168","v":"ADJUSTMENT  "},{"$f":"'FR-16(7)(v)-1 Functional'!D168","v":"K209"},null,{"$f":"'FR-16(7)(v)-6 TRANS Classified'!H168","v":0},0,0,0,0,0,0,0,0,0,0,0,0,0]
[35,null,{"$f":"'FR-16(7)(v)-1 Functional'!C169","v":"CONSTRUCTION NOT CLASSIFIED"},{"$f":"'FR-16(7)(v)-1 Functional'!D169","v":"K209"},null,{"$f":"'FR-16(7)(v)-6 TRANS Classified'!H169","v":0},0,0,0,0,0,0,0,0,0,0,0,0,0]
[36,null,{"$f":"'FR-16(7)(v)-1 Functional'!C170","v":"RWIP"},{"$f":"'FR-16(7)(v)-1 Functional'!D170","v":"K215"},null,{"$f":"'FR-16(7)(v)-6 TRANS Classified'!H170","v":0},{"$f":"F170-SUM(H170:Q170)","v":0},{"$f":"ROUND($F$170*VLOOKUP($D$170,ALLOCTABLE_Trans_Energy,H$10,FALSE),0)","v":0},0,0,0,0,0,0,0,0,0,{"$f":"SUM(G170:Q170)","v":0},{"$f":"F170-R170","v":0}]
[37,null,{"$f":"'FR-16(7)(v)-1 Functional'!C171","v":"  TOTAL DIST DEPREC RESERVE"},null,null,{"$f":"SUM(F149:F170)","v":0},{"$f":"SUM(G149:G170)","v":0},0,0,0,0,0,0,0,0,0,0,0,0]
[38]
[39,null,"TOTAL TRANS & DIST DEPREC RESERVE",null,null,{"$f":"F171+F145","v":0},{"$f":"G171+G145","v":0},0,0,0,0,0,0,0,0,0,0,{"$f":"SUM(G173:Q173)","v":0},{"$f":"F173-R173","v":0}]
[40,null,"TOTAL GROSS PTD PLANT DEPREC RESERVE",null,null,{"$f":"F147+F171","v":0},{"$f":"G147+G171","v":0},0,0,0,0,0,0,0,0,0,0,{"$f":"SUM(G174:Q174)","v":0},{"$f":"F174-R174","v":0}]
[41]
[42,"GENERAL & INTANGIBLE PLANT"]
[43,null,{"$f":"'FR-16(7)(v)-1 Functional'!C177","v":"PRODUCTION - DEMAND"},{"$f":"'FR-16(7)(v)-1 Functional'!D177","v":"K201"},null,{"$f":"'FR-16(7)(v)-6 TRANS Classified'!H177","v":0},{"$f":"F177-SUM(H177:Q177)","v":0},{"$f":"ROUND(F177*VLOOKUP(D177,ALLOCTABLE_Trans_Energy,$H$10,FALSE),0)","v":0},{"$f":"ROUND(F177*VLOOKUP($D$136,ALLOCTABLE_Trans_Energy,$I$10,FALSE),0)","v":0},{"$f":"ROUND(F177*VLOOKUP($D$136,ALLOCTABLE_Trans_Energy,$J$10,FALSE),0)","v":0},{"$f":"ROUND(F177*VLOOKUP($D$136,ALLOCTABLE_Trans_Energy,$K$10,FALSE),0)","v":0},{"$f":"ROUND(F177*VLOOKUP($D$136,ALLOCTABLE_Trans_Energy,$L$10,FALSE),0)","v":0},{"$f":"ROUND(F177*VLOOKUP($D$136,ALLOCTABLE_Trans_Energy,$M$10,FALSE),0)","v":0},{"$f":"ROUND(F177*VLOOKUP($D$136,ALLOCTABLE_Trans_Energy,$N$10,FALSE),0)","v":0},{"$f":"ROUND(F177*VLOOKUP($D$136,ALLOCTABLE_Trans_Energy,$O$10,FALSE),0)","v":0},{"$f":"ROUND(F177*VLOOKUP($D$136,ALLOCTABLE_Trans_Energy,$P$10,FALSE),0)","v":0},{"$f":"ROUND(F177*VLOOKUP(D177,ALLOCTABLE_Trans_Energy,$Q$10,FALSE),0)","v":0},{"$f":"SUM(G177:Q177)","v":0},{"$f":"F177-R177","v":0}]
[44,null,{"$f":"'FR-16(7)(v)-1 Functional'!C178","v":"PRODUCTION - ENERGY"},{"$f":"'FR-16(7)(v)-1 Functional'!D178","v":"K301"},null,{"$f":"'FR-16(7)(v)-6 TRANS Classified'!H178","v":0},0,0,0,0,0,0,0,0,0,0,0,0,0]
[45,null,{"$f":"'FR-16(7)(v)-1 Functional'!C179","v":"TRANSMISSION"},{"$f":"'FR-16(7)(v)-1 Functional'!D179","v":"K202"},null,{"$f":"'FR-16(7)(v)-6 TRANS Classified'!H179","v":0},0,0,0,0,0,0,0,0,0,0,0,0,0]
[46,null,{"$f":"'FR-16(7)(v)-1 Functional'!C180","v":"DISTRIBUTION - DEMAND"},{"$f":"'FR-16(7)(v)-1 Functional'!D180","v":"K201"},null,{"$f":"'FR-16(7)(v)-6 TRANS Classified'!H180","v":0},0,0,0,0,0,0,0,0,0,0,0,0,0]
[47,null,{"$f":"'FR-16(7)(v)-1 Functional'!C181","v":"DISTRIBUTION - CUSTOMER"},{"$f":"'FR-16(7)(v)-1 Functional'!D181","v":"K405"},null,{"$f":"'FR-16(7)(v)-6 TRANS Classified'!H181","v":0},0,0,0,0,0,0,0,0,0,0,0,0,0]
[48,null,{"$f":"'FR-16(7)(v)-1 Functional'!C182","v":"CUSTOMER ACCOUNTING"},{"$f":"'FR-16(7)(v)-1 Functional'!D182","v":"A308"},null,{"$f":"'FR-16(7)(v)-6 TRANS Classified'!H182","v":0},0,0,0,0,0,0,0,0,0,0,0,0,0]
[49,null,{"$f":"'FR-16(7)(v)-1 Functional'!C183","v":"CUSTOMER SERVICE & INFORMATION"},{"$f":"'FR-16(7)(v)-1 Functional'!D183","v":"A310"},null,{"$f":"'FR-16(7)(v)-6 TRANS Classified'!H183","v":0},0,0,0,0,0,0,0,0,0,0,0,0,0]
[50,null,{"$f":"'FR-16(7)(v)-1 Functional'!C184","v":"SALES"},{"$f":"'FR-16(7)(v)-1 Functional'!D184","v":"A312"},null,{"$f":"'FR-16(7)(v)-6 TRANS Classified'!H184","v":0},0,0,0,0,0,0,0,0,0,0,0,0,0]
[51,null,{"$f":"'FR-16(7)(v)-1 Functional'!C185","v":"ADJUSTMENT"},{"$f":"'FR-16(7)(v)-1 Functional'!D185","v":"A315"},null,{"$f":"'FR-16(7)(v)-6 TRANS Classified'!H185","v":0},0,0,0,0,0,0,0,0,0,0,0,0,0]
[52,null,"  GENERAL & INTANG PLANT",null,null,{"$f":"SUM(F176:F185)","v":0},{"$f":"SUM(G176:G185)","v":0},{"$f":"SUM(H176:H185)","v":0},{"$f":"SUM(I176:I185)","v":0},{"$f":"SUM(J176:J185)","v":0},0,0,0,0,0,0,{"$f":"SUM(Q176:Q185)","v":0},{"$f":"SUM(R176:R185)","v":0},{"$f":"SUM(S176:S185)","v":0}]
[53]
[54,"COMMON & OTHER PLANT"]
[55,null,{"$f":"'FR-16(7)(v)-1 Functional'!C189","v":"PRODUCTION - DEMAND"},{"$f":"'FR-16(7)(v)-1 Functional'!D189","v":"K201"},null,{"$f":"'FR-16(7)(v)-6 TRANS Classified'!H189","v":0},{"$f":"F189-SUM(H189:Q189)","v":0},{"$f":"ROUND(F189*VLOOKUP(D189,ALLOCTABLE_Trans_Energy,$H$10,FALSE),0)","v":0},{"$f":"ROUND(F189*VLOOKUP($D$136,ALLOCTABLE_Trans_Energy,$I$10,FALSE),0)","v":0},{"$f":"ROUND(F189*VLOOKUP($D$136,ALLOCTABLE_Trans_Energy,$J$10,FALSE),0)","v":0},{"$f":"ROUND(F189*VLOOKUP($D$136,ALLOCTABLE_Trans_Energy,$K$10,FALSE),0)","v":0},{"$f":"ROUND(F189*VLOOKUP($D$136,ALLOCTABLE_Trans_Energy,$L$10,FALSE),0)","v":0},{"$f":"ROUND(F189*VLOOKUP($D$136,ALLOCTABLE_Trans_Energy,$M$10,FALSE),0)","v":0},{"$f":"ROUND(F189*VLOOKUP($D$136,ALLOCTABLE_Trans_Energy,$N$10,FALSE),0)","v":0},{"$f":"ROUND(F189*VLOOKUP($D$136,ALLOCTABLE_Trans_Energy,$O$10,FALSE),0)","v":0},{"$f":"ROUND(F189*VLOOKUP($D$136,ALLOCTABLE_Trans_Energy,$P$10,FALSE),0)","v":0},{"$f":"ROUND(F189*VLOOKUP(D189,ALLOCTABLE_Trans_Energy,$Q$10,FALSE),0)","v":0},{"$f":"SUM(G189:Q189)","v":0},{"$f":"F189-R189","v":0}]
[56,null,{"$f":"'FR-16(7)(v)-1 Functional'!C190","v":"PRODUCTION - ENERGY"},{"$f":"'FR-16(7)(v)-1 Functional'!D190","v":"K301"},null,{"$f":"'FR-16(7)(v)-6 TRANS Classified'!H190","v":0},0,0,0,0,0,0,0,0,0,0,0,0,0]
[57,null,{"$f":"'FR-16(7)(v)-1 Functional'!C191","v":"TRANSMISSION"},{"$f":"'FR-16(7)(v)-1 Functional'!D191","v":"K202"},null,{"$f":"'FR-16(7)(v)-6 TRANS Classified'!H191","v":0},0,0,0,0,0,0,0,0,0,0,0,0,0]
[58,null,{"$f":"'FR-16(7)(v)-1 Functional'!C192","v":"DISTRIBUTION - DEMAND"},{"$f":"'FR-16(7)(v)-1 Functional'!D192","v":"K201"},null,{"$f":"'FR-16(7)(v)-6 TRANS Classified'!H192","v":0},0,0,0,0,0,0,0,0,0,0,0,0,0]
[59,null,{"$f":"'FR-16(7)(v)-1 Functional'!C193","v":"DISTRIBUTION - CUSTOMER"},{"$f":"'FR-16(7)(v)-1 Functional'!D193","v":"K405"},null,{"$f":"'FR-16(7)(v)-6 TRANS Classified'!H193","v":0},0,0,0,0,0,0,0,0,0,0,0,0,0]
[60,null,{"$f":"'FR-16(7)(v)-1 Functional'!C194","v":"CUSTOMER ACCOUNTING"},{"$f":"'FR-16(7)(v)-1 Functional'!D194","v":"A308"},null,{"$f":"'FR-16(7)(v)-6 TRANS Classified'!H194","v":0},0,0,0,0,0,0,0,0,0,0,0,0,0]
[61,null,{"$f":"'FR-16(7)(v)-1 Functional'!C195","v":"CUSTOMER SERVICE & INFORMATION"},{"$f":"'FR-16(7)(v)-1 Functional'!D195","v":"A310"},null,{"$f":"'FR-16(7)(v)-6 TRANS Classified'!H195","v":0},0,0,0,0,0,0,0,0,0,0,0,0,0]
[62,null,{"$f":"'FR-16(7)(v)-1 Functional'!C196","v":"SALES"},{"$f":"'FR-16(7)(v)-1 Functional'!D196","v":"A312"},null,{"$f":"'FR-16(7)(v)-6 TRANS Classified'!H196","v":0},0,0,0,0,0,0,0,0,0,0,0,0,0]
[63,null,{"$f":"'FR-16(7)(v)-1 Functional'!C197","v":"ADJUSTMENT"},{"$f":"'FR-16(7)(v)-1 Functional'!D197","v":"A315"},null,{"$f":"'FR-16(7)(v)-6 TRANS Classified'!H197","v":0},0,0,0,0,0,0,0,0,0,0,0,0,0]
[64,null,{"$f":"'FR-16(7)(v)-1 Functional'!C198","v":"  COMMON & OTHER PLANT IN SERVICE"},null,null,{"$f":"SUM(F189:F197)","v":0},{"$f":"SUM(G188:G197)","v":0},0,0,{"$f":"SUM(J188:J197)","v":0},0,0,0,0,0,0,0,0,0]
[65]
[66,"TOTAL DEPRECIATION RESERVE",null,null,null,{"$f":"F198+F186+F171+F145+F139","v":0},{"$f":"G198+G186+G171+G145+G139","v":0},{"$f":"H198+H186+H171+H145+H139","v":0},0,0,0,0,0,0,0,0,0,{"$f":"R198+R186+R171+R145+R139","v":0},{"$f":"S198+S186+S171+S145+S139","v":0}]
[]
[{"$f":"co_name","v":"DUKE ENERGY KENTUCKY, INC."},null,null,null,null,null,null,null,null,null,null,null,null,null,null,null,null,{"$f":"R1","v":"FR-16(7)(v)-8"}]
[{"$f":"$A$2","v":"TRANSMISSION ENERGY ALLOCATED - ELECTRIC COST OF SERVICE"},null,null,null,null,null,null,null,null,null,null,null,null,null,null,null,null,{"$f":"R2","v":"WITNESS RESPONSIBLE:"}]
[{"$f":"case_name","v":"CASE NO: 2019-00271"},null,null,null,null,null,null,null,null,null,null,null,null,null,null,null,null,{"$f":"Witness","v":"JAMES E. ZIOLKOWSKI"}]
[{"$f":"data_filing","v":"DATA: 12 MONTHS ACTUAL  & 0 MONTHS ESTIMATED"},null,null,null,null,null,null,null,null,null,null,null,null,null,null,null,null,{"$f":"\"PAGE \"&Pages-14&\" OF \"&Pages","v":"PAGE 4 OF 18"}]
[{"$f":"type","v":"TYPE OF FILING: \"X\" ORIGINAL   UPDATED    REVISED  "}]
[]
[null,null,null,null,null,{"$f":"F$7","v":"TOTAL"},null,{"$f":"H$7","v":"DS"},{"$f":"I$7","v":"GSFL"},{"$f":"J$7","v":"EH"},{"$f":"K$7","v":"SP"},"DT SEC","DT PRI","DP","TT",null,"OTHER"]
["LINE",null,null,null,null,{"$f":"F$8","v":"TRANSMISSION"},{"$f":"G$8","v":"RS"},{"$f":"H$8","v":"SECONDARY"},{"$f":"I$8","v":"SECONDARY"},{"$f":"J$8","v":"SECONDARY"},{"$f":"K$8","v":"SECONDARY"},"SECONDARY","PRIMARY","PRIMARY","TRANSMISSION","LT","WATER",{"$f":"R8","v":"TOTAL"},"ALL"]
["NO.",{"$f":"\"NET ELECTRIC PLANT\"","v":"NET ELECTRIC PLANT"},null,"ALLO",null,{"$f":"F$9","v":"ENERGY"},{"$f":"G$9","v":"RESIDENTIAL"},{"$f":"H$9","v":"DISTRIBUTION"},{"$f":"I$9","v":"DISTRIBUTION"},{"$f":"J$9","v":"DISTRIBUTION"},{"$f":"K$9","v":"DISTRIBUTION"},"DISTRIBUTION","DISTRIBUTION","DISTRIBUTION","TIME OF DAY","LIGHTING","PUMPING",{"$f":"R9","v":"AT ISSUE"},"OTHER"]
[null,null,"Schedule 4",null,null,null,{"$f":"G$10","v":3},{"$f":"H$10","v":4},{"$f":"I$10","v":5},{"$f":"J$10","v":6},{"$f":"K$10","v":7},8,9,10,11,12,13,null," "]
[1,"PRODUCTION PLANT"]
[2,null,"PRODUCTION STEAM",null,null,{"$f":"F59-F136","v":0},{"$f":"G59-G136","v":0},{"$f":"H59-H136","v":0},{"$f":"I59-I136","v":0},{"$f":"J59-J136","v":0},0,0,0,0,0,0,{"$f":"Q59-Q136","v":0},{"$f":"R59-R136","v":0},{"$f":"F213-R213","v":0}]
[3,null,"PRODUCTION OTHER",null,null,{"$f":"F60-F137","v":0},0,0,0,{"$f":"J60-J137","v":0},0,0,0,0,0,0,0,0,{"$f":"F214-R214","v":0}]
[4,null,"ADJUSTMENT",null,null,{"$f":"F61-F138","v":0},0,0,0,{"$f":"J61-J138","v":0},0,0,0,0,0,0,0,0,{"$f":"F215-R215","v":0}]
[5,null,{"$f":"'FR-16(7)(v)-1 Functional'!C216","v":"  NET PRODUCTION PLANT"},null,null,{"$f":"SUM(F213:F215)","v":0},0,0,0,{"$f":"SUM(J213:J215)","v":0},0,0,0,0,0,0,0,0,0]
[6]
[7,"TRANSMISSION PLANT"]
[8,null,"MAIN STEP-UP TRANSFORMERS",null,null,{"$f":"F65-F142","v":0},0,0,0,{"$f":"J65-J142","v":0},0,0,0,0,0,0,0,0,{"$f":"F219-R219","v":0}]
[9,null,"OTHER TRANSMISSION",null,null,{"$f":"F66-F143","v":0},0,0,0,{"$f":"J66-J143","v":0},0,0,0,0,0,0,{"$f":"Q66-Q143","v":0},{"$f":"R66-R143","v":0},{"$f":"F220-R220","v":0}]
[10,null,"ADJUSTMENT",null,null,0,0,0,0,{"$f":"J67-J144","v":0},0,0,0,0,0,0,{"$f":"Q67-Q144","v":0},{"$f":"R67-R144","v":0},{"$f":"F221-R221","v":0}]
[11,null,{"$f":"'FR-16(7)(v)-1 Functional'!C222","v":"    NET TRANSMISSION PLANT"},null,null,{"$f":"SUM(F218:F221)","v":0},0,0,0,{"$f":"SUM(J218:J221)","v":0},0,0,0,0,0,0,0,0,0]
[12]
[13,"NET PROD & TRANS PLANT",null,null,null,{"$f":"F70-F147","v":0},{"$f":"G70-G147","v":0},{"$f":"H70-H147","v":0},0,0,0,0,0,0,0,0,0,0,{"$f":"F224-R224","v":0}]
[14]
[15,"DISTRIBUTION PLANT"]
[16,null,{"$f":"'FR-16(7)(v)-1 Functional'!C227","v":"SUBSTATIONS"},null,null,{"$f":"F73-F150","v":0},{"$f":"G73-G150","v":0},{"$f":"H73-H150","v":0},0,0,0,0,0,0,0,0,0,{"$f":"R73-R150","v":0},{"$f":"F227-R227","v":0}]
[17,null,{"$f":"'FR-16(7)(v)-1 Functional'!C228","v":"POLES, TOWERS  & FIXTURES - PRIMARY - DEMAND"},null,null,{"$f":"F74-F151","v":0},{"$f":"G74-G151","v":0},{"$f":"H74-H151","v":0},0,0,0,0,0,0,0,0,0,{"$f":"R74-R151","v":0},{"$f":"F228-R228","v":0}]
[18,null,{"$f":"'FR-16(7)(v)-1 Functional'!C229","v":"POLES, TOWERS  & FIXTURES - PRIMARY - CUSTOMER"},null,null,{"$f":"F75-F152","v":0},{"$f":"G75-G152","v":0},0,0,0,0,0,0,0,0,0,0,0,{"$f":"F229-R229","v":0}]
[19,null,{"$f":"'FR-16(7)(v)-1 Functional'!C230","v":"POLES, TOWERS  & FIXTURES - SECONDARY - DEMAND"},null,null,0,{"$f":"G76-G153","v":0},0,0,0,0,0,0,0,0,0,0,0,0]
[20,null,{"$f":"'FR-16(7)(v)-1 Functional'!C231","v":"POLES, TOWERS  & FIXTURES - SECONDARY - CUSTOMER"},null,null,0,{"$f":"G77-G154","v":0},0,0,0,0,0,0,0,0,0,0,0,0]
[21,null,{"$f":"'FR-16(7)(v)-1 Functional'!C232","v":"CONDUCTORS - OVERHEAD / PRIMARY - DEMAND"},null,null,0,{"$f":"G78-G155","v":0},0,0,0,0,0,0,0,0,0,0,0,0]
[22,null,{"$f":"'FR-16(7)(v)-1 Functional'!C233","v":"CONDUCTORS - OVERHEAD / PRIMARY - CUSTOMER"},null,null,0,{"$f":"G79-G156","v":0},0,0,0,0,0,0,0,0,0,0,0,0]
[23,null,{"$f":"'FR-16(7)(v)-1 Functional'!C234","v":"CONDUCTORS - OVERHEAD / SECONDARY - DEMAND"},null,null,0,{"$f":"G80-G157","v":0},0,0,0,0,0,0,0,0,0,0,0,0]
[24,null,{"$f":"'FR-16(7)(v)-1 Functional'!C235","v":"CONDUCTORS - OVERHEAD / SECONDARY - CUSTOMER"},null,null,0,{"$f":"G81-G158","v":0},0,0,0,0,0,0,0,0,0,0,0,0]
[25,null,{"$f":"'FR-16(7)(v)-1 Functional'!C236","v":"CONDUCTORS - UNDERGROUND / PRIMARY - DEMAND"},null,null,0,{"$f":"G82-G159","v":0},0,0,0,0,0,0,0,0,0,0,0,0]
[26,null,{"$f":"'FR-16(7)(v)-1 Functional'!C237","v":"CONDUCTORS - UNDERGROUND / PRIMARY - CUSTOMER"},null,null,0,{"$f":"G83-G160","v":0},0,0,0,0,0,0,0,0,0,0,0,0]
[27,null,{"$f":"'FR-16(7)(v)-1 Functional'!C238","v":"CONDUCTORS - UNDERGROUND / SECONDARY - DEMAND"},null,null,0,{"$f":"G84-G161","v":0},0,0,0,0,0,0,0,0,0,0,0,0]
[28,null,{"$f":"'FR-16(7)(v)-1 Functional'!C239","v":"CONDUCTORS - UNDERGROUND / SECONDARY - CUSTOMER"},null,null,0,{"$f":"G85-G162","v":0},0,0,0,0,0,0,0,0,0,0,0,0]
[29,null,"TRANSFORMERS DEMAND RELATED",null,null,0,{"$f":"G86-G163","v":0},0,0,0,0,0,0,0,0,0,0,0,{"$f":"F240-R240","v":0}]
[30,null,"TRANSFORMERS CUSTOMER RELATED",null,null,0,{"$f":"G87-G164","v":0},0,0,0,0,0,0,0,0,0,0,0,0]
[31,null,{"$f":"'FR-16(7)(v)-1 Functional'!C242","v":"SERVICES"},null,null,0,{"$f":"G88-G165","v":0},{"$f":"H88-H165","v":0},0,0,0,0,0,0,0,0,0,{"$f":"R88-R165","v":0},0]
[32,null,{"$f":"'FR-16(7)(v)-1 Functional'!C243","v":"METERS"},null,null,0,0,{"$f":"H89-H166","v":0},0,0,0,0,0,0,0,0,0,{"$f":"R89-R166","v":0},0]
[33,null,{"$f":"'FR-16(7)(v)-1 Functional'!C244","v":"STREET LIGHTS"},null,null,0,0,{"$f":"H90-H167","v":0},0,0,0,0,0,0,0,0,0,{"$f":"R90-R167","v":0},0]
[34,null,{"$f":"'FR-16(7)(v)-1 Functional'!C245","v":"ADJUSTMENT  "},null,null,0,0,{"$f":"H91-H168","v":0},0,0,0,0,0,0,0,0,0,{"$f":"R91-R168","v":0},0]
[35,null,{"$f":"'FR-16(7)(v)-1 Functional'!C246","v":"CONSTRUCTION NOT CLASSIFIED"},null,null,0,0,{"$f":"H92-H169","v":0},0,0,0,0,0,0,0,0,0,{"$f":"R92-R169","v":0},0]
[36,null,{"$f":"'FR-16(7)(v)-1 Functional'!C247","v":"RWIP"},null,null,0,0,0,0,0,0,0,0,0,0,0,0,0,0]
[37,null,{"$f":"'FR-16(7)(v)-1 Functional'!C248","v":"  NET DISTRIBUTION PLANT"},null,null,{"$f":"SUM(F226:F247)","v":0},{"$f":"SUM(G226:G247)","v":0},0,0,0,0,0,0,0,0,0,0,0,0]
[38]
[39,"NET PTD PLANT",null,null,null,{"$f":"F96-F173","v":0},0,0,0,{"$f":"J96-J173","v":0},0,0,0,0,0,0,0,0,{"$f":"S248+S222+S216","v":0}]
[40,"NET TRANS & DIST PLANT",null,null,null,{"$f":"F97-F174","v":0},0,0,0,{"$f":"J97-J174","v":0},0,0,0,0,0,0,0,0,{"$f":"S248+S222","v":0}]
[41]
[42,"GENERAL & INTANGIBLE PLANT"]
[43,null,{"$f":"'FR-16(7)(v)-1 Functional'!C254","v":"PRODUCTION - DEMAND"},null,null,{"$f":"F100-F177","v":0},0,0,0,{"$f":"J100-J177","v":0},0,0,0,0,0,0,0,0,{"$f":"F254-R254","v":0}]
[44,null,{"$f":"'FR-16(7)(v)-1 Functional'!C255","v":"PRODUCTION - ENERGY"},null,null,{"$f":"F101-F178","v":0},0,0,0,{"$f":"J101-J178","v":0},0,0,0,0,0,0,0,0,{"$f":"F255-R255","v":0}]
[45,null,{"$f":"'FR-16(7)(v)-1 Functional'!C256","v":"TRANSMISSION"},null,null,{"$f":"F102-F179","v":0},0,0,0,{"$f":"J102-J179","v":0},0,0,0,0,0,0,0,0,0]
[46,null,{"$f":"'FR-16(7)(v)-1 Functional'!C257","v":"DISTRIBUTION - DEMAND"},null,null,{"$f":"F103-F180","v":0},0,0,0,0,0,0,0,0,0,0,0,0,0]
[47,null,{"$f":"'FR-16(7)(v)-1 Functional'!C258","v":"DISTRIBUTION - CUSTOMER"},null,null,{"$f":"F104-F181","v":0},0,0,0,0,0,0,0,0,0,0,0,0,{"$f":"F258-R258","v":0}]
[48,null,{"$f":"'FR-16(7)(v)-1 Functional'!C259","v":"CUSTOMER ACCOUNTING"},null,null,{"$f":"F105-F182","v":0},0,0,0,{"$f":"J105-J182","v":0},0,0,0,0,0,0,0,0,0]
[49,null,{"$f":"'FR-16(7)(v)-1 Functional'!C260","v":"CUSTOMER SERVICE & INFORMATION"},null,null,{"$f":"F106-F183","v":0},0,0,0,{"$f":"J106-J183","v":0},0,0,0,0,0,0,{"$f":"Q106-Q183","v":0},{"$f":"R106-R183","v":0},0]
[50,null,{"$f":"'FR-16(7)(v)-1 Functional'!C261","v":"SALES"},null,null,0,0,0,0,{"$f":"J107-J184","v":0},0,0,0,0,0,0,{"$f":"Q107-Q184","v":0},{"$f":"R107-R184","v":0},{"$f":"F261-R261","v":0}]
[51,null,{"$f":"'FR-16(7)(v)-1 Functional'!C262","v":"ADJUSTMENT"},null,null,{"$f":"F108-F185","v":0},0,0,0,{"$f":"J108-J185","v":0},0,0,0,0,0,0,0,0,{"$f":"F262-R262","v":0}]
[52,null,{"$f":"'FR-16(7)(v)-1 Functional'!C263","v":"  NET GENERAL & INTANG PLANT"},null,null,{"$f":"SUM(F253:F262)","v":0},0,0,0,{"$f":"SUM(J253:J262)","v":0},0,0,0,0,0,0,0,0,0]
[53]
[54,"COMMON & OTHER PLANT"]
[55,null,{"$f":"'FR-16(7)(v)-1 Functional'!C266","v":"PRODUCTION - DEMAND"},null,null,{"$f":"F112-F189","v":0},0,0,0,{"$f":"J112-J189","v":0},0,0,0,0,0,0,0,0,{"$f":"F266-R266","v":0}]
[56,null,{"$f":"'FR-16(7)(v)-1 Functional'!C267","v":"PRODUCTION - ENERGY"},null,null,{"$f":"F113-F190","v":0},0,0,0,{"$f":"J113-J190","v":0},0,0,0,0,0,0,0,0,{"$f":"F267-R267","v":0}]
[57,null,{"$f":"'FR-16(7)(v)-1 Functional'!C268","v":"TRANSMISSION"},null,null,{"$f":"F114-F191","v":0},0,0,0,{"$f":"J114-J191","v":0},0,0,0,0,0,0,0,0,0]
[58,null,{"$f":"'FR-16(7)(v)-1 Functional'!C269","v":"DISTRIBUTION - DEMAND"},null,null,{"$f":"F115-F192","v":0},0,0,0,0,0,0,0,0,0,0,0,0,0]
[59,null,{"$f":"'FR-16(7)(v)-1 Functional'!C270","v":"DISTRIBUTION - CUSTOMER"},null,null,{"$f":"F116-F193","v":0},0,0,0,0,0,0,0,0,0,0,0,0,{"$f":"F270-R270","v":0}]
[60,null,{"$f":"'FR-16(7)(v)-1 Functional'!C271","v":"CUSTOMER ACCOUNTING"},null,null,{"$f":"F117-F194","v":0},0,0,0,{"$f":"J117-J194","v":0},0,0,0,0,0,0,0,0,0]
[61,null,{"$f":"'FR-16(7)(v)-1 Functional'!C272","v":"CUSTOMER SERVICE & INFORMATION"},null,null,{"$f":"F118-F195","v":0},0,0,0,{"$f":"J118-J195","v":0},0,{"$f":"L118-L195","v":0},0,0,0,0,{"$f":"Q118-Q195","v":0},{"$f":"R118-R195","v":0},0]
[62,null,{"$f":"'FR-16(7)(v)-1 Functional'!C273","v":"SALES"},null,null,0,0,0,0,{"$f":"J119-J196","v":0},0,0,0,0,0,0,{"$f":"Q119-Q196","v":0},{"$f":"R119-R196","v":0},{"$f":"F273-R273","v":0}]
[63,null,{"$f":"'FR-16(7)(v)-1 Functional'!C274","v":"ADJUSTMENT"},null,null,{"$f":"F120-F197","v":0},0,0,0,{"$f":"J120-J197","v":0},0,0,0,0,0,0,0,0,{"$f":"F274-R274","v":0}]
[64,null,"  COMMON & OTHER PLANT IN SERVICE",null,null,{"$f":"SUM(F265:F274)","v":0},0,0,0,{"$f":"SUM(J265:J274)","v":0},0,0,0,0,0,0,0,0,0]
[65]
[66,null,{"$f":"'FR-16(7)(v)-1 Functional'!C277","v":"NET ELECTRIC PLANT IN SERVICE"},null,null,{"$f":"F275+F263+F248+F222+F216","v":0},{"$f":"G275+G263+G248+G222+G216","v":0},{"$f":"H275+H263+H248+H222+H216","v":0},{"$f":"I275+I263+I248+I222+I216","v":0},{"$f":"J275+J263+J248+J222+J216","v":0},0,0,0,0,0,0,{"$f":"Q275+Q263+Q248+Q222+Q216","v":0},{"$f":"R275+R263+R248+R222+R216","v":0},{"$f":"S275+S263+S248+S222+S216","v":0}]
[]
[{"$f":"co_name","v":"DUKE ENERGY KENTUCKY, INC."},null,null,null,null,null,null,null,null,null,null,null,null,null,null,null,null,{"$f":"R1","v":"FR-16(7)(v)-8"}]
[{"$f":"$A$2","v":"TRANSMISSION ENERGY ALLOCATED - ELECTRIC COST OF SERVICE"},null,null,null,null,null,null,null,null,null,null,null,null,null,null,null,null,{"$f":"R2","v":"WITNESS RESPONSIBLE:"}]
[{"$f":"case_name","v":"CASE NO: 2019-00271"},null,null,null,null,null,null,null,null,null,null,null,null,null,null,null,null,{"$f":"Witness","v":"JAMES E. ZIOLKOWSKI"}]
[{"$f":"data_filing","v":"DATA: 12 MONTHS ACTUAL  & 0 MONTHS ESTIMATED"},null,null,null,null,null,null,null,null,null,null,null,null,null,null,null,null,{"$f":"\"PAGE \"&Pages-13&\" OF \"&Pages","v":"PAGE 5 OF 18"}]
[{"$f":"type","v":"TYPE OF FILING: \"X\" ORIGINAL   UPDATED    REVISED  "}]
[]
[null,null,null,null,null,{"$f":"F$7","v":"TOTAL"},null,{"$f":"H$7","v":"DS"},{"$f":"I$7","v":"GSFL"},{"$f":"J$7","v":"EH"},{"$f":"K$7","v":"SP"},"DT SEC","DT PRI","DP","TT",null,"OTHER"]
["LINE",null,null,null,null,{"$f":"F$8","v":"TRANSMISSION"},{"$f":"G$8","v":"RS"},{"$f":"H$8","v":"SECONDARY"},{"$f":"I$8","v":"SECONDARY"},{"$f":"J$8","v":"SECONDARY"},{"$f":"K$8","v":"SECONDARY"},"SECONDARY","PRIMARY","PRIMARY","TRANSMISSION","LT","WATER",{"$f":"R8","v":"TOTAL"},"ALL"]
["NO.","SUBTRACTIVE RATE BASE ADJUSTMENTS",null,"ALLO",null,{"$f":"F$9","v":"ENERGY"},{"$f":"G$9","v":"RESIDENTIAL"},{"$f":"H$9","v":"DISTRIBUTION"},{"$f":"I$9","v":"DISTRIBUTION"},{"$f":"J$9","v":"DISTRIBUTION"},{"$f":"K$9","v":"DISTRIBUTION"},"DISTRIBUTION","DISTRIBUTION","DISTRIBUTION","TIME OF DAY","LIGHTING","PUMPING",{"$f":"R9","v":"AT ISSUE"},"OTHER"]
[null,null,"Schedule 5",null,null,null,{"$f":"G$10","v":3},{"$f":"H$10","v":4},{"$f":"I$10","v":5},{"$f":"J$10","v":6},{"$f":"K$10","v":7},8,9,10,11,12,13,null," "]
[1,"RATE BASE ADJUSTMENTS"]
[2,"ACCUMULATED DEFERRED INCOME TAXES"]
[3," ACCUM DEF INC TAXES (282)"]
[4,null,{"$f":"'FR-16(7)(v)-1 Functional'!C292","v":"LIBERALIZED DEPRECIATION"},{"$f":"'FR-16(7)(v)-1 Functional'!D292","v":"NP29"}," ",{"$f":"'FR-16(7)(v)-6 TRANS Classified'!H292","v":0},{"$f":"F292-SUM(H292:Q292)","v":0},{"$f":"ROUND(F292*VLOOKUP(D292,ALLOCTABLE_Trans_Energy,$H$10,FALSE),0)","v":0},{"$f":"ROUND(F292*VLOOKUP(D292,ALLOCTABLE_Trans_Energy,$I$10,FALSE),0)","v":0},{"$f":"ROUND(F292*VLOOKUP(D292,ALLOCTABLE_Trans_Energy,$J$10,FALSE),0)","v":0},{"$f":"ROUND(F292*VLOOKUP(D292,ALLOCTABLE_Trans_Energy,$K$10,FALSE),0)","v":0},{"$f":"ROUND(F292*VLOOKUP(D292,ALLOCTABLE_Trans_Energy,$L$10,FALSE),0)","v":0},{"$f":"ROUND(F292*VLOOKUP(D292,ALLOCTABLE_Trans_Energy,$M$10,FALSE),0)","v":0},{"$f":"ROUND(F292*VLOOKUP(D292,ALLOCTABLE_Trans_Energy,$N$10,FALSE),0)","v":0},{"$f":"ROUND(F292*VLOOKUP(D292,ALLOCTABLE_Trans_Energy,$O$10,FALSE),0)","v":0},{"$f":"ROUND(F292*VLOOKUP(D292,ALLOCTABLE_Trans_Energy,$P$10,FALSE),0)","v":0},{"$f":"ROUND(F292*VLOOKUP(D292,ALLOCTABLE_Trans_Energy,$Q$10,FALSE),0)","v":0},{"$f":"SUM(G292:Q292)","v":0},{"$f":"F292-R292","v":0}]
[5,null,{"$f":"'FR-16(7)(v)-1 Functional'!C293","v":"LEASED METERS"},{"$f":"'FR-16(7)(v)-1 Functional'!D293","v":"NP29"}," ",{"$f":"'FR-16(7)(v)-6 TRANS Classified'!H293","v":0},0,0,0,0,0,0,0,0,0,0,0,0,0]
[6,null,{"$f":"'FR-16(7)(v)-1 Functional'!C294","v":"CONTRIB AID CONSTR"},{"$f":"'FR-16(7)(v)-1 Functional'!D294","v":"D249"}," ",{"$f":"'FR-16(7)(v)-6 TRANS Classified'!H294","v":0},0,0,0,0,0,0,0,0,0,0,0,0,0]
[7,null,{"$f":"'FR-16(7)(v)-1 Functional'!C295","v":"TAX INTEREST, EXPENSING, DEPR."},{"$f":"'FR-16(7)(v)-1 Functional'!D295","v":"NP29"}," ",{"$f":"'FR-16(7)(v)-6 TRANS Classified'!H295","v":0},0,0,0,0,0,0,0,0,0,0,0,0,0]
[8,null,{"$f":"'FR-16(7)(v)-1 Functional'!C296","v":"AFUDC IN DEBT"},{"$f":"'FR-16(7)(v)-1 Functional'!D296","v":"NP29"}," ",{"$f":"'FR-16(7)(v)-6 TRANS Classified'!H296","v":0},0,0,0,0,0,0,0,0,0,0,0,0,0]
[9,null,{"$f":"'FR-16(7)(v)-1 Functional'!C297","v":"CASUALTY LOSS"},{"$f":"'FR-16(7)(v)-1 Functional'!D297","v":"K411"}," ",{"$f":"'FR-16(7)(v)-6 TRANS Classified'!H297","v":0},0,0,0,0,0,0,0,0,0,0,0,0,0]
[10,null,{"$f":"'FR-16(7)(v)-1 Functional'!C298","v":"NON-CASH OVERHEADS"},{"$f":"'FR-16(7)(v)-1 Functional'!D298","v":"G229"}," ",{"$f":"'FR-16(7)(v)-6 TRANS Classified'!H298","v":0},0,0,0,0,0,0,0,0,0,0,0,0,0]
[11,null,{"$f":"'FR-16(7)(v)-1 Functional'!C299","v":"PLANT FAS 109"},{"$f":"'FR-16(7)(v)-1 Functional'!D299","v":"NP29"}," ",{"$f":"'FR-16(7)(v)-6 TRANS Classified'!H299","v":0},0,0,0,0,0,0,0,0,0,0,0,0,0]
[12,null,{"$f":"'FR-16(7)(v)-1 Functional'!C300","v":"MISCELLANEOUS"},{"$f":"'FR-16(7)(v)-1 Functional'!D300","v":"NP29"},null,{"$f":"'FR-16(7)(v)-6 TRANS Classified'!H300","v":0},0,0,0,0,0,0,0,0,0,0,0,0,0]
[13,null,{"$f":"'FR-16(7)(v)-1 Functional'!C301","v":"  TOTAL ACCOUNT 282"},null,null,{"$f":"SUM(F292:F300)","v":0},{"$f":"SUM(G292:G300)","v":0},{"$f":"SUM(H292:H300)","v":0},{"$f":"SUM(I292:I300)","v":0},{"$f":"SUM(J292:J300)","v":0},0,0,0,0,0,0,{"$f":"SUM(Q292:Q300)","v":0},{"$f":"SUM(R292:R300)","v":0},{"$f":"SUM(S292:S300)","v":0}]
[14]
[15," ACCUM DEF INC TAXES (283)"]
[16,null,{"$f":"'FR-16(7)(v)-1 Functional'!C304","v":"TRANSITION FROM MISO TO PJM"},{"$f":"'FR-16(7)(v)-1 Functional'!D304","v":"NP29"},null,{"$f":"'FR-16(7)(v)-6 TRANS Classified'!H304","v":0},{"$f":"F304-SUM(H304:Q304)","v":0},{"$f":"ROUND(F304*VLOOKUP(D304,ALLOCTABLE_Trans_Energy,$H$10,FALSE),0)","v":0},{"$f":"ROUND(F304*VLOOKUP(D304,ALLOCTABLE_Trans_Energy,$I$10,FALSE),0)","v":0},{"$f":"ROUND(F304*VLOOKUP(D304,ALLOCTABLE_Trans_Energy,$J$10,FALSE),0)","v":0},{"$f":"ROUND(F304*VLOOKUP(D304,ALLOCTABLE_Trans_Energy,$K$10,FALSE),0)","v":0},{"$f":"ROUND(F304*VLOOKUP(D304,ALLOCTABLE_Trans_Energy,$L$10,FALSE),0)","v":0},{"$f":"ROUND(F304*VLOOKUP(D304,ALLOCTABLE_Trans_Energy,$M$10,FALSE),0)","v":0},{"$f":"ROUND(F304*VLOOKUP(D304,ALLOCTABLE_Trans_Energy,$N$10,FALSE),0)","v":0},{"$f":"ROUND(F304*VLOOKUP(D304,ALLOCTABLE_Trans_Energy,$O$10,FALSE),0)","v":0},{"$f":"ROUND(F304*VLOOKUP(D304,ALLOCTABLE_Trans_Energy,$P$10,FALSE),0)","v":0},{"$f":"ROUND(F304*VLOOKUP(D304,ALLOCTABLE_Trans_Energy,$Q$10,FALSE),0)","v":0},{"$f":"SUM(G304:Q304)","v":0},{"$f":"F304-R304","v":0}]
[17,null,{"$f":"'FR-16(7)(v)-1 Functional'!C305","v":"DEFERRED PLANT COSTS"},{"$f":"'FR-16(7)(v)-1 Functional'!D305","v":"NP29"},null,{"$f":"'FR-16(7)(v)-6 TRANS Classified'!H305","v":0},0,0,0,0,0,0,0,0,0,0,0,0,0]
[18,null,{"$f":"'FR-16(7)(v)-1 Functional'!C306","v":"MISCELLANEOUS"},{"$f":"'FR-16(7)(v)-1 Functional'!D306","v":"OM39"},null,{"$f":"'FR-16(7)(v)-6 TRANS Classified'!H306","v":0},0,0,0,0,0,0,0,0,0,0,0,0,0]
[19,null,{"$f":"'FR-16(7)(v)-1 Functional'!C307","v":"ENVIRONMENTAL RESERVE"},{"$f":"'FR-16(7)(v)-1 Functional'!D307","v":"NP29"},null,{"$f":"'FR-16(7)(v)-6 TRANS Classified'!H307","v":0},0,0,0,0,0,0,0,0,0,0,0,0,0]
[20,null,{"$f":"'FR-16(7)(v)-1 Functional'!C308","v":"POST IN-SERVICE CARRYING COSTS"},{"$f":"'FR-16(7)(v)-1 Functional'!D308","v":"NP29"},null,{"$f":"'FR-16(7)(v)-6 TRANS Classified'!H308","v":0},0,0,0,0,0,0,0,0,0,0,0,0,0]
[21,null,{"$f":"'FR-16(7)(v)-1 Functional'!C309","v":"ARO CUMULATIVE EFFECT"},{"$f":"'FR-16(7)(v)-1 Functional'!D309","v":"NP29"},null,{"$f":"'FR-16(7)(v)-6 TRANS Classified'!H309","v":0},0,0,0,0,0,0,0,0,0,0,0,0,0]
[22,null,{"$f":"'FR-16(7)(v)-1 Functional'!C310","v":"LOSS ON REACQUIRED DEBT"},{"$f":"'FR-16(7)(v)-1 Functional'!D310","v":"D249"},null,{"$f":"'FR-16(7)(v)-6 TRANS Classified'!H310","v":0},0,0,0,0,0,0,0,0,0,0,0,0,0]
[23,null,{"$f":"'FR-16(7)(v)-1 Functional'!C311","v":"VACATION PAY ACCRUAL"},{"$f":"'FR-16(7)(v)-1 Functional'!D311","v":"A315"},null,{"$f":"'FR-16(7)(v)-6 TRANS Classified'!H311","v":0},0,0,0,0,0,0,0,0,0,0,0,0,0]
[24,null,{"$f":"'FR-16(7)(v)-1 Functional'!C312","v":"NON-AMI METERS RETIRED EARLY"},{"$f":"'FR-16(7)(v)-1 Functional'!D312","v":"OM39"},null,{"$f":"'FR-16(7)(v)-6 TRANS Classified'!H312","v":0},0,0,0,0,0,0,0,0,0,0,0,{"$f":"SUM(G312:Q312)","v":0},{"$f":"F312-R312","v":0}]
[25,null,{"$f":"'FR-16(7)(v)-1 Functional'!C313","v":"PENSION EXPENSE"},{"$f":"'FR-16(7)(v)-1 Functional'!D313","v":"A315"},null,{"$f":"'FR-16(7)(v)-6 TRANS Classified'!H313","v":0},0,0,0,0,0,0,0,0,0,0,0,{"$f":"SUM(G313:Q313)","v":0},{"$f":"F313-R313","v":0}]
[26,null,{"$f":"'FR-16(7)(v)-1 Functional'!C314","v":"UNCOLLECTIBLE ACCOUNTS"},{"$f":"'FR-16(7)(v)-1 Functional'!D314","v":"K411"},null,{"$f":"'FR-16(7)(v)-6 TRANS Classified'!H314","v":0},0,0,0,0,0,0,0,0,0,0,0,0,0]
[27,null,{"$f":"'FR-16(7)(v)-1 Functional'!C315","v":"  TOTAL ACCOUNT 283"},null,null,{"$f":"SUM(F303:F314)","v":0},{"$f":"SUM(G303:G314)","v":0},{"$f":"SUM(H303:H314)","v":0},{"$f":"SUM(I303:I314)","v":0},{"$f":"SUM(J303:J314)","v":0},0,0,0,0,0,0,{"$f":"SUM(Q303:Q314)","v":0},{"$f":"SUM(R303:R314)","v":0},{"$f":"SUM(S303:S314)","v":0}]
[28]
[29," OTHER ACCUMULATED DEFERRED INCOME TAXES"]
[30,null,{"$f":"'FR-16(7)(v)-1 Functional'!C318","v":"EXCESS ADIT"},{"$f":"'FR-16(7)(v)-1 Functional'!D318","v":"NP29"},null,{"$f":"'FR-16(7)(v)-6 TRANS Classified'!H318","v":0},{"$f":"F318-SUM(H318:Q318)","v":0},{"$f":"ROUND(F318*VLOOKUP(D318,ALLOCTABLE_Trans_Energy,$H$10,FALSE),0)","v":0},{"$f":"ROUND(F318*VLOOKUP(D318,ALLOCTABLE_Trans_Energy,$I$10,FALSE),0)","v":0},{"$f":"ROUND(F318*VLOOKUP(D318,ALLOCTABLE_Trans_Energy,$J$10,FALSE),0)","v":0},{"$f":"ROUND(F318*VLOOKUP(D318,ALLOCTABLE_Trans_Energy,$K$10,FALSE),0)","v":0},{"$f":"ROUND(F318*VLOOKUP(D318,ALLOCTABLE_Trans_Energy,$L$10,FALSE),0)","v":0},{"$f":"ROUND(F318*VLOOKUP(D318,ALLOCTABLE_Trans_Energy,$M$10,FALSE),0)","v":0},{"$f":"ROUND(F318*VLOOKUP(D318,ALLOCTABLE_Trans_Energy,$N$10,FALSE),0)","v":0},{"$f":"ROUND(F318*VLOOKUP(D318,ALLOCTABLE_Trans_Energy,$O$10,FALSE),0)","v":0},{"$f":"ROUND(F318*VLOOKUP(D318,ALLOCTABLE_Trans_Energy,$P$10,FALSE),0)","v":0},{"$f":"ROUND(F318*VLOOKUP(D318,ALLOCTABLE_Trans_Energy,$Q$10,FALSE),0)","v":0},{"$f":"SUM(G318:Q318)","v":0},{"$f":"F318-R318","v":0}]
[31,null,{"$f":"'FR-16(7)(v)-1 Functional'!C319","v":"CUSTOMER SERVICE DEPOSITS"},{"$f":"'FR-16(7)(v)-1 Functional'!D319","v":"NP29"},null,{"$f":"'FR-16(7)(v)-6 TRANS Classified'!H319","v":0},{"$f":"F319-SUM(H319:Q319)","v":0},{"$f":"ROUND(F319*VLOOKUP(D319,ALLOCTABLE_Trans_Energy,$H$10,FALSE),0)","v":0},{"$f":"ROUND(F319*VLOOKUP(D319,ALLOCTABLE_Trans_Energy,$I$10,FALSE),0)","v":0},{"$f":"ROUND(F319*VLOOKUP(D319,ALLOCTABLE_Trans_Energy,$J$10,FALSE),0)","v":0},{"$f":"ROUND(F319*VLOOKUP(D319,ALLOCTABLE_Trans_Energy,$K$10,FALSE),0)","v":0},{"$f":"ROUND(F319*VLOOKUP(D319,ALLOCTABLE_Trans_Energy,$L$10,FALSE),0)","v":0},{"$f":"ROUND(F319*VLOOKUP(D319,ALLOCTABLE_Trans_Energy,$M$10,FALSE),0)","v":0},{"$f":"ROUND(F319*VLOOKUP(D319,ALLOCTABLE_Trans_Energy,$N$10,FALSE),0)","v":0},{"$f":"ROUND(F319*VLOOKUP(D319,ALLOCTABLE_Trans_Energy,$O$10,FALSE),0)","v":0},{"$f":"ROUND(F319*VLOOKUP(D319,ALLOCTABLE_Trans_Energy,$P$10,FALSE),0)","v":0},{"$f":"ROUND(F319*VLOOKUP(D319,ALLOCTABLE_Trans_Energy,$Q$10,FALSE),0)","v":0},{"$f":"SUM(G319:Q319)","v":0},{"$f":"F319-R319","v":0}]
[32,null,{"$f":"'FR-16(7)(v)-1 Functional'!C320","v":"POST RETIREMENT BENEFITS"},{"$f":"'FR-16(7)(v)-1 Functional'!D320","v":"NP29"},null,{"$f":"'FR-16(7)(v)-6 TRANS Classified'!H320","v":0},{"$f":"F320-SUM(H320:Q320)","v":0},{"$f":"ROUND(F320*VLOOKUP(D320,ALLOCTABLE_Trans_Energy,$H$10,FALSE),0)","v":0},{"$f":"ROUND(F320*VLOOKUP(D320,ALLOCTABLE_Trans_Energy,$I$10,FALSE),0)","v":0},{"$f":"ROUND(F320*VLOOKUP(D320,ALLOCTABLE_Trans_Energy,$J$10,FALSE),0)","v":0},{"$f":"ROUND(F320*VLOOKUP(D320,ALLOCTABLE_Trans_Energy,$K$10,FALSE),0)","v":0},{"$f":"ROUND(F320*VLOOKUP(D320,ALLOCTABLE_Trans_Energy,$L$10,FALSE),0)","v":0},{"$f":"ROUND(F320*VLOOKUP(D320,ALLOCTABLE_Trans_Energy,$M$10,FALSE),0)","v":0},{"$f":"ROUND(F320*VLOOKUP(D320,ALLOCTABLE_Trans_Energy,$N$10,FALSE),0)","v":0},{"$f":"ROUND(F320*VLOOKUP(D320,ALLOCTABLE_Trans_Energy,$O$10,FALSE),0)","v":0},{"$f":"ROUND(F320*VLOOKUP(D320,ALLOCTABLE_Trans_Energy,$P$10,FALSE),0)","v":0},{"$f":"ROUND(F320*VLOOKUP(D320,ALLOCTABLE_Trans_Energy,$Q$10,FALSE),0)","v":0},{"$f":"SUM(G320:Q320)","v":0},{"$f":"F320-R320","v":0}]
[33,null,{"$f":"'FR-16(7)(v)-1 Functional'!C321","v":"INVESTMENT TAX CREDIT"},{"$f":"'FR-16(7)(v)-1 Functional'!D321","v":"NP29"},null,{"$f":"'FR-16(7)(v)-6 TRANS Classified'!H321","v":0},{"$f":"F321-SUM(H321:Q321)","v":0},{"$f":"ROUND(F321*VLOOKUP(D321,ALLOCTABLE_Trans_Energy,$H$10,FALSE),0)","v":0},{"$f":"ROUND(F321*VLOOKUP(D321,ALLOCTABLE_Trans_Energy,$I$10,FALSE),0)","v":0},{"$f":"ROUND(F321*VLOOKUP(D321,ALLOCTABLE_Trans_Energy,$J$10,FALSE),0)","v":0},{"$f":"ROUND(F321*VLOOKUP(D321,ALLOCTABLE_Trans_Energy,$K$10,FALSE),0)","v":0},{"$f":"ROUND(F321*VLOOKUP(D321,ALLOCTABLE_Trans_Energy,$L$10,FALSE),0)","v":0},{"$f":"ROUND(F321*VLOOKUP(D321,ALLOCTABLE_Trans_Energy,$M$10,FALSE),0)","v":0},{"$f":"ROUND(F321*VLOOKUP(D321,ALLOCTABLE_Trans_Energy,$N$10,FALSE),0)","v":0},{"$f":"ROUND(F321*VLOOKUP(D321,ALLOCTABLE_Trans_Energy,$O$10,FALSE),0)","v":0},{"$f":"ROUND(F321*VLOOKUP(D321,ALLOCTABLE_Trans_Energy,$P$10,FALSE),0)","v":0},{"$f":"ROUND(F321*VLOOKUP(D321,ALLOCTABLE_Trans_Energy,$Q$10,FALSE),0)","v":0},{"$f":"SUM(G321:Q321)","v":0},{"$f":"F321-R321","v":0}]
[34,null,{"$f":"'FR-16(7)(v)-1 Functional'!C322","v":"  TOTAL OTHER SUBTRACTIVE ADJUSTMENTS"},null,null,{"$f":"SUM(F317:F321)","v":0},{"$f":"SUM(G317:G321)","v":0},{"$f":"SUM(H317:H321)","v":0},{"$f":"SUM(I317:I321)","v":0},{"$f":"SUM(J317:J321)","v":0},0,0,0,0,0,0,{"$f":"SUM(Q317:Q321)","v":0},{"$f":"SUM(R317:R321)","v":0},{"$f":"SUM(S317:S321)","v":0}]
[35]
[36,{"$f":"'FR-16(7)(v)-1 Functional'!B324","v":"TOTAL SUBTRACTIVE RATE BASE ADJUSTMENTS"},null,null,null,{"$f":"F322+F315+F301","v":0},{"$f":"G322+G315+G301","v":0},{"$f":"H322+H315+H301","v":0},{"$f":"I322+I315+I301","v":0},{"$f":"J322+J315+J301","v":0},0,0,0,0,0,0,{"$f":"Q322+Q315+Q301","v":0},{"$f":"R322+R315+R301","v":0},{"$f":"S322+S315+S301","v":0}]
[]
[{"$f":"co_name","v":"DUKE ENERGY KENTUCKY, INC."},null,null,null,null,null,null,null,null,null,null,null,null,null,null,null,null,{"$f":"R1","v":"FR-16(7)(v)-8"}]
[{"$f":"$A$2","v":"TRANSMISSION ENERGY ALLOCATED - ELECTRIC COST OF SERVICE"},null,null,null,null,null,null,null,null,null,null,null,null,null,null,null,null,{"$f":"R2","v":"WITNESS RESPONSIBLE:"}]
[{"$f":"case_name","v":"CASE NO: 2019-00271"},null,null,null,null,null,null,null,null,null,null,null,null,null,null,null,null,{"$f":"Witness","v":"JAMES E. ZIOLKOWSKI"}]
[{"$f":"data_filing","v":"DATA: 12 MONTHS ACTUAL  & 0 MONTHS ESTIMATED"},null,null,null,null,null,null,null,null,null,null,null,null,null,null,null,null,{"$f":"\"PAGE \"&Pages-12&\" OF \"&Pages","v":"PAGE 6 OF 18"}]
[{"$f":"type","v":"TYPE OF FILING: \"X\" ORIGINAL   UPDATED    REVISED  "}]
[]
[null,null,null,null,null,{"$f":"F$7","v":"TOTAL"},null,{"$f":"H$7","v":"DS"},{"$f":"I$7","v":"GSFL"},{"$f":"J$7","v":"EH"},{"$f":"K$7","v":"SP"},"DT SEC","DT PRI","DP","TT",null,"OTHER"]
["LINE",null,null,null,null,{"$f":"F$8","v":"TRANSMISSION"},{"$f":"G$8","v":"RS"},{"$f":"H$8","v":"SECONDARY"},{"$f":"I$8","v":"SECONDARY"},{"$f":"J$8","v":"SECONDARY"},{"$f":"K$8","v":"SECONDARY"},"SECONDARY","PRIMARY","PRIMARY","TRANSMISSION","LT","WATER",{"$f":"R8","v":"TOTAL"},"ALL"]
["NO.","ADDITIVE RATE BASE ADJUSTMENTS",null,"ALLO",null,{"$f":"F$9","v":"ENERGY"},{"$f":"G$9","v":"RESIDENTIAL"},{"$f":"H$9","v":"DISTRIBUTION"},{"$f":"I$9","v":"DISTRIBUTION"},{"$f":"J$9","v":"DISTRIBUTION"},{"$f":"K$9","v":"DISTRIBUTION"},"DISTRIBUTION","DISTRIBUTION","DISTRIBUTION","TIME OF DAY","LIGHTING","PUMPING",{"$f":"R9","v":"AT ISSUE"},"OTHER"]
[null,null,"Schedule 5.1",null,null,null,{"$f":"G$10","v":3},{"$f":"H$10","v":4},{"$f":"I$10","v":5},{"$f":"J$10","v":6},{"$f":"K$10","v":7},8,9,10,11,12,13,null," "]
[1,"OTHER ACCUMULATED DEFERRED INCOME TAXES"]
[2," ACCUM DEF INC TAXES (190)"]
[3,null,{"$f":"'FR-16(7)(v)-1 Functional'!C338","v":"UNCOLLECTIBLE ACCTS"},{"$f":"'FR-16(7)(v)-1 Functional'!D338","v":"K411"},null,{"$f":"'FR-16(7)(v)-6 TRANS Classified'!H338","v":0},{"$f":"F338-SUM(H338:Q338)","v":0},{"$f":"ROUND(F338*VLOOKUP(D338,ALLOCTABLE_Trans_Energy,$H$10,FALSE),0)","v":0},{"$f":"ROUND(F338*VLOOKUP(D338,ALLOCTABLE_Trans_Energy,$I$10,FALSE),0)","v":0},{"$f":"ROUND(F338*VLOOKUP(D338,ALLOCTABLE_Trans_Energy,$J$10,FALSE),0)","v":0},{"$f":"ROUND(F338*VLOOKUP(D338,ALLOCTABLE_Trans_Energy,$K$10,FALSE),0)","v":0},{"$f":"ROUND(F338*VLOOKUP(D338,ALLOCTABLE_Trans_Energy,$L$10,FALSE),0)","v":0},{"$f":"ROUND(F338*VLOOKUP(D338,ALLOCTABLE_Trans_Energy,$M$10,FALSE),0)","v":0},{"$f":"ROUND(F338*VLOOKUP(D338,ALLOCTABLE_Trans_Energy,$N$10,FALSE),0)","v":0},{"$f":"ROUND(F338*VLOOKUP(D338,ALLOCTABLE_Trans_Energy,$O$10,FALSE),0)","v":0},{"$f":"ROUND(F338*VLOOKUP(D338,ALLOCTABLE_Trans_Energy,$P$10,FALSE),0)","v":0},{"$f":"ROUND(F338*VLOOKUP(D338,ALLOCTABLE_Trans_Energy,$Q$10,FALSE),0)","v":0},{"$f":"SUM(G338:Q338)","v":0},{"$f":"F338-R338","v":0}]
[4,null,{"$f":"'FR-16(7)(v)-1 Functional'!C339","v":"CASH FLOW HEDGE"},{"$f":"'FR-16(7)(v)-1 Functional'!D339","v":"A315"},null,{"$f":"'FR-16(7)(v)-6 TRANS Classified'!H339","v":0},0,0,0,0,0,0,0,0,0,0,0,0,0]
[5,null,{"$f":"'FR-16(7)(v)-1 Functional'!C340","v":"RESERVED FOR FUTURE USE"},{"$f":"'FR-16(7)(v)-1 Functional'!D340","v":"NP29"},null,{"$f":"'FR-16(7)(v)-6 TRANS Classified'!H340","v":0},0,0,0,0,0,0,0,0,0,0,0,0,0]
[6,null,{"$f":"'FR-16(7)(v)-1 Functional'!C341","v":"RESERVED FOR FUTURE USE"},{"$f":"'FR-16(7)(v)-1 Functional'!D341","v":"NP29"},null,{"$f":"'FR-16(7)(v)-6 TRANS Classified'!H341","v":0},0,0,0,0,0,0,0,0,0,0,0,0,0]
[7,null,{"$f":"'FR-16(7)(v)-1 Functional'!C342","v":"ELECTRIC METERS"},{"$f":"'FR-16(7)(v)-1 Functional'!D342","v":"K407"},null,{"$f":"'FR-16(7)(v)-6 TRANS Classified'!H342","v":0},0,0,0,0,0,0,0,0,0,0,0,0,0]
[8,null,{"$f":"'FR-16(7)(v)-1 Functional'!C343","v":"UNAMORTIZED DEBT PREMIUM"},{"$f":"'FR-16(7)(v)-1 Functional'!D343","v":"D249"},null,{"$f":"'FR-16(7)(v)-6 TRANS Classified'!H343","v":0},0,0,0,0,0,0,0,0,0,0,0,0,0]
[9,null,{"$f":"'FR-16(7)(v)-1 Functional'!C344","v":"ARO CUMULATIVE EFFECT"},{"$f":"'FR-16(7)(v)-1 Functional'!D344","v":"NP29"},null,{"$f":"'FR-16(7)(v)-6 TRANS Classified'!H344","v":0},0,0,0,0,0,0,0,0,0,0,0,0,0]
[10,null,{"$f":"'FR-16(7)(v)-1 Functional'!C345","v":"RETIREMENT PLAN"},{"$f":"'FR-16(7)(v)-1 Functional'!D345","v":"A315"},null,{"$f":"'FR-16(7)(v)-6 TRANS Classified'!H345","v":0},0,0,0,0,0,0,0,0,0,0,0,0,0]
[11,null,{"$f":"'FR-16(7)(v)-1 Functional'!C346","v":"POST RETIREMENT BENEFITS "},{"$f":"'FR-16(7)(v)-1 Functional'!D346","v":"A315"},null,{"$f":"'FR-16(7)(v)-6 TRANS Classified'!H346","v":0},0,0,0,0,0,0,0,0,0,0,0,0,0]
[12,null,{"$f":"'FR-16(7)(v)-1 Functional'!C347","v":"POST RETIREMENT BENEFITS - HEALTH CARE"},{"$f":"'FR-16(7)(v)-1 Functional'!D347","v":"A315"},null,{"$f":"'FR-16(7)(v)-6 TRANS Classified'!H347","v":0},0,0,0,0,0,0,0,0,0,0,0,0,0]
[13,null,{"$f":"'FR-16(7)(v)-1 Functional'!C348","v":"POST EMPLOYMENT BENEFITS - SFAS 112"},{"$f":"'FR-16(7)(v)-1 Functional'!D348","v":"A315"},null,{"$f":"'FR-16(7)(v)-6 TRANS Classified'!H348","v":0},0,0,0,0,0,0,0,0,0,0,0,0,0]
[14,null,{"$f":"'FR-16(7)(v)-1 Functional'!C349","v":"SUPPLEMENTAL PENSION PLAN"},{"$f":"'FR-16(7)(v)-1 Functional'!D349","v":"A315"},null,{"$f":"'FR-16(7)(v)-6 TRANS Classified'!H349","v":0},0,0,0,0,0,0,0,0,0,0,0,0,0]
[15,null,{"$f":"'FR-16(7)(v)-1 Functional'!C350","v":"INCENTIVE PLAN"},{"$f":"'FR-16(7)(v)-1 Functional'!D350","v":"A315"},null,{"$f":"'FR-16(7)(v)-6 TRANS Classified'!H350","v":0},0,0,0,0,0,0,0,0,0,0,0,0,0]
[16,null,{"$f":"'FR-16(7)(v)-1 Functional'!C351","v":"FEDERAL DEFERRED TAX RECEIVEABLE"},{"$f":"'FR-16(7)(v)-1 Functional'!D351","v":"A315"},null,{"$f":"'FR-16(7)(v)-6 TRANS Classified'!H351","v":0},0,0,0,0,0,0,0,0,0,0,0,0,0]
[17,null,{"$f":"'FR-16(7)(v)-1 Functional'!C352","v":"MISCELLANEOUS"},{"$f":"'FR-16(7)(v)-1 Functional'!D352","v":"A315"},null,{"$f":"'FR-16(7)(v)-6 TRANS Classified'!H352","v":0},0,0,0,0,0,0,0,0,0,0,0,0,0]
[18,null,{"$f":"'FR-16(7)(v)-1 Functional'!C353","v":"DEFERRED TAX"},{"$f":"'FR-16(7)(v)-1 Functional'!D353","v":"A315"},null,{"$f":"'FR-16(7)(v)-6 TRANS Classified'!H353","v":0},0,0,0,0,0,0,0,0,0,0,0,0,0]
[19,null,{"$f":"'FR-16(7)(v)-1 Functional'!C354","v":"NET OPERATING LOSS"},{"$f":"'FR-16(7)(v)-1 Functional'!D354","v":"NP29"},null,{"$f":"'FR-16(7)(v)-6 TRANS Classified'!H354","v":0},0,0,0,0,0,0,0,0,0,0,0,0,0]
[20,null,{"$f":"'FR-16(7)(v)-1 Functional'!C355","v":"401K INCENTIVE PLAN"},{"$f":"'FR-16(7)(v)-1 Functional'!D355","v":"A315"},null,{"$f":"'FR-16(7)(v)-6 TRANS Classified'!H355","v":0},0,0,0,0,0,0,0,0,0,0,0,0,0]
[21,null,{"$f":"'FR-16(7)(v)-1 Functional'!C356","v":"ENVIRONMENTAL RESERVE"},{"$f":"'FR-16(7)(v)-1 Functional'!D356","v":"NP29"},null,{"$f":"'FR-16(7)(v)-6 TRANS Classified'!H356","v":0},0,0,0,0,0,0,0,0,0,0,0,0,0]
[22,null,{"$f":"'FR-16(7)(v)-1 Functional'!C357","v":"VACATION PAY ACCRUALS"},{"$f":"'FR-16(7)(v)-1 Functional'!D357","v":"A315"},null,{"$f":"'FR-16(7)(v)-6 TRANS Classified'!H357","v":0},0,0,0,0,0,0,0,0,0,0,0,0,0]
[23,null,{"$f":"'FR-16(7)(v)-1 Functional'!C358","v":"DEMAND SIDE MANAGEMENT DEFERRAL"},{"$f":"'FR-16(7)(v)-1 Functional'!D358","v":"NP29"},null,{"$f":"'FR-16(7)(v)-6 TRANS Classified'!H358","v":0},0,0,0,0,0,0,0,0,0,0,0,0,0]
[24,null,{"$f":"'FR-16(7)(v)-1 Functional'!C359","v":"OPERATING LEASE OBLIGATION"},{"$f":"'FR-16(7)(v)-1 Functional'!D359","v":"NP29"},null,{"$f":"'FR-16(7)(v)-6 TRANS Classified'!H359","v":0},0,0,0,0,0,0,0,0,0,0,0,0,0]
[25,null,{"$f":"'FR-16(7)(v)-1 Functional'!C360","v":"INJURIES & DAMAGES"},{"$f":"'FR-16(7)(v)-1 Functional'!D360","v":"NP29"},null,{"$f":"'FR-16(7)(v)-6 TRANS Classified'!H360","v":0},0,0,0,0,0,0,0,0,0,0,0,0,0]
[26,null,{"$f":"'FR-16(7)(v)-1 Functional'!C361","v":"  TOTAL ACCOUNT 190"},null,null,{"$f":"SUM(F337:F360)","v":0},{"$f":"SUM(G337:G360)","v":0},{"$f":"SUM(H337:H360)","v":0},{"$f":"SUM(I337:I360)","v":0},{"$f":"SUM(J337:J360)","v":0},0,0,0,0,0,0,{"$f":"SUM(Q337:Q360)","v":0},{"$f":"SUM(R337:R360)","v":0},{"$f":"SUM(S337:S360)","v":0}]
[27]
[28," OTHER"]
[29,null,{"$f":"'FR-16(7)(v)-1 Functional'!C364","v":"RESERVED FOR FUTURE USE"},{"$f":"'FR-16(7)(v)-1 Functional'!D364","v":"NP29"},null,{"$f":"'FR-16(7)(v)-6 TRANS Classified'!H364","v":0},{"$f":"F364-SUM(H364:Q364)","v":0},{"$f":"ROUND(F364*VLOOKUP(D364,ALLOCTABLE_Trans_Energy,$H$10,FALSE),0)","v":0},{"$f":"ROUND(F364*VLOOKUP(D364,ALLOCTABLE_Trans_Energy,$I$10,FALSE),0)","v":0},{"$f":"ROUND(F364*VLOOKUP(D364,ALLOCTABLE_Trans_Energy,$J$10,FALSE),0)","v":0},{"$f":"ROUND(F364*VLOOKUP(D364,ALLOCTABLE_Trans_Energy,$K$10,FALSE),0)","v":0},{"$f":"ROUND(F364*VLOOKUP(D364,ALLOCTABLE_Trans_Energy,$L$10,FALSE),0)","v":0},{"$f":"ROUND(F364*VLOOKUP(D364,ALLOCTABLE_Trans_Energy,$M$10,FALSE),0)","v":0},{"$f":"ROUND(F364*VLOOKUP(D364,ALLOCTABLE_Trans_Energy,$N$10,FALSE),0)","v":0},{"$f":"ROUND(F364*VLOOKUP(D364,ALLOCTABLE_Trans_Energy,$O$10,FALSE),0)","v":0},{"$f":"ROUND(F364*VLOOKUP(D364,ALLOCTABLE_Trans_Energy,$P$10,FALSE),0)","v":0},{"$f":"ROUND(F364*VLOOKUP(D364,ALLOCTABLE_Trans_Energy,$Q$10,FALSE),0)","v":0},{"$f":"SUM(G364:Q364)","v":0},{"$f":"F364-R364","v":0}]
[30,null,{"$f":"'FR-16(7)(v)-1 Functional'!C365","v":"RATE CASE EXPENSE REGULATORY ASSET"},{"$f":"'FR-16(7)(v)-1 Functional'!D365","v":"NP29"},null,{"$f":"'FR-16(7)(v)-6 TRANS Classified'!H365","v":0},{"$f":"F365-SUM(H365:Q365)","v":0},{"$f":"ROUND(F365*VLOOKUP(D365,ALLOCTABLE_Trans_Energy,$H$10,FALSE),0)","v":0},{"$f":"ROUND(F365*VLOOKUP(D365,ALLOCTABLE_Trans_Energy,$I$10,FALSE),0)","v":0},{"$f":"ROUND(F365*VLOOKUP(D365,ALLOCTABLE_Trans_Energy,$J$10,FALSE),0)","v":0},{"$f":"ROUND(F365*VLOOKUP(D365,ALLOCTABLE_Trans_Energy,$K$10,FALSE),0)","v":0},{"$f":"ROUND(F365*VLOOKUP(D365,ALLOCTABLE_Trans_Energy,$L$10,FALSE),0)","v":0},{"$f":"ROUND(F365*VLOOKUP(D365,ALLOCTABLE_Trans_Energy,$M$10,FALSE),0)","v":0},{"$f":"ROUND(F365*VLOOKUP(D365,ALLOCTABLE_Trans_Energy,$N$10,FALSE),0)","v":0},{"$f":"ROUND(F365*VLOOKUP(D365,ALLOCTABLE_Trans_Energy,$O$10,FALSE),0)","v":0},{"$f":"ROUND(F365*VLOOKUP(D365,ALLOCTABLE_Trans_Energy,$P$10,FALSE),0)","v":0},{"$f":"ROUND(F365*VLOOKUP(D365,ALLOCTABLE_Trans_Energy,$Q$10,FALSE),0)","v":0},{"$f":"SUM(G365:Q365)","v":0},{"$f":"F365-R365","v":0}]
[31,null,{"$f":"'FR-16(7)(v)-1 Functional'!C366","v":"RESERVED FOR FUTURE USE"},{"$f":"'FR-16(7)(v)-1 Functional'!D366","v":"NP29"},null,{"$f":"'FR-16(7)(v)-6 TRANS Classified'!H366","v":0},{"$f":"F366-SUM(H366:Q366)","v":0},{"$f":"ROUND(F366*VLOOKUP(D366,ALLOCTABLE_Trans_Energy,$H$10,FALSE),0)","v":0},{"$f":"ROUND(F366*VLOOKUP(D366,ALLOCTABLE_Trans_Energy,$I$10,FALSE),0)","v":0},{"$f":"ROUND(F366*VLOOKUP(D366,ALLOCTABLE_Trans_Energy,$J$10,FALSE),0)","v":0},{"$f":"ROUND(F366*VLOOKUP(D366,ALLOCTABLE_Trans_Energy,$K$10,FALSE),0)","v":0},{"$f":"ROUND(F366*VLOOKUP(D366,ALLOCTABLE_Trans_Energy,$L$10,FALSE),0)","v":0},{"$f":"ROUND(F366*VLOOKUP(D366,ALLOCTABLE_Trans_Energy,$M$10,FALSE),0)","v":0},{"$f":"ROUND(F366*VLOOKUP(D366,ALLOCTABLE_Trans_Energy,$N$10,FALSE),0)","v":0},{"$f":"ROUND(F366*VLOOKUP(D366,ALLOCTABLE_Trans_Energy,$O$10,FALSE),0)","v":0},{"$f":"ROUND(F366*VLOOKUP(D366,ALLOCTABLE_Trans_Energy,$P$10,FALSE),0)","v":0},{"$f":"ROUND(F366*VLOOKUP(D366,ALLOCTABLE_Trans_Energy,$Q$10,FALSE),0)","v":0},{"$f":"SUM(G366:Q366)","v":0},{"$f":"F366-R366","v":0}]
[32,null,{"$f":"'FR-16(7)(v)-1 Functional'!C367","v":"  OTHER"},null,null,{"$f":"SUM(F364:F366)","v":0},{"$f":"SUM(G363:G366)","v":0},0,0,{"$f":"SUM(J363:J366)","v":0},0,0,0,0,0,0,0,0,0]
[33,null,null,null,null," "]
[34,"CONSTRUCTION WORK IN PROGRESS"]
[35,null,"PRODUCTION",{"$f":"'FR-16(7)(v)-1 Functional'!D370","v":"P129"},null,{"$f":"'FR-16(7)(v)-6 TRANS Classified'!H370","v":0},{"$f":"F370-SUM(H370:Q370)","v":0},{"$f":"ROUND(F370*VLOOKUP(D370,ALLOCTABLE_Trans_Energy,$H$10,FALSE),0)","v":0},{"$f":"ROUND(F370*VLOOKUP(D370,ALLOCTABLE_Trans_Energy,$I$10,FALSE),0)","v":0},{"$f":"ROUND(F370*VLOOKUP(D370,ALLOCTABLE_Trans_Energy,$J$10,FALSE),0)","v":0},{"$f":"ROUND(F370*VLOOKUP(D370,ALLOCTABLE_Trans_Energy,$K$10,FALSE),0)","v":0},{"$f":"ROUND(F370*VLOOKUP(D370,ALLOCTABLE_Trans_Energy,$L$10,FALSE),0)","v":0},{"$f":"ROUND(F370*VLOOKUP(D370,ALLOCTABLE_Trans_Energy,$M$10,FALSE),0)","v":0},{"$f":"ROUND(F370*VLOOKUP(D370,ALLOCTABLE_Trans_Energy,$N$10,FALSE),0)","v":0},{"$f":"ROUND(F370*VLOOKUP(D370,ALLOCTABLE_Trans_Energy,$O$10,FALSE),0)","v":0},{"$f":"ROUND(F370*VLOOKUP(D370,ALLOCTABLE_Trans_Energy,$P$10,FALSE),0)","v":0},{"$f":"ROUND(F370*VLOOKUP(D370,ALLOCTABLE_Trans_Energy,$Q$10,FALSE),0)","v":0},{"$f":"SUM(G370:Q370)","v":0},{"$f":"F370-R370","v":0}]
[36,null,"TRANSMISSION",{"$f":"'FR-16(7)(v)-1 Functional'!D371","v":"T129"},null,{"$f":"'FR-16(7)(v)-6 TRANS Classified'!H371","v":0},{"$f":"F371-SUM(H371:Q371)","v":0},{"$f":"ROUND(F371*VLOOKUP(D371,ALLOCTABLE_Trans_Energy,$H$10,FALSE),0)","v":0},{"$f":"ROUND(F371*VLOOKUP(D371,ALLOCTABLE_Trans_Energy,$I$10,FALSE),0)","v":0},{"$f":"ROUND(F371*VLOOKUP(D371,ALLOCTABLE_Trans_Energy,$J$10,FALSE),0)","v":0},{"$f":"ROUND(F371*VLOOKUP(D371,ALLOCTABLE_Trans_Energy,$K$10,FALSE),0)","v":0},{"$f":"ROUND(F371*VLOOKUP(D371,ALLOCTABLE_Trans_Energy,$L$10,FALSE),0)","v":0},{"$f":"ROUND(F371*VLOOKUP(D371,ALLOCTABLE_Trans_Energy,$M$10,FALSE),0)","v":0},{"$f":"ROUND(F371*VLOOKUP(D371,ALLOCTABLE_Trans_Energy,$N$10,FALSE),0)","v":0},{"$f":"ROUND(F371*VLOOKUP(D371,ALLOCTABLE_Trans_Energy,$O$10,FALSE),0)","v":0},{"$f":"ROUND(F371*VLOOKUP(D371,ALLOCTABLE_Trans_Energy,$P$10,FALSE),0)","v":0},{"$f":"ROUND(F371*VLOOKUP(D371,ALLOCTABLE_Trans_Energy,$Q$10,FALSE),0)","v":0},{"$f":"SUM(G371:Q371)","v":0},{"$f":"F371-R371","v":0}]
[37,null,"DISTRIBUTION",{"$f":"'FR-16(7)(v)-1 Functional'!D372","v":"D149"},null,{"$f":"'FR-16(7)(v)-6 TRANS Classified'!H372","v":0},{"$f":"F372-SUM(H372:Q372)","v":0},{"$f":"ROUND(F372*VLOOKUP(D372,ALLOCTABLE_Trans_Energy,$H$10,FALSE),0)","v":0},{"$f":"ROUND(F372*VLOOKUP(D372,ALLOCTABLE_Trans_Energy,$I$10,FALSE),0)","v":0},{"$f":"ROUND(F372*VLOOKUP(D372,ALLOCTABLE_Trans_Energy,$J$10,FALSE),0)","v":0},{"$f":"ROUND(F372*VLOOKUP(D372,ALLOCTABLE_Trans_Energy,$K$10,FALSE),0)","v":0},{"$f":"ROUND(F372*VLOOKUP(D372,ALLOCTABLE_Trans_Energy,$L$10,FALSE),0)","v":0},{"$f":"ROUND(F372*VLOOKUP(D372,ALLOCTABLE_Trans_Energy,$M$10,FALSE),0)","v":0},{"$f":"ROUND(F372*VLOOKUP(D372,ALLOCTABLE_Trans_Energy,$N$10,FALSE),0)","v":0},{"$f":"ROUND(F372*VLOOKUP(D372,ALLOCTABLE_Trans_Energy,$O$10,FALSE),0)","v":0},{"$f":"ROUND(F372*VLOOKUP(D372,ALLOCTABLE_Trans_Energy,$P$10,FALSE),0)","v":0},{"$f":"ROUND(F372*VLOOKUP(D372,ALLOCTABLE_Trans_Energy,$Q$10,FALSE),0)","v":0},{"$f":"SUM(G372:Q372)","v":0},{"$f":"F372-R372","v":0}]
[38,null,"COMMON",{"$f":"'FR-16(7)(v)-1 Functional'!D373","v":"C129"},null,{"$f":"'FR-16(7)(v)-6 TRANS Classified'!H373","v":0},{"$f":"F373-SUM(H373:Q373)","v":0},{"$f":"ROUND(F373*VLOOKUP(D373,ALLOCTABLE_Trans_Energy,$H$10,FALSE),0)","v":0},{"$f":"ROUND(F373*VLOOKUP(D373,ALLOCTABLE_Trans_Energy,$I$10,FALSE),0)","v":0},{"$f":"ROUND(F373*VLOOKUP(D373,ALLOCTABLE_Trans_Energy,$J$10,FALSE),0)","v":0},{"$f":"ROUND(F373*VLOOKUP(D373,ALLOCTABLE_Trans_Energy,$K$10,FALSE),0)","v":0},{"$f":"ROUND(F373*VLOOKUP(D373,ALLOCTABLE_Trans_Energy,$L$10,FALSE),0)","v":0},{"$f":"ROUND(F373*VLOOKUP(D373,ALLOCTABLE_Trans_Energy,$M$10,FALSE),0)","v":0},{"$f":"ROUND(F373*VLOOKUP(D373,ALLOCTABLE_Trans_Energy,$N$10,FALSE),0)","v":0},{"$f":"ROUND(F373*VLOOKUP(D373,ALLOCTABLE_Trans_Energy,$O$10,FALSE),0)","v":0},{"$f":"ROUND(F373*VLOOKUP(D373,ALLOCTABLE_Trans_Energy,$P$10,FALSE),0)","v":0},{"$f":"ROUND(F373*VLOOKUP(D373,ALLOCTABLE_Trans_Energy,$Q$10,FALSE),0)","v":0},{"$f":"SUM(G373:Q373)","v":0},{"$f":"F373-R373","v":0}]
[39,null,"GENERAL",{"$f":"'FR-16(7)(v)-1 Functional'!D374","v":"G129"},null,{"$f":"'FR-16(7)(v)-6 TRANS Classified'!H374","v":0},{"$f":"F374-SUM(H374:Q374)","v":0},{"$f":"ROUND(F374*VLOOKUP(D374,ALLOCTABLE_Trans_Energy,$H$10,FALSE),0)","v":0},{"$f":"ROUND(F374*VLOOKUP(D374,ALLOCTABLE_Trans_Energy,$I$10,FALSE),0)","v":0},{"$f":"ROUND(F374*VLOOKUP(D374,ALLOCTABLE_Trans_Energy,$J$10,FALSE),0)","v":0},{"$f":"ROUND(F374*VLOOKUP(D374,ALLOCTABLE_Trans_Energy,$K$10,FALSE),0)","v":0},{"$f":"ROUND(F374*VLOOKUP(D374,ALLOCTABLE_Trans_Energy,$L$10,FALSE),0)","v":0},{"$f":"ROUND(F374*VLOOKUP(D374,ALLOCTABLE_Trans_Energy,$M$10,FALSE),0)","v":0},{"$f":"ROUND(F374*VLOOKUP(D374,ALLOCTABLE_Trans_Energy,$N$10,FALSE),0)","v":0},{"$f":"ROUND(F374*VLOOKUP(D374,ALLOCTABLE_Trans_Energy,$O$10,FALSE),0)","v":0},{"$f":"ROUND(F374*VLOOKUP(D374,ALLOCTABLE_Trans_Energy,$P$10,FALSE),0)","v":0},{"$f":"ROUND(F374*VLOOKUP(D374,ALLOCTABLE_Trans_Energy,$Q$10,FALSE),0)","v":0},{"$f":"SUM(G374:Q374)","v":0},{"$f":"F374-R374","v":0}]
[40,null,"TOTAL CONSTRUCTION WORK IN PROGRESS",null,null,{"$f":"SUM(F370:F374)","v":0},0,0,0,0,0,0,0,0,0,0,0,0]
[41]
[42,{"$f":"'FR-16(7)(v)-1 Functional'!B377","v":"TOTAL ADDITIVE RATE BASE ADJUSTMENTS"},null,null,null,{"$f":"F361+F367+F375","v":0},{"$f":"G361+G367+G375","v":0},{"$f":"H361+H367+H375","v":0},{"$f":"I361+I367+I375","v":0},{"$f":"J361+J367+J375","v":0},0,0,0,0,0,0,{"$f":"Q361+Q367+Q375","v":0},{"$f":"R361+R367+R375","v":0},{"$f":"S361+S367+S375","v":0}]
[]
[{"$f":"co_name","v":"DUKE ENERGY KENTUCKY, INC."},null,null,null,null,null,null,null,null,null,null,null,null,null,null,null,null,{"$f":"R1","v":"FR-16(7)(v)-8"}]
[{"$f":"$A$2","v":"TRANSMISSION ENERGY ALLOCATED - ELECTRIC COST OF SERVICE"},null,null,null,null,null,null,null,null,null,null,null,null,null,null,null,null,{"$f":"R2","v":"WITNESS RESPONSIBLE:"}]
[{"$f":"case_name","v":"CASE NO: 2019-00271"},null,null,null,null,null,null,null,null,null,null,null,null,null,null,null,null,{"$f":"Witness","v":"JAMES E. ZIOLKOWSKI"}]
[{"$f":"data_filing","v":"DATA: 12 MONTHS ACTUAL  & 0 MONTHS ESTIMATED"},null,null,null,null,null,null,null,null,null,null,null,null,null,null,null,null,{"$f":"\"PAGE \"&Pages-11&\" OF \"&Pages","v":"PAGE 7 OF 18"}]
[{"$f":"type","v":"TYPE OF FILING: \"X\" ORIGINAL   UPDATED    REVISED  "}]
[]
[null,null,null,null,null,{"$f":"F$7","v":"TOTAL"},null,{"$f":"H$7","v":"DS"},{"$f":"I$7","v":"GSFL"},{"$f":"J$7","v":"EH"},{"$f":"K$7","v":"SP"},"DT SEC","DT PRI","DP","TT",null,"OTHER"]
["LINE",null,null,null,null,{"$f":"F$8","v":"TRANSMISSION"},{"$f":"G$8","v":"RS"},{"$f":"H$8","v":"SECONDARY"},{"$f":"I$8","v":"SECONDARY"},{"$f":"J$8","v":"SECONDARY"},{"$f":"K$8","v":"SECONDARY"},"SECONDARY","PRIMARY","PRIMARY","TRANSMISSION","LT","WATER",{"$f":"R8","v":"TOTAL"},"ALL"]
["NO.","WORKING CAPITAL",null,"ALLO",null,{"$f":"F$9","v":"ENERGY"},{"$f":"G$9","v":"RESIDENTIAL"},{"$f":"H$9","v":"DISTRIBUTION"},{"$f":"I$9","v":"DISTRIBUTION"},{"$f":"J$9","v":"DISTRIBUTION"},{"$f":"K$9","v":"DISTRIBUTION"},"DISTRIBUTION","DISTRIBUTION","DISTRIBUTION","TIME OF DAY","LIGHTING","PUMPING",{"$f":"R9","v":"AT ISSUE"},"OTHER"]
[null,null,"Schedule 5.2",null,null,null,{"$f":"G$10","v":3},{"$f":"H$10","v":4},{"$f":"I$10","v":5},{"$f":"J$10","v":6},{"$f":"K$10","v":7},8,9,10,11,12,13,null," "]
[]
[1,"NET ORIGINAL COST RATE BASE",null,null,null,{"$f":"F277-F324+F377","v":0},{"$f":"G277-G324+G377","v":0},{"$f":"H277-H324+H377","v":0},{"$f":"I277-I324+I377","v":0},{"$f":"J277-J324+J377","v":0},0,0,0,0,0,0,{"$f":"Q277-Q324+Q377","v":0},{"$f":"R277-R324+R377","v":0},{"$f":"S277-S324+S377","v":0}]
[2]
[3,"WORKING CAPITAL"]
[4]
[5,"PLANT MATERIALS & SUPPLIES"]
[6,null,"OTHER MATERIALS & SUPPLIES",{"$f":"'FR-16(7)(v)-1 Functional'!D395","v":"PD29"},null,{"$f":"'FR-16(7)(v)-6 TRANS Classified'!H395","v":0},{"$f":"F395-SUM(H395:Q395)","v":0},{"$f":"ROUND(F395*VLOOKUP(D395,ALLOCTABLE_Trans_Energy,$H$10,FALSE),0)","v":0},{"$f":"ROUND(F395*VLOOKUP(D395,ALLOCTABLE_Trans_Energy,$I$10,FALSE),0)","v":0},{"$f":"ROUND(F395*VLOOKUP(D395,ALLOCTABLE_Trans_Energy,$J$10,FALSE),0)","v":0},{"$f":"ROUND(F395*VLOOKUP(D395,ALLOCTABLE_Trans_Energy,$K$10,FALSE),0)","v":0},{"$f":"ROUND(F395*VLOOKUP(D395,ALLOCTABLE_Trans_Energy,$L$10,FALSE),0)","v":0},{"$f":"ROUND(F395*VLOOKUP(D395,ALLOCTABLE_Trans_Energy,$M$10,FALSE),0)","v":0},{"$f":"ROUND(F395*VLOOKUP(D395,ALLOCTABLE_Trans_Energy,$N$10,FALSE),0)","v":0},{"$f":"ROUND(F395*VLOOKUP(D395,ALLOCTABLE_Trans_Energy,$O$10,FALSE),0)","v":0},{"$f":"ROUND(F395*VLOOKUP(D395,ALLOCTABLE_Trans_Energy,$P$10,FALSE),0)","v":0},{"$f":"ROUND(F395*VLOOKUP(D395,ALLOCTABLE_Trans_Energy,$Q$10,FALSE),0)","v":0},{"$f":"SUM(G395:Q395)","v":0},{"$f":"F395-R395","v":0}]
[7,null,{"$f":"'FR-16(7)(v)-1 Functional'!C396","v":"FUEL"},{"$f":"'FR-16(7)(v)-1 Functional'!D396","v":"K301"},null,{"$f":"'FR-16(7)(v)-6 TRANS Classified'!H396","v":0},{"$f":"F396-SUM(H396:Q396)","v":0},{"$f":"ROUND(F396*VLOOKUP(D396,ALLOCTABLE_Trans_Energy,$H$10,FALSE),0)","v":0},{"$f":"ROUND(F396*VLOOKUP(D396,ALLOCTABLE_Trans_Energy,$I$10,FALSE),0)","v":0},{"$f":"ROUND(F396*VLOOKUP(D396,ALLOCTABLE_Trans_Energy,$J$10,FALSE),0)","v":0},{"$f":"ROUND(F396*VLOOKUP(D396,ALLOCTABLE_Trans_Energy,$K$10,FALSE),0)","v":0},{"$f":"ROUND(F396*VLOOKUP(D396,ALLOCTABLE_Trans_Energy,$L$10,FALSE),0)","v":0},{"$f":"ROUND(F396*VLOOKUP(D396,ALLOCTABLE_Trans_Energy,$M$10,FALSE),0)","v":0},{"$f":"ROUND(F396*VLOOKUP(D396,ALLOCTABLE_Trans_Energy,$N$10,FALSE),0)","v":0},{"$f":"ROUND(F396*VLOOKUP(D396,ALLOCTABLE_Trans_Energy,$O$10,FALSE),0)","v":0},{"$f":"ROUND(F396*VLOOKUP(D396,ALLOCTABLE_Trans_Energy,$P$10,FALSE),0)","v":0},{"$f":"ROUND(F396*VLOOKUP(D396,ALLOCTABLE_Trans_Energy,$Q$10,FALSE),0)","v":0},{"$f":"SUM(G396:Q396)","v":0},{"$f":"F396-R396","v":0}]
[8,null,{"$f":"'FR-16(7)(v)-1 Functional'!C397","v":"EMISSION ALLOWANCES"},{"$f":"'FR-16(7)(v)-1 Functional'!D397","v":"K301"},null,{"$f":"'FR-16(7)(v)-6 TRANS Classified'!H397","v":0},{"$f":"F397-SUM(H397:Q397)","v":0},{"$f":"ROUND(F397*VLOOKUP(D397,ALLOCTABLE_Trans_Energy,$H$10,FALSE),0)","v":0},{"$f":"ROUND(F397*VLOOKUP(D397,ALLOCTABLE_Trans_Energy,$I$10,FALSE),0)","v":0},{"$f":"ROUND(F397*VLOOKUP(D397,ALLOCTABLE_Trans_Energy,$J$10,FALSE),0)","v":0},{"$f":"ROUND(F397*VLOOKUP(D397,ALLOCTABLE_Trans_Energy,$K$10,FALSE),0)","v":0},{"$f":"ROUND(F397*VLOOKUP(D397,ALLOCTABLE_Trans_Energy,$L$10,FALSE),0)","v":0},{"$f":"ROUND(F397*VLOOKUP(D397,ALLOCTABLE_Trans_Energy,$M$10,FALSE),0)","v":0},{"$f":"ROUND(F397*VLOOKUP(D397,ALLOCTABLE_Trans_Energy,$N$10,FALSE),0)","v":0},{"$f":"ROUND(F397*VLOOKUP(D397,ALLOCTABLE_Trans_Energy,$O$10,FALSE),0)","v":0},{"$f":"ROUND(F397*VLOOKUP(D397,ALLOCTABLE_Trans_Energy,$P$10,FALSE),0)","v":0},{"$f":"ROUND(F397*VLOOKUP(D397,ALLOCTABLE_Trans_Energy,$Q$10,FALSE),0)","v":0},{"$f":"SUM(G397:Q397)","v":0},{"$f":"F397-R397","v":0}]
[9,null,{"$f":"'FR-16(7)(v)-1 Functional'!C398","v":"  TOTAL PLANT MATS. & SUPPLIES"},null,null,{"$f":"SUM(F394:F397)","v":0},{"$f":"SUM(G394:G397)","v":0},{"$f":"SUM(H394:H397)","v":0},{"$f":"SUM(I394:I397)","v":0},{"$f":"SUM(J394:J397)","v":0},0,0,0,0,0,0,{"$f":"SUM(Q394:Q397)","v":0},{"$f":"SUM(R394:R397)","v":0},{"$f":"SUM(S394:S397)","v":0}]
[10,"TOTAL MATERIALS & SUPPLIES",null,null,null,{"$f":"F398","v":0},0,0,0,{"$f":"J398","v":0},0,0,0,0,0,0,0,0,0]
[11]
[12,"PREPAYMENTS"]
[13,null,{"$f":"'FR-16(7)(v)-1 Functional'!C402","v":"INSURANCE GENERAL"},{"$f":"'FR-16(7)(v)-1 Functional'!D402","v":"NP29"},null,{"$f":"'FR-16(7)(v)-6 TRANS Classified'!H402","v":0},{"$f":"F402-SUM(H402:Q402)","v":0},{"$f":"ROUND(F402*VLOOKUP(D402,ALLOCTABLE_Trans_Energy,$H$10,FALSE),0)","v":0},{"$f":"ROUND(F402*VLOOKUP(D402,ALLOCTABLE_Trans_Energy,$I$10,FALSE),0)","v":0},{"$f":"ROUND(F402*VLOOKUP(D402,ALLOCTABLE_Trans_Energy,$J$10,FALSE),0)","v":0},{"$f":"ROUND(F402*VLOOKUP(D402,ALLOCTABLE_Trans_Energy,$K$10,FALSE),0)","v":0},{"$f":"ROUND(F402*VLOOKUP(D402,ALLOCTABLE_Trans_Energy,$L$10,FALSE),0)","v":0},{"$f":"ROUND(F402*VLOOKUP(D402,ALLOCTABLE_Trans_Energy,$M$10,FALSE),0)","v":0},{"$f":"ROUND(F402*VLOOKUP(D402,ALLOCTABLE_Trans_Energy,$N$10,FALSE),0)","v":0},{"$f":"ROUND(F402*VLOOKUP(D402,ALLOCTABLE_Trans_Energy,$O$10,FALSE),0)","v":0},{"$f":"ROUND(F402*VLOOKUP(D402,ALLOCTABLE_Trans_Energy,$P$10,FALSE),0)","v":0},{"$f":"ROUND(F402*VLOOKUP(D402,ALLOCTABLE_Trans_Energy,$Q$10,FALSE),0)","v":0},{"$f":"SUM(G402:Q402)","v":0},{"$f":"F402-R402","v":0}]
[14,null,{"$f":"'FR-16(7)(v)-1 Functional'!C403","v":"EXCISE TAX"},{"$f":"'FR-16(7)(v)-1 Functional'!D403","v":"NP29"},null,{"$f":"'FR-16(7)(v)-6 TRANS Classified'!H403","v":0},{"$f":"F403-SUM(H403:Q403)","v":0},{"$f":"ROUND(F403*VLOOKUP(D403,ALLOCTABLE_Trans_Energy,$H$10,FALSE),0)","v":0},{"$f":"ROUND(F403*VLOOKUP(D403,ALLOCTABLE_Trans_Energy,$I$10,FALSE),0)","v":0},{"$f":"ROUND(F403*VLOOKUP(D403,ALLOCTABLE_Trans_Energy,$J$10,FALSE),0)","v":0},{"$f":"ROUND(F403*VLOOKUP(D403,ALLOCTABLE_Trans_Energy,$K$10,FALSE),0)","v":0},{"$f":"ROUND(F403*VLOOKUP(D403,ALLOCTABLE_Trans_Energy,$L$10,FALSE),0)","v":0},{"$f":"ROUND(F403*VLOOKUP(D403,ALLOCTABLE_Trans_Energy,$M$10,FALSE),0)","v":0},{"$f":"ROUND(F403*VLOOKUP(D403,ALLOCTABLE_Trans_Energy,$N$10,FALSE),0)","v":0},{"$f":"ROUND(F403*VLOOKUP(D403,ALLOCTABLE_Trans_Energy,$O$10,FALSE),0)","v":0},{"$f":"ROUND(F403*VLOOKUP(D403,ALLOCTABLE_Trans_Energy,$P$10,FALSE),0)","v":0},{"$f":"ROUND(F403*VLOOKUP(D403,ALLOCTABLE_Trans_Energy,$Q$10,FALSE),0)","v":0},{"$f":"SUM(G403:Q403)","v":0},{"$f":"F403-R403","v":0}]
[15,null,{"$f":"'FR-16(7)(v)-1 Functional'!C404","v":"COLLATERAL ASSET"},{"$f":"'FR-16(7)(v)-1 Functional'!D404","v":"K301"},null,{"$f":"'FR-16(7)(v)-6 TRANS Classified'!H404","v":0},{"$f":"F404-SUM(H404:Q404)","v":0},{"$f":"ROUND(F404*VLOOKUP(D404,ALLOCTABLE_Trans_Energy,$H$10,FALSE),0)","v":0},{"$f":"ROUND(F404*VLOOKUP(D404,ALLOCTABLE_Trans_Energy,$I$10,FALSE),0)","v":0},{"$f":"ROUND(F404*VLOOKUP(D404,ALLOCTABLE_Trans_Energy,$J$10,FALSE),0)","v":0},{"$f":"ROUND(F404*VLOOKUP(D404,ALLOCTABLE_Trans_Energy,$K$10,FALSE),0)","v":0},{"$f":"ROUND(F404*VLOOKUP(D404,ALLOCTABLE_Trans_Energy,$L$10,FALSE),0)","v":0},{"$f":"ROUND(F404*VLOOKUP(D404,ALLOCTABLE_Trans_Energy,$M$10,FALSE),0)","v":0},{"$f":"ROUND(F404*VLOOKUP(D404,ALLOCTABLE_Trans_Energy,$N$10,FALSE),0)","v":0},{"$f":"ROUND(F404*VLOOKUP(D404,ALLOCTABLE_Trans_Energy,$O$10,FALSE),0)","v":0},{"$f":"ROUND(F404*VLOOKUP(D404,ALLOCTABLE_Trans_Energy,$P$10,FALSE),0)","v":0},{"$f":"ROUND(F404*VLOOKUP(D404,ALLOCTABLE_Trans_Energy,$Q$10,FALSE),0)","v":0},{"$f":"SUM(G404:Q404)","v":0},{"$f":"F404-R404","v":0}]
[16,null,{"$f":"'FR-16(7)(v)-1 Functional'!C405","v":"  TOTAL PREPAYMENTS"},null,null,{"$f":"SUM(F401:F404)","v":0},{"$f":"SUM(G401:G404)","v":0},{"$f":"SUM(H401:H404)","v":0},{"$f":"SUM(I401:I404)","v":0},{"$f":"SUM(J401:J404)","v":0},0,0,0,0,0,0,{"$f":"SUM(Q401:Q404)","v":0},{"$f":"SUM(R401:R404)","v":0},{"$f":"SUM(S401:S404)","v":0}]
[17]
[18,"AUTO CALC (O&M-ELECTRIC FUEL COST)/8",null,null,null,{"$f":"IF(WorkingCap=\"No\",0,ROUND((F549-F447-F448)/8,0))","v":0},{"$f":"F407-SUM(H407:Q407)","v":0},{"$f":"IF(WorkingCap=\"No\",0,ROUND((H549-H447-H448)/8,0))","v":0},0,0,0,0,0,0,0,0,0,{"$f":"SUM(G407:Q407)","v":0},{"$f":"F407-R407","v":0}]
[19,"  TOTAL WORKING CASH",null,null,null,{"$f":"F407","v":0},0,0,0,{"$f":"J407","v":0},0,0,0,0,0,0,0,0,0]
[20]
[21,"MISCELLANEOUS WORKING CAPITAL"]
[22,null,{"$f":"'FR-16(7)(v)-1 Functional'!C411","v":"RESERVED FOR FUTURE USE"},{"$f":"'FR-16(7)(v)-1 Functional'!D411","v":"K301"},null,{"$f":"'FR-16(7)(v)-6 TRANS Classified'!H411","v":0},{"$f":"F411-SUM(H411:Q411)","v":0},{"$f":"ROUND(F411*VLOOKUP(D411,ALLOCTABLE_Trans_Energy,$H$10,FALSE),0)","v":0},{"$f":"ROUND(F411*VLOOKUP(D411,ALLOCTABLE_Trans_Energy,$I$10,FALSE),0)","v":0},{"$f":"ROUND(F411*VLOOKUP(D411,ALLOCTABLE_Trans_Energy,$J$10,FALSE),0)","v":0},{"$f":"ROUND(F411*VLOOKUP(D411,ALLOCTABLE_Trans_Energy,$K$10,FALSE),0)","v":0},{"$f":"ROUND(F411*VLOOKUP(D411,ALLOCTABLE_Trans_Energy,$L$10,FALSE),0)","v":0},{"$f":"ROUND(F411*VLOOKUP(D411,ALLOCTABLE_Trans_Energy,$M$10,FALSE),0)","v":0},{"$f":"ROUND(F411*VLOOKUP(D411,ALLOCTABLE_Trans_Energy,$N$10,FALSE),0)","v":0},{"$f":"ROUND(F411*VLOOKUP(D411,ALLOCTABLE_Trans_Energy,$O$10,FALSE),0)","v":0},{"$f":"ROUND(F411*VLOOKUP(D411,ALLOCTABLE_Trans_Energy,$P$10,FALSE),0)","v":0},{"$f":"ROUND(F411*VLOOKUP(D411,ALLOCTABLE_Trans_Energy,$Q$10,FALSE),0)","v":0},{"$f":"SUM(G411:Q411)","v":0},{"$f":"F411-R411","v":0}]
[23,null,{"$f":"'FR-16(7)(v)-1 Functional'!C412","v":"PIPP UNCOLLECTIBLES"},{"$f":"'FR-16(7)(v)-1 Functional'!D412","v":"A315"},null,{"$f":"'FR-16(7)(v)-6 TRANS Classified'!H412","v":0},{"$f":"F412-SUM(H412:Q412)","v":0},{"$f":"ROUND(F412*VLOOKUP(D412,ALLOCTABLE_Trans_Energy,$H$10,FALSE),0)","v":0},{"$f":"ROUND(F412*VLOOKUP(D412,ALLOCTABLE_Trans_Energy,$I$10,FALSE),0)","v":0},{"$f":"ROUND(F412*VLOOKUP(D412,ALLOCTABLE_Trans_Energy,$J$10,FALSE),0)","v":0},{"$f":"ROUND(F412*VLOOKUP(D412,ALLOCTABLE_Trans_Energy,$K$10,FALSE),0)","v":0},{"$f":"ROUND(F412*VLOOKUP(D412,ALLOCTABLE_Trans_Energy,$L$10,FALSE),0)","v":0},{"$f":"ROUND(F412*VLOOKUP(D412,ALLOCTABLE_Trans_Energy,$M$10,FALSE),0)","v":0},{"$f":"ROUND(F412*VLOOKUP(D412,ALLOCTABLE_Trans_Energy,$N$10,FALSE),0)","v":0},{"$f":"ROUND(F412*VLOOKUP(D412,ALLOCTABLE_Trans_Energy,$O$10,FALSE),0)","v":0},{"$f":"ROUND(F412*VLOOKUP(D412,ALLOCTABLE_Trans_Energy,$P$10,FALSE),0)","v":0},{"$f":"ROUND(F412*VLOOKUP(D412,ALLOCTABLE_Trans_Energy,$Q$10,FALSE),0)","v":0},{"$f":"SUM(G412:Q412)","v":0},{"$f":"F412-R412","v":0}]
[24,null,{"$f":"'FR-16(7)(v)-1 Functional'!C413","v":"RESERVED FOR FUTURE USE"},{"$f":"'FR-16(7)(v)-1 Functional'!D413","v":"D249"},null,{"$f":"'FR-16(7)(v)-6 TRANS Classified'!H413","v":0},{"$f":"F413-SUM(H413:Q413)","v":0},{"$f":"ROUND(F413*VLOOKUP(D413,ALLOCTABLE_Trans_Energy,$H$10,FALSE),0)","v":0},{"$f":"ROUND(F413*VLOOKUP(D413,ALLOCTABLE_Trans_Energy,$I$10,FALSE),0)","v":0},{"$f":"ROUND(F413*VLOOKUP(D413,ALLOCTABLE_Trans_Energy,$J$10,FALSE),0)","v":0},{"$f":"ROUND(F413*VLOOKUP(D413,ALLOCTABLE_Trans_Energy,$K$10,FALSE),0)","v":0},{"$f":"ROUND(F413*VLOOKUP(D413,ALLOCTABLE_Trans_Energy,$L$10,FALSE),0)","v":0},{"$f":"ROUND(F413*VLOOKUP(D413,ALLOCTABLE_Trans_Energy,$M$10,FALSE),0)","v":0},{"$f":"ROUND(F413*VLOOKUP(D413,ALLOCTABLE_Trans_Energy,$N$10,FALSE),0)","v":0},{"$f":"ROUND(F413*VLOOKUP(D413,ALLOCTABLE_Trans_Energy,$O$10,FALSE),0)","v":0},{"$f":"ROUND(F413*VLOOKUP(D413,ALLOCTABLE_Trans_Energy,$P$10,FALSE),0)","v":0},{"$f":"ROUND(F413*VLOOKUP(D413,ALLOCTABLE_Trans_Energy,$Q$10,FALSE),0)","v":0},{"$f":"SUM(G413:Q413)","v":0},{"$f":"F413-R413","v":0}]
[25,null,{"$f":"'FR-16(7)(v)-1 Functional'!C414","v":"  TOTAL MISC WORK CAPITAL"},null,null,{"$f":"SUM(F410:F413)","v":0},{"$f":"SUM(G410:G413)","v":0},{"$f":"SUM(H410:H413)","v":0},{"$f":"SUM(I410:I413)","v":0},{"$f":"SUM(J410:J413)","v":0},0,0,0,0,0,0,{"$f":"SUM(Q410:Q413)","v":0},{"$f":"SUM(R410:R413)","v":0},{"$f":"SUM(S410:S413)","v":0}]
[26]
[27,"TOTAL WORKING CAPITAL",null,null,null,{"$f":"F399+F405+F408+F414","v":0},{"$f":"G399+G405+G408+G414","v":0},{"$f":"H399+H405+H408+H414","v":0},{"$f":"I399+I405+I408+I414","v":0},{"$f":"J399+J405+J408+J414","v":0},0,0,0,0,0,0,{"$f":"Q399+Q405+Q408+Q414","v":0},{"$f":"R399+R405+R408+R414","v":0},{"$f":"S399+S405+S408+S414","v":0}]
[28,"PRELIMINARY SUMMARY"]
[29,null,{"$f":"'FR-16(7)(v)-1 Functional'!C418","v":"TOTAL ACCUMULATED DEFERRED INCOME TAXES"},null,null,{"$f":"-F324","v":0},{"$f":"-G324","v":0},{"$f":"-H324","v":0},{"$f":"-I324","v":0},{"$f":"-J324","v":0},0,0,0,0,0,0,{"$f":"-Q324","v":0},{"$f":"-R324","v":0},{"$f":"-S324","v":0}]
[30,null,{"$f":"'FR-16(7)(v)-1 Functional'!C419","v":"TOTAL OTHER ACCUMULATED DEFERRED INCOME TAXES"},null,null,{"$f":"F377","v":0},{"$f":"G377","v":0},{"$f":"H377","v":0},{"$f":"I377","v":0},{"$f":"J377","v":0},0,0,0,0,0,0,{"$f":"Q377","v":0},{"$f":"R377","v":0},{"$f":"S377","v":0}]
[31,null,{"$f":"'FR-16(7)(v)-1 Functional'!C420","v":"TOTAL WORKING CAPITAL"},null,null,{"$f":"F416","v":0},{"$f":"G416","v":0},{"$f":"H416","v":0},{"$f":"I416","v":0},{"$f":"J416","v":0},0,0,0,0,0,0,{"$f":"Q416","v":0},{"$f":"R416","v":0},{"$f":"S416","v":0}]
[32,null,{"$f":"'FR-16(7)(v)-1 Functional'!C421","v":"  TOTAL RATE BASE ADJUSTMENTS"},null,null,{"$f":"SUM(F417:F420)","v":0},{"$f":"SUM(G417:G420)","v":0},{"$f":"SUM(H417:H420)","v":0},{"$f":"SUM(I417:I420)","v":0},{"$f":"SUM(J417:J420)","v":0},0,0,0,0,0,0,{"$f":"SUM(Q417:Q420)","v":0},{"$f":"SUM(R417:R420)","v":0},{"$f":"SUM(S417:S420)","v":0}]
[33]
[34,"RATE BASE CALCULATION"]
[35,null,{"$f":"'FR-16(7)(v)-1 Functional'!C424","v":"NET ELECTRIC PLANT IN SERVICE"},null,null,{"$f":"F277","v":0},{"$f":"G277","v":0},{"$f":"H277","v":0},{"$f":"I277","v":0},{"$f":"J277","v":0},0,0,0,0,0,0,{"$f":"Q277","v":0},{"$f":"R277","v":0},{"$f":"S277","v":0}]
[36,null,{"$f":"'FR-16(7)(v)-1 Functional'!C425","v":"TOTAL RATE BASE ADJUSTMENTS"},null,null,{"$f":"F421","v":0},{"$f":"G421","v":0},{"$f":"H421","v":0},{"$f":"I421","v":0},{"$f":"J421","v":0},0,0,0,0,0,0,{"$f":"Q421","v":0},{"$f":"R421","v":0},{"$f":"S421","v":0}]
[37,null,{"$f":"'FR-16(7)(v)-1 Functional'!C426","v":"  TOTAL RATE BASE"},null,null,{"$f":"SUM(F423:F425)","v":0},{"$f":"SUM(G423:G425)","v":0},{"$f":"SUM(H423:H425)","v":0},{"$f":"SUM(I423:I425)","v":0},{"$f":"SUM(J423:J425)","v":0},0,0,0,0,0,0,{"$f":"SUM(Q423:Q425)","v":0},{"$f":"SUM(R423:R425)","v":0},{"$f":"SUM(S423:S425)","v":0}]
[38]
[39,"TOTAL RATE OF RETURN ALLOWABLE",null,null,null,{"$f":"$F$811","v":6.7100000000000007E-2},{"$f":"$F$811","v":6.7100000000000007E-2},6.7100000000000007E-2,6.7100000000000007E-2,6.7100000000000007E-2,6.7100000000000007E-2,6.7100000000000007E-2,6.7100000000000007E-2,6.7100000000000007E-2,6.7100000000000007E-2,6.7100000000000007E-2,6.7100000000000007E-2,{"$f":"F811","v":6.7100000000000007E-2}]
[40,"RETURN ON RATE BASE",null,null,null,{"$f":"ROUND(F428*F426,0)","v":0},{"$f":"F429-SUM(H429:Q429)","v":0},{"$f":"ROUND(H426*H428,0)","v":0},{"$f":"ROUND(I426*I428,0)","v":0},{"$f":"ROUND(J426*J428,0)","v":0},0,0,0,0,0,0,{"$f":"ROUND(Q426*Q428,0)","v":0},{"$f":"SUM(G429:Q429)","v":0},{"$f":"F429-R429","v":0}]
[41]
[42,{"$f":"'FR-16(7)(v)-1 Functional'!B431","v":"ELECTRIC RATE BASE"},null,{"$f":"'FR-16(7)(v)-1 Functional'!D431","v":"RB99"},null,{"$f":"'FR-16(7)(v)-6 TRANS Classified'!H431","v":0},{"$f":"F431-SUM(H431:Q431)","v":0},{"$f":"ROUND(F431*VLOOKUP(D431,ALLOCTABLE_Trans_Energy,$H$10,FALSE),0)","v":0},{"$f":"ROUND(F431*VLOOKUP(D431,ALLOCTABLE_Trans_Energy,$I$10,FALSE),0)","v":0},{"$f":"ROUND(F431*VLOOKUP(D431,ALLOCTABLE_Trans_Energy,$J$10,FALSE),0)","v":0},{"$f":"ROUND(F431*VLOOKUP(D431,ALLOCTABLE_Trans_Energy,$K$10,FALSE),0)","v":0},{"$f":"ROUND(F431*VLOOKUP(D431,ALLOCTABLE_Trans_Energy,$L$10,FALSE),0)","v":0},{"$f":"ROUND(F431*VLOOKUP(D431,ALLOCTABLE_Trans_Energy,$M$10,FALSE),0)","v":0},{"$f":"ROUND(F431*VLOOKUP(D431,ALLOCTABLE_Trans_Energy,$N$10,FALSE),0)","v":0},{"$f":"ROUND(F431*VLOOKUP(D431,ALLOCTABLE_Trans_Energy,$O$10,FALSE),0)","v":0},{"$f":"ROUND(F431*VLOOKUP(D431,ALLOCTABLE_Trans_Energy,$P$10,FALSE),0)","v":0},{"$f":"ROUND(F431*VLOOKUP(D431,ALLOCTABLE_Trans_Energy,$Q$10,FALSE),0)","v":0},{"$f":"SUM(G431:Q431)","v":0},{"$f":"F431-R431","v":0}]
[43,{"$f":"'FR-16(7)(v)-1 Functional'!B432","v":"TOTAL RATE OF RETURN ALLOWABLE"},null,null,null,{"$f":"RofR","v":6.7110000000000003E-2},6.7110000000000003E-2,6.7110000000000003E-2,6.7110000000000003E-2,6.7110000000000003E-2,6.7110000000000003E-2,6.7110000000000003E-2,6.7110000000000003E-2,6.7110000000000003E-2,6.7110000000000003E-2,6.7110000000000003E-2,6.7110000000000003E-2,6.7110000000000003E-2]
[44,{"$f":"'FR-16(7)(v)-1 Functional'!B433","v":"RETURN ON RATE BASE"},null,null,null,{"$f":"ROUND(F431*F432,0)","v":0},{"$f":"F433-SUM(H433:Q433)","v":0},{"$f":"ROUND(H431*H432,0)","v":0},0,0,0,0,0,0,0,0,0,0,{"$f":"F429-R429","v":0}]
[]
[{"$f":"co_name","v":"DUKE ENERGY KENTUCKY, INC."},null,null,null,null,null,null,null,null,null,null,null,null,null,null,null,null,{"$f":"R1","v":"FR-16(7)(v)-8"}]
[{"$f":"$A$2","v":"TRANSMISSION ENERGY ALLOCATED - ELECTRIC COST OF SERVICE"},null,null,null,null,null,null,null,null,null,null,null,null,null,null,null,null,{"$f":"R2","v":"WITNESS RESPONSIBLE:"}]
[{"$f":"case_name","v":"CASE NO: 2019-00271"},null,null,null,null,null,null,null,null,null,null,null,null,null,null,null,null,{"$f":"Witness","v":"JAMES E. ZIOLKOWSKI"}]
[{"$f":"data_filing","v":"DATA: 12 MONTHS ACTUAL  & 0 MONTHS ESTIMATED"},null,null,null,null,null,null,null,null,null,null,null,null,null,null,null,null,{"$f":"\"PAGE \"&Pages-10&\" OF \"&Pages","v":"PAGE 8 OF 18"}]
[{"$f":"type","v":"TYPE OF FILING: \"X\" ORIGINAL   UPDATED    REVISED  "}]
[]
[null,null,null,null,null,{"$f":"F$7","v":"TOTAL"},null,{"$f":"H$7","v":"DS"},{"$f":"I$7","v":"GSFL"},{"$f":"J$7","v":"EH"},{"$f":"K$7","v":"SP"},"DT SEC","DT PRI","DP","TT",null,"OTHER"]
["LINE",null,null,null,null,{"$f":"F$8","v":"TRANSMISSION"},{"$f":"G$8","v":"RS"},{"$f":"H$8","v":"SECONDARY"},{"$f":"I$8","v":"SECONDARY"},{"$f":"J$8","v":"SECONDARY"},{"$f":"K$8","v":"SECONDARY"},"SECONDARY","PRIMARY","PRIMARY","TRANSMISSION","LT","WATER",{"$f":"R8","v":"TOTAL"},"ALL"]
["NO.","O&M EXPENSES",null,"ALLO",null,{"$f":"F$9","v":"ENERGY"},{"$f":"G$9","v":"RESIDENTIAL"},{"$f":"H$9","v":"DISTRIBUTION"},{"$f":"I$9","v":"DISTRIBUTION"},{"$f":"J$9","v":"DISTRIBUTION"},{"$f":"K$9","v":"DISTRIBUTION"},"DISTRIBUTION","DISTRIBUTION","DISTRIBUTION","TIME OF DAY","LIGHTING","PUMPING",{"$f":"R9","v":"AT ISSUE"},"OTHER"]
[null,null,"Schedule 6",null,null,null,{"$f":"G$10","v":3},{"$f":"H$10","v":4},{"$f":"I$10","v":5},{"$f":"J$10","v":6},{"$f":"K$10","v":7},8,9,10,11,12,13,null," "]
[1,"PRODUCTION O&M"]
[2,{"$f":"'FR-16(7)(v)-1 Functional'!B446","v":"ENERGY RELATED PRODUCTION O&M"}]
[3,null,{"$f":"'FR-16(7)(v)-1 Functional'!C447","v":"FUEL"},{"$f":"'FR-16(7)(v)-1 Functional'!D447","v":"K302"},null,{"$f":"'FR-16(7)(v)-6 TRANS Classified'!H447","v":0},{"$f":"F447-SUM(H447:Q447)","v":0},{"$f":"ROUND(F447*VLOOKUP(D447,ALLOCTABLE_Trans_Energy,$H$10,FALSE),0)","v":0},{"$f":"ROUND(F447*VLOOKUP(D447,ALLOCTABLE_Trans_Energy,$I$10,FALSE),0)","v":0},{"$f":"ROUND(F447*VLOOKUP(D447,ALLOCTABLE_Trans_Energy,$J$10,FALSE),0)","v":0},{"$f":"ROUND(F447*VLOOKUP(D447,ALLOCTABLE_Trans_Energy,$K$10,FALSE),0)","v":0},{"$f":"ROUND(F447*VLOOKUP(D447,ALLOCTABLE_Trans_Energy,$L$10,FALSE),0)","v":0},{"$f":"ROUND(F447*VLOOKUP(D447,ALLOCTABLE_Trans_Energy,$M$10,FALSE),0)","v":0},{"$f":"ROUND(F447*VLOOKUP(D447,ALLOCTABLE_Trans_Energy,$N$10,FALSE),0)","v":0},{"$f":"ROUND(F447*VLOOKUP(D447,ALLOCTABLE_Trans_Energy,$O$10,FALSE),0)","v":0},{"$f":"ROUND(F447*VLOOKUP(D447,ALLOCTABLE_Trans_Energy,$P$10,FALSE),0)","v":0},{"$f":"ROUND(F447*VLOOKUP(D447,ALLOCTABLE_Trans_Energy,$Q$10,FALSE),0)","v":0},{"$f":"SUM(G447:Q447)","v":0},{"$f":"F447-R447","v":0}]
[4,null,{"$f":"'FR-16(7)(v)-1 Functional'!C448","v":"FUEL AND PURCHASED POWER ADJUSTMENT"},{"$f":"'FR-16(7)(v)-1 Functional'!D448","v":"K302"},null,{"$f":"'FR-16(7)(v)-6 TRANS Classified'!H448","v":0},0,0,0,0,0,0,0,0,0,0,0,0,0]
[5,null,{"$f":"'FR-16(7)(v)-1 Functional'!C449","v":"EMISSION ALLOWANCES"},{"$f":"'FR-16(7)(v)-1 Functional'!D449","v":"K301"},null,{"$f":"'FR-16(7)(v)-6 TRANS Classified'!H449","v":0},0,0,0,0,0,0,0,0,0,0,0,0,0]
[6,null,{"$f":"'FR-16(7)(v)-1 Functional'!C450","v":"ELIMINATE EMISSION ALLOW & OTHER VAR COST"},{"$f":"'FR-16(7)(v)-1 Functional'!D450","v":"K301"},null,{"$f":"'FR-16(7)(v)-6 TRANS Classified'!H450","v":0},0,0,0,0,0,0,0,0,0,0,0,0,0]
[7,null,{"$f":"'FR-16(7)(v)-1 Functional'!C451","v":"OTHER PRODUCTION EXPENSE - MAINTENANCE"},{"$f":"'FR-16(7)(v)-1 Functional'!D451","v":"K301"},null,{"$f":"'FR-16(7)(v)-6 TRANS Classified'!H451","v":0},0,0,0,0,0,0,0,0,0,0,0,0,0]
[8,null,{"$f":"'FR-16(7)(v)-1 Functional'!C452","v":"MISO TRANSMISSION CHARGES - ACCT 555"},{"$f":"'FR-16(7)(v)-1 Functional'!D452","v":"K301"},null,{"$f":"'FR-16(7)(v)-6 TRANS Classified'!H452","v":0},0,0,0,0,0,0,0,0,0,0,0,0,0]
[9,null,"  TOTAL ENERGY RELATED",null,null,{"$f":"SUM(F447:F452)","v":0},{"$f":"SUM(G447:G452)","v":0},{"$f":"SUM(H447:H452)","v":0},{"$f":"SUM(I447:I452)","v":0},{"$f":"SUM(J447:J452)","v":0},0,0,0,0,0,0,{"$f":"SUM(Q447:Q452)","v":0},{"$f":"SUM(R447:R452)","v":0},{"$f":"SUM(S447:S452)","v":0}]
[10]
[11,"DEMAND RELATED & OTHER PROD O&M"]
[12,null,{"$f":"'FR-16(7)(v)-1 Functional'!C456","v":"OTHER PRODUCTION EXPENSES - OPERATIONS"},{"$f":"'FR-16(7)(v)-1 Functional'!D456","v":"K201"},null,{"$f":"'FR-16(7)(v)-6 TRANS Classified'!H456","v":0},{"$f":"F456-SUM(H456:Q456)","v":0},{"$f":"ROUND(F456*VLOOKUP(D456,ALLOCTABLE_Trans_Energy,$H$10,FALSE),0)","v":0},{"$f":"ROUND(F456*VLOOKUP(D456,ALLOCTABLE_Trans_Energy,$I$10,FALSE),0)","v":0},{"$f":"ROUND(F456*VLOOKUP(D456,ALLOCTABLE_Trans_Energy,$J$10,FALSE),0)","v":0},{"$f":"ROUND(F456*VLOOKUP(D456,ALLOCTABLE_Trans_Energy,$K$10,FALSE),0)","v":0},{"$f":"ROUND(F456*VLOOKUP(D456,ALLOCTABLE_Trans_Energy,$L$10,FALSE),0)","v":0},{"$f":"ROUND(F456*VLOOKUP(D456,ALLOCTABLE_Trans_Energy,$M$10,FALSE),0)","v":0},{"$f":"ROUND(F456*VLOOKUP(D456,ALLOCTABLE_Trans_Energy,$N$10,FALSE),0)","v":0},{"$f":"ROUND(F456*VLOOKUP(D456,ALLOCTABLE_Trans_Energy,$O$10,FALSE),0)","v":0},{"$f":"ROUND(F456*VLOOKUP(D456,ALLOCTABLE_Trans_Energy,$P$10,FALSE),0)","v":0},{"$f":"ROUND(F456*VLOOKUP(D456,ALLOCTABLE_Trans_Energy,$Q$10,FALSE),0)","v":0},{"$f":"SUM(G456:Q456)","v":0},{"$f":"F456-R456","v":0}]
[13,null,"  TOTAL DEMAND REL & OTH PROD O&M ",null,null,{"$f":"SUM(F455:F456)","v":0},{"$f":"SUM(G455:G456)","v":0},{"$f":"SUM(H455:H456)","v":0},{"$f":"SUM(I455:I456)","v":0},{"$f":"SUM(J455:J456)","v":0},0,0,0,0,0,0,{"$f":"SUM(Q455:Q456)","v":0},{"$f":"SUM(R455:R456)","v":0},{"$f":"SUM(S455:S456)","v":0}]
[14]
[15,"TOTAL PRODUCTION O&M",null,null," ",{"$f":"F457+F453","v":0},{"$f":"G457+G453","v":0},0,0,{"$f":"J457+J453","v":0},0,0,0,0,0,0,0,0,0]
[16]
[17,"TRANSMISSION O & M"]
[18,null,{"$f":"'FR-16(7)(v)-1 Functional'!C462","v":"TRANSFORMER LEASE PAYMENTS"},{"$f":"'FR-16(7)(v)-1 Functional'!D462","v":"K202"},null,{"$f":"'FR-16(7)(v)-6 TRANS Classified'!H462","v":0},{"$f":"F462-SUM(H462:Q462)","v":0},{"$f":"ROUND(F462*VLOOKUP(D462,ALLOCTABLE_Trans_Energy,$H$10,FALSE),0)","v":0},{"$f":"ROUND(F462*VLOOKUP(D462,ALLOCTABLE_Trans_Energy,$I$10,FALSE),0)","v":0},{"$f":"ROUND(F462*VLOOKUP(D462,ALLOCTABLE_Trans_Energy,$J$10,FALSE),0)","v":0},{"$f":"ROUND(F462*VLOOKUP(D462,ALLOCTABLE_Trans_Energy,$K$10,FALSE),0)","v":0},{"$f":"ROUND(F462*VLOOKUP(D462,ALLOCTABLE_Trans_Energy,$L$10,FALSE),0)","v":0},{"$f":"ROUND(F462*VLOOKUP(D462,ALLOCTABLE_Trans_Energy,$M$10,FALSE),0)","v":0},{"$f":"ROUND(F462*VLOOKUP(D462,ALLOCTABLE_Trans_Energy,$N$10,FALSE),0)","v":0},{"$f":"ROUND(F462*VLOOKUP(D462,ALLOCTABLE_Trans_Energy,$O$10,FALSE),0)","v":0},{"$f":"ROUND(F462*VLOOKUP(D462,ALLOCTABLE_Trans_Energy,$P$10,FALSE),0)","v":0},{"$f":"ROUND(F462*VLOOKUP(D462,ALLOCTABLE_Trans_Energy,$Q$10,FALSE),0)","v":0},{"$f":"SUM(G462:Q462)","v":0},{"$f":"F462-R462","v":0}]
[19,null,{"$f":"'FR-16(7)(v)-1 Functional'!C463","v":"OTHER TRANSMISSION"},{"$f":"'FR-16(7)(v)-1 Functional'!D463","v":"K202"},null,{"$f":"'FR-16(7)(v)-6 TRANS Classified'!H463","v":0},{"$f":"F463-SUM(H463:Q463)","v":0},{"$f":"ROUND(F463*VLOOKUP(D463,ALLOCTABLE_Trans_Energy,$H$10,FALSE),0)","v":0},{"$f":"ROUND(F463*VLOOKUP(D463,ALLOCTABLE_Trans_Energy,$I$10,FALSE),0)","v":0},{"$f":"ROUND(F463*VLOOKUP(D463,ALLOCTABLE_Trans_Energy,$J$10,FALSE),0)","v":0},{"$f":"ROUND(F463*VLOOKUP(D463,ALLOCTABLE_Trans_Energy,$K$10,FALSE),0)","v":0},{"$f":"ROUND(F463*VLOOKUP(D463,ALLOCTABLE_Trans_Energy,$L$10,FALSE),0)","v":0},{"$f":"ROUND(F463*VLOOKUP(D463,ALLOCTABLE_Trans_Energy,$M$10,FALSE),0)","v":0},{"$f":"ROUND(F463*VLOOKUP(D463,ALLOCTABLE_Trans_Energy,$N$10,FALSE),0)","v":0},{"$f":"ROUND(F463*VLOOKUP(D463,ALLOCTABLE_Trans_Energy,$O$10,FALSE),0)","v":0},{"$f":"ROUND(F463*VLOOKUP(D463,ALLOCTABLE_Trans_Energy,$P$10,FALSE),0)","v":0},{"$f":"ROUND(F463*VLOOKUP(D463,ALLOCTABLE_Trans_Energy,$Q$10,FALSE),0)","v":0},{"$f":"SUM(G463:Q463)","v":0},{"$f":"F463-R463","v":0}]
[20,null,{"$f":"'FR-16(7)(v)-1 Functional'!C464","v":"MISCELLANEOUS ADJUSTMENTS"},{"$f":"'FR-16(7)(v)-1 Functional'!D464","v":"K202"},null,{"$f":"'FR-16(7)(v)-6 TRANS Classified'!H464","v":0},{"$f":"F464-SUM(H464:Q464)","v":0},{"$f":"ROUND(F464*VLOOKUP(D464,ALLOCTABLE_Trans_Energy,$H$10,FALSE),0)","v":0},{"$f":"ROUND(F464*VLOOKUP(D464,ALLOCTABLE_Trans_Energy,$I$10,FALSE),0)","v":0},{"$f":"ROUND(F464*VLOOKUP(D464,ALLOCTABLE_Trans_Energy,$J$10,FALSE),0)","v":0},{"$f":"ROUND(F464*VLOOKUP(D464,ALLOCTABLE_Trans_Energy,$K$10,FALSE),0)","v":0},{"$f":"ROUND(F464*VLOOKUP(D464,ALLOCTABLE_Trans_Energy,$L$10,FALSE),0)","v":0},{"$f":"ROUND(F464*VLOOKUP(D464,ALLOCTABLE_Trans_Energy,$M$10,FALSE),0)","v":0},{"$f":"ROUND(F464*VLOOKUP(D464,ALLOCTABLE_Trans_Energy,$N$10,FALSE),0)","v":0},{"$f":"ROUND(F464*VLOOKUP(D464,ALLOCTABLE_Trans_Energy,$O$10,FALSE),0)","v":0},{"$f":"ROUND(F464*VLOOKUP(D464,ALLOCTABLE_Trans_Energy,$P$10,FALSE),0)","v":0},{"$f":"ROUND(F464*VLOOKUP(D464,ALLOCTABLE_Trans_Energy,$Q$10,FALSE),0)","v":0},{"$f":"SUM(G464:Q464)","v":0},{"$f":"F464-R464","v":0}]
[21,null,{"$f":"'FR-16(7)(v)-1 Functional'!C465","v":"NETWORK SERVICE RATES ADJUSTMENT"},{"$f":"'FR-16(7)(v)-1 Functional'!D465","v":"K202"},null,{"$f":"'FR-16(7)(v)-6 TRANS Classified'!H465","v":0},{"$f":"F465-SUM(H465:Q465)","v":0},{"$f":"ROUND(F465*VLOOKUP(D465,ALLOCTABLE_Trans_Energy,$H$10,FALSE),0)","v":0},{"$f":"ROUND(F465*VLOOKUP(D465,ALLOCTABLE_Trans_Energy,$I$10,FALSE),0)","v":0},{"$f":"ROUND(F465*VLOOKUP(D465,ALLOCTABLE_Trans_Energy,$J$10,FALSE),0)","v":0},{"$f":"ROUND(F465*VLOOKUP(D465,ALLOCTABLE_Trans_Energy,$K$10,FALSE),0)","v":0},{"$f":"ROUND(F465*VLOOKUP(D465,ALLOCTABLE_Trans_Energy,$L$10,FALSE),0)","v":0},{"$f":"ROUND(F465*VLOOKUP(D465,ALLOCTABLE_Trans_Energy,$M$10,FALSE),0)","v":0},{"$f":"ROUND(F465*VLOOKUP(D465,ALLOCTABLE_Trans_Energy,$N$10,FALSE),0)","v":0},{"$f":"ROUND(F465*VLOOKUP(D465,ALLOCTABLE_Trans_Energy,$O$10,FALSE),0)","v":0},{"$f":"ROUND(F465*VLOOKUP(D465,ALLOCTABLE_Trans_Energy,$P$10,FALSE),0)","v":0},{"$f":"ROUND(F465*VLOOKUP(D465,ALLOCTABLE_Trans_Energy,$Q$10,FALSE),0)","v":0},{"$f":"SUM(G465:Q465)","v":0},{"$f":"F465-R465","v":0}]
[22,null,{"$f":"'FR-16(7)(v)-1 Functional'!C466","v":"  TOTAL TRANSMISSION O & M"},null,null,{"$f":"SUM(F462:F465)","v":0},{"$f":"SUM(G462:G465)","v":0},0,0,{"$f":"SUM(J462:J465)","v":0},0,0,0,0,0,0,0,0,0]
[23]
[24,"REGIONAL MARKET O&M"]
[25,null,{"$f":"'FR-16(7)(v)-1 Functional'!C469","v":"MARKET FACILITATION - MONITORING & COMPLIANCE"},{"$f":"'FR-16(7)(v)-1 Functional'!D469","v":"K202"},null,{"$f":"'FR-16(7)(v)-6 TRANS Classified'!H469","v":0},{"$f":"F469-SUM(H469:Q469)","v":0},{"$f":"ROUND(F469*VLOOKUP(D469,ALLOCTABLE_Trans_Energy,$H$10,FALSE),0)","v":0},{"$f":"ROUND(F469*VLOOKUP($D$469,ALLOCTABLE_Trans_Energy,$I$10,FALSE),0)","v":0},{"$f":"ROUND(F469*VLOOKUP($D$469,ALLOCTABLE_Trans_Energy,$J$10,FALSE),0)","v":0},{"$f":"ROUND(F469*VLOOKUP($D$469,ALLOCTABLE_Trans_Energy,$K$10,FALSE),0)","v":0},{"$f":"ROUND(F469*VLOOKUP($D$469,ALLOCTABLE_Trans_Energy,$L$10,FALSE),0)","v":0},{"$f":"ROUND(F469*VLOOKUP($D$469,ALLOCTABLE_Trans_Energy,$M$10,FALSE),0)","v":0},{"$f":"ROUND(F469*VLOOKUP($D$469,ALLOCTABLE_Trans_Energy,$N$10,FALSE),0)","v":0},{"$f":"ROUND(F469*VLOOKUP($D$469,ALLOCTABLE_Trans_Energy,$O$10,FALSE),0)","v":0},{"$f":"ROUND(F469*VLOOKUP($D$469,ALLOCTABLE_Trans_Energy,$P$10,FALSE),0)","v":0},{"$f":"ROUND(F469*VLOOKUP(D469,ALLOCTABLE_Trans_Energy,$Q$10,FALSE),0)","v":0},{"$f":"SUM(G469:Q469)","v":0},{"$f":"F469-R469","v":0}]
[26,null,"TOTAL REGIONAL MARKET O&M",null,null,{"$f":"SUM(F468:F469)","v":0},{"$f":"SUM(G468:G469)","v":0},{"$f":"SUM(H468:H469)","v":0},{"$f":"SUM(I468:I469)","v":0},{"$f":"SUM(J468:J469)","v":0},0,0,0,0,0,0,{"$f":"SUM(Q468:Q469)","v":0},{"$f":"SUM(R468:R469)","v":0},{"$f":"SUM(S468:S469)","v":0}]
[27]
[28,"DISTRIBUTION O & M"]
[29,null,{"$f":"'FR-16(7)(v)-1 Functional'!C473","v":"SUBSTATIONS"},{"$f":"'FR-16(7)(v)-1 Functional'!D473","v":"K201"},null,{"$f":"'FR-16(7)(v)-6 TRANS Classified'!H473","v":0},{"$f":"F473-SUM(H473:Q473)","v":0},{"$f":"ROUND(F473*VLOOKUP(D473,ALLOCTABLE_Trans_Energy,$H$10,FALSE),0)","v":0},{"$f":"ROUND(F473*VLOOKUP(D473,ALLOCTABLE_Trans_Energy,$I$10,FALSE),0)","v":0},{"$f":"ROUND(F473*VLOOKUP(D473,ALLOCTABLE_Trans_Energy,$J$10,FALSE),0)","v":0},{"$f":"ROUND(F473*VLOOKUP(D473,ALLOCTABLE_Trans_Energy,$K$10,FALSE),0)","v":0},{"$f":"ROUND(F473*VLOOKUP(D473,ALLOCTABLE_Trans_Energy,$L$10,FALSE),0)","v":0},{"$f":"ROUND(F473*VLOOKUP(D473,ALLOCTABLE_Trans_Energy,$M$10,FALSE),0)","v":0},{"$f":"ROUND(F473*VLOOKUP(D473,ALLOCTABLE_Trans_Energy,$N$10,FALSE),0)","v":0},{"$f":"ROUND(F473*VLOOKUP(D473,ALLOCTABLE_Trans_Energy,$O$10,FALSE),0)","v":0},{"$f":"ROUND(F473*VLOOKUP(D473,ALLOCTABLE_Trans_Energy,$P$10,FALSE),0)","v":0},{"$f":"ROUND(F473*VLOOKUP(D473,ALLOCTABLE_Trans_Energy,$Q$10,FALSE),0)","v":0},{"$f":"SUM(G473:Q473)","v":0},{"$f":"F473-R473","v":0}]
[30,null,{"$f":"'FR-16(7)(v)-1 Functional'!C474","v":"POLES, TOWERS & FIXTURES"},{"$f":"'FR-16(7)(v)-1 Functional'!D474","v":"PL49"},null,{"$f":"'FR-16(7)(v)-6 TRANS Classified'!H474","v":0},0,0,0,0,0,0,0,0,0,0,0,0,0]
[31,null,{"$f":"'FR-16(7)(v)-1 Functional'!C475","v":"OVERHEAD LINES - PRIMARY / DEMAND"},{"$f":"'FR-16(7)(v)-1 Functional'!D475","v":"K205"},null,{"$f":"'FR-16(7)(v)-6 TRANS Classified'!H475","v":0},0,0,0,0,0,0,0,0,0,0,0,0,0]
[32,null,{"$f":"'FR-16(7)(v)-1 Functional'!C476","v":"OVERHEAD LINES - PRIMARY / CUSTOMER"},{"$f":"'FR-16(7)(v)-1 Functional'!D476","v":"K405"},null,{"$f":"'FR-16(7)(v)-6 TRANS Classified'!H476","v":0},0,0,0,0,0,0,0,0,0,0,0,0,0]
[33,null,{"$f":"'FR-16(7)(v)-1 Functional'!C477","v":"OVERHEAD LINES - SECONDARY / DEMAND"},{"$f":"'FR-16(7)(v)-1 Functional'!D477","v":"K206"},null,{"$f":"'FR-16(7)(v)-6 TRANS Classified'!H477","v":0},0,0,0,0,0,0,0,0,0,0,0,0,0]
[34,null,{"$f":"'FR-16(7)(v)-1 Functional'!C478","v":"OVERHEAD LINES - SECONDARY / CUSTOMER"},{"$f":"'FR-16(7)(v)-1 Functional'!D478","v":"K405"},null,{"$f":"'FR-16(7)(v)-6 TRANS Classified'!H478","v":0},0,0,0,0,0,0,0,0,0,0,0,0,0]
[35,null,{"$f":"'FR-16(7)(v)-1 Functional'!C479","v":"UNDERGROUND LINES - PRIMARY / DEMAND"},{"$f":"'FR-16(7)(v)-1 Functional'!D479","v":"K205"},null,{"$f":"'FR-16(7)(v)-6 TRANS Classified'!H479","v":0},0,0,0,0,0,0,0,0,0,0,0,0,0]
[36,null,{"$f":"'FR-16(7)(v)-1 Functional'!C480","v":"UNDERGROUND LINES - PRIMARY / CUSTOMER"},{"$f":"'FR-16(7)(v)-1 Functional'!D480","v":"K405"},null,{"$f":"'FR-16(7)(v)-6 TRANS Classified'!H480","v":0},0,0,0,0,0,0,0,0,0,0,0,0,0]
[37,null,{"$f":"'FR-16(7)(v)-1 Functional'!C481","v":"UNDERGROUND LINES - SECONDARY / DEMAND"},{"$f":"'FR-16(7)(v)-1 Functional'!D481","v":"K206"},null,{"$f":"'FR-16(7)(v)-6 TRANS Classified'!H481","v":0},0,0,0,0,0,0,0,0,0,0,0,0,0]
[38,null,{"$f":"'FR-16(7)(v)-1 Functional'!C482","v":"UNDERGROUND LINES - SECONDARY / CUSTOMER"},{"$f":"'FR-16(7)(v)-1 Functional'!D482","v":"K405"},null,{"$f":"'FR-16(7)(v)-6 TRANS Classified'!H482","v":0},0,0,0,0,0,0,0,0,0,0,0,0,0]
[39,null,{"$f":"'FR-16(7)(v)-1 Functional'!C483","v":"TRANSFORMERS DEMAND RELATED"},{"$f":"'FR-16(7)(v)-1 Functional'!D483","v":"K203"},null,{"$f":"'FR-16(7)(v)-6 TRANS Classified'!H483","v":0},0,0,0,0,0,0,0,0,0,0,0,0,0]
[40,null,{"$f":"'FR-16(7)(v)-1 Functional'!C484","v":"TRANSFORMERS CUSTOMER RELATED"},{"$f":"'FR-16(7)(v)-1 Functional'!D484","v":"K401"},null,{"$f":"'FR-16(7)(v)-6 TRANS Classified'!H484","v":0},0,0,0,0,0,0,0,0,0,0,0,0,0]
[41,null,{"$f":"'FR-16(7)(v)-1 Functional'!C485","v":"OTHER MAINTENANCE"},{"$f":"'FR-16(7)(v)-1 Functional'!D485","v":"K203"},null,{"$f":"'FR-16(7)(v)-6 TRANS Classified'!H485","v":0},0,0,0,0,0,0,0,0,0,0,0,0,0]
[42,null,{"$f":"'FR-16(7)(v)-1 Functional'!C486","v":"LOAD DISPATCH"},{"$f":"'FR-16(7)(v)-1 Functional'!D486","v":"K215"},null,{"$f":"'FR-16(7)(v)-6 TRANS Classified'!H486","v":0},0,0,0,0,0,0,0,0,0,0,0,0,0]
[43,null,{"$f":"'FR-16(7)(v)-1 Functional'!C487","v":"METERS"},{"$f":"'FR-16(7)(v)-1 Functional'!D487","v":"K407"},null,{"$f":"'FR-16(7)(v)-6 TRANS Classified'!H487","v":0},0,0,0,0,0,0,0,0,0,0,0,0,0]
[44,null,{"$f":"'FR-16(7)(v)-1 Functional'!C488","v":"STREET LIGHTING AND SIGNAL SYSTEMS"},{"$f":"'FR-16(7)(v)-1 Functional'!D488","v":"K401"},null,{"$f":"'FR-16(7)(v)-6 TRANS Classified'!H488","v":0},0,0,0,0,0,0,0,0,0,0,0,0,0]
[45,null,{"$f":"'FR-16(7)(v)-1 Functional'!C489","v":"OTHER OPERATIONS"},{"$f":"'FR-16(7)(v)-1 Functional'!D489","v":"K203"},null,{"$f":"'FR-16(7)(v)-6 TRANS Classified'!H489","v":0},0,0,0,0,0,0,0,0,0,0,0,0,0]
[46,null,{"$f":"'FR-16(7)(v)-1 Functional'!C490","v":"MISCELLANEOUS EXPENSES ADJUSTMENT"},{"$f":"'FR-16(7)(v)-1 Functional'!D490","v":"K203"},null,{"$f":"'FR-16(7)(v)-6 TRANS Classified'!H490","v":0},0,0,0,0,0,0,0,0,0,0,0,0,0]
[47,null,{"$f":"'FR-16(7)(v)-1 Functional'!C491","v":"AFFILIATED COMPANY RENTS ADJUSTMENT"},{"$f":"'FR-16(7)(v)-1 Functional'!D491","v":"D249"},null,{"$f":"'FR-16(7)(v)-6 TRANS Classified'!H491","v":0},0,0,0,0,0,0,0,0,0,0,0,0,0]
[48,null,{"$f":"'FR-16(7)(v)-1 Functional'!C492","v":"  TOTAL DISTRIBUTION O & M"},null," ",{"$f":"SUM(F472:F491)","v":0},{"$f":"SUM(G472:G491)","v":0},{"$f":"SUM(H472:H491)","v":0},{"$f":"SUM(I472:I491)","v":0},{"$f":"SUM(J472:J491)","v":0},0,0,0,0,0,0,{"$f":"SUM(Q472:Q491)","v":0},{"$f":"SUM(R472:R491)","v":0},{"$f":"SUM(S472:S491)","v":0}]
[49,null," "]
[50,"CUSTOMER ACCOUNTING",null,null,null," "]
[51,null,{"$f":"'FR-16(7)(v)-1 Functional'!C495","v":"CUSTOMER ACCOUNTING EXPENSE"},{"$f":"'FR-16(7)(v)-1 Functional'!D495","v":"K409"},null,{"$f":"'FR-16(7)(v)-6 TRANS Classified'!H495","v":0},{"$f":"F495-SUM(H495:Q495)","v":0},{"$f":"ROUND(F495*VLOOKUP(D495,ALLOCTABLE_Trans_Energy,$H$10,FALSE),0)","v":0},{"$f":"ROUND(F495*VLOOKUP(D495,ALLOCTABLE_Trans_Energy,$I$10,FALSE),0)","v":0},{"$f":"ROUND(F495*VLOOKUP(D495,ALLOCTABLE_Trans_Energy,$J$10,FALSE),0)","v":0},{"$f":"ROUND(F495*VLOOKUP(D495,ALLOCTABLE_Trans_Energy,$K$10,FALSE),0)","v":0},{"$f":"ROUND(F495*VLOOKUP(D495,ALLOCTABLE_Trans_Energy,$L$10,FALSE),0)","v":0},{"$f":"ROUND(F495*VLOOKUP(D495,ALLOCTABLE_Trans_Energy,$M$10,FALSE),0)","v":0},{"$f":"ROUND(F495*VLOOKUP(D495,ALLOCTABLE_Trans_Energy,$N$10,FALSE),0)","v":0},{"$f":"ROUND(F495*VLOOKUP(D495,ALLOCTABLE_Trans_Energy,$O$10,FALSE),0)","v":0},{"$f":"ROUND(F495*VLOOKUP(D495,ALLOCTABLE_Trans_Energy,$P$10,FALSE),0)","v":0},{"$f":"ROUND(F495*VLOOKUP(D495,ALLOCTABLE_Trans_Energy,$Q$10,FALSE),0)","v":0},{"$f":"SUM(G495:Q495)","v":0},{"$f":"F495-R495","v":0}]
[52,null,{"$f":"'FR-16(7)(v)-1 Functional'!C496","v":"UNCOLLECTIBLE EXP"},{"$f":"'FR-16(7)(v)-1 Functional'!D496","v":"K411"},null,{"$f":"'FR-16(7)(v)-6 TRANS Classified'!H496","v":0},0,0,0,0,0,0,0,0,0,0,0,0,0]
[53,null,{"$f":"'FR-16(7)(v)-1 Functional'!C497","v":"METER READING"},{"$f":"'FR-16(7)(v)-1 Functional'!D497","v":"K407"},null,{"$f":"'FR-16(7)(v)-6 TRANS Classified'!H497","v":0},0,0,0,0,0,0,0,0,0,0,0,0,0]
[54,null,{"$f":"'FR-16(7)(v)-1 Functional'!C498","v":"UNCOLLECTIBLE EXP ADJUSTMENT"},{"$f":"'FR-16(7)(v)-1 Functional'!D498","v":"K411"},null,{"$f":"'FR-16(7)(v)-6 TRANS Classified'!H498","v":0},0,0,0,0,0,0,0,0,0,0,0,0,0]
[55,null,{"$f":"'FR-16(7)(v)-1 Functional'!C499","v":"CREDIT CARD FEES"},{"$f":"'FR-16(7)(v)-1 Functional'!D499","v":"K407"},null,{"$f":"'FR-16(7)(v)-6 TRANS Classified'!H499","v":0},0,0,0,0,0,0,0,0,0,0,0,0,0]
[56,null,{"$f":"'FR-16(7)(v)-1 Functional'!C500","v":"ELIMINATE REV & EXP - DSM RIDER"},{"$f":"'FR-16(7)(v)-1 Functional'!D500","v":"K405"},null,{"$f":"'FR-16(7)(v)-6 TRANS Classified'!H500","v":0},0,0,0,0,0,0,0,0,0,0,0,0,0]
[57,null,{"$f":"'FR-16(7)(v)-1 Functional'!C501","v":"SALE OF A/R"},{"$f":"'FR-16(7)(v)-1 Functional'!D501","v":"K411"},null,{"$f":"'FR-16(7)(v)-6 TRANS Classified'!H501","v":0},0,0,0,0,0,0,0,0,0,0,0,0,0]
[58,null,{"$f":"'FR-16(7)(v)-1 Functional'!C502","v":"ELIMINATE MISC EXPENSE"},{"$f":"'FR-16(7)(v)-1 Functional'!D502","v":"K405"},null,{"$f":"'FR-16(7)(v)-6 TRANS Classified'!H502","v":0},0,0,0,0,0,0,0,0,0,0,0,0,0]
[59,null,{"$f":"'FR-16(7)(v)-1 Functional'!C503","v":"  TOTAL CUSTOMER ACCT EXPENSE"},null," ",{"$f":"SUM(F494:F502)","v":0},{"$f":"SUM(G494:G502)","v":0},{"$f":"SUM(H494:H502)","v":0},{"$f":"SUM(I494:I502)","v":0},{"$f":"SUM(J494:J502)","v":0},0,0,0,0,0,0,{"$f":"SUM(Q494:Q502)","v":0},{"$f":"SUM(R494:R502)","v":0},{"$f":"SUM(S494:S502)","v":0}]
[]
[{"$f":"co_name","v":"DUKE ENERGY KENTUCKY, INC."},null,null,null,null,null,null,null,null,null,null,null,null,null,null,null,null,{"$f":"R1","v":"FR-16(7)(v)-8"}]
[{"$f":"$A$2","v":"TRANSMISSION ENERGY ALLOCATED - ELECTRIC COST OF SERVICE"},null,null,null,null,null,null,null,null,null,null,null,null,null,null,null,null,{"$f":"R2","v":"WITNESS RESPONSIBLE:"}]
[{"$f":"case_name","v":"CASE NO: 2019-00271"},null,null,null,null,null,null,null,null,null,null,null,null,null,null,null,null,{"$f":"Witness","v":"JAMES E. ZIOLKOWSKI"}]
[{"$f":"data_filing","v":"DATA: 12 MONTHS ACTUAL  & 0 MONTHS ESTIMATED"},null,null,null,null,null,null,null,null,null,null,null,null,null,null,null,null,{"$f":"\"PAGE \"&Pages-9&\" OF \"&Pages","v":"PAGE 9 OF 18"}]
[{"$f":"type","v":"TYPE OF FILING: \"X\" ORIGINAL   UPDATED    REVISED  "}]
[]
[null,null,null,null,null,{"$f":"F$7","v":"TOTAL"},null,{"$f":"H$7","v":"DS"},{"$f":"I$7","v":"GSFL"},{"$f":"J$7","v":"EH"},{"$f":"K$7","v":"SP"},"DT SEC","DT PRI","DP","TT",null,"OTHER"]
["LINE",null,null,null,null,{"$f":"F$8","v":"TRANSMISSION"},{"$f":"G$8","v":"RS"},{"$f":"H$8","v":"SECONDARY"},{"$f":"I$8","v":"SECONDARY"},{"$f":"J$8","v":"SECONDARY"},{"$f":"K$8","v":"SECONDARY"},"SECONDARY","PRIMARY","PRIMARY","TRANSMISSION","LT","WATER",{"$f":"R8","v":"TOTAL"},"ALL"]
["NO.","O&M EXPENSES",null,"ALLO",null,{"$f":"F$9","v":"ENERGY"},{"$f":"G$9","v":"RESIDENTIAL"},{"$f":"H$9","v":"DISTRIBUTION"},{"$f":"I$9","v":"DISTRIBUTION"},{"$f":"J$9","v":"DISTRIBUTION"},{"$f":"K$9","v":"DISTRIBUTION"},"DISTRIBUTION","DISTRIBUTION","DISTRIBUTION","TIME OF DAY","LIGHTING","PUMPING",{"$f":"R9","v":"AT ISSUE"},"OTHER"]
[null,null,"Schedule 6.1",null,null,null,{"$f":"G$10","v":3},{"$f":"H$10","v":4},{"$f":"I$10","v":5},{"$f":"J$10","v":6},{"$f":"K$10","v":7},8,9,10,11,12,13,null," "]
[1,"CUSTOMER SERVICE & INFORMATION"]
[2,null,{"$f":"'FR-16(7)(v)-1 Functional'!C516","v":"TOTAL CUST SERVICE & INFO"},{"$f":"'FR-16(7)(v)-1 Functional'!D516","v":"K405"},null,{"$f":"'FR-16(7)(v)-6 TRANS Classified'!H516","v":0},{"$f":"F516-SUM(H516:Q516)","v":0},{"$f":"ROUND(F516*VLOOKUP(D516,ALLOCTABLE_Trans_Energy,$H$10,FALSE),0)","v":0},{"$f":"ROUND(F516*VLOOKUP(D516,ALLOCTABLE_Trans_Energy,$I$10,FALSE),0)","v":0},{"$f":"ROUND(F516*VLOOKUP(D516,ALLOCTABLE_Trans_Energy,$J$10,FALSE),0)","v":0},{"$f":"ROUND(F516*VLOOKUP(D516,ALLOCTABLE_Trans_Energy,$K$10,FALSE),0)","v":0},{"$f":"ROUND(F516*VLOOKUP(D516,ALLOCTABLE_Trans_Energy,$L$10,FALSE),0)","v":0},{"$f":"ROUND(F516*VLOOKUP(D516,ALLOCTABLE_Trans_Energy,$M$10,FALSE),0)","v":0},{"$f":"ROUND(F516*VLOOKUP(D516,ALLOCTABLE_Trans_Energy,$N$10,FALSE),0)","v":0},{"$f":"ROUND(F516*VLOOKUP(D516,ALLOCTABLE_Trans_Energy,$O$10,FALSE),0)","v":0},{"$f":"ROUND(F516*VLOOKUP(D516,ALLOCTABLE_Trans_Energy,$P$10,FALSE),0)","v":0},{"$f":"ROUND(F516*VLOOKUP(D516,ALLOCTABLE_Trans_Energy,$Q$10,FALSE),0)","v":0},{"$f":"SUM(G516:Q516)","v":0},{"$f":"F516-R516","v":0}]
[3,null,{"$f":"'FR-16(7)(v)-1 Functional'!C517","v":"INFORMATIONAL & INSTRUCTIONAL ADV"},{"$f":"'FR-16(7)(v)-1 Functional'!D517","v":"K405"},null,{"$f":"'FR-16(7)(v)-6 TRANS Classified'!H517","v":0},{"$f":"F517-SUM(H517:Q517)","v":0},{"$f":"ROUND(F517*VLOOKUP(D517,ALLOCTABLE_Trans_Energy,$H$10,FALSE),0)","v":0},{"$f":"ROUND(F517*VLOOKUP(D517,ALLOCTABLE_Trans_Energy,$I$10,FALSE),0)","v":0},{"$f":"ROUND(F517*VLOOKUP(D517,ALLOCTABLE_Trans_Energy,$J$10,FALSE),0)","v":0},{"$f":"ROUND(F517*VLOOKUP(D517,ALLOCTABLE_Trans_Energy,$K$10,FALSE),0)","v":0},{"$f":"ROUND(F517*VLOOKUP(D517,ALLOCTABLE_Trans_Energy,$L$10,FALSE),0)","v":0},{"$f":"ROUND(F517*VLOOKUP(D517,ALLOCTABLE_Trans_Energy,$M$10,FALSE),0)","v":0},{"$f":"ROUND(F517*VLOOKUP(D517,ALLOCTABLE_Trans_Energy,$N$10,FALSE),0)","v":0},{"$f":"ROUND(F517*VLOOKUP(D517,ALLOCTABLE_Trans_Energy,$O$10,FALSE),0)","v":0},{"$f":"ROUND(F517*VLOOKUP(D517,ALLOCTABLE_Trans_Energy,$P$10,FALSE),0)","v":0},{"$f":"ROUND(F517*VLOOKUP(D517,ALLOCTABLE_Trans_Energy,$Q$10,FALSE),0)","v":0},{"$f":"SUM(G517:Q517)","v":0}]
[4,null,{"$f":"'FR-16(7)(v)-1 Functional'!C518","v":"TOTAL CUSTOMER SERV. & INFO."},null," ",{"$f":"SUM(F516:F517)","v":0},{"$f":"SUM(G516:G517)","v":0},0,0,{"$f":"SUM(J516:J517)","v":0},0,0,0,0,0,0,0,0,0]
[5]
[6,"SALES"]
[7,null,{"$f":"'FR-16(7)(v)-1 Functional'!C521","v":"SALES EXPENSE"},{"$f":"'FR-16(7)(v)-1 Functional'!D521","v":"K405"}," ",{"$f":"'FR-16(7)(v)-6 TRANS Classified'!H521","v":0},{"$f":"F521-SUM(H521:Q521)","v":0},{"$f":"ROUND(F521*VLOOKUP(D521,ALLOCTABLE_Trans_Energy,$H$10,FALSE),0)","v":0},{"$f":"ROUND(F521*VLOOKUP(D521,ALLOCTABLE_Trans_Energy,$I$10,FALSE),0)","v":0},{"$f":"ROUND(F521*VLOOKUP(D521,ALLOCTABLE_Trans_Energy,$J$10,FALSE),0)","v":0},{"$f":"ROUND(F521*VLOOKUP(D521,ALLOCTABLE_Trans_Energy,$K$10,FALSE),0)","v":0},{"$f":"ROUND(F521*VLOOKUP(D521,ALLOCTABLE_Trans_Energy,$L$10,FALSE),0)","v":0},{"$f":"ROUND(F521*VLOOKUP(D521,ALLOCTABLE_Trans_Energy,$M$10,FALSE),0)","v":0},{"$f":"ROUND(F521*VLOOKUP(D521,ALLOCTABLE_Trans_Energy,$N$10,FALSE),0)","v":0},{"$f":"ROUND(F521*VLOOKUP(D521,ALLOCTABLE_Trans_Energy,$O$10,FALSE),0)","v":0},{"$f":"ROUND(F521*VLOOKUP(D521,ALLOCTABLE_Trans_Energy,$P$10,FALSE),0)","v":0},{"$f":"ROUND(F521*VLOOKUP(D521,ALLOCTABLE_Trans_Energy,$Q$10,FALSE),0)","v":0},{"$f":"SUM(G521:Q521)","v":0},{"$f":"F521-R521","v":0}]
[8,null,{"$f":"'FR-16(7)(v)-1 Functional'!C522","v":"TOTAL SALES EXPENSE"},null," ",{"$f":"SUM(F520:F521)","v":0},{"$f":"SUM(G520:G521)","v":0},{"$f":"SUM(H520:H521)","v":0},{"$f":"SUM(I520:I521)","v":0},{"$f":"SUM(J520:J521)","v":0},0,0,0,0,0,0,{"$f":"SUM(Q520:Q521)","v":0},{"$f":"SUM(R520:R521)","v":0},{"$f":"SUM(S520:S521)","v":0}]
[9]
[10,"ADMINISTRATIVE & GENERAL "]
[11,null,{"$f":"'FR-16(7)(v)-1 Functional'!C525","v":"PRODUCTION - DEMAND RELATED"},{"$f":"'FR-16(7)(v)-1 Functional'!D525","v":"P349"},null,{"$f":"'FR-16(7)(v)-6 TRANS Classified'!H525","v":0},{"$f":"F525-SUM(H525:Q525)","v":0},{"$f":"ROUND(F525*VLOOKUP(D525,ALLOCTABLE_Trans_Energy,$H$10,FALSE),0)","v":0},{"$f":"ROUND(F525*VLOOKUP(D525,ALLOCTABLE_Trans_Energy,$I$10,FALSE),0)","v":0},{"$f":"ROUND(F525*VLOOKUP(D525,ALLOCTABLE_Trans_Energy,$J$10,FALSE),0)","v":0},{"$f":"ROUND(F525*VLOOKUP(D525,ALLOCTABLE_Trans_Energy,$K$10,FALSE),0)","v":0},{"$f":"ROUND(F525*VLOOKUP(D525,ALLOCTABLE_Trans_Energy,$L$10,FALSE),0)","v":0},{"$f":"ROUND(F525*VLOOKUP(D525,ALLOCTABLE_Trans_Energy,$M$10,FALSE),0)","v":0},{"$f":"ROUND(F525*VLOOKUP(D525,ALLOCTABLE_Trans_Energy,$N$10,FALSE),0)","v":0},{"$f":"ROUND(F525*VLOOKUP(D525,ALLOCTABLE_Trans_Energy,$O$10,FALSE),0)","v":0},{"$f":"ROUND(F525*VLOOKUP(D525,ALLOCTABLE_Trans_Energy,$P$10,FALSE),0)","v":0},{"$f":"ROUND(F525*VLOOKUP(D525,ALLOCTABLE_Trans_Energy,$Q$10,FALSE),0)","v":0},{"$f":"SUM(G525:Q525)","v":0},{"$f":"F525-R525","v":0}]
[12,null,{"$f":"'FR-16(7)(v)-1 Functional'!C526","v":"PRODUCTION - ENERGY RELATED"},{"$f":"'FR-16(7)(v)-1 Functional'!D526","v":"E349"},null,{"$f":"'FR-16(7)(v)-6 TRANS Classified'!H526","v":0},0,0,0,0,0,0,0,0,0,0,0,0,0]
[13,null,"TRANSMISSION",{"$f":"'FR-16(7)(v)-1 Functional'!D527","v":"T349"},null,{"$f":"'FR-16(7)(v)-6 TRANS Classified'!H527","v":0},0,0,0,0,0,0,0,0,0,0,0,{"$f":"SUM(G527:Q527)","v":0},{"$f":"F527-R527","v":0}]
[14,null,{"$f":"'FR-16(7)(v)-1 Functional'!C528","v":"DISTRIBUTION"},{"$f":"'FR-16(7)(v)-1 Functional'!D528","v":"D349"},null,{"$f":"'FR-16(7)(v)-6 TRANS Classified'!H528","v":0},0,0,0,0,0,0,0,0,0,0,0,0,0]
[15,null,{"$f":"'FR-16(7)(v)-1 Functional'!C529","v":"CUSTOMER ACCOUNTING"},{"$f":"'FR-16(7)(v)-1 Functional'!D529","v":"C319"},null,{"$f":"'FR-16(7)(v)-6 TRANS Classified'!H529","v":0},0,0,0,0,0,0,0,0,0,0,0,0,0]
[16,null,{"$f":"'FR-16(7)(v)-1 Functional'!C530","v":"CUSTOMER SERVICE & INFORMATION"},{"$f":"'FR-16(7)(v)-1 Functional'!D530","v":"C331"},null,{"$f":"'FR-16(7)(v)-6 TRANS Classified'!H530","v":0},0,0,0,0,0,0,0,0,0,0,0,0,0]
[17,null,{"$f":"'FR-16(7)(v)-1 Functional'!C531","v":"SALES"},{"$f":"'FR-16(7)(v)-1 Functional'!D531","v":"S319"},null,{"$f":"'FR-16(7)(v)-6 TRANS Classified'!H531","v":0},0,0,0,0,0,0,0,0,0,0,0,0,0]
[18,null,{"$f":"'FR-16(7)(v)-1 Functional'!C532","v":"TOT ADMIN & GEN LESS REG EXP"}," ",null,{"$f":"SUM(F525:F531)","v":0},{"$f":"SUM(G525:G531)","v":0},{"$f":"SUM(H525:H531)","v":0},{"$f":"SUM(I525:I531)","v":0},{"$f":"SUM(J525:J531)","v":0},0,0,0,0,0,0,{"$f":"SUM(Q525:Q531)","v":0},{"$f":"SUM(R525:R531)","v":0},{"$f":"SUM(S525:S531)","v":0}]
[19,null,{"$f":"'FR-16(7)(v)-1 Functional'!C533","v":"RATE CASE EXPENSE ADJUSTMENT"},{"$f":"'FR-16(7)(v)-1 Functional'!D533","v":"A315"},null,{"$f":"'FR-16(7)(v)-6 TRANS Classified'!H533","v":0},{"$f":"F533-SUM(H533:Q533)","v":0},{"$f":"ROUND(F533*VLOOKUP(D533,ALLOCTABLE_Trans_Energy,$H$10,FALSE),0)","v":0},{"$f":"ROUND(F533*VLOOKUP(D533,ALLOCTABLE_Trans_Energy,$I$10,FALSE),0)","v":0},{"$f":"ROUND(F533*VLOOKUP(D533,ALLOCTABLE_Trans_Energy,$J$10,FALSE),0)","v":0},{"$f":"ROUND(F533*VLOOKUP(D533,ALLOCTABLE_Trans_Energy,$K$10,FALSE),0)","v":0},{"$f":"ROUND(F533*VLOOKUP(D533,ALLOCTABLE_Trans_Energy,$L$10,FALSE),0)","v":0},{"$f":"ROUND(F533*VLOOKUP(D533,ALLOCTABLE_Trans_Energy,$M$10,FALSE),0)","v":0},{"$f":"ROUND(F533*VLOOKUP(D533,ALLOCTABLE_Trans_Energy,$N$10,FALSE),0)","v":0},{"$f":"ROUND(F533*VLOOKUP(D533,ALLOCTABLE_Trans_Energy,$O$10,FALSE),0)","v":0},{"$f":"ROUND(F533*VLOOKUP(D533,ALLOCTABLE_Trans_Energy,$P$10,FALSE),0)","v":0},{"$f":"ROUND(F533*VLOOKUP(D533,ALLOCTABLE_Trans_Energy,$Q$10,FALSE),0)","v":0},{"$f":"SUM(G533:Q533)","v":0},{"$f":"F533-R533","v":0}]
[20,null,{"$f":"'FR-16(7)(v)-1 Functional'!C534","v":"ELIMINATE MISCELLANEOUS EXPENSES ADJUSTMENT"},{"$f":"'FR-16(7)(v)-1 Functional'!D534","v":"A315"},null,{"$f":"'FR-16(7)(v)-6 TRANS Classified'!H534","v":0},0,0,0,0,0,0,0,0,0,0,0,0,0]
[21,null,{"$f":"'FR-16(7)(v)-1 Functional'!C535","v":"RIDER ESM ELIMINATION"},{"$f":"'FR-16(7)(v)-1 Functional'!D535","v":"A315"},null,{"$f":"'FR-16(7)(v)-6 TRANS Classified'!H535","v":0},0,0,0,0,0,0,0,0,0,0,0,0,0]
[22,null,{"$f":"'FR-16(7)(v)-1 Functional'!C536","v":"ELIMINATE DSM"},{"$f":"'FR-16(7)(v)-1 Functional'!D536","v":"A315"},null,{"$f":"'FR-16(7)(v)-6 TRANS Classified'!H536","v":0},0,0,0,0,0,0,0,0,0,0,0,0,0]
[23,null,{"$f":"'FR-16(7)(v)-1 Functional'!C537","v":"DSM DEFERRAL - ELECTRIC"},{"$f":"'FR-16(7)(v)-1 Functional'!D537","v":"A315"},null,{"$f":"'FR-16(7)(v)-6 TRANS Classified'!H537","v":0},0,0,0,0,0,0,0,0,0,0,0,0,0]
[24,null,{"$f":"'FR-16(7)(v)-1 Functional'!C538","v":"PENSION ADJUSTMENT"},{"$f":"'FR-16(7)(v)-1 Functional'!D538","v":"A315"},null,{"$f":"'FR-16(7)(v)-6 TRANS Classified'!H538","v":0},0,0,0,0,0,0,0,0,0,0,0,0,0]
[25,null,{"$f":"'FR-16(7)(v)-1 Functional'!C539","v":"ELIMINATE MISC EXPENSES"},{"$f":"'FR-16(7)(v)-1 Functional'!D539","v":"A315"},null,{"$f":"'FR-16(7)(v)-6 TRANS Classified'!H539","v":0},0,0,0,0,0,0,0,0,0,0,0,0,0]
[26,null,{"$f":"'FR-16(7)(v)-1 Functional'!C540","v":"ELIMINATE MERGER COSTS AND CREDITS"},{"$f":"'FR-16(7)(v)-1 Functional'!D540","v":"A315"},null,{"$f":"'FR-16(7)(v)-6 TRANS Classified'!H540","v":0},0,0,0,0,0,0,0,0,0,0,0,0,0]
[27,null,{"$f":"'FR-16(7)(v)-1 Functional'!C541","v":"ANNUALIZE KYPSC MAINT TAX"},{"$f":"'FR-16(7)(v)-1 Functional'!D541","v":"A315"},null,{"$f":"'FR-16(7)(v)-6 TRANS Classified'!H541","v":0},0,0,0,0,0,0,0,0,0,0,0,0,0]
[28,null,{"$f":"'FR-16(7)(v)-1 Functional'!C542","v":"REMOVE INCENTIVE COMP"},{"$f":"'FR-16(7)(v)-1 Functional'!D542","v":"A315"},null,{"$f":"'FR-16(7)(v)-6 TRANS Classified'!H542","v":0},0,0,0,0,0,0,0,0,0,0,0,0,0]
[29,null,{"$f":"'FR-16(7)(v)-1 Functional'!C543","v":"CREDIT CARD FEES"},{"$f":"'FR-16(7)(v)-1 Functional'!D543","v":"A315"},null,{"$f":"'FR-16(7)(v)-6 TRANS Classified'!H543","v":0},0,0,0,0,0,0,0,0,0,0,0,0,0]
[30,null,{"$f":"'FR-16(7)(v)-1 Functional'!C544","v":"ELIMINATE INCENTIVE COMPENSATION ADJUSTMENT"},{"$f":"'FR-16(7)(v)-1 Functional'!D544","v":"A315"},null,{"$f":"'FR-16(7)(v)-6 TRANS Classified'!H544","v":0},0,0,0,0,0,0,0,0,0,0,0,0,0]
[31,null,{"$f":"'FR-16(7)(v)-1 Functional'!C545","v":"AMORTIZATION OF DEFERRAL ASSET"},{"$f":"'FR-16(7)(v)-1 Functional'!D545","v":"A315"},null,{"$f":"'FR-16(7)(v)-6 TRANS Classified'!H545","v":0},0,0,0,0,0,0,0,0,0,0,0,0,0]
[32,null,{"$f":"'FR-16(7)(v)-1 Functional'!C546","v":"AMORTIZATION OF DEFERRED EXPENSES"},{"$f":"'FR-16(7)(v)-1 Functional'!D546","v":"A315"},null,{"$f":"'FR-16(7)(v)-6 TRANS Classified'!H546","v":0},0,0,0,0,0,0,0,0,0,0,0,0,0]
[33,null,{"$f":"'FR-16(7)(v)-1 Functional'!C547","v":"TOTAL ADMIN. & GENERAL"},null," ",{"$f":"SUM(F532:F546)","v":0},{"$f":"SUM(G532:G546)","v":0},{"$f":"SUM(H532:H546)","v":0},{"$f":"SUM(I532:I546)","v":0},{"$f":"SUM(J532:J546)","v":0},0,0,0,0,0,0,{"$f":"SUM(Q532:Q546)","v":0},{"$f":"SUM(R532:R546)","v":0},{"$f":"SUM(S532:S546)","v":0}]
[34]
[35,null,{"$f":"'FR-16(7)(v)-1 Functional'!C549","v":"TOTAL O & M EXPENSE"},null,null,{"$f":"F547+F522+F518+F503+F492+F470+F466+F459","v":0},{"$f":"G547+G522+G518+G503+G492+G470+G466+G459","v":0},{"$f":"H547+H522+H518+H503+H492+H470+H466+H459","v":0},{"$f":"I547+I522+I518+I503+I492+I470+I466+I459","v":0},{"$f":"J547+J522+J518+J503+J492+J470+J466+J459","v":0},0,0,0,0,0,0,{"$f":"Q547+Q522+Q518+Q503+Q492+Q470+Q466+Q459","v":0},{"$f":"R547+R522+R518+R503+R492+R470+R466+R459","v":0},{"$f":"S547+S522+S518+S503+S492+S466+S459","v":0}]
[]
[{"$f":"co_name","v":"DUKE ENERGY KENTUCKY, INC."},null,null,null,null,null,null,null,null,null,null,null,null,null,null,null,null,{"$f":"R1","v":"FR-16(7)(v)-8"}]
[{"$f":"$A$2","v":"TRANSMISSION ENERGY ALLOCATED - ELECTRIC COST OF SERVICE"},null,null,null,null,null,null,null,null,null,null,null,null,null,null,null,null,{"$f":"R2","v":"WITNESS RESPONSIBLE:"}]
[{"$f":"case_name","v":"CASE NO: 2019-00271"},null,null,null,null,null,null,null,null,null,null,null,null,null,null,null,null,{"$f":"Witness","v":"JAMES E. ZIOLKOWSKI"}]
[{"$f":"data_filing","v":"DATA: 12 MONTHS ACTUAL  & 0 MONTHS ESTIMATED"},null,null,null,null,null,null,null,null,null,null,null,null,null,null,null,null,{"$f":"\"PAGE \"&Pages-8&\" OF \"&Pages","v":"PAGE 10 OF 18"}]
[{"$f":"type","v":"TYPE OF FILING: \"X\" ORIGINAL   UPDATED    REVISED  "}]
[]
[null,null,null,null,null,{"$f":"F$7","v":"TOTAL"},null,{"$f":"H$7","v":"DS"},{"$f":"I$7","v":"GSFL"},{"$f":"J$7","v":"EH"},{"$f":"K$7","v":"SP"},"DT SEC","DT PRI","DP","TT",null,"OTHER"]
["LINE",null,null,null,null,{"$f":"F$8","v":"TRANSMISSION"},{"$f":"G$8","v":"RS"},{"$f":"H$8","v":"SECONDARY"},{"$f":"I$8","v":"SECONDARY"},{"$f":"J$8","v":"SECONDARY"},{"$f":"K$8","v":"SECONDARY"},"SECONDARY","PRIMARY","PRIMARY","TRANSMISSION","LT","WATER",{"$f":"R8","v":"TOTAL"},"ALL"]
["NO.","DEPRECIATION EXPENSE",null,"ALLO",null,{"$f":"F$9","v":"ENERGY"},{"$f":"G$9","v":"RESIDENTIAL"},{"$f":"H$9","v":"DISTRIBUTION"},{"$f":"I$9","v":"DISTRIBUTION"},{"$f":"J$9","v":"DISTRIBUTION"},{"$f":"K$9","v":"DISTRIBUTION"},"DISTRIBUTION","DISTRIBUTION","DISTRIBUTION","TIME OF DAY","LIGHTING","PUMPING",{"$f":"R9","v":"AT ISSUE"},"OTHER"]
[null,null,"Schedule 7",null,null,null,{"$f":"G$10","v":3},{"$f":"H$10","v":4},{"$f":"I$10","v":5},{"$f":"J$10","v":6},{"$f":"K$10","v":7},8,9,10,11,12,13,null," "]
[1,"PRODUCTION DEPRECIATION"]
[2,null,{"$f":"'FR-16(7)(v)-1 Functional'!C562","v":"PRODUCTION DEPRECIATION"},{"$f":"'FR-16(7)(v)-1 Functional'!D562","v":"P229"},null,{"$f":"'FR-16(7)(v)-6 TRANS Classified'!H562","v":0},{"$f":"F562-SUM(H562:Q562)","v":0},{"$f":"ROUND(F562*VLOOKUP(D562,ALLOCTABLE_Trans_Energy,$H$10,FALSE),0)","v":0},{"$f":"ROUND(F562*VLOOKUP(D562,ALLOCTABLE_Trans_Energy,$I$10,FALSE),0)","v":0},{"$f":"ROUND(F562*VLOOKUP(D562,ALLOCTABLE_Trans_Energy,$J$10,FALSE),0)","v":0},{"$f":"ROUND(F562*VLOOKUP(D562,ALLOCTABLE_Trans_Energy,$K$10,FALSE),0)","v":0},{"$f":"ROUND(F562*VLOOKUP(D562,ALLOCTABLE_Trans_Energy,$L$10,FALSE),0)","v":0},{"$f":"ROUND(F562*VLOOKUP(D562,ALLOCTABLE_Trans_Energy,$M$10,FALSE),0)","v":0},{"$f":"ROUND(F562*VLOOKUP(D562,ALLOCTABLE_Trans_Energy,$N$10,FALSE),0)","v":0},{"$f":"ROUND(F562*VLOOKUP(D562,ALLOCTABLE_Trans_Energy,$O$10,FALSE),0)","v":0},{"$f":"ROUND(F562*VLOOKUP(D562,ALLOCTABLE_Trans_Energy,$P$10,FALSE),0)","v":0},{"$f":"ROUND(F562*VLOOKUP(D562,ALLOCTABLE_Trans_Energy,$Q$10,FALSE),0)","v":0},{"$f":"SUM(G562:Q562)","v":0},{"$f":"F562-R562","v":0}]
[3,null,{"$f":"'FR-16(7)(v)-1 Functional'!C563","v":"  TOTAL PRODUCTION DEPREC EXP."},null,null,{"$f":"SUM(F562:F562)","v":0},{"$f":"SUM(G562:G562)","v":0},{"$f":"SUM(H562:H562)","v":0},{"$f":"SUM(I562:I562)","v":0},{"$f":"SUM(J562:J562)","v":0},0,0,0,0,0,0,{"$f":"SUM(Q562:Q562)","v":0},{"$f":"SUM(R562:R562)","v":0},{"$f":"SUM(S562:S562)","v":0}]
[4]
[5,"TRANSMISSION DEPRECIATION"]
[6,null,"TRANSMISSION DEPRECIATION",{"$f":"'FR-16(7)(v)-1 Functional'!D566","v":"T229"},null,{"$f":"'FR-16(7)(v)-6 TRANS Classified'!H566","v":0},{"$f":"F566-SUM(H566:Q566)","v":0},{"$f":"ROUND(F566*VLOOKUP(D566,ALLOCTABLE_Trans_Energy,$H$10,FALSE),0)","v":0},{"$f":"ROUND(F566*VLOOKUP(D566,ALLOCTABLE_Trans_Energy,$I$10,FALSE),0)","v":0},{"$f":"ROUND(F566*VLOOKUP(D566,ALLOCTABLE_Trans_Energy,$J$10,FALSE),0)","v":0},{"$f":"ROUND(F566*VLOOKUP(D566,ALLOCTABLE_Trans_Energy,$K$10,FALSE),0)","v":0},{"$f":"ROUND(F566*VLOOKUP(D566,ALLOCTABLE_Trans_Energy,$L$10,FALSE),0)","v":0},{"$f":"ROUND(F566*VLOOKUP(D566,ALLOCTABLE_Trans_Energy,$M$10,FALSE),0)","v":0},{"$f":"ROUND(F566*VLOOKUP(D566,ALLOCTABLE_Trans_Energy,$N$10,FALSE),0)","v":0},{"$f":"ROUND(F566*VLOOKUP(D566,ALLOCTABLE_Trans_Energy,$O$10,FALSE),0)","v":0},{"$f":"ROUND(F566*VLOOKUP(D566,ALLOCTABLE_Trans_Energy,$P$10,FALSE),0)","v":0},{"$f":"ROUND(F566*VLOOKUP(D566,ALLOCTABLE_Trans_Energy,$Q$10,FALSE),0)","v":0},{"$f":"SUM(G566:Q566)","v":0},{"$f":"F566-R566","v":0}]
[7,null,{"$f":"'FR-16(7)(v)-1 Functional'!C567","v":"  TOTAL TRANSMISSION DEP. EXP."},null,null,{"$f":"SUM(F566:F566)","v":0},{"$f":"SUM(G566:G566)","v":0},{"$f":"SUM(H566:H566)","v":0},{"$f":"SUM(I566:I566)","v":0},{"$f":"SUM(J566:J566)","v":0},0,0,0,0,0,0,{"$f":"SUM(Q566:Q566)","v":0},{"$f":"SUM(R566:R566)","v":0},{"$f":"SUM(S566:S566)","v":0}]
[8]
[9,"DISTRIBUTION DEPRECIATION"]
[10,null,{"$f":"'FR-16(7)(v)-1 Functional'!C570","v":"DISTRIBUTION DEPRECIATION"},{"$f":"'FR-16(7)(v)-1 Functional'!D570","v":"D249"},null,{"$f":"'FR-16(7)(v)-6 TRANS Classified'!H570","v":0},{"$f":"F570-SUM(H570:Q570)","v":0},{"$f":"ROUND(F570*VLOOKUP(D570,ALLOCTABLE_Trans_Energy,$H$10,FALSE),0)","v":0},{"$f":"ROUND(F570*VLOOKUP(D570,ALLOCTABLE_Trans_Energy,$I$10,FALSE),0)","v":0},{"$f":"ROUND(F570*VLOOKUP(D570,ALLOCTABLE_Trans_Energy,$J$10,FALSE),0)","v":0},{"$f":"ROUND(F570*VLOOKUP(D570,ALLOCTABLE_Trans_Energy,$K$10,FALSE),0)","v":0},{"$f":"ROUND(F570*VLOOKUP(D570,ALLOCTABLE_Trans_Energy,$L$10,FALSE),0)","v":0},{"$f":"ROUND(F570*VLOOKUP(D570,ALLOCTABLE_Trans_Energy,$M$10,FALSE),0)","v":0},{"$f":"ROUND(F570*VLOOKUP(D570,ALLOCTABLE_Trans_Energy,$N$10,FALSE),0)","v":0},{"$f":"ROUND(F570*VLOOKUP(D570,ALLOCTABLE_Trans_Energy,$O$10,FALSE),0)","v":0},{"$f":"ROUND(F570*VLOOKUP(D570,ALLOCTABLE_Trans_Energy,$P$10,FALSE),0)","v":0},{"$f":"ROUND(F570*VLOOKUP(D570,ALLOCTABLE_Trans_Energy,$Q$10,FALSE),0)","v":0},{"$f":"SUM(G570:Q570)","v":0},{"$f":"F570-R570","v":0}]
[11,null,{"$f":"'FR-16(7)(v)-1 Functional'!C571","v":"  TOTAL DIST. DEPREC EXP."},null,null,{"$f":"SUM(F570:F570)","v":0},{"$f":"SUM(G570:G570)","v":0},{"$f":"SUM(H570:H570)","v":0},{"$f":"SUM(I570:I570)","v":0},{"$f":"SUM(J570:J570)","v":0},0,0,0,0,0,0,{"$f":"SUM(Q570:Q570)","v":0},{"$f":"SUM(R570:R570)","v":0},{"$f":"SUM(S570:S570)","v":0}]
[12,null,null,null,null," "]
[13,"GENERAL DEPRECIATION"]
[14,null,{"$f":"'FR-16(7)(v)-1 Functional'!C574","v":"GENERAL DEPRECIATION"},{"$f":"'FR-16(7)(v)-1 Functional'!D574","v":"G229"},null,{"$f":"'FR-16(7)(v)-6 TRANS Classified'!H574","v":0},{"$f":"F574-SUM(H574:Q574)","v":0},{"$f":"ROUND(F574*VLOOKUP(D574,ALLOCTABLE_Trans_Energy,$H$10,FALSE),0)","v":0},{"$f":"ROUND(F574*VLOOKUP(D574,ALLOCTABLE_Trans_Energy,$I$10,FALSE),0)","v":0},{"$f":"ROUND(F574*VLOOKUP(D574,ALLOCTABLE_Trans_Energy,$J$10,FALSE),0)","v":0},{"$f":"ROUND(F574*VLOOKUP(D574,ALLOCTABLE_Trans_Energy,$K$10,FALSE),0)","v":0},{"$f":"ROUND(F574*VLOOKUP(D574,ALLOCTABLE_Trans_Energy,$L$10,FALSE),0)","v":0},{"$f":"ROUND(F574*VLOOKUP(D574,ALLOCTABLE_Trans_Energy,$M$10,FALSE),0)","v":0},{"$f":"ROUND(F574*VLOOKUP(D574,ALLOCTABLE_Trans_Energy,$N$10,FALSE),0)","v":0},{"$f":"ROUND(F574*VLOOKUP(D574,ALLOCTABLE_Trans_Energy,$O$10,FALSE),0)","v":0},{"$f":"ROUND(F574*VLOOKUP(D574,ALLOCTABLE_Trans_Energy,$P$10,FALSE),0)","v":0},{"$f":"ROUND(F574*VLOOKUP(D574,ALLOCTABLE_Trans_Energy,$Q$10,FALSE),0)","v":0},{"$f":"SUM(G574:Q574)","v":0},{"$f":"F574-R574","v":0}]
[15,null,{"$f":"'FR-16(7)(v)-1 Functional'!C575","v":"  TOTAL GENERAL DEPREC EXP."},null,null,{"$f":"SUM(F574:F574)","v":0},{"$f":"SUM(G574:G574)","v":0},{"$f":"SUM(H574:H574)","v":0},{"$f":"SUM(I574:I574)","v":0},{"$f":"SUM(J574:J574)","v":0},0,0,0,0,0,0,{"$f":"SUM(Q574:Q574)","v":0},{"$f":"SUM(R574:R574)","v":0},{"$f":"SUM(S574:S574)","v":0}]
[16]
[17,"COMMON AND OTHER DEPRECIATION"]
[18,null,{"$f":"'FR-16(7)(v)-1 Functional'!C578","v":"COMMON DEPRECIATION"},{"$f":"'FR-16(7)(v)-1 Functional'!D578","v":"C229"},null,{"$f":"'FR-16(7)(v)-6 TRANS Classified'!H578","v":0},{"$f":"F578-SUM(H578:Q578)","v":0},{"$f":"ROUND(F578*VLOOKUP(D578,ALLOCTABLE_Trans_Energy,$H$10,FALSE),0)","v":0},{"$f":"ROUND(F578*VLOOKUP(D578,ALLOCTABLE_Trans_Energy,$I$10,FALSE),0)","v":0},{"$f":"ROUND(F578*VLOOKUP(D578,ALLOCTABLE_Trans_Energy,$J$10,FALSE),0)","v":0},{"$f":"ROUND(F578*VLOOKUP(D578,ALLOCTABLE_Trans_Energy,$K$10,FALSE),0)","v":0},{"$f":"ROUND(F578*VLOOKUP(D578,ALLOCTABLE_Trans_Energy,$L$10,FALSE),0)","v":0},{"$f":"ROUND(F578*VLOOKUP(D578,ALLOCTABLE_Trans_Energy,$M$10,FALSE),0)","v":0},{"$f":"ROUND(F578*VLOOKUP(D578,ALLOCTABLE_Trans_Energy,$N$10,FALSE),0)","v":0},{"$f":"ROUND(F578*VLOOKUP(D578,ALLOCTABLE_Trans_Energy,$O$10,FALSE),0)","v":0},{"$f":"ROUND(F578*VLOOKUP(D578,ALLOCTABLE_Trans_Energy,$P$10,FALSE),0)","v":0},{"$f":"ROUND(F578*VLOOKUP(D578,ALLOCTABLE_Trans_Energy,$Q$10,FALSE),0)","v":0},{"$f":"SUM(G578:Q578)","v":0},{"$f":"F578-R578","v":0}]
[19,null,{"$f":"'FR-16(7)(v)-1 Functional'!C579","v":"  TOTAL COM & OTHER DEPREC EXP."},null,null,{"$f":"SUM(F578:F578)","v":0},{"$f":"SUM(G578:G578)","v":0},{"$f":"SUM(H578:H578)","v":0},{"$f":"SUM(I578:I578)","v":0},{"$f":"SUM(J578:J578)","v":0},0,0,0,0,0,0,{"$f":"SUM(Q578:Q578)","v":0},{"$f":"SUM(R578:R578)","v":0},{"$f":"SUM(S578:S578)","v":0}]
[20]
[21]
[22,"TOTAL DEPRECIATION EXPENSE",null,null," ",{"$f":"F579+F575+F571+F567+F563","v":0},{"$f":"G579+G575+G571+G567+G563","v":0},{"$f":"H579+H575+H571+H567+H563","v":0},{"$f":"I579+I575+I571+I567+I563","v":0},{"$f":"J579+J575+J571+J567+J563","v":0},0,0,0,0,0,0,{"$f":"Q579+Q575+Q571+Q567+Q563","v":0},{"$f":"R579+R575+R571+R567+R563","v":0},{"$f":"S579+S575+S571+S567+S563","v":0}]
[]
[{"$f":"co_name","v":"DUKE ENERGY KENTUCKY, INC."},null,null,null,null,null,null,null,null,null,null,null,null,null,null,null,null,{"$f":"R1","v":"FR-16(7)(v)-8"}]
[{"$f":"$A$2","v":"TRANSMISSION ENERGY ALLOCATED - ELECTRIC COST OF SERVICE"},null,null,null,null,null,null,null,null,null,null,null,null,null,null,null,null,{"$f":"R2","v":"WITNESS RESPONSIBLE:"}]
[{"$f":"case_name","v":"CASE NO: 2019-00271"},null,null,null,null,null,null,null,null,null,null,null,null,null,null,null,null,{"$f":"Witness","v":"JAMES E. ZIOLKOWSKI"}]
[{"$f":"data_filing","v":"DATA: 12 MONTHS ACTUAL  & 0 MONTHS ESTIMATED"},null,null,null,null,null,null,null,null,null,null,null,null,null,null,null,null,{"$f":"\"PAGE \"&Pages-7&\" OF \"&Pages","v":"PAGE 11 OF 18"}]
[{"$f":"type","v":"TYPE OF FILING: \"X\" ORIGINAL   UPDATED    REVISED  "}]
[]
[null,null,null,null,null,{"$f":"F$7","v":"TOTAL"},null,{"$f":"H$7","v":"DS"},{"$f":"I$7","v":"GSFL"},{"$f":"J$7","v":"EH"},{"$f":"K$7","v":"SP"},"DT SEC","DT PRI","DP","TT",null,"OTHER"]
["LINE",null,null,null,null,{"$f":"F$8","v":"TRANSMISSION"},{"$f":"G$8","v":"RS"},{"$f":"H$8","v":"SECONDARY"},{"$f":"I$8","v":"SECONDARY"},{"$f":"J$8","v":"SECONDARY"},{"$f":"K$8","v":"SECONDARY"},"SECONDARY","PRIMARY","PRIMARY","TRANSMISSION","LT","WATER",{"$f":"R8","v":"TOTAL"},"ALL"]
["NO.","OTHER TAXES & MISC EXPENSES",null,"ALLO",null,{"$f":"F$9","v":"ENERGY"},{"$f":"G$9","v":"RESIDENTIAL"},{"$f":"H$9","v":"DISTRIBUTION"},{"$f":"I$9","v":"DISTRIBUTION"},{"$f":"J$9","v":"DISTRIBUTION"},{"$f":"K$9","v":"DISTRIBUTION"},"DISTRIBUTION","DISTRIBUTION","DISTRIBUTION","TIME OF DAY","LIGHTING","PUMPING",{"$f":"R9","v":"AT ISSUE"},"OTHER"]
[null,null,"Schedule 8",null,null,null,{"$f":"G$10","v":3},{"$f":"H$10","v":4},{"$f":"I$10","v":5},{"$f":"J$10","v":6},{"$f":"K$10","v":7},8,9,10,11,12,13,null," "]
[1,"TAXES OTHER THAN INC & REV"]
[2," REAL ESTATE & PROPERTY TAX"]
[3,null,{"$f":"'FR-16(7)(v)-1 Functional'!C596","v":"REAL ESTATE & PROPERTY TAX"},{"$f":"'FR-16(7)(v)-1 Functional'!D596","v":"NP29"},null,{"$f":"'FR-16(7)(v)-6 TRANS Classified'!H596","v":0},{"$f":"F596-SUM(H596:Q596)","v":0},{"$f":"ROUND(F596*VLOOKUP(D596,ALLOCTABLE_Trans_Energy,$H$10,FALSE),0)","v":0},{"$f":"ROUND(F596*VLOOKUP(D596,ALLOCTABLE_Trans_Energy,$I$10,FALSE),0)","v":0},{"$f":"ROUND(F596*VLOOKUP(D596,ALLOCTABLE_Trans_Energy,$J$10,FALSE),0)","v":0},{"$f":"ROUND(F596*VLOOKUP(D596,ALLOCTABLE_Trans_Energy,$K$10,FALSE),0)","v":0},{"$f":"ROUND(F596*VLOOKUP(D596,ALLOCTABLE_Trans_Energy,$L$10,FALSE),0)","v":0},{"$f":"ROUND(F596*VLOOKUP(D596,ALLOCTABLE_Trans_Energy,$M$10,FALSE),0)","v":0},{"$f":"ROUND(F596*VLOOKUP(D596,ALLOCTABLE_Trans_Energy,$N$10,FALSE),0)","v":0},{"$f":"ROUND(F596*VLOOKUP(D596,ALLOCTABLE_Trans_Energy,$O$10,FALSE),0)","v":0},{"$f":"ROUND(F596*VLOOKUP(D596,ALLOCTABLE_Trans_Energy,$P$10,FALSE),0)","v":0},{"$f":"ROUND(F596*VLOOKUP(D596,ALLOCTABLE_Trans_Energy,$Q$10,FALSE),0)","v":0},{"$f":"SUM(G596:Q596)","v":0},{"$f":"F596-R596","v":0}]
[4,null,{"$f":"'FR-16(7)(v)-1 Functional'!C597","v":"ANNUALIZE PROPERTY TAX"},{"$f":"'FR-16(7)(v)-1 Functional'!D597","v":"NP29"}," ",{"$f":"'FR-16(7)(v)-6 TRANS Classified'!H597","v":0},{"$f":"F597-SUM(H597:Q597)","v":0},{"$f":"ROUND(F597*VLOOKUP(D597,ALLOCTABLE_Trans_Energy,$H$10,FALSE),0)","v":0},{"$f":"ROUND(F597*VLOOKUP(D597,ALLOCTABLE_Trans_Energy,$I$10,FALSE),0)","v":0},{"$f":"ROUND(F597*VLOOKUP(D597,ALLOCTABLE_Trans_Energy,$J$10,FALSE),0)","v":0},{"$f":"ROUND(F597*VLOOKUP(D597,ALLOCTABLE_Trans_Energy,$K$10,FALSE),0)","v":0},{"$f":"ROUND(F597*VLOOKUP(D597,ALLOCTABLE_Trans_Energy,$L$10,FALSE),0)","v":0},{"$f":"ROUND(F597*VLOOKUP(D597,ALLOCTABLE_Trans_Energy,$M$10,FALSE),0)","v":0},{"$f":"ROUND(F597*VLOOKUP(D597,ALLOCTABLE_Trans_Energy,$N$10,FALSE),0)","v":0},{"$f":"ROUND(F597*VLOOKUP(D597,ALLOCTABLE_Trans_Energy,$O$10,FALSE),0)","v":0},{"$f":"ROUND(F597*VLOOKUP(D597,ALLOCTABLE_Trans_Energy,$P$10,FALSE),0)","v":0},{"$f":"ROUND(F597*VLOOKUP(D597,ALLOCTABLE_Trans_Energy,$Q$10,FALSE),0)","v":0},{"$f":"SUM(G597:Q597)","v":0},{"$f":"F597-R597","v":0}]
[5,null,{"$f":"'FR-16(7)(v)-1 Functional'!C598","v":"  TOTAL REAL ESTATE & PROPERTY TAX"},null,null,{"$f":"SUM(F596:F597)","v":0},{"$f":"SUM(G596:G597)","v":0},{"$f":"SUM(H596:H597)","v":0},{"$f":"SUM(I596:I597)","v":0},{"$f":"SUM(J596:J597)","v":0},0,0,0,0,0,0,{"$f":"SUM($Q$596:$Q$597)","v":0},{"$f":"SUM(R596:R597)","v":0},{"$f":"SUM(S596:S597)","v":0}]
[6]
[7," MISCELLANEOUS TAXES"]
[8,null,{"$f":"'FR-16(7)(v)-1 Functional'!C601","v":"PAYROLL "},{"$f":"'FR-16(7)(v)-1 Functional'!D601","v":"A315"},null,{"$f":"'FR-16(7)(v)-6 TRANS Classified'!H601","v":0},{"$f":"F601-SUM(H601:Q601)","v":0},{"$f":"ROUND(F601*VLOOKUP(D601,ALLOCTABLE_Trans_Energy,$H$10,FALSE),0)","v":0},{"$f":"ROUND(F601*VLOOKUP(D601,ALLOCTABLE_Trans_Energy,$I$10,FALSE),0)","v":0},{"$f":"ROUND(F601*VLOOKUP(D601,ALLOCTABLE_Trans_Energy,$J$10,FALSE),0)","v":0},{"$f":"ROUND(F601*VLOOKUP(D601,ALLOCTABLE_Trans_Energy,$K$10,FALSE),0)","v":0},{"$f":"ROUND(F601*VLOOKUP(D601,ALLOCTABLE_Trans_Energy,$L$10,FALSE),0)","v":0},{"$f":"ROUND(F601*VLOOKUP(D601,ALLOCTABLE_Trans_Energy,$M$10,FALSE),0)","v":0},{"$f":"ROUND(F601*VLOOKUP(D601,ALLOCTABLE_Trans_Energy,$N$10,FALSE),0)","v":0},{"$f":"ROUND(F601*VLOOKUP(D601,ALLOCTABLE_Trans_Energy,$O$10,FALSE),0)","v":0},{"$f":"ROUND(F601*VLOOKUP(D601,ALLOCTABLE_Trans_Energy,$P$10,FALSE),0)","v":0},{"$f":"ROUND(F601*VLOOKUP(D601,ALLOCTABLE_Trans_Energy,$Q$10,FALSE),0)","v":0},{"$f":"SUM(G601:Q601)","v":0},{"$f":"F601-R601","v":0}]
[9,null,{"$f":"'FR-16(7)(v)-1 Functional'!C602","v":"ELIMINATE DSM "},{"$f":"'FR-16(7)(v)-1 Functional'!D602","v":"A315"},null,{"$f":"'FR-16(7)(v)-6 TRANS Classified'!H602","v":0},{"$f":"F602-SUM(H602:Q602)","v":0},{"$f":"ROUND(F602*VLOOKUP(D602,ALLOCTABLE_Trans_Energy,$H$10,FALSE),0)","v":0},{"$f":"ROUND(F602*VLOOKUP(D602,ALLOCTABLE_Trans_Energy,$I$10,FALSE),0)","v":0},{"$f":"ROUND(F602*VLOOKUP(D602,ALLOCTABLE_Trans_Energy,$J$10,FALSE),0)","v":0},{"$f":"ROUND(F602*VLOOKUP(D602,ALLOCTABLE_Trans_Energy,$K$10,FALSE),0)","v":0},{"$f":"ROUND(F602*VLOOKUP(D602,ALLOCTABLE_Trans_Energy,$L$10,FALSE),0)","v":0},{"$f":"ROUND(F602*VLOOKUP(D602,ALLOCTABLE_Trans_Energy,$M$10,FALSE),0)","v":0},{"$f":"ROUND(F602*VLOOKUP(D602,ALLOCTABLE_Trans_Energy,$N$10,FALSE),0)","v":0},{"$f":"ROUND(F602*VLOOKUP(D602,ALLOCTABLE_Trans_Energy,$O$10,FALSE),0)","v":0},{"$f":"ROUND(F602*VLOOKUP(D602,ALLOCTABLE_Trans_Energy,$P$10,FALSE),0)","v":0},{"$f":"ROUND(F602*VLOOKUP(D602,ALLOCTABLE_Trans_Energy,$Q$10,FALSE),0)","v":0},{"$f":"SUM(G602:Q602)","v":0},{"$f":"F602-R602","v":0}]
[10,null,{"$f":"'FR-16(7)(v)-1 Functional'!C603","v":"FRANCHISE & LICENSE"},{"$f":"'FR-16(7)(v)-1 Functional'!D603","v":"A315"},null,{"$f":"'FR-16(7)(v)-6 TRANS Classified'!H603","v":0},{"$f":"F603-SUM(H603:Q603)","v":0},{"$f":"ROUND(F603*VLOOKUP(D603,ALLOCTABLE_Trans_Energy,$H$10,FALSE),0)","v":0},{"$f":"ROUND(F603*VLOOKUP(D603,ALLOCTABLE_Trans_Energy,$I$10,FALSE),0)","v":0},{"$f":"ROUND(F603*VLOOKUP(D603,ALLOCTABLE_Trans_Energy,$J$10,FALSE),0)","v":0},{"$f":"ROUND(F603*VLOOKUP(D603,ALLOCTABLE_Trans_Energy,$K$10,FALSE),0)","v":0},{"$f":"ROUND(F603*VLOOKUP(D603,ALLOCTABLE_Trans_Energy,$L$10,FALSE),0)","v":0},{"$f":"ROUND(F603*VLOOKUP(D603,ALLOCTABLE_Trans_Energy,$M$10,FALSE),0)","v":0},{"$f":"ROUND(F603*VLOOKUP(D603,ALLOCTABLE_Trans_Energy,$N$10,FALSE),0)","v":0},{"$f":"ROUND(F603*VLOOKUP(D603,ALLOCTABLE_Trans_Energy,$O$10,FALSE),0)","v":0},{"$f":"ROUND(F603*VLOOKUP(D603,ALLOCTABLE_Trans_Energy,$P$10,FALSE),0)","v":0},{"$f":"ROUND(F603*VLOOKUP(D603,ALLOCTABLE_Trans_Energy,$Q$10,FALSE),0)","v":0},{"$f":"SUM(G603:Q603)","v":0},{"$f":"F603-R603","v":0}]
[11,null,{"$f":"'FR-16(7)(v)-1 Functional'!C604","v":"ELIMINATE ESM"},{"$f":"'FR-16(7)(v)-1 Functional'!D604","v":"A315"},null,{"$f":"'FR-16(7)(v)-6 TRANS Classified'!H604","v":0},{"$f":"F604-SUM(H604:Q604)","v":0},{"$f":"ROUND(F604*VLOOKUP(D604,ALLOCTABLE_Trans_Energy,$H$10,FALSE),0)","v":0},{"$f":"ROUND(F604*VLOOKUP(D604,ALLOCTABLE_Trans_Energy,$I$10,FALSE),0)","v":0},{"$f":"ROUND(F604*VLOOKUP(D604,ALLOCTABLE_Trans_Energy,$J$10,FALSE),0)","v":0},{"$f":"ROUND(F604*VLOOKUP(D604,ALLOCTABLE_Trans_Energy,$K$10,FALSE),0)","v":0},{"$f":"ROUND(F604*VLOOKUP(D604,ALLOCTABLE_Trans_Energy,$L$10,FALSE),0)","v":0},{"$f":"ROUND(F604*VLOOKUP(D604,ALLOCTABLE_Trans_Energy,$M$10,FALSE),0)","v":0},{"$f":"ROUND(F604*VLOOKUP(D604,ALLOCTABLE_Trans_Energy,$N$10,FALSE),0)","v":0},{"$f":"ROUND(F604*VLOOKUP(D604,ALLOCTABLE_Trans_Energy,$O$10,FALSE),0)","v":0},{"$f":"ROUND(F604*VLOOKUP(D604,ALLOCTABLE_Trans_Energy,$P$10,FALSE),0)","v":0},{"$f":"ROUND(F604*VLOOKUP(D604,ALLOCTABLE_Trans_Energy,$Q$10,FALSE),0)","v":0},{"$f":"SUM(G604:Q604)","v":0},{"$f":"F604-R604","v":0}]
[12,null,{"$f":"'FR-16(7)(v)-1 Functional'!C605","v":"  TOTAL MISCELLANEOUS TAXES"},null,null,{"$f":"SUM(F601:F604)","v":0},{"$f":"SUM(G601:G604)","v":0},{"$f":"SUM(H601:H604)","v":0},{"$f":"SUM(I601:I604)","v":0},{"$f":"SUM(J601:J604)","v":0},0,0,0,0,0,0,{"$f":"SUM($Q$601:$Q$604)","v":0},{"$f":"SUM(R601:R604)","v":0},{"$f":"SUM(S601:S604)","v":0}]
[13]
[14," MISCELLANEOUS EXPENSES"]
[15,null,{"$f":"'FR-16(7)(v)-1 Functional'!C608","v":"PSC MAINT. EXP ON INCREASE"},{"$f":"'FR-16(7)(v)-1 Functional'!D608","v":"K902"},null,{"$f":"'FR-16(7)(v)-6 TRANS Classified'!H608","v":0},{"$f":"F608-SUM(H608:Q608)","v":0},{"$f":"ROUND(F608*VLOOKUP(D608,ALLOCTABLE_Trans_Energy,$H$10,FALSE),0)","v":0},{"$f":"ROUND(F608*VLOOKUP(D608,ALLOCTABLE_Trans_Energy,$I$10,FALSE),0)","v":0},{"$f":"ROUND(F608*VLOOKUP(D608,ALLOCTABLE_Trans_Energy,$J$10,FALSE),0)","v":0},{"$f":"ROUND(F608*VLOOKUP(D608,ALLOCTABLE_Trans_Energy,$K$10,FALSE),0)","v":0},{"$f":"ROUND(F608*VLOOKUP(D608,ALLOCTABLE_Trans_Energy,$L$10,FALSE),0)","v":0},{"$f":"ROUND(F608*VLOOKUP(D608,ALLOCTABLE_Trans_Energy,$M$10,FALSE),0)","v":0},{"$f":"ROUND(F608*VLOOKUP(D608,ALLOCTABLE_Trans_Energy,$N$10,FALSE),0)","v":0},{"$f":"ROUND(F608*VLOOKUP(D608,ALLOCTABLE_Trans_Energy,$O$10,FALSE),0)","v":0},{"$f":"ROUND(F608*VLOOKUP(D608,ALLOCTABLE_Trans_Energy,$P$10,FALSE),0)","v":0},{"$f":"ROUND(F608*VLOOKUP(D608,ALLOCTABLE_Trans_Energy,$Q$10,FALSE),0)","v":0},{"$f":"SUM(G608:Q608)","v":0},{"$f":"F608-R608","v":0}]
[16,null,{"$f":"'FR-16(7)(v)-1 Functional'!C609","v":"RESERVED FOR FUTURE USE"},{"$f":"'FR-16(7)(v)-1 Functional'!D609","v":"K902"},null,{"$f":"'FR-16(7)(v)-6 TRANS Classified'!H609","v":0},{"$f":"F609-SUM(H609:Q609)","v":0},{"$f":"ROUND(F609*VLOOKUP(D609,ALLOCTABLE_Trans_Energy,$H$10,FALSE),0)","v":0},{"$f":"ROUND(F609*VLOOKUP(D609,ALLOCTABLE_Trans_Energy,$I$10,FALSE),0)","v":0},{"$f":"ROUND(F609*VLOOKUP(D609,ALLOCTABLE_Trans_Energy,$J$10,FALSE),0)","v":0},{"$f":"ROUND(F609*VLOOKUP(D609,ALLOCTABLE_Trans_Energy,$K$10,FALSE),0)","v":0},{"$f":"ROUND(F609*VLOOKUP(D609,ALLOCTABLE_Trans_Energy,$L$10,FALSE),0)","v":0},{"$f":"ROUND(F609*VLOOKUP(D609,ALLOCTABLE_Trans_Energy,$M$10,FALSE),0)","v":0},{"$f":"ROUND(F609*VLOOKUP(D609,ALLOCTABLE_Trans_Energy,$N$10,FALSE),0)","v":0},{"$f":"ROUND(F609*VLOOKUP(D609,ALLOCTABLE_Trans_Energy,$O$10,FALSE),0)","v":0},{"$f":"ROUND(F609*VLOOKUP(D609,ALLOCTABLE_Trans_Energy,$P$10,FALSE),0)","v":0},{"$f":"ROUND(F609*VLOOKUP(D609,ALLOCTABLE_Trans_Energy,$Q$10,FALSE),0)","v":0},{"$f":"SUM(G609:Q609)","v":0},{"$f":"F609-R609","v":0}]
[17,null,{"$f":"'FR-16(7)(v)-1 Functional'!C610","v":"  TOTAL MISCELLANEOUS EXPENSES"},null,null,{"$f":"SUM(F608:F609)","v":0},{"$f":"SUM(G608:G609)","v":0},{"$f":"SUM(H608:H609)","v":0},{"$f":"SUM(I608:I609)","v":0},{"$f":"SUM(J608:J609)","v":0},0,0,0,0,0,0,{"$f":"SUM($Q$608:$Q$609)","v":0},{"$f":"SUM(R608:R609)","v":0},{"$f":"SUM(S608:S609)","v":0}]
[18]
[19,"TOTAL OTHER TAX & MISC EXPENSE",null,null," ",{"$f":"F605+F598+F610","v":0},{"$f":"G605+G598+G610","v":0},{"$f":"H605+H598+H610","v":0},{"$f":"I605+I598+I610","v":0},{"$f":"J605+J598+J610","v":0},0,0,0,0,0,0,{"$f":"$Q$605+$Q$598+$Q$610","v":0},{"$f":"R605+R598+R610","v":0},{"$f":"S605+S598+S610","v":0}]
[20]
[21,"PRELIMINARY SUMMARY"]
[22,null,{"$f":"'FR-16(7)(v)-1 Functional'!C615","v":"TOTAL O&M EXPENSE"},null,null,{"$f":"F549","v":0},{"$f":"G549","v":0},{"$f":"H549","v":0},{"$f":"I549","v":0},{"$f":"J549","v":0},0,0,0,0,0,0,{"$f":"Q549","v":0},{"$f":"R549","v":0},{"$f":"S549","v":0}]
[23,null,{"$f":"'FR-16(7)(v)-1 Functional'!C616","v":"TOTAL DEPRECIATION EXPENSE"},null,null,{"$f":"F582","v":0},{"$f":"G582","v":0},{"$f":"H582","v":0},{"$f":"I582","v":0},{"$f":"J582","v":0},0,0,0,0,0,0,{"$f":"Q582","v":0},{"$f":"R582","v":0},{"$f":"S582","v":0}]
[24,null,{"$f":"'FR-16(7)(v)-1 Functional'!C617","v":"TOTAL OTHER TAX & MISC EXPENSE"},null,null,{"$f":"F612","v":0},{"$f":"G612","v":0},{"$f":"H612","v":0},{"$f":"I612","v":0},{"$f":"J612","v":0},0,0,0,0,0,0,{"$f":"$Q$612","v":0},{"$f":"R612","v":0},{"$f":"S612","v":0}]
[25,null,{"$f":"'FR-16(7)(v)-1 Functional'!C618","v":"  TOTAL OPER EXP EXCL INCOME & REV TAX"},null,null,{"$f":"SUM(F615:F617)","v":0},{"$f":"SUM(G615:G617)","v":0},{"$f":"SUM(H615:H617)","v":0},{"$f":"SUM(I615:I617)","v":0},{"$f":"SUM(J615:J617)","v":0},0,0,0,0,0,0,{"$f":"SUM($Q$615:$Q$617)","v":0},{"$f":"SUM(R615:R617)","v":0},{"$f":"SUM(S615:S617)","v":0}]
[]
[{"$f":"co_name","v":"DUKE ENERGY KENTUCKY, INC."},null,null,null,null,null,null,null,null,null,null,null,null,null,null,null,null,{"$f":"R1","v":"FR-16(7)(v)-8"}]
[{"$f":"$A$2","v":"TRANSMISSION ENERGY ALLOCATED - ELECTRIC COST OF SERVICE"},null,null,null,null,null,null,null,null,null,null,null,null,null,null,null,null,{"$f":"R2","v":"WITNESS RESPONSIBLE:"}]
[{"$f":"case_name","v":"CASE NO: 2019-00271"},null,null,null,null,null,null,null,null,null,null,null,null,null,null,null,null,{"$f":"Witness","v":"JAMES E. ZIOLKOWSKI"}]
[{"$f":"data_filing","v":"DATA: 12 MONTHS ACTUAL  & 0 MONTHS ESTIMATED"},null,null,null,null,null,null,null,null,null,null,null,null,null,null,null,null,{"$f":"\"PAGE \"&Pages-6&\" OF \"&Pages","v":"PAGE 12 OF 18"}]
[{"$f":"type","v":"TYPE OF FILING: \"X\" ORIGINAL   UPDATED    REVISED  "}]
[]
[null,null,null,null,null,{"$f":"F$7","v":"TOTAL"},null,{"$f":"H$7","v":"DS"},{"$f":"I$7","v":"GSFL"},{"$f":"J$7","v":"EH"},{"$f":"K$7","v":"SP"},"DT SEC","DT PRI","DP","TT",null,"OTHER"]
["LINE",null,null,null,null,{"$f":"F$8","v":"TRANSMISSION"},{"$f":"G$8","v":"RS"},{"$f":"H$8","v":"SECONDARY"},{"$f":"I$8","v":"SECONDARY"},{"$f":"J$8","v":"SECONDARY"},{"$f":"K$8","v":"SECONDARY"},"SECONDARY","PRIMARY","PRIMARY","TRANSMISSION","LT","WATER",{"$f":"R8","v":"TOTAL"},"ALL"]
["NO.","FEDERAL INCOME TAX BASED ON RETURN",null,"ALLO",null,{"$f":"F$9","v":"ENERGY"},{"$f":"G$9","v":"RESIDENTIAL"},{"$f":"H$9","v":"DISTRIBUTION"},{"$f":"I$9","v":"DISTRIBUTION"},{"$f":"J$9","v":"DISTRIBUTION"},{"$f":"K$9","v":"DISTRIBUTION"},"DISTRIBUTION","DISTRIBUTION","DISTRIBUTION","TIME OF DAY","LIGHTING","PUMPING",{"$f":"R9","v":"AT ISSUE"},"OTHER"]
[null,null,"Schedule 9",null,null,null,{"$f":"G$10","v":3},{"$f":"H$10","v":4},{"$f":"I$10","v":5},{"$f":"J$10","v":6},{"$f":"K$10","v":7},8,9,10,11,12,13,null," "]
[1,"FEDERAL INCOME TAX DEDUCTIONS"]
[2," AUTOMATIC INTEREST CALCULATION",null,null,null," "]
[3,null,{"$f":"'FR-16(7)(v)-1 Functional'!C632","v":"AUTO PROC INTEREST DED"},{"$f":"'FR-16(7)(v)-1 Functional'!D632","v":"RB99"},null,{"$f":"'FR-16(7)(v)-6 TRANS Classified'!H632","v":0},{"$f":"F632-SUM(H632:Q632)","v":0},{"$f":"ROUND(F632*VLOOKUP(D632,ALLOCTABLE_Trans_Energy,$H$10,FALSE),0)","v":0},{"$f":"ROUND(F632*VLOOKUP(D632,ALLOCTABLE_Trans_Energy,$I$10,FALSE),0)","v":0},{"$f":"ROUND(F632*VLOOKUP(D632,ALLOCTABLE_Trans_Energy,$J$10,FALSE),0)","v":0},{"$f":"ROUND(F632*VLOOKUP(D632,ALLOCTABLE_Trans_Energy,$K$10,FALSE),0)","v":0},{"$f":"ROUND(F632*VLOOKUP(D632,ALLOCTABLE_Trans_Energy,$L$10,FALSE),0)","v":0},{"$f":"ROUND(F632*VLOOKUP(D632,ALLOCTABLE_Trans_Energy,$M$10,FALSE),0)","v":0},{"$f":"ROUND(F632*VLOOKUP(D632,ALLOCTABLE_Trans_Energy,$N$10,FALSE),0)","v":0},{"$f":"ROUND(F632*VLOOKUP(D632,ALLOCTABLE_Trans_Energy,$O$10,FALSE),0)","v":0},{"$f":"ROUND(F632*VLOOKUP(D632,ALLOCTABLE_Trans_Energy,$P$10,FALSE),0)","v":0},{"$f":"ROUND(F632*VLOOKUP(D632,ALLOCTABLE_Trans_Energy,$Q$10,FALSE),0)","v":0},{"$f":"SUM(G632:Q632)","v":0},{"$f":"F632-R632","v":0}]
[4,null,{"$f":"'FR-16(7)(v)-1 Functional'!C633","v":"  TOTAL INTEREST EXPENSE"},null,null,{"$f":"F632","v":0},{"$f":"G632","v":0},{"$f":"H632","v":0},{"$f":"I632","v":0},{"$f":"J632","v":0},0,0,0,0,0,0,{"$f":"$Q$632","v":0},{"$f":"R632","v":0},{"$f":"S632","v":0}]
[5]
[6," OTHER DEDUCTIONS"]
[7,null,{"$f":"'FR-16(7)(v)-1 Functional'!C636","v":"DEPREC EXCESS TAX-BOOK"},{"$f":"'FR-16(7)(v)-1 Functional'!D636","v":"DE49"},null,{"$f":"'FR-16(7)(v)-6 TRANS Classified'!H636","v":0},{"$f":"F636-SUM(H636:Q636)","v":0},{"$f":"ROUND(F636*VLOOKUP(D636,ALLOCTABLE_Trans_Energy,$H$10,FALSE),0)","v":0},{"$f":"ROUND(F636*VLOOKUP(D636,ALLOCTABLE_Trans_Energy,$I$10,FALSE),0)","v":0},{"$f":"ROUND(F636*VLOOKUP(D636,ALLOCTABLE_Trans_Energy,$J$10,FALSE),0)","v":0},{"$f":"ROUND(F636*VLOOKUP(D636,ALLOCTABLE_Trans_Energy,$K$10,FALSE),0)","v":0},{"$f":"ROUND(F636*VLOOKUP(D636,ALLOCTABLE_Trans_Energy,$L$10,FALSE),0)","v":0},{"$f":"ROUND(F636*VLOOKUP(D636,ALLOCTABLE_Trans_Energy,$M$10,FALSE),0)","v":0},{"$f":"ROUND(F636*VLOOKUP(D636,ALLOCTABLE_Trans_Energy,$N$10,FALSE),0)","v":0},{"$f":"ROUND(F636*VLOOKUP(D636,ALLOCTABLE_Trans_Energy,$O$10,FALSE),0)","v":0},{"$f":"ROUND(F636*VLOOKUP(D636,ALLOCTABLE_Trans_Energy,$P$10,FALSE),0)","v":0},{"$f":"ROUND(F636*VLOOKUP(D636,ALLOCTABLE_Trans_Energy,$Q$10,FALSE),0)","v":0},{"$f":"SUM(G636:Q636)","v":0},{"$f":"F636-R636","v":0}]
[8,null,{"$f":"'FR-16(7)(v)-1 Functional'!C637","v":"PERMANENT DIFFERENCES"},{"$f":"'FR-16(7)(v)-1 Functional'!D637","v":"A357"},null,{"$f":"'FR-16(7)(v)-6 TRANS Classified'!H637","v":0},{"$f":"F637-SUM(H637:Q637)","v":0},{"$f":"ROUND(F637*VLOOKUP(D637,ALLOCTABLE_Trans_Energy,$H$10,FALSE),0)","v":0},{"$f":"ROUND(F637*VLOOKUP(D637,ALLOCTABLE_Trans_Energy,$I$10,FALSE),0)","v":0},{"$f":"ROUND(F637*VLOOKUP(D637,ALLOCTABLE_Trans_Energy,$J$10,FALSE),0)","v":0},{"$f":"ROUND(F637*VLOOKUP(D637,ALLOCTABLE_Trans_Energy,$K$10,FALSE),0)","v":0},{"$f":"ROUND(F637*VLOOKUP(D637,ALLOCTABLE_Trans_Energy,$L$10,FALSE),0)","v":0},{"$f":"ROUND(F637*VLOOKUP(D637,ALLOCTABLE_Trans_Energy,$M$10,FALSE),0)","v":0},{"$f":"ROUND(F637*VLOOKUP(D637,ALLOCTABLE_Trans_Energy,$N$10,FALSE),0)","v":0},{"$f":"ROUND(F637*VLOOKUP(D637,ALLOCTABLE_Trans_Energy,$O$10,FALSE),0)","v":0},{"$f":"ROUND(F637*VLOOKUP(D637,ALLOCTABLE_Trans_Energy,$P$10,FALSE),0)","v":0},{"$f":"ROUND(F637*VLOOKUP(D637,ALLOCTABLE_Trans_Energy,$Q$10,FALSE),0)","v":0},{"$f":"SUM(G637:Q637)","v":0},{"$f":"F637-R637","v":0}]
[9,null,{"$f":"'FR-16(7)(v)-1 Functional'!C638","v":"TEMPORARY DIFFERENCES"},{"$f":"'FR-16(7)(v)-1 Functional'!D638","v":"DE49"},null,{"$f":"'FR-16(7)(v)-6 TRANS Classified'!H638","v":0},{"$f":"F638-SUM(H638:Q638)","v":0},{"$f":"ROUND(F638*VLOOKUP(D638,ALLOCTABLE_Trans_Energy,$H$10,FALSE),0)","v":0},{"$f":"ROUND(F638*VLOOKUP(D638,ALLOCTABLE_Trans_Energy,$I$10,FALSE),0)","v":0},{"$f":"ROUND(F638*VLOOKUP(D638,ALLOCTABLE_Trans_Energy,$J$10,FALSE),0)","v":0},{"$f":"ROUND(F638*VLOOKUP(D638,ALLOCTABLE_Trans_Energy,$K$10,FALSE),0)","v":0},{"$f":"ROUND(F638*VLOOKUP(D638,ALLOCTABLE_Trans_Energy,$L$10,FALSE),0)","v":0},{"$f":"ROUND(F638*VLOOKUP(D638,ALLOCTABLE_Trans_Energy,$M$10,FALSE),0)","v":0},{"$f":"ROUND(F638*VLOOKUP(D638,ALLOCTABLE_Trans_Energy,$N$10,FALSE),0)","v":0},{"$f":"ROUND(F638*VLOOKUP(D638,ALLOCTABLE_Trans_Energy,$O$10,FALSE),0)","v":0},{"$f":"ROUND(F638*VLOOKUP(D638,ALLOCTABLE_Trans_Energy,$P$10,FALSE),0)","v":0},{"$f":"ROUND(F638*VLOOKUP(D638,ALLOCTABLE_Trans_Energy,$Q$10,FALSE),0)","v":0},{"$f":"SUM(G638:Q638)","v":0},{"$f":"F638-R638","v":0}]
[10,null,{"$f":"'FR-16(7)(v)-1 Functional'!C639","v":"  TOTAL OTHER DEDUCTIONS"},null,null,{"$f":"SUM(F636:F638)","v":0},{"$f":"SUM(G636:G638)","v":0},{"$f":"SUM(H636:H638)","v":0},{"$f":"SUM(I636:I638)","v":0},{"$f":"SUM(J636:J638)","v":0},0,0,0,0,0,0,{"$f":"SUM($Q$636:$Q$638)","v":0},{"$f":"SUM(R636:R638)","v":0},{"$f":"SUM(S636:S638)","v":0}]
[11]
[12,"NET DEDUCTIONS AND ADDITIONS",null,null,null,{"$f":"F639+F633","v":0},{"$f":"G639+G633","v":0},{"$f":"H639+H633","v":0},{"$f":"I639+I633","v":0},{"$f":"J639+J633","v":0},0,0,0,0,0,0,{"$f":"$Q$639+$Q$633","v":0},{"$f":"R639+R633","v":0},{"$f":"S639+S633","v":0}]
[13]
[14," FED DEFERRED INCOME TAX (410 & 411)"]
[15,null,{"$f":"'FR-16(7)(v)-1 Functional'!C644","v":"DEFERRED INCOME TAXES - NET"},{"$f":"'FR-16(7)(v)-1 Functional'!D644","v":"OM39"},null,{"$f":"'FR-16(7)(v)-6 TRANS Classified'!H644","v":0},{"$f":"F644-SUM(H644:Q644)","v":0},{"$f":"ROUND(F644*VLOOKUP(D644,ALLOCTABLE_Trans_Energy,$H$10,FALSE),0)","v":0},{"$f":"ROUND(F644*VLOOKUP(D644,ALLOCTABLE_Trans_Energy,$I$10,FALSE),0)","v":0},{"$f":"ROUND(F644*VLOOKUP(D644,ALLOCTABLE_Trans_Energy,$J$10,FALSE),0)","v":0},{"$f":"ROUND(F644*VLOOKUP(D644,ALLOCTABLE_Trans_Energy,$K$10,FALSE),0)","v":0},{"$f":"ROUND(F644*VLOOKUP(D644,ALLOCTABLE_Trans_Energy,$L$10,FALSE),0)","v":0},{"$f":"ROUND(F644*VLOOKUP(D644,ALLOCTABLE_Trans_Energy,$M$10,FALSE),0)","v":0},{"$f":"ROUND(F644*VLOOKUP(D644,ALLOCTABLE_Trans_Energy,$N$10,FALSE),0)","v":0},{"$f":"ROUND(F644*VLOOKUP(D644,ALLOCTABLE_Trans_Energy,$O$10,FALSE),0)","v":0},{"$f":"ROUND(F644*VLOOKUP(D644,ALLOCTABLE_Trans_Energy,$P$10,FALSE),0)","v":0},{"$f":"ROUND(F644*VLOOKUP(D644,ALLOCTABLE_Trans_Energy,$Q$10,FALSE),0)","v":0},{"$f":"SUM(G644:Q644)","v":0},{"$f":"F644-R644","v":0}]
[16,null,{"$f":"'FR-16(7)(v)-1 Functional'!C645","v":"AMORT OF DEFERRED MERGER COST"},{"$f":"'FR-16(7)(v)-1 Functional'!D645","v":"A357"},null,{"$f":"'FR-16(7)(v)-6 TRANS Classified'!H645","v":0},{"$f":"F645-SUM(H645:Q645)","v":0},{"$f":"ROUND(F645*VLOOKUP(D645,ALLOCTABLE_Trans_Energy,$H$10,FALSE),0)","v":0},{"$f":"ROUND(F645*VLOOKUP(D645,ALLOCTABLE_Trans_Energy,$I$10,FALSE),0)","v":0},{"$f":"ROUND(F645*VLOOKUP(D645,ALLOCTABLE_Trans_Energy,$J$10,FALSE),0)","v":0},{"$f":"ROUND(F645*VLOOKUP(D645,ALLOCTABLE_Trans_Energy,$K$10,FALSE),0)","v":0},{"$f":"ROUND(F645*VLOOKUP(D645,ALLOCTABLE_Trans_Energy,$L$10,FALSE),0)","v":0},{"$f":"ROUND(F645*VLOOKUP(D645,ALLOCTABLE_Trans_Energy,$M$10,FALSE),0)","v":0},{"$f":"ROUND(F645*VLOOKUP(D645,ALLOCTABLE_Trans_Energy,$N$10,FALSE),0)","v":0},{"$f":"ROUND(F645*VLOOKUP(D645,ALLOCTABLE_Trans_Energy,$O$10,FALSE),0)","v":0},{"$f":"ROUND(F645*VLOOKUP(D645,ALLOCTABLE_Trans_Energy,$P$10,FALSE),0)","v":0},{"$f":"ROUND(F645*VLOOKUP(D645,ALLOCTABLE_Trans_Energy,$Q$10,FALSE),0)","v":0},{"$f":"SUM(G645:Q645)","v":0},{"$f":"F645-R645","v":0}]
[17,null,{"$f":"'FR-16(7)(v)-1 Functional'!C646","v":"DIT ADJUSTMENT - S/L DEPRECIATION"},{"$f":"'FR-16(7)(v)-1 Functional'!D646","v":"DE49"},null,{"$f":"'FR-16(7)(v)-6 TRANS Classified'!H646","v":0},{"$f":"F646-SUM(H646:Q646)","v":0},{"$f":"ROUND(F646*VLOOKUP(D646,ALLOCTABLE_Trans_Energy,$H$10,FALSE),0)","v":0},{"$f":"ROUND(F646*VLOOKUP(D646,ALLOCTABLE_Trans_Energy,$I$10,FALSE),0)","v":0},{"$f":"ROUND(F646*VLOOKUP(D646,ALLOCTABLE_Trans_Energy,$J$10,FALSE),0)","v":0},{"$f":"ROUND(F646*VLOOKUP(D646,ALLOCTABLE_Trans_Energy,$K$10,FALSE),0)","v":0},{"$f":"ROUND(F646*VLOOKUP(D646,ALLOCTABLE_Trans_Energy,$L$10,FALSE),0)","v":0},{"$f":"ROUND(F646*VLOOKUP(D646,ALLOCTABLE_Trans_Energy,$M$10,FALSE),0)","v":0},{"$f":"ROUND(F646*VLOOKUP(D646,ALLOCTABLE_Trans_Energy,$N$10,FALSE),0)","v":0},{"$f":"ROUND(F646*VLOOKUP(D646,ALLOCTABLE_Trans_Energy,$O$10,FALSE),0)","v":0},{"$f":"ROUND(F646*VLOOKUP(D646,ALLOCTABLE_Trans_Energy,$P$10,FALSE),0)","v":0},{"$f":"ROUND(F646*VLOOKUP(D646,ALLOCTABLE_Trans_Energy,$Q$10,FALSE),0)","v":0},{"$f":"SUM(G646:Q646)","v":0},{"$f":"F646-R646","v":0}]
[18,null,{"$f":"'FR-16(7)(v)-1 Functional'!C647","v":"DIT ADJUSTMENT - ARAM"},{"$f":"'FR-16(7)(v)-1 Functional'!D647","v":"K201"},null,{"$f":"'FR-16(7)(v)-6 TRANS Classified'!H647","v":0},{"$f":"F647-SUM(H647:Q647)","v":0},{"$f":"ROUND(F647*VLOOKUP(D647,ALLOCTABLE_Trans_Energy,$H$10,FALSE),0)","v":0},{"$f":"ROUND(F647*VLOOKUP(D647,ALLOCTABLE_Trans_Energy,$I$10,FALSE),0)","v":0},{"$f":"ROUND(F647*VLOOKUP(D647,ALLOCTABLE_Trans_Energy,$J$10,FALSE),0)","v":0},{"$f":"ROUND(F647*VLOOKUP(D647,ALLOCTABLE_Trans_Energy,$K$10,FALSE),0)","v":0},{"$f":"ROUND(F647*VLOOKUP(D647,ALLOCTABLE_Trans_Energy,$L$10,FALSE),0)","v":0},{"$f":"ROUND(F647*VLOOKUP(D647,ALLOCTABLE_Trans_Energy,$M$10,FALSE),0)","v":0},{"$f":"ROUND(F647*VLOOKUP(D647,ALLOCTABLE_Trans_Energy,$N$10,FALSE),0)","v":0},{"$f":"ROUND(F647*VLOOKUP(D647,ALLOCTABLE_Trans_Energy,$O$10,FALSE),0)","v":0},{"$f":"ROUND(F647*VLOOKUP(D647,ALLOCTABLE_Trans_Energy,$P$10,FALSE),0)","v":0},{"$f":"ROUND(F647*VLOOKUP(D647,ALLOCTABLE_Trans_Energy,$Q$10,FALSE),0)","v":0},{"$f":"SUM(G647:Q647)","v":0},{"$f":"F647-R647","v":0}]
[19,null,{"$f":"'FR-16(7)(v)-1 Functional'!C648","v":"DIT ADJUSTMENT - AMORT OF EXCESS DEF TAXES"},{"$f":"'FR-16(7)(v)-1 Functional'!D648","v":"A357"},null,{"$f":"'FR-16(7)(v)-6 TRANS Classified'!H648","v":0},{"$f":"F648-SUM(H648:Q648)","v":0},{"$f":"ROUND(F648*VLOOKUP(D648,ALLOCTABLE_Trans_Energy,$H$10,FALSE),0)","v":0},{"$f":"ROUND(F648*VLOOKUP(D648,ALLOCTABLE_Trans_Energy,$I$10,FALSE),0)","v":0},{"$f":"ROUND(F648*VLOOKUP(D648,ALLOCTABLE_Trans_Energy,$J$10,FALSE),0)","v":0},{"$f":"ROUND(F648*VLOOKUP(D648,ALLOCTABLE_Trans_Energy,$K$10,FALSE),0)","v":0},{"$f":"ROUND(F648*VLOOKUP(D648,ALLOCTABLE_Trans_Energy,$L$10,FALSE),0)","v":0},{"$f":"ROUND(F648*VLOOKUP(D648,ALLOCTABLE_Trans_Energy,$M$10,FALSE),0)","v":0},{"$f":"ROUND(F648*VLOOKUP(D648,ALLOCTABLE_Trans_Energy,$N$10,FALSE),0)","v":0},{"$f":"ROUND(F648*VLOOKUP(D648,ALLOCTABLE_Trans_Energy,$O$10,FALSE),0)","v":0},{"$f":"ROUND(F648*VLOOKUP(D648,ALLOCTABLE_Trans_Energy,$P$10,FALSE),0)","v":0},{"$f":"ROUND(F648*VLOOKUP(D648,ALLOCTABLE_Trans_Energy,$Q$10,FALSE),0)","v":0},{"$f":"SUM(G648:Q648)","v":0},{"$f":"F648-R648","v":0}]
[20,null,{"$f":"'FR-16(7)(v)-1 Functional'!C649","v":"  TOTAL FED DEF IT (410 & 411)"},null,null,{"$f":"SUM(F644:F648)","v":0},{"$f":"SUM(G644:G648)","v":0},{"$f":"SUM(H644:H648)","v":0},{"$f":"SUM(I644:I648)","v":0},{"$f":"SUM(J644:J648)","v":0},0,0,0,0,0,0,{"$f":"SUM($Q$644:$Q$648)","v":0},{"$f":"SUM(R644:R648)","v":0},{"$f":"SUM(S644:S648)","v":0}]
[21]
[22," AMORT INV TAX CREDIT"]
[23,null,{"$f":"'FR-16(7)(v)-1 Functional'!C652","v":"AMORTIZE ITC"},{"$f":"'FR-16(7)(v)-1 Functional'!D652","v":"NP29"},null,{"$f":"'FR-16(7)(v)-6 TRANS Classified'!H652","v":0},{"$f":"F652-SUM(H652:Q652)","v":0},{"$f":"ROUND(F652*VLOOKUP(D652,ALLOCTABLE_Trans_Energy,$H$10,FALSE),0)","v":0},{"$f":"ROUND(F652*VLOOKUP(D652,ALLOCTABLE_Trans_Energy,$I$10,FALSE),0)","v":0},{"$f":"ROUND(F652*VLOOKUP(D652,ALLOCTABLE_Trans_Energy,$J$10,FALSE),0)","v":0},{"$f":"ROUND(F652*VLOOKUP(D652,ALLOCTABLE_Trans_Energy,$K$10,FALSE),0)","v":0},{"$f":"ROUND(F652*VLOOKUP(D652,ALLOCTABLE_Trans_Energy,$L$10,FALSE),0)","v":0},{"$f":"ROUND(F652*VLOOKUP(D652,ALLOCTABLE_Trans_Energy,$M$10,FALSE),0)","v":0},{"$f":"ROUND(F652*VLOOKUP(D652,ALLOCTABLE_Trans_Energy,$N$10,FALSE),0)","v":0},{"$f":"ROUND(F652*VLOOKUP(D652,ALLOCTABLE_Trans_Energy,$O$10,FALSE),0)","v":0},{"$f":"ROUND(F652*VLOOKUP(D652,ALLOCTABLE_Trans_Energy,$P$10,FALSE),0)","v":0},{"$f":"ROUND(F652*VLOOKUP(D652,ALLOCTABLE_Trans_Energy,$Q$10,FALSE),0)","v":0},{"$f":"SUM(G652:Q652)","v":0},{"$f":"F652-R652","v":0}]
[24,null,{"$f":"'FR-16(7)(v)-1 Functional'!C653","v":"  TOTAL AMORTIZED ITC"},null,null,{"$f":"SUM(F652:F652)","v":0},{"$f":"SUM(G652:G652)","v":0},{"$f":"SUM(H652:H652)","v":0},{"$f":"SUM(I652:I652)","v":0},{"$f":"SUM(J652:J652)","v":0},0,0,0,0,0,0,{"$f":"SUM($Q$652:$Q$652)","v":0},{"$f":"SUM(R652:R652)","v":0},{"$f":"SUM(S652:S652)","v":0}]
[25]
[26," OTHER FEDERAL TAX CREDITS"]
[27,null,{"$f":"'FR-16(7)(v)-1 Functional'!C656","v":"FUEL TAX CREDIT"},{"$f":"'FR-16(7)(v)-1 Functional'!D656","v":"K301"},null,{"$f":"'FR-16(7)(v)-6 TRANS Classified'!H656","v":0},{"$f":"F656-SUM(H656:Q656)","v":0},{"$f":"ROUND(F656*VLOOKUP(D656,ALLOCTABLE_Trans_Energy,$H$10,FALSE),0)","v":0},{"$f":"ROUND(F656*VLOOKUP(D656,ALLOCTABLE_Trans_Energy,$I$10,FALSE),0)","v":0},{"$f":"ROUND(F656*VLOOKUP(D656,ALLOCTABLE_Trans_Energy,$J$10,FALSE),0)","v":0},{"$f":"ROUND(F656*VLOOKUP(D656,ALLOCTABLE_Trans_Energy,$K$10,FALSE),0)","v":0},{"$f":"ROUND(F656*VLOOKUP(D656,ALLOCTABLE_Trans_Energy,$L$10,FALSE),0)","v":0},{"$f":"ROUND(F656*VLOOKUP(D656,ALLOCTABLE_Trans_Energy,$M$10,FALSE),0)","v":0},{"$f":"ROUND(F656*VLOOKUP(D656,ALLOCTABLE_Trans_Energy,$N$10,FALSE),0)","v":0},{"$f":"ROUND(F656*VLOOKUP(D656,ALLOCTABLE_Trans_Energy,$O$10,FALSE),0)","v":0},{"$f":"ROUND(F656*VLOOKUP(D656,ALLOCTABLE_Trans_Energy,$P$10,FALSE),0)","v":0},{"$f":"ROUND(F656*VLOOKUP(D656,ALLOCTABLE_Trans_Energy,$Q$10,FALSE),0)","v":0},{"$f":"SUM(G656:Q656)","v":0},{"$f":"F656-R656","v":0}]
[28,null,{"$f":"'FR-16(7)(v)-1 Functional'!C657","v":"R&D CREDIT - SECTION 41"},{"$f":"'FR-16(7)(v)-1 Functional'!D657","v":"A315"},null,{"$f":"'FR-16(7)(v)-6 TRANS Classified'!H657","v":0},{"$f":"F657-SUM(H657:Q657)","v":0},{"$f":"ROUND(F657*VLOOKUP(D657,ALLOCTABLE_Trans_Energy,$H$10,FALSE),0)","v":0},{"$f":"ROUND(F657*VLOOKUP(D657,ALLOCTABLE_Trans_Energy,$I$10,FALSE),0)","v":0},{"$f":"ROUND(F657*VLOOKUP(D657,ALLOCTABLE_Trans_Energy,$J$10,FALSE),0)","v":0},{"$f":"ROUND(F657*VLOOKUP(D657,ALLOCTABLE_Trans_Energy,$K$10,FALSE),0)","v":0},{"$f":"ROUND(F657*VLOOKUP(D657,ALLOCTABLE_Trans_Energy,$L$10,FALSE),0)","v":0},{"$f":"ROUND(F657*VLOOKUP(D657,ALLOCTABLE_Trans_Energy,$M$10,FALSE),0)","v":0},{"$f":"ROUND(F657*VLOOKUP(D657,ALLOCTABLE_Trans_Energy,$N$10,FALSE),0)","v":0},{"$f":"ROUND(F657*VLOOKUP(D657,ALLOCTABLE_Trans_Energy,$O$10,FALSE),0)","v":0},{"$f":"ROUND(F657*VLOOKUP(D657,ALLOCTABLE_Trans_Energy,$P$10,FALSE),0)","v":0},{"$f":"ROUND(F657*VLOOKUP(D657,ALLOCTABLE_Trans_Energy,$Q$10,FALSE),0)","v":0},{"$f":"SUM(G657:Q657)","v":0},{"$f":"F657-R657","v":0}]
[29,null,"  TOTAL OTHER FEDERAL TAX CREDITS",null,null,{"$f":"SUM(F656:F657)","v":0},{"$f":"SUM(G656:G657)","v":0},{"$f":"SUM(H656:H657)","v":0},{"$f":"SUM(I656:I657)","v":0},{"$f":"SUM(J656:J657)","v":0},0,0,0,0,0,0,{"$f":"SUM($Q$656:$Q$657)","v":0},{"$f":"SUM(R656:R657)","v":0},{"$f":"SUM(S656:S657)","v":0}]
[30]
[31,"PRELIMINARY SUMMARY"]
[32,null,{"$f":"'FR-16(7)(v)-1 Functional'!C661","v":"TOTAL FED DEF IT (410 & 411)"},null,null,{"$f":"F649","v":0},{"$f":"G649","v":0},{"$f":"H649","v":0},{"$f":"I649","v":0},{"$f":"J649","v":0},0,0,0,0,0,0,{"$f":"$Q$649","v":0},{"$f":"R649","v":0},{"$f":"S649","v":0}]
[33,null,{"$f":"'FR-16(7)(v)-1 Functional'!C662","v":"TOTAL AMORTIZED ITC & OTHER FEDERAL TAX CREDITS"},null,null,{"$f":"-F653-F658","v":0},{"$f":"-G653-G658","v":0},0,0,{"$f":"-J653-J658","v":0},0,0,0,0,0,0,0,0,0]
[34,null,{"$f":"'FR-16(7)(v)-1 Functional'!C663","v":"  TOTAL FEDERAL TAX ADJUSTMENTS"},null,null,{"$f":"SUM(F661:F662)","v":0},{"$f":"SUM(G661:G662)","v":0},{"$f":"SUM(H661:H662)","v":0},{"$f":"SUM(I661:I662)","v":0},{"$f":"SUM(J661:J662)","v":0},0,0,0,0,0,0,{"$f":"SUM($Q$661:$Q$662)","v":0},{"$f":"SUM(R661:R662)","v":0},{"$f":"SUM(S661:S662)","v":0}]
[35]
[36,"FEDERAL INCOME TAX COMPUTATION"]
[37,null,"RETURN ON RATE BASE",null,null,{"$f":"F433","v":0},{"$f":"G433","v":0},{"$f":"H433","v":0},{"$f":"I433","v":0},{"$f":"J433","v":0},0,0,0,0,0,0,{"$f":"Q433","v":0},{"$f":"R433","v":0},{"$f":"F666-R666","v":0}]
[38,null,{"$f":"'FR-16(7)(v)-1 Functional'!C667","v":"NET DEDUCTIONS AND ADDITIONS"},null,null,{"$f":"-F641","v":0},{"$f":"-G641","v":0},{"$f":"-H641","v":0},{"$f":"-I641","v":0},{"$f":"-J641","v":0},0,0,0,0,0,0,{"$f":"-$Q$641","v":0},{"$f":"-R641","v":0},{"$f":"F667-R667","v":0}]
[39,null,{"$f":"'FR-16(7)(v)-1 Functional'!C668","v":"TOTAL FEDERAL TAX ADJUSTMENTS"},null,null,{"$f":"F663","v":0},{"$f":"G663","v":0},{"$f":"H663","v":0},{"$f":"I663","v":0},{"$f":"J663","v":0},0,0,0,0,0,0,{"$f":"$Q$663","v":0},{"$f":"R663","v":0},{"$f":"F668-R668","v":0}]
[40,null,"TOTAL STATE PROV DEF IT (410 & 411)",null,null,{"$f":"F707","v":0},{"$f":"G707","v":0},{"$f":"H707","v":0},{"$f":"I707","v":0},{"$f":"J707","v":0},0,0,0,0,0,0,{"$f":"Q707","v":0},{"$f":"R707","v":0},{"$f":"F669-R669","v":0}]
[41,null,"RESERVED",null,null,{"$f":"F24","v":0},{"$f":"G24","v":0},{"$f":"H24","v":0},{"$f":"I24","v":0},{"$f":"J24","v":0},0,0,0,0,0,0,{"$f":"Q24","v":0},{"$f":"R24","v":0},{"$f":"F670-R670","v":0}]
[42,null,{"$f":"'FR-16(7)(v)-1 Functional'!C671","v":"  BASE FOR FIT COMPUATION"},null,null,{"$f":"SUM(F666:F670)","v":0},{"$f":"SUM(G666:G670)","v":0},{"$f":"SUM(H666:H670)","v":0},{"$f":"SUM(I666:I670)","v":0},{"$f":"SUM(J666:J670)","v":0},0,0,0,0,0,0,{"$f":"SUM($Q$666:$Q$670)","v":0},{"$f":"SUM(R666:R670)","v":0},{"$f":"SUM(S666:S670)","v":0}]
[43]
[44,null,{"$f":"'FR-16(7)(v)-1 Functional'!C673","v":"FIT FACTOR K190/(1-K190)"},null,null,{"$f":"ROUND(FIT/(1-FIT),9)","v":0.26582278500000001},0.26582278500000001,0.26582278500000001,0.26582278500000001,0.26582278500000001,0.26582278500000001,0.26582278500000001,0.26582278500000001,0.26582278500000001,0.26582278500000001,0.26582278500000001,0.26582278500000001,null,{"$f":"ROUND(R815/(1-R815),9)","v":0.26582278500000001}]
[45,null,{"$f":"'FR-16(7)(v)-1 Functional'!C674","v":"PRELIM FED INCOME TAX"},null,null,{"$f":"ROUND(F673*F671,0)","v":0},{"$f":"F674-SUM(H674:Q674)","v":0},{"$f":"ROUND(H671*H673,0)","v":0},{"$f":"ROUND(I671*I673,0)","v":0},{"$f":"ROUND(J671*J673,0)","v":0},0,0,0,0,0,0,{"$f":"ROUND($Q$671*$Q$673,0)","v":0},{"$f":"SUM(G674:Q674)","v":0},{"$f":"F674-R674","v":0}]
[46,null,{"$f":"'FR-16(7)(v)-1 Functional'!C675","v":"TOTAL FEDERAL TAX ADJUSTMENTS"},null,null,{"$f":"F663","v":0},{"$f":"G663","v":0},{"$f":"H663","v":0},{"$f":"I663","v":0},{"$f":"J663","v":0},0,0,0,0,0,0,{"$f":"$Q$663","v":0},{"$f":"R663","v":0},{"$f":"F675-R675","v":0}]
[47,null,{"$f":"'FR-16(7)(v)-1 Functional'!C676","v":"  NET FED INCOME TAX ALLOWABLE"},null,null,{"$f":"SUM(F674:F675)","v":0},{"$f":"SUM(G674:G675)","v":0},{"$f":"SUM(H674:H675)","v":0},{"$f":"SUM(I674:I675)","v":0},{"$f":"SUM(J674:J675)","v":0},0,0,0,0,0,0,{"$f":"SUM($Q$674:$Q$675)","v":0},{"$f":"SUM(R674:R675)","v":0},{"$f":"SUM(S674:S675)","v":0}]
[48]
[49,"INCOME TAX BASED ON RETURN"]
[50,"FEDERAL INCOME TAX PAYABLE"]
[51,null,{"$f":"'FR-16(7)(v)-1 Functional'!C680","v":"PRELIM FEDERAL INCOME TAX"},null,null,{"$f":"F674","v":0},{"$f":"G674","v":0},{"$f":"H674","v":0},{"$f":"I674","v":0},{"$f":"J674","v":0},0,0,0,0,0,0,{"$f":"$Q$674","v":0},{"$f":"R674","v":0},{"$f":"S674","v":0}]
[53,null,{"$f":"'FR-16(7)(v)-1 Functional'!C681","v":"  NET FED INCOME TAX PAYABLE"},null,null,{"$f":"SUM(F680:F680)","v":0},{"$f":"SUM(G680:G680)","v":0},{"$f":"SUM(H680:H680)","v":0},{"$f":"SUM(I680:I680)","v":0},{"$f":"SUM(J680:J680)","v":0},0,0,0,0,0,0,{"$f":"SUM($Q$680:$Q$680)","v":0},{"$f":"SUM(R680:R680)","v":0},{"$f":"SUM(S680:S680)","v":0}]
[]
[{"$f":"co_name","v":"DUKE ENERGY KENTUCKY, INC."},null,null,null,null,null,null,null,null,null,null,null,null,null,null,null,null,{"$f":"R1","v":"FR-16(7)(v)-8"}]
[{"$f":"$A$2","v":"TRANSMISSION ENERGY ALLOCATED - ELECTRIC COST OF SERVICE"},null,null,null,null,null,null,null,null,null,null,null,null,null,null,null,null,{"$f":"R2","v":"WITNESS RESPONSIBLE:"}]
[{"$f":"case_name","v":"CASE NO: 2019-00271"},null,null,null,null,null,null,null,null,null,null,null,null,null,null,null,null,{"$f":"Witness","v":"JAMES E. ZIOLKOWSKI"}]
[{"$f":"data_filing","v":"DATA: 12 MONTHS ACTUAL  & 0 MONTHS ESTIMATED"},null,null,null,null,null,null,null,null,null,null,null,null,null,null,null,null,{"$f":"\"PAGE \"&Pages-5&\" OF \"&Pages","v":"PAGE 13 OF 18"}]
[{"$f":"type","v":"TYPE OF FILING: \"X\" ORIGINAL   UPDATED    REVISED  "}]
[]
[null,null,null,null,null,{"$f":"F$7","v":"TOTAL"},null,{"$f":"H$7","v":"DS"},{"$f":"I$7","v":"GSFL"},{"$f":"J$7","v":"EH"},{"$f":"K$7","v":"SP"},"DT SEC","DT PRI","DP","TT",null,"OTHER"]
["LINE",null,null,null,null,{"$f":"F$8","v":"TRANSMISSION"},{"$f":"G$8","v":"RS"},{"$f":"H$8","v":"SECONDARY"},{"$f":"I$8","v":"SECONDARY"},{"$f":"J$8","v":"SECONDARY"},{"$f":"K$8","v":"SECONDARY"},"SECONDARY","PRIMARY","PRIMARY","TRANSMISSION","LT","WATER",{"$f":"R8","v":"TOTAL"},"ALL"]
["NO.","STATE INCOME TAX BASED ON RETURN",null,"Allo",null,{"$f":"F$9","v":"ENERGY"},{"$f":"G$9","v":"RESIDENTIAL"},{"$f":"H$9","v":"DISTRIBUTION"},{"$f":"I$9","v":"DISTRIBUTION"},{"$f":"J$9","v":"DISTRIBUTION"},{"$f":"K$9","v":"DISTRIBUTION"},"DISTRIBUTION","DISTRIBUTION","DISTRIBUTION","TIME OF DAY","LIGHTING","PUMPING",{"$f":"R9","v":"AT ISSUE"},"OTHER"]
[null,null,"Schedule 9.1",null,null,null,{"$f":"G$10","v":3},{"$f":"H$10","v":4},{"$f":"I$10","v":5},{"$f":"J$10","v":6},{"$f":"K$10","v":7},8,9,10,11,12,13,null," "]
[1,"DEDUCTIONS IN ADDITION TO Y871"]
[2,"KY TAXABLE INCOME ADJUSTMENT",null,{"$f":"'FR-16(7)(v)-1 Functional'!D694","v":"NP29"},null,{"$f":"'FR-16(7)(v)-6 TRANS Classified'!H694","v":0},{"$f":"F694-SUM(H694:Q694)","v":0},{"$f":"ROUND(F694*VLOOKUP(D694,ALLOCTABLE_Trans_Energy,$H$10,FALSE),0)","v":0},{"$f":"ROUND(F694*VLOOKUP(D694,ALLOCTABLE_Trans_Energy,$I$10,FALSE),0)","v":0},{"$f":"ROUND(F694*VLOOKUP(D694,ALLOCTABLE_Trans_Energy,$J$10,FALSE),0)","v":0},{"$f":"ROUND(F694*VLOOKUP(D694,ALLOCTABLE_Trans_Energy,$K$10,FALSE),0)","v":0},{"$f":"ROUND(F694*VLOOKUP(D694,ALLOCTABLE_Trans_Energy,$L$10,FALSE),0)","v":0},{"$f":"ROUND(F694*VLOOKUP(D694,ALLOCTABLE_Trans_Energy,$M$10,FALSE),0)","v":0},{"$f":"ROUND(F694*VLOOKUP(D694,ALLOCTABLE_Trans_Energy,$N$10,FALSE),0)","v":0},{"$f":"ROUND(F694*VLOOKUP(D694,ALLOCTABLE_Trans_Energy,$O$10,FALSE),0)","v":0},{"$f":"ROUND(F694*VLOOKUP(D694,ALLOCTABLE_Trans_Energy,$P$10,FALSE),0)","v":0},{"$f":"ROUND(F694*VLOOKUP(D694,ALLOCTABLE_Trans_Energy,$Q$10,FALSE),0)","v":0},{"$f":"SUM(G694:Q694)","v":0},{"$f":"F694-R694","v":0}]
[3,"RESERVED FOR FUTURE USE",null,{"$f":"'FR-16(7)(v)-1 Functional'!D695","v":"NP29"},null,{"$f":"'FR-16(7)(v)-6 TRANS Classified'!H695","v":0},{"$f":"F695-SUM(H695:Q695)","v":0},{"$f":"ROUND(F695*VLOOKUP(D695,ALLOCTABLE_Trans_Energy,$H$10,FALSE),0)","v":0},{"$f":"ROUND(F695*VLOOKUP(D695,ALLOCTABLE_Trans_Energy,$I$10,FALSE),0)","v":0},{"$f":"ROUND(F695*VLOOKUP(D695,ALLOCTABLE_Trans_Energy,$J$10,FALSE),0)","v":0},{"$f":"ROUND(F695*VLOOKUP(D695,ALLOCTABLE_Trans_Energy,$K$10,FALSE),0)","v":0},{"$f":"ROUND(F695*VLOOKUP(D695,ALLOCTABLE_Trans_Energy,$L$10,FALSE),0)","v":0},{"$f":"ROUND(F695*VLOOKUP(D695,ALLOCTABLE_Trans_Energy,$M$10,FALSE),0)","v":0},{"$f":"ROUND(F695*VLOOKUP(D695,ALLOCTABLE_Trans_Energy,$N$10,FALSE),0)","v":0},{"$f":"ROUND(F695*VLOOKUP(D695,ALLOCTABLE_Trans_Energy,$O$10,FALSE),0)","v":0},{"$f":"ROUND(F695*VLOOKUP(D695,ALLOCTABLE_Trans_Energy,$P$10,FALSE),0)","v":0},{"$f":"ROUND(F695*VLOOKUP(D695,ALLOCTABLE_Trans_Energy,$Q$10,FALSE),0)","v":0},{"$f":"SUM(G695:Q695)","v":0},{"$f":"F695-R695","v":0}]
[4,"  DEDUCTIONS IN ADD TO Y871",null,null,null,{"$f":"SUM(F694:F695)","v":0},{"$f":"SUM(G694:G695)","v":0},0,0,{"$f":"SUM(J694:J695)","v":0},0,0,0,0,0,0,0,0,0]
[5]
[6,"STATE INCOME TAX ADJUSTMENTS"]
[7,"STATE PROV DEF INC TAX (410 & 411)"]
[8,"OTHER DEFERRED INCOME TAXES - NET",null,{"$f":"'FR-16(7)(v)-1 Functional'!D700","v":"A357"},null,{"$f":"'FR-16(7)(v)-6 TRANS Classified'!H700","v":0},{"$f":"F700-SUM(H700:Q700)","v":0},{"$f":"ROUND(F700*VLOOKUP(D700,ALLOCTABLE_Trans_Energy,$H$10,FALSE),0)","v":0},{"$f":"ROUND(F700*VLOOKUP(D700,ALLOCTABLE_Trans_Energy,$I$10,FALSE),0)","v":0},{"$f":"ROUND(F700*VLOOKUP(D700,ALLOCTABLE_Trans_Energy,$J$10,FALSE),0)","v":0},{"$f":"ROUND(F700*VLOOKUP(D700,ALLOCTABLE_Trans_Energy,$K$10,FALSE),0)","v":0},{"$f":"ROUND(F700*VLOOKUP(D700,ALLOCTABLE_Trans_Energy,$L$10,FALSE),0)","v":0},{"$f":"ROUND(F700*VLOOKUP(D700,ALLOCTABLE_Trans_Energy,$M$10,FALSE),0)","v":0},{"$f":"ROUND(F700*VLOOKUP(D700,ALLOCTABLE_Trans_Energy,$N$10,FALSE),0)","v":0},{"$f":"ROUND(F700*VLOOKUP(D700,ALLOCTABLE_Trans_Energy,$O$10,FALSE),0)","v":0},{"$f":"ROUND(F700*VLOOKUP(D700,ALLOCTABLE_Trans_Energy,$P$10,FALSE),0)","v":0},{"$f":"ROUND(F700*VLOOKUP(D700,ALLOCTABLE_Trans_Energy,$Q$10,FALSE),0)","v":0},{"$f":"SUM(G700:Q700)","v":0},{"$f":"F700-R700","v":0}]
[9,"  TOT STATE PROV DEF IT (410 & 411)",null,null,null,{"$f":"SUM(F700)","v":0},{"$f":"SUM(G700)","v":0},0,0,{"$f":"SUM(J700)","v":0},0,0,0,0,0,0,0,0,0]
[10]
[11,"OTHER SIT ADJUSTMENTS"]
[12,"CURRENT YEAR PAYABLE ADJUSTMENT",null,{"$f":"'FR-16(7)(v)-1 Functional'!D704","v":"NP29"},null,{"$f":"'FR-16(7)(v)-6 TRANS Classified'!H704","v":0},{"$f":"F704-SUM(H704:Q704)","v":0},{"$f":"ROUND(F704*VLOOKUP(D704,ALLOCTABLE_Trans_Energy,$H$10,FALSE),0)","v":0},{"$f":"ROUND(F704*VLOOKUP(D704,ALLOCTABLE_Trans_Energy,$I$10,FALSE),0)","v":0},{"$f":"ROUND(F704*VLOOKUP(D704,ALLOCTABLE_Trans_Energy,$J$10,FALSE),0)","v":0},{"$f":"ROUND(F704*VLOOKUP(D704,ALLOCTABLE_Trans_Energy,$K$10,FALSE),0)","v":0},{"$f":"ROUND(F704*VLOOKUP(D704,ALLOCTABLE_Trans_Energy,$L$10,FALSE),0)","v":0},{"$f":"ROUND(F704*VLOOKUP(D704,ALLOCTABLE_Trans_Energy,$M$10,FALSE),0)","v":0},{"$f":"ROUND(F704*VLOOKUP(D704,ALLOCTABLE_Trans_Energy,$N$10,FALSE),0)","v":0},{"$f":"ROUND(F704*VLOOKUP(D704,ALLOCTABLE_Trans_Energy,$O$10,FALSE),0)","v":0},{"$f":"ROUND(F704*VLOOKUP(D704,ALLOCTABLE_Trans_Energy,$P$10,FALSE),0)","v":0},{"$f":"ROUND(F704*VLOOKUP(D704,ALLOCTABLE_Trans_Energy,$Q$10,FALSE),0)","v":0},{"$f":"SUM(G704:Q704)","v":0},{"$f":"F704-R704","v":0}]
[13,"  OTHER SIT ADJUSMENTS",null,null,null,{"$f":"SUM(F704)","v":0},{"$f":"SUM(G704)","v":0},{"$f":"SUM(H704)","v":0},{"$f":"SUM(I704)","v":0},{"$f":"SUM(J704)","v":0},0,0,0,0,0,0,{"$f":"SUM(Q704)","v":0},{"$f":"SUM(R704)","v":0},{"$f":"SUM(S704)","v":0}]
[14]
[15,"TOTAL STATE INC TAX ADJUSTMENT",null,null,null,{"$f":"F705+F701","v":0},{"$f":"G705+G701","v":0},{"$f":"H705+H701","v":0},{"$f":"I705+I701","v":0},{"$f":"J705+J701","v":0},0,0,0,0,0,0,{"$f":"Q705+Q701","v":0},{"$f":"R705+R701","v":0},{"$f":"S705+S701","v":0}]
[16]
[17,"INCOME TAX BASED ON RETURN"]
[18,"SUMMARY OF SIT CALCULATION"]
[19,"RETURN ON RATE BASE",null,null,null,{"$f":"F433","v":0},{"$f":"G433","v":0},{"$f":"H433","v":0},{"$f":"I433","v":0},{"$f":"J433","v":0},0,0,0,0,0,0,{"$f":"Q433","v":0},{"$f":"R433","v":0},{"$f":"S433","v":0}]
[20,"NET FED INCOME TAX ALLOWABLE",null,null,null,{"$f":"F676","v":0},{"$f":"G676","v":0},{"$f":"H676","v":0},{"$f":"I676","v":0},{"$f":"J676","v":0},0,0,0,0,0,0,{"$f":"Q676","v":0},{"$f":"R676","v":0},{"$f":"S676","v":0}]
[21,"NET FED. DED. AND ADDITIONS",null,null,null,{"$f":"-F641","v":0},{"$f":"-G641","v":0},{"$f":"-H641","v":0},{"$f":"-I641","v":0},{"$f":"-J641","v":0},0,0,0,0,0,0,{"$f":"-Q641","v":0},{"$f":"-R641","v":0},{"$f":"-S641","v":0}]
[22,"DEDUCTIONS IN ADD TO Y871",null,null,null,{"$f":"-F696","v":0},{"$f":"-G696","v":0},{"$f":"-H696","v":0},{"$f":"-I696","v":0},{"$f":"-J696","v":0},0,0,0,0,0,0,{"$f":"-Q696","v":0},{"$f":"-R696","v":0},{"$f":"-S696","v":0}]
[23,"RESERVED",null,null,null,{"$f":"F24","v":0},{"$f":"G24","v":0},{"$f":"H24","v":0},{"$f":"I24","v":0},{"$f":"J24","v":0},0,0,0,0,0,0,{"$f":"Q24","v":0},{"$f":"R24","v":0},{"$f":"S24","v":0}]
[24,"TOTAL STATE INC TAX ADJ",null,null,null,{"$f":"F707","v":0},{"$f":"G707","v":0},{"$f":"H707","v":0},{"$f":"I707","v":0},{"$f":"J707","v":0},0,0,0,0,0,0,{"$f":"Q707","v":0},{"$f":"R707","v":0},{"$f":"S707","v":0}]
[25,"  BASE FOR SIT COMPUTATION",null,null,null,{"$f":"SUM(F711:F716)","v":0},{"$f":"SUM(G711:G716)","v":0},{"$f":"SUM(H711:H716)","v":0},{"$f":"SUM(I711:I716)","v":0},{"$f":"SUM(J711:J716)","v":0},0,0,0,0,0,0,{"$f":"SUM(Q711:Q716)","v":0},{"$f":"SUM(R711:R716)","v":0},{"$f":"SUM(S711:S716)","v":0}]
[26]
[27,"SIT FACTOR K192/(1-K192)",null,null,null,{"$f":"ROUND(SIT/(1-SIT),8)","v":5.2282660000000002E-2},5.2282660000000002E-2,5.2282660000000002E-2,5.2282660000000002E-2,5.2282660000000002E-2,5.2282660000000002E-2,5.2282660000000002E-2,5.2282660000000002E-2,5.2282660000000002E-2,5.2282660000000002E-2,5.2282660000000002E-2,5.2282660000000002E-2,5.2282660000000002E-2,5.2282660000000002E-2]
[28,"PRELIMINARY STATE INCOME TAX",null,null,null,{"$f":"ROUND(F717*F719,0)","v":0},{"$f":"F720-SUM(H720:Q720)","v":0},{"$f":"ROUND(H717*H719,0)","v":0},{"$f":"ROUND(I717*I719,0)","v":0},{"$f":"ROUND(J717*J719,0)","v":0},0,0,0,0,0,0,{"$f":"ROUND(Q717*Q719,0)","v":0},{"$f":"SUM(G720:Q720)","v":0},{"$f":"F720-R720","v":0}]
[29,"TOTAL STATE INCOME TAX ADJ.",null,null,null,{"$f":"F707","v":0},{"$f":"G707","v":0},{"$f":"H707","v":0},{"$f":"I707","v":0},{"$f":"J707","v":0},0,0,0,0,0,0,{"$f":"Q707","v":0},{"$f":"SUM(G721:Q721)","v":0},{"$f":"F721-R721","v":0}]
[30,"  NET STATE INC TAX ALLOWABLE",null,null,null,{"$f":"F721+F720","v":0},0,0,0,{"$f":"J721+J720","v":0},0,0,0,0,0,0,0,0,{"$f":"S721+S720","v":0}]
[31]
[32,"STATE INCOME TAX PAYABLE"]
[33,"PRELIMINARY STATE INCOME TAX",null,null,null,{"$f":"F720","v":0},{"$f":"G720","v":0},{"$f":"H720","v":0},{"$f":"I720","v":0},{"$f":"J720","v":0},0,0,0,0,0,0,{"$f":"Q720","v":0},{"$f":"SUM(G725:Q725)","v":0},{"$f":"F725-R725","v":0}]
[34,"OTHER SIT ADJUSTMENTS",null,null,null,{"$f":"F705","v":0},{"$f":"G705","v":0},{"$f":"H705","v":0},{"$f":"I705","v":0},{"$f":"J705","v":0},0,0,0,0,0,0,{"$f":"Q705","v":0},{"$f":"SUM(G726:Q726)","v":0},{"$f":"F726-R726","v":0}]
[35,"  NET STATE INCOME TAX PAYABLE",null,null,null,{"$f":"F725+F726","v":0},0,0,0,{"$f":"J725+J726","v":0},0,0,0,0,0,0,0,0,{"$f":"S725+S726","v":0}]
[36]
[37,"COMPOSITE TAX RATE",null,null,null,{"$f":"(SIT*(1-FIT))+((1-SIT)*(1-FIT)*RevTax)+FIT","v":0.24925115},0.24925115,0.24925115,0.24925115,0.24925115,0.24925115,0.24925115,0.24925115,0.24925115,0.24925115,0.24925115,0.24925115,0.24925115,0.24925115]
[]
[{"$f":"co_name","v":"DUKE ENERGY KENTUCKY, INC."},null,null,null,null,null,null,null,null,null,null,null,null,null,null,null,null,{"$f":"R1","v":"FR-16(7)(v)-8"}]
[{"$f":"$A$2","v":"TRANSMISSION ENERGY ALLOCATED - ELECTRIC COST OF SERVICE"},null,null,null,null,null,null,null,null,null,null,null,null,null,null,null,null,{"$f":"R2","v":"WITNESS RESPONSIBLE:"}]
[{"$f":"case_name","v":"CASE NO: 2019-00271"},null,null,null,null,null,null,null,null,null,null,null,null,null,null,null,null,{"$f":"Witness","v":"JAMES E. ZIOLKOWSKI"}]
[{"$f":"data_filing","v":"DATA: 12 MONTHS ACTUAL  & 0 MONTHS ESTIMATED"},null,null,null,null,null,null,null,null,null,null,null,null,null,null,null,null,{"$f":"\"PAGE \"&Pages-4&\" OF \"&Pages","v":"PAGE 14 OF 18"}]
[{"$f":"type","v":"TYPE OF FILING: \"X\" ORIGINAL   UPDATED    REVISED  "}]
[]
[null,null,null,null,null,{"$f":"F$7","v":"TOTAL"},null,{"$f":"H$7","v":"DS"},{"$f":"I$7","v":"GSFL"},{"$f":"J$7","v":"EH"},{"$f":"K$7","v":"SP"},"DT SEC","DT PRI","DP","TT",null,"OTHER"]
["LINE",null,null,null,null,{"$f":"F$8","v":"TRANSMISSION"},{"$f":"G$8","v":"RS"},{"$f":"H$8","v":"SECONDARY"},{"$f":"I$8","v":"SECONDARY"},{"$f":"J$8","v":"SECONDARY"},{"$f":"K$8","v":"SECONDARY"},"SECONDARY","PRIMARY","PRIMARY","TRANSMISSION","LT","WATER",{"$f":"R8","v":"TOTAL"},"ALL"]
["NO.","COST OF SERVICE COMPUTATION",null,"ALLO",null,{"$f":"F$9","v":"ENERGY"},{"$f":"G$9","v":"RESIDENTIAL"},{"$f":"H$9","v":"DISTRIBUTION"},{"$f":"I$9","v":"DISTRIBUTION"},{"$f":"J$9","v":"DISTRIBUTION"},{"$f":"K$9","v":"DISTRIBUTION"},"DISTRIBUTION","DISTRIBUTION","DISTRIBUTION","TIME OF DAY","LIGHTING","PUMPING",{"$f":"R9","v":"AT ISSUE"},"OTHER"]
[null,null,"Schedule 10",null,null,null,{"$f":"G$10","v":3},{"$f":"H$10","v":4},{"$f":"I$10","v":5},{"$f":"J$10","v":6},{"$f":"K$10","v":7},8,9,10,11,12,13,null," "]
[1,"OTHER OPERATING REVENUES"]
[2,null,{"$f":"'FR-16(7)(v)-1 Functional'!C742","v":"MISC SERVICE REVENUE"},{"$f":"'FR-16(7)(v)-1 Functional'!D742","v":"D249"},null,{"$f":"'FR-16(7)(v)-6 TRANS Classified'!H742","v":0},{"$f":"F742-SUM(H742:Q742)","v":0},{"$f":"ROUND(F742*VLOOKUP(D742,ALLOCTABLE_Trans_Energy,$H$10,FALSE),0)","v":0},{"$f":"ROUND(F742*VLOOKUP(D742,ALLOCTABLE_Trans_Energy,$I$10,FALSE),0)","v":0},{"$f":"ROUND(F742*VLOOKUP(D742,ALLOCTABLE_Trans_Energy,$J$10,FALSE),0)","v":0},{"$f":"ROUND(F742*VLOOKUP(D742,ALLOCTABLE_Trans_Energy,$K$10,FALSE),0)","v":0},{"$f":"ROUND(F742*VLOOKUP(D742,ALLOCTABLE_Trans_Energy,$L$10,FALSE),0)","v":0},{"$f":"ROUND(F742*VLOOKUP(D742,ALLOCTABLE_Trans_Energy,$M$10,FALSE),0)","v":0},{"$f":"ROUND(F742*VLOOKUP(D742,ALLOCTABLE_Trans_Energy,$N$10,FALSE),0)","v":0},{"$f":"ROUND(F742*VLOOKUP(D742,ALLOCTABLE_Trans_Energy,$O$10,FALSE),0)","v":0},{"$f":"ROUND(F742*VLOOKUP(D742,ALLOCTABLE_Trans_Energy,$P$10,FALSE),0)","v":0},{"$f":"ROUND(F742*VLOOKUP(D742,ALLOCTABLE_Trans_Energy,$Q$10,FALSE),0)","v":0},{"$f":"SUM(G742:Q742)","v":0},{"$f":"F742-R742","v":0}]
[3,null,{"$f":"'FR-16(7)(v)-1 Functional'!C743","v":"INTERDEPARTMENTAL"},{"$f":"'FR-16(7)(v)-1 Functional'!D743","v":"K902"},null,{"$f":"'FR-16(7)(v)-6 TRANS Classified'!H743","v":0},0,0,0,0,0,0,0,0,0,0,0,0,0]
[4,null,{"$f":"'FR-16(7)(v)-1 Functional'!C744","v":"POLE & LINE ATTACHMENTS"},{"$f":"'FR-16(7)(v)-1 Functional'!D744","v":"D249"},null,{"$f":"'FR-16(7)(v)-6 TRANS Classified'!H744","v":0},0,0,0,0,0,0,0,0,0,0,0,0,0]
[5,null,{"$f":"'FR-16(7)(v)-1 Functional'!C745","v":"RENTS"},{"$f":"'FR-16(7)(v)-1 Functional'!D745","v":"D249"},null,{"$f":"'FR-16(7)(v)-6 TRANS Classified'!H745","v":0},0,0,0,0,0,0,0,0,0,0,0,0,0]
[6,null,{"$f":"'FR-16(7)(v)-1 Functional'!C746","v":"TRANSMISSION CHARGE PTP"},{"$f":"'FR-16(7)(v)-1 Functional'!D746","v":"T229"},null,{"$f":"'FR-16(7)(v)-6 TRANS Classified'!H746","v":0},{"$f":"F746-SUM(H746:Q746)","v":0},0,0,0,0,0,0,0,0,0,0,0,0]
[7,null,{"$f":"'FR-16(7)(v)-1 Functional'!C747","v":"PJM REACTIVE REVENUE"},{"$f":"'FR-16(7)(v)-1 Functional'!D747","v":"K401"},null,{"$f":"'FR-16(7)(v)-6 TRANS Classified'!H747","v":0},{"$f":"F747-SUM(H747:Q747)","v":0},0,0,0,0,0,0,0,0,0,0,0,0]
[8,null,{"$f":"'FR-16(7)(v)-1 Functional'!C748","v":"OTHER TRANSMISSION REVENUES"},{"$f":"'FR-16(7)(v)-1 Functional'!D748","v":"T229"},null,{"$f":"'FR-16(7)(v)-6 TRANS Classified'!H748","v":0},{"$f":"F748-SUM(H748:Q748)","v":0},0,0,0,0,0,0,0,0,0,0,0,0]
[9,null,{"$f":"'FR-16(7)(v)-1 Functional'!C749","v":"FIXED BILL PREMIUM"},{"$f":"'FR-16(7)(v)-1 Functional'!D749","v":"K902"},null,{"$f":"'FR-16(7)(v)-6 TRANS Classified'!H749","v":0},0,0,0,0,0,0,0,0,0,0,0,0,0]
[10,null,{"$f":"'FR-16(7)(v)-1 Functional'!C750","v":"  TOTAL OTHER OPERATING REVS"},null,null,{"$f":"SUM(F742:F749)","v":0},{"$f":"SUM(G742:G749)","v":0},{"$f":"SUM(H742:H749)","v":0},{"$f":"SUM(I742:I749)","v":0},{"$f":"SUM(J742:J749)","v":0},0,0,0,0,0,0,{"$f":"SUM($Q$742:$Q$749)","v":0},{"$f":"SUM(R742:R749)","v":0},{"$f":"SUM(S742:S749)","v":0}]
[11]
[12,"COST OF SERVICE COMPUTATION"]
[13,null,{"$f":"'FR-16(7)(v)-1 Functional'!C753","v":"TOTAL OP EXP EXC INC & REV TAX"},null,null,{"$f":"F618","v":0},{"$f":"G618","v":0},{"$f":"H618","v":0},{"$f":"I618","v":0},{"$f":"J618","v":0},0,0,0,0,0,0,{"$f":"$Q$618","v":0},{"$f":"R618","v":0},{"$f":"S618","v":0}]
[14,null,"RETURN ON RATE BASE",null,null,{"$f":"F433","v":0},{"$f":"G433","v":0},{"$f":"H433","v":0},{"$f":"I433","v":0},{"$f":"J433","v":0},0,0,0,0,0,0,{"$f":"Q433","v":0},{"$f":"R433","v":0},{"$f":"S433","v":0}]
[15,null,{"$f":"'FR-16(7)(v)-1 Functional'!C755","v":"NET FED INCOME TAX ALLOWABLE"},null,null,{"$f":"F676","v":0},{"$f":"G676","v":0},{"$f":"H676","v":0},{"$f":"I676","v":0},{"$f":"J676","v":0},0,0,0,0,0,0,{"$f":"$Q$676","v":0},{"$f":"R676","v":0},{"$f":"S676","v":0}]
[16,null,{"$f":"'FR-16(7)(v)-1 Functional'!C756","v":"NET STATE INCOME TAX ALLOWABLE"},null,null,{"$f":"F722","v":0},{"$f":"G722","v":0},0,0,{"$f":"J722","v":0},0,0,0,0,0,0,0,0,0]
[17,null,{"$f":"'FR-16(7)(v)-1 Functional'!C757","v":"TOTAL OTHER OPERATING REVENUES"},null,null,{"$f":"-F750","v":0},{"$f":"-G750","v":0},{"$f":"-H750","v":0},{"$f":"-I750","v":0},{"$f":"-J750","v":0},0,0,0,0,0,0,{"$f":"-$Q$750","v":0},{"$f":"-R750","v":0},{"$f":"-S750","v":0}]
[18,null,{"$f":"'FR-16(7)(v)-1 Functional'!C758","v":"  SUBTOTAL B"},null,null,{"$f":"SUM(F752:F757)","v":0},{"$f":"SUM(G752:G757)","v":0},{"$f":"SUM(H752:H757)","v":0},{"$f":"SUM(I752:I757)","v":0},{"$f":"SUM(J752:J757)","v":0},0,0,0,0,0,0,{"$f":"SUM($Q$752:$Q$757)","v":0},{"$f":"SUM(R752:R757)","v":0},{"$f":"R758-F758","v":0}]
[19]
[20,null,{"$f":"'FR-16(7)(v)-1 Functional'!C760","v":"TOTAL OTHER OPERATING REVENUES"},null,null,{"$f":"-F757","v":0},{"$f":"-G757","v":0},{"$f":"-H757","v":0},{"$f":"-I757","v":0},{"$f":"-J757","v":0},0,0,0,0,0,0,{"$f":"-$Q$757","v":0},{"$f":"-R757","v":0},{"$f":"-S757","v":0}]
[21,null,{"$f":"'FR-16(7)(v)-1 Functional'!C761","v":"LESS: REVS EXCL FROM REV TAX CALC"},null,null,{"$f":"F989","v":0},{"$f":"G989","v":0},{"$f":"H989","v":0},{"$f":"I989","v":0},{"$f":"J989","v":0},0,0,0,0,0,0,{"$f":"Q989","v":0},{"$f":"R989","v":0},{"$f":"S989","v":0}]
[22,null,{"$f":"'FR-16(7)(v)-1 Functional'!C762","v":"OTHER OPERATING REVS TO BE TAXED"},null,null,{"$f":"F760-F761","v":0},{"$f":"G760-G761","v":0},{"$f":"H760-H761","v":0},{"$f":"I760-I761","v":0},{"$f":"J760-J761","v":0},0,0,0,0,0,0,{"$f":"$Q$760-Q761","v":0},{"$f":"R760-R761","v":0},{"$f":"S760-S761","v":0}]
[23]
[24,null,{"$f":"'FR-16(7)(v)-1 Functional'!C764","v":"REVENUE TAX FACTOR"},null,null,{"$f":"ROUND(F817/(1-F817),8)","v":0},0,0,0,{"$f":"ROUND(J817/(1-J817),8)","v":0},0,0,0,0,0,0,0,0,0]
[25,null,{"$f":"'FR-16(7)(v)-1 Functional'!C765","v":"REVENUE TAX ON OTHER OPER. REVS"},null,null,{"$f":"ROUND(F764*F762,0)","v":0},{"$f":"ROUND(G764*G762,0)","v":0},{"$f":"ROUND(H764*H762,0)","v":0},{"$f":"ROUND(I764*I762,0)","v":0},{"$f":"ROUND(J764*J762,0)","v":0},0,0,0,0,0,0,{"$f":"ROUND(Q764*Q762,0)","v":0},{"$f":"SUM(G765:Q765)","v":0},{"$f":"ROUND(S764*S762,0)","v":0}]
[26,null,{"$f":"'FR-16(7)(v)-1 Functional'!C766","v":"REVENUE TAX ON COST OF SERVICE"},null,null,{"$f":"ROUND(F764*F758,0)","v":0},{"$f":"ROUND(G764*G758,0)","v":0},{"$f":"ROUND(H764*H758,0)","v":0},{"$f":"ROUND(I764*I758,0)","v":0},{"$f":"ROUND(J764*J758,0)","v":0},0,0,0,0,0,0,{"$f":"ROUND(Q764*$Q$758,0)","v":0},{"$f":"SUM(G766:Q766)","v":0},{"$f":"ROUND(S764*S758,0)","v":0}]
[27,null,{"$f":"'FR-16(7)(v)-1 Functional'!C767","v":"TOTAL REVENUE TAX"},null,null,{"$f":"F766+F765","v":0},{"$f":"G766+G765","v":0},{"$f":"H766+H765","v":0},{"$f":"I766+I765","v":0},{"$f":"J766+J765","v":0},0,0,0,0,0,0,{"$f":"Q766+Q765","v":0},{"$f":"R766+R765","v":0},{"$f":"S766+S765","v":0}]
[28]
[29,null,"RESERVED",null,null,{"$f":"F24","v":0},{"$f":"G24","v":0},{"$f":"H24","v":0},{"$f":"I24","v":0},{"$f":"J24","v":0},0,0,0,0,0,0,{"$f":"Q24","v":0},{"$f":"R24","v":0}]
[30,null,{"$f":"'FR-16(7)(v)-1 Functional'!C770","v":"  TOTAL ELECTRIC COST OF SERVICE"},null,null,{"$f":"F769+F767+F758","v":0},0,0,0,0,0,0,0,0,0,0,0,0,{"$f":"S767+S758","v":0}]
[31]
[32,"PROPOSED REVENUES",null,null,null,{"$f":"F868","v":0},{"$f":"G868","v":0},{"$f":"H868","v":0},{"$f":"I868","v":0},{"$f":"J868","v":0},0,0,0,0,0,0,{"$f":"Q868","v":0},{"$f":"R868","v":0},{"$f":"S868","v":0}]
[33,"TOTAL ELECTRIC COST OF SERVICE",null,null,null,{"$f":"-F770","v":0},{"$f":"-G770","v":0},{"$f":"-H770","v":0},{"$f":"-I770","v":0},{"$f":"-J770","v":0},0,0,0,0,0,0,{"$f":"-Q770","v":0},{"$f":"-R770","v":0},{"$f":"-S770","v":0}]
[34,"EXCESS REVENUES",null,null,null,{"$f":"F773+F772","v":0},{"$f":"G773+G772","v":0},{"$f":"H773+H772","v":0},{"$f":"I773+I772","v":0},{"$f":"J773+J772","v":0},0,0,0,0,0,0,{"$f":"Q773+Q772","v":0},{"$f":"SUM(G774:Q774)","v":0},{"$f":"F774-R774","v":0}]
[35,"COMPOSITE TAX RATE",null,null,null,{"$f":"F729","v":0.24925115},{"$f":"G729","v":0.24925115},0.24925115,0.24925115,{"$f":"J729","v":0.24925115},0.24925115,0.24925115,0.24925115,0.24925115,0.24925115,0.24925115,0.24925115,0.24925115,0.24925115]
[36,"EXCESS TAX",null,null,null,{"$f":"'FR-16(7)(v)-6 TRANS Classified'!H776","v":0},{"$f":"F776-SUM(H776:Q776)","v":0},{"$f":"ROUND(H775*H774,0)","v":0},{"$f":"ROUND(I775*I774,0)","v":0},{"$f":"ROUND(J775*J774,0)","v":0},0,0,0,0,0,0,{"$f":"ROUND(Q775*Q774,0)","v":0},{"$f":"SUM(G776:Q776)","v":0},{"$f":"F776-R776","v":0}]
[37,"EXCESS RETURN",null,null,null,{"$f":"F774-F776","v":0},{"$f":"G774-G776","v":0},{"$f":"H774-H776","v":0},{"$f":"I774-I776","v":0},{"$f":"J774-J776","v":0},0,0,0,0,0,0,{"$f":"Q774-Q776","v":0},{"$f":"SUM(G777:Q777)","v":0},{"$f":"F777-R777","v":0}]
[]
[{"$f":"co_name","v":"DUKE ENERGY KENTUCKY, INC."},null,null,null,null,null,null,null,null,null,null,null,null,null,null,null,null,{"$f":"R1","v":"FR-16(7)(v)-8"}]
[{"$f":"$A$2","v":"TRANSMISSION ENERGY ALLOCATED - ELECTRIC COST OF SERVICE"},null,null,null,null,null,null,null,null,null,null,null,null,null,null,null,null,{"$f":"R2","v":"WITNESS RESPONSIBLE:"}]
[{"$f":"case_name","v":"CASE NO: 2019-00271"},null,null,null,null,null,null,null,null,null,null,null,null,null,null,null,null,{"$f":"Witness","v":"JAMES E. ZIOLKOWSKI"}]
[{"$f":"data_filing","v":"DATA: 12 MONTHS ACTUAL  & 0 MONTHS ESTIMATED"},null,null,null,null,null,null,null,null,null,null,null,null,null,null,null,null,{"$f":"\"PAGE \"&Pages-3&\" OF \"&Pages","v":"PAGE 15 OF 18"}]
[{"$f":"type","v":"TYPE OF FILING: \"X\" ORIGINAL   UPDATED    REVISED  "}]
[]
[null,null,null,null,null,{"$f":"F$7","v":"TOTAL"},null,{"$f":"H$7","v":"DS"},{"$f":"I$7","v":"GSFL"},{"$f":"J$7","v":"EH"},{"$f":"K$7","v":"SP"},"DT SEC","DT PRI","DP","TT",null,"OTHER"]
["LINE",null,null,null,null,{"$f":"F$8","v":"TRANSMISSION"},{"$f":"G$8","v":"RS"},{"$f":"H$8","v":"SECONDARY"},{"$f":"I$8","v":"SECONDARY"},{"$f":"J$8","v":"SECONDARY"},{"$f":"K$8","v":"SECONDARY"},"SECONDARY","PRIMARY","PRIMARY","TRANSMISSION","LT","WATER",{"$f":"R8","v":"TOTAL"},"ALL"]
["NO.","ROR, TAX RATES & SPEC FACTORS",null,"ALLO",null,{"$f":"F$9","v":"ENERGY"},{"$f":"G$9","v":"RESIDENTIAL"},{"$f":"H$9","v":"DISTRIBUTION"},{"$f":"I$9","v":"DISTRIBUTION"},{"$f":"J$9","v":"DISTRIBUTION"},{"$f":"K$9","v":"DISTRIBUTION"},"DISTRIBUTION","DISTRIBUTION","DISTRIBUTION","TIME OF DAY","LIGHTING","PUMPING",{"$f":"R9","v":"AT ISSUE"},"OTHER"]
[null,null,"Schedule 11",null,null,null,{"$f":"G$10","v":3},{"$f":"H$10","v":4},{"$f":"I$10","v":5},{"$f":"J$10","v":6},{"$f":"K$10","v":7},8,9,10,11,12,13,null," "]
[1,"RATE OF RETURN"]
[2," CAPITALIZATION AMOUNTS",null,null,null,null,"RATIO"]
[3,null,{"$f":"'FR-16(7)(v)-1 Functional'!C791","v":"LONG TERM DEBT"},null,null,{"$f":"'FR-16(7)(v)-6 TRANS Classified'!$F$791","v":665948506},{"$f":"IF(TotalCap=0,0,ROUND(F791/TotalCap,4))","v":0.45929999999999999}]
[4,null,{"$f":"'FR-16(7)(v)-1 Functional'!C792","v":"PREFERRED STOCK"},null,null,{"$f":"'FR-16(7)(v)-6 TRANS Classified'!$F$792","v":0},{"$f":"IF(TotalCap=0,0,ROUND(F792/TotalCap,4))","v":0}]
[5,null,{"$f":"'FR-16(7)(v)-1 Functional'!C793","v":"COMMON STOCK"},null,null,{"$f":"[0]!Equity","v":699348680},{"$f":"1-G791-G792-G794-G795","v":0.48239999999999994}]
[6,null,{"$f":"'FR-16(7)(v)-1 Functional'!C794","v":"SHORT TERM DEBT"},null,null,{"$f":"'FR-16(7)(v)-6 TRANS Classified'!$F$794","v":84600060},{"$f":"IF(TotalCap=0,0,ROUND(F794/TotalCap,4))","v":5.8299999999999998E-2}]
[7,null,{"$f":"'FR-16(7)(v)-1 Functional'!C795","v":"UNAMORTIZED DISCOUNT"},null,null,{"$f":"'FR-16(7)(v)-6 TRANS Classified'!$F$795","v":0},{"$f":"IF(TotalCap=0,0,ROUND(F795/TotalCap,4))","v":0}]
[8,null,{"$f":"'FR-16(7)(v)-1 Functional'!C796","v":"  TOTAL"},null,null,{"$f":"SUM(F790:F795)","v":1449897246},{"$f":"SUM(G791:G795)","v":1}]
[9]
[10," COST OF CAPITAL"]
[11,null,{"$f":"'FR-16(7)(v)-1 Functional'!C799","v":"LONG TERM DEBT"},null,null,{"$f":"'FR-16(7)(v)-6 TRANS Classified'!$F$799","v":4.0730000000000002E-2}]
[12,null,{"$f":"'FR-16(7)(v)-1 Functional'!C800","v":"PREFERRED STOCK"},null,null,{"$f":"'FR-16(7)(v)-6 TRANS Classified'!$F$800","v":0}]
[13,null,{"$f":"'FR-16(7)(v)-1 Functional'!C801","v":"COMMON STOCK"},null,null,{"$f":"'FR-16(7)(v)-6 TRANS Classified'!$F$801","v":9.8000000000000004E-2}]
[14,null,{"$f":"'FR-16(7)(v)-1 Functional'!C802","v":"SHORT TERM DEBT"},null,null,{"$f":"'FR-16(7)(v)-6 TRANS Classified'!$F$802","v":1.9369999999999998E-2}]
[15,null,{"$f":"'FR-16(7)(v)-1 Functional'!C803","v":"UNAMORTIZED DISCOUNT"},null,null,{"$f":"'FR-16(7)(v)-6 TRANS Classified'!$F$803","v":0}]
[16]
[17," WEIGHTED COST OF CAPITAL"]
[18,null,{"$f":"'FR-16(7)(v)-1 Functional'!C806","v":"LONG TERM DEBT"},null,null,{"$f":"ROUND(G791*F799,4)","v":1.8700000000000001E-2}]
[19,null,{"$f":"'FR-16(7)(v)-1 Functional'!C807","v":"PREFERRED STOCK"},null,null,{"$f":"ROUND(G792*F800,4)","v":0}]
[20,null,{"$f":"'FR-16(7)(v)-1 Functional'!C808","v":"COMMON STOCK"},null,null,{"$f":"ROUND(G793*F801,4)","v":4.7300000000000002E-2}]
[21,null,{"$f":"'FR-16(7)(v)-1 Functional'!C809","v":"SHORT TERM DEBT"},null,null,{"$f":"ROUND(G794*F802,4)","v":1.1000000000000001E-3}]
[22,null,{"$f":"'FR-16(7)(v)-1 Functional'!C810","v":"UNAMORTIZED DISCOUNT"},null,null,{"$f":"ROUND(G795*F803,4)","v":0}]
[23,null,{"$f":"'FR-16(7)(v)-1 Functional'!C811","v":"  TOT RATE OF RETURN ALLOWABLE"},null,null,{"$f":"SUM(F806:F810)","v":6.7100000000000007E-2}]
[24]
[25,"TAX RATES AND SPECIAL FACTORS"]
[26,null,{"$f":"'FR-16(7)(v)-1 Functional'!C814","v":"SHORT TERM DEBT COST"},null,null,0,{"$f":"F814","v":0},{"$f":"F814","v":0},{"$f":"F814","v":0},{"$f":"G814","v":0},0,0,0,0,0,0,{"$f":"$F$814","v":0},{"$f":"F814","v":0},{"$f":"F814","v":0}]
[27,null,{"$f":"'FR-16(7)(v)-1 Functional'!C815","v":"FEDERAL INCOME TAX RATE"},null,null,{"$f":"FIT","v":0.21},{"$f":"FIT","v":0.21},0.21,0.21,0.21,0.21,0.21,0.21,0.21,0.21,0.21,0.21,0.21,0.21]
[28,null,{"$f":"'FR-16(7)(v)-1 Functional'!C816","v":"STATE INCOME TAX RATE"},null,null,{"$f":"SIT","v":4.9685000000000007E-2},{"$f":"SIT","v":4.9685000000000007E-2},4.9685000000000007E-2,4.9685000000000007E-2,4.9685000000000007E-2,4.9685000000000007E-2,4.9685000000000007E-2,4.9685000000000007E-2,4.9685000000000007E-2,4.9685000000000007E-2,4.9685000000000007E-2,4.9685000000000007E-2,4.9685000000000007E-2,4.9685000000000007E-2]
[29,null,{"$f":"'FR-16(7)(v)-1 Functional'!C817","v":"REVENUE TAX RATE"},null,null,0,{"$f":"RevTax","v":0},0,0,0,0,0,0,0,0,0,0,0,0]
[]
[{"$f":"co_name","v":"DUKE ENERGY KENTUCKY, INC."},null,null,null,null,null,null,null,null,null,null,null,null,null,null,null,null,{"$f":"R1","v":"FR-16(7)(v)-8"}]
[{"$f":"$A$2","v":"TRANSMISSION ENERGY ALLOCATED - ELECTRIC COST OF SERVICE"},null,null,null,null,null,null,null,null,null,null,null,null,null,null,null,null,{"$f":"R2","v":"WITNESS RESPONSIBLE:"}]
[{"$f":"case_name","v":"CASE NO: 2019-00271"},null,null,null,null,null,null,null,null,null,null,null,null,null,null,null,null,{"$f":"Witness","v":"JAMES E. ZIOLKOWSKI"}]
[{"$f":"data_filing","v":"DATA: 12 MONTHS ACTUAL  & 0 MONTHS ESTIMATED"},null,null,null,null,null,null,null,null,null,null,null,null,null,null,null,null,{"$f":"\"PAGE \"&Pages-2&\" OF \"&Pages","v":"PAGE 16 OF 18"}]
[{"$f":"type","v":"TYPE OF FILING: \"X\" ORIGINAL   UPDATED    REVISED  "}]
[]
[null,null,null,null,null,{"$f":"F$7","v":"TOTAL"},null,{"$f":"H$7","v":"DS"},{"$f":"I$7","v":"GSFL"},{"$f":"J$7","v":"EH"},{"$f":"K$7","v":"SP"},"DT SEC","DT PRI","DP","TT",null,"OTHER"]
["LINE",null,null,null,null,{"$f":"F$8","v":"TRANSMISSION"},{"$f":"G$8","v":"RS"},{"$f":"H$8","v":"SECONDARY"},{"$f":"I$8","v":"SECONDARY"},{"$f":"J$8","v":"SECONDARY"},{"$f":"K$8","v":"SECONDARY"},"SECONDARY","PRIMARY","PRIMARY","TRANSMISSION","LT","WATER",{"$f":"R8","v":"TOTAL"},"ALL",null,null,null,"RATE GRP"]
["NO.","ALLOCATORS",null,"SOURCE","ALLO",{"$f":"F$9","v":"ENERGY"},{"$f":"G$9","v":"RESIDENTIAL"},{"$f":"H$9","v":"DISTRIBUTION"},{"$f":"I$9","v":"DISTRIBUTION"},{"$f":"J$9","v":"DISTRIBUTION"},{"$f":"K$9","v":"DISTRIBUTION"},"DISTRIBUTION","DISTRIBUTION","DISTRIBUTION","TIME OF DAY","LIGHTING","PUMPING",{"$f":"R9","v":"AT ISSUE"},"OTHER",null,null,null,"CHECK"]
[null,null,"Schedule 12",null,1,null,{"$f":"G$10","v":3},{"$f":"H$10","v":4},{"$f":"I$10","v":5},{"$f":"J$10","v":6},{"$f":"K$10","v":7},8,9,10,11,12,13,null," "]
[1,"DEMAND ENERGY & SPEC. ASSIGN"]
[2,null,"TOTAL KW (12 COIN PEAK) - PRODUCTION","External",null,{"$f":"'WP FR-16(7)(v)-KW & KWH @Gen'!$D$38","v":717751},{"$f":"'WP FR-16(7)(v)-KW & KWH @Gen'!$D$17","v":323558},{"$f":"'WP FR-16(7)(v)-KW & KWH @Gen'!$D$18+'WP FR-16(7)(v)-KW & KWH @Gen'!$D$31","v":194251},{"$f":"'WP FR-16(7)(v)-KW & KWH @Gen'!$D$19","v":933},{"$f":"'WP FR-16(7)(v)-KW & KWH @Gen'!$D$20","v":3682},{"$f":"'WP FR-16(7)(v)-KW & KWH @Gen'!$D$21","v":51},{"$f":"'WP FR-16(7)(v)-KW & KWH @Gen'!$D$22+'WP FR-16(7)(v)-KW & KWH @Gen'!$D$32","v":96851},{"$f":"'WP FR-16(7)(v)-KW & KWH @Gen'!$D$23","v":64029},{"$f":"'WP FR-16(7)(v)-KW & KWH @Gen'!$D$24","v":3090},{"$f":"'WP FR-16(7)(v)-KW & KWH @Gen'!$D$25+'WP FR-16(7)(v)-KW & KWH @Gen'!$D$35","v":30336},{"$f":"'WP FR-16(7)(v)-KW & KWH @Gen'!$D$26","v":891},{"$f":"'WP FR-16(7)(v)-KW & KWH @Gen'!$D$27","v":79},{"$f":"SUM(G830:Q830)","v":717751},{"$f":"F830-R830","v":0}]
[3,null,{"$f":"'FR-16(7)(v)-1 Functional'!C831","v":"RATIO TO TOTAL ELECTRIC"},null,{"$f":"'FR-16(7)(v)-1 Functional'!E831","v":"K201"},{"$f":"IF($F830=0,0,ROUND(F830/$F830,5))","v":1},{"$f":"IF(S830=0,F831-SUM(H831:Q831),ROUND(G830/F830,5))","v":0.45077999999999985},{"$f":"IF($F$830=0,0,ROUND(H830/$F$830,5))","v":0.27063999999999999},{"$f":"IF($F$830=0,0,ROUND(I830/$F$830,5))","v":1.2999999999999999E-3},5.13E-3,6.9999999999999994E-5,0.13494,8.9209999999999998E-2,4.3099999999999996E-3,4.2270000000000002E-2,1.24E-3,1.1E-4,{"$f":"SUM(G831:Q831)","v":0.99999999999999989},{"$f":"F831-R831","v":0},null,null,null,{"$f":"R831","v":0.99999999999999989}]
[4,null,"TOTAL KW (12 COIN PEAK) - TRANSMISSION","External",null,{"$f":"'WP FR-16(7)(v)-KW & KWH @Gen'!D38","v":717751},{"$f":"'WP FR-16(7)(v)-KW & KWH @Gen'!D17","v":323558},{"$f":"'WP FR-16(7)(v)-KW & KWH @Gen'!D18+'WP FR-16(7)(v)-KW & KWH @Gen'!D31","v":194251},{"$f":"'WP FR-16(7)(v)-KW & KWH @Gen'!D19","v":933},{"$f":"'WP FR-16(7)(v)-KW & KWH @Gen'!D20","v":3682},{"$f":"'WP FR-16(7)(v)-KW & KWH @Gen'!D21","v":51},{"$f":"'WP FR-16(7)(v)-KW & KWH @Gen'!D22+'WP FR-16(7)(v)-KW & KWH @Gen'!D32","v":96851},{"$f":"'WP FR-16(7)(v)-KW & KWH @Gen'!D23","v":64029},{"$f":"'WP FR-16(7)(v)-KW & KWH @Gen'!D24","v":3090},{"$f":"'WP FR-16(7)(v)-KW & KWH @Gen'!D25+'WP FR-16(7)(v)-KW & KWH @Gen'!D35","v":30336},{"$f":"'WP FR-16(7)(v)-KW & KWH @Gen'!D26","v":891},{"$f":"'WP FR-16(7)(v)-KW & KWH @Gen'!D27","v":79},{"$f":"SUM(G832:Q832)","v":717751},{"$f":"F832-R832","v":0}]
[5,null,{"$f":"'FR-16(7)(v)-1 Functional'!C833","v":"RATIO TO TOTAL ELECTRIC"},null,"K202",{"$f":"IF($F832=0,0,ROUND(F832/$F832,5))","v":1},{"$f":"IF(S832=0,F833-SUM(H833:Q833),ROUND(G832/F832,5))","v":0.45077999999999985},{"$f":"IF($F$830=0,0,ROUND(H832/$F$830,5))","v":0.27063999999999999},1.2999999999999999E-3,5.13E-3,6.9999999999999994E-5,0.13494,8.9209999999999998E-2,4.3099999999999996E-3,4.2270000000000002E-2,1.24E-3,1.1E-4,{"$f":"SUM(G833:Q833)","v":0.99999999999999989},{"$f":"F833-R833","v":0}]
[6,null,{"$f":"'FR-16(7)(v)-1 Functional'!C834","v":"DISTRIBUTION KW (NON-COIN PEAK) "},"External",null,{"$f":"'WP FR-16(7)(v)-KW & KWH @Dist'!D39","v":1514633},{"$f":"'WP FR-16(7)(v)-KW & KWH @Dist'!D18","v":899439},{"$f":"'WP FR-16(7)(v)-KW & KWH @Dist'!D19+'WP FR-16(7)(v)-KW & KWH @Dist'!D32","v":321857},{"$f":"'WP FR-16(7)(v)-KW & KWH @Dist'!D20","v":1158},{"$f":"'WP FR-16(7)(v)-KW & KWH @Dist'!D21","v":10653},{"$f":"'WP FR-16(7)(v)-KW & KWH @Dist'!D22","v":109},{"$f":"'WP FR-16(7)(v)-KW & KWH @Dist'!D23+'WP FR-16(7)(v)-KW & KWH @Dist'!D33","v":138051},{"$f":"'WP FR-16(7)(v)-KW & KWH @Dist'!D24+'WP FR-16(7)(v)-KW & KWH @Dist'!D34","v":84382},{"$f":"'WP FR-16(7)(v)-KW & KWH @Dist'!D25+'WP FR-16(7)(v)-KW & KWH @Dist'!D35","v":5687},{"$f":"'WP FR-16(7)(v)-KW & KWH @Dist'!D26+'WP FR-16(7)(v)-KW & KWH @Dist'!D36","v":45755},{"$f":"'WP FR-16(7)(v)-KW & KWH @Dist'!D27","v":7098},{"$f":"'WP FR-16(7)(v)-KW & KWH @Dist'!D28","v":444},{"$f":"SUM(G834:Q834)","v":1514633},{"$f":"F834-R834","v":0}]
[7,null,{"$f":"'FR-16(7)(v)-1 Functional'!C835","v":"RATIO TO TOTAL ELECTRIC"},null,{"$f":"'FR-16(7)(v)-1 Functional'!E835","v":"K203"},{"$f":"IF($F834=0,0,ROUND(F834/$F834,5))","v":1},{"$f":"IF(S834=0,F835-SUM(H835:Q835),ROUND(G834/F834,5))","v":0.59384999999999999},{"$f":"IF(F834=0,0,ROUND(H834/F834,5))","v":0.21249999999999999},{"$f":"IF($F$834=0,0,ROUND(I834/$F$834,5))","v":7.6000000000000004E-4},{"$f":"IF($F$834=0,0,ROUND(J834/$F$834,5))","v":7.0299999999999998E-3},6.9999999999999994E-5,9.1139999999999999E-2,5.5710000000000003E-2,3.7499999999999999E-3,3.0210000000000001E-2,4.6899999999999997E-3,{"$f":"IF(G834=0,0,ROUND(Q834/F834,5))","v":2.9E-4},1,0,null,null,null,{"$f":"R835","v":1}]
[8,null,"DISTRIBUTION LINE - PRIMARY","External",null,{"$f":"'WP FR-16(7)(v) Distlines'!G38","v":731338},{"$f":"'WP FR-16(7)(v) Distlines'!$G$17","v":343307},{"$f":"'WP FR-16(7)(v) Distlines'!$G$18+'WP FR-16(7)(v) Distlines'!$G$31","v":202748},{"$f":"'WP FR-16(7)(v) Distlines'!$G$19","v":945},{"$f":"'WP FR-16(7)(v) Distlines'!$G$20","v":4447},{"$f":"'WP FR-16(7)(v) Distlines'!$G$21","v":53},{"$f":"'WP FR-16(7)(v) Distlines'!$G$22+'WP FR-16(7)(v) Distlines'!$G$32","v":103544},{"$f":"'WP FR-16(7)(v) Distlines'!$G$23+'WP FR-16(7)(v) Distlines'!$G$33","v":68199},{"$f":"'WP FR-16(7)(v) Distlines'!$G$24+'WP FR-16(7)(v) Distlines'!$G$34","v":3420},{"$f":"'WP FR-16(7)(v) Distlines'!$G$25+'WP FR-16(7)(v) Distlines'!$G$35","v":0},{"$f":"'WP FR-16(7)(v) Distlines'!$G$26","v":4595},{"$f":"'WP FR-16(7)(v) Distlines'!$G$27","v":80},731338,0]
[9,null,{"$f":"'FR-16(7)(v)-1 Functional'!C837","v":"RATIO TO TOTAL ELECTRIC"},null,{"$f":"'FR-16(7)(v)-1 Functional'!E837","v":"K205"},{"$f":"IF($F836=0,0,ROUND(F836/$F836,5))","v":1},{"$f":"IF(S836=0,F837-SUM(H837:Q837),ROUND(G836/F836,5))","v":0.4694299999999999},{"$f":"IF($F$836=0,0,ROUND(H836/$F$836,5))","v":0.27722999999999998},{"$f":"IF($F$836=0,0,ROUND(I836/$F$836,5))","v":1.2899999999999999E-3},6.0800000000000003E-3,6.9999999999999994E-5,0.14158000000000001,9.325E-2,4.6800000000000001E-3,0,6.28E-3,1.1E-4,0.99999999999999989,0,null,null,null,{"$f":"R837","v":0.99999999999999989}]
[10,null,"DISTRIBUTION LINE - SECONDARY","External",null,{"$f":"'WP FR-16(7)(v) Distlines'!K38","v":731338},{"$f":"'WP FR-16(7)(v) Distlines'!K17","v":343307},{"$f":"'WP FR-16(7)(v) Distlines'!K18+'WP FR-16(7)(v) Distlines'!K31","v":202748},{"$f":"'WP FR-16(7)(v) Distlines'!K19","v":945},{"$f":"'WP FR-16(7)(v) Distlines'!K20","v":4447},{"$f":"'WP FR-16(7)(v) Distlines'!K21","v":53},{"$f":"'WP FR-16(7)(v) Distlines'!K22+'WP FR-16(7)(v) Distlines'!K32","v":103544},{"$f":"'WP FR-16(7)(v) Distlines'!K23","v":68199},{"$f":"'WP FR-16(7)(v) Distlines'!K24+'WP FR-16(7)(v) Distlines'!K34","v":3420},{"$f":"'WP FR-16(7)(v) Distlines'!K25+'WP FR-16(7)(v) Distlines'!K35","v":0},{"$f":"'WP FR-16(7)(v) Distlines'!K26","v":4595},{"$f":"'WP FR-16(7)(v) Distlines'!K27","v":80},{"$f":"SUM(G838:Q838)","v":731338},{"$f":"F838-R838","v":0}]
[11,null,{"$f":"'FR-16(7)(v)-1 Functional'!C839","v":"RATIO TO TOTAL ELECTRIC"},null,"K206",{"$f":"IF($F838=0,0,ROUND(F838/$F838,5))","v":1},{"$f":"IF(S838=0,F839-SUM(H839:Q839),ROUND(G838/F838,5))","v":0.4694299999999999},{"$f":"IF($F$836=0,0,ROUND(H838/$F$836,5))","v":0.27722999999999998},{"$f":"IF($F$836=0,0,ROUND(I838/$F$836,5))","v":1.2899999999999999E-3},{"$f":"IF($F$836=0,0,ROUND(J838/$F$836,5))","v":6.0800000000000003E-3},{"$f":"IF($F$836=0,0,ROUND(K838/$F$836,5))","v":6.9999999999999994E-5},{"$f":"IF($F$836=0,0,ROUND(L838/$F$836,5))","v":0.14158000000000001},{"$f":"IF($F$838=0,0,ROUND(M838/$F$838,5))","v":9.325E-2},{"$f":"IF($F$838=0,0,ROUND(N838/$F$838,5))","v":4.6800000000000001E-3},{"$f":"IF($F$838=0,0,ROUND(O838/$F$838,5))","v":0},{"$f":"IF($F$838=0,0,ROUND(P838/$F$838,5))","v":6.28E-3},{"$f":"IF($F$838=0,0,ROUND(Q838/$F$838,5))","v":1.1E-4},{"$f":"SUM(G839:Q839)","v":0.99999999999999989},{"$f":"F839-R839","v":0}]
[12,null,{"$f":"'FR-16(7)(v)-1 Functional'!C840","v":"GROSS DISTRIBUTION PLANT EXCL. CCNC"},"External",null,{"$f":"SUM(F73:F90)","v":0},{"$f":"SUM(G73:G90)","v":0},0,0,0,0,0,0,0,0,0,0,0,0]
[13,null,{"$f":"'FR-16(7)(v)-1 Functional'!C841","v":"RATIO TO TOTAL ELECTRIC"},null,{"$f":"'FR-16(7)(v)-1 Functional'!E841","v":"K209"},{"$f":"IF($F840=0,0,ROUND(F840/$F840,5))","v":0},{"$f":"IF(S840=0,F841-SUM(H841:Q841),ROUND(G840/F840,5))","v":0},{"$f":"IF($F$840=0,0,ROUND(H840/$F$840,5))","v":0},{"$f":"IF($F$840=0,0,ROUND(I840/$F$840,5))","v":0},0,0,0,0,0,0,0,0,0,0,null,null,null,{"$f":"R841","v":0}]
[14,null,{"$f":"'FR-16(7)(v)-1 Functional'!C842","v":"TOTAL DIVERSIFIED CLASS DEMANDS"},"External",null,{"$f":"'WP FR-16(7)(v)-KW & KWH @Dist'!L39","v":731338},{"$f":"'WP FR-16(7)(v)-KW & KWH @Dist'!L18","v":343307},{"$f":"'WP FR-16(7)(v)-KW & KWH @Dist'!L19+'WP FR-16(7)(v)-KW & KWH @Dist'!L32","v":202748},{"$f":"'WP FR-16(7)(v)-KW & KWH @Dist'!L20","v":945},{"$f":"'WP FR-16(7)(v)-KW & KWH @Dist'!L21","v":4447},{"$f":"'WP FR-16(7)(v)-KW & KWH @Dist'!L22","v":53},{"$f":"'WP FR-16(7)(v)-KW & KWH @Dist'!L23+'WP FR-16(7)(v)-KW & KWH @Dist'!L33","v":103544},{"$f":"'WP FR-16(7)(v)-KW & KWH @Dist'!L24","v":68199},{"$f":"'WP FR-16(7)(v)-KW & KWH @Dist'!L25","v":3420},{"$f":"'WP FR-16(7)(v)-KW & KWH @Dist'!L26","v":0},{"$f":"'WP FR-16(7)(v)-KW & KWH @Dist'!L27","v":4595},{"$f":"'WP FR-16(7)(v)-KW & KWH @Dist'!L28","v":80},731338,0]
[15,null,{"$f":"'FR-16(7)(v)-1 Functional'!C843","v":"RATIO TO TOTAL ELECTRIC"},null,{"$f":"'FR-16(7)(v)-1 Functional'!E843","v":"K215"},{"$f":"IF($F842=0,0,ROUND(F842/$F842,5))","v":1},{"$f":"IF(S842=0,F843-SUM(H843:Q843),ROUND(G842/F842,5))","v":0.4694299999999999},{"$f":"IF($F$842=0,0,ROUND(H842/$F$842,5))","v":0.27722999999999998},{"$f":"IF($F$842=0,0,ROUND(I842/$F$842,5))","v":1.2899999999999999E-3},6.0800000000000003E-3,6.9999999999999994E-5,0.14158000000000001,9.325E-2,4.6800000000000001E-3,0,6.28E-3,1.1E-4,0.99999999999999989,0,null,null,null,{"$f":"R843","v":0.99999999999999989}]
[16,null,{"$f":"'FR-16(7)(v)-1 Functional'!C844","v":"WEIGHTED CUSTOMER SERVICE"},"External",null,{"$f":"'WP FR-16(7)(v) Wtd services'!H38","v":143810},{"$f":"'WP FR-16(7)(v) Wtd services'!H17","v":128431},{"$f":"'WP FR-16(7)(v) Wtd services'!H18","v":12968},{"$f":"'WP FR-16(7)(v) Wtd services'!H19","v":172},{"$f":"'WP FR-16(7)(v) Wtd services'!H20","v":412},{"$f":"'WP FR-16(7)(v) Wtd services'!H21","v":14},{"$f":"'WP FR-16(7)(v) Wtd services'!H22","v":930},{"$f":"'WP FR-16(7)(v) Wtd services'!H23","v":222},{"$f":"'WP FR-16(7)(v) Wtd services'!H24","v":60},{"$f":"'WP FR-16(7)(v) Wtd services'!H25","v":66},{"$f":"'WP FR-16(7)(v) Wtd services'!H26","v":468},{"$f":"'WP FR-16(7)(v) Wtd services'!H27","v":11},143754,56]
[17,null,{"$f":"'FR-16(7)(v)-1 Functional'!C845","v":"RATIO TO TOTAL ELECTRIC"},null,{"$f":"'FR-16(7)(v)-1 Functional'!E845","v":"K217"},{"$f":"IF($F844=0,0,ROUND(F844/$F844,5))","v":1},{"$f":"IF(S844=0,F845-SUM(H845:Q845),ROUND(G844/F844,5))","v":0.89305999999999996},{"$f":"IF($F$844=0,0,ROUND(H844/$F$844,5))","v":9.017E-2},{"$f":"IF($F$844=0,0,ROUND(I844/$F$844,5))","v":1.1999999999999999E-3},2.8600000000000001E-3,1E-4,6.4700000000000001E-3,1.5399999999999999E-3,4.2000000000000002E-4,4.6000000000000001E-4,3.2499999999999999E-3,8.0000000000000007E-5,0.99960999999999978,3.900000000002235E-4,null,null,null,{"$f":"R845","v":0.99960999999999978}]
[18,null,{"$f":"'FR-16(7)(v)-1 Functional'!C846","v":"TOTAL KWH"},"External",null,{"$f":"'WP FR-16(7)(v)-KW & KWH @Gen'!F38","v":4261970981},{"$f":"'WP FR-16(7)(v)-KW & KWH @Gen'!$F$17","v":1608724299},{"$f":"'WP FR-16(7)(v)-KW & KWH @Gen'!$F$18+'WP FR-16(7)(v)-KW & KWH @Gen'!$F$31","v":1147823576},{"$f":"'WP FR-16(7)(v)-KW & KWH @Gen'!$F$19","v":6420710},{"$f":"'WP FR-16(7)(v)-KW & KWH @Gen'!$F$20","v":18228802},{"$f":"'WP FR-16(7)(v)-KW & KWH @Gen'!$F$21","v":298034},{"$f":"'WP FR-16(7)(v)-KW & KWH @Gen'!$F$22+'WP FR-16(7)(v)-KW & KWH @Gen'!$F$32","v":703280622},{"$f":"'WP FR-16(7)(v)-KW & KWH @Gen'!$F$23","v":488455966},{"$f":"'WP FR-16(7)(v)-KW & KWH @Gen'!$F$24","v":22905598},{"$f":"'WP FR-16(7)(v)-KW & KWH @Gen'!$F$25+'WP FR-16(7)(v)-KW & KWH @Gen'!$F$35","v":246755000},{"$f":"'WP FR-16(7)(v)-KW & KWH @Gen'!$F$26","v":18599129},{"$f":"'WP FR-16(7)(v)-KW & KWH @Gen'!$F$27","v":479245},4261970981,0]
[19,null,{"$f":"'FR-16(7)(v)-1 Functional'!C847","v":"RATIO TO TOTAL ELECTRIC"},null,{"$f":"'FR-16(7)(v)-1 Functional'!E847","v":"K301"},{"$f":"IF($F846=0,0,ROUND(F846/$F846,5))","v":1},{"$f":"IF(S846=0,F847-SUM(H847:Q847),ROUND(G846/F846,5))","v":0.37745999999999991},{"$f":"IF($F$846=0,0,ROUND(H846/$F$846,5))","v":0.26932},{"$f":"IF($F$846=0,0,ROUND(I846/$F$846,5))","v":1.5100000000000001E-3},4.28E-3,6.9999999999999994E-5,0.16500999999999999,0.11461,5.3699999999999998E-3,5.79E-2,4.3600000000000002E-3,1.1E-4,0.99999999999999989,0,null,null,null,{"$f":"R847","v":0.99999999999999989}]
[20,null,{"$f":"'FR-16(7)(v)-1 Functional'!C848","v":"DISTRIBUTION KWH"},"External",null,{"$f":"'WP FR-16(7)(v)-KW & KWH @Dist'!F39","v":4261970981},{"$f":"'WP FR-16(7)(v)-KW & KWH @Dist'!F18","v":1608724299},{"$f":"'WP FR-16(7)(v)-KW & KWH @Dist'!F19+'WP FR-16(7)(v)-KW & KWH @Dist'!F32","v":1147823576},{"$f":"'WP FR-16(7)(v)-KW & KWH @Dist'!F20","v":6420710},{"$f":"'WP FR-16(7)(v)-KW & KWH @Dist'!F21","v":18228802},{"$f":"'WP FR-16(7)(v)-KW & KWH @Dist'!F22","v":298034},{"$f":"'WP FR-16(7)(v)-KW & KWH @Dist'!F23+'WP FR-16(7)(v)-KW & KWH @Dist'!F33","v":703280622},{"$f":"'WP FR-16(7)(v)-KW & KWH @Dist'!F24","v":488455966},{"$f":"'WP FR-16(7)(v)-KW & KWH @Dist'!F25","v":22905598},{"$f":"'WP FR-16(7)(v)-KW & KWH @Dist'!F26","v":232255694},{"$f":"'WP FR-16(7)(v)-KW & KWH @Dist'!F27","v":18599129},{"$f":"'WP FR-16(7)(v)-KW & KWH @Dist'!F28","v":479245},4247471675,14499306]
[21,null,{"$f":"'FR-16(7)(v)-1 Functional'!C849","v":"RATIO TO TOTAL ELECTRIC"},null,{"$f":"'FR-16(7)(v)-1 Functional'!E849","v":"K303"},{"$f":"IF($F848=0,0,ROUND(F848/$F848,5))","v":1},{"$f":"IF(S848=0,F849-SUM(H849:Q849),ROUND(G848/F848,5))","v":0.37746000000000002},{"$f":"IF($F$848=0,0,ROUND(H848/$F$848,5))","v":0.26932},{"$f":"IF($F$848=0,0,ROUND(I848/$F$848,5))","v":1.5100000000000001E-3},4.28E-3,6.9999999999999994E-5,0.16500999999999999,0.11461,5.3699999999999998E-3,5.4489999999999997E-2,4.3600000000000002E-3,1.1E-4,0.99659000000000009,3.4099999999999131E-3,null,null,null,{"$f":"R849","v":0.99659000000000009}]
[22,null,{"$f":"'FR-16(7)(v)-1 Functional'!C850","v":"TOTAL KWH LESS LIGHTING"},"External",null,{"$f":"'WP FR-16(7)(v)-KW & KWH @Gen'!F38-'WP FR-16(7)(v)-KW & KWH @Gen'!F26","v":4243371852},{"$f":"'WP FR-16(7)(v)-KW & KWH @Gen'!F17","v":1608724299},{"$f":"'WP FR-16(7)(v)-KW & KWH @Gen'!F18+'WP FR-16(7)(v)-KW & KWH @Gen'!F31","v":1147823576},{"$f":"'WP FR-16(7)(v)-KW & KWH @Gen'!F19","v":6420710},{"$f":"'WP FR-16(7)(v)-KW & KWH @Gen'!F20","v":18228802},{"$f":"'WP FR-16(7)(v)-KW & KWH @Gen'!F21","v":298034},{"$f":"'WP FR-16(7)(v)-KW & KWH @Gen'!F22+'WP FR-16(7)(v)-KW & KWH @Gen'!F32","v":703280622},{"$f":"'WP FR-16(7)(v)-KW & KWH @Gen'!F23","v":488455966},{"$f":"'WP FR-16(7)(v)-KW & KWH @Gen'!F24","v":22905598},{"$f":"'WP FR-16(7)(v)-KW & KWH @Gen'!F25+'WP FR-16(7)(v)-KW & KWH @Gen'!F35","v":246755000},0,{"$f":"'WP FR-16(7)(v)-KW & KWH @Gen'!F27","v":479245},4243371852,0]
[23,null,{"$f":"'FR-16(7)(v)-1 Functional'!C851","v":"RATIO TO TOTAL ELECTRIC"},null,{"$f":"'FR-16(7)(v)-1 Functional'!E851","v":"K305"},{"$f":"IF($F850=0,0,ROUND(F850/$F850,5))","v":1},{"$f":"IF(S850=0,F851-SUM(H851:Q851),ROUND(G850/F850,5))","v":0.37910999999999984},{"$f":"IF($F$850=0,0,ROUND(H850/$F$850,5))","v":0.27050000000000002},{"$f":"IF($F$850=0,0,ROUND(I850/$F$850,5))","v":1.5100000000000001E-3},4.3E-3,6.9999999999999994E-5,0.16574,0.11511,5.4000000000000003E-3,5.815E-2,0,1.1E-4,0.99999999999999989,0,null,null,null,{"$f":"R851","v":0.99999999999999989}]
[24,null,{"$f":"'FR-16(7)(v)-1 Functional'!C852","v":"ASSIGN 100% TO RESIDENTIAL"},"External",null,1,1,0,0,0,0,0,0,0,0,0,0,1,0]
[25,null,{"$f":"'FR-16(7)(v)-1 Functional'!C853","v":"RATIO TO TOTAL ELECTRIC"},null,{"$f":"'FR-16(7)(v)-1 Functional'!E853","v":"K307"},{"$f":"IF($F852=0,0,ROUND(F852/$F852,5))","v":1},{"$f":"IF(S852=0,F853-SUM(H853:Q853),ROUND(G852/F852,5))","v":1},{"$f":"IF($F$852=0,0,ROUND(H852/$F$852,5))","v":0},{"$f":"IF($F$852=0,0,ROUND(I852/$F$852,5))","v":0},0,0,0,0,0,0,0,0,1,0,null,null,null,{"$f":"R853","v":1}]
[26,null,{"$f":"'FR-16(7)(v)-1 Functional'!C854","v":"ASSIGN 100% TO LIGHTING"},"External",null,1,0,0,0,0,0,0,0,0,0,1,0,1,0]
[27,null,{"$f":"'FR-16(7)(v)-1 Functional'!C855","v":"RATIO TO TOTAL ELECTRIC"},null,{"$f":"'FR-16(7)(v)-1 Functional'!E855","v":"K401"},{"$f":"IF($F854=0,0,ROUND(F854/$F854,5))","v":1},{"$f":"IF(S854=0,F855-SUM(H855:Q855),ROUND(G854/F854,5))","v":0},{"$f":"IF($F$854=0,0,ROUND(H854/$F$854,5))","v":0},{"$f":"IF($F$854=0,0,ROUND(I854/$F$854,5))","v":0},0,0,0,0,0,0,1,0,1,0,null,null,null,{"$f":"R855","v":1}]
[28,null,{"$f":"'FR-16(7)(v)-1 Functional'!C856","v":"DISTRIBUTION CUSTOMERS"},"External",null,{"$f":"'WP FR-16(7)(v)-KW & KWH @Dist'!H39","v":142392},{"$f":"'WP FR-16(7)(v)-KW & KWH @Dist'!$H18","v":128431},{"$f":"'WP FR-16(7)(v)-KW & KWH @Dist'!$H19+'WP FR-16(7)(v)-KW & KWH @Dist'!$H32","v":12972},{"$f":"'WP FR-16(7)(v)-KW & KWH @Dist'!$H20","v":172},{"$f":"'WP FR-16(7)(v)-KW & KWH @Dist'!$H21","v":103},{"$f":"'WP FR-16(7)(v)-KW & KWH @Dist'!$H22","v":14},{"$f":"'WP FR-16(7)(v)-KW & KWH @Dist'!$H23+'WP FR-16(7)(v)-KW & KWH @Dist'!$H33","v":159},{"$f":"'WP FR-16(7)(v)-KW & KWH @Dist'!$H24","v":37},{"$f":"'WP FR-16(7)(v)-KW & KWH @Dist'!$H25","v":10},{"$f":"'WP FR-16(7)(v)-KW & KWH @Dist'!$H26","v":11},{"$f":"'WP FR-16(7)(v)-KW & KWH @Dist'!$H27","v":468},{"$f":"'WP FR-16(7)(v)-KW & KWH @Dist'!$H28","v":11},142388,4]
[29,null,{"$f":"'FR-16(7)(v)-1 Functional'!C857","v":"RATIO TO TOTAL ELECTRIC"},null,{"$f":"'FR-16(7)(v)-1 Functional'!E857","v":"K405"},{"$f":"IF($F856=0,0,ROUND(F856/$F856,5))","v":1},{"$f":"IF(S856=0,F857-SUM(H857:Q857),ROUND(G856/F856,5))","v":0.90195000000000003},{"$f":"IF($F$856=0,0,ROUND(H856/$F$856,5))","v":9.11E-2},{"$f":"IF($F$856=0,0,ROUND(I856/$F$856,5))","v":1.2099999999999999E-3},7.2000000000000005E-4,1E-4,1.1199999999999999E-3,2.5999999999999998E-4,6.9999999999999994E-5,8.0000000000000007E-5,3.29E-3,{"$f":"IF(G856=0,0,ROUND(Q856/F856,5))","v":8.0000000000000007E-5},0.99998000000000009,1.9999999999908979E-5,null,null,null,{"$f":"R857","v":0.99998000000000009}]
[30,null,{"$f":"'FR-16(7)(v)-1 Functional'!C858","v":"METERS"},"External",null,{"$f":"'WP FR-16(7)(v) Meters'!E40","v":15813241},{"$f":"'WP FR-16(7)(v) Meters'!$E19","v":12782441},{"$f":"'WP FR-16(7)(v) Meters'!$E20","v":2892747},{"$f":"'WP FR-16(7)(v) Meters'!$E21","v":0},{"$f":"'WP FR-16(7)(v) Meters'!$E22","v":22093},{"$f":"'WP FR-16(7)(v) Meters'!$E23","v":3451},{"$f":"'WP FR-16(7)(v) Meters'!$E24","v":102877},{"$f":"'WP FR-16(7)(v) Meters'!$E25","v":0},{"$f":"'WP FR-16(7)(v) Meters'!$E26","v":3805},{"$f":"'WP FR-16(7)(v) Meters'!$E27","v":3619},{"$f":"'WP FR-16(7)(v) Meters'!$E28","v":0},{"$f":"'WP FR-16(7)(v) Meters'!$E29","v":2208},15813241,0]
[31,null,{"$f":"'FR-16(7)(v)-1 Functional'!C859","v":"RATIO TO TOTAL ELECTRIC"},null,{"$f":"'FR-16(7)(v)-1 Functional'!E859","v":"K407"},{"$f":"IF($F858=0,0,ROUND(F858/$F858,5))","v":1},{"$f":"IF(S858=0,F859-SUM(H859:Q859),ROUND(G858/F858,5))","v":0.80832999999999999},{"$f":"IF($F$858=0,0,ROUND(H858/$F$858,5))","v":0.18293000000000001},{"$f":"IF($F$858=0,0,ROUND(I858/$F$858,5))","v":0},1.4E-3,2.2000000000000001E-4,6.5100000000000002E-3,0,2.4000000000000001E-4,2.3000000000000001E-4,0,1.3999999999999999E-4,1,0,null,null,null,{"$f":"R859","v":1}]
[32,null,{"$f":"'FR-16(7)(v)-1 Functional'!C860","v":"WEIGHTED CUSTOMER"},"External",null,{"$f":"'WP FR-16(7)(v) Meters'!H40","v":156470},{"$f":"'WP FR-16(7)(v) Meters'!H19","v":128431},{"$f":"'WP FR-16(7)(v) Meters'!H20+'WP FR-16(7)(v) Meters'!H33","v":25940},{"$f":"'WP FR-16(7)(v) Meters'!H21","v":172},{"$f":"'WP FR-16(7)(v) Meters'!H22","v":206},{"$f":"'WP FR-16(7)(v) Meters'!H23","v":28},{"$f":"'WP FR-16(7)(v) Meters'!H24+'WP FR-16(7)(v) Meters'!H34","v":1089},{"$f":"'WP FR-16(7)(v) Meters'!H25+'WP FR-16(7)(v) Meters'!H35","v":37},{"$f":"'WP FR-16(7)(v) Meters'!H26+'WP FR-16(7)(v) Meters'!H36","v":40},{"$f":"'WP FR-16(7)(v) Meters'!H27+'WP FR-16(7)(v) Meters'!H37","v":37},{"$f":"'WP FR-16(7)(v) Meters'!H28","v":468},{"$f":"'WP FR-16(7)(v) Meters'!H29","v":22},156470,0]
[33,null,{"$f":"'FR-16(7)(v)-1 Functional'!C861","v":"RATIO TO TOTAL ELECTRIC"},null,{"$f":"'FR-16(7)(v)-1 Functional'!E861","v":"K409"},{"$f":"IF($F860=0,0,ROUND(F860/$F860,5))","v":1},{"$f":"IF(S860=0,F861-SUM(H861:Q861),ROUND(G860/F860,5))","v":0.82079000000000002},{"$f":"IF($F$860=0,0,ROUND(H860/$F$860,5))","v":0.16578000000000001},{"$f":"IF($F$860=0,0,ROUND(I860/$F$860,5))","v":1.1000000000000001E-3},1.32E-3,1.8000000000000001E-4,6.96E-3,2.4000000000000001E-4,2.5999999999999998E-4,2.4000000000000001E-4,2.99E-3,1.3999999999999999E-4,1,0,null,null,null,{"$f":"R861","v":1}]
[34,null,{"$f":"'FR-16(7)(v)-1 Functional'!C862","v":"UNCOLLECTIBLE ACCOUNT 904"},"External",null,{"$f":"'WP FR-16(7)(v) CustAcct'!G31","v":5781023.7599999998},{"$f":"'WP FR-16(7)(v) CustAcct'!G17","v":5267443},{"$f":"'WP FR-16(7)(v) CustAcct'!G19","v":249785.75999999978},{"$f":"'WP FR-16(7)(v) CustAcct'!G20","v":1597},{"$f":"'WP FR-16(7)(v) CustAcct'!G21","v":1664},{"$f":"'WP FR-16(7)(v) CustAcct'!G22","v":82},{"$f":"'WP FR-16(7)(v) CustAcct'!G23","v":129741},{"$f":"'WP FR-16(7)(v) CustAcct'!G24","v":82815},{"$f":"'WP FR-16(7)(v) CustAcct'!G25","v":3765},{"$f":"'WP FR-16(7)(v) CustAcct'!G26","v":38893},{"$f":"'WP FR-16(7)(v) CustAcct'!G27","v":5192},{"$f":"'WP FR-16(7)(v) CustAcct'!G28","v":46},5781023.7599999998,0]
[35,null,{"$f":"'FR-16(7)(v)-1 Functional'!C863","v":"RATIO TO TOTAL ELECTRIC"},null,{"$f":"'FR-16(7)(v)-1 Functional'!E863","v":"K411"},{"$f":"IF($F862=0,0,ROUND(F862/$F862,5))","v":1},{"$f":"IF(S862=0,F863-SUM(H863:Q863),ROUND(G862/F862,5))","v":0.91115000000000002},{"$f":"IF($F$862=0,0,ROUND(H862/$F$862,5))","v":4.3209999999999998E-2},{"$f":"IF($F$862=0,0,ROUND(I862/$F$862,5))","v":2.7999999999999998E-4},2.9E-4,1.0000000000000001E-5,2.2440000000000002E-2,1.4330000000000001E-2,6.4999999999999997E-4,6.7299999999999999E-3,8.9999999999999998E-4,1.0000000000000001E-5,0.99999999999999989,0,null,null,null,{"$f":"R863","v":0.99999999999999989}]
[36,null,{"$f":"'FR-16(7)(v)-1 Functional'!C864","v":"KWH SALES LESS RTP"},"External",null,{"$f":"'WP FR-16(7)(v)-KW & KWH @Gen'!F28","v":4244213606},{"$f":"'WP FR-16(7)(v)-KW & KWH @Gen'!F17","v":1608724299},{"$f":"'WP FR-16(7)(v)-KW & KWH @Gen'!F18","v":1146956880},{"$f":"'WP FR-16(7)(v)-KW & KWH @Gen'!F19","v":6420710},{"$f":"'WP FR-16(7)(v)-KW & KWH @Gen'!F20","v":18228802},{"$f":"'WP FR-16(7)(v)-KW & KWH @Gen'!F21","v":298034},{"$f":"'WP FR-16(7)(v)-KW & KWH @Gen'!F22","v":700889249},{"$f":"'WP FR-16(7)(v)-KW & KWH @Gen'!F23","v":488455966},{"$f":"'WP FR-16(7)(v)-KW & KWH @Gen'!F24","v":22905598},{"$f":"'WP FR-16(7)(v)-KW & KWH @Gen'!F25","v":232255694},{"$f":"'WP FR-16(7)(v)-KW & KWH @Gen'!F26","v":18599129},{"$f":"'WP FR-16(7)(v)-KW & KWH @Gen'!F27","v":479245},{"$f":"SUM(G864:Q864)","v":4244213606},{"$f":"F864-R864","v":0}]
[37,null,{"$f":"'FR-16(7)(v)-1 Functional'!C865","v":"RATIO TO TOTAL ELECTRIC"},null,{"$f":"'FR-16(7)(v)-1 Functional'!E865","v":"K302"},{"$f":"IF($F864=0,0,ROUND(F864/$F864,5))","v":1},{"$f":"IF(S864=0,F865-SUM(H865:Q865),ROUND(G864/F863,5))","v":0.37904999999999989},{"$f":"IF(F864=0,0,ROUND(H864/F864,5))","v":0.27023999999999998},{"$f":"IF(F864=0,0,ROUND(I864/F864,5))","v":1.5100000000000001E-3},{"$f":"IF(F864=0,0,ROUND(J864/F864,5))","v":4.2900000000000004E-3},{"$f":"IF(F864=0,0,ROUND(K864/F864,5))","v":6.9999999999999994E-5},{"$f":"IF(F864=0,0,ROUND(L864/F864,5))","v":0.16514000000000001},{"$f":"IF(F864=0,0,ROUND(M864/F864,5))","v":0.11509},{"$f":"IF(F864=0,0,ROUND(N864/F864,5))","v":5.4000000000000003E-3},{"$f":"IF(F864=0,0,ROUND(O864/F864,5))","v":5.4719999999999998E-2},{"$f":"IF(F864=0,0,ROUND(P864/F864,5))","v":4.3800000000000002E-3},{"$f":"IF(F864=0,0,ROUND(Q864/F864,5))","v":1.1E-4},{"$f":"SUM(G865:Q865)","v":1},{"$f":"F865-R865","v":0}]
[38]
[39,null,{"$f":"'FR-16(7)(v)-1 Functional'!C867","v":"PRESENT REVENUES"},{"$f":"'FR-16(7)(v)-1 Functional'!$D$867","v":"CS09"},{"$f":"'FR-16(7)(v)-1 Functional'!E867","v":"R600"},{"$f":"'FR-16(7)(v)-6 TRANS Classified'!H867","v":0},{"$f":"F867-SUM(H867:Q867)","v":0},{"$f":"ROUND(F867*VLOOKUP(D867,ALLOCTABLE_Trans_Energy,$H$10,FALSE),0)","v":0},{"$f":"ROUND($F$867*VLOOKUP($D$867,ALLOCTABLE_Trans_Energy,I10,FALSE),0)","v":0},0,0,0,0,0,0,0,0,{"$f":"SUM(G867:Q867)","v":0},{"$f":"F867-R867","v":0}]
[40,null,{"$f":"'FR-16(7)(v)-1 Functional'!C868","v":"PROPOSED REVENUES"},{"$f":"'FR-16(7)(v)-1 Functional'!$D$868","v":"A357"},{"$f":"'FR-16(7)(v)-1 Functional'!E868","v":"R602"},{"$f":"'FR-16(7)(v)-6 TRANS Classified'!H868","v":0},{"$f":"F868-SUM(H868:Q868)","v":0},{"$f":"ROUND(F868*VLOOKUP(D868,ALLOCTABLE_Trans_Energy,$H$10,FALSE),0)","v":0},{"$f":"ROUND($F$868*VLOOKUP($D$868,ALLOCTABLE_Trans_Energy,I10,FALSE),0)","v":0},0,0,0,0,0,0,0,0,{"$f":"SUM(G868:Q868)","v":0},{"$f":"F868-R868","v":0}]
[]
[{"$f":"co_name","v":"DUKE ENERGY KENTUCKY, INC."},null,null,null,null,null,null,null,null,null,null,null,null,null,null,null,null,{"$f":"R1","v":"FR-16(7)(v)-8"}]
[{"$f":"$A$2","v":"TRANSMISSION ENERGY ALLOCATED - ELECTRIC COST OF SERVICE"},null,null,null,null,null,null,null,null,null,null,null,null,null,null,null,null,{"$f":"R2","v":"WITNESS RESPONSIBLE:"}]
[{"$f":"case_name","v":"CASE NO: 2019-00271"},null,null,null,null,null,null,null,null,null,null,null,null,null,null,null,null,{"$f":"Witness","v":"JAMES E. ZIOLKOWSKI"}]
[{"$f":"data_filing","v":"DATA: 12 MONTHS ACTUAL  & 0 MONTHS ESTIMATED"},null,null,null,null,null,null,null,null,null,null,null,null,null,null,null,null,{"$f":"\"PAGE \"&Pages-1&\" OF \"&Pages","v":"PAGE 17 OF 18"}]
[{"$f":"type","v":"TYPE OF FILING: \"X\" ORIGINAL   UPDATED    REVISED  "}]
[]
[null,null,null,null,null,{"$f":"F$7","v":"TOTAL"},null,{"$f":"H$7","v":"DS"},{"$f":"I$7","v":"GSFL"},{"$f":"J$7","v":"EH"},{"$f":"K$7","v":"SP"},"DT SEC","DT PRI","DP","TT",null,"OTHER"]
["LINE",null,null,null,null,{"$f":"F$8","v":"TRANSMISSION"},{"$f":"G$8","v":"RS"},{"$f":"H$8","v":"SECONDARY"},{"$f":"I$8","v":"SECONDARY"},{"$f":"J$8","v":"SECONDARY"},{"$f":"K$8","v":"SECONDARY"},"SECONDARY","PRIMARY","PRIMARY","TRANSMISSION","LT","WATER",{"$f":"R8","v":"TOTAL"},"ALL"]
["NO.","ALLOCATORS",null,"SOURCE","ALLO",{"$f":"F$9","v":"ENERGY"},{"$f":"G$9","v":"RESIDENTIAL"},{"$f":"H$9","v":"DISTRIBUTION"},{"$f":"I$9","v":"DISTRIBUTION"},{"$f":"J$9","v":"DISTRIBUTION"},{"$f":"K$9","v":"DISTRIBUTION"},"DISTRIBUTION","DISTRIBUTION","DISTRIBUTION","TIME OF DAY","LIGHTING","PUMPING",{"$f":"R9","v":"AT ISSUE"},"OTHER"]
[null,null,"Schedule 12.1",null,1,null,{"$f":"G$10","v":3},{"$f":"H$10","v":4},{"$f":"I$10","v":5},{"$f":"J$10","v":6},{"$f":"K$10","v":7},8,9,10,11,12,13,null," "]
[]
[1,null,{"$f":"'FR-16(7)(v)-1 Functional'!C881","v":"PRESENT REVENUES"},"Internal",null,{"$f":"'FR-16(7)(v)-3 PROD Demand'!F881","v":309580654},{"$f":"'FR-16(7)(v)-3 PROD Demand'!G881","v":123883637},{"$f":"'FR-16(7)(v)-3 PROD Demand'!H881","v":90318223},{"$f":"'FR-16(7)(v)-3 PROD Demand'!I881","v":577046},{"$f":"'FR-16(7)(v)-3 PROD Demand'!J881","v":600937},{"$f":"'FR-16(7)(v)-3 PROD Demand'!K881","v":29960},{"$f":"'FR-16(7)(v)-3 PROD Demand'!L881","v":46910116},{"$f":"'FR-16(7)(v)-3 PROD Demand'!M881","v":29943872},{"$f":"'FR-16(7)(v)-3 PROD Demand'!N881","v":1361377},{"$f":"'FR-16(7)(v)-3 PROD Demand'!O881","v":14062168},{"$f":"'FR-16(7)(v)-3 PROD Demand'!P881","v":1876470},{"$f":"'FR-16(7)(v)-3 PROD Demand'!Q881","v":16848},{"$f":"SUM(G881:Q881)","v":309580654},{"$f":"F881-R881","v":0}]
[2,null,{"$f":"'FR-16(7)(v)-1 Functional'!C882","v":"RATIO TO TOTAL ELECTRIC"},null,{"$f":"'FR-16(7)(v)-1 Functional'!E882","v":"K901"},{"$f":"IF($F881=0,0,ROUND(F881/$F881,9))","v":1},{"$f":"IF(S881=0,F882-SUM(H882:Q882),ROUND(G881/F881,5))","v":0.40016595199999994},{"$f":"IF($F$881=0,0,ROUND(H881/$F$881,9))","v":0.29174375699999999},{"$f":"IF($F$881=0,0,ROUND(I881/$F$881,9))","v":1.86396E-3},1.9411319999999999E-3,9.6775999999999996E-5,0.151527931,9.6723977000000003E-2,4.3974870000000003E-3,4.5423277999999997E-2,6.0613280000000004E-3,5.4422000000000002E-5,{"$f":"SUM(G882:Q882)","v":1},{"$f":"F882-R882","v":0},null,null,null,{"$f":"R882","v":1}]
[3,null,{"$f":"'FR-16(7)(v)-1 Functional'!C883","v":"PROPOSED REVENUES"},"Internal",null,{"$f":"'FR-16(7)(v)-3 PROD Demand'!F883","v":355094168},{"$f":"'FR-16(7)(v)-3 PROD Demand'!G883","v":147195469},{"$f":"'FR-16(7)(v)-3 PROD Demand'!H883","v":101595371},{"$f":"'FR-16(7)(v)-3 PROD Demand'!I883","v":649414},{"$f":"'FR-16(7)(v)-3 PROD Demand'!J883","v":676300},{"$f":"'FR-16(7)(v)-3 PROD Demand'!K883","v":33717},{"$f":"'FR-16(7)(v)-3 PROD Demand'!L883","v":52518255},{"$f":"'FR-16(7)(v)-3 PROD Demand'!M883","v":33522516},{"$f":"'FR-16(7)(v)-3 PROD Demand'!N883","v":1546768},{"$f":"'FR-16(7)(v)-3 PROD Demand'!O883","v":15232520},{"$f":"'FR-16(7)(v)-3 PROD Demand'!P883","v":2104877},{"$f":"'FR-16(7)(v)-3 PROD Demand'!Q883","v":18961},{"$f":"SUM(G883:Q883)","v":355094168},{"$f":"F883-R883","v":0}]
[4,null,{"$f":"'FR-16(7)(v)-1 Functional'!C884","v":"RATIO TO TOTAL ELECTRIC"},null,{"$f":"'FR-16(7)(v)-1 Functional'!E884","v":"K902"},{"$f":"IF($F883=0,0,ROUND(F883/$F883,9))","v":1},{"$f":"IF(S883=0,F884-SUM(H884:Q884),ROUND(G883/F883,5))","v":0.41452516699999997},{"$f":"IF($F$883=0,0,ROUND(H883/$F$883,9))","v":0.28610825000000001},{"$f":"IF($F$883=0,0,ROUND(I883/$F$883,9))","v":1.8288499999999999E-3},1.904565E-3,9.4951999999999995E-5,0.14789951400000001,9.4404581000000001E-2,4.3559369999999998E-3,4.2897128E-2,5.9276590000000001E-3,5.3396999999999997E-5,{"$f":"SUM(G884:Q884)","v":1},{"$f":"F884-R884","v":0}]
[5]
[6,"WEIGHTED RATIOS"]
[7,"GROSS ELECTRIC PLANT IN SERVICE"]
[8,null,{"$f":"'FR-16(7)(v)-1 Functional'!C888","v":"WTD GROSS PROD PLANT RATIOS"},"Internal",{"$f":"'FR-16(7)(v)-1 Functional'!E888","v":"P129"},0,{"$f":"IF(F888=0,0,F888-SUM(H888:Q888))","v":0},{"$f":"ROUND(IF($F$62=0,0,H62/$F$62),5)","v":0},0,0,0,{"$f":"ROUND(IF($F$62=0,0,L62/$F$62),5)","v":0},0,0,0,0,0,{"$f":"SUM(G888:Q888)","v":0},{"$f":"F888-R888","v":0},null,null,null,{"$f":"R888","v":0}]
[9,null,{"$f":"'FR-16(7)(v)-1 Functional'!C889","v":"WTD GROSS TRANS PLANT RATIOS"},"Internal",{"$f":"'FR-16(7)(v)-1 Functional'!E889","v":"T129"},1,1,{"$f":"ROUND(IF($F$68=0,0,H68/$F$68),5)","v":0},0,0,0,0,0,0,0,0,0,1,0,null,null,null,1]
[10,null,{"$f":"'FR-16(7)(v)-1 Functional'!C890","v":"WTD GROSS P & T PLT RATIOS"},"Internal",{"$f":"'FR-16(7)(v)-1 Functional'!E890","v":"PT29"},1,1,{"$f":"ROUND(IF($F$70=0,0,H70/$F$70),5)","v":0},0,0,0,{"$f":"ROUND(IF($F$70=0,0,L70/$F$70),5)","v":0},0,0,0,0,0,1,0]
[11,null,{"$f":"'FR-16(7)(v)-1 Functional'!C891","v":"WTD GROSS DIST PLANT RATIOS"},"Internal",{"$f":"'FR-16(7)(v)-1 Functional'!E891","v":"D149"},0,0,{"$f":"ROUND(IF($F$94=0,0,H94/$F$94),5)","v":0},0,0,0,{"$f":"ROUND(IF($F$94=0,0,L94/$F$94),5)","v":0},0,0,0,0,0,0,0]
[12,null,{"$f":"'FR-16(7)(v)-1 Functional'!C892","v":"WTD GROSS TRANS & DIST RATIOS"},"Internal",{"$f":"'FR-16(7)(v)-1 Functional'!E892","v":"TD29"},1,1,{"$f":"ROUND(IF($F$97=0,0,H97/$F$97),5)","v":0},0,0,0,{"$f":"ROUND(IF($F$97=0,0,L97/$F$97),5)","v":0},0,0,0,0,0,1,0,null,null,null,1]
[13,null,{"$f":"'FR-16(7)(v)-1 Functional'!C893","v":"WTD GROSS PTD PLT RATIOS"},"Internal",{"$f":"'FR-16(7)(v)-1 Functional'!E893","v":"PD29"},1,1,{"$f":"ROUND(IF($F$109=0,0,H109/$F$109),5)","v":0},0,0,0,{"$f":"ROUND(IF($F$109=0,0,L109/$F$109),5)","v":0},0,0,0,0,0,1,0,null,null,null,1]
[14,null,{"$f":"'FR-16(7)(v)-1 Functional'!C894","v":"WTD GROSS G & I PLT RATIOS"},"Internal",{"$f":"'FR-16(7)(v)-1 Functional'!E894","v":"G129"},1,1,{"$f":"ROUND(IF($F$121=0,0,H121/$F$121),5)","v":0},0,0,0,{"$f":"ROUND(IF($F$121=0,0,L121/$F$121),5)","v":0},0,0,0,0,0,1,0,null,null,null,1]
[15,null,{"$f":"'FR-16(7)(v)-1 Functional'!C895","v":"WTD GROSS C & O PLANT RATIOS"},"Internal",{"$f":"'FR-16(7)(v)-1 Functional'!E895","v":"C129"},1,1,{"$f":"ROUND(IF($F$123=0,0,H123/$F$123),5)","v":0},0,0,0,{"$f":"ROUND(IF($F$123=0,0,L123/$F$123),5)","v":0},0,0,0,0,0,1,0,null,null,null,1]
[16,null,{"$f":"'FR-16(7)(v)-1 Functional'!C896","v":"WTD GROSS PLANT RATIOS"},"Internal",{"$f":"'FR-16(7)(v)-1 Functional'!E896","v":"GP19"},0,0,{"$f":"ROUND(IF($F$171=0,0,H171/$F$171),5)","v":0},0,0,0,{"$f":"ROUND(IF($F$171=0,0,L171/$F$171),5)","v":0},0,0,0,0,0,0,0,null,null,null,0]
[17,null,{"$f":"'FR-16(7)(v)-1 Functional'!C897","v":"WTD TOTAL DEPRC RES RATIOS"},"Internal",{"$f":"'FR-16(7)(v)-1 Functional'!E897","v":"DR19"},1,1,{"$f":"ROUND(IF($F$200=0,0,H200/$F$200),5)","v":0},0,0,0,{"$f":"ROUND(IF($F$200=0,0,L200/$F$200),5)","v":0},0,0,0,0,0,1,0,null,null,null,1]
[18]
[19,"NET ELECTRIC PLANT"]
[20,null,{"$f":"'FR-16(7)(v)-1 Functional'!C900","v":"WTD NET PROD PLANT RATIOS"},"Internal",{"$f":"'FR-16(7)(v)-1 Functional'!E900","v":"P229"},0,{"$f":"IF(F900=0,0,F900-SUM(H900:Q900))","v":0},{"$f":"ROUND(IF($F$216=0,0,H216/$F$216),5)","v":0},0,0,0,{"$f":"ROUND(IF($F$216=0,0,L216/$F$216),5)","v":0},0,0,0,0,0,{"$f":"SUM(G900:Q900)","v":0},{"$f":"F900-R900","v":0},null,null,null,{"$f":"R900","v":0}]
[21,null,{"$f":"'FR-16(7)(v)-1 Functional'!C901","v":"WTD NET TRANS PLANT RATIOS"},"Internal",{"$f":"'FR-16(7)(v)-1 Functional'!E901","v":"T229"},1,1,{"$f":"ROUND(IF($F$222=0,0,H222/$F$222),5)","v":0},0,0,0,0,0,0,0,0,0,1,0,null,null,null,{"$f":"R901","v":1}]
[22,null,{"$f":"'FR-16(7)(v)-1 Functional'!C902","v":"WTD NET DIST LINES  - POLES, TOWERS & FIXTURES"},"Internal",{"$f":"'FR-16(7)(v)-1 Functional'!E902","v":"PL49"},0,0,{"$f":"ROUND(IF(SUM($F$228:$F$231)=0,0,SUM(H228:H231)/SUM($F$228:$F$231)),5)","v":0},{"$f":"ROUND(IF(SUM($F$228:$F$231)=0,0,SUM(I228:I231)/SUM($F$228:$F$231)),5)","v":0},0,0,0,0,0,0,0,0,0,0,null,null,null,{"$f":"R902","v":0}]
[23,null,{"$f":"'FR-16(7)(v)-1 Functional'!C903","v":"WTD NET TOTAL DIST PLANT RATIOS"},"Internal",{"$f":"'FR-16(7)(v)-1 Functional'!E903","v":"D249"},0,0,{"$f":"ROUND(IF($F$248=0,0,H248/$F$248),5)","v":0},0,0,0,{"$f":"ROUND(IF($F$248=0,0,L248/$F$248),5)","v":0},0,0,0,0,0,0,0]
[24,null,{"$f":"'FR-16(7)(v)-1 Functional'!C904","v":"WTD NET TRANS & DIST RATIOS"},"Internal",{"$f":"'FR-16(7)(v)-1 Functional'!E904","v":"NT29"},1,1,{"$f":"ROUND(IF($F$251=0,0,H251/$F$251),5)","v":0},0,0,0,{"$f":"ROUND(IF($F$251=0,0,L251/$F$251),5)","v":0},0,0,0,0,0,1,0]
[25,null,{"$f":"'FR-16(7)(v)-1 Functional'!C905","v":"WTD NET G & I PLT RATIOS"},"Internal",{"$f":"'FR-16(7)(v)-1 Functional'!E905","v":"G229"},1,1,{"$f":"ROUND(IF($F$263=0,0,H263/$F$263),5)","v":0},0,0,0,{"$f":"ROUND(IF($F$263=0,0,L263/$F$263),5)","v":0},0,0,0,0,0,1,0]
[26,null,{"$f":"'FR-16(7)(v)-1 Functional'!C906","v":"WTD NET C & O PLANT RATIOS"},"Internal",{"$f":"'FR-16(7)(v)-1 Functional'!E906","v":"C229"},1,1,{"$f":"ROUND(IF($F$275=0,0,H275/$F$275),5)","v":0},0,0,0,{"$f":"ROUND(IF($F$275=0,0,L275/$F$275),5)","v":0},0,0,0,0,0,1,0]
[27,null,{"$f":"'FR-16(7)(v)-1 Functional'!C907","v":"WTD NET PLANT RATIOS"},"Internal",{"$f":"'FR-16(7)(v)-1 Functional'!E907","v":"NP29"},1,1,{"$f":"ROUND(IF($F$277=0,0,H277/$F$277),5)","v":0},0,0,0,{"$f":"ROUND(IF($F$277=0,0,L277/$F$277),5)","v":0},0,0,0,0,0,1,0]
[28]
[29,"WORKING CAPITAL"]
[30,null,{"$f":"'FR-16(7)(v)-1 Functional'!C910","v":"WTD MATERIAL & SUPPLY RATIOS"},"Internal",{"$f":"'FR-16(7)(v)-1 Functional'!E910","v":"W669"},1,{"$f":"IF(F910=0,0,F910-SUM(H910:Q910))","v":1},{"$f":"ROUND(IF($F$399=0,0,H399/$F$399),5)","v":0},0,0,0,{"$f":"ROUND(IF($F$399=0,0,L399/$F$399),5)","v":0},0,0,0,0,0,{"$f":"SUM(G910:Q910)","v":1},{"$f":"F910-R910","v":0},null,null,null,{"$f":"R910","v":1}]
[31,null,{"$f":"'FR-16(7)(v)-1 Functional'!C911","v":"WTD PREPAYMENTS RATIOS"},"Internal",{"$f":"'FR-16(7)(v)-1 Functional'!E911","v":"W689"},1,{"$f":"IF(F911=0,0,F911-SUM(H911:Q911))","v":1},{"$f":"ROUND(IF($F$405=0,0,H405/$F$405),5)","v":0},0,0,0,{"$f":"ROUND(IF($F$405=0,0,L405/$F$405),5)","v":0},0,0,0,0,0,{"$f":"SUM(G911:Q911)","v":1},{"$f":"F911-R911","v":0},null,null,null,{"$f":"R911","v":1}]
[32,null,{"$f":"'FR-16(7)(v)-1 Functional'!C912","v":"WTD TOTAL WORKING CASH RATIOS"},"Internal",{"$f":"'FR-16(7)(v)-1 Functional'!E912","v":"W719"},1,{"$f":"IF(F912=0,0,F912-SUM(H912:Q912))","v":1},{"$f":"ROUND(IF($F$408=0,0,H408/$F$408),5)","v":0},0,0,0,{"$f":"ROUND(IF($F$408=0,0,L408/$F$408),5)","v":0},0,0,0,0,0,{"$f":"SUM(G912:Q912)","v":1},{"$f":"F912-R912","v":0},null,null,null,{"$f":"R912","v":1}]
[33,null,{"$f":"'FR-16(7)(v)-1 Functional'!C913","v":"WTD TOTAL MISC WRKNG CAP RATIO"},"Internal",{"$f":"'FR-16(7)(v)-1 Functional'!E913","v":"W749"},1,{"$f":"IF(F913=0,0,F913-SUM(H913:Q913))","v":1},{"$f":"ROUND(IF($F$414=0,0,H414/$F$414),5)","v":0},0,0,0,{"$f":"ROUND(IF($F$414=0,0,L414/$F$414),5)","v":0},0,0,0,0,0,{"$f":"SUM(G913:Q913)","v":1},{"$f":"F913-R913","v":0},null,null,null,{"$f":"R913","v":1}]
[34,null,{"$f":"'FR-16(7)(v)-1 Functional'!C914","v":"WTD TOTAL WRKNG CAP RATIOS"},"Internal",{"$f":"'FR-16(7)(v)-1 Functional'!E914","v":"WC79"},1,{"$f":"IF(F914=0,0,F914-SUM(H914:Q914))","v":1},{"$f":"ROUND(IF($F$416=0,0,H416/$F$416),5)","v":0},0,0,0,{"$f":"ROUND(IF($F$416=0,0,L416/$F$416),5)","v":0},0,0,0,0,0,{"$f":"SUM(G914:Q914)","v":1},{"$f":"F914-R914","v":0}]
[35]
[36,"RATE BASE"]
[37,null,{"$f":"'FR-16(7)(v)-1 Functional'!C917","v":"WTD NET OCRB RATIOS"},"Internal",{"$f":"'FR-16(7)(v)-1 Functional'!E917","v":"RB29"},1,{"$f":"IF(F917=0,0,F917-SUM(H917:Q917))","v":1},{"$f":"ROUND(IF($F$390=0,0,H390/$F$390),5)","v":0},0,0,0,{"$f":"ROUND(IF($F$390=0,0,L390/$F$390),5)","v":0},0,0,0,0,0,{"$f":"SUM(G917:Q917)","v":1},{"$f":"F917-R917","v":0}]
[38,null,{"$f":"'FR-16(7)(v)-1 Functional'!C918","v":"WTD TOTAL RATE BASE RATIOS"},"Internal",{"$f":"'FR-16(7)(v)-1 Functional'!E918","v":"RB99"},1,{"$f":"IF(F918=0,0,F918-SUM(H918:Q918))","v":1},{"$f":"ROUND(IF($F$426=0,0,H426/$F$426),5)","v":0},0,0,0,{"$f":"ROUND(IF($F$426=0,0,L426/$F$426),5)","v":0},0,0,0,0,0,{"$f":"SUM(G918:Q918)","v":1},{"$f":"F918-R918","v":0}]
[39,null,{"$f":"'FR-16(7)(v)-1 Functional'!C919","v":"WTD CWIP RATIO"},"Internal",{"$f":"'FR-16(7)(v)-1 Functional'!E919","v":"CW29"},1,{"$f":"IF(F919=0,0,F919-SUM(H919:Q919))","v":1},{"$f":"ROUND(IF($F$375=0,0,H375/$F$375),5)","v":0},0,0,0,{"$f":"ROUND(IF($F$375=0,0,L375/$F$375),5)","v":0},0,0,0,0,0,{"$f":"SUM(G919:Q919)","v":1},{"$f":"F919-R919","v":0},null,null,null,{"$f":"R919","v":1}]
[]
[{"$f":"co_name","v":"DUKE ENERGY KENTUCKY, INC."},null,null,null,null,null,null,null,null,null,null,null,null,null,null,null,null,{"$f":"R1","v":"FR-16(7)(v)-8"}]
[{"$f":"$A$2","v":"TRANSMISSION ENERGY ALLOCATED - ELECTRIC COST OF SERVICE"},null,null,null,null,null,null,null,null,null,null,null,null,null,null,null,null,{"$f":"R2","v":"WITNESS RESPONSIBLE:"}]
[{"$f":"case_name","v":"CASE NO: 2019-00271"},null,null,null,null,null,null,null,null,null,null,null,null,null,null,null,null,{"$f":"Witness","v":"JAMES E. ZIOLKOWSKI"}]
[{"$f":"data_filing","v":"DATA: 12 MONTHS ACTUAL  & 0 MONTHS ESTIMATED"},null,null,null,null,null,null,null,null,null,null,null,null,null,null,null,null,{"$f":"\"PAGE \"&Pages&\" OF \"&Pages","v":"PAGE 18 OF 18"}]
[{"$f":"type","v":"TYPE OF FILING: \"X\" ORIGINAL   UPDATED    REVISED  "}]
[]
[null,null,null,null,null,{"$f":"F$7","v":"TOTAL"},null,{"$f":"H$7","v":"DS"},{"$f":"I$7","v":"GSFL"},{"$f":"J$7","v":"EH"},{"$f":"K$7","v":"SP"},"DT SEC","DT PRI","DP","TT",null,"OTHER"]
["LINE",null,null,null,null,{"$f":"F$8","v":"TRANSMISSION"},{"$f":"G$8","v":"RS"},{"$f":"H$8","v":"SECONDARY"},{"$f":"I$8","v":"SECONDARY"},{"$f":"J$8","v":"SECONDARY"},{"$f":"K$8","v":"SECONDARY"},"SECONDARY","PRIMARY","PRIMARY","TRANSMISSION","LT","WATER",{"$f":"R8","v":"TOTAL"},"ALL"]
["NO.","ALLOCATORS",null,"SOURCE","ALLO",{"$f":"F$9","v":"ENERGY"},{"$f":"G$9","v":"RESIDENTIAL"},{"$f":"H$9","v":"DISTRIBUTION"},{"$f":"I$9","v":"DISTRIBUTION"},{"$f":"J$9","v":"DISTRIBUTION"},{"$f":"K$9","v":"DISTRIBUTION"},"DISTRIBUTION","DISTRIBUTION","DISTRIBUTION","TIME OF DAY","LIGHTING","PUMPING",{"$f":"R9","v":"AT ISSUE"},"OTHER"]
[null,null,"Schedule 12.2",null,1,null,{"$f":"G$10","v":3},{"$f":"H$10","v":4},{"$f":"I$10","v":5},{"$f":"J$10","v":6},{"$f":"K$10","v":7},8,9,10,11,12,13,null," "]
[1,"WEIGHTED O & M EXPENSE RATIOS"]
[2,null,{"$f":"'FR-16(7)(v)-1 Functional'!C932","v":"WTD PROD DEMAND O&M EXP RATIOS"},"Internal",{"$f":"'FR-16(7)(v)-1 Functional'!E932","v":"P349"},1,{"$f":"ROUND(IF($F$457=0,0,G457/$F$457),5)","v":0},{"$f":"ROUND(IF($F$457=0,0,H457/$F$457),5)","v":0},0,0,0,{"$f":"ROUND(IF($F$457=0,0,L457/$F$457),5)","v":0},0,0,0,0,0,{"$f":"SUM(G932:Q932)","v":0},{"$f":"F932-R932","v":1},null,null,null,{"$f":"R932","v":0}]
[3,null,{"$f":"'FR-16(7)(v)-1 Functional'!C933","v":"WTD PROD ENERGY O&M EXP RATIOS"},"Internal",{"$f":"'FR-16(7)(v)-1 Functional'!E933","v":"E349"},1,{"$f":"ROUND(IF($F$453=0,0,G453/$F$453),5)","v":0},{"$f":"ROUND(IF($F$453=0,0,H453/$F$453),5)","v":0},0,0,0,{"$f":"ROUND(IF($F$453=0,0,L453/$F$453),5)","v":0},0,0,0,0,0,0,1,null,null,null,{"$f":"R933","v":0}]
[4,null,{"$f":"'FR-16(7)(v)-1 Functional'!C934","v":"WTD TOTAL PROD O&M EXP RATIOS"},"Internal",{"$f":"'FR-16(7)(v)-1 Functional'!E934","v":"P459"},1,{"$f":"ROUND(IF($F$459=0,0,G459/$F$459),5)","v":0},{"$f":"ROUND(IF($F$459=0,0,H459/$F$459),5)","v":0},0,0,0,{"$f":"ROUND(IF($F$459=0,0,L459/$F$459),5)","v":0},0,0,0,0,0,0,1,null,null,null,{"$f":"R934","v":0}]
[5,null,{"$f":"'FR-16(7)(v)-1 Functional'!C935","v":"WTD TRANS O&M EXP RATIOS"},"Internal",{"$f":"'FR-16(7)(v)-1 Functional'!E935","v":"T349"},1,{"$f":"ROUND(IF($F$466=0,0,G466/$F$466),5)","v":0},{"$f":"ROUND(IF($F$466=0,0,H466/$F$466),5)","v":0},0,0,0,{"$f":"ROUND(IF($F$466=0,0,L466/$F$466),5)","v":0},0,0,0,0,0,0,1,null,null,null,{"$f":"R935","v":0}]
[6,null,{"$f":"'FR-16(7)(v)-1 Functional'!C936","v":"WTD DIST O&M EXP RATIOS"},"Internal",{"$f":"'FR-16(7)(v)-1 Functional'!E936","v":"D349"},1,{"$f":"ROUND(IF($F$492=0,0,G492/$F$492),5)","v":0},{"$f":"ROUND(IF($F$492=0,0,H492/$F$492),5)","v":0},0,0,0,{"$f":"ROUND(IF($F$492=0,0,L492/$F$492),5)","v":0},0,0,0,0,0,0,1]
[7,null,{"$f":"'FR-16(7)(v)-1 Functional'!C937","v":"WTD UNCOLLECTIBLE ACCOUNT O&M"},"Internal",{"$f":"'FR-16(7)(v)-1 Functional'!E937","v":"C311"},1,{"$f":"ROUND(IF($F$496=0,0,G496/$F$496),5)","v":0},{"$f":"ROUND(IF($F$496=0,0,H496/$F$496),5)","v":0},0,0,0,{"$f":"ROUND(IF($F$496=0,0,L496/$F$496),5)","v":0},0,0,0,0,0,0,1,null,null,null,{"$f":"R937","v":0}]
[8,null,{"$f":"'FR-16(7)(v)-1 Functional'!C938","v":"WTD CUST ACCT O&M EXP RATIOS"},"Internal",{"$f":"'FR-16(7)(v)-1 Functional'!E938","v":"C319"},1,{"$f":"ROUND(IF($F$503=0,0,G503/$F$503),5)","v":0},{"$f":"ROUND(IF($F$503=0,0,H503/$F$503),5)","v":0},0,0,0,{"$f":"ROUND(IF($F$503=0,0,L503/$F$503),5)","v":0},0,0,0,0,0,0,1,null,null,null,{"$f":"R938","v":0}]
[9,null,{"$f":"'FR-16(7)(v)-1 Functional'!C939","v":"WTD CUST SERV & INFO O&M  EXP RATIOS"},"Internal",{"$f":"'FR-16(7)(v)-1 Functional'!E939","v":"C331"},1,{"$f":"ROUND(IF($F$518=0,0,G518/$F$518),5)","v":0},{"$f":"ROUND(IF($F$518=0,0,H518/$F$518),5)","v":0},0,0,0,{"$f":"ROUND(IF($F$518=0,0,L518/$F$518),5)","v":0},0,0,0,0,0,0,1,null,null,null,{"$f":"R939","v":0}]
[10,null,{"$f":"'FR-16(7)(v)-1 Functional'!C940","v":"WTD SALES O&M EXP RATIOS"},"Internal",{"$f":"'FR-16(7)(v)-1 Functional'!E940","v":"S319"},1,{"$f":"ROUND(IF($F$522=0,0,G522/$F$522),5)","v":0},{"$f":"ROUND(IF($F$522=0,0,H522/$F$522),5)","v":0},0,0,0,{"$f":"ROUND(IF($F$522=0,0,L522/$F$522),5)","v":0},0,0,0,0,0,{"$f":"SUM(G940:Q940)","v":0},{"$f":"F940-R940","v":1}]
[11,null,{"$f":"'FR-16(7)(v)-1 Functional'!C941","v":"WTD O&M EXP RATIOS"},"Internal",{"$f":"'FR-16(7)(v)-1 Functional'!E941","v":"OM39"},1,{"$f":"ROUND(IF($F$549=0,0,G549/$F$549),5)","v":0},{"$f":"ROUND(IF($F$549=0,0,H549/$F$549),5)","v":0},0,0,0,{"$f":"ROUND(IF($F$549=0,0,L549/$F$549),5)","v":0},0,0,0,0,0,{"$f":"SUM(G941:Q941)","v":0},{"$f":"F941-R941","v":1}]
[12]
[13,"A & G EXPENSES"]
[14,null,{"$f":"'FR-16(7)(v)-1 Functional'!C944","v":"WTD PROD DEMAND A&G EXP RATIOS"},"Internal",{"$f":"'FR-16(7)(v)-1 Functional'!E944","v":"A300"},1,{"$f":"ROUND(IF($F$525=0,0,G525/$F$525),5)","v":0},{"$f":"ROUND(IF($F$525=0,0,H525/$F$525),5)","v":0},0,0,0,{"$f":"ROUND(IF($F$525=0,0,L525/$F$525),5)","v":0},0,0,0,0,0,{"$f":"SUM(G944:Q944)","v":0},{"$f":"F944-R944","v":1}]
[15,null,{"$f":"'FR-16(7)(v)-1 Functional'!C945","v":"WTD PROD ENERGY A&G EXP RATIOS"},"Internal",{"$f":"'FR-16(7)(v)-1 Functional'!E945","v":"A302"},1,{"$f":"ROUND(IF($F$526=0,0,G526/$F$526),5)","v":0},{"$f":"ROUND(IF($F$526=0,0,H526/$F$526),5)","v":0},0,0,0,{"$f":"ROUND(IF($F$526=0,0,L526/$F$526),5)","v":0},0,0,0,0,0,0,1]
[16,null,{"$f":"'FR-16(7)(v)-1 Functional'!C946","v":"WTD TRANS A&G EXP RATIOS"},"Internal",{"$f":"'FR-16(7)(v)-1 Functional'!E946","v":"A304"},1,{"$f":"ROUND(IF($F$527=0,0,G527/$F$527),5)","v":0},{"$f":"ROUND(IF($F$527=0,0,H527/$F$527),5)","v":0},0,0,0,{"$f":"ROUND(IF($F$527=0,0,L527/$F$527),5)","v":0},0,0,0,0,0,0,1]
[17,null,{"$f":"'FR-16(7)(v)-1 Functional'!C947","v":"WTD DIST A&G EXP RATIOS"},"Internal",{"$f":"'FR-16(7)(v)-1 Functional'!E947","v":"A306"},1,{"$f":"ROUND(IF($F$528=0,0,G528/$F$528),5)","v":0},{"$f":"ROUND(IF($F$528=0,0,H528/$F$528),5)","v":0},0,0,0,{"$f":"ROUND(IF($F$528=0,0,L528/$F$528),5)","v":0},0,0,0,0,0,0,1]
[18,null,{"$f":"'FR-16(7)(v)-1 Functional'!C948","v":"WTD CUST ACCT A&G EXP RATIOS"},"Internal",{"$f":"'FR-16(7)(v)-1 Functional'!E948","v":"A308"},1,{"$f":"ROUND(IF($F$529=0,0,G529/$F$529),5)","v":0},{"$f":"ROUND(IF($F$529=0,0,H529/$F$529),5)","v":0},0,0,0,{"$f":"ROUND(IF($F$529=0,0,L529/$F$529),5)","v":0},0,0,0,0,0,0,1]
[19,null,{"$f":"'FR-16(7)(v)-1 Functional'!C949","v":"WTD CUST SERV & INFO A&G  EXP RATIOS"},"Internal",{"$f":"'FR-16(7)(v)-1 Functional'!E949","v":"A310"},1,{"$f":"ROUND(IF($F$530=0,0,G530/$F$530),5)","v":0},{"$f":"ROUND(IF($F$530=0,0,H530/$F$530),5)","v":0},0,0,0,{"$f":"ROUND(IF($F$530=0,0,L530/$F$530),5)","v":0},0,0,0,0,0,0,1]
[20,null,{"$f":"'FR-16(7)(v)-1 Functional'!C950","v":"WTD SALES A&G EXP RATIOS"},"Internal",{"$f":"'FR-16(7)(v)-1 Functional'!E950","v":"A312"},1,{"$f":"ROUND(IF($F$531=0,0,G531/$F$531),5)","v":0},{"$f":"ROUND(IF($F$531=0,0,H531/$F$531),5)","v":0},0,0,0,{"$f":"ROUND(IF($F$531=0,0,L531/$F$531),5)","v":0},0,0,0,0,0,0,1]
[21,null,{"$f":"'FR-16(7)(v)-1 Functional'!C951","v":"WTD A&G EXPENSE UNADJUSTED"},"Internal",{"$f":"'FR-16(7)(v)-1 Functional'!E951","v":"A315"},1,{"$f":"ROUND(IF($F$532=0,0,G532/$F$532),5)","v":0},{"$f":"ROUND(IF($F$532=0,0,H532/$F$532),5)","v":0},0,0,0,{"$f":"ROUND(IF($F$532=0,0,L532/$F$532),5)","v":0},0,0,0,0,0,0,1]
[22,null,{"$f":"'FR-16(7)(v)-1 Functional'!C952","v":"WTD A&G EXP RATIOS"},"Internal",{"$f":"'FR-16(7)(v)-1 Functional'!E952","v":"A357"},1,{"$f":"ROUND(IF($F$547=0,0,G547/$F$547),5)","v":0},{"$f":"ROUND(IF($F$547=0,0,H547/$F$547),5)","v":0},0,0,0,{"$f":"ROUND(IF($F$547=0,0,L547/$F$547),5)","v":0},0,0,0,0,0,0,1]
[23]
[24,"DEPRECIATION EXPENSES"]
[25,null,{"$f":"'FR-16(7)(v)-1 Functional'!C955","v":"WTD PRODUCTION DEPREC RATIOS"},"Internal",{"$f":"'FR-16(7)(v)-1 Functional'!E955","v":"P489"},1,{"$f":"ROUND(IF($F$563=0,0,G563/$F$563),5)","v":0},{"$f":"ROUND(IF($F$563=0,0,H563/$F$563),5)","v":0},0,0,0,{"$f":"ROUND(IF($F$563=0,0,L563/$F$563),5)","v":0},0,0,0,0,0,{"$f":"SUM(G955:Q955)","v":0},{"$f":"F955-R955","v":1},null,null,null,{"$f":"R955","v":0}]
[26,null,{"$f":"'FR-16(7)(v)-1 Functional'!C956","v":"WTD TRANS DEPREC RATIOS"},"Internal",{"$f":"'FR-16(7)(v)-1 Functional'!E956","v":"T489"},1,{"$f":"ROUND(IF($F$567=0,0,G567/$F$567),5)","v":0},{"$f":"ROUND(IF($F$567=0,0,H567/$F$567),5)","v":0},0,0,0,{"$f":"ROUND(IF($F$567=0,0,L567/$F$567),5)","v":0},0,0,0,0,0,0,1,null,null,null,{"$f":"R956","v":0}]
[27,null,{"$f":"'FR-16(7)(v)-1 Functional'!C957","v":"WTD DIST DEPREC RATIOS"},"Internal",{"$f":"'FR-16(7)(v)-1 Functional'!E957","v":"D489"},1,{"$f":"ROUND(IF($F$571=0,0,G571/$F$571),5)","v":0},{"$f":"ROUND(IF($F$571=0,0,H571/$F$571),5)","v":0},0,0,0,{"$f":"ROUND(IF($F$571=0,0,L571/$F$571),5)","v":0},0,0,0,0,0,0,1,null,null,null,{"$f":"R957","v":0}]
[28,null,{"$f":"'FR-16(7)(v)-1 Functional'!C958","v":"WTD GENERAL DEPREC EXP RATIOS"},"Internal",{"$f":"'FR-16(7)(v)-1 Functional'!E958","v":"G489"},1,{"$f":"ROUND(IF($F$575=0,0,G575/$F$575),5)","v":0},{"$f":"ROUND(IF($F$575=0,0,H575/$F$575),5)","v":0},0,0,0,{"$f":"ROUND(IF($F$575=0,0,L575/$F$575),5)","v":0},0,0,0,0,0,0,1,null,null,null,{"$f":"R958","v":0}]
[29,null,{"$f":"'FR-16(7)(v)-1 Functional'!C959","v":"WTD COM & OTHER DEP EXP RATIOS"},"Internal",{"$f":"'FR-16(7)(v)-1 Functional'!E959","v":"C489"},1,{"$f":"ROUND(IF($F$579=0,0,G579/$F$579),5)","v":0},{"$f":"ROUND(IF($F$579=0,0,H579/$F$579),5)","v":0},0,0,0,{"$f":"ROUND(IF($F$579=0,0,L579/$F$579),5)","v":0},0,0,0,0,0,0,1]
[30,null,{"$f":"'FR-16(7)(v)-1 Functional'!C960","v":"WTD TOT DEPREC EXP RATIOS"},"Internal",{"$f":"'FR-16(7)(v)-1 Functional'!E960","v":"DE49"},1,{"$f":"ROUND(IF($F$582=0,0,G582/$F$582),5)","v":0},{"$f":"ROUND(IF($F$582=0,0,H582/$F$582),5)","v":0},0,0,0,{"$f":"ROUND(IF($F$582=0,0,L582/$F$582),5)","v":0},0,0,0,0,0,0,1,null,null,null,{"$f":"R960","v":0}]
[31]
[32,"OTHER TAXES & MISC EXPENSES"]
[33,null,{"$f":"'FR-16(7)(v)-1 Functional'!C963","v":"WTD R. E. & PROP TAX RATIOS"},"Internal",{"$f":"'FR-16(7)(v)-1 Functional'!E963","v":"L529"},1,{"$f":"ROUND(IF($F$598=0,0,G598/$F$598),5)","v":0},{"$f":"ROUND(IF($F$598=0,0,H598/$F$598),5)","v":0},0,0,0,{"$f":"ROUND(IF($F$598=0,0,L598/$F$598),5)","v":0},0,0,0,0,0,{"$f":"SUM(G963:Q963)","v":0},{"$f":"F963-R963","v":1},null,null,null,{"$f":"R963","v":0}]
[34,null,{"$f":"'FR-16(7)(v)-1 Functional'!C964","v":"WTD MISC TAX RATIOS"},"Internal",{"$f":"'FR-16(7)(v)-1 Functional'!E964","v":"L589"},1,{"$f":"ROUND(IF($F$605=0,0,G605/$F$605),5)","v":0},{"$f":"ROUND(IF($F$605=0,0,H605/$F$605),5)","v":0},0,0,0,{"$f":"ROUND(IF($F$605=0,0,L605/$F$605),5)","v":0},0,0,0,0,0,{"$f":"SUM(G964:Q964)","v":0},{"$f":"F964-R964","v":1},null,null,null,{"$f":"R964","v":0}]
[35,null,{"$f":"'FR-16(7)(v)-1 Functional'!C965","v":"WTD OTHER TAX RATIOS"},"Internal",{"$f":"'FR-16(7)(v)-1 Functional'!E965","v":"L599"},1,{"$f":"ROUND(IF($F$612=0,0,G612/$F$612),5)","v":0},{"$f":"ROUND(IF($F$612=0,0,H612/$F$612),5)","v":0},0,0,0,{"$f":"ROUND(IF($F$612=0,0,L612/$F$612),5)","v":0},0,0,0,0,0,{"$f":"SUM(G965:Q965)","v":0},{"$f":"F965-R965","v":1},null,null,null,{"$f":"R965","v":0}]
[36,null,{"$f":"'FR-16(7)(v)-1 Functional'!C966","v":"WTD OP EXP EX IT & REV RATIOS"},"Internal",{"$f":"'FR-16(7)(v)-1 Functional'!E966","v":"OP69"},1,{"$f":"ROUND(IF($F$618=0,0,G618/$F$618),5)","v":0},{"$f":"ROUND(IF($F$618=0,0,H618/$F$618),5)","v":0},0,0,0,{"$f":"ROUND(IF($F$618=0,0,L618/$F$618),5)","v":0},0,0,0,0,0,{"$f":"SUM(G966:Q966)","v":0},{"$f":"F966-R966","v":1},null,null,null,{"$f":"R966","v":0}]
[37]
[38,"TOTAL COST OF SERVICE"]
[39,null,{"$f":"'FR-16(7)(v)-1 Functional'!C969","v":"WTD TOTAL COST OF SERVICE"},"Internal",{"$f":"'FR-16(7)(v)-1 Functional'!E969","v":"CS09"},1,{"$f":"ROUND(IF($F$770=0,0,G770/$F$770),9)","v":0},0,0,0,0,0,0,0,0,0,0,{"$f":"SUM(G969:Q969)","v":0},{"$f":"F969-R969","v":1},null,null,null,{"$f":"R969","v":0}]
[40]
[41,"WAGES & SALARIES (K600-K639)"]
[42,null,{"$f":"'FR-16(7)(v)-1 Functional'!C972","v":"WTD RATIOS"},"Internal",{"$f":"'FR-16(7)(v)-1 Functional'!E972","v":"K669"}]
[]
[]
[]
[]
[]
[]
[]
[]
[]
[1,"REVENUE NOT TO BE INCLUDED IN REVENUE TAX CALC"]
[2,null,"GOVERNMENTAL",null,"A357",{"$f":"'FR-16(7)(v)-6 TRANS Classified'!H983","v":0},{"$f":"F983-SUM(H983:Q983)","v":0},{"$f":"ROUND(F983*VLOOKUP(E983,ALLOCTABLE_Trans_Energy,$H$10,FALSE),0)","v":0},{"$f":"ROUND(F983*VLOOKUP(E983,ALLOCTABLE_Trans_Energy,$I$10,FALSE),0)","v":0},{"$f":"ROUND(F983*VLOOKUP(E983,ALLOCTABLE_Trans_Energy,$J$10,FALSE),0)","v":0},{"$f":"ROUND(F983*VLOOKUP(E983,ALLOCTABLE_Trans_Energy,$K$10,FALSE),0)","v":0},{"$f":"ROUND(F983*VLOOKUP(E983,ALLOCTABLE_Trans_Energy,$L$10,FALSE),0)","v":0},{"$f":"ROUND(F983*VLOOKUP(E983,ALLOCTABLE_Trans_Energy,$M$10,FALSE),0)","v":0},{"$f":"ROUND(F983*VLOOKUP(E983,ALLOCTABLE_Trans_Energy,$N$10,FALSE),0)","v":0},{"$f":"ROUND(F983*VLOOKUP(E983,ALLOCTABLE_Trans_Energy,$O$10,FALSE),0)","v":0},{"$f":"ROUND(F983*VLOOKUP(E983,ALLOCTABLE_Trans_Energy,$P$10,FALSE),0)","v":0},{"$f":"ROUND(F983*VLOOKUP(E983,ALLOCTABLE_Trans_Energy,$Q$10,FALSE),0)","v":0},{"$f":"SUM(G983:Q983)","v":0},{"$f":"F983-R983","v":0}]
[3,null,"INTERDEPARTMENTAL",null,"A357",{"$f":"'FR-16(7)(v)-6 TRANS Classified'!H984","v":0},0,0,0,0,0,0,0,0,0,0,0,0,0]
[4,null,"UNCOLLECTIBLE EXPENSE",null,"A357",{"$f":"'FR-16(7)(v)-6 TRANS Classified'!H985","v":0},0,0,0,0,0,0,0,0,0,0,0,0,0]
[5,null,"OTHER PROD GAS ASSC COS  489050",null,"K301",{"$f":"'FR-16(7)(v)-6 TRANS Classified'!H986","v":0},0,0,0,0,0,0,0,0,0,0,0,0,0]
[6,null,"MISC. REV. - SALE OF MATERIAL",null,"A357",{"$f":"'FR-16(7)(v)-6 TRANS Classified'!H987","v":0},0,0,0,0,0,0,0,0,0,0,0,0,0]
[7,null,"RENT ASSOC. COS  49302,04,05,06,07,08,11 & 50",null,"NP29",{"$f":"'FR-16(7)(v)-6 TRANS Classified'!H988","v":0},0,0,0,0,0,0,0,0,0,0,0,0,0]
[8,null,"TOTAL","REXC",null,{"$f":"SUM(F982:F988)","v":0},0,0,0,{"$f":"SUM(J982:J988)","v":0},0,0,0,0,0,0,0,0,0]
[]
[]
[]
[]
[]
["DO NOT FILE THIS PAGE"]
[]
[{"$f":"co_name","v":"DUKE ENERGY KENTUCKY, INC."},null,null,null,null,null,null,null,null,null,null,null,null,null,null,null,null,{"$f":"R1","v":"FR-16(7)(v)-8"}]
[{"$f":"$A$2","v":"TRANSMISSION ENERGY ALLOCATED - ELECTRIC COST OF SERVICE"},null,null,null,null,null,null,null,null,null,null,null,null,null,null,null,null,{"$f":"R2","v":"WITNESS RESPONSIBLE:"}]
[{"$f":"case_name","v":"CASE NO: 2019-00271"},null,null,null,null,null,null,null,null,null,null,null,null,null,null,null,null,{"$f":"Witness","v":"JAMES E. ZIOLKOWSKI"}]
[{"$f":"data_filing","v":"DATA: 12 MONTHS ACTUAL  & 0 MONTHS ESTIMATED"},null,null,null,null,null,null,null,null,null,null,null,null,null,null,null,null,{"$f":"\"PAGE \"&Pages&\" OF \"&Pages","v":"PAGE 18 OF 18"}]
[{"$f":"type","v":"TYPE OF FILING: \"X\" ORIGINAL   UPDATED    REVISED  "}]
[]
[null,null,null,null,null,{"$f":"F$7","v":"TOTAL"},null,{"$f":"H$7","v":"DS"},{"$f":"I$7","v":"GSFL"},{"$f":"J$7","v":"EH"},{"$f":"K$7","v":"SP"},"DT SEC","DT PRI","DP","TT",null,"OTHER"]
["LINE",null,null,null,null,{"$f":"F$8","v":"TRANSMISSION"},{"$f":"G$8","v":"RS"},{"$f":"H$8","v":"SECONDARY"},{"$f":"I$8","v":"SECONDARY"},{"$f":"J$8","v":"SECONDARY"},{"$f":"K$8","v":"SECONDARY"},"SECONDARY","PRIMARY","PRIMARY","TRANSMISSION","LT","WATER",{"$f":"R8","v":"TOTAL"},"ALL"]
["NO.","INCOME TAX BASED ON REVENUES",null,"ALLO",null,{"$f":"F$9","v":"ENERGY"},{"$f":"G$9","v":"RESIDENTIAL"},{"$f":"H$9","v":"DISTRIBUTION"},{"$f":"I$9","v":"DISTRIBUTION"},{"$f":"J$9","v":"DISTRIBUTION"},{"$f":"K$9","v":"DISTRIBUTION"},"DISTRIBUTION","DISTRIBUTION","DISTRIBUTION","TIME OF DAY","LIGHTING","PUMPING",{"$f":"R9","v":"AT ISSUE"},"OTHER"]
[null,null,"Schedule 13",null,null,null,{"$f":"G$10","v":3},{"$f":"H$10","v":4},{"$f":"I$10","v":5},{"$f":"J$10","v":6},{"$f":"K$10","v":7},8,9,10,11,12,13,null," "]
[1,"NET INCOME COMPUTATION"]
[2,null,{"$f":"'FR-16(7)(v)-1 Functional'!C1008","v":"TOTAL ELECTRIC COST OF SERVICE"},null,null,{"$f":"F770","v":0},0,0,0,{"$f":"J770","v":0},0,0,0,0,0,0,0,0,0]
[3,null,{"$f":"'FR-16(7)(v)-1 Functional'!C1009","v":"TOTAL OTHER OPERATING REVENUES"},null,null,{"$f":"F750","v":0},{"$f":"G750","v":0},{"$f":"H750","v":0},{"$f":"I750","v":0},{"$f":"J750","v":0},0,0,0,0,0,0,{"$f":"$Q$750","v":0},{"$f":"R750","v":0},{"$f":"S750","v":0}]
[4,null,{"$f":"'FR-16(7)(v)-1 Functional'!C1010","v":"  TOTAL ELECTRIC REVENUE"},null,null,{"$f":"SUM(F1007:F1009)","v":0},0,0,0,{"$f":"SUM(J1007:J1009)","v":0},0,0,0,0,0,0,0,0,0]
[5,null,{"$f":"'FR-16(7)(v)-1 Functional'!C1011","v":"TOTAL OP EXP EX INC & REV TAX"},null,null,{"$f":"-F618","v":0},{"$f":"-G618","v":0},{"$f":"-H618","v":0},{"$f":"-I618","v":0},{"$f":"-J618","v":0},0,0,0,0,0,0,{"$f":"-$Q$618","v":0},{"$f":"-R618","v":0},{"$f":"-S618","v":0}]
[6,null,{"$f":"'FR-16(7)(v)-1 Functional'!C1012","v":"FIRM SERVICE REVENUE TAX"},null,null,{"$f":"-ROUND(F817*F1008,0)","v":0},{"$f":"F1012-SUM(H1012:Q1012)","v":0},{"$f":"-ROUND(H817*H1008,0)","v":0},0,0,0,0,0,0,0,0,0,{"$f":"SUM(G1012:Q1012)","v":0},{"$f":"-ROUND('FR-16(7)(v)-1 Functional'!K817*S1008,0)","v":0}]
[7,null,{"$f":"'FR-16(7)(v)-1 Functional'!C1013","v":"  NET INCOME"},null,null,{"$f":"SUM(F1010:F1012)","v":0},{"$f":"SUM(G1010:G1012)","v":0},{"$f":"SUM(H1010:H1012)","v":0},{"$f":"SUM(I1010:I1012)","v":0},{"$f":"SUM(J1010:J1012)","v":0},0,0,0,0,0,0,{"$f":"SUM(Q1010:Q1012)","v":0},{"$f":"SUM(G1013:Q1013)","v":0},{"$f":"SUM(S1010:S1012)","v":0}]
[8]
[9,"ADJUSTMENTS TO NET INCOME"]
[10,null,{"$f":"'FR-16(7)(v)-1 Functional'!C1016","v":"TOTAL INTEREST EXPENSE"},null,null,{"$f":"-F633","v":0},{"$f":"-G633","v":0},{"$f":"-H633","v":0},{"$f":"-I633","v":0},{"$f":"-J633","v":0},0,0,0,0,0,0,{"$f":"-$Q$633","v":0},{"$f":"-R633","v":0},{"$f":"-S633","v":0}]
[11,null,{"$f":"'FR-16(7)(v)-1 Functional'!C1017","v":"TOTAL OTHER DEDUCTIONS"},null,null,{"$f":"-F639","v":0},{"$f":"-G639","v":0},{"$f":"-H639","v":0},{"$f":"-I639","v":0},{"$f":"-J639","v":0},0,0,0,0,0,0,{"$f":"-$Q$639","v":0},{"$f":"-R639","v":0},{"$f":"-S639","v":0}]
[12,null,{"$f":"'FR-16(7)(v)-1 Functional'!C1018","v":"  PRELIMINARY TAXABLE INCOME"},null,null,{"$f":"SUM(F1015:F1017)+F1013","v":0},{"$f":"SUM(G1015:G1017)+G1013","v":0},{"$f":"SUM(H1015:H1017)+H1013","v":0},{"$f":"SUM(I1015:I1017)+I1013","v":0},{"$f":"SUM(J1015:J1017)+J1013","v":0},0,0,0,0,0,0,{"$f":"SUM(Q1015:Q1017)+Q1013","v":0},{"$f":"SUM(G1018:Q1018)","v":0},{"$f":"SUM(S1015:S1017)+S1013","v":0}]
[13]
[14,"INCOME TAX BASED ON REVENUES"]
[15,"FEDERAL INCOME TAX COMPUTATION"]
[16,null,{"$f":"'FR-16(7)(v)-1 Functional'!C1022","v":"PRELIMINARY TAXABLE INCOME"},null,null,{"$f":"F1018","v":0},0,0,0,{"$f":"J1018","v":0},0,0,0,0,0,0,0,0,0]
[17,null,{"$f":"'FR-16(7)(v)-1 Functional'!C1023","v":"  NET FEDERAL TAXABLE INCOME"},null,null,{"$f":"SUM(F1022:F1022)","v":0},0,0,0,{"$f":"SUM(J1022:J1022)","v":0},0,0,0,0,0,0,0,0,0]
[18,null,{"$f":"'FR-16(7)(v)-1 Functional'!C1024","v":"  FEDERAL INCOME TAX RATE"},null,null,{"$f":"F815","v":0.21},{"$f":"G815","v":0.21},{"$f":"H815","v":0.21},{"$f":"I815","v":0.21},{"$f":"J815","v":0.21},0.21,0.21,0.21,0.21,0.21,0.21,{"$f":"Q815","v":0.21},null,{"$f":"'FR-16(7)(v)-1 Functional'!K815","v":0.21}]
[19,null,{"$f":"'FR-16(7)(v)-1 Functional'!C1025","v":"PRELIMINARY FIT = FI01 * K190"},null,null,{"$f":"ROUND(F1024*F1023,0)","v":0},{"$f":"ROUND(G1024*G1023,0)","v":0},{"$f":"ROUND(H1024*H1023,0)","v":0},{"$f":"ROUND(I1024*I1023,0)","v":0},{"$f":"ROUND(J1024*J1023,0)","v":0},0,0,0,0,0,0,{"$f":"ROUND(Q1024*Q1023,0)","v":0},{"$f":"SUM(G1025:Q1025)","v":0},{"$f":"ROUND(S1024*S1023,0)","v":0}]
[20,null,{"$f":"'FR-16(7)(v)-1 Functional'!C1026","v":"TOTAL FED DEF IT (410 & 411)"},null,null,{"$f":"F649","v":0},{"$f":"G649","v":0},{"$f":"H649","v":0},{"$f":"I649","v":0},{"$f":"J649","v":0},0,0,0,0,0,0,{"$f":"$Q$649","v":0},{"$f":"R649","v":0},{"$f":"S649","v":0}]
[21,null,{"$f":"'FR-16(7)(v)-1 Functional'!C1027","v":"TOTAL AMORTIZED ITC"},null,null,{"$f":"-F653","v":0},{"$f":"-G653","v":0},{"$f":"-H653","v":0},{"$f":"-I653","v":0},{"$f":"-J653","v":0},0,0,0,0,0,0,{"$f":"-$Q$653","v":0},{"$f":"-R653","v":0},{"$f":"-S653","v":0}]
[22,null,{"$f":"'FR-16(7)(v)-1 Functional'!C1028","v":"  NET FED INC TAX ALLOWABLE"},null,null,{"$f":"SUM(F1025:F1027)","v":0},0,0,0,{"$f":"SUM(J1025:J1027)","v":0},0,0,0,0,0,0,0,0,0]
[23]
[24,"FEDERAL INCOME TAX PAYABLE"]
[25,null,{"$f":"'FR-16(7)(v)-1 Functional'!C1031","v":"PRELIM FIT"},null,null,{"$f":"F1025","v":0},0,0,0,{"$f":"J1025","v":0},0,0,0,0,0,0,0,0,0]
[26,null,{"$f":"'FR-16(7)(v)-1 Functional'!C1032","v":"TEST YEAR INV TAX CREDIT"},null,null,{"$f":"-F658","v":0},{"$f":"-G658","v":0},{"$f":"-H658","v":0},{"$f":"-I658","v":0},{"$f":"-J658","v":0},0,0,0,0,0,0,{"$f":"-$Q$658","v":0},{"$f":"-R658","v":0},{"$f":"-S658","v":0}]
[27,null,{"$f":"'FR-16(7)(v)-1 Functional'!C1033","v":"  FED INC TAX PAYABLE"},null,null,{"$f":"SUM(F1030:F1032)","v":0},0,0,0,{"$f":"SUM(J1030:J1032)","v":0},0,0,0,0,0,0,0,0,0]
[28]
[29,"PRELIMINARY SUMMARY"]
[30,null,{"$f":"'FR-16(7)(v)-1 Functional'!C1036","v":"NET INCOME"},null,null,{"$f":"F1013","v":0},0,0,0,{"$f":"J1013","v":0},0,0,0,0,0,0,0,0,0]
[31,null,{"$f":"'FR-16(7)(v)-1 Functional'!C1037","v":"NET FED INC TAX ALLOWABLE"},null,null,{"$f":"-F1028","v":0},0,0,0,{"$f":"-J1028","v":0},0,0,0,0,0,0,0,0,0]
[32,null,{"$f":"'FR-16(7)(v)-1 Functional'!C1038","v":"  OVERALL RETURN EARNED"},null,null,{"$f":"SUM(F1035:F1037)","v":0},0,0,0,{"$f":"SUM(J1035:J1037)","v":0},0,0,0,0,0,0,0,0,0]
[33]
[34,null,{"$f":"'FR-16(7)(v)-1 Functional'!C1040","v":"  RATE OF RETURN EARNED"},null,null,{"$f":"IF(F426=0,0,ROUND(F1038/F426,5))","v":0},0,0,0,0,0,0,0,0,0,0,0,0,0]

{"sheet":"FR-16(7)(v)-9 TRANS Cust","index":12,"n_rows":1040,"n_cols":23,"rows_kept":1040,"cut":false,"hidden":false,"merged":[]}
[{"$f":"co_name","v":"DUKE ENERGY KENTUCKY, INC."},null,null,null,null,null,null,null,null,null,null,null,null,null,null,null,null,"FR-16(7)(v)-9"]
[{"$f":"F8&\" \"&F9&\" ALLOCATED - ELECTRIC COST OF SERVICE\"","v":"TRANSMISSION CUSTOMER ALLOCATED - ELECTRIC COST OF SERVICE"},null,null,null,null,null,null,null,null,null,null,null,null,null,null,null,null,"WITNESS RESPONSIBLE:"]
[{"$f":"case_name","v":"CASE NO: 2019-00271"},null,null,null,null,null,null,null,null,null,null,null,null,null,null,null,null,{"$f":"Witness","v":"JAMES E. ZIOLKOWSKI"}]
[{"$f":"data_filing","v":"DATA: 12 MONTHS ACTUAL  & 0 MONTHS ESTIMATED"},null,null,null,null,null,null,null,null,null,null,null,null,null,null,null,null,{"$f":"\"PAGE \"&Pages-17&\" OF \"&Pages","v":"PAGE 1 OF 18"}]
[{"$f":"type","v":"TYPE OF FILING: \"X\" ORIGINAL   UPDATED    REVISED  "}]
[]
[null,null,null,null,null,{"$f":"'FR-16(7)(v)-3 PROD Demand'!F7","v":"TOTAL"},null,{"$f":"'FR-16(7)(v)-3 PROD Demand'!H7","v":"DS"},{"$f":"'FR-16(7)(v)-3 PROD Demand'!I7","v":"GSFL"},{"$f":"'FR-16(7)(v)-3 PROD Demand'!J7","v":"EH"},{"$f":"'FR-16(7)(v)-3 PROD Demand'!K7","v":"SP"},{"$f":"'FR-16(7)(v)-3 PROD Demand'!L7","v":"DT SEC"},{"$f":"'FR-16(7)(v)-3 PROD Demand'!M7","v":"DT PRI"},{"$f":"'FR-16(7)(v)-3 PROD Demand'!N7","v":"DP"},{"$f":"'FR-16(7)(v)-3 PROD Demand'!O7","v":"TT"},null,{"$f":"'FR-16(7)(v)-3 PROD Demand'!Q7","v":"OTHER"}]
["LINE",null,null,null,null,{"$f":"'FR-16(7)(v)-7 TRANS Demand'!F8","v":"TRANSMISSION"},{"$f":"'FR-16(7)(v)-3 PROD Demand'!G8","v":"RS"},{"$f":"'FR-16(7)(v)-3 PROD Demand'!H8","v":"SECONDARY"},{"$f":"'FR-16(7)(v)-3 PROD Demand'!I8","v":"SECONDARY"},{"$f":"'FR-16(7)(v)-3 PROD Demand'!J8","v":"SECONDARY"},{"$f":"'FR-16(7)(v)-3 PROD Demand'!K8","v":"SECONDARY"},{"$f":"'FR-16(7)(v)-3 PROD Demand'!L8","v":"SECONDARY"},{"$f":"'FR-16(7)(v)-3 PROD Demand'!M8","v":"PRIMARY"},{"$f":"'FR-16(7)(v)-3 PROD Demand'!N8","v":"PRIMARY"},{"$f":"'FR-16(7)(v)-3 PROD Demand'!O8","v":"TRANSMISSION"},{"$f":"'FR-16(7)(v)-3 PROD Demand'!P8","v":"LT"},{"$f":"'FR-16(7)(v)-3 PROD Demand'!Q8","v":"WATER"},{"$f":"'FR-16(7)(v)-3 PROD Demand'!R8","v":"TOTAL"},{"$f":"'FR-16(7)(v)-3 PROD Demand'!S8","v":"ALL"}]
["NO.","SUMMARY OF RESULTS",null,"ALLO",null,"CUSTOMER",{"$f":"'FR-16(7)(v)-3 PROD Demand'!G9","v":"RESIDENTIAL"},{"$f":"'FR-16(7)(v)-3 PROD Demand'!H9","v":"DISTRIBUTION"},{"$f":"'FR-16(7)(v)-3 PROD Demand'!I9","v":"DISTRIBUTION"},{"$f":"'FR-16(7)(v)-3 PROD Demand'!J9","v":"DISTRIBUTION"},{"$f":"'FR-16(7)(v)-3 PROD Demand'!K9","v":"DISTRIBUTION"},{"$f":"'FR-16(7)(v)-3 PROD Demand'!L9","v":"DISTRIBUTION"},{"$f":"'FR-16(7)(v)-3 PROD Demand'!M9","v":"DISTRIBUTION"},{"$f":"'FR-16(7)(v)-3 PROD Demand'!N9","v":"DISTRIBUTION"},{"$f":"'FR-16(7)(v)-3 PROD Demand'!O9","v":"TIME OF DAY"},{"$f":"'FR-16(7)(v)-3 PROD Demand'!P9","v":"LIGHTING"},{"$f":"'FR-16(7)(v)-3 PROD Demand'!Q9","v":"PUMPING"},{"$f":"'FR-16(7)(v)-3 PROD Demand'!R9","v":"AT ISSUE"},{"$f":"'FR-16(7)(v)-3 PROD Demand'!S9","v":"OTHER"}]
[null,null,"Schedule 1",null,null,null,3,4,5,6,7,8,9,10,11,12,13]
[1,"NET INCOME COMPUTATION"]
[2,null,{"$f":"'FR-16(7)(v)-1 Functional'!C12","v":"GROSS ELECTRIC PLANT IN SERVICE"},null,null,{"$f":"F123","v":2824},{"$f":"G123","v":1914},{"$f":"H123","v":1018},{"$f":"I123","v":0},{"$f":"J123","v":8},1,-39,-50,-2,-24,-3,{"$f":"Q123","v":1},{"$f":"SUM(G12:Q12)","v":2824},{"$f":"F12-R12","v":0}]
[3,null,{"$f":"'FR-16(7)(v)-1 Functional'!C13","v":"TOTAL DEPRECIATION RESERVE"},null,null,{"$f":"-F200","v":455},{"$f":"-G200","v":549},{"$f":"-H200","v":-163},{"$f":"-I200","v":0},{"$f":"-J200","v":-2},0,31,24,2,12,2,{"$f":"-Q200","v":0},{"$f":"SUM(G13:Q13)","v":455},{"$f":"F13-R13","v":0}]
[4,null,{"$f":"'FR-16(7)(v)-1 Functional'!C14","v":"TOTAL RATE BASE ADJUSTMENTS"},null,null,{"$f":"F421","v":1477},{"$f":"G421","v":1452},{"$f":"H421","v":-84},{"$f":"I421","v":1},{"$f":"J421","v":1},0,49,38,1,18,1,{"$f":"Q421","v":0},{"$f":"SUM(G14:Q14)","v":1477},{"$f":"F14-R14","v":0}]
[5,null,{"$f":"'FR-16(7)(v)-1 Functional'!C15","v":"  TOTAL RATE BASE"},null,null,{"$f":"SUM(F12:F14)","v":4756},{"$f":"SUM(G12:G14)","v":3915},{"$f":"SUM(H12:H14)","v":771},{"$f":"SUM(I12:I14)","v":1},{"$f":"SUM(J12:J14)","v":7},1,41,12,1,6,0,{"$f":"SUM(Q12:Q14)","v":1},{"$f":"SUM(R12:R14)","v":4756},{"$f":"F15-R15","v":0}]
[6]
[7,"OPERATING EXPENSES"]
[8,null,{"$f":"'FR-16(7)(v)-1 Functional'!C18","v":"TOTAL O&M EXPENSE"},null,null,{"$f":"F549","v":-1760},{"$f":"G549","v":-1648},{"$f":"H549","v":-13},{"$f":"I549","v":0},{"$f":"J549","v":0},0,-47,-32,-2,-16,-2,{"$f":"Q549","v":0},{"$f":"SUM(G18:Q18)","v":-1760},{"$f":"F18-R18","v":0}]
[9,null,{"$f":"'FR-16(7)(v)-1 Functional'!C19","v":"TOTAL DEPRECIATION EXPENSE"},null,null,{"$f":"F582","v":-63},{"$f":"G582","v":-73},{"$f":"H582","v":19},{"$f":"I582","v":0},{"$f":"J582","v":0},0,-4,-3,0,-2,0,{"$f":"Q582","v":0},{"$f":"SUM(G19:Q19)","v":-63},0]
[10,null,{"$f":"'FR-16(7)(v)-1 Functional'!C20","v":"TOTAL OTHER TAX & MISC EXPENSE"},null,null,{"$f":"F612","v":5},{"$f":"G612","v":-1},{"$f":"H612","v":8},{"$f":"I612","v":0},{"$f":"J612","v":0},0,-1,0,0,-1,0,{"$f":"$Q$612","v":0},{"$f":"SUM(G20:Q20)","v":5},0]
[11,null,{"$f":"'FR-16(7)(v)-1 Functional'!C21","v":"  TOTAL OP EXP EXCLUDING INC & REV TAX"},null,null,{"$f":"SUM(F17:F20)","v":-1818},-1722,14,0,{"$f":"SUM(J17:J20)","v":0},0,-52,-35,-2,-19,-2,0,-1818,0]
[12,null,{"$f":"'FR-16(7)(v)-1 Functional'!C22","v":"NET FED INCOME TAX EXP ALLOWABLE"},null,null,{"$f":"F676","v":54},{"$f":"G676","v":48},{"$f":"H676","v":4},{"$f":"I676","v":0},{"$f":"J676","v":0},0,1,1,0,0,0,{"$f":"$Q$676","v":0},{"$f":"SUM(G22:Q22)","v":54},0]
[13,null,"NET STATE INCOME TAX EXP ALLOWABLE",null,null,{"$f":"F722","v":-120},{"$f":"G722","v":-111},-3,0,0,0,-3,-2,0,-1,0,0,{"$f":"SUM(G23:Q23)","v":-120},0]
[14,null,"RESERVED",{"$f":"'FR-16(7)(v)-1 Functional'!D24","v":"CW29"},null,{"$f":"'FR-16(7)(v)-6 TRANS Classified'!I24","v":0},{"$f":"F24-SUM(H24:Q24)","v":0},{"$f":"ROUND(F24*VLOOKUP(D73,ALLOCTABLE_Trans_Customer,$H$10,FALSE),0)","v":0},{"$f":"ROUND(F24*VLOOKUP(D24,ALLOCTABLE_Trans_Customer,$I$10,FALSE),0)","v":0},{"$f":"ROUND(F24*VLOOKUP(D24,ALLOCTABLE_Trans_Customer,$J$10,FALSE),0)","v":0},{"$f":"ROUND(F24*VLOOKUP(D24,ALLOCTABLE_Trans_Customer,$K$10,FALSE),0)","v":0},{"$f":"ROUND(F24*VLOOKUP(D24,ALLOCTABLE_Trans_Customer,$L$10,FALSE),0)","v":0},{"$f":"ROUND(F24*VLOOKUP(D24,ALLOCTABLE_Trans_Customer,$M$10,FALSE),0)","v":0},{"$f":"ROUND(F24*VLOOKUP(D24,ALLOCTABLE_Trans_Customer,$N$10,FALSE),0)","v":0},{"$f":"ROUND(F24*VLOOKUP(D24,ALLOCTABLE_Trans_Customer,$O$10,FALSE),0)","v":0},{"$f":"ROUND(F24*VLOOKUP(D24,ALLOCTABLE_Trans_Customer,$P$10,FALSE),0)","v":0},{"$f":"ROUND(F24*VLOOKUP(D24,ALLOCTABLE_Trans_Customer,$Q$10,FALSE),0)","v":0},{"$f":"SUM(G24:Q24)","v":0},{"$f":"F24-R24","v":0}]
[15,null,{"$f":"'FR-16(7)(v)-1 Functional'!C25","v":"REVENUE TAX"},null,null,{"$f":"F767","v":0},{"$f":"G767","v":0},{"$f":"H767","v":0},{"$f":"I767","v":0},{"$f":"J767","v":0},0,0,0,0,0,0,{"$f":"Q767","v":0},{"$f":"SUM(G25:Q25)","v":0},0]
[16,null,{"$f":"'FR-16(7)(v)-1 Functional'!C26","v":"  TOTAL OPERATING EXPENSE"},null,null,{"$f":"SUM(F21:F25)","v":-1884},-1785,15,0,{"$f":"SUM(J21:J25)","v":0},0,-54,-36,-2,-20,-2,0,-1884,0]
[17]
[18,"RETURN ON RATE BASE",null,null,null,{"$f":"F433","v":310},256,50,0,0,0,3,1,0,0,0,0,{"$f":"SUM(G28:Q28)","v":310},{"$f":"F28-R28","v":0}]
[19,"TOTAL OTHER OPERATING REVENUES",null,null,null,{"$f":"-F750","v":-16},{"$f":"-G750","v":-13},{"$f":"-H750","v":-3},{"$f":"-I750","v":0},{"$f":"-J750","v":0},0,0,0,0,0,0,{"$f":"-$Q$750","v":0},{"$f":"SUM(G29:Q29)","v":-16},0]
[20,null,{"$f":"'FR-16(7)(v)-1 Functional'!C30","v":"TOTAL ELECTRIC COST OF SERVICE"},null,null,{"$f":"SUM(F26:F29)","v":-1590},-1542,62,0,{"$f":"SUM(J26:J29)","v":0},0,-51,-35,-2,-20,-2,0,-1590,0]
[21,"ADJUSTMENT FOR INTERCLASS SUBSIDIZATION",null,{"$f":"1-'WP FR-16(7)(v) Rate Incr'!I11","v":0.95},null,{"$f":"'WP FR-16(7)(v) Rate Incr'!Q27","v":0},{"$f":"'WP FR-16(7)(v) Rate Incr'!Q15","v":-9336840},{"$f":"'WP FR-16(7)(v) Rate Incr'!Q16","v":6445498},{"$f":"'WP FR-16(7)(v) Rate Incr'!Q17","v":89344},{"$f":"'WP FR-16(7)(v) Rate Incr'!R17","v":6774},{"$f":"'WP FR-16(7)(v) Rate Incr'!S17","v":56376},{"$f":"'WP FR-16(7)(v) Rate Incr'!T17","v":111986},{"$f":"'WP FR-16(7)(v) Rate Incr'!U17","v":0},{"$f":"'WP FR-16(7)(v) Rate Incr'!V17","v":40507},{"$f":"'WP FR-16(7)(v) Rate Incr'!W17","v":0},{"$f":"'WP FR-16(7)(v) Rate Incr'!X17","v":0},{"$f":"'WP FR-16(7)(v) Rate Incr'!Q25","v":-9875},{"$f":"SUM(G31:Q31)","v":-2596230},2596230]
[22,{"$f":"'FR-16(7)(v)-1 Functional'!$B$32","v":"REQUESTED REVENUES (COST OF SERVICE ADJUSTED FOR SUBSIDIES)"},null,null,null,{"$f":"F31+F30","v":-1590},-9338382,6445560,89344,{"$f":"J31+J30","v":6774},56376,111935,-35,40505,-20,-2,-9875,-2597820,2596230]
[23,"PROPOSED REVENUES",null,null,null,{"$f":"F868","v":-12549},-11559,-306,0,{"$f":"J868","v":0},0,-324,-216,-18,-108,-18,0,-12549,0]
[24,"DIFFERENCE (REQUESTED LESS PROPOSED)",null,null,null,{"$f":"F32-F33","v":10959},{"$f":"G32-G33","v":-9326823},6445866,89344,{"$f":"J32-J33","v":6774},56376,112259,181,40523,88,16,-9875,-2585271,2596230]
[25]
[26,"TOTAL RETURN EARNED",null,null,null,{"$f":"F777+F28","v":-7917},{"$f":"G777+G28","v":-7264},{"$f":"H777+H28","v":-226},{"$f":"I777+I28","v":0},{"$f":"J777+J28","v":0},0,-202,-135,-12,-66,-12,{"$f":"Q777+Q28","v":0},{"$f":"R777+R28","v":-7917},{"$f":"F36-R36","v":0}]
[27,"RATE OF RETURN EARNED",null,null,null,{"$f":"IF(F431=0,0,ROUND(F36/F431,5))","v":-1.7121500000000001},-1.90907,-0.30132999999999999,0,0,0,-5.05,-11.25,-12,-11,0,0,-1.7121500000000001,0]
[28,"TOTAL RATE OF RETURN ALLOWABLE",null,null,null,{"$f":"$F$811","v":6.7100000000000007E-2},{"$f":"$F$811","v":6.7100000000000007E-2},6.7100000000000007E-2,6.7100000000000007E-2,6.7100000000000007E-2,6.7100000000000007E-2,6.7100000000000007E-2,6.7100000000000007E-2,6.7100000000000007E-2,6.7100000000000007E-2,6.7100000000000007E-2,6.7100000000000007E-2,{"$f":"F811","v":6.7100000000000007E-2},{"$f":"F811","v":6.7100000000000007E-2},null,null,"Not Part of print range"]
[29,"RETURN EARNED ON COMMON EQUITY",null,null,null,{"$f":"IF(Equity=0,0,(F37-$F$806-$F$807-$F$809)*TotalCap/Equity)","v":-3.5906974689788504},-3.9989541424343864,-0.66577018863892035,-4.1049574113445099E-2,-4.1049574113445099E-2,-4.1049574113445099E-2,-10.510764183855756,-23.364671229479978,-24.919579339837746,-22.846368526027391,-4.1049574113445099E-2,-4.1049574113445099E-2,{"$f":"IF(Equity=0,0,(R37-F806-F807-F809)*TotalCap/Equity)","v":-3.5906974689788504},{"$f":"IF(Equity=0,0,(S37-F806-F807-F809)*TotalCap/Equity)","v":-4.1049574113445099E-2},null,null,"Not Filed"]
[30,"ALLOWED RETURN ON COMMON EQUITY",null,null,null,{"$f":"IF(Equity=0,0,(F38-$F$806-$F$807-$F$809)*TotalCap/Equity)","v":9.8062871493229981E-2},9.8062871493229981E-2,9.8062871493229981E-2,9.8062871493229981E-2,9.8062871493229981E-2,9.8062871493229981E-2,9.8062871493229981E-2,9.8062871493229981E-2,9.8062871493229981E-2,9.8062871493229981E-2,9.8062871493229981E-2,9.8062871493229981E-2,{"$f":"IF(Equity=0,0,(R38-F806-F807-F809)*TotalCap/Equity)","v":9.8062871493229981E-2},{"$f":"IF(Equity=0,0,(S38-F806-F807-F809)*TotalCap/Equity)","v":9.8062871493229981E-2}]
[31,null,null,null,null," "]
[32,"PRESENT REVENUES",null,null,null,{"$f":"F867","v":-1391},-1348,54,0,{"$f":"J867","v":0},0,-45,-31,-2,-17,-2,0,-1391,{"$f":"F42-R42","v":0}]
[33,"REVENUE INCREASE JUSTIFIED",null,null,null,{"$f":"F30-F42","v":-199},-194,8,0,{"$f":"J30-J42","v":0},0,-6,-4,0,-3,0,0,-199,0]
[34,null,"PER UNIT PRES REV",null,null,{"$f":"IF(F42=0,0,ROUND(F43/F42,5))","v":0.14305999999999999},0.14391999999999999,0.14815,0,{"$f":"IF(J42=0,0,ROUND(J43/J42,5))","v":0},0,0.13333,0.12903000000000001,0,0.17646999999999999,0,0,0.14305999999999999,0]
[35,"REVENUE INCREASE REQUESTED",null,null,null,{"$f":"F33-F42","v":-11158},-10211,-360,0,{"$f":"J33-J42","v":0},0,-279,-185,-16,-91,-16,0,-11158,0]
[36,null,"PER UNIT PRES REV",null,null,{"$f":"IF(F42=0,0,ROUND(F45/F42,5))","v":8.0215700000000005},7.5749300000000002,-6.6666699999999999,0,{"$f":"IF(J42=0,0,ROUND(J45/J42,5))","v":0},0,6.2,5.96774,8,5.3529400000000003,8,0,8.0215700000000005,0]
[]
[{"$f":"co_name","v":"DUKE ENERGY KENTUCKY, INC."},null,null,null,null,null,null,null,null,null,null,null,null,null,null,null,null,{"$f":"R1","v":"FR-16(7)(v)-9"}]
[{"$f":"$A$2","v":"TRANSMISSION CUSTOMER ALLOCATED - ELECTRIC COST OF SERVICE"},null,null,null,null,null,null,null,null,null,null,null,null,null,null,null,null,{"$f":"R2","v":"WITNESS RESPONSIBLE:"}]
[{"$f":"case_name","v":"CASE NO: 2019-00271"},null,null,null,null,null,null,null,null,null,null,null,null,null,null,null,null,{"$f":"Witness","v":"JAMES E. ZIOLKOWSKI"}]
[{"$f":"data_filing","v":"DATA: 12 MONTHS ACTUAL  & 0 MONTHS ESTIMATED"},null,null,null,null,null,null,null,null,null,null,null,null,null,null,null,null,{"$f":"\"PAGE \"&Pages-16&\" OF \"&Pages","v":"PAGE 2 OF 18"}]
[{"$f":"type","v":"TYPE OF FILING: \"X\" ORIGINAL   UPDATED    REVISED  "}]
[]
[null,null,null,null,null,{"$f":"F$7","v":"TOTAL"},null,{"$f":"H$7","v":"DS"},{"$f":"I$7","v":"GSFL"},{"$f":"J$7","v":"EH"},{"$f":"K$7","v":"SP"},"DT SEC","DT PRI","DP","TT",null,"OTHER"]
["LINE",null,null,null,null,{"$f":"F$8","v":"TRANSMISSION"},{"$f":"G$8","v":"RS"},{"$f":"H$8","v":"SECONDARY"},{"$f":"I$8","v":"SECONDARY"},{"$f":"J$8","v":"SECONDARY"},{"$f":"K$8","v":"SECONDARY"},"SECONDARY","PRIMARY","PRIMARY","TRANSMISSION","LT","WATER",{"$f":"R8","v":"TOTAL"},"ALL"]
["NO.","GROSS ELECTRIC PLANT IN SERVICE",null,"ALLO",null,{"$f":"F$9","v":"CUSTOMER"},{"$f":"G$9","v":"RESIDENTIAL"},{"$f":"H$9","v":"DISTRIBUTION"},{"$f":"I$9","v":"DISTRIBUTION"},{"$f":"J$9","v":"DISTRIBUTION"},{"$f":"K$9","v":"DISTRIBUTION"},"DISTRIBUTION","DISTRIBUTION","DISTRIBUTION","TIME OF DAY","LIGHTING","PUMPING",{"$f":"R9","v":"AT ISSUE"},"OTHER"]
[null,null,"Schedule 2",null,null,null,{"$f":"G$10","v":3},{"$f":"H$10","v":4},{"$f":"I$10","v":5},{"$f":"J$10","v":6},{"$f":"K$10","v":7},8,9,10,11,12,13,null," "]
[1,"PRODUCTION PLANT"]
[2,null,"PRODUCTION STEAM",{"$f":"'FR-16(7)(v)-1 Functional'!D59","v":"K201"},null,{"$f":"'FR-16(7)(v)-6 TRANS Classified'!I59","v":0},{"$f":"F59-SUM(H59:Q59)","v":0},{"$f":"ROUND(F59*VLOOKUP(D59,ALLOCTABLE_Trans_Customer,$H$10,FALSE),0)","v":0},{"$f":"ROUND(F59*VLOOKUP(D59,ALLOCTABLE_Trans_Customer,$I$10,FALSE),0)","v":0},{"$f":"ROUND(F59*VLOOKUP(D59,ALLOCTABLE_Trans_Customer,$J$10,FALSE),0)","v":0},{"$f":"ROUND(F59*VLOOKUP(D59,ALLOCTABLE_Trans_Customer,$K$10,FALSE),0)","v":0},{"$f":"ROUND(F59*VLOOKUP(D59,ALLOCTABLE_Trans_Customer,$L$10,FALSE),0)","v":0},{"$f":"ROUND(F59*VLOOKUP(D59,ALLOCTABLE_Trans_Customer,$M$10,FALSE),0)","v":0},{"$f":"ROUND(F59*VLOOKUP(D59,ALLOCTABLE_Trans_Customer,$N$10,FALSE),0)","v":0},{"$f":"ROUND(F59*VLOOKUP(D59,ALLOCTABLE_Trans_Customer,$O$10,FALSE),0)","v":0},{"$f":"ROUND(F59*VLOOKUP(D59,ALLOCTABLE_Trans_Customer,$P$10,FALSE),0)","v":0},{"$f":"ROUND(F59*VLOOKUP(D59,ALLOCTABLE_Trans_Customer,$Q$10,FALSE),0)","v":0},{"$f":"SUM(G59:Q59)","v":0},{"$f":"F59-R59","v":0}]
[3,null,"PRODUCTION OTHER",{"$f":"'FR-16(7)(v)-1 Functional'!D60","v":"K201"},null,{"$f":"'FR-16(7)(v)-6 TRANS Classified'!I60","v":0},{"$f":"F60-SUM(H60:Q60)","v":0},{"$f":"ROUND(F60*VLOOKUP(D60,ALLOCTABLE_Trans_Customer,$H$10,FALSE),0)","v":0},{"$f":"ROUND(F60*VLOOKUP(D60,ALLOCTABLE_Trans_Customer,$I$10,FALSE),0)","v":0},{"$f":"ROUND(F60*VLOOKUP(D60,ALLOCTABLE_Trans_Customer,$J$10,FALSE),0)","v":0},{"$f":"ROUND(F60*VLOOKUP(D60,ALLOCTABLE_Trans_Customer,$K$10,FALSE),0)","v":0},{"$f":"ROUND(F60*VLOOKUP(D60,ALLOCTABLE_Trans_Customer,$L$10,FALSE),0)","v":0},{"$f":"ROUND(F60*VLOOKUP(D60,ALLOCTABLE_Trans_Customer,$M$10,FALSE),0)","v":0},{"$f":"ROUND(F60*VLOOKUP(D60,ALLOCTABLE_Trans_Customer,$N$10,FALSE),0)","v":0},{"$f":"ROUND(F60*VLOOKUP(D60,ALLOCTABLE_Trans_Customer,$O$10,FALSE),0)","v":0},{"$f":"ROUND(F60*VLOOKUP(D60,ALLOCTABLE_Trans_Customer,$P$10,FALSE),0)","v":0},{"$f":"ROUND(F60*VLOOKUP(D60,ALLOCTABLE_Trans_Customer,$Q$10,FALSE),0)","v":0},{"$f":"SUM(G60:Q60)","v":0},{"$f":"F60-R60","v":0}]
[4,null,{"$f":"'FR-16(7)(v)-1 Functional'!C61","v":"ADJUSTMENT"},{"$f":"'FR-16(7)(v)-1 Functional'!D61","v":"K201"},null,{"$f":"'FR-16(7)(v)-6 TRANS Classified'!I61","v":0},{"$f":"F61-SUM(H61:Q61)","v":0},{"$f":"ROUND(F61*VLOOKUP(D61,ALLOCTABLE_Trans_Customer,$H$10,FALSE),0)","v":0},{"$f":"ROUND(F61*VLOOKUP(D61,ALLOCTABLE_Trans_Customer,$I$10,FALSE),0)","v":0},{"$f":"ROUND(F61*VLOOKUP(D61,ALLOCTABLE_Trans_Customer,$J$10,FALSE),0)","v":0},{"$f":"ROUND(F61*VLOOKUP(D61,ALLOCTABLE_Trans_Customer,$K$10,FALSE),0)","v":0},{"$f":"ROUND(F61*VLOOKUP(D61,ALLOCTABLE_Trans_Customer,$L$10,FALSE),0)","v":0},{"$f":"ROUND(F61*VLOOKUP(D61,ALLOCTABLE_Trans_Customer,$M$10,FALSE),0)","v":0},{"$f":"ROUND(F61*VLOOKUP(D61,ALLOCTABLE_Trans_Customer,$N$10,FALSE),0)","v":0},{"$f":"ROUND(F61*VLOOKUP(D61,ALLOCTABLE_Trans_Customer,$O$10,FALSE),0)","v":0},{"$f":"ROUND(F61*VLOOKUP(D61,ALLOCTABLE_Trans_Customer,$P$10,FALSE),0)","v":0},{"$f":"ROUND(F61*VLOOKUP(D61,ALLOCTABLE_Trans_Customer,$Q$10,FALSE),0)","v":0},{"$f":"SUM(G61:Q61)","v":0},{"$f":"F61-R61","v":0}]
[5,null,{"$f":"'FR-16(7)(v)-1 Functional'!C62","v":"  PRODUCTION PLANT IN SERVICE"},null,null,{"$f":"SUM(F59:F61)","v":0},{"$f":"SUM(G59:G61)","v":0},{"$f":"SUM(H59:H61)","v":0},{"$f":"SUM(I59:I61)","v":0},{"$f":"SUM(J59:J61)","v":0},0,0,0,0,0,0,{"$f":"SUM($Q$59:$Q$61)","v":0},{"$f":"SUM(R59:R61)","v":0},{"$f":"SUM(S59:S61)","v":0}]
[6]
[7,"TRANSMISSION PLANT"]
[8,null,"MAIN STEP-UP TRANSFORMERS",{"$f":"'FR-16(7)(v)-1 Functional'!D65","v":"K202"},null,{"$f":"'FR-16(7)(v)-6 TRANS Classified'!I65","v":0},{"$f":"F65-SUM(H65:Q65)","v":0},{"$f":"ROUND(F65*VLOOKUP(D65,ALLOCTABLE_Trans_Customer,$H$10,FALSE),0)","v":0},{"$f":"ROUND(F65*VLOOKUP(D65,ALLOCTABLE_Trans_Customer,$I$10,FALSE),0)","v":0},{"$f":"ROUND(F65*VLOOKUP(D65,ALLOCTABLE_Trans_Customer,$J$10,FALSE),0)","v":0},{"$f":"ROUND(F65*VLOOKUP(D65,ALLOCTABLE_Trans_Customer,$K$10,FALSE),0)","v":0},{"$f":"ROUND(F65*VLOOKUP(D65,ALLOCTABLE_Trans_Customer,$L$10,FALSE),0)","v":0},{"$f":"ROUND(F65*VLOOKUP(D65,ALLOCTABLE_Trans_Customer,$M$10,FALSE),0)","v":0},{"$f":"ROUND(F65*VLOOKUP(D65,ALLOCTABLE_Trans_Customer,$N$10,FALSE),0)","v":0},{"$f":"ROUND(F65*VLOOKUP(D65,ALLOCTABLE_Trans_Customer,$O$10,FALSE),0)","v":0},{"$f":"ROUND(F65*VLOOKUP(D65,ALLOCTABLE_Trans_Customer,$P$10,FALSE),0)","v":0},{"$f":"ROUND(F65*VLOOKUP(D65,ALLOCTABLE_Trans_Customer,$Q$10,FALSE),0)","v":0},{"$f":"SUM(G65:Q65)","v":0},{"$f":"F65-R65","v":0}]
[9,null,"OTHER TRANSMISSION",{"$f":"'FR-16(7)(v)-1 Functional'!D66","v":"K202"},null,{"$f":"'FR-16(7)(v)-6 TRANS Classified'!I66","v":0},{"$f":"F66-SUM(H66:Q66)","v":0},{"$f":"ROUND(F66*VLOOKUP(D66,ALLOCTABLE_Trans_Customer,$H$10,FALSE),0)","v":0},{"$f":"ROUND(F66*VLOOKUP(D66,ALLOCTABLE_Trans_Customer,$I$10,FALSE),0)","v":0},{"$f":"ROUND(F66*VLOOKUP(D66,ALLOCTABLE_Trans_Customer,$J$10,FALSE),0)","v":0},{"$f":"ROUND(F66*VLOOKUP(D66,ALLOCTABLE_Trans_Customer,$K$10,FALSE),0)","v":0},{"$f":"ROUND(F66*VLOOKUP(D66,ALLOCTABLE_Trans_Customer,$L$10,FALSE),0)","v":0},{"$f":"ROUND(F66*VLOOKUP(D66,ALLOCTABLE_Trans_Customer,$M$10,FALSE),0)","v":0},{"$f":"ROUND(F66*VLOOKUP(D66,ALLOCTABLE_Trans_Customer,$N$10,FALSE),0)","v":0},{"$f":"ROUND(F66*VLOOKUP(D66,ALLOCTABLE_Trans_Customer,$O$10,FALSE),0)","v":0},{"$f":"ROUND(F66*VLOOKUP(D66,ALLOCTABLE_Trans_Customer,$P$10,FALSE),0)","v":0},{"$f":"ROUND(F66*VLOOKUP(D66,ALLOCTABLE_Trans_Customer,$Q$10,FALSE),0)","v":0},{"$f":"SUM(G66:Q66)","v":0},{"$f":"F66-R66","v":0}]
[10,null,"ADJUSTMENT",{"$f":"'FR-16(7)(v)-1 Functional'!D67","v":"K202"},null,{"$f":"'FR-16(7)(v)-6 TRANS Classified'!I67","v":0},{"$f":"F67-SUM(H67:Q67)","v":0},{"$f":"ROUND(F67*VLOOKUP(D67,ALLOCTABLE_Trans_Customer,$H$10,FALSE),0)","v":0},{"$f":"ROUND(F67*VLOOKUP(D67,ALLOCTABLE_Trans_Customer,$I$10,FALSE),0)","v":0},{"$f":"ROUND(F67*VLOOKUP(D67,ALLOCTABLE_Trans_Customer,$J$10,FALSE),0)","v":0},{"$f":"ROUND(F67*VLOOKUP(D67,ALLOCTABLE_Trans_Customer,$K$10,FALSE),0)","v":0},{"$f":"ROUND(F67*VLOOKUP(D67,ALLOCTABLE_Trans_Customer,$L$10,FALSE),0)","v":0},{"$f":"ROUND(F67*VLOOKUP(D67,ALLOCTABLE_Trans_Customer,$M$10,FALSE),0)","v":0},{"$f":"ROUND(F67*VLOOKUP(D67,ALLOCTABLE_Trans_Customer,$N$10,FALSE),0)","v":0},{"$f":"ROUND(F67*VLOOKUP(D67,ALLOCTABLE_Trans_Customer,$O$10,FALSE),0)","v":0},{"$f":"ROUND(F67*VLOOKUP(D67,ALLOCTABLE_Trans_Customer,$P$10,FALSE),0)","v":0},{"$f":"ROUND(F67*VLOOKUP(D67,ALLOCTABLE_Trans_Customer,$Q$10,FALSE),0)","v":0},{"$f":"SUM(G67:Q67)","v":0},{"$f":"F67-R67","v":0}]
[11,null,{"$f":"'FR-16(7)(v)-1 Functional'!C68","v":"  TRANSMISSION PLANT IN SERVICE"},null,null,{"$f":"SUM(F65:F67)","v":0},0,0,0,0,0,0,0,0,0,0,0,0,{"$f":"SUM(S65)","v":0}]
[12]
[13,"TOTAL PROD & TRANS PLANT",null,null,null,{"$f":"F68+F62","v":0},{"$f":"G68+G62","v":0},{"$f":"H68+H62","v":0},{"$f":"I68+I62","v":0},{"$f":"J68+J62","v":0},0,0,0,0,0,0,{"$f":"$Q$68+$Q$62","v":0},{"$f":"R68+R62","v":0},{"$f":"S68+S62","v":0}]
[14]
[15,"DISTRIBUTION PLANT"]
[16,null,{"$f":"'FR-16(7)(v)-1 Functional'!C73","v":"SUBSTATIONS"},{"$f":"'FR-16(7)(v)-1 Functional'!D73","v":"K215"},null,{"$f":"'FR-16(7)(v)-6 TRANS Classified'!I73","v":0},{"$f":"F73-SUM(H73:Q73)","v":0},{"$f":"ROUND(F73*VLOOKUP(D73,ALLOCTABLE_Trans_Customer,$H$10,FALSE),0)","v":0},{"$f":"ROUND(F73*VLOOKUP(D73,ALLOCTABLE_Trans_Customer,$I$10,FALSE),0)","v":0},{"$f":"ROUND(F73*VLOOKUP(D73,ALLOCTABLE_Trans_Customer,$J$10,FALSE),0)","v":0},{"$f":"ROUND(F73*VLOOKUP(D73,ALLOCTABLE_Trans_Customer,$K$10,FALSE),0)","v":0},{"$f":"ROUND(F73*VLOOKUP(D73,ALLOCTABLE_Trans_Customer,$L$10,FALSE),0)","v":0},{"$f":"ROUND(F73*VLOOKUP(D73,ALLOCTABLE_Trans_Customer,$M$10,FALSE),0)","v":0},{"$f":"ROUND(F73*VLOOKUP(D73,ALLOCTABLE_Trans_Customer,$N$10,FALSE),0)","v":0},{"$f":"ROUND(F73*VLOOKUP(D73,ALLOCTABLE_Trans_Customer,$O$10,FALSE),0)","v":0},{"$f":"ROUND(F73*VLOOKUP(D73,ALLOCTABLE_Trans_Customer,$P$10,FALSE),0)","v":0},{"$f":"ROUND(F73*VLOOKUP(D73,ALLOCTABLE_Trans_Customer,$Q$10,FALSE),0)","v":0},{"$f":"SUM(G73:Q73)","v":0},{"$f":"F73-R73","v":0}]
[17,null,{"$f":"'FR-16(7)(v)-1 Functional'!C74","v":"POLES, TOWERS  & FIXTURES - PRIMARY - DEMAND"},{"$f":"'FR-16(7)(v)-1 Functional'!D74","v":"K205"},null,{"$f":"'FR-16(7)(v)-6 TRANS Classified'!I74","v":0},0,0,0,0,0,0,0,0,0,0,0,0,0]
[18,null,{"$f":"'FR-16(7)(v)-1 Functional'!C75","v":"POLES, TOWERS  & FIXTURES - PRIMARY - CUSTOMER"},{"$f":"'FR-16(7)(v)-1 Functional'!D75","v":"K405"},null,{"$f":"'FR-16(7)(v)-6 TRANS Classified'!I75","v":0},0,0,0,0,0,0,0,0,0,0,0,0,0]
[19,null,{"$f":"'FR-16(7)(v)-1 Functional'!C76","v":"POLES, TOWERS  & FIXTURES - SECONDARY - DEMAND"},{"$f":"'FR-16(7)(v)-1 Functional'!D76","v":"K206"},null,{"$f":"'FR-16(7)(v)-6 TRANS Classified'!I76","v":0},0,0,0,0,0,0,0,0,0,0,0,0,0]
[20,null,{"$f":"'FR-16(7)(v)-1 Functional'!C77","v":"POLES, TOWERS  & FIXTURES - SECONDARY - CUSTOMER"},{"$f":"'FR-16(7)(v)-1 Functional'!D77","v":"K405"},null,{"$f":"'FR-16(7)(v)-6 TRANS Classified'!I77","v":0},0,0,0,0,0,0,0,0,0,0,0,0,0]
[21,null,{"$f":"'FR-16(7)(v)-1 Functional'!C78","v":"CONDUCTORS - OVERHEAD / PRIMARY - DEMAND"},{"$f":"'FR-16(7)(v)-1 Functional'!D78","v":"K205"},null,{"$f":"'FR-16(7)(v)-6 TRANS Classified'!I78","v":0},0,0,0,0,0,0,0,0,0,0,0,0,0]
[22,null,{"$f":"'FR-16(7)(v)-1 Functional'!C79","v":"CONDUCTORS - OVERHEAD / PRIMARY - CUSTOMER"},{"$f":"'FR-16(7)(v)-1 Functional'!D79","v":"K405"},null,{"$f":"'FR-16(7)(v)-6 TRANS Classified'!I79","v":0},0,0,0,0,0,0,0,0,0,0,0,0,0]
[23,null,{"$f":"'FR-16(7)(v)-1 Functional'!C80","v":"CONDUCTORS - OVERHEAD / SECONDARY - DEMAND"},{"$f":"'FR-16(7)(v)-1 Functional'!D80","v":"K206"},null,{"$f":"'FR-16(7)(v)-6 TRANS Classified'!I80","v":0},0,0,0,0,0,0,0,0,0,0,0,0,0]
[24,null,{"$f":"'FR-16(7)(v)-1 Functional'!C81","v":"CONDUCTORS - OVERHEAD / SECONDARY - CUSTOMER"},{"$f":"'FR-16(7)(v)-1 Functional'!D81","v":"K405"},null,{"$f":"'FR-16(7)(v)-6 TRANS Classified'!I81","v":0},0,0,0,0,0,0,0,0,0,0,0,0,0]
[25,null,{"$f":"'FR-16(7)(v)-1 Functional'!C82","v":"CONDUCTORS - UNDERGROUND / PRIMARY - DEMAND"},{"$f":"'FR-16(7)(v)-1 Functional'!D82","v":"K205"},null,{"$f":"'FR-16(7)(v)-6 TRANS Classified'!I82","v":0},0,0,0,0,0,0,0,0,0,0,0,0,0]
[26,null,{"$f":"'FR-16(7)(v)-1 Functional'!C83","v":"CONDUCTORS - UNDERGROUND / PRIMARY - CUSTOMER"},{"$f":"'FR-16(7)(v)-1 Functional'!D83","v":"K405"},null,{"$f":"'FR-16(7)(v)-6 TRANS Classified'!I83","v":0},0,0,0,0,0,0,0,0,0,0,0,0,0]
[27,null,{"$f":"'FR-16(7)(v)-1 Functional'!C84","v":"CONDUCTORS - UNDERGROUND / SECONDARY - DEMAND"},{"$f":"'FR-16(7)(v)-1 Functional'!D84","v":"K206"},null,{"$f":"'FR-16(7)(v)-6 TRANS Classified'!I84","v":0},0,0,0,0,0,0,0,0,0,0,0,0,0]
[28,null,{"$f":"'FR-16(7)(v)-1 Functional'!C85","v":"CONDUCTORS - UNDERGROUND / SECONDARY - CUSTOMER"},{"$f":"'FR-16(7)(v)-1 Functional'!D85","v":"K405"},null,{"$f":"'FR-16(7)(v)-6 TRANS Classified'!I85","v":0},0,0,0,0,0,0,0,0,0,0,0,0,0]
[29,null,{"$f":"'FR-16(7)(v)-1 Functional'!C86","v":"TRANSFORMERS DEMAND RELATED"},{"$f":"'FR-16(7)(v)-1 Functional'!D86","v":"K215"},null,{"$f":"'FR-16(7)(v)-6 TRANS Classified'!I86","v":0},0,0,0,0,0,0,0,0,0,0,0,0,0]
[30,null,{"$f":"'FR-16(7)(v)-1 Functional'!C87","v":"TRANSFORMERS CUSTOMER RELATED"},{"$f":"'FR-16(7)(v)-1 Functional'!D87","v":"K405"},null,{"$f":"'FR-16(7)(v)-6 TRANS Classified'!I87","v":0},0,0,0,0,0,0,0,0,0,0,0,0,0]
[31,null,{"$f":"'FR-16(7)(v)-1 Functional'!C88","v":"SERVICES"},{"$f":"'FR-16(7)(v)-1 Functional'!D88","v":"K217"},null,{"$f":"'FR-16(7)(v)-6 TRANS Classified'!I88","v":0},0,0,0,0,0,0,0,0,0,0,0,0,0]
[32,null,{"$f":"'FR-16(7)(v)-1 Functional'!C89","v":"METERS"},{"$f":"'FR-16(7)(v)-1 Functional'!D89","v":"K407"},null,{"$f":"'FR-16(7)(v)-6 TRANS Classified'!I89","v":5192},4197,950,0,7,1,34,0,1,1,0,1,5192,0]
[33,null,{"$f":"'FR-16(7)(v)-1 Functional'!C90","v":"STREET LIGHTS"},{"$f":"'FR-16(7)(v)-1 Functional'!D90","v":"K401"},null,{"$f":"'FR-16(7)(v)-6 TRANS Classified'!I90","v":0},0,0,0,0,0,0,0,0,0,0,0,0,0]
[34,null,{"$f":"'FR-16(7)(v)-1 Functional'!C91","v":"ADJUSTMENT  "},{"$f":"'FR-16(7)(v)-1 Functional'!D91","v":"K209"},null,{"$f":"'FR-16(7)(v)-6 TRANS Classified'!I91","v":0},0,0,0,0,0,0,0,0,0,0,0,0,0]
[35,null,{"$f":"'FR-16(7)(v)-1 Functional'!C92","v":"CONSTRUCTION NOT CLASSIFIED"},{"$f":"'FR-16(7)(v)-1 Functional'!D92","v":"K209"},null,{"$f":"'FR-16(7)(v)-6 TRANS Classified'!I92","v":947},767,173,0,1,0,6,0,0,0,0,0,947,0]
[36,null,{"$f":"'FR-16(7)(v)-1 Functional'!C93","v":"RWIP"},{"$f":"'FR-16(7)(v)-1 Functional'!D93","v":"K215"},null,{"$f":"'FR-16(7)(v)-6 TRANS Classified'!I93","v":0},{"$f":"F93-SUM(H93:Q93)","v":0},{"$f":"ROUND(F93*VLOOKUP(D93,ALLOCTABLE_Trans_Customer,$H$10,FALSE),0)","v":0},{"$f":"ROUND(F93*VLOOKUP(D93,ALLOCTABLE_Trans_Customer,$I$10,FALSE),0)","v":0},{"$f":"ROUND(F93*VLOOKUP(D93,ALLOCTABLE_Trans_Customer,$J$10,FALSE),0)","v":0},{"$f":"ROUND(F93*VLOOKUP(D93,ALLOCTABLE_Trans_Customer,$K$10,FALSE),0)","v":0}]
[37,null,{"$f":"'FR-16(7)(v)-1 Functional'!C94","v":"  DISTRIBUTION PLANT IN SERVICE"},null,null,{"$f":"SUM(F73:F93)","v":6139},{"$f":"SUM(G73:G92)","v":4964},{"$f":"SUM(H73:H92)","v":1123},{"$f":"SUM(I73:I92)","v":0},{"$f":"SUM(J73:J92)","v":8},1,40,0,1,1,0,{"$f":"SUM(Q73:Q92)","v":1},{"$f":"SUM(R73:R92)","v":6139},{"$f":"SUM(S73:S92)","v":0}]
[38]
[39,"TOTAL TRANS & DIST PLANT",null,null,null,{"$f":"F94+F68","v":6139},{"$f":"G94+G68","v":4964},{"$f":"H94+H68","v":1123},{"$f":"I94+I68","v":0},{"$f":"J94+J68","v":8},1,40,0,1,1,0,{"$f":"Q94+$Q$68","v":1},{"$f":"R94+R68","v":6139},{"$f":"S94+S68","v":0}]
[40,"TOTAL GROSS PTD PLANT",null,null,null,{"$f":"F94+F70","v":6139},{"$f":"G94+G70","v":4964},{"$f":"H94+H70","v":1123},{"$f":"I94+I70","v":0},{"$f":"J94+J70","v":8},1,40,0,1,1,0,{"$f":"Q94+Q70","v":1},{"$f":"R94+R70","v":6139},{"$f":"S94+S70","v":0}]
[41]
[42,"GENERAL & INTANGIBLE PLANT"]
[43,null,{"$f":"'FR-16(7)(v)-1 Functional'!C100","v":"PRODUCTION - DEMAND"},{"$f":"'FR-16(7)(v)-1 Functional'!D100","v":"K201"},null,{"$f":"'FR-16(7)(v)-6 TRANS Classified'!I100","v":0},{"$f":"F100-SUM(H100:Q100)","v":0},{"$f":"ROUND(F100*VLOOKUP(D100,ALLOCTABLE_Trans_Customer,$H$10,FALSE),0)","v":0},{"$f":"ROUND(F100*VLOOKUP(D100,ALLOCTABLE_Trans_Customer,$I$10,FALSE),0)","v":0},{"$f":"ROUND(F100*VLOOKUP(D100,ALLOCTABLE_Trans_Customer,$J$10,FALSE),0)","v":0},{"$f":"ROUND(F100*VLOOKUP(D100,ALLOCTABLE_Trans_Customer,$K$10,FALSE),0)","v":0},{"$f":"ROUND(F100*VLOOKUP(D100,ALLOCTABLE_Trans_Customer,$L$10,FALSE),0)","v":0},{"$f":"ROUND(F100*VLOOKUP(D100,ALLOCTABLE_Trans_Customer,$M$10,FALSE),0)","v":0},{"$f":"ROUND(F100*VLOOKUP(D100,ALLOCTABLE_Trans_Customer,$N$10,FALSE),0)","v":0},{"$f":"ROUND(F100*VLOOKUP(D100,ALLOCTABLE_Trans_Customer,$O$10,FALSE),0)","v":0},{"$f":"ROUND(F100*VLOOKUP(D100,ALLOCTABLE_Trans_Customer,$P$10,FALSE),0)","v":0},{"$f":"ROUND(F100*VLOOKUP(D100,ALLOCTABLE_Trans_Customer,$Q$10,FALSE),0)","v":0},{"$f":"SUM(G100:Q100)","v":0},{"$f":"F100-R100","v":0}]
[44,null,{"$f":"'FR-16(7)(v)-1 Functional'!C101","v":"PRODUCTION - ENERGY"},{"$f":"'FR-16(7)(v)-1 Functional'!D101","v":"K301"},null,{"$f":"'FR-16(7)(v)-6 TRANS Classified'!I101","v":0},0,0,0,0,0,0,0,0,0,0,0,0,0]
[45,null,{"$f":"'FR-16(7)(v)-1 Functional'!C102","v":"TRANSMISSION"},{"$f":"'FR-16(7)(v)-1 Functional'!D102","v":"K202"},null,{"$f":"'FR-16(7)(v)-6 TRANS Classified'!I102","v":0},0,0,0,0,0,0,0,0,0,0,0,0,0]
[46,null,{"$f":"'FR-16(7)(v)-1 Functional'!C103","v":"DISTRIBUTION - DEMAND"},{"$f":"'FR-16(7)(v)-1 Functional'!D103","v":"K201"},null,{"$f":"'FR-16(7)(v)-6 TRANS Classified'!I103","v":0},0,0,0,0,0,0,0,0,0,0,0,0,0]
[47,null,{"$f":"'FR-16(7)(v)-1 Functional'!C104","v":"DISTRIBUTION - CUSTOMER"},{"$f":"'FR-16(7)(v)-1 Functional'!D104","v":"K405"},null,{"$f":"'FR-16(7)(v)-6 TRANS Classified'!I104","v":0},0,0,0,0,0,0,0,0,0,0,0,0,0]
[48,null,{"$f":"'FR-16(7)(v)-1 Functional'!C105","v":"CUSTOMER ACCOUNTING"},{"$f":"'FR-16(7)(v)-1 Functional'!D105","v":"A308"},null,{"$f":"'FR-16(7)(v)-6 TRANS Classified'!I105","v":-2117},-1948,-67,0,0,0,-50,-32,-2,-16,-2,0,-2117,0]
[49,null,{"$f":"'FR-16(7)(v)-1 Functional'!C106","v":"CUSTOMER SERVICE & INFORMATION"},{"$f":"'FR-16(7)(v)-1 Functional'!D106","v":"A310"},null,{"$f":"'FR-16(7)(v)-6 TRANS Classified'!I106","v":0},0,0,0,0,0,0,0,0,0,0,0,0,0]
[50,null,{"$f":"'FR-16(7)(v)-1 Functional'!C107","v":"SALES"},{"$f":"'FR-16(7)(v)-1 Functional'!D107","v":"A312"},null,{"$f":"'FR-16(7)(v)-6 TRANS Classified'!I107","v":0},0,0,0,0,0,0,0,0,0,0,0,0,0]
[51,null,{"$f":"'FR-16(7)(v)-1 Functional'!C108","v":"ADJUSTMENT"},{"$f":"'FR-16(7)(v)-1 Functional'!D108","v":"A315"},null,{"$f":"'FR-16(7)(v)-6 TRANS Classified'!I108","v":0},0,0,0,0,0,0,0,0,0,0,0,0,0]
[52,null,{"$f":"'FR-16(7)(v)-1 Functional'!C109","v":"  GEN & INTANG PLANT IN SERVICE"},null,null,{"$f":"SUM(F100:F108)","v":-2117},{"$f":"SUM(G100:G108)","v":-1948},{"$f":"SUM(H100:H108)","v":-67},{"$f":"SUM(I100:I108)","v":0},{"$f":"SUM(J100:J108)","v":0},0,-50,-32,-2,-16,-2,{"$f":"SUM(Q100:Q108)","v":0},{"$f":"SUM(R100:R108)","v":-2117},{"$f":"SUM(S100:S108)","v":0}]
[53]
[54,"COMMON & OTHER PLANT"]
[55,null,{"$f":"'FR-16(7)(v)-1 Functional'!C112","v":"PRODUCTION - DEMAND"},{"$f":"'FR-16(7)(v)-1 Functional'!D112","v":"K201"},null,{"$f":"'FR-16(7)(v)-6 TRANS Classified'!I112","v":0},{"$f":"F112-SUM(H112:Q112)","v":0},{"$f":"ROUND(F112*VLOOKUP(D112,ALLOCTABLE_Trans_Customer,$H$10,FALSE),0)","v":0},{"$f":"ROUND(F112*VLOOKUP(D112,ALLOCTABLE_Trans_Customer,$I$10,FALSE),0)","v":0},{"$f":"ROUND(F112*VLOOKUP(D112,ALLOCTABLE_Trans_Customer,$J$10,FALSE),0)","v":0},{"$f":"ROUND(F112*VLOOKUP(D112,ALLOCTABLE_Trans_Customer,$K$10,FALSE),0)","v":0},{"$f":"ROUND(F112*VLOOKUP(D112,ALLOCTABLE_Trans_Customer,$L$10,FALSE),0)","v":0},{"$f":"ROUND(F112*VLOOKUP(D112,ALLOCTABLE_Trans_Customer,$M$10,FALSE),0)","v":0},{"$f":"ROUND(F112*VLOOKUP(D112,ALLOCTABLE_Trans_Customer,$N$10,FALSE),0)","v":0},{"$f":"ROUND(F112*VLOOKUP(D112,ALLOCTABLE_Trans_Customer,$O$10,FALSE),0)","v":0},{"$f":"ROUND(F112*VLOOKUP(D112,ALLOCTABLE_Trans_Customer,$P$10,FALSE),0)","v":0},{"$f":"ROUND(F112*VLOOKUP(D112,ALLOCTABLE_Trans_Customer,$Q$10,FALSE),0)","v":0},{"$f":"SUM(G112:Q112)","v":0},{"$f":"F112-R112","v":0}]
[56,null,{"$f":"'FR-16(7)(v)-1 Functional'!C113","v":"PRODUCTION - ENERGY"},{"$f":"'FR-16(7)(v)-1 Functional'!D113","v":"K301"},null,{"$f":"'FR-16(7)(v)-6 TRANS Classified'!I113","v":0},0,0,0,0,0,0,0,0,0,0,0,0,0]
[57,null,{"$f":"'FR-16(7)(v)-1 Functional'!C114","v":"TRANSMISSION"},{"$f":"'FR-16(7)(v)-1 Functional'!D114","v":"K202"},null,{"$f":"'FR-16(7)(v)-6 TRANS Classified'!I114","v":0},0,0,0,0,0,0,0,0,0,0,0,0,0]
[58,null,{"$f":"'FR-16(7)(v)-1 Functional'!C115","v":"DISTRIBUTION - DEMAND"},{"$f":"'FR-16(7)(v)-1 Functional'!D115","v":"K201"},null,{"$f":"'FR-16(7)(v)-6 TRANS Classified'!I115","v":0},0,0,0,0,0,0,0,0,0,0,0,0,0]
[59,null,{"$f":"'FR-16(7)(v)-1 Functional'!C116","v":"DISTRIBUTION - CUSTOMER"},{"$f":"'FR-16(7)(v)-1 Functional'!D116","v":"K405"},null,{"$f":"'FR-16(7)(v)-6 TRANS Classified'!I116","v":0},0,0,0,0,0,0,0,0,0,0,0,0,0]
[60,null,{"$f":"'FR-16(7)(v)-1 Functional'!C117","v":"CUSTOMER ACCOUNTING"},{"$f":"'FR-16(7)(v)-1 Functional'!D117","v":"A308"},null,{"$f":"'FR-16(7)(v)-6 TRANS Classified'!I117","v":-1198},-1102,-38,0,0,0,-29,-18,-1,-9,-1,0,-1198,0]
[61,null,{"$f":"'FR-16(7)(v)-1 Functional'!C118","v":"CUSTOMER SERVICE & INFORMATION"},{"$f":"'FR-16(7)(v)-1 Functional'!D118","v":"A310"},null,{"$f":"'FR-16(7)(v)-6 TRANS Classified'!I118","v":0},0,0,0,0,0,0,0,0,0,0,0,0,0]
[62,null,{"$f":"'FR-16(7)(v)-1 Functional'!C119","v":"SALES"},{"$f":"'FR-16(7)(v)-1 Functional'!D119","v":"A312"},null,{"$f":"'FR-16(7)(v)-6 TRANS Classified'!I119","v":0},0,0,0,0,0,0,0,0,0,0,0,0,0]
[63,null,{"$f":"'FR-16(7)(v)-1 Functional'!C120","v":"ADJUSTMENT"},{"$f":"'FR-16(7)(v)-1 Functional'!D120","v":"A315"},null,{"$f":"'FR-16(7)(v)-6 TRANS Classified'!I120","v":0},0,0,0,0,0,0,0,0,0,0,0,0,0]
[64,null,{"$f":"'FR-16(7)(v)-1 Functional'!C121","v":"  COMMON & OTHER PLANT IN SERVICE"},null,null,{"$f":"SUM(F112:F120)","v":-1198},{"$f":"SUM(G112:G120)","v":-1102},{"$f":"SUM(H112:H120)","v":-38},{"$f":"SUM(I112:I120)","v":0},{"$f":"SUM(J112:J120)","v":0},0,-29,-18,-1,-9,-1,{"$f":"SUM(Q112:Q120)","v":0},{"$f":"SUM(R112:R120)","v":-1198},{"$f":"SUM(S112:S120)","v":0}]
[65]
[66,"GROSS ELECTRIC PLANT IN SERVICE",null,null,null,{"$f":"F97+F109+F121","v":2824},{"$f":"G97+G109+G121","v":1914},{"$f":"H97+H109+H121","v":1018},{"$f":"I97+I109+I121","v":0},{"$f":"J97+J109+J121","v":8},1,-39,-50,-2,-24,-3,{"$f":"Q97+Q109+Q121","v":1},{"$f":"R97+R109+R121","v":2824},{"$f":"S97+S109+S121","v":0}]
[]
[{"$f":"co_name","v":"DUKE ENERGY KENTUCKY, INC."},null,null,null,null,null,null,null,null,null,null,null,null,null,null,null,null,{"$f":"R1","v":"FR-16(7)(v)-9"}]
[{"$f":"$A$2","v":"TRANSMISSION CUSTOMER ALLOCATED - ELECTRIC COST OF SERVICE"},null,null,null,null,null,null,null,null,null,null,null,null,null,null,null,null,{"$f":"R2","v":"WITNESS RESPONSIBLE:"}]
[{"$f":"case_name","v":"CASE NO: 2019-00271"},null,null,null,null,null,null,null,null,null,null,null,null,null,null,null,null,{"$f":"Witness","v":"JAMES E. ZIOLKOWSKI"}]
[{"$f":"data_filing","v":"DATA: 12 MONTHS ACTUAL  & 0 MONTHS ESTIMATED"},null,null,null,null,null,null,null,null,null,null,null,null,null,null,null,null,{"$f":"\"PAGE \"&Pages-15&\" OF \"&Pages","v":"PAGE 3 OF 18"}]
[{"$f":"type","v":"TYPE OF FILING: \"X\" ORIGINAL   UPDATED    REVISED  "}]
[]
[null,null,null,null,null,{"$f":"F$7","v":"TOTAL"},null,{"$f":"H$7","v":"DS"},{"$f":"I$7","v":"GSFL"},{"$f":"J$7","v":"EH"},{"$f":"K$7","v":"SP"},"DT SEC","DT PRI","DP","TT",null,"OTHER"]
["LINE",null,null,null,null,{"$f":"F$8","v":"TRANSMISSION"},{"$f":"G$8","v":"RS"},{"$f":"H$8","v":"SECONDARY"},{"$f":"I$8","v":"SECONDARY"},{"$f":"J$8","v":"SECONDARY"},{"$f":"K$8","v":"SECONDARY"},"SECONDARY","PRIMARY","PRIMARY","TRANSMISSION","LT","WATER",{"$f":"R8","v":"TOTAL"},"ALL"]
["NO.","DEPRECIATION RESERVE",null,"ALLO",null,{"$f":"F$9","v":"CUSTOMER"},{"$f":"G$9","v":"RESIDENTIAL"},{"$f":"H$9","v":"DISTRIBUTION"},{"$f":"I$9","v":"DISTRIBUTION"},{"$f":"J$9","v":"DISTRIBUTION"},{"$f":"K$9","v":"DISTRIBUTION"},"DISTRIBUTION","DISTRIBUTION","DISTRIBUTION","TIME OF DAY","LIGHTING","PUMPING",{"$f":"R9","v":"AT ISSUE"},"OTHER"]
[null,null,"Schedule 3",null,null,null,{"$f":"G$10","v":3},{"$f":"H$10","v":4},{"$f":"I$10","v":5},{"$f":"J$10","v":6},{"$f":"K$10","v":7},8,9,10,11,12,13,null," "]
[1,"PRODUCTION PLANT"]
[2,null,"PRODUCTION STEAM",{"$f":"'FR-16(7)(v)-1 Functional'!D136","v":"K201"},null,{"$f":"'FR-16(7)(v)-6 TRANS Classified'!I136","v":0},{"$f":"F136-SUM(H136:Q136)","v":0},{"$f":"ROUND(F136*VLOOKUP(D136,ALLOCTABLE_Trans_Customer,$H$10,FALSE),0)","v":0},{"$f":"ROUND(F136*VLOOKUP(D136,ALLOCTABLE_Trans_Customer,$I$10,FALSE),0)","v":0},{"$f":"ROUND(F136*VLOOKUP(D136,ALLOCTABLE_Trans_Customer,$J$10,FALSE),0)","v":0},{"$f":"ROUND(F136*VLOOKUP(D136,ALLOCTABLE_Trans_Customer,$K$10,FALSE),0)","v":0},{"$f":"ROUND(F136*VLOOKUP(D136,ALLOCTABLE_Trans_Customer,$L$10,FALSE),0)","v":0},{"$f":"ROUND(F136*VLOOKUP(D136,ALLOCTABLE_Trans_Customer,$M$10,FALSE),0)","v":0},{"$f":"ROUND(F136*VLOOKUP(D136,ALLOCTABLE_Trans_Customer,$N$10,FALSE),0)","v":0},{"$f":"ROUND(F136*VLOOKUP(D136,ALLOCTABLE_Trans_Customer,$O$10,FALSE),0)","v":0},{"$f":"ROUND(F136*VLOOKUP(D136,ALLOCTABLE_Trans_Customer,$P$10,FALSE),0)","v":0},{"$f":"ROUND(F136*VLOOKUP(D136,ALLOCTABLE_Trans_Customer,$Q$10,FALSE),0)","v":0},{"$f":"SUM(G136:Q136)","v":0},{"$f":"F136-R136","v":0}]
[3,null,"PRODUCTION OTHER",{"$f":"'FR-16(7)(v)-1 Functional'!D137","v":"K201"},null,{"$f":"'FR-16(7)(v)-6 TRANS Classified'!I137","v":0},{"$f":"F137-SUM(H137:Q137)","v":0},{"$f":"ROUND(F136*VLOOKUP(D136,ALLOCTABLE_Trans_Customer,$H$10,FALSE),0)","v":0},{"$f":"ROUND(F137*VLOOKUP(D137,ALLOCTABLE_Trans_Customer,$I$10,FALSE),0)","v":0},{"$f":"ROUND(F137*VLOOKUP(D137,ALLOCTABLE_Trans_Customer,$J$10,FALSE),0)","v":0},{"$f":"ROUND(F137*VLOOKUP(D137,ALLOCTABLE_Trans_Customer,$K$10,FALSE),0)","v":0},{"$f":"ROUND(F137*VLOOKUP(D137,ALLOCTABLE_Trans_Customer,$L$10,FALSE),0)","v":0},{"$f":"ROUND(F137*VLOOKUP(D137,ALLOCTABLE_Trans_Customer,$M$10,FALSE),0)","v":0},{"$f":"ROUND(F137*VLOOKUP(D137,ALLOCTABLE_Trans_Customer,$N$10,FALSE),0)","v":0},{"$f":"ROUND(F137*VLOOKUP(D137,ALLOCTABLE_Trans_Customer,$O$10,FALSE),0)","v":0},{"$f":"ROUND(F137*VLOOKUP(D137,ALLOCTABLE_Trans_Customer,$P$10,FALSE),0)","v":0},{"$f":"ROUND(F137*VLOOKUP(D137,ALLOCTABLE_Trans_Customer,$Q$10,FALSE),0)","v":0},{"$f":"SUM(G137:Q137)","v":0},{"$f":"F137-R137","v":0}]
[4,null,{"$f":"'FR-16(7)(v)-1 Functional'!C138","v":"ADJUSTMENT"},{"$f":"'FR-16(7)(v)-1 Functional'!D138","v":"K201"},null,{"$f":"'FR-16(7)(v)-6 TRANS Classified'!I138","v":0},{"$f":"F138-SUM(H138:Q138)","v":0},{"$f":"ROUND(F136*VLOOKUP(D136,ALLOCTABLE_Trans_Customer,$H$10,FALSE),0)","v":0},{"$f":"ROUND(F138*VLOOKUP(D138,ALLOCTABLE_Trans_Customer,$I$10,FALSE),0)","v":0},{"$f":"ROUND(F138*VLOOKUP(D138,ALLOCTABLE_Trans_Customer,$J$10,FALSE),0)","v":0},{"$f":"ROUND(F138*VLOOKUP(D138,ALLOCTABLE_Trans_Customer,$K$10,FALSE),0)","v":0},{"$f":"ROUND(F138*VLOOKUP(D138,ALLOCTABLE_Trans_Customer,$L$10,FALSE),0)","v":0},{"$f":"ROUND(F138*VLOOKUP(D138,ALLOCTABLE_Trans_Customer,$M$10,FALSE),0)","v":0},{"$f":"ROUND(F138*VLOOKUP(D138,ALLOCTABLE_Trans_Customer,$N$10,FALSE),0)","v":0},{"$f":"ROUND(F138*VLOOKUP(D138,ALLOCTABLE_Trans_Customer,$O$10,FALSE),0)","v":0},{"$f":"ROUND(F138*VLOOKUP(D138,ALLOCTABLE_Trans_Customer,$P$10,FALSE),0)","v":0},{"$f":"ROUND(F138*VLOOKUP(D138,ALLOCTABLE_Trans_Customer,$Q$10,FALSE),0)","v":0},{"$f":"SUM(G138:Q138)","v":0},{"$f":"F138-R138","v":0}]
[5,null,{"$f":"'FR-16(7)(v)-1 Functional'!C139","v":"  TOTAL PROD DEPREC RESERVE"},null,null,{"$f":"SUM(F136:F138)","v":0},0,0,0,0,0,0,0,0,0,0,0,0,{"$f":"SUM(S136:S136)","v":0}]
[6]
[7,"TRANSMISSION PLANT"]
[8,null,"MAIN STEP-UP TRANSFORMERS",{"$f":"'FR-16(7)(v)-1 Functional'!D142","v":"K202"},null,{"$f":"'FR-16(7)(v)-6 TRANS Classified'!I142","v":0},{"$f":"F142-SUM(H142:Q142)","v":0},{"$f":"ROUND(F136*VLOOKUP(D136,ALLOCTABLE_Trans_Customer,$H$10,FALSE),0)","v":0},{"$f":"ROUND(F142*VLOOKUP(D142,ALLOCTABLE_Trans_Customer,$I$10,FALSE),0)","v":0},{"$f":"ROUND(F142*VLOOKUP(D142,ALLOCTABLE_Trans_Customer,$J$10,FALSE),0)","v":0},{"$f":"ROUND(F142*VLOOKUP(D142,ALLOCTABLE_Trans_Customer,$K$10,FALSE),0)","v":0},{"$f":"ROUND(F142*VLOOKUP(D142,ALLOCTABLE_Trans_Customer,$L$10,FALSE),0)","v":0},{"$f":"ROUND(F142*VLOOKUP(D142,ALLOCTABLE_Trans_Customer,$M$10,FALSE),0)","v":0},{"$f":"ROUND(F142*VLOOKUP(D142,ALLOCTABLE_Trans_Customer,$N$10,FALSE),0)","v":0},{"$f":"ROUND(F142*VLOOKUP(D142,ALLOCTABLE_Trans_Customer,$O$10,FALSE),0)","v":0},{"$f":"ROUND(F142*VLOOKUP(D142,ALLOCTABLE_Trans_Customer,$P$10,FALSE),0)","v":0},{"$f":"ROUND(F142*VLOOKUP(D142,ALLOCTABLE_Trans_Customer,$Q$10,FALSE),0)","v":0},{"$f":"SUM(G142:Q142)","v":0},{"$f":"F142-R142","v":0}]
[9,null,"OTHER TRANSMISSION",{"$f":"'FR-16(7)(v)-1 Functional'!D143","v":"K202"},null,{"$f":"'FR-16(7)(v)-6 TRANS Classified'!I143","v":0},{"$f":"F143-SUM(H143:Q143)","v":0},{"$f":"ROUND(F136*VLOOKUP(D136,ALLOCTABLE_Trans_Customer,$H$10,FALSE),0)","v":0},{"$f":"ROUND(F143*VLOOKUP(D143,ALLOCTABLE_Trans_Customer,$I$10,FALSE),0)","v":0},{"$f":"ROUND(F143*VLOOKUP(D143,ALLOCTABLE_Trans_Customer,$J$10,FALSE),0)","v":0},{"$f":"ROUND(F143*VLOOKUP(D143,ALLOCTABLE_Trans_Customer,$K$10,FALSE),0)","v":0},{"$f":"ROUND(F143*VLOOKUP(D143,ALLOCTABLE_Trans_Customer,$L$10,FALSE),0)","v":0},{"$f":"ROUND(F143*VLOOKUP(D143,ALLOCTABLE_Trans_Customer,$M$10,FALSE),0)","v":0},{"$f":"ROUND(F143*VLOOKUP(D143,ALLOCTABLE_Trans_Customer,$N$10,FALSE),0)","v":0},{"$f":"ROUND(F143*VLOOKUP(D143,ALLOCTABLE_Trans_Customer,$O$10,FALSE),0)","v":0},{"$f":"ROUND(F143*VLOOKUP(D143,ALLOCTABLE_Trans_Customer,$P$10,FALSE),0)","v":0},{"$f":"ROUND(F143*VLOOKUP(D143,ALLOCTABLE_Trans_Customer,$Q$10,FALSE),0)","v":0},{"$f":"SUM(G143:Q143)","v":0},{"$f":"F143-R143","v":0}]
[10,null,"ADJUSTMENT",{"$f":"'FR-16(7)(v)-1 Functional'!D144","v":"K202"},null,{"$f":"'FR-16(7)(v)-6 TRANS Classified'!I144","v":0},{"$f":"F144-SUM(H144:Q144)","v":0},{"$f":"ROUND(F136*VLOOKUP(D136,ALLOCTABLE_Trans_Customer,$H$10,FALSE),0)","v":0},{"$f":"ROUND(F144*VLOOKUP(D144,ALLOCTABLE_Trans_Customer,$I$10,FALSE),0)","v":0},{"$f":"ROUND(F144*VLOOKUP(D144,ALLOCTABLE_Trans_Customer,$J$10,FALSE),0)","v":0},{"$f":"ROUND(F144*VLOOKUP(D144,ALLOCTABLE_Trans_Customer,$K$10,FALSE),0)","v":0},{"$f":"ROUND(F144*VLOOKUP(D144,ALLOCTABLE_Trans_Customer,$L$10,FALSE),0)","v":0},{"$f":"ROUND(F144*VLOOKUP(D144,ALLOCTABLE_Trans_Customer,$M$10,FALSE),0)","v":0},{"$f":"ROUND(F144*VLOOKUP(D144,ALLOCTABLE_Trans_Customer,$N$10,FALSE),0)","v":0},{"$f":"ROUND(F144*VLOOKUP(D144,ALLOCTABLE_Trans_Customer,$O$10,FALSE),0)","v":0},{"$f":"ROUND(F144*VLOOKUP(D144,ALLOCTABLE_Trans_Customer,$P$10,FALSE),0)","v":0},{"$f":"ROUND(F144*VLOOKUP(D144,ALLOCTABLE_Trans_Customer,$Q$10,FALSE),0)","v":0},{"$f":"SUM(G144:Q144)","v":0},{"$f":"F144-R144","v":0}]
[11,null,"  TOTAL TRANS DEPREC RESERVE",null,null,{"$f":"SUM(F142:F144)","v":0},{"$f":"SUM(G142:G144)","v":0},0,0,0,0,0,0,0,0,0,0,{"$f":"SUM(R142:R144)","v":0},{"$f":"SUM(S142:S142)","v":0}]
[12]
[13,null,"TOTAL PROD & TRANS DEPREC RESERVE",null,null,{"$f":"F145+F139","v":0},{"$f":"G145+G139","v":0},{"$f":"$H$114+H139","v":0},{"$f":"$I$114+I139","v":0},{"$f":"$J$114+J139","v":0},{"$f":"$K$114+K139","v":0},{"$f":"$L$114+L139","v":0},{"$f":"$M$114+M139","v":0},{"$f":"$N$114+N139","v":0},{"$f":"$O$114+O139","v":0},{"$f":"$P$114+P139","v":0},{"$f":"$Q$114+Q139","v":0},{"$f":"SUM(G147:Q147)","v":0},{"$f":"F147-R147","v":0}]
[14]
[15,"DISTRIBUTION PLANT"]
[16,null,{"$f":"'FR-16(7)(v)-1 Functional'!C150","v":"SUBSTATIONS"},{"$f":"'FR-16(7)(v)-1 Functional'!D150","v":"K215"},null,{"$f":"'FR-16(7)(v)-6 TRANS Classified'!I150","v":0},{"$f":"F150-SUM(H150:Q150)","v":0},{"$f":"ROUND(F150*VLOOKUP(D150,ALLOCTABLE_Trans_Customer,$H$10,FALSE),0)","v":0},{"$f":"ROUND(F150*VLOOKUP(D150,ALLOCTABLE_Trans_Customer,$I$10,FALSE),0)","v":0},{"$f":"ROUND(F150*VLOOKUP(D150,ALLOCTABLE_Trans_Customer,$J$10,FALSE),0)","v":0},{"$f":"ROUND(F150*VLOOKUP(D150,ALLOCTABLE_Trans_Customer,$K$10,FALSE),0)","v":0},{"$f":"ROUND(F150*VLOOKUP(D150,ALLOCTABLE_Trans_Customer,$L$10,FALSE),0)","v":0},{"$f":"ROUND(F150*VLOOKUP(D150,ALLOCTABLE_Trans_Customer,$M$10,FALSE),0)","v":0},{"$f":"ROUND(F150*VLOOKUP(D150,ALLOCTABLE_Trans_Customer,$N$10,FALSE),0)","v":0},{"$f":"ROUND(F150*VLOOKUP(D150,ALLOCTABLE_Trans_Customer,$O$10,FALSE),0)","v":0},{"$f":"ROUND(F150*VLOOKUP(D150,ALLOCTABLE_Trans_Customer,$P$10,FALSE),0)","v":0},{"$f":"ROUND(F150*VLOOKUP(D150,ALLOCTABLE_Trans_Customer,$Q$10,FALSE),0)","v":0},{"$f":"SUM(G150:Q150)","v":0},{"$f":"F150-R150","v":0}]
[17,null,{"$f":"'FR-16(7)(v)-1 Functional'!C151","v":"POLES, TOWERS  & FIXTURES - PRIMARY - DEMAND"},{"$f":"'FR-16(7)(v)-1 Functional'!D151","v":"K205"},null,{"$f":"'FR-16(7)(v)-6 TRANS Classified'!I151","v":0},{"$f":"F151-SUM(H151:Q151)","v":0},{"$f":"ROUND(F151*VLOOKUP(D151,ALLOCTABLE_Trans_Customer,$H$10,FALSE),0)","v":0},0,0,0,0,0,0,0,0,{"$f":"ROUND(F151*VLOOKUP(D151,ALLOCTABLE_Trans_Customer,$Q$10,FALSE),0)","v":0},{"$f":"SUM(G151:Q151)","v":0},{"$f":"F151-R151","v":0}]
[18,null,{"$f":"'FR-16(7)(v)-1 Functional'!C152","v":"POLES, TOWERS  & FIXTURES - PRIMARY - CUSTOMER"},{"$f":"'FR-16(7)(v)-1 Functional'!D152","v":"K405"},null,{"$f":"'FR-16(7)(v)-6 TRANS Classified'!I152","v":0},0,0,0,0,0,0,0,0,0,0,0,0,0]
[19,null,{"$f":"'FR-16(7)(v)-1 Functional'!C153","v":"POLES, TOWERS  & FIXTURES - SECONDARY - DEMAND"},{"$f":"'FR-16(7)(v)-1 Functional'!D153","v":"K206"},null,{"$f":"'FR-16(7)(v)-6 TRANS Classified'!I153","v":0},0,0,0,0,0,0,0,0,0,0,0,0,0]
[20,null,{"$f":"'FR-16(7)(v)-1 Functional'!C154","v":"POLES, TOWERS  & FIXTURES - SECONDARY - CUSTOMER"},{"$f":"'FR-16(7)(v)-1 Functional'!D154","v":"K405"},null,{"$f":"'FR-16(7)(v)-6 TRANS Classified'!I154","v":0},0,0,0,0,0,0,0,0,0,0,0,0,0]
[21,null,{"$f":"'FR-16(7)(v)-1 Functional'!C155","v":"CONDUCTORS - OVERHEAD / PRIMARY - DEMAND"},{"$f":"'FR-16(7)(v)-1 Functional'!D155","v":"K205"},null,{"$f":"'FR-16(7)(v)-6 TRANS Classified'!I155","v":0},0,0,0,0,0,0,0,0,0,0,0,0,0]
[22,null,{"$f":"'FR-16(7)(v)-1 Functional'!C156","v":"CONDUCTORS - OVERHEAD / PRIMARY - CUSTOMER"},{"$f":"'FR-16(7)(v)-1 Functional'!D156","v":"K405"},null,{"$f":"'FR-16(7)(v)-6 TRANS Classified'!I156","v":0},0,0,0,0,0,0,0,0,0,0,0,0,0]
[23,null,{"$f":"'FR-16(7)(v)-1 Functional'!C157","v":"CONDUCTORS - OVERHEAD / SECONDARY - DEMAND"},{"$f":"'FR-16(7)(v)-1 Functional'!D157","v":"K206"},null,{"$f":"'FR-16(7)(v)-6 TRANS Classified'!I157","v":0},0,0,0,0,0,0,0,0,0,0,0,0,0]
[24,null,{"$f":"'FR-16(7)(v)-1 Functional'!C158","v":"CONDUCTORS - OVERHEAD / SECONDARY - CUSTOMER"},{"$f":"'FR-16(7)(v)-1 Functional'!D158","v":"K405"},null,{"$f":"'FR-16(7)(v)-6 TRANS Classified'!I158","v":0},0,0,0,0,0,0,0,0,0,0,0,0,0]
[25,null,{"$f":"'FR-16(7)(v)-1 Functional'!C159","v":"CONDUCTORS - UNDERGROUND / PRIMARY - DEMAND"},{"$f":"'FR-16(7)(v)-1 Functional'!D159","v":"K205"},null,{"$f":"'FR-16(7)(v)-6 TRANS Classified'!I159","v":0},0,0,0,0,0,0,0,0,0,0,0,0,0]
[26,null,{"$f":"'FR-16(7)(v)-1 Functional'!C160","v":"CONDUCTORS - UNDERGROUND / PRIMARY - CUSTOMER"},{"$f":"'FR-16(7)(v)-1 Functional'!D160","v":"K405"},null,{"$f":"'FR-16(7)(v)-6 TRANS Classified'!I160","v":0},0,0,0,0,0,0,0,0,0,0,0,0,0]
[27,null,{"$f":"'FR-16(7)(v)-1 Functional'!C161","v":"CONDUCTORS - UNDERGROUND / SECONDARY - DEMAND"},{"$f":"'FR-16(7)(v)-1 Functional'!D161","v":"K206"},null,{"$f":"'FR-16(7)(v)-6 TRANS Classified'!I161","v":0},0,0,0,0,0,0,0,0,0,0,0,0,0]
[28,null,{"$f":"'FR-16(7)(v)-1 Functional'!C162","v":"CONDUCTORS - UNDERGROUND / SECONDARY - CUSTOMER"},{"$f":"'FR-16(7)(v)-1 Functional'!D162","v":"K405"},null,{"$f":"'FR-16(7)(v)-6 TRANS Classified'!I162","v":0},0,0,0,0,0,0,0,0,0,0,0,0,0]
[29,null,{"$f":"'FR-16(7)(v)-1 Functional'!C163","v":"TRANSFORMERS DEMAND RELATED"},{"$f":"'FR-16(7)(v)-1 Functional'!D163","v":"K215"},null,{"$f":"'FR-16(7)(v)-6 TRANS Classified'!I163","v":0},0,0,0,0,0,0,0,0,0,0,0,0,0]
[30,null,{"$f":"'FR-16(7)(v)-1 Functional'!C164","v":"TRANSFORMERS CUSTOMER RELATED"},{"$f":"'FR-16(7)(v)-1 Functional'!D164","v":"K405"},null,{"$f":"'FR-16(7)(v)-6 TRANS Classified'!I164","v":0},0,0,0,0,0,0,0,0,0,0,0,0,0]
[31,null,{"$f":"'FR-16(7)(v)-1 Functional'!C165","v":"SERVICES"},{"$f":"'FR-16(7)(v)-1 Functional'!D165","v":"K217"},null,{"$f":"'FR-16(7)(v)-6 TRANS Classified'!I165","v":0},0,0,0,0,0,0,0,0,0,0,0,0,0]
[32,null,{"$f":"'FR-16(7)(v)-1 Functional'!C166","v":"METERS"},{"$f":"'FR-16(7)(v)-1 Functional'!D166","v":"K407"},null,{"$f":"'FR-16(7)(v)-6 TRANS Classified'!I166","v":1142},924,209,0,2,0,7,0,0,0,0,0,1142,0]
[33,null,{"$f":"'FR-16(7)(v)-1 Functional'!C167","v":"STREET LIGHTS"},{"$f":"'FR-16(7)(v)-1 Functional'!D167","v":"K401"},null,{"$f":"'FR-16(7)(v)-6 TRANS Classified'!I167","v":0},0,0,0,0,0,0,0,0,0,0,0,0,0]
[34,null,{"$f":"'FR-16(7)(v)-1 Functional'!C168","v":"ADJUSTMENT  "},{"$f":"'FR-16(7)(v)-1 Functional'!D168","v":"K209"},null,{"$f":"'FR-16(7)(v)-6 TRANS Classified'!I168","v":5},4,1,0,0,0,0,0,0,0,0,0,5,0]
[35,null,{"$f":"'FR-16(7)(v)-1 Functional'!C169","v":"CONSTRUCTION NOT CLASSIFIED"},{"$f":"'FR-16(7)(v)-1 Functional'!D169","v":"K209"},null,{"$f":"'FR-16(7)(v)-6 TRANS Classified'!I169","v":15},12,3,0,0,0,0,0,0,0,0,0,15,0]
[36,null,{"$f":"'FR-16(7)(v)-1 Functional'!C170","v":"RWIP"},{"$f":"'FR-16(7)(v)-1 Functional'!D170","v":"K215"},null,{"$f":"'FR-16(7)(v)-6 TRANS Classified'!I170","v":0},{"$f":"F170-SUM(H170:Q170)","v":0},{"$f":"ROUND($F$170*VLOOKUP($D$170,ALLOCTABLE_Trans_Customer,H$10,FALSE),0)","v":0},0,0,0,0,0,0,0,0,0,{"$f":"SUM(G170:Q170)","v":0},{"$f":"F170-R170","v":0}]
[37,null,{"$f":"'FR-16(7)(v)-1 Functional'!C171","v":"  TOTAL DIST DEPREC RESERVE"},null,null,{"$f":"SUM(F149:F170)","v":1162},{"$f":"SUM(G149:G170)","v":940},213,0,2,0,7,0,0,0,0,0,1162,0]
[38]
[39,null,"TOTAL TRANS & DIST DEPREC RESERVE",null,null,{"$f":"F171+F145","v":1162},{"$f":"G171+G145","v":940},213,0,2,0,7,0,0,0,0,0,{"$f":"SUM(G173:Q173)","v":1162},{"$f":"F173-R173","v":0}]
[40,null,"TOTAL GROSS PTD PLANT DEPREC RESERVE",null,null,{"$f":"F147+F171","v":1162},{"$f":"G147+G171","v":940},213,0,2,0,7,0,0,0,0,0,{"$f":"SUM(G174:Q174)","v":1162},{"$f":"F174-R174","v":0}]
[41]
[42,"GENERAL & INTANGIBLE PLANT"]
[43,null,{"$f":"'FR-16(7)(v)-1 Functional'!C177","v":"PRODUCTION - DEMAND"},{"$f":"'FR-16(7)(v)-1 Functional'!D177","v":"K201"},null,{"$f":"'FR-16(7)(v)-6 TRANS Classified'!I177","v":0},{"$f":"F177-SUM(H177:Q177)","v":0},{"$f":"ROUND(F177*VLOOKUP(D177,ALLOCTABLE_Trans_Customer,$H$10,FALSE),0)","v":0},{"$f":"ROUND(F177*VLOOKUP(D177,ALLOCTABLE_Trans_Customer,$I$10,FALSE),0)","v":0},{"$f":"ROUND(F177*VLOOKUP(D177,ALLOCTABLE_Trans_Customer,$J$10,FALSE),0)","v":0},{"$f":"ROUND(F177*VLOOKUP(D177,ALLOCTABLE_Trans_Customer,$K$10,FALSE),0)","v":0},{"$f":"ROUND(F177*VLOOKUP(D177,ALLOCTABLE_Trans_Customer,$L$10,FALSE),0)","v":0},{"$f":"ROUND(F177*VLOOKUP(D177,ALLOCTABLE_Trans_Customer,$M$10,FALSE),0)","v":0},{"$f":"ROUND(F177*VLOOKUP(D177,ALLOCTABLE_Trans_Customer,$N$10,FALSE),0)","v":0},{"$f":"ROUND(F177*VLOOKUP(D177,ALLOCTABLE_Trans_Customer,$O$10,FALSE),0)","v":0},{"$f":"ROUND(F177*VLOOKUP(D177,ALLOCTABLE_Trans_Customer,$P$10,FALSE),0)","v":0},{"$f":"ROUND(F177*VLOOKUP(D177,ALLOCTABLE_Trans_Customer,$Q$10,FALSE),0)","v":0},{"$f":"SUM(G177:Q177)","v":0},{"$f":"F177-R177","v":0}]
[44,null,{"$f":"'FR-16(7)(v)-1 Functional'!C178","v":"PRODUCTION - ENERGY"},{"$f":"'FR-16(7)(v)-1 Functional'!D178","v":"K301"},null,{"$f":"'FR-16(7)(v)-6 TRANS Classified'!I178","v":0},0,0,0,0,0,0,0,0,0,0,0,0,0]
[45,null,{"$f":"'FR-16(7)(v)-1 Functional'!C179","v":"TRANSMISSION"},{"$f":"'FR-16(7)(v)-1 Functional'!D179","v":"K202"},null,{"$f":"'FR-16(7)(v)-6 TRANS Classified'!I179","v":0},0,0,0,0,0,0,0,0,0,0,0,0,0]
[46,null,{"$f":"'FR-16(7)(v)-1 Functional'!C180","v":"DISTRIBUTION - DEMAND"},{"$f":"'FR-16(7)(v)-1 Functional'!D180","v":"K201"},null,{"$f":"'FR-16(7)(v)-6 TRANS Classified'!I180","v":0},0,0,0,0,0,0,0,0,0,0,0,0,0]
[47,null,{"$f":"'FR-16(7)(v)-1 Functional'!C181","v":"DISTRIBUTION - CUSTOMER"},{"$f":"'FR-16(7)(v)-1 Functional'!D181","v":"K405"},null,{"$f":"'FR-16(7)(v)-6 TRANS Classified'!I181","v":0},0,0,0,0,0,0,0,0,0,0,0,0,0]
[48,null,{"$f":"'FR-16(7)(v)-1 Functional'!C182","v":"CUSTOMER ACCOUNTING"},{"$f":"'FR-16(7)(v)-1 Functional'!D182","v":"A308"},null,{"$f":"'FR-16(7)(v)-6 TRANS Classified'!I182","v":-682},-628,-21,0,0,0,-16,-10,-1,-5,-1,0,-682,0]
[49,null,{"$f":"'FR-16(7)(v)-1 Functional'!C183","v":"CUSTOMER SERVICE & INFORMATION"},{"$f":"'FR-16(7)(v)-1 Functional'!D183","v":"A310"},null,{"$f":"'FR-16(7)(v)-6 TRANS Classified'!I183","v":0},0,0,0,0,0,0,0,0,0,0,0,0,0]
[50,null,{"$f":"'FR-16(7)(v)-1 Functional'!C184","v":"SALES"},{"$f":"'FR-16(7)(v)-1 Functional'!D184","v":"A312"},null,{"$f":"'FR-16(7)(v)-6 TRANS Classified'!I184","v":0},0,0,0,0,0,0,0,0,0,0,0,0,0]
[51,null,{"$f":"'FR-16(7)(v)-1 Functional'!C185","v":"ADJUSTMENT"},{"$f":"'FR-16(7)(v)-1 Functional'!D185","v":"A315"},null,{"$f":"'FR-16(7)(v)-6 TRANS Classified'!I185","v":-12},-12,0,0,0,0,0,0,0,0,0,0,-12,0]
[52,null,"  GENERAL & INTANG PLANT",null,null,{"$f":"SUM(F176:F185)","v":-694},{"$f":"SUM(G176:G185)","v":-640},{"$f":"SUM(H176:H185)","v":-21},{"$f":"SUM(I176:I185)","v":0},{"$f":"SUM(J176:J185)","v":0},0,-16,-10,-1,-5,-1,{"$f":"SUM(Q176:Q185)","v":0},{"$f":"SUM(R176:R185)","v":-694},{"$f":"SUM(S176:S185)","v":0}]
[53]
[54,"COMMON & OTHER PLANT"]
[55,null,{"$f":"'FR-16(7)(v)-1 Functional'!C189","v":"PRODUCTION - DEMAND"},{"$f":"'FR-16(7)(v)-1 Functional'!D189","v":"K201"},null,{"$f":"'FR-16(7)(v)-6 TRANS Classified'!I189","v":0},{"$f":"F189-SUM(H189:Q189)","v":0},{"$f":"ROUND(F189*VLOOKUP(D189,ALLOCTABLE_Trans_Customer,$H$10,FALSE),0)","v":0},{"$f":"ROUND(F189*VLOOKUP(D189,ALLOCTABLE_Trans_Customer,$I$10,FALSE),0)","v":0},{"$f":"ROUND(F189*VLOOKUP(D189,ALLOCTABLE_Trans_Customer,$J$10,FALSE),0)","v":0},{"$f":"ROUND(F189*VLOOKUP(D189,ALLOCTABLE_Trans_Customer,$K$10,FALSE),0)","v":0},{"$f":"ROUND(F189*VLOOKUP(D189,ALLOCTABLE_Trans_Customer,$L$10,FALSE),0)","v":0},{"$f":"ROUND(F189*VLOOKUP(D189,ALLOCTABLE_Trans_Customer,$M$10,FALSE),0)","v":0},{"$f":"ROUND(F189*VLOOKUP(D189,ALLOCTABLE_Trans_Customer,$N$10,FALSE),0)","v":0},{"$f":"ROUND(F189*VLOOKUP(D189,ALLOCTABLE_Trans_Customer,$O$10,FALSE),0)","v":0},{"$f":"ROUND(F189*VLOOKUP(D189,ALLOCTABLE_Trans_Customer,$P$10,FALSE),0)","v":0},{"$f":"ROUND(F189*VLOOKUP(D189,ALLOCTABLE_Trans_Customer,$Q$10,FALSE),0)","v":0},{"$f":"SUM(G189:Q189)","v":0},{"$f":"F189-R189","v":0}]
[56,null,{"$f":"'FR-16(7)(v)-1 Functional'!C190","v":"PRODUCTION - ENERGY"},{"$f":"'FR-16(7)(v)-1 Functional'!D190","v":"K301"},null,{"$f":"'FR-16(7)(v)-6 TRANS Classified'!I190","v":0},0,0,0,0,0,0,0,0,0,0,0,0,0]
[57,null,{"$f":"'FR-16(7)(v)-1 Functional'!C191","v":"TRANSMISSION"},{"$f":"'FR-16(7)(v)-1 Functional'!D191","v":"K202"},null,{"$f":"'FR-16(7)(v)-6 TRANS Classified'!I191","v":0},0,0,0,0,0,0,0,0,0,0,0,0,0]
[58,null,{"$f":"'FR-16(7)(v)-1 Functional'!C192","v":"DISTRIBUTION - DEMAND"},{"$f":"'FR-16(7)(v)-1 Functional'!D192","v":"K201"},null,{"$f":"'FR-16(7)(v)-6 TRANS Classified'!I192","v":0},0,0,0,0,0,0,0,0,0,0,0,0,0]
[59,null,{"$f":"'FR-16(7)(v)-1 Functional'!C193","v":"DISTRIBUTION - CUSTOMER"},{"$f":"'FR-16(7)(v)-1 Functional'!D193","v":"K405"},null,{"$f":"'FR-16(7)(v)-6 TRANS Classified'!I193","v":0},0,0,0,0,0,0,0,0,0,0,0,0,0]
[60,null,{"$f":"'FR-16(7)(v)-1 Functional'!C194","v":"CUSTOMER ACCOUNTING"},{"$f":"'FR-16(7)(v)-1 Functional'!D194","v":"A308"},null,{"$f":"'FR-16(7)(v)-6 TRANS Classified'!I194","v":-922},-848,-29,0,0,0,-22,-14,-1,-7,-1,0,-922,0]
[61,null,{"$f":"'FR-16(7)(v)-1 Functional'!C195","v":"CUSTOMER SERVICE & INFORMATION"},{"$f":"'FR-16(7)(v)-1 Functional'!D195","v":"A310"},null,{"$f":"'FR-16(7)(v)-6 TRANS Classified'!I195","v":0},0,0,0,0,0,0,0,0,0,0,0,0,0]
[62,null,{"$f":"'FR-16(7)(v)-1 Functional'!C196","v":"SALES"},{"$f":"'FR-16(7)(v)-1 Functional'!D196","v":"A312"},null,{"$f":"'FR-16(7)(v)-6 TRANS Classified'!I196","v":0},0,0,0,0,0,0,0,0,0,0,0,0,0]
[63,null,{"$f":"'FR-16(7)(v)-1 Functional'!C197","v":"ADJUSTMENT"},{"$f":"'FR-16(7)(v)-1 Functional'!D197","v":"A315"},null,{"$f":"'FR-16(7)(v)-6 TRANS Classified'!I197","v":-1},-1,0,0,0,0,0,0,0,0,0,0,-1,0]
[64,null,{"$f":"'FR-16(7)(v)-1 Functional'!C198","v":"  COMMON & OTHER PLANT IN SERVICE"},null,null,{"$f":"SUM(F189:F197)","v":-923},{"$f":"SUM(G188:G197)","v":-849},-29,0,{"$f":"SUM(J188:J197)","v":0},0,-22,-14,-1,-7,-1,0,-923,0]
[65]
[66,"TOTAL DEPRECIATION RESERVE",null,null,null,{"$f":"F198+F186+F171+F145+F139","v":-455},{"$f":"G198+G186+G171+G145+G139","v":-549},{"$f":"H198+H186+H171+H145+H139","v":163},0,2,0,-31,-24,-2,-12,-2,0,{"$f":"R198+R186+R171+R145+R139","v":-455},{"$f":"S198+S186+S171+S145+S139","v":0}]
[]
[{"$f":"co_name","v":"DUKE ENERGY KENTUCKY, INC."},null,null,null,null,null,null,null,null,null,null,null,null,null,null,null,null,{"$f":"R1","v":"FR-16(7)(v)-9"}]
[{"$f":"$A$2","v":"TRANSMISSION CUSTOMER ALLOCATED - ELECTRIC COST OF SERVICE"},null,null,null,null,null,null,null,null,null,null,null,null,null,null,null,null,{"$f":"R2","v":"WITNESS RESPONSIBLE:"}]
[{"$f":"case_name","v":"CASE NO: 2019-00271"},null,null,null,null,null,null,null,null,null,null,null,null,null,null,null,null,{"$f":"Witness","v":"JAMES E. ZIOLKOWSKI"}]
[{"$f":"data_filing","v":"DATA: 12 MONTHS ACTUAL  & 0 MONTHS ESTIMATED"},null,null,null,null,null,null,null,null,null,null,null,null,null,null,null,null,{"$f":"\"PAGE \"&Pages-14&\" OF \"&Pages","v":"PAGE 4 OF 18"}]
[{"$f":"type","v":"TYPE OF FILING: \"X\" ORIGINAL   UPDATED    REVISED  "}]
[]
[null,null,null,null,null,{"$f":"F$7","v":"TOTAL"},null,{"$f":"H$7","v":"DS"},{"$f":"I$7","v":"GSFL"},{"$f":"J$7","v":"EH"},{"$f":"K$7","v":"SP"},"DT SEC","DT PRI","DP","TT",null,"OTHER"]
["LINE",null,null,null,null,{"$f":"F$8","v":"TRANSMISSION"},{"$f":"G$8","v":"RS"},{"$f":"H$8","v":"SECONDARY"},{"$f":"I$8","v":"SECONDARY"},{"$f":"J$8","v":"SECONDARY"},{"$f":"K$8","v":"SECONDARY"},"SECONDARY","PRIMARY","PRIMARY","TRANSMISSION","LT","WATER",{"$f":"R8","v":"TOTAL"},"ALL"]
["NO.",{"$f":"\"NET ELECTRIC PLANT\"","v":"NET ELECTRIC PLANT"},null,"ALLO",null,{"$f":"F$9","v":"CUSTOMER"},{"$f":"G$9","v":"RESIDENTIAL"},{"$f":"H$9","v":"DISTRIBUTION"},{"$f":"I$9","v":"DISTRIBUTION"},{"$f":"J$9","v":"DISTRIBUTION"},{"$f":"K$9","v":"DISTRIBUTION"},"DISTRIBUTION","DISTRIBUTION","DISTRIBUTION","TIME OF DAY","LIGHTING","PUMPING",{"$f":"R9","v":"AT ISSUE"},"OTHER"]
[null,null,"Schedule 4",null,null,null,{"$f":"G$10","v":3},{"$f":"H$10","v":4},{"$f":"I$10","v":5},{"$f":"J$10","v":6},{"$f":"K$10","v":7},8,9,10,11,12,13,null," "]
[1,"PRODUCTION PLANT"]
[2,null,"PRODUCTION STEAM",null,null,{"$f":"F59-F136","v":0},{"$f":"G59-G136","v":0},{"$f":"H59-H136","v":0},{"$f":"I59-I136","v":0},{"$f":"J59-J136","v":0},0,0,0,0,0,0,{"$f":"Q59-Q136","v":0},{"$f":"R59-R136","v":0},{"$f":"F213-R213","v":0}]
[3,null,"PRODUCTION OTHER",null,null,{"$f":"F60-F137","v":0},0,0,0,{"$f":"J60-J137","v":0},0,0,0,0,0,0,0,0,{"$f":"F214-R214","v":0}]
[4,null,"ADJUSTMENT",null,null,{"$f":"F61-F138","v":0},0,0,0,{"$f":"J61-J138","v":0},0,0,0,0,0,0,0,0,{"$f":"F215-R215","v":0}]
[5,null,{"$f":"'FR-16(7)(v)-1 Functional'!C216","v":"  NET PRODUCTION PLANT"},null,null,{"$f":"SUM(F213:F215)","v":0},0,0,0,{"$f":"SUM(J213:J215)","v":0},0,0,0,0,0,0,0,0,0]
[6]
[7,"TRANSMISSION PLANT"]
[8,null,"MAIN STEP-UP TRANSFORMERS",null,null,{"$f":"F65-F142","v":0},0,0,0,{"$f":"J65-J142","v":0},0,0,0,0,0,0,0,0,{"$f":"F219-R219","v":0}]
[9,null,"OTHER TRANSMISSION",null,null,{"$f":"F66-F143","v":0},0,0,0,{"$f":"J66-J143","v":0},0,0,0,0,0,0,{"$f":"Q66-Q143","v":0},{"$f":"R66-R143","v":0},{"$f":"F220-R220","v":0}]
[10,null,"ADJUSTMENT",null,null,0,0,0,0,{"$f":"J67-J144","v":0},0,0,0,0,0,0,{"$f":"Q67-Q144","v":0},{"$f":"R67-R144","v":0},{"$f":"F221-R221","v":0}]
[11,null,{"$f":"'FR-16(7)(v)-1 Functional'!C222","v":"    NET TRANSMISSION PLANT"},null,null,{"$f":"SUM(F218:F221)","v":0},0,0,0,{"$f":"SUM(J218:J221)","v":0},0,0,0,0,0,0,0,0,0]
[12]
[13,"NET PROD & TRANS PLANT",null,null,null,{"$f":"F70-F147","v":0},{"$f":"G70-G147","v":0},{"$f":"H70-H147","v":0},0,0,0,0,0,0,0,0,0,0,{"$f":"F224-R224","v":0}]
[14]
[15,"DISTRIBUTION PLANT"]
[16,null,{"$f":"'FR-16(7)(v)-1 Functional'!C227","v":"SUBSTATIONS"},null,null,{"$f":"F73-F150","v":0},{"$f":"G73-G150","v":0},{"$f":"H73-H150","v":0},0,0,0,0,0,0,0,0,0,{"$f":"R73-R150","v":0},{"$f":"F227-R227","v":0}]
[17,null,{"$f":"'FR-16(7)(v)-1 Functional'!C228","v":"POLES, TOWERS  & FIXTURES - PRIMARY - DEMAND"},null,null,{"$f":"F74-F151","v":0},{"$f":"G74-G151","v":0},{"$f":"H74-H151","v":0},0,0,0,0,0,0,0,0,0,{"$f":"R74-R151","v":0},{"$f":"F228-R228","v":0}]
[18,null,{"$f":"'FR-16(7)(v)-1 Functional'!C229","v":"POLES, TOWERS  & FIXTURES - PRIMARY - CUSTOMER"},null,null,{"$f":"F75-F152","v":0},{"$f":"G75-G152","v":0},0,0,0,0,0,0,0,0,0,0,0,{"$f":"F229-R229","v":0}]
[19,null,{"$f":"'FR-16(7)(v)-1 Functional'!C230","v":"POLES, TOWERS  & FIXTURES - SECONDARY - DEMAND"},null,null,0,{"$f":"G76-G153","v":0},0,0,0,0,0,0,0,0,0,0,0,0]
[20,null,{"$f":"'FR-16(7)(v)-1 Functional'!C231","v":"POLES, TOWERS  & FIXTURES - SECONDARY - CUSTOMER"},null,null,0,{"$f":"G77-G154","v":0},0,0,0,0,0,0,0,0,0,0,0,0]
[21,null,{"$f":"'FR-16(7)(v)-1 Functional'!C232","v":"CONDUCTORS - OVERHEAD / PRIMARY - DEMAND"},null,null,0,{"$f":"G78-G155","v":0},0,0,0,0,0,0,0,0,0,0,0,0]
[22,null,{"$f":"'FR-16(7)(v)-1 Functional'!C233","v":"CONDUCTORS - OVERHEAD / PRIMARY - CUSTOMER"},null,null,0,{"$f":"G79-G156","v":0},0,0,0,0,0,0,0,0,0,0,0,0]
[23,null,{"$f":"'FR-16(7)(v)-1 Functional'!C234","v":"CONDUCTORS - OVERHEAD / SECONDARY - DEMAND"},null,null,0,{"$f":"G80-G157","v":0},0,0,0,0,0,0,0,0,0,0,0,0]
[24,null,{"$f":"'FR-16(7)(v)-1 Functional'!C235","v":"CONDUCTORS - OVERHEAD / SECONDARY - CUSTOMER"},null,null,0,{"$f":"G81-G158","v":0},0,0,0,0,0,0,0,0,0,0,0,0]
[25,null,{"$f":"'FR-16(7)(v)-1 Functional'!C236","v":"CONDUCTORS - UNDERGROUND / PRIMARY - DEMAND"},null,null,0,{"$f":"G82-G159","v":0},0,0,0,0,0,0,0,0,0,0,0,0]
[26,null,{"$f":"'FR-16(7)(v)-1 Functional'!C237","v":"CONDUCTORS - UNDERGROUND / PRIMARY - CUSTOMER"},null,null,0,{"$f":"G83-G160","v":0},0,0,0,0,0,0,0,0,0,0,0,0]
[27,null,{"$f":"'FR-16(7)(v)-1 Functional'!C238","v":"CONDUCTORS - UNDERGROUND / SECONDARY - DEMAND"},null,null,0,{"$f":"G84-G161","v":0},0,0,0,0,0,0,0,0,0,0,0,0]
[28,null,{"$f":"'FR-16(7)(v)-1 Functional'!C239","v":"CONDUCTORS - UNDERGROUND / SECONDARY - CUSTOMER"},null,null,0,{"$f":"G85-G162","v":0},0,0,0,0,0,0,0,0,0,0,0,0]
[29,null,"TRANSFORMERS DEMAND RELATED",null,null,0,{"$f":"G86-G163","v":0},0,0,0,0,0,0,0,0,0,0,0,{"$f":"F240-R240","v":0}]
[30,null,"TRANSFORMERS CUSTOMER RELATED",null,null,0,{"$f":"G87-G164","v":0},0,0,0,0,0,0,0,0,0,0,0,0]
[31,null,{"$f":"'FR-16(7)(v)-1 Functional'!C242","v":"SERVICES"},null,null,0,{"$f":"G88-G165","v":0},{"$f":"H88-H165","v":0},0,0,0,0,0,0,0,0,0,{"$f":"R88-R165","v":0},0]
[32,null,{"$f":"'FR-16(7)(v)-1 Functional'!C243","v":"METERS"},null,null,4050,3273,{"$f":"H89-H166","v":741},0,5,1,27,0,1,1,0,1,{"$f":"R89-R166","v":4050},0]
[33,null,{"$f":"'FR-16(7)(v)-1 Functional'!C244","v":"STREET LIGHTS"},null,null,0,0,{"$f":"H90-H167","v":0},0,0,0,0,0,0,0,0,0,{"$f":"R90-R167","v":0},0]
[34,null,{"$f":"'FR-16(7)(v)-1 Functional'!C245","v":"ADJUSTMENT  "},null,null,-5,-4,{"$f":"H91-H168","v":-1},0,0,0,0,0,0,0,0,0,{"$f":"R91-R168","v":-5},0]
[35,null,{"$f":"'FR-16(7)(v)-1 Functional'!C246","v":"CONSTRUCTION NOT CLASSIFIED"},null,null,932,755,{"$f":"H92-H169","v":170},0,1,0,6,0,0,0,0,0,{"$f":"R92-R169","v":932},0]
[36,null,{"$f":"'FR-16(7)(v)-1 Functional'!C247","v":"RWIP"},null,null,0,0,0,0,0,0,0,0,0,0,0,0,0,0]
[37,null,{"$f":"'FR-16(7)(v)-1 Functional'!C248","v":"  NET DISTRIBUTION PLANT"},null,null,{"$f":"SUM(F226:F247)","v":4977},{"$f":"SUM(G226:G247)","v":4024},910,0,6,1,33,0,1,1,0,1,4977,0]
[38]
[39,"NET PTD PLANT",null,null,null,{"$f":"F96-F173","v":4977},4024,910,0,{"$f":"J96-J173","v":6},1,33,0,1,1,0,1,4977,{"$f":"S248+S222+S216","v":0}]
[40,"NET TRANS & DIST PLANT",null,null,null,{"$f":"F97-F174","v":4977},4024,910,0,{"$f":"J97-J174","v":6},1,33,0,1,1,0,1,4977,{"$f":"S248+S222","v":0}]
[41]
[42,"GENERAL & INTANGIBLE PLANT"]
[43,null,{"$f":"'FR-16(7)(v)-1 Functional'!C254","v":"PRODUCTION - DEMAND"},null,null,{"$f":"F100-F177","v":0},0,0,0,{"$f":"J100-J177","v":0},0,0,0,0,0,0,0,0,{"$f":"F254-R254","v":0}]
[44,null,{"$f":"'FR-16(7)(v)-1 Functional'!C255","v":"PRODUCTION - ENERGY"},null,null,{"$f":"F101-F178","v":0},0,0,0,{"$f":"J101-J178","v":0},0,0,0,0,0,0,0,0,{"$f":"F255-R255","v":0}]
[45,null,{"$f":"'FR-16(7)(v)-1 Functional'!C256","v":"TRANSMISSION"},null,null,{"$f":"F102-F179","v":0},0,0,0,{"$f":"J102-J179","v":0},0,0,0,0,0,0,0,0,0]
[46,null,{"$f":"'FR-16(7)(v)-1 Functional'!C257","v":"DISTRIBUTION - DEMAND"},null,null,{"$f":"F103-F180","v":0},0,0,0,0,0,0,0,0,0,0,0,0,0]
[47,null,{"$f":"'FR-16(7)(v)-1 Functional'!C258","v":"DISTRIBUTION - CUSTOMER"},null,null,{"$f":"F104-F181","v":0},0,0,0,0,0,0,0,0,0,0,0,0,{"$f":"F258-R258","v":0}]
[48,null,{"$f":"'FR-16(7)(v)-1 Functional'!C259","v":"CUSTOMER ACCOUNTING"},null,null,{"$f":"F105-F182","v":-1435},-1320,-46,0,{"$f":"J105-J182","v":0},0,-34,-22,-1,-11,-1,0,-1435,0]
[49,null,{"$f":"'FR-16(7)(v)-1 Functional'!C260","v":"CUSTOMER SERVICE & INFORMATION"},null,null,{"$f":"F106-F183","v":0},0,0,0,{"$f":"J106-J183","v":0},0,0,0,0,0,0,{"$f":"Q106-Q183","v":0},{"$f":"R106-R183","v":0},0]
[50,null,{"$f":"'FR-16(7)(v)-1 Functional'!C261","v":"SALES"},null,null,0,0,0,0,{"$f":"J107-J184","v":0},0,0,0,0,0,0,{"$f":"Q107-Q184","v":0},{"$f":"R107-R184","v":0},{"$f":"F261-R261","v":0}]
[51,null,{"$f":"'FR-16(7)(v)-1 Functional'!C262","v":"ADJUSTMENT"},null,null,{"$f":"F108-F185","v":12},12,0,0,{"$f":"J108-J185","v":0},0,0,0,0,0,0,0,12,{"$f":"F262-R262","v":0}]
[52,null,{"$f":"'FR-16(7)(v)-1 Functional'!C263","v":"  NET GENERAL & INTANG PLANT"},null,null,{"$f":"SUM(F253:F262)","v":-1423},-1308,-46,0,{"$f":"SUM(J253:J262)","v":0},0,-34,-22,-1,-11,-1,0,-1423,0]
[53]
[54,"COMMON & OTHER PLANT"]
[55,null,{"$f":"'FR-16(7)(v)-1 Functional'!C266","v":"PRODUCTION - DEMAND"},null,null,{"$f":"F112-F189","v":0},0,0,0,{"$f":"J112-J189","v":0},0,0,0,0,0,0,0,0,{"$f":"F266-R266","v":0}]
[56,null,{"$f":"'FR-16(7)(v)-1 Functional'!C267","v":"PRODUCTION - ENERGY"},null,null,{"$f":"F113-F190","v":0},0,0,0,{"$f":"J113-J190","v":0},0,0,0,0,0,0,0,0,{"$f":"F267-R267","v":0}]
[57,null,{"$f":"'FR-16(7)(v)-1 Functional'!C268","v":"TRANSMISSION"},null,null,{"$f":"F114-F191","v":0},0,0,0,{"$f":"J114-J191","v":0},0,0,0,0,0,0,0,0,0]
[58,null,{"$f":"'FR-16(7)(v)-1 Functional'!C269","v":"DISTRIBUTION - DEMAND"},null,null,{"$f":"F115-F192","v":0},0,0,0,0,0,0,0,0,0,0,0,0,0]
[59,null,{"$f":"'FR-16(7)(v)-1 Functional'!C270","v":"DISTRIBUTION - CUSTOMER"},null,null,{"$f":"F116-F193","v":0},0,0,0,0,0,0,0,0,0,0,0,0,{"$f":"F270-R270","v":0}]
[60,null,{"$f":"'FR-16(7)(v)-1 Functional'!C271","v":"CUSTOMER ACCOUNTING"},null,null,{"$f":"F117-F194","v":-276},-254,-9,0,{"$f":"J117-J194","v":0},0,-7,-4,0,-2,0,0,-276,0]
[61,null,{"$f":"'FR-16(7)(v)-1 Functional'!C272","v":"CUSTOMER SERVICE & INFORMATION"},null,null,{"$f":"F118-F195","v":0},0,0,0,{"$f":"J118-J195","v":0},0,{"$f":"L118-L195","v":0},0,0,0,0,{"$f":"Q118-Q195","v":0},{"$f":"R118-R195","v":0},0]
[62,null,{"$f":"'FR-16(7)(v)-1 Functional'!C273","v":"SALES"},null,null,0,0,0,0,{"$f":"J119-J196","v":0},0,0,0,0,0,0,{"$f":"Q119-Q196","v":0},{"$f":"R119-R196","v":0},{"$f":"F273-R273","v":0}]
[63,null,{"$f":"'FR-16(7)(v)-1 Functional'!C274","v":"ADJUSTMENT"},null,null,{"$f":"F120-F197","v":1},1,0,0,{"$f":"J120-J197","v":0},0,0,0,0,0,0,0,1,{"$f":"F274-R274","v":0}]
[64,null,"  COMMON & OTHER PLANT IN SERVICE",null,null,{"$f":"SUM(F265:F274)","v":-275},-253,-9,0,{"$f":"SUM(J265:J274)","v":0},0,-7,-4,0,-2,0,0,-275,0]
[65]
[66,null,{"$f":"'FR-16(7)(v)-1 Functional'!C277","v":"NET ELECTRIC PLANT IN SERVICE"},null,null,{"$f":"F275+F263+F248+F222+F216","v":3279},{"$f":"G275+G263+G248+G222+G216","v":2463},{"$f":"H275+H263+H248+H222+H216","v":855},{"$f":"I275+I263+I248+I222+I216","v":0},{"$f":"J275+J263+J248+J222+J216","v":6},1,-8,-26,0,-12,-1,{"$f":"Q275+Q263+Q248+Q222+Q216","v":1},{"$f":"R275+R263+R248+R222+R216","v":3279},{"$f":"S275+S263+S248+S222+S216","v":0}]
[]
[{"$f":"co_name","v":"DUKE ENERGY KENTUCKY, INC."},null,null,null,null,null,null,null,null,null,null,null,null,null,null,null,null,{"$f":"R1","v":"FR-16(7)(v)-9"}]
[{"$f":"$A$2","v":"TRANSMISSION CUSTOMER ALLOCATED - ELECTRIC COST OF SERVICE"},null,null,null,null,null,null,null,null,null,null,null,null,null,null,null,null,{"$f":"R2","v":"WITNESS RESPONSIBLE:"}]
[{"$f":"case_name","v":"CASE NO: 2019-00271"},null,null,null,null,null,null,null,null,null,null,null,null,null,null,null,null,{"$f":"Witness","v":"JAMES E. ZIOLKOWSKI"}]
[{"$f":"data_filing","v":"DATA: 12 MONTHS ACTUAL  & 0 MONTHS ESTIMATED"},null,null,null,null,null,null,null,null,null,null,null,null,null,null,null,null,{"$f":"\"PAGE \"&Pages-13&\" OF \"&Pages","v":"PAGE 5 OF 18"}]
[{"$f":"type","v":"TYPE OF FILING: \"X\" ORIGINAL   UPDATED    REVISED  "}]
[]
[null,null,null,null,null,{"$f":"F$7","v":"TOTAL"},null,{"$f":"H$7","v":"DS"},{"$f":"I$7","v":"GSFL"},{"$f":"J$7","v":"EH"},{"$f":"K$7","v":"SP"},"DT SEC","DT PRI","DP","TT",null,"OTHER"]
["LINE",null,null,null,null,{"$f":"F$8","v":"TRANSMISSION"},{"$f":"G$8","v":"RS"},{"$f":"H$8","v":"SECONDARY"},{"$f":"I$8","v":"SECONDARY"},{"$f":"J$8","v":"SECONDARY"},{"$f":"K$8","v":"SECONDARY"},"SECONDARY","PRIMARY","PRIMARY","TRANSMISSION","LT","WATER",{"$f":"R8","v":"TOTAL"},"ALL"]
["NO.","SUBTRACTIVE RATE BASE ADJUSTMENTS",null,"ALLO",null,{"$f":"F$9","v":"CUSTOMER"},{"$f":"G$9","v":"RESIDENTIAL"},{"$f":"H$9","v":"DISTRIBUTION"},{"$f":"I$9","v":"DISTRIBUTION"},{"$f":"J$9","v":"DISTRIBUTION"},{"$f":"K$9","v":"DISTRIBUTION"},"DISTRIBUTION","DISTRIBUTION","DISTRIBUTION","TIME OF DAY","LIGHTING","PUMPING",{"$f":"R9","v":"AT ISSUE"},"OTHER"]
[null,null,"Schedule 5",null,null,null,{"$f":"G$10","v":3},{"$f":"H$10","v":4},{"$f":"I$10","v":5},{"$f":"J$10","v":6},{"$f":"K$10","v":7},8,9,10,11,12,13,null," "]
[1,"RATE BASE ADJUSTMENTS"]
[2,"ACCUMULATED DEFERRED INCOME TAXES"]
[3," ACCUM DEF INC TAXES (282)"]
[4,null,{"$f":"'FR-16(7)(v)-1 Functional'!C292","v":"LIBERALIZED DEPRECIATION"},{"$f":"'FR-16(7)(v)-1 Functional'!D292","v":"NP29"}," ",{"$f":"'FR-16(7)(v)-6 TRANS Classified'!I292","v":194},{"$f":"F292-SUM(H292:Q292)","v":146},{"$f":"ROUND(F292*VLOOKUP(D292,ALLOCTABLE_Trans_Customer,$H$10,FALSE),0)","v":51},{"$f":"ROUND(F292*VLOOKUP(D292,ALLOCTABLE_Trans_Customer,$I$10,FALSE),0)","v":0},{"$f":"ROUND(F292*VLOOKUP(D292,ALLOCTABLE_Trans_Customer,$J$10,FALSE),0)","v":0},{"$f":"ROUND(F292*VLOOKUP(D292,ALLOCTABLE_Trans_Customer,$K$10,FALSE),0)","v":0},{"$f":"ROUND(F292*VLOOKUP(D292,ALLOCTABLE_Trans_Customer,$L$10,FALSE),0)","v":0},{"$f":"ROUND(F292*VLOOKUP(D292,ALLOCTABLE_Trans_Customer,$M$10,FALSE),0)","v":-2},{"$f":"ROUND(F292*VLOOKUP(D292,ALLOCTABLE_Trans_Customer,$N$10,FALSE),0)","v":0},{"$f":"ROUND(F292*VLOOKUP(D292,ALLOCTABLE_Trans_Customer,$O$10,FALSE),0)","v":-1},{"$f":"ROUND(F292*VLOOKUP(D292,ALLOCTABLE_Trans_Customer,$P$10,FALSE),0)","v":0},{"$f":"ROUND(F292*VLOOKUP(D292,ALLOCTABLE_Trans_Customer,$Q$10,FALSE),0)","v":0},{"$f":"SUM(G292:Q292)","v":194},{"$f":"F292-R292","v":0}]
[5,null,{"$f":"'FR-16(7)(v)-1 Functional'!C293","v":"LEASED METERS"},{"$f":"'FR-16(7)(v)-1 Functional'!D293","v":"NP29"}," ",{"$f":"'FR-16(7)(v)-6 TRANS Classified'!I293","v":4},3,1,0,0,0,0,0,0,0,0,0,4,0]
[6,null,{"$f":"'FR-16(7)(v)-1 Functional'!C294","v":"CONTRIB AID CONSTR"},{"$f":"'FR-16(7)(v)-1 Functional'!D294","v":"D249"}," ",{"$f":"'FR-16(7)(v)-6 TRANS Classified'!I294","v":0},0,0,0,0,0,0,0,0,0,0,0,0,0]
[7,null,{"$f":"'FR-16(7)(v)-1 Functional'!C295","v":"TAX INTEREST, EXPENSING, DEPR."},{"$f":"'FR-16(7)(v)-1 Functional'!D295","v":"NP29"}," ",{"$f":"'FR-16(7)(v)-6 TRANS Classified'!I295","v":194},146,51,0,0,0,0,-2,0,-1,0,0,194,0]
[8,null,{"$f":"'FR-16(7)(v)-1 Functional'!C296","v":"AFUDC IN DEBT"},{"$f":"'FR-16(7)(v)-1 Functional'!D296","v":"NP29"}," ",{"$f":"'FR-16(7)(v)-6 TRANS Classified'!I296","v":0},0,0,0,0,0,0,0,0,0,0,0,0,0]
[9,null,{"$f":"'FR-16(7)(v)-1 Functional'!C297","v":"CASUALTY LOSS"},{"$f":"'FR-16(7)(v)-1 Functional'!D297","v":"K411"}," ",{"$f":"'FR-16(7)(v)-6 TRANS Classified'!I297","v":-2569},-2340,-111,-1,-1,0,-58,-37,-2,-17,-2,0,-2569,0]
[10,null,{"$f":"'FR-16(7)(v)-1 Functional'!C298","v":"NON-CASH OVERHEADS"},{"$f":"'FR-16(7)(v)-1 Functional'!D298","v":"G229"}," ",{"$f":"'FR-16(7)(v)-6 TRANS Classified'!I298","v":0},0,0,0,0,0,0,0,0,0,0,0,0,0]
[11,null,{"$f":"'FR-16(7)(v)-1 Functional'!C299","v":"PLANT FAS 109"},{"$f":"'FR-16(7)(v)-1 Functional'!D299","v":"NP29"}," ",{"$f":"'FR-16(7)(v)-6 TRANS Classified'!I299","v":0},0,0,0,0,0,0,0,0,0,0,0,0,0]
[12,null,{"$f":"'FR-16(7)(v)-1 Functional'!C300","v":"MISCELLANEOUS"},{"$f":"'FR-16(7)(v)-1 Functional'!D300","v":"NP29"},null,{"$f":"'FR-16(7)(v)-6 TRANS Classified'!I300","v":183},137,48,0,0,0,0,-1,0,-1,0,0,183,0]
[13,null,{"$f":"'FR-16(7)(v)-1 Functional'!C301","v":"  TOTAL ACCOUNT 282"},null,null,{"$f":"SUM(F292:F300)","v":-1994},{"$f":"SUM(G292:G300)","v":-1908},{"$f":"SUM(H292:H300)","v":40},{"$f":"SUM(I292:I300)","v":-1},{"$f":"SUM(J292:J300)","v":-1},0,-58,-42,-2,-20,-2,{"$f":"SUM(Q292:Q300)","v":0},{"$f":"SUM(R292:R300)","v":-1994},{"$f":"SUM(S292:S300)","v":0}]
[14]
[15," ACCUM DEF INC TAXES (283)"]
[16,null,{"$f":"'FR-16(7)(v)-1 Functional'!C304","v":"TRANSITION FROM MISO TO PJM"},{"$f":"'FR-16(7)(v)-1 Functional'!D304","v":"NP29"},null,{"$f":"'FR-16(7)(v)-6 TRANS Classified'!I304","v":-10},{"$f":"F304-SUM(H304:Q304)","v":-7},{"$f":"ROUND(F304*VLOOKUP(D304,ALLOCTABLE_Trans_Customer,$H$10,FALSE),0)","v":-3},{"$f":"ROUND(F304*VLOOKUP(D304,ALLOCTABLE_Trans_Customer,$I$10,FALSE),0)","v":0},{"$f":"ROUND(F304*VLOOKUP(D304,ALLOCTABLE_Trans_Customer,$J$10,FALSE),0)","v":0},{"$f":"ROUND(F304*VLOOKUP(D304,ALLOCTABLE_Trans_Customer,$K$10,FALSE),0)","v":0},{"$f":"ROUND(F304*VLOOKUP(D304,ALLOCTABLE_Trans_Customer,$L$10,FALSE),0)","v":0},{"$f":"ROUND(F304*VLOOKUP(D304,ALLOCTABLE_Trans_Customer,$M$10,FALSE),0)","v":0},{"$f":"ROUND(F304*VLOOKUP(D304,ALLOCTABLE_Trans_Customer,$N$10,FALSE),0)","v":0},{"$f":"ROUND(F304*VLOOKUP(D304,ALLOCTABLE_Trans_Customer,$O$10,FALSE),0)","v":0},{"$f":"ROUND(F304*VLOOKUP(D304,ALLOCTABLE_Trans_Customer,$P$10,FALSE),0)","v":0},{"$f":"ROUND(F304*VLOOKUP(D304,ALLOCTABLE_Trans_Customer,$Q$10,FALSE),0)","v":0},{"$f":"SUM(G304:Q304)","v":-10},{"$f":"F304-R304","v":0}]
[17,null,{"$f":"'FR-16(7)(v)-1 Functional'!C305","v":"DEFERRED PLANT COSTS"},{"$f":"'FR-16(7)(v)-1 Functional'!D305","v":"NP29"},null,{"$f":"'FR-16(7)(v)-6 TRANS Classified'!I305","v":2},1,1,0,0,0,0,0,0,0,0,0,2,0]
[18,null,{"$f":"'FR-16(7)(v)-1 Functional'!C306","v":"MISCELLANEOUS"},{"$f":"'FR-16(7)(v)-1 Functional'!D306","v":"OM39"},null,{"$f":"'FR-16(7)(v)-6 TRANS Classified'!I306","v":-94},-87,-1,0,0,0,-3,-2,0,-1,0,0,-94,0]
[19,null,{"$f":"'FR-16(7)(v)-1 Functional'!C307","v":"ENVIRONMENTAL RESERVE"},{"$f":"'FR-16(7)(v)-1 Functional'!D307","v":"NP29"},null,{"$f":"'FR-16(7)(v)-6 TRANS Classified'!I307","v":0},0,0,0,0,0,0,0,0,0,0,0,0,0]
[20,null,{"$f":"'FR-16(7)(v)-1 Functional'!C308","v":"POST IN-SERVICE CARRYING COSTS"},{"$f":"'FR-16(7)(v)-1 Functional'!D308","v":"NP29"},null,{"$f":"'FR-16(7)(v)-6 TRANS Classified'!I308","v":0},0,0,0,0,0,0,0,0,0,0,0,0,0]
[21,null,{"$f":"'FR-16(7)(v)-1 Functional'!C309","v":"ARO CUMULATIVE EFFECT"},{"$f":"'FR-16(7)(v)-1 Functional'!D309","v":"NP29"},null,{"$f":"'FR-16(7)(v)-6 TRANS Classified'!I309","v":0},0,0,0,0,0,0,0,0,0,0,0,0,0]
[22,null,{"$f":"'FR-16(7)(v)-1 Functional'!C310","v":"LOSS ON REACQUIRED DEBT"},{"$f":"'FR-16(7)(v)-1 Functional'!D310","v":"D249"},null,{"$f":"'FR-16(7)(v)-6 TRANS Classified'!I310","v":0},0,0,0,0,0,0,0,0,0,0,0,0,0]
[23,null,{"$f":"'FR-16(7)(v)-1 Functional'!C311","v":"VACATION PAY ACCRUAL"},{"$f":"'FR-16(7)(v)-1 Functional'!D311","v":"A315"},null,{"$f":"'FR-16(7)(v)-6 TRANS Classified'!I311","v":0},0,0,0,0,0,0,0,0,0,0,0,0,0]
[24,null,{"$f":"'FR-16(7)(v)-1 Functional'!C312","v":"NON-AMI METERS RETIRED EARLY"},{"$f":"'FR-16(7)(v)-1 Functional'!D312","v":"OM39"},null,{"$f":"'FR-16(7)(v)-6 TRANS Classified'!I312","v":-11},-11,0,0,0,0,0,0,0,0,0,0,{"$f":"SUM(G312:Q312)","v":-11},{"$f":"F312-R312","v":0}]
[25,null,{"$f":"'FR-16(7)(v)-1 Functional'!C313","v":"PENSION EXPENSE"},{"$f":"'FR-16(7)(v)-1 Functional'!D313","v":"A315"},null,{"$f":"'FR-16(7)(v)-6 TRANS Classified'!I313","v":-243},-225,-6,0,0,0,-6,-4,0,-2,0,0,{"$f":"SUM(G313:Q313)","v":-243},{"$f":"F313-R313","v":0}]
[26,null,{"$f":"'FR-16(7)(v)-1 Functional'!C314","v":"UNCOLLECTIBLE ACCOUNTS"},{"$f":"'FR-16(7)(v)-1 Functional'!D314","v":"K411"},null,{"$f":"'FR-16(7)(v)-6 TRANS Classified'!I314","v":0},0,0,0,0,0,0,0,0,0,0,0,0,0]
[27,null,{"$f":"'FR-16(7)(v)-1 Functional'!C315","v":"  TOTAL ACCOUNT 283"},null,null,{"$f":"SUM(F303:F314)","v":-356},{"$f":"SUM(G303:G314)","v":-329},{"$f":"SUM(H303:H314)","v":-9},{"$f":"SUM(I303:I314)","v":0},{"$f":"SUM(J303:J314)","v":0},0,-9,-6,0,-3,0,{"$f":"SUM(Q303:Q314)","v":0},{"$f":"SUM(R303:R314)","v":-356},{"$f":"SUM(S303:S314)","v":0}]
[28]
[29," OTHER ACCUMULATED DEFERRED INCOME TAXES"]
[30,null,{"$f":"'FR-16(7)(v)-1 Functional'!C318","v":"EXCESS ADIT"},{"$f":"'FR-16(7)(v)-1 Functional'!D318","v":"NP29"},null,{"$f":"'FR-16(7)(v)-6 TRANS Classified'!I318","v":180},{"$f":"F318-SUM(H318:Q318)","v":135},{"$f":"ROUND(F318*VLOOKUP(D318,ALLOCTABLE_Trans_Customer,$H$10,FALSE),0)","v":47},{"$f":"ROUND(F318*VLOOKUP(D318,ALLOCTABLE_Trans_Customer,$I$10,FALSE),0)","v":0},{"$f":"ROUND(F318*VLOOKUP(D318,ALLOCTABLE_Trans_Customer,$J$10,FALSE),0)","v":0},{"$f":"ROUND(F318*VLOOKUP(D318,ALLOCTABLE_Trans_Customer,$K$10,FALSE),0)","v":0},{"$f":"ROUND(F318*VLOOKUP(D318,ALLOCTABLE_Trans_Customer,$L$10,FALSE),0)","v":0},{"$f":"ROUND(F318*VLOOKUP(D318,ALLOCTABLE_Trans_Customer,$M$10,FALSE),0)","v":-1},{"$f":"ROUND(F318*VLOOKUP(D318,ALLOCTABLE_Trans_Customer,$N$10,FALSE),0)","v":0},{"$f":"ROUND(F318*VLOOKUP(D318,ALLOCTABLE_Trans_Customer,$O$10,FALSE),0)","v":-1},{"$f":"ROUND(F318*VLOOKUP(D318,ALLOCTABLE_Trans_Customer,$P$10,FALSE),0)","v":0},{"$f":"ROUND(F318*VLOOKUP(D318,ALLOCTABLE_Trans_Customer,$Q$10,FALSE),0)","v":0},{"$f":"SUM(G318:Q318)","v":180},{"$f":"F318-R318","v":0}]
[31,null,{"$f":"'FR-16(7)(v)-1 Functional'!C319","v":"CUSTOMER SERVICE DEPOSITS"},{"$f":"'FR-16(7)(v)-1 Functional'!D319","v":"NP29"},null,{"$f":"'FR-16(7)(v)-6 TRANS Classified'!I319","v":0},{"$f":"F319-SUM(H319:Q319)","v":0},{"$f":"ROUND(F319*VLOOKUP(D319,ALLOCTABLE_Trans_Customer,$H$10,FALSE),0)","v":0},{"$f":"ROUND(F319*VLOOKUP(D319,ALLOCTABLE_Trans_Customer,$I$10,FALSE),0)","v":0},{"$f":"ROUND(F319*VLOOKUP(D319,ALLOCTABLE_Trans_Customer,$J$10,FALSE),0)","v":0},{"$f":"ROUND(F319*VLOOKUP(D319,ALLOCTABLE_Trans_Customer,$K$10,FALSE),0)","v":0},{"$f":"ROUND(F319*VLOOKUP(D319,ALLOCTABLE_Trans_Customer,$L$10,FALSE),0)","v":0},{"$f":"ROUND(F319*VLOOKUP(D319,ALLOCTABLE_Trans_Customer,$M$10,FALSE),0)","v":0},{"$f":"ROUND(F319*VLOOKUP(D319,ALLOCTABLE_Trans_Customer,$N$10,FALSE),0)","v":0},{"$f":"ROUND(F319*VLOOKUP(D319,ALLOCTABLE_Trans_Customer,$O$10,FALSE),0)","v":0},{"$f":"ROUND(F319*VLOOKUP(D319,ALLOCTABLE_Trans_Customer,$P$10,FALSE),0)","v":0},{"$f":"ROUND(F319*VLOOKUP(D319,ALLOCTABLE_Trans_Customer,$Q$10,FALSE),0)","v":0},{"$f":"SUM(G319:Q319)","v":0},{"$f":"F319-R319","v":0}]
[32,null,{"$f":"'FR-16(7)(v)-1 Functional'!C320","v":"POST RETIREMENT BENEFITS"},{"$f":"'FR-16(7)(v)-1 Functional'!D320","v":"NP29"},null,{"$f":"'FR-16(7)(v)-6 TRANS Classified'!I320","v":0},{"$f":"F320-SUM(H320:Q320)","v":0},{"$f":"ROUND(F320*VLOOKUP(D320,ALLOCTABLE_Trans_Customer,$H$10,FALSE),0)","v":0},{"$f":"ROUND(F320*VLOOKUP(D320,ALLOCTABLE_Trans_Customer,$I$10,FALSE),0)","v":0},{"$f":"ROUND(F320*VLOOKUP(D320,ALLOCTABLE_Trans_Customer,$J$10,FALSE),0)","v":0},{"$f":"ROUND(F320*VLOOKUP(D320,ALLOCTABLE_Trans_Customer,$K$10,FALSE),0)","v":0},{"$f":"ROUND(F320*VLOOKUP(D320,ALLOCTABLE_Trans_Customer,$L$10,FALSE),0)","v":0},{"$f":"ROUND(F320*VLOOKUP(D320,ALLOCTABLE_Trans_Customer,$M$10,FALSE),0)","v":0},{"$f":"ROUND(F320*VLOOKUP(D320,ALLOCTABLE_Trans_Customer,$N$10,FALSE),0)","v":0},{"$f":"ROUND(F320*VLOOKUP(D320,ALLOCTABLE_Trans_Customer,$O$10,FALSE),0)","v":0},{"$f":"ROUND(F320*VLOOKUP(D320,ALLOCTABLE_Trans_Customer,$P$10,FALSE),0)","v":0},{"$f":"ROUND(F320*VLOOKUP(D320,ALLOCTABLE_Trans_Customer,$Q$10,FALSE),0)","v":0},{"$f":"SUM(G320:Q320)","v":0},{"$f":"F320-R320","v":0}]
[33,null,{"$f":"'FR-16(7)(v)-1 Functional'!C321","v":"INVESTMENT TAX CREDIT"},{"$f":"'FR-16(7)(v)-1 Functional'!D321","v":"NP29"},null,{"$f":"'FR-16(7)(v)-6 TRANS Classified'!I321","v":0},{"$f":"F321-SUM(H321:Q321)","v":0},{"$f":"ROUND(F321*VLOOKUP(D321,ALLOCTABLE_Trans_Customer,$H$10,FALSE),0)","v":0},{"$f":"ROUND(F321*VLOOKUP(D321,ALLOCTABLE_Trans_Customer,$I$10,FALSE),0)","v":0},{"$f":"ROUND(F321*VLOOKUP(D321,ALLOCTABLE_Trans_Customer,$J$10,FALSE),0)","v":0},{"$f":"ROUND(F321*VLOOKUP(D321,ALLOCTABLE_Trans_Customer,$K$10,FALSE),0)","v":0},{"$f":"ROUND(F321*VLOOKUP(D321,ALLOCTABLE_Trans_Customer,$L$10,FALSE),0)","v":0},{"$f":"ROUND(F321*VLOOKUP(D321,ALLOCTABLE_Trans_Customer,$M$10,FALSE),0)","v":0},{"$f":"ROUND(F321*VLOOKUP(D321,ALLOCTABLE_Trans_Customer,$N$10,FALSE),0)","v":0},{"$f":"ROUND(F321*VLOOKUP(D321,ALLOCTABLE_Trans_Customer,$O$10,FALSE),0)","v":0},{"$f":"ROUND(F321*VLOOKUP(D321,ALLOCTABLE_Trans_Customer,$P$10,FALSE),0)","v":0},{"$f":"ROUND(F321*VLOOKUP(D321,ALLOCTABLE_Trans_Customer,$Q$10,FALSE),0)","v":0},{"$f":"SUM(G321:Q321)","v":0},{"$f":"F321-R321","v":0}]
[34,null,{"$f":"'FR-16(7)(v)-1 Functional'!C322","v":"  TOTAL OTHER SUBTRACTIVE ADJUSTMENTS"},null,null,{"$f":"SUM(F317:F321)","v":180},{"$f":"SUM(G317:G321)","v":135},{"$f":"SUM(H317:H321)","v":47},{"$f":"SUM(I317:I321)","v":0},{"$f":"SUM(J317:J321)","v":0},0,0,-1,0,-1,0,{"$f":"SUM(Q317:Q321)","v":0},{"$f":"SUM(R317:R321)","v":180},{"$f":"SUM(S317:S321)","v":0}]
[35]
[36,{"$f":"'FR-16(7)(v)-1 Functional'!B324","v":"TOTAL SUBTRACTIVE RATE BASE ADJUSTMENTS"},null,null,null,{"$f":"F322+F315+F301","v":-2170},{"$f":"G322+G315+G301","v":-2102},{"$f":"H322+H315+H301","v":78},{"$f":"I322+I315+I301","v":-1},{"$f":"J322+J315+J301","v":-1},0,-67,-49,-2,-24,-2,{"$f":"Q322+Q315+Q301","v":0},{"$f":"R322+R315+R301","v":-2170},{"$f":"S322+S315+S301","v":0}]
[]
[{"$f":"co_name","v":"DUKE ENERGY KENTUCKY, INC."},null,null,null,null,null,null,null,null,null,null,null,null,null,null,null,null,{"$f":"R1","v":"FR-16(7)(v)-9"}]
[{"$f":"$A$2","v":"TRANSMISSION CUSTOMER ALLOCATED - ELECTRIC COST OF SERVICE"},null,null,null,null,null,null,null,null,null,null,null,null,null,null,null,null,{"$f":"R2","v":"WITNESS RESPONSIBLE:"}]
[{"$f":"case_name","v":"CASE NO: 2019-00271"},null,null,null,null,null,null,null,null,null,null,null,null,null,null,null,null,{"$f":"Witness","v":"JAMES E. ZIOLKOWSKI"}]
[{"$f":"data_filing","v":"DATA: 12 MONTHS ACTUAL  & 0 MONTHS ESTIMATED"},null,null,null,null,null,null,null,null,null,null,null,null,null,null,null,null,{"$f":"\"PAGE \"&Pages-12&\" OF \"&Pages","v":"PAGE 6 OF 18"}]
[{"$f":"type","v":"TYPE OF FILING: \"X\" ORIGINAL   UPDATED    REVISED  "}]
[]
[null,null,null,null,null,{"$f":"F$7","v":"TOTAL"},null,{"$f":"H$7","v":"DS"},{"$f":"I$7","v":"GSFL"},{"$f":"J$7","v":"EH"},{"$f":"K$7","v":"SP"},"DT SEC","DT PRI","DP","TT",null,"OTHER"]
["LINE",null,null,null,null,{"$f":"F$8","v":"TRANSMISSION"},{"$f":"G$8","v":"RS"},{"$f":"H$8","v":"SECONDARY"},{"$f":"I$8","v":"SECONDARY"},{"$f":"J$8","v":"SECONDARY"},{"$f":"K$8","v":"SECONDARY"},"SECONDARY","PRIMARY","PRIMARY","TRANSMISSION","LT","WATER",{"$f":"R8","v":"TOTAL"},"ALL"]
["NO.","ADDITIVE RATE BASE ADJUSTMENTS",null,"ALLO",null,{"$f":"F$9","v":"CUSTOMER"},{"$f":"G$9","v":"RESIDENTIAL"},{"$f":"H$9","v":"DISTRIBUTION"},{"$f":"I$9","v":"DISTRIBUTION"},{"$f":"J$9","v":"DISTRIBUTION"},{"$f":"K$9","v":"DISTRIBUTION"},"DISTRIBUTION","DISTRIBUTION","DISTRIBUTION","TIME OF DAY","LIGHTING","PUMPING",{"$f":"R9","v":"AT ISSUE"},"OTHER"]
[null,null,"Schedule 5.1",null,null,null,{"$f":"G$10","v":3},{"$f":"H$10","v":4},{"$f":"I$10","v":5},{"$f":"J$10","v":6},{"$f":"K$10","v":7},8,9,10,11,12,13,null," "]
[1,"OTHER ACCUMULATED DEFERRED INCOME TAXES"]
[2," ACCUM DEF INC TAXES (190)"]
[3,null,{"$f":"'FR-16(7)(v)-1 Functional'!C338","v":"UNCOLLECTIBLE ACCTS"},{"$f":"'FR-16(7)(v)-1 Functional'!D338","v":"K411"},null,{"$f":"'FR-16(7)(v)-6 TRANS Classified'!I338","v":473},{"$f":"F338-SUM(H338:Q338)","v":432},{"$f":"ROUND(F338*VLOOKUP(D338,ALLOCTABLE_Trans_Customer,$H$10,FALSE),0)","v":20},{"$f":"ROUND(F338*VLOOKUP(D338,ALLOCTABLE_Trans_Customer,$I$10,FALSE),0)","v":0},{"$f":"ROUND(F338*VLOOKUP(D338,ALLOCTABLE_Trans_Customer,$J$10,FALSE),0)","v":0},{"$f":"ROUND(F338*VLOOKUP(D338,ALLOCTABLE_Trans_Customer,$K$10,FALSE),0)","v":0},{"$f":"ROUND(F338*VLOOKUP(D338,ALLOCTABLE_Trans_Customer,$L$10,FALSE),0)","v":11},{"$f":"ROUND(F338*VLOOKUP(D338,ALLOCTABLE_Trans_Customer,$M$10,FALSE),0)","v":7},{"$f":"ROUND(F338*VLOOKUP(D338,ALLOCTABLE_Trans_Customer,$N$10,FALSE),0)","v":0},{"$f":"ROUND(F338*VLOOKUP(D338,ALLOCTABLE_Trans_Customer,$O$10,FALSE),0)","v":3},{"$f":"ROUND(F338*VLOOKUP(D338,ALLOCTABLE_Trans_Customer,$P$10,FALSE),0)","v":0},{"$f":"ROUND(F338*VLOOKUP(D338,ALLOCTABLE_Trans_Customer,$Q$10,FALSE),0)","v":0},{"$f":"SUM(G338:Q338)","v":473},{"$f":"F338-R338","v":0}]
[4,null,{"$f":"'FR-16(7)(v)-1 Functional'!C339","v":"CASH FLOW HEDGE"},{"$f":"'FR-16(7)(v)-1 Functional'!D339","v":"A315"},null,{"$f":"'FR-16(7)(v)-6 TRANS Classified'!I339","v":-10},-10,0,0,0,0,0,0,0,0,0,0,-10,0]
[5,null,{"$f":"'FR-16(7)(v)-1 Functional'!C340","v":"RESERVED FOR FUTURE USE"},{"$f":"'FR-16(7)(v)-1 Functional'!D340","v":"NP29"},null,{"$f":"'FR-16(7)(v)-6 TRANS Classified'!I340","v":0},0,0,0,0,0,0,0,0,0,0,0,0,0]
[6,null,{"$f":"'FR-16(7)(v)-1 Functional'!C341","v":"RESERVED FOR FUTURE USE"},{"$f":"'FR-16(7)(v)-1 Functional'!D341","v":"NP29"},null,{"$f":"'FR-16(7)(v)-6 TRANS Classified'!I341","v":0},0,0,0,0,0,0,0,0,0,0,0,0,0]
[7,null,{"$f":"'FR-16(7)(v)-1 Functional'!C342","v":"ELECTRIC METERS"},{"$f":"'FR-16(7)(v)-1 Functional'!D342","v":"K407"},null,{"$f":"'FR-16(7)(v)-6 TRANS Classified'!I342","v":0},0,0,0,0,0,0,0,0,0,0,0,0,0]
[8,null,{"$f":"'FR-16(7)(v)-1 Functional'!C343","v":"UNAMORTIZED DEBT PREMIUM"},{"$f":"'FR-16(7)(v)-1 Functional'!D343","v":"D249"},null,{"$f":"'FR-16(7)(v)-6 TRANS Classified'!I343","v":0},0,0,0,0,0,0,0,0,0,0,0,0,0]
[9,null,{"$f":"'FR-16(7)(v)-1 Functional'!C344","v":"ARO CUMULATIVE EFFECT"},{"$f":"'FR-16(7)(v)-1 Functional'!D344","v":"NP29"},null,{"$f":"'FR-16(7)(v)-6 TRANS Classified'!I344","v":0},0,0,0,0,0,0,0,0,0,0,0,0,0]
[10,null,{"$f":"'FR-16(7)(v)-1 Functional'!C345","v":"RETIREMENT PLAN"},{"$f":"'FR-16(7)(v)-1 Functional'!D345","v":"A315"},null,{"$f":"'FR-16(7)(v)-6 TRANS Classified'!I345","v":-100},-92,-2,0,0,0,-3,-2,0,-1,0,0,-100,0]
[11,null,{"$f":"'FR-16(7)(v)-1 Functional'!C346","v":"POST RETIREMENT BENEFITS "},{"$f":"'FR-16(7)(v)-1 Functional'!D346","v":"A315"},null,{"$f":"'FR-16(7)(v)-6 TRANS Classified'!I346","v":0},0,0,0,0,0,0,0,0,0,0,0,0,0]
[12,null,{"$f":"'FR-16(7)(v)-1 Functional'!C347","v":"POST RETIREMENT BENEFITS - HEALTH CARE"},{"$f":"'FR-16(7)(v)-1 Functional'!D347","v":"A315"},null,{"$f":"'FR-16(7)(v)-6 TRANS Classified'!I347","v":0},0,0,0,0,0,0,0,0,0,0,0,0,0]
[13,null,{"$f":"'FR-16(7)(v)-1 Functional'!C348","v":"POST EMPLOYMENT BENEFITS - SFAS 112"},{"$f":"'FR-16(7)(v)-1 Functional'!D348","v":"A315"},null,{"$f":"'FR-16(7)(v)-6 TRANS Classified'!I348","v":0},0,0,0,0,0,0,0,0,0,0,0,0,0]
[14,null,{"$f":"'FR-16(7)(v)-1 Functional'!C349","v":"SUPPLEMENTAL PENSION PLAN"},{"$f":"'FR-16(7)(v)-1 Functional'!D349","v":"A315"},null,{"$f":"'FR-16(7)(v)-6 TRANS Classified'!I349","v":0},0,0,0,0,0,0,0,0,0,0,0,0,0]
[15,null,{"$f":"'FR-16(7)(v)-1 Functional'!C350","v":"INCENTIVE PLAN"},{"$f":"'FR-16(7)(v)-1 Functional'!D350","v":"A315"},null,{"$f":"'FR-16(7)(v)-6 TRANS Classified'!I350","v":0},0,0,0,0,0,0,0,0,0,0,0,0,0]
[16,null,{"$f":"'FR-16(7)(v)-1 Functional'!C351","v":"FEDERAL DEFERRED TAX RECEIVEABLE"},{"$f":"'FR-16(7)(v)-1 Functional'!D351","v":"A315"},null,{"$f":"'FR-16(7)(v)-6 TRANS Classified'!I351","v":0},0,0,0,0,0,0,0,0,0,0,0,0,0]
[17,null,{"$f":"'FR-16(7)(v)-1 Functional'!C352","v":"MISCELLANEOUS"},{"$f":"'FR-16(7)(v)-1 Functional'!D352","v":"A315"},null,{"$f":"'FR-16(7)(v)-6 TRANS Classified'!I352","v":-322},-299,-7,0,0,0,-8,-5,0,-3,0,0,-322,0]
[18,null,{"$f":"'FR-16(7)(v)-1 Functional'!C353","v":"DEFERRED TAX"},{"$f":"'FR-16(7)(v)-1 Functional'!D353","v":"A315"},null,{"$f":"'FR-16(7)(v)-6 TRANS Classified'!I353","v":-147},-137,-3,0,0,0,-4,-2,0,-1,0,0,-147,0]
[19,null,{"$f":"'FR-16(7)(v)-1 Functional'!C354","v":"NET OPERATING LOSS"},{"$f":"'FR-16(7)(v)-1 Functional'!D354","v":"NP29"},null,{"$f":"'FR-16(7)(v)-6 TRANS Classified'!I354","v":0},0,0,0,0,0,0,0,0,0,0,0,0,0]
[20,null,{"$f":"'FR-16(7)(v)-1 Functional'!C355","v":"401K INCENTIVE PLAN"},{"$f":"'FR-16(7)(v)-1 Functional'!D355","v":"A315"},null,{"$f":"'FR-16(7)(v)-6 TRANS Classified'!I355","v":0},0,0,0,0,0,0,0,0,0,0,0,0,0]
[21,null,{"$f":"'FR-16(7)(v)-1 Functional'!C356","v":"ENVIRONMENTAL RESERVE"},{"$f":"'FR-16(7)(v)-1 Functional'!D356","v":"NP29"},null,{"$f":"'FR-16(7)(v)-6 TRANS Classified'!I356","v":0},0,0,0,0,0,0,0,0,0,0,0,0,0]
[22,null,{"$f":"'FR-16(7)(v)-1 Functional'!C357","v":"VACATION PAY ACCRUALS"},{"$f":"'FR-16(7)(v)-1 Functional'!D357","v":"A315"},null,{"$f":"'FR-16(7)(v)-6 TRANS Classified'!I357","v":-16},-16,0,0,0,0,0,0,0,0,0,0,-16,0]
[23,null,{"$f":"'FR-16(7)(v)-1 Functional'!C358","v":"DEMAND SIDE MANAGEMENT DEFERRAL"},{"$f":"'FR-16(7)(v)-1 Functional'!D358","v":"NP29"},null,{"$f":"'FR-16(7)(v)-6 TRANS Classified'!I358","v":2},1,1,0,0,0,0,0,0,0,0,0,2,0]
[24,null,{"$f":"'FR-16(7)(v)-1 Functional'!C359","v":"OPERATING LEASE OBLIGATION"},{"$f":"'FR-16(7)(v)-1 Functional'!D359","v":"NP29"},null,{"$f":"'FR-16(7)(v)-6 TRANS Classified'!I359","v":7},5,2,0,0,0,0,0,0,0,0,0,7,0]
[25,null,{"$f":"'FR-16(7)(v)-1 Functional'!C360","v":"INJURIES & DAMAGES"},{"$f":"'FR-16(7)(v)-1 Functional'!D360","v":"NP29"},null,{"$f":"'FR-16(7)(v)-6 TRANS Classified'!I360","v":0},0,0,0,0,0,0,0,0,0,0,0,0,0]
[26,null,{"$f":"'FR-16(7)(v)-1 Functional'!C361","v":"  TOTAL ACCOUNT 190"},null,null,{"$f":"SUM(F337:F360)","v":-113},{"$f":"SUM(G337:G360)","v":-116},{"$f":"SUM(H337:H360)","v":11},{"$f":"SUM(I337:I360)","v":0},{"$f":"SUM(J337:J360)","v":0},0,-4,-2,0,-2,0,{"$f":"SUM(Q337:Q360)","v":0},{"$f":"SUM(R337:R360)","v":-113},{"$f":"SUM(S337:S360)","v":0}]
[27]
[28," OTHER"]
[29,null,{"$f":"'FR-16(7)(v)-1 Functional'!C364","v":"RESERVED FOR FUTURE USE"},{"$f":"'FR-16(7)(v)-1 Functional'!D364","v":"NP29"},null,{"$f":"'FR-16(7)(v)-6 TRANS Classified'!I364","v":0},{"$f":"F364-SUM(H364:Q364)","v":0},{"$f":"ROUND(F364*VLOOKUP(D364,ALLOCTABLE_Trans_Customer,$H$10,FALSE),0)","v":0},{"$f":"ROUND(F364*VLOOKUP(D364,ALLOCTABLE_Trans_Customer,$I$10,FALSE),0)","v":0},{"$f":"ROUND(F364*VLOOKUP(D364,ALLOCTABLE_Trans_Customer,$J$10,FALSE),0)","v":0},{"$f":"ROUND(F364*VLOOKUP(D364,ALLOCTABLE_Trans_Customer,$K$10,FALSE),0)","v":0},{"$f":"ROUND(F364*VLOOKUP(D364,ALLOCTABLE_Trans_Customer,$L$10,FALSE),0)","v":0},{"$f":"ROUND(F364*VLOOKUP(D364,ALLOCTABLE_Trans_Customer,$M$10,FALSE),0)","v":0},{"$f":"ROUND(F364*VLOOKUP(D364,ALLOCTABLE_Trans_Customer,$N$10,FALSE),0)","v":0},{"$f":"ROUND(F364*VLOOKUP(D364,ALLOCTABLE_Trans_Customer,$O$10,FALSE),0)","v":0},{"$f":"ROUND(F364*VLOOKUP(D364,ALLOCTABLE_Trans_Customer,$P$10,FALSE),0)","v":0},{"$f":"ROUND(F364*VLOOKUP(D364,ALLOCTABLE_Trans_Customer,$Q$10,FALSE),0)","v":0},{"$f":"SUM(G364:Q364)","v":0},{"$f":"F364-R364","v":0}]
[30,null,{"$f":"'FR-16(7)(v)-1 Functional'!C365","v":"RATE CASE EXPENSE REGULATORY ASSET"},{"$f":"'FR-16(7)(v)-1 Functional'!D365","v":"NP29"},null,{"$f":"'FR-16(7)(v)-6 TRANS Classified'!I365","v":3},{"$f":"F365-SUM(H365:Q365)","v":2},{"$f":"ROUND(F365*VLOOKUP(D365,ALLOCTABLE_Trans_Customer,$H$10,FALSE),0)","v":1},{"$f":"ROUND(F365*VLOOKUP(D365,ALLOCTABLE_Trans_Customer,$I$10,FALSE),0)","v":0},{"$f":"ROUND(F365*VLOOKUP(D365,ALLOCTABLE_Trans_Customer,$J$10,FALSE),0)","v":0},{"$f":"ROUND(F365*VLOOKUP(D365,ALLOCTABLE_Trans_Customer,$K$10,FALSE),0)","v":0},{"$f":"ROUND(F365*VLOOKUP(D365,ALLOCTABLE_Trans_Customer,$L$10,FALSE),0)","v":0},{"$f":"ROUND(F365*VLOOKUP(D365,ALLOCTABLE_Trans_Customer,$M$10,FALSE),0)","v":0},{"$f":"ROUND(F365*VLOOKUP(D365,ALLOCTABLE_Trans_Customer,$N$10,FALSE),0)","v":0},{"$f":"ROUND(F365*VLOOKUP(D365,ALLOCTABLE_Trans_Customer,$O$10,FALSE),0)","v":0},{"$f":"ROUND(F365*VLOOKUP(D365,ALLOCTABLE_Trans_Customer,$P$10,FALSE),0)","v":0},{"$f":"ROUND(F365*VLOOKUP(D365,ALLOCTABLE_Trans_Customer,$Q$10,FALSE),0)","v":0},{"$f":"SUM(G365:Q365)","v":3},{"$f":"F365-R365","v":0}]
[31,null,{"$f":"'FR-16(7)(v)-1 Functional'!C366","v":"RESERVED FOR FUTURE USE"},{"$f":"'FR-16(7)(v)-1 Functional'!D366","v":"NP29"},null,{"$f":"'FR-16(7)(v)-6 TRANS Classified'!I366","v":0},{"$f":"F366-SUM(H366:Q366)","v":0},{"$f":"ROUND(F366*VLOOKUP(D366,ALLOCTABLE_Trans_Customer,$H$10,FALSE),0)","v":0},{"$f":"ROUND(F366*VLOOKUP(D366,ALLOCTABLE_Trans_Customer,$I$10,FALSE),0)","v":0},{"$f":"ROUND(F366*VLOOKUP(D366,ALLOCTABLE_Trans_Customer,$J$10,FALSE),0)","v":0},{"$f":"ROUND(F366*VLOOKUP(D366,ALLOCTABLE_Trans_Customer,$K$10,FALSE),0)","v":0},{"$f":"ROUND(F366*VLOOKUP(D366,ALLOCTABLE_Trans_Customer,$L$10,FALSE),0)","v":0},{"$f":"ROUND(F366*VLOOKUP(D366,ALLOCTABLE_Trans_Customer,$M$10,FALSE),0)","v":0},{"$f":"ROUND(F366*VLOOKUP(D366,ALLOCTABLE_Trans_Customer,$N$10,FALSE),0)","v":0},{"$f":"ROUND(F366*VLOOKUP(D366,ALLOCTABLE_Trans_Customer,$O$10,FALSE),0)","v":0},{"$f":"ROUND(F366*VLOOKUP(D366,ALLOCTABLE_Trans_Customer,$P$10,FALSE),0)","v":0},{"$f":"ROUND(F366*VLOOKUP(D366,ALLOCTABLE_Trans_Customer,$Q$10,FALSE),0)","v":0},{"$f":"SUM(G366:Q366)","v":0},{"$f":"F366-R366","v":0}]
[32,null,{"$f":"'FR-16(7)(v)-1 Functional'!C367","v":"  OTHER"},null,null,{"$f":"SUM(F364:F366)","v":3},{"$f":"SUM(G363:G366)","v":2},1,0,{"$f":"SUM(J363:J366)","v":0},0,0,0,0,0,0,0,3,0]
[33,null,null,null,null," "]
[34,"CONSTRUCTION WORK IN PROGRESS"]
[35,null,"PRODUCTION",{"$f":"'FR-16(7)(v)-1 Functional'!D370","v":"P129"},null,{"$f":"'FR-16(7)(v)-6 TRANS Classified'!I370","v":0},{"$f":"F370-SUM(H370:Q370)","v":0},{"$f":"ROUND(F370*VLOOKUP(D370,ALLOCTABLE_Trans_Customer,$H$10,FALSE),0)","v":0},{"$f":"ROUND(F370*VLOOKUP(D370,ALLOCTABLE_Trans_Customer,$I$10,FALSE),0)","v":0},{"$f":"ROUND(F370*VLOOKUP(D370,ALLOCTABLE_Trans_Customer,$J$10,FALSE),0)","v":0},{"$f":"ROUND(F370*VLOOKUP(D370,ALLOCTABLE_Trans_Customer,$K$10,FALSE),0)","v":0},{"$f":"ROUND(F370*VLOOKUP(D370,ALLOCTABLE_Trans_Customer,$L$10,FALSE),0)","v":0},{"$f":"ROUND(F370*VLOOKUP(D370,ALLOCTABLE_Trans_Customer,$M$10,FALSE),0)","v":0},{"$f":"ROUND(F370*VLOOKUP(D370,ALLOCTABLE_Trans_Customer,$N$10,FALSE),0)","v":0},{"$f":"ROUND(F370*VLOOKUP(D370,ALLOCTABLE_Trans_Customer,$O$10,FALSE),0)","v":0},{"$f":"ROUND(F370*VLOOKUP(D370,ALLOCTABLE_Trans_Customer,$P$10,FALSE),0)","v":0},{"$f":"ROUND(F370*VLOOKUP(D370,ALLOCTABLE_Trans_Customer,$Q$10,FALSE),0)","v":0},{"$f":"SUM(G370:Q370)","v":0},{"$f":"F370-R370","v":0}]
[36,null,"TRANSMISSION",{"$f":"'FR-16(7)(v)-1 Functional'!D371","v":"T129"},null,{"$f":"'FR-16(7)(v)-6 TRANS Classified'!I371","v":0},{"$f":"F371-SUM(H371:Q371)","v":0},{"$f":"ROUND(F371*VLOOKUP(D371,ALLOCTABLE_Trans_Customer,$H$10,FALSE),0)","v":0},{"$f":"ROUND(F371*VLOOKUP(D371,ALLOCTABLE_Trans_Customer,$I$10,FALSE),0)","v":0},{"$f":"ROUND(F371*VLOOKUP(D371,ALLOCTABLE_Trans_Customer,$J$10,FALSE),0)","v":0},{"$f":"ROUND(F371*VLOOKUP(D371,ALLOCTABLE_Trans_Customer,$K$10,FALSE),0)","v":0},{"$f":"ROUND(F371*VLOOKUP(D371,ALLOCTABLE_Trans_Customer,$L$10,FALSE),0)","v":0},{"$f":"ROUND(F371*VLOOKUP(D371,ALLOCTABLE_Trans_Customer,$M$10,FALSE),0)","v":0},{"$f":"ROUND(F371*VLOOKUP(D371,ALLOCTABLE_Trans_Customer,$N$10,FALSE),0)","v":0},{"$f":"ROUND(F371*VLOOKUP(D371,ALLOCTABLE_Trans_Customer,$O$10,FALSE),0)","v":0},{"$f":"ROUND(F371*VLOOKUP(D371,ALLOCTABLE_Trans_Customer,$P$10,FALSE),0)","v":0},{"$f":"ROUND(F371*VLOOKUP(D371,ALLOCTABLE_Trans_Customer,$Q$10,FALSE),0)","v":0},{"$f":"SUM(G371:Q371)","v":0},{"$f":"F371-R371","v":0}]
[37,null,"DISTRIBUTION",{"$f":"'FR-16(7)(v)-1 Functional'!D372","v":"D149"},null,{"$f":"'FR-16(7)(v)-6 TRANS Classified'!I372","v":0},{"$f":"F372-SUM(H372:Q372)","v":0},{"$f":"ROUND(F372*VLOOKUP(D372,ALLOCTABLE_Trans_Customer,$H$10,FALSE),0)","v":0},{"$f":"ROUND(F372*VLOOKUP(D372,ALLOCTABLE_Trans_Customer,$I$10,FALSE),0)","v":0},{"$f":"ROUND(F372*VLOOKUP(D372,ALLOCTABLE_Trans_Customer,$J$10,FALSE),0)","v":0},{"$f":"ROUND(F372*VLOOKUP(D372,ALLOCTABLE_Trans_Customer,$K$10,FALSE),0)","v":0},{"$f":"ROUND(F372*VLOOKUP(D372,ALLOCTABLE_Trans_Customer,$L$10,FALSE),0)","v":0},{"$f":"ROUND(F372*VLOOKUP(D372,ALLOCTABLE_Trans_Customer,$M$10,FALSE),0)","v":0},{"$f":"ROUND(F372*VLOOKUP(D372,ALLOCTABLE_Trans_Customer,$N$10,FALSE),0)","v":0},{"$f":"ROUND(F372*VLOOKUP(D372,ALLOCTABLE_Trans_Customer,$O$10,FALSE),0)","v":0},{"$f":"ROUND(F372*VLOOKUP(D372,ALLOCTABLE_Trans_Customer,$P$10,FALSE),0)","v":0},{"$f":"ROUND(F372*VLOOKUP(D372,ALLOCTABLE_Trans_Customer,$Q$10,FALSE),0)","v":0},{"$f":"SUM(G372:Q372)","v":0},{"$f":"F372-R372","v":0}]
[38,null,"COMMON",{"$f":"'FR-16(7)(v)-1 Functional'!D373","v":"C129"},null,{"$f":"'FR-16(7)(v)-6 TRANS Classified'!I373","v":0},{"$f":"F373-SUM(H373:Q373)","v":0},{"$f":"ROUND(F373*VLOOKUP(D373,ALLOCTABLE_Trans_Customer,$H$10,FALSE),0)","v":0},{"$f":"ROUND(F373*VLOOKUP(D373,ALLOCTABLE_Trans_Customer,$I$10,FALSE),0)","v":0},{"$f":"ROUND(F373*VLOOKUP(D373,ALLOCTABLE_Trans_Customer,$J$10,FALSE),0)","v":0},{"$f":"ROUND(F373*VLOOKUP(D373,ALLOCTABLE_Trans_Customer,$K$10,FALSE),0)","v":0},{"$f":"ROUND(F373*VLOOKUP(D373,ALLOCTABLE_Trans_Customer,$L$10,FALSE),0)","v":0},{"$f":"ROUND(F373*VLOOKUP(D373,ALLOCTABLE_Trans_Customer,$M$10,FALSE),0)","v":0},{"$f":"ROUND(F373*VLOOKUP(D373,ALLOCTABLE_Trans_Customer,$N$10,FALSE),0)","v":0},{"$f":"ROUND(F373*VLOOKUP(D373,ALLOCTABLE_Trans_Customer,$O$10,FALSE),0)","v":0},{"$f":"ROUND(F373*VLOOKUP(D373,ALLOCTABLE_Trans_Customer,$P$10,FALSE),0)","v":0},{"$f":"ROUND(F373*VLOOKUP(D373,ALLOCTABLE_Trans_Customer,$Q$10,FALSE),0)","v":0},{"$f":"SUM(G373:Q373)","v":0},{"$f":"F373-R373","v":0}]
[39,null,"GENERAL",{"$f":"'FR-16(7)(v)-1 Functional'!D374","v":"G129"},null,{"$f":"'FR-16(7)(v)-6 TRANS Classified'!I374","v":0},{"$f":"F374-SUM(H374:Q374)","v":0},{"$f":"ROUND(F374*VLOOKUP(D374,ALLOCTABLE_Trans_Customer,$H$10,FALSE),0)","v":0},{"$f":"ROUND(F374*VLOOKUP(D374,ALLOCTABLE_Trans_Customer,$I$10,FALSE),0)","v":0},{"$f":"ROUND(F374*VLOOKUP(D374,ALLOCTABLE_Trans_Customer,$J$10,FALSE),0)","v":0},{"$f":"ROUND(F374*VLOOKUP(D374,ALLOCTABLE_Trans_Customer,$K$10,FALSE),0)","v":0},{"$f":"ROUND(F374*VLOOKUP(D374,ALLOCTABLE_Trans_Customer,$L$10,FALSE),0)","v":0},{"$f":"ROUND(F374*VLOOKUP(D374,ALLOCTABLE_Trans_Customer,$M$10,FALSE),0)","v":0},{"$f":"ROUND(F374*VLOOKUP(D374,ALLOCTABLE_Trans_Customer,$N$10,FALSE),0)","v":0},{"$f":"ROUND(F374*VLOOKUP(D374,ALLOCTABLE_Trans_Customer,$O$10,FALSE),0)","v":0},{"$f":"ROUND(F374*VLOOKUP(D374,ALLOCTABLE_Trans_Customer,$P$10,FALSE),0)","v":0},{"$f":"ROUND(F374*VLOOKUP(D374,ALLOCTABLE_Trans_Customer,$Q$10,FALSE),0)","v":0},{"$f":"SUM(G374:Q374)","v":0},{"$f":"F374-R374","v":0}]
[40,null,"TOTAL CONSTRUCTION WORK IN PROGRESS",null,null,{"$f":"SUM(F370:F374)","v":0},0,0,0,0,0,0,0,0,0,0,0,0]
[41]
[42,{"$f":"'FR-16(7)(v)-1 Functional'!B377","v":"TOTAL ADDITIVE RATE BASE ADJUSTMENTS"},null,null,null,{"$f":"F361+F367+F375","v":-110},{"$f":"G361+G367+G375","v":-114},{"$f":"H361+H367+H375","v":12},{"$f":"I361+I367+I375","v":0},{"$f":"J361+J367+J375","v":0},0,-4,-2,0,-2,0,{"$f":"Q361+Q367+Q375","v":0},{"$f":"R361+R367+R375","v":-110},{"$f":"S361+S367+S375","v":0}]
[]
[{"$f":"co_name","v":"DUKE ENERGY KENTUCKY, INC."},null,null,null,null,null,null,null,null,null,null,null,null,null,null,null,null,{"$f":"R1","v":"FR-16(7)(v)-9"}]
[{"$f":"$A$2","v":"TRANSMISSION CUSTOMER ALLOCATED - ELECTRIC COST OF SERVICE"},null,null,null,null,null,null,null,null,null,null,null,null,null,null,null,null,{"$f":"R2","v":"WITNESS RESPONSIBLE:"}]
[{"$f":"case_name","v":"CASE NO: 2019-00271"},null,null,null,null,null,null,null,null,null,null,null,null,null,null,null,null,{"$f":"Witness","v":"JAMES E. ZIOLKOWSKI"}]
[{"$f":"data_filing","v":"DATA: 12 MONTHS ACTUAL  & 0 MONTHS ESTIMATED"},null,null,null,null,null,null,null,null,null,null,null,null,null,null,null,null,{"$f":"\"PAGE \"&Pages-11&\" OF \"&Pages","v":"PAGE 7 OF 18"}]
[{"$f":"type","v":"TYPE OF FILING: \"X\" ORIGINAL   UPDATED    REVISED  "}]
[]
[null,null,null,null,null,{"$f":"F$7","v":"TOTAL"},null,{"$f":"H$7","v":"DS"},{"$f":"I$7","v":"GSFL"},{"$f":"J$7","v":"EH"},{"$f":"K$7","v":"SP"},"DT SEC","DT PRI","DP","TT",null,"OTHER"]
["LINE",null,null,null,null,{"$f":"F$8","v":"TRANSMISSION"},{"$f":"G$8","v":"RS"},{"$f":"H$8","v":"SECONDARY"},{"$f":"I$8","v":"SECONDARY"},{"$f":"J$8","v":"SECONDARY"},{"$f":"K$8","v":"SECONDARY"},"SECONDARY","PRIMARY","PRIMARY","TRANSMISSION","LT","WATER",{"$f":"R8","v":"TOTAL"},"ALL"]
["NO.","WORKING CAPITAL",null,"ALLO",null,{"$f":"F$9","v":"CUSTOMER"},{"$f":"G$9","v":"RESIDENTIAL"},{"$f":"H$9","v":"DISTRIBUTION"},{"$f":"I$9","v":"DISTRIBUTION"},{"$f":"J$9","v":"DISTRIBUTION"},{"$f":"K$9","v":"DISTRIBUTION"},"DISTRIBUTION","DISTRIBUTION","DISTRIBUTION","TIME OF DAY","LIGHTING","PUMPING",{"$f":"R9","v":"AT ISSUE"},"OTHER"]
[null,null,"Schedule 5.2",null,null,null,{"$f":"G$10","v":3},{"$f":"H$10","v":4},{"$f":"I$10","v":5},{"$f":"J$10","v":6},{"$f":"K$10","v":7},8,9,10,11,12,13,null," "]
[]
[1,"NET ORIGINAL COST RATE BASE",null,null,null,{"$f":"F277-F324+F377","v":5339},{"$f":"G277-G324+G377","v":4451},{"$f":"H277-H324+H377","v":789},{"$f":"I277-I324+I377","v":1},{"$f":"J277-J324+J377","v":7},1,55,21,2,10,1,{"$f":"Q277-Q324+Q377","v":1},{"$f":"R277-R324+R377","v":5339},{"$f":"S277-S324+S377","v":0}]
[2]
[3,"WORKING CAPITAL"]
[4]
[5,"PLANT MATERIALS & SUPPLIES"]
[6,null,"OTHER MATERIALS & SUPPLIES",{"$f":"'FR-16(7)(v)-1 Functional'!D395","v":"PD29"},null,{"$f":"'FR-16(7)(v)-6 TRANS Classified'!I395","v":-584},{"$f":"F395-SUM(H395:Q395)","v":-537},{"$f":"ROUND(F395*VLOOKUP(D395,ALLOCTABLE_Trans_Customer,$H$10,FALSE),0)","v":-18},{"$f":"ROUND(F395*VLOOKUP(D395,ALLOCTABLE_Trans_Customer,$I$10,FALSE),0)","v":0},{"$f":"ROUND(F395*VLOOKUP(D395,ALLOCTABLE_Trans_Customer,$J$10,FALSE),0)","v":0},{"$f":"ROUND(F395*VLOOKUP(D395,ALLOCTABLE_Trans_Customer,$K$10,FALSE),0)","v":0},{"$f":"ROUND(F395*VLOOKUP(D395,ALLOCTABLE_Trans_Customer,$L$10,FALSE),0)","v":-14},{"$f":"ROUND(F395*VLOOKUP(D395,ALLOCTABLE_Trans_Customer,$M$10,FALSE),0)","v":-9},{"$f":"ROUND(F395*VLOOKUP(D395,ALLOCTABLE_Trans_Customer,$N$10,FALSE),0)","v":-1},{"$f":"ROUND(F395*VLOOKUP(D395,ALLOCTABLE_Trans_Customer,$O$10,FALSE),0)","v":-4},{"$f":"ROUND(F395*VLOOKUP(D395,ALLOCTABLE_Trans_Customer,$P$10,FALSE),0)","v":-1},{"$f":"ROUND(F395*VLOOKUP(D395,ALLOCTABLE_Trans_Customer,$Q$10,FALSE),0)","v":0},{"$f":"SUM(G395:Q395)","v":-584},{"$f":"F395-R395","v":0}]
[7,null,{"$f":"'FR-16(7)(v)-1 Functional'!C396","v":"FUEL"},{"$f":"'FR-16(7)(v)-1 Functional'!D396","v":"K301"},null,{"$f":"'FR-16(7)(v)-6 TRANS Classified'!I396","v":0},{"$f":"F396-SUM(H396:Q396)","v":0},{"$f":"ROUND(F396*VLOOKUP(D396,ALLOCTABLE_Trans_Customer,$H$10,FALSE),0)","v":0},{"$f":"ROUND(F396*VLOOKUP(D396,ALLOCTABLE_Trans_Customer,$I$10,FALSE),0)","v":0},{"$f":"ROUND(F396*VLOOKUP(D396,ALLOCTABLE_Trans_Customer,$J$10,FALSE),0)","v":0},{"$f":"ROUND(F396*VLOOKUP(D396,ALLOCTABLE_Trans_Customer,$K$10,FALSE),0)","v":0},{"$f":"ROUND(F396*VLOOKUP(D396,ALLOCTABLE_Trans_Customer,$L$10,FALSE),0)","v":0},{"$f":"ROUND(F396*VLOOKUP(D396,ALLOCTABLE_Trans_Customer,$M$10,FALSE),0)","v":0},{"$f":"ROUND(F396*VLOOKUP(D396,ALLOCTABLE_Trans_Customer,$N$10,FALSE),0)","v":0},{"$f":"ROUND(F396*VLOOKUP(D396,ALLOCTABLE_Trans_Customer,$O$10,FALSE),0)","v":0},{"$f":"ROUND(F396*VLOOKUP(D396,ALLOCTABLE_Trans_Customer,$P$10,FALSE),0)","v":0},{"$f":"ROUND(F396*VLOOKUP(D396,ALLOCTABLE_Trans_Customer,$Q$10,FALSE),0)","v":0},{"$f":"SUM(G396:Q396)","v":0},{"$f":"F396-R396","v":0}]
[8,null,{"$f":"'FR-16(7)(v)-1 Functional'!C397","v":"EMISSION ALLOWANCES"},{"$f":"'FR-16(7)(v)-1 Functional'!D397","v":"K301"},null,{"$f":"'FR-16(7)(v)-6 TRANS Classified'!I397","v":0},{"$f":"F397-SUM(H397:Q397)","v":0},{"$f":"ROUND(F397*VLOOKUP(D397,ALLOCTABLE_Trans_Customer,$H$10,FALSE),0)","v":0},{"$f":"ROUND(F397*VLOOKUP(D397,ALLOCTABLE_Trans_Customer,$I$10,FALSE),0)","v":0},{"$f":"ROUND(F397*VLOOKUP(D397,ALLOCTABLE_Trans_Customer,$J$10,FALSE),0)","v":0},{"$f":"ROUND(F397*VLOOKUP(D397,ALLOCTABLE_Trans_Customer,$K$10,FALSE),0)","v":0},{"$f":"ROUND(F397*VLOOKUP(D397,ALLOCTABLE_Trans_Customer,$L$10,FALSE),0)","v":0},{"$f":"ROUND(F397*VLOOKUP(D397,ALLOCTABLE_Trans_Customer,$M$10,FALSE),0)","v":0},{"$f":"ROUND(F397*VLOOKUP(D397,ALLOCTABLE_Trans_Customer,$N$10,FALSE),0)","v":0},{"$f":"ROUND(F397*VLOOKUP(D397,ALLOCTABLE_Trans_Customer,$O$10,FALSE),0)","v":0},{"$f":"ROUND(F397*VLOOKUP(D397,ALLOCTABLE_Trans_Customer,$P$10,FALSE),0)","v":0},{"$f":"ROUND(F397*VLOOKUP(D397,ALLOCTABLE_Trans_Customer,$Q$10,FALSE),0)","v":0},{"$f":"SUM(G397:Q397)","v":0},{"$f":"F397-R397","v":0}]
[9,null,{"$f":"'FR-16(7)(v)-1 Functional'!C398","v":"  TOTAL PLANT MATS. & SUPPLIES"},null,null,{"$f":"SUM(F394:F397)","v":-584},{"$f":"SUM(G394:G397)","v":-537},{"$f":"SUM(H394:H397)","v":-18},{"$f":"SUM(I394:I397)","v":0},{"$f":"SUM(J394:J397)","v":0},0,-14,-9,-1,-4,-1,{"$f":"SUM(Q394:Q397)","v":0},{"$f":"SUM(R394:R397)","v":-584},{"$f":"SUM(S394:S397)","v":0}]
[10,"TOTAL MATERIALS & SUPPLIES",null,null,null,{"$f":"F398","v":-584},-537,-18,0,{"$f":"J398","v":0},0,-14,-9,-1,-4,-1,0,-584,0]
[11]
[12,"PREPAYMENTS"]
[13,null,{"$f":"'FR-16(7)(v)-1 Functional'!C402","v":"INSURANCE GENERAL"},{"$f":"'FR-16(7)(v)-1 Functional'!D402","v":"NP29"},null,{"$f":"'FR-16(7)(v)-6 TRANS Classified'!I402","v":1},{"$f":"F402-SUM(H402:Q402)","v":1},{"$f":"ROUND(F402*VLOOKUP(D402,ALLOCTABLE_Trans_Customer,$H$10,FALSE),0)","v":0},{"$f":"ROUND(F402*VLOOKUP(D402,ALLOCTABLE_Trans_Customer,$I$10,FALSE),0)","v":0},{"$f":"ROUND(F402*VLOOKUP(D402,ALLOCTABLE_Trans_Customer,$J$10,FALSE),0)","v":0},{"$f":"ROUND(F402*VLOOKUP(D402,ALLOCTABLE_Trans_Customer,$K$10,FALSE),0)","v":0},{"$f":"ROUND(F402*VLOOKUP(D402,ALLOCTABLE_Trans_Customer,$L$10,FALSE),0)","v":0},{"$f":"ROUND(F402*VLOOKUP(D402,ALLOCTABLE_Trans_Customer,$M$10,FALSE),0)","v":0},{"$f":"ROUND(F402*VLOOKUP(D402,ALLOCTABLE_Trans_Customer,$N$10,FALSE),0)","v":0},{"$f":"ROUND(F402*VLOOKUP(D402,ALLOCTABLE_Trans_Customer,$O$10,FALSE),0)","v":0},{"$f":"ROUND(F402*VLOOKUP(D402,ALLOCTABLE_Trans_Customer,$P$10,FALSE),0)","v":0},{"$f":"ROUND(F402*VLOOKUP(D402,ALLOCTABLE_Trans_Customer,$Q$10,FALSE),0)","v":0},{"$f":"SUM(G402:Q402)","v":1},{"$f":"F402-R402","v":0}]
[14,null,{"$f":"'FR-16(7)(v)-1 Functional'!C403","v":"EXCISE TAX"},{"$f":"'FR-16(7)(v)-1 Functional'!D403","v":"NP29"},null,{"$f":"'FR-16(7)(v)-6 TRANS Classified'!I403","v":0},{"$f":"F403-SUM(H403:Q403)","v":0},{"$f":"ROUND(F403*VLOOKUP(D403,ALLOCTABLE_Trans_Customer,$H$10,FALSE),0)","v":0},{"$f":"ROUND(F403*VLOOKUP(D403,ALLOCTABLE_Trans_Customer,$I$10,FALSE),0)","v":0},{"$f":"ROUND(F403*VLOOKUP(D403,ALLOCTABLE_Trans_Customer,$J$10,FALSE),0)","v":0},{"$f":"ROUND(F403*VLOOKUP(D403,ALLOCTABLE_Trans_Customer,$K$10,FALSE),0)","v":0},{"$f":"ROUND(F403*VLOOKUP(D403,ALLOCTABLE_Trans_Customer,$L$10,FALSE),0)","v":0},{"$f":"ROUND(F403*VLOOKUP(D403,ALLOCTABLE_Trans_Customer,$M$10,FALSE),0)","v":0},{"$f":"ROUND(F403*VLOOKUP(D403,ALLOCTABLE_Trans_Customer,$N$10,FALSE),0)","v":0},{"$f":"ROUND(F403*VLOOKUP(D403,ALLOCTABLE_Trans_Customer,$O$10,FALSE),0)","v":0},{"$f":"ROUND(F403*VLOOKUP(D403,ALLOCTABLE_Trans_Customer,$P$10,FALSE),0)","v":0},{"$f":"ROUND(F403*VLOOKUP(D403,ALLOCTABLE_Trans_Customer,$Q$10,FALSE),0)","v":0},{"$f":"SUM(G403:Q403)","v":0},{"$f":"F403-R403","v":0}]
[15,null,{"$f":"'FR-16(7)(v)-1 Functional'!C404","v":"COLLATERAL ASSET"},{"$f":"'FR-16(7)(v)-1 Functional'!D404","v":"K301"},null,{"$f":"'FR-16(7)(v)-6 TRANS Classified'!I404","v":0},{"$f":"F404-SUM(H404:Q404)","v":0},{"$f":"ROUND(F404*VLOOKUP(D404,ALLOCTABLE_Trans_Customer,$H$10,FALSE),0)","v":0},{"$f":"ROUND(F404*VLOOKUP(D404,ALLOCTABLE_Trans_Customer,$I$10,FALSE),0)","v":0},{"$f":"ROUND(F404*VLOOKUP(D404,ALLOCTABLE_Trans_Customer,$J$10,FALSE),0)","v":0},{"$f":"ROUND(F404*VLOOKUP(D404,ALLOCTABLE_Trans_Customer,$K$10,FALSE),0)","v":0},{"$f":"ROUND(F404*VLOOKUP(D404,ALLOCTABLE_Trans_Customer,$L$10,FALSE),0)","v":0},{"$f":"ROUND(F404*VLOOKUP(D404,ALLOCTABLE_Trans_Customer,$M$10,FALSE),0)","v":0},{"$f":"ROUND(F404*VLOOKUP(D404,ALLOCTABLE_Trans_Customer,$N$10,FALSE),0)","v":0},{"$f":"ROUND(F404*VLOOKUP(D404,ALLOCTABLE_Trans_Customer,$O$10,FALSE),0)","v":0},{"$f":"ROUND(F404*VLOOKUP(D404,ALLOCTABLE_Trans_Customer,$P$10,FALSE),0)","v":0},{"$f":"ROUND(F404*VLOOKUP(D404,ALLOCTABLE_Trans_Customer,$Q$10,FALSE),0)","v":0},{"$f":"SUM(G404:Q404)","v":0},{"$f":"F404-R404","v":0}]
[16,null,{"$f":"'FR-16(7)(v)-1 Functional'!C405","v":"  TOTAL PREPAYMENTS"},null,null,{"$f":"SUM(F401:F404)","v":1},{"$f":"SUM(G401:G404)","v":1},{"$f":"SUM(H401:H404)","v":0},{"$f":"SUM(I401:I404)","v":0},{"$f":"SUM(J401:J404)","v":0},0,0,0,0,0,0,{"$f":"SUM(Q401:Q404)","v":0},{"$f":"SUM(R401:R404)","v":1},{"$f":"SUM(S401:S404)","v":0}]
[17]
[18,"AUTO CALC (O&M-ELECTRIC FUEL COST)/8",null,null,null,{"$f":"IF(WorkingCap=\"No\",0,ROUND((F549-F447-F448)/8,0))","v":0},{"$f":"F407-SUM(H407:Q407)","v":0},{"$f":"IF(WorkingCap=\"No\",0,ROUND((H549-H447-H448)/8,0))","v":0},0,0,0,0,0,0,0,0,0,{"$f":"SUM(G407:Q407)","v":0},{"$f":"F407-R407","v":0}]
[19,"  TOTAL WORKING CASH",null,null,null,{"$f":"F407","v":0},0,0,0,{"$f":"J407","v":0},0,0,0,0,0,0,0,0,0]
[20]
[21,"MISCELLANEOUS WORKING CAPITAL"]
[22,null,{"$f":"'FR-16(7)(v)-1 Functional'!C411","v":"RESERVED FOR FUTURE USE"},{"$f":"'FR-16(7)(v)-1 Functional'!D411","v":"K301"},null,{"$f":"'FR-16(7)(v)-6 TRANS Classified'!I411","v":0},{"$f":"F411-SUM(H411:Q411)","v":0},{"$f":"ROUND(F411*VLOOKUP(D411,ALLOCTABLE_Trans_Customer,$H$10,FALSE),0)","v":0},{"$f":"ROUND(F411*VLOOKUP(D411,ALLOCTABLE_Trans_Customer,$I$10,FALSE),0)","v":0},{"$f":"ROUND(F411*VLOOKUP(D411,ALLOCTABLE_Trans_Customer,$J$10,FALSE),0)","v":0},{"$f":"ROUND(F411*VLOOKUP(D411,ALLOCTABLE_Trans_Customer,$K$10,FALSE),0)","v":0},{"$f":"ROUND(F411*VLOOKUP(D411,ALLOCTABLE_Trans_Customer,$L$10,FALSE),0)","v":0},{"$f":"ROUND(F411*VLOOKUP(D411,ALLOCTABLE_Trans_Customer,$M$10,FALSE),0)","v":0},{"$f":"ROUND(F411*VLOOKUP(D411,ALLOCTABLE_Trans_Customer,$N$10,FALSE),0)","v":0},{"$f":"ROUND(F411*VLOOKUP(D411,ALLOCTABLE_Trans_Customer,$O$10,FALSE),0)","v":0},{"$f":"ROUND(F411*VLOOKUP(D411,ALLOCTABLE_Trans_Customer,$P$10,FALSE),0)","v":0},{"$f":"ROUND(F411*VLOOKUP(D411,ALLOCTABLE_Trans_Customer,$Q$10,FALSE),0)","v":0},{"$f":"SUM(G411:Q411)","v":0},{"$f":"F411-R411","v":0}]
[23,null,{"$f":"'FR-16(7)(v)-1 Functional'!C412","v":"PIPP UNCOLLECTIBLES"},{"$f":"'FR-16(7)(v)-1 Functional'!D412","v":"A315"},null,{"$f":"'FR-16(7)(v)-6 TRANS Classified'!I412","v":0},{"$f":"F412-SUM(H412:Q412)","v":0},{"$f":"ROUND(F412*VLOOKUP(D412,ALLOCTABLE_Trans_Customer,$H$10,FALSE),0)","v":0},{"$f":"ROUND(F412*VLOOKUP(D412,ALLOCTABLE_Trans_Customer,$I$10,FALSE),0)","v":0},{"$f":"ROUND(F412*VLOOKUP(D412,ALLOCTABLE_Trans_Customer,$J$10,FALSE),0)","v":0},{"$f":"ROUND(F412*VLOOKUP(D412,ALLOCTABLE_Trans_Customer,$K$10,FALSE),0)","v":0},{"$f":"ROUND(F412*VLOOKUP(D412,ALLOCTABLE_Trans_Customer,$L$10,FALSE),0)","v":0},{"$f":"ROUND(F412*VLOOKUP(D412,ALLOCTABLE_Trans_Customer,$M$10,FALSE),0)","v":0},{"$f":"ROUND(F412*VLOOKUP(D412,ALLOCTABLE_Trans_Customer,$N$10,FALSE),0)","v":0},{"$f":"ROUND(F412*VLOOKUP(D412,ALLOCTABLE_Trans_Customer,$O$10,FALSE),0)","v":0},{"$f":"ROUND(F412*VLOOKUP(D412,ALLOCTABLE_Trans_Customer,$P$10,FALSE),0)","v":0},{"$f":"ROUND(F412*VLOOKUP(D412,ALLOCTABLE_Trans_Customer,$Q$10,FALSE),0)","v":0},{"$f":"SUM(G412:Q412)","v":0},{"$f":"F412-R412","v":0}]
[24,null,{"$f":"'FR-16(7)(v)-1 Functional'!C413","v":"RESERVED FOR FUTURE USE"},{"$f":"'FR-16(7)(v)-1 Functional'!D413","v":"D249"},null,{"$f":"'FR-16(7)(v)-6 TRANS Classified'!I413","v":0},{"$f":"F413-SUM(H413:Q413)","v":0},{"$f":"ROUND(F413*VLOOKUP(D413,ALLOCTABLE_Trans_Customer,$H$10,FALSE),0)","v":0},{"$f":"ROUND(F413*VLOOKUP(D413,ALLOCTABLE_Trans_Customer,$I$10,FALSE),0)","v":0},{"$f":"ROUND(F413*VLOOKUP(D413,ALLOCTABLE_Trans_Customer,$J$10,FALSE),0)","v":0},{"$f":"ROUND(F413*VLOOKUP(D413,ALLOCTABLE_Trans_Customer,$K$10,FALSE),0)","v":0},{"$f":"ROUND(F413*VLOOKUP(D413,ALLOCTABLE_Trans_Customer,$L$10,FALSE),0)","v":0},{"$f":"ROUND(F413*VLOOKUP(D413,ALLOCTABLE_Trans_Customer,$M$10,FALSE),0)","v":0},{"$f":"ROUND(F413*VLOOKUP(D413,ALLOCTABLE_Trans_Customer,$N$10,FALSE),0)","v":0},{"$f":"ROUND(F413*VLOOKUP(D413,ALLOCTABLE_Trans_Customer,$O$10,FALSE),0)","v":0},{"$f":"ROUND(F413*VLOOKUP(D413,ALLOCTABLE_Trans_Customer,$P$10,FALSE),0)","v":0},{"$f":"ROUND(F413*VLOOKUP(D413,ALLOCTABLE_Trans_Customer,$Q$10,FALSE),0)","v":0},{"$f":"SUM(G413:Q413)","v":0},{"$f":"F413-R413","v":0}]
[25,null,{"$f":"'FR-16(7)(v)-1 Functional'!C414","v":"  TOTAL MISC WORK CAPITAL"},null,null,{"$f":"SUM(F410:F413)","v":0},{"$f":"SUM(G410:G413)","v":0},{"$f":"SUM(H410:H413)","v":0},{"$f":"SUM(I410:I413)","v":0},{"$f":"SUM(J410:J413)","v":0},0,0,0,0,0,0,{"$f":"SUM(Q410:Q413)","v":0},{"$f":"SUM(R410:R413)","v":0},{"$f":"SUM(S410:S413)","v":0}]
[26]
[27,"TOTAL WORKING CAPITAL",null,null,null,{"$f":"F399+F405+F408+F414","v":-583},{"$f":"G399+G405+G408+G414","v":-536},{"$f":"H399+H405+H408+H414","v":-18},{"$f":"I399+I405+I408+I414","v":0},{"$f":"J399+J405+J408+J414","v":0},0,-14,-9,-1,-4,-1,{"$f":"Q399+Q405+Q408+Q414","v":0},{"$f":"R399+R405+R408+R414","v":-583},{"$f":"S399+S405+S408+S414","v":0}]
[28,"PRELIMINARY SUMMARY"]
[29,null,{"$f":"'FR-16(7)(v)-1 Functional'!C418","v":"TOTAL ACCUMULATED DEFERRED INCOME TAXES"},null,null,{"$f":"-F324","v":2170},{"$f":"-G324","v":2102},{"$f":"-H324","v":-78},{"$f":"-I324","v":1},{"$f":"-J324","v":1},0,67,49,2,24,2,{"$f":"-Q324","v":0},{"$f":"-R324","v":2170},{"$f":"-S324","v":0}]
[30,null,{"$f":"'FR-16(7)(v)-1 Functional'!C419","v":"TOTAL OTHER ACCUMULATED DEFERRED INCOME TAXES"},null,null,{"$f":"F377","v":-110},{"$f":"G377","v":-114},{"$f":"H377","v":12},{"$f":"I377","v":0},{"$f":"J377","v":0},0,-4,-2,0,-2,0,{"$f":"Q377","v":0},{"$f":"R377","v":-110},{"$f":"S377","v":0}]
[31,null,{"$f":"'FR-16(7)(v)-1 Functional'!C420","v":"TOTAL WORKING CAPITAL"},null,null,{"$f":"F416","v":-583},{"$f":"G416","v":-536},{"$f":"H416","v":-18},{"$f":"I416","v":0},{"$f":"J416","v":0},0,-14,-9,-1,-4,-1,{"$f":"Q416","v":0},{"$f":"R416","v":-583},{"$f":"S416","v":0}]
[32,null,{"$f":"'FR-16(7)(v)-1 Functional'!C421","v":"  TOTAL RATE BASE ADJUSTMENTS"},null,null,{"$f":"SUM(F417:F420)","v":1477},{"$f":"SUM(G417:G420)","v":1452},{"$f":"SUM(H417:H420)","v":-84},{"$f":"SUM(I417:I420)","v":1},{"$f":"SUM(J417:J420)","v":1},0,49,38,1,18,1,{"$f":"SUM(Q417:Q420)","v":0},{"$f":"SUM(R417:R420)","v":1477},{"$f":"SUM(S417:S420)","v":0}]
[33]
[34,"RATE BASE CALCULATION"]
[35,null,{"$f":"'FR-16(7)(v)-1 Functional'!C424","v":"NET ELECTRIC PLANT IN SERVICE"},null,null,{"$f":"F277","v":3279},{"$f":"G277","v":2463},{"$f":"H277","v":855},{"$f":"I277","v":0},{"$f":"J277","v":6},1,-8,-26,0,-12,-1,{"$f":"Q277","v":1},{"$f":"R277","v":3279},{"$f":"S277","v":0}]
[36,null,{"$f":"'FR-16(7)(v)-1 Functional'!C425","v":"TOTAL RATE BASE ADJUSTMENTS"},null,null,{"$f":"F421","v":1477},{"$f":"G421","v":1452},{"$f":"H421","v":-84},{"$f":"I421","v":1},{"$f":"J421","v":1},0,49,38,1,18,1,{"$f":"Q421","v":0},{"$f":"R421","v":1477},{"$f":"S421","v":0}]
[37,null,{"$f":"'FR-16(7)(v)-1 Functional'!C426","v":"  TOTAL RATE BASE"},null,null,{"$f":"SUM(F423:F425)","v":4756},{"$f":"SUM(G423:G425)","v":3915},{"$f":"SUM(H423:H425)","v":771},{"$f":"SUM(I423:I425)","v":1},{"$f":"SUM(J423:J425)","v":7},1,41,12,1,6,0,{"$f":"SUM(Q423:Q425)","v":1},{"$f":"SUM(R423:R425)","v":4756},{"$f":"SUM(S423:S425)","v":0}]
[38]
[39,"TOTAL RATE OF RETURN ALLOWABLE",null,null,null,{"$f":"$F$811","v":6.7100000000000007E-2},{"$f":"$F$811","v":6.7100000000000007E-2},6.7100000000000007E-2,6.7100000000000007E-2,6.7100000000000007E-2,6.7100000000000007E-2,6.7100000000000007E-2,6.7100000000000007E-2,6.7100000000000007E-2,6.7100000000000007E-2,6.7100000000000007E-2,6.7100000000000007E-2,{"$f":"F811","v":6.7100000000000007E-2}]
[40,"RETURN ON RATE BASE",null,null,null,{"$f":"ROUND(F428*F426,0)","v":319},{"$f":"F429-SUM(H429:Q429)","v":263},{"$f":"ROUND(H426*H428,0)","v":52},{"$f":"ROUND(I426*I428,0)","v":0},{"$f":"ROUND(J426*J428,0)","v":0},0,3,1,0,0,0,{"$f":"ROUND(Q426*Q428,0)","v":0},{"$f":"SUM(G429:Q429)","v":319},{"$f":"F429-R429","v":0}]
[41]
[42,{"$f":"'FR-16(7)(v)-1 Functional'!B431","v":"ELECTRIC RATE BASE"},null,{"$f":"'FR-16(7)(v)-1 Functional'!D431","v":"RB99"},null,{"$f":"'FR-16(7)(v)-6 TRANS Classified'!I431","v":4624},{"$f":"F431-SUM(H431:Q431)","v":3805},{"$f":"ROUND(F431*VLOOKUP(D431,ALLOCTABLE_Trans_Customer,$H$10,FALSE),0)","v":750},{"$f":"ROUND(F431*VLOOKUP(D431,ALLOCTABLE_Trans_Customer,$I$10,FALSE),0)","v":1},{"$f":"ROUND(F431*VLOOKUP(D431,ALLOCTABLE_Trans_Customer,$J$10,FALSE),0)","v":7},{"$f":"ROUND(F431*VLOOKUP(D431,ALLOCTABLE_Trans_Customer,$K$10,FALSE),0)","v":1},{"$f":"ROUND(F431*VLOOKUP(D431,ALLOCTABLE_Trans_Customer,$L$10,FALSE),0)","v":40},{"$f":"ROUND(F431*VLOOKUP(D431,ALLOCTABLE_Trans_Customer,$M$10,FALSE),0)","v":12},{"$f":"ROUND(F431*VLOOKUP(D431,ALLOCTABLE_Trans_Customer,$N$10,FALSE),0)","v":1},{"$f":"ROUND(F431*VLOOKUP(D431,ALLOCTABLE_Trans_Customer,$O$10,FALSE),0)","v":6},{"$f":"ROUND(F431*VLOOKUP(D431,ALLOCTABLE_Trans_Customer,$P$10,FALSE),0)","v":0},{"$f":"ROUND(F431*VLOOKUP(D431,ALLOCTABLE_Trans_Customer,$Q$10,FALSE),0)","v":1},{"$f":"SUM(G431:Q431)","v":4624},{"$f":"F431-R431","v":0}]
[43,{"$f":"'FR-16(7)(v)-1 Functional'!B432","v":"TOTAL RATE OF RETURN ALLOWABLE"},null,null,null,{"$f":"RofR","v":6.7110000000000003E-2},6.7110000000000003E-2,6.7110000000000003E-2,6.7110000000000003E-2,6.7110000000000003E-2,6.7110000000000003E-2,6.7110000000000003E-2,6.7110000000000003E-2,6.7110000000000003E-2,6.7110000000000003E-2,6.7110000000000003E-2,6.7110000000000003E-2,6.7110000000000003E-2]
[44,{"$f":"'FR-16(7)(v)-1 Functional'!B433","v":"RETURN ON RATE BASE"},null,null,null,{"$f":"ROUND(F431*F432,0)","v":310},{"$f":"F433-SUM(H433:Q433)","v":256},{"$f":"ROUND(H431*H432,0)","v":50},0,0,0,3,1,0,0,0,0,310,{"$f":"F429-R429","v":0}]
[]
[{"$f":"co_name","v":"DUKE ENERGY KENTUCKY, INC."},null,null,null,null,null,null,null,null,null,null,null,null,null,null,null,null,{"$f":"R1","v":"FR-16(7)(v)-9"}]
[{"$f":"$A$2","v":"TRANSMISSION CUSTOMER ALLOCATED - ELECTRIC COST OF SERVICE"},null,null,null,null,null,null,null,null,null,null,null,null,null,null,null,null,{"$f":"R2","v":"WITNESS RESPONSIBLE:"}]
[{"$f":"case_name","v":"CASE NO: 2019-00271"},null,null,null,null,null,null,null,null,null,null,null,null,null,null,null,null,{"$f":"Witness","v":"JAMES E. ZIOLKOWSKI"}]
[{"$f":"data_filing","v":"DATA: 12 MONTHS ACTUAL  & 0 MONTHS ESTIMATED"},null,null,null,null,null,null,null,null,null,null,null,null,null,null,null,null,{"$f":"\"PAGE \"&Pages-10&\" OF \"&Pages","v":"PAGE 8 OF 18"}]
[{"$f":"type","v":"TYPE OF FILING: \"X\" ORIGINAL   UPDATED    REVISED  "}]
[]
[null,null,null,null,null,{"$f":"F$7","v":"TOTAL"},null,{"$f":"H$7","v":"DS"},{"$f":"I$7","v":"GSFL"},{"$f":"J$7","v":"EH"},{"$f":"K$7","v":"SP"},"DT SEC","DT PRI","DP","TT",null,"OTHER"]
["LINE",null,null,null,null,{"$f":"F$8","v":"TRANSMISSION"},{"$f":"G$8","v":"RS"},{"$f":"H$8","v":"SECONDARY"},{"$f":"I$8","v":"SECONDARY"},{"$f":"J$8","v":"SECONDARY"},{"$f":"K$8","v":"SECONDARY"},"SECONDARY","PRIMARY","PRIMARY","TRANSMISSION","LT","WATER",{"$f":"R8","v":"TOTAL"},"ALL"]
["NO.","O&M EXPENSES",null,"ALLO",null,{"$f":"F$9","v":"CUSTOMER"},{"$f":"G$9","v":"RESIDENTIAL"},{"$f":"H$9","v":"DISTRIBUTION"},{"$f":"I$9","v":"DISTRIBUTION"},{"$f":"J$9","v":"DISTRIBUTION"},{"$f":"K$9","v":"DISTRIBUTION"},"DISTRIBUTION","DISTRIBUTION","DISTRIBUTION","TIME OF DAY","LIGHTING","PUMPING",{"$f":"R9","v":"AT ISSUE"},"OTHER"]
[null,null,"Schedule 6",null,null,null,{"$f":"G$10","v":3},{"$f":"H$10","v":4},{"$f":"I$10","v":5},{"$f":"J$10","v":6},{"$f":"K$10","v":7},8,9,10,11,12,13,null," "]
[1,"PRODUCTION O&M"]
[2,{"$f":"'FR-16(7)(v)-1 Functional'!B446","v":"ENERGY RELATED PRODUCTION O&M"}]
[3,null,{"$f":"'FR-16(7)(v)-1 Functional'!C447","v":"FUEL"},{"$f":"'FR-16(7)(v)-1 Functional'!D447","v":"K302"},null,{"$f":"'FR-16(7)(v)-6 TRANS Classified'!I447","v":0},{"$f":"F447-SUM(H447:Q447)","v":0},{"$f":"ROUND(F447*VLOOKUP(D447,ALLOCTABLE_Trans_Customer,$H$10,FALSE),0)","v":0},{"$f":"ROUND(F447*VLOOKUP(D447,ALLOCTABLE_Trans_Customer,$I$10,FALSE),0)","v":0},{"$f":"ROUND(F447*VLOOKUP(D447,ALLOCTABLE_Trans_Customer,$J$10,FALSE),0)","v":0},{"$f":"ROUND(F447*VLOOKUP(D447,ALLOCTABLE_Trans_Customer,$K$10,FALSE),0)","v":0},{"$f":"ROUND(F447*VLOOKUP(D447,ALLOCTABLE_Trans_Customer,$L$10,FALSE),0)","v":0},{"$f":"ROUND(F447*VLOOKUP(D447,ALLOCTABLE_Trans_Customer,$M$10,FALSE),0)","v":0},{"$f":"ROUND(F447*VLOOKUP(D447,ALLOCTABLE_Trans_Customer,$N$10,FALSE),0)","v":0},{"$f":"ROUND(F447*VLOOKUP(D447,ALLOCTABLE_Trans_Customer,$O$10,FALSE),0)","v":0},{"$f":"ROUND(F447*VLOOKUP(D447,ALLOCTABLE_Trans_Customer,$P$10,FALSE),0)","v":0},{"$f":"ROUND(F447*VLOOKUP(D447,ALLOCTABLE_Trans_Customer,$Q$10,FALSE),0)","v":0},{"$f":"SUM(G447:Q447)","v":0},{"$f":"F447-R447","v":0}]
[4,null,{"$f":"'FR-16(7)(v)-1 Functional'!C448","v":"FUEL AND PURCHASED POWER ADJUSTMENT"},{"$f":"'FR-16(7)(v)-1 Functional'!D448","v":"K302"},null,{"$f":"'FR-16(7)(v)-6 TRANS Classified'!I448","v":0},0,0,0,0,0,0,0,0,0,0,0,0,0]
[5,null,{"$f":"'FR-16(7)(v)-1 Functional'!C449","v":"EMISSION ALLOWANCES"},{"$f":"'FR-16(7)(v)-1 Functional'!D449","v":"K301"},null,{"$f":"'FR-16(7)(v)-6 TRANS Classified'!I449","v":0},0,0,0,0,0,0,0,0,0,0,0,0,0]
[6,null,{"$f":"'FR-16(7)(v)-1 Functional'!C450","v":"ELIMINATE EMISSION ALLOW & OTHER VAR COST"},{"$f":"'FR-16(7)(v)-1 Functional'!D450","v":"K301"},null,{"$f":"'FR-16(7)(v)-6 TRANS Classified'!I450","v":0},0,0,0,0,0,0,0,0,0,0,0,0,0]
[7,null,{"$f":"'FR-16(7)(v)-1 Functional'!C451","v":"OTHER PRODUCTION EXPENSE - MAINTENANCE"},{"$f":"'FR-16(7)(v)-1 Functional'!D451","v":"K301"},null,{"$f":"'FR-16(7)(v)-6 TRANS Classified'!I451","v":0},0,0,0,0,0,0,0,0,0,0,0,0,0]
[8,null,{"$f":"'FR-16(7)(v)-1 Functional'!C452","v":"MISO TRANSMISSION CHARGES - ACCT 555"},{"$f":"'FR-16(7)(v)-1 Functional'!D452","v":"K301"},null,{"$f":"'FR-16(7)(v)-6 TRANS Classified'!I452","v":0},0,0,0,0,0,0,0,0,0,0,0,0,0]
[9,null,"  TOTAL ENERGY RELATED",null,null,{"$f":"SUM(F447:F452)","v":0},{"$f":"SUM(G447:G452)","v":0},{"$f":"SUM(H447:H452)","v":0},{"$f":"SUM(I447:I452)","v":0},{"$f":"SUM(J447:J452)","v":0},0,0,0,0,0,0,{"$f":"SUM(Q447:Q452)","v":0},{"$f":"SUM(R447:R452)","v":0},{"$f":"SUM(S447:S452)","v":0}]
[10]
[11,"DEMAND RELATED & OTHER PROD O&M"]
[12,null,{"$f":"'FR-16(7)(v)-1 Functional'!C456","v":"OTHER PRODUCTION EXPENSES - OPERATIONS"},{"$f":"'FR-16(7)(v)-1 Functional'!D456","v":"K201"},null,{"$f":"'FR-16(7)(v)-6 TRANS Classified'!I456","v":0},{"$f":"F456-SUM(H456:Q456)","v":0},{"$f":"ROUND(F456*VLOOKUP(D456,ALLOCTABLE_Trans_Customer,$H$10,FALSE),0)","v":0},{"$f":"ROUND(F456*VLOOKUP(D456,ALLOCTABLE_Trans_Customer,$I$10,FALSE),0)","v":0},{"$f":"ROUND(F456*VLOOKUP(D456,ALLOCTABLE_Trans_Customer,$J$10,FALSE),0)","v":0},{"$f":"ROUND(F456*VLOOKUP(D456,ALLOCTABLE_Trans_Customer,$K$10,FALSE),0)","v":0},{"$f":"ROUND(F456*VLOOKUP(D456,ALLOCTABLE_Trans_Customer,$L$10,FALSE),0)","v":0},{"$f":"ROUND(F456*VLOOKUP(D456,ALLOCTABLE_Trans_Customer,$M$10,FALSE),0)","v":0},{"$f":"ROUND(F456*VLOOKUP(D456,ALLOCTABLE_Trans_Customer,$N$10,FALSE),0)","v":0},{"$f":"ROUND(F456*VLOOKUP(D456,ALLOCTABLE_Trans_Customer,$O$10,FALSE),0)","v":0},{"$f":"ROUND(F456*VLOOKUP(D456,ALLOCTABLE_Trans_Customer,$P$10,FALSE),0)","v":0},{"$f":"ROUND(F456*VLOOKUP(D456,ALLOCTABLE_Trans_Customer,$Q$10,FALSE),0)","v":0},{"$f":"SUM(G456:Q456)","v":0},{"$f":"F456-R456","v":0}]
[13,null,"  TOTAL DEMAND REL & OTH PROD O&M ",null,null,{"$f":"SUM(F455:F456)","v":0},{"$f":"SUM(G455:G456)","v":0},{"$f":"SUM(H455:H456)","v":0},{"$f":"SUM(I455:I456)","v":0},{"$f":"SUM(J455:J456)","v":0},0,0,0,0,0,0,{"$f":"SUM(Q455:Q456)","v":0},{"$f":"SUM(R455:R456)","v":0},{"$f":"SUM(S455:S456)","v":0}]
[14]
[15,"TOTAL PRODUCTION O&M",null,null," ",{"$f":"F457+F453","v":0},{"$f":"G457+G453","v":0},0,0,{"$f":"J457+J453","v":0},0,0,0,0,0,0,0,0,0]
[16]
[17,"TRANSMISSION O & M"]
[18,null,{"$f":"'FR-16(7)(v)-1 Functional'!C462","v":"TRANSFORMER LEASE PAYMENTS"},{"$f":"'FR-16(7)(v)-1 Functional'!D462","v":"K202"},null,{"$f":"'FR-16(7)(v)-6 TRANS Classified'!I462","v":0},{"$f":"F462-SUM(H462:Q462)","v":0},{"$f":"ROUND(F462*VLOOKUP(D462,ALLOCTABLE_Trans_Customer,$H$10,FALSE),0)","v":0},{"$f":"ROUND(F462*VLOOKUP(D462,ALLOCTABLE_Trans_Customer,$I$10,FALSE),0)","v":0},{"$f":"ROUND(F462*VLOOKUP(D462,ALLOCTABLE_Trans_Customer,$J$10,FALSE),0)","v":0},{"$f":"ROUND(F462*VLOOKUP(D462,ALLOCTABLE_Trans_Customer,$K$10,FALSE),0)","v":0},{"$f":"ROUND(F462*VLOOKUP(D462,ALLOCTABLE_Trans_Customer,$L$10,FALSE),0)","v":0},{"$f":"ROUND(F462*VLOOKUP(D462,ALLOCTABLE_Trans_Customer,$M$10,FALSE),0)","v":0},{"$f":"ROUND(F462*VLOOKUP(D462,ALLOCTABLE_Trans_Customer,$N$10,FALSE),0)","v":0},{"$f":"ROUND(F462*VLOOKUP(D462,ALLOCTABLE_Trans_Customer,$O$10,FALSE),0)","v":0},{"$f":"ROUND(F462*VLOOKUP(D462,ALLOCTABLE_Trans_Customer,$P$10,FALSE),0)","v":0},{"$f":"ROUND(F462*VLOOKUP(D462,ALLOCTABLE_Trans_Customer,$Q$10,FALSE),0)","v":0},{"$f":"SUM(G462:Q462)","v":0},{"$f":"F462-R462","v":0}]
[19,null,{"$f":"'FR-16(7)(v)-1 Functional'!C463","v":"OTHER TRANSMISSION"},{"$f":"'FR-16(7)(v)-1 Functional'!D463","v":"K202"},null,{"$f":"'FR-16(7)(v)-6 TRANS Classified'!I463","v":0},{"$f":"F463-SUM(H463:Q463)","v":0},{"$f":"ROUND(F463*VLOOKUP(D463,ALLOCTABLE_Trans_Customer,$H$10,FALSE),0)","v":0},{"$f":"ROUND(F463*VLOOKUP(D463,ALLOCTABLE_Trans_Customer,$I$10,FALSE),0)","v":0},{"$f":"ROUND(F463*VLOOKUP(D463,ALLOCTABLE_Trans_Customer,$J$10,FALSE),0)","v":0},{"$f":"ROUND(F463*VLOOKUP(D463,ALLOCTABLE_Trans_Customer,$K$10,FALSE),0)","v":0},{"$f":"ROUND(F463*VLOOKUP(D463,ALLOCTABLE_Trans_Customer,$L$10,FALSE),0)","v":0},{"$f":"ROUND(F463*VLOOKUP(D463,ALLOCTABLE_Trans_Customer,$M$10,FALSE),0)","v":0},{"$f":"ROUND(F463*VLOOKUP(D463,ALLOCTABLE_Trans_Customer,$N$10,FALSE),0)","v":0},{"$f":"ROUND(F463*VLOOKUP(D463,ALLOCTABLE_Trans_Customer,$O$10,FALSE),0)","v":0},{"$f":"ROUND(F463*VLOOKUP(D463,ALLOCTABLE_Trans_Customer,$P$10,FALSE),0)","v":0},{"$f":"ROUND(F463*VLOOKUP(D463,ALLOCTABLE_Trans_Customer,$Q$10,FALSE),0)","v":0},{"$f":"SUM(G463:Q463)","v":0},{"$f":"F463-R463","v":0}]
[20,null,{"$f":"'FR-16(7)(v)-1 Functional'!C464","v":"MISCELLANEOUS ADJUSTMENTS"},{"$f":"'FR-16(7)(v)-1 Functional'!D464","v":"K202"},null,{"$f":"'FR-16(7)(v)-6 TRANS Classified'!I464","v":0},{"$f":"F464-SUM(H464:Q464)","v":0},{"$f":"ROUND(F464*VLOOKUP(D464,ALLOCTABLE_Trans_Customer,$H$10,FALSE),0)","v":0},{"$f":"ROUND(F464*VLOOKUP(D464,ALLOCTABLE_Trans_Customer,$I$10,FALSE),0)","v":0},{"$f":"ROUND(F464*VLOOKUP(D464,ALLOCTABLE_Trans_Customer,$J$10,FALSE),0)","v":0},{"$f":"ROUND(F464*VLOOKUP(D464,ALLOCTABLE_Trans_Customer,$K$10,FALSE),0)","v":0},{"$f":"ROUND(F464*VLOOKUP(D464,ALLOCTABLE_Trans_Customer,$L$10,FALSE),0)","v":0},{"$f":"ROUND(F464*VLOOKUP(D464,ALLOCTABLE_Trans_Customer,$M$10,FALSE),0)","v":0},{"$f":"ROUND(F464*VLOOKUP(D464,ALLOCTABLE_Trans_Customer,$N$10,FALSE),0)","v":0},{"$f":"ROUND(F464*VLOOKUP(D464,ALLOCTABLE_Trans_Customer,$O$10,FALSE),0)","v":0},{"$f":"ROUND(F464*VLOOKUP(D464,ALLOCTABLE_Trans_Customer,$P$10,FALSE),0)","v":0},{"$f":"ROUND(F464*VLOOKUP(D464,ALLOCTABLE_Trans_Customer,$Q$10,FALSE),0)","v":0},{"$f":"SUM(G464:Q464)","v":0},{"$f":"F464-R464","v":0}]
[21,null,{"$f":"'FR-16(7)(v)-1 Functional'!C465","v":"NETWORK SERVICE RATES ADJUSTMENT"},{"$f":"'FR-16(7)(v)-1 Functional'!D465","v":"K202"},null,{"$f":"'FR-16(7)(v)-6 TRANS Classified'!I465","v":0},{"$f":"F465-SUM(H465:Q465)","v":0},{"$f":"ROUND(F465*VLOOKUP(D465,ALLOCTABLE_Trans_Customer,$H$10,FALSE),0)","v":0},{"$f":"ROUND(F465*VLOOKUP(D465,ALLOCTABLE_Trans_Customer,$I$10,FALSE),0)","v":0},{"$f":"ROUND(F465*VLOOKUP(D465,ALLOCTABLE_Trans_Customer,$J$10,FALSE),0)","v":0},{"$f":"ROUND(F465*VLOOKUP(D465,ALLOCTABLE_Trans_Customer,$K$10,FALSE),0)","v":0},{"$f":"ROUND(F465*VLOOKUP(D465,ALLOCTABLE_Trans_Customer,$L$10,FALSE),0)","v":0},{"$f":"ROUND(F465*VLOOKUP(D465,ALLOCTABLE_Trans_Customer,$M$10,FALSE),0)","v":0},{"$f":"ROUND(F465*VLOOKUP(D465,ALLOCTABLE_Trans_Customer,$N$10,FALSE),0)","v":0},{"$f":"ROUND(F465*VLOOKUP(D465,ALLOCTABLE_Trans_Customer,$O$10,FALSE),0)","v":0},{"$f":"ROUND(F465*VLOOKUP(D465,ALLOCTABLE_Trans_Customer,$P$10,FALSE),0)","v":0},{"$f":"ROUND(F465*VLOOKUP(D465,ALLOCTABLE_Trans_Customer,$Q$10,FALSE),0)","v":0},{"$f":"SUM(G465:Q465)","v":0},{"$f":"F465-R465","v":0}]
[22,null,{"$f":"'FR-16(7)(v)-1 Functional'!C466","v":"  TOTAL TRANSMISSION O & M"},null,null,{"$f":"SUM(F462:F465)","v":0},{"$f":"SUM(G462:G465)","v":0},0,0,{"$f":"SUM(J462:J465)","v":0},0,0,0,0,0,0,0,0,0]
[23]
[24,"REGIONAL MARKET O&M"]
[25,null,{"$f":"'FR-16(7)(v)-1 Functional'!C469","v":"MARKET FACILITATION - MONITORING & COMPLIANCE"},{"$f":"'FR-16(7)(v)-1 Functional'!D469","v":"K202"},null,{"$f":"'FR-16(7)(v)-6 TRANS Classified'!I469","v":0},{"$f":"F469-SUM(H469:Q469)","v":0},{"$f":"ROUND(F469*VLOOKUP(D469,ALLOCTABLE_Trans_Customer,$H$10,FALSE),0)","v":0},{"$f":"ROUND(F469*VLOOKUP(D469,ALLOCTABLE_Trans_Customer,$I$10,FALSE),0)","v":0},{"$f":"ROUND(F469*VLOOKUP(D469,ALLOCTABLE_Trans_Customer,$J$10,FALSE),0)","v":0},{"$f":"ROUND(F469*VLOOKUP(D469,ALLOCTABLE_Trans_Customer,$K$10,FALSE),0)","v":0},{"$f":"ROUND(F469*VLOOKUP(D469,ALLOCTABLE_Trans_Customer,$L$10,FALSE),0)","v":0},{"$f":"ROUND(F469*VLOOKUP(D469,ALLOCTABLE_Trans_Customer,$M$10,FALSE),0)","v":0},{"$f":"ROUND(F469*VLOOKUP(D469,ALLOCTABLE_Trans_Customer,$N$10,FALSE),0)","v":0},{"$f":"ROUND(F469*VLOOKUP(D469,ALLOCTABLE_Trans_Customer,$O$10,FALSE),0)","v":0},{"$f":"ROUND(F469*VLOOKUP(D469,ALLOCTABLE_Trans_Customer,$P$10,FALSE),0)","v":0},{"$f":"ROUND(F469*VLOOKUP(D469,ALLOCTABLE_Trans_Customer,$Q$10,FALSE),0)","v":0},{"$f":"SUM(G469:Q469)","v":0},{"$f":"F469-R469","v":0}]
[26,null,"TOTAL REGIONAL MARKET O&M",null,null,{"$f":"SUM(F468:F469)","v":0},{"$f":"SUM(G468:G469)","v":0},{"$f":"SUM(H468:H469)","v":0},{"$f":"SUM(I468:I469)","v":0},{"$f":"SUM(J468:J469)","v":0},0,0,0,0,0,0,{"$f":"SUM(Q468:Q469)","v":0},{"$f":"SUM(R468:R469)","v":0},{"$f":"SUM(S468:S469)","v":0}]
[27]
[28,"DISTRIBUTION O & M"]
[29,null,{"$f":"'FR-16(7)(v)-1 Functional'!C473","v":"SUBSTATIONS"},{"$f":"'FR-16(7)(v)-1 Functional'!D473","v":"K201"},null,{"$f":"'FR-16(7)(v)-6 TRANS Classified'!I473","v":0},{"$f":"F473-SUM(H473:Q473)","v":0},{"$f":"ROUND(F473*VLOOKUP(D473,ALLOCTABLE_Trans_Customer,$H$10,FALSE),0)","v":0},{"$f":"ROUND(F473*VLOOKUP(D473,ALLOCTABLE_Trans_Customer,$I$10,FALSE),0)","v":0},{"$f":"ROUND(F473*VLOOKUP(D473,ALLOCTABLE_Trans_Customer,$J$10,FALSE),0)","v":0},{"$f":"ROUND(F473*VLOOKUP(D473,ALLOCTABLE_Trans_Customer,$K$10,FALSE),0)","v":0},{"$f":"ROUND(F473*VLOOKUP(D473,ALLOCTABLE_Trans_Customer,$L$10,FALSE),0)","v":0},{"$f":"ROUND(F473*VLOOKUP(D473,ALLOCTABLE_Trans_Customer,$M$10,FALSE),0)","v":0},{"$f":"ROUND(F473*VLOOKUP(D473,ALLOCTABLE_Trans_Customer,$N$10,FALSE),0)","v":0},{"$f":"ROUND(F473*VLOOKUP(D473,ALLOCTABLE_Trans_Customer,$O$10,FALSE),0)","v":0},{"$f":"ROUND(F473*VLOOKUP(D473,ALLOCTABLE_Trans_Customer,$P$10,FALSE),0)","v":0},{"$f":"ROUND(F473*VLOOKUP(D473,ALLOCTABLE_Trans_Customer,$Q$10,FALSE),0)","v":0},{"$f":"SUM(G473:Q473)","v":0},{"$f":"F473-R473","v":0}]
[30,null,{"$f":"'FR-16(7)(v)-1 Functional'!C474","v":"POLES, TOWERS & FIXTURES"},{"$f":"'FR-16(7)(v)-1 Functional'!D474","v":"PL49"},null,{"$f":"'FR-16(7)(v)-6 TRANS Classified'!I474","v":0},0,0,0,0,0,0,0,0,0,0,0,0,0]
[31,null,{"$f":"'FR-16(7)(v)-1 Functional'!C475","v":"OVERHEAD LINES - PRIMARY / DEMAND"},{"$f":"'FR-16(7)(v)-1 Functional'!D475","v":"K205"},null,{"$f":"'FR-16(7)(v)-6 TRANS Classified'!I475","v":0},0,0,0,0,0,0,0,0,0,0,0,0,0]
[32,null,{"$f":"'FR-16(7)(v)-1 Functional'!C476","v":"OVERHEAD LINES - PRIMARY / CUSTOMER"},{"$f":"'FR-16(7)(v)-1 Functional'!D476","v":"K405"},null,{"$f":"'FR-16(7)(v)-6 TRANS Classified'!I476","v":0},0,0,0,0,0,0,0,0,0,0,0,0,0]
[33,null,{"$f":"'FR-16(7)(v)-1 Functional'!C477","v":"OVERHEAD LINES - SECONDARY / DEMAND"},{"$f":"'FR-16(7)(v)-1 Functional'!D477","v":"K206"},null,{"$f":"'FR-16(7)(v)-6 TRANS Classified'!I477","v":0},0,0,0,0,0,0,0,0,0,0,0,0,0]
[34,null,{"$f":"'FR-16(7)(v)-1 Functional'!C478","v":"OVERHEAD LINES - SECONDARY / CUSTOMER"},{"$f":"'FR-16(7)(v)-1 Functional'!D478","v":"K405"},null,{"$f":"'FR-16(7)(v)-6 TRANS Classified'!I478","v":0},0,0,0,0,0,0,0,0,0,0,0,0,0]
[35,null,{"$f":"'FR-16(7)(v)-1 Functional'!C479","v":"UNDERGROUND LINES - PRIMARY / DEMAND"},{"$f":"'FR-16(7)(v)-1 Functional'!D479","v":"K205"},null,{"$f":"'FR-16(7)(v)-6 TRANS Classified'!I479","v":0},0,0,0,0,0,0,0,0,0,0,0,0,0]
[36,null,{"$f":"'FR-16(7)(v)-1 Functional'!C480","v":"UNDERGROUND LINES - PRIMARY / CUSTOMER"},{"$f":"'FR-16(7)(v)-1 Functional'!D480","v":"K405"},null,{"$f":"'FR-16(7)(v)-6 TRANS Classified'!I480","v":0},0,0,0,0,0,0,0,0,0,0,0,0,0]
[37,null,{"$f":"'FR-16(7)(v)-1 Functional'!C481","v":"UNDERGROUND LINES - SECONDARY / DEMAND"},{"$f":"'FR-16(7)(v)-1 Functional'!D481","v":"K206"},null,{"$f":"'FR-16(7)(v)-6 TRANS Classified'!I481","v":0},0,0,0,0,0,0,0,0,0,0,0,0,0]
[38,null,{"$f":"'FR-16(7)(v)-1 Functional'!C482","v":"UNDERGROUND LINES - SECONDARY / CUSTOMER"},{"$f":"'FR-16(7)(v)-1 Functional'!D482","v":"K405"},null,{"$f":"'FR-16(7)(v)-6 TRANS Classified'!I482","v":0},0,0,0,0,0,0,0,0,0,0,0,0,0]
[39,null,{"$f":"'FR-16(7)(v)-1 Functional'!C483","v":"TRANSFORMERS DEMAND RELATED"},{"$f":"'FR-16(7)(v)-1 Functional'!D483","v":"K203"},null,{"$f":"'FR-16(7)(v)-6 TRANS Classified'!I483","v":0},0,0,0,0,0,0,0,0,0,0,0,0,0]
[40,null,{"$f":"'FR-16(7)(v)-1 Functional'!C484","v":"TRANSFORMERS CUSTOMER RELATED"},{"$f":"'FR-16(7)(v)-1 Functional'!D484","v":"K401"},null,{"$f":"'FR-16(7)(v)-6 TRANS Classified'!I484","v":0},0,0,0,0,0,0,0,0,0,0,0,0,0]
[41,null,{"$f":"'FR-16(7)(v)-1 Functional'!C485","v":"OTHER MAINTENANCE"},{"$f":"'FR-16(7)(v)-1 Functional'!D485","v":"K203"},null,{"$f":"'FR-16(7)(v)-6 TRANS Classified'!I485","v":0},0,0,0,0,0,0,0,0,0,0,0,0,0]
[42,null,{"$f":"'FR-16(7)(v)-1 Functional'!C486","v":"LOAD DISPATCH"},{"$f":"'FR-16(7)(v)-1 Functional'!D486","v":"K215"},null,{"$f":"'FR-16(7)(v)-6 TRANS Classified'!I486","v":0},0,0,0,0,0,0,0,0,0,0,0,0,0]
[43,null,{"$f":"'FR-16(7)(v)-1 Functional'!C487","v":"METERS"},{"$f":"'FR-16(7)(v)-1 Functional'!D487","v":"K407"},null,{"$f":"'FR-16(7)(v)-6 TRANS Classified'!I487","v":248},201,45,0,0,0,2,0,0,0,0,0,248,0]
[44,null,{"$f":"'FR-16(7)(v)-1 Functional'!C488","v":"STREET LIGHTING AND SIGNAL SYSTEMS"},{"$f":"'FR-16(7)(v)-1 Functional'!D488","v":"K401"},null,{"$f":"'FR-16(7)(v)-6 TRANS Classified'!I488","v":0},0,0,0,0,0,0,0,0,0,0,0,0,0]
[45,null,{"$f":"'FR-16(7)(v)-1 Functional'!C489","v":"OTHER OPERATIONS"},{"$f":"'FR-16(7)(v)-1 Functional'!D489","v":"K203"},null,{"$f":"'FR-16(7)(v)-6 TRANS Classified'!I489","v":0},0,0,0,0,0,0,0,0,0,0,0,0,0]
[46,null,{"$f":"'FR-16(7)(v)-1 Functional'!C490","v":"MISCELLANEOUS EXPENSES ADJUSTMENT"},{"$f":"'FR-16(7)(v)-1 Functional'!D490","v":"K203"},null,{"$f":"'FR-16(7)(v)-6 TRANS Classified'!I490","v":0},0,0,0,0,0,0,0,0,0,0,0,0,0]
[47,null,{"$f":"'FR-16(7)(v)-1 Functional'!C491","v":"AFFILIATED COMPANY RENTS ADJUSTMENT"},{"$f":"'FR-16(7)(v)-1 Functional'!D491","v":"D249"},null,{"$f":"'FR-16(7)(v)-6 TRANS Classified'!I491","v":0},0,0,0,0,0,0,0,0,0,0,0,0,0]
[48,null,{"$f":"'FR-16(7)(v)-1 Functional'!C492","v":"  TOTAL DISTRIBUTION O & M"},null," ",{"$f":"SUM(F472:F491)","v":248},{"$f":"SUM(G472:G491)","v":201},{"$f":"SUM(H472:H491)","v":45},{"$f":"SUM(I472:I491)","v":0},{"$f":"SUM(J472:J491)","v":0},0,2,0,0,0,0,{"$f":"SUM(Q472:Q491)","v":0},{"$f":"SUM(R472:R491)","v":248},{"$f":"SUM(S472:S491)","v":0}]
[49,null," "]
[50,"CUSTOMER ACCOUNTING",null,null,null," "]
[51,null,{"$f":"'FR-16(7)(v)-1 Functional'!C495","v":"CUSTOMER ACCOUNTING EXPENSE"},{"$f":"'FR-16(7)(v)-1 Functional'!D495","v":"K409"},null,{"$f":"'FR-16(7)(v)-6 TRANS Classified'!I495","v":0},{"$f":"F495-SUM(H495:Q495)","v":0},{"$f":"ROUND(F495*VLOOKUP(D495,ALLOCTABLE_Trans_Customer,$H$10,FALSE),0)","v":0},{"$f":"ROUND(F495*VLOOKUP(D495,ALLOCTABLE_Trans_Customer,$I$10,FALSE),0)","v":0},{"$f":"ROUND(F495*VLOOKUP(D495,ALLOCTABLE_Trans_Customer,$J$10,FALSE),0)","v":0},{"$f":"ROUND(F495*VLOOKUP(D495,ALLOCTABLE_Trans_Customer,$K$10,FALSE),0)","v":0},{"$f":"ROUND(F495*VLOOKUP(D495,ALLOCTABLE_Trans_Customer,$L$10,FALSE),0)","v":0},{"$f":"ROUND(F495*VLOOKUP(D495,ALLOCTABLE_Trans_Customer,$M$10,FALSE),0)","v":0},{"$f":"ROUND(F495*VLOOKUP(D495,ALLOCTABLE_Trans_Customer,$N$10,FALSE),0)","v":0},{"$f":"ROUND(F495*VLOOKUP(D495,ALLOCTABLE_Trans_Customer,$O$10,FALSE),0)","v":0},{"$f":"ROUND(F495*VLOOKUP(D495,ALLOCTABLE_Trans_Customer,$P$10,FALSE),0)","v":0},{"$f":"ROUND(F495*VLOOKUP(D495,ALLOCTABLE_Trans_Customer,$Q$10,FALSE),0)","v":0},{"$f":"SUM(G495:Q495)","v":0},{"$f":"F495-R495","v":0}]
[52,null,{"$f":"'FR-16(7)(v)-1 Functional'!C496","v":"UNCOLLECTIBLE EXP"},{"$f":"'FR-16(7)(v)-1 Functional'!D496","v":"K411"},null,{"$f":"'FR-16(7)(v)-6 TRANS Classified'!I496","v":10465},9536,452,3,3,0,235,150,7,70,9,0,10465,0]
[53,null,{"$f":"'FR-16(7)(v)-1 Functional'!C497","v":"METER READING"},{"$f":"'FR-16(7)(v)-1 Functional'!D497","v":"K407"},null,{"$f":"'FR-16(7)(v)-6 TRANS Classified'!I497","v":0},0,0,0,0,0,0,0,0,0,0,0,0,0]
[54,null,{"$f":"'FR-16(7)(v)-1 Functional'!C498","v":"UNCOLLECTIBLE EXP ADJUSTMENT"},{"$f":"'FR-16(7)(v)-1 Functional'!D498","v":"K411"},null,{"$f":"'FR-16(7)(v)-6 TRANS Classified'!I498","v":-14803},-13488,-640,-4,-4,0,-332,-212,-10,-100,-13,0,-14803,0]
[55,null,{"$f":"'FR-16(7)(v)-1 Functional'!C499","v":"CREDIT CARD FEES"},{"$f":"'FR-16(7)(v)-1 Functional'!D499","v":"K407"},null,{"$f":"'FR-16(7)(v)-6 TRANS Classified'!I499","v":113},91,21,0,0,0,1,0,0,0,0,0,113,0]
[56,null,{"$f":"'FR-16(7)(v)-1 Functional'!C500","v":"ELIMINATE REV & EXP - DSM RIDER"},{"$f":"'FR-16(7)(v)-1 Functional'!D500","v":"K405"},null,{"$f":"'FR-16(7)(v)-6 TRANS Classified'!I500","v":0},0,0,0,0,0,0,0,0,0,0,0,0,0]
[57,null,{"$f":"'FR-16(7)(v)-1 Functional'!C501","v":"SALE OF A/R"},{"$f":"'FR-16(7)(v)-1 Functional'!D501","v":"K411"},null,{"$f":"'FR-16(7)(v)-6 TRANS Classified'!I501","v":2914},2654,126,1,1,0,65,42,2,20,3,0,2914,0]
[58,null,{"$f":"'FR-16(7)(v)-1 Functional'!C502","v":"ELIMINATE MISC EXPENSE"},{"$f":"'FR-16(7)(v)-1 Functional'!D502","v":"K405"},null,{"$f":"'FR-16(7)(v)-6 TRANS Classified'!I502","v":0},0,0,0,0,0,0,0,0,0,0,0,0,0]
[59,null,{"$f":"'FR-16(7)(v)-1 Functional'!C503","v":"  TOTAL CUSTOMER ACCT EXPENSE"},null," ",{"$f":"SUM(F494:F502)","v":-1311},{"$f":"SUM(G494:G502)","v":-1207},{"$f":"SUM(H494:H502)","v":-41},{"$f":"SUM(I494:I502)","v":0},{"$f":"SUM(J494:J502)","v":0},0,-31,-20,-1,-10,-1,{"$f":"SUM(Q494:Q502)","v":0},{"$f":"SUM(R494:R502)","v":-1311},{"$f":"SUM(S494:S502)","v":0}]
[]
[{"$f":"co_name","v":"DUKE ENERGY KENTUCKY, INC."},null,null,null,null,null,null,null,null,null,null,null,null,null,null,null,null,{"$f":"R1","v":"FR-16(7)(v)-9"}]
[{"$f":"$A$2","v":"TRANSMISSION CUSTOMER ALLOCATED - ELECTRIC COST OF SERVICE"},null,null,null,null,null,null,null,null,null,null,null,null,null,null,null,null,{"$f":"R2","v":"WITNESS RESPONSIBLE:"}]
[{"$f":"case_name","v":"CASE NO: 2019-00271"},null,null,null,null,null,null,null,null,null,null,null,null,null,null,null,null,{"$f":"Witness","v":"JAMES E. ZIOLKOWSKI"}]
[{"$f":"data_filing","v":"DATA: 12 MONTHS ACTUAL  & 0 MONTHS ESTIMATED"},null,null,null,null,null,null,null,null,null,null,null,null,null,null,null,null,{"$f":"\"PAGE \"&Pages-9&\" OF \"&Pages","v":"PAGE 9 OF 18"}]
[{"$f":"type","v":"TYPE OF FILING: \"X\" ORIGINAL   UPDATED    REVISED  "}]
[]
[null,null,null,null,null,{"$f":"F$7","v":"TOTAL"},null,{"$f":"H$7","v":"DS"},{"$f":"I$7","v":"GSFL"},{"$f":"J$7","v":"EH"},{"$f":"K$7","v":"SP"},"DT SEC","DT PRI","DP","TT",null,"OTHER"]
["LINE",null,null,null,null,{"$f":"F$8","v":"TRANSMISSION"},{"$f":"G$8","v":"RS"},{"$f":"H$8","v":"SECONDARY"},{"$f":"I$8","v":"SECONDARY"},{"$f":"J$8","v":"SECONDARY"},{"$f":"K$8","v":"SECONDARY"},"SECONDARY","PRIMARY","PRIMARY","TRANSMISSION","LT","WATER",{"$f":"R8","v":"TOTAL"},"ALL"]
["NO.","O&M EXPENSES",null,"ALLO",null,{"$f":"F$9","v":"CUSTOMER"},{"$f":"G$9","v":"RESIDENTIAL"},{"$f":"H$9","v":"DISTRIBUTION"},{"$f":"I$9","v":"DISTRIBUTION"},{"$f":"J$9","v":"DISTRIBUTION"},{"$f":"K$9","v":"DISTRIBUTION"},"DISTRIBUTION","DISTRIBUTION","DISTRIBUTION","TIME OF DAY","LIGHTING","PUMPING",{"$f":"R9","v":"AT ISSUE"},"OTHER"]
[null,null,"Schedule 6.1",null,null,null,{"$f":"G$10","v":3},{"$f":"H$10","v":4},{"$f":"I$10","v":5},{"$f":"J$10","v":6},{"$f":"K$10","v":7},8,9,10,11,12,13,null," "]
[1,"CUSTOMER SERVICE & INFORMATION"]
[2,null,{"$f":"'FR-16(7)(v)-1 Functional'!C516","v":"TOTAL CUST SERVICE & INFO"},{"$f":"'FR-16(7)(v)-1 Functional'!D516","v":"K405"},null,{"$f":"'FR-16(7)(v)-6 TRANS Classified'!I516","v":0},{"$f":"F516-SUM(H516:Q516)","v":0},{"$f":"ROUND(F516*VLOOKUP(D516,ALLOCTABLE_Trans_Customer,$H$10,FALSE),0)","v":0},{"$f":"ROUND(F516*VLOOKUP(D516,ALLOCTABLE_Trans_Customer,$I$10,FALSE),0)","v":0},{"$f":"ROUND(F516*VLOOKUP(D516,ALLOCTABLE_Trans_Customer,$J$10,FALSE),0)","v":0},{"$f":"ROUND(F516*VLOOKUP(D516,ALLOCTABLE_Trans_Customer,$K$10,FALSE),0)","v":0},{"$f":"ROUND(F516*VLOOKUP(D516,ALLOCTABLE_Trans_Customer,$L$10,FALSE),0)","v":0},{"$f":"ROUND(F516*VLOOKUP(D516,ALLOCTABLE_Trans_Customer,$M$10,FALSE),0)","v":0},{"$f":"ROUND(F516*VLOOKUP(D516,ALLOCTABLE_Trans_Customer,$N$10,FALSE),0)","v":0},{"$f":"ROUND(F516*VLOOKUP(D516,ALLOCTABLE_Trans_Customer,$O$10,FALSE),0)","v":0},{"$f":"ROUND(F516*VLOOKUP(D516,ALLOCTABLE_Trans_Customer,$P$10,FALSE),0)","v":0},{"$f":"ROUND(F516*VLOOKUP(D516,ALLOCTABLE_Trans_Customer,$Q$10,FALSE),0)","v":0},{"$f":"SUM(G516:Q516)","v":0},{"$f":"F516-R516","v":0}]
[3,null,{"$f":"'FR-16(7)(v)-1 Functional'!C517","v":"INFORMATIONAL & INSTRUCTIONAL ADV"},{"$f":"'FR-16(7)(v)-1 Functional'!D517","v":"K405"},null,{"$f":"'FR-16(7)(v)-6 TRANS Classified'!I517","v":0},{"$f":"F517-SUM(H517:Q517)","v":0},{"$f":"ROUND(F517*VLOOKUP(D517,ALLOCTABLE_Trans_Customer,$H$10,FALSE),0)","v":0},{"$f":"ROUND(F517*VLOOKUP(D517,ALLOCTABLE_Trans_Customer,$I$10,FALSE),0)","v":0},{"$f":"ROUND(F517*VLOOKUP(D517,ALLOCTABLE_Trans_Customer,$J$10,FALSE),0)","v":0},{"$f":"ROUND(F517*VLOOKUP(D517,ALLOCTABLE_Trans_Customer,$K$10,FALSE),0)","v":0},{"$f":"ROUND(F517*VLOOKUP(D517,ALLOCTABLE_Trans_Customer,$L$10,FALSE),0)","v":0},{"$f":"ROUND(F517*VLOOKUP(D517,ALLOCTABLE_Trans_Customer,$M$10,FALSE),0)","v":0},{"$f":"ROUND(F517*VLOOKUP(D517,ALLOCTABLE_Trans_Customer,$N$10,FALSE),0)","v":0},{"$f":"ROUND(F517*VLOOKUP(D517,ALLOCTABLE_Trans_Customer,$O$10,FALSE),0)","v":0},{"$f":"ROUND(F517*VLOOKUP(D517,ALLOCTABLE_Trans_Customer,$P$10,FALSE),0)","v":0},{"$f":"ROUND(F517*VLOOKUP(D517,ALLOCTABLE_Trans_Customer,$Q$10,FALSE),0)","v":0},{"$f":"SUM(G517:Q517)","v":0}]
[4,null,{"$f":"'FR-16(7)(v)-1 Functional'!C518","v":"TOTAL CUSTOMER SERV. & INFO."},null," ",{"$f":"SUM(F516:F517)","v":0},{"$f":"SUM(G516:G517)","v":0},0,0,{"$f":"SUM(J516:J517)","v":0},0,0,0,0,0,0,0,0,0]
[5]
[6,"SALES"]
[7,null,{"$f":"'FR-16(7)(v)-1 Functional'!C521","v":"SALES EXPENSE"},{"$f":"'FR-16(7)(v)-1 Functional'!D521","v":"K405"}," ",{"$f":"'FR-16(7)(v)-6 TRANS Classified'!I521","v":0},{"$f":"F521-SUM(H521:Q521)","v":0},{"$f":"ROUND(F521*VLOOKUP(D521,ALLOCTABLE_Trans_Customer,$H$10,FALSE),0)","v":0},{"$f":"ROUND(F521*VLOOKUP(D521,ALLOCTABLE_Trans_Customer,$I$10,FALSE),0)","v":0},{"$f":"ROUND(F521*VLOOKUP(D521,ALLOCTABLE_Trans_Customer,$J$10,FALSE),0)","v":0},{"$f":"ROUND(F521*VLOOKUP(D521,ALLOCTABLE_Trans_Customer,$K$10,FALSE),0)","v":0},{"$f":"ROUND(F521*VLOOKUP(D521,ALLOCTABLE_Trans_Customer,$L$10,FALSE),0)","v":0},{"$f":"ROUND(F521*VLOOKUP(D521,ALLOCTABLE_Trans_Customer,$M$10,FALSE),0)","v":0},{"$f":"ROUND(F521*VLOOKUP(D521,ALLOCTABLE_Trans_Customer,$N$10,FALSE),0)","v":0},{"$f":"ROUND(F521*VLOOKUP(D521,ALLOCTABLE_Trans_Customer,$O$10,FALSE),0)","v":0},{"$f":"ROUND(F521*VLOOKUP(D521,ALLOCTABLE_Trans_Customer,$P$10,FALSE),0)","v":0},{"$f":"ROUND(F521*VLOOKUP(D521,ALLOCTABLE_Trans_Customer,$Q$10,FALSE),0)","v":0},{"$f":"SUM(G521:Q521)","v":0},{"$f":"F521-R521","v":0}]
[8,null,{"$f":"'FR-16(7)(v)-1 Functional'!C522","v":"TOTAL SALES EXPENSE"},null," ",{"$f":"SUM(F520:F521)","v":0},{"$f":"SUM(G520:G521)","v":0},{"$f":"SUM(H520:H521)","v":0},{"$f":"SUM(I520:I521)","v":0},{"$f":"SUM(J520:J521)","v":0},0,0,0,0,0,0,{"$f":"SUM(Q520:Q521)","v":0},{"$f":"SUM(R520:R521)","v":0},{"$f":"SUM(S520:S521)","v":0}]
[9]
[10,"ADMINISTRATIVE & GENERAL "]
[11,null,{"$f":"'FR-16(7)(v)-1 Functional'!C525","v":"PRODUCTION - DEMAND RELATED"},{"$f":"'FR-16(7)(v)-1 Functional'!D525","v":"P349"},null,{"$f":"'FR-16(7)(v)-6 TRANS Classified'!I525","v":0},{"$f":"F525-SUM(H525:Q525)","v":0},{"$f":"ROUND(F525*VLOOKUP(D525,ALLOCTABLE_Trans_Customer,$H$10,FALSE),0)","v":0},{"$f":"ROUND(F525*VLOOKUP(D525,ALLOCTABLE_Trans_Customer,$I$10,FALSE),0)","v":0},{"$f":"ROUND(F525*VLOOKUP(D525,ALLOCTABLE_Trans_Customer,$J$10,FALSE),0)","v":0},{"$f":"ROUND(F525*VLOOKUP(D525,ALLOCTABLE_Trans_Customer,$K$10,FALSE),0)","v":0},{"$f":"ROUND(F525*VLOOKUP(D525,ALLOCTABLE_Trans_Customer,$L$10,FALSE),0)","v":0},{"$f":"ROUND(F525*VLOOKUP(D525,ALLOCTABLE_Trans_Customer,$M$10,FALSE),0)","v":0},{"$f":"ROUND(F525*VLOOKUP(D525,ALLOCTABLE_Trans_Customer,$N$10,FALSE),0)","v":0},{"$f":"ROUND(F525*VLOOKUP(D525,ALLOCTABLE_Trans_Customer,$O$10,FALSE),0)","v":0},{"$f":"ROUND(F525*VLOOKUP(D525,ALLOCTABLE_Trans_Customer,$P$10,FALSE),0)","v":0},{"$f":"ROUND(F525*VLOOKUP(D525,ALLOCTABLE_Trans_Customer,$Q$10,FALSE),0)","v":0},{"$f":"SUM(G525:Q525)","v":0},{"$f":"F525-R525","v":0}]
[12,null,{"$f":"'FR-16(7)(v)-1 Functional'!C526","v":"PRODUCTION - ENERGY RELATED"},{"$f":"'FR-16(7)(v)-1 Functional'!D526","v":"E349"},null,{"$f":"'FR-16(7)(v)-6 TRANS Classified'!I526","v":0},0,0,0,0,0,0,0,0,0,0,0,0,0]
[13,null,"TRANSMISSION",{"$f":"'FR-16(7)(v)-1 Functional'!D527","v":"T349"},null,{"$f":"'FR-16(7)(v)-6 TRANS Classified'!I527","v":0},0,0,0,0,0,0,0,0,0,0,0,{"$f":"SUM(G527:Q527)","v":0},{"$f":"F527-R527","v":0}]
[14,null,{"$f":"'FR-16(7)(v)-1 Functional'!C528","v":"DISTRIBUTION"},{"$f":"'FR-16(7)(v)-1 Functional'!D528","v":"D349"},null,{"$f":"'FR-16(7)(v)-6 TRANS Classified'!I528","v":60},49,11,0,0,0,0,0,0,0,0,0,60,0]
[15,null,{"$f":"'FR-16(7)(v)-1 Functional'!C529","v":"CUSTOMER ACCOUNTING"},{"$f":"'FR-16(7)(v)-1 Functional'!D529","v":"C319"},null,{"$f":"'FR-16(7)(v)-6 TRANS Classified'!I529","v":-1177},-1083,-37,0,0,0,-28,-18,-1,-9,-1,0,-1177,0]
[16,null,{"$f":"'FR-16(7)(v)-1 Functional'!C530","v":"CUSTOMER SERVICE & INFORMATION"},{"$f":"'FR-16(7)(v)-1 Functional'!D530","v":"C331"},null,{"$f":"'FR-16(7)(v)-6 TRANS Classified'!I530","v":0},0,0,0,0,0,0,0,0,0,0,0,0,0]
[17,null,{"$f":"'FR-16(7)(v)-1 Functional'!C531","v":"SALES"},{"$f":"'FR-16(7)(v)-1 Functional'!D531","v":"S319"},null,{"$f":"'FR-16(7)(v)-6 TRANS Classified'!I531","v":0},0,0,0,0,0,0,0,0,0,0,0,0,0]
[18,null,{"$f":"'FR-16(7)(v)-1 Functional'!C532","v":"TOT ADMIN & GEN LESS REG EXP"}," ",null,{"$f":"SUM(F525:F531)","v":-1117},{"$f":"SUM(G525:G531)","v":-1034},{"$f":"SUM(H525:H531)","v":-26},{"$f":"SUM(I525:I531)","v":0},{"$f":"SUM(J525:J531)","v":0},0,-28,-18,-1,-9,-1,{"$f":"SUM(Q525:Q531)","v":0},{"$f":"SUM(R525:R531)","v":-1117},{"$f":"SUM(S525:S531)","v":0}]
[19,null,{"$f":"'FR-16(7)(v)-1 Functional'!C533","v":"RATE CASE EXPENSE ADJUSTMENT"},{"$f":"'FR-16(7)(v)-1 Functional'!D533","v":"A315"},null,{"$f":"'FR-16(7)(v)-6 TRANS Classified'!I533","v":-5},{"$f":"F533-SUM(H533:Q533)","v":-5},{"$f":"ROUND(F533*VLOOKUP(D533,ALLOCTABLE_Trans_Customer,$H$10,FALSE),0)","v":0},{"$f":"ROUND(F533*VLOOKUP(D533,ALLOCTABLE_Trans_Customer,$I$10,FALSE),0)","v":0},{"$f":"ROUND(F533*VLOOKUP(D533,ALLOCTABLE_Trans_Customer,$J$10,FALSE),0)","v":0},{"$f":"ROUND(F533*VLOOKUP(D533,ALLOCTABLE_Trans_Customer,$K$10,FALSE),0)","v":0},{"$f":"ROUND(F533*VLOOKUP(D533,ALLOCTABLE_Trans_Customer,$L$10,FALSE),0)","v":0},{"$f":"ROUND(F533*VLOOKUP(D533,ALLOCTABLE_Trans_Customer,$M$10,FALSE),0)","v":0},{"$f":"ROUND(F533*VLOOKUP(D533,ALLOCTABLE_Trans_Customer,$N$10,FALSE),0)","v":0},{"$f":"ROUND(F533*VLOOKUP(D533,ALLOCTABLE_Trans_Customer,$O$10,FALSE),0)","v":0},{"$f":"ROUND(F533*VLOOKUP(D533,ALLOCTABLE_Trans_Customer,$P$10,FALSE),0)","v":0},{"$f":"ROUND(F533*VLOOKUP(D533,ALLOCTABLE_Trans_Customer,$Q$10,FALSE),0)","v":0},{"$f":"SUM(G533:Q533)","v":-5},{"$f":"F533-R533","v":0}]
[20,null,{"$f":"'FR-16(7)(v)-1 Functional'!C534","v":"ELIMINATE MISCELLANEOUS EXPENSES ADJUSTMENT"},{"$f":"'FR-16(7)(v)-1 Functional'!D534","v":"A315"},null,{"$f":"'FR-16(7)(v)-6 TRANS Classified'!I534","v":0},0,0,0,0,0,0,0,0,0,0,0,0,0]
[21,null,{"$f":"'FR-16(7)(v)-1 Functional'!C535","v":"RIDER ESM ELIMINATION"},{"$f":"'FR-16(7)(v)-1 Functional'!D535","v":"A315"},null,{"$f":"'FR-16(7)(v)-6 TRANS Classified'!I535","v":329},305,8,0,0,0,8,5,0,3,0,0,329,0]
[22,null,{"$f":"'FR-16(7)(v)-1 Functional'!C536","v":"ELIMINATE DSM"},{"$f":"'FR-16(7)(v)-1 Functional'!D536","v":"A315"},null,{"$f":"'FR-16(7)(v)-6 TRANS Classified'!I536","v":5},5,0,0,0,0,0,0,0,0,0,0,5,0]
[23,null,{"$f":"'FR-16(7)(v)-1 Functional'!C537","v":"DSM DEFERRAL - ELECTRIC"},{"$f":"'FR-16(7)(v)-1 Functional'!D537","v":"A315"},null,{"$f":"'FR-16(7)(v)-6 TRANS Classified'!I537","v":0},0,0,0,0,0,0,0,0,0,0,0,0,0]
[24,null,{"$f":"'FR-16(7)(v)-1 Functional'!C538","v":"PENSION ADJUSTMENT"},{"$f":"'FR-16(7)(v)-1 Functional'!D538","v":"A315"},null,{"$f":"'FR-16(7)(v)-6 TRANS Classified'!I538","v":20},19,0,0,0,0,1,0,0,0,0,0,20,0]
[25,null,{"$f":"'FR-16(7)(v)-1 Functional'!C539","v":"ELIMINATE MISC EXPENSES"},{"$f":"'FR-16(7)(v)-1 Functional'!D539","v":"A315"},null,{"$f":"'FR-16(7)(v)-6 TRANS Classified'!I539","v":19},19,0,0,0,0,0,0,0,0,0,0,19,0]
[26,null,{"$f":"'FR-16(7)(v)-1 Functional'!C540","v":"ELIMINATE MERGER COSTS AND CREDITS"},{"$f":"'FR-16(7)(v)-1 Functional'!D540","v":"A315"},null,{"$f":"'FR-16(7)(v)-6 TRANS Classified'!I540","v":0},0,0,0,0,0,0,0,0,0,0,0,0,0]
[27,null,{"$f":"'FR-16(7)(v)-1 Functional'!C541","v":"ANNUALIZE KYPSC MAINT TAX"},{"$f":"'FR-16(7)(v)-1 Functional'!D541","v":"A315"},null,{"$f":"'FR-16(7)(v)-6 TRANS Classified'!I541","v":0},0,0,0,0,0,0,0,0,0,0,0,0,0]
[28,null,{"$f":"'FR-16(7)(v)-1 Functional'!C542","v":"REMOVE INCENTIVE COMP"},{"$f":"'FR-16(7)(v)-1 Functional'!D542","v":"A315"},null,{"$f":"'FR-16(7)(v)-6 TRANS Classified'!I542","v":56},53,1,0,0,0,1,1,0,0,0,0,56,0]
[29,null,{"$f":"'FR-16(7)(v)-1 Functional'!C543","v":"CREDIT CARD FEES"},{"$f":"'FR-16(7)(v)-1 Functional'!D543","v":"A315"},null,{"$f":"'FR-16(7)(v)-6 TRANS Classified'!I543","v":0},0,0,0,0,0,0,0,0,0,0,0,0,0]
[30,null,{"$f":"'FR-16(7)(v)-1 Functional'!C544","v":"ELIMINATE INCENTIVE COMPENSATION ADJUSTMENT"},{"$f":"'FR-16(7)(v)-1 Functional'!D544","v":"A315"},null,{"$f":"'FR-16(7)(v)-6 TRANS Classified'!I544","v":0},0,0,0,0,0,0,0,0,0,0,0,0,0]
[31,null,{"$f":"'FR-16(7)(v)-1 Functional'!C545","v":"AMORTIZATION OF DEFERRAL ASSET"},{"$f":"'FR-16(7)(v)-1 Functional'!D545","v":"A315"},null,{"$f":"'FR-16(7)(v)-6 TRANS Classified'!I545","v":0},0,0,0,0,0,0,0,0,0,0,0,0,0]
[32,null,{"$f":"'FR-16(7)(v)-1 Functional'!C546","v":"AMORTIZATION OF DEFERRED EXPENSES"},{"$f":"'FR-16(7)(v)-1 Functional'!D546","v":"A315"},null,{"$f":"'FR-16(7)(v)-6 TRANS Classified'!I546","v":-4},-4,0,0,0,0,0,0,0,0,0,0,-4,0]
[33,null,{"$f":"'FR-16(7)(v)-1 Functional'!C547","v":"TOTAL ADMIN. & GENERAL"},null," ",{"$f":"SUM(F532:F546)","v":-697},{"$f":"SUM(G532:G546)","v":-642},{"$f":"SUM(H532:H546)","v":-17},{"$f":"SUM(I532:I546)","v":0},{"$f":"SUM(J532:J546)","v":0},0,-18,-12,-1,-6,-1,{"$f":"SUM(Q532:Q546)","v":0},{"$f":"SUM(R532:R546)","v":-697},{"$f":"SUM(S532:S546)","v":0}]
[34]
[35,null,{"$f":"'FR-16(7)(v)-1 Functional'!C549","v":"TOTAL O & M EXPENSE"},null,null,{"$f":"F547+F522+F518+F503+F492+F470+F466+F459","v":-1760},{"$f":"G547+G522+G518+G503+G492+G470+G466+G459","v":-1648},{"$f":"H547+H522+H518+H503+H492+H470+H466+H459","v":-13},{"$f":"I547+I522+I518+I503+I492+I470+I466+I459","v":0},{"$f":"J547+J522+J518+J503+J492+J470+J466+J459","v":0},0,-47,-32,-2,-16,-2,{"$f":"Q547+Q522+Q518+Q503+Q492+Q470+Q466+Q459","v":0},{"$f":"R547+R522+R518+R503+R492+R470+R466+R459","v":-1760},{"$f":"S547+S522+S518+S503+S492+S466+S459","v":0}]
[]
[{"$f":"co_name","v":"DUKE ENERGY KENTUCKY, INC."},null,null,null,null,null,null,null,null,null,null,null,null,null,null,null,null,{"$f":"R1","v":"FR-16(7)(v)-9"}]
[{"$f":"$A$2","v":"TRANSMISSION CUSTOMER ALLOCATED - ELECTRIC COST OF SERVICE"},null,null,null,null,null,null,null,null,null,null,null,null,null,null,null,null,{"$f":"R2","v":"WITNESS RESPONSIBLE:"}]
[{"$f":"case_name","v":"CASE NO: 2019-00271"},null,null,null,null,null,null,null,null,null,null,null,null,null,null,null,null,{"$f":"Witness","v":"JAMES E. ZIOLKOWSKI"}]
[{"$f":"data_filing","v":"DATA: 12 MONTHS ACTUAL  & 0 MONTHS ESTIMATED"},null,null,null,null,null,null,null,null,null,null,null,null,null,null,null,null,{"$f":"\"PAGE \"&Pages-8&\" OF \"&Pages","v":"PAGE 10 OF 18"}]
[{"$f":"type","v":"TYPE OF FILING: \"X\" ORIGINAL   UPDATED    REVISED  "}]
[]
[null,null,null,null,null,{"$f":"F$7","v":"TOTAL"},null,{"$f":"H$7","v":"DS"},{"$f":"I$7","v":"GSFL"},{"$f":"J$7","v":"EH"},{"$f":"K$7","v":"SP"},"DT SEC","DT PRI","DP","TT",null,"OTHER"]
["LINE",null,null,null,null,{"$f":"F$8","v":"TRANSMISSION"},{"$f":"G$8","v":"RS"},{"$f":"H$8","v":"SECONDARY"},{"$f":"I$8","v":"SECONDARY"},{"$f":"J$8","v":"SECONDARY"},{"$f":"K$8","v":"SECONDARY"},"SECONDARY","PRIMARY","PRIMARY","TRANSMISSION","LT","WATER",{"$f":"R8","v":"TOTAL"},"ALL"]
["NO.","DEPRECIATION EXPENSE",null,"ALLO",null,{"$f":"F$9","v":"CUSTOMER"},{"$f":"G$9","v":"RESIDENTIAL"},{"$f":"H$9","v":"DISTRIBUTION"},{"$f":"I$9","v":"DISTRIBUTION"},{"$f":"J$9","v":"DISTRIBUTION"},{"$f":"K$9","v":"DISTRIBUTION"},"DISTRIBUTION","DISTRIBUTION","DISTRIBUTION","TIME OF DAY","LIGHTING","PUMPING",{"$f":"R9","v":"AT ISSUE"},"OTHER"]
[null,null,"Schedule 7",null,null,null,{"$f":"G$10","v":3},{"$f":"H$10","v":4},{"$f":"I$10","v":5},{"$f":"J$10","v":6},{"$f":"K$10","v":7},8,9,10,11,12,13,null," "]
[1,"PRODUCTION DEPRECIATION"]
[2,null,{"$f":"'FR-16(7)(v)-1 Functional'!C562","v":"PRODUCTION DEPRECIATION"},{"$f":"'FR-16(7)(v)-1 Functional'!D562","v":"P229"},null,{"$f":"'FR-16(7)(v)-6 TRANS Classified'!I562","v":0},{"$f":"F562-SUM(H562:Q562)","v":0},{"$f":"ROUND(F562*VLOOKUP(D562,ALLOCTABLE_Trans_Customer,$H$10,FALSE),0)","v":0},{"$f":"ROUND(F562*VLOOKUP(D562,ALLOCTABLE_Trans_Customer,$I$10,FALSE),0)","v":0},{"$f":"ROUND(F562*VLOOKUP(D562,ALLOCTABLE_Trans_Customer,$J$10,FALSE),0)","v":0},{"$f":"ROUND(F562*VLOOKUP(D562,ALLOCTABLE_Trans_Customer,$K$10,FALSE),0)","v":0},{"$f":"ROUND(F562*VLOOKUP(D562,ALLOCTABLE_Trans_Customer,$L$10,FALSE),0)","v":0},{"$f":"ROUND(F562*VLOOKUP(D562,ALLOCTABLE_Trans_Customer,$M$10,FALSE),0)","v":0},{"$f":"ROUND(F562*VLOOKUP(D562,ALLOCTABLE_Trans_Customer,$N$10,FALSE),0)","v":0},{"$f":"ROUND(F562*VLOOKUP(D562,ALLOCTABLE_Trans_Customer,$O$10,FALSE),0)","v":0},{"$f":"ROUND(F562*VLOOKUP(D562,ALLOCTABLE_Trans_Customer,$P$10,FALSE),0)","v":0},{"$f":"ROUND(F562*VLOOKUP(D562,ALLOCTABLE_Trans_Customer,$Q$10,FALSE),0)","v":0},{"$f":"SUM(G562:Q562)","v":0},{"$f":"F562-R562","v":0}]
[3,null,{"$f":"'FR-16(7)(v)-1 Functional'!C563","v":"  TOTAL PRODUCTION DEPREC EXP."},null,null,{"$f":"SUM(F562:F562)","v":0},{"$f":"SUM(G562:G562)","v":0},{"$f":"SUM(H562:H562)","v":0},{"$f":"SUM(I562:I562)","v":0},{"$f":"SUM(J562:J562)","v":0},0,0,0,0,0,0,{"$f":"SUM(Q562:Q562)","v":0},{"$f":"SUM(R562:R562)","v":0},{"$f":"SUM(S562:S562)","v":0}]
[4]
[5,"TRANSMISSION DEPRECIATION"]
[6,null,"TRANSMISSION DEPRECIATION",{"$f":"'FR-16(7)(v)-1 Functional'!D566","v":"T229"},null,{"$f":"'FR-16(7)(v)-6 TRANS Classified'!I566","v":0},{"$f":"F566-SUM(H566:Q566)","v":0},{"$f":"ROUND(F566*VLOOKUP(D566,ALLOCTABLE_Trans_Customer,$H$10,FALSE),0)","v":0},{"$f":"ROUND(F566*VLOOKUP(D566,ALLOCTABLE_Trans_Customer,$I$10,FALSE),0)","v":0},{"$f":"ROUND(F566*VLOOKUP(D566,ALLOCTABLE_Trans_Customer,$J$10,FALSE),0)","v":0},{"$f":"ROUND(F566*VLOOKUP(D566,ALLOCTABLE_Trans_Customer,$K$10,FALSE),0)","v":0},{"$f":"ROUND(F566*VLOOKUP(D566,ALLOCTABLE_Trans_Customer,$L$10,FALSE),0)","v":0},{"$f":"ROUND(F566*VLOOKUP(D566,ALLOCTABLE_Trans_Customer,$M$10,FALSE),0)","v":0},{"$f":"ROUND(F566*VLOOKUP(D566,ALLOCTABLE_Trans_Customer,$N$10,FALSE),0)","v":0},{"$f":"ROUND(F566*VLOOKUP(D566,ALLOCTABLE_Trans_Customer,$O$10,FALSE),0)","v":0},{"$f":"ROUND(F566*VLOOKUP(D566,ALLOCTABLE_Trans_Customer,$P$10,FALSE),0)","v":0},{"$f":"ROUND(F566*VLOOKUP(D566,ALLOCTABLE_Trans_Customer,$Q$10,FALSE),0)","v":0},{"$f":"SUM(G566:Q566)","v":0},{"$f":"F566-R566","v":0}]
[7,null,{"$f":"'FR-16(7)(v)-1 Functional'!C567","v":"  TOTAL TRANSMISSION DEP. EXP."},null,null,{"$f":"SUM(F566:F566)","v":0},{"$f":"SUM(G566:G566)","v":0},{"$f":"SUM(H566:H566)","v":0},{"$f":"SUM(I566:I566)","v":0},{"$f":"SUM(J566:J566)","v":0},0,0,0,0,0,0,{"$f":"SUM(Q566:Q566)","v":0},{"$f":"SUM(R566:R566)","v":0},{"$f":"SUM(S566:S566)","v":0}]
[8]
[9,"DISTRIBUTION DEPRECIATION"]
[10,null,{"$f":"'FR-16(7)(v)-1 Functional'!C570","v":"DISTRIBUTION DEPRECIATION"},{"$f":"'FR-16(7)(v)-1 Functional'!D570","v":"D249"},null,{"$f":"'FR-16(7)(v)-6 TRANS Classified'!I570","v":138},{"$f":"F570-SUM(H570:Q570)","v":112},{"$f":"ROUND(F570*VLOOKUP(D570,ALLOCTABLE_Trans_Customer,$H$10,FALSE),0)","v":25},{"$f":"ROUND(F570*VLOOKUP(D570,ALLOCTABLE_Trans_Customer,$I$10,FALSE),0)","v":0},{"$f":"ROUND(F570*VLOOKUP(D570,ALLOCTABLE_Trans_Customer,$J$10,FALSE),0)","v":0},{"$f":"ROUND(F570*VLOOKUP(D570,ALLOCTABLE_Trans_Customer,$K$10,FALSE),0)","v":0},{"$f":"ROUND(F570*VLOOKUP(D570,ALLOCTABLE_Trans_Customer,$L$10,FALSE),0)","v":1},{"$f":"ROUND(F570*VLOOKUP(D570,ALLOCTABLE_Trans_Customer,$M$10,FALSE),0)","v":0},{"$f":"ROUND(F570*VLOOKUP(D570,ALLOCTABLE_Trans_Customer,$N$10,FALSE),0)","v":0},{"$f":"ROUND(F570*VLOOKUP(D570,ALLOCTABLE_Trans_Customer,$O$10,FALSE),0)","v":0},{"$f":"ROUND(F570*VLOOKUP(D570,ALLOCTABLE_Trans_Customer,$P$10,FALSE),0)","v":0},{"$f":"ROUND(F570*VLOOKUP(D570,ALLOCTABLE_Trans_Customer,$Q$10,FALSE),0)","v":0},{"$f":"SUM(G570:Q570)","v":138},{"$f":"F570-R570","v":0}]
[11,null,{"$f":"'FR-16(7)(v)-1 Functional'!C571","v":"  TOTAL DIST. DEPREC EXP."},null,null,{"$f":"SUM(F570:F570)","v":138},{"$f":"SUM(G570:G570)","v":112},{"$f":"SUM(H570:H570)","v":25},{"$f":"SUM(I570:I570)","v":0},{"$f":"SUM(J570:J570)","v":0},0,1,0,0,0,0,{"$f":"SUM(Q570:Q570)","v":0},{"$f":"SUM(R570:R570)","v":138},{"$f":"SUM(S570:S570)","v":0}]
[12,null,null,null,null," "]
[13,"GENERAL DEPRECIATION"]
[14,null,{"$f":"'FR-16(7)(v)-1 Functional'!C574","v":"GENERAL DEPRECIATION"},{"$f":"'FR-16(7)(v)-1 Functional'!D574","v":"G229"},null,{"$f":"'FR-16(7)(v)-6 TRANS Classified'!I574","v":-200},{"$f":"F574-SUM(H574:Q574)","v":-184},{"$f":"ROUND(F574*VLOOKUP(D574,ALLOCTABLE_Trans_Customer,$H$10,FALSE),0)","v":-6},{"$f":"ROUND(F574*VLOOKUP(D574,ALLOCTABLE_Trans_Customer,$I$10,FALSE),0)","v":0},{"$f":"ROUND(F574*VLOOKUP(D574,ALLOCTABLE_Trans_Customer,$J$10,FALSE),0)","v":0},{"$f":"ROUND(F574*VLOOKUP(D574,ALLOCTABLE_Trans_Customer,$K$10,FALSE),0)","v":0},{"$f":"ROUND(F574*VLOOKUP(D574,ALLOCTABLE_Trans_Customer,$L$10,FALSE),0)","v":-5},{"$f":"ROUND(F574*VLOOKUP(D574,ALLOCTABLE_Trans_Customer,$M$10,FALSE),0)","v":-3},{"$f":"ROUND(F574*VLOOKUP(D574,ALLOCTABLE_Trans_Customer,$N$10,FALSE),0)","v":0},{"$f":"ROUND(F574*VLOOKUP(D574,ALLOCTABLE_Trans_Customer,$O$10,FALSE),0)","v":-2},{"$f":"ROUND(F574*VLOOKUP(D574,ALLOCTABLE_Trans_Customer,$P$10,FALSE),0)","v":0},{"$f":"ROUND(F574*VLOOKUP(D574,ALLOCTABLE_Trans_Customer,$Q$10,FALSE),0)","v":0},{"$f":"SUM(G574:Q574)","v":-200},{"$f":"F574-R574","v":0}]
[15,null,{"$f":"'FR-16(7)(v)-1 Functional'!C575","v":"  TOTAL GENERAL DEPREC EXP."},null,null,{"$f":"SUM(F574:F574)","v":-200},{"$f":"SUM(G574:G574)","v":-184},{"$f":"SUM(H574:H574)","v":-6},{"$f":"SUM(I574:I574)","v":0},{"$f":"SUM(J574:J574)","v":0},0,-5,-3,0,-2,0,{"$f":"SUM(Q574:Q574)","v":0},{"$f":"SUM(R574:R574)","v":-200},{"$f":"SUM(S574:S574)","v":0}]
[16]
[17,"COMMON AND OTHER DEPRECIATION"]
[18,null,{"$f":"'FR-16(7)(v)-1 Functional'!C578","v":"COMMON DEPRECIATION"},{"$f":"'FR-16(7)(v)-1 Functional'!D578","v":"C229"},null,{"$f":"'FR-16(7)(v)-6 TRANS Classified'!I578","v":-1},{"$f":"F578-SUM(H578:Q578)","v":-1},{"$f":"ROUND(F578*VLOOKUP(D578,ALLOCTABLE_Trans_Customer,$H$10,FALSE),0)","v":0},{"$f":"ROUND(F578*VLOOKUP(D578,ALLOCTABLE_Trans_Customer,$I$10,FALSE),0)","v":0},{"$f":"ROUND(F578*VLOOKUP(D578,ALLOCTABLE_Trans_Customer,$J$10,FALSE),0)","v":0},{"$f":"ROUND(F578*VLOOKUP(D578,ALLOCTABLE_Trans_Customer,$K$10,FALSE),0)","v":0},{"$f":"ROUND(F578*VLOOKUP(D578,ALLOCTABLE_Trans_Customer,$L$10,FALSE),0)","v":0},{"$f":"ROUND(F578*VLOOKUP(D578,ALLOCTABLE_Trans_Customer,$M$10,FALSE),0)","v":0},{"$f":"ROUND(F578*VLOOKUP(D578,ALLOCTABLE_Trans_Customer,$N$10,FALSE),0)","v":0},{"$f":"ROUND(F578*VLOOKUP(D578,ALLOCTABLE_Trans_Customer,$O$10,FALSE),0)","v":0},{"$f":"ROUND(F578*VLOOKUP(D578,ALLOCTABLE_Trans_Customer,$P$10,FALSE),0)","v":0},{"$f":"ROUND(F578*VLOOKUP(D578,ALLOCTABLE_Trans_Customer,$Q$10,FALSE),0)","v":0},{"$f":"SUM(G578:Q578)","v":-1},{"$f":"F578-R578","v":0}]
[19,null,{"$f":"'FR-16(7)(v)-1 Functional'!C579","v":"  TOTAL COM & OTHER DEPREC EXP."},null,null,{"$f":"SUM(F578:F578)","v":-1},{"$f":"SUM(G578:G578)","v":-1},{"$f":"SUM(H578:H578)","v":0},{"$f":"SUM(I578:I578)","v":0},{"$f":"SUM(J578:J578)","v":0},0,0,0,0,0,0,{"$f":"SUM(Q578:Q578)","v":0},{"$f":"SUM(R578:R578)","v":-1},{"$f":"SUM(S578:S578)","v":0}]
[20]
[21]
[22,"TOTAL DEPRECIATION EXPENSE",null,null," ",{"$f":"F579+F575+F571+F567+F563","v":-63},{"$f":"G579+G575+G571+G567+G563","v":-73},{"$f":"H579+H575+H571+H567+H563","v":19},{"$f":"I579+I575+I571+I567+I563","v":0},{"$f":"J579+J575+J571+J567+J563","v":0},0,-4,-3,0,-2,0,{"$f":"Q579+Q575+Q571+Q567+Q563","v":0},{"$f":"R579+R575+R571+R567+R563","v":-63},{"$f":"S579+S575+S571+S567+S563","v":0}]
[]
[{"$f":"co_name","v":"DUKE ENERGY KENTUCKY, INC."},null,null,null,null,null,null,null,null,null,null,null,null,null,null,null,null,{"$f":"R1","v":"FR-16(7)(v)-9"}]
[{"$f":"$A$2","v":"TRANSMISSION CUSTOMER ALLOCATED - ELECTRIC COST OF SERVICE"},null,null,null,null,null,null,null,null,null,null,null,null,null,null,null,null,{"$f":"R2","v":"WITNESS RESPONSIBLE:"}]
[{"$f":"case_name","v":"CASE NO: 2019-00271"},null,null,null,null,null,null,null,null,null,null,null,null,null,null,null,null,{"$f":"Witness","v":"JAMES E. ZIOLKOWSKI"}]
[{"$f":"data_filing","v":"DATA: 12 MONTHS ACTUAL  & 0 MONTHS ESTIMATED"},null,null,null,null,null,null,null,null,null,null,null,null,null,null,null,null,{"$f":"\"PAGE \"&Pages-7&\" OF \"&Pages","v":"PAGE 11 OF 18"}]
[{"$f":"type","v":"TYPE OF FILING: \"X\" ORIGINAL   UPDATED    REVISED  "}]
[]
[null,null,null,null,null,{"$f":"F$7","v":"TOTAL"},null,{"$f":"H$7","v":"DS"},{"$f":"I$7","v":"GSFL"},{"$f":"J$7","v":"EH"},{"$f":"K$7","v":"SP"},"DT SEC","DT PRI","DP","TT",null,"OTHER"]
["LINE",null,null,null,null,{"$f":"F$8","v":"TRANSMISSION"},{"$f":"G$8","v":"RS"},{"$f":"H$8","v":"SECONDARY"},{"$f":"I$8","v":"SECONDARY"},{"$f":"J$8","v":"SECONDARY"},{"$f":"K$8","v":"SECONDARY"},"SECONDARY","PRIMARY","PRIMARY","TRANSMISSION","LT","WATER",{"$f":"R8","v":"TOTAL"},"ALL"]
["NO.","OTHER TAXES & MISC EXPENSES",null,"ALLO",null,{"$f":"F$9","v":"CUSTOMER"},{"$f":"G$9","v":"RESIDENTIAL"},{"$f":"H$9","v":"DISTRIBUTION"},{"$f":"I$9","v":"DISTRIBUTION"},{"$f":"J$9","v":"DISTRIBUTION"},{"$f":"K$9","v":"DISTRIBUTION"},"DISTRIBUTION","DISTRIBUTION","DISTRIBUTION","TIME OF DAY","LIGHTING","PUMPING",{"$f":"R9","v":"AT ISSUE"},"OTHER"]
[null,null,"Schedule 8",null,null,null,{"$f":"G$10","v":3},{"$f":"H$10","v":4},{"$f":"I$10","v":5},{"$f":"J$10","v":6},{"$f":"K$10","v":7},8,9,10,11,12,13,null," "]
[1,"TAXES OTHER THAN INC & REV"]
[2," REAL ESTATE & PROPERTY TAX"]
[3,null,{"$f":"'FR-16(7)(v)-1 Functional'!C596","v":"REAL ESTATE & PROPERTY TAX"},{"$f":"'FR-16(7)(v)-1 Functional'!D596","v":"NP29"},null,{"$f":"'FR-16(7)(v)-6 TRANS Classified'!I596","v":39},{"$f":"F596-SUM(H596:Q596)","v":29},{"$f":"ROUND(F596*VLOOKUP(D596,ALLOCTABLE_Trans_Customer,$H$10,FALSE),0)","v":10},{"$f":"ROUND(F596*VLOOKUP(D596,ALLOCTABLE_Trans_Customer,$I$10,FALSE),0)","v":0},{"$f":"ROUND(F596*VLOOKUP(D596,ALLOCTABLE_Trans_Customer,$J$10,FALSE),0)","v":0},{"$f":"ROUND(F596*VLOOKUP(D596,ALLOCTABLE_Trans_Customer,$K$10,FALSE),0)","v":0},{"$f":"ROUND(F596*VLOOKUP(D596,ALLOCTABLE_Trans_Customer,$L$10,FALSE),0)","v":0},{"$f":"ROUND(F596*VLOOKUP(D596,ALLOCTABLE_Trans_Customer,$M$10,FALSE),0)","v":0},{"$f":"ROUND(F596*VLOOKUP(D596,ALLOCTABLE_Trans_Customer,$N$10,FALSE),0)","v":0},{"$f":"ROUND(F596*VLOOKUP(D596,ALLOCTABLE_Trans_Customer,$O$10,FALSE),0)","v":0},{"$f":"ROUND(F596*VLOOKUP(D596,ALLOCTABLE_Trans_Customer,$P$10,FALSE),0)","v":0},{"$f":"ROUND(F596*VLOOKUP(D596,ALLOCTABLE_Trans_Customer,$Q$10,FALSE),0)","v":0},{"$f":"SUM(G596:Q596)","v":39},{"$f":"F596-R596","v":0}]
[4,null,{"$f":"'FR-16(7)(v)-1 Functional'!C597","v":"ANNUALIZE PROPERTY TAX"},{"$f":"'FR-16(7)(v)-1 Functional'!D597","v":"NP29"}," ",{"$f":"'FR-16(7)(v)-6 TRANS Classified'!I597","v":0},{"$f":"F597-SUM(H597:Q597)","v":0},{"$f":"ROUND(F597*VLOOKUP(D597,ALLOCTABLE_Trans_Customer,$H$10,FALSE),0)","v":0},{"$f":"ROUND(F597*VLOOKUP(D597,ALLOCTABLE_Trans_Customer,$I$10,FALSE),0)","v":0},{"$f":"ROUND(F597*VLOOKUP(D597,ALLOCTABLE_Trans_Customer,$J$10,FALSE),0)","v":0},{"$f":"ROUND(F597*VLOOKUP(D597,ALLOCTABLE_Trans_Customer,$K$10,FALSE),0)","v":0},{"$f":"ROUND(F597*VLOOKUP(D597,ALLOCTABLE_Trans_Customer,$L$10,FALSE),0)","v":0},{"$f":"ROUND(F597*VLOOKUP(D597,ALLOCTABLE_Trans_Customer,$M$10,FALSE),0)","v":0},{"$f":"ROUND(F597*VLOOKUP(D597,ALLOCTABLE_Trans_Customer,$N$10,FALSE),0)","v":0},{"$f":"ROUND(F597*VLOOKUP(D597,ALLOCTABLE_Trans_Customer,$O$10,FALSE),0)","v":0},{"$f":"ROUND(F597*VLOOKUP(D597,ALLOCTABLE_Trans_Customer,$P$10,FALSE),0)","v":0},{"$f":"ROUND(F597*VLOOKUP(D597,ALLOCTABLE_Trans_Customer,$Q$10,FALSE),0)","v":0},{"$f":"SUM(G597:Q597)","v":0},{"$f":"F597-R597","v":0}]
[5,null,{"$f":"'FR-16(7)(v)-1 Functional'!C598","v":"  TOTAL REAL ESTATE & PROPERTY TAX"},null,null,{"$f":"SUM(F596:F597)","v":39},{"$f":"SUM(G596:G597)","v":29},{"$f":"SUM(H596:H597)","v":10},{"$f":"SUM(I596:I597)","v":0},{"$f":"SUM(J596:J597)","v":0},0,0,0,0,0,0,{"$f":"SUM($Q$596:$Q$597)","v":0},{"$f":"SUM(R596:R597)","v":39},{"$f":"SUM(S596:S597)","v":0}]
[6]
[7," MISCELLANEOUS TAXES"]
[8,null,{"$f":"'FR-16(7)(v)-1 Functional'!C601","v":"PAYROLL "},{"$f":"'FR-16(7)(v)-1 Functional'!D601","v":"A315"},null,{"$f":"'FR-16(7)(v)-6 TRANS Classified'!I601","v":-67},{"$f":"F601-SUM(H601:Q601)","v":-61},{"$f":"ROUND(F601*VLOOKUP(D601,ALLOCTABLE_Trans_Customer,$H$10,FALSE),0)","v":-2},{"$f":"ROUND(F601*VLOOKUP(D601,ALLOCTABLE_Trans_Customer,$I$10,FALSE),0)","v":0},{"$f":"ROUND(F601*VLOOKUP(D601,ALLOCTABLE_Trans_Customer,$J$10,FALSE),0)","v":0},{"$f":"ROUND(F601*VLOOKUP(D601,ALLOCTABLE_Trans_Customer,$K$10,FALSE),0)","v":0},{"$f":"ROUND(F601*VLOOKUP(D601,ALLOCTABLE_Trans_Customer,$L$10,FALSE),0)","v":-2},{"$f":"ROUND(F601*VLOOKUP(D601,ALLOCTABLE_Trans_Customer,$M$10,FALSE),0)","v":-1},{"$f":"ROUND(F601*VLOOKUP(D601,ALLOCTABLE_Trans_Customer,$N$10,FALSE),0)","v":0},{"$f":"ROUND(F601*VLOOKUP(D601,ALLOCTABLE_Trans_Customer,$O$10,FALSE),0)","v":-1},{"$f":"ROUND(F601*VLOOKUP(D601,ALLOCTABLE_Trans_Customer,$P$10,FALSE),0)","v":0},{"$f":"ROUND(F601*VLOOKUP(D601,ALLOCTABLE_Trans_Customer,$Q$10,FALSE),0)","v":0},{"$f":"SUM(G601:Q601)","v":-67},{"$f":"F601-R601","v":0}]
[9,null,{"$f":"'FR-16(7)(v)-1 Functional'!C602","v":"ELIMINATE DSM "},{"$f":"'FR-16(7)(v)-1 Functional'!D602","v":"A315"},null,{"$f":"'FR-16(7)(v)-6 TRANS Classified'!I602","v":1},{"$f":"F602-SUM(H602:Q602)","v":1},{"$f":"ROUND(F602*VLOOKUP(D602,ALLOCTABLE_Trans_Customer,$H$10,FALSE),0)","v":0},{"$f":"ROUND(F602*VLOOKUP(D602,ALLOCTABLE_Trans_Customer,$I$10,FALSE),0)","v":0},{"$f":"ROUND(F602*VLOOKUP(D602,ALLOCTABLE_Trans_Customer,$J$10,FALSE),0)","v":0},{"$f":"ROUND(F602*VLOOKUP(D602,ALLOCTABLE_Trans_Customer,$K$10,FALSE),0)","v":0},{"$f":"ROUND(F602*VLOOKUP(D602,ALLOCTABLE_Trans_Customer,$L$10,FALSE),0)","v":0},{"$f":"ROUND(F602*VLOOKUP(D602,ALLOCTABLE_Trans_Customer,$M$10,FALSE),0)","v":0},{"$f":"ROUND(F602*VLOOKUP(D602,ALLOCTABLE_Trans_Customer,$N$10,FALSE),0)","v":0},{"$f":"ROUND(F602*VLOOKUP(D602,ALLOCTABLE_Trans_Customer,$O$10,FALSE),0)","v":0},{"$f":"ROUND(F602*VLOOKUP(D602,ALLOCTABLE_Trans_Customer,$P$10,FALSE),0)","v":0},{"$f":"ROUND(F602*VLOOKUP(D602,ALLOCTABLE_Trans_Customer,$Q$10,FALSE),0)","v":0},{"$f":"SUM(G602:Q602)","v":1},{"$f":"F602-R602","v":0}]
[10,null,{"$f":"'FR-16(7)(v)-1 Functional'!C603","v":"FRANCHISE & LICENSE"},{"$f":"'FR-16(7)(v)-1 Functional'!D603","v":"A315"},null,{"$f":"'FR-16(7)(v)-6 TRANS Classified'!I603","v":0},{"$f":"F603-SUM(H603:Q603)","v":0},{"$f":"ROUND(F603*VLOOKUP(D603,ALLOCTABLE_Trans_Customer,$H$10,FALSE),0)","v":0},{"$f":"ROUND(F603*VLOOKUP(D603,ALLOCTABLE_Trans_Customer,$I$10,FALSE),0)","v":0},{"$f":"ROUND(F603*VLOOKUP(D603,ALLOCTABLE_Trans_Customer,$J$10,FALSE),0)","v":0},{"$f":"ROUND(F603*VLOOKUP(D603,ALLOCTABLE_Trans_Customer,$K$10,FALSE),0)","v":0},{"$f":"ROUND(F603*VLOOKUP(D603,ALLOCTABLE_Trans_Customer,$L$10,FALSE),0)","v":0},{"$f":"ROUND(F603*VLOOKUP(D603,ALLOCTABLE_Trans_Customer,$M$10,FALSE),0)","v":0},{"$f":"ROUND(F603*VLOOKUP(D603,ALLOCTABLE_Trans_Customer,$N$10,FALSE),0)","v":0},{"$f":"ROUND(F603*VLOOKUP(D603,ALLOCTABLE_Trans_Customer,$O$10,FALSE),0)","v":0},{"$f":"ROUND(F603*VLOOKUP(D603,ALLOCTABLE_Trans_Customer,$P$10,FALSE),0)","v":0},{"$f":"ROUND(F603*VLOOKUP(D603,ALLOCTABLE_Trans_Customer,$Q$10,FALSE),0)","v":0},{"$f":"SUM(G603:Q603)","v":0},{"$f":"F603-R603","v":0}]
[11,null,{"$f":"'FR-16(7)(v)-1 Functional'!C604","v":"ELIMINATE ESM"},{"$f":"'FR-16(7)(v)-1 Functional'!D604","v":"A315"},null,{"$f":"'FR-16(7)(v)-6 TRANS Classified'!I604","v":35},{"$f":"F604-SUM(H604:Q604)","v":32},{"$f":"ROUND(F604*VLOOKUP(D604,ALLOCTABLE_Trans_Customer,$H$10,FALSE),0)","v":1},{"$f":"ROUND(F604*VLOOKUP(D604,ALLOCTABLE_Trans_Customer,$I$10,FALSE),0)","v":0},{"$f":"ROUND(F604*VLOOKUP(D604,ALLOCTABLE_Trans_Customer,$J$10,FALSE),0)","v":0},{"$f":"ROUND(F604*VLOOKUP(D604,ALLOCTABLE_Trans_Customer,$K$10,FALSE),0)","v":0},{"$f":"ROUND(F604*VLOOKUP(D604,ALLOCTABLE_Trans_Customer,$L$10,FALSE),0)","v":1},{"$f":"ROUND(F604*VLOOKUP(D604,ALLOCTABLE_Trans_Customer,$M$10,FALSE),0)","v":1},{"$f":"ROUND(F604*VLOOKUP(D604,ALLOCTABLE_Trans_Customer,$N$10,FALSE),0)","v":0},{"$f":"ROUND(F604*VLOOKUP(D604,ALLOCTABLE_Trans_Customer,$O$10,FALSE),0)","v":0},{"$f":"ROUND(F604*VLOOKUP(D604,ALLOCTABLE_Trans_Customer,$P$10,FALSE),0)","v":0},{"$f":"ROUND(F604*VLOOKUP(D604,ALLOCTABLE_Trans_Customer,$Q$10,FALSE),0)","v":0},{"$f":"SUM(G604:Q604)","v":35},{"$f":"F604-R604","v":0}]
[12,null,{"$f":"'FR-16(7)(v)-1 Functional'!C605","v":"  TOTAL MISCELLANEOUS TAXES"},null,null,{"$f":"SUM(F601:F604)","v":-31},{"$f":"SUM(G601:G604)","v":-28},{"$f":"SUM(H601:H604)","v":-1},{"$f":"SUM(I601:I604)","v":0},{"$f":"SUM(J601:J604)","v":0},0,-1,0,0,-1,0,{"$f":"SUM($Q$601:$Q$604)","v":0},{"$f":"SUM(R601:R604)","v":-31},{"$f":"SUM(S601:S604)","v":0}]
[13]
[14," MISCELLANEOUS EXPENSES"]
[15,null,{"$f":"'FR-16(7)(v)-1 Functional'!C608","v":"PSC MAINT. EXP ON INCREASE"},{"$f":"'FR-16(7)(v)-1 Functional'!D608","v":"K902"},null,{"$f":"'FR-16(7)(v)-6 TRANS Classified'!I608","v":-3},{"$f":"F608-SUM(H608:Q608)","v":-2},{"$f":"ROUND(F608*VLOOKUP(D608,ALLOCTABLE_Trans_Customer,$H$10,FALSE),0)","v":-1},{"$f":"ROUND(F608*VLOOKUP(D608,ALLOCTABLE_Trans_Customer,$I$10,FALSE),0)","v":0},{"$f":"ROUND(F608*VLOOKUP(D608,ALLOCTABLE_Trans_Customer,$J$10,FALSE),0)","v":0},{"$f":"ROUND(F608*VLOOKUP(D608,ALLOCTABLE_Trans_Customer,$K$10,FALSE),0)","v":0},{"$f":"ROUND(F608*VLOOKUP(D608,ALLOCTABLE_Trans_Customer,$L$10,FALSE),0)","v":0},{"$f":"ROUND(F608*VLOOKUP(D608,ALLOCTABLE_Trans_Customer,$M$10,FALSE),0)","v":0},{"$f":"ROUND(F608*VLOOKUP(D608,ALLOCTABLE_Trans_Customer,$N$10,FALSE),0)","v":0},{"$f":"ROUND(F608*VLOOKUP(D608,ALLOCTABLE_Trans_Customer,$O$10,FALSE),0)","v":0},{"$f":"ROUND(F608*VLOOKUP(D608,ALLOCTABLE_Trans_Customer,$P$10,FALSE),0)","v":0},{"$f":"ROUND(F608*VLOOKUP(D608,ALLOCTABLE_Trans_Customer,$Q$10,FALSE),0)","v":0},{"$f":"SUM(G608:Q608)","v":-3},{"$f":"F608-R608","v":0}]
[16,null,{"$f":"'FR-16(7)(v)-1 Functional'!C609","v":"RESERVED FOR FUTURE USE"},{"$f":"'FR-16(7)(v)-1 Functional'!D609","v":"K902"},null,{"$f":"'FR-16(7)(v)-6 TRANS Classified'!I609","v":0},{"$f":"F609-SUM(H609:Q609)","v":0},{"$f":"ROUND(F609*VLOOKUP(D609,ALLOCTABLE_Trans_Customer,$H$10,FALSE),0)","v":0},{"$f":"ROUND(F609*VLOOKUP(D609,ALLOCTABLE_Trans_Customer,$I$10,FALSE),0)","v":0},{"$f":"ROUND(F609*VLOOKUP(D609,ALLOCTABLE_Trans_Customer,$J$10,FALSE),0)","v":0},{"$f":"ROUND(F609*VLOOKUP(D609,ALLOCTABLE_Trans_Customer,$K$10,FALSE),0)","v":0},{"$f":"ROUND(F609*VLOOKUP(D609,ALLOCTABLE_Trans_Customer,$L$10,FALSE),0)","v":0},{"$f":"ROUND(F609*VLOOKUP(D609,ALLOCTABLE_Trans_Customer,$M$10,FALSE),0)","v":0},{"$f":"ROUND(F609*VLOOKUP(D609,ALLOCTABLE_Trans_Customer,$N$10,FALSE),0)","v":0},{"$f":"ROUND(F609*VLOOKUP(D609,ALLOCTABLE_Trans_Customer,$O$10,FALSE),0)","v":0},{"$f":"ROUND(F609*VLOOKUP(D609,ALLOCTABLE_Trans_Customer,$P$10,FALSE),0)","v":0},{"$f":"ROUND(F609*VLOOKUP(D609,ALLOCTABLE_Trans_Customer,$Q$10,FALSE),0)","v":0},{"$f":"SUM(G609:Q609)","v":0},{"$f":"F609-R609","v":0}]
[17,null,{"$f":"'FR-16(7)(v)-1 Functional'!C610","v":"  TOTAL MISCELLANEOUS EXPENSES"},null,null,{"$f":"SUM(F608:F609)","v":-3},{"$f":"SUM(G608:G609)","v":-2},{"$f":"SUM(H608:H609)","v":-1},{"$f":"SUM(I608:I609)","v":0},{"$f":"SUM(J608:J609)","v":0},0,0,0,0,0,0,{"$f":"SUM($Q$608:$Q$609)","v":0},{"$f":"SUM(R608:R609)","v":-3},{"$f":"SUM(S608:S609)","v":0}]
[18]
[19,"TOTAL OTHER TAX & MISC EXPENSE",null,null," ",{"$f":"F605+F598+F610","v":5},{"$f":"G605+G598+G610","v":-1},{"$f":"H605+H598+H610","v":8},{"$f":"I605+I598+I610","v":0},{"$f":"J605+J598+J610","v":0},0,-1,0,0,-1,0,{"$f":"$Q$605+$Q$598+$Q$610","v":0},{"$f":"R605+R598+R610","v":5},{"$f":"S605+S598+S610","v":0}]
[20]
[21,"PRELIMINARY SUMMARY"]
[22,null,{"$f":"'FR-16(7)(v)-1 Functional'!C615","v":"TOTAL O&M EXPENSE"},null,null,{"$f":"F549","v":-1760},{"$f":"G549","v":-1648},{"$f":"H549","v":-13},{"$f":"I549","v":0},{"$f":"J549","v":0},0,-47,-32,-2,-16,-2,{"$f":"Q549","v":0},{"$f":"R549","v":-1760},{"$f":"S549","v":0}]
[23,null,{"$f":"'FR-16(7)(v)-1 Functional'!C616","v":"TOTAL DEPRECIATION EXPENSE"},null,null,{"$f":"F582","v":-63},{"$f":"G582","v":-73},{"$f":"H582","v":19},{"$f":"I582","v":0},{"$f":"J582","v":0},0,-4,-3,0,-2,0,{"$f":"Q582","v":0},{"$f":"R582","v":-63},{"$f":"S582","v":0}]
[24,null,{"$f":"'FR-16(7)(v)-1 Functional'!C617","v":"TOTAL OTHER TAX & MISC EXPENSE"},null,null,{"$f":"F612","v":5},{"$f":"G612","v":-1},{"$f":"H612","v":8},{"$f":"I612","v":0},{"$f":"J612","v":0},0,-1,0,0,-1,0,{"$f":"$Q$612","v":0},{"$f":"R612","v":5},{"$f":"S612","v":0}]
[25,null,{"$f":"'FR-16(7)(v)-1 Functional'!C618","v":"  TOTAL OPER EXP EXCL INCOME & REV TAX"},null,null,{"$f":"SUM(F615:F617)","v":-1818},{"$f":"SUM(G615:G617)","v":-1722},{"$f":"SUM(H615:H617)","v":14},{"$f":"SUM(I615:I617)","v":0},{"$f":"SUM(J615:J617)","v":0},0,-52,-35,-2,-19,-2,{"$f":"SUM($Q$615:$Q$617)","v":0},{"$f":"SUM(R615:R617)","v":-1818},{"$f":"SUM(S615:S617)","v":0}]
[]
[{"$f":"co_name","v":"DUKE ENERGY KENTUCKY, INC."},null,null,null,null,null,null,null,null,null,null,null,null,null,null,null,null,{"$f":"R1","v":"FR-16(7)(v)-9"}]
[{"$f":"$A$2","v":"TRANSMISSION CUSTOMER ALLOCATED - ELECTRIC COST OF SERVICE"},null,null,null,null,null,null,null,null,null,null,null,null,null,null,null,null,{"$f":"R2","v":"WITNESS RESPONSIBLE:"}]
[{"$f":"case_name","v":"CASE NO: 2019-00271"},null,null,null,null,null,null,null,null,null,null,null,null,null,null,null,null,{"$f":"Witness","v":"JAMES E. ZIOLKOWSKI"}]
[{"$f":"data_filing","v":"DATA: 12 MONTHS ACTUAL  & 0 MONTHS ESTIMATED"},null,null,null,null,null,null,null,null,null,null,null,null,null,null,null,null,{"$f":"\"PAGE \"&Pages-6&\" OF \"&Pages","v":"PAGE 12 OF 18"}]
[{"$f":"type","v":"TYPE OF FILING: \"X\" ORIGINAL   UPDATED    REVISED  "}]
[]
[null,null,null,null,null,{"$f":"F$7","v":"TOTAL"},null,{"$f":"H$7","v":"DS"},{"$f":"I$7","v":"GSFL"},{"$f":"J$7","v":"EH"},{"$f":"K$7","v":"SP"},"DT SEC","DT PRI","DP","TT",null,"OTHER"]
["LINE",null,null,null,null,{"$f":"F$8","v":"TRANSMISSION"},{"$f":"G$8","v":"RS"},{"$f":"H$8","v":"SECONDARY"},{"$f":"I$8","v":"SECONDARY"},{"$f":"J$8","v":"SECONDARY"},{"$f":"K$8","v":"SECONDARY"},"SECONDARY","PRIMARY","PRIMARY","TRANSMISSION","LT","WATER",{"$f":"R8","v":"TOTAL"},"ALL"]
["NO.","FEDERAL INCOME TAX BASED ON RETURN",null,"ALLO",null,{"$f":"F$9","v":"CUSTOMER"},{"$f":"G$9","v":"RESIDENTIAL"},{"$f":"H$9","v":"DISTRIBUTION"},{"$f":"I$9","v":"DISTRIBUTION"},{"$f":"J$9","v":"DISTRIBUTION"},{"$f":"K$9","v":"DISTRIBUTION"},"DISTRIBUTION","DISTRIBUTION","DISTRIBUTION","TIME OF DAY","LIGHTING","PUMPING",{"$f":"R9","v":"AT ISSUE"},"OTHER"]
[null,null,"Schedule 9",null,null,null,{"$f":"G$10","v":3},{"$f":"H$10","v":4},{"$f":"I$10","v":5},{"$f":"J$10","v":6},{"$f":"K$10","v":7},8,9,10,11,12,13,null," "]
[1,"FEDERAL INCOME TAX DEDUCTIONS"]
[2," AUTOMATIC INTEREST CALCULATION",null,null,null," "]
[3,null,{"$f":"'FR-16(7)(v)-1 Functional'!C632","v":"AUTO PROC INTEREST DED"},{"$f":"'FR-16(7)(v)-1 Functional'!D632","v":"RB99"},null,{"$f":"'FR-16(7)(v)-6 TRANS Classified'!I632","v":92},{"$f":"F632-SUM(H632:Q632)","v":76},{"$f":"ROUND(F632*VLOOKUP(D632,ALLOCTABLE_Trans_Customer,$H$10,FALSE),0)","v":15},{"$f":"ROUND(F632*VLOOKUP(D632,ALLOCTABLE_Trans_Customer,$I$10,FALSE),0)","v":0},{"$f":"ROUND(F632*VLOOKUP(D632,ALLOCTABLE_Trans_Customer,$J$10,FALSE),0)","v":0},{"$f":"ROUND(F632*VLOOKUP(D632,ALLOCTABLE_Trans_Customer,$K$10,FALSE),0)","v":0},{"$f":"ROUND(F632*VLOOKUP(D632,ALLOCTABLE_Trans_Customer,$L$10,FALSE),0)","v":1},{"$f":"ROUND(F632*VLOOKUP(D632,ALLOCTABLE_Trans_Customer,$M$10,FALSE),0)","v":0},{"$f":"ROUND(F632*VLOOKUP(D632,ALLOCTABLE_Trans_Customer,$N$10,FALSE),0)","v":0},{"$f":"ROUND(F632*VLOOKUP(D632,ALLOCTABLE_Trans_Customer,$O$10,FALSE),0)","v":0},{"$f":"ROUND(F632*VLOOKUP(D632,ALLOCTABLE_Trans_Customer,$P$10,FALSE),0)","v":0},{"$f":"ROUND(F632*VLOOKUP(D632,ALLOCTABLE_Trans_Customer,$Q$10,FALSE),0)","v":0},{"$f":"SUM(G632:Q632)","v":92},{"$f":"F632-R632","v":0}]
[4,null,{"$f":"'FR-16(7)(v)-1 Functional'!C633","v":"  TOTAL INTEREST EXPENSE"},null,null,{"$f":"F632","v":92},{"$f":"G632","v":76},{"$f":"H632","v":15},{"$f":"I632","v":0},{"$f":"J632","v":0},0,1,0,0,0,0,{"$f":"$Q$632","v":0},{"$f":"R632","v":92},{"$f":"S632","v":0}]
[5]
[6," OTHER DEDUCTIONS"]
[7,null,{"$f":"'FR-16(7)(v)-1 Functional'!C636","v":"DEPREC EXCESS TAX-BOOK"},{"$f":"'FR-16(7)(v)-1 Functional'!D636","v":"DE49"},null,{"$f":"'FR-16(7)(v)-6 TRANS Classified'!I636","v":16},{"$f":"F636-SUM(H636:Q636)","v":18},{"$f":"ROUND(F636*VLOOKUP(D636,ALLOCTABLE_Trans_Customer,$H$10,FALSE),0)","v":-5},{"$f":"ROUND(F636*VLOOKUP(D636,ALLOCTABLE_Trans_Customer,$I$10,FALSE),0)","v":0},{"$f":"ROUND(F636*VLOOKUP(D636,ALLOCTABLE_Trans_Customer,$J$10,FALSE),0)","v":0},{"$f":"ROUND(F636*VLOOKUP(D636,ALLOCTABLE_Trans_Customer,$K$10,FALSE),0)","v":0},{"$f":"ROUND(F636*VLOOKUP(D636,ALLOCTABLE_Trans_Customer,$L$10,FALSE),0)","v":1},{"$f":"ROUND(F636*VLOOKUP(D636,ALLOCTABLE_Trans_Customer,$M$10,FALSE),0)","v":1},{"$f":"ROUND(F636*VLOOKUP(D636,ALLOCTABLE_Trans_Customer,$N$10,FALSE),0)","v":0},{"$f":"ROUND(F636*VLOOKUP(D636,ALLOCTABLE_Trans_Customer,$O$10,FALSE),0)","v":1},{"$f":"ROUND(F636*VLOOKUP(D636,ALLOCTABLE_Trans_Customer,$P$10,FALSE),0)","v":0},{"$f":"ROUND(F636*VLOOKUP(D636,ALLOCTABLE_Trans_Customer,$Q$10,FALSE),0)","v":0},{"$f":"SUM(G636:Q636)","v":16},{"$f":"F636-R636","v":0}]
[8,null,{"$f":"'FR-16(7)(v)-1 Functional'!C637","v":"PERMANENT DIFFERENCES"},{"$f":"'FR-16(7)(v)-1 Functional'!D637","v":"A357"},null,{"$f":"'FR-16(7)(v)-6 TRANS Classified'!I637","v":15},{"$f":"F637-SUM(H637:Q637)","v":15},{"$f":"ROUND(F637*VLOOKUP(D637,ALLOCTABLE_Trans_Customer,$H$10,FALSE),0)","v":0},{"$f":"ROUND(F637*VLOOKUP(D637,ALLOCTABLE_Trans_Customer,$I$10,FALSE),0)","v":0},{"$f":"ROUND(F637*VLOOKUP(D637,ALLOCTABLE_Trans_Customer,$J$10,FALSE),0)","v":0},{"$f":"ROUND(F637*VLOOKUP(D637,ALLOCTABLE_Trans_Customer,$K$10,FALSE),0)","v":0},{"$f":"ROUND(F637*VLOOKUP(D637,ALLOCTABLE_Trans_Customer,$L$10,FALSE),0)","v":0},{"$f":"ROUND(F637*VLOOKUP(D637,ALLOCTABLE_Trans_Customer,$M$10,FALSE),0)","v":0},{"$f":"ROUND(F637*VLOOKUP(D637,ALLOCTABLE_Trans_Customer,$N$10,FALSE),0)","v":0},{"$f":"ROUND(F637*VLOOKUP(D637,ALLOCTABLE_Trans_Customer,$O$10,FALSE),0)","v":0},{"$f":"ROUND(F637*VLOOKUP(D637,ALLOCTABLE_Trans_Customer,$P$10,FALSE),0)","v":0},{"$f":"ROUND(F637*VLOOKUP(D637,ALLOCTABLE_Trans_Customer,$Q$10,FALSE),0)","v":0},{"$f":"SUM(G637:Q637)","v":15},{"$f":"F637-R637","v":0}]
[9,null,{"$f":"'FR-16(7)(v)-1 Functional'!C638","v":"TEMPORARY DIFFERENCES"},{"$f":"'FR-16(7)(v)-1 Functional'!D638","v":"DE49"},null,{"$f":"'FR-16(7)(v)-6 TRANS Classified'!I638","v":-100},{"$f":"F638-SUM(H638:Q638)","v":-116},{"$f":"ROUND(F638*VLOOKUP(D638,ALLOCTABLE_Trans_Customer,$H$10,FALSE),0)","v":30},{"$f":"ROUND(F638*VLOOKUP(D638,ALLOCTABLE_Trans_Customer,$I$10,FALSE),0)","v":0},{"$f":"ROUND(F638*VLOOKUP(D638,ALLOCTABLE_Trans_Customer,$J$10,FALSE),0)","v":0},{"$f":"ROUND(F638*VLOOKUP(D638,ALLOCTABLE_Trans_Customer,$K$10,FALSE),0)","v":0},{"$f":"ROUND(F638*VLOOKUP(D638,ALLOCTABLE_Trans_Customer,$L$10,FALSE),0)","v":-6},{"$f":"ROUND(F638*VLOOKUP(D638,ALLOCTABLE_Trans_Customer,$M$10,FALSE),0)","v":-5},{"$f":"ROUND(F638*VLOOKUP(D638,ALLOCTABLE_Trans_Customer,$N$10,FALSE),0)","v":0},{"$f":"ROUND(F638*VLOOKUP(D638,ALLOCTABLE_Trans_Customer,$O$10,FALSE),0)","v":-3},{"$f":"ROUND(F638*VLOOKUP(D638,ALLOCTABLE_Trans_Customer,$P$10,FALSE),0)","v":0},{"$f":"ROUND(F638*VLOOKUP(D638,ALLOCTABLE_Trans_Customer,$Q$10,FALSE),0)","v":0},{"$f":"SUM(G638:Q638)","v":-100},{"$f":"F638-R638","v":0}]
[10,null,{"$f":"'FR-16(7)(v)-1 Functional'!C639","v":"  TOTAL OTHER DEDUCTIONS"},null,null,{"$f":"SUM(F636:F638)","v":-69},{"$f":"SUM(G636:G638)","v":-83},{"$f":"SUM(H636:H638)","v":25},{"$f":"SUM(I636:I638)","v":0},{"$f":"SUM(J636:J638)","v":0},0,-5,-4,0,-2,0,{"$f":"SUM($Q$636:$Q$638)","v":0},{"$f":"SUM(R636:R638)","v":-69},{"$f":"SUM(S636:S638)","v":0}]
[11]
[12,"NET DEDUCTIONS AND ADDITIONS",null,null,null,{"$f":"F639+F633","v":23},{"$f":"G639+G633","v":-7},{"$f":"H639+H633","v":40},{"$f":"I639+I633","v":0},{"$f":"J639+J633","v":0},0,-4,-4,0,-2,0,{"$f":"$Q$639+$Q$633","v":0},{"$f":"R639+R633","v":23},{"$f":"S639+S633","v":0}]
[13]
[14," FED DEFERRED INCOME TAX (410 & 411)"]
[15,null,{"$f":"'FR-16(7)(v)-1 Functional'!C644","v":"DEFERRED INCOME TAXES - NET"},{"$f":"'FR-16(7)(v)-1 Functional'!D644","v":"OM39"},null,{"$f":"'FR-16(7)(v)-6 TRANS Classified'!I644","v":-121},{"$f":"F644-SUM(H644:Q644)","v":-114},{"$f":"ROUND(F644*VLOOKUP(D644,ALLOCTABLE_Trans_Customer,$H$10,FALSE),0)","v":-1},{"$f":"ROUND(F644*VLOOKUP(D644,ALLOCTABLE_Trans_Customer,$I$10,FALSE),0)","v":0},{"$f":"ROUND(F644*VLOOKUP(D644,ALLOCTABLE_Trans_Customer,$J$10,FALSE),0)","v":0},{"$f":"ROUND(F644*VLOOKUP(D644,ALLOCTABLE_Trans_Customer,$K$10,FALSE),0)","v":0},{"$f":"ROUND(F644*VLOOKUP(D644,ALLOCTABLE_Trans_Customer,$L$10,FALSE),0)","v":-3},{"$f":"ROUND(F644*VLOOKUP(D644,ALLOCTABLE_Trans_Customer,$M$10,FALSE),0)","v":-2},{"$f":"ROUND(F644*VLOOKUP(D644,ALLOCTABLE_Trans_Customer,$N$10,FALSE),0)","v":0},{"$f":"ROUND(F644*VLOOKUP(D644,ALLOCTABLE_Trans_Customer,$O$10,FALSE),0)","v":-1},{"$f":"ROUND(F644*VLOOKUP(D644,ALLOCTABLE_Trans_Customer,$P$10,FALSE),0)","v":0},{"$f":"ROUND(F644*VLOOKUP(D644,ALLOCTABLE_Trans_Customer,$Q$10,FALSE),0)","v":0},{"$f":"SUM(G644:Q644)","v":-121},{"$f":"F644-R644","v":0}]
[16,null,{"$f":"'FR-16(7)(v)-1 Functional'!C645","v":"AMORT OF DEFERRED MERGER COST"},{"$f":"'FR-16(7)(v)-1 Functional'!D645","v":"A357"},null,{"$f":"'FR-16(7)(v)-6 TRANS Classified'!I645","v":0},{"$f":"F645-SUM(H645:Q645)","v":0},{"$f":"ROUND(F645*VLOOKUP(D645,ALLOCTABLE_Trans_Customer,$H$10,FALSE),0)","v":0},{"$f":"ROUND(F645*VLOOKUP(D645,ALLOCTABLE_Trans_Customer,$I$10,FALSE),0)","v":0},{"$f":"ROUND(F645*VLOOKUP(D645,ALLOCTABLE_Trans_Customer,$J$10,FALSE),0)","v":0},{"$f":"ROUND(F645*VLOOKUP(D645,ALLOCTABLE_Trans_Customer,$K$10,FALSE),0)","v":0},{"$f":"ROUND(F645*VLOOKUP(D645,ALLOCTABLE_Trans_Customer,$L$10,FALSE),0)","v":0},{"$f":"ROUND(F645*VLOOKUP(D645,ALLOCTABLE_Trans_Customer,$M$10,FALSE),0)","v":0},{"$f":"ROUND(F645*VLOOKUP(D645,ALLOCTABLE_Trans_Customer,$N$10,FALSE),0)","v":0},{"$f":"ROUND(F645*VLOOKUP(D645,ALLOCTABLE_Trans_Customer,$O$10,FALSE),0)","v":0},{"$f":"ROUND(F645*VLOOKUP(D645,ALLOCTABLE_Trans_Customer,$P$10,FALSE),0)","v":0},{"$f":"ROUND(F645*VLOOKUP(D645,ALLOCTABLE_Trans_Customer,$Q$10,FALSE),0)","v":0},{"$f":"SUM(G645:Q645)","v":0},{"$f":"F645-R645","v":0}]
[17,null,{"$f":"'FR-16(7)(v)-1 Functional'!C646","v":"DIT ADJUSTMENT - S/L DEPRECIATION"},{"$f":"'FR-16(7)(v)-1 Functional'!D646","v":"DE49"},null,{"$f":"'FR-16(7)(v)-6 TRANS Classified'!I646","v":0},{"$f":"F646-SUM(H646:Q646)","v":0},{"$f":"ROUND(F646*VLOOKUP(D646,ALLOCTABLE_Trans_Customer,$H$10,FALSE),0)","v":0},{"$f":"ROUND(F646*VLOOKUP(D646,ALLOCTABLE_Trans_Customer,$I$10,FALSE),0)","v":0},{"$f":"ROUND(F646*VLOOKUP(D646,ALLOCTABLE_Trans_Customer,$J$10,FALSE),0)","v":0},{"$f":"ROUND(F646*VLOOKUP(D646,ALLOCTABLE_Trans_Customer,$K$10,FALSE),0)","v":0},{"$f":"ROUND(F646*VLOOKUP(D646,ALLOCTABLE_Trans_Customer,$L$10,FALSE),0)","v":0},{"$f":"ROUND(F646*VLOOKUP(D646,ALLOCTABLE_Trans_Customer,$M$10,FALSE),0)","v":0},{"$f":"ROUND(F646*VLOOKUP(D646,ALLOCTABLE_Trans_Customer,$N$10,FALSE),0)","v":0},{"$f":"ROUND(F646*VLOOKUP(D646,ALLOCTABLE_Trans_Customer,$O$10,FALSE),0)","v":0},{"$f":"ROUND(F646*VLOOKUP(D646,ALLOCTABLE_Trans_Customer,$P$10,FALSE),0)","v":0},{"$f":"ROUND(F646*VLOOKUP(D646,ALLOCTABLE_Trans_Customer,$Q$10,FALSE),0)","v":0},{"$f":"SUM(G646:Q646)","v":0},{"$f":"F646-R646","v":0}]
[18,null,{"$f":"'FR-16(7)(v)-1 Functional'!C647","v":"DIT ADJUSTMENT - ARAM"},{"$f":"'FR-16(7)(v)-1 Functional'!D647","v":"K201"},null,{"$f":"'FR-16(7)(v)-6 TRANS Classified'!I647","v":0},{"$f":"F647-SUM(H647:Q647)","v":0},{"$f":"ROUND(F647*VLOOKUP(D647,ALLOCTABLE_Trans_Customer,$H$10,FALSE),0)","v":0},{"$f":"ROUND(F647*VLOOKUP(D647,ALLOCTABLE_Trans_Customer,$I$10,FALSE),0)","v":0},{"$f":"ROUND(F647*VLOOKUP(D647,ALLOCTABLE_Trans_Customer,$J$10,FALSE),0)","v":0},{"$f":"ROUND(F647*VLOOKUP(D647,ALLOCTABLE_Trans_Customer,$K$10,FALSE),0)","v":0},{"$f":"ROUND(F647*VLOOKUP(D647,ALLOCTABLE_Trans_Customer,$L$10,FALSE),0)","v":0},{"$f":"ROUND(F647*VLOOKUP(D647,ALLOCTABLE_Trans_Customer,$M$10,FALSE),0)","v":0},{"$f":"ROUND(F647*VLOOKUP(D647,ALLOCTABLE_Trans_Customer,$N$10,FALSE),0)","v":0},{"$f":"ROUND(F647*VLOOKUP(D647,ALLOCTABLE_Trans_Customer,$O$10,FALSE),0)","v":0},{"$f":"ROUND(F647*VLOOKUP(D647,ALLOCTABLE_Trans_Customer,$P$10,FALSE),0)","v":0},{"$f":"ROUND(F647*VLOOKUP(D647,ALLOCTABLE_Trans_Customer,$Q$10,FALSE),0)","v":0},{"$f":"SUM(G647:Q647)","v":0},{"$f":"F647-R647","v":0}]
[19,null,{"$f":"'FR-16(7)(v)-1 Functional'!C648","v":"DIT ADJUSTMENT - AMORT OF EXCESS DEF TAXES"},{"$f":"'FR-16(7)(v)-1 Functional'!D648","v":"A357"},null,{"$f":"'FR-16(7)(v)-6 TRANS Classified'!I648","v":131},{"$f":"F648-SUM(H648:Q648)","v":122},{"$f":"ROUND(F648*VLOOKUP(D648,ALLOCTABLE_Trans_Customer,$H$10,FALSE),0)","v":3},{"$f":"ROUND(F648*VLOOKUP(D648,ALLOCTABLE_Trans_Customer,$I$10,FALSE),0)","v":0},{"$f":"ROUND(F648*VLOOKUP(D648,ALLOCTABLE_Trans_Customer,$J$10,FALSE),0)","v":0},{"$f":"ROUND(F648*VLOOKUP(D648,ALLOCTABLE_Trans_Customer,$K$10,FALSE),0)","v":0},{"$f":"ROUND(F648*VLOOKUP(D648,ALLOCTABLE_Trans_Customer,$L$10,FALSE),0)","v":3},{"$f":"ROUND(F648*VLOOKUP(D648,ALLOCTABLE_Trans_Customer,$M$10,FALSE),0)","v":2},{"$f":"ROUND(F648*VLOOKUP(D648,ALLOCTABLE_Trans_Customer,$N$10,FALSE),0)","v":0},{"$f":"ROUND(F648*VLOOKUP(D648,ALLOCTABLE_Trans_Customer,$O$10,FALSE),0)","v":1},{"$f":"ROUND(F648*VLOOKUP(D648,ALLOCTABLE_Trans_Customer,$P$10,FALSE),0)","v":0},{"$f":"ROUND(F648*VLOOKUP(D648,ALLOCTABLE_Trans_Customer,$Q$10,FALSE),0)","v":0},{"$f":"SUM(G648:Q648)","v":131},{"$f":"F648-R648","v":0}]
[20,null,{"$f":"'FR-16(7)(v)-1 Functional'!C649","v":"  TOTAL FED DEF IT (410 & 411)"},null,null,{"$f":"SUM(F644:F648)","v":10},{"$f":"SUM(G644:G648)","v":8},{"$f":"SUM(H644:H648)","v":2},{"$f":"SUM(I644:I648)","v":0},{"$f":"SUM(J644:J648)","v":0},0,0,0,0,0,0,{"$f":"SUM($Q$644:$Q$648)","v":0},{"$f":"SUM(R644:R648)","v":10},{"$f":"SUM(S644:S648)","v":0}]
[21]
[22," AMORT INV TAX CREDIT"]
[23,null,{"$f":"'FR-16(7)(v)-1 Functional'!C652","v":"AMORTIZE ITC"},{"$f":"'FR-16(7)(v)-1 Functional'!D652","v":"NP29"},null,{"$f":"'FR-16(7)(v)-6 TRANS Classified'!I652","v":0},{"$f":"F652-SUM(H652:Q652)","v":0},{"$f":"ROUND(F652*VLOOKUP(D652,ALLOCTABLE_Trans_Customer,$H$10,FALSE),0)","v":0},{"$f":"ROUND(F652*VLOOKUP(D652,ALLOCTABLE_Trans_Customer,$I$10,FALSE),0)","v":0},{"$f":"ROUND(F652*VLOOKUP(D652,ALLOCTABLE_Trans_Customer,$J$10,FALSE),0)","v":0},{"$f":"ROUND(F652*VLOOKUP(D652,ALLOCTABLE_Trans_Customer,$K$10,FALSE),0)","v":0},{"$f":"ROUND(F652*VLOOKUP(D652,ALLOCTABLE_Trans_Customer,$L$10,FALSE),0)","v":0},{"$f":"ROUND(F652*VLOOKUP(D652,ALLOCTABLE_Trans_Customer,$M$10,FALSE),0)","v":0},{"$f":"ROUND(F652*VLOOKUP(D652,ALLOCTABLE_Trans_Customer,$N$10,FALSE),0)","v":0},{"$f":"ROUND(F652*VLOOKUP(D652,ALLOCTABLE_Trans_Customer,$O$10,FALSE),0)","v":0},{"$f":"ROUND(F652*VLOOKUP(D652,ALLOCTABLE_Trans_Customer,$P$10,FALSE),0)","v":0},{"$f":"ROUND(F652*VLOOKUP(D652,ALLOCTABLE_Trans_Customer,$Q$10,FALSE),0)","v":0},{"$f":"SUM(G652:Q652)","v":0},{"$f":"F652-R652","v":0}]
[24,null,{"$f":"'FR-16(7)(v)-1 Functional'!C653","v":"  TOTAL AMORTIZED ITC"},null,null,{"$f":"SUM(F652:F652)","v":0},{"$f":"SUM(G652:G652)","v":0},{"$f":"SUM(H652:H652)","v":0},{"$f":"SUM(I652:I652)","v":0},{"$f":"SUM(J652:J652)","v":0},0,0,0,0,0,0,{"$f":"SUM($Q$652:$Q$652)","v":0},{"$f":"SUM(R652:R652)","v":0},{"$f":"SUM(S652:S652)","v":0}]
[25]
[26," OTHER FEDERAL TAX CREDITS"]
[27,null,{"$f":"'FR-16(7)(v)-1 Functional'!C656","v":"FUEL TAX CREDIT"},{"$f":"'FR-16(7)(v)-1 Functional'!D656","v":"K301"},null,{"$f":"'FR-16(7)(v)-6 TRANS Classified'!I656","v":0},{"$f":"F656-SUM(H656:Q656)","v":0},{"$f":"ROUND(F656*VLOOKUP(D656,ALLOCTABLE_Trans_Customer,$H$10,FALSE),0)","v":0},{"$f":"ROUND(F656*VLOOKUP(D656,ALLOCTABLE_Trans_Customer,$I$10,FALSE),0)","v":0},{"$f":"ROUND(F656*VLOOKUP(D656,ALLOCTABLE_Trans_Customer,$J$10,FALSE),0)","v":0},{"$f":"ROUND(F656*VLOOKUP(D656,ALLOCTABLE_Trans_Customer,$K$10,FALSE),0)","v":0},{"$f":"ROUND(F656*VLOOKUP(D656,ALLOCTABLE_Trans_Customer,$L$10,FALSE),0)","v":0},{"$f":"ROUND(F656*VLOOKUP(D656,ALLOCTABLE_Trans_Customer,$M$10,FALSE),0)","v":0},{"$f":"ROUND(F656*VLOOKUP(D656,ALLOCTABLE_Trans_Customer,$N$10,FALSE),0)","v":0},{"$f":"ROUND(F656*VLOOKUP(D656,ALLOCTABLE_Trans_Customer,$O$10,FALSE),0)","v":0},{"$f":"ROUND(F656*VLOOKUP(D656,ALLOCTABLE_Trans_Customer,$P$10,FALSE),0)","v":0},{"$f":"ROUND(F656*VLOOKUP(D656,ALLOCTABLE_Trans_Customer,$Q$10,FALSE),0)","v":0},{"$f":"SUM(G656:Q656)","v":0},{"$f":"F656-R656","v":0}]
[28,null,{"$f":"'FR-16(7)(v)-1 Functional'!C657","v":"R&D CREDIT - SECTION 41"},{"$f":"'FR-16(7)(v)-1 Functional'!D657","v":"A315"},null,{"$f":"'FR-16(7)(v)-6 TRANS Classified'!I657","v":0},{"$f":"F657-SUM(H657:Q657)","v":0},{"$f":"ROUND(F657*VLOOKUP(D657,ALLOCTABLE_Trans_Customer,$H$10,FALSE),0)","v":0},{"$f":"ROUND(F657*VLOOKUP(D657,ALLOCTABLE_Trans_Customer,$I$10,FALSE),0)","v":0},{"$f":"ROUND(F657*VLOOKUP(D657,ALLOCTABLE_Trans_Customer,$J$10,FALSE),0)","v":0},{"$f":"ROUND(F657*VLOOKUP(D657,ALLOCTABLE_Trans_Customer,$K$10,FALSE),0)","v":0},{"$f":"ROUND(F657*VLOOKUP(D657,ALLOCTABLE_Trans_Customer,$L$10,FALSE),0)","v":0},{"$f":"ROUND(F657*VLOOKUP(D657,ALLOCTABLE_Trans_Customer,$M$10,FALSE),0)","v":0},{"$f":"ROUND(F657*VLOOKUP(D657,ALLOCTABLE_Trans_Customer,$N$10,FALSE),0)","v":0},{"$f":"ROUND(F657*VLOOKUP(D657,ALLOCTABLE_Trans_Customer,$O$10,FALSE),0)","v":0},{"$f":"ROUND(F657*VLOOKUP(D657,ALLOCTABLE_Trans_Customer,$P$10,FALSE),0)","v":0},{"$f":"ROUND(F657*VLOOKUP(D657,ALLOCTABLE_Trans_Customer,$Q$10,FALSE),0)","v":0},{"$f":"SUM(G657:Q657)","v":0},{"$f":"F657-R657","v":0}]
[29,null,"  TOTAL OTHER FEDERAL TAX CREDITS",null,null,{"$f":"SUM(F656:F657)","v":0},{"$f":"SUM(G656:G657)","v":0},{"$f":"SUM(H656:H657)","v":0},{"$f":"SUM(I656:I657)","v":0},{"$f":"SUM(J656:J657)","v":0},0,0,0,0,0,0,{"$f":"SUM($Q$656:$Q$657)","v":0},{"$f":"SUM(R656:R657)","v":0},{"$f":"SUM(S656:S657)","v":0}]
[30]
[31,"PRELIMINARY SUMMARY"]
[32,null,{"$f":"'FR-16(7)(v)-1 Functional'!C661","v":"TOTAL FED DEF IT (410 & 411)"},null,null,{"$f":"F649","v":10},{"$f":"G649","v":8},{"$f":"H649","v":2},{"$f":"I649","v":0},{"$f":"J649","v":0},0,0,0,0,0,0,{"$f":"$Q$649","v":0},{"$f":"R649","v":10},{"$f":"S649","v":0}]
[33,null,{"$f":"'FR-16(7)(v)-1 Functional'!C662","v":"TOTAL AMORTIZED ITC & OTHER FEDERAL TAX CREDITS"},null,null,{"$f":"-F653-F658","v":0},{"$f":"-G653-G658","v":0},0,0,{"$f":"-J653-J658","v":0},0,0,0,0,0,0,0,0,0]
[34,null,{"$f":"'FR-16(7)(v)-1 Functional'!C663","v":"  TOTAL FEDERAL TAX ADJUSTMENTS"},null,null,{"$f":"SUM(F661:F662)","v":10},{"$f":"SUM(G661:G662)","v":8},{"$f":"SUM(H661:H662)","v":2},{"$f":"SUM(I661:I662)","v":0},{"$f":"SUM(J661:J662)","v":0},0,0,0,0,0,0,{"$f":"SUM($Q$661:$Q$662)","v":0},{"$f":"SUM(R661:R662)","v":10},{"$f":"SUM(S661:S662)","v":0}]
[35]
[36,"FEDERAL INCOME TAX COMPUTATION"]
[37,null,"RETURN ON RATE BASE",null,null,{"$f":"F433","v":310},{"$f":"G433","v":256},{"$f":"H433","v":50},{"$f":"I433","v":0},{"$f":"J433","v":0},0,3,1,0,0,0,{"$f":"Q433","v":0},{"$f":"R433","v":310},{"$f":"F666-R666","v":0}]
[38,null,{"$f":"'FR-16(7)(v)-1 Functional'!C667","v":"NET DEDUCTIONS AND ADDITIONS"},null,null,{"$f":"-F641","v":-23},{"$f":"-G641","v":7},{"$f":"-H641","v":-40},{"$f":"-I641","v":0},{"$f":"-J641","v":0},0,4,4,0,2,0,{"$f":"-$Q$641","v":0},{"$f":"-R641","v":-23},{"$f":"F667-R667","v":0}]
[39,null,{"$f":"'FR-16(7)(v)-1 Functional'!C668","v":"TOTAL FEDERAL TAX ADJUSTMENTS"},null,null,{"$f":"F663","v":10},{"$f":"G663","v":8},{"$f":"H663","v":2},{"$f":"I663","v":0},{"$f":"J663","v":0},0,0,0,0,0,0,{"$f":"$Q$663","v":0},{"$f":"R663","v":10},{"$f":"F668-R668","v":0}]
[40,null,"TOTAL STATE PROV DEF IT (410 & 411)",null,null,{"$f":"F707","v":-130},{"$f":"G707","v":-121},{"$f":"H707","v":-3},{"$f":"I707","v":0},{"$f":"J707","v":0},0,-3,-2,0,-1,0,{"$f":"Q707","v":0},{"$f":"R707","v":-130},{"$f":"F669-R669","v":0}]
[41,null,"RESERVED",null,null,{"$f":"F24","v":0},{"$f":"G24","v":0},{"$f":"H24","v":0},{"$f":"I24","v":0},{"$f":"J24","v":0},0,0,0,0,0,0,{"$f":"Q24","v":0},{"$f":"R24","v":0},{"$f":"F670-R670","v":0}]
[42,null,{"$f":"'FR-16(7)(v)-1 Functional'!C671","v":"  BASE FOR FIT COMPUATION"},null,null,{"$f":"SUM(F666:F670)","v":167},{"$f":"SUM(G666:G670)","v":150},{"$f":"SUM(H666:H670)","v":9},{"$f":"SUM(I666:I670)","v":0},{"$f":"SUM(J666:J670)","v":0},0,4,3,0,1,0,{"$f":"SUM($Q$666:$Q$670)","v":0},{"$f":"SUM(R666:R670)","v":167},{"$f":"SUM(S666:S670)","v":0}]
[43]
[44,null,{"$f":"'FR-16(7)(v)-1 Functional'!C673","v":"FIT FACTOR K190/(1-K190)"},null,null,{"$f":"ROUND(FIT/(1-FIT),9)","v":0.26582278500000001},0.26582278500000001,0.26582278500000001,0.26582278500000001,0.26582278500000001,0.26582278500000001,0.26582278500000001,0.26582278500000001,0.26582278500000001,0.26582278500000001,0.26582278500000001,0.26582278500000001,null,{"$f":"ROUND(R815/(1-R815),9)","v":0.26582278500000001}]
[45,null,{"$f":"'FR-16(7)(v)-1 Functional'!C674","v":"PRELIM FED INCOME TAX"},null,null,{"$f":"ROUND(F673*F671,0)","v":44},{"$f":"F674-SUM(H674:Q674)","v":40},{"$f":"ROUND(H671*H673,0)","v":2},{"$f":"ROUND(I671*I673,0)","v":0},{"$f":"ROUND(J671*J673,0)","v":0},0,1,1,0,0,0,{"$f":"ROUND($Q$671*$Q$673,0)","v":0},{"$f":"SUM(G674:Q674)","v":44},{"$f":"F674-R674","v":0}]
[46,null,{"$f":"'FR-16(7)(v)-1 Functional'!C675","v":"TOTAL FEDERAL TAX ADJUSTMENTS"},null,null,{"$f":"F663","v":10},{"$f":"G663","v":8},{"$f":"H663","v":2},{"$f":"I663","v":0},{"$f":"J663","v":0},0,0,0,0,0,0,{"$f":"$Q$663","v":0},{"$f":"R663","v":10},{"$f":"F675-R675","v":0}]
[47,null,{"$f":"'FR-16(7)(v)-1 Functional'!C676","v":"  NET FED INCOME TAX ALLOWABLE"},null,null,{"$f":"SUM(F674:F675)","v":54},{"$f":"SUM(G674:G675)","v":48},{"$f":"SUM(H674:H675)","v":4},{"$f":"SUM(I674:I675)","v":0},{"$f":"SUM(J674:J675)","v":0},0,1,1,0,0,0,{"$f":"SUM($Q$674:$Q$675)","v":0},{"$f":"SUM(R674:R675)","v":54},{"$f":"SUM(S674:S675)","v":0}]
[48]
[49,"INCOME TAX BASED ON RETURN"]
[50,"FEDERAL INCOME TAX PAYABLE"]
[51,null,{"$f":"'FR-16(7)(v)-1 Functional'!C680","v":"PRELIM FEDERAL INCOME TAX"},null,null,{"$f":"F674","v":44},{"$f":"G674","v":40},{"$f":"H674","v":2},{"$f":"I674","v":0},{"$f":"J674","v":0},0,1,1,0,0,0,{"$f":"$Q$674","v":0},{"$f":"R674","v":44},{"$f":"S674","v":0}]
[53,null,{"$f":"'FR-16(7)(v)-1 Functional'!C681","v":"  NET FED INCOME TAX PAYABLE"},null,null,{"$f":"SUM(F680:F680)","v":44},{"$f":"SUM(G680:G680)","v":40},{"$f":"SUM(H680:H680)","v":2},{"$f":"SUM(I680:I680)","v":0},{"$f":"SUM(J680:J680)","v":0},0,1,1,0,0,0,{"$f":"SUM($Q$680:$Q$680)","v":0},{"$f":"SUM(R680:R680)","v":44},{"$f":"SUM(S680:S680)","v":0}]
[]
[{"$f":"co_name","v":"DUKE ENERGY KENTUCKY, INC."},null,null,null,null,null,null,null,null,null,null,null,null,null,null,null,null,{"$f":"R1","v":"FR-16(7)(v)-9"}]
[{"$f":"$A$2","v":"TRANSMISSION CUSTOMER ALLOCATED - ELECTRIC COST OF SERVICE"},null,null,null,null,null,null,null,null,null,null,null,null,null,null,null,null,{"$f":"R2","v":"WITNESS RESPONSIBLE:"}]
[{"$f":"case_name","v":"CASE NO: 2019-00271"},null,null,null,null,null,null,null,null,null,null,null,null,null,null,null,null,{"$f":"Witness","v":"JAMES E. ZIOLKOWSKI"}]
[{"$f":"data_filing","v":"DATA: 12 MONTHS ACTUAL  & 0 MONTHS ESTIMATED"},null,null,null,null,null,null,null,null,null,null,null,null,null,null,null,null,{"$f":"\"PAGE \"&Pages-5&\" OF \"&Pages","v":"PAGE 13 OF 18"}]
[{"$f":"type","v":"TYPE OF FILING: \"X\" ORIGINAL   UPDATED    REVISED  "}]
[]
[null,null,null,null,null,{"$f":"F$7","v":"TOTAL"},null,{"$f":"H$7","v":"DS"},{"$f":"I$7","v":"GSFL"},{"$f":"J$7","v":"EH"},{"$f":"K$7","v":"SP"},"DT SEC","DT PRI","DP","TT",null,"OTHER"]
["LINE",null,null,null,null,{"$f":"F$8","v":"TRANSMISSION"},{"$f":"G$8","v":"RS"},{"$f":"H$8","v":"SECONDARY"},{"$f":"I$8","v":"SECONDARY"},{"$f":"J$8","v":"SECONDARY"},{"$f":"K$8","v":"SECONDARY"},"SECONDARY","PRIMARY","PRIMARY","TRANSMISSION","LT","WATER",{"$f":"R8","v":"TOTAL"},"ALL"]
["NO.","STATE INCOME TAX BASED ON RETURN",null,"Allo",null,{"$f":"F$9","v":"CUSTOMER"},{"$f":"G$9","v":"RESIDENTIAL"},{"$f":"H$9","v":"DISTRIBUTION"},{"$f":"I$9","v":"DISTRIBUTION"},{"$f":"J$9","v":"DISTRIBUTION"},{"$f":"K$9","v":"DISTRIBUTION"},"DISTRIBUTION","DISTRIBUTION","DISTRIBUTION","TIME OF DAY","LIGHTING","PUMPING",{"$f":"R9","v":"AT ISSUE"},"OTHER"]
[null,null,"Schedule 9.1",null,null,null,{"$f":"G$10","v":3},{"$f":"H$10","v":4},{"$f":"I$10","v":5},{"$f":"J$10","v":6},{"$f":"K$10","v":7},8,9,10,11,12,13,null," "]
[1,"DEDUCTIONS IN ADDITION TO Y871"]
[2,"KY TAXABLE INCOME ADJUSTMENT",null,{"$f":"'FR-16(7)(v)-1 Functional'!D694","v":"NP29"},null,{"$f":"'FR-16(7)(v)-6 TRANS Classified'!I694","v":24},{"$f":"F694-SUM(H694:Q694)","v":18},{"$f":"ROUND(F694*VLOOKUP(D694,ALLOCTABLE_Trans_Customer,$H$10,FALSE),0)","v":6},{"$f":"ROUND(F694*VLOOKUP(D694,ALLOCTABLE_Trans_Customer,$I$10,FALSE),0)","v":0},{"$f":"ROUND(F694*VLOOKUP(D694,ALLOCTABLE_Trans_Customer,$J$10,FALSE),0)","v":0},{"$f":"ROUND(F694*VLOOKUP(D694,ALLOCTABLE_Trans_Customer,$K$10,FALSE),0)","v":0},{"$f":"ROUND(F694*VLOOKUP(D694,ALLOCTABLE_Trans_Customer,$L$10,FALSE),0)","v":0},{"$f":"ROUND(F694*VLOOKUP(D694,ALLOCTABLE_Trans_Customer,$M$10,FALSE),0)","v":0},{"$f":"ROUND(F694*VLOOKUP(D694,ALLOCTABLE_Trans_Customer,$N$10,FALSE),0)","v":0},{"$f":"ROUND(F694*VLOOKUP(D694,ALLOCTABLE_Trans_Customer,$O$10,FALSE),0)","v":0},{"$f":"ROUND(F694*VLOOKUP(D694,ALLOCTABLE_Trans_Customer,$P$10,FALSE),0)","v":0},{"$f":"ROUND(F694*VLOOKUP(D694,ALLOCTABLE_Trans_Customer,$Q$10,FALSE),0)","v":0},{"$f":"SUM(G694:Q694)","v":24},{"$f":"F694-R694","v":0}]
[3,"RESERVED FOR FUTURE USE",null,{"$f":"'FR-16(7)(v)-1 Functional'!D695","v":"NP29"},null,{"$f":"'FR-16(7)(v)-6 TRANS Classified'!I695","v":0},{"$f":"F695-SUM(H695:Q695)","v":0},{"$f":"ROUND(F695*VLOOKUP(D695,ALLOCTABLE_Trans_Customer,$H$10,FALSE),0)","v":0},{"$f":"ROUND(F695*VLOOKUP(D695,ALLOCTABLE_Trans_Customer,$I$10,FALSE),0)","v":0},{"$f":"ROUND(F695*VLOOKUP(D695,ALLOCTABLE_Trans_Customer,$J$10,FALSE),0)","v":0},{"$f":"ROUND(F695*VLOOKUP(D695,ALLOCTABLE_Trans_Customer,$K$10,FALSE),0)","v":0},{"$f":"ROUND(F695*VLOOKUP(D695,ALLOCTABLE_Trans_Customer,$L$10,FALSE),0)","v":0},{"$f":"ROUND(F695*VLOOKUP(D695,ALLOCTABLE_Trans_Customer,$M$10,FALSE),0)","v":0},{"$f":"ROUND(F695*VLOOKUP(D695,ALLOCTABLE_Trans_Customer,$N$10,FALSE),0)","v":0},{"$f":"ROUND(F695*VLOOKUP(D695,ALLOCTABLE_Trans_Customer,$O$10,FALSE),0)","v":0},{"$f":"ROUND(F695*VLOOKUP(D695,ALLOCTABLE_Trans_Customer,$P$10,FALSE),0)","v":0},{"$f":"ROUND(F695*VLOOKUP(D695,ALLOCTABLE_Trans_Customer,$Q$10,FALSE),0)","v":0},{"$f":"SUM(G695:Q695)","v":0},{"$f":"F695-R695","v":0}]
[4,"  DEDUCTIONS IN ADD TO Y871",null,null,null,{"$f":"SUM(F694:F695)","v":24},{"$f":"SUM(G694:G695)","v":18},6,0,{"$f":"SUM(J694:J695)","v":0},0,0,0,0,0,0,0,24,0]
[5]
[6,"STATE INCOME TAX ADJUSTMENTS"]
[7,"STATE PROV DEF INC TAX (410 & 411)"]
[8,"OTHER DEFERRED INCOME TAXES - NET",null,{"$f":"'FR-16(7)(v)-1 Functional'!D700","v":"A357"},null,{"$f":"'FR-16(7)(v)-6 TRANS Classified'!I700","v":-130},{"$f":"F700-SUM(H700:Q700)","v":-121},{"$f":"ROUND(F700*VLOOKUP(D700,ALLOCTABLE_Trans_Customer,$H$10,FALSE),0)","v":-3},{"$f":"ROUND(F700*VLOOKUP(D700,ALLOCTABLE_Trans_Customer,$I$10,FALSE),0)","v":0},{"$f":"ROUND(F700*VLOOKUP(D700,ALLOCTABLE_Trans_Customer,$J$10,FALSE),0)","v":0},{"$f":"ROUND(F700*VLOOKUP(D700,ALLOCTABLE_Trans_Customer,$K$10,FALSE),0)","v":0},{"$f":"ROUND(F700*VLOOKUP(D700,ALLOCTABLE_Trans_Customer,$L$10,FALSE),0)","v":-3},{"$f":"ROUND(F700*VLOOKUP(D700,ALLOCTABLE_Trans_Customer,$M$10,FALSE),0)","v":-2},{"$f":"ROUND(F700*VLOOKUP(D700,ALLOCTABLE_Trans_Customer,$N$10,FALSE),0)","v":0},{"$f":"ROUND(F700*VLOOKUP(D700,ALLOCTABLE_Trans_Customer,$O$10,FALSE),0)","v":-1},{"$f":"ROUND(F700*VLOOKUP(D700,ALLOCTABLE_Trans_Customer,$P$10,FALSE),0)","v":0},{"$f":"ROUND(F700*VLOOKUP(D700,ALLOCTABLE_Trans_Customer,$Q$10,FALSE),0)","v":0},{"$f":"SUM(G700:Q700)","v":-130},{"$f":"F700-R700","v":0}]
[9,"  TOT STATE PROV DEF IT (410 & 411)",null,null,null,{"$f":"SUM(F700)","v":-130},{"$f":"SUM(G700)","v":-121},-3,0,{"$f":"SUM(J700)","v":0},0,-3,-2,0,-1,0,0,-130,0]
[10]
[11,"OTHER SIT ADJUSTMENTS"]
[12,"CURRENT YEAR PAYABLE ADJUSTMENT",null,{"$f":"'FR-16(7)(v)-1 Functional'!D704","v":"NP29"},null,{"$f":"'FR-16(7)(v)-6 TRANS Classified'!I704","v":0},{"$f":"F704-SUM(H704:Q704)","v":0},{"$f":"ROUND(F704*VLOOKUP(D704,ALLOCTABLE_Trans_Customer,$H$10,FALSE),0)","v":0},{"$f":"ROUND(F704*VLOOKUP(D704,ALLOCTABLE_Trans_Customer,$I$10,FALSE),0)","v":0},{"$f":"ROUND(F704*VLOOKUP(D704,ALLOCTABLE_Trans_Customer,$J$10,FALSE),0)","v":0},{"$f":"ROUND(F704*VLOOKUP(D704,ALLOCTABLE_Trans_Customer,$K$10,FALSE),0)","v":0},{"$f":"ROUND(F704*VLOOKUP(D704,ALLOCTABLE_Trans_Customer,$L$10,FALSE),0)","v":0},{"$f":"ROUND(F704*VLOOKUP(D704,ALLOCTABLE_Trans_Customer,$M$10,FALSE),0)","v":0},{"$f":"ROUND(F704*VLOOKUP(D704,ALLOCTABLE_Trans_Customer,$N$10,FALSE),0)","v":0},{"$f":"ROUND(F704*VLOOKUP(D704,ALLOCTABLE_Trans_Customer,$O$10,FALSE),0)","v":0},{"$f":"ROUND(F704*VLOOKUP(D704,ALLOCTABLE_Trans_Customer,$P$10,FALSE),0)","v":0},{"$f":"ROUND(F704*VLOOKUP(D704,ALLOCTABLE_Trans_Customer,$Q$10,FALSE),0)","v":0},{"$f":"SUM(G704:Q704)","v":0},{"$f":"F704-R704","v":0}]
[13,"  OTHER SIT ADJUSMENTS",null,null,null,{"$f":"SUM(F704)","v":0},{"$f":"SUM(G704)","v":0},{"$f":"SUM(H704)","v":0},{"$f":"SUM(I704)","v":0},{"$f":"SUM(J704)","v":0},0,0,0,0,0,0,{"$f":"SUM(Q704)","v":0},{"$f":"SUM(R704)","v":0},{"$f":"SUM(S704)","v":0}]
[14]
[15,"TOTAL STATE INC TAX ADJUSTMENT",null,null,null,{"$f":"F705+F701","v":-130},{"$f":"G705+G701","v":-121},{"$f":"H705+H701","v":-3},{"$f":"I705+I701","v":0},{"$f":"J705+J701","v":0},0,-3,-2,0,-1,0,{"$f":"Q705+Q701","v":0},{"$f":"R705+R701","v":-130},{"$f":"S705+S701","v":0}]
[16]
[17,"INCOME TAX BASED ON RETURN"]
[18,"SUMMARY OF SIT CALCULATION"]
[19,"RETURN ON RATE BASE",null,null,null,{"$f":"F433","v":310},{"$f":"G433","v":256},{"$f":"H433","v":50},{"$f":"I433","v":0},{"$f":"J433","v":0},0,3,1,0,0,0,{"$f":"Q433","v":0},{"$f":"R433","v":310},{"$f":"S433","v":0}]
[20,"NET FED INCOME TAX ALLOWABLE",null,null,null,{"$f":"F676","v":54},{"$f":"G676","v":48},{"$f":"H676","v":4},{"$f":"I676","v":0},{"$f":"J676","v":0},0,1,1,0,0,0,{"$f":"Q676","v":0},{"$f":"R676","v":54},{"$f":"S676","v":0}]
[21,"NET FED. DED. AND ADDITIONS",null,null,null,{"$f":"-F641","v":-23},{"$f":"-G641","v":7},{"$f":"-H641","v":-40},{"$f":"-I641","v":0},{"$f":"-J641","v":0},0,4,4,0,2,0,{"$f":"-Q641","v":0},{"$f":"-R641","v":-23},{"$f":"-S641","v":0}]
[22,"DEDUCTIONS IN ADD TO Y871",null,null,null,{"$f":"-F696","v":-24},{"$f":"-G696","v":-18},{"$f":"-H696","v":-6},{"$f":"-I696","v":0},{"$f":"-J696","v":0},0,0,0,0,0,0,{"$f":"-Q696","v":0},{"$f":"-R696","v":-24},{"$f":"-S696","v":0}]
[23,"RESERVED",null,null,null,{"$f":"F24","v":0},{"$f":"G24","v":0},{"$f":"H24","v":0},{"$f":"I24","v":0},{"$f":"J24","v":0},0,0,0,0,0,0,{"$f":"Q24","v":0},{"$f":"R24","v":0},{"$f":"S24","v":0}]
[24,"TOTAL STATE INC TAX ADJ",null,null,null,{"$f":"F707","v":-130},{"$f":"G707","v":-121},{"$f":"H707","v":-3},{"$f":"I707","v":0},{"$f":"J707","v":0},0,-3,-2,0,-1,0,{"$f":"Q707","v":0},{"$f":"R707","v":-130},{"$f":"S707","v":0}]
[25,"  BASE FOR SIT COMPUTATION",null,null,null,{"$f":"SUM(F711:F716)","v":187},{"$f":"SUM(G711:G716)","v":172},{"$f":"SUM(H711:H716)","v":5},{"$f":"SUM(I711:I716)","v":0},{"$f":"SUM(J711:J716)","v":0},0,5,4,0,1,0,{"$f":"SUM(Q711:Q716)","v":0},{"$f":"SUM(R711:R716)","v":187},{"$f":"SUM(S711:S716)","v":0}]
[26]
[27,"SIT FACTOR K192/(1-K192)",null,null,null,{"$f":"ROUND(SIT/(1-SIT),8)","v":5.2282660000000002E-2},5.2282660000000002E-2,5.2282660000000002E-2,5.2282660000000002E-2,5.2282660000000002E-2,5.2282660000000002E-2,5.2282660000000002E-2,5.2282660000000002E-2,5.2282660000000002E-2,5.2282660000000002E-2,5.2282660000000002E-2,5.2282660000000002E-2,5.2282660000000002E-2,5.2282660000000002E-2]
[28,"PRELIMINARY STATE INCOME TAX",null,null,null,{"$f":"ROUND(F717*F719,0)","v":10},{"$f":"F720-SUM(H720:Q720)","v":10},{"$f":"ROUND(H717*H719,0)","v":0},{"$f":"ROUND(I717*I719,0)","v":0},{"$f":"ROUND(J717*J719,0)","v":0},0,0,0,0,0,0,{"$f":"ROUND(Q717*Q719,0)","v":0},{"$f":"SUM(G720:Q720)","v":10},{"$f":"F720-R720","v":0}]
[29,"TOTAL STATE INCOME TAX ADJ.",null,null,null,{"$f":"F707","v":-130},{"$f":"G707","v":-121},{"$f":"H707","v":-3},{"$f":"I707","v":0},{"$f":"J707","v":0},0,-3,-2,0,-1,0,{"$f":"Q707","v":0},{"$f":"SUM(G721:Q721)","v":-130},{"$f":"F721-R721","v":0}]
[30,"  NET STATE INC TAX ALLOWABLE",null,null,null,{"$f":"F721+F720","v":-120},-111,-3,0,{"$f":"J721+J720","v":0},0,-3,-2,0,-1,0,0,-120,{"$f":"S721+S720","v":0}]
[31]
[32,"STATE INCOME TAX PAYABLE"]
[33,"PRELIMINARY STATE INCOME TAX",null,null,null,{"$f":"F720","v":10},{"$f":"G720","v":10},{"$f":"H720","v":0},{"$f":"I720","v":0},{"$f":"J720","v":0},0,0,0,0,0,0,{"$f":"Q720","v":0},{"$f":"SUM(G725:Q725)","v":10},{"$f":"F725-R725","v":0}]
[34,"OTHER SIT ADJUSTMENTS",null,null,null,{"$f":"F705","v":0},{"$f":"G705","v":0},{"$f":"H705","v":0},{"$f":"I705","v":0},{"$f":"J705","v":0},0,0,0,0,0,0,{"$f":"Q705","v":0},{"$f":"SUM(G726:Q726)","v":0},{"$f":"F726-R726","v":0}]
[35,"  NET STATE INCOME TAX PAYABLE",null,null,null,{"$f":"F725+F726","v":10},10,0,0,{"$f":"J725+J726","v":0},0,0,0,0,0,0,0,10,{"$f":"S725+S726","v":0}]
[36]
[37,"COMPOSITE TAX RATE",null,null,null,{"$f":"(SIT*(1-FIT))+((1-SIT)*(1-FIT)*RevTax)+FIT","v":0.24925115},0.24925115,0.24925115,0.24925115,0.24925115,0.24925115,0.24925115,0.24925115,0.24925115,0.24925115,0.24925115,0.24925115,0.24925115,0.24925115]
[]
[{"$f":"co_name","v":"DUKE ENERGY KENTUCKY, INC."},null,null,null,null,null,null,null,null,null,null,null,null,null,null,null,null,{"$f":"R1","v":"FR-16(7)(v)-9"}]
[{"$f":"$A$2","v":"TRANSMISSION CUSTOMER ALLOCATED - ELECTRIC COST OF SERVICE"},null,null,null,null,null,null,null,null,null,null,null,null,null,null,null,null,{"$f":"R2","v":"WITNESS RESPONSIBLE:"}]
[{"$f":"case_name","v":"CASE NO: 2019-00271"},null,null,null,null,null,null,null,null,null,null,null,null,null,null,null,null,{"$f":"Witness","v":"JAMES E. ZIOLKOWSKI"}]
[{"$f":"data_filing","v":"DATA: 12 MONTHS ACTUAL  & 0 MONTHS ESTIMATED"},null,null,null,null,null,null,null,null,null,null,null,null,null,null,null,null,{"$f":"\"PAGE \"&Pages-4&\" OF \"&Pages","v":"PAGE 14 OF 18"}]
[{"$f":"type","v":"TYPE OF FILING: \"X\" ORIGINAL   UPDATED    REVISED  "}]
[]
[null,null,null,null,null,{"$f":"F$7","v":"TOTAL"},null,{"$f":"H$7","v":"DS"},{"$f":"I$7","v":"GSFL"},{"$f":"J$7","v":"EH"},{"$f":"K$7","v":"SP"},"DT SEC","DT PRI","DP","TT",null,"OTHER"]
["LINE",null,null,null,null,{"$f":"F$8","v":"TRANSMISSION"},{"$f":"G$8","v":"RS"},{"$f":"H$8","v":"SECONDARY"},{"$f":"I$8","v":"SECONDARY"},{"$f":"J$8","v":"SECONDARY"},{"$f":"K$8","v":"SECONDARY"},"SECONDARY","PRIMARY","PRIMARY","TRANSMISSION","LT","WATER",{"$f":"R8","v":"TOTAL"},"ALL"]
["NO.","COST OF SERVICE COMPUTATION",null,"ALLO",null,{"$f":"F$9","v":"CUSTOMER"},{"$f":"G$9","v":"RESIDENTIAL"},{"$f":"H$9","v":"DISTRIBUTION"},{"$f":"I$9","v":"DISTRIBUTION"},{"$f":"J$9","v":"DISTRIBUTION"},{"$f":"K$9","v":"DISTRIBUTION"},"DISTRIBUTION","DISTRIBUTION","DISTRIBUTION","TIME OF DAY","LIGHTING","PUMPING",{"$f":"R9","v":"AT ISSUE"},"OTHER"]
[null,null,"Schedule 10",null,null,null,{"$f":"G$10","v":3},{"$f":"H$10","v":4},{"$f":"I$10","v":5},{"$f":"J$10","v":6},{"$f":"K$10","v":7},8,9,10,11,12,13,null," "]
[1,"OTHER OPERATING REVENUES"]
[2,null,{"$f":"'FR-16(7)(v)-1 Functional'!C742","v":"MISC SERVICE REVENUE"},{"$f":"'FR-16(7)(v)-1 Functional'!D742","v":"D249"},null,{"$f":"'FR-16(7)(v)-6 TRANS Classified'!I742","v":3},{"$f":"F742-SUM(H742:Q742)","v":2},{"$f":"ROUND(F742*VLOOKUP(D742,ALLOCTABLE_Trans_Customer,$H$10,FALSE),0)","v":1},{"$f":"ROUND(F742*VLOOKUP(D742,ALLOCTABLE_Trans_Customer,$I$10,FALSE),0)","v":0},{"$f":"ROUND(F742*VLOOKUP(D742,ALLOCTABLE_Trans_Customer,$J$10,FALSE),0)","v":0},{"$f":"ROUND(F742*VLOOKUP(D742,ALLOCTABLE_Trans_Customer,$K$10,FALSE),0)","v":0},{"$f":"ROUND(F742*VLOOKUP(D742,ALLOCTABLE_Trans_Customer,$L$10,FALSE),0)","v":0},{"$f":"ROUND(F742*VLOOKUP(D742,ALLOCTABLE_Trans_Customer,$M$10,FALSE),0)","v":0},{"$f":"ROUND(F742*VLOOKUP(D742,ALLOCTABLE_Trans_Customer,$N$10,FALSE),0)","v":0},{"$f":"ROUND(F742*VLOOKUP(D742,ALLOCTABLE_Trans_Customer,$O$10,FALSE),0)","v":0},{"$f":"ROUND(F742*VLOOKUP(D742,ALLOCTABLE_Trans_Customer,$P$10,FALSE),0)","v":0},{"$f":"ROUND(F742*VLOOKUP(D742,ALLOCTABLE_Trans_Customer,$Q$10,FALSE),0)","v":0},{"$f":"SUM(G742:Q742)","v":3},{"$f":"F742-R742","v":0}]
[3,null,{"$f":"'FR-16(7)(v)-1 Functional'!C743","v":"INTERDEPARTMENTAL"},{"$f":"'FR-16(7)(v)-1 Functional'!D743","v":"K902"},null,{"$f":"'FR-16(7)(v)-6 TRANS Classified'!I743","v":0},0,0,0,0,0,0,0,0,0,0,0,0,0]
[4,null,{"$f":"'FR-16(7)(v)-1 Functional'!C744","v":"POLE & LINE ATTACHMENTS"},{"$f":"'FR-16(7)(v)-1 Functional'!D744","v":"D249"},null,{"$f":"'FR-16(7)(v)-6 TRANS Classified'!I744","v":2},2,0,0,0,0,0,0,0,0,0,0,2,0]
[5,null,{"$f":"'FR-16(7)(v)-1 Functional'!C745","v":"RENTS"},{"$f":"'FR-16(7)(v)-1 Functional'!D745","v":"D249"},null,{"$f":"'FR-16(7)(v)-6 TRANS Classified'!I745","v":11},9,2,0,0,0,0,0,0,0,0,0,11,0]
[6,null,{"$f":"'FR-16(7)(v)-1 Functional'!C746","v":"TRANSMISSION CHARGE PTP"},{"$f":"'FR-16(7)(v)-1 Functional'!D746","v":"T229"},null,{"$f":"'FR-16(7)(v)-6 TRANS Classified'!I746","v":0},{"$f":"F746-SUM(H746:Q746)","v":0},0,0,0,0,0,0,0,0,0,{"$f":"ROUND(F746*VLOOKUP(D746,ALLOCTABLE_Trans_Customer,$Q$10,FALSE),0)","v":0},0,0]
[7,null,{"$f":"'FR-16(7)(v)-1 Functional'!C747","v":"PJM REACTIVE REVENUE"},{"$f":"'FR-16(7)(v)-1 Functional'!D747","v":"K401"},null,{"$f":"'FR-16(7)(v)-6 TRANS Classified'!I747","v":0},{"$f":"F747-SUM(H747:Q747)","v":0},0,0,0,0,0,0,0,0,0,{"$f":"ROUND(F747*VLOOKUP(D747,ALLOCTABLE_Trans_Customer,$Q$10,FALSE),0)","v":0},0,0]
[8,null,{"$f":"'FR-16(7)(v)-1 Functional'!C748","v":"OTHER TRANSMISSION REVENUES"},{"$f":"'FR-16(7)(v)-1 Functional'!D748","v":"T229"},null,{"$f":"'FR-16(7)(v)-6 TRANS Classified'!I748","v":0},{"$f":"F748-SUM(H748:Q748)","v":0},0,0,0,0,0,0,0,0,0,{"$f":"ROUND(F748*VLOOKUP(D748,ALLOCTABLE_Trans_Customer,$Q$10,FALSE),0)","v":0},0,0]
[9,null,{"$f":"'FR-16(7)(v)-1 Functional'!C749","v":"FIXED BILL PREMIUM"},{"$f":"'FR-16(7)(v)-1 Functional'!D749","v":"K902"},null,{"$f":"'FR-16(7)(v)-6 TRANS Classified'!I749","v":0},0,0,0,0,0,0,0,0,0,0,0,0,0]
[10,null,{"$f":"'FR-16(7)(v)-1 Functional'!C750","v":"  TOTAL OTHER OPERATING REVS"},null,null,{"$f":"SUM(F742:F749)","v":16},{"$f":"SUM(G742:G749)","v":13},{"$f":"SUM(H742:H749)","v":3},{"$f":"SUM(I742:I749)","v":0},{"$f":"SUM(J742:J749)","v":0},0,0,0,0,0,0,{"$f":"SUM($Q$742:$Q$749)","v":0},{"$f":"SUM(R742:R749)","v":16},{"$f":"SUM(S742:S749)","v":0}]
[11]
[12,"COST OF SERVICE COMPUTATION"]
[13,null,{"$f":"'FR-16(7)(v)-1 Functional'!C753","v":"TOTAL OP EXP EXC INC & REV TAX"},null,null,{"$f":"F618","v":-1818},{"$f":"G618","v":-1722},{"$f":"H618","v":14},{"$f":"I618","v":0},{"$f":"J618","v":0},0,-52,-35,-2,-19,-2,{"$f":"$Q$618","v":0},{"$f":"R618","v":-1818},{"$f":"S618","v":0}]
[14,null,"RETURN ON RATE BASE",null,null,{"$f":"F433","v":310},{"$f":"G433","v":256},{"$f":"H433","v":50},{"$f":"I433","v":0},{"$f":"J433","v":0},0,3,1,0,0,0,{"$f":"Q433","v":0},{"$f":"R433","v":310},{"$f":"S433","v":0}]
[15,null,{"$f":"'FR-16(7)(v)-1 Functional'!C755","v":"NET FED INCOME TAX ALLOWABLE"},null,null,{"$f":"F676","v":54},{"$f":"G676","v":48},{"$f":"H676","v":4},{"$f":"I676","v":0},{"$f":"J676","v":0},0,1,1,0,0,0,{"$f":"$Q$676","v":0},{"$f":"R676","v":54},{"$f":"S676","v":0}]
[16,null,{"$f":"'FR-16(7)(v)-1 Functional'!C756","v":"NET STATE INCOME TAX ALLOWABLE"},null,null,{"$f":"F722","v":-120},{"$f":"G722","v":-111},-3,0,{"$f":"J722","v":0},0,-3,-2,0,-1,0,0,-120,0]
[17,null,{"$f":"'FR-16(7)(v)-1 Functional'!C757","v":"TOTAL OTHER OPERATING REVENUES"},null,null,{"$f":"-F750","v":-16},{"$f":"-G750","v":-13},{"$f":"-H750","v":-3},{"$f":"-I750","v":0},{"$f":"-J750","v":0},0,0,0,0,0,0,{"$f":"-$Q$750","v":0},{"$f":"-R750","v":-16},{"$f":"-S750","v":0}]
[18,null,{"$f":"'FR-16(7)(v)-1 Functional'!C758","v":"  SUBTOTAL B"},null,null,{"$f":"SUM(F752:F757)","v":-1590},{"$f":"SUM(G752:G757)","v":-1542},{"$f":"SUM(H752:H757)","v":62},{"$f":"SUM(I752:I757)","v":0},{"$f":"SUM(J752:J757)","v":0},0,-51,-35,-2,-20,-2,{"$f":"SUM($Q$752:$Q$757)","v":0},{"$f":"SUM(R752:R757)","v":-1590},{"$f":"R758-F758","v":0}]
[19]
[20,null,{"$f":"'FR-16(7)(v)-1 Functional'!C760","v":"TOTAL OTHER OPERATING REVENUES"},null,null,{"$f":"-F757","v":16},{"$f":"-G757","v":13},{"$f":"-H757","v":3},{"$f":"-I757","v":0},{"$f":"-J757","v":0},0,0,0,0,0,0,{"$f":"-$Q$757","v":0},{"$f":"-R757","v":16},{"$f":"-S757","v":0}]
[21,null,{"$f":"'FR-16(7)(v)-1 Functional'!C761","v":"LESS: REVS EXCL FROM REV TAX CALC"},null,null,{"$f":"F989","v":0},{"$f":"G989","v":0},{"$f":"H989","v":0},{"$f":"I989","v":0},{"$f":"J989","v":0},0,0,0,0,0,0,{"$f":"Q989","v":0},{"$f":"R989","v":0},{"$f":"S989","v":0}]
[22,null,{"$f":"'FR-16(7)(v)-1 Functional'!C762","v":"OTHER OPERATING REVS TO BE TAXED"},null,null,{"$f":"F760-F761","v":16},{"$f":"G760-G761","v":13},{"$f":"H760-H761","v":3},{"$f":"I760-I761","v":0},{"$f":"J760-J761","v":0},0,0,0,0,0,0,{"$f":"$Q$760-Q761","v":0},{"$f":"R760-R761","v":16},{"$f":"S760-S761","v":0}]
[23]
[24,null,{"$f":"'FR-16(7)(v)-1 Functional'!C764","v":"REVENUE TAX FACTOR"},null,null,{"$f":"ROUND(F817/(1-F817),8)","v":0},0,0,0,{"$f":"ROUND(J817/(1-J817),8)","v":0},0,0,0,0,0,0,0,0,0]
[25,null,{"$f":"'FR-16(7)(v)-1 Functional'!C765","v":"REVENUE TAX ON OTHER OPER. REVS"},null,null,{"$f":"ROUND(F764*F762,0)","v":0},{"$f":"ROUND(G764*G762,0)","v":0},{"$f":"ROUND(H764*H762,0)","v":0},{"$f":"ROUND(I764*I762,0)","v":0},{"$f":"ROUND(J764*J762,0)","v":0},0,0,0,0,0,0,{"$f":"ROUND(Q764*Q762,0)","v":0},{"$f":"SUM(G765:Q765)","v":0},{"$f":"ROUND(S764*S762,0)","v":0}]
[26,null,{"$f":"'FR-16(7)(v)-1 Functional'!C766","v":"REVENUE TAX ON COST OF SERVICE"},null,null,{"$f":"ROUND(F764*F758,0)","v":0},{"$f":"ROUND(G764*G758,0)","v":0},{"$f":"ROUND(H764*H758,0)","v":0},{"$f":"ROUND(I764*I758,0)","v":0},{"$f":"ROUND(J764*J758,0)","v":0},0,0,0,0,0,0,{"$f":"ROUND(Q764*$Q$758,0)","v":0},{"$f":"SUM(G766:Q766)","v":0},{"$f":"ROUND(S764*S758,0)","v":0}]
[27,null,{"$f":"'FR-16(7)(v)-1 Functional'!C767","v":"TOTAL REVENUE TAX"},null,null,{"$f":"F766+F765","v":0},{"$f":"G766+G765","v":0},{"$f":"H766+H765","v":0},{"$f":"I766+I765","v":0},{"$f":"J766+J765","v":0},0,0,0,0,0,0,{"$f":"Q766+Q765","v":0},{"$f":"R766+R765","v":0},{"$f":"S766+S765","v":0}]
[28]
[29,null,"RESERVED",null,null,{"$f":"F24","v":0},{"$f":"G24","v":0},{"$f":"H24","v":0},{"$f":"I24","v":0},{"$f":"J24","v":0},0,0,0,0,0,0,{"$f":"Q24","v":0},{"$f":"R24","v":0}]
[30,null,{"$f":"'FR-16(7)(v)-1 Functional'!C770","v":"  TOTAL ELECTRIC COST OF SERVICE"},null,null,{"$f":"F769+F767+F758","v":-1590},-1542,62,0,0,0,-51,-35,-2,-20,-2,0,-1590,{"$f":"S767+S758","v":0}]
[31]
[32,"PROPOSED REVENUES",null,null,null,{"$f":"F868","v":-12549},{"$f":"G868","v":-11559},{"$f":"H868","v":-306},{"$f":"I868","v":0},{"$f":"J868","v":0},0,-324,-216,-18,-108,-18,{"$f":"Q868","v":0},{"$f":"R868","v":-12549},{"$f":"S868","v":0}]
[33,"TOTAL ELECTRIC COST OF SERVICE",null,null,null,{"$f":"-F770","v":1590},{"$f":"-G770","v":1542},{"$f":"-H770","v":-62},{"$f":"-I770","v":0},{"$f":"-J770","v":0},0,51,35,2,20,2,{"$f":"-Q770","v":0},{"$f":"-R770","v":1590},{"$f":"-S770","v":0}]
[34,"EXCESS REVENUES",null,null,null,{"$f":"F773+F772","v":-10959},{"$f":"G773+G772","v":-10017},{"$f":"H773+H772","v":-368},{"$f":"I773+I772","v":0},{"$f":"J773+J772","v":0},0,-273,-181,-16,-88,-16,{"$f":"Q773+Q772","v":0},{"$f":"SUM(G774:Q774)","v":-10959},{"$f":"F774-R774","v":0}]
[35,"COMPOSITE TAX RATE",null,null,null,{"$f":"F729","v":0.24925115},{"$f":"G729","v":0.24925115},0.24925115,0.24925115,{"$f":"J729","v":0.24925115},0.24925115,0.24925115,0.24925115,0.24925115,0.24925115,0.24925115,0.24925115,0.24925115,0.24925115]
[36,"EXCESS TAX",null,null,null,{"$f":"'FR-16(7)(v)-6 TRANS Classified'!I776","v":-2732},{"$f":"F776-SUM(H776:Q776)","v":-2497},{"$f":"ROUND(H775*H774,0)","v":-92},{"$f":"ROUND(I775*I774,0)","v":0},{"$f":"ROUND(J775*J774,0)","v":0},0,-68,-45,-4,-22,-4,{"$f":"ROUND(Q775*Q774,0)","v":0},{"$f":"SUM(G776:Q776)","v":-2732},{"$f":"F776-R776","v":0}]
[37,"EXCESS RETURN",null,null,null,{"$f":"F774-F776","v":-8227},{"$f":"G774-G776","v":-7520},{"$f":"H774-H776","v":-276},{"$f":"I774-I776","v":0},{"$f":"J774-J776","v":0},0,-205,-136,-12,-66,-12,{"$f":"Q774-Q776","v":0},{"$f":"SUM(G777:Q777)","v":-8227},{"$f":"F777-R777","v":0}]
[]
[{"$f":"co_name","v":"DUKE ENERGY KENTUCKY, INC."},null,null,null,null,null,null,null,null,null,null,null,null,null,null,null,null,{"$f":"R1","v":"FR-16(7)(v)-9"}]
[{"$f":"$A$2","v":"TRANSMISSION CUSTOMER ALLOCATED - ELECTRIC COST OF SERVICE"},null,null,null,null,null,null,null,null,null,null,null,null,null,null,null,null,{"$f":"R2","v":"WITNESS RESPONSIBLE:"}]
[{"$f":"case_name","v":"CASE NO: 2019-00271"},null,null,null,null,null,null,null,null,null,null,null,null,null,null,null,null,{"$f":"Witness","v":"JAMES E. ZIOLKOWSKI"}]
[{"$f":"data_filing","v":"DATA: 12 MONTHS ACTUAL  & 0 MONTHS ESTIMATED"},null,null,null,null,null,null,null,null,null,null,null,null,null,null,null,null,{"$f":"\"PAGE \"&Pages-3&\" OF \"&Pages","v":"PAGE 15 OF 18"}]
[{"$f":"type","v":"TYPE OF FILING: \"X\" ORIGINAL   UPDATED    REVISED  "}]
[]
[null,null,null,null,null,{"$f":"F$7","v":"TOTAL"},null,{"$f":"H$7","v":"DS"},{"$f":"I$7","v":"GSFL"},{"$f":"J$7","v":"EH"},{"$f":"K$7","v":"SP"},"DT SEC","DT PRI","DP","TT",null,"OTHER"]
["LINE",null,null,null,null,{"$f":"F$8","v":"TRANSMISSION"},{"$f":"G$8","v":"RS"},{"$f":"H$8","v":"SECONDARY"},{"$f":"I$8","v":"SECONDARY"},{"$f":"J$8","v":"SECONDARY"},{"$f":"K$8","v":"SECONDARY"},"SECONDARY","PRIMARY","PRIMARY","TRANSMISSION","LT","WATER",{"$f":"R8","v":"TOTAL"},"ALL"]
["NO.","ROR, TAX RATES & SPEC FACTORS",null,"ALLO",null,{"$f":"F$9","v":"CUSTOMER"},{"$f":"G$9","v":"RESIDENTIAL"},{"$f":"H$9","v":"DISTRIBUTION"},{"$f":"I$9","v":"DISTRIBUTION"},{"$f":"J$9","v":"DISTRIBUTION"},{"$f":"K$9","v":"DISTRIBUTION"},"DISTRIBUTION","DISTRIBUTION","DISTRIBUTION","TIME OF DAY","LIGHTING","PUMPING",{"$f":"R9","v":"AT ISSUE"},"OTHER"]
[null,null,"Schedule 11",null,null,null,{"$f":"G$10","v":3},{"$f":"H$10","v":4},{"$f":"I$10","v":5},{"$f":"J$10","v":6},{"$f":"K$10","v":7},8,9,10,11,12,13,null," "]
[1,"RATE OF RETURN"]
[2," CAPITALIZATION AMOUNTS",null,null,null,null,"RATIO"]
[3,null,{"$f":"'FR-16(7)(v)-1 Functional'!C791","v":"LONG TERM DEBT"},null,null,{"$f":"'FR-16(7)(v)-6 TRANS Classified'!$F$791","v":665948506},{"$f":"IF(TotalCap=0,0,ROUND(F791/TotalCap,4))","v":0.45929999999999999}]
[4,null,{"$f":"'FR-16(7)(v)-1 Functional'!C792","v":"PREFERRED STOCK"},null,null,{"$f":"'FR-16(7)(v)-6 TRANS Classified'!$F$792","v":0},{"$f":"IF(TotalCap=0,0,ROUND(F792/TotalCap,4))","v":0}]
[5,null,{"$f":"'FR-16(7)(v)-1 Functional'!C793","v":"COMMON STOCK"},null,null,{"$f":"[0]!Equity","v":699348680},{"$f":"1-G791-G792-G794-G795","v":0.48239999999999994}]
[6,null,{"$f":"'FR-16(7)(v)-1 Functional'!C794","v":"SHORT TERM DEBT"},null,null,{"$f":"'FR-16(7)(v)-6 TRANS Classified'!$F$794","v":84600060},{"$f":"IF(TotalCap=0,0,ROUND(F794/TotalCap,4))","v":5.8299999999999998E-2}]
[7,null,{"$f":"'FR-16(7)(v)-1 Functional'!C795","v":"UNAMORTIZED DISCOUNT"},null,null,{"$f":"'FR-16(7)(v)-6 TRANS Classified'!$F$795","v":0},{"$f":"IF(TotalCap=0,0,ROUND(F795/TotalCap,4))","v":0}]
[8,null,{"$f":"'FR-16(7)(v)-1 Functional'!C796","v":"  TOTAL"},null,null,{"$f":"SUM(F790:F795)","v":1449897246},{"$f":"SUM(G791:G795)","v":1}]
[9]
[10," COST OF CAPITAL"]
[11,null,{"$f":"'FR-16(7)(v)-1 Functional'!C799","v":"LONG TERM DEBT"},null,null,{"$f":"'FR-16(7)(v)-6 TRANS Classified'!$F$799","v":4.0730000000000002E-2}]
[12,null,{"$f":"'FR-16(7)(v)-1 Functional'!C800","v":"PREFERRED STOCK"},null,null,{"$f":"'FR-16(7)(v)-6 TRANS Classified'!$F$800","v":0}]
[13,null,{"$f":"'FR-16(7)(v)-1 Functional'!C801","v":"COMMON STOCK"},null,null,{"$f":"'FR-16(7)(v)-6 TRANS Classified'!$F$801","v":9.8000000000000004E-2}]
[14,null,{"$f":"'FR-16(7)(v)-1 Functional'!C802","v":"SHORT TERM DEBT"},null,null,{"$f":"'FR-16(7)(v)-6 TRANS Classified'!$F$802","v":1.9369999999999998E-2}]
[15,null,{"$f":"'FR-16(7)(v)-1 Functional'!C803","v":"UNAMORTIZED DISCOUNT"},null,null,{"$f":"'FR-16(7)(v)-6 TRANS Classified'!$F$803","v":0}]
[16]
[17," WEIGHTED COST OF CAPITAL"]
[18,null,{"$f":"'FR-16(7)(v)-1 Functional'!C806","v":"LONG TERM DEBT"},null,null,{"$f":"ROUND(G791*F799,4)","v":1.8700000000000001E-2}]
[19,null,{"$f":"'FR-16(7)(v)-1 Functional'!C807","v":"PREFERRED STOCK"},null,null,{"$f":"ROUND(G792*F800,4)","v":0}]
[20,null,{"$f":"'FR-16(7)(v)-1 Functional'!C808","v":"COMMON STOCK"},null,null,{"$f":"ROUND(G793*F801,4)","v":4.7300000000000002E-2}]
[21,null,{"$f":"'FR-16(7)(v)-1 Functional'!C809","v":"SHORT TERM DEBT"},null,null,{"$f":"ROUND(G794*F802,4)","v":1.1000000000000001E-3}]
[22,null,{"$f":"'FR-16(7)(v)-1 Functional'!C810","v":"UNAMORTIZED DISCOUNT"},null,null,{"$f":"ROUND(G795*F803,4)","v":0}]
[23,null,{"$f":"'FR-16(7)(v)-1 Functional'!C811","v":"  TOT RATE OF RETURN ALLOWABLE"},null,null,{"$f":"SUM(F806:F810)","v":6.7100000000000007E-2}]
[24]
[25,"TAX RATES AND SPECIAL FACTORS"]
[26,null,{"$f":"'FR-16(7)(v)-1 Functional'!C814","v":"SHORT TERM DEBT COST"},null,null,0,{"$f":"F814","v":0},{"$f":"F814","v":0},{"$f":"F814","v":0},{"$f":"G814","v":0},0,0,0,0,0,0,{"$f":"$F$814","v":0},{"$f":"F814","v":0},{"$f":"F814","v":0}]
[27,null,{"$f":"'FR-16(7)(v)-1 Functional'!C815","v":"FEDERAL INCOME TAX RATE"},null,null,{"$f":"FIT","v":0.21},{"$f":"FIT","v":0.21},0.21,0.21,0.21,0.21,0.21,0.21,0.21,0.21,0.21,0.21,0.21,0.21]
[28,null,{"$f":"'FR-16(7)(v)-1 Functional'!C816","v":"STATE INCOME TAX RATE"},null,null,{"$f":"SIT","v":4.9685000000000007E-2},{"$f":"SIT","v":4.9685000000000007E-2},4.9685000000000007E-2,4.9685000000000007E-2,4.9685000000000007E-2,4.9685000000000007E-2,4.9685000000000007E-2,4.9685000000000007E-2,4.9685000000000007E-2,4.9685000000000007E-2,4.9685000000000007E-2,4.9685000000000007E-2,4.9685000000000007E-2,4.9685000000000007E-2]
[29,null,{"$f":"'FR-16(7)(v)-1 Functional'!C817","v":"REVENUE TAX RATE"},null,null,0,{"$f":"RevTax","v":0},0,0,0,0,0,0,0,0,0,0,0,0]
[]
[{"$f":"co_name","v":"DUKE ENERGY KENTUCKY, INC."},null,null,null,null,null,null,null,null,null,null,null,null,null,null,null,null,{"$f":"R1","v":"FR-16(7)(v)-9"}]
[{"$f":"$A$2","v":"TRANSMISSION CUSTOMER ALLOCATED - ELECTRIC COST OF SERVICE"},null,null,null,null,null,null,null,null,null,null,null,null,null,null,null,null,{"$f":"R2","v":"WITNESS RESPONSIBLE:"}]
[{"$f":"case_name","v":"CASE NO: 2019-00271"},null,null,null,null,null,null,null,null,null,null,null,null,null,null,null,null,{"$f":"Witness","v":"JAMES E. ZIOLKOWSKI"}]
[{"$f":"data_filing","v":"DATA: 12 MONTHS ACTUAL  & 0 MONTHS ESTIMATED"},null,null,null,null,null,null,null,null,null,null,null,null,null,null,null,null,{"$f":"\"PAGE \"&Pages-2&\" OF \"&Pages","v":"PAGE 16 OF 18"}]
[{"$f":"type","v":"TYPE OF FILING: \"X\" ORIGINAL   UPDATED    REVISED  "}]
[]
[null,null,null,null,null,{"$f":"F$7","v":"TOTAL"},null,{"$f":"H$7","v":"DS"},{"$f":"I$7","v":"GSFL"},{"$f":"J$7","v":"EH"},{"$f":"K$7","v":"SP"},"DT SEC","DT PRI","DP","TT",null,"OTHER"]
["LINE",null,null,null,null,{"$f":"F$8","v":"TRANSMISSION"},{"$f":"G$8","v":"RS"},{"$f":"H$8","v":"SECONDARY"},{"$f":"I$8","v":"SECONDARY"},{"$f":"J$8","v":"SECONDARY"},{"$f":"K$8","v":"SECONDARY"},"SECONDARY","PRIMARY","PRIMARY","TRANSMISSION","LT","WATER",{"$f":"R8","v":"TOTAL"},"ALL",null,null,null,"RATE GRP"]
["NO.","ALLOCATORS",null,"SOURCE","ALLO",{"$f":"F$9","v":"CUSTOMER"},{"$f":"G$9","v":"RESIDENTIAL"},{"$f":"H$9","v":"DISTRIBUTION"},{"$f":"I$9","v":"DISTRIBUTION"},{"$f":"J$9","v":"DISTRIBUTION"},{"$f":"K$9","v":"DISTRIBUTION"},"DISTRIBUTION","DISTRIBUTION","DISTRIBUTION","TIME OF DAY","LIGHTING","PUMPING",{"$f":"R9","v":"AT ISSUE"},"OTHER",null,null,null,"CHECK"]
[null,null,"Schedule 12",null,1,null,{"$f":"G$10","v":3},{"$f":"H$10","v":4},{"$f":"I$10","v":5},{"$f":"J$10","v":6},{"$f":"K$10","v":7},8,9,10,11,12,13,null," "]
[1,"DEMAND ENERGY & SPEC. ASSIGN"]
[2,null,"TOTAL KW (12 COIN PEAK) - PRODUCTION","External",null,{"$f":"'WP FR-16(7)(v)-KW & KWH @Gen'!D38","v":717751},{"$f":"'WP FR-16(7)(v)-KW & KWH @Gen'!D17","v":323558},{"$f":"'WP FR-16(7)(v)-KW & KWH @Gen'!D18+'WP FR-16(7)(v)-KW & KWH @Gen'!D31","v":194251},{"$f":"'WP FR-16(7)(v)-KW & KWH @Gen'!D19","v":933},{"$f":"'WP FR-16(7)(v)-KW & KWH @Gen'!D20","v":3682},{"$f":"'WP FR-16(7)(v)-KW & KWH @Gen'!D21","v":51},{"$f":"'WP FR-16(7)(v)-KW & KWH @Gen'!D22+'WP FR-16(7)(v)-KW & KWH @Gen'!D32","v":96851},{"$f":"'WP FR-16(7)(v)-KW & KWH @Gen'!D23","v":64029},{"$f":"'WP FR-16(7)(v)-KW & KWH @Gen'!D24","v":3090},{"$f":"'WP FR-16(7)(v)-KW & KWH @Gen'!D25+'WP FR-16(7)(v)-KW & KWH @Gen'!D35","v":30336},{"$f":"'WP FR-16(7)(v)-KW & KWH @Gen'!D26","v":891},{"$f":"'WP FR-16(7)(v)-KW & KWH @Gen'!D27","v":79},{"$f":"SUM(G830:Q830)","v":717751},{"$f":"F830-R830","v":0}]
[3,null,{"$f":"'FR-16(7)(v)-1 Functional'!C831","v":"RATIO TO TOTAL ELECTRIC"},null,{"$f":"'FR-16(7)(v)-1 Functional'!E831","v":"K201"},{"$f":"IF($F830=0,0,ROUND(F830/$F830,5))","v":1},{"$f":"IF(S830=0,F831-SUM(H831:Q831),ROUND(G830/F830,5))","v":0.45077999999999985},{"$f":"IF($F$830=0,0,ROUND(H830/$F$830,5))","v":0.27063999999999999},{"$f":"IF($F$830=0,0,ROUND(I830/$F$830,5))","v":1.2999999999999999E-3},5.13E-3,6.9999999999999994E-5,0.13494,8.9209999999999998E-2,4.3099999999999996E-3,4.2270000000000002E-2,1.24E-3,1.1E-4,{"$f":"SUM(G831:Q831)","v":0.99999999999999989},{"$f":"F831-R831","v":0},null,null,null,{"$f":"R831","v":0.99999999999999989}]
[4,null,"TOTAL KW (12 COIN PEAK) - TRANSMISSION","External",null,{"$f":"'WP FR-16(7)(v)-KW & KWH @Gen'!D38","v":717751},{"$f":"'WP FR-16(7)(v)-KW & KWH @Gen'!D17","v":323558},{"$f":"'WP FR-16(7)(v)-KW & KWH @Gen'!D18+'WP FR-16(7)(v)-KW & KWH @Gen'!D31","v":194251},{"$f":"'WP FR-16(7)(v)-KW & KWH @Gen'!D19","v":933},{"$f":"'WP FR-16(7)(v)-KW & KWH @Gen'!D20","v":3682},{"$f":"'WP FR-16(7)(v)-KW & KWH @Gen'!D21","v":51},{"$f":"'WP FR-16(7)(v)-KW & KWH @Gen'!D22+'WP FR-16(7)(v)-KW & KWH @Gen'!D32","v":96851},{"$f":"'WP FR-16(7)(v)-KW & KWH @Gen'!D23","v":64029},{"$f":"'WP FR-16(7)(v)-KW & KWH @Gen'!D24","v":3090},{"$f":"'WP FR-16(7)(v)-KW & KWH @Gen'!D25+'WP FR-16(7)(v)-KW & KWH @Gen'!D35","v":30336},{"$f":"'WP FR-16(7)(v)-KW & KWH @Gen'!D26","v":891},{"$f":"'WP FR-16(7)(v)-KW & KWH @Gen'!D27","v":79},{"$f":"SUM(G832:Q832)","v":717751},{"$f":"F832-R832","v":0}]
[5,null,{"$f":"'FR-16(7)(v)-1 Functional'!C833","v":"RATIO TO TOTAL ELECTRIC"},null,"K202",{"$f":"IF($F832=0,0,ROUND(F832/$F832,5))","v":1},{"$f":"IF(S832=0,F833-SUM(H833:Q833),ROUND(G832/F832,5))","v":0.45077999999999985},{"$f":"IF($F$830=0,0,ROUND(H832/$F$830,5))","v":0.27063999999999999},1.2999999999999999E-3,5.13E-3,6.9999999999999994E-5,0.13494,8.9209999999999998E-2,4.3099999999999996E-3,4.2270000000000002E-2,1.24E-3,1.1E-4,{"$f":"SUM(G833:Q833)","v":0.99999999999999989},{"$f":"F833-R833","v":0}]
[6,null,{"$f":"'FR-16(7)(v)-1 Functional'!C834","v":"DISTRIBUTION KW (NON-COIN PEAK) "},"External",null,{"$f":"'WP FR-16(7)(v)-KW & KWH @Dist'!D39","v":1514633},{"$f":"'WP FR-16(7)(v)-KW & KWH @Dist'!D18","v":899439},{"$f":"'WP FR-16(7)(v)-KW & KWH @Dist'!D19+'WP FR-16(7)(v)-KW & KWH @Dist'!D32","v":321857},{"$f":"'WP FR-16(7)(v)-KW & KWH @Dist'!D20","v":1158},{"$f":"'WP FR-16(7)(v)-KW & KWH @Dist'!D21","v":10653},{"$f":"'WP FR-16(7)(v)-KW & KWH @Dist'!D22","v":109},{"$f":"'WP FR-16(7)(v)-KW & KWH @Dist'!D23+'WP FR-16(7)(v)-KW & KWH @Dist'!D33","v":138051},{"$f":"'WP FR-16(7)(v)-KW & KWH @Dist'!D24+'WP FR-16(7)(v)-KW & KWH @Dist'!D34","v":84382},{"$f":"'WP FR-16(7)(v)-KW & KWH @Dist'!D25+'WP FR-16(7)(v)-KW & KWH @Dist'!D35","v":5687},{"$f":"'WP FR-16(7)(v)-KW & KWH @Dist'!D26+'WP FR-16(7)(v)-KW & KWH @Dist'!D36","v":45755},{"$f":"'WP FR-16(7)(v)-KW & KWH @Dist'!D27","v":7098},{"$f":"'WP FR-16(7)(v)-KW & KWH @Dist'!D28","v":444},{"$f":"SUM(G834:Q834)","v":1514633},{"$f":"F834-R834","v":0}]
[7,null,{"$f":"'FR-16(7)(v)-1 Functional'!C835","v":"RATIO TO TOTAL ELECTRIC"},null,{"$f":"'FR-16(7)(v)-1 Functional'!E835","v":"K203"},{"$f":"IF($F834=0,0,ROUND(F834/$F834,5))","v":1},{"$f":"IF(S834=0,F835-SUM(H835:Q835),ROUND(G834/F834,5))","v":0.59384999999999999},{"$f":"IF(F834=0,0,ROUND(H834/F834,5))","v":0.21249999999999999},{"$f":"IF($F$834=0,0,ROUND(I834/$F$834,5))","v":7.6000000000000004E-4},{"$f":"IF($F$834=0,0,ROUND(J834/$F$834,5))","v":7.0299999999999998E-3},6.9999999999999994E-5,9.1139999999999999E-2,5.5710000000000003E-2,3.7499999999999999E-3,3.0210000000000001E-2,4.6899999999999997E-3,{"$f":"IF(G834=0,0,ROUND(Q834/F834,5))","v":2.9E-4},1,0,null,null,null,{"$f":"R835","v":1}]
[8,null,"DISTRIBUTION LINE - PRIMARY","External",null,{"$f":"'WP FR-16(7)(v) Distlines'!G38","v":731338},{"$f":"'WP FR-16(7)(v) Distlines'!$G$17","v":343307},{"$f":"'WP FR-16(7)(v) Distlines'!$G$18+'WP FR-16(7)(v) Distlines'!$G$31","v":202748},{"$f":"'WP FR-16(7)(v) Distlines'!$G$19","v":945},{"$f":"'WP FR-16(7)(v) Distlines'!$G$20","v":4447},{"$f":"'WP FR-16(7)(v) Distlines'!$G$21","v":53},{"$f":"'WP FR-16(7)(v) Distlines'!$G$22+'WP FR-16(7)(v) Distlines'!$G$32","v":103544},{"$f":"'WP FR-16(7)(v) Distlines'!$G$23+'WP FR-16(7)(v) Distlines'!$G$33","v":68199},{"$f":"'WP FR-16(7)(v) Distlines'!$G$24+'WP FR-16(7)(v) Distlines'!$G$34","v":3420},{"$f":"'WP FR-16(7)(v) Distlines'!$G$25+'WP FR-16(7)(v) Distlines'!$G$35","v":0},{"$f":"'WP FR-16(7)(v) Distlines'!$G$26","v":4595},{"$f":"'WP FR-16(7)(v) Distlines'!$G$27","v":80},731338,0]
[9,null,{"$f":"'FR-16(7)(v)-1 Functional'!C837","v":"RATIO TO TOTAL ELECTRIC"},null,{"$f":"'FR-16(7)(v)-1 Functional'!E837","v":"K205"},{"$f":"IF($F836=0,0,ROUND(F836/$F836,5))","v":1},{"$f":"IF(S836=0,F837-SUM(H837:Q837),ROUND(G836/F836,5))","v":0.4694299999999999},{"$f":"IF($F$836=0,0,ROUND(H836/$F$836,5))","v":0.27722999999999998},{"$f":"IF($F$836=0,0,ROUND(I836/$F$836,5))","v":1.2899999999999999E-3},6.0800000000000003E-3,6.9999999999999994E-5,0.14158000000000001,9.325E-2,4.6800000000000001E-3,0,6.28E-3,1.1E-4,0.99999999999999989,0,null,null,null,{"$f":"R837","v":0.99999999999999989}]
[10,null,"DISTRIBUTION LINE - SECONDARY","External",null,{"$f":"'WP FR-16(7)(v) Distlines'!K38","v":731338},{"$f":"'WP FR-16(7)(v) Distlines'!K17","v":343307},{"$f":"'WP FR-16(7)(v) Distlines'!K18+'WP FR-16(7)(v) Distlines'!K31","v":202748},{"$f":"'WP FR-16(7)(v) Distlines'!K19","v":945},{"$f":"'WP FR-16(7)(v) Distlines'!K20","v":4447},{"$f":"'WP FR-16(7)(v) Distlines'!K21","v":53},{"$f":"'WP FR-16(7)(v) Distlines'!K22+'WP FR-16(7)(v) Distlines'!K32","v":103544},{"$f":"'WP FR-16(7)(v) Distlines'!K23","v":68199},{"$f":"'WP FR-16(7)(v) Distlines'!K24+'WP FR-16(7)(v) Distlines'!K34","v":3420},{"$f":"'WP FR-16(7)(v) Distlines'!K25+'WP FR-16(7)(v) Distlines'!K35","v":0},{"$f":"'WP FR-16(7)(v) Distlines'!K26","v":4595},{"$f":"'WP FR-16(7)(v) Distlines'!K27","v":80},{"$f":"SUM(G838:Q838)","v":731338},{"$f":"F838-R838","v":0}]
[11,null,{"$f":"'FR-16(7)(v)-1 Functional'!C839","v":"RATIO TO TOTAL ELECTRIC"},null,"K206",{"$f":"IF($F838=0,0,ROUND(F838/$F838,5))","v":1},{"$f":"IF(S838=0,F839-SUM(H839:Q839),ROUND(G838/F838,5))","v":0.4694299999999999},{"$f":"IF($F$836=0,0,ROUND(H838/$F$836,5))","v":0.27722999999999998},{"$f":"IF($F$836=0,0,ROUND(I838/$F$836,5))","v":1.2899999999999999E-3},{"$f":"IF($F$836=0,0,ROUND(J838/$F$836,5))","v":6.0800000000000003E-3},{"$f":"IF($F$836=0,0,ROUND(K838/$F$836,5))","v":6.9999999999999994E-5},{"$f":"IF($F$836=0,0,ROUND(L838/$F$836,5))","v":0.14158000000000001},{"$f":"IF($F$838=0,0,ROUND(M838/$F$838,5))","v":9.325E-2},{"$f":"IF($F$838=0,0,ROUND(N838/$F$838,5))","v":4.6800000000000001E-3},{"$f":"IF($F$838=0,0,ROUND(O838/$F$838,5))","v":0},{"$f":"IF($F$838=0,0,ROUND(P838/$F$838,5))","v":6.28E-3},{"$f":"IF($F$838=0,0,ROUND(Q838/$F$838,5))","v":1.1E-4},{"$f":"SUM(G839:Q839)","v":0.99999999999999989},{"$f":"F839-R839","v":0}]
[12,null,{"$f":"'FR-16(7)(v)-1 Functional'!C840","v":"GROSS DISTRIBUTION PLANT EXCL. CCNC"},"External",null,{"$f":"SUM(F73:F90)","v":5192},{"$f":"SUM(G73:G90)","v":4197},950,0,7,1,34,0,1,1,0,1,5192,0]
[13,null,{"$f":"'FR-16(7)(v)-1 Functional'!C841","v":"RATIO TO TOTAL ELECTRIC"},null,{"$f":"'FR-16(7)(v)-1 Functional'!E841","v":"K209"},{"$f":"IF($F840=0,0,ROUND(F840/$F840,5))","v":1},{"$f":"IF(S840=0,F841-SUM(H841:Q841),ROUND(G840/F840,5))","v":0.80837000000000003},{"$f":"IF($F$840=0,0,ROUND(H840/$F$840,5))","v":0.18296999999999999},{"$f":"IF($F$840=0,0,ROUND(I840/$F$840,5))","v":0},1.3500000000000001E-3,1.9000000000000001E-4,6.5500000000000003E-3,0,1.9000000000000001E-4,1.9000000000000001E-4,0,1.9000000000000001E-4,1,0,null,null,null,{"$f":"R841","v":1}]
[14,null,{"$f":"'FR-16(7)(v)-1 Functional'!C842","v":"TOTAL DIVERSIFIED CLASS DEMANDS"},"External",null,{"$f":"'WP FR-16(7)(v)-KW & KWH @Dist'!L39","v":731338},{"$f":"'WP FR-16(7)(v)-KW & KWH @Dist'!L18","v":343307},{"$f":"'WP FR-16(7)(v)-KW & KWH @Dist'!L19+'WP FR-16(7)(v)-KW & KWH @Dist'!L32","v":202748},{"$f":"'WP FR-16(7)(v)-KW & KWH @Dist'!L20","v":945},{"$f":"'WP FR-16(7)(v)-KW & KWH @Dist'!L21","v":4447},{"$f":"'WP FR-16(7)(v)-KW & KWH @Dist'!L22","v":53},{"$f":"'WP FR-16(7)(v)-KW & KWH @Dist'!L23+'WP FR-16(7)(v)-KW & KWH @Dist'!L33","v":103544},{"$f":"'WP FR-16(7)(v)-KW & KWH @Dist'!L24","v":68199},{"$f":"'WP FR-16(7)(v)-KW & KWH @Dist'!L25","v":3420},{"$f":"'WP FR-16(7)(v)-KW & KWH @Dist'!L26","v":0},{"$f":"'WP FR-16(7)(v)-KW & KWH @Dist'!L27","v":4595},{"$f":"'WP FR-16(7)(v)-KW & KWH @Dist'!L28","v":80},731338,0]
[15,null,{"$f":"'FR-16(7)(v)-1 Functional'!C843","v":"RATIO TO TOTAL ELECTRIC"},null,{"$f":"'FR-16(7)(v)-1 Functional'!E843","v":"K215"},{"$f":"IF($F842=0,0,ROUND(F842/$F842,5))","v":1},{"$f":"IF(S842=0,F843-SUM(H843:Q843),ROUND(G842/F842,5))","v":0.4694299999999999},{"$f":"IF($F$842=0,0,ROUND(H842/$F$842,5))","v":0.27722999999999998},{"$f":"IF($F$842=0,0,ROUND(I842/$F$842,5))","v":1.2899999999999999E-3},6.0800000000000003E-3,6.9999999999999994E-5,0.14158000000000001,9.325E-2,4.6800000000000001E-3,0,6.28E-3,1.1E-4,0.99999999999999989,0,null,null,null,{"$f":"R843","v":0.99999999999999989}]
[16,null,{"$f":"'FR-16(7)(v)-1 Functional'!C844","v":"WEIGHTED CUSTOMER SERVICE"},"External",null,{"$f":"'WP FR-16(7)(v) Wtd services'!H38","v":143810},{"$f":"'WP FR-16(7)(v) Wtd services'!H17","v":128431},{"$f":"'WP FR-16(7)(v) Wtd services'!H18","v":12968},{"$f":"'WP FR-16(7)(v) Wtd services'!H19","v":172},{"$f":"'WP FR-16(7)(v) Wtd services'!H20","v":412},{"$f":"'WP FR-16(7)(v) Wtd services'!H21","v":14},{"$f":"'WP FR-16(7)(v) Wtd services'!H22","v":930},{"$f":"'WP FR-16(7)(v) Wtd services'!H23","v":222},{"$f":"'WP FR-16(7)(v) Wtd services'!H24","v":60},{"$f":"'WP FR-16(7)(v) Wtd services'!H25","v":66},{"$f":"'WP FR-16(7)(v) Wtd services'!H26","v":468},{"$f":"'WP FR-16(7)(v) Wtd services'!H27","v":11},143754,56]
[17,null,{"$f":"'FR-16(7)(v)-1 Functional'!C845","v":"RATIO TO TOTAL ELECTRIC"},null,{"$f":"'FR-16(7)(v)-1 Functional'!E845","v":"K217"},{"$f":"IF($F844=0,0,ROUND(F844/$F844,5))","v":1},{"$f":"IF(S844=0,F845-SUM(H845:Q845),ROUND(G844/F844,5))","v":0.89305999999999996},{"$f":"IF($F$844=0,0,ROUND(H844/$F$844,5))","v":9.017E-2},{"$f":"IF($F$844=0,0,ROUND(I844/$F$844,5))","v":1.1999999999999999E-3},2.8600000000000001E-3,1E-4,6.4700000000000001E-3,1.5399999999999999E-3,4.2000000000000002E-4,4.6000000000000001E-4,3.2499999999999999E-3,8.0000000000000007E-5,0.99960999999999978,3.900000000002235E-4,null,null,null,{"$f":"R845","v":0.99960999999999978}]
[18,null,{"$f":"'FR-16(7)(v)-1 Functional'!C846","v":"TOTAL KWH"},"External",null,{"$f":"'WP FR-16(7)(v)-KW & KWH @Gen'!F38","v":4261970981},{"$f":"'WP FR-16(7)(v)-KW & KWH @Gen'!$F$17","v":1608724299},{"$f":"'WP FR-16(7)(v)-KW & KWH @Gen'!$F$18+'WP FR-16(7)(v)-KW & KWH @Gen'!$F$31","v":1147823576},{"$f":"'WP FR-16(7)(v)-KW & KWH @Gen'!$F$19","v":6420710},{"$f":"'WP FR-16(7)(v)-KW & KWH @Gen'!$F$20","v":18228802},{"$f":"'WP FR-16(7)(v)-KW & KWH @Gen'!$F$21","v":298034},{"$f":"'WP FR-16(7)(v)-KW & KWH @Gen'!$F$22+'WP FR-16(7)(v)-KW & KWH @Gen'!$F$32","v":703280622},{"$f":"'WP FR-16(7)(v)-KW & KWH @Gen'!$F$23","v":488455966},{"$f":"'WP FR-16(7)(v)-KW & KWH @Gen'!$F$24","v":22905598},{"$f":"'WP FR-16(7)(v)-KW & KWH @Gen'!$F$25+'WP FR-16(7)(v)-KW & KWH @Gen'!$F$35","v":246755000},{"$f":"'WP FR-16(7)(v)-KW & KWH @Gen'!$F$26","v":18599129},{"$f":"'WP FR-16(7)(v)-KW & KWH @Gen'!$F$27","v":479245},4261970981,0]
[19,null,{"$f":"'FR-16(7)(v)-1 Functional'!C847","v":"RATIO TO TOTAL ELECTRIC"},null,{"$f":"'FR-16(7)(v)-1 Functional'!E847","v":"K301"},{"$f":"IF($F846=0,0,ROUND(F846/$F846,5))","v":1},{"$f":"IF(S846=0,F847-SUM(H847:Q847),ROUND(G846/F846,5))","v":0.37745999999999991},{"$f":"IF($F$846=0,0,ROUND(H846/$F$846,5))","v":0.26932},{"$f":"IF($F$846=0,0,ROUND(I846/$F$846,5))","v":1.5100000000000001E-3},4.28E-3,6.9999999999999994E-5,0.16500999999999999,0.11461,5.3699999999999998E-3,5.79E-2,4.3600000000000002E-3,1.1E-4,0.99999999999999989,0,null,null,null,{"$f":"R847","v":0.99999999999999989}]
[20,null,{"$f":"'FR-16(7)(v)-1 Functional'!C848","v":"DISTRIBUTION KWH"},"External",null,{"$f":"'WP FR-16(7)(v)-KW & KWH @Dist'!F39","v":4261970981},{"$f":"'WP FR-16(7)(v)-KW & KWH @Dist'!F18","v":1608724299},{"$f":"'WP FR-16(7)(v)-KW & KWH @Dist'!F19+'WP FR-16(7)(v)-KW & KWH @Dist'!F32","v":1147823576},{"$f":"'WP FR-16(7)(v)-KW & KWH @Dist'!F20","v":6420710},{"$f":"'WP FR-16(7)(v)-KW & KWH @Dist'!F21","v":18228802},{"$f":"'WP FR-16(7)(v)-KW & KWH @Dist'!F22","v":298034},{"$f":"'WP FR-16(7)(v)-KW & KWH @Dist'!F23+'WP FR-16(7)(v)-KW & KWH @Dist'!F33","v":703280622},{"$f":"'WP FR-16(7)(v)-KW & KWH @Dist'!F24","v":488455966},{"$f":"'WP FR-16(7)(v)-KW & KWH @Dist'!F25","v":22905598},{"$f":"'WP FR-16(7)(v)-KW & KWH @Dist'!F26","v":232255694},{"$f":"'WP FR-16(7)(v)-KW & KWH @Dist'!F27","v":18599129},{"$f":"'WP FR-16(7)(v)-KW & KWH @Dist'!F28","v":479245},4247471675,14499306]
[21,null,{"$f":"'FR-16(7)(v)-1 Functional'!C849","v":"RATIO TO TOTAL ELECTRIC"},null,{"$f":"'FR-16(7)(v)-1 Functional'!E849","v":"K303"},{"$f":"IF($F848=0,0,ROUND(F848/$F848,5))","v":1},{"$f":"IF(S848=0,F849-SUM(H849:Q849),ROUND(G848/F848,5))","v":0.37746000000000002},{"$f":"IF($F$848=0,0,ROUND(H848/$F$848,5))","v":0.26932},{"$f":"IF($F$848=0,0,ROUND(I848/$F$848,5))","v":1.5100000000000001E-3},4.28E-3,6.9999999999999994E-5,0.16500999999999999,0.11461,5.3699999999999998E-3,5.4489999999999997E-2,4.3600000000000002E-3,1.1E-4,0.99659000000000009,3.4099999999999131E-3,null,null,null,{"$f":"R849","v":0.99659000000000009}]
[22,null,{"$f":"'FR-16(7)(v)-1 Functional'!C850","v":"TOTAL KWH LESS LIGHTING"},"External",null,{"$f":"'WP FR-16(7)(v)-KW & KWH @Gen'!F38-'WP FR-16(7)(v)-KW & KWH @Gen'!F26","v":4243371852},{"$f":"'WP FR-16(7)(v)-KW & KWH @Gen'!F17","v":1608724299},{"$f":"'WP FR-16(7)(v)-KW & KWH @Gen'!F18+'WP FR-16(7)(v)-KW & KWH @Gen'!F31","v":1147823576},{"$f":"'WP FR-16(7)(v)-KW & KWH @Gen'!F19","v":6420710},{"$f":"'WP FR-16(7)(v)-KW & KWH @Gen'!F20","v":18228802},{"$f":"'WP FR-16(7)(v)-KW & KWH @Gen'!F21","v":298034},{"$f":"'WP FR-16(7)(v)-KW & KWH @Gen'!F22+'WP FR-16(7)(v)-KW & KWH @Gen'!F32","v":703280622},{"$f":"'WP FR-16(7)(v)-KW & KWH @Gen'!F23","v":488455966},{"$f":"'WP FR-16(7)(v)-KW & KWH @Gen'!F24","v":22905598},{"$f":"'WP FR-16(7)(v)-KW & KWH @Gen'!F25+'WP FR-16(7)(v)-KW & KWH @Gen'!F35","v":246755000},0,{"$f":"'WP FR-16(7)(v)-KW & KWH @Gen'!F27","v":479245},4243371852,0]
[23,null,{"$f":"'FR-16(7)(v)-1 Functional'!C851","v":"RATIO TO TOTAL ELECTRIC"},null,{"$f":"'FR-16(7)(v)-1 Functional'!E851","v":"K305"},{"$f":"IF($F850=0,0,ROUND(F850/$F850,5))","v":1},{"$f":"IF(S850=0,F851-SUM(H851:Q851),ROUND(G850/F850,5))","v":0.37910999999999984},{"$f":"IF($F$850=0,0,ROUND(H850/$F$850,5))","v":0.27050000000000002},{"$f":"IF($F$850=0,0,ROUND(I850/$F$850,5))","v":1.5100000000000001E-3},4.3E-3,6.9999999999999994E-5,0.16574,0.11511,5.4000000000000003E-3,5.815E-2,0,1.1E-4,0.99999999999999989,0,null,null,null,{"$f":"R851","v":0.99999999999999989}]
[24,null,{"$f":"'FR-16(7)(v)-1 Functional'!C852","v":"ASSIGN 100% TO RESIDENTIAL"},"External",null,1,1,0,0,0,0,0,0,0,0,0,0,1,0]
[25,null,{"$f":"'FR-16(7)(v)-1 Functional'!C853","v":"RATIO TO TOTAL ELECTRIC"},null,{"$f":"'FR-16(7)(v)-1 Functional'!E853","v":"K307"},{"$f":"IF($F852=0,0,ROUND(F852/$F852,5))","v":1},{"$f":"IF(S852=0,F853-SUM(H853:Q853),ROUND(G852/F852,5))","v":1},{"$f":"IF($F$852=0,0,ROUND(H852/$F$852,5))","v":0},{"$f":"IF($F$852=0,0,ROUND(I852/$F$852,5))","v":0},0,0,0,0,0,0,0,0,1,0,null,null,null,{"$f":"R853","v":1}]
[26,null,{"$f":"'FR-16(7)(v)-1 Functional'!C854","v":"ASSIGN 100% TO LIGHTING"},"External",null,1,0,0,0,0,0,0,0,0,0,1,0,1,0]
[27,null,{"$f":"'FR-16(7)(v)-1 Functional'!C855","v":"RATIO TO TOTAL ELECTRIC"},null,{"$f":"'FR-16(7)(v)-1 Functional'!E855","v":"K401"},{"$f":"IF($F854=0,0,ROUND(F854/$F854,5))","v":1},{"$f":"IF(S854=0,F855-SUM(H855:Q855),ROUND(G854/F854,5))","v":0},{"$f":"IF($F$854=0,0,ROUND(H854/$F$854,5))","v":0},{"$f":"IF($F$854=0,0,ROUND(I854/$F$854,5))","v":0},0,0,0,0,0,0,1,0,1,0,null,null,null,{"$f":"R855","v":1}]
[28,null,{"$f":"'FR-16(7)(v)-1 Functional'!C856","v":"DISTRIBUTION CUSTOMERS"},"External",null,{"$f":"'WP FR-16(7)(v)-KW & KWH @Dist'!H39","v":142392},{"$f":"'WP FR-16(7)(v)-KW & KWH @Dist'!$H18","v":128431},{"$f":"'WP FR-16(7)(v)-KW & KWH @Dist'!$H19+'WP FR-16(7)(v)-KW & KWH @Dist'!$H32","v":12972},{"$f":"'WP FR-16(7)(v)-KW & KWH @Dist'!$H20","v":172},{"$f":"'WP FR-16(7)(v)-KW & KWH @Dist'!$H21","v":103},{"$f":"'WP FR-16(7)(v)-KW & KWH @Dist'!$H22","v":14},{"$f":"'WP FR-16(7)(v)-KW & KWH @Dist'!$H23+'WP FR-16(7)(v)-KW & KWH @Dist'!$H33","v":159},{"$f":"'WP FR-16(7)(v)-KW & KWH @Dist'!$H24","v":37},{"$f":"'WP FR-16(7)(v)-KW & KWH @Dist'!$H25","v":10},{"$f":"'WP FR-16(7)(v)-KW & KWH @Dist'!$H26","v":11},{"$f":"'WP FR-16(7)(v)-KW & KWH @Dist'!$H27","v":468},{"$f":"'WP FR-16(7)(v)-KW & KWH @Dist'!$H28","v":11},142388,4]
[29,null,{"$f":"'FR-16(7)(v)-1 Functional'!C857","v":"RATIO TO TOTAL ELECTRIC"},null,{"$f":"'FR-16(7)(v)-1 Functional'!E857","v":"K405"},{"$f":"IF($F856=0,0,ROUND(F856/$F856,5))","v":1},{"$f":"IF(S856=0,F857-SUM(H857:Q857),ROUND(G856/F856,5))","v":0.90195000000000003},{"$f":"IF($F$856=0,0,ROUND(H856/$F$856,5))","v":9.11E-2},{"$f":"IF($F$856=0,0,ROUND(I856/$F$856,5))","v":1.2099999999999999E-3},7.2000000000000005E-4,1E-4,1.1199999999999999E-3,2.5999999999999998E-4,6.9999999999999994E-5,8.0000000000000007E-5,3.29E-3,{"$f":"IF(G856=0,0,ROUND(Q856/F856,5))","v":8.0000000000000007E-5},0.99998000000000009,1.9999999999908979E-5,null,null,null,{"$f":"R857","v":0.99998000000000009}]
[30,null,{"$f":"'FR-16(7)(v)-1 Functional'!C858","v":"METERS"},"External",null,{"$f":"'WP FR-16(7)(v) Meters'!E40","v":15813241},{"$f":"'WP FR-16(7)(v) Meters'!$E19","v":12782441},{"$f":"'WP FR-16(7)(v) Meters'!$E20","v":2892747},{"$f":"'WP FR-16(7)(v) Meters'!$E21","v":0},{"$f":"'WP FR-16(7)(v) Meters'!$E22","v":22093},{"$f":"'WP FR-16(7)(v) Meters'!$E23","v":3451},{"$f":"'WP FR-16(7)(v) Meters'!$E24","v":102877},{"$f":"'WP FR-16(7)(v) Meters'!$E25","v":0},{"$f":"'WP FR-16(7)(v) Meters'!$E26","v":3805},{"$f":"'WP FR-16(7)(v) Meters'!$E27","v":3619},{"$f":"'WP FR-16(7)(v) Meters'!$E28","v":0},{"$f":"'WP FR-16(7)(v) Meters'!$E29","v":2208},15813241,0]
[31,null,{"$f":"'FR-16(7)(v)-1 Functional'!C859","v":"RATIO TO TOTAL ELECTRIC"},null,{"$f":"'FR-16(7)(v)-1 Functional'!E859","v":"K407"},{"$f":"IF($F858=0,0,ROUND(F858/$F858,5))","v":1},{"$f":"IF(S858=0,F859-SUM(H859:Q859),ROUND(G858/F858,5))","v":0.80832999999999999},{"$f":"IF($F$858=0,0,ROUND(H858/$F$858,5))","v":0.18293000000000001},{"$f":"IF($F$858=0,0,ROUND(I858/$F$858,5))","v":0},1.4E-3,2.2000000000000001E-4,6.5100000000000002E-3,0,2.4000000000000001E-4,2.3000000000000001E-4,0,1.3999999999999999E-4,1,0,null,null,null,{"$f":"R859","v":1}]
[32,null,{"$f":"'FR-16(7)(v)-1 Functional'!C860","v":"WEIGHTED CUSTOMER"},"External",null,{"$f":"'WP FR-16(7)(v) Meters'!H40","v":156470},{"$f":"'WP FR-16(7)(v) Meters'!H19","v":128431},{"$f":"'WP FR-16(7)(v) Meters'!H20+'WP FR-16(7)(v) Meters'!H33","v":25940},{"$f":"'WP FR-16(7)(v) Meters'!H21","v":172},{"$f":"'WP FR-16(7)(v) Meters'!H22","v":206},{"$f":"'WP FR-16(7)(v) Meters'!H23","v":28},{"$f":"'WP FR-16(7)(v) Meters'!H24+'WP FR-16(7)(v) Meters'!H34","v":1089},{"$f":"'WP FR-16(7)(v) Meters'!H25+'WP FR-16(7)(v) Meters'!H35","v":37},{"$f":"'WP FR-16(7)(v) Meters'!H26+'WP FR-16(7)(v) Meters'!H36","v":40},{"$f":"'WP FR-16(7)(v) Meters'!H27+'WP FR-16(7)(v) Meters'!H37","v":37},{"$f":"'WP FR-16(7)(v) Meters'!H28","v":468},{"$f":"'WP FR-16(7)(v) Meters'!H29","v":22},156470,0]
[33,null,{"$f":"'FR-16(7)(v)-1 Functional'!C861","v":"RATIO TO TOTAL ELECTRIC"},null,{"$f":"'FR-16(7)(v)-1 Functional'!E861","v":"K409"},{"$f":"IF($F860=0,0,ROUND(F860/$F860,5))","v":1},{"$f":"IF(S860=0,F861-SUM(H861:Q861),ROUND(G860/F860,5))","v":0.82079000000000002},{"$f":"IF($F$860=0,0,ROUND(H860/$F$860,5))","v":0.16578000000000001},{"$f":"IF($F$860=0,0,ROUND(I860/$F$860,5))","v":1.1000000000000001E-3},1.32E-3,1.8000000000000001E-4,6.96E-3,2.4000000000000001E-4,2.5999999999999998E-4,2.4000000000000001E-4,2.99E-3,1.3999999999999999E-4,1,0,null,null,null,{"$f":"R861","v":1}]
[34,null,{"$f":"'FR-16(7)(v)-1 Functional'!C862","v":"UNCOLLECTIBLE ACCOUNT 904"},"External",null,{"$f":"'WP FR-16(7)(v) CustAcct'!G31","v":5781023.7599999998},{"$f":"'WP FR-16(7)(v) CustAcct'!G17","v":5267443},{"$f":"'WP FR-16(7)(v) CustAcct'!G19","v":249785.75999999978},{"$f":"'WP FR-16(7)(v) CustAcct'!G20","v":1597},{"$f":"'WP FR-16(7)(v) CustAcct'!G21","v":1664},{"$f":"'WP FR-16(7)(v) CustAcct'!G22","v":82},{"$f":"'WP FR-16(7)(v) CustAcct'!G23","v":129741},{"$f":"'WP FR-16(7)(v) CustAcct'!G24","v":82815},{"$f":"'WP FR-16(7)(v) CustAcct'!G25","v":3765},{"$f":"'WP FR-16(7)(v) CustAcct'!G26","v":38893},{"$f":"'WP FR-16(7)(v) CustAcct'!G27","v":5192},{"$f":"'WP FR-16(7)(v) CustAcct'!G28","v":46},5781023.7599999998,0]
[35,null,{"$f":"'FR-16(7)(v)-1 Functional'!C863","v":"RATIO TO TOTAL ELECTRIC"},null,{"$f":"'FR-16(7)(v)-1 Functional'!E863","v":"K411"},{"$f":"IF($F862=0,0,ROUND(F862/$F862,5))","v":1},{"$f":"IF(S862=0,F863-SUM(H863:Q863),ROUND(G862/F862,5))","v":0.91115000000000002},{"$f":"IF($F$862=0,0,ROUND(H862/$F$862,5))","v":4.3209999999999998E-2},{"$f":"IF($F$862=0,0,ROUND(I862/$F$862,5))","v":2.7999999999999998E-4},2.9E-4,1.0000000000000001E-5,2.2440000000000002E-2,1.4330000000000001E-2,6.4999999999999997E-4,6.7299999999999999E-3,8.9999999999999998E-4,1.0000000000000001E-5,0.99999999999999989,0,null,null,null,{"$f":"R863","v":0.99999999999999989}]
[36,null,{"$f":"'FR-16(7)(v)-1 Functional'!C864","v":"KWH SALES LESS RTP"},"External",null,{"$f":"'WP FR-16(7)(v)-KW & KWH @Gen'!F28","v":4244213606},{"$f":"'WP FR-16(7)(v)-KW & KWH @Gen'!F17","v":1608724299},{"$f":"'WP FR-16(7)(v)-KW & KWH @Gen'!F18","v":1146956880},{"$f":"'WP FR-16(7)(v)-KW & KWH @Gen'!F19","v":6420710},{"$f":"'WP FR-16(7)(v)-KW & KWH @Gen'!F20","v":18228802},{"$f":"'WP FR-16(7)(v)-KW & KWH @Gen'!F21","v":298034},{"$f":"'WP FR-16(7)(v)-KW & KWH @Gen'!F22","v":700889249},{"$f":"'WP FR-16(7)(v)-KW & KWH @Gen'!F23","v":488455966},{"$f":"'WP FR-16(7)(v)-KW & KWH @Gen'!F24","v":22905598},{"$f":"'WP FR-16(7)(v)-KW & KWH @Gen'!F25","v":232255694},{"$f":"'WP FR-16(7)(v)-KW & KWH @Gen'!F26","v":18599129},{"$f":"'WP FR-16(7)(v)-KW & KWH @Gen'!F27","v":479245},{"$f":"SUM(G864:Q864)","v":4244213606},{"$f":"F864-R864","v":0}]
[37,null,{"$f":"'FR-16(7)(v)-1 Functional'!C865","v":"RATIO TO TOTAL ELECTRIC"},null,{"$f":"'FR-16(7)(v)-1 Functional'!E865","v":"K302"},{"$f":"IF($F864=0,0,ROUND(F864/$F864,5))","v":1},{"$f":"IF(S864=0,F865-SUM(H865:Q865),ROUND(G864/F863,5))","v":0.37904999999999989},{"$f":"IF(F864=0,0,ROUND(H864/F864,5))","v":0.27023999999999998},{"$f":"IF(F864=0,0,ROUND(I864/F864,5))","v":1.5100000000000001E-3},{"$f":"IF(F864=0,0,ROUND(J864/F864,5))","v":4.2900000000000004E-3},{"$f":"IF(F864=0,0,ROUND(K864/F864,5))","v":6.9999999999999994E-5},{"$f":"IF(F864=0,0,ROUND(L864/F864,5))","v":0.16514000000000001},{"$f":"IF(F864=0,0,ROUND(M864/F864,5))","v":0.11509},{"$f":"IF(F864=0,0,ROUND(N864/F864,5))","v":5.4000000000000003E-3},{"$f":"IF(F864=0,0,ROUND(O864/F864,5))","v":5.4719999999999998E-2},{"$f":"IF(F864=0,0,ROUND(P864/F864,5))","v":4.3800000000000002E-3},{"$f":"IF(F864=0,0,ROUND(Q864/F864,5))","v":1.1E-4},{"$f":"SUM(G865:Q865)","v":1},{"$f":"F865-R865","v":0}]
[38]
[39,null,{"$f":"'FR-16(7)(v)-1 Functional'!C867","v":"PRESENT REVENUES"},{"$f":"'FR-16(7)(v)-1 Functional'!$D$867","v":"CS09"},{"$f":"'FR-16(7)(v)-1 Functional'!E867","v":"R600"},{"$f":"'FR-16(7)(v)-6 TRANS Classified'!I867","v":-1391},{"$f":"F867-SUM(H867:Q867)","v":-1348},{"$f":"ROUND(F867*VLOOKUP(D867,ALLOCTABLE_Trans_Customer,$H$10,FALSE),0)","v":54},{"$f":"ROUND($F$867*VLOOKUP(D867,ALLOCTABLE_Trans_Customer,I10,FALSE),0)","v":0},{"$f":"ROUND($F$867*VLOOKUP(D867,ALLOCTABLE_Trans_Customer,J10,FALSE),0)","v":0},{"$f":"ROUND($F$867*VLOOKUP(D867,ALLOCTABLE_Trans_Customer,K10,FALSE),0)","v":0},{"$f":"ROUND($F$867*VLOOKUP(D867,ALLOCTABLE_Trans_Customer,L10,FALSE),0)","v":-45},{"$f":"ROUND($F$867*VLOOKUP(D867,ALLOCTABLE_Trans_Customer,M10,FALSE),0)","v":-31},{"$f":"ROUND($F$867*VLOOKUP(D867,ALLOCTABLE_Trans_Customer,N10,FALSE),0)","v":-2},{"$f":"ROUND($F$867*VLOOKUP(D867,ALLOCTABLE_Trans_Customer,O10,FALSE),0)","v":-17},{"$f":"ROUND($F$867*VLOOKUP(D867,ALLOCTABLE_Trans_Customer,P10,FALSE),0)","v":-2},{"$f":"ROUND($F$867*VLOOKUP(D867,ALLOCTABLE_Trans_Customer,Q10,FALSE),0)","v":0},{"$f":"SUM(G867:Q867)","v":-1391},{"$f":"F867-R867","v":0}]
[40,null,{"$f":"'FR-16(7)(v)-1 Functional'!C868","v":"PROPOSED REVENUES"},{"$f":"'FR-16(7)(v)-1 Functional'!$D$868","v":"A357"},{"$f":"'FR-16(7)(v)-1 Functional'!E868","v":"R602"},{"$f":"'FR-16(7)(v)-6 TRANS Classified'!I868","v":-12549},{"$f":"F868-SUM(H868:Q868)","v":-11559},{"$f":"ROUND(F868*VLOOKUP(D868,ALLOCTABLE_Trans_Customer,$H$10,FALSE),0)","v":-306},{"$f":"ROUND($F$868*VLOOKUP(D868,ALLOCTABLE_Trans_Customer,I10,FALSE),0)","v":0},{"$f":"ROUND($F$868*VLOOKUP(D868,ALLOCTABLE_Trans_Customer,J10,FALSE),0)","v":0},{"$f":"ROUND($F$868*VLOOKUP(D868,ALLOCTABLE_Trans_Customer,K10,FALSE),0)","v":0},{"$f":"ROUND($F$868*VLOOKUP(D868,ALLOCTABLE_Trans_Customer,L10,FALSE),0)","v":-324},{"$f":"ROUND($F$868*VLOOKUP(D868,ALLOCTABLE_Trans_Customer,M10,FALSE),0)","v":-216},{"$f":"ROUND($F$868*VLOOKUP(D868,ALLOCTABLE_Trans_Customer,N10,FALSE),0)","v":-18},{"$f":"ROUND($F$868*VLOOKUP(D868,ALLOCTABLE_Trans_Customer,O10,FALSE),0)","v":-108},{"$f":"ROUND($F$868*VLOOKUP(D868,ALLOCTABLE_Trans_Customer,P10,FALSE),0)","v":-18},{"$f":"ROUND($F$868*VLOOKUP(D868,ALLOCTABLE_Trans_Customer,Q10,FALSE),0)","v":0},{"$f":"SUM(G868:Q868)","v":-12549},{"$f":"F868-R868","v":0}]
[]
[{"$f":"co_name","v":"DUKE ENERGY KENTUCKY, INC."},null,null,null,null,null,null,null,null,null,null,null,null,null,null,null,null,{"$f":"R1","v":"FR-16(7)(v)-9"}]
[{"$f":"$A$2","v":"TRANSMISSION CUSTOMER ALLOCATED - ELECTRIC COST OF SERVICE"},null,null,null,null,null,null,null,null,null,null,null,null,null,null,null,null,{"$f":"R2","v":"WITNESS RESPONSIBLE:"}]
[{"$f":"case_name","v":"CASE NO: 2019-00271"},null,null,null,null,null,null,null,null,null,null,null,null,null,null,null,null,{"$f":"Witness","v":"JAMES E. ZIOLKOWSKI"}]
[{"$f":"data_filing","v":"DATA: 12 MONTHS ACTUAL  & 0 MONTHS ESTIMATED"},null,null,null,null,null,null,null,null,null,null,null,null,null,null,null,null,{"$f":"\"PAGE \"&Pages-1&\" OF \"&Pages","v":"PAGE 17 OF 18"}]
[{"$f":"type","v":"TYPE OF FILING: \"X\" ORIGINAL   UPDATED    REVISED  "}]
[]
[null,null,null,null,null,{"$f":"F$7","v":"TOTAL"},null,{"$f":"H$7","v":"DS"},{"$f":"I$7","v":"GSFL"},{"$f":"J$7","v":"EH"},{"$f":"K$7","v":"SP"},"DT SEC","DT PRI","DP","TT",null,"OTHER"]
["LINE",null,null,null,null,{"$f":"F$8","v":"TRANSMISSION"},{"$f":"G$8","v":"RS"},{"$f":"H$8","v":"SECONDARY"},{"$f":"I$8","v":"SECONDARY"},{"$f":"J$8","v":"SECONDARY"},{"$f":"K$8","v":"SECONDARY"},"SECONDARY","PRIMARY","PRIMARY","TRANSMISSION","LT","WATER",{"$f":"R8","v":"TOTAL"},"ALL"]
["NO.","ALLOCATORS",null,"SOURCE","ALLO",{"$f":"F$9","v":"CUSTOMER"},{"$f":"G$9","v":"RESIDENTIAL"},{"$f":"H$9","v":"DISTRIBUTION"},{"$f":"I$9","v":"DISTRIBUTION"},{"$f":"J$9","v":"DISTRIBUTION"},{"$f":"K$9","v":"DISTRIBUTION"},"DISTRIBUTION","DISTRIBUTION","DISTRIBUTION","TIME OF DAY","LIGHTING","PUMPING",{"$f":"R9","v":"AT ISSUE"},"OTHER"]
[null,null,"Schedule 12.1",null,1,null,{"$f":"G$10","v":3},{"$f":"H$10","v":4},{"$f":"I$10","v":5},{"$f":"J$10","v":6},{"$f":"K$10","v":7},8,9,10,11,12,13,null," "]
[]
[1,null,{"$f":"'FR-16(7)(v)-1 Functional'!C881","v":"PRESENT REVENUES"},"Internal",null,{"$f":"'FR-16(7)(v)-3 PROD Demand'!F881","v":309580654},{"$f":"'FR-16(7)(v)-3 PROD Demand'!G881","v":123883637},{"$f":"'FR-16(7)(v)-3 PROD Demand'!H881","v":90318223},{"$f":"'FR-16(7)(v)-3 PROD Demand'!I881","v":577046},{"$f":"'FR-16(7)(v)-3 PROD Demand'!J881","v":600937},{"$f":"'FR-16(7)(v)-3 PROD Demand'!K881","v":29960},{"$f":"'FR-16(7)(v)-3 PROD Demand'!L881","v":46910116},{"$f":"'FR-16(7)(v)-3 PROD Demand'!M881","v":29943872},{"$f":"'FR-16(7)(v)-3 PROD Demand'!N881","v":1361377},{"$f":"'FR-16(7)(v)-3 PROD Demand'!O881","v":14062168},{"$f":"'FR-16(7)(v)-3 PROD Demand'!P881","v":1876470},{"$f":"'FR-16(7)(v)-3 PROD Demand'!Q881","v":16848},{"$f":"SUM(G881:Q881)","v":309580654},{"$f":"F881-R881","v":0}]
[2,null,{"$f":"'FR-16(7)(v)-1 Functional'!C882","v":"RATIO TO TOTAL ELECTRIC"},null,{"$f":"'FR-16(7)(v)-1 Functional'!E882","v":"K901"},{"$f":"IF($F881=0,0,ROUND(F881/$F881,9))","v":1},{"$f":"IF(S881=0,F882-SUM(H882:Q882),ROUND(G881/F881,5))","v":0.40016595199999994},{"$f":"IF($F$881=0,0,ROUND(H881/$F$881,9))","v":0.29174375699999999},{"$f":"IF($F$881=0,0,ROUND(I881/$F$881,9))","v":1.86396E-3},1.9411319999999999E-3,9.6775999999999996E-5,0.151527931,9.6723977000000003E-2,4.3974870000000003E-3,4.5423277999999997E-2,6.0613280000000004E-3,5.4422000000000002E-5,{"$f":"SUM(G882:Q882)","v":1},{"$f":"F882-R882","v":0},null,null,null,{"$f":"R882","v":1}]
[3,null,{"$f":"'FR-16(7)(v)-1 Functional'!C883","v":"PROPOSED REVENUES"},"Internal",null,{"$f":"'FR-16(7)(v)-3 PROD Demand'!F883","v":355094168},{"$f":"'FR-16(7)(v)-3 PROD Demand'!G883","v":147195469},{"$f":"'FR-16(7)(v)-3 PROD Demand'!H883","v":101595371},{"$f":"'FR-16(7)(v)-3 PROD Demand'!I883","v":649414},{"$f":"'FR-16(7)(v)-3 PROD Demand'!J883","v":676300},{"$f":"'FR-16(7)(v)-3 PROD Demand'!K883","v":33717},{"$f":"'FR-16(7)(v)-3 PROD Demand'!L883","v":52518255},{"$f":"'FR-16(7)(v)-3 PROD Demand'!M883","v":33522516},{"$f":"'FR-16(7)(v)-3 PROD Demand'!N883","v":1546768},{"$f":"'FR-16(7)(v)-3 PROD Demand'!O883","v":15232520},{"$f":"'FR-16(7)(v)-3 PROD Demand'!P883","v":2104877},{"$f":"'FR-16(7)(v)-3 PROD Demand'!Q883","v":18961},{"$f":"SUM(G883:Q883)","v":355094168},{"$f":"F883-R883","v":0}]
[4,null,{"$f":"'FR-16(7)(v)-1 Functional'!C884","v":"RATIO TO TOTAL ELECTRIC"},null,{"$f":"'FR-16(7)(v)-1 Functional'!E884","v":"K902"},{"$f":"IF($F883=0,0,ROUND(F883/$F883,9))","v":1},{"$f":"IF(S883=0,F884-SUM(H884:Q884),ROUND(G883/F883,5))","v":0.41452516699999997},{"$f":"IF($F$883=0,0,ROUND(H883/$F$883,9))","v":0.28610825000000001},{"$f":"IF($F$883=0,0,ROUND(I883/$F$883,9))","v":1.8288499999999999E-3},1.904565E-3,9.4951999999999995E-5,0.14789951400000001,9.4404581000000001E-2,4.3559369999999998E-3,4.2897128E-2,5.9276590000000001E-3,5.3396999999999997E-5,{"$f":"SUM(G884:Q884)","v":1},{"$f":"F884-R884","v":0}]
[5]
[6,"WEIGHTED RATIOS"]
[7,"GROSS ELECTRIC PLANT IN SERVICE"]
[8,null,{"$f":"'FR-16(7)(v)-1 Functional'!C888","v":"WTD GROSS PROD PLANT RATIOS"},"Internal",{"$f":"'FR-16(7)(v)-1 Functional'!E888","v":"P129"},0,{"$f":"IF(F888=0,0,F888-SUM(H888:Q888))","v":0},{"$f":"ROUND(IF($F$62=0,0,H62/$F$62),5)","v":0},0,0,0,{"$f":"ROUND(IF($F$62=0,0,L62/$F$62),5)","v":0},0,0,0,0,0,{"$f":"SUM(G888:Q888)","v":0},{"$f":"F888-R888","v":0},null,null,null,{"$f":"R888","v":0}]
[9,null,{"$f":"'FR-16(7)(v)-1 Functional'!C889","v":"WTD GROSS TRANS PLANT RATIOS"},"Internal",{"$f":"'FR-16(7)(v)-1 Functional'!E889","v":"T129"},1,1,{"$f":"ROUND(IF($F$68=0,0,H68/$F$68),5)","v":0},0,0,0,0,0,0,0,0,0,1,0,null,null,null,1]
[10,null,{"$f":"'FR-16(7)(v)-1 Functional'!C890","v":"WTD GROSS P & T PLT RATIOS"},"Internal",{"$f":"'FR-16(7)(v)-1 Functional'!E890","v":"PT29"},1,1,{"$f":"ROUND(IF($F$70=0,0,H70/$F$70),5)","v":0},0,0,0,{"$f":"ROUND(IF($F$70=0,0,L70/$F$70),5)","v":0},0,0,0,0,0,1,0]
[11,null,{"$f":"'FR-16(7)(v)-1 Functional'!C891","v":"WTD GROSS DIST PLANT RATIOS"},"Internal",{"$f":"'FR-16(7)(v)-1 Functional'!E891","v":"D149"},0,0,{"$f":"ROUND(IF($F$94=0,0,H94/$F$94),5)","v":0.18293000000000001},0,1.2999999999999999E-3,1.6000000000000001E-4,{"$f":"ROUND(IF($F$94=0,0,L94/$F$94),5)","v":6.5199999999999998E-3},0,1.6000000000000001E-4,1.6000000000000001E-4,0,1.6000000000000001E-4,0.19138999999999998,-0.19138999999999998]
[12,null,{"$f":"'FR-16(7)(v)-1 Functional'!C892","v":"WTD GROSS TRANS & DIST RATIOS"},"Internal",{"$f":"'FR-16(7)(v)-1 Functional'!E892","v":"TD29"},1,0.80861000000000005,{"$f":"ROUND(IF($F$97=0,0,H97/$F$97),5)","v":0.18293000000000001},0,1.2999999999999999E-3,1.6000000000000001E-4,{"$f":"ROUND(IF($F$97=0,0,L97/$F$97),5)","v":6.5199999999999998E-3},0,1.6000000000000001E-4,1.6000000000000001E-4,0,1.6000000000000001E-4,1.0000000000000002,0,null,null,null,1.0000000000000002]
[13,null,{"$f":"'FR-16(7)(v)-1 Functional'!C893","v":"WTD GROSS PTD PLT RATIOS"},"Internal",{"$f":"'FR-16(7)(v)-1 Functional'!E893","v":"PD29"},1,0.92017000000000004,{"$f":"ROUND(IF($F$109=0,0,H109/$F$109),5)","v":3.1649999999999998E-2},0,0,0,{"$f":"ROUND(IF($F$109=0,0,L109/$F$109),5)","v":2.3619999999999999E-2},1.512E-2,9.3999999999999997E-4,7.5599999999999999E-3,9.3999999999999997E-4,0,1,0,null,null,null,1]
[14,null,{"$f":"'FR-16(7)(v)-1 Functional'!C894","v":"WTD GROSS G & I PLT RATIOS"},"Internal",{"$f":"'FR-16(7)(v)-1 Functional'!E894","v":"G129"},1,0.91986999999999997,{"$f":"ROUND(IF($F$121=0,0,H121/$F$121),5)","v":3.1719999999999998E-2},0,0,0,{"$f":"ROUND(IF($F$121=0,0,L121/$F$121),5)","v":2.4209999999999999E-2},1.503E-2,8.3000000000000001E-4,7.5100000000000002E-3,8.3000000000000001E-4,0,0.99999999999999989,0,null,null,null,0.99999999999999989]
[15,null,{"$f":"'FR-16(7)(v)-1 Functional'!C895","v":"WTD GROSS C & O PLANT RATIOS"},"Internal",{"$f":"'FR-16(7)(v)-1 Functional'!E895","v":"C129"},1,0.67777999999999994,{"$f":"ROUND(IF($F$123=0,0,H123/$F$123),5)","v":0.36048000000000002},0,2.8300000000000001E-3,3.5E-4,{"$f":"ROUND(IF($F$123=0,0,L123/$F$123),5)","v":-1.3809999999999999E-2},-1.771E-2,-7.1000000000000002E-4,-8.5000000000000006E-3,-1.06E-3,3.5E-4,1.0000000000000002,0,null,null,null,1.0000000000000002]
[16,null,{"$f":"'FR-16(7)(v)-1 Functional'!C896","v":"WTD GROSS PLANT RATIOS"},"Internal",{"$f":"'FR-16(7)(v)-1 Functional'!E896","v":"GP19"},0,0,{"$f":"ROUND(IF($F$171=0,0,H171/$F$171),5)","v":0.18329999999999999},0,1.72E-3,0,{"$f":"ROUND(IF($F$171=0,0,L171/$F$171),5)","v":6.0200000000000002E-3},0,0,0,0,0,0.19103999999999999,-0.19103999999999999,null,null,null,0.19103999999999999]
[17,null,{"$f":"'FR-16(7)(v)-1 Functional'!C897","v":"WTD TOTAL DEPRC RES RATIOS"},"Internal",{"$f":"'FR-16(7)(v)-1 Functional'!E897","v":"DR19"},1,1.2065900000000001,{"$f":"ROUND(IF($F$200=0,0,H200/$F$200),5)","v":-0.35824},0,-4.4000000000000003E-3,0,{"$f":"ROUND(IF($F$200=0,0,L200/$F$200),5)","v":6.8129999999999996E-2},5.2749999999999998E-2,4.4000000000000003E-3,2.6370000000000001E-2,4.4000000000000003E-3,0,1,0,null,null,null,1]
[18]
[19,"NET ELECTRIC PLANT"]
[20,null,{"$f":"'FR-16(7)(v)-1 Functional'!C900","v":"WTD NET PROD PLANT RATIOS"},"Internal",{"$f":"'FR-16(7)(v)-1 Functional'!E900","v":"P229"},0,{"$f":"IF(F900=0,0,F900-SUM(H900:Q900))","v":0},{"$f":"ROUND(IF($F$216=0,0,H216/$F$216),5)","v":0},0,0,0,{"$f":"ROUND(IF($F$216=0,0,L216/$F$216),5)","v":0},0,0,0,0,0,{"$f":"SUM(G900:Q900)","v":0},{"$f":"F900-R900","v":0},null,null,null,{"$f":"R900","v":0}]
[21,null,{"$f":"'FR-16(7)(v)-1 Functional'!C901","v":"WTD NET TRANS PLANT RATIOS"},"Internal",{"$f":"'FR-16(7)(v)-1 Functional'!E901","v":"T229"},1,1,{"$f":"ROUND(IF($F$222=0,0,H222/$F$222),5)","v":0},0,0,0,0,0,0,0,0,0,1,0,null,null,null,{"$f":"R901","v":1}]
[22,null,{"$f":"'FR-16(7)(v)-1 Functional'!C902","v":"WTD NET DIST LINES  - POLES, TOWERS & FIXTURES"},"Internal",{"$f":"'FR-16(7)(v)-1 Functional'!E902","v":"PL49"},0,0,{"$f":"ROUND(IF(SUM($F$228:$F$231)=0,0,SUM(H228:H231)/SUM($F$228:$F$231)),5)","v":0},{"$f":"ROUND(IF(SUM($F$228:$F$231)=0,0,SUM(I228:I231)/SUM($F$228:$F$231)),5)","v":0},0,0,0,0,0,0,0,0,0,0,null,null,null,{"$f":"R902","v":0}]
[23,null,{"$f":"'FR-16(7)(v)-1 Functional'!C903","v":"WTD NET TOTAL DIST PLANT RATIOS"},"Internal",{"$f":"'FR-16(7)(v)-1 Functional'!E903","v":"D249"},0,0,{"$f":"ROUND(IF($F$248=0,0,H248/$F$248),5)","v":0.18284},0,1.2099999999999999E-3,2.0000000000000001E-4,{"$f":"ROUND(IF($F$248=0,0,L248/$F$248),5)","v":6.6299999999999996E-3},0,2.0000000000000001E-4,2.0000000000000001E-4,0,2.0000000000000001E-4,0.19148000000000001,-0.19148000000000001]
[24,null,{"$f":"'FR-16(7)(v)-1 Functional'!C904","v":"WTD NET TRANS & DIST RATIOS"},"Internal",{"$f":"'FR-16(7)(v)-1 Functional'!E904","v":"NT29"},1,0.80852000000000002,{"$f":"ROUND(IF($F$251=0,0,H251/$F$251),5)","v":0.18284},0,1.2099999999999999E-3,2.0000000000000001E-4,{"$f":"ROUND(IF($F$251=0,0,L251/$F$251),5)","v":6.6299999999999996E-3},0,2.0000000000000001E-4,2.0000000000000001E-4,0,2.0000000000000001E-4,1,0]
[25,null,{"$f":"'FR-16(7)(v)-1 Functional'!C905","v":"WTD NET G & I PLT RATIOS"},"Internal",{"$f":"'FR-16(7)(v)-1 Functional'!E905","v":"G229"},1,0.91918999999999995,{"$f":"ROUND(IF($F$263=0,0,H263/$F$263),5)","v":3.2329999999999998E-2},0,0,0,{"$f":"ROUND(IF($F$263=0,0,L263/$F$263),5)","v":2.3890000000000002E-2},1.546E-2,6.9999999999999999E-4,7.7299999999999999E-3,6.9999999999999999E-4,0,1,0]
[26,null,{"$f":"'FR-16(7)(v)-1 Functional'!C906","v":"WTD NET C & O PLANT RATIOS"},"Internal",{"$f":"'FR-16(7)(v)-1 Functional'!E906","v":"C229"},1,0.92,{"$f":"ROUND(IF($F$275=0,0,H275/$F$275),5)","v":3.2730000000000002E-2},0,0,0,{"$f":"ROUND(IF($F$275=0,0,L275/$F$275),5)","v":2.545E-2},1.455E-2,0,7.2700000000000004E-3,0,0,1,0]
[27,null,{"$f":"'FR-16(7)(v)-1 Functional'!C907","v":"WTD NET PLANT RATIOS"},"Internal",{"$f":"'FR-16(7)(v)-1 Functional'!E907","v":"NP29"},1,0.75114999999999998,{"$f":"ROUND(IF($F$277=0,0,H277/$F$277),5)","v":0.26074999999999998},0,1.83E-3,2.9999999999999997E-4,{"$f":"ROUND(IF($F$277=0,0,L277/$F$277),5)","v":-2.4399999999999999E-3},-7.9299999999999995E-3,0,-3.6600000000000001E-3,-2.9999999999999997E-4,2.9999999999999997E-4,1,0]
[28]
[29,"WORKING CAPITAL"]
[30,null,{"$f":"'FR-16(7)(v)-1 Functional'!C910","v":"WTD MATERIAL & SUPPLY RATIOS"},"Internal",{"$f":"'FR-16(7)(v)-1 Functional'!E910","v":"W669"},1,{"$f":"IF(F910=0,0,F910-SUM(H910:Q910))","v":0.91952999999999996},{"$f":"ROUND(IF($F$399=0,0,H399/$F$399),5)","v":3.082E-2},0,0,0,{"$f":"ROUND(IF($F$399=0,0,L399/$F$399),5)","v":2.3970000000000002E-2},1.541E-2,1.7099999999999999E-3,6.8500000000000002E-3,1.7099999999999999E-3,0,{"$f":"SUM(G910:Q910)","v":1},{"$f":"F910-R910","v":0},null,null,null,{"$f":"R910","v":1}]
[31,null,{"$f":"'FR-16(7)(v)-1 Functional'!C911","v":"WTD PREPAYMENTS RATIOS"},"Internal",{"$f":"'FR-16(7)(v)-1 Functional'!E911","v":"W689"},1,{"$f":"IF(F911=0,0,F911-SUM(H911:Q911))","v":1},{"$f":"ROUND(IF($F$405=0,0,H405/$F$405),5)","v":0},0,0,0,{"$f":"ROUND(IF($F$405=0,0,L405/$F$405),5)","v":0},0,0,0,0,0,{"$f":"SUM(G911:Q911)","v":1},{"$f":"F911-R911","v":0},null,null,null,{"$f":"R911","v":1}]
[32,null,{"$f":"'FR-16(7)(v)-1 Functional'!C912","v":"WTD TOTAL WORKING CASH RATIOS"},"Internal",{"$f":"'FR-16(7)(v)-1 Functional'!E912","v":"W719"},1,{"$f":"IF(F912=0,0,F912-SUM(H912:Q912))","v":1},{"$f":"ROUND(IF($F$408=0,0,H408/$F$408),5)","v":0},0,0,0,{"$f":"ROUND(IF($F$408=0,0,L408/$F$408),5)","v":0},0,0,0,0,0,{"$f":"SUM(G912:Q912)","v":1},{"$f":"F912-R912","v":0},null,null,null,{"$f":"R912","v":1}]
[33,null,{"$f":"'FR-16(7)(v)-1 Functional'!C913","v":"WTD TOTAL MISC WRKNG CAP RATIO"},"Internal",{"$f":"'FR-16(7)(v)-1 Functional'!E913","v":"W749"},1,{"$f":"IF(F913=0,0,F913-SUM(H913:Q913))","v":1},{"$f":"ROUND(IF($F$414=0,0,H414/$F$414),5)","v":0},0,0,0,{"$f":"ROUND(IF($F$414=0,0,L414/$F$414),5)","v":0},0,0,0,0,0,{"$f":"SUM(G913:Q913)","v":1},{"$f":"F913-R913","v":0},null,null,null,{"$f":"R913","v":1}]
[34,null,{"$f":"'FR-16(7)(v)-1 Functional'!C914","v":"WTD TOTAL WRKNG CAP RATIOS"},"Internal",{"$f":"'FR-16(7)(v)-1 Functional'!E914","v":"WC79"},1,{"$f":"IF(F914=0,0,F914-SUM(H914:Q914))","v":0.91937999999999998},{"$f":"ROUND(IF($F$416=0,0,H416/$F$416),5)","v":3.0870000000000002E-2},0,0,0,{"$f":"ROUND(IF($F$416=0,0,L416/$F$416),5)","v":2.401E-2},1.5440000000000001E-2,1.72E-3,6.8599999999999998E-3,1.72E-3,0,{"$f":"SUM(G914:Q914)","v":1},{"$f":"F914-R914","v":0}]
[35]
[36,"RATE BASE"]
[37,null,{"$f":"'FR-16(7)(v)-1 Functional'!C917","v":"WTD NET OCRB RATIOS"},"Internal",{"$f":"'FR-16(7)(v)-1 Functional'!E917","v":"RB29"},1,{"$f":"IF(F917=0,0,F917-SUM(H917:Q917))","v":0.83367999999999998},{"$f":"ROUND(IF($F$390=0,0,H390/$F$390),5)","v":0.14777999999999999},1.9000000000000001E-4,1.31E-3,1.9000000000000001E-4,{"$f":"ROUND(IF($F$390=0,0,L390/$F$390),5)","v":1.03E-2},3.9300000000000003E-3,3.6999999999999999E-4,1.8699999999999999E-3,1.9000000000000001E-4,1.9000000000000001E-4,{"$f":"SUM(G917:Q917)","v":1},{"$f":"F917-R917","v":0}]
[38,null,{"$f":"'FR-16(7)(v)-1 Functional'!C918","v":"WTD TOTAL RATE BASE RATIOS"},"Internal",{"$f":"'FR-16(7)(v)-1 Functional'!E918","v":"RB99"},1,{"$f":"IF(F918=0,0,F918-SUM(H918:Q918))","v":0.82318000000000002},{"$f":"ROUND(IF($F$426=0,0,H426/$F$426),5)","v":0.16211},2.1000000000000001E-4,1.47E-3,2.1000000000000001E-4,{"$f":"ROUND(IF($F$426=0,0,L426/$F$426),5)","v":8.6199999999999992E-3},2.5200000000000001E-3,2.1000000000000001E-4,1.2600000000000001E-3,0,2.1000000000000001E-4,{"$f":"SUM(G918:Q918)","v":1},{"$f":"F918-R918","v":0}]
[39,null,{"$f":"'FR-16(7)(v)-1 Functional'!C919","v":"WTD CWIP RATIO"},"Internal",{"$f":"'FR-16(7)(v)-1 Functional'!E919","v":"CW29"},1,{"$f":"IF(F919=0,0,F919-SUM(H919:Q919))","v":1},{"$f":"ROUND(IF($F$375=0,0,H375/$F$375),5)","v":0},0,0,0,{"$f":"ROUND(IF($F$375=0,0,L375/$F$375),5)","v":0},0,0,0,0,0,{"$f":"SUM(G919:Q919)","v":1},{"$f":"F919-R919","v":0},null,null,null,{"$f":"R919","v":1}]
[]
[{"$f":"co_name","v":"DUKE ENERGY KENTUCKY, INC."},null,null,null,null,null,null,null,null,null,null,null,null,null,null,null,null,{"$f":"R1","v":"FR-16(7)(v)-9"}]
[{"$f":"$A$2","v":"TRANSMISSION CUSTOMER ALLOCATED - ELECTRIC COST OF SERVICE"},null,null,null,null,null,null,null,null,null,null,null,null,null,null,null,null,{"$f":"R2","v":"WITNESS RESPONSIBLE:"}]
[{"$f":"case_name","v":"CASE NO: 2019-00271"},null,null,null,null,null,null,null,null,null,null,null,null,null,null,null,null,{"$f":"Witness","v":"JAMES E. ZIOLKOWSKI"}]
[{"$f":"data_filing","v":"DATA: 12 MONTHS ACTUAL  & 0 MONTHS ESTIMATED"},null,null,null,null,null,null,null,null,null,null,null,null,null,null,null,null,{"$f":"\"PAGE \"&Pages&\" OF \"&Pages","v":"PAGE 18 OF 18"}]
[{"$f":"type","v":"TYPE OF FILING: \"X\" ORIGINAL   UPDATED    REVISED  "}]
[]
[null,null,null,null,null,{"$f":"F$7","v":"TOTAL"},null,{"$f":"H$7","v":"DS"},{"$f":"I$7","v":"GSFL"},{"$f":"J$7","v":"EH"},{"$f":"K$7","v":"SP"},"DT SEC","DT PRI","DP","TT",null,"OTHER"]
["LINE",null,null,null,null,{"$f":"F$8","v":"TRANSMISSION"},{"$f":"G$8","v":"RS"},{"$f":"H$8","v":"SECONDARY"},{"$f":"I$8","v":"SECONDARY"},{"$f":"J$8","v":"SECONDARY"},{"$f":"K$8","v":"SECONDARY"},"SECONDARY","PRIMARY","PRIMARY","TRANSMISSION","LT","WATER",{"$f":"R8","v":"TOTAL"},"ALL"]
["NO.","ALLOCATORS",null,"SOURCE","ALLO",{"$f":"F$9","v":"CUSTOMER"},{"$f":"G$9","v":"RESIDENTIAL"},{"$f":"H$9","v":"DISTRIBUTION"},{"$f":"I$9","v":"DISTRIBUTION"},{"$f":"J$9","v":"DISTRIBUTION"},{"$f":"K$9","v":"DISTRIBUTION"},"DISTRIBUTION","DISTRIBUTION","DISTRIBUTION","TIME OF DAY","LIGHTING","PUMPING",{"$f":"R9","v":"AT ISSUE"},"OTHER"]
[null,null,"Schedule 12.2",null,1,null,{"$f":"G$10","v":3},{"$f":"H$10","v":4},{"$f":"I$10","v":5},{"$f":"J$10","v":6},{"$f":"K$10","v":7},8,9,10,11,12,13,null," "]
[1,"WEIGHTED O & M EXPENSE RATIOS"]
[2,null,{"$f":"'FR-16(7)(v)-1 Functional'!C932","v":"WTD PROD DEMAND O&M EXP RATIOS"},"Internal",{"$f":"'FR-16(7)(v)-1 Functional'!E932","v":"P349"},1,{"$f":"ROUND(IF($F$457=0,0,G457/$F$457),5)","v":0},{"$f":"ROUND(IF($F$457=0,0,H457/$F$457),5)","v":0},0,0,0,{"$f":"ROUND(IF($F$457=0,0,L457/$F$457),5)","v":0},0,0,0,0,0,{"$f":"SUM(G932:Q932)","v":0},{"$f":"F932-R932","v":1},null,null,null,{"$f":"R932","v":0}]
[3,null,{"$f":"'FR-16(7)(v)-1 Functional'!C933","v":"WTD PROD ENERGY O&M EXP RATIOS"},"Internal",{"$f":"'FR-16(7)(v)-1 Functional'!E933","v":"E349"},1,{"$f":"ROUND(IF($F$453=0,0,G453/$F$453),5)","v":0},{"$f":"ROUND(IF($F$453=0,0,H453/$F$453),5)","v":0},0,0,0,{"$f":"ROUND(IF($F$453=0,0,L453/$F$453),5)","v":0},0,0,0,0,0,0,1,null,null,null,{"$f":"R933","v":0}]
[4,null,{"$f":"'FR-16(7)(v)-1 Functional'!C934","v":"WTD TOTAL PROD O&M EXP RATIOS"},"Internal",{"$f":"'FR-16(7)(v)-1 Functional'!E934","v":"P459"},1,{"$f":"ROUND(IF($F$459=0,0,G459/$F$459),5)","v":0},{"$f":"ROUND(IF($F$459=0,0,H459/$F$459),5)","v":0},0,0,0,{"$f":"ROUND(IF($F$459=0,0,L459/$F$459),5)","v":0},0,0,0,0,0,0,1,null,null,null,{"$f":"R934","v":0}]
[5,null,{"$f":"'FR-16(7)(v)-1 Functional'!C935","v":"WTD TRANS O&M EXP RATIOS"},"Internal",{"$f":"'FR-16(7)(v)-1 Functional'!E935","v":"T349"},1,{"$f":"ROUND(IF($F$466=0,0,G466/$F$466),5)","v":0},{"$f":"ROUND(IF($F$466=0,0,H466/$F$466),5)","v":0},0,0,0,{"$f":"ROUND(IF($F$466=0,0,L466/$F$466),5)","v":0},0,0,0,0,0,0,1,null,null,null,{"$f":"R935","v":0}]
[6,null,{"$f":"'FR-16(7)(v)-1 Functional'!C936","v":"WTD DIST O&M EXP RATIOS"},"Internal",{"$f":"'FR-16(7)(v)-1 Functional'!E936","v":"D349"},1,{"$f":"ROUND(IF($F$492=0,0,G492/$F$492),5)","v":0.81047999999999998},{"$f":"ROUND(IF($F$492=0,0,H492/$F$492),5)","v":0.18145},0,0,0,{"$f":"ROUND(IF($F$492=0,0,L492/$F$492),5)","v":8.0599999999999995E-3},0,0,0,0,0,0.99998999999999993,1.0000000000065512E-5]
[7,null,{"$f":"'FR-16(7)(v)-1 Functional'!C937","v":"WTD UNCOLLECTIBLE ACCOUNT O&M"},"Internal",{"$f":"'FR-16(7)(v)-1 Functional'!E937","v":"C311"},1,{"$f":"ROUND(IF($F$496=0,0,G496/$F$496),5)","v":0.91122999999999998},{"$f":"ROUND(IF($F$496=0,0,H496/$F$496),5)","v":4.3189999999999999E-2},2.9E-4,2.9E-4,0,{"$f":"ROUND(IF($F$496=0,0,L496/$F$496),5)","v":2.2460000000000001E-2},1.4330000000000001E-2,6.7000000000000002E-4,6.6899999999999998E-3,8.5999999999999998E-4,0,1.0000099999999998,-9.9999999998434674E-6,null,null,null,{"$f":"R937","v":1.0000099999999998}]
[8,null,{"$f":"'FR-16(7)(v)-1 Functional'!C938","v":"WTD CUST ACCT O&M EXP RATIOS"},"Internal",{"$f":"'FR-16(7)(v)-1 Functional'!E938","v":"C319"},1,{"$f":"ROUND(IF($F$503=0,0,G503/$F$503),5)","v":0.92066999999999999},{"$f":"ROUND(IF($F$503=0,0,H503/$F$503),5)","v":3.1269999999999999E-2},0,0,0,{"$f":"ROUND(IF($F$503=0,0,L503/$F$503),5)","v":2.3650000000000001E-2},1.5259999999999999E-2,7.6000000000000004E-4,7.6299999999999996E-3,7.6000000000000004E-4,0,1,0,null,null,null,{"$f":"R938","v":1}]
[9,null,{"$f":"'FR-16(7)(v)-1 Functional'!C939","v":"WTD CUST SERV & INFO O&M  EXP RATIOS"},"Internal",{"$f":"'FR-16(7)(v)-1 Functional'!E939","v":"C331"},1,{"$f":"ROUND(IF($F$518=0,0,G518/$F$518),5)","v":0},{"$f":"ROUND(IF($F$518=0,0,H518/$F$518),5)","v":0},0,0,0,{"$f":"ROUND(IF($F$518=0,0,L518/$F$518),5)","v":0},0,0,0,0,0,0,1,null,null,null,{"$f":"R939","v":0}]
[10,null,{"$f":"'FR-16(7)(v)-1 Functional'!C940","v":"WTD SALES O&M EXP RATIOS"},"Internal",{"$f":"'FR-16(7)(v)-1 Functional'!E940","v":"S319"},1,{"$f":"ROUND(IF($F$522=0,0,G522/$F$522),5)","v":0},{"$f":"ROUND(IF($F$522=0,0,H522/$F$522),5)","v":0},0,0,0,{"$f":"ROUND(IF($F$522=0,0,L522/$F$522),5)","v":0},0,0,0,0,0,{"$f":"SUM(G940:Q940)","v":0},{"$f":"F940-R940","v":1}]
[11,null,{"$f":"'FR-16(7)(v)-1 Functional'!C941","v":"WTD O&M EXP RATIOS"},"Internal",{"$f":"'FR-16(7)(v)-1 Functional'!E941","v":"OM39"},1,{"$f":"ROUND(IF($F$549=0,0,G549/$F$549),5)","v":0.93635999999999997},{"$f":"ROUND(IF($F$549=0,0,H549/$F$549),5)","v":7.3899999999999999E-3},0,0,0,{"$f":"ROUND(IF($F$549=0,0,L549/$F$549),5)","v":2.6700000000000002E-2},1.8180000000000002E-2,1.14E-3,9.0900000000000009E-3,1.14E-3,0,{"$f":"SUM(G941:Q941)","v":1},{"$f":"F941-R941","v":0}]
[12]
[13,"A & G EXPENSES"]
[14,null,{"$f":"'FR-16(7)(v)-1 Functional'!C944","v":"WTD PROD DEMAND A&G EXP RATIOS"},"Internal",{"$f":"'FR-16(7)(v)-1 Functional'!E944","v":"A300"},1,{"$f":"ROUND(IF($F$525=0,0,G525/$F$525),5)","v":0},{"$f":"ROUND(IF($F$525=0,0,H525/$F$525),5)","v":0},0,0,0,{"$f":"ROUND(IF($F$525=0,0,L525/$F$525),5)","v":0},0,0,0,0,0,{"$f":"SUM(G944:Q944)","v":0},{"$f":"F944-R944","v":1}]
[15,null,{"$f":"'FR-16(7)(v)-1 Functional'!C945","v":"WTD PROD ENERGY A&G EXP RATIOS"},"Internal",{"$f":"'FR-16(7)(v)-1 Functional'!E945","v":"A302"},1,{"$f":"ROUND(IF($F$526=0,0,G526/$F$526),5)","v":0},{"$f":"ROUND(IF($F$526=0,0,H526/$F$526),5)","v":0},0,0,0,{"$f":"ROUND(IF($F$526=0,0,L526/$F$526),5)","v":0},0,0,0,0,0,0,1]
[16,null,{"$f":"'FR-16(7)(v)-1 Functional'!C946","v":"WTD TRANS A&G EXP RATIOS"},"Internal",{"$f":"'FR-16(7)(v)-1 Functional'!E946","v":"A304"},1,{"$f":"ROUND(IF($F$527=0,0,G527/$F$527),5)","v":0},{"$f":"ROUND(IF($F$527=0,0,H527/$F$527),5)","v":0},0,0,0,{"$f":"ROUND(IF($F$527=0,0,L527/$F$527),5)","v":0},0,0,0,0,0,0,1]
[17,null,{"$f":"'FR-16(7)(v)-1 Functional'!C947","v":"WTD DIST A&G EXP RATIOS"},"Internal",{"$f":"'FR-16(7)(v)-1 Functional'!E947","v":"A306"},1,{"$f":"ROUND(IF($F$528=0,0,G528/$F$528),5)","v":0.81667000000000001},{"$f":"ROUND(IF($F$528=0,0,H528/$F$528),5)","v":0.18332999999999999},0,0,0,{"$f":"ROUND(IF($F$528=0,0,L528/$F$528),5)","v":0},0,0,0,0,0,1,0]
[18,null,{"$f":"'FR-16(7)(v)-1 Functional'!C948","v":"WTD CUST ACCT A&G EXP RATIOS"},"Internal",{"$f":"'FR-16(7)(v)-1 Functional'!E948","v":"A308"},1,{"$f":"ROUND(IF($F$529=0,0,G529/$F$529),5)","v":0.92013999999999996},{"$f":"ROUND(IF($F$529=0,0,H529/$F$529),5)","v":3.1440000000000003E-2},0,0,0,{"$f":"ROUND(IF($F$529=0,0,L529/$F$529),5)","v":2.3789999999999999E-2},1.529E-2,8.4999999999999995E-4,7.6499999999999997E-3,8.4999999999999995E-4,0,1.0000100000000001,-1.0000000000065512E-5]
[19,null,{"$f":"'FR-16(7)(v)-1 Functional'!C949","v":"WTD CUST SERV & INFO A&G  EXP RATIOS"},"Internal",{"$f":"'FR-16(7)(v)-1 Functional'!E949","v":"A310"},1,{"$f":"ROUND(IF($F$530=0,0,G530/$F$530),5)","v":0},{"$f":"ROUND(IF($F$530=0,0,H530/$F$530),5)","v":0},0,0,0,{"$f":"ROUND(IF($F$530=0,0,L530/$F$530),5)","v":0},0,0,0,0,0,0,1]
[20,null,{"$f":"'FR-16(7)(v)-1 Functional'!C950","v":"WTD SALES A&G EXP RATIOS"},"Internal",{"$f":"'FR-16(7)(v)-1 Functional'!E950","v":"A312"},1,{"$f":"ROUND(IF($F$531=0,0,G531/$F$531),5)","v":0},{"$f":"ROUND(IF($F$531=0,0,H531/$F$531),5)","v":0},0,0,0,{"$f":"ROUND(IF($F$531=0,0,L531/$F$531),5)","v":0},0,0,0,0,0,0,1]
[21,null,{"$f":"'FR-16(7)(v)-1 Functional'!C951","v":"WTD A&G EXPENSE UNADJUSTED"},"Internal",{"$f":"'FR-16(7)(v)-1 Functional'!E951","v":"A315"},1,{"$f":"ROUND(IF($F$532=0,0,G532/$F$532),5)","v":0.92569000000000001},{"$f":"ROUND(IF($F$532=0,0,H532/$F$532),5)","v":2.3279999999999999E-2},0,0,0,{"$f":"ROUND(IF($F$532=0,0,L532/$F$532),5)","v":2.5069999999999999E-2},1.6109999999999999E-2,8.9999999999999998E-4,8.0599999999999995E-3,8.9999999999999998E-4,0,1.0000099999999998,-9.9999999998434674E-6]
[22,null,{"$f":"'FR-16(7)(v)-1 Functional'!C952","v":"WTD A&G EXP RATIOS"},"Internal",{"$f":"'FR-16(7)(v)-1 Functional'!E952","v":"A357"},1,{"$f":"ROUND(IF($F$547=0,0,G547/$F$547),5)","v":0.92108999999999996},{"$f":"ROUND(IF($F$547=0,0,H547/$F$547),5)","v":2.4389999999999998E-2},0,0,0,{"$f":"ROUND(IF($F$547=0,0,L547/$F$547),5)","v":2.5819999999999999E-2},1.7219999999999999E-2,1.4300000000000001E-3,8.6099999999999996E-3,1.4300000000000001E-3,0,0.99999000000000005,9.9999999999544897E-6]
[23]
[24,"DEPRECIATION EXPENSES"]
[25,null,{"$f":"'FR-16(7)(v)-1 Functional'!C955","v":"WTD PRODUCTION DEPREC RATIOS"},"Internal",{"$f":"'FR-16(7)(v)-1 Functional'!E955","v":"P489"},1,{"$f":"ROUND(IF($F$563=0,0,G563/$F$563),5)","v":0},{"$f":"ROUND(IF($F$563=0,0,H563/$F$563),5)","v":0},0,0,0,{"$f":"ROUND(IF($F$563=0,0,L563/$F$563),5)","v":0},0,0,0,0,0,{"$f":"SUM(G955:Q955)","v":0},{"$f":"F955-R955","v":1},null,null,null,{"$f":"R955","v":0}]
[26,null,{"$f":"'FR-16(7)(v)-1 Functional'!C956","v":"WTD TRANS DEPREC RATIOS"},"Internal",{"$f":"'FR-16(7)(v)-1 Functional'!E956","v":"T489"},1,{"$f":"ROUND(IF($F$567=0,0,G567/$F$567),5)","v":0},{"$f":"ROUND(IF($F$567=0,0,H567/$F$567),5)","v":0},0,0,0,{"$f":"ROUND(IF($F$567=0,0,L567/$F$567),5)","v":0},0,0,0,0,0,0,1,null,null,null,{"$f":"R956","v":0}]
[27,null,{"$f":"'FR-16(7)(v)-1 Functional'!C957","v":"WTD DIST DEPREC RATIOS"},"Internal",{"$f":"'FR-16(7)(v)-1 Functional'!E957","v":"D489"},1,{"$f":"ROUND(IF($F$571=0,0,G571/$F$571),5)","v":0.81159000000000003},{"$f":"ROUND(IF($F$571=0,0,H571/$F$571),5)","v":0.18115999999999999},0,0,0,{"$f":"ROUND(IF($F$571=0,0,L571/$F$571),5)","v":7.2500000000000004E-3},0,0,0,0,0,1,0,null,null,null,{"$f":"R957","v":1}]
[28,null,{"$f":"'FR-16(7)(v)-1 Functional'!C958","v":"WTD GENERAL DEPREC EXP RATIOS"},"Internal",{"$f":"'FR-16(7)(v)-1 Functional'!E958","v":"G489"},1,{"$f":"ROUND(IF($F$575=0,0,G575/$F$575),5)","v":0.92},{"$f":"ROUND(IF($F$575=0,0,H575/$F$575),5)","v":0.03},0,0,0,{"$f":"ROUND(IF($F$575=0,0,L575/$F$575),5)","v":2.5000000000000001E-2},1.4999999999999999E-2,0,0.01,0,0,1,0,null,null,null,{"$f":"R958","v":1}]
[29,null,{"$f":"'FR-16(7)(v)-1 Functional'!C959","v":"WTD COM & OTHER DEP EXP RATIOS"},"Internal",{"$f":"'FR-16(7)(v)-1 Functional'!E959","v":"C489"},1,{"$f":"ROUND(IF($F$579=0,0,G579/$F$579),5)","v":1},{"$f":"ROUND(IF($F$579=0,0,H579/$F$579),5)","v":0},0,0,0,{"$f":"ROUND(IF($F$579=0,0,L579/$F$579),5)","v":0},0,0,0,0,0,1,0]
[30,null,{"$f":"'FR-16(7)(v)-1 Functional'!C960","v":"WTD TOT DEPREC EXP RATIOS"},"Internal",{"$f":"'FR-16(7)(v)-1 Functional'!E960","v":"DE49"},1,{"$f":"ROUND(IF($F$582=0,0,G582/$F$582),5)","v":1.15873},{"$f":"ROUND(IF($F$582=0,0,H582/$F$582),5)","v":-0.30159000000000002},0,0,0,{"$f":"ROUND(IF($F$582=0,0,L582/$F$582),5)","v":6.3490000000000005E-2},4.7620000000000003E-2,0,3.175E-2,0,0,1,0,null,null,null,{"$f":"R960","v":1}]
[31]
[32,"OTHER TAXES & MISC EXPENSES"]
[33,null,{"$f":"'FR-16(7)(v)-1 Functional'!C963","v":"WTD R. E. & PROP TAX RATIOS"},"Internal",{"$f":"'FR-16(7)(v)-1 Functional'!E963","v":"L529"},1,{"$f":"ROUND(IF($F$598=0,0,G598/$F$598),5)","v":0.74358999999999997},{"$f":"ROUND(IF($F$598=0,0,H598/$F$598),5)","v":0.25641000000000003},0,0,0,{"$f":"ROUND(IF($F$598=0,0,L598/$F$598),5)","v":0},0,0,0,0,0,{"$f":"SUM(G963:Q963)","v":1},{"$f":"F963-R963","v":0},null,null,null,{"$f":"R963","v":1}]
[34,null,{"$f":"'FR-16(7)(v)-1 Functional'!C964","v":"WTD MISC TAX RATIOS"},"Internal",{"$f":"'FR-16(7)(v)-1 Functional'!E964","v":"L589"},1,{"$f":"ROUND(IF($F$605=0,0,G605/$F$605),5)","v":0.90322999999999998},{"$f":"ROUND(IF($F$605=0,0,H605/$F$605),5)","v":3.2259999999999997E-2},0,0,0,{"$f":"ROUND(IF($F$605=0,0,L605/$F$605),5)","v":3.2259999999999997E-2},0,0,3.2259999999999997E-2,0,0,{"$f":"SUM(G964:Q964)","v":1.0000099999999998},{"$f":"F964-R964","v":-9.9999999998434674E-6},null,null,null,{"$f":"R964","v":1.0000099999999998}]
[35,null,{"$f":"'FR-16(7)(v)-1 Functional'!C965","v":"WTD OTHER TAX RATIOS"},"Internal",{"$f":"'FR-16(7)(v)-1 Functional'!E965","v":"L599"},1,{"$f":"ROUND(IF($F$612=0,0,G612/$F$612),5)","v":-0.2},{"$f":"ROUND(IF($F$612=0,0,H612/$F$612),5)","v":1.6},0,0,0,{"$f":"ROUND(IF($F$612=0,0,L612/$F$612),5)","v":-0.2},0,0,-0.2,0,0,{"$f":"SUM(G965:Q965)","v":1.0000000000000002},{"$f":"F965-R965","v":0},null,null,null,{"$f":"R965","v":1.0000000000000002}]
[36,null,{"$f":"'FR-16(7)(v)-1 Functional'!C966","v":"WTD OP EXP EX IT & REV RATIOS"},"Internal",{"$f":"'FR-16(7)(v)-1 Functional'!E966","v":"OP69"},1,{"$f":"ROUND(IF($F$618=0,0,G618/$F$618),5)","v":0.94718999999999998},{"$f":"ROUND(IF($F$618=0,0,H618/$F$618),5)","v":-7.7000000000000002E-3},0,0,0,{"$f":"ROUND(IF($F$618=0,0,L618/$F$618),5)","v":2.86E-2},1.925E-2,1.1000000000000001E-3,1.0449999999999999E-2,1.1000000000000001E-3,0,{"$f":"SUM(G966:Q966)","v":0.99998999999999982},{"$f":"F966-R966","v":1.0000000000176534E-5},null,null,null,{"$f":"R966","v":0.99998999999999982}]
[37]
[38,"TOTAL COST OF SERVICE"]
[39,null,{"$f":"'FR-16(7)(v)-1 Functional'!C969","v":"WTD TOTAL COST OF SERVICE"},"Internal",{"$f":"'FR-16(7)(v)-1 Functional'!E969","v":"CS09"},1,{"$f":"ROUND(IF($F$770=0,0,G770/$F$770),9)","v":0.969811321},-3.8993711E-2,0,0,0,3.2075472000000001E-2,2.2012579000000001E-2,1.257862E-3,1.2578616000000001E-2,1.257862E-3,0,{"$f":"SUM(G969:Q969)","v":1.0000000010000001},{"$f":"F969-R969","v":-1.000000082740371E-9},null,null,null,{"$f":"R969","v":1.0000000010000001}]
[40]
[41,"WAGES & SALARIES (K600-K639)"]
[42,null,{"$f":"'FR-16(7)(v)-1 Functional'!C972","v":"WTD RATIOS"},"Internal",{"$f":"'FR-16(7)(v)-1 Functional'!E972","v":"K669"}]
[]
[]
[]
[]
[]
[]
[]
[]
[]
[1,"REVENUE NOT TO BE INCLUDED IN REVENUE TAX CALC"]
[2,null,"GOVERNMENTAL",null,"A357",{"$f":"'FR-16(7)(v)-6 TRANS Classified'!I983","v":0},{"$f":"F983-SUM(H983:Q983)","v":0},{"$f":"ROUND(F983*VLOOKUP(E983,ALLOCTABLE_Trans_Customer,$H$10,FALSE),0)","v":0},{"$f":"ROUND(F983*VLOOKUP(E983,ALLOCTABLE_Trans_Customer,$I$10,FALSE),0)","v":0},{"$f":"ROUND(F983*VLOOKUP(E983,ALLOCTABLE_Trans_Customer,$J$10,FALSE),0)","v":0},{"$f":"ROUND(F983*VLOOKUP(E983,ALLOCTABLE_Trans_Customer,$K$10,FALSE),0)","v":0},{"$f":"ROUND(F983*VLOOKUP(E983,ALLOCTABLE_Trans_Customer,$L$10,FALSE),0)","v":0},{"$f":"ROUND(F983*VLOOKUP(E983,ALLOCTABLE_Trans_Customer,$M$10,FALSE),0)","v":0},{"$f":"ROUND(F983*VLOOKUP(E983,ALLOCTABLE_Trans_Customer,$N$10,FALSE),0)","v":0},{"$f":"ROUND(F983*VLOOKUP(E983,ALLOCTABLE_Trans_Customer,$O$10,FALSE),0)","v":0},{"$f":"ROUND(F983*VLOOKUP(E983,ALLOCTABLE_Trans_Customer,$P$10,FALSE),0)","v":0},{"$f":"ROUND(F983*VLOOKUP(E983,ALLOCTABLE_Trans_Customer,$Q$10,FALSE),0)","v":0},{"$f":"SUM(G983:Q983)","v":0},{"$f":"F983-R983","v":0}]
[3,null,"INTERDEPARTMENTAL",null,"A357",{"$f":"'FR-16(7)(v)-6 TRANS Classified'!I984","v":0},0,0,0,0,0,0,0,0,0,0,0,0,0]
[4,null,"UNCOLLECTIBLE EXPENSE",null,"A357",{"$f":"'FR-16(7)(v)-6 TRANS Classified'!I985","v":0},0,0,0,0,0,0,0,0,0,0,0,0,0]
[5,null,"OTHER PROD GAS ASSC COS  489050",null,"K301",{"$f":"'FR-16(7)(v)-6 TRANS Classified'!I986","v":0},0,0,0,0,0,0,0,0,0,0,0,0,0]
[6,null,"MISC. REV. - SALE OF MATERIAL",null,"A357",{"$f":"'FR-16(7)(v)-6 TRANS Classified'!I987","v":0},0,0,0,0,0,0,0,0,0,0,0,0,0]
[7,null,"RENT ASSOC. COS  49302,04,05,06,07,08,11 & 50",null,"NP29",{"$f":"'FR-16(7)(v)-6 TRANS Classified'!I988","v":0},0,0,0,0,0,0,0,0,0,0,0,0,0]
[8,null,"TOTAL","REXC",null,{"$f":"SUM(F982:F988)","v":0},0,0,0,{"$f":"SUM(J982:J988)","v":0},0,0,0,0,0,0,0,0,0]
[]
[]
[]
[]
[]
["DO NOT FILE THIS PAGE"]
[]
[{"$f":"co_name","v":"DUKE ENERGY KENTUCKY, INC."},null,null,null,null,null,null,null,null,null,null,null,null,null,null,null,null,{"$f":"R1","v":"FR-16(7)(v)-9"}]
[{"$f":"$A$2","v":"TRANSMISSION CUSTOMER ALLOCATED - ELECTRIC COST OF SERVICE"},null,null,null,null,null,null,null,null,null,null,null,null,null,null,null,null,{"$f":"R2","v":"WITNESS RESPONSIBLE:"}]
[{"$f":"case_name","v":"CASE NO: 2019-00271"},null,null,null,null,null,null,null,null,null,null,null,null,null,null,null,null,{"$f":"Witness","v":"JAMES E. ZIOLKOWSKI"}]
[{"$f":"data_filing","v":"DATA: 12 MONTHS ACTUAL  & 0 MONTHS ESTIMATED"},null,null,null,null,null,null,null,null,null,null,null,null,null,null,null,null,{"$f":"\"PAGE \"&Pages&\" OF \"&Pages","v":"PAGE 18 OF 18"}]
[{"$f":"type","v":"TYPE OF FILING: \"X\" ORIGINAL   UPDATED    REVISED  "}]
[]
[null,null,null,null,null,{"$f":"F$7","v":"TOTAL"},null,{"$f":"H$7","v":"DS"},{"$f":"I$7","v":"GSFL"},{"$f":"J$7","v":"EH"},{"$f":"K$7","v":"SP"},"DT SEC","DT PRI","DP","TT",null,"OTHER"]
["LINE",null,null,null,null,{"$f":"F$8","v":"TRANSMISSION"},{"$f":"G$8","v":"RS"},{"$f":"H$8","v":"SECONDARY"},{"$f":"I$8","v":"SECONDARY"},{"$f":"J$8","v":"SECONDARY"},{"$f":"K$8","v":"SECONDARY"},"SECONDARY","PRIMARY","PRIMARY","TRANSMISSION","LT","WATER",{"$f":"R8","v":"TOTAL"},"ALL"]
["NO.","INCOME TAX BASED ON REVENUES",null,"ALLO",null,{"$f":"F$9","v":"CUSTOMER"},{"$f":"G$9","v":"RESIDENTIAL"},{"$f":"H$9","v":"DISTRIBUTION"},{"$f":"I$9","v":"DISTRIBUTION"},{"$f":"J$9","v":"DISTRIBUTION"},{"$f":"K$9","v":"DISTRIBUTION"},"DISTRIBUTION","DISTRIBUTION","DISTRIBUTION","TIME OF DAY","LIGHTING","PUMPING",{"$f":"R9","v":"AT ISSUE"},"OTHER"]
[null,null,"Schedule 13",null,null,null,{"$f":"G$10","v":3},{"$f":"H$10","v":4},{"$f":"I$10","v":5},{"$f":"J$10","v":6},{"$f":"K$10","v":7},8,9,10,11,12,13,null," "]
[1,"NET INCOME COMPUTATION"]
[2,null,{"$f":"'FR-16(7)(v)-1 Functional'!C1008","v":"TOTAL ELECTRIC COST OF SERVICE"},null,null,{"$f":"F770","v":-1590},-1542,62,0,{"$f":"J770","v":0},0,-51,-35,-2,-20,-2,0,-1590,0]
[3,null,{"$f":"'FR-16(7)(v)-1 Functional'!C1009","v":"TOTAL OTHER OPERATING REVENUES"},null,null,{"$f":"F750","v":16},{"$f":"G750","v":13},{"$f":"H750","v":3},{"$f":"I750","v":0},{"$f":"J750","v":0},0,0,0,0,0,0,{"$f":"$Q$750","v":0},{"$f":"R750","v":16},{"$f":"S750","v":0}]
[4,null,{"$f":"'FR-16(7)(v)-1 Functional'!C1010","v":"  TOTAL ELECTRIC REVENUE"},null,null,{"$f":"SUM(F1007:F1009)","v":-1574},-1529,65,0,{"$f":"SUM(J1007:J1009)","v":0},0,-51,-35,-2,-20,-2,0,-1574,0]
[5,null,{"$f":"'FR-16(7)(v)-1 Functional'!C1011","v":"TOTAL OP EXP EX INC & REV TAX"},null,null,{"$f":"-F618","v":1818},{"$f":"-G618","v":1722},{"$f":"-H618","v":-14},{"$f":"-I618","v":0},{"$f":"-J618","v":0},0,52,35,2,19,2,{"$f":"-$Q$618","v":0},{"$f":"-R618","v":1818},{"$f":"-S618","v":0}]
[6,null,{"$f":"'FR-16(7)(v)-1 Functional'!C1012","v":"FIRM SERVICE REVENUE TAX"},null,null,{"$f":"-ROUND(F817*F1008,0)","v":0},{"$f":"F1012-SUM(H1012:Q1012)","v":0},{"$f":"-ROUND(H817*H1008,0)","v":0},0,0,0,0,0,0,0,0,0,{"$f":"SUM(G1012:Q1012)","v":0},{"$f":"-ROUND('FR-16(7)(v)-1 Functional'!K817*S1008,0)","v":0}]
[7,null,{"$f":"'FR-16(7)(v)-1 Functional'!C1013","v":"  NET INCOME"},null,null,{"$f":"SUM(F1010:F1012)","v":244},{"$f":"SUM(G1010:G1012)","v":193},{"$f":"SUM(H1010:H1012)","v":51},{"$f":"SUM(I1010:I1012)","v":0},{"$f":"SUM(J1010:J1012)","v":0},0,1,0,0,-1,0,{"$f":"SUM(Q1010:Q1012)","v":0},{"$f":"SUM(G1013:Q1013)","v":244},{"$f":"SUM(S1010:S1012)","v":0}]
[8]
[9,"ADJUSTMENTS TO NET INCOME"]
[10,null,{"$f":"'FR-16(7)(v)-1 Functional'!C1016","v":"TOTAL INTEREST EXPENSE"},null,null,{"$f":"-F633","v":-92},{"$f":"-G633","v":-76},{"$f":"-H633","v":-15},{"$f":"-I633","v":0},{"$f":"-J633","v":0},0,-1,0,0,0,0,{"$f":"-$Q$633","v":0},{"$f":"-R633","v":-92},{"$f":"-S633","v":0}]
[11,null,{"$f":"'FR-16(7)(v)-1 Functional'!C1017","v":"TOTAL OTHER DEDUCTIONS"},null,null,{"$f":"-F639","v":69},{"$f":"-G639","v":83},{"$f":"-H639","v":-25},{"$f":"-I639","v":0},{"$f":"-J639","v":0},0,5,4,0,2,0,{"$f":"-$Q$639","v":0},{"$f":"-R639","v":69},{"$f":"-S639","v":0}]
[12,null,{"$f":"'FR-16(7)(v)-1 Functional'!C1018","v":"  PRELIMINARY TAXABLE INCOME"},null,null,{"$f":"SUM(F1015:F1017)+F1013","v":221},{"$f":"SUM(G1015:G1017)+G1013","v":200},{"$f":"SUM(H1015:H1017)+H1013","v":11},{"$f":"SUM(I1015:I1017)+I1013","v":0},{"$f":"SUM(J1015:J1017)+J1013","v":0},0,5,4,0,1,0,{"$f":"SUM(Q1015:Q1017)+Q1013","v":0},{"$f":"SUM(G1018:Q1018)","v":221},{"$f":"SUM(S1015:S1017)+S1013","v":0}]
[13]
[14,"INCOME TAX BASED ON REVENUES"]
[15,"FEDERAL INCOME TAX COMPUTATION"]
[16,null,{"$f":"'FR-16(7)(v)-1 Functional'!C1022","v":"PRELIMINARY TAXABLE INCOME"},null,null,{"$f":"F1018","v":221},200,11,0,{"$f":"J1018","v":0},0,5,4,0,1,0,0,221,0]
[17,null,{"$f":"'FR-16(7)(v)-1 Functional'!C1023","v":"  NET FEDERAL TAXABLE INCOME"},null,null,{"$f":"SUM(F1022:F1022)","v":221},200,11,0,{"$f":"SUM(J1022:J1022)","v":0},0,5,4,0,1,0,0,221,0]
[18,null,{"$f":"'FR-16(7)(v)-1 Functional'!C1024","v":"  FEDERAL INCOME TAX RATE"},null,null,{"$f":"F815","v":0.21},{"$f":"G815","v":0.21},{"$f":"H815","v":0.21},{"$f":"I815","v":0.21},{"$f":"J815","v":0.21},0.21,0.21,0.21,0.21,0.21,0.21,{"$f":"Q815","v":0.21},null,{"$f":"'FR-16(7)(v)-1 Functional'!K815","v":0.21}]
[19,null,{"$f":"'FR-16(7)(v)-1 Functional'!C1025","v":"PRELIMINARY FIT = FI01 * K190"},null,null,{"$f":"ROUND(F1024*F1023,0)","v":46},{"$f":"ROUND(G1024*G1023,0)","v":42},{"$f":"ROUND(H1024*H1023,0)","v":2},{"$f":"ROUND(I1024*I1023,0)","v":0},{"$f":"ROUND(J1024*J1023,0)","v":0},0,1,1,0,0,0,{"$f":"ROUND(Q1024*Q1023,0)","v":0},{"$f":"SUM(G1025:Q1025)","v":46},{"$f":"ROUND(S1024*S1023,0)","v":0}]
[20,null,{"$f":"'FR-16(7)(v)-1 Functional'!C1026","v":"TOTAL FED DEF IT (410 & 411)"},null,null,{"$f":"F649","v":10},{"$f":"G649","v":8},{"$f":"H649","v":2},{"$f":"I649","v":0},{"$f":"J649","v":0},0,0,0,0,0,0,{"$f":"$Q$649","v":0},{"$f":"R649","v":10},{"$f":"S649","v":0}]
[21,null,{"$f":"'FR-16(7)(v)-1 Functional'!C1027","v":"TOTAL AMORTIZED ITC"},null,null,{"$f":"-F653","v":0},{"$f":"-G653","v":0},{"$f":"-H653","v":0},{"$f":"-I653","v":0},{"$f":"-J653","v":0},0,0,0,0,0,0,{"$f":"-$Q$653","v":0},{"$f":"-R653","v":0},{"$f":"-S653","v":0}]
[22,null,{"$f":"'FR-16(7)(v)-1 Functional'!C1028","v":"  NET FED INC TAX ALLOWABLE"},null,null,{"$f":"SUM(F1025:F1027)","v":56},50,4,0,{"$f":"SUM(J1025:J1027)","v":0},0,1,1,0,0,0,0,56,0]
[23]
[24,"FEDERAL INCOME TAX PAYABLE"]
[25,null,{"$f":"'FR-16(7)(v)-1 Functional'!C1031","v":"PRELIM FIT"},null,null,{"$f":"F1025","v":46},42,2,0,{"$f":"J1025","v":0},0,1,1,0,0,0,0,46,0]
[26,null,{"$f":"'FR-16(7)(v)-1 Functional'!C1032","v":"TEST YEAR INV TAX CREDIT"},null,null,{"$f":"-F658","v":0},{"$f":"-G658","v":0},{"$f":"-H658","v":0},{"$f":"-I658","v":0},{"$f":"-J658","v":0},0,0,0,0,0,0,{"$f":"-$Q$658","v":0},{"$f":"-R658","v":0},{"$f":"-S658","v":0}]
[27,null,{"$f":"'FR-16(7)(v)-1 Functional'!C1033","v":"  FED INC TAX PAYABLE"},null,null,{"$f":"SUM(F1030:F1032)","v":46},42,2,0,{"$f":"SUM(J1030:J1032)","v":0},0,1,1,0,0,0,0,46,0]
[28]
[29,"PRELIMINARY SUMMARY"]
[30,null,{"$f":"'FR-16(7)(v)-1 Functional'!C1036","v":"NET INCOME"},null,null,{"$f":"F1013","v":244},193,51,0,{"$f":"J1013","v":0},0,1,0,0,-1,0,0,244,0]
[31,null,{"$f":"'FR-16(7)(v)-1 Functional'!C1037","v":"NET FED INC TAX ALLOWABLE"},null,null,{"$f":"-F1028","v":-56},-50,-4,0,{"$f":"-J1028","v":0},0,-1,-1,0,0,0,0,-56,0]
[32,null,{"$f":"'FR-16(7)(v)-1 Functional'!C1038","v":"  OVERALL RETURN EARNED"},null,null,{"$f":"SUM(F1035:F1037)","v":188},143,47,0,{"$f":"SUM(J1035:J1037)","v":0},0,0,-1,0,-1,0,0,188,0]
[33]
[34,null,{"$f":"'FR-16(7)(v)-1 Functional'!C1040","v":"  RATE OF RETURN EARNED"},null,null,{"$f":"IF(F426=0,0,ROUND(F1038/F426,5))","v":3.9530000000000003E-2},3.653E-2,6.096E-2,0,0,0,0,-8.3330000000000001E-2,0,-0.16667000000000001,0,0,3.9530000000000003E-2,0]

{"sheet":"FR-16(7)(v)-10 DIST Classified","index":13,"n_rows":1042,"n_cols":15,"rows_kept":1042,"cut":false,"hidden":false,"merged":[]}
[{"$f":"co_name","v":"DUKE ENERGY KENTUCKY, INC."},null,null,null,null,null,null,null,null,"FR-16(7)(v)-10"]
["DISTRIBUTION CLASSIFIED - ELECTRIC COST OF SERVICE",null,null,null,null,null,null,null,null,"WITNESS RESPONSIBLE:"]
[{"$f":"case_name","v":"CASE NO: 2019-00271"},null,null,null,null,null,null,null,null,{"$f":"Witness","v":"JAMES E. ZIOLKOWSKI"}]
[{"$f":"data_filing","v":"DATA: 12 MONTHS ACTUAL  & 0 MONTHS ESTIMATED"},null,null,null,null,null,null,null,null,{"$f":"\"PAGE \"&Pages-17&\" OF \"&Pages","v":"PAGE 1 OF 18"}]
[{"$f":"type","v":"TYPE OF FILING: \"X\" ORIGINAL   UPDATED    REVISED  "}]
[]
[]
["LINE",null,null,null,null,"TOTAL","CLASSIFIED",null,null,"TOTAL","ALL"]
["NO.","SUMMARY OF RESULTS",null,"ALLO",null,"DISTRIBUTION","DEMAND","ENERGY","CUSTOMER","AT ISSUE","OTHER"]
[null,null,"Schedule 1",null,null,null,3,4,5]
[1,"NET INCOME COMPUTATION"]
[2,null,{"$f":"'FR-16(7)(v)-1 Functional'!C12","v":"GROSS ELECTRIC PLANT IN SERVICE"},null,null,{"$f":"F123","v":593453617},{"$f":"G123","v":424757089},{"$f":"H123","v":0},{"$f":"I123","v":168696528},{"$f":"SUM(G12:I12)","v":593453617},{"$f":"F12-J12","v":0}]
[3,null,{"$f":"'FR-16(7)(v)-1 Functional'!C13","v":"TOTAL DEPRECIATION RESERVE"},null,null,{"$f":"-F200","v":-152213039},{"$f":"-G200","v":-95277062},{"$f":"-H200","v":0},{"$f":"-I200","v":-56935977},{"$f":"SUM(G13:I13)","v":-152213039},{"$f":"F13-J13","v":0}]
[4,null,{"$f":"'FR-16(7)(v)-1 Functional'!C14","v":"TOTAL RATE BASE ADJUSTMENTS"},null,null,{"$f":"F421","v":-91353911},{"$f":"G421","v":-73690050},{"$f":"H421","v":0},{"$f":"I421","v":-17663861},{"$f":"SUM(G14:I14)","v":-91353911},{"$f":"F14-J14","v":0}]
[5,null,{"$f":"'FR-16(7)(v)-1 Functional'!C15","v":"  TOTAL RATE BASE"},null,null,{"$f":"SUM(F12:F14)","v":349886667},255789977,0,94096690,349886667,0]
[6]
[7,"OPERATING EXPENSES"]
[8,null,{"$f":"'FR-16(7)(v)-1 Functional'!C18","v":"TOTAL O&M EXPENSE"},null,null,{"$f":"F549","v":29544709},{"$f":"G549","v":16646493},{"$f":"H549","v":0},{"$f":"I549","v":12898216},{"$f":"SUM(G18:I18)","v":29544709},{"$f":"F18-J18","v":0}]
[9,null,{"$f":"'FR-16(7)(v)-1 Functional'!C19","v":"TOTAL DEPRECIATION EXPENSE"},null,null,{"$f":"F582","v":14621233},{"$f":"G582","v":10443209},{"$f":"H582","v":0},{"$f":"I582","v":4178024},{"$f":"SUM(G19:I19)","v":14621233},{"$f":"F19-J19","v":0}]
[10,null,{"$f":"'FR-16(7)(v)-1 Functional'!C20","v":"TOTAL OTHER TAX & MISC EXPENSE"},null,null,{"$f":"F612","v":5505290},{"$f":"G612","v":4047116},{"$f":"H612","v":0},{"$f":"I612","v":1458174},{"$f":"SUM(G20:I20)","v":5505290},{"$f":"F20-J20","v":0}]
[11,null,{"$f":"'FR-16(7)(v)-1 Functional'!C21","v":"  TOTAL OP EXP EXCLUDING INC & REV TAX"},null,null,{"$f":"SUM(F17:F20)","v":49671232},31136818,0,18534414,49671232,0]
[12,null,{"$f":"'FR-16(7)(v)-1 Functional'!C22","v":"NET FED INCOME TAX EXP ALLOWABLE"},null,null,{"$f":"F676","v":1076379},{"$f":"G676","v":744642},{"$f":"H676","v":0},{"$f":"I676","v":331737},{"$f":"SUM(G22:I22)","v":1076379},{"$f":"F22-J22","v":0}]
[13,null,"NET STATE INCOME TAX EXP ALLOWABLE",null,null,{"$f":"F722","v":1020829},{"$f":"G722","v":455192},{"$f":"H722","v":0},{"$f":"I722","v":565637},{"$f":"SUM(G23:I23)","v":1020829},{"$f":"F23-J23","v":0}]
[14,null,"RESERVED",{"$f":"'FR-16(7)(v)-1 Functional'!D24","v":"CW29"},null,{"$f":"'FR-16(7)(v)-1 Functional'!I24","v":0},{"$f":"ROUND(F24*VLOOKUP(D24,Alloctable_Classified_Distribution,$G$10,FALSE),0)","v":0},{"$f":"ROUND(F24*VLOOKUP(D24,Alloctable_Classified_Distribution,$H$10,FALSE),0)","v":0},{"$f":"ROUND(F24*VLOOKUP(D24,Alloctable_Classified_Distribution,$I$10,FALSE),0)","v":0},{"$f":"SUM(G24:I24)","v":0},{"$f":"F24-J24","v":0}]
[15,null,{"$f":"'FR-16(7)(v)-1 Functional'!C25","v":"REVENUE TAX"},null,null,{"$f":"F767","v":0},{"$f":"G767","v":0},{"$f":"H767","v":0},{"$f":"I767","v":0},{"$f":"SUM(G25:I25)","v":0},{"$f":"F25-J25","v":0}]
[16,null,{"$f":"'FR-16(7)(v)-1 Functional'!C26","v":"  TOTAL OPERATING EXPENSE"},null,null,{"$f":"SUM(F21:F25)","v":51768440},32336652,0,19431788,51768440,0]
[17]
[18,"RETURN ON RATE BASE",null,null,null,{"$f":"F433","v":23480970},{"$f":"G433","v":17243720},{"$f":"H433","v":0},{"$f":"I433","v":6237250},{"$f":"SUM(G28:I28)","v":23480970},{"$f":"F28-J28","v":0}]
[19,"TOTAL OTHER OPERATING REVENUES",null,null,null,{"$f":"-F750","v":-1525537},{"$f":"-G750","v":-1158127},{"$f":"-H750","v":0},{"$f":"-I750","v":-367410},{"$f":"SUM(G29:I29)","v":-1525537},{"$f":"F29-J29","v":0}]
[20,null,{"$f":"'FR-16(7)(v)-1 Functional'!C30","v":"TOTAL ELECTRIC COST OF SERVICE"},null,null,{"$f":"SUM(F26:F29)","v":73723873},{"$f":"SUM(G26:G29)","v":48422245},{"$f":"SUM(H26:H29)","v":0},{"$f":"SUM(I26:I29)","v":25301628},{"$f":"SUM(J26:J29)","v":73723873},{"$f":"F30-J30","v":0}]
[21,"ADJUSTMENT FOR INTERCLASS SUBSIDIZATION",null,{"$f":"1-'WP FR-16(7)(v) Rate Incr'!I11","v":0.95},null,{"$f":"'WP FR-16(7)(v) Rate Incr'!S27","v":0},0,0,0,{"$f":"SUM(G31:I31)","v":0},{"$f":"F31-J31","v":0}]
[22,{"$f":"'FR-16(7)(v)-1 Functional'!$B$32","v":"REQUESTED REVENUES (COST OF SERVICE ADJUSTED FOR SUBSIDIES)"},null,null,null,{"$f":"F30+F31","v":73723873},48422245,0,25301628,73723873,0]
[23,"PROPOSED REVENUES",null,null,null,{"$f":"F870","v":109464879},{"$f":"G870","v":52183002},{"$f":"H870","v":0},{"$f":"I870","v":57281877},{"$f":"J870","v":109464879},{"$f":"F33-J33","v":0}]
[24,"DIFFERENCE (REQUESTED LESS PROPOSED)",null,null,null,{"$f":"F32-F33","v":-35741006},-3760757,0,-31980249,-35741006,0]
[25]
[26,"TOTAL RETURN EARNED",null,null,null,{"$f":"F777+F28","v":50313489},{"$f":"G777+G28","v":20067104},{"$f":"H777+H28","v":0},{"$f":"I777+I28","v":30246385},{"$f":"J777+J28","v":50313489},{"$f":"F36-J36","v":0}]
[27,"RATE OF RETURN EARNED",null,null,null,{"$f":"IF(F431=0,0,ROUND(F36/F431,5))","v":0.14380000000000001},7.8100000000000003E-2,0,0.32544000000000001,0.14380000000000001,0]
[28,"TOTAL RATE OF RETURN ALLOWABLE",null,null,null,{"$f":"$F$811","v":6.7100000000000007E-2},{"$f":"F811","v":6.7100000000000007E-2},{"$f":"F811","v":6.7100000000000007E-2},{"$f":"F811","v":6.7100000000000007E-2},{"$f":"F811","v":6.7100000000000007E-2},{"$f":"F811","v":6.7100000000000007E-2},null,null,"Not Part of print range"]
[29,"RETURN EARNED ON COMMON EQUITY",null,null,null,{"$f":"IF(Equity=0,0,(F37-$F$806-$F$807-$F$809)*TotalCap/Equity)","v":0.25707814091248449},{"$f":"IF(Equity=0,0,(G37-$F$806-$F$807-$F$809)*TotalCap/Equity)","v":0.12086819044514392},{"$f":"IF(Equity=0,0,(H37-F806-F807-F809)*TotalCap/Equity)","v":-4.1049574113445099E-2},{"$f":"IF(Equity=0,0,(I37-F806-F807-F809)*TotalCap/Equity)","v":0.63365615313299806},{"$f":"IF(Equity=0,0,(J37-F806-F807-F809)*TotalCap/Equity)","v":0.25707814091248449},{"$f":"IF(Equity=0,0,(K37-F806-F807-F809)*TotalCap/Equity)","v":-4.1049574113445099E-2},null,null,"Not Filed"]
[30,"ALLOWED RETURN ON COMMON EQUITY",null,null,null,{"$f":"IF(Equity=0,0,(F38-$F$806-$F$807-$F$809)*TotalCap/Equity)","v":9.8062871493229981E-2},{"$f":"IF(Equity=0,0,(G38-F806-F807-F809)*TotalCap/Equity)","v":9.8062871493229981E-2},{"$f":"IF(Equity=0,0,(H38-F806-F807-F809)*TotalCap/Equity)","v":9.8062871493229981E-2},{"$f":"IF(Equity=0,0,(I38-F806-F807-F809)*TotalCap/Equity)","v":9.8062871493229981E-2},{"$f":"IF(Equity=0,0,(J38-F806-F807-F809)*TotalCap/Equity)","v":9.8062871493229981E-2},{"$f":"IF(Equity=0,0,(K38-F806-F807-F809)*TotalCap/Equity)","v":9.8062871493229981E-2}]
[31,null,null,null,null," "]
[32,"PRESENT REVENUES",null,null,null,{"$f":"F869","v":64477982},{"$f":"G869","v":42349493},{"$f":"H869","v":0},{"$f":"I869","v":22128489},{"$f":"J869","v":64477982},{"$f":"F42-J42","v":0}]
[33,"REVENUE INCREASE JUSTIFIED",null,null,null,{"$f":"F30-F42","v":9245891},6072752,0,3173139,9245891,0]
[34,null,"PER UNIT PRES REV",null,null,{"$f":"IF(F42=0,0,ROUND(F43/F42,5))","v":0.1434},0.1434,0,0.1434,0.1434,0]
[35,"REVENUE INCREASE REQUESTED",null,null,null,{"$f":"F33-F42","v":44986897},9833509,0,35153388,44986897,0]
[36,null,"PER UNIT PRES REV",null,null,{"$f":"IF(F42=0,0,ROUND(F45/F42,5))","v":0.69771000000000005},0.23219999999999999,0,1.5886,0.69771000000000005,0]
[]
[{"$f":"co_name","v":"DUKE ENERGY KENTUCKY, INC."},null,null,null,null,null,null,null,null,{"$f":"J1","v":"FR-16(7)(v)-10"}]
[{"$f":"$A$2","v":"DISTRIBUTION CLASSIFIED - ELECTRIC COST OF SERVICE"},null,null,null,null,null,null,null,null,{"$f":"J2","v":"WITNESS RESPONSIBLE:"}]
[{"$f":"case_name","v":"CASE NO: 2019-00271"},null,null,null,null,null,null,null,null,{"$f":"Witness","v":"JAMES E. ZIOLKOWSKI"}]
[{"$f":"data_filing","v":"DATA: 12 MONTHS ACTUAL  & 0 MONTHS ESTIMATED"},null,null,null,null,null,null,null,null,{"$f":"\"PAGE \"&Pages-16&\" OF \"&Pages","v":"PAGE 2 OF 18"}]
[{"$f":"type","v":"TYPE OF FILING: \"X\" ORIGINAL   UPDATED    REVISED  "}]
[]
[]
["LINE",null,null,null,null,"TOTAL","CLASSIFIED",null,null,"TOTAL","ALL"]
["NO.","GROSS ELECTRIC PLANT IN SERVICE",null,"ALLO",null,"DISTRIBUTION",{"$f":"G9","v":"DEMAND"},"ENERGY","CUSTOMER","AT ISSUE","OTHER"]
[null,null,"Schedule 2",null,null,null,3,4,5,null," "]
[1,"PRODUCTION PLANT"]
[2,null,"PRODUCTION STEAM",{"$f":"'FR-16(7)(v)-1 Functional'!D59","v":"K201"},null,{"$f":"'FR-16(7)(v)-1 Functional'!I59","v":0},{"$f":"ROUND(F59*VLOOKUP(D59,Alloctable_Classified_Distribution,$G$10,FALSE),0)","v":0},{"$f":"ROUND(F59*VLOOKUP(D59,Alloctable_Classified_Distribution,$H$10,FALSE),0)","v":0},{"$f":"ROUND(F59*VLOOKUP(D59,Alloctable_Classified_Distribution,$I$10,FALSE),0)","v":0},{"$f":"SUM(G59:I59)","v":0},{"$f":"F59-J59","v":0}]
[3,null,"PRODUCTION OTHER",{"$f":"'FR-16(7)(v)-1 Functional'!D60","v":"K201"},null,{"$f":"'FR-16(7)(v)-1 Functional'!I60","v":0},{"$f":"ROUND(F60*VLOOKUP(D60,Alloctable_Classified_Distribution,$G$10,FALSE),0)","v":0},{"$f":"ROUND(F60*VLOOKUP(D60,Alloctable_Classified_Distribution,$H$10,FALSE),0)","v":0},{"$f":"ROUND(F60*VLOOKUP(D60,Alloctable_Classified_Distribution,$I$10,FALSE),0)","v":0},{"$f":"SUM(G60:I60)","v":0},{"$f":"F60-J60","v":0}]
[4,null,{"$f":"'FR-16(7)(v)-1 Functional'!C61","v":"ADJUSTMENT"},{"$f":"'FR-16(7)(v)-1 Functional'!D61","v":"K201"},null,{"$f":"'FR-16(7)(v)-1 Functional'!I61","v":0},{"$f":"ROUND(F61*VLOOKUP(D61,Alloctable_Classified_Distribution,$G$10,FALSE),0)","v":0},{"$f":"ROUND(F61*VLOOKUP(D61,Alloctable_Classified_Distribution,$H$10,FALSE),0)","v":0},{"$f":"ROUND(F61*VLOOKUP(D61,Alloctable_Classified_Distribution,$I$10,FALSE),0)","v":0},{"$f":"SUM(G61:I61)","v":0},{"$f":"F61-J61","v":0}]
[5,null,{"$f":"'FR-16(7)(v)-1 Functional'!C62","v":"  PRODUCTION PLANT IN SERVICE"},null,null,{"$f":"SUM(F59:F61)","v":0},0,0,0,0,0]
[6]
[7,"TRANSMISSION PLANT"]
[8,null,"MAIN STEP-UP TRANSFORMERS",{"$f":"'FR-16(7)(v)-1 Functional'!D65","v":"K202"},null,{"$f":"'FR-16(7)(v)-1 Functional'!I65","v":0},{"$f":"ROUND(F65*VLOOKUP(D65,Alloctable_Classified_Distribution,$G$10,FALSE),0)","v":0},{"$f":"ROUND(F65*VLOOKUP(D65,Alloctable_Classified_Distribution,$H$10,FALSE),0)","v":0},{"$f":"ROUND(F65*VLOOKUP(D65,Alloctable_Classified_Distribution,$I$10,FALSE),0)","v":0},{"$f":"SUM(G65:I65)","v":0},{"$f":"F65-J65","v":0}]
[9,null,"OTHER TRANSMISSION",{"$f":"'FR-16(7)(v)-1 Functional'!D66","v":"K202"},null,{"$f":"'FR-16(7)(v)-1 Functional'!I66","v":0},{"$f":"ROUND(F66*VLOOKUP(D66,Alloctable_Classified_Distribution,$G$10,FALSE),0)","v":0},{"$f":"ROUND(F66*VLOOKUP(D66,Alloctable_Classified_Distribution,$H$10,FALSE),0)","v":0},{"$f":"ROUND(F66*VLOOKUP(D66,Alloctable_Classified_Distribution,$I$10,FALSE),0)","v":0},{"$f":"SUM(G66:I66)","v":0},{"$f":"F66-J66","v":0}]
[10,null,"ADJUSTMENT",{"$f":"'FR-16(7)(v)-1 Functional'!D67","v":"K202"},null,{"$f":"'FR-16(7)(v)-1 Functional'!I67","v":0},{"$f":"ROUND(F67*VLOOKUP(D67,Alloctable_Classified_Distribution,$G$10,FALSE),0)","v":0},{"$f":"ROUND(F67*VLOOKUP(D67,Alloctable_Classified_Distribution,$H$10,FALSE),0)","v":0},{"$f":"ROUND(F67*VLOOKUP(D67,Alloctable_Classified_Distribution,$I$10,FALSE),0)","v":0},{"$f":"SUM(G67:I67)","v":0},{"$f":"F67-J67","v":0}]
[11,null,{"$f":"'FR-16(7)(v)-1 Functional'!C68","v":"  TRANSMISSION PLANT IN SERVICE"},null,null,{"$f":"SUM(F65:F67)","v":0},0,0,0,0,0]
[12]
[13,"TOTAL PROD & TRANS PLANT",null,null,null,{"$f":"F68+F62","v":0},0,0,0,0,0]
[14]
[15,"DISTRIBUTION PLANT"]
[16,null,{"$f":"'FR-16(7)(v)-1 Functional'!C73","v":"SUBSTATIONS"},{"$f":"'FR-16(7)(v)-1 Functional'!D73","v":"K215"},null,{"$f":"'FR-16(7)(v)-1 Functional'!I73","v":90976376},{"$f":"ROUND(F73*VLOOKUP(D73,Alloctable_Classified_Distribution,$G$10,FALSE),0)","v":90976376},{"$f":"ROUND(F73*VLOOKUP(D73,Alloctable_Classified_Distribution,$H$10,FALSE),0)","v":0},{"$f":"ROUND(F73*VLOOKUP(D73,Alloctable_Classified_Distribution,$I$10,FALSE),0)","v":0},{"$f":"SUM(G73:I73)","v":90976376},{"$f":"F73-J73","v":0}]
[17,null,{"$f":"'FR-16(7)(v)-1 Functional'!C74","v":"POLES, TOWERS  & FIXTURES - PRIMARY - DEMAND"},{"$f":"'FR-16(7)(v)-1 Functional'!D74","v":"K205"},null,{"$f":"'FR-16(7)(v)-1 Functional'!I74","v":33009975},{"$f":"ROUND(F74*VLOOKUP(D74,Alloctable_Classified_Distribution,$G$10,FALSE),0)","v":33009975},{"$f":"ROUND(F74*VLOOKUP(D74,Alloctable_Classified_Distribution,$H$10,FALSE),0)","v":0},{"$f":"ROUND(F74*VLOOKUP(D74,Alloctable_Classified_Distribution,$I$10,FALSE),0)","v":0},{"$f":"SUM(G74:I74)","v":33009975},{"$f":"F74-J74","v":0}]
[18,null,{"$f":"'FR-16(7)(v)-1 Functional'!C75","v":"POLES, TOWERS  & FIXTURES - PRIMARY - CUSTOMER"},"K406",null,{"$f":"'FR-16(7)(v)-1 Functional'!I75","v":15106661},{"$f":"ROUND(F75*VLOOKUP(D75,Alloctable_Classified_Distribution,$G$10,FALSE),0)","v":0},{"$f":"ROUND(F75*VLOOKUP(D75,Alloctable_Classified_Distribution,$H$10,FALSE),0)","v":0},{"$f":"ROUND(F75*VLOOKUP(D75,Alloctable_Classified_Distribution,$I$10,FALSE),0)","v":15106661},{"$f":"SUM(G75:I75)","v":15106661},{"$f":"F75-J75","v":0}]
[19,null,{"$f":"'FR-16(7)(v)-1 Functional'!C76","v":"POLES, TOWERS  & FIXTURES - SECONDARY - DEMAND"},{"$f":"'FR-16(7)(v)-1 Functional'!D76","v":"K206"},null,{"$f":"'FR-16(7)(v)-1 Functional'!I76","v":12624115},12624115,0,0,12624115,0]
[20,null,{"$f":"'FR-16(7)(v)-1 Functional'!C77","v":"POLES, TOWERS  & FIXTURES - SECONDARY - CUSTOMER"},"K406",null,{"$f":"'FR-16(7)(v)-1 Functional'!I77","v":3414764},0,0,3414764,3414764,0]
[21,null,{"$f":"'FR-16(7)(v)-1 Functional'!C78","v":"CONDUCTORS - OVERHEAD / PRIMARY - DEMAND"},{"$f":"'FR-16(7)(v)-1 Functional'!D78","v":"K205"},null,{"$f":"'FR-16(7)(v)-1 Functional'!I78","v":75222822},75222822,0,0,75222822,0]
[22,null,{"$f":"'FR-16(7)(v)-1 Functional'!C79","v":"CONDUCTORS - OVERHEAD / PRIMARY - CUSTOMER"},"K406",null,{"$f":"'FR-16(7)(v)-1 Functional'!I79","v":16426781},0,0,16426781,16426781,0]
[23,null,{"$f":"'FR-16(7)(v)-1 Functional'!C80","v":"CONDUCTORS - OVERHEAD / SECONDARY - DEMAND"},{"$f":"'FR-16(7)(v)-1 Functional'!D80","v":"K206"},null,{"$f":"'FR-16(7)(v)-1 Functional'!I80","v":30629852},30629852,0,0,30629852,0]
[24,null,{"$f":"'FR-16(7)(v)-1 Functional'!C81","v":"CONDUCTORS - OVERHEAD / SECONDARY - CUSTOMER"},"K406",null,{"$f":"'FR-16(7)(v)-1 Functional'!I81","v":6804493},0,0,6804493,6804493,0]
[25,null,{"$f":"'FR-16(7)(v)-1 Functional'!C82","v":"CONDUCTORS - UNDERGROUND / PRIMARY - DEMAND"},{"$f":"'FR-16(7)(v)-1 Functional'!D82","v":"K205"},null,{"$f":"'FR-16(7)(v)-1 Functional'!I82","v":56141307},56141307,0,0,56141307,0]
[26,null,{"$f":"'FR-16(7)(v)-1 Functional'!C83","v":"CONDUCTORS - UNDERGROUND / PRIMARY - CUSTOMER"},"K406",null,{"$f":"'FR-16(7)(v)-1 Functional'!I83","v":17434066},0,0,17434066,17434066,0]
[27,null,{"$f":"'FR-16(7)(v)-1 Functional'!C84","v":"CONDUCTORS - UNDERGROUND / SECONDARY - DEMAND"},{"$f":"'FR-16(7)(v)-1 Functional'!D84","v":"K206"},null,{"$f":"'FR-16(7)(v)-1 Functional'!I84","v":9617808},9617808,0,0,9617808,0]
[28,null,{"$f":"'FR-16(7)(v)-1 Functional'!C85","v":"CONDUCTORS - UNDERGROUND / SECONDARY - CUSTOMER"},"K406",null,{"$f":"'FR-16(7)(v)-1 Functional'!I85","v":5451847},0,0,5451847,5451847,0]
[29,null,{"$f":"'FR-16(7)(v)-1 Functional'!C86","v":"TRANSFORMERS DEMAND RELATED"},{"$f":"'FR-16(7)(v)-1 Functional'!D86","v":"K215"},null,{"$f":"'FR-16(7)(v)-1 Functional'!I86","v":47116092},{"$f":"ROUND(F86*VLOOKUP(D86,Alloctable_Classified_Distribution,$G$10,FALSE),0)","v":47116092},{"$f":"ROUND(F86*VLOOKUP(D86,Alloctable_Classified_Distribution,$H$10,FALSE),0)","v":0},{"$f":"ROUND(F86*VLOOKUP(D86,Alloctable_Classified_Distribution,$I$10,FALSE),0)","v":0},{"$f":"SUM(G86:I86)","v":47116092},{"$f":"F86-J86","v":0}]
[30,null,{"$f":"'FR-16(7)(v)-1 Functional'!C87","v":"TRANSFORMERS CUSTOMER RELATED"},"K406",null,{"$f":"'FR-16(7)(v)-1 Functional'!I87","v":15311023},0,0,15311023,15311023,0]
[31,null,{"$f":"'FR-16(7)(v)-1 Functional'!C88","v":"SERVICES"},{"$f":"'FR-16(7)(v)-1 Functional'!D88","v":"K217"},null,{"$f":"'FR-16(7)(v)-1 Functional'!I88","v":21226508},0,0,21226508,21226508,0]
[32,null,{"$f":"'FR-16(7)(v)-1 Functional'!C89","v":"METERS"},{"$f":"'FR-16(7)(v)-1 Functional'!D89","v":"K407"},null,{"$f":"'FR-16(7)(v)-1 Functional'!I89","v":22568727},0,0,22568727,22568727,0]
[33,null,{"$f":"'FR-16(7)(v)-1 Functional'!C90","v":"STREET LIGHTS"},{"$f":"'FR-16(7)(v)-1 Functional'!D90","v":"K401"},null,{"$f":"'FR-16(7)(v)-1 Functional'!I90","v":5595857},0,0,5595857,5595857,0]
[34,null,{"$f":"'FR-16(7)(v)-1 Functional'!C91","v":"ADJUSTMENT  "},{"$f":"'FR-16(7)(v)-1 Functional'!D91","v":"K209"},null,{"$f":"'FR-16(7)(v)-1 Functional'!I91","v":0},0,0,0,0,0]
[35,null,{"$f":"'FR-16(7)(v)-1 Functional'!C92","v":"CONSTRUCTION NOT CLASSIFIED"},{"$f":"'FR-16(7)(v)-1 Functional'!D92","v":"K209"},null,{"$f":"'FR-16(7)(v)-1 Functional'!I92","v":94686884},69418742,0,25268142,94686884,0]
[36,null,{"$f":"'FR-16(7)(v)-1 Functional'!C93","v":"RWIP"},{"$f":"'FR-16(7)(v)-1 Functional'!D93","v":"K215"},null,{"$f":"'FR-16(7)(v)-1 Functional'!I93","v":0},{"$f":"ROUND(F93*VLOOKUP(D93,Alloctable_Classified_Distribution,$G$10,FALSE),0)","v":0},{"$f":"ROUND(F93*VLOOKUP(D93,Alloctable_Classified_Distribution,$H$10,FALSE),0)","v":0},{"$f":"ROUND(F93*VLOOKUP(D93,Alloctable_Classified_Distribution,$I$10,FALSE),0)","v":0},{"$f":"SUM(G93:I93)","v":0},{"$f":"F93-J93","v":0}]
[37,null,{"$f":"'FR-16(7)(v)-1 Functional'!C94","v":"  DISTRIBUTION PLANT IN SERVICE"},null,null,{"$f":"SUM(F73:F93)","v":579365958},{"$f":"SUM(G73:G92)","v":424757089},0,154608869,579365958,0]
[38]
[39,"TOTAL TRANS & DIST PLANT",null,null,null,{"$f":"F94+F68","v":579365958},424757089,0,154608869,579365958,0]
[40,"TOTAL GROSS PTD PLANT",null,null,null,{"$f":"F94+F70","v":579365958},424757089,0,154608869,579365958,0]
[41]
[42,"GENERAL & INTANGIBLE PLANT"]
[43,null,{"$f":"'FR-16(7)(v)-1 Functional'!C100","v":"PRODUCTION - DEMAND"},{"$f":"'FR-16(7)(v)-1 Functional'!D100","v":"K201"},null,{"$f":"'FR-16(7)(v)-1 Functional'!I100","v":0},{"$f":"ROUND(F100*VLOOKUP(D100,Alloctable_Classified_Distribution,$G$10,FALSE),0)","v":0},{"$f":"ROUND(F100*VLOOKUP(D100,Alloctable_Classified_Distribution,$H$10,FALSE),0)","v":0},{"$f":"ROUND(F100*VLOOKUP(D100,Alloctable_Classified_Distribution,$I$10,FALSE),0)","v":0},{"$f":"SUM(G100:I100)","v":0},{"$f":"F100-J100","v":0}]
[44,null,{"$f":"'FR-16(7)(v)-1 Functional'!C101","v":"PRODUCTION - ENERGY"},{"$f":"'FR-16(7)(v)-1 Functional'!D101","v":"K301"},null,{"$f":"'FR-16(7)(v)-1 Functional'!I101","v":0},0,{"$f":"ROUND(F101*VLOOKUP(D101,Alloctable_Classified_Distribution,$H$10,FALSE),0)","v":0},{"$f":"ROUND(F101*VLOOKUP(D101,Alloctable_Classified_Distribution,$I$10,FALSE),0)","v":0},{"$f":"SUM(G101:I101)","v":0},{"$f":"F101-J101","v":0}]
[45,null,{"$f":"'FR-16(7)(v)-1 Functional'!C102","v":"TRANSMISSION"},{"$f":"'FR-16(7)(v)-1 Functional'!D102","v":"K202"},null,{"$f":"'FR-16(7)(v)-1 Functional'!I102","v":0},0,0,0,0,0]
[46,null,{"$f":"'FR-16(7)(v)-1 Functional'!C103","v":"DISTRIBUTION - DEMAND"},{"$f":"'FR-16(7)(v)-1 Functional'!D103","v":"K201"},null,{"$f":"'FR-16(7)(v)-1 Functional'!I103","v":0},0,0,0,0,0]
[47,null,{"$f":"'FR-16(7)(v)-1 Functional'!C104","v":"DISTRIBUTION - CUSTOMER"},{"$f":"'FR-16(7)(v)-1 Functional'!D104","v":"K405"},null,{"$f":"'FR-16(7)(v)-1 Functional'!I104","v":1946061},0,0,1946061,1946061,0]
[48,null,{"$f":"'FR-16(7)(v)-1 Functional'!C105","v":"CUSTOMER ACCOUNTING"},{"$f":"'FR-16(7)(v)-1 Functional'!D105","v":"A308"},null,{"$f":"'FR-16(7)(v)-1 Functional'!I105","v":6617240},0,0,6617240,6617240,0]
[49,null,{"$f":"'FR-16(7)(v)-1 Functional'!C106","v":"CUSTOMER SERVICE & INFORMATION"},{"$f":"'FR-16(7)(v)-1 Functional'!D106","v":"A310"},null,{"$f":"'FR-16(7)(v)-1 Functional'!I106","v":432753},0,0,432753,432753,0]
[50,null,{"$f":"'FR-16(7)(v)-1 Functional'!C107","v":"SALES"},{"$f":"'FR-16(7)(v)-1 Functional'!D107","v":"A312"},null,{"$f":"'FR-16(7)(v)-1 Functional'!I107","v":0},0,0,0,0,0]
[51,null,{"$f":"'FR-16(7)(v)-1 Functional'!C108","v":"ADJUSTMENT"},{"$f":"'FR-16(7)(v)-1 Functional'!D108","v":"A315"},null,{"$f":"'FR-16(7)(v)-1 Functional'!I108","v":0},0,0,0,0,0]
[52,null,{"$f":"'FR-16(7)(v)-1 Functional'!C109","v":"  GEN & INTANG PLANT IN SERVICE"},null,null,{"$f":"SUM(F100:F108)","v":8996054},0,0,8996054,8996054,0]
[53]
[54,"COMMON & OTHER PLANT"]
[55,null,{"$f":"'FR-16(7)(v)-1 Functional'!C112","v":"PRODUCTION - DEMAND"},{"$f":"'FR-16(7)(v)-1 Functional'!D112","v":"K201"},null,{"$f":"'FR-16(7)(v)-1 Functional'!I112","v":0},{"$f":"ROUND(F112*VLOOKUP(D112,Alloctable_Classified_Distribution,$G$10,FALSE),0)","v":0},{"$f":"ROUND(F112*VLOOKUP(D112,Alloctable_Classified_Distribution,$H$10,FALSE),0)","v":0},{"$f":"ROUND(F112*VLOOKUP(D112,Alloctable_Classified_Distribution,$I$10,FALSE),0)","v":0},{"$f":"SUM(G112:I112)","v":0},{"$f":"F112-J112","v":0}]
[56,null,{"$f":"'FR-16(7)(v)-1 Functional'!C113","v":"PRODUCTION - ENERGY"},{"$f":"'FR-16(7)(v)-1 Functional'!D113","v":"K301"},null,{"$f":"'FR-16(7)(v)-1 Functional'!I113","v":0},0,0,0,{"$f":"SUM(G113:I113)","v":0},{"$f":"F113-J113","v":0}]
[57,null,{"$f":"'FR-16(7)(v)-1 Functional'!C114","v":"TRANSMISSION"},{"$f":"'FR-16(7)(v)-1 Functional'!D114","v":"K202"},null,{"$f":"'FR-16(7)(v)-1 Functional'!I114","v":0},0,0,0,0,0]
[58,null,{"$f":"'FR-16(7)(v)-1 Functional'!C115","v":"DISTRIBUTION - DEMAND"},{"$f":"'FR-16(7)(v)-1 Functional'!D115","v":"K201"},null,{"$f":"'FR-16(7)(v)-1 Functional'!I115","v":0},0,0,0,0,0]
[59,null,{"$f":"'FR-16(7)(v)-1 Functional'!C116","v":"DISTRIBUTION - CUSTOMER"},{"$f":"'FR-16(7)(v)-1 Functional'!D116","v":"K405"},null,{"$f":"'FR-16(7)(v)-1 Functional'!I116","v":1101435},0,0,1101435,1101435,0]
[60,null,{"$f":"'FR-16(7)(v)-1 Functional'!C117","v":"CUSTOMER ACCOUNTING"},{"$f":"'FR-16(7)(v)-1 Functional'!D117","v":"A308"},null,{"$f":"'FR-16(7)(v)-1 Functional'!I117","v":3745240},0,0,3745240,3745240,0]
[61,null,{"$f":"'FR-16(7)(v)-1 Functional'!C118","v":"CUSTOMER SERVICE & INFORMATION"},{"$f":"'FR-16(7)(v)-1 Functional'!D118","v":"A310"},null,{"$f":"'FR-16(7)(v)-1 Functional'!I118","v":244930},0,0,244930,244930,0]
[62,null,{"$f":"'FR-16(7)(v)-1 Functional'!C119","v":"SALES"},{"$f":"'FR-16(7)(v)-1 Functional'!D119","v":"A312"},null,{"$f":"'FR-16(7)(v)-1 Functional'!I119","v":0},0,0,0,0,0]
[63,null,{"$f":"'FR-16(7)(v)-1 Functional'!C120","v":"ADJUSTMENT"},{"$f":"'FR-16(7)(v)-1 Functional'!D120","v":"A315"},null,{"$f":"'FR-16(7)(v)-1 Functional'!I120","v":0},0,0,0,0,0]
[64,null,{"$f":"'FR-16(7)(v)-1 Functional'!C121","v":"  COMMON & OTHER PLANT IN SERVICE"},null,null,{"$f":"SUM(F112:F120)","v":5091605},0,0,5091605,5091605,0]
[65]
[66,"GROSS ELECTRIC PLANT IN SERVICE",null,null,null,{"$f":"F97+F109+F121","v":593453617},424757089,0,168696528,593453617,0]
[]
[{"$f":"co_name","v":"DUKE ENERGY KENTUCKY, INC."},null,null,null,null,null,null,null,null,{"$f":"J1","v":"FR-16(7)(v)-10"}]
[{"$f":"$A$2","v":"DISTRIBUTION CLASSIFIED - ELECTRIC COST OF SERVICE"},null,null,null,null,null,null,null,null,{"$f":"J2","v":"WITNESS RESPONSIBLE:"}]
[{"$f":"case_name","v":"CASE NO: 2019-00271"},null,null,null,null,null,null,null,null,{"$f":"Witness","v":"JAMES E. ZIOLKOWSKI"}]
[{"$f":"data_filing","v":"DATA: 12 MONTHS ACTUAL  & 0 MONTHS ESTIMATED"},null,null,null,null,null,null,null,null,{"$f":"\"PAGE \"&Pages-15&\" OF \"&Pages","v":"PAGE 3 OF 18"}]
[{"$f":"type","v":"TYPE OF FILING: \"X\" ORIGINAL   UPDATED    REVISED  "}]
[]
[]
["LINE",null,null,null,null,"TOTAL","CLASSIFIED",null,null,"TOTAL","ALL"]
["NO.","DEPRECIATION RESERVE",null,"ALLO",null,"DISTRIBUTION",{"$f":"G9","v":"DEMAND"},"ENERGY","CUSTOMER","AT ISSUE","OTHER"]
[null,null,"Schedule 3",null,null,null,3,4,5]
[1,"PRODUCTION PLANT"]
[2,null,{"$f":"'FR-16(7)(v)-1 Functional'!C136","v":"PRODUCTION STEAM"},{"$f":"'FR-16(7)(v)-1 Functional'!D136","v":"K201"},null,{"$f":"'FR-16(7)(v)-1 Functional'!I136","v":0},{"$f":"F136-SUM(H136:I136)","v":0},{"$f":"ROUND(F136*VLOOKUP(D136,Alloctable_Classified_Distribution,$H$10,FALSE),0)","v":0},{"$f":"ROUND(F136*VLOOKUP(D136,Alloctable_Classified_Distribution,$I$10,FALSE),0)","v":0},{"$f":"SUM(G136:I136)","v":0},{"$f":"F136-J136","v":0}]
[3,null,{"$f":"'FR-16(7)(v)-1 Functional'!C137","v":"PRODUCTION OTHER"},{"$f":"'FR-16(7)(v)-1 Functional'!D137","v":"K201"},null,{"$f":"'FR-16(7)(v)-1 Functional'!I137","v":0},{"$f":"F137-SUM(H137:I137)","v":0},{"$f":"ROUND(F137*VLOOKUP(D137,Alloctable_Classified_Distribution,$H$10,FALSE),0)","v":0},{"$f":"ROUND(F137*VLOOKUP(D137,Alloctable_Classified_Distribution,$I$10,FALSE),0)","v":0},{"$f":"SUM(G137:I137)","v":0},{"$f":"F137-J137","v":0}]
[4,null,{"$f":"'FR-16(7)(v)-1 Functional'!C138","v":"ADJUSTMENT"},{"$f":"'FR-16(7)(v)-1 Functional'!D138","v":"K201"},null,{"$f":"'FR-16(7)(v)-1 Functional'!I138","v":0},{"$f":"F138-SUM(H138:I138)","v":0},{"$f":"ROUND(F138*VLOOKUP(D138,Alloctable_Classified_Distribution,$H$10,FALSE),0)","v":0},{"$f":"ROUND(F138*VLOOKUP(D138,Alloctable_Classified_Distribution,$I$10,FALSE),0)","v":0},{"$f":"SUM(G138:I138)","v":0},{"$f":"F138-J138","v":0}]
[5,null,{"$f":"'FR-16(7)(v)-1 Functional'!C139","v":"  TOTAL PROD DEPREC RESERVE"},null,null,{"$f":"SUM(F136:F138)","v":0},0,0,0,0,0]
[6]
[7,"TRANSMISSION PLANT"]
[8,null,{"$f":"'FR-16(7)(v)-1 Functional'!C142","v":"MAIN STEP-UP TRANSFORMERS"},{"$f":"'FR-16(7)(v)-1 Functional'!D142","v":"K202"},null,{"$f":"'FR-16(7)(v)-1 Functional'!I142","v":0},{"$f":"F142-SUM(H142:I142)","v":0},{"$f":"ROUND(F142*VLOOKUP(D142,Alloctable_Classified_Distribution,$H$10,FALSE),0)","v":0},{"$f":"ROUND(F142*VLOOKUP(D142,Alloctable_Classified_Distribution,$I$10,FALSE),0)","v":0},{"$f":"SUM(G142:I142)","v":0},{"$f":"F142-J142","v":0}]
[9,null,{"$f":"'FR-16(7)(v)-1 Functional'!C143","v":"OTHER TRANSMISSION"},{"$f":"'FR-16(7)(v)-1 Functional'!D143","v":"K202"},null,{"$f":"'FR-16(7)(v)-1 Functional'!I143","v":0},{"$f":"F143-SUM(H143:I143)","v":0},{"$f":"ROUND(F143*VLOOKUP(D143,Alloctable_Classified_Distribution,$H$10,FALSE),0)","v":0},{"$f":"ROUND(F143*VLOOKUP(D143,Alloctable_Classified_Distribution,$I$10,FALSE),0)","v":0},{"$f":"SUM(G143:I143)","v":0},{"$f":"F143-J143","v":0}]
[10,null,{"$f":"'FR-16(7)(v)-1 Functional'!C144","v":"ADJUSTMENT"},{"$f":"'FR-16(7)(v)-1 Functional'!D144","v":"K202"},null,{"$f":"'FR-16(7)(v)-1 Functional'!I144","v":0},{"$f":"F144-SUM(H144:I144)","v":0},{"$f":"ROUND(F144*VLOOKUP(D144,Alloctable_Classified_Distribution,$H$10,FALSE),0)","v":0},{"$f":"ROUND(F144*VLOOKUP(D144,Alloctable_Classified_Distribution,$I$10,FALSE),0)","v":0},{"$f":"SUM(G144:I144)","v":0},{"$f":"F144-J144","v":0}]
[11,null,{"$f":"'FR-16(7)(v)-1 Functional'!C145","v":"  TOTAL TRANS DEPREC RESERVE"},null,null,{"$f":"SUM(F142:F144)","v":0},0,0,0,0,0]
[12]
[13,null,{"$f":"'FR-16(7)(v)-1 Functional'!C147","v":"TOTAL PROD & TRANS DEPREC RESERVE"},null,null,{"$f":"F145+F139","v":0},{"$f":"G145+G139","v":0},{"$f":"H145+H139","v":0},{"$f":"I145+I139","v":0},{"$f":"J145+J139","v":0},{"$f":"F147-J147","v":0}]
[14]
[15,"DISTRIBUTION PLANT"]
[16,null,{"$f":"'FR-16(7)(v)-1 Functional'!C150","v":"SUBSTATIONS"},{"$f":"'FR-16(7)(v)-1 Functional'!D150","v":"K215"},null,{"$f":"'FR-16(7)(v)-1 Functional'!I150","v":18483835},{"$f":"F150-SUM(H150:I150)","v":18483835},{"$f":"ROUND(F150*VLOOKUP(D150,Alloctable_Classified_Distribution,$H$10,FALSE),0)","v":0},{"$f":"ROUND(F150*VLOOKUP(D150,Alloctable_Classified_Distribution,$I$10,FALSE),0)","v":0},{"$f":"SUM(G150:I150)","v":18483835},{"$f":"F150-J150","v":0}]
[17,null,{"$f":"'FR-16(7)(v)-1 Functional'!C151","v":"POLES, TOWERS  & FIXTURES - PRIMARY - DEMAND"},{"$f":"'FR-16(7)(v)-1 Functional'!D151","v":"K205"},null,{"$f":"'FR-16(7)(v)-1 Functional'!I151","v":15103464},{"$f":"F151-SUM(H151:I151)","v":15103464},{"$f":"ROUND(F151*VLOOKUP(D151,Alloctable_Classified_Distribution,$H$10,FALSE),0)","v":0},{"$f":"ROUND(F151*VLOOKUP(D151,Alloctable_Classified_Distribution,$I$10,FALSE),0)","v":0},{"$f":"SUM(G151:I151)","v":15103464},{"$f":"F151-J151","v":0}]
[18,null,{"$f":"'FR-16(7)(v)-1 Functional'!C152","v":"POLES, TOWERS  & FIXTURES - PRIMARY - CUSTOMER"},"K406",null,{"$f":"'FR-16(7)(v)-1 Functional'!I152","v":6911939},{"$f":"F152-SUM(H152:I152)","v":0},{"$f":"ROUND(F152*VLOOKUP(D152,Alloctable_Classified_Distribution,$H$10,FALSE),0)","v":0},{"$f":"ROUND(F152*VLOOKUP(D152,Alloctable_Classified_Distribution,$I$10,FALSE),0)","v":6911939},{"$f":"SUM(G152:I152)","v":6911939},{"$f":"F152-J152","v":0}]
[19,null,{"$f":"'FR-16(7)(v)-1 Functional'!C153","v":"POLES, TOWERS  & FIXTURES - SECONDARY - DEMAND"},{"$f":"'FR-16(7)(v)-1 Functional'!D153","v":"K206"},null,{"$f":"'FR-16(7)(v)-1 Functional'!I153","v":5776068},5776068,0,0,5776068,0]
[20,null,{"$f":"'FR-16(7)(v)-1 Functional'!C154","v":"POLES, TOWERS  & FIXTURES - SECONDARY - CUSTOMER"},"K406",null,{"$f":"'FR-16(7)(v)-1 Functional'!I154","v":1562400},0,0,1562400,1562400,0]
[21,null,{"$f":"'FR-16(7)(v)-1 Functional'!C155","v":"CONDUCTORS - OVERHEAD / PRIMARY - DEMAND"},{"$f":"'FR-16(7)(v)-1 Functional'!D155","v":"K205"},null,{"$f":"'FR-16(7)(v)-1 Functional'!I155","v":22430547},22430547,0,0,22430547,0]
[22,null,{"$f":"'FR-16(7)(v)-1 Functional'!C156","v":"CONDUCTORS - OVERHEAD / PRIMARY - CUSTOMER"},"K406",null,{"$f":"'FR-16(7)(v)-1 Functional'!I156","v":4898270},0,0,4898270,4898270,0]
[23,null,{"$f":"'FR-16(7)(v)-1 Functional'!C157","v":"CONDUCTORS - OVERHEAD / SECONDARY - DEMAND"},{"$f":"'FR-16(7)(v)-1 Functional'!D157","v":"K206"},null,{"$f":"'FR-16(7)(v)-1 Functional'!I157","v":9133457},9133457,0,0,9133457,0]
[24,null,{"$f":"'FR-16(7)(v)-1 Functional'!C158","v":"CONDUCTORS - OVERHEAD / SECONDARY - CUSTOMER"},"K406",null,{"$f":"'FR-16(7)(v)-1 Functional'!I158","v":2029018},0,0,2029018,2029018,0]
[25,null,{"$f":"'FR-16(7)(v)-1 Functional'!C159","v":"CONDUCTORS - UNDERGROUND / PRIMARY - DEMAND"},{"$f":"'FR-16(7)(v)-1 Functional'!D159","v":"K205"},null,{"$f":"'FR-16(7)(v)-1 Functional'!I159","v":16606325},16606325,0,0,16606325,0]
[26,null,{"$f":"'FR-16(7)(v)-1 Functional'!C160","v":"CONDUCTORS - UNDERGROUND / PRIMARY - CUSTOMER"},"K406",null,{"$f":"'FR-16(7)(v)-1 Functional'!I160","v":5156912},0,0,5156912,5156912,0]
[27,null,{"$f":"'FR-16(7)(v)-1 Functional'!C161","v":"CONDUCTORS - UNDERGROUND / SECONDARY - DEMAND"},{"$f":"'FR-16(7)(v)-1 Functional'!D161","v":"K206"},null,{"$f":"'FR-16(7)(v)-1 Functional'!I161","v":2844900},2844900,0,0,2844900,0]
[28,null,{"$f":"'FR-16(7)(v)-1 Functional'!C162","v":"CONDUCTORS - UNDERGROUND / SECONDARY - CUSTOMER"},"K406",null,{"$f":"'FR-16(7)(v)-1 Functional'!I162","v":1612630},0,0,1612630,1612630,0]
[29,null,{"$f":"'FR-16(7)(v)-1 Functional'!C163","v":"TRANSFORMERS DEMAND RELATED"},{"$f":"'FR-16(7)(v)-1 Functional'!D163","v":"K215"},null,{"$f":"'FR-16(7)(v)-1 Functional'!I163","v":20506142},{"$f":"F163-SUM(H163:I163)","v":20506142},{"$f":"ROUND(F163*VLOOKUP(D163,Alloctable_Classified_Distribution,$H$10,FALSE),0)","v":0},{"$f":"ROUND(F163*VLOOKUP(D163,Alloctable_Classified_Distribution,$I$10,FALSE),0)","v":0},{"$f":"SUM(G163:I163)","v":20506142},{"$f":"F163-J163","v":0}]
[30,null,{"$f":"'FR-16(7)(v)-1 Functional'!C164","v":"TRANSFORMERS CUSTOMER RELATED"},"K406",null,{"$f":"'FR-16(7)(v)-1 Functional'!I164","v":6663753},0,0,6663753,6663753,0]
[31,null,{"$f":"'FR-16(7)(v)-1 Functional'!C165","v":"SERVICES"},{"$f":"'FR-16(7)(v)-1 Functional'!D165","v":"K217"},null,{"$f":"'FR-16(7)(v)-1 Functional'!I165","v":11659391},0,0,11659391,11659391,0]
[32,null,{"$f":"'FR-16(7)(v)-1 Functional'!C166","v":"METERS"},{"$f":"'FR-16(7)(v)-1 Functional'!D166","v":"K407"},null,{"$f":"'FR-16(7)(v)-1 Functional'!I166","v":4964663},0,0,4964663,4964663,0]
[33,null,{"$f":"'FR-16(7)(v)-1 Functional'!C167","v":"STREET LIGHTS"},{"$f":"'FR-16(7)(v)-1 Functional'!D167","v":"K401"},null,{"$f":"'FR-16(7)(v)-1 Functional'!I167","v":4073494},0,0,4073494,4073494,0]
[34,null,{"$f":"'FR-16(7)(v)-1 Functional'!C168","v":"ADJUSTMENT  "},{"$f":"'FR-16(7)(v)-1 Functional'!D168","v":"K209"},null,{"$f":"'FR-16(7)(v)-1 Functional'!I168","v":467127},342469,0,124658,467127,0]
[35,null,{"$f":"'FR-16(7)(v)-1 Functional'!C169","v":"CONSTRUCTION NOT CLASSIFIED"},{"$f":"'FR-16(7)(v)-1 Functional'!D169","v":"K209"},null,{"$f":"'FR-16(7)(v)-1 Functional'!I169","v":1525712},1118560,0,407152,1525712,0]
[36,null,{"$f":"'FR-16(7)(v)-1 Functional'!C170","v":"RWIP"},{"$f":"'FR-16(7)(v)-1 Functional'!D170","v":"K215"},null,{"$f":"'FR-16(7)(v)-1 Functional'!I170","v":-17119217},{"$f":"F170-SUM(H170:I170)","v":-17119217},{"$f":"ROUND(F170*VLOOKUP(D170,Alloctable_Classified_Distribution,$H$10,FALSE),0)","v":0},{"$f":"ROUND(F170*VLOOKUP(D170,Alloctable_Classified_Distribution,$I$10,FALSE),0)","v":0},{"$f":"SUM(G170:I170)","v":-17119217},{"$f":"F170-J170","v":0}]
[37,null,{"$f":"'FR-16(7)(v)-1 Functional'!C171","v":"  TOTAL DIST DEPREC RESERVE"},null,null,{"$f":"SUM(F149:F170)","v":145290830},{"$f":"SUM(G149:G170)","v":95226550},0,50064280,145290830,0]
[38]
[39,null,"TOTAL TRANS & DIST DEPREC RESERVE",null,null,{"$f":"F171+F145","v":145290830},{"$f":"G171+G145","v":95226550},{"$f":"H171+H145","v":0},{"$f":"I171+I145","v":50064280},{"$f":"J171+J145","v":145290830},{"$f":"F173-J173","v":0}]
[40,null,"TOTAL GROSS PTD PLANT DEPREC RESERVE",null,null,{"$f":"F147+F171","v":145290830},{"$f":"G147+G171","v":95226550},{"$f":"H147+H171","v":0},{"$f":"I147+I171","v":50064280},{"$f":"J147+J171","v":145290830},{"$f":"F174-J174","v":0}]
[41]
[42,"GENERAL & INTANGIBLE PLANT"]
[43,null,{"$f":"'FR-16(7)(v)-1 Functional'!C177","v":"PRODUCTION - DEMAND"},{"$f":"'FR-16(7)(v)-1 Functional'!D177","v":"K201"},null,{"$f":"'FR-16(7)(v)-1 Functional'!I177","v":0},{"$f":"F177-SUM(H177:I177)","v":0},{"$f":"ROUND(F177*VLOOKUP(D177,Alloctable_Classified_Distribution,$H$10,FALSE),0)","v":0},{"$f":"ROUND(F177*VLOOKUP(D177,Alloctable_Classified_Distribution,$I$10,FALSE),0)","v":0},{"$f":"SUM(G177:I177)","v":0},{"$f":"F177-J177","v":0}]
[44,null,{"$f":"'FR-16(7)(v)-1 Functional'!C178","v":"PRODUCTION - ENERGY"},{"$f":"'FR-16(7)(v)-1 Functional'!D178","v":"K301"},null,{"$f":"'FR-16(7)(v)-1 Functional'!I178","v":0},{"$f":"F178-SUM(H178:I178)","v":0},0,0,{"$f":"SUM(G178:I178)","v":0},{"$f":"F178-J178","v":0}]
[45,null,{"$f":"'FR-16(7)(v)-1 Functional'!C179","v":"TRANSMISSION"},{"$f":"'FR-16(7)(v)-1 Functional'!D179","v":"K202"},null,{"$f":"'FR-16(7)(v)-1 Functional'!I179","v":0},0,0,0,0,0]
[46,null,{"$f":"'FR-16(7)(v)-1 Functional'!C180","v":"DISTRIBUTION - DEMAND"},{"$f":"'FR-16(7)(v)-1 Functional'!D180","v":"K201"},null,{"$f":"'FR-16(7)(v)-1 Functional'!I180","v":0},0,0,0,0,0]
[47,null,{"$f":"'FR-16(7)(v)-1 Functional'!C181","v":"DISTRIBUTION - CUSTOMER"},{"$f":"'FR-16(7)(v)-1 Functional'!D181","v":"K405"},null,{"$f":"'FR-16(7)(v)-1 Functional'!I181","v":627139},0,0,627139,627139,0]
[48,null,{"$f":"'FR-16(7)(v)-1 Functional'!C182","v":"CUSTOMER ACCOUNTING"},{"$f":"'FR-16(7)(v)-1 Functional'!D182","v":"A308"},null,{"$f":"'FR-16(7)(v)-1 Functional'!I182","v":2132479},0,0,2132479,2132479,0]
[49,null,{"$f":"'FR-16(7)(v)-1 Functional'!C183","v":"CUSTOMER SERVICE & INFORMATION"},{"$f":"'FR-16(7)(v)-1 Functional'!D183","v":"A310"},null,{"$f":"'FR-16(7)(v)-1 Functional'!I183","v":139459},0,0,139459,139459,0]
[50,null,{"$f":"'FR-16(7)(v)-1 Functional'!C184","v":"SALES"},{"$f":"'FR-16(7)(v)-1 Functional'!D184","v":"A312"},null,{"$f":"'FR-16(7)(v)-1 Functional'!I184","v":0},0,0,0,0,0]
[51,null,{"$f":"'FR-16(7)(v)-1 Functional'!C185","v":"ADJUSTMENT"},{"$f":"'FR-16(7)(v)-1 Functional'!D185","v":"A315"},null,{"$f":"'FR-16(7)(v)-1 Functional'!I185","v":100322},47826,0,52496,100322,0]
[52,null,{"$f":"'FR-16(7)(v)-1 Functional'!C186","v":"  GENERAL & INTANG PLANT"},null,null,{"$f":"SUM(F176:F185)","v":2999399},47826,0,2951573,2999399,0]
[53]
[54,"COMMON & OTHER PLANT"]
[55,null,{"$f":"'FR-16(7)(v)-1 Functional'!C189","v":"PRODUCTION - DEMAND"},{"$f":"'FR-16(7)(v)-1 Functional'!D189","v":"K201"},null,{"$f":"'FR-16(7)(v)-1 Functional'!I189","v":0},{"$f":"F189-SUM(H189:I189)","v":0},{"$f":"ROUND(F189*VLOOKUP(D189,Alloctable_Classified_Distribution,$H$10,FALSE),0)","v":0},{"$f":"ROUND(F189*VLOOKUP(D189,Alloctable_Classified_Distribution,$I$10,FALSE),0)","v":0},{"$f":"SUM(G189:I189)","v":0},{"$f":"F189-J189","v":0}]
[56,null,{"$f":"'FR-16(7)(v)-1 Functional'!C190","v":"PRODUCTION - ENERGY"},{"$f":"'FR-16(7)(v)-1 Functional'!D190","v":"K301"},null,{"$f":"'FR-16(7)(v)-1 Functional'!I190","v":0},{"$f":"F190-SUM(H190:I190)","v":0},0,0,{"$f":"SUM(G190:I190)","v":0},{"$f":"F190-J190","v":0}]
[57,null,{"$f":"'FR-16(7)(v)-1 Functional'!C191","v":"TRANSMISSION"},{"$f":"'FR-16(7)(v)-1 Functional'!D191","v":"K202"},null,{"$f":"'FR-16(7)(v)-1 Functional'!I191","v":0},0,0,0,0,0]
[58,null,{"$f":"'FR-16(7)(v)-1 Functional'!C192","v":"DISTRIBUTION - DEMAND"},{"$f":"'FR-16(7)(v)-1 Functional'!D192","v":"K201"},null,{"$f":"'FR-16(7)(v)-1 Functional'!I192","v":0},0,0,0,0,0]
[59,null,{"$f":"'FR-16(7)(v)-1 Functional'!C193","v":"DISTRIBUTION - CUSTOMER"},{"$f":"'FR-16(7)(v)-1 Functional'!D193","v":"K405"},null,{"$f":"'FR-16(7)(v)-1 Functional'!I193","v":847378},0,0,847378,847378,0]
[60,null,{"$f":"'FR-16(7)(v)-1 Functional'!C194","v":"CUSTOMER ACCOUNTING"},{"$f":"'FR-16(7)(v)-1 Functional'!D194","v":"A308"},null,{"$f":"'FR-16(7)(v)-1 Functional'!I194","v":2881362},0,0,2881362,2881362,0]
[61,null,{"$f":"'FR-16(7)(v)-1 Functional'!C195","v":"CUSTOMER SERVICE & INFORMATION"},{"$f":"'FR-16(7)(v)-1 Functional'!D195","v":"A310"},null,{"$f":"'FR-16(7)(v)-1 Functional'!I195","v":188435},0,0,188435,188435,0]
[62,null,{"$f":"'FR-16(7)(v)-1 Functional'!C196","v":"SALES"},{"$f":"'FR-16(7)(v)-1 Functional'!D196","v":"A312"},null,{"$f":"'FR-16(7)(v)-1 Functional'!I196","v":0},0,0,0,0,0]
[63,null,{"$f":"'FR-16(7)(v)-1 Functional'!C197","v":"ADJUSTMENT"},{"$f":"'FR-16(7)(v)-1 Functional'!D197","v":"A315"},null,{"$f":"'FR-16(7)(v)-1 Functional'!I197","v":5635},2686,0,2949,5635,0]
[64,null,{"$f":"'FR-16(7)(v)-1 Functional'!C198","v":"  COMMON & OTHER PLANT IN SERVICE"},null,null,{"$f":"SUM(F189:F197)","v":3922810},{"$f":"SUM(G188:G197)","v":2686},{"$f":"SUM(H188:H197)","v":0},{"$f":"SUM(I188:I197)","v":3920124},{"$f":"SUM(J188:J197)","v":3922810},{"$f":"SUM(K188:K197)","v":0}]
[65]
[66,"TOTAL DEPRECIATION RESERVE",null,null,null,{"$f":"F198+F186+F171+F145+F139","v":152213039},95277062,0,56935977,152213039,0]
[]
[{"$f":"co_name","v":"DUKE ENERGY KENTUCKY, INC."},null,null,null,null,null,null,null,null,{"$f":"J1","v":"FR-16(7)(v)-10"}]
[{"$f":"$A$2","v":"DISTRIBUTION CLASSIFIED - ELECTRIC COST OF SERVICE"},null,null,null,null,null,null,null,null,{"$f":"J2","v":"WITNESS RESPONSIBLE:"}]
[{"$f":"case_name","v":"CASE NO: 2019-00271"},null,null,null,null,null,null,null,null,{"$f":"Witness","v":"JAMES E. ZIOLKOWSKI"}]
[{"$f":"data_filing","v":"DATA: 12 MONTHS ACTUAL  & 0 MONTHS ESTIMATED"},null,null,null,null,null,null,null,null,{"$f":"\"PAGE \"&Pages-14&\" OF \"&Pages","v":"PAGE 4 OF 18"}]
[{"$f":"type","v":"TYPE OF FILING: \"X\" ORIGINAL   UPDATED    REVISED  "}]
[]
[]
["LINE",null,null,null,null,"TOTAL","CLASSIFIED",null,null,"TOTAL","ALL"]
["NO.",{"$f":"\"NET ELECTRIC PLANT\"","v":"NET ELECTRIC PLANT"},null,"ALLO",null,"DISTRIBUTION",{"$f":"G9","v":"DEMAND"},"ENERGY","CUSTOMER","AT ISSUE","OTHER"]
[null,null,"Schedule 4",null,null,null,3,4,5]
[1,"PRODUCTION PLANT"]
[2,null,{"$f":"'FR-16(7)(v)-1 Functional'!C213","v":"PRODUCTION STEAM"},null,null,{"$f":"F59-F136","v":0},0,0,0,0,0]
[3,null,{"$f":"'FR-16(7)(v)-1 Functional'!C214","v":"PRODUCTION OTHER"},null,null,{"$f":"F60-F137","v":0},0,0,0,0,0]
[4,null,{"$f":"'FR-16(7)(v)-1 Functional'!C215","v":"ADJUSTMENT"},null,null,{"$f":"F61-F138","v":0},0,0,0,0,0]
[5,null,{"$f":"'FR-16(7)(v)-1 Functional'!C216","v":"  NET PRODUCTION PLANT"},null,null,{"$f":"SUM(F213:F215)","v":0},0,0,0,0,0]
[6]
[7,"TRANSMISSION PLANT"]
[8,null,{"$f":"'FR-16(7)(v)-1 Functional'!C219","v":"MAIN STEP-UP TRANSFORMERS"},null,null,{"$f":"F65-F142","v":0},0,0,0,0,0]
[9,null,{"$f":"'FR-16(7)(v)-1 Functional'!C220","v":"OTHER TRANSMISSION"},null,null,{"$f":"F66-F143","v":0},0,0,0,0,0]
[10,null,{"$f":"'FR-16(7)(v)-1 Functional'!C221","v":"ADJUSTMENT"},null,null,{"$f":"F67-F144","v":0},0,0,0,0,0]
[11,null,{"$f":"'FR-16(7)(v)-1 Functional'!C222","v":"    NET TRANSMISSION PLANT"},null,null,{"$f":"SUM(F218:F221)","v":0},0,0,0,0,0]
[12]
[13,"NET PROD & TRANS PLANT",null,null,null,{"$f":"F70-F147","v":0},0,0,0,0,0]
[14]
[15,"DISTRIBUTION PLANT"]
[16,null,{"$f":"'FR-16(7)(v)-1 Functional'!C227","v":"SUBSTATIONS"},null,null,{"$f":"F73-F150","v":72492541},72492541,0,0,72492541,0]
[17,null,{"$f":"'FR-16(7)(v)-1 Functional'!C228","v":"POLES, TOWERS  & FIXTURES - PRIMARY - DEMAND"},null,null,{"$f":"F74-F151","v":17906511},17906511,0,0,17906511,0]
[18,null,{"$f":"'FR-16(7)(v)-1 Functional'!C229","v":"POLES, TOWERS  & FIXTURES - PRIMARY - CUSTOMER"},null,null,8194722,0,0,8194722,8194722,0]
[19,null,{"$f":"'FR-16(7)(v)-1 Functional'!C230","v":"POLES, TOWERS  & FIXTURES - SECONDARY - DEMAND"},null,null,6848047,6848047,0,0,6848047,0]
[20,null,{"$f":"'FR-16(7)(v)-1 Functional'!C231","v":"POLES, TOWERS  & FIXTURES - SECONDARY - CUSTOMER"},null,null,1852364,0,0,1852364,1852364,0]
[21,null,{"$f":"'FR-16(7)(v)-1 Functional'!C232","v":"CONDUCTORS - OVERHEAD / PRIMARY - DEMAND"},null,null,52792275,52792275,0,0,52792275,0]
[22,null,{"$f":"'FR-16(7)(v)-1 Functional'!C233","v":"CONDUCTORS - OVERHEAD / PRIMARY - CUSTOMER"},null,null,11528511,0,0,11528511,11528511,0]
[23,null,{"$f":"'FR-16(7)(v)-1 Functional'!C234","v":"CONDUCTORS - OVERHEAD / SECONDARY - DEMAND"},null,null,21496395,21496395,0,0,21496395,0]
[24,null,{"$f":"'FR-16(7)(v)-1 Functional'!C235","v":"CONDUCTORS - OVERHEAD / SECONDARY - CUSTOMER"},null,null,4775475,0,0,4775475,4775475,0]
[25,null,{"$f":"'FR-16(7)(v)-1 Functional'!C236","v":"CONDUCTORS - UNDERGROUND / PRIMARY - DEMAND"},null,null,39534982,39534982,0,0,39534982,0]
[26,null,{"$f":"'FR-16(7)(v)-1 Functional'!C237","v":"CONDUCTORS - UNDERGROUND / PRIMARY - CUSTOMER"},null,null,12277154,0,0,12277154,12277154,0]
[27,null,{"$f":"'FR-16(7)(v)-1 Functional'!C238","v":"CONDUCTORS - UNDERGROUND / SECONDARY - DEMAND"},null,null,6772908,6772908,0,0,6772908,0]
[28,null,{"$f":"'FR-16(7)(v)-1 Functional'!C239","v":"CONDUCTORS - UNDERGROUND / SECONDARY - CUSTOMER"},null,null,3839217,0,0,3839217,3839217,0]
[29,null,{"$f":"'FR-16(7)(v)-1 Functional'!C240","v":"TRANSFORMERS DEMAND RELATED"},null,null,26609950,26609950,0,0,26609950,0]
[30,null,{"$f":"'FR-16(7)(v)-1 Functional'!C241","v":"TRANSFORMERS CUSTOMER RELATED"},null,null,8647270,0,0,8647270,8647270,0]
[31,null,{"$f":"'FR-16(7)(v)-1 Functional'!C242","v":"SERVICES"},null,null,{"$f":"F88-F165","v":9567117},0,0,9567117,9567117,0]
[32,null,{"$f":"'FR-16(7)(v)-1 Functional'!C243","v":"METERS"},null,null,{"$f":"F89-F166","v":17604064},0,0,17604064,17604064,0]
[33,null,{"$f":"'FR-16(7)(v)-1 Functional'!C244","v":"STREET LIGHTS"},null,null,{"$f":"F90-F167","v":1522363},0,0,1522363,1522363,0]
[34,null,{"$f":"'FR-16(7)(v)-1 Functional'!C245","v":"ADJUSTMENT  "},null,null,{"$f":"F91-F168","v":-467127},-342469,0,-124658,-467127,0]
[35,null,{"$f":"'FR-16(7)(v)-1 Functional'!C246","v":"CONSTRUCTION NOT CLASSIFIED"},null,null,{"$f":"F92-F169","v":93161172},68300182,0,24860990,93161172,0]
[36,null,{"$f":"'FR-16(7)(v)-1 Functional'!C247","v":"RWIP"},null,null,17119217,17119217,0,0,17119217,0]
[37,null,{"$f":"'FR-16(7)(v)-1 Functional'!C248","v":"  NET DISTRIBUTION PLANT"},null,null,{"$f":"SUM(F226:F247)","v":434075128},{"$f":"SUM(G226:G247)","v":329530539},0,104544589,434075128,0]
[38]
[39,"NET PTD PLANT",null,null,null,{"$f":"F96-F173","v":434075128},329530539,0,104544589,434075128,0]
[40,"NET TRANS & DIST PLANT",null,null,null,{"$f":"F97-F174","v":434075128},329530539,0,104544589,434075128,0]
[41]
[42,"GENERAL & INTANGIBLE PLANT"]
[43,null,{"$f":"'FR-16(7)(v)-1 Functional'!C254","v":"PRODUCTION - DEMAND"},null,null,{"$f":"F100-F177","v":0},0,0,0,0,0]
[44,null,{"$f":"'FR-16(7)(v)-1 Functional'!C255","v":"PRODUCTION - ENERGY"},null,null,{"$f":"F101-F178","v":0},0,0,0,0,0]
[45,null,{"$f":"'FR-16(7)(v)-1 Functional'!C256","v":"TRANSMISSION"},null,null,{"$f":"F102-F179","v":0},0,0,0,0,0]
[46,null,{"$f":"'FR-16(7)(v)-1 Functional'!C257","v":"DISTRIBUTION - DEMAND"},null,null,{"$f":"F103-F180","v":0},0,0,0,0,0]
[47,null,{"$f":"'FR-16(7)(v)-1 Functional'!C258","v":"DISTRIBUTION - CUSTOMER"}]
[48,null,{"$f":"'FR-16(7)(v)-1 Functional'!C259","v":"CUSTOMER ACCOUNTING"},null,null,{"$f":"F105-F182","v":4484761},0,0,4484761,4484761,0]
[49,null,{"$f":"'FR-16(7)(v)-1 Functional'!C260","v":"CUSTOMER SERVICE & INFORMATION"},null,null,{"$f":"F106-F183","v":293294},0,0,293294,293294,0]
[50,null,{"$f":"'FR-16(7)(v)-1 Functional'!C261","v":"SALES"},null,null,0,0,0,0,0,0]
[51,null,{"$f":"'FR-16(7)(v)-1 Functional'!C262","v":"ADJUSTMENT"},null,null,{"$f":"F108-F185","v":-100322},-47826,0,-52496,-100322,0]
[52,null,{"$f":"'FR-16(7)(v)-1 Functional'!C263","v":"  NET GENERAL & INTANG PLANT"},null,null,{"$f":"SUM(F253:F262)","v":4677733},-47826,0,4725559,4677733,0]
[53]
[54,"COMMON & OTHER PLANT"]
[55,null,{"$f":"'FR-16(7)(v)-1 Functional'!C266","v":"PRODUCTION - DEMAND"},null,null,{"$f":"F112-F189","v":0},0,0,0,0,0]
[56,null,{"$f":"'FR-16(7)(v)-1 Functional'!C267","v":"PRODUCTION - ENERGY"},null,null,{"$f":"F113-F190","v":0},0,0,0,0,0]
[57,null,{"$f":"'FR-16(7)(v)-1 Functional'!C268","v":"TRANSMISSION"},null,null,{"$f":"F114-F191","v":0},0,0,0,0,0]
[58,null,{"$f":"'FR-16(7)(v)-1 Functional'!C269","v":"DISTRIBUTION - DEMAND"},null,null,{"$f":"F115-F192","v":0},0,0,0,0,0]
[59,null,{"$f":"'FR-16(7)(v)-1 Functional'!C270","v":"DISTRIBUTION - CUSTOMER"}]
[60,null,{"$f":"'FR-16(7)(v)-1 Functional'!C271","v":"CUSTOMER ACCOUNTING"},null,null,{"$f":"F117-F194","v":863878},0,0,863878,863878,0]
[61,null,{"$f":"'FR-16(7)(v)-1 Functional'!C272","v":"CUSTOMER SERVICE & INFORMATION"},null,null,{"$f":"F118-F195","v":56495},0,0,56495,56495,0]
[62,null,{"$f":"'FR-16(7)(v)-1 Functional'!C273","v":"SALES"},null,null,0,0,0,0,0,0]
[63,null,{"$f":"'FR-16(7)(v)-1 Functional'!C274","v":"ADJUSTMENT"},null,null,{"$f":"F120-F197","v":-5635},-2686,0,-2949,-5635,0]
[64,null,{"$f":"'FR-16(7)(v)-1 Functional'!C275","v":"  COMMON & OTHER PLANT IN SERVICE"},null,null,{"$f":"SUM(F265:F274)","v":914738},-2686,0,917424,914738,0]
[65]
[66,null,{"$f":"'FR-16(7)(v)-1 Functional'!C277","v":"NET ELECTRIC PLANT IN SERVICE"},null,null,{"$f":"F275+F263+F248+F222+F216","v":439667599},329480027,0,110187572,439667599,0]
[]
[{"$f":"co_name","v":"DUKE ENERGY KENTUCKY, INC."},null,null,null,null,null,null,null,null,{"$f":"J1","v":"FR-16(7)(v)-10"}]
[{"$f":"$A$2","v":"DISTRIBUTION CLASSIFIED - ELECTRIC COST OF SERVICE"},null,null,null,null,null,null,null,null,{"$f":"J2","v":"WITNESS RESPONSIBLE:"}]
[{"$f":"case_name","v":"CASE NO: 2019-00271"},null,null,null,null,null,null,null,null,{"$f":"Witness","v":"JAMES E. ZIOLKOWSKI"}]
[{"$f":"data_filing","v":"DATA: 12 MONTHS ACTUAL  & 0 MONTHS ESTIMATED"},null,null,null,null,null,null,null,null,{"$f":"\"PAGE \"&Pages-13&\" OF \"&Pages","v":"PAGE 5 OF 18"}]
[{"$f":"type","v":"TYPE OF FILING: \"X\" ORIGINAL   UPDATED    REVISED  "}]
[]
[]
["LINE",null,null,null,null,"TOTAL","CLASSIFIED",null,null,"TOTAL","ALL"]
["NO.","SUBTRACTIVE RATE BASE ADJUSTMENTS",null,"ALLO",null,"DISTRIBUTION",{"$f":"G9","v":"DEMAND"},"ENERGY","CUSTOMER","AT ISSUE","OTHER"]
[null,null,"Schedule 5",null,null,null,3,4,5]
[1,"RATE BASE ADJUSTMENTS"]
[2,"ACCUMULATED DEFERRED INCOME TAXES"]
[3," ACCUM DEF INC TAXES (282)"]
[4,null,{"$f":"'FR-16(7)(v)-1 Functional'!C292","v":"LIBERALIZED DEPRECIATION"},{"$f":"'FR-16(7)(v)-1 Functional'!D292","v":"NP29"}," ",{"$f":"'FR-16(7)(v)-1 Functional'!I292","v":26128514},{"$f":"F292-SUM(H292:I292)","v":19580186},{"$f":"ROUND(F292*VLOOKUP(D292,Alloctable_Classified_Distribution,$H$10,FALSE),0)","v":0},{"$f":"ROUND(F292*VLOOKUP(D292,Alloctable_Classified_Distribution,$I$10,FALSE),0)","v":6548328},{"$f":"SUM(G292:I292)","v":26128514},{"$f":"F292-J292","v":0}]
[5,null,{"$f":"'FR-16(7)(v)-1 Functional'!C293","v":"LEASED METERS"},{"$f":"'FR-16(7)(v)-1 Functional'!D293","v":"NP29"}," ",{"$f":"'FR-16(7)(v)-1 Functional'!I293","v":592655},444124,0,148531,592655,0]
[6,null,{"$f":"'FR-16(7)(v)-1 Functional'!C294","v":"CONTRIB AID CONSTR"},{"$f":"'FR-16(7)(v)-1 Functional'!D294","v":"D249"}," ",{"$f":"'FR-16(7)(v)-1 Functional'!I294","v":0},0,0,0,0,0]
[7,null,{"$f":"'FR-16(7)(v)-1 Functional'!C295","v":"TAX INTEREST, EXPENSING, DEPR."},{"$f":"'FR-16(7)(v)-1 Functional'!D295","v":"NP29"}," ",{"$f":"'FR-16(7)(v)-1 Functional'!I295","v":26088782},19550411,0,6538371,26088782,0]
[8,null,{"$f":"'FR-16(7)(v)-1 Functional'!C296","v":"AFUDC IN DEBT"},{"$f":"'FR-16(7)(v)-1 Functional'!D296","v":"NP29"}," ",{"$f":"'FR-16(7)(v)-1 Functional'!I296","v":0},0,0,0,0,0]
[9,null,{"$f":"'FR-16(7)(v)-1 Functional'!C297","v":"CASUALTY LOSS"},{"$f":"'FR-16(7)(v)-1 Functional'!D297","v":"K411"}," ",{"$f":"'FR-16(7)(v)-1 Functional'!I297","v":-379125},0,0,-379125,-379125,0]
[10,null,{"$f":"'FR-16(7)(v)-1 Functional'!C298","v":"NON-CASH OVERHEADS"},{"$f":"'FR-16(7)(v)-1 Functional'!D298","v":"G229"}," ",{"$f":"'FR-16(7)(v)-1 Functional'!I298","v":0},0,0,0,0,0]
[11,null,{"$f":"'FR-16(7)(v)-1 Functional'!C299","v":"PLANT FAS 109"},{"$f":"'FR-16(7)(v)-1 Functional'!D299","v":"NP29"}," ",{"$f":"'FR-16(7)(v)-1 Functional'!I299","v":0},0,0,0,0,0]
[12,null,{"$f":"'FR-16(7)(v)-1 Functional'!C300","v":"MISCELLANEOUS"},{"$f":"'FR-16(7)(v)-1 Functional'!D300","v":"NP29"},null,{"$f":"'FR-16(7)(v)-1 Functional'!I300","v":24618247},18448422,0,6169825,24618247,0]
[13,null,{"$f":"'FR-16(7)(v)-1 Functional'!C301","v":"  TOTAL ACCOUNT 282"},null,null,{"$f":"SUM(F292:F300)","v":77049073},58023143,0,19025930,77049073,0]
[14]
[15," ACCUM DEF INC TAXES (283)"]
[16,null,{"$f":"'FR-16(7)(v)-1 Functional'!C304","v":"TRANSITION FROM MISO TO PJM"},{"$f":"'FR-16(7)(v)-1 Functional'!D304","v":"NP29"},null,{"$f":"'FR-16(7)(v)-1 Functional'!I304","v":-1401989},{"$f":"F304-SUM(H304:I304)","v":-1050623},{"$f":"ROUND(F304*VLOOKUP(D304,Alloctable_Classified_Distribution,$H$10,FALSE),0)","v":0},{"$f":"ROUND(F304*VLOOKUP(D304,Alloctable_Classified_Distribution,$I$10,FALSE),0)","v":-351366},{"$f":"SUM(G304:I304)","v":-1401989},{"$f":"F304-J304","v":0}]
[17,null,{"$f":"'FR-16(7)(v)-1 Functional'!C305","v":"DEFERRED PLANT COSTS"},{"$f":"'FR-16(7)(v)-1 Functional'!D305","v":"NP29"},null,{"$f":"'FR-16(7)(v)-1 Functional'!I305","v":273129},204677,0,68452,273129,0]
[18,null,{"$f":"'FR-16(7)(v)-1 Functional'!C306","v":"MISCELLANEOUS"},{"$f":"'FR-16(7)(v)-1 Functional'!D306","v":"OM39"},null,{"$f":"'FR-16(7)(v)-1 Functional'!I306","v":1535966},865409,0,670557,1535966,0]
[19,null,{"$f":"'FR-16(7)(v)-1 Functional'!C307","v":"ENVIRONMENTAL RESERVE"},{"$f":"'FR-16(7)(v)-1 Functional'!D307","v":"NP29"},null,{"$f":"'FR-16(7)(v)-1 Functional'!I307","v":0},0,0,0,0,0]
[20,null,{"$f":"'FR-16(7)(v)-1 Functional'!C308","v":"POST IN-SERVICE CARRYING COSTS"},{"$f":"'FR-16(7)(v)-1 Functional'!D308","v":"NP29"},null,{"$f":"'FR-16(7)(v)-1 Functional'!I308","v":0},0,0,0,0,0]
[21,null,{"$f":"'FR-16(7)(v)-1 Functional'!C309","v":"ARO CUMULATIVE EFFECT"},{"$f":"'FR-16(7)(v)-1 Functional'!D309","v":"NP29"},null,{"$f":"'FR-16(7)(v)-1 Functional'!I309","v":0},0,0,0,0,0]
[22,null,{"$f":"'FR-16(7)(v)-1 Functional'!C310","v":"LOSS ON REACQUIRED DEBT"},{"$f":"'FR-16(7)(v)-1 Functional'!D310","v":"D249"},null,{"$f":"'FR-16(7)(v)-1 Functional'!I310","v":0},0,0,0,0,0]
[23,null,{"$f":"'FR-16(7)(v)-1 Functional'!C311","v":"VACATION PAY ACCRUAL"},{"$f":"'FR-16(7)(v)-1 Functional'!D311","v":"A315"},null,{"$f":"'FR-16(7)(v)-1 Functional'!I311","v":0},0,0,0,0,0]
[24,null,{"$f":"'FR-16(7)(v)-1 Functional'!C312","v":"NON-AMI METERS RETIRED EARLY"},{"$f":"'FR-16(7)(v)-1 Functional'!D312","v":"OM39"},null,{"$f":"'FR-16(7)(v)-1 Functional'!I312","v":184293},{"$f":"F312-SUM(H312:I312)","v":103836},0,80457,{"$f":"SUM(G312:I312)","v":184293},{"$f":"F312-J312","v":0}]
[25,null,{"$f":"'FR-16(7)(v)-1 Functional'!C313","v":"PENSION EXPENSE"},{"$f":"'FR-16(7)(v)-1 Functional'!D313","v":"A315"},null,{"$f":"'FR-16(7)(v)-1 Functional'!I313","v":2122160},{"$f":"F313-SUM(H313:I313)","v":1011676},0,1110484,{"$f":"SUM(G313:I313)","v":2122160},{"$f":"F313-J313","v":0}]
[26,null,{"$f":"'FR-16(7)(v)-1 Functional'!C314","v":"UNCOLLECTIBLE ACCOUNTS"},{"$f":"'FR-16(7)(v)-1 Functional'!D314","v":"K411"},null,{"$f":"'FR-16(7)(v)-1 Functional'!I314","v":0},0,0,0,0,0]
[27,null,{"$f":"'FR-16(7)(v)-1 Functional'!C315","v":"  TOTAL ACCOUNT 283"},null,null,{"$f":"SUM(F303:F314)","v":2713559},1134975,0,1578584,2713559,0]
[28]
[29," OTHER ACCUMULATED DEFERRED INCOME TAXES"]
[30,null,{"$f":"'FR-16(7)(v)-1 Functional'!C318","v":"EXCESS ADIT"},{"$f":"'FR-16(7)(v)-1 Functional'!D318","v":"NP29"},null,{"$f":"'FR-16(7)(v)-1 Functional'!I318","v":24302333},{"$f":"F318-SUM(H318:I318)","v":18211682},{"$f":"ROUND(F318*VLOOKUP(D318,Alloctable_Classified_Distribution,$H$10,FALSE),0)","v":0},{"$f":"ROUND(F318*VLOOKUP(D318,Alloctable_Classified_Distribution,$I$10,FALSE),0)","v":6090651},{"$f":"SUM(G318:I318)","v":24302333},{"$f":"F318-J318","v":0}]
[31,null,{"$f":"'FR-16(7)(v)-1 Functional'!C319","v":"CUSTOMER SERVICE DEPOSITS"},{"$f":"'FR-16(7)(v)-1 Functional'!D319","v":"NP29"},null,{"$f":"'FR-16(7)(v)-1 Functional'!I319","v":0},{"$f":"F319-SUM(H319:I319)","v":0},{"$f":"ROUND(F319*VLOOKUP(D319,Alloctable_Classified_Distribution,$H$10,FALSE),0)","v":0},{"$f":"ROUND(F319*VLOOKUP(D319,Alloctable_Classified_Distribution,$I$10,FALSE),0)","v":0},{"$f":"SUM(G319:I319)","v":0},{"$f":"F319-J319","v":0}]
[32,null,{"$f":"'FR-16(7)(v)-1 Functional'!C320","v":"POST RETIREMENT BENEFITS"},{"$f":"'FR-16(7)(v)-1 Functional'!D320","v":"NP29"},null,{"$f":"'FR-16(7)(v)-1 Functional'!I320","v":0},{"$f":"F320-SUM(H320:I320)","v":0},{"$f":"ROUND(F320*VLOOKUP(D320,Alloctable_Classified_Distribution,$H$10,FALSE),0)","v":0},{"$f":"ROUND(F320*VLOOKUP(D320,Alloctable_Classified_Distribution,$I$10,FALSE),0)","v":0},{"$f":"SUM(G320:I320)","v":0},{"$f":"F320-J320","v":0}]
[33,null,{"$f":"'FR-16(7)(v)-1 Functional'!C321","v":"INVESTMENT TAX CREDIT"},{"$f":"'FR-16(7)(v)-1 Functional'!D321","v":"NP29"},null,{"$f":"'FR-16(7)(v)-1 Functional'!I321","v":0},{"$f":"F321-SUM(H321:I321)","v":0},{"$f":"ROUND(F321*VLOOKUP(D321,Alloctable_Classified_Distribution,$H$10,FALSE),0)","v":0},{"$f":"ROUND(F321*VLOOKUP(D321,Alloctable_Classified_Distribution,$I$10,FALSE),0)","v":0},{"$f":"SUM(G321:I321)","v":0},{"$f":"F321-J321","v":0}]
[34,null,{"$f":"'FR-16(7)(v)-1 Functional'!C322","v":"  TOTAL OTHER SUBTRACTIVE ADJUSTMENTS"},null,null,{"$f":"SUM(F317:F321)","v":24302333},18211682,0,6090651,24302333,0]
[35]
[36,{"$f":"'FR-16(7)(v)-1 Functional'!B324","v":"TOTAL SUBTRACTIVE RATE BASE ADJUSTMENTS"},null,null,null,{"$f":"F322+F315+F301","v":104064965},77369800,0,26695165,104064965,0]
[]
[{"$f":"co_name","v":"DUKE ENERGY KENTUCKY, INC."},null,null,null,null,null,null,null,null,{"$f":"J1","v":"FR-16(7)(v)-10"}]
[{"$f":"$A$2","v":"DISTRIBUTION CLASSIFIED - ELECTRIC COST OF SERVICE"},null,null,null,null,null,null,null,null,{"$f":"J2","v":"WITNESS RESPONSIBLE:"}]
[{"$f":"case_name","v":"CASE NO: 2019-00271"},null,null,null,null,null,null,null,null,{"$f":"Witness","v":"JAMES E. ZIOLKOWSKI"}]
[{"$f":"data_filing","v":"DATA: 12 MONTHS ACTUAL  & 0 MONTHS ESTIMATED"},null,null,null,null,null,null,null,null,{"$f":"\"PAGE \"&Pages-12&\" OF \"&Pages","v":"PAGE 6 OF 18"}]
[{"$f":"type","v":"TYPE OF FILING: \"X\" ORIGINAL   UPDATED    REVISED  "}]
[]
[]
["LINE",null,null,null,null,"TOTAL","CLASSIFIED",null,null,"TOTAL","ALL"]
["NO.","ADDITIVE RATE BASE ADJUSTMENTS",null,"ALLO",null,"DISTRIBUTION",{"$f":"G9","v":"DEMAND"},"ENERGY","CUSTOMER","AT ISSUE","OTHER"]
[null,null,"Schedule 5.1",null,null,null,3,4,5]
[1,"OTHER ACCUMULATED DEFERRED INCOME TAXES"]
[2," ACCUM DEF INC TAXES (190)"]
[3,null,{"$f":"'FR-16(7)(v)-1 Functional'!C338","v":"UNCOLLECTIBLE ACCTS"},{"$f":"'FR-16(7)(v)-1 Functional'!D338","v":"K411"},null,{"$f":"'FR-16(7)(v)-1 Functional'!I338","v":69801},{"$f":"F338-SUM(H338:I338)","v":0},{"$f":"ROUND(F338*VLOOKUP(D338,Alloctable_Classified_Distribution,$H$10,FALSE),0)","v":0},{"$f":"ROUND(F338*VLOOKUP(D338,Alloctable_Classified_Distribution,$I$10,FALSE),0)","v":69801},{"$f":"SUM(G338:I338)","v":69801},{"$f":"F338-J338","v":0}]
[4,null,{"$f":"'FR-16(7)(v)-1 Functional'!C339","v":"CASH FLOW HEDGE"},{"$f":"'FR-16(7)(v)-1 Functional'!D339","v":"A315"},null,{"$f":"'FR-16(7)(v)-1 Functional'!I339","v":85268},{"$f":"F339-SUM(H339:I339)","v":40649},0,44619,85268,0]
[5,null,{"$f":"'FR-16(7)(v)-1 Functional'!C340","v":"RESERVED FOR FUTURE USE"},{"$f":"'FR-16(7)(v)-1 Functional'!D340","v":"NP29"},null,{"$f":"'FR-16(7)(v)-1 Functional'!I340","v":0},0,0,0,0,0]
[6,null,{"$f":"'FR-16(7)(v)-1 Functional'!C341","v":"RESERVED FOR FUTURE USE"},{"$f":"'FR-16(7)(v)-1 Functional'!D341","v":"NP29"},null,{"$f":"'FR-16(7)(v)-1 Functional'!I341","v":0},0,0,0,0,0]
[7,null,{"$f":"'FR-16(7)(v)-1 Functional'!C342","v":"ELECTRIC METERS"},{"$f":"'FR-16(7)(v)-1 Functional'!D342","v":"K407"},null,{"$f":"'FR-16(7)(v)-1 Functional'!I342","v":0},0,0,0,0,0]
[8,null,{"$f":"'FR-16(7)(v)-1 Functional'!C343","v":"UNAMORTIZED DEBT PREMIUM"},{"$f":"'FR-16(7)(v)-1 Functional'!D343","v":"D249"},null,{"$f":"'FR-16(7)(v)-1 Functional'!I343","v":0},0,0,0,0,0]
[9,null,{"$f":"'FR-16(7)(v)-1 Functional'!C344","v":"ARO CUMULATIVE EFFECT"},{"$f":"'FR-16(7)(v)-1 Functional'!D344","v":"NP29"},null,{"$f":"'FR-16(7)(v)-1 Functional'!I344","v":0},0,0,0,0,0]
[10,null,{"$f":"'FR-16(7)(v)-1 Functional'!C345","v":"RETIREMENT PLAN"},{"$f":"'FR-16(7)(v)-1 Functional'!D345","v":"A315"},null,{"$f":"'FR-16(7)(v)-1 Functional'!I345","v":875869},417544,0,458325,875869,0]
[11,null,{"$f":"'FR-16(7)(v)-1 Functional'!C346","v":"POST RETIREMENT BENEFITS "},{"$f":"'FR-16(7)(v)-1 Functional'!D346","v":"A315"},null,{"$f":"'FR-16(7)(v)-1 Functional'!I346","v":0},0,0,0,0,0]
[12,null,{"$f":"'FR-16(7)(v)-1 Functional'!C347","v":"POST RETIREMENT BENEFITS - HEALTH CARE"},{"$f":"'FR-16(7)(v)-1 Functional'!D347","v":"A315"},null,{"$f":"'FR-16(7)(v)-1 Functional'!I347","v":0},0,0,0,0,0]
[13,null,{"$f":"'FR-16(7)(v)-1 Functional'!C348","v":"POST EMPLOYMENT BENEFITS - SFAS 112"},{"$f":"'FR-16(7)(v)-1 Functional'!D348","v":"A315"},null,{"$f":"'FR-16(7)(v)-1 Functional'!I348","v":0},0,0,0,0,0]
[14,null,{"$f":"'FR-16(7)(v)-1 Functional'!C349","v":"SUPPLEMENTAL PENSION PLAN"},{"$f":"'FR-16(7)(v)-1 Functional'!D349","v":"A315"},null,{"$f":"'FR-16(7)(v)-1 Functional'!I349","v":0},0,0,0,0,0]
[15,null,{"$f":"'FR-16(7)(v)-1 Functional'!C350","v":"INCENTIVE PLAN"},{"$f":"'FR-16(7)(v)-1 Functional'!D350","v":"A315"},null,{"$f":"'FR-16(7)(v)-1 Functional'!I350","v":0},0,0,0,0,0]
[16,null,{"$f":"'FR-16(7)(v)-1 Functional'!C351","v":"FEDERAL DEFERRED TAX RECEIVEABLE"},{"$f":"'FR-16(7)(v)-1 Functional'!D351","v":"A315"},null,{"$f":"'FR-16(7)(v)-1 Functional'!I351","v":0},0,0,0,0,0]
[17,null,{"$f":"'FR-16(7)(v)-1 Functional'!C352","v":"MISCELLANEOUS"},{"$f":"'FR-16(7)(v)-1 Functional'!D352","v":"A315"},null,{"$f":"'FR-16(7)(v)-1 Functional'!I352","v":2811282},1340194,0,1471088,2811282,0]
[18,null,{"$f":"'FR-16(7)(v)-1 Functional'!C353","v":"DEFERRED TAX"},{"$f":"'FR-16(7)(v)-1 Functional'!D353","v":"A315"},null,{"$f":"'FR-16(7)(v)-1 Functional'!I353","v":1281078},610716,0,670362,1281078,0]
[19,null,{"$f":"'FR-16(7)(v)-1 Functional'!C354","v":"NET OPERATING LOSS"},{"$f":"'FR-16(7)(v)-1 Functional'!D354","v":"NP29"},null,{"$f":"'FR-16(7)(v)-1 Functional'!I354","v":0},0,0,0,0,0]
[20,null,{"$f":"'FR-16(7)(v)-1 Functional'!C355","v":"401K INCENTIVE PLAN"},{"$f":"'FR-16(7)(v)-1 Functional'!D355","v":"A315"},null,{"$f":"'FR-16(7)(v)-1 Functional'!I355","v":0},0,0,0,0,0]
[21,null,{"$f":"'FR-16(7)(v)-1 Functional'!C356","v":"ENVIRONMENTAL RESERVE"},{"$f":"'FR-16(7)(v)-1 Functional'!D356","v":"NP29"},null,{"$f":"'FR-16(7)(v)-1 Functional'!I356","v":0},0,0,0,0,0]
[22,null,{"$f":"'FR-16(7)(v)-1 Functional'!C357","v":"VACATION PAY ACCRUALS"},{"$f":"'FR-16(7)(v)-1 Functional'!D357","v":"A315"},null,{"$f":"'FR-16(7)(v)-1 Functional'!I357","v":138870},66202,0,72668,138870,0]
[23,null,{"$f":"'FR-16(7)(v)-1 Functional'!C358","v":"DEMAND SIDE MANAGEMENT DEFERRAL"},{"$f":"'FR-16(7)(v)-1 Functional'!D358","v":"NP29"},null,{"$f":"'FR-16(7)(v)-1 Functional'!I358","v":241972},181329,0,60643,241972,0]
[24,null,{"$f":"'FR-16(7)(v)-1 Functional'!C359","v":"OPERATING LEASE OBLIGATION"},{"$f":"'FR-16(7)(v)-1 Functional'!D359","v":"NP29"},null,{"$f":"'FR-16(7)(v)-1 Functional'!I359","v":895411},671003,0,224408,895411,0]
[25,null,{"$f":"'FR-16(7)(v)-1 Functional'!C360","v":"INJURIES & DAMAGES"},{"$f":"'FR-16(7)(v)-1 Functional'!D360","v":"NP29"},null,{"$f":"'FR-16(7)(v)-1 Functional'!I360","v":0},0,0,0,0,0]
[26,null,{"$f":"'FR-16(7)(v)-1 Functional'!C361","v":"  TOTAL ACCOUNT 190"},null,null,{"$f":"SUM(F337:F360)","v":6399551},3327637,0,3071914,6399551,0]
[27]
[28," OTHER"]
[29,null,{"$f":"'FR-16(7)(v)-1 Functional'!C364","v":"RESERVED FOR FUTURE USE"},{"$f":"'FR-16(7)(v)-1 Functional'!D364","v":"NP29"},null,{"$f":"'FR-16(7)(v)-1 Functional'!I364","v":0},{"$f":"F364-SUM(H364:I364)","v":0},{"$f":"ROUND(F364*VLOOKUP(D364,Alloctable_Classified_Distribution,$H$10,FALSE),0)","v":0},{"$f":"ROUND(F364*VLOOKUP(D364,Alloctable_Classified_Distribution,$I$10,FALSE),0)","v":0},{"$f":"SUM(G364:I364)","v":0},{"$f":"F364-J364","v":0}]
[30,null,{"$f":"'FR-16(7)(v)-1 Functional'!C365","v":"RATE CASE EXPENSE REGULATORY ASSET"},{"$f":"'FR-16(7)(v)-1 Functional'!D365","v":"NP29"},null,{"$f":"'FR-16(7)(v)-1 Functional'!I365","v":362759},{"$f":"ROUND(F365*VLOOKUP(D365,Alloctable_Classified_Distribution,$G$10,FALSE),0)","v":271844},{"$f":"ROUND(F365*VLOOKUP(D365,Alloctable_Classified_Distribution,$H$10,FALSE),0)","v":0},{"$f":"ROUND(F365*VLOOKUP(D365,Alloctable_Classified_Distribution,$I$10,FALSE),0)","v":90915},{"$f":"SUM(G365:I365)","v":362759},{"$f":"F365-J365","v":0}]
[31,null,{"$f":"'FR-16(7)(v)-1 Functional'!C366","v":"RESERVED FOR FUTURE USE"},{"$f":"'FR-16(7)(v)-1 Functional'!D366","v":"NP29"},null,{"$f":"'FR-16(7)(v)-1 Functional'!I366","v":0},{"$f":"ROUND(F366*VLOOKUP(D366,Alloctable_Classified_Distribution,$G$10,FALSE),0)","v":0},{"$f":"ROUND(F366*VLOOKUP(D366,Alloctable_Classified_Distribution,$H$10,FALSE),0)","v":0},{"$f":"ROUND(F366*VLOOKUP(D366,Alloctable_Classified_Distribution,$I$10,FALSE),0)","v":0},{"$f":"SUM(G366:I366)","v":0},{"$f":"F366-J366","v":0}]
[32,null,{"$f":"'FR-16(7)(v)-1 Functional'!C367","v":"  OTHER"},null,null,{"$f":"SUM(F364:F366)","v":362759},{"$f":"SUM(G363:G366)","v":271844},{"$f":"SUM(H363:H366)","v":0},{"$f":"SUM(I363:I366)","v":90915},{"$f":"SUM(J363:J366)","v":362759},{"$f":"SUM(K363:K366)","v":0}]
[33,null,null,null,null," "]
[34,"CONSTRUCTION WORK IN PROGRESS"]
[35,null,{"$f":"'FR-16(7)(v)-1 Functional'!C370","v":"PRODUCTION"},{"$f":"'FR-16(7)(v)-1 Functional'!D370","v":"P129"},null,{"$f":"'FR-16(7)(v)-1 Functional'!I370","v":0},{"$f":"F370-SUM(H370:I370)","v":0},{"$f":"ROUND(F370*VLOOKUP(D370,Alloctable_Classified_Distribution,$H$10,FALSE),0)","v":0},{"$f":"ROUND(F370*VLOOKUP(D370,Alloctable_Classified_Distribution,$I$10,FALSE),0)","v":0},{"$f":"SUM(G370:I370)","v":0},{"$f":"F370-J370","v":0}]
[36,null,{"$f":"'FR-16(7)(v)-1 Functional'!C371","v":"TRANSMISSION"},{"$f":"'FR-16(7)(v)-1 Functional'!D371","v":"T129"},null,{"$f":"'FR-16(7)(v)-1 Functional'!I371","v":0},{"$f":"F371-SUM(H371:I371)","v":0},{"$f":"ROUND(F371*VLOOKUP(D371,Alloctable_Classified_Distribution,$H$10,FALSE),0)","v":0},{"$f":"ROUND(F371*VLOOKUP(D371,Alloctable_Classified_Distribution,$I$10,FALSE),0)","v":0},{"$f":"SUM(G371:I371)","v":0},{"$f":"F371-J371","v":0}]
[37,null,{"$f":"'FR-16(7)(v)-1 Functional'!C372","v":"DISTRIBUTION"},{"$f":"'FR-16(7)(v)-1 Functional'!D372","v":"D149"},null,{"$f":"'FR-16(7)(v)-1 Functional'!I372","v":0},{"$f":"F372-SUM(H372:I372)","v":0},{"$f":"ROUND(F372*VLOOKUP(D372,Alloctable_Classified_Distribution,$H$10,FALSE),0)","v":0},{"$f":"ROUND(F372*VLOOKUP(D372,Alloctable_Classified_Distribution,$I$10,FALSE),0)","v":0},{"$f":"SUM(G372:I372)","v":0},{"$f":"F372-J372","v":0}]
[38,null,{"$f":"'FR-16(7)(v)-1 Functional'!C373","v":"COMMON"},{"$f":"'FR-16(7)(v)-1 Functional'!D373","v":"C129"},null,{"$f":"'FR-16(7)(v)-1 Functional'!I373","v":0},{"$f":"F373-SUM(H373:I373)","v":0},{"$f":"ROUND(F373*VLOOKUP(D373,Alloctable_Classified_Distribution,$H$10,FALSE),0)","v":0},{"$f":"ROUND(F373*VLOOKUP(D373,Alloctable_Classified_Distribution,$I$10,FALSE),0)","v":0},{"$f":"SUM(G373:I373)","v":0},{"$f":"F373-J373","v":0}]
[39,null,{"$f":"'FR-16(7)(v)-1 Functional'!C374","v":"GENERAL"},{"$f":"'FR-16(7)(v)-1 Functional'!D374","v":"G129"},null,{"$f":"'FR-16(7)(v)-1 Functional'!I374","v":0},{"$f":"F374-SUM(H374:I374)","v":0},{"$f":"ROUND(F374*VLOOKUP(D374,Alloctable_Classified_Distribution,$H$10,FALSE),0)","v":0},{"$f":"ROUND(F374*VLOOKUP(D374,Alloctable_Classified_Distribution,$I$10,FALSE),0)","v":0},{"$f":"SUM(G374:I374)","v":0},{"$f":"F374-J374","v":0}]
[40,null,{"$f":"'FR-16(7)(v)-1 Functional'!C375","v":"TOTAL CONSTRUCTION WORK IN PROGRESS"},null,null,{"$f":"SUM(F370:F374)","v":0},0,0,0,0,0]
[41]
[42,{"$f":"'FR-16(7)(v)-1 Functional'!B377","v":"TOTAL ADDITIVE RATE BASE ADJUSTMENTS"},null,null,null,{"$f":"F361+F367+F375","v":6762310},3599481,0,3162829,6762310,0]
[]
[{"$f":"co_name","v":"DUKE ENERGY KENTUCKY, INC."},null,null,null,null,null,null,null,null,{"$f":"J1","v":"FR-16(7)(v)-10"}]
[{"$f":"$A$2","v":"DISTRIBUTION CLASSIFIED - ELECTRIC COST OF SERVICE"},null,null,null,null,null,null,null,null,{"$f":"J2","v":"WITNESS RESPONSIBLE:"}]
[{"$f":"case_name","v":"CASE NO: 2019-00271"},null,null,null,null,null,null,null,null,{"$f":"Witness","v":"JAMES E. ZIOLKOWSKI"}]
[{"$f":"data_filing","v":"DATA: 12 MONTHS ACTUAL  & 0 MONTHS ESTIMATED"},null,null,null,null,null,null,null,null,{"$f":"\"PAGE \"&Pages-11&\" OF \"&Pages","v":"PAGE 7 OF 18"}]
[{"$f":"type","v":"TYPE OF FILING: \"X\" ORIGINAL   UPDATED    REVISED  "}]
[]
[]
["LINE",null,null,null,null,"TOTAL","CLASSIFIED",null,null,"TOTAL","ALL"]
["NO.","WORKING CAPITAL",null,"ALLO",null,"DISTRIBUTION",{"$f":"G9","v":"DEMAND"},"ENERGY","CUSTOMER","AT ISSUE","OTHER"]
[null,null,"Schedule 5.2",null,null,null,3,4,5]
[]
[1,"NET ORIGINAL COST RATE BASE",null,null,null,{"$f":"F277-F324+F377","v":342364944},255709708,0,86655236,342364944,0]
[2]
[3,"WORKING CAPITAL"]
[4]
[5,"PLANT MATERIALS & SUPPLIES"]
[6,null,{"$f":"'FR-16(7)(v)-1 Functional'!C395","v":"OTHER MATERIALS & SUPPLIES"},{"$f":"'FR-16(7)(v)-1 Functional'!D395","v":"PD29"},null,{"$f":"'FR-16(7)(v)-1 Functional'!I395","v":5841630},{"$f":"ROUND(F395*VLOOKUP(D395,Alloctable_Classified_Distribution,G10,FALSE),0)","v":0},{"$f":"ROUND(F395*VLOOKUP(D395,Alloctable_Classified_Distribution,H10,FALSE),0)","v":0},{"$f":"ROUND(F395*VLOOKUP(D395,Alloctable_Classified_Distribution,I10,FALSE),0)","v":5841630},{"$f":"SUM(G395:I395)","v":5841630},{"$f":"F395-J395","v":0}]
[7,null,{"$f":"'FR-16(7)(v)-1 Functional'!C396","v":"FUEL"},{"$f":"'FR-16(7)(v)-1 Functional'!D396","v":"K301"},null,{"$f":"'FR-16(7)(v)-1 Functional'!I396","v":0},{"$f":"ROUND(F396*VLOOKUP(D396,Alloctable_Classified_Distribution,$G$10,FALSE),0)","v":0},{"$f":"ROUND(F396*VLOOKUP(D396,Alloctable_Classified_Distribution,$H$10,FALSE),0)","v":0},{"$f":"ROUND(F396*VLOOKUP(D396,Alloctable_Classified_Distribution,$I$10,FALSE),0)","v":0},{"$f":"SUM(G396:I396)","v":0},{"$f":"F396-J396","v":0}]
[8,null,{"$f":"'FR-16(7)(v)-1 Functional'!C397","v":"EMISSION ALLOWANCES"},{"$f":"'FR-16(7)(v)-1 Functional'!D397","v":"K301"},null,{"$f":"'FR-16(7)(v)-1 Functional'!I397","v":0},{"$f":"ROUND(F397*VLOOKUP(D397,Alloctable_Classified_Distribution,$G$10,FALSE),0)","v":0},{"$f":"ROUND(F397*VLOOKUP(D397,Alloctable_Classified_Distribution,$H$10,FALSE),0)","v":0},{"$f":"ROUND(F397*VLOOKUP(D397,Alloctable_Classified_Distribution,$I$10,FALSE),0)","v":0},{"$f":"SUM(G397:I397)","v":0},{"$f":"F397-J397","v":0}]
[9,null,{"$f":"'FR-16(7)(v)-1 Functional'!C398","v":"  TOTAL PLANT MATS. & SUPPLIES"},null,null,{"$f":"SUM(F394:F397)","v":5841630},0,0,5841630,5841630,0]
[10,"TOTAL MATERIALS & SUPPLIES",null,null,null,{"$f":"F398","v":5841630},0,0,5841630,5841630,0]
[11]
[12,"PREPAYMENTS"]
[13,null,{"$f":"'FR-16(7)(v)-1 Functional'!C402","v":"INSURANCE GENERAL"},{"$f":"'FR-16(7)(v)-1 Functional'!D402","v":"NP29"},null,{"$f":"'FR-16(7)(v)-1 Functional'!I402","v":107114},{"$f":"ROUND(F402*VLOOKUP(D402,Alloctable_Classified_Distribution,$G$10,FALSE),0)","v":80269},{"$f":"ROUND(F402*VLOOKUP(D402,Alloctable_Classified_Distribution,$H$10,FALSE),0)","v":0},{"$f":"ROUND(F402*VLOOKUP(D402,Alloctable_Classified_Distribution,$I$10,FALSE),0)","v":26845},{"$f":"SUM(G402:I402)","v":107114},{"$f":"F402-J402","v":0}]
[14,null,{"$f":"'FR-16(7)(v)-1 Functional'!C403","v":"EXCISE TAX"},{"$f":"'FR-16(7)(v)-1 Functional'!D403","v":"NP29"},null,{"$f":"'FR-16(7)(v)-1 Functional'!I403","v":0},{"$f":"ROUND(F403*VLOOKUP(D403,Alloctable_Classified_Distribution,$G$10,FALSE),0)","v":0},{"$f":"ROUND(F403*VLOOKUP(D403,Alloctable_Classified_Distribution,$H$10,FALSE),0)","v":0},{"$f":"ROUND(F403*VLOOKUP(D403,Alloctable_Classified_Distribution,$I$10,FALSE),0)","v":0},{"$f":"SUM(G403:I403)","v":0},{"$f":"F403-J403","v":0}]
[15,null,{"$f":"'FR-16(7)(v)-1 Functional'!C404","v":"COLLATERAL ASSET"},{"$f":"'FR-16(7)(v)-1 Functional'!D404","v":"K301"},null,{"$f":"'FR-16(7)(v)-1 Functional'!I404","v":0},{"$f":"ROUND(F404*VLOOKUP(D404,Alloctable_Classified_Distribution,$G$10,FALSE),0)","v":0},{"$f":"ROUND(F404*VLOOKUP(D404,Alloctable_Classified_Distribution,$H$10,FALSE),0)","v":0},{"$f":"ROUND(F404*VLOOKUP(D404,Alloctable_Classified_Distribution,$I$10,FALSE),0)","v":0},{"$f":"SUM(G404:I404)","v":0},{"$f":"F404-J404","v":0}]
[16,null,{"$f":"'FR-16(7)(v)-1 Functional'!C405","v":"  TOTAL PREPAYMENTS"},null,null,{"$f":"SUM(F401:F404)","v":107114},80269,0,26845,107114,0]
[17]
[18,"AUTO CALC (O&M-ELECTRIC FUEL COST)/8",null,null,null,{"$f":"IF(WorkingCap=\"No\",0,ROUND((F549-F447-F448)/8,0))","v":0},{"$f":"F407-SUM(H407:I407)","v":0},{"$f":"IF(WorkingCap=\"No\",0,ROUND((H549-H447-H448)/8,0))","v":0},{"$f":"IF(WorkingCap=\"No\",0,ROUND((I549-I447-I448)/8,0))","v":0},{"$f":"SUM(G407:I407)","v":0},{"$f":"F407-J407","v":0}]
[19,"  TOTAL WORKING CASH",null,null,null,{"$f":"F407","v":0},0,0,0,0,0]
[20]
[21,"MISCELLANEOUS WORKING CAPITAL"]
[22,null,{"$f":"'FR-16(7)(v)-1 Functional'!C411","v":"RESERVED FOR FUTURE USE"},{"$f":"'FR-16(7)(v)-1 Functional'!D411","v":"K301"},null,{"$f":"'FR-16(7)(v)-1 Functional'!I411","v":0},{"$f":"ROUND(F411*VLOOKUP(D411,Alloctable_Classified_Distribution,$G$10,FALSE),0)","v":0},{"$f":"ROUND(F411*VLOOKUP(D411,Alloctable_Classified_Distribution,$H$10,FALSE),0)","v":0},{"$f":"ROUND(F411*VLOOKUP(D411,Alloctable_Classified_Distribution,$I$10,FALSE),0)","v":0},{"$f":"SUM(G411:I411)","v":0},{"$f":"F411-J411","v":0}]
[23,null,{"$f":"'FR-16(7)(v)-1 Functional'!C412","v":"PIPP UNCOLLECTIBLES"},{"$f":"'FR-16(7)(v)-1 Functional'!D412","v":"A315"},null,{"$f":"'FR-16(7)(v)-1 Functional'!I412","v":0},{"$f":"ROUND(F412*VLOOKUP(D412,Alloctable_Classified_Distribution,$G$10,FALSE),0)","v":0},{"$f":"ROUND(F412*VLOOKUP(D412,Alloctable_Classified_Distribution,$H$10,FALSE),0)","v":0},{"$f":"ROUND(F412*VLOOKUP(D412,Alloctable_Classified_Distribution,$I$10,FALSE),0)","v":0},{"$f":"SUM(G412:I412)","v":0},{"$f":"F412-J412","v":0}]
[24,null,{"$f":"'FR-16(7)(v)-1 Functional'!C413","v":"RESERVED FOR FUTURE USE"},{"$f":"'FR-16(7)(v)-1 Functional'!D413","v":"D249"},null,{"$f":"'FR-16(7)(v)-1 Functional'!I413","v":0},{"$f":"ROUND(F413*VLOOKUP(D413,Alloctable_Classified_Distribution,$G$10,FALSE),0)","v":0},{"$f":"ROUND(F413*VLOOKUP(D413,Alloctable_Classified_Distribution,$H$10,FALSE),0)","v":0},{"$f":"ROUND(F413*VLOOKUP(D413,Alloctable_Classified_Distribution,$I$10,FALSE),0)","v":0},{"$f":"SUM(G413:I413)","v":0},{"$f":"F413-J413","v":0}]
[25,null,{"$f":"'FR-16(7)(v)-1 Functional'!C414","v":"  TOTAL MISC WORK CAPITAL"},null,null,{"$f":"SUM(F410:F413)","v":0},0,0,0,0,0]
[26]
[27,"TOTAL WORKING CAPITAL",null,null,null,{"$f":"F399+F405+F408+F414","v":5948744},80269,0,5868475,5948744,0]
[28,"PRELIMINARY SUMMARY"]
[29,null,{"$f":"'FR-16(7)(v)-1 Functional'!C418","v":"TOTAL ACCUMULATED DEFERRED INCOME TAXES"},null,null,{"$f":"-F324","v":-104064965},-77369800,0,-26695165,-104064965,0]
[30,null,{"$f":"'FR-16(7)(v)-1 Functional'!C419","v":"TOTAL OTHER ACCUMULATED DEFERRED INCOME TAXES"},null,null,{"$f":"F377","v":6762310},3599481,0,3162829,6762310,0]
[31,null,{"$f":"'FR-16(7)(v)-1 Functional'!C420","v":"TOTAL WORKING CAPITAL"},null,null,{"$f":"F416","v":5948744},80269,0,5868475,5948744,0]
[32,null,{"$f":"'FR-16(7)(v)-1 Functional'!C421","v":"  TOTAL RATE BASE ADJUSTMENTS"},null,null,{"$f":"SUM(F417:F420)","v":-91353911},-73690050,0,-17663861,{"$f":"SUM(J417:J420)","v":-91353911},0]
[33]
[34,"RATE BASE CALCULATION"]
[35,null,{"$f":"'FR-16(7)(v)-1 Functional'!C424","v":"NET ELECTRIC PLANT IN SERVICE"},null,null,{"$f":"F277","v":439667599},329480027,0,110187572,439667599,0]
[36,null,{"$f":"'FR-16(7)(v)-1 Functional'!C425","v":"TOTAL RATE BASE ADJUSTMENTS"},null,null,{"$f":"F421","v":-91353911},-73690050,0,-17663861,-91353911,0]
[37,null,{"$f":"'FR-16(7)(v)-1 Functional'!C426","v":"  TOTAL RATE BASE"},null,null,{"$f":"SUM(F423:F425)","v":348313688},255789977,0,92523711,{"$f":"SUM(J423:J425)","v":348313688},0]
[38]
[39,"TOTAL RATE OF RETURN ALLOWABLE",null,null,null,{"$f":"$F$811","v":6.7100000000000007E-2},{"$f":"F811","v":6.7100000000000007E-2},{"$f":"F811","v":6.7100000000000007E-2},{"$f":"F811","v":6.7100000000000007E-2},{"$f":"F811","v":6.7100000000000007E-2}]
[40,"RETURN ON RATE BASE",null,null,null,{"$f":"ROUND(F428*F426,0)","v":23371848},{"$f":"ROUND(G426*G428,0)","v":17163507},{"$f":"ROUND(H426*H428,0)","v":0},{"$f":"ROUND(I426*I428,0)","v":6208341},{"$f":"SUM(G429:I429)","v":23371848},{"$f":"ROUND(K426*K428,0)","v":0}]
[41]
[42,{"$f":"'FR-16(7)(v)-1 Functional'!B431","v":"ELECTRIC RATE BASE"},null,{"$f":"'FR-16(7)(v)-1 Functional'!D431","v":"RB99"},null,{"$f":"'FR-16(7)(v)-1 Functional'!I431","v":349887797},{"$f":"ROUND(F431*VLOOKUP(D431,Alloctable_Classified_Distribution,$G$10,FALSE),0)","v":256947101},{"$f":"ROUND(F431*VLOOKUP(D431,Alloctable_Classified_Distribution,$H$10,FALSE),0)","v":0},{"$f":"ROUND(F431*VLOOKUP(D431,Alloctable_Classified_Distribution,$I$10,FALSE),0)","v":92940696},{"$f":"SUM(G431:I431)","v":349887797},{"$f":"F431-J431","v":0}]
[43,{"$f":"'FR-16(7)(v)-1 Functional'!B432","v":"TOTAL RATE OF RETURN ALLOWABLE"},null,null,null,{"$f":"RofR","v":6.7110000000000003E-2},{"$f":"RofR","v":6.7110000000000003E-2},{"$f":"RofR","v":6.7110000000000003E-2},{"$f":"RofR","v":6.7110000000000003E-2},{"$f":"RofR","v":6.7110000000000003E-2}]
[44,{"$f":"'FR-16(7)(v)-1 Functional'!B433","v":"RETURN ON RATE BASE"},null,null,null,{"$f":"ROUND(F431*F432,0)","v":23480970},{"$f":"F433-H433-I433","v":17243720},{"$f":"ROUND(H431*H432,0)","v":0},{"$f":"ROUND(I431*I432,0)","v":6237250},{"$f":"ROUND(J431*J432,0)","v":23480970},{"$f":"F433-J433","v":0}]
[]
[{"$f":"co_name","v":"DUKE ENERGY KENTUCKY, INC."},null,null,null,null,null,null,null,null,{"$f":"J1","v":"FR-16(7)(v)-10"}]
[{"$f":"$A$2","v":"DISTRIBUTION CLASSIFIED - ELECTRIC COST OF SERVICE"},null,null,null,null,null,null,null,null,{"$f":"J2","v":"WITNESS RESPONSIBLE:"}]
[{"$f":"case_name","v":"CASE NO: 2019-00271"},null,null,null,null,null,null,null,null,{"$f":"Witness","v":"JAMES E. ZIOLKOWSKI"}]
[{"$f":"data_filing","v":"DATA: 12 MONTHS ACTUAL  & 0 MONTHS ESTIMATED"},null,null,null,null,null,null,null,null,{"$f":"\"PAGE \"&Pages-10&\" OF \"&Pages","v":"PAGE 8 OF 18"}]
[{"$f":"type","v":"TYPE OF FILING: \"X\" ORIGINAL   UPDATED    REVISED  "}]
[]
[]
["LINE",null,null,null,null,"TOTAL","CLASSIFIED",null,null,"TOTAL","ALL"]
["NO.","O&M EXPENSES",null,"ALLO",null,"DISTRIBUTION",{"$f":"G9","v":"DEMAND"},"ENERGY","CUSTOMER","AT ISSUE","OTHER"]
[null,null,"Schedule 6",null,null,null,3,4,5]
[1,"PRODUCTION O&M"]
[2,{"$f":"'FR-16(7)(v)-1 Functional'!B446","v":"ENERGY RELATED PRODUCTION O&M"}]
[3,null,{"$f":"'FR-16(7)(v)-1 Functional'!C447","v":"FUEL"},{"$f":"'FR-16(7)(v)-1 Functional'!D447","v":"K302"},null,{"$f":"'FR-16(7)(v)-1 Functional'!I447","v":0},{"$f":"F447-SUM(H447:I447)","v":0},{"$f":"ROUND(F447*VLOOKUP(D447,Alloctable_Classified_Distribution,$H$10,FALSE),0)","v":0},{"$f":"ROUND(F447*VLOOKUP(D447,Alloctable_Classified_Distribution,$I$10,FALSE),0)","v":0},{"$f":"SUM(G447:I447)","v":0},{"$f":"F447-J447","v":0}]
[4,null,{"$f":"'FR-16(7)(v)-1 Functional'!C448","v":"FUEL AND PURCHASED POWER ADJUSTMENT"},{"$f":"'FR-16(7)(v)-1 Functional'!D448","v":"K302"},null,{"$f":"'FR-16(7)(v)-1 Functional'!I448","v":0},0,0,0,0,0]
[5,null,{"$f":"'FR-16(7)(v)-1 Functional'!C449","v":"EMISSION ALLOWANCES"},{"$f":"'FR-16(7)(v)-1 Functional'!D449","v":"K301"},null,{"$f":"'FR-16(7)(v)-1 Functional'!I449","v":0},0,0,0,0,0]
[6,null,{"$f":"'FR-16(7)(v)-1 Functional'!C450","v":"ELIMINATE EMISSION ALLOW & OTHER VAR COST"},{"$f":"'FR-16(7)(v)-1 Functional'!D450","v":"K301"},null,{"$f":"'FR-16(7)(v)-1 Functional'!I450","v":0},0,0,0,0,0]
[7,null,{"$f":"'FR-16(7)(v)-1 Functional'!C451","v":"OTHER PRODUCTION EXPENSE - MAINTENANCE"},{"$f":"'FR-16(7)(v)-1 Functional'!D451","v":"K301"},null,{"$f":"'FR-16(7)(v)-1 Functional'!I451","v":0},0,0,0,0,0]
[8,null,{"$f":"'FR-16(7)(v)-1 Functional'!C452","v":"MISO TRANSMISSION CHARGES - ACCT 555"},{"$f":"'FR-16(7)(v)-1 Functional'!D452","v":"K301"},null,{"$f":"'FR-16(7)(v)-1 Functional'!I452","v":0},0,0,0,0,0]
[9,null,"  TOTAL ENERGY RELATED",null,null,{"$f":"SUM(F447:F452)","v":0},0,0,0,0,0]
[10]
[11,"DEMAND RELATED & OTHER PROD O&M"]
[12,null,{"$f":"'FR-16(7)(v)-1 Functional'!C456","v":"OTHER PRODUCTION EXPENSES - OPERATIONS"},{"$f":"'FR-16(7)(v)-1 Functional'!D456","v":"K201"},null,{"$f":"'FR-16(7)(v)-1 Functional'!I456","v":0},{"$f":"F456-SUM(H456:I456)","v":0},{"$f":"ROUND(F456*VLOOKUP(D456,Alloctable_Classified_Distribution,$H$10,FALSE),0)","v":0},{"$f":"ROUND(F456*VLOOKUP(D456,Alloctable_Classified_Distribution,$I$10,FALSE),0)","v":0},{"$f":"SUM(G456:I456)","v":0},{"$f":"F456-J456","v":0}]
[13,null,"  TOTAL DEMAND REL & OTH PROD O&M ",null,null,{"$f":"SUM(F455:F456)","v":0},0,0,0,0,0]
[14]
[15,"TOTAL PRODUCTION O&M",null,null," ",{"$f":"F457+F453","v":0},0,0,0,0,0]
[16]
[17,"TRANSMISSION O & M"]
[18,null,{"$f":"'FR-16(7)(v)-1 Functional'!C462","v":"TRANSFORMER LEASE PAYMENTS"},{"$f":"'FR-16(7)(v)-1 Functional'!D462","v":"K202"},null,{"$f":"'FR-16(7)(v)-1 Functional'!I462","v":0},{"$f":"F462-SUM(H462:I462)","v":0},{"$f":"ROUND(F462*VLOOKUP(D462,Alloctable_Classified_Distribution,$H$10,FALSE),0)","v":0},{"$f":"ROUND(F462*VLOOKUP(D462,Alloctable_Classified_Distribution,$I$10,FALSE),0)","v":0},{"$f":"SUM(G462:I462)","v":0},{"$f":"F462-J462","v":0}]
[19,null,{"$f":"'FR-16(7)(v)-1 Functional'!C463","v":"OTHER TRANSMISSION"},{"$f":"'FR-16(7)(v)-1 Functional'!D463","v":"K202"},null,{"$f":"'FR-16(7)(v)-1 Functional'!I463","v":0},{"$f":"F463-SUM(H463:I463)","v":0},{"$f":"ROUND(F463*VLOOKUP(D463,Alloctable_Classified_Distribution,$H$10,FALSE),0)","v":0},{"$f":"ROUND(F463*VLOOKUP(D463,Alloctable_Classified_Distribution,$I$10,FALSE),0)","v":0},{"$f":"SUM(G463:I463)","v":0},{"$f":"F463-J463","v":0}]
[20,null,{"$f":"'FR-16(7)(v)-1 Functional'!C464","v":"MISCELLANEOUS ADJUSTMENTS"},{"$f":"'FR-16(7)(v)-1 Functional'!D464","v":"K202"},null,{"$f":"'FR-16(7)(v)-1 Functional'!I464","v":0},{"$f":"F464-SUM(H464:I464)","v":0},{"$f":"ROUND(F464*VLOOKUP(D464,Alloctable_Classified_Distribution,$H$10,FALSE),0)","v":0},{"$f":"ROUND(F464*VLOOKUP(D464,Alloctable_Classified_Distribution,$I$10,FALSE),0)","v":0},{"$f":"SUM(G464:I464)","v":0},{"$f":"F464-J464","v":0}]
[21,null,{"$f":"'FR-16(7)(v)-1 Functional'!C465","v":"NETWORK SERVICE RATES ADJUSTMENT"},{"$f":"'FR-16(7)(v)-1 Functional'!D465","v":"K202"},null,{"$f":"'FR-16(7)(v)-1 Functional'!I465","v":0},{"$f":"F465-SUM(H465:I465)","v":0},{"$f":"ROUND(F465*VLOOKUP(D465,Alloctable_Classified_Distribution,$H$10,FALSE),0)","v":0},{"$f":"ROUND(F465*VLOOKUP(D465,Alloctable_Classified_Distribution,$I$10,FALSE),0)","v":0},{"$f":"SUM(G465:I465)","v":0},{"$f":"F465-J465","v":0}]
[22,null,{"$f":"'FR-16(7)(v)-1 Functional'!C466","v":"  TOTAL TRANSMISSION O & M"},null,null,{"$f":"SUM(F462:F465)","v":0},0,0,0,0,0]
[23]
[24,"REGIONAL MARKET O&M"]
[25,null,{"$f":"'FR-16(7)(v)-1 Functional'!C469","v":"MARKET FACILITATION - MONITORING & COMPLIANCE"},{"$f":"'FR-16(7)(v)-1 Functional'!D469","v":"K202"},null,{"$f":"'FR-16(7)(v)-1 Functional'!I469","v":0},{"$f":"F469-SUM(H469:I469)","v":0},{"$f":"ROUND(F469*VLOOKUP(D469,Alloctable_Classified_Distribution,$H$10,FALSE),0)","v":0},{"$f":"ROUND(F469*VLOOKUP(D469,Alloctable_Classified_Distribution,$I$10,FALSE),0)","v":0},{"$f":"SUM(G469:I469)","v":0},{"$f":"F469-J469","v":0}]
[26,null,"TOTAL REGIONAL MARKET O&M",null,null,{"$f":"SUM(F468:F469)","v":0},0,0,0,0,0]
[27]
[28,"DISTRIBUTION O & M"]
[29,null,{"$f":"'FR-16(7)(v)-1 Functional'!C473","v":"SUBSTATIONS"},{"$f":"'FR-16(7)(v)-1 Functional'!D473","v":"K201"},null,{"$f":"'FR-16(7)(v)-1 Functional'!I473","v":0},{"$f":"F473-SUM(H473:I473)","v":0},{"$f":"ROUND(F473*VLOOKUP(D473,Alloctable_Classified_Distribution,$H$10,FALSE),0)","v":0},{"$f":"ROUND(F473*VLOOKUP(D473,Alloctable_Classified_Distribution,$I$10,FALSE),0)","v":0},{"$f":"SUM(G473:I473)","v":0},{"$f":"F473-J473","v":0}]
[30,null,{"$f":"'FR-16(7)(v)-1 Functional'!C474","v":"POLES, TOWERS & FIXTURES"},{"$f":"'FR-16(7)(v)-1 Functional'!D474","v":"PL49"},null,{"$f":"'FR-16(7)(v)-1 Functional'!I474","v":0},0,0,0,0,0]
[31,null,{"$f":"'FR-16(7)(v)-1 Functional'!C475","v":"OVERHEAD LINES - PRIMARY / DEMAND"},{"$f":"'FR-16(7)(v)-1 Functional'!D475","v":"K205"},null,{"$f":"'FR-16(7)(v)-1 Functional'!I475","v":5171363},5171363,0,0,5171363,0]
[32,null,{"$f":"'FR-16(7)(v)-1 Functional'!C476","v":"OVERHEAD LINES - PRIMARY / CUSTOMER"},"K406",null,{"$f":"'FR-16(7)(v)-1 Functional'!I476","v":1129296},{"$f":"F476-SUM(H476:I476)","v":0},{"$f":"ROUND(F476*VLOOKUP(D476,Alloctable_Classified_Distribution,$H$10,FALSE),0)","v":0},{"$f":"ROUND(F476*VLOOKUP(D476,Alloctable_Classified_Distribution,$I$10,FALSE),0)","v":1129296},{"$f":"SUM(G476:I476)","v":1129296},{"$f":"F476-J476","v":0}]
[33,null,{"$f":"'FR-16(7)(v)-1 Functional'!C477","v":"OVERHEAD LINES - SECONDARY / DEMAND"},{"$f":"'FR-16(7)(v)-1 Functional'!D477","v":"K206"},null,{"$f":"'FR-16(7)(v)-1 Functional'!I477","v":2105718},2105718,0,0,2105718,0]
[34,null,{"$f":"'FR-16(7)(v)-1 Functional'!C478","v":"OVERHEAD LINES - SECONDARY / CUSTOMER"},"K406",null,{"$f":"'FR-16(7)(v)-1 Functional'!I478","v":467790},0,0,467790,467790,0]
[35,null,{"$f":"'FR-16(7)(v)-1 Functional'!C479","v":"UNDERGROUND LINES - PRIMARY / DEMAND"},{"$f":"'FR-16(7)(v)-1 Functional'!D479","v":"K205"},null,{"$f":"'FR-16(7)(v)-1 Functional'!I479","v":674043},674043,0,0,674043,0]
[36,null,{"$f":"'FR-16(7)(v)-1 Functional'!C480","v":"UNDERGROUND LINES - PRIMARY / CUSTOMER"},"K406",null,{"$f":"'FR-16(7)(v)-1 Functional'!I480","v":209317},0,0,209317,209317,0]
[37,null,{"$f":"'FR-16(7)(v)-1 Functional'!C481","v":"UNDERGROUND LINES - SECONDARY / DEMAND"},{"$f":"'FR-16(7)(v)-1 Functional'!D481","v":"K206"},null,{"$f":"'FR-16(7)(v)-1 Functional'!I481","v":115473},115473,0,0,115473,0]
[38,null,{"$f":"'FR-16(7)(v)-1 Functional'!C482","v":"UNDERGROUND LINES - SECONDARY / CUSTOMER"},"K406",null,{"$f":"'FR-16(7)(v)-1 Functional'!I482","v":65456},0,0,65456,65456,0]
[39,null,{"$f":"'FR-16(7)(v)-1 Functional'!C483","v":"TRANSFORMERS DEMAND RELATED"},{"$f":"'FR-16(7)(v)-1 Functional'!D483","v":"K203"},null,{"$f":"'FR-16(7)(v)-1 Functional'!I483","v":271379},271379,0,0,271379,0]
[40,null,{"$f":"'FR-16(7)(v)-1 Functional'!C484","v":"TRANSFORMERS CUSTOMER RELATED"},{"$f":"'FR-16(7)(v)-1 Functional'!D484","v":"K401"},null,{"$f":"'FR-16(7)(v)-1 Functional'!I484","v":88189},{"$f":"F484-SUM(H484:I484)","v":0},{"$f":"ROUND(F484*VLOOKUP(D484,Alloctable_Classified_Distribution,$H$10,FALSE),0)","v":0},{"$f":"ROUND(F484*VLOOKUP(D484,Alloctable_Classified_Distribution,$I$10,FALSE),0)","v":88189},{"$f":"SUM(G484:I484)","v":88189},{"$f":"F484-J484","v":0}]
[41,null,{"$f":"'FR-16(7)(v)-1 Functional'!C485","v":"OTHER MAINTENANCE"},{"$f":"'FR-16(7)(v)-1 Functional'!D485","v":"K203"},null,{"$f":"'FR-16(7)(v)-1 Functional'!I485","v":1892935},1892935,0,0,1892935,0]
[42,null,{"$f":"'FR-16(7)(v)-1 Functional'!C486","v":"LOAD DISPATCH"},{"$f":"'FR-16(7)(v)-1 Functional'!D486","v":"K215"},null,{"$f":"'FR-16(7)(v)-1 Functional'!I486","v":578857},578857,0,0,578857,0]
[43,null,{"$f":"'FR-16(7)(v)-1 Functional'!C487","v":"METERS"},{"$f":"'FR-16(7)(v)-1 Functional'!D487","v":"K407"},null,{"$f":"'FR-16(7)(v)-1 Functional'!I487","v":1075849},0,0,1075849,1075849,0]
[44,null,{"$f":"'FR-16(7)(v)-1 Functional'!C488","v":"STREET LIGHTING AND SIGNAL SYSTEMS"},{"$f":"'FR-16(7)(v)-1 Functional'!D488","v":"K401"},null,{"$f":"'FR-16(7)(v)-1 Functional'!I488","v":430143},0,0,430143,430143,0]
[45,null,{"$f":"'FR-16(7)(v)-1 Functional'!C489","v":"OTHER OPERATIONS"},{"$f":"'FR-16(7)(v)-1 Functional'!D489","v":"K203"},null,{"$f":"'FR-16(7)(v)-1 Functional'!I489","v":722843},722843,0,0,722843,0]
[46,null,{"$f":"'FR-16(7)(v)-1 Functional'!C490","v":"MISCELLANEOUS EXPENSES ADJUSTMENT"},{"$f":"'FR-16(7)(v)-1 Functional'!D490","v":"K203"},null,{"$f":"'FR-16(7)(v)-1 Functional'!I490","v":2227726},2227726,0,0,2227726,0]
[47,null,{"$f":"'FR-16(7)(v)-1 Functional'!C491","v":"AFFILIATED COMPANY RENTS ADJUSTMENT"},{"$f":"'FR-16(7)(v)-1 Functional'!D491","v":"D249"},null,{"$f":"'FR-16(7)(v)-1 Functional'!I491","v":0},0,0,0,0,0]
[48,null,{"$f":"'FR-16(7)(v)-1 Functional'!C492","v":"  TOTAL DISTRIBUTION O & M"},null," ",{"$f":"SUM(F472:F491)","v":17226377},13760337,0,3466040,17226377,0]
[49,null," "]
[50,"CUSTOMER ACCOUNTING",null,null,null," "]
[51,null,{"$f":"'FR-16(7)(v)-1 Functional'!C495","v":"CUSTOMER ACCOUNTING EXPENSE"},{"$f":"'FR-16(7)(v)-1 Functional'!D495","v":"K409"},null,{"$f":"'FR-16(7)(v)-1 Functional'!I495","v":3880551},{"$f":"F495-SUM(H495:I495)","v":0},{"$f":"ROUND(F495*VLOOKUP(D495,Alloctable_Classified_Distribution,$H$10,FALSE),0)","v":0},{"$f":"ROUND(F495*VLOOKUP(D495,Alloctable_Classified_Distribution,$I$10,FALSE),0)","v":3880551},{"$f":"SUM(G495:I495)","v":3880551},{"$f":"F495-J495","v":0}]
[52,null,{"$f":"'FR-16(7)(v)-1 Functional'!C496","v":"UNCOLLECTIBLE EXP"},{"$f":"'FR-16(7)(v)-1 Functional'!D496","v":"K411"},null,{"$f":"'FR-16(7)(v)-1 Functional'!I496","v":1544466},0,0,1544466,1544466,0]
[53,null,{"$f":"'FR-16(7)(v)-1 Functional'!C497","v":"METER READING"},{"$f":"'FR-16(7)(v)-1 Functional'!D497","v":"K407"},null,{"$f":"'FR-16(7)(v)-1 Functional'!I497","v":0},0,0,0,0,0]
[54,null,{"$f":"'FR-16(7)(v)-1 Functional'!C498","v":"UNCOLLECTIBLE EXP ADJUSTMENT"},{"$f":"'FR-16(7)(v)-1 Functional'!D498","v":"K411"},null,{"$f":"'FR-16(7)(v)-1 Functional'!I498","v":-2184769},0,0,-2184769,-2184769,0]
[55,null,{"$f":"'FR-16(7)(v)-1 Functional'!C499","v":"CREDIT CARD FEES"},{"$f":"'FR-16(7)(v)-1 Functional'!D499","v":"K407"},null,{"$f":"'FR-16(7)(v)-1 Functional'!I499","v":492868},0,0,492868,492868,0]
[56,null,{"$f":"'FR-16(7)(v)-1 Functional'!C500","v":"ELIMINATE REV & EXP - DSM RIDER"},{"$f":"'FR-16(7)(v)-1 Functional'!D500","v":"K405"},null,{"$f":"'FR-16(7)(v)-1 Functional'!I500","v":0},0,0,0,0,0]
[57,null,{"$f":"'FR-16(7)(v)-1 Functional'!C501","v":"SALE OF A/R"},{"$f":"'FR-16(7)(v)-1 Functional'!D501","v":"K411"},null,{"$f":"'FR-16(7)(v)-1 Functional'!I501","v":430115},0,0,430115,430115,0]
[58,null,{"$f":"'FR-16(7)(v)-1 Functional'!C502","v":"ELIMINATE MISC EXPENSE"},{"$f":"'FR-16(7)(v)-1 Functional'!D502","v":"K405"},null,{"$f":"'FR-16(7)(v)-1 Functional'!I502","v":-1190},0,0,-1190,-1190,0]
[59,null,{"$f":"'FR-16(7)(v)-1 Functional'!C503","v":"  TOTAL CUSTOMER ACCT EXPENSE"},null," ",{"$f":"SUM(F494:F502)","v":4162041},0,0,4162041,4162041,0]
[]
[{"$f":"co_name","v":"DUKE ENERGY KENTUCKY, INC."},null,null,null,null,null,null,null,null,{"$f":"J1","v":"FR-16(7)(v)-10"}]
[{"$f":"$A$2","v":"DISTRIBUTION CLASSIFIED - ELECTRIC COST OF SERVICE"},null,null,null,null,null,null,null,null,{"$f":"J2","v":"WITNESS RESPONSIBLE:"}]
[{"$f":"case_name","v":"CASE NO: 2019-00271"},null,null,null,null,null,null,null,null,{"$f":"Witness","v":"JAMES E. ZIOLKOWSKI"}]
[{"$f":"data_filing","v":"DATA: 12 MONTHS ACTUAL  & 0 MONTHS ESTIMATED"},null,null,null,null,null,null,null,null,{"$f":"\"PAGE \"&Pages-9&\" OF \"&Pages","v":"PAGE 9 OF 18"}]
[{"$f":"type","v":"TYPE OF FILING: \"X\" ORIGINAL   UPDATED    REVISED  "}]
[]
[]
["LINE",null,null,null,null,"TOTAL","CLASSIFIED",null,null,"TOTAL","ALL"]
["NO.","O&M EXPENSES",null,"ALLO",null,"DISTRIBUTION",{"$f":"G9","v":"DEMAND"},"ENERGY","CUSTOMER","AT ISSUE","OTHER"]
[null,null,"Schedule 6.1",null,null,null,3,4,5]
[1,"CUSTOMER SERVICE & INFORMATION"]
[2,null,{"$f":"'FR-16(7)(v)-1 Functional'!C516","v":"TOTAL CUST SERVICE & INFO"},{"$f":"'FR-16(7)(v)-1 Functional'!D516","v":"K405"},null,{"$f":"'FR-16(7)(v)-1 Functional'!I516","v":604867},{"$f":"F516-SUM(H516:I516)","v":0},{"$f":"ROUND(F516*VLOOKUP(D516,Alloctable_Classified_Distribution,$H$10,FALSE),0)","v":0},{"$f":"ROUND(F516*VLOOKUP(D516,Alloctable_Classified_Distribution,$I$10,FALSE),0)","v":604867},{"$f":"SUM(G516:I516)","v":604867},{"$f":"F516-J516","v":0}]
[3,null,{"$f":"'FR-16(7)(v)-1 Functional'!C517","v":"INFORMATIONAL & INSTRUCTIONAL ADV"},{"$f":"'FR-16(7)(v)-1 Functional'!D517","v":"K405"},null,{"$f":"'FR-16(7)(v)-1 Functional'!I517","v":0},{"$f":"F517-SUM(H517:I517)","v":0},{"$f":"ROUND(F517*VLOOKUP(D517,Alloctable_Classified_Distribution,$H$10,FALSE),0)","v":0},{"$f":"ROUND(F517*VLOOKUP(D517,Alloctable_Classified_Distribution,$I$10,FALSE),0)","v":0},{"$f":"SUM(G517:I517)","v":0},{"$f":"F517-J517","v":0}]
[4,null,{"$f":"'FR-16(7)(v)-1 Functional'!C518","v":"TOTAL CUSTOMER SERV. & INFO."},null," ",{"$f":"SUM(F516:F517)","v":604867},0,0,604867,604867,0]
[5]
[6,"SALES"]
[7,null,{"$f":"'FR-16(7)(v)-1 Functional'!C521","v":"SALES EXPENSE"},{"$f":"'FR-16(7)(v)-1 Functional'!D521","v":"K405"}," ",{"$f":"'FR-16(7)(v)-1 Functional'!I521","v":1497140},{"$f":"F521-SUM(H521:I521)","v":0},{"$f":"ROUND(F521*VLOOKUP(D521,Alloctable_Classified_Distribution,$H$10,FALSE),0)","v":0},{"$f":"ROUND(F521*VLOOKUP(D521,Alloctable_Classified_Distribution,$I$10,FALSE),0)","v":1497140},{"$f":"SUM(G521:I521)","v":1497140},{"$f":"F521-J521","v":0}]
[8,null,{"$f":"'FR-16(7)(v)-1 Functional'!C522","v":"TOTAL SALES EXPENSE"},null," ",{"$f":"SUM(F520:F521)","v":1497140},0,0,1497140,1497140,0]
[9]
[10,"ADMINISTRATIVE & GENERAL "]
[11,null,{"$f":"'FR-16(7)(v)-1 Functional'!C525","v":"PRODUCTION - DEMAND RELATED"},{"$f":"'FR-16(7)(v)-1 Functional'!D525","v":"P349"},null,{"$f":"'FR-16(7)(v)-1 Functional'!I525","v":0},{"$f":"F525-SUM(H525:I525)","v":0},{"$f":"ROUND(F525*VLOOKUP(D525,Alloctable_Classified_Distribution,$H$10,FALSE),0)","v":0},{"$f":"ROUND(F525*VLOOKUP(D525,Alloctable_Classified_Distribution,$I$10,FALSE),0)","v":0},{"$f":"SUM(G525:I525)","v":0},{"$f":"F525-J525","v":0}]
[12,null,{"$f":"'FR-16(7)(v)-1 Functional'!C526","v":"PRODUCTION - ENERGY RELATED"},{"$f":"'FR-16(7)(v)-1 Functional'!D526","v":"E349"},null,{"$f":"'FR-16(7)(v)-1 Functional'!I526","v":0},0,0,0,0,0]
[13,null,"TRANSMISSION",{"$f":"'FR-16(7)(v)-1 Functional'!D527","v":"T349"},null,{"$f":"'FR-16(7)(v)-1 Functional'!I527","v":0},{"$f":"F527-SUM(H527:I527)","v":0},0,0,{"$f":"SUM(G527:I527)","v":0},{"$f":"F527-J527","v":0}]
[14,null,{"$f":"'FR-16(7)(v)-1 Functional'!C528","v":"DISTRIBUTION"},{"$f":"'FR-16(7)(v)-1 Functional'!D528","v":"D349"},null,{"$f":"'FR-16(7)(v)-1 Functional'!I528","v":5801161},4633909,0,1167252,5801161,0]
[15,null,{"$f":"'FR-16(7)(v)-1 Functional'!C529","v":"CUSTOMER ACCOUNTING"},{"$f":"'FR-16(7)(v)-1 Functional'!D529","v":"C319"},null,{"$f":"'FR-16(7)(v)-1 Functional'!I529","v":3678745},0,0,3678745,3678745,0]
[16,null,{"$f":"'FR-16(7)(v)-1 Functional'!C530","v":"CUSTOMER SERVICE & INFORMATION"},{"$f":"'FR-16(7)(v)-1 Functional'!D530","v":"C331"},null,{"$f":"'FR-16(7)(v)-1 Functional'!I530","v":240582},0,0,240582,240582,0]
[17,null,{"$f":"'FR-16(7)(v)-1 Functional'!C531","v":"SALES"},{"$f":"'FR-16(7)(v)-1 Functional'!D531","v":"S319"},null,{"$f":"'FR-16(7)(v)-1 Functional'!I531","v":0},0,0,0,0,0]
[18,null,{"$f":"'FR-16(7)(v)-1 Functional'!C532","v":"TOT ADMIN & GEN LESS REG EXP"}," ",null,{"$f":"SUM(F525:F531)","v":9720488},4633909,0,5086579,9720488,0]
[19,null,{"$f":"'FR-16(7)(v)-1 Functional'!C533","v":"RATE CASE EXPENSE ADJUSTMENT"},{"$f":"'FR-16(7)(v)-1 Functional'!D533","v":"A315"},null,{"$f":"'FR-16(7)(v)-1 Functional'!I533","v":41718},{"$f":"F533-SUM(H533:I533)","v":19888},{"$f":"ROUND(F533*VLOOKUP(D533,Alloctable_Classified_Distribution,$H$10,FALSE),0)","v":0},{"$f":"ROUND(F533*VLOOKUP(D533,Alloctable_Classified_Distribution,$I$10,FALSE),0)","v":21830},{"$f":"SUM(G533:I533)","v":41718},{"$f":"F533-J533","v":0}]
[20,null,{"$f":"'FR-16(7)(v)-1 Functional'!C534","v":"ELIMINATE MISCELLANEOUS EXPENSES ADJUSTMENT"},{"$f":"'FR-16(7)(v)-1 Functional'!D534","v":"A315"},null,{"$f":"'FR-16(7)(v)-1 Functional'!I534","v":0},0,0,0,0,0]
[21,null,{"$f":"'FR-16(7)(v)-1 Functional'!C535","v":"RIDER ESM ELIMINATION"},{"$f":"'FR-16(7)(v)-1 Functional'!D535","v":"A315"},null,{"$f":"'FR-16(7)(v)-1 Functional'!I535","v":-2867500},-1366995,0,-1500505,-2867500,0]
[22,null,{"$f":"'FR-16(7)(v)-1 Functional'!C536","v":"ELIMINATE DSM"},{"$f":"'FR-16(7)(v)-1 Functional'!D536","v":"A315"},null,{"$f":"'FR-16(7)(v)-1 Functional'!I536","v":-40162},-19146,0,-21016,-40162,0]
[23,null,{"$f":"'FR-16(7)(v)-1 Functional'!C537","v":"DSM DEFERRAL - ELECTRIC"},{"$f":"'FR-16(7)(v)-1 Functional'!D537","v":"A315"},null,{"$f":"'FR-16(7)(v)-1 Functional'!I537","v":0},0,0,0,0,0]
[24,null,{"$f":"'FR-16(7)(v)-1 Functional'!C538","v":"PENSION ADJUSTMENT"},{"$f":"'FR-16(7)(v)-1 Functional'!D538","v":"A315"},null,{"$f":"'FR-16(7)(v)-1 Functional'!I538","v":-174956},-83405,0,-91551,-174956,0]
[25,null,{"$f":"'FR-16(7)(v)-1 Functional'!C539","v":"ELIMINATE MISC EXPENSES"},{"$f":"'FR-16(7)(v)-1 Functional'!D539","v":"A315"},null,{"$f":"'FR-16(7)(v)-1 Functional'!I539","v":-168762},-80452,0,-88310,-168762,0]
[26,null,{"$f":"'FR-16(7)(v)-1 Functional'!C540","v":"ELIMINATE MERGER COSTS AND CREDITS"},{"$f":"'FR-16(7)(v)-1 Functional'!D540","v":"A315"},null,{"$f":"'FR-16(7)(v)-1 Functional'!I540","v":0},{"$f":"F540-SUM(H540:I540)","v":0},0,0,{"$f":"SUM(G540:I540)","v":0},{"$f":"F540-J540","v":0}]
[27,null,{"$f":"'FR-16(7)(v)-1 Functional'!C541","v":"ANNUALIZE KYPSC MAINT TAX"},{"$f":"'FR-16(7)(v)-1 Functional'!D541","v":"A315"},null,{"$f":"'FR-16(7)(v)-1 Functional'!I541","v":0},0,0,0,0,0]
[28,null,{"$f":"'FR-16(7)(v)-1 Functional'!C542","v":"REMOVE INCENTIVE COMP"},{"$f":"'FR-16(7)(v)-1 Functional'!D542","v":"A315"},null,{"$f":"'FR-16(7)(v)-1 Functional'!I542","v":-487198},-232257,0,-254941,-487198,0]
[29,null,{"$f":"'FR-16(7)(v)-1 Functional'!C543","v":"CREDIT CARD FEES"},{"$f":"'FR-16(7)(v)-1 Functional'!D543","v":"A315"},null,{"$f":"'FR-16(7)(v)-1 Functional'!I543","v":0},0,0,0,0,0]
[30,null,{"$f":"'FR-16(7)(v)-1 Functional'!C544","v":"ELIMINATE INCENTIVE COMPENSATION ADJUSTMENT"},{"$f":"'FR-16(7)(v)-1 Functional'!D544","v":"A315"},null,{"$f":"'FR-16(7)(v)-1 Functional'!I544","v":0},0,0,0,0,0]
[31,null,{"$f":"'FR-16(7)(v)-1 Functional'!C545","v":"AMORTIZATION OF DEFERRAL ASSET"},{"$f":"'FR-16(7)(v)-1 Functional'!D545","v":"A315"},null,{"$f":"'FR-16(7)(v)-1 Functional'!I545","v":0},0,0,0,0,0]
[32,null,{"$f":"'FR-16(7)(v)-1 Functional'!C546","v":"AMORTIZATION OF DEFERRED EXPENSES"},{"$f":"'FR-16(7)(v)-1 Functional'!D546","v":"A315"},null,{"$f":"'FR-16(7)(v)-1 Functional'!I546","v":30656},14614,0,16042,30656,0]
[33,null,{"$f":"'FR-16(7)(v)-1 Functional'!C547","v":"TOTAL ADMIN. & GENERAL"},null," ",{"$f":"SUM(F532:F546)","v":6054284},2886156,0,3168128,6054284,0]
[34]
[35,null,{"$f":"'FR-16(7)(v)-1 Functional'!C549","v":"TOTAL O & M EXPENSE"},null,null,{"$f":"F547+F522+F518+F503+F492+F470+F466+F459","v":29544709},16646493,0,12898216,29544709,0]
[]
[{"$f":"co_name","v":"DUKE ENERGY KENTUCKY, INC."},null,null,null,null,null,null,null,null,{"$f":"J1","v":"FR-16(7)(v)-10"}]
[{"$f":"$A$2","v":"DISTRIBUTION CLASSIFIED - ELECTRIC COST OF SERVICE"},null,null,null,null,null,null,null,null,{"$f":"J2","v":"WITNESS RESPONSIBLE:"}]
[{"$f":"case_name","v":"CASE NO: 2019-00271"},null,null,null,null,null,null,null,null,{"$f":"Witness","v":"JAMES E. ZIOLKOWSKI"}]
[{"$f":"data_filing","v":"DATA: 12 MONTHS ACTUAL  & 0 MONTHS ESTIMATED"},null,null,null,null,null,null,null,null,{"$f":"\"PAGE \"&Pages-8&\" OF \"&Pages","v":"PAGE 10 OF 18"}]
[{"$f":"type","v":"TYPE OF FILING: \"X\" ORIGINAL   UPDATED    REVISED  "}]
[]
[]
["LINE",null,null,null,null,"TOTAL","CLASSIFIED",null,null,"TOTAL","ALL"]
["NO.","DEPRECIATION EXPENSE",null,"ALLO",null,"DISTRIBUTION",{"$f":"G9","v":"DEMAND"},"ENERGY","CUSTOMER","AT ISSUE","OTHER"]
[null,null,"Schedule 7",null,null,null,3,4,5]
[1,"PRODUCTION DEPRECIATION"]
[2,null,{"$f":"'FR-16(7)(v)-1 Functional'!C562","v":"PRODUCTION DEPRECIATION"},{"$f":"'FR-16(7)(v)-1 Functional'!D562","v":"P229"},null,{"$f":"'FR-16(7)(v)-1 Functional'!I562","v":0},{"$f":"F562-SUM(H562:I562)","v":0},{"$f":"ROUND(F562*VLOOKUP(D562,Alloctable_Classified_Distribution,$H$10,FALSE),0)","v":0},{"$f":"ROUND(F562*VLOOKUP(D562,Alloctable_Classified_Distribution,$I$10,FALSE),0)","v":0},{"$f":"SUM(G562:I562)","v":0},{"$f":"F562-J562","v":0}]
[3,null,{"$f":"'FR-16(7)(v)-1 Functional'!C563","v":"  TOTAL PRODUCTION DEPREC EXP."},null,null,{"$f":"SUM(F562:F562)","v":0},0,0,0,0,0]
[4]
[5,"TRANSMISSION DEPRECIATION"]
[6,null,"TRANSMISSION DEPRECIATION",{"$f":"'FR-16(7)(v)-1 Functional'!D566","v":"T229"},null,{"$f":"'FR-16(7)(v)-1 Functional'!I566","v":0},{"$f":"F566-SUM(H566:I566)","v":0},{"$f":"ROUND(F566*VLOOKUP(D566,Alloctable_Classified_Distribution,$H$10,FALSE),0)","v":0},{"$f":"ROUND(F566*VLOOKUP(D566,Alloctable_Classified_Distribution,$I$10,FALSE),0)","v":0},{"$f":"SUM(G566:I566)","v":0},{"$f":"F566-J566","v":0}]
[7,null,{"$f":"'FR-16(7)(v)-1 Functional'!C567","v":"  TOTAL TRANSMISSION DEP. EXP."},null,null,{"$f":"SUM(F566:F566)","v":0},0,0,0,0,0]
[8]
[9,"DISTRIBUTION DEPRECIATION"]
[10,null,{"$f":"'FR-16(7)(v)-1 Functional'!C570","v":"DISTRIBUTION DEPRECIATION"},{"$f":"'FR-16(7)(v)-1 Functional'!D570","v":"D249"},null,{"$f":"'FR-16(7)(v)-1 Functional'!I570","v":13767704},{"$f":"F570-SUM(H570:I570)","v":10451890},{"$f":"ROUND(F570*VLOOKUP(D570,Alloctable_Classified_Distribution,$H$10,FALSE),0)","v":0},{"$f":"ROUND(F570*VLOOKUP(D570,Alloctable_Classified_Distribution,$I$10,FALSE),0)","v":3315814},{"$f":"SUM(G570:I570)","v":13767704},{"$f":"F570-J570","v":0}]
[11,null,{"$f":"'FR-16(7)(v)-1 Functional'!C571","v":"  TOTAL DIST. DEPREC EXP."},null,null,{"$f":"SUM(F570:F570)","v":13767704},10451890,0,3315814,13767704,0]
[12,null,null,null,null," "]
[13,"GENERAL DEPRECIATION"]
[14,null,{"$f":"'FR-16(7)(v)-1 Functional'!C574","v":"GENERAL DEPRECIATION"},{"$f":"'FR-16(7)(v)-1 Functional'!D574","v":"G229"},null,{"$f":"'FR-16(7)(v)-1 Functional'!I574","v":847744},{"$f":"F574-SUM(H574:I574)","v":-8664},{"$f":"ROUND(F574*VLOOKUP(D574,Alloctable_Classified_Distribution,$H$10,FALSE),0)","v":0},{"$f":"ROUND(F574*VLOOKUP(D574,Alloctable_Classified_Distribution,$I$10,FALSE),0)","v":856408},{"$f":"SUM(G574:I574)","v":847744},{"$f":"F574-J574","v":0}]
[15,null,{"$f":"'FR-16(7)(v)-1 Functional'!C575","v":"  TOTAL GENERAL DEPREC EXP."},null,null,{"$f":"SUM(F574:F574)","v":847744},-8664,0,856408,847744,0]
[16]
[17,"COMMON AND OTHER DEPRECIATION"]
[18,null,{"$f":"'FR-16(7)(v)-1 Functional'!C578","v":"COMMON DEPRECIATION"},{"$f":"'FR-16(7)(v)-1 Functional'!D578","v":"C229"},null,{"$f":"'FR-16(7)(v)-1 Functional'!I578","v":5785},{"$f":"F578-SUM(H578:I578)","v":-17},{"$f":"ROUND(F578*VLOOKUP(D578,Alloctable_Classified_Distribution,$H$10,FALSE),0)","v":0},{"$f":"ROUND(F578*VLOOKUP(D578,Alloctable_Classified_Distribution,$I$10,FALSE),0)","v":5802},{"$f":"SUM(G578:I578)","v":5785},{"$f":"F578-J578","v":0}]
[19,null,{"$f":"'FR-16(7)(v)-1 Functional'!C579","v":"  TOTAL COM & OTHER DEPREC EXP."},null,null,{"$f":"SUM(F578:F578)","v":5785},-17,0,5802,5785,0]
[20]
[21]
[22,"TOTAL DEPRECIATION EXPENSE",null,null," ",{"$f":"F579+F575+F571+F567+F563","v":14621233},10443209,0,4178024,14621233,0]
[]
[{"$f":"co_name","v":"DUKE ENERGY KENTUCKY, INC."},null,null,null,null,null,null,null,null,{"$f":"J1","v":"FR-16(7)(v)-10"}]
[{"$f":"$A$2","v":"DISTRIBUTION CLASSIFIED - ELECTRIC COST OF SERVICE"},null,null,null,null,null,null,null,null,{"$f":"J2","v":"WITNESS RESPONSIBLE:"}]
[{"$f":"case_name","v":"CASE NO: 2019-00271"},null,null,null,null,null,null,null,null,{"$f":"Witness","v":"JAMES E. ZIOLKOWSKI"}]
[{"$f":"data_filing","v":"DATA: 12 MONTHS ACTUAL  & 0 MONTHS ESTIMATED"},null,null,null,null,null,null,null,null,{"$f":"\"PAGE \"&Pages-7&\" OF \"&Pages","v":"PAGE 11 OF 18"}]
[{"$f":"type","v":"TYPE OF FILING: \"X\" ORIGINAL   UPDATED    REVISED  "}]
[]
[]
["LINE",null,null,null,null,"TOTAL","CLASSIFIED",null,null,"TOTAL","ALL"]
["NO.","OTHER TAXES & MISC EXPENSES",null,"ALLO",null,"DISTRIBUTION",{"$f":"G9","v":"DEMAND"},"ENERGY","CUSTOMER","AT ISSUE","OTHER"]
[null,null,"Schedule 8",null,null,null,3,4,5]
[1,"TAXES OTHER THAN INC & REV"]
[2," REAL ESTATE & PROPERTY TAX"]
[3,null,{"$f":"'FR-16(7)(v)-1 Functional'!C596","v":"REAL ESTATE & PROPERTY TAX"},{"$f":"'FR-16(7)(v)-1 Functional'!D596","v":"NP29"},null,{"$f":"'FR-16(7)(v)-1 Functional'!I596","v":5217610},{"$f":"F596-SUM(H596:I596)","v":3909973},{"$f":"ROUND(F596*VLOOKUP(D596,Alloctable_Classified_Distribution,$H$10,FALSE),0)","v":0},{"$f":"ROUND(F596*VLOOKUP(D596,Alloctable_Classified_Distribution,$I$10,FALSE),0)","v":1307637},{"$f":"SUM(G596:I596)","v":5217610},{"$f":"F596-J596","v":0}]
[4,null,{"$f":"'FR-16(7)(v)-1 Functional'!C597","v":"ANNUALIZE PROPERTY TAX"},{"$f":"'FR-16(7)(v)-1 Functional'!D597","v":"NP29"}," ",{"$f":"'FR-16(7)(v)-1 Functional'!I597","v":0},{"$f":"F597-SUM(H597:I597)","v":0},{"$f":"ROUND(F597*VLOOKUP(D597,Alloctable_Classified_Distribution,$H$10,FALSE),0)","v":0},{"$f":"ROUND(F597*VLOOKUP(D597,Alloctable_Classified_Distribution,$I$10,FALSE),0)","v":0},{"$f":"SUM(G597:I597)","v":0},{"$f":"F597-J597","v":0}]
[5,null,{"$f":"'FR-16(7)(v)-1 Functional'!C598","v":"  TOTAL REAL ESTATE & PROPERTY TAX"},null,null,{"$f":"SUM(F596:F597)","v":5217610},3909973,0,1307637,5217610,0]
[6]
[7," MISCELLANEOUS TAXES"]
[8,null,{"$f":"'FR-16(7)(v)-1 Functional'!C601","v":"PAYROLL "},{"$f":"'FR-16(7)(v)-1 Functional'!D601","v":"A315"},null,{"$f":"'FR-16(7)(v)-1 Functional'!I601","v":580242},{"$f":"F601-SUM(H601:I601)","v":276613},{"$f":"ROUND(F601*VLOOKUP(D601,Alloctable_Classified_Distribution,$H$10,FALSE),0)","v":0},{"$f":"ROUND(F601*VLOOKUP(D601,Alloctable_Classified_Distribution,$I$10,FALSE),0)","v":303629},{"$f":"SUM(G601:I601)","v":580242},{"$f":"F601-J601","v":0}]
[9,null,{"$f":"'FR-16(7)(v)-1 Functional'!C602","v":"ELIMINATE DSM "},{"$f":"'FR-16(7)(v)-1 Functional'!D602","v":"A315"},null,{"$f":"'FR-16(7)(v)-1 Functional'!I602","v":-11416},{"$f":"F602-SUM(H602:I602)","v":-5442},{"$f":"ROUND(F602*VLOOKUP(D602,Alloctable_Classified_Distribution,$H$10,FALSE),0)","v":0},{"$f":"ROUND(F602*VLOOKUP(D602,Alloctable_Classified_Distribution,$I$10,FALSE),0)","v":-5974},{"$f":"SUM(G602:I602)","v":-11416},{"$f":"F602-J602","v":0}]
[10,null,{"$f":"'FR-16(7)(v)-1 Functional'!C603","v":"FRANCHISE & LICENSE"},{"$f":"'FR-16(7)(v)-1 Functional'!D603","v":"A315"},null,{"$f":"'FR-16(7)(v)-1 Functional'!I603","v":0},{"$f":"F603-SUM(H603:I603)","v":0},{"$f":"ROUND(F603*VLOOKUP(D603,Alloctable_Classified_Distribution,$H$10,FALSE),0)","v":0},{"$f":"ROUND(F603*VLOOKUP(D603,Alloctable_Classified_Distribution,$I$10,FALSE),0)","v":0},{"$f":"SUM(G603:I603)","v":0},{"$f":"F603-J603","v":0}]
[11,null,{"$f":"'FR-16(7)(v)-1 Functional'!C604","v":"ELIMINATE ESM"},{"$f":"'FR-16(7)(v)-1 Functional'!D604","v":"A315"},null,{"$f":"'FR-16(7)(v)-1 Functional'!I604","v":-308662},{"$f":"F604-SUM(H604:I604)","v":-147145},{"$f":"ROUND(F604*VLOOKUP(D604,Alloctable_Classified_Distribution,$H$10,FALSE),0)","v":0},{"$f":"ROUND(F604*VLOOKUP(D604,Alloctable_Classified_Distribution,$I$10,FALSE),0)","v":-161517},{"$f":"SUM(G604:I604)","v":-308662},{"$f":"F604-J604","v":0}]
[12,null,{"$f":"'FR-16(7)(v)-1 Functional'!C605","v":"  TOTAL MISCELLANEOUS TAXES"},null,null,{"$f":"SUM(F601:F604)","v":260164},124026,0,136138,260164,0]
[13]
[14," MISCELLANEOUS EXPENSES"]
[15,null,{"$f":"'FR-16(7)(v)-1 Functional'!C608","v":"PSC MAINT. EXP ON INCREASE"},{"$f":"'FR-16(7)(v)-1 Functional'!D608","v":"K902"},null,{"$f":"'FR-16(7)(v)-1 Functional'!I608","v":27516},{"$f":"F608-SUM(H608:I608)","v":13117},{"$f":"ROUND(F608*VLOOKUP(D608,Alloctable_Classified_Distribution,$H$10,FALSE),0)","v":0},{"$f":"ROUND(F608*VLOOKUP(D608,Alloctable_Classified_Distribution,$I$10,FALSE),0)","v":14399},{"$f":"SUM(G608:I608)","v":27516},{"$f":"F608-J608","v":0}]
[16,null,{"$f":"'FR-16(7)(v)-1 Functional'!C609","v":"RESERVED FOR FUTURE USE"},{"$f":"'FR-16(7)(v)-1 Functional'!D609","v":"K902"},null,{"$f":"'FR-16(7)(v)-1 Functional'!I609","v":0},{"$f":"F609-SUM(H609:I609)","v":0},{"$f":"ROUND(F609*VLOOKUP(D609,Alloctable_Classified_Distribution,$H$10,FALSE),0)","v":0},{"$f":"ROUND(F609*VLOOKUP(D609,Alloctable_Classified_Distribution,$I$10,FALSE),0)","v":0},{"$f":"SUM(G609:I609)","v":0},{"$f":"F609-J609","v":0}]
[17,null,{"$f":"'FR-16(7)(v)-1 Functional'!C610","v":"  TOTAL MISCELLANEOUS EXPENSES"},null,null,{"$f":"SUM(F608:F609)","v":27516},13117,0,14399,27516,0]
[18]
[19,"TOTAL OTHER TAX & MISC EXPENSE",null,null," ",{"$f":"F605+F598+F610","v":5505290},4047116,0,1458174,5505290,0]
[20]
[21,"PRELIMINARY SUMMARY"]
[22,null,{"$f":"'FR-16(7)(v)-1 Functional'!C615","v":"TOTAL O&M EXPENSE"},null,null,{"$f":"F549","v":29544709},16646493,0,12898216,29544709,0]
[23,null,{"$f":"'FR-16(7)(v)-1 Functional'!C616","v":"TOTAL DEPRECIATION EXPENSE"},null,null,{"$f":"F582","v":14621233},10443209,0,4178024,14621233,0]
[24,null,{"$f":"'FR-16(7)(v)-1 Functional'!C617","v":"TOTAL OTHER TAX & MISC EXPENSE"},null,null,{"$f":"F612","v":5505290},4047116,0,1458174,5505290,0]
[25,null,{"$f":"'FR-16(7)(v)-1 Functional'!C618","v":"  TOTAL OPER EXP EXCL INCOME & REV TAX"},null,null,{"$f":"SUM(F615:F617)","v":49671232},31136818,0,18534414,49671232,0]
[]
[{"$f":"co_name","v":"DUKE ENERGY KENTUCKY, INC."},null,null,null,null,null,null,null,null,{"$f":"J1","v":"FR-16(7)(v)-10"}]
[{"$f":"$A$2","v":"DISTRIBUTION CLASSIFIED - ELECTRIC COST OF SERVICE"},null,null,null,null,null,null,null,null,{"$f":"J2","v":"WITNESS RESPONSIBLE:"}]
[{"$f":"case_name","v":"CASE NO: 2019-00271"},null,null,null,null,null,null,null,null,{"$f":"Witness","v":"JAMES E. ZIOLKOWSKI"}]
[{"$f":"data_filing","v":"DATA: 12 MONTHS ACTUAL  & 0 MONTHS ESTIMATED"},null,null,null,null,null,null,null,null,{"$f":"\"PAGE \"&Pages-6&\" OF \"&Pages","v":"PAGE 12 OF 18"}]
[{"$f":"type","v":"TYPE OF FILING: \"X\" ORIGINAL   UPDATED    REVISED  "}]
[]
[]
["LINE",null,null,null,null,"TOTAL","CLASSIFIED",null,null,"TOTAL","ALL"]
["NO.","FEDERAL INCOME TAX BASED ON RETURN",null,"ALLO",null,"DISTRIBUTION",{"$f":"$G$9","v":"DEMAND"},{"$f":"$H$9","v":"ENERGY"},{"$f":"$I$9","v":"CUSTOMER"},"AT ISSUE","OTHER"]
[null,null,"Schedule 9",null,null,null,{"$f":"G10","v":3},{"$f":"H10","v":4},{"$f":"I10","v":5}]
[1,"FEDERAL INCOME TAX DEDUCTIONS"]
[2," AUTOMATIC INTEREST CALCULATION",null,null,null," "]
[3,null,{"$f":"'FR-16(7)(v)-1 Functional'!C632","v":"AUTO PROC INTEREST DED"},{"$f":"'FR-16(7)(v)-1 Functional'!D632","v":"RB99"},null,{"$f":"'FR-16(7)(v)-1 Functional'!I632","v":6941051},{"$f":"F632-SUM(H632:I632)","v":5097300},{"$f":"ROUND(F632*VLOOKUP(D632,Alloctable_Classified_Distribution,$H$10,FALSE),0)","v":0},{"$f":"ROUND(F632*VLOOKUP(D632,Alloctable_Classified_Distribution,$I$10,FALSE),0)","v":1843751},{"$f":"SUM(G632:I632)","v":6941051},{"$f":"F632-J632","v":0}]
[4,null,{"$f":"'FR-16(7)(v)-1 Functional'!C633","v":"  TOTAL INTEREST EXPENSE"},null,null,{"$f":"F632","v":6941051},5097300,0,1843751,6941051,0]
[5]
[6," OTHER DEDUCTIONS"]
[7,null,{"$f":"'FR-16(7)(v)-1 Functional'!C636","v":"DEPREC EXCESS TAX-BOOK"},{"$f":"'FR-16(7)(v)-1 Functional'!D636","v":"DE49"},null,{"$f":"'FR-16(7)(v)-1 Functional'!I636","v":-3467824},{"$f":"F636-SUM(H636:I636)","v":-2476893},{"$f":"ROUND(F636*VLOOKUP(D636,Alloctable_Classified_Distribution,$H$10,FALSE),0)","v":0},{"$f":"ROUND(F636*VLOOKUP(D636,Alloctable_Classified_Distribution,$I$10,FALSE),0)","v":-990931},{"$f":"SUM(G636:I636)","v":-3467824},{"$f":"F636-J636","v":0}]
[8,null,{"$f":"'FR-16(7)(v)-1 Functional'!C637","v":"PERMANENT DIFFERENCES"},{"$f":"'FR-16(7)(v)-1 Functional'!D637","v":"A357"},null,{"$f":"'FR-16(7)(v)-1 Functional'!I637","v":-129855},{"$f":"F637-SUM(H637:I637)","v":-61903},{"$f":"ROUND(F637*VLOOKUP(D637,Alloctable_Classified_Distribution,$H$10,FALSE),0)","v":0},{"$f":"ROUND(F637*VLOOKUP(D637,Alloctable_Classified_Distribution,$I$10,FALSE),0)","v":-67952},{"$f":"SUM(G637:I637)","v":-129855},{"$f":"F637-J637","v":0}]
[9,null,{"$f":"'FR-16(7)(v)-1 Functional'!C638","v":"TEMPORARY DIFFERENCES"},{"$f":"'FR-16(7)(v)-1 Functional'!D638","v":"DE49"},null,{"$f":"'FR-16(7)(v)-1 Functional'!I638","v":21160137},{"$f":"F638-SUM(H638:I638)","v":15113628},{"$f":"ROUND(F638*VLOOKUP(D638,Alloctable_Classified_Distribution,$H$10,FALSE),0)","v":0},{"$f":"ROUND(F638*VLOOKUP(D638,Alloctable_Classified_Distribution,$I$10,FALSE),0)","v":6046509},{"$f":"SUM(G638:I638)","v":21160137},{"$f":"F638-J638","v":0}]
[10,null,{"$f":"'FR-16(7)(v)-1 Functional'!C639","v":"  TOTAL OTHER DEDUCTIONS"},null,null,{"$f":"SUM(F636:F638)","v":17562458},12574832,0,4987626,17562458,0]
[11]
[12,"NET DEDUCTIONS AND ADDITIONS",null,null,null,{"$f":"F639+F633","v":24503509},17672132,0,6831377,24503509,0]
[13]
[14," FED DEFERRED INCOME TAX (410 & 411)"]
[15,null,{"$f":"'FR-16(7)(v)-1 Functional'!C644","v":"DEFERRED INCOME TAXES - NET"},{"$f":"'FR-16(7)(v)-1 Functional'!D644","v":"OM39"},null,{"$f":"'FR-16(7)(v)-1 Functional'!I644","v":1966653},{"$f":"F644-SUM(H644:I644)","v":1108071},{"$f":"ROUND(F644*VLOOKUP(D644,Alloctable_Classified_Distribution,$H$10,FALSE),0)","v":0},{"$f":"ROUND(F644*VLOOKUP(D644,Alloctable_Classified_Distribution,$I$10,FALSE),0)","v":858582},{"$f":"SUM(G644:I644)","v":1966653},{"$f":"F644-J644","v":0}]
[16,null,{"$f":"'FR-16(7)(v)-1 Functional'!C645","v":"AMORT OF DEFERRED MERGER COST"},{"$f":"'FR-16(7)(v)-1 Functional'!D645","v":"A357"},null,{"$f":"'FR-16(7)(v)-1 Functional'!I645","v":0},{"$f":"F645-SUM(H645:I645)","v":0},{"$f":"ROUND(F645*VLOOKUP(D645,Alloctable_Classified_Distribution,$H$10,FALSE),0)","v":0},{"$f":"ROUND(F645*VLOOKUP(D645,Alloctable_Classified_Distribution,$I$10,FALSE),0)","v":0},{"$f":"SUM(G645:I645)","v":0},{"$f":"F645-J645","v":0}]
[17,null,{"$f":"'FR-16(7)(v)-1 Functional'!C646","v":"DIT ADJUSTMENT - S/L DEPRECIATION"},{"$f":"'FR-16(7)(v)-1 Functional'!D646","v":"DE49"},null,{"$f":"'FR-16(7)(v)-1 Functional'!I646","v":0},{"$f":"F646-SUM(H646:I646)","v":0},{"$f":"ROUND(F646*VLOOKUP(D646,Alloctable_Classified_Distribution,$H$10,FALSE),0)","v":0},{"$f":"ROUND(F646*VLOOKUP(D646,Alloctable_Classified_Distribution,$I$10,FALSE),0)","v":0},{"$f":"SUM(G646:I646)","v":0},{"$f":"F646-J646","v":0}]
[18,null,{"$f":"'FR-16(7)(v)-1 Functional'!C647","v":"DIT ADJUSTMENT - ARAM"},{"$f":"'FR-16(7)(v)-1 Functional'!D647","v":"K201"},null,{"$f":"'FR-16(7)(v)-1 Functional'!I647","v":0},{"$f":"F647-SUM(H647:I647)","v":0},{"$f":"ROUND(F647*VLOOKUP(D647,Alloctable_Classified_Distribution,$H$10,FALSE),0)","v":0},{"$f":"ROUND(F647*VLOOKUP(D647,Alloctable_Classified_Distribution,$I$10,FALSE),0)","v":0},{"$f":"SUM(G647:I647)","v":0},{"$f":"F647-J647","v":0}]
[19,null,{"$f":"'FR-16(7)(v)-1 Functional'!C648","v":"DIT ADJUSTMENT - AMORT OF EXCESS DEF TAXES"},{"$f":"'FR-16(7)(v)-1 Functional'!D648","v":"A357"},null,{"$f":"'FR-16(7)(v)-1 Functional'!I648","v":-1138713},{"$f":"F648-SUM(H648:I648)","v":-542836},{"$f":"ROUND(F648*VLOOKUP(D648,Alloctable_Classified_Distribution,$H$10,FALSE),0)","v":0},{"$f":"ROUND(F648*VLOOKUP(D648,Alloctable_Classified_Distribution,$I$10,FALSE),0)","v":-595877},{"$f":"SUM(G648:I648)","v":-1138713},{"$f":"F648-J648","v":0}]
[20,null,{"$f":"'FR-16(7)(v)-1 Functional'!C649","v":"  TOTAL FED DEF IT (410 & 411)"},null,null,{"$f":"SUM(F644:F648)","v":827940},565235,0,262705,827940,0]
[21]
[22," AMORT INV TAX CREDIT"]
[23,null,{"$f":"'FR-16(7)(v)-1 Functional'!C652","v":"AMORTIZE ITC"},{"$f":"'FR-16(7)(v)-1 Functional'!D652","v":"NP29"},null,{"$f":"'FR-16(7)(v)-1 Functional'!I652","v":164},{"$f":"F652-SUM(H652:I652)","v":123},{"$f":"ROUND(F652*VLOOKUP(D652,Alloctable_Classified_Distribution,$H$10,FALSE),0)","v":0},{"$f":"ROUND(F652*VLOOKUP(D652,Alloctable_Classified_Distribution,$I$10,FALSE),0)","v":41},{"$f":"SUM(G652:I652)","v":164},{"$f":"F652-J652","v":0}]
[24,null,{"$f":"'FR-16(7)(v)-1 Functional'!C653","v":"  TOTAL AMORTIZED ITC"},null,null,{"$f":"SUM(F652:F652)","v":164},123,0,41,164,0]
[25]
[26," OTHER FEDERAL TAX CREDITS"]
[27,null,{"$f":"'FR-16(7)(v)-1 Functional'!C656","v":"FUEL TAX CREDIT"},{"$f":"'FR-16(7)(v)-1 Functional'!D656","v":"K301"},null,{"$f":"'FR-16(7)(v)-1 Functional'!I656","v":0},{"$f":"ROUND(F656*VLOOKUP(D656,Alloctable_Classified_Distribution,$G$10,FALSE),0)","v":0},{"$f":"ROUND(F656*VLOOKUP(D656,Alloctable_Classified_Distribution,$H$10,FALSE),0)","v":0},{"$f":"ROUND(F656*VLOOKUP(D656,Alloctable_Classified_Distribution,$I$10,FALSE),0)","v":0},{"$f":"SUM(G656:I656)","v":0},{"$f":"F656-J656","v":0}]
[28,null,{"$f":"'FR-16(7)(v)-1 Functional'!C657","v":"R&D CREDIT - SECTION 41"},{"$f":"'FR-16(7)(v)-1 Functional'!D657","v":"A315"},null,{"$f":"'FR-16(7)(v)-1 Functional'!I657","v":0},{"$f":"ROUND(F657*VLOOKUP(D657,Alloctable_Classified_Distribution,$G$10,FALSE),0)","v":0},{"$f":"ROUND(F657*VLOOKUP(D657,Alloctable_Classified_Distribution,$H$10,FALSE),0)","v":0},{"$f":"ROUND(F657*VLOOKUP(D657,Alloctable_Classified_Distribution,$I$10,FALSE),0)","v":0},{"$f":"SUM(G657:I657)","v":0},{"$f":"F657-J657","v":0}]
[29,null,"  TOTAL OTHER FEDERAL TAX CREDITS",null,null,{"$f":"SUM(F656:F657)","v":0},0,0,0,0,0]
[30]
[31,"PRELIMINARY SUMMARY"]
[32,null,{"$f":"'FR-16(7)(v)-1 Functional'!C661","v":"TOTAL FED DEF IT (410 & 411)"},null,null,{"$f":"F649","v":827940},565235,0,262705,827940,0]
[33,null,{"$f":"'FR-16(7)(v)-1 Functional'!C662","v":"TOTAL AMORTIZED ITC & OTHER FEDERAL TAX CREDITS"},null,null,{"$f":"-F653-F658","v":-164},-123,0,-41,-164,0]
[34,null,{"$f":"'FR-16(7)(v)-1 Functional'!C663","v":"  TOTAL FEDERAL TAX ADJUSTMENTS"},null,null,{"$f":"SUM(F661:F662)","v":827776},565112,0,262664,827776,0]
[35]
[36,"FEDERAL INCOME TAX COMPUTATION"]
[37,null,"RETURN ON RATE BASE",null,null,{"$f":"F433","v":23480970},{"$f":"G433","v":17243720},{"$f":"H433","v":0},{"$f":"I433","v":6237250},{"$f":"J433","v":23480970},{"$f":"F666-J666","v":0}]
[38,null,{"$f":"'FR-16(7)(v)-1 Functional'!C667","v":"NET DEDUCTIONS AND ADDITIONS"},null,null,{"$f":"-F641","v":-24503509},{"$f":"-G641","v":-17672132},{"$f":"-H641","v":0},{"$f":"-I641","v":-6831377},{"$f":"-J641","v":-24503509},{"$f":"F667-J667","v":0}]
[39,null,{"$f":"'FR-16(7)(v)-1 Functional'!C668","v":"TOTAL FEDERAL TAX ADJUSTMENTS"},null,null,{"$f":"F663","v":827776},{"$f":"G663","v":565112},{"$f":"H663","v":0},{"$f":"I663","v":262664},{"$f":"J663","v":827776},{"$f":"F668-J668","v":0}]
[40,null,"TOTAL STATE PROV DEF IT (410 & 411)",null,null,{"$f":"F707","v":1129982},{"$f":"G707","v":538674},{"$f":"H707","v":0},{"$f":"I707","v":591308},{"$f":"J707","v":1129982},{"$f":"F669-J669","v":0}]
[41,null,"RESERVED",null,null,{"$f":"F24","v":0},{"$f":"G24","v":0},{"$f":"H24","v":0},{"$f":"I24","v":0},{"$f":"J24","v":0},{"$f":"F670-J670","v":0}]
[42,null,{"$f":"'FR-16(7)(v)-1 Functional'!C671","v":"  BASE FOR FIT COMPUATION"},null,null,{"$f":"SUM(F666:F670)","v":935219},675374,0,259845,935219,0]
[43]
[44,null,{"$f":"'FR-16(7)(v)-1 Functional'!C673","v":"FIT FACTOR K190/(1-K190)"},null,null,{"$f":"ROUND(FIT/(1-FIT),9)","v":0.26582278500000001},{"$f":"ROUND(FIT/(1-FIT),9)","v":0.26582278500000001},{"$f":"ROUND(FIT/(1-FIT),9)","v":0.26582278500000001},{"$f":"ROUND(FIT/(1-FIT),9)","v":0.26582278500000001},null,{"$f":"ROUND(FIT/(1-FIT),9)","v":0.26582278500000001}]
[45,null,{"$f":"'FR-16(7)(v)-1 Functional'!C674","v":"PRELIM FED INCOME TAX"},null,null,{"$f":"ROUND(F673*F671,0)","v":248603},{"$f":"F674-SUM(H674:I674)","v":179530},{"$f":"ROUND(H671*H673,0)","v":0},{"$f":"ROUND(I671*I673,0)","v":69073},{"$f":"SUM(G674:I674)","v":248603},{"$f":"F674-J674","v":0}]
[46,null,{"$f":"'FR-16(7)(v)-1 Functional'!C675","v":"TOTAL FEDERAL TAX ADJUSTMENTS"},null,null,{"$f":"F663","v":827776},{"$f":"G663","v":565112},{"$f":"H663","v":0},{"$f":"I663","v":262664},{"$f":"J663","v":827776},{"$f":"F675-J675","v":0}]
[47,null,{"$f":"'FR-16(7)(v)-1 Functional'!C676","v":"  NET FED INCOME TAX ALLOWABLE"},null,null,{"$f":"SUM(F674:F675)","v":1076379},744642,0,331737,1076379,0]
[48]
[49,"INCOME TAX BASED ON RETURN"]
[50,"FEDERAL INCOME TAX PAYABLE"]
[51,null,{"$f":"'FR-16(7)(v)-1 Functional'!C680","v":"PRELIM FEDERAL INCOME TAX"},null,null,{"$f":"F674","v":248603},179530,0,69073,248603,0]
[53,null,{"$f":"'FR-16(7)(v)-1 Functional'!C681","v":"  NET FED INCOME TAX PAYABLE"},null,null,{"$f":"SUM(F680:F680)","v":248603},179530,0,69073,248603,0]
[]
[{"$f":"co_name","v":"DUKE ENERGY KENTUCKY, INC."},null,null,null,null,null,null,null,null,{"$f":"J1","v":"FR-16(7)(v)-10"}]
[{"$f":"$A$2","v":"DISTRIBUTION CLASSIFIED - ELECTRIC COST OF SERVICE"},null,null,null,null,null,null,null,null,{"$f":"J2","v":"WITNESS RESPONSIBLE:"}]
[{"$f":"case_name","v":"CASE NO: 2019-00271"},null,null,null,null,null,null,null,null,{"$f":"Witness","v":"JAMES E. ZIOLKOWSKI"}]
[{"$f":"data_filing","v":"DATA: 12 MONTHS ACTUAL  & 0 MONTHS ESTIMATED"},null,null,null,null,null,null,null,null,{"$f":"\"PAGE \"&Pages-5&\" OF \"&Pages","v":"PAGE 13 OF 18"}]
[{"$f":"type","v":"TYPE OF FILING: \"X\" ORIGINAL   UPDATED    REVISED  "}]
[]
[]
["LINE",null,null,null,null,"TOTAL","CLASSIFIED",null,null,"TOTAL","ALL"]
["NO.","STATE INCOME TAX BASED ON RETURN",null,"Allo",null,"GAS",{"$f":"$G$9","v":"DEMAND"},{"$f":"$H$9","v":"ENERGY"},{"$f":"$I$9","v":"CUSTOMER"},"AT ISSUE","OTHER"]
[null,null,"Schedule 9.1",null,null,null,{"$f":"$G$10","v":3},{"$f":"$H$10","v":4},{"$f":"$I$10","v":5}]
[1,"DEDUCTIONS IN ADDITION TO Y871"]
[2,"KY TAXABLE INCOME ADJUSTMENT",null,{"$f":"'FR-16(7)(v)-1 Functional'!D694","v":"NP29"},null,{"$f":"'FR-16(7)(v)-1 Functional'!I694","v":3271564},{"$f":"ROUND(F694*VLOOKUP(D694,Alloctable_Classified_Distribution,$G$10,FALSE),0)","v":2451645},{"$f":"ROUND(F694*VLOOKUP(D694,Alloctable_Classified_Distribution,$H$10,FALSE),0)","v":0},{"$f":"ROUND(F694*VLOOKUP(D694,Alloctable_Classified_Distribution,$I$10,FALSE),0)","v":819919},{"$f":"SUM(G694:I694)","v":3271564},{"$f":"F694-J694","v":0}]
[3,"RESERVED FOR FUTURE USE",null,{"$f":"'FR-16(7)(v)-1 Functional'!D695","v":"NP29"},null,{"$f":"'FR-16(7)(v)-1 Functional'!I695","v":0},{"$f":"ROUND(F695*VLOOKUP(D695,Alloctable_Classified_Distribution,$G$10,FALSE),0)","v":0},{"$f":"ROUND(F695*VLOOKUP(D695,Alloctable_Classified_Distribution,$H$10,FALSE),0)","v":0},{"$f":"ROUND(F695*VLOOKUP(D695,Alloctable_Classified_Distribution,$I$10,FALSE),0)","v":0},{"$f":"SUM(G695:I695)","v":0},{"$f":"F695-J695","v":0}]
[4,"  DEDUCTIONS IN ADD TO Y871",null,null,null,{"$f":"SUM(F694:F695)","v":3271564},2451645,0,819919,3271564,0]
[5]
[6,"STATE INCOME TAX ADJUSTMENTS"]
[7,"STATE PROV DEF INC TAX (410 & 411)"]
[8,"OTHER DEFERRED INCOME TAXES - NET",null,{"$f":"'FR-16(7)(v)-1 Functional'!D700","v":"A357"},null,{"$f":"'FR-16(7)(v)-1 Functional'!I700","v":1129982},{"$f":"F700-SUM(H700:I700)","v":538674},{"$f":"ROUND(F700*VLOOKUP(D700,Alloctable_Classified_Distribution,$H$10,FALSE),0)","v":0},{"$f":"ROUND(F700*VLOOKUP(D700,Alloctable_Classified_Distribution,$I$10,FALSE),0)","v":591308},{"$f":"SUM(G700:I700)","v":1129982},{"$f":"F700-J700","v":0}]
[9,"  TOT STATE PROV DEF IT (410 & 411)",null,null,null,{"$f":"SUM(F700)","v":1129982},538674,0,591308,1129982,0]
[10]
[11,"OTHER SIT ADJUSTMENTS"]
[12,"CURRENT YEAR PAYABLE ADJUSTMENT",null,{"$f":"'FR-16(7)(v)-1 Functional'!D704","v":"NP29"},null,{"$f":"'FR-16(7)(v)-1 Functional'!I704","v":0},{"$f":"ROUND(F704*VLOOKUP(D704,Alloctable_Classified_Distribution,$G$10,FALSE),0)","v":0},{"$f":"ROUND(F704*VLOOKUP(D704,Alloctable_Classified_Distribution,$H$10,FALSE),0)","v":0},{"$f":"ROUND(F704*VLOOKUP(D704,Alloctable_Classified_Distribution,$I$10,FALSE),0)","v":0},{"$f":"SUM(G704:I704)","v":0},{"$f":"F704-J704","v":0}]
[13,"  OTHER SIT ADJUSMENTS",null,null,null,{"$f":"SUM(F704)","v":0},0,0,0,0,0]
[14]
[15,"TOTAL STATE INC TAX ADJUSTMENT",null,null,null,{"$f":"F705+F701","v":1129982},538674,0,591308,1129982,0]
[16]
[17,"INCOME TAX BASED ON RETURN"]
[18,"SUMMARY OF SIT CALCULATION"]
[19,"RETURN ON RATE BASE",null,null,null,{"$f":"F433","v":23480970},17243720,0,6237250,23480970,0]
[20,"NET FED INCOME TAX ALLOWABLE",null,null,null,{"$f":"F676","v":1076379},744642,0,331737,1076379,0]
[21,"NET FED. DED. AND ADDITIONS",null,null,null,{"$f":"-F641","v":-24503509},-17672132,0,-6831377,-24503509,0]
[22,"DEDUCTIONS IN ADD TO Y871",null,null,null,{"$f":"-F696","v":-3271564},-2451645,0,-819919,-3271564,0]
[23,"RESERVED",null,null,null,{"$f":"F24","v":0},0,0,0,0,0]
[24,"TOTAL STATE INC TAX ADJ",null,null,null,{"$f":"F707","v":1129982},538674,0,591308,1129982,0]
[25,"  BASE FOR SIT COMPUTATION",null,null,null,{"$f":"SUM(F711:F716)","v":-2087742},-1596741,0,-491001,-2087742,0]
[26]
[27,"SIT FACTOR K192/(1-K192)",null,null,null,{"$f":"ROUND(SIT/(1-SIT),8)","v":5.2282660000000002E-2},{"$f":"ROUND(SIT/(1-SIT),8)","v":5.2282660000000002E-2},{"$f":"ROUND(SIT/(1-SIT),8)","v":5.2282660000000002E-2},{"$f":"ROUND(SIT/(1-SIT),8)","v":5.2282660000000002E-2},null,{"$f":"ROUND(SIT/(1-SIT),8)","v":5.2282660000000002E-2}]
[28,"PRELIMINARY STATE INCOME TAX",null,null,null,{"$f":"ROUND(F717*F719,0)","v":-109153},{"$f":"F720-SUM(H720:I720)","v":-83482},{"$f":"ROUND(H717*H719,0)","v":0},{"$f":"ROUND(I717*I719,0)","v":-25671},{"$f":"SUM(G720:I720)","v":-109153},{"$f":"F720-J720","v":0}]
[29,"TOTAL STATE INCOME TAX ADJ.",null,null,null,{"$f":"F707","v":1129982},{"$f":"G707","v":538674},{"$f":"H707","v":0},{"$f":"I707","v":591308},{"$f":"J707","v":1129982},{"$f":"F721-J721","v":0}]
[30,"  NET STATE INC TAX ALLOWABLE",null,null,null,{"$f":"F721+F720","v":1020829},455192,0,565637,1020829,0]
[31]
[32,"STATE INCOME TAX PAYABLE"]
[33,"PRELIMINARY STATE INCOME TAX",null,null,null,{"$f":"F720","v":-109153},-83482,0,-25671,-109153,0]
[34,"OTHER SIT ADJUSTMENTS",null,null,null,{"$f":"F705","v":0},0,0,0,0,0]
[35,"  NET STATE INCOME TAX PAYABLE",null,null,null,{"$f":"F725+F726","v":-109153},-83482,0,-25671,-109153,0]
[36]
[37,"COMPOSITE TAX RATE",null,null,null,{"$f":"(SIT*(1-FIT))+((1-SIT)*(1-FIT)*RevTax)+FIT","v":0.24925115},0.24925115,0.24925115,0.24925115,0.24925115,0.24925115]
[]
[{"$f":"co_name","v":"DUKE ENERGY KENTUCKY, INC."},null,null,null,null,null,null,null,null,{"$f":"J1","v":"FR-16(7)(v)-10"}]
[{"$f":"$A$2","v":"DISTRIBUTION CLASSIFIED - ELECTRIC COST OF SERVICE"},null,null,null,null,null,null,null,null,{"$f":"J2","v":"WITNESS RESPONSIBLE:"}]
[{"$f":"case_name","v":"CASE NO: 2019-00271"},null,null,null,null,null,null,null,null,{"$f":"Witness","v":"JAMES E. ZIOLKOWSKI"}]
[{"$f":"data_filing","v":"DATA: 12 MONTHS ACTUAL  & 0 MONTHS ESTIMATED"},null,null,null,null,null,null,null,null,{"$f":"\"PAGE \"&Pages-4&\" OF \"&Pages","v":"PAGE 14 OF 18"}]
[{"$f":"type","v":"TYPE OF FILING: \"X\" ORIGINAL   UPDATED    REVISED  "}]
[]
[]
["LINE",null,null,null,null,"TOTAL","CLASSIFIED",null,null,"TOTAL","ALL"]
["NO.","COST OF SERVICE COMPUTATION",null,"ALLO",null,"DISTRIBUTION",{"$f":"G9","v":"DEMAND"},"ENERGY","CUSTOMER","AT ISSUE","OTHER"]
[null,null,"Schedule 10",null,null,null,3,4,5]
[1,"OTHER OPERATING REVENUES"]
[2,null,{"$f":"'FR-16(7)(v)-1 Functional'!C742","v":"MISC SERVICE REVENUE"},{"$f":"'FR-16(7)(v)-1 Functional'!D742","v":"D249"},null,{"$f":"'FR-16(7)(v)-1 Functional'!I742","v":252509},{"$f":"ROUND(F742*VLOOKUP(D742,Alloctable_Classified_Distribution,$G$10,FALSE),0)","v":191695},{"$f":"ROUND(F742*VLOOKUP(D742,Alloctable_Classified_Distribution,$H$10,FALSE),0)","v":0},{"$f":"ROUND(F742*VLOOKUP(D742,Alloctable_Classified_Distribution,$I$10,FALSE),0)","v":60814},{"$f":"SUM(G742:I742)","v":252509},{"$f":"F742-J742","v":0}]
[3,null,{"$f":"'FR-16(7)(v)-1 Functional'!C743","v":"INTERDEPARTMENTAL"},{"$f":"'FR-16(7)(v)-1 Functional'!D743","v":"K902"},null,{"$f":"'FR-16(7)(v)-1 Functional'!I743","v":0},0,0,0,0,{"$f":"F743-J743","v":0}]
[4,null,{"$f":"'FR-16(7)(v)-1 Functional'!C744","v":"POLE & LINE ATTACHMENTS"},{"$f":"'FR-16(7)(v)-1 Functional'!D744","v":"D249"},null,{"$f":"'FR-16(7)(v)-1 Functional'!I744","v":215035},163246,0,51789,215035,0]
[5,null,{"$f":"'FR-16(7)(v)-1 Functional'!C745","v":"RENTS"},{"$f":"'FR-16(7)(v)-1 Functional'!D745","v":"D249"},null,{"$f":"'FR-16(7)(v)-1 Functional'!I745","v":1057993},803186,0,254807,1057993,0]
[6,null,{"$f":"'FR-16(7)(v)-1 Functional'!C746","v":"TRANSMISSION CHARGE PTP"},{"$f":"'FR-16(7)(v)-1 Functional'!D746","v":"T229"},null,{"$f":"'FR-16(7)(v)-1 Functional'!I746","v":0},0,0,0,0,{"$f":"F746-J746","v":0}]
[7,null,{"$f":"'FR-16(7)(v)-1 Functional'!C747","v":"PJM REACTIVE REVENUE"},{"$f":"'FR-16(7)(v)-1 Functional'!D747","v":"K401"},null,{"$f":"'FR-16(7)(v)-1 Functional'!I747","v":0},0,0,0,0,{"$f":"F747-J747","v":0}]
[8,null,{"$f":"'FR-16(7)(v)-1 Functional'!C748","v":"OTHER TRANSMISSION REVENUES"},{"$f":"'FR-16(7)(v)-1 Functional'!D748","v":"T229"},null,{"$f":"'FR-16(7)(v)-1 Functional'!I748","v":0},0,0,0,0,{"$f":"F748-J748","v":0}]
[9,null,{"$f":"'FR-16(7)(v)-1 Functional'!C749","v":"FIXED BILL PREMIUM"},{"$f":"'FR-16(7)(v)-1 Functional'!D749","v":"K902"},null,{"$f":"'FR-16(7)(v)-1 Functional'!I749","v":0},0,0,0,0,0]
[10,null,{"$f":"'FR-16(7)(v)-1 Functional'!C750","v":"  TOTAL OTHER OPERATING REVS"},null,null,{"$f":"SUM(F742:F749)","v":1525537},1158127,0,367410,1525537,0]
[11]
[12,"COST OF SERVICE COMPUTATION"]
[13,null,{"$f":"'FR-16(7)(v)-1 Functional'!C753","v":"TOTAL OP EXP EXC INC & REV TAX"},null,null,{"$f":"F618","v":49671232},{"$f":"G618","v":31136818},{"$f":"H618","v":0},{"$f":"I618","v":18534414},{"$f":"J618","v":49671232},{"$f":"F753-J753","v":0}]
[14,null,"RETURN ON RATE BASE",null,null,{"$f":"F433","v":23480970},{"$f":"G433","v":17243720},{"$f":"H433","v":0},{"$f":"I433","v":6237250},{"$f":"J433","v":23480970},{"$f":"F754-J754","v":0}]
[15,null,{"$f":"'FR-16(7)(v)-1 Functional'!C755","v":"NET FED INCOME TAX ALLOWABLE"},null,null,{"$f":"F676","v":1076379},{"$f":"G676","v":744642},{"$f":"H676","v":0},{"$f":"I676","v":331737},{"$f":"J676","v":1076379},{"$f":"F755-J755","v":0}]
[16,null,{"$f":"'FR-16(7)(v)-1 Functional'!C756","v":"NET STATE INCOME TAX ALLOWABLE"},null,null,{"$f":"F722","v":1020829},{"$f":"G722","v":455192},{"$f":"H722","v":0},{"$f":"I722","v":565637},{"$f":"J722","v":1020829},{"$f":"F756-J756","v":0}]
[17,null,{"$f":"'FR-16(7)(v)-1 Functional'!C757","v":"TOTAL OTHER OPERATING REVENUES"},null,null,{"$f":"-F750","v":-1525537},{"$f":"-G750","v":-1158127},{"$f":"-H750","v":0},{"$f":"-I750","v":-367410},{"$f":"-J750","v":-1525537},{"$f":"F757-J757","v":0}]
[18,null,{"$f":"'FR-16(7)(v)-1 Functional'!C758","v":"  SUBTOTAL B"},null,null,{"$f":"SUM(F752:F757)","v":73723873},{"$f":"SUM(G752:G757)","v":48422245},{"$f":"SUM(H752:H757)","v":0},{"$f":"SUM(I752:I757)","v":25301628},{"$f":"SUM(J752:J757)","v":73723873},{"$f":"J758-F758","v":0}]
[19]
[20,null,{"$f":"'FR-16(7)(v)-1 Functional'!C760","v":"TOTAL OTHER OPERATING REVENUES"},null,null,{"$f":"-F757","v":1525537},{"$f":"-G757","v":1158127},{"$f":"-H757","v":0},{"$f":"-I757","v":367410},{"$f":"-J757","v":1525537},{"$f":"F760-J760","v":0}]
[21,null,{"$f":"'FR-16(7)(v)-1 Functional'!C761","v":"LESS: REVS EXCL FROM REV TAX CALC"},null,null,{"$f":"'FR-16(7)(v)-4 PROD Energy'!F989","v":0},{"$f":"G991","v":0},{"$f":"H991","v":0},{"$f":"I991","v":0},{"$f":"SUM(G761:I761)","v":0},{"$f":"F761-J761","v":0}]
[22,null,{"$f":"'FR-16(7)(v)-1 Functional'!C762","v":"OTHER OPERATING REVS TO BE TAXED"},null,null,{"$f":"F760-F761","v":1525537},1158127,0,367410,1525537,0]
[23]
[24,null,{"$f":"'FR-16(7)(v)-1 Functional'!C764","v":"REVENUE TAX FACTOR"},null,null,{"$f":"ROUND(F817/(1-F817),8)","v":0},0,0,0,0,0]
[25,null,{"$f":"'FR-16(7)(v)-1 Functional'!C765","v":"REVENUE TAX ON OTHER OPER. REVS"},null,null,{"$f":"ROUND(F764*F762,0)","v":0},{"$f":"ROUND(G764*G762,0)","v":0},{"$f":"ROUND(H764*H762,0)","v":0},{"$f":"ROUND(I764*I762,0)","v":0},{"$f":"SUM(G765:I765)","v":0},{"$f":"F765-J765","v":0}]
[26,null,{"$f":"'FR-16(7)(v)-1 Functional'!C766","v":"REVENUE TAX ON COST OF SERVICE"},null,null,{"$f":"ROUND(F764*F758,0)","v":0},{"$f":"ROUND(G764*G758,0)","v":0},{"$f":"ROUND(H764*H758,0)","v":0},{"$f":"ROUND(I764*I758,0)","v":0},{"$f":"SUM(G766:I766)","v":0},{"$f":"F766-J766","v":0}]
[27,null,{"$f":"'FR-16(7)(v)-1 Functional'!C767","v":"TOTAL REVENUE TAX"},null,null,{"$f":"F766+F765","v":0},0,0,0,0,0]
[28]
[29,null,"RESERVED",null,null,{"$f":"F24","v":0},{"$f":"G24","v":0},{"$f":"H24","v":0},{"$f":"I24","v":0},{"$f":"J24","v":0},{"$f":"F769-J769","v":0}]
[30,null,{"$f":"'FR-16(7)(v)-1 Functional'!C770","v":"  TOTAL ELECTRIC COST OF SERVICE"},null,null,{"$f":"F769+F767+F758","v":73723873},48422245,0,25301628,73723873,0]
[31]
[32,"PROPOSED REVENUES",null,null,null,{"$f":"F870","v":109464879},{"$f":"G870","v":52183002},{"$f":"H870","v":0},{"$f":"I870","v":57281877},{"$f":"SUM(G772:I772)","v":109464879},{"$f":"F772-J772","v":0}]
[33,"TOTAL ELECTRIC COST OF SERVICE",null,null,null,{"$f":"-F770","v":-73723873},{"$f":"-G770","v":-48422245},{"$f":"-H770","v":0},{"$f":"-I770","v":-25301628},{"$f":"SUM(G773:I773)","v":-73723873},{"$f":"F773-J773","v":0}]
[34,"EXCESS REVENUES",null,null,null,{"$f":"F773+F772","v":35741006},{"$f":"G773+G772","v":3760757},{"$f":"H773+H772","v":0},{"$f":"I773+I772","v":31980249},{"$f":"SUM(G774:I774)","v":35741006},{"$f":"F774-J774","v":0}]
[35,"COMPOSITE TAX RATE",null,null,null,{"$f":"F729","v":0.24925115},0.24925115,0.24925115,0.24925115,0.24925115,0.24925115]
[36,"EXCESS TAX",null,null,null,{"$f":"ROUND(F775*F774,0)","v":8908487},{"$f":"F776-SUM(H776:I776)","v":937373},{"$f":"ROUND(H775*H774,0)","v":0},{"$f":"ROUND(I775*I774,0)","v":7971114},{"$f":"SUM(G776:I776)","v":8908487},{"$f":"F776-J776","v":0}]
[37,"EXCESS RETURN",null,null,null,{"$f":"F774-F776","v":26832519},{"$f":"F777-SUM(H777:I777)","v":2823384},{"$f":"H774-H776","v":0},{"$f":"I774-I776","v":24009135},{"$f":"SUM(G777:I777)","v":26832519},{"$f":"F777-J777","v":0}]
[]
[{"$f":"co_name","v":"DUKE ENERGY KENTUCKY, INC."},null,null,null,null,null,null,null,null,{"$f":"J1","v":"FR-16(7)(v)-10"}]
[{"$f":"$A$2","v":"DISTRIBUTION CLASSIFIED - ELECTRIC COST OF SERVICE"},null,null,null,null,null,null,null,null,{"$f":"J2","v":"WITNESS RESPONSIBLE:"}]
[{"$f":"case_name","v":"CASE NO: 2019-00271"},null,null,null,null,null,null,null,null,{"$f":"Witness","v":"JAMES E. ZIOLKOWSKI"}]
[{"$f":"data_filing","v":"DATA: 12 MONTHS ACTUAL  & 0 MONTHS ESTIMATED"},null,null,null,null,null,null,null,null,{"$f":"\"PAGE \"&Pages-3&\" OF \"&Pages","v":"PAGE 15 OF 18"}]
[{"$f":"type","v":"TYPE OF FILING: \"X\" ORIGINAL   UPDATED    REVISED  "}]
[]
[]
["LINE",null,null,null,null,"TOTAL","CLASSIFIED",null,null,"TOTAL","ALL"]
["NO.","ROR, TAX RATES & SPEC FACTORS",null,"ALLO",null,"DISTRIBUTION",{"$f":"G9","v":"DEMAND"},"ENERGY","CUSTOMER","AT ISSUE","OTHER"]
[null,null,"Schedule 11",null,null,null,3,4,5]
[1,"RATE OF RETURN"]
[2," CAPITALIZATION AMOUNTS",null,null,null,null,"RATIO"]
[3,null,{"$f":"'FR-16(7)(v)-1 Functional'!C791","v":"LONG TERM DEBT"},null,null,{"$f":"'FR-16(7)(v)-1 Functional'!$F$791","v":665948506},{"$f":"IF(TotalCap=0,0,ROUND(F791/TotalCap,4))","v":0.45929999999999999}]
[4,null,{"$f":"'FR-16(7)(v)-1 Functional'!C792","v":"PREFERRED STOCK"},null,null,{"$f":"'FR-16(7)(v)-1 Functional'!$F$792","v":0},{"$f":"IF(TotalCap=0,0,ROUND(F792/TotalCap,4))","v":0}]
[5,null,{"$f":"'FR-16(7)(v)-1 Functional'!C793","v":"COMMON STOCK"},null,null,{"$f":"[0]!Equity","v":699348680},{"$f":"1-G791-G792-G794-G795","v":0.48239999999999994}]
[6,null,{"$f":"'FR-16(7)(v)-1 Functional'!C794","v":"SHORT TERM DEBT"},null,null,{"$f":"'FR-16(7)(v)-1 Functional'!$F$794","v":84600060},{"$f":"IF(TotalCap=0,0,ROUND(F794/TotalCap,4))","v":5.8299999999999998E-2}]
[7,null,{"$f":"'FR-16(7)(v)-1 Functional'!C795","v":"UNAMORTIZED DISCOUNT"},null,null,{"$f":"'FR-16(7)(v)-1 Functional'!$F$795","v":0},{"$f":"IF(TotalCap=0,0,ROUND(F795/TotalCap,4))","v":0}]
[8,null,{"$f":"'FR-16(7)(v)-1 Functional'!C796","v":"  TOTAL"},null,null,{"$f":"SUM(F790:F795)","v":1449897246},{"$f":"SUM(G791:G795)","v":1}]
[9]
[10," COST OF CAPITAL"]
[11,null,{"$f":"'FR-16(7)(v)-1 Functional'!C799","v":"LONG TERM DEBT"},null,null,{"$f":"'FR-16(7)(v)-1 Functional'!$F$799","v":4.0730000000000002E-2}]
[12,null,{"$f":"'FR-16(7)(v)-1 Functional'!C800","v":"PREFERRED STOCK"},null,null,{"$f":"'FR-16(7)(v)-1 Functional'!$F$800","v":0}]
[13,null,{"$f":"'FR-16(7)(v)-1 Functional'!C801","v":"COMMON STOCK"},null,null,{"$f":"'FR-16(7)(v)-1 Functional'!$F$801","v":9.8000000000000004E-2}]
[14,null,{"$f":"'FR-16(7)(v)-1 Functional'!C802","v":"SHORT TERM DEBT"},null,null,{"$f":"'FR-16(7)(v)-1 Functional'!$F$802","v":1.9369999999999998E-2}]
[15,null,{"$f":"'FR-16(7)(v)-1 Functional'!C803","v":"UNAMORTIZED DISCOUNT"},null,null,{"$f":"'FR-16(7)(v)-1 Functional'!$F$803","v":0}]
[16]
[17," WEIGHTED COST OF CAPITAL"]
[18,null,{"$f":"'FR-16(7)(v)-1 Functional'!C806","v":"LONG TERM DEBT"},null,null,{"$f":"ROUND(G791*F799,4)","v":1.8700000000000001E-2}]
[19,null,{"$f":"'FR-16(7)(v)-1 Functional'!C807","v":"PREFERRED STOCK"},null,null,{"$f":"ROUND(G792*F800,4)","v":0}]
[20,null,{"$f":"'FR-16(7)(v)-1 Functional'!C808","v":"COMMON STOCK"},null,null,{"$f":"ROUND(G793*F801,4)","v":4.7300000000000002E-2}]
[21,null,{"$f":"'FR-16(7)(v)-1 Functional'!C809","v":"SHORT TERM DEBT"},null,null,{"$f":"ROUND(G794*F802,4)","v":1.1000000000000001E-3}]
[22,null,{"$f":"'FR-16(7)(v)-1 Functional'!C810","v":"UNAMORTIZED DISCOUNT"},null,null,{"$f":"ROUND(G795*F803,4)","v":0}]
[23,null,{"$f":"'FR-16(7)(v)-1 Functional'!C811","v":"  TOT RATE OF RETURN ALLOWABLE"},null,null,{"$f":"SUM(F806:F810)","v":6.7100000000000007E-2}]
[24]
[25,"TAX RATES AND SPECIAL FACTORS"]
[26,null,{"$f":"'FR-16(7)(v)-1 Functional'!C814","v":"SHORT TERM DEBT COST"},null,null,0,{"$f":"F814","v":0},{"$f":"F814","v":0},{"$f":"F814","v":0},{"$f":"F814","v":0},{"$f":"F814","v":0}]
[27,null,{"$f":"'FR-16(7)(v)-1 Functional'!C815","v":"FEDERAL INCOME TAX RATE"},null,null,0.35,{"$f":"FIT","v":0.21},{"$f":"FIT","v":0.21},{"$f":"FIT","v":0.21},{"$f":"FIT","v":0.21},{"$f":"FIT","v":0.21}]
[28,null,{"$f":"'FR-16(7)(v)-1 Functional'!C816","v":"STATE INCOME TAX RATE"},null,null,{"$f":"SIT","v":4.9685000000000007E-2},4.9685000000000007E-2,4.9685000000000007E-2,4.9685000000000007E-2,4.9685000000000007E-2,4.9685000000000007E-2]
[29,null,{"$f":"'FR-16(7)(v)-1 Functional'!C817","v":"REVENUE TAX RATE"},null,null,0,{"$f":"RevTax","v":0},{"$f":"RevTax","v":0},{"$f":"RevTax","v":0},{"$f":"RevTax","v":0},{"$f":"RevTax","v":0}]
[]
[{"$f":"co_name","v":"DUKE ENERGY KENTUCKY, INC."},null,null,null,null,null,null,null,null,{"$f":"J1","v":"FR-16(7)(v)-10"}]
[{"$f":"$A$2","v":"DISTRIBUTION CLASSIFIED - ELECTRIC COST OF SERVICE"},null,null,null,null,null,null,null,null,{"$f":"J2","v":"WITNESS RESPONSIBLE:"}]
[{"$f":"case_name","v":"CASE NO: 2019-00271"},null,null,null,null,null,null,null,null,{"$f":"Witness","v":"JAMES E. ZIOLKOWSKI"}]
[{"$f":"data_filing","v":"DATA: 12 MONTHS ACTUAL  & 0 MONTHS ESTIMATED"},null,null,null,null,null,null,null,null,{"$f":"\"PAGE \"&Pages-2&\" OF \"&Pages","v":"PAGE 16 OF 18"}]
[{"$f":"type","v":"TYPE OF FILING: \"X\" ORIGINAL   UPDATED    REVISED  "}]
[]
[]
["LINE",null,null,null,null,"TOTAL","CLASSIFIED",null,null,"TOTAL","ALL",null,null,null,"CLASSIFIED"]
["NO.","ALLOCATORS",null,"SOURCE","ALLO","DISTRIBUTION",{"$f":"G9","v":"DEMAND"},"ENERGY","CUSTOMER","AT ISSUE","OTHER",null,null,null,"CHECK"]
[null,null,"Schedule 12",null,1,2,3,4,5]
[1,"DEMAND ENERGY & SPEC. ASSIGN"]
[2,null,"TOTAL KW (12 COIN PEAK) - PRODUCTION","External",null,{"$f":"'WP FR-16(7)(v)-KW & KWH @Gen'!D38","v":717751},{"$f":"'WP FR-16(7)(v)-KW & KWH @Gen'!D38","v":717751},0,0,{"$f":"SUM(G830:I830)","v":717751},{"$f":"F830-J830","v":0}]
[3,null,{"$f":"'FR-16(7)(v)-1 Functional'!C831","v":"RATIO TO TOTAL ELECTRIC"},null,{"$f":"'FR-16(7)(v)-1 Functional'!E831","v":"K201"},1,{"$f":"ROUND(G830/(G830+H830+I830),5)","v":1},{"$f":"ROUND(H830/(G830+H830+I830),5)","v":0},{"$f":"ROUND(I830/(G830+H830+I830),5)","v":0},{"$f":"SUM(G831:I831)","v":1},{"$f":"F831-J831","v":0},null,null,null,{"$f":"SUM(G831:I831)","v":1}]
[4,null,"TOTAL KW (12 COIN PEAK) - TRANSMISSION","External",null,{"$f":"'WP FR-16(7)(v)-KW & KWH @Gen'!D38","v":717751},{"$f":"'WP FR-16(7)(v)-KW & KWH @Gen'!D38","v":717751},0,0,{"$f":"SUM(G832:I832)","v":717751},{"$f":"F832-J832","v":0}]
[5,null,{"$f":"'FR-16(7)(v)-1 Functional'!C833","v":"RATIO TO TOTAL ELECTRIC"},null,"K202",1,{"$f":"ROUND(G832/(G832+H832+I832),5)","v":1},{"$f":"ROUND(H832/(G832+H832+I832),5)","v":0},{"$f":"ROUND(I832/(G832+H832+I832),5)","v":0},{"$f":"SUM(G833:I833)","v":1},{"$f":"F833-J833","v":0},null,null,null,{"$f":"SUM(G833:I833)","v":1}]
[6,null,{"$f":"'FR-16(7)(v)-1 Functional'!C834","v":"DISTRIBUTION KW (NON-COIN PEAK) "},"External",null,{"$f":"'WP FR-16(7)(v)-KW & KWH @Dist'!D39","v":1514633},{"$f":"'WP FR-16(7)(v)-KW & KWH @Dist'!D39","v":1514633},0,0,1514633,0]
[7,null,{"$f":"'FR-16(7)(v)-1 Functional'!C835","v":"RATIO TO TOTAL ELECTRIC"},null,{"$f":"'FR-16(7)(v)-1 Functional'!E835","v":"K203"},1,{"$f":"ROUND(G834/(G834+H834+I834),5)","v":1},{"$f":"ROUND(H834/(G834+H834+I834),5)","v":0},{"$f":"ROUND(I834/(G834+H834+I834),5)","v":0},1,0,null,null,null,{"$f":"SUM(G835:I835)","v":1}]
[8,null,"DISTRIBUTION LINE - PRIMARY","External",null,{"$f":"'WP FR-16(7)(v) Distlines'!G38","v":731338},{"$f":"'WP FR-16(7)(v) Distlines'!G38","v":731338},0,0,731338,0]
[9,null,{"$f":"'FR-16(7)(v)-1 Functional'!C837","v":"RATIO TO TOTAL ELECTRIC"},null,{"$f":"'FR-16(7)(v)-1 Functional'!E837","v":"K205"},1,{"$f":"ROUND(G836/(G836+H836+I836),5)","v":1},{"$f":"ROUND(H836/(G836+H836+I836),5)","v":0},{"$f":"ROUND(I836/(G836+H836+I836),5)","v":0},1,0,null,null,null,{"$f":"SUM(G837:I837)","v":1}]
[10,null,"DISTRIBUTION LINE - SECONDARY","External",null,{"$f":"'WP FR-16(7)(v) Distlines'!K38","v":731338},{"$f":"'WP FR-16(7)(v) Distlines'!K38","v":731338},0,0,{"$f":"SUM(G838:I838)","v":731338},{"$f":"F838-J838","v":0}]
[11,null,{"$f":"'FR-16(7)(v)-1 Functional'!C839","v":"RATIO TO TOTAL ELECTRIC"},null,"K206",1,{"$f":"ROUND(G838/(G838+H838+I838),5)","v":1},{"$f":"ROUND(H838/(G838+H838+I838),5)","v":0},{"$f":"ROUND(I838/(G838+H838+I838),5)","v":0},{"$f":"SUM(G839:I839)","v":1},{"$f":"F839-J839","v":0}]
[12,null,{"$f":"'FR-16(7)(v)-1 Functional'!C840","v":"GROSS DISTRIBUTION PLANT EXCL. CCNC"},"External",null,{"$f":"SUM(F73:F90)","v":484679074},355338347,0,129340727,484679074,0]
[13,null,{"$f":"'FR-16(7)(v)-1 Functional'!C841","v":"RATIO TO TOTAL ELECTRIC"},null,{"$f":"'FR-16(7)(v)-1 Functional'!E841","v":"K209"},1,{"$f":"ROUND(G840/(G840+H840+I840),5)","v":0.73314000000000001},{"$f":"ROUND(H840/(G840+H840+I840),5)","v":0},{"$f":"ROUND(I840/(G840+H840+I840),5)","v":0.26685999999999999},1,0,null,null,null,{"$f":"SUM(G841:I841)","v":1}]
[14,null,{"$f":"'FR-16(7)(v)-1 Functional'!C842","v":"TOTAL DIVERSIFIED CLASS DEMANDS"},"External",null,{"$f":"'WP FR-16(7)(v)-KW & KWH @Dist'!L39","v":731338},{"$f":"'WP FR-16(7)(v)-KW & KWH @Dist'!L39","v":731338},0,0,731338,0]
[15,null,{"$f":"'FR-16(7)(v)-1 Functional'!C843","v":"RATIO TO TOTAL ELECTRIC"},null,{"$f":"'FR-16(7)(v)-1 Functional'!E843","v":"K215"},1,{"$f":"ROUND(G842/(G842+H842+I842),5)","v":1},{"$f":"ROUND(H842/(G842+H842+I842),5)","v":0},{"$f":"ROUND(I842/(G842+H842+I842),5)","v":0},1,0,null,null,null,{"$f":"SUM(G843:I843)","v":1}]
[16,null,{"$f":"'FR-16(7)(v)-1 Functional'!C844","v":"WEIGHTED CUSTOMER SERVICE"},"External",null,{"$f":"'WP FR-16(7)(v) Wtd services'!H38","v":143810},0,0,{"$f":"'WP FR-16(7)(v) Wtd services'!H38","v":143810},143810,0]
[17,null,{"$f":"'FR-16(7)(v)-1 Functional'!C845","v":"RATIO TO TOTAL ELECTRIC"},null,{"$f":"'FR-16(7)(v)-1 Functional'!E845","v":"K217"},1,{"$f":"ROUND(G844/(G844+H844+I844),5)","v":0},{"$f":"ROUND(H844/(G844+H844+I844),5)","v":0},{"$f":"ROUND(I844/(G844+H844+I844),5)","v":1},1,0,null,null,null,{"$f":"SUM(G845:I845)","v":1}]
[18,null,{"$f":"'FR-16(7)(v)-1 Functional'!C846","v":"TOTAL KWH"},"External",null,{"$f":"'WP FR-16(7)(v)-KW & KWH @Gen'!F38","v":4261970981},0,{"$f":"'WP FR-16(7)(v)-KW & KWH @Gen'!F38","v":4261970981},0,4261970981,0]
[19,null,{"$f":"'FR-16(7)(v)-1 Functional'!C847","v":"RATIO TO TOTAL ELECTRIC"},null,{"$f":"'FR-16(7)(v)-1 Functional'!E847","v":"K301"},1,{"$f":"ROUND(G846/(G846+H846+I846),5)","v":0},{"$f":"ROUND(H846/(G846+H846+I846),5)","v":1},{"$f":"ROUND(I846/(G846+H846+I846),5)","v":0},1,0,null,null,null,{"$f":"SUM(G847:I847)","v":1}]
[20,null,{"$f":"'FR-16(7)(v)-1 Functional'!C848","v":"DISTRIBUTION KWH"},"External",null,{"$f":"'WP FR-16(7)(v)-KW & KWH @Dist'!F39","v":4261970981},0,{"$f":"'WP FR-16(7)(v)-KW & KWH @Dist'!F39","v":4261970981},0,4261970981,0]
[21,null,{"$f":"'FR-16(7)(v)-1 Functional'!C849","v":"RATIO TO TOTAL ELECTRIC"},null,{"$f":"'FR-16(7)(v)-1 Functional'!E849","v":"K303"},1,{"$f":"ROUND(G848/(G848+H848+I848),5)","v":0},{"$f":"ROUND(H848/(G848+H848+I848),5)","v":1},{"$f":"ROUND(I848/(G848+H848+I848),5)","v":0},1,0,null,null,null,{"$f":"SUM(G849:I849)","v":1}]
[22,null,{"$f":"'FR-16(7)(v)-1 Functional'!C850","v":"TOTAL KWH LESS LIGHTING"},"External",null,{"$f":"'WP FR-16(7)(v)-KW & KWH @Gen'!F38-'WP FR-16(7)(v)-KW & KWH @Gen'!F26","v":4243371852},0,{"$f":"'WP FR-16(7)(v)-KW & KWH @Gen'!F38-'WP FR-16(7)(v)-KW & KWH @Gen'!F26","v":4243371852},0,4243371852,0]
[23,null,{"$f":"'FR-16(7)(v)-1 Functional'!C851","v":"RATIO TO TOTAL ELECTRIC"},null,{"$f":"'FR-16(7)(v)-1 Functional'!E851","v":"K305"},1,{"$f":"ROUND(G850/(G850+H850+I850),5)","v":0},{"$f":"ROUND(H850/(G850+H850+I850),5)","v":1},{"$f":"ROUND(I850/(G850+H850+I850),5)","v":0},1,0,null,null,null,{"$f":"SUM(G851:I851)","v":1}]
[24,null,{"$f":"'FR-16(7)(v)-1 Functional'!C852","v":"ASSIGN 100% TO RESIDENTIAL"},"External",null,1,1,0,0,1,0]
[25,null,{"$f":"'FR-16(7)(v)-1 Functional'!C853","v":"RATIO TO TOTAL ELECTRIC"},null,{"$f":"'FR-16(7)(v)-1 Functional'!E853","v":"K307"},1,{"$f":"ROUND(G852/(G852+H852+I852),5)","v":1},{"$f":"ROUND(H852/(G852+H852+I852),5)","v":0},{"$f":"ROUND(I852/(G852+H852+I852),5)","v":0},1,0,null,null,null,{"$f":"SUM(G853:I853)","v":1}]
[26,null,{"$f":"'FR-16(7)(v)-1 Functional'!C854","v":"ASSIGN 100% TO LIGHTING"},"External",null,1,0,0,1,1,0]
[27,null,{"$f":"'FR-16(7)(v)-1 Functional'!C855","v":"RATIO TO TOTAL ELECTRIC"},null,{"$f":"'FR-16(7)(v)-1 Functional'!E855","v":"K401"},1,{"$f":"ROUND(G854/(G854+H854+I854),5)","v":0},{"$f":"ROUND(H854/(G854+H854+I854),5)","v":0},{"$f":"ROUND(I854/(G854+H854+I854),5)","v":1},1,0,null,null,null,{"$f":"SUM(G855:I855)","v":1}]
[28,null,{"$f":"'FR-16(7)(v)-1 Functional'!C856","v":"DISTRIBUTION CUSTOMERS"},"External",null,{"$f":"'WP FR-16(7)(v)-KW & KWH @Dist'!H39","v":142392},0,{"$f":"ROUND(H855/(G855+H855+I855),5)","v":0},{"$f":"'WP FR-16(7)(v)-KW & KWH @Dist'!H39","v":142392},142392,0]
[29,null,{"$f":"'FR-16(7)(v)-1 Functional'!C857","v":"RATIO TO TOTAL ELECTRIC"},null,{"$f":"'FR-16(7)(v)-1 Functional'!E857","v":"K405"},1,{"$f":"ROUND(G856/(G856+H856+I856),5)","v":0},{"$f":"ROUND(H856/(G856+H856+I856),5)","v":0},{"$f":"ROUND(I856/(G856+H856+I856),5)","v":1},1,0,null,null,null,{"$f":"SUM(G857:I857)","v":1}]
["28A",null,"DISTRIBUTION CUSTOMERS","External",null,{"$f":"'WP FR-16(7)(v)-KW & KWH @Dist'!J39","v":142377},0,0,{"$f":"F858","v":142377},{"$f":"SUM(G858:I858)","v":142377},{"$f":"F858-J858","v":0}]
["29A",null,"RATIO TO TOTAL ELECTRIC",null,"K406",1,{"$f":"ROUND(G858/(G858+H858+I858),5)","v":0},{"$f":"ROUND(H858/(G858+H858+I858),5)","v":0},{"$f":"ROUND(I858/(G858+H858+I858),5)","v":1},{"$f":"SUM(G859:I859)","v":1},{"$f":"F859-J859","v":0}]
[30,null,{"$f":"'FR-16(7)(v)-1 Functional'!C858","v":"METERS"},"External",null,{"$f":"'WP FR-16(7)(v) Meters'!E40","v":15813241},0,0,{"$f":"'WP FR-16(7)(v) Meters'!E40","v":15813241},15813241,0]
[31,null,{"$f":"'FR-16(7)(v)-1 Functional'!C859","v":"RATIO TO TOTAL ELECTRIC"},null,{"$f":"'FR-16(7)(v)-1 Functional'!E859","v":"K407"},1,{"$f":"ROUND(G860/(G860+H860+I860),5)","v":0},{"$f":"ROUND(H860/(G860+H860+I860),5)","v":0},{"$f":"ROUND(I860/(G860+H860+I860),5)","v":1},1,0,null,null,null,{"$f":"SUM(G861:I861)","v":1}]
[32,null,{"$f":"'FR-16(7)(v)-1 Functional'!C860","v":"WEIGHTED CUSTOMER"},"External",null,{"$f":"'WP FR-16(7)(v) Meters'!H40","v":156470},0,0,{"$f":"F862","v":156470},156470,0]
[33,null,{"$f":"'FR-16(7)(v)-1 Functional'!C861","v":"RATIO TO TOTAL ELECTRIC"},null,{"$f":"'FR-16(7)(v)-1 Functional'!E861","v":"K409"},1,{"$f":"ROUND(G862/(G862+H862+I862),5)","v":0},{"$f":"ROUND(H862/(G862+H862+I862),5)","v":0},{"$f":"ROUND(I862/(G862+H862+I862),5)","v":1},1,0,null,null,null,{"$f":"SUM(G863:I863)","v":1}]
[34,null,{"$f":"'FR-16(7)(v)-1 Functional'!C862","v":"UNCOLLECTIBLE ACCOUNT 904"},"External",null,{"$f":"'WP FR-16(7)(v) CustAcct'!G31","v":5781023.7599999998},0,0,{"$f":"F864","v":5781023.7599999998},5781023.7599999998,0]
[35,null,{"$f":"'FR-16(7)(v)-1 Functional'!C863","v":"RATIO TO TOTAL ELECTRIC"},null,{"$f":"'FR-16(7)(v)-1 Functional'!E863","v":"K411"},1,{"$f":"ROUND(G864/(G864+H864+I864),5)","v":0},{"$f":"ROUND(H864/(G864+H864+I864),5)","v":0},{"$f":"ROUND(I864/(G864+H864+I864),5)","v":1},1,0,null,null,null,{"$f":"SUM(G865:I865)","v":1}]
[36,null,{"$f":"'FR-16(7)(v)-1 Functional'!C864","v":"KWH SALES LESS RTP"},"External",null,{"$f":"'WP FR-16(7)(v)-KW & KWH @Gen'!F28","v":4244213606},0,{"$f":"'WP FR-16(7)(v)-KW & KWH @Gen'!F28","v":4244213606},0,{"$f":"SUM(G866:I866)","v":4244213606},{"$f":"F866-J866","v":0}]
[37,null,{"$f":"'FR-16(7)(v)-1 Functional'!C865","v":"RATIO TO TOTAL ELECTRIC"},null,{"$f":"'FR-16(7)(v)-1 Functional'!E865","v":"K302"},1,{"$f":"ROUND(G866/(G866+H866+I866),5)","v":0},{"$f":"ROUND(H866/(G866+H866+I866),5)","v":1},{"$f":"ROUND(I866/(G866+H866+I866),5)","v":0},{"$f":"SUM(G867:I867)","v":1},{"$f":"F867-J867","v":0}]
[38]
[39,null,{"$f":"'FR-16(7)(v)-1 Functional'!C867","v":"PRESENT REVENUES"},{"$f":"'FR-16(7)(v)-1 Functional'!$D$867","v":"CS09"},{"$f":"'FR-16(7)(v)-1 Functional'!E867","v":"R600"},{"$f":"'FR-16(7)(v)-1 Functional'!I867","v":64477982},{"$f":"ROUND(F869*VLOOKUP(D869,Alloctable_Classified_Distribution,$G$10,FALSE),0)","v":42349493},{"$f":"ROUND(F869*VLOOKUP(D869,Alloctable_Classified_Distribution,$H$10,FALSE),0)","v":0},{"$f":"ROUND(F869*VLOOKUP(D869,Alloctable_Classified_Distribution,$I$10,FALSE),0)","v":22128489},{"$f":"SUM(G869:I869)","v":64477982},{"$f":"F869-J869","v":0},null,"Use allocator K901 in allocated studies"]
[40,null,{"$f":"'FR-16(7)(v)-1 Functional'!C868","v":"PROPOSED REVENUES"},{"$f":"'FR-16(7)(v)-1 Functional'!$D$868","v":"A357"},{"$f":"'FR-16(7)(v)-1 Functional'!E868","v":"R602"},{"$f":"'FR-16(7)(v)-1 Functional'!I868","v":109464879},{"$f":"ROUND(F870*VLOOKUP(D870,Alloctable_Classified_Distribution,$G$10,FALSE),0)","v":52183002},{"$f":"ROUND(F870*VLOOKUP(D870,Alloctable_Classified_Distribution,$H$10,FALSE),0)","v":0},{"$f":"ROUND(F870*VLOOKUP(D870,Alloctable_Classified_Distribution,$I$10,FALSE),0)","v":57281877},{"$f":"SUM(G870:I870)","v":109464879},{"$f":"F870-J870","v":0},null,"Use allocator K902 in allocated studies"]
[]
[{"$f":"co_name","v":"DUKE ENERGY KENTUCKY, INC."},null,null,null,null,null,null,null,null,{"$f":"J1","v":"FR-16(7)(v)-10"}]
[{"$f":"$A$2","v":"DISTRIBUTION CLASSIFIED - ELECTRIC COST OF SERVICE"},null,null,null,null,null,null,null,null,{"$f":"J2","v":"WITNESS RESPONSIBLE:"}]
[{"$f":"case_name","v":"CASE NO: 2019-00271"},null,null,null,null,null,null,null,null,{"$f":"Witness","v":"JAMES E. ZIOLKOWSKI"}]
[{"$f":"data_filing","v":"DATA: 12 MONTHS ACTUAL  & 0 MONTHS ESTIMATED"},null,null,null,null,null,null,null,null,{"$f":"\"PAGE \"&Pages-1&\" OF \"&Pages","v":"PAGE 17 OF 18"}]
[{"$f":"type","v":"TYPE OF FILING: \"X\" ORIGINAL   UPDATED    REVISED  "}]
[]
[]
["LINE",null,null,null,null,"TOTAL","CLASSIFIED",null,null,"TOTAL","ALL"]
["NO.","ALLOCATORS",null,"SOURCE","ALLO","DISTRIBUTION",{"$f":"G9","v":"DEMAND"},"ENERGY","CUSTOMER","AT ISSUE","OTHER"]
[null,null,"Schedule 12.1",null,1,2,3,4,5]
[]
[1,null,{"$f":"'FR-16(7)(v)-1 Functional'!C881","v":"PRESENT REVENUES"},"Internal",null,{"$f":"F869","v":64477982},{"$f":"G869","v":42349493},{"$f":"H869","v":0},{"$f":"I869","v":22128489},{"$f":"SUM(G883:I883)","v":64477982},{"$f":"F883-J883","v":0}]
[2,null,{"$f":"'FR-16(7)(v)-1 Functional'!C882","v":"RATIO TO TOTAL ELECTRIC"},null,{"$f":"'FR-16(7)(v)-1 Functional'!E882","v":"K901"},1,{"$f":"ROUND(G883/(G883+H883+I883),5)","v":0.65681},{"$f":"ROUND(H883/(G883+H883+I883),5)","v":0},{"$f":"1-SUM(G884:H884)","v":0.34319},{"$f":"SUM(G884:I884)","v":1},{"$f":"F884-J884","v":0},null,null,null,{"$f":"SUM(G884:I884)","v":1}]
[3,null,{"$f":"'FR-16(7)(v)-1 Functional'!C883","v":"PROPOSED REVENUES"},"Internal",null,{"$f":"F870","v":109464879},{"$f":"G870","v":52183002},{"$f":"H870","v":0},{"$f":"I870","v":57281877},{"$f":"SUM(G885:I885)","v":109464879},{"$f":"F885-J885","v":0}]
[4,null,{"$f":"'FR-16(7)(v)-1 Functional'!C884","v":"RATIO TO TOTAL ELECTRIC"},null,{"$f":"'FR-16(7)(v)-1 Functional'!E884","v":"K902"},1,{"$f":"ROUND(G885/(G885+H885+I885),5)","v":0.47671000000000002},{"$f":"ROUND(H885/(G885+H885+I885),5)","v":0},{"$f":"1-SUM(G886:H886)","v":0.52329000000000003},{"$f":"SUM(G886:I886)","v":1},{"$f":"F886-J886","v":0}]
[5]
[6,"WEIGHTED RATIOS"]
[7,"GROSS ELECTRIC PLANT IN SERVICE"]
[8,null,{"$f":"'FR-16(7)(v)-1 Functional'!C888","v":"WTD GROSS PROD PLANT RATIOS"},"Internal",{"$f":"'FR-16(7)(v)-1 Functional'!E888","v":"P129"},0,{"$f":"ROUND(IF($F$62=0,0,G62/$F$62),5)","v":0},{"$f":"ROUND(IF(F62=0,0,H62/F62),5)","v":0},{"$f":"ROUND(IF(F62=0,0,I62/F62),5)","v":0},{"$f":"SUM(G890:I890)","v":0},{"$f":"F890-J890","v":0},null,null,null,{"$f":"SUM(G890:I890)","v":0}]
[9,null,{"$f":"'FR-16(7)(v)-1 Functional'!C889","v":"WTD GROSS TRANS PLANT RATIOS"},"Internal",{"$f":"'FR-16(7)(v)-1 Functional'!E889","v":"T129"},0,{"$f":"ROUND(IF($F$68=0,0,G68/$F$68),5)","v":0},{"$f":"ROUND(IF(F68=0,0,H68/F68),5)","v":0},{"$f":"ROUND(IF(F63=0,0,I68/F68),5)","v":0},0,0,null,null,null,0]
[10,null,{"$f":"'FR-16(7)(v)-1 Functional'!C890","v":"WTD GROSS P & T PLT RATIOS"},"Internal",{"$f":"'FR-16(7)(v)-1 Functional'!E890","v":"PT29"},0,{"$f":"ROUND(IF($F$70=0,0,G70/$F$70),5)","v":0},{"$f":"ROUND(IF(F95=0,0,H70/F70),5)","v":0},{"$f":"ROUND(IF(F70=0,0,I70/F70),5)","v":0},{"$f":"SUM(G892:I892)","v":0},{"$f":"F892-J892","v":0}]
[11,null,{"$f":"'FR-16(7)(v)-1 Functional'!C891","v":"WTD GROSS DIST PLANT RATIOS"},"Internal",{"$f":"'FR-16(7)(v)-1 Functional'!E891","v":"D149"},1,{"$f":"ROUND(IF($F$94=0,0,G94/F94),5)","v":0.73314000000000001},{"$f":"ROUND(IF(F94=0,0,H94/F94),5)","v":0},{"$f":"ROUND(IF(F94=0,0,I94/F94),5)","v":0.26685999999999999},{"$f":"SUM(G893:I893)","v":1},{"$f":"F893-J893","v":0}]
[12,null,{"$f":"'FR-16(7)(v)-1 Functional'!C892","v":"WTD GROSS TRANS & DIST RATIOS"},"Internal",{"$f":"'FR-16(7)(v)-1 Functional'!E892","v":"TD29"},1,{"$f":"ROUND(IF($F$97=0,0,G97/$F$97),5)","v":0.73314000000000001},{"$f":"ROUND(IF(F97=0,0,H97/F97),5)","v":0},{"$f":"ROUND(IF(F97=0,0,I97/F97),5)","v":0.26685999999999999},1,0,null,null,null,1]
[13,null,{"$f":"'FR-16(7)(v)-1 Functional'!C893","v":"WTD GROSS PTD PLT RATIOS"},"Internal",{"$f":"'FR-16(7)(v)-1 Functional'!E893","v":"PD29"},1,{"$f":"ROUND(IF($F$109=0,0,G109/$F$109),5)","v":0},{"$f":"ROUND(IF(F109=0,0,H109/F109),5)","v":0},{"$f":"ROUND(IF(F109=0,0,I109/F109),5)","v":1},1,0,null,null,null,1]
[14,null,{"$f":"'FR-16(7)(v)-1 Functional'!C894","v":"WTD GROSS G & I PLT RATIOS"},"Internal",{"$f":"'FR-16(7)(v)-1 Functional'!E894","v":"G129"},1,{"$f":"ROUND(IF($F$121=0,0,G121/$F$121),5)","v":0},{"$f":"ROUND(IF(F121=0,0,$H$121/F121),5)","v":0},{"$f":"ROUND(IF(F121=0,0,I121/F121),5)","v":1},1,0,null,null,null,1]
[15,null,{"$f":"'FR-16(7)(v)-1 Functional'!C895","v":"WTD GROSS C & O PLANT RATIOS"},"Internal",{"$f":"'FR-16(7)(v)-1 Functional'!E895","v":"C129"},1,{"$f":"ROUND(IF($F$123=0,0,G123/$F$123),5)","v":0.71574000000000004},{"$f":"ROUND(IF(F123=0,0,$H$123/F123),5)","v":0},{"$f":"ROUND(IF(F123=0,0,I123/F123),5)","v":0.28426000000000001},1,0,null,null,null,1]
[16,null,{"$f":"'FR-16(7)(v)-1 Functional'!C896","v":"WTD GROSS PLANT RATIOS"},"Internal",{"$f":"'FR-16(7)(v)-1 Functional'!E896","v":"GP19"},1,{"$f":"ROUND(IF($F$171=0,0,G171/$F$171),5)","v":0.65542},{"$f":"ROUND(IF(F171=0,0,H171/F171),5)","v":0},{"$f":"ROUND(IF(F171=0,0,I171/F171),5)","v":0.34458},1,0,null,null,null,1]
[17,null,{"$f":"'FR-16(7)(v)-1 Functional'!C897","v":"WTD TOTAL DEPRC RES RATIOS"},"Internal",{"$f":"'FR-16(7)(v)-1 Functional'!E897","v":"DR19"},1,{"$f":"ROUND(IF($F$200=0,0,G200/$F$200),5)","v":0.62595000000000001},{"$f":"ROUND(IF(F200=0,0,H200/F200),5)","v":0},{"$f":"ROUND(IF(F200=0,0,I200/F200),5)","v":0.37404999999999999},1,0,null,null,null,1]
[18]
[19,"NET ELECTRIC PLANT"]
[20,null,{"$f":"'FR-16(7)(v)-1 Functional'!C900","v":"WTD NET PROD PLANT RATIOS"},"Internal",{"$f":"'FR-16(7)(v)-1 Functional'!E900","v":"P229"},1,{"$f":"ROUND(IF($F$216=0,0,G216/$F$216),5)","v":0},{"$f":"ROUND(IF(F216=0,0,H216/F216),5)","v":0},{"$f":"ROUND(IF(F216=0,0,I216/F216),5)","v":0},{"$f":"SUM(G902:I902)","v":0},{"$f":"F902-J902","v":1},null,null,null,{"$f":"SUM(G902:I902)","v":0}]
[21,null,{"$f":"'FR-16(7)(v)-1 Functional'!C901","v":"WTD NET TRANS PLANT RATIOS"},"Internal",{"$f":"'FR-16(7)(v)-1 Functional'!E901","v":"T229"},1,{"$f":"ROUND(IF($F$222=0,0,G222/$F$222),5)","v":0},{"$f":"ROUND(IF(F222=0,0,H222/F222),5)","v":0},{"$f":"ROUND(IF(F217=0,0,I217/F217),5)","v":0},0,1,null,null,null,{"$f":"SUM(G903:I903)","v":0}]
[22,null,{"$f":"'FR-16(7)(v)-1 Functional'!C902","v":"WTD NET DIST LINES  - POLES, TOWERS & FIXTURES"},"Internal",{"$f":"'FR-16(7)(v)-1 Functional'!E902","v":"PL49"},1,{"$f":"ROUND(IF(SUM($F$228:$F$231)=0,0,SUM(G228:G231)/SUM($F$228:$F$231)),5)","v":0.71130000000000004},{"$f":"ROUND(IF(SUM($F$228:$F$231)=0,0,SUM(H228:H231)/SUM($F$228:$F$231)),5)","v":0},{"$f":"ROUND(IF(SUM($F$228:$F$231)=0,0,SUM(I228:I231)/SUM($F$228:$F$231)),5)","v":0.28870000000000001},1,0,null,null,null,{"$f":"SUM(G904:I904)","v":1}]
[23,null,{"$f":"'FR-16(7)(v)-1 Functional'!C903","v":"WTD NET TOTAL DIST PLANT RATIOS"},"Internal",{"$f":"'FR-16(7)(v)-1 Functional'!E903","v":"D249"},1,{"$f":"ROUND(IF($F$248=0,0,G248/$F$248),5)","v":0.75915999999999995},{"$f":"ROUND(IF($F$248=0,0,H248/$F$248),5)","v":0},{"$f":"ROUND(IF($F$248=0,0,I248/$F$248),5)","v":0.24084},1,0]
[24,null,{"$f":"'FR-16(7)(v)-1 Functional'!C904","v":"WTD NET TRANS & DIST RATIOS"},"Internal",{"$f":"'FR-16(7)(v)-1 Functional'!E904","v":"NT29"},1,{"$f":"ROUND(IF($F$251=0,0,G251/$F$251),5)","v":0.75915999999999995},{"$f":"ROUND(IF($F$251=0,0,H251/$F$251),5)","v":0},{"$f":"ROUND(IF($F$251=0,0,I251/$F$251),5)","v":0.24084},1,0]
[25,null,{"$f":"'FR-16(7)(v)-1 Functional'!C905","v":"WTD NET G & I PLT RATIOS"},"Internal",{"$f":"'FR-16(7)(v)-1 Functional'!E905","v":"G229"},1,{"$f":"ROUND(IF($F$263=0,0,G263/$F$263),5)","v":-1.022E-2},{"$f":"ROUND(IF($F$263=0,0,H263/$F$263),5)","v":0},{"$f":"ROUND(IF($F$263=0,0,I263/$F$263),5)","v":1.0102199999999999},0.99999999999999989,0]
[26,null,{"$f":"'FR-16(7)(v)-1 Functional'!C906","v":"WTD NET C & O PLANT RATIOS"},"Internal",{"$f":"'FR-16(7)(v)-1 Functional'!E906","v":"C229"},1,{"$f":"ROUND(IF($F$275=0,0,G275/$F$275),5)","v":-2.9399999999999999E-3},{"$f":"ROUND(IF($F$275=0,0,H275/$F$275),5)","v":0},{"$f":"ROUND(IF($F$275=0,0,I275/$F$275),5)","v":1.0029399999999999},0.99999999999999989,0]
[27,null,{"$f":"'FR-16(7)(v)-1 Functional'!C907","v":"WTD NET PLANT RATIOS"},"Internal",{"$f":"'FR-16(7)(v)-1 Functional'!E907","v":"NP29"},1,{"$f":"ROUND(IF($F$277=0,0,G277/$F$277),5)","v":0.74938000000000005},{"$f":"ROUND(IF(F277=0,0,H277/F277),5)","v":0},{"$f":"ROUND(IF($F$277=0,0,I277/$F$277),5)","v":0.25062000000000001},1,0]
[28]
[29,"WORKING CAPITAL"]
[30,null,{"$f":"'FR-16(7)(v)-1 Functional'!C910","v":"WTD MATERIAL & SUPPLY RATIOS"},"Internal",{"$f":"'FR-16(7)(v)-1 Functional'!E910","v":"W669"},1,{"$f":"ROUND(IF($F$399=0,0,G399/$F$399),5)","v":0},{"$f":"ROUND(IF(F399=0,0,H399/F399),5)","v":0},{"$f":"ROUND(IF(F399=0,0,I399/F399),5)","v":1},{"$f":"SUM(G912:I912)","v":1},{"$f":"F912-J912","v":0},null,null,null,{"$f":"SUM(G912:I912)","v":1}]
[31,null,{"$f":"'FR-16(7)(v)-1 Functional'!C911","v":"WTD PREPAYMENTS RATIOS"},"Internal",{"$f":"'FR-16(7)(v)-1 Functional'!E911","v":"W689"},1,{"$f":"ROUND(IF($F$405=0,0,G405/$F$405),5)","v":0.74938000000000005},{"$f":"ROUND(IF(F405=0,0,H405/F405),5)","v":0},{"$f":"ROUND(IF(F405=0,0,I405/F405),5)","v":0.25062000000000001},{"$f":"SUM(G913:I913)","v":1},{"$f":"F913-J913","v":0},null,null,null,{"$f":"SUM(G913:I913)","v":1}]
[32,null,{"$f":"'FR-16(7)(v)-1 Functional'!C912","v":"WTD TOTAL WORKING CASH RATIOS"},"Internal",{"$f":"'FR-16(7)(v)-1 Functional'!E912","v":"W719"},1,{"$f":"ROUND(IF($F$408=0,0,G408/F408),5)","v":0},{"$f":"ROUND(IF(F408=0,0,H408/F408),5)","v":0},{"$f":"ROUND(IF(F408=0,0,I408/F408),5)","v":0},{"$f":"SUM(G914:I914)","v":0},{"$f":"F914-J914","v":1},null,null,null,{"$f":"SUM(G914:I914)","v":0}]
[33,null,{"$f":"'FR-16(7)(v)-1 Functional'!C913","v":"WTD TOTAL MISC WRKNG CAP RATIO"},"Internal",{"$f":"'FR-16(7)(v)-1 Functional'!E913","v":"W749"},1,{"$f":"ROUND(IF($F$414=0,0,G414/$F$414),5)","v":0},{"$f":"ROUND(IF(F414=0,0,H414/F414),5)","v":0},{"$f":"ROUND(IF(F414=0,0,I414/F414),5)","v":0},{"$f":"SUM(G915:I915)","v":0},{"$f":"F915-J915","v":1},null,null,null,{"$f":"SUM(G915:I915)","v":0}]
[34,null,{"$f":"'FR-16(7)(v)-1 Functional'!C914","v":"WTD TOTAL WRKNG CAP RATIOS"},"Internal",{"$f":"'FR-16(7)(v)-1 Functional'!E914","v":"WC79"},1,{"$f":"ROUND(IF($F$416=0,0,G416/$F$416),5)","v":1.349E-2},{"$f":"ROUND(IF($F$416=0,0,H416/$F$416),5)","v":0},{"$f":"ROUND(IF($F$416=0,0,I416/$F$416),5)","v":0.98651},{"$f":"SUM(G916:I916)","v":1},{"$f":"F916-J916","v":0}]
[35]
[36,"RATE BASE"]
[37,null,{"$f":"'FR-16(7)(v)-1 Functional'!C917","v":"WTD NET OCRB RATIOS"},"Internal",{"$f":"'FR-16(7)(v)-1 Functional'!E917","v":"RB29"},1,{"$f":"ROUND(IF($F$390=0,0,G390/$F$390),5)","v":0.74689000000000005},{"$f":"ROUND(IF($F$390=0,0,H390/$F$390),5)","v":0},{"$f":"ROUND(IF($F$390=0,0,I390/$F$390),5)","v":0.25311},{"$f":"SUM(G919:I919)","v":1},{"$f":"F919-J919","v":0}]
[38,null,{"$f":"'FR-16(7)(v)-1 Functional'!C918","v":"WTD TOTAL RATE BASE RATIOS"},"Internal",{"$f":"'FR-16(7)(v)-1 Functional'!E918","v":"RB99"},1,{"$f":"ROUND(IF($F$426=0,0,G426/$F$426),5)","v":0.73436999999999997},{"$f":"ROUND(IF($F$426=0,0,H426/$F$426),5)","v":0},{"$f":"ROUND(IF($F$426=0,0,I426/$F$426),5)","v":0.26562999999999998},{"$f":"SUM(G920:I920)","v":1},{"$f":"F920-J920","v":0}]
[39,null,{"$f":"'FR-16(7)(v)-1 Functional'!C919","v":"WTD CWIP RATIO"},"Internal",{"$f":"'FR-16(7)(v)-1 Functional'!E919","v":"CW29"},1,{"$f":"ROUND(IF($F$375=0,0,G375/$F$375),5)","v":0},{"$f":"ROUND(IF($F$375=0,0,H375/$F$375),5)","v":0},{"$f":"ROUND(IF($F$375=0,0,I375/$F$375),5)","v":0},{"$f":"SUM(G921:I921)","v":0},{"$f":"F921-J921","v":1},null,null,null,{"$f":"SUM(G921:I921)","v":0}]
[]
[{"$f":"co_name","v":"DUKE ENERGY KENTUCKY, INC."},null,null,null,null,null,null,null,null,{"$f":"J1","v":"FR-16(7)(v)-10"}]
[{"$f":"$A$2","v":"DISTRIBUTION CLASSIFIED - ELECTRIC COST OF SERVICE"},null,null,null,null,null,null,null,null,{"$f":"J2","v":"WITNESS RESPONSIBLE:"}]
[{"$f":"case_name","v":"CASE NO: 2019-00271"},null,null,null,null,null,null,null,null,{"$f":"Witness","v":"JAMES E. ZIOLKOWSKI"}]
[{"$f":"data_filing","v":"DATA: 12 MONTHS ACTUAL  & 0 MONTHS ESTIMATED"},null,null,null,null,null,null,null,null,{"$f":"\"PAGE \"&Pages&\" OF \"&Pages","v":"PAGE 18 OF 18"}]
[{"$f":"type","v":"TYPE OF FILING: \"X\" ORIGINAL   UPDATED    REVISED  "}]
[]
[]
["LINE",null,null,null,null,"TOTAL","CLASSIFIED",null,null,"TOTAL","ALL"]
["NO.","ALLOCATORS",null,"SOURCE","ALLO","DISTRIBUTION",{"$f":"G9","v":"DEMAND"},"ENERGY","CUSTOMER","AT ISSUE","OTHER"]
[null,null,"Schedule 12.2",null,1,2,3,4,5]
[1,"WEIGHTED O & M EXPENSE RATIOS"]
[2,null,{"$f":"'FR-16(7)(v)-1 Functional'!C932","v":"WTD PROD DEMAND O&M EXP RATIOS"},"Internal",{"$f":"'FR-16(7)(v)-1 Functional'!E932","v":"P349"},1,{"$f":"ROUND(IF($F$457=0,0,G457/$F$457),5)","v":0},{"$f":"ROUND(IF($F$457=0,0,H457/$F$457),5)","v":0},{"$f":"ROUND(IF($F$457=0,0,I457/$F$457),5)","v":0},{"$f":"SUM(G934:I934)","v":0},{"$f":"F934-J934","v":1},null,null,null,{"$f":"SUM(G934:I934)","v":0}]
[3,null,{"$f":"'FR-16(7)(v)-1 Functional'!C933","v":"WTD PROD ENERGY O&M EXP RATIOS"},"Internal",{"$f":"'FR-16(7)(v)-1 Functional'!E933","v":"E349"},1,{"$f":"ROUND(IF($F$453=0,0,G453/$F$453),5)","v":0},{"$f":"ROUND(IF($F$453=0,0,H453/$F$453),5)","v":0},{"$f":"ROUND(IF($F$453=0,0,I453/$F$453),5)","v":0},0,1,null,null,null,{"$f":"SUM(G935:I935)","v":0}]
[4,null,{"$f":"'FR-16(7)(v)-1 Functional'!C934","v":"WTD TOTAL PROD O&M EXP RATIOS"},"Internal",{"$f":"'FR-16(7)(v)-1 Functional'!E934","v":"P459"},1,{"$f":"ROUND(IF($F$459=0,0,G459/$F$459),5)","v":0},{"$f":"ROUND(IF($F$459=0,0,H459/$F$459),5)","v":0},{"$f":"ROUND(IF($F$459=0,0,I459/$F$459),5)","v":0},0,1,null,null,null,{"$f":"SUM(G936:I936)","v":0}]
[5,null,{"$f":"'FR-16(7)(v)-1 Functional'!C935","v":"WTD TRANS O&M EXP RATIOS"},"Internal",{"$f":"'FR-16(7)(v)-1 Functional'!E935","v":"T349"},1,{"$f":"ROUND(IF($F$466=0,0,G466/$F$466),5)","v":0},{"$f":"ROUND(IF($F$466=0,0,H466/$F$466),5)","v":0},{"$f":"ROUND(IF($F$466=0,0,I466/$F$466),5)","v":0},0,1,null,null,null,{"$f":"SUM(G937:I937)","v":0}]
[6,null,{"$f":"'FR-16(7)(v)-1 Functional'!C936","v":"WTD DIST O&M EXP RATIOS"},"Internal",{"$f":"'FR-16(7)(v)-1 Functional'!E936","v":"D349"},1,{"$f":"ROUND(IF($F$492=0,0,G492/$F$492),5)","v":0.79879},{"$f":"ROUND(IF($F$492=0,0,H492/$F$492),5)","v":0},{"$f":"ROUND(IF($F$492=0,0,I492/$F$492),5)","v":0.20121},1,0]
[7,null,{"$f":"'FR-16(7)(v)-1 Functional'!C937","v":"WTD UNCOLLECTIBLE ACCOUNT O&M"},"Internal",{"$f":"'FR-16(7)(v)-1 Functional'!E937","v":"C311"},1,{"$f":"ROUND(IF($F$496=0,0,G496/$F$496),5)","v":0},{"$f":"ROUND(IF($F$496=0,0,H496/$F$496),5)","v":0},{"$f":"ROUND(IF($F$496=0,0,I496/$F$496),5)","v":1},1,0,null,null,null,{"$f":"SUM(G939:I939)","v":1}]
[8,null,{"$f":"'FR-16(7)(v)-1 Functional'!C938","v":"WTD CUST ACCT O&M EXP RATIOS"},"Internal",{"$f":"'FR-16(7)(v)-1 Functional'!E938","v":"C319"},1,{"$f":"ROUND(IF($F$503=0,0,G503/$F$503),5)","v":0},{"$f":"ROUND(IF($F$503=0,0,H503/$F$503),5)","v":0},{"$f":"ROUND(IF($F$503=0,0,I503/$F$503),5)","v":1},1,0,null,null,null,{"$f":"SUM(G940:I940)","v":1}]
[9,null,{"$f":"'FR-16(7)(v)-1 Functional'!C939","v":"WTD CUST SERV & INFO O&M  EXP RATIOS"},"Internal",{"$f":"'FR-16(7)(v)-1 Functional'!E939","v":"C331"},1,{"$f":"ROUND(IF($F$518=0,0,G518/$F$518),5)","v":0},{"$f":"ROUND(IF($F$518=0,0,H518/$F$518),5)","v":0},{"$f":"ROUND(IF($F$518=0,0,I518/$F$518),5)","v":1},{"$f":"SUM(G941:I941)","v":1},{"$f":"F941-J941","v":0},null,null,null,{"$f":"SUM(G941:I941)","v":1}]
[10,null,{"$f":"'FR-16(7)(v)-1 Functional'!C940","v":"WTD SALES O&M EXP RATIOS"},"Internal",{"$f":"'FR-16(7)(v)-1 Functional'!E940","v":"S319"},1,{"$f":"ROUND(IF($F$522=0,0,G522/$F$522),5)","v":0},{"$f":"ROUND(IF($F$522=0,0,H522/$F$522),5)","v":0},{"$f":"ROUND(IF($F$522=0,0,I522/$F$522),5)","v":1},{"$f":"SUM(G942:I942)","v":1},{"$f":"F942-J942","v":0}]
[11,null,{"$f":"'FR-16(7)(v)-1 Functional'!C941","v":"WTD O&M EXP RATIOS"},"Internal",{"$f":"'FR-16(7)(v)-1 Functional'!E941","v":"OM39"},1,{"$f":"ROUND(IF($F$549=0,0,G549/$F$549),5)","v":0.56342999999999999},{"$f":"ROUND(IF($F$549=0,0,H549/$F$549),5)","v":0},{"$f":"ROUND(IF($F$549=0,0,I549/$F$549),5)","v":0.43657000000000001},{"$f":"SUM(G943:I943)","v":1},{"$f":"F943-J943","v":0}]
[12]
[13,"A & G EXPENSES"]
[14,null,{"$f":"'FR-16(7)(v)-1 Functional'!C944","v":"WTD PROD DEMAND A&G EXP RATIOS"},"Internal",{"$f":"'FR-16(7)(v)-1 Functional'!E944","v":"A300"},1,{"$f":"ROUND(IF($F$525=0,0,G525/$F$525),5)","v":0},{"$f":"ROUND(IF($F$525=0,0,H525/$F$525),5)","v":0},{"$f":"ROUND(IF($F$525=0,0,I525/$F$525),5)","v":0}]
[15,null,{"$f":"'FR-16(7)(v)-1 Functional'!C945","v":"WTD PROD ENERGY A&G EXP RATIOS"},"Internal",{"$f":"'FR-16(7)(v)-1 Functional'!E945","v":"A302"},1,{"$f":"ROUND(IF($F$526=0,0,G526/$F$526),5)","v":0},{"$f":"ROUND(IF($F$526=0,0,H526/$F$526),5)","v":0},{"$f":"ROUND(IF($F$526=0,0,I526/$F$526),5)","v":0},{"$f":"SUM(G947:I947)","v":0},{"$f":"F947-J947","v":1}]
[16,null,{"$f":"'FR-16(7)(v)-1 Functional'!C946","v":"WTD TRANS A&G EXP RATIOS"},"Internal",{"$f":"'FR-16(7)(v)-1 Functional'!E946","v":"A304"},1,{"$f":"ROUND(IF($F$527=0,0,G527/$F$527),5)","v":0},{"$f":"ROUND(IF($F$527=0,0,H527/$F$527),5)","v":0},{"$f":"ROUND(IF($F$527=0,0,I527/$F$527),5)","v":0},0,1]
[17,null,{"$f":"'FR-16(7)(v)-1 Functional'!C947","v":"WTD DIST A&G EXP RATIOS"},"Internal",{"$f":"'FR-16(7)(v)-1 Functional'!E947","v":"A306"},1,{"$f":"ROUND(IF($F$528=0,0,G528/$F$528),5)","v":0.79879},{"$f":"ROUND(IF($F$528=0,0,H528/$F$528),5)","v":0},{"$f":"ROUND(IF($F$528=0,0,I528/$F$528),5)","v":0.20121},1,0]
[18,null,{"$f":"'FR-16(7)(v)-1 Functional'!C948","v":"WTD CUST ACCT A&G EXP RATIOS"},"Internal",{"$f":"'FR-16(7)(v)-1 Functional'!E948","v":"A308"},1,{"$f":"ROUND(IF($F$529=0,0,G529/$F$529),5)","v":0},{"$f":"ROUND(IF($F$529=0,0,H529/$F$529),5)","v":0},{"$f":"ROUND(IF($F$529=0,0,I529/$F$529),5)","v":1},1,0]
[19,null,{"$f":"'FR-16(7)(v)-1 Functional'!C949","v":"WTD CUST SERV & INFO A&G  EXP RATIOS"},"Internal",{"$f":"'FR-16(7)(v)-1 Functional'!E949","v":"A310"},1,{"$f":"ROUND(IF($F$530=0,0,G530/$F$530),5)","v":0},{"$f":"ROUND(IF($F$530=0,0,H530/$F$530),5)","v":0},{"$f":"ROUND(IF($F$530=0,0,I530/$F$530),5)","v":1},1,0]
[20,null,{"$f":"'FR-16(7)(v)-1 Functional'!C950","v":"WTD SALES A&G EXP RATIOS"},"Internal",{"$f":"'FR-16(7)(v)-1 Functional'!E950","v":"A312"},1,{"$f":"ROUND(IF($F$531=0,0,G531/$F$531),5)","v":0},{"$f":"ROUND(IF($F$531=0,0,H531/$F$531),5)","v":0},{"$f":"ROUND(IF($F$531=0,0,I531/$F$531),5)","v":0},0,1]
[21,null,{"$f":"'FR-16(7)(v)-1 Functional'!C951","v":"WTD A&G EXPENSE UNADJUSTED"},"Internal",{"$f":"'FR-16(7)(v)-1 Functional'!E951","v":"A315"},1,{"$f":"ROUND(IF($F$532=0,0,G532/$F$532),5)","v":0.47671999999999998},{"$f":"ROUND(IF($F$532=0,0,H532/$F$532),5)","v":0},{"$f":"ROUND(IF($F$532=0,0,I532/$F$532),5)","v":0.52327999999999997},1,0]
[22,null,{"$f":"'FR-16(7)(v)-1 Functional'!C952","v":"WTD A&G EXP RATIOS"},"Internal",{"$f":"'FR-16(7)(v)-1 Functional'!E952","v":"A357"},1,{"$f":"ROUND(IF($F$547=0,0,G547/$F$547),5)","v":0.47671000000000002},{"$f":"ROUND(IF($F$547=0,0,H547/$F$547),5)","v":0},{"$f":"ROUND(IF($F$547=0,0,I547/$F$547),5)","v":0.52329000000000003},1,0]
[23]
[24,"DEPRECIATION EXPENSES"]
[25,null,{"$f":"'FR-16(7)(v)-1 Functional'!C955","v":"WTD PRODUCTION DEPREC RATIOS"},"Internal",{"$f":"'FR-16(7)(v)-1 Functional'!E955","v":"P489"},1,{"$f":"ROUND(IF($F$563=0,0,G563/$F$563),5)","v":0},{"$f":"ROUND(IF(G563=0,0,H563/G563),5)","v":0},{"$f":"ROUND(IF(H563=0,0,I563/H563),5)","v":0},{"$f":"SUM(G957:I957)","v":0},{"$f":"F957-J957","v":1},null,null,null,{"$f":"SUM(G957:I957)","v":0}]
[26,null,{"$f":"'FR-16(7)(v)-1 Functional'!C956","v":"WTD TRANS DEPREC RATIOS"},"Internal",{"$f":"'FR-16(7)(v)-1 Functional'!E956","v":"T489"},1,{"$f":"ROUND(IF($F$567=0,0,G567/$F$567),5)","v":0},{"$f":"ROUND(IF($F$567=0,0,H567/$F$567),5)","v":0},{"$f":"ROUND(IF($F$567=0,0,I567/$F$567),5)","v":0},0,1,null,null,null,{"$f":"SUM(G958:I958)","v":0}]
[27,null,{"$f":"'FR-16(7)(v)-1 Functional'!C957","v":"WTD DIST DEPREC RATIOS"},"Internal",{"$f":"'FR-16(7)(v)-1 Functional'!E957","v":"D489"},1,{"$f":"ROUND(IF($F$571=0,0,G571/$F$571),5)","v":0.75915999999999995},{"$f":"ROUND(IF($F$571=0,0,H571/$F$571),5)","v":0},{"$f":"ROUND(IF($F$571=0,0,I571/$F$571),5)","v":0.24084},1,0,null,null,null,{"$f":"SUM(G959:I959)","v":1}]
[28,null,{"$f":"'FR-16(7)(v)-1 Functional'!C958","v":"WTD GENERAL DEPREC EXP RATIOS"},"Internal",{"$f":"'FR-16(7)(v)-1 Functional'!E958","v":"G489"},1,{"$f":"ROUND(IF($F$575=0,0,G575/$F$575),5)","v":-1.022E-2},{"$f":"ROUND(IF($F$575=0,0,H575/$F$575),5)","v":0},{"$f":"ROUND(IF($F$575=0,0,I575/$F$575),5)","v":1.0102199999999999},0.99999999999999989,0,null,null,null,{"$f":"SUM(G960:I960)","v":0.99999999999999989}]
[29,null,{"$f":"'FR-16(7)(v)-1 Functional'!C959","v":"WTD COM & OTHER DEP EXP RATIOS"},"Internal",{"$f":"'FR-16(7)(v)-1 Functional'!E959","v":"C489"},1,{"$f":"ROUND(IF($F$579=0,0,G579/$F$579),5)","v":-2.9399999999999999E-3},{"$f":"ROUND(IF($F$579=0,0,H579/$F$579),5)","v":0},{"$f":"ROUND(IF($F$579=0,0,I579/$F$579),5)","v":1.0029399999999999},0.99999999999999989,0]
[30,null,{"$f":"'FR-16(7)(v)-1 Functional'!C960","v":"WTD TOT DEPREC EXP RATIOS"},"Internal",{"$f":"'FR-16(7)(v)-1 Functional'!E960","v":"DE49"},1,{"$f":"ROUND(IF($F$582=0,0,G582/$F$582),5)","v":0.71425000000000005},{"$f":"ROUND(IF($F$582=0,0,H582/$F$582),5)","v":0},{"$f":"ROUND(IF($F$582=0,0,I582/$F$582),5)","v":0.28575},1,0,null,null,null,{"$f":"SUM(G962:I962)","v":1}]
[31]
[32,"OTHER TAXES & MISC EXPENSES"]
[33,null,{"$f":"'FR-16(7)(v)-1 Functional'!C963","v":"WTD R. E. & PROP TAX RATIOS"},"Internal",{"$f":"'FR-16(7)(v)-1 Functional'!E963","v":"L529"},1,{"$f":"ROUND(IF($F$598=0,0,G598/$F$598),5)","v":0.74938000000000005},{"$f":"ROUND(IF(F598=0,0,H598/F598),5)","v":0},{"$f":"1-SUM(G965:H965)","v":0.25061999999999995},{"$f":"SUM(G965:I965)","v":1},{"$f":"F965-J965","v":0},null,null,null,{"$f":"SUM(G965:I965)","v":1}]
[34,null,{"$f":"'FR-16(7)(v)-1 Functional'!C964","v":"WTD MISC TAX RATIOS"},"Internal",{"$f":"'FR-16(7)(v)-1 Functional'!E964","v":"L589"},1,{"$f":"ROUND(IF($F$605=0,0,G605/$F$605),5)","v":0.47671999999999998},{"$f":"ROUND(IF(F605=0,0,H605/F605),5)","v":0},{"$f":"1-SUM(G966:H966)","v":0.52327999999999997},{"$f":"SUM(G966:I966)","v":1},{"$f":"F966-J966","v":0},null,null,null,{"$f":"SUM(G966:I966)","v":1}]
[35,null,{"$f":"'FR-16(7)(v)-1 Functional'!C965","v":"WTD OTHER TAX RATIOS"},"Internal",{"$f":"'FR-16(7)(v)-1 Functional'!E965","v":"L599"},1,{"$f":"ROUND(IF($F$612=0,0,G612/$F$612),5)","v":0.73512999999999995},{"$f":"ROUND(IF(F617=0,0,H617/F617),5)","v":0},{"$f":"1-SUM(G967:H967)","v":0.26487000000000005},{"$f":"SUM(G967:I967)","v":1},{"$f":"F967-J967","v":0},null,null,null,{"$f":"SUM(G967:I967)","v":1}]
[36,null,{"$f":"'FR-16(7)(v)-1 Functional'!C966","v":"WTD OP EXP EX IT & REV RATIOS"},"Internal",{"$f":"'FR-16(7)(v)-1 Functional'!E966","v":"OP69"},1,{"$f":"ROUND(IF($F$618=0,0,G618/$F$618),5)","v":0.62685999999999997},{"$f":"ROUND(IF(F618=0,0,H618/F618),5)","v":0},{"$f":"1-SUM(G968:H968)","v":0.37314000000000003},{"$f":"SUM(G968:I968)","v":1},{"$f":"F968-J968","v":0},null,null,null,{"$f":"SUM(G968:I968)","v":1}]
[37]
[38,"TOTAL COST OF SERVICE"]
[39,null,{"$f":"'FR-16(7)(v)-1 Functional'!C969","v":"WTD TOTAL COST OF SERVICE"},"Internal",{"$f":"'FR-16(7)(v)-1 Functional'!E969","v":"CS09"},1,{"$f":"ROUND(IF($F$770=0,0,G770/$F$770),9)","v":0.65680549600000004},{"$f":"ROUND(IF(F770=0,0,H770/F770),9)","v":0},{"$f":"1-SUM(G971:H971)","v":0.34319450399999996},{"$f":"SUM(G971:I971)","v":1},{"$f":"F971-J971","v":0},null,null,null,{"$f":"SUM(G971:I971)","v":1}]
[40]
[41,"WAGES & SALARIES (K600-K639)"]
[42,null,{"$f":"'FR-16(7)(v)-1 Functional'!C972","v":"WTD RATIOS"},"Internal",{"$f":"'FR-16(7)(v)-1 Functional'!E972","v":"K669"}]
[]
[]
[]
[]
[]
[]
[]
[]
[]
[1,"REVENUE NOT TO BE INCLUDED IN REVENUE TAX CALC"]
[2,null,"GOVERNMENTAL",null,"A357",{"$f":"ROUND(0.06889*0,0)","v":0},{"$f":"ROUND(F985*VLOOKUP(E985,Alloctable_Classified_Distribution,H10,FALSE),0)","v":0},{"$f":"ROUND(F985*VLOOKUP(E985,Alloctable_Classified_Distribution,$H$10,FALSE),0)","v":0},{"$f":"ROUND(F985*VLOOKUP(E985,Alloctable_Classified_Distribution,$I$10,FALSE),0)","v":0},{"$f":"SUM(G985:I985)","v":0},{"$f":"F985-J985","v":0}]
[3,null,"INTERDEPARTMENTAL",null,"A357",0,{"$f":"ROUND(F986*VLOOKUP(E986,Alloctable_Classified_Distribution,H10,FALSE),0)","v":0},0,0,0,0]
[4,null,"UNCOLLECTIBLE EXPENSE",null,"A357",0,{"$f":"ROUND(F987*VLOOKUP(E987,Alloctable_Classified_Distribution,H10,FALSE),0)","v":0},0,0,0,0]
[5,null,"OTHER PROD GAS ASSC COS  489050"," ",{"$f":"'FR-16(7)(v)-1 Functional'!E986","v":"K301"},0,{"$f":"ROUND(F988*VLOOKUP(E988,Alloctable_Classified_Distribution,H10,FALSE),0)","v":0},0,0,0,0]
[6,null,"MISC. REV. - SALE OF MATERIAL",null,"A357",0,{"$f":"ROUND(F989*VLOOKUP(E989,Alloctable_Classified_Distribution,H10,FALSE),0)","v":0},0,0,0,0]
[7,null,"RENT ASSOC. COS  49302,04,05,06,07,08,11 & 50"," ",{"$f":"'FR-16(7)(v)-1 Functional'!E988","v":"NP29"},0,{"$f":"ROUND(F990*VLOOKUP(E990,Alloctable_Classified_Distribution,H10,FALSE),0)","v":0},0,0,0,0]
[8,null,"TOTAL","REXC",null,{"$f":"SUM(F985:F990)","v":0},0,0,0,0,0]
[]
[]
[]
[]
[]
["DO NOT FILE THIS PAGE"]
[]
[{"$f":"co_name","v":"DUKE ENERGY KENTUCKY, INC."},null,null,null,null,null,null,null,null,{"$f":"J1","v":"FR-16(7)(v)-10"}]
[{"$f":"$A$2","v":"DISTRIBUTION CLASSIFIED - ELECTRIC COST OF SERVICE"},null,null,null,null,null,null,null,null,{"$f":"J2","v":"WITNESS RESPONSIBLE:"}]
[{"$f":"case_name","v":"CASE NO: 2019-00271"},null,null,null,null,null,null,null,null,{"$f":"Witness","v":"JAMES E. ZIOLKOWSKI"}]
[{"$f":"data_filing","v":"DATA: 12 MONTHS ACTUAL  & 0 MONTHS ESTIMATED"},null,null,null,null,null,null,null,null,{"$f":"\"PAGE \"&Pages&\" OF \"&Pages","v":"PAGE 18 OF 18"}]
[{"$f":"type","v":"TYPE OF FILING: \"X\" ORIGINAL   UPDATED    REVISED  "}]
[]
[]
["LINE",null,null,null,null,"TOTAL","CLASSIFIED",null,null,"TOTAL","ALL"]
["NO.","INCOME TAX BASED ON REVENUES",null,"ALLO",null,"DISTRIBUTION",{"$f":"G9","v":"DEMAND"},"ENERGY","CUSTOMER","AT ISSUE","OTHER"]
[null,null,"Schedule 13",null,null,null,3,4,5]
[1,"NET INCOME COMPUTATION"]
[2,null,{"$f":"'FR-16(7)(v)-1 Functional'!C1008","v":"TOTAL ELECTRIC COST OF SERVICE"},null,null,{"$f":"F770","v":73723873},48422245,0,25301628,73723873,0]
[3,null,{"$f":"'FR-16(7)(v)-1 Functional'!C1009","v":"TOTAL OTHER OPERATING REVENUES"},null,null,{"$f":"F750","v":1525537},1158127,0,367410,1525537,0]
[4,null,{"$f":"'FR-16(7)(v)-1 Functional'!C1010","v":"  TOTAL ELECTRIC REVENUE"},null,null,{"$f":"SUM(F1009:F1011)","v":75249410},49580372,0,25669038,75249410,0]
[5,null,{"$f":"'FR-16(7)(v)-1 Functional'!C1011","v":"TOTAL OP EXP EX INC & REV TAX"},null,null,{"$f":"-F618","v":-49671232},-31136818,0,-18534414,-49671232,0]
[6,null,{"$f":"'FR-16(7)(v)-1 Functional'!C1012","v":"FIRM SERVICE REVENUE TAX"},null,null,{"$f":"-ROUND(F817*F1010,0)","v":0},{"$f":"-ROUND(G817*G1010,0)","v":0},{"$f":"-ROUND(H817*H1010,0)","v":0},{"$f":"-ROUND(I817*I1010,0)","v":0},{"$f":"SUM(G1014:I1014)","v":0},{"$f":"-ROUND('FR-16(7)(v)-1 Functional'!K817*K1010,0)","v":0}]
[7,null,{"$f":"'FR-16(7)(v)-1 Functional'!C1013","v":"  NET INCOME"},null,null,{"$f":"SUM(F1012:F1014)","v":25578178},{"$f":"SUM(G1012:G1014)","v":18443554},{"$f":"SUM(H1012:H1014)","v":0},{"$f":"SUM(I1012:I1014)","v":7134624},{"$f":"SUM(G1015:I1015)","v":25578178},{"$f":"SUM(K1012:K1014)","v":0}]
[8]
[9,"ADJUSTMENTS TO NET INCOME"]
[10,null,{"$f":"'FR-16(7)(v)-1 Functional'!C1016","v":"TOTAL INTEREST EXPENSE"},null,null,{"$f":"-F633","v":-6941051},-5097300,0,-1843751,-6941051,0]
[11,null,{"$f":"'FR-16(7)(v)-1 Functional'!C1017","v":"TOTAL OTHER DEDUCTIONS"},null,null,{"$f":"-F639","v":-17562458},-12574832,0,-4987626,-17562458,0]
[12,null,{"$f":"'FR-16(7)(v)-1 Functional'!C1018","v":"  PRELIMINARY TAXABLE INCOME"},null,null,{"$f":"SUM(F1017:F1019)+F1015","v":1074669},{"$f":"SUM(G1017:G1019)+G1015","v":771422},{"$f":"SUM(H1017:H1019)+H1015","v":0},{"$f":"SUM(I1017:I1019)+I1015","v":303247},{"$f":"SUM(G1020:I1020)","v":1074669},{"$f":"SUM(K1017:K1019)+K1015","v":0}]
[13]
[14,"INCOME TAX BASED ON REVENUES"]
[15,"FEDERAL INCOME TAX COMPUTATION"]
[16,null,{"$f":"'FR-16(7)(v)-1 Functional'!C1022","v":"PRELIMINARY TAXABLE INCOME"},null,null,{"$f":"F1020","v":1074669},771422,0,303247,1074669,0]
[17,null,{"$f":"'FR-16(7)(v)-1 Functional'!C1023","v":"  NET FEDERAL TAXABLE INCOME"},null,null,{"$f":"SUM(F1024:F1024)","v":1074669},771422,0,303247,1074669,0]
[18,null,{"$f":"'FR-16(7)(v)-1 Functional'!C1024","v":"  FEDERAL INCOME TAX RATE"},null,null,{"$f":"F815","v":0.35},{"$f":"G815","v":0.21},{"$f":"H815","v":0.21},{"$f":"I815","v":0.21},null,{"$f":"'FR-16(7)(v)-1 Functional'!K815","v":0.21}]
[19,null,{"$f":"'FR-16(7)(v)-1 Functional'!C1025","v":"PRELIMINARY FIT = FI01 * K190"},null,null,{"$f":"ROUND(F1026*F1025,0)","v":376134},{"$f":"ROUND(G1026*G1025,0)","v":161999},{"$f":"ROUND(H1026*H1025,0)","v":0},{"$f":"ROUND(I1026*I1025,0)","v":63682},{"$f":"SUM(G1027:I1027)","v":225681},{"$f":"ROUND(K1026*K1025,0)","v":0}]
[20,null,{"$f":"'FR-16(7)(v)-1 Functional'!C1026","v":"TOTAL FED DEF IT (410 & 411)"},null,null,{"$f":"F649","v":827940},565235,0,262705,827940,0]
[21,null,{"$f":"'FR-16(7)(v)-1 Functional'!C1027","v":"TOTAL AMORTIZED ITC"},null,null,{"$f":"-F653","v":-164},-123,0,-41,-164,0]
[22,null,{"$f":"'FR-16(7)(v)-1 Functional'!C1028","v":"  NET FED INC TAX ALLOWABLE"},null,null,{"$f":"SUM(F1027:F1029)","v":1203910},727111,0,326346,1053457,0]
[23]
[24,"FEDERAL INCOME TAX PAYABLE"]
[25,null,{"$f":"'FR-16(7)(v)-1 Functional'!C1031","v":"PRELIM FIT"},null,null,{"$f":"F1027","v":376134},161999,0,63682,225681,0]
[26,null,{"$f":"'FR-16(7)(v)-1 Functional'!C1032","v":"TEST YEAR INV TAX CREDIT"},null,null,{"$f":"-F658","v":0},0,0,0,0,0]
[27,null,{"$f":"'FR-16(7)(v)-1 Functional'!C1033","v":"  FED INC TAX PAYABLE"},null,null,{"$f":"SUM(F1032:F1034)","v":376134},161999,0,63682,225681,0]
[28]
[29,"PRELIMINARY SUMMARY"]
[30,null,{"$f":"'FR-16(7)(v)-1 Functional'!C1036","v":"NET INCOME"},null,null,{"$f":"F1015","v":25578178},18443554,0,7134624,25578178,0]
[31,null,{"$f":"'FR-16(7)(v)-1 Functional'!C1037","v":"NET FED INC TAX ALLOWABLE"},null,null,{"$f":"-F1030","v":-1203910},-727111,0,-326346,-1053457,0]
[32,null,{"$f":"'FR-16(7)(v)-1 Functional'!C1038","v":"  OVERALL RETURN EARNED"},null,null,{"$f":"SUM(F1037:F1039)","v":24374268},17716443,0,6808278,24524721,0]
[33]
[34,null,{"$f":"'FR-16(7)(v)-1 Functional'!C1040","v":"  RATE OF RETURN EARNED"},null,null,{"$f":"IF(F426=0,0,ROUND(F1040/F426,5))","v":6.9980000000000001E-2},6.9260000000000002E-2,0,7.3580000000000007E-2,7.041E-2,0]

{"sheet":"FR-16(7)(v)-11 DIST Demand","index":14,"n_rows":1042,"n_cols":23,"rows_kept":1042,"cut":false,"hidden":false,"merged":[]}
[{"$f":"co_name","v":"DUKE ENERGY KENTUCKY, INC."},null,null,null,null,null,null,null,null,"FR-16(7)(v)-10",null,null,null,null,null,null,null,"FR-16(7)(v)-11"]
[{"$f":"\"DISTRIBUTION \"&F9&\" ALLOCATED - ELECTRIC COST OF SERVICE\"","v":"DISTRIBUTION DEMAND ALLOCATED - ELECTRIC COST OF SERVICE"},null,null,null,null,null,null,null,null,null,null,null,null,null,null,null,null,"WITNESS RESPONSIBLE:"]
[{"$f":"case_name","v":"CASE NO: 2019-00271"},null,null,null,null,null,null,null,null,null,null,null,null,null,null,null,null,{"$f":"Witness","v":"JAMES E. ZIOLKOWSKI"}]
[{"$f":"data_filing","v":"DATA: 12 MONTHS ACTUAL  & 0 MONTHS ESTIMATED"},null,null,null,null,null,null,null,null,null,null,null,null,null,null,null,null,{"$f":"\"PAGE \"&Pages-17&\" OF \"&Pages","v":"PAGE 1 OF 18"}]
[{"$f":"type","v":"TYPE OF FILING: \"X\" ORIGINAL   UPDATED    REVISED  "}]
[]
[null,null,null,null,null,{"$f":"'FR-16(7)(v)-3 PROD Demand'!F7","v":"TOTAL"},null,{"$f":"'FR-16(7)(v)-3 PROD Demand'!H7","v":"DS"},{"$f":"'FR-16(7)(v)-3 PROD Demand'!I7","v":"GSFL"},{"$f":"'FR-16(7)(v)-3 PROD Demand'!J7","v":"EH"},{"$f":"'FR-16(7)(v)-3 PROD Demand'!K7","v":"SP"},{"$f":"'FR-16(7)(v)-3 PROD Demand'!L7","v":"DT SEC"},{"$f":"'FR-16(7)(v)-3 PROD Demand'!M7","v":"DT PRI"},{"$f":"'FR-16(7)(v)-3 PROD Demand'!N7","v":"DP"},{"$f":"'FR-16(7)(v)-3 PROD Demand'!O7","v":"TT"},null,{"$f":"'FR-16(7)(v)-3 PROD Demand'!Q7","v":"OTHER"}]
["LINE",null,null,null,null,{"$f":"'FR-16(7)(v)-10 DIST Classified'!F9","v":"DISTRIBUTION"},{"$f":"'FR-16(7)(v)-3 PROD Demand'!G8","v":"RS"},{"$f":"'FR-16(7)(v)-3 PROD Demand'!H8","v":"SECONDARY"},{"$f":"'FR-16(7)(v)-3 PROD Demand'!I8","v":"SECONDARY"},{"$f":"'FR-16(7)(v)-3 PROD Demand'!J8","v":"SECONDARY"},{"$f":"'FR-16(7)(v)-3 PROD Demand'!K8","v":"SECONDARY"},{"$f":"'FR-16(7)(v)-3 PROD Demand'!L8","v":"SECONDARY"},{"$f":"'FR-16(7)(v)-3 PROD Demand'!M8","v":"PRIMARY"},{"$f":"'FR-16(7)(v)-3 PROD Demand'!N8","v":"PRIMARY"},{"$f":"'FR-16(7)(v)-3 PROD Demand'!O8","v":"TRANSMISSION"},{"$f":"'FR-16(7)(v)-3 PROD Demand'!P8","v":"LT"},{"$f":"'FR-16(7)(v)-3 PROD Demand'!Q8","v":"WATER"},{"$f":"'FR-16(7)(v)-3 PROD Demand'!R8","v":"TOTAL"},{"$f":"'FR-16(7)(v)-3 PROD Demand'!S8","v":"ALL"}]
["NO.","SUMMARY OF RESULTS",null,"ALLO",null,{"$f":"'FR-16(7)(v)-3 PROD Demand'!F9","v":"DEMAND"},{"$f":"'FR-16(7)(v)-3 PROD Demand'!G9","v":"RESIDENTIAL"},{"$f":"'FR-16(7)(v)-3 PROD Demand'!H9","v":"DISTRIBUTION"},{"$f":"'FR-16(7)(v)-3 PROD Demand'!I9","v":"DISTRIBUTION"},{"$f":"'FR-16(7)(v)-3 PROD Demand'!J9","v":"DISTRIBUTION"},{"$f":"'FR-16(7)(v)-3 PROD Demand'!K9","v":"DISTRIBUTION"},{"$f":"'FR-16(7)(v)-3 PROD Demand'!L9","v":"DISTRIBUTION"},{"$f":"'FR-16(7)(v)-3 PROD Demand'!M9","v":"DISTRIBUTION"},{"$f":"'FR-16(7)(v)-3 PROD Demand'!N9","v":"DISTRIBUTION"},{"$f":"'FR-16(7)(v)-3 PROD Demand'!O9","v":"TIME OF DAY"},{"$f":"'FR-16(7)(v)-3 PROD Demand'!P9","v":"LIGHTING"},{"$f":"'FR-16(7)(v)-3 PROD Demand'!Q9","v":"PUMPING"},{"$f":"'FR-16(7)(v)-3 PROD Demand'!R9","v":"AT ISSUE"},{"$f":"'FR-16(7)(v)-3 PROD Demand'!S9","v":"OTHER"}]
[null,null,"Schedule 1",null,null,null,3,4,5,6,7,8,9,10,11,12,13]
[1,"NET INCOME COMPUTATION"]
[2,null,{"$f":"'FR-16(7)(v)-1 Functional'!C12","v":"GROSS ELECTRIC PLANT IN SERVICE"},null,null,{"$f":"F123","v":424757089},{"$f":"G123","v":199393720},{"$f":"H123","v":117755408},{"$f":"I123","v":547937},{"$f":"J123","v":2582524},29733,60137106,39608600,1987863,0,2667474,{"$f":"Q123","v":46724},{"$f":"SUM(G12:Q12)","v":424757089},{"$f":"F12-R12","v":0}]
[3,null,{"$f":"'FR-16(7)(v)-1 Functional'!C13","v":"TOTAL DEPRECIATION RESERVE"},null,null,{"$f":"-F200","v":-95277062},{"$f":"-G200","v":-44752106},{"$f":"-H200","v":-26399957},{"$f":"-I200","v":-122842},{"$f":"-J200","v":-578981},-6664,-13482325,-8879976,-445665,-46,-598025,{"$f":"-Q200","v":-10475},{"$f":"SUM(G13:Q13)","v":-95277062},{"$f":"F13-R13","v":0}]
[4,null,{"$f":"'FR-16(7)(v)-1 Functional'!C14","v":"TOTAL RATE BASE ADJUSTMENTS"},null,null,{"$f":"F421","v":-73690050},{"$f":"G421","v":-34564264},{"$f":"H421","v":-20443955},{"$f":"I421","v":-95157},{"$f":"J421","v":-447862},-5157,-10443790,-6879235,-345044,5550,-463064,{"$f":"Q421","v":-8072},{"$f":"SUM(G14:Q14)","v":-73690050},{"$f":"F14-R14","v":0}]
[5,null,{"$f":"'FR-16(7)(v)-1 Functional'!C15","v":"  TOTAL RATE BASE"},null,null,{"$f":"SUM(F12:F14)","v":255789977},{"$f":"SUM(G12:G14)","v":120077350},{"$f":"SUM(H12:H14)","v":70911496},{"$f":"SUM(I12:I14)","v":329938},{"$f":"SUM(J12:J14)","v":1555681},17912,36210991,23849389,1197154,5504,1606385,{"$f":"SUM(Q12:Q14)","v":28177},{"$f":"SUM(R12:R14)","v":255789977},{"$f":"F15-R15","v":0}]
[6]
[7,"OPERATING EXPENSES"]
[8,null,{"$f":"'FR-16(7)(v)-1 Functional'!C18","v":"TOTAL O&M EXPENSE"},null,null,{"$f":"F549","v":16646493},{"$f":"G549","v":8584234},{"$f":"H549","v":4214381},{"$f":"I549","v":18186},{"$f":"J549","v":107081},1165,2044701,1320012,72140,186933,94703,{"$f":"Q549","v":2957},{"$f":"SUM(G18:Q18)","v":16646493},{"$f":"F18-R18","v":0}]
[9,null,{"$f":"'FR-16(7)(v)-1 Functional'!C19","v":"TOTAL DEPRECIATION EXPENSE"},null,null,{"$f":"F582","v":10443209},{"$f":"G582","v":4897854},{"$f":"H582","v":2897525},{"$f":"I582","v":13483},{"$f":"J582","v":63546},732,1479753,974622,48914,-8,65638,{"$f":"Q582","v":1150},{"$f":"SUM(G19:Q19)","v":10443209},0]
[10,null,{"$f":"'FR-16(7)(v)-1 Functional'!C20","v":"TOTAL OTHER TAX & MISC EXPENSE"},null,null,{"$f":"F612","v":4047116},{"$f":"G612","v":1904578},{"$f":"H612","v":1119270},{"$f":"I612","v":5204},{"$f":"J612","v":24596},284,570826,375716,18893,1956,25339,{"$f":"$Q$612","v":454},{"$f":"SUM(G20:Q20)","v":4047116},0]
[11,null,{"$f":"'FR-16(7)(v)-1 Functional'!C21","v":"  TOTAL OP EXP EXCLUDING INC & REV TAX"},null,null,{"$f":"SUM(F17:F20)","v":31136818},15386666,8231176,36873,{"$f":"SUM(J17:J20)","v":195223},2181,4095280,2670350,139947,188881,185680,4561,31136818,0]
[12,null,{"$f":"'FR-16(7)(v)-1 Functional'!C22","v":"NET FED INCOME TAX EXP ALLOWABLE"},null,null,{"$f":"F676","v":744642},{"$f":"G676","v":391512},{"$f":"H676","v":184608},{"$f":"I676","v":785},{"$f":"J676","v":4834},52,88582,56929,3179,9893,4126,{"$f":"$Q$676","v":142},{"$f":"SUM(G22:Q22)","v":744642},0]
[13,null,"NET STATE INCOME TAX EXP ALLOWABLE",null,null,{"$f":"F722","v":455192},{"$f":"G722","v":242541},111178,464,2983,32,52788,33780,1914,6932,2487,93,{"$f":"SUM(G23:Q23)","v":455192},0]
[14,null,"RESERVED",{"$f":"'FR-16(7)(v)-1 Functional'!D24","v":"CW29"},null,{"$f":"'FR-16(7)(v)-10 DIST Classified'!G24","v":0},{"$f":"F24-SUM(H24:Q24)","v":0},{"$f":"ROUND(F24*VLOOKUP(D73,ALLOCTABLE_Distr_Demand,$H$10,FALSE),0)","v":0},{"$f":"ROUND(F24*VLOOKUP($D$24,ALLOCTABLE_Distr_Demand,$I$10,FALSE),0)","v":0},{"$f":"ROUND(F24*VLOOKUP($D$24,ALLOCTABLE_Distr_Demand,$J$10,FALSE),0)","v":0},{"$f":"ROUND(F24*VLOOKUP($D$24,ALLOCTABLE_Distr_Demand,$K$10,FALSE),0)","v":0},{"$f":"ROUND(F24*VLOOKUP($D$24,ALLOCTABLE_Distr_Demand,$L$10,FALSE),0)","v":0},{"$f":"ROUND(F24*VLOOKUP($D$24,ALLOCTABLE_Distr_Demand,$M$10,FALSE),0)","v":0},{"$f":"ROUND(F24*VLOOKUP($D$24,ALLOCTABLE_Distr_Demand,$N$10,FALSE),0)","v":0},{"$f":"ROUND(F24*VLOOKUP($D$24,ALLOCTABLE_Distr_Demand,$O$10,FALSE),0)","v":0},{"$f":"ROUND(F24*VLOOKUP($D$24,ALLOCTABLE_Distr_Demand,$P$10,FALSE),0)","v":0},{"$f":"ROUND(F24*VLOOKUP(D24,ALLOCTABLE_Distr_Demand,$Q$10,FALSE),0)","v":0},{"$f":"SUM(G24:Q24)","v":0},{"$f":"F24-R24","v":0}]
[15,null,{"$f":"'FR-16(7)(v)-1 Functional'!C25","v":"REVENUE TAX"},null,null,{"$f":"F767","v":0},{"$f":"G767","v":0},{"$f":"H767","v":0},{"$f":"I767","v":0},{"$f":"J767","v":0},0,0,0,0,0,0,{"$f":"Q767","v":0},{"$f":"SUM(G25:Q25)","v":0},0]
[16,null,{"$f":"'FR-16(7)(v)-1 Functional'!C26","v":"  TOTAL OPERATING EXPENSE"},null,null,{"$f":"SUM(F21:F25)","v":32336652},16020719,8526962,38122,{"$f":"SUM(J21:J25)","v":203040},2265,4236650,2761059,145040,205706,192293,4796,32336652,0]
[17]
[18,"RETURN ON RATE BASE",null,null,null,{"$f":"F433","v":17243720},8094720,4780476,22244,104842,1207,2441193,1607804,80701,345,108291,1897,{"$f":"SUM(G28:Q28)","v":17243720},{"$f":"F28-R28","v":0}]
[19,"TOTAL OTHER OPERATING REVENUES",null,null,null,{"$f":"-F750","v":-1158127},{"$f":"-G750","v":-543660},{"$f":"-H750","v":-321068},{"$f":"-I750","v":-1494},{"$f":"-J750","v":-7042},-80,-163967,-107996,-5420,0,-7273,{"$f":"-$Q$750","v":-127},{"$f":"SUM(G29:Q29)","v":-1158127},0]
[20,null,{"$f":"'FR-16(7)(v)-1 Functional'!C30","v":"TOTAL ELECTRIC COST OF SERVICE"},null,null,{"$f":"SUM(F26:F29)","v":48422245},23571779,12986370,58872,{"$f":"SUM(J26:J29)","v":300840},3392,6513876,4260867,220321,206051,293311,6566,48422245,0]
[21,"ADJUSTMENT FOR INTERCLASS SUBSIDIZATION",null,{"$f":"1-'WP FR-16(7)(v) Rate Incr'!I11","v":0.95},null,null,null,null,null,null,null,null,null,null,null,null,null,null,0]
[22,{"$f":"'FR-16(7)(v)-1 Functional'!$B$32","v":"REQUESTED REVENUES (COST OF SERVICE ADJUSTED FOR SUBSIDIES)"},null,null,null,{"$f":"F31+F30","v":48422245},23571779,12986370,58872,{"$f":"J31+J30","v":300840},3392,6513876,4260867,220321,206051,293311,6566,48422245,0]
[23,"PROPOSED REVENUES",null,null,null,{"$f":"F870","v":52183002},26909731,13211171,56879,{"$f":"J870","v":335537},3653,6409638,4138112,225952,586015,296921,9393,52183002,0]
[24,"DIFFERENCE (REQUESTED LESS PROPOSED)",null,null,null,{"$f":"F32-F33","v":-3760757},{"$f":"G32-G33","v":-3337952},-224801,1993,{"$f":"J32-J33","v":-34697},-261,104238,122755,-5631,-379964,-3610,-2827,-3760757,0]
[25]
[26,"TOTAL RETURN EARNED",null,null,null,{"$f":"F777+F28","v":20067104},{"$f":"G777+G28","v":10600684},{"$f":"H777+H28","v":4949245},{"$f":"I777+I28","v":20748},{"$f":"J777+J28","v":130891},1403,2362936,1515646,84928,285603,111001,{"$f":"Q777+Q28","v":4019},{"$f":"R777+R28","v":20067104},{"$f":"F36-R36","v":0}]
[27,"RATE OF RETURN EARNED",null,null,null,{"$f":"IF(F431=0,0,ROUND(F36/F431,5))","v":7.8100000000000003E-2},8.7889999999999996E-2,6.948E-2,6.2600000000000003E-2,8.3779999999999993E-2,7.8009999999999996E-2,6.4960000000000004E-2,6.3259999999999997E-2,7.0629999999999998E-2,55.575600000000001,6.8790000000000004E-2,0.14219999999999999,7.8100000000000003E-2,0]
[28,"TOTAL RATE OF RETURN ALLOWABLE",null,null,null,{"$f":"$F$811","v":6.7100000000000007E-2},{"$f":"$F$811","v":6.7100000000000007E-2},6.7100000000000007E-2,6.7100000000000007E-2,6.7100000000000007E-2,6.7100000000000007E-2,6.7100000000000007E-2,6.7100000000000007E-2,6.7100000000000007E-2,6.7100000000000007E-2,6.7100000000000007E-2,6.7100000000000007E-2,{"$f":"F811","v":6.7100000000000007E-2},{"$f":"F811","v":6.7100000000000007E-2},null,null,"Not Part of print range"]
[29,"RETURN EARNED ON COMMON EQUITY",null,null,null,{"$f":"IF(Equity=0,0,(F37-$F$806-$F$807-$F$809)*TotalCap/Equity)","v":0.12086819044514392},0.14116492431234731,0.10299711323009861,8.8733422831083347E-2,0.13264402786758675,0.12068160147190096,9.3626200351675792E-2,9.0101741968198173E-2,0.10538130566598053,115.17888532988552,0.10156659776856947,0.25376100361038789,{"$f":"IF(Equity=0,0,(R37-F806-F807-F809)*TotalCap/Equity)","v":0.12086819044514392},{"$f":"IF(Equity=0,0,(S37-F806-F807-F809)*TotalCap/Equity)","v":-4.1049574113445099E-2},null,null,"Not Filed"]
[30,"ALLOWED RETURN ON COMMON EQUITY",null,null,null,{"$f":"IF(Equity=0,0,(F38-$F$806-$F$807-$F$809)*TotalCap/Equity)","v":9.8062871493229981E-2},9.8062871493229981E-2,9.8062871493229981E-2,9.8062871493229981E-2,9.8062871493229981E-2,9.8062871493229981E-2,9.8062871493229981E-2,9.8062871493229981E-2,9.8062871493229981E-2,9.8062871493229981E-2,9.8062871493229981E-2,9.8062871493229981E-2,{"$f":"IF(Equity=0,0,(R38-F806-F807-F809)*TotalCap/Equity)","v":9.8062871493229981E-2},{"$f":"IF(Equity=0,0,(S38-F806-F807-F809)*TotalCap/Equity)","v":9.8062871493229981E-2}]
[31,null,null,null,null," "]
[32,"PRESENT REVENUES",null,null,null,{"$f":"F869","v":42349493},20615583,11357718,51489,{"$f":"J869","v":263111},2967,5696955,3726501,192690,180210,256526,5743,42349493,{"$f":"F42-R42","v":0}]
[33,"REVENUE INCREASE JUSTIFIED",null,null,null,{"$f":"F30-F42","v":6072752},2956196,1628652,7383,{"$f":"J30-J42","v":37729},425,816921,534366,27631,25841,36785,823,6072752,0]
[34,null,"PER UNIT PRES REV",null,null,{"$f":"IF(F42=0,0,ROUND(F43/F42,5))","v":0.1434},0.1434,0.1434,0.14338999999999999,{"$f":"IF(J42=0,0,ROUND(J43/J42,5))","v":0.1434},0.14324000000000001,0.1434,0.1434,0.1434,0.14338999999999999,0.1434,0.14330000000000001,0.1434,0]
[35,"REVENUE INCREASE REQUESTED",null,null,null,{"$f":"F33-F42","v":9833509},6294148,1853453,5390,{"$f":"J33-J42","v":72426},686,712683,411611,33262,405805,40395,3650,9833509,0]
[36,null,"PER UNIT PRES REV",null,null,{"$f":"IF(F42=0,0,ROUND(F45/F42,5))","v":0.23219999999999999},0.30531000000000003,0.16319,0.10468,{"$f":"IF(J42=0,0,ROUND(J45/J42,5))","v":0.27527000000000001},0.23121,0.12509999999999999,0.11046,0.17262,2.2518500000000001,0.15747,0.63556000000000001,0.23219999999999999,0]
[]
[{"$f":"co_name","v":"DUKE ENERGY KENTUCKY, INC."},null,null,null,null,null,null,null,null,null,null,null,null,null,null,null,null,{"$f":"R1","v":"FR-16(7)(v)-11"}]
[{"$f":"$A$2","v":"DISTRIBUTION DEMAND ALLOCATED - ELECTRIC COST OF SERVICE"},null,null,null,null,null,null,null,null,null,null,null,null,null,null,null,null,{"$f":"R2","v":"WITNESS RESPONSIBLE:"}]
[{"$f":"case_name","v":"CASE NO: 2019-00271"},null,null,null,null,null,null,null,null,null,null,null,null,null,null,null,null,{"$f":"Witness","v":"JAMES E. ZIOLKOWSKI"}]
[{"$f":"data_filing","v":"DATA: 12 MONTHS ACTUAL  & 0 MONTHS ESTIMATED"},null,null,null,null,null,null,null,null,null,null,null,null,null,null,null,null,{"$f":"\"PAGE \"&Pages-16&\" OF \"&Pages","v":"PAGE 2 OF 18"}]
[{"$f":"type","v":"TYPE OF FILING: \"X\" ORIGINAL   UPDATED    REVISED  "}]
[]
[null,null,null,null,null,{"$f":"F$7","v":"TOTAL"},null,{"$f":"H$7","v":"DS"},{"$f":"I$7","v":"GSFL"},{"$f":"J$7","v":"EH"},{"$f":"K$7","v":"SP"},"DT SEC","DT PRI","DP","TT",null,"OTHER"]
["LINE",null,null,null,null,{"$f":"F$8","v":"DISTRIBUTION"},{"$f":"G$8","v":"RS"},{"$f":"H$8","v":"SECONDARY"},{"$f":"I$8","v":"SECONDARY"},{"$f":"J$8","v":"SECONDARY"},{"$f":"K$8","v":"SECONDARY"},"SECONDARY","PRIMARY","PRIMARY","TRANSMISSION","LT","WATER",{"$f":"R8","v":"TOTAL"},"ALL"]
["NO.","GROSS ELECTRIC PLANT IN SERVICE",null,"ALLO",null,{"$f":"F$9","v":"DEMAND"},{"$f":"G$9","v":"RESIDENTIAL"},{"$f":"H$9","v":"DISTRIBUTION"},{"$f":"I$9","v":"DISTRIBUTION"},{"$f":"J$9","v":"DISTRIBUTION"},{"$f":"K$9","v":"DISTRIBUTION"},"DISTRIBUTION","DISTRIBUTION","DISTRIBUTION","TIME OF DAY","LIGHTING","PUMPING",{"$f":"R9","v":"AT ISSUE"},"OTHER"]
[null,null,"Schedule 2",null,null,null,{"$f":"G$10","v":3},{"$f":"H$10","v":4},{"$f":"I$10","v":5},{"$f":"J$10","v":6},{"$f":"K$10","v":7},8,9,10,11,12,13,null," "]
[1,"PRODUCTION PLANT"]
[2,null,"PRODUCTION STEAM",{"$f":"'FR-16(7)(v)-1 Functional'!D59","v":"K201"},null,{"$f":"'FR-16(7)(v)-10 DIST Classified'!G59","v":0},{"$f":"F59-SUM(H59:Q59)","v":0},{"$f":"ROUND(F59*VLOOKUP(D59,ALLOCTABLE_Distr_Demand,$H$10,FALSE),0)","v":0},{"$f":"ROUND(F59*VLOOKUP($D$59,ALLOCTABLE_Distr_Demand,$I$10,FALSE),0)","v":0},{"$f":"ROUND(F59*VLOOKUP($D$59,ALLOCTABLE_Distr_Demand,$J$10,FALSE),0)","v":0},{"$f":"ROUND(F59*VLOOKUP($D$59,ALLOCTABLE_Distr_Demand,$K$10,FALSE),0)","v":0},{"$f":"ROUND(F59*VLOOKUP($D$59,ALLOCTABLE_Distr_Demand,$L$10,FALSE),0)","v":0},{"$f":"ROUND(F59*VLOOKUP($D$59,ALLOCTABLE_Distr_Demand,$M$10,FALSE),0)","v":0},{"$f":"ROUND(F59*VLOOKUP($D$59,ALLOCTABLE_Distr_Demand,$N$10,FALSE),0)","v":0},{"$f":"ROUND(F59*VLOOKUP($D$59,ALLOCTABLE_Distr_Demand,$O$10,FALSE),0)","v":0},{"$f":"ROUND(F59*VLOOKUP($D$59,ALLOCTABLE_Distr_Demand,$P$10,FALSE),0)","v":0},{"$f":"ROUND(F59*VLOOKUP(D59,ALLOCTABLE_Distr_Demand,$Q$10,FALSE),0)","v":0},{"$f":"SUM(G59:Q59)","v":0},{"$f":"F59-R59","v":0}]
[3,null,"PRODUCTION OTHER",{"$f":"'FR-16(7)(v)-1 Functional'!D60","v":"K201"},null,{"$f":"'FR-16(7)(v)-10 DIST Classified'!G60","v":0},{"$f":"F60-SUM(H60:Q60)","v":0},{"$f":"ROUND(F60*VLOOKUP(D60,ALLOCTABLE_Distr_Demand,$H$10,FALSE),0)","v":0},{"$f":"ROUND(F60*VLOOKUP($D$60,ALLOCTABLE_Distr_Demand,$I$10,FALSE),0)","v":0},{"$f":"ROUND(F60*VLOOKUP($D$60,ALLOCTABLE_Distr_Demand,$J$10,FALSE),0)","v":0},{"$f":"ROUND(F60*VLOOKUP($D$60,ALLOCTABLE_Distr_Demand,$K$10,FALSE),0)","v":0},{"$f":"ROUND(F60*VLOOKUP($D$60,ALLOCTABLE_Distr_Demand,$L$10,FALSE),0)","v":0},{"$f":"ROUND(F60*VLOOKUP($D$60,ALLOCTABLE_Distr_Demand,$M$10,FALSE),0)","v":0},{"$f":"ROUND(F60*VLOOKUP($D$60,ALLOCTABLE_Distr_Demand,$N$10,FALSE),0)","v":0},{"$f":"ROUND(F60*VLOOKUP($D$60,ALLOCTABLE_Distr_Demand,$O$10,FALSE),0)","v":0},{"$f":"ROUND(F60*VLOOKUP($D$60,ALLOCTABLE_Distr_Demand,$P$10,FALSE),0)","v":0},{"$f":"ROUND(F60*VLOOKUP(D60,ALLOCTABLE_Distr_Demand,$Q$10,FALSE),0)","v":0},{"$f":"SUM(G60:Q60)","v":0},{"$f":"F60-R60","v":0}]
[4,null,{"$f":"'FR-16(7)(v)-1 Functional'!C61","v":"ADJUSTMENT"},{"$f":"'FR-16(7)(v)-1 Functional'!D61","v":"K201"},null,{"$f":"'FR-16(7)(v)-10 DIST Classified'!G61","v":0},{"$f":"F61-SUM(H61:Q61)","v":0},{"$f":"ROUND(F61*VLOOKUP(D61,ALLOCTABLE_Distr_Demand,$H$10,FALSE),0)","v":0},{"$f":"ROUND(F61*VLOOKUP($D$61,ALLOCTABLE_Distr_Demand,$I$10,FALSE),0)","v":0},{"$f":"ROUND(F61*VLOOKUP($D$61,ALLOCTABLE_Distr_Demand,$J$10,FALSE),0)","v":0},{"$f":"ROUND(F61*VLOOKUP($D$61,ALLOCTABLE_Distr_Demand,$K$10,FALSE),0)","v":0},{"$f":"ROUND(F61*VLOOKUP($D$61,ALLOCTABLE_Distr_Demand,$L$10,FALSE),0)","v":0},{"$f":"ROUND(F61*VLOOKUP($D$61,ALLOCTABLE_Distr_Demand,$M$10,FALSE),0)","v":0},{"$f":"ROUND(F61*VLOOKUP($D$61,ALLOCTABLE_Distr_Demand,$N$10,FALSE),0)","v":0},{"$f":"ROUND(F61*VLOOKUP($D$61,ALLOCTABLE_Distr_Demand,$O$10,FALSE),0)","v":0},{"$f":"ROUND(F61*VLOOKUP($D$61,ALLOCTABLE_Distr_Demand,$P$10,FALSE),0)","v":0},{"$f":"ROUND(F61*VLOOKUP(D61,ALLOCTABLE_Distr_Demand,$Q$10,FALSE),0)","v":0},{"$f":"SUM(G61:Q61)","v":0},{"$f":"F61-R61","v":0}]
[5,null,{"$f":"'FR-16(7)(v)-1 Functional'!C62","v":"  PRODUCTION PLANT IN SERVICE"},null,null,{"$f":"SUM(F59:F61)","v":0},{"$f":"SUM(G59:G61)","v":0},{"$f":"SUM(H59:H61)","v":0},{"$f":"SUM(I59:I61)","v":0},{"$f":"SUM(J59:J61)","v":0},0,0,0,0,0,0,{"$f":"SUM($Q$59:$Q$61)","v":0},{"$f":"SUM(R59:R61)","v":0},{"$f":"SUM(S59:S61)","v":0}]
[6]
[7,"TRANSMISSION PLANT"]
[8,null,"MAIN STEP-UP TRANSFORMERS",{"$f":"'FR-16(7)(v)-1 Functional'!D65","v":"K202"},null,{"$f":"'FR-16(7)(v)-10 DIST Classified'!G65","v":0},{"$f":"F65-SUM(H65:Q65)","v":0},{"$f":"ROUND(F65*VLOOKUP(D65,ALLOCTABLE_Distr_Demand,$H$10,FALSE),0)","v":0},{"$f":"ROUND(F65*VLOOKUP($D$65,ALLOCTABLE_Distr_Demand,$I$10,FALSE),0)","v":0},{"$f":"ROUND(F65*VLOOKUP($D$65,ALLOCTABLE_Distr_Demand,$J$10,FALSE),0)","v":0},{"$f":"ROUND(F65*VLOOKUP($D$65,ALLOCTABLE_Distr_Demand,$K$10,FALSE),0)","v":0},{"$f":"ROUND(F65*VLOOKUP($D$65,ALLOCTABLE_Distr_Demand,$L$10,FALSE),0)","v":0},{"$f":"ROUND(F65*VLOOKUP($D$65,ALLOCTABLE_Distr_Demand,$M$10,FALSE),0)","v":0},{"$f":"ROUND(F65*VLOOKUP($D$65,ALLOCTABLE_Distr_Demand,$N$10,FALSE),0)","v":0},{"$f":"ROUND(F65*VLOOKUP($D$65,ALLOCTABLE_Distr_Demand,$O$10,FALSE),0)","v":0},{"$f":"ROUND(F65*VLOOKUP($D$65,ALLOCTABLE_Distr_Demand,$P$10,FALSE),0)","v":0},{"$f":"ROUND(F65*VLOOKUP(D65,ALLOCTABLE_Distr_Demand,$Q$10,FALSE),0)","v":0},{"$f":"SUM(G65:Q65)","v":0},{"$f":"F65-R65","v":0}]
[9,null,"OTHER TRANSMISSION",{"$f":"'FR-16(7)(v)-1 Functional'!D66","v":"K202"},null,{"$f":"'FR-16(7)(v)-10 DIST Classified'!G66","v":0},{"$f":"F66-SUM(H66:Q66)","v":0},{"$f":"ROUND(F66*VLOOKUP(D66,ALLOCTABLE_Distr_Demand,$H$10,FALSE),0)","v":0},{"$f":"ROUND(F66*VLOOKUP($D$66,ALLOCTABLE_Distr_Demand,$I$10,FALSE),0)","v":0},{"$f":"ROUND(F66*VLOOKUP($D$66,ALLOCTABLE_Distr_Demand,$J$10,FALSE),0)","v":0},{"$f":"ROUND(F66*VLOOKUP($D$66,ALLOCTABLE_Distr_Demand,$K$10,FALSE),0)","v":0},{"$f":"ROUND(F66*VLOOKUP($D$66,ALLOCTABLE_Distr_Demand,$L$10,FALSE),0)","v":0},{"$f":"ROUND(F66*VLOOKUP($D$66,ALLOCTABLE_Distr_Demand,$M$10,FALSE),0)","v":0},{"$f":"ROUND(F66*VLOOKUP($D$66,ALLOCTABLE_Distr_Demand,$N$10,FALSE),0)","v":0},{"$f":"ROUND(F66*VLOOKUP($D$66,ALLOCTABLE_Distr_Demand,$O$10,FALSE),0)","v":0},{"$f":"ROUND(F66*VLOOKUP($D$66,ALLOCTABLE_Distr_Demand,$P$10,FALSE),0)","v":0},{"$f":"ROUND(F66*VLOOKUP(D66,ALLOCTABLE_Distr_Demand,$Q$10,FALSE),0)","v":0},{"$f":"SUM(G66:Q66)","v":0},{"$f":"F66-R66","v":0}]
[10,null,"ADJUSTMENT",{"$f":"'FR-16(7)(v)-1 Functional'!D67","v":"K202"},null,{"$f":"'FR-16(7)(v)-10 DIST Classified'!G67","v":0},{"$f":"F67-SUM(H67:Q67)","v":0},{"$f":"ROUND(F67*VLOOKUP(D67,ALLOCTABLE_Distr_Demand,$H$10,FALSE),0)","v":0},{"$f":"ROUND(F67*VLOOKUP($D$67,ALLOCTABLE_Distr_Demand,$I$10,FALSE),0)","v":0},{"$f":"ROUND(F67*VLOOKUP($D$67,ALLOCTABLE_Distr_Demand,$J$10,FALSE),0)","v":0},{"$f":"ROUND(F67*VLOOKUP($D$67,ALLOCTABLE_Distr_Demand,$K$10,FALSE),0)","v":0},{"$f":"ROUND(F67*VLOOKUP($D$67,ALLOCTABLE_Distr_Demand,$L$10,FALSE),0)","v":0},{"$f":"ROUND(F67*VLOOKUP($D$67,ALLOCTABLE_Distr_Demand,$M$10,FALSE),0)","v":0},{"$f":"ROUND(F67*VLOOKUP($D$67,ALLOCTABLE_Distr_Demand,$N$10,FALSE),0)","v":0},{"$f":"ROUND(F67*VLOOKUP($D$67,ALLOCTABLE_Distr_Demand,$O$10,FALSE),0)","v":0},{"$f":"ROUND(F67*VLOOKUP($D$67,ALLOCTABLE_Distr_Demand,$P$10,FALSE),0)","v":0},{"$f":"ROUND(F67*VLOOKUP(D67,ALLOCTABLE_Distr_Demand,$Q$10,FALSE),0)","v":0},{"$f":"SUM(G67:Q67)","v":0},{"$f":"F67-R67","v":0}]
[11,null,{"$f":"'FR-16(7)(v)-1 Functional'!C68","v":"  TRANSMISSION PLANT IN SERVICE"},null,null,{"$f":"SUM(F65:F67)","v":0},0,0,0,0,0,0,0,0,0,0,0,0,{"$f":"SUM(S65)","v":0}]
[12]
[13,"TOTAL PROD & TRANS PLANT",null,null,null,{"$f":"F68+F62","v":0},{"$f":"G68+G62","v":0},{"$f":"H68+H62","v":0},{"$f":"I68+I62","v":0},{"$f":"J68+J62","v":0},0,0,0,0,0,0,{"$f":"$Q$68+$Q$62","v":0},{"$f":"R68+R62","v":0},{"$f":"S68+S62","v":0}]
[14]
[15,"DISTRIBUTION PLANT"]
[16,null,{"$f":"'FR-16(7)(v)-1 Functional'!C73","v":"SUBSTATIONS"},{"$f":"'FR-16(7)(v)-1 Functional'!D73","v":"K215"},null,{"$f":"'FR-16(7)(v)-10 DIST Classified'!G73","v":90976376},{"$f":"F73-SUM(H73:Q73)","v":42707041},{"$f":"ROUND(F73*VLOOKUP(D73,ALLOCTABLE_Distr_Demand,$H$10,FALSE),0)","v":25221381},{"$f":"ROUND(F73*VLOOKUP($D$73,ALLOCTABLE_Distr_Demand,$I$10,FALSE),0)","v":117360},{"$f":"ROUND(F73*VLOOKUP($D$73,ALLOCTABLE_Distr_Demand,$J$10,FALSE),0)","v":553136},{"$f":"ROUND(F73*VLOOKUP($D$73,ALLOCTABLE_Distr_Demand,$K$10,FALSE),0)","v":6368},{"$f":"ROUND(F73*VLOOKUP($D$73,ALLOCTABLE_Distr_Demand,$L$10,FALSE),0)","v":12880435},{"$f":"ROUND(F73*VLOOKUP($D$73,ALLOCTABLE_Distr_Demand,$M$10,FALSE),0)","v":8483547},{"$f":"ROUND(F73*VLOOKUP($D$73,ALLOCTABLE_Distr_Demand,$N$10,FALSE),0)","v":425769},{"$f":"ROUND(F73*VLOOKUP($D$73,ALLOCTABLE_Distr_Demand,$O$10,FALSE),0)","v":0},{"$f":"ROUND(F73*VLOOKUP($D$73,ALLOCTABLE_Distr_Demand,$P$10,FALSE),0)","v":571332},{"$f":"ROUND(F73*VLOOKUP(D73,ALLOCTABLE_Distr_Demand,$Q$10,FALSE),0)","v":10007},{"$f":"SUM(G73:Q73)","v":90976376},{"$f":"F73-R73","v":0}]
[17,null,{"$f":"'FR-16(7)(v)-1 Functional'!C74","v":"POLES, TOWERS  & FIXTURES - PRIMARY - DEMAND"},{"$f":"'FR-16(7)(v)-1 Functional'!D74","v":"K205"},null,{"$f":"'FR-16(7)(v)-10 DIST Classified'!G74","v":33009975},{"$f":"F74-SUM(H74:Q74)","v":15495872},9151355,{"$f":"ROUND(F74*VLOOKUP(D74,ALLOCTABLE_Distr_Demand,$I$10,FALSE),0)","v":42583},{"$f":"ROUND(F74*VLOOKUP(D74,ALLOCTABLE_Distr_Demand,$J$10,FALSE),0)","v":200701},{"$f":"ROUND(F74*VLOOKUP(D74,ALLOCTABLE_Distr_Demand,$K$10,FALSE),0)","v":2311},{"$f":"ROUND(F74*VLOOKUP(D74,ALLOCTABLE_Distr_Demand,$L$10,FALSE),0)","v":4673552},{"$f":"ROUND(F74*VLOOKUP(D74,ALLOCTABLE_Distr_Demand,$M$10,FALSE),0)","v":3078180},{"$f":"ROUND(F74*VLOOKUP(D74,ALLOCTABLE_Distr_Demand,$N$10,FALSE),0)","v":154487},{"$f":"ROUND(F74*VLOOKUP(D74,ALLOCTABLE_Distr_Demand,$O$10,FALSE),0)","v":0},{"$f":"ROUND(F74*VLOOKUP(D74,ALLOCTABLE_Distr_Demand,$P$10,FALSE),0)","v":207303},{"$f":"ROUND(F74*VLOOKUP(D74,ALLOCTABLE_Distr_Demand,$Q$10,FALSE),0)","v":3631},{"$f":"SUM(G74:Q74)","v":33009975},{"$f":"F74-R74","v":0}]
[18,null,{"$f":"'FR-16(7)(v)-1 Functional'!C75","v":"POLES, TOWERS  & FIXTURES - PRIMARY - CUSTOMER"},"K406",null,{"$f":"'FR-16(7)(v)-10 DIST Classified'!G75","v":0},{"$f":"F75-SUM(H75:Q75)","v":0},0,0,0,0,0,0,0,0,0,{"$f":"ROUND(F75*VLOOKUP(D75,ALLOCTABLE_Distr_Demand,$Q$10,FALSE),0)","v":0},{"$f":"SUM(G75:Q75)","v":0},{"$f":"F75-R75","v":0}]
[19,null,{"$f":"'FR-16(7)(v)-1 Functional'!C76","v":"POLES, TOWERS  & FIXTURES - SECONDARY - DEMAND"},{"$f":"'FR-16(7)(v)-1 Functional'!D76","v":"K206"},null,{"$f":"'FR-16(7)(v)-10 DIST Classified'!G76","v":12624115},5926138,3499783,16285,76755,884,1787322,1177199,59081,0,79279,1389,12624115,0]
[20,null,{"$f":"'FR-16(7)(v)-1 Functional'!C77","v":"POLES, TOWERS  & FIXTURES - SECONDARY - CUSTOMER"},"K406",null,{"$f":"'FR-16(7)(v)-10 DIST Classified'!G77","v":0},0,0,0,0,0,0,0,0,0,0,0,0,0]
[21,null,{"$f":"'FR-16(7)(v)-1 Functional'!C78","v":"CONDUCTORS - OVERHEAD / PRIMARY - DEMAND"},{"$f":"'FR-16(7)(v)-1 Functional'!D78","v":"K205"},null,{"$f":"'FR-16(7)(v)-10 DIST Classified'!G78","v":75222822},35311849,20854023,97037,457355,5266,10650047,7014528,352043,0,472399,8275,75222822,0]
[22,null,{"$f":"'FR-16(7)(v)-1 Functional'!C79","v":"CONDUCTORS - OVERHEAD / PRIMARY - CUSTOMER"},"K406",null,{"$f":"'FR-16(7)(v)-10 DIST Classified'!G79","v":0},0,0,0,0,0,0,0,0,0,0,0,0,0]
[23,null,{"$f":"'FR-16(7)(v)-1 Functional'!C80","v":"CONDUCTORS - OVERHEAD / SECONDARY - DEMAND"},{"$f":"'FR-16(7)(v)-1 Functional'!D80","v":"K206"},null,{"$f":"'FR-16(7)(v)-10 DIST Classified'!G80","v":30629852},14378571,8491514,39513,186230,2144,4336574,2856234,143348,0,192355,3369,30629852,0]
[24,null,{"$f":"'FR-16(7)(v)-1 Functional'!C81","v":"CONDUCTORS - OVERHEAD / SECONDARY - CUSTOMER"},"K406",null,{"$f":"'FR-16(7)(v)-10 DIST Classified'!G81","v":0},0,0,0,0,0,0,0,0,0,0,0,0,0]
[25,null,{"$f":"'FR-16(7)(v)-1 Functional'!C82","v":"CONDUCTORS - UNDERGROUND / PRIMARY - DEMAND"},{"$f":"'FR-16(7)(v)-1 Functional'!D82","v":"K205"},null,{"$f":"'FR-16(7)(v)-10 DIST Classified'!G82","v":56141307},26354414,15564055,72422,341339,3930,7948486,5235177,262741,0,352567,6176,56141307,0]
[26,null,{"$f":"'FR-16(7)(v)-1 Functional'!C83","v":"CONDUCTORS - UNDERGROUND / PRIMARY - CUSTOMER"},"K406",null,{"$f":"'FR-16(7)(v)-10 DIST Classified'!G83","v":0},0,0,0,0,0,0,0,0,0,0,0,0,0]
[27,null,{"$f":"'FR-16(7)(v)-1 Functional'!C84","v":"CONDUCTORS - UNDERGROUND / SECONDARY - DEMAND"},{"$f":"'FR-16(7)(v)-1 Functional'!D84","v":"K206"},null,{"$f":"'FR-16(7)(v)-10 DIST Classified'!G84","v":9617808},4514888,2666345,12407,58476,673,1361689,896861,45011,0,60400,1058,9617808,0]
[28,null,{"$f":"'FR-16(7)(v)-1 Functional'!C85","v":"CONDUCTORS - UNDERGROUND / SECONDARY - CUSTOMER"},"K406",null,{"$f":"'FR-16(7)(v)-10 DIST Classified'!G85","v":0},0,0,0,0,0,0,0,0,0,0,0,0,0]
[29,null,{"$f":"'FR-16(7)(v)-1 Functional'!C86","v":"TRANSFORMERS DEMAND RELATED"},{"$f":"'FR-16(7)(v)-1 Functional'!D86","v":"K215"},null,{"$f":"'FR-16(7)(v)-10 DIST Classified'!G86","v":47116092},{"$f":"F86-SUM(H86:Q86)","v":22117707},{"$f":"ROUND(F86*VLOOKUP(D86,ALLOCTABLE_Distr_Demand,$H$10,FALSE),0)","v":13061994},{"$f":"ROUND(F86*VLOOKUP($D$86,ALLOCTABLE_Distr_Demand,$I$10,FALSE),0)","v":60780},{"$f":"ROUND(F86*VLOOKUP($D$86,ALLOCTABLE_Distr_Demand,$J$10,FALSE),0)","v":286466},{"$f":"ROUND(F86*VLOOKUP($D$86,ALLOCTABLE_Distr_Demand,$K$10,FALSE),0)","v":3298},{"$f":"ROUND(F86*VLOOKUP($D$86,ALLOCTABLE_Distr_Demand,$L$10,FALSE),0)","v":6670696},{"$f":"ROUND(F86*VLOOKUP($D$86,ALLOCTABLE_Distr_Demand,$M$10,FALSE),0)","v":4393576},{"$f":"ROUND(F86*VLOOKUP($D$86,ALLOCTABLE_Distr_Demand,$N$10,FALSE),0)","v":220503},{"$f":"ROUND(F86*VLOOKUP($D$86,ALLOCTABLE_Distr_Demand,$O$10,FALSE),0)","v":0},{"$f":"ROUND(F86*VLOOKUP(D86,ALLOCTABLE_Prod_Demand,$P$10,FALSE),0)","v":295889},{"$f":"ROUND(F86*VLOOKUP(D86,ALLOCTABLE_Prod_Demand,$Q$10,FALSE),0)","v":5183},{"$f":"SUM(G86:Q86)","v":47116092},{"$f":"F86-R86","v":0}]
[30,null,{"$f":"'FR-16(7)(v)-1 Functional'!C87","v":"TRANSFORMERS CUSTOMER RELATED"},"K406",null,{"$f":"'FR-16(7)(v)-10 DIST Classified'!G87","v":0},0,{"$f":"ROUND(F87*VLOOKUP(D87,ALLOCTABLE_Distr_Demand,$H$10,FALSE),0)","v":0},{"$f":"ROUND(F87*VLOOKUP($D$86,ALLOCTABLE_Distr_Demand,$I$10,FALSE),0)","v":0},{"$f":"ROUND(F87*VLOOKUP($D$86,ALLOCTABLE_Distr_Demand,$J$10,FALSE),0)","v":0},{"$f":"ROUND(F87*VLOOKUP($D$86,ALLOCTABLE_Distr_Demand,$K$10,FALSE),0)","v":0},{"$f":"ROUND(F87*VLOOKUP($D$86,ALLOCTABLE_Distr_Demand,$L$10,FALSE),0)","v":0},{"$f":"ROUND(F87*VLOOKUP($D$86,ALLOCTABLE_Distr_Demand,$M$10,FALSE),0)","v":0},{"$f":"ROUND(F87*VLOOKUP($D$86,ALLOCTABLE_Distr_Demand,$N$10,FALSE),0)","v":0},{"$f":"ROUND(F87*VLOOKUP($D$86,ALLOCTABLE_Distr_Demand,$O$10,FALSE),0)","v":0},{"$f":"ROUND(F87*VLOOKUP(D87,ALLOCTABLE_Distr_Demand,$P$10,FALSE),0)","v":0},{"$f":"ROUND(F87*VLOOKUP(D87,ALLOCTABLE_Distr_Demand,$Q$10,FALSE),0)","v":0},0,0]
[31,null,{"$f":"'FR-16(7)(v)-1 Functional'!C88","v":"SERVICES"},{"$f":"'FR-16(7)(v)-1 Functional'!D88","v":"K217"},null,{"$f":"'FR-16(7)(v)-10 DIST Classified'!G88","v":0},0,0,{"$f":"ROUND(F88*VLOOKUP($D$88,ALLOCTABLE_Distr_Demand,$I$10,FALSE),0)","v":0},{"$f":"ROUND(F88*VLOOKUP($D$88,ALLOCTABLE_Distr_Demand,$J$10,FALSE),0)","v":0},{"$f":"ROUND(F88*VLOOKUP($D$88,ALLOCTABLE_Distr_Demand,$K$10,FALSE),0)","v":0},{"$f":"ROUND(F88*VLOOKUP($D$88,ALLOCTABLE_Distr_Demand,$L$10,FALSE),0)","v":0},{"$f":"ROUND(F88*VLOOKUP($D$88,ALLOCTABLE_Distr_Demand,$M$10,FALSE),0)","v":0},{"$f":"ROUND(F88*VLOOKUP($D$88,ALLOCTABLE_Distr_Demand,$N$10,FALSE),0)","v":0},{"$f":"ROUND(F88*VLOOKUP($D$88,ALLOCTABLE_Distr_Demand,$O$10,FALSE),0)","v":0},{"$f":"ROUND(F88*VLOOKUP($D$88,ALLOCTABLE_Distr_Demand,$P$10,FALSE),0)","v":0},0,0,0]
[32,null,{"$f":"'FR-16(7)(v)-1 Functional'!C89","v":"METERS"},{"$f":"'FR-16(7)(v)-1 Functional'!D89","v":"K407"},null,{"$f":"'FR-16(7)(v)-10 DIST Classified'!G89","v":0},0,0,{"$f":"ROUND(F89*VLOOKUP($D$89,ALLOCTABLE_Distr_Demand,$I$10,FALSE),0)","v":0},{"$f":"ROUND(F89*VLOOKUP($D$89,ALLOCTABLE_Distr_Demand,$J$10,FALSE),0)","v":0},{"$f":"ROUND(F89*VLOOKUP($D$89,ALLOCTABLE_Distr_Demand,$K$10,FALSE),0)","v":0},{"$f":"ROUND(F89*VLOOKUP($D$89,ALLOCTABLE_Distr_Demand,$L$10,FALSE),0)","v":0},{"$f":"ROUND(F89*VLOOKUP($D$89,ALLOCTABLE_Distr_Demand,$M$10,FALSE),0)","v":0},{"$f":"ROUND(F89*VLOOKUP($D$89,ALLOCTABLE_Distr_Demand,$N$10,FALSE),0)","v":0},{"$f":"ROUND(F89*VLOOKUP($D$89,ALLOCTABLE_Distr_Demand,$O$10,FALSE),0)","v":0},{"$f":"ROUND(F89*VLOOKUP($D$89,ALLOCTABLE_Distr_Demand,$P$10,FALSE),0)","v":0},0,0,0]
[33,null,{"$f":"'FR-16(7)(v)-1 Functional'!C90","v":"STREET LIGHTS"},{"$f":"'FR-16(7)(v)-1 Functional'!D90","v":"K401"},null,{"$f":"'FR-16(7)(v)-10 DIST Classified'!G90","v":0},0,0,{"$f":"ROUND(F90*VLOOKUP($D$90,ALLOCTABLE_Distr_Demand,$I$10,FALSE),0)","v":0},{"$f":"ROUND(F90*VLOOKUP($D$90,ALLOCTABLE_Distr_Demand,$J$10,FALSE),0)","v":0},{"$f":"ROUND(F90*VLOOKUP($D$90,ALLOCTABLE_Distr_Demand,$K$10,FALSE),0)","v":0},{"$f":"ROUND(F90*VLOOKUP($D$90,ALLOCTABLE_Distr_Demand,$L$10,FALSE),0)","v":0},{"$f":"ROUND(F90*VLOOKUP($D$90,ALLOCTABLE_Distr_Demand,$M$10,FALSE),0)","v":0},{"$f":"ROUND(F90*VLOOKUP($D$90,ALLOCTABLE_Distr_Demand,$N$10,FALSE),0)","v":0},{"$f":"ROUND(F90*VLOOKUP($D$90,ALLOCTABLE_Distr_Demand,$O$10,FALSE),0)","v":0},{"$f":"ROUND(F90*VLOOKUP($D$90,ALLOCTABLE_Distr_Demand,$P$10,FALSE),0)","v":0},0,0,0]
[34,null,{"$f":"'FR-16(7)(v)-1 Functional'!C91","v":"ADJUSTMENT  "},{"$f":"'FR-16(7)(v)-1 Functional'!D91","v":"K209"},null,{"$f":"'FR-16(7)(v)-10 DIST Classified'!G91","v":0},0,0,{"$f":"ROUND(F91*VLOOKUP($D$91,ALLOCTABLE_Distr_Demand,$I$10,FALSE),0)","v":0},{"$f":"ROUND(F91*VLOOKUP($D$91,ALLOCTABLE_Distr_Demand,$J$10,FALSE),0)","v":0},{"$f":"ROUND(F91*VLOOKUP($D$91,ALLOCTABLE_Distr_Demand,$K$10,FALSE),0)","v":0},{"$f":"ROUND(F91*VLOOKUP($D$91,ALLOCTABLE_Distr_Demand,$L$10,FALSE),0)","v":0},{"$f":"ROUND(F91*VLOOKUP($D$91,ALLOCTABLE_Distr_Demand,$M$10,FALSE),0)","v":0},{"$f":"ROUND(F91*VLOOKUP($D$91,ALLOCTABLE_Distr_Demand,$N$10,FALSE),0)","v":0},{"$f":"ROUND(F91*VLOOKUP($D$91,ALLOCTABLE_Distr_Demand,$O$10,FALSE),0)","v":0},{"$f":"ROUND(F91*VLOOKUP($D$91,ALLOCTABLE_Distr_Demand,$P$10,FALSE),0)","v":0},0,0,0]
[35,null,{"$f":"'FR-16(7)(v)-1 Functional'!C92","v":"CONSTRUCTION NOT CLASSIFIED"},{"$f":"'FR-16(7)(v)-1 Functional'!D92","v":"K209"},null,{"$f":"'FR-16(7)(v)-10 DIST Classified'!G92","v":69418742},32587240,19244958,{"$f":"ROUND(F92*VLOOKUP($D$92,ALLOCTABLE_Distr_Demand,$I$10,FALSE),0)","v":89550},{"$f":"ROUND(F92*VLOOKUP($D$92,ALLOCTABLE_Distr_Demand,$J$10,FALSE),0)","v":422066},{"$f":"ROUND(F92*VLOOKUP($D$92,ALLOCTABLE_Distr_Demand,$K$10,FALSE),0)","v":4859},{"$f":"ROUND(F92*VLOOKUP($D$92,ALLOCTABLE_Distr_Demand,$L$10,FALSE),0)","v":9828305},{"$f":"ROUND(F92*VLOOKUP($D$92,ALLOCTABLE_Distr_Demand,$M$10,FALSE),0)","v":6473298},{"$f":"ROUND(F92*VLOOKUP($D$92,ALLOCTABLE_Distr_Demand,$N$10,FALSE),0)","v":324880},{"$f":"ROUND(F92*VLOOKUP($D$92,ALLOCTABLE_Distr_Demand,$O$10,FALSE),0)","v":0},{"$f":"ROUND(F92*VLOOKUP($D$92,ALLOCTABLE_Distr_Demand,$P$10,FALSE),0)","v":435950},7636,69418742,0]
[36,null,{"$f":"'FR-16(7)(v)-1 Functional'!C93","v":"RWIP"},{"$f":"'FR-16(7)(v)-1 Functional'!D93","v":"K215"},null,{"$f":"'FR-16(7)(v)-10 DIST Classified'!G93","v":0},{"$f":"F93-SUM(H93:Q93)","v":0},{"$f":"ROUND(F93*VLOOKUP(D93,ALLOCTABLE_Distr_Demand,$H$10,FALSE),0)","v":0},{"$f":"ROUND(F93*VLOOKUP($D$92,ALLOCTABLE_Distr_Demand,$I$10,FALSE),0)","v":0},{"$f":"ROUND(F93*VLOOKUP($D$92,ALLOCTABLE_Distr_Demand,$J$10,FALSE),0)","v":0},{"$f":"ROUND(F93*VLOOKUP($D$92,ALLOCTABLE_Distr_Demand,$K$10,FALSE),0)","v":0}]
[37,null,{"$f":"'FR-16(7)(v)-1 Functional'!C94","v":"  DISTRIBUTION PLANT IN SERVICE"},null,null,{"$f":"SUM(F73:F93)","v":424757089},{"$f":"SUM(G73:G92)","v":199393720},{"$f":"SUM(H73:H92)","v":117755408},{"$f":"SUM(I73:I92)","v":547937},{"$f":"SUM(J73:J92)","v":2582524},29733,60137106,39608600,1987863,0,2667474,{"$f":"SUM(Q73:Q92)","v":46724},{"$f":"SUM(R73:R92)","v":424757089},{"$f":"SUM(S73:S92)","v":0}]
[38]
[39,"TOTAL TRANS & DIST PLANT",null,null,null,{"$f":"F94+F68","v":424757089},{"$f":"G94+G68","v":199393720},{"$f":"H94+H68","v":117755408},{"$f":"I94+I68","v":547937},{"$f":"J94+J68","v":2582524},29733,60137106,39608600,1987863,0,2667474,{"$f":"Q94+$Q$68","v":46724},{"$f":"R94+R68","v":424757089},{"$f":"S94+S68","v":0}]
[40,"TOTAL GROSS PTD PLANT",null,null,null,{"$f":"F94+F70","v":424757089},{"$f":"G94+G70","v":199393720},{"$f":"H94+H70","v":117755408},{"$f":"I94+I70","v":547937},{"$f":"J94+J70","v":2582524},29733,60137106,39608600,1987863,0,2667474,{"$f":"Q94+Q70","v":46724},{"$f":"R94+R70","v":424757089},{"$f":"S94+S70","v":0}]
[41]
[42,"GENERAL & INTANGIBLE PLANT"]
[43,null,{"$f":"'FR-16(7)(v)-1 Functional'!C100","v":"PRODUCTION - DEMAND"},{"$f":"'FR-16(7)(v)-1 Functional'!D100","v":"K201"},null,{"$f":"'FR-16(7)(v)-10 DIST Classified'!G100","v":0},{"$f":"F100-SUM(H100:Q100)","v":0},{"$f":"ROUND(F100*VLOOKUP(D100,ALLOCTABLE_Prod_Demand,$H$10,FALSE),0)","v":0},{"$f":"ROUND(F100*VLOOKUP(D100,ALLOCTABLE_Prod_Demand,$I$10,FALSE),0)","v":0},{"$f":"ROUND(F100*VLOOKUP(D100,ALLOCTABLE_Prod_Demand,$J$10,FALSE),0)","v":0},{"$f":"ROUND(F100*VLOOKUP(D100,ALLOCTABLE_Prod_Demand,$K$10,FALSE),0)","v":0},{"$f":"ROUND(F100*VLOOKUP(D100,ALLOCTABLE_Prod_Demand,$L$10,FALSE),0)","v":0},{"$f":"ROUND(F100*VLOOKUP(D100,ALLOCTABLE_Prod_Demand,$M$10,FALSE),0)","v":0},{"$f":"ROUND(F100*VLOOKUP(D100,ALLOCTABLE_Prod_Demand,$N$10,FALSE),0)","v":0},{"$f":"ROUND(F100*VLOOKUP(D100,ALLOCTABLE_Prod_Demand,$O$10,FALSE),0)","v":0},{"$f":"ROUND(F100*VLOOKUP(D100,ALLOCTABLE_Prod_Demand,$P$10,FALSE),0)","v":0},{"$f":"ROUND(F100*VLOOKUP(D100,ALLOCTABLE_Prod_Demand,$Q$10,FALSE),0)","v":0},{"$f":"SUM(G100:Q100)","v":0},{"$f":"F100-R100","v":0}]
[44,null,{"$f":"'FR-16(7)(v)-1 Functional'!C101","v":"PRODUCTION - ENERGY"},{"$f":"'FR-16(7)(v)-1 Functional'!D101","v":"K301"},null,{"$f":"'FR-16(7)(v)-10 DIST Classified'!G101","v":0},{"$f":"F101-SUM(H101:Q101)","v":0},0,0,0,0,0,0,0,0,0,0,{"$f":"SUM(G101:Q101)","v":0},{"$f":"F101-R101","v":0}]
[45,null,{"$f":"'FR-16(7)(v)-1 Functional'!C102","v":"TRANSMISSION"},{"$f":"'FR-16(7)(v)-1 Functional'!D102","v":"K202"},null,{"$f":"'FR-16(7)(v)-10 DIST Classified'!G102","v":0},0,0,0,0,0,0,0,0,0,0,0,0,0]
[46,null,{"$f":"'FR-16(7)(v)-1 Functional'!C103","v":"DISTRIBUTION - DEMAND"},{"$f":"'FR-16(7)(v)-1 Functional'!D103","v":"K201"},null,{"$f":"'FR-16(7)(v)-10 DIST Classified'!G103","v":0},0,0,0,0,0,0,0,0,0,0,0,0,0]
[47,null,{"$f":"'FR-16(7)(v)-1 Functional'!C104","v":"DISTRIBUTION - CUSTOMER"},{"$f":"'FR-16(7)(v)-1 Functional'!D104","v":"K405"},null,{"$f":"'FR-16(7)(v)-10 DIST Classified'!G104","v":0},0,0,0,0,0,0,0,0,0,0,0,0,0]
[48,null,{"$f":"'FR-16(7)(v)-1 Functional'!C105","v":"CUSTOMER ACCOUNTING"},{"$f":"'FR-16(7)(v)-1 Functional'!D105","v":"A308"},null,{"$f":"'FR-16(7)(v)-10 DIST Classified'!G105","v":0},0,0,0,0,0,0,0,0,0,0,0,0,0]
[49,null,{"$f":"'FR-16(7)(v)-1 Functional'!C106","v":"CUSTOMER SERVICE & INFORMATION"},{"$f":"'FR-16(7)(v)-1 Functional'!D106","v":"A310"},null,{"$f":"'FR-16(7)(v)-10 DIST Classified'!G106","v":0},0,0,0,0,0,0,0,0,0,0,0,0,0]
[50,null,{"$f":"'FR-16(7)(v)-1 Functional'!C107","v":"SALES"},{"$f":"'FR-16(7)(v)-1 Functional'!D107","v":"A312"},null,{"$f":"'FR-16(7)(v)-10 DIST Classified'!G107","v":0},0,0,0,0,0,0,0,0,0,0,0,0,0]
[51,null,{"$f":"'FR-16(7)(v)-1 Functional'!C108","v":"ADJUSTMENT"},{"$f":"'FR-16(7)(v)-1 Functional'!D108","v":"A315"},null,{"$f":"'FR-16(7)(v)-10 DIST Classified'!G108","v":0},0,0,0,0,0,0,0,0,0,0,0,0,0]
[52,null,{"$f":"'FR-16(7)(v)-1 Functional'!C109","v":"  GEN & INTANG PLANT IN SERVICE"},null,null,{"$f":"SUM(F100:F108)","v":0},{"$f":"SUM(G100:G108)","v":0},{"$f":"SUM(H100:H108)","v":0},{"$f":"SUM(I100:I108)","v":0},{"$f":"SUM(J100:J108)","v":0},0,0,0,0,0,0,{"$f":"SUM(Q100:Q108)","v":0},{"$f":"SUM(R100:R108)","v":0},{"$f":"SUM(S100:S108)","v":0}]
[53]
[54,"COMMON & OTHER PLANT"]
[55,null,{"$f":"'FR-16(7)(v)-1 Functional'!C112","v":"PRODUCTION - DEMAND"},{"$f":"'FR-16(7)(v)-1 Functional'!D112","v":"K201"},null,{"$f":"'FR-16(7)(v)-10 DIST Classified'!G112","v":0},{"$f":"F112-SUM(H112:Q112)","v":0},{"$f":"ROUND(F112*VLOOKUP(D112,ALLOCTABLE_Prod_Demand,$H$10,FALSE),0)","v":0},{"$f":"ROUND(F112*VLOOKUP(D112,ALLOCTABLE_Prod_Demand,$I$10,FALSE),0)","v":0},{"$f":"ROUND(F112*VLOOKUP(D112,ALLOCTABLE_Prod_Demand,$J$10,FALSE),0)","v":0},{"$f":"ROUND(F112*VLOOKUP(D112,ALLOCTABLE_Prod_Demand,$K$10,FALSE),0)","v":0},{"$f":"ROUND(F112*VLOOKUP(D112,ALLOCTABLE_Prod_Demand,$L$10,FALSE),0)","v":0},{"$f":"ROUND(F112*VLOOKUP(D112,ALLOCTABLE_Prod_Demand,$M$10,FALSE),0)","v":0},{"$f":"ROUND(F112*VLOOKUP(D112,ALLOCTABLE_Prod_Demand,$N$10,FALSE),0)","v":0},{"$f":"ROUND(F112*VLOOKUP(D112,ALLOCTABLE_Prod_Demand,$O$10,FALSE),0)","v":0},{"$f":"ROUND(F112*VLOOKUP(D112,ALLOCTABLE_Prod_Demand,$P$10,FALSE),0)","v":0},{"$f":"ROUND(F112*VLOOKUP(D112,ALLOCTABLE_Prod_Demand,$Q$10,FALSE),0)","v":0},{"$f":"SUM(G112:Q112)","v":0},{"$f":"F112-R112","v":0}]
[56,null,{"$f":"'FR-16(7)(v)-1 Functional'!C113","v":"PRODUCTION - ENERGY"},{"$f":"'FR-16(7)(v)-1 Functional'!D113","v":"K301"},null,{"$f":"'FR-16(7)(v)-10 DIST Classified'!G113","v":0},0,0,0,0,0,0,0,0,0,0,0,0,0]
[57,null,{"$f":"'FR-16(7)(v)-1 Functional'!C114","v":"TRANSMISSION"},{"$f":"'FR-16(7)(v)-1 Functional'!D114","v":"K202"},null,{"$f":"'FR-16(7)(v)-10 DIST Classified'!G114","v":0},0,0,0,0,0,0,0,0,0,0,0,0,0]
[58,null,{"$f":"'FR-16(7)(v)-1 Functional'!C115","v":"DISTRIBUTION - DEMAND"},{"$f":"'FR-16(7)(v)-1 Functional'!D115","v":"K201"},null,{"$f":"'FR-16(7)(v)-10 DIST Classified'!G115","v":0},0,0,0,0,0,0,0,0,0,0,0,0,0]
[59,null,{"$f":"'FR-16(7)(v)-1 Functional'!C116","v":"DISTRIBUTION - CUSTOMER"},{"$f":"'FR-16(7)(v)-1 Functional'!D116","v":"K405"},null,{"$f":"'FR-16(7)(v)-10 DIST Classified'!G116","v":0},0,0,0,0,0,0,0,0,0,0,0,0,0]
[60,null,{"$f":"'FR-16(7)(v)-1 Functional'!C117","v":"CUSTOMER ACCOUNTING"},{"$f":"'FR-16(7)(v)-1 Functional'!D117","v":"A308"},null,{"$f":"'FR-16(7)(v)-10 DIST Classified'!G117","v":0},0,0,0,0,0,0,0,0,0,0,0,0,0]
[61,null,{"$f":"'FR-16(7)(v)-1 Functional'!C118","v":"CUSTOMER SERVICE & INFORMATION"},{"$f":"'FR-16(7)(v)-1 Functional'!D118","v":"A310"},null,{"$f":"'FR-16(7)(v)-10 DIST Classified'!G118","v":0},0,0,0,0,0,0,0,0,0,0,0,0,0]
[62,null,{"$f":"'FR-16(7)(v)-1 Functional'!C119","v":"SALES"},{"$f":"'FR-16(7)(v)-1 Functional'!D119","v":"A312"},null,{"$f":"'FR-16(7)(v)-10 DIST Classified'!G119","v":0},0,0,0,0,0,0,0,0,0,0,0,0,0]
[63,null,{"$f":"'FR-16(7)(v)-1 Functional'!C120","v":"ADJUSTMENT"},{"$f":"'FR-16(7)(v)-1 Functional'!D120","v":"A315"},null,{"$f":"'FR-16(7)(v)-10 DIST Classified'!G120","v":0},0,0,0,0,0,0,0,0,0,0,0,0,0]
[64,null,{"$f":"'FR-16(7)(v)-1 Functional'!C121","v":"  COMMON & OTHER PLANT IN SERVICE"},null,null,{"$f":"SUM(F112:F120)","v":0},{"$f":"SUM(G112:G120)","v":0},{"$f":"SUM(H112:H120)","v":0},{"$f":"SUM(I112:I120)","v":0},{"$f":"SUM(J112:J120)","v":0},0,0,0,0,0,0,{"$f":"SUM(Q112:Q120)","v":0},{"$f":"SUM(R112:R120)","v":0},{"$f":"SUM(S112:S120)","v":0}]
[65]
[66,"GROSS ELECTRIC PLANT IN SERVICE",null,null,null,{"$f":"F97+F109+F121","v":424757089},{"$f":"G97+G109+G121","v":199393720},{"$f":"H97+H109+H121","v":117755408},{"$f":"I97+I109+I121","v":547937},{"$f":"J97+J109+J121","v":2582524},29733,60137106,39608600,1987863,0,2667474,{"$f":"Q97+Q109+Q121","v":46724},{"$f":"R97+R109+R121","v":424757089},{"$f":"S97+S109+S121","v":0}]
[]
[{"$f":"co_name","v":"DUKE ENERGY KENTUCKY, INC."},null,null,null,null,null,null,null,null,null,null,null,null,null,null,null,null,{"$f":"R1","v":"FR-16(7)(v)-11"}]
[{"$f":"$A$2","v":"DISTRIBUTION DEMAND ALLOCATED - ELECTRIC COST OF SERVICE"},null,null,null,null,null,null,null,null,null,null,null,null,null,null,null,null,{"$f":"R2","v":"WITNESS RESPONSIBLE:"}]
[{"$f":"case_name","v":"CASE NO: 2019-00271"},null,null,null,null,null,null,null,null,null,null,null,null,null,null,null,null,{"$f":"Witness","v":"JAMES E. ZIOLKOWSKI"}]
[{"$f":"data_filing","v":"DATA: 12 MONTHS ACTUAL  & 0 MONTHS ESTIMATED"},null,null,null,null,null,null,null,null,null,null,null,null,null,null,null,null,{"$f":"\"PAGE \"&Pages-15&\" OF \"&Pages","v":"PAGE 3 OF 18"}]
[{"$f":"type","v":"TYPE OF FILING: \"X\" ORIGINAL   UPDATED    REVISED  "}]
[]
[null,null,null,null,null,{"$f":"F$7","v":"TOTAL"},null,{"$f":"H$7","v":"DS"},{"$f":"I$7","v":"GSFL"},{"$f":"J$7","v":"EH"},{"$f":"K$7","v":"SP"},"DT SEC","DT PRI","DP","TT",null,"OTHER"]
["LINE",null,null,null,null,{"$f":"F$8","v":"DISTRIBUTION"},{"$f":"G$8","v":"RS"},{"$f":"H$8","v":"SECONDARY"},{"$f":"I$8","v":"SECONDARY"},{"$f":"J$8","v":"SECONDARY"},{"$f":"K$8","v":"SECONDARY"},"SECONDARY","PRIMARY","PRIMARY","TRANSMISSION","LT","WATER",{"$f":"R8","v":"TOTAL"},"ALL"]
["NO.","DEPRECIATION RESERVE",null,"ALLO",null,{"$f":"F$9","v":"DEMAND"},{"$f":"G$9","v":"RESIDENTIAL"},{"$f":"H$9","v":"DISTRIBUTION"},{"$f":"I$9","v":"DISTRIBUTION"},{"$f":"J$9","v":"DISTRIBUTION"},{"$f":"K$9","v":"DISTRIBUTION"},"DISTRIBUTION","DISTRIBUTION","DISTRIBUTION","TIME OF DAY","LIGHTING","PUMPING",{"$f":"R9","v":"AT ISSUE"},"OTHER"]
[null,null,"Schedule 3",null,null,null,{"$f":"G$10","v":3},{"$f":"H$10","v":4},{"$f":"I$10","v":5},{"$f":"J$10","v":6},{"$f":"K$10","v":7},8,9,10,11,12,13,null," "]
[1,"PRODUCTION PLANT"]
[2,null,"PRODUCTION STEAM",{"$f":"'FR-16(7)(v)-1 Functional'!D136","v":"K201"},null,{"$f":"'FR-16(7)(v)-10 DIST Classified'!G136","v":0},{"$f":"F136-SUM(H136:Q136)","v":0},{"$f":"ROUND(F136*VLOOKUP(D136,ALLOCTABLE_Distr_Demand,$H$10,FALSE),0)","v":0},{"$f":"ROUND(F136*VLOOKUP($D$136,ALLOCTABLE_Distr_Demand,$I$10,FALSE),0)","v":0},{"$f":"ROUND(F136*VLOOKUP($D$136,ALLOCTABLE_Distr_Demand,$J$10,FALSE),0)","v":0},{"$f":"ROUND(F136*VLOOKUP($D$136,ALLOCTABLE_Distr_Demand,$K$10,FALSE),0)","v":0},{"$f":"ROUND(F136*VLOOKUP($D$136,ALLOCTABLE_Distr_Demand,$L$10,FALSE),0)","v":0},{"$f":"ROUND(F136*VLOOKUP($D$136,ALLOCTABLE_Distr_Demand,$M$10,FALSE),0)","v":0},{"$f":"ROUND(F136*VLOOKUP($D$136,ALLOCTABLE_Distr_Demand,$N$10,FALSE),0)","v":0},{"$f":"ROUND(F136*VLOOKUP($D$136,ALLOCTABLE_Distr_Demand,$O$10,FALSE),0)","v":0},{"$f":"ROUND(F136*VLOOKUP($D$136,ALLOCTABLE_Distr_Demand,$P$10,FALSE),0)","v":0},{"$f":"ROUND(F136*VLOOKUP(D136,ALLOCTABLE_Distr_Demand,$Q$10,FALSE),0)","v":0},{"$f":"SUM(G136:Q136)","v":0},{"$f":"F136-R136","v":0}]
[3,null,"PRODUCTION OTHER",{"$f":"'FR-16(7)(v)-1 Functional'!D137","v":"K201"},null,{"$f":"'FR-16(7)(v)-10 DIST Classified'!G137","v":0},{"$f":"F137-SUM(H137:Q137)","v":0},{"$f":"ROUND(F136*VLOOKUP(D136,ALLOCTABLE_Distr_Demand,$H$10,FALSE),0)","v":0},{"$f":"ROUND(F137*VLOOKUP($D$137,ALLOCTABLE_Distr_Demand,$I$10,FALSE),0)","v":0},{"$f":"ROUND(F137*VLOOKUP($D$137,ALLOCTABLE_Distr_Demand,$J$10,FALSE),0)","v":0},{"$f":"ROUND(F137*VLOOKUP($D$137,ALLOCTABLE_Distr_Demand,$K$10,FALSE),0)","v":0},{"$f":"ROUND(F137*VLOOKUP($D$137,ALLOCTABLE_Distr_Demand,$L$10,FALSE),0)","v":0},{"$f":"ROUND(F137*VLOOKUP($D$137,ALLOCTABLE_Distr_Demand,$M$10,FALSE),0)","v":0},{"$f":"ROUND(F137*VLOOKUP($D$137,ALLOCTABLE_Distr_Demand,$N$10,FALSE),0)","v":0},{"$f":"ROUND(F137*VLOOKUP($D$137,ALLOCTABLE_Distr_Demand,$O$10,FALSE),0)","v":0},{"$f":"ROUND(F137*VLOOKUP($D$137,ALLOCTABLE_Distr_Demand,$P$10,FALSE),0)","v":0},{"$f":"ROUND(F137*VLOOKUP(D137,ALLOCTABLE_Distr_Demand,$Q$10,FALSE),0)","v":0},{"$f":"SUM(G137:Q137)","v":0},{"$f":"F137-R137","v":0}]
[4,null,{"$f":"'FR-16(7)(v)-1 Functional'!C138","v":"ADJUSTMENT"},{"$f":"'FR-16(7)(v)-1 Functional'!D138","v":"K201"},null,{"$f":"'FR-16(7)(v)-10 DIST Classified'!G138","v":0},{"$f":"F138-SUM(H138:Q138)","v":0},{"$f":"ROUND(F136*VLOOKUP(D136,ALLOCTABLE_Distr_Demand,$H$10,FALSE),0)","v":0},{"$f":"ROUND(F138*VLOOKUP($D$138,ALLOCTABLE_Distr_Demand,$I$10,FALSE),0)","v":0},{"$f":"ROUND(F138*VLOOKUP($D$138,ALLOCTABLE_Distr_Demand,$J$10,FALSE),0)","v":0},{"$f":"ROUND(F138*VLOOKUP($D$138,ALLOCTABLE_Distr_Demand,$K$10,FALSE),0)","v":0},{"$f":"ROUND(F138*VLOOKUP($D$138,ALLOCTABLE_Distr_Demand,$L$10,FALSE),0)","v":0},{"$f":"ROUND(F138*VLOOKUP($D$138,ALLOCTABLE_Distr_Demand,$M$10,FALSE),0)","v":0},{"$f":"ROUND(F138*VLOOKUP($D$138,ALLOCTABLE_Distr_Demand,$N$10,FALSE),0)","v":0},{"$f":"ROUND(F138*VLOOKUP($D$138,ALLOCTABLE_Distr_Demand,$O$10,FALSE),0)","v":0},{"$f":"ROUND(F138*VLOOKUP($D$138,ALLOCTABLE_Distr_Demand,$P$10,FALSE),0)","v":0},{"$f":"ROUND(F138*VLOOKUP(D138,ALLOCTABLE_Distr_Demand,$Q$10,FALSE),0)","v":0},{"$f":"SUM(G138:Q138)","v":0},{"$f":"F138-R138","v":0}]
[5,null,{"$f":"'FR-16(7)(v)-1 Functional'!C139","v":"  TOTAL PROD DEPREC RESERVE"},null,null,{"$f":"SUM(F136:F138)","v":0},0,0,0,0,0,0,0,0,0,0,0,0,{"$f":"SUM(S136:S136)","v":0}]
[6]
[7,"TRANSMISSION PLANT"]
[8,null,"MAIN STEP-UP TRANSFORMERS",{"$f":"'FR-16(7)(v)-1 Functional'!D142","v":"K202"},null,{"$f":"'FR-16(7)(v)-10 DIST Classified'!G142","v":0},{"$f":"F142-SUM(H142:Q142)","v":0},{"$f":"ROUND(F136*VLOOKUP(D136,ALLOCTABLE_Distr_Demand,$H$10,FALSE),0)","v":0},{"$f":"ROUND(F142*VLOOKUP($D$142,ALLOCTABLE_Distr_Demand,$I$10,FALSE),0)","v":0},{"$f":"ROUND(F142*VLOOKUP($D$142,ALLOCTABLE_Distr_Demand,$J$10,FALSE),0)","v":0},{"$f":"ROUND(F142*VLOOKUP($D$142,ALLOCTABLE_Distr_Demand,$K$10,FALSE),0)","v":0},{"$f":"ROUND(F142*VLOOKUP($D$142,ALLOCTABLE_Distr_Demand,$L$10,FALSE),0)","v":0},{"$f":"ROUND(F142*VLOOKUP($D$142,ALLOCTABLE_Distr_Demand,$M$10,FALSE),0)","v":0},{"$f":"ROUND(F142*VLOOKUP($D$142,ALLOCTABLE_Distr_Demand,$N$10,FALSE),0)","v":0},{"$f":"ROUND(F142*VLOOKUP($D$142,ALLOCTABLE_Distr_Demand,$O$10,FALSE),0)","v":0},{"$f":"ROUND(F142*VLOOKUP($D$142,ALLOCTABLE_Distr_Demand,$P$10,FALSE),0)","v":0},{"$f":"ROUND(F142*VLOOKUP(D142,ALLOCTABLE_Distr_Demand,$Q$10,FALSE),0)","v":0},{"$f":"SUM(G142:Q142)","v":0},{"$f":"F142-R142","v":0}]
[9,null,"OTHER TRANSMISSION",{"$f":"'FR-16(7)(v)-1 Functional'!D143","v":"K202"},null,{"$f":"'FR-16(7)(v)-10 DIST Classified'!G143","v":0},{"$f":"F143-SUM(H143:Q143)","v":0},{"$f":"ROUND(F136*VLOOKUP(D136,ALLOCTABLE_Distr_Demand,$H$10,FALSE),0)","v":0},{"$f":"ROUND(F143*VLOOKUP($D$143,ALLOCTABLE_Distr_Demand,$I$10,FALSE),0)","v":0},{"$f":"ROUND(F143*VLOOKUP($D$143,ALLOCTABLE_Distr_Demand,$J$10,FALSE),0)","v":0},{"$f":"ROUND(F143*VLOOKUP($D$143,ALLOCTABLE_Distr_Demand,$K$10,FALSE),0)","v":0},{"$f":"ROUND(F143*VLOOKUP($D$143,ALLOCTABLE_Distr_Demand,$L$10,FALSE),0)","v":0},{"$f":"ROUND(F143*VLOOKUP($D$143,ALLOCTABLE_Distr_Demand,$M$10,FALSE),0)","v":0},{"$f":"ROUND(F143*VLOOKUP($D$143,ALLOCTABLE_Distr_Demand,$N$10,FALSE),0)","v":0},{"$f":"ROUND(F143*VLOOKUP($D$143,ALLOCTABLE_Distr_Demand,$O$10,FALSE),0)","v":0},{"$f":"ROUND(F143*VLOOKUP($D$143,ALLOCTABLE_Distr_Demand,$P$10,FALSE),0)","v":0},{"$f":"ROUND(F143*VLOOKUP(D143,ALLOCTABLE_Distr_Demand,$Q$10,FALSE),0)","v":0},{"$f":"SUM(G143:Q143)","v":0},{"$f":"F143-R143","v":0}]
[10,null,"ADJUSTMENT",{"$f":"'FR-16(7)(v)-1 Functional'!D144","v":"K202"},null,{"$f":"'FR-16(7)(v)-10 DIST Classified'!G144","v":0},{"$f":"F144-SUM(H144:Q144)","v":0},{"$f":"ROUND(F136*VLOOKUP(D136,ALLOCTABLE_Distr_Demand,$H$10,FALSE),0)","v":0},{"$f":"ROUND(F144*VLOOKUP($D$144,ALLOCTABLE_Distr_Demand,$I$10,FALSE),0)","v":0},{"$f":"ROUND(F144*VLOOKUP($D$144,ALLOCTABLE_Distr_Demand,$J$10,FALSE),0)","v":0},{"$f":"ROUND(F144*VLOOKUP($D$144,ALLOCTABLE_Distr_Demand,$K$10,FALSE),0)","v":0},{"$f":"ROUND(F144*VLOOKUP($D$144,ALLOCTABLE_Distr_Demand,$L$10,FALSE),0)","v":0},{"$f":"ROUND(F144*VLOOKUP($D$144,ALLOCTABLE_Distr_Demand,$M$10,FALSE),0)","v":0},{"$f":"ROUND(F144*VLOOKUP($D$144,ALLOCTABLE_Distr_Demand,$N$10,FALSE),0)","v":0},{"$f":"ROUND(F144*VLOOKUP($D$144,ALLOCTABLE_Distr_Demand,$O$10,FALSE),0)","v":0},{"$f":"ROUND(F144*VLOOKUP($D$144,ALLOCTABLE_Distr_Demand,$P$10,FALSE),0)","v":0},{"$f":"ROUND(F144*VLOOKUP(D144,ALLOCTABLE_Distr_Demand,$Q$10,FALSE),0)","v":0},{"$f":"SUM(G144:Q144)","v":0},{"$f":"F144-R144","v":0}]
[11,null,"  TOTAL TRANS DEPREC RESERVE",null,null,{"$f":"SUM(F142:F144)","v":0},{"$f":"SUM(G142:G144)","v":0},0,0,0,0,0,0,0,0,0,0,{"$f":"SUM(R142:R144)","v":0},{"$f":"SUM(S142:S142)","v":0}]
[12]
[13,null,"TOTAL PROD & TRANS DEPREC RESERVE",null,null,{"$f":"F145+F139","v":0},{"$f":"G145+G139","v":0},{"$f":"$H$114+H139","v":0},{"$f":"$I$114+I139","v":0},{"$f":"$J$114+J139","v":0},{"$f":"$K$114+K139","v":0},{"$f":"$L$114+L139","v":0},{"$f":"$M$114+M139","v":0},{"$f":"$N$114+N139","v":0},{"$f":"$O$114+O139","v":0},{"$f":"$P$114+P139","v":0},{"$f":"$Q$114+Q139","v":0},{"$f":"SUM(G147:Q147)","v":0},{"$f":"F147-R147","v":0}]
[14]
[15,"DISTRIBUTION PLANT"]
[16,null,{"$f":"'FR-16(7)(v)-1 Functional'!C150","v":"SUBSTATIONS"},{"$f":"'FR-16(7)(v)-1 Functional'!D150","v":"K215"},null,{"$f":"'FR-16(7)(v)-10 DIST Classified'!G150","v":18483835},{"$f":"F150-SUM(H150:Q150)","v":8676867},{"$f":"ROUND(F150*VLOOKUP(D150,ALLOCTABLE_Distr_Demand,$H$10,FALSE),0)","v":5124274},{"$f":"ROUND(F150*VLOOKUP($D$150,ALLOCTABLE_Distr_Demand,$I$10,FALSE),0)","v":23844},{"$f":"ROUND(F150*VLOOKUP($D$150,ALLOCTABLE_Distr_Demand,$J$10,FALSE),0)","v":112382},{"$f":"ROUND(F150*VLOOKUP($D$150,ALLOCTABLE_Distr_Demand,$K$10,FALSE),0)","v":1294},{"$f":"ROUND(F150*VLOOKUP($D$150,ALLOCTABLE_Distr_Demand,$L$10,FALSE),0)","v":2616941},{"$f":"ROUND(F150*VLOOKUP($D$150,ALLOCTABLE_Distr_Demand,$M$10,FALSE),0)","v":1723618},{"$f":"ROUND(F150*VLOOKUP($D$150,ALLOCTABLE_Distr_Demand,$N$10,FALSE),0)","v":86504},{"$f":"ROUND(F150*VLOOKUP($D$150,ALLOCTABLE_Distr_Demand,$O$10,FALSE),0)","v":0},{"$f":"ROUND(F150*VLOOKUP($D$150,ALLOCTABLE_Distr_Demand,$P$10,FALSE),0)","v":116078},{"$f":"ROUND(F150*VLOOKUP(D150,ALLOCTABLE_Distr_Demand,$Q$10,FALSE),0)","v":2033},{"$f":"SUM(G150:Q150)","v":18483835},{"$f":"F150-R150","v":0}]
[17,null,{"$f":"'FR-16(7)(v)-1 Functional'!C151","v":"POLES, TOWERS  & FIXTURES - PRIMARY - DEMAND"},{"$f":"'FR-16(7)(v)-1 Functional'!D151","v":"K205"},null,{"$f":"'FR-16(7)(v)-10 DIST Classified'!G151","v":15103464},{"$f":"F151-SUM(H151:Q151)","v":7090021},{"$f":"ROUND(F151*VLOOKUP(D151,ALLOCTABLE_Distr_Demand,$H$10,FALSE),0)","v":4187133},{"$f":"ROUND(F151*VLOOKUP(D151,ALLOCTABLE_Distr_Demand,$I$10,FALSE),0)","v":19483},{"$f":"ROUND(F151*VLOOKUP(D151,ALLOCTABLE_Distr_Demand,$J$10,FALSE),0)","v":91829},{"$f":"ROUND(F151*VLOOKUP(D151,ALLOCTABLE_Distr_Demand,$K$10,FALSE),0)","v":1057},{"$f":"ROUND(F151*VLOOKUP(D151,ALLOCTABLE_Distr_Demand,$L$10,FALSE),0)","v":2138348},{"$f":"ROUND(F151*VLOOKUP(D151,ALLOCTABLE_Distr_Demand,$M$10,FALSE),0)","v":1408398},{"$f":"ROUND(F151*VLOOKUP(D151,ALLOCTABLE_Distr_Demand,$N$10,FALSE),0)","v":70684},{"$f":"ROUND(F151*VLOOKUP(D151,ALLOCTABLE_Distr_Demand,$O$10,FALSE),0)","v":0},{"$f":"ROUND(F151*VLOOKUP(D151,ALLOCTABLE_Distr_Demand,$P$10,FALSE),0)","v":94850},{"$f":"ROUND(F151*VLOOKUP(D151,ALLOCTABLE_Distr_Demand,$Q$10,FALSE),0)","v":1661},{"$f":"SUM(G151:Q151)","v":15103464},{"$f":"F151-R151","v":0}]
[18,null,{"$f":"'FR-16(7)(v)-1 Functional'!C152","v":"POLES, TOWERS  & FIXTURES - PRIMARY - CUSTOMER"},"K406",null,{"$f":"'FR-16(7)(v)-10 DIST Classified'!G152","v":0},{"$f":"F152-SUM(H152:Q152)","v":0},{"$f":"ROUND(F152*VLOOKUP(D152,ALLOCTABLE_Distr_Demand,$H$10,FALSE),0)","v":0},0,0,0,0,0,0,0,0,{"$f":"ROUND(F152*VLOOKUP(D152,ALLOCTABLE_Distr_Demand,$Q$10,FALSE),0)","v":0},{"$f":"SUM(G152:Q152)","v":0},{"$f":"F152-R152","v":0}]
[19,null,{"$f":"'FR-16(7)(v)-1 Functional'!C153","v":"POLES, TOWERS  & FIXTURES - SECONDARY - DEMAND"},{"$f":"'FR-16(7)(v)-1 Functional'!D153","v":"K206"},null,{"$f":"'FR-16(7)(v)-10 DIST Classified'!G153","v":5776068},2711461,1601299,7451,35118,404,817776,538618,27032,0,36274,635,5776068,0]
[20,null,{"$f":"'FR-16(7)(v)-1 Functional'!C154","v":"POLES, TOWERS  & FIXTURES - SECONDARY - CUSTOMER"},"K406",null,{"$f":"'FR-16(7)(v)-10 DIST Classified'!G154","v":0},0,0,0,0,0,0,0,0,0,0,0,0,0]
[21,null,{"$f":"'FR-16(7)(v)-1 Functional'!C155","v":"CONDUCTORS - OVERHEAD / PRIMARY - DEMAND"},{"$f":"'FR-16(7)(v)-1 Functional'!D155","v":"K205"},null,{"$f":"'FR-16(7)(v)-10 DIST Classified'!G155","v":22430547},10529571,6218421,28935,136378,1570,3175717,2091649,104975,0,140864,2467,22430547,0]
[22,null,{"$f":"'FR-16(7)(v)-1 Functional'!C156","v":"CONDUCTORS - OVERHEAD / PRIMARY - CUSTOMER"},"K406",null,{"$f":"'FR-16(7)(v)-10 DIST Classified'!G156","v":0},0,0,0,0,0,0,0,0,0,0,0,0,0]
[23,null,{"$f":"'FR-16(7)(v)-1 Functional'!C157","v":"CONDUCTORS - OVERHEAD / SECONDARY - DEMAND"},{"$f":"'FR-16(7)(v)-1 Functional'!D157","v":"K206"},null,{"$f":"'FR-16(7)(v)-10 DIST Classified'!G157","v":9133457},4287519,2532068,11782,55531,639,1293115,851695,42745,0,57358,1005,9133457,0]
[24,null,{"$f":"'FR-16(7)(v)-1 Functional'!C158","v":"CONDUCTORS - OVERHEAD / SECONDARY - CUSTOMER"},"K406",null,{"$f":"'FR-16(7)(v)-10 DIST Classified'!G158","v":0},0,0,0,0,0,0,0,0,0,0,0,0,0]
[25,null,{"$f":"'FR-16(7)(v)-1 Functional'!C159","v":"CONDUCTORS - UNDERGROUND / PRIMARY - DEMAND"},{"$f":"'FR-16(7)(v)-1 Functional'!D159","v":"K205"},null,{"$f":"'FR-16(7)(v)-10 DIST Classified'!G159","v":16606325},7795508,4603771,21422,100966,1162,2351123,1548540,77718,0,104288,1827,16606325,0]
[26,null,{"$f":"'FR-16(7)(v)-1 Functional'!C160","v":"CONDUCTORS - UNDERGROUND / PRIMARY - CUSTOMER"},"K406",null,{"$f":"'FR-16(7)(v)-10 DIST Classified'!G160","v":0},0,0,0,0,0,0,0,0,0,0,0,0,0]
[27,null,{"$f":"'FR-16(7)(v)-1 Functional'!C161","v":"CONDUCTORS - UNDERGROUND / SECONDARY - DEMAND"},{"$f":"'FR-16(7)(v)-1 Functional'!D161","v":"K206"},null,{"$f":"'FR-16(7)(v)-10 DIST Classified'!G161","v":2844900},1335481,788692,3670,17297,199,402781,265287,13314,0,17866,313,2844900,0]
[28,null,{"$f":"'FR-16(7)(v)-1 Functional'!C162","v":"CONDUCTORS - UNDERGROUND / SECONDARY - CUSTOMER"},"K406",null,{"$f":"'FR-16(7)(v)-10 DIST Classified'!G162","v":0},0,0,0,0,0,0,0,0,0,0,0,0,0]
[29,null,{"$f":"'FR-16(7)(v)-1 Functional'!C163","v":"TRANSFORMERS DEMAND RELATED"},{"$f":"'FR-16(7)(v)-1 Functional'!D163","v":"K215"},null,{"$f":"'FR-16(7)(v)-10 DIST Classified'!G163","v":20506142},{"$f":"F163-SUM(H163:Q163)","v":9626197},{"$f":"ROUND(F163*VLOOKUP(D163,ALLOCTABLE_Distr_Demand,$H$10,FALSE),0)","v":5684918},{"$f":"ROUND(F163*VLOOKUP($D$163,ALLOCTABLE_Distr_Demand,$I$10,FALSE),0)","v":26453},{"$f":"ROUND(F163*VLOOKUP($D$163,ALLOCTABLE_Distr_Demand,$J$10,FALSE),0)","v":124677},{"$f":"ROUND(F163*VLOOKUP($D$163,ALLOCTABLE_Distr_Demand,$K$10,FALSE),0)","v":1435},{"$f":"ROUND(F163*VLOOKUP($D$163,ALLOCTABLE_Distr_Demand,$L$10,FALSE),0)","v":2903260},{"$f":"ROUND(F163*VLOOKUP($D$163,ALLOCTABLE_Distr_Demand,$M$10,FALSE),0)","v":1912198},{"$f":"ROUND(F163*VLOOKUP($D$163,ALLOCTABLE_Distr_Demand,$N$10,FALSE),0)","v":95969},{"$f":"ROUND(F163*VLOOKUP($D$163,ALLOCTABLE_Distr_Demand,$O$10,FALSE),0)","v":0},{"$f":"ROUND(F163*VLOOKUP(D163,ALLOCTABLE_Prod_Demand,$P$10,FALSE),0)","v":128779},{"$f":"ROUND(F163*VLOOKUP(D163,ALLOCTABLE_Prod_Demand,$Q$10,FALSE),0)","v":2256},{"$f":"SUM(G163:Q163)","v":20506142},{"$f":"F163-R163","v":0}]
[30,null,{"$f":"'FR-16(7)(v)-1 Functional'!C164","v":"TRANSFORMERS CUSTOMER RELATED"},"K406",null,{"$f":"'FR-16(7)(v)-10 DIST Classified'!G164","v":0},0,0,{"$f":"ROUND(F164*VLOOKUP($D$163,ALLOCTABLE_Distr_Demand,$I$10,FALSE),0)","v":0},{"$f":"ROUND(F164*VLOOKUP($D$163,ALLOCTABLE_Distr_Demand,$J$10,FALSE),0)","v":0},{"$f":"ROUND(F164*VLOOKUP($D$163,ALLOCTABLE_Distr_Demand,$K$10,FALSE),0)","v":0},{"$f":"ROUND(F164*VLOOKUP($D$163,ALLOCTABLE_Distr_Demand,$L$10,FALSE),0)","v":0},{"$f":"ROUND(F164*VLOOKUP($D$163,ALLOCTABLE_Distr_Demand,$M$10,FALSE),0)","v":0},{"$f":"ROUND(F164*VLOOKUP($D$163,ALLOCTABLE_Distr_Demand,$N$10,FALSE),0)","v":0},{"$f":"ROUND(F164*VLOOKUP($D$163,ALLOCTABLE_Distr_Demand,$O$10,FALSE),0)","v":0},{"$f":"ROUND(F164*VLOOKUP(D164,ALLOCTABLE_Distr_Demand,$P$10,FALSE),0)","v":0},{"$f":"ROUND(F164*VLOOKUP(D164,ALLOCTABLE_Distr_Demand,$Q$10,FALSE),0)","v":0},0,0]
[31,null,{"$f":"'FR-16(7)(v)-1 Functional'!C165","v":"SERVICES"},{"$f":"'FR-16(7)(v)-1 Functional'!D165","v":"K217"},null,{"$f":"'FR-16(7)(v)-10 DIST Classified'!G165","v":0},0,0,{"$f":"ROUND(F165*VLOOKUP($D$165,ALLOCTABLE_Distr_Demand,$I$10,FALSE),0)","v":0},{"$f":"ROUND(F165*VLOOKUP($D$165,ALLOCTABLE_Distr_Demand,$J$10,FALSE),0)","v":0},{"$f":"ROUND(F165*VLOOKUP($D$165,ALLOCTABLE_Distr_Demand,$K$10,FALSE),0)","v":0},{"$f":"ROUND(F165*VLOOKUP($D$165,ALLOCTABLE_Distr_Demand,$L$10,FALSE),0)","v":0},{"$f":"ROUND(F165*VLOOKUP($D$165,ALLOCTABLE_Distr_Demand,$M$10,FALSE),0)","v":0},{"$f":"ROUND(F165*VLOOKUP($D$165,ALLOCTABLE_Distr_Demand,$N$10,FALSE),0)","v":0},{"$f":"ROUND(F165*VLOOKUP($D$165,ALLOCTABLE_Distr_Demand,$O$10,FALSE),0)","v":0},{"$f":"ROUND(F165*VLOOKUP($D$165,ALLOCTABLE_Distr_Demand,$P$10,FALSE),0)","v":0},0,0,0]
[32,null,{"$f":"'FR-16(7)(v)-1 Functional'!C166","v":"METERS"},{"$f":"'FR-16(7)(v)-1 Functional'!D166","v":"K407"},null,{"$f":"'FR-16(7)(v)-10 DIST Classified'!G166","v":0},0,0,{"$f":"ROUND(F166*VLOOKUP($D$166,ALLOCTABLE_Distr_Demand,$I$10,FALSE),0)","v":0},{"$f":"ROUND(F166*VLOOKUP($D$166,ALLOCTABLE_Distr_Demand,$J$10,FALSE),0)","v":0},{"$f":"ROUND(F166*VLOOKUP($D$166,ALLOCTABLE_Distr_Demand,$K$10,FALSE),0)","v":0},{"$f":"ROUND(F166*VLOOKUP($D$166,ALLOCTABLE_Distr_Demand,$L$10,FALSE),0)","v":0},{"$f":"ROUND(F166*VLOOKUP($D$166,ALLOCTABLE_Distr_Demand,$M$10,FALSE),0)","v":0},{"$f":"ROUND(F166*VLOOKUP($D$166,ALLOCTABLE_Distr_Demand,$N$10,FALSE),0)","v":0},{"$f":"ROUND(F166*VLOOKUP($D$166,ALLOCTABLE_Distr_Demand,$O$10,FALSE),0)","v":0},{"$f":"ROUND(F166*VLOOKUP($D$166,ALLOCTABLE_Distr_Demand,$P$10,FALSE),0)","v":0},0,0,0]
[33,null,{"$f":"'FR-16(7)(v)-1 Functional'!C167","v":"STREET LIGHTS"},{"$f":"'FR-16(7)(v)-1 Functional'!D167","v":"K401"},null,{"$f":"'FR-16(7)(v)-10 DIST Classified'!G167","v":0},0,0,{"$f":"ROUND(F167*VLOOKUP($D$167,ALLOCTABLE_Distr_Demand,$I$10,FALSE),0)","v":0},{"$f":"ROUND(F167*VLOOKUP($D$167,ALLOCTABLE_Distr_Demand,$J$10,FALSE),0)","v":0},{"$f":"ROUND(F167*VLOOKUP($D$167,ALLOCTABLE_Distr_Demand,$K$10,FALSE),0)","v":0},{"$f":"ROUND(F167*VLOOKUP($D$167,ALLOCTABLE_Distr_Demand,$L$10,FALSE),0)","v":0},{"$f":"ROUND(F167*VLOOKUP($D$167,ALLOCTABLE_Distr_Demand,$M$10,FALSE),0)","v":0},{"$f":"ROUND(F167*VLOOKUP($D$167,ALLOCTABLE_Distr_Demand,$N$10,FALSE),0)","v":0},{"$f":"ROUND(F167*VLOOKUP($D$167,ALLOCTABLE_Distr_Demand,$O$10,FALSE),0)","v":0},{"$f":"ROUND(F167*VLOOKUP($D$167,ALLOCTABLE_Distr_Demand,$P$10,FALSE),0)","v":0},0,0,0]
[34,null,{"$f":"'FR-16(7)(v)-1 Functional'!C168","v":"ADJUSTMENT  "},{"$f":"'FR-16(7)(v)-1 Functional'!D168","v":"K209"},null,{"$f":"'FR-16(7)(v)-10 DIST Classified'!G168","v":342469},160764,94943,{"$f":"ROUND(F168*VLOOKUP($D$168,ALLOCTABLE_Distr_Demand,$I$10,FALSE),0)","v":442},{"$f":"ROUND(F168*VLOOKUP($D$168,ALLOCTABLE_Distr_Demand,$J$10,FALSE),0)","v":2082},{"$f":"ROUND(F168*VLOOKUP($D$168,ALLOCTABLE_Distr_Demand,$K$10,FALSE),0)","v":24},{"$f":"ROUND(F168*VLOOKUP($D$168,ALLOCTABLE_Distr_Demand,$L$10,FALSE),0)","v":48487},{"$f":"ROUND(F168*VLOOKUP($D$168,ALLOCTABLE_Distr_Demand,$M$10,FALSE),0)","v":31935},{"$f":"ROUND(F168*VLOOKUP($D$168,ALLOCTABLE_Distr_Demand,$N$10,FALSE),0)","v":1603},{"$f":"ROUND(F168*VLOOKUP($D$168,ALLOCTABLE_Distr_Demand,$O$10,FALSE),0)","v":0},{"$f":"ROUND(F168*VLOOKUP($D$168,ALLOCTABLE_Distr_Demand,$P$10,FALSE),0)","v":2151},38,342469,0]
[35,null,{"$f":"'FR-16(7)(v)-1 Functional'!C169","v":"CONSTRUCTION NOT CLASSIFIED"},{"$f":"'FR-16(7)(v)-1 Functional'!D169","v":"K209"},null,{"$f":"'FR-16(7)(v)-10 DIST Classified'!G169","v":1118560},525085,310098,{"$f":"ROUND(F169*VLOOKUP($D$169,ALLOCTABLE_Distr_Demand,$I$10,FALSE),0)","v":1443},{"$f":"ROUND(F169*VLOOKUP($D$169,ALLOCTABLE_Distr_Demand,$J$10,FALSE),0)","v":6801},{"$f":"ROUND(F169*VLOOKUP($D$169,ALLOCTABLE_Distr_Demand,$K$10,FALSE),0)","v":78},{"$f":"ROUND(F169*VLOOKUP($D$169,ALLOCTABLE_Distr_Demand,$L$10,FALSE),0)","v":158366},{"$f":"ROUND(F169*VLOOKUP($D$169,ALLOCTABLE_Distr_Demand,$M$10,FALSE),0)","v":104306},{"$f":"ROUND(F169*VLOOKUP($D$169,ALLOCTABLE_Distr_Demand,$N$10,FALSE),0)","v":5235},{"$f":"ROUND(F169*VLOOKUP($D$169,ALLOCTABLE_Distr_Demand,$O$10,FALSE),0)","v":0},{"$f":"ROUND(F169*VLOOKUP($D$169,ALLOCTABLE_Distr_Demand,$P$10,FALSE),0)","v":7025},123,1118560,0]
[36,null,{"$f":"'FR-16(7)(v)-1 Functional'!C170","v":"RWIP"},{"$f":"'FR-16(7)(v)-1 Functional'!D170","v":"K215"},null,{"$f":"'FR-16(7)(v)-10 DIST Classified'!G170","v":-17119217},{"$f":"F170-SUM(H170:Q170)","v":-8036273},{"$f":"ROUND($F$170*VLOOKUP($D$170,ALLOCTABLE_Distr_Demand,H$10,FALSE),0)","v":-4745961},-22084,-104085,-1198,-2423739,-1596367,-80118,0,-107509,-1883,{"$f":"SUM(G170:Q170)","v":-17119217},{"$f":"F170-R170","v":0}]
[37,null,{"$f":"'FR-16(7)(v)-1 Functional'!C171","v":"  TOTAL DIST DEPREC RESERVE"},null,null,{"$f":"SUM(F149:F170)","v":95226550},{"$f":"SUM(G149:G170)","v":44702201},26399656,122841,578976,6664,13482175,8879877,445661,0,598024,10475,95226550,0]
[38]
[39,null,"TOTAL TRANS & DIST DEPREC RESERVE",null,null,{"$f":"F171+F145","v":95226550},{"$f":"G171+G145","v":44702201},{"$f":"H171+H145","v":26399656},{"$f":"I171+I145","v":122841},578976,6664,13482175,8879877,445661,0,598024,10475,{"$f":"SUM(G173:Q173)","v":95226550},{"$f":"F173-R173","v":0}]
[40,null,"TOTAL GROSS PTD PLANT DEPREC RESERVE",null,null,{"$f":"F147+F171","v":95226550},{"$f":"G147+G171","v":44702201},{"$f":"H147+H171","v":26399656},{"$f":"I147+I171","v":122841},578976,6664,13482175,8879877,445661,0,598024,10475,{"$f":"SUM(G174:Q174)","v":95226550},{"$f":"F174-R174","v":0}]
[41]
[42,"GENERAL & INTANGIBLE PLANT"]
[43,null,{"$f":"'FR-16(7)(v)-1 Functional'!C177","v":"PRODUCTION - DEMAND"},{"$f":"'FR-16(7)(v)-1 Functional'!D177","v":"K201"},null,{"$f":"'FR-16(7)(v)-10 DIST Classified'!G177","v":0},{"$f":"F177-SUM(H177:Q177)","v":0},{"$f":"ROUND(F177*VLOOKUP(D177,ALLOCTABLE_Prod_Demand,$H$10,FALSE),0)","v":0},{"$f":"ROUND(F177*VLOOKUP(D177,ALLOCTABLE_Prod_Demand,$I$10,FALSE),0)","v":0},{"$f":"ROUND(F177*VLOOKUP(D177,ALLOCTABLE_Prod_Demand,$J$10,FALSE),0)","v":0},{"$f":"ROUND(F177*VLOOKUP(D177,ALLOCTABLE_Prod_Demand,$K$10,FALSE),0)","v":0},{"$f":"ROUND(F177*VLOOKUP(D177,ALLOCTABLE_Prod_Demand,$L$10,FALSE),0)","v":0},{"$f":"ROUND(F177*VLOOKUP(D177,ALLOCTABLE_Prod_Demand,$M$10,FALSE),0)","v":0},{"$f":"ROUND(F177*VLOOKUP(D177,ALLOCTABLE_Prod_Demand,$N$10,FALSE),0)","v":0},{"$f":"ROUND(F177*VLOOKUP(D177,ALLOCTABLE_Prod_Demand,$O$10,FALSE),0)","v":0},{"$f":"ROUND(F177*VLOOKUP(D177,ALLOCTABLE_Prod_Demand,$P$10,FALSE),0)","v":0},{"$f":"ROUND(F177*VLOOKUP(D177,ALLOCTABLE_Prod_Demand,$Q$10,FALSE),0)","v":0},{"$f":"SUM(G177:Q177)","v":0},{"$f":"F177-R177","v":0}]
[44,null,{"$f":"'FR-16(7)(v)-1 Functional'!C178","v":"PRODUCTION - ENERGY"},{"$f":"'FR-16(7)(v)-1 Functional'!D178","v":"K301"},null,{"$f":"'FR-16(7)(v)-10 DIST Classified'!G178","v":0},0,0,0,0,0,0,0,0,0,0,0,0,0]
[45,null,{"$f":"'FR-16(7)(v)-1 Functional'!C179","v":"TRANSMISSION"},{"$f":"'FR-16(7)(v)-1 Functional'!D179","v":"K202"},null,{"$f":"'FR-16(7)(v)-10 DIST Classified'!G179","v":0},0,0,0,0,0,0,0,0,0,0,0,0,0]
[46,null,{"$f":"'FR-16(7)(v)-1 Functional'!C180","v":"DISTRIBUTION - DEMAND"},{"$f":"'FR-16(7)(v)-1 Functional'!D180","v":"K201"},null,{"$f":"'FR-16(7)(v)-10 DIST Classified'!G180","v":0},0,0,0,0,0,0,0,0,0,0,0,0,0]
[47,null,{"$f":"'FR-16(7)(v)-1 Functional'!C181","v":"DISTRIBUTION - CUSTOMER"},{"$f":"'FR-16(7)(v)-1 Functional'!D181","v":"K405"},null,{"$f":"'FR-16(7)(v)-10 DIST Classified'!G181","v":0},0,0,0,0,0,0,0,0,0,0,0,0,0]
[48,null,{"$f":"'FR-16(7)(v)-1 Functional'!C182","v":"CUSTOMER ACCOUNTING"},{"$f":"'FR-16(7)(v)-1 Functional'!D182","v":"A308"},null,{"$f":"'FR-16(7)(v)-10 DIST Classified'!G182","v":0},0,0,0,0,0,0,0,0,0,0,0,0,0]
[49,null,{"$f":"'FR-16(7)(v)-1 Functional'!C183","v":"CUSTOMER SERVICE & INFORMATION"},{"$f":"'FR-16(7)(v)-1 Functional'!D183","v":"A310"},null,{"$f":"'FR-16(7)(v)-10 DIST Classified'!G183","v":0},0,0,0,0,0,0,0,0,0,0,0,0,0]
[50,null,{"$f":"'FR-16(7)(v)-1 Functional'!C184","v":"SALES"},{"$f":"'FR-16(7)(v)-1 Functional'!D184","v":"A312"},null,{"$f":"'FR-16(7)(v)-10 DIST Classified'!G184","v":0},0,0,0,0,0,0,0,0,0,0,0,0,0]
[51,null,{"$f":"'FR-16(7)(v)-1 Functional'!C185","v":"ADJUSTMENT"},{"$f":"'FR-16(7)(v)-1 Functional'!D185","v":"A315"},null,{"$f":"'FR-16(7)(v)-10 DIST Classified'!G185","v":47826},47250,285,1,5,0,142,94,4,44,1,0,47826,0]
[52,null,"  GENERAL & INTANG PLANT",null,null,{"$f":"SUM(F176:F185)","v":47826},{"$f":"SUM(G176:G185)","v":47250},{"$f":"SUM(H176:H185)","v":285},{"$f":"SUM(I176:I185)","v":1},{"$f":"SUM(J176:J185)","v":5},0,142,94,4,44,1,{"$f":"SUM(Q176:Q185)","v":0},{"$f":"SUM(R176:R185)","v":47826},{"$f":"SUM(S176:S185)","v":0}]
[53]
[54,"COMMON & OTHER PLANT"]
[55,null,{"$f":"'FR-16(7)(v)-1 Functional'!C189","v":"PRODUCTION - DEMAND"},{"$f":"'FR-16(7)(v)-1 Functional'!D189","v":"K201"},null,{"$f":"'FR-16(7)(v)-10 DIST Classified'!G189","v":0},{"$f":"F189-SUM(H189:Q189)","v":0},{"$f":"ROUND(F189*VLOOKUP(D189,ALLOCTABLE_Prod_Demand,$H$10,FALSE),0)","v":0},{"$f":"ROUND(F189*VLOOKUP(D189,ALLOCTABLE_Prod_Demand,$I$10,FALSE),0)","v":0},{"$f":"ROUND(F189*VLOOKUP(D189,ALLOCTABLE_Prod_Demand,$J$10,FALSE),0)","v":0},{"$f":"ROUND(F189*VLOOKUP(D189,ALLOCTABLE_Prod_Demand,$K$10,FALSE),0)","v":0},{"$f":"ROUND(F189*VLOOKUP(D189,ALLOCTABLE_Prod_Demand,$L$10,FALSE),0)","v":0},{"$f":"ROUND(F189*VLOOKUP(D189,ALLOCTABLE_Prod_Demand,$M$10,FALSE),0)","v":0},{"$f":"ROUND(F189*VLOOKUP(D189,ALLOCTABLE_Prod_Demand,$N$10,FALSE),0)","v":0},{"$f":"ROUND(F189*VLOOKUP(D189,ALLOCTABLE_Prod_Demand,$O$10,FALSE),0)","v":0},{"$f":"ROUND(F189*VLOOKUP(D189,ALLOCTABLE_Prod_Demand,$P$10,FALSE),0)","v":0},{"$f":"ROUND(F189*VLOOKUP(D189,ALLOCTABLE_Prod_Demand,$Q$10,FALSE),0)","v":0},{"$f":"SUM(G189:Q189)","v":0},{"$f":"F189-R189","v":0}]
[56,null,{"$f":"'FR-16(7)(v)-1 Functional'!C190","v":"PRODUCTION - ENERGY"},{"$f":"'FR-16(7)(v)-1 Functional'!D190","v":"K301"},null,{"$f":"'FR-16(7)(v)-10 DIST Classified'!G190","v":0},0,0,0,0,0,0,0,0,0,0,0,0,0]
[57,null,{"$f":"'FR-16(7)(v)-1 Functional'!C191","v":"TRANSMISSION"},{"$f":"'FR-16(7)(v)-1 Functional'!D191","v":"K202"},null,{"$f":"'FR-16(7)(v)-10 DIST Classified'!G191","v":0},0,0,0,0,0,0,0,0,0,0,0,0,0]
[58,null,{"$f":"'FR-16(7)(v)-1 Functional'!C192","v":"DISTRIBUTION - DEMAND"},{"$f":"'FR-16(7)(v)-1 Functional'!D192","v":"K201"},null,{"$f":"'FR-16(7)(v)-10 DIST Classified'!G192","v":0},0,0,0,0,0,0,0,0,0,0,0,0,0]
[59,null,{"$f":"'FR-16(7)(v)-1 Functional'!C193","v":"DISTRIBUTION - CUSTOMER"},{"$f":"'FR-16(7)(v)-1 Functional'!D193","v":"K405"},null,{"$f":"'FR-16(7)(v)-10 DIST Classified'!G193","v":0},0,0,0,0,0,0,0,0,0,0,0,0,0]
[60,null,{"$f":"'FR-16(7)(v)-1 Functional'!C194","v":"CUSTOMER ACCOUNTING"},{"$f":"'FR-16(7)(v)-1 Functional'!D194","v":"A308"},null,{"$f":"'FR-16(7)(v)-10 DIST Classified'!G194","v":0},0,0,0,0,0,0,0,0,0,0,0,0,0]
[61,null,{"$f":"'FR-16(7)(v)-1 Functional'!C195","v":"CUSTOMER SERVICE & INFORMATION"},{"$f":"'FR-16(7)(v)-1 Functional'!D195","v":"A310"},null,{"$f":"'FR-16(7)(v)-10 DIST Classified'!G195","v":0},0,0,0,0,0,0,0,0,0,0,0,0,0]
[62,null,{"$f":"'FR-16(7)(v)-1 Functional'!C196","v":"SALES"},{"$f":"'FR-16(7)(v)-1 Functional'!D196","v":"A312"},null,{"$f":"'FR-16(7)(v)-10 DIST Classified'!G196","v":0},0,0,0,0,0,0,0,0,0,0,0,0,0]
[63,null,{"$f":"'FR-16(7)(v)-1 Functional'!C197","v":"ADJUSTMENT"},{"$f":"'FR-16(7)(v)-1 Functional'!D197","v":"A315"},null,{"$f":"'FR-16(7)(v)-10 DIST Classified'!G197","v":2686},2655,16,0,0,0,8,5,0,2,0,0,2686,0]
[64,null,{"$f":"'FR-16(7)(v)-1 Functional'!C198","v":"  COMMON & OTHER PLANT IN SERVICE"},null,null,{"$f":"SUM(F189:F197)","v":2686},{"$f":"SUM(G188:G197)","v":2655},16,0,{"$f":"SUM(J188:J197)","v":0},0,8,5,0,2,0,0,2686,0]
[65]
[66,"TOTAL DEPRECIATION RESERVE",null,null,null,{"$f":"F198+F186+F171+F145+F139","v":95277062},{"$f":"G198+G186+G171+G145+G139","v":44752106},{"$f":"H198+H186+H171+H145+H139","v":26399957},122842,578981,6664,13482325,8879976,445665,46,598025,10475,{"$f":"R198+R186+R171+R145+R139","v":95277062},{"$f":"S198+S186+S171+S145+S139","v":0}]
[]
[{"$f":"co_name","v":"DUKE ENERGY KENTUCKY, INC."},null,null,null,null,null,null,null,null,null,null,null,null,null,null,null,null,{"$f":"R1","v":"FR-16(7)(v)-11"}]
[{"$f":"$A$2","v":"DISTRIBUTION DEMAND ALLOCATED - ELECTRIC COST OF SERVICE"},null,null,null,null,null,null,null,null,null,null,null,null,null,null,null,null,{"$f":"R2","v":"WITNESS RESPONSIBLE:"}]
[{"$f":"case_name","v":"CASE NO: 2019-00271"},null,null,null,null,null,null,null,null,null,null,null,null,null,null,null,null,{"$f":"Witness","v":"JAMES E. ZIOLKOWSKI"}]
[{"$f":"data_filing","v":"DATA: 12 MONTHS ACTUAL  & 0 MONTHS ESTIMATED"},null,null,null,null,null,null,null,null,null,null,null,null,null,null,null,null,{"$f":"\"PAGE \"&Pages-14&\" OF \"&Pages","v":"PAGE 4 OF 18"}]
[{"$f":"type","v":"TYPE OF FILING: \"X\" ORIGINAL   UPDATED    REVISED  "}]
[]
[null,null,null,null,null,{"$f":"F$7","v":"TOTAL"},null,{"$f":"H$7","v":"DS"},{"$f":"I$7","v":"GSFL"},{"$f":"J$7","v":"EH"},{"$f":"K$7","v":"SP"},"DT SEC","DT PRI","DP","TT",null,"OTHER"]
["LINE",null,null,null,null,{"$f":"F$8","v":"DISTRIBUTION"},{"$f":"G$8","v":"RS"},{"$f":"H$8","v":"SECONDARY"},{"$f":"I$8","v":"SECONDARY"},{"$f":"J$8","v":"SECONDARY"},{"$f":"K$8","v":"SECONDARY"},"SECONDARY","PRIMARY","PRIMARY","TRANSMISSION","LT","WATER",{"$f":"R8","v":"TOTAL"},"ALL"]
["NO.",{"$f":"\"NET ELECTRIC PLANT\"","v":"NET ELECTRIC PLANT"},null,"ALLO",null,{"$f":"F$9","v":"DEMAND"},{"$f":"G$9","v":"RESIDENTIAL"},{"$f":"H$9","v":"DISTRIBUTION"},{"$f":"I$9","v":"DISTRIBUTION"},{"$f":"J$9","v":"DISTRIBUTION"},{"$f":"K$9","v":"DISTRIBUTION"},"DISTRIBUTION","DISTRIBUTION","DISTRIBUTION","TIME OF DAY","LIGHTING","PUMPING",{"$f":"R9","v":"AT ISSUE"},"OTHER"]
[null,null,"Schedule 4",null,null,null,{"$f":"G$10","v":3},{"$f":"H$10","v":4},{"$f":"I$10","v":5},{"$f":"J$10","v":6},{"$f":"K$10","v":7},8,9,10,11,12,13,null," "]
[1,"PRODUCTION PLANT"]
[2,null,"PRODUCTION STEAM",null,null,{"$f":"F59-F136","v":0},{"$f":"G59-G136","v":0},{"$f":"H59-H136","v":0},{"$f":"I59-I136","v":0},{"$f":"J59-J136","v":0},0,0,0,0,0,0,{"$f":"Q59-Q136","v":0},{"$f":"R59-R136","v":0},{"$f":"F213-R213","v":0}]
[3,null,"PRODUCTION OTHER",null,null,{"$f":"F60-F137","v":0},0,0,0,{"$f":"J60-J137","v":0},0,0,0,0,0,0,0,0,{"$f":"F214-R214","v":0}]
[4,null,"ADJUSTMENT",null,null,{"$f":"F61-F138","v":0},0,0,0,{"$f":"J61-J138","v":0},0,0,0,0,0,0,0,0,{"$f":"F215-R215","v":0}]
[5,null,{"$f":"'FR-16(7)(v)-1 Functional'!C216","v":"  NET PRODUCTION PLANT"},null,null,{"$f":"SUM(F213:F215)","v":0},0,0,0,{"$f":"SUM(J213:J215)","v":0},0,0,0,0,0,0,0,0,0]
[6]
[7,"TRANSMISSION PLANT"]
[8,null,"MAIN STEP-UP TRANSFORMERS",null,null,{"$f":"F65-F142","v":0},0,0,0,{"$f":"J65-J142","v":0},0,0,0,0,0,0,0,0,{"$f":"F219-R219","v":0}]
[9,null,"OTHER TRANSMISSION",null,null,{"$f":"F66-F143","v":0},0,0,0,{"$f":"J66-J143","v":0},0,0,0,0,0,0,{"$f":"Q66-Q143","v":0},{"$f":"R66-R143","v":0},{"$f":"F220-R220","v":0}]
[10,null,"ADJUSTMENT",null,null,0,0,0,0,{"$f":"J67-J144","v":0},0,0,0,0,0,0,{"$f":"Q67-Q144","v":0},{"$f":"R67-R144","v":0},{"$f":"F221-R221","v":0}]
[11,null,{"$f":"'FR-16(7)(v)-1 Functional'!C222","v":"    NET TRANSMISSION PLANT"},null,null,{"$f":"SUM(F218:F221)","v":0},0,0,0,{"$f":"SUM(J218:J221)","v":0},0,0,0,0,0,0,0,0,0]
[12]
[13,"NET PROD & TRANS PLANT",null,null,null,{"$f":"F70-F147","v":0},{"$f":"G70-G147","v":0},{"$f":"H70-H147","v":0},0,0,0,0,0,0,0,0,0,0,{"$f":"F224-R224","v":0}]
[14]
[15,"DISTRIBUTION PLANT"]
[16,null,{"$f":"'FR-16(7)(v)-1 Functional'!C227","v":"SUBSTATIONS"},null,null,{"$f":"F73-F150","v":72492541},{"$f":"G73-G150","v":34030174},{"$f":"H73-H150","v":20097107},93516,440754,5074,10263494,6759929,339265,0,455254,7974,{"$f":"R73-R150","v":72492541},{"$f":"F227-R227","v":0}]
[17,null,{"$f":"'FR-16(7)(v)-1 Functional'!C228","v":"POLES, TOWERS  & FIXTURES - PRIMARY - DEMAND"},null,null,{"$f":"F74-F151","v":17906511},{"$f":"G74-G151","v":8405851},{"$f":"H74-H151","v":4964222},23100,108872,1254,2535204,1669782,83803,0,112453,1970,{"$f":"R74-R151","v":17906511},{"$f":"F228-R228","v":0}]
[18,null,{"$f":"'FR-16(7)(v)-1 Functional'!C229","v":"POLES, TOWERS  & FIXTURES - PRIMARY - CUSTOMER"},null,null,{"$f":"F75-F152","v":0},{"$f":"G75-G152","v":0},0,0,0,0,0,0,0,0,0,0,0,{"$f":"F229-R229","v":0}]
[19,null,{"$f":"'FR-16(7)(v)-1 Functional'!C230","v":"POLES, TOWERS  & FIXTURES - SECONDARY - DEMAND"},null,null,6848047,{"$f":"G76-G153","v":3214677},1898484,8834,41637,480,969546,638581,32049,0,43005,754,6848047,0]
[20,null,{"$f":"'FR-16(7)(v)-1 Functional'!C231","v":"POLES, TOWERS  & FIXTURES - SECONDARY - CUSTOMER"},null,null,0,{"$f":"G77-G154","v":0},0,0,0,0,0,0,0,0,0,0,0,0]
[21,null,{"$f":"'FR-16(7)(v)-1 Functional'!C232","v":"CONDUCTORS - OVERHEAD / PRIMARY - DEMAND"},null,null,52792275,{"$f":"G78-G155","v":24782278},14635602,68102,320977,3696,7474330,4922879,247068,0,331535,5808,52792275,0]
[22,null,{"$f":"'FR-16(7)(v)-1 Functional'!C233","v":"CONDUCTORS - OVERHEAD / PRIMARY - CUSTOMER"},null,null,0,{"$f":"G79-G156","v":0},0,0,0,0,0,0,0,0,0,0,0,0]
[23,null,{"$f":"'FR-16(7)(v)-1 Functional'!C234","v":"CONDUCTORS - OVERHEAD / SECONDARY - DEMAND"},null,null,21496395,{"$f":"G80-G157","v":10091052},5959446,27731,130699,1505,3043459,2004539,100603,0,134997,2364,21496395,0]
[24,null,{"$f":"'FR-16(7)(v)-1 Functional'!C235","v":"CONDUCTORS - OVERHEAD / SECONDARY - CUSTOMER"},null,null,0,{"$f":"G81-G158","v":0},0,0,0,0,0,0,0,0,0,0,0,0]
[25,null,{"$f":"'FR-16(7)(v)-1 Functional'!C236","v":"CONDUCTORS - UNDERGROUND / PRIMARY - DEMAND"},null,null,39534982,{"$f":"G82-G159","v":18558906},10960284,51000,240373,2768,5597363,3686637,185023,0,248279,4349,39534982,0]
[26,null,{"$f":"'FR-16(7)(v)-1 Functional'!C237","v":"CONDUCTORS - UNDERGROUND / PRIMARY - CUSTOMER"},null,null,0,{"$f":"G83-G160","v":0},0,0,0,0,0,0,0,0,0,0,0,0]
[27,null,{"$f":"'FR-16(7)(v)-1 Functional'!C238","v":"CONDUCTORS - UNDERGROUND / SECONDARY - DEMAND"},null,null,6772908,{"$f":"G84-G161","v":3179407},1877653,8737,41179,474,958908,631574,31697,0,42534,745,6772908,0]
[28,null,{"$f":"'FR-16(7)(v)-1 Functional'!C239","v":"CONDUCTORS - UNDERGROUND / SECONDARY - CUSTOMER"},null,null,0,{"$f":"G85-G162","v":0},0,0,0,0,0,0,0,0,0,0,0,0]
[29,null,"TRANSFORMERS DEMAND RELATED",null,null,26609950,{"$f":"G86-G163","v":12491510},7377076,34327,161789,1863,3767436,2481378,124534,0,167110,2927,26609950,{"$f":"F240-R240","v":0}]
[30,null,"TRANSFORMERS CUSTOMER RELATED",null,null,0,{"$f":"G87-G164","v":0},0,0,0,0,0,0,0,0,0,0,0,0]
[31,null,{"$f":"'FR-16(7)(v)-1 Functional'!C242","v":"SERVICES"},null,null,0,{"$f":"G88-G165","v":0},{"$f":"H88-H165","v":0},0,0,0,0,0,0,0,0,0,{"$f":"R88-R165","v":0},0]
[32,null,{"$f":"'FR-16(7)(v)-1 Functional'!C243","v":"METERS"},null,null,0,0,{"$f":"H89-H166","v":0},0,0,0,0,0,0,0,0,0,{"$f":"R89-R166","v":0},0]
[33,null,{"$f":"'FR-16(7)(v)-1 Functional'!C244","v":"STREET LIGHTS"},null,null,0,0,{"$f":"H90-H167","v":0},0,0,0,0,0,0,0,0,0,{"$f":"R90-R167","v":0},0]
[34,null,{"$f":"'FR-16(7)(v)-1 Functional'!C245","v":"ADJUSTMENT  "},null,null,-342469,-160764,{"$f":"H91-H168","v":-94943},-442,-2082,-24,-48487,-31935,-1603,0,-2151,-38,{"$f":"R91-R168","v":-342469},0]
[35,null,{"$f":"'FR-16(7)(v)-1 Functional'!C246","v":"CONSTRUCTION NOT CLASSIFIED"},null,null,68300182,32062155,{"$f":"H92-H169","v":18934860},88107,415265,4781,9669939,6368992,319645,0,428925,7513,{"$f":"R92-R169","v":68300182},0]
[36,null,{"$f":"'FR-16(7)(v)-1 Functional'!C247","v":"RWIP"},null,null,17119217,8036273,4745961,22084,104085,1198,2423739,1596367,80118,0,107509,1883,17119217,0]
[37,null,{"$f":"'FR-16(7)(v)-1 Functional'!C248","v":"  NET DISTRIBUTION PLANT"},null,null,{"$f":"SUM(F226:F247)","v":329530539},{"$f":"SUM(G226:G247)","v":154691519},91355752,425096,2003548,23069,46654931,30728723,1542202,0,2069450,36249,329530539,0]
[38]
[39,"NET PTD PLANT",null,null,null,{"$f":"F96-F173","v":329530539},154691519,91355752,425096,{"$f":"J96-J173","v":2003548},23069,46654931,30728723,1542202,0,2069450,36249,329530539,{"$f":"S248+S222+S216","v":0}]
[40,"NET TRANS & DIST PLANT",null,null,null,{"$f":"F97-F174","v":329530539},154691519,91355752,425096,{"$f":"J97-J174","v":2003548},23069,46654931,30728723,1542202,0,2069450,36249,329530539,{"$f":"S248+S222","v":0}]
[41]
[42,"GENERAL & INTANGIBLE PLANT"]
[43,null,{"$f":"'FR-16(7)(v)-1 Functional'!C254","v":"PRODUCTION - DEMAND"},null,null,{"$f":"F100-F177","v":0},0,0,0,{"$f":"J100-J177","v":0},0,0,0,0,0,0,0,0,{"$f":"F254-R254","v":0}]
[44,null,{"$f":"'FR-16(7)(v)-1 Functional'!C255","v":"PRODUCTION - ENERGY"},null,null,{"$f":"F101-F178","v":0},0,0,0,{"$f":"J101-J178","v":0},0,0,0,0,0,0,0,0,{"$f":"F255-R255","v":0}]
[45,null,{"$f":"'FR-16(7)(v)-1 Functional'!C256","v":"TRANSMISSION"},null,null,{"$f":"F102-F179","v":0},0,0,0,{"$f":"J102-J179","v":0},0,0,0,0,0,0,0,0,0]
[46,null,{"$f":"'FR-16(7)(v)-1 Functional'!C257","v":"DISTRIBUTION - DEMAND"},null,null,{"$f":"F103-F180","v":0},0,0,0,0,0,0,0,0,0,0,0,0,0]
[47,null,{"$f":"'FR-16(7)(v)-1 Functional'!C258","v":"DISTRIBUTION - CUSTOMER"},null,null,{"$f":"F104-F181","v":0},0,0,0,0,0,0,0,0,0,0,0,0,{"$f":"F258-R258","v":0}]
[48,null,{"$f":"'FR-16(7)(v)-1 Functional'!C259","v":"CUSTOMER ACCOUNTING"},null,null,{"$f":"F105-F182","v":0},0,0,0,{"$f":"J105-J182","v":0},0,0,0,0,0,0,0,0,0]
[49,null,{"$f":"'FR-16(7)(v)-1 Functional'!C260","v":"CUSTOMER SERVICE & INFORMATION"},null,null,{"$f":"F106-F183","v":0},0,0,0,{"$f":"J106-J183","v":0},0,0,0,0,0,0,{"$f":"Q106-Q183","v":0},{"$f":"R106-R183","v":0},0]
[50,null,{"$f":"'FR-16(7)(v)-1 Functional'!C261","v":"SALES"},null,null,0,0,0,0,{"$f":"J107-J184","v":0},0,0,0,0,0,0,{"$f":"Q107-Q184","v":0},{"$f":"R107-R184","v":0},{"$f":"F261-R261","v":0}]
[51,null,{"$f":"'FR-16(7)(v)-1 Functional'!C262","v":"ADJUSTMENT"},null,null,{"$f":"F108-F185","v":-47826},-47250,-285,-1,{"$f":"J108-J185","v":-5},0,-142,-94,-4,-44,-1,0,-47826,{"$f":"F262-R262","v":0}]
[52,null,{"$f":"'FR-16(7)(v)-1 Functional'!C263","v":"  NET GENERAL & INTANG PLANT"},null,null,{"$f":"SUM(F253:F262)","v":-47826},-47250,-285,-1,{"$f":"SUM(J253:J262)","v":-5},0,-142,-94,-4,-44,-1,0,-47826,0]
[53]
[54,"COMMON & OTHER PLANT"]
[55,null,{"$f":"'FR-16(7)(v)-1 Functional'!C266","v":"PRODUCTION - DEMAND"},null,null,{"$f":"F112-F189","v":0},0,0,0,{"$f":"J112-J189","v":0},0,0,0,0,0,0,0,0,{"$f":"F266-R266","v":0}]
[56,null,{"$f":"'FR-16(7)(v)-1 Functional'!C267","v":"PRODUCTION - ENERGY"},null,null,{"$f":"F113-F190","v":0},0,0,0,{"$f":"J113-J190","v":0},0,0,0,0,0,0,0,0,{"$f":"F267-R267","v":0}]
[57,null,{"$f":"'FR-16(7)(v)-1 Functional'!C268","v":"TRANSMISSION"},null,null,{"$f":"F114-F191","v":0},0,0,0,{"$f":"J114-J191","v":0},0,0,0,0,0,0,0,0,0]
[58,null,{"$f":"'FR-16(7)(v)-1 Functional'!C269","v":"DISTRIBUTION - DEMAND"},null,null,{"$f":"F115-F192","v":0},0,0,0,0,0,0,0,0,0,0,0,0,0]
[59,null,{"$f":"'FR-16(7)(v)-1 Functional'!C270","v":"DISTRIBUTION - CUSTOMER"},null,null,{"$f":"F116-F193","v":0},0,0,0,0,0,0,0,0,0,0,0,0,{"$f":"F270-R270","v":0}]
[60,null,{"$f":"'FR-16(7)(v)-1 Functional'!C271","v":"CUSTOMER ACCOUNTING"},null,null,{"$f":"F117-F194","v":0},0,0,0,{"$f":"J117-J194","v":0},0,0,0,0,0,0,0,0,0]
[61,null,{"$f":"'FR-16(7)(v)-1 Functional'!C272","v":"CUSTOMER SERVICE & INFORMATION"},null,null,{"$f":"F118-F195","v":0},0,0,0,{"$f":"J118-J195","v":0},0,{"$f":"L118-L195","v":0},0,0,0,0,{"$f":"Q118-Q195","v":0},{"$f":"R118-R195","v":0},0]
[62,null,{"$f":"'FR-16(7)(v)-1 Functional'!C273","v":"SALES"},null,null,0,0,0,0,{"$f":"J119-J196","v":0},0,0,0,0,0,0,{"$f":"Q119-Q196","v":0},{"$f":"R119-R196","v":0},{"$f":"F273-R273","v":0}]
[63,null,{"$f":"'FR-16(7)(v)-1 Functional'!C274","v":"ADJUSTMENT"},null,null,{"$f":"F120-F197","v":-2686},-2655,-16,0,{"$f":"J120-J197","v":0},0,-8,-5,0,-2,0,0,-2686,{"$f":"F274-R274","v":0}]
[64,null,"  COMMON & OTHER PLANT IN SERVICE",null,null,{"$f":"SUM(F265:F274)","v":-2686},-2655,-16,0,{"$f":"SUM(J265:J274)","v":0},0,-8,-5,0,-2,0,0,-2686,0]
[65]
[66,null,{"$f":"'FR-16(7)(v)-1 Functional'!C277","v":"NET ELECTRIC PLANT IN SERVICE"},null,null,{"$f":"F275+F263+F248+F222+F216","v":329480027},{"$f":"G275+G263+G248+G222+G216","v":154641614},{"$f":"H275+H263+H248+H222+H216","v":91355451},{"$f":"I275+I263+I248+I222+I216","v":425095},{"$f":"J275+J263+J248+J222+J216","v":2003543},23069,46654781,30728624,1542198,-46,2069449,{"$f":"Q275+Q263+Q248+Q222+Q216","v":36249},{"$f":"R275+R263+R248+R222+R216","v":329480027},{"$f":"S275+S263+S248+S222+S216","v":0}]
[]
[{"$f":"co_name","v":"DUKE ENERGY KENTUCKY, INC."},null,null,null,null,null,null,null,null,null,null,null,null,null,null,null,null,{"$f":"R1","v":"FR-16(7)(v)-11"}]
[{"$f":"$A$2","v":"DISTRIBUTION DEMAND ALLOCATED - ELECTRIC COST OF SERVICE"},null,null,null,null,null,null,null,null,null,null,null,null,null,null,null,null,{"$f":"R2","v":"WITNESS RESPONSIBLE:"}]
[{"$f":"case_name","v":"CASE NO: 2019-00271"},null,null,null,null,null,null,null,null,null,null,null,null,null,null,null,null,{"$f":"Witness","v":"JAMES E. ZIOLKOWSKI"}]
[{"$f":"data_filing","v":"DATA: 12 MONTHS ACTUAL  & 0 MONTHS ESTIMATED"},null,null,null,null,null,null,null,null,null,null,null,null,null,null,null,null,{"$f":"\"PAGE \"&Pages-13&\" OF \"&Pages","v":"PAGE 5 OF 18"}]
[{"$f":"type","v":"TYPE OF FILING: \"X\" ORIGINAL   UPDATED    REVISED  "}]
[]
[null,null,null,null,null,{"$f":"F$7","v":"TOTAL"},null,{"$f":"H$7","v":"DS"},{"$f":"I$7","v":"GSFL"},{"$f":"J$7","v":"EH"},{"$f":"K$7","v":"SP"},"DT SEC","DT PRI","DP","TT",null,"OTHER"]
["LINE",null,null,null,null,{"$f":"F$8","v":"DISTRIBUTION"},{"$f":"G$8","v":"RS"},{"$f":"H$8","v":"SECONDARY"},{"$f":"I$8","v":"SECONDARY"},{"$f":"J$8","v":"SECONDARY"},{"$f":"K$8","v":"SECONDARY"},"SECONDARY","PRIMARY","PRIMARY","TRANSMISSION","LT","WATER",{"$f":"R8","v":"TOTAL"},"ALL"]
["NO.","SUBTRACTIVE RATE BASE ADJUSTMENTS",null,"ALLO",null,{"$f":"F$9","v":"DEMAND"},{"$f":"G$9","v":"RESIDENTIAL"},{"$f":"H$9","v":"DISTRIBUTION"},{"$f":"I$9","v":"DISTRIBUTION"},{"$f":"J$9","v":"DISTRIBUTION"},{"$f":"K$9","v":"DISTRIBUTION"},"DISTRIBUTION","DISTRIBUTION","DISTRIBUTION","TIME OF DAY","LIGHTING","PUMPING",{"$f":"R9","v":"AT ISSUE"},"OTHER"]
[null,null,"Schedule 5",null,null,null,{"$f":"G$10","v":3},{"$f":"H$10","v":4},{"$f":"I$10","v":5},{"$f":"J$10","v":6},{"$f":"K$10","v":7},8,9,10,11,12,13,null," "]
[1,"RATE BASE ADJUSTMENTS"]
[2,"ACCUMULATED DEFERRED INCOME TAXES"]
[3," ACCUM DEF INC TAXES (282)"]
[4,null,{"$f":"'FR-16(7)(v)-1 Functional'!C292","v":"LIBERALIZED DEPRECIATION"},{"$f":"'FR-16(7)(v)-1 Functional'!D292","v":"NP29"}," ",{"$f":"'FR-16(7)(v)-10 DIST Classified'!G292","v":19580186},{"$f":"F292-SUM(H292:Q292)","v":9190156},{"$f":"ROUND(F292*VLOOKUP(D292,ALLOCTABLE_Distr_Demand,$H$10,FALSE),0)","v":5428998},{"$f":"ROUND(F292*VLOOKUP(D292,ALLOCTABLE_Distr_Demand,$I$10,FALSE),0)","v":25258},{"$f":"ROUND(F292*VLOOKUP(D292,ALLOCTABLE_Distr_Demand,$J$10,FALSE),0)","v":119048},{"$f":"ROUND(F292*VLOOKUP(D292,ALLOCTABLE_Distr_Demand,$K$10,FALSE),0)","v":1371},{"$f":"ROUND(F292*VLOOKUP(D292,ALLOCTABLE_Distr_Demand,$L$10,FALSE),0)","v":2772554},{"$f":"ROUND(F292*VLOOKUP(D292,ALLOCTABLE_Distr_Demand,$M$10,FALSE),0)","v":1826048},{"$f":"ROUND(F292*VLOOKUP(D292,ALLOCTABLE_Distr_Demand,$N$10,FALSE),0)","v":91635},{"$f":"ROUND(F292*VLOOKUP(D292,ALLOCTABLE_Distr_Demand,$O$10,FALSE),0)","v":0},{"$f":"ROUND(F292*VLOOKUP(D292,ALLOCTABLE_Distr_Demand,$P$10,FALSE),0)","v":122964},{"$f":"ROUND(F292*VLOOKUP(D292,ALLOCTABLE_Distr_Demand,$Q$10,FALSE),0)","v":2154},{"$f":"SUM(G292:Q292)","v":19580186},{"$f":"F292-R292","v":0}]
[5,null,{"$f":"'FR-16(7)(v)-1 Functional'!C293","v":"LEASED METERS"},{"$f":"'FR-16(7)(v)-1 Functional'!D293","v":"NP29"}," ",{"$f":"'FR-16(7)(v)-10 DIST Classified'!G293","v":444124},208454,123142,573,2700,31,62888,41419,2079,0,2789,49,444124,0]
[6,null,{"$f":"'FR-16(7)(v)-1 Functional'!C294","v":"CONTRIB AID CONSTR"},{"$f":"'FR-16(7)(v)-1 Functional'!D294","v":"D249"}," ",{"$f":"'FR-16(7)(v)-10 DIST Classified'!G294","v":0},0,0,0,0,0,0,0,0,0,0,0,0,0]
[7,null,{"$f":"'FR-16(7)(v)-1 Functional'!C295","v":"TAX INTEREST, EXPENSING, DEPR."},{"$f":"'FR-16(7)(v)-1 Functional'!D295","v":"NP29"}," ",{"$f":"'FR-16(7)(v)-10 DIST Classified'!G295","v":19550411},9176181,5420742,25220,118866,1369,2768338,1823271,91496,0,122777,2151,19550411,0]
[8,null,{"$f":"'FR-16(7)(v)-1 Functional'!C296","v":"AFUDC IN DEBT"},{"$f":"'FR-16(7)(v)-1 Functional'!D296","v":"NP29"}," ",{"$f":"'FR-16(7)(v)-10 DIST Classified'!G296","v":0},0,0,0,0,0,0,0,0,0,0,0,0,0]
[9,null,{"$f":"'FR-16(7)(v)-1 Functional'!C297","v":"CASUALTY LOSS"},{"$f":"'FR-16(7)(v)-1 Functional'!D297","v":"K411"}," ",{"$f":"'FR-16(7)(v)-10 DIST Classified'!G297","v":0},0,0,0,0,0,0,0,0,0,0,0,0,0]
[10,null,{"$f":"'FR-16(7)(v)-1 Functional'!C298","v":"NON-CASH OVERHEADS"},{"$f":"'FR-16(7)(v)-1 Functional'!D298","v":"G229"}," ",{"$f":"'FR-16(7)(v)-10 DIST Classified'!G298","v":0},0,0,0,0,0,0,0,0,0,0,0,0,0]
[11,null,{"$f":"'FR-16(7)(v)-1 Functional'!C299","v":"PLANT FAS 109"},{"$f":"'FR-16(7)(v)-1 Functional'!D299","v":"NP29"}," ",{"$f":"'FR-16(7)(v)-10 DIST Classified'!G299","v":0},0,0,0,0,0,0,0,0,0,0,0,0,0]
[12,null,{"$f":"'FR-16(7)(v)-1 Functional'!C300","v":"MISCELLANEOUS"},{"$f":"'FR-16(7)(v)-1 Functional'!D300","v":"NP29"},null,{"$f":"'FR-16(7)(v)-10 DIST Classified'!G300","v":18448422},8658952,5115194,23798,112166,1291,2612297,1720500,86339,0,115856,2029,18448422,0]
[13,null,{"$f":"'FR-16(7)(v)-1 Functional'!C301","v":"  TOTAL ACCOUNT 282"},null,null,{"$f":"SUM(F292:F300)","v":58023143},{"$f":"SUM(G292:G300)","v":27233743},{"$f":"SUM(H292:H300)","v":16088076},{"$f":"SUM(I292:I300)","v":74849},{"$f":"SUM(J292:J300)","v":352780},4062,8216077,5411238,271549,0,364386,{"$f":"SUM(Q292:Q300)","v":6383},{"$f":"SUM(R292:R300)","v":58023143},{"$f":"SUM(S292:S300)","v":0}]
[14]
[15," ACCUM DEF INC TAXES (283)"]
[16,null,{"$f":"'FR-16(7)(v)-1 Functional'!C304","v":"TRANSITION FROM MISO TO PJM"},{"$f":"'FR-16(7)(v)-1 Functional'!D304","v":"NP29"},null,{"$f":"'FR-16(7)(v)-10 DIST Classified'!G304","v":-1050623},{"$f":"F304-SUM(H304:Q304)","v":-493120},{"$f":"ROUND(F304*VLOOKUP(D304,ALLOCTABLE_Distr_Demand,$H$10,FALSE),0)","v":-291306},{"$f":"ROUND(F304*VLOOKUP(D304,ALLOCTABLE_Distr_Demand,$I$10,FALSE),0)","v":-1355},{"$f":"ROUND(F304*VLOOKUP(D304,ALLOCTABLE_Distr_Demand,$J$10,FALSE),0)","v":-6388},{"$f":"ROUND(F304*VLOOKUP(D304,ALLOCTABLE_Distr_Demand,$K$10,FALSE),0)","v":-74},{"$f":"ROUND(F304*VLOOKUP(D304,ALLOCTABLE_Distr_Demand,$L$10,FALSE),0)","v":-148768},{"$f":"ROUND(F304*VLOOKUP(D304,ALLOCTABLE_Distr_Demand,$M$10,FALSE),0)","v":-97981},{"$f":"ROUND(F304*VLOOKUP(D304,ALLOCTABLE_Distr_Demand,$N$10,FALSE),0)","v":-4917},{"$f":"ROUND(F304*VLOOKUP(D304,ALLOCTABLE_Distr_Demand,$O$10,FALSE),0)","v":0},{"$f":"ROUND(F304*VLOOKUP(D304,ALLOCTABLE_Distr_Demand,$P$10,FALSE),0)","v":-6598},{"$f":"ROUND(F304*VLOOKUP(D304,ALLOCTABLE_Distr_Demand,$Q$10,FALSE),0)","v":-116},{"$f":"SUM(G304:Q304)","v":-1050623},{"$f":"F304-R304","v":0}]
[17,null,{"$f":"'FR-16(7)(v)-1 Functional'!C305","v":"DEFERRED PLANT COSTS"},{"$f":"'FR-16(7)(v)-1 Functional'!D305","v":"NP29"},null,{"$f":"'FR-16(7)(v)-10 DIST Classified'!G305","v":204677},96068,56751,264,1244,14,28982,19088,958,0,1285,23,204677,0]
[18,null,{"$f":"'FR-16(7)(v)-1 Functional'!C306","v":"MISCELLANEOUS"},{"$f":"'FR-16(7)(v)-1 Functional'!D306","v":"OM39"},null,{"$f":"'FR-16(7)(v)-10 DIST Classified'!G306","v":865409},446273,219096,943,5565,61,106298,68627,3747,9719,4924,156,865409,0]
[19,null,{"$f":"'FR-16(7)(v)-1 Functional'!C307","v":"ENVIRONMENTAL RESERVE"},{"$f":"'FR-16(7)(v)-1 Functional'!D307","v":"NP29"},null,{"$f":"'FR-16(7)(v)-10 DIST Classified'!G307","v":0},0,0,0,0,0,0,0,0,0,0,0,0,0]
[20,null,{"$f":"'FR-16(7)(v)-1 Functional'!C308","v":"POST IN-SERVICE CARRYING COSTS"},{"$f":"'FR-16(7)(v)-1 Functional'!D308","v":"NP29"},null,{"$f":"'FR-16(7)(v)-10 DIST Classified'!G308","v":0},0,0,0,0,0,0,0,0,0,0,0,0,0]
[21,null,{"$f":"'FR-16(7)(v)-1 Functional'!C309","v":"ARO CUMULATIVE EFFECT"},{"$f":"'FR-16(7)(v)-1 Functional'!D309","v":"NP29"},null,{"$f":"'FR-16(7)(v)-10 DIST Classified'!G309","v":0},0,0,0,0,0,0,0,0,0,0,0,0,0]
[22,null,{"$f":"'FR-16(7)(v)-1 Functional'!C310","v":"LOSS ON REACQUIRED DEBT"},{"$f":"'FR-16(7)(v)-1 Functional'!D310","v":"D249"},null,{"$f":"'FR-16(7)(v)-10 DIST Classified'!G310","v":0},0,0,0,0,0,0,0,0,0,0,0,0,0]
[23,null,{"$f":"'FR-16(7)(v)-1 Functional'!C311","v":"VACATION PAY ACCRUAL"},{"$f":"'FR-16(7)(v)-1 Functional'!D311","v":"A315"},null,{"$f":"'FR-16(7)(v)-10 DIST Classified'!G311","v":0},0,0,0,0,0,0,0,0,0,0,0,0,0]
[24,null,{"$f":"'FR-16(7)(v)-1 Functional'!C312","v":"NON-AMI METERS RETIRED EARLY"},{"$f":"'FR-16(7)(v)-1 Functional'!D312","v":"OM39"},null,{"$f":"'FR-16(7)(v)-10 DIST Classified'!G312","v":103836},53546,26288,113,668,7,12754,8234,450,1166,591,19,{"$f":"SUM(G312:Q312)","v":103836},{"$f":"F312-R312","v":0}]
[25,null,{"$f":"'FR-16(7)(v)-1 Functional'!C313","v":"PENSION EXPENSE"},{"$f":"'FR-16(7)(v)-1 Functional'!D313","v":"A315"},null,{"$f":"'FR-16(7)(v)-10 DIST Classified'!G313","v":1011676},521701,256126,1103,6505,71,124264,80226,4381,11361,5756,182,{"$f":"SUM(G313:Q313)","v":1011676},{"$f":"F313-R313","v":0}]
[26,null,{"$f":"'FR-16(7)(v)-1 Functional'!C314","v":"UNCOLLECTIBLE ACCOUNTS"},{"$f":"'FR-16(7)(v)-1 Functional'!D314","v":"K411"},null,{"$f":"'FR-16(7)(v)-10 DIST Classified'!G314","v":0},0,0,0,0,0,0,0,0,0,0,0,0,0]
[27,null,{"$f":"'FR-16(7)(v)-1 Functional'!C315","v":"  TOTAL ACCOUNT 283"},null,null,{"$f":"SUM(F303:F314)","v":1134975},{"$f":"SUM(G303:G314)","v":624468},{"$f":"SUM(H303:H314)","v":266955},{"$f":"SUM(I303:I314)","v":1068},{"$f":"SUM(J303:J314)","v":7594},79,123530,78194,4619,22246,5958,{"$f":"SUM(Q303:Q314)","v":264},{"$f":"SUM(R303:R314)","v":1134975},{"$f":"SUM(S303:S314)","v":0}]
[28]
[29," OTHER ACCUMULATED DEFERRED INCOME TAXES"]
[30,null,{"$f":"'FR-16(7)(v)-1 Functional'!C318","v":"EXCESS ADIT"},{"$f":"'FR-16(7)(v)-1 Functional'!D318","v":"NP29"},null,{"$f":"'FR-16(7)(v)-10 DIST Classified'!G318","v":18211682},{"$f":"F318-SUM(H318:Q318)","v":8547836},{"$f":"ROUND(F318*VLOOKUP(D318,ALLOCTABLE_Distr_Demand,$H$10,FALSE),0)","v":5049553},{"$f":"ROUND(F318*VLOOKUP(D318,ALLOCTABLE_Distr_Demand,$I$10,FALSE),0)","v":23493},{"$f":"ROUND(F318*VLOOKUP(D318,ALLOCTABLE_Distr_Demand,$J$10,FALSE),0)","v":110727},{"$f":"ROUND(F318*VLOOKUP(D318,ALLOCTABLE_Distr_Demand,$K$10,FALSE),0)","v":1275},{"$f":"ROUND(F318*VLOOKUP(D318,ALLOCTABLE_Distr_Demand,$L$10,FALSE),0)","v":2578774},{"$f":"ROUND(F318*VLOOKUP(D318,ALLOCTABLE_Distr_Demand,$M$10,FALSE),0)","v":1698421},{"$f":"ROUND(F318*VLOOKUP(D318,ALLOCTABLE_Distr_Demand,$N$10,FALSE),0)","v":85231},{"$f":"ROUND(F318*VLOOKUP(D318,ALLOCTABLE_Distr_Demand,$O$10,FALSE),0)","v":0},{"$f":"ROUND(F318*VLOOKUP(D318,ALLOCTABLE_Distr_Demand,$P$10,FALSE),0)","v":114369},{"$f":"ROUND(F318*VLOOKUP(D318,ALLOCTABLE_Distr_Demand,$Q$10,FALSE),0)","v":2003},{"$f":"SUM(G318:Q318)","v":18211682},{"$f":"F318-R318","v":0}]
[31,null,{"$f":"'FR-16(7)(v)-1 Functional'!C319","v":"CUSTOMER SERVICE DEPOSITS"},{"$f":"'FR-16(7)(v)-1 Functional'!D319","v":"NP29"},null,{"$f":"'FR-16(7)(v)-10 DIST Classified'!G319","v":0},{"$f":"F319-SUM(H319:Q319)","v":0},{"$f":"ROUND(F319*VLOOKUP(D319,ALLOCTABLE_Distr_Demand,$H$10,FALSE),0)","v":0},{"$f":"ROUND(F319*VLOOKUP(D319,ALLOCTABLE_Distr_Demand,$I$10,FALSE),0)","v":0},{"$f":"ROUND(F319*VLOOKUP(D319,ALLOCTABLE_Distr_Demand,$J$10,FALSE),0)","v":0},{"$f":"ROUND(F319*VLOOKUP(D319,ALLOCTABLE_Distr_Demand,$K$10,FALSE),0)","v":0},{"$f":"ROUND(F319*VLOOKUP(D319,ALLOCTABLE_Distr_Demand,$L$10,FALSE),0)","v":0},{"$f":"ROUND(F319*VLOOKUP(D319,ALLOCTABLE_Distr_Demand,$M$10,FALSE),0)","v":0},{"$f":"ROUND(F319*VLOOKUP(D319,ALLOCTABLE_Distr_Demand,$N$10,FALSE),0)","v":0},{"$f":"ROUND(F319*VLOOKUP(D319,ALLOCTABLE_Distr_Demand,$O$10,FALSE),0)","v":0},{"$f":"ROUND(F319*VLOOKUP(D319,ALLOCTABLE_Distr_Demand,$P$10,FALSE),0)","v":0},{"$f":"ROUND(F319*VLOOKUP(D319,ALLOCTABLE_Distr_Demand,$Q$10,FALSE),0)","v":0},{"$f":"SUM(G319:Q319)","v":0},{"$f":"F319-R319","v":0}]
[32,null,{"$f":"'FR-16(7)(v)-1 Functional'!C320","v":"POST RETIREMENT BENEFITS"},{"$f":"'FR-16(7)(v)-1 Functional'!D320","v":"NP29"},null,{"$f":"'FR-16(7)(v)-10 DIST Classified'!G320","v":0},{"$f":"F320-SUM(H320:Q320)","v":0},{"$f":"ROUND(F320*VLOOKUP(D320,ALLOCTABLE_Distr_Demand,$H$10,FALSE),0)","v":0},{"$f":"ROUND(F320*VLOOKUP(D320,ALLOCTABLE_Distr_Demand,$I$10,FALSE),0)","v":0},{"$f":"ROUND(F320*VLOOKUP(D320,ALLOCTABLE_Distr_Demand,$J$10,FALSE),0)","v":0},{"$f":"ROUND(F320*VLOOKUP(D320,ALLOCTABLE_Distr_Demand,$K$10,FALSE),0)","v":0},{"$f":"ROUND(F320*VLOOKUP(D320,ALLOCTABLE_Distr_Demand,$L$10,FALSE),0)","v":0},{"$f":"ROUND(F320*VLOOKUP(D320,ALLOCTABLE_Distr_Demand,$M$10,FALSE),0)","v":0},{"$f":"ROUND(F320*VLOOKUP(D320,ALLOCTABLE_Distr_Demand,$N$10,FALSE),0)","v":0},{"$f":"ROUND(F320*VLOOKUP(D320,ALLOCTABLE_Distr_Demand,$O$10,FALSE),0)","v":0},{"$f":"ROUND(F320*VLOOKUP(D320,ALLOCTABLE_Distr_Demand,$P$10,FALSE),0)","v":0},{"$f":"ROUND(F320*VLOOKUP(D320,ALLOCTABLE_Distr_Demand,$Q$10,FALSE),0)","v":0},{"$f":"SUM(G320:Q320)","v":0},{"$f":"F320-R320","v":0}]
[33,null,{"$f":"'FR-16(7)(v)-1 Functional'!C321","v":"INVESTMENT TAX CREDIT"},{"$f":"'FR-16(7)(v)-1 Functional'!D321","v":"NP29"},null,{"$f":"'FR-16(7)(v)-10 DIST Classified'!G321","v":0},{"$f":"F321-SUM(H321:Q321)","v":0},{"$f":"ROUND(F321*VLOOKUP(D321,ALLOCTABLE_Distr_Demand,$H$10,FALSE),0)","v":0},{"$f":"ROUND(F321*VLOOKUP(D321,ALLOCTABLE_Distr_Demand,$I$10,FALSE),0)","v":0},{"$f":"ROUND(F321*VLOOKUP(D321,ALLOCTABLE_Distr_Demand,$J$10,FALSE),0)","v":0},{"$f":"ROUND(F321*VLOOKUP(D321,ALLOCTABLE_Distr_Demand,$K$10,FALSE),0)","v":0},{"$f":"ROUND(F321*VLOOKUP(D321,ALLOCTABLE_Distr_Demand,$L$10,FALSE),0)","v":0},{"$f":"ROUND(F321*VLOOKUP(D321,ALLOCTABLE_Distr_Demand,$M$10,FALSE),0)","v":0},{"$f":"ROUND(F321*VLOOKUP(D321,ALLOCTABLE_Distr_Demand,$N$10,FALSE),0)","v":0},{"$f":"ROUND(F321*VLOOKUP(D321,ALLOCTABLE_Distr_Demand,$O$10,FALSE),0)","v":0},{"$f":"ROUND(F321*VLOOKUP(D321,ALLOCTABLE_Distr_Demand,$P$10,FALSE),0)","v":0},{"$f":"ROUND(F321*VLOOKUP(D321,ALLOCTABLE_Distr_Demand,$Q$10,FALSE),0)","v":0},{"$f":"SUM(G321:Q321)","v":0},{"$f":"F321-R321","v":0}]
[34,null,{"$f":"'FR-16(7)(v)-1 Functional'!C322","v":"  TOTAL OTHER SUBTRACTIVE ADJUSTMENTS"},null,null,{"$f":"SUM(F317:F321)","v":18211682},{"$f":"SUM(G317:G321)","v":8547836},{"$f":"SUM(H317:H321)","v":5049553},{"$f":"SUM(I317:I321)","v":23493},{"$f":"SUM(J317:J321)","v":110727},1275,2578774,1698421,85231,0,114369,{"$f":"SUM(Q317:Q321)","v":2003},{"$f":"SUM(R317:R321)","v":18211682},{"$f":"SUM(S317:S321)","v":0}]
[35]
[36,{"$f":"'FR-16(7)(v)-1 Functional'!B324","v":"TOTAL SUBTRACTIVE RATE BASE ADJUSTMENTS"},null,null,null,{"$f":"F322+F315+F301","v":77369800},{"$f":"G322+G315+G301","v":36406047},{"$f":"H322+H315+H301","v":21404584},{"$f":"I322+I315+I301","v":99410},{"$f":"J322+J315+J301","v":471101},5416,10918381,7187853,361399,22246,484713,{"$f":"Q322+Q315+Q301","v":8650},{"$f":"R322+R315+R301","v":77369800},{"$f":"S322+S315+S301","v":0}]
[]
[{"$f":"co_name","v":"DUKE ENERGY KENTUCKY, INC."},null,null,null,null,null,null,null,null,null,null,null,null,null,null,null,null,{"$f":"R1","v":"FR-16(7)(v)-11"}]
[{"$f":"$A$2","v":"DISTRIBUTION DEMAND ALLOCATED - ELECTRIC COST OF SERVICE"},null,null,null,null,null,null,null,null,null,null,null,null,null,null,null,null,{"$f":"R2","v":"WITNESS RESPONSIBLE:"}]
[{"$f":"case_name","v":"CASE NO: 2019-00271"},null,null,null,null,null,null,null,null,null,null,null,null,null,null,null,null,{"$f":"Witness","v":"JAMES E. ZIOLKOWSKI"}]
[{"$f":"data_filing","v":"DATA: 12 MONTHS ACTUAL  & 0 MONTHS ESTIMATED"},null,null,null,null,null,null,null,null,null,null,null,null,null,null,null,null,{"$f":"\"PAGE \"&Pages-12&\" OF \"&Pages","v":"PAGE 6 OF 18"}]
[{"$f":"type","v":"TYPE OF FILING: \"X\" ORIGINAL   UPDATED    REVISED  "}]
[]
[null,null,null,null,null,{"$f":"F$7","v":"TOTAL"},null,{"$f":"H$7","v":"DS"},{"$f":"I$7","v":"GSFL"},{"$f":"J$7","v":"EH"},{"$f":"K$7","v":"SP"},"DT SEC","DT PRI","DP","TT",null,"OTHER"]
["LINE",null,null,null,null,{"$f":"F$8","v":"DISTRIBUTION"},{"$f":"G$8","v":"RS"},{"$f":"H$8","v":"SECONDARY"},{"$f":"I$8","v":"SECONDARY"},{"$f":"J$8","v":"SECONDARY"},{"$f":"K$8","v":"SECONDARY"},"SECONDARY","PRIMARY","PRIMARY","TRANSMISSION","LT","WATER",{"$f":"R8","v":"TOTAL"},"ALL"]
["NO.","ADDITIVE RATE BASE ADJUSTMENTS",null,"ALLO",null,{"$f":"F$9","v":"DEMAND"},{"$f":"G$9","v":"RESIDENTIAL"},{"$f":"H$9","v":"DISTRIBUTION"},{"$f":"I$9","v":"DISTRIBUTION"},{"$f":"J$9","v":"DISTRIBUTION"},{"$f":"K$9","v":"DISTRIBUTION"},"DISTRIBUTION","DISTRIBUTION","DISTRIBUTION","TIME OF DAY","LIGHTING","PUMPING",{"$f":"R9","v":"AT ISSUE"},"OTHER"]
[null,null,"Schedule 5.1",null,null,null,{"$f":"G$10","v":3},{"$f":"H$10","v":4},{"$f":"I$10","v":5},{"$f":"J$10","v":6},{"$f":"K$10","v":7},8,9,10,11,12,13,null," "]
[1,"OTHER ACCUMULATED DEFERRED INCOME TAXES"]
[2," ACCUM DEF INC TAXES (190)"]
[3,null,{"$f":"'FR-16(7)(v)-1 Functional'!C338","v":"UNCOLLECTIBLE ACCTS"},{"$f":"'FR-16(7)(v)-1 Functional'!D338","v":"K411"},null,{"$f":"'FR-16(7)(v)-10 DIST Classified'!G338","v":0},{"$f":"F338-SUM(H338:Q338)","v":0},{"$f":"ROUND(F338*VLOOKUP(D338,ALLOCTABLE_Distr_Demand,$H$10,FALSE),0)","v":0},{"$f":"ROUND(F338*VLOOKUP(D338,ALLOCTABLE_Distr_Demand,$I$10,FALSE),0)","v":0},{"$f":"ROUND(F338*VLOOKUP(D338,ALLOCTABLE_Distr_Demand,$J$10,FALSE),0)","v":0},{"$f":"ROUND(F338*VLOOKUP(D338,ALLOCTABLE_Distr_Demand,$K$10,FALSE),0)","v":0},{"$f":"ROUND(F338*VLOOKUP(D338,ALLOCTABLE_Distr_Demand,$L$10,FALSE),0)","v":0},{"$f":"ROUND(F338*VLOOKUP(D338,ALLOCTABLE_Distr_Demand,$M$10,FALSE),0)","v":0},{"$f":"ROUND(F338*VLOOKUP(D338,ALLOCTABLE_Distr_Demand,$N$10,FALSE),0)","v":0},{"$f":"ROUND(F338*VLOOKUP(D338,ALLOCTABLE_Distr_Demand,$O$10,FALSE),0)","v":0},{"$f":"ROUND(F338*VLOOKUP(D338,ALLOCTABLE_Distr_Demand,$P$10,FALSE),0)","v":0},{"$f":"ROUND(F338*VLOOKUP(D338,ALLOCTABLE_Distr_Demand,$Q$10,FALSE),0)","v":0},{"$f":"SUM(G338:Q338)","v":0},{"$f":"F338-R338","v":0}]
[4,null,{"$f":"'FR-16(7)(v)-1 Functional'!C339","v":"CASH FLOW HEDGE"},{"$f":"'FR-16(7)(v)-1 Functional'!D339","v":"A315"},null,{"$f":"'FR-16(7)(v)-10 DIST Classified'!G339","v":40649},20964,10291,44,261,3,4993,3223,176,456,231,7,40649,0]
[5,null,{"$f":"'FR-16(7)(v)-1 Functional'!C340","v":"RESERVED FOR FUTURE USE"},{"$f":"'FR-16(7)(v)-1 Functional'!D340","v":"NP29"},null,{"$f":"'FR-16(7)(v)-10 DIST Classified'!G340","v":0},0,0,0,0,0,0,0,0,0,0,0,0,0]
[6,null,{"$f":"'FR-16(7)(v)-1 Functional'!C341","v":"RESERVED FOR FUTURE USE"},{"$f":"'FR-16(7)(v)-1 Functional'!D341","v":"NP29"},null,{"$f":"'FR-16(7)(v)-10 DIST Classified'!G341","v":0},0,0,0,0,0,0,0,0,0,0,0,0,0]
[7,null,{"$f":"'FR-16(7)(v)-1 Functional'!C342","v":"ELECTRIC METERS"},{"$f":"'FR-16(7)(v)-1 Functional'!D342","v":"K407"},null,{"$f":"'FR-16(7)(v)-10 DIST Classified'!G342","v":0},0,0,0,0,0,0,0,0,0,0,0,0,0]
[8,null,{"$f":"'FR-16(7)(v)-1 Functional'!C343","v":"UNAMORTIZED DEBT PREMIUM"},{"$f":"'FR-16(7)(v)-1 Functional'!D343","v":"D249"},null,{"$f":"'FR-16(7)(v)-10 DIST Classified'!G343","v":0},0,0,0,0,0,0,0,0,0,0,0,0,0]
[9,null,{"$f":"'FR-16(7)(v)-1 Functional'!C344","v":"ARO CUMULATIVE EFFECT"},{"$f":"'FR-16(7)(v)-1 Functional'!D344","v":"NP29"},null,{"$f":"'FR-16(7)(v)-10 DIST Classified'!G344","v":0},0,0,0,0,0,0,0,0,0,0,0,0,0]
[10,null,{"$f":"'FR-16(7)(v)-1 Functional'!C345","v":"RETIREMENT PLAN"},{"$f":"'FR-16(7)(v)-1 Functional'!D345","v":"A315"},null,{"$f":"'FR-16(7)(v)-10 DIST Classified'!G345","v":417544},215319,105710,455,2685,29,51287,33111,1808,4689,2376,75,417544,0]
[11,null,{"$f":"'FR-16(7)(v)-1 Functional'!C346","v":"POST RETIREMENT BENEFITS "},{"$f":"'FR-16(7)(v)-1 Functional'!D346","v":"A315"},null,{"$f":"'FR-16(7)(v)-10 DIST Classified'!G346","v":0},0,0,0,0,0,0,0,0,0,0,0,0,0]
[12,null,{"$f":"'FR-16(7)(v)-1 Functional'!C347","v":"POST RETIREMENT BENEFITS - HEALTH CARE"},{"$f":"'FR-16(7)(v)-1 Functional'!D347","v":"A315"},null,{"$f":"'FR-16(7)(v)-10 DIST Classified'!G347","v":0},0,0,0,0,0,0,0,0,0,0,0,0,0]
[13,null,{"$f":"'FR-16(7)(v)-1 Functional'!C348","v":"POST EMPLOYMENT BENEFITS - SFAS 112"},{"$f":"'FR-16(7)(v)-1 Functional'!D348","v":"A315"},null,{"$f":"'FR-16(7)(v)-10 DIST Classified'!G348","v":0},0,0,0,0,0,0,0,0,0,0,0,0,0]
[14,null,{"$f":"'FR-16(7)(v)-1 Functional'!C349","v":"SUPPLEMENTAL PENSION PLAN"},{"$f":"'FR-16(7)(v)-1 Functional'!D349","v":"A315"},null,{"$f":"'FR-16(7)(v)-10 DIST Classified'!G349","v":0},0,0,0,0,0,0,0,0,0,0,0,0,0]
[15,null,{"$f":"'FR-16(7)(v)-1 Functional'!C350","v":"INCENTIVE PLAN"},{"$f":"'FR-16(7)(v)-1 Functional'!D350","v":"A315"},null,{"$f":"'FR-16(7)(v)-10 DIST Classified'!G350","v":0},0,0,0,0,0,0,0,0,0,0,0,0,0]
[16,null,{"$f":"'FR-16(7)(v)-1 Functional'!C351","v":"FEDERAL DEFERRED TAX RECEIVEABLE"},{"$f":"'FR-16(7)(v)-1 Functional'!D351","v":"A315"},null,{"$f":"'FR-16(7)(v)-10 DIST Classified'!G351","v":0},0,0,0,0,0,0,0,0,0,0,0,0,0]
[17,null,{"$f":"'FR-16(7)(v)-1 Functional'!C352","v":"MISCELLANEOUS"},{"$f":"'FR-16(7)(v)-1 Functional'!D352","v":"A315"},null,{"$f":"'FR-16(7)(v)-10 DIST Classified'!G352","v":1340194},691112,339297,1461,8617,94,164616,106277,5803,15050,7626,241,1340194,0]
[18,null,{"$f":"'FR-16(7)(v)-1 Functional'!C353","v":"DEFERRED TAX"},{"$f":"'FR-16(7)(v)-1 Functional'!D353","v":"A315"},null,{"$f":"'FR-16(7)(v)-10 DIST Classified'!G353","v":610716},314934,154615,666,3927,43,75014,48430,2644,6858,3475,110,610716,0]
[19,null,{"$f":"'FR-16(7)(v)-1 Functional'!C354","v":"NET OPERATING LOSS"},{"$f":"'FR-16(7)(v)-1 Functional'!D354","v":"NP29"},null,{"$f":"'FR-16(7)(v)-10 DIST Classified'!G354","v":0},0,0,0,0,0,0,0,0,0,0,0,0,0]
[20,null,{"$f":"'FR-16(7)(v)-1 Functional'!C355","v":"401K INCENTIVE PLAN"},{"$f":"'FR-16(7)(v)-1 Functional'!D355","v":"A315"},null,{"$f":"'FR-16(7)(v)-10 DIST Classified'!G355","v":0},0,0,0,0,0,0,0,0,0,0,0,0,0]
[21,null,{"$f":"'FR-16(7)(v)-1 Functional'!C356","v":"ENVIRONMENTAL RESERVE"},{"$f":"'FR-16(7)(v)-1 Functional'!D356","v":"NP29"},null,{"$f":"'FR-16(7)(v)-10 DIST Classified'!G356","v":0},0,0,0,0,0,0,0,0,0,0,0,0,0]
[22,null,{"$f":"'FR-16(7)(v)-1 Functional'!C357","v":"VACATION PAY ACCRUALS"},{"$f":"'FR-16(7)(v)-1 Functional'!D357","v":"A315"},null,{"$f":"'FR-16(7)(v)-10 DIST Classified'!G357","v":66202},34138,16760,72,426,5,8132,5250,287,743,377,12,66202,0]
[23,null,{"$f":"'FR-16(7)(v)-1 Functional'!C358","v":"DEMAND SIDE MANAGEMENT DEFERRAL"},{"$f":"'FR-16(7)(v)-1 Functional'!D358","v":"NP29"},null,{"$f":"'FR-16(7)(v)-10 DIST Classified'!G358","v":181329},85108,50277,234,1102,13,25676,16911,849,0,1139,20,181329,0]
[24,null,{"$f":"'FR-16(7)(v)-1 Functional'!C359","v":"OPERATING LEASE OBLIGATION"},{"$f":"'FR-16(7)(v)-1 Functional'!D359","v":"NP29"},null,{"$f":"'FR-16(7)(v)-10 DIST Classified'!G359","v":671003},314941,186049,866,4080,47,95014,62578,3140,0,4214,74,671003,0]
[25,null,{"$f":"'FR-16(7)(v)-1 Functional'!C360","v":"INJURIES & DAMAGES"},{"$f":"'FR-16(7)(v)-1 Functional'!D360","v":"NP29"},null,{"$f":"'FR-16(7)(v)-10 DIST Classified'!G360","v":0},0,0,0,0,0,0,0,0,0,0,0,0,0]
[26,null,{"$f":"'FR-16(7)(v)-1 Functional'!C361","v":"  TOTAL ACCOUNT 190"},null,null,{"$f":"SUM(F337:F360)","v":3327637},{"$f":"SUM(G337:G360)","v":1676516},{"$f":"SUM(H337:H360)","v":862999},{"$f":"SUM(I337:I360)","v":3798},{"$f":"SUM(J337:J360)","v":21098},234,424732,275780,14707,27796,19438,{"$f":"SUM(Q337:Q360)","v":539},{"$f":"SUM(R337:R360)","v":3327637},{"$f":"SUM(S337:S360)","v":0}]
[27]
[28," OTHER"]
[29,null,{"$f":"'FR-16(7)(v)-1 Functional'!C364","v":"RESERVED FOR FUTURE USE"},{"$f":"'FR-16(7)(v)-1 Functional'!D364","v":"NP29"},null,{"$f":"'FR-16(7)(v)-10 DIST Classified'!G364","v":0},{"$f":"F364-SUM(H364:Q364)","v":0},{"$f":"ROUND(F364*VLOOKUP(D364,ALLOCTABLE_Distr_Demand,$H$10,FALSE),0)","v":0},{"$f":"ROUND(F364*VLOOKUP(D364,ALLOCTABLE_Distr_Demand,$I$10,FALSE),0)","v":0},{"$f":"ROUND(F364*VLOOKUP(D364,ALLOCTABLE_Distr_Demand,$J$10,FALSE),0)","v":0},{"$f":"ROUND(F364*VLOOKUP(D364,ALLOCTABLE_Distr_Demand,$K$10,FALSE),0)","v":0},{"$f":"ROUND(F364*VLOOKUP(D364,ALLOCTABLE_Distr_Demand,$L$10,FALSE),0)","v":0},{"$f":"ROUND(F364*VLOOKUP(D364,ALLOCTABLE_Distr_Demand,$M$10,FALSE),0)","v":0},{"$f":"ROUND(F364*VLOOKUP(D364,ALLOCTABLE_Distr_Demand,$N$10,FALSE),0)","v":0},{"$f":"ROUND(F364*VLOOKUP(D364,ALLOCTABLE_Distr_Demand,$O$10,FALSE),0)","v":0},{"$f":"ROUND(F364*VLOOKUP(D364,ALLOCTABLE_Distr_Demand,$P$10,FALSE),0)","v":0},{"$f":"ROUND(F364*VLOOKUP(D364,ALLOCTABLE_Distr_Demand,$Q$10,FALSE),0)","v":0},{"$f":"SUM(G364:Q364)","v":0},{"$f":"F364-R364","v":0}]
[30,null,{"$f":"'FR-16(7)(v)-1 Functional'!C365","v":"RATE CASE EXPENSE REGULATORY ASSET"},{"$f":"'FR-16(7)(v)-1 Functional'!D365","v":"NP29"},null,{"$f":"'FR-16(7)(v)-10 DIST Classified'!G365","v":271844},{"$f":"F365-SUM(H365:Q365)","v":127593},{"$f":"ROUND(F365*VLOOKUP(D365,ALLOCTABLE_Distr_Demand,$H$10,FALSE),0)","v":75374},{"$f":"ROUND(F365*VLOOKUP(D365,ALLOCTABLE_Distr_Demand,$I$10,FALSE),0)","v":351},{"$f":"ROUND(F365*VLOOKUP(D365,ALLOCTABLE_Distr_Demand,$J$10,FALSE),0)","v":1653},{"$f":"ROUND(F365*VLOOKUP(D365,ALLOCTABLE_Distr_Demand,$K$10,FALSE),0)","v":19},{"$f":"ROUND(F365*VLOOKUP(D365,ALLOCTABLE_Distr_Demand,$L$10,FALSE),0)","v":38493},{"$f":"ROUND(F365*VLOOKUP(D365,ALLOCTABLE_Distr_Demand,$M$10,FALSE),0)","v":25352},{"$f":"ROUND(F365*VLOOKUP(D365,ALLOCTABLE_Distr_Demand,$N$10,FALSE),0)","v":1272},{"$f":"ROUND(F365*VLOOKUP(D365,ALLOCTABLE_Distr_Demand,$O$10,FALSE),0)","v":0},{"$f":"ROUND(F365*VLOOKUP(D365,ALLOCTABLE_Distr_Demand,$P$10,FALSE),0)","v":1707},{"$f":"ROUND(F365*VLOOKUP(D365,ALLOCTABLE_Distr_Demand,$Q$10,FALSE),0)","v":30},{"$f":"SUM(G365:Q365)","v":271844},{"$f":"F365-R365","v":0}]
[31,null,{"$f":"'FR-16(7)(v)-1 Functional'!C366","v":"RESERVED FOR FUTURE USE"},{"$f":"'FR-16(7)(v)-1 Functional'!D366","v":"NP29"},null,{"$f":"'FR-16(7)(v)-10 DIST Classified'!G366","v":0},{"$f":"F366-SUM(H366:Q366)","v":0},{"$f":"ROUND(F366*VLOOKUP(D366,ALLOCTABLE_Distr_Demand,$H$10,FALSE),0)","v":0},{"$f":"ROUND(F366*VLOOKUP(D366,ALLOCTABLE_Distr_Demand,$I$10,FALSE),0)","v":0},{"$f":"ROUND(F366*VLOOKUP(D366,ALLOCTABLE_Distr_Demand,$J$10,FALSE),0)","v":0},{"$f":"ROUND(F366*VLOOKUP(D366,ALLOCTABLE_Distr_Demand,$K$10,FALSE),0)","v":0},{"$f":"ROUND(F366*VLOOKUP(D366,ALLOCTABLE_Distr_Demand,$L$10,FALSE),0)","v":0},{"$f":"ROUND(F366*VLOOKUP(D366,ALLOCTABLE_Distr_Demand,$M$10,FALSE),0)","v":0},{"$f":"ROUND(F366*VLOOKUP(D366,ALLOCTABLE_Distr_Demand,$N$10,FALSE),0)","v":0},{"$f":"ROUND(F366*VLOOKUP(D366,ALLOCTABLE_Distr_Demand,$O$10,FALSE),0)","v":0},{"$f":"ROUND(F366*VLOOKUP(D366,ALLOCTABLE_Distr_Demand,$P$10,FALSE),0)","v":0},{"$f":"ROUND(F366*VLOOKUP(D366,ALLOCTABLE_Distr_Demand,$Q$10,FALSE),0)","v":0},{"$f":"SUM(G366:Q366)","v":0},{"$f":"F366-R366","v":0}]
[32,null,{"$f":"'FR-16(7)(v)-1 Functional'!C367","v":"  OTHER"},null,null,{"$f":"SUM(F364:F366)","v":271844},{"$f":"SUM(G363:G366)","v":127593},75374,351,{"$f":"SUM(J363:J366)","v":1653},19,38493,25352,1272,0,1707,30,271844,0]
[33,null,null,null,null," "]
[34,"CONSTRUCTION WORK IN PROGRESS"]
[35,null,"PRODUCTION",{"$f":"'FR-16(7)(v)-1 Functional'!D370","v":"P129"},null,{"$f":"'FR-16(7)(v)-10 DIST Classified'!G370","v":0},{"$f":"F370-SUM(H370:Q370)","v":0},{"$f":"ROUND(F370*VLOOKUP(D370,ALLOCTABLE_Distr_Demand,$H$10,FALSE),0)","v":0},{"$f":"ROUND(F370*VLOOKUP(D370,ALLOCTABLE_Distr_Demand,$I$10,FALSE),0)","v":0},{"$f":"ROUND(F370*VLOOKUP(D370,ALLOCTABLE_Distr_Demand,$J$10,FALSE),0)","v":0},{"$f":"ROUND(F370*VLOOKUP(D370,ALLOCTABLE_Distr_Demand,$K$10,FALSE),0)","v":0},{"$f":"ROUND(F370*VLOOKUP(D370,ALLOCTABLE_Distr_Demand,$L$10,FALSE),0)","v":0},{"$f":"ROUND(F370*VLOOKUP(D370,ALLOCTABLE_Distr_Demand,$M$10,FALSE),0)","v":0},{"$f":"ROUND(F370*VLOOKUP(D370,ALLOCTABLE_Distr_Demand,$N$10,FALSE),0)","v":0},{"$f":"ROUND(F370*VLOOKUP(D370,ALLOCTABLE_Distr_Demand,$O$10,FALSE),0)","v":0},{"$f":"ROUND(F370*VLOOKUP(D370,ALLOCTABLE_Distr_Demand,$P$10,FALSE),0)","v":0},{"$f":"ROUND(F370*VLOOKUP(D370,ALLOCTABLE_Distr_Demand,$Q$10,FALSE),0)","v":0},{"$f":"SUM(G370:Q370)","v":0},{"$f":"F370-R370","v":0}]
[36,null,"TRANSMISSION",{"$f":"'FR-16(7)(v)-1 Functional'!D371","v":"T129"},null,{"$f":"'FR-16(7)(v)-10 DIST Classified'!G371","v":0},{"$f":"F371-SUM(H371:Q371)","v":0},{"$f":"ROUND(F371*VLOOKUP(D371,ALLOCTABLE_Distr_Demand,$H$10,FALSE),0)","v":0},{"$f":"ROUND(F371*VLOOKUP(D371,ALLOCTABLE_Distr_Demand,$I$10,FALSE),0)","v":0},{"$f":"ROUND(F371*VLOOKUP(D371,ALLOCTABLE_Distr_Demand,$J$10,FALSE),0)","v":0},{"$f":"ROUND(F371*VLOOKUP(D371,ALLOCTABLE_Distr_Demand,$K$10,FALSE),0)","v":0},{"$f":"ROUND(F371*VLOOKUP(D371,ALLOCTABLE_Distr_Demand,$L$10,FALSE),0)","v":0},{"$f":"ROUND(F371*VLOOKUP(D371,ALLOCTABLE_Distr_Demand,$M$10,FALSE),0)","v":0},{"$f":"ROUND(F371*VLOOKUP(D371,ALLOCTABLE_Distr_Demand,$N$10,FALSE),0)","v":0},{"$f":"ROUND(F371*VLOOKUP(D371,ALLOCTABLE_Distr_Demand,$O$10,FALSE),0)","v":0},{"$f":"ROUND(F371*VLOOKUP(D371,ALLOCTABLE_Distr_Demand,$P$10,FALSE),0)","v":0},{"$f":"ROUND(F371*VLOOKUP(D371,ALLOCTABLE_Distr_Demand,$Q$10,FALSE),0)","v":0},{"$f":"SUM(G371:Q371)","v":0},{"$f":"F371-R371","v":0}]
[37,null,"DISTRIBUTION",{"$f":"'FR-16(7)(v)-1 Functional'!D372","v":"D149"},null,{"$f":"'FR-16(7)(v)-10 DIST Classified'!G372","v":0},{"$f":"F372-SUM(H372:Q372)","v":0},{"$f":"ROUND(F372*VLOOKUP(D372,ALLOCTABLE_Distr_Demand,$H$10,FALSE),0)","v":0},{"$f":"ROUND(F372*VLOOKUP(D372,ALLOCTABLE_Distr_Demand,$I$10,FALSE),0)","v":0},{"$f":"ROUND(F372*VLOOKUP(D372,ALLOCTABLE_Distr_Demand,$J$10,FALSE),0)","v":0},{"$f":"ROUND(F372*VLOOKUP(D372,ALLOCTABLE_Distr_Demand,$K$10,FALSE),0)","v":0},{"$f":"ROUND(F372*VLOOKUP(D372,ALLOCTABLE_Distr_Demand,$L$10,FALSE),0)","v":0},{"$f":"ROUND(F372*VLOOKUP(D372,ALLOCTABLE_Distr_Demand,$M$10,FALSE),0)","v":0},{"$f":"ROUND(F372*VLOOKUP(D372,ALLOCTABLE_Distr_Demand,$N$10,FALSE),0)","v":0},{"$f":"ROUND(F372*VLOOKUP(D372,ALLOCTABLE_Distr_Demand,$O$10,FALSE),0)","v":0},{"$f":"ROUND(F372*VLOOKUP(D372,ALLOCTABLE_Distr_Demand,$P$10,FALSE),0)","v":0},{"$f":"ROUND(F372*VLOOKUP(D372,ALLOCTABLE_Distr_Demand,$Q$10,FALSE),0)","v":0},{"$f":"SUM(G372:Q372)","v":0},{"$f":"F372-R372","v":0}]
[38,null,"COMMON",{"$f":"'FR-16(7)(v)-1 Functional'!D373","v":"C129"},null,{"$f":"'FR-16(7)(v)-10 DIST Classified'!G373","v":0},{"$f":"F373-SUM(H373:Q373)","v":0},{"$f":"ROUND(F373*VLOOKUP(D373,ALLOCTABLE_Distr_Demand,$H$10,FALSE),0)","v":0},{"$f":"ROUND(F373*VLOOKUP(D373,ALLOCTABLE_Distr_Demand,$I$10,FALSE),0)","v":0},{"$f":"ROUND(F373*VLOOKUP(D373,ALLOCTABLE_Distr_Demand,$J$10,FALSE),0)","v":0},{"$f":"ROUND(F373*VLOOKUP(D373,ALLOCTABLE_Distr_Demand,$K$10,FALSE),0)","v":0},{"$f":"ROUND(F373*VLOOKUP(D373,ALLOCTABLE_Distr_Demand,$L$10,FALSE),0)","v":0},{"$f":"ROUND(F373*VLOOKUP(D373,ALLOCTABLE_Distr_Demand,$M$10,FALSE),0)","v":0},{"$f":"ROUND(F373*VLOOKUP(D373,ALLOCTABLE_Distr_Demand,$N$10,FALSE),0)","v":0},{"$f":"ROUND(F373*VLOOKUP(D373,ALLOCTABLE_Distr_Demand,$O$10,FALSE),0)","v":0},{"$f":"ROUND(F373*VLOOKUP(D373,ALLOCTABLE_Distr_Demand,$P$10,FALSE),0)","v":0},{"$f":"ROUND(F373*VLOOKUP(D373,ALLOCTABLE_Distr_Demand,$Q$10,FALSE),0)","v":0},{"$f":"SUM(G373:Q373)","v":0},{"$f":"F373-R373","v":0}]
[39,null,"GENERAL",{"$f":"'FR-16(7)(v)-1 Functional'!D374","v":"G129"},null,{"$f":"'FR-16(7)(v)-10 DIST Classified'!G374","v":0},{"$f":"F374-SUM(H374:Q374)","v":0},{"$f":"ROUND(F374*VLOOKUP(D374,ALLOCTABLE_Distr_Demand,$H$10,FALSE),0)","v":0},{"$f":"ROUND(F374*VLOOKUP(D374,ALLOCTABLE_Distr_Demand,$I$10,FALSE),0)","v":0},{"$f":"ROUND(F374*VLOOKUP(D374,ALLOCTABLE_Distr_Demand,$J$10,FALSE),0)","v":0},{"$f":"ROUND(F374*VLOOKUP(D374,ALLOCTABLE_Distr_Demand,$K$10,FALSE),0)","v":0},{"$f":"ROUND(F374*VLOOKUP(D374,ALLOCTABLE_Distr_Demand,$L$10,FALSE),0)","v":0},{"$f":"ROUND(F374*VLOOKUP(D374,ALLOCTABLE_Distr_Demand,$M$10,FALSE),0)","v":0},{"$f":"ROUND(F374*VLOOKUP(D374,ALLOCTABLE_Distr_Demand,$N$10,FALSE),0)","v":0},{"$f":"ROUND(F374*VLOOKUP(D374,ALLOCTABLE_Distr_Demand,$O$10,FALSE),0)","v":0},{"$f":"ROUND(F374*VLOOKUP(D374,ALLOCTABLE_Distr_Demand,$P$10,FALSE),0)","v":0},{"$f":"ROUND(F374*VLOOKUP(D374,ALLOCTABLE_Distr_Demand,$Q$10,FALSE),0)","v":0},{"$f":"SUM(G374:Q374)","v":0},{"$f":"F374-R374","v":0}]
[40,null,"TOTAL CONSTRUCTION WORK IN PROGRESS",null,null,{"$f":"SUM(F370:F374)","v":0},0,0,0,0,0,0,0,0,0,0,0,0]
[41]
[42,{"$f":"'FR-16(7)(v)-1 Functional'!B377","v":"TOTAL ADDITIVE RATE BASE ADJUSTMENTS"},null,null,null,{"$f":"F361+F367+F375","v":3599481},{"$f":"G361+G367+G375","v":1804109},{"$f":"H361+H367+H375","v":938373},{"$f":"I361+I367+I375","v":4149},{"$f":"J361+J367+J375","v":22751},253,463225,301132,15979,27796,21145,{"$f":"Q361+Q367+Q375","v":569},{"$f":"R361+R367+R375","v":3599481},{"$f":"S361+S367+S375","v":0}]
[]
[{"$f":"co_name","v":"DUKE ENERGY KENTUCKY, INC."},null,null,null,null,null,null,null,null,null,null,null,null,null,null,null,null,{"$f":"R1","v":"FR-16(7)(v)-11"}]
[{"$f":"$A$2","v":"DISTRIBUTION DEMAND ALLOCATED - ELECTRIC COST OF SERVICE"},null,null,null,null,null,null,null,null,null,null,null,null,null,null,null,null,{"$f":"R2","v":"WITNESS RESPONSIBLE:"}]
[{"$f":"case_name","v":"CASE NO: 2019-00271"},null,null,null,null,null,null,null,null,null,null,null,null,null,null,null,null,{"$f":"Witness","v":"JAMES E. ZIOLKOWSKI"}]
[{"$f":"data_filing","v":"DATA: 12 MONTHS ACTUAL  & 0 MONTHS ESTIMATED"},null,null,null,null,null,null,null,null,null,null,null,null,null,null,null,null,{"$f":"\"PAGE \"&Pages-11&\" OF \"&Pages","v":"PAGE 7 OF 18"}]
[{"$f":"type","v":"TYPE OF FILING: \"X\" ORIGINAL   UPDATED    REVISED  "}]
[]
[null,null,null,null,null,{"$f":"F$7","v":"TOTAL"},null,{"$f":"H$7","v":"DS"},{"$f":"I$7","v":"GSFL"},{"$f":"J$7","v":"EH"},{"$f":"K$7","v":"SP"},"DT SEC","DT PRI","DP","TT",null,"OTHER"]
["LINE",null,null,null,null,{"$f":"F$8","v":"DISTRIBUTION"},{"$f":"G$8","v":"RS"},{"$f":"H$8","v":"SECONDARY"},{"$f":"I$8","v":"SECONDARY"},{"$f":"J$8","v":"SECONDARY"},{"$f":"K$8","v":"SECONDARY"},"SECONDARY","PRIMARY","PRIMARY","TRANSMISSION","LT","WATER",{"$f":"R8","v":"TOTAL"},"ALL"]
["NO.","WORKING CAPITAL",null,"ALLO",null,{"$f":"F$9","v":"DEMAND"},{"$f":"G$9","v":"RESIDENTIAL"},{"$f":"H$9","v":"DISTRIBUTION"},{"$f":"I$9","v":"DISTRIBUTION"},{"$f":"J$9","v":"DISTRIBUTION"},{"$f":"K$9","v":"DISTRIBUTION"},"DISTRIBUTION","DISTRIBUTION","DISTRIBUTION","TIME OF DAY","LIGHTING","PUMPING",{"$f":"R9","v":"AT ISSUE"},"OTHER"]
[null,null,"Schedule 5.2",null,null,null,{"$f":"G$10","v":3},{"$f":"H$10","v":4},{"$f":"I$10","v":5},{"$f":"J$10","v":6},{"$f":"K$10","v":7},8,9,10,11,12,13,null," "]
[]
[1,"NET ORIGINAL COST RATE BASE",null,null,null,{"$f":"F277-F324+F377","v":255709708},{"$f":"G277-G324+G377","v":120039676},{"$f":"H277-H324+H377","v":70889240},{"$f":"I277-I324+I377","v":329834},{"$f":"J277-J324+J377","v":1555193},17906,36199625,23841903,1196778,5504,1605881,{"$f":"Q277-Q324+Q377","v":28168},{"$f":"R277-R324+R377","v":255709708},{"$f":"S277-S324+S377","v":0}]
[2]
[3,"WORKING CAPITAL"]
[4]
[5,"PLANT MATERIALS & SUPPLIES"]
[6,null,"OTHER MATERIALS & SUPPLIES",{"$f":"'FR-16(7)(v)-1 Functional'!D395","v":"PD29"},null,{"$f":"'FR-16(7)(v)-10 DIST Classified'!G395","v":0},{"$f":"F395-SUM(H395:Q395)","v":0},{"$f":"ROUND(F395*VLOOKUP(D395,ALLOCTABLE_Distr_Demand,$H$10,FALSE),0)","v":0},{"$f":"ROUND(F395*VLOOKUP(D395,ALLOCTABLE_Distr_Demand,$I$10,FALSE),0)","v":0},{"$f":"ROUND(F395*VLOOKUP(D395,ALLOCTABLE_Distr_Demand,$J$10,FALSE),0)","v":0},{"$f":"ROUND(F395*VLOOKUP(D395,ALLOCTABLE_Distr_Demand,$K$10,FALSE),0)","v":0},{"$f":"ROUND(F395*VLOOKUP(D395,ALLOCTABLE_Distr_Demand,$L$10,FALSE),0)","v":0},{"$f":"ROUND(F395*VLOOKUP(D395,ALLOCTABLE_Distr_Demand,$M$10,FALSE),0)","v":0},{"$f":"ROUND(F395*VLOOKUP(D395,ALLOCTABLE_Distr_Demand,$N$10,FALSE),0)","v":0},{"$f":"ROUND(F395*VLOOKUP(D395,ALLOCTABLE_Distr_Demand,$O$10,FALSE),0)","v":0},{"$f":"ROUND(F395*VLOOKUP(D395,ALLOCTABLE_Distr_Demand,$P$10,FALSE),0)","v":0},{"$f":"ROUND(F395*VLOOKUP(D395,ALLOCTABLE_Distr_Demand,$Q$10,FALSE),0)","v":0},{"$f":"SUM(G395:Q395)","v":0},{"$f":"F395-R395","v":0}]
[7,null,{"$f":"'FR-16(7)(v)-1 Functional'!C396","v":"FUEL"},{"$f":"'FR-16(7)(v)-1 Functional'!D396","v":"K301"},null,{"$f":"'FR-16(7)(v)-10 DIST Classified'!G396","v":0},{"$f":"F396-SUM(H396:Q396)","v":0},{"$f":"ROUND(F396*VLOOKUP(D396,ALLOCTABLE_Distr_Demand,$H$10,FALSE),0)","v":0},{"$f":"ROUND(F396*VLOOKUP(D396,ALLOCTABLE_Distr_Demand,$I$10,FALSE),0)","v":0},{"$f":"ROUND(F396*VLOOKUP(D396,ALLOCTABLE_Distr_Demand,$J$10,FALSE),0)","v":0},{"$f":"ROUND(F396*VLOOKUP(D396,ALLOCTABLE_Distr_Demand,$K$10,FALSE),0)","v":0},{"$f":"ROUND(F396*VLOOKUP(D396,ALLOCTABLE_Distr_Demand,$L$10,FALSE),0)","v":0},{"$f":"ROUND(F396*VLOOKUP(D396,ALLOCTABLE_Distr_Demand,$M$10,FALSE),0)","v":0},{"$f":"ROUND(F396*VLOOKUP(D396,ALLOCTABLE_Distr_Demand,$N$10,FALSE),0)","v":0},{"$f":"ROUND(F396*VLOOKUP(D396,ALLOCTABLE_Distr_Demand,$O$10,FALSE),0)","v":0},{"$f":"ROUND(F396*VLOOKUP(D396,ALLOCTABLE_Distr_Demand,$P$10,FALSE),0)","v":0},{"$f":"ROUND(F396*VLOOKUP(D396,ALLOCTABLE_Distr_Demand,$Q$10,FALSE),0)","v":0},{"$f":"SUM(G396:Q396)","v":0},{"$f":"F396-R396","v":0}]
[8,null,{"$f":"'FR-16(7)(v)-1 Functional'!C397","v":"EMISSION ALLOWANCES"},{"$f":"'FR-16(7)(v)-1 Functional'!D397","v":"K301"},null,{"$f":"'FR-16(7)(v)-10 DIST Classified'!G397","v":0},{"$f":"F397-SUM(H397:Q397)","v":0},{"$f":"ROUND(F397*VLOOKUP(D397,ALLOCTABLE_Distr_Demand,$H$10,FALSE),0)","v":0},{"$f":"ROUND(F397*VLOOKUP(D397,ALLOCTABLE_Distr_Demand,$I$10,FALSE),0)","v":0},{"$f":"ROUND(F397*VLOOKUP(D397,ALLOCTABLE_Distr_Demand,$J$10,FALSE),0)","v":0},{"$f":"ROUND(F397*VLOOKUP(D397,ALLOCTABLE_Distr_Demand,$K$10,FALSE),0)","v":0},{"$f":"ROUND(F397*VLOOKUP(D397,ALLOCTABLE_Distr_Demand,$L$10,FALSE),0)","v":0},{"$f":"ROUND(F397*VLOOKUP(D397,ALLOCTABLE_Distr_Demand,$M$10,FALSE),0)","v":0},{"$f":"ROUND(F397*VLOOKUP(D397,ALLOCTABLE_Distr_Demand,$N$10,FALSE),0)","v":0},{"$f":"ROUND(F397*VLOOKUP(D397,ALLOCTABLE_Distr_Demand,$O$10,FALSE),0)","v":0},{"$f":"ROUND(F397*VLOOKUP(D397,ALLOCTABLE_Distr_Demand,$P$10,FALSE),0)","v":0},{"$f":"ROUND(F397*VLOOKUP(D397,ALLOCTABLE_Distr_Demand,$Q$10,FALSE),0)","v":0},{"$f":"SUM(G397:Q397)","v":0},{"$f":"F397-R397","v":0}]
[9,null,{"$f":"'FR-16(7)(v)-1 Functional'!C398","v":"  TOTAL PLANT MATS. & SUPPLIES"},null,null,{"$f":"SUM(F394:F397)","v":0},{"$f":"SUM(G394:G397)","v":0},{"$f":"SUM(H394:H397)","v":0},{"$f":"SUM(I394:I397)","v":0},{"$f":"SUM(J394:J397)","v":0},0,0,0,0,0,0,{"$f":"SUM(Q394:Q397)","v":0},{"$f":"SUM(R394:R397)","v":0},{"$f":"SUM(S394:S397)","v":0}]
[10,"TOTAL MATERIALS & SUPPLIES",null,null,null,{"$f":"F398","v":0},0,0,0,{"$f":"J398","v":0},0,0,0,0,0,0,0,0,0]
[11]
[12,"PREPAYMENTS"]
[13,null,{"$f":"'FR-16(7)(v)-1 Functional'!C402","v":"INSURANCE GENERAL"},{"$f":"'FR-16(7)(v)-1 Functional'!D402","v":"NP29"},null,{"$f":"'FR-16(7)(v)-10 DIST Classified'!G402","v":80269},{"$f":"F402-SUM(H402:Q402)","v":37674},{"$f":"ROUND(F402*VLOOKUP(D402,ALLOCTABLE_Distr_Demand,$H$10,FALSE),0)","v":22256},{"$f":"ROUND(F402*VLOOKUP(D402,ALLOCTABLE_Distr_Demand,$I$10,FALSE),0)","v":104},{"$f":"ROUND(F402*VLOOKUP(D402,ALLOCTABLE_Distr_Demand,$J$10,FALSE),0)","v":488},{"$f":"ROUND(F402*VLOOKUP(D402,ALLOCTABLE_Distr_Demand,$K$10,FALSE),0)","v":6},{"$f":"ROUND(F402*VLOOKUP(D402,ALLOCTABLE_Distr_Demand,$L$10,FALSE),0)","v":11366},{"$f":"ROUND(F402*VLOOKUP(D402,ALLOCTABLE_Distr_Demand,$M$10,FALSE),0)","v":7486},{"$f":"ROUND(F402*VLOOKUP(D402,ALLOCTABLE_Distr_Demand,$N$10,FALSE),0)","v":376},{"$f":"ROUND(F402*VLOOKUP(D402,ALLOCTABLE_Distr_Demand,$O$10,FALSE),0)","v":0},{"$f":"ROUND(F402*VLOOKUP(D402,ALLOCTABLE_Distr_Demand,$P$10,FALSE),0)","v":504},{"$f":"ROUND(F402*VLOOKUP(D402,ALLOCTABLE_Distr_Demand,$Q$10,FALSE),0)","v":9},{"$f":"SUM(G402:Q402)","v":80269},{"$f":"F402-R402","v":0}]
[14,null,{"$f":"'FR-16(7)(v)-1 Functional'!C403","v":"EXCISE TAX"},{"$f":"'FR-16(7)(v)-1 Functional'!D403","v":"NP29"},null,{"$f":"'FR-16(7)(v)-10 DIST Classified'!G403","v":0},{"$f":"F403-SUM(H403:Q403)","v":0},{"$f":"ROUND(F403*VLOOKUP(D403,ALLOCTABLE_Distr_Demand,$H$10,FALSE),0)","v":0},{"$f":"ROUND(F403*VLOOKUP(D403,ALLOCTABLE_Distr_Demand,$I$10,FALSE),0)","v":0},{"$f":"ROUND(F403*VLOOKUP(D403,ALLOCTABLE_Distr_Demand,$J$10,FALSE),0)","v":0},{"$f":"ROUND(F403*VLOOKUP(D403,ALLOCTABLE_Distr_Demand,$K$10,FALSE),0)","v":0},{"$f":"ROUND(F403*VLOOKUP(D403,ALLOCTABLE_Distr_Demand,$L$10,FALSE),0)","v":0},{"$f":"ROUND(F403*VLOOKUP(D403,ALLOCTABLE_Distr_Demand,$M$10,FALSE),0)","v":0},{"$f":"ROUND(F403*VLOOKUP(D403,ALLOCTABLE_Distr_Demand,$N$10,FALSE),0)","v":0},{"$f":"ROUND(F403*VLOOKUP(D403,ALLOCTABLE_Distr_Demand,$O$10,FALSE),0)","v":0},{"$f":"ROUND(F403*VLOOKUP(D403,ALLOCTABLE_Distr_Demand,$P$10,FALSE),0)","v":0},{"$f":"ROUND(F403*VLOOKUP(D403,ALLOCTABLE_Distr_Demand,$Q$10,FALSE),0)","v":0},{"$f":"SUM(G403:Q403)","v":0},{"$f":"F403-R403","v":0}]
[15,null,{"$f":"'FR-16(7)(v)-1 Functional'!C404","v":"COLLATERAL ASSET"},{"$f":"'FR-16(7)(v)-1 Functional'!D404","v":"K301"},null,{"$f":"'FR-16(7)(v)-10 DIST Classified'!G404","v":0},{"$f":"F404-SUM(H404:Q404)","v":0},{"$f":"ROUND(F404*VLOOKUP(D404,ALLOCTABLE_Distr_Demand,$H$10,FALSE),0)","v":0},{"$f":"ROUND(F404*VLOOKUP(D404,ALLOCTABLE_Distr_Demand,$I$10,FALSE),0)","v":0},{"$f":"ROUND(F404*VLOOKUP(D404,ALLOCTABLE_Distr_Demand,$J$10,FALSE),0)","v":0},{"$f":"ROUND(F404*VLOOKUP(D404,ALLOCTABLE_Distr_Demand,$K$10,FALSE),0)","v":0},{"$f":"ROUND(F404*VLOOKUP(D404,ALLOCTABLE_Distr_Demand,$L$10,FALSE),0)","v":0},{"$f":"ROUND(F404*VLOOKUP(D404,ALLOCTABLE_Distr_Demand,$M$10,FALSE),0)","v":0},{"$f":"ROUND(F404*VLOOKUP(D404,ALLOCTABLE_Distr_Demand,$N$10,FALSE),0)","v":0},{"$f":"ROUND(F404*VLOOKUP(D404,ALLOCTABLE_Distr_Demand,$O$10,FALSE),0)","v":0},{"$f":"ROUND(F404*VLOOKUP(D404,ALLOCTABLE_Distr_Demand,$P$10,FALSE),0)","v":0},{"$f":"ROUND(F404*VLOOKUP(D404,ALLOCTABLE_Distr_Demand,$Q$10,FALSE),0)","v":0},{"$f":"SUM(G404:Q404)","v":0},{"$f":"F404-R404","v":0}]
[16,null,{"$f":"'FR-16(7)(v)-1 Functional'!C405","v":"  TOTAL PREPAYMENTS"},null,null,{"$f":"SUM(F401:F404)","v":80269},{"$f":"SUM(G401:G404)","v":37674},{"$f":"SUM(H401:H404)","v":22256},{"$f":"SUM(I401:I404)","v":104},{"$f":"SUM(J401:J404)","v":488},6,11366,7486,376,0,504,{"$f":"SUM(Q401:Q404)","v":9},{"$f":"SUM(R401:R404)","v":80269},{"$f":"SUM(S401:S404)","v":0}]
[17]
[18,"AUTO CALC (O&M-ELECTRIC FUEL COST)/8",null,null,null,{"$f":"IF(WorkingCap=\"No\",0,ROUND((F549-F447-F448)/8,0))","v":0},{"$f":"F407-SUM(H407:Q407)","v":0},{"$f":"IF(WorkingCap=\"No\",0,ROUND((H549-H447-H448)/8,0))","v":0},0,0,0,0,0,0,0,0,0,{"$f":"SUM(G407:Q407)","v":0},{"$f":"F407-R407","v":0}]
[19,"  TOTAL WORKING CASH",null,null,null,{"$f":"F407","v":0},0,0,0,{"$f":"J407","v":0},0,0,0,0,0,0,0,0,0]
[20]
[21,"MISCELLANEOUS WORKING CAPITAL"]
[22,null,{"$f":"'FR-16(7)(v)-1 Functional'!C411","v":"RESERVED FOR FUTURE USE"},{"$f":"'FR-16(7)(v)-1 Functional'!D411","v":"K301"},null,{"$f":"'FR-16(7)(v)-10 DIST Classified'!G411","v":0},{"$f":"F411-SUM(H411:Q411)","v":0},{"$f":"ROUND(F411*VLOOKUP(D411,ALLOCTABLE_Distr_Demand,$H$10,FALSE),0)","v":0},{"$f":"ROUND(F411*VLOOKUP(D411,ALLOCTABLE_Distr_Demand,$I$10,FALSE),0)","v":0},{"$f":"ROUND(F411*VLOOKUP(D411,ALLOCTABLE_Distr_Demand,$J$10,FALSE),0)","v":0},{"$f":"ROUND(F411*VLOOKUP(D411,ALLOCTABLE_Distr_Demand,$K$10,FALSE),0)","v":0},{"$f":"ROUND(F411*VLOOKUP(D411,ALLOCTABLE_Distr_Demand,$L$10,FALSE),0)","v":0},{"$f":"ROUND(F411*VLOOKUP(D411,ALLOCTABLE_Distr_Demand,$M$10,FALSE),0)","v":0},{"$f":"ROUND(F411*VLOOKUP(D411,ALLOCTABLE_Distr_Demand,$N$10,FALSE),0)","v":0},{"$f":"ROUND(F411*VLOOKUP(D411,ALLOCTABLE_Distr_Demand,$O$10,FALSE),0)","v":0},{"$f":"ROUND(F411*VLOOKUP(D411,ALLOCTABLE_Distr_Demand,$P$10,FALSE),0)","v":0},{"$f":"ROUND(F411*VLOOKUP(D411,ALLOCTABLE_Distr_Demand,$Q$10,FALSE),0)","v":0},{"$f":"SUM(G411:Q411)","v":0},{"$f":"F411-R411","v":0}]
[23,null,{"$f":"'FR-16(7)(v)-1 Functional'!C412","v":"PIPP UNCOLLECTIBLES"},{"$f":"'FR-16(7)(v)-1 Functional'!D412","v":"A315"},null,{"$f":"'FR-16(7)(v)-10 DIST Classified'!G412","v":0},{"$f":"F412-SUM(H412:Q412)","v":0},{"$f":"ROUND(F412*VLOOKUP(D412,ALLOCTABLE_Distr_Demand,$H$10,FALSE),0)","v":0},{"$f":"ROUND(F412*VLOOKUP(D412,ALLOCTABLE_Distr_Demand,$I$10,FALSE),0)","v":0},{"$f":"ROUND(F412*VLOOKUP(D412,ALLOCTABLE_Distr_Demand,$J$10,FALSE),0)","v":0},{"$f":"ROUND(F412*VLOOKUP(D412,ALLOCTABLE_Distr_Demand,$K$10,FALSE),0)","v":0},{"$f":"ROUND(F412*VLOOKUP(D412,ALLOCTABLE_Distr_Demand,$L$10,FALSE),0)","v":0},{"$f":"ROUND(F412*VLOOKUP(D412,ALLOCTABLE_Distr_Demand,$M$10,FALSE),0)","v":0},{"$f":"ROUND(F412*VLOOKUP(D412,ALLOCTABLE_Distr_Demand,$N$10,FALSE),0)","v":0},{"$f":"ROUND(F412*VLOOKUP(D412,ALLOCTABLE_Distr_Demand,$O$10,FALSE),0)","v":0},{"$f":"ROUND(F412*VLOOKUP(D412,ALLOCTABLE_Distr_Demand,$P$10,FALSE),0)","v":0},{"$f":"ROUND(F412*VLOOKUP(D412,ALLOCTABLE_Distr_Demand,$Q$10,FALSE),0)","v":0},{"$f":"SUM(G412:Q412)","v":0},{"$f":"F412-R412","v":0}]
[24,null,{"$f":"'FR-16(7)(v)-1 Functional'!C413","v":"RESERVED FOR FUTURE USE"},{"$f":"'FR-16(7)(v)-1 Functional'!D413","v":"D249"},null,{"$f":"'FR-16(7)(v)-10 DIST Classified'!G413","v":0},{"$f":"F413-SUM(H413:Q413)","v":0},{"$f":"ROUND(F413*VLOOKUP(D413,ALLOCTABLE_Distr_Demand,$H$10,FALSE),0)","v":0},{"$f":"ROUND(F413*VLOOKUP(D413,ALLOCTABLE_Distr_Demand,$I$10,FALSE),0)","v":0},{"$f":"ROUND(F413*VLOOKUP(D413,ALLOCTABLE_Distr_Demand,$J$10,FALSE),0)","v":0},{"$f":"ROUND(F413*VLOOKUP(D413,ALLOCTABLE_Distr_Demand,$K$10,FALSE),0)","v":0},{"$f":"ROUND(F413*VLOOKUP(D413,ALLOCTABLE_Distr_Demand,$L$10,FALSE),0)","v":0},{"$f":"ROUND(F413*VLOOKUP(D413,ALLOCTABLE_Distr_Demand,$M$10,FALSE),0)","v":0},{"$f":"ROUND(F413*VLOOKUP(D413,ALLOCTABLE_Distr_Demand,$N$10,FALSE),0)","v":0},{"$f":"ROUND(F413*VLOOKUP(D413,ALLOCTABLE_Distr_Demand,$O$10,FALSE),0)","v":0},{"$f":"ROUND(F413*VLOOKUP(D413,ALLOCTABLE_Distr_Demand,$P$10,FALSE),0)","v":0},{"$f":"ROUND(F413*VLOOKUP(D413,ALLOCTABLE_Distr_Demand,$Q$10,FALSE),0)","v":0},{"$f":"SUM(G413:Q413)","v":0},{"$f":"F413-R413","v":0}]
[25,null,{"$f":"'FR-16(7)(v)-1 Functional'!C414","v":"  TOTAL MISC WORK CAPITAL"},null,null,{"$f":"SUM(F410:F413)","v":0},{"$f":"SUM(G410:G413)","v":0},{"$f":"SUM(H410:H413)","v":0},{"$f":"SUM(I410:I413)","v":0},{"$f":"SUM(J410:J413)","v":0},0,0,0,0,0,0,{"$f":"SUM(Q410:Q413)","v":0},{"$f":"SUM(R410:R413)","v":0},{"$f":"SUM(S410:S413)","v":0}]
[26]
[27,"TOTAL WORKING CAPITAL",null,null,null,{"$f":"F399+F405+F408+F414","v":80269},{"$f":"G399+G405+G408+G414","v":37674},{"$f":"H399+H405+H408+H414","v":22256},{"$f":"I399+I405+I408+I414","v":104},{"$f":"J399+J405+J408+J414","v":488},6,11366,7486,376,0,504,{"$f":"Q399+Q405+Q408+Q414","v":9},{"$f":"R399+R405+R408+R414","v":80269},{"$f":"S399+S405+S408+S414","v":0}]
[28,"PRELIMINARY SUMMARY"]
[29,null,{"$f":"'FR-16(7)(v)-1 Functional'!C418","v":"TOTAL ACCUMULATED DEFERRED INCOME TAXES"},null,null,{"$f":"-F324","v":-77369800},{"$f":"-G324","v":-36406047},{"$f":"-H324","v":-21404584},{"$f":"-I324","v":-99410},{"$f":"-J324","v":-471101},-5416,-10918381,-7187853,-361399,-22246,-484713,{"$f":"-Q324","v":-8650},{"$f":"-R324","v":-77369800},{"$f":"-S324","v":0}]
[30,null,{"$f":"'FR-16(7)(v)-1 Functional'!C419","v":"TOTAL OTHER ACCUMULATED DEFERRED INCOME TAXES"},null,null,{"$f":"F377","v":3599481},{"$f":"G377","v":1804109},{"$f":"H377","v":938373},{"$f":"I377","v":4149},{"$f":"J377","v":22751},253,463225,301132,15979,27796,21145,{"$f":"Q377","v":569},{"$f":"R377","v":3599481},{"$f":"S377","v":0}]
[31,null,{"$f":"'FR-16(7)(v)-1 Functional'!C420","v":"TOTAL WORKING CAPITAL"},null,null,{"$f":"F416","v":80269},{"$f":"G416","v":37674},{"$f":"H416","v":22256},{"$f":"I416","v":104},{"$f":"J416","v":488},6,11366,7486,376,0,504,{"$f":"Q416","v":9},{"$f":"R416","v":80269},{"$f":"S416","v":0}]
[32,null,{"$f":"'FR-16(7)(v)-1 Functional'!C421","v":"  TOTAL RATE BASE ADJUSTMENTS"},null,null,{"$f":"SUM(F417:F420)","v":-73690050},{"$f":"SUM(G417:G420)","v":-34564264},{"$f":"SUM(H417:H420)","v":-20443955},{"$f":"SUM(I417:I420)","v":-95157},{"$f":"SUM(J417:J420)","v":-447862},-5157,-10443790,-6879235,-345044,5550,-463064,{"$f":"SUM(Q417:Q420)","v":-8072},{"$f":"SUM(R417:R420)","v":-73690050},{"$f":"SUM(S417:S420)","v":0}]
[33]
[34,"RATE BASE CALCULATION"]
[35,null,{"$f":"'FR-16(7)(v)-1 Functional'!C424","v":"NET ELECTRIC PLANT IN SERVICE"},null,null,{"$f":"F277","v":329480027},{"$f":"G277","v":154641614},{"$f":"H277","v":91355451},{"$f":"I277","v":425095},{"$f":"J277","v":2003543},23069,46654781,30728624,1542198,-46,2069449,{"$f":"Q277","v":36249},{"$f":"R277","v":329480027},{"$f":"S277","v":0}]
[36,null,{"$f":"'FR-16(7)(v)-1 Functional'!C425","v":"TOTAL RATE BASE ADJUSTMENTS"},null,null,{"$f":"F421","v":-73690050},{"$f":"G421","v":-34564264},{"$f":"H421","v":-20443955},{"$f":"I421","v":-95157},{"$f":"J421","v":-447862},-5157,-10443790,-6879235,-345044,5550,-463064,{"$f":"Q421","v":-8072},{"$f":"R421","v":-73690050},{"$f":"S421","v":0}]
[37,null,{"$f":"'FR-16(7)(v)-1 Functional'!C426","v":"  TOTAL RATE BASE"},null,null,{"$f":"SUM(F423:F425)","v":255789977},{"$f":"SUM(G423:G425)","v":120077350},{"$f":"SUM(H423:H425)","v":70911496},{"$f":"SUM(I423:I425)","v":329938},{"$f":"SUM(J423:J425)","v":1555681},17912,36210991,23849389,1197154,5504,1606385,{"$f":"SUM(Q423:Q425)","v":28177},{"$f":"SUM(R423:R425)","v":255789977},{"$f":"SUM(S423:S425)","v":0}]
[38]
[39,"TOTAL RATE OF RETURN ALLOWABLE",null,null,null,{"$f":"$F$811","v":6.7100000000000007E-2},{"$f":"$F$811","v":6.7100000000000007E-2},6.7100000000000007E-2,6.7100000000000007E-2,6.7100000000000007E-2,6.7100000000000007E-2,6.7100000000000007E-2,6.7100000000000007E-2,6.7100000000000007E-2,6.7100000000000007E-2,6.7100000000000007E-2,6.7100000000000007E-2,{"$f":"F811","v":6.7100000000000007E-2}]
[40,"RETURN ON RATE BASE",null,null,null,{"$f":"ROUND(F428*F426,0)","v":17163507},{"$f":"F429-SUM(H429:Q429)","v":8057191},{"$f":"ROUND(H426*H428,0)","v":4758161},{"$f":"ROUND(I426*I428,0)","v":22139},{"$f":"ROUND(J426*J428,0)","v":104386},1202,2429757,1600294,80329,369,107788,{"$f":"ROUND(Q426*Q428,0)","v":1891},{"$f":"SUM(G429:Q429)","v":17163507},{"$f":"F429-R429","v":0}]
[41]
[42,{"$f":"'FR-16(7)(v)-1 Functional'!B431","v":"ELECTRIC RATE BASE"},null,{"$f":"'FR-16(7)(v)-1 Functional'!D431","v":"RB99"},null,{"$f":"'FR-16(7)(v)-10 DIST Classified'!G431","v":256947101},{"$f":"F431-SUM(H431:Q431)","v":120618678},{"$f":"ROUND(F431*VLOOKUP(D431,ALLOCTABLE_Distr_Demand,$H$10,FALSE),0)","v":71233445},{"$f":"ROUND(F431*VLOOKUP(D431,ALLOCTABLE_Distr_Demand,$I$10,FALSE),0)","v":331462},{"$f":"ROUND(F431*VLOOKUP(D431,ALLOCTABLE_Distr_Demand,$J$10,FALSE),0)","v":1562238},{"$f":"ROUND(F431*VLOOKUP(D431,ALLOCTABLE_Distr_Demand,$K$10,FALSE),0)","v":17986},{"$f":"ROUND(F431*VLOOKUP(D431,ALLOCTABLE_Distr_Demand,$L$10,FALSE),0)","v":36376001},{"$f":"ROUND(F431*VLOOKUP(D431,ALLOCTABLE_Distr_Demand,$M$10,FALSE),0)","v":23957748},{"$f":"ROUND(F431*VLOOKUP(D431,ALLOCTABLE_Distr_Demand,$N$10,FALSE),0)","v":1202512},{"$f":"ROUND(F431*VLOOKUP(D431,ALLOCTABLE_Distr_Demand,$O$10,FALSE),0)","v":5139},{"$f":"ROUND(F431*VLOOKUP(D431,ALLOCTABLE_Distr_Demand,$P$10,FALSE),0)","v":1613628},{"$f":"ROUND(F431*VLOOKUP(D431,ALLOCTABLE_Distr_Demand,$Q$10,FALSE),0)","v":28264},{"$f":"SUM(G431:Q431)","v":256947101},{"$f":"F431-R431","v":0}]
[43,{"$f":"'FR-16(7)(v)-1 Functional'!B432","v":"TOTAL RATE OF RETURN ALLOWABLE"},null,null,null,{"$f":"RofR","v":6.7110000000000003E-2},6.7110000000000003E-2,6.7110000000000003E-2,6.7110000000000003E-2,6.7110000000000003E-2,6.7110000000000003E-2,6.7110000000000003E-2,6.7110000000000003E-2,6.7110000000000003E-2,6.7110000000000003E-2,6.7110000000000003E-2,6.7110000000000003E-2,6.7110000000000003E-2]
[44,{"$f":"'FR-16(7)(v)-1 Functional'!B433","v":"RETURN ON RATE BASE"},null,null,null,{"$f":"ROUND(F431*F432,0)","v":17243720},{"$f":"F433-SUM(H433:Q433)","v":8094720},{"$f":"ROUND(H431*H432,0)","v":4780476},22244,104842,1207,2441193,1607804,80701,345,108291,1897,17243720,{"$f":"ROUND(S426*S428,0)","v":0}]
[]
[{"$f":"co_name","v":"DUKE ENERGY KENTUCKY, INC."},null,null,null,null,null,null,null,null,null,null,null,null,null,null,null,null,{"$f":"R1","v":"FR-16(7)(v)-11"}]
[{"$f":"$A$2","v":"DISTRIBUTION DEMAND ALLOCATED - ELECTRIC COST OF SERVICE"},null,null,null,null,null,null,null,null,null,null,null,null,null,null,null,null,{"$f":"R2","v":"WITNESS RESPONSIBLE:"}]
[{"$f":"case_name","v":"CASE NO: 2019-00271"},null,null,null,null,null,null,null,null,null,null,null,null,null,null,null,null,{"$f":"Witness","v":"JAMES E. ZIOLKOWSKI"}]
[{"$f":"data_filing","v":"DATA: 12 MONTHS ACTUAL  & 0 MONTHS ESTIMATED"},null,null,null,null,null,null,null,null,null,null,null,null,null,null,null,null,{"$f":"\"PAGE \"&Pages-10&\" OF \"&Pages","v":"PAGE 8 OF 18"}]
[{"$f":"type","v":"TYPE OF FILING: \"X\" ORIGINAL   UPDATED    REVISED  "}]
[]
[null,null,null,null,null,{"$f":"F$7","v":"TOTAL"},null,{"$f":"H$7","v":"DS"},{"$f":"I$7","v":"GSFL"},{"$f":"J$7","v":"EH"},{"$f":"K$7","v":"SP"},"DT SEC","DT PRI","DP","TT",null,"OTHER"]
["LINE",null,null,null,null,{"$f":"F$8","v":"DISTRIBUTION"},{"$f":"G$8","v":"RS"},{"$f":"H$8","v":"SECONDARY"},{"$f":"I$8","v":"SECONDARY"},{"$f":"J$8","v":"SECONDARY"},{"$f":"K$8","v":"SECONDARY"},"SECONDARY","PRIMARY","PRIMARY","TRANSMISSION","LT","WATER",{"$f":"R8","v":"TOTAL"},"ALL"]
["NO.","O&M EXPENSES",null,"ALLO",null,{"$f":"F$9","v":"DEMAND"},{"$f":"G$9","v":"RESIDENTIAL"},{"$f":"H$9","v":"DISTRIBUTION"},{"$f":"I$9","v":"DISTRIBUTION"},{"$f":"J$9","v":"DISTRIBUTION"},{"$f":"K$9","v":"DISTRIBUTION"},"DISTRIBUTION","DISTRIBUTION","DISTRIBUTION","TIME OF DAY","LIGHTING","PUMPING",{"$f":"R9","v":"AT ISSUE"},"OTHER"]
[null,null,"Schedule 6",null,null,null,{"$f":"G$10","v":3},{"$f":"H$10","v":4},{"$f":"I$10","v":5},{"$f":"J$10","v":6},{"$f":"K$10","v":7},8,9,10,11,12,13,null," "]
[1,"PRODUCTION O&M"]
[2,{"$f":"'FR-16(7)(v)-1 Functional'!B446","v":"ENERGY RELATED PRODUCTION O&M"}]
[3,null,{"$f":"'FR-16(7)(v)-1 Functional'!C447","v":"FUEL"},{"$f":"'FR-16(7)(v)-1 Functional'!D447","v":"K302"},null,{"$f":"'FR-16(7)(v)-10 DIST Classified'!G447","v":0},{"$f":"F447-SUM(H447:Q447)","v":0},{"$f":"ROUND(F447*VLOOKUP(D447,ALLOCTABLE_Distr_Demand,$H$10,FALSE),0)","v":0},{"$f":"ROUND(F447*VLOOKUP(D447,ALLOCTABLE_Distr_Demand,$I$10,FALSE),0)","v":0},{"$f":"ROUND(F447*VLOOKUP(D447,ALLOCTABLE_Distr_Demand,$J$10,FALSE),0)","v":0},{"$f":"ROUND(F447*VLOOKUP(D447,ALLOCTABLE_Distr_Demand,$K$10,FALSE),0)","v":0},{"$f":"ROUND(F447*VLOOKUP(D447,ALLOCTABLE_Distr_Demand,$L$10,FALSE),0)","v":0},{"$f":"ROUND(F447*VLOOKUP(D447,ALLOCTABLE_Distr_Demand,$M$10,FALSE),0)","v":0},{"$f":"ROUND(F447*VLOOKUP(D447,ALLOCTABLE_Distr_Demand,$N$10,FALSE),0)","v":0},{"$f":"ROUND(F447*VLOOKUP(D447,ALLOCTABLE_Distr_Demand,$O$10,FALSE),0)","v":0},{"$f":"ROUND(F447*VLOOKUP(D447,ALLOCTABLE_Distr_Demand,$P$10,FALSE),0)","v":0},{"$f":"ROUND(F447*VLOOKUP(D447,ALLOCTABLE_Distr_Demand,$Q$10,FALSE),0)","v":0},{"$f":"SUM(G447:Q447)","v":0},{"$f":"F447-R447","v":0}]
[4,null,{"$f":"'FR-16(7)(v)-1 Functional'!C448","v":"FUEL AND PURCHASED POWER ADJUSTMENT"},{"$f":"'FR-16(7)(v)-1 Functional'!D448","v":"K302"},null,{"$f":"'FR-16(7)(v)-10 DIST Classified'!G448","v":0},0,0,0,0,0,0,0,0,0,0,0,0,0]
[5,null,{"$f":"'FR-16(7)(v)-1 Functional'!C449","v":"EMISSION ALLOWANCES"},{"$f":"'FR-16(7)(v)-1 Functional'!D449","v":"K301"},null,{"$f":"'FR-16(7)(v)-10 DIST Classified'!G449","v":0},0,0,0,0,0,0,0,0,0,0,0,0,0]
[6,null,{"$f":"'FR-16(7)(v)-1 Functional'!C450","v":"ELIMINATE EMISSION ALLOW & OTHER VAR COST"},{"$f":"'FR-16(7)(v)-1 Functional'!D450","v":"K301"},null,{"$f":"'FR-16(7)(v)-10 DIST Classified'!G450","v":0},0,0,0,0,0,0,0,0,0,0,0,0,0]
[7,null,{"$f":"'FR-16(7)(v)-1 Functional'!C451","v":"OTHER PRODUCTION EXPENSE - MAINTENANCE"},{"$f":"'FR-16(7)(v)-1 Functional'!D451","v":"K301"},null,{"$f":"'FR-16(7)(v)-10 DIST Classified'!G451","v":0},0,0,0,0,0,0,0,0,0,0,0,0,0]
[8,null,{"$f":"'FR-16(7)(v)-1 Functional'!C452","v":"MISO TRANSMISSION CHARGES - ACCT 555"},{"$f":"'FR-16(7)(v)-1 Functional'!D452","v":"K301"},null,{"$f":"'FR-16(7)(v)-10 DIST Classified'!G452","v":0},0,0,0,0,0,0,0,0,0,0,0,0,0]
[9,null,"  TOTAL ENERGY RELATED",null,null,{"$f":"SUM(F447:F452)","v":0},{"$f":"SUM(G447:G452)","v":0},{"$f":"SUM(H447:H452)","v":0},{"$f":"SUM(I447:I452)","v":0},{"$f":"SUM(J447:J452)","v":0},0,0,0,0,0,0,{"$f":"SUM(Q447:Q452)","v":0},{"$f":"SUM(R447:R452)","v":0},{"$f":"SUM(S447:S452)","v":0}]
[10]
[11,"DEMAND RELATED & OTHER PROD O&M"]
[12,null,{"$f":"'FR-16(7)(v)-1 Functional'!C456","v":"OTHER PRODUCTION EXPENSES - OPERATIONS"},{"$f":"'FR-16(7)(v)-1 Functional'!D456","v":"K201"},null,{"$f":"'FR-16(7)(v)-10 DIST Classified'!G456","v":0},{"$f":"F456-SUM(H456:Q456)","v":0},{"$f":"ROUND(F456*VLOOKUP(D456,ALLOCTABLE_Distr_Demand,$H$10,FALSE),0)","v":0},{"$f":"ROUND(F456*VLOOKUP(D456,ALLOCTABLE_Distr_Demand,$I$10,FALSE),0)","v":0},{"$f":"ROUND(F456*VLOOKUP(D456,ALLOCTABLE_Distr_Demand,$J$10,FALSE),0)","v":0},{"$f":"ROUND(F456*VLOOKUP(D456,ALLOCTABLE_Distr_Demand,$K$10,FALSE),0)","v":0},{"$f":"ROUND(F456*VLOOKUP(D456,ALLOCTABLE_Distr_Demand,$L$10,FALSE),0)","v":0},{"$f":"ROUND(F456*VLOOKUP(D456,ALLOCTABLE_Distr_Demand,$M$10,FALSE),0)","v":0},{"$f":"ROUND(F456*VLOOKUP(D456,ALLOCTABLE_Distr_Demand,$N$10,FALSE),0)","v":0},{"$f":"ROUND(F456*VLOOKUP(D456,ALLOCTABLE_Distr_Demand,$O$10,FALSE),0)","v":0},{"$f":"ROUND(F456*VLOOKUP(D456,ALLOCTABLE_Distr_Demand,$P$10,FALSE),0)","v":0},{"$f":"ROUND(F456*VLOOKUP(D456,ALLOCTABLE_Distr_Demand,$Q$10,FALSE),0)","v":0},{"$f":"SUM(G456:Q456)","v":0},{"$f":"F456-R456","v":0}]
[13,null,"  TOTAL DEMAND REL & OTH PROD O&M ",null,null,{"$f":"SUM(F455:F456)","v":0},{"$f":"SUM(G455:G456)","v":0},{"$f":"SUM(H455:H456)","v":0},{"$f":"SUM(I455:I456)","v":0},{"$f":"SUM(J455:J456)","v":0},0,0,0,0,0,0,{"$f":"SUM(Q455:Q456)","v":0},{"$f":"SUM(R455:R456)","v":0},{"$f":"SUM(S455:S456)","v":0}]
[14]
[15,"TOTAL PRODUCTION O&M",null,null," ",{"$f":"F457+F453","v":0},{"$f":"G457+G453","v":0},0,0,{"$f":"J457+J453","v":0},0,0,0,0,0,0,0,0,0]
[16]
[17,"TRANSMISSION O & M"]
[18,null,{"$f":"'FR-16(7)(v)-1 Functional'!C462","v":"TRANSFORMER LEASE PAYMENTS"},{"$f":"'FR-16(7)(v)-1 Functional'!D462","v":"K202"},null,{"$f":"'FR-16(7)(v)-10 DIST Classified'!G462","v":0},{"$f":"F462-SUM(H462:Q462)","v":0},{"$f":"ROUND(F462*VLOOKUP(D462,ALLOCTABLE_Distr_Demand,$H$10,FALSE),0)","v":0},{"$f":"ROUND(F462*VLOOKUP(D462,ALLOCTABLE_Distr_Demand,$I$10,FALSE),0)","v":0},{"$f":"ROUND(F462*VLOOKUP(D462,ALLOCTABLE_Distr_Demand,$J$10,FALSE),0)","v":0},{"$f":"ROUND(F462*VLOOKUP(D462,ALLOCTABLE_Distr_Demand,$K$10,FALSE),0)","v":0},{"$f":"ROUND(F462*VLOOKUP(D462,ALLOCTABLE_Distr_Demand,$L$10,FALSE),0)","v":0},{"$f":"ROUND(F462*VLOOKUP(D462,ALLOCTABLE_Distr_Demand,$M$10,FALSE),0)","v":0},{"$f":"ROUND(F462*VLOOKUP(D462,ALLOCTABLE_Distr_Demand,$N$10,FALSE),0)","v":0},{"$f":"ROUND(F462*VLOOKUP(D462,ALLOCTABLE_Distr_Demand,$O$10,FALSE),0)","v":0},{"$f":"ROUND(F462*VLOOKUP(D462,ALLOCTABLE_Distr_Demand,$P$10,FALSE),0)","v":0},{"$f":"ROUND(F462*VLOOKUP(D462,ALLOCTABLE_Distr_Demand,$Q$10,FALSE),0)","v":0},{"$f":"SUM(G462:Q462)","v":0},{"$f":"F462-R462","v":0}]
[19,null,{"$f":"'FR-16(7)(v)-1 Functional'!C463","v":"OTHER TRANSMISSION"},{"$f":"'FR-16(7)(v)-1 Functional'!D463","v":"K202"},null,{"$f":"'FR-16(7)(v)-10 DIST Classified'!G463","v":0},{"$f":"F463-SUM(H463:Q463)","v":0},{"$f":"ROUND(F463*VLOOKUP(D463,ALLOCTABLE_Distr_Demand,$H$10,FALSE),0)","v":0},{"$f":"ROUND(F463*VLOOKUP(D463,ALLOCTABLE_Distr_Demand,$I$10,FALSE),0)","v":0},{"$f":"ROUND(F463*VLOOKUP(D463,ALLOCTABLE_Distr_Demand,$J$10,FALSE),0)","v":0},{"$f":"ROUND(F463*VLOOKUP(D463,ALLOCTABLE_Distr_Demand,$K$10,FALSE),0)","v":0},{"$f":"ROUND(F463*VLOOKUP(D463,ALLOCTABLE_Distr_Demand,$L$10,FALSE),0)","v":0},{"$f":"ROUND(F463*VLOOKUP(D463,ALLOCTABLE_Distr_Demand,$M$10,FALSE),0)","v":0},{"$f":"ROUND(F463*VLOOKUP(D463,ALLOCTABLE_Distr_Demand,$N$10,FALSE),0)","v":0},{"$f":"ROUND(F463*VLOOKUP(D463,ALLOCTABLE_Distr_Demand,$O$10,FALSE),0)","v":0},{"$f":"ROUND(F463*VLOOKUP(D463,ALLOCTABLE_Distr_Demand,$P$10,FALSE),0)","v":0},{"$f":"ROUND(F463*VLOOKUP(D463,ALLOCTABLE_Distr_Demand,$Q$10,FALSE),0)","v":0},{"$f":"SUM(G463:Q463)","v":0},{"$f":"F463-R463","v":0}]
[20,null,{"$f":"'FR-16(7)(v)-1 Functional'!C464","v":"MISCELLANEOUS ADJUSTMENTS"},{"$f":"'FR-16(7)(v)-1 Functional'!D464","v":"K202"},null,{"$f":"'FR-16(7)(v)-10 DIST Classified'!G464","v":0},{"$f":"F464-SUM(H464:Q464)","v":0},{"$f":"ROUND(F464*VLOOKUP(D464,ALLOCTABLE_Distr_Demand,$H$10,FALSE),0)","v":0},{"$f":"ROUND(F464*VLOOKUP(D464,ALLOCTABLE_Distr_Demand,$I$10,FALSE),0)","v":0},{"$f":"ROUND(F464*VLOOKUP(D464,ALLOCTABLE_Distr_Demand,$J$10,FALSE),0)","v":0},{"$f":"ROUND(F464*VLOOKUP(D464,ALLOCTABLE_Distr_Demand,$K$10,FALSE),0)","v":0},{"$f":"ROUND(F464*VLOOKUP(D464,ALLOCTABLE_Distr_Demand,$L$10,FALSE),0)","v":0},{"$f":"ROUND(F464*VLOOKUP(D464,ALLOCTABLE_Distr_Demand,$M$10,FALSE),0)","v":0},{"$f":"ROUND(F464*VLOOKUP(D464,ALLOCTABLE_Distr_Demand,$N$10,FALSE),0)","v":0},{"$f":"ROUND(F464*VLOOKUP(D464,ALLOCTABLE_Distr_Demand,$O$10,FALSE),0)","v":0},{"$f":"ROUND(F464*VLOOKUP(D464,ALLOCTABLE_Distr_Demand,$P$10,FALSE),0)","v":0},{"$f":"ROUND(F464*VLOOKUP(D464,ALLOCTABLE_Distr_Demand,$Q$10,FALSE),0)","v":0},{"$f":"SUM(G464:Q464)","v":0},{"$f":"F464-R464","v":0}]
[21,null,{"$f":"'FR-16(7)(v)-1 Functional'!C465","v":"NETWORK SERVICE RATES ADJUSTMENT"},{"$f":"'FR-16(7)(v)-1 Functional'!D465","v":"K202"},null,{"$f":"'FR-16(7)(v)-10 DIST Classified'!G465","v":0},{"$f":"F465-SUM(H465:Q465)","v":0},{"$f":"ROUND(F465*VLOOKUP(D465,ALLOCTABLE_Distr_Demand,$H$10,FALSE),0)","v":0},{"$f":"ROUND(F465*VLOOKUP(D465,ALLOCTABLE_Distr_Demand,$I$10,FALSE),0)","v":0},{"$f":"ROUND(F465*VLOOKUP(D465,ALLOCTABLE_Distr_Demand,$J$10,FALSE),0)","v":0},{"$f":"ROUND(F465*VLOOKUP(D465,ALLOCTABLE_Distr_Demand,$K$10,FALSE),0)","v":0},{"$f":"ROUND(F465*VLOOKUP(D465,ALLOCTABLE_Distr_Demand,$L$10,FALSE),0)","v":0},{"$f":"ROUND(F465*VLOOKUP(D465,ALLOCTABLE_Distr_Demand,$M$10,FALSE),0)","v":0},{"$f":"ROUND(F465*VLOOKUP(D465,ALLOCTABLE_Distr_Demand,$N$10,FALSE),0)","v":0},{"$f":"ROUND(F465*VLOOKUP(D465,ALLOCTABLE_Distr_Demand,$O$10,FALSE),0)","v":0},{"$f":"ROUND(F465*VLOOKUP(D465,ALLOCTABLE_Distr_Demand,$P$10,FALSE),0)","v":0},{"$f":"ROUND(F465*VLOOKUP(D465,ALLOCTABLE_Distr_Demand,$Q$10,FALSE),0)","v":0},{"$f":"SUM(G465:Q465)","v":0},{"$f":"F465-R465","v":0}]
[22,null,{"$f":"'FR-16(7)(v)-1 Functional'!C466","v":"  TOTAL TRANSMISSION O & M"},null,null,{"$f":"SUM(F462:F465)","v":0},{"$f":"SUM(G462:G465)","v":0},0,0,{"$f":"SUM(J462:J465)","v":0},0,0,0,0,0,0,0,0,0]
[23]
[24,"REGIONAL MARKET O&M"]
[25,null,{"$f":"'FR-16(7)(v)-1 Functional'!C469","v":"MARKET FACILITATION - MONITORING & COMPLIANCE"},{"$f":"'FR-16(7)(v)-1 Functional'!D469","v":"K202"},null,{"$f":"'FR-16(7)(v)-10 DIST Classified'!G469","v":0},{"$f":"F469-SUM(H469:Q469)","v":0},{"$f":"ROUND(F469*VLOOKUP(D469,ALLOCTABLE_Distr_Demand,$H$10,FALSE),0)","v":0},{"$f":"ROUND(F469*VLOOKUP($D$469,ALLOCTABLE_Distr_Demand,$I$10,FALSE),0)","v":0},{"$f":"ROUND(F469*VLOOKUP($D$469,ALLOCTABLE_Distr_Demand,$J$10,FALSE),0)","v":0},{"$f":"ROUND(F469*VLOOKUP($D$469,ALLOCTABLE_Distr_Demand,$K$10,FALSE),0)","v":0},{"$f":"ROUND(F469*VLOOKUP($D$469,ALLOCTABLE_Distr_Demand,$L$10,FALSE),0)","v":0},{"$f":"ROUND(F469*VLOOKUP($D$469,ALLOCTABLE_Distr_Demand,$M$10,FALSE),0)","v":0},{"$f":"ROUND(F469*VLOOKUP($D$469,ALLOCTABLE_Distr_Demand,$N$10,FALSE),0)","v":0},{"$f":"ROUND(F469*VLOOKUP($D$469,ALLOCTABLE_Distr_Demand,$O$10,FALSE),0)","v":0},{"$f":"ROUND(F469*VLOOKUP($D$469,ALLOCTABLE_Distr_Demand,$P$10,FALSE),0)","v":0},{"$f":"ROUND(F469*VLOOKUP(D469,ALLOCTABLE_Distr_Demand,$Q$10,FALSE),0)","v":0},{"$f":"SUM(G469:Q469)","v":0},{"$f":"F469-R469","v":0}]
[26,null,"TOTAL REGIONAL MARKET O&M",null,null,{"$f":"SUM(F468:F469)","v":0},{"$f":"SUM(G468:G469)","v":0},{"$f":"SUM(H468:H469)","v":0},{"$f":"SUM(I468:I469)","v":0},{"$f":"SUM(J468:J469)","v":0},0,0,0,0,0,0,{"$f":"SUM(Q468:Q469)","v":0},{"$f":"SUM(R468:R469)","v":0},{"$f":"SUM(S468:S469)","v":0}]
[27]
[28,"DISTRIBUTION O & M"]
[29,null,{"$f":"'FR-16(7)(v)-1 Functional'!C473","v":"SUBSTATIONS"},{"$f":"'FR-16(7)(v)-1 Functional'!D473","v":"K201"},null,{"$f":"'FR-16(7)(v)-10 DIST Classified'!G473","v":0},{"$f":"F473-SUM(H473:Q473)","v":0},{"$f":"ROUND(F473*VLOOKUP(D473,ALLOCTABLE_Prod_Demand,$H$10,FALSE),0)","v":0},{"$f":"ROUND(F473*VLOOKUP(D473,ALLOCTABLE_Prod_Demand,$I$10,FALSE),0)","v":0},{"$f":"ROUND(F473*VLOOKUP(D473,ALLOCTABLE_Prod_Demand,$J$10,FALSE),0)","v":0},{"$f":"ROUND(F473*VLOOKUP(D473,ALLOCTABLE_Prod_Demand,$K$10,FALSE),0)","v":0},{"$f":"ROUND(F473*VLOOKUP(D473,ALLOCTABLE_Prod_Demand,$L$10,FALSE),0)","v":0},{"$f":"ROUND(F473*VLOOKUP(D473,ALLOCTABLE_Prod_Demand,$M$10,FALSE),0)","v":0},{"$f":"ROUND(F473*VLOOKUP(D473,ALLOCTABLE_Prod_Demand,$N$10,FALSE),0)","v":0},{"$f":"ROUND(F473*VLOOKUP(D473,ALLOCTABLE_Prod_Demand,$O$10,FALSE),0)","v":0},{"$f":"ROUND(F473*VLOOKUP(D473,ALLOCTABLE_Prod_Demand,$P$10,FALSE),0)","v":0},{"$f":"ROUND(F473*VLOOKUP(D473,ALLOCTABLE_Prod_Demand,$Q$10,FALSE),0)","v":0},{"$f":"SUM(G473:Q473)","v":0},{"$f":"F473-R473","v":0}]
[30,null,{"$f":"'FR-16(7)(v)-1 Functional'!C474","v":"POLES, TOWERS & FIXTURES"},{"$f":"'FR-16(7)(v)-1 Functional'!D474","v":"PL49"},null,{"$f":"'FR-16(7)(v)-10 DIST Classified'!G474","v":0},0,0,0,0,0,0,0,0,0,0,0,0,0]
[31,null,{"$f":"'FR-16(7)(v)-1 Functional'!C475","v":"OVERHEAD LINES - PRIMARY / DEMAND"},{"$f":"'FR-16(7)(v)-1 Functional'!D475","v":"K205"},null,{"$f":"'FR-16(7)(v)-10 DIST Classified'!G475","v":5171363},2427592,1433657,6671,31442,362,732162,482230,24202,0,32476,569,5171363,0]
[32,null,{"$f":"'FR-16(7)(v)-1 Functional'!C476","v":"OVERHEAD LINES - PRIMARY / CUSTOMER"},"K406",null,{"$f":"'FR-16(7)(v)-10 DIST Classified'!G476","v":0},0,{"$f":"ROUND(F476*VLOOKUP(D476,ALLOCTABLE_Distr_Demand,$H$10,FALSE),0)","v":0},{"$f":"ROUND(F476*VLOOKUP(D476,ALLOCTABLE_Distr_Demand,$I$10,FALSE),0)","v":0},{"$f":"ROUND(F476*VLOOKUP(D476,ALLOCTABLE_Distr_Demand,$J$10,FALSE),0)","v":0},{"$f":"ROUND(F476*VLOOKUP(D476,ALLOCTABLE_Distr_Demand,$K$10,FALSE),0)","v":0},{"$f":"ROUND(F476*VLOOKUP(D476,ALLOCTABLE_Distr_Demand,$L$10,FALSE),0)","v":0},{"$f":"ROUND(F476*VLOOKUP(D476,ALLOCTABLE_Distr_Demand,$M$10,FALSE),0)","v":0},{"$f":"ROUND(F476*VLOOKUP(D476,ALLOCTABLE_Distr_Demand,$N$10,FALSE),0)","v":0},{"$f":"ROUND(F476*VLOOKUP(D476,ALLOCTABLE_Distr_Demand,$O$10,FALSE),0)","v":0},{"$f":"ROUND(F476*VLOOKUP(D476,ALLOCTABLE_Distr_Demand,$P$10,FALSE),0)","v":0},{"$f":"ROUND(F476*VLOOKUP(D476,ALLOCTABLE_Distr_Demand,$Q$10,FALSE),0)","v":0},0,0]
[33,null,{"$f":"'FR-16(7)(v)-1 Functional'!C477","v":"OVERHEAD LINES - SECONDARY / DEMAND"},{"$f":"'FR-16(7)(v)-1 Functional'!D477","v":"K206"},null,{"$f":"'FR-16(7)(v)-10 DIST Classified'!G477","v":2105718},988487,583768,2716,12803,147,298128,196358,9855,0,13224,232,2105718,0]
[34,null,{"$f":"'FR-16(7)(v)-1 Functional'!C478","v":"OVERHEAD LINES - SECONDARY / CUSTOMER"},"K406",null,{"$f":"'FR-16(7)(v)-10 DIST Classified'!G478","v":0},{"$f":"F478-SUM(H478:Q478)","v":0},{"$f":"ROUND(F478*VLOOKUP(D478,ALLOCTABLE_Distr_Demand,$H$10,FALSE),0)","v":0},{"$f":"ROUND(F478*VLOOKUP(D478,ALLOCTABLE_Distr_Demand,$I$10,FALSE),0)","v":0},{"$f":"ROUND(F478*VLOOKUP(D478,ALLOCTABLE_Distr_Demand,$J$10,FALSE),0)","v":0},{"$f":"ROUND(F478*VLOOKUP(D478,ALLOCTABLE_Distr_Demand,$K$10,FALSE),0)","v":0},{"$f":"ROUND(F478*VLOOKUP(D478,ALLOCTABLE_Distr_Demand,$L$10,FALSE),0)","v":0},{"$f":"ROUND(F478*VLOOKUP(D478,ALLOCTABLE_Distr_Demand,$M$10,FALSE),0)","v":0},{"$f":"ROUND(F478*VLOOKUP(D478,ALLOCTABLE_Distr_Demand,$N$10,FALSE),0)","v":0},{"$f":"ROUND(F478*VLOOKUP(D478,ALLOCTABLE_Distr_Demand,$O$10,FALSE),0)","v":0},{"$f":"ROUND(F478*VLOOKUP(D478,ALLOCTABLE_Distr_Demand,$P$10,FALSE),0)","v":0},{"$f":"ROUND(F478*VLOOKUP(D478,ALLOCTABLE_Distr_Demand,$Q$10,FALSE),0)","v":0},{"$f":"SUM(G478:Q478)","v":0},{"$f":"F478-R478","v":0}]
[35,null,{"$f":"'FR-16(7)(v)-1 Functional'!C479","v":"UNDERGROUND LINES - PRIMARY / DEMAND"},{"$f":"'FR-16(7)(v)-1 Functional'!D479","v":"K205"},null,{"$f":"'FR-16(7)(v)-10 DIST Classified'!G479","v":674043},316415,186865,870,4098,47,95431,62855,3155,0,4233,74,674043,0]
[36,null,{"$f":"'FR-16(7)(v)-1 Functional'!C480","v":"UNDERGROUND LINES - PRIMARY / CUSTOMER"},"K406",null,{"$f":"'FR-16(7)(v)-10 DIST Classified'!G480","v":0},{"$f":"F480-SUM(H480:Q480)","v":0},{"$f":"ROUND(F480*VLOOKUP(D480,ALLOCTABLE_Distr_Demand,$H$10,FALSE),0)","v":0},{"$f":"ROUND(F480*VLOOKUP(D480,ALLOCTABLE_Distr_Demand,$I$10,FALSE),0)","v":0},{"$f":"ROUND(F480*VLOOKUP(D480,ALLOCTABLE_Distr_Demand,$J$10,FALSE),0)","v":0},{"$f":"ROUND(F480*VLOOKUP(D480,ALLOCTABLE_Distr_Demand,$K$10,FALSE),0)","v":0},{"$f":"ROUND(F480*VLOOKUP(D480,ALLOCTABLE_Distr_Demand,$L$10,FALSE),0)","v":0},{"$f":"ROUND(F480*VLOOKUP(D480,ALLOCTABLE_Distr_Demand,$M$10,FALSE),0)","v":0},{"$f":"ROUND(F480*VLOOKUP(D480,ALLOCTABLE_Distr_Demand,$N$10,FALSE),0)","v":0},{"$f":"ROUND(F480*VLOOKUP(D480,ALLOCTABLE_Distr_Demand,$O$10,FALSE),0)","v":0},{"$f":"ROUND(F480*VLOOKUP(D480,ALLOCTABLE_Distr_Demand,$P$10,FALSE),0)","v":0},{"$f":"ROUND(F480*VLOOKUP(D480,ALLOCTABLE_Distr_Demand,$Q$10,FALSE),0)","v":0},{"$f":"SUM(G480:Q480)","v":0},{"$f":"F480-R480","v":0}]
[37,null,{"$f":"'FR-16(7)(v)-1 Functional'!C481","v":"UNDERGROUND LINES - SECONDARY / DEMAND"},{"$f":"'FR-16(7)(v)-1 Functional'!D481","v":"K206"},null,{"$f":"'FR-16(7)(v)-10 DIST Classified'!G481","v":115473},54206,32013,149,702,8,16349,10768,540,0,725,13,115473,0]
[38,null,{"$f":"'FR-16(7)(v)-1 Functional'!C482","v":"UNDERGROUND LINES - SECONDARY / CUSTOMER"},"K406",null,{"$f":"'FR-16(7)(v)-10 DIST Classified'!G482","v":0},{"$f":"F482-SUM(H482:Q482)","v":0},{"$f":"ROUND(F482*VLOOKUP(D482,ALLOCTABLE_Distr_Demand,$H$10,FALSE),0)","v":0},{"$f":"ROUND(F482*VLOOKUP(D482,ALLOCTABLE_Distr_Demand,$I$10,FALSE),0)","v":0},{"$f":"ROUND(F482*VLOOKUP(D482,ALLOCTABLE_Distr_Demand,$J$10,FALSE),0)","v":0},{"$f":"ROUND(F482*VLOOKUP(D482,ALLOCTABLE_Distr_Demand,$K$10,FALSE),0)","v":0},{"$f":"ROUND(F482*VLOOKUP(D482,ALLOCTABLE_Distr_Demand,$L$10,FALSE),0)","v":0},{"$f":"ROUND(F482*VLOOKUP(D482,ALLOCTABLE_Distr_Demand,$M$10,FALSE),0)","v":0},{"$f":"ROUND(F482*VLOOKUP(D482,ALLOCTABLE_Distr_Demand,$N$10,FALSE),0)","v":0},{"$f":"ROUND(F482*VLOOKUP(D482,ALLOCTABLE_Distr_Demand,$O$10,FALSE),0)","v":0},{"$f":"ROUND(F482*VLOOKUP(D482,ALLOCTABLE_Distr_Demand,$P$10,FALSE),0)","v":0},{"$f":"ROUND(F482*VLOOKUP(D482,ALLOCTABLE_Distr_Demand,$Q$10,FALSE),0)","v":0},{"$f":"SUM(G482:Q482)","v":0},{"$f":"F482-R482","v":0}]
[39,null,{"$f":"'FR-16(7)(v)-1 Functional'!C483","v":"TRANSFORMERS DEMAND RELATED"},{"$f":"'FR-16(7)(v)-1 Functional'!D483","v":"K203"},null,{"$f":"'FR-16(7)(v)-10 DIST Classified'!G483","v":271379},161158,57668,206,1908,19,24733,15119,1018,8198,1273,79,271379,0]
[40,null,{"$f":"'FR-16(7)(v)-1 Functional'!C484","v":"TRANSFORMERS CUSTOMER RELATED"},{"$f":"'FR-16(7)(v)-1 Functional'!D484","v":"K401"},null,{"$f":"'FR-16(7)(v)-10 DIST Classified'!G484","v":0},0,0,0,0,0,0,0,0,0,0,0,0,0]
[41,null,{"$f":"'FR-16(7)(v)-1 Functional'!C485","v":"OTHER MAINTENANCE"},{"$f":"'FR-16(7)(v)-1 Functional'!D485","v":"K203"},null,{"$f":"'FR-16(7)(v)-10 DIST Classified'!G485","v":1892935},1124118,402249,1439,13307,133,172522,105455,7099,57186,8878,549,1892935,0]
[42,null,{"$f":"'FR-16(7)(v)-1 Functional'!C486","v":"LOAD DISPATCH"},{"$f":"'FR-16(7)(v)-1 Functional'!D486","v":"K215"},null,{"$f":"'FR-16(7)(v)-10 DIST Classified'!G486","v":578857},271732,160477,747,3519,41,81955,53978,2709,0,3635,64,578857,0]
[43,null,{"$f":"'FR-16(7)(v)-1 Functional'!C487","v":"METERS"},{"$f":"'FR-16(7)(v)-1 Functional'!D487","v":"K407"},null,{"$f":"'FR-16(7)(v)-10 DIST Classified'!G487","v":0},0,0,0,0,0,0,0,0,0,0,0,0,0]
[44,null,{"$f":"'FR-16(7)(v)-1 Functional'!C488","v":"STREET LIGHTING AND SIGNAL SYSTEMS"},{"$f":"'FR-16(7)(v)-1 Functional'!D488","v":"K401"},null,{"$f":"'FR-16(7)(v)-10 DIST Classified'!G488","v":0},0,0,0,0,0,0,0,0,0,0,0,0,0]
[45,null,{"$f":"'FR-16(7)(v)-1 Functional'!C489","v":"OTHER OPERATIONS"},{"$f":"'FR-16(7)(v)-1 Functional'!D489","v":"K203"},null,{"$f":"'FR-16(7)(v)-10 DIST Classified'!G489","v":722843},429259,153604,549,5082,51,65880,40270,2711,21837,3390,210,722843,0]
[46,null,{"$f":"'FR-16(7)(v)-1 Functional'!C490","v":"MISCELLANEOUS EXPENSES ADJUSTMENT"},{"$f":"'FR-16(7)(v)-1 Functional'!D490","v":"K203"},null,{"$f":"'FR-16(7)(v)-10 DIST Classified'!G490","v":2227726},1322934,473392,1693,15661,156,203035,124107,8354,67300,10448,646,2227726,0]
[47,null,{"$f":"'FR-16(7)(v)-1 Functional'!C491","v":"AFFILIATED COMPANY RENTS ADJUSTMENT"},{"$f":"'FR-16(7)(v)-1 Functional'!D491","v":"D249"},null,{"$f":"'FR-16(7)(v)-10 DIST Classified'!G491","v":0},0,0,0,0,0,0,0,0,0,0,0,0,0]
[48,null,{"$f":"'FR-16(7)(v)-1 Functional'!C492","v":"  TOTAL DISTRIBUTION O & M"},null," ",{"$f":"SUM(F472:F491)","v":13760337},{"$f":"SUM(G472:G491)","v":7095901},{"$f":"SUM(H472:H491)","v":3483693},{"$f":"SUM(I472:I491)","v":15040},{"$f":"SUM(J472:J491)","v":88522},964,1690195,1091140,59643,154521,78282,{"$f":"SUM(Q472:Q491)","v":2436},{"$f":"SUM(R472:R491)","v":13760337},{"$f":"SUM(S472:S491)","v":0}]
[49,null," "]
[50,"CUSTOMER ACCOUNTING",null,null,null," "]
[51,null,{"$f":"'FR-16(7)(v)-1 Functional'!C495","v":"CUSTOMER ACCOUNTING EXPENSE"},{"$f":"'FR-16(7)(v)-1 Functional'!D495","v":"K409"},null,{"$f":"'FR-16(7)(v)-10 DIST Classified'!G495","v":0},{"$f":"F495-SUM(H495:Q495)","v":0},{"$f":"ROUND(F495*VLOOKUP(D495,ALLOCTABLE_Distr_Demand,$H$10,FALSE),0)","v":0},{"$f":"ROUND(F495*VLOOKUP(D495,ALLOCTABLE_Distr_Demand,$I$10,FALSE),0)","v":0},{"$f":"ROUND(F495*VLOOKUP(D495,ALLOCTABLE_Distr_Demand,$J$10,FALSE),0)","v":0},{"$f":"ROUND(F495*VLOOKUP(D495,ALLOCTABLE_Distr_Demand,$K$10,FALSE),0)","v":0},{"$f":"ROUND(F495*VLOOKUP(D495,ALLOCTABLE_Distr_Demand,$L$10,FALSE),0)","v":0},{"$f":"ROUND(F495*VLOOKUP(D495,ALLOCTABLE_Distr_Demand,$M$10,FALSE),0)","v":0},{"$f":"ROUND(F495*VLOOKUP(D495,ALLOCTABLE_Distr_Demand,$N$10,FALSE),0)","v":0},{"$f":"ROUND(F495*VLOOKUP(D495,ALLOCTABLE_Distr_Demand,$O$10,FALSE),0)","v":0},{"$f":"ROUND(F495*VLOOKUP(D495,ALLOCTABLE_Distr_Demand,$P$10,FALSE),0)","v":0},{"$f":"ROUND(F495*VLOOKUP(D495,ALLOCTABLE_Distr_Demand,$Q$10,FALSE),0)","v":0},{"$f":"SUM(G495:Q495)","v":0},{"$f":"F495-R495","v":0}]
[52,null,{"$f":"'FR-16(7)(v)-1 Functional'!C496","v":"UNCOLLECTIBLE EXP"},{"$f":"'FR-16(7)(v)-1 Functional'!D496","v":"K411"},null,{"$f":"'FR-16(7)(v)-10 DIST Classified'!G496","v":0},0,0,0,0,0,0,0,0,0,0,0,0,0]
[53,null,{"$f":"'FR-16(7)(v)-1 Functional'!C497","v":"METER READING"},{"$f":"'FR-16(7)(v)-1 Functional'!D497","v":"K407"},null,{"$f":"'FR-16(7)(v)-10 DIST Classified'!G497","v":0},0,0,0,0,0,0,0,0,0,0,0,0,0]
[54,null,{"$f":"'FR-16(7)(v)-1 Functional'!C498","v":"UNCOLLECTIBLE EXP ADJUSTMENT"},{"$f":"'FR-16(7)(v)-1 Functional'!D498","v":"K411"},null,{"$f":"'FR-16(7)(v)-10 DIST Classified'!G498","v":0},0,0,0,0,0,0,0,0,0,0,0,0,0]
[55,null,{"$f":"'FR-16(7)(v)-1 Functional'!C499","v":"CREDIT CARD FEES"},{"$f":"'FR-16(7)(v)-1 Functional'!D499","v":"K407"},null,{"$f":"'FR-16(7)(v)-10 DIST Classified'!G499","v":0},0,0,0,0,0,0,0,0,0,0,0,0,0]
[56,null,{"$f":"'FR-16(7)(v)-1 Functional'!C500","v":"ELIMINATE REV & EXP - DSM RIDER"},{"$f":"'FR-16(7)(v)-1 Functional'!D500","v":"K405"},null,{"$f":"'FR-16(7)(v)-10 DIST Classified'!G500","v":0},0,0,0,0,0,0,0,0,0,0,0,0,0]
[57,null,{"$f":"'FR-16(7)(v)-1 Functional'!C501","v":"SALE OF A/R"},{"$f":"'FR-16(7)(v)-1 Functional'!D501","v":"K411"},null,{"$f":"'FR-16(7)(v)-10 DIST Classified'!G501","v":0},0,0,0,0,0,0,0,0,0,0,0,0,0]
[58,null,{"$f":"'FR-16(7)(v)-1 Functional'!C502","v":"ELIMINATE MISC EXPENSE"},{"$f":"'FR-16(7)(v)-1 Functional'!D502","v":"K405"},null,{"$f":"'FR-16(7)(v)-10 DIST Classified'!G502","v":0},0,0,0,0,0,0,0,0,0,0,0,0,0]
[59,null,{"$f":"'FR-16(7)(v)-1 Functional'!C503","v":"  TOTAL CUSTOMER ACCT EXPENSE"},null," ",{"$f":"SUM(F494:F502)","v":0},{"$f":"SUM(G494:G502)","v":0},{"$f":"SUM(H494:H502)","v":0},{"$f":"SUM(I494:I502)","v":0},{"$f":"SUM(J494:J502)","v":0},0,0,0,0,0,0,{"$f":"SUM(Q494:Q502)","v":0},{"$f":"SUM(R494:R502)","v":0},{"$f":"SUM(S494:S502)","v":0}]
[]
[{"$f":"co_name","v":"DUKE ENERGY KENTUCKY, INC."},null,null,null,null,null,null,null,null,null,null,null,null,null,null,null,null,{"$f":"R1","v":"FR-16(7)(v)-11"}]
[{"$f":"$A$2","v":"DISTRIBUTION DEMAND ALLOCATED - ELECTRIC COST OF SERVICE"},null,null,null,null,null,null,null,null,null,null,null,null,null,null,null,null,{"$f":"R2","v":"WITNESS RESPONSIBLE:"}]
[{"$f":"case_name","v":"CASE NO: 2019-00271"},null,null,null,null,null,null,null,null,null,null,null,null,null,null,null,null,{"$f":"Witness","v":"JAMES E. ZIOLKOWSKI"}]
[{"$f":"data_filing","v":"DATA: 12 MONTHS ACTUAL  & 0 MONTHS ESTIMATED"},null,null,null,null,null,null,null,null,null,null,null,null,null,null,null,null,{"$f":"\"PAGE \"&Pages-9&\" OF \"&Pages","v":"PAGE 9 OF 18"}]
[{"$f":"type","v":"TYPE OF FILING: \"X\" ORIGINAL   UPDATED    REVISED  "}]
[]
[null,null,null,null,null,{"$f":"F$7","v":"TOTAL"},null,{"$f":"H$7","v":"DS"},{"$f":"I$7","v":"GSFL"},{"$f":"J$7","v":"EH"},{"$f":"K$7","v":"SP"},"DT SEC","DT PRI","DP","TT",null,"OTHER"]
["LINE",null,null,null,null,{"$f":"F$8","v":"DISTRIBUTION"},{"$f":"G$8","v":"RS"},{"$f":"H$8","v":"SECONDARY"},{"$f":"I$8","v":"SECONDARY"},{"$f":"J$8","v":"SECONDARY"},{"$f":"K$8","v":"SECONDARY"},"SECONDARY","PRIMARY","PRIMARY","TRANSMISSION","LT","WATER",{"$f":"R8","v":"TOTAL"},"ALL"]
["NO.","O&M EXPENSES",null,"ALLO",null,{"$f":"F$9","v":"DEMAND"},{"$f":"G$9","v":"RESIDENTIAL"},{"$f":"H$9","v":"DISTRIBUTION"},{"$f":"I$9","v":"DISTRIBUTION"},{"$f":"J$9","v":"DISTRIBUTION"},{"$f":"K$9","v":"DISTRIBUTION"},"DISTRIBUTION","DISTRIBUTION","DISTRIBUTION","TIME OF DAY","LIGHTING","PUMPING",{"$f":"R9","v":"AT ISSUE"},"OTHER"]
[null,null,"Schedule 6.1",null,null,null,{"$f":"G$10","v":3},{"$f":"H$10","v":4},{"$f":"I$10","v":5},{"$f":"J$10","v":6},{"$f":"K$10","v":7},8,9,10,11,12,13,null," "]
[1,"CUSTOMER SERVICE & INFORMATION"]
[2,null,{"$f":"'FR-16(7)(v)-1 Functional'!C516","v":"TOTAL CUST SERVICE & INFO"},{"$f":"'FR-16(7)(v)-1 Functional'!D516","v":"K405"},null,{"$f":"'FR-16(7)(v)-10 DIST Classified'!G516","v":0},{"$f":"F516-SUM(H516:Q516)","v":0},{"$f":"ROUND(F516*VLOOKUP(D516,ALLOCTABLE_Distr_Demand,$H$10,FALSE),0)","v":0},{"$f":"ROUND(F516*VLOOKUP(D516,ALLOCTABLE_Distr_Demand,$I$10,FALSE),0)","v":0},{"$f":"ROUND(F516*VLOOKUP(D516,ALLOCTABLE_Distr_Demand,$J$10,FALSE),0)","v":0},{"$f":"ROUND(F516*VLOOKUP(D516,ALLOCTABLE_Distr_Demand,$K$10,FALSE),0)","v":0},{"$f":"ROUND(F516*VLOOKUP(D516,ALLOCTABLE_Distr_Demand,$L$10,FALSE),0)","v":0},{"$f":"ROUND(F516*VLOOKUP(D516,ALLOCTABLE_Distr_Demand,$M$10,FALSE),0)","v":0},{"$f":"ROUND(F516*VLOOKUP(D516,ALLOCTABLE_Distr_Demand,$N$10,FALSE),0)","v":0},{"$f":"ROUND(F516*VLOOKUP(D516,ALLOCTABLE_Distr_Demand,$O$10,FALSE),0)","v":0},{"$f":"ROUND(F516*VLOOKUP(D516,ALLOCTABLE_Distr_Demand,$P$10,FALSE),0)","v":0},{"$f":"ROUND(F516*VLOOKUP(D516,ALLOCTABLE_Distr_Demand,$Q$10,FALSE),0)","v":0},{"$f":"SUM(G516:Q516)","v":0},{"$f":"F516-R516","v":0}]
[3,null,{"$f":"'FR-16(7)(v)-1 Functional'!C517","v":"INFORMATIONAL & INSTRUCTIONAL ADV"},{"$f":"'FR-16(7)(v)-1 Functional'!D517","v":"K405"},null,{"$f":"'FR-16(7)(v)-10 DIST Classified'!G517","v":0},{"$f":"F517-SUM(H517:Q517)","v":0},{"$f":"ROUND(F517*VLOOKUP(D517,ALLOCTABLE_Distr_Demand,$H$10,FALSE),0)","v":0},{"$f":"ROUND(F517*VLOOKUP(D517,ALLOCTABLE_Distr_Demand,$I$10,FALSE),0)","v":0},{"$f":"ROUND(F517*VLOOKUP(D517,ALLOCTABLE_Distr_Demand,$J$10,FALSE),0)","v":0},{"$f":"ROUND(F517*VLOOKUP(D517,ALLOCTABLE_Distr_Demand,$K$10,FALSE),0)","v":0},{"$f":"ROUND(F517*VLOOKUP(D517,ALLOCTABLE_Distr_Demand,$L$10,FALSE),0)","v":0},{"$f":"ROUND(F517*VLOOKUP(D517,ALLOCTABLE_Distr_Demand,$M$10,FALSE),0)","v":0},{"$f":"ROUND(F517*VLOOKUP(D517,ALLOCTABLE_Distr_Demand,$N$10,FALSE),0)","v":0},{"$f":"ROUND(F517*VLOOKUP(D517,ALLOCTABLE_Distr_Demand,$O$10,FALSE),0)","v":0},{"$f":"ROUND(F517*VLOOKUP(D517,ALLOCTABLE_Distr_Demand,$P$10,FALSE),0)","v":0},{"$f":"ROUND(F517*VLOOKUP(D517,ALLOCTABLE_Distr_Demand,$Q$10,FALSE),0)","v":0},{"$f":"SUM(G517:Q517)","v":0}]
[4,null,{"$f":"'FR-16(7)(v)-1 Functional'!C518","v":"TOTAL CUSTOMER SERV. & INFO."},null," ",{"$f":"SUM(F516:F517)","v":0},{"$f":"SUM(G516:G517)","v":0},0,0,{"$f":"SUM(J516:J517)","v":0},0,0,0,0,0,0,0,0,0]
[5]
[6,"SALES"]
[7,null,{"$f":"'FR-16(7)(v)-1 Functional'!C521","v":"SALES EXPENSE"},{"$f":"'FR-16(7)(v)-1 Functional'!D521","v":"K405"}," ",{"$f":"'FR-16(7)(v)-10 DIST Classified'!G521","v":0},{"$f":"F521-SUM(H521:Q521)","v":0},{"$f":"ROUND(F521*VLOOKUP(D521,ALLOCTABLE_Distr_Demand,$H$10,FALSE),0)","v":0},{"$f":"ROUND(F521*VLOOKUP(D521,ALLOCTABLE_Distr_Demand,$I$10,FALSE),0)","v":0},{"$f":"ROUND(F521*VLOOKUP(D521,ALLOCTABLE_Distr_Demand,$J$10,FALSE),0)","v":0},{"$f":"ROUND(F521*VLOOKUP(D521,ALLOCTABLE_Distr_Demand,$K$10,FALSE),0)","v":0},{"$f":"ROUND(F521*VLOOKUP(D521,ALLOCTABLE_Distr_Demand,$L$10,FALSE),0)","v":0},{"$f":"ROUND(F521*VLOOKUP(D521,ALLOCTABLE_Distr_Demand,$M$10,FALSE),0)","v":0},{"$f":"ROUND(F521*VLOOKUP(D521,ALLOCTABLE_Distr_Demand,$N$10,FALSE),0)","v":0},{"$f":"ROUND(F521*VLOOKUP(D521,ALLOCTABLE_Distr_Demand,$O$10,FALSE),0)","v":0},{"$f":"ROUND(F521*VLOOKUP(D521,ALLOCTABLE_Distr_Demand,$P$10,FALSE),0)","v":0},{"$f":"ROUND(F521*VLOOKUP(D521,ALLOCTABLE_Distr_Demand,$Q$10,FALSE),0)","v":0},{"$f":"SUM(G521:Q521)","v":0},{"$f":"F521-R521","v":0}]
[8,null,{"$f":"'FR-16(7)(v)-1 Functional'!C522","v":"TOTAL SALES EXPENSE"},null," ",{"$f":"SUM(F520:F521)","v":0},{"$f":"SUM(G520:G521)","v":0},{"$f":"SUM(H520:H521)","v":0},{"$f":"SUM(I520:I521)","v":0},{"$f":"SUM(J520:J521)","v":0},0,0,0,0,0,0,{"$f":"SUM(Q520:Q521)","v":0},{"$f":"SUM(R520:R521)","v":0},{"$f":"SUM(S520:S521)","v":0}]
[9]
[10,"ADMINISTRATIVE & GENERAL "]
[11,null,{"$f":"'FR-16(7)(v)-1 Functional'!C525","v":"PRODUCTION - DEMAND RELATED"},{"$f":"'FR-16(7)(v)-1 Functional'!D525","v":"P349"},null,{"$f":"'FR-16(7)(v)-10 DIST Classified'!G525","v":0},{"$f":"F525-SUM(H525:Q525)","v":0},{"$f":"ROUND(F525*VLOOKUP(D525,ALLOCTABLE_Distr_Demand,$H$10,FALSE),0)","v":0},{"$f":"ROUND(F525*VLOOKUP(D525,ALLOCTABLE_Distr_Demand,$I$10,FALSE),0)","v":0},{"$f":"ROUND(F525*VLOOKUP(D525,ALLOCTABLE_Distr_Demand,$J$10,FALSE),0)","v":0},{"$f":"ROUND(F525*VLOOKUP(D525,ALLOCTABLE_Distr_Demand,$K$10,FALSE),0)","v":0},{"$f":"ROUND(F525*VLOOKUP(D525,ALLOCTABLE_Distr_Demand,$L$10,FALSE),0)","v":0},{"$f":"ROUND(F525*VLOOKUP(D525,ALLOCTABLE_Distr_Demand,$M$10,FALSE),0)","v":0},{"$f":"ROUND(F525*VLOOKUP(D525,ALLOCTABLE_Distr_Demand,$N$10,FALSE),0)","v":0},{"$f":"ROUND(F525*VLOOKUP(D525,ALLOCTABLE_Distr_Demand,$O$10,FALSE),0)","v":0},{"$f":"ROUND(F525*VLOOKUP(D525,ALLOCTABLE_Distr_Demand,$P$10,FALSE),0)","v":0},{"$f":"ROUND(F525*VLOOKUP(D525,ALLOCTABLE_Distr_Demand,$Q$10,FALSE),0)","v":0},{"$f":"SUM(G525:Q525)","v":0},{"$f":"F525-R525","v":0}]
[12,null,{"$f":"'FR-16(7)(v)-1 Functional'!C526","v":"PRODUCTION - ENERGY RELATED"},{"$f":"'FR-16(7)(v)-1 Functional'!D526","v":"E349"},null,{"$f":"'FR-16(7)(v)-10 DIST Classified'!G526","v":0},0,0,0,0,0,0,0,0,0,0,0,0,0]
[13,null,"TRANSMISSION",{"$f":"'FR-16(7)(v)-1 Functional'!D527","v":"T349"},null,{"$f":"'FR-16(7)(v)-10 DIST Classified'!G527","v":0},0,0,0,0,0,0,0,0,0,0,0,{"$f":"SUM(G527:Q527)","v":0},{"$f":"F527-R527","v":0}]
[14,null,{"$f":"'FR-16(7)(v)-1 Functional'!C528","v":"DISTRIBUTION"},{"$f":"'FR-16(7)(v)-1 Functional'!D528","v":"D349"},null,{"$f":"'FR-16(7)(v)-10 DIST Classified'!G528","v":4633909},2389614,1173167,5051,29796,324,569183,367469,20065,52039,26367,834,4633909,0]
[15,null,{"$f":"'FR-16(7)(v)-1 Functional'!C529","v":"CUSTOMER ACCOUNTING"},{"$f":"'FR-16(7)(v)-1 Functional'!D529","v":"C319"},null,{"$f":"'FR-16(7)(v)-10 DIST Classified'!G529","v":0},0,0,0,0,0,0,0,0,0,0,0,0,0]
[16,null,{"$f":"'FR-16(7)(v)-1 Functional'!C530","v":"CUSTOMER SERVICE & INFORMATION"},{"$f":"'FR-16(7)(v)-1 Functional'!D530","v":"C331"},null,{"$f":"'FR-16(7)(v)-10 DIST Classified'!G530","v":0},0,0,0,0,0,0,0,0,0,0,0,0,0]
[17,null,{"$f":"'FR-16(7)(v)-1 Functional'!C531","v":"SALES"},{"$f":"'FR-16(7)(v)-1 Functional'!D531","v":"S319"},null,{"$f":"'FR-16(7)(v)-10 DIST Classified'!G531","v":0},0,0,0,0,0,0,0,0,0,0,0,0,0]
[18,null,{"$f":"'FR-16(7)(v)-1 Functional'!C532","v":"TOT ADMIN & GEN LESS REG EXP"}," ",null,{"$f":"SUM(F525:F531)","v":4633909},{"$f":"SUM(G525:G531)","v":2389614},{"$f":"SUM(H525:H531)","v":1173167},{"$f":"SUM(I525:I531)","v":5051},{"$f":"SUM(J525:J531)","v":29796},324,569183,367469,20065,52039,26367,{"$f":"SUM(Q525:Q531)","v":834},{"$f":"SUM(R525:R531)","v":4633909},{"$f":"SUM(S525:S531)","v":0}]
[19,null,{"$f":"'FR-16(7)(v)-1 Functional'!C533","v":"RATE CASE EXPENSE ADJUSTMENT"},{"$f":"'FR-16(7)(v)-1 Functional'!D533","v":"A315"},null,{"$f":"'FR-16(7)(v)-10 DIST Classified'!G533","v":19888},{"$f":"F533-SUM(H533:Q533)","v":10256},{"$f":"ROUND(F533*VLOOKUP(D533,ALLOCTABLE_Distr_Demand,$H$10,FALSE),0)","v":5035},{"$f":"ROUND(F533*VLOOKUP(D533,ALLOCTABLE_Distr_Demand,$I$10,FALSE),0)","v":22},{"$f":"ROUND(F533*VLOOKUP(D533,ALLOCTABLE_Distr_Demand,$J$10,FALSE),0)","v":128},{"$f":"ROUND(F533*VLOOKUP(D533,ALLOCTABLE_Distr_Demand,$K$10,FALSE),0)","v":1},{"$f":"ROUND(F533*VLOOKUP(D533,ALLOCTABLE_Distr_Demand,$L$10,FALSE),0)","v":2443},{"$f":"ROUND(F533*VLOOKUP(D533,ALLOCTABLE_Distr_Demand,$M$10,FALSE),0)","v":1577},{"$f":"ROUND(F533*VLOOKUP(D533,ALLOCTABLE_Distr_Demand,$N$10,FALSE),0)","v":86},{"$f":"ROUND(F533*VLOOKUP(D533,ALLOCTABLE_Distr_Demand,$O$10,FALSE),0)","v":223},{"$f":"ROUND(F533*VLOOKUP(D533,ALLOCTABLE_Distr_Demand,$P$10,FALSE),0)","v":113},{"$f":"ROUND(F533*VLOOKUP(D533,ALLOCTABLE_Distr_Demand,$Q$10,FALSE),0)","v":4},{"$f":"SUM(G533:Q533)","v":19888},{"$f":"F533-R533","v":0}]
[20,null,{"$f":"'FR-16(7)(v)-1 Functional'!C534","v":"ELIMINATE MISCELLANEOUS EXPENSES ADJUSTMENT"},{"$f":"'FR-16(7)(v)-1 Functional'!D534","v":"A315"},null,{"$f":"'FR-16(7)(v)-10 DIST Classified'!G534","v":0},0,0,0,0,0,0,0,0,0,0,0,0,0]
[21,null,{"$f":"'FR-16(7)(v)-1 Functional'!C535","v":"RIDER ESM ELIMINATION"},{"$f":"'FR-16(7)(v)-1 Functional'!D535","v":"A315"},null,{"$f":"'FR-16(7)(v)-10 DIST Classified'!G535","v":-1366995},-704932,-346082,-1490,-8790,-96,-167908,-108403,-5919,-15351,-7778,-246,-1366995,0]
[22,null,{"$f":"'FR-16(7)(v)-1 Functional'!C536","v":"ELIMINATE DSM"},{"$f":"'FR-16(7)(v)-1 Functional'!D536","v":"A315"},null,{"$f":"'FR-16(7)(v)-10 DIST Classified'!G536","v":-19146},-9874,-4847,-21,-123,-1,-2352,-1518,-83,-215,-109,-3,-19146,0]
[23,null,{"$f":"'FR-16(7)(v)-1 Functional'!C537","v":"DSM DEFERRAL - ELECTRIC"},{"$f":"'FR-16(7)(v)-1 Functional'!D537","v":"A315"},null,{"$f":"'FR-16(7)(v)-10 DIST Classified'!G537","v":0},0,0,0,0,0,0,0,0,0,0,0,0,0]
[24,null,{"$f":"'FR-16(7)(v)-1 Functional'!C538","v":"PENSION ADJUSTMENT"},{"$f":"'FR-16(7)(v)-1 Functional'!D538","v":"A315"},null,{"$f":"'FR-16(7)(v)-10 DIST Classified'!G538","v":-83405},-43009,-21116,-91,-536,-6,-10245,-6614,-361,-937,-475,-15,-83405,0]
[25,null,{"$f":"'FR-16(7)(v)-1 Functional'!C539","v":"ELIMINATE MISC EXPENSES"},{"$f":"'FR-16(7)(v)-1 Functional'!D539","v":"A315"},null,{"$f":"'FR-16(7)(v)-10 DIST Classified'!G539","v":-80452},-41488,-20368,-88,-517,-6,-9882,-6380,-348,-903,-458,-14,-80452,0]
[26,null,{"$f":"'FR-16(7)(v)-1 Functional'!C540","v":"ELIMINATE MERGER COSTS AND CREDITS"},{"$f":"'FR-16(7)(v)-1 Functional'!D540","v":"A315"},null,{"$f":"'FR-16(7)(v)-10 DIST Classified'!G540","v":0},0,0,0,0,0,0,0,0,0,0,0,{"$f":"SUM(G540:Q540)","v":0},{"$f":"F540-R540","v":0}]
[27,null,{"$f":"'FR-16(7)(v)-1 Functional'!C541","v":"ANNUALIZE KYPSC MAINT TAX"},{"$f":"'FR-16(7)(v)-1 Functional'!D541","v":"A315"},null,{"$f":"'FR-16(7)(v)-10 DIST Classified'!G541","v":0},0,0,0,0,0,0,0,0,0,0,0,0,0]
[28,null,{"$f":"'FR-16(7)(v)-1 Functional'!C542","v":"REMOVE INCENTIVE COMP"},{"$f":"'FR-16(7)(v)-1 Functional'!D542","v":"A315"},null,{"$f":"'FR-16(7)(v)-10 DIST Classified'!G542","v":-232257},-119770,-58801,-253,-1493,-16,-28528,-18418,-1006,-2608,-1322,-42,-232257,0]
[29,null,{"$f":"'FR-16(7)(v)-1 Functional'!C543","v":"CREDIT CARD FEES"},{"$f":"'FR-16(7)(v)-1 Functional'!D543","v":"A315"},null,{"$f":"'FR-16(7)(v)-10 DIST Classified'!G543","v":0},0,0,0,0,0,0,0,0,0,0,0,0,0]
[30,null,{"$f":"'FR-16(7)(v)-1 Functional'!C544","v":"ELIMINATE INCENTIVE COMPENSATION ADJUSTMENT"},{"$f":"'FR-16(7)(v)-1 Functional'!D544","v":"A315"},null,{"$f":"'FR-16(7)(v)-10 DIST Classified'!G544","v":0},0,0,0,0,0,0,0,0,0,0,0,0,0]
[31,null,{"$f":"'FR-16(7)(v)-1 Functional'!C545","v":"AMORTIZATION OF DEFERRAL ASSET"},{"$f":"'FR-16(7)(v)-1 Functional'!D545","v":"A315"},null,{"$f":"'FR-16(7)(v)-10 DIST Classified'!G545","v":0},0,0,0,0,0,0,0,0,0,0,0,0,0]
[32,null,{"$f":"'FR-16(7)(v)-1 Functional'!C546","v":"AMORTIZATION OF DEFERRED EXPENSES"},{"$f":"'FR-16(7)(v)-1 Functional'!D546","v":"A315"},null,{"$f":"'FR-16(7)(v)-10 DIST Classified'!G546","v":14614},7536,3700,16,94,1,1795,1159,63,164,83,3,14614,0]
[33,null,{"$f":"'FR-16(7)(v)-1 Functional'!C547","v":"TOTAL ADMIN. & GENERAL"},null," ",{"$f":"SUM(F532:F546)","v":2886156},{"$f":"SUM(G532:G546)","v":1488333},{"$f":"SUM(H532:H546)","v":730688},{"$f":"SUM(I532:I546)","v":3146},{"$f":"SUM(J532:J546)","v":18559},201,354506,228872,12497,32412,16421,{"$f":"SUM(Q532:Q546)","v":521},{"$f":"SUM(R532:R546)","v":2886156},{"$f":"SUM(S532:S546)","v":0}]
[34]
[35,null,{"$f":"'FR-16(7)(v)-1 Functional'!C549","v":"TOTAL O & M EXPENSE"},null,null,{"$f":"F547+F522+F518+F503+F492+F470+F466+F459","v":16646493},{"$f":"G547+G522+G518+G503+G492+G470+G466+G459","v":8584234},{"$f":"H547+H522+H518+H503+H492+H470+H466+H459","v":4214381},{"$f":"I547+I522+I518+I503+I492+I470+I466+I459","v":18186},{"$f":"J547+J522+J518+J503+J492+J470+J466+J459","v":107081},1165,2044701,1320012,72140,186933,94703,{"$f":"Q547+Q522+Q518+Q503+Q492+Q470+Q466+Q459","v":2957},{"$f":"R547+R522+R518+R503+R492+R470+R466+R459","v":16646493},{"$f":"S547+S522+S518+S503+S492+S466+S459","v":0}]
[]
[{"$f":"co_name","v":"DUKE ENERGY KENTUCKY, INC."},null,null,null,null,null,null,null,null,null,null,null,null,null,null,null,null,{"$f":"R1","v":"FR-16(7)(v)-11"}]
[{"$f":"$A$2","v":"DISTRIBUTION DEMAND ALLOCATED - ELECTRIC COST OF SERVICE"},null,null,null,null,null,null,null,null,null,null,null,null,null,null,null,null,{"$f":"R2","v":"WITNESS RESPONSIBLE:"}]
[{"$f":"case_name","v":"CASE NO: 2019-00271"},null,null,null,null,null,null,null,null,null,null,null,null,null,null,null,null,{"$f":"Witness","v":"JAMES E. ZIOLKOWSKI"}]
[{"$f":"data_filing","v":"DATA: 12 MONTHS ACTUAL  & 0 MONTHS ESTIMATED"},null,null,null,null,null,null,null,null,null,null,null,null,null,null,null,null,{"$f":"\"PAGE \"&Pages-8&\" OF \"&Pages","v":"PAGE 10 OF 18"}]
[{"$f":"type","v":"TYPE OF FILING: \"X\" ORIGINAL   UPDATED    REVISED  "}]
[]
[null,null,null,null,null,{"$f":"F$7","v":"TOTAL"},null,{"$f":"H$7","v":"DS"},{"$f":"I$7","v":"GSFL"},{"$f":"J$7","v":"EH"},{"$f":"K$7","v":"SP"},"DT SEC","DT PRI","DP","TT",null,"OTHER"]
["LINE",null,null,null,null,{"$f":"F$8","v":"DISTRIBUTION"},{"$f":"G$8","v":"RS"},{"$f":"H$8","v":"SECONDARY"},{"$f":"I$8","v":"SECONDARY"},{"$f":"J$8","v":"SECONDARY"},{"$f":"K$8","v":"SECONDARY"},"SECONDARY","PRIMARY","PRIMARY","TRANSMISSION","LT","WATER",{"$f":"R8","v":"TOTAL"},"ALL"]
["NO.","DEPRECIATION EXPENSE",null,"ALLO",null,{"$f":"F$9","v":"DEMAND"},{"$f":"G$9","v":"RESIDENTIAL"},{"$f":"H$9","v":"DISTRIBUTION"},{"$f":"I$9","v":"DISTRIBUTION"},{"$f":"J$9","v":"DISTRIBUTION"},{"$f":"K$9","v":"DISTRIBUTION"},"DISTRIBUTION","DISTRIBUTION","DISTRIBUTION","TIME OF DAY","LIGHTING","PUMPING",{"$f":"R9","v":"AT ISSUE"},"OTHER"]
[null,null,"Schedule 7",null,null,null,{"$f":"G$10","v":3},{"$f":"H$10","v":4},{"$f":"I$10","v":5},{"$f":"J$10","v":6},{"$f":"K$10","v":7},8,9,10,11,12,13,null," "]
[1,"PRODUCTION DEPRECIATION"]
[2,null,{"$f":"'FR-16(7)(v)-1 Functional'!C562","v":"PRODUCTION DEPRECIATION"},{"$f":"'FR-16(7)(v)-1 Functional'!D562","v":"P229"},null,{"$f":"'FR-16(7)(v)-10 DIST Classified'!G562","v":0},{"$f":"F562-SUM(H562:Q562)","v":0},{"$f":"ROUND(F562*VLOOKUP(D562,ALLOCTABLE_Distr_Demand,$H$10,FALSE),0)","v":0},{"$f":"ROUND(F562*VLOOKUP(D562,ALLOCTABLE_Distr_Demand,$I$10,FALSE),0)","v":0},{"$f":"ROUND(F562*VLOOKUP(D562,ALLOCTABLE_Distr_Demand,$J$10,FALSE),0)","v":0},{"$f":"ROUND(F562*VLOOKUP(D562,ALLOCTABLE_Distr_Demand,$K$10,FALSE),0)","v":0},{"$f":"ROUND(F562*VLOOKUP(D562,ALLOCTABLE_Distr_Demand,$L$10,FALSE),0)","v":0},{"$f":"ROUND(F562*VLOOKUP(D562,ALLOCTABLE_Distr_Demand,$M$10,FALSE),0)","v":0},{"$f":"ROUND(F562*VLOOKUP(D562,ALLOCTABLE_Distr_Demand,$N$10,FALSE),0)","v":0},{"$f":"ROUND(F562*VLOOKUP(D562,ALLOCTABLE_Distr_Demand,$O$10,FALSE),0)","v":0},{"$f":"ROUND(F562*VLOOKUP(D562,ALLOCTABLE_Distr_Demand,$P$10,FALSE),0)","v":0},{"$f":"ROUND(F562*VLOOKUP(D562,ALLOCTABLE_Distr_Demand,$Q$10,FALSE),0)","v":0},{"$f":"SUM(G562:Q562)","v":0},{"$f":"F562-R562","v":0}]
[3,null,{"$f":"'FR-16(7)(v)-1 Functional'!C563","v":"  TOTAL PRODUCTION DEPREC EXP."},null,null,{"$f":"SUM(F562:F562)","v":0},{"$f":"SUM(G562:G562)","v":0},{"$f":"SUM(H562:H562)","v":0},{"$f":"SUM(I562:I562)","v":0},{"$f":"SUM(J562:J562)","v":0},0,0,0,0,0,0,{"$f":"SUM(Q562:Q562)","v":0},{"$f":"SUM(R562:R562)","v":0},{"$f":"SUM(S562:S562)","v":0}]
[4]
[5,"TRANSMISSION DEPRECIATION"]
[6,null,"TRANSMISSION DEPRECIATION",{"$f":"'FR-16(7)(v)-1 Functional'!D566","v":"T229"},null,{"$f":"'FR-16(7)(v)-10 DIST Classified'!G566","v":0},{"$f":"F566-SUM(H566:Q566)","v":0},{"$f":"ROUND(F566*VLOOKUP(D566,ALLOCTABLE_Distr_Demand,$H$10,FALSE),0)","v":0},{"$f":"ROUND(F566*VLOOKUP(D566,ALLOCTABLE_Distr_Demand,$I$10,FALSE),0)","v":0},{"$f":"ROUND(F566*VLOOKUP(D566,ALLOCTABLE_Distr_Demand,$J$10,FALSE),0)","v":0},{"$f":"ROUND(F566*VLOOKUP(D566,ALLOCTABLE_Distr_Demand,$K$10,FALSE),0)","v":0},{"$f":"ROUND(F566*VLOOKUP(D566,ALLOCTABLE_Distr_Demand,$L$10,FALSE),0)","v":0},{"$f":"ROUND(F566*VLOOKUP(D566,ALLOCTABLE_Distr_Demand,$M$10,FALSE),0)","v":0},{"$f":"ROUND(F566*VLOOKUP(D566,ALLOCTABLE_Distr_Demand,$N$10,FALSE),0)","v":0},{"$f":"ROUND(F566*VLOOKUP(D566,ALLOCTABLE_Distr_Demand,$O$10,FALSE),0)","v":0},{"$f":"ROUND(F566*VLOOKUP(D566,ALLOCTABLE_Distr_Demand,$P$10,FALSE),0)","v":0},{"$f":"ROUND(F566*VLOOKUP(D566,ALLOCTABLE_Distr_Demand,$Q$10,FALSE),0)","v":0},{"$f":"SUM(G566:Q566)","v":0},{"$f":"F566-R566","v":0}]
[7,null,{"$f":"'FR-16(7)(v)-1 Functional'!C567","v":"  TOTAL TRANSMISSION DEP. EXP."},null,null,{"$f":"SUM(F566:F566)","v":0},{"$f":"SUM(G566:G566)","v":0},{"$f":"SUM(H566:H566)","v":0},{"$f":"SUM(I566:I566)","v":0},{"$f":"SUM(J566:J566)","v":0},0,0,0,0,0,0,{"$f":"SUM(Q566:Q566)","v":0},{"$f":"SUM(R566:R566)","v":0},{"$f":"SUM(S566:S566)","v":0}]
[8]
[9,"DISTRIBUTION DEPRECIATION"]
[10,null,{"$f":"'FR-16(7)(v)-1 Functional'!C570","v":"DISTRIBUTION DEPRECIATION"},{"$f":"'FR-16(7)(v)-1 Functional'!D570","v":"D249"},null,{"$f":"'FR-16(7)(v)-10 DIST Classified'!G570","v":10451890},{"$f":"F570-SUM(H570:Q570)","v":4906430},{"$f":"ROUND(F570*VLOOKUP(D570,ALLOCTABLE_Distr_Demand,$H$10,FALSE),0)","v":2897577},{"$f":"ROUND(F570*VLOOKUP(D570,ALLOCTABLE_Distr_Demand,$I$10,FALSE),0)","v":13483},{"$f":"ROUND(F570*VLOOKUP(D570,ALLOCTABLE_Distr_Demand,$J$10,FALSE),0)","v":63547},{"$f":"ROUND(F570*VLOOKUP(D570,ALLOCTABLE_Distr_Demand,$K$10,FALSE),0)","v":732},{"$f":"ROUND(F570*VLOOKUP(D570,ALLOCTABLE_Distr_Demand,$L$10,FALSE),0)","v":1479779},{"$f":"ROUND(F570*VLOOKUP(D570,ALLOCTABLE_Distr_Demand,$M$10,FALSE),0)","v":974639},{"$f":"ROUND(F570*VLOOKUP(D570,ALLOCTABLE_Distr_Demand,$N$10,FALSE),0)","v":48915},{"$f":"ROUND(F570*VLOOKUP(D570,ALLOCTABLE_Distr_Demand,$O$10,FALSE),0)","v":0},{"$f":"ROUND(F570*VLOOKUP(D570,ALLOCTABLE_Distr_Demand,$P$10,FALSE),0)","v":65638},{"$f":"ROUND(F570*VLOOKUP(D570,ALLOCTABLE_Distr_Demand,$Q$10,FALSE),0)","v":1150},{"$f":"SUM(G570:Q570)","v":10451890},{"$f":"F570-R570","v":0}]
[11,null,{"$f":"'FR-16(7)(v)-1 Functional'!C571","v":"  TOTAL DIST. DEPREC EXP."},null,null,{"$f":"SUM(F570:F570)","v":10451890},{"$f":"SUM(G570:G570)","v":4906430},{"$f":"SUM(H570:H570)","v":2897577},{"$f":"SUM(I570:I570)","v":13483},{"$f":"SUM(J570:J570)","v":63547},732,1479779,974639,48915,0,65638,{"$f":"SUM(Q570:Q570)","v":1150},{"$f":"SUM(R570:R570)","v":10451890},{"$f":"SUM(S570:S570)","v":0}]
[12,null,null,null,null," "]
[13,"GENERAL DEPRECIATION"]
[14,null,{"$f":"'FR-16(7)(v)-1 Functional'!C574","v":"GENERAL DEPRECIATION"},{"$f":"'FR-16(7)(v)-1 Functional'!D574","v":"G229"},null,{"$f":"'FR-16(7)(v)-10 DIST Classified'!G574","v":-8664},{"$f":"F574-SUM(H574:Q574)","v":-8559},{"$f":"ROUND(F574*VLOOKUP(D574,ALLOCTABLE_Distr_Demand,$H$10,FALSE),0)","v":-52},{"$f":"ROUND(F574*VLOOKUP(D574,ALLOCTABLE_Distr_Demand,$I$10,FALSE),0)","v":0},{"$f":"ROUND(F574*VLOOKUP(D574,ALLOCTABLE_Distr_Demand,$J$10,FALSE),0)","v":-1},{"$f":"ROUND(F574*VLOOKUP(D574,ALLOCTABLE_Distr_Demand,$K$10,FALSE),0)","v":0},{"$f":"ROUND(F574*VLOOKUP(D574,ALLOCTABLE_Distr_Demand,$L$10,FALSE),0)","v":-26},{"$f":"ROUND(F574*VLOOKUP(D574,ALLOCTABLE_Distr_Demand,$M$10,FALSE),0)","v":-17},{"$f":"ROUND(F574*VLOOKUP(D574,ALLOCTABLE_Distr_Demand,$N$10,FALSE),0)","v":-1},{"$f":"ROUND(F574*VLOOKUP(D574,ALLOCTABLE_Distr_Demand,$O$10,FALSE),0)","v":-8},{"$f":"ROUND(F574*VLOOKUP(D574,ALLOCTABLE_Distr_Demand,$P$10,FALSE),0)","v":0},{"$f":"ROUND(F574*VLOOKUP(D574,ALLOCTABLE_Distr_Demand,$Q$10,FALSE),0)","v":0},{"$f":"SUM(G574:Q574)","v":-8664},{"$f":"F574-R574","v":0}]
[15,null,{"$f":"'FR-16(7)(v)-1 Functional'!C575","v":"  TOTAL GENERAL DEPREC EXP."},null,null,{"$f":"SUM(F574:F574)","v":-8664},{"$f":"SUM(G574:G574)","v":-8559},{"$f":"SUM(H574:H574)","v":-52},{"$f":"SUM(I574:I574)","v":0},{"$f":"SUM(J574:J574)","v":-1},0,-26,-17,-1,-8,0,{"$f":"SUM(Q574:Q574)","v":0},{"$f":"SUM(R574:R574)","v":-8664},{"$f":"SUM(S574:S574)","v":0}]
[16]
[17,"COMMON AND OTHER DEPRECIATION"]
[18,null,{"$f":"'FR-16(7)(v)-1 Functional'!C578","v":"COMMON DEPRECIATION"},{"$f":"'FR-16(7)(v)-1 Functional'!D578","v":"C229"},null,{"$f":"'FR-16(7)(v)-10 DIST Classified'!G578","v":-17},{"$f":"F578-SUM(H578:Q578)","v":-17},{"$f":"ROUND(F578*VLOOKUP(D578,ALLOCTABLE_Distr_Demand,$H$10,FALSE),0)","v":0},{"$f":"ROUND(F578*VLOOKUP(D578,ALLOCTABLE_Distr_Demand,$I$10,FALSE),0)","v":0},{"$f":"ROUND(F578*VLOOKUP(D578,ALLOCTABLE_Distr_Demand,$J$10,FALSE),0)","v":0},{"$f":"ROUND(F578*VLOOKUP(D578,ALLOCTABLE_Distr_Demand,$K$10,FALSE),0)","v":0},{"$f":"ROUND(F578*VLOOKUP(D578,ALLOCTABLE_Distr_Demand,$L$10,FALSE),0)","v":0},{"$f":"ROUND(F578*VLOOKUP(D578,ALLOCTABLE_Distr_Demand,$M$10,FALSE),0)","v":0},{"$f":"ROUND(F578*VLOOKUP(D578,ALLOCTABLE_Distr_Demand,$N$10,FALSE),0)","v":0},{"$f":"ROUND(F578*VLOOKUP(D578,ALLOCTABLE_Distr_Demand,$O$10,FALSE),0)","v":0},{"$f":"ROUND(F578*VLOOKUP(D578,ALLOCTABLE_Distr_Demand,$P$10,FALSE),0)","v":0},{"$f":"ROUND(F578*VLOOKUP(D578,ALLOCTABLE_Distr_Demand,$Q$10,FALSE),0)","v":0},{"$f":"SUM(G578:Q578)","v":-17},{"$f":"F578-R578","v":0}]
[19,null,{"$f":"'FR-16(7)(v)-1 Functional'!C579","v":"  TOTAL COM & OTHER DEPREC EXP."},null,null,{"$f":"SUM(F578:F578)","v":-17},{"$f":"SUM(G578:G578)","v":-17},{"$f":"SUM(H578:H578)","v":0},{"$f":"SUM(I578:I578)","v":0},{"$f":"SUM(J578:J578)","v":0},0,0,0,0,0,0,{"$f":"SUM(Q578:Q578)","v":0},{"$f":"SUM(R578:R578)","v":-17},{"$f":"SUM(S578:S578)","v":0}]
[20]
[21]
[22,"TOTAL DEPRECIATION EXPENSE",null,null," ",{"$f":"F579+F575+F571+F567+F563","v":10443209},{"$f":"G579+G575+G571+G567+G563","v":4897854},{"$f":"H579+H575+H571+H567+H563","v":2897525},{"$f":"I579+I575+I571+I567+I563","v":13483},{"$f":"J579+J575+J571+J567+J563","v":63546},732,1479753,974622,48914,-8,65638,{"$f":"Q579+Q575+Q571+Q567+Q563","v":1150},{"$f":"R579+R575+R571+R567+R563","v":10443209},{"$f":"S579+S575+S571+S567+S563","v":0}]
[]
[{"$f":"co_name","v":"DUKE ENERGY KENTUCKY, INC."},null,null,null,null,null,null,null,null,null,null,null,null,null,null,null,null,{"$f":"R1","v":"FR-16(7)(v)-11"}]
[{"$f":"$A$2","v":"DISTRIBUTION DEMAND ALLOCATED - ELECTRIC COST OF SERVICE"},null,null,null,null,null,null,null,null,null,null,null,null,null,null,null,null,{"$f":"R2","v":"WITNESS RESPONSIBLE:"}]
[{"$f":"case_name","v":"CASE NO: 2019-00271"},null,null,null,null,null,null,null,null,null,null,null,null,null,null,null,null,{"$f":"Witness","v":"JAMES E. ZIOLKOWSKI"}]
[{"$f":"data_filing","v":"DATA: 12 MONTHS ACTUAL  & 0 MONTHS ESTIMATED"},null,null,null,null,null,null,null,null,null,null,null,null,null,null,null,null,{"$f":"\"PAGE \"&Pages-7&\" OF \"&Pages","v":"PAGE 11 OF 18"}]
[{"$f":"type","v":"TYPE OF FILING: \"X\" ORIGINAL   UPDATED    REVISED  "}]
[]
[null,null,null,null,null,{"$f":"F$7","v":"TOTAL"},null,{"$f":"H$7","v":"DS"},{"$f":"I$7","v":"GSFL"},{"$f":"J$7","v":"EH"},{"$f":"K$7","v":"SP"},"DT SEC","DT PRI","DP","TT",null,"OTHER"]
["LINE",null,null,null,null,{"$f":"F$8","v":"DISTRIBUTION"},{"$f":"G$8","v":"RS"},{"$f":"H$8","v":"SECONDARY"},{"$f":"I$8","v":"SECONDARY"},{"$f":"J$8","v":"SECONDARY"},{"$f":"K$8","v":"SECONDARY"},"SECONDARY","PRIMARY","PRIMARY","TRANSMISSION","LT","WATER",{"$f":"R8","v":"TOTAL"},"ALL"]
["NO.","OTHER TAXES & MISC EXPENSES",null,"ALLO",null,{"$f":"F$9","v":"DEMAND"},{"$f":"G$9","v":"RESIDENTIAL"},{"$f":"H$9","v":"DISTRIBUTION"},{"$f":"I$9","v":"DISTRIBUTION"},{"$f":"J$9","v":"DISTRIBUTION"},{"$f":"K$9","v":"DISTRIBUTION"},"DISTRIBUTION","DISTRIBUTION","DISTRIBUTION","TIME OF DAY","LIGHTING","PUMPING",{"$f":"R9","v":"AT ISSUE"},"OTHER"]
[null,null,"Schedule 8",null,null,null,{"$f":"G$10","v":3},{"$f":"H$10","v":4},{"$f":"I$10","v":5},{"$f":"J$10","v":6},{"$f":"K$10","v":7},8,9,10,11,12,13,null," "]
[1,"TAXES OTHER THAN INC & REV"]
[2," REAL ESTATE & PROPERTY TAX"]
[3,null,{"$f":"'FR-16(7)(v)-1 Functional'!C596","v":"REAL ESTATE & PROPERTY TAX"},{"$f":"'FR-16(7)(v)-1 Functional'!D596","v":"NP29"},null,{"$f":"'FR-16(7)(v)-10 DIST Classified'!G596","v":3909973},{"$f":"F596-SUM(H596:Q596)","v":1835184},{"$f":"ROUND(F596*VLOOKUP(D596,ALLOCTABLE_Distr_Demand,$H$10,FALSE),0)","v":1084118},{"$f":"ROUND(F596*VLOOKUP(D596,ALLOCTABLE_Distr_Demand,$I$10,FALSE),0)","v":5044},{"$f":"ROUND(F596*VLOOKUP(D596,ALLOCTABLE_Distr_Demand,$J$10,FALSE),0)","v":23773},{"$f":"ROUND(F596*VLOOKUP(D596,ALLOCTABLE_Distr_Demand,$K$10,FALSE),0)","v":274},{"$f":"ROUND(F596*VLOOKUP(D596,ALLOCTABLE_Distr_Demand,$L$10,FALSE),0)","v":553652},{"$f":"ROUND(F596*VLOOKUP(D596,ALLOCTABLE_Distr_Demand,$M$10,FALSE),0)","v":364644},{"$f":"ROUND(F596*VLOOKUP(D596,ALLOCTABLE_Distr_Demand,$N$10,FALSE),0)","v":18299},{"$f":"ROUND(F596*VLOOKUP(D596,ALLOCTABLE_Distr_Demand,$O$10,FALSE),0)","v":0},{"$f":"ROUND(F596*VLOOKUP(D596,ALLOCTABLE_Distr_Demand,$P$10,FALSE),0)","v":24555},{"$f":"ROUND(F596*VLOOKUP(D596,ALLOCTABLE_Distr_Demand,$Q$10,FALSE),0)","v":430},{"$f":"SUM(G596:Q596)","v":3909973},{"$f":"F596-R596","v":0}]
[4,null,{"$f":"'FR-16(7)(v)-1 Functional'!C597","v":"ANNUALIZE PROPERTY TAX"},{"$f":"'FR-16(7)(v)-1 Functional'!D597","v":"NP29"}," ",{"$f":"'FR-16(7)(v)-10 DIST Classified'!G597","v":0},{"$f":"F597-SUM(H597:Q597)","v":0},{"$f":"ROUND(F597*VLOOKUP(D597,ALLOCTABLE_Distr_Demand,$H$10,FALSE),0)","v":0},{"$f":"ROUND(F597*VLOOKUP(D597,ALLOCTABLE_Distr_Demand,$I$10,FALSE),0)","v":0},{"$f":"ROUND(F597*VLOOKUP(D597,ALLOCTABLE_Distr_Demand,$J$10,FALSE),0)","v":0},{"$f":"ROUND(F597*VLOOKUP(D597,ALLOCTABLE_Distr_Demand,$K$10,FALSE),0)","v":0},{"$f":"ROUND(F597*VLOOKUP(D597,ALLOCTABLE_Distr_Demand,$L$10,FALSE),0)","v":0},{"$f":"ROUND(F597*VLOOKUP(D597,ALLOCTABLE_Distr_Demand,$M$10,FALSE),0)","v":0},{"$f":"ROUND(F597*VLOOKUP(D597,ALLOCTABLE_Distr_Demand,$N$10,FALSE),0)","v":0},{"$f":"ROUND(F597*VLOOKUP(D597,ALLOCTABLE_Distr_Demand,$O$10,FALSE),0)","v":0},{"$f":"ROUND(F597*VLOOKUP(D597,ALLOCTABLE_Distr_Demand,$P$10,FALSE),0)","v":0},{"$f":"ROUND(F597*VLOOKUP(D597,ALLOCTABLE_Distr_Demand,$Q$10,FALSE),0)","v":0},{"$f":"SUM(G597:Q597)","v":0},{"$f":"F597-R597","v":0}]
[5,null,{"$f":"'FR-16(7)(v)-1 Functional'!C598","v":"  TOTAL REAL ESTATE & PROPERTY TAX"},null,null,{"$f":"SUM(F596:F597)","v":3909973},{"$f":"SUM(G596:G597)","v":1835184},{"$f":"SUM(H596:H597)","v":1084118},{"$f":"SUM(I596:I597)","v":5044},{"$f":"SUM(J596:J597)","v":23773},274,553652,364644,18299,0,24555,{"$f":"SUM($Q$596:$Q$597)","v":430},{"$f":"SUM(R596:R597)","v":3909973},{"$f":"SUM(S596:S597)","v":0}]
[6]
[7," MISCELLANEOUS TAXES"]
[8,null,{"$f":"'FR-16(7)(v)-1 Functional'!C601","v":"PAYROLL "},{"$f":"'FR-16(7)(v)-1 Functional'!D601","v":"A315"},null,{"$f":"'FR-16(7)(v)-10 DIST Classified'!G601","v":276613},{"$f":"F601-SUM(H601:Q601)","v":142644},{"$f":"ROUND(F601*VLOOKUP(D601,ALLOCTABLE_Distr_Demand,$H$10,FALSE),0)","v":70030},{"$f":"ROUND(F601*VLOOKUP(D601,ALLOCTABLE_Distr_Demand,$I$10,FALSE),0)","v":302},{"$f":"ROUND(F601*VLOOKUP(D601,ALLOCTABLE_Distr_Demand,$J$10,FALSE),0)","v":1779},{"$f":"ROUND(F601*VLOOKUP(D601,ALLOCTABLE_Distr_Demand,$K$10,FALSE),0)","v":19},{"$f":"ROUND(F601*VLOOKUP(D601,ALLOCTABLE_Distr_Demand,$L$10,FALSE),0)","v":33976},{"$f":"ROUND(F601*VLOOKUP(D601,ALLOCTABLE_Distr_Demand,$M$10,FALSE),0)","v":21935},{"$f":"ROUND(F601*VLOOKUP(D601,ALLOCTABLE_Distr_Demand,$N$10,FALSE),0)","v":1198},{"$f":"ROUND(F601*VLOOKUP(D601,ALLOCTABLE_Distr_Demand,$O$10,FALSE),0)","v":3106},{"$f":"ROUND(F601*VLOOKUP(D601,ALLOCTABLE_Distr_Demand,$P$10,FALSE),0)","v":1574},{"$f":"ROUND(F601*VLOOKUP(D601,ALLOCTABLE_Distr_Demand,$Q$10,FALSE),0)","v":50},{"$f":"SUM(G601:Q601)","v":276613},{"$f":"F601-R601","v":0}]
[9,null,{"$f":"'FR-16(7)(v)-1 Functional'!C602","v":"ELIMINATE DSM "},{"$f":"'FR-16(7)(v)-1 Functional'!D602","v":"A315"},null,{"$f":"'FR-16(7)(v)-10 DIST Classified'!G602","v":-5442},{"$f":"F602-SUM(H602:Q602)","v":-2806},{"$f":"ROUND(F602*VLOOKUP(D602,ALLOCTABLE_Distr_Demand,$H$10,FALSE),0)","v":-1378},{"$f":"ROUND(F602*VLOOKUP(D602,ALLOCTABLE_Distr_Demand,$I$10,FALSE),0)","v":-6},{"$f":"ROUND(F602*VLOOKUP(D602,ALLOCTABLE_Distr_Demand,$J$10,FALSE),0)","v":-35},{"$f":"ROUND(F602*VLOOKUP(D602,ALLOCTABLE_Distr_Demand,$K$10,FALSE),0)","v":0},{"$f":"ROUND(F602*VLOOKUP(D602,ALLOCTABLE_Distr_Demand,$L$10,FALSE),0)","v":-668},{"$f":"ROUND(F602*VLOOKUP(D602,ALLOCTABLE_Distr_Demand,$M$10,FALSE),0)","v":-432},{"$f":"ROUND(F602*VLOOKUP(D602,ALLOCTABLE_Distr_Demand,$N$10,FALSE),0)","v":-24},{"$f":"ROUND(F602*VLOOKUP(D602,ALLOCTABLE_Distr_Demand,$O$10,FALSE),0)","v":-61},{"$f":"ROUND(F602*VLOOKUP(D602,ALLOCTABLE_Distr_Demand,$P$10,FALSE),0)","v":-31},{"$f":"ROUND(F602*VLOOKUP(D602,ALLOCTABLE_Distr_Demand,$Q$10,FALSE),0)","v":-1},{"$f":"SUM(G602:Q602)","v":-5442},{"$f":"F602-R602","v":0}]
[10,null,{"$f":"'FR-16(7)(v)-1 Functional'!C603","v":"FRANCHISE & LICENSE"},{"$f":"'FR-16(7)(v)-1 Functional'!D603","v":"A315"},null,{"$f":"'FR-16(7)(v)-10 DIST Classified'!G603","v":0},{"$f":"F603-SUM(H603:Q603)","v":0},{"$f":"ROUND(F603*VLOOKUP(D603,ALLOCTABLE_Distr_Demand,$H$10,FALSE),0)","v":0},{"$f":"ROUND(F603*VLOOKUP(D603,ALLOCTABLE_Distr_Demand,$I$10,FALSE),0)","v":0},{"$f":"ROUND(F603*VLOOKUP(D603,ALLOCTABLE_Distr_Demand,$J$10,FALSE),0)","v":0},{"$f":"ROUND(F603*VLOOKUP(D603,ALLOCTABLE_Distr_Demand,$K$10,FALSE),0)","v":0},{"$f":"ROUND(F603*VLOOKUP(D603,ALLOCTABLE_Distr_Demand,$L$10,FALSE),0)","v":0},{"$f":"ROUND(F603*VLOOKUP(D603,ALLOCTABLE_Distr_Demand,$M$10,FALSE),0)","v":0},{"$f":"ROUND(F603*VLOOKUP(D603,ALLOCTABLE_Distr_Demand,$N$10,FALSE),0)","v":0},{"$f":"ROUND(F603*VLOOKUP(D603,ALLOCTABLE_Distr_Demand,$O$10,FALSE),0)","v":0},{"$f":"ROUND(F603*VLOOKUP(D603,ALLOCTABLE_Distr_Demand,$P$10,FALSE),0)","v":0},{"$f":"ROUND(F603*VLOOKUP(D603,ALLOCTABLE_Distr_Demand,$Q$10,FALSE),0)","v":0},{"$f":"SUM(G603:Q603)","v":0},{"$f":"F603-R603","v":0}]
[11,null,{"$f":"'FR-16(7)(v)-1 Functional'!C604","v":"ELIMINATE ESM"},{"$f":"'FR-16(7)(v)-1 Functional'!D604","v":"A315"},null,{"$f":"'FR-16(7)(v)-10 DIST Classified'!G604","v":-147145},{"$f":"F604-SUM(H604:Q604)","v":-75881},{"$f":"ROUND(F604*VLOOKUP(D604,ALLOCTABLE_Distr_Demand,$H$10,FALSE),0)","v":-37253},{"$f":"ROUND(F604*VLOOKUP(D604,ALLOCTABLE_Distr_Demand,$I$10,FALSE),0)","v":-160},{"$f":"ROUND(F604*VLOOKUP(D604,ALLOCTABLE_Distr_Demand,$J$10,FALSE),0)","v":-946},{"$f":"ROUND(F604*VLOOKUP(D604,ALLOCTABLE_Distr_Demand,$K$10,FALSE),0)","v":-10},{"$f":"ROUND(F604*VLOOKUP(D604,ALLOCTABLE_Distr_Demand,$L$10,FALSE),0)","v":-18074},{"$f":"ROUND(F604*VLOOKUP(D604,ALLOCTABLE_Distr_Demand,$M$10,FALSE),0)","v":-11669},{"$f":"ROUND(F604*VLOOKUP(D604,ALLOCTABLE_Distr_Demand,$N$10,FALSE),0)","v":-637},{"$f":"ROUND(F604*VLOOKUP(D604,ALLOCTABLE_Distr_Demand,$O$10,FALSE),0)","v":-1652},{"$f":"ROUND(F604*VLOOKUP(D604,ALLOCTABLE_Distr_Demand,$P$10,FALSE),0)","v":-837},{"$f":"ROUND(F604*VLOOKUP(D604,ALLOCTABLE_Distr_Demand,$Q$10,FALSE),0)","v":-26},{"$f":"SUM(G604:Q604)","v":-147145},{"$f":"F604-R604","v":0}]
[12,null,{"$f":"'FR-16(7)(v)-1 Functional'!C605","v":"  TOTAL MISCELLANEOUS TAXES"},null,null,{"$f":"SUM(F601:F604)","v":124026},{"$f":"SUM(G601:G604)","v":63957},{"$f":"SUM(H601:H604)","v":31399},{"$f":"SUM(I601:I604)","v":136},{"$f":"SUM(J601:J604)","v":798},9,15234,9834,537,1393,706,{"$f":"SUM($Q$601:$Q$604)","v":23},{"$f":"SUM(R601:R604)","v":124026},{"$f":"SUM(S601:S604)","v":0}]
[13]
[14," MISCELLANEOUS EXPENSES"]
[15,null,{"$f":"'FR-16(7)(v)-1 Functional'!C608","v":"PSC MAINT. EXP ON INCREASE"},{"$f":"'FR-16(7)(v)-1 Functional'!D608","v":"K902"},null,{"$f":"'FR-16(7)(v)-10 DIST Classified'!G608","v":13117},{"$f":"F608-SUM(H608:Q608)","v":5437},{"$f":"ROUND(F608*VLOOKUP(D608,ALLOCTABLE_Distr_Demand,$H$10,FALSE),0)","v":3753},{"$f":"ROUND(F608*VLOOKUP(D608,ALLOCTABLE_Distr_Demand,$I$10,FALSE),0)","v":24},{"$f":"ROUND(F608*VLOOKUP(D608,ALLOCTABLE_Distr_Demand,$J$10,FALSE),0)","v":25},{"$f":"ROUND(F608*VLOOKUP(D608,ALLOCTABLE_Distr_Demand,$K$10,FALSE),0)","v":1},{"$f":"ROUND(F608*VLOOKUP(D608,ALLOCTABLE_Distr_Demand,$L$10,FALSE),0)","v":1940},{"$f":"ROUND(F608*VLOOKUP(D608,ALLOCTABLE_Distr_Demand,$M$10,FALSE),0)","v":1238},{"$f":"ROUND(F608*VLOOKUP(D608,ALLOCTABLE_Distr_Demand,$N$10,FALSE),0)","v":57},{"$f":"ROUND(F608*VLOOKUP(D608,ALLOCTABLE_Distr_Demand,$O$10,FALSE),0)","v":563},{"$f":"ROUND(F608*VLOOKUP(D608,ALLOCTABLE_Distr_Demand,$P$10,FALSE),0)","v":78},{"$f":"ROUND(F608*VLOOKUP(D608,ALLOCTABLE_Distr_Demand,$Q$10,FALSE),0)","v":1},{"$f":"SUM(G608:Q608)","v":13117},{"$f":"F608-R608","v":0}]
[16,null,{"$f":"'FR-16(7)(v)-1 Functional'!C609","v":"RESERVED FOR FUTURE USE"},{"$f":"'FR-16(7)(v)-1 Functional'!D609","v":"K902"},null,{"$f":"'FR-16(7)(v)-10 DIST Classified'!G609","v":0},{"$f":"F609-SUM(H609:Q609)","v":0},{"$f":"ROUND(F609*VLOOKUP(D609,ALLOCTABLE_Distr_Demand,$H$10,FALSE),0)","v":0},{"$f":"ROUND(F609*VLOOKUP(D609,ALLOCTABLE_Distr_Demand,$I$10,FALSE),0)","v":0},{"$f":"ROUND(F609*VLOOKUP(D609,ALLOCTABLE_Distr_Demand,$J$10,FALSE),0)","v":0},{"$f":"ROUND(F609*VLOOKUP(D609,ALLOCTABLE_Distr_Demand,$K$10,FALSE),0)","v":0},{"$f":"ROUND(F609*VLOOKUP(D609,ALLOCTABLE_Distr_Demand,$L$10,FALSE),0)","v":0},{"$f":"ROUND(F609*VLOOKUP(D609,ALLOCTABLE_Distr_Demand,$M$10,FALSE),0)","v":0},{"$f":"ROUND(F609*VLOOKUP(D609,ALLOCTABLE_Distr_Demand,$N$10,FALSE),0)","v":0},{"$f":"ROUND(F609*VLOOKUP(D609,ALLOCTABLE_Distr_Demand,$O$10,FALSE),0)","v":0},{"$f":"ROUND(F609*VLOOKUP(D609,ALLOCTABLE_Distr_Demand,$P$10,FALSE),0)","v":0},{"$f":"ROUND(F609*VLOOKUP(D609,ALLOCTABLE_Distr_Demand,$Q$10,FALSE),0)","v":0},{"$f":"SUM(G609:Q609)","v":0},{"$f":"F609-R609","v":0}]
[17,null,{"$f":"'FR-16(7)(v)-1 Functional'!C610","v":"  TOTAL MISCELLANEOUS EXPENSES"},null,null,{"$f":"SUM(F608:F609)","v":13117},{"$f":"SUM(G608:G609)","v":5437},{"$f":"SUM(H608:H609)","v":3753},{"$f":"SUM(I608:I609)","v":24},{"$f":"SUM(J608:J609)","v":25},1,1940,1238,57,563,78,{"$f":"SUM($Q$608:$Q$609)","v":1},{"$f":"SUM(R608:R609)","v":13117},{"$f":"SUM(S608:S609)","v":0}]
[18]
[19,"TOTAL OTHER TAX & MISC EXPENSE",null,null," ",{"$f":"F605+F598+F610","v":4047116},{"$f":"G605+G598+G610","v":1904578},{"$f":"H605+H598+H610","v":1119270},{"$f":"I605+I598+I610","v":5204},{"$f":"J605+J598+J610","v":24596},284,570826,375716,18893,1956,25339,{"$f":"$Q$605+$Q$598+$Q$610","v":454},{"$f":"R605+R598+R610","v":4047116},{"$f":"S605+S598+S610","v":0}]
[20]
[21,"PRELIMINARY SUMMARY"]
[22,null,{"$f":"'FR-16(7)(v)-1 Functional'!C615","v":"TOTAL O&M EXPENSE"},null,null,{"$f":"F549","v":16646493},{"$f":"G549","v":8584234},{"$f":"H549","v":4214381},{"$f":"I549","v":18186},{"$f":"J549","v":107081},1165,2044701,1320012,72140,186933,94703,{"$f":"Q549","v":2957},{"$f":"R549","v":16646493},{"$f":"S549","v":0}]
[23,null,{"$f":"'FR-16(7)(v)-1 Functional'!C616","v":"TOTAL DEPRECIATION EXPENSE"},null,null,{"$f":"F582","v":10443209},{"$f":"G582","v":4897854},{"$f":"H582","v":2897525},{"$f":"I582","v":13483},{"$f":"J582","v":63546},732,1479753,974622,48914,-8,65638,{"$f":"Q582","v":1150},{"$f":"R582","v":10443209},{"$f":"S582","v":0}]
[24,null,{"$f":"'FR-16(7)(v)-1 Functional'!C617","v":"TOTAL OTHER TAX & MISC EXPENSE"},null,null,{"$f":"F612","v":4047116},{"$f":"G612","v":1904578},{"$f":"H612","v":1119270},{"$f":"I612","v":5204},{"$f":"J612","v":24596},284,570826,375716,18893,1956,25339,{"$f":"$Q$612","v":454},{"$f":"R612","v":4047116},{"$f":"S612","v":0}]
[25,null,{"$f":"'FR-16(7)(v)-1 Functional'!C618","v":"  TOTAL OPER EXP EXCL INCOME & REV TAX"},null,null,{"$f":"SUM(F615:F617)","v":31136818},{"$f":"SUM(G615:G617)","v":15386666},{"$f":"SUM(H615:H617)","v":8231176},{"$f":"SUM(I615:I617)","v":36873},{"$f":"SUM(J615:J617)","v":195223},2181,4095280,2670350,139947,188881,185680,{"$f":"SUM($Q$615:$Q$617)","v":4561},{"$f":"SUM(R615:R617)","v":31136818},{"$f":"SUM(S615:S617)","v":0}]
[]
[{"$f":"co_name","v":"DUKE ENERGY KENTUCKY, INC."},null,null,null,null,null,null,null,null,null,null,null,null,null,null,null,null,{"$f":"R1","v":"FR-16(7)(v)-11"}]
[{"$f":"$A$2","v":"DISTRIBUTION DEMAND ALLOCATED - ELECTRIC COST OF SERVICE"},null,null,null,null,null,null,null,null,null,null,null,null,null,null,null,null,{"$f":"R2","v":"WITNESS RESPONSIBLE:"}]
[{"$f":"case_name","v":"CASE NO: 2019-00271"},null,null,null,null,null,null,null,null,null,null,null,null,null,null,null,null,{"$f":"Witness","v":"JAMES E. ZIOLKOWSKI"}]
[{"$f":"data_filing","v":"DATA: 12 MONTHS ACTUAL  & 0 MONTHS ESTIMATED"},null,null,null,null,null,null,null,null,null,null,null,null,null,null,null,null,{"$f":"\"PAGE \"&Pages-6&\" OF \"&Pages","v":"PAGE 12 OF 18"}]
[{"$f":"type","v":"TYPE OF FILING: \"X\" ORIGINAL   UPDATED    REVISED  "}]
[]
[null,null,null,null,null,{"$f":"F$7","v":"TOTAL"},null,{"$f":"H$7","v":"DS"},{"$f":"I$7","v":"GSFL"},{"$f":"J$7","v":"EH"},{"$f":"K$7","v":"SP"},"DT SEC","DT PRI","DP","TT",null,"OTHER"]
["LINE",null,null,null,null,{"$f":"F$8","v":"DISTRIBUTION"},{"$f":"G$8","v":"RS"},{"$f":"H$8","v":"SECONDARY"},{"$f":"I$8","v":"SECONDARY"},{"$f":"J$8","v":"SECONDARY"},{"$f":"K$8","v":"SECONDARY"},"SECONDARY","PRIMARY","PRIMARY","TRANSMISSION","LT","WATER",{"$f":"R8","v":"TOTAL"},"ALL"]
["NO.","FEDERAL INCOME TAX BASED ON RETURN",null,"ALLO",null,{"$f":"F$9","v":"DEMAND"},{"$f":"G$9","v":"RESIDENTIAL"},{"$f":"H$9","v":"DISTRIBUTION"},{"$f":"I$9","v":"DISTRIBUTION"},{"$f":"J$9","v":"DISTRIBUTION"},{"$f":"K$9","v":"DISTRIBUTION"},"DISTRIBUTION","DISTRIBUTION","DISTRIBUTION","TIME OF DAY","LIGHTING","PUMPING",{"$f":"R9","v":"AT ISSUE"},"OTHER"]
[null,null,"Schedule 9",null,null,null,{"$f":"G$10","v":3},{"$f":"H$10","v":4},{"$f":"I$10","v":5},{"$f":"J$10","v":6},{"$f":"K$10","v":7},8,9,10,11,12,13,null," "]
[1,"FEDERAL INCOME TAX DEDUCTIONS"]
[2," AUTOMATIC INTEREST CALCULATION",null,null,null," "]
[3,null,{"$f":"'FR-16(7)(v)-1 Functional'!C632","v":"AUTO PROC INTEREST DED"},{"$f":"'FR-16(7)(v)-1 Functional'!D632","v":"RB99"},null,{"$f":"'FR-16(7)(v)-10 DIST Classified'!G632","v":5097300},{"$f":"F632-SUM(H632:Q632)","v":2392825},{"$f":"ROUND(F632*VLOOKUP(D632,ALLOCTABLE_Distr_Demand,$H$10,FALSE),0)","v":1413124},{"$f":"ROUND(F632*VLOOKUP(D632,ALLOCTABLE_Distr_Demand,$I$10,FALSE),0)","v":6576},{"$f":"ROUND(F632*VLOOKUP(D632,ALLOCTABLE_Distr_Demand,$J$10,FALSE),0)","v":30992},{"$f":"ROUND(F632*VLOOKUP(D632,ALLOCTABLE_Distr_Demand,$K$10,FALSE),0)","v":357},{"$f":"ROUND(F632*VLOOKUP(D632,ALLOCTABLE_Distr_Demand,$L$10,FALSE),0)","v":721625},{"$f":"ROUND(F632*VLOOKUP(D632,ALLOCTABLE_Distr_Demand,$M$10,FALSE),0)","v":475272},{"$f":"ROUND(F632*VLOOKUP(D632,ALLOCTABLE_Distr_Demand,$N$10,FALSE),0)","v":23855},{"$f":"ROUND(F632*VLOOKUP(D632,ALLOCTABLE_Distr_Demand,$O$10,FALSE),0)","v":102},{"$f":"ROUND(F632*VLOOKUP(D632,ALLOCTABLE_Distr_Demand,$P$10,FALSE),0)","v":32011},{"$f":"ROUND(F632*VLOOKUP(D632,ALLOCTABLE_Distr_Demand,$Q$10,FALSE),0)","v":561},{"$f":"SUM(G632:Q632)","v":5097300},{"$f":"F632-R632","v":0}]
[4,null,{"$f":"'FR-16(7)(v)-1 Functional'!C633","v":"  TOTAL INTEREST EXPENSE"},null,null,{"$f":"F632","v":5097300},{"$f":"G632","v":2392825},{"$f":"H632","v":1413124},{"$f":"I632","v":6576},{"$f":"J632","v":30992},357,721625,475272,23855,102,32011,{"$f":"$Q$632","v":561},{"$f":"R632","v":5097300},{"$f":"S632","v":0}]
[5]
[6," OTHER DEDUCTIONS"]
[7,null,{"$f":"'FR-16(7)(v)-1 Functional'!C636","v":"DEPREC EXCESS TAX-BOOK"},{"$f":"'FR-16(7)(v)-1 Functional'!D636","v":"DE49"},null,{"$f":"'FR-16(7)(v)-10 DIST Classified'!G636","v":-2476893},{"$f":"F636-SUM(H636:Q636)","v":-1161638},{"$f":"ROUND(F636*VLOOKUP(D636,ALLOCTABLE_Distr_Demand,$H$10,FALSE),0)","v":-687239},{"$f":"ROUND(F636*VLOOKUP(D636,ALLOCTABLE_Distr_Demand,$I$10,FALSE),0)","v":-3195},{"$f":"ROUND(F636*VLOOKUP(D636,ALLOCTABLE_Distr_Demand,$J$10,FALSE),0)","v":-15060},{"$f":"ROUND(F636*VLOOKUP(D636,ALLOCTABLE_Distr_Demand,$K$10,FALSE),0)","v":-173},{"$f":"ROUND(F636*VLOOKUP(D636,ALLOCTABLE_Distr_Demand,$L$10,FALSE),0)","v":-350976},{"$f":"ROUND(F636*VLOOKUP(D636,ALLOCTABLE_Distr_Demand,$M$10,FALSE),0)","v":-231168},{"$f":"ROUND(F636*VLOOKUP(D636,ALLOCTABLE_Distr_Demand,$N$10,FALSE),0)","v":-11592},{"$f":"ROUND(F636*VLOOKUP(D636,ALLOCTABLE_Distr_Demand,$O$10,FALSE),0)","v":0},{"$f":"ROUND(F636*VLOOKUP(D636,ALLOCTABLE_Distr_Demand,$P$10,FALSE),0)","v":-15580},{"$f":"ROUND(F636*VLOOKUP(D636,ALLOCTABLE_Distr_Demand,$Q$10,FALSE),0)","v":-272},{"$f":"SUM(G636:Q636)","v":-2476893},{"$f":"F636-R636","v":0}]
[8,null,{"$f":"'FR-16(7)(v)-1 Functional'!C637","v":"PERMANENT DIFFERENCES"},{"$f":"'FR-16(7)(v)-1 Functional'!D637","v":"A357"},null,{"$f":"'FR-16(7)(v)-10 DIST Classified'!G637","v":-61903},{"$f":"F637-SUM(H637:Q637)","v":-31923},{"$f":"ROUND(F637*VLOOKUP(D637,ALLOCTABLE_Distr_Demand,$H$10,FALSE),0)","v":-15672},{"$f":"ROUND(F637*VLOOKUP(D637,ALLOCTABLE_Distr_Demand,$I$10,FALSE),0)","v":-67},{"$f":"ROUND(F637*VLOOKUP(D637,ALLOCTABLE_Distr_Demand,$J$10,FALSE),0)","v":-398},{"$f":"ROUND(F637*VLOOKUP(D637,ALLOCTABLE_Distr_Demand,$K$10,FALSE),0)","v":-4},{"$f":"ROUND(F637*VLOOKUP(D637,ALLOCTABLE_Distr_Demand,$L$10,FALSE),0)","v":-7604},{"$f":"ROUND(F637*VLOOKUP(D637,ALLOCTABLE_Distr_Demand,$M$10,FALSE),0)","v":-4909},{"$f":"ROUND(F637*VLOOKUP(D637,ALLOCTABLE_Distr_Demand,$N$10,FALSE),0)","v":-268},{"$f":"ROUND(F637*VLOOKUP(D637,ALLOCTABLE_Distr_Demand,$O$10,FALSE),0)","v":-695},{"$f":"ROUND(F637*VLOOKUP(D637,ALLOCTABLE_Distr_Demand,$P$10,FALSE),0)","v":-352},{"$f":"ROUND(F637*VLOOKUP(D637,ALLOCTABLE_Distr_Demand,$Q$10,FALSE),0)","v":-11},{"$f":"SUM(G637:Q637)","v":-61903},{"$f":"F637-R637","v":0}]
[9,null,{"$f":"'FR-16(7)(v)-1 Functional'!C638","v":"TEMPORARY DIFFERENCES"},{"$f":"'FR-16(7)(v)-1 Functional'!D638","v":"DE49"},null,{"$f":"'FR-16(7)(v)-10 DIST Classified'!G638","v":15113628},{"$f":"F638-SUM(H638:Q638)","v":7088140},{"$f":"ROUND(F638*VLOOKUP(D638,ALLOCTABLE_Distr_Demand,$H$10,FALSE),0)","v":4193427},{"$f":"ROUND(F638*VLOOKUP(D638,ALLOCTABLE_Distr_Demand,$I$10,FALSE),0)","v":19497},{"$f":"ROUND(F638*VLOOKUP(D638,ALLOCTABLE_Distr_Demand,$J$10,FALSE),0)","v":91891},{"$f":"ROUND(F638*VLOOKUP(D638,ALLOCTABLE_Distr_Demand,$K$10,FALSE),0)","v":1058},{"$f":"ROUND(F638*VLOOKUP(D638,ALLOCTABLE_Distr_Demand,$L$10,FALSE),0)","v":2141601},{"$f":"ROUND(F638*VLOOKUP(D638,ALLOCTABLE_Distr_Demand,$M$10,FALSE),0)","v":1410555},{"$f":"ROUND(F638*VLOOKUP(D638,ALLOCTABLE_Distr_Demand,$N$10,FALSE),0)","v":70732},{"$f":"ROUND(F638*VLOOKUP(D638,ALLOCTABLE_Distr_Demand,$O$10,FALSE),0)","v":0},{"$f":"ROUND(F638*VLOOKUP(D638,ALLOCTABLE_Distr_Demand,$P$10,FALSE),0)","v":95065},{"$f":"ROUND(F638*VLOOKUP(D638,ALLOCTABLE_Distr_Demand,$Q$10,FALSE),0)","v":1662},{"$f":"SUM(G638:Q638)","v":15113628},{"$f":"F638-R638","v":0}]
[10,null,{"$f":"'FR-16(7)(v)-1 Functional'!C639","v":"  TOTAL OTHER DEDUCTIONS"},null,null,{"$f":"SUM(F636:F638)","v":12574832},{"$f":"SUM(G636:G638)","v":5894579},{"$f":"SUM(H636:H638)","v":3490516},{"$f":"SUM(I636:I638)","v":16235},{"$f":"SUM(J636:J638)","v":76433},881,1783021,1174478,58872,-695,79133,{"$f":"SUM($Q$636:$Q$638)","v":1379},{"$f":"SUM(R636:R638)","v":12574832},{"$f":"SUM(S636:S638)","v":0}]
[11]
[12,"NET DEDUCTIONS AND ADDITIONS",null,null,null,{"$f":"F639+F633","v":17672132},{"$f":"G639+G633","v":8287404},{"$f":"H639+H633","v":4903640},{"$f":"I639+I633","v":22811},{"$f":"J639+J633","v":107425},1238,2504646,1649750,82727,-593,111144,{"$f":"$Q$639+$Q$633","v":1940},{"$f":"R639+R633","v":17672132},{"$f":"S639+S633","v":0}]
[13]
[14," FED DEFERRED INCOME TAX (410 & 411)"]
[15,null,{"$f":"'FR-16(7)(v)-1 Functional'!C644","v":"DEFERRED INCOME TAXES - NET"},{"$f":"'FR-16(7)(v)-1 Functional'!D644","v":"OM39"},null,{"$f":"'FR-16(7)(v)-10 DIST Classified'!G644","v":1108071},{"$f":"F644-SUM(H644:Q644)","v":571410},{"$f":"ROUND(F644*VLOOKUP(D644,ALLOCTABLE_Distr_Demand,$H$10,FALSE),0)","v":280530},{"$f":"ROUND(F644*VLOOKUP(D644,ALLOCTABLE_Distr_Demand,$I$10,FALSE),0)","v":1208},{"$f":"ROUND(F644*VLOOKUP(D644,ALLOCTABLE_Distr_Demand,$J$10,FALSE),0)","v":7125},{"$f":"ROUND(F644*VLOOKUP(D644,ALLOCTABLE_Distr_Demand,$K$10,FALSE),0)","v":78},{"$f":"ROUND(F644*VLOOKUP(D644,ALLOCTABLE_Distr_Demand,$L$10,FALSE),0)","v":136104},{"$f":"ROUND(F644*VLOOKUP(D644,ALLOCTABLE_Distr_Demand,$M$10,FALSE),0)","v":87870},{"$f":"ROUND(F644*VLOOKUP(D644,ALLOCTABLE_Distr_Demand,$N$10,FALSE),0)","v":4798},{"$f":"ROUND(F644*VLOOKUP(D644,ALLOCTABLE_Distr_Demand,$O$10,FALSE),0)","v":12444},{"$f":"ROUND(F644*VLOOKUP(D644,ALLOCTABLE_Distr_Demand,$P$10,FALSE),0)","v":6305},{"$f":"ROUND(F644*VLOOKUP(D644,ALLOCTABLE_Distr_Demand,$Q$10,FALSE),0)","v":199},{"$f":"SUM(G644:Q644)","v":1108071},{"$f":"F644-R644","v":0}]
[16,null,{"$f":"'FR-16(7)(v)-1 Functional'!C645","v":"AMORT OF DEFERRED MERGER COST"},{"$f":"'FR-16(7)(v)-1 Functional'!D645","v":"A357"},null,{"$f":"'FR-16(7)(v)-10 DIST Classified'!G645","v":0},{"$f":"F645-SUM(H645:Q645)","v":0},{"$f":"ROUND(F645*VLOOKUP(D645,ALLOCTABLE_Distr_Demand,$H$10,FALSE),0)","v":0},{"$f":"ROUND(F645*VLOOKUP(D645,ALLOCTABLE_Distr_Demand,$I$10,FALSE),0)","v":0},{"$f":"ROUND(F645*VLOOKUP(D645,ALLOCTABLE_Distr_Demand,$J$10,FALSE),0)","v":0},{"$f":"ROUND(F645*VLOOKUP(D645,ALLOCTABLE_Distr_Demand,$K$10,FALSE),0)","v":0},{"$f":"ROUND(F645*VLOOKUP(D645,ALLOCTABLE_Distr_Demand,$L$10,FALSE),0)","v":0},{"$f":"ROUND(F645*VLOOKUP(D645,ALLOCTABLE_Distr_Demand,$M$10,FALSE),0)","v":0},{"$f":"ROUND(F645*VLOOKUP(D645,ALLOCTABLE_Distr_Demand,$N$10,FALSE),0)","v":0},{"$f":"ROUND(F645*VLOOKUP(D645,ALLOCTABLE_Distr_Demand,$O$10,FALSE),0)","v":0},{"$f":"ROUND(F645*VLOOKUP(D645,ALLOCTABLE_Distr_Demand,$P$10,FALSE),0)","v":0},{"$f":"ROUND(F645*VLOOKUP(D645,ALLOCTABLE_Distr_Demand,$Q$10,FALSE),0)","v":0},{"$f":"SUM(G645:Q645)","v":0},{"$f":"F645-R645","v":0}]
[17,null,{"$f":"'FR-16(7)(v)-1 Functional'!C646","v":"DIT ADJUSTMENT - S/L DEPRECIATION"},{"$f":"'FR-16(7)(v)-1 Functional'!D646","v":"DE49"},null,{"$f":"'FR-16(7)(v)-10 DIST Classified'!G646","v":0},{"$f":"F646-SUM(H646:Q646)","v":0},{"$f":"ROUND(F646*VLOOKUP(D646,ALLOCTABLE_Distr_Demand,$H$10,FALSE),0)","v":0},{"$f":"ROUND(F646*VLOOKUP(D646,ALLOCTABLE_Distr_Demand,$I$10,FALSE),0)","v":0},{"$f":"ROUND(F646*VLOOKUP(D646,ALLOCTABLE_Distr_Demand,$J$10,FALSE),0)","v":0},{"$f":"ROUND(F646*VLOOKUP(D646,ALLOCTABLE_Distr_Demand,$K$10,FALSE),0)","v":0},{"$f":"ROUND(F646*VLOOKUP(D646,ALLOCTABLE_Distr_Demand,$L$10,FALSE),0)","v":0},{"$f":"ROUND(F646*VLOOKUP(D646,ALLOCTABLE_Distr_Demand,$M$10,FALSE),0)","v":0},{"$f":"ROUND(F646*VLOOKUP(D646,ALLOCTABLE_Distr_Demand,$N$10,FALSE),0)","v":0},{"$f":"ROUND(F646*VLOOKUP(D646,ALLOCTABLE_Distr_Demand,$O$10,FALSE),0)","v":0},{"$f":"ROUND(F646*VLOOKUP(D646,ALLOCTABLE_Distr_Demand,$P$10,FALSE),0)","v":0},{"$f":"ROUND(F646*VLOOKUP(D646,ALLOCTABLE_Distr_Demand,$Q$10,FALSE),0)","v":0},{"$f":"SUM(G646:Q646)","v":0},{"$f":"F646-R646","v":0}]
[18,null,{"$f":"'FR-16(7)(v)-1 Functional'!C647","v":"DIT ADJUSTMENT - ARAM"},{"$f":"'FR-16(7)(v)-1 Functional'!D647","v":"K201"},null,{"$f":"'FR-16(7)(v)-10 DIST Classified'!G647","v":0},{"$f":"F647-SUM(H647:Q647)","v":0},{"$f":"ROUND(F647*VLOOKUP(D647,ALLOCTABLE_Distr_Demand,$H$10,FALSE),0)","v":0},{"$f":"ROUND(F647*VLOOKUP(D647,ALLOCTABLE_Distr_Demand,$I$10,FALSE),0)","v":0},{"$f":"ROUND(F647*VLOOKUP(D647,ALLOCTABLE_Distr_Demand,$J$10,FALSE),0)","v":0},{"$f":"ROUND(F647*VLOOKUP(D647,ALLOCTABLE_Distr_Demand,$K$10,FALSE),0)","v":0},{"$f":"ROUND(F647*VLOOKUP(D647,ALLOCTABLE_Distr_Demand,$L$10,FALSE),0)","v":0},{"$f":"ROUND(F647*VLOOKUP(D647,ALLOCTABLE_Distr_Demand,$M$10,FALSE),0)","v":0},{"$f":"ROUND(F647*VLOOKUP(D647,ALLOCTABLE_Distr_Demand,$N$10,FALSE),0)","v":0},{"$f":"ROUND(F647*VLOOKUP(D647,ALLOCTABLE_Distr_Demand,$O$10,FALSE),0)","v":0},{"$f":"ROUND(F647*VLOOKUP(D647,ALLOCTABLE_Distr_Demand,$P$10,FALSE),0)","v":0},{"$f":"ROUND(F647*VLOOKUP(D647,ALLOCTABLE_Distr_Demand,$Q$10,FALSE),0)","v":0},{"$f":"SUM(G647:Q647)","v":0},{"$f":"F647-R647","v":0}]
[19,null,{"$f":"'FR-16(7)(v)-1 Functional'!C648","v":"DIT ADJUSTMENT - AMORT OF EXCESS DEF TAXES"},{"$f":"'FR-16(7)(v)-1 Functional'!D648","v":"A357"},null,{"$f":"'FR-16(7)(v)-10 DIST Classified'!G648","v":-542836},{"$f":"F648-SUM(H648:Q648)","v":-279929},{"$f":"ROUND(F648*VLOOKUP(D648,ALLOCTABLE_Distr_Demand,$H$10,FALSE),0)","v":-137430},{"$f":"ROUND(F648*VLOOKUP(D648,ALLOCTABLE_Distr_Demand,$I$10,FALSE),0)","v":-592},{"$f":"ROUND(F648*VLOOKUP(D648,ALLOCTABLE_Distr_Demand,$J$10,FALSE),0)","v":-3490},{"$f":"ROUND(F648*VLOOKUP(D648,ALLOCTABLE_Distr_Demand,$K$10,FALSE),0)","v":-38},{"$f":"ROUND(F648*VLOOKUP(D648,ALLOCTABLE_Distr_Demand,$L$10,FALSE),0)","v":-66677},{"$f":"ROUND(F648*VLOOKUP(D648,ALLOCTABLE_Distr_Demand,$M$10,FALSE),0)","v":-43047},{"$f":"ROUND(F648*VLOOKUP(D648,ALLOCTABLE_Distr_Demand,$N$10,FALSE),0)","v":-2350},{"$f":"ROUND(F648*VLOOKUP(D648,ALLOCTABLE_Distr_Demand,$O$10,FALSE),0)","v":-6096},{"$f":"ROUND(F648*VLOOKUP(D648,ALLOCTABLE_Distr_Demand,$P$10,FALSE),0)","v":-3089},{"$f":"ROUND(F648*VLOOKUP(D648,ALLOCTABLE_Distr_Demand,$Q$10,FALSE),0)","v":-98},{"$f":"SUM(G648:Q648)","v":-542836},{"$f":"F648-R648","v":0}]
[20,null,{"$f":"'FR-16(7)(v)-1 Functional'!C649","v":"  TOTAL FED DEF IT (410 & 411)"},null,null,{"$f":"SUM(F644:F648)","v":565235},{"$f":"SUM(G644:G648)","v":291481},{"$f":"SUM(H644:H648)","v":143100},{"$f":"SUM(I644:I648)","v":616},{"$f":"SUM(J644:J648)","v":3635},40,69427,44823,2448,6348,3216,{"$f":"SUM($Q$644:$Q$648)","v":101},{"$f":"SUM(R644:R648)","v":565235},{"$f":"SUM(S644:S648)","v":0}]
[21]
[22," AMORT INV TAX CREDIT"]
[23,null,{"$f":"'FR-16(7)(v)-1 Functional'!C652","v":"AMORTIZE ITC"},{"$f":"'FR-16(7)(v)-1 Functional'!D652","v":"NP29"},null,{"$f":"'FR-16(7)(v)-10 DIST Classified'!G652","v":123},{"$f":"F652-SUM(H652:Q652)","v":58},{"$f":"ROUND(F652*VLOOKUP(D652,ALLOCTABLE_Distr_Demand,$H$10,FALSE),0)","v":34},{"$f":"ROUND(F652*VLOOKUP(D652,ALLOCTABLE_Distr_Demand,$I$10,FALSE),0)","v":0},{"$f":"ROUND(F652*VLOOKUP(D652,ALLOCTABLE_Distr_Demand,$J$10,FALSE),0)","v":1},{"$f":"ROUND(F652*VLOOKUP(D652,ALLOCTABLE_Distr_Demand,$K$10,FALSE),0)","v":0},{"$f":"ROUND(F652*VLOOKUP(D652,ALLOCTABLE_Distr_Demand,$L$10,FALSE),0)","v":17},{"$f":"ROUND(F652*VLOOKUP(D652,ALLOCTABLE_Distr_Demand,$M$10,FALSE),0)","v":11},{"$f":"ROUND(F652*VLOOKUP(D652,ALLOCTABLE_Distr_Demand,$N$10,FALSE),0)","v":1},{"$f":"ROUND(F652*VLOOKUP(D652,ALLOCTABLE_Distr_Demand,$O$10,FALSE),0)","v":0},{"$f":"ROUND(F652*VLOOKUP(D652,ALLOCTABLE_Distr_Demand,$P$10,FALSE),0)","v":1},{"$f":"ROUND(F652*VLOOKUP(D652,ALLOCTABLE_Distr_Demand,$Q$10,FALSE),0)","v":0},{"$f":"SUM(G652:Q652)","v":123},{"$f":"F652-R652","v":0}]
[24,null,{"$f":"'FR-16(7)(v)-1 Functional'!C653","v":"  TOTAL AMORTIZED ITC"},null,null,{"$f":"SUM(F652:F652)","v":123},{"$f":"SUM(G652:G652)","v":58},{"$f":"SUM(H652:H652)","v":34},{"$f":"SUM(I652:I652)","v":0},{"$f":"SUM(J652:J652)","v":1},0,17,11,1,0,1,{"$f":"SUM($Q$652:$Q$652)","v":0},{"$f":"SUM(R652:R652)","v":123},{"$f":"SUM(S652:S652)","v":0}]
[25]
[26," OTHER FEDERAL TAX CREDITS"]
[27,null,{"$f":"'FR-16(7)(v)-1 Functional'!C656","v":"FUEL TAX CREDIT"},{"$f":"'FR-16(7)(v)-1 Functional'!D656","v":"K301"},null,{"$f":"'FR-16(7)(v)-10 DIST Classified'!G656","v":0},{"$f":"F656-SUM(H656:Q656)","v":0},{"$f":"ROUND(F656*VLOOKUP(D656,ALLOCTABLE_Distr_Demand,$H$10,FALSE),0)","v":0},{"$f":"ROUND(F656*VLOOKUP(D656,ALLOCTABLE_Distr_Demand,$I$10,FALSE),0)","v":0},{"$f":"ROUND(F656*VLOOKUP(D656,ALLOCTABLE_Distr_Demand,$J$10,FALSE),0)","v":0},{"$f":"ROUND(F656*VLOOKUP(D656,ALLOCTABLE_Distr_Demand,$K$10,FALSE),0)","v":0},{"$f":"ROUND(F656*VLOOKUP(D656,ALLOCTABLE_Distr_Demand,$L$10,FALSE),0)","v":0},{"$f":"ROUND(F656*VLOOKUP(D656,ALLOCTABLE_Distr_Demand,$M$10,FALSE),0)","v":0},{"$f":"ROUND(F656*VLOOKUP(D656,ALLOCTABLE_Distr_Demand,$N$10,FALSE),0)","v":0},{"$f":"ROUND(F656*VLOOKUP(D656,ALLOCTABLE_Distr_Demand,$O$10,FALSE),0)","v":0},{"$f":"ROUND(F656*VLOOKUP(D656,ALLOCTABLE_Distr_Demand,$P$10,FALSE),0)","v":0},{"$f":"ROUND(F656*VLOOKUP(D656,ALLOCTABLE_Distr_Demand,$Q$10,FALSE),0)","v":0},{"$f":"SUM(G656:Q656)","v":0},{"$f":"F656-R656","v":0}]
[28,null,{"$f":"'FR-16(7)(v)-1 Functional'!C657","v":"R&D CREDIT - SECTION 41"},{"$f":"'FR-16(7)(v)-1 Functional'!D657","v":"A315"},null,{"$f":"'FR-16(7)(v)-10 DIST Classified'!G657","v":0},{"$f":"F657-SUM(H657:Q657)","v":0},{"$f":"ROUND(F657*VLOOKUP(D657,ALLOCTABLE_Distr_Demand,$H$10,FALSE),0)","v":0},{"$f":"ROUND(F657*VLOOKUP(D657,ALLOCTABLE_Distr_Demand,$I$10,FALSE),0)","v":0},{"$f":"ROUND(F657*VLOOKUP(D657,ALLOCTABLE_Distr_Demand,$J$10,FALSE),0)","v":0},{"$f":"ROUND(F657*VLOOKUP(D657,ALLOCTABLE_Distr_Demand,$K$10,FALSE),0)","v":0},{"$f":"ROUND(F657*VLOOKUP(D657,ALLOCTABLE_Distr_Demand,$L$10,FALSE),0)","v":0},{"$f":"ROUND(F657*VLOOKUP(D657,ALLOCTABLE_Distr_Demand,$M$10,FALSE),0)","v":0},{"$f":"ROUND(F657*VLOOKUP(D657,ALLOCTABLE_Distr_Demand,$N$10,FALSE),0)","v":0},{"$f":"ROUND(F657*VLOOKUP(D657,ALLOCTABLE_Distr_Demand,$O$10,FALSE),0)","v":0},{"$f":"ROUND(F657*VLOOKUP(D657,ALLOCTABLE_Distr_Demand,$P$10,FALSE),0)","v":0},{"$f":"ROUND(F657*VLOOKUP(D657,ALLOCTABLE_Distr_Demand,$Q$10,FALSE),0)","v":0},{"$f":"SUM(G657:Q657)","v":0},{"$f":"F657-R657","v":0}]
[29,null,"  TOTAL OTHER FEDERAL TAX CREDITS",null,null,{"$f":"SUM(F656:F657)","v":0},{"$f":"SUM(G656:G657)","v":0},{"$f":"SUM(H656:H657)","v":0},{"$f":"SUM(I656:I657)","v":0},{"$f":"SUM(J656:J657)","v":0},0,0,0,0,0,0,{"$f":"SUM($Q$656:$Q$657)","v":0},{"$f":"SUM(R656:R657)","v":0},{"$f":"SUM(S656:S657)","v":0}]
[30]
[31,"PRELIMINARY SUMMARY"]
[32,null,{"$f":"'FR-16(7)(v)-1 Functional'!C661","v":"TOTAL FED DEF IT (410 & 411)"},null,null,{"$f":"F649","v":565235},{"$f":"G649","v":291481},{"$f":"H649","v":143100},{"$f":"I649","v":616},{"$f":"J649","v":3635},40,69427,44823,2448,6348,3216,{"$f":"$Q$649","v":101},{"$f":"R649","v":565235},{"$f":"S649","v":0}]
[33,null,{"$f":"'FR-16(7)(v)-1 Functional'!C662","v":"TOTAL AMORTIZED ITC & OTHER FEDERAL TAX CREDITS"},null,null,{"$f":"-F653-F658","v":-123},{"$f":"-G653-G658","v":-58},-34,0,{"$f":"-J653-J658","v":-1},0,-17,-11,-1,0,-1,0,-123,0]
[34,null,{"$f":"'FR-16(7)(v)-1 Functional'!C663","v":"  TOTAL FEDERAL TAX ADJUSTMENTS"},null,null,{"$f":"SUM(F661:F662)","v":565112},{"$f":"SUM(G661:G662)","v":291423},{"$f":"SUM(H661:H662)","v":143066},{"$f":"SUM(I661:I662)","v":616},{"$f":"SUM(J661:J662)","v":3634},40,69410,44812,2447,6348,3215,{"$f":"SUM($Q$661:$Q$662)","v":101},{"$f":"SUM(R661:R662)","v":565112},{"$f":"SUM(S661:S662)","v":0}]
[35]
[36,"FEDERAL INCOME TAX COMPUTATION"]
[37,null,"RETURN ON RATE BASE",null,null,{"$f":"F433","v":17243720},{"$f":"G433","v":8094720},{"$f":"H433","v":4780476},{"$f":"I433","v":22244},{"$f":"J433","v":104842},1207,2441193,1607804,80701,345,108291,{"$f":"Q433","v":1897},{"$f":"R433","v":17243720},{"$f":"F666-R666","v":0}]
[38,null,{"$f":"'FR-16(7)(v)-1 Functional'!C667","v":"NET DEDUCTIONS AND ADDITIONS"},null,null,{"$f":"-F641","v":-17672132},{"$f":"-G641","v":-8287404},{"$f":"-H641","v":-4903640},{"$f":"-I641","v":-22811},{"$f":"-J641","v":-107425},-1238,-2504646,-1649750,-82727,593,-111144,{"$f":"-$Q$641","v":-1940},{"$f":"-R641","v":-17672132},{"$f":"F667-R667","v":0}]
[39,null,{"$f":"'FR-16(7)(v)-1 Functional'!C668","v":"TOTAL FEDERAL TAX ADJUSTMENTS"},null,null,{"$f":"F663","v":565112},{"$f":"G663","v":291423},{"$f":"H663","v":143066},{"$f":"I663","v":616},{"$f":"J663","v":3634},40,69410,44812,2447,6348,3215,{"$f":"$Q$663","v":101},{"$f":"R663","v":565112},{"$f":"F668-R668","v":0}]
[40,null,"TOTAL STATE PROV DEF IT (410 & 411)",null,null,{"$f":"F707","v":538674},{"$f":"G707","v":277784},{"$f":"H707","v":136376},{"$f":"I707","v":587},{"$f":"J707","v":3464},38,66165,42717,2332,6049,3065,{"$f":"Q707","v":97},{"$f":"R707","v":538674},{"$f":"F669-R669","v":0}]
[41,null,"RESERVED",null,null,{"$f":"F24","v":0},{"$f":"G24","v":0},{"$f":"H24","v":0},{"$f":"I24","v":0},{"$f":"J24","v":0},0,0,0,0,0,0,{"$f":"Q24","v":0},{"$f":"R24","v":0},{"$f":"F670-R670","v":0}]
[42,null,{"$f":"'FR-16(7)(v)-1 Functional'!C671","v":"  BASE FOR FIT COMPUATION"},null,null,{"$f":"SUM(F666:F670)","v":675374},{"$f":"SUM(G666:G670)","v":376523},{"$f":"SUM(H666:H670)","v":156278},{"$f":"SUM(I666:I670)","v":636},{"$f":"SUM(J666:J670)","v":4515},47,72122,45583,2753,13335,3427,{"$f":"SUM($Q$666:$Q$670)","v":155},{"$f":"SUM(R666:R670)","v":675374},{"$f":"SUM(S666:S670)","v":0}]
[43]
[44,null,{"$f":"'FR-16(7)(v)-1 Functional'!C673","v":"FIT FACTOR K190/(1-K190)"},null,null,{"$f":"ROUND(FIT/(1-FIT),9)","v":0.26582278500000001},0.26582278500000001,0.26582278500000001,0.26582278500000001,0.26582278500000001,0.26582278500000001,0.26582278500000001,0.26582278500000001,0.26582278500000001,0.26582278500000001,0.26582278500000001,0.26582278500000001,null,{"$f":"ROUND(R815/(1-R815),9)","v":0.26582278500000001}]
[45,null,{"$f":"'FR-16(7)(v)-1 Functional'!C674","v":"PRELIM FED INCOME TAX"},null,null,{"$f":"ROUND(F673*F671,0)","v":179530},{"$f":"F674-SUM(H674:Q674)","v":100089},{"$f":"ROUND(H671*H673,0)","v":41542},{"$f":"ROUND(I671*I673,0)","v":169},{"$f":"ROUND(J671*J673,0)","v":1200},12,19172,12117,732,3545,911,{"$f":"ROUND($Q$671*$Q$673,0)","v":41},{"$f":"SUM(G674:Q674)","v":179530},{"$f":"F674-R674","v":0}]
[46,null,{"$f":"'FR-16(7)(v)-1 Functional'!C675","v":"TOTAL FEDERAL TAX ADJUSTMENTS"},null,null,{"$f":"F663","v":565112},{"$f":"G663","v":291423},{"$f":"H663","v":143066},{"$f":"I663","v":616},{"$f":"J663","v":3634},40,69410,44812,2447,6348,3215,{"$f":"$Q$663","v":101},{"$f":"R663","v":565112},{"$f":"F675-R675","v":0}]
[47,null,{"$f":"'FR-16(7)(v)-1 Functional'!C676","v":"  NET FED INCOME TAX ALLOWABLE"},null,null,{"$f":"SUM(F674:F675)","v":744642},{"$f":"SUM(G674:G675)","v":391512},{"$f":"SUM(H674:H675)","v":184608},{"$f":"SUM(I674:I675)","v":785},{"$f":"SUM(J674:J675)","v":4834},52,88582,56929,3179,9893,4126,{"$f":"SUM($Q$674:$Q$675)","v":142},{"$f":"SUM(R674:R675)","v":744642},{"$f":"SUM(S674:S675)","v":0}]
[48]
[49,"INCOME TAX BASED ON RETURN"]
[50,"FEDERAL INCOME TAX PAYABLE"]
[51,null,{"$f":"'FR-16(7)(v)-1 Functional'!C680","v":"PRELIM FEDERAL INCOME TAX"},null,null,{"$f":"F674","v":179530},{"$f":"G674","v":100089},{"$f":"H674","v":41542},{"$f":"I674","v":169},{"$f":"J674","v":1200},12,19172,12117,732,3545,911,{"$f":"$Q$674","v":41},{"$f":"R674","v":179530},{"$f":"S674","v":0}]
[53,null,{"$f":"'FR-16(7)(v)-1 Functional'!C681","v":"  NET FED INCOME TAX PAYABLE"},null,null,{"$f":"SUM(F680:F680)","v":179530},{"$f":"SUM(G680:G680)","v":100089},{"$f":"SUM(H680:H680)","v":41542},{"$f":"SUM(I680:I680)","v":169},{"$f":"SUM(J680:J680)","v":1200},12,19172,12117,732,3545,911,{"$f":"SUM($Q$680:$Q$680)","v":41},{"$f":"SUM(R680:R680)","v":179530},{"$f":"SUM(S680:S680)","v":0}]
[]
[{"$f":"co_name","v":"DUKE ENERGY KENTUCKY, INC."},null,null,null,null,null,null,null,null,null,null,null,null,null,null,null,null,{"$f":"R1","v":"FR-16(7)(v)-11"}]
[{"$f":"$A$2","v":"DISTRIBUTION DEMAND ALLOCATED - ELECTRIC COST OF SERVICE"},null,null,null,null,null,null,null,null,null,null,null,null,null,null,null,null,{"$f":"R2","v":"WITNESS RESPONSIBLE:"}]
[{"$f":"case_name","v":"CASE NO: 2019-00271"},null,null,null,null,null,null,null,null,null,null,null,null,null,null,null,null,{"$f":"Witness","v":"JAMES E. ZIOLKOWSKI"}]
[{"$f":"data_filing","v":"DATA: 12 MONTHS ACTUAL  & 0 MONTHS ESTIMATED"},null,null,null,null,null,null,null,null,null,null,null,null,null,null,null,null,{"$f":"\"PAGE \"&Pages-5&\" OF \"&Pages","v":"PAGE 13 OF 18"}]
[{"$f":"type","v":"TYPE OF FILING: \"X\" ORIGINAL   UPDATED    REVISED  "}]
[]
[null,null,null,null,null,{"$f":"F$7","v":"TOTAL"},null,{"$f":"H$7","v":"DS"},{"$f":"I$7","v":"GSFL"},{"$f":"J$7","v":"EH"},{"$f":"K$7","v":"SP"},"DT SEC","DT PRI","DP","TT",null,"OTHER"]
["LINE",null,null,null,null,{"$f":"F$8","v":"DISTRIBUTION"},{"$f":"G$8","v":"RS"},{"$f":"H$8","v":"SECONDARY"},{"$f":"I$8","v":"SECONDARY"},{"$f":"J$8","v":"SECONDARY"},{"$f":"K$8","v":"SECONDARY"},"SECONDARY","PRIMARY","PRIMARY","TRANSMISSION","LT","WATER",{"$f":"R8","v":"TOTAL"},"ALL"]
["NO.","STATE INCOME TAX BASED ON RETURN",null,"Allo",null,{"$f":"F$9","v":"DEMAND"},{"$f":"G$9","v":"RESIDENTIAL"},{"$f":"H$9","v":"DISTRIBUTION"},{"$f":"I$9","v":"DISTRIBUTION"},{"$f":"J$9","v":"DISTRIBUTION"},{"$f":"K$9","v":"DISTRIBUTION"},"DISTRIBUTION","DISTRIBUTION","DISTRIBUTION","TIME OF DAY","LIGHTING","PUMPING",{"$f":"R9","v":"AT ISSUE"},"OTHER"]
[null,null,"Schedule 9.1",null,null,null,{"$f":"G$10","v":3},{"$f":"H$10","v":4},{"$f":"I$10","v":5},{"$f":"J$10","v":6},{"$f":"K$10","v":7},8,9,10,11,12,13,null," "]
[1,"DEDUCTIONS IN ADDITION TO Y871"]
[2,"KY TAXABLE INCOME ADJUSTMENT",null,{"$f":"'FR-16(7)(v)-1 Functional'!D694","v":"NP29"},null,{"$f":"'FR-16(7)(v)-10 DIST Classified'!G694","v":2451645},{"$f":"F694-SUM(H694:Q694)","v":1150703},{"$f":"ROUND(F694*VLOOKUP(D694,ALLOCTABLE_Distr_Demand,$H$10,FALSE),0)","v":679768},{"$f":"ROUND(F694*VLOOKUP(D694,ALLOCTABLE_Distr_Demand,$I$10,FALSE),0)","v":3163},{"$f":"ROUND(F694*VLOOKUP(D694,ALLOCTABLE_Distr_Demand,$J$10,FALSE),0)","v":14906},{"$f":"ROUND(F694*VLOOKUP(D694,ALLOCTABLE_Distr_Demand,$K$10,FALSE),0)","v":172},{"$f":"ROUND(F694*VLOOKUP(D694,ALLOCTABLE_Distr_Demand,$L$10,FALSE),0)","v":347153},{"$f":"ROUND(F694*VLOOKUP(D694,ALLOCTABLE_Distr_Demand,$M$10,FALSE),0)","v":228640},{"$f":"ROUND(F694*VLOOKUP(D694,ALLOCTABLE_Distr_Demand,$N$10,FALSE),0)","v":11474},{"$f":"ROUND(F694*VLOOKUP(D694,ALLOCTABLE_Distr_Demand,$O$10,FALSE),0)","v":0},{"$f":"ROUND(F694*VLOOKUP(D694,ALLOCTABLE_Distr_Demand,$P$10,FALSE),0)","v":15396},{"$f":"ROUND(F694*VLOOKUP(D694,ALLOCTABLE_Distr_Demand,$Q$10,FALSE),0)","v":270},{"$f":"SUM(G694:Q694)","v":2451645},{"$f":"F694-R694","v":0}]
[3,"RESERVED FOR FUTURE USE",null,{"$f":"'FR-16(7)(v)-1 Functional'!D695","v":"NP29"},null,{"$f":"'FR-16(7)(v)-10 DIST Classified'!G695","v":0},{"$f":"F695-SUM(H695:Q695)","v":0},{"$f":"ROUND(F695*VLOOKUP(D695,ALLOCTABLE_Distr_Demand,$H$10,FALSE),0)","v":0},{"$f":"ROUND(F695*VLOOKUP(D695,ALLOCTABLE_Distr_Demand,$I$10,FALSE),0)","v":0},{"$f":"ROUND(F695*VLOOKUP(D695,ALLOCTABLE_Distr_Demand,$J$10,FALSE),0)","v":0},{"$f":"ROUND(F695*VLOOKUP(D695,ALLOCTABLE_Distr_Demand,$K$10,FALSE),0)","v":0},{"$f":"ROUND(F695*VLOOKUP(D695,ALLOCTABLE_Distr_Demand,$L$10,FALSE),0)","v":0},{"$f":"ROUND(F695*VLOOKUP(D695,ALLOCTABLE_Distr_Demand,$M$10,FALSE),0)","v":0},{"$f":"ROUND(F695*VLOOKUP(D695,ALLOCTABLE_Distr_Demand,$N$10,FALSE),0)","v":0},{"$f":"ROUND(F695*VLOOKUP(D695,ALLOCTABLE_Distr_Demand,$O$10,FALSE),0)","v":0},{"$f":"ROUND(F695*VLOOKUP(D695,ALLOCTABLE_Distr_Demand,$P$10,FALSE),0)","v":0},{"$f":"ROUND(F695*VLOOKUP(D695,ALLOCTABLE_Distr_Demand,$Q$10,FALSE),0)","v":0},{"$f":"SUM(G695:Q695)","v":0},{"$f":"F695-R695","v":0}]
[4,"  DEDUCTIONS IN ADD TO Y871",null,null,null,{"$f":"SUM(F694:F695)","v":2451645},{"$f":"SUM(G694:G695)","v":1150703},679768,3163,{"$f":"SUM(J694:J695)","v":14906},172,347153,228640,11474,0,15396,270,2451645,0]
[5]
[6,"STATE INCOME TAX ADJUSTMENTS"]
[7,"STATE PROV DEF INC TAX (410 & 411)"]
[8,"OTHER DEFERRED INCOME TAXES - NET",null,{"$f":"'FR-16(7)(v)-1 Functional'!D700","v":"A357"},null,{"$f":"'FR-16(7)(v)-10 DIST Classified'!G700","v":538674},{"$f":"F700-SUM(H700:Q700)","v":277784},{"$f":"ROUND(F700*VLOOKUP(D700,ALLOCTABLE_Distr_Demand,$H$10,FALSE),0)","v":136376},{"$f":"ROUND(F700*VLOOKUP(D700,ALLOCTABLE_Distr_Demand,$I$10,FALSE),0)","v":587},{"$f":"ROUND(F700*VLOOKUP(D700,ALLOCTABLE_Distr_Demand,$J$10,FALSE),0)","v":3464},{"$f":"ROUND(F700*VLOOKUP(D700,ALLOCTABLE_Distr_Demand,$K$10,FALSE),0)","v":38},{"$f":"ROUND(F700*VLOOKUP(D700,ALLOCTABLE_Distr_Demand,$L$10,FALSE),0)","v":66165},{"$f":"ROUND(F700*VLOOKUP(D700,ALLOCTABLE_Distr_Demand,$M$10,FALSE),0)","v":42717},{"$f":"ROUND(F700*VLOOKUP(D700,ALLOCTABLE_Distr_Demand,$N$10,FALSE),0)","v":2332},{"$f":"ROUND(F700*VLOOKUP(D700,ALLOCTABLE_Distr_Demand,$O$10,FALSE),0)","v":6049},{"$f":"ROUND(F700*VLOOKUP(D700,ALLOCTABLE_Distr_Demand,$P$10,FALSE),0)","v":3065},{"$f":"ROUND(F700*VLOOKUP(D700,ALLOCTABLE_Distr_Demand,$Q$10,FALSE),0)","v":97},{"$f":"SUM(G700:Q700)","v":538674},{"$f":"F700-R700","v":0}]
[9,"  TOT STATE PROV DEF IT (410 & 411)",null,null,null,{"$f":"SUM(F700)","v":538674},{"$f":"SUM(G700)","v":277784},136376,587,{"$f":"SUM(J700)","v":3464},38,66165,42717,2332,6049,3065,97,538674,0]
[10]
[11,"OTHER SIT ADJUSTMENTS"]
[12,"CURRENT YEAR PAYABLE ADJUSTMENT",null,{"$f":"'FR-16(7)(v)-1 Functional'!D704","v":"NP29"},null,{"$f":"'FR-16(7)(v)-10 DIST Classified'!G704","v":0},{"$f":"F704-SUM(H704:Q704)","v":0},{"$f":"ROUND(F704*VLOOKUP(D704,ALLOCTABLE_Distr_Demand,$H$10,FALSE),0)","v":0},{"$f":"ROUND(F704*VLOOKUP(D704,ALLOCTABLE_Distr_Demand,$I$10,FALSE),0)","v":0},{"$f":"ROUND(F704*VLOOKUP(D704,ALLOCTABLE_Distr_Demand,$J$10,FALSE),0)","v":0},{"$f":"ROUND(F704*VLOOKUP(D704,ALLOCTABLE_Distr_Demand,$K$10,FALSE),0)","v":0},{"$f":"ROUND(F704*VLOOKUP(D704,ALLOCTABLE_Distr_Demand,$L$10,FALSE),0)","v":0},{"$f":"ROUND(F704*VLOOKUP(D704,ALLOCTABLE_Distr_Demand,$M$10,FALSE),0)","v":0},{"$f":"ROUND(F704*VLOOKUP(D704,ALLOCTABLE_Distr_Demand,$N$10,FALSE),0)","v":0},{"$f":"ROUND(F704*VLOOKUP(D704,ALLOCTABLE_Distr_Demand,$O$10,FALSE),0)","v":0},{"$f":"ROUND(F704*VLOOKUP(D704,ALLOCTABLE_Distr_Demand,$P$10,FALSE),0)","v":0},{"$f":"ROUND(F704*VLOOKUP(D704,ALLOCTABLE_Distr_Demand,$Q$10,FALSE),0)","v":0},{"$f":"SUM(G704:Q704)","v":0},{"$f":"F704-R704","v":0}]
[13,"  OTHER SIT ADJUSMENTS",null,null,null,{"$f":"SUM(F704)","v":0},{"$f":"SUM(G704)","v":0},{"$f":"SUM(H704)","v":0},{"$f":"SUM(I704)","v":0},{"$f":"SUM(J704)","v":0},0,0,0,0,0,0,{"$f":"SUM(Q704)","v":0},{"$f":"SUM(R704)","v":0},{"$f":"SUM(S704)","v":0}]
[14]
[15,"TOTAL STATE INC TAX ADJUSTMENT",null,null,null,{"$f":"F705+F701","v":538674},{"$f":"G705+G701","v":277784},{"$f":"H705+H701","v":136376},{"$f":"I705+I701","v":587},{"$f":"J705+J701","v":3464},38,66165,42717,2332,6049,3065,{"$f":"Q705+Q701","v":97},{"$f":"R705+R701","v":538674},{"$f":"S705+S701","v":0}]
[16]
[17,"INCOME TAX BASED ON RETURN"]
[18,"SUMMARY OF SIT CALCULATION"]
[19,"RETURN ON RATE BASE",null,null,null,{"$f":"F433","v":17243720},{"$f":"G433","v":8094720},{"$f":"H433","v":4780476},{"$f":"I433","v":22244},{"$f":"J433","v":104842},1207,2441193,1607804,80701,345,108291,{"$f":"Q433","v":1897},{"$f":"R433","v":17243720},{"$f":"S433","v":0}]
[20,"NET FED INCOME TAX ALLOWABLE",null,null,null,{"$f":"F676","v":744642},{"$f":"G676","v":391512},{"$f":"H676","v":184608},{"$f":"I676","v":785},{"$f":"J676","v":4834},52,88582,56929,3179,9893,4126,{"$f":"Q676","v":142},{"$f":"R676","v":744642},{"$f":"S676","v":0}]
[21,"NET FED. DED. AND ADDITIONS",null,null,null,{"$f":"-F641","v":-17672132},{"$f":"-G641","v":-8287404},{"$f":"-H641","v":-4903640},{"$f":"-I641","v":-22811},{"$f":"-J641","v":-107425},-1238,-2504646,-1649750,-82727,593,-111144,{"$f":"-Q641","v":-1940},{"$f":"-R641","v":-17672132},{"$f":"-S641","v":0}]
[22,"DEDUCTIONS IN ADD TO Y871",null,null,null,{"$f":"-F696","v":-2451645},{"$f":"-G696","v":-1150703},{"$f":"-H696","v":-679768},{"$f":"-I696","v":-3163},{"$f":"-J696","v":-14906},-172,-347153,-228640,-11474,0,-15396,{"$f":"-Q696","v":-270},{"$f":"-R696","v":-2451645},{"$f":"-S696","v":0}]
[23,"RESERVED",null,null,null,{"$f":"F24","v":0},{"$f":"G24","v":0},{"$f":"H24","v":0},{"$f":"I24","v":0},{"$f":"J24","v":0},0,0,0,0,0,0,{"$f":"Q24","v":0},{"$f":"R24","v":0},{"$f":"S24","v":0}]
[24,"TOTAL STATE INC TAX ADJ",null,null,null,{"$f":"F707","v":538674},{"$f":"G707","v":277784},{"$f":"H707","v":136376},{"$f":"I707","v":587},{"$f":"J707","v":3464},38,66165,42717,2332,6049,3065,{"$f":"Q707","v":97},{"$f":"R707","v":538674},{"$f":"S707","v":0}]
[25,"  BASE FOR SIT COMPUTATION",null,null,null,{"$f":"SUM(F711:F716)","v":-1596741},{"$f":"SUM(G711:G716)","v":-674091},{"$f":"SUM(H711:H716)","v":-481948},{"$f":"SUM(I711:I716)","v":-2358},{"$f":"SUM(J711:J716)","v":-9191},-113,-255859,-170940,-7989,16880,-11058,{"$f":"SUM(Q711:Q716)","v":-74},{"$f":"SUM(R711:R716)","v":-1596741},{"$f":"SUM(S711:S716)","v":0}]
[26]
[27,"SIT FACTOR K192/(1-K192)",null,null,null,{"$f":"ROUND(SIT/(1-SIT),8)","v":5.2282660000000002E-2},5.2282660000000002E-2,5.2282660000000002E-2,5.2282660000000002E-2,5.2282660000000002E-2,5.2282660000000002E-2,5.2282660000000002E-2,5.2282660000000002E-2,5.2282660000000002E-2,5.2282660000000002E-2,5.2282660000000002E-2,5.2282660000000002E-2,5.2282660000000002E-2,5.2282660000000002E-2]
[28,"PRELIMINARY STATE INCOME TAX",null,null,null,{"$f":"ROUND(F717*F719,0)","v":-83482},{"$f":"F720-SUM(H720:Q720)","v":-35243},{"$f":"ROUND(H717*H719,0)","v":-25198},{"$f":"ROUND(I717*I719,0)","v":-123},{"$f":"ROUND(J717*J719,0)","v":-481},-6,-13377,-8937,-418,883,-578,{"$f":"ROUND(Q717*Q719,0)","v":-4},{"$f":"SUM(G720:Q720)","v":-83482},{"$f":"F720-R720","v":0}]
[29,"TOTAL STATE INCOME TAX ADJ.",null,null,null,{"$f":"F707","v":538674},277784,136376,587,{"$f":"J707","v":3464},38,66165,42717,2332,6049,3065,97,538674,{"$f":"F721-R721","v":0}]
[30,"  NET STATE INC TAX ALLOWABLE",null,null,null,{"$f":"F721+F720","v":455192},242541,111178,464,{"$f":"J721+J720","v":2983},32,52788,33780,1914,6932,2487,93,455192,{"$f":"S721+S720","v":0}]
[31]
[32,"STATE INCOME TAX PAYABLE"]
[33,"PRELIMINARY STATE INCOME TAX",null,null,null,{"$f":"F720","v":-83482},{"$f":"G720","v":-35243},{"$f":"H720","v":-25198},{"$f":"I720","v":-123},{"$f":"J720","v":-481},-6,-13377,-8937,-418,883,-578,{"$f":"Q720","v":-4},{"$f":"R720","v":-83482},{"$f":"F725-R725","v":0}]
[34,"OTHER SIT ADJUSTMENTS",null,null,null,{"$f":"F705","v":0},{"$f":"G705","v":0},{"$f":"H705","v":0},{"$f":"I705","v":0},{"$f":"J705","v":0},0,0,0,0,0,0,{"$f":"Q705","v":0},{"$f":"R705","v":0},{"$f":"F726-R726","v":0}]
[35,"  NET STATE INCOME TAX PAYABLE",null,null,null,{"$f":"F725+F726","v":-83482},-35243,-25198,-123,{"$f":"J725+J726","v":-481},-6,-13377,-8937,-418,883,-578,-4,-83482,{"$f":"S725+S726","v":0}]
[36]
[37,"COMPOSITE TAX RATE",null,null,null,{"$f":"(SIT*(1-FIT))+((1-SIT)*(1-FIT)*RevTax)+FIT","v":0.24925115},0.24925115,0.24925115,0.24925115,0.24925115,0.24925115,0.24925115,0.24925115,0.24925115,0.24925115,0.24925115,0.24925115,0.24925115,0.24925115]
[]
[{"$f":"co_name","v":"DUKE ENERGY KENTUCKY, INC."},null,null,null,null,null,null,null,null,null,null,null,null,null,null,null,null,{"$f":"R1","v":"FR-16(7)(v)-11"}]
[{"$f":"$A$2","v":"DISTRIBUTION DEMAND ALLOCATED - ELECTRIC COST OF SERVICE"},null,null,null,null,null,null,null,null,null,null,null,null,null,null,null,null,{"$f":"R2","v":"WITNESS RESPONSIBLE:"}]
[{"$f":"case_name","v":"CASE NO: 2019-00271"},null,null,null,null,null,null,null,null,null,null,null,null,null,null,null,null,{"$f":"Witness","v":"JAMES E. ZIOLKOWSKI"}]
[{"$f":"data_filing","v":"DATA: 12 MONTHS ACTUAL  & 0 MONTHS ESTIMATED"},null,null,null,null,null,null,null,null,null,null,null,null,null,null,null,null,{"$f":"\"PAGE \"&Pages-4&\" OF \"&Pages","v":"PAGE 14 OF 18"}]
[{"$f":"type","v":"TYPE OF FILING: \"X\" ORIGINAL   UPDATED    REVISED  "}]
[]
[null,null,null,null,null,{"$f":"F$7","v":"TOTAL"},null,{"$f":"H$7","v":"DS"},{"$f":"I$7","v":"GSFL"},{"$f":"J$7","v":"EH"},{"$f":"K$7","v":"SP"},"DT SEC","DT PRI","DP","TT",null,"OTHER"]
["LINE",null,null,null,null,{"$f":"F$8","v":"DISTRIBUTION"},{"$f":"G$8","v":"RS"},{"$f":"H$8","v":"SECONDARY"},{"$f":"I$8","v":"SECONDARY"},{"$f":"J$8","v":"SECONDARY"},{"$f":"K$8","v":"SECONDARY"},"SECONDARY","PRIMARY","PRIMARY","TRANSMISSION","LT","WATER",{"$f":"R8","v":"TOTAL"},"ALL"]
["NO.","COST OF SERVICE COMPUTATION",null,"ALLO",null,{"$f":"F$9","v":"DEMAND"},{"$f":"G$9","v":"RESIDENTIAL"},{"$f":"H$9","v":"DISTRIBUTION"},{"$f":"I$9","v":"DISTRIBUTION"},{"$f":"J$9","v":"DISTRIBUTION"},{"$f":"K$9","v":"DISTRIBUTION"},"DISTRIBUTION","DISTRIBUTION","DISTRIBUTION","TIME OF DAY","LIGHTING","PUMPING",{"$f":"R9","v":"AT ISSUE"},"OTHER"]
[null,null,"Schedule 10",null,null,null,{"$f":"G$10","v":3},{"$f":"H$10","v":4},{"$f":"I$10","v":5},{"$f":"J$10","v":6},{"$f":"K$10","v":7},8,9,10,11,12,13,null," "]
[1,"OTHER OPERATING REVENUES"]
[2,null,{"$f":"'FR-16(7)(v)-1 Functional'!C742","v":"MISC SERVICE REVENUE"},{"$f":"'FR-16(7)(v)-1 Functional'!D742","v":"D249"},null,{"$f":"'FR-16(7)(v)-10 DIST Classified'!G742","v":191695},{"$f":"F742-SUM(H742:Q742)","v":89987},{"$f":"ROUND(F742*VLOOKUP(D742,ALLOCTABLE_Distr_Demand,$H$10,FALSE),0)","v":53144},{"$f":"ROUND(F742*VLOOKUP(D742,ALLOCTABLE_Distr_Demand,$I$10,FALSE),0)","v":247},{"$f":"ROUND(F742*VLOOKUP(D742,ALLOCTABLE_Distr_Demand,$J$10,FALSE),0)","v":1166},{"$f":"ROUND(F742*VLOOKUP(D742,ALLOCTABLE_Distr_Demand,$K$10,FALSE),0)","v":13},{"$f":"ROUND(F742*VLOOKUP(D742,ALLOCTABLE_Distr_Demand,$L$10,FALSE),0)","v":27140},{"$f":"ROUND(F742*VLOOKUP(D742,ALLOCTABLE_Distr_Demand,$M$10,FALSE),0)","v":17876},{"$f":"ROUND(F742*VLOOKUP(D742,ALLOCTABLE_Distr_Demand,$N$10,FALSE),0)","v":897},{"$f":"ROUND(F742*VLOOKUP(D742,ALLOCTABLE_Distr_Demand,$O$10,FALSE),0)","v":0},{"$f":"ROUND(F742*VLOOKUP(D742,ALLOCTABLE_Distr_Demand,$P$10,FALSE),0)","v":1204},{"$f":"ROUND(F742*VLOOKUP(D742,ALLOCTABLE_Distr_Demand,$Q$10,FALSE),0)","v":21},{"$f":"SUM(G742:Q742)","v":191695},{"$f":"F742-R742","v":0}]
[3,null,{"$f":"'FR-16(7)(v)-1 Functional'!C743","v":"INTERDEPARTMENTAL"},{"$f":"'FR-16(7)(v)-1 Functional'!D743","v":"K902"},null,{"$f":"'FR-16(7)(v)-10 DIST Classified'!G743","v":0},0,0,0,0,0,0,0,0,0,0,0,0,0]
[4,null,{"$f":"'FR-16(7)(v)-1 Functional'!C744","v":"POLE & LINE ATTACHMENTS"},{"$f":"'FR-16(7)(v)-1 Functional'!D744","v":"D249"},null,{"$f":"'FR-16(7)(v)-10 DIST Classified'!G744","v":163246},76632,45257,211,993,11,23112,15223,764,0,1025,18,163246,0]
[5,null,{"$f":"'FR-16(7)(v)-1 Functional'!C745","v":"RENTS"},{"$f":"'FR-16(7)(v)-1 Functional'!D745","v":"D249"},null,{"$f":"'FR-16(7)(v)-10 DIST Classified'!G745","v":803186},377041,222667,1036,4883,56,113715,74897,3759,0,5044,88,803186,0]
[6,null,{"$f":"'FR-16(7)(v)-1 Functional'!C746","v":"TRANSMISSION CHARGE PTP"},{"$f":"'FR-16(7)(v)-1 Functional'!D746","v":"T229"},null,{"$f":"'FR-16(7)(v)-10 DIST Classified'!G746","v":0},{"$f":"F746-SUM(H746:Q746)","v":0},0,0,0,0,0,0,0,0,0,{"$f":"ROUND(F746*VLOOKUP(D746,ALLOCTABLE_Distr_Demand,$Q$10,FALSE),0)","v":0},0,0]
[7,null,{"$f":"'FR-16(7)(v)-1 Functional'!C747","v":"PJM REACTIVE REVENUE"},{"$f":"'FR-16(7)(v)-1 Functional'!D747","v":"K401"},null,{"$f":"'FR-16(7)(v)-10 DIST Classified'!G747","v":0},{"$f":"F747-SUM(H747:Q747)","v":0},0,0,0,0,0,0,0,0,0,{"$f":"ROUND(F747*VLOOKUP(D747,ALLOCTABLE_Distr_Demand,$Q$10,FALSE),0)","v":0},0,0]
[8,null,{"$f":"'FR-16(7)(v)-1 Functional'!C748","v":"OTHER TRANSMISSION REVENUES"},{"$f":"'FR-16(7)(v)-1 Functional'!D748","v":"T229"},null,{"$f":"'FR-16(7)(v)-10 DIST Classified'!G748","v":0},{"$f":"F748-SUM(H748:Q748)","v":0},0,0,0,0,0,0,0,0,0,{"$f":"ROUND(F748*VLOOKUP(D748,ALLOCTABLE_Distr_Demand,$Q$10,FALSE),0)","v":0},0,0]
[9,null,{"$f":"'FR-16(7)(v)-1 Functional'!C749","v":"FIXED BILL PREMIUM"},{"$f":"'FR-16(7)(v)-1 Functional'!D749","v":"K902"},null,{"$f":"'FR-16(7)(v)-10 DIST Classified'!G749","v":0},0,0,0,0,0,0,0,0,0,0,0,0,0]
[10,null,{"$f":"'FR-16(7)(v)-1 Functional'!C750","v":"  TOTAL OTHER OPERATING REVS"},null,null,{"$f":"SUM(F742:F749)","v":1158127},{"$f":"SUM(G742:G749)","v":543660},{"$f":"SUM(H742:H749)","v":321068},{"$f":"SUM(I742:I749)","v":1494},{"$f":"SUM(J742:J749)","v":7042},80,163967,107996,5420,0,7273,{"$f":"SUM($Q$742:$Q$749)","v":127},{"$f":"SUM(R742:R749)","v":1158127},{"$f":"SUM(S742:S749)","v":0}]
[11]
[12,"COST OF SERVICE COMPUTATION"]
[13,null,{"$f":"'FR-16(7)(v)-1 Functional'!C753","v":"TOTAL OP EXP EXC INC & REV TAX"},null,null,{"$f":"F618","v":31136818},{"$f":"G618","v":15386666},{"$f":"H618","v":8231176},{"$f":"I618","v":36873},{"$f":"J618","v":195223},2181,4095280,2670350,139947,188881,185680,{"$f":"$Q$618","v":4561},{"$f":"R618","v":31136818},{"$f":"S618","v":0}]
[14,null,"RETURN ON RATE BASE",null,null,{"$f":"F433","v":17243720},{"$f":"G433","v":8094720},{"$f":"H433","v":4780476},{"$f":"I433","v":22244},{"$f":"J433","v":104842},1207,2441193,1607804,80701,345,108291,{"$f":"Q433","v":1897},{"$f":"R433","v":17243720},{"$f":"S433","v":0}]
[15,null,{"$f":"'FR-16(7)(v)-1 Functional'!C755","v":"NET FED INCOME TAX ALLOWABLE"},null,null,{"$f":"F676","v":744642},{"$f":"G676","v":391512},{"$f":"H676","v":184608},{"$f":"I676","v":785},{"$f":"J676","v":4834},52,88582,56929,3179,9893,4126,{"$f":"$Q$676","v":142},{"$f":"R676","v":744642},{"$f":"S676","v":0}]
[16,null,{"$f":"'FR-16(7)(v)-1 Functional'!C756","v":"NET STATE INCOME TAX ALLOWABLE"},null,null,{"$f":"F722","v":455192},{"$f":"G722","v":242541},111178,464,{"$f":"J722","v":2983},32,52788,33780,1914,6932,2487,93,455192,0]
[17,null,{"$f":"'FR-16(7)(v)-1 Functional'!C757","v":"TOTAL OTHER OPERATING REVENUES"},null,null,{"$f":"-F750","v":-1158127},{"$f":"-G750","v":-543660},{"$f":"-H750","v":-321068},{"$f":"-I750","v":-1494},{"$f":"-J750","v":-7042},-80,-163967,-107996,-5420,0,-7273,{"$f":"-$Q$750","v":-127},{"$f":"-R750","v":-1158127},{"$f":"-S750","v":0}]
[18,null,{"$f":"'FR-16(7)(v)-1 Functional'!C758","v":"  SUBTOTAL B"},null,null,{"$f":"SUM(F752:F757)","v":48422245},{"$f":"SUM(G752:G757)","v":23571779},{"$f":"SUM(H752:H757)","v":12986370},{"$f":"SUM(I752:I757)","v":58872},{"$f":"SUM(J752:J757)","v":300840},3392,6513876,4260867,220321,206051,293311,{"$f":"SUM($Q$752:$Q$757)","v":6566},{"$f":"SUM(R752:R757)","v":48422245},{"$f":"R758-F758","v":0}]
[19]
[20,null,{"$f":"'FR-16(7)(v)-1 Functional'!C760","v":"TOTAL OTHER OPERATING REVENUES"},null,null,{"$f":"-F757","v":1158127},{"$f":"-G757","v":543660},{"$f":"-H757","v":321068},{"$f":"-I757","v":1494},{"$f":"-J757","v":7042},80,163967,107996,5420,0,7273,{"$f":"-$Q$757","v":127},{"$f":"-R757","v":1158127},{"$f":"-S757","v":0}]
[21,null,{"$f":"'FR-16(7)(v)-1 Functional'!C761","v":"LESS: REVS EXCL FROM REV TAX CALC"},null,null,{"$f":"F991","v":0},{"$f":"G991","v":0},{"$f":"H991","v":0},{"$f":"I991","v":0},{"$f":"J991","v":0},0,0,0,0,0,0,{"$f":"Q991","v":0},{"$f":"R991","v":0},{"$f":"S991","v":0}]
[22,null,{"$f":"'FR-16(7)(v)-1 Functional'!C762","v":"OTHER OPERATING REVS TO BE TAXED"},null,null,{"$f":"F760-F761","v":1158127},{"$f":"G760-G761","v":543660},{"$f":"H760-H761","v":321068},{"$f":"I760-I761","v":1494},{"$f":"J760-J761","v":7042},80,163967,107996,5420,0,7273,{"$f":"$Q$760-Q761","v":127},{"$f":"R760-R761","v":1158127},{"$f":"S760-S761","v":0}]
[23]
[24,null,{"$f":"'FR-16(7)(v)-1 Functional'!C764","v":"REVENUE TAX FACTOR"},null,null,{"$f":"ROUND(F817/(1-F817),8)","v":0},0,0,0,{"$f":"ROUND(J817/(1-J817),8)","v":0},0,0,0,0,0,0,0,0,0]
[25,null,{"$f":"'FR-16(7)(v)-1 Functional'!C765","v":"REVENUE TAX ON OTHER OPER. REVS"},null,null,{"$f":"ROUND(F764*F762,0)","v":0},{"$f":"F765-SUM(H765:Q765)","v":0},{"$f":"ROUND(H764*H762,0)","v":0},{"$f":"ROUND(I764*I762,0)","v":0},{"$f":"ROUND(J764*J762,0)","v":0},0,0,0,0,0,0,{"$f":"ROUND(Q764*Q762,0)","v":0},{"$f":"SUM(G765:Q765)","v":0},{"$f":"ROUND(S764*S762,0)","v":0}]
[26,null,{"$f":"'FR-16(7)(v)-1 Functional'!C766","v":"REVENUE TAX ON COST OF SERVICE"},null,null,{"$f":"ROUND(F764*F758,0)","v":0},{"$f":"F766-SUM(H766:Q766)","v":0},{"$f":"ROUND(H764*H758,0)","v":0},{"$f":"ROUND(I764*I758,0)","v":0},{"$f":"ROUND(J764*J758,0)","v":0},0,0,0,0,0,0,{"$f":"ROUND(Q764*$Q$758,0)","v":0},{"$f":"SUM(G766:Q766)","v":0},{"$f":"ROUND(S764*S758,0)","v":0}]
[27,null,{"$f":"'FR-16(7)(v)-1 Functional'!C767","v":"TOTAL REVENUE TAX"},null,null,{"$f":"F766+F765","v":0},{"$f":"G766+G765","v":0},{"$f":"H766+H765","v":0},{"$f":"I766+I765","v":0},{"$f":"J766+J765","v":0},0,0,0,0,0,0,{"$f":"Q766+Q765","v":0},{"$f":"R766+R765","v":0},{"$f":"S766+S765","v":0}]
[28]
[29,null,"RESERVED",null,null,{"$f":"F24","v":0},{"$f":"G24","v":0},{"$f":"H24","v":0},{"$f":"I24","v":0},{"$f":"J24","v":0},0,0,0,0,0,0,{"$f":"Q24","v":0},{"$f":"R24","v":0}]
[30,null,{"$f":"'FR-16(7)(v)-1 Functional'!C770","v":"  TOTAL ELECTRIC COST OF SERVICE"},null,null,{"$f":"F769+F767+F758","v":48422245},23571779,12986370,58872,300840,3392,6513876,4260867,220321,206051,293311,6566,48422245,{"$f":"S767+S758","v":0}]
[31]
[32,"PROPOSED REVENUES",null,null,null,{"$f":"F870","v":52183002},26909731,13211171,56879,{"$f":"J870","v":335537},3653,6409638,4138112,225952,586015,296921,9393,52183002,0]
[33,"TOTAL ELECTRIC COST OF SERVICE",null,null,null,{"$f":"-F770","v":-48422245},-23571779,-12986370,-58872,{"$f":"-J770","v":-300840},-3392,-6513876,-4260867,-220321,-206051,-293311,-6566,-48422245,0]
[34,"EXCESS REVENUES",null,null,null,{"$f":"F773+F772","v":3760757},{"$f":"G773+G772","v":3337952},{"$f":"H773+H772","v":224801},{"$f":"I773+I772","v":-1993},{"$f":"J773+J772","v":34697},261,-104238,-122755,5631,379964,3610,{"$f":"Q773+Q772","v":2827},{"$f":"SUM(G774:Q774)","v":3760757},{"$f":"F774-R774","v":0}]
[35,"COMPOSITE TAX RATE",null,null,null,{"$f":"F729","v":0.24925115},{"$f":"G729","v":0.24925115},0.24925115,0.24925115,{"$f":"J729","v":0.24925115},0.24925115,0.24925115,0.24925115,0.24925115,0.24925115,0.24925115,0.24925115,0.24925115,0.24925115]
[36,"EXCESS TAX",null,null,null,{"$f":"'FR-16(7)(v)-10 DIST Classified'!G776","v":937373},{"$f":"F776-SUM(H776:Q776)","v":831988},{"$f":"ROUND(H775*H774,0)","v":56032},{"$f":"ROUND(I775*I774,0)","v":-497},{"$f":"ROUND(J775*J774,0)","v":8648},65,-25981,-30597,1404,94706,900,{"$f":"ROUND(Q775*Q774,0)","v":705},{"$f":"SUM(G776:Q776)","v":937373},{"$f":"F776-R776","v":0}]
[37,"EXCESS RETURN",null,null,null,{"$f":"F774-F776","v":2823384},{"$f":"G774-G776","v":2505964},{"$f":"H774-H776","v":168769},{"$f":"I774-I776","v":-1496},{"$f":"J774-J776","v":26049},196,-78257,-92158,4227,285258,2710,{"$f":"Q774-Q776","v":2122},{"$f":"SUM(G777:Q777)","v":2823384},{"$f":"F777-R777","v":0}]
[]
[{"$f":"co_name","v":"DUKE ENERGY KENTUCKY, INC."},null,null,null,null,null,null,null,null,null,null,null,null,null,null,null,null,{"$f":"R1","v":"FR-16(7)(v)-11"}]
[{"$f":"$A$2","v":"DISTRIBUTION DEMAND ALLOCATED - ELECTRIC COST OF SERVICE"},null,null,null,null,null,null,null,null,null,null,null,null,null,null,null,null,{"$f":"R2","v":"WITNESS RESPONSIBLE:"}]
[{"$f":"case_name","v":"CASE NO: 2019-00271"},null,null,null,null,null,null,null,null,null,null,null,null,null,null,null,null,{"$f":"Witness","v":"JAMES E. ZIOLKOWSKI"}]
[{"$f":"data_filing","v":"DATA: 12 MONTHS ACTUAL  & 0 MONTHS ESTIMATED"},null,null,null,null,null,null,null,null,null,null,null,null,null,null,null,null,{"$f":"\"PAGE \"&Pages-3&\" OF \"&Pages","v":"PAGE 15 OF 18"}]
[{"$f":"type","v":"TYPE OF FILING: \"X\" ORIGINAL   UPDATED    REVISED  "}]
[]
[null,null,null,null,null,{"$f":"F$7","v":"TOTAL"},null,{"$f":"H$7","v":"DS"},{"$f":"I$7","v":"GSFL"},{"$f":"J$7","v":"EH"},{"$f":"K$7","v":"SP"},"DT SEC","DT PRI","DP","TT",null,"OTHER"]
["LINE",null,null,null,null,{"$f":"F$8","v":"DISTRIBUTION"},{"$f":"G$8","v":"RS"},{"$f":"H$8","v":"SECONDARY"},{"$f":"I$8","v":"SECONDARY"},{"$f":"J$8","v":"SECONDARY"},{"$f":"K$8","v":"SECONDARY"},"SECONDARY","PRIMARY","PRIMARY","TRANSMISSION","LT","WATER",{"$f":"R8","v":"TOTAL"},"ALL"]
["NO.","ROR, TAX RATES & SPEC FACTORS",null,"ALLO",null,{"$f":"F$9","v":"DEMAND"},{"$f":"G$9","v":"RESIDENTIAL"},{"$f":"H$9","v":"DISTRIBUTION"},{"$f":"I$9","v":"DISTRIBUTION"},{"$f":"J$9","v":"DISTRIBUTION"},{"$f":"K$9","v":"DISTRIBUTION"},"DISTRIBUTION","DISTRIBUTION","DISTRIBUTION","TIME OF DAY","LIGHTING","PUMPING",{"$f":"R9","v":"AT ISSUE"},"OTHER"]
[null,null,"Schedule 11",null,null,null,{"$f":"G$10","v":3},{"$f":"H$10","v":4},{"$f":"I$10","v":5},{"$f":"J$10","v":6},{"$f":"K$10","v":7},8,9,10,11,12,13,null," "]
[1,"RATE OF RETURN"]
[2," CAPITALIZATION AMOUNTS",null,null,null,null,"RATIO"]
[3,null,{"$f":"'FR-16(7)(v)-1 Functional'!C791","v":"LONG TERM DEBT"},null,null,{"$f":"'FR-16(7)(v)-2 PROD Classified'!$F$791","v":665948506},{"$f":"IF(TotalCap=0,0,ROUND(F791/TotalCap,4))","v":0.45929999999999999}]
[4,null,{"$f":"'FR-16(7)(v)-1 Functional'!C792","v":"PREFERRED STOCK"},null,null,{"$f":"'FR-16(7)(v)-2 PROD Classified'!$F$792","v":0},{"$f":"IF(TotalCap=0,0,ROUND(F792/TotalCap,4))","v":0}]
[5,null,{"$f":"'FR-16(7)(v)-1 Functional'!C793","v":"COMMON STOCK"},null,null,{"$f":"[0]!Equity","v":699348680},{"$f":"1-G791-G792-G794-G795","v":0.48239999999999994}]
[6,null,{"$f":"'FR-16(7)(v)-1 Functional'!C794","v":"SHORT TERM DEBT"},null,null,{"$f":"'FR-16(7)(v)-2 PROD Classified'!$F$794","v":84600060},{"$f":"IF(TotalCap=0,0,ROUND(F794/TotalCap,4))","v":5.8299999999999998E-2}]
[7,null,{"$f":"'FR-16(7)(v)-1 Functional'!C795","v":"UNAMORTIZED DISCOUNT"},null,null,{"$f":"'FR-16(7)(v)-2 PROD Classified'!$F$795","v":0},{"$f":"IF(TotalCap=0,0,ROUND(F795/TotalCap,4))","v":0}]
[8,null,{"$f":"'FR-16(7)(v)-1 Functional'!C796","v":"  TOTAL"},null,null,{"$f":"SUM(F790:F795)","v":1449897246},{"$f":"SUM(G791:G795)","v":1}]
[9]
[10," COST OF CAPITAL"]
[11,null,{"$f":"'FR-16(7)(v)-1 Functional'!C799","v":"LONG TERM DEBT"},null,null,{"$f":"'FR-16(7)(v)-2 PROD Classified'!$F$799","v":4.0730000000000002E-2}]
[12,null,{"$f":"'FR-16(7)(v)-1 Functional'!C800","v":"PREFERRED STOCK"},null,null,{"$f":"'FR-16(7)(v)-2 PROD Classified'!$F$800","v":0}]
[13,null,{"$f":"'FR-16(7)(v)-1 Functional'!C801","v":"COMMON STOCK"},null,null,{"$f":"'FR-16(7)(v)-2 PROD Classified'!$F$801","v":9.8000000000000004E-2}]
[14,null,{"$f":"'FR-16(7)(v)-1 Functional'!C802","v":"SHORT TERM DEBT"},null,null,{"$f":"'FR-16(7)(v)-2 PROD Classified'!$F$802","v":1.9369999999999998E-2}]
[15,null,{"$f":"'FR-16(7)(v)-1 Functional'!C803","v":"UNAMORTIZED DISCOUNT"},null,null,{"$f":"'FR-16(7)(v)-2 PROD Classified'!$F$803","v":0}]
[16]
[17," WEIGHTED COST OF CAPITAL"]
[18,null,{"$f":"'FR-16(7)(v)-1 Functional'!C806","v":"LONG TERM DEBT"},null,null,{"$f":"ROUND(G791*F799,4)","v":1.8700000000000001E-2}]
[19,null,{"$f":"'FR-16(7)(v)-1 Functional'!C807","v":"PREFERRED STOCK"},null,null,{"$f":"ROUND(G792*F800,4)","v":0}]
[20,null,{"$f":"'FR-16(7)(v)-1 Functional'!C808","v":"COMMON STOCK"},null,null,{"$f":"ROUND(G793*F801,4)","v":4.7300000000000002E-2}]
[21,null,{"$f":"'FR-16(7)(v)-1 Functional'!C809","v":"SHORT TERM DEBT"},null,null,{"$f":"ROUND(G794*F802,4)","v":1.1000000000000001E-3}]
[22,null,{"$f":"'FR-16(7)(v)-1 Functional'!C810","v":"UNAMORTIZED DISCOUNT"},null,null,{"$f":"ROUND(G795*F803,4)","v":0}]
[23,null,{"$f":"'FR-16(7)(v)-1 Functional'!C811","v":"  TOT RATE OF RETURN ALLOWABLE"},null,null,{"$f":"SUM(F806:F810)","v":6.7100000000000007E-2}]
[24]
[25,"TAX RATES AND SPECIAL FACTORS"]
[26,null,{"$f":"'FR-16(7)(v)-1 Functional'!C814","v":"SHORT TERM DEBT COST"},null,null,0,{"$f":"F814","v":0},{"$f":"F814","v":0},{"$f":"F814","v":0},{"$f":"G814","v":0},0,0,0,0,0,0,{"$f":"$F$814","v":0},{"$f":"F814","v":0},{"$f":"F814","v":0}]
[27,null,{"$f":"'FR-16(7)(v)-1 Functional'!C815","v":"FEDERAL INCOME TAX RATE"},null,null,{"$f":"FIT","v":0.21},{"$f":"FIT","v":0.21},0.21,0.21,0.21,0.21,0.21,0.21,0.21,0.21,0.21,0.21,0.21,0.21]
[28,null,{"$f":"'FR-16(7)(v)-1 Functional'!C816","v":"STATE INCOME TAX RATE"},null,null,{"$f":"SIT","v":4.9685000000000007E-2},{"$f":"SIT","v":4.9685000000000007E-2},4.9685000000000007E-2,4.9685000000000007E-2,4.9685000000000007E-2,4.9685000000000007E-2,4.9685000000000007E-2,4.9685000000000007E-2,4.9685000000000007E-2,4.9685000000000007E-2,4.9685000000000007E-2,4.9685000000000007E-2,4.9685000000000007E-2,4.9685000000000007E-2]
[29,null,{"$f":"'FR-16(7)(v)-1 Functional'!C817","v":"REVENUE TAX RATE"},null,null,0,{"$f":"RevTax","v":0},0,0,0,0,0,0,0,0,0,0,0,0]
[]
[{"$f":"co_name","v":"DUKE ENERGY KENTUCKY, INC."},null,null,null,null,null,null,null,null,null,null,null,null,null,null,null,null,{"$f":"R1","v":"FR-16(7)(v)-11"}]
[{"$f":"$A$2","v":"DISTRIBUTION DEMAND ALLOCATED - ELECTRIC COST OF SERVICE"},null,null,null,null,null,null,null,null,null,null,null,null,null,null,null,null,{"$f":"R2","v":"WITNESS RESPONSIBLE:"}]
[{"$f":"case_name","v":"CASE NO: 2019-00271"},null,null,null,null,null,null,null,null,null,null,null,null,null,null,null,null,{"$f":"Witness","v":"JAMES E. ZIOLKOWSKI"}]
[{"$f":"data_filing","v":"DATA: 12 MONTHS ACTUAL  & 0 MONTHS ESTIMATED"},null,null,null,null,null,null,null,null,null,null,null,null,null,null,null,null,{"$f":"\"PAGE \"&Pages-2&\" OF \"&Pages","v":"PAGE 16 OF 18"}]
[{"$f":"type","v":"TYPE OF FILING: \"X\" ORIGINAL   UPDATED    REVISED  "}]
[]
[null,null,null,null,null,{"$f":"F$7","v":"TOTAL"},null,{"$f":"H$7","v":"DS"},{"$f":"I$7","v":"GSFL"},{"$f":"J$7","v":"EH"},{"$f":"K$7","v":"SP"},"DT SEC","DT PRI","DP","TT",null,"OTHER"]
["LINE",null,null,null,null,{"$f":"F$8","v":"DISTRIBUTION"},{"$f":"G$8","v":"RS"},{"$f":"H$8","v":"SECONDARY"},{"$f":"I$8","v":"SECONDARY"},{"$f":"J$8","v":"SECONDARY"},{"$f":"K$8","v":"SECONDARY"},"SECONDARY","PRIMARY","PRIMARY","TRANSMISSION","LT","WATER",{"$f":"R8","v":"TOTAL"},"ALL",null,null,null,"RATE GRP"]
["NO.","ALLOCATORS",null,"SOURCE","ALLO",{"$f":"F$9","v":"DEMAND"},{"$f":"G$9","v":"RESIDENTIAL"},{"$f":"H$9","v":"DISTRIBUTION"},{"$f":"I$9","v":"DISTRIBUTION"},{"$f":"J$9","v":"DISTRIBUTION"},{"$f":"K$9","v":"DISTRIBUTION"},"DISTRIBUTION","DISTRIBUTION","DISTRIBUTION","TIME OF DAY","LIGHTING","PUMPING",{"$f":"R9","v":"AT ISSUE"},"OTHER",null,null,null,"CHECK"]
[null,null,"Schedule 12",null,1,null,{"$f":"G$10","v":3},{"$f":"H$10","v":4},{"$f":"I$10","v":5},{"$f":"J$10","v":6},{"$f":"K$10","v":7},8,9,10,11,12,13,null," "]
[1,"DEMAND ENERGY & SPEC. ASSIGN"]
[2,null,"TOTAL KW (12 COIN PEAK) - PRODUCTION","External",null,{"$f":"'WP FR-16(7)(v)-KW & KWH @Gen'!$D$38","v":717751},{"$f":"'WP FR-16(7)(v)-KW & KWH @Gen'!$D$17","v":323558},{"$f":"'WP FR-16(7)(v)-KW & KWH @Gen'!$D$18+'WP FR-16(7)(v)-KW & KWH @Gen'!$D$31","v":194251},{"$f":"'WP FR-16(7)(v)-KW & KWH @Gen'!$D$19","v":933},{"$f":"'WP FR-16(7)(v)-KW & KWH @Gen'!$D$20","v":3682},{"$f":"'WP FR-16(7)(v)-KW & KWH @Gen'!$D$21","v":51},{"$f":"'WP FR-16(7)(v)-KW & KWH @Gen'!$D$22+'WP FR-16(7)(v)-KW & KWH @Gen'!$D$32","v":96851},{"$f":"'WP FR-16(7)(v)-KW & KWH @Gen'!$D$23","v":64029},{"$f":"'WP FR-16(7)(v)-KW & KWH @Gen'!$D$24","v":3090},{"$f":"'WP FR-16(7)(v)-KW & KWH @Gen'!$D$25+'WP FR-16(7)(v)-KW & KWH @Gen'!$D$35","v":30336},{"$f":"'WP FR-16(7)(v)-KW & KWH @Gen'!$D$26","v":891},{"$f":"'WP FR-16(7)(v)-KW & KWH @Gen'!$D$27","v":79},{"$f":"SUM(G830:Q830)","v":717751},{"$f":"F830-R830","v":0}]
[3,null,{"$f":"'FR-16(7)(v)-1 Functional'!C831","v":"RATIO TO TOTAL ELECTRIC"},null,{"$f":"'FR-16(7)(v)-1 Functional'!E831","v":"K201"},{"$f":"IF($F830=0,0,ROUND(F830/$F830,5))","v":1},{"$f":"IF(S830=0,F831-SUM(H831:Q831),ROUND(G830/F830,5))","v":0.45077999999999985},{"$f":"IF($F$830=0,0,ROUND(H830/$F$830,5))","v":0.27063999999999999},{"$f":"IF($F$830=0,0,ROUND(I830/$F$830,5))","v":1.2999999999999999E-3},5.13E-3,6.9999999999999994E-5,0.13494,8.9209999999999998E-2,4.3099999999999996E-3,4.2270000000000002E-2,1.24E-3,1.1E-4,{"$f":"SUM(G831:Q831)","v":0.99999999999999989},{"$f":"F831-R831","v":0},null,null,null,{"$f":"R831","v":0.99999999999999989}]
[4,null,"TOTAL KW (12 COIN PEAK) - TRANSMISSION","External",null,{"$f":"'WP FR-16(7)(v)-KW & KWH @Gen'!D38","v":717751},{"$f":"'WP FR-16(7)(v)-KW & KWH @Gen'!D17","v":323558},{"$f":"'WP FR-16(7)(v)-KW & KWH @Gen'!D18+'WP FR-16(7)(v)-KW & KWH @Gen'!D31","v":194251},{"$f":"'WP FR-16(7)(v)-KW & KWH @Gen'!D19","v":933},{"$f":"'WP FR-16(7)(v)-KW & KWH @Gen'!D20","v":3682},{"$f":"'WP FR-16(7)(v)-KW & KWH @Gen'!D21","v":51},{"$f":"'WP FR-16(7)(v)-KW & KWH @Gen'!D22+'WP FR-16(7)(v)-KW & KWH @Gen'!D32","v":96851},{"$f":"'WP FR-16(7)(v)-KW & KWH @Gen'!D23","v":64029},{"$f":"'WP FR-16(7)(v)-KW & KWH @Gen'!D24","v":3090},{"$f":"'WP FR-16(7)(v)-KW & KWH @Gen'!D25+'WP FR-16(7)(v)-KW & KWH @Gen'!D35","v":30336},{"$f":"'WP FR-16(7)(v)-KW & KWH @Gen'!D26","v":891},{"$f":"'WP FR-16(7)(v)-KW & KWH @Gen'!D27","v":79},{"$f":"SUM(G832:Q832)","v":717751},{"$f":"F832-R832","v":0}]
[5,null,{"$f":"'FR-16(7)(v)-1 Functional'!C833","v":"RATIO TO TOTAL ELECTRIC"},null,"K202",{"$f":"IF($F832=0,0,ROUND(F832/$F832,5))","v":1},{"$f":"IF(S832=0,F833-SUM(H833:Q833),ROUND(G832/F832,5))","v":0.45077999999999985},{"$f":"IF($F$830=0,0,ROUND(H832/$F$830,5))","v":0.27063999999999999},1.2999999999999999E-3,5.13E-3,6.9999999999999994E-5,0.13494,8.9209999999999998E-2,4.3099999999999996E-3,4.2270000000000002E-2,1.24E-3,1.1E-4,{"$f":"SUM(G833:Q833)","v":0.99999999999999989},{"$f":"F833-R833","v":0}]
[6,null,{"$f":"'FR-16(7)(v)-1 Functional'!C834","v":"DISTRIBUTION KW (NON-COIN PEAK) "},"External",null,{"$f":"'WP FR-16(7)(v)-KW & KWH @Dist'!D39","v":1514633},{"$f":"'WP FR-16(7)(v)-KW & KWH @Dist'!D18","v":899439},{"$f":"'WP FR-16(7)(v)-KW & KWH @Dist'!D19+'WP FR-16(7)(v)-KW & KWH @Dist'!D32","v":321857},{"$f":"'WP FR-16(7)(v)-KW & KWH @Dist'!D20","v":1158},{"$f":"'WP FR-16(7)(v)-KW & KWH @Dist'!D21","v":10653},{"$f":"'WP FR-16(7)(v)-KW & KWH @Dist'!D22","v":109},{"$f":"'WP FR-16(7)(v)-KW & KWH @Dist'!D23+'WP FR-16(7)(v)-KW & KWH @Dist'!D33","v":138051},{"$f":"'WP FR-16(7)(v)-KW & KWH @Dist'!D24+'WP FR-16(7)(v)-KW & KWH @Dist'!D34","v":84382},{"$f":"'WP FR-16(7)(v)-KW & KWH @Dist'!D25+'WP FR-16(7)(v)-KW & KWH @Dist'!D35","v":5687},{"$f":"'WP FR-16(7)(v)-KW & KWH @Dist'!D26+'WP FR-16(7)(v)-KW & KWH @Dist'!D36","v":45755},{"$f":"'WP FR-16(7)(v)-KW & KWH @Dist'!D27","v":7098},{"$f":"'WP FR-16(7)(v)-KW & KWH @Dist'!D28","v":444},{"$f":"SUM(G834:Q834)","v":1514633},{"$f":"F834-R834","v":0}]
[7,null,{"$f":"'FR-16(7)(v)-1 Functional'!C835","v":"RATIO TO TOTAL ELECTRIC"},null,{"$f":"'FR-16(7)(v)-1 Functional'!E835","v":"K203"},{"$f":"IF($F834=0,0,ROUND(F834/$F834,9))","v":1},{"$f":"IF(S834=0,F835-SUM(H835:Q835),ROUND(G834/F834,5))","v":0.59384999999999999},{"$f":"IF(F834=0,0,ROUND(H834/F834,5))","v":0.21249999999999999},{"$f":"IF($F$834=0,0,ROUND(I834/$F$834,5))","v":7.6000000000000004E-4},{"$f":"IF($F$834=0,0,ROUND(J834/$F$834,5))","v":7.0299999999999998E-3},6.9999999999999994E-5,9.1139999999999999E-2,5.5710000000000003E-2,3.7499999999999999E-3,3.0210000000000001E-2,4.6899999999999997E-3,{"$f":"IF(G834=0,0,ROUND(Q834/F834,5))","v":2.9E-4},1,0,null,null,null,{"$f":"R835","v":1}]
[8,null,"DISTRIBUTION LINE - PRIMARY","External",null,{"$f":"'WP FR-16(7)(v) Distlines'!G38","v":731338},{"$f":"'WP FR-16(7)(v) Distlines'!$G$17","v":343307},{"$f":"'WP FR-16(7)(v) Distlines'!$G$18+'WP FR-16(7)(v) Distlines'!$G$31","v":202748},{"$f":"'WP FR-16(7)(v) Distlines'!$G$19","v":945},{"$f":"'WP FR-16(7)(v) Distlines'!$G$20","v":4447},{"$f":"'WP FR-16(7)(v) Distlines'!$G$21","v":53},{"$f":"'WP FR-16(7)(v) Distlines'!$G$22+'WP FR-16(7)(v) Distlines'!$G$32","v":103544},{"$f":"'WP FR-16(7)(v) Distlines'!$G$23+'WP FR-16(7)(v) Distlines'!$G$33","v":68199},{"$f":"'WP FR-16(7)(v) Distlines'!$G$24+'WP FR-16(7)(v) Distlines'!$G$34","v":3420},{"$f":"'WP FR-16(7)(v) Distlines'!$G$25+'WP FR-16(7)(v) Distlines'!$G$35","v":0},{"$f":"'WP FR-16(7)(v) Distlines'!$G$26","v":4595},{"$f":"'WP FR-16(7)(v) Distlines'!$G$27","v":80},731338,0]
[9,null,{"$f":"'FR-16(7)(v)-1 Functional'!C837","v":"RATIO TO TOTAL ELECTRIC"},null,{"$f":"'FR-16(7)(v)-1 Functional'!E837","v":"K205"},{"$f":"IF($F836=0,0,ROUND(F836/$F836,9))","v":1},{"$f":"IF(S836=0,F837-SUM(H837:Q837),ROUND(G836/F836,5))","v":0.4694299999999999},{"$f":"IF($F$836=0,0,ROUND(H836/$F$836,5))","v":0.27722999999999998},{"$f":"IF($F$836=0,0,ROUND(I836/$F$836,5))","v":1.2899999999999999E-3},6.0800000000000003E-3,6.9999999999999994E-5,0.14158000000000001,9.325E-2,4.6800000000000001E-3,0,6.28E-3,1.1E-4,0.99999999999999989,0,null,null,null,{"$f":"R837","v":0.99999999999999989}]
[10,null,"DISTRIBUTION LINE - SECONDARY","External",null,{"$f":"'WP FR-16(7)(v) Distlines'!K38","v":731338},{"$f":"'WP FR-16(7)(v) Distlines'!K17","v":343307},{"$f":"'WP FR-16(7)(v) Distlines'!K18+'WP FR-16(7)(v) Distlines'!K31","v":202748},{"$f":"'WP FR-16(7)(v) Distlines'!K19","v":945},{"$f":"'WP FR-16(7)(v) Distlines'!K20","v":4447},{"$f":"'WP FR-16(7)(v) Distlines'!K21","v":53},{"$f":"'WP FR-16(7)(v) Distlines'!K22+'WP FR-16(7)(v) Distlines'!K32","v":103544},{"$f":"'WP FR-16(7)(v) Distlines'!K23","v":68199},{"$f":"'WP FR-16(7)(v) Distlines'!K24+'WP FR-16(7)(v) Distlines'!K34","v":3420},{"$f":"'WP FR-16(7)(v) Distlines'!K25+'WP FR-16(7)(v) Distlines'!K35","v":0},{"$f":"'WP FR-16(7)(v) Distlines'!K26","v":4595},{"$f":"'WP FR-16(7)(v) Distlines'!K27","v":80},{"$f":"SUM(G838:Q838)","v":731338},{"$f":"F838-R838","v":0}]
[11,null,{"$f":"'FR-16(7)(v)-1 Functional'!C839","v":"RATIO TO TOTAL ELECTRIC"},null,"K206",{"$f":"IF($F838=0,0,ROUND(F838/$F838,9))","v":1},{"$f":"IF(S838=0,F839-SUM(H839:Q839),ROUND(G838/F838,5))","v":0.4694299999999999},{"$f":"IF($F$836=0,0,ROUND(H838/$F$836,5))","v":0.27722999999999998},{"$f":"IF($F$836=0,0,ROUND(I838/$F$836,5))","v":1.2899999999999999E-3},{"$f":"IF($F$836=0,0,ROUND(J838/$F$836,5))","v":6.0800000000000003E-3},{"$f":"IF($F$836=0,0,ROUND(K838/$F$836,5))","v":6.9999999999999994E-5},{"$f":"IF($F$836=0,0,ROUND(L838/$F$836,5))","v":0.14158000000000001},{"$f":"IF($F$838=0,0,ROUND(M838/$F$838,5))","v":9.325E-2},{"$f":"IF($F$838=0,0,ROUND(N838/$F$838,5))","v":4.6800000000000001E-3},{"$f":"IF($F$838=0,0,ROUND(O838/$F$838,5))","v":0},{"$f":"IF($F$838=0,0,ROUND(P838/$F$838,5))","v":6.28E-3},{"$f":"IF($F$838=0,0,ROUND(Q838/$F$838,5))","v":1.1E-4},{"$f":"SUM(G839:Q839)","v":0.99999999999999989},{"$f":"F839-R839","v":0}]
[12,null,{"$f":"'FR-16(7)(v)-1 Functional'!C840","v":"GROSS DISTRIBUTION PLANT EXCL. CCNC"},"External",null,{"$f":"SUM(F73:F90)","v":355338347},{"$f":"SUM(G73:G90)","v":166806480},98510450,458387,2160458,24874,50308801,33135302,1662983,0,2231524,39088,355338347,0]
[13,null,{"$f":"'FR-16(7)(v)-1 Functional'!C841","v":"RATIO TO TOTAL ELECTRIC"},null,{"$f":"'FR-16(7)(v)-1 Functional'!E841","v":"K209"},{"$f":"IF($F840=0,0,ROUND(F840/$F840,9))","v":1},{"$f":"IF(S840=0,F841-SUM(H841:Q841),ROUND(G840/F840,5))","v":0.4694299999999999},{"$f":"IF($F$840=0,0,ROUND(H840/$F$840,5))","v":0.27722999999999998},{"$f":"IF($F$840=0,0,ROUND(I840/$F$840,5))","v":1.2899999999999999E-3},6.0800000000000003E-3,6.9999999999999994E-5,0.14158000000000001,9.325E-2,4.6800000000000001E-3,0,6.28E-3,1.1E-4,0.99999999999999989,0,null,null,null,{"$f":"R841","v":0.99999999999999989}]
[14,null,{"$f":"'FR-16(7)(v)-1 Functional'!C842","v":"TOTAL DIVERSIFIED CLASS DEMANDS"},"External",null,{"$f":"'WP FR-16(7)(v)-KW & KWH @Dist'!L39","v":731338},{"$f":"'WP FR-16(7)(v)-KW & KWH @Dist'!L18","v":343307},{"$f":"'WP FR-16(7)(v)-KW & KWH @Dist'!L19+'WP FR-16(7)(v)-KW & KWH @Dist'!L32","v":202748},{"$f":"'WP FR-16(7)(v)-KW & KWH @Dist'!L20","v":945},{"$f":"'WP FR-16(7)(v)-KW & KWH @Dist'!L21","v":4447},{"$f":"'WP FR-16(7)(v)-KW & KWH @Dist'!L22","v":53},{"$f":"'WP FR-16(7)(v)-KW & KWH @Dist'!L23+'WP FR-16(7)(v)-KW & KWH @Dist'!L33","v":103544},{"$f":"'WP FR-16(7)(v)-KW & KWH @Dist'!L24","v":68199},{"$f":"'WP FR-16(7)(v)-KW & KWH @Dist'!L25","v":3420},{"$f":"'WP FR-16(7)(v)-KW & KWH @Dist'!L26","v":0},{"$f":"'WP FR-16(7)(v)-KW & KWH @Dist'!L27","v":4595},{"$f":"'WP FR-16(7)(v)-KW & KWH @Dist'!L28","v":80},731338,0]
[15,null,{"$f":"'FR-16(7)(v)-1 Functional'!C843","v":"RATIO TO TOTAL ELECTRIC"},null,{"$f":"'FR-16(7)(v)-1 Functional'!E843","v":"K215"},{"$f":"IF($F842=0,0,ROUND(F842/$F842,9))","v":1},{"$f":"IF(S842=0,F843-SUM(H843:Q843),ROUND(G842/F842,5))","v":0.4694299999999999},{"$f":"IF($F$842=0,0,ROUND(H842/$F$842,5))","v":0.27722999999999998},{"$f":"IF($F$842=0,0,ROUND(I842/$F$842,5))","v":1.2899999999999999E-3},6.0800000000000003E-3,6.9999999999999994E-5,0.14158000000000001,9.325E-2,4.6800000000000001E-3,0,6.28E-3,1.1E-4,0.99999999999999989,0,null,null,null,{"$f":"R843","v":0.99999999999999989}]
[16,null,{"$f":"'FR-16(7)(v)-1 Functional'!C844","v":"WEIGHTED CUSTOMER SERVICE"},"External",null,{"$f":"'WP FR-16(7)(v) Wtd services'!H38","v":143810},{"$f":"'WP FR-16(7)(v) Wtd services'!H17","v":128431},{"$f":"'WP FR-16(7)(v) Wtd services'!H18","v":12968},{"$f":"'WP FR-16(7)(v) Wtd services'!H19","v":172},{"$f":"'WP FR-16(7)(v) Wtd services'!H20","v":412},{"$f":"'WP FR-16(7)(v) Wtd services'!H21","v":14},{"$f":"'WP FR-16(7)(v) Wtd services'!H22","v":930},{"$f":"'WP FR-16(7)(v) Wtd services'!H23","v":222},{"$f":"'WP FR-16(7)(v) Wtd services'!H24","v":60},{"$f":"'WP FR-16(7)(v) Wtd services'!H25","v":66},{"$f":"'WP FR-16(7)(v) Wtd services'!H26","v":468},{"$f":"'WP FR-16(7)(v) Wtd services'!H27","v":11},143754,56]
[17,null,{"$f":"'FR-16(7)(v)-1 Functional'!C845","v":"RATIO TO TOTAL ELECTRIC"},null,{"$f":"'FR-16(7)(v)-1 Functional'!E845","v":"K217"},{"$f":"IF($F844=0,0,ROUND(F844/$F844,9))","v":1},{"$f":"IF(S844=0,F845-SUM(H845:Q845),ROUND(G844/F844,5))","v":0.89305999999999996},{"$f":"IF($F$844=0,0,ROUND(H844/$F$844,5))","v":9.017E-2},{"$f":"IF($F$844=0,0,ROUND(I844/$F$844,5))","v":1.1999999999999999E-3},2.8600000000000001E-3,1E-4,6.4700000000000001E-3,1.5399999999999999E-3,4.2000000000000002E-4,4.6000000000000001E-4,3.2499999999999999E-3,8.0000000000000007E-5,0.99960999999999978,3.900000000002235E-4,null,null,null,{"$f":"R845","v":0.99960999999999978}]
[18,null,{"$f":"'FR-16(7)(v)-1 Functional'!C846","v":"TOTAL KWH"},"External",null,{"$f":"'WP FR-16(7)(v)-KW & KWH @Gen'!F38","v":4261970981},{"$f":"'WP FR-16(7)(v)-KW & KWH @Gen'!$F$17","v":1608724299},{"$f":"'WP FR-16(7)(v)-KW & KWH @Gen'!$F$18+'WP FR-16(7)(v)-KW & KWH @Gen'!$F$31","v":1147823576},{"$f":"'WP FR-16(7)(v)-KW & KWH @Gen'!$F$19","v":6420710},{"$f":"'WP FR-16(7)(v)-KW & KWH @Gen'!$F$20","v":18228802},{"$f":"'WP FR-16(7)(v)-KW & KWH @Gen'!$F$21","v":298034},{"$f":"'WP FR-16(7)(v)-KW & KWH @Gen'!$F$22+'WP FR-16(7)(v)-KW & KWH @Gen'!$F$32","v":703280622},{"$f":"'WP FR-16(7)(v)-KW & KWH @Gen'!$F$23","v":488455966},{"$f":"'WP FR-16(7)(v)-KW & KWH @Gen'!$F$24","v":22905598},{"$f":"'WP FR-16(7)(v)-KW & KWH @Gen'!$F$25+'WP FR-16(7)(v)-KW & KWH @Gen'!$F$35","v":246755000},{"$f":"'WP FR-16(7)(v)-KW & KWH @Gen'!$F$26","v":18599129},{"$f":"'WP FR-16(7)(v)-KW & KWH @Gen'!$F$27","v":479245},4261970981,0]
[19,null,{"$f":"'FR-16(7)(v)-1 Functional'!C847","v":"RATIO TO TOTAL ELECTRIC"},null,{"$f":"'FR-16(7)(v)-1 Functional'!E847","v":"K301"},{"$f":"IF($F846=0,0,ROUND(F846/$F846,9))","v":1},{"$f":"IF(S846=0,F847-SUM(H847:Q847),ROUND(G846/F846,5))","v":0.37745999999999991},{"$f":"IF($F$846=0,0,ROUND(H846/$F$846,5))","v":0.26932},{"$f":"IF($F$846=0,0,ROUND(I846/$F$846,5))","v":1.5100000000000001E-3},4.28E-3,6.9999999999999994E-5,0.16500999999999999,0.11461,5.3699999999999998E-3,5.79E-2,4.3600000000000002E-3,1.1E-4,0.99999999999999989,0,null,null,null,{"$f":"R847","v":0.99999999999999989}]
[20,null,{"$f":"'FR-16(7)(v)-1 Functional'!C848","v":"DISTRIBUTION KWH"},"External",null,{"$f":"'WP FR-16(7)(v)-KW & KWH @Dist'!F39","v":4261970981},{"$f":"'WP FR-16(7)(v)-KW & KWH @Dist'!F18","v":1608724299},{"$f":"'WP FR-16(7)(v)-KW & KWH @Dist'!F19+'WP FR-16(7)(v)-KW & KWH @Dist'!F32","v":1147823576},{"$f":"'WP FR-16(7)(v)-KW & KWH @Dist'!F20","v":6420710},{"$f":"'WP FR-16(7)(v)-KW & KWH @Dist'!F21","v":18228802},{"$f":"'WP FR-16(7)(v)-KW & KWH @Dist'!F22","v":298034},{"$f":"'WP FR-16(7)(v)-KW & KWH @Dist'!F23+'WP FR-16(7)(v)-KW & KWH @Dist'!F33","v":703280622},{"$f":"'WP FR-16(7)(v)-KW & KWH @Dist'!F24","v":488455966},{"$f":"'WP FR-16(7)(v)-KW & KWH @Dist'!F25","v":22905598},{"$f":"'WP FR-16(7)(v)-KW & KWH @Dist'!F26","v":232255694},{"$f":"'WP FR-16(7)(v)-KW & KWH @Dist'!F27","v":18599129},{"$f":"'WP FR-16(7)(v)-KW & KWH @Dist'!F28","v":479245},4247471675,14499306]
[21,null,{"$f":"'FR-16(7)(v)-1 Functional'!C849","v":"RATIO TO TOTAL ELECTRIC"},null,{"$f":"'FR-16(7)(v)-1 Functional'!E849","v":"K303"},{"$f":"IF($F848=0,0,ROUND(F848/$F848,9))","v":1},{"$f":"IF(S848=0,F849-SUM(H849:Q849),ROUND(G848/F848,5))","v":0.37746000000000002},{"$f":"IF($F$848=0,0,ROUND(H848/$F$848,5))","v":0.26932},{"$f":"IF($F$848=0,0,ROUND(I848/$F$848,5))","v":1.5100000000000001E-3},4.28E-3,6.9999999999999994E-5,0.16500999999999999,0.11461,5.3699999999999998E-3,5.4489999999999997E-2,4.3600000000000002E-3,1.1E-4,0.99659000000000009,3.4099999999999131E-3,null,null,null,{"$f":"R849","v":0.99659000000000009}]
[22,null,{"$f":"'FR-16(7)(v)-1 Functional'!C850","v":"TOTAL KWH LESS LIGHTING"},"External",null,{"$f":"'WP FR-16(7)(v)-KW & KWH @Gen'!F38-'WP FR-16(7)(v)-KW & KWH @Gen'!F26","v":4243371852},{"$f":"'WP FR-16(7)(v)-KW & KWH @Gen'!F17","v":1608724299},{"$f":"'WP FR-16(7)(v)-KW & KWH @Gen'!F18+'WP FR-16(7)(v)-KW & KWH @Gen'!F31","v":1147823576},{"$f":"'WP FR-16(7)(v)-KW & KWH @Gen'!F19","v":6420710},{"$f":"'WP FR-16(7)(v)-KW & KWH @Gen'!F20","v":18228802},{"$f":"'WP FR-16(7)(v)-KW & KWH @Gen'!F21","v":298034},{"$f":"'WP FR-16(7)(v)-KW & KWH @Gen'!F22+'WP FR-16(7)(v)-KW & KWH @Gen'!F32","v":703280622},{"$f":"'WP FR-16(7)(v)-KW & KWH @Gen'!F23","v":488455966},{"$f":"'WP FR-16(7)(v)-KW & KWH @Gen'!F24","v":22905598},{"$f":"'WP FR-16(7)(v)-KW & KWH @Gen'!F25+'WP FR-16(7)(v)-KW & KWH @Gen'!F35","v":246755000},0,{"$f":"'WP FR-16(7)(v)-KW & KWH @Gen'!F27","v":479245},4243371852,0]
[23,null,{"$f":"'FR-16(7)(v)-1 Functional'!C851","v":"RATIO TO TOTAL ELECTRIC"},null,{"$f":"'FR-16(7)(v)-1 Functional'!E851","v":"K305"},{"$f":"IF($F850=0,0,ROUND(F850/$F850,9))","v":1},{"$f":"IF(S850=0,F851-SUM(H851:Q851),ROUND(G850/F850,5))","v":0.37910999999999984},{"$f":"IF($F$850=0,0,ROUND(H850/$F$850,5))","v":0.27050000000000002},{"$f":"IF($F$850=0,0,ROUND(I850/$F$850,5))","v":1.5100000000000001E-3},4.3E-3,6.9999999999999994E-5,0.16574,0.11511,5.4000000000000003E-3,5.815E-2,0,1.1E-4,0.99999999999999989,0,null,null,null,{"$f":"R851","v":0.99999999999999989}]
[24,null,{"$f":"'FR-16(7)(v)-1 Functional'!C852","v":"ASSIGN 100% TO RESIDENTIAL"},"External",null,1,1,0,0,0,0,0,0,0,0,0,0,1,0]
[25,null,{"$f":"'FR-16(7)(v)-1 Functional'!C853","v":"RATIO TO TOTAL ELECTRIC"},null,{"$f":"'FR-16(7)(v)-1 Functional'!E853","v":"K307"},{"$f":"IF($F852=0,0,ROUND(F852/$F852,9))","v":1},{"$f":"IF(S852=0,F853-SUM(H853:Q853),ROUND(G852/F852,5))","v":1},{"$f":"IF($F$852=0,0,ROUND(H852/$F$852,5))","v":0},{"$f":"IF($F$852=0,0,ROUND(I852/$F$852,5))","v":0},0,0,0,0,0,0,0,0,1,0,null,null,null,{"$f":"R853","v":1}]
[26,null,{"$f":"'FR-16(7)(v)-1 Functional'!C854","v":"ASSIGN 100% TO LIGHTING"},"External",null,1,0,0,0,0,0,0,0,0,0,1,0,1,0]
[27,null,{"$f":"'FR-16(7)(v)-1 Functional'!C855","v":"RATIO TO TOTAL ELECTRIC"},null,{"$f":"'FR-16(7)(v)-1 Functional'!E855","v":"K401"},{"$f":"IF($F854=0,0,ROUND(F854/$F854,9))","v":1},{"$f":"IF(S854=0,F855-SUM(H855:Q855),ROUND(G854/F854,5))","v":0},{"$f":"IF($F$854=0,0,ROUND(H854/$F$854,5))","v":0},{"$f":"IF($F$854=0,0,ROUND(I854/$F$854,5))","v":0},0,0,0,0,0,0,1,0,1,0,null,null,null,{"$f":"R855","v":1}]
[28,null,{"$f":"'FR-16(7)(v)-1 Functional'!C856","v":"DISTRIBUTION CUSTOMERS"},"External",null,{"$f":"'WP FR-16(7)(v)-KW & KWH @Dist'!H39","v":142392},{"$f":"'WP FR-16(7)(v)-KW & KWH @Dist'!$H18","v":128431},{"$f":"'WP FR-16(7)(v)-KW & KWH @Dist'!$H19+'WP FR-16(7)(v)-KW & KWH @Dist'!$H32","v":12972},{"$f":"'WP FR-16(7)(v)-KW & KWH @Dist'!$H20","v":172},{"$f":"'WP FR-16(7)(v)-KW & KWH @Dist'!$H21","v":103},{"$f":"'WP FR-16(7)(v)-KW & KWH @Dist'!$H22","v":14},{"$f":"'WP FR-16(7)(v)-KW & KWH @Dist'!$H23+'WP FR-16(7)(v)-KW & KWH @Dist'!$H33","v":159},{"$f":"'WP FR-16(7)(v)-KW & KWH @Dist'!$H24","v":37},{"$f":"'WP FR-16(7)(v)-KW & KWH @Dist'!$H25","v":10},{"$f":"'WP FR-16(7)(v)-KW & KWH @Dist'!$H26+'WP FR-16(7)(v)-KW & KWH @Dist'!$H36","v":15},{"$f":"'WP FR-16(7)(v)-KW & KWH @Dist'!$H27","v":468},{"$f":"'WP FR-16(7)(v)-KW & KWH @Dist'!$H28","v":11},142392,0]
[29,null,{"$f":"'FR-16(7)(v)-1 Functional'!C857","v":"RATIO TO TOTAL ELECTRIC"},null,{"$f":"'FR-16(7)(v)-1 Functional'!E857","v":"K405"},{"$f":"IF($F856=0,0,ROUND(F856/$F856,9))","v":1},{"$f":"IF(S856=0,F857-SUM(H857:Q857),ROUND(G856/F856,5))","v":0.90193999999999996},{"$f":"IF($F$856=0,0,ROUND(H856/$F$856,5))","v":9.11E-2},{"$f":"IF($F$856=0,0,ROUND(I856/$F$856,5))","v":1.2099999999999999E-3},7.2000000000000005E-4,1E-4,1.1199999999999999E-3,2.5999999999999998E-4,6.9999999999999994E-5,1.1E-4,3.29E-3,{"$f":"IF(G856=0,0,ROUND(Q856/F856,5))","v":8.0000000000000007E-5},1.0000000000000002,0,null,null,null,{"$f":"R857","v":1.0000000000000002}]
["28A",null,"DISTRIBUTION CUSTOMERS","External",null,{"$f":"'WP FR-16(7)(v)-KW & KWH @Dist'!J39","v":142377},{"$f":"'WP FR-16(7)(v)-KW & KWH @Dist'!$J18","v":128431},{"$f":"'WP FR-16(7)(v)-KW & KWH @Dist'!$J19+'WP FR-16(7)(v)-KW & KWH @Dist'!$J32","v":12972},{"$f":"'WP FR-16(7)(v)-KW & KWH @Dist'!$J20","v":172},{"$f":"'WP FR-16(7)(v)-KW & KWH @Dist'!$J21","v":103},{"$f":"'WP FR-16(7)(v)-KW & KWH @Dist'!$J22","v":14},{"$f":"'WP FR-16(7)(v)-KW & KWH @Dist'!$J23+'WP FR-16(7)(v)-KW & KWH @Dist'!$J33","v":159},{"$f":"'WP FR-16(7)(v)-KW & KWH @Dist'!$J24","v":37},{"$f":"'WP FR-16(7)(v)-KW & KWH @Dist'!$J25","v":10},{"$f":"'WP FR-16(7)(v)-KW & KWH @Dist'!$J26+'WP FR-16(7)(v)-KW & KWH @Dist'!$J36","v":0},{"$f":"'WP FR-16(7)(v)-KW & KWH @Dist'!$J27","v":468},{"$f":"'WP FR-16(7)(v)-KW & KWH @Dist'!$J28","v":11},142377,0]
["29A",null,"RATIO TO TOTAL ELECTRIC",null,"K406",{"$f":"IF($F858=0,0,ROUND(F858/$F858,9))","v":1},{"$f":"IF(S858=0,F859-SUM(H859:Q859),ROUND(G858/F858,5))","v":0.90205000000000002},{"$f":"IF($F$856=0,0,ROUND(H858/$F$856,5))","v":9.11E-2},1.2099999999999999E-3,7.2000000000000005E-4,1E-4,1.1199999999999999E-3,2.5999999999999998E-4,6.9999999999999994E-5,0,3.29E-3,{"$f":"IF(G858=0,0,ROUND(Q858/F858,5))","v":8.0000000000000007E-5},{"$f":"SUM(G859:Q859)","v":1.0000000000000002},{"$f":"F859-R859","v":0}]
[30,null,{"$f":"'FR-16(7)(v)-1 Functional'!C858","v":"METERS"},"External",null,{"$f":"'WP FR-16(7)(v) Meters'!E40","v":15813241},{"$f":"'WP FR-16(7)(v) Meters'!$E19","v":12782441},{"$f":"'WP FR-16(7)(v) Meters'!$E20","v":2892747},{"$f":"'WP FR-16(7)(v) Meters'!$E21","v":0},{"$f":"'WP FR-16(7)(v) Meters'!$E22","v":22093},{"$f":"'WP FR-16(7)(v) Meters'!$E23","v":3451},{"$f":"'WP FR-16(7)(v) Meters'!$E24","v":102877},{"$f":"'WP FR-16(7)(v) Meters'!$E25","v":0},{"$f":"'WP FR-16(7)(v) Meters'!$E26","v":3805},{"$f":"'WP FR-16(7)(v) Meters'!$E27","v":3619},{"$f":"'WP FR-16(7)(v) Meters'!$E28","v":0},{"$f":"'WP FR-16(7)(v) Meters'!$E29","v":2208},15813241,0]
[31,null,{"$f":"'FR-16(7)(v)-1 Functional'!C859","v":"RATIO TO TOTAL ELECTRIC"},null,{"$f":"'FR-16(7)(v)-1 Functional'!E859","v":"K407"},{"$f":"IF($F860=0,0,ROUND(F860/$F860,9))","v":1},{"$f":"IF(S860=0,F861-SUM(H861:Q861),ROUND(G860/F860,5))","v":0.80832999999999999},{"$f":"IF($F$860=0,0,ROUND(H860/$F$860,5))","v":0.18293000000000001},{"$f":"IF($F$860=0,0,ROUND(I860/$F$860,5))","v":0},1.4E-3,2.2000000000000001E-4,6.5100000000000002E-3,0,2.4000000000000001E-4,2.3000000000000001E-4,0,1.3999999999999999E-4,1,0,null,null,null,{"$f":"R861","v":1}]
[32,null,{"$f":"'FR-16(7)(v)-1 Functional'!C860","v":"WEIGHTED CUSTOMER"},"External",null,{"$f":"'WP FR-16(7)(v) Meters'!H40","v":156470},{"$f":"'WP FR-16(7)(v) Meters'!H19","v":128431},{"$f":"'WP FR-16(7)(v) Meters'!H20+'WP FR-16(7)(v) Meters'!H33","v":25940},{"$f":"'WP FR-16(7)(v) Meters'!H21","v":172},{"$f":"'WP FR-16(7)(v) Meters'!H22","v":206},{"$f":"'WP FR-16(7)(v) Meters'!H23","v":28},{"$f":"'WP FR-16(7)(v) Meters'!H24+'WP FR-16(7)(v) Meters'!H34","v":1089},{"$f":"'WP FR-16(7)(v) Meters'!H25+'WP FR-16(7)(v) Meters'!H35","v":37},{"$f":"'WP FR-16(7)(v) Meters'!H26+'WP FR-16(7)(v) Meters'!H36","v":40},{"$f":"'WP FR-16(7)(v) Meters'!H27+'WP FR-16(7)(v) Meters'!H37","v":37},{"$f":"'WP FR-16(7)(v) Meters'!H28","v":468},{"$f":"'WP FR-16(7)(v) Meters'!H29","v":22},156470,0]
[33,null,{"$f":"'FR-16(7)(v)-1 Functional'!C861","v":"RATIO TO TOTAL ELECTRIC"},null,{"$f":"'FR-16(7)(v)-1 Functional'!E861","v":"K409"},{"$f":"IF($F862=0,0,ROUND(F862/$F862,9))","v":1},{"$f":"IF(S862=0,F863-SUM(H863:Q863),ROUND(G862/F862,5))","v":0.82079000000000002},{"$f":"IF($F$862=0,0,ROUND(H862/$F$862,5))","v":0.16578000000000001},{"$f":"IF($F$862=0,0,ROUND(I862/$F$862,5))","v":1.1000000000000001E-3},1.32E-3,1.8000000000000001E-4,6.96E-3,2.4000000000000001E-4,2.5999999999999998E-4,2.4000000000000001E-4,2.99E-3,1.3999999999999999E-4,1,0,null,null,null,{"$f":"R863","v":1}]
[34,null,{"$f":"'FR-16(7)(v)-1 Functional'!C862","v":"UNCOLLECTIBLE ACCOUNT 904"},"External",null,{"$f":"'WP FR-16(7)(v) CustAcct'!G31","v":5781023.7599999998},{"$f":"'WP FR-16(7)(v) CustAcct'!G17","v":5267443},{"$f":"'WP FR-16(7)(v) CustAcct'!G19","v":249785.75999999978},{"$f":"'WP FR-16(7)(v) CustAcct'!G20","v":1597},{"$f":"'WP FR-16(7)(v) CustAcct'!G21","v":1664},{"$f":"'WP FR-16(7)(v) CustAcct'!G22","v":82},{"$f":"'WP FR-16(7)(v) CustAcct'!G23","v":129741},{"$f":"'WP FR-16(7)(v) CustAcct'!G24","v":82815},{"$f":"'WP FR-16(7)(v) CustAcct'!G25","v":3765},{"$f":"'WP FR-16(7)(v) CustAcct'!G26","v":38893},{"$f":"'WP FR-16(7)(v) CustAcct'!G27","v":5192},{"$f":"'WP FR-16(7)(v) CustAcct'!G28","v":46},5781023.7599999998,0]
[35,null,{"$f":"'FR-16(7)(v)-1 Functional'!C863","v":"RATIO TO TOTAL ELECTRIC"},null,{"$f":"'FR-16(7)(v)-1 Functional'!E863","v":"K411"},{"$f":"IF($F864=0,0,ROUND(F864/$F864,9))","v":1},{"$f":"IF(S864=0,F865-SUM(H865:Q865),ROUND(G864/F864,5))","v":0.91115000000000002},{"$f":"IF($F$864=0,0,ROUND(H864/$F$864,5))","v":4.3209999999999998E-2},{"$f":"IF($F$864=0,0,ROUND(I864/$F$864,5))","v":2.7999999999999998E-4},2.9E-4,1.0000000000000001E-5,2.2440000000000002E-2,1.4330000000000001E-2,6.4999999999999997E-4,6.7299999999999999E-3,8.9999999999999998E-4,1.0000000000000001E-5,0.99999999999999989,0,null,null,null,{"$f":"R865","v":0.99999999999999989}]
[36,null,{"$f":"'FR-16(7)(v)-1 Functional'!C864","v":"KWH SALES LESS RTP"},"External",null,{"$f":"'WP FR-16(7)(v)-KW & KWH @Gen'!F28","v":4244213606},{"$f":"'WP FR-16(7)(v)-KW & KWH @Gen'!F17","v":1608724299},{"$f":"'WP FR-16(7)(v)-KW & KWH @Gen'!F18","v":1146956880},{"$f":"'WP FR-16(7)(v)-KW & KWH @Gen'!F19","v":6420710},{"$f":"'WP FR-16(7)(v)-KW & KWH @Gen'!F20","v":18228802},{"$f":"'WP FR-16(7)(v)-KW & KWH @Gen'!F21","v":298034},{"$f":"'WP FR-16(7)(v)-KW & KWH @Gen'!F22","v":700889249},{"$f":"'WP FR-16(7)(v)-KW & KWH @Gen'!F23","v":488455966},{"$f":"'WP FR-16(7)(v)-KW & KWH @Gen'!F24","v":22905598},{"$f":"'WP FR-16(7)(v)-KW & KWH @Gen'!F25","v":232255694},{"$f":"'WP FR-16(7)(v)-KW & KWH @Gen'!F26","v":18599129},{"$f":"'WP FR-16(7)(v)-KW & KWH @Gen'!F27","v":479245},{"$f":"SUM(G866:Q866)","v":4244213606},{"$f":"F866-R866","v":0}]
[37,null,{"$f":"'FR-16(7)(v)-1 Functional'!C865","v":"RATIO TO TOTAL ELECTRIC"},null,{"$f":"'FR-16(7)(v)-1 Functional'!E865","v":"K302"},{"$f":"IF($F866=0,0,ROUND(F866/$F866,9))","v":1},{"$f":"IF(S866=0,F867-SUM(H867:Q867),ROUND(G866/F865,5))","v":0.37904999999999989},{"$f":"IF(F866=0,0,ROUND(H866/F866,5))","v":0.27023999999999998},{"$f":"IF(F866=0,0,ROUND(I866/F866,5))","v":1.5100000000000001E-3},{"$f":"IF(F866=0,0,ROUND(J866/F866,5))","v":4.2900000000000004E-3},{"$f":"IF(F866=0,0,ROUND(K866/F866,5))","v":6.9999999999999994E-5},{"$f":"IF(F866=0,0,ROUND(L866/F866,5))","v":0.16514000000000001},{"$f":"IF(F866=0,0,ROUND(M866/F866,5))","v":0.11509},{"$f":"IF(F866=0,0,ROUND(N866/F866,5))","v":5.4000000000000003E-3},{"$f":"IF(F866=0,0,ROUND(O866/F866,5))","v":5.4719999999999998E-2},{"$f":"IF(F866=0,0,ROUND(P866/F866,5))","v":4.3800000000000002E-3},{"$f":"IF(F866=0,0,ROUND(Q866/F866,5))","v":1.1E-4},{"$f":"SUM(G867:Q867)","v":1},{"$f":"F867-R867","v":0}]
[38]
[39,null,"PRESENT REVENUES",{"$f":"'FR-16(7)(v)-1 Functional'!$D$867","v":"CS09"},{"$f":"'FR-16(7)(v)-1 Functional'!E867","v":"R600"},{"$f":"'FR-16(7)(v)-10 DIST Classified'!G869","v":42349493},{"$f":"F869-SUM(H869:Q869)","v":20615583},{"$f":"ROUND(F869*VLOOKUP(D869,ALLOCTABLE_Distr_Demand,$H$10,FALSE),0)","v":11357718},{"$f":"ROUND($F$869*VLOOKUP($D$869,ALLOCTABLE_Distr_Demand,I10,FALSE),0)","v":51489},263111,2967,5696955,3726501,192690,180210,256526,5743,{"$f":"SUM(G869:Q869)","v":42349493},{"$f":"F869-R869","v":0}]
[40,null,"PROPOSED REVENUES",{"$f":"'FR-16(7)(v)-1 Functional'!$D$868","v":"A357"},{"$f":"'FR-16(7)(v)-1 Functional'!E868","v":"R602"},{"$f":"'FR-16(7)(v)-10 DIST Classified'!G870","v":52183002},{"$f":"F870-SUM(H870:Q870)","v":26909731},{"$f":"ROUND(F870*VLOOKUP(D870,ALLOCTABLE_Distr_Demand,$H$10,FALSE),0)","v":13211171},{"$f":"ROUND($F$870*VLOOKUP($D$870,ALLOCTABLE_Distr_Demand,I10,FALSE),0)","v":56879},335537,3653,6409638,4138112,225952,586015,296921,9393,{"$f":"SUM(G870:Q870)","v":52183002},{"$f":"F870-R870","v":0}]
[]
[{"$f":"co_name","v":"DUKE ENERGY KENTUCKY, INC."},null,null,null,null,null,null,null,null,null,null,null,null,null,null,null,null,{"$f":"R1","v":"FR-16(7)(v)-11"}]
[{"$f":"$A$2","v":"DISTRIBUTION DEMAND ALLOCATED - ELECTRIC COST OF SERVICE"},null,null,null,null,null,null,null,null,null,null,null,null,null,null,null,null,{"$f":"R2","v":"WITNESS RESPONSIBLE:"}]
[{"$f":"case_name","v":"CASE NO: 2019-00271"},null,null,null,null,null,null,null,null,null,null,null,null,null,null,null,null,{"$f":"Witness","v":"JAMES E. ZIOLKOWSKI"}]
[{"$f":"data_filing","v":"DATA: 12 MONTHS ACTUAL  & 0 MONTHS ESTIMATED"},null,null,null,null,null,null,null,null,null,null,null,null,null,null,null,null,{"$f":"\"PAGE \"&Pages-1&\" OF \"&Pages","v":"PAGE 17 OF 18"}]
[{"$f":"type","v":"TYPE OF FILING: \"X\" ORIGINAL   UPDATED    REVISED  "}]
[]
[null,null,null,null,null,{"$f":"F$7","v":"TOTAL"},null,{"$f":"H$7","v":"DS"},{"$f":"I$7","v":"GSFL"},{"$f":"J$7","v":"EH"},{"$f":"K$7","v":"SP"},"DT SEC","DT PRI","DP","TT",null,"OTHER"]
["LINE",null,null,null,null,{"$f":"F$8","v":"DISTRIBUTION"},{"$f":"G$8","v":"RS"},{"$f":"H$8","v":"SECONDARY"},{"$f":"I$8","v":"SECONDARY"},{"$f":"J$8","v":"SECONDARY"},{"$f":"K$8","v":"SECONDARY"},"SECONDARY","PRIMARY","PRIMARY","TRANSMISSION","LT","WATER",{"$f":"R8","v":"TOTAL"},"ALL"]
["NO.","ALLOCATORS",null,"SOURCE","ALLO",{"$f":"F$9","v":"DEMAND"},{"$f":"G$9","v":"RESIDENTIAL"},{"$f":"H$9","v":"DISTRIBUTION"},{"$f":"I$9","v":"DISTRIBUTION"},{"$f":"J$9","v":"DISTRIBUTION"},{"$f":"K$9","v":"DISTRIBUTION"},"DISTRIBUTION","DISTRIBUTION","DISTRIBUTION","TIME OF DAY","LIGHTING","PUMPING",{"$f":"R9","v":"AT ISSUE"},"OTHER"]
[null,null,"Schedule 12.1",null,1,null,{"$f":"G$10","v":3},{"$f":"H$10","v":4},{"$f":"I$10","v":5},{"$f":"J$10","v":6},{"$f":"K$10","v":7},8,9,10,11,12,13,null," "]
[]
[1,null,{"$f":"'FR-16(7)(v)-1 Functional'!C881","v":"PRESENT REVENUES"},"Internal",null,{"$f":"'FR-16(7)(v)-3 PROD Demand'!F881","v":309580654},{"$f":"'FR-16(7)(v)-3 PROD Demand'!G881","v":123883637},{"$f":"'FR-16(7)(v)-3 PROD Demand'!H881","v":90318223},{"$f":"'FR-16(7)(v)-3 PROD Demand'!I881","v":577046},{"$f":"'FR-16(7)(v)-3 PROD Demand'!J881","v":600937},{"$f":"'FR-16(7)(v)-3 PROD Demand'!K881","v":29960},{"$f":"'FR-16(7)(v)-3 PROD Demand'!L881","v":46910116},{"$f":"'FR-16(7)(v)-3 PROD Demand'!M881","v":29943872},{"$f":"'FR-16(7)(v)-3 PROD Demand'!N881","v":1361377},{"$f":"'FR-16(7)(v)-3 PROD Demand'!O881","v":14062168},{"$f":"'FR-16(7)(v)-3 PROD Demand'!P881","v":1876470},{"$f":"'FR-16(7)(v)-3 PROD Demand'!Q881","v":16848},{"$f":"SUM(G883:Q883)","v":309580654},{"$f":"F883-R883","v":0}]
[2,null,{"$f":"'FR-16(7)(v)-1 Functional'!C882","v":"RATIO TO TOTAL ELECTRIC"},null,{"$f":"'FR-16(7)(v)-1 Functional'!E882","v":"K901"},{"$f":"IF($F883=0,0,ROUND(F883/$F883,9))","v":1},{"$f":"IF(S883=0,F884-SUM(H884:Q884),ROUND(G883/F883,5))","v":0.40016595199999994},{"$f":"IF($F$883=0,0,ROUND(H883/$F$883,9))","v":0.29174375699999999},{"$f":"IF($F$883=0,0,ROUND(I883/$F$883,9))","v":1.86396E-3},1.9411319999999999E-3,9.6775999999999996E-5,0.151527931,9.6723977000000003E-2,4.3974870000000003E-3,4.5423277999999997E-2,6.0613280000000004E-3,5.4422000000000002E-5,{"$f":"SUM(G884:Q884)","v":1},{"$f":"F884-R884","v":0},null,null,null,{"$f":"R884","v":1}]
[3,null,{"$f":"'FR-16(7)(v)-1 Functional'!C883","v":"PROPOSED REVENUES"},"Internal",null,{"$f":"'FR-16(7)(v)-3 PROD Demand'!F883","v":355094168},{"$f":"'FR-16(7)(v)-3 PROD Demand'!G883","v":147195469},{"$f":"'FR-16(7)(v)-3 PROD Demand'!H883","v":101595371},{"$f":"'FR-16(7)(v)-3 PROD Demand'!I883","v":649414},{"$f":"'FR-16(7)(v)-3 PROD Demand'!J883","v":676300},{"$f":"'FR-16(7)(v)-3 PROD Demand'!K883","v":33717},{"$f":"'FR-16(7)(v)-3 PROD Demand'!L883","v":52518255},{"$f":"'FR-16(7)(v)-3 PROD Demand'!M883","v":33522516},{"$f":"'FR-16(7)(v)-3 PROD Demand'!N883","v":1546768},{"$f":"'FR-16(7)(v)-3 PROD Demand'!O883","v":15232520},{"$f":"'FR-16(7)(v)-3 PROD Demand'!P883","v":2104877},{"$f":"'FR-16(7)(v)-3 PROD Demand'!Q883","v":18961},{"$f":"SUM(G885:Q885)","v":355094168},{"$f":"F885-R885","v":0}]
[4,null,{"$f":"'FR-16(7)(v)-1 Functional'!C884","v":"RATIO TO TOTAL ELECTRIC"},null,{"$f":"'FR-16(7)(v)-1 Functional'!E884","v":"K902"},{"$f":"IF($F885=0,0,ROUND(F885/$F885,9))","v":1},{"$f":"IF(S885=0,F886-SUM(H886:Q886),ROUND(G885/F885,5))","v":0.41452516699999997},{"$f":"IF($F$885=0,0,ROUND(H885/$F$885,9))","v":0.28610825000000001},{"$f":"IF($F$885=0,0,ROUND(I885/$F$885,9))","v":1.8288499999999999E-3},1.904565E-3,9.4951999999999995E-5,0.14789951400000001,9.4404581000000001E-2,4.3559369999999998E-3,4.2897128E-2,5.9276590000000001E-3,5.3396999999999997E-5,{"$f":"SUM(G886:Q886)","v":1},{"$f":"F886-R886","v":0}]
[5]
[6,"WEIGHTED RATIOS"]
[7,"GROSS ELECTRIC PLANT IN SERVICE"]
[8,null,{"$f":"'FR-16(7)(v)-1 Functional'!C888","v":"WTD GROSS PROD PLANT RATIOS"},"Internal",{"$f":"'FR-16(7)(v)-1 Functional'!E888","v":"P129"},0,{"$f":"IF(F890=0,0,F890-SUM(H890:Q890))","v":0},{"$f":"ROUND(IF($F$62=0,0,H62/$F$62),5)","v":0},0,0,0,{"$f":"ROUND(IF($F$62=0,0,L62/$F$62),5)","v":0},0,0,0,0,0,{"$f":"SUM(G890:Q890)","v":0},{"$f":"F890-R890","v":0},null,null,null,{"$f":"R890","v":0}]
[9,null,{"$f":"'FR-16(7)(v)-1 Functional'!C889","v":"WTD GROSS TRANS PLANT RATIOS"},"Internal",{"$f":"'FR-16(7)(v)-1 Functional'!E889","v":"T129"},0,0,{"$f":"ROUND(IF($F$68=0,0,H68/$F$68),5)","v":0},0,0,0,0,0,0,0,0,0,0,0,null,null,null,0]
[10,null,{"$f":"'FR-16(7)(v)-1 Functional'!C890","v":"WTD GROSS P & T PLT RATIOS"},null,{"$f":"'FR-16(7)(v)-1 Functional'!E890","v":"PT29"},0,0,{"$f":"ROUND(IF($F$70=0,0,H70/$F$70),5)","v":0},0,0,0,{"$f":"ROUND(IF($F$70=0,0,L70/$F$70),5)","v":0},0,0,0,0,0,0,0]
[11,null,{"$f":"'FR-16(7)(v)-1 Functional'!C891","v":"WTD GROSS DIST PLANT RATIOS"},null,{"$f":"'FR-16(7)(v)-1 Functional'!E891","v":"D149"},1,0.4694299999999999,{"$f":"ROUND(IF($F$94=0,0,H94/$F$94),5)","v":0.27722999999999998},1.2899999999999999E-3,6.0800000000000003E-3,6.9999999999999994E-5,{"$f":"ROUND(IF($F$94=0,0,L94/$F$94),5)","v":0.14158000000000001},9.325E-2,4.6800000000000001E-3,0,6.28E-3,1.1E-4,0.99999999999999989,0]
[12,null,{"$f":"'FR-16(7)(v)-1 Functional'!C892","v":"WTD GROSS TRANS & DIST RATIOS"},"Internal",{"$f":"'FR-16(7)(v)-1 Functional'!E892","v":"TD29"},1,0.4694299999999999,{"$f":"ROUND(IF($F$97=0,0,H97/$F$97),5)","v":0.27722999999999998},1.2899999999999999E-3,6.0800000000000003E-3,6.9999999999999994E-5,{"$f":"ROUND(IF($F$97=0,0,L97/$F$97),5)","v":0.14158000000000001},9.325E-2,4.6800000000000001E-3,0,6.28E-3,1.1E-4,0.99999999999999989,0,null,null,null,0.99999999999999989]
[13,null,{"$f":"'FR-16(7)(v)-1 Functional'!C893","v":"WTD GROSS PTD PLT RATIOS"},"Internal",{"$f":"'FR-16(7)(v)-1 Functional'!E893","v":"PD29"},1,1,{"$f":"ROUND(IF($F$109=0,0,H109/$F$109),5)","v":0},0,0,0,{"$f":"ROUND(IF($F$109=0,0,L109/$F$109),5)","v":0},0,0,0,0,0,1,0,null,null,null,1]
[14,null,{"$f":"'FR-16(7)(v)-1 Functional'!C894","v":"WTD GROSS G & I PLT RATIOS"},"Internal",{"$f":"'FR-16(7)(v)-1 Functional'!E894","v":"G129"},1,1,{"$f":"ROUND(IF($F$121=0,0,H121/$F$121),5)","v":0},0,0,0,{"$f":"ROUND(IF($F$121=0,0,L121/$F$121),5)","v":0},0,0,0,0,0,1,0,null,null,null,1]
[15,null,{"$f":"'FR-16(7)(v)-1 Functional'!C895","v":"WTD GROSS C & O PLANT RATIOS"},"Internal",{"$f":"'FR-16(7)(v)-1 Functional'!E895","v":"C129"},1,0.4694299999999999,{"$f":"ROUND(IF($F$123=0,0,H123/$F$123),5)","v":0.27722999999999998},1.2899999999999999E-3,6.0800000000000003E-3,6.9999999999999994E-5,{"$f":"ROUND(IF($F$123=0,0,L123/$F$123),5)","v":0.14158000000000001},9.325E-2,4.6800000000000001E-3,0,6.28E-3,1.1E-4,0.99999999999999989,0,null,null,null,0.99999999999999989]
[16,null,{"$f":"'FR-16(7)(v)-1 Functional'!C896","v":"WTD GROSS PLANT RATIOS"},"Internal",{"$f":"'FR-16(7)(v)-1 Functional'!E896","v":"GP19"},1,0.4694299999999999,{"$f":"ROUND(IF($F$171=0,0,H171/$F$171),5)","v":0.27722999999999998},1.2899999999999999E-3,6.0800000000000003E-3,6.9999999999999994E-5,{"$f":"ROUND(IF($F$171=0,0,L171/$F$171),5)","v":0.14158000000000001},9.325E-2,4.6800000000000001E-3,0,6.28E-3,1.1E-4,0.99999999999999989,0,null,null,null,0.99999999999999989]
[17,null,{"$f":"'FR-16(7)(v)-1 Functional'!C897","v":"WTD TOTAL DEPRC RES RATIOS"},"Internal",{"$f":"'FR-16(7)(v)-1 Functional'!E897","v":"DR19"},1,0.46969000000000005,{"$f":"ROUND(IF($F$200=0,0,H200/$F$200),5)","v":0.27709},1.2899999999999999E-3,6.0800000000000003E-3,6.9999999999999994E-5,{"$f":"ROUND(IF($F$200=0,0,L200/$F$200),5)","v":0.14151},9.3200000000000005E-2,4.6800000000000001E-3,0,6.28E-3,1.1E-4,1,0,null,null,null,1]
[18]
[19,"NET ELECTRIC PLANT"]
[20,null,{"$f":"'FR-16(7)(v)-1 Functional'!C900","v":"WTD NET PROD PLANT RATIOS"},"Internal",{"$f":"'FR-16(7)(v)-1 Functional'!E900","v":"P229"},0,{"$f":"IF(F902=0,0,F902-SUM(H902:Q902))","v":0},{"$f":"ROUND(IF($F$216=0,0,H216/$F$216),5)","v":0},0,0,0,{"$f":"ROUND(IF($F$216=0,0,L216/$F$216),5)","v":0},0,0,0,0,0,{"$f":"SUM(G902:Q902)","v":0},{"$f":"F902-R902","v":0},null,null,null,{"$f":"R902","v":0}]
[21,null,{"$f":"'FR-16(7)(v)-1 Functional'!C901","v":"WTD NET TRANS PLANT RATIOS"},"Internal",{"$f":"'FR-16(7)(v)-1 Functional'!E901","v":"T229"},0,0,{"$f":"ROUND(IF($F$222=0,0,H222/$F$222),5)","v":0},0,0,0,0,0,0,0,0,0,0,0,null,null,null,{"$f":"R903","v":0}]
[22,null,{"$f":"'FR-16(7)(v)-1 Functional'!C902","v":"WTD NET DIST LINES  - POLES, TOWERS & FIXTURES"},"Internal",{"$f":"'FR-16(7)(v)-1 Functional'!E902","v":"PL49"},1,0.4694299999999999,{"$f":"ROUND(IF(SUM($F$228:$F$231)=0,0,SUM(H228:H231)/SUM($F$228:$F$231)),5)","v":0.27722999999999998},{"$f":"ROUND(IF(SUM($F$228:$F$231)=0,0,SUM(I228:I231)/SUM($F$228:$F$231)),5)","v":1.2899999999999999E-3},6.0800000000000003E-3,6.9999999999999994E-5,0.14158000000000001,9.325E-2,4.6800000000000001E-3,0,6.28E-3,1.1E-4,0.99999999999999989,0,null,null,null,{"$f":"R904","v":0.99999999999999989}]
[23,null,{"$f":"'FR-16(7)(v)-1 Functional'!C903","v":"WTD NET TOTAL DIST PLANT RATIOS"},null,{"$f":"'FR-16(7)(v)-1 Functional'!E903","v":"D249"},1,0.4694299999999999,{"$f":"ROUND(IF($F$248=0,0,H248/$F$248),5)","v":0.27722999999999998},1.2899999999999999E-3,6.0800000000000003E-3,6.9999999999999994E-5,{"$f":"ROUND(IF($F$248=0,0,L248/$F$248),5)","v":0.14158000000000001},9.325E-2,4.6800000000000001E-3,0,6.28E-3,1.1E-4,0.99999999999999989,0]
[24,null,{"$f":"'FR-16(7)(v)-1 Functional'!C904","v":"WTD NET TRANS & DIST RATIOS"},null,{"$f":"'FR-16(7)(v)-1 Functional'!E904","v":"NT29"},1,0.4694299999999999,{"$f":"ROUND(IF($F$251=0,0,H251/$F$251),5)","v":0.27722999999999998},1.2899999999999999E-3,6.0800000000000003E-3,6.9999999999999994E-5,{"$f":"ROUND(IF($F$251=0,0,L251/$F$251),5)","v":0.14158000000000001},9.325E-2,4.6800000000000001E-3,0,6.28E-3,1.1E-4,0.99999999999999989,0]
[25,null,{"$f":"'FR-16(7)(v)-1 Functional'!C905","v":"WTD NET G & I PLT RATIOS"},null,{"$f":"'FR-16(7)(v)-1 Functional'!E905","v":"G229"},1,0.98795999999999995,{"$f":"ROUND(IF($F$263=0,0,H263/$F$263),5)","v":5.96E-3},2.0000000000000002E-5,1E-4,0,{"$f":"ROUND(IF($F$263=0,0,L263/$F$263),5)","v":2.97E-3},1.97E-3,8.0000000000000007E-5,9.2000000000000003E-4,2.0000000000000002E-5,0,1,0]
[26,null,{"$f":"'FR-16(7)(v)-1 Functional'!C906","v":"WTD NET C & O PLANT RATIOS"},null,{"$f":"'FR-16(7)(v)-1 Functional'!E906","v":"C229"},1,0.98846000000000001,{"$f":"ROUND(IF($F$275=0,0,H275/$F$275),5)","v":5.96E-3},0,0,0,{"$f":"ROUND(IF($F$275=0,0,L275/$F$275),5)","v":2.98E-3},1.8600000000000001E-3,0,7.3999999999999999E-4,0,0,0.99999999999999989,0]
[27,null,{"$f":"'FR-16(7)(v)-1 Functional'!C907","v":"WTD NET PLANT RATIOS"},"Internal",{"$f":"'FR-16(7)(v)-1 Functional'!E907","v":"NP29"},1,0.46936,{"$f":"ROUND(IF($F$277=0,0,H277/$F$277),5)","v":0.27727000000000002},1.2899999999999999E-3,6.0800000000000003E-3,6.9999999999999994E-5,{"$f":"ROUND(IF($F$277=0,0,L277/$F$277),5)","v":0.1416},9.3259999999999996E-2,4.6800000000000001E-3,0,6.28E-3,1.1E-4,1,0]
[28]
[29,"WORKING CAPITAL"]
[30,null,{"$f":"'FR-16(7)(v)-1 Functional'!C910","v":"WTD MATERIAL & SUPPLY RATIOS"},"Internal",{"$f":"'FR-16(7)(v)-1 Functional'!E910","v":"W669"},1,{"$f":"IF(F912=0,0,F912-SUM(H912:Q912))","v":1},{"$f":"ROUND(IF($F$399=0,0,H399/$F$399),5)","v":0},0,0,0,{"$f":"ROUND(IF($F$399=0,0,L399/$F$399),5)","v":0},0,0,0,0,0,{"$f":"SUM(G912:Q912)","v":1},{"$f":"F912-R912","v":0},null,null,null,{"$f":"R912","v":1}]
[31,null,{"$f":"'FR-16(7)(v)-1 Functional'!C911","v":"WTD PREPAYMENTS RATIOS"},"Internal",{"$f":"'FR-16(7)(v)-1 Functional'!E911","v":"W689"},1,{"$f":"IF(F913=0,0,F913-SUM(H913:Q913))","v":0.46934999999999993},{"$f":"ROUND(IF($F$405=0,0,H405/$F$405),5)","v":0.27727000000000002},1.2999999999999999E-3,6.0800000000000003E-3,6.9999999999999994E-5,{"$f":"ROUND(IF($F$405=0,0,L405/$F$405),5)","v":0.1416},9.3259999999999996E-2,4.6800000000000001E-3,0,6.28E-3,1.1E-4,{"$f":"SUM(G913:Q913)","v":1},{"$f":"F913-R913","v":0},null,null,null,{"$f":"R913","v":1}]
[32,null,{"$f":"'FR-16(7)(v)-1 Functional'!C912","v":"WTD TOTAL WORKING CASH RATIOS"},"Internal",{"$f":"'FR-16(7)(v)-1 Functional'!E912","v":"W719"},1,{"$f":"IF(F914=0,0,F914-SUM(H914:Q914))","v":1},{"$f":"ROUND(IF($F$408=0,0,H408/$F$408),5)","v":0},0,0,0,{"$f":"ROUND(IF($F$408=0,0,L408/$F$408),5)","v":0},0,0,0,0,0,{"$f":"SUM(G914:Q914)","v":1},{"$f":"F914-R914","v":0},null,null,null,{"$f":"R914","v":1}]
[33,null,{"$f":"'FR-16(7)(v)-1 Functional'!C913","v":"WTD TOTAL MISC WRKNG CAP RATIO"},"Internal",{"$f":"'FR-16(7)(v)-1 Functional'!E913","v":"W749"},1,{"$f":"IF(F915=0,0,F915-SUM(H915:Q915))","v":1},{"$f":"ROUND(IF($F$414=0,0,H414/$F$414),5)","v":0},0,0,0,{"$f":"ROUND(IF($F$414=0,0,L414/$F$414),5)","v":0},0,0,0,0,0,{"$f":"SUM(G915:Q915)","v":1},{"$f":"F915-R915","v":0},null,null,null,{"$f":"R915","v":1}]
[34,null,{"$f":"'FR-16(7)(v)-1 Functional'!C914","v":"WTD TOTAL WRKNG CAP RATIOS"},"Internal",{"$f":"'FR-16(7)(v)-1 Functional'!E914","v":"WC79"},1,{"$f":"IF(F916=0,0,F916-SUM(H916:Q916))","v":0.46934999999999993},{"$f":"ROUND(IF($F$416=0,0,H416/$F$416),5)","v":0.27727000000000002},1.2999999999999999E-3,6.0800000000000003E-3,6.9999999999999994E-5,{"$f":"ROUND(IF($F$416=0,0,L416/$F$416),5)","v":0.1416},9.3259999999999996E-2,4.6800000000000001E-3,0,6.28E-3,1.1E-4,{"$f":"SUM(G916:Q916)","v":1},{"$f":"F916-R916","v":0}]
[35]
[36,"RATE BASE"]
[37,null,{"$f":"'FR-16(7)(v)-1 Functional'!C917","v":"WTD NET OCRB RATIOS"},"Internal",{"$f":"'FR-16(7)(v)-1 Functional'!E917","v":"RB29"},1,{"$f":"IF(F919=0,0,F919-SUM(H919:Q919))","v":0.46943000000000001},{"$f":"ROUND(IF($F$390=0,0,H390/$F$390),5)","v":0.27722999999999998},1.2899999999999999E-3,6.0800000000000003E-3,6.9999999999999994E-5,{"$f":"ROUND(IF($F$390=0,0,L390/$F$390),5)","v":0.14157},9.3240000000000003E-2,4.6800000000000001E-3,2.0000000000000002E-5,6.28E-3,1.1E-4,{"$f":"SUM(G919:Q919)","v":1},{"$f":"F919-R919","v":0}]
[38,null,{"$f":"'FR-16(7)(v)-1 Functional'!C918","v":"WTD TOTAL RATE BASE RATIOS"},"Internal",{"$f":"'FR-16(7)(v)-1 Functional'!E918","v":"RB99"},1,{"$f":"IF(F920=0,0,F920-SUM(H920:Q920))","v":0.46943000000000001},{"$f":"ROUND(IF($F$426=0,0,H426/$F$426),5)","v":0.27722999999999998},1.2899999999999999E-3,6.0800000000000003E-3,6.9999999999999994E-5,{"$f":"ROUND(IF($F$426=0,0,L426/$F$426),5)","v":0.14157},9.3240000000000003E-2,4.6800000000000001E-3,2.0000000000000002E-5,6.28E-3,1.1E-4,{"$f":"SUM(G920:Q920)","v":1},{"$f":"F920-R920","v":0}]
[39,null,{"$f":"'FR-16(7)(v)-1 Functional'!C919","v":"WTD CWIP RATIO"},"Internal",{"$f":"'FR-16(7)(v)-1 Functional'!E919","v":"CW29"},1,{"$f":"IF(F921=0,0,F921-SUM(H921:Q921))","v":1},{"$f":"ROUND(IF($F$375=0,0,H375/$F$375),5)","v":0},0,0,0,{"$f":"ROUND(IF($F$375=0,0,L375/$F$375),5)","v":0},0,0,0,0,0,{"$f":"SUM(G921:Q921)","v":1},{"$f":"F921-R921","v":0},null,null,null,{"$f":"R921","v":1}]
[]
[{"$f":"co_name","v":"DUKE ENERGY KENTUCKY, INC."},null,null,null,null,null,null,null,null,null,null,null,null,null,null,null,null,{"$f":"R1","v":"FR-16(7)(v)-11"}]
[{"$f":"$A$2","v":"DISTRIBUTION DEMAND ALLOCATED - ELECTRIC COST OF SERVICE"},null,null,null,null,null,null,null,null,null,null,null,null,null,null,null,null,{"$f":"R2","v":"WITNESS RESPONSIBLE:"}]
[{"$f":"case_name","v":"CASE NO: 2019-00271"},null,null,null,null,null,null,null,null,null,null,null,null,null,null,null,null,{"$f":"Witness","v":"JAMES E. ZIOLKOWSKI"}]
[{"$f":"data_filing","v":"DATA: 12 MONTHS ACTUAL  & 0 MONTHS ESTIMATED"},null,null,null,null,null,null,null,null,null,null,null,null,null,null,null,null,{"$f":"\"PAGE \"&Pages&\" OF \"&Pages","v":"PAGE 18 OF 18"}]
[{"$f":"type","v":"TYPE OF FILING: \"X\" ORIGINAL   UPDATED    REVISED  "}]
[]
[null,null,null,null,null,{"$f":"F$7","v":"TOTAL"},null,{"$f":"H$7","v":"DS"},{"$f":"I$7","v":"GSFL"},{"$f":"J$7","v":"EH"},{"$f":"K$7","v":"SP"},"DT SEC","DT PRI","DP","TT",null,"OTHER"]
["LINE",null,null,null,null,{"$f":"F$8","v":"DISTRIBUTION"},{"$f":"G$8","v":"RS"},{"$f":"H$8","v":"SECONDARY"},{"$f":"I$8","v":"SECONDARY"},{"$f":"J$8","v":"SECONDARY"},{"$f":"K$8","v":"SECONDARY"},"SECONDARY","PRIMARY","PRIMARY","TRANSMISSION","LT","WATER",{"$f":"R8","v":"TOTAL"},"ALL"]
["NO.","ALLOCATORS",null,"SOURCE","ALLO",{"$f":"F$9","v":"DEMAND"},{"$f":"G$9","v":"RESIDENTIAL"},{"$f":"H$9","v":"DISTRIBUTION"},{"$f":"I$9","v":"DISTRIBUTION"},{"$f":"J$9","v":"DISTRIBUTION"},{"$f":"K$9","v":"DISTRIBUTION"},"DISTRIBUTION","DISTRIBUTION","DISTRIBUTION","TIME OF DAY","LIGHTING","PUMPING",{"$f":"R9","v":"AT ISSUE"},"OTHER"]
[null,null,"Schedule 12.2",null,1,null,{"$f":"G$10","v":3},{"$f":"H$10","v":4},{"$f":"I$10","v":5},{"$f":"J$10","v":6},{"$f":"K$10","v":7},8,9,10,11,12,13,null," "]
[1,"WEIGHTED O & M EXPENSE RATIOS"]
[2,null,{"$f":"'FR-16(7)(v)-1 Functional'!C932","v":"WTD PROD DEMAND O&M EXP RATIOS"},"Internal",{"$f":"'FR-16(7)(v)-1 Functional'!E932","v":"P349"},1,{"$f":"ROUND(IF($F$457=0,0,G457/$F$457),5)","v":0},{"$f":"ROUND(IF($F$457=0,0,H457/$F$457),5)","v":0},0,0,0,{"$f":"ROUND(IF($F$457=0,0,L457/$F$457),5)","v":0},0,0,0,0,0,{"$f":"SUM(G934:Q934)","v":0},{"$f":"F934-R934","v":1},null,null,null,{"$f":"R934","v":0}]
[3,null,{"$f":"'FR-16(7)(v)-1 Functional'!C933","v":"WTD PROD ENERGY O&M EXP RATIOS"},"Internal",{"$f":"'FR-16(7)(v)-1 Functional'!E933","v":"E349"},1,{"$f":"ROUND(IF($F$453=0,0,G453/$F$453),5)","v":0},{"$f":"ROUND(IF($F$453=0,0,H453/$F$453),5)","v":0},0,0,0,{"$f":"ROUND(IF($F$453=0,0,L453/$F$453),5)","v":0},0,0,0,0,0,0,1,null,null,null,{"$f":"R935","v":0}]
[4,null,{"$f":"'FR-16(7)(v)-1 Functional'!C934","v":"WTD TOTAL PROD O&M EXP RATIOS"},"Internal",{"$f":"'FR-16(7)(v)-1 Functional'!E934","v":"P459"},1,{"$f":"ROUND(IF($F$459=0,0,G459/$F$459),5)","v":0},{"$f":"ROUND(IF($F$459=0,0,H459/$F$459),5)","v":0},0,0,0,{"$f":"ROUND(IF($F$459=0,0,L459/$F$459),5)","v":0},0,0,0,0,0,0,1,null,null,null,{"$f":"R936","v":0}]
[5,null,{"$f":"'FR-16(7)(v)-1 Functional'!C935","v":"WTD TRANS O&M EXP RATIOS"},"Internal",{"$f":"'FR-16(7)(v)-1 Functional'!E935","v":"T349"},1,{"$f":"ROUND(IF($F$466=0,0,G466/$F$466),5)","v":0},{"$f":"ROUND(IF($F$466=0,0,H466/$F$466),5)","v":0},0,0,0,{"$f":"ROUND(IF($F$466=0,0,L466/$F$466),5)","v":0},0,0,0,0,0,0,1,null,null,null,{"$f":"R937","v":0}]
[6,null,{"$f":"'FR-16(7)(v)-1 Functional'!C936","v":"WTD DIST O&M EXP RATIOS"},"Internal",{"$f":"'FR-16(7)(v)-1 Functional'!E936","v":"D349"},1,{"$f":"ROUND(IF($F$492=0,0,G492/$F$492),5)","v":0.51568000000000003},{"$f":"ROUND(IF($F$492=0,0,H492/$F$492),5)","v":0.25317000000000001},1.09E-3,6.43E-3,6.9999999999999994E-5,{"$f":"ROUND(IF($F$492=0,0,L492/$F$492),5)","v":0.12282999999999999},7.9299999999999995E-2,4.3299999999999996E-3,1.123E-2,5.6899999999999997E-3,1.8000000000000001E-4,1,0]
[7,null,{"$f":"'FR-16(7)(v)-1 Functional'!C937","v":"WTD UNCOLLECTIBLE ACCOUNT O&M"},"Internal",{"$f":"'FR-16(7)(v)-1 Functional'!E937","v":"C311"},1,{"$f":"ROUND(IF($F$496=0,0,G496/$F$496),5)","v":0},{"$f":"ROUND(IF($F$496=0,0,H496/$F$496),5)","v":0},0,0,0,{"$f":"ROUND(IF($F$496=0,0,L496/$F$496),5)","v":0},0,0,0,0,0,0,1,null,null,null,{"$f":"R939","v":0}]
[8,null,{"$f":"'FR-16(7)(v)-1 Functional'!C938","v":"WTD CUST ACCT O&M EXP RATIOS"},"Internal",{"$f":"'FR-16(7)(v)-1 Functional'!E938","v":"C319"},1,{"$f":"ROUND(IF($F$503=0,0,G503/$F$503),5)","v":0},{"$f":"ROUND(IF($F$503=0,0,H503/$F$503),5)","v":0},0,0,0,{"$f":"ROUND(IF($F$503=0,0,L503/$F$503),5)","v":0},0,0,0,0,0,0,1,null,null,null,{"$f":"R940","v":0}]
[9,null,{"$f":"'FR-16(7)(v)-1 Functional'!C939","v":"WTD CUST SERV & INFO O&M  EXP RATIOS"},"Internal",{"$f":"'FR-16(7)(v)-1 Functional'!E939","v":"C331"},1,{"$f":"ROUND(IF($F$518=0,0,G518/$F$518),5)","v":0},{"$f":"ROUND(IF($F$518=0,0,H518/$F$518),5)","v":0},0,0,0,{"$f":"ROUND(IF($F$518=0,0,L518/$F$518),5)","v":0},0,0,0,0,0,0,1,null,null,null,{"$f":"R941","v":0}]
[10,null,{"$f":"'FR-16(7)(v)-1 Functional'!C940","v":"WTD SALES O&M EXP RATIOS"},"Internal",{"$f":"'FR-16(7)(v)-1 Functional'!E940","v":"S319"},1,{"$f":"ROUND(IF($F$522=0,0,G522/$F$522),5)","v":0},{"$f":"ROUND(IF($F$522=0,0,H522/$F$522),5)","v":0},0,0,0,{"$f":"ROUND(IF($F$522=0,0,L522/$F$522),5)","v":0},0,0,0,0,0,{"$f":"SUM(G942:Q942)","v":0},{"$f":"F942-R942","v":1}]
[11,null,{"$f":"'FR-16(7)(v)-1 Functional'!C941","v":"WTD O&M EXP RATIOS"},"Internal",{"$f":"'FR-16(7)(v)-1 Functional'!E941","v":"OM39"},1,{"$f":"ROUND(IF($F$549=0,0,G549/$F$549),5)","v":0.51568000000000003},{"$f":"ROUND(IF($F$549=0,0,H549/$F$549),5)","v":0.25317000000000001},1.09E-3,6.43E-3,6.9999999999999994E-5,{"$f":"ROUND(IF($F$549=0,0,L549/$F$549),5)","v":0.12282999999999999},7.9299999999999995E-2,4.3299999999999996E-3,1.123E-2,5.6899999999999997E-3,1.8000000000000001E-4,{"$f":"SUM(G943:Q943)","v":1},{"$f":"F943-R943","v":0}]
[12]
[13,"A & G EXPENSES"]
[14,null,{"$f":"'FR-16(7)(v)-1 Functional'!C944","v":"WTD PROD DEMAND A&G EXP RATIOS"},"Internal",{"$f":"'FR-16(7)(v)-1 Functional'!E944","v":"A300"},1,{"$f":"ROUND(IF($F$525=0,0,G525/$F$525),5)","v":0},{"$f":"ROUND(IF($F$525=0,0,H525/$F$525),5)","v":0},0,0,0,{"$f":"ROUND(IF($F$525=0,0,L525/$F$525),5)","v":0},0,0,0,0,0,{"$f":"SUM(G946:Q946)","v":0},{"$f":"F946-R946","v":1}]
[15,null,{"$f":"'FR-16(7)(v)-1 Functional'!C945","v":"WTD PROD ENERGY A&G EXP RATIOS"},"Internal",{"$f":"'FR-16(7)(v)-1 Functional'!E945","v":"A302"},1,{"$f":"ROUND(IF($F$526=0,0,G526/$F$526),5)","v":0},{"$f":"ROUND(IF($F$526=0,0,H526/$F$526),5)","v":0},0,0,0,{"$f":"ROUND(IF($F$526=0,0,L526/$F$526),5)","v":0},0,0,0,0,0,0,1]
[16,null,{"$f":"'FR-16(7)(v)-1 Functional'!C946","v":"WTD TRANS A&G EXP RATIOS"},"Internal",{"$f":"'FR-16(7)(v)-1 Functional'!E946","v":"A304"},1,{"$f":"ROUND(IF($F$527=0,0,G527/$F$527),5)","v":0},{"$f":"ROUND(IF($F$527=0,0,H527/$F$527),5)","v":0},0,0,0,{"$f":"ROUND(IF($F$527=0,0,L527/$F$527),5)","v":0},0,0,0,0,0,0,1]
[17,null,{"$f":"'FR-16(7)(v)-1 Functional'!C947","v":"WTD DIST A&G EXP RATIOS"},"Internal",{"$f":"'FR-16(7)(v)-1 Functional'!E947","v":"A306"},1,{"$f":"ROUND(IF($F$528=0,0,G528/$F$528),5)","v":0.51568000000000003},{"$f":"ROUND(IF($F$528=0,0,H528/$F$528),5)","v":0.25317000000000001},1.09E-3,6.43E-3,6.9999999999999994E-5,{"$f":"ROUND(IF($F$528=0,0,L528/$F$528),5)","v":0.12282999999999999},7.9299999999999995E-2,4.3299999999999996E-3,1.123E-2,5.6899999999999997E-3,1.8000000000000001E-4,1,0]
[18,null,{"$f":"'FR-16(7)(v)-1 Functional'!C948","v":"WTD CUST ACCT A&G EXP RATIOS"},"Internal",{"$f":"'FR-16(7)(v)-1 Functional'!E948","v":"A308"},1,{"$f":"ROUND(IF($F$529=0,0,G529/$F$529),5)","v":0},{"$f":"ROUND(IF($F$529=0,0,H529/$F$529),5)","v":0},0,0,0,{"$f":"ROUND(IF($F$529=0,0,L529/$F$529),5)","v":0},0,0,0,0,0,0,1]
[19,null,{"$f":"'FR-16(7)(v)-1 Functional'!C949","v":"WTD CUST SERV & INFO A&G  EXP RATIOS"},"Internal",{"$f":"'FR-16(7)(v)-1 Functional'!E949","v":"A310"},1,{"$f":"ROUND(IF($F$530=0,0,G530/$F$530),5)","v":0},{"$f":"ROUND(IF($F$530=0,0,H530/$F$530),5)","v":0},0,0,0,{"$f":"ROUND(IF($F$530=0,0,L530/$F$530),5)","v":0},0,0,0,0,0,0,1]
[20,null,{"$f":"'FR-16(7)(v)-1 Functional'!C950","v":"WTD SALES A&G EXP RATIOS"},"Internal",{"$f":"'FR-16(7)(v)-1 Functional'!E950","v":"A312"},1,{"$f":"ROUND(IF($F$531=0,0,G531/$F$531),5)","v":0},{"$f":"ROUND(IF($F$531=0,0,H531/$F$531),5)","v":0},0,0,0,{"$f":"ROUND(IF($F$531=0,0,L531/$F$531),5)","v":0},0,0,0,0,0,0,1]
[21,null,{"$f":"'FR-16(7)(v)-1 Functional'!C951","v":"WTD A&G EXPENSE UNADJUSTED"},"Internal",{"$f":"'FR-16(7)(v)-1 Functional'!E951","v":"A315"},1,{"$f":"ROUND(IF($F$532=0,0,G532/$F$532),5)","v":0.51568000000000003},{"$f":"ROUND(IF($F$532=0,0,H532/$F$532),5)","v":0.25317000000000001},1.09E-3,6.43E-3,6.9999999999999994E-5,{"$f":"ROUND(IF($F$532=0,0,L532/$F$532),5)","v":0.12282999999999999},7.9299999999999995E-2,4.3299999999999996E-3,1.123E-2,5.6899999999999997E-3,1.8000000000000001E-4,1,0]
[22,null,{"$f":"'FR-16(7)(v)-1 Functional'!C952","v":"WTD A&G EXP RATIOS"},"Internal",{"$f":"'FR-16(7)(v)-1 Functional'!E952","v":"A357"},1,{"$f":"ROUND(IF($F$547=0,0,G547/$F$547),5)","v":0.51568000000000003},{"$f":"ROUND(IF($F$547=0,0,H547/$F$547),5)","v":0.25317000000000001},1.09E-3,6.43E-3,6.9999999999999994E-5,{"$f":"ROUND(IF($F$547=0,0,L547/$F$547),5)","v":0.12282999999999999},7.9299999999999995E-2,4.3299999999999996E-3,1.123E-2,5.6899999999999997E-3,1.8000000000000001E-4,1,0]
[23]
[24,"DEPRECIATION EXPENSES"]
[25,null,{"$f":"'FR-16(7)(v)-1 Functional'!C955","v":"WTD PRODUCTION DEPREC RATIOS"},"Internal",{"$f":"'FR-16(7)(v)-1 Functional'!E955","v":"P489"},1,{"$f":"ROUND(IF($F$563=0,0,G563/$F$563),5)","v":0},{"$f":"ROUND(IF($F$563=0,0,H563/$F$563),5)","v":0},0,0,0,{"$f":"ROUND(IF($F$563=0,0,L563/$F$563),5)","v":0},0,0,0,0,0,{"$f":"SUM(G957:Q957)","v":0},{"$f":"F957-R957","v":1},null,null,null,{"$f":"R957","v":0}]
[26,null,{"$f":"'FR-16(7)(v)-1 Functional'!C956","v":"WTD TRANS DEPREC RATIOS"},"Internal",{"$f":"'FR-16(7)(v)-1 Functional'!E956","v":"T489"},1,{"$f":"ROUND(IF($F$567=0,0,G567/$F$567),5)","v":0},{"$f":"ROUND(IF($F$567=0,0,H567/$F$567),5)","v":0},0,0,0,{"$f":"ROUND(IF($F$567=0,0,L567/$F$567),5)","v":0},0,0,0,0,0,0,1,null,null,null,{"$f":"R958","v":0}]
[27,null,{"$f":"'FR-16(7)(v)-1 Functional'!C957","v":"WTD DIST DEPREC RATIOS"},"Internal",{"$f":"'FR-16(7)(v)-1 Functional'!E957","v":"D489"},1,{"$f":"ROUND(IF($F$571=0,0,G571/$F$571),5)","v":0.46943000000000001},{"$f":"ROUND(IF($F$571=0,0,H571/$F$571),5)","v":0.27722999999999998},1.2899999999999999E-3,6.0800000000000003E-3,6.9999999999999994E-5,{"$f":"ROUND(IF($F$571=0,0,L571/$F$571),5)","v":0.14158000000000001},9.325E-2,4.6800000000000001E-3,0,6.28E-3,1.1E-4,1,0,null,null,null,{"$f":"R959","v":1}]
[28,null,{"$f":"'FR-16(7)(v)-1 Functional'!C958","v":"WTD GENERAL DEPREC EXP RATIOS"},"Internal",{"$f":"'FR-16(7)(v)-1 Functional'!E958","v":"G489"},1,{"$f":"ROUND(IF($F$575=0,0,G575/$F$575),5)","v":0.98787999999999998},{"$f":"ROUND(IF($F$575=0,0,H575/$F$575),5)","v":6.0000000000000001E-3},0,1.2E-4,0,{"$f":"ROUND(IF($F$575=0,0,L575/$F$575),5)","v":3.0000000000000001E-3},1.9599999999999999E-3,1.2E-4,9.2000000000000003E-4,0,0,1,0,null,null,null,{"$f":"R960","v":1}]
[29,null,{"$f":"'FR-16(7)(v)-1 Functional'!C959","v":"WTD COM & OTHER DEP EXP RATIOS"},"Internal",{"$f":"'FR-16(7)(v)-1 Functional'!E959","v":"C489"},1,{"$f":"ROUND(IF($F$579=0,0,G579/$F$579),5)","v":1},{"$f":"ROUND(IF($F$579=0,0,H579/$F$579),5)","v":0},0,0,0,{"$f":"ROUND(IF($F$579=0,0,L579/$F$579),5)","v":0},0,0,0,0,0,1,0]
[30,null,{"$f":"'FR-16(7)(v)-1 Functional'!C960","v":"WTD TOT DEPREC EXP RATIOS"},"Internal",{"$f":"'FR-16(7)(v)-1 Functional'!E960","v":"DE49"},1,{"$f":"ROUND(IF($F$582=0,0,G582/$F$582),5)","v":0.46899999999999997},{"$f":"ROUND(IF($F$582=0,0,H582/$F$582),5)","v":0.27745999999999998},1.2899999999999999E-3,6.0800000000000003E-3,6.9999999999999994E-5,{"$f":"ROUND(IF($F$582=0,0,L582/$F$582),5)","v":0.14169999999999999},9.3329999999999996E-2,4.6800000000000001E-3,0,6.2899999999999996E-3,1.1E-4,1.0000100000000001,-1.0000000000065512E-5,null,null,null,{"$f":"R962","v":1.0000100000000001}]
[31]
[32,"OTHER TAXES & MISC EXPENSES"]
[33,null,{"$f":"'FR-16(7)(v)-1 Functional'!C963","v":"WTD R. E. & PROP TAX RATIOS"},"Internal",{"$f":"'FR-16(7)(v)-1 Functional'!E963","v":"L529"},1,{"$f":"ROUND(IF($F$598=0,0,G598/$F$598),5)","v":0.46936},{"$f":"ROUND(IF($F$598=0,0,H598/$F$598),5)","v":0.27727000000000002},1.2899999999999999E-3,6.0800000000000003E-3,6.9999999999999994E-5,{"$f":"ROUND(IF($F$598=0,0,L598/$F$598),5)","v":0.1416},9.3259999999999996E-2,4.6800000000000001E-3,0,6.28E-3,1.1E-4,{"$f":"SUM(G965:Q965)","v":1},{"$f":"F965-R965","v":0},null,null,null,{"$f":"R965","v":1}]
[34,null,{"$f":"'FR-16(7)(v)-1 Functional'!C964","v":"WTD MISC TAX RATIOS"},"Internal",{"$f":"'FR-16(7)(v)-1 Functional'!E964","v":"L589"},1,{"$f":"ROUND(IF($F$605=0,0,G605/$F$605),5)","v":0.51566999999999996},{"$f":"ROUND(IF($F$605=0,0,H605/$F$605),5)","v":0.25316},1.1000000000000001E-3,6.43E-3,6.9999999999999994E-5,{"$f":"ROUND(IF($F$605=0,0,L605/$F$605),5)","v":0.12282999999999999},7.9289999999999999E-2,4.3299999999999996E-3,1.123E-2,5.6899999999999997E-3,1.9000000000000001E-4,{"$f":"SUM(G966:Q966)","v":0.99998999999999982},{"$f":"F966-R966","v":1.0000000000176534E-5},null,null,null,{"$f":"R966","v":0.99998999999999982}]
[35,null,{"$f":"'FR-16(7)(v)-1 Functional'!C965","v":"WTD OTHER TAX RATIOS"},"Internal",{"$f":"'FR-16(7)(v)-1 Functional'!E965","v":"L599"},1,{"$f":"ROUND(IF($F$612=0,0,G612/$F$612),5)","v":0.47060000000000002},{"$f":"ROUND(IF($F$612=0,0,H612/$F$612),5)","v":0.27655999999999997},1.2899999999999999E-3,6.0800000000000003E-3,6.9999999999999994E-5,{"$f":"ROUND(IF($F$612=0,0,L612/$F$612),5)","v":0.14105000000000001},9.2840000000000006E-2,4.6699999999999997E-3,4.8000000000000001E-4,6.2599999999999999E-3,1.1E-4,{"$f":"SUM(G967:Q967)","v":1.0000100000000001},{"$f":"F967-R967","v":-1.0000000000065512E-5},null,null,null,{"$f":"R967","v":1.0000100000000001}]
[36,null,{"$f":"'FR-16(7)(v)-1 Functional'!C966","v":"WTD OP EXP EX IT & REV RATIOS"},"Internal",{"$f":"'FR-16(7)(v)-1 Functional'!E966","v":"OP69"},1,{"$f":"ROUND(IF($F$618=0,0,G618/$F$618),5)","v":0.49415999999999999},{"$f":"ROUND(IF($F$618=0,0,H618/$F$618),5)","v":0.26435999999999998},1.1800000000000001E-3,6.2700000000000004E-3,6.9999999999999994E-5,{"$f":"ROUND(IF($F$618=0,0,L618/$F$618),5)","v":0.13153000000000001},8.5760000000000003E-2,4.4900000000000001E-3,6.0699999999999999E-3,5.96E-3,1.4999999999999999E-4,{"$f":"SUM(G968:Q968)","v":1},{"$f":"F968-R968","v":0},null,null,null,{"$f":"R968","v":1}]
[37]
[38,"TOTAL COST OF SERVICE"]
[39,null,{"$f":"'FR-16(7)(v)-1 Functional'!C969","v":"WTD TOTAL COST OF SERVICE"},"Internal",{"$f":"'FR-16(7)(v)-1 Functional'!E969","v":"CS09"},1,{"$f":"ROUND(IF($F$770=0,0,G770/$F$770),9)","v":0.48679649200000003},0.26819016800000001,1.2158049999999999E-3,6.2128469999999996E-3,7.0049999999999995E-5,0.13452238699999999,8.7993999000000003E-2,4.5499959999999997E-3,4.2552960000000004E-3,6.0573609999999998E-3,1.35599E-4,{"$f":"SUM(G971:Q971)","v":1},{"$f":"F971-R971","v":0},null,null,null,{"$f":"R971","v":1}]
[40]
[41,"WAGES & SALARIES (K600-K639)"]
[42,null,{"$f":"'FR-16(7)(v)-1 Functional'!C972","v":"WTD RATIOS"},"Internal",{"$f":"'FR-16(7)(v)-1 Functional'!E972","v":"K669"}]
[]
[]
[]
[]
[]
[]
[]
[]
[]
[1,"REVENUE NOT TO BE INCLUDED IN REVENUE TAX CALC"]
[2,null,"GOVERNMENTAL",null,{"$f":"'FR-16(7)(v)-1 Functional'!E983","v":"A357"},{"$f":"ROUND(0.06889*0,0)","v":0},{"$f":"F985-SUM(H985:Q985)","v":0},{"$f":"ROUND(F985*VLOOKUP(E985,ALLOCTABLE_Distr_Demand,$H$10,FALSE),0)","v":0},{"$f":"ROUND($F$985*VLOOKUP($E$985,ALLOCTABLE_Prod_Demand,$I$10,FALSE),0)","v":0},0,0,0,0,0,0,0,{"$f":"ROUND($F$985*VLOOKUP($E$985,ALLOCTABLE_Distr_Demand,$Q$10,FALSE),0)","v":0},{"$f":"SUM(G985:Q985)","v":0},{"$f":"F985-R985","v":0}]
[3,null,"INTERDEPARTMENTAL",null,{"$f":"'FR-16(7)(v)-1 Functional'!E984","v":"A357"},0,0,0,{"$f":"ROUND($F$986*VLOOKUP($E$986,ALLOCTABLE_Prod_Demand,$I$10,FALSE),0)","v":0},0,0,0,0,0,0,0,{"$f":"ROUND($F$986*VLOOKUP($E$986,ALLOCTABLE_Distr_Demand,$Q$10,FALSE),0)","v":0},0,0]
[4,null,"UNCOLLECTIBLE EXPENSE",null,{"$f":"'FR-16(7)(v)-1 Functional'!E985","v":"A357"},0,0,0,{"$f":"ROUND($F$987*VLOOKUP($E$987,ALLOCTABLE_Prod_Demand,$I$10,FALSE),0)","v":0},0,0,0,0,0,0,0,{"$f":"ROUND($F$987*VLOOKUP($E$987,ALLOCTABLE_Distr_Demand,$Q$10,FALSE),0)","v":0},0,0]
[5,null,"OTHER PROD GAS ASSC COS  489050"," ",{"$f":"'FR-16(7)(v)-1 Functional'!E986","v":"K301"},0,0,0,{"$f":"ROUND($F$988*VLOOKUP($E$988,ALLOCTABLE_Prod_Demand,$I$10,FALSE),0)","v":0},0,0,0,0,0,0,0,{"$f":"ROUND($F$988*VLOOKUP($E$988,ALLOCTABLE_Distr_Demand,$Q$10,FALSE),0)","v":0},0,0]
[6,null,"MISC. REV. - SALE OF MATERIAL",null,{"$f":"'FR-16(7)(v)-1 Functional'!E987","v":"A357"},0,0,0,{"$f":"ROUND($F$989*VLOOKUP($E$989,ALLOCTABLE_Prod_Demand,$I$10,FALSE),0)","v":0},0,0,0,0,0,0,0,{"$f":"ROUND($F$989*VLOOKUP($E$989,ALLOCTABLE_Distr_Demand,$Q$10,FALSE),0)","v":0},0,0]
[7,null,"RENT ASSOC. COS  49302,04,05,06,07,08,11 & 50"," ",{"$f":"'FR-16(7)(v)-1 Functional'!E988","v":"NP29"},0,0,0,{"$f":"ROUND($F$990*VLOOKUP($E$990,ALLOCTABLE_Prod_Demand,$I$10,FALSE),0)","v":0},0,0,0,0,0,0,0,{"$f":"ROUND($F$990*VLOOKUP($E$990,ALLOCTABLE_Distr_Demand,$Q$10,FALSE),0)","v":0},0,0]
[8,null,"TOTAL","REXC",null,{"$f":"SUM(F984:F990)","v":0},0,0,0,{"$f":"SUM(J984:J990)","v":0},0,0,0,0,0,0,0,0,0]
[]
[]
[]
[]
[]
["DO NOT FILE THIS PAGE"]
[]
[{"$f":"co_name","v":"DUKE ENERGY KENTUCKY, INC."},null,null,null,null,null,null,null,null,null,null,null,null,null,null,null,null,{"$f":"R1","v":"FR-16(7)(v)-11"}]
[{"$f":"$A$2","v":"DISTRIBUTION DEMAND ALLOCATED - ELECTRIC COST OF SERVICE"},null,null,null,null,null,null,null,null,null,null,null,null,null,null,null,null,{"$f":"R2","v":"WITNESS RESPONSIBLE:"}]
[{"$f":"case_name","v":"CASE NO: 2019-00271"},null,null,null,null,null,null,null,null,null,null,null,null,null,null,null,null,{"$f":"Witness","v":"JAMES E. ZIOLKOWSKI"}]
[{"$f":"data_filing","v":"DATA: 12 MONTHS ACTUAL  & 0 MONTHS ESTIMATED"},null,null,null,null,null,null,null,null,null,null,null,null,null,null,null,null,{"$f":"\"PAGE \"&Pages&\" OF \"&Pages","v":"PAGE 18 OF 18"}]
[{"$f":"type","v":"TYPE OF FILING: \"X\" ORIGINAL   UPDATED    REVISED  "}]
[]
[null,null,null,null,null,{"$f":"F$7","v":"TOTAL"},null,{"$f":"H$7","v":"DS"},{"$f":"I$7","v":"GSFL"},{"$f":"J$7","v":"EH"},{"$f":"K$7","v":"SP"},"DT SEC","DT PRI","DP","TT",null,"OTHER"]
["LINE",null,null,null,null,{"$f":"F$8","v":"DISTRIBUTION"},{"$f":"G$8","v":"RS"},{"$f":"H$8","v":"SECONDARY"},{"$f":"I$8","v":"SECONDARY"},{"$f":"J$8","v":"SECONDARY"},{"$f":"K$8","v":"SECONDARY"},"SECONDARY","PRIMARY","PRIMARY","TRANSMISSION","LT","WATER",{"$f":"R8","v":"TOTAL"},"ALL"]
["NO.","INCOME TAX BASED ON REVENUES",null,"ALLO",null,{"$f":"F$9","v":"DEMAND"},{"$f":"G$9","v":"RESIDENTIAL"},{"$f":"H$9","v":"DISTRIBUTION"},{"$f":"I$9","v":"DISTRIBUTION"},{"$f":"J$9","v":"DISTRIBUTION"},{"$f":"K$9","v":"DISTRIBUTION"},"DISTRIBUTION","DISTRIBUTION","DISTRIBUTION","TIME OF DAY","LIGHTING","PUMPING",{"$f":"R9","v":"AT ISSUE"},"OTHER"]
[null,null,"Schedule 13",null,null,null,{"$f":"G$10","v":3},{"$f":"H$10","v":4},{"$f":"I$10","v":5},{"$f":"J$10","v":6},{"$f":"K$10","v":7},8,9,10,11,12,13,null," "]
[1,"NET INCOME COMPUTATION"]
[2,null,{"$f":"'FR-16(7)(v)-1 Functional'!C1008","v":"TOTAL ELECTRIC COST OF SERVICE"},null,null,{"$f":"F770","v":48422245},23571779,12986370,58872,{"$f":"J770","v":300840},3392,6513876,4260867,220321,206051,293311,6566,48422245,0]
[3,null,{"$f":"'FR-16(7)(v)-1 Functional'!C1009","v":"TOTAL OTHER OPERATING REVENUES"},null,null,{"$f":"F750","v":1158127},{"$f":"G750","v":543660},{"$f":"H750","v":321068},{"$f":"I750","v":1494},{"$f":"J750","v":7042},80,163967,107996,5420,0,7273,{"$f":"$Q$750","v":127},{"$f":"R750","v":1158127},{"$f":"S750","v":0}]
[4,null,{"$f":"'FR-16(7)(v)-1 Functional'!C1010","v":"  TOTAL ELECTRIC REVENUE"},null,null,{"$f":"SUM(F1009:F1011)","v":49580372},24115439,13307438,60366,{"$f":"SUM(J1009:J1011)","v":307882},3472,6677843,4368863,225741,206051,300584,6693,49580372,0]
[5,null,{"$f":"'FR-16(7)(v)-1 Functional'!C1011","v":"TOTAL OP EXP EX INC & REV TAX"},null,null,{"$f":"-F618","v":-31136818},{"$f":"-G618","v":-15386666},{"$f":"-H618","v":-8231176},{"$f":"-I618","v":-36873},{"$f":"-J618","v":-195223},-2181,-4095280,-2670350,-139947,-188881,-185680,{"$f":"-$Q$618","v":-4561},{"$f":"-R618","v":-31136818},{"$f":"-S618","v":0}]
[6,null,{"$f":"'FR-16(7)(v)-1 Functional'!C1012","v":"FIRM SERVICE REVENUE TAX"},null,null,{"$f":"-ROUND(F817*F1010,0)","v":0},0,0,0,0,0,0,0,0,0,0,0,{"$f":"SUM(G1014:Q1014)","v":0},{"$f":"-ROUND('FR-16(7)(v)-1 Functional'!K817*S1010,0)","v":0}]
[7,null,{"$f":"'FR-16(7)(v)-1 Functional'!C1013","v":"  NET INCOME"},null,null,{"$f":"SUM(F1012:F1014)","v":18443554},{"$f":"SUM(G1012:G1014)","v":8728773},{"$f":"SUM(H1012:H1014)","v":5076262},{"$f":"SUM(I1012:I1014)","v":23493},{"$f":"SUM(J1012:J1014)","v":112659},1291,2582563,1698513,85794,17170,114904,{"$f":"SUM(Q1012:Q1014)","v":2132},{"$f":"SUM(G1015:Q1015)","v":18443554},{"$f":"SUM(S1012:S1014)","v":0}]
[8]
[9,"ADJUSTMENTS TO NET INCOME"]
[10,null,{"$f":"'FR-16(7)(v)-1 Functional'!C1016","v":"TOTAL INTEREST EXPENSE"},null,null,{"$f":"-F633","v":-5097300},{"$f":"-G633","v":-2392825},{"$f":"-H633","v":-1413124},{"$f":"-I633","v":-6576},{"$f":"-J633","v":-30992},-357,-721625,-475272,-23855,-102,-32011,{"$f":"-$Q$633","v":-561},{"$f":"-R633","v":-5097300},{"$f":"-S633","v":0}]
[11,null,{"$f":"'FR-16(7)(v)-1 Functional'!C1017","v":"TOTAL OTHER DEDUCTIONS"},null,null,{"$f":"-F639","v":-12574832},{"$f":"-G639","v":-5894579},{"$f":"-H639","v":-3490516},{"$f":"-I639","v":-16235},{"$f":"-J639","v":-76433},-881,-1783021,-1174478,-58872,695,-79133,{"$f":"-$Q$639","v":-1379},{"$f":"-R639","v":-12574832},{"$f":"-S639","v":0}]
[12,null,{"$f":"'FR-16(7)(v)-1 Functional'!C1018","v":"  PRELIMINARY TAXABLE INCOME"},null,null,{"$f":"SUM(F1017:F1019)+F1015","v":771422},{"$f":"SUM(G1017:G1019)+G1015","v":441369},{"$f":"SUM(H1017:H1019)+H1015","v":172622},{"$f":"SUM(I1017:I1019)+I1015","v":682},{"$f":"SUM(J1017:J1019)+J1015","v":5234},53,77917,48763,3067,17763,3760,{"$f":"SUM(Q1017:Q1019)+Q1015","v":192},{"$f":"SUM(G1020:Q1020)","v":771422},{"$f":"SUM(S1017:S1019)+S1015","v":0}]
[13]
[14,"INCOME TAX BASED ON REVENUES"]
[15,"FEDERAL INCOME TAX COMPUTATION"]
[16,null,{"$f":"'FR-16(7)(v)-1 Functional'!C1022","v":"PRELIMINARY TAXABLE INCOME"},null,null,{"$f":"F1020","v":771422},441369,172622,682,{"$f":"J1020","v":5234},53,77917,48763,3067,17763,3760,192,771422,0]
[17,null,{"$f":"'FR-16(7)(v)-1 Functional'!C1023","v":"  NET FEDERAL TAXABLE INCOME"},null,null,{"$f":"SUM(F1024:F1024)","v":771422},441369,172622,682,{"$f":"SUM(J1024:J1024)","v":5234},53,77917,48763,3067,17763,3760,192,771422,0]
[18,null,{"$f":"'FR-16(7)(v)-1 Functional'!C1024","v":"  FEDERAL INCOME TAX RATE"},null,null,{"$f":"F815","v":0.21},{"$f":"G815","v":0.21},{"$f":"H815","v":0.21},{"$f":"I815","v":0.21},{"$f":"J815","v":0.21},0.21,0.21,0.21,0.21,0.21,0.21,{"$f":"Q815","v":0.21},null,{"$f":"'FR-16(7)(v)-1 Functional'!K815","v":0.21}]
[19,null,{"$f":"'FR-16(7)(v)-1 Functional'!C1025","v":"PRELIMINARY FIT = FI01 * K190"},null,null,{"$f":"ROUND(F1026*F1025,0)","v":161999},{"$f":"ROUND(G1026*G1025,0)","v":92687},{"$f":"ROUND(H1026*H1025,0)","v":36251},{"$f":"ROUND(I1026*I1025,0)","v":143},{"$f":"ROUND(J1026*J1025,0)","v":1099},11,16363,10240,644,3730,790,{"$f":"ROUND(Q1026*Q1025,0)","v":40},{"$f":"SUM(G1027:Q1027)","v":161998},{"$f":"ROUND(S1026*S1025,0)","v":0}]
[20,null,{"$f":"'FR-16(7)(v)-1 Functional'!C1026","v":"TOTAL FED DEF IT (410 & 411)"},null,null,{"$f":"F649","v":565235},{"$f":"G649","v":291481},{"$f":"H649","v":143100},{"$f":"I649","v":616},{"$f":"J649","v":3635},40,69427,44823,2448,6348,3216,{"$f":"$Q$649","v":101},{"$f":"R649","v":565235},{"$f":"S649","v":0}]
[21,null,{"$f":"'FR-16(7)(v)-1 Functional'!C1027","v":"TOTAL AMORTIZED ITC"},null,null,{"$f":"-F653","v":-123},{"$f":"-G653","v":-58},{"$f":"-H653","v":-34},{"$f":"-I653","v":0},{"$f":"-J653","v":-1},0,-17,-11,-1,0,-1,{"$f":"-$Q$653","v":0},{"$f":"-R653","v":-123},{"$f":"-S653","v":0}]
[22,null,{"$f":"'FR-16(7)(v)-1 Functional'!C1028","v":"  NET FED INC TAX ALLOWABLE"},null,null,{"$f":"SUM(F1027:F1029)","v":727111},384110,179317,759,{"$f":"SUM(J1027:J1029)","v":4733},51,85773,55052,3091,10078,4005,141,727110,0]
[23]
[24,"FEDERAL INCOME TAX PAYABLE"]
[25,null,{"$f":"'FR-16(7)(v)-1 Functional'!C1031","v":"PRELIM FIT"},null,null,{"$f":"F1027","v":161999},92687,36251,143,{"$f":"J1027","v":1099},11,16363,10240,644,3730,790,40,161998,0]
[26,null,{"$f":"'FR-16(7)(v)-1 Functional'!C1032","v":"TEST YEAR INV TAX CREDIT"},null,null,{"$f":"-F658","v":0},{"$f":"-G658","v":0},{"$f":"-H658","v":0},{"$f":"-I658","v":0},{"$f":"-J658","v":0},0,0,0,0,0,0,{"$f":"-$Q$658","v":0},{"$f":"-R658","v":0},{"$f":"-S658","v":0}]
[27,null,{"$f":"'FR-16(7)(v)-1 Functional'!C1033","v":"  FED INC TAX PAYABLE"},null,null,{"$f":"SUM(F1032:F1034)","v":161999},92687,36251,143,{"$f":"SUM(J1032:J1034)","v":1099},11,16363,10240,644,3730,790,40,161998,0]
[28]
[29,"PRELIMINARY SUMMARY"]
[30,null,{"$f":"'FR-16(7)(v)-1 Functional'!C1036","v":"NET INCOME"},null,null,{"$f":"F1015","v":18443554},8728773,5076262,23493,{"$f":"J1015","v":112659},1291,2582563,1698513,85794,17170,114904,2132,18443554,0]
[31,null,{"$f":"'FR-16(7)(v)-1 Functional'!C1037","v":"NET FED INC TAX ALLOWABLE"},null,null,{"$f":"-F1030","v":-727111},-384110,-179317,-759,{"$f":"-J1030","v":-4733},-51,-85773,-55052,-3091,-10078,-4005,-141,-727110,0]
[32,null,{"$f":"'FR-16(7)(v)-1 Functional'!C1038","v":"  OVERALL RETURN EARNED"},null,null,{"$f":"SUM(F1037:F1039)","v":17716443},8344663,4896945,22734,{"$f":"SUM(J1037:J1039)","v":107926},1240,2496790,1643461,82703,7092,110899,1991,17716444,0]
[33]
[34,null,{"$f":"'FR-16(7)(v)-1 Functional'!C1040","v":"  RATE OF RETURN EARNED"},null,null,{"$f":"IF(F426=0,0,ROUND(F1040/F426,5))","v":6.9260000000000002E-2},6.9489999999999996E-2,6.9059999999999996E-2,6.8900000000000003E-2,6.9379999999999997E-2,6.923E-2,6.8949999999999997E-2,6.8909999999999999E-2,6.9080000000000003E-2,1.2885200000000001,6.9040000000000004E-2,7.0660000000000001E-2,6.9260000000000002E-2,0]

{"sheet":"FR-16(7)(v)-12 DIST Energy","index":15,"n_rows":1042,"n_cols":23,"rows_kept":1042,"cut":false,"hidden":false,"merged":[]}
[{"$f":"co_name","v":"DUKE ENERGY KENTUCKY, INC."},null,null,null,null,null,null,null,null,"FR-16(7)(v)-10",null,null,null,null,null,null,null,"FR-16(7)(v)-12"]
[{"$f":"\"DISTRIBUTION \"&F9&\" ALLOCATED - ELECTRIC COST OF SERVICE\"","v":"DISTRIBUTION ENERGY ALLOCATED - ELECTRIC COST OF SERVICE"},null,null,null,null,null,null,null,null,null,null,null,null,null,null,null,null,"WITNESS RESPONSIBLE:"]
[{"$f":"case_name","v":"CASE NO: 2019-00271"},null,null,null,null,null,null,null,null,null,null,null,null,null,null,null,null,{"$f":"Witness","v":"JAMES E. ZIOLKOWSKI"}]
[{"$f":"data_filing","v":"DATA: 12 MONTHS ACTUAL  & 0 MONTHS ESTIMATED"},null,null,null,null,null,null,null,null,null,null,null,null,null,null,null,null,{"$f":"\"PAGE \"&Pages-17&\" OF \"&Pages","v":"PAGE 1 OF 18"}]
[{"$f":"type","v":"TYPE OF FILING: \"X\" ORIGINAL   UPDATED    REVISED  "}]
[]
[null,null,null,null,null,{"$f":"'FR-16(7)(v)-3 PROD Demand'!F7","v":"TOTAL"},null,{"$f":"'FR-16(7)(v)-3 PROD Demand'!H7","v":"DS"},{"$f":"'FR-16(7)(v)-3 PROD Demand'!I7","v":"GSFL"},{"$f":"'FR-16(7)(v)-3 PROD Demand'!J7","v":"EH"},{"$f":"'FR-16(7)(v)-3 PROD Demand'!K7","v":"SP"},{"$f":"'FR-16(7)(v)-3 PROD Demand'!L7","v":"DT SEC"},{"$f":"'FR-16(7)(v)-3 PROD Demand'!M7","v":"DT PRI"},{"$f":"'FR-16(7)(v)-3 PROD Demand'!N7","v":"DP"},{"$f":"'FR-16(7)(v)-3 PROD Demand'!O7","v":"TT"},null,{"$f":"'FR-16(7)(v)-3 PROD Demand'!Q7","v":"OTHER"}]
["LINE",null,null,null,null,{"$f":"'FR-16(7)(v)-10 DIST Classified'!F9","v":"DISTRIBUTION"},{"$f":"'FR-16(7)(v)-3 PROD Demand'!G8","v":"RS"},{"$f":"'FR-16(7)(v)-3 PROD Demand'!H8","v":"SECONDARY"},{"$f":"'FR-16(7)(v)-3 PROD Demand'!I8","v":"SECONDARY"},{"$f":"'FR-16(7)(v)-3 PROD Demand'!J8","v":"SECONDARY"},{"$f":"'FR-16(7)(v)-3 PROD Demand'!K8","v":"SECONDARY"},{"$f":"'FR-16(7)(v)-3 PROD Demand'!L8","v":"SECONDARY"},{"$f":"'FR-16(7)(v)-3 PROD Demand'!M8","v":"PRIMARY"},{"$f":"'FR-16(7)(v)-3 PROD Demand'!N8","v":"PRIMARY"},{"$f":"'FR-16(7)(v)-3 PROD Demand'!O8","v":"TRANSMISSION"},{"$f":"'FR-16(7)(v)-3 PROD Demand'!P8","v":"LT"},{"$f":"'FR-16(7)(v)-3 PROD Demand'!Q8","v":"WATER"},{"$f":"'FR-16(7)(v)-3 PROD Demand'!R8","v":"TOTAL"},{"$f":"'FR-16(7)(v)-3 PROD Demand'!S8","v":"ALL"}]
["NO.","SUMMARY OF RESULTS",null,"ALLO",null,{"$f":"'FR-16(7)(v)-10 DIST Classified'!H9","v":"ENERGY"},{"$f":"'FR-16(7)(v)-3 PROD Demand'!G9","v":"RESIDENTIAL"},{"$f":"'FR-16(7)(v)-3 PROD Demand'!H9","v":"DISTRIBUTION"},{"$f":"'FR-16(7)(v)-3 PROD Demand'!I9","v":"DISTRIBUTION"},{"$f":"'FR-16(7)(v)-3 PROD Demand'!J9","v":"DISTRIBUTION"},{"$f":"'FR-16(7)(v)-3 PROD Demand'!K9","v":"DISTRIBUTION"},{"$f":"'FR-16(7)(v)-3 PROD Demand'!L9","v":"DISTRIBUTION"},{"$f":"'FR-16(7)(v)-3 PROD Demand'!M9","v":"DISTRIBUTION"},{"$f":"'FR-16(7)(v)-3 PROD Demand'!N9","v":"DISTRIBUTION"},{"$f":"'FR-16(7)(v)-3 PROD Demand'!O9","v":"TIME OF DAY"},{"$f":"'FR-16(7)(v)-3 PROD Demand'!P9","v":"LIGHTING"},{"$f":"'FR-16(7)(v)-3 PROD Demand'!Q9","v":"PUMPING"},{"$f":"'FR-16(7)(v)-3 PROD Demand'!R9","v":"AT ISSUE"},{"$f":"'FR-16(7)(v)-3 PROD Demand'!S9","v":"OTHER"}]
[null,null,"Schedule 1",null,null,null,3,4,5,6,7,8,9,10,11,12,13]
[1,"NET INCOME COMPUTATION"]
[2,null,{"$f":"'FR-16(7)(v)-1 Functional'!C12","v":"GROSS ELECTRIC PLANT IN SERVICE"},null,null,{"$f":"F123","v":0},{"$f":"G123","v":0},{"$f":"H123","v":0},{"$f":"I123","v":0},{"$f":"J123","v":0},0,0,0,0,0,0,{"$f":"Q123","v":0},{"$f":"SUM(G12:Q12)","v":0},{"$f":"F12-R12","v":0}]
[3,null,{"$f":"'FR-16(7)(v)-1 Functional'!C13","v":"TOTAL DEPRECIATION RESERVE"},null,null,{"$f":"-F200","v":0},{"$f":"-G200","v":0},{"$f":"-H200","v":0},{"$f":"-I200","v":0},{"$f":"-J200","v":0},0,0,0,0,0,0,{"$f":"-Q200","v":0},{"$f":"SUM(G13:Q13)","v":0},{"$f":"F13-R13","v":0}]
[4,null,{"$f":"'FR-16(7)(v)-1 Functional'!C14","v":"TOTAL RATE BASE ADJUSTMENTS"},null,null,{"$f":"F421","v":0},{"$f":"G421","v":0},{"$f":"H421","v":0},{"$f":"I421","v":0},{"$f":"J421","v":0},0,0,0,0,0,0,{"$f":"Q421","v":0},{"$f":"SUM(G14:Q14)","v":0},{"$f":"F14-R14","v":0}]
[5,null,{"$f":"'FR-16(7)(v)-1 Functional'!C15","v":"  TOTAL RATE BASE"},null,null,{"$f":"SUM(F12:F14)","v":0},{"$f":"SUM(G12:G14)","v":0},{"$f":"SUM(H12:H14)","v":0},{"$f":"SUM(I12:I14)","v":0},{"$f":"SUM(J12:J14)","v":0},0,0,0,0,0,0,{"$f":"SUM(Q12:Q14)","v":0},{"$f":"SUM(R12:R14)","v":0},{"$f":"F15-R15","v":0}]
[6]
[7,"OPERATING EXPENSES"]
[8,null,{"$f":"'FR-16(7)(v)-1 Functional'!C18","v":"TOTAL O&M EXPENSE"},null,null,{"$f":"F549","v":0},{"$f":"G549","v":0},{"$f":"H549","v":0},{"$f":"I549","v":0},{"$f":"J549","v":0},0,0,0,0,0,0,{"$f":"Q549","v":0},{"$f":"SUM(G18:Q18)","v":0},{"$f":"F18-R18","v":0}]
[9,null,{"$f":"'FR-16(7)(v)-1 Functional'!C19","v":"TOTAL DEPRECIATION EXPENSE"},null,null,{"$f":"F582","v":0},{"$f":"G582","v":0},{"$f":"H582","v":0},{"$f":"I582","v":0},{"$f":"J582","v":0},0,0,0,0,0,0,{"$f":"Q582","v":0},{"$f":"SUM(G19:Q19)","v":0},0]
[10,null,{"$f":"'FR-16(7)(v)-1 Functional'!C20","v":"TOTAL OTHER TAX & MISC EXPENSE"},null,null,{"$f":"F612","v":0},{"$f":"G612","v":0},{"$f":"H612","v":0},{"$f":"I612","v":0},{"$f":"J612","v":0},0,0,0,0,0,0,{"$f":"$Q$612","v":0},{"$f":"SUM(G20:Q20)","v":0},0]
[11,null,{"$f":"'FR-16(7)(v)-1 Functional'!C21","v":"  TOTAL OP EXP EXCLUDING INC & REV TAX"},null,null,{"$f":"SUM(F17:F20)","v":0},0,0,0,{"$f":"SUM(J17:J20)","v":0},0,0,0,0,0,0,0,0,0]
[12,null,{"$f":"'FR-16(7)(v)-1 Functional'!C22","v":"NET FED INCOME TAX EXP ALLOWABLE"},null,null,{"$f":"F676","v":0},{"$f":"G676","v":0},{"$f":"H676","v":0},{"$f":"I676","v":0},{"$f":"J676","v":0},0,0,0,0,0,0,{"$f":"$Q$676","v":0},{"$f":"SUM(G22:Q22)","v":0},0]
[13,null,"NET STATE INCOME TAX EXP ALLOWABLE",null,null,{"$f":"F722","v":0},{"$f":"G722","v":0},0,0,0,0,0,0,0,0,0,0,{"$f":"SUM(G23:Q23)","v":0},0]
[14,null,"RESERVED",{"$f":"'FR-16(7)(v)-1 Functional'!D24","v":"CW29"},null,{"$f":"'FR-16(7)(v)-10 DIST Classified'!H24","v":0},{"$f":"F24-SUM(H24:Q24)","v":0},{"$f":"ROUND(F24*VLOOKUP(D73,ALLOCTABLE_Distr_Energy,$H$10,FALSE),0)","v":0},{"$f":"ROUND(F24*VLOOKUP(D24,ALLOCTABLE_Distr_Energy,$I$10,FALSE),0)","v":0},{"$f":"ROUND(F24*VLOOKUP(D24,ALLOCTABLE_Distr_Energy,$J$10,FALSE),0)","v":0},{"$f":"ROUND(F24*VLOOKUP(D24,ALLOCTABLE_Distr_Energy,$K$10,FALSE),0)","v":0},{"$f":"ROUND(F24*VLOOKUP(D24,ALLOCTABLE_Distr_Energy,$L$10,FALSE),0)","v":0},{"$f":"ROUND(F24*VLOOKUP(D24,ALLOCTABLE_Distr_Energy,$M$10,FALSE),0)","v":0},{"$f":"ROUND(F24*VLOOKUP(D24,ALLOCTABLE_Distr_Energy,$N$10,FALSE),0)","v":0},{"$f":"ROUND(F24*VLOOKUP(D24,ALLOCTABLE_Distr_Energy,$O$10,FALSE),0)","v":0},{"$f":"ROUND(F24*VLOOKUP(D24,ALLOCTABLE_Distr_Energy,$P$10,FALSE),0)","v":0},{"$f":"ROUND(F24*VLOOKUP(D24,ALLOCTABLE_Distr_Energy,$Q$10,FALSE),0)","v":0},{"$f":"SUM(G24:Q24)","v":0},{"$f":"F24-R24","v":0}]
[15,null,{"$f":"'FR-16(7)(v)-1 Functional'!C25","v":"REVENUE TAX"},null,null,{"$f":"F767","v":0},{"$f":"G767","v":0},{"$f":"H767","v":0},{"$f":"I767","v":0},{"$f":"J767","v":0},0,0,0,0,0,0,{"$f":"Q767","v":0},{"$f":"SUM(G25:Q25)","v":0},0]
[16,null,{"$f":"'FR-16(7)(v)-1 Functional'!C26","v":"  TOTAL OPERATING EXPENSE"},null,null,{"$f":"SUM(F21:F25)","v":0},0,0,0,{"$f":"SUM(J21:J25)","v":0},0,0,0,0,0,0,0,0,0]
[17]
[18,"RETURN ON RATE BASE",null,null,null,{"$f":"F433","v":0},0,0,0,0,0,0,0,0,0,0,0,{"$f":"SUM(G28:Q28)","v":0},{"$f":"F28-R28","v":0}]
[19,"TOTAL OTHER OPERATING REVENUES",null,null,null,{"$f":"-F750","v":0},{"$f":"-G750","v":0},{"$f":"-H750","v":0},{"$f":"-I750","v":0},{"$f":"-J750","v":0},0,0,0,0,0,0,{"$f":"-$Q$750","v":0},{"$f":"SUM(G29:Q29)","v":0},0]
[20,null,{"$f":"'FR-16(7)(v)-1 Functional'!C30","v":"TOTAL ELECTRIC COST OF SERVICE"},null,null,{"$f":"SUM(F26:F29)","v":0},0,0,0,{"$f":"SUM(J26:J29)","v":0},0,0,0,0,0,0,0,0,0]
[21,"ADJUSTMENT FOR INTERCLASS SUBSIDIZATION",null,{"$f":"1-'WP FR-16(7)(v) Rate Incr'!I11","v":0.95},null,null,null,null,null,null,null,null,null,null,null,null,null,null,0]
[22,{"$f":"'FR-16(7)(v)-1 Functional'!$B$32","v":"REQUESTED REVENUES (COST OF SERVICE ADJUSTED FOR SUBSIDIES)"},null,null,null,{"$f":"F31+F30","v":0},0,0,0,{"$f":"J31+J30","v":0},0,0,0,0,0,0,0,0,0]
[23,"PROPOSED REVENUES",null,null,null,{"$f":"F870","v":0},0,0,0,{"$f":"J870","v":0},0,0,0,0,0,0,0,0,0]
[24,"DIFFERENCE (REQUESTED LESS PROPOSED)",null,null,null,{"$f":"F32-F33","v":0},{"$f":"G32-G33","v":0},0,0,{"$f":"J32-J33","v":0},0,0,0,0,0,0,0,0,0]
[25]
[26,"TOTAL RETURN EARNED",null,null,null,{"$f":"F777+F28","v":0},{"$f":"G777+G28","v":0},{"$f":"H777+H28","v":0},{"$f":"I777+I28","v":0},{"$f":"J777+J28","v":0},0,0,0,0,0,0,{"$f":"Q777+Q28","v":0},{"$f":"R777+R28","v":0},{"$f":"F36-R36","v":0}]
[27,"RATE OF RETURN EARNED",null,null,null,{"$f":"IF(F431=0,0,ROUND(F36/F431,5))","v":0},0,0,0,0,0,0,0,0,0,0,0,0,0]
[28,"TOTAL RATE OF RETURN ALLOWABLE",null,null,null,{"$f":"$F$811","v":6.7100000000000007E-2},{"$f":"$F$811","v":6.7100000000000007E-2},6.7100000000000007E-2,6.7100000000000007E-2,6.7100000000000007E-2,6.7100000000000007E-2,6.7100000000000007E-2,6.7100000000000007E-2,6.7100000000000007E-2,6.7100000000000007E-2,6.7100000000000007E-2,6.7100000000000007E-2,{"$f":"F811","v":6.7100000000000007E-2},{"$f":"F811","v":6.7100000000000007E-2},null,null,"Not Part of print range"]
[29,"RETURN EARNED ON COMMON EQUITY",null,null,null,{"$f":"IF(Equity=0,0,(F37-$F$806-$F$807-$F$809)*TotalCap/Equity)","v":-4.1049574113445099E-2},-4.1049574113445099E-2,-4.1049574113445099E-2,-4.1049574113445099E-2,-4.1049574113445099E-2,-4.1049574113445099E-2,-4.1049574113445099E-2,-4.1049574113445099E-2,-4.1049574113445099E-2,-4.1049574113445099E-2,-4.1049574113445099E-2,-4.1049574113445099E-2,{"$f":"IF(Equity=0,0,(R37-F806-F807-F809)*TotalCap/Equity)","v":-4.1049574113445099E-2},{"$f":"IF(Equity=0,0,(S37-F806-F807-F809)*TotalCap/Equity)","v":-4.1049574113445099E-2},null,null,"Not Filed"]
[30,"ALLOWED RETURN ON COMMON EQUITY",null,null,null,{"$f":"IF(Equity=0,0,(F38-$F$806-$F$807-$F$809)*TotalCap/Equity)","v":9.8062871493229981E-2},9.8062871493229981E-2,9.8062871493229981E-2,9.8062871493229981E-2,9.8062871493229981E-2,9.8062871493229981E-2,9.8062871493229981E-2,9.8062871493229981E-2,9.8062871493229981E-2,9.8062871493229981E-2,9.8062871493229981E-2,9.8062871493229981E-2,{"$f":"IF(Equity=0,0,(R38-F806-F807-F809)*TotalCap/Equity)","v":9.8062871493229981E-2},{"$f":"IF(Equity=0,0,(S38-F806-F807-F809)*TotalCap/Equity)","v":9.8062871493229981E-2}]
[31,null,null,null,null," "]
[32,"PRESENT REVENUES",null,null,null,{"$f":"F869","v":0},0,0,0,{"$f":"J869","v":0},0,0,0,0,0,0,0,0,{"$f":"F42-R42","v":0}]
[33,"REVENUE INCREASE JUSTIFIED",null,null,null,{"$f":"F30-F42","v":0},0,0,0,{"$f":"J30-J42","v":0},0,0,0,0,0,0,0,0,0]
[34,null,"PER UNIT PRES REV",null,null,{"$f":"IF(F42=0,0,ROUND(F43/F42,5))","v":0},0,0,0,{"$f":"IF(J42=0,0,ROUND(J43/J42,5))","v":0},0,0,0,0,0,0,0,0,0]
[35,"REVENUE INCREASE REQUESTED",null,null,null,{"$f":"F33-F42","v":0},0,0,0,{"$f":"J33-J42","v":0},0,0,0,0,0,0,0,0,0]
[36,null,"PER UNIT PRES REV",null,null,{"$f":"IF(F42=0,0,ROUND(F45/F42,5))","v":0},0,0,0,{"$f":"IF(J42=0,0,ROUND(J45/J42,5))","v":0},0,0,0,0,0,0,0,0,0]
[]
[{"$f":"co_name","v":"DUKE ENERGY KENTUCKY, INC."},null,null,null,null,null,null,null,null,null,null,null,null,null,null,null,null,{"$f":"R1","v":"FR-16(7)(v)-12"}]
[{"$f":"$A$2","v":"DISTRIBUTION ENERGY ALLOCATED - ELECTRIC COST OF SERVICE"},null,null,null,null,null,null,null,null,null,null,null,null,null,null,null,null,{"$f":"R2","v":"WITNESS RESPONSIBLE:"}]
[{"$f":"case_name","v":"CASE NO: 2019-00271"},null,null,null,null,null,null,null,null,null,null,null,null,null,null,null,null,{"$f":"Witness","v":"JAMES E. ZIOLKOWSKI"}]
[{"$f":"data_filing","v":"DATA: 12 MONTHS ACTUAL  & 0 MONTHS ESTIMATED"},null,null,null,null,null,null,null,null,null,null,null,null,null,null,null,null,{"$f":"\"PAGE \"&Pages-16&\" OF \"&Pages","v":"PAGE 2 OF 18"}]
[{"$f":"type","v":"TYPE OF FILING: \"X\" ORIGINAL   UPDATED    REVISED  "}]
[]
[null,null,null,null,null,{"$f":"F$7","v":"TOTAL"},null,{"$f":"H$7","v":"DS"},{"$f":"I$7","v":"GSFL"},{"$f":"J$7","v":"EH"},{"$f":"K$7","v":"SP"},"DT SEC","DT PRI","DP","TT",null,"OTHER"]
["LINE",null,null,null,null,{"$f":"F$8","v":"DISTRIBUTION"},{"$f":"G$8","v":"RS"},{"$f":"H$8","v":"SECONDARY"},{"$f":"I$8","v":"SECONDARY"},{"$f":"J$8","v":"SECONDARY"},{"$f":"K$8","v":"SECONDARY"},"SECONDARY","PRIMARY","PRIMARY","TRANSMISSION","LT","WATER",{"$f":"R8","v":"TOTAL"},"ALL"]
["NO.","GROSS ELECTRIC PLANT IN SERVICE",null,"ALLO",null,{"$f":"F$9","v":"ENERGY"},{"$f":"G$9","v":"RESIDENTIAL"},{"$f":"H$9","v":"DISTRIBUTION"},{"$f":"I$9","v":"DISTRIBUTION"},{"$f":"J$9","v":"DISTRIBUTION"},{"$f":"K$9","v":"DISTRIBUTION"},"DISTRIBUTION","DISTRIBUTION","DISTRIBUTION","TIME OF DAY","LIGHTING","PUMPING",{"$f":"R9","v":"AT ISSUE"},"OTHER"]
[null,null,"Schedule 2",null,null,null,{"$f":"G$10","v":3},{"$f":"H$10","v":4},{"$f":"I$10","v":5},{"$f":"J$10","v":6},{"$f":"K$10","v":7},8,9,10,11,12,13,null," "]
[1,"PRODUCTION PLANT"]
[2,null,"PRODUCTION STEAM",{"$f":"'FR-16(7)(v)-1 Functional'!D59","v":"K201"},null,{"$f":"'FR-16(7)(v)-10 DIST Classified'!H59","v":0},{"$f":"F59-SUM(H59:Q59)","v":0},{"$f":"ROUND(F59*VLOOKUP(D59,ALLOCTABLE_Distr_Energy,$H$10,FALSE),0)","v":0},{"$f":"ROUND(F59*VLOOKUP(D59,ALLOCTABLE_Distr_Energy,$I$10,FALSE),0)","v":0},{"$f":"ROUND(F59*VLOOKUP(D59,ALLOCTABLE_Distr_Energy,$J$10,FALSE),0)","v":0},{"$f":"ROUND(F59*VLOOKUP(D59,ALLOCTABLE_Distr_Energy,$K$10,FALSE),0)","v":0},{"$f":"ROUND(F59*VLOOKUP(D59,ALLOCTABLE_Distr_Energy,$L$10,FALSE),0)","v":0},{"$f":"ROUND(F59*VLOOKUP(D59,ALLOCTABLE_Distr_Energy,$M$10,FALSE),0)","v":0},{"$f":"ROUND(F59*VLOOKUP(D59,ALLOCTABLE_Distr_Energy,$N$10,FALSE),0)","v":0},{"$f":"ROUND(F59*VLOOKUP(D59,ALLOCTABLE_Distr_Energy,$O$10,FALSE),0)","v":0},{"$f":"ROUND(F59*VLOOKUP(D59,ALLOCTABLE_Distr_Energy,$P$10,FALSE),0)","v":0},{"$f":"ROUND(F59*VLOOKUP(D59,ALLOCTABLE_Distr_Energy,$Q$10,FALSE),0)","v":0},{"$f":"SUM(G59:Q59)","v":0},{"$f":"F59-R59","v":0}]
[3,null,"PRODUCTION OTHER",{"$f":"'FR-16(7)(v)-1 Functional'!D60","v":"K201"},null,{"$f":"'FR-16(7)(v)-10 DIST Classified'!H60","v":0},{"$f":"F60-SUM(H60:Q60)","v":0},{"$f":"ROUND(F60*VLOOKUP(D60,ALLOCTABLE_Distr_Energy,$H$10,FALSE),0)","v":0},{"$f":"ROUND(F60*VLOOKUP(D60,ALLOCTABLE_Distr_Energy,$I$10,FALSE),0)","v":0},{"$f":"ROUND(F60*VLOOKUP(D60,ALLOCTABLE_Distr_Energy,$J$10,FALSE),0)","v":0},{"$f":"ROUND(F60*VLOOKUP(D60,ALLOCTABLE_Distr_Energy,$K$10,FALSE),0)","v":0},{"$f":"ROUND(F60*VLOOKUP(D60,ALLOCTABLE_Distr_Energy,$L$10,FALSE),0)","v":0},{"$f":"ROUND(F60*VLOOKUP(D60,ALLOCTABLE_Distr_Energy,$M$10,FALSE),0)","v":0},{"$f":"ROUND(F60*VLOOKUP(D60,ALLOCTABLE_Distr_Energy,$N$10,FALSE),0)","v":0},{"$f":"ROUND(F60*VLOOKUP(D60,ALLOCTABLE_Distr_Energy,$O$10,FALSE),0)","v":0},{"$f":"ROUND(F60*VLOOKUP(D60,ALLOCTABLE_Distr_Energy,$P$10,FALSE),0)","v":0},{"$f":"ROUND(F60*VLOOKUP(D60,ALLOCTABLE_Distr_Energy,$Q$10,FALSE),0)","v":0},{"$f":"SUM(G60:Q60)","v":0},{"$f":"F60-R60","v":0}]
[4,null,{"$f":"'FR-16(7)(v)-1 Functional'!C61","v":"ADJUSTMENT"},{"$f":"'FR-16(7)(v)-1 Functional'!D61","v":"K201"},null,{"$f":"'FR-16(7)(v)-10 DIST Classified'!H61","v":0},{"$f":"F61-SUM(H61:Q61)","v":0},{"$f":"ROUND(F61*VLOOKUP(D61,ALLOCTABLE_Distr_Energy,$H$10,FALSE),0)","v":0},{"$f":"ROUND(F61*VLOOKUP(D61,ALLOCTABLE_Distr_Energy,$I$10,FALSE),0)","v":0},{"$f":"ROUND(F61*VLOOKUP(D61,ALLOCTABLE_Distr_Energy,$J$10,FALSE),0)","v":0},{"$f":"ROUND(F61*VLOOKUP(D61,ALLOCTABLE_Distr_Energy,$K$10,FALSE),0)","v":0},{"$f":"ROUND(F61*VLOOKUP(D61,ALLOCTABLE_Distr_Energy,$L$10,FALSE),0)","v":0},{"$f":"ROUND(F61*VLOOKUP(D61,ALLOCTABLE_Distr_Energy,$M$10,FALSE),0)","v":0},{"$f":"ROUND(F61*VLOOKUP(D61,ALLOCTABLE_Distr_Energy,$N$10,FALSE),0)","v":0},{"$f":"ROUND(F61*VLOOKUP(D61,ALLOCTABLE_Distr_Energy,$O$10,FALSE),0)","v":0},{"$f":"ROUND(F61*VLOOKUP(D61,ALLOCTABLE_Distr_Energy,$P$10,FALSE),0)","v":0},{"$f":"ROUND(F61*VLOOKUP(D61,ALLOCTABLE_Distr_Energy,$Q$10,FALSE),0)","v":0},{"$f":"SUM(G61:Q61)","v":0},{"$f":"F61-R61","v":0}]
[5,null,{"$f":"'FR-16(7)(v)-1 Functional'!C62","v":"  PRODUCTION PLANT IN SERVICE"},null,null,{"$f":"SUM(F59:F61)","v":0},{"$f":"SUM(G59:G61)","v":0},{"$f":"SUM(H59:H61)","v":0},{"$f":"SUM(I59:I61)","v":0},{"$f":"SUM(J59:J61)","v":0},0,0,0,0,0,0,{"$f":"SUM($Q$59:$Q$61)","v":0},{"$f":"SUM(R59:R61)","v":0},{"$f":"SUM(S59:S61)","v":0}]
[6]
[7,"TRANSMISSION PLANT"]
[8,null,"MAIN STEP-UP TRANSFORMERS",{"$f":"'FR-16(7)(v)-1 Functional'!D65","v":"K202"},null,{"$f":"'FR-16(7)(v)-10 DIST Classified'!H65","v":0},{"$f":"F65-SUM(H65:Q65)","v":0},{"$f":"ROUND(F65*VLOOKUP(D65,ALLOCTABLE_Distr_Energy,$H$10,FALSE),0)","v":0},{"$f":"ROUND(F65*VLOOKUP(D65,ALLOCTABLE_Distr_Energy,$I$10,FALSE),0)","v":0},{"$f":"ROUND(F65*VLOOKUP(D65,ALLOCTABLE_Distr_Energy,$J$10,FALSE),0)","v":0},{"$f":"ROUND(F65*VLOOKUP(D65,ALLOCTABLE_Distr_Energy,$K$10,FALSE),0)","v":0},{"$f":"ROUND(F65*VLOOKUP(D65,ALLOCTABLE_Distr_Energy,$L$10,FALSE),0)","v":0},{"$f":"ROUND(F65*VLOOKUP(D65,ALLOCTABLE_Distr_Energy,$M$10,FALSE),0)","v":0},{"$f":"ROUND(F65*VLOOKUP(D65,ALLOCTABLE_Distr_Energy,$N$10,FALSE),0)","v":0},{"$f":"ROUND(F65*VLOOKUP(D65,ALLOCTABLE_Distr_Energy,$O$10,FALSE),0)","v":0},{"$f":"ROUND(F65*VLOOKUP(D65,ALLOCTABLE_Distr_Energy,$P$10,FALSE),0)","v":0},{"$f":"ROUND(F65*VLOOKUP(D65,ALLOCTABLE_Distr_Energy,$Q$10,FALSE),0)","v":0},{"$f":"SUM(G65:Q65)","v":0},{"$f":"F65-R65","v":0}]
[9,null,"OTHER TRANSMISSION",{"$f":"'FR-16(7)(v)-1 Functional'!D66","v":"K202"},null,{"$f":"'FR-16(7)(v)-10 DIST Classified'!H66","v":0},{"$f":"F66-SUM(H66:Q66)","v":0},{"$f":"ROUND(F66*VLOOKUP(D66,ALLOCTABLE_Distr_Energy,$H$10,FALSE),0)","v":0},{"$f":"ROUND(F66*VLOOKUP(D66,ALLOCTABLE_Distr_Energy,$I$10,FALSE),0)","v":0},{"$f":"ROUND(F66*VLOOKUP(D66,ALLOCTABLE_Distr_Energy,$J$10,FALSE),0)","v":0},{"$f":"ROUND(F66*VLOOKUP(D66,ALLOCTABLE_Distr_Energy,$K$10,FALSE),0)","v":0},{"$f":"ROUND(F66*VLOOKUP(D66,ALLOCTABLE_Distr_Energy,$L$10,FALSE),0)","v":0},{"$f":"ROUND(F66*VLOOKUP(D66,ALLOCTABLE_Distr_Energy,$M$10,FALSE),0)","v":0},{"$f":"ROUND(F66*VLOOKUP(D66,ALLOCTABLE_Distr_Energy,$N$10,FALSE),0)","v":0},{"$f":"ROUND(F66*VLOOKUP(D66,ALLOCTABLE_Distr_Energy,$O$10,FALSE),0)","v":0},{"$f":"ROUND(F66*VLOOKUP(D66,ALLOCTABLE_Distr_Energy,$P$10,FALSE),0)","v":0},{"$f":"ROUND(F66*VLOOKUP(D66,ALLOCTABLE_Distr_Energy,$Q$10,FALSE),0)","v":0},{"$f":"SUM(G66:Q66)","v":0},{"$f":"F66-R66","v":0}]
[10,null,"ADJUSTMENT",{"$f":"'FR-16(7)(v)-1 Functional'!D67","v":"K202"},null,{"$f":"'FR-16(7)(v)-10 DIST Classified'!H67","v":0},{"$f":"F67-SUM(H67:Q67)","v":0},{"$f":"ROUND(F67*VLOOKUP(D67,ALLOCTABLE_Distr_Energy,$H$10,FALSE),0)","v":0},{"$f":"ROUND(F67*VLOOKUP(D67,ALLOCTABLE_Distr_Energy,$I$10,FALSE),0)","v":0},{"$f":"ROUND(F67*VLOOKUP(D67,ALLOCTABLE_Distr_Energy,$J$10,FALSE),0)","v":0},{"$f":"ROUND(F67*VLOOKUP(D67,ALLOCTABLE_Distr_Energy,$K$10,FALSE),0)","v":0},{"$f":"ROUND(F67*VLOOKUP(D67,ALLOCTABLE_Distr_Energy,$L$10,FALSE),0)","v":0},{"$f":"ROUND(F67*VLOOKUP(D67,ALLOCTABLE_Distr_Energy,$M$10,FALSE),0)","v":0},{"$f":"ROUND(F67*VLOOKUP(D67,ALLOCTABLE_Distr_Energy,$N$10,FALSE),0)","v":0},{"$f":"ROUND(F67*VLOOKUP(D67,ALLOCTABLE_Distr_Energy,$O$10,FALSE),0)","v":0},{"$f":"ROUND(F67*VLOOKUP(D67,ALLOCTABLE_Distr_Energy,$P$10,FALSE),0)","v":0},{"$f":"ROUND(F67*VLOOKUP(D67,ALLOCTABLE_Distr_Energy,$Q$10,FALSE),0)","v":0},{"$f":"SUM(G67:Q67)","v":0},{"$f":"F67-R67","v":0}]
[11,null,{"$f":"'FR-16(7)(v)-1 Functional'!C68","v":"  TRANSMISSION PLANT IN SERVICE"},null,null,{"$f":"SUM(F65:F67)","v":0},0,0,0,0,0,0,0,0,0,0,0,0,{"$f":"SUM(S65)","v":0}]
[12]
[13,"TOTAL PROD & TRANS PLANT",null,null,null,{"$f":"F68+F62","v":0},{"$f":"G68+G62","v":0},{"$f":"H68+H62","v":0},{"$f":"I68+I62","v":0},{"$f":"J68+J62","v":0},0,0,0,0,0,0,{"$f":"$Q$68+$Q$62","v":0},{"$f":"R68+R62","v":0},{"$f":"S68+S62","v":0}]
[14]
[15,"DISTRIBUTION PLANT"]
[16,null,{"$f":"'FR-16(7)(v)-1 Functional'!C73","v":"SUBSTATIONS"},{"$f":"'FR-16(7)(v)-1 Functional'!D73","v":"K215"},null,{"$f":"'FR-16(7)(v)-10 DIST Classified'!H73","v":0},{"$f":"F73-SUM(H73:Q73)","v":0},{"$f":"ROUND(F73*VLOOKUP(D73,ALLOCTABLE_Distr_Energy,$H$10,FALSE),0)","v":0},{"$f":"ROUND(F73*VLOOKUP(D73,ALLOCTABLE_Distr_Energy,$I$10,FALSE),0)","v":0},{"$f":"ROUND(F73*VLOOKUP(D73,ALLOCTABLE_Distr_Energy,$J$10,FALSE),0)","v":0},{"$f":"ROUND(F73*VLOOKUP(D73,ALLOCTABLE_Distr_Energy,$K$10,FALSE),0)","v":0},{"$f":"ROUND(F73*VLOOKUP(D73,ALLOCTABLE_Distr_Energy,$L$10,FALSE),0)","v":0},{"$f":"ROUND(F73*VLOOKUP(D73,ALLOCTABLE_Distr_Energy,$M$10,FALSE),0)","v":0},{"$f":"ROUND(F73*VLOOKUP(D73,ALLOCTABLE_Distr_Energy,$N$10,FALSE),0)","v":0},{"$f":"ROUND(F73*VLOOKUP(D73,ALLOCTABLE_Distr_Energy,$O$10,FALSE),0)","v":0},{"$f":"ROUND(F73*VLOOKUP(D73,ALLOCTABLE_Distr_Energy,$P$10,FALSE),0)","v":0},{"$f":"ROUND(F73*VLOOKUP(D73,ALLOCTABLE_Distr_Energy,$Q$10,FALSE),0)","v":0},{"$f":"SUM(G73:Q73)","v":0},{"$f":"F73-R73","v":0}]
[17,null,{"$f":"'FR-16(7)(v)-1 Functional'!C74","v":"POLES, TOWERS  & FIXTURES - PRIMARY - DEMAND"},{"$f":"'FR-16(7)(v)-1 Functional'!D74","v":"K205"},null,{"$f":"'FR-16(7)(v)-10 DIST Classified'!H74","v":0},0,0,0,0,0,0,0,0,0,0,0,0,0]
[18,null,{"$f":"'FR-16(7)(v)-1 Functional'!C75","v":"POLES, TOWERS  & FIXTURES - PRIMARY - CUSTOMER"},{"$f":"'FR-16(7)(v)-1 Functional'!D75","v":"K405"},null,{"$f":"'FR-16(7)(v)-10 DIST Classified'!H75","v":0},0,0,0,0,0,0,0,0,0,0,0,0,0]
[19,null,{"$f":"'FR-16(7)(v)-1 Functional'!C76","v":"POLES, TOWERS  & FIXTURES - SECONDARY - DEMAND"},{"$f":"'FR-16(7)(v)-1 Functional'!D76","v":"K206"},null,{"$f":"'FR-16(7)(v)-10 DIST Classified'!H76","v":0},0,0,0,0,0,0,0,0,0,0,0,0,0]
[20,null,{"$f":"'FR-16(7)(v)-1 Functional'!C77","v":"POLES, TOWERS  & FIXTURES - SECONDARY - CUSTOMER"},{"$f":"'FR-16(7)(v)-1 Functional'!D77","v":"K405"},null,{"$f":"'FR-16(7)(v)-10 DIST Classified'!H77","v":0},0,0,0,0,0,0,0,0,0,0,0,0,0]
[21,null,{"$f":"'FR-16(7)(v)-1 Functional'!C78","v":"CONDUCTORS - OVERHEAD / PRIMARY - DEMAND"},{"$f":"'FR-16(7)(v)-1 Functional'!D78","v":"K205"},null,{"$f":"'FR-16(7)(v)-10 DIST Classified'!H78","v":0},0,0,0,0,0,0,0,0,0,0,0,0,0]
[22,null,{"$f":"'FR-16(7)(v)-1 Functional'!C79","v":"CONDUCTORS - OVERHEAD / PRIMARY - CUSTOMER"},{"$f":"'FR-16(7)(v)-1 Functional'!D79","v":"K405"},null,{"$f":"'FR-16(7)(v)-10 DIST Classified'!H79","v":0},0,0,0,0,0,0,0,0,0,0,0,0,0]
[23,null,{"$f":"'FR-16(7)(v)-1 Functional'!C80","v":"CONDUCTORS - OVERHEAD / SECONDARY - DEMAND"},{"$f":"'FR-16(7)(v)-1 Functional'!D80","v":"K206"},null,{"$f":"'FR-16(7)(v)-10 DIST Classified'!H80","v":0},0,0,0,0,0,0,0,0,0,0,0,0,0]
[24,null,{"$f":"'FR-16(7)(v)-1 Functional'!C81","v":"CONDUCTORS - OVERHEAD / SECONDARY - CUSTOMER"},{"$f":"'FR-16(7)(v)-1 Functional'!D81","v":"K405"},null,{"$f":"'FR-16(7)(v)-10 DIST Classified'!H81","v":0},0,0,0,0,0,0,0,0,0,0,0,0,0]
[25,null,{"$f":"'FR-16(7)(v)-1 Functional'!C82","v":"CONDUCTORS - UNDERGROUND / PRIMARY - DEMAND"},{"$f":"'FR-16(7)(v)-1 Functional'!D82","v":"K205"},null,{"$f":"'FR-16(7)(v)-10 DIST Classified'!H82","v":0},0,0,0,0,0,0,0,0,0,0,0,0,0]
[26,null,{"$f":"'FR-16(7)(v)-1 Functional'!C83","v":"CONDUCTORS - UNDERGROUND / PRIMARY - CUSTOMER"},{"$f":"'FR-16(7)(v)-1 Functional'!D83","v":"K405"},null,{"$f":"'FR-16(7)(v)-10 DIST Classified'!H83","v":0},0,0,0,0,0,0,0,0,0,0,0,0,0]
[27,null,{"$f":"'FR-16(7)(v)-1 Functional'!C84","v":"CONDUCTORS - UNDERGROUND / SECONDARY - DEMAND"},{"$f":"'FR-16(7)(v)-1 Functional'!D84","v":"K206"},null,{"$f":"'FR-16(7)(v)-10 DIST Classified'!H84","v":0},0,0,0,0,0,0,0,0,0,0,0,0,0]
[28,null,{"$f":"'FR-16(7)(v)-1 Functional'!C85","v":"CONDUCTORS - UNDERGROUND / SECONDARY - CUSTOMER"},{"$f":"'FR-16(7)(v)-1 Functional'!D85","v":"K405"},null,{"$f":"'FR-16(7)(v)-10 DIST Classified'!H85","v":0},0,0,0,0,0,0,0,0,0,0,0,0,0]
[29,null,{"$f":"'FR-16(7)(v)-1 Functional'!C86","v":"TRANSFORMERS DEMAND RELATED"},{"$f":"'FR-16(7)(v)-1 Functional'!D86","v":"K215"},null,{"$f":"'FR-16(7)(v)-10 DIST Classified'!H86","v":0},0,0,0,0,0,0,0,0,0,0,0,0,0]
[30,null,{"$f":"'FR-16(7)(v)-1 Functional'!C87","v":"TRANSFORMERS CUSTOMER RELATED"},{"$f":"'FR-16(7)(v)-1 Functional'!D87","v":"K405"},null,{"$f":"'FR-16(7)(v)-10 DIST Classified'!H87","v":0},0,0,0,0,0,0,0,0,0,0,0,0,0]
[31,null,{"$f":"'FR-16(7)(v)-1 Functional'!C88","v":"SERVICES"},{"$f":"'FR-16(7)(v)-1 Functional'!D88","v":"K217"},null,{"$f":"'FR-16(7)(v)-10 DIST Classified'!H88","v":0},0,0,0,0,0,0,0,0,0,0,0,0,0]
[32,null,{"$f":"'FR-16(7)(v)-1 Functional'!C89","v":"METERS"},{"$f":"'FR-16(7)(v)-1 Functional'!D89","v":"K407"},null,{"$f":"'FR-16(7)(v)-10 DIST Classified'!H89","v":0},0,0,0,0,0,0,0,0,0,0,0,0,0]
[33,null,{"$f":"'FR-16(7)(v)-1 Functional'!C90","v":"STREET LIGHTS"},{"$f":"'FR-16(7)(v)-1 Functional'!D90","v":"K401"},null,{"$f":"'FR-16(7)(v)-10 DIST Classified'!H90","v":0},0,0,0,0,0,0,0,0,0,0,0,0,0]
[34,null,{"$f":"'FR-16(7)(v)-1 Functional'!C91","v":"ADJUSTMENT  "},{"$f":"'FR-16(7)(v)-1 Functional'!D91","v":"K209"},null,{"$f":"'FR-16(7)(v)-10 DIST Classified'!H91","v":0},0,0,0,0,0,0,0,0,0,0,0,0,0]
[35,null,{"$f":"'FR-16(7)(v)-1 Functional'!C92","v":"CONSTRUCTION NOT CLASSIFIED"},{"$f":"'FR-16(7)(v)-1 Functional'!D92","v":"K209"},null,{"$f":"'FR-16(7)(v)-10 DIST Classified'!H92","v":0},0,0,0,0,0,0,0,0,0,0,0,0,0]
[36,null,{"$f":"'FR-16(7)(v)-1 Functional'!C93","v":"RWIP"},{"$f":"'FR-16(7)(v)-1 Functional'!D93","v":"K215"},null,{"$f":"'FR-16(7)(v)-10 DIST Classified'!H93","v":0},{"$f":"F93-SUM(H93:Q93)","v":0},{"$f":"ROUND(F93*VLOOKUP(D93,ALLOCTABLE_Distr_Energy,$H$10,FALSE),0)","v":0},{"$f":"ROUND(F93*VLOOKUP(D93,ALLOCTABLE_Distr_Energy,$I$10,FALSE),0)","v":0},{"$f":"ROUND(F93*VLOOKUP(D93,ALLOCTABLE_Distr_Energy,$J$10,FALSE),0)","v":0},{"$f":"ROUND(F93*VLOOKUP(D93,ALLOCTABLE_Distr_Energy,$K$10,FALSE),0)","v":0}]
[37,null,{"$f":"'FR-16(7)(v)-1 Functional'!C94","v":"  DISTRIBUTION PLANT IN SERVICE"},null,null,{"$f":"SUM(F73:F93)","v":0},{"$f":"SUM(G73:G92)","v":0},{"$f":"SUM(H73:H92)","v":0},{"$f":"SUM(I73:I92)","v":0},{"$f":"SUM(J73:J92)","v":0},0,0,0,0,0,0,{"$f":"SUM(Q73:Q92)","v":0},{"$f":"SUM(R73:R92)","v":0},{"$f":"SUM(S73:S92)","v":0}]
[38]
[39,"TOTAL TRANS & DIST PLANT",null,null,null,{"$f":"F94+F68","v":0},{"$f":"G94+G68","v":0},{"$f":"H94+H68","v":0},{"$f":"I94+I68","v":0},{"$f":"J94+J68","v":0},0,0,0,0,0,0,{"$f":"Q94+$Q$68","v":0},{"$f":"R94+R68","v":0},{"$f":"S94+S68","v":0}]
[40,"TOTAL GROSS PTD PLANT",null,null,null,{"$f":"F94+F70","v":0},{"$f":"G94+G70","v":0},{"$f":"H94+H70","v":0},{"$f":"I94+I70","v":0},{"$f":"J94+J70","v":0},0,0,0,0,0,0,{"$f":"Q94+Q70","v":0},{"$f":"R94+R70","v":0},{"$f":"S94+S70","v":0}]
[41]
[42,"GENERAL & INTANGIBLE PLANT"]
[43,null,{"$f":"'FR-16(7)(v)-1 Functional'!C100","v":"PRODUCTION - DEMAND"},{"$f":"'FR-16(7)(v)-1 Functional'!D100","v":"K201"},null,{"$f":"'FR-16(7)(v)-10 DIST Classified'!H100","v":0},{"$f":"F100-SUM(H100:Q100)","v":0},{"$f":"ROUND(F100*VLOOKUP(D100,ALLOCTABLE_Distr_Energy,$H$10,FALSE),0)","v":0},{"$f":"ROUND(F100*VLOOKUP(D100,ALLOCTABLE_Distr_Energy,$I$10,FALSE),0)","v":0},{"$f":"ROUND(F100*VLOOKUP(D100,ALLOCTABLE_Distr_Energy,$J$10,FALSE),0)","v":0},{"$f":"ROUND(F100*VLOOKUP(D100,ALLOCTABLE_Distr_Energy,$K$10,FALSE),0)","v":0},{"$f":"ROUND(F100*VLOOKUP(D100,ALLOCTABLE_Distr_Energy,$L$10,FALSE),0)","v":0},{"$f":"ROUND(F100*VLOOKUP(D100,ALLOCTABLE_Distr_Energy,$M$10,FALSE),0)","v":0},{"$f":"ROUND(F100*VLOOKUP(D100,ALLOCTABLE_Distr_Energy,$N$10,FALSE),0)","v":0},{"$f":"ROUND(F100*VLOOKUP(D100,ALLOCTABLE_Distr_Energy,$O$10,FALSE),0)","v":0},{"$f":"ROUND(F100*VLOOKUP(D100,ALLOCTABLE_Distr_Energy,$P$10,FALSE),0)","v":0},{"$f":"ROUND(F100*VLOOKUP(D100,ALLOCTABLE_Distr_Energy,$Q$10,FALSE),0)","v":0},{"$f":"SUM(G100:Q100)","v":0},{"$f":"F100-R100","v":0}]
[44,null,{"$f":"'FR-16(7)(v)-1 Functional'!C101","v":"PRODUCTION - ENERGY"},{"$f":"'FR-16(7)(v)-1 Functional'!D101","v":"K301"},null,{"$f":"'FR-16(7)(v)-10 DIST Classified'!H101","v":0},0,0,0,0,0,0,0,0,0,0,0,0,0]
[45,null,{"$f":"'FR-16(7)(v)-1 Functional'!C102","v":"TRANSMISSION"},{"$f":"'FR-16(7)(v)-1 Functional'!D102","v":"K202"},null,{"$f":"'FR-16(7)(v)-10 DIST Classified'!H102","v":0},0,0,0,0,0,0,0,0,0,0,0,0,0]
[46,null,{"$f":"'FR-16(7)(v)-1 Functional'!C103","v":"DISTRIBUTION - DEMAND"},{"$f":"'FR-16(7)(v)-1 Functional'!D103","v":"K201"},null,{"$f":"'FR-16(7)(v)-10 DIST Classified'!H103","v":0},0,0,0,0,0,0,0,0,0,0,0,0,0]
[47,null,{"$f":"'FR-16(7)(v)-1 Functional'!C104","v":"DISTRIBUTION - CUSTOMER"},{"$f":"'FR-16(7)(v)-1 Functional'!D104","v":"K405"},null,{"$f":"'FR-16(7)(v)-10 DIST Classified'!H104","v":0},0,0,0,0,0,0,0,0,0,0,0,0,0]
[48,null,{"$f":"'FR-16(7)(v)-1 Functional'!C105","v":"CUSTOMER ACCOUNTING"},{"$f":"'FR-16(7)(v)-1 Functional'!D105","v":"A308"},null,{"$f":"'FR-16(7)(v)-10 DIST Classified'!H105","v":0},0,0,0,0,0,0,0,0,0,0,0,0,0]
[49,null,{"$f":"'FR-16(7)(v)-1 Functional'!C106","v":"CUSTOMER SERVICE & INFORMATION"},{"$f":"'FR-16(7)(v)-1 Functional'!D106","v":"A310"},null,{"$f":"'FR-16(7)(v)-10 DIST Classified'!H106","v":0},0,0,0,0,0,0,0,0,0,0,0,0,0]
[50,null,{"$f":"'FR-16(7)(v)-1 Functional'!C107","v":"SALES"},{"$f":"'FR-16(7)(v)-1 Functional'!D107","v":"A312"},null,{"$f":"'FR-16(7)(v)-10 DIST Classified'!H107","v":0},0,0,0,0,0,0,0,0,0,0,0,0,0]
[51,null,{"$f":"'FR-16(7)(v)-1 Functional'!C108","v":"ADJUSTMENT"},{"$f":"'FR-16(7)(v)-1 Functional'!D108","v":"A315"},null,{"$f":"'FR-16(7)(v)-10 DIST Classified'!H108","v":0},0,0,0,0,0,0,0,0,0,0,0,0,0]
[52,null,{"$f":"'FR-16(7)(v)-1 Functional'!C109","v":"  GEN & INTANG PLANT IN SERVICE"},null,null,{"$f":"SUM(F100:F108)","v":0},{"$f":"SUM(G100:G108)","v":0},{"$f":"SUM(H100:H108)","v":0},{"$f":"SUM(I100:I108)","v":0},{"$f":"SUM(J100:J108)","v":0},0,0,0,0,0,0,{"$f":"SUM(Q100:Q108)","v":0},{"$f":"SUM(R100:R108)","v":0},{"$f":"SUM(S100:S108)","v":0}]
[53]
[54,"COMMON & OTHER PLANT"]
[55,null,{"$f":"'FR-16(7)(v)-1 Functional'!C112","v":"PRODUCTION - DEMAND"},{"$f":"'FR-16(7)(v)-1 Functional'!D112","v":"K201"},null,{"$f":"'FR-16(7)(v)-10 DIST Classified'!H112","v":0},{"$f":"F112-SUM(H112:Q112)","v":0},{"$f":"ROUND(F112*VLOOKUP(D112,ALLOCTABLE_Distr_Energy,$H$10,FALSE),0)","v":0},{"$f":"ROUND(F112*VLOOKUP(D112,ALLOCTABLE_Distr_Energy,$I$10,FALSE),0)","v":0},{"$f":"ROUND(F112*VLOOKUP(D112,ALLOCTABLE_Distr_Energy,$J$10,FALSE),0)","v":0},{"$f":"ROUND(F112*VLOOKUP(D112,ALLOCTABLE_Distr_Energy,$K$10,FALSE),0)","v":0},{"$f":"ROUND(F112*VLOOKUP(D112,ALLOCTABLE_Distr_Energy,$L$10,FALSE),0)","v":0},{"$f":"ROUND(F112*VLOOKUP(D112,ALLOCTABLE_Distr_Energy,$M$10,FALSE),0)","v":0},{"$f":"ROUND(F112*VLOOKUP(D112,ALLOCTABLE_Distr_Energy,$N$10,FALSE),0)","v":0},{"$f":"ROUND(F112*VLOOKUP(D112,ALLOCTABLE_Distr_Energy,$O$10,FALSE),0)","v":0},{"$f":"ROUND(F112*VLOOKUP(D112,ALLOCTABLE_Distr_Energy,$P$10,FALSE),0)","v":0},{"$f":"ROUND(F112*VLOOKUP(D112,ALLOCTABLE_Distr_Energy,$Q$10,FALSE),0)","v":0},{"$f":"SUM(G112:Q112)","v":0},{"$f":"F112-R112","v":0}]
[56,null,{"$f":"'FR-16(7)(v)-1 Functional'!C113","v":"PRODUCTION - ENERGY"},{"$f":"'FR-16(7)(v)-1 Functional'!D113","v":"K301"},null,{"$f":"'FR-16(7)(v)-10 DIST Classified'!H113","v":0},0,0,0,0,0,0,0,0,0,0,0,0,0]
[57,null,{"$f":"'FR-16(7)(v)-1 Functional'!C114","v":"TRANSMISSION"},{"$f":"'FR-16(7)(v)-1 Functional'!D114","v":"K202"},null,{"$f":"'FR-16(7)(v)-10 DIST Classified'!H114","v":0},0,0,0,0,0,0,0,0,0,0,0,0,0]
[58,null,{"$f":"'FR-16(7)(v)-1 Functional'!C115","v":"DISTRIBUTION - DEMAND"},{"$f":"'FR-16(7)(v)-1 Functional'!D115","v":"K201"},null,{"$f":"'FR-16(7)(v)-10 DIST Classified'!H115","v":0},0,0,0,0,0,0,0,0,0,0,0,0,0]
[59,null,{"$f":"'FR-16(7)(v)-1 Functional'!C116","v":"DISTRIBUTION - CUSTOMER"},{"$f":"'FR-16(7)(v)-1 Functional'!D116","v":"K405"},null,{"$f":"'FR-16(7)(v)-10 DIST Classified'!H116","v":0},0,0,0,0,0,0,0,0,0,0,0,0,0]
[60,null,{"$f":"'FR-16(7)(v)-1 Functional'!C117","v":"CUSTOMER ACCOUNTING"},{"$f":"'FR-16(7)(v)-1 Functional'!D117","v":"A308"},null,{"$f":"'FR-16(7)(v)-10 DIST Classified'!H117","v":0},0,0,0,0,0,0,0,0,0,0,0,0,0]
[61,null,{"$f":"'FR-16(7)(v)-1 Functional'!C118","v":"CUSTOMER SERVICE & INFORMATION"},{"$f":"'FR-16(7)(v)-1 Functional'!D118","v":"A310"},null,{"$f":"'FR-16(7)(v)-10 DIST Classified'!H118","v":0},0,0,0,0,0,0,0,0,0,0,0,0,0]
[62,null,{"$f":"'FR-16(7)(v)-1 Functional'!C119","v":"SALES"},{"$f":"'FR-16(7)(v)-1 Functional'!D119","v":"A312"},null,{"$f":"'FR-16(7)(v)-10 DIST Classified'!H119","v":0},0,0,0,0,0,0,0,0,0,0,0,0,0]
[63,null,{"$f":"'FR-16(7)(v)-1 Functional'!C120","v":"ADJUSTMENT"},{"$f":"'FR-16(7)(v)-1 Functional'!D120","v":"A315"},null,{"$f":"'FR-16(7)(v)-10 DIST Classified'!H120","v":0},0,0,0,0,0,0,0,0,0,0,0,0,0]
[64,null,{"$f":"'FR-16(7)(v)-1 Functional'!C121","v":"  COMMON & OTHER PLANT IN SERVICE"},null,null,{"$f":"SUM(F112:F120)","v":0},{"$f":"SUM(G112:G120)","v":0},{"$f":"SUM(H112:H120)","v":0},{"$f":"SUM(I112:I120)","v":0},{"$f":"SUM(J112:J120)","v":0},0,0,0,0,0,0,{"$f":"SUM(Q112:Q120)","v":0},{"$f":"SUM(R112:R120)","v":0},{"$f":"SUM(S112:S120)","v":0}]
[65]
[66,"GROSS ELECTRIC PLANT IN SERVICE",null,null,null,{"$f":"F97+F109+F121","v":0},{"$f":"G97+G109+G121","v":0},{"$f":"H97+H109+H121","v":0},{"$f":"I97+I109+I121","v":0},{"$f":"J97+J109+J121","v":0},0,0,0,0,0,0,{"$f":"Q97+Q109+Q121","v":0},{"$f":"R97+R109+R121","v":0},{"$f":"S97+S109+S121","v":0}]
[]
[{"$f":"co_name","v":"DUKE ENERGY KENTUCKY, INC."},null,null,null,null,null,null,null,null,null,null,null,null,null,null,null,null,{"$f":"R1","v":"FR-16(7)(v)-12"}]
[{"$f":"$A$2","v":"DISTRIBUTION ENERGY ALLOCATED - ELECTRIC COST OF SERVICE"},null,null,null,null,null,null,null,null,null,null,null,null,null,null,null,null,{"$f":"R2","v":"WITNESS RESPONSIBLE:"}]
[{"$f":"case_name","v":"CASE NO: 2019-00271"},null,null,null,null,null,null,null,null,null,null,null,null,null,null,null,null,{"$f":"Witness","v":"JAMES E. ZIOLKOWSKI"}]
[{"$f":"data_filing","v":"DATA: 12 MONTHS ACTUAL  & 0 MONTHS ESTIMATED"},null,null,null,null,null,null,null,null,null,null,null,null,null,null,null,null,{"$f":"\"PAGE \"&Pages-15&\" OF \"&Pages","v":"PAGE 3 OF 18"}]
[{"$f":"type","v":"TYPE OF FILING: \"X\" ORIGINAL   UPDATED    REVISED  "}]
[]
[null,null,null,null,null,{"$f":"F$7","v":"TOTAL"},null,{"$f":"H$7","v":"DS"},{"$f":"I$7","v":"GSFL"},{"$f":"J$7","v":"EH"},{"$f":"K$7","v":"SP"},"DT SEC","DT PRI","DP","TT",null,"OTHER"]
["LINE",null,null,null,null,{"$f":"F$8","v":"DISTRIBUTION"},{"$f":"G$8","v":"RS"},{"$f":"H$8","v":"SECONDARY"},{"$f":"I$8","v":"SECONDARY"},{"$f":"J$8","v":"SECONDARY"},{"$f":"K$8","v":"SECONDARY"},"SECONDARY","PRIMARY","PRIMARY","TRANSMISSION","LT","WATER",{"$f":"R8","v":"TOTAL"},"ALL"]
["NO.","DEPRECIATION RESERVE",null,"ALLO",null,{"$f":"F$9","v":"ENERGY"},{"$f":"G$9","v":"RESIDENTIAL"},{"$f":"H$9","v":"DISTRIBUTION"},{"$f":"I$9","v":"DISTRIBUTION"},{"$f":"J$9","v":"DISTRIBUTION"},{"$f":"K$9","v":"DISTRIBUTION"},"DISTRIBUTION","DISTRIBUTION","DISTRIBUTION","TIME OF DAY","LIGHTING","PUMPING",{"$f":"R9","v":"AT ISSUE"},"OTHER"]
[null,null,"Schedule 3",null,null,null,{"$f":"G$10","v":3},{"$f":"H$10","v":4},{"$f":"I$10","v":5},{"$f":"J$10","v":6},{"$f":"K$10","v":7},8,9,10,11,12,13,null," "]
[1,"PRODUCTION PLANT"]
[2,null,"PRODUCTION STEAM",{"$f":"'FR-16(7)(v)-1 Functional'!D136","v":"K201"},null,{"$f":"'FR-16(7)(v)-10 DIST Classified'!H136","v":0},{"$f":"F136-SUM(H136:Q136)","v":0},{"$f":"ROUND(F136*VLOOKUP(D136,ALLOCTABLE_Distr_Energy,$H$10,FALSE),0)","v":0},{"$f":"ROUND(F136*VLOOKUP(D136,ALLOCTABLE_Distr_Energy,$I$10,FALSE),0)","v":0},{"$f":"ROUND(F136*VLOOKUP(D136,ALLOCTABLE_Distr_Energy,$J$10,FALSE),0)","v":0},{"$f":"ROUND(F136*VLOOKUP(D136,ALLOCTABLE_Distr_Energy,$K$10,FALSE),0)","v":0},{"$f":"ROUND(F136*VLOOKUP(D136,ALLOCTABLE_Distr_Energy,$L$10,FALSE),0)","v":0},{"$f":"ROUND(F136*VLOOKUP(D136,ALLOCTABLE_Distr_Energy,$M$10,FALSE),0)","v":0},{"$f":"ROUND(F136*VLOOKUP(D136,ALLOCTABLE_Distr_Energy,$N$10,FALSE),0)","v":0},{"$f":"ROUND(F136*VLOOKUP(D136,ALLOCTABLE_Distr_Energy,$O$10,FALSE),0)","v":0},{"$f":"ROUND(F136*VLOOKUP(D136,ALLOCTABLE_Distr_Energy,$P$10,FALSE),0)","v":0},{"$f":"ROUND(F136*VLOOKUP(D136,ALLOCTABLE_Distr_Energy,$Q$10,FALSE),0)","v":0},{"$f":"SUM(G136:Q136)","v":0},{"$f":"F136-R136","v":0}]
[3,null,"PRODUCTION OTHER",{"$f":"'FR-16(7)(v)-1 Functional'!D137","v":"K201"},null,{"$f":"'FR-16(7)(v)-10 DIST Classified'!H137","v":0},{"$f":"F137-SUM(H137:Q137)","v":0},{"$f":"ROUND(F136*VLOOKUP(D136,ALLOCTABLE_Distr_Energy,$H$10,FALSE),0)","v":0},{"$f":"ROUND(F137*VLOOKUP(D137,ALLOCTABLE_Distr_Energy,$I$10,FALSE),0)","v":0},{"$f":"ROUND(F137*VLOOKUP(D137,ALLOCTABLE_Distr_Energy,$J$10,FALSE),0)","v":0},{"$f":"ROUND(F137*VLOOKUP(D137,ALLOCTABLE_Distr_Energy,$K$10,FALSE),0)","v":0},{"$f":"ROUND(F137*VLOOKUP(D137,ALLOCTABLE_Distr_Energy,$L$10,FALSE),0)","v":0},{"$f":"ROUND(F137*VLOOKUP(D137,ALLOCTABLE_Distr_Energy,$M$10,FALSE),0)","v":0},{"$f":"ROUND(F137*VLOOKUP(D137,ALLOCTABLE_Distr_Energy,$N$10,FALSE),0)","v":0},{"$f":"ROUND(F137*VLOOKUP(D137,ALLOCTABLE_Distr_Energy,$O$10,FALSE),0)","v":0},{"$f":"ROUND(F137*VLOOKUP(D137,ALLOCTABLE_Distr_Energy,$P$10,FALSE),0)","v":0},{"$f":"ROUND(F137*VLOOKUP(D137,ALLOCTABLE_Distr_Energy,$Q$10,FALSE),0)","v":0},{"$f":"SUM(G137:Q137)","v":0},{"$f":"F137-R137","v":0}]
[4,null,{"$f":"'FR-16(7)(v)-1 Functional'!C138","v":"ADJUSTMENT"},{"$f":"'FR-16(7)(v)-1 Functional'!D138","v":"K201"},null,{"$f":"'FR-16(7)(v)-10 DIST Classified'!H138","v":0},{"$f":"F138-SUM(H138:Q138)","v":0},{"$f":"ROUND(F136*VLOOKUP(D136,ALLOCTABLE_Distr_Energy,$H$10,FALSE),0)","v":0},{"$f":"ROUND(F138*VLOOKUP(D138,ALLOCTABLE_Distr_Energy,$I$10,FALSE),0)","v":0},{"$f":"ROUND(F138*VLOOKUP(D138,ALLOCTABLE_Distr_Energy,$J$10,FALSE),0)","v":0},{"$f":"ROUND(F138*VLOOKUP(D138,ALLOCTABLE_Distr_Energy,$K$10,FALSE),0)","v":0},{"$f":"ROUND(F138*VLOOKUP(D138,ALLOCTABLE_Distr_Energy,$L$10,FALSE),0)","v":0},{"$f":"ROUND(F138*VLOOKUP(D138,ALLOCTABLE_Distr_Energy,$M$10,FALSE),0)","v":0},{"$f":"ROUND(F138*VLOOKUP(D138,ALLOCTABLE_Distr_Energy,$N$10,FALSE),0)","v":0},{"$f":"ROUND(F138*VLOOKUP(D138,ALLOCTABLE_Distr_Energy,$O$10,FALSE),0)","v":0},{"$f":"ROUND(F138*VLOOKUP(D138,ALLOCTABLE_Distr_Energy,$P$10,FALSE),0)","v":0},{"$f":"ROUND(F138*VLOOKUP(D138,ALLOCTABLE_Distr_Energy,$Q$10,FALSE),0)","v":0},{"$f":"SUM(G138:Q138)","v":0},{"$f":"F138-R138","v":0}]
[5,null,{"$f":"'FR-16(7)(v)-1 Functional'!C139","v":"  TOTAL PROD DEPREC RESERVE"},null,null,{"$f":"SUM(F136:F138)","v":0},0,0,0,0,0,0,0,0,0,0,0,0,{"$f":"SUM(S136:S136)","v":0}]
[6]
[7,"TRANSMISSION PLANT"]
[8,null,"MAIN STEP-UP TRANSFORMERS",{"$f":"'FR-16(7)(v)-1 Functional'!D142","v":"K202"},null,{"$f":"'FR-16(7)(v)-10 DIST Classified'!H142","v":0},{"$f":"F142-SUM(H142:Q142)","v":0},{"$f":"ROUND(F136*VLOOKUP(D136,ALLOCTABLE_Distr_Energy,$H$10,FALSE),0)","v":0},{"$f":"ROUND(F142*VLOOKUP(D142,ALLOCTABLE_Distr_Energy,$I$10,FALSE),0)","v":0},{"$f":"ROUND(F142*VLOOKUP(D142,ALLOCTABLE_Distr_Energy,$J$10,FALSE),0)","v":0},{"$f":"ROUND(F142*VLOOKUP(D142,ALLOCTABLE_Distr_Energy,$K$10,FALSE),0)","v":0},{"$f":"ROUND(F142*VLOOKUP(D142,ALLOCTABLE_Distr_Energy,$L$10,FALSE),0)","v":0},{"$f":"ROUND(F142*VLOOKUP(D142,ALLOCTABLE_Distr_Energy,$M$10,FALSE),0)","v":0},{"$f":"ROUND(F142*VLOOKUP(D142,ALLOCTABLE_Distr_Energy,$N$10,FALSE),0)","v":0},{"$f":"ROUND(F142*VLOOKUP(D142,ALLOCTABLE_Distr_Energy,$O$10,FALSE),0)","v":0},{"$f":"ROUND(F142*VLOOKUP(D142,ALLOCTABLE_Distr_Energy,$P$10,FALSE),0)","v":0},{"$f":"ROUND(F142*VLOOKUP(D142,ALLOCTABLE_Distr_Energy,$Q$10,FALSE),0)","v":0},{"$f":"SUM(G142:Q142)","v":0},{"$f":"F142-R142","v":0}]
[9,null,"OTHER TRANSMISSION",{"$f":"'FR-16(7)(v)-1 Functional'!D143","v":"K202"},null,{"$f":"'FR-16(7)(v)-10 DIST Classified'!H143","v":0},{"$f":"F143-SUM(H143:Q143)","v":0},{"$f":"ROUND(F136*VLOOKUP(D136,ALLOCTABLE_Distr_Energy,$H$10,FALSE),0)","v":0},{"$f":"ROUND(F143*VLOOKUP(D143,ALLOCTABLE_Distr_Energy,$I$10,FALSE),0)","v":0},{"$f":"ROUND(F143*VLOOKUP(D143,ALLOCTABLE_Distr_Energy,$J$10,FALSE),0)","v":0},{"$f":"ROUND(F143*VLOOKUP(D143,ALLOCTABLE_Distr_Energy,$K$10,FALSE),0)","v":0},{"$f":"ROUND(F143*VLOOKUP(D143,ALLOCTABLE_Distr_Energy,$L$10,FALSE),0)","v":0},{"$f":"ROUND(F143*VLOOKUP(D143,ALLOCTABLE_Distr_Energy,$M$10,FALSE),0)","v":0},{"$f":"ROUND(F143*VLOOKUP(D143,ALLOCTABLE_Distr_Energy,$N$10,FALSE),0)","v":0},{"$f":"ROUND(F143*VLOOKUP(D143,ALLOCTABLE_Distr_Energy,$O$10,FALSE),0)","v":0},{"$f":"ROUND(F143*VLOOKUP(D143,ALLOCTABLE_Distr_Energy,$P$10,FALSE),0)","v":0},{"$f":"ROUND(F143*VLOOKUP(D143,ALLOCTABLE_Distr_Energy,$Q$10,FALSE),0)","v":0},{"$f":"SUM(G143:Q143)","v":0},{"$f":"F143-R143","v":0}]
[10,null,"ADJUSTMENT",{"$f":"'FR-16(7)(v)-1 Functional'!D144","v":"K202"},null,{"$f":"'FR-16(7)(v)-10 DIST Classified'!H144","v":0},{"$f":"F144-SUM(H144:Q144)","v":0},{"$f":"ROUND(F136*VLOOKUP(D136,ALLOCTABLE_Distr_Energy,$H$10,FALSE),0)","v":0},{"$f":"ROUND(F144*VLOOKUP(D144,ALLOCTABLE_Distr_Energy,$I$10,FALSE),0)","v":0},{"$f":"ROUND(F144*VLOOKUP(D144,ALLOCTABLE_Distr_Energy,$J$10,FALSE),0)","v":0},{"$f":"ROUND(F144*VLOOKUP(D144,ALLOCTABLE_Distr_Energy,$K$10,FALSE),0)","v":0},{"$f":"ROUND(F144*VLOOKUP(D144,ALLOCTABLE_Distr_Energy,$L$10,FALSE),0)","v":0},{"$f":"ROUND(F144*VLOOKUP(D144,ALLOCTABLE_Distr_Energy,$M$10,FALSE),0)","v":0},{"$f":"ROUND(F144*VLOOKUP(D144,ALLOCTABLE_Distr_Energy,$N$10,FALSE),0)","v":0},{"$f":"ROUND(F144*VLOOKUP(D144,ALLOCTABLE_Distr_Energy,$O$10,FALSE),0)","v":0},{"$f":"ROUND(F144*VLOOKUP(D144,ALLOCTABLE_Distr_Energy,$P$10,FALSE),0)","v":0},{"$f":"ROUND(F144*VLOOKUP(D144,ALLOCTABLE_Distr_Energy,$Q$10,FALSE),0)","v":0},{"$f":"SUM(G144:Q144)","v":0},{"$f":"F144-R144","v":0}]
[11,null,"  TOTAL TRANS DEPREC RESERVE",null,null,{"$f":"SUM(F142:F144)","v":0},{"$f":"SUM(G142:G144)","v":0},0,0,0,0,0,0,0,0,0,0,{"$f":"SUM(R142:R144)","v":0},{"$f":"SUM(S142:S142)","v":0}]
[12]
[13,null,"TOTAL PROD & TRANS DEPREC RESERVE",null,null,{"$f":"F145+F139","v":0},{"$f":"G145+G139","v":0},{"$f":"$H$114+H139","v":0},{"$f":"$I$114+I139","v":0},{"$f":"$J$114+J139","v":0},{"$f":"$K$114+K139","v":0},{"$f":"$L$114+L139","v":0},{"$f":"$M$114+M139","v":0},{"$f":"$N$114+N139","v":0},{"$f":"$O$114+O139","v":0},{"$f":"$P$114+P139","v":0},{"$f":"$Q$114+Q139","v":0},{"$f":"SUM(G147:Q147)","v":0},{"$f":"F147-R147","v":0}]
[14]
[15,"DISTRIBUTION PLANT"]
[16,null,{"$f":"'FR-16(7)(v)-1 Functional'!C150","v":"SUBSTATIONS"},{"$f":"'FR-16(7)(v)-1 Functional'!D150","v":"K215"},null,{"$f":"'FR-16(7)(v)-10 DIST Classified'!H150","v":0},{"$f":"F150-SUM(H150:Q150)","v":0},{"$f":"ROUND(F150*VLOOKUP(D150,ALLOCTABLE_Distr_Energy,$H$10,FALSE),0)","v":0},{"$f":"ROUND(F150*VLOOKUP(D150,ALLOCTABLE_Distr_Energy,$I$10,FALSE),0)","v":0},{"$f":"ROUND(F150*VLOOKUP(D150,ALLOCTABLE_Distr_Energy,$J$10,FALSE),0)","v":0},{"$f":"ROUND(F150*VLOOKUP(D150,ALLOCTABLE_Distr_Energy,$K$10,FALSE),0)","v":0},{"$f":"ROUND(F150*VLOOKUP(D150,ALLOCTABLE_Distr_Energy,$L$10,FALSE),0)","v":0},{"$f":"ROUND(F150*VLOOKUP(D150,ALLOCTABLE_Distr_Energy,$M$10,FALSE),0)","v":0},{"$f":"ROUND(F150*VLOOKUP(D150,ALLOCTABLE_Distr_Energy,$N$10,FALSE),0)","v":0},{"$f":"ROUND(F150*VLOOKUP(D150,ALLOCTABLE_Distr_Energy,$O$10,FALSE),0)","v":0},{"$f":"ROUND(F150*VLOOKUP(D150,ALLOCTABLE_Distr_Energy,$P$10,FALSE),0)","v":0},{"$f":"ROUND(F150*VLOOKUP(D150,ALLOCTABLE_Distr_Energy,$Q$10,FALSE),0)","v":0},{"$f":"SUM(G150:Q150)","v":0},{"$f":"F150-R150","v":0}]
[17,null,{"$f":"'FR-16(7)(v)-1 Functional'!C151","v":"POLES, TOWERS  & FIXTURES - PRIMARY - DEMAND"},{"$f":"'FR-16(7)(v)-1 Functional'!D151","v":"K205"},null,{"$f":"'FR-16(7)(v)-10 DIST Classified'!H151","v":0},0,0,0,0,0,0,0,0,0,0,0,0,0]
[18,null,{"$f":"'FR-16(7)(v)-1 Functional'!C152","v":"POLES, TOWERS  & FIXTURES - PRIMARY - CUSTOMER"},{"$f":"'FR-16(7)(v)-1 Functional'!D152","v":"K405"},null,{"$f":"'FR-16(7)(v)-10 DIST Classified'!H152","v":0},0,0,0,0,0,0,0,0,0,0,0,0,0]
[19,null,{"$f":"'FR-16(7)(v)-1 Functional'!C153","v":"POLES, TOWERS  & FIXTURES - SECONDARY - DEMAND"},{"$f":"'FR-16(7)(v)-1 Functional'!D153","v":"K206"},null,{"$f":"'FR-16(7)(v)-10 DIST Classified'!H153","v":0},0,0,0,0,0,0,0,0,0,0,0,0,0]
[20,null,{"$f":"'FR-16(7)(v)-1 Functional'!C154","v":"POLES, TOWERS  & FIXTURES - SECONDARY - CUSTOMER"},{"$f":"'FR-16(7)(v)-1 Functional'!D154","v":"K405"},null,{"$f":"'FR-16(7)(v)-10 DIST Classified'!H154","v":0},0,0,0,0,0,0,0,0,0,0,0,0,0]
[21,null,{"$f":"'FR-16(7)(v)-1 Functional'!C155","v":"CONDUCTORS - OVERHEAD / PRIMARY - DEMAND"},{"$f":"'FR-16(7)(v)-1 Functional'!D155","v":"K205"},null,{"$f":"'FR-16(7)(v)-10 DIST Classified'!H155","v":0},0,0,0,0,0,0,0,0,0,0,0,0,0]
[22,null,{"$f":"'FR-16(7)(v)-1 Functional'!C156","v":"CONDUCTORS - OVERHEAD / PRIMARY - CUSTOMER"},{"$f":"'FR-16(7)(v)-1 Functional'!D156","v":"K405"},null,{"$f":"'FR-16(7)(v)-10 DIST Classified'!H156","v":0},0,0,0,0,0,0,0,0,0,0,0,0,0]
[23,null,{"$f":"'FR-16(7)(v)-1 Functional'!C157","v":"CONDUCTORS - OVERHEAD / SECONDARY - DEMAND"},{"$f":"'FR-16(7)(v)-1 Functional'!D157","v":"K206"},null,{"$f":"'FR-16(7)(v)-10 DIST Classified'!H157","v":0},0,0,0,0,0,0,0,0,0,0,0,0,0]
[24,null,{"$f":"'FR-16(7)(v)-1 Functional'!C158","v":"CONDUCTORS - OVERHEAD / SECONDARY - CUSTOMER"},{"$f":"'FR-16(7)(v)-1 Functional'!D158","v":"K405"},null,{"$f":"'FR-16(7)(v)-10 DIST Classified'!H158","v":0},0,0,0,0,0,0,0,0,0,0,0,0,0]
[25,null,{"$f":"'FR-16(7)(v)-1 Functional'!C159","v":"CONDUCTORS - UNDERGROUND / PRIMARY - DEMAND"},{"$f":"'FR-16(7)(v)-1 Functional'!D159","v":"K205"},null,{"$f":"'FR-16(7)(v)-10 DIST Classified'!H159","v":0},0,0,0,0,0,0,0,0,0,0,0,0,0]
[26,null,{"$f":"'FR-16(7)(v)-1 Functional'!C160","v":"CONDUCTORS - UNDERGROUND / PRIMARY - CUSTOMER"},{"$f":"'FR-16(7)(v)-1 Functional'!D160","v":"K405"},null,{"$f":"'FR-16(7)(v)-10 DIST Classified'!H160","v":0},0,0,0,0,0,0,0,0,0,0,0,0,0]
[27,null,{"$f":"'FR-16(7)(v)-1 Functional'!C161","v":"CONDUCTORS - UNDERGROUND / SECONDARY - DEMAND"},{"$f":"'FR-16(7)(v)-1 Functional'!D161","v":"K206"},null,{"$f":"'FR-16(7)(v)-10 DIST Classified'!H161","v":0},0,0,0,0,0,0,0,0,0,0,0,0,0]
[28,null,{"$f":"'FR-16(7)(v)-1 Functional'!C162","v":"CONDUCTORS - UNDERGROUND / SECONDARY - CUSTOMER"},{"$f":"'FR-16(7)(v)-1 Functional'!D162","v":"K405"},null,{"$f":"'FR-16(7)(v)-10 DIST Classified'!H162","v":0},0,0,0,0,0,0,0,0,0,0,0,0,0]
[29,null,{"$f":"'FR-16(7)(v)-1 Functional'!C163","v":"TRANSFORMERS DEMAND RELATED"},{"$f":"'FR-16(7)(v)-1 Functional'!D163","v":"K215"},null,{"$f":"'FR-16(7)(v)-10 DIST Classified'!H163","v":0},0,0,0,0,0,0,0,0,0,0,0,0,0]
[30,null,{"$f":"'FR-16(7)(v)-1 Functional'!C164","v":"TRANSFORMERS CUSTOMER RELATED"},{"$f":"'FR-16(7)(v)-1 Functional'!D164","v":"K405"},null,{"$f":"'FR-16(7)(v)-10 DIST Classified'!H164","v":0},0,0,0,0,0,0,0,0,0,0,0,0,0]
[31,null,{"$f":"'FR-16(7)(v)-1 Functional'!C165","v":"SERVICES"},{"$f":"'FR-16(7)(v)-1 Functional'!D165","v":"K217"},null,{"$f":"'FR-16(7)(v)-10 DIST Classified'!H165","v":0},0,0,0,0,0,0,0,0,0,0,0,0,0]
[32,null,{"$f":"'FR-16(7)(v)-1 Functional'!C166","v":"METERS"},{"$f":"'FR-16(7)(v)-1 Functional'!D166","v":"K407"},null,{"$f":"'FR-16(7)(v)-10 DIST Classified'!H166","v":0},0,0,0,0,0,0,0,0,0,0,0,0,0]
[33,null,{"$f":"'FR-16(7)(v)-1 Functional'!C167","v":"STREET LIGHTS"},{"$f":"'FR-16(7)(v)-1 Functional'!D167","v":"K401"},null,{"$f":"'FR-16(7)(v)-10 DIST Classified'!H167","v":0},0,0,0,0,0,0,0,0,0,0,0,0,0]
[34,null,{"$f":"'FR-16(7)(v)-1 Functional'!C168","v":"ADJUSTMENT  "},{"$f":"'FR-16(7)(v)-1 Functional'!D168","v":"K209"},null,{"$f":"'FR-16(7)(v)-10 DIST Classified'!H168","v":0},0,0,0,0,0,0,0,0,0,0,0,0,0]
[35,null,{"$f":"'FR-16(7)(v)-1 Functional'!C169","v":"CONSTRUCTION NOT CLASSIFIED"},{"$f":"'FR-16(7)(v)-1 Functional'!D169","v":"K209"},null,{"$f":"'FR-16(7)(v)-10 DIST Classified'!H169","v":0},0,0,0,0,0,0,0,0,0,0,0,0,0]
[36,null,{"$f":"'FR-16(7)(v)-1 Functional'!C170","v":"RWIP"},{"$f":"'FR-16(7)(v)-1 Functional'!D170","v":"K215"},null,{"$f":"'FR-16(7)(v)-10 DIST Classified'!H170","v":0},{"$f":"F170-SUM(H170:Q170)","v":0},{"$f":"ROUND($F$170*VLOOKUP($D$170,ALLOCTABLE_Distr_Energy,H$10,FALSE),0)","v":0},0,0,0,0,0,0,0,0,0,{"$f":"SUM(G170:Q170)","v":0},{"$f":"F170-R170","v":0}]
[37,null,{"$f":"'FR-16(7)(v)-1 Functional'!C171","v":"  TOTAL DIST DEPREC RESERVE"},null,null,{"$f":"SUM(F149:F170)","v":0},{"$f":"SUM(G149:G170)","v":0},0,0,0,0,0,0,0,0,0,0,0,0]
[38]
[39,null,"TOTAL TRANS & DIST DEPREC RESERVE",null,null,{"$f":"F171+F145","v":0},{"$f":"G171+G145","v":0},0,0,0,0,0,0,0,0,0,0,{"$f":"SUM(G173:Q173)","v":0},{"$f":"F173-R173","v":0}]
[40,null,"TOTAL GROSS PTD PLANT DEPREC RESERVE",null,null,{"$f":"F147+F171","v":0},{"$f":"G147+G171","v":0},0,0,0,0,0,0,0,0,0,0,{"$f":"SUM(G174:Q174)","v":0},{"$f":"F174-R174","v":0}]
[41]
[42,"GENERAL & INTANGIBLE PLANT"]
[43,null,{"$f":"'FR-16(7)(v)-1 Functional'!C177","v":"PRODUCTION - DEMAND"},{"$f":"'FR-16(7)(v)-1 Functional'!D177","v":"K201"},null,{"$f":"'FR-16(7)(v)-10 DIST Classified'!H177","v":0},{"$f":"F177-SUM(H177:Q177)","v":0},{"$f":"ROUND(F177*VLOOKUP(D177,ALLOCTABLE_Distr_Energy,$H$10,FALSE),0)","v":0},{"$f":"ROUND(F177*VLOOKUP(D177,ALLOCTABLE_Distr_Energy,$I$10,FALSE),0)","v":0},{"$f":"ROUND(F177*VLOOKUP(D177,ALLOCTABLE_Distr_Energy,$J$10,FALSE),0)","v":0},{"$f":"ROUND(F177*VLOOKUP(D177,ALLOCTABLE_Distr_Energy,$K$10,FALSE),0)","v":0},{"$f":"ROUND(F177*VLOOKUP(D177,ALLOCTABLE_Distr_Energy,$L$10,FALSE),0)","v":0},{"$f":"ROUND(F177*VLOOKUP(D177,ALLOCTABLE_Distr_Energy,$M$10,FALSE),0)","v":0},{"$f":"ROUND(F177*VLOOKUP(D177,ALLOCTABLE_Distr_Energy,$N$10,FALSE),0)","v":0},{"$f":"ROUND(F177*VLOOKUP(D177,ALLOCTABLE_Distr_Energy,$O$10,FALSE),0)","v":0},{"$f":"ROUND(F177*VLOOKUP(D177,ALLOCTABLE_Distr_Energy,$P$10,FALSE),0)","v":0},{"$f":"ROUND(F177*VLOOKUP(D177,ALLOCTABLE_Distr_Energy,$Q$10,FALSE),0)","v":0},{"$f":"SUM(G177:Q177)","v":0},{"$f":"F177-R177","v":0}]
[44,null,{"$f":"'FR-16(7)(v)-1 Functional'!C178","v":"PRODUCTION - ENERGY"},{"$f":"'FR-16(7)(v)-1 Functional'!D178","v":"K301"},null,{"$f":"'FR-16(7)(v)-10 DIST Classified'!H178","v":0},0,0,0,0,0,0,0,0,0,0,0,0,0]
[45,null,{"$f":"'FR-16(7)(v)-1 Functional'!C179","v":"TRANSMISSION"},{"$f":"'FR-16(7)(v)-1 Functional'!D179","v":"K202"},null,{"$f":"'FR-16(7)(v)-10 DIST Classified'!H179","v":0},0,0,0,0,0,0,0,0,0,0,0,0,0]
[46,null,{"$f":"'FR-16(7)(v)-1 Functional'!C180","v":"DISTRIBUTION - DEMAND"},{"$f":"'FR-16(7)(v)-1 Functional'!D180","v":"K201"},null,{"$f":"'FR-16(7)(v)-10 DIST Classified'!H180","v":0},0,0,0,0,0,0,0,0,0,0,0,0,0]
[47,null,{"$f":"'FR-16(7)(v)-1 Functional'!C181","v":"DISTRIBUTION - CUSTOMER"},{"$f":"'FR-16(7)(v)-1 Functional'!D181","v":"K405"},null,{"$f":"'FR-16(7)(v)-10 DIST Classified'!H181","v":0},0,0,0,0,0,0,0,0,0,0,0,0,0]
[48,null,{"$f":"'FR-16(7)(v)-1 Functional'!C182","v":"CUSTOMER ACCOUNTING"},{"$f":"'FR-16(7)(v)-1 Functional'!D182","v":"A308"},null,{"$f":"'FR-16(7)(v)-10 DIST Classified'!H182","v":0},0,0,0,0,0,0,0,0,0,0,0,0,0]
[49,null,{"$f":"'FR-16(7)(v)-1 Functional'!C183","v":"CUSTOMER SERVICE & INFORMATION"},{"$f":"'FR-16(7)(v)-1 Functional'!D183","v":"A310"},null,{"$f":"'FR-16(7)(v)-10 DIST Classified'!H183","v":0},0,0,0,0,0,0,0,0,0,0,0,0,0]
[50,null,{"$f":"'FR-16(7)(v)-1 Functional'!C184","v":"SALES"},{"$f":"'FR-16(7)(v)-1 Functional'!D184","v":"A312"},null,{"$f":"'FR-16(7)(v)-10 DIST Classified'!H184","v":0},0,0,0,0,0,0,0,0,0,0,0,0,0]
[51,null,{"$f":"'FR-16(7)(v)-1 Functional'!C185","v":"ADJUSTMENT"},{"$f":"'FR-16(7)(v)-1 Functional'!D185","v":"A315"},null,{"$f":"'FR-16(7)(v)-10 DIST Classified'!H185","v":0},0,0,0,0,0,0,0,0,0,0,0,0,0]
[52,null,"  GENERAL & INTANG PLANT",null,null,{"$f":"SUM(F176:F185)","v":0},{"$f":"SUM(G176:G185)","v":0},{"$f":"SUM(H176:H185)","v":0},{"$f":"SUM(I176:I185)","v":0},{"$f":"SUM(J176:J185)","v":0},0,0,0,0,0,0,{"$f":"SUM(Q176:Q185)","v":0},{"$f":"SUM(R176:R185)","v":0},{"$f":"SUM(S176:S185)","v":0}]
[53]
[54,"COMMON & OTHER PLANT"]
[55,null,{"$f":"'FR-16(7)(v)-1 Functional'!C189","v":"PRODUCTION - DEMAND"},{"$f":"'FR-16(7)(v)-1 Functional'!D189","v":"K201"},null,{"$f":"'FR-16(7)(v)-10 DIST Classified'!H189","v":0},{"$f":"F189-SUM(H189:Q189)","v":0},{"$f":"ROUND(F189*VLOOKUP(D189,ALLOCTABLE_Distr_Energy,$H$10,FALSE),0)","v":0},{"$f":"ROUND(F189*VLOOKUP(D189,ALLOCTABLE_Distr_Energy,$I$10,FALSE),0)","v":0},{"$f":"ROUND(F189*VLOOKUP(D189,ALLOCTABLE_Distr_Energy,$J$10,FALSE),0)","v":0},{"$f":"ROUND(F189*VLOOKUP(D189,ALLOCTABLE_Distr_Energy,$K$10,FALSE),0)","v":0},{"$f":"ROUND(F189*VLOOKUP(D189,ALLOCTABLE_Distr_Energy,$L$10,FALSE),0)","v":0},{"$f":"ROUND(F189*VLOOKUP(D189,ALLOCTABLE_Distr_Energy,$M$10,FALSE),0)","v":0},{"$f":"ROUND(F189*VLOOKUP(D189,ALLOCTABLE_Distr_Energy,$N$10,FALSE),0)","v":0},{"$f":"ROUND(F189*VLOOKUP(D189,ALLOCTABLE_Distr_Energy,$O$10,FALSE),0)","v":0},{"$f":"ROUND(F189*VLOOKUP(D189,ALLOCTABLE_Distr_Energy,$P$10,FALSE),0)","v":0},{"$f":"ROUND(F189*VLOOKUP(D189,ALLOCTABLE_Distr_Energy,$Q$10,FALSE),0)","v":0},{"$f":"SUM(G189:Q189)","v":0},{"$f":"F189-R189","v":0}]
[56,null,{"$f":"'FR-16(7)(v)-1 Functional'!C190","v":"PRODUCTION - ENERGY"},{"$f":"'FR-16(7)(v)-1 Functional'!D190","v":"K301"},null,{"$f":"'FR-16(7)(v)-10 DIST Classified'!H190","v":0},0,0,0,0,0,0,0,0,0,0,0,0,0]
[57,null,{"$f":"'FR-16(7)(v)-1 Functional'!C191","v":"TRANSMISSION"},{"$f":"'FR-16(7)(v)-1 Functional'!D191","v":"K202"},null,{"$f":"'FR-16(7)(v)-10 DIST Classified'!H191","v":0},0,0,0,0,0,0,0,0,0,0,0,0,0]
[58,null,{"$f":"'FR-16(7)(v)-1 Functional'!C192","v":"DISTRIBUTION - DEMAND"},{"$f":"'FR-16(7)(v)-1 Functional'!D192","v":"K201"},null,{"$f":"'FR-16(7)(v)-10 DIST Classified'!H192","v":0},0,0,0,0,0,0,0,0,0,0,0,0,0]
[59,null,{"$f":"'FR-16(7)(v)-1 Functional'!C193","v":"DISTRIBUTION - CUSTOMER"},{"$f":"'FR-16(7)(v)-1 Functional'!D193","v":"K405"},null,{"$f":"'FR-16(7)(v)-10 DIST Classified'!H193","v":0},0,0,0,0,0,0,0,0,0,0,0,0,0]
[60,null,{"$f":"'FR-16(7)(v)-1 Functional'!C194","v":"CUSTOMER ACCOUNTING"},{"$f":"'FR-16(7)(v)-1 Functional'!D194","v":"A308"},null,{"$f":"'FR-16(7)(v)-10 DIST Classified'!H194","v":0},0,0,0,0,0,0,0,0,0,0,0,0,0]
[61,null,{"$f":"'FR-16(7)(v)-1 Functional'!C195","v":"CUSTOMER SERVICE & INFORMATION"},{"$f":"'FR-16(7)(v)-1 Functional'!D195","v":"A310"},null,{"$f":"'FR-16(7)(v)-10 DIST Classified'!H195","v":0},0,0,0,0,0,0,0,0,0,0,0,0,0]
[62,null,{"$f":"'FR-16(7)(v)-1 Functional'!C196","v":"SALES"},{"$f":"'FR-16(7)(v)-1 Functional'!D196","v":"A312"},null,{"$f":"'FR-16(7)(v)-10 DIST Classified'!H196","v":0},0,0,0,0,0,0,0,0,0,0,0,0,0]
[63,null,{"$f":"'FR-16(7)(v)-1 Functional'!C197","v":"ADJUSTMENT"},{"$f":"'FR-16(7)(v)-1 Functional'!D197","v":"A315"},null,{"$f":"'FR-16(7)(v)-10 DIST Classified'!H197","v":0},0,0,0,0,0,0,0,0,0,0,0,0,0]
[64,null,{"$f":"'FR-16(7)(v)-1 Functional'!C198","v":"  COMMON & OTHER PLANT IN SERVICE"},null,null,{"$f":"SUM(F189:F197)","v":0},{"$f":"SUM(G188:G197)","v":0},0,0,{"$f":"SUM(J188:J197)","v":0},0,0,0,0,0,0,0,0,0]
[65]
[66,"TOTAL DEPRECIATION RESERVE",null,null,null,{"$f":"F198+F186+F171+F145+F139","v":0},{"$f":"G198+G186+G171+G145+G139","v":0},{"$f":"H198+H186+H171+H145+H139","v":0},0,0,0,0,0,0,0,0,0,{"$f":"R198+R186+R171+R145+R139","v":0},{"$f":"S198+S186+S171+S145+S139","v":0}]
[]
[{"$f":"co_name","v":"DUKE ENERGY KENTUCKY, INC."},null,null,null,null,null,null,null,null,null,null,null,null,null,null,null,null,{"$f":"R1","v":"FR-16(7)(v)-12"}]
[{"$f":"$A$2","v":"DISTRIBUTION ENERGY ALLOCATED - ELECTRIC COST OF SERVICE"},null,null,null,null,null,null,null,null,null,null,null,null,null,null,null,null,{"$f":"R2","v":"WITNESS RESPONSIBLE:"}]
[{"$f":"case_name","v":"CASE NO: 2019-00271"},null,null,null,null,null,null,null,null,null,null,null,null,null,null,null,null,{"$f":"Witness","v":"JAMES E. ZIOLKOWSKI"}]
[{"$f":"data_filing","v":"DATA: 12 MONTHS ACTUAL  & 0 MONTHS ESTIMATED"},null,null,null,null,null,null,null,null,null,null,null,null,null,null,null,null,{"$f":"\"PAGE \"&Pages-14&\" OF \"&Pages","v":"PAGE 4 OF 18"}]
[{"$f":"type","v":"TYPE OF FILING: \"X\" ORIGINAL   UPDATED    REVISED  "}]
[]
[null,null,null,null,null,{"$f":"F$7","v":"TOTAL"},null,{"$f":"H$7","v":"DS"},{"$f":"I$7","v":"GSFL"},{"$f":"J$7","v":"EH"},{"$f":"K$7","v":"SP"},"DT SEC","DT PRI","DP","TT",null,"OTHER"]
["LINE",null,null,null,null,{"$f":"F$8","v":"DISTRIBUTION"},{"$f":"G$8","v":"RS"},{"$f":"H$8","v":"SECONDARY"},{"$f":"I$8","v":"SECONDARY"},{"$f":"J$8","v":"SECONDARY"},{"$f":"K$8","v":"SECONDARY"},"SECONDARY","PRIMARY","PRIMARY","TRANSMISSION","LT","WATER",{"$f":"R8","v":"TOTAL"},"ALL"]
["NO.",{"$f":"\"NET ELECTRIC PLANT\"","v":"NET ELECTRIC PLANT"},null,"ALLO",null,{"$f":"F$9","v":"ENERGY"},{"$f":"G$9","v":"RESIDENTIAL"},{"$f":"H$9","v":"DISTRIBUTION"},{"$f":"I$9","v":"DISTRIBUTION"},{"$f":"J$9","v":"DISTRIBUTION"},{"$f":"K$9","v":"DISTRIBUTION"},"DISTRIBUTION","DISTRIBUTION","DISTRIBUTION","TIME OF DAY","LIGHTING","PUMPING",{"$f":"R9","v":"AT ISSUE"},"OTHER"]
[null,null,"Schedule 4",null,null,null,{"$f":"G$10","v":3},{"$f":"H$10","v":4},{"$f":"I$10","v":5},{"$f":"J$10","v":6},{"$f":"K$10","v":7},8,9,10,11,12,13,null," "]
[1,"PRODUCTION PLANT"]
[2,null,"PRODUCTION STEAM",null,null,{"$f":"F59-F136","v":0},{"$f":"G59-G136","v":0},{"$f":"H59-H136","v":0},{"$f":"I59-I136","v":0},{"$f":"J59-J136","v":0},0,0,0,0,0,0,{"$f":"Q59-Q136","v":0},{"$f":"R59-R136","v":0},{"$f":"F213-R213","v":0}]
[3,null,"PRODUCTION OTHER",null,null,{"$f":"F60-F137","v":0},0,0,0,{"$f":"J60-J137","v":0},0,0,0,0,0,0,0,0,{"$f":"F214-R214","v":0}]
[4,null,"ADJUSTMENT",null,null,{"$f":"F61-F138","v":0},0,0,0,{"$f":"J61-J138","v":0},0,0,0,0,0,0,0,0,{"$f":"F215-R215","v":0}]
[5,null,{"$f":"'FR-16(7)(v)-1 Functional'!C216","v":"  NET PRODUCTION PLANT"},null,null,{"$f":"SUM(F213:F215)","v":0},0,0,0,{"$f":"SUM(J213:J215)","v":0},0,0,0,0,0,0,0,0,0]
[6]
[7,"TRANSMISSION PLANT"]
[8,null,"MAIN STEP-UP TRANSFORMERS",null,null,{"$f":"F65-F142","v":0},0,0,0,{"$f":"J65-J142","v":0},0,0,0,0,0,0,0,0,{"$f":"F219-R219","v":0}]
[9,null,"OTHER TRANSMISSION",null,null,{"$f":"F66-F143","v":0},0,0,0,{"$f":"J66-J143","v":0},0,0,0,0,0,0,{"$f":"Q66-Q143","v":0},{"$f":"R66-R143","v":0},{"$f":"F220-R220","v":0}]
[10,null,"ADJUSTMENT",null,null,0,0,0,0,{"$f":"J67-J144","v":0},0,0,0,0,0,0,{"$f":"Q67-Q144","v":0},{"$f":"R67-R144","v":0},{"$f":"F221-R221","v":0}]
[11,null,{"$f":"'FR-16(7)(v)-1 Functional'!C222","v":"    NET TRANSMISSION PLANT"},null,null,{"$f":"SUM(F218:F221)","v":0},0,0,0,{"$f":"SUM(J218:J221)","v":0},0,0,0,0,0,0,0,0,0]
[12]
[13,"NET PROD & TRANS PLANT"]
[14,null,null,null,null,{"$f":"F70-F147","v":0},{"$f":"G70-G147","v":0},0,0,0,0,0,0,0,0,0,0,0,0]
[15,"DISTRIBUTION PLANT"]
[16,null,{"$f":"'FR-16(7)(v)-1 Functional'!C227","v":"SUBSTATIONS"},null,null,{"$f":"F73-F150","v":0},{"$f":"G73-G150","v":0},{"$f":"H73-H150","v":0},0,0,0,0,0,0,0,0,0,{"$f":"R73-R150","v":0},{"$f":"F227-R227","v":0}]
[17,null,{"$f":"'FR-16(7)(v)-1 Functional'!C228","v":"POLES, TOWERS  & FIXTURES - PRIMARY - DEMAND"},null,null,{"$f":"F74-F151","v":0},{"$f":"G74-G151","v":0},{"$f":"H74-H151","v":0},0,0,0,0,0,0,0,0,0,{"$f":"R74-R151","v":0},{"$f":"F228-R228","v":0}]
[18,null,{"$f":"'FR-16(7)(v)-1 Functional'!C229","v":"POLES, TOWERS  & FIXTURES - PRIMARY - CUSTOMER"},null,null,{"$f":"F75-F152","v":0},{"$f":"G75-G152","v":0},0,0,0,0,0,0,0,0,0,0,0,{"$f":"F229-R229","v":0}]
[19,null,{"$f":"'FR-16(7)(v)-1 Functional'!C230","v":"POLES, TOWERS  & FIXTURES - SECONDARY - DEMAND"},null,null,0,{"$f":"G76-G153","v":0},0,0,0,0,0,0,0,0,0,0,0,0]
[20,null,{"$f":"'FR-16(7)(v)-1 Functional'!C231","v":"POLES, TOWERS  & FIXTURES - SECONDARY - CUSTOMER"},null,null,0,{"$f":"G77-G154","v":0},0,0,0,0,0,0,0,0,0,0,0,0]
[21,null,{"$f":"'FR-16(7)(v)-1 Functional'!C232","v":"CONDUCTORS - OVERHEAD / PRIMARY - DEMAND"},null,null,0,{"$f":"G78-G155","v":0},0,0,0,0,0,0,0,0,0,0,0,0]
[22,null,{"$f":"'FR-16(7)(v)-1 Functional'!C233","v":"CONDUCTORS - OVERHEAD / PRIMARY - CUSTOMER"},null,null,0,{"$f":"G79-G156","v":0},0,0,0,0,0,0,0,0,0,0,0,0]
[23,null,{"$f":"'FR-16(7)(v)-1 Functional'!C234","v":"CONDUCTORS - OVERHEAD / SECONDARY - DEMAND"},null,null,0,{"$f":"G80-G157","v":0},0,0,0,0,0,0,0,0,0,0,0,0]
[24,null,{"$f":"'FR-16(7)(v)-1 Functional'!C235","v":"CONDUCTORS - OVERHEAD / SECONDARY - CUSTOMER"},null,null,0,{"$f":"G81-G158","v":0},0,0,0,0,0,0,0,0,0,0,0,0]
[25,null,{"$f":"'FR-16(7)(v)-1 Functional'!C236","v":"CONDUCTORS - UNDERGROUND / PRIMARY - DEMAND"},null,null,0,{"$f":"G82-G159","v":0},0,0,0,0,0,0,0,0,0,0,0,0]
[26,null,{"$f":"'FR-16(7)(v)-1 Functional'!C237","v":"CONDUCTORS - UNDERGROUND / PRIMARY - CUSTOMER"},null,null,0,{"$f":"G83-G160","v":0},0,0,0,0,0,0,0,0,0,0,0,0]
[27,null,{"$f":"'FR-16(7)(v)-1 Functional'!C238","v":"CONDUCTORS - UNDERGROUND / SECONDARY - DEMAND"},null,null,0,{"$f":"G84-G161","v":0},0,0,0,0,0,0,0,0,0,0,0,0]
[28,null,{"$f":"'FR-16(7)(v)-1 Functional'!C239","v":"CONDUCTORS - UNDERGROUND / SECONDARY - CUSTOMER"},null,null,0,{"$f":"G85-G162","v":0},0,0,0,0,0,0,0,0,0,0,0,0]
[29,null,"TRANSFORMERS DEMAND RELATED",null,null,0,{"$f":"G86-G163","v":0},0,0,0,0,0,0,0,0,0,0,0,{"$f":"F240-R240","v":0}]
[30,null,"TRANSFORMERS CUSTOMER RELATED",null,null,0,{"$f":"G87-G164","v":0},0,0,0,0,0,0,0,0,0,0,0,0]
[31,null,{"$f":"'FR-16(7)(v)-1 Functional'!C242","v":"SERVICES"},null,null,0,{"$f":"G88-G165","v":0},{"$f":"H88-H165","v":0},0,0,0,0,0,0,0,0,0,{"$f":"R88-R165","v":0},0]
[32,null,{"$f":"'FR-16(7)(v)-1 Functional'!C243","v":"METERS"},null,null,0,0,{"$f":"H89-H166","v":0},0,0,0,0,0,0,0,0,0,{"$f":"R89-R166","v":0},0]
[33,null,{"$f":"'FR-16(7)(v)-1 Functional'!C244","v":"STREET LIGHTS"},null,null,0,0,{"$f":"H90-H167","v":0},0,0,0,0,0,0,0,0,0,{"$f":"R90-R167","v":0},0]
[34,null,{"$f":"'FR-16(7)(v)-1 Functional'!C245","v":"ADJUSTMENT  "},null,null,0,0,{"$f":"H91-H168","v":0},0,0,0,0,0,0,0,0,0,{"$f":"R91-R168","v":0},0]
[35,null,{"$f":"'FR-16(7)(v)-1 Functional'!C246","v":"CONSTRUCTION NOT CLASSIFIED"},null,null,0,0,{"$f":"H92-H169","v":0},0,0,0,0,0,0,0,0,0,{"$f":"R92-R169","v":0},0]
[36,null,{"$f":"'FR-16(7)(v)-1 Functional'!C247","v":"RWIP"},null,null,0,0,0,0,0,0,0,0,0,0,0,0,0,0]
[37,null,{"$f":"'FR-16(7)(v)-1 Functional'!C248","v":"  NET DISTRIBUTION PLANT"},null,null,{"$f":"SUM(F226:F247)","v":0},{"$f":"SUM(G226:G247)","v":0},0,0,0,0,0,0,0,0,0,0,0,0]
[38]
[39,"NET PTD PLANT",null,null,null,{"$f":"F96-F173","v":0},0,0,0,{"$f":"J96-J173","v":0},0,0,0,0,0,0,0,0,{"$f":"S248+S222+S216","v":0}]
[40,"NET TRANS & DIST PLANT",null,null,null,{"$f":"F97-F174","v":0},0,0,0,{"$f":"J97-J174","v":0},0,0,0,0,0,0,0,0,{"$f":"S248+S222","v":0}]
[41]
[42,"GENERAL & INTANGIBLE PLANT"]
[43,null,{"$f":"'FR-16(7)(v)-1 Functional'!C254","v":"PRODUCTION - DEMAND"},null,null,{"$f":"F100-F177","v":0},0,0,0,{"$f":"J100-J177","v":0},0,0,0,0,0,0,0,0,{"$f":"F254-R254","v":0}]
[44,null,{"$f":"'FR-16(7)(v)-1 Functional'!C255","v":"PRODUCTION - ENERGY"},null,null,{"$f":"F101-F178","v":0},0,0,0,{"$f":"J101-J178","v":0},0,0,0,0,0,0,0,0,{"$f":"F255-R255","v":0}]
[45,null,{"$f":"'FR-16(7)(v)-1 Functional'!C256","v":"TRANSMISSION"},null,null,{"$f":"F102-F179","v":0},0,0,0,{"$f":"J102-J179","v":0},0,0,0,0,0,0,0,0,0]
[46,null,{"$f":"'FR-16(7)(v)-1 Functional'!C257","v":"DISTRIBUTION - DEMAND"},null,null,{"$f":"F103-F180","v":0},0,0,0,0,0,0,0,0,0,0,0,0,0]
[47,null,{"$f":"'FR-16(7)(v)-1 Functional'!C258","v":"DISTRIBUTION - CUSTOMER"},null,null,{"$f":"F104-F181","v":0},0,0,0,0,0,0,0,0,0,0,0,0,{"$f":"F258-R258","v":0}]
[48,null,{"$f":"'FR-16(7)(v)-1 Functional'!C259","v":"CUSTOMER ACCOUNTING"},null,null,{"$f":"F105-F182","v":0},0,0,0,{"$f":"J105-J182","v":0},0,0,0,0,0,0,0,0,0]
[49,null,{"$f":"'FR-16(7)(v)-1 Functional'!C260","v":"CUSTOMER SERVICE & INFORMATION"},null,null,{"$f":"F106-F183","v":0},0,0,0,{"$f":"J106-J183","v":0},0,0,0,0,0,0,{"$f":"Q106-Q183","v":0},{"$f":"R106-R183","v":0},0]
[50,null,{"$f":"'FR-16(7)(v)-1 Functional'!C261","v":"SALES"},null,null,0,0,0,0,{"$f":"J107-J184","v":0},0,0,0,0,0,0,{"$f":"Q107-Q184","v":0},{"$f":"R107-R184","v":0},0]
[51,null,{"$f":"'FR-16(7)(v)-1 Functional'!C262","v":"ADJUSTMENT"},null,null,{"$f":"F108-F185","v":0},0,0,0,{"$f":"J108-J185","v":0},0,0,0,0,0,0,0,0,{"$f":"F262-R262","v":0}]
[52,null,{"$f":"'FR-16(7)(v)-1 Functional'!C263","v":"  NET GENERAL & INTANG PLANT"},null,null,{"$f":"SUM(F253:F262)","v":0},0,0,0,{"$f":"SUM(J253:J262)","v":0},0,0,0,0,0,0,0,0,0]
[53]
[54,"COMMON & OTHER PLANT"]
[55,null,{"$f":"'FR-16(7)(v)-1 Functional'!C266","v":"PRODUCTION - DEMAND"},null,null,{"$f":"F112-F189","v":0},0,0,0,{"$f":"J112-J189","v":0},0,0,0,0,0,0,0,0,{"$f":"F266-R266","v":0}]
[56,null,{"$f":"'FR-16(7)(v)-1 Functional'!C267","v":"PRODUCTION - ENERGY"},null,null,{"$f":"F113-F190","v":0},0,0,0,{"$f":"J113-J190","v":0},0,0,0,0,0,0,0,0,{"$f":"F267-R267","v":0}]
[57,null,{"$f":"'FR-16(7)(v)-1 Functional'!C268","v":"TRANSMISSION"},null,null,{"$f":"F114-F191","v":0},0,0,0,{"$f":"J114-J191","v":0},0,0,0,0,0,0,0,0,0]
[58,null,{"$f":"'FR-16(7)(v)-1 Functional'!C269","v":"DISTRIBUTION - DEMAND"},null,null,{"$f":"F115-F192","v":0},0,0,0,0,0,0,0,0,0,0,0,0,0]
[59,null,{"$f":"'FR-16(7)(v)-1 Functional'!C270","v":"DISTRIBUTION - CUSTOMER"},null,null,{"$f":"F116-F193","v":0},0,0,0,0,0,0,0,0,0,0,0,0,{"$f":"F270-R270","v":0}]
[60,null,{"$f":"'FR-16(7)(v)-1 Functional'!C271","v":"CUSTOMER ACCOUNTING"},null,null,{"$f":"F117-F194","v":0},0,0,0,{"$f":"J117-J194","v":0},0,0,0,0,0,0,0,0,0]
[61,null,{"$f":"'FR-16(7)(v)-1 Functional'!C272","v":"CUSTOMER SERVICE & INFORMATION"},null,null,{"$f":"F118-F195","v":0},0,0,0,{"$f":"J118-J195","v":0},0,{"$f":"L118-L195","v":0},0,0,0,0,{"$f":"Q118-Q195","v":0},{"$f":"R118-R195","v":0},0]
[62,null,{"$f":"'FR-16(7)(v)-1 Functional'!C273","v":"SALES"},null,null,0,0,0,0,{"$f":"J119-J196","v":0},0,0,0,0,0,0,{"$f":"Q119-Q196","v":0},{"$f":"R119-R196","v":0},0]
[63,null,{"$f":"'FR-16(7)(v)-1 Functional'!C274","v":"ADJUSTMENT"},null,null,{"$f":"F120-F197","v":0},0,0,0,{"$f":"J120-J197","v":0},0,0,0,0,0,0,0,0,{"$f":"F274-R274","v":0}]
[64,null,"  COMMON & OTHER PLANT IN SERVICE",null,null,{"$f":"SUM(F265:F274)","v":0},0,0,0,{"$f":"SUM(J265:J274)","v":0},0,0,0,0,0,0,0,0,0]
[65]
[66,null,{"$f":"'FR-16(7)(v)-1 Functional'!C277","v":"NET ELECTRIC PLANT IN SERVICE"},null,null,{"$f":"F275+F263+F248+F222+F216","v":0},{"$f":"G275+G263+G248+G222+G216","v":0},{"$f":"H275+H263+H248+H222+H216","v":0},{"$f":"I275+I263+I248+I222+I216","v":0},{"$f":"J275+J263+J248+J222+J216","v":0},0,0,0,0,0,0,{"$f":"Q275+Q263+Q248+Q222+Q216","v":0},{"$f":"R275+R263+R248+R222+R216","v":0},{"$f":"S275+S263+S248+S222+S216","v":0}]
[]
[{"$f":"co_name","v":"DUKE ENERGY KENTUCKY, INC."},null,null,null,null,null,null,null,null,null,null,null,null,null,null,null,null,{"$f":"R1","v":"FR-16(7)(v)-12"}]
[{"$f":"$A$2","v":"DISTRIBUTION ENERGY ALLOCATED - ELECTRIC COST OF SERVICE"},null,null,null,null,null,null,null,null,null,null,null,null,null,null,null,null,{"$f":"R2","v":"WITNESS RESPONSIBLE:"}]
[{"$f":"case_name","v":"CASE NO: 2019-00271"},null,null,null,null,null,null,null,null,null,null,null,null,null,null,null,null,{"$f":"Witness","v":"JAMES E. ZIOLKOWSKI"}]
[{"$f":"data_filing","v":"DATA: 12 MONTHS ACTUAL  & 0 MONTHS ESTIMATED"},null,null,null,null,null,null,null,null,null,null,null,null,null,null,null,null,{"$f":"\"PAGE \"&Pages-13&\" OF \"&Pages","v":"PAGE 5 OF 18"}]
[{"$f":"type","v":"TYPE OF FILING: \"X\" ORIGINAL   UPDATED    REVISED  "}]
[]
[null,null,null,null,null,{"$f":"F$7","v":"TOTAL"},null,{"$f":"H$7","v":"DS"},{"$f":"I$7","v":"GSFL"},{"$f":"J$7","v":"EH"},{"$f":"K$7","v":"SP"},"DT SEC","DT PRI","DP","TT",null,"OTHER"]
["LINE",null,null,null,null,{"$f":"F$8","v":"DISTRIBUTION"},{"$f":"G$8","v":"RS"},{"$f":"H$8","v":"SECONDARY"},{"$f":"I$8","v":"SECONDARY"},{"$f":"J$8","v":"SECONDARY"},{"$f":"K$8","v":"SECONDARY"},"SECONDARY","PRIMARY","PRIMARY","TRANSMISSION","LT","WATER",{"$f":"R8","v":"TOTAL"},"ALL"]
["NO.","SUBTRACTIVE RATE BASE ADJUSTMENTS",null,"ALLO",null,{"$f":"F$9","v":"ENERGY"},{"$f":"G$9","v":"RESIDENTIAL"},{"$f":"H$9","v":"DISTRIBUTION"},{"$f":"I$9","v":"DISTRIBUTION"},{"$f":"J$9","v":"DISTRIBUTION"},{"$f":"K$9","v":"DISTRIBUTION"},"DISTRIBUTION","DISTRIBUTION","DISTRIBUTION","TIME OF DAY","LIGHTING","PUMPING",{"$f":"R9","v":"AT ISSUE"},"OTHER"]
[null,null,"Schedule 5",null,null,null,{"$f":"G$10","v":3},{"$f":"H$10","v":4},{"$f":"I$10","v":5},{"$f":"J$10","v":6},{"$f":"K$10","v":7},8,9,10,11,12,13,null," "]
[1,"RATE BASE ADJUSTMENTS"]
[2,"ACCUMULATED DEFERRED INCOME TAXES"]
[3," ACCUM DEF INC TAXES (282)"]
[4,null,{"$f":"'FR-16(7)(v)-1 Functional'!C292","v":"LIBERALIZED DEPRECIATION"},{"$f":"'FR-16(7)(v)-1 Functional'!D292","v":"NP29"}," ",{"$f":"'FR-16(7)(v)-10 DIST Classified'!H292","v":0},{"$f":"F292-SUM(H292:Q292)","v":0},{"$f":"ROUND(F292*VLOOKUP(D292,ALLOCTABLE_Distr_Energy,$H$10,FALSE),0)","v":0},{"$f":"ROUND(F292*VLOOKUP(D292,ALLOCTABLE_Distr_Energy,$I$10,FALSE),0)","v":0},{"$f":"ROUND(F292*VLOOKUP(D292,ALLOCTABLE_Distr_Energy,$J$10,FALSE),0)","v":0},{"$f":"ROUND(F292*VLOOKUP(D292,ALLOCTABLE_Distr_Energy,$K$10,FALSE),0)","v":0},{"$f":"ROUND(F292*VLOOKUP(D292,ALLOCTABLE_Distr_Energy,$L$10,FALSE),0)","v":0},{"$f":"ROUND(F292*VLOOKUP(D292,ALLOCTABLE_Distr_Energy,$M$10,FALSE),0)","v":0},{"$f":"ROUND(F292*VLOOKUP(D292,ALLOCTABLE_Distr_Energy,$N$10,FALSE),0)","v":0},{"$f":"ROUND(F292*VLOOKUP(D292,ALLOCTABLE_Distr_Energy,$O$10,FALSE),0)","v":0},{"$f":"ROUND(F292*VLOOKUP(D292,ALLOCTABLE_Distr_Energy,$P$10,FALSE),0)","v":0},{"$f":"ROUND(F292*VLOOKUP(D292,ALLOCTABLE_Distr_Energy,$Q$10,FALSE),0)","v":0},{"$f":"SUM(G292:Q292)","v":0},{"$f":"F292-R292","v":0}]
[5,null,{"$f":"'FR-16(7)(v)-1 Functional'!C293","v":"LEASED METERS"},{"$f":"'FR-16(7)(v)-1 Functional'!D293","v":"NP29"}," ",{"$f":"'FR-16(7)(v)-10 DIST Classified'!H293","v":0},0,0,0,0,0,0,0,0,0,0,0,0,0]
[6,null,{"$f":"'FR-16(7)(v)-1 Functional'!C294","v":"CONTRIB AID CONSTR"},{"$f":"'FR-16(7)(v)-1 Functional'!D294","v":"D249"}," ",{"$f":"'FR-16(7)(v)-10 DIST Classified'!H294","v":0},0,0,0,0,0,0,0,0,0,0,0,0,0]
[7,null,{"$f":"'FR-16(7)(v)-1 Functional'!C295","v":"TAX INTEREST, EXPENSING, DEPR."},{"$f":"'FR-16(7)(v)-1 Functional'!D295","v":"NP29"}," ",{"$f":"'FR-16(7)(v)-10 DIST Classified'!H295","v":0},0,0,0,0,0,0,0,0,0,0,0,0,0]
[8,null,{"$f":"'FR-16(7)(v)-1 Functional'!C296","v":"AFUDC IN DEBT"},{"$f":"'FR-16(7)(v)-1 Functional'!D296","v":"NP29"}," ",{"$f":"'FR-16(7)(v)-10 DIST Classified'!H296","v":0},0,0,0,0,0,0,0,0,0,0,0,0,0]
[9,null,{"$f":"'FR-16(7)(v)-1 Functional'!C297","v":"CASUALTY LOSS"},{"$f":"'FR-16(7)(v)-1 Functional'!D297","v":"K411"}," ",{"$f":"'FR-16(7)(v)-10 DIST Classified'!H297","v":0},0,0,0,0,0,0,0,0,0,0,0,0,0]
[10,null,{"$f":"'FR-16(7)(v)-1 Functional'!C298","v":"NON-CASH OVERHEADS"},{"$f":"'FR-16(7)(v)-1 Functional'!D298","v":"G229"}," ",{"$f":"'FR-16(7)(v)-10 DIST Classified'!H298","v":0},0,0,0,0,0,0,0,0,0,0,0,0,0]
[11,null,{"$f":"'FR-16(7)(v)-1 Functional'!C299","v":"PLANT FAS 109"},{"$f":"'FR-16(7)(v)-1 Functional'!D299","v":"NP29"}," ",{"$f":"'FR-16(7)(v)-10 DIST Classified'!H299","v":0},0,0,0,0,0,0,0,0,0,0,0,0,0]
[12,null,{"$f":"'FR-16(7)(v)-1 Functional'!C300","v":"MISCELLANEOUS"},{"$f":"'FR-16(7)(v)-1 Functional'!D300","v":"NP29"},null,{"$f":"'FR-16(7)(v)-10 DIST Classified'!H300","v":0},0,0,0,0,0,0,0,0,0,0,0,0,0]
[13,null,{"$f":"'FR-16(7)(v)-1 Functional'!C301","v":"  TOTAL ACCOUNT 282"},null,null,{"$f":"SUM(F292:F300)","v":0},{"$f":"SUM(G292:G300)","v":0},{"$f":"SUM(H292:H300)","v":0},{"$f":"SUM(I292:I300)","v":0},{"$f":"SUM(J292:J300)","v":0},0,0,0,0,0,0,{"$f":"SUM(Q292:Q300)","v":0},{"$f":"SUM(R292:R300)","v":0},{"$f":"SUM(S292:S300)","v":0}]
[14]
[15," ACCUM DEF INC TAXES (283)"]
[16,null,{"$f":"'FR-16(7)(v)-1 Functional'!C304","v":"TRANSITION FROM MISO TO PJM"},{"$f":"'FR-16(7)(v)-1 Functional'!D304","v":"NP29"},null,{"$f":"'FR-16(7)(v)-10 DIST Classified'!H304","v":0},{"$f":"F304-SUM(H304:Q304)","v":0},{"$f":"ROUND(F304*VLOOKUP(D304,ALLOCTABLE_Distr_Energy,$H$10,FALSE),0)","v":0},{"$f":"ROUND(F304*VLOOKUP(D304,ALLOCTABLE_Distr_Energy,$I$10,FALSE),0)","v":0},{"$f":"ROUND(F304*VLOOKUP(D304,ALLOCTABLE_Distr_Energy,$J$10,FALSE),0)","v":0},{"$f":"ROUND(F304*VLOOKUP(D304,ALLOCTABLE_Distr_Energy,$K$10,FALSE),0)","v":0},{"$f":"ROUND(F304*VLOOKUP(D304,ALLOCTABLE_Distr_Energy,$L$10,FALSE),0)","v":0},{"$f":"ROUND(F304*VLOOKUP(D304,ALLOCTABLE_Distr_Energy,$M$10,FALSE),0)","v":0},{"$f":"ROUND(F304*VLOOKUP(D304,ALLOCTABLE_Distr_Energy,$N$10,FALSE),0)","v":0},{"$f":"ROUND(F304*VLOOKUP(D304,ALLOCTABLE_Distr_Energy,$O$10,FALSE),0)","v":0},{"$f":"ROUND(F304*VLOOKUP(D304,ALLOCTABLE_Distr_Energy,$P$10,FALSE),0)","v":0},{"$f":"ROUND(F304*VLOOKUP(D304,ALLOCTABLE_Distr_Energy,$Q$10,FALSE),0)","v":0},{"$f":"SUM(G304:Q304)","v":0},{"$f":"F304-R304","v":0}]
[17,null,{"$f":"'FR-16(7)(v)-1 Functional'!C305","v":"DEFERRED PLANT COSTS"},{"$f":"'FR-16(7)(v)-1 Functional'!D305","v":"NP29"},null,{"$f":"'FR-16(7)(v)-10 DIST Classified'!H305","v":0},0,0,0,0,0,0,0,0,0,0,0,0,0]
[18,null,{"$f":"'FR-16(7)(v)-1 Functional'!C306","v":"MISCELLANEOUS"},{"$f":"'FR-16(7)(v)-1 Functional'!D306","v":"OM39"},null,{"$f":"'FR-16(7)(v)-10 DIST Classified'!H306","v":0},0,0,0,0,0,0,0,0,0,0,0,0,0]
[19,null,{"$f":"'FR-16(7)(v)-1 Functional'!C307","v":"ENVIRONMENTAL RESERVE"},{"$f":"'FR-16(7)(v)-1 Functional'!D307","v":"NP29"},null,{"$f":"'FR-16(7)(v)-10 DIST Classified'!H307","v":0},0,0,0,0,0,0,0,0,0,0,0,0,0]
[20,null,{"$f":"'FR-16(7)(v)-1 Functional'!C308","v":"POST IN-SERVICE CARRYING COSTS"},{"$f":"'FR-16(7)(v)-1 Functional'!D308","v":"NP29"},null,{"$f":"'FR-16(7)(v)-10 DIST Classified'!H308","v":0},0,0,0,0,0,0,0,0,0,0,0,0,0]
[21,null,{"$f":"'FR-16(7)(v)-1 Functional'!C309","v":"ARO CUMULATIVE EFFECT"},{"$f":"'FR-16(7)(v)-1 Functional'!D309","v":"NP29"},null,{"$f":"'FR-16(7)(v)-10 DIST Classified'!H309","v":0},0,0,0,0,0,0,0,0,0,0,0,0,0]
[22,null,{"$f":"'FR-16(7)(v)-1 Functional'!C310","v":"LOSS ON REACQUIRED DEBT"},{"$f":"'FR-16(7)(v)-1 Functional'!D310","v":"D249"},null,{"$f":"'FR-16(7)(v)-10 DIST Classified'!H310","v":0},0,0,0,0,0,0,0,0,0,0,0,0,0]
[23,null,{"$f":"'FR-16(7)(v)-1 Functional'!C311","v":"VACATION PAY ACCRUAL"},{"$f":"'FR-16(7)(v)-1 Functional'!D311","v":"A315"},null,{"$f":"'FR-16(7)(v)-10 DIST Classified'!H311","v":0},0,0,0,0,0,0,0,0,0,0,0,0,0]
[24,null,{"$f":"'FR-16(7)(v)-1 Functional'!C312","v":"NON-AMI METERS RETIRED EARLY"},{"$f":"'FR-16(7)(v)-1 Functional'!D312","v":"OM39"},null,{"$f":"'FR-16(7)(v)-10 DIST Classified'!H312","v":0},0,0,0,0,0,0,0,0,0,0,0,{"$f":"SUM(G312:Q312)","v":0},{"$f":"F312-R312","v":0}]
[25,null,{"$f":"'FR-16(7)(v)-1 Functional'!C313","v":"PENSION EXPENSE"},{"$f":"'FR-16(7)(v)-1 Functional'!D313","v":"A315"},null,{"$f":"'FR-16(7)(v)-10 DIST Classified'!H313","v":0},0,0,0,0,0,0,0,0,0,0,0,{"$f":"SUM(G313:Q313)","v":0},{"$f":"F313-R313","v":0}]
[26,null,{"$f":"'FR-16(7)(v)-1 Functional'!C314","v":"UNCOLLECTIBLE ACCOUNTS"},{"$f":"'FR-16(7)(v)-1 Functional'!D314","v":"K411"},null,{"$f":"'FR-16(7)(v)-10 DIST Classified'!H314","v":0},0,0,0,0,0,0,0,0,0,0,0,0,0]
[27,null,{"$f":"'FR-16(7)(v)-1 Functional'!C315","v":"  TOTAL ACCOUNT 283"},null,null,{"$f":"SUM(F303:F314)","v":0},{"$f":"SUM(G303:G314)","v":0},{"$f":"SUM(H303:H314)","v":0},{"$f":"SUM(I303:I314)","v":0},{"$f":"SUM(J303:J314)","v":0},0,0,0,0,0,0,{"$f":"SUM(Q303:Q314)","v":0},{"$f":"SUM(R303:R314)","v":0},{"$f":"SUM(S303:S314)","v":0}]
[28]
[29," OTHER ACCUMULATED DEFERRED INCOME TAXES"]
[30,null,{"$f":"'FR-16(7)(v)-1 Functional'!C318","v":"EXCESS ADIT"},{"$f":"'FR-16(7)(v)-1 Functional'!D318","v":"NP29"},null,{"$f":"'FR-16(7)(v)-10 DIST Classified'!H318","v":0},{"$f":"F318-SUM(H318:Q318)","v":0},{"$f":"ROUND(F318*VLOOKUP(D318,ALLOCTABLE_Distr_Energy,$H$10,FALSE),0)","v":0},{"$f":"ROUND(F318*VLOOKUP(D318,ALLOCTABLE_Distr_Energy,$I$10,FALSE),0)","v":0},{"$f":"ROUND(F318*VLOOKUP(D318,ALLOCTABLE_Distr_Energy,$J$10,FALSE),0)","v":0},{"$f":"ROUND(F318*VLOOKUP(D318,ALLOCTABLE_Distr_Energy,$K$10,FALSE),0)","v":0},{"$f":"ROUND(F318*VLOOKUP(D318,ALLOCTABLE_Distr_Energy,$L$10,FALSE),0)","v":0},{"$f":"ROUND(F318*VLOOKUP(D318,ALLOCTABLE_Distr_Energy,$M$10,FALSE),0)","v":0},{"$f":"ROUND(F318*VLOOKUP(D318,ALLOCTABLE_Distr_Energy,$N$10,FALSE),0)","v":0},{"$f":"ROUND(F318*VLOOKUP(D318,ALLOCTABLE_Distr_Energy,$O$10,FALSE),0)","v":0},{"$f":"ROUND(F318*VLOOKUP(D318,ALLOCTABLE_Distr_Energy,$P$10,FALSE),0)","v":0},{"$f":"ROUND(F318*VLOOKUP(D318,ALLOCTABLE_Distr_Energy,$Q$10,FALSE),0)","v":0},{"$f":"SUM(G318:Q318)","v":0},{"$f":"F318-R318","v":0}]
[31,null,{"$f":"'FR-16(7)(v)-1 Functional'!C319","v":"CUSTOMER SERVICE DEPOSITS"},{"$f":"'FR-16(7)(v)-1 Functional'!D319","v":"NP29"},null,{"$f":"'FR-16(7)(v)-10 DIST Classified'!H319","v":0},{"$f":"F319-SUM(H319:Q319)","v":0},{"$f":"ROUND(F319*VLOOKUP(D319,ALLOCTABLE_Distr_Energy,$H$10,FALSE),0)","v":0},{"$f":"ROUND(F319*VLOOKUP(D319,ALLOCTABLE_Distr_Energy,$I$10,FALSE),0)","v":0},{"$f":"ROUND(F319*VLOOKUP(D319,ALLOCTABLE_Distr_Energy,$J$10,FALSE),0)","v":0},{"$f":"ROUND(F319*VLOOKUP(D319,ALLOCTABLE_Distr_Energy,$K$10,FALSE),0)","v":0},{"$f":"ROUND(F319*VLOOKUP(D319,ALLOCTABLE_Distr_Energy,$L$10,FALSE),0)","v":0},{"$f":"ROUND(F319*VLOOKUP(D319,ALLOCTABLE_Distr_Energy,$M$10,FALSE),0)","v":0},{"$f":"ROUND(F319*VLOOKUP(D319,ALLOCTABLE_Distr_Energy,$N$10,FALSE),0)","v":0},{"$f":"ROUND(F319*VLOOKUP(D319,ALLOCTABLE_Distr_Energy,$O$10,FALSE),0)","v":0},{"$f":"ROUND(F319*VLOOKUP(D319,ALLOCTABLE_Distr_Energy,$P$10,FALSE),0)","v":0},{"$f":"ROUND(F319*VLOOKUP(D319,ALLOCTABLE_Distr_Energy,$Q$10,FALSE),0)","v":0},{"$f":"SUM(G319:Q319)","v":0},{"$f":"F319-R319","v":0}]
[32,null,{"$f":"'FR-16(7)(v)-1 Functional'!C320","v":"POST RETIREMENT BENEFITS"},{"$f":"'FR-16(7)(v)-1 Functional'!D320","v":"NP29"},null,{"$f":"'FR-16(7)(v)-10 DIST Classified'!H320","v":0},{"$f":"F320-SUM(H320:Q320)","v":0},{"$f":"ROUND(F320*VLOOKUP(D320,ALLOCTABLE_Distr_Energy,$H$10,FALSE),0)","v":0},{"$f":"ROUND(F320*VLOOKUP(D320,ALLOCTABLE_Distr_Energy,$I$10,FALSE),0)","v":0},{"$f":"ROUND(F320*VLOOKUP(D320,ALLOCTABLE_Distr_Energy,$J$10,FALSE),0)","v":0},{"$f":"ROUND(F320*VLOOKUP(D320,ALLOCTABLE_Distr_Energy,$K$10,FALSE),0)","v":0},{"$f":"ROUND(F320*VLOOKUP(D320,ALLOCTABLE_Distr_Energy,$L$10,FALSE),0)","v":0},{"$f":"ROUND(F320*VLOOKUP(D320,ALLOCTABLE_Distr_Energy,$M$10,FALSE),0)","v":0},{"$f":"ROUND(F320*VLOOKUP(D320,ALLOCTABLE_Distr_Energy,$N$10,FALSE),0)","v":0},{"$f":"ROUND(F320*VLOOKUP(D320,ALLOCTABLE_Distr_Energy,$O$10,FALSE),0)","v":0},{"$f":"ROUND(F320*VLOOKUP(D320,ALLOCTABLE_Distr_Energy,$P$10,FALSE),0)","v":0},{"$f":"ROUND(F320*VLOOKUP(D320,ALLOCTABLE_Distr_Energy,$Q$10,FALSE),0)","v":0},{"$f":"SUM(G320:Q320)","v":0},{"$f":"F320-R320","v":0}]
[33,null,{"$f":"'FR-16(7)(v)-1 Functional'!C321","v":"INVESTMENT TAX CREDIT"},{"$f":"'FR-16(7)(v)-1 Functional'!D321","v":"NP29"},null,{"$f":"'FR-16(7)(v)-10 DIST Classified'!H321","v":0},{"$f":"F321-SUM(H321:Q321)","v":0},{"$f":"ROUND(F321*VLOOKUP(D321,ALLOCTABLE_Distr_Energy,$H$10,FALSE),0)","v":0},{"$f":"ROUND(F321*VLOOKUP(D321,ALLOCTABLE_Distr_Energy,$I$10,FALSE),0)","v":0},{"$f":"ROUND(F321*VLOOKUP(D321,ALLOCTABLE_Distr_Energy,$J$10,FALSE),0)","v":0},{"$f":"ROUND(F321*VLOOKUP(D321,ALLOCTABLE_Distr_Energy,$K$10,FALSE),0)","v":0},{"$f":"ROUND(F321*VLOOKUP(D321,ALLOCTABLE_Distr_Energy,$L$10,FALSE),0)","v":0},{"$f":"ROUND(F321*VLOOKUP(D321,ALLOCTABLE_Distr_Energy,$M$10,FALSE),0)","v":0},{"$f":"ROUND(F321*VLOOKUP(D321,ALLOCTABLE_Distr_Energy,$N$10,FALSE),0)","v":0},{"$f":"ROUND(F321*VLOOKUP(D321,ALLOCTABLE_Distr_Energy,$O$10,FALSE),0)","v":0},{"$f":"ROUND(F321*VLOOKUP(D321,ALLOCTABLE_Distr_Energy,$P$10,FALSE),0)","v":0},{"$f":"ROUND(F321*VLOOKUP(D321,ALLOCTABLE_Distr_Energy,$Q$10,FALSE),0)","v":0},{"$f":"SUM(G321:Q321)","v":0},{"$f":"F321-R321","v":0}]
[34,null,{"$f":"'FR-16(7)(v)-1 Functional'!C322","v":"  TOTAL OTHER SUBTRACTIVE ADJUSTMENTS"},null,null,{"$f":"SUM(F317:F321)","v":0},{"$f":"SUM(G317:G321)","v":0},{"$f":"SUM(H317:H321)","v":0},{"$f":"SUM(I317:I321)","v":0},{"$f":"SUM(J317:J321)","v":0},0,0,0,0,0,0,{"$f":"SUM(Q317:Q321)","v":0},{"$f":"SUM(R317:R321)","v":0},{"$f":"SUM(S317:S321)","v":0}]
[35]
[36,{"$f":"'FR-16(7)(v)-1 Functional'!B324","v":"TOTAL SUBTRACTIVE RATE BASE ADJUSTMENTS"},null,null,null,{"$f":"F322+F315+F301","v":0},{"$f":"G322+G315+G301","v":0},{"$f":"H322+H315+H301","v":0},{"$f":"I322+I315+I301","v":0},{"$f":"J322+J315+J301","v":0},0,0,0,0,0,0,{"$f":"Q322+Q315+Q301","v":0},{"$f":"R322+R315+R301","v":0},{"$f":"S322+S315+S301","v":0}]
[]
[{"$f":"co_name","v":"DUKE ENERGY KENTUCKY, INC."},null,null,null,null,null,null,null,null,null,null,null,null,null,null,null,null,{"$f":"R1","v":"FR-16(7)(v)-12"}]
[{"$f":"$A$2","v":"DISTRIBUTION ENERGY ALLOCATED - ELECTRIC COST OF SERVICE"},null,null,null,null,null,null,null,null,null,null,null,null,null,null,null,null,{"$f":"R2","v":"WITNESS RESPONSIBLE:"}]
[{"$f":"case_name","v":"CASE NO: 2019-00271"},null,null,null,null,null,null,null,null,null,null,null,null,null,null,null,null,{"$f":"Witness","v":"JAMES E. ZIOLKOWSKI"}]
[{"$f":"data_filing","v":"DATA: 12 MONTHS ACTUAL  & 0 MONTHS ESTIMATED"},null,null,null,null,null,null,null,null,null,null,null,null,null,null,null,null,{"$f":"\"PAGE \"&Pages-12&\" OF \"&Pages","v":"PAGE 6 OF 18"}]
[{"$f":"type","v":"TYPE OF FILING: \"X\" ORIGINAL   UPDATED    REVISED  "}]
[]
[null,null,null,null,null,{"$f":"F$7","v":"TOTAL"},null,{"$f":"H$7","v":"DS"},{"$f":"I$7","v":"GSFL"},{"$f":"J$7","v":"EH"},{"$f":"K$7","v":"SP"},"DT SEC","DT PRI","DP","TT",null,"OTHER"]
["LINE",null,null,null,null,{"$f":"F$8","v":"DISTRIBUTION"},{"$f":"G$8","v":"RS"},{"$f":"H$8","v":"SECONDARY"},{"$f":"I$8","v":"SECONDARY"},{"$f":"J$8","v":"SECONDARY"},{"$f":"K$8","v":"SECONDARY"},"SECONDARY","PRIMARY","PRIMARY","TRANSMISSION","LT","WATER",{"$f":"R8","v":"TOTAL"},"ALL"]
["NO.","ADDITIVE RATE BASE ADJUSTMENTS",null,"ALLO",null,{"$f":"F$9","v":"ENERGY"},{"$f":"G$9","v":"RESIDENTIAL"},{"$f":"H$9","v":"DISTRIBUTION"},{"$f":"I$9","v":"DISTRIBUTION"},{"$f":"J$9","v":"DISTRIBUTION"},{"$f":"K$9","v":"DISTRIBUTION"},"DISTRIBUTION","DISTRIBUTION","DISTRIBUTION","TIME OF DAY","LIGHTING","PUMPING",{"$f":"R9","v":"AT ISSUE"},"OTHER"]
[null,null,"Schedule 5.1",null,null,null,{"$f":"G$10","v":3},{"$f":"H$10","v":4},{"$f":"I$10","v":5},{"$f":"J$10","v":6},{"$f":"K$10","v":7},8,9,10,11,12,13,null," "]
[1,"OTHER ACCUMULATED DEFERRED INCOME TAXES"]
[2," ACCUM DEF INC TAXES (190)"]
[3,null,{"$f":"'FR-16(7)(v)-1 Functional'!C338","v":"UNCOLLECTIBLE ACCTS"},{"$f":"'FR-16(7)(v)-1 Functional'!D338","v":"K411"},null,{"$f":"'FR-16(7)(v)-10 DIST Classified'!H338","v":0},{"$f":"F338-SUM(H338:Q338)","v":0},{"$f":"ROUND(F338*VLOOKUP(D338,ALLOCTABLE_Distr_Energy,$H$10,FALSE),0)","v":0},{"$f":"ROUND(F338*VLOOKUP(D338,ALLOCTABLE_Distr_Energy,$I$10,FALSE),0)","v":0},{"$f":"ROUND(F338*VLOOKUP(D338,ALLOCTABLE_Distr_Energy,$J$10,FALSE),0)","v":0},{"$f":"ROUND(F338*VLOOKUP(D338,ALLOCTABLE_Distr_Energy,$K$10,FALSE),0)","v":0},{"$f":"ROUND(F338*VLOOKUP(D338,ALLOCTABLE_Distr_Energy,$L$10,FALSE),0)","v":0},{"$f":"ROUND(F338*VLOOKUP(D338,ALLOCTABLE_Distr_Energy,$M$10,FALSE),0)","v":0},{"$f":"ROUND(F338*VLOOKUP(D338,ALLOCTABLE_Distr_Energy,$N$10,FALSE),0)","v":0},{"$f":"ROUND(F338*VLOOKUP(D338,ALLOCTABLE_Distr_Energy,$O$10,FALSE),0)","v":0},{"$f":"ROUND(F338*VLOOKUP(D338,ALLOCTABLE_Distr_Energy,$P$10,FALSE),0)","v":0},{"$f":"ROUND(F338*VLOOKUP(D338,ALLOCTABLE_Distr_Energy,$Q$10,FALSE),0)","v":0},{"$f":"SUM(G338:Q338)","v":0},{"$f":"F338-R338","v":0}]
[4,null,{"$f":"'FR-16(7)(v)-1 Functional'!C339","v":"CASH FLOW HEDGE"},{"$f":"'FR-16(7)(v)-1 Functional'!D339","v":"A315"},null,{"$f":"'FR-16(7)(v)-10 DIST Classified'!H339","v":0},0,0,0,0,0,0,0,0,0,0,0,0,0]
[5,null,{"$f":"'FR-16(7)(v)-1 Functional'!C340","v":"RESERVED FOR FUTURE USE"},{"$f":"'FR-16(7)(v)-1 Functional'!D340","v":"NP29"},null,{"$f":"'FR-16(7)(v)-10 DIST Classified'!H340","v":0},0,0,0,0,0,0,0,0,0,0,0,0,0]
[6,null,{"$f":"'FR-16(7)(v)-1 Functional'!C341","v":"RESERVED FOR FUTURE USE"},{"$f":"'FR-16(7)(v)-1 Functional'!D341","v":"NP29"},null,{"$f":"'FR-16(7)(v)-10 DIST Classified'!H341","v":0},0,0,0,0,0,0,0,0,0,0,0,0,0]
[7,null,{"$f":"'FR-16(7)(v)-1 Functional'!C342","v":"ELECTRIC METERS"},{"$f":"'FR-16(7)(v)-1 Functional'!D342","v":"K407"},null,{"$f":"'FR-16(7)(v)-10 DIST Classified'!H342","v":0},0,0,0,0,0,0,0,0,0,0,0,0,0]
[8,null,{"$f":"'FR-16(7)(v)-1 Functional'!C343","v":"UNAMORTIZED DEBT PREMIUM"},{"$f":"'FR-16(7)(v)-1 Functional'!D343","v":"D249"},null,{"$f":"'FR-16(7)(v)-10 DIST Classified'!H343","v":0},0,0,0,0,0,0,0,0,0,0,0,0,0]
[9,null,{"$f":"'FR-16(7)(v)-1 Functional'!C344","v":"ARO CUMULATIVE EFFECT"},{"$f":"'FR-16(7)(v)-1 Functional'!D344","v":"NP29"},null,{"$f":"'FR-16(7)(v)-10 DIST Classified'!H344","v":0},0,0,0,0,0,0,0,0,0,0,0,0,0]
[10,null,{"$f":"'FR-16(7)(v)-1 Functional'!C345","v":"RETIREMENT PLAN"},{"$f":"'FR-16(7)(v)-1 Functional'!D345","v":"A315"},null,{"$f":"'FR-16(7)(v)-10 DIST Classified'!H345","v":0},0,0,0,0,0,0,0,0,0,0,0,0,0]
[11,null,{"$f":"'FR-16(7)(v)-1 Functional'!C346","v":"POST RETIREMENT BENEFITS "},{"$f":"'FR-16(7)(v)-1 Functional'!D346","v":"A315"},null,{"$f":"'FR-16(7)(v)-10 DIST Classified'!H346","v":0},0,0,0,0,0,0,0,0,0,0,0,0,0]
[12,null,{"$f":"'FR-16(7)(v)-1 Functional'!C347","v":"POST RETIREMENT BENEFITS - HEALTH CARE"},{"$f":"'FR-16(7)(v)-1 Functional'!D347","v":"A315"},null,{"$f":"'FR-16(7)(v)-10 DIST Classified'!H347","v":0},0,0,0,0,0,0,0,0,0,0,0,0,0]
[13,null,{"$f":"'FR-16(7)(v)-1 Functional'!C348","v":"POST EMPLOYMENT BENEFITS - SFAS 112"},{"$f":"'FR-16(7)(v)-1 Functional'!D348","v":"A315"},null,{"$f":"'FR-16(7)(v)-10 DIST Classified'!H348","v":0},0,0,0,0,0,0,0,0,0,0,0,0,0]
[14,null,{"$f":"'FR-16(7)(v)-1 Functional'!C349","v":"SUPPLEMENTAL PENSION PLAN"},{"$f":"'FR-16(7)(v)-1 Functional'!D349","v":"A315"},null,{"$f":"'FR-16(7)(v)-10 DIST Classified'!H349","v":0},0,0,0,0,0,0,0,0,0,0,0,0,0]
[15,null,{"$f":"'FR-16(7)(v)-1 Functional'!C350","v":"INCENTIVE PLAN"},{"$f":"'FR-16(7)(v)-1 Functional'!D350","v":"A315"},null,{"$f":"'FR-16(7)(v)-10 DIST Classified'!H350","v":0},0,0,0,0,0,0,0,0,0,0,0,0,0]
[16,null,{"$f":"'FR-16(7)(v)-1 Functional'!C351","v":"FEDERAL DEFERRED TAX RECEIVEABLE"},{"$f":"'FR-16(7)(v)-1 Functional'!D351","v":"A315"},null,{"$f":"'FR-16(7)(v)-10 DIST Classified'!H351","v":0},0,0,0,0,0,0,0,0,0,0,0,0,0]
[17,null,{"$f":"'FR-16(7)(v)-1 Functional'!C352","v":"MISCELLANEOUS"},{"$f":"'FR-16(7)(v)-1 Functional'!D352","v":"A315"},null,{"$f":"'FR-16(7)(v)-10 DIST Classified'!H352","v":0},0,0,0,0,0,0,0,0,0,0,0,0,0]
[18,null,{"$f":"'FR-16(7)(v)-1 Functional'!C353","v":"DEFERRED TAX"},{"$f":"'FR-16(7)(v)-1 Functional'!D353","v":"A315"},null,{"$f":"'FR-16(7)(v)-10 DIST Classified'!H353","v":0},0,0,0,0,0,0,0,0,0,0,0,0,0]
[19,null,{"$f":"'FR-16(7)(v)-1 Functional'!C354","v":"NET OPERATING LOSS"},{"$f":"'FR-16(7)(v)-1 Functional'!D354","v":"NP29"},null,{"$f":"'FR-16(7)(v)-10 DIST Classified'!H354","v":0},0,0,0,0,0,0,0,0,0,0,0,0,0]
[20,null,{"$f":"'FR-16(7)(v)-1 Functional'!C355","v":"401K INCENTIVE PLAN"},{"$f":"'FR-16(7)(v)-1 Functional'!D355","v":"A315"},null,{"$f":"'FR-16(7)(v)-10 DIST Classified'!H355","v":0},0,0,0,0,0,0,0,0,0,0,0,0,0]
[21,null,{"$f":"'FR-16(7)(v)-1 Functional'!C356","v":"ENVIRONMENTAL RESERVE"},{"$f":"'FR-16(7)(v)-1 Functional'!D356","v":"NP29"},null,{"$f":"'FR-16(7)(v)-10 DIST Classified'!H356","v":0},0,0,0,0,0,0,0,0,0,0,0,0,0]
[22,null,{"$f":"'FR-16(7)(v)-1 Functional'!C357","v":"VACATION PAY ACCRUALS"},{"$f":"'FR-16(7)(v)-1 Functional'!D357","v":"A315"},null,{"$f":"'FR-16(7)(v)-10 DIST Classified'!H357","v":0},0,0,0,0,0,0,0,0,0,0,0,0,0]
[23,null,{"$f":"'FR-16(7)(v)-1 Functional'!C358","v":"DEMAND SIDE MANAGEMENT DEFERRAL"},{"$f":"'FR-16(7)(v)-1 Functional'!D358","v":"NP29"},null,{"$f":"'FR-16(7)(v)-10 DIST Classified'!H358","v":0},0,0,0,0,0,0,0,0,0,0,0,0,0]
[24,null,{"$f":"'FR-16(7)(v)-1 Functional'!C359","v":"OPERATING LEASE OBLIGATION"},{"$f":"'FR-16(7)(v)-1 Functional'!D359","v":"NP29"},null,{"$f":"'FR-16(7)(v)-10 DIST Classified'!H359","v":0},0,0,0,0,0,0,0,0,0,0,0,0,0]
[25,null,{"$f":"'FR-16(7)(v)-1 Functional'!C360","v":"INJURIES & DAMAGES"},{"$f":"'FR-16(7)(v)-1 Functional'!D360","v":"NP29"},null,{"$f":"'FR-16(7)(v)-10 DIST Classified'!H360","v":0},0,0,0,0,0,0,0,0,0,0,0,0,0]
[26,null,{"$f":"'FR-16(7)(v)-1 Functional'!C361","v":"  TOTAL ACCOUNT 190"},null,null,{"$f":"SUM(F337:F360)","v":0},{"$f":"SUM(G337:G360)","v":0},{"$f":"SUM(H337:H360)","v":0},{"$f":"SUM(I337:I360)","v":0},{"$f":"SUM(J337:J360)","v":0},0,0,0,0,0,0,{"$f":"SUM(Q337:Q360)","v":0},{"$f":"SUM(R337:R360)","v":0},{"$f":"SUM(S337:S360)","v":0}]
[27]
[28," OTHER"]
[29,null,{"$f":"'FR-16(7)(v)-1 Functional'!C364","v":"RESERVED FOR FUTURE USE"},{"$f":"'FR-16(7)(v)-1 Functional'!D364","v":"NP29"},null,{"$f":"'FR-16(7)(v)-10 DIST Classified'!H364","v":0},{"$f":"F364-SUM(H364:Q364)","v":0},{"$f":"ROUND(F364*VLOOKUP(D364,ALLOCTABLE_Distr_Energy,$H$10,FALSE),0)","v":0},{"$f":"ROUND(F364*VLOOKUP(D364,ALLOCTABLE_Distr_Energy,$I$10,FALSE),0)","v":0},{"$f":"ROUND(F364*VLOOKUP(D364,ALLOCTABLE_Distr_Energy,$J$10,FALSE),0)","v":0},{"$f":"ROUND(F364*VLOOKUP(D364,ALLOCTABLE_Distr_Energy,$K$10,FALSE),0)","v":0},{"$f":"ROUND(F364*VLOOKUP(D364,ALLOCTABLE_Distr_Energy,$L$10,FALSE),0)","v":0},{"$f":"ROUND(F364*VLOOKUP(D364,ALLOCTABLE_Distr_Energy,$M$10,FALSE),0)","v":0},{"$f":"ROUND(F364*VLOOKUP(D364,ALLOCTABLE_Distr_Energy,$N$10,FALSE),0)","v":0},{"$f":"ROUND(F364*VLOOKUP(D364,ALLOCTABLE_Distr_Energy,$O$10,FALSE),0)","v":0},{"$f":"ROUND(F364*VLOOKUP(D364,ALLOCTABLE_Distr_Energy,$P$10,FALSE),0)","v":0},{"$f":"ROUND(F364*VLOOKUP(D364,ALLOCTABLE_Distr_Energy,$Q$10,FALSE),0)","v":0},{"$f":"SUM(G364:Q364)","v":0},{"$f":"F364-R364","v":0}]
[30,null,{"$f":"'FR-16(7)(v)-1 Functional'!C365","v":"RATE CASE EXPENSE REGULATORY ASSET"},{"$f":"'FR-16(7)(v)-1 Functional'!D365","v":"NP29"},null,{"$f":"'FR-16(7)(v)-10 DIST Classified'!H365","v":0},{"$f":"F365-SUM(H365:Q365)","v":0},{"$f":"ROUND(F365*VLOOKUP(D365,ALLOCTABLE_Distr_Energy,$H$10,FALSE),0)","v":0},{"$f":"ROUND(F365*VLOOKUP(D365,ALLOCTABLE_Distr_Energy,$I$10,FALSE),0)","v":0},{"$f":"ROUND(F365*VLOOKUP(D365,ALLOCTABLE_Distr_Energy,$J$10,FALSE),0)","v":0},{"$f":"ROUND(F365*VLOOKUP(D365,ALLOCTABLE_Distr_Energy,$K$10,FALSE),0)","v":0},{"$f":"ROUND(F365*VLOOKUP(D365,ALLOCTABLE_Distr_Energy,$L$10,FALSE),0)","v":0},{"$f":"ROUND(F365*VLOOKUP(D365,ALLOCTABLE_Distr_Energy,$M$10,FALSE),0)","v":0},{"$f":"ROUND(F365*VLOOKUP(D365,ALLOCTABLE_Distr_Energy,$N$10,FALSE),0)","v":0},{"$f":"ROUND(F365*VLOOKUP(D365,ALLOCTABLE_Distr_Energy,$O$10,FALSE),0)","v":0},{"$f":"ROUND(F365*VLOOKUP(D365,ALLOCTABLE_Distr_Energy,$P$10,FALSE),0)","v":0},{"$f":"ROUND(F365*VLOOKUP(D365,ALLOCTABLE_Distr_Energy,$Q$10,FALSE),0)","v":0},{"$f":"SUM(G365:Q365)","v":0},{"$f":"F365-R365","v":0}]
[31,null,{"$f":"'FR-16(7)(v)-1 Functional'!C366","v":"RESERVED FOR FUTURE USE"},{"$f":"'FR-16(7)(v)-1 Functional'!D366","v":"NP29"},null,{"$f":"'FR-16(7)(v)-10 DIST Classified'!H366","v":0},{"$f":"F366-SUM(H366:Q366)","v":0},{"$f":"ROUND(F366*VLOOKUP(D366,ALLOCTABLE_Distr_Energy,$H$10,FALSE),0)","v":0},{"$f":"ROUND(F366*VLOOKUP(D366,ALLOCTABLE_Distr_Energy,$I$10,FALSE),0)","v":0},{"$f":"ROUND(F366*VLOOKUP(D366,ALLOCTABLE_Distr_Energy,$J$10,FALSE),0)","v":0},{"$f":"ROUND(F366*VLOOKUP(D366,ALLOCTABLE_Distr_Energy,$K$10,FALSE),0)","v":0},{"$f":"ROUND(F366*VLOOKUP(D366,ALLOCTABLE_Distr_Energy,$L$10,FALSE),0)","v":0},{"$f":"ROUND(F366*VLOOKUP(D366,ALLOCTABLE_Distr_Energy,$M$10,FALSE),0)","v":0},{"$f":"ROUND(F366*VLOOKUP(D366,ALLOCTABLE_Distr_Energy,$N$10,FALSE),0)","v":0},{"$f":"ROUND(F366*VLOOKUP(D366,ALLOCTABLE_Distr_Energy,$O$10,FALSE),0)","v":0},{"$f":"ROUND(F366*VLOOKUP(D366,ALLOCTABLE_Distr_Energy,$P$10,FALSE),0)","v":0},{"$f":"ROUND(F366*VLOOKUP(D366,ALLOCTABLE_Distr_Energy,$Q$10,FALSE),0)","v":0},{"$f":"SUM(G366:Q366)","v":0},{"$f":"F366-R366","v":0}]
[32,null,{"$f":"'FR-16(7)(v)-1 Functional'!C367","v":"  OTHER"},null,null,{"$f":"SUM(F364:F366)","v":0},{"$f":"SUM(G363:G366)","v":0},0,0,{"$f":"SUM(J363:J366)","v":0},0,0,0,0,0,0,0,0,0]
[33,null,null,null,null," "]
[34,"CONSTRUCTION WORK IN PROGRESS"]
[35,null,"PRODUCTION",{"$f":"'FR-16(7)(v)-1 Functional'!D370","v":"P129"},null,{"$f":"'FR-16(7)(v)-10 DIST Classified'!H370","v":0},{"$f":"F370-SUM(H370:Q370)","v":0},{"$f":"ROUND(F370*VLOOKUP(D370,ALLOCTABLE_Distr_Energy,$H$10,FALSE),0)","v":0},{"$f":"ROUND(F370*VLOOKUP(D370,ALLOCTABLE_Distr_Energy,$I$10,FALSE),0)","v":0},{"$f":"ROUND(F370*VLOOKUP(D370,ALLOCTABLE_Distr_Energy,$J$10,FALSE),0)","v":0},{"$f":"ROUND(F370*VLOOKUP(D370,ALLOCTABLE_Distr_Energy,$K$10,FALSE),0)","v":0},{"$f":"ROUND(F370*VLOOKUP(D370,ALLOCTABLE_Distr_Energy,$L$10,FALSE),0)","v":0},{"$f":"ROUND(F370*VLOOKUP(D370,ALLOCTABLE_Distr_Energy,$M$10,FALSE),0)","v":0},{"$f":"ROUND(F370*VLOOKUP(D370,ALLOCTABLE_Distr_Energy,$N$10,FALSE),0)","v":0},{"$f":"ROUND(F370*VLOOKUP(D370,ALLOCTABLE_Distr_Energy,$O$10,FALSE),0)","v":0},{"$f":"ROUND(F370*VLOOKUP(D370,ALLOCTABLE_Distr_Energy,$P$10,FALSE),0)","v":0},{"$f":"ROUND(F370*VLOOKUP(D370,ALLOCTABLE_Distr_Energy,$Q$10,FALSE),0)","v":0},{"$f":"SUM(G370:Q370)","v":0},{"$f":"F370-R370","v":0}]
[36,null,"TRANSMISSION",{"$f":"'FR-16(7)(v)-1 Functional'!D371","v":"T129"},null,{"$f":"'FR-16(7)(v)-10 DIST Classified'!H371","v":0},{"$f":"F371-SUM(H371:Q371)","v":0},{"$f":"ROUND(F371*VLOOKUP(D371,ALLOCTABLE_Distr_Energy,$H$10,FALSE),0)","v":0},{"$f":"ROUND(F371*VLOOKUP(D371,ALLOCTABLE_Distr_Energy,$I$10,FALSE),0)","v":0},{"$f":"ROUND(F371*VLOOKUP(D371,ALLOCTABLE_Distr_Energy,$J$10,FALSE),0)","v":0},{"$f":"ROUND(F371*VLOOKUP(D371,ALLOCTABLE_Distr_Energy,$K$10,FALSE),0)","v":0},{"$f":"ROUND(F371*VLOOKUP(D371,ALLOCTABLE_Distr_Energy,$L$10,FALSE),0)","v":0},{"$f":"ROUND(F371*VLOOKUP(D371,ALLOCTABLE_Distr_Energy,$M$10,FALSE),0)","v":0},{"$f":"ROUND(F371*VLOOKUP(D371,ALLOCTABLE_Distr_Energy,$N$10,FALSE),0)","v":0},{"$f":"ROUND(F371*VLOOKUP(D371,ALLOCTABLE_Distr_Energy,$O$10,FALSE),0)","v":0},{"$f":"ROUND(F371*VLOOKUP(D371,ALLOCTABLE_Distr_Energy,$P$10,FALSE),0)","v":0},{"$f":"ROUND(F371*VLOOKUP(D371,ALLOCTABLE_Distr_Energy,$Q$10,FALSE),0)","v":0},{"$f":"SUM(G371:Q371)","v":0},{"$f":"F371-R371","v":0}]
[37,null,"DISTRIBUTION",{"$f":"'FR-16(7)(v)-1 Functional'!D372","v":"D149"},null,{"$f":"'FR-16(7)(v)-10 DIST Classified'!H372","v":0},{"$f":"F372-SUM(H372:Q372)","v":0},{"$f":"ROUND(F372*VLOOKUP(D372,ALLOCTABLE_Distr_Energy,$H$10,FALSE),0)","v":0},{"$f":"ROUND(F372*VLOOKUP(D372,ALLOCTABLE_Distr_Energy,$I$10,FALSE),0)","v":0},{"$f":"ROUND(F372*VLOOKUP(D372,ALLOCTABLE_Distr_Energy,$J$10,FALSE),0)","v":0},{"$f":"ROUND(F372*VLOOKUP(D372,ALLOCTABLE_Distr_Energy,$K$10,FALSE),0)","v":0},{"$f":"ROUND(F372*VLOOKUP(D372,ALLOCTABLE_Distr_Energy,$L$10,FALSE),0)","v":0},{"$f":"ROUND(F372*VLOOKUP(D372,ALLOCTABLE_Distr_Energy,$M$10,FALSE),0)","v":0},{"$f":"ROUND(F372*VLOOKUP(D372,ALLOCTABLE_Distr_Energy,$N$10,FALSE),0)","v":0},{"$f":"ROUND(F372*VLOOKUP(D372,ALLOCTABLE_Distr_Energy,$O$10,FALSE),0)","v":0},{"$f":"ROUND(F372*VLOOKUP(D372,ALLOCTABLE_Distr_Energy,$P$10,FALSE),0)","v":0},{"$f":"ROUND(F372*VLOOKUP(D372,ALLOCTABLE_Distr_Energy,$Q$10,FALSE),0)","v":0},{"$f":"SUM(G372:Q372)","v":0},{"$f":"F372-R372","v":0}]
[38,null,"COMMON",{"$f":"'FR-16(7)(v)-1 Functional'!D373","v":"C129"},null,{"$f":"'FR-16(7)(v)-10 DIST Classified'!H373","v":0},{"$f":"F373-SUM(H373:Q373)","v":0},{"$f":"ROUND(F373*VLOOKUP(D373,ALLOCTABLE_Distr_Energy,$H$10,FALSE),0)","v":0},{"$f":"ROUND(F373*VLOOKUP(D373,ALLOCTABLE_Distr_Energy,$I$10,FALSE),0)","v":0},{"$f":"ROUND(F373*VLOOKUP(D373,ALLOCTABLE_Distr_Energy,$J$10,FALSE),0)","v":0},{"$f":"ROUND(F373*VLOOKUP(D373,ALLOCTABLE_Distr_Energy,$K$10,FALSE),0)","v":0},{"$f":"ROUND(F373*VLOOKUP(D373,ALLOCTABLE_Distr_Energy,$L$10,FALSE),0)","v":0},{"$f":"ROUND(F373*VLOOKUP(D373,ALLOCTABLE_Distr_Energy,$M$10,FALSE),0)","v":0},{"$f":"ROUND(F373*VLOOKUP(D373,ALLOCTABLE_Distr_Energy,$N$10,FALSE),0)","v":0},{"$f":"ROUND(F373*VLOOKUP(D373,ALLOCTABLE_Distr_Energy,$O$10,FALSE),0)","v":0},{"$f":"ROUND(F373*VLOOKUP(D373,ALLOCTABLE_Distr_Energy,$P$10,FALSE),0)","v":0},{"$f":"ROUND(F373*VLOOKUP(D373,ALLOCTABLE_Distr_Energy,$Q$10,FALSE),0)","v":0},{"$f":"SUM(G373:Q373)","v":0},{"$f":"F373-R373","v":0}]
[39,null,"GENERAL",{"$f":"'FR-16(7)(v)-1 Functional'!D374","v":"G129"},null,{"$f":"'FR-16(7)(v)-10 DIST Classified'!H374","v":0},{"$f":"F374-SUM(H374:Q374)","v":0},{"$f":"ROUND(F374*VLOOKUP(D374,ALLOCTABLE_Distr_Energy,$H$10,FALSE),0)","v":0},{"$f":"ROUND(F374*VLOOKUP(D374,ALLOCTABLE_Distr_Energy,$I$10,FALSE),0)","v":0},{"$f":"ROUND(F374*VLOOKUP(D374,ALLOCTABLE_Distr_Energy,$J$10,FALSE),0)","v":0},{"$f":"ROUND(F374*VLOOKUP(D374,ALLOCTABLE_Distr_Energy,$K$10,FALSE),0)","v":0},{"$f":"ROUND(F374*VLOOKUP(D374,ALLOCTABLE_Distr_Energy,$L$10,FALSE),0)","v":0},{"$f":"ROUND(F374*VLOOKUP(D374,ALLOCTABLE_Distr_Energy,$M$10,FALSE),0)","v":0},{"$f":"ROUND(F374*VLOOKUP(D374,ALLOCTABLE_Distr_Energy,$N$10,FALSE),0)","v":0},{"$f":"ROUND(F374*VLOOKUP(D374,ALLOCTABLE_Distr_Energy,$O$10,FALSE),0)","v":0},{"$f":"ROUND(F374*VLOOKUP(D374,ALLOCTABLE_Distr_Energy,$P$10,FALSE),0)","v":0},{"$f":"ROUND(F374*VLOOKUP(D374,ALLOCTABLE_Distr_Energy,$Q$10,FALSE),0)","v":0},{"$f":"SUM(G374:Q374)","v":0},{"$f":"F374-R374","v":0}]
[40,null,"TOTAL CONSTRUCTION WORK IN PROGRESS",null,null,{"$f":"SUM(F370:F374)","v":0},{"$f":"SUM(G370:G374)","v":0},0,0,{"$f":"SUM(J370:J374)","v":0},0,0,0,0,0,0,0,0,0]
[41]
[42,{"$f":"'FR-16(7)(v)-1 Functional'!B377","v":"TOTAL ADDITIVE RATE BASE ADJUSTMENTS"},null,null,null,{"$f":"F361+F367+F375","v":0},{"$f":"G361+G367+G375","v":0},{"$f":"H361+H367+H375","v":0},{"$f":"I361+I367+I375","v":0},{"$f":"J361+J367+J375","v":0},0,0,0,0,0,0,{"$f":"Q361+Q367+Q375","v":0},{"$f":"R361+R367+R375","v":0},{"$f":"S361+S367+S375","v":0}]
[]
[{"$f":"co_name","v":"DUKE ENERGY KENTUCKY, INC."},null,null,null,null,null,null,null,null,null,null,null,null,null,null,null,null,{"$f":"R1","v":"FR-16(7)(v)-12"}]
[{"$f":"$A$2","v":"DISTRIBUTION ENERGY ALLOCATED - ELECTRIC COST OF SERVICE"},null,null,null,null,null,null,null,null,null,null,null,null,null,null,null,null,{"$f":"R2","v":"WITNESS RESPONSIBLE:"}]
[{"$f":"case_name","v":"CASE NO: 2019-00271"},null,null,null,null,null,null,null,null,null,null,null,null,null,null,null,null,{"$f":"Witness","v":"JAMES E. ZIOLKOWSKI"}]
[{"$f":"data_filing","v":"DATA: 12 MONTHS ACTUAL  & 0 MONTHS ESTIMATED"},null,null,null,null,null,null,null,null,null,null,null,null,null,null,null,null,{"$f":"\"PAGE \"&Pages-11&\" OF \"&Pages","v":"PAGE 7 OF 18"}]
[{"$f":"type","v":"TYPE OF FILING: \"X\" ORIGINAL   UPDATED    REVISED  "}]
[]
[null,null,null,null,null,{"$f":"F$7","v":"TOTAL"},null,{"$f":"H$7","v":"DS"},{"$f":"I$7","v":"GSFL"},{"$f":"J$7","v":"EH"},{"$f":"K$7","v":"SP"},"DT SEC","DT PRI","DP","TT",null,"OTHER"]
["LINE",null,null,null,null,{"$f":"F$8","v":"DISTRIBUTION"},{"$f":"G$8","v":"RS"},{"$f":"H$8","v":"SECONDARY"},{"$f":"I$8","v":"SECONDARY"},{"$f":"J$8","v":"SECONDARY"},{"$f":"K$8","v":"SECONDARY"},"SECONDARY","PRIMARY","PRIMARY","TRANSMISSION","LT","WATER",{"$f":"R8","v":"TOTAL"},"ALL"]
["NO.","WORKING CAPITAL",null,"ALLO",null,{"$f":"F$9","v":"ENERGY"},{"$f":"G$9","v":"RESIDENTIAL"},{"$f":"H$9","v":"DISTRIBUTION"},{"$f":"I$9","v":"DISTRIBUTION"},{"$f":"J$9","v":"DISTRIBUTION"},{"$f":"K$9","v":"DISTRIBUTION"},"DISTRIBUTION","DISTRIBUTION","DISTRIBUTION","TIME OF DAY","LIGHTING","PUMPING",{"$f":"R9","v":"AT ISSUE"},"OTHER"]
[null,null,"Schedule 5.2",null,null,null,{"$f":"G$10","v":3},{"$f":"H$10","v":4},{"$f":"I$10","v":5},{"$f":"J$10","v":6},{"$f":"K$10","v":7},8,9,10,11,12,13,null," "]
[]
[1,"NET ORIGINAL COST RATE BASE",null,null,null,{"$f":"F277-F324+F377","v":0},{"$f":"G277-G324+G377","v":0},{"$f":"H277-H324+H377","v":0},{"$f":"I277-I324+I377","v":0},{"$f":"J277-J324+J377","v":0},0,0,0,0,0,0,{"$f":"Q277-Q324+Q377","v":0},{"$f":"R277-R324+R377","v":0},{"$f":"S277-S324+S377","v":0}]
[2]
[3,"WORKING CAPITAL"]
[4]
[5,"PLANT MATERIALS & SUPPLIES"]
[6,null,"OTHER MATERIALS & SUPPLIES",{"$f":"'FR-16(7)(v)-1 Functional'!D395","v":"PD29"},null,{"$f":"'FR-16(7)(v)-10 DIST Classified'!H395","v":0},{"$f":"F395-SUM(H395:Q395)","v":0},{"$f":"ROUND(F395*VLOOKUP(D395,ALLOCTABLE_Distr_Energy,$H$10,FALSE),0)","v":0},{"$f":"ROUND(F395*VLOOKUP(D395,ALLOCTABLE_Distr_Energy,$I$10,FALSE),0)","v":0},{"$f":"ROUND(F395*VLOOKUP(D395,ALLOCTABLE_Distr_Energy,$J$10,FALSE),0)","v":0},{"$f":"ROUND(F395*VLOOKUP(D395,ALLOCTABLE_Distr_Energy,$K$10,FALSE),0)","v":0},{"$f":"ROUND(F395*VLOOKUP(D395,ALLOCTABLE_Distr_Energy,$L$10,FALSE),0)","v":0},{"$f":"ROUND(F395*VLOOKUP(D395,ALLOCTABLE_Distr_Energy,$M$10,FALSE),0)","v":0},{"$f":"ROUND(F395*VLOOKUP(D395,ALLOCTABLE_Distr_Energy,$N$10,FALSE),0)","v":0},{"$f":"ROUND(F395*VLOOKUP(D395,ALLOCTABLE_Distr_Energy,$O$10,FALSE),0)","v":0},{"$f":"ROUND(F395*VLOOKUP(D395,ALLOCTABLE_Distr_Energy,$P$10,FALSE),0)","v":0},{"$f":"ROUND(F395*VLOOKUP(D395,ALLOCTABLE_Distr_Energy,$Q$10,FALSE),0)","v":0},{"$f":"SUM(G395:Q395)","v":0},{"$f":"F395-R395","v":0}]
[7,null,{"$f":"'FR-16(7)(v)-1 Functional'!C396","v":"FUEL"},{"$f":"'FR-16(7)(v)-1 Functional'!D396","v":"K301"},null,{"$f":"'FR-16(7)(v)-10 DIST Classified'!H396","v":0},{"$f":"F396-SUM(H396:Q396)","v":0},{"$f":"ROUND(F396*VLOOKUP(D396,ALLOCTABLE_Distr_Energy,$H$10,FALSE),0)","v":0},{"$f":"ROUND(F396*VLOOKUP(D396,ALLOCTABLE_Distr_Energy,$I$10,FALSE),0)","v":0},{"$f":"ROUND(F396*VLOOKUP(D396,ALLOCTABLE_Distr_Energy,$J$10,FALSE),0)","v":0},{"$f":"ROUND(F396*VLOOKUP(D396,ALLOCTABLE_Distr_Energy,$K$10,FALSE),0)","v":0},{"$f":"ROUND(F396*VLOOKUP(D396,ALLOCTABLE_Distr_Energy,$L$10,FALSE),0)","v":0},{"$f":"ROUND(F396*VLOOKUP(D396,ALLOCTABLE_Distr_Energy,$M$10,FALSE),0)","v":0},{"$f":"ROUND(F396*VLOOKUP(D396,ALLOCTABLE_Distr_Energy,$N$10,FALSE),0)","v":0},{"$f":"ROUND(F396*VLOOKUP(D396,ALLOCTABLE_Distr_Energy,$O$10,FALSE),0)","v":0},{"$f":"ROUND(F396*VLOOKUP(D396,ALLOCTABLE_Distr_Energy,$P$10,FALSE),0)","v":0},{"$f":"ROUND(F396*VLOOKUP(D396,ALLOCTABLE_Distr_Energy,$Q$10,FALSE),0)","v":0},{"$f":"SUM(G396:Q396)","v":0},{"$f":"F396-R396","v":0}]
[8,null,{"$f":"'FR-16(7)(v)-1 Functional'!C397","v":"EMISSION ALLOWANCES"},{"$f":"'FR-16(7)(v)-1 Functional'!D397","v":"K301"},null,{"$f":"'FR-16(7)(v)-10 DIST Classified'!H397","v":0},{"$f":"F397-SUM(H397:Q397)","v":0},{"$f":"ROUND(F397*VLOOKUP(D397,ALLOCTABLE_Distr_Energy,$H$10,FALSE),0)","v":0},{"$f":"ROUND(F397*VLOOKUP(D397,ALLOCTABLE_Distr_Energy,$I$10,FALSE),0)","v":0},{"$f":"ROUND(F397*VLOOKUP(D397,ALLOCTABLE_Distr_Energy,$J$10,FALSE),0)","v":0},{"$f":"ROUND(F397*VLOOKUP(D397,ALLOCTABLE_Distr_Energy,$K$10,FALSE),0)","v":0},{"$f":"ROUND(F397*VLOOKUP(D397,ALLOCTABLE_Distr_Energy,$L$10,FALSE),0)","v":0},{"$f":"ROUND(F397*VLOOKUP(D397,ALLOCTABLE_Distr_Energy,$M$10,FALSE),0)","v":0},{"$f":"ROUND(F397*VLOOKUP(D397,ALLOCTABLE_Distr_Energy,$N$10,FALSE),0)","v":0},{"$f":"ROUND(F397*VLOOKUP(D397,ALLOCTABLE_Distr_Energy,$O$10,FALSE),0)","v":0},{"$f":"ROUND(F397*VLOOKUP(D397,ALLOCTABLE_Distr_Energy,$P$10,FALSE),0)","v":0},{"$f":"ROUND(F397*VLOOKUP(D397,ALLOCTABLE_Distr_Energy,$Q$10,FALSE),0)","v":0},{"$f":"SUM(G397:Q397)","v":0},{"$f":"F397-R397","v":0}]
[9,null,{"$f":"'FR-16(7)(v)-1 Functional'!C398","v":"  TOTAL PLANT MATS. & SUPPLIES"},null,null,{"$f":"SUM(F394:F397)","v":0},{"$f":"SUM(G394:G397)","v":0},{"$f":"SUM(H394:H397)","v":0},{"$f":"SUM(I394:I397)","v":0},{"$f":"SUM(J394:J397)","v":0},0,0,0,0,0,0,{"$f":"SUM(Q394:Q397)","v":0},{"$f":"SUM(R394:R397)","v":0},{"$f":"SUM(S394:S397)","v":0}]
[10,"TOTAL MATERIALS & SUPPLIES",null,null,null,{"$f":"F398","v":0},0,0,0,{"$f":"J398","v":0},0,0,0,0,0,0,0,0,0]
[11]
[12,"PREPAYMENTS"]
[13,null,{"$f":"'FR-16(7)(v)-1 Functional'!C402","v":"INSURANCE GENERAL"},{"$f":"'FR-16(7)(v)-1 Functional'!D402","v":"NP29"},null,{"$f":"'FR-16(7)(v)-10 DIST Classified'!H402","v":0},{"$f":"F402-SUM(H402:Q402)","v":0},{"$f":"ROUND(F402*VLOOKUP(D402,ALLOCTABLE_Distr_Energy,$H$10,FALSE),0)","v":0},{"$f":"ROUND(F402*VLOOKUP(D402,ALLOCTABLE_Distr_Energy,$I$10,FALSE),0)","v":0},{"$f":"ROUND(F402*VLOOKUP(D402,ALLOCTABLE_Distr_Energy,$J$10,FALSE),0)","v":0},{"$f":"ROUND(F402*VLOOKUP(D402,ALLOCTABLE_Distr_Energy,$K$10,FALSE),0)","v":0},{"$f":"ROUND(F402*VLOOKUP(D402,ALLOCTABLE_Distr_Energy,$L$10,FALSE),0)","v":0},{"$f":"ROUND(F402*VLOOKUP(D402,ALLOCTABLE_Distr_Energy,$M$10,FALSE),0)","v":0},{"$f":"ROUND(F402*VLOOKUP(D402,ALLOCTABLE_Distr_Energy,$N$10,FALSE),0)","v":0},{"$f":"ROUND(F402*VLOOKUP(D402,ALLOCTABLE_Distr_Energy,$O$10,FALSE),0)","v":0},{"$f":"ROUND(F402*VLOOKUP(D402,ALLOCTABLE_Distr_Energy,$P$10,FALSE),0)","v":0},{"$f":"ROUND(F402*VLOOKUP(D402,ALLOCTABLE_Distr_Energy,$Q$10,FALSE),0)","v":0},{"$f":"SUM(G402:Q402)","v":0},{"$f":"F402-R402","v":0}]
[14,null,{"$f":"'FR-16(7)(v)-1 Functional'!C403","v":"EXCISE TAX"},{"$f":"'FR-16(7)(v)-1 Functional'!D403","v":"NP29"},null,{"$f":"'FR-16(7)(v)-10 DIST Classified'!H403","v":0},{"$f":"F403-SUM(H403:Q403)","v":0},{"$f":"ROUND(F403*VLOOKUP(D403,ALLOCTABLE_Distr_Energy,$H$10,FALSE),0)","v":0},{"$f":"ROUND(F403*VLOOKUP(D403,ALLOCTABLE_Distr_Energy,$I$10,FALSE),0)","v":0},{"$f":"ROUND(F403*VLOOKUP(D403,ALLOCTABLE_Distr_Energy,$J$10,FALSE),0)","v":0},{"$f":"ROUND(F403*VLOOKUP(D403,ALLOCTABLE_Distr_Energy,$K$10,FALSE),0)","v":0},{"$f":"ROUND(F403*VLOOKUP(D403,ALLOCTABLE_Distr_Energy,$L$10,FALSE),0)","v":0},{"$f":"ROUND(F403*VLOOKUP(D403,ALLOCTABLE_Distr_Energy,$M$10,FALSE),0)","v":0},{"$f":"ROUND(F403*VLOOKUP(D403,ALLOCTABLE_Distr_Energy,$N$10,FALSE),0)","v":0},{"$f":"ROUND(F403*VLOOKUP(D403,ALLOCTABLE_Distr_Energy,$O$10,FALSE),0)","v":0},{"$f":"ROUND(F403*VLOOKUP(D403,ALLOCTABLE_Distr_Energy,$P$10,FALSE),0)","v":0},{"$f":"ROUND(F403*VLOOKUP(D403,ALLOCTABLE_Distr_Energy,$Q$10,FALSE),0)","v":0},{"$f":"SUM(G403:Q403)","v":0},{"$f":"F403-R403","v":0}]
[15,null,{"$f":"'FR-16(7)(v)-1 Functional'!C404","v":"COLLATERAL ASSET"},{"$f":"'FR-16(7)(v)-1 Functional'!D404","v":"K301"},null,{"$f":"'FR-16(7)(v)-10 DIST Classified'!H404","v":0},{"$f":"F404-SUM(H404:Q404)","v":0},{"$f":"ROUND(F404*VLOOKUP(D404,ALLOCTABLE_Distr_Energy,$H$10,FALSE),0)","v":0},{"$f":"ROUND(F404*VLOOKUP(D404,ALLOCTABLE_Distr_Energy,$I$10,FALSE),0)","v":0},{"$f":"ROUND(F404*VLOOKUP(D404,ALLOCTABLE_Distr_Energy,$J$10,FALSE),0)","v":0},{"$f":"ROUND(F404*VLOOKUP(D404,ALLOCTABLE_Distr_Energy,$K$10,FALSE),0)","v":0},{"$f":"ROUND(F404*VLOOKUP(D404,ALLOCTABLE_Distr_Energy,$L$10,FALSE),0)","v":0},{"$f":"ROUND(F404*VLOOKUP(D404,ALLOCTABLE_Distr_Energy,$M$10,FALSE),0)","v":0},{"$f":"ROUND(F404*VLOOKUP(D404,ALLOCTABLE_Distr_Energy,$N$10,FALSE),0)","v":0},{"$f":"ROUND(F404*VLOOKUP(D404,ALLOCTABLE_Distr_Energy,$O$10,FALSE),0)","v":0},{"$f":"ROUND(F404*VLOOKUP(D404,ALLOCTABLE_Distr_Energy,$P$10,FALSE),0)","v":0},{"$f":"ROUND(F404*VLOOKUP(D404,ALLOCTABLE_Distr_Energy,$Q$10,FALSE),0)","v":0},{"$f":"SUM(G404:Q404)","v":0},{"$f":"F404-R404","v":0}]
[16,null,{"$f":"'FR-16(7)(v)-1 Functional'!C405","v":"  TOTAL PREPAYMENTS"},null,null,{"$f":"SUM(F401:F404)","v":0},{"$f":"SUM(G401:G404)","v":0},{"$f":"SUM(H401:H404)","v":0},{"$f":"SUM(I401:I404)","v":0},{"$f":"SUM(J401:J404)","v":0},0,0,0,0,0,0,{"$f":"SUM(Q401:Q404)","v":0},{"$f":"SUM(R401:R404)","v":0},{"$f":"SUM(S401:S404)","v":0}]
[17]
[18,"AUTO CALC (O&M-ELECTRIC FUEL COST)/8",null,null,null,{"$f":"IF(WorkingCap=\"No\",0,ROUND((F549-F447-F448)/8,0))","v":0},{"$f":"F407-SUM(H407:Q407)","v":0},{"$f":"IF(WorkingCap=\"No\",0,ROUND((H549-H447-H448)/8,0))","v":0},0,0,0,0,0,0,0,0,0,{"$f":"SUM(G407:Q407)","v":0},{"$f":"F407-R407","v":0}]
[19,"  TOTAL WORKING CASH",null,null,null,{"$f":"F407","v":0},0,0,0,{"$f":"J407","v":0},0,0,0,0,0,0,0,0,0]
[20]
[21,"MISCELLANEOUS WORKING CAPITAL"]
[22,null,{"$f":"'FR-16(7)(v)-1 Functional'!C411","v":"RESERVED FOR FUTURE USE"},{"$f":"'FR-16(7)(v)-1 Functional'!D411","v":"K301"},null,{"$f":"'FR-16(7)(v)-10 DIST Classified'!H411","v":0},{"$f":"F411-SUM(H411:Q411)","v":0},{"$f":"ROUND(F411*VLOOKUP(D411,ALLOCTABLE_Distr_Energy,$H$10,FALSE),0)","v":0},{"$f":"ROUND(F411*VLOOKUP(D411,ALLOCTABLE_Distr_Energy,$I$10,FALSE),0)","v":0},{"$f":"ROUND(F411*VLOOKUP(D411,ALLOCTABLE_Distr_Energy,$J$10,FALSE),0)","v":0},{"$f":"ROUND(F411*VLOOKUP(D411,ALLOCTABLE_Distr_Energy,$K$10,FALSE),0)","v":0},{"$f":"ROUND(F411*VLOOKUP(D411,ALLOCTABLE_Distr_Energy,$L$10,FALSE),0)","v":0},{"$f":"ROUND(F411*VLOOKUP(D411,ALLOCTABLE_Distr_Energy,$M$10,FALSE),0)","v":0},{"$f":"ROUND(F411*VLOOKUP(D411,ALLOCTABLE_Distr_Energy,$N$10,FALSE),0)","v":0},{"$f":"ROUND(F411*VLOOKUP(D411,ALLOCTABLE_Distr_Energy,$O$10,FALSE),0)","v":0},{"$f":"ROUND(F411*VLOOKUP(D411,ALLOCTABLE_Distr_Energy,$P$10,FALSE),0)","v":0},{"$f":"ROUND(F411*VLOOKUP(D411,ALLOCTABLE_Distr_Energy,$Q$10,FALSE),0)","v":0},{"$f":"SUM(G411:Q411)","v":0},{"$f":"F411-R411","v":0}]
[23,null,{"$f":"'FR-16(7)(v)-1 Functional'!C412","v":"PIPP UNCOLLECTIBLES"},{"$f":"'FR-16(7)(v)-1 Functional'!D412","v":"A315"},null,{"$f":"'FR-16(7)(v)-10 DIST Classified'!H412","v":0},{"$f":"F412-SUM(H412:Q412)","v":0},{"$f":"ROUND(F412*VLOOKUP(D412,ALLOCTABLE_Distr_Energy,$H$10,FALSE),0)","v":0},{"$f":"ROUND(F412*VLOOKUP(D412,ALLOCTABLE_Distr_Energy,$I$10,FALSE),0)","v":0},{"$f":"ROUND(F412*VLOOKUP(D412,ALLOCTABLE_Distr_Energy,$J$10,FALSE),0)","v":0},{"$f":"ROUND(F412*VLOOKUP(D412,ALLOCTABLE_Distr_Energy,$K$10,FALSE),0)","v":0},{"$f":"ROUND(F412*VLOOKUP(D412,ALLOCTABLE_Distr_Energy,$L$10,FALSE),0)","v":0},{"$f":"ROUND(F412*VLOOKUP(D412,ALLOCTABLE_Distr_Energy,$M$10,FALSE),0)","v":0},{"$f":"ROUND(F412*VLOOKUP(D412,ALLOCTABLE_Distr_Energy,$N$10,FALSE),0)","v":0},{"$f":"ROUND(F412*VLOOKUP(D412,ALLOCTABLE_Distr_Energy,$O$10,FALSE),0)","v":0},{"$f":"ROUND(F412*VLOOKUP(D412,ALLOCTABLE_Distr_Energy,$P$10,FALSE),0)","v":0},{"$f":"ROUND(F412*VLOOKUP(D412,ALLOCTABLE_Distr_Energy,$Q$10,FALSE),0)","v":0},{"$f":"SUM(G412:Q412)","v":0},{"$f":"F412-R412","v":0}]
[24,null,{"$f":"'FR-16(7)(v)-1 Functional'!C413","v":"RESERVED FOR FUTURE USE"},{"$f":"'FR-16(7)(v)-1 Functional'!D413","v":"D249"},null,{"$f":"'FR-16(7)(v)-10 DIST Classified'!H413","v":0},{"$f":"F413-SUM(H413:Q413)","v":0},{"$f":"ROUND(F413*VLOOKUP(D413,ALLOCTABLE_Distr_Energy,$H$10,FALSE),0)","v":0},{"$f":"ROUND(F413*VLOOKUP(D413,ALLOCTABLE_Distr_Energy,$I$10,FALSE),0)","v":0},{"$f":"ROUND(F413*VLOOKUP(D413,ALLOCTABLE_Distr_Energy,$J$10,FALSE),0)","v":0},{"$f":"ROUND(F413*VLOOKUP(D413,ALLOCTABLE_Distr_Energy,$K$10,FALSE),0)","v":0},{"$f":"ROUND(F413*VLOOKUP(D413,ALLOCTABLE_Distr_Energy,$L$10,FALSE),0)","v":0},{"$f":"ROUND(F413*VLOOKUP(D413,ALLOCTABLE_Distr_Energy,$M$10,FALSE),0)","v":0},{"$f":"ROUND(F413*VLOOKUP(D413,ALLOCTABLE_Distr_Energy,$N$10,FALSE),0)","v":0},{"$f":"ROUND(F413*VLOOKUP(D413,ALLOCTABLE_Distr_Energy,$O$10,FALSE),0)","v":0},{"$f":"ROUND(F413*VLOOKUP(D413,ALLOCTABLE_Distr_Energy,$P$10,FALSE),0)","v":0},{"$f":"ROUND(F413*VLOOKUP(D413,ALLOCTABLE_Distr_Energy,$Q$10,FALSE),0)","v":0},{"$f":"SUM(G413:Q413)","v":0},{"$f":"F413-R413","v":0}]
[25,null,{"$f":"'FR-16(7)(v)-1 Functional'!C414","v":"  TOTAL MISC WORK CAPITAL"},null,null,{"$f":"SUM(F410:F413)","v":0},{"$f":"SUM(G410:G413)","v":0},{"$f":"SUM(H410:H413)","v":0},{"$f":"SUM(I410:I413)","v":0},{"$f":"SUM(J410:J413)","v":0},0,0,0,0,0,0,{"$f":"SUM(Q410:Q413)","v":0},{"$f":"SUM(R410:R413)","v":0},{"$f":"SUM(S410:S413)","v":0}]
[26]
[27,"TOTAL WORKING CAPITAL",null,null,null,{"$f":"F399+F405+F408+F414","v":0},{"$f":"G399+G405+G408+G414","v":0},{"$f":"H399+H405+H408+H414","v":0},{"$f":"I399+I405+I408+I414","v":0},{"$f":"J399+J405+J408+J414","v":0},0,0,0,0,0,0,{"$f":"Q399+Q405+Q408+Q414","v":0},{"$f":"R399+R405+R408+R414","v":0},{"$f":"S399+S405+S408+S414","v":0}]
[28,"PRELIMINARY SUMMARY"]
[29,null,{"$f":"'FR-16(7)(v)-1 Functional'!C418","v":"TOTAL ACCUMULATED DEFERRED INCOME TAXES"},null,null,{"$f":"-F324","v":0},{"$f":"-G324","v":0},{"$f":"-H324","v":0},{"$f":"-I324","v":0},{"$f":"-J324","v":0},0,0,0,0,0,0,{"$f":"-Q324","v":0},{"$f":"-R324","v":0},{"$f":"-S324","v":0}]
[30,null,{"$f":"'FR-16(7)(v)-1 Functional'!C419","v":"TOTAL OTHER ACCUMULATED DEFERRED INCOME TAXES"},null,null,{"$f":"F377","v":0},{"$f":"G377","v":0},{"$f":"H377","v":0},{"$f":"I377","v":0},{"$f":"J377","v":0},0,0,0,0,0,0,{"$f":"Q377","v":0},{"$f":"R377","v":0},{"$f":"S377","v":0}]
[31,null,{"$f":"'FR-16(7)(v)-1 Functional'!C420","v":"TOTAL WORKING CAPITAL"},null,null,{"$f":"F416","v":0},{"$f":"G416","v":0},{"$f":"H416","v":0},{"$f":"I416","v":0},{"$f":"J416","v":0},0,0,0,0,0,0,{"$f":"Q416","v":0},{"$f":"R416","v":0},{"$f":"S416","v":0}]
[32,null,{"$f":"'FR-16(7)(v)-1 Functional'!C421","v":"  TOTAL RATE BASE ADJUSTMENTS"},null,null,{"$f":"SUM(F417:F420)","v":0},{"$f":"SUM(G417:G420)","v":0},{"$f":"SUM(H417:H420)","v":0},{"$f":"SUM(I417:I420)","v":0},{"$f":"SUM(J417:J420)","v":0},0,0,0,0,0,0,{"$f":"SUM(Q417:Q420)","v":0},{"$f":"SUM(R417:R420)","v":0},{"$f":"SUM(S417:S420)","v":0}]
[33]
[34,"RATE BASE CALCULATION"]
[35,null,{"$f":"'FR-16(7)(v)-1 Functional'!C424","v":"NET ELECTRIC PLANT IN SERVICE"},null,null,{"$f":"F277","v":0},{"$f":"G277","v":0},{"$f":"H277","v":0},{"$f":"I277","v":0},{"$f":"J277","v":0},0,0,0,0,0,0,{"$f":"Q277","v":0},{"$f":"R277","v":0},{"$f":"S277","v":0}]
[36,null,{"$f":"'FR-16(7)(v)-1 Functional'!C425","v":"TOTAL RATE BASE ADJUSTMENTS"},null,null,{"$f":"F421","v":0},{"$f":"G421","v":0},{"$f":"H421","v":0},{"$f":"I421","v":0},{"$f":"J421","v":0},0,0,0,0,0,0,{"$f":"Q421","v":0},{"$f":"R421","v":0},{"$f":"S421","v":0}]
[37,null,{"$f":"'FR-16(7)(v)-1 Functional'!C426","v":"  TOTAL RATE BASE"},null,null,{"$f":"SUM(F423:F425)","v":0},{"$f":"SUM(G423:G425)","v":0},{"$f":"SUM(H423:H425)","v":0},{"$f":"SUM(I423:I425)","v":0},{"$f":"SUM(J423:J425)","v":0},0,0,0,0,0,0,{"$f":"SUM(Q423:Q425)","v":0},{"$f":"SUM(R423:R425)","v":0},{"$f":"SUM(S423:S425)","v":0}]
[38]
[39,"TOTAL RATE OF RETURN ALLOWABLE",null,null,null,{"$f":"$F$811","v":6.7100000000000007E-2},{"$f":"$F$811","v":6.7100000000000007E-2},6.7100000000000007E-2,6.7100000000000007E-2,6.7100000000000007E-2,6.7100000000000007E-2,6.7100000000000007E-2,6.7100000000000007E-2,6.7100000000000007E-2,6.7100000000000007E-2,6.7100000000000007E-2,6.7100000000000007E-2,{"$f":"F811","v":6.7100000000000007E-2}]
[40,"RETURN ON RATE BASE",null,null,null,{"$f":"ROUND(F428*F426,0)","v":0},{"$f":"F429-SUM(H429:Q429)","v":0},{"$f":"ROUND(H426*H428,0)","v":0},{"$f":"ROUND(I426*I428,0)","v":0},{"$f":"ROUND(J426*J428,0)","v":0},0,0,0,0,0,0,{"$f":"ROUND(Q426*Q428,0)","v":0},{"$f":"SUM(G429:Q429)","v":0},{"$f":"F429-R429","v":0}]
[41]
[42,{"$f":"'FR-16(7)(v)-1 Functional'!B431","v":"ELECTRIC RATE BASE"},null,{"$f":"'FR-16(7)(v)-1 Functional'!D431","v":"RB99"},null,{"$f":"'FR-16(7)(v)-10 DIST Classified'!H431","v":0},{"$f":"F431-SUM(H431:Q431)","v":0},{"$f":"ROUND(F431*VLOOKUP(D431,ALLOCTABLE_Distr_Energy,$H$10,FALSE),0)","v":0},{"$f":"ROUND(F431*VLOOKUP(D431,ALLOCTABLE_Distr_Energy,$I$10,FALSE),0)","v":0},{"$f":"ROUND(F431*VLOOKUP(D431,ALLOCTABLE_Distr_Energy,$J$10,FALSE),0)","v":0},{"$f":"ROUND(F431*VLOOKUP(D431,ALLOCTABLE_Distr_Energy,$K$10,FALSE),0)","v":0},{"$f":"ROUND(F431*VLOOKUP(D431,ALLOCTABLE_Distr_Energy,$L$10,FALSE),0)","v":0},{"$f":"ROUND(F431*VLOOKUP(D431,ALLOCTABLE_Distr_Energy,$M$10,FALSE),0)","v":0},{"$f":"ROUND(F431*VLOOKUP(D431,ALLOCTABLE_Distr_Energy,$N$10,FALSE),0)","v":0},{"$f":"ROUND(F431*VLOOKUP(D431,ALLOCTABLE_Distr_Energy,$O$10,FALSE),0)","v":0},{"$f":"ROUND(F431*VLOOKUP(D431,ALLOCTABLE_Distr_Energy,$P$10,FALSE),0)","v":0},{"$f":"ROUND(F431*VLOOKUP(D431,ALLOCTABLE_Distr_Energy,$Q$10,FALSE),0)","v":0},{"$f":"SUM(G431:Q431)","v":0},{"$f":"F431-R431","v":0}]
[43,{"$f":"'FR-16(7)(v)-1 Functional'!B432","v":"TOTAL RATE OF RETURN ALLOWABLE"},null,null,null,{"$f":"RofR","v":6.7110000000000003E-2},6.7110000000000003E-2,6.7110000000000003E-2,6.7110000000000003E-2,6.7110000000000003E-2,6.7110000000000003E-2,6.7110000000000003E-2,6.7110000000000003E-2,6.7110000000000003E-2,6.7110000000000003E-2,6.7110000000000003E-2,6.7110000000000003E-2,6.7110000000000003E-2]
[44,{"$f":"'FR-16(7)(v)-1 Functional'!B433","v":"RETURN ON RATE BASE"},null,null,null,{"$f":"ROUND(F431*F432,0)","v":0},{"$f":"F433-SUM(H433:Q433)","v":0},{"$f":"ROUND(H431*H432,0)","v":0},0,0,0,0,0,0,0,0,0,0,{"$f":"ROUND(S426*S428,0)","v":0}]
[]
[{"$f":"co_name","v":"DUKE ENERGY KENTUCKY, INC."},null,null,null,null,null,null,null,null,null,null,null,null,null,null,null,null,{"$f":"R1","v":"FR-16(7)(v)-12"}]
[{"$f":"$A$2","v":"DISTRIBUTION ENERGY ALLOCATED - ELECTRIC COST OF SERVICE"},null,null,null,null,null,null,null,null,null,null,null,null,null,null,null,null,{"$f":"R2","v":"WITNESS RESPONSIBLE:"}]
[{"$f":"case_name","v":"CASE NO: 2019-00271"},null,null,null,null,null,null,null,null,null,null,null,null,null,null,null,null,{"$f":"Witness","v":"JAMES E. ZIOLKOWSKI"}]
[{"$f":"data_filing","v":"DATA: 12 MONTHS ACTUAL  & 0 MONTHS ESTIMATED"},null,null,null,null,null,null,null,null,null,null,null,null,null,null,null,null,{"$f":"\"PAGE \"&Pages-10&\" OF \"&Pages","v":"PAGE 8 OF 18"}]
[{"$f":"type","v":"TYPE OF FILING: \"X\" ORIGINAL   UPDATED    REVISED  "}]
[]
[null,null,null,null,null,{"$f":"F$7","v":"TOTAL"},null,{"$f":"H$7","v":"DS"},{"$f":"I$7","v":"GSFL"},{"$f":"J$7","v":"EH"},{"$f":"K$7","v":"SP"},"DT SEC","DT PRI","DP","TT",null,"OTHER"]
["LINE",null,null,null,null,{"$f":"F$8","v":"DISTRIBUTION"},{"$f":"G$8","v":"RS"},{"$f":"H$8","v":"SECONDARY"},{"$f":"I$8","v":"SECONDARY"},{"$f":"J$8","v":"SECONDARY"},{"$f":"K$8","v":"SECONDARY"},"SECONDARY","PRIMARY","PRIMARY","TRANSMISSION","LT","WATER",{"$f":"R8","v":"TOTAL"},"ALL"]
["NO.","O&M EXPENSES",null,"ALLO",null,{"$f":"F$9","v":"ENERGY"},{"$f":"G$9","v":"RESIDENTIAL"},{"$f":"H$9","v":"DISTRIBUTION"},{"$f":"I$9","v":"DISTRIBUTION"},{"$f":"J$9","v":"DISTRIBUTION"},{"$f":"K$9","v":"DISTRIBUTION"},"DISTRIBUTION","DISTRIBUTION","DISTRIBUTION","TIME OF DAY","LIGHTING","PUMPING",{"$f":"R9","v":"AT ISSUE"},"OTHER"]
[null,null,"Schedule 6",null,null,null,{"$f":"G$10","v":3},{"$f":"H$10","v":4},{"$f":"I$10","v":5},{"$f":"J$10","v":6},{"$f":"K$10","v":7},8,9,10,11,12,13,null," "]
[1,"PRODUCTION O&M"]
[2,{"$f":"'FR-16(7)(v)-1 Functional'!B446","v":"ENERGY RELATED PRODUCTION O&M"}]
[3,null,{"$f":"'FR-16(7)(v)-1 Functional'!C447","v":"FUEL"},{"$f":"'FR-16(7)(v)-1 Functional'!D447","v":"K302"},null,{"$f":"'FR-16(7)(v)-10 DIST Classified'!H447","v":0},{"$f":"F447-SUM(H447:Q447)","v":0},{"$f":"ROUND(F447*VLOOKUP(D447,ALLOCTABLE_Distr_Energy,$H$10,FALSE),0)","v":0},{"$f":"ROUND(F447*VLOOKUP(D447,ALLOCTABLE_Distr_Energy,$I$10,FALSE),0)","v":0},{"$f":"ROUND(F447*VLOOKUP(D447,ALLOCTABLE_Distr_Energy,$J$10,FALSE),0)","v":0},{"$f":"ROUND(F447*VLOOKUP(D447,ALLOCTABLE_Distr_Energy,$K$10,FALSE),0)","v":0},{"$f":"ROUND(F447*VLOOKUP(D447,ALLOCTABLE_Distr_Energy,$L$10,FALSE),0)","v":0},{"$f":"ROUND(F447*VLOOKUP(D447,ALLOCTABLE_Distr_Energy,$M$10,FALSE),0)","v":0},{"$f":"ROUND(F447*VLOOKUP(D447,ALLOCTABLE_Distr_Energy,$N$10,FALSE),0)","v":0},{"$f":"ROUND(F447*VLOOKUP(D447,ALLOCTABLE_Distr_Energy,$O$10,FALSE),0)","v":0},{"$f":"ROUND(F447*VLOOKUP(D447,ALLOCTABLE_Distr_Energy,$P$10,FALSE),0)","v":0},{"$f":"ROUND(F447*VLOOKUP(D447,ALLOCTABLE_Distr_Energy,$Q$10,FALSE),0)","v":0},{"$f":"SUM(G447:Q447)","v":0},{"$f":"F447-R447","v":0}]
[4,null,{"$f":"'FR-16(7)(v)-1 Functional'!C448","v":"FUEL AND PURCHASED POWER ADJUSTMENT"},{"$f":"'FR-16(7)(v)-1 Functional'!D448","v":"K302"},null,{"$f":"'FR-16(7)(v)-10 DIST Classified'!H448","v":0},0,0,0,0,0,0,0,0,0,0,0,0,0]
[5,null,{"$f":"'FR-16(7)(v)-1 Functional'!C449","v":"EMISSION ALLOWANCES"},{"$f":"'FR-16(7)(v)-1 Functional'!D449","v":"K301"},null,{"$f":"'FR-16(7)(v)-10 DIST Classified'!H449","v":0},0,0,0,0,0,0,0,0,0,0,0,0,0]
[6,null,{"$f":"'FR-16(7)(v)-1 Functional'!C450","v":"ELIMINATE EMISSION ALLOW & OTHER VAR COST"},{"$f":"'FR-16(7)(v)-1 Functional'!D450","v":"K301"},null,{"$f":"'FR-16(7)(v)-10 DIST Classified'!H450","v":0},0,0,0,0,0,0,0,0,0,0,0,0,0]
[7,null,{"$f":"'FR-16(7)(v)-1 Functional'!C451","v":"OTHER PRODUCTION EXPENSE - MAINTENANCE"},{"$f":"'FR-16(7)(v)-1 Functional'!D451","v":"K301"},null,{"$f":"'FR-16(7)(v)-10 DIST Classified'!H451","v":0},0,0,0,0,0,0,0,0,0,0,0,0,0]
[8,null,{"$f":"'FR-16(7)(v)-1 Functional'!C452","v":"MISO TRANSMISSION CHARGES - ACCT 555"},{"$f":"'FR-16(7)(v)-1 Functional'!D452","v":"K301"},null,{"$f":"'FR-16(7)(v)-10 DIST Classified'!H452","v":0},0,0,0,0,0,0,0,0,0,0,0,0,0]
[9,null,"  TOTAL ENERGY RELATED",null,null,{"$f":"SUM(F447:F452)","v":0},{"$f":"SUM(G447:G452)","v":0},{"$f":"SUM(H447:H452)","v":0},{"$f":"SUM(I447:I452)","v":0},{"$f":"SUM(J447:J452)","v":0},0,0,0,0,0,0,{"$f":"SUM(Q447:Q452)","v":0},{"$f":"SUM(R447:R452)","v":0},{"$f":"SUM(S447:S452)","v":0}]
[10]
[11,"DEMAND RELATED & OTHER PROD O&M"]
[12,null,{"$f":"'FR-16(7)(v)-1 Functional'!C456","v":"OTHER PRODUCTION EXPENSES - OPERATIONS"},{"$f":"'FR-16(7)(v)-1 Functional'!D456","v":"K201"},null,{"$f":"'FR-16(7)(v)-10 DIST Classified'!H456","v":0},{"$f":"F456-SUM(H456:Q456)","v":0},{"$f":"ROUND(F456*VLOOKUP(D456,ALLOCTABLE_Distr_Energy,$H$10,FALSE),0)","v":0},{"$f":"ROUND(F456*VLOOKUP(D456,ALLOCTABLE_Distr_Energy,$I$10,FALSE),0)","v":0},{"$f":"ROUND(F456*VLOOKUP(D456,ALLOCTABLE_Distr_Energy,$J$10,FALSE),0)","v":0},{"$f":"ROUND(F456*VLOOKUP(D456,ALLOCTABLE_Distr_Energy,$K$10,FALSE),0)","v":0},{"$f":"ROUND(F456*VLOOKUP(D456,ALLOCTABLE_Distr_Energy,$L$10,FALSE),0)","v":0},{"$f":"ROUND(F456*VLOOKUP(D456,ALLOCTABLE_Distr_Energy,$M$10,FALSE),0)","v":0},{"$f":"ROUND(F456*VLOOKUP(D456,ALLOCTABLE_Distr_Energy,$N$10,FALSE),0)","v":0},{"$f":"ROUND(F456*VLOOKUP(D456,ALLOCTABLE_Distr_Energy,$O$10,FALSE),0)","v":0},{"$f":"ROUND(F456*VLOOKUP(D456,ALLOCTABLE_Distr_Energy,$P$10,FALSE),0)","v":0},{"$f":"ROUND(F456*VLOOKUP(D456,ALLOCTABLE_Distr_Energy,$Q$10,FALSE),0)","v":0},{"$f":"SUM(G456:Q456)","v":0},{"$f":"F456-R456","v":0}]
[13,null,"  TOTAL DEMAND REL & OTH PROD O&M ",null,null,{"$f":"SUM(F455:F456)","v":0},{"$f":"SUM(G455:G456)","v":0},{"$f":"SUM(H455:H456)","v":0},{"$f":"SUM(I455:I456)","v":0},{"$f":"SUM(J455:J456)","v":0},0,0,0,0,0,0,{"$f":"SUM(Q455:Q456)","v":0},{"$f":"SUM(R455:R456)","v":0},{"$f":"SUM(S455:S456)","v":0}]
[14]
[15,"TOTAL PRODUCTION O&M",null,null," ",{"$f":"F457+F453","v":0},{"$f":"G457+G453","v":0},0,0,{"$f":"J457+J453","v":0},0,0,0,0,0,0,0,0,0]
[16]
[17,"TRANSMISSION O & M"]
[18,null,{"$f":"'FR-16(7)(v)-1 Functional'!C462","v":"TRANSFORMER LEASE PAYMENTS"},{"$f":"'FR-16(7)(v)-1 Functional'!D462","v":"K202"},null,{"$f":"'FR-16(7)(v)-10 DIST Classified'!H462","v":0},{"$f":"F462-SUM(H462:Q462)","v":0},{"$f":"ROUND(F462*VLOOKUP(D462,ALLOCTABLE_Distr_Energy,$H$10,FALSE),0)","v":0},{"$f":"ROUND(F462*VLOOKUP(D462,ALLOCTABLE_Distr_Energy,$I$10,FALSE),0)","v":0},{"$f":"ROUND(F462*VLOOKUP(D462,ALLOCTABLE_Distr_Energy,$J$10,FALSE),0)","v":0},{"$f":"ROUND(F462*VLOOKUP(D462,ALLOCTABLE_Distr_Energy,$K$10,FALSE),0)","v":0},{"$f":"ROUND(F462*VLOOKUP(D462,ALLOCTABLE_Distr_Energy,$L$10,FALSE),0)","v":0},{"$f":"ROUND(F462*VLOOKUP(D462,ALLOCTABLE_Distr_Energy,$M$10,FALSE),0)","v":0},{"$f":"ROUND(F462*VLOOKUP(D462,ALLOCTABLE_Distr_Energy,$N$10,FALSE),0)","v":0},{"$f":"ROUND(F462*VLOOKUP(D462,ALLOCTABLE_Distr_Energy,$O$10,FALSE),0)","v":0},{"$f":"ROUND(F462*VLOOKUP(D462,ALLOCTABLE_Distr_Energy,$P$10,FALSE),0)","v":0},{"$f":"ROUND(F462*VLOOKUP(D462,ALLOCTABLE_Distr_Energy,$Q$10,FALSE),0)","v":0},{"$f":"SUM(G462:Q462)","v":0},{"$f":"F462-R462","v":0}]
[19,null,{"$f":"'FR-16(7)(v)-1 Functional'!C463","v":"OTHER TRANSMISSION"},{"$f":"'FR-16(7)(v)-1 Functional'!D463","v":"K202"},null,{"$f":"'FR-16(7)(v)-10 DIST Classified'!H463","v":0},{"$f":"F463-SUM(H463:Q463)","v":0},{"$f":"ROUND(F463*VLOOKUP(D463,ALLOCTABLE_Distr_Energy,$H$10,FALSE),0)","v":0},{"$f":"ROUND(F463*VLOOKUP(D463,ALLOCTABLE_Distr_Energy,$I$10,FALSE),0)","v":0},{"$f":"ROUND(F463*VLOOKUP(D463,ALLOCTABLE_Distr_Energy,$J$10,FALSE),0)","v":0},{"$f":"ROUND(F463*VLOOKUP(D463,ALLOCTABLE_Distr_Energy,$K$10,FALSE),0)","v":0},{"$f":"ROUND(F463*VLOOKUP(D463,ALLOCTABLE_Distr_Energy,$L$10,FALSE),0)","v":0},{"$f":"ROUND(F463*VLOOKUP(D463,ALLOCTABLE_Distr_Energy,$M$10,FALSE),0)","v":0},{"$f":"ROUND(F463*VLOOKUP(D463,ALLOCTABLE_Distr_Energy,$N$10,FALSE),0)","v":0},{"$f":"ROUND(F463*VLOOKUP(D463,ALLOCTABLE_Distr_Energy,$O$10,FALSE),0)","v":0},{"$f":"ROUND(F463*VLOOKUP(D463,ALLOCTABLE_Distr_Energy,$P$10,FALSE),0)","v":0},{"$f":"ROUND(F463*VLOOKUP(D463,ALLOCTABLE_Distr_Energy,$Q$10,FALSE),0)","v":0},{"$f":"SUM(G463:Q463)","v":0},{"$f":"F463-R463","v":0}]
[20,null,{"$f":"'FR-16(7)(v)-1 Functional'!C464","v":"MISCELLANEOUS ADJUSTMENTS"},{"$f":"'FR-16(7)(v)-1 Functional'!D464","v":"K202"},null,{"$f":"'FR-16(7)(v)-10 DIST Classified'!H464","v":0},{"$f":"F464-SUM(H464:Q464)","v":0},{"$f":"ROUND(F464*VLOOKUP(D464,ALLOCTABLE_Distr_Energy,$H$10,FALSE),0)","v":0},{"$f":"ROUND(F464*VLOOKUP(D464,ALLOCTABLE_Distr_Energy,$I$10,FALSE),0)","v":0},{"$f":"ROUND(F464*VLOOKUP(D464,ALLOCTABLE_Distr_Energy,$J$10,FALSE),0)","v":0},{"$f":"ROUND(F464*VLOOKUP(D464,ALLOCTABLE_Distr_Energy,$K$10,FALSE),0)","v":0},{"$f":"ROUND(F464*VLOOKUP(D464,ALLOCTABLE_Distr_Energy,$L$10,FALSE),0)","v":0},{"$f":"ROUND(F464*VLOOKUP(D464,ALLOCTABLE_Distr_Energy,$M$10,FALSE),0)","v":0},{"$f":"ROUND(F464*VLOOKUP(D464,ALLOCTABLE_Distr_Energy,$N$10,FALSE),0)","v":0},{"$f":"ROUND(F464*VLOOKUP(D464,ALLOCTABLE_Distr_Energy,$O$10,FALSE),0)","v":0},{"$f":"ROUND(F464*VLOOKUP(D464,ALLOCTABLE_Distr_Energy,$P$10,FALSE),0)","v":0},{"$f":"ROUND(F464*VLOOKUP(D464,ALLOCTABLE_Distr_Energy,$Q$10,FALSE),0)","v":0},{"$f":"SUM(G464:Q464)","v":0},{"$f":"F464-R464","v":0}]
[21,null,{"$f":"'FR-16(7)(v)-1 Functional'!C465","v":"NETWORK SERVICE RATES ADJUSTMENT"},{"$f":"'FR-16(7)(v)-1 Functional'!D465","v":"K202"},null,{"$f":"'FR-16(7)(v)-10 DIST Classified'!H465","v":0},{"$f":"F465-SUM(H465:Q465)","v":0},{"$f":"ROUND(F465*VLOOKUP(D465,ALLOCTABLE_Distr_Energy,$H$10,FALSE),0)","v":0},{"$f":"ROUND(F465*VLOOKUP(D465,ALLOCTABLE_Distr_Energy,$I$10,FALSE),0)","v":0},{"$f":"ROUND(F465*VLOOKUP(D465,ALLOCTABLE_Distr_Energy,$J$10,FALSE),0)","v":0},{"$f":"ROUND(F465*VLOOKUP(D465,ALLOCTABLE_Distr_Energy,$K$10,FALSE),0)","v":0},{"$f":"ROUND(F465*VLOOKUP(D465,ALLOCTABLE_Distr_Energy,$L$10,FALSE),0)","v":0},{"$f":"ROUND(F465*VLOOKUP(D465,ALLOCTABLE_Distr_Energy,$M$10,FALSE),0)","v":0},{"$f":"ROUND(F465*VLOOKUP(D465,ALLOCTABLE_Distr_Energy,$N$10,FALSE),0)","v":0},{"$f":"ROUND(F465*VLOOKUP(D465,ALLOCTABLE_Distr_Energy,$O$10,FALSE),0)","v":0},{"$f":"ROUND(F465*VLOOKUP(D465,ALLOCTABLE_Distr_Energy,$P$10,FALSE),0)","v":0},{"$f":"ROUND(F465*VLOOKUP(D465,ALLOCTABLE_Distr_Energy,$Q$10,FALSE),0)","v":0},{"$f":"SUM(G465:Q465)","v":0},{"$f":"F465-R465","v":0}]
[22,null,{"$f":"'FR-16(7)(v)-1 Functional'!C466","v":"  TOTAL TRANSMISSION O & M"},null,null,{"$f":"SUM(F462:F465)","v":0},{"$f":"SUM(G462:G465)","v":0},0,0,{"$f":"SUM(J462:J465)","v":0},0,0,0,0,0,0,0,0,0]
[23]
[24,"REGIONAL MARKET O&M"]
[25,null,{"$f":"'FR-16(7)(v)-1 Functional'!C469","v":"MARKET FACILITATION - MONITORING & COMPLIANCE"},{"$f":"'FR-16(7)(v)-1 Functional'!D469","v":"K202"},null,{"$f":"'FR-16(7)(v)-10 DIST Classified'!H469","v":0},{"$f":"F469-SUM(H469:Q469)","v":0},{"$f":"ROUND(F469*VLOOKUP(D469,ALLOCTABLE_Distr_Energy,$H$10,FALSE),0)","v":0},{"$f":"ROUND(F469*VLOOKUP(D469,ALLOCTABLE_Distr_Energy,$I$10,FALSE),0)","v":0},{"$f":"ROUND(F469*VLOOKUP(D469,ALLOCTABLE_Distr_Energy,$J$10,FALSE),0)","v":0},{"$f":"ROUND(F469*VLOOKUP(D469,ALLOCTABLE_Distr_Energy,$K$10,FALSE),0)","v":0},{"$f":"ROUND(F469*VLOOKUP(D469,ALLOCTABLE_Distr_Energy,$L$10,FALSE),0)","v":0},{"$f":"ROUND(F469*VLOOKUP(D469,ALLOCTABLE_Distr_Energy,$M$10,FALSE),0)","v":0},{"$f":"ROUND(F469*VLOOKUP(D469,ALLOCTABLE_Distr_Energy,$N$10,FALSE),0)","v":0},{"$f":"ROUND(F469*VLOOKUP(D469,ALLOCTABLE_Distr_Energy,$O$10,FALSE),0)","v":0},{"$f":"ROUND(F469*VLOOKUP(D469,ALLOCTABLE_Distr_Energy,$P$10,FALSE),0)","v":0},{"$f":"ROUND(F469*VLOOKUP(D469,ALLOCTABLE_Distr_Energy,$Q$10,FALSE),0)","v":0},{"$f":"SUM(G469:Q469)","v":0},{"$f":"F469-R469","v":0}]
[26,null,"TOTAL REGIONAL MARKET O&M",null,null,{"$f":"SUM(F468:F469)","v":0},{"$f":"SUM(G468:G469)","v":0},{"$f":"SUM(H468:H469)","v":0},{"$f":"SUM(I468:I469)","v":0},{"$f":"SUM(J468:J469)","v":0},0,0,0,0,0,0,{"$f":"SUM(Q468:Q469)","v":0},{"$f":"SUM(R468:R469)","v":0},{"$f":"SUM(S468:S469)","v":0}]
[27]
[28,"DISTRIBUTION O & M"]
[29,null,{"$f":"'FR-16(7)(v)-1 Functional'!C473","v":"SUBSTATIONS"},{"$f":"'FR-16(7)(v)-1 Functional'!D473","v":"K201"},null,{"$f":"'FR-16(7)(v)-10 DIST Classified'!H473","v":0},{"$f":"F473-SUM(H473:Q473)","v":0},{"$f":"ROUND(F473*VLOOKUP(D473,ALLOCTABLE_Distr_Energy,$H$10,FALSE),0)","v":0},{"$f":"ROUND(F473*VLOOKUP(D473,ALLOCTABLE_Distr_Energy,$I$10,FALSE),0)","v":0},{"$f":"ROUND(F473*VLOOKUP(D473,ALLOCTABLE_Distr_Energy,$J$10,FALSE),0)","v":0},{"$f":"ROUND(F473*VLOOKUP(D473,ALLOCTABLE_Distr_Energy,$K$10,FALSE),0)","v":0},{"$f":"ROUND(F473*VLOOKUP(D473,ALLOCTABLE_Distr_Energy,$L$10,FALSE),0)","v":0},{"$f":"ROUND(F473*VLOOKUP(D473,ALLOCTABLE_Distr_Energy,$M$10,FALSE),0)","v":0},{"$f":"ROUND(F473*VLOOKUP(D473,ALLOCTABLE_Distr_Energy,$N$10,FALSE),0)","v":0},{"$f":"ROUND(F473*VLOOKUP(D473,ALLOCTABLE_Distr_Energy,$O$10,FALSE),0)","v":0},{"$f":"ROUND(F473*VLOOKUP(D473,ALLOCTABLE_Distr_Energy,$P$10,FALSE),0)","v":0},{"$f":"ROUND(F473*VLOOKUP(D473,ALLOCTABLE_Distr_Energy,$Q$10,FALSE),0)","v":0},{"$f":"SUM(G473:Q473)","v":0},{"$f":"F473-R473","v":0}]
[30,null,{"$f":"'FR-16(7)(v)-1 Functional'!C474","v":"POLES, TOWERS & FIXTURES"},{"$f":"'FR-16(7)(v)-1 Functional'!D474","v":"PL49"},null,{"$f":"'FR-16(7)(v)-10 DIST Classified'!H474","v":0},0,0,0,0,0,0,0,0,0,0,0,0,0]
[31,null,{"$f":"'FR-16(7)(v)-1 Functional'!C475","v":"OVERHEAD LINES - PRIMARY / DEMAND"},{"$f":"'FR-16(7)(v)-1 Functional'!D475","v":"K205"},null,{"$f":"'FR-16(7)(v)-10 DIST Classified'!H475","v":0},0,0,0,0,0,0,0,0,0,0,0,0,0]
[32,null,{"$f":"'FR-16(7)(v)-1 Functional'!C476","v":"OVERHEAD LINES - PRIMARY / CUSTOMER"},{"$f":"'FR-16(7)(v)-1 Functional'!D476","v":"K405"},null,{"$f":"'FR-16(7)(v)-10 DIST Classified'!H476","v":0},0,0,0,0,0,0,0,0,0,0,0,0,0]
[33,null,{"$f":"'FR-16(7)(v)-1 Functional'!C477","v":"OVERHEAD LINES - SECONDARY / DEMAND"},{"$f":"'FR-16(7)(v)-1 Functional'!D477","v":"K206"},null,{"$f":"'FR-16(7)(v)-10 DIST Classified'!H477","v":0},0,0,0,0,0,0,0,0,0,0,0,0,0]
[34,null,{"$f":"'FR-16(7)(v)-1 Functional'!C478","v":"OVERHEAD LINES - SECONDARY / CUSTOMER"},{"$f":"'FR-16(7)(v)-1 Functional'!D478","v":"K405"},null,{"$f":"'FR-16(7)(v)-10 DIST Classified'!H478","v":0},0,0,0,0,0,0,0,0,0,0,0,0,0]
[35,null,{"$f":"'FR-16(7)(v)-1 Functional'!C479","v":"UNDERGROUND LINES - PRIMARY / DEMAND"},{"$f":"'FR-16(7)(v)-1 Functional'!D479","v":"K205"},null,{"$f":"'FR-16(7)(v)-10 DIST Classified'!H479","v":0},0,0,0,0,0,0,0,0,0,0,0,0,0]
[36,null,{"$f":"'FR-16(7)(v)-1 Functional'!C480","v":"UNDERGROUND LINES - PRIMARY / CUSTOMER"},{"$f":"'FR-16(7)(v)-1 Functional'!D480","v":"K405"},null,{"$f":"'FR-16(7)(v)-10 DIST Classified'!H480","v":0},0,0,0,0,0,0,0,0,0,0,0,0,0]
[37,null,{"$f":"'FR-16(7)(v)-1 Functional'!C481","v":"UNDERGROUND LINES - SECONDARY / DEMAND"},{"$f":"'FR-16(7)(v)-1 Functional'!D481","v":"K206"},null,{"$f":"'FR-16(7)(v)-10 DIST Classified'!H481","v":0},0,0,0,0,0,0,0,0,0,0,0,0,0]
[38,null,{"$f":"'FR-16(7)(v)-1 Functional'!C482","v":"UNDERGROUND LINES - SECONDARY / CUSTOMER"},{"$f":"'FR-16(7)(v)-1 Functional'!D482","v":"K405"},null,{"$f":"'FR-16(7)(v)-10 DIST Classified'!H482","v":0},0,0,0,0,0,0,0,0,0,0,0,0,0]
[39,null,{"$f":"'FR-16(7)(v)-1 Functional'!C483","v":"TRANSFORMERS DEMAND RELATED"},{"$f":"'FR-16(7)(v)-1 Functional'!D483","v":"K203"},null,{"$f":"'FR-16(7)(v)-10 DIST Classified'!H483","v":0},0,0,0,0,0,0,0,0,0,0,0,0,0]
[40,null,{"$f":"'FR-16(7)(v)-1 Functional'!C484","v":"TRANSFORMERS CUSTOMER RELATED"},{"$f":"'FR-16(7)(v)-1 Functional'!D484","v":"K401"},null,{"$f":"'FR-16(7)(v)-10 DIST Classified'!H484","v":0},0,0,0,0,0,0,0,0,0,0,0,0,0]
[41,null,{"$f":"'FR-16(7)(v)-1 Functional'!C485","v":"OTHER MAINTENANCE"},{"$f":"'FR-16(7)(v)-1 Functional'!D485","v":"K203"},null,{"$f":"'FR-16(7)(v)-10 DIST Classified'!H485","v":0},0,0,0,0,0,0,0,0,0,0,0,0,0]
[42,null,{"$f":"'FR-16(7)(v)-1 Functional'!C486","v":"LOAD DISPATCH"},{"$f":"'FR-16(7)(v)-1 Functional'!D486","v":"K215"},null,{"$f":"'FR-16(7)(v)-10 DIST Classified'!H486","v":0},0,0,0,0,0,0,0,0,0,0,0,0,0]
[43,null,{"$f":"'FR-16(7)(v)-1 Functional'!C487","v":"METERS"},{"$f":"'FR-16(7)(v)-1 Functional'!D487","v":"K407"},null,{"$f":"'FR-16(7)(v)-10 DIST Classified'!H487","v":0},0,0,0,0,0,0,0,0,0,0,0,0,0]
[44,null,{"$f":"'FR-16(7)(v)-1 Functional'!C488","v":"STREET LIGHTING AND SIGNAL SYSTEMS"},{"$f":"'FR-16(7)(v)-1 Functional'!D488","v":"K401"},null,{"$f":"'FR-16(7)(v)-10 DIST Classified'!H488","v":0},0,0,0,0,0,0,0,0,0,0,0,0,0]
[45,null,{"$f":"'FR-16(7)(v)-1 Functional'!C489","v":"OTHER OPERATIONS"},{"$f":"'FR-16(7)(v)-1 Functional'!D489","v":"K203"},null,{"$f":"'FR-16(7)(v)-10 DIST Classified'!H489","v":0},0,0,0,0,0,0,0,0,0,0,0,0,0]
[46,null,{"$f":"'FR-16(7)(v)-1 Functional'!C490","v":"MISCELLANEOUS EXPENSES ADJUSTMENT"},{"$f":"'FR-16(7)(v)-1 Functional'!D490","v":"K203"},null,{"$f":"'FR-16(7)(v)-10 DIST Classified'!H490","v":0},0,0,0,0,0,0,0,0,0,0,0,0,0]
[47,null,{"$f":"'FR-16(7)(v)-1 Functional'!C491","v":"AFFILIATED COMPANY RENTS ADJUSTMENT"},{"$f":"'FR-16(7)(v)-1 Functional'!D491","v":"D249"},null,{"$f":"'FR-16(7)(v)-10 DIST Classified'!H491","v":0},0,0,0,0,0,0,0,0,0,0,0,0,0]
[48,null,{"$f":"'FR-16(7)(v)-1 Functional'!C492","v":"  TOTAL DISTRIBUTION O & M"},null," ",{"$f":"SUM(F472:F491)","v":0},{"$f":"SUM(G472:G491)","v":0},{"$f":"SUM(H472:H491)","v":0},{"$f":"SUM(I472:I491)","v":0},{"$f":"SUM(J472:J491)","v":0},0,0,0,0,0,0,{"$f":"SUM(Q472:Q491)","v":0},{"$f":"SUM(R472:R491)","v":0},{"$f":"SUM(S472:S491)","v":0}]
[49,null," "]
[50,"CUSTOMER ACCOUNTING",null,null,null," "]
[51,null,{"$f":"'FR-16(7)(v)-1 Functional'!C495","v":"CUSTOMER ACCOUNTING EXPENSE"},{"$f":"'FR-16(7)(v)-1 Functional'!D495","v":"K409"},null,{"$f":"'FR-16(7)(v)-10 DIST Classified'!H495","v":0},{"$f":"F495-SUM(H495:Q495)","v":0},{"$f":"ROUND(F495*VLOOKUP(D495,ALLOCTABLE_Distr_Energy,$H$10,FALSE),0)","v":0},{"$f":"ROUND(F495*VLOOKUP(D495,ALLOCTABLE_Distr_Energy,$I$10,FALSE),0)","v":0},{"$f":"ROUND(F495*VLOOKUP(D495,ALLOCTABLE_Distr_Energy,$J$10,FALSE),0)","v":0},{"$f":"ROUND(F495*VLOOKUP(D495,ALLOCTABLE_Distr_Energy,$K$10,FALSE),0)","v":0},{"$f":"ROUND(F495*VLOOKUP(D495,ALLOCTABLE_Distr_Energy,$L$10,FALSE),0)","v":0},{"$f":"ROUND(F495*VLOOKUP(D495,ALLOCTABLE_Distr_Energy,$M$10,FALSE),0)","v":0},{"$f":"ROUND(F495*VLOOKUP(D495,ALLOCTABLE_Distr_Energy,$N$10,FALSE),0)","v":0},{"$f":"ROUND(F495*VLOOKUP(D495,ALLOCTABLE_Distr_Energy,$O$10,FALSE),0)","v":0},{"$f":"ROUND(F495*VLOOKUP(D495,ALLOCTABLE_Distr_Energy,$P$10,FALSE),0)","v":0},{"$f":"ROUND(F495*VLOOKUP(D495,ALLOCTABLE_Distr_Energy,$Q$10,FALSE),0)","v":0},{"$f":"SUM(G495:Q495)","v":0},{"$f":"F495-R495","v":0}]
[52,null,{"$f":"'FR-16(7)(v)-1 Functional'!C496","v":"UNCOLLECTIBLE EXP"},{"$f":"'FR-16(7)(v)-1 Functional'!D496","v":"K411"},null,{"$f":"'FR-16(7)(v)-10 DIST Classified'!H496","v":0},0,0,0,0,0,0,0,0,0,0,0,0,0]
[53,null,{"$f":"'FR-16(7)(v)-1 Functional'!C497","v":"METER READING"},{"$f":"'FR-16(7)(v)-1 Functional'!D497","v":"K407"},null,{"$f":"'FR-16(7)(v)-10 DIST Classified'!H497","v":0},0,0,0,0,0,0,0,0,0,0,0,0,0]
[54,null,{"$f":"'FR-16(7)(v)-1 Functional'!C498","v":"UNCOLLECTIBLE EXP ADJUSTMENT"},{"$f":"'FR-16(7)(v)-1 Functional'!D498","v":"K411"},null,{"$f":"'FR-16(7)(v)-10 DIST Classified'!H498","v":0},0,0,0,0,0,0,0,0,0,0,0,0,0]
[55,null,{"$f":"'FR-16(7)(v)-1 Functional'!C499","v":"CREDIT CARD FEES"},{"$f":"'FR-16(7)(v)-1 Functional'!D499","v":"K407"},null,{"$f":"'FR-16(7)(v)-10 DIST Classified'!H499","v":0},0,0,0,0,0,0,0,0,0,0,0,0,0]
[56,null,{"$f":"'FR-16(7)(v)-1 Functional'!C500","v":"ELIMINATE REV & EXP - DSM RIDER"},{"$f":"'FR-16(7)(v)-1 Functional'!D500","v":"K405"},null,{"$f":"'FR-16(7)(v)-10 DIST Classified'!H500","v":0},0,0,0,0,0,0,0,0,0,0,0,0,0]
[57,null,{"$f":"'FR-16(7)(v)-1 Functional'!C501","v":"SALE OF A/R"},{"$f":"'FR-16(7)(v)-1 Functional'!D501","v":"K411"},null,{"$f":"'FR-16(7)(v)-10 DIST Classified'!H501","v":0},0,0,0,0,0,0,0,0,0,0,0,0,0]
[58,null,{"$f":"'FR-16(7)(v)-1 Functional'!C502","v":"ELIMINATE MISC EXPENSE"},{"$f":"'FR-16(7)(v)-1 Functional'!D502","v":"K405"},null,{"$f":"'FR-16(7)(v)-10 DIST Classified'!H502","v":0},0,0,0,0,0,0,0,0,0,0,0,0,0]
[59,null,{"$f":"'FR-16(7)(v)-1 Functional'!C503","v":"  TOTAL CUSTOMER ACCT EXPENSE"},null," ",{"$f":"SUM(F494:F502)","v":0},{"$f":"SUM(G494:G502)","v":0},{"$f":"SUM(H494:H502)","v":0},{"$f":"SUM(I494:I502)","v":0},{"$f":"SUM(J494:J502)","v":0},0,0,0,0,0,0,{"$f":"SUM(Q494:Q502)","v":0},{"$f":"SUM(R494:R502)","v":0},{"$f":"SUM(S494:S502)","v":0}]
[]
[{"$f":"co_name","v":"DUKE ENERGY KENTUCKY, INC."},null,null,null,null,null,null,null,null,null,null,null,null,null,null,null,null,{"$f":"R1","v":"FR-16(7)(v)-12"}]
[{"$f":"$A$2","v":"DISTRIBUTION ENERGY ALLOCATED - ELECTRIC COST OF SERVICE"},null,null,null,null,null,null,null,null,null,null,null,null,null,null,null,null,{"$f":"R2","v":"WITNESS RESPONSIBLE:"}]
[{"$f":"case_name","v":"CASE NO: 2019-00271"},null,null,null,null,null,null,null,null,null,null,null,null,null,null,null,null,{"$f":"Witness","v":"JAMES E. ZIOLKOWSKI"}]
[{"$f":"data_filing","v":"DATA: 12 MONTHS ACTUAL  & 0 MONTHS ESTIMATED"},null,null,null,null,null,null,null,null,null,null,null,null,null,null,null,null,{"$f":"\"PAGE \"&Pages-9&\" OF \"&Pages","v":"PAGE 9 OF 18"}]
[{"$f":"type","v":"TYPE OF FILING: \"X\" ORIGINAL   UPDATED    REVISED  "}]
[]
[null,null,null,null,null,{"$f":"F$7","v":"TOTAL"},null,{"$f":"H$7","v":"DS"},{"$f":"I$7","v":"GSFL"},{"$f":"J$7","v":"EH"},{"$f":"K$7","v":"SP"},"DT SEC","DT PRI","DP","TT",null,"OTHER"]
["LINE",null,null,null,null,{"$f":"F$8","v":"DISTRIBUTION"},{"$f":"G$8","v":"RS"},{"$f":"H$8","v":"SECONDARY"},{"$f":"I$8","v":"SECONDARY"},{"$f":"J$8","v":"SECONDARY"},{"$f":"K$8","v":"SECONDARY"},"SECONDARY","PRIMARY","PRIMARY","TRANSMISSION","LT","WATER",{"$f":"R8","v":"TOTAL"},"ALL"]
["NO.","O&M EXPENSES",null,"ALLO",null,{"$f":"F$9","v":"ENERGY"},{"$f":"G$9","v":"RESIDENTIAL"},{"$f":"H$9","v":"DISTRIBUTION"},{"$f":"I$9","v":"DISTRIBUTION"},{"$f":"J$9","v":"DISTRIBUTION"},{"$f":"K$9","v":"DISTRIBUTION"},"DISTRIBUTION","DISTRIBUTION","DISTRIBUTION","TIME OF DAY","LIGHTING","PUMPING",{"$f":"R9","v":"AT ISSUE"},"OTHER"]
[null,null,"Schedule 6.1",null,null,null,{"$f":"G$10","v":3},{"$f":"H$10","v":4},{"$f":"I$10","v":5},{"$f":"J$10","v":6},{"$f":"K$10","v":7},8,9,10,11,12,13,null," "]
[1,"CUSTOMER SERVICE & INFORMATION"]
[2,null,{"$f":"'FR-16(7)(v)-1 Functional'!C516","v":"TOTAL CUST SERVICE & INFO"},{"$f":"'FR-16(7)(v)-1 Functional'!D516","v":"K405"},null,{"$f":"'FR-16(7)(v)-10 DIST Classified'!H516","v":0},{"$f":"F516-SUM(H516:Q516)","v":0},{"$f":"ROUND(F516*VLOOKUP(D516,ALLOCTABLE_Distr_Energy,$H$10,FALSE),0)","v":0},{"$f":"ROUND(F516*VLOOKUP(D516,ALLOCTABLE_Distr_Energy,$I$10,FALSE),0)","v":0},{"$f":"ROUND(F516*VLOOKUP(D516,ALLOCTABLE_Distr_Energy,$J$10,FALSE),0)","v":0},{"$f":"ROUND(F516*VLOOKUP(D516,ALLOCTABLE_Distr_Energy,$K$10,FALSE),0)","v":0},{"$f":"ROUND(F516*VLOOKUP(D516,ALLOCTABLE_Distr_Energy,$L$10,FALSE),0)","v":0},{"$f":"ROUND(F516*VLOOKUP(D516,ALLOCTABLE_Distr_Energy,$M$10,FALSE),0)","v":0},{"$f":"ROUND(F516*VLOOKUP(D516,ALLOCTABLE_Distr_Energy,$N$10,FALSE),0)","v":0},{"$f":"ROUND(F516*VLOOKUP(D516,ALLOCTABLE_Distr_Energy,$O$10,FALSE),0)","v":0},{"$f":"ROUND(F516*VLOOKUP(D516,ALLOCTABLE_Distr_Energy,$P$10,FALSE),0)","v":0},{"$f":"ROUND(F516*VLOOKUP(D516,ALLOCTABLE_Distr_Energy,$Q$10,FALSE),0)","v":0},{"$f":"SUM(G516:Q516)","v":0},{"$f":"F516-R516","v":0}]
[3,null,{"$f":"'FR-16(7)(v)-1 Functional'!C517","v":"INFORMATIONAL & INSTRUCTIONAL ADV"},{"$f":"'FR-16(7)(v)-1 Functional'!D517","v":"K405"},null,{"$f":"'FR-16(7)(v)-10 DIST Classified'!H517","v":0},{"$f":"F517-SUM(H517:Q517)","v":0},{"$f":"ROUND(F517*VLOOKUP(D517,ALLOCTABLE_Distr_Energy,$H$10,FALSE),0)","v":0},{"$f":"ROUND(F517*VLOOKUP(D517,ALLOCTABLE_Distr_Energy,$I$10,FALSE),0)","v":0},{"$f":"ROUND(F517*VLOOKUP(D517,ALLOCTABLE_Distr_Energy,$J$10,FALSE),0)","v":0},{"$f":"ROUND(F517*VLOOKUP(D517,ALLOCTABLE_Distr_Energy,$K$10,FALSE),0)","v":0},{"$f":"ROUND(F517*VLOOKUP(D517,ALLOCTABLE_Distr_Energy,$L$10,FALSE),0)","v":0},{"$f":"ROUND(F517*VLOOKUP(D517,ALLOCTABLE_Distr_Energy,$M$10,FALSE),0)","v":0},{"$f":"ROUND(F517*VLOOKUP(D517,ALLOCTABLE_Distr_Energy,$N$10,FALSE),0)","v":0},{"$f":"ROUND(F517*VLOOKUP(D517,ALLOCTABLE_Distr_Energy,$O$10,FALSE),0)","v":0},{"$f":"ROUND(F517*VLOOKUP(D517,ALLOCTABLE_Distr_Energy,$P$10,FALSE),0)","v":0},{"$f":"ROUND(F517*VLOOKUP(D517,ALLOCTABLE_Distr_Energy,$Q$10,FALSE),0)","v":0},{"$f":"SUM(G517:Q517)","v":0}]
[4,null,{"$f":"'FR-16(7)(v)-1 Functional'!C518","v":"TOTAL CUSTOMER SERV. & INFO."},null," ",{"$f":"SUM(F516:F517)","v":0},{"$f":"SUM(G516:G517)","v":0},0,0,{"$f":"SUM(J516:J517)","v":0},0,0,0,0,0,0,0,0,0]
[5]
[6,"SALES"]
[7,null,{"$f":"'FR-16(7)(v)-1 Functional'!C521","v":"SALES EXPENSE"},{"$f":"'FR-16(7)(v)-1 Functional'!D521","v":"K405"}," ",{"$f":"'FR-16(7)(v)-10 DIST Classified'!H521","v":0},{"$f":"F521-SUM(H521:Q521)","v":0},{"$f":"ROUND(F521*VLOOKUP(D521,ALLOCTABLE_Distr_Energy,$H$10,FALSE),0)","v":0},{"$f":"ROUND(F521*VLOOKUP(D521,ALLOCTABLE_Distr_Energy,$I$10,FALSE),0)","v":0},{"$f":"ROUND(F521*VLOOKUP(D521,ALLOCTABLE_Distr_Energy,$J$10,FALSE),0)","v":0},{"$f":"ROUND(F521*VLOOKUP(D521,ALLOCTABLE_Distr_Energy,$K$10,FALSE),0)","v":0},{"$f":"ROUND(F521*VLOOKUP(D521,ALLOCTABLE_Distr_Energy,$L$10,FALSE),0)","v":0},{"$f":"ROUND(F521*VLOOKUP(D521,ALLOCTABLE_Distr_Energy,$M$10,FALSE),0)","v":0},{"$f":"ROUND(F521*VLOOKUP(D521,ALLOCTABLE_Distr_Energy,$N$10,FALSE),0)","v":0},{"$f":"ROUND(F521*VLOOKUP(D521,ALLOCTABLE_Distr_Energy,$O$10,FALSE),0)","v":0},{"$f":"ROUND(F521*VLOOKUP(D521,ALLOCTABLE_Distr_Energy,$P$10,FALSE),0)","v":0},{"$f":"ROUND(F521*VLOOKUP(D521,ALLOCTABLE_Distr_Energy,$Q$10,FALSE),0)","v":0},{"$f":"SUM(G521:Q521)","v":0},{"$f":"F521-R521","v":0}]
[8,null,{"$f":"'FR-16(7)(v)-1 Functional'!C522","v":"TOTAL SALES EXPENSE"},null," ",{"$f":"SUM(F520:F521)","v":0},{"$f":"SUM(G520:G521)","v":0},{"$f":"SUM(H520:H521)","v":0},{"$f":"SUM(I520:I521)","v":0},{"$f":"SUM(J520:J521)","v":0},0,0,0,0,0,0,{"$f":"SUM(Q520:Q521)","v":0},{"$f":"SUM(R520:R521)","v":0},{"$f":"SUM(S520:S521)","v":0}]
[9]
[10,"ADMINISTRATIVE & GENERAL "]
[11,null,{"$f":"'FR-16(7)(v)-1 Functional'!C525","v":"PRODUCTION - DEMAND RELATED"},{"$f":"'FR-16(7)(v)-1 Functional'!D525","v":"P349"},null,{"$f":"'FR-16(7)(v)-10 DIST Classified'!H525","v":0},{"$f":"F525-SUM(H525:Q525)","v":0},{"$f":"ROUND(F525*VLOOKUP(D525,ALLOCTABLE_Distr_Energy,$H$10,FALSE),0)","v":0},{"$f":"ROUND(F525*VLOOKUP(D525,ALLOCTABLE_Distr_Energy,$I$10,FALSE),0)","v":0},{"$f":"ROUND(F525*VLOOKUP(D525,ALLOCTABLE_Distr_Energy,$J$10,FALSE),0)","v":0},{"$f":"ROUND(F525*VLOOKUP(D525,ALLOCTABLE_Distr_Energy,$K$10,FALSE),0)","v":0},{"$f":"ROUND(F525*VLOOKUP(D525,ALLOCTABLE_Distr_Energy,$L$10,FALSE),0)","v":0},{"$f":"ROUND(F525*VLOOKUP(D525,ALLOCTABLE_Distr_Energy,$M$10,FALSE),0)","v":0},{"$f":"ROUND(F525*VLOOKUP(D525,ALLOCTABLE_Distr_Energy,$N$10,FALSE),0)","v":0},{"$f":"ROUND(F525*VLOOKUP(D525,ALLOCTABLE_Distr_Energy,$O$10,FALSE),0)","v":0},{"$f":"ROUND(F525*VLOOKUP(D525,ALLOCTABLE_Distr_Energy,$P$10,FALSE),0)","v":0},{"$f":"ROUND(F525*VLOOKUP(D525,ALLOCTABLE_Distr_Energy,$Q$10,FALSE),0)","v":0},{"$f":"SUM(G525:Q525)","v":0},{"$f":"F525-R525","v":0}]
[12,null,{"$f":"'FR-16(7)(v)-1 Functional'!C526","v":"PRODUCTION - ENERGY RELATED"},{"$f":"'FR-16(7)(v)-1 Functional'!D526","v":"E349"},null,{"$f":"'FR-16(7)(v)-10 DIST Classified'!H526","v":0},0,0,0,0,0,0,0,0,0,0,0,0,0]
[13,null,"TRANSMISSION",{"$f":"'FR-16(7)(v)-1 Functional'!D527","v":"T349"},null,{"$f":"'FR-16(7)(v)-10 DIST Classified'!H527","v":0},0,0,0,0,0,0,0,0,0,0,0,{"$f":"SUM(G527:Q527)","v":0},{"$f":"F527-R527","v":0}]
[14,null,{"$f":"'FR-16(7)(v)-1 Functional'!C528","v":"DISTRIBUTION"},{"$f":"'FR-16(7)(v)-1 Functional'!D528","v":"D349"},null,{"$f":"'FR-16(7)(v)-10 DIST Classified'!H528","v":0},0,0,0,0,0,0,0,0,0,0,0,0,0]
[15,null,{"$f":"'FR-16(7)(v)-1 Functional'!C529","v":"CUSTOMER ACCOUNTING"},{"$f":"'FR-16(7)(v)-1 Functional'!D529","v":"C319"},null,{"$f":"'FR-16(7)(v)-10 DIST Classified'!H529","v":0},0,0,0,0,0,0,0,0,0,0,0,0,0]
[16,null,{"$f":"'FR-16(7)(v)-1 Functional'!C530","v":"CUSTOMER SERVICE & INFORMATION"},{"$f":"'FR-16(7)(v)-1 Functional'!D530","v":"C331"},null,{"$f":"'FR-16(7)(v)-10 DIST Classified'!H530","v":0},0,0,0,0,0,0,0,0,0,0,0,0,0]
[17,null,{"$f":"'FR-16(7)(v)-1 Functional'!C531","v":"SALES"},{"$f":"'FR-16(7)(v)-1 Functional'!D531","v":"S319"},null,{"$f":"'FR-16(7)(v)-10 DIST Classified'!H531","v":0},0,0,0,0,0,0,0,0,0,0,0,0,0]
[18,null,{"$f":"'FR-16(7)(v)-1 Functional'!C532","v":"TOT ADMIN & GEN LESS REG EXP"}," ",null,{"$f":"SUM(F525:F531)","v":0},{"$f":"SUM(G525:G531)","v":0},{"$f":"SUM(H525:H531)","v":0},{"$f":"SUM(I525:I531)","v":0},{"$f":"SUM(J525:J531)","v":0},0,0,0,0,0,0,{"$f":"SUM(Q525:Q531)","v":0},{"$f":"SUM(R525:R531)","v":0},{"$f":"SUM(S525:S531)","v":0}]
[19,null,{"$f":"'FR-16(7)(v)-1 Functional'!C533","v":"RATE CASE EXPENSE ADJUSTMENT"},{"$f":"'FR-16(7)(v)-1 Functional'!D533","v":"A315"},null,{"$f":"'FR-16(7)(v)-10 DIST Classified'!H533","v":0},{"$f":"F533-SUM(H533:Q533)","v":0},{"$f":"ROUND(F533*VLOOKUP(D533,ALLOCTABLE_Distr_Energy,$H$10,FALSE),0)","v":0},{"$f":"ROUND(F533*VLOOKUP(D533,ALLOCTABLE_Distr_Energy,$I$10,FALSE),0)","v":0},{"$f":"ROUND(F533*VLOOKUP(D533,ALLOCTABLE_Distr_Energy,$J$10,FALSE),0)","v":0},{"$f":"ROUND(F533*VLOOKUP(D533,ALLOCTABLE_Distr_Energy,$K$10,FALSE),0)","v":0},{"$f":"ROUND(F533*VLOOKUP(D533,ALLOCTABLE_Distr_Energy,$L$10,FALSE),0)","v":0},{"$f":"ROUND(F533*VLOOKUP(D533,ALLOCTABLE_Distr_Energy,$M$10,FALSE),0)","v":0},{"$f":"ROUND(F533*VLOOKUP(D533,ALLOCTABLE_Distr_Energy,$N$10,FALSE),0)","v":0},{"$f":"ROUND(F533*VLOOKUP(D533,ALLOCTABLE_Distr_Energy,$O$10,FALSE),0)","v":0},{"$f":"ROUND(F533*VLOOKUP(D533,ALLOCTABLE_Distr_Energy,$P$10,FALSE),0)","v":0},{"$f":"ROUND(F533*VLOOKUP(D533,ALLOCTABLE_Distr_Energy,$Q$10,FALSE),0)","v":0},{"$f":"SUM(G533:Q533)","v":0},{"$f":"F533-R533","v":0}]
[20,null,{"$f":"'FR-16(7)(v)-1 Functional'!C534","v":"ELIMINATE MISCELLANEOUS EXPENSES ADJUSTMENT"},{"$f":"'FR-16(7)(v)-1 Functional'!D534","v":"A315"},null,{"$f":"'FR-16(7)(v)-10 DIST Classified'!H534","v":0},0,0,0,0,0,0,0,0,0,0,0,0,0]
[21,null,{"$f":"'FR-16(7)(v)-1 Functional'!C535","v":"RIDER ESM ELIMINATION"},{"$f":"'FR-16(7)(v)-1 Functional'!D535","v":"A315"},null,{"$f":"'FR-16(7)(v)-10 DIST Classified'!H535","v":0},0,0,0,0,0,0,0,0,0,0,0,0,0]
[22,null,{"$f":"'FR-16(7)(v)-1 Functional'!C536","v":"ELIMINATE DSM"},{"$f":"'FR-16(7)(v)-1 Functional'!D536","v":"A315"},null,{"$f":"'FR-16(7)(v)-10 DIST Classified'!H536","v":0},0,0,0,0,0,0,0,0,0,0,0,0,0]
[23,null,{"$f":"'FR-16(7)(v)-1 Functional'!C537","v":"DSM DEFERRAL - ELECTRIC"},{"$f":"'FR-16(7)(v)-1 Functional'!D537","v":"A315"},null,{"$f":"'FR-16(7)(v)-10 DIST Classified'!H537","v":0},0,0,0,0,0,0,0,0,0,0,0,0,0]
[24,null,{"$f":"'FR-16(7)(v)-1 Functional'!C538","v":"PENSION ADJUSTMENT"},{"$f":"'FR-16(7)(v)-1 Functional'!D538","v":"A315"},null,{"$f":"'FR-16(7)(v)-10 DIST Classified'!H538","v":0},0,0,0,0,0,0,0,0,0,0,0,0,0]
[25,null,{"$f":"'FR-16(7)(v)-1 Functional'!C539","v":"ELIMINATE MISC EXPENSES"},{"$f":"'FR-16(7)(v)-1 Functional'!D539","v":"A315"},null,{"$f":"'FR-16(7)(v)-10 DIST Classified'!H539","v":0},0,0,0,0,0,0,0,0,0,0,0,0,0]
[26,null,{"$f":"'FR-16(7)(v)-1 Functional'!C540","v":"ELIMINATE MERGER COSTS AND CREDITS"},{"$f":"'FR-16(7)(v)-1 Functional'!D540","v":"A315"},null,{"$f":"'FR-16(7)(v)-10 DIST Classified'!H540","v":0},0,0,0,0,0,0,0,0,0,0,0,0,0]
[27,null,{"$f":"'FR-16(7)(v)-1 Functional'!C541","v":"ANNUALIZE KYPSC MAINT TAX"},{"$f":"'FR-16(7)(v)-1 Functional'!D541","v":"A315"},null,{"$f":"'FR-16(7)(v)-10 DIST Classified'!H541","v":0},0,0,0,0,0,0,0,0,0,0,0,0,0]
[28,null,{"$f":"'FR-16(7)(v)-1 Functional'!C542","v":"REMOVE INCENTIVE COMP"},{"$f":"'FR-16(7)(v)-1 Functional'!D542","v":"A315"},null,{"$f":"'FR-16(7)(v)-10 DIST Classified'!H542","v":0},0,0,0,0,0,0,0,0,0,0,0,0,0]
[29,null,{"$f":"'FR-16(7)(v)-1 Functional'!C543","v":"CREDIT CARD FEES"},{"$f":"'FR-16(7)(v)-1 Functional'!D543","v":"A315"},null,{"$f":"'FR-16(7)(v)-10 DIST Classified'!H543","v":0},0,0,0,0,0,0,0,0,0,0,0,0,0]
[30,null,{"$f":"'FR-16(7)(v)-1 Functional'!C544","v":"ELIMINATE INCENTIVE COMPENSATION ADJUSTMENT"},{"$f":"'FR-16(7)(v)-1 Functional'!D544","v":"A315"},null,{"$f":"'FR-16(7)(v)-10 DIST Classified'!H544","v":0},0,0,0,0,0,0,0,0,0,0,0,0,0]
[31,null,{"$f":"'FR-16(7)(v)-1 Functional'!C545","v":"AMORTIZATION OF DEFERRAL ASSET"},{"$f":"'FR-16(7)(v)-1 Functional'!D545","v":"A315"},null,{"$f":"'FR-16(7)(v)-10 DIST Classified'!H545","v":0},0,0,0,0,0,0,0,0,0,0,0,0,0]
[32,null,{"$f":"'FR-16(7)(v)-1 Functional'!C546","v":"AMORTIZATION OF DEFERRED EXPENSES"},{"$f":"'FR-16(7)(v)-1 Functional'!D546","v":"A315"},null,{"$f":"'FR-16(7)(v)-10 DIST Classified'!H546","v":0},0,0,0,0,0,0,0,0,0,0,0,0,0]
[33,null,{"$f":"'FR-16(7)(v)-1 Functional'!C547","v":"TOTAL ADMIN. & GENERAL"},null," ",{"$f":"SUM(F532:F546)","v":0},{"$f":"SUM(G532:G546)","v":0},{"$f":"SUM(H532:H546)","v":0},{"$f":"SUM(I532:I546)","v":0},{"$f":"SUM(J532:J546)","v":0},0,0,0,0,0,0,{"$f":"SUM(Q532:Q546)","v":0},{"$f":"SUM(R532:R546)","v":0},{"$f":"SUM(S532:S546)","v":0}]
[34]
[35,null,{"$f":"'FR-16(7)(v)-1 Functional'!C549","v":"TOTAL O & M EXPENSE"},null,null,{"$f":"F547+F522+F518+F503+F492+F470+F466+F459","v":0},{"$f":"G547+G522+G518+G503+G492+G470+G466+G459","v":0},{"$f":"H547+H522+H518+H503+H492+H470+H466+H459","v":0},{"$f":"I547+I522+I518+I503+I492+I470+I466+I459","v":0},{"$f":"J547+J522+J518+J503+J492+J470+J466+J459","v":0},0,0,0,0,0,0,{"$f":"Q547+Q522+Q518+Q503+Q492+Q470+Q466+Q459","v":0},{"$f":"R547+R522+R518+R503+R492+R470+R466+R459","v":0},{"$f":"S547+S522+S518+S503+S492+S466+S459","v":0}]
[]
[{"$f":"co_name","v":"DUKE ENERGY KENTUCKY, INC."},null,null,null,null,null,null,null,null,null,null,null,null,null,null,null,null,{"$f":"R1","v":"FR-16(7)(v)-12"}]
[{"$f":"$A$2","v":"DISTRIBUTION ENERGY ALLOCATED - ELECTRIC COST OF SERVICE"},null,null,null,null,null,null,null,null,null,null,null,null,null,null,null,null,{"$f":"R2","v":"WITNESS RESPONSIBLE:"}]
[{"$f":"case_name","v":"CASE NO: 2019-00271"},null,null,null,null,null,null,null,null,null,null,null,null,null,null,null,null,{"$f":"Witness","v":"JAMES E. ZIOLKOWSKI"}]
[{"$f":"data_filing","v":"DATA: 12 MONTHS ACTUAL  & 0 MONTHS ESTIMATED"},null,null,null,null,null,null,null,null,null,null,null,null,null,null,null,null,{"$f":"\"PAGE \"&Pages-8&\" OF \"&Pages","v":"PAGE 10 OF 18"}]
[{"$f":"type","v":"TYPE OF FILING: \"X\" ORIGINAL   UPDATED    REVISED  "}]
[]
[null,null,null,null,null,{"$f":"F$7","v":"TOTAL"},null,{"$f":"H$7","v":"DS"},{"$f":"I$7","v":"GSFL"},{"$f":"J$7","v":"EH"},{"$f":"K$7","v":"SP"},"DT SEC","DT PRI","DP","TT",null,"OTHER"]
["LINE",null,null,null,null,{"$f":"F$8","v":"DISTRIBUTION"},{"$f":"G$8","v":"RS"},{"$f":"H$8","v":"SECONDARY"},{"$f":"I$8","v":"SECONDARY"},{"$f":"J$8","v":"SECONDARY"},{"$f":"K$8","v":"SECONDARY"},"SECONDARY","PRIMARY","PRIMARY","TRANSMISSION","LT","WATER",{"$f":"R8","v":"TOTAL"},"ALL"]
["NO.","DEPRECIATION EXPENSE",null,"ALLO",null,{"$f":"F$9","v":"ENERGY"},{"$f":"G$9","v":"RESIDENTIAL"},{"$f":"H$9","v":"DISTRIBUTION"},{"$f":"I$9","v":"DISTRIBUTION"},{"$f":"J$9","v":"DISTRIBUTION"},{"$f":"K$9","v":"DISTRIBUTION"},"DISTRIBUTION","DISTRIBUTION","DISTRIBUTION","TIME OF DAY","LIGHTING","PUMPING",{"$f":"R9","v":"AT ISSUE"},"OTHER"]
[null,null,"Schedule 7",null,null,null,{"$f":"G$10","v":3},{"$f":"H$10","v":4},{"$f":"I$10","v":5},{"$f":"J$10","v":6},{"$f":"K$10","v":7},8,9,10,11,12,13,null," "]
[1,"PRODUCTION DEPRECIATION"]
[2,null,{"$f":"'FR-16(7)(v)-1 Functional'!C562","v":"PRODUCTION DEPRECIATION"},{"$f":"'FR-16(7)(v)-1 Functional'!D562","v":"P229"},null,{"$f":"'FR-16(7)(v)-10 DIST Classified'!H562","v":0},{"$f":"F562-SUM(H562:Q562)","v":0},{"$f":"ROUND(F562*VLOOKUP(D562,ALLOCTABLE_Distr_Energy,$H$10,FALSE),0)","v":0},{"$f":"ROUND(F562*VLOOKUP(D562,ALLOCTABLE_Distr_Energy,$I$10,FALSE),0)","v":0},{"$f":"ROUND(F562*VLOOKUP(D562,ALLOCTABLE_Distr_Energy,$J$10,FALSE),0)","v":0},{"$f":"ROUND(F562*VLOOKUP(D562,ALLOCTABLE_Distr_Energy,$K$10,FALSE),0)","v":0},{"$f":"ROUND(F562*VLOOKUP(D562,ALLOCTABLE_Distr_Energy,$L$10,FALSE),0)","v":0},{"$f":"ROUND(F562*VLOOKUP(D562,ALLOCTABLE_Distr_Energy,$M$10,FALSE),0)","v":0},{"$f":"ROUND(F562*VLOOKUP(D562,ALLOCTABLE_Distr_Energy,$N$10,FALSE),0)","v":0},{"$f":"ROUND(F562*VLOOKUP(D562,ALLOCTABLE_Distr_Energy,$O$10,FALSE),0)","v":0},{"$f":"ROUND(F562*VLOOKUP(D562,ALLOCTABLE_Distr_Energy,$P$10,FALSE),0)","v":0},{"$f":"ROUND(F562*VLOOKUP(D562,ALLOCTABLE_Distr_Energy,$Q$10,FALSE),0)","v":0},{"$f":"SUM(G562:Q562)","v":0},{"$f":"F562-R562","v":0}]
[3,null,{"$f":"'FR-16(7)(v)-1 Functional'!C563","v":"  TOTAL PRODUCTION DEPREC EXP."},null,null,{"$f":"SUM(F562:F562)","v":0},{"$f":"SUM(G562:G562)","v":0},{"$f":"SUM(H562:H562)","v":0},{"$f":"SUM(I562:I562)","v":0},{"$f":"SUM(J562:J562)","v":0},0,0,0,0,0,0,{"$f":"SUM(Q562:Q562)","v":0},{"$f":"SUM(R562:R562)","v":0},{"$f":"SUM(S562:S562)","v":0}]
[4]
[5,"TRANSMISSION DEPRECIATION"]
[6,null,"TRANSMISSION DEPRECIATION",{"$f":"'FR-16(7)(v)-1 Functional'!D566","v":"T229"},null,{"$f":"'FR-16(7)(v)-10 DIST Classified'!H566","v":0},{"$f":"F566-SUM(H566:Q566)","v":0},{"$f":"ROUND(F566*VLOOKUP(D566,ALLOCTABLE_Distr_Energy,$H$10,FALSE),0)","v":0},{"$f":"ROUND(F566*VLOOKUP(D566,ALLOCTABLE_Distr_Energy,$I$10,FALSE),0)","v":0},{"$f":"ROUND(F566*VLOOKUP(D566,ALLOCTABLE_Distr_Energy,$J$10,FALSE),0)","v":0},{"$f":"ROUND(F566*VLOOKUP(D566,ALLOCTABLE_Distr_Energy,$K$10,FALSE),0)","v":0},{"$f":"ROUND(F566*VLOOKUP(D566,ALLOCTABLE_Distr_Energy,$L$10,FALSE),0)","v":0},{"$f":"ROUND(F566*VLOOKUP(D566,ALLOCTABLE_Distr_Energy,$M$10,FALSE),0)","v":0},{"$f":"ROUND(F566*VLOOKUP(D566,ALLOCTABLE_Distr_Energy,$N$10,FALSE),0)","v":0},{"$f":"ROUND(F566*VLOOKUP(D566,ALLOCTABLE_Distr_Energy,$O$10,FALSE),0)","v":0},{"$f":"ROUND(F566*VLOOKUP(D566,ALLOCTABLE_Distr_Energy,$P$10,FALSE),0)","v":0},{"$f":"ROUND(F566*VLOOKUP(D566,ALLOCTABLE_Distr_Energy,$Q$10,FALSE),0)","v":0},{"$f":"SUM(G566:Q566)","v":0},{"$f":"F566-R566","v":0}]
[7,null,{"$f":"'FR-16(7)(v)-1 Functional'!C567","v":"  TOTAL TRANSMISSION DEP. EXP."},null,null,{"$f":"SUM(F566:F566)","v":0},{"$f":"SUM(G566:G566)","v":0},{"$f":"SUM(H566:H566)","v":0},{"$f":"SUM(I566:I566)","v":0},{"$f":"SUM(J566:J566)","v":0},0,0,0,0,0,0,{"$f":"SUM(Q566:Q566)","v":0},{"$f":"SUM(R566:R566)","v":0},{"$f":"SUM(S566:S566)","v":0}]
[8]
[9,"DISTRIBUTION DEPRECIATION"]
[10,null,{"$f":"'FR-16(7)(v)-1 Functional'!C570","v":"DISTRIBUTION DEPRECIATION"},{"$f":"'FR-16(7)(v)-1 Functional'!D570","v":"D249"},null,{"$f":"'FR-16(7)(v)-10 DIST Classified'!H570","v":0},{"$f":"F570-SUM(H570:Q570)","v":0},{"$f":"ROUND(F570*VLOOKUP(D570,ALLOCTABLE_Distr_Energy,$H$10,FALSE),0)","v":0},{"$f":"ROUND(F570*VLOOKUP(D570,ALLOCTABLE_Distr_Energy,$I$10,FALSE),0)","v":0},{"$f":"ROUND(F570*VLOOKUP(D570,ALLOCTABLE_Distr_Energy,$J$10,FALSE),0)","v":0},{"$f":"ROUND(F570*VLOOKUP(D570,ALLOCTABLE_Distr_Energy,$K$10,FALSE),0)","v":0},{"$f":"ROUND(F570*VLOOKUP(D570,ALLOCTABLE_Distr_Energy,$L$10,FALSE),0)","v":0},{"$f":"ROUND(F570*VLOOKUP(D570,ALLOCTABLE_Distr_Energy,$M$10,FALSE),0)","v":0},{"$f":"ROUND(F570*VLOOKUP(D570,ALLOCTABLE_Distr_Energy,$N$10,FALSE),0)","v":0},{"$f":"ROUND(F570*VLOOKUP(D570,ALLOCTABLE_Distr_Energy,$O$10,FALSE),0)","v":0},{"$f":"ROUND(F570*VLOOKUP(D570,ALLOCTABLE_Distr_Energy,$P$10,FALSE),0)","v":0},{"$f":"ROUND(F570*VLOOKUP(D570,ALLOCTABLE_Distr_Energy,$Q$10,FALSE),0)","v":0},{"$f":"SUM(G570:Q570)","v":0},{"$f":"F570-R570","v":0}]
[11,null,{"$f":"'FR-16(7)(v)-1 Functional'!C571","v":"  TOTAL DIST. DEPREC EXP."},null,null,{"$f":"SUM(F570:F570)","v":0},{"$f":"SUM(G570:G570)","v":0},{"$f":"SUM(H570:H570)","v":0},{"$f":"SUM(I570:I570)","v":0},{"$f":"SUM(J570:J570)","v":0},0,0,0,0,0,0,{"$f":"SUM(Q570:Q570)","v":0},{"$f":"SUM(R570:R570)","v":0},{"$f":"SUM(S570:S570)","v":0}]
[12,null,null,null,null," "]
[13,"GENERAL DEPRECIATION"]
[14,null,{"$f":"'FR-16(7)(v)-1 Functional'!C574","v":"GENERAL DEPRECIATION"},{"$f":"'FR-16(7)(v)-1 Functional'!D574","v":"G229"},null,{"$f":"'FR-16(7)(v)-10 DIST Classified'!H574","v":0},{"$f":"F574-SUM(H574:Q574)","v":0},{"$f":"ROUND(F574*VLOOKUP(D574,ALLOCTABLE_Distr_Energy,$H$10,FALSE),0)","v":0},{"$f":"ROUND(F574*VLOOKUP(D574,ALLOCTABLE_Distr_Energy,$I$10,FALSE),0)","v":0},{"$f":"ROUND(F574*VLOOKUP(D574,ALLOCTABLE_Distr_Energy,$J$10,FALSE),0)","v":0},{"$f":"ROUND(F574*VLOOKUP(D574,ALLOCTABLE_Distr_Energy,$K$10,FALSE),0)","v":0},{"$f":"ROUND(F574*VLOOKUP(D574,ALLOCTABLE_Distr_Energy,$L$10,FALSE),0)","v":0},{"$f":"ROUND(F574*VLOOKUP(D574,ALLOCTABLE_Distr_Energy,$M$10,FALSE),0)","v":0},{"$f":"ROUND(F574*VLOOKUP(D574,ALLOCTABLE_Distr_Energy,$N$10,FALSE),0)","v":0},{"$f":"ROUND(F574*VLOOKUP(D574,ALLOCTABLE_Distr_Energy,$O$10,FALSE),0)","v":0},{"$f":"ROUND(F574*VLOOKUP(D574,ALLOCTABLE_Distr_Energy,$P$10,FALSE),0)","v":0},{"$f":"ROUND(F574*VLOOKUP(D574,ALLOCTABLE_Distr_Energy,$Q$10,FALSE),0)","v":0},{"$f":"SUM(G574:Q574)","v":0},{"$f":"F574-R574","v":0}]
[15,null,{"$f":"'FR-16(7)(v)-1 Functional'!C575","v":"  TOTAL GENERAL DEPREC EXP."},null,null,{"$f":"SUM(F574:F574)","v":0},{"$f":"SUM(G574:G574)","v":0},{"$f":"SUM(H574:H574)","v":0},{"$f":"SUM(I574:I574)","v":0},{"$f":"SUM(J574:J574)","v":0},0,0,0,0,0,0,{"$f":"SUM(Q574:Q574)","v":0},{"$f":"SUM(R574:R574)","v":0},{"$f":"SUM(S574:S574)","v":0}]
[16]
[17,"COMMON AND OTHER DEPRECIATION"]
[18,null,{"$f":"'FR-16(7)(v)-1 Functional'!C578","v":"COMMON DEPRECIATION"},{"$f":"'FR-16(7)(v)-1 Functional'!D578","v":"C229"},null,{"$f":"'FR-16(7)(v)-10 DIST Classified'!H578","v":0},{"$f":"F578-SUM(H578:Q578)","v":0},{"$f":"ROUND(F578*VLOOKUP(D578,ALLOCTABLE_Distr_Energy,$H$10,FALSE),0)","v":0},{"$f":"ROUND(F578*VLOOKUP(D578,ALLOCTABLE_Distr_Energy,$I$10,FALSE),0)","v":0},{"$f":"ROUND(F578*VLOOKUP(D578,ALLOCTABLE_Distr_Energy,$J$10,FALSE),0)","v":0},{"$f":"ROUND(F578*VLOOKUP(D578,ALLOCTABLE_Distr_Energy,$K$10,FALSE),0)","v":0},{"$f":"ROUND(F578*VLOOKUP(D578,ALLOCTABLE_Distr_Energy,$L$10,FALSE),0)","v":0},{"$f":"ROUND(F578*VLOOKUP(D578,ALLOCTABLE_Distr_Energy,$M$10,FALSE),0)","v":0},{"$f":"ROUND(F578*VLOOKUP(D578,ALLOCTABLE_Distr_Energy,$N$10,FALSE),0)","v":0},{"$f":"ROUND(F578*VLOOKUP(D578,ALLOCTABLE_Distr_Energy,$O$10,FALSE),0)","v":0},{"$f":"ROUND(F578*VLOOKUP(D578,ALLOCTABLE_Distr_Energy,$P$10,FALSE),0)","v":0},{"$f":"ROUND(F578*VLOOKUP(D578,ALLOCTABLE_Distr_Energy,$Q$10,FALSE),0)","v":0},{"$f":"SUM(G578:Q578)","v":0},{"$f":"F578-R578","v":0}]
[19,null,{"$f":"'FR-16(7)(v)-1 Functional'!C579","v":"  TOTAL COM & OTHER DEPREC EXP."},null,null,{"$f":"SUM(F578:F578)","v":0},{"$f":"SUM(G578:G578)","v":0},{"$f":"SUM(H578:H578)","v":0},{"$f":"SUM(I578:I578)","v":0},{"$f":"SUM(J578:J578)","v":0},0,0,0,0,0,0,{"$f":"SUM(Q578:Q578)","v":0},{"$f":"SUM(R578:R578)","v":0},{"$f":"SUM(S578:S578)","v":0}]
[20]
[21]
[22,"TOTAL DEPRECIATION EXPENSE",null,null," ",{"$f":"F579+F575+F571+F567+F563","v":0},{"$f":"G579+G575+G571+G567+G563","v":0},{"$f":"H579+H575+H571+H567+H563","v":0},{"$f":"I579+I575+I571+I567+I563","v":0},{"$f":"J579+J575+J571+J567+J563","v":0},0,0,0,0,0,0,{"$f":"Q579+Q575+Q571+Q567+Q563","v":0},{"$f":"R579+R575+R571+R567+R563","v":0},{"$f":"S579+S575+S571+S567+S563","v":0}]
[]
[{"$f":"co_name","v":"DUKE ENERGY KENTUCKY, INC."},null,null,null,null,null,null,null,null,null,null,null,null,null,null,null,null,{"$f":"R1","v":"FR-16(7)(v)-12"}]
[{"$f":"$A$2","v":"DISTRIBUTION ENERGY ALLOCATED - ELECTRIC COST OF SERVICE"},null,null,null,null,null,null,null,null,null,null,null,null,null,null,null,null,{"$f":"R2","v":"WITNESS RESPONSIBLE:"}]
[{"$f":"case_name","v":"CASE NO: 2019-00271"},null,null,null,null,null,null,null,null,null,null,null,null,null,null,null,null,{"$f":"Witness","v":"JAMES E. ZIOLKOWSKI"}]
[{"$f":"data_filing","v":"DATA: 12 MONTHS ACTUAL  & 0 MONTHS ESTIMATED"},null,null,null,null,null,null,null,null,null,null,null,null,null,null,null,null,{"$f":"\"PAGE \"&Pages-7&\" OF \"&Pages","v":"PAGE 11 OF 18"}]
[{"$f":"type","v":"TYPE OF FILING: \"X\" ORIGINAL   UPDATED    REVISED  "}]
[]
[null,null,null,null,null,{"$f":"F$7","v":"TOTAL"},null,{"$f":"H$7","v":"DS"},{"$f":"I$7","v":"GSFL"},{"$f":"J$7","v":"EH"},{"$f":"K$7","v":"SP"},"DT SEC","DT PRI","DP","TT",null,"OTHER"]
["LINE",null,null,null,null,{"$f":"F$8","v":"DISTRIBUTION"},{"$f":"G$8","v":"RS"},{"$f":"H$8","v":"SECONDARY"},{"$f":"I$8","v":"SECONDARY"},{"$f":"J$8","v":"SECONDARY"},{"$f":"K$8","v":"SECONDARY"},"SECONDARY","PRIMARY","PRIMARY","TRANSMISSION","LT","WATER",{"$f":"R8","v":"TOTAL"},"ALL"]
["NO.","OTHER TAXES & MISC EXPENSES",null,"ALLO",null,{"$f":"F$9","v":"ENERGY"},{"$f":"G$9","v":"RESIDENTIAL"},{"$f":"H$9","v":"DISTRIBUTION"},{"$f":"I$9","v":"DISTRIBUTION"},{"$f":"J$9","v":"DISTRIBUTION"},{"$f":"K$9","v":"DISTRIBUTION"},"DISTRIBUTION","DISTRIBUTION","DISTRIBUTION","TIME OF DAY","LIGHTING","PUMPING",{"$f":"R9","v":"AT ISSUE"},"OTHER"]
[null,null,"Schedule 8",null,null,null,{"$f":"G$10","v":3},{"$f":"H$10","v":4},{"$f":"I$10","v":5},{"$f":"J$10","v":6},{"$f":"K$10","v":7},8,9,10,11,12,13,null," "]
[1,"TAXES OTHER THAN INC & REV"]
[2," REAL ESTATE & PROPERTY TAX"]
[3,null,{"$f":"'FR-16(7)(v)-1 Functional'!C596","v":"REAL ESTATE & PROPERTY TAX"},{"$f":"'FR-16(7)(v)-1 Functional'!D596","v":"NP29"},null,{"$f":"'FR-16(7)(v)-10 DIST Classified'!H596","v":0},{"$f":"F596-SUM(H596:Q596)","v":0},{"$f":"ROUND(F596*VLOOKUP(D596,ALLOCTABLE_Distr_Energy,$H$10,FALSE),0)","v":0},{"$f":"ROUND(F596*VLOOKUP(D596,ALLOCTABLE_Distr_Energy,$I$10,FALSE),0)","v":0},{"$f":"ROUND(F596*VLOOKUP(D596,ALLOCTABLE_Distr_Energy,$J$10,FALSE),0)","v":0},{"$f":"ROUND(F596*VLOOKUP(D596,ALLOCTABLE_Distr_Energy,$K$10,FALSE),0)","v":0},{"$f":"ROUND(F596*VLOOKUP(D596,ALLOCTABLE_Distr_Energy,$L$10,FALSE),0)","v":0},{"$f":"ROUND(F596*VLOOKUP(D596,ALLOCTABLE_Distr_Energy,$M$10,FALSE),0)","v":0},{"$f":"ROUND(F596*VLOOKUP(D596,ALLOCTABLE_Distr_Energy,$N$10,FALSE),0)","v":0},{"$f":"ROUND(F596*VLOOKUP(D596,ALLOCTABLE_Distr_Energy,$O$10,FALSE),0)","v":0},{"$f":"ROUND(F596*VLOOKUP(D596,ALLOCTABLE_Distr_Energy,$P$10,FALSE),0)","v":0},{"$f":"ROUND(F596*VLOOKUP(D596,ALLOCTABLE_Distr_Energy,$Q$10,FALSE),0)","v":0},{"$f":"SUM(G596:Q596)","v":0},{"$f":"F596-R596","v":0}]
[4,null,{"$f":"'FR-16(7)(v)-1 Functional'!C597","v":"ANNUALIZE PROPERTY TAX"},{"$f":"'FR-16(7)(v)-1 Functional'!D597","v":"NP29"}," ",{"$f":"'FR-16(7)(v)-10 DIST Classified'!H597","v":0},{"$f":"F597-SUM(H597:Q597)","v":0},{"$f":"ROUND(F597*VLOOKUP(D597,ALLOCTABLE_Distr_Energy,$H$10,FALSE),0)","v":0},{"$f":"ROUND(F597*VLOOKUP(D597,ALLOCTABLE_Distr_Energy,$I$10,FALSE),0)","v":0},{"$f":"ROUND(F597*VLOOKUP(D597,ALLOCTABLE_Distr_Energy,$J$10,FALSE),0)","v":0},{"$f":"ROUND(F597*VLOOKUP(D597,ALLOCTABLE_Distr_Energy,$K$10,FALSE),0)","v":0},{"$f":"ROUND(F597*VLOOKUP(D597,ALLOCTABLE_Distr_Energy,$L$10,FALSE),0)","v":0},{"$f":"ROUND(F597*VLOOKUP(D597,ALLOCTABLE_Distr_Energy,$M$10,FALSE),0)","v":0},{"$f":"ROUND(F597*VLOOKUP(D597,ALLOCTABLE_Distr_Energy,$N$10,FALSE),0)","v":0},{"$f":"ROUND(F597*VLOOKUP(D597,ALLOCTABLE_Distr_Energy,$O$10,FALSE),0)","v":0},{"$f":"ROUND(F597*VLOOKUP(D597,ALLOCTABLE_Distr_Energy,$P$10,FALSE),0)","v":0},{"$f":"ROUND(F597*VLOOKUP(D597,ALLOCTABLE_Distr_Energy,$Q$10,FALSE),0)","v":0},{"$f":"SUM(G597:Q597)","v":0},{"$f":"F597-R597","v":0}]
[5,null,{"$f":"'FR-16(7)(v)-1 Functional'!C598","v":"  TOTAL REAL ESTATE & PROPERTY TAX"},null,null,{"$f":"SUM(F596:F597)","v":0},{"$f":"SUM(G596:G597)","v":0},{"$f":"SUM(H596:H597)","v":0},{"$f":"SUM(I596:I597)","v":0},{"$f":"SUM(J596:J597)","v":0},0,0,0,0,0,0,{"$f":"SUM($Q$596:$Q$597)","v":0},{"$f":"SUM(R596:R597)","v":0},{"$f":"SUM(S596:S597)","v":0}]
[6]
[7," MISCELLANEOUS TAXES"]
[8,null,{"$f":"'FR-16(7)(v)-1 Functional'!C601","v":"PAYROLL "},{"$f":"'FR-16(7)(v)-1 Functional'!D601","v":"A315"},null,{"$f":"'FR-16(7)(v)-10 DIST Classified'!H601","v":0},{"$f":"F601-SUM(H601:Q601)","v":0},{"$f":"ROUND(F601*VLOOKUP(D601,ALLOCTABLE_Distr_Energy,$H$10,FALSE),0)","v":0},{"$f":"ROUND(F601*VLOOKUP(D601,ALLOCTABLE_Distr_Energy,$I$10,FALSE),0)","v":0},{"$f":"ROUND(F601*VLOOKUP(D601,ALLOCTABLE_Distr_Energy,$J$10,FALSE),0)","v":0},{"$f":"ROUND(F601*VLOOKUP(D601,ALLOCTABLE_Distr_Energy,$K$10,FALSE),0)","v":0},{"$f":"ROUND(F601*VLOOKUP(D601,ALLOCTABLE_Distr_Energy,$L$10,FALSE),0)","v":0},{"$f":"ROUND(F601*VLOOKUP(D601,ALLOCTABLE_Distr_Energy,$M$10,FALSE),0)","v":0},{"$f":"ROUND(F601*VLOOKUP(D601,ALLOCTABLE_Distr_Energy,$N$10,FALSE),0)","v":0},{"$f":"ROUND(F601*VLOOKUP(D601,ALLOCTABLE_Distr_Energy,$O$10,FALSE),0)","v":0},{"$f":"ROUND(F601*VLOOKUP(D601,ALLOCTABLE_Distr_Energy,$P$10,FALSE),0)","v":0},{"$f":"ROUND(F601*VLOOKUP(D601,ALLOCTABLE_Distr_Energy,$Q$10,FALSE),0)","v":0},{"$f":"SUM(G601:Q601)","v":0},{"$f":"F601-R601","v":0}]
[9,null,{"$f":"'FR-16(7)(v)-1 Functional'!C602","v":"ELIMINATE DSM "},{"$f":"'FR-16(7)(v)-1 Functional'!D602","v":"A315"},null,{"$f":"'FR-16(7)(v)-10 DIST Classified'!H602","v":0},{"$f":"F602-SUM(H602:Q602)","v":0},{"$f":"ROUND(F602*VLOOKUP(D602,ALLOCTABLE_Distr_Energy,$H$10,FALSE),0)","v":0},{"$f":"ROUND(F602*VLOOKUP(D602,ALLOCTABLE_Distr_Energy,$I$10,FALSE),0)","v":0},{"$f":"ROUND(F602*VLOOKUP(D602,ALLOCTABLE_Distr_Energy,$J$10,FALSE),0)","v":0},{"$f":"ROUND(F602*VLOOKUP(D602,ALLOCTABLE_Distr_Energy,$K$10,FALSE),0)","v":0},{"$f":"ROUND(F602*VLOOKUP(D602,ALLOCTABLE_Distr_Energy,$L$10,FALSE),0)","v":0},{"$f":"ROUND(F602*VLOOKUP(D602,ALLOCTABLE_Distr_Energy,$M$10,FALSE),0)","v":0},{"$f":"ROUND(F602*VLOOKUP(D602,ALLOCTABLE_Distr_Energy,$N$10,FALSE),0)","v":0},{"$f":"ROUND(F602*VLOOKUP(D602,ALLOCTABLE_Distr_Energy,$O$10,FALSE),0)","v":0},{"$f":"ROUND(F602*VLOOKUP(D602,ALLOCTABLE_Distr_Energy,$P$10,FALSE),0)","v":0},{"$f":"ROUND(F602*VLOOKUP(D602,ALLOCTABLE_Distr_Energy,$Q$10,FALSE),0)","v":0},{"$f":"SUM(G602:Q602)","v":0},{"$f":"F602-R602","v":0}]
[10,null,{"$f":"'FR-16(7)(v)-1 Functional'!C603","v":"FRANCHISE & LICENSE"},{"$f":"'FR-16(7)(v)-1 Functional'!D603","v":"A315"},null,{"$f":"'FR-16(7)(v)-10 DIST Classified'!H603","v":0},{"$f":"F603-SUM(H603:Q603)","v":0},{"$f":"ROUND(F603*VLOOKUP(D603,ALLOCTABLE_Distr_Energy,$H$10,FALSE),0)","v":0},{"$f":"ROUND(F603*VLOOKUP(D603,ALLOCTABLE_Distr_Energy,$I$10,FALSE),0)","v":0},{"$f":"ROUND(F603*VLOOKUP(D603,ALLOCTABLE_Distr_Energy,$J$10,FALSE),0)","v":0},{"$f":"ROUND(F603*VLOOKUP(D603,ALLOCTABLE_Distr_Energy,$K$10,FALSE),0)","v":0},{"$f":"ROUND(F603*VLOOKUP(D603,ALLOCTABLE_Distr_Energy,$L$10,FALSE),0)","v":0},{"$f":"ROUND(F603*VLOOKUP(D603,ALLOCTABLE_Distr_Energy,$M$10,FALSE),0)","v":0},{"$f":"ROUND(F603*VLOOKUP(D603,ALLOCTABLE_Distr_Energy,$N$10,FALSE),0)","v":0},{"$f":"ROUND(F603*VLOOKUP(D603,ALLOCTABLE_Distr_Energy,$O$10,FALSE),0)","v":0},{"$f":"ROUND(F603*VLOOKUP(D603,ALLOCTABLE_Distr_Energy,$P$10,FALSE),0)","v":0},{"$f":"ROUND(F603*VLOOKUP(D603,ALLOCTABLE_Distr_Energy,$Q$10,FALSE),0)","v":0},{"$f":"SUM(G603:Q603)","v":0},{"$f":"F603-R603","v":0}]
[11,null,{"$f":"'FR-16(7)(v)-1 Functional'!C604","v":"ELIMINATE ESM"},{"$f":"'FR-16(7)(v)-1 Functional'!D604","v":"A315"},null,{"$f":"'FR-16(7)(v)-10 DIST Classified'!H604","v":0},{"$f":"F604-SUM(H604:Q604)","v":0},{"$f":"ROUND(F604*VLOOKUP(D604,ALLOCTABLE_Distr_Energy,$H$10,FALSE),0)","v":0},{"$f":"ROUND(F604*VLOOKUP(D604,ALLOCTABLE_Distr_Energy,$I$10,FALSE),0)","v":0},{"$f":"ROUND(F604*VLOOKUP(D604,ALLOCTABLE_Distr_Energy,$J$10,FALSE),0)","v":0},{"$f":"ROUND(F604*VLOOKUP(D604,ALLOCTABLE_Distr_Energy,$K$10,FALSE),0)","v":0},{"$f":"ROUND(F604*VLOOKUP(D604,ALLOCTABLE_Distr_Energy,$L$10,FALSE),0)","v":0},{"$f":"ROUND(F604*VLOOKUP(D604,ALLOCTABLE_Distr_Energy,$M$10,FALSE),0)","v":0},{"$f":"ROUND(F604*VLOOKUP(D604,ALLOCTABLE_Distr_Energy,$N$10,FALSE),0)","v":0},{"$f":"ROUND(F604*VLOOKUP(D604,ALLOCTABLE_Distr_Energy,$O$10,FALSE),0)","v":0},{"$f":"ROUND(F604*VLOOKUP(D604,ALLOCTABLE_Distr_Energy,$P$10,FALSE),0)","v":0},{"$f":"ROUND(F604*VLOOKUP(D604,ALLOCTABLE_Distr_Energy,$Q$10,FALSE),0)","v":0},{"$f":"SUM(G604:Q604)","v":0},{"$f":"F604-R604","v":0}]
[12,null,{"$f":"'FR-16(7)(v)-1 Functional'!C605","v":"  TOTAL MISCELLANEOUS TAXES"},null,null,{"$f":"SUM(F601:F604)","v":0},{"$f":"SUM(G601:G604)","v":0},{"$f":"SUM(H601:H604)","v":0},{"$f":"SUM(I601:I604)","v":0},{"$f":"SUM(J601:J604)","v":0},0,0,0,0,0,0,{"$f":"SUM($Q$601:$Q$604)","v":0},{"$f":"SUM(R601:R604)","v":0},{"$f":"SUM(S601:S604)","v":0}]
[13]
[14," MISCELLANEOUS EXPENSES"]
[15,null,{"$f":"'FR-16(7)(v)-1 Functional'!C608","v":"PSC MAINT. EXP ON INCREASE"},{"$f":"'FR-16(7)(v)-1 Functional'!D608","v":"K902"},null,{"$f":"'FR-16(7)(v)-10 DIST Classified'!H608","v":0},{"$f":"F608-SUM(H608:Q608)","v":0},{"$f":"ROUND(F608*VLOOKUP(D608,ALLOCTABLE_Distr_Energy,$H$10,FALSE),0)","v":0},{"$f":"ROUND(F608*VLOOKUP(D608,ALLOCTABLE_Distr_Energy,$I$10,FALSE),0)","v":0},{"$f":"ROUND(F608*VLOOKUP(D608,ALLOCTABLE_Distr_Energy,$J$10,FALSE),0)","v":0},{"$f":"ROUND(F608*VLOOKUP(D608,ALLOCTABLE_Distr_Energy,$K$10,FALSE),0)","v":0},{"$f":"ROUND(F608*VLOOKUP(D608,ALLOCTABLE_Distr_Energy,$L$10,FALSE),0)","v":0},{"$f":"ROUND(F608*VLOOKUP(D608,ALLOCTABLE_Distr_Energy,$M$10,FALSE),0)","v":0},{"$f":"ROUND(F608*VLOOKUP(D608,ALLOCTABLE_Distr_Energy,$N$10,FALSE),0)","v":0},{"$f":"ROUND(F608*VLOOKUP(D608,ALLOCTABLE_Distr_Energy,$O$10,FALSE),0)","v":0},{"$f":"ROUND(F608*VLOOKUP(D608,ALLOCTABLE_Distr_Energy,$P$10,FALSE),0)","v":0},{"$f":"ROUND(F608*VLOOKUP(D608,ALLOCTABLE_Distr_Energy,$Q$10,FALSE),0)","v":0},{"$f":"SUM(G608:Q608)","v":0},{"$f":"F608-R608","v":0}]
[16,null,{"$f":"'FR-16(7)(v)-1 Functional'!C609","v":"RESERVED FOR FUTURE USE"},{"$f":"'FR-16(7)(v)-1 Functional'!D609","v":"K902"},null,{"$f":"'FR-16(7)(v)-10 DIST Classified'!H609","v":0},{"$f":"F609-SUM(H609:Q609)","v":0},{"$f":"ROUND(F609*VLOOKUP(D609,ALLOCTABLE_Distr_Energy,$H$10,FALSE),0)","v":0},{"$f":"ROUND(F609*VLOOKUP(D609,ALLOCTABLE_Distr_Energy,$I$10,FALSE),0)","v":0},{"$f":"ROUND(F609*VLOOKUP(D609,ALLOCTABLE_Distr_Energy,$J$10,FALSE),0)","v":0},{"$f":"ROUND(F609*VLOOKUP(D609,ALLOCTABLE_Distr_Energy,$K$10,FALSE),0)","v":0},{"$f":"ROUND(F609*VLOOKUP(D609,ALLOCTABLE_Distr_Energy,$L$10,FALSE),0)","v":0},{"$f":"ROUND(F609*VLOOKUP(D609,ALLOCTABLE_Distr_Energy,$M$10,FALSE),0)","v":0},{"$f":"ROUND(F609*VLOOKUP(D609,ALLOCTABLE_Distr_Energy,$N$10,FALSE),0)","v":0},{"$f":"ROUND(F609*VLOOKUP(D609,ALLOCTABLE_Distr_Energy,$O$10,FALSE),0)","v":0},{"$f":"ROUND(F609*VLOOKUP(D609,ALLOCTABLE_Distr_Energy,$P$10,FALSE),0)","v":0},{"$f":"ROUND(F609*VLOOKUP(D609,ALLOCTABLE_Distr_Energy,$Q$10,FALSE),0)","v":0},{"$f":"SUM(G609:Q609)","v":0},{"$f":"F609-R609","v":0}]
[17,null,{"$f":"'FR-16(7)(v)-1 Functional'!C610","v":"  TOTAL MISCELLANEOUS EXPENSES"},null,null,{"$f":"SUM(F608:F609)","v":0},{"$f":"SUM(G608:G609)","v":0},{"$f":"SUM(H608:H609)","v":0},{"$f":"SUM(I608:I609)","v":0},{"$f":"SUM(J608:J609)","v":0},0,0,0,0,0,0,{"$f":"SUM($Q$608:$Q$609)","v":0},{"$f":"SUM(R608:R609)","v":0},{"$f":"SUM(S608:S609)","v":0}]
[18]
[19,"TOTAL OTHER TAX & MISC EXPENSE",null,null," ",{"$f":"F605+F598+F610","v":0},{"$f":"G605+G598+G610","v":0},{"$f":"H605+H598+H610","v":0},{"$f":"I605+I598+I610","v":0},{"$f":"J605+J598+J610","v":0},0,0,0,0,0,0,{"$f":"$Q$605+$Q$598+$Q$610","v":0},{"$f":"R605+R598+R610","v":0},{"$f":"S605+S598+S610","v":0}]
[20]
[21,"PRELIMINARY SUMMARY"]
[22,null,{"$f":"'FR-16(7)(v)-1 Functional'!C615","v":"TOTAL O&M EXPENSE"},null,null,{"$f":"F549","v":0},{"$f":"G549","v":0},{"$f":"H549","v":0},{"$f":"I549","v":0},{"$f":"J549","v":0},0,0,0,0,0,0,{"$f":"Q549","v":0},{"$f":"R549","v":0},{"$f":"S549","v":0}]
[23,null,{"$f":"'FR-16(7)(v)-1 Functional'!C616","v":"TOTAL DEPRECIATION EXPENSE"},null,null,{"$f":"F582","v":0},{"$f":"G582","v":0},{"$f":"H582","v":0},{"$f":"I582","v":0},{"$f":"J582","v":0},0,0,0,0,0,0,{"$f":"Q582","v":0},{"$f":"R582","v":0},{"$f":"S582","v":0}]
[24,null,{"$f":"'FR-16(7)(v)-1 Functional'!C617","v":"TOTAL OTHER TAX & MISC EXPENSE"},null,null,{"$f":"F612","v":0},{"$f":"G612","v":0},{"$f":"H612","v":0},{"$f":"I612","v":0},{"$f":"J612","v":0},0,0,0,0,0,0,{"$f":"$Q$612","v":0},{"$f":"R612","v":0},{"$f":"S612","v":0}]
[25,null,{"$f":"'FR-16(7)(v)-1 Functional'!C618","v":"  TOTAL OPER EXP EXCL INCOME & REV TAX"},null,null,{"$f":"SUM(F615:F617)","v":0},{"$f":"SUM(G615:G617)","v":0},{"$f":"SUM(H615:H617)","v":0},{"$f":"SUM(I615:I617)","v":0},{"$f":"SUM(J615:J617)","v":0},0,0,0,0,0,0,{"$f":"SUM($Q$615:$Q$617)","v":0},{"$f":"SUM(R615:R617)","v":0},{"$f":"SUM(S615:S617)","v":0}]
[]
[{"$f":"co_name","v":"DUKE ENERGY KENTUCKY, INC."},null,null,null,null,null,null,null,null,null,null,null,null,null,null,null,null,{"$f":"R1","v":"FR-16(7)(v)-12"}]
[{"$f":"$A$2","v":"DISTRIBUTION ENERGY ALLOCATED - ELECTRIC COST OF SERVICE"},null,null,null,null,null,null,null,null,null,null,null,null,null,null,null,null,{"$f":"R2","v":"WITNESS RESPONSIBLE:"}]
[{"$f":"case_name","v":"CASE NO: 2019-00271"},null,null,null,null,null,null,null,null,null,null,null,null,null,null,null,null,{"$f":"Witness","v":"JAMES E. ZIOLKOWSKI"}]
[{"$f":"data_filing","v":"DATA: 12 MONTHS ACTUAL  & 0 MONTHS ESTIMATED"},null,null,null,null,null,null,null,null,null,null,null,null,null,null,null,null,{"$f":"\"PAGE \"&Pages-6&\" OF \"&Pages","v":"PAGE 12 OF 18"}]
[{"$f":"type","v":"TYPE OF FILING: \"X\" ORIGINAL   UPDATED    REVISED  "}]
[]
[null,null,null,null,null,{"$f":"F$7","v":"TOTAL"},null,{"$f":"H$7","v":"DS"},{"$f":"I$7","v":"GSFL"},{"$f":"J$7","v":"EH"},{"$f":"K$7","v":"SP"},"DT SEC","DT PRI","DP","TT",null,"OTHER"]
["LINE",null,null,null,null,{"$f":"F$8","v":"DISTRIBUTION"},{"$f":"G$8","v":"RS"},{"$f":"H$8","v":"SECONDARY"},{"$f":"I$8","v":"SECONDARY"},{"$f":"J$8","v":"SECONDARY"},{"$f":"K$8","v":"SECONDARY"},"SECONDARY","PRIMARY","PRIMARY","TRANSMISSION","LT","WATER",{"$f":"R8","v":"TOTAL"},"ALL"]
["NO.","FEDERAL INCOME TAX BASED ON RETURN",null,"ALLO",null,{"$f":"F$9","v":"ENERGY"},{"$f":"G$9","v":"RESIDENTIAL"},{"$f":"H$9","v":"DISTRIBUTION"},{"$f":"I$9","v":"DISTRIBUTION"},{"$f":"J$9","v":"DISTRIBUTION"},{"$f":"K$9","v":"DISTRIBUTION"},"DISTRIBUTION","DISTRIBUTION","DISTRIBUTION","TIME OF DAY","LIGHTING","PUMPING",{"$f":"R9","v":"AT ISSUE"},"OTHER"]
[null,null,"Schedule 9",null,null,null,{"$f":"G$10","v":3},{"$f":"H$10","v":4},{"$f":"I$10","v":5},{"$f":"J$10","v":6},{"$f":"K$10","v":7},8,9,10,11,12,13,null," "]
[1,"FEDERAL INCOME TAX DEDUCTIONS"]
[2," AUTOMATIC INTEREST CALCULATION",null,null,null," "]
[3,null,{"$f":"'FR-16(7)(v)-1 Functional'!C632","v":"AUTO PROC INTEREST DED"},{"$f":"'FR-16(7)(v)-1 Functional'!D632","v":"RB99"},null,{"$f":"'FR-16(7)(v)-10 DIST Classified'!H632","v":0},{"$f":"F632-SUM(H632:Q632)","v":0},{"$f":"ROUND(F632*VLOOKUP(D632,ALLOCTABLE_Distr_Energy,$H$10,FALSE),0)","v":0},{"$f":"ROUND(F632*VLOOKUP(D632,ALLOCTABLE_Distr_Energy,$I$10,FALSE),0)","v":0},{"$f":"ROUND(F632*VLOOKUP(D632,ALLOCTABLE_Distr_Energy,$J$10,FALSE),0)","v":0},{"$f":"ROUND(F632*VLOOKUP(D632,ALLOCTABLE_Distr_Energy,$K$10,FALSE),0)","v":0},{"$f":"ROUND(F632*VLOOKUP(D632,ALLOCTABLE_Distr_Energy,$L$10,FALSE),0)","v":0},{"$f":"ROUND(F632*VLOOKUP(D632,ALLOCTABLE_Distr_Energy,$M$10,FALSE),0)","v":0},{"$f":"ROUND(F632*VLOOKUP(D632,ALLOCTABLE_Distr_Energy,$N$10,FALSE),0)","v":0},{"$f":"ROUND(F632*VLOOKUP(D632,ALLOCTABLE_Distr_Energy,$O$10,FALSE),0)","v":0},{"$f":"ROUND(F632*VLOOKUP(D632,ALLOCTABLE_Distr_Energy,$P$10,FALSE),0)","v":0},{"$f":"ROUND(F632*VLOOKUP(D632,ALLOCTABLE_Distr_Energy,$Q$10,FALSE),0)","v":0},{"$f":"SUM(G632:Q632)","v":0},{"$f":"F632-R632","v":0}]
[4,null,{"$f":"'FR-16(7)(v)-1 Functional'!C633","v":"  TOTAL INTEREST EXPENSE"},null,null,{"$f":"F632","v":0},{"$f":"G632","v":0},{"$f":"H632","v":0},{"$f":"I632","v":0},{"$f":"J632","v":0},0,0,0,0,0,0,{"$f":"$Q$632","v":0},{"$f":"R632","v":0},{"$f":"S632","v":0}]
[5]
[6," OTHER DEDUCTIONS"]
[7,null,{"$f":"'FR-16(7)(v)-1 Functional'!C636","v":"DEPREC EXCESS TAX-BOOK"},{"$f":"'FR-16(7)(v)-1 Functional'!D636","v":"DE49"},null,{"$f":"'FR-16(7)(v)-10 DIST Classified'!H636","v":0},{"$f":"F636-SUM(H636:Q636)","v":0},{"$f":"ROUND(F636*VLOOKUP(D636,ALLOCTABLE_Distr_Energy,$H$10,FALSE),0)","v":0},{"$f":"ROUND(F636*VLOOKUP(D636,ALLOCTABLE_Distr_Energy,$I$10,FALSE),0)","v":0},{"$f":"ROUND(F636*VLOOKUP(D636,ALLOCTABLE_Distr_Energy,$J$10,FALSE),0)","v":0},{"$f":"ROUND(F636*VLOOKUP(D636,ALLOCTABLE_Distr_Energy,$K$10,FALSE),0)","v":0},{"$f":"ROUND(F636*VLOOKUP(D636,ALLOCTABLE_Distr_Energy,$L$10,FALSE),0)","v":0},{"$f":"ROUND(F636*VLOOKUP(D636,ALLOCTABLE_Distr_Energy,$M$10,FALSE),0)","v":0},{"$f":"ROUND(F636*VLOOKUP(D636,ALLOCTABLE_Distr_Energy,$N$10,FALSE),0)","v":0},{"$f":"ROUND(F636*VLOOKUP(D636,ALLOCTABLE_Distr_Energy,$O$10,FALSE),0)","v":0},{"$f":"ROUND(F636*VLOOKUP(D636,ALLOCTABLE_Distr_Energy,$P$10,FALSE),0)","v":0},{"$f":"ROUND(F636*VLOOKUP(D636,ALLOCTABLE_Distr_Energy,$Q$10,FALSE),0)","v":0},{"$f":"SUM(G636:Q636)","v":0},{"$f":"F636-R636","v":0}]
[8,null,{"$f":"'FR-16(7)(v)-1 Functional'!C637","v":"PERMANENT DIFFERENCES"},{"$f":"'FR-16(7)(v)-1 Functional'!D637","v":"A357"},null,{"$f":"'FR-16(7)(v)-10 DIST Classified'!H637","v":0},{"$f":"F637-SUM(H637:Q637)","v":0},{"$f":"ROUND(F637*VLOOKUP(D637,ALLOCTABLE_Distr_Energy,$H$10,FALSE),0)","v":0},{"$f":"ROUND(F637*VLOOKUP(D637,ALLOCTABLE_Distr_Energy,$I$10,FALSE),0)","v":0},{"$f":"ROUND(F637*VLOOKUP(D637,ALLOCTABLE_Distr_Energy,$J$10,FALSE),0)","v":0},{"$f":"ROUND(F637*VLOOKUP(D637,ALLOCTABLE_Distr_Energy,$K$10,FALSE),0)","v":0},{"$f":"ROUND(F637*VLOOKUP(D637,ALLOCTABLE_Distr_Energy,$L$10,FALSE),0)","v":0},{"$f":"ROUND(F637*VLOOKUP(D637,ALLOCTABLE_Distr_Energy,$M$10,FALSE),0)","v":0},{"$f":"ROUND(F637*VLOOKUP(D637,ALLOCTABLE_Distr_Energy,$N$10,FALSE),0)","v":0},{"$f":"ROUND(F637*VLOOKUP(D637,ALLOCTABLE_Distr_Energy,$O$10,FALSE),0)","v":0},{"$f":"ROUND(F637*VLOOKUP(D637,ALLOCTABLE_Distr_Energy,$P$10,FALSE),0)","v":0},{"$f":"ROUND(F637*VLOOKUP(D637,ALLOCTABLE_Distr_Energy,$Q$10,FALSE),0)","v":0},{"$f":"SUM(G637:Q637)","v":0},{"$f":"F637-R637","v":0}]
[9,null,{"$f":"'FR-16(7)(v)-1 Functional'!C638","v":"TEMPORARY DIFFERENCES"},{"$f":"'FR-16(7)(v)-1 Functional'!D638","v":"DE49"},null,{"$f":"'FR-16(7)(v)-10 DIST Classified'!H638","v":0},{"$f":"F638-SUM(H638:Q638)","v":0},{"$f":"ROUND(F638*VLOOKUP(D638,ALLOCTABLE_Distr_Energy,$H$10,FALSE),0)","v":0},{"$f":"ROUND(F638*VLOOKUP(D638,ALLOCTABLE_Distr_Energy,$I$10,FALSE),0)","v":0},{"$f":"ROUND(F638*VLOOKUP(D638,ALLOCTABLE_Distr_Energy,$J$10,FALSE),0)","v":0},{"$f":"ROUND(F638*VLOOKUP(D638,ALLOCTABLE_Distr_Energy,$K$10,FALSE),0)","v":0},{"$f":"ROUND(F638*VLOOKUP(D638,ALLOCTABLE_Distr_Energy,$L$10,FALSE),0)","v":0},{"$f":"ROUND(F638*VLOOKUP(D638,ALLOCTABLE_Distr_Energy,$M$10,FALSE),0)","v":0},{"$f":"ROUND(F638*VLOOKUP(D638,ALLOCTABLE_Distr_Energy,$N$10,FALSE),0)","v":0},{"$f":"ROUND(F638*VLOOKUP(D638,ALLOCTABLE_Distr_Energy,$O$10,FALSE),0)","v":0},{"$f":"ROUND(F638*VLOOKUP(D638,ALLOCTABLE_Distr_Energy,$P$10,FALSE),0)","v":0},{"$f":"ROUND(F638*VLOOKUP(D638,ALLOCTABLE_Distr_Energy,$Q$10,FALSE),0)","v":0},{"$f":"SUM(G638:Q638)","v":0},{"$f":"F638-R638","v":0}]
[10,null,{"$f":"'FR-16(7)(v)-1 Functional'!C639","v":"  TOTAL OTHER DEDUCTIONS"},null,null,{"$f":"SUM(F636:F638)","v":0},{"$f":"SUM(G636:G638)","v":0},{"$f":"SUM(H636:H638)","v":0},{"$f":"SUM(I636:I638)","v":0},{"$f":"SUM(J636:J638)","v":0},0,0,0,0,0,0,{"$f":"SUM($Q$636:$Q$638)","v":0},{"$f":"SUM(R636:R638)","v":0},{"$f":"SUM(S636:S638)","v":0}]
[11]
[12,"NET DEDUCTIONS AND ADDITIONS",null,null,null,{"$f":"F639+F633","v":0},{"$f":"G639+G633","v":0},{"$f":"H639+H633","v":0},{"$f":"I639+I633","v":0},{"$f":"J639+J633","v":0},0,0,0,0,0,0,{"$f":"$Q$639+$Q$633","v":0},{"$f":"R639+R633","v":0},{"$f":"S639+S633","v":0}]
[13]
[14," FED DEFERRED INCOME TAX (410 & 411)"]
[15,null,{"$f":"'FR-16(7)(v)-1 Functional'!C644","v":"DEFERRED INCOME TAXES - NET"},{"$f":"'FR-16(7)(v)-1 Functional'!D644","v":"OM39"},null,{"$f":"'FR-16(7)(v)-10 DIST Classified'!H644","v":0},{"$f":"F644-SUM(H644:Q644)","v":0},{"$f":"ROUND(F644*VLOOKUP(D644,ALLOCTABLE_Distr_Energy,$H$10,FALSE),0)","v":0},{"$f":"ROUND(F644*VLOOKUP(D644,ALLOCTABLE_Distr_Energy,$I$10,FALSE),0)","v":0},{"$f":"ROUND(F644*VLOOKUP(D644,ALLOCTABLE_Distr_Energy,$J$10,FALSE),0)","v":0},{"$f":"ROUND(F644*VLOOKUP(D644,ALLOCTABLE_Distr_Energy,$K$10,FALSE),0)","v":0},{"$f":"ROUND(F644*VLOOKUP(D644,ALLOCTABLE_Distr_Energy,$L$10,FALSE),0)","v":0},{"$f":"ROUND(F644*VLOOKUP(D644,ALLOCTABLE_Distr_Energy,$M$10,FALSE),0)","v":0},{"$f":"ROUND(F644*VLOOKUP(D644,ALLOCTABLE_Distr_Energy,$N$10,FALSE),0)","v":0},{"$f":"ROUND(F644*VLOOKUP(D644,ALLOCTABLE_Distr_Energy,$O$10,FALSE),0)","v":0},{"$f":"ROUND(F644*VLOOKUP(D644,ALLOCTABLE_Distr_Energy,$P$10,FALSE),0)","v":0},{"$f":"ROUND(F644*VLOOKUP(D644,ALLOCTABLE_Distr_Energy,$Q$10,FALSE),0)","v":0},{"$f":"SUM(G644:Q644)","v":0},{"$f":"F644-R644","v":0}]
[16,null,{"$f":"'FR-16(7)(v)-1 Functional'!C645","v":"AMORT OF DEFERRED MERGER COST"},{"$f":"'FR-16(7)(v)-1 Functional'!D645","v":"A357"},null,{"$f":"'FR-16(7)(v)-10 DIST Classified'!H645","v":0},{"$f":"F645-SUM(H645:Q645)","v":0},{"$f":"ROUND(F645*VLOOKUP(D645,ALLOCTABLE_Distr_Energy,$H$10,FALSE),0)","v":0},{"$f":"ROUND(F645*VLOOKUP(D645,ALLOCTABLE_Distr_Energy,$I$10,FALSE),0)","v":0},{"$f":"ROUND(F645*VLOOKUP(D645,ALLOCTABLE_Distr_Energy,$J$10,FALSE),0)","v":0},{"$f":"ROUND(F645*VLOOKUP(D645,ALLOCTABLE_Distr_Energy,$K$10,FALSE),0)","v":0},{"$f":"ROUND(F645*VLOOKUP(D645,ALLOCTABLE_Distr_Energy,$L$10,FALSE),0)","v":0},{"$f":"ROUND(F645*VLOOKUP(D645,ALLOCTABLE_Distr_Energy,$M$10,FALSE),0)","v":0},{"$f":"ROUND(F645*VLOOKUP(D645,ALLOCTABLE_Distr_Energy,$N$10,FALSE),0)","v":0},{"$f":"ROUND(F645*VLOOKUP(D645,ALLOCTABLE_Distr_Energy,$O$10,FALSE),0)","v":0},{"$f":"ROUND(F645*VLOOKUP(D645,ALLOCTABLE_Distr_Energy,$P$10,FALSE),0)","v":0},{"$f":"ROUND(F645*VLOOKUP(D645,ALLOCTABLE_Distr_Energy,$Q$10,FALSE),0)","v":0},{"$f":"SUM(G645:Q645)","v":0},{"$f":"F645-R645","v":0}]
[17,null,{"$f":"'FR-16(7)(v)-1 Functional'!C646","v":"DIT ADJUSTMENT - S/L DEPRECIATION"},{"$f":"'FR-16(7)(v)-1 Functional'!D646","v":"DE49"},null,{"$f":"'FR-16(7)(v)-10 DIST Classified'!H646","v":0},{"$f":"F646-SUM(H646:Q646)","v":0},{"$f":"ROUND(F646*VLOOKUP(D646,ALLOCTABLE_Distr_Energy,$H$10,FALSE),0)","v":0},{"$f":"ROUND(F646*VLOOKUP(D646,ALLOCTABLE_Distr_Energy,$I$10,FALSE),0)","v":0},{"$f":"ROUND(F646*VLOOKUP(D646,ALLOCTABLE_Distr_Energy,$J$10,FALSE),0)","v":0},{"$f":"ROUND(F646*VLOOKUP(D646,ALLOCTABLE_Distr_Energy,$K$10,FALSE),0)","v":0},{"$f":"ROUND(F646*VLOOKUP(D646,ALLOCTABLE_Distr_Energy,$L$10,FALSE),0)","v":0},{"$f":"ROUND(F646*VLOOKUP(D646,ALLOCTABLE_Distr_Energy,$M$10,FALSE),0)","v":0},{"$f":"ROUND(F646*VLOOKUP(D646,ALLOCTABLE_Distr_Energy,$N$10,FALSE),0)","v":0},{"$f":"ROUND(F646*VLOOKUP(D646,ALLOCTABLE_Distr_Energy,$O$10,FALSE),0)","v":0},{"$f":"ROUND(F646*VLOOKUP(D646,ALLOCTABLE_Distr_Energy,$P$10,FALSE),0)","v":0},{"$f":"ROUND(F646*VLOOKUP(D646,ALLOCTABLE_Distr_Energy,$Q$10,FALSE),0)","v":0},{"$f":"SUM(G646:Q646)","v":0},{"$f":"F646-R646","v":0}]
[18,null,{"$f":"'FR-16(7)(v)-1 Functional'!C647","v":"DIT ADJUSTMENT - ARAM"},{"$f":"'FR-16(7)(v)-1 Functional'!D647","v":"K201"},null,{"$f":"'FR-16(7)(v)-10 DIST Classified'!H647","v":0},{"$f":"F647-SUM(H647:Q647)","v":0},{"$f":"ROUND(F647*VLOOKUP(D647,ALLOCTABLE_Distr_Energy,$H$10,FALSE),0)","v":0},{"$f":"ROUND(F647*VLOOKUP(D647,ALLOCTABLE_Distr_Energy,$I$10,FALSE),0)","v":0},{"$f":"ROUND(F647*VLOOKUP(D647,ALLOCTABLE_Distr_Energy,$J$10,FALSE),0)","v":0},{"$f":"ROUND(F647*VLOOKUP(D647,ALLOCTABLE_Distr_Energy,$K$10,FALSE),0)","v":0},{"$f":"ROUND(F647*VLOOKUP(D647,ALLOCTABLE_Distr_Energy,$L$10,FALSE),0)","v":0},{"$f":"ROUND(F647*VLOOKUP(D647,ALLOCTABLE_Distr_Energy,$M$10,FALSE),0)","v":0},{"$f":"ROUND(F647*VLOOKUP(D647,ALLOCTABLE_Distr_Energy,$N$10,FALSE),0)","v":0},{"$f":"ROUND(F647*VLOOKUP(D647,ALLOCTABLE_Distr_Energy,$O$10,FALSE),0)","v":0},{"$f":"ROUND(F647*VLOOKUP(D647,ALLOCTABLE_Distr_Energy,$P$10,FALSE),0)","v":0},{"$f":"ROUND(F647*VLOOKUP(D647,ALLOCTABLE_Distr_Energy,$Q$10,FALSE),0)","v":0},{"$f":"SUM(G647:Q647)","v":0},{"$f":"F647-R647","v":0}]
[19,null,{"$f":"'FR-16(7)(v)-1 Functional'!C648","v":"DIT ADJUSTMENT - AMORT OF EXCESS DEF TAXES"},{"$f":"'FR-16(7)(v)-1 Functional'!D648","v":"A357"},null,{"$f":"'FR-16(7)(v)-10 DIST Classified'!H648","v":0},{"$f":"F648-SUM(H648:Q648)","v":0},{"$f":"ROUND(F648*VLOOKUP(D648,ALLOCTABLE_Distr_Energy,$H$10,FALSE),0)","v":0},{"$f":"ROUND(F648*VLOOKUP(D648,ALLOCTABLE_Distr_Energy,$I$10,FALSE),0)","v":0},{"$f":"ROUND(F648*VLOOKUP(D648,ALLOCTABLE_Distr_Energy,$J$10,FALSE),0)","v":0},{"$f":"ROUND(F648*VLOOKUP(D648,ALLOCTABLE_Distr_Energy,$K$10,FALSE),0)","v":0},{"$f":"ROUND(F648*VLOOKUP(D648,ALLOCTABLE_Distr_Energy,$L$10,FALSE),0)","v":0},{"$f":"ROUND(F648*VLOOKUP(D648,ALLOCTABLE_Distr_Energy,$M$10,FALSE),0)","v":0},{"$f":"ROUND(F648*VLOOKUP(D648,ALLOCTABLE_Distr_Energy,$N$10,FALSE),0)","v":0},{"$f":"ROUND(F648*VLOOKUP(D648,ALLOCTABLE_Distr_Energy,$O$10,FALSE),0)","v":0},{"$f":"ROUND(F648*VLOOKUP(D648,ALLOCTABLE_Distr_Energy,$P$10,FALSE),0)","v":0},{"$f":"ROUND(F648*VLOOKUP(D648,ALLOCTABLE_Distr_Energy,$Q$10,FALSE),0)","v":0},{"$f":"SUM(G648:Q648)","v":0},{"$f":"F648-R648","v":0}]
[20,null,{"$f":"'FR-16(7)(v)-1 Functional'!C649","v":"  TOTAL FED DEF IT (410 & 411)"},null,null,{"$f":"SUM(F644:F648)","v":0},{"$f":"SUM(G644:G648)","v":0},{"$f":"SUM(H644:H648)","v":0},{"$f":"SUM(I644:I648)","v":0},{"$f":"SUM(J644:J648)","v":0},0,0,0,0,0,0,{"$f":"SUM($Q$644:$Q$648)","v":0},{"$f":"SUM(R644:R648)","v":0},{"$f":"SUM(S644:S648)","v":0}]
[21]
[22," AMORT INV TAX CREDIT"]
[23,null,{"$f":"'FR-16(7)(v)-1 Functional'!C652","v":"AMORTIZE ITC"},{"$f":"'FR-16(7)(v)-1 Functional'!D652","v":"NP29"},null,{"$f":"'FR-16(7)(v)-10 DIST Classified'!H652","v":0},{"$f":"F652-SUM(H652:Q652)","v":0},{"$f":"ROUND(F652*VLOOKUP(D652,ALLOCTABLE_Distr_Energy,$H$10,FALSE),0)","v":0},{"$f":"ROUND(F652*VLOOKUP(D652,ALLOCTABLE_Distr_Energy,$I$10,FALSE),0)","v":0},{"$f":"ROUND(F652*VLOOKUP(D652,ALLOCTABLE_Distr_Energy,$J$10,FALSE),0)","v":0},{"$f":"ROUND(F652*VLOOKUP(D652,ALLOCTABLE_Distr_Energy,$K$10,FALSE),0)","v":0},{"$f":"ROUND(F652*VLOOKUP(D652,ALLOCTABLE_Distr_Energy,$L$10,FALSE),0)","v":0},{"$f":"ROUND(F652*VLOOKUP(D652,ALLOCTABLE_Distr_Energy,$M$10,FALSE),0)","v":0},{"$f":"ROUND(F652*VLOOKUP(D652,ALLOCTABLE_Distr_Energy,$N$10,FALSE),0)","v":0},{"$f":"ROUND(F652*VLOOKUP(D652,ALLOCTABLE_Distr_Energy,$O$10,FALSE),0)","v":0},{"$f":"ROUND(F652*VLOOKUP(D652,ALLOCTABLE_Distr_Energy,$P$10,FALSE),0)","v":0},{"$f":"ROUND(F652*VLOOKUP(D652,ALLOCTABLE_Distr_Energy,$Q$10,FALSE),0)","v":0},{"$f":"SUM(G652:Q652)","v":0},{"$f":"F652-R652","v":0}]
[24,null,{"$f":"'FR-16(7)(v)-1 Functional'!C653","v":"  TOTAL AMORTIZED ITC"},null,null,{"$f":"SUM(F652:F652)","v":0},{"$f":"SUM(G652:G652)","v":0},{"$f":"SUM(H652:H652)","v":0},{"$f":"SUM(I652:I652)","v":0},{"$f":"SUM(J652:J652)","v":0},0,0,0,0,0,0,{"$f":"SUM($Q$652:$Q$652)","v":0},{"$f":"SUM(R652:R652)","v":0},{"$f":"SUM(S652:S652)","v":0}]
[25]
[26," OTHER FEDERAL TAX CREDITS"]
[27,null,{"$f":"'FR-16(7)(v)-1 Functional'!C656","v":"FUEL TAX CREDIT"},{"$f":"'FR-16(7)(v)-1 Functional'!D656","v":"K301"},null,{"$f":"'FR-16(7)(v)-10 DIST Classified'!H656","v":0},{"$f":"F656-SUM(H656:Q656)","v":0},{"$f":"ROUND(F656*VLOOKUP(D656,ALLOCTABLE_Distr_Energy,$H$10,FALSE),0)","v":0},{"$f":"ROUND(F656*VLOOKUP(D656,ALLOCTABLE_Distr_Energy,$I$10,FALSE),0)","v":0},{"$f":"ROUND(F656*VLOOKUP(D656,ALLOCTABLE_Distr_Energy,$J$10,FALSE),0)","v":0},{"$f":"ROUND(F656*VLOOKUP(D656,ALLOCTABLE_Distr_Energy,$K$10,FALSE),0)","v":0},{"$f":"ROUND(F656*VLOOKUP(D656,ALLOCTABLE_Distr_Energy,$L$10,FALSE),0)","v":0},{"$f":"ROUND(F656*VLOOKUP(D656,ALLOCTABLE_Distr_Energy,$M$10,FALSE),0)","v":0},{"$f":"ROUND(F656*VLOOKUP(D656,ALLOCTABLE_Distr_Energy,$N$10,FALSE),0)","v":0},{"$f":"ROUND(F656*VLOOKUP(D656,ALLOCTABLE_Distr_Energy,$O$10,FALSE),0)","v":0},{"$f":"ROUND(F656*VLOOKUP(D656,ALLOCTABLE_Distr_Energy,$P$10,FALSE),0)","v":0},{"$f":"ROUND(F656*VLOOKUP(D656,ALLOCTABLE_Distr_Energy,$Q$10,FALSE),0)","v":0},{"$f":"SUM(G656:Q656)","v":0},{"$f":"F656-R656","v":0}]
[28,null,{"$f":"'FR-16(7)(v)-1 Functional'!C657","v":"R&D CREDIT - SECTION 41"},{"$f":"'FR-16(7)(v)-1 Functional'!D657","v":"A315"},null,{"$f":"'FR-16(7)(v)-10 DIST Classified'!H657","v":0},{"$f":"F657-SUM(H657:Q657)","v":0},{"$f":"ROUND(F657*VLOOKUP(D657,ALLOCTABLE_Distr_Energy,$H$10,FALSE),0)","v":0},{"$f":"ROUND(F657*VLOOKUP(D657,ALLOCTABLE_Distr_Energy,$I$10,FALSE),0)","v":0},{"$f":"ROUND(F657*VLOOKUP(D657,ALLOCTABLE_Distr_Energy,$J$10,FALSE),0)","v":0},{"$f":"ROUND(F657*VLOOKUP(D657,ALLOCTABLE_Distr_Energy,$K$10,FALSE),0)","v":0},{"$f":"ROUND(F657*VLOOKUP(D657,ALLOCTABLE_Distr_Energy,$L$10,FALSE),0)","v":0},{"$f":"ROUND(F657*VLOOKUP(D657,ALLOCTABLE_Distr_Energy,$M$10,FALSE),0)","v":0},{"$f":"ROUND(F657*VLOOKUP(D657,ALLOCTABLE_Distr_Energy,$N$10,FALSE),0)","v":0},{"$f":"ROUND(F657*VLOOKUP(D657,ALLOCTABLE_Distr_Energy,$O$10,FALSE),0)","v":0},{"$f":"ROUND(F657*VLOOKUP(D657,ALLOCTABLE_Distr_Energy,$P$10,FALSE),0)","v":0},{"$f":"ROUND(F657*VLOOKUP(D657,ALLOCTABLE_Distr_Energy,$Q$10,FALSE),0)","v":0},{"$f":"SUM(G657:Q657)","v":0},{"$f":"F657-R657","v":0}]
[29,null,"  TOTAL OTHER FEDERAL TAX CREDITS",null,null,{"$f":"SUM(F656:F657)","v":0},{"$f":"SUM(G656:G657)","v":0},{"$f":"SUM(H656:H657)","v":0},{"$f":"SUM(I656:I657)","v":0},{"$f":"SUM(J656:J657)","v":0},0,0,0,0,0,0,{"$f":"SUM($Q$656:$Q$657)","v":0},{"$f":"SUM(R656:R657)","v":0},{"$f":"SUM(S656:S657)","v":0}]
[30]
[31,"PRELIMINARY SUMMARY"]
[32,null,{"$f":"'FR-16(7)(v)-1 Functional'!C661","v":"TOTAL FED DEF IT (410 & 411)"},null,null,{"$f":"F649","v":0},{"$f":"G649","v":0},{"$f":"H649","v":0},{"$f":"I649","v":0},{"$f":"J649","v":0},0,0,0,0,0,0,{"$f":"$Q$649","v":0},{"$f":"R649","v":0},{"$f":"S649","v":0}]
[33,null,{"$f":"'FR-16(7)(v)-1 Functional'!C662","v":"TOTAL AMORTIZED ITC & OTHER FEDERAL TAX CREDITS"},null,null,{"$f":"-F653-F658","v":0},{"$f":"-G653-G658","v":0},0,0,{"$f":"-J653-J658","v":0},0,0,0,0,0,0,0,0,0]
[34,null,{"$f":"'FR-16(7)(v)-1 Functional'!C663","v":"  TOTAL FEDERAL TAX ADJUSTMENTS"},null,null,{"$f":"SUM(F661:F662)","v":0},{"$f":"SUM(G661:G662)","v":0},{"$f":"SUM(H661:H662)","v":0},{"$f":"SUM(I661:I662)","v":0},{"$f":"SUM(J661:J662)","v":0},0,0,0,0,0,0,{"$f":"SUM($Q$661:$Q$662)","v":0},{"$f":"SUM(R661:R662)","v":0},{"$f":"SUM(S661:S662)","v":0}]
[35]
[36,"FEDERAL INCOME TAX COMPUTATION"]
[37,null,"RETURN ON RATE BASE",null,null,{"$f":"F433","v":0},{"$f":"G433","v":0},{"$f":"H433","v":0},{"$f":"I433","v":0},{"$f":"J433","v":0},0,0,0,0,0,0,{"$f":"Q433","v":0},{"$f":"R433","v":0},{"$f":"F666-R666","v":0}]
[38,null,{"$f":"'FR-16(7)(v)-1 Functional'!C667","v":"NET DEDUCTIONS AND ADDITIONS"},null,null,{"$f":"-F641","v":0},{"$f":"-G641","v":0},{"$f":"-H641","v":0},{"$f":"-I641","v":0},{"$f":"-J641","v":0},0,0,0,0,0,0,{"$f":"-$Q$641","v":0},{"$f":"-R641","v":0},{"$f":"F667-R667","v":0}]
[39,null,{"$f":"'FR-16(7)(v)-1 Functional'!C668","v":"TOTAL FEDERAL TAX ADJUSTMENTS"},null,null,{"$f":"F663","v":0},{"$f":"G663","v":0},{"$f":"H663","v":0},{"$f":"I663","v":0},{"$f":"J663","v":0},0,0,0,0,0,0,{"$f":"$Q$663","v":0},{"$f":"R663","v":0},{"$f":"F668-R668","v":0}]
[40,null,"TOTAL STATE PROV DEF IT (410 & 411)",null,null,{"$f":"F707","v":0},{"$f":"G707","v":0},{"$f":"H707","v":0},{"$f":"I707","v":0},{"$f":"J707","v":0},0,0,0,0,0,0,{"$f":"Q707","v":0},{"$f":"R707","v":0},{"$f":"F669-R669","v":0}]
[41,null,"RESERVED",null,null,{"$f":"F24","v":0},{"$f":"G24","v":0},{"$f":"H24","v":0},{"$f":"I24","v":0},{"$f":"J24","v":0},0,0,0,0,0,0,{"$f":"Q24","v":0},{"$f":"R24","v":0},{"$f":"F670-R670","v":0}]
[42,null,{"$f":"'FR-16(7)(v)-1 Functional'!C671","v":"  BASE FOR FIT COMPUATION"},null,null,{"$f":"SUM(F666:F670)","v":0},{"$f":"SUM(G666:G670)","v":0},{"$f":"SUM(H666:H670)","v":0},{"$f":"SUM(I666:I670)","v":0},{"$f":"SUM(J666:J670)","v":0},0,0,0,0,0,0,{"$f":"SUM($Q$666:$Q$670)","v":0},{"$f":"SUM(R666:R670)","v":0},{"$f":"SUM(S666:S670)","v":0}]
[43]
[44,null,{"$f":"'FR-16(7)(v)-1 Functional'!C673","v":"FIT FACTOR K190/(1-K190)"},null,null,{"$f":"ROUND(FIT/(1-FIT),9)","v":0.26582278500000001},0.26582278500000001,0.26582278500000001,0.26582278500000001,0.26582278500000001,0.26582278500000001,0.26582278500000001,0.26582278500000001,0.26582278500000001,0.26582278500000001,0.26582278500000001,0.26582278500000001,null,{"$f":"ROUND(R815/(1-R815),9)","v":0.26582278500000001}]
[45,null,{"$f":"'FR-16(7)(v)-1 Functional'!C674","v":"PRELIM FED INCOME TAX"},null,null,{"$f":"ROUND(F673*F671,0)","v":0},{"$f":"F674-SUM(H674:Q674)","v":0},{"$f":"ROUND(H671*H673,0)","v":0},{"$f":"ROUND(I671*I673,0)","v":0},{"$f":"ROUND(J671*J673,0)","v":0},0,0,0,0,0,0,{"$f":"ROUND($Q$671*$Q$673,0)","v":0},{"$f":"SUM(G674:Q674)","v":0},{"$f":"ROUND(S671*S673,0)","v":0}]
[46,null,{"$f":"'FR-16(7)(v)-1 Functional'!C675","v":"TOTAL FEDERAL TAX ADJUSTMENTS"},null,null,{"$f":"F663","v":0},{"$f":"G663","v":0},{"$f":"H663","v":0},{"$f":"I663","v":0},{"$f":"J663","v":0},0,0,0,0,0,0,{"$f":"$Q$663","v":0},{"$f":"R663","v":0},{"$f":"S663","v":0}]
[47,null,{"$f":"'FR-16(7)(v)-1 Functional'!C676","v":"  NET FED INCOME TAX ALLOWABLE"},null,null,{"$f":"SUM(F674:F675)","v":0},{"$f":"SUM(G674:G675)","v":0},{"$f":"SUM(H674:H675)","v":0},{"$f":"SUM(I674:I675)","v":0},{"$f":"SUM(J674:J675)","v":0},0,0,0,0,0,0,{"$f":"SUM($Q$674:$Q$675)","v":0},{"$f":"SUM(R674:R675)","v":0},{"$f":"SUM(S674:S675)","v":0}]
[48]
[49,"INCOME TAX BASED ON RETURN"]
[50,"FEDERAL INCOME TAX PAYABLE"]
[51,null,{"$f":"'FR-16(7)(v)-1 Functional'!C680","v":"PRELIM FEDERAL INCOME TAX"},null,null,{"$f":"F674","v":0},{"$f":"G674","v":0},{"$f":"H674","v":0},{"$f":"I674","v":0},{"$f":"J674","v":0},0,0,0,0,0,0,{"$f":"$Q$674","v":0},{"$f":"R674","v":0},{"$f":"S674","v":0}]
[53,null,{"$f":"'FR-16(7)(v)-1 Functional'!C681","v":"  NET FED INCOME TAX PAYABLE"},null,null,{"$f":"SUM(F680:F680)","v":0},{"$f":"SUM(G680:G680)","v":0},{"$f":"SUM(H680:H680)","v":0},{"$f":"SUM(I680:I680)","v":0},{"$f":"SUM(J680:J680)","v":0},0,0,0,0,0,0,{"$f":"SUM($Q$680:$Q$680)","v":0},{"$f":"SUM(R680:R680)","v":0},{"$f":"SUM(S680:S680)","v":0}]
[]
[{"$f":"co_name","v":"DUKE ENERGY KENTUCKY, INC."},null,null,null,null,null,null,null,null,null,null,null,null,null,null,null,null,{"$f":"R1","v":"FR-16(7)(v)-12"}]
[{"$f":"$A$2","v":"DISTRIBUTION ENERGY ALLOCATED - ELECTRIC COST OF SERVICE"},null,null,null,null,null,null,null,null,null,null,null,null,null,null,null,null,{"$f":"R2","v":"WITNESS RESPONSIBLE:"}]
[{"$f":"case_name","v":"CASE NO: 2019-00271"},null,null,null,null,null,null,null,null,null,null,null,null,null,null,null,null,{"$f":"Witness","v":"JAMES E. ZIOLKOWSKI"}]
[{"$f":"data_filing","v":"DATA: 12 MONTHS ACTUAL  & 0 MONTHS ESTIMATED"},null,null,null,null,null,null,null,null,null,null,null,null,null,null,null,null,{"$f":"\"PAGE \"&Pages-5&\" OF \"&Pages","v":"PAGE 13 OF 18"}]
[{"$f":"type","v":"TYPE OF FILING: \"X\" ORIGINAL   UPDATED    REVISED  "}]
[]
[null,null,null,null,null,{"$f":"F$7","v":"TOTAL"},null,{"$f":"H$7","v":"DS"},{"$f":"I$7","v":"GSFL"},{"$f":"J$7","v":"EH"},{"$f":"K$7","v":"SP"},"DT SEC","DT PRI","DP","TT",null,"OTHER"]
["LINE",null,null,null,null,{"$f":"F$8","v":"DISTRIBUTION"},{"$f":"G$8","v":"RS"},{"$f":"H$8","v":"SECONDARY"},{"$f":"I$8","v":"SECONDARY"},{"$f":"J$8","v":"SECONDARY"},{"$f":"K$8","v":"SECONDARY"},"SECONDARY","PRIMARY","PRIMARY","TRANSMISSION","LT","WATER",{"$f":"R8","v":"TOTAL"},"ALL"]
["NO.","STATE INCOME TAX BASED ON RETURN",null,"Allo",null,{"$f":"F$9","v":"ENERGY"},{"$f":"G$9","v":"RESIDENTIAL"},{"$f":"H$9","v":"DISTRIBUTION"},{"$f":"I$9","v":"DISTRIBUTION"},{"$f":"J$9","v":"DISTRIBUTION"},{"$f":"K$9","v":"DISTRIBUTION"},"DISTRIBUTION","DISTRIBUTION","DISTRIBUTION","TIME OF DAY","LIGHTING","PUMPING",{"$f":"R9","v":"AT ISSUE"},"OTHER"]
[null,null,"Schedule 9.1",null,null,null,{"$f":"G$10","v":3},{"$f":"H$10","v":4},{"$f":"I$10","v":5},{"$f":"J$10","v":6},{"$f":"K$10","v":7},8,9,10,11,12,13,null," "]
[1,"DEDUCTIONS IN ADDITION TO Y871"]
[2,"KY TAXABLE INCOME ADJUSTMENT",null,{"$f":"'FR-16(7)(v)-1 Functional'!D694","v":"NP29"},null,{"$f":"'FR-16(7)(v)-10 DIST Classified'!H694","v":0},{"$f":"F694-SUM(H694:Q694)","v":0},{"$f":"ROUND(F694*VLOOKUP(D694,ALLOCTABLE_Distr_Energy,$H$10,FALSE),0)","v":0},{"$f":"ROUND(F694*VLOOKUP(D694,ALLOCTABLE_Distr_Energy,$I$10,FALSE),0)","v":0},{"$f":"ROUND(F694*VLOOKUP(D694,ALLOCTABLE_Distr_Energy,$J$10,FALSE),0)","v":0},{"$f":"ROUND(F694*VLOOKUP(D694,ALLOCTABLE_Distr_Energy,$K$10,FALSE),0)","v":0},{"$f":"ROUND(F694*VLOOKUP(D694,ALLOCTABLE_Distr_Energy,$L$10,FALSE),0)","v":0},{"$f":"ROUND(F694*VLOOKUP(D694,ALLOCTABLE_Distr_Energy,$M$10,FALSE),0)","v":0},{"$f":"ROUND(F694*VLOOKUP(D694,ALLOCTABLE_Distr_Energy,$N$10,FALSE),0)","v":0},{"$f":"ROUND(F694*VLOOKUP(D694,ALLOCTABLE_Distr_Energy,$O$10,FALSE),0)","v":0},{"$f":"ROUND(F694*VLOOKUP(D694,ALLOCTABLE_Distr_Energy,$P$10,FALSE),0)","v":0},{"$f":"ROUND(F694*VLOOKUP(D694,ALLOCTABLE_Distr_Energy,$Q$10,FALSE),0)","v":0},{"$f":"SUM(G694:Q694)","v":0},{"$f":"F694-R694","v":0}]
[3,"RESERVED FOR FUTURE USE",null,{"$f":"'FR-16(7)(v)-1 Functional'!D695","v":"NP29"},null,{"$f":"'FR-16(7)(v)-10 DIST Classified'!H695","v":0},{"$f":"F695-SUM(H695:Q695)","v":0},{"$f":"ROUND(F695*VLOOKUP(D695,ALLOCTABLE_Distr_Energy,$H$10,FALSE),0)","v":0},{"$f":"ROUND(F695*VLOOKUP(D695,ALLOCTABLE_Distr_Energy,$I$10,FALSE),0)","v":0},{"$f":"ROUND(F695*VLOOKUP(D695,ALLOCTABLE_Distr_Energy,$J$10,FALSE),0)","v":0},{"$f":"ROUND(F695*VLOOKUP(D695,ALLOCTABLE_Distr_Energy,$K$10,FALSE),0)","v":0},{"$f":"ROUND(F695*VLOOKUP(D695,ALLOCTABLE_Distr_Energy,$L$10,FALSE),0)","v":0},{"$f":"ROUND(F695*VLOOKUP(D695,ALLOCTABLE_Distr_Energy,$M$10,FALSE),0)","v":0},{"$f":"ROUND(F695*VLOOKUP(D695,ALLOCTABLE_Distr_Energy,$N$10,FALSE),0)","v":0},{"$f":"ROUND(F695*VLOOKUP(D695,ALLOCTABLE_Distr_Energy,$O$10,FALSE),0)","v":0},{"$f":"ROUND(F695*VLOOKUP(D695,ALLOCTABLE_Distr_Energy,$P$10,FALSE),0)","v":0},{"$f":"ROUND(F695*VLOOKUP(D695,ALLOCTABLE_Distr_Energy,$Q$10,FALSE),0)","v":0},{"$f":"SUM(G695:Q695)","v":0},{"$f":"F695-R695","v":0}]
[4,"  DEDUCTIONS IN ADD TO Y871",null,null,null,{"$f":"SUM(F694:F695)","v":0},{"$f":"SUM(G694:G695)","v":0},0,0,{"$f":"SUM(J694:J695)","v":0},0,0,0,0,0,0,0,0,0]
[5]
[6,"STATE INCOME TAX ADJUSTMENTS"]
[7,"STATE PROV DEF INC TAX (410 & 411)"]
[8,"OTHER DEFERRED INCOME TAXES - NET",null,{"$f":"'FR-16(7)(v)-1 Functional'!D700","v":"A357"},null,{"$f":"'FR-16(7)(v)-10 DIST Classified'!H700","v":0},{"$f":"F700-SUM(H700:Q700)","v":0},{"$f":"ROUND(F700*VLOOKUP(D700,ALLOCTABLE_Distr_Energy,$H$10,FALSE),0)","v":0},{"$f":"ROUND(F700*VLOOKUP(D700,ALLOCTABLE_Distr_Energy,$I$10,FALSE),0)","v":0},{"$f":"ROUND(F700*VLOOKUP(D700,ALLOCTABLE_Distr_Energy,$J$10,FALSE),0)","v":0},{"$f":"ROUND(F700*VLOOKUP(D700,ALLOCTABLE_Distr_Energy,$K$10,FALSE),0)","v":0},{"$f":"ROUND(F700*VLOOKUP(D700,ALLOCTABLE_Distr_Energy,$L$10,FALSE),0)","v":0},{"$f":"ROUND(F700*VLOOKUP(D700,ALLOCTABLE_Distr_Energy,$M$10,FALSE),0)","v":0},{"$f":"ROUND(F700*VLOOKUP(D700,ALLOCTABLE_Distr_Energy,$N$10,FALSE),0)","v":0},{"$f":"ROUND(F700*VLOOKUP(D700,ALLOCTABLE_Distr_Energy,$O$10,FALSE),0)","v":0},{"$f":"ROUND(F700*VLOOKUP(D700,ALLOCTABLE_Distr_Energy,$P$10,FALSE),0)","v":0},{"$f":"ROUND(F700*VLOOKUP(D700,ALLOCTABLE_Distr_Energy,$Q$10,FALSE),0)","v":0},{"$f":"SUM(G700:Q700)","v":0},{"$f":"F700-R700","v":0}]
[9,"  TOT STATE PROV DEF IT (410 & 411)",null,null,null,{"$f":"SUM(F700)","v":0},{"$f":"SUM(G700)","v":0},0,0,{"$f":"SUM(J700)","v":0},0,0,0,0,0,0,0,0,0]
[10]
[11,"OTHER SIT ADJUSTMENTS"]
[12,"CURRENT YEAR PAYABLE ADJUSTMENT",null,{"$f":"'FR-16(7)(v)-1 Functional'!D704","v":"NP29"},null,{"$f":"'FR-16(7)(v)-10 DIST Classified'!H704","v":0},{"$f":"F704-SUM(H704:Q704)","v":0},{"$f":"ROUND(F704*VLOOKUP(D704,ALLOCTABLE_Distr_Energy,$H$10,FALSE),0)","v":0},{"$f":"ROUND(F704*VLOOKUP(D704,ALLOCTABLE_Distr_Energy,$I$10,FALSE),0)","v":0},{"$f":"ROUND(F704*VLOOKUP(D704,ALLOCTABLE_Distr_Energy,$J$10,FALSE),0)","v":0},{"$f":"ROUND(F704*VLOOKUP(D704,ALLOCTABLE_Distr_Energy,$K$10,FALSE),0)","v":0},{"$f":"ROUND(F704*VLOOKUP(D704,ALLOCTABLE_Distr_Energy,$L$10,FALSE),0)","v":0},{"$f":"ROUND(F704*VLOOKUP(D704,ALLOCTABLE_Distr_Energy,$M$10,FALSE),0)","v":0},{"$f":"ROUND(F704*VLOOKUP(D704,ALLOCTABLE_Distr_Energy,$N$10,FALSE),0)","v":0},{"$f":"ROUND(F704*VLOOKUP(D704,ALLOCTABLE_Distr_Energy,$O$10,FALSE),0)","v":0},{"$f":"ROUND(F704*VLOOKUP(D704,ALLOCTABLE_Distr_Energy,$P$10,FALSE),0)","v":0},{"$f":"ROUND(F704*VLOOKUP(D704,ALLOCTABLE_Distr_Energy,$Q$10,FALSE),0)","v":0},{"$f":"SUM(G704:Q704)","v":0},{"$f":"F704-R704","v":0}]
[13,"  OTHER SIT ADJUSMENTS",null,null,null,{"$f":"SUM(F704)","v":0},{"$f":"SUM(G704)","v":0},{"$f":"SUM(H704)","v":0},{"$f":"SUM(I704)","v":0},{"$f":"SUM(J704)","v":0},0,0,0,0,0,0,{"$f":"SUM(Q704)","v":0},{"$f":"SUM(R704)","v":0},{"$f":"SUM(S704)","v":0}]
[14]
[15,"TOTAL STATE INC TAX ADJUSTMENT",null,null,null,{"$f":"F705+F701","v":0},{"$f":"G705+G701","v":0},{"$f":"H705+H701","v":0},{"$f":"I705+I701","v":0},{"$f":"J705+J701","v":0},0,0,0,0,0,0,{"$f":"Q705+Q701","v":0},{"$f":"R705+R701","v":0},{"$f":"S705+S701","v":0}]
[16]
[17,"INCOME TAX BASED ON RETURN"]
[18,"SUMMARY OF SIT CALCULATION"]
[19,"RETURN ON RATE BASE",null,null,null,{"$f":"F433","v":0},{"$f":"G433","v":0},{"$f":"H433","v":0},{"$f":"I433","v":0},{"$f":"J433","v":0},0,0,0,0,0,0,{"$f":"Q433","v":0},{"$f":"R433","v":0},{"$f":"S433","v":0}]
[20,"NET FED INCOME TAX ALLOWABLE",null,null,null,{"$f":"F676","v":0},{"$f":"G676","v":0},{"$f":"H676","v":0},{"$f":"I676","v":0},{"$f":"J676","v":0},0,0,0,0,0,0,{"$f":"Q676","v":0},{"$f":"R676","v":0},{"$f":"S676","v":0}]
[21,"NET FED. DED. AND ADDITIONS",null,null,null,{"$f":"-F641","v":0},{"$f":"-G641","v":0},{"$f":"-H641","v":0},{"$f":"-I641","v":0},{"$f":"-J641","v":0},0,0,0,0,0,0,{"$f":"-Q641","v":0},{"$f":"-R641","v":0},{"$f":"-S641","v":0}]
[22,"DEDUCTIONS IN ADD TO Y871",null,null,null,{"$f":"-F696","v":0},{"$f":"-G696","v":0},{"$f":"-H696","v":0},{"$f":"-I696","v":0},{"$f":"-J696","v":0},0,0,0,0,0,0,{"$f":"-Q696","v":0},{"$f":"-R696","v":0},{"$f":"-S696","v":0}]
[23,"RESERVED",null,null,null,{"$f":"F24","v":0},{"$f":"G24","v":0},{"$f":"H24","v":0},{"$f":"I24","v":0},{"$f":"J24","v":0},0,0,0,0,0,0,{"$f":"Q24","v":0},{"$f":"R24","v":0},{"$f":"S24","v":0}]
[24,"TOTAL STATE INC TAX ADJ",null,null,null,{"$f":"F707","v":0},{"$f":"G707","v":0},{"$f":"H707","v":0},{"$f":"I707","v":0},{"$f":"J707","v":0},0,0,0,0,0,0,{"$f":"Q707","v":0},{"$f":"R707","v":0},{"$f":"S707","v":0}]
[25,"  BASE FOR SIT COMPUTATION",null,null,null,{"$f":"SUM(F711:F716)","v":0},{"$f":"SUM(G711:G716)","v":0},{"$f":"SUM(H711:H716)","v":0},{"$f":"SUM(I711:I716)","v":0},{"$f":"SUM(J711:J716)","v":0},0,0,0,0,0,0,{"$f":"SUM(Q711:Q716)","v":0},{"$f":"SUM(R711:R716)","v":0},{"$f":"SUM(S711:S716)","v":0}]
[26]
[27,"SIT FACTOR K192/(1-K192)",null,null,null,{"$f":"ROUND(SIT/(1-SIT),8)","v":5.2282660000000002E-2},5.2282660000000002E-2,5.2282660000000002E-2,5.2282660000000002E-2,5.2282660000000002E-2,5.2282660000000002E-2,5.2282660000000002E-2,5.2282660000000002E-2,5.2282660000000002E-2,5.2282660000000002E-2,5.2282660000000002E-2,5.2282660000000002E-2,5.2282660000000002E-2,5.2282660000000002E-2]
[28,"PRELIMINARY STATE INCOME TAX",null,null,null,{"$f":"ROUND(F717*F719,0)","v":0},{"$f":"F720-SUM(H720:Q720)","v":0},{"$f":"ROUND(H717*H719,0)","v":0},{"$f":"ROUND(I717*I719,0)","v":0},{"$f":"ROUND(J717*J719,0)","v":0},0,0,0,0,0,0,{"$f":"ROUND(Q717*Q719,0)","v":0},{"$f":"SUM(G720:Q720)","v":0},{"$f":"F720-R720","v":0}]
[29,"TOTAL STATE INCOME TAX ADJ.",null,null,null,{"$f":"F707","v":0},{"$f":"G707","v":0},{"$f":"H707","v":0},{"$f":"I707","v":0},{"$f":"J707","v":0},0,0,0,0,0,0,{"$f":"Q707","v":0},{"$f":"SUM(G721:Q721)","v":0},{"$f":"F721-R721","v":0}]
[30,"  NET STATE INC TAX ALLOWABLE",null,null,null,{"$f":"F721+F720","v":0},0,0,0,{"$f":"J721+J720","v":0},0,0,0,0,0,0,0,0,{"$f":"S721+S720","v":0}]
[31]
[32,"STATE INCOME TAX PAYABLE"]
[33,"PRELIMINARY STATE INCOME TAX",null,null,null,{"$f":"F720","v":0},{"$f":"G720","v":0},{"$f":"H720","v":0},{"$f":"I720","v":0},{"$f":"J720","v":0},0,0,0,0,0,0,{"$f":"Q720","v":0},{"$f":"SUM(G725:Q725)","v":0},{"$f":"F725-R725","v":0}]
[34,"OTHER SIT ADJUSTMENTS",null,null,null,{"$f":"F705","v":0},{"$f":"G705","v":0},{"$f":"H705","v":0},{"$f":"I705","v":0},{"$f":"J705","v":0},0,0,0,0,0,0,{"$f":"Q705","v":0},{"$f":"SUM(G726:Q726)","v":0},{"$f":"F726-R726","v":0}]
[35,"  NET STATE INCOME TAX PAYABLE",null,null,null,{"$f":"F725+F726","v":0},0,0,0,{"$f":"J725+J726","v":0},0,0,0,0,0,0,0,0,{"$f":"S725+S726","v":0}]
[36]
[37,"COMPOSITE TAX RATE",null,null,null,{"$f":"(SIT*(1-FIT))+((1-SIT)*(1-FIT)*RevTax)+FIT","v":0.24925115},0.24925115,0.24925115,0.24925115,0.24925115,0.24925115,0.24925115,0.24925115,0.24925115,0.24925115,0.24925115,0.24925115,0.24925115,0.24925115]
[]
[{"$f":"co_name","v":"DUKE ENERGY KENTUCKY, INC."},null,null,null,null,null,null,null,null,null,null,null,null,null,null,null,null,{"$f":"R1","v":"FR-16(7)(v)-12"}]
[{"$f":"$A$2","v":"DISTRIBUTION ENERGY ALLOCATED - ELECTRIC COST OF SERVICE"},null,null,null,null,null,null,null,null,null,null,null,null,null,null,null,null,{"$f":"R2","v":"WITNESS RESPONSIBLE:"}]
[{"$f":"case_name","v":"CASE NO: 2019-00271"},null,null,null,null,null,null,null,null,null,null,null,null,null,null,null,null,{"$f":"Witness","v":"JAMES E. ZIOLKOWSKI"}]
[{"$f":"data_filing","v":"DATA: 12 MONTHS ACTUAL  & 0 MONTHS ESTIMATED"},null,null,null,null,null,null,null,null,null,null,null,null,null,null,null,null,{"$f":"\"PAGE \"&Pages-4&\" OF \"&Pages","v":"PAGE 14 OF 18"}]
[{"$f":"type","v":"TYPE OF FILING: \"X\" ORIGINAL   UPDATED    REVISED  "}]
[]
[null,null,null,null,null,{"$f":"F$7","v":"TOTAL"},null,{"$f":"H$7","v":"DS"},{"$f":"I$7","v":"GSFL"},{"$f":"J$7","v":"EH"},{"$f":"K$7","v":"SP"},"DT SEC","DT PRI","DP","TT",null,"OTHER"]
["LINE",null,null,null,null,{"$f":"F$8","v":"DISTRIBUTION"},{"$f":"G$8","v":"RS"},{"$f":"H$8","v":"SECONDARY"},{"$f":"I$8","v":"SECONDARY"},{"$f":"J$8","v":"SECONDARY"},{"$f":"K$8","v":"SECONDARY"},"SECONDARY","PRIMARY","PRIMARY","TRANSMISSION","LT","WATER",{"$f":"R8","v":"TOTAL"},"ALL"]
["NO.","COST OF SERVICE COMPUTATION",null,"ALLO",null,{"$f":"F$9","v":"ENERGY"},{"$f":"G$9","v":"RESIDENTIAL"},{"$f":"H$9","v":"DISTRIBUTION"},{"$f":"I$9","v":"DISTRIBUTION"},{"$f":"J$9","v":"DISTRIBUTION"},{"$f":"K$9","v":"DISTRIBUTION"},"DISTRIBUTION","DISTRIBUTION","DISTRIBUTION","TIME OF DAY","LIGHTING","PUMPING",{"$f":"R9","v":"AT ISSUE"},"OTHER"]
[null,null,"Schedule 10",null,null,null,{"$f":"G$10","v":3},{"$f":"H$10","v":4},{"$f":"I$10","v":5},{"$f":"J$10","v":6},{"$f":"K$10","v":7},8,9,10,11,12,13,null," "]
[1,"OTHER OPERATING REVENUES"]
[2,null,{"$f":"'FR-16(7)(v)-1 Functional'!C742","v":"MISC SERVICE REVENUE"},{"$f":"'FR-16(7)(v)-1 Functional'!D742","v":"D249"},null,{"$f":"'FR-16(7)(v)-10 DIST Classified'!H742","v":0},{"$f":"F742-SUM(H742:Q742)","v":0},{"$f":"ROUND(F742*VLOOKUP(D742,ALLOCTABLE_Distr_Energy,$H$10,FALSE),0)","v":0},{"$f":"ROUND(F742*VLOOKUP(D742,ALLOCTABLE_Distr_Energy,$I$10,FALSE),0)","v":0},{"$f":"ROUND(F742*VLOOKUP(D742,ALLOCTABLE_Distr_Energy,$J$10,FALSE),0)","v":0},{"$f":"ROUND(F742*VLOOKUP(D742,ALLOCTABLE_Distr_Energy,$K$10,FALSE),0)","v":0},{"$f":"ROUND(F742*VLOOKUP(D742,ALLOCTABLE_Distr_Energy,$L$10,FALSE),0)","v":0},{"$f":"ROUND(F742*VLOOKUP(D742,ALLOCTABLE_Distr_Energy,$M$10,FALSE),0)","v":0},{"$f":"ROUND(F742*VLOOKUP(D742,ALLOCTABLE_Distr_Energy,$N$10,FALSE),0)","v":0},{"$f":"ROUND(F742*VLOOKUP(D742,ALLOCTABLE_Distr_Energy,$O$10,FALSE),0)","v":0},{"$f":"ROUND(F742*VLOOKUP(D742,ALLOCTABLE_Distr_Energy,$P$10,FALSE),0)","v":0},{"$f":"ROUND(F742*VLOOKUP(D742,ALLOCTABLE_Distr_Energy,$Q$10,FALSE),0)","v":0},{"$f":"SUM(G742:Q742)","v":0},{"$f":"F742-R742","v":0}]
[3,null,{"$f":"'FR-16(7)(v)-1 Functional'!C743","v":"INTERDEPARTMENTAL"},{"$f":"'FR-16(7)(v)-1 Functional'!D743","v":"K902"},null,{"$f":"'FR-16(7)(v)-10 DIST Classified'!H743","v":0},0,0,0,0,0,0,0,0,0,0,0,0,0]
[4,null,{"$f":"'FR-16(7)(v)-1 Functional'!C744","v":"POLE & LINE ATTACHMENTS"},{"$f":"'FR-16(7)(v)-1 Functional'!D744","v":"D249"},null,{"$f":"'FR-16(7)(v)-10 DIST Classified'!H744","v":0},0,0,0,0,0,0,0,0,0,0,0,0,0]
[5,null,{"$f":"'FR-16(7)(v)-1 Functional'!C745","v":"RENTS"},{"$f":"'FR-16(7)(v)-1 Functional'!D745","v":"D249"},null,{"$f":"'FR-16(7)(v)-10 DIST Classified'!H745","v":0},0,0,0,0,0,0,0,0,0,0,0,0,0]
[6,null,{"$f":"'FR-16(7)(v)-1 Functional'!C746","v":"TRANSMISSION CHARGE PTP"},{"$f":"'FR-16(7)(v)-1 Functional'!D746","v":"T229"},null,{"$f":"'FR-16(7)(v)-10 DIST Classified'!H746","v":0},{"$f":"F746-SUM(H746:Q746)","v":0},0,0,0,0,0,0,0,0,0,{"$f":"ROUND(F746*VLOOKUP(D746,ALLOCTABLE_Distr_Energy,$Q$10,FALSE),0)","v":0},0,0]
[7,null,{"$f":"'FR-16(7)(v)-1 Functional'!C747","v":"PJM REACTIVE REVENUE"},{"$f":"'FR-16(7)(v)-1 Functional'!D747","v":"K401"},null,{"$f":"'FR-16(7)(v)-10 DIST Classified'!H747","v":0},{"$f":"F747-SUM(H747:Q747)","v":0},0,0,0,0,0,0,0,0,0,{"$f":"ROUND(F747*VLOOKUP(D747,ALLOCTABLE_Distr_Energy,$Q$10,FALSE),0)","v":0},0,0]
[8,null,{"$f":"'FR-16(7)(v)-1 Functional'!C748","v":"OTHER TRANSMISSION REVENUES"},{"$f":"'FR-16(7)(v)-1 Functional'!D748","v":"T229"},null,{"$f":"'FR-16(7)(v)-10 DIST Classified'!H748","v":0},{"$f":"F748-SUM(H748:Q748)","v":0},0,0,0,0,0,0,0,0,0,{"$f":"ROUND(F748*VLOOKUP(D748,ALLOCTABLE_Distr_Energy,$Q$10,FALSE),0)","v":0},0,0]
[9,null,{"$f":"'FR-16(7)(v)-1 Functional'!C749","v":"FIXED BILL PREMIUM"},{"$f":"'FR-16(7)(v)-1 Functional'!D749","v":"K902"},null,{"$f":"'FR-16(7)(v)-10 DIST Classified'!H749","v":0},0,0,0,0,0,0,0,0,0,0,0,0,0]
[10,null,{"$f":"'FR-16(7)(v)-1 Functional'!C750","v":"  TOTAL OTHER OPERATING REVS"},null,null,{"$f":"SUM(F742:F749)","v":0},{"$f":"SUM(G742:G749)","v":0},{"$f":"SUM(H742:H749)","v":0},{"$f":"SUM(I742:I749)","v":0},{"$f":"SUM(J742:J749)","v":0},0,0,0,0,0,0,{"$f":"SUM($Q$742:$Q$749)","v":0},{"$f":"SUM(R742:R749)","v":0},{"$f":"SUM(S742:S749)","v":0}]
[11]
[12,"COST OF SERVICE COMPUTATION"]
[13,null,{"$f":"'FR-16(7)(v)-1 Functional'!C753","v":"TOTAL OP EXP EXC INC & REV TAX"},null,null,{"$f":"F618","v":0},{"$f":"G618","v":0},{"$f":"H618","v":0},{"$f":"I618","v":0},{"$f":"J618","v":0},0,0,0,0,0,0,{"$f":"$Q$618","v":0},{"$f":"R618","v":0},{"$f":"S618","v":0}]
[14,null,"RETURN ON RATE BASE",null,null,{"$f":"F433","v":0},{"$f":"G433","v":0},{"$f":"H433","v":0},{"$f":"I433","v":0},{"$f":"J433","v":0},0,0,0,0,0,0,{"$f":"Q433","v":0},{"$f":"R433","v":0},{"$f":"S433","v":0}]
[15,null,{"$f":"'FR-16(7)(v)-1 Functional'!C755","v":"NET FED INCOME TAX ALLOWABLE"},null,null,{"$f":"F676","v":0},{"$f":"G676","v":0},{"$f":"H676","v":0},{"$f":"I676","v":0},{"$f":"J676","v":0},0,0,0,0,0,0,{"$f":"$Q$676","v":0},{"$f":"R676","v":0},{"$f":"S676","v":0}]
[16,null,{"$f":"'FR-16(7)(v)-1 Functional'!C756","v":"NET STATE INCOME TAX ALLOWABLE"},null,null,{"$f":"F722","v":0},{"$f":"G722","v":0},0,0,{"$f":"J722","v":0},0,0,0,0,0,0,0,0,0]
[17,null,{"$f":"'FR-16(7)(v)-1 Functional'!C757","v":"TOTAL OTHER OPERATING REVENUES"},null,null,{"$f":"-F750","v":0},{"$f":"-G750","v":0},{"$f":"-H750","v":0},{"$f":"-I750","v":0},{"$f":"-J750","v":0},0,0,0,0,0,0,{"$f":"-$Q$750","v":0},{"$f":"-R750","v":0},{"$f":"-S750","v":0}]
[18,null,{"$f":"'FR-16(7)(v)-1 Functional'!C758","v":"  SUBTOTAL B"},null,null,{"$f":"SUM(F752:F757)","v":0},{"$f":"SUM(G752:G757)","v":0},{"$f":"SUM(H752:H757)","v":0},{"$f":"SUM(I752:I757)","v":0},{"$f":"SUM(J752:J757)","v":0},0,0,0,0,0,0,{"$f":"SUM($Q$752:$Q$757)","v":0},{"$f":"SUM(R752:R757)","v":0},{"$f":"R758-F758","v":0}]
[19]
[20,null,{"$f":"'FR-16(7)(v)-1 Functional'!C760","v":"TOTAL OTHER OPERATING REVENUES"},null,null,{"$f":"-F757","v":0},{"$f":"-G757","v":0},{"$f":"-H757","v":0},{"$f":"-I757","v":0},{"$f":"-J757","v":0},0,0,0,0,0,0,{"$f":"-$Q$757","v":0},{"$f":"-R757","v":0},{"$f":"-S757","v":0}]
[21,null,{"$f":"'FR-16(7)(v)-1 Functional'!C761","v":"LESS: REVS EXCL FROM REV TAX CALC"},null,null,{"$f":"F991","v":0},{"$f":"G991","v":0},{"$f":"H991","v":0},{"$f":"I991","v":0},{"$f":"J991","v":0},0,0,0,0,0,0,{"$f":"Q991","v":0},{"$f":"R991","v":0},{"$f":"S991","v":0}]
[22,null,{"$f":"'FR-16(7)(v)-1 Functional'!C762","v":"OTHER OPERATING REVS TO BE TAXED"},null,null,{"$f":"F760-F761","v":0},{"$f":"G760-G761","v":0},{"$f":"H760-H761","v":0},{"$f":"I760-I761","v":0},{"$f":"J760-J761","v":0},0,0,0,0,0,0,{"$f":"$Q$760-Q761","v":0},{"$f":"R760-R761","v":0},{"$f":"S760-S761","v":0}]
[23]
[24,null,{"$f":"'FR-16(7)(v)-1 Functional'!C764","v":"REVENUE TAX FACTOR"},null,null,{"$f":"ROUND(F817/(1-F817),8)","v":0},0,0,0,{"$f":"ROUND(J817/(1-J817),8)","v":0},0,0,0,0,0,0,0,0,0]
[25,null,{"$f":"'FR-16(7)(v)-1 Functional'!C765","v":"REVENUE TAX ON OTHER OPER. REVS"},null,null,{"$f":"ROUND(F764*F762,0)","v":0},{"$f":"F765-SUM(H765:Q765)","v":0},{"$f":"ROUND(H764*H762,0)","v":0},{"$f":"ROUND(I764*I762,0)","v":0},{"$f":"ROUND(J764*J762,0)","v":0},0,0,0,0,0,0,{"$f":"ROUND(Q764*Q762,0)","v":0},{"$f":"SUM(G765:Q765)","v":0},{"$f":"ROUND(S764*S762,0)","v":0}]
[26,null,{"$f":"'FR-16(7)(v)-1 Functional'!C766","v":"REVENUE TAX ON COST OF SERVICE"},null,null,{"$f":"ROUND(F764*F758,0)","v":0},{"$f":"F766-SUM(H766:Q766)","v":0},{"$f":"ROUND(H764*H758,0)","v":0},{"$f":"ROUND(I764*I758,0)","v":0},{"$f":"ROUND(J764*J758,0)","v":0},0,0,0,0,0,0,{"$f":"ROUND(Q764*$Q$758,0)","v":0},{"$f":"SUM(G766:Q766)","v":0},{"$f":"ROUND(S764*S758,0)","v":0}]
[27,null,{"$f":"'FR-16(7)(v)-1 Functional'!C767","v":"TOTAL REVENUE TAX"},null,null,{"$f":"F766+F765","v":0},{"$f":"G766+G765","v":0},{"$f":"H766+H765","v":0},{"$f":"I766+I765","v":0},{"$f":"J766+J765","v":0},0,0,0,0,0,0,{"$f":"Q766+Q765","v":0},{"$f":"R766+R765","v":0},{"$f":"S766+S765","v":0}]
[28]
[29,null,"RESERVED",null,null,{"$f":"F24","v":0},{"$f":"G24","v":0},{"$f":"H24","v":0},{"$f":"I24","v":0},{"$f":"J24","v":0},0,0,0,0,0,0,{"$f":"Q24","v":0},{"$f":"R24","v":0}]
[30,null,{"$f":"'FR-16(7)(v)-1 Functional'!C770","v":"  TOTAL ELECTRIC COST OF SERVICE"},null,null,{"$f":"F769+F767+F758","v":0},0,0,0,0,0,0,0,0,0,0,0,0,{"$f":"S767+S758","v":0}]
[31]
[32,"PROPOSED REVENUES",null,null,null,{"$f":"F870","v":0},0,0,0,{"$f":"J870","v":0},0,0,0,0,0,0,0,0,0]
[33,"TOTAL ELECTRIC COST OF SERVICE",null,null,null,{"$f":"-F770","v":0},0,0,0,{"$f":"-J770","v":0},0,0,0,0,0,0,0,0,0]
[34,"EXCESS REVENUES",null,null,null,{"$f":"F773+F772","v":0},{"$f":"G773+G772","v":0},{"$f":"H773+H772","v":0},{"$f":"I773+I772","v":0},{"$f":"J773+J772","v":0},0,0,0,0,0,0,{"$f":"Q773+Q772","v":0},{"$f":"SUM(G774:Q774)","v":0},{"$f":"F774-R774","v":0}]
[35,"COMPOSITE TAX RATE",null,null,null,{"$f":"F729","v":0.24925115},{"$f":"G729","v":0.24925115},0.24925115,0.24925115,{"$f":"J729","v":0.24925115},0.24925115,0.24925115,0.24925115,0.24925115,0.24925115,0.24925115,0.24925115,0.24925115,0.24925115]
[36,"EXCESS TAX",null,null,null,{"$f":"'FR-16(7)(v)-10 DIST Classified'!H776","v":0},{"$f":"F776-SUM(H776:Q776)","v":0},{"$f":"ROUND(H775*H774,0)","v":0},{"$f":"ROUND(I775*I774,0)","v":0},{"$f":"ROUND(J775*J774,0)","v":0},0,0,0,0,0,0,{"$f":"ROUND(Q775*Q774,0)","v":0},{"$f":"SUM(G776:Q776)","v":0},{"$f":"F776-R776","v":0}]
[37,"EXCESS RETURN",null,null,null,{"$f":"F774-F776","v":0},{"$f":"G774-G776","v":0},{"$f":"H774-H776","v":0},{"$f":"I774-I776","v":0},{"$f":"J774-J776","v":0},0,0,0,0,0,0,{"$f":"Q774-Q776","v":0},{"$f":"SUM(G777:Q777)","v":0},{"$f":"F777-R777","v":0}]
[]
[{"$f":"co_name","v":"DUKE ENERGY KENTUCKY, INC."},null,null,null,null,null,null,null,null,null,null,null,null,null,null,null,null,{"$f":"R1","v":"FR-16(7)(v)-12"}]
[{"$f":"$A$2","v":"DISTRIBUTION ENERGY ALLOCATED - ELECTRIC COST OF SERVICE"},null,null,null,null,null,null,null,null,null,null,null,null,null,null,null,null,{"$f":"R2","v":"WITNESS RESPONSIBLE:"}]
[{"$f":"case_name","v":"CASE NO: 2019-00271"},null,null,null,null,null,null,null,null,null,null,null,null,null,null,null,null,{"$f":"Witness","v":"JAMES E. ZIOLKOWSKI"}]
[{"$f":"data_filing","v":"DATA: 12 MONTHS ACTUAL  & 0 MONTHS ESTIMATED"},null,null,null,null,null,null,null,null,null,null,null,null,null,null,null,null,{"$f":"\"PAGE \"&Pages-3&\" OF \"&Pages","v":"PAGE 15 OF 18"}]
[{"$f":"type","v":"TYPE OF FILING: \"X\" ORIGINAL   UPDATED    REVISED  "}]
[]
[null,null,null,null,null,{"$f":"F$7","v":"TOTAL"},null,{"$f":"H$7","v":"DS"},{"$f":"I$7","v":"GSFL"},{"$f":"J$7","v":"EH"},{"$f":"K$7","v":"SP"},"DT SEC","DT PRI","DP","TT",null,"OTHER"]
["LINE",null,null,null,null,{"$f":"F$8","v":"DISTRIBUTION"},{"$f":"G$8","v":"RS"},{"$f":"H$8","v":"SECONDARY"},{"$f":"I$8","v":"SECONDARY"},{"$f":"J$8","v":"SECONDARY"},{"$f":"K$8","v":"SECONDARY"},"SECONDARY","PRIMARY","PRIMARY","TRANSMISSION","LT","WATER",{"$f":"R8","v":"TOTAL"},"ALL"]
["NO.","ROR, TAX RATES & SPEC FACTORS",null,"ALLO",null,{"$f":"F$9","v":"ENERGY"},{"$f":"G$9","v":"RESIDENTIAL"},{"$f":"H$9","v":"DISTRIBUTION"},{"$f":"I$9","v":"DISTRIBUTION"},{"$f":"J$9","v":"DISTRIBUTION"},{"$f":"K$9","v":"DISTRIBUTION"},"DISTRIBUTION","DISTRIBUTION","DISTRIBUTION","TIME OF DAY","LIGHTING","PUMPING",{"$f":"R9","v":"AT ISSUE"},"OTHER"]
[null,null,"Schedule 11",null,null,null,{"$f":"G$10","v":3},{"$f":"H$10","v":4},{"$f":"I$10","v":5},{"$f":"J$10","v":6},{"$f":"K$10","v":7},8,9,10,11,12,13,null," "]
[1,"RATE OF RETURN"]
[2," CAPITALIZATION AMOUNTS",null,null,null,null,"RATIO"]
[3,null,{"$f":"'FR-16(7)(v)-1 Functional'!C791","v":"LONG TERM DEBT"},null,null,{"$f":"'FR-16(7)(v)-2 PROD Classified'!$F$791","v":665948506},{"$f":"IF(TotalCap=0,0,ROUND(F791/TotalCap,4))","v":0.45929999999999999}]
[4,null,{"$f":"'FR-16(7)(v)-1 Functional'!C792","v":"PREFERRED STOCK"},null,null,{"$f":"'FR-16(7)(v)-2 PROD Classified'!$F$792","v":0},{"$f":"IF(TotalCap=0,0,ROUND(F792/TotalCap,4))","v":0}]
[5,null,{"$f":"'FR-16(7)(v)-1 Functional'!C793","v":"COMMON STOCK"},null,null,{"$f":"[0]!Equity","v":699348680},{"$f":"1-G791-G792-G794-G795","v":0.48239999999999994}]
[6,null,{"$f":"'FR-16(7)(v)-1 Functional'!C794","v":"SHORT TERM DEBT"},null,null,{"$f":"'FR-16(7)(v)-2 PROD Classified'!$F$794","v":84600060},{"$f":"IF(TotalCap=0,0,ROUND(F794/TotalCap,4))","v":5.8299999999999998E-2}]
[7,null,{"$f":"'FR-16(7)(v)-1 Functional'!C795","v":"UNAMORTIZED DISCOUNT"},null,null,{"$f":"'FR-16(7)(v)-2 PROD Classified'!$F$795","v":0},{"$f":"IF(TotalCap=0,0,ROUND(F795/TotalCap,4))","v":0}]
[8,null,{"$f":"'FR-16(7)(v)-1 Functional'!C796","v":"  TOTAL"},null,null,{"$f":"SUM(F790:F795)","v":1449897246},{"$f":"SUM(G791:G795)","v":1}]
[9]
[10," COST OF CAPITAL"]
[11,null,{"$f":"'FR-16(7)(v)-1 Functional'!C799","v":"LONG TERM DEBT"},null,null,{"$f":"'FR-16(7)(v)-2 PROD Classified'!$F$799","v":4.0730000000000002E-2}]
[12,null,{"$f":"'FR-16(7)(v)-1 Functional'!C800","v":"PREFERRED STOCK"},null,null,{"$f":"'FR-16(7)(v)-2 PROD Classified'!$F$800","v":0}]
[13,null,{"$f":"'FR-16(7)(v)-1 Functional'!C801","v":"COMMON STOCK"},null,null,{"$f":"'FR-16(7)(v)-2 PROD Classified'!$F$801","v":9.8000000000000004E-2}]
[14,null,{"$f":"'FR-16(7)(v)-1 Functional'!C802","v":"SHORT TERM DEBT"},null,null,{"$f":"'FR-16(7)(v)-2 PROD Classified'!$F$802","v":1.9369999999999998E-2}]
[15,null,{"$f":"'FR-16(7)(v)-1 Functional'!C803","v":"UNAMORTIZED DISCOUNT"},null,null,{"$f":"'FR-16(7)(v)-2 PROD Classified'!$F$803","v":0}]
[16]
[17," WEIGHTED COST OF CAPITAL"]
[18,null,{"$f":"'FR-16(7)(v)-1 Functional'!C806","v":"LONG TERM DEBT"},null,null,{"$f":"ROUND(G791*F799,4)","v":1.8700000000000001E-2}]
[19,null,{"$f":"'FR-16(7)(v)-1 Functional'!C807","v":"PREFERRED STOCK"},null,null,{"$f":"ROUND(G792*F800,4)","v":0}]
[20,null,{"$f":"'FR-16(7)(v)-1 Functional'!C808","v":"COMMON STOCK"},null,null,{"$f":"ROUND(G793*F801,4)","v":4.7300000000000002E-2}]
[21,null,{"$f":"'FR-16(7)(v)-1 Functional'!C809","v":"SHORT TERM DEBT"},null,null,{"$f":"ROUND(G794*F802,4)","v":1.1000000000000001E-3}]
[22,null,{"$f":"'FR-16(7)(v)-1 Functional'!C810","v":"UNAMORTIZED DISCOUNT"},null,null,{"$f":"ROUND(G795*F803,4)","v":0}]
[23,null,{"$f":"'FR-16(7)(v)-1 Functional'!C811","v":"  TOT RATE OF RETURN ALLOWABLE"},null,null,{"$f":"SUM(F806:F810)","v":6.7100000000000007E-2}]
[24]
[25,"TAX RATES AND SPECIAL FACTORS"]
[26,null,{"$f":"'FR-16(7)(v)-1 Functional'!C814","v":"SHORT TERM DEBT COST"},null,null,0,{"$f":"F814","v":0},{"$f":"F814","v":0},{"$f":"F814","v":0},{"$f":"G814","v":0},0,0,0,0,0,0,{"$f":"$F$814","v":0},{"$f":"F814","v":0},{"$f":"F814","v":0}]
[27,null,{"$f":"'FR-16(7)(v)-1 Functional'!C815","v":"FEDERAL INCOME TAX RATE"},null,null,{"$f":"FIT","v":0.21},{"$f":"FIT","v":0.21},0.21,0.21,0.21,0.21,0.21,0.21,0.21,0.21,0.21,0.21,0.21,0.21]
[28,null,{"$f":"'FR-16(7)(v)-1 Functional'!C816","v":"STATE INCOME TAX RATE"},null,null,{"$f":"SIT","v":4.9685000000000007E-2},{"$f":"SIT","v":4.9685000000000007E-2},4.9685000000000007E-2,4.9685000000000007E-2,4.9685000000000007E-2,4.9685000000000007E-2,4.9685000000000007E-2,4.9685000000000007E-2,4.9685000000000007E-2,4.9685000000000007E-2,4.9685000000000007E-2,4.9685000000000007E-2,4.9685000000000007E-2,4.9685000000000007E-2]
[29,null,{"$f":"'FR-16(7)(v)-1 Functional'!C817","v":"REVENUE TAX RATE"},null,null,0,{"$f":"RevTax","v":0},0,0,0,0,0,0,0,0,0,0,0,0]
[]
[{"$f":"co_name","v":"DUKE ENERGY KENTUCKY, INC."},null,null,null,null,null,null,null,null,null,null,null,null,null,null,null,null,{"$f":"R1","v":"FR-16(7)(v)-12"}]
[{"$f":"$A$2","v":"DISTRIBUTION ENERGY ALLOCATED - ELECTRIC COST OF SERVICE"},null,null,null,null,null,null,null,null,null,null,null,null,null,null,null,null,{"$f":"R2","v":"WITNESS RESPONSIBLE:"}]
[{"$f":"case_name","v":"CASE NO: 2019-00271"},null,null,null,null,null,null,null,null,null,null,null,null,null,null,null,null,{"$f":"Witness","v":"JAMES E. ZIOLKOWSKI"}]
[{"$f":"data_filing","v":"DATA: 12 MONTHS ACTUAL  & 0 MONTHS ESTIMATED"},null,null,null,null,null,null,null,null,null,null,null,null,null,null,null,null,{"$f":"\"PAGE \"&Pages-2&\" OF \"&Pages","v":"PAGE 16 OF 18"}]
[{"$f":"type","v":"TYPE OF FILING: \"X\" ORIGINAL   UPDATED    REVISED  "}]
[]
[null,null,null,null,null,{"$f":"F$7","v":"TOTAL"},null,{"$f":"H$7","v":"DS"},{"$f":"I$7","v":"GSFL"},{"$f":"J$7","v":"EH"},{"$f":"K$7","v":"SP"},"DT SEC","DT PRI","DP","TT",null,"OTHER"]
["LINE",null,null,null,null,{"$f":"F$8","v":"DISTRIBUTION"},{"$f":"G$8","v":"RS"},{"$f":"H$8","v":"SECONDARY"},{"$f":"I$8","v":"SECONDARY"},{"$f":"J$8","v":"SECONDARY"},{"$f":"K$8","v":"SECONDARY"},"SECONDARY","PRIMARY","PRIMARY","TRANSMISSION","LT","WATER",{"$f":"R8","v":"TOTAL"},"ALL",null,null,null,"RATE GRP"]
["NO.","ALLOCATORS",null,"SOURCE","ALLO",{"$f":"F$9","v":"ENERGY"},{"$f":"G$9","v":"RESIDENTIAL"},{"$f":"H$9","v":"DISTRIBUTION"},{"$f":"I$9","v":"DISTRIBUTION"},{"$f":"J$9","v":"DISTRIBUTION"},{"$f":"K$9","v":"DISTRIBUTION"},"DISTRIBUTION","DISTRIBUTION","DISTRIBUTION","TIME OF DAY","LIGHTING","PUMPING",{"$f":"R9","v":"AT ISSUE"},"OTHER",null,null,null,"CHECK"]
[null,null,"Schedule 12",null,1,null,{"$f":"G$10","v":3},{"$f":"H$10","v":4},{"$f":"I$10","v":5},{"$f":"J$10","v":6},{"$f":"K$10","v":7},8,9,10,11,12,13,null," "]
[1,"DEMAND ENERGY & SPEC. ASSIGN"]
[2,null,"TOTAL KW (12 COIN PEAK) - PRODUCTION","External",null,{"$f":"'WP FR-16(7)(v)-KW & KWH @Gen'!D38","v":717751},{"$f":"'WP FR-16(7)(v)-KW & KWH @Gen'!D17","v":323558},{"$f":"'WP FR-16(7)(v)-KW & KWH @Gen'!D18+'WP FR-16(7)(v)-KW & KWH @Gen'!D31","v":194251},{"$f":"'WP FR-16(7)(v)-KW & KWH @Gen'!D19","v":933},{"$f":"'WP FR-16(7)(v)-KW & KWH @Gen'!D20","v":3682},{"$f":"'WP FR-16(7)(v)-KW & KWH @Gen'!D21","v":51},{"$f":"'WP FR-16(7)(v)-KW & KWH @Gen'!D22+'WP FR-16(7)(v)-KW & KWH @Gen'!D32","v":96851},{"$f":"'WP FR-16(7)(v)-KW & KWH @Gen'!D23","v":64029},{"$f":"'WP FR-16(7)(v)-KW & KWH @Gen'!D24","v":3090},{"$f":"'WP FR-16(7)(v)-KW & KWH @Gen'!D25+'WP FR-16(7)(v)-KW & KWH @Gen'!D35","v":30336},{"$f":"'WP FR-16(7)(v)-KW & KWH @Gen'!D26","v":891},{"$f":"'WP FR-16(7)(v)-KW & KWH @Gen'!D27","v":79},{"$f":"SUM(G830:Q830)","v":717751},{"$f":"F830-R830","v":0}]
[3,null,{"$f":"'FR-16(7)(v)-1 Functional'!C831","v":"RATIO TO TOTAL ELECTRIC"},null,{"$f":"'FR-16(7)(v)-1 Functional'!E831","v":"K201"},{"$f":"IF($F830=0,0,ROUND(F830/$F830,5))","v":1},{"$f":"IF(S830=0,F831-SUM(H831:Q831),ROUND(G830/F830,5))","v":0.45077999999999985},{"$f":"IF($F$830=0,0,ROUND(H830/$F$830,5))","v":0.27063999999999999},{"$f":"IF($F$830=0,0,ROUND(I830/$F$830,5))","v":1.2999999999999999E-3},5.13E-3,6.9999999999999994E-5,0.13494,8.9209999999999998E-2,4.3099999999999996E-3,4.2270000000000002E-2,1.24E-3,1.1E-4,{"$f":"SUM(G831:Q831)","v":0.99999999999999989},{"$f":"F831-R831","v":0},null,null,null,{"$f":"R831","v":0.99999999999999989}]
[4,null,"TOTAL KW (12 COIN PEAK) - TRANSMISSION","External",null,{"$f":"'WP FR-16(7)(v)-KW & KWH @Gen'!D38","v":717751},{"$f":"'WP FR-16(7)(v)-KW & KWH @Gen'!D17","v":323558},{"$f":"'WP FR-16(7)(v)-KW & KWH @Gen'!D18+'WP FR-16(7)(v)-KW & KWH @Gen'!D31","v":194251},{"$f":"'WP FR-16(7)(v)-KW & KWH @Gen'!D19","v":933},{"$f":"'WP FR-16(7)(v)-KW & KWH @Gen'!D20","v":3682},{"$f":"'WP FR-16(7)(v)-KW & KWH @Gen'!D21","v":51},{"$f":"'WP FR-16(7)(v)-KW & KWH @Gen'!D22+'WP FR-16(7)(v)-KW & KWH @Gen'!D32","v":96851},{"$f":"'WP FR-16(7)(v)-KW & KWH @Gen'!D23","v":64029},{"$f":"'WP FR-16(7)(v)-KW & KWH @Gen'!D24","v":3090},{"$f":"'WP FR-16(7)(v)-KW & KWH @Gen'!D25+'WP FR-16(7)(v)-KW & KWH @Gen'!D35","v":30336},{"$f":"'WP FR-16(7)(v)-KW & KWH @Gen'!D26","v":891},{"$f":"'WP FR-16(7)(v)-KW & KWH @Gen'!D27","v":79},{"$f":"SUM(G832:Q832)","v":717751},{"$f":"F832-R832","v":0}]
[5,null,{"$f":"'FR-16(7)(v)-1 Functional'!C833","v":"RATIO TO TOTAL ELECTRIC"},null,"K202",{"$f":"IF($F832=0,0,ROUND(F832/$F832,5))","v":1},{"$f":"IF(S832=0,F833-SUM(H833:Q833),ROUND(G832/F832,5))","v":0.45077999999999985},{"$f":"IF($F$830=0,0,ROUND(H832/$F$830,5))","v":0.27063999999999999},1.2999999999999999E-3,5.13E-3,6.9999999999999994E-5,0.13494,8.9209999999999998E-2,4.3099999999999996E-3,4.2270000000000002E-2,1.24E-3,1.1E-4,{"$f":"SUM(G833:Q833)","v":0.99999999999999989},{"$f":"F833-R833","v":0}]
[6,null,{"$f":"'FR-16(7)(v)-1 Functional'!C834","v":"DISTRIBUTION KW (NON-COIN PEAK) "},"External",null,{"$f":"'WP FR-16(7)(v)-KW & KWH @Dist'!D39","v":1514633},{"$f":"'WP FR-16(7)(v)-KW & KWH @Dist'!D18","v":899439},{"$f":"'WP FR-16(7)(v)-KW & KWH @Dist'!D19+'WP FR-16(7)(v)-KW & KWH @Dist'!D32","v":321857},{"$f":"'WP FR-16(7)(v)-KW & KWH @Dist'!D20","v":1158},{"$f":"'WP FR-16(7)(v)-KW & KWH @Dist'!D21","v":10653},{"$f":"'WP FR-16(7)(v)-KW & KWH @Dist'!D22","v":109},{"$f":"'WP FR-16(7)(v)-KW & KWH @Dist'!D23+'WP FR-16(7)(v)-KW & KWH @Dist'!D33","v":138051},{"$f":"'WP FR-16(7)(v)-KW & KWH @Dist'!D24+'WP FR-16(7)(v)-KW & KWH @Dist'!D34","v":84382},{"$f":"'WP FR-16(7)(v)-KW & KWH @Dist'!D25+'WP FR-16(7)(v)-KW & KWH @Dist'!D35","v":5687},{"$f":"'WP FR-16(7)(v)-KW & KWH @Dist'!D26+'WP FR-16(7)(v)-KW & KWH @Dist'!D36","v":45755},{"$f":"'WP FR-16(7)(v)-KW & KWH @Dist'!D27","v":7098},{"$f":"'WP FR-16(7)(v)-KW & KWH @Dist'!D28","v":444},{"$f":"SUM(G834:Q834)","v":1514633},{"$f":"F834-R834","v":0}]
[7,null,{"$f":"'FR-16(7)(v)-1 Functional'!C835","v":"RATIO TO TOTAL ELECTRIC"},null,{"$f":"'FR-16(7)(v)-1 Functional'!E835","v":"K203"},{"$f":"IF($F834=0,0,ROUND(F834/$F834,9))","v":1},{"$f":"IF(S834=0,F835-SUM(H835:Q835),ROUND(G834/F834,5))","v":0.59384999999999999},{"$f":"IF(F834=0,0,ROUND(H834/F834,5))","v":0.21249999999999999},{"$f":"IF($F$834=0,0,ROUND(I834/$F$834,5))","v":7.6000000000000004E-4},{"$f":"IF($F$834=0,0,ROUND(J834/$F$834,5))","v":7.0299999999999998E-3},6.9999999999999994E-5,9.1139999999999999E-2,5.5710000000000003E-2,3.7499999999999999E-3,3.0210000000000001E-2,4.6899999999999997E-3,{"$f":"IF(G834=0,0,ROUND(Q834/F834,5))","v":2.9E-4},1,0,null,null,null,{"$f":"R835","v":1}]
[8,null,"DISTRIBUTION LINE - PRIMARY","External",null,{"$f":"'WP FR-16(7)(v) Distlines'!G38","v":731338},{"$f":"'WP FR-16(7)(v) Distlines'!$G$17","v":343307},{"$f":"'WP FR-16(7)(v) Distlines'!$G$18+'WP FR-16(7)(v) Distlines'!$G$31","v":202748},{"$f":"'WP FR-16(7)(v) Distlines'!$G$19","v":945},{"$f":"'WP FR-16(7)(v) Distlines'!$G$20","v":4447},{"$f":"'WP FR-16(7)(v) Distlines'!$G$21","v":53},{"$f":"'WP FR-16(7)(v) Distlines'!$G$22+'WP FR-16(7)(v) Distlines'!$G$32","v":103544},{"$f":"'WP FR-16(7)(v) Distlines'!$G$23+'WP FR-16(7)(v) Distlines'!$G$33","v":68199},{"$f":"'WP FR-16(7)(v) Distlines'!$G$24+'WP FR-16(7)(v) Distlines'!$G$34","v":3420},{"$f":"'WP FR-16(7)(v) Distlines'!$G$25+'WP FR-16(7)(v) Distlines'!$G$35","v":0},{"$f":"'WP FR-16(7)(v) Distlines'!$G$26","v":4595},{"$f":"'WP FR-16(7)(v) Distlines'!$G$27","v":80},731338,0]
[9,null,{"$f":"'FR-16(7)(v)-1 Functional'!C837","v":"RATIO TO TOTAL ELECTRIC"},null,{"$f":"'FR-16(7)(v)-1 Functional'!E837","v":"K205"},{"$f":"IF($F836=0,0,ROUND(F836/$F836,9))","v":1},{"$f":"IF(S836=0,F837-SUM(H837:Q837),ROUND(G836/F836,5))","v":0.4694299999999999},{"$f":"IF($F$836=0,0,ROUND(H836/$F$836,5))","v":0.27722999999999998},{"$f":"IF($F$836=0,0,ROUND(I836/$F$836,5))","v":1.2899999999999999E-3},6.0800000000000003E-3,6.9999999999999994E-5,0.14158000000000001,9.325E-2,4.6800000000000001E-3,0,6.28E-3,1.1E-4,0.99999999999999989,0,null,null,null,{"$f":"R837","v":0.99999999999999989}]
[10,null,"DISTRIBUTION LINE - SECONDARY","External",null,{"$f":"'WP FR-16(7)(v) Distlines'!K38","v":731338},{"$f":"'WP FR-16(7)(v) Distlines'!K17","v":343307},{"$f":"'WP FR-16(7)(v) Distlines'!K18+'WP FR-16(7)(v) Distlines'!K31","v":202748},{"$f":"'WP FR-16(7)(v) Distlines'!K19","v":945},{"$f":"'WP FR-16(7)(v) Distlines'!K20","v":4447},{"$f":"'WP FR-16(7)(v) Distlines'!K21","v":53},{"$f":"'WP FR-16(7)(v) Distlines'!K22+'WP FR-16(7)(v) Distlines'!K32","v":103544},{"$f":"'WP FR-16(7)(v) Distlines'!K23","v":68199},{"$f":"'WP FR-16(7)(v) Distlines'!K24+'WP FR-16(7)(v) Distlines'!K34","v":3420},{"$f":"'WP FR-16(7)(v) Distlines'!K25+'WP FR-16(7)(v) Distlines'!K35","v":0},{"$f":"'WP FR-16(7)(v) Distlines'!K26","v":4595},{"$f":"'WP FR-16(7)(v) Distlines'!K27","v":80},{"$f":"SUM(G838:Q838)","v":731338},{"$f":"F838-R838","v":0}]
[11,null,{"$f":"'FR-16(7)(v)-1 Functional'!C839","v":"RATIO TO TOTAL ELECTRIC"},null,"K206",{"$f":"IF($F838=0,0,ROUND(F838/$F838,9))","v":1},{"$f":"IF(S838=0,F839-SUM(H839:Q839),ROUND(G838/F838,5))","v":0.4694299999999999},{"$f":"IF($F$836=0,0,ROUND(H838/$F$836,5))","v":0.27722999999999998},{"$f":"IF($F$836=0,0,ROUND(I838/$F$836,5))","v":1.2899999999999999E-3},{"$f":"IF($F$836=0,0,ROUND(J838/$F$836,5))","v":6.0800000000000003E-3},{"$f":"IF($F$836=0,0,ROUND(K838/$F$836,5))","v":6.9999999999999994E-5},{"$f":"IF($F$836=0,0,ROUND(L838/$F$836,5))","v":0.14158000000000001},{"$f":"IF($F$838=0,0,ROUND(M838/$F$838,5))","v":9.325E-2},{"$f":"IF($F$838=0,0,ROUND(N838/$F$838,5))","v":4.6800000000000001E-3},{"$f":"IF($F$838=0,0,ROUND(O838/$F$838,5))","v":0},{"$f":"IF($F$838=0,0,ROUND(P838/$F$838,5))","v":6.28E-3},{"$f":"IF($F$838=0,0,ROUND(Q838/$F$838,5))","v":1.1E-4},{"$f":"SUM(G839:Q839)","v":0.99999999999999989},{"$f":"F839-R839","v":0}]
[12,null,{"$f":"'FR-16(7)(v)-1 Functional'!C840","v":"GROSS DISTRIBUTION PLANT EXCL. CCNC"},"External",null,{"$f":"SUM(F73:F90)","v":0},{"$f":"SUM(G73:G90)","v":0},0,0,0,0,0,0,0,0,0,0,0,0]
[13,null,{"$f":"'FR-16(7)(v)-1 Functional'!C841","v":"RATIO TO TOTAL ELECTRIC"},null,{"$f":"'FR-16(7)(v)-1 Functional'!E841","v":"K209"},{"$f":"IF($F840=0,0,ROUND(F840/$F840,9))","v":0},{"$f":"IF(S840=0,F841-SUM(H841:Q841),ROUND(G840/F840,5))","v":0},{"$f":"IF($F$840=0,0,ROUND(H840/$F$840,5))","v":0},{"$f":"IF($F$840=0,0,ROUND(I840/$F$840,5))","v":0},0,0,0,0,0,0,0,0,0,0,null,null,null,{"$f":"R841","v":0}]
[14,null,{"$f":"'FR-16(7)(v)-1 Functional'!C842","v":"TOTAL DIVERSIFIED CLASS DEMANDS"},"External",null,{"$f":"'WP FR-16(7)(v)-KW & KWH @Dist'!L39","v":731338},{"$f":"'WP FR-16(7)(v)-KW & KWH @Dist'!L18","v":343307},{"$f":"'WP FR-16(7)(v)-KW & KWH @Dist'!L19+'WP FR-16(7)(v)-KW & KWH @Dist'!L32","v":202748},{"$f":"'WP FR-16(7)(v)-KW & KWH @Dist'!L20","v":945},{"$f":"'WP FR-16(7)(v)-KW & KWH @Dist'!L21","v":4447},{"$f":"'WP FR-16(7)(v)-KW & KWH @Dist'!L22","v":53},{"$f":"'WP FR-16(7)(v)-KW & KWH @Dist'!L23+'WP FR-16(7)(v)-KW & KWH @Dist'!L33","v":103544},{"$f":"'WP FR-16(7)(v)-KW & KWH @Dist'!L24","v":68199},{"$f":"'WP FR-16(7)(v)-KW & KWH @Dist'!L25","v":3420},{"$f":"'WP FR-16(7)(v)-KW & KWH @Dist'!L26","v":0},{"$f":"'WP FR-16(7)(v)-KW & KWH @Dist'!L27","v":4595},{"$f":"'WP FR-16(7)(v)-KW & KWH @Dist'!L28","v":80},731338,0]
[15,null,{"$f":"'FR-16(7)(v)-1 Functional'!C843","v":"RATIO TO TOTAL ELECTRIC"},null,{"$f":"'FR-16(7)(v)-1 Functional'!E843","v":"K215"},{"$f":"IF($F842=0,0,ROUND(F842/$F842,9))","v":1},{"$f":"IF(S842=0,F843-SUM(H843:Q843),ROUND(G842/F842,5))","v":0.4694299999999999},{"$f":"IF($F$842=0,0,ROUND(H842/$F$842,5))","v":0.27722999999999998},{"$f":"IF($F$842=0,0,ROUND(I842/$F$842,5))","v":1.2899999999999999E-3},6.0800000000000003E-3,6.9999999999999994E-5,0.14158000000000001,9.325E-2,4.6800000000000001E-3,0,6.28E-3,1.1E-4,0.99999999999999989,0,null,null,null,{"$f":"R843","v":0.99999999999999989}]
[16,null,{"$f":"'FR-16(7)(v)-1 Functional'!C844","v":"WEIGHTED CUSTOMER SERVICE"},"External",null,{"$f":"'WP FR-16(7)(v) Wtd services'!H38","v":143810},{"$f":"'WP FR-16(7)(v) Wtd services'!H17","v":128431},{"$f":"'WP FR-16(7)(v) Wtd services'!H18","v":12968},{"$f":"'WP FR-16(7)(v) Wtd services'!H19","v":172},{"$f":"'WP FR-16(7)(v) Wtd services'!H20","v":412},{"$f":"'WP FR-16(7)(v) Wtd services'!H21","v":14},{"$f":"'WP FR-16(7)(v) Wtd services'!H22","v":930},{"$f":"'WP FR-16(7)(v) Wtd services'!H23","v":222},{"$f":"'WP FR-16(7)(v) Wtd services'!H24","v":60},{"$f":"'WP FR-16(7)(v) Wtd services'!H25","v":66},{"$f":"'WP FR-16(7)(v) Wtd services'!H26","v":468},{"$f":"'WP FR-16(7)(v) Wtd services'!H27","v":11},143754,56]
[17,null,{"$f":"'FR-16(7)(v)-1 Functional'!C845","v":"RATIO TO TOTAL ELECTRIC"},null,{"$f":"'FR-16(7)(v)-1 Functional'!E845","v":"K217"},{"$f":"IF($F844=0,0,ROUND(F844/$F844,9))","v":1},{"$f":"IF(S844=0,F845-SUM(H845:Q845),ROUND(G844/F844,5))","v":0.89305999999999996},{"$f":"IF($F$844=0,0,ROUND(H844/$F$844,5))","v":9.017E-2},{"$f":"IF($F$844=0,0,ROUND(I844/$F$844,5))","v":1.1999999999999999E-3},2.8600000000000001E-3,1E-4,6.4700000000000001E-3,1.5399999999999999E-3,4.2000000000000002E-4,4.6000000000000001E-4,3.2499999999999999E-3,8.0000000000000007E-5,0.99960999999999978,3.900000000002235E-4,null,null,null,{"$f":"R845","v":0.99960999999999978}]
[18,null,{"$f":"'FR-16(7)(v)-1 Functional'!C846","v":"TOTAL KWH"},"External",null,{"$f":"'WP FR-16(7)(v)-KW & KWH @Gen'!F38","v":4261970981},{"$f":"'WP FR-16(7)(v)-KW & KWH @Gen'!$F$17","v":1608724299},{"$f":"'WP FR-16(7)(v)-KW & KWH @Gen'!$F$18+'WP FR-16(7)(v)-KW & KWH @Gen'!$F$31","v":1147823576},{"$f":"'WP FR-16(7)(v)-KW & KWH @Gen'!$F$19","v":6420710},{"$f":"'WP FR-16(7)(v)-KW & KWH @Gen'!$F$20","v":18228802},{"$f":"'WP FR-16(7)(v)-KW & KWH @Gen'!$F$21","v":298034},{"$f":"'WP FR-16(7)(v)-KW & KWH @Gen'!$F$22+'WP FR-16(7)(v)-KW & KWH @Gen'!$F$32","v":703280622},{"$f":"'WP FR-16(7)(v)-KW & KWH @Gen'!$F$23","v":488455966},{"$f":"'WP FR-16(7)(v)-KW & KWH @Gen'!$F$24","v":22905598},{"$f":"'WP FR-16(7)(v)-KW & KWH @Gen'!$F$25+'WP FR-16(7)(v)-KW & KWH @Gen'!$F$35","v":246755000},{"$f":"'WP FR-16(7)(v)-KW & KWH @Gen'!$F$26","v":18599129},{"$f":"'WP FR-16(7)(v)-KW & KWH @Gen'!$F$27","v":479245},4261970981,0]
[19,null,{"$f":"'FR-16(7)(v)-1 Functional'!C847","v":"RATIO TO TOTAL ELECTRIC"},null,{"$f":"'FR-16(7)(v)-1 Functional'!E847","v":"K301"},{"$f":"IF($F846=0,0,ROUND(F846/$F846,9))","v":1},{"$f":"IF(S846=0,F847-SUM(H847:Q847),ROUND(G846/F846,5))","v":0.37745999999999991},{"$f":"IF($F$846=0,0,ROUND(H846/$F$846,5))","v":0.26932},{"$f":"IF($F$846=0,0,ROUND(I846/$F$846,5))","v":1.5100000000000001E-3},4.28E-3,6.9999999999999994E-5,0.16500999999999999,0.11461,5.3699999999999998E-3,5.79E-2,4.3600000000000002E-3,1.1E-4,0.99999999999999989,0,null,null,null,{"$f":"R847","v":0.99999999999999989}]
[20,null,{"$f":"'FR-16(7)(v)-1 Functional'!C848","v":"DISTRIBUTION KWH"},"External",null,{"$f":"'WP FR-16(7)(v)-KW & KWH @Dist'!F39","v":4261970981},{"$f":"'WP FR-16(7)(v)-KW & KWH @Dist'!F18","v":1608724299},{"$f":"'WP FR-16(7)(v)-KW & KWH @Dist'!F19+'WP FR-16(7)(v)-KW & KWH @Dist'!F32","v":1147823576},{"$f":"'WP FR-16(7)(v)-KW & KWH @Dist'!F20","v":6420710},{"$f":"'WP FR-16(7)(v)-KW & KWH @Dist'!F21","v":18228802},{"$f":"'WP FR-16(7)(v)-KW & KWH @Dist'!F22","v":298034},{"$f":"'WP FR-16(7)(v)-KW & KWH @Dist'!F23+'WP FR-16(7)(v)-KW & KWH @Dist'!F33","v":703280622},{"$f":"'WP FR-16(7)(v)-KW & KWH @Dist'!F24","v":488455966},{"$f":"'WP FR-16(7)(v)-KW & KWH @Dist'!F25","v":22905598},{"$f":"'WP FR-16(7)(v)-KW & KWH @Dist'!F26","v":232255694},{"$f":"'WP FR-16(7)(v)-KW & KWH @Dist'!F27","v":18599129},{"$f":"'WP FR-16(7)(v)-KW & KWH @Dist'!F28","v":479245},4247471675,14499306]
[21,null,{"$f":"'FR-16(7)(v)-1 Functional'!C849","v":"RATIO TO TOTAL ELECTRIC"},null,{"$f":"'FR-16(7)(v)-1 Functional'!E849","v":"K303"},{"$f":"IF($F848=0,0,ROUND(F848/$F848,9))","v":1},{"$f":"IF(S848=0,F849-SUM(H849:Q849),ROUND(G848/F848,5))","v":0.37746000000000002},{"$f":"IF($F$848=0,0,ROUND(H848/$F$848,5))","v":0.26932},{"$f":"IF($F$848=0,0,ROUND(I848/$F$848,5))","v":1.5100000000000001E-3},4.28E-3,6.9999999999999994E-5,0.16500999999999999,0.11461,5.3699999999999998E-3,5.4489999999999997E-2,4.3600000000000002E-3,1.1E-4,0.99659000000000009,3.4099999999999131E-3,null,null,null,{"$f":"R849","v":0.99659000000000009}]
[22,null,{"$f":"'FR-16(7)(v)-1 Functional'!C850","v":"TOTAL KWH LESS LIGHTING"},"External",null,{"$f":"'WP FR-16(7)(v)-KW & KWH @Gen'!F38-'WP FR-16(7)(v)-KW & KWH @Gen'!F26","v":4243371852},{"$f":"'WP FR-16(7)(v)-KW & KWH @Gen'!F17","v":1608724299},{"$f":"'WP FR-16(7)(v)-KW & KWH @Gen'!F18+'WP FR-16(7)(v)-KW & KWH @Gen'!F31","v":1147823576},{"$f":"'WP FR-16(7)(v)-KW & KWH @Gen'!F19","v":6420710},{"$f":"'WP FR-16(7)(v)-KW & KWH @Gen'!F20","v":18228802},{"$f":"'WP FR-16(7)(v)-KW & KWH @Gen'!F21","v":298034},{"$f":"'WP FR-16(7)(v)-KW & KWH @Gen'!F22+'WP FR-16(7)(v)-KW & KWH @Gen'!F32","v":703280622},{"$f":"'WP FR-16(7)(v)-KW & KWH @Gen'!F23","v":488455966},{"$f":"'WP FR-16(7)(v)-KW & KWH @Gen'!F24","v":22905598},{"$f":"'WP FR-16(7)(v)-KW & KWH @Gen'!F25+'WP FR-16(7)(v)-KW & KWH @Gen'!F35","v":246755000},0,{"$f":"'WP FR-16(7)(v)-KW & KWH @Gen'!F27","v":479245},4243371852,0]
[23,null,{"$f":"'FR-16(7)(v)-1 Functional'!C851","v":"RATIO TO TOTAL ELECTRIC"},null,{"$f":"'FR-16(7)(v)-1 Functional'!E851","v":"K305"},{"$f":"IF($F850=0,0,ROUND(F850/$F850,9))","v":1},{"$f":"IF(S850=0,F851-SUM(H851:Q851),ROUND(G850/F850,5))","v":0.37910999999999984},{"$f":"IF($F$850=0,0,ROUND(H850/$F$850,5))","v":0.27050000000000002},{"$f":"IF($F$850=0,0,ROUND(I850/$F$850,5))","v":1.5100000000000001E-3},4.3E-3,6.9999999999999994E-5,0.16574,0.11511,5.4000000000000003E-3,5.815E-2,0,1.1E-4,0.99999999999999989,0,null,null,null,{"$f":"R851","v":0.99999999999999989}]
[24,null,{"$f":"'FR-16(7)(v)-1 Functional'!C852","v":"ASSIGN 100% TO RESIDENTIAL"},"External",null,1,1,0,0,0,0,0,0,0,0,0,0,1,0]
[25,null,{"$f":"'FR-16(7)(v)-1 Functional'!C853","v":"RATIO TO TOTAL ELECTRIC"},null,{"$f":"'FR-16(7)(v)-1 Functional'!E853","v":"K307"},{"$f":"IF($F852=0,0,ROUND(F852/$F852,9))","v":1},{"$f":"IF(S852=0,F853-SUM(H853:Q853),ROUND(G852/F852,5))","v":1},{"$f":"IF($F$852=0,0,ROUND(H852/$F$852,5))","v":0},{"$f":"IF($F$852=0,0,ROUND(I852/$F$852,5))","v":0},0,0,0,0,0,0,0,0,1,0,null,null,null,{"$f":"R853","v":1}]
[26,null,{"$f":"'FR-16(7)(v)-1 Functional'!C854","v":"ASSIGN 100% TO LIGHTING"},"External",null,1,0,0,0,0,0,0,0,0,0,1,0,1,0]
[27,null,{"$f":"'FR-16(7)(v)-1 Functional'!C855","v":"RATIO TO TOTAL ELECTRIC"},null,{"$f":"'FR-16(7)(v)-1 Functional'!E855","v":"K401"},{"$f":"IF($F854=0,0,ROUND(F854/$F854,9))","v":1},{"$f":"IF(S854=0,F855-SUM(H855:Q855),ROUND(G854/F854,5))","v":0},{"$f":"IF($F$854=0,0,ROUND(H854/$F$854,5))","v":0},{"$f":"IF($F$854=0,0,ROUND(I854/$F$854,5))","v":0},0,0,0,0,0,0,1,0,1,0,null,null,null,{"$f":"R855","v":1}]
[28,null,{"$f":"'FR-16(7)(v)-1 Functional'!C856","v":"DISTRIBUTION CUSTOMERS"},"External",null,{"$f":"'WP FR-16(7)(v)-KW & KWH @Dist'!H39","v":142392},{"$f":"'WP FR-16(7)(v)-KW & KWH @Dist'!$H18","v":128431},{"$f":"'WP FR-16(7)(v)-KW & KWH @Dist'!$H19+'WP FR-16(7)(v)-KW & KWH @Dist'!$H32","v":12972},{"$f":"'WP FR-16(7)(v)-KW & KWH @Dist'!$H20","v":172},{"$f":"'WP FR-16(7)(v)-KW & KWH @Dist'!$H21","v":103},{"$f":"'WP FR-16(7)(v)-KW & KWH @Dist'!$H22","v":14},{"$f":"'WP FR-16(7)(v)-KW & KWH @Dist'!$H23+'WP FR-16(7)(v)-KW & KWH @Dist'!$H33","v":159},{"$f":"'WP FR-16(7)(v)-KW & KWH @Dist'!$H24","v":37},{"$f":"'WP FR-16(7)(v)-KW & KWH @Dist'!$H25","v":10},{"$f":"'WP FR-16(7)(v)-KW & KWH @Dist'!$H26+'WP FR-16(7)(v)-KW & KWH @Dist'!$H36","v":15},{"$f":"'WP FR-16(7)(v)-KW & KWH @Dist'!$H27","v":468},{"$f":"'WP FR-16(7)(v)-KW & KWH @Dist'!$H28","v":11},142392,0]
[29,null,{"$f":"'FR-16(7)(v)-1 Functional'!C857","v":"RATIO TO TOTAL ELECTRIC"},null,{"$f":"'FR-16(7)(v)-1 Functional'!E857","v":"K405"},{"$f":"IF($F856=0,0,ROUND(F856/$F856,9))","v":1},{"$f":"IF(S856=0,F857-SUM(H857:Q857),ROUND(G856/F856,5))","v":0.90193999999999996},{"$f":"IF($F$856=0,0,ROUND(H856/$F$856,5))","v":9.11E-2},{"$f":"IF($F$856=0,0,ROUND(I856/$F$856,5))","v":1.2099999999999999E-3},7.2000000000000005E-4,1E-4,1.1199999999999999E-3,2.5999999999999998E-4,6.9999999999999994E-5,1.1E-4,3.29E-3,{"$f":"IF(G856=0,0,ROUND(Q856/F856,5))","v":8.0000000000000007E-5},1.0000000000000002,0,null,null,null,{"$f":"R857","v":1.0000000000000002}]
[{"$f":"'FR-16(7)(v)-11 DIST Demand'!A858","v":"28A"},null,{"$f":"'FR-16(7)(v)-11 DIST Demand'!C858","v":"DISTRIBUTION CUSTOMERS"},{"$f":"'FR-16(7)(v)-11 DIST Demand'!D858","v":"External"},null,{"$f":"'FR-16(7)(v)-11 DIST Demand'!F858","v":142377},{"$f":"'FR-16(7)(v)-11 DIST Demand'!G858","v":128431},{"$f":"'FR-16(7)(v)-11 DIST Demand'!H858","v":12972},{"$f":"'FR-16(7)(v)-11 DIST Demand'!I858","v":172},{"$f":"'FR-16(7)(v)-11 DIST Demand'!J858","v":103},{"$f":"'FR-16(7)(v)-11 DIST Demand'!K858","v":14},{"$f":"'FR-16(7)(v)-11 DIST Demand'!L858","v":159},{"$f":"'FR-16(7)(v)-11 DIST Demand'!M858","v":37},{"$f":"'FR-16(7)(v)-11 DIST Demand'!N858","v":10},{"$f":"'FR-16(7)(v)-11 DIST Demand'!O858","v":0},{"$f":"'FR-16(7)(v)-11 DIST Demand'!P858","v":468},{"$f":"'FR-16(7)(v)-11 DIST Demand'!Q858","v":11},{"$f":"'FR-16(7)(v)-11 DIST Demand'!R858","v":142377},{"$f":"'FR-16(7)(v)-11 DIST Demand'!S858","v":0}]
[{"$f":"'FR-16(7)(v)-11 DIST Demand'!A859","v":"29A"},null,{"$f":"'FR-16(7)(v)-11 DIST Demand'!C859","v":"RATIO TO TOTAL ELECTRIC"},null,{"$f":"'FR-16(7)(v)-11 DIST Demand'!E859","v":"K406"},{"$f":"'FR-16(7)(v)-11 DIST Demand'!F859","v":1},{"$f":"'FR-16(7)(v)-11 DIST Demand'!G859","v":0.90205000000000002},{"$f":"'FR-16(7)(v)-11 DIST Demand'!H859","v":9.11E-2},{"$f":"'FR-16(7)(v)-11 DIST Demand'!I859","v":1.2099999999999999E-3},{"$f":"'FR-16(7)(v)-11 DIST Demand'!J859","v":7.2000000000000005E-4},{"$f":"'FR-16(7)(v)-11 DIST Demand'!K859","v":1E-4},{"$f":"'FR-16(7)(v)-11 DIST Demand'!L859","v":1.1199999999999999E-3},{"$f":"'FR-16(7)(v)-11 DIST Demand'!M859","v":2.5999999999999998E-4},{"$f":"'FR-16(7)(v)-11 DIST Demand'!N859","v":6.9999999999999994E-5},{"$f":"'FR-16(7)(v)-11 DIST Demand'!O859","v":0},{"$f":"'FR-16(7)(v)-11 DIST Demand'!P859","v":3.29E-3},{"$f":"'FR-16(7)(v)-11 DIST Demand'!Q859","v":8.0000000000000007E-5},{"$f":"'FR-16(7)(v)-11 DIST Demand'!R859","v":1.0000000000000002},{"$f":"'FR-16(7)(v)-11 DIST Demand'!S859","v":0}]
[30,null,{"$f":"'FR-16(7)(v)-1 Functional'!C858","v":"METERS"},"External",null,{"$f":"'WP FR-16(7)(v) Meters'!E40","v":15813241},{"$f":"'WP FR-16(7)(v) Meters'!$E19","v":12782441},{"$f":"'WP FR-16(7)(v) Meters'!$E20","v":2892747},{"$f":"'WP FR-16(7)(v) Meters'!$E21","v":0},{"$f":"'WP FR-16(7)(v) Meters'!$E22","v":22093},{"$f":"'WP FR-16(7)(v) Meters'!$E23","v":3451},{"$f":"'WP FR-16(7)(v) Meters'!$E24","v":102877},{"$f":"'WP FR-16(7)(v) Meters'!$E25","v":0},{"$f":"'WP FR-16(7)(v) Meters'!$E26","v":3805},{"$f":"'WP FR-16(7)(v) Meters'!$E27","v":3619},{"$f":"'WP FR-16(7)(v) Meters'!$E28","v":0},{"$f":"'WP FR-16(7)(v) Meters'!$E29","v":2208},15813241,0]
[31,null,{"$f":"'FR-16(7)(v)-1 Functional'!C859","v":"RATIO TO TOTAL ELECTRIC"},null,{"$f":"'FR-16(7)(v)-1 Functional'!E859","v":"K407"},{"$f":"IF($F860=0,0,ROUND(F860/$F860,9))","v":1},{"$f":"IF(S860=0,F861-SUM(H861:Q861),ROUND(G860/F860,5))","v":0.80832999999999999},{"$f":"IF($F$860=0,0,ROUND(H860/$F$860,5))","v":0.18293000000000001},{"$f":"IF($F$860=0,0,ROUND(I860/$F$860,5))","v":0},1.4E-3,2.2000000000000001E-4,6.5100000000000002E-3,0,2.4000000000000001E-4,2.3000000000000001E-4,0,1.3999999999999999E-4,1,0,null,null,null,{"$f":"R861","v":1}]
[32,null,{"$f":"'FR-16(7)(v)-1 Functional'!C860","v":"WEIGHTED CUSTOMER"},"External",null,{"$f":"'WP FR-16(7)(v) Meters'!H40","v":156470},{"$f":"'WP FR-16(7)(v) Meters'!H19","v":128431},{"$f":"'WP FR-16(7)(v) Meters'!H20+'WP FR-16(7)(v) Meters'!H33","v":25940},{"$f":"'WP FR-16(7)(v) Meters'!H21","v":172},{"$f":"'WP FR-16(7)(v) Meters'!H22","v":206},{"$f":"'WP FR-16(7)(v) Meters'!H23","v":28},{"$f":"'WP FR-16(7)(v) Meters'!H24+'WP FR-16(7)(v) Meters'!H34","v":1089},{"$f":"'WP FR-16(7)(v) Meters'!H25+'WP FR-16(7)(v) Meters'!H35","v":37},{"$f":"'WP FR-16(7)(v) Meters'!H26+'WP FR-16(7)(v) Meters'!H36","v":40},{"$f":"'WP FR-16(7)(v) Meters'!H27+'WP FR-16(7)(v) Meters'!H37","v":37},{"$f":"'WP FR-16(7)(v) Meters'!H28","v":468},{"$f":"'WP FR-16(7)(v) Meters'!H29","v":22},156470,0]
[33,null,{"$f":"'FR-16(7)(v)-1 Functional'!C861","v":"RATIO TO TOTAL ELECTRIC"},null,{"$f":"'FR-16(7)(v)-1 Functional'!E861","v":"K409"},{"$f":"IF($F862=0,0,ROUND(F862/$F862,9))","v":1},{"$f":"IF(S862=0,F863-SUM(H863:Q863),ROUND(G862/F862,5))","v":0.82079000000000002},{"$f":"IF($F$862=0,0,ROUND(H862/$F$862,5))","v":0.16578000000000001},{"$f":"IF($F$862=0,0,ROUND(I862/$F$862,5))","v":1.1000000000000001E-3},1.32E-3,1.8000000000000001E-4,6.96E-3,2.4000000000000001E-4,2.5999999999999998E-4,2.4000000000000001E-4,2.99E-3,1.3999999999999999E-4,1,0,null,null,null,{"$f":"R863","v":1}]
[34,null,{"$f":"'FR-16(7)(v)-1 Functional'!C862","v":"UNCOLLECTIBLE ACCOUNT 904"},"External",null,{"$f":"'WP FR-16(7)(v) CustAcct'!G31","v":5781023.7599999998},{"$f":"'WP FR-16(7)(v) CustAcct'!G17","v":5267443},{"$f":"'WP FR-16(7)(v) CustAcct'!G19","v":249785.75999999978},{"$f":"'WP FR-16(7)(v) CustAcct'!G20","v":1597},{"$f":"'WP FR-16(7)(v) CustAcct'!G21","v":1664},{"$f":"'WP FR-16(7)(v) CustAcct'!G22","v":82},{"$f":"'WP FR-16(7)(v) CustAcct'!G23","v":129741},{"$f":"'WP FR-16(7)(v) CustAcct'!G24","v":82815},{"$f":"'WP FR-16(7)(v) CustAcct'!G25","v":3765},{"$f":"'WP FR-16(7)(v) CustAcct'!G26","v":38893},{"$f":"'WP FR-16(7)(v) CustAcct'!G27","v":5192},{"$f":"'WP FR-16(7)(v) CustAcct'!G28","v":46},5781023.7599999998,0]
[35,null,{"$f":"'FR-16(7)(v)-1 Functional'!C863","v":"RATIO TO TOTAL ELECTRIC"},null,{"$f":"'FR-16(7)(v)-1 Functional'!E863","v":"K411"},{"$f":"IF($F864=0,0,ROUND(F864/$F864,9))","v":1},{"$f":"IF(S864=0,F865-SUM(H865:Q865),ROUND(G864/F864,5))","v":0.91115000000000002},{"$f":"IF($F$864=0,0,ROUND(H864/$F$864,5))","v":4.3209999999999998E-2},{"$f":"IF($F$864=0,0,ROUND(I864/$F$864,5))","v":2.7999999999999998E-4},2.9E-4,1.0000000000000001E-5,2.2440000000000002E-2,1.4330000000000001E-2,6.4999999999999997E-4,6.7299999999999999E-3,8.9999999999999998E-4,1.0000000000000001E-5,0.99999999999999989,0,null,null,null,{"$f":"R865","v":0.99999999999999989}]
[36,null,{"$f":"'FR-16(7)(v)-1 Functional'!C864","v":"KWH SALES LESS RTP"},"External",null,{"$f":"'WP FR-16(7)(v)-KW & KWH @Gen'!F28","v":4244213606},{"$f":"'WP FR-16(7)(v)-KW & KWH @Gen'!F17","v":1608724299},{"$f":"'WP FR-16(7)(v)-KW & KWH @Gen'!F18","v":1146956880},{"$f":"'WP FR-16(7)(v)-KW & KWH @Gen'!F19","v":6420710},{"$f":"'WP FR-16(7)(v)-KW & KWH @Gen'!F20","v":18228802},{"$f":"'WP FR-16(7)(v)-KW & KWH @Gen'!F21","v":298034},{"$f":"'WP FR-16(7)(v)-KW & KWH @Gen'!F22","v":700889249},{"$f":"'WP FR-16(7)(v)-KW & KWH @Gen'!F23","v":488455966},{"$f":"'WP FR-16(7)(v)-KW & KWH @Gen'!F24","v":22905598},{"$f":"'WP FR-16(7)(v)-KW & KWH @Gen'!F25","v":232255694},{"$f":"'WP FR-16(7)(v)-KW & KWH @Gen'!F26","v":18599129},{"$f":"'WP FR-16(7)(v)-KW & KWH @Gen'!F27","v":479245},{"$f":"SUM(G866:Q866)","v":4244213606},{"$f":"F866-R866","v":0}]
[37,null,{"$f":"'FR-16(7)(v)-1 Functional'!C865","v":"RATIO TO TOTAL ELECTRIC"},null,{"$f":"'FR-16(7)(v)-1 Functional'!E865","v":"K302"},{"$f":"IF($F866=0,0,ROUND(F866/$F866,9))","v":1},{"$f":"IF(S866=0,F867-SUM(H867:Q867),ROUND(G866/F865,5))","v":0.37904999999999989},{"$f":"IF(F866=0,0,ROUND(H866/F866,5))","v":0.27023999999999998},{"$f":"IF(F866=0,0,ROUND(I866/F866,5))","v":1.5100000000000001E-3},{"$f":"IF(F866=0,0,ROUND(J866/F866,5))","v":4.2900000000000004E-3},{"$f":"IF(F866=0,0,ROUND(K866/F866,5))","v":6.9999999999999994E-5},{"$f":"IF(F866=0,0,ROUND(L866/F866,5))","v":0.16514000000000001},{"$f":"IF(F866=0,0,ROUND(M866/F866,5))","v":0.11509},{"$f":"IF(F866=0,0,ROUND(N866/F866,5))","v":5.4000000000000003E-3},{"$f":"IF(F866=0,0,ROUND(O866/F866,5))","v":5.4719999999999998E-2},{"$f":"IF(F866=0,0,ROUND(P866/F866,5))","v":4.3800000000000002E-3},{"$f":"IF(F866=0,0,ROUND(Q866/F866,5))","v":1.1E-4},{"$f":"SUM(G867:Q867)","v":1},{"$f":"F867-R867","v":0}]
[38]
[39,null,"PRESENT REVENUES",{"$f":"'FR-16(7)(v)-1 Functional'!$D$867","v":"CS09"},{"$f":"'FR-16(7)(v)-1 Functional'!E867","v":"R600"},{"$f":"'FR-16(7)(v)-10 DIST Classified'!H869","v":0},{"$f":"F869-SUM(H869:Q869)","v":0},{"$f":"ROUND(F869*VLOOKUP(D869,ALLOCTABLE_Distr_Energy,$H$10,FALSE),0)","v":0},{"$f":"ROUND($F$869*VLOOKUP(D869,ALLOCTABLE_Distr_Energy,I10,FALSE),0)","v":0},{"$f":"ROUND($F$869*VLOOKUP(D869,ALLOCTABLE_Distr_Energy,J10,FALSE),0)","v":0},{"$f":"ROUND($F$869*VLOOKUP(D869,ALLOCTABLE_Distr_Energy,K10,FALSE),0)","v":0},{"$f":"ROUND($F$869*VLOOKUP(D869,ALLOCTABLE_Distr_Energy,L10,FALSE),0)","v":0},{"$f":"ROUND($F$869*VLOOKUP(D869,ALLOCTABLE_Distr_Energy,M10,FALSE),0)","v":0},{"$f":"ROUND($F$869*VLOOKUP(D869,ALLOCTABLE_Distr_Energy,N10,FALSE),0)","v":0},{"$f":"ROUND($F$869*VLOOKUP(D869,ALLOCTABLE_Distr_Energy,O10,FALSE),0)","v":0},{"$f":"ROUND($F$869*VLOOKUP(D869,ALLOCTABLE_Distr_Energy,P10,FALSE),0)","v":0},{"$f":"ROUND($F$869*VLOOKUP(D869,ALLOCTABLE_Distr_Energy,Q10,FALSE),0)","v":0},{"$f":"SUM(G869:Q869)","v":0},{"$f":"F869-R869","v":0}]
[40,null,"PROPOSED REVENUES",{"$f":"'FR-16(7)(v)-1 Functional'!$D$868","v":"A357"},{"$f":"'FR-16(7)(v)-1 Functional'!E868","v":"R602"},{"$f":"'FR-16(7)(v)-10 DIST Classified'!H870","v":0},{"$f":"F870-SUM(H870:Q870)","v":0},{"$f":"ROUND(F870*VLOOKUP(D870,ALLOCTABLE_Distr_Energy,$H$10,FALSE),0)","v":0},{"$f":"ROUND($F$870*VLOOKUP(D870,ALLOCTABLE_Distr_Energy,I10,FALSE),0)","v":0},{"$f":"ROUND($F$870*VLOOKUP(D870,ALLOCTABLE_Distr_Energy,J10,FALSE),0)","v":0},{"$f":"ROUND($F$870*VLOOKUP(D870,ALLOCTABLE_Distr_Energy,K10,FALSE),0)","v":0},{"$f":"ROUND($F$870*VLOOKUP(D870,ALLOCTABLE_Distr_Energy,L10,FALSE),0)","v":0},{"$f":"ROUND($F$870*VLOOKUP(D870,ALLOCTABLE_Distr_Energy,M10,FALSE),0)","v":0},{"$f":"ROUND($F$870*VLOOKUP(D870,ALLOCTABLE_Distr_Energy,N10,FALSE),0)","v":0},{"$f":"ROUND($F$870*VLOOKUP(D870,ALLOCTABLE_Distr_Energy,O10,FALSE),0)","v":0},{"$f":"ROUND($F$870*VLOOKUP(D870,ALLOCTABLE_Distr_Energy,P10,FALSE),0)","v":0},{"$f":"ROUND($F$870*VLOOKUP(D870,ALLOCTABLE_Distr_Energy,Q10,FALSE),0)","v":0},{"$f":"SUM(G870:Q870)","v":0},{"$f":"F870-R870","v":0}]
[]
[{"$f":"co_name","v":"DUKE ENERGY KENTUCKY, INC."},null,null,null,null,null,null,null,null,null,null,null,null,null,null,null,null,{"$f":"R1","v":"FR-16(7)(v)-12"}]
[{"$f":"$A$2","v":"DISTRIBUTION ENERGY ALLOCATED - ELECTRIC COST OF SERVICE"},null,null,null,null,null,null,null,null,null,null,null,null,null,null,null,null,{"$f":"R2","v":"WITNESS RESPONSIBLE:"}]
[{"$f":"case_name","v":"CASE NO: 2019-00271"},null,null,null,null,null,null,null,null,null,null,null,null,null,null,null,null,{"$f":"Witness","v":"JAMES E. ZIOLKOWSKI"}]
[{"$f":"data_filing","v":"DATA: 12 MONTHS ACTUAL  & 0 MONTHS ESTIMATED"},null,null,null,null,null,null,null,null,null,null,null,null,null,null,null,null,{"$f":"\"PAGE \"&Pages-1&\" OF \"&Pages","v":"PAGE 17 OF 18"}]
[{"$f":"type","v":"TYPE OF FILING: \"X\" ORIGINAL   UPDATED    REVISED  "}]
[]
[null,null,null,null,null,{"$f":"F$7","v":"TOTAL"},null,{"$f":"H$7","v":"DS"},{"$f":"I$7","v":"GSFL"},{"$f":"J$7","v":"EH"},{"$f":"K$7","v":"SP"},"DT SEC","DT PRI","DP","TT",null,"OTHER"]
["LINE",null,null,null,null,{"$f":"F$8","v":"DISTRIBUTION"},{"$f":"G$8","v":"RS"},{"$f":"H$8","v":"SECONDARY"},{"$f":"I$8","v":"SECONDARY"},{"$f":"J$8","v":"SECONDARY"},{"$f":"K$8","v":"SECONDARY"},"SECONDARY","PRIMARY","PRIMARY","TRANSMISSION","LT","WATER",{"$f":"R8","v":"TOTAL"},"ALL"]
["NO.","ALLOCATORS",null,"SOURCE","ALLO",{"$f":"F$9","v":"ENERGY"},{"$f":"G$9","v":"RESIDENTIAL"},{"$f":"H$9","v":"DISTRIBUTION"},{"$f":"I$9","v":"DISTRIBUTION"},{"$f":"J$9","v":"DISTRIBUTION"},{"$f":"K$9","v":"DISTRIBUTION"},"DISTRIBUTION","DISTRIBUTION","DISTRIBUTION","TIME OF DAY","LIGHTING","PUMPING",{"$f":"R9","v":"AT ISSUE"},"OTHER"]
[null,null,"Schedule 12.1",null,1,null,{"$f":"G$10","v":3},{"$f":"H$10","v":4},{"$f":"I$10","v":5},{"$f":"J$10","v":6},{"$f":"K$10","v":7},8,9,10,11,12,13,null," "]
[]
[1,null,{"$f":"'FR-16(7)(v)-1 Functional'!C881","v":"PRESENT REVENUES"},"Internal",null,{"$f":"'FR-16(7)(v)-3 PROD Demand'!F881","v":309580654},{"$f":"'FR-16(7)(v)-3 PROD Demand'!G881","v":123883637},{"$f":"'FR-16(7)(v)-3 PROD Demand'!H881","v":90318223},{"$f":"'FR-16(7)(v)-3 PROD Demand'!I881","v":577046},{"$f":"'FR-16(7)(v)-3 PROD Demand'!J881","v":600937},{"$f":"'FR-16(7)(v)-3 PROD Demand'!K881","v":29960},{"$f":"'FR-16(7)(v)-3 PROD Demand'!L881","v":46910116},{"$f":"'FR-16(7)(v)-3 PROD Demand'!M881","v":29943872},{"$f":"'FR-16(7)(v)-3 PROD Demand'!N881","v":1361377},{"$f":"'FR-16(7)(v)-3 PROD Demand'!O881","v":14062168},{"$f":"'FR-16(7)(v)-3 PROD Demand'!P881","v":1876470},{"$f":"'FR-16(7)(v)-3 PROD Demand'!Q881","v":16848},{"$f":"SUM(G883:Q883)","v":309580654},{"$f":"F883-R883","v":0}]
[2,null,{"$f":"'FR-16(7)(v)-1 Functional'!C882","v":"RATIO TO TOTAL ELECTRIC"},null,{"$f":"'FR-16(7)(v)-1 Functional'!E882","v":"K901"},{"$f":"IF($F883=0,0,ROUND(F883/$F883,9))","v":1},{"$f":"IF(S883=0,F884-SUM(H884:Q884),ROUND(G883/F883,5))","v":0.40016595199999994},{"$f":"IF($F$883=0,0,ROUND(H883/$F$883,9))","v":0.29174375699999999},{"$f":"IF($F$883=0,0,ROUND(I883/$F$883,9))","v":1.86396E-3},1.9411319999999999E-3,9.6775999999999996E-5,0.151527931,9.6723977000000003E-2,4.3974870000000003E-3,4.5423277999999997E-2,6.0613280000000004E-3,5.4422000000000002E-5,{"$f":"SUM(G884:Q884)","v":1},{"$f":"F884-R884","v":0},null,null,null,{"$f":"R884","v":1}]
[3,null,{"$f":"'FR-16(7)(v)-1 Functional'!C883","v":"PROPOSED REVENUES"},"Internal",null,{"$f":"'FR-16(7)(v)-3 PROD Demand'!F883","v":355094168},{"$f":"'FR-16(7)(v)-3 PROD Demand'!G883","v":147195469},{"$f":"'FR-16(7)(v)-3 PROD Demand'!H883","v":101595371},{"$f":"'FR-16(7)(v)-3 PROD Demand'!I883","v":649414},{"$f":"'FR-16(7)(v)-3 PROD Demand'!J883","v":676300},{"$f":"'FR-16(7)(v)-3 PROD Demand'!K883","v":33717},{"$f":"'FR-16(7)(v)-3 PROD Demand'!L883","v":52518255},{"$f":"'FR-16(7)(v)-3 PROD Demand'!M883","v":33522516},{"$f":"'FR-16(7)(v)-3 PROD Demand'!N883","v":1546768},{"$f":"'FR-16(7)(v)-3 PROD Demand'!O883","v":15232520},{"$f":"'FR-16(7)(v)-3 PROD Demand'!P883","v":2104877},{"$f":"'FR-16(7)(v)-3 PROD Demand'!Q883","v":18961},{"$f":"SUM(G885:Q885)","v":355094168},{"$f":"F885-R885","v":0}]
[4,null,{"$f":"'FR-16(7)(v)-1 Functional'!C884","v":"RATIO TO TOTAL ELECTRIC"},null,{"$f":"'FR-16(7)(v)-1 Functional'!E884","v":"K902"},{"$f":"IF($F885=0,0,ROUND(F885/$F885,9))","v":1},{"$f":"IF(S885=0,F886-SUM(H886:Q886),ROUND(G885/F885,5))","v":0.41452516699999997},{"$f":"IF($F$885=0,0,ROUND(H885/$F$885,9))","v":0.28610825000000001},{"$f":"IF($F$885=0,0,ROUND(I885/$F$885,9))","v":1.8288499999999999E-3},1.904565E-3,9.4951999999999995E-5,0.14789951400000001,9.4404581000000001E-2,4.3559369999999998E-3,4.2897128E-2,5.9276590000000001E-3,5.3396999999999997E-5,{"$f":"SUM(G886:Q886)","v":1},{"$f":"F886-R886","v":0}]
[5]
[6,"WEIGHTED RATIOS"]
[7,"GROSS ELECTRIC PLANT IN SERVICE"]
[8,null,{"$f":"'FR-16(7)(v)-1 Functional'!C888","v":"WTD GROSS PROD PLANT RATIOS"},"Internal",{"$f":"'FR-16(7)(v)-1 Functional'!E888","v":"P129"},0,{"$f":"IF(F890=0,0,F890-SUM(H890:Q890))","v":0},{"$f":"ROUND(IF($F$62=0,0,H62/$F$62),5)","v":0},0,0,0,{"$f":"ROUND(IF($F$62=0,0,L62/$F$62),5)","v":0},0,0,0,0,0,{"$f":"SUM(G890:Q890)","v":0},{"$f":"F890-R890","v":0},null,null,null,{"$f":"R890","v":0}]
[9,null,{"$f":"'FR-16(7)(v)-1 Functional'!C889","v":"WTD GROSS TRANS PLANT RATIOS"},"Internal",{"$f":"'FR-16(7)(v)-1 Functional'!E889","v":"T129"},0,0,{"$f":"ROUND(IF($F$68=0,0,H68/$F$68),5)","v":0},0,0,0,0,0,0,0,0,0,0,0,null,null,null,0]
[10,null,{"$f":"'FR-16(7)(v)-1 Functional'!C890","v":"WTD GROSS P & T PLT RATIOS"},"Internal",{"$f":"'FR-16(7)(v)-1 Functional'!E890","v":"PT29"},0,0,{"$f":"ROUND(IF($F$70=0,0,H70/$F$70),5)","v":0},0,0,0,{"$f":"ROUND(IF($F$70=0,0,L70/$F$70),5)","v":0},0,0,0,0,0,0,0]
[11,null,{"$f":"'FR-16(7)(v)-1 Functional'!C891","v":"WTD GROSS DIST PLANT RATIOS"},"Internal",{"$f":"'FR-16(7)(v)-1 Functional'!E891","v":"D149"},1,1,{"$f":"ROUND(IF($F$94=0,0,H94/$F$94),5)","v":0},0,0,0,{"$f":"ROUND(IF($F$94=0,0,L94/$F$94),5)","v":0},0,0,0,0,0,1,0]
[12,null,{"$f":"'FR-16(7)(v)-1 Functional'!C892","v":"WTD GROSS TRANS & DIST RATIOS"},"Internal",{"$f":"'FR-16(7)(v)-1 Functional'!E892","v":"TD29"},1,1,{"$f":"ROUND(IF($F$97=0,0,H97/$F$97),5)","v":0},0,0,0,{"$f":"ROUND(IF($F$97=0,0,L97/$F$97),5)","v":0},0,0,0,0,0,1,0,null,null,null,1]
[13,null,{"$f":"'FR-16(7)(v)-1 Functional'!C893","v":"WTD GROSS PTD PLT RATIOS"},"Internal",{"$f":"'FR-16(7)(v)-1 Functional'!E893","v":"PD29"},1,1,{"$f":"ROUND(IF($F$109=0,0,H109/$F$109),5)","v":0},0,0,0,{"$f":"ROUND(IF($F$109=0,0,L109/$F$109),5)","v":0},0,0,0,0,0,1,0,null,null,null,1]
[14,null,{"$f":"'FR-16(7)(v)-1 Functional'!C894","v":"WTD GROSS G & I PLT RATIOS"},"Internal",{"$f":"'FR-16(7)(v)-1 Functional'!E894","v":"G129"},1,1,{"$f":"ROUND(IF($F$121=0,0,H121/$F$121),5)","v":0},0,0,0,{"$f":"ROUND(IF($F$121=0,0,L121/$F$121),5)","v":0},0,0,0,0,0,1,0,null,null,null,1]
[15,null,{"$f":"'FR-16(7)(v)-1 Functional'!C895","v":"WTD GROSS C & O PLANT RATIOS"},"Internal",{"$f":"'FR-16(7)(v)-1 Functional'!E895","v":"C129"},1,1,{"$f":"ROUND(IF($F$123=0,0,H123/$F$123),5)","v":0},0,0,0,{"$f":"ROUND(IF($F$123=0,0,L123/$F$123),5)","v":0},0,0,0,0,0,1,0,null,null,null,1]
[16,null,{"$f":"'FR-16(7)(v)-1 Functional'!C896","v":"WTD GROSS PLANT RATIOS"},"Internal",{"$f":"'FR-16(7)(v)-1 Functional'!E896","v":"GP19"},1,1,{"$f":"ROUND(IF($F$171=0,0,H171/$F$171),5)","v":0},0,0,0,{"$f":"ROUND(IF($F$171=0,0,L171/$F$171),5)","v":0},0,0,0,0,0,1,0,null,null,null,1]
[17,null,{"$f":"'FR-16(7)(v)-1 Functional'!C897","v":"WTD TOTAL DEPRC RES RATIOS"},"Internal",{"$f":"'FR-16(7)(v)-1 Functional'!E897","v":"DR19"},1,1,{"$f":"ROUND(IF($F$200=0,0,H200/$F$200),5)","v":0},0,0,0,{"$f":"ROUND(IF($F$200=0,0,L200/$F$200),5)","v":0},0,0,0,0,0,1,0,null,null,null,1]
[18]
[19,"NET ELECTRIC PLANT"]
[20,null,{"$f":"'FR-16(7)(v)-1 Functional'!C900","v":"WTD NET PROD PLANT RATIOS"},"Internal",{"$f":"'FR-16(7)(v)-1 Functional'!E900","v":"P229"},0,{"$f":"IF(F902=0,0,F902-SUM(H902:Q902))","v":0},{"$f":"ROUND(IF($F$216=0,0,H216/$F$216),5)","v":0},0,0,0,{"$f":"ROUND(IF($F$216=0,0,L216/$F$216),5)","v":0},0,0,0,0,0,{"$f":"SUM(G902:Q902)","v":0},{"$f":"F902-R902","v":0},null,null,null,{"$f":"R902","v":0}]
[21,null,{"$f":"'FR-16(7)(v)-1 Functional'!C901","v":"WTD NET TRANS PLANT RATIOS"},"Internal",{"$f":"'FR-16(7)(v)-1 Functional'!E901","v":"T229"},0,0,{"$f":"ROUND(IF($F$222=0,0,H222/$F$222),5)","v":0},0,0,0,0,0,0,0,0,0,0,0,null,null,null,{"$f":"R903","v":0}]
[22,null,{"$f":"'FR-16(7)(v)-1 Functional'!C902","v":"WTD NET DIST LINES  - POLES, TOWERS & FIXTURES"},"Internal",{"$f":"'FR-16(7)(v)-1 Functional'!E902","v":"PL49"},0,0,{"$f":"ROUND(IF(SUM($F$228:$F$231)=0,0,SUM(H228:H231)/SUM($F$228:$F$231)),5)","v":0},{"$f":"ROUND(IF(SUM($F$228:$F$231)=0,0,SUM(I228:I231)/SUM($F$228:$F$231)),5)","v":0},0,0,0,0,0,0,0,0,0,0,null,null,null,{"$f":"R904","v":0}]
[23,null,{"$f":"'FR-16(7)(v)-1 Functional'!C903","v":"WTD NET TOTAL DIST PLANT RATIOS"},"Internal",{"$f":"'FR-16(7)(v)-1 Functional'!E903","v":"D249"},1,1,{"$f":"ROUND(IF($F$248=0,0,H248/$F$248),5)","v":0},0,0,0,{"$f":"ROUND(IF($F$248=0,0,L248/$F$248),5)","v":0},0,0,0,0,0,1,0]
[24,null,{"$f":"'FR-16(7)(v)-1 Functional'!C904","v":"WTD NET TRANS & DIST RATIOS"},"Internal",{"$f":"'FR-16(7)(v)-1 Functional'!E904","v":"NT29"},1,1,{"$f":"ROUND(IF($F$251=0,0,H251/$F$251),5)","v":0},0,0,0,{"$f":"ROUND(IF($F$251=0,0,L251/$F$251),5)","v":0},0,0,0,0,0,1,0]
[25,null,{"$f":"'FR-16(7)(v)-1 Functional'!C905","v":"WTD NET G & I PLT RATIOS"},"Internal",{"$f":"'FR-16(7)(v)-1 Functional'!E905","v":"G229"},1,1,{"$f":"ROUND(IF($F$263=0,0,H263/$F$263),5)","v":0},0,0,0,{"$f":"ROUND(IF($F$263=0,0,L263/$F$263),5)","v":0},0,0,0,0,0,1,0]
[26,null,{"$f":"'FR-16(7)(v)-1 Functional'!C906","v":"WTD NET C & O PLANT RATIOS"},"Internal",{"$f":"'FR-16(7)(v)-1 Functional'!E906","v":"C229"},1,1,{"$f":"ROUND(IF($F$275=0,0,H275/$F$275),5)","v":0},0,0,0,{"$f":"ROUND(IF($F$275=0,0,L275/$F$275),5)","v":0},0,0,0,0,0,1,0]
[27,null,{"$f":"'FR-16(7)(v)-1 Functional'!C907","v":"WTD NET PLANT RATIOS"},"Internal",{"$f":"'FR-16(7)(v)-1 Functional'!E907","v":"NP29"},1,1,{"$f":"ROUND(IF($F$277=0,0,H277/$F$277),5)","v":0},0,0,0,{"$f":"ROUND(IF($F$277=0,0,L277/$F$277),5)","v":0},0,0,0,0,0,1,0]
[28]
[29,"WORKING CAPITAL"]
[30,null,{"$f":"'FR-16(7)(v)-1 Functional'!C910","v":"WTD MATERIAL & SUPPLY RATIOS"},"Internal",{"$f":"'FR-16(7)(v)-1 Functional'!E910","v":"W669"},1,{"$f":"IF(F912=0,0,F912-SUM(H912:Q912))","v":1},{"$f":"ROUND(IF($F$399=0,0,H399/$F$399),5)","v":0},0,0,0,{"$f":"ROUND(IF($F$399=0,0,L399/$F$399),5)","v":0},0,0,0,0,0,{"$f":"SUM(G912:Q912)","v":1},{"$f":"F912-R912","v":0},null,null,null,{"$f":"R912","v":1}]
[31,null,{"$f":"'FR-16(7)(v)-1 Functional'!C911","v":"WTD PREPAYMENTS RATIOS"},"Internal",{"$f":"'FR-16(7)(v)-1 Functional'!E911","v":"W689"},1,{"$f":"IF(F913=0,0,F913-SUM(H913:Q913))","v":1},{"$f":"ROUND(IF($F$405=0,0,H405/$F$405),5)","v":0},0,0,0,{"$f":"ROUND(IF($F$405=0,0,L405/$F$405),5)","v":0},0,0,0,0,0,{"$f":"SUM(G913:Q913)","v":1},{"$f":"F913-R913","v":0},null,null,null,{"$f":"R913","v":1}]
[32,null,{"$f":"'FR-16(7)(v)-1 Functional'!C912","v":"WTD TOTAL WORKING CASH RATIOS"},"Internal",{"$f":"'FR-16(7)(v)-1 Functional'!E912","v":"W719"},1,{"$f":"IF(F914=0,0,F914-SUM(H914:Q914))","v":1},{"$f":"ROUND(IF($F$408=0,0,H408/$F$408),5)","v":0},0,0,0,{"$f":"ROUND(IF($F$408=0,0,L408/$F$408),5)","v":0},0,0,0,0,0,{"$f":"SUM(G914:Q914)","v":1},{"$f":"F914-R914","v":0},null,null,null,{"$f":"R914","v":1}]
[33,null,{"$f":"'FR-16(7)(v)-1 Functional'!C913","v":"WTD TOTAL MISC WRKNG CAP RATIO"},"Internal",{"$f":"'FR-16(7)(v)-1 Functional'!E913","v":"W749"},1,{"$f":"IF(F915=0,0,F915-SUM(H915:Q915))","v":1},{"$f":"ROUND(IF($F$414=0,0,H414/$F$414),5)","v":0},0,0,0,{"$f":"ROUND(IF($F$414=0,0,L414/$F$414),5)","v":0},0,0,0,0,0,{"$f":"SUM(G915:Q915)","v":1},{"$f":"F915-R915","v":0},null,null,null,{"$f":"R915","v":1}]
[34,null,{"$f":"'FR-16(7)(v)-1 Functional'!C914","v":"WTD TOTAL WRKNG CAP RATIOS"},"Internal",{"$f":"'FR-16(7)(v)-1 Functional'!E914","v":"WC79"},1,{"$f":"IF(F916=0,0,F916-SUM(H916:Q916))","v":1},{"$f":"ROUND(IF($F$416=0,0,H416/$F$416),5)","v":0},0,0,0,{"$f":"ROUND(IF($F$416=0,0,L416/$F$416),5)","v":0},0,0,0,0,0,{"$f":"SUM(G916:Q916)","v":1},{"$f":"F916-R916","v":0}]
[35]
[36,"RATE BASE"]
[37,null,{"$f":"'FR-16(7)(v)-1 Functional'!C917","v":"WTD NET OCRB RATIOS"},"Internal",{"$f":"'FR-16(7)(v)-1 Functional'!E917","v":"RB29"},1,{"$f":"IF(F919=0,0,F919-SUM(H919:Q919))","v":1},{"$f":"ROUND(IF($F$390=0,0,H390/$F$390),5)","v":0},0,0,0,{"$f":"ROUND(IF($F$390=0,0,L390/$F$390),5)","v":0},0,0,0,0,0,{"$f":"SUM(G919:Q919)","v":1},{"$f":"F919-R919","v":0}]
[38,null,{"$f":"'FR-16(7)(v)-1 Functional'!C918","v":"WTD TOTAL RATE BASE RATIOS"},"Internal",{"$f":"'FR-16(7)(v)-1 Functional'!E918","v":"RB99"},1,{"$f":"IF(F920=0,0,F920-SUM(H920:Q920))","v":1},{"$f":"ROUND(IF($F$426=0,0,H426/$F$426),5)","v":0},0,0,0,{"$f":"ROUND(IF($F$426=0,0,L426/$F$426),5)","v":0},0,0,0,0,0,{"$f":"SUM(G920:Q920)","v":1},{"$f":"F920-R920","v":0}]
[39,null,{"$f":"'FR-16(7)(v)-1 Functional'!C919","v":"WTD CWIP RATIO"},"Internal",{"$f":"'FR-16(7)(v)-1 Functional'!E919","v":"CW29"},1,{"$f":"IF(F921=0,0,F921-SUM(H921:Q921))","v":1},{"$f":"ROUND(IF($F$375=0,0,H375/$F$375),5)","v":0},0,0,0,{"$f":"ROUND(IF($F$375=0,0,L375/$F$375),5)","v":0},0,0,0,0,0,{"$f":"SUM(G921:Q921)","v":1},{"$f":"F921-R921","v":0},null,null,null,{"$f":"R921","v":1}]
[]
[{"$f":"co_name","v":"DUKE ENERGY KENTUCKY, INC."},null,null,null,null,null,null,null,null,null,null,null,null,null,null,null,null,{"$f":"R1","v":"FR-16(7)(v)-12"}]
[{"$f":"$A$2","v":"DISTRIBUTION ENERGY ALLOCATED - ELECTRIC COST OF SERVICE"},null,null,null,null,null,null,null,null,null,null,null,null,null,null,null,null,{"$f":"R2","v":"WITNESS RESPONSIBLE:"}]
[{"$f":"case_name","v":"CASE NO: 2019-00271"},null,null,null,null,null,null,null,null,null,null,null,null,null,null,null,null,{"$f":"Witness","v":"JAMES E. ZIOLKOWSKI"}]
[{"$f":"data_filing","v":"DATA: 12 MONTHS ACTUAL  & 0 MONTHS ESTIMATED"},null,null,null,null,null,null,null,null,null,null,null,null,null,null,null,null,{"$f":"\"PAGE \"&Pages&\" OF \"&Pages","v":"PAGE 18 OF 18"}]
[{"$f":"type","v":"TYPE OF FILING: \"X\" ORIGINAL   UPDATED    REVISED  "}]
[]
[null,null,null,null,null,{"$f":"F$7","v":"TOTAL"},null,{"$f":"H$7","v":"DS"},{"$f":"I$7","v":"GSFL"},{"$f":"J$7","v":"EH"},{"$f":"K$7","v":"SP"},"DT SEC","DT PRI","DP","TT",null,"OTHER"]
["LINE",null,null,null,null,{"$f":"F$8","v":"DISTRIBUTION"},{"$f":"G$8","v":"RS"},{"$f":"H$8","v":"SECONDARY"},{"$f":"I$8","v":"SECONDARY"},{"$f":"J$8","v":"SECONDARY"},{"$f":"K$8","v":"SECONDARY"},"SECONDARY","PRIMARY","PRIMARY","TRANSMISSION","LT","WATER",{"$f":"R8","v":"TOTAL"},"ALL"]
["NO.","ALLOCATORS",null,"SOURCE","ALLO",{"$f":"F$9","v":"ENERGY"},{"$f":"G$9","v":"RESIDENTIAL"},{"$f":"H$9","v":"DISTRIBUTION"},{"$f":"I$9","v":"DISTRIBUTION"},{"$f":"J$9","v":"DISTRIBUTION"},{"$f":"K$9","v":"DISTRIBUTION"},"DISTRIBUTION","DISTRIBUTION","DISTRIBUTION","TIME OF DAY","LIGHTING","PUMPING",{"$f":"R9","v":"AT ISSUE"},"OTHER"]
[null,null,"Schedule 12.2",null,1,null,{"$f":"G$10","v":3},{"$f":"H$10","v":4},{"$f":"I$10","v":5},{"$f":"J$10","v":6},{"$f":"K$10","v":7},8,9,10,11,12,13,null," "]
[1,"WEIGHTED O & M EXPENSE RATIOS"]
[2,null,{"$f":"'FR-16(7)(v)-1 Functional'!C932","v":"WTD PROD DEMAND O&M EXP RATIOS"},"Internal",{"$f":"'FR-16(7)(v)-1 Functional'!E932","v":"P349"},1,{"$f":"ROUND(IF($F$457=0,0,G457/$F$457),5)","v":0},{"$f":"ROUND(IF($F$457=0,0,H457/$F$457),5)","v":0},0,0,0,{"$f":"ROUND(IF($F$457=0,0,L457/$F$457),5)","v":0},0,0,0,0,0,{"$f":"SUM(G934:Q934)","v":0},{"$f":"F934-R934","v":1},null,null,null,{"$f":"R934","v":0}]
[3,null,{"$f":"'FR-16(7)(v)-1 Functional'!C933","v":"WTD PROD ENERGY O&M EXP RATIOS"},"Internal",{"$f":"'FR-16(7)(v)-1 Functional'!E933","v":"E349"},1,{"$f":"ROUND(IF($F$453=0,0,G453/$F$453),5)","v":0},{"$f":"ROUND(IF($F$453=0,0,H453/$F$453),5)","v":0},0,0,0,{"$f":"ROUND(IF($F$453=0,0,L453/$F$453),5)","v":0},0,0,0,0,0,0,1,null,null,null,{"$f":"R935","v":0}]
[4,null,{"$f":"'FR-16(7)(v)-1 Functional'!C934","v":"WTD TOTAL PROD O&M EXP RATIOS"},"Internal",{"$f":"'FR-16(7)(v)-1 Functional'!E934","v":"P459"},1,{"$f":"ROUND(IF($F$459=0,0,G459/$F$459),5)","v":0},{"$f":"ROUND(IF($F$459=0,0,H459/$F$459),5)","v":0},0,0,0,{"$f":"ROUND(IF($F$459=0,0,L459/$F$459),5)","v":0},0,0,0,0,0,0,1,null,null,null,{"$f":"R936","v":0}]
[5,null,{"$f":"'FR-16(7)(v)-1 Functional'!C935","v":"WTD TRANS O&M EXP RATIOS"},"Internal",{"$f":"'FR-16(7)(v)-1 Functional'!E935","v":"T349"},1,{"$f":"ROUND(IF($F$466=0,0,G466/$F$466),5)","v":0},{"$f":"ROUND(IF($F$466=0,0,H466/$F$466),5)","v":0},0,0,0,{"$f":"ROUND(IF($F$466=0,0,L466/$F$466),5)","v":0},0,0,0,0,0,0,1,null,null,null,{"$f":"R937","v":0}]
[6,null,{"$f":"'FR-16(7)(v)-1 Functional'!C936","v":"WTD DIST O&M EXP RATIOS"},"Internal",{"$f":"'FR-16(7)(v)-1 Functional'!E936","v":"D349"},1,{"$f":"ROUND(IF($F$492=0,0,G492/$F$492),5)","v":0},{"$f":"ROUND(IF($F$492=0,0,H492/$F$492),5)","v":0},0,0,0,{"$f":"ROUND(IF($F$492=0,0,L492/$F$492),5)","v":0},0,0,0,0,0,0,1]
[7,null,{"$f":"'FR-16(7)(v)-1 Functional'!C937","v":"WTD UNCOLLECTIBLE ACCOUNT O&M"},"Internal",{"$f":"'FR-16(7)(v)-1 Functional'!E937","v":"C311"},1,{"$f":"ROUND(IF($F$496=0,0,G496/$F$496),5)","v":0},{"$f":"ROUND(IF($F$496=0,0,H496/$F$496),5)","v":0},0,0,0,{"$f":"ROUND(IF($F$496=0,0,L496/$F$496),5)","v":0},0,0,0,0,0,0,1,null,null,null,{"$f":"R939","v":0}]
[8,null,{"$f":"'FR-16(7)(v)-1 Functional'!C938","v":"WTD CUST ACCT O&M EXP RATIOS"},"Internal",{"$f":"'FR-16(7)(v)-1 Functional'!E938","v":"C319"},1,{"$f":"ROUND(IF($F$503=0,0,G503/$F$503),5)","v":0},{"$f":"ROUND(IF($F$503=0,0,H503/$F$503),5)","v":0},0,0,0,{"$f":"ROUND(IF($F$503=0,0,L503/$F$503),5)","v":0},0,0,0,0,0,0,1,null,null,null,{"$f":"R940","v":0}]
[9,null,{"$f":"'FR-16(7)(v)-1 Functional'!C939","v":"WTD CUST SERV & INFO O&M  EXP RATIOS"},"Internal",{"$f":"'FR-16(7)(v)-1 Functional'!E939","v":"C331"},1,{"$f":"ROUND(IF($F$518=0,0,G518/$F$518),5)","v":0},{"$f":"ROUND(IF($F$518=0,0,H518/$F$518),5)","v":0},0,0,0,{"$f":"ROUND(IF($F$518=0,0,L518/$F$518),5)","v":0},0,0,0,0,0,0,1,null,null,null,{"$f":"R941","v":0}]
[10,null,{"$f":"'FR-16(7)(v)-1 Functional'!C940","v":"WTD SALES O&M EXP RATIOS"},"Internal",{"$f":"'FR-16(7)(v)-1 Functional'!E940","v":"S319"},1,{"$f":"ROUND(IF($F$522=0,0,G522/$F$522),5)","v":0},{"$f":"ROUND(IF($F$522=0,0,H522/$F$522),5)","v":0},0,0,0,{"$f":"ROUND(IF($F$522=0,0,L522/$F$522),5)","v":0},0,0,0,0,0,{"$f":"SUM(G942:Q942)","v":0},{"$f":"F942-R942","v":1}]
[11,null,{"$f":"'FR-16(7)(v)-1 Functional'!C941","v":"WTD O&M EXP RATIOS"},"Internal",{"$f":"'FR-16(7)(v)-1 Functional'!E941","v":"OM39"},1,{"$f":"ROUND(IF($F$549=0,0,G549/$F$549),5)","v":0},{"$f":"ROUND(IF($F$549=0,0,H549/$F$549),5)","v":0},0,0,0,{"$f":"ROUND(IF($F$549=0,0,L549/$F$549),5)","v":0},0,0,0,0,0,{"$f":"SUM(G943:Q943)","v":0},{"$f":"F943-R943","v":1}]
[12]
[13,"A & G EXPENSES"]
[14,null,{"$f":"'FR-16(7)(v)-1 Functional'!C944","v":"WTD PROD DEMAND A&G EXP RATIOS"},"Internal",{"$f":"'FR-16(7)(v)-1 Functional'!E944","v":"A300"},1,{"$f":"ROUND(IF($F$525=0,0,G525/$F$525),5)","v":0},{"$f":"ROUND(IF($F$525=0,0,H525/$F$525),5)","v":0},0,0,0,{"$f":"ROUND(IF($F$525=0,0,L525/$F$525),5)","v":0},0,0,0,0,0,{"$f":"SUM(G946:Q946)","v":0},{"$f":"F946-R946","v":1}]
[15,null,{"$f":"'FR-16(7)(v)-1 Functional'!C945","v":"WTD PROD ENERGY A&G EXP RATIOS"},"Internal",{"$f":"'FR-16(7)(v)-1 Functional'!E945","v":"A302"},1,{"$f":"ROUND(IF($F$526=0,0,G526/$F$526),5)","v":0},{"$f":"ROUND(IF($F$526=0,0,H526/$F$526),5)","v":0},0,0,0,{"$f":"ROUND(IF($F$526=0,0,L526/$F$526),5)","v":0},0,0,0,0,0,0,1]
[16,null,{"$f":"'FR-16(7)(v)-1 Functional'!C946","v":"WTD TRANS A&G EXP RATIOS"},"Internal",{"$f":"'FR-16(7)(v)-1 Functional'!E946","v":"A304"},1,{"$f":"ROUND(IF($F$527=0,0,G527/$F$527),5)","v":0},{"$f":"ROUND(IF($F$527=0,0,H527/$F$527),5)","v":0},0,0,0,{"$f":"ROUND(IF($F$527=0,0,L527/$F$527),5)","v":0},0,0,0,0,0,0,1]
[17,null,{"$f":"'FR-16(7)(v)-1 Functional'!C947","v":"WTD DIST A&G EXP RATIOS"},"Internal",{"$f":"'FR-16(7)(v)-1 Functional'!E947","v":"A306"},1,{"$f":"ROUND(IF($F$528=0,0,G528/$F$528),5)","v":0},{"$f":"ROUND(IF($F$528=0,0,H528/$F$528),5)","v":0},0,0,0,{"$f":"ROUND(IF($F$528=0,0,L528/$F$528),5)","v":0},0,0,0,0,0,0,1]
[18,null,{"$f":"'FR-16(7)(v)-1 Functional'!C948","v":"WTD CUST ACCT A&G EXP RATIOS"},"Internal",{"$f":"'FR-16(7)(v)-1 Functional'!E948","v":"A308"},1,{"$f":"ROUND(IF($F$529=0,0,G529/$F$529),5)","v":0},{"$f":"ROUND(IF($F$529=0,0,H529/$F$529),5)","v":0},0,0,0,{"$f":"ROUND(IF($F$529=0,0,L529/$F$529),5)","v":0},0,0,0,0,0,0,1]
[19,null,{"$f":"'FR-16(7)(v)-1 Functional'!C949","v":"WTD CUST SERV & INFO A&G  EXP RATIOS"},"Internal",{"$f":"'FR-16(7)(v)-1 Functional'!E949","v":"A310"},1,{"$f":"ROUND(IF($F$530=0,0,G530/$F$530),5)","v":0},{"$f":"ROUND(IF($F$530=0,0,H530/$F$530),5)","v":0},0,0,0,{"$f":"ROUND(IF($F$530=0,0,L530/$F$530),5)","v":0},0,0,0,0,0,0,1]
[20,null,{"$f":"'FR-16(7)(v)-1 Functional'!C950","v":"WTD SALES A&G EXP RATIOS"},"Internal",{"$f":"'FR-16(7)(v)-1 Functional'!E950","v":"A312"},1,{"$f":"ROUND(IF($F$531=0,0,G531/$F$531),5)","v":0},{"$f":"ROUND(IF($F$531=0,0,H531/$F$531),5)","v":0},0,0,0,{"$f":"ROUND(IF($F$531=0,0,L531/$F$531),5)","v":0},0,0,0,0,0,0,1]
[21,null,{"$f":"'FR-16(7)(v)-1 Functional'!C951","v":"WTD A&G EXPENSE UNADJUSTED"},"Internal",{"$f":"'FR-16(7)(v)-1 Functional'!E951","v":"A315"},1,{"$f":"ROUND(IF($F$532=0,0,G532/$F$532),5)","v":0},{"$f":"ROUND(IF($F$532=0,0,H532/$F$532),5)","v":0},0,0,0,{"$f":"ROUND(IF($F$532=0,0,L532/$F$532),5)","v":0},0,0,0,0,0,0,1]
[22,null,{"$f":"'FR-16(7)(v)-1 Functional'!C952","v":"WTD A&G EXP RATIOS"},"Internal",{"$f":"'FR-16(7)(v)-1 Functional'!E952","v":"A357"},1,{"$f":"ROUND(IF($F$547=0,0,G547/$F$547),5)","v":0},{"$f":"ROUND(IF($F$547=0,0,H547/$F$547),5)","v":0},0,0,0,{"$f":"ROUND(IF($F$547=0,0,L547/$F$547),5)","v":0},0,0,0,0,0,0,1]
[23]
[24,"DEPRECIATION EXPENSES"]
[25,null,{"$f":"'FR-16(7)(v)-1 Functional'!C955","v":"WTD PRODUCTION DEPREC RATIOS"},"Internal",{"$f":"'FR-16(7)(v)-1 Functional'!E955","v":"P489"},1,{"$f":"ROUND(IF($F$563=0,0,G563/$F$563),5)","v":0},{"$f":"ROUND(IF($F$563=0,0,H563/$F$563),5)","v":0},0,0,0,{"$f":"ROUND(IF($F$563=0,0,L563/$F$563),5)","v":0},0,0,0,0,0,{"$f":"SUM(G957:Q957)","v":0},{"$f":"F957-R957","v":1},null,null,null,{"$f":"R957","v":0}]
[26,null,{"$f":"'FR-16(7)(v)-1 Functional'!C956","v":"WTD TRANS DEPREC RATIOS"},"Internal",{"$f":"'FR-16(7)(v)-1 Functional'!E956","v":"T489"},1,{"$f":"ROUND(IF($F$567=0,0,G567/$F$567),5)","v":0},{"$f":"ROUND(IF($F$567=0,0,H567/$F$567),5)","v":0},0,0,0,{"$f":"ROUND(IF($F$567=0,0,L567/$F$567),5)","v":0},0,0,0,0,0,0,1,null,null,null,{"$f":"R958","v":0}]
[27,null,{"$f":"'FR-16(7)(v)-1 Functional'!C957","v":"WTD DIST DEPREC RATIOS"},"Internal",{"$f":"'FR-16(7)(v)-1 Functional'!E957","v":"D489"},1,{"$f":"ROUND(IF($F$571=0,0,G571/$F$571),5)","v":0},{"$f":"ROUND(IF($F$571=0,0,H571/$F$571),5)","v":0},0,0,0,{"$f":"ROUND(IF($F$571=0,0,L571/$F$571),5)","v":0},0,0,0,0,0,0,1,null,null,null,{"$f":"R959","v":0}]
[28,null,{"$f":"'FR-16(7)(v)-1 Functional'!C958","v":"WTD GENERAL DEPREC EXP RATIOS"},"Internal",{"$f":"'FR-16(7)(v)-1 Functional'!E958","v":"G489"},1,{"$f":"ROUND(IF($F$575=0,0,G575/$F$575),5)","v":0},{"$f":"ROUND(IF($F$575=0,0,H575/$F$575),5)","v":0},0,0,0,{"$f":"ROUND(IF($F$575=0,0,L575/$F$575),5)","v":0},0,0,0,0,0,0,1,null,null,null,{"$f":"R960","v":0}]
[29,null,{"$f":"'FR-16(7)(v)-1 Functional'!C959","v":"WTD COM & OTHER DEP EXP RATIOS"},"Internal",{"$f":"'FR-16(7)(v)-1 Functional'!E959","v":"C489"},1,{"$f":"ROUND(IF($F$579=0,0,G579/$F$579),5)","v":0},{"$f":"ROUND(IF($F$579=0,0,H579/$F$579),5)","v":0},0,0,0,{"$f":"ROUND(IF($F$579=0,0,L579/$F$579),5)","v":0},0,0,0,0,0,0,1]
[30,null,{"$f":"'FR-16(7)(v)-1 Functional'!C960","v":"WTD TOT DEPREC EXP RATIOS"},"Internal",{"$f":"'FR-16(7)(v)-1 Functional'!E960","v":"DE49"},1,{"$f":"ROUND(IF($F$582=0,0,G582/$F$582),5)","v":0},{"$f":"ROUND(IF($F$582=0,0,H582/$F$582),5)","v":0},0,0,0,{"$f":"ROUND(IF($F$582=0,0,L582/$F$582),5)","v":0},0,0,0,0,0,0,1,null,null,null,{"$f":"R962","v":0}]
[31]
[32,"OTHER TAXES & MISC EXPENSES"]
[33,null,{"$f":"'FR-16(7)(v)-1 Functional'!C963","v":"WTD R. E. & PROP TAX RATIOS"},"Internal",{"$f":"'FR-16(7)(v)-1 Functional'!E963","v":"L529"},1,{"$f":"ROUND(IF($F$598=0,0,G598/$F$598),5)","v":0},{"$f":"ROUND(IF($F$598=0,0,H598/$F$598),5)","v":0},0,0,0,{"$f":"ROUND(IF($F$598=0,0,L598/$F$598),5)","v":0},0,0,0,0,0,{"$f":"SUM(G965:Q965)","v":0},{"$f":"F965-R965","v":1},null,null,null,{"$f":"R965","v":0}]
[34,null,{"$f":"'FR-16(7)(v)-1 Functional'!C964","v":"WTD MISC TAX RATIOS"},"Internal",{"$f":"'FR-16(7)(v)-1 Functional'!E964","v":"L589"},1,{"$f":"ROUND(IF($F$605=0,0,G605/$F$605),5)","v":0},{"$f":"ROUND(IF($F$605=0,0,H605/$F$605),5)","v":0},0,0,0,{"$f":"ROUND(IF($F$605=0,0,L605/$F$605),5)","v":0},0,0,0,0,0,{"$f":"SUM(G966:Q966)","v":0},{"$f":"F966-R966","v":1},null,null,null,{"$f":"R966","v":0}]
[35,null,{"$f":"'FR-16(7)(v)-1 Functional'!C965","v":"WTD OTHER TAX RATIOS"},"Internal",{"$f":"'FR-16(7)(v)-1 Functional'!E965","v":"L599"},1,{"$f":"ROUND(IF($F$612=0,0,G612/$F$612),5)","v":0},{"$f":"ROUND(IF($F$612=0,0,H612/$F$612),5)","v":0},0,0,0,{"$f":"ROUND(IF($F$612=0,0,L612/$F$612),5)","v":0},0,0,0,0,0,{"$f":"SUM(G967:Q967)","v":0},{"$f":"F967-R967","v":1},null,null,null,{"$f":"R967","v":0}]
[36,null,{"$f":"'FR-16(7)(v)-1 Functional'!C966","v":"WTD OP EXP EX IT & REV RATIOS"},"Internal",{"$f":"'FR-16(7)(v)-1 Functional'!E966","v":"OP69"},1,{"$f":"ROUND(IF($F$618=0,0,G618/$F$618),5)","v":0},{"$f":"ROUND(IF($F$618=0,0,H618/$F$618),5)","v":0},0,0,0,{"$f":"ROUND(IF($F$618=0,0,L618/$F$618),5)","v":0},0,0,0,0,0,{"$f":"SUM(G968:Q968)","v":0},{"$f":"F968-R968","v":1},null,null,null,{"$f":"R968","v":0}]
[37]
[38,"TOTAL COST OF SERVICE"]
[39,null,{"$f":"'FR-16(7)(v)-1 Functional'!C969","v":"WTD TOTAL COST OF SERVICE"},"Internal",{"$f":"'FR-16(7)(v)-1 Functional'!E969","v":"CS09"},1,{"$f":"ROUND(IF($F$770=0,0,G770/$F$770),9)","v":0},0,0,0,0,0,0,0,0,0,0,{"$f":"SUM(G971:Q971)","v":0},{"$f":"F971-R971","v":1},null,null,null,{"$f":"R971","v":0}]
[40]
[41,"WAGES & SALARIES (K600-K639)"]
[42,null,{"$f":"'FR-16(7)(v)-1 Functional'!C972","v":"WTD RATIOS"},"Internal",{"$f":"'FR-16(7)(v)-1 Functional'!E972","v":"K669"}]
[]
[]
[]
[]
[]
[]
[]
[]
[]
[1,"REVENUE NOT TO BE INCLUDED IN REVENUE TAX CALC"]
[2,null,"GOVERNMENTAL",null,"A357",{"$f":"'FR-16(7)(v)-10 DIST Classified'!H985","v":0},{"$f":"F985-SUM(H985:Q985)","v":0},{"$f":"ROUND(F985*VLOOKUP(E985,ALLOCTABLE_Distr_Energy,$H$10,FALSE),0)","v":0},{"$f":"ROUND(F985*VLOOKUP(E985,ALLOCTABLE_Distr_Energy,$I$10,FALSE),0)","v":0},{"$f":"ROUND(F985*VLOOKUP(E985,ALLOCTABLE_Distr_Energy,$J$10,FALSE),0)","v":0},{"$f":"ROUND(F985*VLOOKUP(E985,ALLOCTABLE_Distr_Energy,$K$10,FALSE),0)","v":0},{"$f":"ROUND(F985*VLOOKUP(E985,ALLOCTABLE_Distr_Energy,$L$10,FALSE),0)","v":0},{"$f":"ROUND(F985*VLOOKUP(E985,ALLOCTABLE_Distr_Energy,$M$10,FALSE),0)","v":0},{"$f":"ROUND(F985*VLOOKUP(E985,ALLOCTABLE_Distr_Energy,$N$10,FALSE),0)","v":0},{"$f":"ROUND(F985*VLOOKUP(E985,ALLOCTABLE_Distr_Energy,$O$10,FALSE),0)","v":0},{"$f":"ROUND(F985*VLOOKUP(E985,ALLOCTABLE_Distr_Energy,$P$10,FALSE),0)","v":0},{"$f":"ROUND(F985*VLOOKUP(E985,ALLOCTABLE_Distr_Energy,$Q$10,FALSE),0)","v":0},{"$f":"SUM(G985:Q985)","v":0},{"$f":"F985-R985","v":0}]
[3,null,"INTERDEPARTMENTAL",null,"A357",{"$f":"'FR-16(7)(v)-10 DIST Classified'!H986","v":0},0,0,0,0,0,0,0,0,0,0,0,0,0]
[4,null,"UNCOLLECTIBLE EXPENSE",null,"A357",{"$f":"'FR-16(7)(v)-10 DIST Classified'!H987","v":0},0,0,0,0,0,0,0,0,0,0,0,0,0]
[5,null,"OTHER PROD GAS ASSC COS  489050",null,"K301",{"$f":"'FR-16(7)(v)-10 DIST Classified'!H988","v":0},0,0,0,0,0,0,0,0,0,0,0,0,0]
[6,null,"MISC. REV. - SALE OF MATERIAL",null,"A357",{"$f":"'FR-16(7)(v)-10 DIST Classified'!H989","v":0},0,0,0,0,0,0,0,0,0,0,0,0,0]
[7,null,"RENT ASSOC. COS  49302,04,05,06,07,08,11 & 50",null,"NP29",{"$f":"'FR-16(7)(v)-10 DIST Classified'!H990","v":0},0,0,0,0,0,0,0,0,0,0,0,0,0]
[8,null,"TOTAL","REXC",null,{"$f":"SUM(F984:F990)","v":0},0,0,0,{"$f":"SUM(J984:J990)","v":0},0,0,0,0,0,0,0,0,0]
[]
[]
[]
[]
[]
["DO NOT FILE THIS PAGE"]
[]
[{"$f":"co_name","v":"DUKE ENERGY KENTUCKY, INC."},null,null,null,null,null,null,null,null,null,null,null,null,null,null,null,null,{"$f":"R1","v":"FR-16(7)(v)-12"}]
[{"$f":"$A$2","v":"DISTRIBUTION ENERGY ALLOCATED - ELECTRIC COST OF SERVICE"},null,null,null,null,null,null,null,null,null,null,null,null,null,null,null,null,{"$f":"R2","v":"WITNESS RESPONSIBLE:"}]
[{"$f":"case_name","v":"CASE NO: 2019-00271"},null,null,null,null,null,null,null,null,null,null,null,null,null,null,null,null,{"$f":"Witness","v":"JAMES E. ZIOLKOWSKI"}]
[{"$f":"data_filing","v":"DATA: 12 MONTHS ACTUAL  & 0 MONTHS ESTIMATED"},null,null,null,null,null,null,null,null,null,null,null,null,null,null,null,null,{"$f":"\"PAGE \"&Pages&\" OF \"&Pages","v":"PAGE 18 OF 18"}]
[{"$f":"type","v":"TYPE OF FILING: \"X\" ORIGINAL   UPDATED    REVISED  "}]
[]
[null,null,null,null,null,{"$f":"F$7","v":"TOTAL"},null,{"$f":"H$7","v":"DS"},{"$f":"I$7","v":"GSFL"},{"$f":"J$7","v":"EH"},{"$f":"K$7","v":"SP"},"DT SEC","DT PRI","DP","TT",null,"OTHER"]
["LINE",null,null,null,null,{"$f":"F$8","v":"DISTRIBUTION"},{"$f":"G$8","v":"RS"},{"$f":"H$8","v":"SECONDARY"},{"$f":"I$8","v":"SECONDARY"},{"$f":"J$8","v":"SECONDARY"},{"$f":"K$8","v":"SECONDARY"},"SECONDARY","PRIMARY","PRIMARY","TRANSMISSION","LT","WATER",{"$f":"R8","v":"TOTAL"},"ALL"]
["NO.","INCOME TAX BASED ON REVENUES",null,"ALLO",null,{"$f":"F$9","v":"ENERGY"},{"$f":"G$9","v":"RESIDENTIAL"},{"$f":"H$9","v":"DISTRIBUTION"},{"$f":"I$9","v":"DISTRIBUTION"},{"$f":"J$9","v":"DISTRIBUTION"},{"$f":"K$9","v":"DISTRIBUTION"},"DISTRIBUTION","DISTRIBUTION","DISTRIBUTION","TIME OF DAY","LIGHTING","PUMPING",{"$f":"R9","v":"AT ISSUE"},"OTHER"]
[null,null,"Schedule 13",null,null,null,{"$f":"G$10","v":3},{"$f":"H$10","v":4},{"$f":"I$10","v":5},{"$f":"J$10","v":6},{"$f":"K$10","v":7},8,9,10,11,12,13,null," "]
[1,"NET INCOME COMPUTATION"]
[2,null,{"$f":"'FR-16(7)(v)-1 Functional'!C1008","v":"TOTAL ELECTRIC COST OF SERVICE"},null,null,{"$f":"F770","v":0},0,0,0,{"$f":"J770","v":0},0,0,0,0,0,0,0,0,0]
[3,null,{"$f":"'FR-16(7)(v)-1 Functional'!C1009","v":"TOTAL OTHER OPERATING REVENUES"},null,null,{"$f":"F750","v":0},{"$f":"G750","v":0},{"$f":"H750","v":0},{"$f":"I750","v":0},{"$f":"J750","v":0},0,0,0,0,0,0,{"$f":"$Q$750","v":0},{"$f":"R750","v":0},{"$f":"S750","v":0}]
[4,null,{"$f":"'FR-16(7)(v)-1 Functional'!C1010","v":"  TOTAL ELECTRIC REVENUE"},null,null,{"$f":"SUM(F1009:F1011)","v":0},0,0,0,{"$f":"SUM(J1009:J1011)","v":0},0,0,0,0,0,0,0,0,0]
[5,null,{"$f":"'FR-16(7)(v)-1 Functional'!C1011","v":"TOTAL OP EXP EX INC & REV TAX"},null,null,{"$f":"-F618","v":0},{"$f":"-G618","v":0},{"$f":"-H618","v":0},{"$f":"-I618","v":0},{"$f":"-J618","v":0},0,0,0,0,0,0,{"$f":"-$Q$618","v":0},{"$f":"-R618","v":0},{"$f":"-S618","v":0}]
[6,null,{"$f":"'FR-16(7)(v)-1 Functional'!C1012","v":"FIRM SERVICE REVENUE TAX"},null,null,{"$f":"-ROUND(F817*F1010,0)","v":0},0,0,0,0,0,0,0,0,0,0,0,{"$f":"SUM(G1014:Q1014)","v":0},{"$f":"-ROUND('FR-16(7)(v)-1 Functional'!K817*S1010,0)","v":0}]
[7,null,{"$f":"'FR-16(7)(v)-1 Functional'!C1013","v":"  NET INCOME"},null,null,{"$f":"SUM(F1012:F1014)","v":0},{"$f":"SUM(G1012:G1014)","v":0},{"$f":"SUM(H1012:H1014)","v":0},{"$f":"SUM(I1012:I1014)","v":0},{"$f":"SUM(J1012:J1014)","v":0},0,0,0,0,0,0,{"$f":"SUM(Q1012:Q1014)","v":0},{"$f":"SUM(G1015:Q1015)","v":0},{"$f":"SUM(S1012:S1014)","v":0}]
[8]
[9,"ADJUSTMENTS TO NET INCOME"]
[10,null,{"$f":"'FR-16(7)(v)-1 Functional'!C1016","v":"TOTAL INTEREST EXPENSE"},null,null,{"$f":"-F633","v":0},{"$f":"-G633","v":0},{"$f":"-H633","v":0},{"$f":"-I633","v":0},{"$f":"-J633","v":0},0,0,0,0,0,0,{"$f":"-$Q$633","v":0},{"$f":"-R633","v":0},{"$f":"-S633","v":0}]
[11,null,{"$f":"'FR-16(7)(v)-1 Functional'!C1017","v":"TOTAL OTHER DEDUCTIONS"},null,null,{"$f":"-F639","v":0},{"$f":"-G639","v":0},{"$f":"-H639","v":0},{"$f":"-I639","v":0},{"$f":"-J639","v":0},0,0,0,0,0,0,{"$f":"-$Q$639","v":0},{"$f":"-R639","v":0},{"$f":"-S639","v":0}]
[12,null,{"$f":"'FR-16(7)(v)-1 Functional'!C1018","v":"  PRELIMINARY TAXABLE INCOME"},null,null,{"$f":"SUM(F1017:F1019)+F1015","v":0},{"$f":"SUM(G1017:G1019)+G1015","v":0},{"$f":"SUM(H1017:H1019)+H1015","v":0},{"$f":"SUM(I1017:I1019)+I1015","v":0},{"$f":"SUM(J1017:J1019)+J1015","v":0},0,0,0,0,0,0,{"$f":"SUM(Q1017:Q1019)+Q1015","v":0},{"$f":"SUM(G1020:Q1020)","v":0},{"$f":"SUM(S1017:S1019)+S1015","v":0}]
[13]
[14,"INCOME TAX BASED ON REVENUES"]
[15,"FEDERAL INCOME TAX COMPUTATION"]
[16,null,{"$f":"'FR-16(7)(v)-1 Functional'!C1022","v":"PRELIMINARY TAXABLE INCOME"},null,null,{"$f":"F1020","v":0},0,0,0,{"$f":"J1020","v":0},0,0,0,0,0,0,0,0,0]
[17,null,{"$f":"'FR-16(7)(v)-1 Functional'!C1023","v":"  NET FEDERAL TAXABLE INCOME"},null,null,{"$f":"SUM(F1024:F1024)","v":0},0,0,0,{"$f":"SUM(J1024:J1024)","v":0},0,0,0,0,0,0,0,0,0]
[18,null,{"$f":"'FR-16(7)(v)-1 Functional'!C1024","v":"  FEDERAL INCOME TAX RATE"},null,null,{"$f":"F815","v":0.21},{"$f":"G815","v":0.21},{"$f":"H815","v":0.21},{"$f":"I815","v":0.21},{"$f":"J815","v":0.21},0.21,0.21,0.21,0.21,0.21,0.21,{"$f":"Q815","v":0.21},null,{"$f":"'FR-16(7)(v)-1 Functional'!K815","v":0.21}]
[19,null,{"$f":"'FR-16(7)(v)-1 Functional'!C1025","v":"PRELIMINARY FIT = FI01 * K190"},null,null,{"$f":"ROUND(F1026*F1025,0)","v":0},{"$f":"ROUND(G1026*G1025,0)","v":0},{"$f":"ROUND(H1026*H1025,0)","v":0},{"$f":"ROUND(I1026*I1025,0)","v":0},{"$f":"ROUND(J1026*J1025,0)","v":0},0,0,0,0,0,0,{"$f":"ROUND(Q1026*Q1025,0)","v":0},{"$f":"SUM(G1027:Q1027)","v":0},{"$f":"ROUND(S1026*S1025,0)","v":0}]
[20,null,{"$f":"'FR-16(7)(v)-1 Functional'!C1026","v":"TOTAL FED DEF IT (410 & 411)"},null,null,{"$f":"F649","v":0},{"$f":"G649","v":0},{"$f":"H649","v":0},{"$f":"I649","v":0},{"$f":"J649","v":0},0,0,0,0,0,0,{"$f":"$Q$649","v":0},{"$f":"R649","v":0},{"$f":"S649","v":0}]
[21,null,{"$f":"'FR-16(7)(v)-1 Functional'!C1027","v":"TOTAL AMORTIZED ITC"},null,null,{"$f":"-F653","v":0},{"$f":"-G653","v":0},{"$f":"-H653","v":0},{"$f":"-I653","v":0},{"$f":"-J653","v":0},0,0,0,0,0,0,{"$f":"-$Q$653","v":0},{"$f":"-R653","v":0},{"$f":"-S653","v":0}]
[22,null,{"$f":"'FR-16(7)(v)-1 Functional'!C1028","v":"  NET FED INC TAX ALLOWABLE"},null,null,{"$f":"SUM(F1027:F1029)","v":0},0,0,0,{"$f":"SUM(J1027:J1029)","v":0},0,0,0,0,0,0,0,0,0]
[23]
[24,"FEDERAL INCOME TAX PAYABLE"]
[25,null,{"$f":"'FR-16(7)(v)-1 Functional'!C1031","v":"PRELIM FIT"},null,null,{"$f":"F1027","v":0},0,0,0,{"$f":"J1027","v":0},0,0,0,0,0,0,0,0,0]
[26,null,{"$f":"'FR-16(7)(v)-1 Functional'!C1032","v":"TEST YEAR INV TAX CREDIT"},null,null,{"$f":"-F658","v":0},{"$f":"-G658","v":0},{"$f":"-H658","v":0},{"$f":"-I658","v":0},{"$f":"-J658","v":0},0,0,0,0,0,0,{"$f":"-$Q$658","v":0},{"$f":"-R658","v":0},{"$f":"-S658","v":0}]
[27,null,{"$f":"'FR-16(7)(v)-1 Functional'!C1033","v":"  FED INC TAX PAYABLE"},null,null,{"$f":"SUM(F1032:F1034)","v":0},0,0,0,{"$f":"SUM(J1032:J1034)","v":0},0,0,0,0,0,0,0,0,0]
[28]
[29,"PRELIMINARY SUMMARY"]
[30,null,{"$f":"'FR-16(7)(v)-1 Functional'!C1036","v":"NET INCOME"},null,null,{"$f":"F1015","v":0},0,0,0,{"$f":"J1015","v":0},0,0,0,0,0,0,0,0,0]
[31,null,{"$f":"'FR-16(7)(v)-1 Functional'!C1037","v":"NET FED INC TAX ALLOWABLE"},null,null,{"$f":"-F1030","v":0},0,0,0,{"$f":"-J1030","v":0},0,0,0,0,0,0,0,0,0]
[32,null,{"$f":"'FR-16(7)(v)-1 Functional'!C1038","v":"  OVERALL RETURN EARNED"},null,null,{"$f":"SUM(F1037:F1039)","v":0},0,0,0,{"$f":"SUM(J1037:J1039)","v":0},0,0,0,0,0,0,0,0,0]
[33]
[34,null,{"$f":"'FR-16(7)(v)-1 Functional'!C1040","v":"  RATE OF RETURN EARNED"},null,null,{"$f":"IF(F426=0,0,ROUND(F1040/F426,5))","v":0},0,0,0,0,0,0,0,0,0,0,0,0,0]

{"sheet":"FR-16(7)(v)-13 DIST Cust","index":16,"n_rows":1042,"n_cols":23,"rows_kept":1042,"cut":false,"hidden":false,"merged":[]}
[{"$f":"co_name","v":"DUKE ENERGY KENTUCKY, INC."},null,null,null,null,null,null,null,null,"FR-16(7)(v)-10",null,null,null,null,null,null,null,"FR-16(7)(v)-13"]
[{"$f":"\"DISTRIBUTION \"&F9&\" ALLOCATED - ELECTRIC COST OF SERVICE\"","v":"DISTRIBUTION CUSTOMER ALLOCATED - ELECTRIC COST OF SERVICE"},null,null,null,null,null,null,null,null,null,null,null,null,null,null,null,null,"WITNESS RESPONSIBLE:"]
[{"$f":"case_name","v":"CASE NO: 2019-00271"},null,null,null,null,null,null,null,null,null,null,null,null,null,null,null,null,{"$f":"Witness","v":"JAMES E. ZIOLKOWSKI"}]
[{"$f":"data_filing","v":"DATA: 12 MONTHS ACTUAL  & 0 MONTHS ESTIMATED"},null,null,null,null,null,null,null,null,null,null,null,null,null,null,null,null,{"$f":"\"PAGE \"&Pages-17&\" OF \"&Pages","v":"PAGE 1 OF 18"}]
[{"$f":"type","v":"TYPE OF FILING: \"X\" ORIGINAL   UPDATED    REVISED  "}]
[]
[null,null,null,null,null,{"$f":"'FR-16(7)(v)-3 PROD Demand'!F7","v":"TOTAL"},null,{"$f":"'FR-16(7)(v)-3 PROD Demand'!H7","v":"DS"},{"$f":"'FR-16(7)(v)-3 PROD Demand'!I7","v":"GSFL"},{"$f":"'FR-16(7)(v)-3 PROD Demand'!J7","v":"EH"},{"$f":"'FR-16(7)(v)-3 PROD Demand'!K7","v":"SP"},{"$f":"'FR-16(7)(v)-3 PROD Demand'!L7","v":"DT SEC"},{"$f":"'FR-16(7)(v)-3 PROD Demand'!M7","v":"DT PRI"},{"$f":"'FR-16(7)(v)-3 PROD Demand'!N7","v":"DP"},{"$f":"'FR-16(7)(v)-3 PROD Demand'!O7","v":"TT"},null,{"$f":"'FR-16(7)(v)-3 PROD Demand'!Q7","v":"OTHER"}]
["LINE",null,null,null,null,{"$f":"'FR-16(7)(v)-10 DIST Classified'!F9","v":"DISTRIBUTION"},{"$f":"'FR-16(7)(v)-3 PROD Demand'!G8","v":"RS"},{"$f":"'FR-16(7)(v)-3 PROD Demand'!H8","v":"SECONDARY"},{"$f":"'FR-16(7)(v)-3 PROD Demand'!I8","v":"SECONDARY"},{"$f":"'FR-16(7)(v)-3 PROD Demand'!J8","v":"SECONDARY"},{"$f":"'FR-16(7)(v)-3 PROD Demand'!K8","v":"SECONDARY"},{"$f":"'FR-16(7)(v)-3 PROD Demand'!L8","v":"SECONDARY"},{"$f":"'FR-16(7)(v)-3 PROD Demand'!M8","v":"PRIMARY"},{"$f":"'FR-16(7)(v)-3 PROD Demand'!N8","v":"PRIMARY"},{"$f":"'FR-16(7)(v)-3 PROD Demand'!O8","v":"TRANSMISSION"},{"$f":"'FR-16(7)(v)-3 PROD Demand'!P8","v":"LT"},{"$f":"'FR-16(7)(v)-3 PROD Demand'!Q8","v":"WATER"},{"$f":"'FR-16(7)(v)-3 PROD Demand'!R8","v":"TOTAL"},{"$f":"'FR-16(7)(v)-3 PROD Demand'!S8","v":"ALL"}]
["NO.","SUMMARY OF RESULTS",null,"ALLO",null,{"$f":"'FR-16(7)(v)-10 DIST Classified'!I9","v":"CUSTOMER"},{"$f":"'FR-16(7)(v)-3 PROD Demand'!G9","v":"RESIDENTIAL"},{"$f":"'FR-16(7)(v)-3 PROD Demand'!H9","v":"DISTRIBUTION"},{"$f":"'FR-16(7)(v)-3 PROD Demand'!I9","v":"DISTRIBUTION"},{"$f":"'FR-16(7)(v)-3 PROD Demand'!J9","v":"DISTRIBUTION"},{"$f":"'FR-16(7)(v)-3 PROD Demand'!K9","v":"DISTRIBUTION"},{"$f":"'FR-16(7)(v)-3 PROD Demand'!L9","v":"DISTRIBUTION"},{"$f":"'FR-16(7)(v)-3 PROD Demand'!M9","v":"DISTRIBUTION"},{"$f":"'FR-16(7)(v)-3 PROD Demand'!N9","v":"DISTRIBUTION"},{"$f":"'FR-16(7)(v)-3 PROD Demand'!O9","v":"TIME OF DAY"},{"$f":"'FR-16(7)(v)-3 PROD Demand'!P9","v":"LIGHTING"},{"$f":"'FR-16(7)(v)-3 PROD Demand'!Q9","v":"PUMPING"},{"$f":"'FR-16(7)(v)-3 PROD Demand'!R9","v":"AT ISSUE"},{"$f":"'FR-16(7)(v)-3 PROD Demand'!S9","v":"OTHER"}]
[null,null,"Schedule 1",null,null,null,3,4,5,6,7,8,9,10,11,12,13]
[1,"NET INCOME COMPUTATION"]
[2,null,{"$f":"'FR-16(7)(v)-1 Functional'!C12","v":"GROSS ELECTRIC PLANT IN SERVICE"},null,null,{"$f":"F123","v":168696528},{"$f":"G123","v":142487033},{"$f":"H123","v":18071922},{"$f":"I123","v":160936},{"$f":"J123","v":196161},20455,514521,59623,26464,17464,7126567,{"$f":"Q123","v":15382},{"$f":"SUM(G12:Q12)","v":168696528},{"$f":"F12-R12","v":0}]
[3,null,{"$f":"'FR-16(7)(v)-1 Functional'!C13","v":"TOTAL DEPRECIATION RESERVE"},null,null,{"$f":"-F200","v":-56935977},{"$f":"-G200","v":-46645244},{"$f":"-H200","v":-5686443},{"$f":"-I200","v":-56678},{"$f":"-J200","v":-69961},-6348,-174623,-23614,-9528,-6314,-4252338,{"$f":"-Q200","v":-4886},{"$f":"SUM(G13:Q13)","v":-56935977},{"$f":"F13-R13","v":0}]
[4,null,{"$f":"'FR-16(7)(v)-1 Functional'!C14","v":"TOTAL RATE BASE ADJUSTMENTS"},null,null,{"$f":"F421","v":-17663861},{"$f":"G421","v":-15290476},{"$f":"H421","v":-1696618},{"$f":"I421","v":-15944},{"$f":"J421","v":-19687},-2067,-32168,-3653,-2125,241,-600015,{"$f":"Q421","v":-1349},{"$f":"SUM(G14:Q14)","v":-17663861},{"$f":"F14-R14","v":0}]
[5,null,{"$f":"'FR-16(7)(v)-1 Functional'!C15","v":"  TOTAL RATE BASE"},null,null,{"$f":"SUM(F12:F14)","v":94096690},{"$f":"SUM(G12:G14)","v":80551313},{"$f":"SUM(H12:H14)","v":10688861},{"$f":"SUM(I12:I14)","v":88314},{"$f":"SUM(J12:J14)","v":106513},12040,307730,32356,14811,11391,2274214,{"$f":"SUM(Q12:Q14)","v":9147},{"$f":"SUM(R12:R14)","v":94096690},{"$f":"F15-R15","v":0}]
[6]
[7,"OPERATING EXPENSES"]
[8,null,{"$f":"'FR-16(7)(v)-1 Functional'!C18","v":"TOTAL O&M EXPENSE"},null,null,{"$f":"F549","v":12898216},{"$f":"G549","v":10383459},{"$f":"H549","v":1772545},{"$f":"I549","v":11979},{"$f":"J549","v":13984},1975,53080,-2047,2172,-37,659602,{"$f":"Q549","v":1504},{"$f":"SUM(G18:Q18)","v":12898216},{"$f":"F18-R18","v":0}]
[9,null,{"$f":"'FR-16(7)(v)-1 Functional'!C19","v":"TOTAL DEPRECIATION EXPENSE"},null,null,{"$f":"F582","v":4178024},{"$f":"G582","v":3570653},{"$f":"H582","v":489124},{"$f":"I582","v":3965},{"$f":"J582","v":4757},545,13821,968,661,331,92789,{"$f":"Q582","v":410},{"$f":"SUM(G19:Q19)","v":4178024},0]
[10,null,{"$f":"'FR-16(7)(v)-1 Functional'!C20","v":"TOTAL OTHER TAX & MISC EXPENSE"},null,null,{"$f":"F612","v":1458174},{"$f":"G612","v":1236443},{"$f":"H612","v":170063},{"$f":"I612","v":1369},{"$f":"J612","v":1671},195,6798,1734,287,743,38735,{"$f":"$Q$612","v":136},{"$f":"SUM(G20:Q20)","v":1458174},0]
[11,null,{"$f":"'FR-16(7)(v)-1 Functional'!C21","v":"  TOTAL OP EXP EXCLUDING INC & REV TAX"},null,null,{"$f":"SUM(F17:F20)","v":18534414},15190555,2431732,17313,{"$f":"SUM(J17:J20)","v":20412},2715,73699,655,3120,1037,791126,2050,18534414,0]
[12,null,{"$f":"'FR-16(7)(v)-1 Functional'!C22","v":"NET FED INCOME TAX EXP ALLOWABLE"},null,null,{"$f":"F676","v":331737},{"$f":"G676","v":262162},{"$f":"H676","v":35232},{"$f":"I676","v":287},{"$f":"J676","v":255},43,901,100,41,62,32616,{"$f":"$Q$676","v":38},{"$f":"SUM(G22:Q22)","v":331737},0]
[13,null,"NET STATE INCOME TAX EXP ALLOWABLE",null,null,{"$f":"F722","v":565637},{"$f":"G722","v":449105},88916,528,686,99,2978,-191,115,-26,23351,76,{"$f":"SUM(G23:Q23)","v":565637},0]
[14,null,"RESERVED",{"$f":"'FR-16(7)(v)-1 Functional'!D24","v":"CW29"},null,{"$f":"'FR-16(7)(v)-10 DIST Classified'!I24","v":0},{"$f":"F24-SUM(H24:Q24)","v":0},{"$f":"ROUND(F24*VLOOKUP(D73,ALLOCTABLE_Distr_Customer,$H$10,FALSE),0)","v":0},{"$f":"ROUND(F24*VLOOKUP(D24,ALLOCTABLE_Distr_Customer,$I$10,FALSE),0)","v":0},{"$f":"ROUND(F24*VLOOKUP(D24,ALLOCTABLE_Distr_Customer,$J$10,FALSE),0)","v":0},{"$f":"ROUND(F24*VLOOKUP(D24,ALLOCTABLE_Distr_Customer,$K$10,FALSE),0)","v":0},{"$f":"ROUND(F24*VLOOKUP(D24,ALLOCTABLE_Distr_Customer,$L$10,FALSE),0)","v":0},{"$f":"ROUND(F24*VLOOKUP(D24,ALLOCTABLE_Distr_Customer,$M$10,FALSE),0)","v":0},{"$f":"ROUND(F24*VLOOKUP(D24,ALLOCTABLE_Distr_Customer,$N$10,FALSE),0)","v":0},{"$f":"ROUND(F24*VLOOKUP(D24,ALLOCTABLE_Distr_Customer,$O$10,FALSE),0)","v":0},{"$f":"ROUND(F24*VLOOKUP(D24,ALLOCTABLE_Distr_Customer,$P$10,FALSE),0)","v":0},{"$f":"ROUND(F24*VLOOKUP(D24,ALLOCTABLE_Distr_Customer,$Q$10,FALSE),0)","v":0},{"$f":"SUM(G24:Q24)","v":0},{"$f":"F24-R24","v":0}]
[15,null,{"$f":"'FR-16(7)(v)-1 Functional'!C25","v":"REVENUE TAX"},null,null,{"$f":"F767","v":0},{"$f":"G767","v":0},{"$f":"H767","v":0},{"$f":"I767","v":0},{"$f":"J767","v":0},0,0,0,0,0,0,{"$f":"Q767","v":0},{"$f":"SUM(G25:Q25)","v":0},0]
[16,null,{"$f":"'FR-16(7)(v)-1 Functional'!C26","v":"  TOTAL OPERATING EXPENSE"},null,null,{"$f":"SUM(F21:F25)","v":19431788},15901822,2555880,18128,{"$f":"SUM(J21:J25)","v":21353},2857,77578,564,3276,1073,847093,2164,19431788,0]
[17]
[18,"RETURN ON RATE BASE",null,null,null,{"$f":"F433","v":6237250},5339398,708489,5863,7048,811,20396,2121,998,748,150754,624,{"$f":"SUM(G28:Q28)","v":6237250},{"$f":"F28-R28","v":0}]
[19,"TOTAL OTHER OPERATING REVENUES",null,null,null,{"$f":"-F750","v":-367410},{"$f":"-G750","v":-315575},{"$f":"-H750","v":-39670},{"$f":"-I750","v":-338},{"$f":"-J750","v":-411},-44,-1073,-136,-55,-41,-10034,{"$f":"-$Q$750","v":-33},{"$f":"SUM(G29:Q29)","v":-367410},0]
[20,null,{"$f":"'FR-16(7)(v)-1 Functional'!C30","v":"TOTAL ELECTRIC COST OF SERVICE"},null,null,{"$f":"SUM(F26:F29)","v":25301628},20925645,3224699,23653,{"$f":"SUM(J26:J29)","v":27990},3624,96901,2549,4219,1780,987813,2755,25301628,0]
[21,"ADJUSTMENT FOR INTERCLASS SUBSIDIZATION",null,{"$f":"1-'WP FR-16(7)(v) Rate Incr'!I11","v":0.95},null,null,null,null,null,null,null,null,null,null,null,null,null,null,0]
[22,{"$f":"'FR-16(7)(v)-1 Functional'!$B$32","v":"REQUESTED REVENUES (COST OF SERVICE ADJUSTED FOR SUBSIDIES)"},null,null,null,{"$f":"F30+F31","v":25301628},20925645,3224699,23653,{"$f":"J30+J31","v":27990},3624,96901,2549,4219,1780,987813,2755,25301628,0]
[23,"PROPOSED REVENUES",null,null,null,{"$f":"F870","v":57281877},45898249,8849477,53845,{"$f":"J870","v":69884},9738,291565,-18330,11456,-2864,2111410,7447,57281877,0]
[24,"DIFFERENCE (REQUESTED LESS PROPOSED)",null,null,null,{"$f":"F32-F33","v":-31980249},{"$f":"G32-G33","v":-24972604},-5624778,-30192,{"$f":"J32-J33","v":-41894},-6114,-194664,20879,-7237,4644,-1123597,-4692,-31980249,0]
[25]
[26,"TOTAL RETURN EARNED",null,null,null,{"$f":"F777+F28","v":30246385},{"$f":"G777+G28","v":24087550},{"$f":"H777+H28","v":4931285},{"$f":"I777+I28","v":28530},{"$f":"J777+J28","v":38500},5401,166540,-13554,6431,-2738,994293,{"$f":"Q777+Q28","v":4147},{"$f":"R777+R28","v":30246385},{"$f":"F36-R36","v":0}]
[27,"RATE OF RETURN EARNED",null,null,null,{"$f":"IF(F431=0,0,ROUND(F36/F431,5))","v":0.32544000000000001},0.30275000000000002,0.46710000000000002,0.32656000000000002,0.36659000000000003,0.44702999999999998,0.54798000000000002,-0.42892000000000002,0.43245,-0.24549000000000001,0.44262000000000001,0.44619999999999999,0.32544000000000001,0]
[28,"TOTAL RATE OF RETURN ALLOWABLE",null,null,null,{"$f":"$F$811","v":6.7100000000000007E-2},{"$f":"$F$811","v":6.7100000000000007E-2},6.7100000000000007E-2,6.7100000000000007E-2,6.7100000000000007E-2,6.7100000000000007E-2,6.7100000000000007E-2,6.7100000000000007E-2,6.7100000000000007E-2,6.7100000000000007E-2,6.7100000000000007E-2,6.7100000000000007E-2,{"$f":"F811","v":6.7100000000000007E-2},{"$f":"F811","v":6.7100000000000007E-2},null,null,"Not Part of print range"]
[29,"RETURN EARNED ON COMMON EQUITY",null,null,null,{"$f":"IF(Equity=0,0,(F37-$F$806-$F$807-$F$809)*TotalCap/Equity)","v":0.63365615313299806},0.58661499976764098,0.92734719701737334,0.63597814924446561,0.71896877812129434,0.88573785598419941,1.0950284876383551,-0.93029115637298421,0.85551044231884443,-0.55000209679575007,0.8765949962952958,0.88401709100873682,{"$f":"IF(Equity=0,0,(R37-F806-F807-F809)*TotalCap/Equity)","v":0.63365615313299806},{"$f":"IF(Equity=0,0,(S37-F806-F807-F809)*TotalCap/Equity)","v":-4.1049574113445099E-2},null,null,"Not Filed"]
[30,"ALLOWED RETURN ON COMMON EQUITY",null,null,null,{"$f":"IF(Equity=0,0,(F38-$F$806-$F$807-$F$809)*TotalCap/Equity)","v":9.8062871493229981E-2},9.8062871493229981E-2,9.8062871493229981E-2,9.8062871493229981E-2,9.8062871493229981E-2,9.8062871493229981E-2,9.8062871493229981E-2,9.8062871493229981E-2,9.8062871493229981E-2,9.8062871493229981E-2,9.8062871493229981E-2,9.8062871493229981E-2,{"$f":"IF(Equity=0,0,(R38-F806-F807-F809)*TotalCap/Equity)","v":9.8062871493229981E-2},{"$f":"IF(Equity=0,0,(S38-F806-F807-F809)*TotalCap/Equity)","v":9.8062871493229981E-2}]
[31,null,null,null,null," "]
[32,"PRESENT REVENUES",null,null,null,{"$f":"F869","v":22128489},18301308,2820282,20687,{"$f":"J869","v":24480},3170,84748,2229,3690,1557,863929,2409,22128489,{"$f":"F42-R42","v":0}]
[33,"REVENUE INCREASE JUSTIFIED",null,null,null,{"$f":"F30-F42","v":3173139},2624337,404417,2966,{"$f":"J30-J42","v":3510},454,12153,320,529,223,123884,346,3173139,0]
[34,null,"PER UNIT PRES REV",null,null,{"$f":"IF(F42=0,0,ROUND(F43/F42,5))","v":0.1434},0.1434,0.1434,0.14338000000000001,{"$f":"IF(J42=0,0,ROUND(J43/J42,5))","v":0.14338000000000001},0.14321999999999999,0.1434,0.14355999999999999,0.14335999999999999,0.14321999999999999,0.1434,0.14363000000000001,0.1434,0]
[35,"REVENUE INCREASE REQUESTED",null,null,null,{"$f":"F33-F42","v":35153388},27596941,6029195,33158,{"$f":"J33-J42","v":45404},6568,206817,-20559,7766,-4421,1247481,5038,35153388,0]
[36,null,"PER UNIT PRES REV",null,null,{"$f":"IF(F42=0,0,ROUND(F45/F42,5))","v":1.5886},1.5079199999999999,2.1377999999999999,1.60284,{"$f":"IF(J42=0,0,ROUND(J45/J42,5))","v":1.8547400000000001},2.07192,2.4403800000000002,-9.2234200000000008,2.1046100000000001,-2.8394300000000001,1.4439599999999999,2.0913200000000001,1.5886,0]
[]
[{"$f":"co_name","v":"DUKE ENERGY KENTUCKY, INC."},null,null,null,null,null,null,null,null,null,null,null,null,null,null,null,null,{"$f":"R1","v":"FR-16(7)(v)-13"}]
[{"$f":"$A$2","v":"DISTRIBUTION CUSTOMER ALLOCATED - ELECTRIC COST OF SERVICE"},null,null,null,null,null,null,null,null,null,null,null,null,null,null,null,null,{"$f":"R2","v":"WITNESS RESPONSIBLE:"}]
[{"$f":"case_name","v":"CASE NO: 2019-00271"},null,null,null,null,null,null,null,null,null,null,null,null,null,null,null,null,{"$f":"Witness","v":"JAMES E. ZIOLKOWSKI"}]
[{"$f":"data_filing","v":"DATA: 12 MONTHS ACTUAL  & 0 MONTHS ESTIMATED"},null,null,null,null,null,null,null,null,null,null,null,null,null,null,null,null,{"$f":"\"PAGE \"&Pages-16&\" OF \"&Pages","v":"PAGE 2 OF 18"}]
[{"$f":"type","v":"TYPE OF FILING: \"X\" ORIGINAL   UPDATED    REVISED  "}]
[]
[null,null,null,null,null,{"$f":"F$7","v":"TOTAL"},null,{"$f":"H$7","v":"DS"},{"$f":"I$7","v":"GSFL"},{"$f":"J$7","v":"EH"},{"$f":"K$7","v":"SP"},"DT SEC","DT PRI","DP","TT",null,"OTHER"]
["LINE",null,null,null,null,{"$f":"F$8","v":"DISTRIBUTION"},{"$f":"G$8","v":"RS"},{"$f":"H$8","v":"SECONDARY"},{"$f":"I$8","v":"SECONDARY"},{"$f":"J$8","v":"SECONDARY"},{"$f":"K$8","v":"SECONDARY"},"SECONDARY","PRIMARY","PRIMARY","TRANSMISSION","LT","WATER",{"$f":"R8","v":"TOTAL"},"ALL"]
["NO.","GROSS ELECTRIC PLANT IN SERVICE",null,"ALLO",null,{"$f":"F$9","v":"CUSTOMER"},{"$f":"G$9","v":"RESIDENTIAL"},{"$f":"H$9","v":"DISTRIBUTION"},{"$f":"I$9","v":"DISTRIBUTION"},{"$f":"J$9","v":"DISTRIBUTION"},{"$f":"K$9","v":"DISTRIBUTION"},"DISTRIBUTION","DISTRIBUTION","DISTRIBUTION","TIME OF DAY","LIGHTING","PUMPING",{"$f":"R9","v":"AT ISSUE"},"OTHER"]
[null,null,"Schedule 2",null,null,null,{"$f":"G$10","v":3},{"$f":"H$10","v":4},{"$f":"I$10","v":5},{"$f":"J$10","v":6},{"$f":"K$10","v":7},8,9,10,11,12,13,null," "]
[1,"PRODUCTION PLANT"]
[2,null,"PRODUCTION STEAM",{"$f":"'FR-16(7)(v)-1 Functional'!D59","v":"K201"},null,{"$f":"'FR-16(7)(v)-10 DIST Classified'!I59","v":0},{"$f":"F59-SUM(H59:Q59)","v":0},{"$f":"ROUND(F59*VLOOKUP(D59,ALLOCTABLE_Distr_Customer,$H$10,FALSE),0)","v":0},{"$f":"ROUND(F59*VLOOKUP(D59,ALLOCTABLE_Distr_Customer,$I$10,FALSE),0)","v":0},{"$f":"ROUND(F59*VLOOKUP(D59,ALLOCTABLE_Distr_Customer,$J$10,FALSE),0)","v":0},{"$f":"ROUND(F59*VLOOKUP(D59,ALLOCTABLE_Distr_Customer,$K$10,FALSE),0)","v":0},{"$f":"ROUND(F59*VLOOKUP(D59,ALLOCTABLE_Distr_Customer,$L$10,FALSE),0)","v":0},{"$f":"ROUND(F59*VLOOKUP(D59,ALLOCTABLE_Distr_Customer,$M$10,FALSE),0)","v":0},{"$f":"ROUND(F59*VLOOKUP(D59,ALLOCTABLE_Distr_Customer,$N$10,FALSE),0)","v":0},{"$f":"ROUND(F59*VLOOKUP(D59,ALLOCTABLE_Distr_Customer,$O$10,FALSE),0)","v":0},{"$f":"ROUND(F59*VLOOKUP(D59,ALLOCTABLE_Distr_Customer,$P$10,FALSE),0)","v":0},{"$f":"ROUND(F59*VLOOKUP(D59,ALLOCTABLE_Distr_Customer,$Q$10,FALSE),0)","v":0},{"$f":"SUM(G59:Q59)","v":0},{"$f":"F59-R59","v":0}]
[3,null,"PRODUCTION OTHER",{"$f":"'FR-16(7)(v)-1 Functional'!D60","v":"K201"},null,{"$f":"'FR-16(7)(v)-10 DIST Classified'!I60","v":0},{"$f":"F60-SUM(H60:Q60)","v":0},{"$f":"ROUND(F60*VLOOKUP(D60,ALLOCTABLE_Distr_Customer,$H$10,FALSE),0)","v":0},{"$f":"ROUND(F60*VLOOKUP(D60,ALLOCTABLE_Distr_Customer,$I$10,FALSE),0)","v":0},{"$f":"ROUND(F60*VLOOKUP(D60,ALLOCTABLE_Distr_Customer,$J$10,FALSE),0)","v":0},{"$f":"ROUND(F60*VLOOKUP(D60,ALLOCTABLE_Distr_Customer,$K$10,FALSE),0)","v":0},{"$f":"ROUND(F60*VLOOKUP(D60,ALLOCTABLE_Distr_Customer,$L$10,FALSE),0)","v":0},{"$f":"ROUND(F60*VLOOKUP(D60,ALLOCTABLE_Distr_Customer,$M$10,FALSE),0)","v":0},{"$f":"ROUND(F60*VLOOKUP(D60,ALLOCTABLE_Distr_Customer,$N$10,FALSE),0)","v":0},{"$f":"ROUND(F60*VLOOKUP(D60,ALLOCTABLE_Distr_Customer,$O$10,FALSE),0)","v":0},{"$f":"ROUND(F60*VLOOKUP(D60,ALLOCTABLE_Distr_Customer,$P$10,FALSE),0)","v":0},{"$f":"ROUND(F60*VLOOKUP(D60,ALLOCTABLE_Distr_Customer,$Q$10,FALSE),0)","v":0},{"$f":"SUM(G60:Q60)","v":0},{"$f":"F60-R60","v":0}]
[4,null,{"$f":"'FR-16(7)(v)-1 Functional'!C61","v":"ADJUSTMENT"},{"$f":"'FR-16(7)(v)-1 Functional'!D61","v":"K201"},null,{"$f":"'FR-16(7)(v)-10 DIST Classified'!I61","v":0},{"$f":"F61-SUM(H61:Q61)","v":0},{"$f":"ROUND(F61*VLOOKUP(D61,ALLOCTABLE_Distr_Customer,$H$10,FALSE),0)","v":0},{"$f":"ROUND(F61*VLOOKUP(D61,ALLOCTABLE_Distr_Customer,$I$10,FALSE),0)","v":0},{"$f":"ROUND(F61*VLOOKUP(D61,ALLOCTABLE_Distr_Customer,$J$10,FALSE),0)","v":0},{"$f":"ROUND(F61*VLOOKUP(D61,ALLOCTABLE_Distr_Customer,$K$10,FALSE),0)","v":0},{"$f":"ROUND(F61*VLOOKUP(D61,ALLOCTABLE_Distr_Customer,$L$10,FALSE),0)","v":0},{"$f":"ROUND(F61*VLOOKUP(D61,ALLOCTABLE_Distr_Customer,$M$10,FALSE),0)","v":0},{"$f":"ROUND(F61*VLOOKUP(D61,ALLOCTABLE_Distr_Customer,$N$10,FALSE),0)","v":0},{"$f":"ROUND(F61*VLOOKUP(D61,ALLOCTABLE_Distr_Customer,$O$10,FALSE),0)","v":0},{"$f":"ROUND(F61*VLOOKUP(D61,ALLOCTABLE_Distr_Customer,$P$10,FALSE),0)","v":0},{"$f":"ROUND(F61*VLOOKUP(D61,ALLOCTABLE_Distr_Customer,$Q$10,FALSE),0)","v":0},{"$f":"SUM(G61:Q61)","v":0},{"$f":"F61-R61","v":0}]
[5,null,{"$f":"'FR-16(7)(v)-1 Functional'!C62","v":"  PRODUCTION PLANT IN SERVICE"},null,null,{"$f":"SUM(F59:F61)","v":0},{"$f":"SUM(G59:G61)","v":0},{"$f":"SUM(H59:H61)","v":0},{"$f":"SUM(I59:I61)","v":0},{"$f":"SUM(J59:J61)","v":0},0,0,0,0,0,0,{"$f":"SUM($Q$59:$Q$61)","v":0},{"$f":"SUM(R59:R61)","v":0},{"$f":"SUM(S59:S61)","v":0}]
[6]
[7,"TRANSMISSION PLANT"]
[8,null,"MAIN STEP-UP TRANSFORMERS",{"$f":"'FR-16(7)(v)-1 Functional'!D65","v":"K202"},null,{"$f":"'FR-16(7)(v)-10 DIST Classified'!I65","v":0},{"$f":"F65-SUM(H65:Q65)","v":0},{"$f":"ROUND(F65*VLOOKUP(D65,ALLOCTABLE_Distr_Customer,$H$10,FALSE),0)","v":0},{"$f":"ROUND(F65*VLOOKUP(D65,ALLOCTABLE_Distr_Customer,$I$10,FALSE),0)","v":0},{"$f":"ROUND(F65*VLOOKUP(D65,ALLOCTABLE_Distr_Customer,$J$10,FALSE),0)","v":0},{"$f":"ROUND(F65*VLOOKUP(D65,ALLOCTABLE_Distr_Customer,$K$10,FALSE),0)","v":0},{"$f":"ROUND(F65*VLOOKUP(D65,ALLOCTABLE_Distr_Customer,$L$10,FALSE),0)","v":0},{"$f":"ROUND(F65*VLOOKUP(D65,ALLOCTABLE_Distr_Customer,$M$10,FALSE),0)","v":0},{"$f":"ROUND(F65*VLOOKUP(D65,ALLOCTABLE_Distr_Customer,$N$10,FALSE),0)","v":0},{"$f":"ROUND(F65*VLOOKUP(D65,ALLOCTABLE_Distr_Customer,$O$10,FALSE),0)","v":0},{"$f":"ROUND(F65*VLOOKUP(D65,ALLOCTABLE_Distr_Customer,$P$10,FALSE),0)","v":0},{"$f":"ROUND(F65*VLOOKUP(D65,ALLOCTABLE_Distr_Customer,$Q$10,FALSE),0)","v":0},{"$f":"SUM(G65:Q65)","v":0},{"$f":"F65-R65","v":0}]
[9,null,"OTHER TRANSMISSION",{"$f":"'FR-16(7)(v)-1 Functional'!D66","v":"K202"},null,{"$f":"'FR-16(7)(v)-10 DIST Classified'!I66","v":0},{"$f":"F66-SUM(H66:Q66)","v":0},{"$f":"ROUND(F66*VLOOKUP(D66,ALLOCTABLE_Distr_Customer,$H$10,FALSE),0)","v":0},{"$f":"ROUND(F66*VLOOKUP(D66,ALLOCTABLE_Distr_Customer,$I$10,FALSE),0)","v":0},{"$f":"ROUND(F66*VLOOKUP(D66,ALLOCTABLE_Distr_Customer,$J$10,FALSE),0)","v":0},{"$f":"ROUND(F66*VLOOKUP(D66,ALLOCTABLE_Distr_Customer,$K$10,FALSE),0)","v":0},{"$f":"ROUND(F66*VLOOKUP(D66,ALLOCTABLE_Distr_Customer,$L$10,FALSE),0)","v":0},{"$f":"ROUND(F66*VLOOKUP(D66,ALLOCTABLE_Distr_Customer,$M$10,FALSE),0)","v":0},{"$f":"ROUND(F66*VLOOKUP(D66,ALLOCTABLE_Distr_Customer,$N$10,FALSE),0)","v":0},{"$f":"ROUND(F66*VLOOKUP(D66,ALLOCTABLE_Distr_Customer,$O$10,FALSE),0)","v":0},{"$f":"ROUND(F66*VLOOKUP(D66,ALLOCTABLE_Distr_Customer,$P$10,FALSE),0)","v":0},{"$f":"ROUND(F66*VLOOKUP(D66,ALLOCTABLE_Distr_Customer,$Q$10,FALSE),0)","v":0},{"$f":"SUM(G66:Q66)","v":0},{"$f":"F66-R66","v":0}]
[10,null,"ADJUSTMENT",{"$f":"'FR-16(7)(v)-1 Functional'!D67","v":"K202"},null,{"$f":"'FR-16(7)(v)-10 DIST Classified'!I67","v":0},{"$f":"F67-SUM(H67:Q67)","v":0},{"$f":"ROUND(F67*VLOOKUP(D67,ALLOCTABLE_Distr_Customer,$H$10,FALSE),0)","v":0},{"$f":"ROUND(F67*VLOOKUP(D67,ALLOCTABLE_Distr_Customer,$I$10,FALSE),0)","v":0},{"$f":"ROUND(F67*VLOOKUP(D67,ALLOCTABLE_Distr_Customer,$J$10,FALSE),0)","v":0},{"$f":"ROUND(F67*VLOOKUP(D67,ALLOCTABLE_Distr_Customer,$K$10,FALSE),0)","v":0},{"$f":"ROUND(F67*VLOOKUP(D67,ALLOCTABLE_Distr_Customer,$L$10,FALSE),0)","v":0},{"$f":"ROUND(F67*VLOOKUP(D67,ALLOCTABLE_Distr_Customer,$M$10,FALSE),0)","v":0},{"$f":"ROUND(F67*VLOOKUP(D67,ALLOCTABLE_Distr_Customer,$N$10,FALSE),0)","v":0},{"$f":"ROUND(F67*VLOOKUP(D67,ALLOCTABLE_Distr_Customer,$O$10,FALSE),0)","v":0},{"$f":"ROUND(F67*VLOOKUP(D67,ALLOCTABLE_Distr_Customer,$P$10,FALSE),0)","v":0},{"$f":"ROUND(F67*VLOOKUP(D67,ALLOCTABLE_Distr_Customer,$Q$10,FALSE),0)","v":0},{"$f":"SUM(G67:Q67)","v":0},{"$f":"F67-R67","v":0}]
[11,null,{"$f":"'FR-16(7)(v)-1 Functional'!C68","v":"  TRANSMISSION PLANT IN SERVICE"},null,null,{"$f":"SUM(F65:F67)","v":0},0,0,0,0,0,0,0,0,0,0,0,0,{"$f":"SUM(S65)","v":0}]
[12]
[13,"TOTAL PROD & TRANS PLANT",null,null,null,{"$f":"F68+F62","v":0},{"$f":"G68+G62","v":0},{"$f":"H68+H62","v":0},{"$f":"I68+I62","v":0},{"$f":"J68+J62","v":0},0,0,0,0,0,0,{"$f":"$Q$68+$Q$62","v":0},{"$f":"R68+R62","v":0},{"$f":"S68+S62","v":0}]
[14]
[15,"DISTRIBUTION PLANT"]
[16,null,{"$f":"'FR-16(7)(v)-1 Functional'!C73","v":"SUBSTATIONS"},{"$f":"'FR-16(7)(v)-1 Functional'!D73","v":"K215"},null,{"$f":"'FR-16(7)(v)-10 DIST Classified'!I73","v":0},{"$f":"F73-SUM(H73:Q73)","v":0},{"$f":"ROUND(F73*VLOOKUP(D73,ALLOCTABLE_Distr_Customer,$H$10,FALSE),0)","v":0},{"$f":"ROUND(F73*VLOOKUP(D73,ALLOCTABLE_Distr_Customer,$I$10,FALSE),0)","v":0},{"$f":"ROUND(F73*VLOOKUP(D73,ALLOCTABLE_Distr_Customer,$J$10,FALSE),0)","v":0},{"$f":"ROUND(F73*VLOOKUP(D73,ALLOCTABLE_Distr_Customer,$K$10,FALSE),0)","v":0},{"$f":"ROUND(F73*VLOOKUP(D73,ALLOCTABLE_Distr_Customer,$L$10,FALSE),0)","v":0},{"$f":"ROUND(F73*VLOOKUP(D73,ALLOCTABLE_Distr_Customer,$M$10,FALSE),0)","v":0},{"$f":"ROUND(F73*VLOOKUP(D73,ALLOCTABLE_Distr_Customer,$N$10,FALSE),0)","v":0},{"$f":"ROUND(F73*VLOOKUP(D73,ALLOCTABLE_Distr_Customer,$O$10,FALSE),0)","v":0},{"$f":"ROUND(F73*VLOOKUP(D73,ALLOCTABLE_Distr_Customer,$P$10,FALSE),0)","v":0},{"$f":"ROUND(F73*VLOOKUP(D73,ALLOCTABLE_Distr_Customer,$Q$10,FALSE),0)","v":0},{"$f":"SUM(G73:Q73)","v":0},{"$f":"F73-R73","v":0}]
[17,null,{"$f":"'FR-16(7)(v)-1 Functional'!C74","v":"POLES, TOWERS  & FIXTURES - PRIMARY - DEMAND"},{"$f":"'FR-16(7)(v)-1 Functional'!D74","v":"K205"},null,{"$f":"'FR-16(7)(v)-10 DIST Classified'!I74","v":0},{"$f":"F74-SUM(H74:Q74)","v":0},0,0,0,0,0,0,0,0,0,{"$f":"ROUND(F74*VLOOKUP(D74,ALLOCTABLE_Distr_Customer,$Q$10,FALSE),0)","v":0},{"$f":"SUM(G74:Q74)","v":0},{"$f":"F74-R74","v":0}]
[18,null,{"$f":"'FR-16(7)(v)-1 Functional'!C75","v":"POLES, TOWERS  & FIXTURES - PRIMARY - CUSTOMER"},"K406",null,{"$f":"'FR-16(7)(v)-10 DIST Classified'!I75","v":15106661},{"$f":"F75-SUM(H75:Q75)","v":13626963},1376217,18279,10877,1511,16919,3928,1057,0,49701,{"$f":"ROUND(F75*VLOOKUP(D75,ALLOCTABLE_Distr_Customer,$Q$10,FALSE),0)","v":1209},{"$f":"SUM(G75:Q75)","v":15106661},{"$f":"F75-R75","v":0}]
[19,null,{"$f":"'FR-16(7)(v)-1 Functional'!C76","v":"POLES, TOWERS  & FIXTURES - SECONDARY - DEMAND"},{"$f":"'FR-16(7)(v)-1 Functional'!D76","v":"K206"},null,{"$f":"'FR-16(7)(v)-10 DIST Classified'!I76","v":0},0,0,0,0,0,0,0,0,0,0,0,0,0]
[20,null,{"$f":"'FR-16(7)(v)-1 Functional'!C77","v":"POLES, TOWERS  & FIXTURES - SECONDARY - CUSTOMER"},"K406",null,{"$f":"'FR-16(7)(v)-10 DIST Classified'!I77","v":3414764},3080287,311085,4132,2459,341,3825,888,239,0,11235,273,3414764,0]
[21,null,{"$f":"'FR-16(7)(v)-1 Functional'!C78","v":"CONDUCTORS - OVERHEAD / PRIMARY - DEMAND"},{"$f":"'FR-16(7)(v)-1 Functional'!D78","v":"K205"},null,{"$f":"'FR-16(7)(v)-10 DIST Classified'!I78","v":0},0,0,0,0,0,0,0,0,0,0,0,0,0]
[22,null,{"$f":"'FR-16(7)(v)-1 Functional'!C79","v":"CONDUCTORS - OVERHEAD / PRIMARY - CUSTOMER"},"K406",null,{"$f":"'FR-16(7)(v)-10 DIST Classified'!I79","v":16426781},14817778,1496480,19876,11827,1643,18398,4271,1150,0,54044,1314,16426781,0]
[23,null,{"$f":"'FR-16(7)(v)-1 Functional'!C80","v":"CONDUCTORS - OVERHEAD / SECONDARY - DEMAND"},{"$f":"'FR-16(7)(v)-1 Functional'!D80","v":"K206"},null,{"$f":"'FR-16(7)(v)-10 DIST Classified'!I80","v":0},0,0,0,0,0,0,0,0,0,0,0,0,0]
[24,null,{"$f":"'FR-16(7)(v)-1 Functional'!C81","v":"CONDUCTORS - OVERHEAD / SECONDARY - CUSTOMER"},"K406",null,{"$f":"'FR-16(7)(v)-10 DIST Classified'!I81","v":6804493},6137995,619889,8233,4899,680,7621,1769,476,0,22387,544,6804493,0]
[25,null,{"$f":"'FR-16(7)(v)-1 Functional'!C82","v":"CONDUCTORS - UNDERGROUND / PRIMARY - DEMAND"},{"$f":"'FR-16(7)(v)-1 Functional'!D82","v":"K205"},null,{"$f":"'FR-16(7)(v)-10 DIST Classified'!I82","v":0},0,0,0,0,0,0,0,0,0,0,0,0,0]
[26,null,{"$f":"'FR-16(7)(v)-1 Functional'!C83","v":"CONDUCTORS - UNDERGROUND / PRIMARY - CUSTOMER"},"K406",null,{"$f":"'FR-16(7)(v)-10 DIST Classified'!I83","v":17434066},15726400,1588243,21095,12553,1743,19526,4533,1220,0,57358,1395,17434066,0]
[27,null,{"$f":"'FR-16(7)(v)-1 Functional'!C84","v":"CONDUCTORS - UNDERGROUND / SECONDARY - DEMAND"},{"$f":"'FR-16(7)(v)-1 Functional'!D84","v":"K206"},null,{"$f":"'FR-16(7)(v)-10 DIST Classified'!I84","v":0},0,0,0,0,0,0,0,0,0,0,0,0,0]
[28,null,{"$f":"'FR-16(7)(v)-1 Functional'!C85","v":"CONDUCTORS - UNDERGROUND / SECONDARY - CUSTOMER"},"K406",null,{"$f":"'FR-16(7)(v)-10 DIST Classified'!I85","v":5451847},4917839,496663,6597,3925,545,6106,1417,382,0,17937,436,5451847,0]
[29,null,{"$f":"'FR-16(7)(v)-1 Functional'!C86","v":"TRANSFORMERS DEMAND RELATED"},{"$f":"'FR-16(7)(v)-1 Functional'!D86","v":"K215"},null,{"$f":"'FR-16(7)(v)-10 DIST Classified'!I86","v":0},{"$f":"F86-SUM(H86:Q86)","v":0},{"$f":"ROUND(F86*VLOOKUP(D86,ALLOCTABLE_Distr_Customer,$H$10,FALSE),0)","v":0},0,0,0,0,0,0,0,0,{"$f":"ROUND(F86*VLOOKUP(D86,ALLOCTABLE_Distr_Customer,$Q$10,FALSE),0)","v":0},{"$f":"SUM(G86:Q86)","v":0},{"$f":"F86-R86","v":0}]
[30,null,{"$f":"'FR-16(7)(v)-1 Functional'!C87","v":"TRANSFORMERS CUSTOMER RELATED"},"K406",null,{"$f":"'FR-16(7)(v)-10 DIST Classified'!I87","v":15311023},13811309,{"$f":"ROUND(F87*VLOOKUP(D87,ALLOCTABLE_Distr_Customer,$H$10,FALSE),0)","v":1394834},{"$f":"ROUND(F87*VLOOKUP(D87,ALLOCTABLE_Distr_Customer,$I$10,FALSE),0)","v":18526},{"$f":"ROUND(F87*VLOOKUP(D87,ALLOCTABLE_Distr_Customer,$J$10,FALSE),0)","v":11024},{"$f":"ROUND(F87*VLOOKUP(D87,ALLOCTABLE_Distr_Customer,$K$10,FALSE),0)","v":1531},{"$f":"ROUND(F87*VLOOKUP(D87,ALLOCTABLE_Distr_Customer,$L$10,FALSE),0)","v":17148},{"$f":"ROUND(F87*VLOOKUP(D87,ALLOCTABLE_Distr_Customer,$M$10,FALSE),0)","v":3981},{"$f":"ROUND(F87*VLOOKUP(D87,ALLOCTABLE_Distr_Customer,$N$10,FALSE),0)","v":1072},{"$f":"ROUND(F87*VLOOKUP(D87,ALLOCTABLE_Distr_Customer,$O$10,FALSE),0)","v":0},50373,1225,15311023,0]
[31,null,{"$f":"'FR-16(7)(v)-1 Functional'!C88","v":"SERVICES"},{"$f":"'FR-16(7)(v)-1 Functional'!D88","v":"K217"},null,{"$f":"'FR-16(7)(v)-10 DIST Classified'!I88","v":21226508},18964823,1913994,25472,60708,2123,137336,32689,8915,9764,68986,1698,21226508,0]
[32,null,{"$f":"'FR-16(7)(v)-1 Functional'!C89","v":"METERS"},{"$f":"'FR-16(7)(v)-1 Functional'!D89","v":"K407"},null,{"$f":"'FR-16(7)(v)-10 DIST Classified'!I89","v":22568727},18242980,4128497,0,31596,4965,146922,0,5416,5191,0,3160,22568727,0]
[33,null,{"$f":"'FR-16(7)(v)-1 Functional'!C90","v":"STREET LIGHTS"},{"$f":"'FR-16(7)(v)-1 Functional'!D90","v":"K401"},null,{"$f":"'FR-16(7)(v)-10 DIST Classified'!I90","v":5595857},0,0,0,0,0,0,0,0,0,5595857,0,5595857,0]
[34,null,{"$f":"'FR-16(7)(v)-1 Functional'!C91","v":"ADJUSTMENT  "},{"$f":"'FR-16(7)(v)-1 Functional'!D91","v":"K209"},null,{"$f":"'FR-16(7)(v)-10 DIST Classified'!I91","v":0},0,0,0,0,0,0,0,0,0,0,0,0,0]
[35,null,{"$f":"'FR-16(7)(v)-1 Functional'!C92","v":"CONSTRUCTION NOT CLASSIFIED"},{"$f":"'FR-16(7)(v)-1 Functional'!D92","v":"K209"},null,{"$f":"'FR-16(7)(v)-10 DIST Classified'!I92","v":25268142},21358150,2603377,23752,29311,3032,73025,10360,3790,3032,1158039,{"$f":"ROUND(F92*VLOOKUP(D92,ALLOCTABLE_Distr_Customer,$Q$10,FALSE),0)","v":2274},25268142,0]
[36,null,{"$f":"'FR-16(7)(v)-1 Functional'!C93","v":"RWIP"},{"$f":"'FR-16(7)(v)-1 Functional'!D93","v":"K215"},null,{"$f":"'FR-16(7)(v)-10 DIST Classified'!I93","v":0},{"$f":"F93-SUM(H93:Q93)","v":0},{"$f":"ROUND(F93*VLOOKUP(D93,ALLOCTABLE_Distr_Customer,$H$10,FALSE),0)","v":0},{"$f":"ROUND(F93*VLOOKUP(D93,ALLOCTABLE_Distr_Customer,$I$10,FALSE),0)","v":0},{"$f":"ROUND(F93*VLOOKUP(D93,ALLOCTABLE_Distr_Customer,$J$10,FALSE),0)","v":0},{"$f":"ROUND(F93*VLOOKUP(D93,ALLOCTABLE_Distr_Customer,$K$10,FALSE),0)","v":0}]
[37,null,{"$f":"'FR-16(7)(v)-1 Functional'!C94","v":"  DISTRIBUTION PLANT IN SERVICE"},null,null,{"$f":"SUM(F73:F93)","v":154608869},{"$f":"SUM(G73:G92)","v":130684524},{"$f":"SUM(H73:H92)","v":15929279},{"$f":"SUM(I73:I92)","v":145962},{"$f":"SUM(J73:J92)","v":179179},18114,446826,63836,23717,17987,7085917,{"$f":"SUM(Q73:Q92)","v":13528},{"$f":"SUM(R73:R92)","v":154608869},{"$f":"SUM(S73:S92)","v":0}]
[38]
[39,"TOTAL TRANS & DIST PLANT",null,null,null,{"$f":"F94+F68","v":154608869},{"$f":"G94+G68","v":130684524},{"$f":"H94+H68","v":15929279},{"$f":"I94+I68","v":145962},{"$f":"J94+J68","v":179179},18114,446826,63836,23717,17987,7085917,{"$f":"Q94+$Q$68","v":13528},{"$f":"R94+R68","v":154608869},{"$f":"S94+S68","v":0}]
[40,"TOTAL GROSS PTD PLANT",null,null,null,{"$f":"F94+F70","v":154608869},{"$f":"G94+G70","v":130684524},{"$f":"H94+H70","v":15929279},{"$f":"I94+I70","v":145962},{"$f":"J94+J70","v":179179},18114,446826,63836,23717,17987,7085917,{"$f":"Q94+Q70","v":13528},{"$f":"R94+R70","v":154608869},{"$f":"S94+S70","v":0}]
[41]
[42,"GENERAL & INTANGIBLE PLANT"]
[43,null,{"$f":"'FR-16(7)(v)-1 Functional'!C100","v":"PRODUCTION - DEMAND"},{"$f":"'FR-16(7)(v)-1 Functional'!D100","v":"K201"},null,{"$f":"'FR-16(7)(v)-10 DIST Classified'!I100","v":0},{"$f":"F100-SUM(H100:Q100)","v":0},{"$f":"ROUND(F100*VLOOKUP(D100,ALLOCTABLE_Distr_Customer,$H$10,FALSE),0)","v":0},{"$f":"ROUND(F100*VLOOKUP(D100,ALLOCTABLE_Distr_Customer,$I$10,FALSE),0)","v":0},{"$f":"ROUND(F100*VLOOKUP(D100,ALLOCTABLE_Distr_Customer,$J$10,FALSE),0)","v":0},{"$f":"ROUND(F100*VLOOKUP(D100,ALLOCTABLE_Distr_Customer,$K$10,FALSE),0)","v":0},{"$f":"ROUND(F100*VLOOKUP(D100,ALLOCTABLE_Distr_Customer,$L$10,FALSE),0)","v":0},{"$f":"ROUND(F100*VLOOKUP(D100,ALLOCTABLE_Distr_Customer,$M$10,FALSE),0)","v":0},{"$f":"ROUND(F100*VLOOKUP(D100,ALLOCTABLE_Distr_Customer,$N$10,FALSE),0)","v":0},{"$f":"ROUND(F100*VLOOKUP(D100,ALLOCTABLE_Distr_Customer,$O$10,FALSE),0)","v":0},{"$f":"ROUND(F100*VLOOKUP(D100,ALLOCTABLE_Distr_Customer,$P$10,FALSE),0)","v":0},{"$f":"ROUND(F100*VLOOKUP(D100,ALLOCTABLE_Distr_Customer,$Q$10,FALSE),0)","v":0},{"$f":"SUM(G100:Q100)","v":0},{"$f":"F100-R100","v":0}]
[44,null,{"$f":"'FR-16(7)(v)-1 Functional'!C101","v":"PRODUCTION - ENERGY"},{"$f":"'FR-16(7)(v)-1 Functional'!D101","v":"K301"},null,{"$f":"'FR-16(7)(v)-10 DIST Classified'!I101","v":0},0,0,0,0,0,0,0,0,0,0,0,0,0]
[45,null,{"$f":"'FR-16(7)(v)-1 Functional'!C102","v":"TRANSMISSION"},{"$f":"'FR-16(7)(v)-1 Functional'!D102","v":"K202"},null,{"$f":"'FR-16(7)(v)-10 DIST Classified'!I102","v":0},0,0,0,0,0,0,0,0,0,0,0,0,0]
[46,null,{"$f":"'FR-16(7)(v)-1 Functional'!C103","v":"DISTRIBUTION - DEMAND"},{"$f":"'FR-16(7)(v)-1 Functional'!D103","v":"K201"},null,{"$f":"'FR-16(7)(v)-10 DIST Classified'!I103","v":0},0,0,0,0,0,0,0,0,0,0,0,0,0]
[47,null,{"$f":"'FR-16(7)(v)-1 Functional'!C104","v":"DISTRIBUTION - CUSTOMER"},{"$f":"'FR-16(7)(v)-1 Functional'!D104","v":"K405"},null,{"$f":"'FR-16(7)(v)-10 DIST Classified'!I104","v":1946061},1755229,177286,2355,1401,195,2180,506,136,214,6403,156,1946061,0]
[48,null,{"$f":"'FR-16(7)(v)-1 Functional'!C105","v":"CUSTOMER ACCOUNTING"},{"$f":"'FR-16(7)(v)-1 Functional'!D105","v":"A308"},null,{"$f":"'FR-16(7)(v)-10 DIST Classified'!I105","v":6617240},5391265,1151532,6683,9132,1257,40564,-3309,1588,-596,18131,993,6617240,0]
[49,null,{"$f":"'FR-16(7)(v)-1 Functional'!C106","v":"CUSTOMER SERVICE & INFORMATION"},{"$f":"'FR-16(7)(v)-1 Functional'!D106","v":"A310"},null,{"$f":"'FR-16(7)(v)-10 DIST Classified'!I106","v":432753},390315,39424,524,312,43,485,113,30,48,1424,35,432753,0]
[50,null,{"$f":"'FR-16(7)(v)-1 Functional'!C107","v":"SALES"},{"$f":"'FR-16(7)(v)-1 Functional'!D107","v":"A312"},null,{"$f":"'FR-16(7)(v)-10 DIST Classified'!I107","v":0},0,0,0,0,0,0,0,0,0,0,0,0,0]
[51,null,{"$f":"'FR-16(7)(v)-1 Functional'!C108","v":"ADJUSTMENT"},{"$f":"'FR-16(7)(v)-1 Functional'!D108","v":"A315"},null,{"$f":"'FR-16(7)(v)-10 DIST Classified'!I108","v":0},0,0,0,0,0,0,0,0,0,0,0,0,0]
[52,null,{"$f":"'FR-16(7)(v)-1 Functional'!C109","v":"  GEN & INTANG PLANT IN SERVICE"},null,null,{"$f":"SUM(F100:F108)","v":8996054},{"$f":"SUM(G100:G108)","v":7536809},{"$f":"SUM(H100:H108)","v":1368242},{"$f":"SUM(I100:I108)","v":9562},{"$f":"SUM(J100:J108)","v":10845},1495,43229,-2690,1754,-334,25958,{"$f":"SUM(Q100:Q108)","v":1184},{"$f":"SUM(R100:R108)","v":8996054},{"$f":"SUM(S100:S108)","v":0}]
[53]
[54,"COMMON & OTHER PLANT"]
[55,null,{"$f":"'FR-16(7)(v)-1 Functional'!C112","v":"PRODUCTION - DEMAND"},{"$f":"'FR-16(7)(v)-1 Functional'!D112","v":"K201"},null,{"$f":"'FR-16(7)(v)-10 DIST Classified'!I112","v":0},{"$f":"F112-SUM(H112:Q112)","v":0},{"$f":"ROUND(F112*VLOOKUP(D112,ALLOCTABLE_Distr_Customer,$H$10,FALSE),0)","v":0},{"$f":"ROUND(F112*VLOOKUP(D112,ALLOCTABLE_Distr_Customer,$I$10,FALSE),0)","v":0},{"$f":"ROUND(F112*VLOOKUP(D112,ALLOCTABLE_Distr_Customer,$J$10,FALSE),0)","v":0},{"$f":"ROUND(F112*VLOOKUP(D112,ALLOCTABLE_Distr_Customer,$K$10,FALSE),0)","v":0},{"$f":"ROUND(F112*VLOOKUP(D112,ALLOCTABLE_Distr_Customer,$L$10,FALSE),0)","v":0},{"$f":"ROUND(F112*VLOOKUP(D112,ALLOCTABLE_Distr_Customer,$M$10,FALSE),0)","v":0},{"$f":"ROUND(F112*VLOOKUP(D112,ALLOCTABLE_Distr_Customer,$N$10,FALSE),0)","v":0},{"$f":"ROUND(F112*VLOOKUP(D112,ALLOCTABLE_Distr_Customer,$O$10,FALSE),0)","v":0},{"$f":"ROUND(F112*VLOOKUP(D112,ALLOCTABLE_Distr_Customer,$P$10,FALSE),0)","v":0},{"$f":"ROUND(F112*VLOOKUP(D112,ALLOCTABLE_Distr_Customer,$Q$10,FALSE),0)","v":0},{"$f":"SUM(G112:Q112)","v":0},{"$f":"F112-R112","v":0}]
[56,null,{"$f":"'FR-16(7)(v)-1 Functional'!C113","v":"PRODUCTION - ENERGY"},{"$f":"'FR-16(7)(v)-1 Functional'!D113","v":"K301"},null,{"$f":"'FR-16(7)(v)-10 DIST Classified'!I113","v":0},0,0,0,0,0,0,0,0,0,0,0,0,0]
[57,null,{"$f":"'FR-16(7)(v)-1 Functional'!C114","v":"TRANSMISSION"},{"$f":"'FR-16(7)(v)-1 Functional'!D114","v":"K202"},null,{"$f":"'FR-16(7)(v)-10 DIST Classified'!I114","v":0},0,0,0,0,0,0,0,0,0,0,0,0,0]
[58,null,{"$f":"'FR-16(7)(v)-1 Functional'!C115","v":"DISTRIBUTION - DEMAND"},{"$f":"'FR-16(7)(v)-1 Functional'!D115","v":"K201"},null,{"$f":"'FR-16(7)(v)-10 DIST Classified'!I115","v":0},0,0,0,0,0,0,0,0,0,0,0,0,0]
[59,null,{"$f":"'FR-16(7)(v)-1 Functional'!C116","v":"DISTRIBUTION - CUSTOMER"},{"$f":"'FR-16(7)(v)-1 Functional'!D116","v":"K405"},null,{"$f":"'FR-16(7)(v)-10 DIST Classified'!I116","v":1101435},993428,100341,1333,793,110,1234,286,77,121,3624,88,1101435,0]
[60,null,{"$f":"'FR-16(7)(v)-1 Functional'!C117","v":"CUSTOMER ACCOUNTING"},{"$f":"'FR-16(7)(v)-1 Functional'!D117","v":"A308"},null,{"$f":"'FR-16(7)(v)-10 DIST Classified'!I117","v":3745240},3051359,651747,3783,5168,712,22958,-1873,899,-337,10262,562,3745240,0]
[61,null,{"$f":"'FR-16(7)(v)-1 Functional'!C118","v":"CUSTOMER SERVICE & INFORMATION"},{"$f":"'FR-16(7)(v)-1 Functional'!D118","v":"A310"},null,{"$f":"'FR-16(7)(v)-10 DIST Classified'!I118","v":244930},220913,22313,296,176,24,274,64,17,27,806,20,244930,0]
[62,null,{"$f":"'FR-16(7)(v)-1 Functional'!C119","v":"SALES"},{"$f":"'FR-16(7)(v)-1 Functional'!D119","v":"A312"},null,{"$f":"'FR-16(7)(v)-10 DIST Classified'!I119","v":0},0,0,0,0,0,0,0,0,0,0,0,0,0]
[63,null,{"$f":"'FR-16(7)(v)-1 Functional'!C120","v":"ADJUSTMENT"},{"$f":"'FR-16(7)(v)-1 Functional'!D120","v":"A315"},null,{"$f":"'FR-16(7)(v)-10 DIST Classified'!I120","v":0},0,0,0,0,0,0,0,0,0,0,0,0,0]
[64,null,{"$f":"'FR-16(7)(v)-1 Functional'!C121","v":"  COMMON & OTHER PLANT IN SERVICE"},null,null,{"$f":"SUM(F112:F120)","v":5091605},{"$f":"SUM(G112:G120)","v":4265700},{"$f":"SUM(H112:H120)","v":774401},{"$f":"SUM(I112:I120)","v":5412},{"$f":"SUM(J112:J120)","v":6137},846,24466,-1523,993,-189,14692,{"$f":"SUM(Q112:Q120)","v":670},{"$f":"SUM(R112:R120)","v":5091605},{"$f":"SUM(S112:S120)","v":0}]
[65]
[66,"GROSS ELECTRIC PLANT IN SERVICE",null,null,null,{"$f":"F97+F109+F121","v":168696528},{"$f":"G97+G109+G121","v":142487033},{"$f":"H97+H109+H121","v":18071922},{"$f":"I97+I109+I121","v":160936},{"$f":"J97+J109+J121","v":196161},20455,514521,59623,26464,17464,7126567,{"$f":"Q97+Q109+Q121","v":15382},{"$f":"R97+R109+R121","v":168696528},{"$f":"S97+S109+S121","v":0}]
[]
[{"$f":"co_name","v":"DUKE ENERGY KENTUCKY, INC."},null,null,null,null,null,null,null,null,null,null,null,null,null,null,null,null,{"$f":"R1","v":"FR-16(7)(v)-13"}]
[{"$f":"$A$2","v":"DISTRIBUTION CUSTOMER ALLOCATED - ELECTRIC COST OF SERVICE"},null,null,null,null,null,null,null,null,null,null,null,null,null,null,null,null,{"$f":"R2","v":"WITNESS RESPONSIBLE:"}]
[{"$f":"case_name","v":"CASE NO: 2019-00271"},null,null,null,null,null,null,null,null,null,null,null,null,null,null,null,null,{"$f":"Witness","v":"JAMES E. ZIOLKOWSKI"}]
[{"$f":"data_filing","v":"DATA: 12 MONTHS ACTUAL  & 0 MONTHS ESTIMATED"},null,null,null,null,null,null,null,null,null,null,null,null,null,null,null,null,{"$f":"\"PAGE \"&Pages-15&\" OF \"&Pages","v":"PAGE 3 OF 18"}]
[{"$f":"type","v":"TYPE OF FILING: \"X\" ORIGINAL   UPDATED    REVISED  "}]
[]
[null,null,null,null,null,{"$f":"F$7","v":"TOTAL"},null,{"$f":"H$7","v":"DS"},{"$f":"I$7","v":"GSFL"},{"$f":"J$7","v":"EH"},{"$f":"K$7","v":"SP"},"DT SEC","DT PRI","DP","TT",null,"OTHER"]
["LINE",null,null,null,null,{"$f":"F$8","v":"DISTRIBUTION"},{"$f":"G$8","v":"RS"},{"$f":"H$8","v":"SECONDARY"},{"$f":"I$8","v":"SECONDARY"},{"$f":"J$8","v":"SECONDARY"},{"$f":"K$8","v":"SECONDARY"},"SECONDARY","PRIMARY","PRIMARY","TRANSMISSION","LT","WATER",{"$f":"R8","v":"TOTAL"},"ALL"]
["NO.","DEPRECIATION RESERVE",null,"ALLO",null,{"$f":"F$9","v":"CUSTOMER"},{"$f":"G$9","v":"RESIDENTIAL"},{"$f":"H$9","v":"DISTRIBUTION"},{"$f":"I$9","v":"DISTRIBUTION"},{"$f":"J$9","v":"DISTRIBUTION"},{"$f":"K$9","v":"DISTRIBUTION"},"DISTRIBUTION","DISTRIBUTION","DISTRIBUTION","TIME OF DAY","LIGHTING","PUMPING",{"$f":"R9","v":"AT ISSUE"},"OTHER"]
[null,null,"Schedule 3",null,null,null,{"$f":"G$10","v":3},{"$f":"H$10","v":4},{"$f":"I$10","v":5},{"$f":"J$10","v":6},{"$f":"K$10","v":7},8,9,10,11,12,13,null," "]
[1,"PRODUCTION PLANT"]
[2,null,"PRODUCTION STEAM",{"$f":"'FR-16(7)(v)-1 Functional'!D136","v":"K201"},null,{"$f":"'FR-16(7)(v)-10 DIST Classified'!I136","v":0},{"$f":"F136-SUM(H136:Q136)","v":0},{"$f":"ROUND(F136*VLOOKUP(D136,ALLOCTABLE_Distr_Customer,$H$10,FALSE),0)","v":0},{"$f":"ROUND(F136*VLOOKUP(D136,ALLOCTABLE_Distr_Customer,$I$10,FALSE),0)","v":0},{"$f":"ROUND(F136*VLOOKUP(D136,ALLOCTABLE_Distr_Customer,$J$10,FALSE),0)","v":0},{"$f":"ROUND(F136*VLOOKUP(D136,ALLOCTABLE_Distr_Customer,$K$10,FALSE),0)","v":0},{"$f":"ROUND(F136*VLOOKUP(D136,ALLOCTABLE_Distr_Customer,$L$10,FALSE),0)","v":0},{"$f":"ROUND(F136*VLOOKUP(D136,ALLOCTABLE_Distr_Customer,$M$10,FALSE),0)","v":0},{"$f":"ROUND(F136*VLOOKUP(D136,ALLOCTABLE_Distr_Customer,$N$10,FALSE),0)","v":0},{"$f":"ROUND(F136*VLOOKUP(D136,ALLOCTABLE_Distr_Customer,$O$10,FALSE),0)","v":0},{"$f":"ROUND(F136*VLOOKUP(D136,ALLOCTABLE_Distr_Customer,$P$10,FALSE),0)","v":0},{"$f":"ROUND(F136*VLOOKUP(D136,ALLOCTABLE_Distr_Customer,$Q$10,FALSE),0)","v":0},{"$f":"SUM(G136:Q136)","v":0},{"$f":"F136-R136","v":0}]
[3,null,"PRODUCTION OTHER",{"$f":"'FR-16(7)(v)-1 Functional'!D137","v":"K201"},null,{"$f":"'FR-16(7)(v)-10 DIST Classified'!I137","v":0},{"$f":"F137-SUM(H137:Q137)","v":0},{"$f":"ROUND(F136*VLOOKUP(D136,ALLOCTABLE_Distr_Customer,$H$10,FALSE),0)","v":0},{"$f":"ROUND(F137*VLOOKUP(D137,ALLOCTABLE_Distr_Customer,$I$10,FALSE),0)","v":0},{"$f":"ROUND(F137*VLOOKUP(D137,ALLOCTABLE_Distr_Customer,$J$10,FALSE),0)","v":0},{"$f":"ROUND(F137*VLOOKUP(D137,ALLOCTABLE_Distr_Customer,$K$10,FALSE),0)","v":0},{"$f":"ROUND(F137*VLOOKUP(D137,ALLOCTABLE_Distr_Customer,$L$10,FALSE),0)","v":0},{"$f":"ROUND(F137*VLOOKUP(D137,ALLOCTABLE_Distr_Customer,$M$10,FALSE),0)","v":0},{"$f":"ROUND(F137*VLOOKUP(D137,ALLOCTABLE_Distr_Customer,$N$10,FALSE),0)","v":0},{"$f":"ROUND(F137*VLOOKUP(D137,ALLOCTABLE_Distr_Customer,$O$10,FALSE),0)","v":0},{"$f":"ROUND(F137*VLOOKUP(D137,ALLOCTABLE_Distr_Customer,$P$10,FALSE),0)","v":0},{"$f":"ROUND(F137*VLOOKUP(D137,ALLOCTABLE_Distr_Customer,$Q$10,FALSE),0)","v":0},{"$f":"SUM(G137:Q137)","v":0},{"$f":"F137-R137","v":0}]
[4,null,{"$f":"'FR-16(7)(v)-1 Functional'!C138","v":"ADJUSTMENT"},{"$f":"'FR-16(7)(v)-1 Functional'!D138","v":"K201"},null,{"$f":"'FR-16(7)(v)-10 DIST Classified'!I138","v":0},{"$f":"F138-SUM(H138:Q138)","v":0},{"$f":"ROUND(F136*VLOOKUP(D136,ALLOCTABLE_Distr_Customer,$H$10,FALSE),0)","v":0},{"$f":"ROUND(F138*VLOOKUP(D138,ALLOCTABLE_Distr_Customer,$I$10,FALSE),0)","v":0},{"$f":"ROUND(F138*VLOOKUP(D138,ALLOCTABLE_Distr_Customer,$J$10,FALSE),0)","v":0},{"$f":"ROUND(F138*VLOOKUP(D138,ALLOCTABLE_Distr_Customer,$K$10,FALSE),0)","v":0},{"$f":"ROUND(F138*VLOOKUP(D138,ALLOCTABLE_Distr_Customer,$L$10,FALSE),0)","v":0},{"$f":"ROUND(F138*VLOOKUP(D138,ALLOCTABLE_Distr_Customer,$M$10,FALSE),0)","v":0},{"$f":"ROUND(F138*VLOOKUP(D138,ALLOCTABLE_Distr_Customer,$N$10,FALSE),0)","v":0},{"$f":"ROUND(F138*VLOOKUP(D138,ALLOCTABLE_Distr_Customer,$O$10,FALSE),0)","v":0},{"$f":"ROUND(F138*VLOOKUP(D138,ALLOCTABLE_Distr_Customer,$P$10,FALSE),0)","v":0},{"$f":"ROUND(F138*VLOOKUP(D138,ALLOCTABLE_Distr_Customer,$Q$10,FALSE),0)","v":0},{"$f":"SUM(G138:Q138)","v":0},{"$f":"F138-R138","v":0}]
[5,null,{"$f":"'FR-16(7)(v)-1 Functional'!C139","v":"  TOTAL PROD DEPREC RESERVE"},null,null,{"$f":"SUM(F136:F138)","v":0},0,0,0,0,0,0,0,0,0,0,0,0,{"$f":"SUM(S136:S136)","v":0}]
[6]
[7,"TRANSMISSION PLANT"]
[8,null,"MAIN STEP-UP TRANSFORMERS",{"$f":"'FR-16(7)(v)-1 Functional'!D142","v":"K202"},null,{"$f":"'FR-16(7)(v)-10 DIST Classified'!I142","v":0},{"$f":"F142-SUM(H142:Q142)","v":0},{"$f":"ROUND(F136*VLOOKUP(D136,ALLOCTABLE_Distr_Customer,$H$10,FALSE),0)","v":0},{"$f":"ROUND(F142*VLOOKUP(D142,ALLOCTABLE_Distr_Customer,$I$10,FALSE),0)","v":0},{"$f":"ROUND(F142*VLOOKUP(D142,ALLOCTABLE_Distr_Customer,$J$10,FALSE),0)","v":0},{"$f":"ROUND(F142*VLOOKUP(D142,ALLOCTABLE_Distr_Customer,$K$10,FALSE),0)","v":0},{"$f":"ROUND(F142*VLOOKUP(D142,ALLOCTABLE_Distr_Customer,$L$10,FALSE),0)","v":0},{"$f":"ROUND(F142*VLOOKUP(D142,ALLOCTABLE_Distr_Customer,$M$10,FALSE),0)","v":0},{"$f":"ROUND(F142*VLOOKUP(D142,ALLOCTABLE_Distr_Customer,$N$10,FALSE),0)","v":0},{"$f":"ROUND(F142*VLOOKUP(D142,ALLOCTABLE_Distr_Customer,$O$10,FALSE),0)","v":0},{"$f":"ROUND(F142*VLOOKUP(D142,ALLOCTABLE_Distr_Customer,$P$10,FALSE),0)","v":0},{"$f":"ROUND(F142*VLOOKUP(D142,ALLOCTABLE_Distr_Customer,$Q$10,FALSE),0)","v":0},{"$f":"SUM(G142:Q142)","v":0},{"$f":"F142-R142","v":0}]
[9,null,"OTHER TRANSMISSION",{"$f":"'FR-16(7)(v)-1 Functional'!D143","v":"K202"},null,{"$f":"'FR-16(7)(v)-10 DIST Classified'!I143","v":0},{"$f":"F143-SUM(H143:Q143)","v":0},{"$f":"ROUND(F136*VLOOKUP(D136,ALLOCTABLE_Distr_Customer,$H$10,FALSE),0)","v":0},{"$f":"ROUND(F143*VLOOKUP(D143,ALLOCTABLE_Distr_Customer,$I$10,FALSE),0)","v":0},{"$f":"ROUND(F143*VLOOKUP(D143,ALLOCTABLE_Distr_Customer,$J$10,FALSE),0)","v":0},{"$f":"ROUND(F143*VLOOKUP(D143,ALLOCTABLE_Distr_Customer,$K$10,FALSE),0)","v":0},{"$f":"ROUND(F143*VLOOKUP(D143,ALLOCTABLE_Distr_Customer,$L$10,FALSE),0)","v":0},{"$f":"ROUND(F143*VLOOKUP(D143,ALLOCTABLE_Distr_Customer,$M$10,FALSE),0)","v":0},{"$f":"ROUND(F143*VLOOKUP(D143,ALLOCTABLE_Distr_Customer,$N$10,FALSE),0)","v":0},{"$f":"ROUND(F143*VLOOKUP(D143,ALLOCTABLE_Distr_Customer,$O$10,FALSE),0)","v":0},{"$f":"ROUND(F143*VLOOKUP(D143,ALLOCTABLE_Distr_Customer,$P$10,FALSE),0)","v":0},{"$f":"ROUND(F143*VLOOKUP(D143,ALLOCTABLE_Distr_Customer,$Q$10,FALSE),0)","v":0},{"$f":"SUM(G143:Q143)","v":0},{"$f":"F143-R143","v":0}]
[10,null,"ADJUSTMENT",{"$f":"'FR-16(7)(v)-1 Functional'!D144","v":"K202"},null,{"$f":"'FR-16(7)(v)-10 DIST Classified'!I144","v":0},{"$f":"F144-SUM(H144:Q144)","v":0},{"$f":"ROUND(F136*VLOOKUP(D136,ALLOCTABLE_Distr_Customer,$H$10,FALSE),0)","v":0},{"$f":"ROUND(F144*VLOOKUP(D144,ALLOCTABLE_Distr_Customer,$I$10,FALSE),0)","v":0},{"$f":"ROUND(F144*VLOOKUP(D144,ALLOCTABLE_Distr_Customer,$J$10,FALSE),0)","v":0},{"$f":"ROUND(F144*VLOOKUP(D144,ALLOCTABLE_Distr_Customer,$K$10,FALSE),0)","v":0},{"$f":"ROUND(F144*VLOOKUP(D144,ALLOCTABLE_Distr_Customer,$L$10,FALSE),0)","v":0},{"$f":"ROUND(F144*VLOOKUP(D144,ALLOCTABLE_Distr_Customer,$M$10,FALSE),0)","v":0},{"$f":"ROUND(F144*VLOOKUP(D144,ALLOCTABLE_Distr_Customer,$N$10,FALSE),0)","v":0},{"$f":"ROUND(F144*VLOOKUP(D144,ALLOCTABLE_Distr_Customer,$O$10,FALSE),0)","v":0},{"$f":"ROUND(F144*VLOOKUP(D144,ALLOCTABLE_Distr_Customer,$P$10,FALSE),0)","v":0},{"$f":"ROUND(F144*VLOOKUP(D144,ALLOCTABLE_Distr_Customer,$Q$10,FALSE),0)","v":0},{"$f":"SUM(G144:Q144)","v":0},{"$f":"F144-R144","v":0}]
[11,null,"  TOTAL TRANS DEPREC RESERVE",null,null,{"$f":"SUM(F142:F144)","v":0},{"$f":"SUM(G142:G144)","v":0},0,0,0,0,0,0,0,0,0,0,{"$f":"SUM(R142:R144)","v":0},{"$f":"SUM(S142:S142)","v":0}]
[12]
[13,null,"TOTAL PROD & TRANS DEPREC RESERVE",null,null,{"$f":"F145+F139","v":0},{"$f":"G145+G139","v":0},{"$f":"$H$114+H139","v":0},{"$f":"$I$114+I139","v":0},{"$f":"$J$114+J139","v":0},{"$f":"$K$114+K139","v":0},{"$f":"$L$114+L139","v":0},{"$f":"$M$114+M139","v":0},{"$f":"$N$114+N139","v":0},{"$f":"$O$114+O139","v":0},{"$f":"$P$114+P139","v":0},{"$f":"$Q$114+Q139","v":0},{"$f":"SUM(G147:Q147)","v":0},{"$f":"F147-R147","v":0}]
[14]
[15,"DISTRIBUTION PLANT"]
[16,null,{"$f":"'FR-16(7)(v)-1 Functional'!C150","v":"SUBSTATIONS"},{"$f":"'FR-16(7)(v)-1 Functional'!D150","v":"K215"},null,{"$f":"'FR-16(7)(v)-10 DIST Classified'!I150","v":0},{"$f":"F150-SUM(H150:Q150)","v":0},{"$f":"ROUND(F150*VLOOKUP(D150,ALLOCTABLE_Distr_Customer,$H$10,FALSE),0)","v":0},{"$f":"ROUND(F150*VLOOKUP(D150,ALLOCTABLE_Distr_Customer,$I$10,FALSE),0)","v":0},{"$f":"ROUND(F150*VLOOKUP(D150,ALLOCTABLE_Distr_Customer,$J$10,FALSE),0)","v":0},{"$f":"ROUND(F150*VLOOKUP(D150,ALLOCTABLE_Distr_Customer,$K$10,FALSE),0)","v":0},{"$f":"ROUND(F150*VLOOKUP(D150,ALLOCTABLE_Distr_Customer,$L$10,FALSE),0)","v":0},{"$f":"ROUND(F150*VLOOKUP(D150,ALLOCTABLE_Distr_Customer,$M$10,FALSE),0)","v":0},{"$f":"ROUND(F150*VLOOKUP(D150,ALLOCTABLE_Distr_Customer,$N$10,FALSE),0)","v":0},{"$f":"ROUND(F150*VLOOKUP(D150,ALLOCTABLE_Distr_Customer,$O$10,FALSE),0)","v":0},{"$f":"ROUND(F150*VLOOKUP(D150,ALLOCTABLE_Distr_Customer,$P$10,FALSE),0)","v":0},{"$f":"ROUND(F150*VLOOKUP(D150,ALLOCTABLE_Distr_Customer,$Q$10,FALSE),0)","v":0},{"$f":"SUM(G150:Q150)","v":0},{"$f":"F150-R150","v":0}]
[17,null,{"$f":"'FR-16(7)(v)-1 Functional'!C151","v":"POLES, TOWERS  & FIXTURES - PRIMARY - DEMAND"},{"$f":"'FR-16(7)(v)-1 Functional'!D151","v":"K205"},null,{"$f":"'FR-16(7)(v)-10 DIST Classified'!I151","v":0},0,0,0,0,0,0,0,0,0,0,0,0,0]
[18,null,{"$f":"'FR-16(7)(v)-1 Functional'!C152","v":"POLES, TOWERS  & FIXTURES - PRIMARY - CUSTOMER"},"K406",null,{"$f":"'FR-16(7)(v)-10 DIST Classified'!I152","v":6911939},6234915,629678,8363,4977,691,7741,1797,484,0,22740,553,6911939,0]
[19,null,{"$f":"'FR-16(7)(v)-1 Functional'!C153","v":"POLES, TOWERS  & FIXTURES - SECONDARY - DEMAND"},{"$f":"'FR-16(7)(v)-1 Functional'!D153","v":"K206"},null,{"$f":"'FR-16(7)(v)-10 DIST Classified'!I153","v":0},0,0,0,0,0,0,0,0,0,0,0,0,0]
[20,null,{"$f":"'FR-16(7)(v)-1 Functional'!C154","v":"POLES, TOWERS  & FIXTURES - SECONDARY - CUSTOMER"},"K406",null,{"$f":"'FR-16(7)(v)-10 DIST Classified'!I154","v":1562400},1409363,142335,1891,1125,156,1750,406,109,0,5140,125,1562400,0]
[21,null,{"$f":"'FR-16(7)(v)-1 Functional'!C155","v":"CONDUCTORS - OVERHEAD / PRIMARY - DEMAND"},{"$f":"'FR-16(7)(v)-1 Functional'!D155","v":"K205"},null,{"$f":"'FR-16(7)(v)-10 DIST Classified'!I155","v":0},0,0,0,0,0,0,0,0,0,0,0,0,0]
[22,null,{"$f":"'FR-16(7)(v)-1 Functional'!C156","v":"CONDUCTORS - OVERHEAD / PRIMARY - CUSTOMER"},"K406",null,{"$f":"'FR-16(7)(v)-10 DIST Classified'!I156","v":4898270},4418484,446232,5927,3527,490,5486,1274,343,0,16115,392,4898270,0]
[23,null,{"$f":"'FR-16(7)(v)-1 Functional'!C157","v":"CONDUCTORS - OVERHEAD / SECONDARY - DEMAND"},{"$f":"'FR-16(7)(v)-1 Functional'!D157","v":"K206"},null,{"$f":"'FR-16(7)(v)-10 DIST Classified'!I157","v":0},0,0,0,0,0,0,0,0,0,0,0,0,0]
[24,null,{"$f":"'FR-16(7)(v)-1 Functional'!C158","v":"CONDUCTORS - OVERHEAD / SECONDARY - CUSTOMER"},"K406",null,{"$f":"'FR-16(7)(v)-10 DIST Classified'!I158","v":2029018},1830275,184844,2455,1461,203,2273,528,142,0,6675,162,2029018,0]
[25,null,{"$f":"'FR-16(7)(v)-1 Functional'!C159","v":"CONDUCTORS - UNDERGROUND / PRIMARY - DEMAND"},{"$f":"'FR-16(7)(v)-1 Functional'!D159","v":"K205"},null,{"$f":"'FR-16(7)(v)-10 DIST Classified'!I159","v":0},0,0,0,0,0,0,0,0,0,0,0,0,0]
[26,null,{"$f":"'FR-16(7)(v)-1 Functional'!C160","v":"CONDUCTORS - UNDERGROUND / PRIMARY - CUSTOMER"},"K406",null,{"$f":"'FR-16(7)(v)-10 DIST Classified'!I160","v":5156912},4651791,469795,6240,3713,516,5776,1341,361,0,16966,413,5156912,0]
[27,null,{"$f":"'FR-16(7)(v)-1 Functional'!C161","v":"CONDUCTORS - UNDERGROUND / SECONDARY - DEMAND"},{"$f":"'FR-16(7)(v)-1 Functional'!D161","v":"K206"},null,{"$f":"'FR-16(7)(v)-10 DIST Classified'!I161","v":0},0,0,0,0,0,0,0,0,0,0,0,0,0]
[28,null,{"$f":"'FR-16(7)(v)-1 Functional'!C162","v":"CONDUCTORS - UNDERGROUND / SECONDARY - CUSTOMER"},"K406",null,{"$f":"'FR-16(7)(v)-10 DIST Classified'!I162","v":1612630},1454673,146911,1951,1161,161,1806,419,113,0,5306,129,1612630,0]
[29,null,{"$f":"'FR-16(7)(v)-1 Functional'!C163","v":"TRANSFORMERS DEMAND RELATED"},{"$f":"'FR-16(7)(v)-1 Functional'!D163","v":"K215"},null,{"$f":"'FR-16(7)(v)-10 DIST Classified'!I163","v":0},0,0,0,0,0,0,0,0,0,0,0,0,0]
[30,null,{"$f":"'FR-16(7)(v)-1 Functional'!C164","v":"TRANSFORMERS CUSTOMER RELATED"},"K406",null,{"$f":"'FR-16(7)(v)-10 DIST Classified'!I164","v":6663753},6011039,607068,8063,4798,666,7463,1733,466,0,21924,533,6663753,0]
[31,null,{"$f":"'FR-16(7)(v)-1 Functional'!C165","v":"SERVICES"},{"$f":"'FR-16(7)(v)-1 Functional'!D165","v":"K217"},null,{"$f":"'FR-16(7)(v)-10 DIST Classified'!I165","v":11659391},10417084,1051327,13991,33346,1166,75436,17955,4897,5363,37893,933,11659391,0]
[32,null,{"$f":"'FR-16(7)(v)-1 Functional'!C166","v":"METERS"},{"$f":"'FR-16(7)(v)-1 Functional'!D166","v":"K407"},null,{"$f":"'FR-16(7)(v)-10 DIST Classified'!I166","v":4964663},4013085,908186,0,6951,1092,32320,0,1192,1142,0,695,4964663,0]
[33,null,{"$f":"'FR-16(7)(v)-1 Functional'!C167","v":"STREET LIGHTS"},{"$f":"'FR-16(7)(v)-1 Functional'!D167","v":"K401"},null,{"$f":"'FR-16(7)(v)-10 DIST Classified'!I167","v":4073494},0,0,0,0,0,0,0,0,0,4073494,0,4073494,0]
[34,null,{"$f":"'FR-16(7)(v)-1 Functional'!C168","v":"ADJUSTMENT  "},{"$f":"'FR-16(7)(v)-1 Functional'!D168","v":"K209"},null,{"$f":"'FR-16(7)(v)-10 DIST Classified'!I168","v":124658},105368,12844,117,145,15,360,51,19,15,5713,11,124658,0]
[35,null,{"$f":"'FR-16(7)(v)-1 Functional'!C169","v":"CONSTRUCTION NOT CLASSIFIED"},{"$f":"'FR-16(7)(v)-1 Functional'!D169","v":"K209"},null,{"$f":"'FR-16(7)(v)-10 DIST Classified'!I169","v":407152},344148,41949,383,472,49,1177,167,61,49,18660,37,407152,0]
[36,null,{"$f":"'FR-16(7)(v)-1 Functional'!C170","v":"RWIP"},{"$f":"'FR-16(7)(v)-1 Functional'!D170","v":"K215"},null,{"$f":"'FR-16(7)(v)-10 DIST Classified'!I170","v":0},{"$f":"F170-SUM(H170:Q170)","v":0},{"$f":"ROUND($F$170*VLOOKUP($D$170,ALLOCTABLE_Distr_Customer,H$10,FALSE),0)","v":0},0,0,0,0,0,0,0,0,0,{"$f":"SUM(G170:Q170)","v":0},{"$f":"F170-R170","v":0}]
[37,null,{"$f":"'FR-16(7)(v)-1 Functional'!C171","v":"  TOTAL DIST DEPREC RESERVE"},null,null,{"$f":"SUM(F149:F170)","v":50064280},{"$f":"SUM(G149:G170)","v":40890225},4641169,49381,61676,5205,141588,25671,8187,6569,4230626,3983,50064280,0]
[38]
[39,null,"TOTAL TRANS & DIST DEPREC RESERVE",null,null,{"$f":"F171+F145","v":50064280},{"$f":"G171+G145","v":40890225},4641169,49381,61676,5205,141588,25671,8187,6569,4230626,3983,{"$f":"SUM(G173:Q173)","v":50064280},{"$f":"F173-R173","v":0}]
[40,null,"TOTAL GROSS PTD PLANT DEPREC RESERVE",null,null,{"$f":"F147+F171","v":50064280},{"$f":"G147+G171","v":40890225},4641169,49381,61676,5205,141588,25671,8187,6569,4230626,3983,{"$f":"SUM(G174:Q174)","v":50064280},{"$f":"F174-R174","v":0}]
[41]
[42,"GENERAL & INTANGIBLE PLANT"]
[43,null,{"$f":"'FR-16(7)(v)-1 Functional'!C177","v":"PRODUCTION - DEMAND"},{"$f":"'FR-16(7)(v)-1 Functional'!D177","v":"K201"},null,{"$f":"'FR-16(7)(v)-10 DIST Classified'!I177","v":0},{"$f":"F177-SUM(H177:Q177)","v":0},{"$f":"ROUND(F177*VLOOKUP(D177,ALLOCTABLE_Distr_Customer,$H$10,FALSE),0)","v":0},{"$f":"ROUND(F177*VLOOKUP(D177,ALLOCTABLE_Distr_Customer,$I$10,FALSE),0)","v":0},{"$f":"ROUND(F177*VLOOKUP(D177,ALLOCTABLE_Distr_Customer,$J$10,FALSE),0)","v":0},{"$f":"ROUND(F177*VLOOKUP(D177,ALLOCTABLE_Distr_Customer,$K$10,FALSE),0)","v":0},{"$f":"ROUND(F177*VLOOKUP(D177,ALLOCTABLE_Distr_Customer,$L$10,FALSE),0)","v":0},{"$f":"ROUND(F177*VLOOKUP(D177,ALLOCTABLE_Distr_Customer,$M$10,FALSE),0)","v":0},{"$f":"ROUND(F177*VLOOKUP(D177,ALLOCTABLE_Distr_Customer,$N$10,FALSE),0)","v":0},{"$f":"ROUND(F177*VLOOKUP(D177,ALLOCTABLE_Distr_Customer,$O$10,FALSE),0)","v":0},{"$f":"ROUND(F177*VLOOKUP(D177,ALLOCTABLE_Distr_Customer,$P$10,FALSE),0)","v":0},{"$f":"ROUND(F177*VLOOKUP(D177,ALLOCTABLE_Distr_Customer,$Q$10,FALSE),0)","v":0},{"$f":"SUM(G177:Q177)","v":0},{"$f":"F177-R177","v":0}]
[44,null,{"$f":"'FR-16(7)(v)-1 Functional'!C178","v":"PRODUCTION - ENERGY"},{"$f":"'FR-16(7)(v)-1 Functional'!D178","v":"K301"},null,{"$f":"'FR-16(7)(v)-10 DIST Classified'!I178","v":0},0,0,0,0,0,0,0,0,0,0,0,0,0]
[45,null,{"$f":"'FR-16(7)(v)-1 Functional'!C179","v":"TRANSMISSION"},{"$f":"'FR-16(7)(v)-1 Functional'!D179","v":"K202"},null,{"$f":"'FR-16(7)(v)-10 DIST Classified'!I179","v":0},0,0,0,0,0,0,0,0,0,0,0,0,0]
[46,null,{"$f":"'FR-16(7)(v)-1 Functional'!C180","v":"DISTRIBUTION - DEMAND"},{"$f":"'FR-16(7)(v)-1 Functional'!D180","v":"K201"},null,{"$f":"'FR-16(7)(v)-10 DIST Classified'!I180","v":0},0,0,0,0,0,0,0,0,0,0,0,0,0]
[47,null,{"$f":"'FR-16(7)(v)-1 Functional'!C181","v":"DISTRIBUTION - CUSTOMER"},{"$f":"'FR-16(7)(v)-1 Functional'!D181","v":"K405"},null,{"$f":"'FR-16(7)(v)-10 DIST Classified'!I181","v":627139},565642,57132,759,452,63,702,163,44,69,2063,50,627139,0]
[48,null,{"$f":"'FR-16(7)(v)-1 Functional'!C182","v":"CUSTOMER ACCOUNTING"},{"$f":"'FR-16(7)(v)-1 Functional'!D182","v":"A308"},null,{"$f":"'FR-16(7)(v)-10 DIST Classified'!I182","v":2132479},1737394,371094,2154,2943,405,13072,-1066,512,-192,5843,320,2132479,0]
[49,null,{"$f":"'FR-16(7)(v)-1 Functional'!C183","v":"CUSTOMER SERVICE & INFORMATION"},{"$f":"'FR-16(7)(v)-1 Functional'!D183","v":"A310"},null,{"$f":"'FR-16(7)(v)-10 DIST Classified'!I183","v":139459},125784,12705,169,100,14,156,36,10,15,459,11,139459,0]
[50,null,{"$f":"'FR-16(7)(v)-1 Functional'!C184","v":"SALES"},{"$f":"'FR-16(7)(v)-1 Functional'!D184","v":"A312"},null,{"$f":"'FR-16(7)(v)-10 DIST Classified'!I184","v":0},0,0,0,0,0,0,0,0,0,0,0,0,0]
[51,null,{"$f":"'FR-16(7)(v)-1 Functional'!C185","v":"ADJUSTMENT"},{"$f":"'FR-16(7)(v)-1 Functional'!D185","v":"A315"},null,{"$f":"'FR-16(7)(v)-10 DIST Classified'!I185","v":52496},42064,8110,49,64,9,267,-17,10,-2,1935,7,52496,0]
[52,null,"  GENERAL & INTANG PLANT",null,null,{"$f":"SUM(F176:F185)","v":2951573},{"$f":"SUM(G176:G185)","v":2470884},{"$f":"SUM(H176:H185)","v":449041},{"$f":"SUM(I176:I185)","v":3131},{"$f":"SUM(J176:J185)","v":3559},491,14197,-884,576,-110,10300,{"$f":"SUM(Q176:Q185)","v":388},{"$f":"SUM(R176:R185)","v":2951573},{"$f":"SUM(S176:S185)","v":0}]
[53]
[54,"COMMON & OTHER PLANT"]
[55,null,{"$f":"'FR-16(7)(v)-1 Functional'!C189","v":"PRODUCTION - DEMAND"},{"$f":"'FR-16(7)(v)-1 Functional'!D189","v":"K201"},null,{"$f":"'FR-16(7)(v)-10 DIST Classified'!I189","v":0},{"$f":"F189-SUM(H189:Q189)","v":0},{"$f":"ROUND(F189*VLOOKUP(D189,ALLOCTABLE_Distr_Customer,$H$10,FALSE),0)","v":0},{"$f":"ROUND(F189*VLOOKUP(D189,ALLOCTABLE_Distr_Customer,$I$10,FALSE),0)","v":0},{"$f":"ROUND(F189*VLOOKUP(D189,ALLOCTABLE_Distr_Customer,$J$10,FALSE),0)","v":0},{"$f":"ROUND(F189*VLOOKUP(D189,ALLOCTABLE_Distr_Customer,$K$10,FALSE),0)","v":0},{"$f":"ROUND(F189*VLOOKUP(D189,ALLOCTABLE_Distr_Customer,$L$10,FALSE),0)","v":0},{"$f":"ROUND(F189*VLOOKUP(D189,ALLOCTABLE_Distr_Customer,$M$10,FALSE),0)","v":0},{"$f":"ROUND(F189*VLOOKUP(D189,ALLOCTABLE_Distr_Customer,$N$10,FALSE),0)","v":0},{"$f":"ROUND(F189*VLOOKUP(D189,ALLOCTABLE_Distr_Customer,$O$10,FALSE),0)","v":0},{"$f":"ROUND(F189*VLOOKUP(D189,ALLOCTABLE_Distr_Customer,$P$10,FALSE),0)","v":0},{"$f":"ROUND(F189*VLOOKUP(D189,ALLOCTABLE_Distr_Customer,$Q$10,FALSE),0)","v":0},{"$f":"SUM(G189:Q189)","v":0},{"$f":"F189-R189","v":0}]
[56,null,{"$f":"'FR-16(7)(v)-1 Functional'!C190","v":"PRODUCTION - ENERGY"},{"$f":"'FR-16(7)(v)-1 Functional'!D190","v":"K301"},null,{"$f":"'FR-16(7)(v)-10 DIST Classified'!I190","v":0},0,0,0,0,0,0,0,0,0,0,0,0,0]
[57,null,{"$f":"'FR-16(7)(v)-1 Functional'!C191","v":"TRANSMISSION"},{"$f":"'FR-16(7)(v)-1 Functional'!D191","v":"K202"},null,{"$f":"'FR-16(7)(v)-10 DIST Classified'!I191","v":0},0,0,0,0,0,0,0,0,0,0,0,0,0]
[58,null,{"$f":"'FR-16(7)(v)-1 Functional'!C192","v":"DISTRIBUTION - DEMAND"},{"$f":"'FR-16(7)(v)-1 Functional'!D192","v":"K201"},null,{"$f":"'FR-16(7)(v)-10 DIST Classified'!I192","v":0},0,0,0,0,0,0,0,0,0,0,0,0,0]
[59,null,{"$f":"'FR-16(7)(v)-1 Functional'!C193","v":"DISTRIBUTION - CUSTOMER"},{"$f":"'FR-16(7)(v)-1 Functional'!D193","v":"K405"},null,{"$f":"'FR-16(7)(v)-10 DIST Classified'!I193","v":847378},764285,77196,1025,610,85,949,220,59,93,2788,68,847378,0]
[60,null,{"$f":"'FR-16(7)(v)-1 Functional'!C194","v":"CUSTOMER ACCOUNTING"},{"$f":"'FR-16(7)(v)-1 Functional'!D194","v":"A308"},null,{"$f":"'FR-16(7)(v)-10 DIST Classified'!I194","v":2881362},2347532,501415,2910,3976,547,17663,-1441,692,-259,7895,432,2881362,0]
[61,null,{"$f":"'FR-16(7)(v)-1 Functional'!C195","v":"CUSTOMER SERVICE & INFORMATION"},{"$f":"'FR-16(7)(v)-1 Functional'!D195","v":"A310"},null,{"$f":"'FR-16(7)(v)-10 DIST Classified'!I195","v":188435},169957,17166,228,136,19,211,49,13,21,620,15,188435,0]
[62,null,{"$f":"'FR-16(7)(v)-1 Functional'!C196","v":"SALES"},{"$f":"'FR-16(7)(v)-1 Functional'!D196","v":"A312"},null,{"$f":"'FR-16(7)(v)-10 DIST Classified'!I196","v":0},0,0,0,0,0,0,0,0,0,0,0,0,0]
[63,null,{"$f":"'FR-16(7)(v)-1 Functional'!C197","v":"ADJUSTMENT"},{"$f":"'FR-16(7)(v)-1 Functional'!D197","v":"A315"},null,{"$f":"'FR-16(7)(v)-10 DIST Classified'!I197","v":2949},2361,456,3,4,1,15,-1,1,0,109,0,2949,0]
[64,null,{"$f":"'FR-16(7)(v)-1 Functional'!C198","v":"  COMMON & OTHER PLANT IN SERVICE"},null,null,{"$f":"SUM(F189:F197)","v":3920124},{"$f":"SUM(G188:G197)","v":3284135},596233,4166,{"$f":"SUM(J188:J197)","v":4726},652,18838,-1173,765,-145,11412,515,3920124,0]
[65]
[66,"TOTAL DEPRECIATION RESERVE",null,null,null,{"$f":"F198+F186+F171+F145+F139","v":56935977},{"$f":"G198+G186+G171+G145+G139","v":46645244},{"$f":"H198+H186+H171+H145+H139","v":5686443},56678,69961,6348,174623,23614,9528,6314,4252338,4886,{"$f":"R198+R186+R171+R145+R139","v":56935977},{"$f":"S198+S186+S171+S145+S139","v":0}]
[]
[{"$f":"co_name","v":"DUKE ENERGY KENTUCKY, INC."},null,null,null,null,null,null,null,null,null,null,null,null,null,null,null,null,{"$f":"R1","v":"FR-16(7)(v)-13"}]
[{"$f":"$A$2","v":"DISTRIBUTION CUSTOMER ALLOCATED - ELECTRIC COST OF SERVICE"},null,null,null,null,null,null,null,null,null,null,null,null,null,null,null,null,{"$f":"R2","v":"WITNESS RESPONSIBLE:"}]
[{"$f":"case_name","v":"CASE NO: 2019-00271"},null,null,null,null,null,null,null,null,null,null,null,null,null,null,null,null,{"$f":"Witness","v":"JAMES E. ZIOLKOWSKI"}]
[{"$f":"data_filing","v":"DATA: 12 MONTHS ACTUAL  & 0 MONTHS ESTIMATED"},null,null,null,null,null,null,null,null,null,null,null,null,null,null,null,null,{"$f":"\"PAGE \"&Pages-14&\" OF \"&Pages","v":"PAGE 4 OF 18"}]
[{"$f":"type","v":"TYPE OF FILING: \"X\" ORIGINAL   UPDATED    REVISED  "}]
[]
[null,null,null,null,null,{"$f":"F$7","v":"TOTAL"},null,{"$f":"H$7","v":"DS"},{"$f":"I$7","v":"GSFL"},{"$f":"J$7","v":"EH"},{"$f":"K$7","v":"SP"},"DT SEC","DT PRI","DP","TT",null,"OTHER"]
["LINE",null,null,null,null,{"$f":"F$8","v":"DISTRIBUTION"},{"$f":"G$8","v":"RS"},{"$f":"H$8","v":"SECONDARY"},{"$f":"I$8","v":"SECONDARY"},{"$f":"J$8","v":"SECONDARY"},{"$f":"K$8","v":"SECONDARY"},"SECONDARY","PRIMARY","PRIMARY","TRANSMISSION","LT","WATER",{"$f":"R8","v":"TOTAL"},"ALL"]
["NO.",{"$f":"\"NET ELECTRIC PLANT\"","v":"NET ELECTRIC PLANT"},null,"ALLO",null,{"$f":"F$9","v":"CUSTOMER"},{"$f":"G$9","v":"RESIDENTIAL"},{"$f":"H$9","v":"DISTRIBUTION"},{"$f":"I$9","v":"DISTRIBUTION"},{"$f":"J$9","v":"DISTRIBUTION"},{"$f":"K$9","v":"DISTRIBUTION"},"DISTRIBUTION","DISTRIBUTION","DISTRIBUTION","TIME OF DAY","LIGHTING","PUMPING",{"$f":"R9","v":"AT ISSUE"},"OTHER"]
[null,null,"Schedule 4",null,null,null,{"$f":"G$10","v":3},{"$f":"H$10","v":4},{"$f":"I$10","v":5},{"$f":"J$10","v":6},{"$f":"K$10","v":7},8,9,10,11,12,13,null," "]
[1,"PRODUCTION PLANT"]
[2,null,"PRODUCTION STEAM",null,null,{"$f":"F59-F136","v":0},{"$f":"G59-G136","v":0},{"$f":"H59-H136","v":0},{"$f":"I59-I136","v":0},{"$f":"J59-J136","v":0},0,0,0,0,0,0,{"$f":"Q59-Q136","v":0},{"$f":"R59-R136","v":0},{"$f":"F213-R213","v":0}]
[3,null,"PRODUCTION OTHER",null,null,{"$f":"F60-F137","v":0},0,0,0,{"$f":"J60-J137","v":0},0,0,0,0,0,0,0,0,{"$f":"F214-R214","v":0}]
[4,null,"ADJUSTMENT",null,null,{"$f":"F61-F138","v":0},0,0,0,{"$f":"J61-J138","v":0},0,0,0,0,0,0,0,0,{"$f":"F215-R215","v":0}]
[5,null,{"$f":"'FR-16(7)(v)-1 Functional'!C216","v":"  NET PRODUCTION PLANT"},null,null,{"$f":"SUM(F213:F215)","v":0},0,0,0,{"$f":"SUM(J213:J215)","v":0},0,0,0,0,0,0,0,0,0]
[6]
[7,"TRANSMISSION PLANT"]
[8,null,"MAIN STEP-UP TRANSFORMERS",null,null,{"$f":"F65-F142","v":0},0,0,0,{"$f":"J65-J142","v":0},0,0,0,0,0,0,0,0,{"$f":"F219-R219","v":0}]
[9,null,"OTHER TRANSMISSION",null,null,{"$f":"F66-F143","v":0},0,0,0,{"$f":"J66-J143","v":0},0,0,0,0,0,0,{"$f":"Q66-Q143","v":0},{"$f":"R66-R143","v":0},{"$f":"F220-R220","v":0}]
[10,null,"ADJUSTMENT",null,null,0,0,0,0,{"$f":"J67-J144","v":0},0,0,0,0,0,0,{"$f":"Q67-Q144","v":0},{"$f":"R67-R144","v":0},{"$f":"F221-R221","v":0}]
[11,null,{"$f":"'FR-16(7)(v)-1 Functional'!C222","v":"    NET TRANSMISSION PLANT"},null,null,{"$f":"SUM(F218:F221)","v":0},0,0,0,{"$f":"SUM(J218:J221)","v":0},0,0,0,0,0,0,0,0,0]
[12]
[13,"NET PROD & TRANS PLANT",null,null,null,{"$f":"F70-F147","v":0},{"$f":"G70-G147","v":0},{"$f":"H70-H147","v":0},0,0,0,0,0,0,0,0,0,{"$f":"R70-R147","v":0},{"$f":"F224-R224","v":0}]
[14]
[15,"DISTRIBUTION PLANT"]
[16,null,{"$f":"'FR-16(7)(v)-1 Functional'!C227","v":"SUBSTATIONS"},null,null,{"$f":"F73-F150","v":0},{"$f":"G73-G150","v":0},{"$f":"H73-H150","v":0},0,0,0,0,0,0,0,0,0,{"$f":"R73-R150","v":0},{"$f":"F227-R227","v":0}]
[17,null,{"$f":"'FR-16(7)(v)-1 Functional'!C228","v":"POLES, TOWERS  & FIXTURES - PRIMARY - DEMAND"},null,null,{"$f":"F74-F151","v":0},{"$f":"G74-G151","v":0},{"$f":"H74-H151","v":0},0,0,0,0,0,0,0,0,0,{"$f":"R74-R151","v":0},{"$f":"F228-R228","v":0}]
[18,null,{"$f":"'FR-16(7)(v)-1 Functional'!C229","v":"POLES, TOWERS  & FIXTURES - PRIMARY - CUSTOMER"},null,null,{"$f":"F75-F152","v":8194722},{"$f":"G75-G152","v":7392048},746539,9916,5900,820,9178,2131,573,0,26961,656,8194722,{"$f":"F229-R229","v":0}]
[19,null,{"$f":"'FR-16(7)(v)-1 Functional'!C230","v":"POLES, TOWERS  & FIXTURES - SECONDARY - DEMAND"},null,null,0,{"$f":"G76-G153","v":0},0,0,0,0,0,0,0,0,0,0,0,0]
[20,null,{"$f":"'FR-16(7)(v)-1 Functional'!C231","v":"POLES, TOWERS  & FIXTURES - SECONDARY - CUSTOMER"},null,null,1852364,{"$f":"G77-G154","v":1670924},168750,2241,1334,185,2075,482,130,0,6095,148,1852364,0]
[21,null,{"$f":"'FR-16(7)(v)-1 Functional'!C232","v":"CONDUCTORS - OVERHEAD / PRIMARY - DEMAND"},null,null,0,{"$f":"G78-G155","v":0},0,0,0,0,0,0,0,0,0,0,0,0]
[22,null,{"$f":"'FR-16(7)(v)-1 Functional'!C233","v":"CONDUCTORS - OVERHEAD / PRIMARY - CUSTOMER"},null,null,11528511,{"$f":"G79-G156","v":10399294},1050248,13949,8300,1153,12912,2997,807,0,37929,922,11528511,0]
[23,null,{"$f":"'FR-16(7)(v)-1 Functional'!C234","v":"CONDUCTORS - OVERHEAD / SECONDARY - DEMAND"},null,null,0,{"$f":"G80-G157","v":0},0,0,0,0,0,0,0,0,0,0,0,0]
[24,null,{"$f":"'FR-16(7)(v)-1 Functional'!C235","v":"CONDUCTORS - OVERHEAD / SECONDARY - CUSTOMER"},null,null,4775475,{"$f":"G81-G158","v":4307720},435045,5778,3438,477,5348,1241,334,0,15712,382,4775475,0]
[25,null,{"$f":"'FR-16(7)(v)-1 Functional'!C236","v":"CONDUCTORS - UNDERGROUND / PRIMARY - DEMAND"},null,null,0,{"$f":"G82-G159","v":0},0,0,0,0,0,0,0,0,0,0,0,0]
[26,null,{"$f":"'FR-16(7)(v)-1 Functional'!C237","v":"CONDUCTORS - UNDERGROUND / PRIMARY - CUSTOMER"},null,null,12277154,{"$f":"G83-G160","v":11074609},1118448,14855,8840,1227,13750,3192,859,0,40392,982,12277154,0]
[27,null,{"$f":"'FR-16(7)(v)-1 Functional'!C238","v":"CONDUCTORS - UNDERGROUND / SECONDARY - DEMAND"},null,null,0,{"$f":"G84-G161","v":0},0,0,0,0,0,0,0,0,0,0,0,0]
[28,null,{"$f":"'FR-16(7)(v)-1 Functional'!C239","v":"CONDUCTORS - UNDERGROUND / SECONDARY - CUSTOMER"},null,null,3839217,{"$f":"G85-G162","v":3463166},349752,4646,2764,384,4300,998,269,0,12631,307,3839217,0]
[29,null,"TRANSFORMERS DEMAND RELATED",null,null,0,{"$f":"G86-G163","v":0},0,0,0,0,0,0,0,0,0,0,0,{"$f":"F240-R240","v":0}]
[30,null,"TRANSFORMERS CUSTOMER RELATED",null,null,8647270,{"$f":"G87-G164","v":7800270},787766,10463,6226,865,9685,2248,606,0,28449,692,8647270,0]
[31,null,{"$f":"'FR-16(7)(v)-1 Functional'!C242","v":"SERVICES"},null,null,9567117,{"$f":"G88-G165","v":8547739},{"$f":"H88-H165","v":862667},11481,27362,957,61900,14734,4018,4401,31093,765,{"$f":"R88-R165","v":9567117},0]
[32,null,{"$f":"'FR-16(7)(v)-1 Functional'!C243","v":"METERS"},null,null,17604064,14229895,{"$f":"H89-H166","v":3220311},0,24645,3873,114602,0,4224,4049,0,2465,{"$f":"R89-R166","v":17604064},0]
[33,null,{"$f":"'FR-16(7)(v)-1 Functional'!C244","v":"STREET LIGHTS"},null,null,1522363,0,{"$f":"H90-H167","v":0},0,0,0,0,0,0,0,1522363,0,{"$f":"R90-R167","v":1522363},0]
[34,null,{"$f":"'FR-16(7)(v)-1 Functional'!C245","v":"ADJUSTMENT  "},null,null,-124658,-105368,{"$f":"H91-H168","v":-12844},-117,-145,-15,-360,-51,-19,-15,-5713,-11,{"$f":"R91-R168","v":-124658},0]
[35,null,{"$f":"'FR-16(7)(v)-1 Functional'!C246","v":"CONSTRUCTION NOT CLASSIFIED"},null,null,24860990,21014002,{"$f":"H92-H169","v":2561428},23369,28839,2983,71848,10193,3729,2983,1139379,2237,{"$f":"R92-R169","v":24860990},0]
[36,null,{"$f":"'FR-16(7)(v)-1 Functional'!C247","v":"RWIP"},null,null,0,0,0,0,0,0,0,0,0,0,0,0,0,0]
[37,null,{"$f":"'FR-16(7)(v)-1 Functional'!C248","v":"  NET DISTRIBUTION PLANT"},null,null,{"$f":"SUM(F226:F247)","v":104544589},{"$f":"SUM(G226:G247)","v":89794299},11288110,96581,117503,12909,305238,38165,15530,11418,2855291,9545,104544589,0]
[38]
[39,"NET PTD PLANT",null,null,null,{"$f":"F96-F173","v":104544589},89794299,11288110,96581,{"$f":"J96-J173","v":117503},12909,305238,38165,15530,11418,2855291,9545,104544589,{"$f":"S248+S222+S216","v":0}]
[40,"NET TRANS & DIST PLANT",null,null,null,{"$f":"F97-F174","v":104544589},89794299,11288110,96581,{"$f":"J97-J174","v":117503},12909,305238,38165,15530,11418,2855291,9545,104544589,{"$f":"S248+S222","v":0}]
[41]
[42,"GENERAL & INTANGIBLE PLANT"]
[43,null,{"$f":"'FR-16(7)(v)-1 Functional'!C254","v":"PRODUCTION - DEMAND"},null,null,{"$f":"F100-F177","v":0},0,0,0,{"$f":"J100-J177","v":0},0,0,0,0,0,0,0,0,{"$f":"F254-R254","v":0}]
[44,null,{"$f":"'FR-16(7)(v)-1 Functional'!C255","v":"PRODUCTION - ENERGY"},null,null,{"$f":"F101-F178","v":0},0,0,0,{"$f":"J101-J178","v":0},0,0,0,0,0,0,0,0,{"$f":"F255-R255","v":0}]
[45,null,{"$f":"'FR-16(7)(v)-1 Functional'!C256","v":"TRANSMISSION"},null,null,{"$f":"F102-F179","v":0},0,0,0,{"$f":"J102-J179","v":0},0,0,0,0,0,0,0,0,0]
[46,null,{"$f":"'FR-16(7)(v)-1 Functional'!C257","v":"DISTRIBUTION - DEMAND"},null,null,{"$f":"F103-F180","v":0},0,0,0,0,0,0,0,0,0,0,0,0,0]
[47,null,{"$f":"'FR-16(7)(v)-1 Functional'!C258","v":"DISTRIBUTION - CUSTOMER"},null,null,{"$f":"F104-F181","v":1318922},1189587,120154,1596,949,132,1478,343,92,145,4340,106,1318922,{"$f":"F258-R258","v":0}]
[48,null,{"$f":"'FR-16(7)(v)-1 Functional'!C259","v":"CUSTOMER ACCOUNTING"},null,null,{"$f":"F105-F182","v":4484761},3653871,780438,4529,{"$f":"J105-J182","v":6189},852,27492,-2243,1076,-404,12288,673,4484761,0]
[49,null,{"$f":"'FR-16(7)(v)-1 Functional'!C260","v":"CUSTOMER SERVICE & INFORMATION"},null,null,{"$f":"F106-F183","v":293294},264531,26719,355,{"$f":"J106-J183","v":212},29,329,77,20,33,965,{"$f":"Q106-Q183","v":24},{"$f":"R106-R183","v":293294},0]
[50,null,{"$f":"'FR-16(7)(v)-1 Functional'!C261","v":"SALES"},null,null,0,0,0,0,{"$f":"J107-J184","v":0},0,0,0,0,0,0,{"$f":"Q107-Q184","v":0},{"$f":"R107-R184","v":0},{"$f":"F261-R261","v":0}]
[51,null,{"$f":"'FR-16(7)(v)-1 Functional'!C262","v":"ADJUSTMENT"},null,null,{"$f":"F108-F185","v":-52496},-42064,-8110,-49,{"$f":"J108-J185","v":-64},-9,-267,17,-10,2,-1935,-7,-52496,{"$f":"F262-R262","v":0}]
[52,null,{"$f":"'FR-16(7)(v)-1 Functional'!C263","v":"  NET GENERAL & INTANG PLANT"},null,null,{"$f":"SUM(F253:F262)","v":6044481},5065925,919201,6431,{"$f":"SUM(J253:J262)","v":7286},1004,29032,-1806,1178,-224,15658,796,6044481,0]
[53]
[54,"COMMON & OTHER PLANT"]
[55,null,{"$f":"'FR-16(7)(v)-1 Functional'!C266","v":"PRODUCTION - DEMAND"},null,null,{"$f":"F112-F189","v":0},0,0,0,{"$f":"J112-J189","v":0},0,0,0,0,0,0,0,0,{"$f":"F266-R266","v":0}]
[56,null,{"$f":"'FR-16(7)(v)-1 Functional'!C267","v":"PRODUCTION - ENERGY"},null,null,{"$f":"F113-F190","v":0},0,0,0,{"$f":"J113-J190","v":0},0,0,0,0,0,0,0,0,{"$f":"F267-R267","v":0}]
[57,null,{"$f":"'FR-16(7)(v)-1 Functional'!C268","v":"TRANSMISSION"},null,null,{"$f":"F114-F191","v":0},0,0,0,{"$f":"J114-J191","v":0},0,0,0,0,0,0,0,0,0]
[58,null,{"$f":"'FR-16(7)(v)-1 Functional'!C269","v":"DISTRIBUTION - DEMAND"},null,null,{"$f":"F115-F192","v":0},0,0,0,0,0,0,0,0,0,0,0,0,0]
[59,null,{"$f":"'FR-16(7)(v)-1 Functional'!C270","v":"DISTRIBUTION - CUSTOMER"},null,null,{"$f":"F116-F193","v":254057},229143,23145,308,183,25,285,66,18,28,836,20,254057,{"$f":"F270-R270","v":0}]
[60,null,{"$f":"'FR-16(7)(v)-1 Functional'!C271","v":"CUSTOMER ACCOUNTING"},null,null,{"$f":"F117-F194","v":863878},703827,150332,873,{"$f":"J117-J194","v":1192},165,5295,-432,207,-78,2367,130,863878,0]
[61,null,{"$f":"'FR-16(7)(v)-1 Functional'!C272","v":"CUSTOMER SERVICE & INFORMATION"},null,null,{"$f":"F118-F195","v":56495},50956,5147,68,{"$f":"J118-J195","v":40},5,{"$f":"L118-L195","v":63},15,4,6,186,{"$f":"Q118-Q195","v":5},{"$f":"R118-R195","v":56495},0]
[62,null,{"$f":"'FR-16(7)(v)-1 Functional'!C273","v":"SALES"},null,null,0,0,0,0,{"$f":"J119-J196","v":0},0,0,0,0,0,0,{"$f":"Q119-Q196","v":0},{"$f":"R119-R196","v":0},{"$f":"F273-R273","v":0}]
[63,null,{"$f":"'FR-16(7)(v)-1 Functional'!C274","v":"ADJUSTMENT"},null,null,{"$f":"F120-F197","v":-2949},-2361,-456,-3,{"$f":"J120-J197","v":-4},-1,-15,1,-1,0,-109,0,-2949,{"$f":"F274-R274","v":0}]
[64,null,"  COMMON & OTHER PLANT IN SERVICE",null,null,{"$f":"SUM(F265:F274)","v":1171481},981565,178168,1246,{"$f":"SUM(J265:J274)","v":1411},194,5628,-350,228,-44,3280,155,1171481,0]
[65]
[66,null,{"$f":"'FR-16(7)(v)-1 Functional'!C277","v":"NET ELECTRIC PLANT IN SERVICE"},null,null,{"$f":"F275+F263+F248+F222+F216","v":111760551},{"$f":"G275+G263+G248+G222+G216","v":95841789},{"$f":"H275+H263+H248+H222+H216","v":12385479},{"$f":"I275+I263+I248+I222+I216","v":104258},{"$f":"J275+J263+J248+J222+J216","v":126200},14107,339898,36009,16936,11150,2874229,{"$f":"Q275+Q263+Q248+Q222+Q216","v":10496},{"$f":"R275+R263+R248+R222+R216","v":111760551},{"$f":"S275+S263+S248+S222+S216","v":0}]
[]
[{"$f":"co_name","v":"DUKE ENERGY KENTUCKY, INC."},null,null,null,null,null,null,null,null,null,null,null,null,null,null,null,null,{"$f":"R1","v":"FR-16(7)(v)-13"}]
[{"$f":"$A$2","v":"DISTRIBUTION CUSTOMER ALLOCATED - ELECTRIC COST OF SERVICE"},null,null,null,null,null,null,null,null,null,null,null,null,null,null,null,null,{"$f":"R2","v":"WITNESS RESPONSIBLE:"}]
[{"$f":"case_name","v":"CASE NO: 2019-00271"},null,null,null,null,null,null,null,null,null,null,null,null,null,null,null,null,{"$f":"Witness","v":"JAMES E. ZIOLKOWSKI"}]
[{"$f":"data_filing","v":"DATA: 12 MONTHS ACTUAL  & 0 MONTHS ESTIMATED"},null,null,null,null,null,null,null,null,null,null,null,null,null,null,null,null,{"$f":"\"PAGE \"&Pages-13&\" OF \"&Pages","v":"PAGE 5 OF 18"}]
[{"$f":"type","v":"TYPE OF FILING: \"X\" ORIGINAL   UPDATED    REVISED  "}]
[]
[null,null,null,null,null,{"$f":"F$7","v":"TOTAL"},null,{"$f":"H$7","v":"DS"},{"$f":"I$7","v":"GSFL"},{"$f":"J$7","v":"EH"},{"$f":"K$7","v":"SP"},"DT SEC","DT PRI","DP","TT",null,"OTHER"]
["LINE",null,null,null,null,{"$f":"F$8","v":"DISTRIBUTION"},{"$f":"G$8","v":"RS"},{"$f":"H$8","v":"SECONDARY"},{"$f":"I$8","v":"SECONDARY"},{"$f":"J$8","v":"SECONDARY"},{"$f":"K$8","v":"SECONDARY"},"SECONDARY","PRIMARY","PRIMARY","TRANSMISSION","LT","WATER",{"$f":"R8","v":"TOTAL"},"ALL"]
["NO.","SUBTRACTIVE RATE BASE ADJUSTMENTS",null,"ALLO",null,{"$f":"F$9","v":"CUSTOMER"},{"$f":"G$9","v":"RESIDENTIAL"},{"$f":"H$9","v":"DISTRIBUTION"},{"$f":"I$9","v":"DISTRIBUTION"},{"$f":"J$9","v":"DISTRIBUTION"},{"$f":"K$9","v":"DISTRIBUTION"},"DISTRIBUTION","DISTRIBUTION","DISTRIBUTION","TIME OF DAY","LIGHTING","PUMPING",{"$f":"R9","v":"AT ISSUE"},"OTHER"]
[null,null,"Schedule 5",null,null,null,{"$f":"G$10","v":3},{"$f":"H$10","v":4},{"$f":"I$10","v":5},{"$f":"J$10","v":6},{"$f":"K$10","v":7},8,9,10,11,12,13,null," "]
[1,"RATE BASE ADJUSTMENTS"]
[2,"ACCUMULATED DEFERRED INCOME TAXES"]
[3," ACCUM DEF INC TAXES (282)"]
[4,null,{"$f":"'FR-16(7)(v)-1 Functional'!C292","v":"LIBERALIZED DEPRECIATION"},{"$f":"'FR-16(7)(v)-1 Functional'!D292","v":"NP29"}," ",{"$f":"'FR-16(7)(v)-10 DIST Classified'!I292","v":6548328},{"$f":"F292-SUM(H292:Q292)","v":5615650},{"$f":"ROUND(F292*VLOOKUP(D292,ALLOCTABLE_Distr_Customer,$H$10,FALSE),0)","v":725686},{"$f":"ROUND(F292*VLOOKUP(D292,ALLOCTABLE_Distr_Customer,$I$10,FALSE),0)","v":6090},{"$f":"ROUND(F292*VLOOKUP(D292,ALLOCTABLE_Distr_Customer,$J$10,FALSE),0)","v":7400},{"$f":"ROUND(F292*VLOOKUP(D292,ALLOCTABLE_Distr_Customer,$K$10,FALSE),0)","v":851},{"$f":"ROUND(F292*VLOOKUP(D292,ALLOCTABLE_Distr_Customer,$L$10,FALSE),0)","v":19907},{"$f":"ROUND(F292*VLOOKUP(D292,ALLOCTABLE_Distr_Customer,$M$10,FALSE),0)","v":2095},{"$f":"ROUND(F292*VLOOKUP(D292,ALLOCTABLE_Distr_Customer,$N$10,FALSE),0)","v":982},{"$f":"ROUND(F292*VLOOKUP(D292,ALLOCTABLE_Distr_Customer,$O$10,FALSE),0)","v":655},{"$f":"ROUND(F292*VLOOKUP(D292,ALLOCTABLE_Distr_Customer,$P$10,FALSE),0)","v":168423},{"$f":"ROUND(F292*VLOOKUP(D292,ALLOCTABLE_Distr_Customer,$Q$10,FALSE),0)","v":589},{"$f":"SUM(G292:Q292)","v":6548328},{"$f":"F292-R292","v":0}]
[5,null,{"$f":"'FR-16(7)(v)-1 Functional'!C293","v":"LEASED METERS"},{"$f":"'FR-16(7)(v)-1 Functional'!D293","v":"NP29"}," ",{"$f":"'FR-16(7)(v)-10 DIST Classified'!I293","v":148531},127376,16460,138,168,19,452,48,22,15,3820,13,148531,0]
[6,null,{"$f":"'FR-16(7)(v)-1 Functional'!C294","v":"CONTRIB AID CONSTR"},{"$f":"'FR-16(7)(v)-1 Functional'!D294","v":"D249"}," ",{"$f":"'FR-16(7)(v)-10 DIST Classified'!I294","v":0},0,0,0,0,0,0,0,0,0,0,0,0,0]
[7,null,{"$f":"'FR-16(7)(v)-1 Functional'!C295","v":"TAX INTEREST, EXPENSING, DEPR."},{"$f":"'FR-16(7)(v)-1 Functional'!D295","v":"NP29"}," ",{"$f":"'FR-16(7)(v)-10 DIST Classified'!I295","v":6538371},5607111,724582,6081,7388,850,19877,2092,981,654,168167,588,6538371,0]
[8,null,{"$f":"'FR-16(7)(v)-1 Functional'!C296","v":"AFUDC IN DEBT"},{"$f":"'FR-16(7)(v)-1 Functional'!D296","v":"NP29"}," ",{"$f":"'FR-16(7)(v)-10 DIST Classified'!I296","v":0},0,0,0,0,0,0,0,0,0,0,0,0,0]
[9,null,{"$f":"'FR-16(7)(v)-1 Functional'!C297","v":"CASUALTY LOSS"},{"$f":"'FR-16(7)(v)-1 Functional'!D297","v":"K411"}," ",{"$f":"'FR-16(7)(v)-10 DIST Classified'!I297","v":-379125},-345439,-16382,-106,-110,-4,-8508,-5433,-246,-2552,-341,-4,-379125,0]
[10,null,{"$f":"'FR-16(7)(v)-1 Functional'!C298","v":"NON-CASH OVERHEADS"},{"$f":"'FR-16(7)(v)-1 Functional'!D298","v":"G229"}," ",{"$f":"'FR-16(7)(v)-10 DIST Classified'!I298","v":0},0,0,0,0,0,0,0,0,0,0,0,0,0]
[11,null,{"$f":"'FR-16(7)(v)-1 Functional'!C299","v":"PLANT FAS 109"},{"$f":"'FR-16(7)(v)-1 Functional'!D299","v":"NP29"}," ",{"$f":"'FR-16(7)(v)-10 DIST Classified'!I299","v":0},0,0,0,0,0,0,0,0,0,0,0,0,0]
[12,null,{"$f":"'FR-16(7)(v)-1 Functional'!C300","v":"MISCELLANEOUS"},{"$f":"'FR-16(7)(v)-1 Functional'!D300","v":"NP29"},null,{"$f":"'FR-16(7)(v)-10 DIST Classified'!I300","v":6169825},5291058,683740,5738,6972,802,18756,1974,925,617,158688,555,6169825,0]
[13,null,{"$f":"'FR-16(7)(v)-1 Functional'!C301","v":"  TOTAL ACCOUNT 282"},null,null,{"$f":"SUM(F292:F300)","v":19025930},{"$f":"SUM(G292:G300)","v":16295756},{"$f":"SUM(H292:H300)","v":2134086},{"$f":"SUM(I292:I300)","v":17941},{"$f":"SUM(J292:J300)","v":21818},2518,50484,776,2664,-611,498757,{"$f":"SUM(Q292:Q300)","v":1741},{"$f":"SUM(R292:R300)","v":19025930},{"$f":"SUM(S292:S300)","v":0}]
[14]
[15," ACCUM DEF INC TAXES (283)"]
[16,null,{"$f":"'FR-16(7)(v)-1 Functional'!C304","v":"TRANSITION FROM MISO TO PJM"},{"$f":"'FR-16(7)(v)-1 Functional'!D304","v":"NP29"},null,{"$f":"'FR-16(7)(v)-10 DIST Classified'!I304","v":-351366},{"$f":"F304-SUM(H304:Q304)","v":-301321},{"$f":"ROUND(F304*VLOOKUP(D304,ALLOCTABLE_Distr_Customer,$H$10,FALSE),0)","v":-38938},{"$f":"ROUND(F304*VLOOKUP(D304,ALLOCTABLE_Distr_Customer,$I$10,FALSE),0)","v":-327},{"$f":"ROUND(F304*VLOOKUP(D304,ALLOCTABLE_Distr_Customer,$J$10,FALSE),0)","v":-397},{"$f":"ROUND(F304*VLOOKUP(D304,ALLOCTABLE_Distr_Customer,$K$10,FALSE),0)","v":-46},{"$f":"ROUND(F304*VLOOKUP(D304,ALLOCTABLE_Distr_Customer,$L$10,FALSE),0)","v":-1068},{"$f":"ROUND(F304*VLOOKUP(D304,ALLOCTABLE_Distr_Customer,$M$10,FALSE),0)","v":-112},{"$f":"ROUND(F304*VLOOKUP(D304,ALLOCTABLE_Distr_Customer,$N$10,FALSE),0)","v":-53},{"$f":"ROUND(F304*VLOOKUP(D304,ALLOCTABLE_Distr_Customer,$O$10,FALSE),0)","v":-35},{"$f":"ROUND(F304*VLOOKUP(D304,ALLOCTABLE_Distr_Customer,$P$10,FALSE),0)","v":-9037},{"$f":"ROUND(F304*VLOOKUP(D304,ALLOCTABLE_Distr_Customer,$Q$10,FALSE),0)","v":-32},{"$f":"SUM(G304:Q304)","v":-351366},{"$f":"F304-R304","v":0}]
[17,null,{"$f":"'FR-16(7)(v)-1 Functional'!C305","v":"DEFERRED PLANT COSTS"},{"$f":"'FR-16(7)(v)-1 Functional'!D305","v":"NP29"},null,{"$f":"'FR-16(7)(v)-10 DIST Classified'!I305","v":68452},58702,7586,64,77,9,208,22,10,7,1761,6,68452,0]
[18,null,{"$f":"'FR-16(7)(v)-1 Functional'!C306","v":"MISCELLANEOUS"},{"$f":"'FR-16(7)(v)-1 Functional'!D306","v":"OM39"},null,{"$f":"'FR-16(7)(v)-10 DIST Classified'!I306","v":670557},539811,92155,624,724,101,2763,-107,114,0,34292,80,670557,0]
[19,null,{"$f":"'FR-16(7)(v)-1 Functional'!C307","v":"ENVIRONMENTAL RESERVE"},{"$f":"'FR-16(7)(v)-1 Functional'!D307","v":"NP29"},null,{"$f":"'FR-16(7)(v)-10 DIST Classified'!I307","v":0},0,0,0,0,0,0,0,0,0,0,0,0,0]
[20,null,{"$f":"'FR-16(7)(v)-1 Functional'!C308","v":"POST IN-SERVICE CARRYING COSTS"},{"$f":"'FR-16(7)(v)-1 Functional'!D308","v":"NP29"},null,{"$f":"'FR-16(7)(v)-10 DIST Classified'!I308","v":0},0,0,0,0,0,0,0,0,0,0,0,0,0]
[21,null,{"$f":"'FR-16(7)(v)-1 Functional'!C309","v":"ARO CUMULATIVE EFFECT"},{"$f":"'FR-16(7)(v)-1 Functional'!D309","v":"NP29"},null,{"$f":"'FR-16(7)(v)-10 DIST Classified'!I309","v":0},0,0,0,0,0,0,0,0,0,0,0,0,0]
[22,null,{"$f":"'FR-16(7)(v)-1 Functional'!C310","v":"LOSS ON REACQUIRED DEBT"},{"$f":"'FR-16(7)(v)-1 Functional'!D310","v":"D249"},null,{"$f":"'FR-16(7)(v)-10 DIST Classified'!I310","v":0},0,0,0,0,0,0,0,0,0,0,0,0,0]
[23,null,{"$f":"'FR-16(7)(v)-1 Functional'!C311","v":"VACATION PAY ACCRUAL"},{"$f":"'FR-16(7)(v)-1 Functional'!D311","v":"A315"},null,{"$f":"'FR-16(7)(v)-10 DIST Classified'!I311","v":0},0,0,0,0,0,0,0,0,0,0,0,0,0]
[24,null,{"$f":"'FR-16(7)(v)-1 Functional'!C312","v":"NON-AMI METERS RETIRED EARLY"},{"$f":"'FR-16(7)(v)-1 Functional'!D312","v":"OM39"},null,{"$f":"'FR-16(7)(v)-10 DIST Classified'!I312","v":80457},64769,11057,75,87,12,331,-13,14,0,4115,10,{"$f":"SUM(G312:Q312)","v":80457},{"$f":"F312-R312","v":0}]
[25,null,{"$f":"'FR-16(7)(v)-1 Functional'!C313","v":"PENSION EXPENSE"},{"$f":"'FR-16(7)(v)-1 Functional'!D313","v":"A315"},null,{"$f":"'FR-16(7)(v)-10 DIST Classified'!I313","v":1110484},889797,171548,1044,1355,189,5652,-355,222,-44,40932,144,{"$f":"SUM(G313:Q313)","v":1110484},{"$f":"F313-R313","v":0}]
[26,null,{"$f":"'FR-16(7)(v)-1 Functional'!C314","v":"UNCOLLECTIBLE ACCOUNTS"},{"$f":"'FR-16(7)(v)-1 Functional'!D314","v":"K411"},null,{"$f":"'FR-16(7)(v)-10 DIST Classified'!I314","v":0},0,0,0,0,0,0,0,0,0,0,0,0,0]
[27,null,{"$f":"'FR-16(7)(v)-1 Functional'!C315","v":"  TOTAL ACCOUNT 283"},null,null,{"$f":"SUM(F303:F314)","v":1578584},{"$f":"SUM(G303:G314)","v":1251758},{"$f":"SUM(H303:H314)","v":243408},{"$f":"SUM(I303:I314)","v":1480},{"$f":"SUM(J303:J314)","v":1846},265,7886,-565,307,-72,72063,{"$f":"SUM(Q303:Q314)","v":208},{"$f":"SUM(R303:R314)","v":1578584},{"$f":"SUM(S303:S314)","v":0}]
[28]
[29," OTHER ACCUMULATED DEFERRED INCOME TAXES"]
[30,null,{"$f":"'FR-16(7)(v)-1 Functional'!C318","v":"EXCESS ADIT"},{"$f":"'FR-16(7)(v)-1 Functional'!D318","v":"NP29"},null,{"$f":"'FR-16(7)(v)-10 DIST Classified'!I318","v":6090651},{"$f":"F318-SUM(H318:Q318)","v":5223159},{"$f":"ROUND(F318*VLOOKUP(D318,ALLOCTABLE_Distr_Customer,$H$10,FALSE),0)","v":674966},{"$f":"ROUND(F318*VLOOKUP(D318,ALLOCTABLE_Distr_Customer,$I$10,FALSE),0)","v":5664},{"$f":"ROUND(F318*VLOOKUP(D318,ALLOCTABLE_Distr_Customer,$J$10,FALSE),0)","v":6882},{"$f":"ROUND(F318*VLOOKUP(D318,ALLOCTABLE_Distr_Customer,$K$10,FALSE),0)","v":792},{"$f":"ROUND(F318*VLOOKUP(D318,ALLOCTABLE_Distr_Customer,$L$10,FALSE),0)","v":18516},{"$f":"ROUND(F318*VLOOKUP(D318,ALLOCTABLE_Distr_Customer,$M$10,FALSE),0)","v":1949},{"$f":"ROUND(F318*VLOOKUP(D318,ALLOCTABLE_Distr_Customer,$N$10,FALSE),0)","v":914},{"$f":"ROUND(F318*VLOOKUP(D318,ALLOCTABLE_Distr_Customer,$O$10,FALSE),0)","v":609},{"$f":"ROUND(F318*VLOOKUP(D318,ALLOCTABLE_Distr_Customer,$P$10,FALSE),0)","v":156652},{"$f":"ROUND(F318*VLOOKUP(D318,ALLOCTABLE_Distr_Customer,$Q$10,FALSE),0)","v":548},{"$f":"SUM(G318:Q318)","v":6090651},{"$f":"F318-R318","v":0}]
[31,null,{"$f":"'FR-16(7)(v)-1 Functional'!C319","v":"CUSTOMER SERVICE DEPOSITS"},{"$f":"'FR-16(7)(v)-1 Functional'!D319","v":"NP29"},null,{"$f":"'FR-16(7)(v)-10 DIST Classified'!I319","v":0},{"$f":"F319-SUM(H319:Q319)","v":0},{"$f":"ROUND(F319*VLOOKUP(D319,ALLOCTABLE_Distr_Customer,$H$10,FALSE),0)","v":0},{"$f":"ROUND(F319*VLOOKUP(D319,ALLOCTABLE_Distr_Customer,$I$10,FALSE),0)","v":0},{"$f":"ROUND(F319*VLOOKUP(D319,ALLOCTABLE_Distr_Customer,$J$10,FALSE),0)","v":0},{"$f":"ROUND(F319*VLOOKUP(D319,ALLOCTABLE_Distr_Customer,$K$10,FALSE),0)","v":0},{"$f":"ROUND(F319*VLOOKUP(D319,ALLOCTABLE_Distr_Customer,$L$10,FALSE),0)","v":0},{"$f":"ROUND(F319*VLOOKUP(D319,ALLOCTABLE_Distr_Customer,$M$10,FALSE),0)","v":0},{"$f":"ROUND(F319*VLOOKUP(D319,ALLOCTABLE_Distr_Customer,$N$10,FALSE),0)","v":0},{"$f":"ROUND(F319*VLOOKUP(D319,ALLOCTABLE_Distr_Customer,$O$10,FALSE),0)","v":0},{"$f":"ROUND(F319*VLOOKUP(D319,ALLOCTABLE_Distr_Customer,$P$10,FALSE),0)","v":0},{"$f":"ROUND(F319*VLOOKUP(D319,ALLOCTABLE_Distr_Customer,$Q$10,FALSE),0)","v":0},{"$f":"SUM(G319:Q319)","v":0},{"$f":"F319-R319","v":0}]
[32,null,{"$f":"'FR-16(7)(v)-1 Functional'!C320","v":"POST RETIREMENT BENEFITS"},{"$f":"'FR-16(7)(v)-1 Functional'!D320","v":"NP29"},null,{"$f":"'FR-16(7)(v)-10 DIST Classified'!I320","v":0},{"$f":"F320-SUM(H320:Q320)","v":0},{"$f":"ROUND(F320*VLOOKUP(D320,ALLOCTABLE_Distr_Customer,$H$10,FALSE),0)","v":0},{"$f":"ROUND(F320*VLOOKUP(D320,ALLOCTABLE_Distr_Customer,$I$10,FALSE),0)","v":0},{"$f":"ROUND(F320*VLOOKUP(D320,ALLOCTABLE_Distr_Customer,$J$10,FALSE),0)","v":0},{"$f":"ROUND(F320*VLOOKUP(D320,ALLOCTABLE_Distr_Customer,$K$10,FALSE),0)","v":0},{"$f":"ROUND(F320*VLOOKUP(D320,ALLOCTABLE_Distr_Customer,$L$10,FALSE),0)","v":0},{"$f":"ROUND(F320*VLOOKUP(D320,ALLOCTABLE_Distr_Customer,$M$10,FALSE),0)","v":0},{"$f":"ROUND(F320*VLOOKUP(D320,ALLOCTABLE_Distr_Customer,$N$10,FALSE),0)","v":0},{"$f":"ROUND(F320*VLOOKUP(D320,ALLOCTABLE_Distr_Customer,$O$10,FALSE),0)","v":0},{"$f":"ROUND(F320*VLOOKUP(D320,ALLOCTABLE_Distr_Customer,$P$10,FALSE),0)","v":0},{"$f":"ROUND(F320*VLOOKUP(D320,ALLOCTABLE_Distr_Customer,$Q$10,FALSE),0)","v":0},{"$f":"SUM(G320:Q320)","v":0},{"$f":"F320-R320","v":0}]
[33,null,{"$f":"'FR-16(7)(v)-1 Functional'!C321","v":"INVESTMENT TAX CREDIT"},{"$f":"'FR-16(7)(v)-1 Functional'!D321","v":"NP29"},null,{"$f":"'FR-16(7)(v)-10 DIST Classified'!I321","v":0},{"$f":"F321-SUM(H321:Q321)","v":0},{"$f":"ROUND(F321*VLOOKUP(D321,ALLOCTABLE_Distr_Customer,$H$10,FALSE),0)","v":0},{"$f":"ROUND(F321*VLOOKUP(D321,ALLOCTABLE_Distr_Customer,$I$10,FALSE),0)","v":0},{"$f":"ROUND(F321*VLOOKUP(D321,ALLOCTABLE_Distr_Customer,$J$10,FALSE),0)","v":0},{"$f":"ROUND(F321*VLOOKUP(D321,ALLOCTABLE_Distr_Customer,$K$10,FALSE),0)","v":0},{"$f":"ROUND(F321*VLOOKUP(D321,ALLOCTABLE_Distr_Customer,$L$10,FALSE),0)","v":0},{"$f":"ROUND(F321*VLOOKUP(D321,ALLOCTABLE_Distr_Customer,$M$10,FALSE),0)","v":0},{"$f":"ROUND(F321*VLOOKUP(D321,ALLOCTABLE_Distr_Customer,$N$10,FALSE),0)","v":0},{"$f":"ROUND(F321*VLOOKUP(D321,ALLOCTABLE_Distr_Customer,$O$10,FALSE),0)","v":0},{"$f":"ROUND(F321*VLOOKUP(D321,ALLOCTABLE_Distr_Customer,$P$10,FALSE),0)","v":0},{"$f":"ROUND(F321*VLOOKUP(D321,ALLOCTABLE_Distr_Customer,$Q$10,FALSE),0)","v":0},{"$f":"SUM(G321:Q321)","v":0},{"$f":"F321-R321","v":0}]
[34,null,{"$f":"'FR-16(7)(v)-1 Functional'!C322","v":"  TOTAL OTHER SUBTRACTIVE ADJUSTMENTS"},null,null,{"$f":"SUM(F317:F321)","v":6090651},{"$f":"SUM(G317:G321)","v":5223159},{"$f":"SUM(H317:H321)","v":674966},{"$f":"SUM(I317:I321)","v":5664},{"$f":"SUM(J317:J321)","v":6882},792,18516,1949,914,609,156652,{"$f":"SUM(Q317:Q321)","v":548},{"$f":"SUM(R317:R321)","v":6090651},{"$f":"SUM(S317:S321)","v":0}]
[35]
[36,{"$f":"'FR-16(7)(v)-1 Functional'!B324","v":"TOTAL SUBTRACTIVE RATE BASE ADJUSTMENTS"},null,null,null,{"$f":"F322+F315+F301","v":26695165},{"$f":"G322+G315+G301","v":22770673},{"$f":"H322+H315+H301","v":3052460},{"$f":"I322+I315+I301","v":25085},{"$f":"J322+J315+J301","v":30546},3575,76886,2160,3885,-74,727472,{"$f":"Q322+Q315+Q301","v":2497},{"$f":"R322+R315+R301","v":26695165},{"$f":"S322+S315+S301","v":0}]
[]
[{"$f":"co_name","v":"DUKE ENERGY KENTUCKY, INC."},null,null,null,null,null,null,null,null,null,null,null,null,null,null,null,null,{"$f":"R1","v":"FR-16(7)(v)-13"}]
[{"$f":"$A$2","v":"DISTRIBUTION CUSTOMER ALLOCATED - ELECTRIC COST OF SERVICE"},null,null,null,null,null,null,null,null,null,null,null,null,null,null,null,null,{"$f":"R2","v":"WITNESS RESPONSIBLE:"}]
[{"$f":"case_name","v":"CASE NO: 2019-00271"},null,null,null,null,null,null,null,null,null,null,null,null,null,null,null,null,{"$f":"Witness","v":"JAMES E. ZIOLKOWSKI"}]
[{"$f":"data_filing","v":"DATA: 12 MONTHS ACTUAL  & 0 MONTHS ESTIMATED"},null,null,null,null,null,null,null,null,null,null,null,null,null,null,null,null,{"$f":"\"PAGE \"&Pages-12&\" OF \"&Pages","v":"PAGE 6 OF 18"}]
[{"$f":"type","v":"TYPE OF FILING: \"X\" ORIGINAL   UPDATED    REVISED  "}]
[]
[null,null,null,null,null,{"$f":"F$7","v":"TOTAL"},null,{"$f":"H$7","v":"DS"},{"$f":"I$7","v":"GSFL"},{"$f":"J$7","v":"EH"},{"$f":"K$7","v":"SP"},"DT SEC","DT PRI","DP","TT",null,"OTHER"]
["LINE",null,null,null,null,{"$f":"F$8","v":"DISTRIBUTION"},{"$f":"G$8","v":"RS"},{"$f":"H$8","v":"SECONDARY"},{"$f":"I$8","v":"SECONDARY"},{"$f":"J$8","v":"SECONDARY"},{"$f":"K$8","v":"SECONDARY"},"SECONDARY","PRIMARY","PRIMARY","TRANSMISSION","LT","WATER",{"$f":"R8","v":"TOTAL"},"ALL"]
["NO.","ADDITIVE RATE BASE ADJUSTMENTS",null,"ALLO",null,{"$f":"F$9","v":"CUSTOMER"},{"$f":"G$9","v":"RESIDENTIAL"},{"$f":"H$9","v":"DISTRIBUTION"},{"$f":"I$9","v":"DISTRIBUTION"},{"$f":"J$9","v":"DISTRIBUTION"},{"$f":"K$9","v":"DISTRIBUTION"},"DISTRIBUTION","DISTRIBUTION","DISTRIBUTION","TIME OF DAY","LIGHTING","PUMPING",{"$f":"R9","v":"AT ISSUE"},"OTHER"]
[null,null,"Schedule 5.1",null,null,null,{"$f":"G$10","v":3},{"$f":"H$10","v":4},{"$f":"I$10","v":5},{"$f":"J$10","v":6},{"$f":"K$10","v":7},8,9,10,11,12,13,null," "]
[1,"OTHER ACCUMULATED DEFERRED INCOME TAXES"]
[2," ACCUM DEF INC TAXES (190)"]
[3,null,{"$f":"'FR-16(7)(v)-1 Functional'!C338","v":"UNCOLLECTIBLE ACCTS"},{"$f":"'FR-16(7)(v)-1 Functional'!D338","v":"K411"},null,{"$f":"'FR-16(7)(v)-10 DIST Classified'!I338","v":69801},{"$f":"F338-SUM(H338:Q338)","v":63599},{"$f":"ROUND(F338*VLOOKUP(D338,ALLOCTABLE_Distr_Customer,$H$10,FALSE),0)","v":3016},{"$f":"ROUND(F338*VLOOKUP(D338,ALLOCTABLE_Distr_Customer,$I$10,FALSE),0)","v":20},{"$f":"ROUND(F338*VLOOKUP(D338,ALLOCTABLE_Distr_Customer,$J$10,FALSE),0)","v":20},{"$f":"ROUND(F338*VLOOKUP(D338,ALLOCTABLE_Distr_Customer,$K$10,FALSE),0)","v":1},{"$f":"ROUND(F338*VLOOKUP(D338,ALLOCTABLE_Distr_Customer,$L$10,FALSE),0)","v":1566},{"$f":"ROUND(F338*VLOOKUP(D338,ALLOCTABLE_Distr_Customer,$M$10,FALSE),0)","v":1000},{"$f":"ROUND(F338*VLOOKUP(D338,ALLOCTABLE_Distr_Customer,$N$10,FALSE),0)","v":45},{"$f":"ROUND(F338*VLOOKUP(D338,ALLOCTABLE_Distr_Customer,$O$10,FALSE),0)","v":470},{"$f":"ROUND(F338*VLOOKUP(D338,ALLOCTABLE_Distr_Customer,$P$10,FALSE),0)","v":63},{"$f":"ROUND(F338*VLOOKUP(D338,ALLOCTABLE_Distr_Customer,$Q$10,FALSE),0)","v":1},{"$f":"SUM(G338:Q338)","v":69801},{"$f":"F338-R338","v":0}]
[4,null,{"$f":"'FR-16(7)(v)-1 Functional'!C339","v":"CASH FLOW HEDGE"},{"$f":"'FR-16(7)(v)-1 Functional'!D339","v":"A315"},null,{"$f":"'FR-16(7)(v)-10 DIST Classified'!I339","v":44619},35751,6893,42,54,8,227,-14,9,-2,1645,6,44619,0]
[5,null,{"$f":"'FR-16(7)(v)-1 Functional'!C340","v":"RESERVED FOR FUTURE USE"},{"$f":"'FR-16(7)(v)-1 Functional'!D340","v":"NP29"},null,{"$f":"'FR-16(7)(v)-10 DIST Classified'!I340","v":0},0,0,0,0,0,0,0,0,0,0,0,0,0]
[6,null,{"$f":"'FR-16(7)(v)-1 Functional'!C341","v":"RESERVED FOR FUTURE USE"},{"$f":"'FR-16(7)(v)-1 Functional'!D341","v":"NP29"},null,{"$f":"'FR-16(7)(v)-10 DIST Classified'!I341","v":0},0,0,0,0,0,0,0,0,0,0,0,0,0]
[7,null,{"$f":"'FR-16(7)(v)-1 Functional'!C342","v":"ELECTRIC METERS"},{"$f":"'FR-16(7)(v)-1 Functional'!D342","v":"K407"},null,{"$f":"'FR-16(7)(v)-10 DIST Classified'!I342","v":0},0,0,0,0,0,0,0,0,0,0,0,0,0]
[8,null,{"$f":"'FR-16(7)(v)-1 Functional'!C343","v":"UNAMORTIZED DEBT PREMIUM"},{"$f":"'FR-16(7)(v)-1 Functional'!D343","v":"D249"},null,{"$f":"'FR-16(7)(v)-10 DIST Classified'!I343","v":0},0,0,0,0,0,0,0,0,0,0,0,0,0]
[9,null,{"$f":"'FR-16(7)(v)-1 Functional'!C344","v":"ARO CUMULATIVE EFFECT"},{"$f":"'FR-16(7)(v)-1 Functional'!D344","v":"NP29"},null,{"$f":"'FR-16(7)(v)-10 DIST Classified'!I344","v":0},0,0,0,0,0,0,0,0,0,0,0,0,0]
[10,null,{"$f":"'FR-16(7)(v)-1 Functional'!C345","v":"RETIREMENT PLAN"},{"$f":"'FR-16(7)(v)-1 Functional'!D345","v":"A315"},null,{"$f":"'FR-16(7)(v)-10 DIST Classified'!I345","v":458325},367241,70802,431,559,78,2333,-147,92,-18,16894,60,458325,0]
[11,null,{"$f":"'FR-16(7)(v)-1 Functional'!C346","v":"POST RETIREMENT BENEFITS "},{"$f":"'FR-16(7)(v)-1 Functional'!D346","v":"A315"},null,{"$f":"'FR-16(7)(v)-10 DIST Classified'!I346","v":0},0,0,0,0,0,0,0,0,0,0,0,0,0]
[12,null,{"$f":"'FR-16(7)(v)-1 Functional'!C347","v":"POST RETIREMENT BENEFITS - HEALTH CARE"},{"$f":"'FR-16(7)(v)-1 Functional'!D347","v":"A315"},null,{"$f":"'FR-16(7)(v)-10 DIST Classified'!I347","v":0},0,0,0,0,0,0,0,0,0,0,0,0,0]
[13,null,{"$f":"'FR-16(7)(v)-1 Functional'!C348","v":"POST EMPLOYMENT BENEFITS - SFAS 112"},{"$f":"'FR-16(7)(v)-1 Functional'!D348","v":"A315"},null,{"$f":"'FR-16(7)(v)-10 DIST Classified'!I348","v":0},0,0,0,0,0,0,0,0,0,0,0,0,0]
[14,null,{"$f":"'FR-16(7)(v)-1 Functional'!C349","v":"SUPPLEMENTAL PENSION PLAN"},{"$f":"'FR-16(7)(v)-1 Functional'!D349","v":"A315"},null,{"$f":"'FR-16(7)(v)-10 DIST Classified'!I349","v":0},0,0,0,0,0,0,0,0,0,0,0,0,0]
[15,null,{"$f":"'FR-16(7)(v)-1 Functional'!C350","v":"INCENTIVE PLAN"},{"$f":"'FR-16(7)(v)-1 Functional'!D350","v":"A315"},null,{"$f":"'FR-16(7)(v)-10 DIST Classified'!I350","v":0},0,0,0,0,0,0,0,0,0,0,0,0,0]
[16,null,{"$f":"'FR-16(7)(v)-1 Functional'!C351","v":"FEDERAL DEFERRED TAX RECEIVEABLE"},{"$f":"'FR-16(7)(v)-1 Functional'!D351","v":"A315"},null,{"$f":"'FR-16(7)(v)-10 DIST Classified'!I351","v":0},0,0,0,0,0,0,0,0,0,0,0,0,0]
[17,null,{"$f":"'FR-16(7)(v)-1 Functional'!C352","v":"MISCELLANEOUS"},{"$f":"'FR-16(7)(v)-1 Functional'!D352","v":"A315"},null,{"$f":"'FR-16(7)(v)-10 DIST Classified'!I352","v":1471088},1178739,227254,1383,1795,250,7488,-471,294,-59,54224,191,1471088,0]
[18,null,{"$f":"'FR-16(7)(v)-1 Functional'!C353","v":"DEFERRED TAX"},{"$f":"'FR-16(7)(v)-1 Functional'!D353","v":"A315"},null,{"$f":"'FR-16(7)(v)-10 DIST Classified'!I353","v":670362},537141,103558,630,818,114,3412,-215,134,-27,24710,87,670362,0]
[19,null,{"$f":"'FR-16(7)(v)-1 Functional'!C354","v":"NET OPERATING LOSS"},{"$f":"'FR-16(7)(v)-1 Functional'!D354","v":"NP29"},null,{"$f":"'FR-16(7)(v)-10 DIST Classified'!I354","v":0},0,0,0,0,0,0,0,0,0,0,0,0,0]
[20,null,{"$f":"'FR-16(7)(v)-1 Functional'!C355","v":"401K INCENTIVE PLAN"},{"$f":"'FR-16(7)(v)-1 Functional'!D355","v":"A315"},null,{"$f":"'FR-16(7)(v)-10 DIST Classified'!I355","v":0},0,0,0,0,0,0,0,0,0,0,0,0,0]
[21,null,{"$f":"'FR-16(7)(v)-1 Functional'!C356","v":"ENVIRONMENTAL RESERVE"},{"$f":"'FR-16(7)(v)-1 Functional'!D356","v":"NP29"},null,{"$f":"'FR-16(7)(v)-10 DIST Classified'!I356","v":0},0,0,0,0,0,0,0,0,0,0,0,0,0]
[22,null,{"$f":"'FR-16(7)(v)-1 Functional'!C357","v":"VACATION PAY ACCRUALS"},{"$f":"'FR-16(7)(v)-1 Functional'!D357","v":"A315"},null,{"$f":"'FR-16(7)(v)-10 DIST Classified'!I357","v":72668},58226,11226,68,89,12,370,-23,15,-3,2679,9,72668,0]
[23,null,{"$f":"'FR-16(7)(v)-1 Functional'!C358","v":"DEMAND SIDE MANAGEMENT DEFERRAL"},{"$f":"'FR-16(7)(v)-1 Functional'!D358","v":"NP29"},null,{"$f":"'FR-16(7)(v)-10 DIST Classified'!I358","v":60643},52007,6720,56,69,8,184,19,9,6,1560,5,60643,0]
[24,null,{"$f":"'FR-16(7)(v)-1 Functional'!C359","v":"OPERATING LEASE OBLIGATION"},{"$f":"'FR-16(7)(v)-1 Functional'!D359","v":"NP29"},null,{"$f":"'FR-16(7)(v)-10 DIST Classified'!I359","v":224408},192445,24869,209,254,29,682,72,34,22,5772,20,224408,0]
[25,null,{"$f":"'FR-16(7)(v)-1 Functional'!C360","v":"INJURIES & DAMAGES"},{"$f":"'FR-16(7)(v)-1 Functional'!D360","v":"NP29"},null,{"$f":"'FR-16(7)(v)-10 DIST Classified'!I360","v":0},0,0,0,0,0,0,0,0,0,0,0,0,0]
[26,null,{"$f":"'FR-16(7)(v)-1 Functional'!C361","v":"  TOTAL ACCOUNT 190"},null,null,{"$f":"SUM(F337:F360)","v":3071914},{"$f":"SUM(G337:G360)","v":2485149},{"$f":"SUM(H337:H360)","v":454338},{"$f":"SUM(I337:I360)","v":2839},{"$f":"SUM(J337:J360)","v":3658},500,16262,221,632,389,107547,{"$f":"SUM(Q337:Q360)","v":379},{"$f":"SUM(R337:R360)","v":3071914},{"$f":"SUM(S337:S360)","v":0}]
[27]
[28," OTHER"]
[29,null,{"$f":"'FR-16(7)(v)-1 Functional'!C364","v":"RESERVED FOR FUTURE USE"},{"$f":"'FR-16(7)(v)-1 Functional'!D364","v":"NP29"},null,{"$f":"'FR-16(7)(v)-10 DIST Classified'!I364","v":0},{"$f":"F364-SUM(H364:Q364)","v":0},{"$f":"ROUND(F364*VLOOKUP(D364,ALLOCTABLE_Distr_Customer,$H$10,FALSE),0)","v":0},{"$f":"ROUND(F364*VLOOKUP(D364,ALLOCTABLE_Distr_Customer,$I$10,FALSE),0)","v":0},{"$f":"ROUND(F364*VLOOKUP(D364,ALLOCTABLE_Distr_Customer,$J$10,FALSE),0)","v":0},{"$f":"ROUND(F364*VLOOKUP(D364,ALLOCTABLE_Distr_Customer,$K$10,FALSE),0)","v":0},{"$f":"ROUND(F364*VLOOKUP(D364,ALLOCTABLE_Distr_Customer,$L$10,FALSE),0)","v":0},{"$f":"ROUND(F364*VLOOKUP(D364,ALLOCTABLE_Distr_Customer,$M$10,FALSE),0)","v":0},{"$f":"ROUND(F364*VLOOKUP(D364,ALLOCTABLE_Distr_Customer,$N$10,FALSE),0)","v":0},{"$f":"ROUND(F364*VLOOKUP(D364,ALLOCTABLE_Distr_Customer,$O$10,FALSE),0)","v":0},{"$f":"ROUND(F364*VLOOKUP(D364,ALLOCTABLE_Distr_Customer,$P$10,FALSE),0)","v":0},{"$f":"ROUND(F364*VLOOKUP(D364,ALLOCTABLE_Distr_Customer,$Q$10,FALSE),0)","v":0},{"$f":"SUM(G364:Q364)","v":0},{"$f":"F364-R364","v":0}]
[30,null,{"$f":"'FR-16(7)(v)-1 Functional'!C365","v":"RATE CASE EXPENSE REGULATORY ASSET"},{"$f":"'FR-16(7)(v)-1 Functional'!D365","v":"NP29"},null,{"$f":"'FR-16(7)(v)-10 DIST Classified'!I365","v":90915},{"$f":"F365-SUM(H365:Q365)","v":77966},{"$f":"ROUND(F365*VLOOKUP(D365,ALLOCTABLE_Distr_Customer,$H$10,FALSE),0)","v":10075},{"$f":"ROUND(F365*VLOOKUP(D365,ALLOCTABLE_Distr_Customer,$I$10,FALSE),0)","v":85},{"$f":"ROUND(F365*VLOOKUP(D365,ALLOCTABLE_Distr_Customer,$J$10,FALSE),0)","v":103},{"$f":"ROUND(F365*VLOOKUP(D365,ALLOCTABLE_Distr_Customer,$K$10,FALSE),0)","v":12},{"$f":"ROUND(F365*VLOOKUP(D365,ALLOCTABLE_Distr_Customer,$L$10,FALSE),0)","v":276},{"$f":"ROUND(F365*VLOOKUP(D365,ALLOCTABLE_Distr_Customer,$M$10,FALSE),0)","v":29},{"$f":"ROUND(F365*VLOOKUP(D365,ALLOCTABLE_Distr_Customer,$N$10,FALSE),0)","v":14},{"$f":"ROUND(F365*VLOOKUP(D365,ALLOCTABLE_Distr_Customer,$O$10,FALSE),0)","v":9},{"$f":"ROUND(F365*VLOOKUP(D365,ALLOCTABLE_Distr_Customer,$P$10,FALSE),0)","v":2338},{"$f":"ROUND(F365*VLOOKUP(D365,ALLOCTABLE_Distr_Customer,$Q$10,FALSE),0)","v":8},{"$f":"SUM(G365:Q365)","v":90915},{"$f":"F365-R365","v":0}]
[31,null,{"$f":"'FR-16(7)(v)-1 Functional'!C366","v":"RESERVED FOR FUTURE USE"},{"$f":"'FR-16(7)(v)-1 Functional'!D366","v":"NP29"},null,{"$f":"'FR-16(7)(v)-10 DIST Classified'!I366","v":0},{"$f":"F366-SUM(H366:Q366)","v":0},{"$f":"ROUND(F366*VLOOKUP(D366,ALLOCTABLE_Distr_Customer,$H$10,FALSE),0)","v":0},{"$f":"ROUND(F366*VLOOKUP(D366,ALLOCTABLE_Distr_Customer,$I$10,FALSE),0)","v":0},{"$f":"ROUND(F366*VLOOKUP(D366,ALLOCTABLE_Distr_Customer,$J$10,FALSE),0)","v":0},{"$f":"ROUND(F366*VLOOKUP(D366,ALLOCTABLE_Distr_Customer,$K$10,FALSE),0)","v":0},{"$f":"ROUND(F366*VLOOKUP(D366,ALLOCTABLE_Distr_Customer,$L$10,FALSE),0)","v":0},{"$f":"ROUND(F366*VLOOKUP(D366,ALLOCTABLE_Distr_Customer,$M$10,FALSE),0)","v":0},{"$f":"ROUND(F366*VLOOKUP(D366,ALLOCTABLE_Distr_Customer,$N$10,FALSE),0)","v":0},{"$f":"ROUND(F366*VLOOKUP(D366,ALLOCTABLE_Distr_Customer,$O$10,FALSE),0)","v":0},{"$f":"ROUND(F366*VLOOKUP(D366,ALLOCTABLE_Distr_Customer,$P$10,FALSE),0)","v":0},{"$f":"ROUND(F366*VLOOKUP(D366,ALLOCTABLE_Distr_Customer,$Q$10,FALSE),0)","v":0},{"$f":"SUM(G366:Q366)","v":0},{"$f":"F366-R366","v":0}]
[32,null,{"$f":"'FR-16(7)(v)-1 Functional'!C367","v":"  OTHER"},null,null,{"$f":"SUM(F364:F366)","v":90915},{"$f":"SUM(G363:G366)","v":77966},10075,85,{"$f":"SUM(J363:J366)","v":103},12,276,29,14,9,2338,8,90915,0]
[33,null,null,null,null," "]
[34,"CONSTRUCTION WORK IN PROGRESS"]
[35,null,"PRODUCTION",{"$f":"'FR-16(7)(v)-1 Functional'!D370","v":"P129"},null,{"$f":"'FR-16(7)(v)-10 DIST Classified'!I370","v":0},{"$f":"F370-SUM(H370:Q370)","v":0},{"$f":"ROUND(F370*VLOOKUP(D370,ALLOCTABLE_Distr_Customer,$H$10,FALSE),0)","v":0},{"$f":"ROUND(F370*VLOOKUP(D370,ALLOCTABLE_Distr_Customer,$I$10,FALSE),0)","v":0},{"$f":"ROUND(F370*VLOOKUP(D370,ALLOCTABLE_Distr_Customer,$J$10,FALSE),0)","v":0},{"$f":"ROUND(F370*VLOOKUP(D370,ALLOCTABLE_Distr_Customer,$K$10,FALSE),0)","v":0},{"$f":"ROUND(F370*VLOOKUP(D370,ALLOCTABLE_Distr_Customer,$L$10,FALSE),0)","v":0},{"$f":"ROUND(F370*VLOOKUP(D370,ALLOCTABLE_Distr_Customer,$M$10,FALSE),0)","v":0},{"$f":"ROUND(F370*VLOOKUP(D370,ALLOCTABLE_Distr_Customer,$N$10,FALSE),0)","v":0},{"$f":"ROUND(F370*VLOOKUP(D370,ALLOCTABLE_Distr_Customer,$O$10,FALSE),0)","v":0},{"$f":"ROUND(F370*VLOOKUP(D370,ALLOCTABLE_Distr_Customer,$P$10,FALSE),0)","v":0},{"$f":"ROUND(F370*VLOOKUP(D370,ALLOCTABLE_Distr_Customer,$Q$10,FALSE),0)","v":0},{"$f":"SUM(G370:Q370)","v":0},{"$f":"F370-R370","v":0}]
[36,null,"TRANSMISSION",{"$f":"'FR-16(7)(v)-1 Functional'!D371","v":"T129"},null,{"$f":"'FR-16(7)(v)-10 DIST Classified'!I371","v":0},{"$f":"F371-SUM(H371:Q371)","v":0},{"$f":"ROUND(F371*VLOOKUP(D371,ALLOCTABLE_Distr_Customer,$H$10,FALSE),0)","v":0},{"$f":"ROUND(F371*VLOOKUP(D371,ALLOCTABLE_Distr_Customer,$I$10,FALSE),0)","v":0},{"$f":"ROUND(F371*VLOOKUP(D371,ALLOCTABLE_Distr_Customer,$J$10,FALSE),0)","v":0},{"$f":"ROUND(F371*VLOOKUP(D371,ALLOCTABLE_Distr_Customer,$K$10,FALSE),0)","v":0},{"$f":"ROUND(F371*VLOOKUP(D371,ALLOCTABLE_Distr_Customer,$L$10,FALSE),0)","v":0},{"$f":"ROUND(F371*VLOOKUP(D371,ALLOCTABLE_Distr_Customer,$M$10,FALSE),0)","v":0},{"$f":"ROUND(F371*VLOOKUP(D371,ALLOCTABLE_Distr_Customer,$N$10,FALSE),0)","v":0},{"$f":"ROUND(F371*VLOOKUP(D371,ALLOCTABLE_Distr_Customer,$O$10,FALSE),0)","v":0},{"$f":"ROUND(F371*VLOOKUP(D371,ALLOCTABLE_Distr_Customer,$P$10,FALSE),0)","v":0},{"$f":"ROUND(F371*VLOOKUP(D371,ALLOCTABLE_Distr_Customer,$Q$10,FALSE),0)","v":0},{"$f":"SUM(G371:Q371)","v":0},{"$f":"F371-R371","v":0}]
[37,null,"DISTRIBUTION",{"$f":"'FR-16(7)(v)-1 Functional'!D372","v":"D149"},null,{"$f":"'FR-16(7)(v)-10 DIST Classified'!I372","v":0},{"$f":"F372-SUM(H372:Q372)","v":0},{"$f":"ROUND(F372*VLOOKUP(D372,ALLOCTABLE_Distr_Customer,$H$10,FALSE),0)","v":0},{"$f":"ROUND(F372*VLOOKUP(D372,ALLOCTABLE_Distr_Customer,$I$10,FALSE),0)","v":0},{"$f":"ROUND(F372*VLOOKUP(D372,ALLOCTABLE_Distr_Customer,$J$10,FALSE),0)","v":0},{"$f":"ROUND(F372*VLOOKUP(D372,ALLOCTABLE_Distr_Customer,$K$10,FALSE),0)","v":0},{"$f":"ROUND(F372*VLOOKUP(D372,ALLOCTABLE_Distr_Customer,$L$10,FALSE),0)","v":0},{"$f":"ROUND(F372*VLOOKUP(D372,ALLOCTABLE_Distr_Customer,$M$10,FALSE),0)","v":0},{"$f":"ROUND(F372*VLOOKUP(D372,ALLOCTABLE_Distr_Customer,$N$10,FALSE),0)","v":0},{"$f":"ROUND(F372*VLOOKUP(D372,ALLOCTABLE_Distr_Customer,$O$10,FALSE),0)","v":0},{"$f":"ROUND(F372*VLOOKUP(D372,ALLOCTABLE_Distr_Customer,$P$10,FALSE),0)","v":0},{"$f":"ROUND(F372*VLOOKUP(D372,ALLOCTABLE_Distr_Customer,$Q$10,FALSE),0)","v":0},{"$f":"SUM(G372:Q372)","v":0},{"$f":"F372-R372","v":0}]
[38,null,"COMMON",{"$f":"'FR-16(7)(v)-1 Functional'!D373","v":"C129"},null,{"$f":"'FR-16(7)(v)-10 DIST Classified'!I373","v":0},{"$f":"F373-SUM(H373:Q373)","v":0},{"$f":"ROUND(F373*VLOOKUP(D373,ALLOCTABLE_Distr_Customer,$H$10,FALSE),0)","v":0},{"$f":"ROUND(F373*VLOOKUP(D373,ALLOCTABLE_Distr_Customer,$I$10,FALSE),0)","v":0},{"$f":"ROUND(F373*VLOOKUP(D373,ALLOCTABLE_Distr_Customer,$J$10,FALSE),0)","v":0},{"$f":"ROUND(F373*VLOOKUP(D373,ALLOCTABLE_Distr_Customer,$K$10,FALSE),0)","v":0},{"$f":"ROUND(F373*VLOOKUP(D373,ALLOCTABLE_Distr_Customer,$L$10,FALSE),0)","v":0},{"$f":"ROUND(F373*VLOOKUP(D373,ALLOCTABLE_Distr_Customer,$M$10,FALSE),0)","v":0},{"$f":"ROUND(F373*VLOOKUP(D373,ALLOCTABLE_Distr_Customer,$N$10,FALSE),0)","v":0},{"$f":"ROUND(F373*VLOOKUP(D373,ALLOCTABLE_Distr_Customer,$O$10,FALSE),0)","v":0},{"$f":"ROUND(F373*VLOOKUP(D373,ALLOCTABLE_Distr_Customer,$P$10,FALSE),0)","v":0},{"$f":"ROUND(F373*VLOOKUP(D373,ALLOCTABLE_Distr_Customer,$Q$10,FALSE),0)","v":0},{"$f":"SUM(G373:Q373)","v":0},{"$f":"F373-R373","v":0}]
[39,null,"GENERAL",{"$f":"'FR-16(7)(v)-1 Functional'!D374","v":"G129"},null,{"$f":"'FR-16(7)(v)-10 DIST Classified'!I374","v":0},{"$f":"F374-SUM(H374:Q374)","v":0},{"$f":"ROUND(F374*VLOOKUP(D374,ALLOCTABLE_Distr_Customer,$H$10,FALSE),0)","v":0},{"$f":"ROUND(F374*VLOOKUP(D374,ALLOCTABLE_Distr_Customer,$I$10,FALSE),0)","v":0},{"$f":"ROUND(F374*VLOOKUP(D374,ALLOCTABLE_Distr_Customer,$J$10,FALSE),0)","v":0},{"$f":"ROUND(F374*VLOOKUP(D374,ALLOCTABLE_Distr_Customer,$K$10,FALSE),0)","v":0},{"$f":"ROUND(F374*VLOOKUP(D374,ALLOCTABLE_Distr_Customer,$L$10,FALSE),0)","v":0},{"$f":"ROUND(F374*VLOOKUP(D374,ALLOCTABLE_Distr_Customer,$M$10,FALSE),0)","v":0},{"$f":"ROUND(F374*VLOOKUP(D374,ALLOCTABLE_Distr_Customer,$N$10,FALSE),0)","v":0},{"$f":"ROUND(F374*VLOOKUP(D374,ALLOCTABLE_Distr_Customer,$O$10,FALSE),0)","v":0},{"$f":"ROUND(F374*VLOOKUP(D374,ALLOCTABLE_Distr_Customer,$P$10,FALSE),0)","v":0},{"$f":"ROUND(F374*VLOOKUP(D374,ALLOCTABLE_Distr_Customer,$Q$10,FALSE),0)","v":0},{"$f":"SUM(G374:Q374)","v":0},{"$f":"F374-R374","v":0}]
[40,null,"TOTAL CONSTRUCTION WORK IN PROGRESS",null,null,{"$f":"SUM(F370:F374)","v":0},0,0,0,0,0,0,0,0,0,0,0,0]
[41]
[42,{"$f":"'FR-16(7)(v)-1 Functional'!B377","v":"TOTAL ADDITIVE RATE BASE ADJUSTMENTS"},null,null,null,{"$f":"F361+F367+F375","v":3162829},{"$f":"G361+G367+G375","v":2563115},{"$f":"H361+H367+H375","v":464413},{"$f":"I361+I367+I375","v":2924},{"$f":"J361+J367+J375","v":3761},512,16538,250,646,398,109885,{"$f":"Q361+Q367+Q375","v":387},{"$f":"R361+R367+R375","v":3162829},{"$f":"S361+S367+S375","v":0}]
[]
[{"$f":"co_name","v":"DUKE ENERGY KENTUCKY, INC."},null,null,null,null,null,null,null,null,null,null,null,null,null,null,null,null,{"$f":"R1","v":"FR-16(7)(v)-13"}]
[{"$f":"$A$2","v":"DISTRIBUTION CUSTOMER ALLOCATED - ELECTRIC COST OF SERVICE"},null,null,null,null,null,null,null,null,null,null,null,null,null,null,null,null,{"$f":"R2","v":"WITNESS RESPONSIBLE:"}]
[{"$f":"case_name","v":"CASE NO: 2019-00271"},null,null,null,null,null,null,null,null,null,null,null,null,null,null,null,null,{"$f":"Witness","v":"JAMES E. ZIOLKOWSKI"}]
[{"$f":"data_filing","v":"DATA: 12 MONTHS ACTUAL  & 0 MONTHS ESTIMATED"},null,null,null,null,null,null,null,null,null,null,null,null,null,null,null,null,{"$f":"\"PAGE \"&Pages-11&\" OF \"&Pages","v":"PAGE 7 OF 18"}]
[{"$f":"type","v":"TYPE OF FILING: \"X\" ORIGINAL   UPDATED    REVISED  "}]
[]
[null,null,null,null,null,{"$f":"F$7","v":"TOTAL"},null,{"$f":"H$7","v":"DS"},{"$f":"I$7","v":"GSFL"},{"$f":"J$7","v":"EH"},{"$f":"K$7","v":"SP"},"DT SEC","DT PRI","DP","TT",null,"OTHER"]
["LINE",null,null,null,null,{"$f":"F$8","v":"DISTRIBUTION"},{"$f":"G$8","v":"RS"},{"$f":"H$8","v":"SECONDARY"},{"$f":"I$8","v":"SECONDARY"},{"$f":"J$8","v":"SECONDARY"},{"$f":"K$8","v":"SECONDARY"},"SECONDARY","PRIMARY","PRIMARY","TRANSMISSION","LT","WATER",{"$f":"R8","v":"TOTAL"},"ALL"]
["NO.","WORKING CAPITAL",null,"ALLO",null,{"$f":"F$9","v":"CUSTOMER"},{"$f":"G$9","v":"RESIDENTIAL"},{"$f":"H$9","v":"DISTRIBUTION"},{"$f":"I$9","v":"DISTRIBUTION"},{"$f":"J$9","v":"DISTRIBUTION"},{"$f":"K$9","v":"DISTRIBUTION"},"DISTRIBUTION","DISTRIBUTION","DISTRIBUTION","TIME OF DAY","LIGHTING","PUMPING",{"$f":"R9","v":"AT ISSUE"},"OTHER"]
[null,null,"Schedule 5.2",null,null,null,{"$f":"G$10","v":3},{"$f":"H$10","v":4},{"$f":"I$10","v":5},{"$f":"J$10","v":6},{"$f":"K$10","v":7},8,9,10,11,12,13,null," "]
[]
[1,"NET ORIGINAL COST RATE BASE",null,null,null,{"$f":"F277-F324+F377","v":88228215},{"$f":"G277-G324+G377","v":75634231},{"$f":"H277-H324+H377","v":9797432},{"$f":"I277-I324+I377","v":82097},{"$f":"J277-J324+J377","v":99415},11044,279550,34099,13697,11622,2256642,{"$f":"Q277-Q324+Q377","v":8386},{"$f":"R277-R324+R377","v":88228215},{"$f":"S277-S324+S377","v":0}]
[2]
[3,"WORKING CAPITAL"]
[4]
[5,"PLANT MATERIALS & SUPPLIES"]
[6,null,"OTHER MATERIALS & SUPPLIES",{"$f":"'FR-16(7)(v)-1 Functional'!D395","v":"PD29"},null,{"$f":"'FR-16(7)(v)-10 DIST Classified'!I395","v":5841630},{"$f":"F395-SUM(H395:Q395)","v":4894060},{"$f":"ROUND(F395*VLOOKUP(D395,ALLOCTABLE_Distr_Customer,$H$10,FALSE),0)","v":888454},{"$f":"ROUND(F395*VLOOKUP(D395,ALLOCTABLE_Distr_Customer,$I$10,FALSE),0)","v":6192},{"$f":"ROUND(F395*VLOOKUP(D395,ALLOCTABLE_Distr_Customer,$J$10,FALSE),0)","v":7068},{"$f":"ROUND(F395*VLOOKUP(D395,ALLOCTABLE_Distr_Customer,$K$10,FALSE),0)","v":993},{"$f":"ROUND(F395*VLOOKUP(D395,ALLOCTABLE_Distr_Customer,$L$10,FALSE),0)","v":28098},{"$f":"ROUND(F395*VLOOKUP(D395,ALLOCTABLE_Distr_Customer,$M$10,FALSE),0)","v":-1752},{"$f":"ROUND(F395*VLOOKUP(D395,ALLOCTABLE_Distr_Customer,$N$10,FALSE),0)","v":1110},{"$f":"ROUND(F395*VLOOKUP(D395,ALLOCTABLE_Distr_Customer,$O$10,FALSE),0)","v":-234},{"$f":"ROUND(F395*VLOOKUP(D395,ALLOCTABLE_Distr_Customer,$P$10,FALSE),0)","v":16882},{"$f":"ROUND(F395*VLOOKUP(D395,ALLOCTABLE_Distr_Customer,$Q$10,FALSE),0)","v":759},{"$f":"SUM(G395:Q395)","v":5841630},{"$f":"F395-R395","v":0}]
[7,null,{"$f":"'FR-16(7)(v)-1 Functional'!C396","v":"FUEL"},{"$f":"'FR-16(7)(v)-1 Functional'!D396","v":"K301"},null,{"$f":"'FR-16(7)(v)-10 DIST Classified'!I396","v":0},{"$f":"F396-SUM(H396:Q396)","v":0},{"$f":"ROUND(F396*VLOOKUP(D396,ALLOCTABLE_Distr_Customer,$H$10,FALSE),0)","v":0},{"$f":"ROUND(F396*VLOOKUP(D396,ALLOCTABLE_Distr_Customer,$I$10,FALSE),0)","v":0},{"$f":"ROUND(F396*VLOOKUP(D396,ALLOCTABLE_Distr_Customer,$J$10,FALSE),0)","v":0},{"$f":"ROUND(F396*VLOOKUP(D396,ALLOCTABLE_Distr_Customer,$K$10,FALSE),0)","v":0},{"$f":"ROUND(F396*VLOOKUP(D396,ALLOCTABLE_Distr_Customer,$L$10,FALSE),0)","v":0},{"$f":"ROUND(F396*VLOOKUP(D396,ALLOCTABLE_Distr_Customer,$M$10,FALSE),0)","v":0},{"$f":"ROUND(F396*VLOOKUP(D396,ALLOCTABLE_Distr_Customer,$N$10,FALSE),0)","v":0},{"$f":"ROUND(F396*VLOOKUP(D396,ALLOCTABLE_Distr_Customer,$O$10,FALSE),0)","v":0},{"$f":"ROUND(F396*VLOOKUP(D396,ALLOCTABLE_Distr_Customer,$P$10,FALSE),0)","v":0},{"$f":"ROUND(F396*VLOOKUP(D396,ALLOCTABLE_Distr_Customer,$Q$10,FALSE),0)","v":0},{"$f":"SUM(G396:Q396)","v":0},{"$f":"F396-R396","v":0}]
[8,null,{"$f":"'FR-16(7)(v)-1 Functional'!C397","v":"EMISSION ALLOWANCES"},{"$f":"'FR-16(7)(v)-1 Functional'!D397","v":"K301"},null,{"$f":"'FR-16(7)(v)-10 DIST Classified'!I397","v":0},{"$f":"F397-SUM(H397:Q397)","v":0},{"$f":"ROUND(F397*VLOOKUP(D397,ALLOCTABLE_Distr_Customer,$H$10,FALSE),0)","v":0},{"$f":"ROUND(F397*VLOOKUP(D397,ALLOCTABLE_Distr_Customer,$I$10,FALSE),0)","v":0},{"$f":"ROUND(F397*VLOOKUP(D397,ALLOCTABLE_Distr_Customer,$J$10,FALSE),0)","v":0},{"$f":"ROUND(F397*VLOOKUP(D397,ALLOCTABLE_Distr_Customer,$K$10,FALSE),0)","v":0},{"$f":"ROUND(F397*VLOOKUP(D397,ALLOCTABLE_Distr_Customer,$L$10,FALSE),0)","v":0},{"$f":"ROUND(F397*VLOOKUP(D397,ALLOCTABLE_Distr_Customer,$M$10,FALSE),0)","v":0},{"$f":"ROUND(F397*VLOOKUP(D397,ALLOCTABLE_Distr_Customer,$N$10,FALSE),0)","v":0},{"$f":"ROUND(F397*VLOOKUP(D397,ALLOCTABLE_Distr_Customer,$O$10,FALSE),0)","v":0},{"$f":"ROUND(F397*VLOOKUP(D397,ALLOCTABLE_Distr_Customer,$P$10,FALSE),0)","v":0},{"$f":"ROUND(F397*VLOOKUP(D397,ALLOCTABLE_Distr_Customer,$Q$10,FALSE),0)","v":0},{"$f":"SUM(G397:Q397)","v":0},{"$f":"F397-R397","v":0}]
[9,null,{"$f":"'FR-16(7)(v)-1 Functional'!C398","v":"  TOTAL PLANT MATS. & SUPPLIES"},null,null,{"$f":"SUM(F394:F397)","v":5841630},{"$f":"SUM(G394:G397)","v":4894060},{"$f":"SUM(H394:H397)","v":888454},{"$f":"SUM(I394:I397)","v":6192},{"$f":"SUM(J394:J397)","v":7068},993,28098,-1752,1110,-234,16882,{"$f":"SUM(Q394:Q397)","v":759},{"$f":"SUM(R394:R397)","v":5841630},{"$f":"SUM(S394:S397)","v":0}]
[10,"TOTAL MATERIALS & SUPPLIES",null,null,null,{"$f":"F398","v":5841630},4894060,888454,6192,{"$f":"J398","v":7068},993,28098,-1752,1110,-234,16882,759,5841630,0]
[11]
[12,"PREPAYMENTS"]
[13,null,{"$f":"'FR-16(7)(v)-1 Functional'!C402","v":"INSURANCE GENERAL"},{"$f":"'FR-16(7)(v)-1 Functional'!D402","v":"NP29"},null,{"$f":"'FR-16(7)(v)-10 DIST Classified'!I402","v":26845},{"$f":"F402-SUM(H402:Q402)","v":23022},{"$f":"ROUND(F402*VLOOKUP(D402,ALLOCTABLE_Distr_Customer,$H$10,FALSE),0)","v":2975},{"$f":"ROUND(F402*VLOOKUP(D402,ALLOCTABLE_Distr_Customer,$I$10,FALSE),0)","v":25},{"$f":"ROUND(F402*VLOOKUP(D402,ALLOCTABLE_Distr_Customer,$J$10,FALSE),0)","v":30},{"$f":"ROUND(F402*VLOOKUP(D402,ALLOCTABLE_Distr_Customer,$K$10,FALSE),0)","v":3},{"$f":"ROUND(F402*VLOOKUP(D402,ALLOCTABLE_Distr_Customer,$L$10,FALSE),0)","v":82},{"$f":"ROUND(F402*VLOOKUP(D402,ALLOCTABLE_Distr_Customer,$M$10,FALSE),0)","v":9},{"$f":"ROUND(F402*VLOOKUP(D402,ALLOCTABLE_Distr_Customer,$N$10,FALSE),0)","v":4},{"$f":"ROUND(F402*VLOOKUP(D402,ALLOCTABLE_Distr_Customer,$O$10,FALSE),0)","v":3},{"$f":"ROUND(F402*VLOOKUP(D402,ALLOCTABLE_Distr_Customer,$P$10,FALSE),0)","v":690},{"$f":"ROUND(F402*VLOOKUP(D402,ALLOCTABLE_Distr_Customer,$Q$10,FALSE),0)","v":2},{"$f":"SUM(G402:Q402)","v":26845},{"$f":"F402-R402","v":0}]
[14,null,{"$f":"'FR-16(7)(v)-1 Functional'!C403","v":"EXCISE TAX"},{"$f":"'FR-16(7)(v)-1 Functional'!D403","v":"NP29"},null,{"$f":"'FR-16(7)(v)-10 DIST Classified'!I403","v":0},{"$f":"F403-SUM(H403:Q403)","v":0},{"$f":"ROUND(F403*VLOOKUP(D403,ALLOCTABLE_Distr_Customer,$H$10,FALSE),0)","v":0},{"$f":"ROUND(F403*VLOOKUP(D403,ALLOCTABLE_Distr_Customer,$I$10,FALSE),0)","v":0},{"$f":"ROUND(F403*VLOOKUP(D403,ALLOCTABLE_Distr_Customer,$J$10,FALSE),0)","v":0},{"$f":"ROUND(F403*VLOOKUP(D403,ALLOCTABLE_Distr_Customer,$K$10,FALSE),0)","v":0},{"$f":"ROUND(F403*VLOOKUP(D403,ALLOCTABLE_Distr_Customer,$L$10,FALSE),0)","v":0},{"$f":"ROUND(F403*VLOOKUP(D403,ALLOCTABLE_Distr_Customer,$M$10,FALSE),0)","v":0},{"$f":"ROUND(F403*VLOOKUP(D403,ALLOCTABLE_Distr_Customer,$N$10,FALSE),0)","v":0},{"$f":"ROUND(F403*VLOOKUP(D403,ALLOCTABLE_Distr_Customer,$O$10,FALSE),0)","v":0},{"$f":"ROUND(F403*VLOOKUP(D403,ALLOCTABLE_Distr_Customer,$P$10,FALSE),0)","v":0},{"$f":"ROUND(F403*VLOOKUP(D403,ALLOCTABLE_Distr_Customer,$Q$10,FALSE),0)","v":0},{"$f":"SUM(G403:Q403)","v":0},{"$f":"F403-R403","v":0}]
[15,null,{"$f":"'FR-16(7)(v)-1 Functional'!C404","v":"COLLATERAL ASSET"},{"$f":"'FR-16(7)(v)-1 Functional'!D404","v":"K301"},null,{"$f":"'FR-16(7)(v)-10 DIST Classified'!I404","v":0},{"$f":"F404-SUM(H404:Q404)","v":0},{"$f":"ROUND(F404*VLOOKUP(D404,ALLOCTABLE_Distr_Customer,$H$10,FALSE),0)","v":0},{"$f":"ROUND(F404*VLOOKUP(D404,ALLOCTABLE_Distr_Customer,$I$10,FALSE),0)","v":0},{"$f":"ROUND(F404*VLOOKUP(D404,ALLOCTABLE_Distr_Customer,$J$10,FALSE),0)","v":0},{"$f":"ROUND(F404*VLOOKUP(D404,ALLOCTABLE_Distr_Customer,$K$10,FALSE),0)","v":0},{"$f":"ROUND(F404*VLOOKUP(D404,ALLOCTABLE_Distr_Customer,$L$10,FALSE),0)","v":0},{"$f":"ROUND(F404*VLOOKUP(D404,ALLOCTABLE_Distr_Customer,$M$10,FALSE),0)","v":0},{"$f":"ROUND(F404*VLOOKUP(D404,ALLOCTABLE_Distr_Customer,$N$10,FALSE),0)","v":0},{"$f":"ROUND(F404*VLOOKUP(D404,ALLOCTABLE_Distr_Customer,$O$10,FALSE),0)","v":0},{"$f":"ROUND(F404*VLOOKUP(D404,ALLOCTABLE_Distr_Customer,$P$10,FALSE),0)","v":0},{"$f":"ROUND(F404*VLOOKUP(D404,ALLOCTABLE_Distr_Customer,$Q$10,FALSE),0)","v":0},{"$f":"SUM(G404:Q404)","v":0},{"$f":"F404-R404","v":0}]
[16,null,{"$f":"'FR-16(7)(v)-1 Functional'!C405","v":"  TOTAL PREPAYMENTS"},null,null,{"$f":"SUM(F401:F404)","v":26845},{"$f":"SUM(G401:G404)","v":23022},{"$f":"SUM(H401:H404)","v":2975},{"$f":"SUM(I401:I404)","v":25},{"$f":"SUM(J401:J404)","v":30},3,82,9,4,3,690,{"$f":"SUM(Q401:Q404)","v":2},{"$f":"SUM(R401:R404)","v":26845},{"$f":"SUM(S401:S404)","v":0}]
[17]
[18,"AUTO CALC (O&M-ELECTRIC FUEL COST)/8",null,null,null,{"$f":"IF(WorkingCap=\"No\",0,ROUND((F549-F447-F448)/8,0))","v":0},{"$f":"F407-SUM(H407:Q407)","v":0},{"$f":"IF(WorkingCap=\"No\",0,ROUND((H549-H447-H448)/8,0))","v":0},0,0,0,0,0,0,0,0,0,{"$f":"SUM(G407:Q407)","v":0},{"$f":"F407-R407","v":0}]
[19,"  TOTAL WORKING CASH",null,null,null,{"$f":"F407","v":0},0,0,0,{"$f":"J407","v":0},0,0,0,0,0,0,0,0,0]
[20]
[21,"MISCELLANEOUS WORKING CAPITAL"]
[22,null,{"$f":"'FR-16(7)(v)-1 Functional'!C411","v":"RESERVED FOR FUTURE USE"},{"$f":"'FR-16(7)(v)-1 Functional'!D411","v":"K301"},null,{"$f":"'FR-16(7)(v)-10 DIST Classified'!I411","v":0},{"$f":"F411-SUM(H411:Q411)","v":0},{"$f":"ROUND(F411*VLOOKUP(D411,ALLOCTABLE_Distr_Customer,$H$10,FALSE),0)","v":0},{"$f":"ROUND(F411*VLOOKUP(D411,ALLOCTABLE_Distr_Customer,$I$10,FALSE),0)","v":0},{"$f":"ROUND(F411*VLOOKUP(D411,ALLOCTABLE_Distr_Customer,$J$10,FALSE),0)","v":0},{"$f":"ROUND(F411*VLOOKUP(D411,ALLOCTABLE_Distr_Customer,$K$10,FALSE),0)","v":0},{"$f":"ROUND(F411*VLOOKUP(D411,ALLOCTABLE_Distr_Customer,$L$10,FALSE),0)","v":0},{"$f":"ROUND(F411*VLOOKUP(D411,ALLOCTABLE_Distr_Customer,$M$10,FALSE),0)","v":0},{"$f":"ROUND(F411*VLOOKUP(D411,ALLOCTABLE_Distr_Customer,$N$10,FALSE),0)","v":0},{"$f":"ROUND(F411*VLOOKUP(D411,ALLOCTABLE_Distr_Customer,$O$10,FALSE),0)","v":0},{"$f":"ROUND(F411*VLOOKUP(D411,ALLOCTABLE_Distr_Customer,$P$10,FALSE),0)","v":0},{"$f":"ROUND(F411*VLOOKUP(D411,ALLOCTABLE_Distr_Customer,$Q$10,FALSE),0)","v":0},{"$f":"SUM(G411:Q411)","v":0},{"$f":"F411-R411","v":0}]
[23,null,{"$f":"'FR-16(7)(v)-1 Functional'!C412","v":"PIPP UNCOLLECTIBLES"},{"$f":"'FR-16(7)(v)-1 Functional'!D412","v":"A315"},null,{"$f":"'FR-16(7)(v)-10 DIST Classified'!I412","v":0},{"$f":"F412-SUM(H412:Q412)","v":0},{"$f":"ROUND(F412*VLOOKUP(D412,ALLOCTABLE_Distr_Customer,$H$10,FALSE),0)","v":0},{"$f":"ROUND(F412*VLOOKUP(D412,ALLOCTABLE_Distr_Customer,$I$10,FALSE),0)","v":0},{"$f":"ROUND(F412*VLOOKUP(D412,ALLOCTABLE_Distr_Customer,$J$10,FALSE),0)","v":0},{"$f":"ROUND(F412*VLOOKUP(D412,ALLOCTABLE_Distr_Customer,$K$10,FALSE),0)","v":0},{"$f":"ROUND(F412*VLOOKUP(D412,ALLOCTABLE_Distr_Customer,$L$10,FALSE),0)","v":0},{"$f":"ROUND(F412*VLOOKUP(D412,ALLOCTABLE_Distr_Customer,$M$10,FALSE),0)","v":0},{"$f":"ROUND(F412*VLOOKUP(D412,ALLOCTABLE_Distr_Customer,$N$10,FALSE),0)","v":0},{"$f":"ROUND(F412*VLOOKUP(D412,ALLOCTABLE_Distr_Customer,$O$10,FALSE),0)","v":0},{"$f":"ROUND(F412*VLOOKUP(D412,ALLOCTABLE_Distr_Customer,$P$10,FALSE),0)","v":0},{"$f":"ROUND(F412*VLOOKUP(D412,ALLOCTABLE_Distr_Customer,$Q$10,FALSE),0)","v":0},{"$f":"SUM(G412:Q412)","v":0},{"$f":"F412-R412","v":0}]
[24,null,{"$f":"'FR-16(7)(v)-1 Functional'!C413","v":"RESERVED FOR FUTURE USE"},{"$f":"'FR-16(7)(v)-1 Functional'!D413","v":"D249"},null,{"$f":"'FR-16(7)(v)-10 DIST Classified'!I413","v":0},{"$f":"F413-SUM(H413:Q413)","v":0},{"$f":"ROUND(F413*VLOOKUP(D413,ALLOCTABLE_Distr_Customer,$H$10,FALSE),0)","v":0},{"$f":"ROUND(F413*VLOOKUP(D413,ALLOCTABLE_Distr_Customer,$I$10,FALSE),0)","v":0},{"$f":"ROUND(F413*VLOOKUP(D413,ALLOCTABLE_Distr_Customer,$J$10,FALSE),0)","v":0},{"$f":"ROUND(F413*VLOOKUP(D413,ALLOCTABLE_Distr_Customer,$K$10,FALSE),0)","v":0},{"$f":"ROUND(F413*VLOOKUP(D413,ALLOCTABLE_Distr_Customer,$L$10,FALSE),0)","v":0},{"$f":"ROUND(F413*VLOOKUP(D413,ALLOCTABLE_Distr_Customer,$M$10,FALSE),0)","v":0},{"$f":"ROUND(F413*VLOOKUP(D413,ALLOCTABLE_Distr_Customer,$N$10,FALSE),0)","v":0},{"$f":"ROUND(F413*VLOOKUP(D413,ALLOCTABLE_Distr_Customer,$O$10,FALSE),0)","v":0},{"$f":"ROUND(F413*VLOOKUP(D413,ALLOCTABLE_Distr_Customer,$P$10,FALSE),0)","v":0},{"$f":"ROUND(F413*VLOOKUP(D413,ALLOCTABLE_Distr_Customer,$Q$10,FALSE),0)","v":0},{"$f":"SUM(G413:Q413)","v":0},{"$f":"F413-R413","v":0}]
[25,null,{"$f":"'FR-16(7)(v)-1 Functional'!C414","v":"  TOTAL MISC WORK CAPITAL"},null,null,{"$f":"SUM(F410:F413)","v":0},{"$f":"SUM(G410:G413)","v":0},{"$f":"SUM(H410:H413)","v":0},{"$f":"SUM(I410:I413)","v":0},{"$f":"SUM(J410:J413)","v":0},0,0,0,0,0,0,{"$f":"SUM(Q410:Q413)","v":0},{"$f":"SUM(R410:R413)","v":0},{"$f":"SUM(S410:S413)","v":0}]
[26]
[27,"TOTAL WORKING CAPITAL",null,null,null,{"$f":"F399+F405+F408+F414","v":5868475},{"$f":"G399+G405+G408+G414","v":4917082},{"$f":"H399+H405+H408+H414","v":891429},{"$f":"I399+I405+I408+I414","v":6217},{"$f":"J399+J405+J408+J414","v":7098},996,28180,-1743,1114,-231,17572,{"$f":"Q399+Q405+Q408+Q414","v":761},{"$f":"R399+R405+R408+R414","v":5868475},{"$f":"S399+S405+S408+S414","v":0}]
[28,"PRELIMINARY SUMMARY"]
[29,null,{"$f":"'FR-16(7)(v)-1 Functional'!C418","v":"TOTAL ACCUMULATED DEFERRED INCOME TAXES"},null,null,{"$f":"-F324","v":-26695165},{"$f":"-G324","v":-22770673},{"$f":"-H324","v":-3052460},{"$f":"-I324","v":-25085},{"$f":"-J324","v":-30546},-3575,-76886,-2160,-3885,74,-727472,{"$f":"-Q324","v":-2497},{"$f":"-R324","v":-26695165},{"$f":"-S324","v":0}]
[30,null,{"$f":"'FR-16(7)(v)-1 Functional'!C419","v":"TOTAL OTHER ACCUMULATED DEFERRED INCOME TAXES"},null,null,{"$f":"F377","v":3162829},{"$f":"G377","v":2563115},{"$f":"H377","v":464413},{"$f":"I377","v":2924},{"$f":"J377","v":3761},512,16538,250,646,398,109885,{"$f":"Q377","v":387},{"$f":"R377","v":3162829},{"$f":"S377","v":0}]
[31,null,{"$f":"'FR-16(7)(v)-1 Functional'!C420","v":"TOTAL WORKING CAPITAL"},null,null,{"$f":"F416","v":5868475},{"$f":"G416","v":4917082},{"$f":"H416","v":891429},{"$f":"I416","v":6217},{"$f":"J416","v":7098},996,28180,-1743,1114,-231,17572,{"$f":"Q416","v":761},{"$f":"R416","v":5868475},{"$f":"S416","v":0}]
[32,null,{"$f":"'FR-16(7)(v)-1 Functional'!C421","v":"  TOTAL RATE BASE ADJUSTMENTS"},null,null,{"$f":"SUM(F417:F420)","v":-17663861},{"$f":"SUM(G417:G420)","v":-15290476},{"$f":"SUM(H417:H420)","v":-1696618},{"$f":"SUM(I417:I420)","v":-15944},{"$f":"SUM(J417:J420)","v":-19687},-2067,-32168,-3653,-2125,241,-600015,{"$f":"SUM(Q417:Q420)","v":-1349},{"$f":"SUM(R417:R420)","v":-17663861},{"$f":"SUM(S417:S420)","v":0}]
[33]
[34,"RATE BASE CALCULATION"]
[35,null,{"$f":"'FR-16(7)(v)-1 Functional'!C424","v":"NET ELECTRIC PLANT IN SERVICE"},null,null,{"$f":"F277","v":111760551},{"$f":"G277","v":95841789},{"$f":"H277","v":12385479},{"$f":"I277","v":104258},{"$f":"J277","v":126200},14107,339898,36009,16936,11150,2874229,{"$f":"Q277","v":10496},{"$f":"R277","v":111760551},{"$f":"S277","v":0}]
[36,null,{"$f":"'FR-16(7)(v)-1 Functional'!C425","v":"TOTAL RATE BASE ADJUSTMENTS"},null,null,{"$f":"F421","v":-17663861},{"$f":"G421","v":-15290476},{"$f":"H421","v":-1696618},{"$f":"I421","v":-15944},{"$f":"J421","v":-19687},-2067,-32168,-3653,-2125,241,-600015,{"$f":"Q421","v":-1349},{"$f":"R421","v":-17663861},{"$f":"S421","v":0}]
[37,null,{"$f":"'FR-16(7)(v)-1 Functional'!C426","v":"  TOTAL RATE BASE"},null,null,{"$f":"SUM(F423:F425)","v":94096690},{"$f":"SUM(G423:G425)","v":80551313},{"$f":"SUM(H423:H425)","v":10688861},{"$f":"SUM(I423:I425)","v":88314},{"$f":"SUM(J423:J425)","v":106513},12040,307730,32356,14811,11391,2274214,{"$f":"SUM(Q423:Q425)","v":9147},{"$f":"SUM(R423:R425)","v":94096690},{"$f":"SUM(S423:S425)","v":0}]
[38]
[39,"TOTAL RATE OF RETURN ALLOWABLE",null,null,null,{"$f":"$F$811","v":6.7100000000000007E-2},{"$f":"$F$811","v":6.7100000000000007E-2},6.7100000000000007E-2,6.7100000000000007E-2,6.7100000000000007E-2,6.7100000000000007E-2,6.7100000000000007E-2,6.7100000000000007E-2,6.7100000000000007E-2,6.7100000000000007E-2,6.7100000000000007E-2,6.7100000000000007E-2,{"$f":"F811","v":6.7100000000000007E-2}]
[40,"RETURN ON RATE BASE",null,null,null,{"$f":"ROUND(F428*F426,0)","v":6313888},{"$f":"F429-SUM(H429:Q429)","v":5404992},{"$f":"ROUND(H426*H428,0)","v":717223},{"$f":"ROUND(I426*I428,0)","v":5926},{"$f":"ROUND(J426*J428,0)","v":7147},808,20649,2171,994,764,152600,{"$f":"ROUND(Q426*Q428,0)","v":614},{"$f":"SUM(G429:Q429)","v":6313888},{"$f":"F429-R429","v":0}]
[41]
[42,{"$f":"'FR-16(7)(v)-1 Functional'!B431","v":"ELECTRIC RATE BASE"},null,{"$f":"'FR-16(7)(v)-1 Functional'!D431","v":"RB99"},null,{"$f":"'FR-16(7)(v)-10 DIST Classified'!I431","v":92940696},{"$f":"F431-SUM(H431:Q431)","v":79561882},{"$f":"ROUND(F431*VLOOKUP(D431,ALLOCTABLE_Distr_Customer,$H$10,FALSE),0)","v":10557134},{"$f":"ROUND(F431*VLOOKUP(D431,ALLOCTABLE_Distr_Customer,$I$10,FALSE),0)","v":87364},{"$f":"ROUND(F431*VLOOKUP(D431,ALLOCTABLE_Distr_Customer,$J$10,FALSE),0)","v":105023},{"$f":"ROUND(F431*VLOOKUP(D431,ALLOCTABLE_Distr_Customer,$K$10,FALSE),0)","v":12082},{"$f":"ROUND(F431*VLOOKUP(D431,ALLOCTABLE_Distr_Customer,$L$10,FALSE),0)","v":303916},{"$f":"ROUND(F431*VLOOKUP(D431,ALLOCTABLE_Distr_Customer,$M$10,FALSE),0)","v":31600},{"$f":"ROUND(F431*VLOOKUP(D431,ALLOCTABLE_Distr_Customer,$N$10,FALSE),0)","v":14871},{"$f":"ROUND(F431*VLOOKUP(D431,ALLOCTABLE_Distr_Customer,$O$10,FALSE),0)","v":11153},{"$f":"ROUND(F431*VLOOKUP(D431,ALLOCTABLE_Distr_Customer,$P$10,FALSE),0)","v":2246377},{"$f":"ROUND(F431*VLOOKUP(D431,ALLOCTABLE_Distr_Customer,$Q$10,FALSE),0)","v":9294},{"$f":"SUM(G431:Q431)","v":92940696},{"$f":"F431-R431","v":0}]
[43,{"$f":"'FR-16(7)(v)-1 Functional'!B432","v":"TOTAL RATE OF RETURN ALLOWABLE"},null,null,null,{"$f":"RofR","v":6.7110000000000003E-2},6.7110000000000003E-2,6.7110000000000003E-2,6.7110000000000003E-2,6.7110000000000003E-2,6.7110000000000003E-2,6.7110000000000003E-2,6.7110000000000003E-2,6.7110000000000003E-2,6.7110000000000003E-2,6.7110000000000003E-2,6.7110000000000003E-2,6.7110000000000003E-2]
[44,{"$f":"'FR-16(7)(v)-1 Functional'!B433","v":"RETURN ON RATE BASE"},null,null,null,{"$f":"ROUND(F431*F432,0)","v":6237250},{"$f":"F433-SUM(H433:Q433)","v":5339398},{"$f":"ROUND(H431*H432,0)","v":708489},5863,7048,811,20396,2121,998,748,150754,624,6237250,{"$f":"ROUND(S426*S428,0)","v":0}]
[]
[{"$f":"co_name","v":"DUKE ENERGY KENTUCKY, INC."},null,null,null,null,null,null,null,null,null,null,null,null,null,null,null,null,{"$f":"R1","v":"FR-16(7)(v)-13"}]
[{"$f":"$A$2","v":"DISTRIBUTION CUSTOMER ALLOCATED - ELECTRIC COST OF SERVICE"},null,null,null,null,null,null,null,null,null,null,null,null,null,null,null,null,{"$f":"R2","v":"WITNESS RESPONSIBLE:"}]
[{"$f":"case_name","v":"CASE NO: 2019-00271"},null,null,null,null,null,null,null,null,null,null,null,null,null,null,null,null,{"$f":"Witness","v":"JAMES E. ZIOLKOWSKI"}]
[{"$f":"data_filing","v":"DATA: 12 MONTHS ACTUAL  & 0 MONTHS ESTIMATED"},null,null,null,null,null,null,null,null,null,null,null,null,null,null,null,null,{"$f":"\"PAGE \"&Pages-10&\" OF \"&Pages","v":"PAGE 8 OF 18"}]
[{"$f":"type","v":"TYPE OF FILING: \"X\" ORIGINAL   UPDATED    REVISED  "}]
[]
[null,null,null,null,null,{"$f":"F$7","v":"TOTAL"},null,{"$f":"H$7","v":"DS"},{"$f":"I$7","v":"GSFL"},{"$f":"J$7","v":"EH"},{"$f":"K$7","v":"SP"},"DT SEC","DT PRI","DP","TT",null,"OTHER"]
["LINE",null,null,null,null,{"$f":"F$8","v":"DISTRIBUTION"},{"$f":"G$8","v":"RS"},{"$f":"H$8","v":"SECONDARY"},{"$f":"I$8","v":"SECONDARY"},{"$f":"J$8","v":"SECONDARY"},{"$f":"K$8","v":"SECONDARY"},"SECONDARY","PRIMARY","PRIMARY","TRANSMISSION","LT","WATER",{"$f":"R8","v":"TOTAL"},"ALL"]
["NO.","O&M EXPENSES",null,"ALLO",null,{"$f":"F$9","v":"CUSTOMER"},{"$f":"G$9","v":"RESIDENTIAL"},{"$f":"H$9","v":"DISTRIBUTION"},{"$f":"I$9","v":"DISTRIBUTION"},{"$f":"J$9","v":"DISTRIBUTION"},{"$f":"K$9","v":"DISTRIBUTION"},"DISTRIBUTION","DISTRIBUTION","DISTRIBUTION","TIME OF DAY","LIGHTING","PUMPING",{"$f":"R9","v":"AT ISSUE"},"OTHER"]
[null,null,"Schedule 6",null,null,null,{"$f":"G$10","v":3},{"$f":"H$10","v":4},{"$f":"I$10","v":5},{"$f":"J$10","v":6},{"$f":"K$10","v":7},8,9,10,11,12,13,null," "]
[1,"PRODUCTION O&M"]
[2,{"$f":"'FR-16(7)(v)-1 Functional'!B446","v":"ENERGY RELATED PRODUCTION O&M"}]
[3,null,{"$f":"'FR-16(7)(v)-1 Functional'!C447","v":"FUEL"},{"$f":"'FR-16(7)(v)-1 Functional'!D447","v":"K302"},null,{"$f":"'FR-16(7)(v)-10 DIST Classified'!I447","v":0},{"$f":"F447-SUM(H447:Q447)","v":0},{"$f":"ROUND(F447*VLOOKUP(D447,ALLOCTABLE_Distr_Customer,$H$10,FALSE),0)","v":0},{"$f":"ROUND(F447*VLOOKUP(D447,ALLOCTABLE_Distr_Customer,$I$10,FALSE),0)","v":0},{"$f":"ROUND(F447*VLOOKUP(D447,ALLOCTABLE_Distr_Customer,$J$10,FALSE),0)","v":0},{"$f":"ROUND(F447*VLOOKUP(D447,ALLOCTABLE_Distr_Customer,$K$10,FALSE),0)","v":0},{"$f":"ROUND(F447*VLOOKUP(D447,ALLOCTABLE_Distr_Customer,$L$10,FALSE),0)","v":0},{"$f":"ROUND(F447*VLOOKUP(D447,ALLOCTABLE_Distr_Customer,$M$10,FALSE),0)","v":0},{"$f":"ROUND(F447*VLOOKUP(D447,ALLOCTABLE_Distr_Customer,$N$10,FALSE),0)","v":0},{"$f":"ROUND(F447*VLOOKUP(D447,ALLOCTABLE_Distr_Customer,$O$10,FALSE),0)","v":0},{"$f":"ROUND(F447*VLOOKUP(D447,ALLOCTABLE_Distr_Customer,$P$10,FALSE),0)","v":0},{"$f":"ROUND(F447*VLOOKUP(D447,ALLOCTABLE_Distr_Customer,$Q$10,FALSE),0)","v":0},{"$f":"SUM(G447:Q447)","v":0},{"$f":"F447-R447","v":0}]
[4,null,{"$f":"'FR-16(7)(v)-1 Functional'!C448","v":"FUEL AND PURCHASED POWER ADJUSTMENT"},{"$f":"'FR-16(7)(v)-1 Functional'!D448","v":"K302"},null,{"$f":"'FR-16(7)(v)-10 DIST Classified'!I448","v":0},0,0,0,0,0,0,0,0,0,0,0,0,0]
[5,null,{"$f":"'FR-16(7)(v)-1 Functional'!C449","v":"EMISSION ALLOWANCES"},{"$f":"'FR-16(7)(v)-1 Functional'!D449","v":"K301"},null,{"$f":"'FR-16(7)(v)-10 DIST Classified'!I449","v":0},0,0,0,0,0,0,0,0,0,0,0,0,0]
[6,null,{"$f":"'FR-16(7)(v)-1 Functional'!C450","v":"ELIMINATE EMISSION ALLOW & OTHER VAR COST"},{"$f":"'FR-16(7)(v)-1 Functional'!D450","v":"K301"},null,{"$f":"'FR-16(7)(v)-10 DIST Classified'!I450","v":0},0,0,0,0,0,0,0,0,0,0,0,0,0]
[7,null,{"$f":"'FR-16(7)(v)-1 Functional'!C451","v":"OTHER PRODUCTION EXPENSE - MAINTENANCE"},{"$f":"'FR-16(7)(v)-1 Functional'!D451","v":"K301"},null,{"$f":"'FR-16(7)(v)-10 DIST Classified'!I451","v":0},0,0,0,0,0,0,0,0,0,0,0,0,0]
[8,null,{"$f":"'FR-16(7)(v)-1 Functional'!C452","v":"MISO TRANSMISSION CHARGES - ACCT 555"},{"$f":"'FR-16(7)(v)-1 Functional'!D452","v":"K301"},null,{"$f":"'FR-16(7)(v)-10 DIST Classified'!I452","v":0},0,0,0,0,0,0,0,0,0,0,0,0,0]
[9,null,"  TOTAL ENERGY RELATED",null,null,{"$f":"SUM(F447:F452)","v":0},{"$f":"SUM(G447:G452)","v":0},{"$f":"SUM(H447:H452)","v":0},{"$f":"SUM(I447:I452)","v":0},{"$f":"SUM(J447:J452)","v":0},0,0,0,0,0,0,{"$f":"SUM(Q447:Q452)","v":0},{"$f":"SUM(R447:R452)","v":0},{"$f":"SUM(S447:S452)","v":0}]
[10]
[11,"DEMAND RELATED & OTHER PROD O&M"]
[12,null,{"$f":"'FR-16(7)(v)-1 Functional'!C456","v":"OTHER PRODUCTION EXPENSES - OPERATIONS"},{"$f":"'FR-16(7)(v)-1 Functional'!D456","v":"K201"},null,{"$f":"'FR-16(7)(v)-10 DIST Classified'!I456","v":0},{"$f":"F456-SUM(H456:Q456)","v":0},{"$f":"ROUND(F456*VLOOKUP(D456,ALLOCTABLE_Distr_Customer,$H$10,FALSE),0)","v":0},{"$f":"ROUND(F456*VLOOKUP(D456,ALLOCTABLE_Distr_Customer,$I$10,FALSE),0)","v":0},{"$f":"ROUND(F456*VLOOKUP(D456,ALLOCTABLE_Distr_Customer,$J$10,FALSE),0)","v":0},{"$f":"ROUND(F456*VLOOKUP(D456,ALLOCTABLE_Distr_Customer,$K$10,FALSE),0)","v":0},{"$f":"ROUND(F456*VLOOKUP(D456,ALLOCTABLE_Distr_Customer,$L$10,FALSE),0)","v":0},{"$f":"ROUND(F456*VLOOKUP(D456,ALLOCTABLE_Distr_Customer,$M$10,FALSE),0)","v":0},{"$f":"ROUND(F456*VLOOKUP(D456,ALLOCTABLE_Distr_Customer,$N$10,FALSE),0)","v":0},{"$f":"ROUND(F456*VLOOKUP(D456,ALLOCTABLE_Distr_Customer,$O$10,FALSE),0)","v":0},{"$f":"ROUND(F456*VLOOKUP(D456,ALLOCTABLE_Distr_Customer,$P$10,FALSE),0)","v":0},{"$f":"ROUND(F456*VLOOKUP(D456,ALLOCTABLE_Distr_Customer,$Q$10,FALSE),0)","v":0},{"$f":"SUM(G456:Q456)","v":0},{"$f":"F456-R456","v":0}]
[13,null,"  TOTAL DEMAND REL & OTH PROD O&M ",null,null,{"$f":"SUM(F455:F456)","v":0},{"$f":"SUM(G455:G456)","v":0},{"$f":"SUM(H455:H456)","v":0},{"$f":"SUM(I455:I456)","v":0},{"$f":"SUM(J455:J456)","v":0},0,0,0,0,0,0,{"$f":"SUM(Q455:Q456)","v":0},{"$f":"SUM(R455:R456)","v":0},{"$f":"SUM(S455:S456)","v":0}]
[14]
[15,"TOTAL PRODUCTION O&M",null,null," ",{"$f":"F457+F453","v":0},{"$f":"G457+G453","v":0},0,0,{"$f":"J457+J453","v":0},0,0,0,0,0,0,0,0,0]
[16]
[17,"TRANSMISSION O & M"]
[18,null,{"$f":"'FR-16(7)(v)-1 Functional'!C462","v":"TRANSFORMER LEASE PAYMENTS"},{"$f":"'FR-16(7)(v)-1 Functional'!D462","v":"K202"},null,{"$f":"'FR-16(7)(v)-10 DIST Classified'!I462","v":0},{"$f":"F462-SUM(H462:Q462)","v":0},{"$f":"ROUND(F462*VLOOKUP(D462,ALLOCTABLE_Distr_Customer,$H$10,FALSE),0)","v":0},{"$f":"ROUND(F462*VLOOKUP(D462,ALLOCTABLE_Distr_Customer,$I$10,FALSE),0)","v":0},{"$f":"ROUND(F462*VLOOKUP(D462,ALLOCTABLE_Distr_Customer,$J$10,FALSE),0)","v":0},{"$f":"ROUND(F462*VLOOKUP(D462,ALLOCTABLE_Distr_Customer,$K$10,FALSE),0)","v":0},{"$f":"ROUND(F462*VLOOKUP(D462,ALLOCTABLE_Distr_Customer,$L$10,FALSE),0)","v":0},{"$f":"ROUND(F462*VLOOKUP(D462,ALLOCTABLE_Distr_Customer,$M$10,FALSE),0)","v":0},{"$f":"ROUND(F462*VLOOKUP(D462,ALLOCTABLE_Distr_Customer,$N$10,FALSE),0)","v":0},{"$f":"ROUND(F462*VLOOKUP(D462,ALLOCTABLE_Distr_Customer,$O$10,FALSE),0)","v":0},{"$f":"ROUND(F462*VLOOKUP(D462,ALLOCTABLE_Distr_Customer,$P$10,FALSE),0)","v":0},{"$f":"ROUND(F462*VLOOKUP(D462,ALLOCTABLE_Distr_Customer,$Q$10,FALSE),0)","v":0},{"$f":"SUM(G462:Q462)","v":0},{"$f":"F462-R462","v":0}]
[19,null,{"$f":"'FR-16(7)(v)-1 Functional'!C463","v":"OTHER TRANSMISSION"},{"$f":"'FR-16(7)(v)-1 Functional'!D463","v":"K202"},null,{"$f":"'FR-16(7)(v)-10 DIST Classified'!I463","v":0},{"$f":"F463-SUM(H463:Q463)","v":0},{"$f":"ROUND(F463*VLOOKUP(D463,ALLOCTABLE_Distr_Customer,$H$10,FALSE),0)","v":0},{"$f":"ROUND(F463*VLOOKUP(D463,ALLOCTABLE_Distr_Customer,$I$10,FALSE),0)","v":0},{"$f":"ROUND(F463*VLOOKUP(D463,ALLOCTABLE_Distr_Customer,$J$10,FALSE),0)","v":0},{"$f":"ROUND(F463*VLOOKUP(D463,ALLOCTABLE_Distr_Customer,$K$10,FALSE),0)","v":0},{"$f":"ROUND(F463*VLOOKUP(D463,ALLOCTABLE_Distr_Customer,$L$10,FALSE),0)","v":0},{"$f":"ROUND(F463*VLOOKUP(D463,ALLOCTABLE_Distr_Customer,$M$10,FALSE),0)","v":0},{"$f":"ROUND(F463*VLOOKUP(D463,ALLOCTABLE_Distr_Customer,$N$10,FALSE),0)","v":0},{"$f":"ROUND(F463*VLOOKUP(D463,ALLOCTABLE_Distr_Customer,$O$10,FALSE),0)","v":0},{"$f":"ROUND(F463*VLOOKUP(D463,ALLOCTABLE_Distr_Customer,$P$10,FALSE),0)","v":0},{"$f":"ROUND(F463*VLOOKUP(D463,ALLOCTABLE_Distr_Customer,$Q$10,FALSE),0)","v":0},{"$f":"SUM(G463:Q463)","v":0},{"$f":"F463-R463","v":0}]
[20,null,{"$f":"'FR-16(7)(v)-1 Functional'!C464","v":"MISCELLANEOUS ADJUSTMENTS"},{"$f":"'FR-16(7)(v)-1 Functional'!D464","v":"K202"},null,{"$f":"'FR-16(7)(v)-10 DIST Classified'!I464","v":0},{"$f":"F464-SUM(H464:Q464)","v":0},{"$f":"ROUND(F464*VLOOKUP(D464,ALLOCTABLE_Distr_Customer,$H$10,FALSE),0)","v":0},{"$f":"ROUND(F464*VLOOKUP(D464,ALLOCTABLE_Distr_Customer,$I$10,FALSE),0)","v":0},{"$f":"ROUND(F464*VLOOKUP(D464,ALLOCTABLE_Distr_Customer,$J$10,FALSE),0)","v":0},{"$f":"ROUND(F464*VLOOKUP(D464,ALLOCTABLE_Distr_Customer,$K$10,FALSE),0)","v":0},{"$f":"ROUND(F464*VLOOKUP(D464,ALLOCTABLE_Distr_Customer,$L$10,FALSE),0)","v":0},{"$f":"ROUND(F464*VLOOKUP(D464,ALLOCTABLE_Distr_Customer,$M$10,FALSE),0)","v":0},{"$f":"ROUND(F464*VLOOKUP(D464,ALLOCTABLE_Distr_Customer,$N$10,FALSE),0)","v":0},{"$f":"ROUND(F464*VLOOKUP(D464,ALLOCTABLE_Distr_Customer,$O$10,FALSE),0)","v":0},{"$f":"ROUND(F464*VLOOKUP(D464,ALLOCTABLE_Distr_Customer,$P$10,FALSE),0)","v":0},{"$f":"ROUND(F464*VLOOKUP(D464,ALLOCTABLE_Distr_Customer,$Q$10,FALSE),0)","v":0},{"$f":"SUM(G464:Q464)","v":0},{"$f":"F464-R464","v":0}]
[21,null,{"$f":"'FR-16(7)(v)-1 Functional'!C465","v":"NETWORK SERVICE RATES ADJUSTMENT"},{"$f":"'FR-16(7)(v)-1 Functional'!D465","v":"K202"},null,{"$f":"'FR-16(7)(v)-10 DIST Classified'!I465","v":0},{"$f":"F465-SUM(H465:Q465)","v":0},{"$f":"ROUND(F465*VLOOKUP(D465,ALLOCTABLE_Distr_Customer,$H$10,FALSE),0)","v":0},{"$f":"ROUND(F465*VLOOKUP(D465,ALLOCTABLE_Distr_Customer,$I$10,FALSE),0)","v":0},{"$f":"ROUND(F465*VLOOKUP(D465,ALLOCTABLE_Distr_Customer,$J$10,FALSE),0)","v":0},{"$f":"ROUND(F465*VLOOKUP(D465,ALLOCTABLE_Distr_Customer,$K$10,FALSE),0)","v":0},{"$f":"ROUND(F465*VLOOKUP(D465,ALLOCTABLE_Distr_Customer,$L$10,FALSE),0)","v":0},{"$f":"ROUND(F465*VLOOKUP(D465,ALLOCTABLE_Distr_Customer,$M$10,FALSE),0)","v":0},{"$f":"ROUND(F465*VLOOKUP(D465,ALLOCTABLE_Distr_Customer,$N$10,FALSE),0)","v":0},{"$f":"ROUND(F465*VLOOKUP(D465,ALLOCTABLE_Distr_Customer,$O$10,FALSE),0)","v":0},{"$f":"ROUND(F465*VLOOKUP(D465,ALLOCTABLE_Distr_Customer,$P$10,FALSE),0)","v":0},{"$f":"ROUND(F465*VLOOKUP(D465,ALLOCTABLE_Distr_Customer,$Q$10,FALSE),0)","v":0},{"$f":"SUM(G465:Q465)","v":0},{"$f":"F465-R465","v":0}]
[22,null,{"$f":"'FR-16(7)(v)-1 Functional'!C466","v":"  TOTAL TRANSMISSION O & M"},null,null,{"$f":"SUM(F462:F465)","v":0},{"$f":"SUM(G462:G465)","v":0},0,0,{"$f":"SUM(J462:J465)","v":0},0,0,0,0,0,0,0,0,0]
[23]
[24,"REGIONAL MARKET O&M"]
[25,null,{"$f":"'FR-16(7)(v)-1 Functional'!C469","v":"MARKET FACILITATION - MONITORING & COMPLIANCE"},{"$f":"'FR-16(7)(v)-1 Functional'!D469","v":"K202"},null,{"$f":"'FR-16(7)(v)-10 DIST Classified'!I469","v":0},{"$f":"F469-SUM(H469:Q469)","v":0},{"$f":"ROUND(F469*VLOOKUP(D469,ALLOCTABLE_Distr_Customer,$H$10,FALSE),0)","v":0},{"$f":"ROUND(F469*VLOOKUP(D469,ALLOCTABLE_Distr_Customer,$I$10,FALSE),0)","v":0},{"$f":"ROUND(F469*VLOOKUP(D469,ALLOCTABLE_Distr_Customer,$J$10,FALSE),0)","v":0},{"$f":"ROUND(F469*VLOOKUP(D469,ALLOCTABLE_Distr_Customer,$K$10,FALSE),0)","v":0},{"$f":"ROUND(F469*VLOOKUP(D469,ALLOCTABLE_Distr_Customer,$L$10,FALSE),0)","v":0},{"$f":"ROUND(F469*VLOOKUP(D469,ALLOCTABLE_Distr_Customer,$M$10,FALSE),0)","v":0},{"$f":"ROUND(F469*VLOOKUP(D469,ALLOCTABLE_Distr_Customer,$N$10,FALSE),0)","v":0},{"$f":"ROUND(F469*VLOOKUP(D469,ALLOCTABLE_Distr_Customer,$O$10,FALSE),0)","v":0},{"$f":"ROUND(F469*VLOOKUP(D469,ALLOCTABLE_Distr_Customer,$P$10,FALSE),0)","v":0},{"$f":"ROUND(F469*VLOOKUP(D469,ALLOCTABLE_Distr_Customer,$Q$10,FALSE),0)","v":0},{"$f":"SUM(G469:Q469)","v":0},{"$f":"F469-R469","v":0}]
[26,null,"TOTAL REGIONAL MARKET O&M",null,null,{"$f":"SUM(F468:F469)","v":0},{"$f":"SUM(G468:G469)","v":0},{"$f":"SUM(H468:H469)","v":0},{"$f":"SUM(I468:I469)","v":0},{"$f":"SUM(J468:J469)","v":0},0,0,0,0,0,0,{"$f":"SUM(Q468:Q469)","v":0},{"$f":"SUM(R468:R469)","v":0},{"$f":"SUM(S468:S469)","v":0}]
[27]
[28,"DISTRIBUTION O & M"]
[29,null,{"$f":"'FR-16(7)(v)-1 Functional'!C473","v":"SUBSTATIONS"},{"$f":"'FR-16(7)(v)-1 Functional'!D473","v":"K201"},null,{"$f":"'FR-16(7)(v)-10 DIST Classified'!I473","v":0},{"$f":"F473-SUM(H473:Q473)","v":0},{"$f":"ROUND(F473*VLOOKUP(D473,ALLOCTABLE_Distr_Customer,$H$10,FALSE),0)","v":0},{"$f":"ROUND(F473*VLOOKUP(D473,ALLOCTABLE_Distr_Customer,$I$10,FALSE),0)","v":0},{"$f":"ROUND(F473*VLOOKUP(D473,ALLOCTABLE_Distr_Customer,$J$10,FALSE),0)","v":0},{"$f":"ROUND(F473*VLOOKUP(D473,ALLOCTABLE_Distr_Customer,$K$10,FALSE),0)","v":0},{"$f":"ROUND(F473*VLOOKUP(D473,ALLOCTABLE_Distr_Customer,$L$10,FALSE),0)","v":0},{"$f":"ROUND(F473*VLOOKUP(D473,ALLOCTABLE_Distr_Customer,$M$10,FALSE),0)","v":0},{"$f":"ROUND(F473*VLOOKUP(D473,ALLOCTABLE_Distr_Customer,$N$10,FALSE),0)","v":0},{"$f":"ROUND(F473*VLOOKUP(D473,ALLOCTABLE_Distr_Customer,$O$10,FALSE),0)","v":0},{"$f":"ROUND(F473*VLOOKUP(D473,ALLOCTABLE_Distr_Customer,$P$10,FALSE),0)","v":0},{"$f":"ROUND(F473*VLOOKUP(D473,ALLOCTABLE_Distr_Customer,$Q$10,FALSE),0)","v":0},{"$f":"SUM(G473:Q473)","v":0},{"$f":"F473-R473","v":0}]
[30,null,{"$f":"'FR-16(7)(v)-1 Functional'!C474","v":"POLES, TOWERS & FIXTURES"},{"$f":"'FR-16(7)(v)-1 Functional'!D474","v":"PL49"},null,{"$f":"'FR-16(7)(v)-10 DIST Classified'!I474","v":0},0,0,0,0,0,0,0,0,0,0,0,0,0]
[31,null,{"$f":"'FR-16(7)(v)-1 Functional'!C475","v":"OVERHEAD LINES - PRIMARY / DEMAND"},{"$f":"'FR-16(7)(v)-1 Functional'!D475","v":"K205"},null,{"$f":"'FR-16(7)(v)-10 DIST Classified'!I475","v":0},0,0,0,0,0,0,0,0,0,0,0,0,0]
[32,null,{"$f":"'FR-16(7)(v)-1 Functional'!C476","v":"OVERHEAD LINES - PRIMARY / CUSTOMER"},"K406",null,{"$f":"'FR-16(7)(v)-10 DIST Classified'!I476","v":1129296},1018682,102879,1366,813,113,1265,294,79,0,3715,90,1129296,0]
[33,null,{"$f":"'FR-16(7)(v)-1 Functional'!C477","v":"OVERHEAD LINES - SECONDARY / DEMAND"},{"$f":"'FR-16(7)(v)-1 Functional'!D477","v":"K206"},null,{"$f":"'FR-16(7)(v)-10 DIST Classified'!I477","v":0},0,0,0,0,0,0,0,0,0,0,0,0,0]
[34,null,{"$f":"'FR-16(7)(v)-1 Functional'!C478","v":"OVERHEAD LINES - SECONDARY / CUSTOMER"},"K406",null,{"$f":"'FR-16(7)(v)-10 DIST Classified'!I478","v":467790},421969,42616,566,337,47,524,122,33,0,1539,37,467790,0]
[35,null,{"$f":"'FR-16(7)(v)-1 Functional'!C479","v":"UNDERGROUND LINES - PRIMARY / DEMAND"},{"$f":"'FR-16(7)(v)-1 Functional'!D479","v":"K205"},null,{"$f":"'FR-16(7)(v)-10 DIST Classified'!I479","v":0},0,0,0,0,0,0,0,0,0,0,0,0,0]
[36,null,{"$f":"'FR-16(7)(v)-1 Functional'!C480","v":"UNDERGROUND LINES - PRIMARY / CUSTOMER"},"K406",null,{"$f":"'FR-16(7)(v)-10 DIST Classified'!I480","v":209317},188814,19069,253,151,21,234,54,15,0,689,17,209317,0]
[37,null,{"$f":"'FR-16(7)(v)-1 Functional'!C481","v":"UNDERGROUND LINES - SECONDARY / DEMAND"},{"$f":"'FR-16(7)(v)-1 Functional'!D481","v":"K206"},null,{"$f":"'FR-16(7)(v)-10 DIST Classified'!I481","v":0},0,0,0,0,0,0,0,0,0,0,0,0,0]
[38,null,{"$f":"'FR-16(7)(v)-1 Functional'!C482","v":"UNDERGROUND LINES - SECONDARY / CUSTOMER"},"K406",null,{"$f":"'FR-16(7)(v)-10 DIST Classified'!I482","v":65456},59045,5963,79,47,7,73,17,5,0,215,5,65456,0]
[39,null,{"$f":"'FR-16(7)(v)-1 Functional'!C483","v":"TRANSFORMERS DEMAND RELATED"},{"$f":"'FR-16(7)(v)-1 Functional'!D483","v":"K203"},null,{"$f":"'FR-16(7)(v)-10 DIST Classified'!I483","v":0},0,0,0,0,0,0,0,0,0,0,0,0,0]
[40,null,{"$f":"'FR-16(7)(v)-1 Functional'!C484","v":"TRANSFORMERS CUSTOMER RELATED"},{"$f":"'FR-16(7)(v)-1 Functional'!D484","v":"K401"},null,{"$f":"'FR-16(7)(v)-10 DIST Classified'!I484","v":88189},0,0,0,0,0,0,0,0,0,88189,0,88189,0]
[41,null,{"$f":"'FR-16(7)(v)-1 Functional'!C485","v":"OTHER MAINTENANCE"},{"$f":"'FR-16(7)(v)-1 Functional'!D485","v":"K203"},null,{"$f":"'FR-16(7)(v)-10 DIST Classified'!I485","v":0},0,0,0,0,0,0,0,0,0,0,0,0,0]
[42,null,{"$f":"'FR-16(7)(v)-1 Functional'!C486","v":"LOAD DISPATCH"},{"$f":"'FR-16(7)(v)-1 Functional'!D486","v":"K215"},null,{"$f":"'FR-16(7)(v)-10 DIST Classified'!I486","v":0},0,0,0,0,0,0,0,0,0,0,0,0,0]
[43,null,{"$f":"'FR-16(7)(v)-1 Functional'!C487","v":"METERS"},{"$f":"'FR-16(7)(v)-1 Functional'!D487","v":"K407"},null,{"$f":"'FR-16(7)(v)-10 DIST Classified'!I487","v":1075849},869641,196805,0,1506,237,7004,0,258,247,0,151,1075849,0]
[44,null,{"$f":"'FR-16(7)(v)-1 Functional'!C488","v":"STREET LIGHTING AND SIGNAL SYSTEMS"},{"$f":"'FR-16(7)(v)-1 Functional'!D488","v":"K401"},null,{"$f":"'FR-16(7)(v)-10 DIST Classified'!I488","v":430143},0,0,0,0,0,0,0,0,0,430143,0,430143,0]
[45,null,{"$f":"'FR-16(7)(v)-1 Functional'!C489","v":"OTHER OPERATIONS"},{"$f":"'FR-16(7)(v)-1 Functional'!D489","v":"K203"},null,{"$f":"'FR-16(7)(v)-10 DIST Classified'!I489","v":0},0,0,0,0,0,0,0,0,0,0,0,0,0]
[46,null,{"$f":"'FR-16(7)(v)-1 Functional'!C490","v":"MISCELLANEOUS EXPENSES ADJUSTMENT"},{"$f":"'FR-16(7)(v)-1 Functional'!D490","v":"K203"},null,{"$f":"'FR-16(7)(v)-10 DIST Classified'!I490","v":0},0,0,0,0,0,0,0,0,0,0,0,0,0]
[47,null,{"$f":"'FR-16(7)(v)-1 Functional'!C491","v":"AFFILIATED COMPANY RENTS ADJUSTMENT"},{"$f":"'FR-16(7)(v)-1 Functional'!D491","v":"D249"},null,{"$f":"'FR-16(7)(v)-10 DIST Classified'!I491","v":0},0,0,0,0,0,0,0,0,0,0,0,0,0]
[48,null,{"$f":"'FR-16(7)(v)-1 Functional'!C492","v":"  TOTAL DISTRIBUTION O & M"},null," ",{"$f":"SUM(F472:F491)","v":3466040},{"$f":"SUM(G472:G491)","v":2558151},{"$f":"SUM(H472:H491)","v":367332},{"$f":"SUM(I472:I491)","v":2264},{"$f":"SUM(J472:J491)","v":2854},425,9100,487,390,247,524490,{"$f":"SUM(Q472:Q491)","v":300},{"$f":"SUM(R472:R491)","v":3466040},{"$f":"SUM(S472:S491)","v":0}]
[49,null," "]
[50,"CUSTOMER ACCOUNTING",null,null,null," "]
[51,null,{"$f":"'FR-16(7)(v)-1 Functional'!C495","v":"CUSTOMER ACCOUNTING EXPENSE"},{"$f":"'FR-16(7)(v)-1 Functional'!D495","v":"K409"},null,{"$f":"'FR-16(7)(v)-10 DIST Classified'!I495","v":3880551},{"$f":"F495-SUM(H495:Q495)","v":3185118},{"$f":"ROUND(F495*VLOOKUP(D495,ALLOCTABLE_Distr_Customer,$H$10,FALSE),0)","v":643318},{"$f":"ROUND(F495*VLOOKUP(D495,ALLOCTABLE_Distr_Customer,$I$10,FALSE),0)","v":4269},{"$f":"ROUND(F495*VLOOKUP(D495,ALLOCTABLE_Distr_Customer,$J$10,FALSE),0)","v":5122},{"$f":"ROUND(F495*VLOOKUP(D495,ALLOCTABLE_Distr_Customer,$K$10,FALSE),0)","v":698},{"$f":"ROUND(F495*VLOOKUP(D495,ALLOCTABLE_Distr_Customer,$L$10,FALSE),0)","v":27009},{"$f":"ROUND(F495*VLOOKUP(D495,ALLOCTABLE_Distr_Customer,$M$10,FALSE),0)","v":931},{"$f":"ROUND(F495*VLOOKUP(D495,ALLOCTABLE_Distr_Customer,$N$10,FALSE),0)","v":1009},{"$f":"ROUND(F495*VLOOKUP(D495,ALLOCTABLE_Distr_Customer,$O$10,FALSE),0)","v":931},{"$f":"ROUND(F495*VLOOKUP(D495,ALLOCTABLE_Distr_Customer,$P$10,FALSE),0)","v":11603},{"$f":"ROUND(F495*VLOOKUP(D495,ALLOCTABLE_Distr_Customer,$Q$10,FALSE),0)","v":543},{"$f":"SUM(G495:Q495)","v":3880551},{"$f":"F495-R495","v":0}]
[52,null,{"$f":"'FR-16(7)(v)-1 Functional'!C496","v":"UNCOLLECTIBLE EXP"},{"$f":"'FR-16(7)(v)-1 Functional'!D496","v":"K411"},null,{"$f":"'FR-16(7)(v)-10 DIST Classified'!I496","v":1544466},1407242,66736,432,448,15,34658,22132,1004,10394,1390,15,1544466,0]
[53,null,{"$f":"'FR-16(7)(v)-1 Functional'!C497","v":"METER READING"},{"$f":"'FR-16(7)(v)-1 Functional'!D497","v":"K407"},null,{"$f":"'FR-16(7)(v)-10 DIST Classified'!I497","v":0},0,0,0,0,0,0,0,0,0,0,0,0,0]
[54,null,{"$f":"'FR-16(7)(v)-1 Functional'!C498","v":"UNCOLLECTIBLE EXP ADJUSTMENT"},{"$f":"'FR-16(7)(v)-1 Functional'!D498","v":"K411"},null,{"$f":"'FR-16(7)(v)-10 DIST Classified'!I498","v":-2184769},-1990652,-94404,-612,-634,-22,-49026,-31308,-1420,-14703,-1966,-22,-2184769,0]
[55,null,{"$f":"'FR-16(7)(v)-1 Functional'!C499","v":"CREDIT CARD FEES"},{"$f":"'FR-16(7)(v)-1 Functional'!D499","v":"K407"},null,{"$f":"'FR-16(7)(v)-10 DIST Classified'!I499","v":492868},398401,90160,0,690,108,3209,0,118,113,0,69,492868,0]
[56,null,{"$f":"'FR-16(7)(v)-1 Functional'!C500","v":"ELIMINATE REV & EXP - DSM RIDER"},{"$f":"'FR-16(7)(v)-1 Functional'!D500","v":"K405"},null,{"$f":"'FR-16(7)(v)-10 DIST Classified'!I500","v":0},0,0,0,0,0,0,0,0,0,0,0,0,0]
[57,null,{"$f":"'FR-16(7)(v)-1 Functional'!C501","v":"SALE OF A/R"},{"$f":"'FR-16(7)(v)-1 Functional'!D501","v":"K411"},null,{"$f":"'FR-16(7)(v)-10 DIST Classified'!I501","v":430115},391899,18585,120,125,4,9652,6164,280,2895,387,4,430115,0]
[58,null,{"$f":"'FR-16(7)(v)-1 Functional'!C502","v":"ELIMINATE MISC EXPENSE"},{"$f":"'FR-16(7)(v)-1 Functional'!D502","v":"K405"},null,{"$f":"'FR-16(7)(v)-10 DIST Classified'!I502","v":-1190},-1075,-108,-1,-1,0,-1,0,0,0,-4,0,-1190,0]
[59,null,{"$f":"'FR-16(7)(v)-1 Functional'!C503","v":"  TOTAL CUSTOMER ACCT EXPENSE"},null," ",{"$f":"SUM(F494:F502)","v":4162041},{"$f":"SUM(G494:G502)","v":3390933},{"$f":"SUM(H494:H502)","v":724287},{"$f":"SUM(I494:I502)","v":4208},{"$f":"SUM(J494:J502)","v":5750},803,25501,-2081,991,-370,11410,{"$f":"SUM(Q494:Q502)","v":609},{"$f":"SUM(R494:R502)","v":4162041},{"$f":"SUM(S494:S502)","v":0}]
[]
[{"$f":"co_name","v":"DUKE ENERGY KENTUCKY, INC."},null,null,null,null,null,null,null,null,null,null,null,null,null,null,null,null,{"$f":"R1","v":"FR-16(7)(v)-13"}]
[{"$f":"$A$2","v":"DISTRIBUTION CUSTOMER ALLOCATED - ELECTRIC COST OF SERVICE"},null,null,null,null,null,null,null,null,null,null,null,null,null,null,null,null,{"$f":"R2","v":"WITNESS RESPONSIBLE:"}]
[{"$f":"case_name","v":"CASE NO: 2019-00271"},null,null,null,null,null,null,null,null,null,null,null,null,null,null,null,null,{"$f":"Witness","v":"JAMES E. ZIOLKOWSKI"}]
[{"$f":"data_filing","v":"DATA: 12 MONTHS ACTUAL  & 0 MONTHS ESTIMATED"},null,null,null,null,null,null,null,null,null,null,null,null,null,null,null,null,{"$f":"\"PAGE \"&Pages-9&\" OF \"&Pages","v":"PAGE 9 OF 18"}]
[{"$f":"type","v":"TYPE OF FILING: \"X\" ORIGINAL   UPDATED    REVISED  "}]
[]
[null,null,null,null,null,{"$f":"F$7","v":"TOTAL"},null,{"$f":"H$7","v":"DS"},{"$f":"I$7","v":"GSFL"},{"$f":"J$7","v":"EH"},{"$f":"K$7","v":"SP"},"DT SEC","DT PRI","DP","TT",null,"OTHER"]
["LINE",null,null,null,null,{"$f":"F$8","v":"DISTRIBUTION"},{"$f":"G$8","v":"RS"},{"$f":"H$8","v":"SECONDARY"},{"$f":"I$8","v":"SECONDARY"},{"$f":"J$8","v":"SECONDARY"},{"$f":"K$8","v":"SECONDARY"},"SECONDARY","PRIMARY","PRIMARY","TRANSMISSION","LT","WATER",{"$f":"R8","v":"TOTAL"},"ALL"]
["NO.","O&M EXPENSES",null,"ALLO",null,{"$f":"F$9","v":"CUSTOMER"},{"$f":"G$9","v":"RESIDENTIAL"},{"$f":"H$9","v":"DISTRIBUTION"},{"$f":"I$9","v":"DISTRIBUTION"},{"$f":"J$9","v":"DISTRIBUTION"},{"$f":"K$9","v":"DISTRIBUTION"},"DISTRIBUTION","DISTRIBUTION","DISTRIBUTION","TIME OF DAY","LIGHTING","PUMPING",{"$f":"R9","v":"AT ISSUE"},"OTHER"]
[null,null,"Schedule 6.1",null,null,null,{"$f":"G$10","v":3},{"$f":"H$10","v":4},{"$f":"I$10","v":5},{"$f":"J$10","v":6},{"$f":"K$10","v":7},8,9,10,11,12,13,null," "]
[1,"CUSTOMER SERVICE & INFORMATION"]
[2,null,{"$f":"'FR-16(7)(v)-1 Functional'!C516","v":"TOTAL CUST SERVICE & INFO"},{"$f":"'FR-16(7)(v)-1 Functional'!D516","v":"K405"},null,{"$f":"'FR-16(7)(v)-10 DIST Classified'!I516","v":604867},{"$f":"F516-SUM(H516:Q516)","v":545555},{"$f":"ROUND(F516*VLOOKUP(D516,ALLOCTABLE_Distr_Customer,$H$10,FALSE),0)","v":55103},{"$f":"ROUND(F516*VLOOKUP(D516,ALLOCTABLE_Distr_Customer,$I$10,FALSE),0)","v":732},{"$f":"ROUND(F516*VLOOKUP(D516,ALLOCTABLE_Distr_Customer,$J$10,FALSE),0)","v":436},{"$f":"ROUND(F516*VLOOKUP(D516,ALLOCTABLE_Distr_Customer,$K$10,FALSE),0)","v":60},{"$f":"ROUND(F516*VLOOKUP(D516,ALLOCTABLE_Distr_Customer,$L$10,FALSE),0)","v":677},{"$f":"ROUND(F516*VLOOKUP(D516,ALLOCTABLE_Distr_Customer,$M$10,FALSE),0)","v":157},{"$f":"ROUND(F516*VLOOKUP(D516,ALLOCTABLE_Distr_Customer,$N$10,FALSE),0)","v":42},{"$f":"ROUND(F516*VLOOKUP(D516,ALLOCTABLE_Distr_Customer,$O$10,FALSE),0)","v":67},{"$f":"ROUND(F516*VLOOKUP(D516,ALLOCTABLE_Distr_Customer,$P$10,FALSE),0)","v":1990},{"$f":"ROUND(F516*VLOOKUP(D516,ALLOCTABLE_Distr_Customer,$Q$10,FALSE),0)","v":48},{"$f":"SUM(G516:Q516)","v":604867},{"$f":"F516-R516","v":0}]
[3,null,{"$f":"'FR-16(7)(v)-1 Functional'!C517","v":"INFORMATIONAL & INSTRUCTIONAL ADV"},{"$f":"'FR-16(7)(v)-1 Functional'!D517","v":"K405"},null,{"$f":"'FR-16(7)(v)-10 DIST Classified'!I517","v":0},{"$f":"F517-SUM(H517:Q517)","v":0},{"$f":"ROUND(F517*VLOOKUP(D517,ALLOCTABLE_Distr_Customer,$H$10,FALSE),0)","v":0},{"$f":"ROUND(F517*VLOOKUP(D517,ALLOCTABLE_Distr_Customer,$I$10,FALSE),0)","v":0},{"$f":"ROUND(F517*VLOOKUP(D517,ALLOCTABLE_Distr_Customer,$J$10,FALSE),0)","v":0},{"$f":"ROUND(F517*VLOOKUP(D517,ALLOCTABLE_Distr_Customer,$K$10,FALSE),0)","v":0},{"$f":"ROUND(F517*VLOOKUP(D517,ALLOCTABLE_Distr_Customer,$L$10,FALSE),0)","v":0},{"$f":"ROUND(F517*VLOOKUP(D517,ALLOCTABLE_Distr_Customer,$M$10,FALSE),0)","v":0},{"$f":"ROUND(F517*VLOOKUP(D517,ALLOCTABLE_Distr_Customer,$N$10,FALSE),0)","v":0},{"$f":"ROUND(F517*VLOOKUP(D517,ALLOCTABLE_Distr_Customer,$O$10,FALSE),0)","v":0},{"$f":"ROUND(F517*VLOOKUP(D517,ALLOCTABLE_Distr_Customer,$P$10,FALSE),0)","v":0},{"$f":"ROUND(F517*VLOOKUP(D517,ALLOCTABLE_Distr_Customer,$Q$10,FALSE),0)","v":0},{"$f":"SUM(G517:Q517)","v":0}]
[4,null,{"$f":"'FR-16(7)(v)-1 Functional'!C518","v":"TOTAL CUSTOMER SERV. & INFO."},null," ",{"$f":"SUM(F516:F517)","v":604867},{"$f":"SUM(G516:G517)","v":545555},55103,732,{"$f":"SUM(J516:J517)","v":436},60,677,157,42,67,1990,48,604867,0]
[5]
[6,"SALES"]
[7,null,{"$f":"'FR-16(7)(v)-1 Functional'!C521","v":"SALES EXPENSE"},{"$f":"'FR-16(7)(v)-1 Functional'!D521","v":"K405"}," ",{"$f":"'FR-16(7)(v)-10 DIST Classified'!I521","v":1497140},{"$f":"F521-SUM(H521:Q521)","v":1350329},{"$f":"ROUND(F521*VLOOKUP(D521,ALLOCTABLE_Distr_Customer,$H$10,FALSE),0)","v":136389},{"$f":"ROUND(F521*VLOOKUP(D521,ALLOCTABLE_Distr_Customer,$I$10,FALSE),0)","v":1812},{"$f":"ROUND(F521*VLOOKUP(D521,ALLOCTABLE_Distr_Customer,$J$10,FALSE),0)","v":1078},{"$f":"ROUND(F521*VLOOKUP(D521,ALLOCTABLE_Distr_Customer,$K$10,FALSE),0)","v":150},{"$f":"ROUND(F521*VLOOKUP(D521,ALLOCTABLE_Distr_Customer,$L$10,FALSE),0)","v":1677},{"$f":"ROUND(F521*VLOOKUP(D521,ALLOCTABLE_Distr_Customer,$M$10,FALSE),0)","v":389},{"$f":"ROUND(F521*VLOOKUP(D521,ALLOCTABLE_Distr_Customer,$N$10,FALSE),0)","v":105},{"$f":"ROUND(F521*VLOOKUP(D521,ALLOCTABLE_Distr_Customer,$O$10,FALSE),0)","v":165},{"$f":"ROUND(F521*VLOOKUP(D521,ALLOCTABLE_Distr_Customer,$P$10,FALSE),0)","v":4926},{"$f":"ROUND(F521*VLOOKUP(D521,ALLOCTABLE_Distr_Customer,$Q$10,FALSE),0)","v":120},{"$f":"SUM(G521:Q521)","v":1497140},{"$f":"F521-R521","v":0}]
[8,null,{"$f":"'FR-16(7)(v)-1 Functional'!C522","v":"TOTAL SALES EXPENSE"},null," ",{"$f":"SUM(F520:F521)","v":1497140},{"$f":"SUM(G520:G521)","v":1350329},{"$f":"SUM(H520:H521)","v":136389},{"$f":"SUM(I520:I521)","v":1812},{"$f":"SUM(J520:J521)","v":1078},150,1677,389,105,165,4926,{"$f":"SUM(Q520:Q521)","v":120},{"$f":"SUM(R520:R521)","v":1497140},{"$f":"SUM(S520:S521)","v":0}]
[9]
[10,"ADMINISTRATIVE & GENERAL "]
[11,null,{"$f":"'FR-16(7)(v)-1 Functional'!C525","v":"PRODUCTION - DEMAND RELATED"},{"$f":"'FR-16(7)(v)-1 Functional'!D525","v":"P349"},null,{"$f":"'FR-16(7)(v)-10 DIST Classified'!I525","v":0},{"$f":"F525-SUM(H525:Q525)","v":0},{"$f":"ROUND(F525*VLOOKUP(D525,ALLOCTABLE_Distr_Customer,$H$10,FALSE),0)","v":0},{"$f":"ROUND(F525*VLOOKUP(D525,ALLOCTABLE_Distr_Customer,$I$10,FALSE),0)","v":0},{"$f":"ROUND(F525*VLOOKUP(D525,ALLOCTABLE_Distr_Customer,$J$10,FALSE),0)","v":0},{"$f":"ROUND(F525*VLOOKUP(D525,ALLOCTABLE_Distr_Customer,$K$10,FALSE),0)","v":0},{"$f":"ROUND(F525*VLOOKUP(D525,ALLOCTABLE_Distr_Customer,$L$10,FALSE),0)","v":0},{"$f":"ROUND(F525*VLOOKUP(D525,ALLOCTABLE_Distr_Customer,$M$10,FALSE),0)","v":0},{"$f":"ROUND(F525*VLOOKUP(D525,ALLOCTABLE_Distr_Customer,$N$10,FALSE),0)","v":0},{"$f":"ROUND(F525*VLOOKUP(D525,ALLOCTABLE_Distr_Customer,$O$10,FALSE),0)","v":0},{"$f":"ROUND(F525*VLOOKUP(D525,ALLOCTABLE_Distr_Customer,$P$10,FALSE),0)","v":0},{"$f":"ROUND(F525*VLOOKUP(D525,ALLOCTABLE_Distr_Customer,$Q$10,FALSE),0)","v":0},{"$f":"SUM(G525:Q525)","v":0},{"$f":"F525-R525","v":0}]
[12,null,{"$f":"'FR-16(7)(v)-1 Functional'!C526","v":"PRODUCTION - ENERGY RELATED"},{"$f":"'FR-16(7)(v)-1 Functional'!D526","v":"E349"},null,{"$f":"'FR-16(7)(v)-10 DIST Classified'!I526","v":0},0,0,0,0,0,0,0,0,0,0,0,0,0]
[13,null,"TRANSMISSION",{"$f":"'FR-16(7)(v)-1 Functional'!D527","v":"T349"},null,{"$f":"'FR-16(7)(v)-10 DIST Classified'!I527","v":0},0,0,0,0,0,0,0,0,0,0,0,{"$f":"SUM(G527:Q527)","v":0},{"$f":"F527-R527","v":0}]
[14,null,{"$f":"'FR-16(7)(v)-1 Functional'!C528","v":"DISTRIBUTION"},{"$f":"'FR-16(7)(v)-1 Functional'!D528","v":"D349"},null,{"$f":"'FR-16(7)(v)-10 DIST Classified'!I528","v":1167252},861514,123705,759,957,140,3070,163,128,82,176629,105,1167252,0]
[15,null,{"$f":"'FR-16(7)(v)-1 Functional'!C529","v":"CUSTOMER ACCOUNTING"},{"$f":"'FR-16(7)(v)-1 Functional'!D529","v":"C319"},null,{"$f":"'FR-16(7)(v)-10 DIST Classified'!I529","v":3678745},2997182,640175,3716,5077,699,22551,-1839,883,-331,10080,552,3678745,0]
[16,null,{"$f":"'FR-16(7)(v)-1 Functional'!C530","v":"CUSTOMER SERVICE & INFORMATION"},{"$f":"'FR-16(7)(v)-1 Functional'!D530","v":"C331"},null,{"$f":"'FR-16(7)(v)-10 DIST Classified'!I530","v":240582},216991,21917,291,173,24,269,63,17,26,792,19,240582,0]
[17,null,{"$f":"'FR-16(7)(v)-1 Functional'!C531","v":"SALES"},{"$f":"'FR-16(7)(v)-1 Functional'!D531","v":"S319"},null,{"$f":"'FR-16(7)(v)-10 DIST Classified'!I531","v":0},0,0,0,0,0,0,0,0,0,0,0,0,0]
[18,null,{"$f":"'FR-16(7)(v)-1 Functional'!C532","v":"TOT ADMIN & GEN LESS REG EXP"}," ",null,{"$f":"SUM(F525:F531)","v":5086579},{"$f":"SUM(G525:G531)","v":4075687},{"$f":"SUM(H525:H531)","v":785797},{"$f":"SUM(I525:I531)","v":4766},{"$f":"SUM(J525:J531)","v":6207},863,25890,-1613,1028,-223,187501,{"$f":"SUM(Q525:Q531)","v":676},{"$f":"SUM(R525:R531)","v":5086579},{"$f":"SUM(S525:S531)","v":0}]
[19,null,{"$f":"'FR-16(7)(v)-1 Functional'!C533","v":"RATE CASE EXPENSE ADJUSTMENT"},{"$f":"'FR-16(7)(v)-1 Functional'!D533","v":"A315"},null,{"$f":"'FR-16(7)(v)-10 DIST Classified'!I533","v":21830},{"$f":"F533-SUM(H533:Q533)","v":17491},{"$f":"ROUND(F533*VLOOKUP(D533,ALLOCTABLE_Distr_Customer,$H$10,FALSE),0)","v":3372},{"$f":"ROUND(F533*VLOOKUP(D533,ALLOCTABLE_Distr_Customer,$I$10,FALSE),0)","v":21},{"$f":"ROUND(F533*VLOOKUP(D533,ALLOCTABLE_Distr_Customer,$J$10,FALSE),0)","v":27},{"$f":"ROUND(F533*VLOOKUP(D533,ALLOCTABLE_Distr_Customer,$K$10,FALSE),0)","v":4},{"$f":"ROUND(F533*VLOOKUP(D533,ALLOCTABLE_Distr_Customer,$L$10,FALSE),0)","v":111},{"$f":"ROUND(F533*VLOOKUP(D533,ALLOCTABLE_Distr_Customer,$M$10,FALSE),0)","v":-7},{"$f":"ROUND(F533*VLOOKUP(D533,ALLOCTABLE_Distr_Customer,$N$10,FALSE),0)","v":4},{"$f":"ROUND(F533*VLOOKUP(D533,ALLOCTABLE_Distr_Customer,$O$10,FALSE),0)","v":-1},{"$f":"ROUND(F533*VLOOKUP(D533,ALLOCTABLE_Distr_Customer,$P$10,FALSE),0)","v":805},{"$f":"ROUND(F533*VLOOKUP(D533,ALLOCTABLE_Distr_Customer,$Q$10,FALSE),0)","v":3},{"$f":"SUM(G533:Q533)","v":21830},{"$f":"F533-R533","v":0}]
[20,null,{"$f":"'FR-16(7)(v)-1 Functional'!C534","v":"ELIMINATE MISCELLANEOUS EXPENSES ADJUSTMENT"},{"$f":"'FR-16(7)(v)-1 Functional'!D534","v":"A315"},null,{"$f":"'FR-16(7)(v)-10 DIST Classified'!I534","v":0},0,0,0,0,0,0,0,0,0,0,0,0,0]
[21,null,{"$f":"'FR-16(7)(v)-1 Functional'!C535","v":"RIDER ESM ELIMINATION"},{"$f":"'FR-16(7)(v)-1 Functional'!D535","v":"A315"},null,{"$f":"'FR-16(7)(v)-10 DIST Classified'!I535","v":-1500505},-1202309,-231798,-1410,-1831,-255,-7638,480,-300,60,-55309,-195,-1500505,0]
[22,null,{"$f":"'FR-16(7)(v)-1 Functional'!C536","v":"ELIMINATE DSM"},{"$f":"'FR-16(7)(v)-1 Functional'!D536","v":"A315"},null,{"$f":"'FR-16(7)(v)-10 DIST Classified'!I536","v":-21016},-16838,-3247,-20,-26,-4,-107,7,-4,1,-775,-3,-21016,0]
[23,null,{"$f":"'FR-16(7)(v)-1 Functional'!C537","v":"DSM DEFERRAL - ELECTRIC"},{"$f":"'FR-16(7)(v)-1 Functional'!D537","v":"A315"},null,{"$f":"'FR-16(7)(v)-10 DIST Classified'!I537","v":0},0,0,0,0,0,0,0,0,0,0,0,0,0]
[24,null,{"$f":"'FR-16(7)(v)-1 Functional'!C538","v":"PENSION ADJUSTMENT"},{"$f":"'FR-16(7)(v)-1 Functional'!D538","v":"A315"},null,{"$f":"'FR-16(7)(v)-10 DIST Classified'!I538","v":-91551},-73356,-14143,-86,-112,-16,-466,29,-18,4,-3375,-12,-91551,0]
[25,null,{"$f":"'FR-16(7)(v)-1 Functional'!C539","v":"ELIMINATE MISC EXPENSES"},{"$f":"'FR-16(7)(v)-1 Functional'!D539","v":"A315"},null,{"$f":"'FR-16(7)(v)-10 DIST Classified'!I539","v":-88310},-70761,-13642,-83,-108,-15,-449,28,-18,4,-3255,-11,-88310,0]
[26,null,{"$f":"'FR-16(7)(v)-1 Functional'!C540","v":"ELIMINATE MERGER COSTS AND CREDITS"},{"$f":"'FR-16(7)(v)-1 Functional'!D540","v":"A315"},null,{"$f":"'FR-16(7)(v)-10 DIST Classified'!I540","v":0},0,0,0,0,0,0,0,0,0,0,0,{"$f":"SUM(G540:Q540)","v":0},{"$f":"F540-R540","v":0}]
[27,null,{"$f":"'FR-16(7)(v)-1 Functional'!C541","v":"ANNUALIZE KYPSC MAINT TAX"},{"$f":"'FR-16(7)(v)-1 Functional'!D541","v":"A315"},null,{"$f":"'FR-16(7)(v)-10 DIST Classified'!I541","v":0},0,0,0,0,0,0,0,0,0,0,0,0,0]
[28,null,{"$f":"'FR-16(7)(v)-1 Functional'!C542","v":"REMOVE INCENTIVE COMP"},{"$f":"'FR-16(7)(v)-1 Functional'!D542","v":"A315"},null,{"$f":"'FR-16(7)(v)-10 DIST Classified'!I542","v":-254941},-204277,-39383,-240,-311,-43,-1298,82,-51,10,-9397,-33,-254941,0]
[29,null,{"$f":"'FR-16(7)(v)-1 Functional'!C543","v":"CREDIT CARD FEES"},{"$f":"'FR-16(7)(v)-1 Functional'!D543","v":"A315"},null,{"$f":"'FR-16(7)(v)-10 DIST Classified'!I543","v":0},0,0,0,0,0,0,0,0,0,0,0,0,0]
[30,null,{"$f":"'FR-16(7)(v)-1 Functional'!C544","v":"ELIMINATE INCENTIVE COMPENSATION ADJUSTMENT"},{"$f":"'FR-16(7)(v)-1 Functional'!D544","v":"A315"},null,{"$f":"'FR-16(7)(v)-10 DIST Classified'!I544","v":0},0,0,0,0,0,0,0,0,0,0,0,0,0]
[31,null,{"$f":"'FR-16(7)(v)-1 Functional'!C545","v":"AMORTIZATION OF DEFERRAL ASSET"},{"$f":"'FR-16(7)(v)-1 Functional'!D545","v":"A315"},null,{"$f":"'FR-16(7)(v)-10 DIST Classified'!I545","v":0},0,0,0,0,0,0,0,0,0,0,0,0,0]
[32,null,{"$f":"'FR-16(7)(v)-1 Functional'!C546","v":"AMORTIZATION OF DEFERRED EXPENSES"},{"$f":"'FR-16(7)(v)-1 Functional'!D546","v":"A315"},null,{"$f":"'FR-16(7)(v)-10 DIST Classified'!I546","v":16042},12854,2478,15,20,3,82,-5,3,-1,591,2,16042,0]
[33,null,{"$f":"'FR-16(7)(v)-1 Functional'!C547","v":"TOTAL ADMIN. & GENERAL"},null," ",{"$f":"SUM(F532:F546)","v":3168128},{"$f":"SUM(G532:G546)","v":2538491},{"$f":"SUM(H532:H546)","v":489434},{"$f":"SUM(I532:I546)","v":2963},{"$f":"SUM(J532:J546)","v":3866},537,16125,-999,644,-146,116786,{"$f":"SUM(Q532:Q546)","v":427},{"$f":"SUM(R532:R546)","v":3168128},{"$f":"SUM(S532:S546)","v":0}]
[34]
[35,null,{"$f":"'FR-16(7)(v)-1 Functional'!C549","v":"TOTAL O & M EXPENSE"},null,null,{"$f":"F547+F522+F518+F503+F492+F470+F466+F459","v":12898216},{"$f":"G547+G522+G518+G503+G492+G470+G466+G459","v":10383459},{"$f":"H547+H522+H518+H503+H492+H470+H466+H459","v":1772545},{"$f":"I547+I522+I518+I503+I492+I470+I466+I459","v":11979},{"$f":"J547+J522+J518+J503+J492+J470+J466+J459","v":13984},1975,53080,-2047,2172,-37,659602,{"$f":"Q547+Q522+Q518+Q503+Q492+Q470+Q466+Q459","v":1504},{"$f":"R547+R522+R518+R503+R492+R470+R466+R459","v":12898216},{"$f":"S547+S522+S518+S503+S492+S466+S459","v":0}]
[]
[{"$f":"co_name","v":"DUKE ENERGY KENTUCKY, INC."},null,null,null,null,null,null,null,null,null,null,null,null,null,null,null,null,{"$f":"R1","v":"FR-16(7)(v)-13"}]
[{"$f":"$A$2","v":"DISTRIBUTION CUSTOMER ALLOCATED - ELECTRIC COST OF SERVICE"},null,null,null,null,null,null,null,null,null,null,null,null,null,null,null,null,{"$f":"R2","v":"WITNESS RESPONSIBLE:"}]
[{"$f":"case_name","v":"CASE NO: 2019-00271"},null,null,null,null,null,null,null,null,null,null,null,null,null,null,null,null,{"$f":"Witness","v":"JAMES E. ZIOLKOWSKI"}]
[{"$f":"data_filing","v":"DATA: 12 MONTHS ACTUAL  & 0 MONTHS ESTIMATED"},null,null,null,null,null,null,null,null,null,null,null,null,null,null,null,null,{"$f":"\"PAGE \"&Pages-8&\" OF \"&Pages","v":"PAGE 10 OF 18"}]
[{"$f":"type","v":"TYPE OF FILING: \"X\" ORIGINAL   UPDATED    REVISED  "}]
[]
[null,null,null,null,null,{"$f":"F$7","v":"TOTAL"},null,{"$f":"H$7","v":"DS"},{"$f":"I$7","v":"GSFL"},{"$f":"J$7","v":"EH"},{"$f":"K$7","v":"SP"},"DT SEC","DT PRI","DP","TT",null,"OTHER"]
["LINE",null,null,null,null,{"$f":"F$8","v":"DISTRIBUTION"},{"$f":"G$8","v":"RS"},{"$f":"H$8","v":"SECONDARY"},{"$f":"I$8","v":"SECONDARY"},{"$f":"J$8","v":"SECONDARY"},{"$f":"K$8","v":"SECONDARY"},"SECONDARY","PRIMARY","PRIMARY","TRANSMISSION","LT","WATER",{"$f":"R8","v":"TOTAL"},"ALL"]
["NO.","DEPRECIATION EXPENSE",null,"ALLO",null,{"$f":"F$9","v":"CUSTOMER"},{"$f":"G$9","v":"RESIDENTIAL"},{"$f":"H$9","v":"DISTRIBUTION"},{"$f":"I$9","v":"DISTRIBUTION"},{"$f":"J$9","v":"DISTRIBUTION"},{"$f":"K$9","v":"DISTRIBUTION"},"DISTRIBUTION","DISTRIBUTION","DISTRIBUTION","TIME OF DAY","LIGHTING","PUMPING",{"$f":"R9","v":"AT ISSUE"},"OTHER"]
[null,null,"Schedule 7",null,null,null,{"$f":"G$10","v":3},{"$f":"H$10","v":4},{"$f":"I$10","v":5},{"$f":"J$10","v":6},{"$f":"K$10","v":7},8,9,10,11,12,13,null," "]
[1,"PRODUCTION DEPRECIATION"]
[2,null,{"$f":"'FR-16(7)(v)-1 Functional'!C562","v":"PRODUCTION DEPRECIATION"},{"$f":"'FR-16(7)(v)-1 Functional'!D562","v":"P229"},null,{"$f":"'FR-16(7)(v)-10 DIST Classified'!I562","v":0},{"$f":"F562-SUM(H562:Q562)","v":0},{"$f":"ROUND(F562*VLOOKUP(D562,ALLOCTABLE_Distr_Customer,$H$10,FALSE),0)","v":0},{"$f":"ROUND(F562*VLOOKUP(D562,ALLOCTABLE_Distr_Customer,$I$10,FALSE),0)","v":0},{"$f":"ROUND(F562*VLOOKUP(D562,ALLOCTABLE_Distr_Customer,$J$10,FALSE),0)","v":0},{"$f":"ROUND(F562*VLOOKUP(D562,ALLOCTABLE_Distr_Customer,$K$10,FALSE),0)","v":0},{"$f":"ROUND(F562*VLOOKUP(D562,ALLOCTABLE_Distr_Customer,$L$10,FALSE),0)","v":0},{"$f":"ROUND(F562*VLOOKUP(D562,ALLOCTABLE_Distr_Customer,$M$10,FALSE),0)","v":0},{"$f":"ROUND(F562*VLOOKUP(D562,ALLOCTABLE_Distr_Customer,$N$10,FALSE),0)","v":0},{"$f":"ROUND(F562*VLOOKUP(D562,ALLOCTABLE_Distr_Customer,$O$10,FALSE),0)","v":0},{"$f":"ROUND(F562*VLOOKUP(D562,ALLOCTABLE_Distr_Customer,$P$10,FALSE),0)","v":0},{"$f":"ROUND(F562*VLOOKUP(D562,ALLOCTABLE_Distr_Customer,$Q$10,FALSE),0)","v":0},{"$f":"SUM(G562:Q562)","v":0},{"$f":"F562-R562","v":0}]
[3,null,{"$f":"'FR-16(7)(v)-1 Functional'!C563","v":"  TOTAL PRODUCTION DEPREC EXP."},null,null,{"$f":"SUM(F562:F562)","v":0},{"$f":"SUM(G562:G562)","v":0},{"$f":"SUM(H562:H562)","v":0},{"$f":"SUM(I562:I562)","v":0},{"$f":"SUM(J562:J562)","v":0},0,0,0,0,0,0,{"$f":"SUM(Q562:Q562)","v":0},{"$f":"SUM(R562:R562)","v":0},{"$f":"SUM(S562:S562)","v":0}]
[4]
[5,"TRANSMISSION DEPRECIATION"]
[6,null,"TRANSMISSION DEPRECIATION",{"$f":"'FR-16(7)(v)-1 Functional'!D566","v":"T229"},null,{"$f":"'FR-16(7)(v)-10 DIST Classified'!I566","v":0},{"$f":"F566-SUM(H566:Q566)","v":0},{"$f":"ROUND(F566*VLOOKUP(D566,ALLOCTABLE_Distr_Customer,$H$10,FALSE),0)","v":0},{"$f":"ROUND(F566*VLOOKUP(D566,ALLOCTABLE_Distr_Customer,$I$10,FALSE),0)","v":0},{"$f":"ROUND(F566*VLOOKUP(D566,ALLOCTABLE_Distr_Customer,$J$10,FALSE),0)","v":0},{"$f":"ROUND(F566*VLOOKUP(D566,ALLOCTABLE_Distr_Customer,$K$10,FALSE),0)","v":0},{"$f":"ROUND(F566*VLOOKUP(D566,ALLOCTABLE_Distr_Customer,$L$10,FALSE),0)","v":0},{"$f":"ROUND(F566*VLOOKUP(D566,ALLOCTABLE_Distr_Customer,$M$10,FALSE),0)","v":0},{"$f":"ROUND(F566*VLOOKUP(D566,ALLOCTABLE_Distr_Customer,$N$10,FALSE),0)","v":0},{"$f":"ROUND(F566*VLOOKUP(D566,ALLOCTABLE_Distr_Customer,$O$10,FALSE),0)","v":0},{"$f":"ROUND(F566*VLOOKUP(D566,ALLOCTABLE_Distr_Customer,$P$10,FALSE),0)","v":0},{"$f":"ROUND(F566*VLOOKUP(D566,ALLOCTABLE_Distr_Customer,$Q$10,FALSE),0)","v":0},{"$f":"SUM(G566:Q566)","v":0},{"$f":"F566-R566","v":0}]
[7,null,{"$f":"'FR-16(7)(v)-1 Functional'!C567","v":"  TOTAL TRANSMISSION DEP. EXP."},null,null,{"$f":"SUM(F566:F566)","v":0},{"$f":"SUM(G566:G566)","v":0},{"$f":"SUM(H566:H566)","v":0},{"$f":"SUM(I566:I566)","v":0},{"$f":"SUM(J566:J566)","v":0},0,0,0,0,0,0,{"$f":"SUM(Q566:Q566)","v":0},{"$f":"SUM(R566:R566)","v":0},{"$f":"SUM(S566:S566)","v":0}]
[8]
[9,"DISTRIBUTION DEPRECIATION"]
[10,null,{"$f":"'FR-16(7)(v)-1 Functional'!C570","v":"DISTRIBUTION DEPRECIATION"},{"$f":"'FR-16(7)(v)-1 Functional'!D570","v":"D249"},null,{"$f":"'FR-16(7)(v)-10 DIST Classified'!I570","v":3315814},{"$f":"F570-SUM(H570:Q570)","v":2848019},{"$f":"ROUND(F570*VLOOKUP(D570,ALLOCTABLE_Distr_Customer,$H$10,FALSE),0)","v":358008},{"$f":"ROUND(F570*VLOOKUP(D570,ALLOCTABLE_Distr_Customer,$I$10,FALSE),0)","v":3051},{"$f":"ROUND(F570*VLOOKUP(D570,ALLOCTABLE_Distr_Customer,$J$10,FALSE),0)","v":3714},{"$f":"ROUND(F570*VLOOKUP(D570,ALLOCTABLE_Distr_Customer,$K$10,FALSE),0)","v":398},{"$f":"ROUND(F570*VLOOKUP(D570,ALLOCTABLE_Distr_Customer,$L$10,FALSE),0)","v":9682},{"$f":"ROUND(F570*VLOOKUP(D570,ALLOCTABLE_Distr_Customer,$M$10,FALSE),0)","v":1227},{"$f":"ROUND(F570*VLOOKUP(D570,ALLOCTABLE_Distr_Customer,$N$10,FALSE),0)","v":497},{"$f":"ROUND(F570*VLOOKUP(D570,ALLOCTABLE_Distr_Customer,$O$10,FALSE),0)","v":365},{"$f":"ROUND(F570*VLOOKUP(D570,ALLOCTABLE_Distr_Customer,$P$10,FALSE),0)","v":90555},{"$f":"ROUND(F570*VLOOKUP(D570,ALLOCTABLE_Distr_Customer,$Q$10,FALSE),0)","v":298},{"$f":"SUM(G570:Q570)","v":3315814},{"$f":"F570-R570","v":0}]
[11,null,{"$f":"'FR-16(7)(v)-1 Functional'!C571","v":"  TOTAL DIST. DEPREC EXP."},null,null,{"$f":"SUM(F570:F570)","v":3315814},{"$f":"SUM(G570:G570)","v":2848019},{"$f":"SUM(H570:H570)","v":358008},{"$f":"SUM(I570:I570)","v":3051},{"$f":"SUM(J570:J570)","v":3714},398,9682,1227,497,365,90555,{"$f":"SUM(Q570:Q570)","v":298},{"$f":"SUM(R570:R570)","v":3315814},{"$f":"SUM(S570:S570)","v":0}]
[12,null,null,null,null," "]
[13,"GENERAL DEPRECIATION"]
[14,null,{"$f":"'FR-16(7)(v)-1 Functional'!C574","v":"GENERAL DEPRECIATION"},{"$f":"'FR-16(7)(v)-1 Functional'!D574","v":"G229"},null,{"$f":"'FR-16(7)(v)-10 DIST Classified'!I574","v":856408},{"$f":"F574-SUM(H574:Q574)","v":717772},{"$f":"ROUND(F574*VLOOKUP(D574,ALLOCTABLE_Distr_Customer,$H$10,FALSE),0)","v":130234},{"$f":"ROUND(F574*VLOOKUP(D574,ALLOCTABLE_Distr_Customer,$I$10,FALSE),0)","v":908},{"$f":"ROUND(F574*VLOOKUP(D574,ALLOCTABLE_Distr_Customer,$J$10,FALSE),0)","v":1036},{"$f":"ROUND(F574*VLOOKUP(D574,ALLOCTABLE_Distr_Customer,$K$10,FALSE),0)","v":146},{"$f":"ROUND(F574*VLOOKUP(D574,ALLOCTABLE_Distr_Customer,$L$10,FALSE),0)","v":4111},{"$f":"ROUND(F574*VLOOKUP(D574,ALLOCTABLE_Distr_Customer,$M$10,FALSE),0)","v":-257},{"$f":"ROUND(F574*VLOOKUP(D574,ALLOCTABLE_Distr_Customer,$N$10,FALSE),0)","v":163},{"$f":"ROUND(F574*VLOOKUP(D574,ALLOCTABLE_Distr_Customer,$O$10,FALSE),0)","v":-34},{"$f":"ROUND(F574*VLOOKUP(D574,ALLOCTABLE_Distr_Customer,$P$10,FALSE),0)","v":2218},{"$f":"ROUND(F574*VLOOKUP(D574,ALLOCTABLE_Distr_Customer,$Q$10,FALSE),0)","v":111},{"$f":"SUM(G574:Q574)","v":856408},{"$f":"F574-R574","v":0}]
[15,null,{"$f":"'FR-16(7)(v)-1 Functional'!C575","v":"  TOTAL GENERAL DEPREC EXP."},null,null,{"$f":"SUM(F574:F574)","v":856408},{"$f":"SUM(G574:G574)","v":717772},{"$f":"SUM(H574:H574)","v":130234},{"$f":"SUM(I574:I574)","v":908},{"$f":"SUM(J574:J574)","v":1036},146,4111,-257,163,-34,2218,{"$f":"SUM(Q574:Q574)","v":111},{"$f":"SUM(R574:R574)","v":856408},{"$f":"SUM(S574:S574)","v":0}]
[16]
[17,"COMMON AND OTHER DEPRECIATION"]
[18,null,{"$f":"'FR-16(7)(v)-1 Functional'!C578","v":"COMMON DEPRECIATION"},{"$f":"'FR-16(7)(v)-1 Functional'!D578","v":"C229"},null,{"$f":"'FR-16(7)(v)-10 DIST Classified'!I578","v":5802},{"$f":"F578-SUM(H578:Q578)","v":4862},{"$f":"ROUND(F578*VLOOKUP(D578,ALLOCTABLE_Distr_Customer,$H$10,FALSE),0)","v":882},{"$f":"ROUND(F578*VLOOKUP(D578,ALLOCTABLE_Distr_Customer,$I$10,FALSE),0)","v":6},{"$f":"ROUND(F578*VLOOKUP(D578,ALLOCTABLE_Distr_Customer,$J$10,FALSE),0)","v":7},{"$f":"ROUND(F578*VLOOKUP(D578,ALLOCTABLE_Distr_Customer,$K$10,FALSE),0)","v":1},{"$f":"ROUND(F578*VLOOKUP(D578,ALLOCTABLE_Distr_Customer,$L$10,FALSE),0)","v":28},{"$f":"ROUND(F578*VLOOKUP(D578,ALLOCTABLE_Distr_Customer,$M$10,FALSE),0)","v":-2},{"$f":"ROUND(F578*VLOOKUP(D578,ALLOCTABLE_Distr_Customer,$N$10,FALSE),0)","v":1},{"$f":"ROUND(F578*VLOOKUP(D578,ALLOCTABLE_Distr_Customer,$O$10,FALSE),0)","v":0},{"$f":"ROUND(F578*VLOOKUP(D578,ALLOCTABLE_Distr_Customer,$P$10,FALSE),0)","v":16},{"$f":"ROUND(F578*VLOOKUP(D578,ALLOCTABLE_Distr_Customer,$Q$10,FALSE),0)","v":1},{"$f":"SUM(G578:Q578)","v":5802},{"$f":"F578-R578","v":0}]
[19,null,{"$f":"'FR-16(7)(v)-1 Functional'!C579","v":"  TOTAL COM & OTHER DEPREC EXP."},null,null,{"$f":"SUM(F578:F578)","v":5802},{"$f":"SUM(G578:G578)","v":4862},{"$f":"SUM(H578:H578)","v":882},{"$f":"SUM(I578:I578)","v":6},{"$f":"SUM(J578:J578)","v":7},1,28,-2,1,0,16,{"$f":"SUM(Q578:Q578)","v":1},{"$f":"SUM(R578:R578)","v":5802},{"$f":"SUM(S578:S578)","v":0}]
[20]
[21]
[22,"TOTAL DEPRECIATION EXPENSE",null,null," ",{"$f":"F579+F575+F571+F567+F563","v":4178024},{"$f":"G579+G575+G571+G567+G563","v":3570653},{"$f":"H579+H575+H571+H567+H563","v":489124},{"$f":"I579+I575+I571+I567+I563","v":3965},{"$f":"J579+J575+J571+J567+J563","v":4757},545,13821,968,661,331,92789,{"$f":"Q579+Q575+Q571+Q567+Q563","v":410},{"$f":"R579+R575+R571+R567+R563","v":4178024},{"$f":"S579+S575+S571+S567+S563","v":0}]
[]
[{"$f":"co_name","v":"DUKE ENERGY KENTUCKY, INC."},null,null,null,null,null,null,null,null,null,null,null,null,null,null,null,null,{"$f":"R1","v":"FR-16(7)(v)-13"}]
[{"$f":"$A$2","v":"DISTRIBUTION CUSTOMER ALLOCATED - ELECTRIC COST OF SERVICE"},null,null,null,null,null,null,null,null,null,null,null,null,null,null,null,null,{"$f":"R2","v":"WITNESS RESPONSIBLE:"}]
[{"$f":"case_name","v":"CASE NO: 2019-00271"},null,null,null,null,null,null,null,null,null,null,null,null,null,null,null,null,{"$f":"Witness","v":"JAMES E. ZIOLKOWSKI"}]
[{"$f":"data_filing","v":"DATA: 12 MONTHS ACTUAL  & 0 MONTHS ESTIMATED"},null,null,null,null,null,null,null,null,null,null,null,null,null,null,null,null,{"$f":"\"PAGE \"&Pages-7&\" OF \"&Pages","v":"PAGE 11 OF 18"}]
[{"$f":"type","v":"TYPE OF FILING: \"X\" ORIGINAL   UPDATED    REVISED  "}]
[]
[null,null,null,null,null,{"$f":"F$7","v":"TOTAL"},null,{"$f":"H$7","v":"DS"},{"$f":"I$7","v":"GSFL"},{"$f":"J$7","v":"EH"},{"$f":"K$7","v":"SP"},"DT SEC","DT PRI","DP","TT",null,"OTHER"]
["LINE",null,null,null,null,{"$f":"F$8","v":"DISTRIBUTION"},{"$f":"G$8","v":"RS"},{"$f":"H$8","v":"SECONDARY"},{"$f":"I$8","v":"SECONDARY"},{"$f":"J$8","v":"SECONDARY"},{"$f":"K$8","v":"SECONDARY"},"SECONDARY","PRIMARY","PRIMARY","TRANSMISSION","LT","WATER",{"$f":"R8","v":"TOTAL"},"ALL"]
["NO.","OTHER TAXES & MISC EXPENSES",null,"ALLO",null,{"$f":"F$9","v":"CUSTOMER"},{"$f":"G$9","v":"RESIDENTIAL"},{"$f":"H$9","v":"DISTRIBUTION"},{"$f":"I$9","v":"DISTRIBUTION"},{"$f":"J$9","v":"DISTRIBUTION"},{"$f":"K$9","v":"DISTRIBUTION"},"DISTRIBUTION","DISTRIBUTION","DISTRIBUTION","TIME OF DAY","LIGHTING","PUMPING",{"$f":"R9","v":"AT ISSUE"},"OTHER"]
[null,null,"Schedule 8",null,null,null,{"$f":"G$10","v":3},{"$f":"H$10","v":4},{"$f":"I$10","v":5},{"$f":"J$10","v":6},{"$f":"K$10","v":7},8,9,10,11,12,13,null," "]
[1,"TAXES OTHER THAN INC & REV"]
[2," REAL ESTATE & PROPERTY TAX"]
[3,null,{"$f":"'FR-16(7)(v)-1 Functional'!C596","v":"REAL ESTATE & PROPERTY TAX"},{"$f":"'FR-16(7)(v)-1 Functional'!D596","v":"NP29"},null,{"$f":"'FR-16(7)(v)-10 DIST Classified'!I596","v":1307637},{"$f":"F596-SUM(H596:Q596)","v":1121391},{"$f":"ROUND(F596*VLOOKUP(D596,ALLOCTABLE_Distr_Customer,$H$10,FALSE),0)","v":144912},{"$f":"ROUND(F596*VLOOKUP(D596,ALLOCTABLE_Distr_Customer,$I$10,FALSE),0)","v":1216},{"$f":"ROUND(F596*VLOOKUP(D596,ALLOCTABLE_Distr_Customer,$J$10,FALSE),0)","v":1478},{"$f":"ROUND(F596*VLOOKUP(D596,ALLOCTABLE_Distr_Customer,$K$10,FALSE),0)","v":170},{"$f":"ROUND(F596*VLOOKUP(D596,ALLOCTABLE_Distr_Customer,$L$10,FALSE),0)","v":3975},{"$f":"ROUND(F596*VLOOKUP(D596,ALLOCTABLE_Distr_Customer,$M$10,FALSE),0)","v":418},{"$f":"ROUND(F596*VLOOKUP(D596,ALLOCTABLE_Distr_Customer,$N$10,FALSE),0)","v":196},{"$f":"ROUND(F596*VLOOKUP(D596,ALLOCTABLE_Distr_Customer,$O$10,FALSE),0)","v":131},{"$f":"ROUND(F596*VLOOKUP(D596,ALLOCTABLE_Distr_Customer,$P$10,FALSE),0)","v":33632},{"$f":"ROUND(F596*VLOOKUP(D596,ALLOCTABLE_Distr_Customer,$Q$10,FALSE),0)","v":118},{"$f":"SUM(G596:Q596)","v":1307637},{"$f":"F596-R596","v":0}]
[4,null,{"$f":"'FR-16(7)(v)-1 Functional'!C597","v":"ANNUALIZE PROPERTY TAX"},{"$f":"'FR-16(7)(v)-1 Functional'!D597","v":"NP29"}," ",{"$f":"'FR-16(7)(v)-10 DIST Classified'!I597","v":0},{"$f":"F597-SUM(H597:Q597)","v":0},{"$f":"ROUND(F597*VLOOKUP(D597,ALLOCTABLE_Distr_Customer,$H$10,FALSE),0)","v":0},{"$f":"ROUND(F597*VLOOKUP(D597,ALLOCTABLE_Distr_Customer,$I$10,FALSE),0)","v":0},{"$f":"ROUND(F597*VLOOKUP(D597,ALLOCTABLE_Distr_Customer,$J$10,FALSE),0)","v":0},{"$f":"ROUND(F597*VLOOKUP(D597,ALLOCTABLE_Distr_Customer,$K$10,FALSE),0)","v":0},{"$f":"ROUND(F597*VLOOKUP(D597,ALLOCTABLE_Distr_Customer,$L$10,FALSE),0)","v":0},{"$f":"ROUND(F597*VLOOKUP(D597,ALLOCTABLE_Distr_Customer,$M$10,FALSE),0)","v":0},{"$f":"ROUND(F597*VLOOKUP(D597,ALLOCTABLE_Distr_Customer,$N$10,FALSE),0)","v":0},{"$f":"ROUND(F597*VLOOKUP(D597,ALLOCTABLE_Distr_Customer,$O$10,FALSE),0)","v":0},{"$f":"ROUND(F597*VLOOKUP(D597,ALLOCTABLE_Distr_Customer,$P$10,FALSE),0)","v":0},{"$f":"ROUND(F597*VLOOKUP(D597,ALLOCTABLE_Distr_Customer,$Q$10,FALSE),0)","v":0},{"$f":"SUM(G597:Q597)","v":0},{"$f":"F597-R597","v":0}]
[5,null,{"$f":"'FR-16(7)(v)-1 Functional'!C598","v":"  TOTAL REAL ESTATE & PROPERTY TAX"},null,null,{"$f":"SUM(F596:F597)","v":1307637},{"$f":"SUM(G596:G597)","v":1121391},{"$f":"SUM(H596:H597)","v":144912},{"$f":"SUM(I596:I597)","v":1216},{"$f":"SUM(J596:J597)","v":1478},170,3975,418,196,131,33632,{"$f":"SUM($Q$596:$Q$597)","v":118},{"$f":"SUM(R596:R597)","v":1307637},{"$f":"SUM(S596:S597)","v":0}]
[6]
[7," MISCELLANEOUS TAXES"]
[8,null,{"$f":"'FR-16(7)(v)-1 Functional'!C601","v":"PAYROLL "},{"$f":"'FR-16(7)(v)-1 Functional'!D601","v":"A315"},null,{"$f":"'FR-16(7)(v)-10 DIST Classified'!I601","v":303629},{"$f":"F601-SUM(H601:Q601)","v":243289},{"$f":"ROUND(F601*VLOOKUP(D601,ALLOCTABLE_Distr_Customer,$H$10,FALSE),0)","v":46905},{"$f":"ROUND(F601*VLOOKUP(D601,ALLOCTABLE_Distr_Customer,$I$10,FALSE),0)","v":285},{"$f":"ROUND(F601*VLOOKUP(D601,ALLOCTABLE_Distr_Customer,$J$10,FALSE),0)","v":370},{"$f":"ROUND(F601*VLOOKUP(D601,ALLOCTABLE_Distr_Customer,$K$10,FALSE),0)","v":52},{"$f":"ROUND(F601*VLOOKUP(D601,ALLOCTABLE_Distr_Customer,$L$10,FALSE),0)","v":1545},{"$f":"ROUND(F601*VLOOKUP(D601,ALLOCTABLE_Distr_Customer,$M$10,FALSE),0)","v":-97},{"$f":"ROUND(F601*VLOOKUP(D601,ALLOCTABLE_Distr_Customer,$N$10,FALSE),0)","v":61},{"$f":"ROUND(F601*VLOOKUP(D601,ALLOCTABLE_Distr_Customer,$O$10,FALSE),0)","v":-12},{"$f":"ROUND(F601*VLOOKUP(D601,ALLOCTABLE_Distr_Customer,$P$10,FALSE),0)","v":11192},{"$f":"ROUND(F601*VLOOKUP(D601,ALLOCTABLE_Distr_Customer,$Q$10,FALSE),0)","v":39},{"$f":"SUM(G601:Q601)","v":303629},{"$f":"F601-R601","v":0}]
[9,null,{"$f":"'FR-16(7)(v)-1 Functional'!C602","v":"ELIMINATE DSM "},{"$f":"'FR-16(7)(v)-1 Functional'!D602","v":"A315"},null,{"$f":"'FR-16(7)(v)-10 DIST Classified'!I602","v":-5974},{"$f":"F602-SUM(H602:Q602)","v":-4787},{"$f":"ROUND(F602*VLOOKUP(D602,ALLOCTABLE_Distr_Customer,$H$10,FALSE),0)","v":-923},{"$f":"ROUND(F602*VLOOKUP(D602,ALLOCTABLE_Distr_Customer,$I$10,FALSE),0)","v":-6},{"$f":"ROUND(F602*VLOOKUP(D602,ALLOCTABLE_Distr_Customer,$J$10,FALSE),0)","v":-7},{"$f":"ROUND(F602*VLOOKUP(D602,ALLOCTABLE_Distr_Customer,$K$10,FALSE),0)","v":-1},{"$f":"ROUND(F602*VLOOKUP(D602,ALLOCTABLE_Distr_Customer,$L$10,FALSE),0)","v":-30},{"$f":"ROUND(F602*VLOOKUP(D602,ALLOCTABLE_Distr_Customer,$M$10,FALSE),0)","v":2},{"$f":"ROUND(F602*VLOOKUP(D602,ALLOCTABLE_Distr_Customer,$N$10,FALSE),0)","v":-1},{"$f":"ROUND(F602*VLOOKUP(D602,ALLOCTABLE_Distr_Customer,$O$10,FALSE),0)","v":0},{"$f":"ROUND(F602*VLOOKUP(D602,ALLOCTABLE_Distr_Customer,$P$10,FALSE),0)","v":-220},{"$f":"ROUND(F602*VLOOKUP(D602,ALLOCTABLE_Distr_Customer,$Q$10,FALSE),0)","v":-1},{"$f":"SUM(G602:Q602)","v":-5974},{"$f":"F602-R602","v":0}]
[10,null,{"$f":"'FR-16(7)(v)-1 Functional'!C603","v":"FRANCHISE & LICENSE"},{"$f":"'FR-16(7)(v)-1 Functional'!D603","v":"A315"},null,{"$f":"'FR-16(7)(v)-10 DIST Classified'!I603","v":0},{"$f":"F603-SUM(H603:Q603)","v":0},{"$f":"ROUND(F603*VLOOKUP(D603,ALLOCTABLE_Distr_Customer,$H$10,FALSE),0)","v":0},{"$f":"ROUND(F603*VLOOKUP(D603,ALLOCTABLE_Distr_Customer,$I$10,FALSE),0)","v":0},{"$f":"ROUND(F603*VLOOKUP(D603,ALLOCTABLE_Distr_Customer,$J$10,FALSE),0)","v":0},{"$f":"ROUND(F603*VLOOKUP(D603,ALLOCTABLE_Distr_Customer,$K$10,FALSE),0)","v":0},{"$f":"ROUND(F603*VLOOKUP(D603,ALLOCTABLE_Distr_Customer,$L$10,FALSE),0)","v":0},{"$f":"ROUND(F603*VLOOKUP(D603,ALLOCTABLE_Distr_Customer,$M$10,FALSE),0)","v":0},{"$f":"ROUND(F603*VLOOKUP(D603,ALLOCTABLE_Distr_Customer,$N$10,FALSE),0)","v":0},{"$f":"ROUND(F603*VLOOKUP(D603,ALLOCTABLE_Distr_Customer,$O$10,FALSE),0)","v":0},{"$f":"ROUND(F603*VLOOKUP(D603,ALLOCTABLE_Distr_Customer,$P$10,FALSE),0)","v":0},{"$f":"ROUND(F603*VLOOKUP(D603,ALLOCTABLE_Distr_Customer,$Q$10,FALSE),0)","v":0},{"$f":"SUM(G603:Q603)","v":0},{"$f":"F603-R603","v":0}]
[11,null,{"$f":"'FR-16(7)(v)-1 Functional'!C604","v":"ELIMINATE ESM"},{"$f":"'FR-16(7)(v)-1 Functional'!D604","v":"A315"},null,{"$f":"'FR-16(7)(v)-10 DIST Classified'!I604","v":-161517},{"$f":"F604-SUM(H604:Q604)","v":-129419},{"$f":"ROUND(F604*VLOOKUP(D604,ALLOCTABLE_Distr_Customer,$H$10,FALSE),0)","v":-24951},{"$f":"ROUND(F604*VLOOKUP(D604,ALLOCTABLE_Distr_Customer,$I$10,FALSE),0)","v":-152},{"$f":"ROUND(F604*VLOOKUP(D604,ALLOCTABLE_Distr_Customer,$J$10,FALSE),0)","v":-197},{"$f":"ROUND(F604*VLOOKUP(D604,ALLOCTABLE_Distr_Customer,$K$10,FALSE),0)","v":-27},{"$f":"ROUND(F604*VLOOKUP(D604,ALLOCTABLE_Distr_Customer,$L$10,FALSE),0)","v":-822},{"$f":"ROUND(F604*VLOOKUP(D604,ALLOCTABLE_Distr_Customer,$M$10,FALSE),0)","v":52},{"$f":"ROUND(F604*VLOOKUP(D604,ALLOCTABLE_Distr_Customer,$N$10,FALSE),0)","v":-32},{"$f":"ROUND(F604*VLOOKUP(D604,ALLOCTABLE_Distr_Customer,$O$10,FALSE),0)","v":6},{"$f":"ROUND(F604*VLOOKUP(D604,ALLOCTABLE_Distr_Customer,$P$10,FALSE),0)","v":-5954},{"$f":"ROUND(F604*VLOOKUP(D604,ALLOCTABLE_Distr_Customer,$Q$10,FALSE),0)","v":-21},{"$f":"SUM(G604:Q604)","v":-161517},{"$f":"F604-R604","v":0}]
[12,null,{"$f":"'FR-16(7)(v)-1 Functional'!C605","v":"  TOTAL MISCELLANEOUS TAXES"},null,null,{"$f":"SUM(F601:F604)","v":136138},{"$f":"SUM(G601:G604)","v":109083},{"$f":"SUM(H601:H604)","v":21031},{"$f":"SUM(I601:I604)","v":127},{"$f":"SUM(J601:J604)","v":166},24,693,-43,28,-6,5018,{"$f":"SUM($Q$601:$Q$604)","v":17},{"$f":"SUM(R601:R604)","v":136138},{"$f":"SUM(S601:S604)","v":0}]
[13]
[14," MISCELLANEOUS EXPENSES"]
[15,null,{"$f":"'FR-16(7)(v)-1 Functional'!C608","v":"PSC MAINT. EXP ON INCREASE"},{"$f":"'FR-16(7)(v)-1 Functional'!D608","v":"K902"},null,{"$f":"'FR-16(7)(v)-10 DIST Classified'!I608","v":14399},{"$f":"F608-SUM(H608:Q608)","v":5969},{"$f":"ROUND(F608*VLOOKUP(D608,ALLOCTABLE_Distr_Customer,$H$10,FALSE),0)","v":4120},{"$f":"ROUND(F608*VLOOKUP(D608,ALLOCTABLE_Distr_Customer,$I$10,FALSE),0)","v":26},{"$f":"ROUND(F608*VLOOKUP(D608,ALLOCTABLE_Distr_Customer,$J$10,FALSE),0)","v":27},{"$f":"ROUND(F608*VLOOKUP(D608,ALLOCTABLE_Distr_Customer,$K$10,FALSE),0)","v":1},{"$f":"ROUND(F608*VLOOKUP(D608,ALLOCTABLE_Distr_Customer,$L$10,FALSE),0)","v":2130},{"$f":"ROUND(F608*VLOOKUP(D608,ALLOCTABLE_Distr_Customer,$M$10,FALSE),0)","v":1359},{"$f":"ROUND(F608*VLOOKUP(D608,ALLOCTABLE_Distr_Customer,$N$10,FALSE),0)","v":63},{"$f":"ROUND(F608*VLOOKUP(D608,ALLOCTABLE_Distr_Customer,$O$10,FALSE),0)","v":618},{"$f":"ROUND(F608*VLOOKUP(D608,ALLOCTABLE_Distr_Customer,$P$10,FALSE),0)","v":85},{"$f":"ROUND(F608*VLOOKUP(D608,ALLOCTABLE_Distr_Customer,$Q$10,FALSE),0)","v":1},{"$f":"SUM(G608:Q608)","v":14399},{"$f":"F608-R608","v":0}]
[16,null,{"$f":"'FR-16(7)(v)-1 Functional'!C609","v":"RESERVED FOR FUTURE USE"},{"$f":"'FR-16(7)(v)-1 Functional'!D609","v":"K902"},null,{"$f":"'FR-16(7)(v)-10 DIST Classified'!I609","v":0},{"$f":"F609-SUM(H609:Q609)","v":0},{"$f":"ROUND(F609*VLOOKUP(D609,ALLOCTABLE_Distr_Customer,$H$10,FALSE),0)","v":0},{"$f":"ROUND(F609*VLOOKUP(D609,ALLOCTABLE_Distr_Customer,$I$10,FALSE),0)","v":0},{"$f":"ROUND(F609*VLOOKUP(D609,ALLOCTABLE_Distr_Customer,$J$10,FALSE),0)","v":0},{"$f":"ROUND(F609*VLOOKUP(D609,ALLOCTABLE_Distr_Customer,$K$10,FALSE),0)","v":0},{"$f":"ROUND(F609*VLOOKUP(D609,ALLOCTABLE_Distr_Customer,$L$10,FALSE),0)","v":0},{"$f":"ROUND(F609*VLOOKUP(D609,ALLOCTABLE_Distr_Customer,$M$10,FALSE),0)","v":0},{"$f":"ROUND(F609*VLOOKUP(D609,ALLOCTABLE_Distr_Customer,$N$10,FALSE),0)","v":0},{"$f":"ROUND(F609*VLOOKUP(D609,ALLOCTABLE_Distr_Customer,$O$10,FALSE),0)","v":0},{"$f":"ROUND(F609*VLOOKUP(D609,ALLOCTABLE_Distr_Customer,$P$10,FALSE),0)","v":0},{"$f":"ROUND(F609*VLOOKUP(D609,ALLOCTABLE_Distr_Customer,$Q$10,FALSE),0)","v":0},{"$f":"SUM(G609:Q609)","v":0},{"$f":"F609-R609","v":0}]
[17,null,{"$f":"'FR-16(7)(v)-1 Functional'!C610","v":"  TOTAL MISCELLANEOUS EXPENSES"},null,null,{"$f":"SUM(F608:F609)","v":14399},{"$f":"SUM(G608:G609)","v":5969},{"$f":"SUM(H608:H609)","v":4120},{"$f":"SUM(I608:I609)","v":26},{"$f":"SUM(J608:J609)","v":27},1,2130,1359,63,618,85,{"$f":"SUM($Q$608:$Q$609)","v":1},{"$f":"SUM(R608:R609)","v":14399},{"$f":"SUM(S608:S609)","v":0}]
[18]
[19,"TOTAL OTHER TAX & MISC EXPENSE",null,null," ",{"$f":"F605+F598+F610","v":1458174},{"$f":"G605+G598+G610","v":1236443},{"$f":"H605+H598+H610","v":170063},{"$f":"I605+I598+I610","v":1369},{"$f":"J605+J598+J610","v":1671},195,6798,1734,287,743,38735,{"$f":"$Q$605+$Q$598+$Q$610","v":136},{"$f":"R605+R598+R610","v":1458174},{"$f":"S605+S598+S610","v":0}]
[20]
[21,"PRELIMINARY SUMMARY"]
[22,null,{"$f":"'FR-16(7)(v)-1 Functional'!C615","v":"TOTAL O&M EXPENSE"},null,null,{"$f":"F549","v":12898216},{"$f":"G549","v":10383459},{"$f":"H549","v":1772545},{"$f":"I549","v":11979},{"$f":"J549","v":13984},1975,53080,-2047,2172,-37,659602,{"$f":"Q549","v":1504},{"$f":"R549","v":12898216},{"$f":"S549","v":0}]
[23,null,{"$f":"'FR-16(7)(v)-1 Functional'!C616","v":"TOTAL DEPRECIATION EXPENSE"},null,null,{"$f":"F582","v":4178024},{"$f":"G582","v":3570653},{"$f":"H582","v":489124},{"$f":"I582","v":3965},{"$f":"J582","v":4757},545,13821,968,661,331,92789,{"$f":"Q582","v":410},{"$f":"R582","v":4178024},{"$f":"S582","v":0}]
[24,null,{"$f":"'FR-16(7)(v)-1 Functional'!C617","v":"TOTAL OTHER TAX & MISC EXPENSE"},null,null,{"$f":"F612","v":1458174},{"$f":"G612","v":1236443},{"$f":"H612","v":170063},{"$f":"I612","v":1369},{"$f":"J612","v":1671},195,6798,1734,287,743,38735,{"$f":"$Q$612","v":136},{"$f":"R612","v":1458174},{"$f":"S612","v":0}]
[25,null,{"$f":"'FR-16(7)(v)-1 Functional'!C618","v":"  TOTAL OPER EXP EXCL INCOME & REV TAX"},null,null,{"$f":"SUM(F615:F617)","v":18534414},{"$f":"SUM(G615:G617)","v":15190555},{"$f":"SUM(H615:H617)","v":2431732},{"$f":"SUM(I615:I617)","v":17313},{"$f":"SUM(J615:J617)","v":20412},2715,73699,655,3120,1037,791126,{"$f":"SUM($Q$615:$Q$617)","v":2050},{"$f":"SUM(R615:R617)","v":18534414},{"$f":"SUM(S615:S617)","v":0}]
[]
[{"$f":"co_name","v":"DUKE ENERGY KENTUCKY, INC."},null,null,null,null,null,null,null,null,null,null,null,null,null,null,null,null,{"$f":"R1","v":"FR-16(7)(v)-13"}]
[{"$f":"$A$2","v":"DISTRIBUTION CUSTOMER ALLOCATED - ELECTRIC COST OF SERVICE"},null,null,null,null,null,null,null,null,null,null,null,null,null,null,null,null,{"$f":"R2","v":"WITNESS RESPONSIBLE:"}]
[{"$f":"case_name","v":"CASE NO: 2019-00271"},null,null,null,null,null,null,null,null,null,null,null,null,null,null,null,null,{"$f":"Witness","v":"JAMES E. ZIOLKOWSKI"}]
[{"$f":"data_filing","v":"DATA: 12 MONTHS ACTUAL  & 0 MONTHS ESTIMATED"},null,null,null,null,null,null,null,null,null,null,null,null,null,null,null,null,{"$f":"\"PAGE \"&Pages-6&\" OF \"&Pages","v":"PAGE 12 OF 18"}]
[{"$f":"type","v":"TYPE OF FILING: \"X\" ORIGINAL   UPDATED    REVISED  "}]
[]
[null,null,null,null,null,{"$f":"F$7","v":"TOTAL"},null,{"$f":"H$7","v":"DS"},{"$f":"I$7","v":"GSFL"},{"$f":"J$7","v":"EH"},{"$f":"K$7","v":"SP"},"DT SEC","DT PRI","DP","TT",null,"OTHER"]
["LINE",null,null,null,null,{"$f":"F$8","v":"DISTRIBUTION"},{"$f":"G$8","v":"RS"},{"$f":"H$8","v":"SECONDARY"},{"$f":"I$8","v":"SECONDARY"},{"$f":"J$8","v":"SECONDARY"},{"$f":"K$8","v":"SECONDARY"},"SECONDARY","PRIMARY","PRIMARY","TRANSMISSION","LT","WATER",{"$f":"R8","v":"TOTAL"},"ALL"]
["NO.","FEDERAL INCOME TAX BASED ON RETURN",null,"ALLO",null,{"$f":"F$9","v":"CUSTOMER"},{"$f":"G$9","v":"RESIDENTIAL"},{"$f":"H$9","v":"DISTRIBUTION"},{"$f":"I$9","v":"DISTRIBUTION"},{"$f":"J$9","v":"DISTRIBUTION"},{"$f":"K$9","v":"DISTRIBUTION"},"DISTRIBUTION","DISTRIBUTION","DISTRIBUTION","TIME OF DAY","LIGHTING","PUMPING",{"$f":"R9","v":"AT ISSUE"},"OTHER"]
[null,null,"Schedule 9",null,null,null,{"$f":"G$10","v":3},{"$f":"H$10","v":4},{"$f":"I$10","v":5},{"$f":"J$10","v":6},{"$f":"K$10","v":7},8,9,10,11,12,13,null," "]
[1,"FEDERAL INCOME TAX DEDUCTIONS"]
[2," AUTOMATIC INTEREST CALCULATION",null,null,null," "]
[3,null,{"$f":"'FR-16(7)(v)-1 Functional'!C632","v":"AUTO PROC INTEREST DED"},{"$f":"'FR-16(7)(v)-1 Functional'!D632","v":"RB99"},null,{"$f":"'FR-16(7)(v)-10 DIST Classified'!I632","v":1843751},{"$f":"F632-SUM(H632:Q632)","v":1578344},{"$f":"ROUND(F632*VLOOKUP(D632,ALLOCTABLE_Distr_Customer,$H$10,FALSE),0)","v":209432},{"$f":"ROUND(F632*VLOOKUP(D632,ALLOCTABLE_Distr_Customer,$I$10,FALSE),0)","v":1733},{"$f":"ROUND(F632*VLOOKUP(D632,ALLOCTABLE_Distr_Customer,$J$10,FALSE),0)","v":2083},{"$f":"ROUND(F632*VLOOKUP(D632,ALLOCTABLE_Distr_Customer,$K$10,FALSE),0)","v":240},{"$f":"ROUND(F632*VLOOKUP(D632,ALLOCTABLE_Distr_Customer,$L$10,FALSE),0)","v":6029},{"$f":"ROUND(F632*VLOOKUP(D632,ALLOCTABLE_Distr_Customer,$M$10,FALSE),0)","v":627},{"$f":"ROUND(F632*VLOOKUP(D632,ALLOCTABLE_Distr_Customer,$N$10,FALSE),0)","v":295},{"$f":"ROUND(F632*VLOOKUP(D632,ALLOCTABLE_Distr_Customer,$O$10,FALSE),0)","v":221},{"$f":"ROUND(F632*VLOOKUP(D632,ALLOCTABLE_Distr_Customer,$P$10,FALSE),0)","v":44563},{"$f":"ROUND(F632*VLOOKUP(D632,ALLOCTABLE_Distr_Customer,$Q$10,FALSE),0)","v":184},{"$f":"SUM(G632:Q632)","v":1843751},{"$f":"F632-R632","v":0}]
[4,null,{"$f":"'FR-16(7)(v)-1 Functional'!C633","v":"  TOTAL INTEREST EXPENSE"},null,null,{"$f":"F632","v":1843751},{"$f":"G632","v":1578344},{"$f":"H632","v":209432},{"$f":"I632","v":1733},{"$f":"J632","v":2083},240,6029,627,295,221,44563,{"$f":"$Q$632","v":184},{"$f":"R632","v":1843751},{"$f":"S632","v":0}]
[5]
[6," OTHER DEDUCTIONS"]
[7,null,{"$f":"'FR-16(7)(v)-1 Functional'!C636","v":"DEPREC EXCESS TAX-BOOK"},{"$f":"'FR-16(7)(v)-1 Functional'!D636","v":"DE49"},null,{"$f":"'FR-16(7)(v)-10 DIST Classified'!I636","v":-990931},{"$f":"F636-SUM(H636:Q636)","v":-846869},{"$f":"ROUND(F636*VLOOKUP(D636,ALLOCTABLE_Distr_Customer,$H$10,FALSE),0)","v":-116008},{"$f":"ROUND(F636*VLOOKUP(D636,ALLOCTABLE_Distr_Customer,$I$10,FALSE),0)","v":-941},{"$f":"ROUND(F636*VLOOKUP(D636,ALLOCTABLE_Distr_Customer,$J$10,FALSE),0)","v":-1130},{"$f":"ROUND(F636*VLOOKUP(D636,ALLOCTABLE_Distr_Customer,$K$10,FALSE),0)","v":-129},{"$f":"ROUND(F636*VLOOKUP(D636,ALLOCTABLE_Distr_Customer,$L$10,FALSE),0)","v":-3280},{"$f":"ROUND(F636*VLOOKUP(D636,ALLOCTABLE_Distr_Customer,$M$10,FALSE),0)","v":-228},{"$f":"ROUND(F636*VLOOKUP(D636,ALLOCTABLE_Distr_Customer,$N$10,FALSE),0)","v":-159},{"$f":"ROUND(F636*VLOOKUP(D636,ALLOCTABLE_Distr_Customer,$O$10,FALSE),0)","v":-79},{"$f":"ROUND(F636*VLOOKUP(D636,ALLOCTABLE_Distr_Customer,$P$10,FALSE),0)","v":-22009},{"$f":"ROUND(F636*VLOOKUP(D636,ALLOCTABLE_Distr_Customer,$Q$10,FALSE),0)","v":-99},{"$f":"SUM(G636:Q636)","v":-990931},{"$f":"F636-R636","v":0}]
[8,null,{"$f":"'FR-16(7)(v)-1 Functional'!C637","v":"PERMANENT DIFFERENCES"},{"$f":"'FR-16(7)(v)-1 Functional'!D637","v":"A357"},null,{"$f":"'FR-16(7)(v)-10 DIST Classified'!I637","v":-67952},{"$f":"F637-SUM(H637:Q637)","v":-54446},{"$f":"ROUND(F637*VLOOKUP(D637,ALLOCTABLE_Distr_Customer,$H$10,FALSE),0)","v":-10498},{"$f":"ROUND(F637*VLOOKUP(D637,ALLOCTABLE_Distr_Customer,$I$10,FALSE),0)","v":-64},{"$f":"ROUND(F637*VLOOKUP(D637,ALLOCTABLE_Distr_Customer,$J$10,FALSE),0)","v":-83},{"$f":"ROUND(F637*VLOOKUP(D637,ALLOCTABLE_Distr_Customer,$K$10,FALSE),0)","v":-12},{"$f":"ROUND(F637*VLOOKUP(D637,ALLOCTABLE_Distr_Customer,$L$10,FALSE),0)","v":-346},{"$f":"ROUND(F637*VLOOKUP(D637,ALLOCTABLE_Distr_Customer,$M$10,FALSE),0)","v":22},{"$f":"ROUND(F637*VLOOKUP(D637,ALLOCTABLE_Distr_Customer,$N$10,FALSE),0)","v":-14},{"$f":"ROUND(F637*VLOOKUP(D637,ALLOCTABLE_Distr_Customer,$O$10,FALSE),0)","v":3},{"$f":"ROUND(F637*VLOOKUP(D637,ALLOCTABLE_Distr_Customer,$P$10,FALSE),0)","v":-2505},{"$f":"ROUND(F637*VLOOKUP(D637,ALLOCTABLE_Distr_Customer,$Q$10,FALSE),0)","v":-9},{"$f":"SUM(G637:Q637)","v":-67952},{"$f":"F637-R637","v":0}]
[9,null,{"$f":"'FR-16(7)(v)-1 Functional'!C638","v":"TEMPORARY DIFFERENCES"},{"$f":"'FR-16(7)(v)-1 Functional'!D638","v":"DE49"},null,{"$f":"'FR-16(7)(v)-10 DIST Classified'!I638","v":6046509},{"$f":"F638-SUM(H638:Q638)","v":5167467},{"$f":"ROUND(F638*VLOOKUP(D638,ALLOCTABLE_Distr_Customer,$H$10,FALSE),0)","v":707865},{"$f":"ROUND(F638*VLOOKUP(D638,ALLOCTABLE_Distr_Customer,$I$10,FALSE),0)","v":5744},{"$f":"ROUND(F638*VLOOKUP(D638,ALLOCTABLE_Distr_Customer,$J$10,FALSE),0)","v":6893},{"$f":"ROUND(F638*VLOOKUP(D638,ALLOCTABLE_Distr_Customer,$K$10,FALSE),0)","v":786},{"$f":"ROUND(F638*VLOOKUP(D638,ALLOCTABLE_Distr_Customer,$L$10,FALSE),0)","v":20014},{"$f":"ROUND(F638*VLOOKUP(D638,ALLOCTABLE_Distr_Customer,$M$10,FALSE),0)","v":1391},{"$f":"ROUND(F638*VLOOKUP(D638,ALLOCTABLE_Distr_Customer,$N$10,FALSE),0)","v":967},{"$f":"ROUND(F638*VLOOKUP(D638,ALLOCTABLE_Distr_Customer,$O$10,FALSE),0)","v":484},{"$f":"ROUND(F638*VLOOKUP(D638,ALLOCTABLE_Distr_Customer,$P$10,FALSE),0)","v":134293},{"$f":"ROUND(F638*VLOOKUP(D638,ALLOCTABLE_Distr_Customer,$Q$10,FALSE),0)","v":605},{"$f":"SUM(G638:Q638)","v":6046509},{"$f":"F638-R638","v":0}]
[10,null,{"$f":"'FR-16(7)(v)-1 Functional'!C639","v":"  TOTAL OTHER DEDUCTIONS"},null,null,{"$f":"SUM(F636:F638)","v":4987626},{"$f":"SUM(G636:G638)","v":4266152},{"$f":"SUM(H636:H638)","v":581359},{"$f":"SUM(I636:I638)","v":4739},{"$f":"SUM(J636:J638)","v":5680},645,16388,1185,794,408,109779,{"$f":"SUM($Q$636:$Q$638)","v":497},{"$f":"SUM(R636:R638)","v":4987626},{"$f":"SUM(S636:S638)","v":0}]
[11]
[12,"NET DEDUCTIONS AND ADDITIONS",null,null,null,{"$f":"F639+F633","v":6831377},{"$f":"G639+G633","v":5844496},{"$f":"H639+H633","v":790791},{"$f":"I639+I633","v":6472},{"$f":"J639+J633","v":7763},885,22417,1812,1089,629,154342,{"$f":"$Q$639+$Q$633","v":681},{"$f":"R639+R633","v":6831377},{"$f":"S639+S633","v":0}]
[13]
[14," FED DEFERRED INCOME TAX (410 & 411)"]
[15,null,{"$f":"'FR-16(7)(v)-1 Functional'!C644","v":"DEFERRED INCOME TAXES - NET"},{"$f":"'FR-16(7)(v)-1 Functional'!D644","v":"OM39"},null,{"$f":"'FR-16(7)(v)-10 DIST Classified'!I644","v":858582},{"$f":"F644-SUM(H644:Q644)","v":691176},{"$f":"ROUND(F644*VLOOKUP(D644,ALLOCTABLE_Distr_Customer,$H$10,FALSE),0)","v":117995},{"$f":"ROUND(F644*VLOOKUP(D644,ALLOCTABLE_Distr_Customer,$I$10,FALSE),0)","v":798},{"$f":"ROUND(F644*VLOOKUP(D644,ALLOCTABLE_Distr_Customer,$J$10,FALSE),0)","v":927},{"$f":"ROUND(F644*VLOOKUP(D644,ALLOCTABLE_Distr_Customer,$K$10,FALSE),0)","v":129},{"$f":"ROUND(F644*VLOOKUP(D644,ALLOCTABLE_Distr_Customer,$L$10,FALSE),0)","v":3537},{"$f":"ROUND(F644*VLOOKUP(D644,ALLOCTABLE_Distr_Customer,$M$10,FALSE),0)","v":-137},{"$f":"ROUND(F644*VLOOKUP(D644,ALLOCTABLE_Distr_Customer,$N$10,FALSE),0)","v":146},{"$f":"ROUND(F644*VLOOKUP(D644,ALLOCTABLE_Distr_Customer,$O$10,FALSE),0)","v":0},{"$f":"ROUND(F644*VLOOKUP(D644,ALLOCTABLE_Distr_Customer,$P$10,FALSE),0)","v":43908},{"$f":"ROUND(F644*VLOOKUP(D644,ALLOCTABLE_Distr_Customer,$Q$10,FALSE),0)","v":103},{"$f":"SUM(G644:Q644)","v":858582},{"$f":"F644-R644","v":0}]
[16,null,{"$f":"'FR-16(7)(v)-1 Functional'!C645","v":"AMORT OF DEFERRED MERGER COST"},{"$f":"'FR-16(7)(v)-1 Functional'!D645","v":"A357"},null,{"$f":"'FR-16(7)(v)-10 DIST Classified'!I645","v":0},{"$f":"F645-SUM(H645:Q645)","v":0},{"$f":"ROUND(F645*VLOOKUP(D645,ALLOCTABLE_Distr_Customer,$H$10,FALSE),0)","v":0},{"$f":"ROUND(F645*VLOOKUP(D645,ALLOCTABLE_Distr_Customer,$I$10,FALSE),0)","v":0},{"$f":"ROUND(F645*VLOOKUP(D645,ALLOCTABLE_Distr_Customer,$J$10,FALSE),0)","v":0},{"$f":"ROUND(F645*VLOOKUP(D645,ALLOCTABLE_Distr_Customer,$K$10,FALSE),0)","v":0},{"$f":"ROUND(F645*VLOOKUP(D645,ALLOCTABLE_Distr_Customer,$L$10,FALSE),0)","v":0},{"$f":"ROUND(F645*VLOOKUP(D645,ALLOCTABLE_Distr_Customer,$M$10,FALSE),0)","v":0},{"$f":"ROUND(F645*VLOOKUP(D645,ALLOCTABLE_Distr_Customer,$N$10,FALSE),0)","v":0},{"$f":"ROUND(F645*VLOOKUP(D645,ALLOCTABLE_Distr_Customer,$O$10,FALSE),0)","v":0},{"$f":"ROUND(F645*VLOOKUP(D645,ALLOCTABLE_Distr_Customer,$P$10,FALSE),0)","v":0},{"$f":"ROUND(F645*VLOOKUP(D645,ALLOCTABLE_Distr_Customer,$Q$10,FALSE),0)","v":0},{"$f":"SUM(G645:Q645)","v":0},{"$f":"F645-R645","v":0}]
[17,null,{"$f":"'FR-16(7)(v)-1 Functional'!C646","v":"DIT ADJUSTMENT - S/L DEPRECIATION"},{"$f":"'FR-16(7)(v)-1 Functional'!D646","v":"DE49"},null,{"$f":"'FR-16(7)(v)-10 DIST Classified'!I646","v":0},{"$f":"F646-SUM(H646:Q646)","v":0},{"$f":"ROUND(F646*VLOOKUP(D646,ALLOCTABLE_Distr_Customer,$H$10,FALSE),0)","v":0},{"$f":"ROUND(F646*VLOOKUP(D646,ALLOCTABLE_Distr_Customer,$I$10,FALSE),0)","v":0},{"$f":"ROUND(F646*VLOOKUP(D646,ALLOCTABLE_Distr_Customer,$J$10,FALSE),0)","v":0},{"$f":"ROUND(F646*VLOOKUP(D646,ALLOCTABLE_Distr_Customer,$K$10,FALSE),0)","v":0},{"$f":"ROUND(F646*VLOOKUP(D646,ALLOCTABLE_Distr_Customer,$L$10,FALSE),0)","v":0},{"$f":"ROUND(F646*VLOOKUP(D646,ALLOCTABLE_Distr_Customer,$M$10,FALSE),0)","v":0},{"$f":"ROUND(F646*VLOOKUP(D646,ALLOCTABLE_Distr_Customer,$N$10,FALSE),0)","v":0},{"$f":"ROUND(F646*VLOOKUP(D646,ALLOCTABLE_Distr_Customer,$O$10,FALSE),0)","v":0},{"$f":"ROUND(F646*VLOOKUP(D646,ALLOCTABLE_Distr_Customer,$P$10,FALSE),0)","v":0},{"$f":"ROUND(F646*VLOOKUP(D646,ALLOCTABLE_Distr_Customer,$Q$10,FALSE),0)","v":0},{"$f":"SUM(G646:Q646)","v":0},{"$f":"F646-R646","v":0}]
[18,null,{"$f":"'FR-16(7)(v)-1 Functional'!C647","v":"DIT ADJUSTMENT - ARAM"},{"$f":"'FR-16(7)(v)-1 Functional'!D647","v":"K201"},null,{"$f":"'FR-16(7)(v)-10 DIST Classified'!I647","v":0},{"$f":"F647-SUM(H647:Q647)","v":0},{"$f":"ROUND(F647*VLOOKUP(D647,ALLOCTABLE_Distr_Customer,$H$10,FALSE),0)","v":0},{"$f":"ROUND(F647*VLOOKUP(D647,ALLOCTABLE_Distr_Customer,$I$10,FALSE),0)","v":0},{"$f":"ROUND(F647*VLOOKUP(D647,ALLOCTABLE_Distr_Customer,$J$10,FALSE),0)","v":0},{"$f":"ROUND(F647*VLOOKUP(D647,ALLOCTABLE_Distr_Customer,$K$10,FALSE),0)","v":0},{"$f":"ROUND(F647*VLOOKUP(D647,ALLOCTABLE_Distr_Customer,$L$10,FALSE),0)","v":0},{"$f":"ROUND(F647*VLOOKUP(D647,ALLOCTABLE_Distr_Customer,$M$10,FALSE),0)","v":0},{"$f":"ROUND(F647*VLOOKUP(D647,ALLOCTABLE_Distr_Customer,$N$10,FALSE),0)","v":0},{"$f":"ROUND(F647*VLOOKUP(D647,ALLOCTABLE_Distr_Customer,$O$10,FALSE),0)","v":0},{"$f":"ROUND(F647*VLOOKUP(D647,ALLOCTABLE_Distr_Customer,$P$10,FALSE),0)","v":0},{"$f":"ROUND(F647*VLOOKUP(D647,ALLOCTABLE_Distr_Customer,$Q$10,FALSE),0)","v":0},{"$f":"SUM(G647:Q647)","v":0},{"$f":"F647-R647","v":0}]
[19,null,{"$f":"'FR-16(7)(v)-1 Functional'!C648","v":"DIT ADJUSTMENT - AMORT OF EXCESS DEF TAXES"},{"$f":"'FR-16(7)(v)-1 Functional'!D648","v":"A357"},null,{"$f":"'FR-16(7)(v)-10 DIST Classified'!I648","v":-595877},{"$f":"F648-SUM(H648:Q648)","v":-477460},{"$f":"ROUND(F648*VLOOKUP(D648,ALLOCTABLE_Distr_Customer,$H$10,FALSE),0)","v":-92057},{"$f":"ROUND(F648*VLOOKUP(D648,ALLOCTABLE_Distr_Customer,$I$10,FALSE),0)","v":-560},{"$f":"ROUND(F648*VLOOKUP(D648,ALLOCTABLE_Distr_Customer,$J$10,FALSE),0)","v":-727},{"$f":"ROUND(F648*VLOOKUP(D648,ALLOCTABLE_Distr_Customer,$K$10,FALSE),0)","v":-101},{"$f":"ROUND(F648*VLOOKUP(D648,ALLOCTABLE_Distr_Customer,$L$10,FALSE),0)","v":-3033},{"$f":"ROUND(F648*VLOOKUP(D648,ALLOCTABLE_Distr_Customer,$M$10,FALSE),0)","v":191},{"$f":"ROUND(F648*VLOOKUP(D648,ALLOCTABLE_Distr_Customer,$N$10,FALSE),0)","v":-119},{"$f":"ROUND(F648*VLOOKUP(D648,ALLOCTABLE_Distr_Customer,$O$10,FALSE),0)","v":30},{"$f":"ROUND(F648*VLOOKUP(D648,ALLOCTABLE_Distr_Customer,$P$10,FALSE),0)","v":-21964},{"$f":"ROUND(F648*VLOOKUP(D648,ALLOCTABLE_Distr_Customer,$Q$10,FALSE),0)","v":-77},{"$f":"SUM(G648:Q648)","v":-595877},{"$f":"F648-R648","v":0}]
[20,null,{"$f":"'FR-16(7)(v)-1 Functional'!C649","v":"  TOTAL FED DEF IT (410 & 411)"},null,null,{"$f":"SUM(F644:F648)","v":262705},{"$f":"SUM(G644:G648)","v":213716},{"$f":"SUM(H644:H648)","v":25938},{"$f":"SUM(I644:I648)","v":238},{"$f":"SUM(J644:J648)","v":200},28,504,54,27,30,21944,{"$f":"SUM($Q$644:$Q$648)","v":26},{"$f":"SUM(R644:R648)","v":262705},{"$f":"SUM(S644:S648)","v":0}]
[21]
[22," AMORT INV TAX CREDIT"]
[23,null,{"$f":"'FR-16(7)(v)-1 Functional'!C652","v":"AMORTIZE ITC"},{"$f":"'FR-16(7)(v)-1 Functional'!D652","v":"NP29"},null,{"$f":"'FR-16(7)(v)-10 DIST Classified'!I652","v":41},{"$f":"F652-SUM(H652:Q652)","v":35},{"$f":"ROUND(F652*VLOOKUP(D652,ALLOCTABLE_Distr_Customer,$H$10,FALSE),0)","v":5},{"$f":"ROUND(F652*VLOOKUP(D652,ALLOCTABLE_Distr_Customer,$I$10,FALSE),0)","v":0},{"$f":"ROUND(F652*VLOOKUP(D652,ALLOCTABLE_Distr_Customer,$J$10,FALSE),0)","v":0},{"$f":"ROUND(F652*VLOOKUP(D652,ALLOCTABLE_Distr_Customer,$K$10,FALSE),0)","v":0},{"$f":"ROUND(F652*VLOOKUP(D652,ALLOCTABLE_Distr_Customer,$L$10,FALSE),0)","v":0},{"$f":"ROUND(F652*VLOOKUP(D652,ALLOCTABLE_Distr_Customer,$M$10,FALSE),0)","v":0},{"$f":"ROUND(F652*VLOOKUP(D652,ALLOCTABLE_Distr_Customer,$N$10,FALSE),0)","v":0},{"$f":"ROUND(F652*VLOOKUP(D652,ALLOCTABLE_Distr_Customer,$O$10,FALSE),0)","v":0},{"$f":"ROUND(F652*VLOOKUP(D652,ALLOCTABLE_Distr_Customer,$P$10,FALSE),0)","v":1},{"$f":"ROUND(F652*VLOOKUP(D652,ALLOCTABLE_Distr_Customer,$Q$10,FALSE),0)","v":0},{"$f":"SUM(G652:Q652)","v":41},{"$f":"F652-R652","v":0}]
[24,null,{"$f":"'FR-16(7)(v)-1 Functional'!C653","v":"  TOTAL AMORTIZED ITC"},null,null,{"$f":"SUM(F652:F652)","v":41},{"$f":"SUM(G652:G652)","v":35},{"$f":"SUM(H652:H652)","v":5},{"$f":"SUM(I652:I652)","v":0},{"$f":"SUM(J652:J652)","v":0},0,0,0,0,0,1,{"$f":"SUM($Q$652:$Q$652)","v":0},{"$f":"SUM(R652:R652)","v":41},{"$f":"SUM(S652:S652)","v":0}]
[25]
[26," OTHER FEDERAL TAX CREDITS"]
[27,null,{"$f":"'FR-16(7)(v)-1 Functional'!C656","v":"FUEL TAX CREDIT"},{"$f":"'FR-16(7)(v)-1 Functional'!D656","v":"K301"},null,{"$f":"'FR-16(7)(v)-10 DIST Classified'!I656","v":0},{"$f":"F656-SUM(H656:Q656)","v":0},{"$f":"ROUND(F656*VLOOKUP(D656,ALLOCTABLE_Distr_Customer,$H$10,FALSE),0)","v":0},{"$f":"ROUND(F656*VLOOKUP(D656,ALLOCTABLE_Distr_Customer,$I$10,FALSE),0)","v":0},{"$f":"ROUND(F656*VLOOKUP(D656,ALLOCTABLE_Distr_Customer,$J$10,FALSE),0)","v":0},{"$f":"ROUND(F656*VLOOKUP(D656,ALLOCTABLE_Distr_Customer,$K$10,FALSE),0)","v":0},{"$f":"ROUND(F656*VLOOKUP(D656,ALLOCTABLE_Distr_Customer,$L$10,FALSE),0)","v":0},{"$f":"ROUND(F656*VLOOKUP(D656,ALLOCTABLE_Distr_Customer,$M$10,FALSE),0)","v":0},{"$f":"ROUND(F656*VLOOKUP(D656,ALLOCTABLE_Distr_Customer,$N$10,FALSE),0)","v":0},{"$f":"ROUND(F656*VLOOKUP(D656,ALLOCTABLE_Distr_Customer,$O$10,FALSE),0)","v":0},{"$f":"ROUND(F656*VLOOKUP(D656,ALLOCTABLE_Distr_Customer,$P$10,FALSE),0)","v":0},{"$f":"ROUND(F656*VLOOKUP(D656,ALLOCTABLE_Distr_Customer,$Q$10,FALSE),0)","v":0},{"$f":"SUM(G656:Q656)","v":0},{"$f":"F656-R656","v":0}]
[28,null,{"$f":"'FR-16(7)(v)-1 Functional'!C657","v":"R&D CREDIT - SECTION 41"},{"$f":"'FR-16(7)(v)-1 Functional'!D657","v":"A315"},null,{"$f":"'FR-16(7)(v)-10 DIST Classified'!I657","v":0},{"$f":"F657-SUM(H657:Q657)","v":0},{"$f":"ROUND(F657*VLOOKUP(D657,ALLOCTABLE_Distr_Customer,$H$10,FALSE),0)","v":0},{"$f":"ROUND(F657*VLOOKUP(D657,ALLOCTABLE_Distr_Customer,$I$10,FALSE),0)","v":0},{"$f":"ROUND(F657*VLOOKUP(D657,ALLOCTABLE_Distr_Customer,$J$10,FALSE),0)","v":0},{"$f":"ROUND(F657*VLOOKUP(D657,ALLOCTABLE_Distr_Customer,$K$10,FALSE),0)","v":0},{"$f":"ROUND(F657*VLOOKUP(D657,ALLOCTABLE_Distr_Customer,$L$10,FALSE),0)","v":0},{"$f":"ROUND(F657*VLOOKUP(D657,ALLOCTABLE_Distr_Customer,$M$10,FALSE),0)","v":0},{"$f":"ROUND(F657*VLOOKUP(D657,ALLOCTABLE_Distr_Customer,$N$10,FALSE),0)","v":0},{"$f":"ROUND(F657*VLOOKUP(D657,ALLOCTABLE_Distr_Customer,$O$10,FALSE),0)","v":0},{"$f":"ROUND(F657*VLOOKUP(D657,ALLOCTABLE_Distr_Customer,$P$10,FALSE),0)","v":0},{"$f":"ROUND(F657*VLOOKUP(D657,ALLOCTABLE_Distr_Customer,$Q$10,FALSE),0)","v":0},{"$f":"SUM(G657:Q657)","v":0},{"$f":"F657-R657","v":0}]
[29,null,"  TOTAL OTHER FEDERAL TAX CREDITS",null,null,{"$f":"SUM(F656:F657)","v":0},{"$f":"SUM(G656:G657)","v":0},{"$f":"SUM(H656:H657)","v":0},{"$f":"SUM(I656:I657)","v":0},{"$f":"SUM(J656:J657)","v":0},0,0,0,0,0,0,{"$f":"SUM($Q$656:$Q$657)","v":0},{"$f":"SUM(R656:R657)","v":0},{"$f":"SUM(S656:S657)","v":0}]
[30]
[31,"PRELIMINARY SUMMARY"]
[32,null,{"$f":"'FR-16(7)(v)-1 Functional'!C661","v":"TOTAL FED DEF IT (410 & 411)"},null,null,{"$f":"F649","v":262705},{"$f":"G649","v":213716},{"$f":"H649","v":25938},{"$f":"I649","v":238},{"$f":"J649","v":200},28,504,54,27,30,21944,{"$f":"$Q$649","v":26},{"$f":"R649","v":262705},{"$f":"S649","v":0}]
[33,null,{"$f":"'FR-16(7)(v)-1 Functional'!C662","v":"TOTAL AMORTIZED ITC & OTHER FEDERAL TAX CREDITS"},null,null,{"$f":"-F653-F658","v":-41},{"$f":"-G653-G658","v":-35},-5,0,{"$f":"-J653-J658","v":0},0,0,0,0,0,-1,0,-41,0]
[34,null,{"$f":"'FR-16(7)(v)-1 Functional'!C663","v":"  TOTAL FEDERAL TAX ADJUSTMENTS"},null,null,{"$f":"SUM(F661:F662)","v":262664},{"$f":"SUM(G661:G662)","v":213681},{"$f":"SUM(H661:H662)","v":25933},{"$f":"SUM(I661:I662)","v":238},{"$f":"SUM(J661:J662)","v":200},28,504,54,27,30,21943,{"$f":"SUM($Q$661:$Q$662)","v":26},{"$f":"SUM(R661:R662)","v":262664},{"$f":"SUM(S661:S662)","v":0}]
[35]
[36,"FEDERAL INCOME TAX COMPUTATION"]
[37,null,"RETURN ON RATE BASE",null,null,{"$f":"F433","v":6237250},{"$f":"G433","v":5339398},{"$f":"H433","v":708489},{"$f":"I433","v":5863},{"$f":"J433","v":7048},811,20396,2121,998,748,150754,{"$f":"Q433","v":624},{"$f":"R433","v":6237250},{"$f":"F666-R666","v":0}]
[38,null,{"$f":"'FR-16(7)(v)-1 Functional'!C667","v":"NET DEDUCTIONS AND ADDITIONS"},null,null,{"$f":"-F641","v":-6831377},{"$f":"-G641","v":-5844496},{"$f":"-H641","v":-790791},{"$f":"-I641","v":-6472},{"$f":"-J641","v":-7763},-885,-22417,-1812,-1089,-629,-154342,{"$f":"-$Q$641","v":-681},{"$f":"-R641","v":-6831377},{"$f":"F667-R667","v":0}]
[39,null,{"$f":"'FR-16(7)(v)-1 Functional'!C668","v":"TOTAL FEDERAL TAX ADJUSTMENTS"},null,null,{"$f":"F663","v":262664},{"$f":"G663","v":213681},{"$f":"H663","v":25933},{"$f":"I663","v":238},{"$f":"J663","v":200},28,504,54,27,30,21943,{"$f":"$Q$663","v":26},{"$f":"R663","v":262664},{"$f":"F668-R668","v":0}]
[40,null,"TOTAL STATE PROV DEF IT (410 & 411)",null,null,{"$f":"F707","v":591308},{"$f":"G707","v":473797},{"$f":"H707","v":91351},{"$f":"I707","v":556},{"$f":"J707","v":721},101,3010,-189,118,-30,21796,{"$f":"Q707","v":77},{"$f":"R707","v":591308},{"$f":"F669-R669","v":0}]
[41,null,"RESERVED",null,null,{"$f":"F24","v":0},{"$f":"G24","v":0},{"$f":"H24","v":0},{"$f":"I24","v":0},{"$f":"J24","v":0},0,0,0,0,0,0,{"$f":"Q24","v":0},{"$f":"R24","v":0},{"$f":"F670-R670","v":0}]
[42,null,{"$f":"'FR-16(7)(v)-1 Functional'!C671","v":"  BASE FOR FIT COMPUATION"},null,null,{"$f":"SUM(F666:F670)","v":259845},{"$f":"SUM(G666:G670)","v":182380},{"$f":"SUM(H666:H670)","v":34982},{"$f":"SUM(I666:I670)","v":185},{"$f":"SUM(J666:J670)","v":206},55,1493,174,54,119,40151,{"$f":"SUM($Q$666:$Q$670)","v":46},{"$f":"SUM(R666:R670)","v":259845},{"$f":"SUM(S666:S670)","v":0}]
[43]
[44,null,{"$f":"'FR-16(7)(v)-1 Functional'!C673","v":"FIT FACTOR K190/(1-K190)"},null,null,{"$f":"ROUND(FIT/(1-FIT),9)","v":0.26582278500000001},0.26582278500000001,0.26582278500000001,0.26582278500000001,0.26582278500000001,0.26582278500000001,0.26582278500000001,0.26582278500000001,0.26582278500000001,0.26582278500000001,0.26582278500000001,0.26582278500000001,null,{"$f":"ROUND(R815/(1-R815),9)","v":0.26582278500000001}]
[45,null,{"$f":"'FR-16(7)(v)-1 Functional'!C674","v":"PRELIM FED INCOME TAX"},null,null,{"$f":"ROUND(F673*F671,0)","v":69073},{"$f":"F674-SUM(H674:Q674)","v":48481},{"$f":"ROUND(H671*H673,0)","v":9299},{"$f":"ROUND(I671*I673,0)","v":49},{"$f":"ROUND(J671*J673,0)","v":55},15,397,46,14,32,10673,{"$f":"ROUND($Q$671*$Q$673,0)","v":12},{"$f":"SUM(G674:Q674)","v":69073},{"$f":"F674-R674","v":0}]
[46,null,{"$f":"'FR-16(7)(v)-1 Functional'!C675","v":"TOTAL FEDERAL TAX ADJUSTMENTS"},null,null,{"$f":"F663","v":262664},{"$f":"G663","v":213681},{"$f":"H663","v":25933},{"$f":"I663","v":238},{"$f":"J663","v":200},28,504,54,27,30,21943,{"$f":"$Q$663","v":26},{"$f":"R663","v":262664},{"$f":"F675-R675","v":0}]
[47,null,{"$f":"'FR-16(7)(v)-1 Functional'!C676","v":"  NET FED INCOME TAX ALLOWABLE"},null,null,{"$f":"SUM(F674:F675)","v":331737},{"$f":"SUM(G674:G675)","v":262162},{"$f":"SUM(H674:H675)","v":35232},{"$f":"SUM(I674:I675)","v":287},{"$f":"SUM(J674:J675)","v":255},43,901,100,41,62,32616,{"$f":"SUM($Q$674:$Q$675)","v":38},{"$f":"SUM(R674:R675)","v":331737},{"$f":"SUM(S674:S675)","v":0}]
[48]
[49,"INCOME TAX BASED ON RETURN"]
[50,"FEDERAL INCOME TAX PAYABLE"]
[51,null,{"$f":"'FR-16(7)(v)-1 Functional'!C680","v":"PRELIM FEDERAL INCOME TAX"},null,null,{"$f":"F674","v":69073},{"$f":"G674","v":48481},{"$f":"H674","v":9299},{"$f":"I674","v":49},{"$f":"J674","v":55},15,397,46,14,32,10673,{"$f":"$Q$674","v":12},{"$f":"R674","v":69073},{"$f":"S674","v":0}]
[53,null,{"$f":"'FR-16(7)(v)-1 Functional'!C681","v":"  NET FED INCOME TAX PAYABLE"},null,null,{"$f":"SUM(F680:F680)","v":69073},{"$f":"SUM(G680:G680)","v":48481},{"$f":"SUM(H680:H680)","v":9299},{"$f":"SUM(I680:I680)","v":49},{"$f":"SUM(J680:J680)","v":55},15,397,46,14,32,10673,{"$f":"SUM($Q$680:$Q$680)","v":12},{"$f":"SUM(R680:R680)","v":69073},{"$f":"SUM(S680:S680)","v":0}]
[]
[{"$f":"co_name","v":"DUKE ENERGY KENTUCKY, INC."},null,null,null,null,null,null,null,null,null,null,null,null,null,null,null,null,{"$f":"R1","v":"FR-16(7)(v)-13"}]
[{"$f":"$A$2","v":"DISTRIBUTION CUSTOMER ALLOCATED - ELECTRIC COST OF SERVICE"},null,null,null,null,null,null,null,null,null,null,null,null,null,null,null,null,{"$f":"R2","v":"WITNESS RESPONSIBLE:"}]
[{"$f":"case_name","v":"CASE NO: 2019-00271"},null,null,null,null,null,null,null,null,null,null,null,null,null,null,null,null,{"$f":"Witness","v":"JAMES E. ZIOLKOWSKI"}]
[{"$f":"data_filing","v":"DATA: 12 MONTHS ACTUAL  & 0 MONTHS ESTIMATED"},null,null,null,null,null,null,null,null,null,null,null,null,null,null,null,null,{"$f":"\"PAGE \"&Pages-5&\" OF \"&Pages","v":"PAGE 13 OF 18"}]
[{"$f":"type","v":"TYPE OF FILING: \"X\" ORIGINAL   UPDATED    REVISED  "}]
[]
[null,null,null,null,null,{"$f":"F$7","v":"TOTAL"},null,{"$f":"H$7","v":"DS"},{"$f":"I$7","v":"GSFL"},{"$f":"J$7","v":"EH"},{"$f":"K$7","v":"SP"},"DT SEC","DT PRI","DP","TT",null,"OTHER"]
["LINE",null,null,null,null,{"$f":"F$8","v":"DISTRIBUTION"},{"$f":"G$8","v":"RS"},{"$f":"H$8","v":"SECONDARY"},{"$f":"I$8","v":"SECONDARY"},{"$f":"J$8","v":"SECONDARY"},{"$f":"K$8","v":"SECONDARY"},"SECONDARY","PRIMARY","PRIMARY","TRANSMISSION","LT","WATER",{"$f":"R8","v":"TOTAL"},"ALL"]
["NO.","STATE INCOME TAX BASED ON RETURN",null,"Allo",null,{"$f":"F$9","v":"CUSTOMER"},{"$f":"G$9","v":"RESIDENTIAL"},{"$f":"H$9","v":"DISTRIBUTION"},{"$f":"I$9","v":"DISTRIBUTION"},{"$f":"J$9","v":"DISTRIBUTION"},{"$f":"K$9","v":"DISTRIBUTION"},"DISTRIBUTION","DISTRIBUTION","DISTRIBUTION","TIME OF DAY","LIGHTING","PUMPING",{"$f":"R9","v":"AT ISSUE"},"OTHER"]
[null,null,"Schedule 9.1",null,null,null,{"$f":"G$10","v":3},{"$f":"H$10","v":4},{"$f":"I$10","v":5},{"$f":"J$10","v":6},{"$f":"K$10","v":7},8,9,10,11,12,13,null," "]
[1,"DEDUCTIONS IN ADDITION TO Y871"]
[2,"KY TAXABLE INCOME ADJUSTMENT",null,{"$f":"'FR-16(7)(v)-1 Functional'!D694","v":"NP29"},null,{"$f":"'FR-16(7)(v)-10 DIST Classified'!I694","v":819919},{"$f":"F694-SUM(H694:Q694)","v":703137},{"$f":"ROUND(F694*VLOOKUP(D694,ALLOCTABLE_Distr_Customer,$H$10,FALSE),0)","v":90863},{"$f":"ROUND(F694*VLOOKUP(D694,ALLOCTABLE_Distr_Customer,$I$10,FALSE),0)","v":763},{"$f":"ROUND(F694*VLOOKUP(D694,ALLOCTABLE_Distr_Customer,$J$10,FALSE),0)","v":927},{"$f":"ROUND(F694*VLOOKUP(D694,ALLOCTABLE_Distr_Customer,$K$10,FALSE),0)","v":107},{"$f":"ROUND(F694*VLOOKUP(D694,ALLOCTABLE_Distr_Customer,$L$10,FALSE),0)","v":2493},{"$f":"ROUND(F694*VLOOKUP(D694,ALLOCTABLE_Distr_Customer,$M$10,FALSE),0)","v":262},{"$f":"ROUND(F694*VLOOKUP(D694,ALLOCTABLE_Distr_Customer,$N$10,FALSE),0)","v":123},{"$f":"ROUND(F694*VLOOKUP(D694,ALLOCTABLE_Distr_Customer,$O$10,FALSE),0)","v":82},{"$f":"ROUND(F694*VLOOKUP(D694,ALLOCTABLE_Distr_Customer,$P$10,FALSE),0)","v":21088},{"$f":"ROUND(F694*VLOOKUP(D694,ALLOCTABLE_Distr_Customer,$Q$10,FALSE),0)","v":74},{"$f":"SUM(G694:Q694)","v":819919},{"$f":"F694-R694","v":0}]
[3,"RESERVED FOR FUTURE USE",null,{"$f":"'FR-16(7)(v)-1 Functional'!D695","v":"NP29"},null,{"$f":"'FR-16(7)(v)-10 DIST Classified'!I695","v":0},{"$f":"F695-SUM(H695:Q695)","v":0},{"$f":"ROUND(F695*VLOOKUP(D695,ALLOCTABLE_Distr_Customer,$H$10,FALSE),0)","v":0},{"$f":"ROUND(F695*VLOOKUP(D695,ALLOCTABLE_Distr_Customer,$I$10,FALSE),0)","v":0},{"$f":"ROUND(F695*VLOOKUP(D695,ALLOCTABLE_Distr_Customer,$J$10,FALSE),0)","v":0},{"$f":"ROUND(F695*VLOOKUP(D695,ALLOCTABLE_Distr_Customer,$K$10,FALSE),0)","v":0},{"$f":"ROUND(F695*VLOOKUP(D695,ALLOCTABLE_Distr_Customer,$L$10,FALSE),0)","v":0},{"$f":"ROUND(F695*VLOOKUP(D695,ALLOCTABLE_Distr_Customer,$M$10,FALSE),0)","v":0},{"$f":"ROUND(F695*VLOOKUP(D695,ALLOCTABLE_Distr_Customer,$N$10,FALSE),0)","v":0},{"$f":"ROUND(F695*VLOOKUP(D695,ALLOCTABLE_Distr_Customer,$O$10,FALSE),0)","v":0},{"$f":"ROUND(F695*VLOOKUP(D695,ALLOCTABLE_Distr_Customer,$P$10,FALSE),0)","v":0},{"$f":"ROUND(F695*VLOOKUP(D695,ALLOCTABLE_Distr_Customer,$Q$10,FALSE),0)","v":0},{"$f":"SUM(G695:Q695)","v":0},{"$f":"F695-R695","v":0}]
[4,"  DEDUCTIONS IN ADD TO Y871",null,null,null,{"$f":"SUM(F694:F695)","v":819919},{"$f":"SUM(G694:G695)","v":703137},90863,763,{"$f":"SUM(J694:J695)","v":927},107,2493,262,123,82,21088,74,819919,0]
[5]
[6,"STATE INCOME TAX ADJUSTMENTS"]
[7,"STATE PROV DEF INC TAX (410 & 411)"]
[8,"OTHER DEFERRED INCOME TAXES - NET",null,{"$f":"'FR-16(7)(v)-1 Functional'!D700","v":"A357"},null,{"$f":"'FR-16(7)(v)-10 DIST Classified'!I700","v":591308},{"$f":"F700-SUM(H700:Q700)","v":473797},{"$f":"ROUND(F700*VLOOKUP(D700,ALLOCTABLE_Distr_Customer,$H$10,FALSE),0)","v":91351},{"$f":"ROUND(F700*VLOOKUP(D700,ALLOCTABLE_Distr_Customer,$I$10,FALSE),0)","v":556},{"$f":"ROUND(F700*VLOOKUP(D700,ALLOCTABLE_Distr_Customer,$J$10,FALSE),0)","v":721},{"$f":"ROUND(F700*VLOOKUP(D700,ALLOCTABLE_Distr_Customer,$K$10,FALSE),0)","v":101},{"$f":"ROUND(F700*VLOOKUP(D700,ALLOCTABLE_Distr_Customer,$L$10,FALSE),0)","v":3010},{"$f":"ROUND(F700*VLOOKUP(D700,ALLOCTABLE_Distr_Customer,$M$10,FALSE),0)","v":-189},{"$f":"ROUND(F700*VLOOKUP(D700,ALLOCTABLE_Distr_Customer,$N$10,FALSE),0)","v":118},{"$f":"ROUND(F700*VLOOKUP(D700,ALLOCTABLE_Distr_Customer,$O$10,FALSE),0)","v":-30},{"$f":"ROUND(F700*VLOOKUP(D700,ALLOCTABLE_Distr_Customer,$P$10,FALSE),0)","v":21796},{"$f":"ROUND(F700*VLOOKUP(D700,ALLOCTABLE_Distr_Customer,$Q$10,FALSE),0)","v":77},{"$f":"SUM(G700:Q700)","v":591308},{"$f":"F700-R700","v":0}]
[9,"  TOT STATE PROV DEF IT (410 & 411)",null,null,null,{"$f":"SUM(F700)","v":591308},{"$f":"SUM(G700)","v":473797},91351,556,{"$f":"SUM(J700)","v":721},101,3010,-189,118,-30,21796,77,591308,0]
[10]
[11,"OTHER SIT ADJUSTMENTS"]
[12,"CURRENT YEAR PAYABLE ADJUSTMENT",null,{"$f":"'FR-16(7)(v)-1 Functional'!D704","v":"NP29"},null,{"$f":"'FR-16(7)(v)-10 DIST Classified'!I704","v":0},{"$f":"F704-SUM(H704:Q704)","v":0},{"$f":"ROUND(F704*VLOOKUP(D704,ALLOCTABLE_Distr_Customer,$H$10,FALSE),0)","v":0},{"$f":"ROUND(F704*VLOOKUP(D704,ALLOCTABLE_Distr_Customer,$I$10,FALSE),0)","v":0},{"$f":"ROUND(F704*VLOOKUP(D704,ALLOCTABLE_Distr_Customer,$J$10,FALSE),0)","v":0},{"$f":"ROUND(F704*VLOOKUP(D704,ALLOCTABLE_Distr_Customer,$K$10,FALSE),0)","v":0},{"$f":"ROUND(F704*VLOOKUP(D704,ALLOCTABLE_Distr_Customer,$L$10,FALSE),0)","v":0},{"$f":"ROUND(F704*VLOOKUP(D704,ALLOCTABLE_Distr_Customer,$M$10,FALSE),0)","v":0},{"$f":"ROUND(F704*VLOOKUP(D704,ALLOCTABLE_Distr_Customer,$N$10,FALSE),0)","v":0},{"$f":"ROUND(F704*VLOOKUP(D704,ALLOCTABLE_Distr_Customer,$O$10,FALSE),0)","v":0},{"$f":"ROUND(F704*VLOOKUP(D704,ALLOCTABLE_Distr_Customer,$P$10,FALSE),0)","v":0},{"$f":"ROUND(F704*VLOOKUP(D704,ALLOCTABLE_Distr_Customer,$Q$10,FALSE),0)","v":0},{"$f":"SUM(G704:Q704)","v":0},{"$f":"F704-R704","v":0}]
[13,"  OTHER SIT ADJUSMENTS",null,null,null,{"$f":"SUM(F704)","v":0},{"$f":"SUM(G704)","v":0},{"$f":"SUM(H704)","v":0},{"$f":"SUM(I704)","v":0},{"$f":"SUM(J704)","v":0},0,0,0,0,0,0,{"$f":"SUM(Q704)","v":0},{"$f":"SUM(R704)","v":0},{"$f":"SUM(S704)","v":0}]
[14]
[15,"TOTAL STATE INC TAX ADJUSTMENT",null,null,null,{"$f":"F705+F701","v":591308},{"$f":"G705+G701","v":473797},{"$f":"H705+H701","v":91351},{"$f":"I705+I701","v":556},{"$f":"J705+J701","v":721},101,3010,-189,118,-30,21796,{"$f":"Q705+Q701","v":77},{"$f":"R705+R701","v":591308},{"$f":"S705+S701","v":0}]
[16]
[17,"INCOME TAX BASED ON RETURN"]
[18,"SUMMARY OF SIT CALCULATION"]
[19,"RETURN ON RATE BASE",null,null,null,{"$f":"F433","v":6237250},{"$f":"G433","v":5339398},{"$f":"H433","v":708489},{"$f":"I433","v":5863},{"$f":"J433","v":7048},811,20396,2121,998,748,150754,{"$f":"Q433","v":624},{"$f":"R433","v":6237250},{"$f":"S433","v":0}]
[20,"NET FED INCOME TAX ALLOWABLE",null,null,null,{"$f":"F676","v":331737},{"$f":"G676","v":262162},{"$f":"H676","v":35232},{"$f":"I676","v":287},{"$f":"J676","v":255},43,901,100,41,62,32616,{"$f":"Q676","v":38},{"$f":"R676","v":331737},{"$f":"S676","v":0}]
[21,"NET FED. DED. AND ADDITIONS",null,null,null,{"$f":"-F641","v":-6831377},{"$f":"-G641","v":-5844496},{"$f":"-H641","v":-790791},{"$f":"-I641","v":-6472},{"$f":"-J641","v":-7763},-885,-22417,-1812,-1089,-629,-154342,{"$f":"-Q641","v":-681},{"$f":"-R641","v":-6831377},{"$f":"-S641","v":0}]
[22,"DEDUCTIONS IN ADD TO Y871",null,null,null,{"$f":"-F696","v":-819919},{"$f":"-G696","v":-703137},{"$f":"-H696","v":-90863},{"$f":"-I696","v":-763},{"$f":"-J696","v":-927},-107,-2493,-262,-123,-82,-21088,{"$f":"-Q696","v":-74},{"$f":"-R696","v":-819919},{"$f":"-S696","v":0}]
[23,"RESERVED",null,null,null,{"$f":"F24","v":0},{"$f":"G24","v":0},{"$f":"H24","v":0},{"$f":"I24","v":0},{"$f":"J24","v":0},0,0,0,0,0,0,{"$f":"Q24","v":0},{"$f":"R24","v":0},{"$f":"S24","v":0}]
[24,"TOTAL STATE INC TAX ADJ",null,null,null,{"$f":"F707","v":591308},{"$f":"G707","v":473797},{"$f":"H707","v":91351},{"$f":"I707","v":556},{"$f":"J707","v":721},101,3010,-189,118,-30,21796,{"$f":"Q707","v":77},{"$f":"R707","v":591308},{"$f":"S707","v":0}]
[25,"  BASE FOR SIT COMPUTATION",null,null,null,{"$f":"SUM(F711:F716)","v":-491001},{"$f":"SUM(G711:G716)","v":-472276},{"$f":"SUM(H711:H716)","v":-46582},{"$f":"SUM(I711:I716)","v":-529},{"$f":"SUM(J711:J716)","v":-666},-37,-603,-42,-55,69,29736,{"$f":"SUM(Q711:Q716)","v":-16},{"$f":"SUM(R711:R716)","v":-491001},{"$f":"SUM(S711:S716)","v":0}]
[26]
[27,"SIT FACTOR K192/(1-K192)",null,null,null,{"$f":"ROUND(SIT/(1-SIT),8)","v":5.2282660000000002E-2},5.2282660000000002E-2,5.2282660000000002E-2,5.2282660000000002E-2,5.2282660000000002E-2,5.2282660000000002E-2,5.2282660000000002E-2,5.2282660000000002E-2,5.2282660000000002E-2,5.2282660000000002E-2,5.2282660000000002E-2,5.2282660000000002E-2,5.2282660000000002E-2,5.2282660000000002E-2]
[28,"PRELIMINARY STATE INCOME TAX",null,null,null,{"$f":"ROUND(F717*F719,0)","v":-25671},{"$f":"F720-SUM(H720:Q720)","v":-24692},{"$f":"ROUND(H717*H719,0)","v":-2435},{"$f":"ROUND(I717*I719,0)","v":-28},{"$f":"ROUND(J717*J719,0)","v":-35},-2,-32,-2,-3,4,1555,{"$f":"ROUND(Q717*Q719,0)","v":-1},{"$f":"SUM(G720:Q720)","v":-25671},{"$f":"F720-R720","v":0}]
[29,"TOTAL STATE INCOME TAX ADJ.",null,null,null,{"$f":"F707","v":591308},{"$f":"G707","v":473797},{"$f":"H707","v":91351},{"$f":"I707","v":556},{"$f":"J707","v":721},101,3010,-189,118,-30,21796,{"$f":"Q707","v":77},{"$f":"SUM(G721:Q721)","v":591308},{"$f":"F721-R721","v":0}]
[30,"  NET STATE INC TAX ALLOWABLE",null,null,null,{"$f":"F721+F720","v":565637},449105,88916,528,{"$f":"J721+J720","v":686},99,2978,-191,115,-26,23351,76,565637,{"$f":"S721+S720","v":0}]
[31]
[32,"STATE INCOME TAX PAYABLE"]
[33,"PRELIMINARY STATE INCOME TAX",null,null,null,{"$f":"F720","v":-25671},{"$f":"G720","v":-24692},{"$f":"H720","v":-2435},{"$f":"I720","v":-28},{"$f":"J720","v":-35},-2,-32,-2,-3,4,1555,{"$f":"Q720","v":-1},{"$f":"SUM(G725:Q725)","v":-25671},{"$f":"F725-R725","v":0}]
[34,"OTHER SIT ADJUSTMENTS",null,null,null,{"$f":"F705","v":0},{"$f":"G705","v":0},{"$f":"H705","v":0},{"$f":"I705","v":0},{"$f":"J705","v":0},0,0,0,0,0,0,{"$f":"Q705","v":0},{"$f":"SUM(G726:Q726)","v":0},{"$f":"F726-R726","v":0}]
[35,"  NET STATE INCOME TAX PAYABLE",null,null,null,{"$f":"F725+F726","v":-25671},-24692,-2435,-28,{"$f":"J725+J726","v":-35},-2,-32,-2,-3,4,1555,-1,-25671,{"$f":"S725+S726","v":0}]
[36]
[37,"COMPOSITE TAX RATE",null,null,null,{"$f":"(SIT*(1-FIT))+((1-SIT)*(1-FIT)*RevTax)+FIT","v":0.24925115},0.24925115,0.24925115,0.24925115,0.24925115,0.24925115,0.24925115,0.24925115,0.24925115,0.24925115,0.24925115,0.24925115,0.24925115,0.24925115]
[]
[{"$f":"co_name","v":"DUKE ENERGY KENTUCKY, INC."},null,null,null,null,null,null,null,null,null,null,null,null,null,null,null,null,{"$f":"R1","v":"FR-16(7)(v)-13"}]
[{"$f":"$A$2","v":"DISTRIBUTION CUSTOMER ALLOCATED - ELECTRIC COST OF SERVICE"},null,null,null,null,null,null,null,null,null,null,null,null,null,null,null,null,{"$f":"R2","v":"WITNESS RESPONSIBLE:"}]
[{"$f":"case_name","v":"CASE NO: 2019-00271"},null,null,null,null,null,null,null,null,null,null,null,null,null,null,null,null,{"$f":"Witness","v":"JAMES E. ZIOLKOWSKI"}]
[{"$f":"data_filing","v":"DATA: 12 MONTHS ACTUAL  & 0 MONTHS ESTIMATED"},null,null,null,null,null,null,null,null,null,null,null,null,null,null,null,null,{"$f":"\"PAGE \"&Pages-4&\" OF \"&Pages","v":"PAGE 14 OF 18"}]
[{"$f":"type","v":"TYPE OF FILING: \"X\" ORIGINAL   UPDATED    REVISED  "}]
[]
[null,null,null,null,null,{"$f":"F$7","v":"TOTAL"},null,{"$f":"H$7","v":"DS"},{"$f":"I$7","v":"GSFL"},{"$f":"J$7","v":"EH"},{"$f":"K$7","v":"SP"},"DT SEC","DT PRI","DP","TT",null,"OTHER"]
["LINE",null,null,null,null,{"$f":"F$8","v":"DISTRIBUTION"},{"$f":"G$8","v":"RS"},{"$f":"H$8","v":"SECONDARY"},{"$f":"I$8","v":"SECONDARY"},{"$f":"J$8","v":"SECONDARY"},{"$f":"K$8","v":"SECONDARY"},"SECONDARY","PRIMARY","PRIMARY","TRANSMISSION","LT","WATER",{"$f":"R8","v":"TOTAL"},"ALL"]
["NO.","COST OF SERVICE COMPUTATION",null,"ALLO",null,{"$f":"F$9","v":"CUSTOMER"},{"$f":"G$9","v":"RESIDENTIAL"},{"$f":"H$9","v":"DISTRIBUTION"},{"$f":"I$9","v":"DISTRIBUTION"},{"$f":"J$9","v":"DISTRIBUTION"},{"$f":"K$9","v":"DISTRIBUTION"},"DISTRIBUTION","DISTRIBUTION","DISTRIBUTION","TIME OF DAY","LIGHTING","PUMPING",{"$f":"R9","v":"AT ISSUE"},"OTHER"]
[null,null,"Schedule 10",null,null,null,{"$f":"G$10","v":3},{"$f":"H$10","v":4},{"$f":"I$10","v":5},{"$f":"J$10","v":6},{"$f":"K$10","v":7},8,9,10,11,12,13,null," "]
[1,"OTHER OPERATING REVENUES"]
[2,null,{"$f":"'FR-16(7)(v)-1 Functional'!C742","v":"MISC SERVICE REVENUE"},{"$f":"'FR-16(7)(v)-1 Functional'!D742","v":"D249"},null,{"$f":"'FR-16(7)(v)-10 DIST Classified'!I742","v":60814},{"$f":"F742-SUM(H742:Q742)","v":52234},{"$f":"ROUND(F742*VLOOKUP(D742,ALLOCTABLE_Distr_Customer,$H$10,FALSE),0)","v":6566},{"$f":"ROUND(F742*VLOOKUP(D742,ALLOCTABLE_Distr_Customer,$I$10,FALSE),0)","v":56},{"$f":"ROUND(F742*VLOOKUP(D742,ALLOCTABLE_Distr_Customer,$J$10,FALSE),0)","v":68},{"$f":"ROUND(F742*VLOOKUP(D742,ALLOCTABLE_Distr_Customer,$K$10,FALSE),0)","v":7},{"$f":"ROUND(F742*VLOOKUP(D742,ALLOCTABLE_Distr_Customer,$L$10,FALSE),0)","v":178},{"$f":"ROUND(F742*VLOOKUP(D742,ALLOCTABLE_Distr_Customer,$M$10,FALSE),0)","v":23},{"$f":"ROUND(F742*VLOOKUP(D742,ALLOCTABLE_Distr_Customer,$N$10,FALSE),0)","v":9},{"$f":"ROUND(F742*VLOOKUP(D742,ALLOCTABLE_Distr_Customer,$O$10,FALSE),0)","v":7},{"$f":"ROUND(F742*VLOOKUP(D742,ALLOCTABLE_Distr_Customer,$P$10,FALSE),0)","v":1661},{"$f":"ROUND(F742*VLOOKUP(D742,ALLOCTABLE_Distr_Customer,$Q$10,FALSE),0)","v":5},{"$f":"SUM(G742:Q742)","v":60814},{"$f":"F742-R742","v":0}]
[3,null,{"$f":"'FR-16(7)(v)-1 Functional'!C743","v":"INTERDEPARTMENTAL"},{"$f":"'FR-16(7)(v)-1 Functional'!D743","v":"K902"},null,{"$f":"'FR-16(7)(v)-10 DIST Classified'!I743","v":0},0,0,0,0,0,0,0,0,0,0,0,{"$f":"SUM(G743:Q743)","v":0},0]
[4,null,{"$f":"'FR-16(7)(v)-1 Functional'!C744","v":"POLE & LINE ATTACHMENTS"},{"$f":"'FR-16(7)(v)-1 Functional'!D744","v":"D249"},null,{"$f":"'FR-16(7)(v)-10 DIST Classified'!I744","v":51789},44482,5592,48,58,6,151,19,8,6,1414,5,51789,0]
[5,null,{"$f":"'FR-16(7)(v)-1 Functional'!C745","v":"RENTS"},{"$f":"'FR-16(7)(v)-1 Functional'!D745","v":"D249"},null,{"$f":"'FR-16(7)(v)-10 DIST Classified'!I745","v":254807},218859,27512,234,285,31,744,94,38,28,6959,23,254807,0]
[6,null,{"$f":"'FR-16(7)(v)-1 Functional'!C746","v":"TRANSMISSION CHARGE PTP"},{"$f":"'FR-16(7)(v)-1 Functional'!D746","v":"T229"},null,{"$f":"'FR-16(7)(v)-10 DIST Classified'!I746","v":0},{"$f":"F746-SUM(H746:Q746)","v":0},0,0,0,0,0,0,0,0,0,{"$f":"ROUND(F746*VLOOKUP(D746,ALLOCTABLE_Distr_Customer,$Q$10,FALSE),0)","v":0},0,0]
[7,null,{"$f":"'FR-16(7)(v)-1 Functional'!C747","v":"PJM REACTIVE REVENUE"},{"$f":"'FR-16(7)(v)-1 Functional'!D747","v":"K401"},null,{"$f":"'FR-16(7)(v)-10 DIST Classified'!I747","v":0},{"$f":"F747-SUM(H747:Q747)","v":0},0,0,0,0,0,0,0,0,0,{"$f":"ROUND(F747*VLOOKUP(D747,ALLOCTABLE_Distr_Customer,$Q$10,FALSE),0)","v":0},0,0]
[8,null,{"$f":"'FR-16(7)(v)-1 Functional'!C748","v":"OTHER TRANSMISSION REVENUES"},{"$f":"'FR-16(7)(v)-1 Functional'!D748","v":"T229"},null,{"$f":"'FR-16(7)(v)-10 DIST Classified'!I748","v":0},{"$f":"F748-SUM(H748:Q748)","v":0},0,0,0,0,0,0,0,0,0,{"$f":"ROUND(F748*VLOOKUP(D748,ALLOCTABLE_Distr_Customer,$Q$10,FALSE),0)","v":0},0,0]
[9,null,{"$f":"'FR-16(7)(v)-1 Functional'!C749","v":"FIXED BILL PREMIUM"},{"$f":"'FR-16(7)(v)-1 Functional'!D749","v":"K902"},null,{"$f":"'FR-16(7)(v)-10 DIST Classified'!I749","v":0},0,0,0,0,0,0,0,0,0,0,0,{"$f":"SUM(G749:Q749)","v":0},0]
[10,null,{"$f":"'FR-16(7)(v)-1 Functional'!C750","v":"  TOTAL OTHER OPERATING REVS"},null,null,{"$f":"SUM(F742:F749)","v":367410},{"$f":"SUM(G742:G749)","v":315575},{"$f":"SUM(H742:H749)","v":39670},{"$f":"SUM(I742:I749)","v":338},{"$f":"SUM(J742:J749)","v":411},44,1073,136,55,41,10034,{"$f":"SUM($Q$742:$Q$749)","v":33},{"$f":"SUM(R742:R749)","v":367410},{"$f":"SUM(S742:S749)","v":0}]
[11]
[12,"COST OF SERVICE COMPUTATION"]
[13,null,{"$f":"'FR-16(7)(v)-1 Functional'!C753","v":"TOTAL OP EXP EXC INC & REV TAX"},null,null,{"$f":"F618","v":18534414},{"$f":"G618","v":15190555},{"$f":"H618","v":2431732},{"$f":"I618","v":17313},{"$f":"J618","v":20412},2715,73699,655,3120,1037,791126,{"$f":"$Q$618","v":2050},{"$f":"R618","v":18534414},{"$f":"S618","v":0}]
[14,null,"RETURN ON RATE BASE",null,null,{"$f":"F433","v":6237250},{"$f":"G433","v":5339398},{"$f":"H433","v":708489},{"$f":"I433","v":5863},{"$f":"J433","v":7048},811,20396,2121,998,748,150754,{"$f":"Q433","v":624},{"$f":"R433","v":6237250},{"$f":"S433","v":0}]
[15,null,{"$f":"'FR-16(7)(v)-1 Functional'!C755","v":"NET FED INCOME TAX ALLOWABLE"},null,null,{"$f":"F676","v":331737},{"$f":"G676","v":262162},{"$f":"H676","v":35232},{"$f":"I676","v":287},{"$f":"J676","v":255},43,901,100,41,62,32616,{"$f":"$Q$676","v":38},{"$f":"R676","v":331737},{"$f":"S676","v":0}]
[16,null,{"$f":"'FR-16(7)(v)-1 Functional'!C756","v":"NET STATE INCOME TAX ALLOWABLE"},null,null,{"$f":"F722","v":565637},{"$f":"G722","v":449105},88916,528,{"$f":"J722","v":686},99,2978,-191,115,-26,23351,76,565637,0]
[17,null,{"$f":"'FR-16(7)(v)-1 Functional'!C757","v":"TOTAL OTHER OPERATING REVENUES"},null,null,{"$f":"-F750","v":-367410},{"$f":"-G750","v":-315575},{"$f":"-H750","v":-39670},{"$f":"-I750","v":-338},{"$f":"-J750","v":-411},-44,-1073,-136,-55,-41,-10034,{"$f":"-$Q$750","v":-33},{"$f":"-R750","v":-367410},{"$f":"-S750","v":0}]
[18,null,{"$f":"'FR-16(7)(v)-1 Functional'!C758","v":"  SUBTOTAL B"},null,null,{"$f":"SUM(F752:F757)","v":25301628},{"$f":"SUM(G752:G757)","v":20925645},{"$f":"SUM(H752:H757)","v":3224699},{"$f":"SUM(I752:I757)","v":23653},{"$f":"SUM(J752:J757)","v":27990},3624,96901,2549,4219,1780,987813,{"$f":"SUM($Q$752:$Q$757)","v":2755},{"$f":"SUM(R752:R757)","v":25301628},{"$f":"R758-F758","v":0}]
[19]
[20,null,{"$f":"'FR-16(7)(v)-1 Functional'!C760","v":"TOTAL OTHER OPERATING REVENUES"},null,null,{"$f":"-F757","v":367410},{"$f":"-G757","v":315575},{"$f":"-H757","v":39670},{"$f":"-I757","v":338},{"$f":"-J757","v":411},44,1073,136,55,41,10034,{"$f":"-$Q$757","v":33},{"$f":"-R757","v":367410},{"$f":"-S757","v":0}]
[21,null,{"$f":"'FR-16(7)(v)-1 Functional'!C761","v":"LESS: REVS EXCL FROM REV TAX CALC"},null,null,{"$f":"F991","v":0},{"$f":"G991","v":0},{"$f":"H991","v":0},{"$f":"I991","v":0},{"$f":"J991","v":0},0,0,0,0,0,0,{"$f":"Q991","v":0},{"$f":"R991","v":0},{"$f":"S991","v":0}]
[22,null,{"$f":"'FR-16(7)(v)-1 Functional'!C762","v":"OTHER OPERATING REVS TO BE TAXED"},null,null,{"$f":"F760-F761","v":367410},{"$f":"G760-G761","v":315575},{"$f":"H760-H761","v":39670},{"$f":"I760-I761","v":338},{"$f":"J760-J761","v":411},44,1073,136,55,41,10034,{"$f":"$Q$760-Q761","v":33},{"$f":"R760-R761","v":367410},{"$f":"S760-S761","v":0}]
[23]
[24,null,{"$f":"'FR-16(7)(v)-1 Functional'!C764","v":"REVENUE TAX FACTOR"},null,null,{"$f":"ROUND(F817/(1-F817),8)","v":0},0,0,0,{"$f":"ROUND(J817/(1-J817),8)","v":0},0,0,0,0,0,0,0,0,0]
[25,null,{"$f":"'FR-16(7)(v)-1 Functional'!C765","v":"REVENUE TAX ON OTHER OPER. REVS"},null,null,{"$f":"ROUND(F764*F762,0)","v":0},{"$f":"ROUND(G764*G762,0)","v":0},{"$f":"ROUND(H764*H762,0)","v":0},{"$f":"ROUND(I764*I762,0)","v":0},{"$f":"ROUND(J764*J762,0)","v":0},0,0,0,0,0,0,{"$f":"ROUND(Q764*Q762,0)","v":0},{"$f":"SUM(G765:Q765)","v":0},{"$f":"ROUND(S764*S762,0)","v":0}]
[26,null,{"$f":"'FR-16(7)(v)-1 Functional'!C766","v":"REVENUE TAX ON COST OF SERVICE"},null,null,{"$f":"ROUND(F764*F758,0)","v":0},{"$f":"ROUND(G764*G758,0)","v":0},{"$f":"ROUND(H764*H758,0)","v":0},{"$f":"ROUND(I764*I758,0)","v":0},{"$f":"ROUND(J764*J758,0)","v":0},0,0,0,0,0,0,{"$f":"ROUND(Q764*$Q$758,0)","v":0},{"$f":"SUM(G766:Q766)","v":0},{"$f":"ROUND(S764*S758,0)","v":0}]
[27,null,{"$f":"'FR-16(7)(v)-1 Functional'!C767","v":"TOTAL REVENUE TAX"},null,null,{"$f":"F766+F765","v":0},{"$f":"G766+G765","v":0},{"$f":"H766+H765","v":0},{"$f":"I766+I765","v":0},{"$f":"J766+J765","v":0},0,0,0,0,0,0,{"$f":"Q766+Q765","v":0},{"$f":"R766+R765","v":0},{"$f":"S766+S765","v":0}]
[28]
[29,null,"RESERVED",null,null,{"$f":"F24","v":0},{"$f":"G24","v":0},{"$f":"H24","v":0},{"$f":"I24","v":0},{"$f":"J24","v":0},0,0,0,0,0,0,{"$f":"Q24","v":0},{"$f":"R24","v":0}]
[30,null,{"$f":"'FR-16(7)(v)-1 Functional'!C770","v":"  TOTAL ELECTRIC COST OF SERVICE"},null,null,{"$f":"F769+F767+F758","v":25301628},20925645,3224699,23653,27990,3624,96901,2549,4219,1780,987813,2755,25301628,{"$f":"S767+S758","v":0}]
[31]
[32,"PROPOSED REVENUES",null,null,null,{"$f":"F870","v":57281877},{"$f":"G870","v":45898249},{"$f":"H870","v":8849477},{"$f":"I870","v":53845},{"$f":"J870","v":69884},9738,291565,-18330,11456,-2864,2111410,{"$f":"Q870","v":7447},{"$f":"R870","v":57281877},{"$f":"S870","v":0}]
[33,"TOTAL ELECTRIC COST OF SERVICE",null,null,null,{"$f":"-F770","v":-25301628},{"$f":"-G770","v":-20925645},{"$f":"-H770","v":-3224699},{"$f":"-I770","v":-23653},{"$f":"-J770","v":-27990},-3624,-96901,-2549,-4219,-1780,-987813,{"$f":"-Q770","v":-2755},{"$f":"-R770","v":-25301628},{"$f":"-S770","v":0}]
[34,"EXCESS REVENUES",null,null,null,{"$f":"F773+F772","v":31980249},{"$f":"G773+G772","v":24972604},{"$f":"H773+H772","v":5624778},{"$f":"I773+I772","v":30192},{"$f":"J773+J772","v":41894},6114,194664,-20879,7237,-4644,1123597,{"$f":"Q773+Q772","v":4692},{"$f":"SUM(G774:Q774)","v":31980249},{"$f":"F774-R774","v":0}]
[35,"COMPOSITE TAX RATE",null,null,null,{"$f":"F729","v":0.24925115},{"$f":"G729","v":0.24925115},0.24925115,0.24925115,{"$f":"J729","v":0.24925115},0.24925115,0.24925115,0.24925115,0.24925115,0.24925115,0.24925115,0.24925115,0.24925115,0.24925115]
[36,"EXCESS TAX",null,null,null,{"$f":"'FR-16(7)(v)-10 DIST Classified'!I776","v":7971114},{"$f":"F776-SUM(H776:Q776)","v":6224452},{"$f":"ROUND(H775*H774,0)","v":1401982},{"$f":"ROUND(I775*I774,0)","v":7525},{"$f":"ROUND(J775*J774,0)","v":10442},1524,48520,-5204,1804,-1158,280058,{"$f":"ROUND(Q775*Q774,0)","v":1169},{"$f":"SUM(G776:Q776)","v":7971114},{"$f":"F776-R776","v":0}]
[37,"EXCESS RETURN",null,null,null,{"$f":"F774-F776","v":24009135},{"$f":"G774-G776","v":18748152},{"$f":"H774-H776","v":4222796},{"$f":"I774-I776","v":22667},{"$f":"J774-J776","v":31452},4590,146144,-15675,5433,-3486,843539,{"$f":"Q774-Q776","v":3523},{"$f":"SUM(G777:Q777)","v":24009135},{"$f":"F777-R777","v":0}]
[]
[{"$f":"co_name","v":"DUKE ENERGY KENTUCKY, INC."},null,null,null,null,null,null,null,null,null,null,null,null,null,null,null,null,{"$f":"R1","v":"FR-16(7)(v)-13"}]
[{"$f":"$A$2","v":"DISTRIBUTION CUSTOMER ALLOCATED - ELECTRIC COST OF SERVICE"},null,null,null,null,null,null,null,null,null,null,null,null,null,null,null,null,{"$f":"R2","v":"WITNESS RESPONSIBLE:"}]
[{"$f":"case_name","v":"CASE NO: 2019-00271"},null,null,null,null,null,null,null,null,null,null,null,null,null,null,null,null,{"$f":"Witness","v":"JAMES E. ZIOLKOWSKI"}]
[{"$f":"data_filing","v":"DATA: 12 MONTHS ACTUAL  & 0 MONTHS ESTIMATED"},null,null,null,null,null,null,null,null,null,null,null,null,null,null,null,null,{"$f":"\"PAGE \"&Pages-3&\" OF \"&Pages","v":"PAGE 15 OF 18"}]
[{"$f":"type","v":"TYPE OF FILING: \"X\" ORIGINAL   UPDATED    REVISED  "}]
[]
[null,null,null,null,null,{"$f":"F$7","v":"TOTAL"},null,{"$f":"H$7","v":"DS"},{"$f":"I$7","v":"GSFL"},{"$f":"J$7","v":"EH"},{"$f":"K$7","v":"SP"},"DT SEC","DT PRI","DP","TT",null,"OTHER"]
["LINE",null,null,null,null,{"$f":"F$8","v":"DISTRIBUTION"},{"$f":"G$8","v":"RS"},{"$f":"H$8","v":"SECONDARY"},{"$f":"I$8","v":"SECONDARY"},{"$f":"J$8","v":"SECONDARY"},{"$f":"K$8","v":"SECONDARY"},"SECONDARY","PRIMARY","PRIMARY","TRANSMISSION","LT","WATER",{"$f":"R8","v":"TOTAL"},"ALL"]
["NO.","ROR, TAX RATES & SPEC FACTORS",null,"ALLO",null,{"$f":"F$9","v":"CUSTOMER"},{"$f":"G$9","v":"RESIDENTIAL"},{"$f":"H$9","v":"DISTRIBUTION"},{"$f":"I$9","v":"DISTRIBUTION"},{"$f":"J$9","v":"DISTRIBUTION"},{"$f":"K$9","v":"DISTRIBUTION"},"DISTRIBUTION","DISTRIBUTION","DISTRIBUTION","TIME OF DAY","LIGHTING","PUMPING",{"$f":"R9","v":"AT ISSUE"},"OTHER"]
[null,null,"Schedule 11",null,null,null,{"$f":"G$10","v":3},{"$f":"H$10","v":4},{"$f":"I$10","v":5},{"$f":"J$10","v":6},{"$f":"K$10","v":7},8,9,10,11,12,13,null," "]
[1,"RATE OF RETURN"]
[2," CAPITALIZATION AMOUNTS",null,null,null,null,"RATIO"]
[3,null,{"$f":"'FR-16(7)(v)-1 Functional'!C791","v":"LONG TERM DEBT"},null,null,{"$f":"'FR-16(7)(v)-2 PROD Classified'!$F$791","v":665948506},{"$f":"IF(TotalCap=0,0,ROUND(F791/TotalCap,4))","v":0.45929999999999999}]
[4,null,{"$f":"'FR-16(7)(v)-1 Functional'!C792","v":"PREFERRED STOCK"},null,null,{"$f":"'FR-16(7)(v)-2 PROD Classified'!$F$792","v":0},{"$f":"IF(TotalCap=0,0,ROUND(F792/TotalCap,4))","v":0}]
[5,null,{"$f":"'FR-16(7)(v)-1 Functional'!C793","v":"COMMON STOCK"},null,null,{"$f":"[0]!Equity","v":699348680},{"$f":"1-G791-G792-G794-G795","v":0.48239999999999994}]
[6,null,{"$f":"'FR-16(7)(v)-1 Functional'!C794","v":"SHORT TERM DEBT"},null,null,{"$f":"'FR-16(7)(v)-2 PROD Classified'!$F$794","v":84600060},{"$f":"IF(TotalCap=0,0,ROUND(F794/TotalCap,4))","v":5.8299999999999998E-2}]
[7,null,{"$f":"'FR-16(7)(v)-1 Functional'!C795","v":"UNAMORTIZED DISCOUNT"},null,null,{"$f":"'FR-16(7)(v)-2 PROD Classified'!$F$795","v":0},{"$f":"IF(TotalCap=0,0,ROUND(F795/TotalCap,4))","v":0}]
[8,null,{"$f":"'FR-16(7)(v)-1 Functional'!C796","v":"  TOTAL"},null,null,{"$f":"SUM(F790:F795)","v":1449897246},{"$f":"SUM(G791:G795)","v":1}]
[9]
[10," COST OF CAPITAL"]
[11,null,{"$f":"'FR-16(7)(v)-1 Functional'!C799","v":"LONG TERM DEBT"},null,null,{"$f":"'FR-16(7)(v)-2 PROD Classified'!$F$799","v":4.0730000000000002E-2}]
[12,null,{"$f":"'FR-16(7)(v)-1 Functional'!C800","v":"PREFERRED STOCK"},null,null,{"$f":"'FR-16(7)(v)-2 PROD Classified'!$F$800","v":0}]
[13,null,{"$f":"'FR-16(7)(v)-1 Functional'!C801","v":"COMMON STOCK"},null,null,{"$f":"'FR-16(7)(v)-2 PROD Classified'!$F$801","v":9.8000000000000004E-2}]
[14,null,{"$f":"'FR-16(7)(v)-1 Functional'!C802","v":"SHORT TERM DEBT"},null,null,{"$f":"'FR-16(7)(v)-2 PROD Classified'!$F$802","v":1.9369999999999998E-2}]
[15,null,{"$f":"'FR-16(7)(v)-1 Functional'!C803","v":"UNAMORTIZED DISCOUNT"},null,null,{"$f":"'FR-16(7)(v)-2 PROD Classified'!$F$803","v":0}]
[16]
[17," WEIGHTED COST OF CAPITAL"]
[18,null,{"$f":"'FR-16(7)(v)-1 Functional'!C806","v":"LONG TERM DEBT"},null,null,{"$f":"ROUND(G791*F799,4)","v":1.8700000000000001E-2}]
[19,null,{"$f":"'FR-16(7)(v)-1 Functional'!C807","v":"PREFERRED STOCK"},null,null,{"$f":"ROUND(G792*F800,4)","v":0}]
[20,null,{"$f":"'FR-16(7)(v)-1 Functional'!C808","v":"COMMON STOCK"},null,null,{"$f":"ROUND(G793*F801,4)","v":4.7300000000000002E-2}]
[21,null,{"$f":"'FR-16(7)(v)-1 Functional'!C809","v":"SHORT TERM DEBT"},null,null,{"$f":"ROUND(G794*F802,4)","v":1.1000000000000001E-3}]
[22,null,{"$f":"'FR-16(7)(v)-1 Functional'!C810","v":"UNAMORTIZED DISCOUNT"},null,null,{"$f":"ROUND(G795*F803,4)","v":0}]
[23,null,{"$f":"'FR-16(7)(v)-1 Functional'!C811","v":"  TOT RATE OF RETURN ALLOWABLE"},null,null,{"$f":"SUM(F806:F810)","v":6.7100000000000007E-2}]
[24]
[25,"TAX RATES AND SPECIAL FACTORS"]
[26,null,{"$f":"'FR-16(7)(v)-1 Functional'!C814","v":"SHORT TERM DEBT COST"},null,null,0,{"$f":"F814","v":0},{"$f":"F814","v":0},{"$f":"F814","v":0},{"$f":"G814","v":0},0,0,0,0,0,0,{"$f":"$F$814","v":0},{"$f":"F814","v":0},{"$f":"F814","v":0}]
[27,null,{"$f":"'FR-16(7)(v)-1 Functional'!C815","v":"FEDERAL INCOME TAX RATE"},null,null,{"$f":"FIT","v":0.21},{"$f":"FIT","v":0.21},0.21,0.21,0.21,0.21,0.21,0.21,0.21,0.21,0.21,0.21,0.21,0.21]
[28,null,{"$f":"'FR-16(7)(v)-1 Functional'!C816","v":"STATE INCOME TAX RATE"},null,null,{"$f":"SIT","v":4.9685000000000007E-2},{"$f":"SIT","v":4.9685000000000007E-2},4.9685000000000007E-2,4.9685000000000007E-2,4.9685000000000007E-2,4.9685000000000007E-2,4.9685000000000007E-2,4.9685000000000007E-2,4.9685000000000007E-2,4.9685000000000007E-2,4.9685000000000007E-2,4.9685000000000007E-2,4.9685000000000007E-2,4.9685000000000007E-2]
[29,null,{"$f":"'FR-16(7)(v)-1 Functional'!C817","v":"REVENUE TAX RATE"},null,null,0,{"$f":"RevTax","v":0},0,0,0,0,0,0,0,0,0,0,0,0]
[]
[{"$f":"co_name","v":"DUKE ENERGY KENTUCKY, INC."},null,null,null,null,null,null,null,null,null,null,null,null,null,null,null,null,{"$f":"R1","v":"FR-16(7)(v)-13"}]
[{"$f":"$A$2","v":"DISTRIBUTION CUSTOMER ALLOCATED - ELECTRIC COST OF SERVICE"},null,null,null,null,null,null,null,null,null,null,null,null,null,null,null,null,{"$f":"R2","v":"WITNESS RESPONSIBLE:"}]
[{"$f":"case_name","v":"CASE NO: 2019-00271"},null,null,null,null,null,null,null,null,null,null,null,null,null,null,null,null,{"$f":"Witness","v":"JAMES E. ZIOLKOWSKI"}]
[{"$f":"data_filing","v":"DATA: 12 MONTHS ACTUAL  & 0 MONTHS ESTIMATED"},null,null,null,null,null,null,null,null,null,null,null,null,null,null,null,null,{"$f":"\"PAGE \"&Pages-2&\" OF \"&Pages","v":"PAGE 16 OF 18"}]
[{"$f":"type","v":"TYPE OF FILING: \"X\" ORIGINAL   UPDATED    REVISED  "}]
[]
[null,null,null,null,null,{"$f":"F$7","v":"TOTAL"},null,{"$f":"H$7","v":"DS"},{"$f":"I$7","v":"GSFL"},{"$f":"J$7","v":"EH"},{"$f":"K$7","v":"SP"},"DT SEC","DT PRI","DP","TT",null,"OTHER"]
["LINE",null,null,null,null,{"$f":"F$8","v":"DISTRIBUTION"},{"$f":"G$8","v":"RS"},{"$f":"H$8","v":"SECONDARY"},{"$f":"I$8","v":"SECONDARY"},{"$f":"J$8","v":"SECONDARY"},{"$f":"K$8","v":"SECONDARY"},"SECONDARY","PRIMARY","PRIMARY","TRANSMISSION","LT","WATER",{"$f":"R8","v":"TOTAL"},"ALL",null,null,null,"RATE GRP"]
["NO.","ALLOCATORS",null,"SOURCE","ALLO",{"$f":"F$9","v":"CUSTOMER"},{"$f":"G$9","v":"RESIDENTIAL"},{"$f":"H$9","v":"DISTRIBUTION"},{"$f":"I$9","v":"DISTRIBUTION"},{"$f":"J$9","v":"DISTRIBUTION"},{"$f":"K$9","v":"DISTRIBUTION"},"DISTRIBUTION","DISTRIBUTION","DISTRIBUTION","TIME OF DAY","LIGHTING","PUMPING",{"$f":"R9","v":"AT ISSUE"},"OTHER",null,null,null,"CHECK"]
[null,null,"Schedule 12",null,1,null,{"$f":"G$10","v":3},{"$f":"H$10","v":4},{"$f":"I$10","v":5},{"$f":"J$10","v":6},{"$f":"K$10","v":7},8,9,10,11,12,13,null," "]
[1,"DEMAND ENERGY & SPEC. ASSIGN"]
[2,null,"TOTAL KW (12 COIN PEAK) - PRODUCTION","External",null,{"$f":"'WP FR-16(7)(v)-KW & KWH @Gen'!D38","v":717751},{"$f":"'WP FR-16(7)(v)-KW & KWH @Gen'!D17","v":323558},{"$f":"'WP FR-16(7)(v)-KW & KWH @Gen'!D18+'WP FR-16(7)(v)-KW & KWH @Gen'!D31","v":194251},{"$f":"'WP FR-16(7)(v)-KW & KWH @Gen'!D19","v":933},{"$f":"'WP FR-16(7)(v)-KW & KWH @Gen'!D20","v":3682},{"$f":"'WP FR-16(7)(v)-KW & KWH @Gen'!D21","v":51},{"$f":"'WP FR-16(7)(v)-KW & KWH @Gen'!D22+'WP FR-16(7)(v)-KW & KWH @Gen'!D32","v":96851},{"$f":"'WP FR-16(7)(v)-KW & KWH @Gen'!D23","v":64029},{"$f":"'WP FR-16(7)(v)-KW & KWH @Gen'!D24","v":3090},{"$f":"'WP FR-16(7)(v)-KW & KWH @Gen'!D25+'WP FR-16(7)(v)-KW & KWH @Gen'!D35","v":30336},{"$f":"'WP FR-16(7)(v)-KW & KWH @Gen'!D26","v":891},{"$f":"'WP FR-16(7)(v)-KW & KWH @Gen'!D27","v":79},{"$f":"SUM(G830:Q830)","v":717751},{"$f":"F830-R830","v":0}]
[3,null,{"$f":"'FR-16(7)(v)-1 Functional'!C831","v":"RATIO TO TOTAL ELECTRIC"},null,{"$f":"'FR-16(7)(v)-1 Functional'!E831","v":"K201"},{"$f":"IF($F830=0,0,ROUND(F830/$F830,5))","v":1},{"$f":"IF(S830=0,F831-SUM(H831:Q831),ROUND(G830/F830,5))","v":0.45077999999999985},{"$f":"IF($F$830=0,0,ROUND(H830/$F$830,5))","v":0.27063999999999999},{"$f":"IF($F$830=0,0,ROUND(I830/$F$830,5))","v":1.2999999999999999E-3},5.13E-3,6.9999999999999994E-5,0.13494,8.9209999999999998E-2,4.3099999999999996E-3,4.2270000000000002E-2,1.24E-3,1.1E-4,{"$f":"SUM(G831:Q831)","v":0.99999999999999989},{"$f":"F831-R831","v":0},null,null,null,{"$f":"R831","v":0.99999999999999989}]
[4,null,"TOTAL KW (12 COIN PEAK) - TRANSMISSION","External",null,{"$f":"'WP FR-16(7)(v)-KW & KWH @Gen'!D38","v":717751},{"$f":"'WP FR-16(7)(v)-KW & KWH @Gen'!D17","v":323558},{"$f":"'WP FR-16(7)(v)-KW & KWH @Gen'!D18+'WP FR-16(7)(v)-KW & KWH @Gen'!D31","v":194251},{"$f":"'WP FR-16(7)(v)-KW & KWH @Gen'!D19","v":933},{"$f":"'WP FR-16(7)(v)-KW & KWH @Gen'!D20","v":3682},{"$f":"'WP FR-16(7)(v)-KW & KWH @Gen'!D21","v":51},{"$f":"'WP FR-16(7)(v)-KW & KWH @Gen'!D22+'WP FR-16(7)(v)-KW & KWH @Gen'!D32","v":96851},{"$f":"'WP FR-16(7)(v)-KW & KWH @Gen'!D23","v":64029},{"$f":"'WP FR-16(7)(v)-KW & KWH @Gen'!D24","v":3090},{"$f":"'WP FR-16(7)(v)-KW & KWH @Gen'!D25+'WP FR-16(7)(v)-KW & KWH @Gen'!D35","v":30336},{"$f":"'WP FR-16(7)(v)-KW & KWH @Gen'!D26","v":891},{"$f":"'WP FR-16(7)(v)-KW & KWH @Gen'!D27","v":79},{"$f":"SUM(G832:Q832)","v":717751},{"$f":"F832-R832","v":0}]
[5,null,{"$f":"'FR-16(7)(v)-1 Functional'!C833","v":"RATIO TO TOTAL ELECTRIC"},null,"K202",{"$f":"IF($F832=0,0,ROUND(F832/$F832,5))","v":1},{"$f":"IF(S832=0,F833-SUM(H833:Q833),ROUND(G832/F832,5))","v":0.45077999999999985},{"$f":"IF($F$830=0,0,ROUND(H832/$F$830,5))","v":0.27063999999999999},1.2999999999999999E-3,5.13E-3,6.9999999999999994E-5,0.13494,8.9209999999999998E-2,4.3099999999999996E-3,4.2270000000000002E-2,1.24E-3,1.1E-4,{"$f":"SUM(G833:Q833)","v":0.99999999999999989},{"$f":"F833-R833","v":0}]
[6,null,{"$f":"'FR-16(7)(v)-1 Functional'!C834","v":"DISTRIBUTION KW (NON-COIN PEAK) "},"External",null,{"$f":"'WP FR-16(7)(v)-KW & KWH @Dist'!D39","v":1514633},{"$f":"'WP FR-16(7)(v)-KW & KWH @Dist'!D18","v":899439},{"$f":"'WP FR-16(7)(v)-KW & KWH @Dist'!D19+'WP FR-16(7)(v)-KW & KWH @Dist'!D32","v":321857},{"$f":"'WP FR-16(7)(v)-KW & KWH @Dist'!D20","v":1158},{"$f":"'WP FR-16(7)(v)-KW & KWH @Dist'!D21","v":10653},{"$f":"'WP FR-16(7)(v)-KW & KWH @Dist'!D22","v":109},{"$f":"'WP FR-16(7)(v)-KW & KWH @Dist'!D23+'WP FR-16(7)(v)-KW & KWH @Dist'!D33","v":138051},{"$f":"'WP FR-16(7)(v)-KW & KWH @Dist'!D24+'WP FR-16(7)(v)-KW & KWH @Dist'!D34","v":84382},{"$f":"'WP FR-16(7)(v)-KW & KWH @Dist'!D25+'WP FR-16(7)(v)-KW & KWH @Dist'!D35","v":5687},{"$f":"'WP FR-16(7)(v)-KW & KWH @Dist'!D26+'WP FR-16(7)(v)-KW & KWH @Dist'!D36","v":45755},{"$f":"'WP FR-16(7)(v)-KW & KWH @Dist'!D27","v":7098},{"$f":"'WP FR-16(7)(v)-KW & KWH @Dist'!D28","v":444},{"$f":"SUM(G834:Q834)","v":1514633},{"$f":"F834-R834","v":0}]
[7,null,{"$f":"'FR-16(7)(v)-1 Functional'!C835","v":"RATIO TO TOTAL ELECTRIC"},null,{"$f":"'FR-16(7)(v)-1 Functional'!E835","v":"K203"},1,{"$f":"IF(S834=0,F835-SUM(H835:Q835),ROUND(G834/F834,5))","v":0.59384999999999999},{"$f":"IF(F834=0,0,ROUND(H834/F834,5))","v":0.21249999999999999},{"$f":"IF($F$834=0,0,ROUND(I834/$F$834,5))","v":7.6000000000000004E-4},{"$f":"IF($F$834=0,0,ROUND(J834/$F$834,5))","v":7.0299999999999998E-3},6.9999999999999994E-5,9.1139999999999999E-2,5.5710000000000003E-2,3.7499999999999999E-3,3.0210000000000001E-2,4.6899999999999997E-3,{"$f":"IF(G834=0,0,ROUND(Q834/F834,5))","v":2.9E-4},1,0,null,null,null,{"$f":"R835","v":1}]
[8,null,"DISTRIBUTION LINE - PRIMARY","External",null,{"$f":"'WP FR-16(7)(v) Distlines'!G38","v":731338},{"$f":"'WP FR-16(7)(v) Distlines'!$G$17","v":343307},{"$f":"'WP FR-16(7)(v) Distlines'!$G$18+'WP FR-16(7)(v) Distlines'!$G$31","v":202748},{"$f":"'WP FR-16(7)(v) Distlines'!$G$19","v":945},{"$f":"'WP FR-16(7)(v) Distlines'!$G$20","v":4447},{"$f":"'WP FR-16(7)(v) Distlines'!$G$21","v":53},{"$f":"'WP FR-16(7)(v) Distlines'!$G$22+'WP FR-16(7)(v) Distlines'!$G$32","v":103544},{"$f":"'WP FR-16(7)(v) Distlines'!$G$23+'WP FR-16(7)(v) Distlines'!$G$33","v":68199},{"$f":"'WP FR-16(7)(v) Distlines'!$G$24+'WP FR-16(7)(v) Distlines'!$G$34","v":3420},{"$f":"'WP FR-16(7)(v) Distlines'!$G$25+'WP FR-16(7)(v) Distlines'!$G$35","v":0},{"$f":"'WP FR-16(7)(v) Distlines'!$G$26","v":4595},{"$f":"'WP FR-16(7)(v) Distlines'!$G$27","v":80},731338,0]
[9,null,{"$f":"'FR-16(7)(v)-1 Functional'!C837","v":"RATIO TO TOTAL ELECTRIC"},null,{"$f":"'FR-16(7)(v)-1 Functional'!E837","v":"K205"},1,{"$f":"IF(S836=0,F837-SUM(H837:Q837),ROUND(G836/F836,5))","v":0.4694299999999999},{"$f":"IF($F$836=0,0,ROUND(H836/$F$836,5))","v":0.27722999999999998},{"$f":"IF($F$836=0,0,ROUND(I836/$F$836,5))","v":1.2899999999999999E-3},6.0800000000000003E-3,6.9999999999999994E-5,0.14158000000000001,9.325E-2,4.6800000000000001E-3,0,6.28E-3,1.1E-4,0.99999999999999989,0,null,null,null,{"$f":"R837","v":0.99999999999999989}]
[10,null,"DISTRIBUTION LINE - SECONDARY","External",null,{"$f":"'WP FR-16(7)(v) Distlines'!K38","v":731338},{"$f":"'WP FR-16(7)(v) Distlines'!K17","v":343307},{"$f":"'WP FR-16(7)(v) Distlines'!K18+'WP FR-16(7)(v) Distlines'!K31","v":202748},{"$f":"'WP FR-16(7)(v) Distlines'!K19","v":945},{"$f":"'WP FR-16(7)(v) Distlines'!K20","v":4447},{"$f":"'WP FR-16(7)(v) Distlines'!K21","v":53},{"$f":"'WP FR-16(7)(v) Distlines'!K22+'WP FR-16(7)(v) Distlines'!K32","v":103544},{"$f":"'WP FR-16(7)(v) Distlines'!K23","v":68199},{"$f":"'WP FR-16(7)(v) Distlines'!K24+'WP FR-16(7)(v) Distlines'!K34","v":3420},{"$f":"'WP FR-16(7)(v) Distlines'!K25+'WP FR-16(7)(v) Distlines'!K35","v":0},{"$f":"'WP FR-16(7)(v) Distlines'!K26","v":4595},{"$f":"'WP FR-16(7)(v) Distlines'!K27","v":80},{"$f":"SUM(G838:Q838)","v":731338},{"$f":"F838-R838","v":0}]
[11,null,{"$f":"'FR-16(7)(v)-1 Functional'!C839","v":"RATIO TO TOTAL ELECTRIC"},null,"K206",1,{"$f":"IF(S838=0,F839-SUM(H839:Q839),ROUND(G838/F838,5))","v":0.4694299999999999},{"$f":"IF($F$836=0,0,ROUND(H838/$F$836,5))","v":0.27722999999999998},{"$f":"IF($F$836=0,0,ROUND(I838/$F$836,5))","v":1.2899999999999999E-3},{"$f":"IF($F$836=0,0,ROUND(J838/$F$836,5))","v":6.0800000000000003E-3},{"$f":"IF($F$836=0,0,ROUND(K838/$F$836,5))","v":6.9999999999999994E-5},{"$f":"IF($F$836=0,0,ROUND(L838/$F$836,5))","v":0.14158000000000001},{"$f":"IF($F$838=0,0,ROUND(M838/$F$838,5))","v":9.325E-2},{"$f":"IF($F$838=0,0,ROUND(N838/$F$838,5))","v":4.6800000000000001E-3},{"$f":"IF($F$838=0,0,ROUND(O838/$F$838,5))","v":0},{"$f":"IF($F$838=0,0,ROUND(P838/$F$838,5))","v":6.28E-3},{"$f":"IF($F$838=0,0,ROUND(Q838/$F$838,5))","v":1.1E-4},{"$f":"SUM(G839:Q839)","v":0.99999999999999989},{"$f":"F839-R839","v":0}]
[12,null,{"$f":"'FR-16(7)(v)-1 Functional'!C840","v":"GROSS DISTRIBUTION PLANT EXCL. CCNC"},"External",null,{"$f":"SUM(F73:F90)","v":129340727},{"$f":"SUM(G73:G90)","v":109326374},13325902,122210,149868,15082,373801,53476,19927,14955,5927878,11254,129340727,0]
[13,null,{"$f":"'FR-16(7)(v)-1 Functional'!C841","v":"RATIO TO TOTAL ELECTRIC"},null,{"$f":"'FR-16(7)(v)-1 Functional'!E841","v":"K209"},1,{"$f":"IF(S840=0,F841-SUM(H841:Q841),ROUND(G840/F840,5))","v":0.84526000000000001},{"$f":"IF($F$840=0,0,ROUND(H840/$F$840,5))","v":0.10303},{"$f":"IF($F$840=0,0,ROUND(I840/$F$840,5))","v":9.3999999999999997E-4},1.16E-3,1.2E-4,2.8900000000000002E-3,4.0999999999999999E-4,1.4999999999999999E-4,1.2E-4,4.5830000000000003E-2,9.0000000000000006E-5,1,0,null,null,null,{"$f":"R841","v":1}]
[14,null,{"$f":"'FR-16(7)(v)-1 Functional'!C842","v":"TOTAL DIVERSIFIED CLASS DEMANDS"},"External",null,{"$f":"'WP FR-16(7)(v)-KW & KWH @Dist'!L39","v":731338},{"$f":"'WP FR-16(7)(v)-KW & KWH @Dist'!L18","v":343307},{"$f":"'WP FR-16(7)(v)-KW & KWH @Dist'!L19+'WP FR-16(7)(v)-KW & KWH @Dist'!L32","v":202748},{"$f":"'WP FR-16(7)(v)-KW & KWH @Dist'!L20","v":945},{"$f":"'WP FR-16(7)(v)-KW & KWH @Dist'!L21","v":4447},{"$f":"'WP FR-16(7)(v)-KW & KWH @Dist'!L22","v":53},{"$f":"'WP FR-16(7)(v)-KW & KWH @Dist'!L23+'WP FR-16(7)(v)-KW & KWH @Dist'!L33","v":103544},{"$f":"'WP FR-16(7)(v)-KW & KWH @Dist'!L24","v":68199},{"$f":"'WP FR-16(7)(v)-KW & KWH @Dist'!L25","v":3420},{"$f":"'WP FR-16(7)(v)-KW & KWH @Dist'!L26","v":0},{"$f":"'WP FR-16(7)(v)-KW & KWH @Dist'!L27","v":4595},{"$f":"'WP FR-16(7)(v)-KW & KWH @Dist'!L28","v":80},731338,0]
[15,null,{"$f":"'FR-16(7)(v)-1 Functional'!C843","v":"RATIO TO TOTAL ELECTRIC"},null,{"$f":"'FR-16(7)(v)-1 Functional'!E843","v":"K215"},1,{"$f":"IF(S842=0,F843-SUM(H843:Q843),ROUND(G842/F842,5))","v":0.4694299999999999},{"$f":"IF($F$842=0,0,ROUND(H842/$F$842,5))","v":0.27722999999999998},{"$f":"IF($F$842=0,0,ROUND(I842/$F$842,5))","v":1.2899999999999999E-3},6.0800000000000003E-3,6.9999999999999994E-5,0.14158000000000001,9.325E-2,4.6800000000000001E-3,0,6.28E-3,1.1E-4,0.99999999999999989,0,null,null,null,{"$f":"R843","v":0.99999999999999989}]
[16,null,{"$f":"'FR-16(7)(v)-1 Functional'!C844","v":"WEIGHTED CUSTOMER SERVICE"},"External",null,{"$f":"'WP FR-16(7)(v) Wtd services'!H38","v":143810},{"$f":"'WP FR-16(7)(v) Wtd services'!H17","v":128431},{"$f":"'WP FR-16(7)(v) Wtd services'!H18","v":12968},{"$f":"'WP FR-16(7)(v) Wtd services'!H19","v":172},{"$f":"'WP FR-16(7)(v) Wtd services'!H20","v":412},{"$f":"'WP FR-16(7)(v) Wtd services'!H21","v":14},{"$f":"'WP FR-16(7)(v) Wtd services'!H22","v":930},{"$f":"'WP FR-16(7)(v) Wtd services'!H23","v":222},{"$f":"'WP FR-16(7)(v) Wtd services'!H24","v":60},{"$f":"'WP FR-16(7)(v) Wtd services'!H25","v":66},{"$f":"'WP FR-16(7)(v) Wtd services'!H26","v":468},{"$f":"'WP FR-16(7)(v) Wtd services'!H27","v":11},143754,56]
[17,null,{"$f":"'FR-16(7)(v)-1 Functional'!C845","v":"RATIO TO TOTAL ELECTRIC"},null,{"$f":"'FR-16(7)(v)-1 Functional'!E845","v":"K217"},1,{"$f":"IF(S844=0,F845-SUM(H845:Q845),ROUND(G844/F844,5))","v":0.89305999999999996},{"$f":"IF($F$844=0,0,ROUND(H844/$F$844,5))","v":9.017E-2},{"$f":"IF($F$844=0,0,ROUND(I844/$F$844,5))","v":1.1999999999999999E-3},2.8600000000000001E-3,1E-4,6.4700000000000001E-3,1.5399999999999999E-3,4.2000000000000002E-4,4.6000000000000001E-4,3.2499999999999999E-3,8.0000000000000007E-5,0.99960999999999978,3.900000000002235E-4,null,null,null,{"$f":"R845","v":0.99960999999999978}]
[18,null,{"$f":"'FR-16(7)(v)-1 Functional'!C846","v":"TOTAL KWH"},"External",null,{"$f":"'WP FR-16(7)(v)-KW & KWH @Gen'!F38","v":4261970981},{"$f":"'WP FR-16(7)(v)-KW & KWH @Gen'!$F$17","v":1608724299},{"$f":"'WP FR-16(7)(v)-KW & KWH @Gen'!$F$18+'WP FR-16(7)(v)-KW & KWH @Gen'!$F$31","v":1147823576},{"$f":"'WP FR-16(7)(v)-KW & KWH @Gen'!$F$19","v":6420710},{"$f":"'WP FR-16(7)(v)-KW & KWH @Gen'!$F$20","v":18228802},{"$f":"'WP FR-16(7)(v)-KW & KWH @Gen'!$F$21","v":298034},{"$f":"'WP FR-16(7)(v)-KW & KWH @Gen'!$F$22+'WP FR-16(7)(v)-KW & KWH @Gen'!$F$32","v":703280622},{"$f":"'WP FR-16(7)(v)-KW & KWH @Gen'!$F$23","v":488455966},{"$f":"'WP FR-16(7)(v)-KW & KWH @Gen'!$F$24","v":22905598},{"$f":"'WP FR-16(7)(v)-KW & KWH @Gen'!$F$25+'WP FR-16(7)(v)-KW & KWH @Gen'!$F$35","v":246755000},{"$f":"'WP FR-16(7)(v)-KW & KWH @Gen'!$F$26","v":18599129},{"$f":"'WP FR-16(7)(v)-KW & KWH @Gen'!$F$27","v":479245},4261970981,0]
[19,null,{"$f":"'FR-16(7)(v)-1 Functional'!C847","v":"RATIO TO TOTAL ELECTRIC"},null,{"$f":"'FR-16(7)(v)-1 Functional'!E847","v":"K301"},1,{"$f":"IF(S846=0,F847-SUM(H847:Q847),ROUND(G846/F846,5))","v":0.37745999999999991},{"$f":"IF($F$846=0,0,ROUND(H846/$F$846,5))","v":0.26932},{"$f":"IF($F$846=0,0,ROUND(I846/$F$846,5))","v":1.5100000000000001E-3},4.28E-3,6.9999999999999994E-5,0.16500999999999999,0.11461,5.3699999999999998E-3,5.79E-2,4.3600000000000002E-3,1.1E-4,0.99999999999999989,0,null,null,null,{"$f":"R847","v":0.99999999999999989}]
[20,null,{"$f":"'FR-16(7)(v)-1 Functional'!C848","v":"DISTRIBUTION KWH"},"External",null,{"$f":"'WP FR-16(7)(v)-KW & KWH @Dist'!F39","v":4261970981},{"$f":"'WP FR-16(7)(v)-KW & KWH @Dist'!F18","v":1608724299},{"$f":"'WP FR-16(7)(v)-KW & KWH @Dist'!F19+'WP FR-16(7)(v)-KW & KWH @Dist'!F32","v":1147823576},{"$f":"'WP FR-16(7)(v)-KW & KWH @Dist'!F20","v":6420710},{"$f":"'WP FR-16(7)(v)-KW & KWH @Dist'!F21","v":18228802},{"$f":"'WP FR-16(7)(v)-KW & KWH @Dist'!F22","v":298034},{"$f":"'WP FR-16(7)(v)-KW & KWH @Dist'!F23+'WP FR-16(7)(v)-KW & KWH @Dist'!F33","v":703280622},{"$f":"'WP FR-16(7)(v)-KW & KWH @Dist'!F24","v":488455966},{"$f":"'WP FR-16(7)(v)-KW & KWH @Dist'!F25","v":22905598},{"$f":"'WP FR-16(7)(v)-KW & KWH @Dist'!F26","v":232255694},{"$f":"'WP FR-16(7)(v)-KW & KWH @Dist'!F27","v":18599129},{"$f":"'WP FR-16(7)(v)-KW & KWH @Dist'!F28","v":479245},4247471675,14499306]
[21,null,{"$f":"'FR-16(7)(v)-1 Functional'!C849","v":"RATIO TO TOTAL ELECTRIC"},null,{"$f":"'FR-16(7)(v)-1 Functional'!E849","v":"K303"},1,{"$f":"IF(S848=0,F849-SUM(H849:Q849),ROUND(G848/F848,5))","v":0.37746000000000002},{"$f":"IF($F$848=0,0,ROUND(H848/$F$848,5))","v":0.26932},{"$f":"IF($F$848=0,0,ROUND(I848/$F$848,5))","v":1.5100000000000001E-3},4.28E-3,6.9999999999999994E-5,0.16500999999999999,0.11461,5.3699999999999998E-3,5.4489999999999997E-2,4.3600000000000002E-3,1.1E-4,0.99659000000000009,3.4099999999999131E-3,null,null,null,{"$f":"R849","v":0.99659000000000009}]
[22,null,{"$f":"'FR-16(7)(v)-1 Functional'!C850","v":"TOTAL KWH LESS LIGHTING"},"External",null,{"$f":"'WP FR-16(7)(v)-KW & KWH @Gen'!F38-'WP FR-16(7)(v)-KW & KWH @Gen'!F26","v":4243371852},{"$f":"'WP FR-16(7)(v)-KW & KWH @Gen'!F17","v":1608724299},{"$f":"'WP FR-16(7)(v)-KW & KWH @Gen'!F18+'WP FR-16(7)(v)-KW & KWH @Gen'!F31","v":1147823576},{"$f":"'WP FR-16(7)(v)-KW & KWH @Gen'!F19","v":6420710},{"$f":"'WP FR-16(7)(v)-KW & KWH @Gen'!F20","v":18228802},{"$f":"'WP FR-16(7)(v)-KW & KWH @Gen'!F21","v":298034},{"$f":"'WP FR-16(7)(v)-KW & KWH @Gen'!F22+'WP FR-16(7)(v)-KW & KWH @Gen'!F32","v":703280622},{"$f":"'WP FR-16(7)(v)-KW & KWH @Gen'!F23","v":488455966},{"$f":"'WP FR-16(7)(v)-KW & KWH @Gen'!F24","v":22905598},{"$f":"'WP FR-16(7)(v)-KW & KWH @Gen'!F25+'WP FR-16(7)(v)-KW & KWH @Gen'!F35","v":246755000},0,{"$f":"'WP FR-16(7)(v)-KW & KWH @Gen'!F27","v":479245},4243371852,0]
[23,null,{"$f":"'FR-16(7)(v)-1 Functional'!C851","v":"RATIO TO TOTAL ELECTRIC"},null,{"$f":"'FR-16(7)(v)-1 Functional'!E851","v":"K305"},1,{"$f":"IF(S850=0,F851-SUM(H851:Q851),ROUND(G850/F850,5))","v":0.37910999999999984},{"$f":"IF($F$850=0,0,ROUND(H850/$F$850,5))","v":0.27050000000000002},{"$f":"IF($F$850=0,0,ROUND(I850/$F$850,5))","v":1.5100000000000001E-3},4.3E-3,6.9999999999999994E-5,0.16574,0.11511,5.4000000000000003E-3,5.815E-2,0,1.1E-4,0.99999999999999989,0,null,null,null,{"$f":"R851","v":0.99999999999999989}]
[24,null,{"$f":"'FR-16(7)(v)-1 Functional'!C852","v":"ASSIGN 100% TO RESIDENTIAL"},"External",null,1,1,0,0,0,0,0,0,0,0,0,0,1,0]
[25,null,{"$f":"'FR-16(7)(v)-1 Functional'!C853","v":"RATIO TO TOTAL ELECTRIC"},null,{"$f":"'FR-16(7)(v)-1 Functional'!E853","v":"K307"},1,{"$f":"IF(S852=0,F853-SUM(H853:Q853),ROUND(G852/F852,5))","v":1},{"$f":"IF($F$852=0,0,ROUND(H852/$F$852,5))","v":0},{"$f":"IF($F$852=0,0,ROUND(I852/$F$852,5))","v":0},0,0,0,0,0,0,0,0,1,0,null,null,null,{"$f":"R853","v":1}]
[26,null,{"$f":"'FR-16(7)(v)-1 Functional'!C854","v":"ASSIGN 100% TO LIGHTING"},"External",null,1,0,0,0,0,0,0,0,0,0,1,0,1,0]
[27,null,{"$f":"'FR-16(7)(v)-1 Functional'!C855","v":"RATIO TO TOTAL ELECTRIC"},null,{"$f":"'FR-16(7)(v)-1 Functional'!E855","v":"K401"},1,{"$f":"IF(S854=0,F855-SUM(H855:Q855),ROUND(G854/F854,5))","v":0},{"$f":"IF($F$854=0,0,ROUND(H854/$F$854,5))","v":0},{"$f":"IF($F$854=0,0,ROUND(I854/$F$854,5))","v":0},0,0,0,0,0,0,1,0,1,0,null,null,null,{"$f":"R855","v":1}]
[28,null,{"$f":"'FR-16(7)(v)-1 Functional'!C856","v":"DISTRIBUTION CUSTOMERS"},"External",null,{"$f":"'WP FR-16(7)(v)-KW & KWH @Dist'!H39","v":142392},{"$f":"'WP FR-16(7)(v)-KW & KWH @Dist'!$H18","v":128431},{"$f":"'WP FR-16(7)(v)-KW & KWH @Dist'!$H19+'WP FR-16(7)(v)-KW & KWH @Dist'!$H32","v":12972},{"$f":"'WP FR-16(7)(v)-KW & KWH @Dist'!$H20","v":172},{"$f":"'WP FR-16(7)(v)-KW & KWH @Dist'!$H21","v":103},{"$f":"'WP FR-16(7)(v)-KW & KWH @Dist'!$H22","v":14},{"$f":"'WP FR-16(7)(v)-KW & KWH @Dist'!$H23+'WP FR-16(7)(v)-KW & KWH @Dist'!$H33","v":159},{"$f":"'WP FR-16(7)(v)-KW & KWH @Dist'!$H24","v":37},{"$f":"'WP FR-16(7)(v)-KW & KWH @Dist'!$H25","v":10},{"$f":"'WP FR-16(7)(v)-KW & KWH @Dist'!$H26+'WP FR-16(7)(v)-KW & KWH @Dist'!$H36","v":15},{"$f":"'WP FR-16(7)(v)-KW & KWH @Dist'!$H27","v":468},{"$f":"'WP FR-16(7)(v)-KW & KWH @Dist'!$H28","v":11},142392,0]
[29,null,{"$f":"'FR-16(7)(v)-1 Functional'!C857","v":"RATIO TO TOTAL ELECTRIC"},null,{"$f":"'FR-16(7)(v)-1 Functional'!E857","v":"K405"},1,{"$f":"IF(S856=0,F857-SUM(H857:Q857),ROUND(G856/F856,5))","v":0.90193999999999996},{"$f":"IF($F$856=0,0,ROUND(H856/$F$856,5))","v":9.11E-2},{"$f":"IF($F$856=0,0,ROUND(I856/$F$856,5))","v":1.2099999999999999E-3},7.2000000000000005E-4,1E-4,1.1199999999999999E-3,2.5999999999999998E-4,6.9999999999999994E-5,1.1E-4,3.29E-3,{"$f":"IF(G856=0,0,ROUND(Q856/F856,5))","v":8.0000000000000007E-5},1.0000000000000002,0,null,null,null,{"$f":"R857","v":1.0000000000000002}]
[{"$f":"'FR-16(7)(v)-12 DIST Energy'!A858","v":"28A"},null,{"$f":"'FR-16(7)(v)-12 DIST Energy'!C858","v":"DISTRIBUTION CUSTOMERS"},{"$f":"'FR-16(7)(v)-12 DIST Energy'!D858","v":"External"},null,{"$f":"'FR-16(7)(v)-12 DIST Energy'!F858","v":142377},{"$f":"'FR-16(7)(v)-12 DIST Energy'!G858","v":128431},{"$f":"'FR-16(7)(v)-12 DIST Energy'!H858","v":12972},{"$f":"'FR-16(7)(v)-12 DIST Energy'!I858","v":172},{"$f":"'FR-16(7)(v)-12 DIST Energy'!J858","v":103},{"$f":"'FR-16(7)(v)-12 DIST Energy'!K858","v":14},{"$f":"'FR-16(7)(v)-12 DIST Energy'!L858","v":159},{"$f":"'FR-16(7)(v)-12 DIST Energy'!M858","v":37},{"$f":"'FR-16(7)(v)-12 DIST Energy'!N858","v":10},{"$f":"'FR-16(7)(v)-12 DIST Energy'!O858","v":0},{"$f":"'FR-16(7)(v)-12 DIST Energy'!P858","v":468},{"$f":"'FR-16(7)(v)-12 DIST Energy'!Q858","v":11},{"$f":"'FR-16(7)(v)-12 DIST Energy'!R858","v":142377},{"$f":"'FR-16(7)(v)-12 DIST Energy'!S858","v":0}]
[{"$f":"'FR-16(7)(v)-12 DIST Energy'!A859","v":"29A"},null,{"$f":"'FR-16(7)(v)-12 DIST Energy'!C859","v":"RATIO TO TOTAL ELECTRIC"},null,{"$f":"'FR-16(7)(v)-12 DIST Energy'!E859","v":"K406"},{"$f":"'FR-16(7)(v)-12 DIST Energy'!F859","v":1},{"$f":"'FR-16(7)(v)-12 DIST Energy'!G859","v":0.90205000000000002},{"$f":"'FR-16(7)(v)-12 DIST Energy'!H859","v":9.11E-2},{"$f":"'FR-16(7)(v)-12 DIST Energy'!I859","v":1.2099999999999999E-3},{"$f":"'FR-16(7)(v)-12 DIST Energy'!J859","v":7.2000000000000005E-4},{"$f":"'FR-16(7)(v)-12 DIST Energy'!K859","v":1E-4},{"$f":"'FR-16(7)(v)-12 DIST Energy'!L859","v":1.1199999999999999E-3},{"$f":"'FR-16(7)(v)-12 DIST Energy'!M859","v":2.5999999999999998E-4},{"$f":"'FR-16(7)(v)-12 DIST Energy'!N859","v":6.9999999999999994E-5},{"$f":"'FR-16(7)(v)-12 DIST Energy'!O859","v":0},{"$f":"'FR-16(7)(v)-12 DIST Energy'!P859","v":3.29E-3},{"$f":"'FR-16(7)(v)-12 DIST Energy'!Q859","v":8.0000000000000007E-5},{"$f":"'FR-16(7)(v)-12 DIST Energy'!R859","v":1.0000000000000002},{"$f":"'FR-16(7)(v)-12 DIST Energy'!S859","v":0}]
[30,null,{"$f":"'FR-16(7)(v)-1 Functional'!C858","v":"METERS"},"External",null,{"$f":"'WP FR-16(7)(v) Meters'!E40","v":15813241},{"$f":"'WP FR-16(7)(v) Meters'!$E19","v":12782441},{"$f":"'WP FR-16(7)(v) Meters'!$E20","v":2892747},{"$f":"'WP FR-16(7)(v) Meters'!$E21","v":0},{"$f":"'WP FR-16(7)(v) Meters'!$E22","v":22093},{"$f":"'WP FR-16(7)(v) Meters'!$E23","v":3451},{"$f":"'WP FR-16(7)(v) Meters'!$E24","v":102877},{"$f":"'WP FR-16(7)(v) Meters'!$E25","v":0},{"$f":"'WP FR-16(7)(v) Meters'!$E26","v":3805},{"$f":"'WP FR-16(7)(v) Meters'!$E27","v":3619},{"$f":"'WP FR-16(7)(v) Meters'!$E28","v":0},{"$f":"'WP FR-16(7)(v) Meters'!$E29","v":2208},15813241,0]
[31,null,{"$f":"'FR-16(7)(v)-1 Functional'!C859","v":"RATIO TO TOTAL ELECTRIC"},null,{"$f":"'FR-16(7)(v)-1 Functional'!E859","v":"K407"},1,{"$f":"IF(S860=0,F861-SUM(H861:Q861),ROUND(G860/F860,5))","v":0.80832999999999999},{"$f":"IF($F$860=0,0,ROUND(H860/$F$860,5))","v":0.18293000000000001},{"$f":"IF($F$860=0,0,ROUND(I860/$F$860,5))","v":0},1.4E-3,2.2000000000000001E-4,6.5100000000000002E-3,0,2.4000000000000001E-4,2.3000000000000001E-4,0,1.3999999999999999E-4,1,0,null,null,null,{"$f":"R861","v":1}]
[32,null,{"$f":"'FR-16(7)(v)-1 Functional'!C860","v":"WEIGHTED CUSTOMER"},"External",null,{"$f":"'WP FR-16(7)(v) Meters'!H40","v":156470},{"$f":"'WP FR-16(7)(v) Meters'!H19","v":128431},{"$f":"'WP FR-16(7)(v) Meters'!H20+'WP FR-16(7)(v) Meters'!H33","v":25940},{"$f":"'WP FR-16(7)(v) Meters'!H21","v":172},{"$f":"'WP FR-16(7)(v) Meters'!H22","v":206},{"$f":"'WP FR-16(7)(v) Meters'!H23","v":28},{"$f":"'WP FR-16(7)(v) Meters'!H24+'WP FR-16(7)(v) Meters'!H34","v":1089},{"$f":"'WP FR-16(7)(v) Meters'!H25+'WP FR-16(7)(v) Meters'!H35","v":37},{"$f":"'WP FR-16(7)(v) Meters'!H26+'WP FR-16(7)(v) Meters'!H36","v":40},{"$f":"'WP FR-16(7)(v) Meters'!H27+'WP FR-16(7)(v) Meters'!H37","v":37},{"$f":"'WP FR-16(7)(v) Meters'!H28","v":468},{"$f":"'WP FR-16(7)(v) Meters'!H29","v":22},156470,0]
[33,null,{"$f":"'FR-16(7)(v)-1 Functional'!C861","v":"RATIO TO TOTAL ELECTRIC"},null,{"$f":"'FR-16(7)(v)-1 Functional'!E861","v":"K409"},1,{"$f":"IF(S862=0,F863-SUM(H863:Q863),ROUND(G862/F862,5))","v":0.82079000000000002},{"$f":"IF($F$862=0,0,ROUND(H862/$F$862,5))","v":0.16578000000000001},{"$f":"IF($F$862=0,0,ROUND(I862/$F$862,5))","v":1.1000000000000001E-3},1.32E-3,1.8000000000000001E-4,6.96E-3,2.4000000000000001E-4,2.5999999999999998E-4,2.4000000000000001E-4,2.99E-3,1.3999999999999999E-4,1,0,null,null,null,{"$f":"R863","v":1}]
[34,null,{"$f":"'FR-16(7)(v)-1 Functional'!C862","v":"UNCOLLECTIBLE ACCOUNT 904"},"External",null,{"$f":"'WP FR-16(7)(v) CustAcct'!G31","v":5781023.7599999998},{"$f":"'WP FR-16(7)(v) CustAcct'!G17","v":5267443},{"$f":"'WP FR-16(7)(v) CustAcct'!G19","v":249785.75999999978},{"$f":"'WP FR-16(7)(v) CustAcct'!G20","v":1597},{"$f":"'WP FR-16(7)(v) CustAcct'!G21","v":1664},{"$f":"'WP FR-16(7)(v) CustAcct'!G22","v":82},{"$f":"'WP FR-16(7)(v) CustAcct'!G23","v":129741},{"$f":"'WP FR-16(7)(v) CustAcct'!G24","v":82815},{"$f":"'WP FR-16(7)(v) CustAcct'!G25","v":3765},{"$f":"'WP FR-16(7)(v) CustAcct'!G26","v":38893},{"$f":"'WP FR-16(7)(v) CustAcct'!G27","v":5192},{"$f":"'WP FR-16(7)(v) CustAcct'!G28","v":46},5781023.7599999998,0]
[35,null,{"$f":"'FR-16(7)(v)-1 Functional'!C863","v":"RATIO TO TOTAL ELECTRIC"},null,{"$f":"'FR-16(7)(v)-1 Functional'!E863","v":"K411"},1,{"$f":"IF(S864=0,F865-SUM(H865:Q865),ROUND(G864/F864,5))","v":0.91115000000000002},{"$f":"IF($F$864=0,0,ROUND(H864/$F$864,5))","v":4.3209999999999998E-2},{"$f":"IF($F$864=0,0,ROUND(I864/$F$864,5))","v":2.7999999999999998E-4},2.9E-4,1.0000000000000001E-5,2.2440000000000002E-2,1.4330000000000001E-2,6.4999999999999997E-4,6.7299999999999999E-3,8.9999999999999998E-4,1.0000000000000001E-5,0.99999999999999989,0,null,null,null,{"$f":"R865","v":0.99999999999999989}]
[36,null,{"$f":"'FR-16(7)(v)-1 Functional'!C864","v":"KWH SALES LESS RTP"},"External",null,{"$f":"'WP FR-16(7)(v)-KW & KWH @Gen'!F28","v":4244213606},{"$f":"'WP FR-16(7)(v)-KW & KWH @Gen'!F17","v":1608724299},{"$f":"'WP FR-16(7)(v)-KW & KWH @Gen'!F18","v":1146956880},{"$f":"'WP FR-16(7)(v)-KW & KWH @Gen'!F19","v":6420710},{"$f":"'WP FR-16(7)(v)-KW & KWH @Gen'!F20","v":18228802},{"$f":"'WP FR-16(7)(v)-KW & KWH @Gen'!F21","v":298034},{"$f":"'WP FR-16(7)(v)-KW & KWH @Gen'!F22","v":700889249},{"$f":"'WP FR-16(7)(v)-KW & KWH @Gen'!F23","v":488455966},{"$f":"'WP FR-16(7)(v)-KW & KWH @Gen'!F24","v":22905598},{"$f":"'WP FR-16(7)(v)-KW & KWH @Gen'!F25","v":232255694},{"$f":"'WP FR-16(7)(v)-KW & KWH @Gen'!F26","v":18599129},{"$f":"'WP FR-16(7)(v)-KW & KWH @Gen'!F27","v":479245},{"$f":"SUM(G866:Q866)","v":4244213606},{"$f":"F866-R866","v":0}]
[37,null,{"$f":"'FR-16(7)(v)-1 Functional'!C865","v":"RATIO TO TOTAL ELECTRIC"},null,{"$f":"'FR-16(7)(v)-1 Functional'!E865","v":"K302"},1,{"$f":"IF(S866=0,F867-SUM(H867:Q867),ROUND(G866/F865,5))","v":0.37904999999999989},{"$f":"IF(F866=0,0,ROUND(H866/F866,5))","v":0.27023999999999998},{"$f":"IF(F866=0,0,ROUND(I866/F866,5))","v":1.5100000000000001E-3},{"$f":"IF(F866=0,0,ROUND(J866/F866,5))","v":4.2900000000000004E-3},{"$f":"IF(F866=0,0,ROUND(K866/F866,5))","v":6.9999999999999994E-5},{"$f":"IF(F866=0,0,ROUND(L866/F866,5))","v":0.16514000000000001},{"$f":"IF(F866=0,0,ROUND(M866/F866,5))","v":0.11509},{"$f":"IF(F866=0,0,ROUND(N866/F866,5))","v":5.4000000000000003E-3},{"$f":"IF(F866=0,0,ROUND(O866/F866,5))","v":5.4719999999999998E-2},{"$f":"IF(F866=0,0,ROUND(P866/F866,5))","v":4.3800000000000002E-3},{"$f":"IF(F866=0,0,ROUND(Q866/F866,5))","v":1.1E-4},{"$f":"SUM(G867:Q867)","v":1},{"$f":"F867-R867","v":0}]
[38]
[39,null,"PRESENT REVENUES",{"$f":"'FR-16(7)(v)-1 Functional'!$D$867","v":"CS09"},{"$f":"'FR-16(7)(v)-1 Functional'!E867","v":"R600"},{"$f":"'FR-16(7)(v)-10 DIST Classified'!I869","v":22128489},{"$f":"F869-SUM(H869:Q869)","v":18301308},{"$f":"ROUND(F869*VLOOKUP(D869,ALLOCTABLE_Distr_Customer,$H$10,FALSE),0)","v":2820282},{"$f":"ROUND($F$869*VLOOKUP(D869,ALLOCTABLE_Distr_Customer,I10,FALSE),0)","v":20687},{"$f":"ROUND($F$869*VLOOKUP(D869,ALLOCTABLE_Distr_Customer,J10,FALSE),0)","v":24480},{"$f":"ROUND($F$869*VLOOKUP(D869,ALLOCTABLE_Distr_Customer,K10,FALSE),0)","v":3170},{"$f":"ROUND($F$869*VLOOKUP(D869,ALLOCTABLE_Distr_Customer,L10,FALSE),0)","v":84748},{"$f":"ROUND($F$869*VLOOKUP(D869,ALLOCTABLE_Distr_Customer,M10,FALSE),0)","v":2229},{"$f":"ROUND($F$869*VLOOKUP(D869,ALLOCTABLE_Distr_Customer,N10,FALSE),0)","v":3690},{"$f":"ROUND($F$869*VLOOKUP(D869,ALLOCTABLE_Distr_Customer,O10,FALSE),0)","v":1557},{"$f":"ROUND($F$869*VLOOKUP(D869,ALLOCTABLE_Distr_Customer,P10,FALSE),0)","v":863929},{"$f":"ROUND($F$869*VLOOKUP(D869,ALLOCTABLE_Distr_Customer,Q10,FALSE),0)","v":2409},{"$f":"SUM(G869:Q869)","v":22128489},{"$f":"F869-R869","v":0}]
[40,null,"PROPOSED REVENUES",{"$f":"'FR-16(7)(v)-1 Functional'!$D$868","v":"A357"},{"$f":"'FR-16(7)(v)-1 Functional'!E868","v":"R602"},{"$f":"'FR-16(7)(v)-10 DIST Classified'!I870","v":57281877},{"$f":"F870-SUM(H870:Q870)","v":45898249},{"$f":"ROUND(F870*VLOOKUP(D870,ALLOCTABLE_Distr_Customer,$H$10,FALSE),0)","v":8849477},{"$f":"ROUND($F$870*VLOOKUP(D870,ALLOCTABLE_Distr_Customer,I10,FALSE),0)","v":53845},{"$f":"ROUND($F$870*VLOOKUP(D870,ALLOCTABLE_Distr_Customer,J10,FALSE),0)","v":69884},{"$f":"ROUND($F$870*VLOOKUP(D870,ALLOCTABLE_Distr_Customer,K10,FALSE),0)","v":9738},{"$f":"ROUND($F$870*VLOOKUP(D870,ALLOCTABLE_Distr_Customer,L10,FALSE),0)","v":291565},{"$f":"ROUND($F$870*VLOOKUP(D870,ALLOCTABLE_Distr_Customer,M10,FALSE),0)","v":-18330},{"$f":"ROUND($F$870*VLOOKUP(D870,ALLOCTABLE_Distr_Customer,N10,FALSE),0)","v":11456},{"$f":"ROUND($F$870*VLOOKUP(D870,ALLOCTABLE_Distr_Customer,O10,FALSE),0)","v":-2864},{"$f":"ROUND($F$870*VLOOKUP(D870,ALLOCTABLE_Distr_Customer,P10,FALSE),0)","v":2111410},{"$f":"ROUND($F$870*VLOOKUP(D870,ALLOCTABLE_Distr_Customer,Q10,FALSE),0)","v":7447},{"$f":"SUM(G870:Q870)","v":57281877},{"$f":"F870-R870","v":0}]
[]
[{"$f":"co_name","v":"DUKE ENERGY KENTUCKY, INC."},null,null,null,null,null,null,null,null,null,null,null,null,null,null,null,null,{"$f":"R1","v":"FR-16(7)(v)-13"}]
[{"$f":"$A$2","v":"DISTRIBUTION CUSTOMER ALLOCATED - ELECTRIC COST OF SERVICE"},null,null,null,null,null,null,null,null,null,null,null,null,null,null,null,null,{"$f":"R2","v":"WITNESS RESPONSIBLE:"}]
[{"$f":"case_name","v":"CASE NO: 2019-00271"},null,null,null,null,null,null,null,null,null,null,null,null,null,null,null,null,{"$f":"Witness","v":"JAMES E. ZIOLKOWSKI"}]
[{"$f":"data_filing","v":"DATA: 12 MONTHS ACTUAL  & 0 MONTHS ESTIMATED"},null,null,null,null,null,null,null,null,null,null,null,null,null,null,null,null,{"$f":"\"PAGE \"&Pages-1&\" OF \"&Pages","v":"PAGE 17 OF 18"}]
[{"$f":"type","v":"TYPE OF FILING: \"X\" ORIGINAL   UPDATED    REVISED  "}]
[]
[null,null,null,null,null,{"$f":"F$7","v":"TOTAL"},null,{"$f":"H$7","v":"DS"},{"$f":"I$7","v":"GSFL"},{"$f":"J$7","v":"EH"},{"$f":"K$7","v":"SP"},"DT SEC","DT PRI","DP","TT",null,"OTHER"]
["LINE",null,null,null,null,{"$f":"F$8","v":"DISTRIBUTION"},{"$f":"G$8","v":"RS"},{"$f":"H$8","v":"SECONDARY"},{"$f":"I$8","v":"SECONDARY"},{"$f":"J$8","v":"SECONDARY"},{"$f":"K$8","v":"SECONDARY"},"SECONDARY","PRIMARY","PRIMARY","TRANSMISSION","LT","WATER",{"$f":"R8","v":"TOTAL"},"ALL"]
["NO.","ALLOCATORS",null,"SOURCE","ALLO",{"$f":"F$9","v":"CUSTOMER"},{"$f":"G$9","v":"RESIDENTIAL"},{"$f":"H$9","v":"DISTRIBUTION"},{"$f":"I$9","v":"DISTRIBUTION"},{"$f":"J$9","v":"DISTRIBUTION"},{"$f":"K$9","v":"DISTRIBUTION"},"DISTRIBUTION","DISTRIBUTION","DISTRIBUTION","TIME OF DAY","LIGHTING","PUMPING",{"$f":"R9","v":"AT ISSUE"},"OTHER"]
[null,null,"Schedule 12.1",null,1,null,{"$f":"G$10","v":3},{"$f":"H$10","v":4},{"$f":"I$10","v":5},{"$f":"J$10","v":6},{"$f":"K$10","v":7},8,9,10,11,12,13,null," "]
[]
[1,null,{"$f":"'FR-16(7)(v)-1 Functional'!C881","v":"PRESENT REVENUES"},"Internal",null,{"$f":"'FR-16(7)(v)-3 PROD Demand'!F881","v":309580654},{"$f":"'FR-16(7)(v)-3 PROD Demand'!G881","v":123883637},{"$f":"'FR-16(7)(v)-3 PROD Demand'!H881","v":90318223},{"$f":"'FR-16(7)(v)-3 PROD Demand'!I881","v":577046},{"$f":"'FR-16(7)(v)-3 PROD Demand'!J881","v":600937},{"$f":"'FR-16(7)(v)-3 PROD Demand'!K881","v":29960},{"$f":"'FR-16(7)(v)-3 PROD Demand'!L881","v":46910116},{"$f":"'FR-16(7)(v)-3 PROD Demand'!M881","v":29943872},{"$f":"'FR-16(7)(v)-3 PROD Demand'!N881","v":1361377},{"$f":"'FR-16(7)(v)-3 PROD Demand'!O881","v":14062168},{"$f":"'FR-16(7)(v)-3 PROD Demand'!P881","v":1876470},{"$f":"'FR-16(7)(v)-3 PROD Demand'!Q881","v":16848},{"$f":"SUM(G883:Q883)","v":309580654},{"$f":"F883-R883","v":0}]
[2,null,{"$f":"'FR-16(7)(v)-1 Functional'!C882","v":"RATIO TO TOTAL ELECTRIC"},null,{"$f":"'FR-16(7)(v)-1 Functional'!E882","v":"K901"},{"$f":"IF($F883=0,0,ROUND(F883/$F883,9))","v":1},{"$f":"IF(S883=0,F884-SUM(H884:Q884),ROUND(G883/F883,5))","v":0.40016595199999994},{"$f":"IF($F$883=0,0,ROUND(H883/$F$883,9))","v":0.29174375699999999},{"$f":"IF($F$883=0,0,ROUND(I883/$F$883,9))","v":1.86396E-3},1.9411319999999999E-3,9.6775999999999996E-5,0.151527931,9.6723977000000003E-2,4.3974870000000003E-3,4.5423277999999997E-2,6.0613280000000004E-3,5.4422000000000002E-5,{"$f":"SUM(G884:Q884)","v":1},{"$f":"F884-R884","v":0},null,null,null,{"$f":"R884","v":1}]
[3,null,{"$f":"'FR-16(7)(v)-1 Functional'!C883","v":"PROPOSED REVENUES"},"Internal",null,{"$f":"'FR-16(7)(v)-3 PROD Demand'!F883","v":355094168},{"$f":"'FR-16(7)(v)-3 PROD Demand'!G883","v":147195469},{"$f":"'FR-16(7)(v)-3 PROD Demand'!H883","v":101595371},{"$f":"'FR-16(7)(v)-3 PROD Demand'!I883","v":649414},{"$f":"'FR-16(7)(v)-3 PROD Demand'!J883","v":676300},{"$f":"'FR-16(7)(v)-3 PROD Demand'!K883","v":33717},{"$f":"'FR-16(7)(v)-3 PROD Demand'!L883","v":52518255},{"$f":"'FR-16(7)(v)-3 PROD Demand'!M883","v":33522516},{"$f":"'FR-16(7)(v)-3 PROD Demand'!N883","v":1546768},{"$f":"'FR-16(7)(v)-3 PROD Demand'!O883","v":15232520},{"$f":"'FR-16(7)(v)-3 PROD Demand'!P883","v":2104877},{"$f":"'FR-16(7)(v)-3 PROD Demand'!Q883","v":18961},{"$f":"SUM(G885:Q885)","v":355094168},{"$f":"F885-R885","v":0}]
[4,null,{"$f":"'FR-16(7)(v)-1 Functional'!C884","v":"RATIO TO TOTAL ELECTRIC"},null,{"$f":"'FR-16(7)(v)-1 Functional'!E884","v":"K902"},{"$f":"IF($F885=0,0,ROUND(F885/$F885,9))","v":1},{"$f":"IF(S885=0,F886-SUM(H886:Q886),ROUND(G885/F885,5))","v":0.41452516699999997},{"$f":"IF($F$885=0,0,ROUND(H885/$F$885,9))","v":0.28610825000000001},{"$f":"IF($F$885=0,0,ROUND(I885/$F$885,9))","v":1.8288499999999999E-3},1.904565E-3,9.4951999999999995E-5,0.14789951400000001,9.4404581000000001E-2,4.3559369999999998E-3,4.2897128E-2,5.9276590000000001E-3,5.3396999999999997E-5,{"$f":"SUM(G886:Q886)","v":1},{"$f":"F886-R886","v":0}]
[5]
[6,"WEIGHTED RATIOS"]
[7,"GROSS ELECTRIC PLANT IN SERVICE"]
[8,null,{"$f":"'FR-16(7)(v)-1 Functional'!C888","v":"WTD GROSS PROD PLANT RATIOS"},"Internal",{"$f":"'FR-16(7)(v)-1 Functional'!E888","v":"P129"},0,{"$f":"IF(F890=0,0,F890-SUM(H890:Q890))","v":0},{"$f":"ROUND(IF($F$62=0,0,H62/$F$62),5)","v":0},0,0,0,{"$f":"ROUND(IF($F$62=0,0,L62/$F$62),5)","v":0},0,0,0,0,0,{"$f":"SUM(G890:Q890)","v":0},{"$f":"F890-R890","v":0},null,null,null,{"$f":"R890","v":0}]
[9,null,{"$f":"'FR-16(7)(v)-1 Functional'!C889","v":"WTD GROSS TRANS PLANT RATIOS"},"Internal",{"$f":"'FR-16(7)(v)-1 Functional'!E889","v":"T129"},0,0,{"$f":"ROUND(IF($F$68=0,0,H68/$F$68),5)","v":0},0,0,0,0,0,0,0,0,0,0,0,null,null,null,0]
[10,null,{"$f":"'FR-16(7)(v)-1 Functional'!C890","v":"WTD GROSS P & T PLT RATIOS"},"Internal",{"$f":"'FR-16(7)(v)-1 Functional'!E890","v":"PT29"},0,0,{"$f":"ROUND(IF($F$70=0,0,H70/$F$70),5)","v":0},0,0,0,{"$f":"ROUND(IF($F$70=0,0,L70/$F$70),5)","v":0},0,0,0,0,0,0,0]
[11,null,{"$f":"'FR-16(7)(v)-1 Functional'!C891","v":"WTD GROSS DIST PLANT RATIOS"},"Internal",{"$f":"'FR-16(7)(v)-1 Functional'!E891","v":"D149"},1,0.84526000000000001,{"$f":"ROUND(IF($F$94=0,0,H94/$F$94),5)","v":0.10303},9.3999999999999997E-4,1.16E-3,1.2E-4,{"$f":"ROUND(IF($F$94=0,0,L94/$F$94),5)","v":2.8900000000000002E-3},4.0999999999999999E-4,1.4999999999999999E-4,1.2E-4,4.5830000000000003E-2,9.0000000000000006E-5,1,0]
[12,null,{"$f":"'FR-16(7)(v)-1 Functional'!C892","v":"WTD GROSS TRANS & DIST RATIOS"},"Internal",{"$f":"'FR-16(7)(v)-1 Functional'!E892","v":"TD29"},1,0.84526000000000001,{"$f":"ROUND(IF($F$97=0,0,H97/$F$97),5)","v":0.10303},9.3999999999999997E-4,1.16E-3,1.2E-4,{"$f":"ROUND(IF($F$97=0,0,L97/$F$97),5)","v":2.8900000000000002E-3},4.0999999999999999E-4,1.4999999999999999E-4,1.2E-4,4.5830000000000003E-2,9.0000000000000006E-5,1,0,null,null,null,1]
[13,null,{"$f":"'FR-16(7)(v)-1 Functional'!C893","v":"WTD GROSS PTD PLT RATIOS"},"Internal",{"$f":"'FR-16(7)(v)-1 Functional'!E893","v":"PD29"},1,0.83779000000000003,{"$f":"ROUND(IF($F$109=0,0,H109/$F$109),5)","v":0.15209},1.06E-3,1.2099999999999999E-3,1.7000000000000001E-4,{"$f":"ROUND(IF($F$109=0,0,L109/$F$109),5)","v":4.81E-3},-2.9999999999999997E-4,1.9000000000000001E-4,-4.0000000000000003E-5,2.8900000000000002E-3,1.2999999999999999E-4,1,0,null,null,null,1]
[14,null,{"$f":"'FR-16(7)(v)-1 Functional'!C894","v":"WTD GROSS G & I PLT RATIOS"},"Internal",{"$f":"'FR-16(7)(v)-1 Functional'!E894","v":"G129"},1,0.83777999999999997,{"$f":"ROUND(IF($F$121=0,0,H121/$F$121),5)","v":0.15209},1.06E-3,1.2099999999999999E-3,1.7000000000000001E-4,{"$f":"ROUND(IF($F$121=0,0,L121/$F$121),5)","v":4.81E-3},-2.9999999999999997E-4,2.0000000000000001E-4,-4.0000000000000003E-5,2.8900000000000002E-3,1.2999999999999999E-4,0.99999999999999989,0,null,null,null,0.99999999999999989]
[15,null,{"$f":"'FR-16(7)(v)-1 Functional'!C895","v":"WTD GROSS C & O PLANT RATIOS"},"Internal",{"$f":"'FR-16(7)(v)-1 Functional'!E895","v":"C129"},1,0.84465000000000001,{"$f":"ROUND(IF($F$123=0,0,H123/$F$123),5)","v":0.10713},9.5E-4,1.16E-3,1.2E-4,{"$f":"ROUND(IF($F$123=0,0,L123/$F$123),5)","v":3.0500000000000002E-3},3.5E-4,1.6000000000000001E-4,1E-4,4.224E-2,9.0000000000000006E-5,1,0,null,null,null,1]
[16,null,{"$f":"'FR-16(7)(v)-1 Functional'!C896","v":"WTD GROSS PLANT RATIOS"},"Internal",{"$f":"'FR-16(7)(v)-1 Functional'!E896","v":"GP19"},1,0.81677,{"$f":"ROUND(IF($F$171=0,0,H171/$F$171),5)","v":9.2700000000000005E-2},9.8999999999999999E-4,1.23E-3,1E-4,{"$f":"ROUND(IF($F$171=0,0,L171/$F$171),5)","v":2.8300000000000001E-3},5.1000000000000004E-4,1.6000000000000001E-4,1.2999999999999999E-4,8.4500000000000006E-2,8.0000000000000007E-5,1,0,null,null,null,1]
[17,null,{"$f":"'FR-16(7)(v)-1 Functional'!C897","v":"WTD TOTAL DEPRC RES RATIOS"},"Internal",{"$f":"'FR-16(7)(v)-1 Functional'!E897","v":"DR19"},1,0.81925000000000003,{"$f":"ROUND(IF($F$200=0,0,H200/$F$200),5)","v":9.987E-2},1E-3,1.23E-3,1.1E-4,{"$f":"ROUND(IF($F$200=0,0,L200/$F$200),5)","v":3.0699999999999998E-3},4.0999999999999999E-4,1.7000000000000001E-4,1.1E-4,7.4690000000000006E-2,9.0000000000000006E-5,1.0000000000000002,0,null,null,null,1.0000000000000002]
[18]
[19,"NET ELECTRIC PLANT"]
[20,null,{"$f":"'FR-16(7)(v)-1 Functional'!C900","v":"WTD NET PROD PLANT RATIOS"},"Internal",{"$f":"'FR-16(7)(v)-1 Functional'!E900","v":"P229"},0,{"$f":"IF(F902=0,0,F902-SUM(H902:Q902))","v":0},{"$f":"ROUND(IF($F$216=0,0,H216/$F$216),5)","v":0},0,0,0,{"$f":"ROUND(IF($F$216=0,0,L216/$F$216),5)","v":0},0,0,0,0,0,{"$f":"SUM(G902:Q902)","v":0},{"$f":"F902-R902","v":0},null,null,null,{"$f":"R902","v":0}]
[21,null,{"$f":"'FR-16(7)(v)-1 Functional'!C901","v":"WTD NET TRANS PLANT RATIOS"},"Internal",{"$f":"'FR-16(7)(v)-1 Functional'!E901","v":"T229"},0,0,{"$f":"ROUND(IF($F$222=0,0,H222/$F$222),5)","v":0},0,0,0,0,0,0,0,0,0,0,0,null,null,null,{"$f":"R903","v":0}]
[22,null,{"$f":"'FR-16(7)(v)-1 Functional'!C902","v":"WTD NET DIST LINES  - POLES, TOWERS & FIXTURES"},"Internal",{"$f":"'FR-16(7)(v)-1 Functional'!E902","v":"PL49"},1,0.90205000000000002,{"$f":"ROUND(IF(SUM($F$228:$F$231)=0,0,SUM(H228:H231)/SUM($F$228:$F$231)),5)","v":9.11E-2},{"$f":"ROUND(IF(SUM($F$228:$F$231)=0,0,SUM(I228:I231)/SUM($F$228:$F$231)),5)","v":1.2099999999999999E-3},7.2000000000000005E-4,1E-4,1.1199999999999999E-3,2.5999999999999998E-4,6.9999999999999994E-5,0,3.29E-3,8.0000000000000007E-5,1.0000000000000002,0,null,null,null,{"$f":"R904","v":1.0000000000000002}]
[23,null,{"$f":"'FR-16(7)(v)-1 Functional'!C903","v":"WTD NET TOTAL DIST PLANT RATIOS"},"Internal",{"$f":"'FR-16(7)(v)-1 Functional'!E903","v":"D249"},1,0.85892000000000002,{"$f":"ROUND(IF($F$248=0,0,H248/$F$248),5)","v":0.10797},9.2000000000000003E-4,1.1199999999999999E-3,1.2E-4,{"$f":"ROUND(IF($F$248=0,0,L248/$F$248),5)","v":2.9199999999999999E-3},3.6999999999999999E-4,1.4999999999999999E-4,1.1E-4,2.7310000000000001E-2,9.0000000000000006E-5,1,0]
[24,null,{"$f":"'FR-16(7)(v)-1 Functional'!C904","v":"WTD NET TRANS & DIST RATIOS"},"Internal",{"$f":"'FR-16(7)(v)-1 Functional'!E904","v":"NT29"},1,0.85892000000000002,{"$f":"ROUND(IF($F$251=0,0,H251/$F$251),5)","v":0.10797},9.2000000000000003E-4,1.1199999999999999E-3,1.2E-4,{"$f":"ROUND(IF($F$251=0,0,L251/$F$251),5)","v":2.9199999999999999E-3},3.6999999999999999E-4,1.4999999999999999E-4,1.1E-4,2.7310000000000001E-2,9.0000000000000006E-5,1,0]
[25,null,{"$f":"'FR-16(7)(v)-1 Functional'!C905","v":"WTD NET G & I PLT RATIOS"},"Internal",{"$f":"'FR-16(7)(v)-1 Functional'!E905","v":"G229"},1,0.83811999999999998,{"$f":"ROUND(IF($F$263=0,0,H263/$F$263),5)","v":0.15207000000000001},1.06E-3,1.2099999999999999E-3,1.7000000000000001E-4,{"$f":"ROUND(IF($F$263=0,0,L263/$F$263),5)","v":4.7999999999999996E-3},-2.9999999999999997E-4,1.9000000000000001E-4,-4.0000000000000003E-5,2.5899999999999999E-3,1.2999999999999999E-4,1,0]
[26,null,{"$f":"'FR-16(7)(v)-1 Functional'!C906","v":"WTD NET C & O PLANT RATIOS"},"Internal",{"$f":"'FR-16(7)(v)-1 Functional'!E906","v":"C229"},1,0.83789999999999998,{"$f":"ROUND(IF($F$275=0,0,H275/$F$275),5)","v":0.15209},1.06E-3,1.1999999999999999E-3,1.7000000000000001E-4,{"$f":"ROUND(IF($F$275=0,0,L275/$F$275),5)","v":4.7999999999999996E-3},-2.9999999999999997E-4,1.9000000000000001E-4,-4.0000000000000003E-5,2.8E-3,1.2999999999999999E-4,0.99999999999999989,0]
[27,null,{"$f":"'FR-16(7)(v)-1 Functional'!C907","v":"WTD NET PLANT RATIOS"},"Internal",{"$f":"'FR-16(7)(v)-1 Functional'!E907","v":"NP29"},1,0.85756999999999994,{"$f":"ROUND(IF($F$277=0,0,H277/$F$277),5)","v":0.11082},9.3000000000000005E-4,1.1299999999999999E-3,1.2999999999999999E-4,{"$f":"ROUND(IF($F$277=0,0,L277/$F$277),5)","v":3.0400000000000002E-3},3.2000000000000003E-4,1.4999999999999999E-4,1E-4,2.572E-2,9.0000000000000006E-5,0.99999999999999989,0]
[28]
[29,"WORKING CAPITAL"]
[30,null,{"$f":"'FR-16(7)(v)-1 Functional'!C910","v":"WTD MATERIAL & SUPPLY RATIOS"},"Internal",{"$f":"'FR-16(7)(v)-1 Functional'!E910","v":"W669"},1,{"$f":"IF(F912=0,0,F912-SUM(H912:Q912))","v":0.83779000000000003},{"$f":"ROUND(IF($F$399=0,0,H399/$F$399),5)","v":0.15209},1.06E-3,1.2099999999999999E-3,1.7000000000000001E-4,{"$f":"ROUND(IF($F$399=0,0,L399/$F$399),5)","v":4.81E-3},-2.9999999999999997E-4,1.9000000000000001E-4,-4.0000000000000003E-5,2.8900000000000002E-3,1.2999999999999999E-4,{"$f":"SUM(G912:Q912)","v":1},{"$f":"F912-R912","v":0},null,null,null,{"$f":"R912","v":1}]
[31,null,{"$f":"'FR-16(7)(v)-1 Functional'!C911","v":"WTD PREPAYMENTS RATIOS"},"Internal",{"$f":"'FR-16(7)(v)-1 Functional'!E911","v":"W689"},1,{"$f":"IF(F913=0,0,F913-SUM(H913:Q913))","v":0.85760000000000003},{"$f":"ROUND(IF($F$405=0,0,H405/$F$405),5)","v":0.11082},9.3000000000000005E-4,1.1199999999999999E-3,1.1E-4,{"$f":"ROUND(IF($F$405=0,0,L405/$F$405),5)","v":3.0500000000000002E-3},3.4000000000000002E-4,1.4999999999999999E-4,1.1E-4,2.5700000000000001E-2,6.9999999999999994E-5,{"$f":"SUM(G913:Q913)","v":1.0000000000000002},{"$f":"F913-R913","v":0},null,null,null,{"$f":"R913","v":1.0000000000000002}]
[32,null,{"$f":"'FR-16(7)(v)-1 Functional'!C912","v":"WTD TOTAL WORKING CASH RATIOS"},"Internal",{"$f":"'FR-16(7)(v)-1 Functional'!E912","v":"W719"},1,{"$f":"IF(F914=0,0,F914-SUM(H914:Q914))","v":1},{"$f":"ROUND(IF($F$408=0,0,H408/$F$408),5)","v":0},0,0,0,{"$f":"ROUND(IF($F$408=0,0,L408/$F$408),5)","v":0},0,0,0,0,0,{"$f":"SUM(G914:Q914)","v":1},{"$f":"F914-R914","v":0},null,null,null,{"$f":"R914","v":1}]
[33,null,{"$f":"'FR-16(7)(v)-1 Functional'!C913","v":"WTD TOTAL MISC WRKNG CAP RATIO"},"Internal",{"$f":"'FR-16(7)(v)-1 Functional'!E913","v":"W749"},1,{"$f":"IF(F915=0,0,F915-SUM(H915:Q915))","v":1},{"$f":"ROUND(IF($F$414=0,0,H414/$F$414),5)","v":0},0,0,0,{"$f":"ROUND(IF($F$414=0,0,L414/$F$414),5)","v":0},0,0,0,0,0,{"$f":"SUM(G915:Q915)","v":1},{"$f":"F915-R915","v":0},null,null,null,{"$f":"R915","v":1}]
[34,null,{"$f":"'FR-16(7)(v)-1 Functional'!C914","v":"WTD TOTAL WRKNG CAP RATIOS"},"Internal",{"$f":"'FR-16(7)(v)-1 Functional'!E914","v":"WC79"},1,{"$f":"IF(F916=0,0,F916-SUM(H916:Q916))","v":0.83789000000000002},{"$f":"ROUND(IF($F$416=0,0,H416/$F$416),5)","v":0.15190000000000001},1.06E-3,1.2099999999999999E-3,1.7000000000000001E-4,{"$f":"ROUND(IF($F$416=0,0,L416/$F$416),5)","v":4.7999999999999996E-3},-2.9999999999999997E-4,1.9000000000000001E-4,-4.0000000000000003E-5,2.99E-3,1.2999999999999999E-4,{"$f":"SUM(G916:Q916)","v":1.0000000000000002},{"$f":"F916-R916","v":0}]
[35]
[36,"RATE BASE"]
[37,null,{"$f":"'FR-16(7)(v)-1 Functional'!C917","v":"WTD NET OCRB RATIOS"},"Internal",{"$f":"'FR-16(7)(v)-1 Functional'!E917","v":"RB29"},1,{"$f":"IF(F919=0,0,F919-SUM(H919:Q919))","v":0.85722999999999994},{"$f":"ROUND(IF($F$390=0,0,H390/$F$390),5)","v":0.11105},9.3000000000000005E-4,1.1299999999999999E-3,1.2999999999999999E-4,{"$f":"ROUND(IF($F$390=0,0,L390/$F$390),5)","v":3.1700000000000001E-3},3.8999999999999999E-4,1.6000000000000001E-4,1.2999999999999999E-4,2.5579999999999999E-2,1E-4,{"$f":"SUM(G919:Q919)","v":0.99999999999999989},{"$f":"F919-R919","v":0}]
[38,null,{"$f":"'FR-16(7)(v)-1 Functional'!C918","v":"WTD TOTAL RATE BASE RATIOS"},"Internal",{"$f":"'FR-16(7)(v)-1 Functional'!E918","v":"RB99"},1,{"$f":"IF(F920=0,0,F920-SUM(H920:Q920))","v":0.85604999999999998},{"$f":"ROUND(IF($F$426=0,0,H426/$F$426),5)","v":0.11359},9.3999999999999997E-4,1.1299999999999999E-3,1.2999999999999999E-4,{"$f":"ROUND(IF($F$426=0,0,L426/$F$426),5)","v":3.2699999999999999E-3},3.4000000000000002E-4,1.6000000000000001E-4,1.2E-4,2.4170000000000001E-2,1E-4,{"$f":"SUM(G920:Q920)","v":1},{"$f":"F920-R920","v":0}]
[39,null,{"$f":"'FR-16(7)(v)-1 Functional'!C919","v":"WTD CWIP RATIO"},"Internal",{"$f":"'FR-16(7)(v)-1 Functional'!E919","v":"CW29"},1,{"$f":"IF(F921=0,0,F921-SUM(H921:Q921))","v":1},{"$f":"ROUND(IF($F$375=0,0,H375/$F$375),5)","v":0},0,0,0,{"$f":"ROUND(IF($F$375=0,0,L375/$F$375),5)","v":0},0,0,0,0,0,{"$f":"SUM(G921:Q921)","v":1},{"$f":"F921-R921","v":0},null,null,null,{"$f":"R921","v":1}]
[]
[{"$f":"co_name","v":"DUKE ENERGY KENTUCKY, INC."},null,null,null,null,null,null,null,null,null,null,null,null,null,null,null,null,{"$f":"R1","v":"FR-16(7)(v)-13"}]
[{"$f":"$A$2","v":"DISTRIBUTION CUSTOMER ALLOCATED - ELECTRIC COST OF SERVICE"},null,null,null,null,null,null,null,null,null,null,null,null,null,null,null,null,{"$f":"R2","v":"WITNESS RESPONSIBLE:"}]
[{"$f":"case_name","v":"CASE NO: 2019-00271"},null,null,null,null,null,null,null,null,null,null,null,null,null,null,null,null,{"$f":"Witness","v":"JAMES E. ZIOLKOWSKI"}]
[{"$f":"data_filing","v":"DATA: 12 MONTHS ACTUAL  & 0 MONTHS ESTIMATED"},null,null,null,null,null,null,null,null,null,null,null,null,null,null,null,null,{"$f":"\"PAGE \"&Pages&\" OF \"&Pages","v":"PAGE 18 OF 18"}]
[{"$f":"type","v":"TYPE OF FILING: \"X\" ORIGINAL   UPDATED    REVISED  "}]
[]
[null,null,null,null,null,{"$f":"F$7","v":"TOTAL"},null,{"$f":"H$7","v":"DS"},{"$f":"I$7","v":"GSFL"},{"$f":"J$7","v":"EH"},{"$f":"K$7","v":"SP"},"DT SEC","DT PRI","DP","TT",null,"OTHER"]
["LINE",null,null,null,null,{"$f":"F$8","v":"DISTRIBUTION"},{"$f":"G$8","v":"RS"},{"$f":"H$8","v":"SECONDARY"},{"$f":"I$8","v":"SECONDARY"},{"$f":"J$8","v":"SECONDARY"},{"$f":"K$8","v":"SECONDARY"},"SECONDARY","PRIMARY","PRIMARY","TRANSMISSION","LT","WATER",{"$f":"R8","v":"TOTAL"},"ALL"]
["NO.","ALLOCATORS",null,"SOURCE","ALLO",{"$f":"F$9","v":"CUSTOMER"},{"$f":"G$9","v":"RESIDENTIAL"},{"$f":"H$9","v":"DISTRIBUTION"},{"$f":"I$9","v":"DISTRIBUTION"},{"$f":"J$9","v":"DISTRIBUTION"},{"$f":"K$9","v":"DISTRIBUTION"},"DISTRIBUTION","DISTRIBUTION","DISTRIBUTION","TIME OF DAY","LIGHTING","PUMPING",{"$f":"R9","v":"AT ISSUE"},"OTHER"]
[null,null,"Schedule 12.2",null,1,null,{"$f":"G$10","v":3},{"$f":"H$10","v":4},{"$f":"I$10","v":5},{"$f":"J$10","v":6},{"$f":"K$10","v":7},8,9,10,11,12,13,null," "]
[1,"WEIGHTED O & M EXPENSE RATIOS"]
[2,null,{"$f":"'FR-16(7)(v)-1 Functional'!C932","v":"WTD PROD DEMAND O&M EXP RATIOS"},"Internal",{"$f":"'FR-16(7)(v)-1 Functional'!E932","v":"P349"},1,{"$f":"ROUND(IF($F$457=0,0,G457/$F$457),5)","v":0},{"$f":"ROUND(IF($F$457=0,0,H457/$F$457),5)","v":0},0,0,0,{"$f":"ROUND(IF($F$457=0,0,L457/$F$457),5)","v":0},0,0,0,0,0,{"$f":"SUM(G934:Q934)","v":0},{"$f":"F934-R934","v":1},null,null,null,{"$f":"R934","v":0}]
[3,null,{"$f":"'FR-16(7)(v)-1 Functional'!C933","v":"WTD PROD ENERGY O&M EXP RATIOS"},"Internal",{"$f":"'FR-16(7)(v)-1 Functional'!E933","v":"E349"},1,{"$f":"ROUND(IF($F$453=0,0,G453/$F$453),5)","v":0},{"$f":"ROUND(IF($F$453=0,0,H453/$F$453),5)","v":0},0,0,0,{"$f":"ROUND(IF($F$453=0,0,L453/$F$453),5)","v":0},0,0,0,0,0,0,1,null,null,null,{"$f":"R935","v":0}]
[4,null,{"$f":"'FR-16(7)(v)-1 Functional'!C934","v":"WTD TOTAL PROD O&M EXP RATIOS"},"Internal",{"$f":"'FR-16(7)(v)-1 Functional'!E934","v":"P459"},1,{"$f":"ROUND(IF($F$459=0,0,G459/$F$459),5)","v":0},{"$f":"ROUND(IF($F$459=0,0,H459/$F$459),5)","v":0},0,0,0,{"$f":"ROUND(IF($F$459=0,0,L459/$F$459),5)","v":0},0,0,0,0,0,0,1,null,null,null,{"$f":"R936","v":0}]
[5,null,{"$f":"'FR-16(7)(v)-1 Functional'!C935","v":"WTD TRANS O&M EXP RATIOS"},"Internal",{"$f":"'FR-16(7)(v)-1 Functional'!E935","v":"T349"},1,{"$f":"ROUND(IF($F$466=0,0,G466/$F$466),5)","v":0},{"$f":"ROUND(IF($F$466=0,0,H466/$F$466),5)","v":0},0,0,0,{"$f":"ROUND(IF($F$466=0,0,L466/$F$466),5)","v":0},0,0,0,0,0,0,1,null,null,null,{"$f":"R937","v":0}]
[6,null,{"$f":"'FR-16(7)(v)-1 Functional'!C936","v":"WTD DIST O&M EXP RATIOS"},"Internal",{"$f":"'FR-16(7)(v)-1 Functional'!E936","v":"D349"},1,{"$f":"ROUND(IF($F$492=0,0,G492/$F$492),5)","v":0.73806000000000005},{"$f":"ROUND(IF($F$492=0,0,H492/$F$492),5)","v":0.10598},6.4999999999999997E-4,8.1999999999999998E-4,1.2E-4,{"$f":"ROUND(IF($F$492=0,0,L492/$F$492),5)","v":2.63E-3},1.3999999999999999E-4,1.1E-4,6.9999999999999994E-5,0.15132000000000001,9.0000000000000006E-5,0.99999000000000027,9.9999999997324451E-6]
[7,null,{"$f":"'FR-16(7)(v)-1 Functional'!C937","v":"WTD UNCOLLECTIBLE ACCOUNT O&M"},"Internal",{"$f":"'FR-16(7)(v)-1 Functional'!E937","v":"C311"},1,{"$f":"ROUND(IF($F$496=0,0,G496/$F$496),5)","v":0.91115000000000002},{"$f":"ROUND(IF($F$496=0,0,H496/$F$496),5)","v":4.3209999999999998E-2},2.7999999999999998E-4,2.9E-4,1.0000000000000001E-5,{"$f":"ROUND(IF($F$496=0,0,L496/$F$496),5)","v":2.2440000000000002E-2},1.4330000000000001E-2,6.4999999999999997E-4,6.7299999999999999E-3,8.9999999999999998E-4,1.0000000000000001E-5,0.99999999999999989,0,null,null,null,{"$f":"R939","v":0.99999999999999989}]
[8,null,{"$f":"'FR-16(7)(v)-1 Functional'!C938","v":"WTD CUST ACCT O&M EXP RATIOS"},"Internal",{"$f":"'FR-16(7)(v)-1 Functional'!E938","v":"C319"},1,{"$f":"ROUND(IF($F$503=0,0,G503/$F$503),5)","v":0.81472999999999995},{"$f":"ROUND(IF($F$503=0,0,H503/$F$503),5)","v":0.17402000000000001},1.01E-3,1.3799999999999999E-3,1.9000000000000001E-4,{"$f":"ROUND(IF($F$503=0,0,L503/$F$503),5)","v":6.13E-3},-5.0000000000000001E-4,2.4000000000000001E-4,-9.0000000000000006E-5,2.7399999999999998E-3,1.4999999999999999E-4,1,0,null,null,null,{"$f":"R940","v":1}]
[9,null,{"$f":"'FR-16(7)(v)-1 Functional'!C939","v":"WTD CUST SERV & INFO O&M  EXP RATIOS"},"Internal",{"$f":"'FR-16(7)(v)-1 Functional'!E939","v":"C331"},1,{"$f":"ROUND(IF($F$518=0,0,G518/$F$518),5)","v":0.90193999999999996},{"$f":"ROUND(IF($F$518=0,0,H518/$F$518),5)","v":9.11E-2},1.2099999999999999E-3,7.2000000000000005E-4,1E-4,{"$f":"ROUND(IF($F$518=0,0,L518/$F$518),5)","v":1.1199999999999999E-3},2.5999999999999998E-4,6.9999999999999994E-5,1.1E-4,3.29E-3,8.0000000000000007E-5,1.0000000000000002,0,null,null,null,{"$f":"R941","v":1.0000000000000002}]
[10,null,{"$f":"'FR-16(7)(v)-1 Functional'!C940","v":"WTD SALES O&M EXP RATIOS"},"Internal",{"$f":"'FR-16(7)(v)-1 Functional'!E940","v":"S319"},1,{"$f":"ROUND(IF($F$522=0,0,G522/$F$522),5)","v":0.90193999999999996},{"$f":"ROUND(IF($F$522=0,0,H522/$F$522),5)","v":9.11E-2},1.2099999999999999E-3,7.2000000000000005E-4,1E-4,{"$f":"ROUND(IF($F$522=0,0,L522/$F$522),5)","v":1.1199999999999999E-3},2.5999999999999998E-4,6.9999999999999994E-5,1.1E-4,3.29E-3,8.0000000000000007E-5,{"$f":"SUM(G942:Q942)","v":1.0000000000000002},{"$f":"F942-R942","v":0}]
[11,null,{"$f":"'FR-16(7)(v)-1 Functional'!C941","v":"WTD O&M EXP RATIOS"},"Internal",{"$f":"'FR-16(7)(v)-1 Functional'!E941","v":"OM39"},1,{"$f":"ROUND(IF($F$549=0,0,G549/$F$549),5)","v":0.80503000000000002},{"$f":"ROUND(IF($F$549=0,0,H549/$F$549),5)","v":0.13743},9.3000000000000005E-4,1.08E-3,1.4999999999999999E-4,{"$f":"ROUND(IF($F$549=0,0,L549/$F$549),5)","v":4.1200000000000004E-3},-1.6000000000000001E-4,1.7000000000000001E-4,0,5.1139999999999998E-2,1.2E-4,{"$f":"SUM(G943:Q943)","v":1.0000099999999998},{"$f":"F943-R943","v":-9.9999999998434674E-6}]
[12]
[13,"A & G EXPENSES"]
[14,null,{"$f":"'FR-16(7)(v)-1 Functional'!C944","v":"WTD PROD DEMAND A&G EXP RATIOS"},"Internal",{"$f":"'FR-16(7)(v)-1 Functional'!E944","v":"A300"},1,{"$f":"ROUND(IF($F$525=0,0,G525/$F$525),5)","v":0},{"$f":"ROUND(IF($F$525=0,0,H525/$F$525),5)","v":0},0,0,0,{"$f":"ROUND(IF($F$525=0,0,L525/$F$525),5)","v":0},0,0,0,0,0,{"$f":"SUM(G946:Q946)","v":0},{"$f":"F946-R946","v":1}]
[15,null,{"$f":"'FR-16(7)(v)-1 Functional'!C945","v":"WTD PROD ENERGY A&G EXP RATIOS"},"Internal",{"$f":"'FR-16(7)(v)-1 Functional'!E945","v":"A302"},1,{"$f":"ROUND(IF($F$526=0,0,G526/$F$526),5)","v":0},{"$f":"ROUND(IF($F$526=0,0,H526/$F$526),5)","v":0},0,0,0,{"$f":"ROUND(IF($F$526=0,0,L526/$F$526),5)","v":0},0,0,0,0,0,0,1]
[16,null,{"$f":"'FR-16(7)(v)-1 Functional'!C946","v":"WTD TRANS A&G EXP RATIOS"},"Internal",{"$f":"'FR-16(7)(v)-1 Functional'!E946","v":"A304"},1,{"$f":"ROUND(IF($F$527=0,0,G527/$F$527),5)","v":0},{"$f":"ROUND(IF($F$527=0,0,H527/$F$527),5)","v":0},0,0,0,{"$f":"ROUND(IF($F$527=0,0,L527/$F$527),5)","v":0},0,0,0,0,0,0,1]
[17,null,{"$f":"'FR-16(7)(v)-1 Functional'!C947","v":"WTD DIST A&G EXP RATIOS"},"Internal",{"$f":"'FR-16(7)(v)-1 Functional'!E947","v":"A306"},1,{"$f":"ROUND(IF($F$528=0,0,G528/$F$528),5)","v":0.73807},{"$f":"ROUND(IF($F$528=0,0,H528/$F$528),5)","v":0.10598},6.4999999999999997E-4,8.1999999999999998E-4,1.2E-4,{"$f":"ROUND(IF($F$528=0,0,L528/$F$528),5)","v":2.63E-3},1.3999999999999999E-4,1.1E-4,6.9999999999999994E-5,0.15132000000000001,9.0000000000000006E-5,1.0000000000000002,0]
[18,null,{"$f":"'FR-16(7)(v)-1 Functional'!C948","v":"WTD CUST ACCT A&G EXP RATIOS"},"Internal",{"$f":"'FR-16(7)(v)-1 Functional'!E948","v":"A308"},1,{"$f":"ROUND(IF($F$529=0,0,G529/$F$529),5)","v":0.81472999999999995},{"$f":"ROUND(IF($F$529=0,0,H529/$F$529),5)","v":0.17402000000000001},1.01E-3,1.3799999999999999E-3,1.9000000000000001E-4,{"$f":"ROUND(IF($F$529=0,0,L529/$F$529),5)","v":6.13E-3},-5.0000000000000001E-4,2.4000000000000001E-4,-9.0000000000000006E-5,2.7399999999999998E-3,1.4999999999999999E-4,1,0]
[19,null,{"$f":"'FR-16(7)(v)-1 Functional'!C949","v":"WTD CUST SERV & INFO A&G  EXP RATIOS"},"Internal",{"$f":"'FR-16(7)(v)-1 Functional'!E949","v":"A310"},1,{"$f":"ROUND(IF($F$530=0,0,G530/$F$530),5)","v":0.90193999999999996},{"$f":"ROUND(IF($F$530=0,0,H530/$F$530),5)","v":9.11E-2},1.2099999999999999E-3,7.2000000000000005E-4,1E-4,{"$f":"ROUND(IF($F$530=0,0,L530/$F$530),5)","v":1.1199999999999999E-3},2.5999999999999998E-4,6.9999999999999994E-5,1.1E-4,3.29E-3,8.0000000000000007E-5,1.0000000000000002,0]
[20,null,{"$f":"'FR-16(7)(v)-1 Functional'!C950","v":"WTD SALES A&G EXP RATIOS"},"Internal",{"$f":"'FR-16(7)(v)-1 Functional'!E950","v":"A312"},1,{"$f":"ROUND(IF($F$531=0,0,G531/$F$531),5)","v":0},{"$f":"ROUND(IF($F$531=0,0,H531/$F$531),5)","v":0},0,0,0,{"$f":"ROUND(IF($F$531=0,0,L531/$F$531),5)","v":0},0,0,0,0,0,0,1]
[21,null,{"$f":"'FR-16(7)(v)-1 Functional'!C951","v":"WTD A&G EXPENSE UNADJUSTED"},"Internal",{"$f":"'FR-16(7)(v)-1 Functional'!E951","v":"A315"},1,{"$f":"ROUND(IF($F$532=0,0,G532/$F$532),5)","v":0.80125999999999997},{"$f":"ROUND(IF($F$532=0,0,H532/$F$532),5)","v":0.15448000000000001},9.3999999999999997E-4,1.2199999999999999E-3,1.7000000000000001E-4,{"$f":"ROUND(IF($F$532=0,0,L532/$F$532),5)","v":5.0899999999999999E-3},-3.2000000000000003E-4,2.0000000000000001E-4,-4.0000000000000003E-5,3.6859999999999997E-2,1.2999999999999999E-4,0.99999000000000005,9.9999999999544897E-6]
[22,null,{"$f":"'FR-16(7)(v)-1 Functional'!C952","v":"WTD A&G EXP RATIOS"},"Internal",{"$f":"'FR-16(7)(v)-1 Functional'!E952","v":"A357"},1,{"$f":"ROUND(IF($F$547=0,0,G547/$F$547),5)","v":0.80125999999999997},{"$f":"ROUND(IF($F$547=0,0,H547/$F$547),5)","v":0.15448999999999999},9.3999999999999997E-4,1.2199999999999999E-3,1.7000000000000001E-4,{"$f":"ROUND(IF($F$547=0,0,L547/$F$547),5)","v":5.0899999999999999E-3},-3.2000000000000003E-4,2.0000000000000001E-4,-5.0000000000000002E-5,3.6859999999999997E-2,1.2999999999999999E-4,0.99999000000000005,9.9999999999544897E-6]
[23]
[24,"DEPRECIATION EXPENSES"]
[25,null,{"$f":"'FR-16(7)(v)-1 Functional'!C955","v":"WTD PRODUCTION DEPREC RATIOS"},"Internal",{"$f":"'FR-16(7)(v)-1 Functional'!E955","v":"P489"},1,{"$f":"ROUND(IF($F$563=0,0,G563/$F$563),5)","v":0},{"$f":"ROUND(IF($F$563=0,0,H563/$F$563),5)","v":0},0,0,0,{"$f":"ROUND(IF($F$563=0,0,L563/$F$563),5)","v":0},0,0,0,0,0,{"$f":"SUM(G957:Q957)","v":0},{"$f":"F957-R957","v":1},null,null,null,{"$f":"R957","v":0}]
[26,null,{"$f":"'FR-16(7)(v)-1 Functional'!C956","v":"WTD TRANS DEPREC RATIOS"},"Internal",{"$f":"'FR-16(7)(v)-1 Functional'!E956","v":"T489"},1,{"$f":"ROUND(IF($F$567=0,0,G567/$F$567),5)","v":0},{"$f":"ROUND(IF($F$567=0,0,H567/$F$567),5)","v":0},0,0,0,{"$f":"ROUND(IF($F$567=0,0,L567/$F$567),5)","v":0},0,0,0,0,0,0,1,null,null,null,{"$f":"R958","v":0}]
[27,null,{"$f":"'FR-16(7)(v)-1 Functional'!C957","v":"WTD DIST DEPREC RATIOS"},"Internal",{"$f":"'FR-16(7)(v)-1 Functional'!E957","v":"D489"},1,{"$f":"ROUND(IF($F$571=0,0,G571/$F$571),5)","v":0.85892000000000002},{"$f":"ROUND(IF($F$571=0,0,H571/$F$571),5)","v":0.10797},9.2000000000000003E-4,1.1199999999999999E-3,1.2E-4,{"$f":"ROUND(IF($F$571=0,0,L571/$F$571),5)","v":2.9199999999999999E-3},3.6999999999999999E-4,1.4999999999999999E-4,1.1E-4,2.7310000000000001E-2,9.0000000000000006E-5,1,0,null,null,null,{"$f":"R959","v":1}]
[28,null,{"$f":"'FR-16(7)(v)-1 Functional'!C958","v":"WTD GENERAL DEPREC EXP RATIOS"},"Internal",{"$f":"'FR-16(7)(v)-1 Functional'!E958","v":"G489"},1,{"$f":"ROUND(IF($F$575=0,0,G575/$F$575),5)","v":0.83811999999999998},{"$f":"ROUND(IF($F$575=0,0,H575/$F$575),5)","v":0.15207000000000001},1.06E-3,1.2099999999999999E-3,1.7000000000000001E-4,{"$f":"ROUND(IF($F$575=0,0,L575/$F$575),5)","v":4.7999999999999996E-3},-2.9999999999999997E-4,1.9000000000000001E-4,-4.0000000000000003E-5,2.5899999999999999E-3,1.2999999999999999E-4,1,0,null,null,null,{"$f":"R960","v":1}]
[29,null,{"$f":"'FR-16(7)(v)-1 Functional'!C959","v":"WTD COM & OTHER DEP EXP RATIOS"},"Internal",{"$f":"'FR-16(7)(v)-1 Functional'!E959","v":"C489"},1,{"$f":"ROUND(IF($F$579=0,0,G579/$F$579),5)","v":0.83799000000000001},{"$f":"ROUND(IF($F$579=0,0,H579/$F$579),5)","v":0.15201999999999999},1.0300000000000001E-3,1.2099999999999999E-3,1.7000000000000001E-4,{"$f":"ROUND(IF($F$579=0,0,L579/$F$579),5)","v":4.8300000000000001E-3},-3.4000000000000002E-4,1.7000000000000001E-4,0,2.7599999999999999E-3,1.7000000000000001E-4,1.0000100000000001,-1.0000000000065512E-5]
[30,null,{"$f":"'FR-16(7)(v)-1 Functional'!C960","v":"WTD TOT DEPREC EXP RATIOS"},"Internal",{"$f":"'FR-16(7)(v)-1 Functional'!E960","v":"DE49"},1,{"$f":"ROUND(IF($F$582=0,0,G582/$F$582),5)","v":0.85463},{"$f":"ROUND(IF($F$582=0,0,H582/$F$582),5)","v":0.11706999999999999},9.5E-4,1.14E-3,1.2999999999999999E-4,{"$f":"ROUND(IF($F$582=0,0,L582/$F$582),5)","v":3.31E-3},2.3000000000000001E-4,1.6000000000000001E-4,8.0000000000000007E-5,2.2210000000000001E-2,1E-4,1.0000100000000001,-1.0000000000065512E-5,null,null,null,{"$f":"R962","v":1.0000100000000001}]
[31]
[32,"OTHER TAXES & MISC EXPENSES"]
[33,null,{"$f":"'FR-16(7)(v)-1 Functional'!C963","v":"WTD R. E. & PROP TAX RATIOS"},"Internal",{"$f":"'FR-16(7)(v)-1 Functional'!E963","v":"L529"},1,{"$f":"ROUND(IF($F$598=0,0,G598/$F$598),5)","v":0.85757000000000005},{"$f":"ROUND(IF($F$598=0,0,H598/$F$598),5)","v":0.11082},9.3000000000000005E-4,1.1299999999999999E-3,1.2999999999999999E-4,{"$f":"ROUND(IF($F$598=0,0,L598/$F$598),5)","v":3.0400000000000002E-3},3.2000000000000003E-4,1.4999999999999999E-4,1E-4,2.572E-2,9.0000000000000006E-5,{"$f":"SUM(G965:Q965)","v":1},{"$f":"F965-R965","v":0},null,null,null,{"$f":"R965","v":1}]
[34,null,{"$f":"'FR-16(7)(v)-1 Functional'!C964","v":"WTD MISC TAX RATIOS"},"Internal",{"$f":"'FR-16(7)(v)-1 Functional'!E964","v":"L589"},1,{"$f":"ROUND(IF($F$605=0,0,G605/$F$605),5)","v":0.80127000000000004},{"$f":"ROUND(IF($F$605=0,0,H605/$F$605),5)","v":0.15448000000000001},9.3000000000000005E-4,1.2199999999999999E-3,1.8000000000000001E-4,{"$f":"ROUND(IF($F$605=0,0,L605/$F$605),5)","v":5.0899999999999999E-3},-3.2000000000000003E-4,2.1000000000000001E-4,-4.0000000000000003E-5,3.6859999999999997E-2,1.2E-4,{"$f":"SUM(G966:Q966)","v":1},{"$f":"F966-R966","v":0},null,null,null,{"$f":"R966","v":1}]
[35,null,{"$f":"'FR-16(7)(v)-1 Functional'!C965","v":"WTD OTHER TAX RATIOS"},"Internal",{"$f":"'FR-16(7)(v)-1 Functional'!E965","v":"L599"},1,{"$f":"ROUND(IF($F$612=0,0,G612/$F$612),5)","v":0.84794000000000003},{"$f":"ROUND(IF($F$612=0,0,H612/$F$612),5)","v":0.11663},9.3999999999999997E-4,1.15E-3,1.2999999999999999E-4,{"$f":"ROUND(IF($F$612=0,0,L612/$F$612),5)","v":4.6600000000000001E-3},1.1900000000000001E-3,2.0000000000000001E-4,5.1000000000000004E-4,2.656E-2,9.0000000000000006E-5,{"$f":"SUM(G967:Q967)","v":1},{"$f":"F967-R967","v":0},null,null,null,{"$f":"R967","v":1}]
[36,null,{"$f":"'FR-16(7)(v)-1 Functional'!C966","v":"WTD OP EXP EX IT & REV RATIOS"},"Internal",{"$f":"'FR-16(7)(v)-1 Functional'!E966","v":"OP69"},1,{"$f":"ROUND(IF($F$618=0,0,G618/$F$618),5)","v":0.81959000000000004},{"$f":"ROUND(IF($F$618=0,0,H618/$F$618),5)","v":0.13120000000000001},9.3000000000000005E-4,1.1000000000000001E-3,1.4999999999999999E-4,{"$f":"ROUND(IF($F$618=0,0,L618/$F$618),5)","v":3.98E-3},4.0000000000000003E-5,1.7000000000000001E-4,6.0000000000000002E-5,4.2680000000000003E-2,1.1E-4,{"$f":"SUM(G968:Q968)","v":1.0000100000000001},{"$f":"F968-R968","v":-1.0000000000065512E-5},null,null,null,{"$f":"R968","v":1.0000100000000001}]
[37]
[38,"TOTAL COST OF SERVICE"]
[39,null,{"$f":"'FR-16(7)(v)-1 Functional'!C969","v":"WTD TOTAL COST OF SERVICE"},"Internal",{"$f":"'FR-16(7)(v)-1 Functional'!E969","v":"CS09"},1,{"$f":"ROUND(IF($F$770=0,0,G770/$F$770),9)","v":0.82704737399999995},0.12745025700000001,9.3484099999999995E-4,1.106253E-3,1.43232E-4,3.8298329999999999E-3,1.00745E-4,1.6674800000000001E-4,7.0351000000000005E-5,3.9041480000000003E-2,1.08886E-4,{"$f":"SUM(G971:Q971)","v":0.99999999999999989},{"$f":"F971-R971","v":0},null,null,null,{"$f":"R971","v":0.99999999999999989}]
[40]
[41,"WAGES & SALARIES (K600-K639)"]
[42,null,{"$f":"'FR-16(7)(v)-1 Functional'!C972","v":"WTD RATIOS"},"Internal",{"$f":"'FR-16(7)(v)-1 Functional'!E972","v":"K669"}]
[]
[]
[]
[]
[]
[]
[]
[]
[]
[1,"REVENUE NOT TO BE INCLUDED IN REVENUE TAX CALC"]
[2,null,"GOVERNMENTAL",null,"A357",{"$f":"'FR-16(7)(v)-10 DIST Classified'!I985","v":0},{"$f":"F985-SUM(H985:Q985)","v":0},{"$f":"ROUND(F985*VLOOKUP(E985,ALLOCTABLE_Distr_Customer,$H$10,FALSE),0)","v":0},{"$f":"ROUND(F985*VLOOKUP(E985,ALLOCTABLE_Distr_Customer,$I$10,FALSE),0)","v":0},{"$f":"ROUND(F985*VLOOKUP(E985,ALLOCTABLE_Distr_Customer,$J$10,FALSE),0)","v":0},{"$f":"ROUND(F985*VLOOKUP(E985,ALLOCTABLE_Distr_Customer,$K$10,FALSE),0)","v":0},{"$f":"ROUND(F985*VLOOKUP(E985,ALLOCTABLE_Distr_Customer,$L$10,FALSE),0)","v":0},{"$f":"ROUND(F985*VLOOKUP(E985,ALLOCTABLE_Distr_Customer,$M$10,FALSE),0)","v":0},{"$f":"ROUND(F985*VLOOKUP(E985,ALLOCTABLE_Distr_Customer,$N$10,FALSE),0)","v":0},{"$f":"ROUND(F985*VLOOKUP(E985,ALLOCTABLE_Distr_Customer,$O$10,FALSE),0)","v":0},{"$f":"ROUND(F985*VLOOKUP(E985,ALLOCTABLE_Distr_Customer,$P$10,FALSE),0)","v":0},{"$f":"ROUND(F985*VLOOKUP(E985,ALLOCTABLE_Distr_Customer,$Q$10,FALSE),0)","v":0},{"$f":"SUM(G985:Q985)","v":0},{"$f":"F985-R985","v":0}]
[3,null,"INTERDEPARTMENTAL",null,"A357",{"$f":"'FR-16(7)(v)-10 DIST Classified'!I986","v":0},0,0,0,0,0,0,0,0,0,0,0,0,0]
[4,null,"UNCOLLECTIBLE EXPENSE",null,"A357",{"$f":"'FR-16(7)(v)-10 DIST Classified'!I987","v":0},0,0,0,0,0,0,0,0,0,0,0,0,0]
[5,null,"OTHER PROD GAS ASSC COS  489050",null,"K301",{"$f":"'FR-16(7)(v)-10 DIST Classified'!I988","v":0},0,0,0,0,0,0,0,0,0,0,0,0,0]
[6,null,"MISC. REV. - SALE OF MATERIAL",null,"A357",{"$f":"'FR-16(7)(v)-10 DIST Classified'!I989","v":0},0,0,0,0,0,0,0,0,0,0,0,0,0]
[7,null,"RENT ASSOC. COS  49302,04,05,06,07,08,11 & 50",null,"NP29",{"$f":"'FR-16(7)(v)-10 DIST Classified'!I990","v":0},0,0,0,0,0,0,0,0,0,0,0,0,0]
[8,null,"TOTAL","REXC",null,{"$f":"SUM(F984:F990)","v":0},0,0,0,{"$f":"SUM(J984:J990)","v":0},0,0,0,0,0,0,0,0,0]
[]
[]
[]
[]
[]
["DO NOT FILE THIS PAGE"]
[]
[{"$f":"co_name","v":"DUKE ENERGY KENTUCKY, INC."},null,null,null,null,null,null,null,null,null,null,null,null,null,null,null,null,{"$f":"R1","v":"FR-16(7)(v)-13"}]
[{"$f":"$A$2","v":"DISTRIBUTION CUSTOMER ALLOCATED - ELECTRIC COST OF SERVICE"},null,null,null,null,null,null,null,null,null,null,null,null,null,null,null,null,{"$f":"R2","v":"WITNESS RESPONSIBLE:"}]
[{"$f":"case_name","v":"CASE NO: 2019-00271"},null,null,null,null,null,null,null,null,null,null,null,null,null,null,null,null,{"$f":"Witness","v":"JAMES E. ZIOLKOWSKI"}]
[{"$f":"data_filing","v":"DATA: 12 MONTHS ACTUAL  & 0 MONTHS ESTIMATED"},null,null,null,null,null,null,null,null,null,null,null,null,null,null,null,null,{"$f":"\"PAGE \"&Pages&\" OF \"&Pages","v":"PAGE 18 OF 18"}]
[{"$f":"type","v":"TYPE OF FILING: \"X\" ORIGINAL   UPDATED    REVISED  "}]
[]
[null,null,null,null,null,{"$f":"F$7","v":"TOTAL"},null,{"$f":"H$7","v":"DS"},{"$f":"I$7","v":"GSFL"},{"$f":"J$7","v":"EH"},{"$f":"K$7","v":"SP"},"DT SEC","DT PRI","DP","TT",null,"OTHER"]
["LINE",null,null,null,null,{"$f":"F$8","v":"DISTRIBUTION"},{"$f":"G$8","v":"RS"},{"$f":"H$8","v":"SECONDARY"},{"$f":"I$8","v":"SECONDARY"},{"$f":"J$8","v":"SECONDARY"},{"$f":"K$8","v":"SECONDARY"},"SECONDARY","PRIMARY","PRIMARY","TRANSMISSION","LT","WATER",{"$f":"R8","v":"TOTAL"},"ALL"]
["NO.","INCOME TAX BASED ON REVENUES",null,"ALLO",null,{"$f":"F$9","v":"CUSTOMER"},{"$f":"G$9","v":"RESIDENTIAL"},{"$f":"H$9","v":"DISTRIBUTION"},{"$f":"I$9","v":"DISTRIBUTION"},{"$f":"J$9","v":"DISTRIBUTION"},{"$f":"K$9","v":"DISTRIBUTION"},"DISTRIBUTION","DISTRIBUTION","DISTRIBUTION","TIME OF DAY","LIGHTING","PUMPING",{"$f":"R9","v":"AT ISSUE"},"OTHER"]
[null,null,"Schedule 13",null,null,null,{"$f":"G$10","v":3},{"$f":"H$10","v":4},{"$f":"I$10","v":5},{"$f":"J$10","v":6},{"$f":"K$10","v":7},8,9,10,11,12,13,null," "]
[1,"NET INCOME COMPUTATION"]
[2,null,{"$f":"'FR-16(7)(v)-1 Functional'!C1008","v":"TOTAL ELECTRIC COST OF SERVICE"},null,null,{"$f":"F770","v":25301628},20925645,3224699,23653,{"$f":"J770","v":27990},3624,96901,2549,4219,1780,987813,2755,25301628,0]
[3,null,{"$f":"'FR-16(7)(v)-1 Functional'!C1009","v":"TOTAL OTHER OPERATING REVENUES"},null,null,{"$f":"F750","v":367410},{"$f":"G750","v":315575},{"$f":"H750","v":39670},{"$f":"I750","v":338},{"$f":"J750","v":411},44,1073,136,55,41,10034,{"$f":"$Q$750","v":33},{"$f":"R750","v":367410},{"$f":"S750","v":0}]
[4,null,{"$f":"'FR-16(7)(v)-1 Functional'!C1010","v":"  TOTAL ELECTRIC REVENUE"},null,null,{"$f":"SUM(F1009:F1011)","v":25669038},21241220,3264369,23991,{"$f":"SUM(J1009:J1011)","v":28401},3668,97974,2685,4274,1821,997847,2788,25669038,0]
[5,null,{"$f":"'FR-16(7)(v)-1 Functional'!C1011","v":"TOTAL OP EXP EX INC & REV TAX"},null,null,{"$f":"-F618","v":-18534414},{"$f":"-G618","v":-15190555},{"$f":"-H618","v":-2431732},{"$f":"-I618","v":-17313},{"$f":"-J618","v":-20412},-2715,-73699,-655,-3120,-1037,-791126,{"$f":"-$Q$618","v":-2050},{"$f":"-R618","v":-18534414},{"$f":"-S618","v":0}]
[6,null,{"$f":"'FR-16(7)(v)-1 Functional'!C1012","v":"FIRM SERVICE REVENUE TAX"},null,null,{"$f":"-ROUND(F817*F1010,0)","v":0},{"$f":"F1014-SUM(H1014:Q1014)","v":0},{"$f":"-ROUND(H817*H1010,0)","v":0},0,0,0,0,0,0,0,0,0,{"$f":"SUM(G1014:Q1014)","v":0},{"$f":"-ROUND('FR-16(7)(v)-1 Functional'!K817*S1010,0)","v":0}]
[7,null,{"$f":"'FR-16(7)(v)-1 Functional'!C1013","v":"  NET INCOME"},null,null,{"$f":"SUM(F1012:F1014)","v":7134624},{"$f":"SUM(G1012:G1014)","v":6050665},{"$f":"SUM(H1012:H1014)","v":832637},{"$f":"SUM(I1012:I1014)","v":6678},{"$f":"SUM(J1012:J1014)","v":7989},953,24275,2030,1154,784,206721,{"$f":"SUM(Q1012:Q1014)","v":738},{"$f":"SUM(G1015:Q1015)","v":7134624},{"$f":"SUM(S1012:S1014)","v":0}]
[8]
[9,"ADJUSTMENTS TO NET INCOME"]
[10,null,{"$f":"'FR-16(7)(v)-1 Functional'!C1016","v":"TOTAL INTEREST EXPENSE"},null,null,{"$f":"-F633","v":-1843751},{"$f":"-G633","v":-1578344},{"$f":"-H633","v":-209432},{"$f":"-I633","v":-1733},{"$f":"-J633","v":-2083},-240,-6029,-627,-295,-221,-44563,{"$f":"-$Q$633","v":-184},{"$f":"-R633","v":-1843751},{"$f":"-S633","v":0}]
[11,null,{"$f":"'FR-16(7)(v)-1 Functional'!C1017","v":"TOTAL OTHER DEDUCTIONS"},null,null,{"$f":"-F639","v":-4987626},{"$f":"-G639","v":-4266152},{"$f":"-H639","v":-581359},{"$f":"-I639","v":-4739},{"$f":"-J639","v":-5680},-645,-16388,-1185,-794,-408,-109779,{"$f":"-$Q$639","v":-497},{"$f":"-R639","v":-4987626},{"$f":"-S639","v":0}]
[12,null,{"$f":"'FR-16(7)(v)-1 Functional'!C1018","v":"  PRELIMINARY TAXABLE INCOME"},null,null,{"$f":"SUM(F1017:F1019)+F1015","v":303247},{"$f":"SUM(G1017:G1019)+G1015","v":206169},{"$f":"SUM(H1017:H1019)+H1015","v":41846},{"$f":"SUM(I1017:I1019)+I1015","v":206},{"$f":"SUM(J1017:J1019)+J1015","v":226},68,1858,218,65,155,52379,{"$f":"SUM(Q1017:Q1019)+Q1015","v":57},{"$f":"SUM(G1020:Q1020)","v":303247},{"$f":"SUM(S1017:S1019)+S1015","v":0}]
[13]
[14,"INCOME TAX BASED ON REVENUES"]
[15,"FEDERAL INCOME TAX COMPUTATION"]
[16,null,{"$f":"'FR-16(7)(v)-1 Functional'!C1022","v":"PRELIMINARY TAXABLE INCOME"},null,null,{"$f":"F1020","v":303247},206169,41846,206,{"$f":"J1020","v":226},68,1858,218,65,155,52379,57,303247,0]
[17,null,{"$f":"'FR-16(7)(v)-1 Functional'!C1023","v":"  NET FEDERAL TAXABLE INCOME"},null,null,{"$f":"SUM(F1024:F1024)","v":303247},206169,41846,206,{"$f":"SUM(J1024:J1024)","v":226},68,1858,218,65,155,52379,57,303247,0]
[18,null,{"$f":"'FR-16(7)(v)-1 Functional'!C1024","v":"  FEDERAL INCOME TAX RATE"},null,null,{"$f":"F815","v":0.21},{"$f":"G815","v":0.21},{"$f":"H815","v":0.21},{"$f":"I815","v":0.21},{"$f":"J815","v":0.21},0.21,0.21,0.21,0.21,0.21,0.21,{"$f":"Q815","v":0.21},null,{"$f":"'FR-16(7)(v)-1 Functional'!K815","v":0.21}]
[19,null,{"$f":"'FR-16(7)(v)-1 Functional'!C1025","v":"PRELIMINARY FIT = FI01 * K190"},null,null,{"$f":"ROUND(F1026*F1025,0)","v":63682},{"$f":"ROUND(G1026*G1025,0)","v":43295},{"$f":"ROUND(H1026*H1025,0)","v":8788},{"$f":"ROUND(I1026*I1025,0)","v":43},{"$f":"ROUND(J1026*J1025,0)","v":47},14,390,46,14,33,11000,{"$f":"ROUND(Q1026*Q1025,0)","v":12},{"$f":"SUM(G1027:Q1027)","v":63682},{"$f":"ROUND(S1026*S1025,0)","v":0}]
[20,null,{"$f":"'FR-16(7)(v)-1 Functional'!C1026","v":"TOTAL FED DEF IT (410 & 411)"},null,null,{"$f":"F649","v":262705},{"$f":"G649","v":213716},{"$f":"H649","v":25938},{"$f":"I649","v":238},{"$f":"J649","v":200},28,504,54,27,30,21944,{"$f":"$Q$649","v":26},{"$f":"R649","v":262705},{"$f":"S649","v":0}]
[21,null,{"$f":"'FR-16(7)(v)-1 Functional'!C1027","v":"TOTAL AMORTIZED ITC"},null,null,{"$f":"-F653","v":-41},{"$f":"-G653","v":-35},{"$f":"-H653","v":-5},{"$f":"-I653","v":0},{"$f":"-J653","v":0},0,0,0,0,0,-1,{"$f":"-$Q$653","v":0},{"$f":"-R653","v":-41},{"$f":"-S653","v":0}]
[22,null,{"$f":"'FR-16(7)(v)-1 Functional'!C1028","v":"  NET FED INC TAX ALLOWABLE"},null,null,{"$f":"SUM(F1027:F1029)","v":326346},256976,34721,281,{"$f":"SUM(J1027:J1029)","v":247},42,894,100,41,63,32943,38,326346,0]
[23]
[24,"FEDERAL INCOME TAX PAYABLE"]
[25,null,{"$f":"'FR-16(7)(v)-1 Functional'!C1031","v":"PRELIM FIT"},null,null,{"$f":"F1027","v":63682},43295,8788,43,{"$f":"J1027","v":47},14,390,46,14,33,11000,12,63682,0]
[26,null,{"$f":"'FR-16(7)(v)-1 Functional'!C1032","v":"TEST YEAR INV TAX CREDIT"},null,null,{"$f":"-F658","v":0},{"$f":"-G658","v":0},{"$f":"-H658","v":0},{"$f":"-I658","v":0},{"$f":"-J658","v":0},0,0,0,0,0,0,{"$f":"-$Q$658","v":0},{"$f":"-R658","v":0},{"$f":"-S658","v":0}]
[27,null,{"$f":"'FR-16(7)(v)-1 Functional'!C1033","v":"  FED INC TAX PAYABLE"},null,null,{"$f":"SUM(F1032:F1034)","v":63682},43295,8788,43,{"$f":"SUM(J1032:J1034)","v":47},14,390,46,14,33,11000,12,63682,0]
[28]
[29,"PRELIMINARY SUMMARY"]
[30,null,{"$f":"'FR-16(7)(v)-1 Functional'!C1036","v":"NET INCOME"},null,null,{"$f":"F1015","v":7134624},6050665,832637,6678,{"$f":"J1015","v":7989},953,24275,2030,1154,784,206721,738,7134624,0]
[31,null,{"$f":"'FR-16(7)(v)-1 Functional'!C1037","v":"NET FED INC TAX ALLOWABLE"},null,null,{"$f":"-F1030","v":-326346},-256976,-34721,-281,{"$f":"-J1030","v":-247},-42,-894,-100,-41,-63,-32943,-38,-326346,0]
[32,null,{"$f":"'FR-16(7)(v)-1 Functional'!C1038","v":"  OVERALL RETURN EARNED"},null,null,{"$f":"SUM(F1037:F1039)","v":6808278},5793689,797916,6397,{"$f":"SUM(J1037:J1039)","v":7742},911,23381,1930,1113,721,173778,700,6808278,0]
[33]
[34,null,{"$f":"'FR-16(7)(v)-1 Functional'!C1040","v":"  RATE OF RETURN EARNED"},null,null,{"$f":"IF(F426=0,0,ROUND(F1040/F426,5))","v":7.2349999999999998E-2},7.1929999999999994E-2,7.4649999999999994E-2,7.2429999999999994E-2,7.2690000000000005E-2,7.5660000000000005E-2,7.5980000000000006E-2,5.9650000000000002E-2,7.5149999999999995E-2,6.3299999999999995E-2,7.6410000000000006E-2,7.6530000000000001E-2,7.2349999999999998E-2,0]

{"sheet":"Allocated COSS Check Total","index":17,"n_rows":1029,"n_cols":19,"rows_kept":1029,"cut":false,"hidden":false,"merged":[]}
[{"$f":"co_name","v":"DUKE ENERGY KENTUCKY, INC."},null,null,null,null,null,null,null,null,"FR-16(7)(v)-10",null,null,null,null,null,null,null,"FR-16(7)(v)-14"]
["TOTAL CLASS ALLOCATED - ELECTRIC COST OF SERVICE",null,null,null,null,null,null,null,null,null,null,null,null,null,null,null,null,"WITNESS RESPONSIBLE:"]
[{"$f":"case_name","v":"CASE NO: 2019-00271"},null,null,null,null,null,null,null,null,null,null,null,null,null,null,null,null,{"$f":"Witness","v":"JAMES E. ZIOLKOWSKI"}]
[{"$f":"data_filing","v":"DATA: 12 MONTHS ACTUAL  & 0 MONTHS ESTIMATED"},null,null,null,null,null,null,null,null,null,null,null,null,null,null,null,null,{"$f":"\"PAGE \"&Pages2-14&\" OF \"&Pages2","v":"PAGE 1 OF 15"}]
[{"$f":"type","v":"TYPE OF FILING: \"X\" ORIGINAL   UPDATED    REVISED  "}]
[]
[null,null,null,null,null,"TOTAL",null,{"$f":"'FR-16(7)(v)-3 PROD Demand'!H7","v":"DS"},{"$f":"'FR-16(7)(v)-3 PROD Demand'!I7","v":"GSFL"},{"$f":"'FR-16(7)(v)-3 PROD Demand'!J7","v":"EH"},{"$f":"'FR-16(7)(v)-3 PROD Demand'!K7","v":"SP"},{"$f":"'FR-16(7)(v)-3 PROD Demand'!L7","v":"DT SEC"},{"$f":"'FR-16(7)(v)-3 PROD Demand'!M7","v":"DT PRI"},{"$f":"'FR-16(7)(v)-3 PROD Demand'!N7","v":"DP"},{"$f":"'FR-16(7)(v)-3 PROD Demand'!O7","v":"TT"},null,{"$f":"'FR-16(7)(v)-3 PROD Demand'!Q7","v":"OTHER"}]
["LINE",null,null,null,null,"CLASS",{"$f":"'FR-16(7)(v)-3 PROD Demand'!G8","v":"RS"},{"$f":"'FR-16(7)(v)-3 PROD Demand'!H8","v":"SECONDARY"},{"$f":"'FR-16(7)(v)-3 PROD Demand'!I8","v":"SECONDARY"},{"$f":"'FR-16(7)(v)-3 PROD Demand'!J8","v":"SECONDARY"},{"$f":"'FR-16(7)(v)-3 PROD Demand'!K8","v":"SECONDARY"},{"$f":"'FR-16(7)(v)-3 PROD Demand'!L8","v":"SECONDARY"},{"$f":"'FR-16(7)(v)-3 PROD Demand'!M8","v":"PRIMARY"},{"$f":"'FR-16(7)(v)-3 PROD Demand'!N8","v":"PRIMARY"},{"$f":"'FR-16(7)(v)-3 PROD Demand'!O8","v":"TRANSMISSION"},{"$f":"'FR-16(7)(v)-3 PROD Demand'!P8","v":"LT"},{"$f":"'FR-16(7)(v)-3 PROD Demand'!Q8","v":"WATER"},{"$f":"'FR-16(7)(v)-3 PROD Demand'!R8","v":"TOTAL"},{"$f":"'FR-16(7)(v)-3 PROD Demand'!S8","v":"ALL"}]
["NO.","SUMMARY OF RESULTS",null,"ALLO",null,"ALLOCATED",{"$f":"'FR-16(7)(v)-3 PROD Demand'!G9","v":"RESIDENTIAL"},{"$f":"'FR-16(7)(v)-3 PROD Demand'!H9","v":"DISTRIBUTION"},{"$f":"'FR-16(7)(v)-3 PROD Demand'!I9","v":"DISTRIBUTION"},{"$f":"'FR-16(7)(v)-3 PROD Demand'!J9","v":"DISTRIBUTION"},{"$f":"'FR-16(7)(v)-3 PROD Demand'!K9","v":"DISTRIBUTION"},{"$f":"'FR-16(7)(v)-3 PROD Demand'!L9","v":"DISTRIBUTION"},{"$f":"'FR-16(7)(v)-3 PROD Demand'!M9","v":"DISTRIBUTION"},{"$f":"'FR-16(7)(v)-3 PROD Demand'!N9","v":"DISTRIBUTION"},{"$f":"'FR-16(7)(v)-3 PROD Demand'!O9","v":"TIME OF DAY"},{"$f":"'FR-16(7)(v)-3 PROD Demand'!P9","v":"LIGHTING"},{"$f":"'FR-16(7)(v)-3 PROD Demand'!Q9","v":"PUMPING"},{"$f":"'FR-16(7)(v)-3 PROD Demand'!R9","v":"AT ISSUE"},{"$f":"'FR-16(7)(v)-3 PROD Demand'!S9","v":"OTHER"}]
[null,null,"Schedule 1",null,null,null,3,4,5,6,7,8,9,10,11,12,13]
[1,"NET INCOME COMPUTATION"]
[2,null,{"$f":"'FR-16(7)(v)-1 Functional'!C12","v":"GROSS ELECTRIC PLANT IN SERVICE"},null,null,{"$f":"F123","v":0},0,0,0,0,0,0,0,0,0,0,0,{"$f":"SUM(G12:Q12)","v":0},{"$f":"F12-R12","v":0}]
[3,null,{"$f":"'FR-16(7)(v)-1 Functional'!C13","v":"TOTAL DEPRECIATION RESERVE"},null,null,{"$f":"-F200","v":0},0,0,0,0,0,0,0,0,0,0,0,{"$f":"SUM(G13:Q13)","v":0},{"$f":"F13-R13","v":0}]
[4,null,{"$f":"'FR-16(7)(v)-1 Functional'!C14","v":"TOTAL RATE BASE ADJUSTMENTS"},null,null,{"$f":"F421","v":0},0,0,0,0,0,0,0,0,0,0,0,{"$f":"SUM(G14:Q14)","v":0},{"$f":"F14-R14","v":0}]
[5,null,{"$f":"'FR-16(7)(v)-1 Functional'!C15","v":"  TOTAL RATE BASE"},null,null,{"$f":"SUM(F12:F14)","v":0},0,0,0,0,0,0,0,0,0,0,0,0,{"$f":"F15-R15","v":0}]
[6]
[7,"OPERATING EXPENSES"]
[8,null,{"$f":"'FR-16(7)(v)-1 Functional'!C18","v":"TOTAL O&M EXPENSE"},null,null,{"$f":"F549","v":0},0,0,0,0,0,0,0,0,0,0,0,{"$f":"SUM(G18:Q18)","v":0},{"$f":"F18-R18","v":0}]
[9,null,{"$f":"'FR-16(7)(v)-1 Functional'!C19","v":"TOTAL DEPRECIATION EXPENSE"},null,null,{"$f":"F582","v":0},0,0,0,0,0,0,0,0,0,0,0,{"$f":"SUM(G19:Q19)","v":0},0]
[10,null,{"$f":"'FR-16(7)(v)-1 Functional'!C20","v":"TOTAL OTHER TAX & MISC EXPENSE"},null,null,{"$f":"F612","v":0},{"$f":"G612","v":0},{"$f":"H612","v":0},{"$f":"I612","v":0},{"$f":"J612","v":0},0,0,0,0,0,0,{"$f":"$Q$612","v":0},{"$f":"SUM(G20:Q20)","v":0},0]
[11,null,{"$f":"'FR-16(7)(v)-1 Functional'!C21","v":"  TOTAL OP EXP EXCLUDING INC & REV TAX"},null,null,{"$f":"SUM(F17:F20)","v":0},0,0,0,0,0,0,0,0,0,0,0,0,0]
[12,null,{"$f":"'FR-16(7)(v)-1 Functional'!C22","v":"NET FED INCOME TAX EXP ALLOWABLE"},null,null,{"$f":"F676","v":-176},{"$f":"G676","v":0},{"$f":"H676","v":0},{"$f":"I676","v":0},{"$f":"J676","v":0},0,0,0,0,0,0,{"$f":"$Q$676","v":0},{"$f":"SUM(G22:Q22)","v":0},-176]
[13,null,"NET STATE INCOME TAX EXP ALLOWABLE",null,null,{"$f":"F722","v":-9},{"$f":"G722","v":0},0,0,0,0,0,0,0,0,0,0,{"$f":"SUM(G23:Q23)","v":0},-9]
[14,null,"RESERVED",{"$f":"'FR-16(7)(v)-1 Functional'!D24","v":"CW29"},null,{"$f":"'FR-16(7)(v)-3 PROD Demand'!F24+'FR-16(7)(v)-4 PROD Energy'!F24+'FR-16(7)(v)-5 PROD Cust'!F24+'FR-16(7)(v)-7 TRANS Demand'!F24+'FR-16(7)(v)-8 TRANS Energy'!F24+'FR-16(7)(v)-9 TRANS Cust'!F24+'FR-16(7)(v)-11 DIST Demand'!F24+'FR-16(7)(v)-12 DIST Energy'!F24+'FR-16(7)(v)-13 DIST Cust'!F24-'FR-16(7)(v)-14 TOTAL CLASS'!F24","v":0},{"$f":"'FR-16(7)(v)-3 PROD Demand'!G24+'FR-16(7)(v)-4 PROD Energy'!G24+'FR-16(7)(v)-5 PROD Cust'!G24+'FR-16(7)(v)-7 TRANS Demand'!G24+'FR-16(7)(v)-8 TRANS Energy'!G24+'FR-16(7)(v)-9 TRANS Cust'!G24+'FR-16(7)(v)-11 DIST Demand'!G24+'FR-16(7)(v)-12 DIST Energy'!G24+'FR-16(7)(v)-13 DIST Cust'!G24-'FR-16(7)(v)-14 TOTAL CLASS'!G24","v":0},{"$f":"'FR-16(7)(v)-3 PROD Demand'!H24+'FR-16(7)(v)-4 PROD Energy'!H24+'FR-16(7)(v)-5 PROD Cust'!H24+'FR-16(7)(v)-7 TRANS Demand'!H24+'FR-16(7)(v)-8 TRANS Energy'!H24+'FR-16(7)(v)-9 TRANS Cust'!H24+'FR-16(7)(v)-11 DIST Demand'!H24+'FR-16(7)(v)-12 DIST Energy'!H24+'FR-16(7)(v)-13 DIST Cust'!H24-'FR-16(7)(v)-14 TOTAL CLASS'!H24","v":0},{"$f":"'FR-16(7)(v)-3 PROD Demand'!I24+'FR-16(7)(v)-4 PROD Energy'!I24+'FR-16(7)(v)-5 PROD Cust'!I24+'FR-16(7)(v)-7 TRANS Demand'!I24+'FR-16(7)(v)-8 TRANS Energy'!I24+'FR-16(7)(v)-9 TRANS Cust'!I24+'FR-16(7)(v)-11 DIST Demand'!I24+'FR-16(7)(v)-12 DIST Energy'!I24+'FR-16(7)(v)-13 DIST Cust'!I24-'FR-16(7)(v)-14 TOTAL CLASS'!I24","v":0},{"$f":"'FR-16(7)(v)-3 PROD Demand'!J24+'FR-16(7)(v)-4 PROD Energy'!J24+'FR-16(7)(v)-5 PROD Cust'!J24+'FR-16(7)(v)-7 TRANS Demand'!J24+'FR-16(7)(v)-8 TRANS Energy'!J24+'FR-16(7)(v)-9 TRANS Cust'!J24+'FR-16(7)(v)-11 DIST Demand'!J24+'FR-16(7)(v)-12 DIST Energy'!J24+'FR-16(7)(v)-13 DIST Cust'!J24-'FR-16(7)(v)-14 TOTAL CLASS'!J24","v":0},{"$f":"'FR-16(7)(v)-3 PROD Demand'!K24+'FR-16(7)(v)-4 PROD Energy'!K24+'FR-16(7)(v)-5 PROD Cust'!K24+'FR-16(7)(v)-7 TRANS Demand'!K24+'FR-16(7)(v)-8 TRANS Energy'!K24+'FR-16(7)(v)-9 TRANS Cust'!K24+'FR-16(7)(v)-11 DIST Demand'!K24+'FR-16(7)(v)-12 DIST Energy'!K24+'FR-16(7)(v)-13 DIST Cust'!K24-'FR-16(7)(v)-14 TOTAL CLASS'!K24","v":0},{"$f":"'FR-16(7)(v)-3 PROD Demand'!L24+'FR-16(7)(v)-4 PROD Energy'!L24+'FR-16(7)(v)-5 PROD Cust'!L24+'FR-16(7)(v)-7 TRANS Demand'!L24+'FR-16(7)(v)-8 TRANS Energy'!L24+'FR-16(7)(v)-9 TRANS Cust'!L24+'FR-16(7)(v)-11 DIST Demand'!L24+'FR-16(7)(v)-12 DIST Energy'!L24+'FR-16(7)(v)-13 DIST Cust'!L24-'FR-16(7)(v)-14 TOTAL CLASS'!L24","v":0},{"$f":"'FR-16(7)(v)-3 PROD Demand'!M24+'FR-16(7)(v)-4 PROD Energy'!M24+'FR-16(7)(v)-5 PROD Cust'!M24+'FR-16(7)(v)-7 TRANS Demand'!M24+'FR-16(7)(v)-8 TRANS Energy'!M24+'FR-16(7)(v)-9 TRANS Cust'!M24+'FR-16(7)(v)-11 DIST Demand'!M24+'FR-16(7)(v)-12 DIST Energy'!M24+'FR-16(7)(v)-13 DIST Cust'!M24-'FR-16(7)(v)-14 TOTAL CLASS'!M24","v":0},{"$f":"'FR-16(7)(v)-3 PROD Demand'!N24+'FR-16(7)(v)-4 PROD Energy'!N24+'FR-16(7)(v)-5 PROD Cust'!N24+'FR-16(7)(v)-7 TRANS Demand'!N24+'FR-16(7)(v)-8 TRANS Energy'!N24+'FR-16(7)(v)-9 TRANS Cust'!N24+'FR-16(7)(v)-11 DIST Demand'!N24+'FR-16(7)(v)-12 DIST Energy'!N24+'FR-16(7)(v)-13 DIST Cust'!N24-'FR-16(7)(v)-14 TOTAL CLASS'!N24","v":0},{"$f":"'FR-16(7)(v)-3 PROD Demand'!O24+'FR-16(7)(v)-4 PROD Energy'!O24+'FR-16(7)(v)-5 PROD Cust'!O24+'FR-16(7)(v)-7 TRANS Demand'!O24+'FR-16(7)(v)-8 TRANS Energy'!O24+'FR-16(7)(v)-9 TRANS Cust'!O24+'FR-16(7)(v)-11 DIST Demand'!O24+'FR-16(7)(v)-12 DIST Energy'!O24+'FR-16(7)(v)-13 DIST Cust'!O24-'FR-16(7)(v)-14 TOTAL CLASS'!O24","v":0},{"$f":"'FR-16(7)(v)-3 PROD Demand'!P24+'FR-16(7)(v)-4 PROD Energy'!P24+'FR-16(7)(v)-5 PROD Cust'!P24+'FR-16(7)(v)-7 TRANS Demand'!P24+'FR-16(7)(v)-8 TRANS Energy'!P24+'FR-16(7)(v)-9 TRANS Cust'!P24+'FR-16(7)(v)-11 DIST Demand'!P24+'FR-16(7)(v)-12 DIST Energy'!P24+'FR-16(7)(v)-13 DIST Cust'!P24-'FR-16(7)(v)-14 TOTAL CLASS'!P24","v":0},{"$f":"'FR-16(7)(v)-3 PROD Demand'!Q24+'FR-16(7)(v)-4 PROD Energy'!Q24+'FR-16(7)(v)-5 PROD Cust'!Q24+'FR-16(7)(v)-7 TRANS Demand'!Q24+'FR-16(7)(v)-8 TRANS Energy'!Q24+'FR-16(7)(v)-9 TRANS Cust'!Q24+'FR-16(7)(v)-11 DIST Demand'!Q24+'FR-16(7)(v)-12 DIST Energy'!Q24+'FR-16(7)(v)-13 DIST Cust'!Q24-'FR-16(7)(v)-14 TOTAL CLASS'!Q24","v":0},{"$f":"SUM(G24:Q24)","v":0},0]
[15,null,{"$f":"'FR-16(7)(v)-1 Functional'!C25","v":"REVENUE TAX"},null,null,{"$f":"F767","v":0},0,0,0,0,0,0,0,0,0,0,0,{"$f":"SUM(G25:Q25)","v":0},0]
[16,null,{"$f":"'FR-16(7)(v)-1 Functional'!C26","v":"  TOTAL OPERATING EXPENSE"},null,null,{"$f":"SUM(F21:F25)","v":-185},{"$f":"SUM(G21:G25)","v":0},{"$f":"SUM(H21:H25)","v":0},{"$f":"SUM(I21:I25)","v":0},{"$f":"SUM(J21:J25)","v":0},0,0,0,0,0,0,{"$f":"SUM(Q21:Q25)","v":0},{"$f":"SUM(R21:R25)","v":0},-185]
[17]
[18,"RETURN ON RATE BASE",null,null,null,{"$f":"F433","v":1},0,0,0,0,0,0,0,0,0,0,0,{"$f":"SUM(G28:Q28)","v":0},{"$f":"F28-R28","v":1}]
[19,"TOTAL OTHER OPERATING REVENUES",null,null,null,{"$f":"-F750","v":0},{"$f":"-G750","v":0},{"$f":"-H750","v":0},{"$f":"-I750","v":0},{"$f":"-J750","v":0},0,0,0,0,0,0,{"$f":"-$Q$750","v":0},{"$f":"SUM(G29:Q29)","v":0},0]
[20,null,{"$f":"'FR-16(7)(v)-1 Functional'!C30","v":"TOTAL ELECTRIC COST OF SERVICE"},null,null,{"$f":"SUM(F26:F29)","v":-184},0,0,0,0,0,0,0,0,0,0,0,0,-184]
[21,"ADJUSTMENT FOR INTERCLASS SUBSIDIZATION",null,{"$f":"1-'WP FR-16(7)(v) Rate Incr'!I11","v":0.95},null,{"$f":"'WP FR-16(7)(v) Rate Incr'!H27-'WP FR-16(7)(v) Rate Incr'!I27","v":0},{"$f":"'WP FR-16(7)(v) Rate Incr'!H15-'WP FR-16(7)(v) Rate Incr'!I15","v":-15936250},{"$f":"'WP FR-16(7)(v) Rate Incr'!H16-'WP FR-16(7)(v) Rate Incr'!I16","v":11001266},{"$f":"'WP FR-16(7)(v) Rate Incr'!$H17-'WP FR-16(7)(v) Rate Incr'!$I17","v":152493},{"$f":"'WP FR-16(7)(v) Rate Incr'!$H18-'WP FR-16(7)(v) Rate Incr'!$I18","v":-733100},{"$f":"'WP FR-16(7)(v) Rate Incr'!$H19-'WP FR-16(7)(v) Rate Incr'!$I19","v":6791},{"$f":"'WP FR-16(7)(v) Rate Incr'!$H20-'WP FR-16(7)(v) Rate Incr'!$I20","v":3742125},{"$f":"'WP FR-16(7)(v) Rate Incr'!$H21-'WP FR-16(7)(v) Rate Incr'!$I21","v":647497},{"$f":"'WP FR-16(7)(v) Rate Incr'!$H22-'WP FR-16(7)(v) Rate Incr'!$I22","v":-39543},{"$f":"'WP FR-16(7)(v) Rate Incr'!$H23-'WP FR-16(7)(v) Rate Incr'!$I23","v":1214804},{"$f":"'WP FR-16(7)(v) Rate Incr'!$H24-'WP FR-16(7)(v) Rate Incr'!$I24","v":-39229},{"$f":"'WP FR-16(7)(v) Rate Incr'!$H25-'WP FR-16(7)(v) Rate Incr'!$I25","v":-16854},{"$f":"SUM(G31:Q31)","v":0},0]
[22,{"$f":"'FR-16(7)(v)-1 Functional'!$B$32","v":"REQUESTED REVENUES (COST OF SERVICE ADJUSTED FOR SUBSIDIES)"},null,null,null,{"$f":"F30+F31","v":-184},-15936250,11001266,152493,-733100,6791,3742125,647497,-39543,1214804,-39229,-16854,0,-184]
[23,"PROPOSED REVENUES",null,null,null,{"$f":"SUM(G33:Q33)","v":0},{"$f":"'FR-16(7)(v)-3 PROD Demand'!G33+'FR-16(7)(v)-4 PROD Energy'!G33+'FR-16(7)(v)-5 PROD Cust'!G33+'FR-16(7)(v)-7 TRANS Demand'!G33+'FR-16(7)(v)-8 TRANS Energy'!G33+'FR-16(7)(v)-9 TRANS Cust'!G33+'FR-16(7)(v)-11 DIST Demand'!G33+'FR-16(7)(v)-12 DIST Energy'!G33+'FR-16(7)(v)-13 DIST Cust'!G33-'FR-16(7)(v)-14 TOTAL CLASS'!G33","v":84946653},{"$f":"'FR-16(7)(v)-3 PROD Demand'!H33+'FR-16(7)(v)-4 PROD Energy'!H33+'FR-16(7)(v)-5 PROD Cust'!H33+'FR-16(7)(v)-7 TRANS Demand'!H33+'FR-16(7)(v)-8 TRANS Energy'!H33+'FR-16(7)(v)-9 TRANS Cust'!H33+'FR-16(7)(v)-11 DIST Demand'!H33+'FR-16(7)(v)-12 DIST Energy'!H33+'FR-16(7)(v)-13 DIST Cust'!H33-'FR-16(7)(v)-14 TOTAL CLASS'!H33","v":-41438382},{"$f":"'FR-16(7)(v)-3 PROD Demand'!I33+'FR-16(7)(v)-4 PROD Energy'!I33+'FR-16(7)(v)-5 PROD Cust'!I33+'FR-16(7)(v)-7 TRANS Demand'!I33+'FR-16(7)(v)-8 TRANS Energy'!I33+'FR-16(7)(v)-9 TRANS Cust'!I33+'FR-16(7)(v)-11 DIST Demand'!I33+'FR-16(7)(v)-12 DIST Energy'!I33+'FR-16(7)(v)-13 DIST Cust'!I33-'FR-16(7)(v)-14 TOTAL CLASS'!I33","v":-329496},{"$f":"'FR-16(7)(v)-3 PROD Demand'!J33+'FR-16(7)(v)-4 PROD Energy'!J33+'FR-16(7)(v)-5 PROD Cust'!J33+'FR-16(7)(v)-7 TRANS Demand'!J33+'FR-16(7)(v)-8 TRANS Energy'!J33+'FR-16(7)(v)-9 TRANS Cust'!J33+'FR-16(7)(v)-11 DIST Demand'!J33+'FR-16(7)(v)-12 DIST Energy'!J33+'FR-16(7)(v)-13 DIST Cust'!J33-'FR-16(7)(v)-14 TOTAL CLASS'!J33","v":349841},{"$f":"'FR-16(7)(v)-3 PROD Demand'!K33+'FR-16(7)(v)-4 PROD Energy'!K33+'FR-16(7)(v)-5 PROD Cust'!K33+'FR-16(7)(v)-7 TRANS Demand'!K33+'FR-16(7)(v)-8 TRANS Energy'!K33+'FR-16(7)(v)-9 TRANS Cust'!K33+'FR-16(7)(v)-11 DIST Demand'!K33+'FR-16(7)(v)-12 DIST Energy'!K33+'FR-16(7)(v)-13 DIST Cust'!K33-'FR-16(7)(v)-14 TOTAL CLASS'!K33","v":-10616},{"$f":"'FR-16(7)(v)-3 PROD Demand'!L33+'FR-16(7)(v)-4 PROD Energy'!L33+'FR-16(7)(v)-5 PROD Cust'!L33+'FR-16(7)(v)-7 TRANS Demand'!L33+'FR-16(7)(v)-8 TRANS Energy'!L33+'FR-16(7)(v)-9 TRANS Cust'!L33+'FR-16(7)(v)-11 DIST Demand'!L33+'FR-16(7)(v)-12 DIST Energy'!L33+'FR-16(7)(v)-13 DIST Cust'!L33-'FR-16(7)(v)-14 TOTAL CLASS'!L33","v":-23096700},{"$f":"'FR-16(7)(v)-3 PROD Demand'!M33+'FR-16(7)(v)-4 PROD Energy'!M33+'FR-16(7)(v)-5 PROD Cust'!M33+'FR-16(7)(v)-7 TRANS Demand'!M33+'FR-16(7)(v)-8 TRANS Energy'!M33+'FR-16(7)(v)-9 TRANS Cust'!M33+'FR-16(7)(v)-11 DIST Demand'!M33+'FR-16(7)(v)-12 DIST Energy'!M33+'FR-16(7)(v)-13 DIST Cust'!M33-'FR-16(7)(v)-14 TOTAL CLASS'!M33","v":-13673678},{"$f":"'FR-16(7)(v)-3 PROD Demand'!N33+'FR-16(7)(v)-4 PROD Energy'!N33+'FR-16(7)(v)-5 PROD Cust'!N33+'FR-16(7)(v)-7 TRANS Demand'!N33+'FR-16(7)(v)-8 TRANS Energy'!N33+'FR-16(7)(v)-9 TRANS Cust'!N33+'FR-16(7)(v)-11 DIST Demand'!N33+'FR-16(7)(v)-12 DIST Energy'!N33+'FR-16(7)(v)-13 DIST Cust'!N33-'FR-16(7)(v)-14 TOTAL CLASS'!N33","v":-568870},{"$f":"'FR-16(7)(v)-3 PROD Demand'!O33+'FR-16(7)(v)-4 PROD Energy'!O33+'FR-16(7)(v)-5 PROD Cust'!O33+'FR-16(7)(v)-7 TRANS Demand'!O33+'FR-16(7)(v)-8 TRANS Energy'!O33+'FR-16(7)(v)-9 TRANS Cust'!O33+'FR-16(7)(v)-11 DIST Demand'!O33+'FR-16(7)(v)-12 DIST Energy'!O33+'FR-16(7)(v)-13 DIST Cust'!O33-'FR-16(7)(v)-14 TOTAL CLASS'!O33","v":-7052987},{"$f":"'FR-16(7)(v)-3 PROD Demand'!P33+'FR-16(7)(v)-4 PROD Energy'!P33+'FR-16(7)(v)-5 PROD Cust'!P33+'FR-16(7)(v)-7 TRANS Demand'!P33+'FR-16(7)(v)-8 TRANS Energy'!P33+'FR-16(7)(v)-9 TRANS Cust'!P33+'FR-16(7)(v)-11 DIST Demand'!P33+'FR-16(7)(v)-12 DIST Energy'!P33+'FR-16(7)(v)-13 DIST Cust'!P33-'FR-16(7)(v)-14 TOTAL CLASS'!P33","v":861097},{"$f":"'FR-16(7)(v)-3 PROD Demand'!Q33+'FR-16(7)(v)-4 PROD Energy'!Q33+'FR-16(7)(v)-5 PROD Cust'!Q33+'FR-16(7)(v)-7 TRANS Demand'!Q33+'FR-16(7)(v)-8 TRANS Energy'!Q33+'FR-16(7)(v)-9 TRANS Cust'!Q33+'FR-16(7)(v)-11 DIST Demand'!Q33+'FR-16(7)(v)-12 DIST Energy'!Q33+'FR-16(7)(v)-13 DIST Cust'!Q33-'FR-16(7)(v)-14 TOTAL CLASS'!Q33","v":13138},{"$f":"SUM(G33:Q33)","v":0},0]
[24,"DIFFERENCE (REQUESTED LESS PROPOSED)",null,null,null,{"$f":"F32-F33","v":-184},-100882903,52439648,481989,-1082941,17407,26838825,14321175,529327,8267791,-900326,-29992,0,-184]
[25]
[26,"TOTAL RETURN EARNED",null,null,null,{"$f":"F777+F28","v":185},{"$f":"G777+G28","v":0},{"$f":"H777+H28","v":0},{"$f":"I777+I28","v":0},{"$f":"J777+J28","v":0},0,0,0,0,0,0,{"$f":"Q777+Q28","v":0},{"$f":"R777+R28","v":0},{"$f":"F36-R36","v":185}]
[27,"RATE OF RETURN EARNED",null,null,null,{"$f":"IF(F431=0,0,ROUND(F36/F431,5))","v":0},0,0,0,0,0,0,0,0,0,0,0,0,0]
[28,"TOTAL RATE OF RETURN ALLOWABLE",null,null,null,{"$f":"$F$811","v":6.7100000000000007E-2},{"$f":"$F$811","v":6.7100000000000007E-2},6.7100000000000007E-2,6.7100000000000007E-2,6.7100000000000007E-2,6.7100000000000007E-2,6.7100000000000007E-2,6.7100000000000007E-2,6.7100000000000007E-2,6.7100000000000007E-2,6.7100000000000007E-2,6.7100000000000007E-2,{"$f":"F811","v":6.7100000000000007E-2},{"$f":"IF(S37=0,0,F811)","v":0}]
[29,"RETURN EARNED ON COMMON EQUITY",null,null,null,{"$f":"IF(Equity=0,0,(F37-$F$806-$F$807-$F$809)*TotalCap/Equity)","v":-4.1049574113445099E-2},-4.1049574113445099E-2,-4.1049574113445099E-2,-4.1049574113445099E-2,-4.1049574113445099E-2,-4.1049574113445099E-2,-4.1049574113445099E-2,-4.1049574113445099E-2,-4.1049574113445099E-2,-4.1049574113445099E-2,-4.1049574113445099E-2,-4.1049574113445099E-2,{"$f":"IF(Equity=0,0,(R37-F806-F807-F809)*TotalCap/Equity)","v":-4.1049574113445099E-2},{"$f":"IF(OR(Equity=0,S37=0)=TRUE,0,(S37-F806-F807-F809)*TotalCap/Equity)","v":0}]
[30,"ALLOWED RETURN ON COMMON EQUITY",null,null,null,{"$f":"IF(Equity=0,0,(F38-$F$806-$F$807-$F$809)*TotalCap/Equity)","v":9.8062871493229981E-2},{"$f":"IF(Equity=0,0,(G38-F806-F807-F809)*TotalCap/Equity)","v":9.8062871493229981E-2},{"$f":"IF(Equity=0,0,(H38-F806-F807-F809)*TotalCap/Equity)","v":9.8062871493229981E-2},{"$f":"IF(Equity=0,0,(I38-F806-F807-F809)*TotalCap/Equity)","v":9.8062871493229981E-2},{"$f":"IF(G793=0,0,(J38-G806-G807-G809)*G796/G793)","v":0.1390961857379768},0,0,0,0,0,0,{"$f":"IF(Equity=0,0,(Q38-$F$806-$F$807-$F$809)*TotalCap/Equity)","v":9.8062871493229981E-2},{"$f":"IF(Equity=0,0,(R38-F806-F807-F809)*TotalCap/Equity)","v":9.8062871493229981E-2},{"$f":"IF(OR(Equity=0,S38=0)=TRUE,0,(S38-F806-F807-F809)*TotalCap/Equity)","v":0}]
[31,null,null,null,null," "]
[32,"PRESENT REVENUES (Schedule M)",null,null,null,{"$f":"SUM(G42:Q42)","v":309580654},{"$f":"'FR-16(7)(v)-4 PROD Energy'!G881","v":123883637},{"$f":"'FR-16(7)(v)-4 PROD Energy'!H881","v":90318223},{"$f":"'FR-16(7)(v)-4 PROD Energy'!I881","v":577046},{"$f":"'FR-16(7)(v)-4 PROD Energy'!J881","v":600937},{"$f":"'FR-16(7)(v)-4 PROD Energy'!K881","v":29960},{"$f":"'FR-16(7)(v)-4 PROD Energy'!L881","v":46910116},{"$f":"'FR-16(7)(v)-4 PROD Energy'!M881","v":29943872},{"$f":"'FR-16(7)(v)-4 PROD Energy'!N881","v":1361377},{"$f":"'FR-16(7)(v)-4 PROD Energy'!O881","v":14062168},{"$f":"'FR-16(7)(v)-4 PROD Energy'!P881","v":1876470},{"$f":"'FR-16(7)(v)-4 PROD Energy'!Q881","v":16848},{"$f":"SUM(G42:Q42)","v":309580654},{"$f":"F42-R42","v":0}]
[33,"REVENUE INCREASE JUSTIFIED",null,null,null,{"$f":"F30-F42","v":-309580838},-123883637,-90318223,-577046,-600937,-29960,-46910116,-29943872,-1361377,-14062168,-1876470,-16848,-309580654,-184]
[34,null,"PER UNIT PRES REV",null,null,{"$f":"IF(F42=0,0,ROUND(F43/F42,5))","v":-1},-1,-1,-1,-1,-1,-1,-1,-1,-1,-1,-1,-1,0]
[35,"REVENUE INCREASE REQUESTED",null,null,null,{"$f":"F33-F42","v":-309580654},-38936984,-131756605,-906542,-251096,-40576,-70006816,-43617550,-1930247,-21115155,-1015373,-3710,-309580654,0]
[36,null,"PER UNIT PRES REV",null,null,{"$f":"IF(F42=0,0,ROUND(F45/F42,5))","v":-1},-0.31430000000000002,-1.4588000000000001,-1.571,-0.41783999999999999,-1.3543400000000001,-1.4923599999999999,-1.4566399999999999,-1.4178599999999999,-1.50156,-0.54110999999999998,-0.22020000000000001,-1,0]
[]
[{"$f":"co_name","v":"DUKE ENERGY KENTUCKY, INC."},null,null,null,null,null,null,null,null,null,null,null,null,null,null,null,null,{"$f":"R1","v":"FR-16(7)(v)-14"}]
[{"$f":"$A$2","v":"TOTAL CLASS ALLOCATED - ELECTRIC COST OF SERVICE"},null,null,null,null,null,null,null,null,null,null,null,null,null,null,null,null,{"$f":"R2","v":"WITNESS RESPONSIBLE:"}]
[{"$f":"case_name","v":"CASE NO: 2019-00271"},null,null,null,null,null,null,null,null,null,null,null,null,null,null,null,null,{"$f":"Witness","v":"JAMES E. ZIOLKOWSKI"}]
[{"$f":"data_filing","v":"DATA: 12 MONTHS ACTUAL  & 0 MONTHS ESTIMATED"},null,null,null,null,null,null,null,null,null,null,null,null,null,null,null,null,{"$f":"\"PAGE \"&Pages2-13&\" OF \"&Pages2","v":"PAGE 2 OF 15"}]
[{"$f":"type","v":"TYPE OF FILING: \"X\" ORIGINAL   UPDATED    REVISED  "}]
[]
[null,null,null,null,null,{"$f":"F$7","v":"TOTAL"},null,{"$f":"H$7","v":"DS"},{"$f":"I$7","v":"GSFL"},{"$f":"J$7","v":"EH"},{"$f":"K$7","v":"SP"},"DT SEC","DT PRI","DP","TT",null,"OTHER"]
["LINE",null,null,null,null,{"$f":"F$8","v":"CLASS"},{"$f":"G$8","v":"RS"},{"$f":"H$8","v":"SECONDARY"},{"$f":"I$8","v":"SECONDARY"},{"$f":"J$8","v":"SECONDARY"},{"$f":"K$8","v":"SECONDARY"},"SECONDARY","PRIMARY","PRIMARY","TRANSMISSION","LT","WATER",{"$f":"R8","v":"TOTAL"},"ALL"]
["NO.","GROSS ELECTRIC PLANT IN SERVICE",null,"ALLO",null,{"$f":"F$9","v":"ALLOCATED"},{"$f":"G$9","v":"RESIDENTIAL"},{"$f":"H$9","v":"DISTRIBUTION"},{"$f":"I$9","v":"DISTRIBUTION"},{"$f":"J$9","v":"DISTRIBUTION"},{"$f":"K$9","v":"DISTRIBUTION"},"DISTRIBUTION","DISTRIBUTION","DISTRIBUTION","TIME OF DAY","LIGHTING","PUMPING",{"$f":"R9","v":"AT ISSUE"},"OTHER"]
[null,null,"Schedule 2",null,null,null,{"$f":"G$10","v":3},{"$f":"H$10","v":4},{"$f":"I$10","v":5},{"$f":"J$10","v":6},{"$f":"K$10","v":7},8,9,10,11,12,13,null," "]
[1,"PRODUCTION PLANT"]
[2,null,"PRODUCTION STEAM","K201",null,{"$f":"'FR-16(7)(v)-3 PROD Demand'!F59+'FR-16(7)(v)-4 PROD Energy'!F59+'FR-16(7)(v)-5 PROD Cust'!F59+'FR-16(7)(v)-7 TRANS Demand'!F59+'FR-16(7)(v)-8 TRANS Energy'!F59+'FR-16(7)(v)-9 TRANS Cust'!F59+'FR-16(7)(v)-11 DIST Demand'!F59+'FR-16(7)(v)-12 DIST Energy'!F59+'FR-16(7)(v)-13 DIST Cust'!F59-'FR-16(7)(v)-14 TOTAL CLASS'!F59","v":0},{"$f":"'FR-16(7)(v)-3 PROD Demand'!G59+'FR-16(7)(v)-4 PROD Energy'!G59+'FR-16(7)(v)-5 PROD Cust'!G59+'FR-16(7)(v)-7 TRANS Demand'!G59+'FR-16(7)(v)-8 TRANS Energy'!G59+'FR-16(7)(v)-9 TRANS Cust'!G59+'FR-16(7)(v)-11 DIST Demand'!G59+'FR-16(7)(v)-12 DIST Energy'!G59+'FR-16(7)(v)-13 DIST Cust'!G59-'FR-16(7)(v)-14 TOTAL CLASS'!G59","v":0},{"$f":"'FR-16(7)(v)-3 PROD Demand'!H59+'FR-16(7)(v)-4 PROD Energy'!H59+'FR-16(7)(v)-5 PROD Cust'!H59+'FR-16(7)(v)-7 TRANS Demand'!H59+'FR-16(7)(v)-8 TRANS Energy'!H59+'FR-16(7)(v)-9 TRANS Cust'!H59+'FR-16(7)(v)-11 DIST Demand'!H59+'FR-16(7)(v)-12 DIST Energy'!H59+'FR-16(7)(v)-13 DIST Cust'!H59-'FR-16(7)(v)-14 TOTAL CLASS'!H59","v":0},{"$f":"'FR-16(7)(v)-3 PROD Demand'!I59+'FR-16(7)(v)-4 PROD Energy'!I59+'FR-16(7)(v)-5 PROD Cust'!I59+'FR-16(7)(v)-7 TRANS Demand'!I59+'FR-16(7)(v)-8 TRANS Energy'!I59+'FR-16(7)(v)-9 TRANS Cust'!I59+'FR-16(7)(v)-11 DIST Demand'!I59+'FR-16(7)(v)-12 DIST Energy'!I59+'FR-16(7)(v)-13 DIST Cust'!I59-'FR-16(7)(v)-14 TOTAL CLASS'!I59","v":0},{"$f":"'FR-16(7)(v)-3 PROD Demand'!J59+'FR-16(7)(v)-4 PROD Energy'!J59+'FR-16(7)(v)-5 PROD Cust'!J59+'FR-16(7)(v)-7 TRANS Demand'!J59+'FR-16(7)(v)-8 TRANS Energy'!J59+'FR-16(7)(v)-9 TRANS Cust'!J59+'FR-16(7)(v)-11 DIST Demand'!J59+'FR-16(7)(v)-12 DIST Energy'!J59+'FR-16(7)(v)-13 DIST Cust'!J59-'FR-16(7)(v)-14 TOTAL CLASS'!J59","v":0},{"$f":"'FR-16(7)(v)-3 PROD Demand'!K59+'FR-16(7)(v)-4 PROD Energy'!K59+'FR-16(7)(v)-5 PROD Cust'!K59+'FR-16(7)(v)-7 TRANS Demand'!K59+'FR-16(7)(v)-8 TRANS Energy'!K59+'FR-16(7)(v)-9 TRANS Cust'!K59+'FR-16(7)(v)-11 DIST Demand'!K59+'FR-16(7)(v)-12 DIST Energy'!K59+'FR-16(7)(v)-13 DIST Cust'!K59-'FR-16(7)(v)-14 TOTAL CLASS'!K59","v":0},{"$f":"'FR-16(7)(v)-3 PROD Demand'!L59+'FR-16(7)(v)-4 PROD Energy'!L59+'FR-16(7)(v)-5 PROD Cust'!L59+'FR-16(7)(v)-7 TRANS Demand'!L59+'FR-16(7)(v)-8 TRANS Energy'!L59+'FR-16(7)(v)-9 TRANS Cust'!L59+'FR-16(7)(v)-11 DIST Demand'!L59+'FR-16(7)(v)-12 DIST Energy'!L59+'FR-16(7)(v)-13 DIST Cust'!L59-'FR-16(7)(v)-14 TOTAL CLASS'!L59","v":0},{"$f":"'FR-16(7)(v)-3 PROD Demand'!M59+'FR-16(7)(v)-4 PROD Energy'!M59+'FR-16(7)(v)-5 PROD Cust'!M59+'FR-16(7)(v)-7 TRANS Demand'!M59+'FR-16(7)(v)-8 TRANS Energy'!M59+'FR-16(7)(v)-9 TRANS Cust'!M59+'FR-16(7)(v)-11 DIST Demand'!M59+'FR-16(7)(v)-12 DIST Energy'!M59+'FR-16(7)(v)-13 DIST Cust'!M59-'FR-16(7)(v)-14 TOTAL CLASS'!M59","v":0},{"$f":"'FR-16(7)(v)-3 PROD Demand'!N59+'FR-16(7)(v)-4 PROD Energy'!N59+'FR-16(7)(v)-5 PROD Cust'!N59+'FR-16(7)(v)-7 TRANS Demand'!N59+'FR-16(7)(v)-8 TRANS Energy'!N59+'FR-16(7)(v)-9 TRANS Cust'!N59+'FR-16(7)(v)-11 DIST Demand'!N59+'FR-16(7)(v)-12 DIST Energy'!N59+'FR-16(7)(v)-13 DIST Cust'!N59-'FR-16(7)(v)-14 TOTAL CLASS'!N59","v":0},{"$f":"'FR-16(7)(v)-3 PROD Demand'!O59+'FR-16(7)(v)-4 PROD Energy'!O59+'FR-16(7)(v)-5 PROD Cust'!O59+'FR-16(7)(v)-7 TRANS Demand'!O59+'FR-16(7)(v)-8 TRANS Energy'!O59+'FR-16(7)(v)-9 TRANS Cust'!O59+'FR-16(7)(v)-11 DIST Demand'!O59+'FR-16(7)(v)-12 DIST Energy'!O59+'FR-16(7)(v)-13 DIST Cust'!O59-'FR-16(7)(v)-14 TOTAL CLASS'!O59","v":0},{"$f":"'FR-16(7)(v)-3 PROD Demand'!P59+'FR-16(7)(v)-4 PROD Energy'!P59+'FR-16(7)(v)-5 PROD Cust'!P59+'FR-16(7)(v)-7 TRANS Demand'!P59+'FR-16(7)(v)-8 TRANS Energy'!P59+'FR-16(7)(v)-9 TRANS Cust'!P59+'FR-16(7)(v)-11 DIST Demand'!P59+'FR-16(7)(v)-12 DIST Energy'!P59+'FR-16(7)(v)-13 DIST Cust'!P59-'FR-16(7)(v)-14 TOTAL CLASS'!P59","v":0},{"$f":"'FR-16(7)(v)-3 PROD Demand'!Q59+'FR-16(7)(v)-4 PROD Energy'!Q59+'FR-16(7)(v)-5 PROD Cust'!Q59+'FR-16(7)(v)-7 TRANS Demand'!Q59+'FR-16(7)(v)-8 TRANS Energy'!Q59+'FR-16(7)(v)-9 TRANS Cust'!Q59+'FR-16(7)(v)-11 DIST Demand'!Q59+'FR-16(7)(v)-12 DIST Energy'!Q59+'FR-16(7)(v)-13 DIST Cust'!Q59-'FR-16(7)(v)-14 TOTAL CLASS'!Q59","v":0},{"$f":"SUM(G59:Q59)","v":0},{"$f":"F59-R59","v":0}]
[3,null,"PRODUCTION OTHER","K201",null,{"$f":"'FR-16(7)(v)-3 PROD Demand'!F60+'FR-16(7)(v)-4 PROD Energy'!F60+'FR-16(7)(v)-5 PROD Cust'!F60+'FR-16(7)(v)-7 TRANS Demand'!F60+'FR-16(7)(v)-8 TRANS Energy'!F60+'FR-16(7)(v)-9 TRANS Cust'!F60+'FR-16(7)(v)-11 DIST Demand'!F60+'FR-16(7)(v)-12 DIST Energy'!F60+'FR-16(7)(v)-13 DIST Cust'!F60-'FR-16(7)(v)-14 TOTAL CLASS'!F60","v":0},{"$f":"'FR-16(7)(v)-3 PROD Demand'!G60+'FR-16(7)(v)-4 PROD Energy'!G60+'FR-16(7)(v)-5 PROD Cust'!G60+'FR-16(7)(v)-7 TRANS Demand'!G60+'FR-16(7)(v)-8 TRANS Energy'!G60+'FR-16(7)(v)-9 TRANS Cust'!G60+'FR-16(7)(v)-11 DIST Demand'!G60+'FR-16(7)(v)-12 DIST Energy'!G60+'FR-16(7)(v)-13 DIST Cust'!G60-'FR-16(7)(v)-14 TOTAL CLASS'!G60","v":0},{"$f":"'FR-16(7)(v)-3 PROD Demand'!H60+'FR-16(7)(v)-4 PROD Energy'!H60+'FR-16(7)(v)-5 PROD Cust'!H60+'FR-16(7)(v)-7 TRANS Demand'!H60+'FR-16(7)(v)-8 TRANS Energy'!H60+'FR-16(7)(v)-9 TRANS Cust'!H60+'FR-16(7)(v)-11 DIST Demand'!H60+'FR-16(7)(v)-12 DIST Energy'!H60+'FR-16(7)(v)-13 DIST Cust'!H60-'FR-16(7)(v)-14 TOTAL CLASS'!H60","v":0},{"$f":"'FR-16(7)(v)-3 PROD Demand'!I60+'FR-16(7)(v)-4 PROD Energy'!I60+'FR-16(7)(v)-5 PROD Cust'!I60+'FR-16(7)(v)-7 TRANS Demand'!I60+'FR-16(7)(v)-8 TRANS Energy'!I60+'FR-16(7)(v)-9 TRANS Cust'!I60+'FR-16(7)(v)-11 DIST Demand'!I60+'FR-16(7)(v)-12 DIST Energy'!I60+'FR-16(7)(v)-13 DIST Cust'!I60-'FR-16(7)(v)-14 TOTAL CLASS'!I60","v":0},{"$f":"'FR-16(7)(v)-3 PROD Demand'!J60+'FR-16(7)(v)-4 PROD Energy'!J60+'FR-16(7)(v)-5 PROD Cust'!J60+'FR-16(7)(v)-7 TRANS Demand'!J60+'FR-16(7)(v)-8 TRANS Energy'!J60+'FR-16(7)(v)-9 TRANS Cust'!J60+'FR-16(7)(v)-11 DIST Demand'!J60+'FR-16(7)(v)-12 DIST Energy'!J60+'FR-16(7)(v)-13 DIST Cust'!J60-'FR-16(7)(v)-14 TOTAL CLASS'!J60","v":0},{"$f":"'FR-16(7)(v)-3 PROD Demand'!K60+'FR-16(7)(v)-4 PROD Energy'!K60+'FR-16(7)(v)-5 PROD Cust'!K60+'FR-16(7)(v)-7 TRANS Demand'!K60+'FR-16(7)(v)-8 TRANS Energy'!K60+'FR-16(7)(v)-9 TRANS Cust'!K60+'FR-16(7)(v)-11 DIST Demand'!K60+'FR-16(7)(v)-12 DIST Energy'!K60+'FR-16(7)(v)-13 DIST Cust'!K60-'FR-16(7)(v)-14 TOTAL CLASS'!K60","v":0},{"$f":"'FR-16(7)(v)-3 PROD Demand'!L60+'FR-16(7)(v)-4 PROD Energy'!L60+'FR-16(7)(v)-5 PROD Cust'!L60+'FR-16(7)(v)-7 TRANS Demand'!L60+'FR-16(7)(v)-8 TRANS Energy'!L60+'FR-16(7)(v)-9 TRANS Cust'!L60+'FR-16(7)(v)-11 DIST Demand'!L60+'FR-16(7)(v)-12 DIST Energy'!L60+'FR-16(7)(v)-13 DIST Cust'!L60-'FR-16(7)(v)-14 TOTAL CLASS'!L60","v":0},{"$f":"'FR-16(7)(v)-3 PROD Demand'!M60+'FR-16(7)(v)-4 PROD Energy'!M60+'FR-16(7)(v)-5 PROD Cust'!M60+'FR-16(7)(v)-7 TRANS Demand'!M60+'FR-16(7)(v)-8 TRANS Energy'!M60+'FR-16(7)(v)-9 TRANS Cust'!M60+'FR-16(7)(v)-11 DIST Demand'!M60+'FR-16(7)(v)-12 DIST Energy'!M60+'FR-16(7)(v)-13 DIST Cust'!M60-'FR-16(7)(v)-14 TOTAL CLASS'!M60","v":0},{"$f":"'FR-16(7)(v)-3 PROD Demand'!N60+'FR-16(7)(v)-4 PROD Energy'!N60+'FR-16(7)(v)-5 PROD Cust'!N60+'FR-16(7)(v)-7 TRANS Demand'!N60+'FR-16(7)(v)-8 TRANS Energy'!N60+'FR-16(7)(v)-9 TRANS Cust'!N60+'FR-16(7)(v)-11 DIST Demand'!N60+'FR-16(7)(v)-12 DIST Energy'!N60+'FR-16(7)(v)-13 DIST Cust'!N60-'FR-16(7)(v)-14 TOTAL CLASS'!N60","v":0},{"$f":"'FR-16(7)(v)-3 PROD Demand'!O60+'FR-16(7)(v)-4 PROD Energy'!O60+'FR-16(7)(v)-5 PROD Cust'!O60+'FR-16(7)(v)-7 TRANS Demand'!O60+'FR-16(7)(v)-8 TRANS Energy'!O60+'FR-16(7)(v)-9 TRANS Cust'!O60+'FR-16(7)(v)-11 DIST Demand'!O60+'FR-16(7)(v)-12 DIST Energy'!O60+'FR-16(7)(v)-13 DIST Cust'!O60-'FR-16(7)(v)-14 TOTAL CLASS'!O60","v":0},{"$f":"'FR-16(7)(v)-3 PROD Demand'!P60+'FR-16(7)(v)-4 PROD Energy'!P60+'FR-16(7)(v)-5 PROD Cust'!P60+'FR-16(7)(v)-7 TRANS Demand'!P60+'FR-16(7)(v)-8 TRANS Energy'!P60+'FR-16(7)(v)-9 TRANS Cust'!P60+'FR-16(7)(v)-11 DIST Demand'!P60+'FR-16(7)(v)-12 DIST Energy'!P60+'FR-16(7)(v)-13 DIST Cust'!P60-'FR-16(7)(v)-14 TOTAL CLASS'!P60","v":0},{"$f":"'FR-16(7)(v)-3 PROD Demand'!Q60+'FR-16(7)(v)-4 PROD Energy'!Q60+'FR-16(7)(v)-5 PROD Cust'!Q60+'FR-16(7)(v)-7 TRANS Demand'!Q60+'FR-16(7)(v)-8 TRANS Energy'!Q60+'FR-16(7)(v)-9 TRANS Cust'!Q60+'FR-16(7)(v)-11 DIST Demand'!Q60+'FR-16(7)(v)-12 DIST Energy'!Q60+'FR-16(7)(v)-13 DIST Cust'!Q60-'FR-16(7)(v)-14 TOTAL CLASS'!Q60","v":0},{"$f":"SUM(G60:Q60)","v":0},{"$f":"F60-R60","v":0}]
[4,null,{"$f":"'FR-16(7)(v)-1 Functional'!C61","v":"ADJUSTMENT"},"K201",null,{"$f":"'FR-16(7)(v)-3 PROD Demand'!F61+'FR-16(7)(v)-4 PROD Energy'!F61+'FR-16(7)(v)-5 PROD Cust'!F61+'FR-16(7)(v)-7 TRANS Demand'!F61+'FR-16(7)(v)-8 TRANS Energy'!F61+'FR-16(7)(v)-9 TRANS Cust'!F61+'FR-16(7)(v)-11 DIST Demand'!F61+'FR-16(7)(v)-12 DIST Energy'!F61+'FR-16(7)(v)-13 DIST Cust'!F61-'FR-16(7)(v)-14 TOTAL CLASS'!F61","v":0},{"$f":"'FR-16(7)(v)-3 PROD Demand'!G61+'FR-16(7)(v)-4 PROD Energy'!G61+'FR-16(7)(v)-5 PROD Cust'!G61+'FR-16(7)(v)-7 TRANS Demand'!G61+'FR-16(7)(v)-8 TRANS Energy'!G61+'FR-16(7)(v)-9 TRANS Cust'!G61+'FR-16(7)(v)-11 DIST Demand'!G61+'FR-16(7)(v)-12 DIST Energy'!G61+'FR-16(7)(v)-13 DIST Cust'!G61-'FR-16(7)(v)-14 TOTAL CLASS'!G61","v":0},{"$f":"'FR-16(7)(v)-3 PROD Demand'!H61+'FR-16(7)(v)-4 PROD Energy'!H61+'FR-16(7)(v)-5 PROD Cust'!H61+'FR-16(7)(v)-7 TRANS Demand'!H61+'FR-16(7)(v)-8 TRANS Energy'!H61+'FR-16(7)(v)-9 TRANS Cust'!H61+'FR-16(7)(v)-11 DIST Demand'!H61+'FR-16(7)(v)-12 DIST Energy'!H61+'FR-16(7)(v)-13 DIST Cust'!H61","v":0},{"$f":"'FR-16(7)(v)-3 PROD Demand'!I61+'FR-16(7)(v)-4 PROD Energy'!I61+'FR-16(7)(v)-5 PROD Cust'!I61+'FR-16(7)(v)-7 TRANS Demand'!I61+'FR-16(7)(v)-8 TRANS Energy'!I61+'FR-16(7)(v)-9 TRANS Cust'!I61+'FR-16(7)(v)-11 DIST Demand'!I61+'FR-16(7)(v)-12 DIST Energy'!I61+'FR-16(7)(v)-13 DIST Cust'!I61","v":0},{"$f":"'FR-16(7)(v)-3 PROD Demand'!J61+'FR-16(7)(v)-4 PROD Energy'!J61+'FR-16(7)(v)-5 PROD Cust'!J61+'FR-16(7)(v)-7 TRANS Demand'!J61+'FR-16(7)(v)-8 TRANS Energy'!J61+'FR-16(7)(v)-9 TRANS Cust'!J61+'FR-16(7)(v)-11 DIST Demand'!J61+'FR-16(7)(v)-12 DIST Energy'!J61+'FR-16(7)(v)-13 DIST Cust'!J61","v":0},{"$f":"'FR-16(7)(v)-3 PROD Demand'!K61+'FR-16(7)(v)-4 PROD Energy'!K61+'FR-16(7)(v)-5 PROD Cust'!K61+'FR-16(7)(v)-7 TRANS Demand'!K61+'FR-16(7)(v)-8 TRANS Energy'!K61+'FR-16(7)(v)-9 TRANS Cust'!K61+'FR-16(7)(v)-11 DIST Demand'!K61+'FR-16(7)(v)-12 DIST Energy'!K61+'FR-16(7)(v)-13 DIST Cust'!K61","v":0},{"$f":"'FR-16(7)(v)-3 PROD Demand'!L61+'FR-16(7)(v)-4 PROD Energy'!L61+'FR-16(7)(v)-5 PROD Cust'!L61+'FR-16(7)(v)-7 TRANS Demand'!L61+'FR-16(7)(v)-8 TRANS Energy'!L61+'FR-16(7)(v)-9 TRANS Cust'!L61+'FR-16(7)(v)-11 DIST Demand'!L61+'FR-16(7)(v)-12 DIST Energy'!L61+'FR-16(7)(v)-13 DIST Cust'!L61","v":0},{"$f":"'FR-16(7)(v)-3 PROD Demand'!M61+'FR-16(7)(v)-4 PROD Energy'!M61+'FR-16(7)(v)-5 PROD Cust'!M61+'FR-16(7)(v)-7 TRANS Demand'!M61+'FR-16(7)(v)-8 TRANS Energy'!M61+'FR-16(7)(v)-9 TRANS Cust'!M61+'FR-16(7)(v)-11 DIST Demand'!M61+'FR-16(7)(v)-12 DIST Energy'!M61+'FR-16(7)(v)-13 DIST Cust'!M61","v":0},{"$f":"'FR-16(7)(v)-3 PROD Demand'!N61+'FR-16(7)(v)-4 PROD Energy'!N61+'FR-16(7)(v)-5 PROD Cust'!N61+'FR-16(7)(v)-7 TRANS Demand'!N61+'FR-16(7)(v)-8 TRANS Energy'!N61+'FR-16(7)(v)-9 TRANS Cust'!N61+'FR-16(7)(v)-11 DIST Demand'!N61+'FR-16(7)(v)-12 DIST Energy'!N61+'FR-16(7)(v)-13 DIST Cust'!N61","v":0},{"$f":"'FR-16(7)(v)-3 PROD Demand'!O61+'FR-16(7)(v)-4 PROD Energy'!O61+'FR-16(7)(v)-5 PROD Cust'!O61+'FR-16(7)(v)-7 TRANS Demand'!O61+'FR-16(7)(v)-8 TRANS Energy'!O61+'FR-16(7)(v)-9 TRANS Cust'!O61+'FR-16(7)(v)-11 DIST Demand'!O61+'FR-16(7)(v)-12 DIST Energy'!O61+'FR-16(7)(v)-13 DIST Cust'!O61","v":0},{"$f":"'FR-16(7)(v)-3 PROD Demand'!P61+'FR-16(7)(v)-4 PROD Energy'!P61+'FR-16(7)(v)-5 PROD Cust'!P61+'FR-16(7)(v)-7 TRANS Demand'!P61+'FR-16(7)(v)-8 TRANS Energy'!P61+'FR-16(7)(v)-9 TRANS Cust'!P61+'FR-16(7)(v)-11 DIST Demand'!P61+'FR-16(7)(v)-12 DIST Energy'!P61+'FR-16(7)(v)-13 DIST Cust'!P61","v":0},{"$f":"'FR-16(7)(v)-3 PROD Demand'!Q61+'FR-16(7)(v)-4 PROD Energy'!Q61+'FR-16(7)(v)-5 PROD Cust'!Q61+'FR-16(7)(v)-7 TRANS Demand'!Q61+'FR-16(7)(v)-8 TRANS Energy'!Q61+'FR-16(7)(v)-9 TRANS Cust'!Q61+'FR-16(7)(v)-11 DIST Demand'!Q61+'FR-16(7)(v)-12 DIST Energy'!Q61+'FR-16(7)(v)-13 DIST Cust'!Q61","v":0},{"$f":"SUM(G61:Q61)","v":0},{"$f":"F61-R61","v":0}]
[5,null,{"$f":"'FR-16(7)(v)-1 Functional'!C62","v":"  PRODUCTION PLANT IN SERVICE"},null,null,{"$f":"SUM(F59:F61)","v":0},{"$f":"SUM(G59:G61)","v":0},{"$f":"SUM(H59:H61)","v":0},{"$f":"SUM(I59:I61)","v":0},{"$f":"SUM(J59:J61)","v":0},0,0,0,0,0,0,{"$f":"SUM($Q$59:$Q$61)","v":0},{"$f":"SUM(R59:R61)","v":0},{"$f":"SUM(S59:S61)","v":0}]
[6]
[7,"TRANSMISSION PLANT"]
[8,null,"MAIN STEP-UP TRANSFORMERS","K201",null,{"$f":"'FR-16(7)(v)-3 PROD Demand'!F65+'FR-16(7)(v)-4 PROD Energy'!F65+'FR-16(7)(v)-5 PROD Cust'!F65+'FR-16(7)(v)-7 TRANS Demand'!F65+'FR-16(7)(v)-8 TRANS Energy'!F65+'FR-16(7)(v)-9 TRANS Cust'!F65+'FR-16(7)(v)-11 DIST Demand'!F65+'FR-16(7)(v)-12 DIST Energy'!F65+'FR-16(7)(v)-13 DIST Cust'!F65-'FR-16(7)(v)-14 TOTAL CLASS'!F65","v":0},{"$f":"'FR-16(7)(v)-3 PROD Demand'!G65+'FR-16(7)(v)-4 PROD Energy'!G65+'FR-16(7)(v)-5 PROD Cust'!G65+'FR-16(7)(v)-7 TRANS Demand'!G65+'FR-16(7)(v)-8 TRANS Energy'!G65+'FR-16(7)(v)-9 TRANS Cust'!G65+'FR-16(7)(v)-11 DIST Demand'!G65+'FR-16(7)(v)-12 DIST Energy'!G65+'FR-16(7)(v)-13 DIST Cust'!G65-'FR-16(7)(v)-14 TOTAL CLASS'!G65","v":0},{"$f":"'FR-16(7)(v)-3 PROD Demand'!H65+'FR-16(7)(v)-4 PROD Energy'!H65+'FR-16(7)(v)-5 PROD Cust'!H65+'FR-16(7)(v)-7 TRANS Demand'!H65+'FR-16(7)(v)-8 TRANS Energy'!H65+'FR-16(7)(v)-9 TRANS Cust'!H65+'FR-16(7)(v)-11 DIST Demand'!H65+'FR-16(7)(v)-12 DIST Energy'!H65+'FR-16(7)(v)-13 DIST Cust'!H65-'FR-16(7)(v)-14 TOTAL CLASS'!H65","v":0},{"$f":"'FR-16(7)(v)-3 PROD Demand'!I65+'FR-16(7)(v)-4 PROD Energy'!I65+'FR-16(7)(v)-5 PROD Cust'!I65+'FR-16(7)(v)-7 TRANS Demand'!I65+'FR-16(7)(v)-8 TRANS Energy'!I65+'FR-16(7)(v)-9 TRANS Cust'!I65+'FR-16(7)(v)-11 DIST Demand'!I65+'FR-16(7)(v)-12 DIST Energy'!I65+'FR-16(7)(v)-13 DIST Cust'!I65-'FR-16(7)(v)-14 TOTAL CLASS'!I65","v":0},{"$f":"'FR-16(7)(v)-3 PROD Demand'!J65+'FR-16(7)(v)-4 PROD Energy'!J65+'FR-16(7)(v)-5 PROD Cust'!J65+'FR-16(7)(v)-7 TRANS Demand'!J65+'FR-16(7)(v)-8 TRANS Energy'!J65+'FR-16(7)(v)-9 TRANS Cust'!J65+'FR-16(7)(v)-11 DIST Demand'!J65+'FR-16(7)(v)-12 DIST Energy'!J65+'FR-16(7)(v)-13 DIST Cust'!J65-'FR-16(7)(v)-14 TOTAL CLASS'!J65","v":0},{"$f":"'FR-16(7)(v)-3 PROD Demand'!K65+'FR-16(7)(v)-4 PROD Energy'!K65+'FR-16(7)(v)-5 PROD Cust'!K65+'FR-16(7)(v)-7 TRANS Demand'!K65+'FR-16(7)(v)-8 TRANS Energy'!K65+'FR-16(7)(v)-9 TRANS Cust'!K65+'FR-16(7)(v)-11 DIST Demand'!K65+'FR-16(7)(v)-12 DIST Energy'!K65+'FR-16(7)(v)-13 DIST Cust'!K65-'FR-16(7)(v)-14 TOTAL CLASS'!K65","v":0},{"$f":"'FR-16(7)(v)-3 PROD Demand'!L65+'FR-16(7)(v)-4 PROD Energy'!L65+'FR-16(7)(v)-5 PROD Cust'!L65+'FR-16(7)(v)-7 TRANS Demand'!L65+'FR-16(7)(v)-8 TRANS Energy'!L65+'FR-16(7)(v)-9 TRANS Cust'!L65+'FR-16(7)(v)-11 DIST Demand'!L65+'FR-16(7)(v)-12 DIST Energy'!L65+'FR-16(7)(v)-13 DIST Cust'!L65-'FR-16(7)(v)-14 TOTAL CLASS'!L65","v":0},{"$f":"'FR-16(7)(v)-3 PROD Demand'!M65+'FR-16(7)(v)-4 PROD Energy'!M65+'FR-16(7)(v)-5 PROD Cust'!M65+'FR-16(7)(v)-7 TRANS Demand'!M65+'FR-16(7)(v)-8 TRANS Energy'!M65+'FR-16(7)(v)-9 TRANS Cust'!M65+'FR-16(7)(v)-11 DIST Demand'!M65+'FR-16(7)(v)-12 DIST Energy'!M65+'FR-16(7)(v)-13 DIST Cust'!M65-'FR-16(7)(v)-14 TOTAL CLASS'!M65","v":0},{"$f":"'FR-16(7)(v)-3 PROD Demand'!N65+'FR-16(7)(v)-4 PROD Energy'!N65+'FR-16(7)(v)-5 PROD Cust'!N65+'FR-16(7)(v)-7 TRANS Demand'!N65+'FR-16(7)(v)-8 TRANS Energy'!N65+'FR-16(7)(v)-9 TRANS Cust'!N65+'FR-16(7)(v)-11 DIST Demand'!N65+'FR-16(7)(v)-12 DIST Energy'!N65+'FR-16(7)(v)-13 DIST Cust'!N65-'FR-16(7)(v)-14 TOTAL CLASS'!N65","v":0},{"$f":"'FR-16(7)(v)-3 PROD Demand'!O65+'FR-16(7)(v)-4 PROD Energy'!O65+'FR-16(7)(v)-5 PROD Cust'!O65+'FR-16(7)(v)-7 TRANS Demand'!O65+'FR-16(7)(v)-8 TRANS Energy'!O65+'FR-16(7)(v)-9 TRANS Cust'!O65+'FR-16(7)(v)-11 DIST Demand'!O65+'FR-16(7)(v)-12 DIST Energy'!O65+'FR-16(7)(v)-13 DIST Cust'!O65-'FR-16(7)(v)-14 TOTAL CLASS'!O65","v":0},{"$f":"'FR-16(7)(v)-3 PROD Demand'!P65+'FR-16(7)(v)-4 PROD Energy'!P65+'FR-16(7)(v)-5 PROD Cust'!P65+'FR-16(7)(v)-7 TRANS Demand'!P65+'FR-16(7)(v)-8 TRANS Energy'!P65+'FR-16(7)(v)-9 TRANS Cust'!P65+'FR-16(7)(v)-11 DIST Demand'!P65+'FR-16(7)(v)-12 DIST Energy'!P65+'FR-16(7)(v)-13 DIST Cust'!P65-'FR-16(7)(v)-14 TOTAL CLASS'!P65","v":0},{"$f":"'FR-16(7)(v)-3 PROD Demand'!Q65+'FR-16(7)(v)-4 PROD Energy'!Q65+'FR-16(7)(v)-5 PROD Cust'!Q65+'FR-16(7)(v)-7 TRANS Demand'!Q65+'FR-16(7)(v)-8 TRANS Energy'!Q65+'FR-16(7)(v)-9 TRANS Cust'!Q65+'FR-16(7)(v)-11 DIST Demand'!Q65+'FR-16(7)(v)-12 DIST Energy'!Q65+'FR-16(7)(v)-13 DIST Cust'!Q65-'FR-16(7)(v)-14 TOTAL CLASS'!Q65","v":0},{"$f":"SUM(G65:Q65)","v":0},{"$f":"F65-R65","v":0}]
[9,null,"OTHER TRANSMISSION","K201",null,{"$f":"'FR-16(7)(v)-3 PROD Demand'!F66+'FR-16(7)(v)-4 PROD Energy'!F66+'FR-16(7)(v)-5 PROD Cust'!F66+'FR-16(7)(v)-7 TRANS Demand'!F66+'FR-16(7)(v)-8 TRANS Energy'!F66+'FR-16(7)(v)-9 TRANS Cust'!F66+'FR-16(7)(v)-11 DIST Demand'!F66+'FR-16(7)(v)-12 DIST Energy'!F66+'FR-16(7)(v)-13 DIST Cust'!F66-'FR-16(7)(v)-14 TOTAL CLASS'!F66","v":0},{"$f":"'FR-16(7)(v)-3 PROD Demand'!G66+'FR-16(7)(v)-4 PROD Energy'!G66+'FR-16(7)(v)-5 PROD Cust'!G66+'FR-16(7)(v)-7 TRANS Demand'!G66+'FR-16(7)(v)-8 TRANS Energy'!G66+'FR-16(7)(v)-9 TRANS Cust'!G66+'FR-16(7)(v)-11 DIST Demand'!G66+'FR-16(7)(v)-12 DIST Energy'!G66+'FR-16(7)(v)-13 DIST Cust'!G66-'FR-16(7)(v)-14 TOTAL CLASS'!G66","v":0},{"$f":"'FR-16(7)(v)-3 PROD Demand'!H66+'FR-16(7)(v)-4 PROD Energy'!H66+'FR-16(7)(v)-5 PROD Cust'!H66+'FR-16(7)(v)-7 TRANS Demand'!H66+'FR-16(7)(v)-8 TRANS Energy'!H66+'FR-16(7)(v)-9 TRANS Cust'!H66+'FR-16(7)(v)-11 DIST Demand'!H66+'FR-16(7)(v)-12 DIST Energy'!H66+'FR-16(7)(v)-13 DIST Cust'!H66-'FR-16(7)(v)-14 TOTAL CLASS'!H66","v":0},{"$f":"'FR-16(7)(v)-3 PROD Demand'!I66+'FR-16(7)(v)-4 PROD Energy'!I66+'FR-16(7)(v)-5 PROD Cust'!I66+'FR-16(7)(v)-7 TRANS Demand'!I66+'FR-16(7)(v)-8 TRANS Energy'!I66+'FR-16(7)(v)-9 TRANS Cust'!I66+'FR-16(7)(v)-11 DIST Demand'!I66+'FR-16(7)(v)-12 DIST Energy'!I66+'FR-16(7)(v)-13 DIST Cust'!I66-'FR-16(7)(v)-14 TOTAL CLASS'!I66","v":0},{"$f":"'FR-16(7)(v)-3 PROD Demand'!J66+'FR-16(7)(v)-4 PROD Energy'!J66+'FR-16(7)(v)-5 PROD Cust'!J66+'FR-16(7)(v)-7 TRANS Demand'!J66+'FR-16(7)(v)-8 TRANS Energy'!J66+'FR-16(7)(v)-9 TRANS Cust'!J66+'FR-16(7)(v)-11 DIST Demand'!J66+'FR-16(7)(v)-12 DIST Energy'!J66+'FR-16(7)(v)-13 DIST Cust'!J66-'FR-16(7)(v)-14 TOTAL CLASS'!J66","v":0},{"$f":"'FR-16(7)(v)-3 PROD Demand'!K66+'FR-16(7)(v)-4 PROD Energy'!K66+'FR-16(7)(v)-5 PROD Cust'!K66+'FR-16(7)(v)-7 TRANS Demand'!K66+'FR-16(7)(v)-8 TRANS Energy'!K66+'FR-16(7)(v)-9 TRANS Cust'!K66+'FR-16(7)(v)-11 DIST Demand'!K66+'FR-16(7)(v)-12 DIST Energy'!K66+'FR-16(7)(v)-13 DIST Cust'!K66-'FR-16(7)(v)-14 TOTAL CLASS'!K66","v":0},{"$f":"'FR-16(7)(v)-3 PROD Demand'!L66+'FR-16(7)(v)-4 PROD Energy'!L66+'FR-16(7)(v)-5 PROD Cust'!L66+'FR-16(7)(v)-7 TRANS Demand'!L66+'FR-16(7)(v)-8 TRANS Energy'!L66+'FR-16(7)(v)-9 TRANS Cust'!L66+'FR-16(7)(v)-11 DIST Demand'!L66+'FR-16(7)(v)-12 DIST Energy'!L66+'FR-16(7)(v)-13 DIST Cust'!L66-'FR-16(7)(v)-14 TOTAL CLASS'!L66","v":0},{"$f":"'FR-16(7)(v)-3 PROD Demand'!M66+'FR-16(7)(v)-4 PROD Energy'!M66+'FR-16(7)(v)-5 PROD Cust'!M66+'FR-16(7)(v)-7 TRANS Demand'!M66+'FR-16(7)(v)-8 TRANS Energy'!M66+'FR-16(7)(v)-9 TRANS Cust'!M66+'FR-16(7)(v)-11 DIST Demand'!M66+'FR-16(7)(v)-12 DIST Energy'!M66+'FR-16(7)(v)-13 DIST Cust'!M66-'FR-16(7)(v)-14 TOTAL CLASS'!M66","v":0},{"$f":"'FR-16(7)(v)-3 PROD Demand'!N66+'FR-16(7)(v)-4 PROD Energy'!N66+'FR-16(7)(v)-5 PROD Cust'!N66+'FR-16(7)(v)-7 TRANS Demand'!N66+'FR-16(7)(v)-8 TRANS Energy'!N66+'FR-16(7)(v)-9 TRANS Cust'!N66+'FR-16(7)(v)-11 DIST Demand'!N66+'FR-16(7)(v)-12 DIST Energy'!N66+'FR-16(7)(v)-13 DIST Cust'!N66-'FR-16(7)(v)-14 TOTAL CLASS'!N66","v":0},{"$f":"'FR-16(7)(v)-3 PROD Demand'!O66+'FR-16(7)(v)-4 PROD Energy'!O66+'FR-16(7)(v)-5 PROD Cust'!O66+'FR-16(7)(v)-7 TRANS Demand'!O66+'FR-16(7)(v)-8 TRANS Energy'!O66+'FR-16(7)(v)-9 TRANS Cust'!O66+'FR-16(7)(v)-11 DIST Demand'!O66+'FR-16(7)(v)-12 DIST Energy'!O66+'FR-16(7)(v)-13 DIST Cust'!O66-'FR-16(7)(v)-14 TOTAL CLASS'!O66","v":0},{"$f":"'FR-16(7)(v)-3 PROD Demand'!P66+'FR-16(7)(v)-4 PROD Energy'!P66+'FR-16(7)(v)-5 PROD Cust'!P66+'FR-16(7)(v)-7 TRANS Demand'!P66+'FR-16(7)(v)-8 TRANS Energy'!P66+'FR-16(7)(v)-9 TRANS Cust'!P66+'FR-16(7)(v)-11 DIST Demand'!P66+'FR-16(7)(v)-12 DIST Energy'!P66+'FR-16(7)(v)-13 DIST Cust'!P66-'FR-16(7)(v)-14 TOTAL CLASS'!P66","v":0},{"$f":"'FR-16(7)(v)-3 PROD Demand'!Q66+'FR-16(7)(v)-4 PROD Energy'!Q66+'FR-16(7)(v)-5 PROD Cust'!Q66+'FR-16(7)(v)-7 TRANS Demand'!Q66+'FR-16(7)(v)-8 TRANS Energy'!Q66+'FR-16(7)(v)-9 TRANS Cust'!Q66+'FR-16(7)(v)-11 DIST Demand'!Q66+'FR-16(7)(v)-12 DIST Energy'!Q66+'FR-16(7)(v)-13 DIST Cust'!Q66-'FR-16(7)(v)-14 TOTAL CLASS'!Q66","v":0},{"$f":"SUM(G66:Q66)","v":0},{"$f":"F66-R66","v":0}]
[10,null,"ADJUSTMENT","K201",null,{"$f":"'FR-16(7)(v)-3 PROD Demand'!F67+'FR-16(7)(v)-4 PROD Energy'!F67+'FR-16(7)(v)-5 PROD Cust'!F67+'FR-16(7)(v)-7 TRANS Demand'!F67+'FR-16(7)(v)-8 TRANS Energy'!F67+'FR-16(7)(v)-9 TRANS Cust'!F67+'FR-16(7)(v)-11 DIST Demand'!F67+'FR-16(7)(v)-12 DIST Energy'!F67+'FR-16(7)(v)-13 DIST Cust'!F67-'FR-16(7)(v)-14 TOTAL CLASS'!F67","v":0},{"$f":"'FR-16(7)(v)-3 PROD Demand'!G67+'FR-16(7)(v)-4 PROD Energy'!G67+'FR-16(7)(v)-5 PROD Cust'!G67+'FR-16(7)(v)-7 TRANS Demand'!G67+'FR-16(7)(v)-8 TRANS Energy'!G67+'FR-16(7)(v)-9 TRANS Cust'!G67+'FR-16(7)(v)-11 DIST Demand'!G67+'FR-16(7)(v)-12 DIST Energy'!G67+'FR-16(7)(v)-13 DIST Cust'!G67-'FR-16(7)(v)-14 TOTAL CLASS'!G67","v":0},{"$f":"'FR-16(7)(v)-3 PROD Demand'!H67+'FR-16(7)(v)-4 PROD Energy'!H67+'FR-16(7)(v)-5 PROD Cust'!H67+'FR-16(7)(v)-7 TRANS Demand'!H67+'FR-16(7)(v)-8 TRANS Energy'!H67+'FR-16(7)(v)-9 TRANS Cust'!H67+'FR-16(7)(v)-11 DIST Demand'!H67+'FR-16(7)(v)-12 DIST Energy'!H67+'FR-16(7)(v)-13 DIST Cust'!H67-'FR-16(7)(v)-14 TOTAL CLASS'!H67","v":0},{"$f":"'FR-16(7)(v)-3 PROD Demand'!I67+'FR-16(7)(v)-4 PROD Energy'!I67+'FR-16(7)(v)-5 PROD Cust'!I67+'FR-16(7)(v)-7 TRANS Demand'!I67+'FR-16(7)(v)-8 TRANS Energy'!I67+'FR-16(7)(v)-9 TRANS Cust'!I67+'FR-16(7)(v)-11 DIST Demand'!I67+'FR-16(7)(v)-12 DIST Energy'!I67+'FR-16(7)(v)-13 DIST Cust'!I67-'FR-16(7)(v)-14 TOTAL CLASS'!I67","v":0},{"$f":"'FR-16(7)(v)-3 PROD Demand'!J67+'FR-16(7)(v)-4 PROD Energy'!J67+'FR-16(7)(v)-5 PROD Cust'!J67+'FR-16(7)(v)-7 TRANS Demand'!J67+'FR-16(7)(v)-8 TRANS Energy'!J67+'FR-16(7)(v)-9 TRANS Cust'!J67+'FR-16(7)(v)-11 DIST Demand'!J67+'FR-16(7)(v)-12 DIST Energy'!J67+'FR-16(7)(v)-13 DIST Cust'!J67-'FR-16(7)(v)-14 TOTAL CLASS'!J67","v":0},{"$f":"'FR-16(7)(v)-3 PROD Demand'!K67+'FR-16(7)(v)-4 PROD Energy'!K67+'FR-16(7)(v)-5 PROD Cust'!K67+'FR-16(7)(v)-7 TRANS Demand'!K67+'FR-16(7)(v)-8 TRANS Energy'!K67+'FR-16(7)(v)-9 TRANS Cust'!K67+'FR-16(7)(v)-11 DIST Demand'!K67+'FR-16(7)(v)-12 DIST Energy'!K67+'FR-16(7)(v)-13 DIST Cust'!K67-'FR-16(7)(v)-14 TOTAL CLASS'!K67","v":0},{"$f":"'FR-16(7)(v)-3 PROD Demand'!L67+'FR-16(7)(v)-4 PROD Energy'!L67+'FR-16(7)(v)-5 PROD Cust'!L67+'FR-16(7)(v)-7 TRANS Demand'!L67+'FR-16(7)(v)-8 TRANS Energy'!L67+'FR-16(7)(v)-9 TRANS Cust'!L67+'FR-16(7)(v)-11 DIST Demand'!L67+'FR-16(7)(v)-12 DIST Energy'!L67+'FR-16(7)(v)-13 DIST Cust'!L67-'FR-16(7)(v)-14 TOTAL CLASS'!L67","v":0},{"$f":"'FR-16(7)(v)-3 PROD Demand'!M67+'FR-16(7)(v)-4 PROD Energy'!M67+'FR-16(7)(v)-5 PROD Cust'!M67+'FR-16(7)(v)-7 TRANS Demand'!M67+'FR-16(7)(v)-8 TRANS Energy'!M67+'FR-16(7)(v)-9 TRANS Cust'!M67+'FR-16(7)(v)-11 DIST Demand'!M67+'FR-16(7)(v)-12 DIST Energy'!M67+'FR-16(7)(v)-13 DIST Cust'!M67-'FR-16(7)(v)-14 TOTAL CLASS'!M67","v":0},{"$f":"'FR-16(7)(v)-3 PROD Demand'!N67+'FR-16(7)(v)-4 PROD Energy'!N67+'FR-16(7)(v)-5 PROD Cust'!N67+'FR-16(7)(v)-7 TRANS Demand'!N67+'FR-16(7)(v)-8 TRANS Energy'!N67+'FR-16(7)(v)-9 TRANS Cust'!N67+'FR-16(7)(v)-11 DIST Demand'!N67+'FR-16(7)(v)-12 DIST Energy'!N67+'FR-16(7)(v)-13 DIST Cust'!N67-'FR-16(7)(v)-14 TOTAL CLASS'!N67","v":0},{"$f":"'FR-16(7)(v)-3 PROD Demand'!O67+'FR-16(7)(v)-4 PROD Energy'!O67+'FR-16(7)(v)-5 PROD Cust'!O67+'FR-16(7)(v)-7 TRANS Demand'!O67+'FR-16(7)(v)-8 TRANS Energy'!O67+'FR-16(7)(v)-9 TRANS Cust'!O67+'FR-16(7)(v)-11 DIST Demand'!O67+'FR-16(7)(v)-12 DIST Energy'!O67+'FR-16(7)(v)-13 DIST Cust'!O67-'FR-16(7)(v)-14 TOTAL CLASS'!O67","v":0},{"$f":"'FR-16(7)(v)-3 PROD Demand'!P67+'FR-16(7)(v)-4 PROD Energy'!P67+'FR-16(7)(v)-5 PROD Cust'!P67+'FR-16(7)(v)-7 TRANS Demand'!P67+'FR-16(7)(v)-8 TRANS Energy'!P67+'FR-16(7)(v)-9 TRANS Cust'!P67+'FR-16(7)(v)-11 DIST Demand'!P67+'FR-16(7)(v)-12 DIST Energy'!P67+'FR-16(7)(v)-13 DIST Cust'!P67-'FR-16(7)(v)-14 TOTAL CLASS'!P67","v":0},{"$f":"'FR-16(7)(v)-3 PROD Demand'!Q67+'FR-16(7)(v)-4 PROD Energy'!Q67+'FR-16(7)(v)-5 PROD Cust'!Q67+'FR-16(7)(v)-7 TRANS Demand'!Q67+'FR-16(7)(v)-8 TRANS Energy'!Q67+'FR-16(7)(v)-9 TRANS Cust'!Q67+'FR-16(7)(v)-11 DIST Demand'!Q67+'FR-16(7)(v)-12 DIST Energy'!Q67+'FR-16(7)(v)-13 DIST Cust'!Q67-'FR-16(7)(v)-14 TOTAL CLASS'!Q67","v":0},{"$f":"SUM(G67:Q67)","v":0},{"$f":"F67-R67","v":0}]
[11,null,{"$f":"'FR-16(7)(v)-1 Functional'!C68","v":"  TRANSMISSION PLANT IN SERVICE"},null,null,{"$f":"SUM(F65:F67)","v":0},{"$f":"SUM(G65:G67)","v":0},0,0,0,0,0,0,0,0,0,0,0,{"$f":"SUM(S65)","v":0}]
[12]
[13,"TOTAL PROD & TRANS PLANT",null,null,null,{"$f":"F68+F62","v":0},{"$f":"G68+G62","v":0},{"$f":"H68+H62","v":0},{"$f":"I68+I62","v":0},{"$f":"J68+J62","v":0},0,0,0,0,0,0,{"$f":"$Q$68+$Q$62","v":0},{"$f":"R68+R62","v":0},{"$f":"S68+S62","v":0}]
[14]
[15,"DISTRIBUTION PLANT"]
[16,null,{"$f":"'FR-16(7)(v)-1 Functional'!C73","v":"SUBSTATIONS"},{"$f":"'FR-16(7)(v)-1 Functional'!D73","v":"K215"},null,{"$f":"'FR-16(7)(v)-3 PROD Demand'!F73+'FR-16(7)(v)-4 PROD Energy'!F73+'FR-16(7)(v)-5 PROD Cust'!F73+'FR-16(7)(v)-7 TRANS Demand'!F73+'FR-16(7)(v)-8 TRANS Energy'!F73+'FR-16(7)(v)-9 TRANS Cust'!F73+'FR-16(7)(v)-11 DIST Demand'!F73+'FR-16(7)(v)-12 DIST Energy'!F73+'FR-16(7)(v)-13 DIST Cust'!F73-'FR-16(7)(v)-14 TOTAL CLASS'!F73","v":0},{"$f":"'FR-16(7)(v)-3 PROD Demand'!G73+'FR-16(7)(v)-4 PROD Energy'!G73+'FR-16(7)(v)-5 PROD Cust'!G73+'FR-16(7)(v)-7 TRANS Demand'!G73+'FR-16(7)(v)-8 TRANS Energy'!G73+'FR-16(7)(v)-9 TRANS Cust'!G73+'FR-16(7)(v)-11 DIST Demand'!G73+'FR-16(7)(v)-12 DIST Energy'!G73+'FR-16(7)(v)-13 DIST Cust'!G73-'FR-16(7)(v)-14 TOTAL CLASS'!G73","v":0},{"$f":"'FR-16(7)(v)-3 PROD Demand'!H73+'FR-16(7)(v)-4 PROD Energy'!H73+'FR-16(7)(v)-5 PROD Cust'!H73+'FR-16(7)(v)-7 TRANS Demand'!H73+'FR-16(7)(v)-8 TRANS Energy'!H73+'FR-16(7)(v)-9 TRANS Cust'!H73+'FR-16(7)(v)-11 DIST Demand'!H73+'FR-16(7)(v)-12 DIST Energy'!H73+'FR-16(7)(v)-13 DIST Cust'!H73-'FR-16(7)(v)-14 TOTAL CLASS'!H73","v":0},{"$f":"'FR-16(7)(v)-3 PROD Demand'!I73+'FR-16(7)(v)-4 PROD Energy'!I73+'FR-16(7)(v)-5 PROD Cust'!I73+'FR-16(7)(v)-7 TRANS Demand'!I73+'FR-16(7)(v)-8 TRANS Energy'!I73+'FR-16(7)(v)-9 TRANS Cust'!I73+'FR-16(7)(v)-11 DIST Demand'!I73+'FR-16(7)(v)-12 DIST Energy'!I73+'FR-16(7)(v)-13 DIST Cust'!I73-'FR-16(7)(v)-14 TOTAL CLASS'!I73","v":0},{"$f":"'FR-16(7)(v)-3 PROD Demand'!J73+'FR-16(7)(v)-4 PROD Energy'!J73+'FR-16(7)(v)-5 PROD Cust'!J73+'FR-16(7)(v)-7 TRANS Demand'!J73+'FR-16(7)(v)-8 TRANS Energy'!J73+'FR-16(7)(v)-9 TRANS Cust'!J73+'FR-16(7)(v)-11 DIST Demand'!J73+'FR-16(7)(v)-12 DIST Energy'!J73+'FR-16(7)(v)-13 DIST Cust'!J73-'FR-16(7)(v)-14 TOTAL CLASS'!J73","v":0},{"$f":"'FR-16(7)(v)-3 PROD Demand'!K73+'FR-16(7)(v)-4 PROD Energy'!K73+'FR-16(7)(v)-5 PROD Cust'!K73+'FR-16(7)(v)-7 TRANS Demand'!K73+'FR-16(7)(v)-8 TRANS Energy'!K73+'FR-16(7)(v)-9 TRANS Cust'!K73+'FR-16(7)(v)-11 DIST Demand'!K73+'FR-16(7)(v)-12 DIST Energy'!K73+'FR-16(7)(v)-13 DIST Cust'!K73-'FR-16(7)(v)-14 TOTAL CLASS'!K73","v":0},{"$f":"'FR-16(7)(v)-3 PROD Demand'!L73+'FR-16(7)(v)-4 PROD Energy'!L73+'FR-16(7)(v)-5 PROD Cust'!L73+'FR-16(7)(v)-7 TRANS Demand'!L73+'FR-16(7)(v)-8 TRANS Energy'!L73+'FR-16(7)(v)-9 TRANS Cust'!L73+'FR-16(7)(v)-11 DIST Demand'!L73+'FR-16(7)(v)-12 DIST Energy'!L73+'FR-16(7)(v)-13 DIST Cust'!L73-'FR-16(7)(v)-14 TOTAL CLASS'!L73","v":0},{"$f":"'FR-16(7)(v)-3 PROD Demand'!M73+'FR-16(7)(v)-4 PROD Energy'!M73+'FR-16(7)(v)-5 PROD Cust'!M73+'FR-16(7)(v)-7 TRANS Demand'!M73+'FR-16(7)(v)-8 TRANS Energy'!M73+'FR-16(7)(v)-9 TRANS Cust'!M73+'FR-16(7)(v)-11 DIST Demand'!M73+'FR-16(7)(v)-12 DIST Energy'!M73+'FR-16(7)(v)-13 DIST Cust'!M73-'FR-16(7)(v)-14 TOTAL CLASS'!M73","v":0},{"$f":"'FR-16(7)(v)-3 PROD Demand'!N73+'FR-16(7)(v)-4 PROD Energy'!N73+'FR-16(7)(v)-5 PROD Cust'!N73+'FR-16(7)(v)-7 TRANS Demand'!N73+'FR-16(7)(v)-8 TRANS Energy'!N73+'FR-16(7)(v)-9 TRANS Cust'!N73+'FR-16(7)(v)-11 DIST Demand'!N73+'FR-16(7)(v)-12 DIST Energy'!N73+'FR-16(7)(v)-13 DIST Cust'!N73-'FR-16(7)(v)-14 TOTAL CLASS'!N73","v":0},{"$f":"'FR-16(7)(v)-3 PROD Demand'!O73+'FR-16(7)(v)-4 PROD Energy'!O73+'FR-16(7)(v)-5 PROD Cust'!O73+'FR-16(7)(v)-7 TRANS Demand'!O73+'FR-16(7)(v)-8 TRANS Energy'!O73+'FR-16(7)(v)-9 TRANS Cust'!O73+'FR-16(7)(v)-11 DIST Demand'!O73+'FR-16(7)(v)-12 DIST Energy'!O73+'FR-16(7)(v)-13 DIST Cust'!O73-'FR-16(7)(v)-14 TOTAL CLASS'!O73","v":0},{"$f":"'FR-16(7)(v)-3 PROD Demand'!P73+'FR-16(7)(v)-4 PROD Energy'!P73+'FR-16(7)(v)-5 PROD Cust'!P73+'FR-16(7)(v)-7 TRANS Demand'!P73+'FR-16(7)(v)-8 TRANS Energy'!P73+'FR-16(7)(v)-9 TRANS Cust'!P73+'FR-16(7)(v)-11 DIST Demand'!P73+'FR-16(7)(v)-12 DIST Energy'!P73+'FR-16(7)(v)-13 DIST Cust'!P73-'FR-16(7)(v)-14 TOTAL CLASS'!P73","v":0},{"$f":"'FR-16(7)(v)-3 PROD Demand'!Q73+'FR-16(7)(v)-4 PROD Energy'!Q73+'FR-16(7)(v)-5 PROD Cust'!Q73+'FR-16(7)(v)-7 TRANS Demand'!Q73+'FR-16(7)(v)-8 TRANS Energy'!Q73+'FR-16(7)(v)-9 TRANS Cust'!Q73+'FR-16(7)(v)-11 DIST Demand'!Q73+'FR-16(7)(v)-12 DIST Energy'!Q73+'FR-16(7)(v)-13 DIST Cust'!Q73-'FR-16(7)(v)-14 TOTAL CLASS'!Q73","v":0},{"$f":"SUM(G73:Q73)","v":0},{"$f":"F73-R73","v":0}]
[17,null,{"$f":"'FR-16(7)(v)-1 Functional'!C74","v":"POLES, TOWERS  & FIXTURES - PRIMARY - DEMAND"},{"$f":"'FR-16(7)(v)-1 Functional'!D74","v":"K205"},null,{"$f":"'FR-16(7)(v)-3 PROD Demand'!F74+'FR-16(7)(v)-4 PROD Energy'!F74+'FR-16(7)(v)-5 PROD Cust'!F74+'FR-16(7)(v)-7 TRANS Demand'!F74+'FR-16(7)(v)-8 TRANS Energy'!F74+'FR-16(7)(v)-9 TRANS Cust'!F74+'FR-16(7)(v)-11 DIST Demand'!F74+'FR-16(7)(v)-12 DIST Energy'!F74+'FR-16(7)(v)-13 DIST Cust'!F74-'FR-16(7)(v)-14 TOTAL CLASS'!F74","v":0},{"$f":"'FR-16(7)(v)-3 PROD Demand'!G74+'FR-16(7)(v)-4 PROD Energy'!G74+'FR-16(7)(v)-5 PROD Cust'!G74+'FR-16(7)(v)-7 TRANS Demand'!G74+'FR-16(7)(v)-8 TRANS Energy'!G74+'FR-16(7)(v)-9 TRANS Cust'!G74+'FR-16(7)(v)-11 DIST Demand'!G74+'FR-16(7)(v)-12 DIST Energy'!G74+'FR-16(7)(v)-13 DIST Cust'!G74-'FR-16(7)(v)-14 TOTAL CLASS'!G74","v":0},{"$f":"'FR-16(7)(v)-3 PROD Demand'!H74+'FR-16(7)(v)-4 PROD Energy'!H74+'FR-16(7)(v)-5 PROD Cust'!H74+'FR-16(7)(v)-7 TRANS Demand'!H74+'FR-16(7)(v)-8 TRANS Energy'!H74+'FR-16(7)(v)-9 TRANS Cust'!H74+'FR-16(7)(v)-11 DIST Demand'!H74+'FR-16(7)(v)-12 DIST Energy'!H74+'FR-16(7)(v)-13 DIST Cust'!H74-'FR-16(7)(v)-14 TOTAL CLASS'!H74","v":0},{"$f":"'FR-16(7)(v)-3 PROD Demand'!I74+'FR-16(7)(v)-4 PROD Energy'!I74+'FR-16(7)(v)-5 PROD Cust'!I74+'FR-16(7)(v)-7 TRANS Demand'!I74+'FR-16(7)(v)-8 TRANS Energy'!I74+'FR-16(7)(v)-9 TRANS Cust'!I74+'FR-16(7)(v)-11 DIST Demand'!I74+'FR-16(7)(v)-12 DIST Energy'!I74+'FR-16(7)(v)-13 DIST Cust'!I74-'FR-16(7)(v)-14 TOTAL CLASS'!I74","v":0},{"$f":"'FR-16(7)(v)-3 PROD Demand'!J74+'FR-16(7)(v)-4 PROD Energy'!J74+'FR-16(7)(v)-5 PROD Cust'!J74+'FR-16(7)(v)-7 TRANS Demand'!J74+'FR-16(7)(v)-8 TRANS Energy'!J74+'FR-16(7)(v)-9 TRANS Cust'!J74+'FR-16(7)(v)-11 DIST Demand'!J74+'FR-16(7)(v)-12 DIST Energy'!J74+'FR-16(7)(v)-13 DIST Cust'!J74-'FR-16(7)(v)-14 TOTAL CLASS'!J74","v":0},{"$f":"'FR-16(7)(v)-3 PROD Demand'!K74+'FR-16(7)(v)-4 PROD Energy'!K74+'FR-16(7)(v)-5 PROD Cust'!K74+'FR-16(7)(v)-7 TRANS Demand'!K74+'FR-16(7)(v)-8 TRANS Energy'!K74+'FR-16(7)(v)-9 TRANS Cust'!K74+'FR-16(7)(v)-11 DIST Demand'!K74+'FR-16(7)(v)-12 DIST Energy'!K74+'FR-16(7)(v)-13 DIST Cust'!K74-'FR-16(7)(v)-14 TOTAL CLASS'!K74","v":0},{"$f":"'FR-16(7)(v)-3 PROD Demand'!L74+'FR-16(7)(v)-4 PROD Energy'!L74+'FR-16(7)(v)-5 PROD Cust'!L74+'FR-16(7)(v)-7 TRANS Demand'!L74+'FR-16(7)(v)-8 TRANS Energy'!L74+'FR-16(7)(v)-9 TRANS Cust'!L74+'FR-16(7)(v)-11 DIST Demand'!L74+'FR-16(7)(v)-12 DIST Energy'!L74+'FR-16(7)(v)-13 DIST Cust'!L74-'FR-16(7)(v)-14 TOTAL CLASS'!L74","v":0},{"$f":"'FR-16(7)(v)-3 PROD Demand'!M74+'FR-16(7)(v)-4 PROD Energy'!M74+'FR-16(7)(v)-5 PROD Cust'!M74+'FR-16(7)(v)-7 TRANS Demand'!M74+'FR-16(7)(v)-8 TRANS Energy'!M74+'FR-16(7)(v)-9 TRANS Cust'!M74+'FR-16(7)(v)-11 DIST Demand'!M74+'FR-16(7)(v)-12 DIST Energy'!M74+'FR-16(7)(v)-13 DIST Cust'!M74-'FR-16(7)(v)-14 TOTAL CLASS'!M74","v":0},{"$f":"'FR-16(7)(v)-3 PROD Demand'!N74+'FR-16(7)(v)-4 PROD Energy'!N74+'FR-16(7)(v)-5 PROD Cust'!N74+'FR-16(7)(v)-7 TRANS Demand'!N74+'FR-16(7)(v)-8 TRANS Energy'!N74+'FR-16(7)(v)-9 TRANS Cust'!N74+'FR-16(7)(v)-11 DIST Demand'!N74+'FR-16(7)(v)-12 DIST Energy'!N74+'FR-16(7)(v)-13 DIST Cust'!N74-'FR-16(7)(v)-14 TOTAL CLASS'!N74","v":0},{"$f":"'FR-16(7)(v)-3 PROD Demand'!O74+'FR-16(7)(v)-4 PROD Energy'!O74+'FR-16(7)(v)-5 PROD Cust'!O74+'FR-16(7)(v)-7 TRANS Demand'!O74+'FR-16(7)(v)-8 TRANS Energy'!O74+'FR-16(7)(v)-9 TRANS Cust'!O74+'FR-16(7)(v)-11 DIST Demand'!O74+'FR-16(7)(v)-12 DIST Energy'!O74+'FR-16(7)(v)-13 DIST Cust'!O74-'FR-16(7)(v)-14 TOTAL CLASS'!O74","v":0},{"$f":"'FR-16(7)(v)-3 PROD Demand'!P74+'FR-16(7)(v)-4 PROD Energy'!P74+'FR-16(7)(v)-5 PROD Cust'!P74+'FR-16(7)(v)-7 TRANS Demand'!P74+'FR-16(7)(v)-8 TRANS Energy'!P74+'FR-16(7)(v)-9 TRANS Cust'!P74+'FR-16(7)(v)-11 DIST Demand'!P74+'FR-16(7)(v)-12 DIST Energy'!P74+'FR-16(7)(v)-13 DIST Cust'!P74-'FR-16(7)(v)-14 TOTAL CLASS'!P74","v":0},{"$f":"'FR-16(7)(v)-3 PROD Demand'!Q74+'FR-16(7)(v)-4 PROD Energy'!Q74+'FR-16(7)(v)-5 PROD Cust'!Q74+'FR-16(7)(v)-7 TRANS Demand'!Q74+'FR-16(7)(v)-8 TRANS Energy'!Q74+'FR-16(7)(v)-9 TRANS Cust'!Q74+'FR-16(7)(v)-11 DIST Demand'!Q74+'FR-16(7)(v)-12 DIST Energy'!Q74+'FR-16(7)(v)-13 DIST Cust'!Q74-'FR-16(7)(v)-14 TOTAL CLASS'!Q74","v":0},0,0]
[18,null,{"$f":"'FR-16(7)(v)-1 Functional'!C75","v":"POLES, TOWERS  & FIXTURES - PRIMARY - CUSTOMER"},{"$f":"'FR-16(7)(v)-1 Functional'!D75","v":"K405"},null,{"$f":"'FR-16(7)(v)-3 PROD Demand'!F75+'FR-16(7)(v)-4 PROD Energy'!F75+'FR-16(7)(v)-5 PROD Cust'!F75+'FR-16(7)(v)-7 TRANS Demand'!F75+'FR-16(7)(v)-8 TRANS Energy'!F75+'FR-16(7)(v)-9 TRANS Cust'!F75+'FR-16(7)(v)-11 DIST Demand'!F75+'FR-16(7)(v)-12 DIST Energy'!F75+'FR-16(7)(v)-13 DIST Cust'!F75-'FR-16(7)(v)-14 TOTAL CLASS'!F75","v":0},{"$f":"'FR-16(7)(v)-3 PROD Demand'!G75+'FR-16(7)(v)-4 PROD Energy'!G75+'FR-16(7)(v)-5 PROD Cust'!G75+'FR-16(7)(v)-7 TRANS Demand'!G75+'FR-16(7)(v)-8 TRANS Energy'!G75+'FR-16(7)(v)-9 TRANS Cust'!G75+'FR-16(7)(v)-11 DIST Demand'!G75+'FR-16(7)(v)-12 DIST Energy'!G75+'FR-16(7)(v)-13 DIST Cust'!G75-'FR-16(7)(v)-14 TOTAL CLASS'!G75","v":0},{"$f":"'FR-16(7)(v)-3 PROD Demand'!H75+'FR-16(7)(v)-4 PROD Energy'!H75+'FR-16(7)(v)-5 PROD Cust'!H75+'FR-16(7)(v)-7 TRANS Demand'!H75+'FR-16(7)(v)-8 TRANS Energy'!H75+'FR-16(7)(v)-9 TRANS Cust'!H75+'FR-16(7)(v)-11 DIST Demand'!H75+'FR-16(7)(v)-12 DIST Energy'!H75+'FR-16(7)(v)-13 DIST Cust'!H75-'FR-16(7)(v)-14 TOTAL CLASS'!H75","v":0},{"$f":"'FR-16(7)(v)-3 PROD Demand'!I75+'FR-16(7)(v)-4 PROD Energy'!I75+'FR-16(7)(v)-5 PROD Cust'!I75+'FR-16(7)(v)-7 TRANS Demand'!I75+'FR-16(7)(v)-8 TRANS Energy'!I75+'FR-16(7)(v)-9 TRANS Cust'!I75+'FR-16(7)(v)-11 DIST Demand'!I75+'FR-16(7)(v)-12 DIST Energy'!I75+'FR-16(7)(v)-13 DIST Cust'!I75-'FR-16(7)(v)-14 TOTAL CLASS'!I75","v":0},{"$f":"'FR-16(7)(v)-3 PROD Demand'!J75+'FR-16(7)(v)-4 PROD Energy'!J75+'FR-16(7)(v)-5 PROD Cust'!J75+'FR-16(7)(v)-7 TRANS Demand'!J75+'FR-16(7)(v)-8 TRANS Energy'!J75+'FR-16(7)(v)-9 TRANS Cust'!J75+'FR-16(7)(v)-11 DIST Demand'!J75+'FR-16(7)(v)-12 DIST Energy'!J75+'FR-16(7)(v)-13 DIST Cust'!J75-'FR-16(7)(v)-14 TOTAL CLASS'!J75","v":0},{"$f":"'FR-16(7)(v)-3 PROD Demand'!K75+'FR-16(7)(v)-4 PROD Energy'!K75+'FR-16(7)(v)-5 PROD Cust'!K75+'FR-16(7)(v)-7 TRANS Demand'!K75+'FR-16(7)(v)-8 TRANS Energy'!K75+'FR-16(7)(v)-9 TRANS Cust'!K75+'FR-16(7)(v)-11 DIST Demand'!K75+'FR-16(7)(v)-12 DIST Energy'!K75+'FR-16(7)(v)-13 DIST Cust'!K75-'FR-16(7)(v)-14 TOTAL CLASS'!K75","v":0},{"$f":"'FR-16(7)(v)-3 PROD Demand'!L75+'FR-16(7)(v)-4 PROD Energy'!L75+'FR-16(7)(v)-5 PROD Cust'!L75+'FR-16(7)(v)-7 TRANS Demand'!L75+'FR-16(7)(v)-8 TRANS Energy'!L75+'FR-16(7)(v)-9 TRANS Cust'!L75+'FR-16(7)(v)-11 DIST Demand'!L75+'FR-16(7)(v)-12 DIST Energy'!L75+'FR-16(7)(v)-13 DIST Cust'!L75-'FR-16(7)(v)-14 TOTAL CLASS'!L75","v":0},{"$f":"'FR-16(7)(v)-3 PROD Demand'!M75+'FR-16(7)(v)-4 PROD Energy'!M75+'FR-16(7)(v)-5 PROD Cust'!M75+'FR-16(7)(v)-7 TRANS Demand'!M75+'FR-16(7)(v)-8 TRANS Energy'!M75+'FR-16(7)(v)-9 TRANS Cust'!M75+'FR-16(7)(v)-11 DIST Demand'!M75+'FR-16(7)(v)-12 DIST Energy'!M75+'FR-16(7)(v)-13 DIST Cust'!M75-'FR-16(7)(v)-14 TOTAL CLASS'!M75","v":0},{"$f":"'FR-16(7)(v)-3 PROD Demand'!N75+'FR-16(7)(v)-4 PROD Energy'!N75+'FR-16(7)(v)-5 PROD Cust'!N75+'FR-16(7)(v)-7 TRANS Demand'!N75+'FR-16(7)(v)-8 TRANS Energy'!N75+'FR-16(7)(v)-9 TRANS Cust'!N75+'FR-16(7)(v)-11 DIST Demand'!N75+'FR-16(7)(v)-12 DIST Energy'!N75+'FR-16(7)(v)-13 DIST Cust'!N75-'FR-16(7)(v)-14 TOTAL CLASS'!N75","v":0},{"$f":"'FR-16(7)(v)-3 PROD Demand'!O75+'FR-16(7)(v)-4 PROD Energy'!O75+'FR-16(7)(v)-5 PROD Cust'!O75+'FR-16(7)(v)-7 TRANS Demand'!O75+'FR-16(7)(v)-8 TRANS Energy'!O75+'FR-16(7)(v)-9 TRANS Cust'!O75+'FR-16(7)(v)-11 DIST Demand'!O75+'FR-16(7)(v)-12 DIST Energy'!O75+'FR-16(7)(v)-13 DIST Cust'!O75-'FR-16(7)(v)-14 TOTAL CLASS'!O75","v":0},{"$f":"'FR-16(7)(v)-3 PROD Demand'!P75+'FR-16(7)(v)-4 PROD Energy'!P75+'FR-16(7)(v)-5 PROD Cust'!P75+'FR-16(7)(v)-7 TRANS Demand'!P75+'FR-16(7)(v)-8 TRANS Energy'!P75+'FR-16(7)(v)-9 TRANS Cust'!P75+'FR-16(7)(v)-11 DIST Demand'!P75+'FR-16(7)(v)-12 DIST Energy'!P75+'FR-16(7)(v)-13 DIST Cust'!P75-'FR-16(7)(v)-14 TOTAL CLASS'!P75","v":0},{"$f":"'FR-16(7)(v)-3 PROD Demand'!Q75+'FR-16(7)(v)-4 PROD Energy'!Q75+'FR-16(7)(v)-5 PROD Cust'!Q75+'FR-16(7)(v)-7 TRANS Demand'!Q75+'FR-16(7)(v)-8 TRANS Energy'!Q75+'FR-16(7)(v)-9 TRANS Cust'!Q75+'FR-16(7)(v)-11 DIST Demand'!Q75+'FR-16(7)(v)-12 DIST Energy'!Q75+'FR-16(7)(v)-13 DIST Cust'!Q75-'FR-16(7)(v)-14 TOTAL CLASS'!Q75","v":0},0,0]
[19,null,{"$f":"'FR-16(7)(v)-1 Functional'!C76","v":"POLES, TOWERS  & FIXTURES - SECONDARY - DEMAND"},{"$f":"'FR-16(7)(v)-1 Functional'!D76","v":"K206"},null,{"$f":"'FR-16(7)(v)-3 PROD Demand'!F76+'FR-16(7)(v)-4 PROD Energy'!F76+'FR-16(7)(v)-5 PROD Cust'!F76+'FR-16(7)(v)-7 TRANS Demand'!F76+'FR-16(7)(v)-8 TRANS Energy'!F76+'FR-16(7)(v)-9 TRANS Cust'!F76+'FR-16(7)(v)-11 DIST Demand'!F76+'FR-16(7)(v)-12 DIST Energy'!F76+'FR-16(7)(v)-13 DIST Cust'!F76-'FR-16(7)(v)-14 TOTAL CLASS'!F76","v":0},{"$f":"'FR-16(7)(v)-3 PROD Demand'!G76+'FR-16(7)(v)-4 PROD Energy'!G76+'FR-16(7)(v)-5 PROD Cust'!G76+'FR-16(7)(v)-7 TRANS Demand'!G76+'FR-16(7)(v)-8 TRANS Energy'!G76+'FR-16(7)(v)-9 TRANS Cust'!G76+'FR-16(7)(v)-11 DIST Demand'!G76+'FR-16(7)(v)-12 DIST Energy'!G76+'FR-16(7)(v)-13 DIST Cust'!G76-'FR-16(7)(v)-14 TOTAL CLASS'!G76","v":0},{"$f":"'FR-16(7)(v)-3 PROD Demand'!H76+'FR-16(7)(v)-4 PROD Energy'!H76+'FR-16(7)(v)-5 PROD Cust'!H76+'FR-16(7)(v)-7 TRANS Demand'!H76+'FR-16(7)(v)-8 TRANS Energy'!H76+'FR-16(7)(v)-9 TRANS Cust'!H76+'FR-16(7)(v)-11 DIST Demand'!H76+'FR-16(7)(v)-12 DIST Energy'!H76+'FR-16(7)(v)-13 DIST Cust'!H76-'FR-16(7)(v)-14 TOTAL CLASS'!H76","v":0},{"$f":"'FR-16(7)(v)-3 PROD Demand'!I76+'FR-16(7)(v)-4 PROD Energy'!I76+'FR-16(7)(v)-5 PROD Cust'!I76+'FR-16(7)(v)-7 TRANS Demand'!I76+'FR-16(7)(v)-8 TRANS Energy'!I76+'FR-16(7)(v)-9 TRANS Cust'!I76+'FR-16(7)(v)-11 DIST Demand'!I76+'FR-16(7)(v)-12 DIST Energy'!I76+'FR-16(7)(v)-13 DIST Cust'!I76-'FR-16(7)(v)-14 TOTAL CLASS'!I76","v":0},{"$f":"'FR-16(7)(v)-3 PROD Demand'!J76+'FR-16(7)(v)-4 PROD Energy'!J76+'FR-16(7)(v)-5 PROD Cust'!J76+'FR-16(7)(v)-7 TRANS Demand'!J76+'FR-16(7)(v)-8 TRANS Energy'!J76+'FR-16(7)(v)-9 TRANS Cust'!J76+'FR-16(7)(v)-11 DIST Demand'!J76+'FR-16(7)(v)-12 DIST Energy'!J76+'FR-16(7)(v)-13 DIST Cust'!J76-'FR-16(7)(v)-14 TOTAL CLASS'!J76","v":0},{"$f":"'FR-16(7)(v)-3 PROD Demand'!K76+'FR-16(7)(v)-4 PROD Energy'!K76+'FR-16(7)(v)-5 PROD Cust'!K76+'FR-16(7)(v)-7 TRANS Demand'!K76+'FR-16(7)(v)-8 TRANS Energy'!K76+'FR-16(7)(v)-9 TRANS Cust'!K76+'FR-16(7)(v)-11 DIST Demand'!K76+'FR-16(7)(v)-12 DIST Energy'!K76+'FR-16(7)(v)-13 DIST Cust'!K76-'FR-16(7)(v)-14 TOTAL CLASS'!K76","v":0},{"$f":"'FR-16(7)(v)-3 PROD Demand'!L76+'FR-16(7)(v)-4 PROD Energy'!L76+'FR-16(7)(v)-5 PROD Cust'!L76+'FR-16(7)(v)-7 TRANS Demand'!L76+'FR-16(7)(v)-8 TRANS Energy'!L76+'FR-16(7)(v)-9 TRANS Cust'!L76+'FR-16(7)(v)-11 DIST Demand'!L76+'FR-16(7)(v)-12 DIST Energy'!L76+'FR-16(7)(v)-13 DIST Cust'!L76-'FR-16(7)(v)-14 TOTAL CLASS'!L76","v":0},{"$f":"'FR-16(7)(v)-3 PROD Demand'!M76+'FR-16(7)(v)-4 PROD Energy'!M76+'FR-16(7)(v)-5 PROD Cust'!M76+'FR-16(7)(v)-7 TRANS Demand'!M76+'FR-16(7)(v)-8 TRANS Energy'!M76+'FR-16(7)(v)-9 TRANS Cust'!M76+'FR-16(7)(v)-11 DIST Demand'!M76+'FR-16(7)(v)-12 DIST Energy'!M76+'FR-16(7)(v)-13 DIST Cust'!M76-'FR-16(7)(v)-14 TOTAL CLASS'!M76","v":0},{"$f":"'FR-16(7)(v)-3 PROD Demand'!N76+'FR-16(7)(v)-4 PROD Energy'!N76+'FR-16(7)(v)-5 PROD Cust'!N76+'FR-16(7)(v)-7 TRANS Demand'!N76+'FR-16(7)(v)-8 TRANS Energy'!N76+'FR-16(7)(v)-9 TRANS Cust'!N76+'FR-16(7)(v)-11 DIST Demand'!N76+'FR-16(7)(v)-12 DIST Energy'!N76+'FR-16(7)(v)-13 DIST Cust'!N76-'FR-16(7)(v)-14 TOTAL CLASS'!N76","v":0},{"$f":"'FR-16(7)(v)-3 PROD Demand'!O76+'FR-16(7)(v)-4 PROD Energy'!O76+'FR-16(7)(v)-5 PROD Cust'!O76+'FR-16(7)(v)-7 TRANS Demand'!O76+'FR-16(7)(v)-8 TRANS Energy'!O76+'FR-16(7)(v)-9 TRANS Cust'!O76+'FR-16(7)(v)-11 DIST Demand'!O76+'FR-16(7)(v)-12 DIST Energy'!O76+'FR-16(7)(v)-13 DIST Cust'!O76-'FR-16(7)(v)-14 TOTAL CLASS'!O76","v":0},{"$f":"'FR-16(7)(v)-3 PROD Demand'!P76+'FR-16(7)(v)-4 PROD Energy'!P76+'FR-16(7)(v)-5 PROD Cust'!P76+'FR-16(7)(v)-7 TRANS Demand'!P76+'FR-16(7)(v)-8 TRANS Energy'!P76+'FR-16(7)(v)-9 TRANS Cust'!P76+'FR-16(7)(v)-11 DIST Demand'!P76+'FR-16(7)(v)-12 DIST Energy'!P76+'FR-16(7)(v)-13 DIST Cust'!P76-'FR-16(7)(v)-14 TOTAL CLASS'!P76","v":0},{"$f":"'FR-16(7)(v)-3 PROD Demand'!Q76+'FR-16(7)(v)-4 PROD Energy'!Q76+'FR-16(7)(v)-5 PROD Cust'!Q76+'FR-16(7)(v)-7 TRANS Demand'!Q76+'FR-16(7)(v)-8 TRANS Energy'!Q76+'FR-16(7)(v)-9 TRANS Cust'!Q76+'FR-16(7)(v)-11 DIST Demand'!Q76+'FR-16(7)(v)-12 DIST Energy'!Q76+'FR-16(7)(v)-13 DIST Cust'!Q76-'FR-16(7)(v)-14 TOTAL CLASS'!Q76","v":0},0,0]
[20,null,{"$f":"'FR-16(7)(v)-1 Functional'!C77","v":"POLES, TOWERS  & FIXTURES - SECONDARY - CUSTOMER"},{"$f":"'FR-16(7)(v)-1 Functional'!D77","v":"K405"},null,{"$f":"'FR-16(7)(v)-3 PROD Demand'!F77+'FR-16(7)(v)-4 PROD Energy'!F77+'FR-16(7)(v)-5 PROD Cust'!F77+'FR-16(7)(v)-7 TRANS Demand'!F77+'FR-16(7)(v)-8 TRANS Energy'!F77+'FR-16(7)(v)-9 TRANS Cust'!F77+'FR-16(7)(v)-11 DIST Demand'!F77+'FR-16(7)(v)-12 DIST Energy'!F77+'FR-16(7)(v)-13 DIST Cust'!F77-'FR-16(7)(v)-14 TOTAL CLASS'!F77","v":0},{"$f":"'FR-16(7)(v)-3 PROD Demand'!G77+'FR-16(7)(v)-4 PROD Energy'!G77+'FR-16(7)(v)-5 PROD Cust'!G77+'FR-16(7)(v)-7 TRANS Demand'!G77+'FR-16(7)(v)-8 TRANS Energy'!G77+'FR-16(7)(v)-9 TRANS Cust'!G77+'FR-16(7)(v)-11 DIST Demand'!G77+'FR-16(7)(v)-12 DIST Energy'!G77+'FR-16(7)(v)-13 DIST Cust'!G77-'FR-16(7)(v)-14 TOTAL CLASS'!G77","v":0},{"$f":"'FR-16(7)(v)-3 PROD Demand'!H77+'FR-16(7)(v)-4 PROD Energy'!H77+'FR-16(7)(v)-5 PROD Cust'!H77+'FR-16(7)(v)-7 TRANS Demand'!H77+'FR-16(7)(v)-8 TRANS Energy'!H77+'FR-16(7)(v)-9 TRANS Cust'!H77+'FR-16(7)(v)-11 DIST Demand'!H77+'FR-16(7)(v)-12 DIST Energy'!H77+'FR-16(7)(v)-13 DIST Cust'!H77-'FR-16(7)(v)-14 TOTAL CLASS'!H77","v":0},{"$f":"'FR-16(7)(v)-3 PROD Demand'!I77+'FR-16(7)(v)-4 PROD Energy'!I77+'FR-16(7)(v)-5 PROD Cust'!I77+'FR-16(7)(v)-7 TRANS Demand'!I77+'FR-16(7)(v)-8 TRANS Energy'!I77+'FR-16(7)(v)-9 TRANS Cust'!I77+'FR-16(7)(v)-11 DIST Demand'!I77+'FR-16(7)(v)-12 DIST Energy'!I77+'FR-16(7)(v)-13 DIST Cust'!I77-'FR-16(7)(v)-14 TOTAL CLASS'!I77","v":0},{"$f":"'FR-16(7)(v)-3 PROD Demand'!J77+'FR-16(7)(v)-4 PROD Energy'!J77+'FR-16(7)(v)-5 PROD Cust'!J77+'FR-16(7)(v)-7 TRANS Demand'!J77+'FR-16(7)(v)-8 TRANS Energy'!J77+'FR-16(7)(v)-9 TRANS Cust'!J77+'FR-16(7)(v)-11 DIST Demand'!J77+'FR-16(7)(v)-12 DIST Energy'!J77+'FR-16(7)(v)-13 DIST Cust'!J77-'FR-16(7)(v)-14 TOTAL CLASS'!J77","v":0},{"$f":"'FR-16(7)(v)-3 PROD Demand'!K77+'FR-16(7)(v)-4 PROD Energy'!K77+'FR-16(7)(v)-5 PROD Cust'!K77+'FR-16(7)(v)-7 TRANS Demand'!K77+'FR-16(7)(v)-8 TRANS Energy'!K77+'FR-16(7)(v)-9 TRANS Cust'!K77+'FR-16(7)(v)-11 DIST Demand'!K77+'FR-16(7)(v)-12 DIST Energy'!K77+'FR-16(7)(v)-13 DIST Cust'!K77-'FR-16(7)(v)-14 TOTAL CLASS'!K77","v":0},{"$f":"'FR-16(7)(v)-3 PROD Demand'!L77+'FR-16(7)(v)-4 PROD Energy'!L77+'FR-16(7)(v)-5 PROD Cust'!L77+'FR-16(7)(v)-7 TRANS Demand'!L77+'FR-16(7)(v)-8 TRANS Energy'!L77+'FR-16(7)(v)-9 TRANS Cust'!L77+'FR-16(7)(v)-11 DIST Demand'!L77+'FR-16(7)(v)-12 DIST Energy'!L77+'FR-16(7)(v)-13 DIST Cust'!L77-'FR-16(7)(v)-14 TOTAL CLASS'!L77","v":0},{"$f":"'FR-16(7)(v)-3 PROD Demand'!M77+'FR-16(7)(v)-4 PROD Energy'!M77+'FR-16(7)(v)-5 PROD Cust'!M77+'FR-16(7)(v)-7 TRANS Demand'!M77+'FR-16(7)(v)-8 TRANS Energy'!M77+'FR-16(7)(v)-9 TRANS Cust'!M77+'FR-16(7)(v)-11 DIST Demand'!M77+'FR-16(7)(v)-12 DIST Energy'!M77+'FR-16(7)(v)-13 DIST Cust'!M77-'FR-16(7)(v)-14 TOTAL CLASS'!M77","v":0},{"$f":"'FR-16(7)(v)-3 PROD Demand'!N77+'FR-16(7)(v)-4 PROD Energy'!N77+'FR-16(7)(v)-5 PROD Cust'!N77+'FR-16(7)(v)-7 TRANS Demand'!N77+'FR-16(7)(v)-8 TRANS Energy'!N77+'FR-16(7)(v)-9 TRANS Cust'!N77+'FR-16(7)(v)-11 DIST Demand'!N77+'FR-16(7)(v)-12 DIST Energy'!N77+'FR-16(7)(v)-13 DIST Cust'!N77-'FR-16(7)(v)-14 TOTAL CLASS'!N77","v":0},{"$f":"'FR-16(7)(v)-3 PROD Demand'!O77+'FR-16(7)(v)-4 PROD Energy'!O77+'FR-16(7)(v)-5 PROD Cust'!O77+'FR-16(7)(v)-7 TRANS Demand'!O77+'FR-16(7)(v)-8 TRANS Energy'!O77+'FR-16(7)(v)-9 TRANS Cust'!O77+'FR-16(7)(v)-11 DIST Demand'!O77+'FR-16(7)(v)-12 DIST Energy'!O77+'FR-16(7)(v)-13 DIST Cust'!O77-'FR-16(7)(v)-14 TOTAL CLASS'!O77","v":0},{"$f":"'FR-16(7)(v)-3 PROD Demand'!P77+'FR-16(7)(v)-4 PROD Energy'!P77+'FR-16(7)(v)-5 PROD Cust'!P77+'FR-16(7)(v)-7 TRANS Demand'!P77+'FR-16(7)(v)-8 TRANS Energy'!P77+'FR-16(7)(v)-9 TRANS Cust'!P77+'FR-16(7)(v)-11 DIST Demand'!P77+'FR-16(7)(v)-12 DIST Energy'!P77+'FR-16(7)(v)-13 DIST Cust'!P77-'FR-16(7)(v)-14 TOTAL CLASS'!P77","v":0},{"$f":"'FR-16(7)(v)-3 PROD Demand'!Q77+'FR-16(7)(v)-4 PROD Energy'!Q77+'FR-16(7)(v)-5 PROD Cust'!Q77+'FR-16(7)(v)-7 TRANS Demand'!Q77+'FR-16(7)(v)-8 TRANS Energy'!Q77+'FR-16(7)(v)-9 TRANS Cust'!Q77+'FR-16(7)(v)-11 DIST Demand'!Q77+'FR-16(7)(v)-12 DIST Energy'!Q77+'FR-16(7)(v)-13 DIST Cust'!Q77-'FR-16(7)(v)-14 TOTAL CLASS'!Q77","v":0},0,0]
[21,null,{"$f":"'FR-16(7)(v)-1 Functional'!C78","v":"CONDUCTORS - OVERHEAD / PRIMARY - DEMAND"},{"$f":"'FR-16(7)(v)-1 Functional'!D78","v":"K205"},null,{"$f":"'FR-16(7)(v)-3 PROD Demand'!F78+'FR-16(7)(v)-4 PROD Energy'!F78+'FR-16(7)(v)-5 PROD Cust'!F78+'FR-16(7)(v)-7 TRANS Demand'!F78+'FR-16(7)(v)-8 TRANS Energy'!F78+'FR-16(7)(v)-9 TRANS Cust'!F78+'FR-16(7)(v)-11 DIST Demand'!F78+'FR-16(7)(v)-12 DIST Energy'!F78+'FR-16(7)(v)-13 DIST Cust'!F78-'FR-16(7)(v)-14 TOTAL CLASS'!F78","v":0},{"$f":"'FR-16(7)(v)-3 PROD Demand'!G78+'FR-16(7)(v)-4 PROD Energy'!G78+'FR-16(7)(v)-5 PROD Cust'!G78+'FR-16(7)(v)-7 TRANS Demand'!G78+'FR-16(7)(v)-8 TRANS Energy'!G78+'FR-16(7)(v)-9 TRANS Cust'!G78+'FR-16(7)(v)-11 DIST Demand'!G78+'FR-16(7)(v)-12 DIST Energy'!G78+'FR-16(7)(v)-13 DIST Cust'!G78-'FR-16(7)(v)-14 TOTAL CLASS'!G78","v":0},{"$f":"'FR-16(7)(v)-3 PROD Demand'!H78+'FR-16(7)(v)-4 PROD Energy'!H78+'FR-16(7)(v)-5 PROD Cust'!H78+'FR-16(7)(v)-7 TRANS Demand'!H78+'FR-16(7)(v)-8 TRANS Energy'!H78+'FR-16(7)(v)-9 TRANS Cust'!H78+'FR-16(7)(v)-11 DIST Demand'!H78+'FR-16(7)(v)-12 DIST Energy'!H78+'FR-16(7)(v)-13 DIST Cust'!H78-'FR-16(7)(v)-14 TOTAL CLASS'!H78","v":0},{"$f":"'FR-16(7)(v)-3 PROD Demand'!I78+'FR-16(7)(v)-4 PROD Energy'!I78+'FR-16(7)(v)-5 PROD Cust'!I78+'FR-16(7)(v)-7 TRANS Demand'!I78+'FR-16(7)(v)-8 TRANS Energy'!I78+'FR-16(7)(v)-9 TRANS Cust'!I78+'FR-16(7)(v)-11 DIST Demand'!I78+'FR-16(7)(v)-12 DIST Energy'!I78+'FR-16(7)(v)-13 DIST Cust'!I78-'FR-16(7)(v)-14 TOTAL CLASS'!I78","v":0},{"$f":"'FR-16(7)(v)-3 PROD Demand'!J78+'FR-16(7)(v)-4 PROD Energy'!J78+'FR-16(7)(v)-5 PROD Cust'!J78+'FR-16(7)(v)-7 TRANS Demand'!J78+'FR-16(7)(v)-8 TRANS Energy'!J78+'FR-16(7)(v)-9 TRANS Cust'!J78+'FR-16(7)(v)-11 DIST Demand'!J78+'FR-16(7)(v)-12 DIST Energy'!J78+'FR-16(7)(v)-13 DIST Cust'!J78-'FR-16(7)(v)-14 TOTAL CLASS'!J78","v":0},{"$f":"'FR-16(7)(v)-3 PROD Demand'!K78+'FR-16(7)(v)-4 PROD Energy'!K78+'FR-16(7)(v)-5 PROD Cust'!K78+'FR-16(7)(v)-7 TRANS Demand'!K78+'FR-16(7)(v)-8 TRANS Energy'!K78+'FR-16(7)(v)-9 TRANS Cust'!K78+'FR-16(7)(v)-11 DIST Demand'!K78+'FR-16(7)(v)-12 DIST Energy'!K78+'FR-16(7)(v)-13 DIST Cust'!K78-'FR-16(7)(v)-14 TOTAL CLASS'!K78","v":0},{"$f":"'FR-16(7)(v)-3 PROD Demand'!L78+'FR-16(7)(v)-4 PROD Energy'!L78+'FR-16(7)(v)-5 PROD Cust'!L78+'FR-16(7)(v)-7 TRANS Demand'!L78+'FR-16(7)(v)-8 TRANS Energy'!L78+'FR-16(7)(v)-9 TRANS Cust'!L78+'FR-16(7)(v)-11 DIST Demand'!L78+'FR-16(7)(v)-12 DIST Energy'!L78+'FR-16(7)(v)-13 DIST Cust'!L78-'FR-16(7)(v)-14 TOTAL CLASS'!L78","v":0},{"$f":"'FR-16(7)(v)-3 PROD Demand'!M78+'FR-16(7)(v)-4 PROD Energy'!M78+'FR-16(7)(v)-5 PROD Cust'!M78+'FR-16(7)(v)-7 TRANS Demand'!M78+'FR-16(7)(v)-8 TRANS Energy'!M78+'FR-16(7)(v)-9 TRANS Cust'!M78+'FR-16(7)(v)-11 DIST Demand'!M78+'FR-16(7)(v)-12 DIST Energy'!M78+'FR-16(7)(v)-13 DIST Cust'!M78-'FR-16(7)(v)-14 TOTAL CLASS'!M78","v":0},{"$f":"'FR-16(7)(v)-3 PROD Demand'!N78+'FR-16(7)(v)-4 PROD Energy'!N78+'FR-16(7)(v)-5 PROD Cust'!N78+'FR-16(7)(v)-7 TRANS Demand'!N78+'FR-16(7)(v)-8 TRANS Energy'!N78+'FR-16(7)(v)-9 TRANS Cust'!N78+'FR-16(7)(v)-11 DIST Demand'!N78+'FR-16(7)(v)-12 DIST Energy'!N78+'FR-16(7)(v)-13 DIST Cust'!N78-'FR-16(7)(v)-14 TOTAL CLASS'!N78","v":0},{"$f":"'FR-16(7)(v)-3 PROD Demand'!O78+'FR-16(7)(v)-4 PROD Energy'!O78+'FR-16(7)(v)-5 PROD Cust'!O78+'FR-16(7)(v)-7 TRANS Demand'!O78+'FR-16(7)(v)-8 TRANS Energy'!O78+'FR-16(7)(v)-9 TRANS Cust'!O78+'FR-16(7)(v)-11 DIST Demand'!O78+'FR-16(7)(v)-12 DIST Energy'!O78+'FR-16(7)(v)-13 DIST Cust'!O78-'FR-16(7)(v)-14 TOTAL CLASS'!O78","v":0},{"$f":"'FR-16(7)(v)-3 PROD Demand'!P78+'FR-16(7)(v)-4 PROD Energy'!P78+'FR-16(7)(v)-5 PROD Cust'!P78+'FR-16(7)(v)-7 TRANS Demand'!P78+'FR-16(7)(v)-8 TRANS Energy'!P78+'FR-16(7)(v)-9 TRANS Cust'!P78+'FR-16(7)(v)-11 DIST Demand'!P78+'FR-16(7)(v)-12 DIST Energy'!P78+'FR-16(7)(v)-13 DIST Cust'!P78-'FR-16(7)(v)-14 TOTAL CLASS'!P78","v":0},{"$f":"'FR-16(7)(v)-3 PROD Demand'!Q78+'FR-16(7)(v)-4 PROD Energy'!Q78+'FR-16(7)(v)-5 PROD Cust'!Q78+'FR-16(7)(v)-7 TRANS Demand'!Q78+'FR-16(7)(v)-8 TRANS Energy'!Q78+'FR-16(7)(v)-9 TRANS Cust'!Q78+'FR-16(7)(v)-11 DIST Demand'!Q78+'FR-16(7)(v)-12 DIST Energy'!Q78+'FR-16(7)(v)-13 DIST Cust'!Q78-'FR-16(7)(v)-14 TOTAL CLASS'!Q78","v":0},0,0]
[22,null,{"$f":"'FR-16(7)(v)-1 Functional'!C79","v":"CONDUCTORS - OVERHEAD / PRIMARY - CUSTOMER"},{"$f":"'FR-16(7)(v)-1 Functional'!D79","v":"K405"},null,{"$f":"'FR-16(7)(v)-3 PROD Demand'!F79+'FR-16(7)(v)-4 PROD Energy'!F79+'FR-16(7)(v)-5 PROD Cust'!F79+'FR-16(7)(v)-7 TRANS Demand'!F79+'FR-16(7)(v)-8 TRANS Energy'!F79+'FR-16(7)(v)-9 TRANS Cust'!F79+'FR-16(7)(v)-11 DIST Demand'!F79+'FR-16(7)(v)-12 DIST Energy'!F79+'FR-16(7)(v)-13 DIST Cust'!F79-'FR-16(7)(v)-14 TOTAL CLASS'!F79","v":0},{"$f":"'FR-16(7)(v)-3 PROD Demand'!G79+'FR-16(7)(v)-4 PROD Energy'!G79+'FR-16(7)(v)-5 PROD Cust'!G79+'FR-16(7)(v)-7 TRANS Demand'!G79+'FR-16(7)(v)-8 TRANS Energy'!G79+'FR-16(7)(v)-9 TRANS Cust'!G79+'FR-16(7)(v)-11 DIST Demand'!G79+'FR-16(7)(v)-12 DIST Energy'!G79+'FR-16(7)(v)-13 DIST Cust'!G79-'FR-16(7)(v)-14 TOTAL CLASS'!G79","v":0},{"$f":"'FR-16(7)(v)-3 PROD Demand'!H79+'FR-16(7)(v)-4 PROD Energy'!H79+'FR-16(7)(v)-5 PROD Cust'!H79+'FR-16(7)(v)-7 TRANS Demand'!H79+'FR-16(7)(v)-8 TRANS Energy'!H79+'FR-16(7)(v)-9 TRANS Cust'!H79+'FR-16(7)(v)-11 DIST Demand'!H79+'FR-16(7)(v)-12 DIST Energy'!H79+'FR-16(7)(v)-13 DIST Cust'!H79-'FR-16(7)(v)-14 TOTAL CLASS'!H79","v":0},{"$f":"'FR-16(7)(v)-3 PROD Demand'!I79+'FR-16(7)(v)-4 PROD Energy'!I79+'FR-16(7)(v)-5 PROD Cust'!I79+'FR-16(7)(v)-7 TRANS Demand'!I79+'FR-16(7)(v)-8 TRANS Energy'!I79+'FR-16(7)(v)-9 TRANS Cust'!I79+'FR-16(7)(v)-11 DIST Demand'!I79+'FR-16(7)(v)-12 DIST Energy'!I79+'FR-16(7)(v)-13 DIST Cust'!I79-'FR-16(7)(v)-14 TOTAL CLASS'!I79","v":0},{"$f":"'FR-16(7)(v)-3 PROD Demand'!J79+'FR-16(7)(v)-4 PROD Energy'!J79+'FR-16(7)(v)-5 PROD Cust'!J79+'FR-16(7)(v)-7 TRANS Demand'!J79+'FR-16(7)(v)-8 TRANS Energy'!J79+'FR-16(7)(v)-9 TRANS Cust'!J79+'FR-16(7)(v)-11 DIST Demand'!J79+'FR-16(7)(v)-12 DIST Energy'!J79+'FR-16(7)(v)-13 DIST Cust'!J79-'FR-16(7)(v)-14 TOTAL CLASS'!J79","v":0},{"$f":"'FR-16(7)(v)-3 PROD Demand'!K79+'FR-16(7)(v)-4 PROD Energy'!K79+'FR-16(7)(v)-5 PROD Cust'!K79+'FR-16(7)(v)-7 TRANS Demand'!K79+'FR-16(7)(v)-8 TRANS Energy'!K79+'FR-16(7)(v)-9 TRANS Cust'!K79+'FR-16(7)(v)-11 DIST Demand'!K79+'FR-16(7)(v)-12 DIST Energy'!K79+'FR-16(7)(v)-13 DIST Cust'!K79-'FR-16(7)(v)-14 TOTAL CLASS'!K79","v":0},{"$f":"'FR-16(7)(v)-3 PROD Demand'!L79+'FR-16(7)(v)-4 PROD Energy'!L79+'FR-16(7)(v)-5 PROD Cust'!L79+'FR-16(7)(v)-7 TRANS Demand'!L79+'FR-16(7)(v)-8 TRANS Energy'!L79+'FR-16(7)(v)-9 TRANS Cust'!L79+'FR-16(7)(v)-11 DIST Demand'!L79+'FR-16(7)(v)-12 DIST Energy'!L79+'FR-16(7)(v)-13 DIST Cust'!L79-'FR-16(7)(v)-14 TOTAL CLASS'!L79","v":0},{"$f":"'FR-16(7)(v)-3 PROD Demand'!M79+'FR-16(7)(v)-4 PROD Energy'!M79+'FR-16(7)(v)-5 PROD Cust'!M79+'FR-16(7)(v)-7 TRANS Demand'!M79+'FR-16(7)(v)-8 TRANS Energy'!M79+'FR-16(7)(v)-9 TRANS Cust'!M79+'FR-16(7)(v)-11 DIST Demand'!M79+'FR-16(7)(v)-12 DIST Energy'!M79+'FR-16(7)(v)-13 DIST Cust'!M79-'FR-16(7)(v)-14 TOTAL CLASS'!M79","v":0},{"$f":"'FR-16(7)(v)-3 PROD Demand'!N79+'FR-16(7)(v)-4 PROD Energy'!N79+'FR-16(7)(v)-5 PROD Cust'!N79+'FR-16(7)(v)-7 TRANS Demand'!N79+'FR-16(7)(v)-8 TRANS Energy'!N79+'FR-16(7)(v)-9 TRANS Cust'!N79+'FR-16(7)(v)-11 DIST Demand'!N79+'FR-16(7)(v)-12 DIST Energy'!N79+'FR-16(7)(v)-13 DIST Cust'!N79-'FR-16(7)(v)-14 TOTAL CLASS'!N79","v":0},{"$f":"'FR-16(7)(v)-3 PROD Demand'!O79+'FR-16(7)(v)-4 PROD Energy'!O79+'FR-16(7)(v)-5 PROD Cust'!O79+'FR-16(7)(v)-7 TRANS Demand'!O79+'FR-16(7)(v)-8 TRANS Energy'!O79+'FR-16(7)(v)-9 TRANS Cust'!O79+'FR-16(7)(v)-11 DIST Demand'!O79+'FR-16(7)(v)-12 DIST Energy'!O79+'FR-16(7)(v)-13 DIST Cust'!O79-'FR-16(7)(v)-14 TOTAL CLASS'!O79","v":0},{"$f":"'FR-16(7)(v)-3 PROD Demand'!P79+'FR-16(7)(v)-4 PROD Energy'!P79+'FR-16(7)(v)-5 PROD Cust'!P79+'FR-16(7)(v)-7 TRANS Demand'!P79+'FR-16(7)(v)-8 TRANS Energy'!P79+'FR-16(7)(v)-9 TRANS Cust'!P79+'FR-16(7)(v)-11 DIST Demand'!P79+'FR-16(7)(v)-12 DIST Energy'!P79+'FR-16(7)(v)-13 DIST Cust'!P79-'FR-16(7)(v)-14 TOTAL CLASS'!P79","v":0},{"$f":"'FR-16(7)(v)-3 PROD Demand'!Q79+'FR-16(7)(v)-4 PROD Energy'!Q79+'FR-16(7)(v)-5 PROD Cust'!Q79+'FR-16(7)(v)-7 TRANS Demand'!Q79+'FR-16(7)(v)-8 TRANS Energy'!Q79+'FR-16(7)(v)-9 TRANS Cust'!Q79+'FR-16(7)(v)-11 DIST Demand'!Q79+'FR-16(7)(v)-12 DIST Energy'!Q79+'FR-16(7)(v)-13 DIST Cust'!Q79-'FR-16(7)(v)-14 TOTAL CLASS'!Q79","v":0},0,0]
[23,null,{"$f":"'FR-16(7)(v)-1 Functional'!C80","v":"CONDUCTORS - OVERHEAD / SECONDARY - DEMAND"},{"$f":"'FR-16(7)(v)-1 Functional'!D80","v":"K206"},null,{"$f":"'FR-16(7)(v)-3 PROD Demand'!F80+'FR-16(7)(v)-4 PROD Energy'!F80+'FR-16(7)(v)-5 PROD Cust'!F80+'FR-16(7)(v)-7 TRANS Demand'!F80+'FR-16(7)(v)-8 TRANS Energy'!F80+'FR-16(7)(v)-9 TRANS Cust'!F80+'FR-16(7)(v)-11 DIST Demand'!F80+'FR-16(7)(v)-12 DIST Energy'!F80+'FR-16(7)(v)-13 DIST Cust'!F80-'FR-16(7)(v)-14 TOTAL CLASS'!F80","v":0},{"$f":"'FR-16(7)(v)-3 PROD Demand'!G80+'FR-16(7)(v)-4 PROD Energy'!G80+'FR-16(7)(v)-5 PROD Cust'!G80+'FR-16(7)(v)-7 TRANS Demand'!G80+'FR-16(7)(v)-8 TRANS Energy'!G80+'FR-16(7)(v)-9 TRANS Cust'!G80+'FR-16(7)(v)-11 DIST Demand'!G80+'FR-16(7)(v)-12 DIST Energy'!G80+'FR-16(7)(v)-13 DIST Cust'!G80-'FR-16(7)(v)-14 TOTAL CLASS'!G80","v":0},{"$f":"'FR-16(7)(v)-3 PROD Demand'!H80+'FR-16(7)(v)-4 PROD Energy'!H80+'FR-16(7)(v)-5 PROD Cust'!H80+'FR-16(7)(v)-7 TRANS Demand'!H80+'FR-16(7)(v)-8 TRANS Energy'!H80+'FR-16(7)(v)-9 TRANS Cust'!H80+'FR-16(7)(v)-11 DIST Demand'!H80+'FR-16(7)(v)-12 DIST Energy'!H80+'FR-16(7)(v)-13 DIST Cust'!H80-'FR-16(7)(v)-14 TOTAL CLASS'!H80","v":0},{"$f":"'FR-16(7)(v)-3 PROD Demand'!I80+'FR-16(7)(v)-4 PROD Energy'!I80+'FR-16(7)(v)-5 PROD Cust'!I80+'FR-16(7)(v)-7 TRANS Demand'!I80+'FR-16(7)(v)-8 TRANS Energy'!I80+'FR-16(7)(v)-9 TRANS Cust'!I80+'FR-16(7)(v)-11 DIST Demand'!I80+'FR-16(7)(v)-12 DIST Energy'!I80+'FR-16(7)(v)-13 DIST Cust'!I80-'FR-16(7)(v)-14 TOTAL CLASS'!I80","v":0},{"$f":"'FR-16(7)(v)-3 PROD Demand'!J80+'FR-16(7)(v)-4 PROD Energy'!J80+'FR-16(7)(v)-5 PROD Cust'!J80+'FR-16(7)(v)-7 TRANS Demand'!J80+'FR-16(7)(v)-8 TRANS Energy'!J80+'FR-16(7)(v)-9 TRANS Cust'!J80+'FR-16(7)(v)-11 DIST Demand'!J80+'FR-16(7)(v)-12 DIST Energy'!J80+'FR-16(7)(v)-13 DIST Cust'!J80-'FR-16(7)(v)-14 TOTAL CLASS'!J80","v":0},{"$f":"'FR-16(7)(v)-3 PROD Demand'!K80+'FR-16(7)(v)-4 PROD Energy'!K80+'FR-16(7)(v)-5 PROD Cust'!K80+'FR-16(7)(v)-7 TRANS Demand'!K80+'FR-16(7)(v)-8 TRANS Energy'!K80+'FR-16(7)(v)-9 TRANS Cust'!K80+'FR-16(7)(v)-11 DIST Demand'!K80+'FR-16(7)(v)-12 DIST Energy'!K80+'FR-16(7)(v)-13 DIST Cust'!K80-'FR-16(7)(v)-14 TOTAL CLASS'!K80","v":0},{"$f":"'FR-16(7)(v)-3 PROD Demand'!L80+'FR-16(7)(v)-4 PROD Energy'!L80+'FR-16(7)(v)-5 PROD Cust'!L80+'FR-16(7)(v)-7 TRANS Demand'!L80+'FR-16(7)(v)-8 TRANS Energy'!L80+'FR-16(7)(v)-9 TRANS Cust'!L80+'FR-16(7)(v)-11 DIST Demand'!L80+'FR-16(7)(v)-12 DIST Energy'!L80+'FR-16(7)(v)-13 DIST Cust'!L80-'FR-16(7)(v)-14 TOTAL CLASS'!L80","v":0},{"$f":"'FR-16(7)(v)-3 PROD Demand'!M80+'FR-16(7)(v)-4 PROD Energy'!M80+'FR-16(7)(v)-5 PROD Cust'!M80+'FR-16(7)(v)-7 TRANS Demand'!M80+'FR-16(7)(v)-8 TRANS Energy'!M80+'FR-16(7)(v)-9 TRANS Cust'!M80+'FR-16(7)(v)-11 DIST Demand'!M80+'FR-16(7)(v)-12 DIST Energy'!M80+'FR-16(7)(v)-13 DIST Cust'!M80-'FR-16(7)(v)-14 TOTAL CLASS'!M80","v":0},{"$f":"'FR-16(7)(v)-3 PROD Demand'!N80+'FR-16(7)(v)-4 PROD Energy'!N80+'FR-16(7)(v)-5 PROD Cust'!N80+'FR-16(7)(v)-7 TRANS Demand'!N80+'FR-16(7)(v)-8 TRANS Energy'!N80+'FR-16(7)(v)-9 TRANS Cust'!N80+'FR-16(7)(v)-11 DIST Demand'!N80+'FR-16(7)(v)-12 DIST Energy'!N80+'FR-16(7)(v)-13 DIST Cust'!N80-'FR-16(7)(v)-14 TOTAL CLASS'!N80","v":0},{"$f":"'FR-16(7)(v)-3 PROD Demand'!O80+'FR-16(7)(v)-4 PROD Energy'!O80+'FR-16(7)(v)-5 PROD Cust'!O80+'FR-16(7)(v)-7 TRANS Demand'!O80+'FR-16(7)(v)-8 TRANS Energy'!O80+'FR-16(7)(v)-9 TRANS Cust'!O80+'FR-16(7)(v)-11 DIST Demand'!O80+'FR-16(7)(v)-12 DIST Energy'!O80+'FR-16(7)(v)-13 DIST Cust'!O80-'FR-16(7)(v)-14 TOTAL CLASS'!O80","v":0},{"$f":"'FR-16(7)(v)-3 PROD Demand'!P80+'FR-16(7)(v)-4 PROD Energy'!P80+'FR-16(7)(v)-5 PROD Cust'!P80+'FR-16(7)(v)-7 TRANS Demand'!P80+'FR-16(7)(v)-8 TRANS Energy'!P80+'FR-16(7)(v)-9 TRANS Cust'!P80+'FR-16(7)(v)-11 DIST Demand'!P80+'FR-16(7)(v)-12 DIST Energy'!P80+'FR-16(7)(v)-13 DIST Cust'!P80-'FR-16(7)(v)-14 TOTAL CLASS'!P80","v":0},{"$f":"'FR-16(7)(v)-3 PROD Demand'!Q80+'FR-16(7)(v)-4 PROD Energy'!Q80+'FR-16(7)(v)-5 PROD Cust'!Q80+'FR-16(7)(v)-7 TRANS Demand'!Q80+'FR-16(7)(v)-8 TRANS Energy'!Q80+'FR-16(7)(v)-9 TRANS Cust'!Q80+'FR-16(7)(v)-11 DIST Demand'!Q80+'FR-16(7)(v)-12 DIST Energy'!Q80+'FR-16(7)(v)-13 DIST Cust'!Q80-'FR-16(7)(v)-14 TOTAL CLASS'!Q80","v":0},0,0]
[24,null,{"$f":"'FR-16(7)(v)-1 Functional'!C81","v":"CONDUCTORS - OVERHEAD / SECONDARY - CUSTOMER"},{"$f":"'FR-16(7)(v)-1 Functional'!D81","v":"K405"},null,{"$f":"'FR-16(7)(v)-3 PROD Demand'!F81+'FR-16(7)(v)-4 PROD Energy'!F81+'FR-16(7)(v)-5 PROD Cust'!F81+'FR-16(7)(v)-7 TRANS Demand'!F81+'FR-16(7)(v)-8 TRANS Energy'!F81+'FR-16(7)(v)-9 TRANS Cust'!F81+'FR-16(7)(v)-11 DIST Demand'!F81+'FR-16(7)(v)-12 DIST Energy'!F81+'FR-16(7)(v)-13 DIST Cust'!F81-'FR-16(7)(v)-14 TOTAL CLASS'!F81","v":0},{"$f":"'FR-16(7)(v)-3 PROD Demand'!G81+'FR-16(7)(v)-4 PROD Energy'!G81+'FR-16(7)(v)-5 PROD Cust'!G81+'FR-16(7)(v)-7 TRANS Demand'!G81+'FR-16(7)(v)-8 TRANS Energy'!G81+'FR-16(7)(v)-9 TRANS Cust'!G81+'FR-16(7)(v)-11 DIST Demand'!G81+'FR-16(7)(v)-12 DIST Energy'!G81+'FR-16(7)(v)-13 DIST Cust'!G81-'FR-16(7)(v)-14 TOTAL CLASS'!G81","v":0},{"$f":"'FR-16(7)(v)-3 PROD Demand'!H81+'FR-16(7)(v)-4 PROD Energy'!H81+'FR-16(7)(v)-5 PROD Cust'!H81+'FR-16(7)(v)-7 TRANS Demand'!H81+'FR-16(7)(v)-8 TRANS Energy'!H81+'FR-16(7)(v)-9 TRANS Cust'!H81+'FR-16(7)(v)-11 DIST Demand'!H81+'FR-16(7)(v)-12 DIST Energy'!H81+'FR-16(7)(v)-13 DIST Cust'!H81-'FR-16(7)(v)-14 TOTAL CLASS'!H81","v":0},{"$f":"'FR-16(7)(v)-3 PROD Demand'!I81+'FR-16(7)(v)-4 PROD Energy'!I81+'FR-16(7)(v)-5 PROD Cust'!I81+'FR-16(7)(v)-7 TRANS Demand'!I81+'FR-16(7)(v)-8 TRANS Energy'!I81+'FR-16(7)(v)-9 TRANS Cust'!I81+'FR-16(7)(v)-11 DIST Demand'!I81+'FR-16(7)(v)-12 DIST Energy'!I81+'FR-16(7)(v)-13 DIST Cust'!I81-'FR-16(7)(v)-14 TOTAL CLASS'!I81","v":0},{"$f":"'FR-16(7)(v)-3 PROD Demand'!J81+'FR-16(7)(v)-4 PROD Energy'!J81+'FR-16(7)(v)-5 PROD Cust'!J81+'FR-16(7)(v)-7 TRANS Demand'!J81+'FR-16(7)(v)-8 TRANS Energy'!J81+'FR-16(7)(v)-9 TRANS Cust'!J81+'FR-16(7)(v)-11 DIST Demand'!J81+'FR-16(7)(v)-12 DIST Energy'!J81+'FR-16(7)(v)-13 DIST Cust'!J81-'FR-16(7)(v)-14 TOTAL CLASS'!J81","v":0},{"$f":"'FR-16(7)(v)-3 PROD Demand'!K81+'FR-16(7)(v)-4 PROD Energy'!K81+'FR-16(7)(v)-5 PROD Cust'!K81+'FR-16(7)(v)-7 TRANS Demand'!K81+'FR-16(7)(v)-8 TRANS Energy'!K81+'FR-16(7)(v)-9 TRANS Cust'!K81+'FR-16(7)(v)-11 DIST Demand'!K81+'FR-16(7)(v)-12 DIST Energy'!K81+'FR-16(7)(v)-13 DIST Cust'!K81-'FR-16(7)(v)-14 TOTAL CLASS'!K81","v":0},{"$f":"'FR-16(7)(v)-3 PROD Demand'!L81+'FR-16(7)(v)-4 PROD Energy'!L81+'FR-16(7)(v)-5 PROD Cust'!L81+'FR-16(7)(v)-7 TRANS Demand'!L81+'FR-16(7)(v)-8 TRANS Energy'!L81+'FR-16(7)(v)-9 TRANS Cust'!L81+'FR-16(7)(v)-11 DIST Demand'!L81+'FR-16(7)(v)-12 DIST Energy'!L81+'FR-16(7)(v)-13 DIST Cust'!L81-'FR-16(7)(v)-14 TOTAL CLASS'!L81","v":0},{"$f":"'FR-16(7)(v)-3 PROD Demand'!M81+'FR-16(7)(v)-4 PROD Energy'!M81+'FR-16(7)(v)-5 PROD Cust'!M81+'FR-16(7)(v)-7 TRANS Demand'!M81+'FR-16(7)(v)-8 TRANS Energy'!M81+'FR-16(7)(v)-9 TRANS Cust'!M81+'FR-16(7)(v)-11 DIST Demand'!M81+'FR-16(7)(v)-12 DIST Energy'!M81+'FR-16(7)(v)-13 DIST Cust'!M81-'FR-16(7)(v)-14 TOTAL CLASS'!M81","v":0},{"$f":"'FR-16(7)(v)-3 PROD Demand'!N81+'FR-16(7)(v)-4 PROD Energy'!N81+'FR-16(7)(v)-5 PROD Cust'!N81+'FR-16(7)(v)-7 TRANS Demand'!N81+'FR-16(7)(v)-8 TRANS Energy'!N81+'FR-16(7)(v)-9 TRANS Cust'!N81+'FR-16(7)(v)-11 DIST Demand'!N81+'FR-16(7)(v)-12 DIST Energy'!N81+'FR-16(7)(v)-13 DIST Cust'!N81-'FR-16(7)(v)-14 TOTAL CLASS'!N81","v":0},{"$f":"'FR-16(7)(v)-3 PROD Demand'!O81+'FR-16(7)(v)-4 PROD Energy'!O81+'FR-16(7)(v)-5 PROD Cust'!O81+'FR-16(7)(v)-7 TRANS Demand'!O81+'FR-16(7)(v)-8 TRANS Energy'!O81+'FR-16(7)(v)-9 TRANS Cust'!O81+'FR-16(7)(v)-11 DIST Demand'!O81+'FR-16(7)(v)-12 DIST Energy'!O81+'FR-16(7)(v)-13 DIST Cust'!O81-'FR-16(7)(v)-14 TOTAL CLASS'!O81","v":0},{"$f":"'FR-16(7)(v)-3 PROD Demand'!P81+'FR-16(7)(v)-4 PROD Energy'!P81+'FR-16(7)(v)-5 PROD Cust'!P81+'FR-16(7)(v)-7 TRANS Demand'!P81+'FR-16(7)(v)-8 TRANS Energy'!P81+'FR-16(7)(v)-9 TRANS Cust'!P81+'FR-16(7)(v)-11 DIST Demand'!P81+'FR-16(7)(v)-12 DIST Energy'!P81+'FR-16(7)(v)-13 DIST Cust'!P81-'FR-16(7)(v)-14 TOTAL CLASS'!P81","v":0},{"$f":"'FR-16(7)(v)-3 PROD Demand'!Q81+'FR-16(7)(v)-4 PROD Energy'!Q81+'FR-16(7)(v)-5 PROD Cust'!Q81+'FR-16(7)(v)-7 TRANS Demand'!Q81+'FR-16(7)(v)-8 TRANS Energy'!Q81+'FR-16(7)(v)-9 TRANS Cust'!Q81+'FR-16(7)(v)-11 DIST Demand'!Q81+'FR-16(7)(v)-12 DIST Energy'!Q81+'FR-16(7)(v)-13 DIST Cust'!Q81-'FR-16(7)(v)-14 TOTAL CLASS'!Q81","v":0},0,0]
[25,null,{"$f":"'FR-16(7)(v)-1 Functional'!C82","v":"CONDUCTORS - UNDERGROUND / PRIMARY - DEMAND"},{"$f":"'FR-16(7)(v)-1 Functional'!D82","v":"K205"},null,{"$f":"'FR-16(7)(v)-3 PROD Demand'!F82+'FR-16(7)(v)-4 PROD Energy'!F82+'FR-16(7)(v)-5 PROD Cust'!F82+'FR-16(7)(v)-7 TRANS Demand'!F82+'FR-16(7)(v)-8 TRANS Energy'!F82+'FR-16(7)(v)-9 TRANS Cust'!F82+'FR-16(7)(v)-11 DIST Demand'!F82+'FR-16(7)(v)-12 DIST Energy'!F82+'FR-16(7)(v)-13 DIST Cust'!F82-'FR-16(7)(v)-14 TOTAL CLASS'!F82","v":0},{"$f":"'FR-16(7)(v)-3 PROD Demand'!G82+'FR-16(7)(v)-4 PROD Energy'!G82+'FR-16(7)(v)-5 PROD Cust'!G82+'FR-16(7)(v)-7 TRANS Demand'!G82+'FR-16(7)(v)-8 TRANS Energy'!G82+'FR-16(7)(v)-9 TRANS Cust'!G82+'FR-16(7)(v)-11 DIST Demand'!G82+'FR-16(7)(v)-12 DIST Energy'!G82+'FR-16(7)(v)-13 DIST Cust'!G82-'FR-16(7)(v)-14 TOTAL CLASS'!G82","v":0},{"$f":"'FR-16(7)(v)-3 PROD Demand'!H82+'FR-16(7)(v)-4 PROD Energy'!H82+'FR-16(7)(v)-5 PROD Cust'!H82+'FR-16(7)(v)-7 TRANS Demand'!H82+'FR-16(7)(v)-8 TRANS Energy'!H82+'FR-16(7)(v)-9 TRANS Cust'!H82+'FR-16(7)(v)-11 DIST Demand'!H82+'FR-16(7)(v)-12 DIST Energy'!H82+'FR-16(7)(v)-13 DIST Cust'!H82-'FR-16(7)(v)-14 TOTAL CLASS'!H82","v":0},{"$f":"'FR-16(7)(v)-3 PROD Demand'!I82+'FR-16(7)(v)-4 PROD Energy'!I82+'FR-16(7)(v)-5 PROD Cust'!I82+'FR-16(7)(v)-7 TRANS Demand'!I82+'FR-16(7)(v)-8 TRANS Energy'!I82+'FR-16(7)(v)-9 TRANS Cust'!I82+'FR-16(7)(v)-11 DIST Demand'!I82+'FR-16(7)(v)-12 DIST Energy'!I82+'FR-16(7)(v)-13 DIST Cust'!I82-'FR-16(7)(v)-14 TOTAL CLASS'!I82","v":0},{"$f":"'FR-16(7)(v)-3 PROD Demand'!J82+'FR-16(7)(v)-4 PROD Energy'!J82+'FR-16(7)(v)-5 PROD Cust'!J82+'FR-16(7)(v)-7 TRANS Demand'!J82+'FR-16(7)(v)-8 TRANS Energy'!J82+'FR-16(7)(v)-9 TRANS Cust'!J82+'FR-16(7)(v)-11 DIST Demand'!J82+'FR-16(7)(v)-12 DIST Energy'!J82+'FR-16(7)(v)-13 DIST Cust'!J82-'FR-16(7)(v)-14 TOTAL CLASS'!J82","v":0},{"$f":"'FR-16(7)(v)-3 PROD Demand'!K82+'FR-16(7)(v)-4 PROD Energy'!K82+'FR-16(7)(v)-5 PROD Cust'!K82+'FR-16(7)(v)-7 TRANS Demand'!K82+'FR-16(7)(v)-8 TRANS Energy'!K82+'FR-16(7)(v)-9 TRANS Cust'!K82+'FR-16(7)(v)-11 DIST Demand'!K82+'FR-16(7)(v)-12 DIST Energy'!K82+'FR-16(7)(v)-13 DIST Cust'!K82-'FR-16(7)(v)-14 TOTAL CLASS'!K82","v":0},{"$f":"'FR-16(7)(v)-3 PROD Demand'!L82+'FR-16(7)(v)-4 PROD Energy'!L82+'FR-16(7)(v)-5 PROD Cust'!L82+'FR-16(7)(v)-7 TRANS Demand'!L82+'FR-16(7)(v)-8 TRANS Energy'!L82+'FR-16(7)(v)-9 TRANS Cust'!L82+'FR-16(7)(v)-11 DIST Demand'!L82+'FR-16(7)(v)-12 DIST Energy'!L82+'FR-16(7)(v)-13 DIST Cust'!L82-'FR-16(7)(v)-14 TOTAL CLASS'!L82","v":0},{"$f":"'FR-16(7)(v)-3 PROD Demand'!M82+'FR-16(7)(v)-4 PROD Energy'!M82+'FR-16(7)(v)-5 PROD Cust'!M82+'FR-16(7)(v)-7 TRANS Demand'!M82+'FR-16(7)(v)-8 TRANS Energy'!M82+'FR-16(7)(v)-9 TRANS Cust'!M82+'FR-16(7)(v)-11 DIST Demand'!M82+'FR-16(7)(v)-12 DIST Energy'!M82+'FR-16(7)(v)-13 DIST Cust'!M82-'FR-16(7)(v)-14 TOTAL CLASS'!M82","v":0},{"$f":"'FR-16(7)(v)-3 PROD Demand'!N82+'FR-16(7)(v)-4 PROD Energy'!N82+'FR-16(7)(v)-5 PROD Cust'!N82+'FR-16(7)(v)-7 TRANS Demand'!N82+'FR-16(7)(v)-8 TRANS Energy'!N82+'FR-16(7)(v)-9 TRANS Cust'!N82+'FR-16(7)(v)-11 DIST Demand'!N82+'FR-16(7)(v)-12 DIST Energy'!N82+'FR-16(7)(v)-13 DIST Cust'!N82-'FR-16(7)(v)-14 TOTAL CLASS'!N82","v":0},{"$f":"'FR-16(7)(v)-3 PROD Demand'!O82+'FR-16(7)(v)-4 PROD Energy'!O82+'FR-16(7)(v)-5 PROD Cust'!O82+'FR-16(7)(v)-7 TRANS Demand'!O82+'FR-16(7)(v)-8 TRANS Energy'!O82+'FR-16(7)(v)-9 TRANS Cust'!O82+'FR-16(7)(v)-11 DIST Demand'!O82+'FR-16(7)(v)-12 DIST Energy'!O82+'FR-16(7)(v)-13 DIST Cust'!O82-'FR-16(7)(v)-14 TOTAL CLASS'!O82","v":0},{"$f":"'FR-16(7)(v)-3 PROD Demand'!P82+'FR-16(7)(v)-4 PROD Energy'!P82+'FR-16(7)(v)-5 PROD Cust'!P82+'FR-16(7)(v)-7 TRANS Demand'!P82+'FR-16(7)(v)-8 TRANS Energy'!P82+'FR-16(7)(v)-9 TRANS Cust'!P82+'FR-16(7)(v)-11 DIST Demand'!P82+'FR-16(7)(v)-12 DIST Energy'!P82+'FR-16(7)(v)-13 DIST Cust'!P82-'FR-16(7)(v)-14 TOTAL CLASS'!P82","v":0},{"$f":"'FR-16(7)(v)-3 PROD Demand'!Q82+'FR-16(7)(v)-4 PROD Energy'!Q82+'FR-16(7)(v)-5 PROD Cust'!Q82+'FR-16(7)(v)-7 TRANS Demand'!Q82+'FR-16(7)(v)-8 TRANS Energy'!Q82+'FR-16(7)(v)-9 TRANS Cust'!Q82+'FR-16(7)(v)-11 DIST Demand'!Q82+'FR-16(7)(v)-12 DIST Energy'!Q82+'FR-16(7)(v)-13 DIST Cust'!Q82-'FR-16(7)(v)-14 TOTAL CLASS'!Q82","v":0},0,0]
[26,null,{"$f":"'FR-16(7)(v)-1 Functional'!C83","v":"CONDUCTORS - UNDERGROUND / PRIMARY - CUSTOMER"},{"$f":"'FR-16(7)(v)-1 Functional'!D83","v":"K405"},null,{"$f":"'FR-16(7)(v)-3 PROD Demand'!F83+'FR-16(7)(v)-4 PROD Energy'!F83+'FR-16(7)(v)-5 PROD Cust'!F83+'FR-16(7)(v)-7 TRANS Demand'!F83+'FR-16(7)(v)-8 TRANS Energy'!F83+'FR-16(7)(v)-9 TRANS Cust'!F83+'FR-16(7)(v)-11 DIST Demand'!F83+'FR-16(7)(v)-12 DIST Energy'!F83+'FR-16(7)(v)-13 DIST Cust'!F83-'FR-16(7)(v)-14 TOTAL CLASS'!F83","v":0},{"$f":"'FR-16(7)(v)-3 PROD Demand'!G83+'FR-16(7)(v)-4 PROD Energy'!G83+'FR-16(7)(v)-5 PROD Cust'!G83+'FR-16(7)(v)-7 TRANS Demand'!G83+'FR-16(7)(v)-8 TRANS Energy'!G83+'FR-16(7)(v)-9 TRANS Cust'!G83+'FR-16(7)(v)-11 DIST Demand'!G83+'FR-16(7)(v)-12 DIST Energy'!G83+'FR-16(7)(v)-13 DIST Cust'!G83-'FR-16(7)(v)-14 TOTAL CLASS'!G83","v":0},{"$f":"'FR-16(7)(v)-3 PROD Demand'!H83+'FR-16(7)(v)-4 PROD Energy'!H83+'FR-16(7)(v)-5 PROD Cust'!H83+'FR-16(7)(v)-7 TRANS Demand'!H83+'FR-16(7)(v)-8 TRANS Energy'!H83+'FR-16(7)(v)-9 TRANS Cust'!H83+'FR-16(7)(v)-11 DIST Demand'!H83+'FR-16(7)(v)-12 DIST Energy'!H83+'FR-16(7)(v)-13 DIST Cust'!H83-'FR-16(7)(v)-14 TOTAL CLASS'!H83","v":0},{"$f":"'FR-16(7)(v)-3 PROD Demand'!I83+'FR-16(7)(v)-4 PROD Energy'!I83+'FR-16(7)(v)-5 PROD Cust'!I83+'FR-16(7)(v)-7 TRANS Demand'!I83+'FR-16(7)(v)-8 TRANS Energy'!I83+'FR-16(7)(v)-9 TRANS Cust'!I83+'FR-16(7)(v)-11 DIST Demand'!I83+'FR-16(7)(v)-12 DIST Energy'!I83+'FR-16(7)(v)-13 DIST Cust'!I83-'FR-16(7)(v)-14 TOTAL CLASS'!I83","v":0},{"$f":"'FR-16(7)(v)-3 PROD Demand'!J83+'FR-16(7)(v)-4 PROD Energy'!J83+'FR-16(7)(v)-5 PROD Cust'!J83+'FR-16(7)(v)-7 TRANS Demand'!J83+'FR-16(7)(v)-8 TRANS Energy'!J83+'FR-16(7)(v)-9 TRANS Cust'!J83+'FR-16(7)(v)-11 DIST Demand'!J83+'FR-16(7)(v)-12 DIST Energy'!J83+'FR-16(7)(v)-13 DIST Cust'!J83-'FR-16(7)(v)-14 TOTAL CLASS'!J83","v":0},{"$f":"'FR-16(7)(v)-3 PROD Demand'!K83+'FR-16(7)(v)-4 PROD Energy'!K83+'FR-16(7)(v)-5 PROD Cust'!K83+'FR-16(7)(v)-7 TRANS Demand'!K83+'FR-16(7)(v)-8 TRANS Energy'!K83+'FR-16(7)(v)-9 TRANS Cust'!K83+'FR-16(7)(v)-11 DIST Demand'!K83+'FR-16(7)(v)-12 DIST Energy'!K83+'FR-16(7)(v)-13 DIST Cust'!K83-'FR-16(7)(v)-14 TOTAL CLASS'!K83","v":0},{"$f":"'FR-16(7)(v)-3 PROD Demand'!L83+'FR-16(7)(v)-4 PROD Energy'!L83+'FR-16(7)(v)-5 PROD Cust'!L83+'FR-16(7)(v)-7 TRANS Demand'!L83+'FR-16(7)(v)-8 TRANS Energy'!L83+'FR-16(7)(v)-9 TRANS Cust'!L83+'FR-16(7)(v)-11 DIST Demand'!L83+'FR-16(7)(v)-12 DIST Energy'!L83+'FR-16(7)(v)-13 DIST Cust'!L83-'FR-16(7)(v)-14 TOTAL CLASS'!L83","v":0},{"$f":"'FR-16(7)(v)-3 PROD Demand'!M83+'FR-16(7)(v)-4 PROD Energy'!M83+'FR-16(7)(v)-5 PROD Cust'!M83+'FR-16(7)(v)-7 TRANS Demand'!M83+'FR-16(7)(v)-8 TRANS Energy'!M83+'FR-16(7)(v)-9 TRANS Cust'!M83+'FR-16(7)(v)-11 DIST Demand'!M83+'FR-16(7)(v)-12 DIST Energy'!M83+'FR-16(7)(v)-13 DIST Cust'!M83-'FR-16(7)(v)-14 TOTAL CLASS'!M83","v":0},{"$f":"'FR-16(7)(v)-3 PROD Demand'!N83+'FR-16(7)(v)-4 PROD Energy'!N83+'FR-16(7)(v)-5 PROD Cust'!N83+'FR-16(7)(v)-7 TRANS Demand'!N83+'FR-16(7)(v)-8 TRANS Energy'!N83+'FR-16(7)(v)-9 TRANS Cust'!N83+'FR-16(7)(v)-11 DIST Demand'!N83+'FR-16(7)(v)-12 DIST Energy'!N83+'FR-16(7)(v)-13 DIST Cust'!N83-'FR-16(7)(v)-14 TOTAL CLASS'!N83","v":0},{"$f":"'FR-16(7)(v)-3 PROD Demand'!O83+'FR-16(7)(v)-4 PROD Energy'!O83+'FR-16(7)(v)-5 PROD Cust'!O83+'FR-16(7)(v)-7 TRANS Demand'!O83+'FR-16(7)(v)-8 TRANS Energy'!O83+'FR-16(7)(v)-9 TRANS Cust'!O83+'FR-16(7)(v)-11 DIST Demand'!O83+'FR-16(7)(v)-12 DIST Energy'!O83+'FR-16(7)(v)-13 DIST Cust'!O83-'FR-16(7)(v)-14 TOTAL CLASS'!O83","v":0},{"$f":"'FR-16(7)(v)-3 PROD Demand'!P83+'FR-16(7)(v)-4 PROD Energy'!P83+'FR-16(7)(v)-5 PROD Cust'!P83+'FR-16(7)(v)-7 TRANS Demand'!P83+'FR-16(7)(v)-8 TRANS Energy'!P83+'FR-16(7)(v)-9 TRANS Cust'!P83+'FR-16(7)(v)-11 DIST Demand'!P83+'FR-16(7)(v)-12 DIST Energy'!P83+'FR-16(7)(v)-13 DIST Cust'!P83-'FR-16(7)(v)-14 TOTAL CLASS'!P83","v":0},{"$f":"'FR-16(7)(v)-3 PROD Demand'!Q83+'FR-16(7)(v)-4 PROD Energy'!Q83+'FR-16(7)(v)-5 PROD Cust'!Q83+'FR-16(7)(v)-7 TRANS Demand'!Q83+'FR-16(7)(v)-8 TRANS Energy'!Q83+'FR-16(7)(v)-9 TRANS Cust'!Q83+'FR-16(7)(v)-11 DIST Demand'!Q83+'FR-16(7)(v)-12 DIST Energy'!Q83+'FR-16(7)(v)-13 DIST Cust'!Q83-'FR-16(7)(v)-14 TOTAL CLASS'!Q83","v":0},0,0]
[27,null,{"$f":"'FR-16(7)(v)-1 Functional'!C84","v":"CONDUCTORS - UNDERGROUND / SECONDARY - DEMAND"},{"$f":"'FR-16(7)(v)-1 Functional'!D84","v":"K206"},null,{"$f":"'FR-16(7)(v)-3 PROD Demand'!F84+'FR-16(7)(v)-4 PROD Energy'!F84+'FR-16(7)(v)-5 PROD Cust'!F84+'FR-16(7)(v)-7 TRANS Demand'!F84+'FR-16(7)(v)-8 TRANS Energy'!F84+'FR-16(7)(v)-9 TRANS Cust'!F84+'FR-16(7)(v)-11 DIST Demand'!F84+'FR-16(7)(v)-12 DIST Energy'!F84+'FR-16(7)(v)-13 DIST Cust'!F84-'FR-16(7)(v)-14 TOTAL CLASS'!F84","v":0},{"$f":"'FR-16(7)(v)-3 PROD Demand'!G84+'FR-16(7)(v)-4 PROD Energy'!G84+'FR-16(7)(v)-5 PROD Cust'!G84+'FR-16(7)(v)-7 TRANS Demand'!G84+'FR-16(7)(v)-8 TRANS Energy'!G84+'FR-16(7)(v)-9 TRANS Cust'!G84+'FR-16(7)(v)-11 DIST Demand'!G84+'FR-16(7)(v)-12 DIST Energy'!G84+'FR-16(7)(v)-13 DIST Cust'!G84-'FR-16(7)(v)-14 TOTAL CLASS'!G84","v":0},{"$f":"'FR-16(7)(v)-3 PROD Demand'!H84+'FR-16(7)(v)-4 PROD Energy'!H84+'FR-16(7)(v)-5 PROD Cust'!H84+'FR-16(7)(v)-7 TRANS Demand'!H84+'FR-16(7)(v)-8 TRANS Energy'!H84+'FR-16(7)(v)-9 TRANS Cust'!H84+'FR-16(7)(v)-11 DIST Demand'!H84+'FR-16(7)(v)-12 DIST Energy'!H84+'FR-16(7)(v)-13 DIST Cust'!H84-'FR-16(7)(v)-14 TOTAL CLASS'!H84","v":0},{"$f":"'FR-16(7)(v)-3 PROD Demand'!I84+'FR-16(7)(v)-4 PROD Energy'!I84+'FR-16(7)(v)-5 PROD Cust'!I84+'FR-16(7)(v)-7 TRANS Demand'!I84+'FR-16(7)(v)-8 TRANS Energy'!I84+'FR-16(7)(v)-9 TRANS Cust'!I84+'FR-16(7)(v)-11 DIST Demand'!I84+'FR-16(7)(v)-12 DIST Energy'!I84+'FR-16(7)(v)-13 DIST Cust'!I84-'FR-16(7)(v)-14 TOTAL CLASS'!I84","v":0},{"$f":"'FR-16(7)(v)-3 PROD Demand'!J84+'FR-16(7)(v)-4 PROD Energy'!J84+'FR-16(7)(v)-5 PROD Cust'!J84+'FR-16(7)(v)-7 TRANS Demand'!J84+'FR-16(7)(v)-8 TRANS Energy'!J84+'FR-16(7)(v)-9 TRANS Cust'!J84+'FR-16(7)(v)-11 DIST Demand'!J84+'FR-16(7)(v)-12 DIST Energy'!J84+'FR-16(7)(v)-13 DIST Cust'!J84-'FR-16(7)(v)-14 TOTAL CLASS'!J84","v":0},{"$f":"'FR-16(7)(v)-3 PROD Demand'!K84+'FR-16(7)(v)-4 PROD Energy'!K84+'FR-16(7)(v)-5 PROD Cust'!K84+'FR-16(7)(v)-7 TRANS Demand'!K84+'FR-16(7)(v)-8 TRANS Energy'!K84+'FR-16(7)(v)-9 TRANS Cust'!K84+'FR-16(7)(v)-11 DIST Demand'!K84+'FR-16(7)(v)-12 DIST Energy'!K84+'FR-16(7)(v)-13 DIST Cust'!K84-'FR-16(7)(v)-14 TOTAL CLASS'!K84","v":0},{"$f":"'FR-16(7)(v)-3 PROD Demand'!L84+'FR-16(7)(v)-4 PROD Energy'!L84+'FR-16(7)(v)-5 PROD Cust'!L84+'FR-16(7)(v)-7 TRANS Demand'!L84+'FR-16(7)(v)-8 TRANS Energy'!L84+'FR-16(7)(v)-9 TRANS Cust'!L84+'FR-16(7)(v)-11 DIST Demand'!L84+'FR-16(7)(v)-12 DIST Energy'!L84+'FR-16(7)(v)-13 DIST Cust'!L84-'FR-16(7)(v)-14 TOTAL CLASS'!L84","v":0},{"$f":"'FR-16(7)(v)-3 PROD Demand'!M84+'FR-16(7)(v)-4 PROD Energy'!M84+'FR-16(7)(v)-5 PROD Cust'!M84+'FR-16(7)(v)-7 TRANS Demand'!M84+'FR-16(7)(v)-8 TRANS Energy'!M84+'FR-16(7)(v)-9 TRANS Cust'!M84+'FR-16(7)(v)-11 DIST Demand'!M84+'FR-16(7)(v)-12 DIST Energy'!M84+'FR-16(7)(v)-13 DIST Cust'!M84-'FR-16(7)(v)-14 TOTAL CLASS'!M84","v":0},{"$f":"'FR-16(7)(v)-3 PROD Demand'!N84+'FR-16(7)(v)-4 PROD Energy'!N84+'FR-16(7)(v)-5 PROD Cust'!N84+'FR-16(7)(v)-7 TRANS Demand'!N84+'FR-16(7)(v)-8 TRANS Energy'!N84+'FR-16(7)(v)-9 TRANS Cust'!N84+'FR-16(7)(v)-11 DIST Demand'!N84+'FR-16(7)(v)-12 DIST Energy'!N84+'FR-16(7)(v)-13 DIST Cust'!N84-'FR-16(7)(v)-14 TOTAL CLASS'!N84","v":0},{"$f":"'FR-16(7)(v)-3 PROD Demand'!O84+'FR-16(7)(v)-4 PROD Energy'!O84+'FR-16(7)(v)-5 PROD Cust'!O84+'FR-16(7)(v)-7 TRANS Demand'!O84+'FR-16(7)(v)-8 TRANS Energy'!O84+'FR-16(7)(v)-9 TRANS Cust'!O84+'FR-16(7)(v)-11 DIST Demand'!O84+'FR-16(7)(v)-12 DIST Energy'!O84+'FR-16(7)(v)-13 DIST Cust'!O84-'FR-16(7)(v)-14 TOTAL CLASS'!O84","v":0},{"$f":"'FR-16(7)(v)-3 PROD Demand'!P84+'FR-16(7)(v)-4 PROD Energy'!P84+'FR-16(7)(v)-5 PROD Cust'!P84+'FR-16(7)(v)-7 TRANS Demand'!P84+'FR-16(7)(v)-8 TRANS Energy'!P84+'FR-16(7)(v)-9 TRANS Cust'!P84+'FR-16(7)(v)-11 DIST Demand'!P84+'FR-16(7)(v)-12 DIST Energy'!P84+'FR-16(7)(v)-13 DIST Cust'!P84-'FR-16(7)(v)-14 TOTAL CLASS'!P84","v":0},{"$f":"'FR-16(7)(v)-3 PROD Demand'!Q84+'FR-16(7)(v)-4 PROD Energy'!Q84+'FR-16(7)(v)-5 PROD Cust'!Q84+'FR-16(7)(v)-7 TRANS Demand'!Q84+'FR-16(7)(v)-8 TRANS Energy'!Q84+'FR-16(7)(v)-9 TRANS Cust'!Q84+'FR-16(7)(v)-11 DIST Demand'!Q84+'FR-16(7)(v)-12 DIST Energy'!Q84+'FR-16(7)(v)-13 DIST Cust'!Q84-'FR-16(7)(v)-14 TOTAL CLASS'!Q84","v":0},0,0]
[28,null,{"$f":"'FR-16(7)(v)-1 Functional'!C85","v":"CONDUCTORS - UNDERGROUND / SECONDARY - CUSTOMER"},{"$f":"'FR-16(7)(v)-1 Functional'!D85","v":"K405"},null,{"$f":"'FR-16(7)(v)-3 PROD Demand'!F85+'FR-16(7)(v)-4 PROD Energy'!F85+'FR-16(7)(v)-5 PROD Cust'!F85+'FR-16(7)(v)-7 TRANS Demand'!F85+'FR-16(7)(v)-8 TRANS Energy'!F85+'FR-16(7)(v)-9 TRANS Cust'!F85+'FR-16(7)(v)-11 DIST Demand'!F85+'FR-16(7)(v)-12 DIST Energy'!F85+'FR-16(7)(v)-13 DIST Cust'!F85-'FR-16(7)(v)-14 TOTAL CLASS'!F85","v":0},{"$f":"'FR-16(7)(v)-3 PROD Demand'!G85+'FR-16(7)(v)-4 PROD Energy'!G85+'FR-16(7)(v)-5 PROD Cust'!G85+'FR-16(7)(v)-7 TRANS Demand'!G85+'FR-16(7)(v)-8 TRANS Energy'!G85+'FR-16(7)(v)-9 TRANS Cust'!G85+'FR-16(7)(v)-11 DIST Demand'!G85+'FR-16(7)(v)-12 DIST Energy'!G85+'FR-16(7)(v)-13 DIST Cust'!G85-'FR-16(7)(v)-14 TOTAL CLASS'!G85","v":0},{"$f":"'FR-16(7)(v)-3 PROD Demand'!H85+'FR-16(7)(v)-4 PROD Energy'!H85+'FR-16(7)(v)-5 PROD Cust'!H85+'FR-16(7)(v)-7 TRANS Demand'!H85+'FR-16(7)(v)-8 TRANS Energy'!H85+'FR-16(7)(v)-9 TRANS Cust'!H85+'FR-16(7)(v)-11 DIST Demand'!H85+'FR-16(7)(v)-12 DIST Energy'!H85+'FR-16(7)(v)-13 DIST Cust'!H85-'FR-16(7)(v)-14 TOTAL CLASS'!H85","v":0},{"$f":"'FR-16(7)(v)-3 PROD Demand'!I85+'FR-16(7)(v)-4 PROD Energy'!I85+'FR-16(7)(v)-5 PROD Cust'!I85+'FR-16(7)(v)-7 TRANS Demand'!I85+'FR-16(7)(v)-8 TRANS Energy'!I85+'FR-16(7)(v)-9 TRANS Cust'!I85+'FR-16(7)(v)-11 DIST Demand'!I85+'FR-16(7)(v)-12 DIST Energy'!I85+'FR-16(7)(v)-13 DIST Cust'!I85-'FR-16(7)(v)-14 TOTAL CLASS'!I85","v":0},{"$f":"'FR-16(7)(v)-3 PROD Demand'!J85+'FR-16(7)(v)-4 PROD Energy'!J85+'FR-16(7)(v)-5 PROD Cust'!J85+'FR-16(7)(v)-7 TRANS Demand'!J85+'FR-16(7)(v)-8 TRANS Energy'!J85+'FR-16(7)(v)-9 TRANS Cust'!J85+'FR-16(7)(v)-11 DIST Demand'!J85+'FR-16(7)(v)-12 DIST Energy'!J85+'FR-16(7)(v)-13 DIST Cust'!J85-'FR-16(7)(v)-14 TOTAL CLASS'!J85","v":0},{"$f":"'FR-16(7)(v)-3 PROD Demand'!K85+'FR-16(7)(v)-4 PROD Energy'!K85+'FR-16(7)(v)-5 PROD Cust'!K85+'FR-16(7)(v)-7 TRANS Demand'!K85+'FR-16(7)(v)-8 TRANS Energy'!K85+'FR-16(7)(v)-9 TRANS Cust'!K85+'FR-16(7)(v)-11 DIST Demand'!K85+'FR-16(7)(v)-12 DIST Energy'!K85+'FR-16(7)(v)-13 DIST Cust'!K85-'FR-16(7)(v)-14 TOTAL CLASS'!K85","v":0},{"$f":"'FR-16(7)(v)-3 PROD Demand'!L85+'FR-16(7)(v)-4 PROD Energy'!L85+'FR-16(7)(v)-5 PROD Cust'!L85+'FR-16(7)(v)-7 TRANS Demand'!L85+'FR-16(7)(v)-8 TRANS Energy'!L85+'FR-16(7)(v)-9 TRANS Cust'!L85+'FR-16(7)(v)-11 DIST Demand'!L85+'FR-16(7)(v)-12 DIST Energy'!L85+'FR-16(7)(v)-13 DIST Cust'!L85-'FR-16(7)(v)-14 TOTAL CLASS'!L85","v":0},{"$f":"'FR-16(7)(v)-3 PROD Demand'!M85+'FR-16(7)(v)-4 PROD Energy'!M85+'FR-16(7)(v)-5 PROD Cust'!M85+'FR-16(7)(v)-7 TRANS Demand'!M85+'FR-16(7)(v)-8 TRANS Energy'!M85+'FR-16(7)(v)-9 TRANS Cust'!M85+'FR-16(7)(v)-11 DIST Demand'!M85+'FR-16(7)(v)-12 DIST Energy'!M85+'FR-16(7)(v)-13 DIST Cust'!M85-'FR-16(7)(v)-14 TOTAL CLASS'!M85","v":0},{"$f":"'FR-16(7)(v)-3 PROD Demand'!N85+'FR-16(7)(v)-4 PROD Energy'!N85+'FR-16(7)(v)-5 PROD Cust'!N85+'FR-16(7)(v)-7 TRANS Demand'!N85+'FR-16(7)(v)-8 TRANS Energy'!N85+'FR-16(7)(v)-9 TRANS Cust'!N85+'FR-16(7)(v)-11 DIST Demand'!N85+'FR-16(7)(v)-12 DIST Energy'!N85+'FR-16(7)(v)-13 DIST Cust'!N85-'FR-16(7)(v)-14 TOTAL CLASS'!N85","v":0},{"$f":"'FR-16(7)(v)-3 PROD Demand'!O85+'FR-16(7)(v)-4 PROD Energy'!O85+'FR-16(7)(v)-5 PROD Cust'!O85+'FR-16(7)(v)-7 TRANS Demand'!O85+'FR-16(7)(v)-8 TRANS Energy'!O85+'FR-16(7)(v)-9 TRANS Cust'!O85+'FR-16(7)(v)-11 DIST Demand'!O85+'FR-16(7)(v)-12 DIST Energy'!O85+'FR-16(7)(v)-13 DIST Cust'!O85-'FR-16(7)(v)-14 TOTAL CLASS'!O85","v":0},{"$f":"'FR-16(7)(v)-3 PROD Demand'!P85+'FR-16(7)(v)-4 PROD Energy'!P85+'FR-16(7)(v)-5 PROD Cust'!P85+'FR-16(7)(v)-7 TRANS Demand'!P85+'FR-16(7)(v)-8 TRANS Energy'!P85+'FR-16(7)(v)-9 TRANS Cust'!P85+'FR-16(7)(v)-11 DIST Demand'!P85+'FR-16(7)(v)-12 DIST Energy'!P85+'FR-16(7)(v)-13 DIST Cust'!P85-'FR-16(7)(v)-14 TOTAL CLASS'!P85","v":0},{"$f":"'FR-16(7)(v)-3 PROD Demand'!Q85+'FR-16(7)(v)-4 PROD Energy'!Q85+'FR-16(7)(v)-5 PROD Cust'!Q85+'FR-16(7)(v)-7 TRANS Demand'!Q85+'FR-16(7)(v)-8 TRANS Energy'!Q85+'FR-16(7)(v)-9 TRANS Cust'!Q85+'FR-16(7)(v)-11 DIST Demand'!Q85+'FR-16(7)(v)-12 DIST Energy'!Q85+'FR-16(7)(v)-13 DIST Cust'!Q85-'FR-16(7)(v)-14 TOTAL CLASS'!Q85","v":0},0,0]
[29,null,{"$f":"'FR-16(7)(v)-1 Functional'!C86","v":"TRANSFORMERS DEMAND RELATED"},{"$f":"'FR-16(7)(v)-1 Functional'!D86","v":"K215"},null,{"$f":"'FR-16(7)(v)-3 PROD Demand'!F86+'FR-16(7)(v)-4 PROD Energy'!F86+'FR-16(7)(v)-5 PROD Cust'!F86+'FR-16(7)(v)-7 TRANS Demand'!F86+'FR-16(7)(v)-8 TRANS Energy'!F86+'FR-16(7)(v)-9 TRANS Cust'!F86+'FR-16(7)(v)-11 DIST Demand'!F86+'FR-16(7)(v)-12 DIST Energy'!F86+'FR-16(7)(v)-13 DIST Cust'!F86-'FR-16(7)(v)-14 TOTAL CLASS'!F86","v":0},{"$f":"'FR-16(7)(v)-3 PROD Demand'!G86+'FR-16(7)(v)-4 PROD Energy'!G86+'FR-16(7)(v)-5 PROD Cust'!G86+'FR-16(7)(v)-7 TRANS Demand'!G86+'FR-16(7)(v)-8 TRANS Energy'!G86+'FR-16(7)(v)-9 TRANS Cust'!G86+'FR-16(7)(v)-11 DIST Demand'!G86+'FR-16(7)(v)-12 DIST Energy'!G86+'FR-16(7)(v)-13 DIST Cust'!G86-'FR-16(7)(v)-14 TOTAL CLASS'!G86","v":0},{"$f":"'FR-16(7)(v)-3 PROD Demand'!H86+'FR-16(7)(v)-4 PROD Energy'!H86+'FR-16(7)(v)-5 PROD Cust'!H86+'FR-16(7)(v)-7 TRANS Demand'!H86+'FR-16(7)(v)-8 TRANS Energy'!H86+'FR-16(7)(v)-9 TRANS Cust'!H86+'FR-16(7)(v)-11 DIST Demand'!H86+'FR-16(7)(v)-12 DIST Energy'!H86+'FR-16(7)(v)-13 DIST Cust'!H86-'FR-16(7)(v)-14 TOTAL CLASS'!H86","v":0},{"$f":"'FR-16(7)(v)-3 PROD Demand'!I86+'FR-16(7)(v)-4 PROD Energy'!I86+'FR-16(7)(v)-5 PROD Cust'!I86+'FR-16(7)(v)-7 TRANS Demand'!I86+'FR-16(7)(v)-8 TRANS Energy'!I86+'FR-16(7)(v)-9 TRANS Cust'!I86+'FR-16(7)(v)-11 DIST Demand'!I86+'FR-16(7)(v)-12 DIST Energy'!I86+'FR-16(7)(v)-13 DIST Cust'!I86-'FR-16(7)(v)-14 TOTAL CLASS'!I86","v":0},{"$f":"'FR-16(7)(v)-3 PROD Demand'!J86+'FR-16(7)(v)-4 PROD Energy'!J86+'FR-16(7)(v)-5 PROD Cust'!J86+'FR-16(7)(v)-7 TRANS Demand'!J86+'FR-16(7)(v)-8 TRANS Energy'!J86+'FR-16(7)(v)-9 TRANS Cust'!J86+'FR-16(7)(v)-11 DIST Demand'!J86+'FR-16(7)(v)-12 DIST Energy'!J86+'FR-16(7)(v)-13 DIST Cust'!J86-'FR-16(7)(v)-14 TOTAL CLASS'!J86","v":0},{"$f":"'FR-16(7)(v)-3 PROD Demand'!K86+'FR-16(7)(v)-4 PROD Energy'!K86+'FR-16(7)(v)-5 PROD Cust'!K86+'FR-16(7)(v)-7 TRANS Demand'!K86+'FR-16(7)(v)-8 TRANS Energy'!K86+'FR-16(7)(v)-9 TRANS Cust'!K86+'FR-16(7)(v)-11 DIST Demand'!K86+'FR-16(7)(v)-12 DIST Energy'!K86+'FR-16(7)(v)-13 DIST Cust'!K86-'FR-16(7)(v)-14 TOTAL CLASS'!K86","v":0},{"$f":"'FR-16(7)(v)-3 PROD Demand'!L86+'FR-16(7)(v)-4 PROD Energy'!L86+'FR-16(7)(v)-5 PROD Cust'!L86+'FR-16(7)(v)-7 TRANS Demand'!L86+'FR-16(7)(v)-8 TRANS Energy'!L86+'FR-16(7)(v)-9 TRANS Cust'!L86+'FR-16(7)(v)-11 DIST Demand'!L86+'FR-16(7)(v)-12 DIST Energy'!L86+'FR-16(7)(v)-13 DIST Cust'!L86-'FR-16(7)(v)-14 TOTAL CLASS'!L86","v":0},{"$f":"'FR-16(7)(v)-3 PROD Demand'!M86+'FR-16(7)(v)-4 PROD Energy'!M86+'FR-16(7)(v)-5 PROD Cust'!M86+'FR-16(7)(v)-7 TRANS Demand'!M86+'FR-16(7)(v)-8 TRANS Energy'!M86+'FR-16(7)(v)-9 TRANS Cust'!M86+'FR-16(7)(v)-11 DIST Demand'!M86+'FR-16(7)(v)-12 DIST Energy'!M86+'FR-16(7)(v)-13 DIST Cust'!M86-'FR-16(7)(v)-14 TOTAL CLASS'!M86","v":0},{"$f":"'FR-16(7)(v)-3 PROD Demand'!N86+'FR-16(7)(v)-4 PROD Energy'!N86+'FR-16(7)(v)-5 PROD Cust'!N86+'FR-16(7)(v)-7 TRANS Demand'!N86+'FR-16(7)(v)-8 TRANS Energy'!N86+'FR-16(7)(v)-9 TRANS Cust'!N86+'FR-16(7)(v)-11 DIST Demand'!N86+'FR-16(7)(v)-12 DIST Energy'!N86+'FR-16(7)(v)-13 DIST Cust'!N86-'FR-16(7)(v)-14 TOTAL CLASS'!N86","v":0},{"$f":"'FR-16(7)(v)-3 PROD Demand'!O86+'FR-16(7)(v)-4 PROD Energy'!O86+'FR-16(7)(v)-5 PROD Cust'!O86+'FR-16(7)(v)-7 TRANS Demand'!O86+'FR-16(7)(v)-8 TRANS Energy'!O86+'FR-16(7)(v)-9 TRANS Cust'!O86+'FR-16(7)(v)-11 DIST Demand'!O86+'FR-16(7)(v)-12 DIST Energy'!O86+'FR-16(7)(v)-13 DIST Cust'!O86-'FR-16(7)(v)-14 TOTAL CLASS'!O86","v":0},{"$f":"'FR-16(7)(v)-3 PROD Demand'!P86+'FR-16(7)(v)-4 PROD Energy'!P86+'FR-16(7)(v)-5 PROD Cust'!P86+'FR-16(7)(v)-7 TRANS Demand'!P86+'FR-16(7)(v)-8 TRANS Energy'!P86+'FR-16(7)(v)-9 TRANS Cust'!P86+'FR-16(7)(v)-11 DIST Demand'!P86+'FR-16(7)(v)-12 DIST Energy'!P86+'FR-16(7)(v)-13 DIST Cust'!P86-'FR-16(7)(v)-14 TOTAL CLASS'!P86","v":0},{"$f":"'FR-16(7)(v)-3 PROD Demand'!Q86+'FR-16(7)(v)-4 PROD Energy'!Q86+'FR-16(7)(v)-5 PROD Cust'!Q86+'FR-16(7)(v)-7 TRANS Demand'!Q86+'FR-16(7)(v)-8 TRANS Energy'!Q86+'FR-16(7)(v)-9 TRANS Cust'!Q86+'FR-16(7)(v)-11 DIST Demand'!Q86+'FR-16(7)(v)-12 DIST Energy'!Q86+'FR-16(7)(v)-13 DIST Cust'!Q86-'FR-16(7)(v)-14 TOTAL CLASS'!Q86","v":0},0,0]
[30,null,{"$f":"'FR-16(7)(v)-1 Functional'!C87","v":"TRANSFORMERS CUSTOMER RELATED"},{"$f":"'FR-16(7)(v)-1 Functional'!D87","v":"K405"},null,{"$f":"'FR-16(7)(v)-3 PROD Demand'!F87+'FR-16(7)(v)-4 PROD Energy'!F87+'FR-16(7)(v)-5 PROD Cust'!F87+'FR-16(7)(v)-7 TRANS Demand'!F87+'FR-16(7)(v)-8 TRANS Energy'!F87+'FR-16(7)(v)-9 TRANS Cust'!F87+'FR-16(7)(v)-11 DIST Demand'!F87+'FR-16(7)(v)-12 DIST Energy'!F87+'FR-16(7)(v)-13 DIST Cust'!F87-'FR-16(7)(v)-14 TOTAL CLASS'!F87","v":0},{"$f":"'FR-16(7)(v)-3 PROD Demand'!G87+'FR-16(7)(v)-4 PROD Energy'!G87+'FR-16(7)(v)-5 PROD Cust'!G87+'FR-16(7)(v)-7 TRANS Demand'!G87+'FR-16(7)(v)-8 TRANS Energy'!G87+'FR-16(7)(v)-9 TRANS Cust'!G87+'FR-16(7)(v)-11 DIST Demand'!G87+'FR-16(7)(v)-12 DIST Energy'!G87+'FR-16(7)(v)-13 DIST Cust'!G87-'FR-16(7)(v)-14 TOTAL CLASS'!G87","v":0},{"$f":"'FR-16(7)(v)-3 PROD Demand'!H87+'FR-16(7)(v)-4 PROD Energy'!H87+'FR-16(7)(v)-5 PROD Cust'!H87+'FR-16(7)(v)-7 TRANS Demand'!H87+'FR-16(7)(v)-8 TRANS Energy'!H87+'FR-16(7)(v)-9 TRANS Cust'!H87+'FR-16(7)(v)-11 DIST Demand'!H87+'FR-16(7)(v)-12 DIST Energy'!H87+'FR-16(7)(v)-13 DIST Cust'!H87-'FR-16(7)(v)-14 TOTAL CLASS'!H87","v":0},{"$f":"'FR-16(7)(v)-3 PROD Demand'!I87+'FR-16(7)(v)-4 PROD Energy'!I87+'FR-16(7)(v)-5 PROD Cust'!I87+'FR-16(7)(v)-7 TRANS Demand'!I87+'FR-16(7)(v)-8 TRANS Energy'!I87+'FR-16(7)(v)-9 TRANS Cust'!I87+'FR-16(7)(v)-11 DIST Demand'!I87+'FR-16(7)(v)-12 DIST Energy'!I87+'FR-16(7)(v)-13 DIST Cust'!I87-'FR-16(7)(v)-14 TOTAL CLASS'!I87","v":0},{"$f":"'FR-16(7)(v)-3 PROD Demand'!J87+'FR-16(7)(v)-4 PROD Energy'!J87+'FR-16(7)(v)-5 PROD Cust'!J87+'FR-16(7)(v)-7 TRANS Demand'!J87+'FR-16(7)(v)-8 TRANS Energy'!J87+'FR-16(7)(v)-9 TRANS Cust'!J87+'FR-16(7)(v)-11 DIST Demand'!J87+'FR-16(7)(v)-12 DIST Energy'!J87+'FR-16(7)(v)-13 DIST Cust'!J87-'FR-16(7)(v)-14 TOTAL CLASS'!J87","v":0},{"$f":"'FR-16(7)(v)-3 PROD Demand'!K87+'FR-16(7)(v)-4 PROD Energy'!K87+'FR-16(7)(v)-5 PROD Cust'!K87+'FR-16(7)(v)-7 TRANS Demand'!K87+'FR-16(7)(v)-8 TRANS Energy'!K87+'FR-16(7)(v)-9 TRANS Cust'!K87+'FR-16(7)(v)-11 DIST Demand'!K87+'FR-16(7)(v)-12 DIST Energy'!K87+'FR-16(7)(v)-13 DIST Cust'!K87-'FR-16(7)(v)-14 TOTAL CLASS'!K87","v":0},{"$f":"'FR-16(7)(v)-3 PROD Demand'!L87+'FR-16(7)(v)-4 PROD Energy'!L87+'FR-16(7)(v)-5 PROD Cust'!L87+'FR-16(7)(v)-7 TRANS Demand'!L87+'FR-16(7)(v)-8 TRANS Energy'!L87+'FR-16(7)(v)-9 TRANS Cust'!L87+'FR-16(7)(v)-11 DIST Demand'!L87+'FR-16(7)(v)-12 DIST Energy'!L87+'FR-16(7)(v)-13 DIST Cust'!L87-'FR-16(7)(v)-14 TOTAL CLASS'!L87","v":0},{"$f":"'FR-16(7)(v)-3 PROD Demand'!M87+'FR-16(7)(v)-4 PROD Energy'!M87+'FR-16(7)(v)-5 PROD Cust'!M87+'FR-16(7)(v)-7 TRANS Demand'!M87+'FR-16(7)(v)-8 TRANS Energy'!M87+'FR-16(7)(v)-9 TRANS Cust'!M87+'FR-16(7)(v)-11 DIST Demand'!M87+'FR-16(7)(v)-12 DIST Energy'!M87+'FR-16(7)(v)-13 DIST Cust'!M87-'FR-16(7)(v)-14 TOTAL CLASS'!M87","v":0},{"$f":"'FR-16(7)(v)-3 PROD Demand'!N87+'FR-16(7)(v)-4 PROD Energy'!N87+'FR-16(7)(v)-5 PROD Cust'!N87+'FR-16(7)(v)-7 TRANS Demand'!N87+'FR-16(7)(v)-8 TRANS Energy'!N87+'FR-16(7)(v)-9 TRANS Cust'!N87+'FR-16(7)(v)-11 DIST Demand'!N87+'FR-16(7)(v)-12 DIST Energy'!N87+'FR-16(7)(v)-13 DIST Cust'!N87-'FR-16(7)(v)-14 TOTAL CLASS'!N87","v":0},{"$f":"'FR-16(7)(v)-3 PROD Demand'!O87+'FR-16(7)(v)-4 PROD Energy'!O87+'FR-16(7)(v)-5 PROD Cust'!O87+'FR-16(7)(v)-7 TRANS Demand'!O87+'FR-16(7)(v)-8 TRANS Energy'!O87+'FR-16(7)(v)-9 TRANS Cust'!O87+'FR-16(7)(v)-11 DIST Demand'!O87+'FR-16(7)(v)-12 DIST Energy'!O87+'FR-16(7)(v)-13 DIST Cust'!O87-'FR-16(7)(v)-14 TOTAL CLASS'!O87","v":0},{"$f":"'FR-16(7)(v)-3 PROD Demand'!P87+'FR-16(7)(v)-4 PROD Energy'!P87+'FR-16(7)(v)-5 PROD Cust'!P87+'FR-16(7)(v)-7 TRANS Demand'!P87+'FR-16(7)(v)-8 TRANS Energy'!P87+'FR-16(7)(v)-9 TRANS Cust'!P87+'FR-16(7)(v)-11 DIST Demand'!P87+'FR-16(7)(v)-12 DIST Energy'!P87+'FR-16(7)(v)-13 DIST Cust'!P87-'FR-16(7)(v)-14 TOTAL CLASS'!P87","v":0},{"$f":"'FR-16(7)(v)-3 PROD Demand'!Q87+'FR-16(7)(v)-4 PROD Energy'!Q87+'FR-16(7)(v)-5 PROD Cust'!Q87+'FR-16(7)(v)-7 TRANS Demand'!Q87+'FR-16(7)(v)-8 TRANS Energy'!Q87+'FR-16(7)(v)-9 TRANS Cust'!Q87+'FR-16(7)(v)-11 DIST Demand'!Q87+'FR-16(7)(v)-12 DIST Energy'!Q87+'FR-16(7)(v)-13 DIST Cust'!Q87-'FR-16(7)(v)-14 TOTAL CLASS'!Q87","v":0},0,0]
[31,null,{"$f":"'FR-16(7)(v)-1 Functional'!C88","v":"SERVICES"},{"$f":"'FR-16(7)(v)-1 Functional'!D88","v":"K217"},null,{"$f":"'FR-16(7)(v)-3 PROD Demand'!F88+'FR-16(7)(v)-4 PROD Energy'!F88+'FR-16(7)(v)-5 PROD Cust'!F88+'FR-16(7)(v)-7 TRANS Demand'!F88+'FR-16(7)(v)-8 TRANS Energy'!F88+'FR-16(7)(v)-9 TRANS Cust'!F88+'FR-16(7)(v)-11 DIST Demand'!F88+'FR-16(7)(v)-12 DIST Energy'!F88+'FR-16(7)(v)-13 DIST Cust'!F88-'FR-16(7)(v)-14 TOTAL CLASS'!F88","v":0},{"$f":"'FR-16(7)(v)-3 PROD Demand'!G88+'FR-16(7)(v)-4 PROD Energy'!G88+'FR-16(7)(v)-5 PROD Cust'!G88+'FR-16(7)(v)-7 TRANS Demand'!G88+'FR-16(7)(v)-8 TRANS Energy'!G88+'FR-16(7)(v)-9 TRANS Cust'!G88+'FR-16(7)(v)-11 DIST Demand'!G88+'FR-16(7)(v)-12 DIST Energy'!G88+'FR-16(7)(v)-13 DIST Cust'!G88-'FR-16(7)(v)-14 TOTAL CLASS'!G88","v":0},{"$f":"'FR-16(7)(v)-3 PROD Demand'!H88+'FR-16(7)(v)-4 PROD Energy'!H88+'FR-16(7)(v)-5 PROD Cust'!H88+'FR-16(7)(v)-7 TRANS Demand'!H88+'FR-16(7)(v)-8 TRANS Energy'!H88+'FR-16(7)(v)-9 TRANS Cust'!H88+'FR-16(7)(v)-11 DIST Demand'!H88+'FR-16(7)(v)-12 DIST Energy'!H88+'FR-16(7)(v)-13 DIST Cust'!H88-'FR-16(7)(v)-14 TOTAL CLASS'!H88","v":0},{"$f":"'FR-16(7)(v)-3 PROD Demand'!I88+'FR-16(7)(v)-4 PROD Energy'!I88+'FR-16(7)(v)-5 PROD Cust'!I88+'FR-16(7)(v)-7 TRANS Demand'!I88+'FR-16(7)(v)-8 TRANS Energy'!I88+'FR-16(7)(v)-9 TRANS Cust'!I88+'FR-16(7)(v)-11 DIST Demand'!I88+'FR-16(7)(v)-12 DIST Energy'!I88+'FR-16(7)(v)-13 DIST Cust'!I88-'FR-16(7)(v)-14 TOTAL CLASS'!I88","v":0},{"$f":"'FR-16(7)(v)-3 PROD Demand'!J88+'FR-16(7)(v)-4 PROD Energy'!J88+'FR-16(7)(v)-5 PROD Cust'!J88+'FR-16(7)(v)-7 TRANS Demand'!J88+'FR-16(7)(v)-8 TRANS Energy'!J88+'FR-16(7)(v)-9 TRANS Cust'!J88+'FR-16(7)(v)-11 DIST Demand'!J88+'FR-16(7)(v)-12 DIST Energy'!J88+'FR-16(7)(v)-13 DIST Cust'!J88-'FR-16(7)(v)-14 TOTAL CLASS'!J88","v":0},{"$f":"'FR-16(7)(v)-3 PROD Demand'!K88+'FR-16(7)(v)-4 PROD Energy'!K88+'FR-16(7)(v)-5 PROD Cust'!K88+'FR-16(7)(v)-7 TRANS Demand'!K88+'FR-16(7)(v)-8 TRANS Energy'!K88+'FR-16(7)(v)-9 TRANS Cust'!K88+'FR-16(7)(v)-11 DIST Demand'!K88+'FR-16(7)(v)-12 DIST Energy'!K88+'FR-16(7)(v)-13 DIST Cust'!K88-'FR-16(7)(v)-14 TOTAL CLASS'!K88","v":0},{"$f":"'FR-16(7)(v)-3 PROD Demand'!L88+'FR-16(7)(v)-4 PROD Energy'!L88+'FR-16(7)(v)-5 PROD Cust'!L88+'FR-16(7)(v)-7 TRANS Demand'!L88+'FR-16(7)(v)-8 TRANS Energy'!L88+'FR-16(7)(v)-9 TRANS Cust'!L88+'FR-16(7)(v)-11 DIST Demand'!L88+'FR-16(7)(v)-12 DIST Energy'!L88+'FR-16(7)(v)-13 DIST Cust'!L88-'FR-16(7)(v)-14 TOTAL CLASS'!L88","v":0},{"$f":"'FR-16(7)(v)-3 PROD Demand'!M88+'FR-16(7)(v)-4 PROD Energy'!M88+'FR-16(7)(v)-5 PROD Cust'!M88+'FR-16(7)(v)-7 TRANS Demand'!M88+'FR-16(7)(v)-8 TRANS Energy'!M88+'FR-16(7)(v)-9 TRANS Cust'!M88+'FR-16(7)(v)-11 DIST Demand'!M88+'FR-16(7)(v)-12 DIST Energy'!M88+'FR-16(7)(v)-13 DIST Cust'!M88-'FR-16(7)(v)-14 TOTAL CLASS'!M88","v":0},{"$f":"'FR-16(7)(v)-3 PROD Demand'!N88+'FR-16(7)(v)-4 PROD Energy'!N88+'FR-16(7)(v)-5 PROD Cust'!N88+'FR-16(7)(v)-7 TRANS Demand'!N88+'FR-16(7)(v)-8 TRANS Energy'!N88+'FR-16(7)(v)-9 TRANS Cust'!N88+'FR-16(7)(v)-11 DIST Demand'!N88+'FR-16(7)(v)-12 DIST Energy'!N88+'FR-16(7)(v)-13 DIST Cust'!N88-'FR-16(7)(v)-14 TOTAL CLASS'!N88","v":0},{"$f":"'FR-16(7)(v)-3 PROD Demand'!O88+'FR-16(7)(v)-4 PROD Energy'!O88+'FR-16(7)(v)-5 PROD Cust'!O88+'FR-16(7)(v)-7 TRANS Demand'!O88+'FR-16(7)(v)-8 TRANS Energy'!O88+'FR-16(7)(v)-9 TRANS Cust'!O88+'FR-16(7)(v)-11 DIST Demand'!O88+'FR-16(7)(v)-12 DIST Energy'!O88+'FR-16(7)(v)-13 DIST Cust'!O88-'FR-16(7)(v)-14 TOTAL CLASS'!O88","v":0},{"$f":"'FR-16(7)(v)-3 PROD Demand'!P88+'FR-16(7)(v)-4 PROD Energy'!P88+'FR-16(7)(v)-5 PROD Cust'!P88+'FR-16(7)(v)-7 TRANS Demand'!P88+'FR-16(7)(v)-8 TRANS Energy'!P88+'FR-16(7)(v)-9 TRANS Cust'!P88+'FR-16(7)(v)-11 DIST Demand'!P88+'FR-16(7)(v)-12 DIST Energy'!P88+'FR-16(7)(v)-13 DIST Cust'!P88-'FR-16(7)(v)-14 TOTAL CLASS'!P88","v":0},{"$f":"'FR-16(7)(v)-3 PROD Demand'!Q88+'FR-16(7)(v)-4 PROD Energy'!Q88+'FR-16(7)(v)-5 PROD Cust'!Q88+'FR-16(7)(v)-7 TRANS Demand'!Q88+'FR-16(7)(v)-8 TRANS Energy'!Q88+'FR-16(7)(v)-9 TRANS Cust'!Q88+'FR-16(7)(v)-11 DIST Demand'!Q88+'FR-16(7)(v)-12 DIST Energy'!Q88+'FR-16(7)(v)-13 DIST Cust'!Q88-'FR-16(7)(v)-14 TOTAL CLASS'!Q88","v":0},0,0]
[32,null,{"$f":"'FR-16(7)(v)-1 Functional'!C89","v":"METERS"},{"$f":"'FR-16(7)(v)-1 Functional'!D89","v":"K407"},null,{"$f":"'FR-16(7)(v)-3 PROD Demand'!F89+'FR-16(7)(v)-4 PROD Energy'!F89+'FR-16(7)(v)-5 PROD Cust'!F89+'FR-16(7)(v)-7 TRANS Demand'!F89+'FR-16(7)(v)-8 TRANS Energy'!F89+'FR-16(7)(v)-9 TRANS Cust'!F89+'FR-16(7)(v)-11 DIST Demand'!F89+'FR-16(7)(v)-12 DIST Energy'!F89+'FR-16(7)(v)-13 DIST Cust'!F89-'FR-16(7)(v)-14 TOTAL CLASS'!F89","v":0},{"$f":"'FR-16(7)(v)-3 PROD Demand'!G89+'FR-16(7)(v)-4 PROD Energy'!G89+'FR-16(7)(v)-5 PROD Cust'!G89+'FR-16(7)(v)-7 TRANS Demand'!G89+'FR-16(7)(v)-8 TRANS Energy'!G89+'FR-16(7)(v)-9 TRANS Cust'!G89+'FR-16(7)(v)-11 DIST Demand'!G89+'FR-16(7)(v)-12 DIST Energy'!G89+'FR-16(7)(v)-13 DIST Cust'!G89-'FR-16(7)(v)-14 TOTAL CLASS'!G89","v":0},{"$f":"'FR-16(7)(v)-3 PROD Demand'!H89+'FR-16(7)(v)-4 PROD Energy'!H89+'FR-16(7)(v)-5 PROD Cust'!H89+'FR-16(7)(v)-7 TRANS Demand'!H89+'FR-16(7)(v)-8 TRANS Energy'!H89+'FR-16(7)(v)-9 TRANS Cust'!H89+'FR-16(7)(v)-11 DIST Demand'!H89+'FR-16(7)(v)-12 DIST Energy'!H89+'FR-16(7)(v)-13 DIST Cust'!H89-'FR-16(7)(v)-14 TOTAL CLASS'!H89","v":0},{"$f":"'FR-16(7)(v)-3 PROD Demand'!I89+'FR-16(7)(v)-4 PROD Energy'!I89+'FR-16(7)(v)-5 PROD Cust'!I89+'FR-16(7)(v)-7 TRANS Demand'!I89+'FR-16(7)(v)-8 TRANS Energy'!I89+'FR-16(7)(v)-9 TRANS Cust'!I89+'FR-16(7)(v)-11 DIST Demand'!I89+'FR-16(7)(v)-12 DIST Energy'!I89+'FR-16(7)(v)-13 DIST Cust'!I89-'FR-16(7)(v)-14 TOTAL CLASS'!I89","v":0},{"$f":"'FR-16(7)(v)-3 PROD Demand'!J89+'FR-16(7)(v)-4 PROD Energy'!J89+'FR-16(7)(v)-5 PROD Cust'!J89+'FR-16(7)(v)-7 TRANS Demand'!J89+'FR-16(7)(v)-8 TRANS Energy'!J89+'FR-16(7)(v)-9 TRANS Cust'!J89+'FR-16(7)(v)-11 DIST Demand'!J89+'FR-16(7)(v)-12 DIST Energy'!J89+'FR-16(7)(v)-13 DIST Cust'!J89-'FR-16(7)(v)-14 TOTAL CLASS'!J89","v":0},{"$f":"'FR-16(7)(v)-3 PROD Demand'!K89+'FR-16(7)(v)-4 PROD Energy'!K89+'FR-16(7)(v)-5 PROD Cust'!K89+'FR-16(7)(v)-7 TRANS Demand'!K89+'FR-16(7)(v)-8 TRANS Energy'!K89+'FR-16(7)(v)-9 TRANS Cust'!K89+'FR-16(7)(v)-11 DIST Demand'!K89+'FR-16(7)(v)-12 DIST Energy'!K89+'FR-16(7)(v)-13 DIST Cust'!K89-'FR-16(7)(v)-14 TOTAL CLASS'!K89","v":0},{"$f":"'FR-16(7)(v)-3 PROD Demand'!L89+'FR-16(7)(v)-4 PROD Energy'!L89+'FR-16(7)(v)-5 PROD Cust'!L89+'FR-16(7)(v)-7 TRANS Demand'!L89+'FR-16(7)(v)-8 TRANS Energy'!L89+'FR-16(7)(v)-9 TRANS Cust'!L89+'FR-16(7)(v)-11 DIST Demand'!L89+'FR-16(7)(v)-12 DIST Energy'!L89+'FR-16(7)(v)-13 DIST Cust'!L89-'FR-16(7)(v)-14 TOTAL CLASS'!L89","v":0},{"$f":"'FR-16(7)(v)-3 PROD Demand'!M89+'FR-16(7)(v)-4 PROD Energy'!M89+'FR-16(7)(v)-5 PROD Cust'!M89+'FR-16(7)(v)-7 TRANS Demand'!M89+'FR-16(7)(v)-8 TRANS Energy'!M89+'FR-16(7)(v)-9 TRANS Cust'!M89+'FR-16(7)(v)-11 DIST Demand'!M89+'FR-16(7)(v)-12 DIST Energy'!M89+'FR-16(7)(v)-13 DIST Cust'!M89-'FR-16(7)(v)-14 TOTAL CLASS'!M89","v":0},{"$f":"'FR-16(7)(v)-3 PROD Demand'!N89+'FR-16(7)(v)-4 PROD Energy'!N89+'FR-16(7)(v)-5 PROD Cust'!N89+'FR-16(7)(v)-7 TRANS Demand'!N89+'FR-16(7)(v)-8 TRANS Energy'!N89+'FR-16(7)(v)-9 TRANS Cust'!N89+'FR-16(7)(v)-11 DIST Demand'!N89+'FR-16(7)(v)-12 DIST Energy'!N89+'FR-16(7)(v)-13 DIST Cust'!N89-'FR-16(7)(v)-14 TOTAL CLASS'!N89","v":0},{"$f":"'FR-16(7)(v)-3 PROD Demand'!O89+'FR-16(7)(v)-4 PROD Energy'!O89+'FR-16(7)(v)-5 PROD Cust'!O89+'FR-16(7)(v)-7 TRANS Demand'!O89+'FR-16(7)(v)-8 TRANS Energy'!O89+'FR-16(7)(v)-9 TRANS Cust'!O89+'FR-16(7)(v)-11 DIST Demand'!O89+'FR-16(7)(v)-12 DIST Energy'!O89+'FR-16(7)(v)-13 DIST Cust'!O89-'FR-16(7)(v)-14 TOTAL CLASS'!O89","v":0},{"$f":"'FR-16(7)(v)-3 PROD Demand'!P89+'FR-16(7)(v)-4 PROD Energy'!P89+'FR-16(7)(v)-5 PROD Cust'!P89+'FR-16(7)(v)-7 TRANS Demand'!P89+'FR-16(7)(v)-8 TRANS Energy'!P89+'FR-16(7)(v)-9 TRANS Cust'!P89+'FR-16(7)(v)-11 DIST Demand'!P89+'FR-16(7)(v)-12 DIST Energy'!P89+'FR-16(7)(v)-13 DIST Cust'!P89-'FR-16(7)(v)-14 TOTAL CLASS'!P89","v":0},{"$f":"'FR-16(7)(v)-3 PROD Demand'!Q89+'FR-16(7)(v)-4 PROD Energy'!Q89+'FR-16(7)(v)-5 PROD Cust'!Q89+'FR-16(7)(v)-7 TRANS Demand'!Q89+'FR-16(7)(v)-8 TRANS Energy'!Q89+'FR-16(7)(v)-9 TRANS Cust'!Q89+'FR-16(7)(v)-11 DIST Demand'!Q89+'FR-16(7)(v)-12 DIST Energy'!Q89+'FR-16(7)(v)-13 DIST Cust'!Q89-'FR-16(7)(v)-14 TOTAL CLASS'!Q89","v":0},0,0]
[33,null,{"$f":"'FR-16(7)(v)-1 Functional'!C90","v":"STREET LIGHTS"},{"$f":"'FR-16(7)(v)-1 Functional'!D90","v":"K401"},null,{"$f":"'FR-16(7)(v)-3 PROD Demand'!F90+'FR-16(7)(v)-4 PROD Energy'!F90+'FR-16(7)(v)-5 PROD Cust'!F90+'FR-16(7)(v)-7 TRANS Demand'!F90+'FR-16(7)(v)-8 TRANS Energy'!F90+'FR-16(7)(v)-9 TRANS Cust'!F90+'FR-16(7)(v)-11 DIST Demand'!F90+'FR-16(7)(v)-12 DIST Energy'!F90+'FR-16(7)(v)-13 DIST Cust'!F90-'FR-16(7)(v)-14 TOTAL CLASS'!F90","v":0},{"$f":"'FR-16(7)(v)-3 PROD Demand'!G90+'FR-16(7)(v)-4 PROD Energy'!G90+'FR-16(7)(v)-5 PROD Cust'!G90+'FR-16(7)(v)-7 TRANS Demand'!G90+'FR-16(7)(v)-8 TRANS Energy'!G90+'FR-16(7)(v)-9 TRANS Cust'!G90+'FR-16(7)(v)-11 DIST Demand'!G90+'FR-16(7)(v)-12 DIST Energy'!G90+'FR-16(7)(v)-13 DIST Cust'!G90-'FR-16(7)(v)-14 TOTAL CLASS'!G90","v":0},{"$f":"'FR-16(7)(v)-3 PROD Demand'!H90+'FR-16(7)(v)-4 PROD Energy'!H90+'FR-16(7)(v)-5 PROD Cust'!H90+'FR-16(7)(v)-7 TRANS Demand'!H90+'FR-16(7)(v)-8 TRANS Energy'!H90+'FR-16(7)(v)-9 TRANS Cust'!H90+'FR-16(7)(v)-11 DIST Demand'!H90+'FR-16(7)(v)-12 DIST Energy'!H90+'FR-16(7)(v)-13 DIST Cust'!H90-'FR-16(7)(v)-14 TOTAL CLASS'!H90","v":0},{"$f":"'FR-16(7)(v)-3 PROD Demand'!I90+'FR-16(7)(v)-4 PROD Energy'!I90+'FR-16(7)(v)-5 PROD Cust'!I90+'FR-16(7)(v)-7 TRANS Demand'!I90+'FR-16(7)(v)-8 TRANS Energy'!I90+'FR-16(7)(v)-9 TRANS Cust'!I90+'FR-16(7)(v)-11 DIST Demand'!I90+'FR-16(7)(v)-12 DIST Energy'!I90+'FR-16(7)(v)-13 DIST Cust'!I90-'FR-16(7)(v)-14 TOTAL CLASS'!I90","v":0},{"$f":"'FR-16(7)(v)-3 PROD Demand'!J90+'FR-16(7)(v)-4 PROD Energy'!J90+'FR-16(7)(v)-5 PROD Cust'!J90+'FR-16(7)(v)-7 TRANS Demand'!J90+'FR-16(7)(v)-8 TRANS Energy'!J90+'FR-16(7)(v)-9 TRANS Cust'!J90+'FR-16(7)(v)-11 DIST Demand'!J90+'FR-16(7)(v)-12 DIST Energy'!J90+'FR-16(7)(v)-13 DIST Cust'!J90-'FR-16(7)(v)-14 TOTAL CLASS'!J90","v":0},{"$f":"'FR-16(7)(v)-3 PROD Demand'!K90+'FR-16(7)(v)-4 PROD Energy'!K90+'FR-16(7)(v)-5 PROD Cust'!K90+'FR-16(7)(v)-7 TRANS Demand'!K90+'FR-16(7)(v)-8 TRANS Energy'!K90+'FR-16(7)(v)-9 TRANS Cust'!K90+'FR-16(7)(v)-11 DIST Demand'!K90+'FR-16(7)(v)-12 DIST Energy'!K90+'FR-16(7)(v)-13 DIST Cust'!K90-'FR-16(7)(v)-14 TOTAL CLASS'!K90","v":0},{"$f":"'FR-16(7)(v)-3 PROD Demand'!L90+'FR-16(7)(v)-4 PROD Energy'!L90+'FR-16(7)(v)-5 PROD Cust'!L90+'FR-16(7)(v)-7 TRANS Demand'!L90+'FR-16(7)(v)-8 TRANS Energy'!L90+'FR-16(7)(v)-9 TRANS Cust'!L90+'FR-16(7)(v)-11 DIST Demand'!L90+'FR-16(7)(v)-12 DIST Energy'!L90+'FR-16(7)(v)-13 DIST Cust'!L90-'FR-16(7)(v)-14 TOTAL CLASS'!L90","v":0},{"$f":"'FR-16(7)(v)-3 PROD Demand'!M90+'FR-16(7)(v)-4 PROD Energy'!M90+'FR-16(7)(v)-5 PROD Cust'!M90+'FR-16(7)(v)-7 TRANS Demand'!M90+'FR-16(7)(v)-8 TRANS Energy'!M90+'FR-16(7)(v)-9 TRANS Cust'!M90+'FR-16(7)(v)-11 DIST Demand'!M90+'FR-16(7)(v)-12 DIST Energy'!M90+'FR-16(7)(v)-13 DIST Cust'!M90-'FR-16(7)(v)-14 TOTAL CLASS'!M90","v":0},{"$f":"'FR-16(7)(v)-3 PROD Demand'!N90+'FR-16(7)(v)-4 PROD Energy'!N90+'FR-16(7)(v)-5 PROD Cust'!N90+'FR-16(7)(v)-7 TRANS Demand'!N90+'FR-16(7)(v)-8 TRANS Energy'!N90+'FR-16(7)(v)-9 TRANS Cust'!N90+'FR-16(7)(v)-11 DIST Demand'!N90+'FR-16(7)(v)-12 DIST Energy'!N90+'FR-16(7)(v)-13 DIST Cust'!N90-'FR-16(7)(v)-14 TOTAL CLASS'!N90","v":0},{"$f":"'FR-16(7)(v)-3 PROD Demand'!O90+'FR-16(7)(v)-4 PROD Energy'!O90+'FR-16(7)(v)-5 PROD Cust'!O90+'FR-16(7)(v)-7 TRANS Demand'!O90+'FR-16(7)(v)-8 TRANS Energy'!O90+'FR-16(7)(v)-9 TRANS Cust'!O90+'FR-16(7)(v)-11 DIST Demand'!O90+'FR-16(7)(v)-12 DIST Energy'!O90+'FR-16(7)(v)-13 DIST Cust'!O90-'FR-16(7)(v)-14 TOTAL CLASS'!O90","v":0},{"$f":"'FR-16(7)(v)-3 PROD Demand'!P90+'FR-16(7)(v)-4 PROD Energy'!P90+'FR-16(7)(v)-5 PROD Cust'!P90+'FR-16(7)(v)-7 TRANS Demand'!P90+'FR-16(7)(v)-8 TRANS Energy'!P90+'FR-16(7)(v)-9 TRANS Cust'!P90+'FR-16(7)(v)-11 DIST Demand'!P90+'FR-16(7)(v)-12 DIST Energy'!P90+'FR-16(7)(v)-13 DIST Cust'!P90-'FR-16(7)(v)-14 TOTAL CLASS'!P90","v":0},{"$f":"'FR-16(7)(v)-3 PROD Demand'!Q90+'FR-16(7)(v)-4 PROD Energy'!Q90+'FR-16(7)(v)-5 PROD Cust'!Q90+'FR-16(7)(v)-7 TRANS Demand'!Q90+'FR-16(7)(v)-8 TRANS Energy'!Q90+'FR-16(7)(v)-9 TRANS Cust'!Q90+'FR-16(7)(v)-11 DIST Demand'!Q90+'FR-16(7)(v)-12 DIST Energy'!Q90+'FR-16(7)(v)-13 DIST Cust'!Q90-'FR-16(7)(v)-14 TOTAL CLASS'!Q90","v":0},0,0]
[34,null,{"$f":"'FR-16(7)(v)-1 Functional'!C91","v":"ADJUSTMENT  "},{"$f":"'FR-16(7)(v)-1 Functional'!D91","v":"K209"},null,{"$f":"'FR-16(7)(v)-3 PROD Demand'!F91+'FR-16(7)(v)-4 PROD Energy'!F91+'FR-16(7)(v)-5 PROD Cust'!F91+'FR-16(7)(v)-7 TRANS Demand'!F91+'FR-16(7)(v)-8 TRANS Energy'!F91+'FR-16(7)(v)-9 TRANS Cust'!F91+'FR-16(7)(v)-11 DIST Demand'!F91+'FR-16(7)(v)-12 DIST Energy'!F91+'FR-16(7)(v)-13 DIST Cust'!F91-'FR-16(7)(v)-14 TOTAL CLASS'!F91","v":0},{"$f":"'FR-16(7)(v)-3 PROD Demand'!G91+'FR-16(7)(v)-4 PROD Energy'!G91+'FR-16(7)(v)-5 PROD Cust'!G91+'FR-16(7)(v)-7 TRANS Demand'!G91+'FR-16(7)(v)-8 TRANS Energy'!G91+'FR-16(7)(v)-9 TRANS Cust'!G91+'FR-16(7)(v)-11 DIST Demand'!G91+'FR-16(7)(v)-12 DIST Energy'!G91+'FR-16(7)(v)-13 DIST Cust'!G91-'FR-16(7)(v)-14 TOTAL CLASS'!G91","v":0},{"$f":"'FR-16(7)(v)-3 PROD Demand'!H91+'FR-16(7)(v)-4 PROD Energy'!H91+'FR-16(7)(v)-5 PROD Cust'!H91+'FR-16(7)(v)-7 TRANS Demand'!H91+'FR-16(7)(v)-8 TRANS Energy'!H91+'FR-16(7)(v)-9 TRANS Cust'!H91+'FR-16(7)(v)-11 DIST Demand'!H91+'FR-16(7)(v)-12 DIST Energy'!H91+'FR-16(7)(v)-13 DIST Cust'!H91-'FR-16(7)(v)-14 TOTAL CLASS'!H91","v":0},{"$f":"'FR-16(7)(v)-3 PROD Demand'!I91+'FR-16(7)(v)-4 PROD Energy'!I91+'FR-16(7)(v)-5 PROD Cust'!I91+'FR-16(7)(v)-7 TRANS Demand'!I91+'FR-16(7)(v)-8 TRANS Energy'!I91+'FR-16(7)(v)-9 TRANS Cust'!I91+'FR-16(7)(v)-11 DIST Demand'!I91+'FR-16(7)(v)-12 DIST Energy'!I91+'FR-16(7)(v)-13 DIST Cust'!I91-'FR-16(7)(v)-14 TOTAL CLASS'!I91","v":0},{"$f":"'FR-16(7)(v)-3 PROD Demand'!J91+'FR-16(7)(v)-4 PROD Energy'!J91+'FR-16(7)(v)-5 PROD Cust'!J91+'FR-16(7)(v)-7 TRANS Demand'!J91+'FR-16(7)(v)-8 TRANS Energy'!J91+'FR-16(7)(v)-9 TRANS Cust'!J91+'FR-16(7)(v)-11 DIST Demand'!J91+'FR-16(7)(v)-12 DIST Energy'!J91+'FR-16(7)(v)-13 DIST Cust'!J91-'FR-16(7)(v)-14 TOTAL CLASS'!J91","v":0},{"$f":"'FR-16(7)(v)-3 PROD Demand'!K91+'FR-16(7)(v)-4 PROD Energy'!K91+'FR-16(7)(v)-5 PROD Cust'!K91+'FR-16(7)(v)-7 TRANS Demand'!K91+'FR-16(7)(v)-8 TRANS Energy'!K91+'FR-16(7)(v)-9 TRANS Cust'!K91+'FR-16(7)(v)-11 DIST Demand'!K91+'FR-16(7)(v)-12 DIST Energy'!K91+'FR-16(7)(v)-13 DIST Cust'!K91-'FR-16(7)(v)-14 TOTAL CLASS'!K91","v":0},{"$f":"'FR-16(7)(v)-3 PROD Demand'!L91+'FR-16(7)(v)-4 PROD Energy'!L91+'FR-16(7)(v)-5 PROD Cust'!L91+'FR-16(7)(v)-7 TRANS Demand'!L91+'FR-16(7)(v)-8 TRANS Energy'!L91+'FR-16(7)(v)-9 TRANS Cust'!L91+'FR-16(7)(v)-11 DIST Demand'!L91+'FR-16(7)(v)-12 DIST Energy'!L91+'FR-16(7)(v)-13 DIST Cust'!L91-'FR-16(7)(v)-14 TOTAL CLASS'!L91","v":0},{"$f":"'FR-16(7)(v)-3 PROD Demand'!M91+'FR-16(7)(v)-4 PROD Energy'!M91+'FR-16(7)(v)-5 PROD Cust'!M91+'FR-16(7)(v)-7 TRANS Demand'!M91+'FR-16(7)(v)-8 TRANS Energy'!M91+'FR-16(7)(v)-9 TRANS Cust'!M91+'FR-16(7)(v)-11 DIST Demand'!M91+'FR-16(7)(v)-12 DIST Energy'!M91+'FR-16(7)(v)-13 DIST Cust'!M91-'FR-16(7)(v)-14 TOTAL CLASS'!M91","v":0},{"$f":"'FR-16(7)(v)-3 PROD Demand'!N91+'FR-16(7)(v)-4 PROD Energy'!N91+'FR-16(7)(v)-5 PROD Cust'!N91+'FR-16(7)(v)-7 TRANS Demand'!N91+'FR-16(7)(v)-8 TRANS Energy'!N91+'FR-16(7)(v)-9 TRANS Cust'!N91+'FR-16(7)(v)-11 DIST Demand'!N91+'FR-16(7)(v)-12 DIST Energy'!N91+'FR-16(7)(v)-13 DIST Cust'!N91-'FR-16(7)(v)-14 TOTAL CLASS'!N91","v":0},{"$f":"'FR-16(7)(v)-3 PROD Demand'!O91+'FR-16(7)(v)-4 PROD Energy'!O91+'FR-16(7)(v)-5 PROD Cust'!O91+'FR-16(7)(v)-7 TRANS Demand'!O91+'FR-16(7)(v)-8 TRANS Energy'!O91+'FR-16(7)(v)-9 TRANS Cust'!O91+'FR-16(7)(v)-11 DIST Demand'!O91+'FR-16(7)(v)-12 DIST Energy'!O91+'FR-16(7)(v)-13 DIST Cust'!O91-'FR-16(7)(v)-14 TOTAL CLASS'!O91","v":0},{"$f":"'FR-16(7)(v)-3 PROD Demand'!P91+'FR-16(7)(v)-4 PROD Energy'!P91+'FR-16(7)(v)-5 PROD Cust'!P91+'FR-16(7)(v)-7 TRANS Demand'!P91+'FR-16(7)(v)-8 TRANS Energy'!P91+'FR-16(7)(v)-9 TRANS Cust'!P91+'FR-16(7)(v)-11 DIST Demand'!P91+'FR-16(7)(v)-12 DIST Energy'!P91+'FR-16(7)(v)-13 DIST Cust'!P91-'FR-16(7)(v)-14 TOTAL CLASS'!P91","v":0},{"$f":"'FR-16(7)(v)-3 PROD Demand'!Q91+'FR-16(7)(v)-4 PROD Energy'!Q91+'FR-16(7)(v)-5 PROD Cust'!Q91+'FR-16(7)(v)-7 TRANS Demand'!Q91+'FR-16(7)(v)-8 TRANS Energy'!Q91+'FR-16(7)(v)-9 TRANS Cust'!Q91+'FR-16(7)(v)-11 DIST Demand'!Q91+'FR-16(7)(v)-12 DIST Energy'!Q91+'FR-16(7)(v)-13 DIST Cust'!Q91-'FR-16(7)(v)-14 TOTAL CLASS'!Q91","v":0},0,0]
[35,null,{"$f":"'FR-16(7)(v)-1 Functional'!C92","v":"CONSTRUCTION NOT CLASSIFIED"},{"$f":"'FR-16(7)(v)-1 Functional'!D92","v":"K209"},null,{"$f":"'FR-16(7)(v)-3 PROD Demand'!F92+'FR-16(7)(v)-4 PROD Energy'!F92+'FR-16(7)(v)-5 PROD Cust'!F92+'FR-16(7)(v)-7 TRANS Demand'!F92+'FR-16(7)(v)-8 TRANS Energy'!F92+'FR-16(7)(v)-9 TRANS Cust'!F92+'FR-16(7)(v)-11 DIST Demand'!F92+'FR-16(7)(v)-12 DIST Energy'!F92+'FR-16(7)(v)-13 DIST Cust'!F92-'FR-16(7)(v)-14 TOTAL CLASS'!F92","v":0},{"$f":"'FR-16(7)(v)-3 PROD Demand'!G92+'FR-16(7)(v)-4 PROD Energy'!G92+'FR-16(7)(v)-5 PROD Cust'!G92+'FR-16(7)(v)-7 TRANS Demand'!G92+'FR-16(7)(v)-8 TRANS Energy'!G92+'FR-16(7)(v)-9 TRANS Cust'!G92+'FR-16(7)(v)-11 DIST Demand'!G92+'FR-16(7)(v)-12 DIST Energy'!G92+'FR-16(7)(v)-13 DIST Cust'!G92-'FR-16(7)(v)-14 TOTAL CLASS'!G92","v":0},{"$f":"'FR-16(7)(v)-3 PROD Demand'!H92+'FR-16(7)(v)-4 PROD Energy'!H92+'FR-16(7)(v)-5 PROD Cust'!H92+'FR-16(7)(v)-7 TRANS Demand'!H92+'FR-16(7)(v)-8 TRANS Energy'!H92+'FR-16(7)(v)-9 TRANS Cust'!H92+'FR-16(7)(v)-11 DIST Demand'!H92+'FR-16(7)(v)-12 DIST Energy'!H92+'FR-16(7)(v)-13 DIST Cust'!H92-'FR-16(7)(v)-14 TOTAL CLASS'!H92","v":0},{"$f":"'FR-16(7)(v)-3 PROD Demand'!I92+'FR-16(7)(v)-4 PROD Energy'!I92+'FR-16(7)(v)-5 PROD Cust'!I92+'FR-16(7)(v)-7 TRANS Demand'!I92+'FR-16(7)(v)-8 TRANS Energy'!I92+'FR-16(7)(v)-9 TRANS Cust'!I92+'FR-16(7)(v)-11 DIST Demand'!I92+'FR-16(7)(v)-12 DIST Energy'!I92+'FR-16(7)(v)-13 DIST Cust'!I92-'FR-16(7)(v)-14 TOTAL CLASS'!I92","v":0},{"$f":"'FR-16(7)(v)-3 PROD Demand'!J92+'FR-16(7)(v)-4 PROD Energy'!J92+'FR-16(7)(v)-5 PROD Cust'!J92+'FR-16(7)(v)-7 TRANS Demand'!J92+'FR-16(7)(v)-8 TRANS Energy'!J92+'FR-16(7)(v)-9 TRANS Cust'!J92+'FR-16(7)(v)-11 DIST Demand'!J92+'FR-16(7)(v)-12 DIST Energy'!J92+'FR-16(7)(v)-13 DIST Cust'!J92-'FR-16(7)(v)-14 TOTAL CLASS'!J92","v":0},{"$f":"'FR-16(7)(v)-3 PROD Demand'!K92+'FR-16(7)(v)-4 PROD Energy'!K92+'FR-16(7)(v)-5 PROD Cust'!K92+'FR-16(7)(v)-7 TRANS Demand'!K92+'FR-16(7)(v)-8 TRANS Energy'!K92+'FR-16(7)(v)-9 TRANS Cust'!K92+'FR-16(7)(v)-11 DIST Demand'!K92+'FR-16(7)(v)-12 DIST Energy'!K92+'FR-16(7)(v)-13 DIST Cust'!K92-'FR-16(7)(v)-14 TOTAL CLASS'!K92","v":0},{"$f":"'FR-16(7)(v)-3 PROD Demand'!L92+'FR-16(7)(v)-4 PROD Energy'!L92+'FR-16(7)(v)-5 PROD Cust'!L92+'FR-16(7)(v)-7 TRANS Demand'!L92+'FR-16(7)(v)-8 TRANS Energy'!L92+'FR-16(7)(v)-9 TRANS Cust'!L92+'FR-16(7)(v)-11 DIST Demand'!L92+'FR-16(7)(v)-12 DIST Energy'!L92+'FR-16(7)(v)-13 DIST Cust'!L92-'FR-16(7)(v)-14 TOTAL CLASS'!L92","v":0},{"$f":"'FR-16(7)(v)-3 PROD Demand'!M92+'FR-16(7)(v)-4 PROD Energy'!M92+'FR-16(7)(v)-5 PROD Cust'!M92+'FR-16(7)(v)-7 TRANS Demand'!M92+'FR-16(7)(v)-8 TRANS Energy'!M92+'FR-16(7)(v)-9 TRANS Cust'!M92+'FR-16(7)(v)-11 DIST Demand'!M92+'FR-16(7)(v)-12 DIST Energy'!M92+'FR-16(7)(v)-13 DIST Cust'!M92-'FR-16(7)(v)-14 TOTAL CLASS'!M92","v":0},{"$f":"'FR-16(7)(v)-3 PROD Demand'!N92+'FR-16(7)(v)-4 PROD Energy'!N92+'FR-16(7)(v)-5 PROD Cust'!N92+'FR-16(7)(v)-7 TRANS Demand'!N92+'FR-16(7)(v)-8 TRANS Energy'!N92+'FR-16(7)(v)-9 TRANS Cust'!N92+'FR-16(7)(v)-11 DIST Demand'!N92+'FR-16(7)(v)-12 DIST Energy'!N92+'FR-16(7)(v)-13 DIST Cust'!N92-'FR-16(7)(v)-14 TOTAL CLASS'!N92","v":0},{"$f":"'FR-16(7)(v)-3 PROD Demand'!O92+'FR-16(7)(v)-4 PROD Energy'!O92+'FR-16(7)(v)-5 PROD Cust'!O92+'FR-16(7)(v)-7 TRANS Demand'!O92+'FR-16(7)(v)-8 TRANS Energy'!O92+'FR-16(7)(v)-9 TRANS Cust'!O92+'FR-16(7)(v)-11 DIST Demand'!O92+'FR-16(7)(v)-12 DIST Energy'!O92+'FR-16(7)(v)-13 DIST Cust'!O92-'FR-16(7)(v)-14 TOTAL CLASS'!O92","v":0},{"$f":"'FR-16(7)(v)-3 PROD Demand'!P92+'FR-16(7)(v)-4 PROD Energy'!P92+'FR-16(7)(v)-5 PROD Cust'!P92+'FR-16(7)(v)-7 TRANS Demand'!P92+'FR-16(7)(v)-8 TRANS Energy'!P92+'FR-16(7)(v)-9 TRANS Cust'!P92+'FR-16(7)(v)-11 DIST Demand'!P92+'FR-16(7)(v)-12 DIST Energy'!P92+'FR-16(7)(v)-13 DIST Cust'!P92-'FR-16(7)(v)-14 TOTAL CLASS'!P92","v":0},{"$f":"'FR-16(7)(v)-3 PROD Demand'!Q92+'FR-16(7)(v)-4 PROD Energy'!Q92+'FR-16(7)(v)-5 PROD Cust'!Q92+'FR-16(7)(v)-7 TRANS Demand'!Q92+'FR-16(7)(v)-8 TRANS Energy'!Q92+'FR-16(7)(v)-9 TRANS Cust'!Q92+'FR-16(7)(v)-11 DIST Demand'!Q92+'FR-16(7)(v)-12 DIST Energy'!Q92+'FR-16(7)(v)-13 DIST Cust'!Q92-'FR-16(7)(v)-14 TOTAL CLASS'!Q92","v":0},0,0]
[36,null,{"$f":"'FR-16(7)(v)-1 Functional'!C93","v":"RWIP"},{"$f":"'FR-16(7)(v)-1 Functional'!D93","v":"K215"},null,{"$f":"'FR-16(7)(v)-3 PROD Demand'!F93+'FR-16(7)(v)-4 PROD Energy'!F93+'FR-16(7)(v)-5 PROD Cust'!F93+'FR-16(7)(v)-7 TRANS Demand'!F93+'FR-16(7)(v)-8 TRANS Energy'!F93+'FR-16(7)(v)-9 TRANS Cust'!F93+'FR-16(7)(v)-11 DIST Demand'!F93+'FR-16(7)(v)-12 DIST Energy'!F93+'FR-16(7)(v)-13 DIST Cust'!F93-'FR-16(7)(v)-14 TOTAL CLASS'!F93","v":0},{"$f":"'FR-16(7)(v)-3 PROD Demand'!G93+'FR-16(7)(v)-4 PROD Energy'!G93+'FR-16(7)(v)-5 PROD Cust'!G93+'FR-16(7)(v)-7 TRANS Demand'!G93+'FR-16(7)(v)-8 TRANS Energy'!G93+'FR-16(7)(v)-9 TRANS Cust'!G93+'FR-16(7)(v)-11 DIST Demand'!G93+'FR-16(7)(v)-12 DIST Energy'!G93+'FR-16(7)(v)-13 DIST Cust'!G93-'FR-16(7)(v)-14 TOTAL CLASS'!G93","v":0},{"$f":"'FR-16(7)(v)-3 PROD Demand'!H93+'FR-16(7)(v)-4 PROD Energy'!H93+'FR-16(7)(v)-5 PROD Cust'!H93+'FR-16(7)(v)-7 TRANS Demand'!H93+'FR-16(7)(v)-8 TRANS Energy'!H93+'FR-16(7)(v)-9 TRANS Cust'!H93+'FR-16(7)(v)-11 DIST Demand'!H93+'FR-16(7)(v)-12 DIST Energy'!H93+'FR-16(7)(v)-13 DIST Cust'!H93-'FR-16(7)(v)-14 TOTAL CLASS'!H93","v":0},{"$f":"'FR-16(7)(v)-3 PROD Demand'!I93+'FR-16(7)(v)-4 PROD Energy'!I93+'FR-16(7)(v)-5 PROD Cust'!I93+'FR-16(7)(v)-7 TRANS Demand'!I93+'FR-16(7)(v)-8 TRANS Energy'!I93+'FR-16(7)(v)-9 TRANS Cust'!I93+'FR-16(7)(v)-11 DIST Demand'!I93+'FR-16(7)(v)-12 DIST Energy'!I93+'FR-16(7)(v)-13 DIST Cust'!I93-'FR-16(7)(v)-14 TOTAL CLASS'!I93","v":0},{"$f":"'FR-16(7)(v)-3 PROD Demand'!J93+'FR-16(7)(v)-4 PROD Energy'!J93+'FR-16(7)(v)-5 PROD Cust'!J93+'FR-16(7)(v)-7 TRANS Demand'!J93+'FR-16(7)(v)-8 TRANS Energy'!J93+'FR-16(7)(v)-9 TRANS Cust'!J93+'FR-16(7)(v)-11 DIST Demand'!J93+'FR-16(7)(v)-12 DIST Energy'!J93+'FR-16(7)(v)-13 DIST Cust'!J93-'FR-16(7)(v)-14 TOTAL CLASS'!J93","v":0},{"$f":"'FR-16(7)(v)-3 PROD Demand'!K93+'FR-16(7)(v)-4 PROD Energy'!K93+'FR-16(7)(v)-5 PROD Cust'!K93+'FR-16(7)(v)-7 TRANS Demand'!K93+'FR-16(7)(v)-8 TRANS Energy'!K93+'FR-16(7)(v)-9 TRANS Cust'!K93+'FR-16(7)(v)-11 DIST Demand'!K93+'FR-16(7)(v)-12 DIST Energy'!K93+'FR-16(7)(v)-13 DIST Cust'!K93-'FR-16(7)(v)-14 TOTAL CLASS'!K93","v":0}]
[37,null,{"$f":"'FR-16(7)(v)-1 Functional'!C94","v":"  DISTRIBUTION PLANT IN SERVICE"},null,null,{"$f":"SUM(F73:F93)","v":0},{"$f":"SUM(G73:G92)","v":0},{"$f":"SUM(H73:H92)","v":0},{"$f":"SUM(I73:I92)","v":0},{"$f":"SUM(J73:J92)","v":0},0,0,0,0,0,0,{"$f":"SUM(Q73:Q92)","v":0},{"$f":"SUM(R73:R92)","v":0},{"$f":"SUM(S73:S92)","v":0}]
[38]
[39,"TOTAL TRANS & DIST PLANT",null,null,null,{"$f":"F94+F68","v":0},{"$f":"G94+G68","v":0},{"$f":"H94+H68","v":0},{"$f":"I94+I68","v":0},{"$f":"J94+J68","v":0},0,0,0,0,0,0,{"$f":"Q94+$Q$68","v":0},{"$f":"R94+R68","v":0},{"$f":"S94+S68","v":0}]
[40,"TOTAL GROSS PTD PLANT",null,null,null,{"$f":"F94+F70","v":0},{"$f":"G94+G70","v":0},{"$f":"H94+H70","v":0},{"$f":"I94+I70","v":0},{"$f":"J94+J70","v":0},0,0,0,0,0,0,{"$f":"Q94+Q70","v":0},{"$f":"R94+R70","v":0},{"$f":"S94+S70","v":0}]
[41]
[42,"GENERAL & INTANGIBLE PLANT"]
[43,null,{"$f":"'FR-16(7)(v)-1 Functional'!C100","v":"PRODUCTION - DEMAND"},{"$f":"'FR-16(7)(v)-1 Functional'!D100","v":"K201"},null,{"$f":"'FR-16(7)(v)-3 PROD Demand'!F100+'FR-16(7)(v)-4 PROD Energy'!F100+'FR-16(7)(v)-5 PROD Cust'!F100+'FR-16(7)(v)-7 TRANS Demand'!F100+'FR-16(7)(v)-8 TRANS Energy'!F100+'FR-16(7)(v)-9 TRANS Cust'!F100+'FR-16(7)(v)-11 DIST Demand'!F100+'FR-16(7)(v)-12 DIST Energy'!F100+'FR-16(7)(v)-13 DIST Cust'!F100-'FR-16(7)(v)-14 TOTAL CLASS'!F100","v":0},{"$f":"'FR-16(7)(v)-3 PROD Demand'!G100+'FR-16(7)(v)-4 PROD Energy'!G100+'FR-16(7)(v)-5 PROD Cust'!G100+'FR-16(7)(v)-7 TRANS Demand'!G100+'FR-16(7)(v)-8 TRANS Energy'!G100+'FR-16(7)(v)-9 TRANS Cust'!G100+'FR-16(7)(v)-11 DIST Demand'!G100+'FR-16(7)(v)-12 DIST Energy'!G100+'FR-16(7)(v)-13 DIST Cust'!G100-'FR-16(7)(v)-14 TOTAL CLASS'!G100","v":0},{"$f":"'FR-16(7)(v)-3 PROD Demand'!H100+'FR-16(7)(v)-4 PROD Energy'!H100+'FR-16(7)(v)-5 PROD Cust'!H100+'FR-16(7)(v)-7 TRANS Demand'!H100+'FR-16(7)(v)-8 TRANS Energy'!H100+'FR-16(7)(v)-9 TRANS Cust'!H100+'FR-16(7)(v)-11 DIST Demand'!H100+'FR-16(7)(v)-12 DIST Energy'!H100+'FR-16(7)(v)-13 DIST Cust'!H100-'FR-16(7)(v)-14 TOTAL CLASS'!H100","v":0},{"$f":"'FR-16(7)(v)-3 PROD Demand'!I100+'FR-16(7)(v)-4 PROD Energy'!I100+'FR-16(7)(v)-5 PROD Cust'!I100+'FR-16(7)(v)-7 TRANS Demand'!I100+'FR-16(7)(v)-8 TRANS Energy'!I100+'FR-16(7)(v)-9 TRANS Cust'!I100+'FR-16(7)(v)-11 DIST Demand'!I100+'FR-16(7)(v)-12 DIST Energy'!I100+'FR-16(7)(v)-13 DIST Cust'!I100-'FR-16(7)(v)-14 TOTAL CLASS'!I100","v":0},{"$f":"'FR-16(7)(v)-3 PROD Demand'!J100+'FR-16(7)(v)-4 PROD Energy'!J100+'FR-16(7)(v)-5 PROD Cust'!J100+'FR-16(7)(v)-7 TRANS Demand'!J100+'FR-16(7)(v)-8 TRANS Energy'!J100+'FR-16(7)(v)-9 TRANS Cust'!J100+'FR-16(7)(v)-11 DIST Demand'!J100+'FR-16(7)(v)-12 DIST Energy'!J100+'FR-16(7)(v)-13 DIST Cust'!J100-'FR-16(7)(v)-14 TOTAL CLASS'!J100","v":0},{"$f":"'FR-16(7)(v)-3 PROD Demand'!K100+'FR-16(7)(v)-4 PROD Energy'!K100+'FR-16(7)(v)-5 PROD Cust'!K100+'FR-16(7)(v)-7 TRANS Demand'!K100+'FR-16(7)(v)-8 TRANS Energy'!K100+'FR-16(7)(v)-9 TRANS Cust'!K100+'FR-16(7)(v)-11 DIST Demand'!K100+'FR-16(7)(v)-12 DIST Energy'!K100+'FR-16(7)(v)-13 DIST Cust'!K100-'FR-16(7)(v)-14 TOTAL CLASS'!K100","v":0},{"$f":"'FR-16(7)(v)-3 PROD Demand'!L100+'FR-16(7)(v)-4 PROD Energy'!L100+'FR-16(7)(v)-5 PROD Cust'!L100+'FR-16(7)(v)-7 TRANS Demand'!L100+'FR-16(7)(v)-8 TRANS Energy'!L100+'FR-16(7)(v)-9 TRANS Cust'!L100+'FR-16(7)(v)-11 DIST Demand'!L100+'FR-16(7)(v)-12 DIST Energy'!L100+'FR-16(7)(v)-13 DIST Cust'!L100-'FR-16(7)(v)-14 TOTAL CLASS'!L100","v":0},{"$f":"'FR-16(7)(v)-3 PROD Demand'!M100+'FR-16(7)(v)-4 PROD Energy'!M100+'FR-16(7)(v)-5 PROD Cust'!M100+'FR-16(7)(v)-7 TRANS Demand'!M100+'FR-16(7)(v)-8 TRANS Energy'!M100+'FR-16(7)(v)-9 TRANS Cust'!M100+'FR-16(7)(v)-11 DIST Demand'!M100+'FR-16(7)(v)-12 DIST Energy'!M100+'FR-16(7)(v)-13 DIST Cust'!M100-'FR-16(7)(v)-14 TOTAL CLASS'!M100","v":0},{"$f":"'FR-16(7)(v)-3 PROD Demand'!N100+'FR-16(7)(v)-4 PROD Energy'!N100+'FR-16(7)(v)-5 PROD Cust'!N100+'FR-16(7)(v)-7 TRANS Demand'!N100+'FR-16(7)(v)-8 TRANS Energy'!N100+'FR-16(7)(v)-9 TRANS Cust'!N100+'FR-16(7)(v)-11 DIST Demand'!N100+'FR-16(7)(v)-12 DIST Energy'!N100+'FR-16(7)(v)-13 DIST Cust'!N100-'FR-16(7)(v)-14 TOTAL CLASS'!N100","v":0},{"$f":"'FR-16(7)(v)-3 PROD Demand'!O100+'FR-16(7)(v)-4 PROD Energy'!O100+'FR-16(7)(v)-5 PROD Cust'!O100+'FR-16(7)(v)-7 TRANS Demand'!O100+'FR-16(7)(v)-8 TRANS Energy'!O100+'FR-16(7)(v)-9 TRANS Cust'!O100+'FR-16(7)(v)-11 DIST Demand'!O100+'FR-16(7)(v)-12 DIST Energy'!O100+'FR-16(7)(v)-13 DIST Cust'!O100-'FR-16(7)(v)-14 TOTAL CLASS'!O100","v":0},{"$f":"'FR-16(7)(v)-3 PROD Demand'!P100+'FR-16(7)(v)-4 PROD Energy'!P100+'FR-16(7)(v)-5 PROD Cust'!P100+'FR-16(7)(v)-7 TRANS Demand'!P100+'FR-16(7)(v)-8 TRANS Energy'!P100+'FR-16(7)(v)-9 TRANS Cust'!P100+'FR-16(7)(v)-11 DIST Demand'!P100+'FR-16(7)(v)-12 DIST Energy'!P100+'FR-16(7)(v)-13 DIST Cust'!P100-'FR-16(7)(v)-14 TOTAL CLASS'!P100","v":0},{"$f":"'FR-16(7)(v)-3 PROD Demand'!Q100+'FR-16(7)(v)-4 PROD Energy'!Q100+'FR-16(7)(v)-5 PROD Cust'!Q100+'FR-16(7)(v)-7 TRANS Demand'!Q100+'FR-16(7)(v)-8 TRANS Energy'!Q100+'FR-16(7)(v)-9 TRANS Cust'!Q100+'FR-16(7)(v)-11 DIST Demand'!Q100+'FR-16(7)(v)-12 DIST Energy'!Q100+'FR-16(7)(v)-13 DIST Cust'!Q100-'FR-16(7)(v)-14 TOTAL CLASS'!Q100","v":0},{"$f":"SUM(G100:Q100)","v":0},{"$f":"F100-R100","v":0}]
[44,null,{"$f":"'FR-16(7)(v)-1 Functional'!C101","v":"PRODUCTION - ENERGY"},{"$f":"'FR-16(7)(v)-1 Functional'!D101","v":"K301"},null,{"$f":"'FR-16(7)(v)-3 PROD Demand'!F101+'FR-16(7)(v)-4 PROD Energy'!F101+'FR-16(7)(v)-5 PROD Cust'!F101+'FR-16(7)(v)-7 TRANS Demand'!F101+'FR-16(7)(v)-8 TRANS Energy'!F101+'FR-16(7)(v)-9 TRANS Cust'!F101+'FR-16(7)(v)-11 DIST Demand'!F101+'FR-16(7)(v)-12 DIST Energy'!F101+'FR-16(7)(v)-13 DIST Cust'!F101-'FR-16(7)(v)-14 TOTAL CLASS'!F101","v":0},{"$f":"'FR-16(7)(v)-3 PROD Demand'!G101+'FR-16(7)(v)-4 PROD Energy'!G101+'FR-16(7)(v)-5 PROD Cust'!G101+'FR-16(7)(v)-7 TRANS Demand'!G101+'FR-16(7)(v)-8 TRANS Energy'!G101+'FR-16(7)(v)-9 TRANS Cust'!G101+'FR-16(7)(v)-11 DIST Demand'!G101+'FR-16(7)(v)-12 DIST Energy'!G101+'FR-16(7)(v)-13 DIST Cust'!G101-'FR-16(7)(v)-14 TOTAL CLASS'!G101","v":0},{"$f":"'FR-16(7)(v)-3 PROD Demand'!H101+'FR-16(7)(v)-4 PROD Energy'!H101+'FR-16(7)(v)-5 PROD Cust'!H101+'FR-16(7)(v)-7 TRANS Demand'!H101+'FR-16(7)(v)-8 TRANS Energy'!H101+'FR-16(7)(v)-9 TRANS Cust'!H101+'FR-16(7)(v)-11 DIST Demand'!H101+'FR-16(7)(v)-12 DIST Energy'!H101+'FR-16(7)(v)-13 DIST Cust'!H101-'FR-16(7)(v)-14 TOTAL CLASS'!H101","v":0},{"$f":"'FR-16(7)(v)-3 PROD Demand'!I101+'FR-16(7)(v)-4 PROD Energy'!I101+'FR-16(7)(v)-5 PROD Cust'!I101+'FR-16(7)(v)-7 TRANS Demand'!I101+'FR-16(7)(v)-8 TRANS Energy'!I101+'FR-16(7)(v)-9 TRANS Cust'!I101+'FR-16(7)(v)-11 DIST Demand'!I101+'FR-16(7)(v)-12 DIST Energy'!I101+'FR-16(7)(v)-13 DIST Cust'!I101-'FR-16(7)(v)-14 TOTAL CLASS'!I101","v":0},{"$f":"'FR-16(7)(v)-3 PROD Demand'!J101+'FR-16(7)(v)-4 PROD Energy'!J101+'FR-16(7)(v)-5 PROD Cust'!J101+'FR-16(7)(v)-7 TRANS Demand'!J101+'FR-16(7)(v)-8 TRANS Energy'!J101+'FR-16(7)(v)-9 TRANS Cust'!J101+'FR-16(7)(v)-11 DIST Demand'!J101+'FR-16(7)(v)-12 DIST Energy'!J101+'FR-16(7)(v)-13 DIST Cust'!J101-'FR-16(7)(v)-14 TOTAL CLASS'!J101","v":0},{"$f":"'FR-16(7)(v)-3 PROD Demand'!K101+'FR-16(7)(v)-4 PROD Energy'!K101+'FR-16(7)(v)-5 PROD Cust'!K101+'FR-16(7)(v)-7 TRANS Demand'!K101+'FR-16(7)(v)-8 TRANS Energy'!K101+'FR-16(7)(v)-9 TRANS Cust'!K101+'FR-16(7)(v)-11 DIST Demand'!K101+'FR-16(7)(v)-12 DIST Energy'!K101+'FR-16(7)(v)-13 DIST Cust'!K101-'FR-16(7)(v)-14 TOTAL CLASS'!K101","v":0},{"$f":"'FR-16(7)(v)-3 PROD Demand'!L101+'FR-16(7)(v)-4 PROD Energy'!L101+'FR-16(7)(v)-5 PROD Cust'!L101+'FR-16(7)(v)-7 TRANS Demand'!L101+'FR-16(7)(v)-8 TRANS Energy'!L101+'FR-16(7)(v)-9 TRANS Cust'!L101+'FR-16(7)(v)-11 DIST Demand'!L101+'FR-16(7)(v)-12 DIST Energy'!L101+'FR-16(7)(v)-13 DIST Cust'!L101-'FR-16(7)(v)-14 TOTAL CLASS'!L101","v":0},{"$f":"'FR-16(7)(v)-3 PROD Demand'!M101+'FR-16(7)(v)-4 PROD Energy'!M101+'FR-16(7)(v)-5 PROD Cust'!M101+'FR-16(7)(v)-7 TRANS Demand'!M101+'FR-16(7)(v)-8 TRANS Energy'!M101+'FR-16(7)(v)-9 TRANS Cust'!M101+'FR-16(7)(v)-11 DIST Demand'!M101+'FR-16(7)(v)-12 DIST Energy'!M101+'FR-16(7)(v)-13 DIST Cust'!M101-'FR-16(7)(v)-14 TOTAL CLASS'!M101","v":0},{"$f":"'FR-16(7)(v)-3 PROD Demand'!N101+'FR-16(7)(v)-4 PROD Energy'!N101+'FR-16(7)(v)-5 PROD Cust'!N101+'FR-16(7)(v)-7 TRANS Demand'!N101+'FR-16(7)(v)-8 TRANS Energy'!N101+'FR-16(7)(v)-9 TRANS Cust'!N101+'FR-16(7)(v)-11 DIST Demand'!N101+'FR-16(7)(v)-12 DIST Energy'!N101+'FR-16(7)(v)-13 DIST Cust'!N101-'FR-16(7)(v)-14 TOTAL CLASS'!N101","v":0},{"$f":"'FR-16(7)(v)-3 PROD Demand'!O101+'FR-16(7)(v)-4 PROD Energy'!O101+'FR-16(7)(v)-5 PROD Cust'!O101+'FR-16(7)(v)-7 TRANS Demand'!O101+'FR-16(7)(v)-8 TRANS Energy'!O101+'FR-16(7)(v)-9 TRANS Cust'!O101+'FR-16(7)(v)-11 DIST Demand'!O101+'FR-16(7)(v)-12 DIST Energy'!O101+'FR-16(7)(v)-13 DIST Cust'!O101-'FR-16(7)(v)-14 TOTAL CLASS'!O101","v":0},{"$f":"'FR-16(7)(v)-3 PROD Demand'!P101+'FR-16(7)(v)-4 PROD Energy'!P101+'FR-16(7)(v)-5 PROD Cust'!P101+'FR-16(7)(v)-7 TRANS Demand'!P101+'FR-16(7)(v)-8 TRANS Energy'!P101+'FR-16(7)(v)-9 TRANS Cust'!P101+'FR-16(7)(v)-11 DIST Demand'!P101+'FR-16(7)(v)-12 DIST Energy'!P101+'FR-16(7)(v)-13 DIST Cust'!P101-'FR-16(7)(v)-14 TOTAL CLASS'!P101","v":0},{"$f":"'FR-16(7)(v)-3 PROD Demand'!Q101+'FR-16(7)(v)-4 PROD Energy'!Q101+'FR-16(7)(v)-5 PROD Cust'!Q101+'FR-16(7)(v)-7 TRANS Demand'!Q101+'FR-16(7)(v)-8 TRANS Energy'!Q101+'FR-16(7)(v)-9 TRANS Cust'!Q101+'FR-16(7)(v)-11 DIST Demand'!Q101+'FR-16(7)(v)-12 DIST Energy'!Q101+'FR-16(7)(v)-13 DIST Cust'!Q101-'FR-16(7)(v)-14 TOTAL CLASS'!Q101","v":0},0,0]
[45,null,{"$f":"'FR-16(7)(v)-1 Functional'!C102","v":"TRANSMISSION"},{"$f":"'FR-16(7)(v)-1 Functional'!D102","v":"K202"},null,{"$f":"'FR-16(7)(v)-3 PROD Demand'!F102+'FR-16(7)(v)-4 PROD Energy'!F102+'FR-16(7)(v)-5 PROD Cust'!F102+'FR-16(7)(v)-7 TRANS Demand'!F102+'FR-16(7)(v)-8 TRANS Energy'!F102+'FR-16(7)(v)-9 TRANS Cust'!F102+'FR-16(7)(v)-11 DIST Demand'!F102+'FR-16(7)(v)-12 DIST Energy'!F102+'FR-16(7)(v)-13 DIST Cust'!F102-'FR-16(7)(v)-14 TOTAL CLASS'!F102","v":0},{"$f":"'FR-16(7)(v)-3 PROD Demand'!G102+'FR-16(7)(v)-4 PROD Energy'!G102+'FR-16(7)(v)-5 PROD Cust'!G102+'FR-16(7)(v)-7 TRANS Demand'!G102+'FR-16(7)(v)-8 TRANS Energy'!G102+'FR-16(7)(v)-9 TRANS Cust'!G102+'FR-16(7)(v)-11 DIST Demand'!G102+'FR-16(7)(v)-12 DIST Energy'!G102+'FR-16(7)(v)-13 DIST Cust'!G102-'FR-16(7)(v)-14 TOTAL CLASS'!G102","v":0},{"$f":"'FR-16(7)(v)-3 PROD Demand'!H102+'FR-16(7)(v)-4 PROD Energy'!H102+'FR-16(7)(v)-5 PROD Cust'!H102+'FR-16(7)(v)-7 TRANS Demand'!H102+'FR-16(7)(v)-8 TRANS Energy'!H102+'FR-16(7)(v)-9 TRANS Cust'!H102+'FR-16(7)(v)-11 DIST Demand'!H102+'FR-16(7)(v)-12 DIST Energy'!H102+'FR-16(7)(v)-13 DIST Cust'!H102-'FR-16(7)(v)-14 TOTAL CLASS'!H102","v":0},{"$f":"'FR-16(7)(v)-3 PROD Demand'!I102+'FR-16(7)(v)-4 PROD Energy'!I102+'FR-16(7)(v)-5 PROD Cust'!I102+'FR-16(7)(v)-7 TRANS Demand'!I102+'FR-16(7)(v)-8 TRANS Energy'!I102+'FR-16(7)(v)-9 TRANS Cust'!I102+'FR-16(7)(v)-11 DIST Demand'!I102+'FR-16(7)(v)-12 DIST Energy'!I102+'FR-16(7)(v)-13 DIST Cust'!I102-'FR-16(7)(v)-14 TOTAL CLASS'!I102","v":0},{"$f":"'FR-16(7)(v)-3 PROD Demand'!J102+'FR-16(7)(v)-4 PROD Energy'!J102+'FR-16(7)(v)-5 PROD Cust'!J102+'FR-16(7)(v)-7 TRANS Demand'!J102+'FR-16(7)(v)-8 TRANS Energy'!J102+'FR-16(7)(v)-9 TRANS Cust'!J102+'FR-16(7)(v)-11 DIST Demand'!J102+'FR-16(7)(v)-12 DIST Energy'!J102+'FR-16(7)(v)-13 DIST Cust'!J102-'FR-16(7)(v)-14 TOTAL CLASS'!J102","v":0},{"$f":"'FR-16(7)(v)-3 PROD Demand'!K102+'FR-16(7)(v)-4 PROD Energy'!K102+'FR-16(7)(v)-5 PROD Cust'!K102+'FR-16(7)(v)-7 TRANS Demand'!K102+'FR-16(7)(v)-8 TRANS Energy'!K102+'FR-16(7)(v)-9 TRANS Cust'!K102+'FR-16(7)(v)-11 DIST Demand'!K102+'FR-16(7)(v)-12 DIST Energy'!K102+'FR-16(7)(v)-13 DIST Cust'!K102-'FR-16(7)(v)-14 TOTAL CLASS'!K102","v":0},{"$f":"'FR-16(7)(v)-3 PROD Demand'!L102+'FR-16(7)(v)-4 PROD Energy'!L102+'FR-16(7)(v)-5 PROD Cust'!L102+'FR-16(7)(v)-7 TRANS Demand'!L102+'FR-16(7)(v)-8 TRANS Energy'!L102+'FR-16(7)(v)-9 TRANS Cust'!L102+'FR-16(7)(v)-11 DIST Demand'!L102+'FR-16(7)(v)-12 DIST Energy'!L102+'FR-16(7)(v)-13 DIST Cust'!L102-'FR-16(7)(v)-14 TOTAL CLASS'!L102","v":0},{"$f":"'FR-16(7)(v)-3 PROD Demand'!M102+'FR-16(7)(v)-4 PROD Energy'!M102+'FR-16(7)(v)-5 PROD Cust'!M102+'FR-16(7)(v)-7 TRANS Demand'!M102+'FR-16(7)(v)-8 TRANS Energy'!M102+'FR-16(7)(v)-9 TRANS Cust'!M102+'FR-16(7)(v)-11 DIST Demand'!M102+'FR-16(7)(v)-12 DIST Energy'!M102+'FR-16(7)(v)-13 DIST Cust'!M102-'FR-16(7)(v)-14 TOTAL CLASS'!M102","v":0},{"$f":"'FR-16(7)(v)-3 PROD Demand'!N102+'FR-16(7)(v)-4 PROD Energy'!N102+'FR-16(7)(v)-5 PROD Cust'!N102+'FR-16(7)(v)-7 TRANS Demand'!N102+'FR-16(7)(v)-8 TRANS Energy'!N102+'FR-16(7)(v)-9 TRANS Cust'!N102+'FR-16(7)(v)-11 DIST Demand'!N102+'FR-16(7)(v)-12 DIST Energy'!N102+'FR-16(7)(v)-13 DIST Cust'!N102-'FR-16(7)(v)-14 TOTAL CLASS'!N102","v":0},{"$f":"'FR-16(7)(v)-3 PROD Demand'!O102+'FR-16(7)(v)-4 PROD Energy'!O102+'FR-16(7)(v)-5 PROD Cust'!O102+'FR-16(7)(v)-7 TRANS Demand'!O102+'FR-16(7)(v)-8 TRANS Energy'!O102+'FR-16(7)(v)-9 TRANS Cust'!O102+'FR-16(7)(v)-11 DIST Demand'!O102+'FR-16(7)(v)-12 DIST Energy'!O102+'FR-16(7)(v)-13 DIST Cust'!O102-'FR-16(7)(v)-14 TOTAL CLASS'!O102","v":0},{"$f":"'FR-16(7)(v)-3 PROD Demand'!P102+'FR-16(7)(v)-4 PROD Energy'!P102+'FR-16(7)(v)-5 PROD Cust'!P102+'FR-16(7)(v)-7 TRANS Demand'!P102+'FR-16(7)(v)-8 TRANS Energy'!P102+'FR-16(7)(v)-9 TRANS Cust'!P102+'FR-16(7)(v)-11 DIST Demand'!P102+'FR-16(7)(v)-12 DIST Energy'!P102+'FR-16(7)(v)-13 DIST Cust'!P102-'FR-16(7)(v)-14 TOTAL CLASS'!P102","v":0},{"$f":"'FR-16(7)(v)-3 PROD Demand'!Q102+'FR-16(7)(v)-4 PROD Energy'!Q102+'FR-16(7)(v)-5 PROD Cust'!Q102+'FR-16(7)(v)-7 TRANS Demand'!Q102+'FR-16(7)(v)-8 TRANS Energy'!Q102+'FR-16(7)(v)-9 TRANS Cust'!Q102+'FR-16(7)(v)-11 DIST Demand'!Q102+'FR-16(7)(v)-12 DIST Energy'!Q102+'FR-16(7)(v)-13 DIST Cust'!Q102-'FR-16(7)(v)-14 TOTAL CLASS'!Q102","v":0},0,0]
[46,null,{"$f":"'FR-16(7)(v)-1 Functional'!C103","v":"DISTRIBUTION - DEMAND"},{"$f":"'FR-16(7)(v)-1 Functional'!D103","v":"K201"},null,{"$f":"'FR-16(7)(v)-3 PROD Demand'!F103+'FR-16(7)(v)-4 PROD Energy'!F103+'FR-16(7)(v)-5 PROD Cust'!F103+'FR-16(7)(v)-7 TRANS Demand'!F103+'FR-16(7)(v)-8 TRANS Energy'!F103+'FR-16(7)(v)-9 TRANS Cust'!F103+'FR-16(7)(v)-11 DIST Demand'!F103+'FR-16(7)(v)-12 DIST Energy'!F103+'FR-16(7)(v)-13 DIST Cust'!F103-'FR-16(7)(v)-14 TOTAL CLASS'!F103","v":0},{"$f":"'FR-16(7)(v)-3 PROD Demand'!G103+'FR-16(7)(v)-4 PROD Energy'!G103+'FR-16(7)(v)-5 PROD Cust'!G103+'FR-16(7)(v)-7 TRANS Demand'!G103+'FR-16(7)(v)-8 TRANS Energy'!G103+'FR-16(7)(v)-9 TRANS Cust'!G103+'FR-16(7)(v)-11 DIST Demand'!G103+'FR-16(7)(v)-12 DIST Energy'!G103+'FR-16(7)(v)-13 DIST Cust'!G103-'FR-16(7)(v)-14 TOTAL CLASS'!G103","v":0},{"$f":"'FR-16(7)(v)-3 PROD Demand'!H103+'FR-16(7)(v)-4 PROD Energy'!H103+'FR-16(7)(v)-5 PROD Cust'!H103+'FR-16(7)(v)-7 TRANS Demand'!H103+'FR-16(7)(v)-8 TRANS Energy'!H103+'FR-16(7)(v)-9 TRANS Cust'!H103+'FR-16(7)(v)-11 DIST Demand'!H103+'FR-16(7)(v)-12 DIST Energy'!H103+'FR-16(7)(v)-13 DIST Cust'!H103-'FR-16(7)(v)-14 TOTAL CLASS'!H103","v":0},{"$f":"'FR-16(7)(v)-3 PROD Demand'!I103+'FR-16(7)(v)-4 PROD Energy'!I103+'FR-16(7)(v)-5 PROD Cust'!I103+'FR-16(7)(v)-7 TRANS Demand'!I103+'FR-16(7)(v)-8 TRANS Energy'!I103+'FR-16(7)(v)-9 TRANS Cust'!I103+'FR-16(7)(v)-11 DIST Demand'!I103+'FR-16(7)(v)-12 DIST Energy'!I103+'FR-16(7)(v)-13 DIST Cust'!I103-'FR-16(7)(v)-14 TOTAL CLASS'!I103","v":0},{"$f":"'FR-16(7)(v)-3 PROD Demand'!J103+'FR-16(7)(v)-4 PROD Energy'!J103+'FR-16(7)(v)-5 PROD Cust'!J103+'FR-16(7)(v)-7 TRANS Demand'!J103+'FR-16(7)(v)-8 TRANS Energy'!J103+'FR-16(7)(v)-9 TRANS Cust'!J103+'FR-16(7)(v)-11 DIST Demand'!J103+'FR-16(7)(v)-12 DIST Energy'!J103+'FR-16(7)(v)-13 DIST Cust'!J103-'FR-16(7)(v)-14 TOTAL CLASS'!J103","v":0},{"$f":"'FR-16(7)(v)-3 PROD Demand'!K103+'FR-16(7)(v)-4 PROD Energy'!K103+'FR-16(7)(v)-5 PROD Cust'!K103+'FR-16(7)(v)-7 TRANS Demand'!K103+'FR-16(7)(v)-8 TRANS Energy'!K103+'FR-16(7)(v)-9 TRANS Cust'!K103+'FR-16(7)(v)-11 DIST Demand'!K103+'FR-16(7)(v)-12 DIST Energy'!K103+'FR-16(7)(v)-13 DIST Cust'!K103-'FR-16(7)(v)-14 TOTAL CLASS'!K103","v":0},{"$f":"'FR-16(7)(v)-3 PROD Demand'!L103+'FR-16(7)(v)-4 PROD Energy'!L103+'FR-16(7)(v)-5 PROD Cust'!L103+'FR-16(7)(v)-7 TRANS Demand'!L103+'FR-16(7)(v)-8 TRANS Energy'!L103+'FR-16(7)(v)-9 TRANS Cust'!L103+'FR-16(7)(v)-11 DIST Demand'!L103+'FR-16(7)(v)-12 DIST Energy'!L103+'FR-16(7)(v)-13 DIST Cust'!L103-'FR-16(7)(v)-14 TOTAL CLASS'!L103","v":0},{"$f":"'FR-16(7)(v)-3 PROD Demand'!M103+'FR-16(7)(v)-4 PROD Energy'!M103+'FR-16(7)(v)-5 PROD Cust'!M103+'FR-16(7)(v)-7 TRANS Demand'!M103+'FR-16(7)(v)-8 TRANS Energy'!M103+'FR-16(7)(v)-9 TRANS Cust'!M103+'FR-16(7)(v)-11 DIST Demand'!M103+'FR-16(7)(v)-12 DIST Energy'!M103+'FR-16(7)(v)-13 DIST Cust'!M103-'FR-16(7)(v)-14 TOTAL CLASS'!M103","v":0},{"$f":"'FR-16(7)(v)-3 PROD Demand'!N103+'FR-16(7)(v)-4 PROD Energy'!N103+'FR-16(7)(v)-5 PROD Cust'!N103+'FR-16(7)(v)-7 TRANS Demand'!N103+'FR-16(7)(v)-8 TRANS Energy'!N103+'FR-16(7)(v)-9 TRANS Cust'!N103+'FR-16(7)(v)-11 DIST Demand'!N103+'FR-16(7)(v)-12 DIST Energy'!N103+'FR-16(7)(v)-13 DIST Cust'!N103-'FR-16(7)(v)-14 TOTAL CLASS'!N103","v":0},{"$f":"'FR-16(7)(v)-3 PROD Demand'!O103+'FR-16(7)(v)-4 PROD Energy'!O103+'FR-16(7)(v)-5 PROD Cust'!O103+'FR-16(7)(v)-7 TRANS Demand'!O103+'FR-16(7)(v)-8 TRANS Energy'!O103+'FR-16(7)(v)-9 TRANS Cust'!O103+'FR-16(7)(v)-11 DIST Demand'!O103+'FR-16(7)(v)-12 DIST Energy'!O103+'FR-16(7)(v)-13 DIST Cust'!O103-'FR-16(7)(v)-14 TOTAL CLASS'!O103","v":0},{"$f":"'FR-16(7)(v)-3 PROD Demand'!P103+'FR-16(7)(v)-4 PROD Energy'!P103+'FR-16(7)(v)-5 PROD Cust'!P103+'FR-16(7)(v)-7 TRANS Demand'!P103+'FR-16(7)(v)-8 TRANS Energy'!P103+'FR-16(7)(v)-9 TRANS Cust'!P103+'FR-16(7)(v)-11 DIST Demand'!P103+'FR-16(7)(v)-12 DIST Energy'!P103+'FR-16(7)(v)-13 DIST Cust'!P103-'FR-16(7)(v)-14 TOTAL CLASS'!P103","v":0},{"$f":"'FR-16(7)(v)-3 PROD Demand'!Q103+'FR-16(7)(v)-4 PROD Energy'!Q103+'FR-16(7)(v)-5 PROD Cust'!Q103+'FR-16(7)(v)-7 TRANS Demand'!Q103+'FR-16(7)(v)-8 TRANS Energy'!Q103+'FR-16(7)(v)-9 TRANS Cust'!Q103+'FR-16(7)(v)-11 DIST Demand'!Q103+'FR-16(7)(v)-12 DIST Energy'!Q103+'FR-16(7)(v)-13 DIST Cust'!Q103-'FR-16(7)(v)-14 TOTAL CLASS'!Q103","v":0},0,0]
[47,null,{"$f":"'FR-16(7)(v)-1 Functional'!C104","v":"DISTRIBUTION - CUSTOMER"},{"$f":"'FR-16(7)(v)-1 Functional'!D104","v":"K405"},null,{"$f":"'FR-16(7)(v)-3 PROD Demand'!F104+'FR-16(7)(v)-4 PROD Energy'!F104+'FR-16(7)(v)-5 PROD Cust'!F104+'FR-16(7)(v)-7 TRANS Demand'!F104+'FR-16(7)(v)-8 TRANS Energy'!F104+'FR-16(7)(v)-9 TRANS Cust'!F104+'FR-16(7)(v)-11 DIST Demand'!F104+'FR-16(7)(v)-12 DIST Energy'!F104+'FR-16(7)(v)-13 DIST Cust'!F104-'FR-16(7)(v)-14 TOTAL CLASS'!F104","v":0},{"$f":"'FR-16(7)(v)-3 PROD Demand'!G104+'FR-16(7)(v)-4 PROD Energy'!G104+'FR-16(7)(v)-5 PROD Cust'!G104+'FR-16(7)(v)-7 TRANS Demand'!G104+'FR-16(7)(v)-8 TRANS Energy'!G104+'FR-16(7)(v)-9 TRANS Cust'!G104+'FR-16(7)(v)-11 DIST Demand'!G104+'FR-16(7)(v)-12 DIST Energy'!G104+'FR-16(7)(v)-13 DIST Cust'!G104-'FR-16(7)(v)-14 TOTAL CLASS'!G104","v":0},{"$f":"'FR-16(7)(v)-3 PROD Demand'!H104+'FR-16(7)(v)-4 PROD Energy'!H104+'FR-16(7)(v)-5 PROD Cust'!H104+'FR-16(7)(v)-7 TRANS Demand'!H104+'FR-16(7)(v)-8 TRANS Energy'!H104+'FR-16(7)(v)-9 TRANS Cust'!H104+'FR-16(7)(v)-11 DIST Demand'!H104+'FR-16(7)(v)-12 DIST Energy'!H104+'FR-16(7)(v)-13 DIST Cust'!H104-'FR-16(7)(v)-14 TOTAL CLASS'!H104","v":0},{"$f":"'FR-16(7)(v)-3 PROD Demand'!I104+'FR-16(7)(v)-4 PROD Energy'!I104+'FR-16(7)(v)-5 PROD Cust'!I104+'FR-16(7)(v)-7 TRANS Demand'!I104+'FR-16(7)(v)-8 TRANS Energy'!I104+'FR-16(7)(v)-9 TRANS Cust'!I104+'FR-16(7)(v)-11 DIST Demand'!I104+'FR-16(7)(v)-12 DIST Energy'!I104+'FR-16(7)(v)-13 DIST Cust'!I104-'FR-16(7)(v)-14 TOTAL CLASS'!I104","v":0},{"$f":"'FR-16(7)(v)-3 PROD Demand'!J104+'FR-16(7)(v)-4 PROD Energy'!J104+'FR-16(7)(v)-5 PROD Cust'!J104+'FR-16(7)(v)-7 TRANS Demand'!J104+'FR-16(7)(v)-8 TRANS Energy'!J104+'FR-16(7)(v)-9 TRANS Cust'!J104+'FR-16(7)(v)-11 DIST Demand'!J104+'FR-16(7)(v)-12 DIST Energy'!J104+'FR-16(7)(v)-13 DIST Cust'!J104-'FR-16(7)(v)-14 TOTAL CLASS'!J104","v":0},{"$f":"'FR-16(7)(v)-3 PROD Demand'!K104+'FR-16(7)(v)-4 PROD Energy'!K104+'FR-16(7)(v)-5 PROD Cust'!K104+'FR-16(7)(v)-7 TRANS Demand'!K104+'FR-16(7)(v)-8 TRANS Energy'!K104+'FR-16(7)(v)-9 TRANS Cust'!K104+'FR-16(7)(v)-11 DIST Demand'!K104+'FR-16(7)(v)-12 DIST Energy'!K104+'FR-16(7)(v)-13 DIST Cust'!K104-'FR-16(7)(v)-14 TOTAL CLASS'!K104","v":0},{"$f":"'FR-16(7)(v)-3 PROD Demand'!L104+'FR-16(7)(v)-4 PROD Energy'!L104+'FR-16(7)(v)-5 PROD Cust'!L104+'FR-16(7)(v)-7 TRANS Demand'!L104+'FR-16(7)(v)-8 TRANS Energy'!L104+'FR-16(7)(v)-9 TRANS Cust'!L104+'FR-16(7)(v)-11 DIST Demand'!L104+'FR-16(7)(v)-12 DIST Energy'!L104+'FR-16(7)(v)-13 DIST Cust'!L104-'FR-16(7)(v)-14 TOTAL CLASS'!L104","v":0},{"$f":"'FR-16(7)(v)-3 PROD Demand'!M104+'FR-16(7)(v)-4 PROD Energy'!M104+'FR-16(7)(v)-5 PROD Cust'!M104+'FR-16(7)(v)-7 TRANS Demand'!M104+'FR-16(7)(v)-8 TRANS Energy'!M104+'FR-16(7)(v)-9 TRANS Cust'!M104+'FR-16(7)(v)-11 DIST Demand'!M104+'FR-16(7)(v)-12 DIST Energy'!M104+'FR-16(7)(v)-13 DIST Cust'!M104-'FR-16(7)(v)-14 TOTAL CLASS'!M104","v":0},{"$f":"'FR-16(7)(v)-3 PROD Demand'!N104+'FR-16(7)(v)-4 PROD Energy'!N104+'FR-16(7)(v)-5 PROD Cust'!N104+'FR-16(7)(v)-7 TRANS Demand'!N104+'FR-16(7)(v)-8 TRANS Energy'!N104+'FR-16(7)(v)-9 TRANS Cust'!N104+'FR-16(7)(v)-11 DIST Demand'!N104+'FR-16(7)(v)-12 DIST Energy'!N104+'FR-16(7)(v)-13 DIST Cust'!N104-'FR-16(7)(v)-14 TOTAL CLASS'!N104","v":0},{"$f":"'FR-16(7)(v)-3 PROD Demand'!O104+'FR-16(7)(v)-4 PROD Energy'!O104+'FR-16(7)(v)-5 PROD Cust'!O104+'FR-16(7)(v)-7 TRANS Demand'!O104+'FR-16(7)(v)-8 TRANS Energy'!O104+'FR-16(7)(v)-9 TRANS Cust'!O104+'FR-16(7)(v)-11 DIST Demand'!O104+'FR-16(7)(v)-12 DIST Energy'!O104+'FR-16(7)(v)-13 DIST Cust'!O104-'FR-16(7)(v)-14 TOTAL CLASS'!O104","v":0},{"$f":"'FR-16(7)(v)-3 PROD Demand'!P104+'FR-16(7)(v)-4 PROD Energy'!P104+'FR-16(7)(v)-5 PROD Cust'!P104+'FR-16(7)(v)-7 TRANS Demand'!P104+'FR-16(7)(v)-8 TRANS Energy'!P104+'FR-16(7)(v)-9 TRANS Cust'!P104+'FR-16(7)(v)-11 DIST Demand'!P104+'FR-16(7)(v)-12 DIST Energy'!P104+'FR-16(7)(v)-13 DIST Cust'!P104-'FR-16(7)(v)-14 TOTAL CLASS'!P104","v":0},{"$f":"'FR-16(7)(v)-3 PROD Demand'!Q104+'FR-16(7)(v)-4 PROD Energy'!Q104+'FR-16(7)(v)-5 PROD Cust'!Q104+'FR-16(7)(v)-7 TRANS Demand'!Q104+'FR-16(7)(v)-8 TRANS Energy'!Q104+'FR-16(7)(v)-9 TRANS Cust'!Q104+'FR-16(7)(v)-11 DIST Demand'!Q104+'FR-16(7)(v)-12 DIST Energy'!Q104+'FR-16(7)(v)-13 DIST Cust'!Q104-'FR-16(7)(v)-14 TOTAL CLASS'!Q104","v":0},0,0]
[48,null,{"$f":"'FR-16(7)(v)-1 Functional'!C105","v":"CUSTOMER ACCOUNTING"},{"$f":"'FR-16(7)(v)-1 Functional'!D105","v":"A308"},null,{"$f":"'FR-16(7)(v)-3 PROD Demand'!F105+'FR-16(7)(v)-4 PROD Energy'!F105+'FR-16(7)(v)-5 PROD Cust'!F105+'FR-16(7)(v)-7 TRANS Demand'!F105+'FR-16(7)(v)-8 TRANS Energy'!F105+'FR-16(7)(v)-9 TRANS Cust'!F105+'FR-16(7)(v)-11 DIST Demand'!F105+'FR-16(7)(v)-12 DIST Energy'!F105+'FR-16(7)(v)-13 DIST Cust'!F105-'FR-16(7)(v)-14 TOTAL CLASS'!F105","v":0},{"$f":"'FR-16(7)(v)-3 PROD Demand'!G105+'FR-16(7)(v)-4 PROD Energy'!G105+'FR-16(7)(v)-5 PROD Cust'!G105+'FR-16(7)(v)-7 TRANS Demand'!G105+'FR-16(7)(v)-8 TRANS Energy'!G105+'FR-16(7)(v)-9 TRANS Cust'!G105+'FR-16(7)(v)-11 DIST Demand'!G105+'FR-16(7)(v)-12 DIST Energy'!G105+'FR-16(7)(v)-13 DIST Cust'!G105-'FR-16(7)(v)-14 TOTAL CLASS'!G105","v":0},{"$f":"'FR-16(7)(v)-3 PROD Demand'!H105+'FR-16(7)(v)-4 PROD Energy'!H105+'FR-16(7)(v)-5 PROD Cust'!H105+'FR-16(7)(v)-7 TRANS Demand'!H105+'FR-16(7)(v)-8 TRANS Energy'!H105+'FR-16(7)(v)-9 TRANS Cust'!H105+'FR-16(7)(v)-11 DIST Demand'!H105+'FR-16(7)(v)-12 DIST Energy'!H105+'FR-16(7)(v)-13 DIST Cust'!H105-'FR-16(7)(v)-14 TOTAL CLASS'!H105","v":0},{"$f":"'FR-16(7)(v)-3 PROD Demand'!I105+'FR-16(7)(v)-4 PROD Energy'!I105+'FR-16(7)(v)-5 PROD Cust'!I105+'FR-16(7)(v)-7 TRANS Demand'!I105+'FR-16(7)(v)-8 TRANS Energy'!I105+'FR-16(7)(v)-9 TRANS Cust'!I105+'FR-16(7)(v)-11 DIST Demand'!I105+'FR-16(7)(v)-12 DIST Energy'!I105+'FR-16(7)(v)-13 DIST Cust'!I105-'FR-16(7)(v)-14 TOTAL CLASS'!I105","v":0},{"$f":"'FR-16(7)(v)-3 PROD Demand'!J105+'FR-16(7)(v)-4 PROD Energy'!J105+'FR-16(7)(v)-5 PROD Cust'!J105+'FR-16(7)(v)-7 TRANS Demand'!J105+'FR-16(7)(v)-8 TRANS Energy'!J105+'FR-16(7)(v)-9 TRANS Cust'!J105+'FR-16(7)(v)-11 DIST Demand'!J105+'FR-16(7)(v)-12 DIST Energy'!J105+'FR-16(7)(v)-13 DIST Cust'!J105-'FR-16(7)(v)-14 TOTAL CLASS'!J105","v":0},{"$f":"'FR-16(7)(v)-3 PROD Demand'!K105+'FR-16(7)(v)-4 PROD Energy'!K105+'FR-16(7)(v)-5 PROD Cust'!K105+'FR-16(7)(v)-7 TRANS Demand'!K105+'FR-16(7)(v)-8 TRANS Energy'!K105+'FR-16(7)(v)-9 TRANS Cust'!K105+'FR-16(7)(v)-11 DIST Demand'!K105+'FR-16(7)(v)-12 DIST Energy'!K105+'FR-16(7)(v)-13 DIST Cust'!K105-'FR-16(7)(v)-14 TOTAL CLASS'!K105","v":0},{"$f":"'FR-16(7)(v)-3 PROD Demand'!L105+'FR-16(7)(v)-4 PROD Energy'!L105+'FR-16(7)(v)-5 PROD Cust'!L105+'FR-16(7)(v)-7 TRANS Demand'!L105+'FR-16(7)(v)-8 TRANS Energy'!L105+'FR-16(7)(v)-9 TRANS Cust'!L105+'FR-16(7)(v)-11 DIST Demand'!L105+'FR-16(7)(v)-12 DIST Energy'!L105+'FR-16(7)(v)-13 DIST Cust'!L105-'FR-16(7)(v)-14 TOTAL CLASS'!L105","v":0},{"$f":"'FR-16(7)(v)-3 PROD Demand'!M105+'FR-16(7)(v)-4 PROD Energy'!M105+'FR-16(7)(v)-5 PROD Cust'!M105+'FR-16(7)(v)-7 TRANS Demand'!M105+'FR-16(7)(v)-8 TRANS Energy'!M105+'FR-16(7)(v)-9 TRANS Cust'!M105+'FR-16(7)(v)-11 DIST Demand'!M105+'FR-16(7)(v)-12 DIST Energy'!M105+'FR-16(7)(v)-13 DIST Cust'!M105-'FR-16(7)(v)-14 TOTAL CLASS'!M105","v":0},{"$f":"'FR-16(7)(v)-3 PROD Demand'!N105+'FR-16(7)(v)-4 PROD Energy'!N105+'FR-16(7)(v)-5 PROD Cust'!N105+'FR-16(7)(v)-7 TRANS Demand'!N105+'FR-16(7)(v)-8 TRANS Energy'!N105+'FR-16(7)(v)-9 TRANS Cust'!N105+'FR-16(7)(v)-11 DIST Demand'!N105+'FR-16(7)(v)-12 DIST Energy'!N105+'FR-16(7)(v)-13 DIST Cust'!N105-'FR-16(7)(v)-14 TOTAL CLASS'!N105","v":0},{"$f":"'FR-16(7)(v)-3 PROD Demand'!O105+'FR-16(7)(v)-4 PROD Energy'!O105+'FR-16(7)(v)-5 PROD Cust'!O105+'FR-16(7)(v)-7 TRANS Demand'!O105+'FR-16(7)(v)-8 TRANS Energy'!O105+'FR-16(7)(v)-9 TRANS Cust'!O105+'FR-16(7)(v)-11 DIST Demand'!O105+'FR-16(7)(v)-12 DIST Energy'!O105+'FR-16(7)(v)-13 DIST Cust'!O105-'FR-16(7)(v)-14 TOTAL CLASS'!O105","v":0},{"$f":"'FR-16(7)(v)-3 PROD Demand'!P105+'FR-16(7)(v)-4 PROD Energy'!P105+'FR-16(7)(v)-5 PROD Cust'!P105+'FR-16(7)(v)-7 TRANS Demand'!P105+'FR-16(7)(v)-8 TRANS Energy'!P105+'FR-16(7)(v)-9 TRANS Cust'!P105+'FR-16(7)(v)-11 DIST Demand'!P105+'FR-16(7)(v)-12 DIST Energy'!P105+'FR-16(7)(v)-13 DIST Cust'!P105-'FR-16(7)(v)-14 TOTAL CLASS'!P105","v":0},{"$f":"'FR-16(7)(v)-3 PROD Demand'!Q105+'FR-16(7)(v)-4 PROD Energy'!Q105+'FR-16(7)(v)-5 PROD Cust'!Q105+'FR-16(7)(v)-7 TRANS Demand'!Q105+'FR-16(7)(v)-8 TRANS Energy'!Q105+'FR-16(7)(v)-9 TRANS Cust'!Q105+'FR-16(7)(v)-11 DIST Demand'!Q105+'FR-16(7)(v)-12 DIST Energy'!Q105+'FR-16(7)(v)-13 DIST Cust'!Q105-'FR-16(7)(v)-14 TOTAL CLASS'!Q105","v":0},0,0]
[49,null,{"$f":"'FR-16(7)(v)-1 Functional'!C106","v":"CUSTOMER SERVICE & INFORMATION"},{"$f":"'FR-16(7)(v)-1 Functional'!D106","v":"A310"},null,{"$f":"'FR-16(7)(v)-3 PROD Demand'!F106+'FR-16(7)(v)-4 PROD Energy'!F106+'FR-16(7)(v)-5 PROD Cust'!F106+'FR-16(7)(v)-7 TRANS Demand'!F106+'FR-16(7)(v)-8 TRANS Energy'!F106+'FR-16(7)(v)-9 TRANS Cust'!F106+'FR-16(7)(v)-11 DIST Demand'!F106+'FR-16(7)(v)-12 DIST Energy'!F106+'FR-16(7)(v)-13 DIST Cust'!F106-'FR-16(7)(v)-14 TOTAL CLASS'!F106","v":0},{"$f":"'FR-16(7)(v)-3 PROD Demand'!G106+'FR-16(7)(v)-4 PROD Energy'!G106+'FR-16(7)(v)-5 PROD Cust'!G106+'FR-16(7)(v)-7 TRANS Demand'!G106+'FR-16(7)(v)-8 TRANS Energy'!G106+'FR-16(7)(v)-9 TRANS Cust'!G106+'FR-16(7)(v)-11 DIST Demand'!G106+'FR-16(7)(v)-12 DIST Energy'!G106+'FR-16(7)(v)-13 DIST Cust'!G106-'FR-16(7)(v)-14 TOTAL CLASS'!G106","v":0},{"$f":"'FR-16(7)(v)-3 PROD Demand'!H106+'FR-16(7)(v)-4 PROD Energy'!H106+'FR-16(7)(v)-5 PROD Cust'!H106+'FR-16(7)(v)-7 TRANS Demand'!H106+'FR-16(7)(v)-8 TRANS Energy'!H106+'FR-16(7)(v)-9 TRANS Cust'!H106+'FR-16(7)(v)-11 DIST Demand'!H106+'FR-16(7)(v)-12 DIST Energy'!H106+'FR-16(7)(v)-13 DIST Cust'!H106-'FR-16(7)(v)-14 TOTAL CLASS'!H106","v":0},{"$f":"'FR-16(7)(v)-3 PROD Demand'!I106+'FR-16(7)(v)-4 PROD Energy'!I106+'FR-16(7)(v)-5 PROD Cust'!I106+'FR-16(7)(v)-7 TRANS Demand'!I106+'FR-16(7)(v)-8 TRANS Energy'!I106+'FR-16(7)(v)-9 TRANS Cust'!I106+'FR-16(7)(v)-11 DIST Demand'!I106+'FR-16(7)(v)-12 DIST Energy'!I106+'FR-16(7)(v)-13 DIST Cust'!I106-'FR-16(7)(v)-14 TOTAL CLASS'!I106","v":0},{"$f":"'FR-16(7)(v)-3 PROD Demand'!J106+'FR-16(7)(v)-4 PROD Energy'!J106+'FR-16(7)(v)-5 PROD Cust'!J106+'FR-16(7)(v)-7 TRANS Demand'!J106+'FR-16(7)(v)-8 TRANS Energy'!J106+'FR-16(7)(v)-9 TRANS Cust'!J106+'FR-16(7)(v)-11 DIST Demand'!J106+'FR-16(7)(v)-12 DIST Energy'!J106+'FR-16(7)(v)-13 DIST Cust'!J106-'FR-16(7)(v)-14 TOTAL CLASS'!J106","v":0},{"$f":"'FR-16(7)(v)-3 PROD Demand'!K106+'FR-16(7)(v)-4 PROD Energy'!K106+'FR-16(7)(v)-5 PROD Cust'!K106+'FR-16(7)(v)-7 TRANS Demand'!K106+'FR-16(7)(v)-8 TRANS Energy'!K106+'FR-16(7)(v)-9 TRANS Cust'!K106+'FR-16(7)(v)-11 DIST Demand'!K106+'FR-16(7)(v)-12 DIST Energy'!K106+'FR-16(7)(v)-13 DIST Cust'!K106-'FR-16(7)(v)-14 TOTAL CLASS'!K106","v":0},{"$f":"'FR-16(7)(v)-3 PROD Demand'!L106+'FR-16(7)(v)-4 PROD Energy'!L106+'FR-16(7)(v)-5 PROD Cust'!L106+'FR-16(7)(v)-7 TRANS Demand'!L106+'FR-16(7)(v)-8 TRANS Energy'!L106+'FR-16(7)(v)-9 TRANS Cust'!L106+'FR-16(7)(v)-11 DIST Demand'!L106+'FR-16(7)(v)-12 DIST Energy'!L106+'FR-16(7)(v)-13 DIST Cust'!L106-'FR-16(7)(v)-14 TOTAL CLASS'!L106","v":0},{"$f":"'FR-16(7)(v)-3 PROD Demand'!M106+'FR-16(7)(v)-4 PROD Energy'!M106+'FR-16(7)(v)-5 PROD Cust'!M106+'FR-16(7)(v)-7 TRANS Demand'!M106+'FR-16(7)(v)-8 TRANS Energy'!M106+'FR-16(7)(v)-9 TRANS Cust'!M106+'FR-16(7)(v)-11 DIST Demand'!M106+'FR-16(7)(v)-12 DIST Energy'!M106+'FR-16(7)(v)-13 DIST Cust'!M106-'FR-16(7)(v)-14 TOTAL CLASS'!M106","v":0},{"$f":"'FR-16(7)(v)-3 PROD Demand'!N106+'FR-16(7)(v)-4 PROD Energy'!N106+'FR-16(7)(v)-5 PROD Cust'!N106+'FR-16(7)(v)-7 TRANS Demand'!N106+'FR-16(7)(v)-8 TRANS Energy'!N106+'FR-16(7)(v)-9 TRANS Cust'!N106+'FR-16(7)(v)-11 DIST Demand'!N106+'FR-16(7)(v)-12 DIST Energy'!N106+'FR-16(7)(v)-13 DIST Cust'!N106-'FR-16(7)(v)-14 TOTAL CLASS'!N106","v":0},{"$f":"'FR-16(7)(v)-3 PROD Demand'!O106+'FR-16(7)(v)-4 PROD Energy'!O106+'FR-16(7)(v)-5 PROD Cust'!O106+'FR-16(7)(v)-7 TRANS Demand'!O106+'FR-16(7)(v)-8 TRANS Energy'!O106+'FR-16(7)(v)-9 TRANS Cust'!O106+'FR-16(7)(v)-11 DIST Demand'!O106+'FR-16(7)(v)-12 DIST Energy'!O106+'FR-16(7)(v)-13 DIST Cust'!O106-'FR-16(7)(v)-14 TOTAL CLASS'!O106","v":0},{"$f":"'FR-16(7)(v)-3 PROD Demand'!P106+'FR-16(7)(v)-4 PROD Energy'!P106+'FR-16(7)(v)-5 PROD Cust'!P106+'FR-16(7)(v)-7 TRANS Demand'!P106+'FR-16(7)(v)-8 TRANS Energy'!P106+'FR-16(7)(v)-9 TRANS Cust'!P106+'FR-16(7)(v)-11 DIST Demand'!P106+'FR-16(7)(v)-12 DIST Energy'!P106+'FR-16(7)(v)-13 DIST Cust'!P106-'FR-16(7)(v)-14 TOTAL CLASS'!P106","v":0},{"$f":"'FR-16(7)(v)-3 PROD Demand'!Q106+'FR-16(7)(v)-4 PROD Energy'!Q106+'FR-16(7)(v)-5 PROD Cust'!Q106+'FR-16(7)(v)-7 TRANS Demand'!Q106+'FR-16(7)(v)-8 TRANS Energy'!Q106+'FR-16(7)(v)-9 TRANS Cust'!Q106+'FR-16(7)(v)-11 DIST Demand'!Q106+'FR-16(7)(v)-12 DIST Energy'!Q106+'FR-16(7)(v)-13 DIST Cust'!Q106-'FR-16(7)(v)-14 TOTAL CLASS'!Q106","v":0},0,0]
[50,null,{"$f":"'FR-16(7)(v)-1 Functional'!C107","v":"SALES"},{"$f":"'FR-16(7)(v)-1 Functional'!D107","v":"A312"},null,{"$f":"'FR-16(7)(v)-3 PROD Demand'!F107+'FR-16(7)(v)-4 PROD Energy'!F107+'FR-16(7)(v)-5 PROD Cust'!F107+'FR-16(7)(v)-7 TRANS Demand'!F107+'FR-16(7)(v)-8 TRANS Energy'!F107+'FR-16(7)(v)-9 TRANS Cust'!F107+'FR-16(7)(v)-11 DIST Demand'!F107+'FR-16(7)(v)-12 DIST Energy'!F107+'FR-16(7)(v)-13 DIST Cust'!F107-'FR-16(7)(v)-14 TOTAL CLASS'!F107","v":0},{"$f":"'FR-16(7)(v)-3 PROD Demand'!G107+'FR-16(7)(v)-4 PROD Energy'!G107+'FR-16(7)(v)-5 PROD Cust'!G107+'FR-16(7)(v)-7 TRANS Demand'!G107+'FR-16(7)(v)-8 TRANS Energy'!G107+'FR-16(7)(v)-9 TRANS Cust'!G107+'FR-16(7)(v)-11 DIST Demand'!G107+'FR-16(7)(v)-12 DIST Energy'!G107+'FR-16(7)(v)-13 DIST Cust'!G107-'FR-16(7)(v)-14 TOTAL CLASS'!G107","v":0},{"$f":"'FR-16(7)(v)-3 PROD Demand'!H107+'FR-16(7)(v)-4 PROD Energy'!H107+'FR-16(7)(v)-5 PROD Cust'!H107+'FR-16(7)(v)-7 TRANS Demand'!H107+'FR-16(7)(v)-8 TRANS Energy'!H107+'FR-16(7)(v)-9 TRANS Cust'!H107+'FR-16(7)(v)-11 DIST Demand'!H107+'FR-16(7)(v)-12 DIST Energy'!H107+'FR-16(7)(v)-13 DIST Cust'!H107-'FR-16(7)(v)-14 TOTAL CLASS'!H107","v":0},{"$f":"'FR-16(7)(v)-3 PROD Demand'!I107+'FR-16(7)(v)-4 PROD Energy'!I107+'FR-16(7)(v)-5 PROD Cust'!I107+'FR-16(7)(v)-7 TRANS Demand'!I107+'FR-16(7)(v)-8 TRANS Energy'!I107+'FR-16(7)(v)-9 TRANS Cust'!I107+'FR-16(7)(v)-11 DIST Demand'!I107+'FR-16(7)(v)-12 DIST Energy'!I107+'FR-16(7)(v)-13 DIST Cust'!I107-'FR-16(7)(v)-14 TOTAL CLASS'!I107","v":0},{"$f":"'FR-16(7)(v)-3 PROD Demand'!J107+'FR-16(7)(v)-4 PROD Energy'!J107+'FR-16(7)(v)-5 PROD Cust'!J107+'FR-16(7)(v)-7 TRANS Demand'!J107+'FR-16(7)(v)-8 TRANS Energy'!J107+'FR-16(7)(v)-9 TRANS Cust'!J107+'FR-16(7)(v)-11 DIST Demand'!J107+'FR-16(7)(v)-12 DIST Energy'!J107+'FR-16(7)(v)-13 DIST Cust'!J107-'FR-16(7)(v)-14 TOTAL CLASS'!J107","v":0},{"$f":"'FR-16(7)(v)-3 PROD Demand'!K107+'FR-16(7)(v)-4 PROD Energy'!K107+'FR-16(7)(v)-5 PROD Cust'!K107+'FR-16(7)(v)-7 TRANS Demand'!K107+'FR-16(7)(v)-8 TRANS Energy'!K107+'FR-16(7)(v)-9 TRANS Cust'!K107+'FR-16(7)(v)-11 DIST Demand'!K107+'FR-16(7)(v)-12 DIST Energy'!K107+'FR-16(7)(v)-13 DIST Cust'!K107-'FR-16(7)(v)-14 TOTAL CLASS'!K107","v":0},{"$f":"'FR-16(7)(v)-3 PROD Demand'!L107+'FR-16(7)(v)-4 PROD Energy'!L107+'FR-16(7)(v)-5 PROD Cust'!L107+'FR-16(7)(v)-7 TRANS Demand'!L107+'FR-16(7)(v)-8 TRANS Energy'!L107+'FR-16(7)(v)-9 TRANS Cust'!L107+'FR-16(7)(v)-11 DIST Demand'!L107+'FR-16(7)(v)-12 DIST Energy'!L107+'FR-16(7)(v)-13 DIST Cust'!L107-'FR-16(7)(v)-14 TOTAL CLASS'!L107","v":0},{"$f":"'FR-16(7)(v)-3 PROD Demand'!M107+'FR-16(7)(v)-4 PROD Energy'!M107+'FR-16(7)(v)-5 PROD Cust'!M107+'FR-16(7)(v)-7 TRANS Demand'!M107+'FR-16(7)(v)-8 TRANS Energy'!M107+'FR-16(7)(v)-9 TRANS Cust'!M107+'FR-16(7)(v)-11 DIST Demand'!M107+'FR-16(7)(v)-12 DIST Energy'!M107+'FR-16(7)(v)-13 DIST Cust'!M107-'FR-16(7)(v)-14 TOTAL CLASS'!M107","v":0},{"$f":"'FR-16(7)(v)-3 PROD Demand'!N107+'FR-16(7)(v)-4 PROD Energy'!N107+'FR-16(7)(v)-5 PROD Cust'!N107+'FR-16(7)(v)-7 TRANS Demand'!N107+'FR-16(7)(v)-8 TRANS Energy'!N107+'FR-16(7)(v)-9 TRANS Cust'!N107+'FR-16(7)(v)-11 DIST Demand'!N107+'FR-16(7)(v)-12 DIST Energy'!N107+'FR-16(7)(v)-13 DIST Cust'!N107-'FR-16(7)(v)-14 TOTAL CLASS'!N107","v":0},{"$f":"'FR-16(7)(v)-3 PROD Demand'!O107+'FR-16(7)(v)-4 PROD Energy'!O107+'FR-16(7)(v)-5 PROD Cust'!O107+'FR-16(7)(v)-7 TRANS Demand'!O107+'FR-16(7)(v)-8 TRANS Energy'!O107+'FR-16(7)(v)-9 TRANS Cust'!O107+'FR-16(7)(v)-11 DIST Demand'!O107+'FR-16(7)(v)-12 DIST Energy'!O107+'FR-16(7)(v)-13 DIST Cust'!O107-'FR-16(7)(v)-14 TOTAL CLASS'!O107","v":0},{"$f":"'FR-16(7)(v)-3 PROD Demand'!P107+'FR-16(7)(v)-4 PROD Energy'!P107+'FR-16(7)(v)-5 PROD Cust'!P107+'FR-16(7)(v)-7 TRANS Demand'!P107+'FR-16(7)(v)-8 TRANS Energy'!P107+'FR-16(7)(v)-9 TRANS Cust'!P107+'FR-16(7)(v)-11 DIST Demand'!P107+'FR-16(7)(v)-12 DIST Energy'!P107+'FR-16(7)(v)-13 DIST Cust'!P107-'FR-16(7)(v)-14 TOTAL CLASS'!P107","v":0},{"$f":"'FR-16(7)(v)-3 PROD Demand'!Q107+'FR-16(7)(v)-4 PROD Energy'!Q107+'FR-16(7)(v)-5 PROD Cust'!Q107+'FR-16(7)(v)-7 TRANS Demand'!Q107+'FR-16(7)(v)-8 TRANS Energy'!Q107+'FR-16(7)(v)-9 TRANS Cust'!Q107+'FR-16(7)(v)-11 DIST Demand'!Q107+'FR-16(7)(v)-12 DIST Energy'!Q107+'FR-16(7)(v)-13 DIST Cust'!Q107-'FR-16(7)(v)-14 TOTAL CLASS'!Q107","v":0},0,0]
[51,null,{"$f":"'FR-16(7)(v)-1 Functional'!C108","v":"ADJUSTMENT"},{"$f":"'FR-16(7)(v)-1 Functional'!D108","v":"A315"},null,{"$f":"'FR-16(7)(v)-3 PROD Demand'!F108+'FR-16(7)(v)-4 PROD Energy'!F108+'FR-16(7)(v)-5 PROD Cust'!F108+'FR-16(7)(v)-7 TRANS Demand'!F108+'FR-16(7)(v)-8 TRANS Energy'!F108+'FR-16(7)(v)-9 TRANS Cust'!F108+'FR-16(7)(v)-11 DIST Demand'!F108+'FR-16(7)(v)-12 DIST Energy'!F108+'FR-16(7)(v)-13 DIST Cust'!F108-'FR-16(7)(v)-14 TOTAL CLASS'!F108","v":0},{"$f":"'FR-16(7)(v)-3 PROD Demand'!G108+'FR-16(7)(v)-4 PROD Energy'!G108+'FR-16(7)(v)-5 PROD Cust'!G108+'FR-16(7)(v)-7 TRANS Demand'!G108+'FR-16(7)(v)-8 TRANS Energy'!G108+'FR-16(7)(v)-9 TRANS Cust'!G108+'FR-16(7)(v)-11 DIST Demand'!G108+'FR-16(7)(v)-12 DIST Energy'!G108+'FR-16(7)(v)-13 DIST Cust'!G108-'FR-16(7)(v)-14 TOTAL CLASS'!G108","v":0},{"$f":"'FR-16(7)(v)-3 PROD Demand'!H108+'FR-16(7)(v)-4 PROD Energy'!H108+'FR-16(7)(v)-5 PROD Cust'!H108+'FR-16(7)(v)-7 TRANS Demand'!H108+'FR-16(7)(v)-8 TRANS Energy'!H108+'FR-16(7)(v)-9 TRANS Cust'!H108+'FR-16(7)(v)-11 DIST Demand'!H108+'FR-16(7)(v)-12 DIST Energy'!H108+'FR-16(7)(v)-13 DIST Cust'!H108-'FR-16(7)(v)-14 TOTAL CLASS'!H108","v":0},{"$f":"'FR-16(7)(v)-3 PROD Demand'!I108+'FR-16(7)(v)-4 PROD Energy'!I108+'FR-16(7)(v)-5 PROD Cust'!I108+'FR-16(7)(v)-7 TRANS Demand'!I108+'FR-16(7)(v)-8 TRANS Energy'!I108+'FR-16(7)(v)-9 TRANS Cust'!I108+'FR-16(7)(v)-11 DIST Demand'!I108+'FR-16(7)(v)-12 DIST Energy'!I108+'FR-16(7)(v)-13 DIST Cust'!I108-'FR-16(7)(v)-14 TOTAL CLASS'!I108","v":0},{"$f":"'FR-16(7)(v)-3 PROD Demand'!J108+'FR-16(7)(v)-4 PROD Energy'!J108+'FR-16(7)(v)-5 PROD Cust'!J108+'FR-16(7)(v)-7 TRANS Demand'!J108+'FR-16(7)(v)-8 TRANS Energy'!J108+'FR-16(7)(v)-9 TRANS Cust'!J108+'FR-16(7)(v)-11 DIST Demand'!J108+'FR-16(7)(v)-12 DIST Energy'!J108+'FR-16(7)(v)-13 DIST Cust'!J108-'FR-16(7)(v)-14 TOTAL CLASS'!J108","v":0},{"$f":"'FR-16(7)(v)-3 PROD Demand'!K108+'FR-16(7)(v)-4 PROD Energy'!K108+'FR-16(7)(v)-5 PROD Cust'!K108+'FR-16(7)(v)-7 TRANS Demand'!K108+'FR-16(7)(v)-8 TRANS Energy'!K108+'FR-16(7)(v)-9 TRANS Cust'!K108+'FR-16(7)(v)-11 DIST Demand'!K108+'FR-16(7)(v)-12 DIST Energy'!K108+'FR-16(7)(v)-13 DIST Cust'!K108-'FR-16(7)(v)-14 TOTAL CLASS'!K108","v":0},{"$f":"'FR-16(7)(v)-3 PROD Demand'!L108+'FR-16(7)(v)-4 PROD Energy'!L108+'FR-16(7)(v)-5 PROD Cust'!L108+'FR-16(7)(v)-7 TRANS Demand'!L108+'FR-16(7)(v)-8 TRANS Energy'!L108+'FR-16(7)(v)-9 TRANS Cust'!L108+'FR-16(7)(v)-11 DIST Demand'!L108+'FR-16(7)(v)-12 DIST Energy'!L108+'FR-16(7)(v)-13 DIST Cust'!L108-'FR-16(7)(v)-14 TOTAL CLASS'!L108","v":0},{"$f":"'FR-16(7)(v)-3 PROD Demand'!M108+'FR-16(7)(v)-4 PROD Energy'!M108+'FR-16(7)(v)-5 PROD Cust'!M108+'FR-16(7)(v)-7 TRANS Demand'!M108+'FR-16(7)(v)-8 TRANS Energy'!M108+'FR-16(7)(v)-9 TRANS Cust'!M108+'FR-16(7)(v)-11 DIST Demand'!M108+'FR-16(7)(v)-12 DIST Energy'!M108+'FR-16(7)(v)-13 DIST Cust'!M108-'FR-16(7)(v)-14 TOTAL CLASS'!M108","v":0},{"$f":"'FR-16(7)(v)-3 PROD Demand'!N108+'FR-16(7)(v)-4 PROD Energy'!N108+'FR-16(7)(v)-5 PROD Cust'!N108+'FR-16(7)(v)-7 TRANS Demand'!N108+'FR-16(7)(v)-8 TRANS Energy'!N108+'FR-16(7)(v)-9 TRANS Cust'!N108+'FR-16(7)(v)-11 DIST Demand'!N108+'FR-16(7)(v)-12 DIST Energy'!N108+'FR-16(7)(v)-13 DIST Cust'!N108-'FR-16(7)(v)-14 TOTAL CLASS'!N108","v":0},{"$f":"'FR-16(7)(v)-3 PROD Demand'!O108+'FR-16(7)(v)-4 PROD Energy'!O108+'FR-16(7)(v)-5 PROD Cust'!O108+'FR-16(7)(v)-7 TRANS Demand'!O108+'FR-16(7)(v)-8 TRANS Energy'!O108+'FR-16(7)(v)-9 TRANS Cust'!O108+'FR-16(7)(v)-11 DIST Demand'!O108+'FR-16(7)(v)-12 DIST Energy'!O108+'FR-16(7)(v)-13 DIST Cust'!O108-'FR-16(7)(v)-14 TOTAL CLASS'!O108","v":0},{"$f":"'FR-16(7)(v)-3 PROD Demand'!P108+'FR-16(7)(v)-4 PROD Energy'!P108+'FR-16(7)(v)-5 PROD Cust'!P108+'FR-16(7)(v)-7 TRANS Demand'!P108+'FR-16(7)(v)-8 TRANS Energy'!P108+'FR-16(7)(v)-9 TRANS Cust'!P108+'FR-16(7)(v)-11 DIST Demand'!P108+'FR-16(7)(v)-12 DIST Energy'!P108+'FR-16(7)(v)-13 DIST Cust'!P108-'FR-16(7)(v)-14 TOTAL CLASS'!P108","v":0},{"$f":"'FR-16(7)(v)-3 PROD Demand'!Q108+'FR-16(7)(v)-4 PROD Energy'!Q108+'FR-16(7)(v)-5 PROD Cust'!Q108+'FR-16(7)(v)-7 TRANS Demand'!Q108+'FR-16(7)(v)-8 TRANS Energy'!Q108+'FR-16(7)(v)-9 TRANS Cust'!Q108+'FR-16(7)(v)-11 DIST Demand'!Q108+'FR-16(7)(v)-12 DIST Energy'!Q108+'FR-16(7)(v)-13 DIST Cust'!Q108-'FR-16(7)(v)-14 TOTAL CLASS'!Q108","v":0},0,0]
[52,null,{"$f":"'FR-16(7)(v)-1 Functional'!C109","v":"  GEN & INTANG PLANT IN SERVICE"},null,null,{"$f":"SUM(F100:F108)","v":0},{"$f":"SUM(G100:G108)","v":0},0,0,{"$f":"SUM(J100:J108)","v":0},0,0,0,0,0,0,0,0,0]
[53]
[54,"COMMON & OTHER PLANT"]
[55,null,{"$f":"'FR-16(7)(v)-1 Functional'!C112","v":"PRODUCTION - DEMAND"},{"$f":"'FR-16(7)(v)-1 Functional'!D112","v":"K201"},null,{"$f":"'FR-16(7)(v)-3 PROD Demand'!F112+'FR-16(7)(v)-4 PROD Energy'!F112+'FR-16(7)(v)-5 PROD Cust'!F112+'FR-16(7)(v)-7 TRANS Demand'!F112+'FR-16(7)(v)-8 TRANS Energy'!F112+'FR-16(7)(v)-9 TRANS Cust'!F112+'FR-16(7)(v)-11 DIST Demand'!F112+'FR-16(7)(v)-12 DIST Energy'!F112+'FR-16(7)(v)-13 DIST Cust'!F112-'FR-16(7)(v)-14 TOTAL CLASS'!F112","v":0},{"$f":"'FR-16(7)(v)-3 PROD Demand'!G112+'FR-16(7)(v)-4 PROD Energy'!G112+'FR-16(7)(v)-5 PROD Cust'!G112+'FR-16(7)(v)-7 TRANS Demand'!G112+'FR-16(7)(v)-8 TRANS Energy'!G112+'FR-16(7)(v)-9 TRANS Cust'!G112+'FR-16(7)(v)-11 DIST Demand'!G112+'FR-16(7)(v)-12 DIST Energy'!G112+'FR-16(7)(v)-13 DIST Cust'!G112-'FR-16(7)(v)-14 TOTAL CLASS'!G112","v":0},{"$f":"'FR-16(7)(v)-3 PROD Demand'!H112+'FR-16(7)(v)-4 PROD Energy'!H112+'FR-16(7)(v)-5 PROD Cust'!H112+'FR-16(7)(v)-7 TRANS Demand'!H112+'FR-16(7)(v)-8 TRANS Energy'!H112+'FR-16(7)(v)-9 TRANS Cust'!H112+'FR-16(7)(v)-11 DIST Demand'!H112+'FR-16(7)(v)-12 DIST Energy'!H112+'FR-16(7)(v)-13 DIST Cust'!H112-'FR-16(7)(v)-14 TOTAL CLASS'!H112","v":0},{"$f":"'FR-16(7)(v)-3 PROD Demand'!I112+'FR-16(7)(v)-4 PROD Energy'!I112+'FR-16(7)(v)-5 PROD Cust'!I112+'FR-16(7)(v)-7 TRANS Demand'!I112+'FR-16(7)(v)-8 TRANS Energy'!I112+'FR-16(7)(v)-9 TRANS Cust'!I112+'FR-16(7)(v)-11 DIST Demand'!I112+'FR-16(7)(v)-12 DIST Energy'!I112+'FR-16(7)(v)-13 DIST Cust'!I112-'FR-16(7)(v)-14 TOTAL CLASS'!I112","v":0},{"$f":"'FR-16(7)(v)-3 PROD Demand'!J112+'FR-16(7)(v)-4 PROD Energy'!J112+'FR-16(7)(v)-5 PROD Cust'!J112+'FR-16(7)(v)-7 TRANS Demand'!J112+'FR-16(7)(v)-8 TRANS Energy'!J112+'FR-16(7)(v)-9 TRANS Cust'!J112+'FR-16(7)(v)-11 DIST Demand'!J112+'FR-16(7)(v)-12 DIST Energy'!J112+'FR-16(7)(v)-13 DIST Cust'!J112-'FR-16(7)(v)-14 TOTAL CLASS'!J112","v":0},{"$f":"'FR-16(7)(v)-3 PROD Demand'!K112+'FR-16(7)(v)-4 PROD Energy'!K112+'FR-16(7)(v)-5 PROD Cust'!K112+'FR-16(7)(v)-7 TRANS Demand'!K112+'FR-16(7)(v)-8 TRANS Energy'!K112+'FR-16(7)(v)-9 TRANS Cust'!K112+'FR-16(7)(v)-11 DIST Demand'!K112+'FR-16(7)(v)-12 DIST Energy'!K112+'FR-16(7)(v)-13 DIST Cust'!K112-'FR-16(7)(v)-14 TOTAL CLASS'!K112","v":0},{"$f":"'FR-16(7)(v)-3 PROD Demand'!L112+'FR-16(7)(v)-4 PROD Energy'!L112+'FR-16(7)(v)-5 PROD Cust'!L112+'FR-16(7)(v)-7 TRANS Demand'!L112+'FR-16(7)(v)-8 TRANS Energy'!L112+'FR-16(7)(v)-9 TRANS Cust'!L112+'FR-16(7)(v)-11 DIST Demand'!L112+'FR-16(7)(v)-12 DIST Energy'!L112+'FR-16(7)(v)-13 DIST Cust'!L112-'FR-16(7)(v)-14 TOTAL CLASS'!L112","v":0},{"$f":"'FR-16(7)(v)-3 PROD Demand'!M112+'FR-16(7)(v)-4 PROD Energy'!M112+'FR-16(7)(v)-5 PROD Cust'!M112+'FR-16(7)(v)-7 TRANS Demand'!M112+'FR-16(7)(v)-8 TRANS Energy'!M112+'FR-16(7)(v)-9 TRANS Cust'!M112+'FR-16(7)(v)-11 DIST Demand'!M112+'FR-16(7)(v)-12 DIST Energy'!M112+'FR-16(7)(v)-13 DIST Cust'!M112-'FR-16(7)(v)-14 TOTAL CLASS'!M112","v":0},{"$f":"'FR-16(7)(v)-3 PROD Demand'!N112+'FR-16(7)(v)-4 PROD Energy'!N112+'FR-16(7)(v)-5 PROD Cust'!N112+'FR-16(7)(v)-7 TRANS Demand'!N112+'FR-16(7)(v)-8 TRANS Energy'!N112+'FR-16(7)(v)-9 TRANS Cust'!N112+'FR-16(7)(v)-11 DIST Demand'!N112+'FR-16(7)(v)-12 DIST Energy'!N112+'FR-16(7)(v)-13 DIST Cust'!N112-'FR-16(7)(v)-14 TOTAL CLASS'!N112","v":0},{"$f":"'FR-16(7)(v)-3 PROD Demand'!O112+'FR-16(7)(v)-4 PROD Energy'!O112+'FR-16(7)(v)-5 PROD Cust'!O112+'FR-16(7)(v)-7 TRANS Demand'!O112+'FR-16(7)(v)-8 TRANS Energy'!O112+'FR-16(7)(v)-9 TRANS Cust'!O112+'FR-16(7)(v)-11 DIST Demand'!O112+'FR-16(7)(v)-12 DIST Energy'!O112+'FR-16(7)(v)-13 DIST Cust'!O112-'FR-16(7)(v)-14 TOTAL CLASS'!O112","v":0},{"$f":"'FR-16(7)(v)-3 PROD Demand'!P112+'FR-16(7)(v)-4 PROD Energy'!P112+'FR-16(7)(v)-5 PROD Cust'!P112+'FR-16(7)(v)-7 TRANS Demand'!P112+'FR-16(7)(v)-8 TRANS Energy'!P112+'FR-16(7)(v)-9 TRANS Cust'!P112+'FR-16(7)(v)-11 DIST Demand'!P112+'FR-16(7)(v)-12 DIST Energy'!P112+'FR-16(7)(v)-13 DIST Cust'!P112-'FR-16(7)(v)-14 TOTAL CLASS'!P112","v":0},{"$f":"'FR-16(7)(v)-3 PROD Demand'!Q112+'FR-16(7)(v)-4 PROD Energy'!Q112+'FR-16(7)(v)-5 PROD Cust'!Q112+'FR-16(7)(v)-7 TRANS Demand'!Q112+'FR-16(7)(v)-8 TRANS Energy'!Q112+'FR-16(7)(v)-9 TRANS Cust'!Q112+'FR-16(7)(v)-11 DIST Demand'!Q112+'FR-16(7)(v)-12 DIST Energy'!Q112+'FR-16(7)(v)-13 DIST Cust'!Q112-'FR-16(7)(v)-14 TOTAL CLASS'!Q112","v":0},{"$f":"SUM(G112:Q112)","v":0},{"$f":"F112-R112","v":0}]
[56,null,{"$f":"'FR-16(7)(v)-1 Functional'!C113","v":"PRODUCTION - ENERGY"},{"$f":"'FR-16(7)(v)-1 Functional'!D113","v":"K301"},null,{"$f":"'FR-16(7)(v)-3 PROD Demand'!F113+'FR-16(7)(v)-4 PROD Energy'!F113+'FR-16(7)(v)-5 PROD Cust'!F113+'FR-16(7)(v)-7 TRANS Demand'!F113+'FR-16(7)(v)-8 TRANS Energy'!F113+'FR-16(7)(v)-9 TRANS Cust'!F113+'FR-16(7)(v)-11 DIST Demand'!F113+'FR-16(7)(v)-12 DIST Energy'!F113+'FR-16(7)(v)-13 DIST Cust'!F113-'FR-16(7)(v)-14 TOTAL CLASS'!F113","v":0},{"$f":"'FR-16(7)(v)-3 PROD Demand'!G113+'FR-16(7)(v)-4 PROD Energy'!G113+'FR-16(7)(v)-5 PROD Cust'!G113+'FR-16(7)(v)-7 TRANS Demand'!G113+'FR-16(7)(v)-8 TRANS Energy'!G113+'FR-16(7)(v)-9 TRANS Cust'!G113+'FR-16(7)(v)-11 DIST Demand'!G113+'FR-16(7)(v)-12 DIST Energy'!G113+'FR-16(7)(v)-13 DIST Cust'!G113-'FR-16(7)(v)-14 TOTAL CLASS'!G113","v":0},{"$f":"'FR-16(7)(v)-3 PROD Demand'!H113+'FR-16(7)(v)-4 PROD Energy'!H113+'FR-16(7)(v)-5 PROD Cust'!H113+'FR-16(7)(v)-7 TRANS Demand'!H113+'FR-16(7)(v)-8 TRANS Energy'!H113+'FR-16(7)(v)-9 TRANS Cust'!H113+'FR-16(7)(v)-11 DIST Demand'!H113+'FR-16(7)(v)-12 DIST Energy'!H113+'FR-16(7)(v)-13 DIST Cust'!H113-'FR-16(7)(v)-14 TOTAL CLASS'!H113","v":0},{"$f":"'FR-16(7)(v)-3 PROD Demand'!I113+'FR-16(7)(v)-4 PROD Energy'!I113+'FR-16(7)(v)-5 PROD Cust'!I113+'FR-16(7)(v)-7 TRANS Demand'!I113+'FR-16(7)(v)-8 TRANS Energy'!I113+'FR-16(7)(v)-9 TRANS Cust'!I113+'FR-16(7)(v)-11 DIST Demand'!I113+'FR-16(7)(v)-12 DIST Energy'!I113+'FR-16(7)(v)-13 DIST Cust'!I113-'FR-16(7)(v)-14 TOTAL CLASS'!I113","v":0},{"$f":"'FR-16(7)(v)-3 PROD Demand'!J113+'FR-16(7)(v)-4 PROD Energy'!J113+'FR-16(7)(v)-5 PROD Cust'!J113+'FR-16(7)(v)-7 TRANS Demand'!J113+'FR-16(7)(v)-8 TRANS Energy'!J113+'FR-16(7)(v)-9 TRANS Cust'!J113+'FR-16(7)(v)-11 DIST Demand'!J113+'FR-16(7)(v)-12 DIST Energy'!J113+'FR-16(7)(v)-13 DIST Cust'!J113-'FR-16(7)(v)-14 TOTAL CLASS'!J113","v":0},{"$f":"'FR-16(7)(v)-3 PROD Demand'!K113+'FR-16(7)(v)-4 PROD Energy'!K113+'FR-16(7)(v)-5 PROD Cust'!K113+'FR-16(7)(v)-7 TRANS Demand'!K113+'FR-16(7)(v)-8 TRANS Energy'!K113+'FR-16(7)(v)-9 TRANS Cust'!K113+'FR-16(7)(v)-11 DIST Demand'!K113+'FR-16(7)(v)-12 DIST Energy'!K113+'FR-16(7)(v)-13 DIST Cust'!K113-'FR-16(7)(v)-14 TOTAL CLASS'!K113","v":0},{"$f":"'FR-16(7)(v)-3 PROD Demand'!L113+'FR-16(7)(v)-4 PROD Energy'!L113+'FR-16(7)(v)-5 PROD Cust'!L113+'FR-16(7)(v)-7 TRANS Demand'!L113+'FR-16(7)(v)-8 TRANS Energy'!L113+'FR-16(7)(v)-9 TRANS Cust'!L113+'FR-16(7)(v)-11 DIST Demand'!L113+'FR-16(7)(v)-12 DIST Energy'!L113+'FR-16(7)(v)-13 DIST Cust'!L113-'FR-16(7)(v)-14 TOTAL CLASS'!L113","v":0},{"$f":"'FR-16(7)(v)-3 PROD Demand'!M113+'FR-16(7)(v)-4 PROD Energy'!M113+'FR-16(7)(v)-5 PROD Cust'!M113+'FR-16(7)(v)-7 TRANS Demand'!M113+'FR-16(7)(v)-8 TRANS Energy'!M113+'FR-16(7)(v)-9 TRANS Cust'!M113+'FR-16(7)(v)-11 DIST Demand'!M113+'FR-16(7)(v)-12 DIST Energy'!M113+'FR-16(7)(v)-13 DIST Cust'!M113-'FR-16(7)(v)-14 TOTAL CLASS'!M113","v":0},{"$f":"'FR-16(7)(v)-3 PROD Demand'!N113+'FR-16(7)(v)-4 PROD Energy'!N113+'FR-16(7)(v)-5 PROD Cust'!N113+'FR-16(7)(v)-7 TRANS Demand'!N113+'FR-16(7)(v)-8 TRANS Energy'!N113+'FR-16(7)(v)-9 TRANS Cust'!N113+'FR-16(7)(v)-11 DIST Demand'!N113+'FR-16(7)(v)-12 DIST Energy'!N113+'FR-16(7)(v)-13 DIST Cust'!N113-'FR-16(7)(v)-14 TOTAL CLASS'!N113","v":0},{"$f":"'FR-16(7)(v)-3 PROD Demand'!O113+'FR-16(7)(v)-4 PROD Energy'!O113+'FR-16(7)(v)-5 PROD Cust'!O113+'FR-16(7)(v)-7 TRANS Demand'!O113+'FR-16(7)(v)-8 TRANS Energy'!O113+'FR-16(7)(v)-9 TRANS Cust'!O113+'FR-16(7)(v)-11 DIST Demand'!O113+'FR-16(7)(v)-12 DIST Energy'!O113+'FR-16(7)(v)-13 DIST Cust'!O113-'FR-16(7)(v)-14 TOTAL CLASS'!O113","v":0},{"$f":"'FR-16(7)(v)-3 PROD Demand'!P113+'FR-16(7)(v)-4 PROD Energy'!P113+'FR-16(7)(v)-5 PROD Cust'!P113+'FR-16(7)(v)-7 TRANS Demand'!P113+'FR-16(7)(v)-8 TRANS Energy'!P113+'FR-16(7)(v)-9 TRANS Cust'!P113+'FR-16(7)(v)-11 DIST Demand'!P113+'FR-16(7)(v)-12 DIST Energy'!P113+'FR-16(7)(v)-13 DIST Cust'!P113-'FR-16(7)(v)-14 TOTAL CLASS'!P113","v":0},{"$f":"'FR-16(7)(v)-3 PROD Demand'!Q113+'FR-16(7)(v)-4 PROD Energy'!Q113+'FR-16(7)(v)-5 PROD Cust'!Q113+'FR-16(7)(v)-7 TRANS Demand'!Q113+'FR-16(7)(v)-8 TRANS Energy'!Q113+'FR-16(7)(v)-9 TRANS Cust'!Q113+'FR-16(7)(v)-11 DIST Demand'!Q113+'FR-16(7)(v)-12 DIST Energy'!Q113+'FR-16(7)(v)-13 DIST Cust'!Q113-'FR-16(7)(v)-14 TOTAL CLASS'!Q113","v":0},0,0]
[57,null,{"$f":"'FR-16(7)(v)-1 Functional'!C114","v":"TRANSMISSION"},{"$f":"'FR-16(7)(v)-1 Functional'!D114","v":"K202"},null,{"$f":"'FR-16(7)(v)-3 PROD Demand'!F114+'FR-16(7)(v)-4 PROD Energy'!F114+'FR-16(7)(v)-5 PROD Cust'!F114+'FR-16(7)(v)-7 TRANS Demand'!F114+'FR-16(7)(v)-8 TRANS Energy'!F114+'FR-16(7)(v)-9 TRANS Cust'!F114+'FR-16(7)(v)-11 DIST Demand'!F114+'FR-16(7)(v)-12 DIST Energy'!F114+'FR-16(7)(v)-13 DIST Cust'!F114-'FR-16(7)(v)-14 TOTAL CLASS'!F114","v":0},{"$f":"'FR-16(7)(v)-3 PROD Demand'!G114+'FR-16(7)(v)-4 PROD Energy'!G114+'FR-16(7)(v)-5 PROD Cust'!G114+'FR-16(7)(v)-7 TRANS Demand'!G114+'FR-16(7)(v)-8 TRANS Energy'!G114+'FR-16(7)(v)-9 TRANS Cust'!G114+'FR-16(7)(v)-11 DIST Demand'!G114+'FR-16(7)(v)-12 DIST Energy'!G114+'FR-16(7)(v)-13 DIST Cust'!G114-'FR-16(7)(v)-14 TOTAL CLASS'!G114","v":0},{"$f":"'FR-16(7)(v)-3 PROD Demand'!H114+'FR-16(7)(v)-4 PROD Energy'!H114+'FR-16(7)(v)-5 PROD Cust'!H114+'FR-16(7)(v)-7 TRANS Demand'!H114+'FR-16(7)(v)-8 TRANS Energy'!H114+'FR-16(7)(v)-9 TRANS Cust'!H114+'FR-16(7)(v)-11 DIST Demand'!H114+'FR-16(7)(v)-12 DIST Energy'!H114+'FR-16(7)(v)-13 DIST Cust'!H114-'FR-16(7)(v)-14 TOTAL CLASS'!H114","v":0},{"$f":"'FR-16(7)(v)-3 PROD Demand'!I114+'FR-16(7)(v)-4 PROD Energy'!I114+'FR-16(7)(v)-5 PROD Cust'!I114+'FR-16(7)(v)-7 TRANS Demand'!I114+'FR-16(7)(v)-8 TRANS Energy'!I114+'FR-16(7)(v)-9 TRANS Cust'!I114+'FR-16(7)(v)-11 DIST Demand'!I114+'FR-16(7)(v)-12 DIST Energy'!I114+'FR-16(7)(v)-13 DIST Cust'!I114-'FR-16(7)(v)-14 TOTAL CLASS'!I114","v":0},{"$f":"'FR-16(7)(v)-3 PROD Demand'!J114+'FR-16(7)(v)-4 PROD Energy'!J114+'FR-16(7)(v)-5 PROD Cust'!J114+'FR-16(7)(v)-7 TRANS Demand'!J114+'FR-16(7)(v)-8 TRANS Energy'!J114+'FR-16(7)(v)-9 TRANS Cust'!J114+'FR-16(7)(v)-11 DIST Demand'!J114+'FR-16(7)(v)-12 DIST Energy'!J114+'FR-16(7)(v)-13 DIST Cust'!J114-'FR-16(7)(v)-14 TOTAL CLASS'!J114","v":0},{"$f":"'FR-16(7)(v)-3 PROD Demand'!K114+'FR-16(7)(v)-4 PROD Energy'!K114+'FR-16(7)(v)-5 PROD Cust'!K114+'FR-16(7)(v)-7 TRANS Demand'!K114+'FR-16(7)(v)-8 TRANS Energy'!K114+'FR-16(7)(v)-9 TRANS Cust'!K114+'FR-16(7)(v)-11 DIST Demand'!K114+'FR-16(7)(v)-12 DIST Energy'!K114+'FR-16(7)(v)-13 DIST Cust'!K114-'FR-16(7)(v)-14 TOTAL CLASS'!K114","v":0},{"$f":"'FR-16(7)(v)-3 PROD Demand'!L114+'FR-16(7)(v)-4 PROD Energy'!L114+'FR-16(7)(v)-5 PROD Cust'!L114+'FR-16(7)(v)-7 TRANS Demand'!L114+'FR-16(7)(v)-8 TRANS Energy'!L114+'FR-16(7)(v)-9 TRANS Cust'!L114+'FR-16(7)(v)-11 DIST Demand'!L114+'FR-16(7)(v)-12 DIST Energy'!L114+'FR-16(7)(v)-13 DIST Cust'!L114-'FR-16(7)(v)-14 TOTAL CLASS'!L114","v":0},{"$f":"'FR-16(7)(v)-3 PROD Demand'!M114+'FR-16(7)(v)-4 PROD Energy'!M114+'FR-16(7)(v)-5 PROD Cust'!M114+'FR-16(7)(v)-7 TRANS Demand'!M114+'FR-16(7)(v)-8 TRANS Energy'!M114+'FR-16(7)(v)-9 TRANS Cust'!M114+'FR-16(7)(v)-11 DIST Demand'!M114+'FR-16(7)(v)-12 DIST Energy'!M114+'FR-16(7)(v)-13 DIST Cust'!M114-'FR-16(7)(v)-14 TOTAL CLASS'!M114","v":0},{"$f":"'FR-16(7)(v)-3 PROD Demand'!N114+'FR-16(7)(v)-4 PROD Energy'!N114+'FR-16(7)(v)-5 PROD Cust'!N114+'FR-16(7)(v)-7 TRANS Demand'!N114+'FR-16(7)(v)-8 TRANS Energy'!N114+'FR-16(7)(v)-9 TRANS Cust'!N114+'FR-16(7)(v)-11 DIST Demand'!N114+'FR-16(7)(v)-12 DIST Energy'!N114+'FR-16(7)(v)-13 DIST Cust'!N114-'FR-16(7)(v)-14 TOTAL CLASS'!N114","v":0},{"$f":"'FR-16(7)(v)-3 PROD Demand'!O114+'FR-16(7)(v)-4 PROD Energy'!O114+'FR-16(7)(v)-5 PROD Cust'!O114+'FR-16(7)(v)-7 TRANS Demand'!O114+'FR-16(7)(v)-8 TRANS Energy'!O114+'FR-16(7)(v)-9 TRANS Cust'!O114+'FR-16(7)(v)-11 DIST Demand'!O114+'FR-16(7)(v)-12 DIST Energy'!O114+'FR-16(7)(v)-13 DIST Cust'!O114-'FR-16(7)(v)-14 TOTAL CLASS'!O114","v":0},{"$f":"'FR-16(7)(v)-3 PROD Demand'!P114+'FR-16(7)(v)-4 PROD Energy'!P114+'FR-16(7)(v)-5 PROD Cust'!P114+'FR-16(7)(v)-7 TRANS Demand'!P114+'FR-16(7)(v)-8 TRANS Energy'!P114+'FR-16(7)(v)-9 TRANS Cust'!P114+'FR-16(7)(v)-11 DIST Demand'!P114+'FR-16(7)(v)-12 DIST Energy'!P114+'FR-16(7)(v)-13 DIST Cust'!P114-'FR-16(7)(v)-14 TOTAL CLASS'!P114","v":0},{"$f":"'FR-16(7)(v)-3 PROD Demand'!Q114+'FR-16(7)(v)-4 PROD Energy'!Q114+'FR-16(7)(v)-5 PROD Cust'!Q114+'FR-16(7)(v)-7 TRANS Demand'!Q114+'FR-16(7)(v)-8 TRANS Energy'!Q114+'FR-16(7)(v)-9 TRANS Cust'!Q114+'FR-16(7)(v)-11 DIST Demand'!Q114+'FR-16(7)(v)-12 DIST Energy'!Q114+'FR-16(7)(v)-13 DIST Cust'!Q114-'FR-16(7)(v)-14 TOTAL CLASS'!Q114","v":0},0,0]
[58,null,{"$f":"'FR-16(7)(v)-1 Functional'!C115","v":"DISTRIBUTION - DEMAND"},{"$f":"'FR-16(7)(v)-1 Functional'!D115","v":"K201"},null,{"$f":"'FR-16(7)(v)-3 PROD Demand'!F115+'FR-16(7)(v)-4 PROD Energy'!F115+'FR-16(7)(v)-5 PROD Cust'!F115+'FR-16(7)(v)-7 TRANS Demand'!F115+'FR-16(7)(v)-8 TRANS Energy'!F115+'FR-16(7)(v)-9 TRANS Cust'!F115+'FR-16(7)(v)-11 DIST Demand'!F115+'FR-16(7)(v)-12 DIST Energy'!F115+'FR-16(7)(v)-13 DIST Cust'!F115-'FR-16(7)(v)-14 TOTAL CLASS'!F115","v":0},{"$f":"'FR-16(7)(v)-3 PROD Demand'!G115+'FR-16(7)(v)-4 PROD Energy'!G115+'FR-16(7)(v)-5 PROD Cust'!G115+'FR-16(7)(v)-7 TRANS Demand'!G115+'FR-16(7)(v)-8 TRANS Energy'!G115+'FR-16(7)(v)-9 TRANS Cust'!G115+'FR-16(7)(v)-11 DIST Demand'!G115+'FR-16(7)(v)-12 DIST Energy'!G115+'FR-16(7)(v)-13 DIST Cust'!G115-'FR-16(7)(v)-14 TOTAL CLASS'!G115","v":0},{"$f":"'FR-16(7)(v)-3 PROD Demand'!H115+'FR-16(7)(v)-4 PROD Energy'!H115+'FR-16(7)(v)-5 PROD Cust'!H115+'FR-16(7)(v)-7 TRANS Demand'!H115+'FR-16(7)(v)-8 TRANS Energy'!H115+'FR-16(7)(v)-9 TRANS Cust'!H115+'FR-16(7)(v)-11 DIST Demand'!H115+'FR-16(7)(v)-12 DIST Energy'!H115+'FR-16(7)(v)-13 DIST Cust'!H115-'FR-16(7)(v)-14 TOTAL CLASS'!H115","v":0},{"$f":"'FR-16(7)(v)-3 PROD Demand'!I115+'FR-16(7)(v)-4 PROD Energy'!I115+'FR-16(7)(v)-5 PROD Cust'!I115+'FR-16(7)(v)-7 TRANS Demand'!I115+'FR-16(7)(v)-8 TRANS Energy'!I115+'FR-16(7)(v)-9 TRANS Cust'!I115+'FR-16(7)(v)-11 DIST Demand'!I115+'FR-16(7)(v)-12 DIST Energy'!I115+'FR-16(7)(v)-13 DIST Cust'!I115-'FR-16(7)(v)-14 TOTAL CLASS'!I115","v":0},{"$f":"'FR-16(7)(v)-3 PROD Demand'!J115+'FR-16(7)(v)-4 PROD Energy'!J115+'FR-16(7)(v)-5 PROD Cust'!J115+'FR-16(7)(v)-7 TRANS Demand'!J115+'FR-16(7)(v)-8 TRANS Energy'!J115+'FR-16(7)(v)-9 TRANS Cust'!J115+'FR-16(7)(v)-11 DIST Demand'!J115+'FR-16(7)(v)-12 DIST Energy'!J115+'FR-16(7)(v)-13 DIST Cust'!J115-'FR-16(7)(v)-14 TOTAL CLASS'!J115","v":0},{"$f":"'FR-16(7)(v)-3 PROD Demand'!K115+'FR-16(7)(v)-4 PROD Energy'!K115+'FR-16(7)(v)-5 PROD Cust'!K115+'FR-16(7)(v)-7 TRANS Demand'!K115+'FR-16(7)(v)-8 TRANS Energy'!K115+'FR-16(7)(v)-9 TRANS Cust'!K115+'FR-16(7)(v)-11 DIST Demand'!K115+'FR-16(7)(v)-12 DIST Energy'!K115+'FR-16(7)(v)-13 DIST Cust'!K115-'FR-16(7)(v)-14 TOTAL CLASS'!K115","v":0},{"$f":"'FR-16(7)(v)-3 PROD Demand'!L115+'FR-16(7)(v)-4 PROD Energy'!L115+'FR-16(7)(v)-5 PROD Cust'!L115+'FR-16(7)(v)-7 TRANS Demand'!L115+'FR-16(7)(v)-8 TRANS Energy'!L115+'FR-16(7)(v)-9 TRANS Cust'!L115+'FR-16(7)(v)-11 DIST Demand'!L115+'FR-16(7)(v)-12 DIST Energy'!L115+'FR-16(7)(v)-13 DIST Cust'!L115-'FR-16(7)(v)-14 TOTAL CLASS'!L115","v":0},{"$f":"'FR-16(7)(v)-3 PROD Demand'!M115+'FR-16(7)(v)-4 PROD Energy'!M115+'FR-16(7)(v)-5 PROD Cust'!M115+'FR-16(7)(v)-7 TRANS Demand'!M115+'FR-16(7)(v)-8 TRANS Energy'!M115+'FR-16(7)(v)-9 TRANS Cust'!M115+'FR-16(7)(v)-11 DIST Demand'!M115+'FR-16(7)(v)-12 DIST Energy'!M115+'FR-16(7)(v)-13 DIST Cust'!M115-'FR-16(7)(v)-14 TOTAL CLASS'!M115","v":0},{"$f":"'FR-16(7)(v)-3 PROD Demand'!N115+'FR-16(7)(v)-4 PROD Energy'!N115+'FR-16(7)(v)-5 PROD Cust'!N115+'FR-16(7)(v)-7 TRANS Demand'!N115+'FR-16(7)(v)-8 TRANS Energy'!N115+'FR-16(7)(v)-9 TRANS Cust'!N115+'FR-16(7)(v)-11 DIST Demand'!N115+'FR-16(7)(v)-12 DIST Energy'!N115+'FR-16(7)(v)-13 DIST Cust'!N115-'FR-16(7)(v)-14 TOTAL CLASS'!N115","v":0},{"$f":"'FR-16(7)(v)-3 PROD Demand'!O115+'FR-16(7)(v)-4 PROD Energy'!O115+'FR-16(7)(v)-5 PROD Cust'!O115+'FR-16(7)(v)-7 TRANS Demand'!O115+'FR-16(7)(v)-8 TRANS Energy'!O115+'FR-16(7)(v)-9 TRANS Cust'!O115+'FR-16(7)(v)-11 DIST Demand'!O115+'FR-16(7)(v)-12 DIST Energy'!O115+'FR-16(7)(v)-13 DIST Cust'!O115-'FR-16(7)(v)-14 TOTAL CLASS'!O115","v":0},{"$f":"'FR-16(7)(v)-3 PROD Demand'!P115+'FR-16(7)(v)-4 PROD Energy'!P115+'FR-16(7)(v)-5 PROD Cust'!P115+'FR-16(7)(v)-7 TRANS Demand'!P115+'FR-16(7)(v)-8 TRANS Energy'!P115+'FR-16(7)(v)-9 TRANS Cust'!P115+'FR-16(7)(v)-11 DIST Demand'!P115+'FR-16(7)(v)-12 DIST Energy'!P115+'FR-16(7)(v)-13 DIST Cust'!P115-'FR-16(7)(v)-14 TOTAL CLASS'!P115","v":0},{"$f":"'FR-16(7)(v)-3 PROD Demand'!Q115+'FR-16(7)(v)-4 PROD Energy'!Q115+'FR-16(7)(v)-5 PROD Cust'!Q115+'FR-16(7)(v)-7 TRANS Demand'!Q115+'FR-16(7)(v)-8 TRANS Energy'!Q115+'FR-16(7)(v)-9 TRANS Cust'!Q115+'FR-16(7)(v)-11 DIST Demand'!Q115+'FR-16(7)(v)-12 DIST Energy'!Q115+'FR-16(7)(v)-13 DIST Cust'!Q115-'FR-16(7)(v)-14 TOTAL CLASS'!Q115","v":0},0,0]
[59,null,{"$f":"'FR-16(7)(v)-1 Functional'!C116","v":"DISTRIBUTION - CUSTOMER"},{"$f":"'FR-16(7)(v)-1 Functional'!D116","v":"K405"},null,{"$f":"'FR-16(7)(v)-3 PROD Demand'!F116+'FR-16(7)(v)-4 PROD Energy'!F116+'FR-16(7)(v)-5 PROD Cust'!F116+'FR-16(7)(v)-7 TRANS Demand'!F116+'FR-16(7)(v)-8 TRANS Energy'!F116+'FR-16(7)(v)-9 TRANS Cust'!F116+'FR-16(7)(v)-11 DIST Demand'!F116+'FR-16(7)(v)-12 DIST Energy'!F116+'FR-16(7)(v)-13 DIST Cust'!F116-'FR-16(7)(v)-14 TOTAL CLASS'!F116","v":0},{"$f":"'FR-16(7)(v)-3 PROD Demand'!G116+'FR-16(7)(v)-4 PROD Energy'!G116+'FR-16(7)(v)-5 PROD Cust'!G116+'FR-16(7)(v)-7 TRANS Demand'!G116+'FR-16(7)(v)-8 TRANS Energy'!G116+'FR-16(7)(v)-9 TRANS Cust'!G116+'FR-16(7)(v)-11 DIST Demand'!G116+'FR-16(7)(v)-12 DIST Energy'!G116+'FR-16(7)(v)-13 DIST Cust'!G116-'FR-16(7)(v)-14 TOTAL CLASS'!G116","v":0},{"$f":"'FR-16(7)(v)-3 PROD Demand'!H116+'FR-16(7)(v)-4 PROD Energy'!H116+'FR-16(7)(v)-5 PROD Cust'!H116+'FR-16(7)(v)-7 TRANS Demand'!H116+'FR-16(7)(v)-8 TRANS Energy'!H116+'FR-16(7)(v)-9 TRANS Cust'!H116+'FR-16(7)(v)-11 DIST Demand'!H116+'FR-16(7)(v)-12 DIST Energy'!H116+'FR-16(7)(v)-13 DIST Cust'!H116-'FR-16(7)(v)-14 TOTAL CLASS'!H116","v":0},{"$f":"'FR-16(7)(v)-3 PROD Demand'!I116+'FR-16(7)(v)-4 PROD Energy'!I116+'FR-16(7)(v)-5 PROD Cust'!I116+'FR-16(7)(v)-7 TRANS Demand'!I116+'FR-16(7)(v)-8 TRANS Energy'!I116+'FR-16(7)(v)-9 TRANS Cust'!I116+'FR-16(7)(v)-11 DIST Demand'!I116+'FR-16(7)(v)-12 DIST Energy'!I116+'FR-16(7)(v)-13 DIST Cust'!I116-'FR-16(7)(v)-14 TOTAL CLASS'!I116","v":0},{"$f":"'FR-16(7)(v)-3 PROD Demand'!J116+'FR-16(7)(v)-4 PROD Energy'!J116+'FR-16(7)(v)-5 PROD Cust'!J116+'FR-16(7)(v)-7 TRANS Demand'!J116+'FR-16(7)(v)-8 TRANS Energy'!J116+'FR-16(7)(v)-9 TRANS Cust'!J116+'FR-16(7)(v)-11 DIST Demand'!J116+'FR-16(7)(v)-12 DIST Energy'!J116+'FR-16(7)(v)-13 DIST Cust'!J116-'FR-16(7)(v)-14 TOTAL CLASS'!J116","v":0},{"$f":"'FR-16(7)(v)-3 PROD Demand'!K116+'FR-16(7)(v)-4 PROD Energy'!K116+'FR-16(7)(v)-5 PROD Cust'!K116+'FR-16(7)(v)-7 TRANS Demand'!K116+'FR-16(7)(v)-8 TRANS Energy'!K116+'FR-16(7)(v)-9 TRANS Cust'!K116+'FR-16(7)(v)-11 DIST Demand'!K116+'FR-16(7)(v)-12 DIST Energy'!K116+'FR-16(7)(v)-13 DIST Cust'!K116-'FR-16(7)(v)-14 TOTAL CLASS'!K116","v":0},{"$f":"'FR-16(7)(v)-3 PROD Demand'!L116+'FR-16(7)(v)-4 PROD Energy'!L116+'FR-16(7)(v)-5 PROD Cust'!L116+'FR-16(7)(v)-7 TRANS Demand'!L116+'FR-16(7)(v)-8 TRANS Energy'!L116+'FR-16(7)(v)-9 TRANS Cust'!L116+'FR-16(7)(v)-11 DIST Demand'!L116+'FR-16(7)(v)-12 DIST Energy'!L116+'FR-16(7)(v)-13 DIST Cust'!L116-'FR-16(7)(v)-14 TOTAL CLASS'!L116","v":0},{"$f":"'FR-16(7)(v)-3 PROD Demand'!M116+'FR-16(7)(v)-4 PROD Energy'!M116+'FR-16(7)(v)-5 PROD Cust'!M116+'FR-16(7)(v)-7 TRANS Demand'!M116+'FR-16(7)(v)-8 TRANS Energy'!M116+'FR-16(7)(v)-9 TRANS Cust'!M116+'FR-16(7)(v)-11 DIST Demand'!M116+'FR-16(7)(v)-12 DIST Energy'!M116+'FR-16(7)(v)-13 DIST Cust'!M116-'FR-16(7)(v)-14 TOTAL CLASS'!M116","v":0},{"$f":"'FR-16(7)(v)-3 PROD Demand'!N116+'FR-16(7)(v)-4 PROD Energy'!N116+'FR-16(7)(v)-5 PROD Cust'!N116+'FR-16(7)(v)-7 TRANS Demand'!N116+'FR-16(7)(v)-8 TRANS Energy'!N116+'FR-16(7)(v)-9 TRANS Cust'!N116+'FR-16(7)(v)-11 DIST Demand'!N116+'FR-16(7)(v)-12 DIST Energy'!N116+'FR-16(7)(v)-13 DIST Cust'!N116-'FR-16(7)(v)-14 TOTAL CLASS'!N116","v":0},{"$f":"'FR-16(7)(v)-3 PROD Demand'!O116+'FR-16(7)(v)-4 PROD Energy'!O116+'FR-16(7)(v)-5 PROD Cust'!O116+'FR-16(7)(v)-7 TRANS Demand'!O116+'FR-16(7)(v)-8 TRANS Energy'!O116+'FR-16(7)(v)-9 TRANS Cust'!O116+'FR-16(7)(v)-11 DIST Demand'!O116+'FR-16(7)(v)-12 DIST Energy'!O116+'FR-16(7)(v)-13 DIST Cust'!O116-'FR-16(7)(v)-14 TOTAL CLASS'!O116","v":0},{"$f":"'FR-16(7)(v)-3 PROD Demand'!P116+'FR-16(7)(v)-4 PROD Energy'!P116+'FR-16(7)(v)-5 PROD Cust'!P116+'FR-16(7)(v)-7 TRANS Demand'!P116+'FR-16(7)(v)-8 TRANS Energy'!P116+'FR-16(7)(v)-9 TRANS Cust'!P116+'FR-16(7)(v)-11 DIST Demand'!P116+'FR-16(7)(v)-12 DIST Energy'!P116+'FR-16(7)(v)-13 DIST Cust'!P116-'FR-16(7)(v)-14 TOTAL CLASS'!P116","v":0},{"$f":"'FR-16(7)(v)-3 PROD Demand'!Q116+'FR-16(7)(v)-4 PROD Energy'!Q116+'FR-16(7)(v)-5 PROD Cust'!Q116+'FR-16(7)(v)-7 TRANS Demand'!Q116+'FR-16(7)(v)-8 TRANS Energy'!Q116+'FR-16(7)(v)-9 TRANS Cust'!Q116+'FR-16(7)(v)-11 DIST Demand'!Q116+'FR-16(7)(v)-12 DIST Energy'!Q116+'FR-16(7)(v)-13 DIST Cust'!Q116-'FR-16(7)(v)-14 TOTAL CLASS'!Q116","v":0},0,0]
[60,null,{"$f":"'FR-16(7)(v)-1 Functional'!C117","v":"CUSTOMER ACCOUNTING"},{"$f":"'FR-16(7)(v)-1 Functional'!D117","v":"A308"},null,{"$f":"'FR-16(7)(v)-3 PROD Demand'!F117+'FR-16(7)(v)-4 PROD Energy'!F117+'FR-16(7)(v)-5 PROD Cust'!F117+'FR-16(7)(v)-7 TRANS Demand'!F117+'FR-16(7)(v)-8 TRANS Energy'!F117+'FR-16(7)(v)-9 TRANS Cust'!F117+'FR-16(7)(v)-11 DIST Demand'!F117+'FR-16(7)(v)-12 DIST Energy'!F117+'FR-16(7)(v)-13 DIST Cust'!F117-'FR-16(7)(v)-14 TOTAL CLASS'!F117","v":0},{"$f":"'FR-16(7)(v)-3 PROD Demand'!G117+'FR-16(7)(v)-4 PROD Energy'!G117+'FR-16(7)(v)-5 PROD Cust'!G117+'FR-16(7)(v)-7 TRANS Demand'!G117+'FR-16(7)(v)-8 TRANS Energy'!G117+'FR-16(7)(v)-9 TRANS Cust'!G117+'FR-16(7)(v)-11 DIST Demand'!G117+'FR-16(7)(v)-12 DIST Energy'!G117+'FR-16(7)(v)-13 DIST Cust'!G117-'FR-16(7)(v)-14 TOTAL CLASS'!G117","v":0},{"$f":"'FR-16(7)(v)-3 PROD Demand'!H117+'FR-16(7)(v)-4 PROD Energy'!H117+'FR-16(7)(v)-5 PROD Cust'!H117+'FR-16(7)(v)-7 TRANS Demand'!H117+'FR-16(7)(v)-8 TRANS Energy'!H117+'FR-16(7)(v)-9 TRANS Cust'!H117+'FR-16(7)(v)-11 DIST Demand'!H117+'FR-16(7)(v)-12 DIST Energy'!H117+'FR-16(7)(v)-13 DIST Cust'!H117-'FR-16(7)(v)-14 TOTAL CLASS'!H117","v":0},{"$f":"'FR-16(7)(v)-3 PROD Demand'!I117+'FR-16(7)(v)-4 PROD Energy'!I117+'FR-16(7)(v)-5 PROD Cust'!I117+'FR-16(7)(v)-7 TRANS Demand'!I117+'FR-16(7)(v)-8 TRANS Energy'!I117+'FR-16(7)(v)-9 TRANS Cust'!I117+'FR-16(7)(v)-11 DIST Demand'!I117+'FR-16(7)(v)-12 DIST Energy'!I117+'FR-16(7)(v)-13 DIST Cust'!I117-'FR-16(7)(v)-14 TOTAL CLASS'!I117","v":0},{"$f":"'FR-16(7)(v)-3 PROD Demand'!J117+'FR-16(7)(v)-4 PROD Energy'!J117+'FR-16(7)(v)-5 PROD Cust'!J117+'FR-16(7)(v)-7 TRANS Demand'!J117+'FR-16(7)(v)-8 TRANS Energy'!J117+'FR-16(7)(v)-9 TRANS Cust'!J117+'FR-16(7)(v)-11 DIST Demand'!J117+'FR-16(7)(v)-12 DIST Energy'!J117+'FR-16(7)(v)-13 DIST Cust'!J117-'FR-16(7)(v)-14 TOTAL CLASS'!J117","v":0},{"$f":"'FR-16(7)(v)-3 PROD Demand'!K117+'FR-16(7)(v)-4 PROD Energy'!K117+'FR-16(7)(v)-5 PROD Cust'!K117+'FR-16(7)(v)-7 TRANS Demand'!K117+'FR-16(7)(v)-8 TRANS Energy'!K117+'FR-16(7)(v)-9 TRANS Cust'!K117+'FR-16(7)(v)-11 DIST Demand'!K117+'FR-16(7)(v)-12 DIST Energy'!K117+'FR-16(7)(v)-13 DIST Cust'!K117-'FR-16(7)(v)-14 TOTAL CLASS'!K117","v":0},{"$f":"'FR-16(7)(v)-3 PROD Demand'!L117+'FR-16(7)(v)-4 PROD Energy'!L117+'FR-16(7)(v)-5 PROD Cust'!L117+'FR-16(7)(v)-7 TRANS Demand'!L117+'FR-16(7)(v)-8 TRANS Energy'!L117+'FR-16(7)(v)-9 TRANS Cust'!L117+'FR-16(7)(v)-11 DIST Demand'!L117+'FR-16(7)(v)-12 DIST Energy'!L117+'FR-16(7)(v)-13 DIST Cust'!L117-'FR-16(7)(v)-14 TOTAL CLASS'!L117","v":0},{"$f":"'FR-16(7)(v)-3 PROD Demand'!M117+'FR-16(7)(v)-4 PROD Energy'!M117+'FR-16(7)(v)-5 PROD Cust'!M117+'FR-16(7)(v)-7 TRANS Demand'!M117+'FR-16(7)(v)-8 TRANS Energy'!M117+'FR-16(7)(v)-9 TRANS Cust'!M117+'FR-16(7)(v)-11 DIST Demand'!M117+'FR-16(7)(v)-12 DIST Energy'!M117+'FR-16(7)(v)-13 DIST Cust'!M117-'FR-16(7)(v)-14 TOTAL CLASS'!M117","v":0},{"$f":"'FR-16(7)(v)-3 PROD Demand'!N117+'FR-16(7)(v)-4 PROD Energy'!N117+'FR-16(7)(v)-5 PROD Cust'!N117+'FR-16(7)(v)-7 TRANS Demand'!N117+'FR-16(7)(v)-8 TRANS Energy'!N117+'FR-16(7)(v)-9 TRANS Cust'!N117+'FR-16(7)(v)-11 DIST Demand'!N117+'FR-16(7)(v)-12 DIST Energy'!N117+'FR-16(7)(v)-13 DIST Cust'!N117-'FR-16(7)(v)-14 TOTAL CLASS'!N117","v":0},{"$f":"'FR-16(7)(v)-3 PROD Demand'!O117+'FR-16(7)(v)-4 PROD Energy'!O117+'FR-16(7)(v)-5 PROD Cust'!O117+'FR-16(7)(v)-7 TRANS Demand'!O117+'FR-16(7)(v)-8 TRANS Energy'!O117+'FR-16(7)(v)-9 TRANS Cust'!O117+'FR-16(7)(v)-11 DIST Demand'!O117+'FR-16(7)(v)-12 DIST Energy'!O117+'FR-16(7)(v)-13 DIST Cust'!O117-'FR-16(7)(v)-14 TOTAL CLASS'!O117","v":0},{"$f":"'FR-16(7)(v)-3 PROD Demand'!P117+'FR-16(7)(v)-4 PROD Energy'!P117+'FR-16(7)(v)-5 PROD Cust'!P117+'FR-16(7)(v)-7 TRANS Demand'!P117+'FR-16(7)(v)-8 TRANS Energy'!P117+'FR-16(7)(v)-9 TRANS Cust'!P117+'FR-16(7)(v)-11 DIST Demand'!P117+'FR-16(7)(v)-12 DIST Energy'!P117+'FR-16(7)(v)-13 DIST Cust'!P117-'FR-16(7)(v)-14 TOTAL CLASS'!P117","v":0},{"$f":"'FR-16(7)(v)-3 PROD Demand'!Q117+'FR-16(7)(v)-4 PROD Energy'!Q117+'FR-16(7)(v)-5 PROD Cust'!Q117+'FR-16(7)(v)-7 TRANS Demand'!Q117+'FR-16(7)(v)-8 TRANS Energy'!Q117+'FR-16(7)(v)-9 TRANS Cust'!Q117+'FR-16(7)(v)-11 DIST Demand'!Q117+'FR-16(7)(v)-12 DIST Energy'!Q117+'FR-16(7)(v)-13 DIST Cust'!Q117-'FR-16(7)(v)-14 TOTAL CLASS'!Q117","v":0},0,0]
[61,null,{"$f":"'FR-16(7)(v)-1 Functional'!C118","v":"CUSTOMER SERVICE & INFORMATION"},{"$f":"'FR-16(7)(v)-1 Functional'!D118","v":"A310"},null,{"$f":"'FR-16(7)(v)-3 PROD Demand'!F118+'FR-16(7)(v)-4 PROD Energy'!F118+'FR-16(7)(v)-5 PROD Cust'!F118+'FR-16(7)(v)-7 TRANS Demand'!F118+'FR-16(7)(v)-8 TRANS Energy'!F118+'FR-16(7)(v)-9 TRANS Cust'!F118+'FR-16(7)(v)-11 DIST Demand'!F118+'FR-16(7)(v)-12 DIST Energy'!F118+'FR-16(7)(v)-13 DIST Cust'!F118-'FR-16(7)(v)-14 TOTAL CLASS'!F118","v":0},{"$f":"'FR-16(7)(v)-3 PROD Demand'!G118+'FR-16(7)(v)-4 PROD Energy'!G118+'FR-16(7)(v)-5 PROD Cust'!G118+'FR-16(7)(v)-7 TRANS Demand'!G118+'FR-16(7)(v)-8 TRANS Energy'!G118+'FR-16(7)(v)-9 TRANS Cust'!G118+'FR-16(7)(v)-11 DIST Demand'!G118+'FR-16(7)(v)-12 DIST Energy'!G118+'FR-16(7)(v)-13 DIST Cust'!G118-'FR-16(7)(v)-14 TOTAL CLASS'!G118","v":0},{"$f":"'FR-16(7)(v)-3 PROD Demand'!H118+'FR-16(7)(v)-4 PROD Energy'!H118+'FR-16(7)(v)-5 PROD Cust'!H118+'FR-16(7)(v)-7 TRANS Demand'!H118+'FR-16(7)(v)-8 TRANS Energy'!H118+'FR-16(7)(v)-9 TRANS Cust'!H118+'FR-16(7)(v)-11 DIST Demand'!H118+'FR-16(7)(v)-12 DIST Energy'!H118+'FR-16(7)(v)-13 DIST Cust'!H118-'FR-16(7)(v)-14 TOTAL CLASS'!H118","v":0},{"$f":"'FR-16(7)(v)-3 PROD Demand'!I118+'FR-16(7)(v)-4 PROD Energy'!I118+'FR-16(7)(v)-5 PROD Cust'!I118+'FR-16(7)(v)-7 TRANS Demand'!I118+'FR-16(7)(v)-8 TRANS Energy'!I118+'FR-16(7)(v)-9 TRANS Cust'!I118+'FR-16(7)(v)-11 DIST Demand'!I118+'FR-16(7)(v)-12 DIST Energy'!I118+'FR-16(7)(v)-13 DIST Cust'!I118-'FR-16(7)(v)-14 TOTAL CLASS'!I118","v":0},{"$f":"'FR-16(7)(v)-3 PROD Demand'!J118+'FR-16(7)(v)-4 PROD Energy'!J118+'FR-16(7)(v)-5 PROD Cust'!J118+'FR-16(7)(v)-7 TRANS Demand'!J118+'FR-16(7)(v)-8 TRANS Energy'!J118+'FR-16(7)(v)-9 TRANS Cust'!J118+'FR-16(7)(v)-11 DIST Demand'!J118+'FR-16(7)(v)-12 DIST Energy'!J118+'FR-16(7)(v)-13 DIST Cust'!J118-'FR-16(7)(v)-14 TOTAL CLASS'!J118","v":0},{"$f":"'FR-16(7)(v)-3 PROD Demand'!K118+'FR-16(7)(v)-4 PROD Energy'!K118+'FR-16(7)(v)-5 PROD Cust'!K118+'FR-16(7)(v)-7 TRANS Demand'!K118+'FR-16(7)(v)-8 TRANS Energy'!K118+'FR-16(7)(v)-9 TRANS Cust'!K118+'FR-16(7)(v)-11 DIST Demand'!K118+'FR-16(7)(v)-12 DIST Energy'!K118+'FR-16(7)(v)-13 DIST Cust'!K118-'FR-16(7)(v)-14 TOTAL CLASS'!K118","v":0},{"$f":"'FR-16(7)(v)-3 PROD Demand'!L118+'FR-16(7)(v)-4 PROD Energy'!L118+'FR-16(7)(v)-5 PROD Cust'!L118+'FR-16(7)(v)-7 TRANS Demand'!L118+'FR-16(7)(v)-8 TRANS Energy'!L118+'FR-16(7)(v)-9 TRANS Cust'!L118+'FR-16(7)(v)-11 DIST Demand'!L118+'FR-16(7)(v)-12 DIST Energy'!L118+'FR-16(7)(v)-13 DIST Cust'!L118-'FR-16(7)(v)-14 TOTAL CLASS'!L118","v":0},{"$f":"'FR-16(7)(v)-3 PROD Demand'!M118+'FR-16(7)(v)-4 PROD Energy'!M118+'FR-16(7)(v)-5 PROD Cust'!M118+'FR-16(7)(v)-7 TRANS Demand'!M118+'FR-16(7)(v)-8 TRANS Energy'!M118+'FR-16(7)(v)-9 TRANS Cust'!M118+'FR-16(7)(v)-11 DIST Demand'!M118+'FR-16(7)(v)-12 DIST Energy'!M118+'FR-16(7)(v)-13 DIST Cust'!M118-'FR-16(7)(v)-14 TOTAL CLASS'!M118","v":0},{"$f":"'FR-16(7)(v)-3 PROD Demand'!N118+'FR-16(7)(v)-4 PROD Energy'!N118+'FR-16(7)(v)-5 PROD Cust'!N118+'FR-16(7)(v)-7 TRANS Demand'!N118+'FR-16(7)(v)-8 TRANS Energy'!N118+'FR-16(7)(v)-9 TRANS Cust'!N118+'FR-16(7)(v)-11 DIST Demand'!N118+'FR-16(7)(v)-12 DIST Energy'!N118+'FR-16(7)(v)-13 DIST Cust'!N118-'FR-16(7)(v)-14 TOTAL CLASS'!N118","v":0},{"$f":"'FR-16(7)(v)-3 PROD Demand'!O118+'FR-16(7)(v)-4 PROD Energy'!O118+'FR-16(7)(v)-5 PROD Cust'!O118+'FR-16(7)(v)-7 TRANS Demand'!O118+'FR-16(7)(v)-8 TRANS Energy'!O118+'FR-16(7)(v)-9 TRANS Cust'!O118+'FR-16(7)(v)-11 DIST Demand'!O118+'FR-16(7)(v)-12 DIST Energy'!O118+'FR-16(7)(v)-13 DIST Cust'!O118-'FR-16(7)(v)-14 TOTAL CLASS'!O118","v":0},{"$f":"'FR-16(7)(v)-3 PROD Demand'!P118+'FR-16(7)(v)-4 PROD Energy'!P118+'FR-16(7)(v)-5 PROD Cust'!P118+'FR-16(7)(v)-7 TRANS Demand'!P118+'FR-16(7)(v)-8 TRANS Energy'!P118+'FR-16(7)(v)-9 TRANS Cust'!P118+'FR-16(7)(v)-11 DIST Demand'!P118+'FR-16(7)(v)-12 DIST Energy'!P118+'FR-16(7)(v)-13 DIST Cust'!P118-'FR-16(7)(v)-14 TOTAL CLASS'!P118","v":0},{"$f":"'FR-16(7)(v)-3 PROD Demand'!Q118+'FR-16(7)(v)-4 PROD Energy'!Q118+'FR-16(7)(v)-5 PROD Cust'!Q118+'FR-16(7)(v)-7 TRANS Demand'!Q118+'FR-16(7)(v)-8 TRANS Energy'!Q118+'FR-16(7)(v)-9 TRANS Cust'!Q118+'FR-16(7)(v)-11 DIST Demand'!Q118+'FR-16(7)(v)-12 DIST Energy'!Q118+'FR-16(7)(v)-13 DIST Cust'!Q118-'FR-16(7)(v)-14 TOTAL CLASS'!Q118","v":0},0,0]
[62,null,{"$f":"'FR-16(7)(v)-1 Functional'!C119","v":"SALES"},{"$f":"'FR-16(7)(v)-1 Functional'!D119","v":"A312"},null,{"$f":"'FR-16(7)(v)-3 PROD Demand'!F119+'FR-16(7)(v)-4 PROD Energy'!F119+'FR-16(7)(v)-5 PROD Cust'!F119+'FR-16(7)(v)-7 TRANS Demand'!F119+'FR-16(7)(v)-8 TRANS Energy'!F119+'FR-16(7)(v)-9 TRANS Cust'!F119+'FR-16(7)(v)-11 DIST Demand'!F119+'FR-16(7)(v)-12 DIST Energy'!F119+'FR-16(7)(v)-13 DIST Cust'!F119-'FR-16(7)(v)-14 TOTAL CLASS'!F119","v":0},{"$f":"'FR-16(7)(v)-3 PROD Demand'!G119+'FR-16(7)(v)-4 PROD Energy'!G119+'FR-16(7)(v)-5 PROD Cust'!G119+'FR-16(7)(v)-7 TRANS Demand'!G119+'FR-16(7)(v)-8 TRANS Energy'!G119+'FR-16(7)(v)-9 TRANS Cust'!G119+'FR-16(7)(v)-11 DIST Demand'!G119+'FR-16(7)(v)-12 DIST Energy'!G119+'FR-16(7)(v)-13 DIST Cust'!G119-'FR-16(7)(v)-14 TOTAL CLASS'!G119","v":0},{"$f":"'FR-16(7)(v)-3 PROD Demand'!H119+'FR-16(7)(v)-4 PROD Energy'!H119+'FR-16(7)(v)-5 PROD Cust'!H119+'FR-16(7)(v)-7 TRANS Demand'!H119+'FR-16(7)(v)-8 TRANS Energy'!H119+'FR-16(7)(v)-9 TRANS Cust'!H119+'FR-16(7)(v)-11 DIST Demand'!H119+'FR-16(7)(v)-12 DIST Energy'!H119+'FR-16(7)(v)-13 DIST Cust'!H119-'FR-16(7)(v)-14 TOTAL CLASS'!H119","v":0},{"$f":"'FR-16(7)(v)-3 PROD Demand'!I119+'FR-16(7)(v)-4 PROD Energy'!I119+'FR-16(7)(v)-5 PROD Cust'!I119+'FR-16(7)(v)-7 TRANS Demand'!I119+'FR-16(7)(v)-8 TRANS Energy'!I119+'FR-16(7)(v)-9 TRANS Cust'!I119+'FR-16(7)(v)-11 DIST Demand'!I119+'FR-16(7)(v)-12 DIST Energy'!I119+'FR-16(7)(v)-13 DIST Cust'!I119-'FR-16(7)(v)-14 TOTAL CLASS'!I119","v":0},{"$f":"'FR-16(7)(v)-3 PROD Demand'!J119+'FR-16(7)(v)-4 PROD Energy'!J119+'FR-16(7)(v)-5 PROD Cust'!J119+'FR-16(7)(v)-7 TRANS Demand'!J119+'FR-16(7)(v)-8 TRANS Energy'!J119+'FR-16(7)(v)-9 TRANS Cust'!J119+'FR-16(7)(v)-11 DIST Demand'!J119+'FR-16(7)(v)-12 DIST Energy'!J119+'FR-16(7)(v)-13 DIST Cust'!J119-'FR-16(7)(v)-14 TOTAL CLASS'!J119","v":0},{"$f":"'FR-16(7)(v)-3 PROD Demand'!K119+'FR-16(7)(v)-4 PROD Energy'!K119+'FR-16(7)(v)-5 PROD Cust'!K119+'FR-16(7)(v)-7 TRANS Demand'!K119+'FR-16(7)(v)-8 TRANS Energy'!K119+'FR-16(7)(v)-9 TRANS Cust'!K119+'FR-16(7)(v)-11 DIST Demand'!K119+'FR-16(7)(v)-12 DIST Energy'!K119+'FR-16(7)(v)-13 DIST Cust'!K119-'FR-16(7)(v)-14 TOTAL CLASS'!K119","v":0},{"$f":"'FR-16(7)(v)-3 PROD Demand'!L119+'FR-16(7)(v)-4 PROD Energy'!L119+'FR-16(7)(v)-5 PROD Cust'!L119+'FR-16(7)(v)-7 TRANS Demand'!L119+'FR-16(7)(v)-8 TRANS Energy'!L119+'FR-16(7)(v)-9 TRANS Cust'!L119+'FR-16(7)(v)-11 DIST Demand'!L119+'FR-16(7)(v)-12 DIST Energy'!L119+'FR-16(7)(v)-13 DIST Cust'!L119-'FR-16(7)(v)-14 TOTAL CLASS'!L119","v":0},{"$f":"'FR-16(7)(v)-3 PROD Demand'!M119+'FR-16(7)(v)-4 PROD Energy'!M119+'FR-16(7)(v)-5 PROD Cust'!M119+'FR-16(7)(v)-7 TRANS Demand'!M119+'FR-16(7)(v)-8 TRANS Energy'!M119+'FR-16(7)(v)-9 TRANS Cust'!M119+'FR-16(7)(v)-11 DIST Demand'!M119+'FR-16(7)(v)-12 DIST Energy'!M119+'FR-16(7)(v)-13 DIST Cust'!M119-'FR-16(7)(v)-14 TOTAL CLASS'!M119","v":0},{"$f":"'FR-16(7)(v)-3 PROD Demand'!N119+'FR-16(7)(v)-4 PROD Energy'!N119+'FR-16(7)(v)-5 PROD Cust'!N119+'FR-16(7)(v)-7 TRANS Demand'!N119+'FR-16(7)(v)-8 TRANS Energy'!N119+'FR-16(7)(v)-9 TRANS Cust'!N119+'FR-16(7)(v)-11 DIST Demand'!N119+'FR-16(7)(v)-12 DIST Energy'!N119+'FR-16(7)(v)-13 DIST Cust'!N119-'FR-16(7)(v)-14 TOTAL CLASS'!N119","v":0},{"$f":"'FR-16(7)(v)-3 PROD Demand'!O119+'FR-16(7)(v)-4 PROD Energy'!O119+'FR-16(7)(v)-5 PROD Cust'!O119+'FR-16(7)(v)-7 TRANS Demand'!O119+'FR-16(7)(v)-8 TRANS Energy'!O119+'FR-16(7)(v)-9 TRANS Cust'!O119+'FR-16(7)(v)-11 DIST Demand'!O119+'FR-16(7)(v)-12 DIST Energy'!O119+'FR-16(7)(v)-13 DIST Cust'!O119-'FR-16(7)(v)-14 TOTAL CLASS'!O119","v":0},{"$f":"'FR-16(7)(v)-3 PROD Demand'!P119+'FR-16(7)(v)-4 PROD Energy'!P119+'FR-16(7)(v)-5 PROD Cust'!P119+'FR-16(7)(v)-7 TRANS Demand'!P119+'FR-16(7)(v)-8 TRANS Energy'!P119+'FR-16(7)(v)-9 TRANS Cust'!P119+'FR-16(7)(v)-11 DIST Demand'!P119+'FR-16(7)(v)-12 DIST Energy'!P119+'FR-16(7)(v)-13 DIST Cust'!P119-'FR-16(7)(v)-14 TOTAL CLASS'!P119","v":0},{"$f":"'FR-16(7)(v)-3 PROD Demand'!Q119+'FR-16(7)(v)-4 PROD Energy'!Q119+'FR-16(7)(v)-5 PROD Cust'!Q119+'FR-16(7)(v)-7 TRANS Demand'!Q119+'FR-16(7)(v)-8 TRANS Energy'!Q119+'FR-16(7)(v)-9 TRANS Cust'!Q119+'FR-16(7)(v)-11 DIST Demand'!Q119+'FR-16(7)(v)-12 DIST Energy'!Q119+'FR-16(7)(v)-13 DIST Cust'!Q119-'FR-16(7)(v)-14 TOTAL CLASS'!Q119","v":0},0,0]
[63,null,{"$f":"'FR-16(7)(v)-1 Functional'!C120","v":"ADJUSTMENT"},{"$f":"'FR-16(7)(v)-1 Functional'!D120","v":"A315"},null,{"$f":"'FR-16(7)(v)-3 PROD Demand'!F120+'FR-16(7)(v)-4 PROD Energy'!F120+'FR-16(7)(v)-5 PROD Cust'!F120+'FR-16(7)(v)-7 TRANS Demand'!F120+'FR-16(7)(v)-8 TRANS Energy'!F120+'FR-16(7)(v)-9 TRANS Cust'!F120+'FR-16(7)(v)-11 DIST Demand'!F120+'FR-16(7)(v)-12 DIST Energy'!F120+'FR-16(7)(v)-13 DIST Cust'!F120-'FR-16(7)(v)-14 TOTAL CLASS'!F120","v":0},{"$f":"'FR-16(7)(v)-3 PROD Demand'!G120+'FR-16(7)(v)-4 PROD Energy'!G120+'FR-16(7)(v)-5 PROD Cust'!G120+'FR-16(7)(v)-7 TRANS Demand'!G120+'FR-16(7)(v)-8 TRANS Energy'!G120+'FR-16(7)(v)-9 TRANS Cust'!G120+'FR-16(7)(v)-11 DIST Demand'!G120+'FR-16(7)(v)-12 DIST Energy'!G120+'FR-16(7)(v)-13 DIST Cust'!G120-'FR-16(7)(v)-14 TOTAL CLASS'!G120","v":0},{"$f":"'FR-16(7)(v)-3 PROD Demand'!H120+'FR-16(7)(v)-4 PROD Energy'!H120+'FR-16(7)(v)-5 PROD Cust'!H120+'FR-16(7)(v)-7 TRANS Demand'!H120+'FR-16(7)(v)-8 TRANS Energy'!H120+'FR-16(7)(v)-9 TRANS Cust'!H120+'FR-16(7)(v)-11 DIST Demand'!H120+'FR-16(7)(v)-12 DIST Energy'!H120+'FR-16(7)(v)-13 DIST Cust'!H120-'FR-16(7)(v)-14 TOTAL CLASS'!H120","v":0},{"$f":"'FR-16(7)(v)-3 PROD Demand'!I120+'FR-16(7)(v)-4 PROD Energy'!I120+'FR-16(7)(v)-5 PROD Cust'!I120+'FR-16(7)(v)-7 TRANS Demand'!I120+'FR-16(7)(v)-8 TRANS Energy'!I120+'FR-16(7)(v)-9 TRANS Cust'!I120+'FR-16(7)(v)-11 DIST Demand'!I120+'FR-16(7)(v)-12 DIST Energy'!I120+'FR-16(7)(v)-13 DIST Cust'!I120-'FR-16(7)(v)-14 TOTAL CLASS'!I120","v":0},{"$f":"'FR-16(7)(v)-3 PROD Demand'!J120+'FR-16(7)(v)-4 PROD Energy'!J120+'FR-16(7)(v)-5 PROD Cust'!J120+'FR-16(7)(v)-7 TRANS Demand'!J120+'FR-16(7)(v)-8 TRANS Energy'!J120+'FR-16(7)(v)-9 TRANS Cust'!J120+'FR-16(7)(v)-11 DIST Demand'!J120+'FR-16(7)(v)-12 DIST Energy'!J120+'FR-16(7)(v)-13 DIST Cust'!J120-'FR-16(7)(v)-14 TOTAL CLASS'!J120","v":0},{"$f":"'FR-16(7)(v)-3 PROD Demand'!K120+'FR-16(7)(v)-4 PROD Energy'!K120+'FR-16(7)(v)-5 PROD Cust'!K120+'FR-16(7)(v)-7 TRANS Demand'!K120+'FR-16(7)(v)-8 TRANS Energy'!K120+'FR-16(7)(v)-9 TRANS Cust'!K120+'FR-16(7)(v)-11 DIST Demand'!K120+'FR-16(7)(v)-12 DIST Energy'!K120+'FR-16(7)(v)-13 DIST Cust'!K120-'FR-16(7)(v)-14 TOTAL CLASS'!K120","v":0},{"$f":"'FR-16(7)(v)-3 PROD Demand'!L120+'FR-16(7)(v)-4 PROD Energy'!L120+'FR-16(7)(v)-5 PROD Cust'!L120+'FR-16(7)(v)-7 TRANS Demand'!L120+'FR-16(7)(v)-8 TRANS Energy'!L120+'FR-16(7)(v)-9 TRANS Cust'!L120+'FR-16(7)(v)-11 DIST Demand'!L120+'FR-16(7)(v)-12 DIST Energy'!L120+'FR-16(7)(v)-13 DIST Cust'!L120-'FR-16(7)(v)-14 TOTAL CLASS'!L120","v":0},{"$f":"'FR-16(7)(v)-3 PROD Demand'!M120+'FR-16(7)(v)-4 PROD Energy'!M120+'FR-16(7)(v)-5 PROD Cust'!M120+'FR-16(7)(v)-7 TRANS Demand'!M120+'FR-16(7)(v)-8 TRANS Energy'!M120+'FR-16(7)(v)-9 TRANS Cust'!M120+'FR-16(7)(v)-11 DIST Demand'!M120+'FR-16(7)(v)-12 DIST Energy'!M120+'FR-16(7)(v)-13 DIST Cust'!M120-'FR-16(7)(v)-14 TOTAL CLASS'!M120","v":0},{"$f":"'FR-16(7)(v)-3 PROD Demand'!N120+'FR-16(7)(v)-4 PROD Energy'!N120+'FR-16(7)(v)-5 PROD Cust'!N120+'FR-16(7)(v)-7 TRANS Demand'!N120+'FR-16(7)(v)-8 TRANS Energy'!N120+'FR-16(7)(v)-9 TRANS Cust'!N120+'FR-16(7)(v)-11 DIST Demand'!N120+'FR-16(7)(v)-12 DIST Energy'!N120+'FR-16(7)(v)-13 DIST Cust'!N120-'FR-16(7)(v)-14 TOTAL CLASS'!N120","v":0},{"$f":"'FR-16(7)(v)-3 PROD Demand'!O120+'FR-16(7)(v)-4 PROD Energy'!O120+'FR-16(7)(v)-5 PROD Cust'!O120+'FR-16(7)(v)-7 TRANS Demand'!O120+'FR-16(7)(v)-8 TRANS Energy'!O120+'FR-16(7)(v)-9 TRANS Cust'!O120+'FR-16(7)(v)-11 DIST Demand'!O120+'FR-16(7)(v)-12 DIST Energy'!O120+'FR-16(7)(v)-13 DIST Cust'!O120-'FR-16(7)(v)-14 TOTAL CLASS'!O120","v":0},{"$f":"'FR-16(7)(v)-3 PROD Demand'!P120+'FR-16(7)(v)-4 PROD Energy'!P120+'FR-16(7)(v)-5 PROD Cust'!P120+'FR-16(7)(v)-7 TRANS Demand'!P120+'FR-16(7)(v)-8 TRANS Energy'!P120+'FR-16(7)(v)-9 TRANS Cust'!P120+'FR-16(7)(v)-11 DIST Demand'!P120+'FR-16(7)(v)-12 DIST Energy'!P120+'FR-16(7)(v)-13 DIST Cust'!P120-'FR-16(7)(v)-14 TOTAL CLASS'!P120","v":0},{"$f":"'FR-16(7)(v)-3 PROD Demand'!Q120+'FR-16(7)(v)-4 PROD Energy'!Q120+'FR-16(7)(v)-5 PROD Cust'!Q120+'FR-16(7)(v)-7 TRANS Demand'!Q120+'FR-16(7)(v)-8 TRANS Energy'!Q120+'FR-16(7)(v)-9 TRANS Cust'!Q120+'FR-16(7)(v)-11 DIST Demand'!Q120+'FR-16(7)(v)-12 DIST Energy'!Q120+'FR-16(7)(v)-13 DIST Cust'!Q120-'FR-16(7)(v)-14 TOTAL CLASS'!Q120","v":0},0,0]
[64,null,{"$f":"'FR-16(7)(v)-1 Functional'!C121","v":"  COMMON & OTHER PLANT IN SERVICE"},null,null,{"$f":"SUM(F112:F120)","v":0},{"$f":"SUM(G112:G120)","v":0},0,0,{"$f":"SUM(J112:J120)","v":0},0,0,0,0,0,0,0,0,0]
[65]
[66,"GROSS ELECTRIC PLANT IN SERVICE",null,null,null,{"$f":"F97+F109+F121","v":0},{"$f":"G97+G109+G121","v":0},0,0,0,0,0,0,0,0,0,0,0,0]
[]
[{"$f":"co_name","v":"DUKE ENERGY KENTUCKY, INC."},null,null,null,null,null,null,null,null,null,null,null,null,null,null,null,null,{"$f":"R1","v":"FR-16(7)(v)-14"}]
[{"$f":"$A$2","v":"TOTAL CLASS ALLOCATED - ELECTRIC COST OF SERVICE"},null,null,null,null,null,null,null,null,null,null,null,null,null,null,null,null,{"$f":"R2","v":"WITNESS RESPONSIBLE:"}]
[{"$f":"case_name","v":"CASE NO: 2019-00271"},null,null,null,null,null,null,null,null,null,null,null,null,null,null,null,null,{"$f":"Witness","v":"JAMES E. ZIOLKOWSKI"}]
[{"$f":"data_filing","v":"DATA: 12 MONTHS ACTUAL  & 0 MONTHS ESTIMATED"},null,null,null,null,null,null,null,null,null,null,null,null,null,null,null,null,{"$f":"\"PAGE \"&Pages2-12&\" OF \"&Pages2","v":"PAGE 3 OF 15"}]
[{"$f":"type","v":"TYPE OF FILING: \"X\" ORIGINAL   UPDATED    REVISED  "}]
[]
[null,null,null,null,null,{"$f":"F$7","v":"TOTAL"},null,{"$f":"H$7","v":"DS"},{"$f":"I$7","v":"GSFL"},{"$f":"J$7","v":"EH"},{"$f":"K$7","v":"SP"},"DT SEC","DT PRI","DP","TT",null,"OTHER"]
["LINE",null,null,null,null,{"$f":"F$8","v":"CLASS"},{"$f":"G$8","v":"RS"},{"$f":"H$8","v":"SECONDARY"},{"$f":"I$8","v":"SECONDARY"},{"$f":"J$8","v":"SECONDARY"},{"$f":"K$8","v":"SECONDARY"},"SECONDARY","PRIMARY","PRIMARY","TRANSMISSION","LT","WATER",{"$f":"R8","v":"TOTAL"},"ALL"]
["NO.","DEPRECIATION RESERVE",null,"ALLO",null,{"$f":"F$9","v":"ALLOCATED"},{"$f":"G$9","v":"RESIDENTIAL"},{"$f":"H$9","v":"DISTRIBUTION"},{"$f":"I$9","v":"DISTRIBUTION"},{"$f":"J$9","v":"DISTRIBUTION"},{"$f":"K$9","v":"DISTRIBUTION"},"DISTRIBUTION","DISTRIBUTION","DISTRIBUTION","TIME OF DAY","LIGHTING","PUMPING",{"$f":"R9","v":"AT ISSUE"},"OTHER"]
[null,null,"Schedule 3",null,null,null,{"$f":"G$10","v":3},{"$f":"H$10","v":4},{"$f":"I$10","v":5},{"$f":"J$10","v":6},{"$f":"K$10","v":7},8,9,10,11,12,13,null," "]
[1,"PRODUCTION PLANT"]
[2,null,{"$f":"'FR-16(7)(v)-1 Functional'!C136","v":"PRODUCTION STEAM"},{"$f":"'FR-16(7)(v)-1 Functional'!D136","v":"K201"},null,{"$f":"'FR-16(7)(v)-3 PROD Demand'!F136+'FR-16(7)(v)-4 PROD Energy'!F136+'FR-16(7)(v)-5 PROD Cust'!F136+'FR-16(7)(v)-7 TRANS Demand'!F136+'FR-16(7)(v)-8 TRANS Energy'!F136+'FR-16(7)(v)-9 TRANS Cust'!F136+'FR-16(7)(v)-11 DIST Demand'!F136+'FR-16(7)(v)-12 DIST Energy'!F136+'FR-16(7)(v)-13 DIST Cust'!F136-'FR-16(7)(v)-14 TOTAL CLASS'!F136","v":0},{"$f":"'FR-16(7)(v)-3 PROD Demand'!G136+'FR-16(7)(v)-4 PROD Energy'!G136+'FR-16(7)(v)-5 PROD Cust'!G136+'FR-16(7)(v)-7 TRANS Demand'!G136+'FR-16(7)(v)-8 TRANS Energy'!G136+'FR-16(7)(v)-9 TRANS Cust'!G136+'FR-16(7)(v)-11 DIST Demand'!G136+'FR-16(7)(v)-12 DIST Energy'!G136+'FR-16(7)(v)-13 DIST Cust'!G136-'FR-16(7)(v)-14 TOTAL CLASS'!G136","v":0},{"$f":"'FR-16(7)(v)-3 PROD Demand'!H136+'FR-16(7)(v)-4 PROD Energy'!H136+'FR-16(7)(v)-5 PROD Cust'!H136+'FR-16(7)(v)-7 TRANS Demand'!H136+'FR-16(7)(v)-8 TRANS Energy'!H136+'FR-16(7)(v)-9 TRANS Cust'!H136+'FR-16(7)(v)-11 DIST Demand'!H136+'FR-16(7)(v)-12 DIST Energy'!H136+'FR-16(7)(v)-13 DIST Cust'!H136-'FR-16(7)(v)-14 TOTAL CLASS'!H136","v":0},{"$f":"'FR-16(7)(v)-3 PROD Demand'!I136+'FR-16(7)(v)-4 PROD Energy'!I136+'FR-16(7)(v)-5 PROD Cust'!I136+'FR-16(7)(v)-7 TRANS Demand'!I136+'FR-16(7)(v)-8 TRANS Energy'!I136+'FR-16(7)(v)-9 TRANS Cust'!I136+'FR-16(7)(v)-11 DIST Demand'!I136+'FR-16(7)(v)-12 DIST Energy'!I136+'FR-16(7)(v)-13 DIST Cust'!I136-'FR-16(7)(v)-14 TOTAL CLASS'!I136","v":0},{"$f":"'FR-16(7)(v)-3 PROD Demand'!J136+'FR-16(7)(v)-4 PROD Energy'!J136+'FR-16(7)(v)-5 PROD Cust'!J136+'FR-16(7)(v)-7 TRANS Demand'!J136+'FR-16(7)(v)-8 TRANS Energy'!J136+'FR-16(7)(v)-9 TRANS Cust'!J136+'FR-16(7)(v)-11 DIST Demand'!J136+'FR-16(7)(v)-12 DIST Energy'!J136+'FR-16(7)(v)-13 DIST Cust'!J136-'FR-16(7)(v)-14 TOTAL CLASS'!J136","v":0},{"$f":"'FR-16(7)(v)-3 PROD Demand'!K136+'FR-16(7)(v)-4 PROD Energy'!K136+'FR-16(7)(v)-5 PROD Cust'!K136+'FR-16(7)(v)-7 TRANS Demand'!K136+'FR-16(7)(v)-8 TRANS Energy'!K136+'FR-16(7)(v)-9 TRANS Cust'!K136+'FR-16(7)(v)-11 DIST Demand'!K136+'FR-16(7)(v)-12 DIST Energy'!K136+'FR-16(7)(v)-13 DIST Cust'!K136-'FR-16(7)(v)-14 TOTAL CLASS'!K136","v":0},{"$f":"'FR-16(7)(v)-3 PROD Demand'!L136+'FR-16(7)(v)-4 PROD Energy'!L136+'FR-16(7)(v)-5 PROD Cust'!L136+'FR-16(7)(v)-7 TRANS Demand'!L136+'FR-16(7)(v)-8 TRANS Energy'!L136+'FR-16(7)(v)-9 TRANS Cust'!L136+'FR-16(7)(v)-11 DIST Demand'!L136+'FR-16(7)(v)-12 DIST Energy'!L136+'FR-16(7)(v)-13 DIST Cust'!L136-'FR-16(7)(v)-14 TOTAL CLASS'!L136","v":0},{"$f":"'FR-16(7)(v)-3 PROD Demand'!M136+'FR-16(7)(v)-4 PROD Energy'!M136+'FR-16(7)(v)-5 PROD Cust'!M136+'FR-16(7)(v)-7 TRANS Demand'!M136+'FR-16(7)(v)-8 TRANS Energy'!M136+'FR-16(7)(v)-9 TRANS Cust'!M136+'FR-16(7)(v)-11 DIST Demand'!M136+'FR-16(7)(v)-12 DIST Energy'!M136+'FR-16(7)(v)-13 DIST Cust'!M136-'FR-16(7)(v)-14 TOTAL CLASS'!M136","v":0},{"$f":"'FR-16(7)(v)-3 PROD Demand'!N136+'FR-16(7)(v)-4 PROD Energy'!N136+'FR-16(7)(v)-5 PROD Cust'!N136+'FR-16(7)(v)-7 TRANS Demand'!N136+'FR-16(7)(v)-8 TRANS Energy'!N136+'FR-16(7)(v)-9 TRANS Cust'!N136+'FR-16(7)(v)-11 DIST Demand'!N136+'FR-16(7)(v)-12 DIST Energy'!N136+'FR-16(7)(v)-13 DIST Cust'!N136-'FR-16(7)(v)-14 TOTAL CLASS'!N136","v":0},{"$f":"'FR-16(7)(v)-3 PROD Demand'!O136+'FR-16(7)(v)-4 PROD Energy'!O136+'FR-16(7)(v)-5 PROD Cust'!O136+'FR-16(7)(v)-7 TRANS Demand'!O136+'FR-16(7)(v)-8 TRANS Energy'!O136+'FR-16(7)(v)-9 TRANS Cust'!O136+'FR-16(7)(v)-11 DIST Demand'!O136+'FR-16(7)(v)-12 DIST Energy'!O136+'FR-16(7)(v)-13 DIST Cust'!O136-'FR-16(7)(v)-14 TOTAL CLASS'!O136","v":0},{"$f":"'FR-16(7)(v)-3 PROD Demand'!P136+'FR-16(7)(v)-4 PROD Energy'!P136+'FR-16(7)(v)-5 PROD Cust'!P136+'FR-16(7)(v)-7 TRANS Demand'!P136+'FR-16(7)(v)-8 TRANS Energy'!P136+'FR-16(7)(v)-9 TRANS Cust'!P136+'FR-16(7)(v)-11 DIST Demand'!P136+'FR-16(7)(v)-12 DIST Energy'!P136+'FR-16(7)(v)-13 DIST Cust'!P136-'FR-16(7)(v)-14 TOTAL CLASS'!P136","v":0},{"$f":"'FR-16(7)(v)-3 PROD Demand'!Q136+'FR-16(7)(v)-4 PROD Energy'!Q136+'FR-16(7)(v)-5 PROD Cust'!Q136+'FR-16(7)(v)-7 TRANS Demand'!Q136+'FR-16(7)(v)-8 TRANS Energy'!Q136+'FR-16(7)(v)-9 TRANS Cust'!Q136+'FR-16(7)(v)-11 DIST Demand'!Q136+'FR-16(7)(v)-12 DIST Energy'!Q136+'FR-16(7)(v)-13 DIST Cust'!Q136-'FR-16(7)(v)-14 TOTAL CLASS'!Q136","v":0},{"$f":"SUM(G136:Q136)","v":0},{"$f":"F136-R136","v":0}]
[3,null,{"$f":"'FR-16(7)(v)-1 Functional'!C137","v":"PRODUCTION OTHER"},{"$f":"'FR-16(7)(v)-1 Functional'!D137","v":"K201"},null,{"$f":"'FR-16(7)(v)-3 PROD Demand'!F137+'FR-16(7)(v)-4 PROD Energy'!F137+'FR-16(7)(v)-5 PROD Cust'!F137+'FR-16(7)(v)-7 TRANS Demand'!F137+'FR-16(7)(v)-8 TRANS Energy'!F137+'FR-16(7)(v)-9 TRANS Cust'!F137+'FR-16(7)(v)-11 DIST Demand'!F137+'FR-16(7)(v)-12 DIST Energy'!F137+'FR-16(7)(v)-13 DIST Cust'!F137-'FR-16(7)(v)-14 TOTAL CLASS'!F137","v":0},{"$f":"'FR-16(7)(v)-3 PROD Demand'!G137+'FR-16(7)(v)-4 PROD Energy'!G137+'FR-16(7)(v)-5 PROD Cust'!G137+'FR-16(7)(v)-7 TRANS Demand'!G137+'FR-16(7)(v)-8 TRANS Energy'!G137+'FR-16(7)(v)-9 TRANS Cust'!G137+'FR-16(7)(v)-11 DIST Demand'!G137+'FR-16(7)(v)-12 DIST Energy'!G137+'FR-16(7)(v)-13 DIST Cust'!G137-'FR-16(7)(v)-14 TOTAL CLASS'!G137","v":0},{"$f":"'FR-16(7)(v)-3 PROD Demand'!H137+'FR-16(7)(v)-4 PROD Energy'!H137+'FR-16(7)(v)-5 PROD Cust'!H137+'FR-16(7)(v)-7 TRANS Demand'!H137+'FR-16(7)(v)-8 TRANS Energy'!H137+'FR-16(7)(v)-9 TRANS Cust'!H137+'FR-16(7)(v)-11 DIST Demand'!H137+'FR-16(7)(v)-12 DIST Energy'!H137+'FR-16(7)(v)-13 DIST Cust'!H137-'FR-16(7)(v)-14 TOTAL CLASS'!H137","v":0},{"$f":"'FR-16(7)(v)-3 PROD Demand'!I137+'FR-16(7)(v)-4 PROD Energy'!I137+'FR-16(7)(v)-5 PROD Cust'!I137+'FR-16(7)(v)-7 TRANS Demand'!I137+'FR-16(7)(v)-8 TRANS Energy'!I137+'FR-16(7)(v)-9 TRANS Cust'!I137+'FR-16(7)(v)-11 DIST Demand'!I137+'FR-16(7)(v)-12 DIST Energy'!I137+'FR-16(7)(v)-13 DIST Cust'!I137-'FR-16(7)(v)-14 TOTAL CLASS'!I137","v":0},{"$f":"'FR-16(7)(v)-3 PROD Demand'!J137+'FR-16(7)(v)-4 PROD Energy'!J137+'FR-16(7)(v)-5 PROD Cust'!J137+'FR-16(7)(v)-7 TRANS Demand'!J137+'FR-16(7)(v)-8 TRANS Energy'!J137+'FR-16(7)(v)-9 TRANS Cust'!J137+'FR-16(7)(v)-11 DIST Demand'!J137+'FR-16(7)(v)-12 DIST Energy'!J137+'FR-16(7)(v)-13 DIST Cust'!J137-'FR-16(7)(v)-14 TOTAL CLASS'!J137","v":0},{"$f":"'FR-16(7)(v)-3 PROD Demand'!K137+'FR-16(7)(v)-4 PROD Energy'!K137+'FR-16(7)(v)-5 PROD Cust'!K137+'FR-16(7)(v)-7 TRANS Demand'!K137+'FR-16(7)(v)-8 TRANS Energy'!K137+'FR-16(7)(v)-9 TRANS Cust'!K137+'FR-16(7)(v)-11 DIST Demand'!K137+'FR-16(7)(v)-12 DIST Energy'!K137+'FR-16(7)(v)-13 DIST Cust'!K137-'FR-16(7)(v)-14 TOTAL CLASS'!K137","v":0},{"$f":"'FR-16(7)(v)-3 PROD Demand'!L137+'FR-16(7)(v)-4 PROD Energy'!L137+'FR-16(7)(v)-5 PROD Cust'!L137+'FR-16(7)(v)-7 TRANS Demand'!L137+'FR-16(7)(v)-8 TRANS Energy'!L137+'FR-16(7)(v)-9 TRANS Cust'!L137+'FR-16(7)(v)-11 DIST Demand'!L137+'FR-16(7)(v)-12 DIST Energy'!L137+'FR-16(7)(v)-13 DIST Cust'!L137-'FR-16(7)(v)-14 TOTAL CLASS'!L137","v":0},{"$f":"'FR-16(7)(v)-3 PROD Demand'!M137+'FR-16(7)(v)-4 PROD Energy'!M137+'FR-16(7)(v)-5 PROD Cust'!M137+'FR-16(7)(v)-7 TRANS Demand'!M137+'FR-16(7)(v)-8 TRANS Energy'!M137+'FR-16(7)(v)-9 TRANS Cust'!M137+'FR-16(7)(v)-11 DIST Demand'!M137+'FR-16(7)(v)-12 DIST Energy'!M137+'FR-16(7)(v)-13 DIST Cust'!M137-'FR-16(7)(v)-14 TOTAL CLASS'!M137","v":0},{"$f":"'FR-16(7)(v)-3 PROD Demand'!N137+'FR-16(7)(v)-4 PROD Energy'!N137+'FR-16(7)(v)-5 PROD Cust'!N137+'FR-16(7)(v)-7 TRANS Demand'!N137+'FR-16(7)(v)-8 TRANS Energy'!N137+'FR-16(7)(v)-9 TRANS Cust'!N137+'FR-16(7)(v)-11 DIST Demand'!N137+'FR-16(7)(v)-12 DIST Energy'!N137+'FR-16(7)(v)-13 DIST Cust'!N137-'FR-16(7)(v)-14 TOTAL CLASS'!N137","v":0},{"$f":"'FR-16(7)(v)-3 PROD Demand'!O137+'FR-16(7)(v)-4 PROD Energy'!O137+'FR-16(7)(v)-5 PROD Cust'!O137+'FR-16(7)(v)-7 TRANS Demand'!O137+'FR-16(7)(v)-8 TRANS Energy'!O137+'FR-16(7)(v)-9 TRANS Cust'!O137+'FR-16(7)(v)-11 DIST Demand'!O137+'FR-16(7)(v)-12 DIST Energy'!O137+'FR-16(7)(v)-13 DIST Cust'!O137-'FR-16(7)(v)-14 TOTAL CLASS'!O137","v":0},{"$f":"'FR-16(7)(v)-3 PROD Demand'!P137+'FR-16(7)(v)-4 PROD Energy'!P137+'FR-16(7)(v)-5 PROD Cust'!P137+'FR-16(7)(v)-7 TRANS Demand'!P137+'FR-16(7)(v)-8 TRANS Energy'!P137+'FR-16(7)(v)-9 TRANS Cust'!P137+'FR-16(7)(v)-11 DIST Demand'!P137+'FR-16(7)(v)-12 DIST Energy'!P137+'FR-16(7)(v)-13 DIST Cust'!P137-'FR-16(7)(v)-14 TOTAL CLASS'!P137","v":0},{"$f":"'FR-16(7)(v)-3 PROD Demand'!Q137+'FR-16(7)(v)-4 PROD Energy'!Q137+'FR-16(7)(v)-5 PROD Cust'!Q137+'FR-16(7)(v)-7 TRANS Demand'!Q137+'FR-16(7)(v)-8 TRANS Energy'!Q137+'FR-16(7)(v)-9 TRANS Cust'!Q137+'FR-16(7)(v)-11 DIST Demand'!Q137+'FR-16(7)(v)-12 DIST Energy'!Q137+'FR-16(7)(v)-13 DIST Cust'!Q137-'FR-16(7)(v)-14 TOTAL CLASS'!Q137","v":0},{"$f":"SUM(G137:Q137)","v":0},{"$f":"F137-R137","v":0}]
[4,null,{"$f":"'FR-16(7)(v)-1 Functional'!C138","v":"ADJUSTMENT"},{"$f":"'FR-16(7)(v)-1 Functional'!D138","v":"K201"},null,{"$f":"'FR-16(7)(v)-3 PROD Demand'!F138+'FR-16(7)(v)-4 PROD Energy'!F138+'FR-16(7)(v)-5 PROD Cust'!F138+'FR-16(7)(v)-7 TRANS Demand'!F138+'FR-16(7)(v)-8 TRANS Energy'!F138+'FR-16(7)(v)-9 TRANS Cust'!F138+'FR-16(7)(v)-11 DIST Demand'!F138+'FR-16(7)(v)-12 DIST Energy'!F138+'FR-16(7)(v)-13 DIST Cust'!F138-'FR-16(7)(v)-14 TOTAL CLASS'!F138","v":0},{"$f":"'FR-16(7)(v)-3 PROD Demand'!G138+'FR-16(7)(v)-4 PROD Energy'!G138+'FR-16(7)(v)-5 PROD Cust'!G138+'FR-16(7)(v)-7 TRANS Demand'!G138+'FR-16(7)(v)-8 TRANS Energy'!G138+'FR-16(7)(v)-9 TRANS Cust'!G138+'FR-16(7)(v)-11 DIST Demand'!G138+'FR-16(7)(v)-12 DIST Energy'!G138+'FR-16(7)(v)-13 DIST Cust'!G138-'FR-16(7)(v)-14 TOTAL CLASS'!G138","v":0},{"$f":"'FR-16(7)(v)-3 PROD Demand'!H138+'FR-16(7)(v)-4 PROD Energy'!H138+'FR-16(7)(v)-5 PROD Cust'!H138+'FR-16(7)(v)-7 TRANS Demand'!H138+'FR-16(7)(v)-8 TRANS Energy'!H138+'FR-16(7)(v)-9 TRANS Cust'!H138+'FR-16(7)(v)-11 DIST Demand'!H138+'FR-16(7)(v)-12 DIST Energy'!H138+'FR-16(7)(v)-13 DIST Cust'!H138-'FR-16(7)(v)-14 TOTAL CLASS'!H138","v":0},{"$f":"'FR-16(7)(v)-3 PROD Demand'!I138+'FR-16(7)(v)-4 PROD Energy'!I138+'FR-16(7)(v)-5 PROD Cust'!I138+'FR-16(7)(v)-7 TRANS Demand'!I138+'FR-16(7)(v)-8 TRANS Energy'!I138+'FR-16(7)(v)-9 TRANS Cust'!I138+'FR-16(7)(v)-11 DIST Demand'!I138+'FR-16(7)(v)-12 DIST Energy'!I138+'FR-16(7)(v)-13 DIST Cust'!I138-'FR-16(7)(v)-14 TOTAL CLASS'!I138","v":0},{"$f":"'FR-16(7)(v)-3 PROD Demand'!J138+'FR-16(7)(v)-4 PROD Energy'!J138+'FR-16(7)(v)-5 PROD Cust'!J138+'FR-16(7)(v)-7 TRANS Demand'!J138+'FR-16(7)(v)-8 TRANS Energy'!J138+'FR-16(7)(v)-9 TRANS Cust'!J138+'FR-16(7)(v)-11 DIST Demand'!J138+'FR-16(7)(v)-12 DIST Energy'!J138+'FR-16(7)(v)-13 DIST Cust'!J138-'FR-16(7)(v)-14 TOTAL CLASS'!J138","v":0},{"$f":"'FR-16(7)(v)-3 PROD Demand'!K138+'FR-16(7)(v)-4 PROD Energy'!K138+'FR-16(7)(v)-5 PROD Cust'!K138+'FR-16(7)(v)-7 TRANS Demand'!K138+'FR-16(7)(v)-8 TRANS Energy'!K138+'FR-16(7)(v)-9 TRANS Cust'!K138+'FR-16(7)(v)-11 DIST Demand'!K138+'FR-16(7)(v)-12 DIST Energy'!K138+'FR-16(7)(v)-13 DIST Cust'!K138-'FR-16(7)(v)-14 TOTAL CLASS'!K138","v":0},{"$f":"'FR-16(7)(v)-3 PROD Demand'!L138+'FR-16(7)(v)-4 PROD Energy'!L138+'FR-16(7)(v)-5 PROD Cust'!L138+'FR-16(7)(v)-7 TRANS Demand'!L138+'FR-16(7)(v)-8 TRANS Energy'!L138+'FR-16(7)(v)-9 TRANS Cust'!L138+'FR-16(7)(v)-11 DIST Demand'!L138+'FR-16(7)(v)-12 DIST Energy'!L138+'FR-16(7)(v)-13 DIST Cust'!L138-'FR-16(7)(v)-14 TOTAL CLASS'!L138","v":0},{"$f":"'FR-16(7)(v)-3 PROD Demand'!M138+'FR-16(7)(v)-4 PROD Energy'!M138+'FR-16(7)(v)-5 PROD Cust'!M138+'FR-16(7)(v)-7 TRANS Demand'!M138+'FR-16(7)(v)-8 TRANS Energy'!M138+'FR-16(7)(v)-9 TRANS Cust'!M138+'FR-16(7)(v)-11 DIST Demand'!M138+'FR-16(7)(v)-12 DIST Energy'!M138+'FR-16(7)(v)-13 DIST Cust'!M138-'FR-16(7)(v)-14 TOTAL CLASS'!M138","v":0},{"$f":"'FR-16(7)(v)-3 PROD Demand'!N138+'FR-16(7)(v)-4 PROD Energy'!N138+'FR-16(7)(v)-5 PROD Cust'!N138+'FR-16(7)(v)-7 TRANS Demand'!N138+'FR-16(7)(v)-8 TRANS Energy'!N138+'FR-16(7)(v)-9 TRANS Cust'!N138+'FR-16(7)(v)-11 DIST Demand'!N138+'FR-16(7)(v)-12 DIST Energy'!N138+'FR-16(7)(v)-13 DIST Cust'!N138-'FR-16(7)(v)-14 TOTAL CLASS'!N138","v":0},{"$f":"'FR-16(7)(v)-3 PROD Demand'!O138+'FR-16(7)(v)-4 PROD Energy'!O138+'FR-16(7)(v)-5 PROD Cust'!O138+'FR-16(7)(v)-7 TRANS Demand'!O138+'FR-16(7)(v)-8 TRANS Energy'!O138+'FR-16(7)(v)-9 TRANS Cust'!O138+'FR-16(7)(v)-11 DIST Demand'!O138+'FR-16(7)(v)-12 DIST Energy'!O138+'FR-16(7)(v)-13 DIST Cust'!O138-'FR-16(7)(v)-14 TOTAL CLASS'!O138","v":0},{"$f":"'FR-16(7)(v)-3 PROD Demand'!P138+'FR-16(7)(v)-4 PROD Energy'!P138+'FR-16(7)(v)-5 PROD Cust'!P138+'FR-16(7)(v)-7 TRANS Demand'!P138+'FR-16(7)(v)-8 TRANS Energy'!P138+'FR-16(7)(v)-9 TRANS Cust'!P138+'FR-16(7)(v)-11 DIST Demand'!P138+'FR-16(7)(v)-12 DIST Energy'!P138+'FR-16(7)(v)-13 DIST Cust'!P138-'FR-16(7)(v)-14 TOTAL CLASS'!P138","v":0},{"$f":"'FR-16(7)(v)-3 PROD Demand'!Q138+'FR-16(7)(v)-4 PROD Energy'!Q138+'FR-16(7)(v)-5 PROD Cust'!Q138+'FR-16(7)(v)-7 TRANS Demand'!Q138+'FR-16(7)(v)-8 TRANS Energy'!Q138+'FR-16(7)(v)-9 TRANS Cust'!Q138+'FR-16(7)(v)-11 DIST Demand'!Q138+'FR-16(7)(v)-12 DIST Energy'!Q138+'FR-16(7)(v)-13 DIST Cust'!Q138-'FR-16(7)(v)-14 TOTAL CLASS'!Q138","v":0},{"$f":"SUM(G138:Q138)","v":0},{"$f":"F138-R138","v":0}]
[5,null,{"$f":"'FR-16(7)(v)-1 Functional'!C139","v":"  TOTAL PROD DEPREC RESERVE"},null,null,{"$f":"SUM(F136:F138)","v":0},{"$f":"SUM(G136:G138)","v":0},0,0,0,0,0,0,0,0,0,0,0,{"$f":"SUM(S136:S136)","v":0}]
[6]
[7,"TRANSMISSION PLANT"]
[8,null,{"$f":"'FR-16(7)(v)-1 Functional'!C142","v":"MAIN STEP-UP TRANSFORMERS"},{"$f":"'FR-16(7)(v)-1 Functional'!D142","v":"K202"},null,{"$f":"'FR-16(7)(v)-3 PROD Demand'!F142+'FR-16(7)(v)-4 PROD Energy'!F142+'FR-16(7)(v)-5 PROD Cust'!F142+'FR-16(7)(v)-7 TRANS Demand'!F142+'FR-16(7)(v)-8 TRANS Energy'!F142+'FR-16(7)(v)-9 TRANS Cust'!F142+'FR-16(7)(v)-11 DIST Demand'!F142+'FR-16(7)(v)-12 DIST Energy'!F142+'FR-16(7)(v)-13 DIST Cust'!F142-'FR-16(7)(v)-14 TOTAL CLASS'!F142","v":0},{"$f":"'FR-16(7)(v)-3 PROD Demand'!G142+'FR-16(7)(v)-4 PROD Energy'!G142+'FR-16(7)(v)-5 PROD Cust'!G142+'FR-16(7)(v)-7 TRANS Demand'!G142+'FR-16(7)(v)-8 TRANS Energy'!G142+'FR-16(7)(v)-9 TRANS Cust'!G142+'FR-16(7)(v)-11 DIST Demand'!G142+'FR-16(7)(v)-12 DIST Energy'!G142+'FR-16(7)(v)-13 DIST Cust'!G142-'FR-16(7)(v)-14 TOTAL CLASS'!G142","v":0},{"$f":"'FR-16(7)(v)-3 PROD Demand'!H142+'FR-16(7)(v)-4 PROD Energy'!H142+'FR-16(7)(v)-5 PROD Cust'!H142+'FR-16(7)(v)-7 TRANS Demand'!H142+'FR-16(7)(v)-8 TRANS Energy'!H142+'FR-16(7)(v)-9 TRANS Cust'!H142+'FR-16(7)(v)-11 DIST Demand'!H142+'FR-16(7)(v)-12 DIST Energy'!H142+'FR-16(7)(v)-13 DIST Cust'!H142-'FR-16(7)(v)-14 TOTAL CLASS'!H142","v":0},{"$f":"'FR-16(7)(v)-3 PROD Demand'!I142+'FR-16(7)(v)-4 PROD Energy'!I142+'FR-16(7)(v)-5 PROD Cust'!I142+'FR-16(7)(v)-7 TRANS Demand'!I142+'FR-16(7)(v)-8 TRANS Energy'!I142+'FR-16(7)(v)-9 TRANS Cust'!I142+'FR-16(7)(v)-11 DIST Demand'!I142+'FR-16(7)(v)-12 DIST Energy'!I142+'FR-16(7)(v)-13 DIST Cust'!I142-'FR-16(7)(v)-14 TOTAL CLASS'!I142","v":0},{"$f":"'FR-16(7)(v)-3 PROD Demand'!J142+'FR-16(7)(v)-4 PROD Energy'!J142+'FR-16(7)(v)-5 PROD Cust'!J142+'FR-16(7)(v)-7 TRANS Demand'!J142+'FR-16(7)(v)-8 TRANS Energy'!J142+'FR-16(7)(v)-9 TRANS Cust'!J142+'FR-16(7)(v)-11 DIST Demand'!J142+'FR-16(7)(v)-12 DIST Energy'!J142+'FR-16(7)(v)-13 DIST Cust'!J142-'FR-16(7)(v)-14 TOTAL CLASS'!J142","v":0},{"$f":"'FR-16(7)(v)-3 PROD Demand'!K142+'FR-16(7)(v)-4 PROD Energy'!K142+'FR-16(7)(v)-5 PROD Cust'!K142+'FR-16(7)(v)-7 TRANS Demand'!K142+'FR-16(7)(v)-8 TRANS Energy'!K142+'FR-16(7)(v)-9 TRANS Cust'!K142+'FR-16(7)(v)-11 DIST Demand'!K142+'FR-16(7)(v)-12 DIST Energy'!K142+'FR-16(7)(v)-13 DIST Cust'!K142-'FR-16(7)(v)-14 TOTAL CLASS'!K142","v":0},{"$f":"'FR-16(7)(v)-3 PROD Demand'!L142+'FR-16(7)(v)-4 PROD Energy'!L142+'FR-16(7)(v)-5 PROD Cust'!L142+'FR-16(7)(v)-7 TRANS Demand'!L142+'FR-16(7)(v)-8 TRANS Energy'!L142+'FR-16(7)(v)-9 TRANS Cust'!L142+'FR-16(7)(v)-11 DIST Demand'!L142+'FR-16(7)(v)-12 DIST Energy'!L142+'FR-16(7)(v)-13 DIST Cust'!L142-'FR-16(7)(v)-14 TOTAL CLASS'!L142","v":0},{"$f":"'FR-16(7)(v)-3 PROD Demand'!M142+'FR-16(7)(v)-4 PROD Energy'!M142+'FR-16(7)(v)-5 PROD Cust'!M142+'FR-16(7)(v)-7 TRANS Demand'!M142+'FR-16(7)(v)-8 TRANS Energy'!M142+'FR-16(7)(v)-9 TRANS Cust'!M142+'FR-16(7)(v)-11 DIST Demand'!M142+'FR-16(7)(v)-12 DIST Energy'!M142+'FR-16(7)(v)-13 DIST Cust'!M142-'FR-16(7)(v)-14 TOTAL CLASS'!M142","v":0},{"$f":"'FR-16(7)(v)-3 PROD Demand'!N142+'FR-16(7)(v)-4 PROD Energy'!N142+'FR-16(7)(v)-5 PROD Cust'!N142+'FR-16(7)(v)-7 TRANS Demand'!N142+'FR-16(7)(v)-8 TRANS Energy'!N142+'FR-16(7)(v)-9 TRANS Cust'!N142+'FR-16(7)(v)-11 DIST Demand'!N142+'FR-16(7)(v)-12 DIST Energy'!N142+'FR-16(7)(v)-13 DIST Cust'!N142-'FR-16(7)(v)-14 TOTAL CLASS'!N142","v":0},{"$f":"'FR-16(7)(v)-3 PROD Demand'!O142+'FR-16(7)(v)-4 PROD Energy'!O142+'FR-16(7)(v)-5 PROD Cust'!O142+'FR-16(7)(v)-7 TRANS Demand'!O142+'FR-16(7)(v)-8 TRANS Energy'!O142+'FR-16(7)(v)-9 TRANS Cust'!O142+'FR-16(7)(v)-11 DIST Demand'!O142+'FR-16(7)(v)-12 DIST Energy'!O142+'FR-16(7)(v)-13 DIST Cust'!O142-'FR-16(7)(v)-14 TOTAL CLASS'!O142","v":0},{"$f":"'FR-16(7)(v)-3 PROD Demand'!P142+'FR-16(7)(v)-4 PROD Energy'!P142+'FR-16(7)(v)-5 PROD Cust'!P142+'FR-16(7)(v)-7 TRANS Demand'!P142+'FR-16(7)(v)-8 TRANS Energy'!P142+'FR-16(7)(v)-9 TRANS Cust'!P142+'FR-16(7)(v)-11 DIST Demand'!P142+'FR-16(7)(v)-12 DIST Energy'!P142+'FR-16(7)(v)-13 DIST Cust'!P142-'FR-16(7)(v)-14 TOTAL CLASS'!P142","v":0},{"$f":"'FR-16(7)(v)-3 PROD Demand'!Q142+'FR-16(7)(v)-4 PROD Energy'!Q142+'FR-16(7)(v)-5 PROD Cust'!Q142+'FR-16(7)(v)-7 TRANS Demand'!Q142+'FR-16(7)(v)-8 TRANS Energy'!Q142+'FR-16(7)(v)-9 TRANS Cust'!Q142+'FR-16(7)(v)-11 DIST Demand'!Q142+'FR-16(7)(v)-12 DIST Energy'!Q142+'FR-16(7)(v)-13 DIST Cust'!Q142-'FR-16(7)(v)-14 TOTAL CLASS'!Q142","v":0},{"$f":"SUM(G142:Q142)","v":0},{"$f":"F142-R142","v":0}]
[9,null,{"$f":"'FR-16(7)(v)-1 Functional'!C143","v":"OTHER TRANSMISSION"},{"$f":"'FR-16(7)(v)-1 Functional'!D143","v":"K202"},null,{"$f":"'FR-16(7)(v)-3 PROD Demand'!F143+'FR-16(7)(v)-4 PROD Energy'!F143+'FR-16(7)(v)-5 PROD Cust'!F143+'FR-16(7)(v)-7 TRANS Demand'!F143+'FR-16(7)(v)-8 TRANS Energy'!F143+'FR-16(7)(v)-9 TRANS Cust'!F143+'FR-16(7)(v)-11 DIST Demand'!F143+'FR-16(7)(v)-12 DIST Energy'!F143+'FR-16(7)(v)-13 DIST Cust'!F143-'FR-16(7)(v)-14 TOTAL CLASS'!F143","v":0},{"$f":"'FR-16(7)(v)-3 PROD Demand'!G143+'FR-16(7)(v)-4 PROD Energy'!G143+'FR-16(7)(v)-5 PROD Cust'!G143+'FR-16(7)(v)-7 TRANS Demand'!G143+'FR-16(7)(v)-8 TRANS Energy'!G143+'FR-16(7)(v)-9 TRANS Cust'!G143+'FR-16(7)(v)-11 DIST Demand'!G143+'FR-16(7)(v)-12 DIST Energy'!G143+'FR-16(7)(v)-13 DIST Cust'!G143-'FR-16(7)(v)-14 TOTAL CLASS'!G143","v":0},{"$f":"'FR-16(7)(v)-3 PROD Demand'!H143+'FR-16(7)(v)-4 PROD Energy'!H143+'FR-16(7)(v)-5 PROD Cust'!H143+'FR-16(7)(v)-7 TRANS Demand'!H143+'FR-16(7)(v)-8 TRANS Energy'!H143+'FR-16(7)(v)-9 TRANS Cust'!H143+'FR-16(7)(v)-11 DIST Demand'!H143+'FR-16(7)(v)-12 DIST Energy'!H143+'FR-16(7)(v)-13 DIST Cust'!H143-'FR-16(7)(v)-14 TOTAL CLASS'!H143","v":0},{"$f":"'FR-16(7)(v)-3 PROD Demand'!I143+'FR-16(7)(v)-4 PROD Energy'!I143+'FR-16(7)(v)-5 PROD Cust'!I143+'FR-16(7)(v)-7 TRANS Demand'!I143+'FR-16(7)(v)-8 TRANS Energy'!I143+'FR-16(7)(v)-9 TRANS Cust'!I143+'FR-16(7)(v)-11 DIST Demand'!I143+'FR-16(7)(v)-12 DIST Energy'!I143+'FR-16(7)(v)-13 DIST Cust'!I143-'FR-16(7)(v)-14 TOTAL CLASS'!I143","v":0},{"$f":"'FR-16(7)(v)-3 PROD Demand'!J143+'FR-16(7)(v)-4 PROD Energy'!J143+'FR-16(7)(v)-5 PROD Cust'!J143+'FR-16(7)(v)-7 TRANS Demand'!J143+'FR-16(7)(v)-8 TRANS Energy'!J143+'FR-16(7)(v)-9 TRANS Cust'!J143+'FR-16(7)(v)-11 DIST Demand'!J143+'FR-16(7)(v)-12 DIST Energy'!J143+'FR-16(7)(v)-13 DIST Cust'!J143-'FR-16(7)(v)-14 TOTAL CLASS'!J143","v":0},{"$f":"'FR-16(7)(v)-3 PROD Demand'!K143+'FR-16(7)(v)-4 PROD Energy'!K143+'FR-16(7)(v)-5 PROD Cust'!K143+'FR-16(7)(v)-7 TRANS Demand'!K143+'FR-16(7)(v)-8 TRANS Energy'!K143+'FR-16(7)(v)-9 TRANS Cust'!K143+'FR-16(7)(v)-11 DIST Demand'!K143+'FR-16(7)(v)-12 DIST Energy'!K143+'FR-16(7)(v)-13 DIST Cust'!K143-'FR-16(7)(v)-14 TOTAL CLASS'!K143","v":0},{"$f":"'FR-16(7)(v)-3 PROD Demand'!L143+'FR-16(7)(v)-4 PROD Energy'!L143+'FR-16(7)(v)-5 PROD Cust'!L143+'FR-16(7)(v)-7 TRANS Demand'!L143+'FR-16(7)(v)-8 TRANS Energy'!L143+'FR-16(7)(v)-9 TRANS Cust'!L143+'FR-16(7)(v)-11 DIST Demand'!L143+'FR-16(7)(v)-12 DIST Energy'!L143+'FR-16(7)(v)-13 DIST Cust'!L143-'FR-16(7)(v)-14 TOTAL CLASS'!L143","v":0},{"$f":"'FR-16(7)(v)-3 PROD Demand'!M143+'FR-16(7)(v)-4 PROD Energy'!M143+'FR-16(7)(v)-5 PROD Cust'!M143+'FR-16(7)(v)-7 TRANS Demand'!M143+'FR-16(7)(v)-8 TRANS Energy'!M143+'FR-16(7)(v)-9 TRANS Cust'!M143+'FR-16(7)(v)-11 DIST Demand'!M143+'FR-16(7)(v)-12 DIST Energy'!M143+'FR-16(7)(v)-13 DIST Cust'!M143-'FR-16(7)(v)-14 TOTAL CLASS'!M143","v":0},{"$f":"'FR-16(7)(v)-3 PROD Demand'!N143+'FR-16(7)(v)-4 PROD Energy'!N143+'FR-16(7)(v)-5 PROD Cust'!N143+'FR-16(7)(v)-7 TRANS Demand'!N143+'FR-16(7)(v)-8 TRANS Energy'!N143+'FR-16(7)(v)-9 TRANS Cust'!N143+'FR-16(7)(v)-11 DIST Demand'!N143+'FR-16(7)(v)-12 DIST Energy'!N143+'FR-16(7)(v)-13 DIST Cust'!N143-'FR-16(7)(v)-14 TOTAL CLASS'!N143","v":0},{"$f":"'FR-16(7)(v)-3 PROD Demand'!O143+'FR-16(7)(v)-4 PROD Energy'!O143+'FR-16(7)(v)-5 PROD Cust'!O143+'FR-16(7)(v)-7 TRANS Demand'!O143+'FR-16(7)(v)-8 TRANS Energy'!O143+'FR-16(7)(v)-9 TRANS Cust'!O143+'FR-16(7)(v)-11 DIST Demand'!O143+'FR-16(7)(v)-12 DIST Energy'!O143+'FR-16(7)(v)-13 DIST Cust'!O143-'FR-16(7)(v)-14 TOTAL CLASS'!O143","v":0},{"$f":"'FR-16(7)(v)-3 PROD Demand'!P143+'FR-16(7)(v)-4 PROD Energy'!P143+'FR-16(7)(v)-5 PROD Cust'!P143+'FR-16(7)(v)-7 TRANS Demand'!P143+'FR-16(7)(v)-8 TRANS Energy'!P143+'FR-16(7)(v)-9 TRANS Cust'!P143+'FR-16(7)(v)-11 DIST Demand'!P143+'FR-16(7)(v)-12 DIST Energy'!P143+'FR-16(7)(v)-13 DIST Cust'!P143-'FR-16(7)(v)-14 TOTAL CLASS'!P143","v":0},{"$f":"'FR-16(7)(v)-3 PROD Demand'!Q143+'FR-16(7)(v)-4 PROD Energy'!Q143+'FR-16(7)(v)-5 PROD Cust'!Q143+'FR-16(7)(v)-7 TRANS Demand'!Q143+'FR-16(7)(v)-8 TRANS Energy'!Q143+'FR-16(7)(v)-9 TRANS Cust'!Q143+'FR-16(7)(v)-11 DIST Demand'!Q143+'FR-16(7)(v)-12 DIST Energy'!Q143+'FR-16(7)(v)-13 DIST Cust'!Q143-'FR-16(7)(v)-14 TOTAL CLASS'!Q143","v":0},{"$f":"SUM(G143:Q143)","v":0},{"$f":"F143-R143","v":0}]
[10,null,{"$f":"'FR-16(7)(v)-1 Functional'!C144","v":"ADJUSTMENT"},{"$f":"'FR-16(7)(v)-1 Functional'!D144","v":"K202"},null,{"$f":"'FR-16(7)(v)-3 PROD Demand'!F144+'FR-16(7)(v)-4 PROD Energy'!F144+'FR-16(7)(v)-5 PROD Cust'!F144+'FR-16(7)(v)-7 TRANS Demand'!F144+'FR-16(7)(v)-8 TRANS Energy'!F144+'FR-16(7)(v)-9 TRANS Cust'!F144+'FR-16(7)(v)-11 DIST Demand'!F144+'FR-16(7)(v)-12 DIST Energy'!F144+'FR-16(7)(v)-13 DIST Cust'!F144-'FR-16(7)(v)-14 TOTAL CLASS'!F144","v":0},{"$f":"'FR-16(7)(v)-3 PROD Demand'!G144+'FR-16(7)(v)-4 PROD Energy'!G144+'FR-16(7)(v)-5 PROD Cust'!G144+'FR-16(7)(v)-7 TRANS Demand'!G144+'FR-16(7)(v)-8 TRANS Energy'!G144+'FR-16(7)(v)-9 TRANS Cust'!G144+'FR-16(7)(v)-11 DIST Demand'!G144+'FR-16(7)(v)-12 DIST Energy'!G144+'FR-16(7)(v)-13 DIST Cust'!G144-'FR-16(7)(v)-14 TOTAL CLASS'!G144","v":0},{"$f":"'FR-16(7)(v)-3 PROD Demand'!H144+'FR-16(7)(v)-4 PROD Energy'!H144+'FR-16(7)(v)-5 PROD Cust'!H144+'FR-16(7)(v)-7 TRANS Demand'!H144+'FR-16(7)(v)-8 TRANS Energy'!H144+'FR-16(7)(v)-9 TRANS Cust'!H144+'FR-16(7)(v)-11 DIST Demand'!H144+'FR-16(7)(v)-12 DIST Energy'!H144+'FR-16(7)(v)-13 DIST Cust'!H144-'FR-16(7)(v)-14 TOTAL CLASS'!H144","v":0},{"$f":"'FR-16(7)(v)-3 PROD Demand'!I144+'FR-16(7)(v)-4 PROD Energy'!I144+'FR-16(7)(v)-5 PROD Cust'!I144+'FR-16(7)(v)-7 TRANS Demand'!I144+'FR-16(7)(v)-8 TRANS Energy'!I144+'FR-16(7)(v)-9 TRANS Cust'!I144+'FR-16(7)(v)-11 DIST Demand'!I144+'FR-16(7)(v)-12 DIST Energy'!I144+'FR-16(7)(v)-13 DIST Cust'!I144-'FR-16(7)(v)-14 TOTAL CLASS'!I144","v":0},{"$f":"'FR-16(7)(v)-3 PROD Demand'!J144+'FR-16(7)(v)-4 PROD Energy'!J144+'FR-16(7)(v)-5 PROD Cust'!J144+'FR-16(7)(v)-7 TRANS Demand'!J144+'FR-16(7)(v)-8 TRANS Energy'!J144+'FR-16(7)(v)-9 TRANS Cust'!J144+'FR-16(7)(v)-11 DIST Demand'!J144+'FR-16(7)(v)-12 DIST Energy'!J144+'FR-16(7)(v)-13 DIST Cust'!J144-'FR-16(7)(v)-14 TOTAL CLASS'!J144","v":0},{"$f":"'FR-16(7)(v)-3 PROD Demand'!K144+'FR-16(7)(v)-4 PROD Energy'!K144+'FR-16(7)(v)-5 PROD Cust'!K144+'FR-16(7)(v)-7 TRANS Demand'!K144+'FR-16(7)(v)-8 TRANS Energy'!K144+'FR-16(7)(v)-9 TRANS Cust'!K144+'FR-16(7)(v)-11 DIST Demand'!K144+'FR-16(7)(v)-12 DIST Energy'!K144+'FR-16(7)(v)-13 DIST Cust'!K144-'FR-16(7)(v)-14 TOTAL CLASS'!K144","v":0},{"$f":"'FR-16(7)(v)-3 PROD Demand'!L144+'FR-16(7)(v)-4 PROD Energy'!L144+'FR-16(7)(v)-5 PROD Cust'!L144+'FR-16(7)(v)-7 TRANS Demand'!L144+'FR-16(7)(v)-8 TRANS Energy'!L144+'FR-16(7)(v)-9 TRANS Cust'!L144+'FR-16(7)(v)-11 DIST Demand'!L144+'FR-16(7)(v)-12 DIST Energy'!L144+'FR-16(7)(v)-13 DIST Cust'!L144-'FR-16(7)(v)-14 TOTAL CLASS'!L144","v":0},{"$f":"'FR-16(7)(v)-3 PROD Demand'!M144+'FR-16(7)(v)-4 PROD Energy'!M144+'FR-16(7)(v)-5 PROD Cust'!M144+'FR-16(7)(v)-7 TRANS Demand'!M144+'FR-16(7)(v)-8 TRANS Energy'!M144+'FR-16(7)(v)-9 TRANS Cust'!M144+'FR-16(7)(v)-11 DIST Demand'!M144+'FR-16(7)(v)-12 DIST Energy'!M144+'FR-16(7)(v)-13 DIST Cust'!M144-'FR-16(7)(v)-14 TOTAL CLASS'!M144","v":0},{"$f":"'FR-16(7)(v)-3 PROD Demand'!N144+'FR-16(7)(v)-4 PROD Energy'!N144+'FR-16(7)(v)-5 PROD Cust'!N144+'FR-16(7)(v)-7 TRANS Demand'!N144+'FR-16(7)(v)-8 TRANS Energy'!N144+'FR-16(7)(v)-9 TRANS Cust'!N144+'FR-16(7)(v)-11 DIST Demand'!N144+'FR-16(7)(v)-12 DIST Energy'!N144+'FR-16(7)(v)-13 DIST Cust'!N144-'FR-16(7)(v)-14 TOTAL CLASS'!N144","v":0},{"$f":"'FR-16(7)(v)-3 PROD Demand'!O144+'FR-16(7)(v)-4 PROD Energy'!O144+'FR-16(7)(v)-5 PROD Cust'!O144+'FR-16(7)(v)-7 TRANS Demand'!O144+'FR-16(7)(v)-8 TRANS Energy'!O144+'FR-16(7)(v)-9 TRANS Cust'!O144+'FR-16(7)(v)-11 DIST Demand'!O144+'FR-16(7)(v)-12 DIST Energy'!O144+'FR-16(7)(v)-13 DIST Cust'!O144-'FR-16(7)(v)-14 TOTAL CLASS'!O144","v":0},{"$f":"'FR-16(7)(v)-3 PROD Demand'!P144+'FR-16(7)(v)-4 PROD Energy'!P144+'FR-16(7)(v)-5 PROD Cust'!P144+'FR-16(7)(v)-7 TRANS Demand'!P144+'FR-16(7)(v)-8 TRANS Energy'!P144+'FR-16(7)(v)-9 TRANS Cust'!P144+'FR-16(7)(v)-11 DIST Demand'!P144+'FR-16(7)(v)-12 DIST Energy'!P144+'FR-16(7)(v)-13 DIST Cust'!P144-'FR-16(7)(v)-14 TOTAL CLASS'!P144","v":0},{"$f":"'FR-16(7)(v)-3 PROD Demand'!Q144+'FR-16(7)(v)-4 PROD Energy'!Q144+'FR-16(7)(v)-5 PROD Cust'!Q144+'FR-16(7)(v)-7 TRANS Demand'!Q144+'FR-16(7)(v)-8 TRANS Energy'!Q144+'FR-16(7)(v)-9 TRANS Cust'!Q144+'FR-16(7)(v)-11 DIST Demand'!Q144+'FR-16(7)(v)-12 DIST Energy'!Q144+'FR-16(7)(v)-13 DIST Cust'!Q144-'FR-16(7)(v)-14 TOTAL CLASS'!Q144","v":0},{"$f":"SUM(G144:Q144)","v":0},{"$f":"F144-R144","v":0}]
[11,null,{"$f":"'FR-16(7)(v)-1 Functional'!C145","v":"  TOTAL TRANS DEPREC RESERVE"},null,null,{"$f":"SUM(F142:F144)","v":0},{"$f":"SUM(G142:G144)","v":0},0,0,0,0,0,0,0,0,0,0,0,{"$f":"SUM(S142:S142)","v":0}]
[12]
[13,null,"TOTAL PROD & TRANS DEPREC RESERVE",null,null,{"$f":"F145+F139","v":0},{"$f":"G145+G139","v":0},0,0,0,0,0,0,0,0,0,0,{"$f":"SUM(G147:Q147)","v":0},{"$f":"F147-R147","v":0}]
[14]
[15,"DISTRIBUTION PLANT"]
[16,null,{"$f":"'FR-16(7)(v)-1 Functional'!C150","v":"SUBSTATIONS"},{"$f":"'FR-16(7)(v)-1 Functional'!D150","v":"K215"},null,{"$f":"'FR-16(7)(v)-3 PROD Demand'!F150+'FR-16(7)(v)-4 PROD Energy'!F150+'FR-16(7)(v)-5 PROD Cust'!F150+'FR-16(7)(v)-7 TRANS Demand'!F150+'FR-16(7)(v)-8 TRANS Energy'!F150+'FR-16(7)(v)-9 TRANS Cust'!F150+'FR-16(7)(v)-11 DIST Demand'!F150+'FR-16(7)(v)-12 DIST Energy'!F150+'FR-16(7)(v)-13 DIST Cust'!F150-'FR-16(7)(v)-14 TOTAL CLASS'!F150","v":0},{"$f":"'FR-16(7)(v)-3 PROD Demand'!G150+'FR-16(7)(v)-4 PROD Energy'!G150+'FR-16(7)(v)-5 PROD Cust'!G150+'FR-16(7)(v)-7 TRANS Demand'!G150+'FR-16(7)(v)-8 TRANS Energy'!G150+'FR-16(7)(v)-9 TRANS Cust'!G150+'FR-16(7)(v)-11 DIST Demand'!G150+'FR-16(7)(v)-12 DIST Energy'!G150+'FR-16(7)(v)-13 DIST Cust'!G150-'FR-16(7)(v)-14 TOTAL CLASS'!G150","v":0},{"$f":"'FR-16(7)(v)-3 PROD Demand'!H150+'FR-16(7)(v)-4 PROD Energy'!H150+'FR-16(7)(v)-5 PROD Cust'!H150+'FR-16(7)(v)-7 TRANS Demand'!H150+'FR-16(7)(v)-8 TRANS Energy'!H150+'FR-16(7)(v)-9 TRANS Cust'!H150+'FR-16(7)(v)-11 DIST Demand'!H150+'FR-16(7)(v)-12 DIST Energy'!H150+'FR-16(7)(v)-13 DIST Cust'!H150-'FR-16(7)(v)-14 TOTAL CLASS'!H150","v":0},{"$f":"'FR-16(7)(v)-3 PROD Demand'!I150+'FR-16(7)(v)-4 PROD Energy'!I150+'FR-16(7)(v)-5 PROD Cust'!I150+'FR-16(7)(v)-7 TRANS Demand'!I150+'FR-16(7)(v)-8 TRANS Energy'!I150+'FR-16(7)(v)-9 TRANS Cust'!I150+'FR-16(7)(v)-11 DIST Demand'!I150+'FR-16(7)(v)-12 DIST Energy'!I150+'FR-16(7)(v)-13 DIST Cust'!I150-'FR-16(7)(v)-14 TOTAL CLASS'!I150","v":0},{"$f":"'FR-16(7)(v)-3 PROD Demand'!J150+'FR-16(7)(v)-4 PROD Energy'!J150+'FR-16(7)(v)-5 PROD Cust'!J150+'FR-16(7)(v)-7 TRANS Demand'!J150+'FR-16(7)(v)-8 TRANS Energy'!J150+'FR-16(7)(v)-9 TRANS Cust'!J150+'FR-16(7)(v)-11 DIST Demand'!J150+'FR-16(7)(v)-12 DIST Energy'!J150+'FR-16(7)(v)-13 DIST Cust'!J150-'FR-16(7)(v)-14 TOTAL CLASS'!J150","v":0},{"$f":"'FR-16(7)(v)-3 PROD Demand'!K150+'FR-16(7)(v)-4 PROD Energy'!K150+'FR-16(7)(v)-5 PROD Cust'!K150+'FR-16(7)(v)-7 TRANS Demand'!K150+'FR-16(7)(v)-8 TRANS Energy'!K150+'FR-16(7)(v)-9 TRANS Cust'!K150+'FR-16(7)(v)-11 DIST Demand'!K150+'FR-16(7)(v)-12 DIST Energy'!K150+'FR-16(7)(v)-13 DIST Cust'!K150-'FR-16(7)(v)-14 TOTAL CLASS'!K150","v":0},{"$f":"'FR-16(7)(v)-3 PROD Demand'!L150+'FR-16(7)(v)-4 PROD Energy'!L150+'FR-16(7)(v)-5 PROD Cust'!L150+'FR-16(7)(v)-7 TRANS Demand'!L150+'FR-16(7)(v)-8 TRANS Energy'!L150+'FR-16(7)(v)-9 TRANS Cust'!L150+'FR-16(7)(v)-11 DIST Demand'!L150+'FR-16(7)(v)-12 DIST Energy'!L150+'FR-16(7)(v)-13 DIST Cust'!L150-'FR-16(7)(v)-14 TOTAL CLASS'!L150","v":0},{"$f":"'FR-16(7)(v)-3 PROD Demand'!M150+'FR-16(7)(v)-4 PROD Energy'!M150+'FR-16(7)(v)-5 PROD Cust'!M150+'FR-16(7)(v)-7 TRANS Demand'!M150+'FR-16(7)(v)-8 TRANS Energy'!M150+'FR-16(7)(v)-9 TRANS Cust'!M150+'FR-16(7)(v)-11 DIST Demand'!M150+'FR-16(7)(v)-12 DIST Energy'!M150+'FR-16(7)(v)-13 DIST Cust'!M150-'FR-16(7)(v)-14 TOTAL CLASS'!M150","v":0},{"$f":"'FR-16(7)(v)-3 PROD Demand'!N150+'FR-16(7)(v)-4 PROD Energy'!N150+'FR-16(7)(v)-5 PROD Cust'!N150+'FR-16(7)(v)-7 TRANS Demand'!N150+'FR-16(7)(v)-8 TRANS Energy'!N150+'FR-16(7)(v)-9 TRANS Cust'!N150+'FR-16(7)(v)-11 DIST Demand'!N150+'FR-16(7)(v)-12 DIST Energy'!N150+'FR-16(7)(v)-13 DIST Cust'!N150-'FR-16(7)(v)-14 TOTAL CLASS'!N150","v":0},{"$f":"'FR-16(7)(v)-3 PROD Demand'!O150+'FR-16(7)(v)-4 PROD Energy'!O150+'FR-16(7)(v)-5 PROD Cust'!O150+'FR-16(7)(v)-7 TRANS Demand'!O150+'FR-16(7)(v)-8 TRANS Energy'!O150+'FR-16(7)(v)-9 TRANS Cust'!O150+'FR-16(7)(v)-11 DIST Demand'!O150+'FR-16(7)(v)-12 DIST Energy'!O150+'FR-16(7)(v)-13 DIST Cust'!O150-'FR-16(7)(v)-14 TOTAL CLASS'!O150","v":0},{"$f":"'FR-16(7)(v)-3 PROD Demand'!P150+'FR-16(7)(v)-4 PROD Energy'!P150+'FR-16(7)(v)-5 PROD Cust'!P150+'FR-16(7)(v)-7 TRANS Demand'!P150+'FR-16(7)(v)-8 TRANS Energy'!P150+'FR-16(7)(v)-9 TRANS Cust'!P150+'FR-16(7)(v)-11 DIST Demand'!P150+'FR-16(7)(v)-12 DIST Energy'!P150+'FR-16(7)(v)-13 DIST Cust'!P150-'FR-16(7)(v)-14 TOTAL CLASS'!P150","v":0},{"$f":"'FR-16(7)(v)-3 PROD Demand'!Q150+'FR-16(7)(v)-4 PROD Energy'!Q150+'FR-16(7)(v)-5 PROD Cust'!Q150+'FR-16(7)(v)-7 TRANS Demand'!Q150+'FR-16(7)(v)-8 TRANS Energy'!Q150+'FR-16(7)(v)-9 TRANS Cust'!Q150+'FR-16(7)(v)-11 DIST Demand'!Q150+'FR-16(7)(v)-12 DIST Energy'!Q150+'FR-16(7)(v)-13 DIST Cust'!Q150-'FR-16(7)(v)-14 TOTAL CLASS'!Q150","v":0},{"$f":"SUM(G150:Q150)","v":0},{"$f":"F150-R150","v":0}]
[17,null,{"$f":"'FR-16(7)(v)-1 Functional'!C151","v":"POLES, TOWERS  & FIXTURES - PRIMARY - DEMAND"},{"$f":"'FR-16(7)(v)-1 Functional'!D151","v":"K205"},null,{"$f":"'FR-16(7)(v)-3 PROD Demand'!F151+'FR-16(7)(v)-4 PROD Energy'!F151+'FR-16(7)(v)-5 PROD Cust'!F151+'FR-16(7)(v)-7 TRANS Demand'!F151+'FR-16(7)(v)-8 TRANS Energy'!F151+'FR-16(7)(v)-9 TRANS Cust'!F151+'FR-16(7)(v)-11 DIST Demand'!F151+'FR-16(7)(v)-12 DIST Energy'!F151+'FR-16(7)(v)-13 DIST Cust'!F151-'FR-16(7)(v)-14 TOTAL CLASS'!F151","v":0},{"$f":"'FR-16(7)(v)-3 PROD Demand'!G151+'FR-16(7)(v)-4 PROD Energy'!G151+'FR-16(7)(v)-5 PROD Cust'!G151+'FR-16(7)(v)-7 TRANS Demand'!G151+'FR-16(7)(v)-8 TRANS Energy'!G151+'FR-16(7)(v)-9 TRANS Cust'!G151+'FR-16(7)(v)-11 DIST Demand'!G151+'FR-16(7)(v)-12 DIST Energy'!G151+'FR-16(7)(v)-13 DIST Cust'!G151-'FR-16(7)(v)-14 TOTAL CLASS'!G151","v":0},{"$f":"'FR-16(7)(v)-3 PROD Demand'!H151+'FR-16(7)(v)-4 PROD Energy'!H151+'FR-16(7)(v)-5 PROD Cust'!H151+'FR-16(7)(v)-7 TRANS Demand'!H151+'FR-16(7)(v)-8 TRANS Energy'!H151+'FR-16(7)(v)-9 TRANS Cust'!H151+'FR-16(7)(v)-11 DIST Demand'!H151+'FR-16(7)(v)-12 DIST Energy'!H151+'FR-16(7)(v)-13 DIST Cust'!H151-'FR-16(7)(v)-14 TOTAL CLASS'!H151","v":0},{"$f":"'FR-16(7)(v)-3 PROD Demand'!I151+'FR-16(7)(v)-4 PROD Energy'!I151+'FR-16(7)(v)-5 PROD Cust'!I151+'FR-16(7)(v)-7 TRANS Demand'!I151+'FR-16(7)(v)-8 TRANS Energy'!I151+'FR-16(7)(v)-9 TRANS Cust'!I151+'FR-16(7)(v)-11 DIST Demand'!I151+'FR-16(7)(v)-12 DIST Energy'!I151+'FR-16(7)(v)-13 DIST Cust'!I151-'FR-16(7)(v)-14 TOTAL CLASS'!I151","v":0},{"$f":"'FR-16(7)(v)-3 PROD Demand'!J151+'FR-16(7)(v)-4 PROD Energy'!J151+'FR-16(7)(v)-5 PROD Cust'!J151+'FR-16(7)(v)-7 TRANS Demand'!J151+'FR-16(7)(v)-8 TRANS Energy'!J151+'FR-16(7)(v)-9 TRANS Cust'!J151+'FR-16(7)(v)-11 DIST Demand'!J151+'FR-16(7)(v)-12 DIST Energy'!J151+'FR-16(7)(v)-13 DIST Cust'!J151-'FR-16(7)(v)-14 TOTAL CLASS'!J151","v":0},{"$f":"'FR-16(7)(v)-3 PROD Demand'!K151+'FR-16(7)(v)-4 PROD Energy'!K151+'FR-16(7)(v)-5 PROD Cust'!K151+'FR-16(7)(v)-7 TRANS Demand'!K151+'FR-16(7)(v)-8 TRANS Energy'!K151+'FR-16(7)(v)-9 TRANS Cust'!K151+'FR-16(7)(v)-11 DIST Demand'!K151+'FR-16(7)(v)-12 DIST Energy'!K151+'FR-16(7)(v)-13 DIST Cust'!K151-'FR-16(7)(v)-14 TOTAL CLASS'!K151","v":0},{"$f":"'FR-16(7)(v)-3 PROD Demand'!L151+'FR-16(7)(v)-4 PROD Energy'!L151+'FR-16(7)(v)-5 PROD Cust'!L151+'FR-16(7)(v)-7 TRANS Demand'!L151+'FR-16(7)(v)-8 TRANS Energy'!L151+'FR-16(7)(v)-9 TRANS Cust'!L151+'FR-16(7)(v)-11 DIST Demand'!L151+'FR-16(7)(v)-12 DIST Energy'!L151+'FR-16(7)(v)-13 DIST Cust'!L151-'FR-16(7)(v)-14 TOTAL CLASS'!L151","v":0},{"$f":"'FR-16(7)(v)-3 PROD Demand'!M151+'FR-16(7)(v)-4 PROD Energy'!M151+'FR-16(7)(v)-5 PROD Cust'!M151+'FR-16(7)(v)-7 TRANS Demand'!M151+'FR-16(7)(v)-8 TRANS Energy'!M151+'FR-16(7)(v)-9 TRANS Cust'!M151+'FR-16(7)(v)-11 DIST Demand'!M151+'FR-16(7)(v)-12 DIST Energy'!M151+'FR-16(7)(v)-13 DIST Cust'!M151-'FR-16(7)(v)-14 TOTAL CLASS'!M151","v":0},{"$f":"'FR-16(7)(v)-3 PROD Demand'!N151+'FR-16(7)(v)-4 PROD Energy'!N151+'FR-16(7)(v)-5 PROD Cust'!N151+'FR-16(7)(v)-7 TRANS Demand'!N151+'FR-16(7)(v)-8 TRANS Energy'!N151+'FR-16(7)(v)-9 TRANS Cust'!N151+'FR-16(7)(v)-11 DIST Demand'!N151+'FR-16(7)(v)-12 DIST Energy'!N151+'FR-16(7)(v)-13 DIST Cust'!N151-'FR-16(7)(v)-14 TOTAL CLASS'!N151","v":0},{"$f":"'FR-16(7)(v)-3 PROD Demand'!O151+'FR-16(7)(v)-4 PROD Energy'!O151+'FR-16(7)(v)-5 PROD Cust'!O151+'FR-16(7)(v)-7 TRANS Demand'!O151+'FR-16(7)(v)-8 TRANS Energy'!O151+'FR-16(7)(v)-9 TRANS Cust'!O151+'FR-16(7)(v)-11 DIST Demand'!O151+'FR-16(7)(v)-12 DIST Energy'!O151+'FR-16(7)(v)-13 DIST Cust'!O151-'FR-16(7)(v)-14 TOTAL CLASS'!O151","v":0},{"$f":"'FR-16(7)(v)-3 PROD Demand'!P151+'FR-16(7)(v)-4 PROD Energy'!P151+'FR-16(7)(v)-5 PROD Cust'!P151+'FR-16(7)(v)-7 TRANS Demand'!P151+'FR-16(7)(v)-8 TRANS Energy'!P151+'FR-16(7)(v)-9 TRANS Cust'!P151+'FR-16(7)(v)-11 DIST Demand'!P151+'FR-16(7)(v)-12 DIST Energy'!P151+'FR-16(7)(v)-13 DIST Cust'!P151-'FR-16(7)(v)-14 TOTAL CLASS'!P151","v":0},{"$f":"'FR-16(7)(v)-3 PROD Demand'!Q151+'FR-16(7)(v)-4 PROD Energy'!Q151+'FR-16(7)(v)-5 PROD Cust'!Q151+'FR-16(7)(v)-7 TRANS Demand'!Q151+'FR-16(7)(v)-8 TRANS Energy'!Q151+'FR-16(7)(v)-9 TRANS Cust'!Q151+'FR-16(7)(v)-11 DIST Demand'!Q151+'FR-16(7)(v)-12 DIST Energy'!Q151+'FR-16(7)(v)-13 DIST Cust'!Q151-'FR-16(7)(v)-14 TOTAL CLASS'!Q151","v":0},0,0]
[18,null,{"$f":"'FR-16(7)(v)-1 Functional'!C152","v":"POLES, TOWERS  & FIXTURES - PRIMARY - CUSTOMER"},{"$f":"'FR-16(7)(v)-1 Functional'!D152","v":"K405"},null,{"$f":"'FR-16(7)(v)-3 PROD Demand'!F152+'FR-16(7)(v)-4 PROD Energy'!F152+'FR-16(7)(v)-5 PROD Cust'!F152+'FR-16(7)(v)-7 TRANS Demand'!F152+'FR-16(7)(v)-8 TRANS Energy'!F152+'FR-16(7)(v)-9 TRANS Cust'!F152+'FR-16(7)(v)-11 DIST Demand'!F152+'FR-16(7)(v)-12 DIST Energy'!F152+'FR-16(7)(v)-13 DIST Cust'!F152-'FR-16(7)(v)-14 TOTAL CLASS'!F152","v":0},{"$f":"'FR-16(7)(v)-3 PROD Demand'!G152+'FR-16(7)(v)-4 PROD Energy'!G152+'FR-16(7)(v)-5 PROD Cust'!G152+'FR-16(7)(v)-7 TRANS Demand'!G152+'FR-16(7)(v)-8 TRANS Energy'!G152+'FR-16(7)(v)-9 TRANS Cust'!G152+'FR-16(7)(v)-11 DIST Demand'!G152+'FR-16(7)(v)-12 DIST Energy'!G152+'FR-16(7)(v)-13 DIST Cust'!G152-'FR-16(7)(v)-14 TOTAL CLASS'!G152","v":0},{"$f":"'FR-16(7)(v)-3 PROD Demand'!H152+'FR-16(7)(v)-4 PROD Energy'!H152+'FR-16(7)(v)-5 PROD Cust'!H152+'FR-16(7)(v)-7 TRANS Demand'!H152+'FR-16(7)(v)-8 TRANS Energy'!H152+'FR-16(7)(v)-9 TRANS Cust'!H152+'FR-16(7)(v)-11 DIST Demand'!H152+'FR-16(7)(v)-12 DIST Energy'!H152+'FR-16(7)(v)-13 DIST Cust'!H152-'FR-16(7)(v)-14 TOTAL CLASS'!H152","v":0},{"$f":"'FR-16(7)(v)-3 PROD Demand'!I152+'FR-16(7)(v)-4 PROD Energy'!I152+'FR-16(7)(v)-5 PROD Cust'!I152+'FR-16(7)(v)-7 TRANS Demand'!I152+'FR-16(7)(v)-8 TRANS Energy'!I152+'FR-16(7)(v)-9 TRANS Cust'!I152+'FR-16(7)(v)-11 DIST Demand'!I152+'FR-16(7)(v)-12 DIST Energy'!I152+'FR-16(7)(v)-13 DIST Cust'!I152-'FR-16(7)(v)-14 TOTAL CLASS'!I152","v":0},{"$f":"'FR-16(7)(v)-3 PROD Demand'!J152+'FR-16(7)(v)-4 PROD Energy'!J152+'FR-16(7)(v)-5 PROD Cust'!J152+'FR-16(7)(v)-7 TRANS Demand'!J152+'FR-16(7)(v)-8 TRANS Energy'!J152+'FR-16(7)(v)-9 TRANS Cust'!J152+'FR-16(7)(v)-11 DIST Demand'!J152+'FR-16(7)(v)-12 DIST Energy'!J152+'FR-16(7)(v)-13 DIST Cust'!J152-'FR-16(7)(v)-14 TOTAL CLASS'!J152","v":0},{"$f":"'FR-16(7)(v)-3 PROD Demand'!K152+'FR-16(7)(v)-4 PROD Energy'!K152+'FR-16(7)(v)-5 PROD Cust'!K152+'FR-16(7)(v)-7 TRANS Demand'!K152+'FR-16(7)(v)-8 TRANS Energy'!K152+'FR-16(7)(v)-9 TRANS Cust'!K152+'FR-16(7)(v)-11 DIST Demand'!K152+'FR-16(7)(v)-12 DIST Energy'!K152+'FR-16(7)(v)-13 DIST Cust'!K152-'FR-16(7)(v)-14 TOTAL CLASS'!K152","v":0},{"$f":"'FR-16(7)(v)-3 PROD Demand'!L152+'FR-16(7)(v)-4 PROD Energy'!L152+'FR-16(7)(v)-5 PROD Cust'!L152+'FR-16(7)(v)-7 TRANS Demand'!L152+'FR-16(7)(v)-8 TRANS Energy'!L152+'FR-16(7)(v)-9 TRANS Cust'!L152+'FR-16(7)(v)-11 DIST Demand'!L152+'FR-16(7)(v)-12 DIST Energy'!L152+'FR-16(7)(v)-13 DIST Cust'!L152-'FR-16(7)(v)-14 TOTAL CLASS'!L152","v":0},{"$f":"'FR-16(7)(v)-3 PROD Demand'!M152+'FR-16(7)(v)-4 PROD Energy'!M152+'FR-16(7)(v)-5 PROD Cust'!M152+'FR-16(7)(v)-7 TRANS Demand'!M152+'FR-16(7)(v)-8 TRANS Energy'!M152+'FR-16(7)(v)-9 TRANS Cust'!M152+'FR-16(7)(v)-11 DIST Demand'!M152+'FR-16(7)(v)-12 DIST Energy'!M152+'FR-16(7)(v)-13 DIST Cust'!M152-'FR-16(7)(v)-14 TOTAL CLASS'!M152","v":0},{"$f":"'FR-16(7)(v)-3 PROD Demand'!N152+'FR-16(7)(v)-4 PROD Energy'!N152+'FR-16(7)(v)-5 PROD Cust'!N152+'FR-16(7)(v)-7 TRANS Demand'!N152+'FR-16(7)(v)-8 TRANS Energy'!N152+'FR-16(7)(v)-9 TRANS Cust'!N152+'FR-16(7)(v)-11 DIST Demand'!N152+'FR-16(7)(v)-12 DIST Energy'!N152+'FR-16(7)(v)-13 DIST Cust'!N152-'FR-16(7)(v)-14 TOTAL CLASS'!N152","v":0},{"$f":"'FR-16(7)(v)-3 PROD Demand'!O152+'FR-16(7)(v)-4 PROD Energy'!O152+'FR-16(7)(v)-5 PROD Cust'!O152+'FR-16(7)(v)-7 TRANS Demand'!O152+'FR-16(7)(v)-8 TRANS Energy'!O152+'FR-16(7)(v)-9 TRANS Cust'!O152+'FR-16(7)(v)-11 DIST Demand'!O152+'FR-16(7)(v)-12 DIST Energy'!O152+'FR-16(7)(v)-13 DIST Cust'!O152-'FR-16(7)(v)-14 TOTAL CLASS'!O152","v":0},{"$f":"'FR-16(7)(v)-3 PROD Demand'!P152+'FR-16(7)(v)-4 PROD Energy'!P152+'FR-16(7)(v)-5 PROD Cust'!P152+'FR-16(7)(v)-7 TRANS Demand'!P152+'FR-16(7)(v)-8 TRANS Energy'!P152+'FR-16(7)(v)-9 TRANS Cust'!P152+'FR-16(7)(v)-11 DIST Demand'!P152+'FR-16(7)(v)-12 DIST Energy'!P152+'FR-16(7)(v)-13 DIST Cust'!P152-'FR-16(7)(v)-14 TOTAL CLASS'!P152","v":0},{"$f":"'FR-16(7)(v)-3 PROD Demand'!Q152+'FR-16(7)(v)-4 PROD Energy'!Q152+'FR-16(7)(v)-5 PROD Cust'!Q152+'FR-16(7)(v)-7 TRANS Demand'!Q152+'FR-16(7)(v)-8 TRANS Energy'!Q152+'FR-16(7)(v)-9 TRANS Cust'!Q152+'FR-16(7)(v)-11 DIST Demand'!Q152+'FR-16(7)(v)-12 DIST Energy'!Q152+'FR-16(7)(v)-13 DIST Cust'!Q152-'FR-16(7)(v)-14 TOTAL CLASS'!Q152","v":0},0,0]
[19,null,{"$f":"'FR-16(7)(v)-1 Functional'!C153","v":"POLES, TOWERS  & FIXTURES - SECONDARY - DEMAND"},{"$f":"'FR-16(7)(v)-1 Functional'!D153","v":"K206"},null,{"$f":"'FR-16(7)(v)-3 PROD Demand'!F153+'FR-16(7)(v)-4 PROD Energy'!F153+'FR-16(7)(v)-5 PROD Cust'!F153+'FR-16(7)(v)-7 TRANS Demand'!F153+'FR-16(7)(v)-8 TRANS Energy'!F153+'FR-16(7)(v)-9 TRANS Cust'!F153+'FR-16(7)(v)-11 DIST Demand'!F153+'FR-16(7)(v)-12 DIST Energy'!F153+'FR-16(7)(v)-13 DIST Cust'!F153-'FR-16(7)(v)-14 TOTAL CLASS'!F153","v":0},{"$f":"'FR-16(7)(v)-3 PROD Demand'!G153+'FR-16(7)(v)-4 PROD Energy'!G153+'FR-16(7)(v)-5 PROD Cust'!G153+'FR-16(7)(v)-7 TRANS Demand'!G153+'FR-16(7)(v)-8 TRANS Energy'!G153+'FR-16(7)(v)-9 TRANS Cust'!G153+'FR-16(7)(v)-11 DIST Demand'!G153+'FR-16(7)(v)-12 DIST Energy'!G153+'FR-16(7)(v)-13 DIST Cust'!G153-'FR-16(7)(v)-14 TOTAL CLASS'!G153","v":0},{"$f":"'FR-16(7)(v)-3 PROD Demand'!H153+'FR-16(7)(v)-4 PROD Energy'!H153+'FR-16(7)(v)-5 PROD Cust'!H153+'FR-16(7)(v)-7 TRANS Demand'!H153+'FR-16(7)(v)-8 TRANS Energy'!H153+'FR-16(7)(v)-9 TRANS Cust'!H153+'FR-16(7)(v)-11 DIST Demand'!H153+'FR-16(7)(v)-12 DIST Energy'!H153+'FR-16(7)(v)-13 DIST Cust'!H153-'FR-16(7)(v)-14 TOTAL CLASS'!H153","v":0},{"$f":"'FR-16(7)(v)-3 PROD Demand'!I153+'FR-16(7)(v)-4 PROD Energy'!I153+'FR-16(7)(v)-5 PROD Cust'!I153+'FR-16(7)(v)-7 TRANS Demand'!I153+'FR-16(7)(v)-8 TRANS Energy'!I153+'FR-16(7)(v)-9 TRANS Cust'!I153+'FR-16(7)(v)-11 DIST Demand'!I153+'FR-16(7)(v)-12 DIST Energy'!I153+'FR-16(7)(v)-13 DIST Cust'!I153-'FR-16(7)(v)-14 TOTAL CLASS'!I153","v":0},{"$f":"'FR-16(7)(v)-3 PROD Demand'!J153+'FR-16(7)(v)-4 PROD Energy'!J153+'FR-16(7)(v)-5 PROD Cust'!J153+'FR-16(7)(v)-7 TRANS Demand'!J153+'FR-16(7)(v)-8 TRANS Energy'!J153+'FR-16(7)(v)-9 TRANS Cust'!J153+'FR-16(7)(v)-11 DIST Demand'!J153+'FR-16(7)(v)-12 DIST Energy'!J153+'FR-16(7)(v)-13 DIST Cust'!J153-'FR-16(7)(v)-14 TOTAL CLASS'!J153","v":0},{"$f":"'FR-16(7)(v)-3 PROD Demand'!K153+'FR-16(7)(v)-4 PROD Energy'!K153+'FR-16(7)(v)-5 PROD Cust'!K153+'FR-16(7)(v)-7 TRANS Demand'!K153+'FR-16(7)(v)-8 TRANS Energy'!K153+'FR-16(7)(v)-9 TRANS Cust'!K153+'FR-16(7)(v)-11 DIST Demand'!K153+'FR-16(7)(v)-12 DIST Energy'!K153+'FR-16(7)(v)-13 DIST Cust'!K153-'FR-16(7)(v)-14 TOTAL CLASS'!K153","v":0},{"$f":"'FR-16(7)(v)-3 PROD Demand'!L153+'FR-16(7)(v)-4 PROD Energy'!L153+'FR-16(7)(v)-5 PROD Cust'!L153+'FR-16(7)(v)-7 TRANS Demand'!L153+'FR-16(7)(v)-8 TRANS Energy'!L153+'FR-16(7)(v)-9 TRANS Cust'!L153+'FR-16(7)(v)-11 DIST Demand'!L153+'FR-16(7)(v)-12 DIST Energy'!L153+'FR-16(7)(v)-13 DIST Cust'!L153-'FR-16(7)(v)-14 TOTAL CLASS'!L153","v":0},{"$f":"'FR-16(7)(v)-3 PROD Demand'!M153+'FR-16(7)(v)-4 PROD Energy'!M153+'FR-16(7)(v)-5 PROD Cust'!M153+'FR-16(7)(v)-7 TRANS Demand'!M153+'FR-16(7)(v)-8 TRANS Energy'!M153+'FR-16(7)(v)-9 TRANS Cust'!M153+'FR-16(7)(v)-11 DIST Demand'!M153+'FR-16(7)(v)-12 DIST Energy'!M153+'FR-16(7)(v)-13 DIST Cust'!M153-'FR-16(7)(v)-14 TOTAL CLASS'!M153","v":0},{"$f":"'FR-16(7)(v)-3 PROD Demand'!N153+'FR-16(7)(v)-4 PROD Energy'!N153+'FR-16(7)(v)-5 PROD Cust'!N153+'FR-16(7)(v)-7 TRANS Demand'!N153+'FR-16(7)(v)-8 TRANS Energy'!N153+'FR-16(7)(v)-9 TRANS Cust'!N153+'FR-16(7)(v)-11 DIST Demand'!N153+'FR-16(7)(v)-12 DIST Energy'!N153+'FR-16(7)(v)-13 DIST Cust'!N153-'FR-16(7)(v)-14 TOTAL CLASS'!N153","v":0},{"$f":"'FR-16(7)(v)-3 PROD Demand'!O153+'FR-16(7)(v)-4 PROD Energy'!O153+'FR-16(7)(v)-5 PROD Cust'!O153+'FR-16(7)(v)-7 TRANS Demand'!O153+'FR-16(7)(v)-8 TRANS Energy'!O153+'FR-16(7)(v)-9 TRANS Cust'!O153+'FR-16(7)(v)-11 DIST Demand'!O153+'FR-16(7)(v)-12 DIST Energy'!O153+'FR-16(7)(v)-13 DIST Cust'!O153-'FR-16(7)(v)-14 TOTAL CLASS'!O153","v":0},{"$f":"'FR-16(7)(v)-3 PROD Demand'!P153+'FR-16(7)(v)-4 PROD Energy'!P153+'FR-16(7)(v)-5 PROD Cust'!P153+'FR-16(7)(v)-7 TRANS Demand'!P153+'FR-16(7)(v)-8 TRANS Energy'!P153+'FR-16(7)(v)-9 TRANS Cust'!P153+'FR-16(7)(v)-11 DIST Demand'!P153+'FR-16(7)(v)-12 DIST Energy'!P153+'FR-16(7)(v)-13 DIST Cust'!P153-'FR-16(7)(v)-14 TOTAL CLASS'!P153","v":0},{"$f":"'FR-16(7)(v)-3 PROD Demand'!Q153+'FR-16(7)(v)-4 PROD Energy'!Q153+'FR-16(7)(v)-5 PROD Cust'!Q153+'FR-16(7)(v)-7 TRANS Demand'!Q153+'FR-16(7)(v)-8 TRANS Energy'!Q153+'FR-16(7)(v)-9 TRANS Cust'!Q153+'FR-16(7)(v)-11 DIST Demand'!Q153+'FR-16(7)(v)-12 DIST Energy'!Q153+'FR-16(7)(v)-13 DIST Cust'!Q153-'FR-16(7)(v)-14 TOTAL CLASS'!Q153","v":0},0,0]
[20,null,{"$f":"'FR-16(7)(v)-1 Functional'!C154","v":"POLES, TOWERS  & FIXTURES - SECONDARY - CUSTOMER"},{"$f":"'FR-16(7)(v)-1 Functional'!D154","v":"K405"},null,{"$f":"'FR-16(7)(v)-3 PROD Demand'!F154+'FR-16(7)(v)-4 PROD Energy'!F154+'FR-16(7)(v)-5 PROD Cust'!F154+'FR-16(7)(v)-7 TRANS Demand'!F154+'FR-16(7)(v)-8 TRANS Energy'!F154+'FR-16(7)(v)-9 TRANS Cust'!F154+'FR-16(7)(v)-11 DIST Demand'!F154+'FR-16(7)(v)-12 DIST Energy'!F154+'FR-16(7)(v)-13 DIST Cust'!F154-'FR-16(7)(v)-14 TOTAL CLASS'!F154","v":0},{"$f":"'FR-16(7)(v)-3 PROD Demand'!G154+'FR-16(7)(v)-4 PROD Energy'!G154+'FR-16(7)(v)-5 PROD Cust'!G154+'FR-16(7)(v)-7 TRANS Demand'!G154+'FR-16(7)(v)-8 TRANS Energy'!G154+'FR-16(7)(v)-9 TRANS Cust'!G154+'FR-16(7)(v)-11 DIST Demand'!G154+'FR-16(7)(v)-12 DIST Energy'!G154+'FR-16(7)(v)-13 DIST Cust'!G154-'FR-16(7)(v)-14 TOTAL CLASS'!G154","v":0},{"$f":"'FR-16(7)(v)-3 PROD Demand'!H154+'FR-16(7)(v)-4 PROD Energy'!H154+'FR-16(7)(v)-5 PROD Cust'!H154+'FR-16(7)(v)-7 TRANS Demand'!H154+'FR-16(7)(v)-8 TRANS Energy'!H154+'FR-16(7)(v)-9 TRANS Cust'!H154+'FR-16(7)(v)-11 DIST Demand'!H154+'FR-16(7)(v)-12 DIST Energy'!H154+'FR-16(7)(v)-13 DIST Cust'!H154-'FR-16(7)(v)-14 TOTAL CLASS'!H154","v":0},{"$f":"'FR-16(7)(v)-3 PROD Demand'!I154+'FR-16(7)(v)-4 PROD Energy'!I154+'FR-16(7)(v)-5 PROD Cust'!I154+'FR-16(7)(v)-7 TRANS Demand'!I154+'FR-16(7)(v)-8 TRANS Energy'!I154+'FR-16(7)(v)-9 TRANS Cust'!I154+'FR-16(7)(v)-11 DIST Demand'!I154+'FR-16(7)(v)-12 DIST Energy'!I154+'FR-16(7)(v)-13 DIST Cust'!I154-'FR-16(7)(v)-14 TOTAL CLASS'!I154","v":0},{"$f":"'FR-16(7)(v)-3 PROD Demand'!J154+'FR-16(7)(v)-4 PROD Energy'!J154+'FR-16(7)(v)-5 PROD Cust'!J154+'FR-16(7)(v)-7 TRANS Demand'!J154+'FR-16(7)(v)-8 TRANS Energy'!J154+'FR-16(7)(v)-9 TRANS Cust'!J154+'FR-16(7)(v)-11 DIST Demand'!J154+'FR-16(7)(v)-12 DIST Energy'!J154+'FR-16(7)(v)-13 DIST Cust'!J154-'FR-16(7)(v)-14 TOTAL CLASS'!J154","v":0},{"$f":"'FR-16(7)(v)-3 PROD Demand'!K154+'FR-16(7)(v)-4 PROD Energy'!K154+'FR-16(7)(v)-5 PROD Cust'!K154+'FR-16(7)(v)-7 TRANS Demand'!K154+'FR-16(7)(v)-8 TRANS Energy'!K154+'FR-16(7)(v)-9 TRANS Cust'!K154+'FR-16(7)(v)-11 DIST Demand'!K154+'FR-16(7)(v)-12 DIST Energy'!K154+'FR-16(7)(v)-13 DIST Cust'!K154-'FR-16(7)(v)-14 TOTAL CLASS'!K154","v":0},{"$f":"'FR-16(7)(v)-3 PROD Demand'!L154+'FR-16(7)(v)-4 PROD Energy'!L154+'FR-16(7)(v)-5 PROD Cust'!L154+'FR-16(7)(v)-7 TRANS Demand'!L154+'FR-16(7)(v)-8 TRANS Energy'!L154+'FR-16(7)(v)-9 TRANS Cust'!L154+'FR-16(7)(v)-11 DIST Demand'!L154+'FR-16(7)(v)-12 DIST Energy'!L154+'FR-16(7)(v)-13 DIST Cust'!L154-'FR-16(7)(v)-14 TOTAL CLASS'!L154","v":0},{"$f":"'FR-16(7)(v)-3 PROD Demand'!M154+'FR-16(7)(v)-4 PROD Energy'!M154+'FR-16(7)(v)-5 PROD Cust'!M154+'FR-16(7)(v)-7 TRANS Demand'!M154+'FR-16(7)(v)-8 TRANS Energy'!M154+'FR-16(7)(v)-9 TRANS Cust'!M154+'FR-16(7)(v)-11 DIST Demand'!M154+'FR-16(7)(v)-12 DIST Energy'!M154+'FR-16(7)(v)-13 DIST Cust'!M154-'FR-16(7)(v)-14 TOTAL CLASS'!M154","v":0},{"$f":"'FR-16(7)(v)-3 PROD Demand'!N154+'FR-16(7)(v)-4 PROD Energy'!N154+'FR-16(7)(v)-5 PROD Cust'!N154+'FR-16(7)(v)-7 TRANS Demand'!N154+'FR-16(7)(v)-8 TRANS Energy'!N154+'FR-16(7)(v)-9 TRANS Cust'!N154+'FR-16(7)(v)-11 DIST Demand'!N154+'FR-16(7)(v)-12 DIST Energy'!N154+'FR-16(7)(v)-13 DIST Cust'!N154-'FR-16(7)(v)-14 TOTAL CLASS'!N154","v":0},{"$f":"'FR-16(7)(v)-3 PROD Demand'!O154+'FR-16(7)(v)-4 PROD Energy'!O154+'FR-16(7)(v)-5 PROD Cust'!O154+'FR-16(7)(v)-7 TRANS Demand'!O154+'FR-16(7)(v)-8 TRANS Energy'!O154+'FR-16(7)(v)-9 TRANS Cust'!O154+'FR-16(7)(v)-11 DIST Demand'!O154+'FR-16(7)(v)-12 DIST Energy'!O154+'FR-16(7)(v)-13 DIST Cust'!O154-'FR-16(7)(v)-14 TOTAL CLASS'!O154","v":0},{"$f":"'FR-16(7)(v)-3 PROD Demand'!P154+'FR-16(7)(v)-4 PROD Energy'!P154+'FR-16(7)(v)-5 PROD Cust'!P154+'FR-16(7)(v)-7 TRANS Demand'!P154+'FR-16(7)(v)-8 TRANS Energy'!P154+'FR-16(7)(v)-9 TRANS Cust'!P154+'FR-16(7)(v)-11 DIST Demand'!P154+'FR-16(7)(v)-12 DIST Energy'!P154+'FR-16(7)(v)-13 DIST Cust'!P154-'FR-16(7)(v)-14 TOTAL CLASS'!P154","v":0},{"$f":"'FR-16(7)(v)-3 PROD Demand'!Q154+'FR-16(7)(v)-4 PROD Energy'!Q154+'FR-16(7)(v)-5 PROD Cust'!Q154+'FR-16(7)(v)-7 TRANS Demand'!Q154+'FR-16(7)(v)-8 TRANS Energy'!Q154+'FR-16(7)(v)-9 TRANS Cust'!Q154+'FR-16(7)(v)-11 DIST Demand'!Q154+'FR-16(7)(v)-12 DIST Energy'!Q154+'FR-16(7)(v)-13 DIST Cust'!Q154-'FR-16(7)(v)-14 TOTAL CLASS'!Q154","v":0},0,0]
[21,null,{"$f":"'FR-16(7)(v)-1 Functional'!C155","v":"CONDUCTORS - OVERHEAD / PRIMARY - DEMAND"},{"$f":"'FR-16(7)(v)-1 Functional'!D155","v":"K205"},null,{"$f":"'FR-16(7)(v)-3 PROD Demand'!F155+'FR-16(7)(v)-4 PROD Energy'!F155+'FR-16(7)(v)-5 PROD Cust'!F155+'FR-16(7)(v)-7 TRANS Demand'!F155+'FR-16(7)(v)-8 TRANS Energy'!F155+'FR-16(7)(v)-9 TRANS Cust'!F155+'FR-16(7)(v)-11 DIST Demand'!F155+'FR-16(7)(v)-12 DIST Energy'!F155+'FR-16(7)(v)-13 DIST Cust'!F155-'FR-16(7)(v)-14 TOTAL CLASS'!F155","v":0},{"$f":"'FR-16(7)(v)-3 PROD Demand'!G155+'FR-16(7)(v)-4 PROD Energy'!G155+'FR-16(7)(v)-5 PROD Cust'!G155+'FR-16(7)(v)-7 TRANS Demand'!G155+'FR-16(7)(v)-8 TRANS Energy'!G155+'FR-16(7)(v)-9 TRANS Cust'!G155+'FR-16(7)(v)-11 DIST Demand'!G155+'FR-16(7)(v)-12 DIST Energy'!G155+'FR-16(7)(v)-13 DIST Cust'!G155-'FR-16(7)(v)-14 TOTAL CLASS'!G155","v":0},{"$f":"'FR-16(7)(v)-3 PROD Demand'!H155+'FR-16(7)(v)-4 PROD Energy'!H155+'FR-16(7)(v)-5 PROD Cust'!H155+'FR-16(7)(v)-7 TRANS Demand'!H155+'FR-16(7)(v)-8 TRANS Energy'!H155+'FR-16(7)(v)-9 TRANS Cust'!H155+'FR-16(7)(v)-11 DIST Demand'!H155+'FR-16(7)(v)-12 DIST Energy'!H155+'FR-16(7)(v)-13 DIST Cust'!H155-'FR-16(7)(v)-14 TOTAL CLASS'!H155","v":0},{"$f":"'FR-16(7)(v)-3 PROD Demand'!I155+'FR-16(7)(v)-4 PROD Energy'!I155+'FR-16(7)(v)-5 PROD Cust'!I155+'FR-16(7)(v)-7 TRANS Demand'!I155+'FR-16(7)(v)-8 TRANS Energy'!I155+'FR-16(7)(v)-9 TRANS Cust'!I155+'FR-16(7)(v)-11 DIST Demand'!I155+'FR-16(7)(v)-12 DIST Energy'!I155+'FR-16(7)(v)-13 DIST Cust'!I155-'FR-16(7)(v)-14 TOTAL CLASS'!I155","v":0},{"$f":"'FR-16(7)(v)-3 PROD Demand'!J155+'FR-16(7)(v)-4 PROD Energy'!J155+'FR-16(7)(v)-5 PROD Cust'!J155+'FR-16(7)(v)-7 TRANS Demand'!J155+'FR-16(7)(v)-8 TRANS Energy'!J155+'FR-16(7)(v)-9 TRANS Cust'!J155+'FR-16(7)(v)-11 DIST Demand'!J155+'FR-16(7)(v)-12 DIST Energy'!J155+'FR-16(7)(v)-13 DIST Cust'!J155-'FR-16(7)(v)-14 TOTAL CLASS'!J155","v":0},{"$f":"'FR-16(7)(v)-3 PROD Demand'!K155+'FR-16(7)(v)-4 PROD Energy'!K155+'FR-16(7)(v)-5 PROD Cust'!K155+'FR-16(7)(v)-7 TRANS Demand'!K155+'FR-16(7)(v)-8 TRANS Energy'!K155+'FR-16(7)(v)-9 TRANS Cust'!K155+'FR-16(7)(v)-11 DIST Demand'!K155+'FR-16(7)(v)-12 DIST Energy'!K155+'FR-16(7)(v)-13 DIST Cust'!K155-'FR-16(7)(v)-14 TOTAL CLASS'!K155","v":0},{"$f":"'FR-16(7)(v)-3 PROD Demand'!L155+'FR-16(7)(v)-4 PROD Energy'!L155+'FR-16(7)(v)-5 PROD Cust'!L155+'FR-16(7)(v)-7 TRANS Demand'!L155+'FR-16(7)(v)-8 TRANS Energy'!L155+'FR-16(7)(v)-9 TRANS Cust'!L155+'FR-16(7)(v)-11 DIST Demand'!L155+'FR-16(7)(v)-12 DIST Energy'!L155+'FR-16(7)(v)-13 DIST Cust'!L155-'FR-16(7)(v)-14 TOTAL CLASS'!L155","v":0},{"$f":"'FR-16(7)(v)-3 PROD Demand'!M155+'FR-16(7)(v)-4 PROD Energy'!M155+'FR-16(7)(v)-5 PROD Cust'!M155+'FR-16(7)(v)-7 TRANS Demand'!M155+'FR-16(7)(v)-8 TRANS Energy'!M155+'FR-16(7)(v)-9 TRANS Cust'!M155+'FR-16(7)(v)-11 DIST Demand'!M155+'FR-16(7)(v)-12 DIST Energy'!M155+'FR-16(7)(v)-13 DIST Cust'!M155-'FR-16(7)(v)-14 TOTAL CLASS'!M155","v":0},{"$f":"'FR-16(7)(v)-3 PROD Demand'!N155+'FR-16(7)(v)-4 PROD Energy'!N155+'FR-16(7)(v)-5 PROD Cust'!N155+'FR-16(7)(v)-7 TRANS Demand'!N155+'FR-16(7)(v)-8 TRANS Energy'!N155+'FR-16(7)(v)-9 TRANS Cust'!N155+'FR-16(7)(v)-11 DIST Demand'!N155+'FR-16(7)(v)-12 DIST Energy'!N155+'FR-16(7)(v)-13 DIST Cust'!N155-'FR-16(7)(v)-14 TOTAL CLASS'!N155","v":0},{"$f":"'FR-16(7)(v)-3 PROD Demand'!O155+'FR-16(7)(v)-4 PROD Energy'!O155+'FR-16(7)(v)-5 PROD Cust'!O155+'FR-16(7)(v)-7 TRANS Demand'!O155+'FR-16(7)(v)-8 TRANS Energy'!O155+'FR-16(7)(v)-9 TRANS Cust'!O155+'FR-16(7)(v)-11 DIST Demand'!O155+'FR-16(7)(v)-12 DIST Energy'!O155+'FR-16(7)(v)-13 DIST Cust'!O155-'FR-16(7)(v)-14 TOTAL CLASS'!O155","v":0},{"$f":"'FR-16(7)(v)-3 PROD Demand'!P155+'FR-16(7)(v)-4 PROD Energy'!P155+'FR-16(7)(v)-5 PROD Cust'!P155+'FR-16(7)(v)-7 TRANS Demand'!P155+'FR-16(7)(v)-8 TRANS Energy'!P155+'FR-16(7)(v)-9 TRANS Cust'!P155+'FR-16(7)(v)-11 DIST Demand'!P155+'FR-16(7)(v)-12 DIST Energy'!P155+'FR-16(7)(v)-13 DIST Cust'!P155-'FR-16(7)(v)-14 TOTAL CLASS'!P155","v":0},{"$f":"'FR-16(7)(v)-3 PROD Demand'!Q155+'FR-16(7)(v)-4 PROD Energy'!Q155+'FR-16(7)(v)-5 PROD Cust'!Q155+'FR-16(7)(v)-7 TRANS Demand'!Q155+'FR-16(7)(v)-8 TRANS Energy'!Q155+'FR-16(7)(v)-9 TRANS Cust'!Q155+'FR-16(7)(v)-11 DIST Demand'!Q155+'FR-16(7)(v)-12 DIST Energy'!Q155+'FR-16(7)(v)-13 DIST Cust'!Q155-'FR-16(7)(v)-14 TOTAL CLASS'!Q155","v":0},0,0]
[22,null,{"$f":"'FR-16(7)(v)-1 Functional'!C156","v":"CONDUCTORS - OVERHEAD / PRIMARY - CUSTOMER"},{"$f":"'FR-16(7)(v)-1 Functional'!D156","v":"K405"},null,{"$f":"'FR-16(7)(v)-3 PROD Demand'!F156+'FR-16(7)(v)-4 PROD Energy'!F156+'FR-16(7)(v)-5 PROD Cust'!F156+'FR-16(7)(v)-7 TRANS Demand'!F156+'FR-16(7)(v)-8 TRANS Energy'!F156+'FR-16(7)(v)-9 TRANS Cust'!F156+'FR-16(7)(v)-11 DIST Demand'!F156+'FR-16(7)(v)-12 DIST Energy'!F156+'FR-16(7)(v)-13 DIST Cust'!F156-'FR-16(7)(v)-14 TOTAL CLASS'!F156","v":0},{"$f":"'FR-16(7)(v)-3 PROD Demand'!G156+'FR-16(7)(v)-4 PROD Energy'!G156+'FR-16(7)(v)-5 PROD Cust'!G156+'FR-16(7)(v)-7 TRANS Demand'!G156+'FR-16(7)(v)-8 TRANS Energy'!G156+'FR-16(7)(v)-9 TRANS Cust'!G156+'FR-16(7)(v)-11 DIST Demand'!G156+'FR-16(7)(v)-12 DIST Energy'!G156+'FR-16(7)(v)-13 DIST Cust'!G156-'FR-16(7)(v)-14 TOTAL CLASS'!G156","v":0},{"$f":"'FR-16(7)(v)-3 PROD Demand'!H156+'FR-16(7)(v)-4 PROD Energy'!H156+'FR-16(7)(v)-5 PROD Cust'!H156+'FR-16(7)(v)-7 TRANS Demand'!H156+'FR-16(7)(v)-8 TRANS Energy'!H156+'FR-16(7)(v)-9 TRANS Cust'!H156+'FR-16(7)(v)-11 DIST Demand'!H156+'FR-16(7)(v)-12 DIST Energy'!H156+'FR-16(7)(v)-13 DIST Cust'!H156-'FR-16(7)(v)-14 TOTAL CLASS'!H156","v":0},{"$f":"'FR-16(7)(v)-3 PROD Demand'!I156+'FR-16(7)(v)-4 PROD Energy'!I156+'FR-16(7)(v)-5 PROD Cust'!I156+'FR-16(7)(v)-7 TRANS Demand'!I156+'FR-16(7)(v)-8 TRANS Energy'!I156+'FR-16(7)(v)-9 TRANS Cust'!I156+'FR-16(7)(v)-11 DIST Demand'!I156+'FR-16(7)(v)-12 DIST Energy'!I156+'FR-16(7)(v)-13 DIST Cust'!I156-'FR-16(7)(v)-14 TOTAL CLASS'!I156","v":0},{"$f":"'FR-16(7)(v)-3 PROD Demand'!J156+'FR-16(7)(v)-4 PROD Energy'!J156+'FR-16(7)(v)-5 PROD Cust'!J156+'FR-16(7)(v)-7 TRANS Demand'!J156+'FR-16(7)(v)-8 TRANS Energy'!J156+'FR-16(7)(v)-9 TRANS Cust'!J156+'FR-16(7)(v)-11 DIST Demand'!J156+'FR-16(7)(v)-12 DIST Energy'!J156+'FR-16(7)(v)-13 DIST Cust'!J156-'FR-16(7)(v)-14 TOTAL CLASS'!J156","v":0},{"$f":"'FR-16(7)(v)-3 PROD Demand'!K156+'FR-16(7)(v)-4 PROD Energy'!K156+'FR-16(7)(v)-5 PROD Cust'!K156+'FR-16(7)(v)-7 TRANS Demand'!K156+'FR-16(7)(v)-8 TRANS Energy'!K156+'FR-16(7)(v)-9 TRANS Cust'!K156+'FR-16(7)(v)-11 DIST Demand'!K156+'FR-16(7)(v)-12 DIST Energy'!K156+'FR-16(7)(v)-13 DIST Cust'!K156-'FR-16(7)(v)-14 TOTAL CLASS'!K156","v":0},{"$f":"'FR-16(7)(v)-3 PROD Demand'!L156+'FR-16(7)(v)-4 PROD Energy'!L156+'FR-16(7)(v)-5 PROD Cust'!L156+'FR-16(7)(v)-7 TRANS Demand'!L156+'FR-16(7)(v)-8 TRANS Energy'!L156+'FR-16(7)(v)-9 TRANS Cust'!L156+'FR-16(7)(v)-11 DIST Demand'!L156+'FR-16(7)(v)-12 DIST Energy'!L156+'FR-16(7)(v)-13 DIST Cust'!L156-'FR-16(7)(v)-14 TOTAL CLASS'!L156","v":0},{"$f":"'FR-16(7)(v)-3 PROD Demand'!M156+'FR-16(7)(v)-4 PROD Energy'!M156+'FR-16(7)(v)-5 PROD Cust'!M156+'FR-16(7)(v)-7 TRANS Demand'!M156+'FR-16(7)(v)-8 TRANS Energy'!M156+'FR-16(7)(v)-9 TRANS Cust'!M156+'FR-16(7)(v)-11 DIST Demand'!M156+'FR-16(7)(v)-12 DIST Energy'!M156+'FR-16(7)(v)-13 DIST Cust'!M156-'FR-16(7)(v)-14 TOTAL CLASS'!M156","v":0},{"$f":"'FR-16(7)(v)-3 PROD Demand'!N156+'FR-16(7)(v)-4 PROD Energy'!N156+'FR-16(7)(v)-5 PROD Cust'!N156+'FR-16(7)(v)-7 TRANS Demand'!N156+'FR-16(7)(v)-8 TRANS Energy'!N156+'FR-16(7)(v)-9 TRANS Cust'!N156+'FR-16(7)(v)-11 DIST Demand'!N156+'FR-16(7)(v)-12 DIST Energy'!N156+'FR-16(7)(v)-13 DIST Cust'!N156-'FR-16(7)(v)-14 TOTAL CLASS'!N156","v":0},{"$f":"'FR-16(7)(v)-3 PROD Demand'!O156+'FR-16(7)(v)-4 PROD Energy'!O156+'FR-16(7)(v)-5 PROD Cust'!O156+'FR-16(7)(v)-7 TRANS Demand'!O156+'FR-16(7)(v)-8 TRANS Energy'!O156+'FR-16(7)(v)-9 TRANS Cust'!O156+'FR-16(7)(v)-11 DIST Demand'!O156+'FR-16(7)(v)-12 DIST Energy'!O156+'FR-16(7)(v)-13 DIST Cust'!O156-'FR-16(7)(v)-14 TOTAL CLASS'!O156","v":0},{"$f":"'FR-16(7)(v)-3 PROD Demand'!P156+'FR-16(7)(v)-4 PROD Energy'!P156+'FR-16(7)(v)-5 PROD Cust'!P156+'FR-16(7)(v)-7 TRANS Demand'!P156+'FR-16(7)(v)-8 TRANS Energy'!P156+'FR-16(7)(v)-9 TRANS Cust'!P156+'FR-16(7)(v)-11 DIST Demand'!P156+'FR-16(7)(v)-12 DIST Energy'!P156+'FR-16(7)(v)-13 DIST Cust'!P156-'FR-16(7)(v)-14 TOTAL CLASS'!P156","v":0},{"$f":"'FR-16(7)(v)-3 PROD Demand'!Q156+'FR-16(7)(v)-4 PROD Energy'!Q156+'FR-16(7)(v)-5 PROD Cust'!Q156+'FR-16(7)(v)-7 TRANS Demand'!Q156+'FR-16(7)(v)-8 TRANS Energy'!Q156+'FR-16(7)(v)-9 TRANS Cust'!Q156+'FR-16(7)(v)-11 DIST Demand'!Q156+'FR-16(7)(v)-12 DIST Energy'!Q156+'FR-16(7)(v)-13 DIST Cust'!Q156-'FR-16(7)(v)-14 TOTAL CLASS'!Q156","v":0},0,0]
[23,null,{"$f":"'FR-16(7)(v)-1 Functional'!C157","v":"CONDUCTORS - OVERHEAD / SECONDARY - DEMAND"},{"$f":"'FR-16(7)(v)-1 Functional'!D157","v":"K206"},null,{"$f":"'FR-16(7)(v)-3 PROD Demand'!F157+'FR-16(7)(v)-4 PROD Energy'!F157+'FR-16(7)(v)-5 PROD Cust'!F157+'FR-16(7)(v)-7 TRANS Demand'!F157+'FR-16(7)(v)-8 TRANS Energy'!F157+'FR-16(7)(v)-9 TRANS Cust'!F157+'FR-16(7)(v)-11 DIST Demand'!F157+'FR-16(7)(v)-12 DIST Energy'!F157+'FR-16(7)(v)-13 DIST Cust'!F157-'FR-16(7)(v)-14 TOTAL CLASS'!F157","v":0},{"$f":"'FR-16(7)(v)-3 PROD Demand'!G157+'FR-16(7)(v)-4 PROD Energy'!G157+'FR-16(7)(v)-5 PROD Cust'!G157+'FR-16(7)(v)-7 TRANS Demand'!G157+'FR-16(7)(v)-8 TRANS Energy'!G157+'FR-16(7)(v)-9 TRANS Cust'!G157+'FR-16(7)(v)-11 DIST Demand'!G157+'FR-16(7)(v)-12 DIST Energy'!G157+'FR-16(7)(v)-13 DIST Cust'!G157-'FR-16(7)(v)-14 TOTAL CLASS'!G157","v":0},{"$f":"'FR-16(7)(v)-3 PROD Demand'!H157+'FR-16(7)(v)-4 PROD Energy'!H157+'FR-16(7)(v)-5 PROD Cust'!H157+'FR-16(7)(v)-7 TRANS Demand'!H157+'FR-16(7)(v)-8 TRANS Energy'!H157+'FR-16(7)(v)-9 TRANS Cust'!H157+'FR-16(7)(v)-11 DIST Demand'!H157+'FR-16(7)(v)-12 DIST Energy'!H157+'FR-16(7)(v)-13 DIST Cust'!H157-'FR-16(7)(v)-14 TOTAL CLASS'!H157","v":0},{"$f":"'FR-16(7)(v)-3 PROD Demand'!I157+'FR-16(7)(v)-4 PROD Energy'!I157+'FR-16(7)(v)-5 PROD Cust'!I157+'FR-16(7)(v)-7 TRANS Demand'!I157+'FR-16(7)(v)-8 TRANS Energy'!I157+'FR-16(7)(v)-9 TRANS Cust'!I157+'FR-16(7)(v)-11 DIST Demand'!I157+'FR-16(7)(v)-12 DIST Energy'!I157+'FR-16(7)(v)-13 DIST Cust'!I157-'FR-16(7)(v)-14 TOTAL CLASS'!I157","v":0},{"$f":"'FR-16(7)(v)-3 PROD Demand'!J157+'FR-16(7)(v)-4 PROD Energy'!J157+'FR-16(7)(v)-5 PROD Cust'!J157+'FR-16(7)(v)-7 TRANS Demand'!J157+'FR-16(7)(v)-8 TRANS Energy'!J157+'FR-16(7)(v)-9 TRANS Cust'!J157+'FR-16(7)(v)-11 DIST Demand'!J157+'FR-16(7)(v)-12 DIST Energy'!J157+'FR-16(7)(v)-13 DIST Cust'!J157-'FR-16(7)(v)-14 TOTAL CLASS'!J157","v":0},{"$f":"'FR-16(7)(v)-3 PROD Demand'!K157+'FR-16(7)(v)-4 PROD Energy'!K157+'FR-16(7)(v)-5 PROD Cust'!K157+'FR-16(7)(v)-7 TRANS Demand'!K157+'FR-16(7)(v)-8 TRANS Energy'!K157+'FR-16(7)(v)-9 TRANS Cust'!K157+'FR-16(7)(v)-11 DIST Demand'!K157+'FR-16(7)(v)-12 DIST Energy'!K157+'FR-16(7)(v)-13 DIST Cust'!K157-'FR-16(7)(v)-14 TOTAL CLASS'!K157","v":0},{"$f":"'FR-16(7)(v)-3 PROD Demand'!L157+'FR-16(7)(v)-4 PROD Energy'!L157+'FR-16(7)(v)-5 PROD Cust'!L157+'FR-16(7)(v)-7 TRANS Demand'!L157+'FR-16(7)(v)-8 TRANS Energy'!L157+'FR-16(7)(v)-9 TRANS Cust'!L157+'FR-16(7)(v)-11 DIST Demand'!L157+'FR-16(7)(v)-12 DIST Energy'!L157+'FR-16(7)(v)-13 DIST Cust'!L157-'FR-16(7)(v)-14 TOTAL CLASS'!L157","v":0},{"$f":"'FR-16(7)(v)-3 PROD Demand'!M157+'FR-16(7)(v)-4 PROD Energy'!M157+'FR-16(7)(v)-5 PROD Cust'!M157+'FR-16(7)(v)-7 TRANS Demand'!M157+'FR-16(7)(v)-8 TRANS Energy'!M157+'FR-16(7)(v)-9 TRANS Cust'!M157+'FR-16(7)(v)-11 DIST Demand'!M157+'FR-16(7)(v)-12 DIST Energy'!M157+'FR-16(7)(v)-13 DIST Cust'!M157-'FR-16(7)(v)-14 TOTAL CLASS'!M157","v":0},{"$f":"'FR-16(7)(v)-3 PROD Demand'!N157+'FR-16(7)(v)-4 PROD Energy'!N157+'FR-16(7)(v)-5 PROD Cust'!N157+'FR-16(7)(v)-7 TRANS Demand'!N157+'FR-16(7)(v)-8 TRANS Energy'!N157+'FR-16(7)(v)-9 TRANS Cust'!N157+'FR-16(7)(v)-11 DIST Demand'!N157+'FR-16(7)(v)-12 DIST Energy'!N157+'FR-16(7)(v)-13 DIST Cust'!N157-'FR-16(7)(v)-14 TOTAL CLASS'!N157","v":0},{"$f":"'FR-16(7)(v)-3 PROD Demand'!O157+'FR-16(7)(v)-4 PROD Energy'!O157+'FR-16(7)(v)-5 PROD Cust'!O157+'FR-16(7)(v)-7 TRANS Demand'!O157+'FR-16(7)(v)-8 TRANS Energy'!O157+'FR-16(7)(v)-9 TRANS Cust'!O157+'FR-16(7)(v)-11 DIST Demand'!O157+'FR-16(7)(v)-12 DIST Energy'!O157+'FR-16(7)(v)-13 DIST Cust'!O157-'FR-16(7)(v)-14 TOTAL CLASS'!O157","v":0},{"$f":"'FR-16(7)(v)-3 PROD Demand'!P157+'FR-16(7)(v)-4 PROD Energy'!P157+'FR-16(7)(v)-5 PROD Cust'!P157+'FR-16(7)(v)-7 TRANS Demand'!P157+'FR-16(7)(v)-8 TRANS Energy'!P157+'FR-16(7)(v)-9 TRANS Cust'!P157+'FR-16(7)(v)-11 DIST Demand'!P157+'FR-16(7)(v)-12 DIST Energy'!P157+'FR-16(7)(v)-13 DIST Cust'!P157-'FR-16(7)(v)-14 TOTAL CLASS'!P157","v":0},{"$f":"'FR-16(7)(v)-3 PROD Demand'!Q157+'FR-16(7)(v)-4 PROD Energy'!Q157+'FR-16(7)(v)-5 PROD Cust'!Q157+'FR-16(7)(v)-7 TRANS Demand'!Q157+'FR-16(7)(v)-8 TRANS Energy'!Q157+'FR-16(7)(v)-9 TRANS Cust'!Q157+'FR-16(7)(v)-11 DIST Demand'!Q157+'FR-16(7)(v)-12 DIST Energy'!Q157+'FR-16(7)(v)-13 DIST Cust'!Q157-'FR-16(7)(v)-14 TOTAL CLASS'!Q157","v":0},0,0]
[24,null,{"$f":"'FR-16(7)(v)-1 Functional'!C158","v":"CONDUCTORS - OVERHEAD / SECONDARY - CUSTOMER"},{"$f":"'FR-16(7)(v)-1 Functional'!D158","v":"K405"},null,{"$f":"'FR-16(7)(v)-3 PROD Demand'!F158+'FR-16(7)(v)-4 PROD Energy'!F158+'FR-16(7)(v)-5 PROD Cust'!F158+'FR-16(7)(v)-7 TRANS Demand'!F158+'FR-16(7)(v)-8 TRANS Energy'!F158+'FR-16(7)(v)-9 TRANS Cust'!F158+'FR-16(7)(v)-11 DIST Demand'!F158+'FR-16(7)(v)-12 DIST Energy'!F158+'FR-16(7)(v)-13 DIST Cust'!F158-'FR-16(7)(v)-14 TOTAL CLASS'!F158","v":0},{"$f":"'FR-16(7)(v)-3 PROD Demand'!G158+'FR-16(7)(v)-4 PROD Energy'!G158+'FR-16(7)(v)-5 PROD Cust'!G158+'FR-16(7)(v)-7 TRANS Demand'!G158+'FR-16(7)(v)-8 TRANS Energy'!G158+'FR-16(7)(v)-9 TRANS Cust'!G158+'FR-16(7)(v)-11 DIST Demand'!G158+'FR-16(7)(v)-12 DIST Energy'!G158+'FR-16(7)(v)-13 DIST Cust'!G158-'FR-16(7)(v)-14 TOTAL CLASS'!G158","v":0},{"$f":"'FR-16(7)(v)-3 PROD Demand'!H158+'FR-16(7)(v)-4 PROD Energy'!H158+'FR-16(7)(v)-5 PROD Cust'!H158+'FR-16(7)(v)-7 TRANS Demand'!H158+'FR-16(7)(v)-8 TRANS Energy'!H158+'FR-16(7)(v)-9 TRANS Cust'!H158+'FR-16(7)(v)-11 DIST Demand'!H158+'FR-16(7)(v)-12 DIST Energy'!H158+'FR-16(7)(v)-13 DIST Cust'!H158-'FR-16(7)(v)-14 TOTAL CLASS'!H158","v":0},{"$f":"'FR-16(7)(v)-3 PROD Demand'!I158+'FR-16(7)(v)-4 PROD Energy'!I158+'FR-16(7)(v)-5 PROD Cust'!I158+'FR-16(7)(v)-7 TRANS Demand'!I158+'FR-16(7)(v)-8 TRANS Energy'!I158+'FR-16(7)(v)-9 TRANS Cust'!I158+'FR-16(7)(v)-11 DIST Demand'!I158+'FR-16(7)(v)-12 DIST Energy'!I158+'FR-16(7)(v)-13 DIST Cust'!I158-'FR-16(7)(v)-14 TOTAL CLASS'!I158","v":0},{"$f":"'FR-16(7)(v)-3 PROD Demand'!J158+'FR-16(7)(v)-4 PROD Energy'!J158+'FR-16(7)(v)-5 PROD Cust'!J158+'FR-16(7)(v)-7 TRANS Demand'!J158+'FR-16(7)(v)-8 TRANS Energy'!J158+'FR-16(7)(v)-9 TRANS Cust'!J158+'FR-16(7)(v)-11 DIST Demand'!J158+'FR-16(7)(v)-12 DIST Energy'!J158+'FR-16(7)(v)-13 DIST Cust'!J158-'FR-16(7)(v)-14 TOTAL CLASS'!J158","v":0},{"$f":"'FR-16(7)(v)-3 PROD Demand'!K158+'FR-16(7)(v)-4 PROD Energy'!K158+'FR-16(7)(v)-5 PROD Cust'!K158+'FR-16(7)(v)-7 TRANS Demand'!K158+'FR-16(7)(v)-8 TRANS Energy'!K158+'FR-16(7)(v)-9 TRANS Cust'!K158+'FR-16(7)(v)-11 DIST Demand'!K158+'FR-16(7)(v)-12 DIST Energy'!K158+'FR-16(7)(v)-13 DIST Cust'!K158-'FR-16(7)(v)-14 TOTAL CLASS'!K158","v":0},{"$f":"'FR-16(7)(v)-3 PROD Demand'!L158+'FR-16(7)(v)-4 PROD Energy'!L158+'FR-16(7)(v)-5 PROD Cust'!L158+'FR-16(7)(v)-7 TRANS Demand'!L158+'FR-16(7)(v)-8 TRANS Energy'!L158+'FR-16(7)(v)-9 TRANS Cust'!L158+'FR-16(7)(v)-11 DIST Demand'!L158+'FR-16(7)(v)-12 DIST Energy'!L158+'FR-16(7)(v)-13 DIST Cust'!L158-'FR-16(7)(v)-14 TOTAL CLASS'!L158","v":0},{"$f":"'FR-16(7)(v)-3 PROD Demand'!M158+'FR-16(7)(v)-4 PROD Energy'!M158+'FR-16(7)(v)-5 PROD Cust'!M158+'FR-16(7)(v)-7 TRANS Demand'!M158+'FR-16(7)(v)-8 TRANS Energy'!M158+'FR-16(7)(v)-9 TRANS Cust'!M158+'FR-16(7)(v)-11 DIST Demand'!M158+'FR-16(7)(v)-12 DIST Energy'!M158+'FR-16(7)(v)-13 DIST Cust'!M158-'FR-16(7)(v)-14 TOTAL CLASS'!M158","v":0},{"$f":"'FR-16(7)(v)-3 PROD Demand'!N158+'FR-16(7)(v)-4 PROD Energy'!N158+'FR-16(7)(v)-5 PROD Cust'!N158+'FR-16(7)(v)-7 TRANS Demand'!N158+'FR-16(7)(v)-8 TRANS Energy'!N158+'FR-16(7)(v)-9 TRANS Cust'!N158+'FR-16(7)(v)-11 DIST Demand'!N158+'FR-16(7)(v)-12 DIST Energy'!N158+'FR-16(7)(v)-13 DIST Cust'!N158-'FR-16(7)(v)-14 TOTAL CLASS'!N158","v":0},{"$f":"'FR-16(7)(v)-3 PROD Demand'!O158+'FR-16(7)(v)-4 PROD Energy'!O158+'FR-16(7)(v)-5 PROD Cust'!O158+'FR-16(7)(v)-7 TRANS Demand'!O158+'FR-16(7)(v)-8 TRANS Energy'!O158+'FR-16(7)(v)-9 TRANS Cust'!O158+'FR-16(7)(v)-11 DIST Demand'!O158+'FR-16(7)(v)-12 DIST Energy'!O158+'FR-16(7)(v)-13 DIST Cust'!O158-'FR-16(7)(v)-14 TOTAL CLASS'!O158","v":0},{"$f":"'FR-16(7)(v)-3 PROD Demand'!P158+'FR-16(7)(v)-4 PROD Energy'!P158+'FR-16(7)(v)-5 PROD Cust'!P158+'FR-16(7)(v)-7 TRANS Demand'!P158+'FR-16(7)(v)-8 TRANS Energy'!P158+'FR-16(7)(v)-9 TRANS Cust'!P158+'FR-16(7)(v)-11 DIST Demand'!P158+'FR-16(7)(v)-12 DIST Energy'!P158+'FR-16(7)(v)-13 DIST Cust'!P158-'FR-16(7)(v)-14 TOTAL CLASS'!P158","v":0},{"$f":"'FR-16(7)(v)-3 PROD Demand'!Q158+'FR-16(7)(v)-4 PROD Energy'!Q158+'FR-16(7)(v)-5 PROD Cust'!Q158+'FR-16(7)(v)-7 TRANS Demand'!Q158+'FR-16(7)(v)-8 TRANS Energy'!Q158+'FR-16(7)(v)-9 TRANS Cust'!Q158+'FR-16(7)(v)-11 DIST Demand'!Q158+'FR-16(7)(v)-12 DIST Energy'!Q158+'FR-16(7)(v)-13 DIST Cust'!Q158-'FR-16(7)(v)-14 TOTAL CLASS'!Q158","v":0},0,0]
[25,null,{"$f":"'FR-16(7)(v)-1 Functional'!C159","v":"CONDUCTORS - UNDERGROUND / PRIMARY - DEMAND"},{"$f":"'FR-16(7)(v)-1 Functional'!D159","v":"K205"},null,{"$f":"'FR-16(7)(v)-3 PROD Demand'!F159+'FR-16(7)(v)-4 PROD Energy'!F159+'FR-16(7)(v)-5 PROD Cust'!F159+'FR-16(7)(v)-7 TRANS Demand'!F159+'FR-16(7)(v)-8 TRANS Energy'!F159+'FR-16(7)(v)-9 TRANS Cust'!F159+'FR-16(7)(v)-11 DIST Demand'!F159+'FR-16(7)(v)-12 DIST Energy'!F159+'FR-16(7)(v)-13 DIST Cust'!F159-'FR-16(7)(v)-14 TOTAL CLASS'!F159","v":0},{"$f":"'FR-16(7)(v)-3 PROD Demand'!G159+'FR-16(7)(v)-4 PROD Energy'!G159+'FR-16(7)(v)-5 PROD Cust'!G159+'FR-16(7)(v)-7 TRANS Demand'!G159+'FR-16(7)(v)-8 TRANS Energy'!G159+'FR-16(7)(v)-9 TRANS Cust'!G159+'FR-16(7)(v)-11 DIST Demand'!G159+'FR-16(7)(v)-12 DIST Energy'!G159+'FR-16(7)(v)-13 DIST Cust'!G159-'FR-16(7)(v)-14 TOTAL CLASS'!G159","v":0},{"$f":"'FR-16(7)(v)-3 PROD Demand'!H159+'FR-16(7)(v)-4 PROD Energy'!H159+'FR-16(7)(v)-5 PROD Cust'!H159+'FR-16(7)(v)-7 TRANS Demand'!H159+'FR-16(7)(v)-8 TRANS Energy'!H159+'FR-16(7)(v)-9 TRANS Cust'!H159+'FR-16(7)(v)-11 DIST Demand'!H159+'FR-16(7)(v)-12 DIST Energy'!H159+'FR-16(7)(v)-13 DIST Cust'!H159-'FR-16(7)(v)-14 TOTAL CLASS'!H159","v":0},{"$f":"'FR-16(7)(v)-3 PROD Demand'!I159+'FR-16(7)(v)-4 PROD Energy'!I159+'FR-16(7)(v)-5 PROD Cust'!I159+'FR-16(7)(v)-7 TRANS Demand'!I159+'FR-16(7)(v)-8 TRANS Energy'!I159+'FR-16(7)(v)-9 TRANS Cust'!I159+'FR-16(7)(v)-11 DIST Demand'!I159+'FR-16(7)(v)-12 DIST Energy'!I159+'FR-16(7)(v)-13 DIST Cust'!I159-'FR-16(7)(v)-14 TOTAL CLASS'!I159","v":0},{"$f":"'FR-16(7)(v)-3 PROD Demand'!J159+'FR-16(7)(v)-4 PROD Energy'!J159+'FR-16(7)(v)-5 PROD Cust'!J159+'FR-16(7)(v)-7 TRANS Demand'!J159+'FR-16(7)(v)-8 TRANS Energy'!J159+'FR-16(7)(v)-9 TRANS Cust'!J159+'FR-16(7)(v)-11 DIST Demand'!J159+'FR-16(7)(v)-12 DIST Energy'!J159+'FR-16(7)(v)-13 DIST Cust'!J159-'FR-16(7)(v)-14 TOTAL CLASS'!J159","v":0},{"$f":"'FR-16(7)(v)-3 PROD Demand'!K159+'FR-16(7)(v)-4 PROD Energy'!K159+'FR-16(7)(v)-5 PROD Cust'!K159+'FR-16(7)(v)-7 TRANS Demand'!K159+'FR-16(7)(v)-8 TRANS Energy'!K159+'FR-16(7)(v)-9 TRANS Cust'!K159+'FR-16(7)(v)-11 DIST Demand'!K159+'FR-16(7)(v)-12 DIST Energy'!K159+'FR-16(7)(v)-13 DIST Cust'!K159-'FR-16(7)(v)-14 TOTAL CLASS'!K159","v":0},{"$f":"'FR-16(7)(v)-3 PROD Demand'!L159+'FR-16(7)(v)-4 PROD Energy'!L159+'FR-16(7)(v)-5 PROD Cust'!L159+'FR-16(7)(v)-7 TRANS Demand'!L159+'FR-16(7)(v)-8 TRANS Energy'!L159+'FR-16(7)(v)-9 TRANS Cust'!L159+'FR-16(7)(v)-11 DIST Demand'!L159+'FR-16(7)(v)-12 DIST Energy'!L159+'FR-16(7)(v)-13 DIST Cust'!L159-'FR-16(7)(v)-14 TOTAL CLASS'!L159","v":0},{"$f":"'FR-16(7)(v)-3 PROD Demand'!M159+'FR-16(7)(v)-4 PROD Energy'!M159+'FR-16(7)(v)-5 PROD Cust'!M159+'FR-16(7)(v)-7 TRANS Demand'!M159+'FR-16(7)(v)-8 TRANS Energy'!M159+'FR-16(7)(v)-9 TRANS Cust'!M159+'FR-16(7)(v)-11 DIST Demand'!M159+'FR-16(7)(v)-12 DIST Energy'!M159+'FR-16(7)(v)-13 DIST Cust'!M159-'FR-16(7)(v)-14 TOTAL CLASS'!M159","v":0},{"$f":"'FR-16(7)(v)-3 PROD Demand'!N159+'FR-16(7)(v)-4 PROD Energy'!N159+'FR-16(7)(v)-5 PROD Cust'!N159+'FR-16(7)(v)-7 TRANS Demand'!N159+'FR-16(7)(v)-8 TRANS Energy'!N159+'FR-16(7)(v)-9 TRANS Cust'!N159+'FR-16(7)(v)-11 DIST Demand'!N159+'FR-16(7)(v)-12 DIST Energy'!N159+'FR-16(7)(v)-13 DIST Cust'!N159-'FR-16(7)(v)-14 TOTAL CLASS'!N159","v":0},{"$f":"'FR-16(7)(v)-3 PROD Demand'!O159+'FR-16(7)(v)-4 PROD Energy'!O159+'FR-16(7)(v)-5 PROD Cust'!O159+'FR-16(7)(v)-7 TRANS Demand'!O159+'FR-16(7)(v)-8 TRANS Energy'!O159+'FR-16(7)(v)-9 TRANS Cust'!O159+'FR-16(7)(v)-11 DIST Demand'!O159+'FR-16(7)(v)-12 DIST Energy'!O159+'FR-16(7)(v)-13 DIST Cust'!O159-'FR-16(7)(v)-14 TOTAL CLASS'!O159","v":0},{"$f":"'FR-16(7)(v)-3 PROD Demand'!P159+'FR-16(7)(v)-4 PROD Energy'!P159+'FR-16(7)(v)-5 PROD Cust'!P159+'FR-16(7)(v)-7 TRANS Demand'!P159+'FR-16(7)(v)-8 TRANS Energy'!P159+'FR-16(7)(v)-9 TRANS Cust'!P159+'FR-16(7)(v)-11 DIST Demand'!P159+'FR-16(7)(v)-12 DIST Energy'!P159+'FR-16(7)(v)-13 DIST Cust'!P159-'FR-16(7)(v)-14 TOTAL CLASS'!P159","v":0},{"$f":"'FR-16(7)(v)-3 PROD Demand'!Q159+'FR-16(7)(v)-4 PROD Energy'!Q159+'FR-16(7)(v)-5 PROD Cust'!Q159+'FR-16(7)(v)-7 TRANS Demand'!Q159+'FR-16(7)(v)-8 TRANS Energy'!Q159+'FR-16(7)(v)-9 TRANS Cust'!Q159+'FR-16(7)(v)-11 DIST Demand'!Q159+'FR-16(7)(v)-12 DIST Energy'!Q159+'FR-16(7)(v)-13 DIST Cust'!Q159-'FR-16(7)(v)-14 TOTAL CLASS'!Q159","v":0},0,0]
[26,null,{"$f":"'FR-16(7)(v)-1 Functional'!C160","v":"CONDUCTORS - UNDERGROUND / PRIMARY - CUSTOMER"},{"$f":"'FR-16(7)(v)-1 Functional'!D160","v":"K405"},null,{"$f":"'FR-16(7)(v)-3 PROD Demand'!F160+'FR-16(7)(v)-4 PROD Energy'!F160+'FR-16(7)(v)-5 PROD Cust'!F160+'FR-16(7)(v)-7 TRANS Demand'!F160+'FR-16(7)(v)-8 TRANS Energy'!F160+'FR-16(7)(v)-9 TRANS Cust'!F160+'FR-16(7)(v)-11 DIST Demand'!F160+'FR-16(7)(v)-12 DIST Energy'!F160+'FR-16(7)(v)-13 DIST Cust'!F160-'FR-16(7)(v)-14 TOTAL CLASS'!F160","v":0},{"$f":"'FR-16(7)(v)-3 PROD Demand'!G160+'FR-16(7)(v)-4 PROD Energy'!G160+'FR-16(7)(v)-5 PROD Cust'!G160+'FR-16(7)(v)-7 TRANS Demand'!G160+'FR-16(7)(v)-8 TRANS Energy'!G160+'FR-16(7)(v)-9 TRANS Cust'!G160+'FR-16(7)(v)-11 DIST Demand'!G160+'FR-16(7)(v)-12 DIST Energy'!G160+'FR-16(7)(v)-13 DIST Cust'!G160-'FR-16(7)(v)-14 TOTAL CLASS'!G160","v":0},{"$f":"'FR-16(7)(v)-3 PROD Demand'!H160+'FR-16(7)(v)-4 PROD Energy'!H160+'FR-16(7)(v)-5 PROD Cust'!H160+'FR-16(7)(v)-7 TRANS Demand'!H160+'FR-16(7)(v)-8 TRANS Energy'!H160+'FR-16(7)(v)-9 TRANS Cust'!H160+'FR-16(7)(v)-11 DIST Demand'!H160+'FR-16(7)(v)-12 DIST Energy'!H160+'FR-16(7)(v)-13 DIST Cust'!H160-'FR-16(7)(v)-14 TOTAL CLASS'!H160","v":0},{"$f":"'FR-16(7)(v)-3 PROD Demand'!I160+'FR-16(7)(v)-4 PROD Energy'!I160+'FR-16(7)(v)-5 PROD Cust'!I160+'FR-16(7)(v)-7 TRANS Demand'!I160+'FR-16(7)(v)-8 TRANS Energy'!I160+'FR-16(7)(v)-9 TRANS Cust'!I160+'FR-16(7)(v)-11 DIST Demand'!I160+'FR-16(7)(v)-12 DIST Energy'!I160+'FR-16(7)(v)-13 DIST Cust'!I160-'FR-16(7)(v)-14 TOTAL CLASS'!I160","v":0},{"$f":"'FR-16(7)(v)-3 PROD Demand'!J160+'FR-16(7)(v)-4 PROD Energy'!J160+'FR-16(7)(v)-5 PROD Cust'!J160+'FR-16(7)(v)-7 TRANS Demand'!J160+'FR-16(7)(v)-8 TRANS Energy'!J160+'FR-16(7)(v)-9 TRANS Cust'!J160+'FR-16(7)(v)-11 DIST Demand'!J160+'FR-16(7)(v)-12 DIST Energy'!J160+'FR-16(7)(v)-13 DIST Cust'!J160-'FR-16(7)(v)-14 TOTAL CLASS'!J160","v":0},{"$f":"'FR-16(7)(v)-3 PROD Demand'!K160+'FR-16(7)(v)-4 PROD Energy'!K160+'FR-16(7)(v)-5 PROD Cust'!K160+'FR-16(7)(v)-7 TRANS Demand'!K160+'FR-16(7)(v)-8 TRANS Energy'!K160+'FR-16(7)(v)-9 TRANS Cust'!K160+'FR-16(7)(v)-11 DIST Demand'!K160+'FR-16(7)(v)-12 DIST Energy'!K160+'FR-16(7)(v)-13 DIST Cust'!K160-'FR-16(7)(v)-14 TOTAL CLASS'!K160","v":0},{"$f":"'FR-16(7)(v)-3 PROD Demand'!L160+'FR-16(7)(v)-4 PROD Energy'!L160+'FR-16(7)(v)-5 PROD Cust'!L160+'FR-16(7)(v)-7 TRANS Demand'!L160+'FR-16(7)(v)-8 TRANS Energy'!L160+'FR-16(7)(v)-9 TRANS Cust'!L160+'FR-16(7)(v)-11 DIST Demand'!L160+'FR-16(7)(v)-12 DIST Energy'!L160+'FR-16(7)(v)-13 DIST Cust'!L160-'FR-16(7)(v)-14 TOTAL CLASS'!L160","v":0},{"$f":"'FR-16(7)(v)-3 PROD Demand'!M160+'FR-16(7)(v)-4 PROD Energy'!M160+'FR-16(7)(v)-5 PROD Cust'!M160+'FR-16(7)(v)-7 TRANS Demand'!M160+'FR-16(7)(v)-8 TRANS Energy'!M160+'FR-16(7)(v)-9 TRANS Cust'!M160+'FR-16(7)(v)-11 DIST Demand'!M160+'FR-16(7)(v)-12 DIST Energy'!M160+'FR-16(7)(v)-13 DIST Cust'!M160-'FR-16(7)(v)-14 TOTAL CLASS'!M160","v":0},{"$f":"'FR-16(7)(v)-3 PROD Demand'!N160+'FR-16(7)(v)-4 PROD Energy'!N160+'FR-16(7)(v)-5 PROD Cust'!N160+'FR-16(7)(v)-7 TRANS Demand'!N160+'FR-16(7)(v)-8 TRANS Energy'!N160+'FR-16(7)(v)-9 TRANS Cust'!N160+'FR-16(7)(v)-11 DIST Demand'!N160+'FR-16(7)(v)-12 DIST Energy'!N160+'FR-16(7)(v)-13 DIST Cust'!N160-'FR-16(7)(v)-14 TOTAL CLASS'!N160","v":0},{"$f":"'FR-16(7)(v)-3 PROD Demand'!O160+'FR-16(7)(v)-4 PROD Energy'!O160+'FR-16(7)(v)-5 PROD Cust'!O160+'FR-16(7)(v)-7 TRANS Demand'!O160+'FR-16(7)(v)-8 TRANS Energy'!O160+'FR-16(7)(v)-9 TRANS Cust'!O160+'FR-16(7)(v)-11 DIST Demand'!O160+'FR-16(7)(v)-12 DIST Energy'!O160+'FR-16(7)(v)-13 DIST Cust'!O160-'FR-16(7)(v)-14 TOTAL CLASS'!O160","v":0},{"$f":"'FR-16(7)(v)-3 PROD Demand'!P160+'FR-16(7)(v)-4 PROD Energy'!P160+'FR-16(7)(v)-5 PROD Cust'!P160+'FR-16(7)(v)-7 TRANS Demand'!P160+'FR-16(7)(v)-8 TRANS Energy'!P160+'FR-16(7)(v)-9 TRANS Cust'!P160+'FR-16(7)(v)-11 DIST Demand'!P160+'FR-16(7)(v)-12 DIST Energy'!P160+'FR-16(7)(v)-13 DIST Cust'!P160-'FR-16(7)(v)-14 TOTAL CLASS'!P160","v":0},{"$f":"'FR-16(7)(v)-3 PROD Demand'!Q160+'FR-16(7)(v)-4 PROD Energy'!Q160+'FR-16(7)(v)-5 PROD Cust'!Q160+'FR-16(7)(v)-7 TRANS Demand'!Q160+'FR-16(7)(v)-8 TRANS Energy'!Q160+'FR-16(7)(v)-9 TRANS Cust'!Q160+'FR-16(7)(v)-11 DIST Demand'!Q160+'FR-16(7)(v)-12 DIST Energy'!Q160+'FR-16(7)(v)-13 DIST Cust'!Q160-'FR-16(7)(v)-14 TOTAL CLASS'!Q160","v":0},0,0]
[27,null,{"$f":"'FR-16(7)(v)-1 Functional'!C161","v":"CONDUCTORS - UNDERGROUND / SECONDARY - DEMAND"},{"$f":"'FR-16(7)(v)-1 Functional'!D161","v":"K206"},null,{"$f":"'FR-16(7)(v)-3 PROD Demand'!F161+'FR-16(7)(v)-4 PROD Energy'!F161+'FR-16(7)(v)-5 PROD Cust'!F161+'FR-16(7)(v)-7 TRANS Demand'!F161+'FR-16(7)(v)-8 TRANS Energy'!F161+'FR-16(7)(v)-9 TRANS Cust'!F161+'FR-16(7)(v)-11 DIST Demand'!F161+'FR-16(7)(v)-12 DIST Energy'!F161+'FR-16(7)(v)-13 DIST Cust'!F161-'FR-16(7)(v)-14 TOTAL CLASS'!F161","v":0},{"$f":"'FR-16(7)(v)-3 PROD Demand'!G161+'FR-16(7)(v)-4 PROD Energy'!G161+'FR-16(7)(v)-5 PROD Cust'!G161+'FR-16(7)(v)-7 TRANS Demand'!G161+'FR-16(7)(v)-8 TRANS Energy'!G161+'FR-16(7)(v)-9 TRANS Cust'!G161+'FR-16(7)(v)-11 DIST Demand'!G161+'FR-16(7)(v)-12 DIST Energy'!G161+'FR-16(7)(v)-13 DIST Cust'!G161-'FR-16(7)(v)-14 TOTAL CLASS'!G161","v":0},{"$f":"'FR-16(7)(v)-3 PROD Demand'!H161+'FR-16(7)(v)-4 PROD Energy'!H161+'FR-16(7)(v)-5 PROD Cust'!H161+'FR-16(7)(v)-7 TRANS Demand'!H161+'FR-16(7)(v)-8 TRANS Energy'!H161+'FR-16(7)(v)-9 TRANS Cust'!H161+'FR-16(7)(v)-11 DIST Demand'!H161+'FR-16(7)(v)-12 DIST Energy'!H161+'FR-16(7)(v)-13 DIST Cust'!H161-'FR-16(7)(v)-14 TOTAL CLASS'!H161","v":0},{"$f":"'FR-16(7)(v)-3 PROD Demand'!I161+'FR-16(7)(v)-4 PROD Energy'!I161+'FR-16(7)(v)-5 PROD Cust'!I161+'FR-16(7)(v)-7 TRANS Demand'!I161+'FR-16(7)(v)-8 TRANS Energy'!I161+'FR-16(7)(v)-9 TRANS Cust'!I161+'FR-16(7)(v)-11 DIST Demand'!I161+'FR-16(7)(v)-12 DIST Energy'!I161+'FR-16(7)(v)-13 DIST Cust'!I161-'FR-16(7)(v)-14 TOTAL CLASS'!I161","v":0},{"$f":"'FR-16(7)(v)-3 PROD Demand'!J161+'FR-16(7)(v)-4 PROD Energy'!J161+'FR-16(7)(v)-5 PROD Cust'!J161+'FR-16(7)(v)-7 TRANS Demand'!J161+'FR-16(7)(v)-8 TRANS Energy'!J161+'FR-16(7)(v)-9 TRANS Cust'!J161+'FR-16(7)(v)-11 DIST Demand'!J161+'FR-16(7)(v)-12 DIST Energy'!J161+'FR-16(7)(v)-13 DIST Cust'!J161-'FR-16(7)(v)-14 TOTAL CLASS'!J161","v":0},{"$f":"'FR-16(7)(v)-3 PROD Demand'!K161+'FR-16(7)(v)-4 PROD Energy'!K161+'FR-16(7)(v)-5 PROD Cust'!K161+'FR-16(7)(v)-7 TRANS Demand'!K161+'FR-16(7)(v)-8 TRANS Energy'!K161+'FR-16(7)(v)-9 TRANS Cust'!K161+'FR-16(7)(v)-11 DIST Demand'!K161+'FR-16(7)(v)-12 DIST Energy'!K161+'FR-16(7)(v)-13 DIST Cust'!K161-'FR-16(7)(v)-14 TOTAL CLASS'!K161","v":0},{"$f":"'FR-16(7)(v)-3 PROD Demand'!L161+'FR-16(7)(v)-4 PROD Energy'!L161+'FR-16(7)(v)-5 PROD Cust'!L161+'FR-16(7)(v)-7 TRANS Demand'!L161+'FR-16(7)(v)-8 TRANS Energy'!L161+'FR-16(7)(v)-9 TRANS Cust'!L161+'FR-16(7)(v)-11 DIST Demand'!L161+'FR-16(7)(v)-12 DIST Energy'!L161+'FR-16(7)(v)-13 DIST Cust'!L161-'FR-16(7)(v)-14 TOTAL CLASS'!L161","v":0},{"$f":"'FR-16(7)(v)-3 PROD Demand'!M161+'FR-16(7)(v)-4 PROD Energy'!M161+'FR-16(7)(v)-5 PROD Cust'!M161+'FR-16(7)(v)-7 TRANS Demand'!M161+'FR-16(7)(v)-8 TRANS Energy'!M161+'FR-16(7)(v)-9 TRANS Cust'!M161+'FR-16(7)(v)-11 DIST Demand'!M161+'FR-16(7)(v)-12 DIST Energy'!M161+'FR-16(7)(v)-13 DIST Cust'!M161-'FR-16(7)(v)-14 TOTAL CLASS'!M161","v":0},{"$f":"'FR-16(7)(v)-3 PROD Demand'!N161+'FR-16(7)(v)-4 PROD Energy'!N161+'FR-16(7)(v)-5 PROD Cust'!N161+'FR-16(7)(v)-7 TRANS Demand'!N161+'FR-16(7)(v)-8 TRANS Energy'!N161+'FR-16(7)(v)-9 TRANS Cust'!N161+'FR-16(7)(v)-11 DIST Demand'!N161+'FR-16(7)(v)-12 DIST Energy'!N161+'FR-16(7)(v)-13 DIST Cust'!N161-'FR-16(7)(v)-14 TOTAL CLASS'!N161","v":0},{"$f":"'FR-16(7)(v)-3 PROD Demand'!O161+'FR-16(7)(v)-4 PROD Energy'!O161+'FR-16(7)(v)-5 PROD Cust'!O161+'FR-16(7)(v)-7 TRANS Demand'!O161+'FR-16(7)(v)-8 TRANS Energy'!O161+'FR-16(7)(v)-9 TRANS Cust'!O161+'FR-16(7)(v)-11 DIST Demand'!O161+'FR-16(7)(v)-12 DIST Energy'!O161+'FR-16(7)(v)-13 DIST Cust'!O161-'FR-16(7)(v)-14 TOTAL CLASS'!O161","v":0},{"$f":"'FR-16(7)(v)-3 PROD Demand'!P161+'FR-16(7)(v)-4 PROD Energy'!P161+'FR-16(7)(v)-5 PROD Cust'!P161+'FR-16(7)(v)-7 TRANS Demand'!P161+'FR-16(7)(v)-8 TRANS Energy'!P161+'FR-16(7)(v)-9 TRANS Cust'!P161+'FR-16(7)(v)-11 DIST Demand'!P161+'FR-16(7)(v)-12 DIST Energy'!P161+'FR-16(7)(v)-13 DIST Cust'!P161-'FR-16(7)(v)-14 TOTAL CLASS'!P161","v":0},{"$f":"'FR-16(7)(v)-3 PROD Demand'!Q161+'FR-16(7)(v)-4 PROD Energy'!Q161+'FR-16(7)(v)-5 PROD Cust'!Q161+'FR-16(7)(v)-7 TRANS Demand'!Q161+'FR-16(7)(v)-8 TRANS Energy'!Q161+'FR-16(7)(v)-9 TRANS Cust'!Q161+'FR-16(7)(v)-11 DIST Demand'!Q161+'FR-16(7)(v)-12 DIST Energy'!Q161+'FR-16(7)(v)-13 DIST Cust'!Q161-'FR-16(7)(v)-14 TOTAL CLASS'!Q161","v":0},0,0]
[28,null,{"$f":"'FR-16(7)(v)-1 Functional'!C162","v":"CONDUCTORS - UNDERGROUND / SECONDARY - CUSTOMER"},{"$f":"'FR-16(7)(v)-1 Functional'!D162","v":"K405"},null,{"$f":"'FR-16(7)(v)-3 PROD Demand'!F162+'FR-16(7)(v)-4 PROD Energy'!F162+'FR-16(7)(v)-5 PROD Cust'!F162+'FR-16(7)(v)-7 TRANS Demand'!F162+'FR-16(7)(v)-8 TRANS Energy'!F162+'FR-16(7)(v)-9 TRANS Cust'!F162+'FR-16(7)(v)-11 DIST Demand'!F162+'FR-16(7)(v)-12 DIST Energy'!F162+'FR-16(7)(v)-13 DIST Cust'!F162-'FR-16(7)(v)-14 TOTAL CLASS'!F162","v":0},{"$f":"'FR-16(7)(v)-3 PROD Demand'!G162+'FR-16(7)(v)-4 PROD Energy'!G162+'FR-16(7)(v)-5 PROD Cust'!G162+'FR-16(7)(v)-7 TRANS Demand'!G162+'FR-16(7)(v)-8 TRANS Energy'!G162+'FR-16(7)(v)-9 TRANS Cust'!G162+'FR-16(7)(v)-11 DIST Demand'!G162+'FR-16(7)(v)-12 DIST Energy'!G162+'FR-16(7)(v)-13 DIST Cust'!G162-'FR-16(7)(v)-14 TOTAL CLASS'!G162","v":0},{"$f":"'FR-16(7)(v)-3 PROD Demand'!H162+'FR-16(7)(v)-4 PROD Energy'!H162+'FR-16(7)(v)-5 PROD Cust'!H162+'FR-16(7)(v)-7 TRANS Demand'!H162+'FR-16(7)(v)-8 TRANS Energy'!H162+'FR-16(7)(v)-9 TRANS Cust'!H162+'FR-16(7)(v)-11 DIST Demand'!H162+'FR-16(7)(v)-12 DIST Energy'!H162+'FR-16(7)(v)-13 DIST Cust'!H162-'FR-16(7)(v)-14 TOTAL CLASS'!H162","v":0},{"$f":"'FR-16(7)(v)-3 PROD Demand'!I162+'FR-16(7)(v)-4 PROD Energy'!I162+'FR-16(7)(v)-5 PROD Cust'!I162+'FR-16(7)(v)-7 TRANS Demand'!I162+'FR-16(7)(v)-8 TRANS Energy'!I162+'FR-16(7)(v)-9 TRANS Cust'!I162+'FR-16(7)(v)-11 DIST Demand'!I162+'FR-16(7)(v)-12 DIST Energy'!I162+'FR-16(7)(v)-13 DIST Cust'!I162-'FR-16(7)(v)-14 TOTAL CLASS'!I162","v":0},{"$f":"'FR-16(7)(v)-3 PROD Demand'!J162+'FR-16(7)(v)-4 PROD Energy'!J162+'FR-16(7)(v)-5 PROD Cust'!J162+'FR-16(7)(v)-7 TRANS Demand'!J162+'FR-16(7)(v)-8 TRANS Energy'!J162+'FR-16(7)(v)-9 TRANS Cust'!J162+'FR-16(7)(v)-11 DIST Demand'!J162+'FR-16(7)(v)-12 DIST Energy'!J162+'FR-16(7)(v)-13 DIST Cust'!J162-'FR-16(7)(v)-14 TOTAL CLASS'!J162","v":0},{"$f":"'FR-16(7)(v)-3 PROD Demand'!K162+'FR-16(7)(v)-4 PROD Energy'!K162+'FR-16(7)(v)-5 PROD Cust'!K162+'FR-16(7)(v)-7 TRANS Demand'!K162+'FR-16(7)(v)-8 TRANS Energy'!K162+'FR-16(7)(v)-9 TRANS Cust'!K162+'FR-16(7)(v)-11 DIST Demand'!K162+'FR-16(7)(v)-12 DIST Energy'!K162+'FR-16(7)(v)-13 DIST Cust'!K162-'FR-16(7)(v)-14 TOTAL CLASS'!K162","v":0},{"$f":"'FR-16(7)(v)-3 PROD Demand'!L162+'FR-16(7)(v)-4 PROD Energy'!L162+'FR-16(7)(v)-5 PROD Cust'!L162+'FR-16(7)(v)-7 TRANS Demand'!L162+'FR-16(7)(v)-8 TRANS Energy'!L162+'FR-16(7)(v)-9 TRANS Cust'!L162+'FR-16(7)(v)-11 DIST Demand'!L162+'FR-16(7)(v)-12 DIST Energy'!L162+'FR-16(7)(v)-13 DIST Cust'!L162-'FR-16(7)(v)-14 TOTAL CLASS'!L162","v":0},{"$f":"'FR-16(7)(v)-3 PROD Demand'!M162+'FR-16(7)(v)-4 PROD Energy'!M162+'FR-16(7)(v)-5 PROD Cust'!M162+'FR-16(7)(v)-7 TRANS Demand'!M162+'FR-16(7)(v)-8 TRANS Energy'!M162+'FR-16(7)(v)-9 TRANS Cust'!M162+'FR-16(7)(v)-11 DIST Demand'!M162+'FR-16(7)(v)-12 DIST Energy'!M162+'FR-16(7)(v)-13 DIST Cust'!M162-'FR-16(7)(v)-14 TOTAL CLASS'!M162","v":0},{"$f":"'FR-16(7)(v)-3 PROD Demand'!N162+'FR-16(7)(v)-4 PROD Energy'!N162+'FR-16(7)(v)-5 PROD Cust'!N162+'FR-16(7)(v)-7 TRANS Demand'!N162+'FR-16(7)(v)-8 TRANS Energy'!N162+'FR-16(7)(v)-9 TRANS Cust'!N162+'FR-16(7)(v)-11 DIST Demand'!N162+'FR-16(7)(v)-12 DIST Energy'!N162+'FR-16(7)(v)-13 DIST Cust'!N162-'FR-16(7)(v)-14 TOTAL CLASS'!N162","v":0},{"$f":"'FR-16(7)(v)-3 PROD Demand'!O162+'FR-16(7)(v)-4 PROD Energy'!O162+'FR-16(7)(v)-5 PROD Cust'!O162+'FR-16(7)(v)-7 TRANS Demand'!O162+'FR-16(7)(v)-8 TRANS Energy'!O162+'FR-16(7)(v)-9 TRANS Cust'!O162+'FR-16(7)(v)-11 DIST Demand'!O162+'FR-16(7)(v)-12 DIST Energy'!O162+'FR-16(7)(v)-13 DIST Cust'!O162-'FR-16(7)(v)-14 TOTAL CLASS'!O162","v":0},{"$f":"'FR-16(7)(v)-3 PROD Demand'!P162+'FR-16(7)(v)-4 PROD Energy'!P162+'FR-16(7)(v)-5 PROD Cust'!P162+'FR-16(7)(v)-7 TRANS Demand'!P162+'FR-16(7)(v)-8 TRANS Energy'!P162+'FR-16(7)(v)-9 TRANS Cust'!P162+'FR-16(7)(v)-11 DIST Demand'!P162+'FR-16(7)(v)-12 DIST Energy'!P162+'FR-16(7)(v)-13 DIST Cust'!P162-'FR-16(7)(v)-14 TOTAL CLASS'!P162","v":0},{"$f":"'FR-16(7)(v)-3 PROD Demand'!Q162+'FR-16(7)(v)-4 PROD Energy'!Q162+'FR-16(7)(v)-5 PROD Cust'!Q162+'FR-16(7)(v)-7 TRANS Demand'!Q162+'FR-16(7)(v)-8 TRANS Energy'!Q162+'FR-16(7)(v)-9 TRANS Cust'!Q162+'FR-16(7)(v)-11 DIST Demand'!Q162+'FR-16(7)(v)-12 DIST Energy'!Q162+'FR-16(7)(v)-13 DIST Cust'!Q162-'FR-16(7)(v)-14 TOTAL CLASS'!Q162","v":0},0,0]
[29,null,{"$f":"'FR-16(7)(v)-1 Functional'!C163","v":"TRANSFORMERS DEMAND RELATED"},{"$f":"'FR-16(7)(v)-1 Functional'!D163","v":"K215"},null,{"$f":"'FR-16(7)(v)-3 PROD Demand'!F163+'FR-16(7)(v)-4 PROD Energy'!F163+'FR-16(7)(v)-5 PROD Cust'!F163+'FR-16(7)(v)-7 TRANS Demand'!F163+'FR-16(7)(v)-8 TRANS Energy'!F163+'FR-16(7)(v)-9 TRANS Cust'!F163+'FR-16(7)(v)-11 DIST Demand'!F163+'FR-16(7)(v)-12 DIST Energy'!F163+'FR-16(7)(v)-13 DIST Cust'!F163-'FR-16(7)(v)-14 TOTAL CLASS'!F163","v":0},{"$f":"'FR-16(7)(v)-3 PROD Demand'!G163+'FR-16(7)(v)-4 PROD Energy'!G163+'FR-16(7)(v)-5 PROD Cust'!G163+'FR-16(7)(v)-7 TRANS Demand'!G163+'FR-16(7)(v)-8 TRANS Energy'!G163+'FR-16(7)(v)-9 TRANS Cust'!G163+'FR-16(7)(v)-11 DIST Demand'!G163+'FR-16(7)(v)-12 DIST Energy'!G163+'FR-16(7)(v)-13 DIST Cust'!G163-'FR-16(7)(v)-14 TOTAL CLASS'!G163","v":0},{"$f":"'FR-16(7)(v)-3 PROD Demand'!H163+'FR-16(7)(v)-4 PROD Energy'!H163+'FR-16(7)(v)-5 PROD Cust'!H163+'FR-16(7)(v)-7 TRANS Demand'!H163+'FR-16(7)(v)-8 TRANS Energy'!H163+'FR-16(7)(v)-9 TRANS Cust'!H163+'FR-16(7)(v)-11 DIST Demand'!H163+'FR-16(7)(v)-12 DIST Energy'!H163+'FR-16(7)(v)-13 DIST Cust'!H163-'FR-16(7)(v)-14 TOTAL CLASS'!H163","v":0},{"$f":"'FR-16(7)(v)-3 PROD Demand'!I163+'FR-16(7)(v)-4 PROD Energy'!I163+'FR-16(7)(v)-5 PROD Cust'!I163+'FR-16(7)(v)-7 TRANS Demand'!I163+'FR-16(7)(v)-8 TRANS Energy'!I163+'FR-16(7)(v)-9 TRANS Cust'!I163+'FR-16(7)(v)-11 DIST Demand'!I163+'FR-16(7)(v)-12 DIST Energy'!I163+'FR-16(7)(v)-13 DIST Cust'!I163-'FR-16(7)(v)-14 TOTAL CLASS'!I163","v":0},{"$f":"'FR-16(7)(v)-3 PROD Demand'!J163+'FR-16(7)(v)-4 PROD Energy'!J163+'FR-16(7)(v)-5 PROD Cust'!J163+'FR-16(7)(v)-7 TRANS Demand'!J163+'FR-16(7)(v)-8 TRANS Energy'!J163+'FR-16(7)(v)-9 TRANS Cust'!J163+'FR-16(7)(v)-11 DIST Demand'!J163+'FR-16(7)(v)-12 DIST Energy'!J163+'FR-16(7)(v)-13 DIST Cust'!J163-'FR-16(7)(v)-14 TOTAL CLASS'!J163","v":0},{"$f":"'FR-16(7)(v)-3 PROD Demand'!K163+'FR-16(7)(v)-4 PROD Energy'!K163+'FR-16(7)(v)-5 PROD Cust'!K163+'FR-16(7)(v)-7 TRANS Demand'!K163+'FR-16(7)(v)-8 TRANS Energy'!K163+'FR-16(7)(v)-9 TRANS Cust'!K163+'FR-16(7)(v)-11 DIST Demand'!K163+'FR-16(7)(v)-12 DIST Energy'!K163+'FR-16(7)(v)-13 DIST Cust'!K163-'FR-16(7)(v)-14 TOTAL CLASS'!K163","v":0},{"$f":"'FR-16(7)(v)-3 PROD Demand'!L163+'FR-16(7)(v)-4 PROD Energy'!L163+'FR-16(7)(v)-5 PROD Cust'!L163+'FR-16(7)(v)-7 TRANS Demand'!L163+'FR-16(7)(v)-8 TRANS Energy'!L163+'FR-16(7)(v)-9 TRANS Cust'!L163+'FR-16(7)(v)-11 DIST Demand'!L163+'FR-16(7)(v)-12 DIST Energy'!L163+'FR-16(7)(v)-13 DIST Cust'!L163-'FR-16(7)(v)-14 TOTAL CLASS'!L163","v":0},{"$f":"'FR-16(7)(v)-3 PROD Demand'!M163+'FR-16(7)(v)-4 PROD Energy'!M163+'FR-16(7)(v)-5 PROD Cust'!M163+'FR-16(7)(v)-7 TRANS Demand'!M163+'FR-16(7)(v)-8 TRANS Energy'!M163+'FR-16(7)(v)-9 TRANS Cust'!M163+'FR-16(7)(v)-11 DIST Demand'!M163+'FR-16(7)(v)-12 DIST Energy'!M163+'FR-16(7)(v)-13 DIST Cust'!M163-'FR-16(7)(v)-14 TOTAL CLASS'!M163","v":0},{"$f":"'FR-16(7)(v)-3 PROD Demand'!N163+'FR-16(7)(v)-4 PROD Energy'!N163+'FR-16(7)(v)-5 PROD Cust'!N163+'FR-16(7)(v)-7 TRANS Demand'!N163+'FR-16(7)(v)-8 TRANS Energy'!N163+'FR-16(7)(v)-9 TRANS Cust'!N163+'FR-16(7)(v)-11 DIST Demand'!N163+'FR-16(7)(v)-12 DIST Energy'!N163+'FR-16(7)(v)-13 DIST Cust'!N163-'FR-16(7)(v)-14 TOTAL CLASS'!N163","v":0},{"$f":"'FR-16(7)(v)-3 PROD Demand'!O163+'FR-16(7)(v)-4 PROD Energy'!O163+'FR-16(7)(v)-5 PROD Cust'!O163+'FR-16(7)(v)-7 TRANS Demand'!O163+'FR-16(7)(v)-8 TRANS Energy'!O163+'FR-16(7)(v)-9 TRANS Cust'!O163+'FR-16(7)(v)-11 DIST Demand'!O163+'FR-16(7)(v)-12 DIST Energy'!O163+'FR-16(7)(v)-13 DIST Cust'!O163-'FR-16(7)(v)-14 TOTAL CLASS'!O163","v":0},{"$f":"'FR-16(7)(v)-3 PROD Demand'!P163+'FR-16(7)(v)-4 PROD Energy'!P163+'FR-16(7)(v)-5 PROD Cust'!P163+'FR-16(7)(v)-7 TRANS Demand'!P163+'FR-16(7)(v)-8 TRANS Energy'!P163+'FR-16(7)(v)-9 TRANS Cust'!P163+'FR-16(7)(v)-11 DIST Demand'!P163+'FR-16(7)(v)-12 DIST Energy'!P163+'FR-16(7)(v)-13 DIST Cust'!P163-'FR-16(7)(v)-14 TOTAL CLASS'!P163","v":0},{"$f":"'FR-16(7)(v)-3 PROD Demand'!Q163+'FR-16(7)(v)-4 PROD Energy'!Q163+'FR-16(7)(v)-5 PROD Cust'!Q163+'FR-16(7)(v)-7 TRANS Demand'!Q163+'FR-16(7)(v)-8 TRANS Energy'!Q163+'FR-16(7)(v)-9 TRANS Cust'!Q163+'FR-16(7)(v)-11 DIST Demand'!Q163+'FR-16(7)(v)-12 DIST Energy'!Q163+'FR-16(7)(v)-13 DIST Cust'!Q163-'FR-16(7)(v)-14 TOTAL CLASS'!Q163","v":0},0,0]
[30,null,{"$f":"'FR-16(7)(v)-1 Functional'!C164","v":"TRANSFORMERS CUSTOMER RELATED"},{"$f":"'FR-16(7)(v)-1 Functional'!D164","v":"K405"},null,{"$f":"'FR-16(7)(v)-3 PROD Demand'!F164+'FR-16(7)(v)-4 PROD Energy'!F164+'FR-16(7)(v)-5 PROD Cust'!F164+'FR-16(7)(v)-7 TRANS Demand'!F164+'FR-16(7)(v)-8 TRANS Energy'!F164+'FR-16(7)(v)-9 TRANS Cust'!F164+'FR-16(7)(v)-11 DIST Demand'!F164+'FR-16(7)(v)-12 DIST Energy'!F164+'FR-16(7)(v)-13 DIST Cust'!F164-'FR-16(7)(v)-14 TOTAL CLASS'!F164","v":0},{"$f":"'FR-16(7)(v)-3 PROD Demand'!G164+'FR-16(7)(v)-4 PROD Energy'!G164+'FR-16(7)(v)-5 PROD Cust'!G164+'FR-16(7)(v)-7 TRANS Demand'!G164+'FR-16(7)(v)-8 TRANS Energy'!G164+'FR-16(7)(v)-9 TRANS Cust'!G164+'FR-16(7)(v)-11 DIST Demand'!G164+'FR-16(7)(v)-12 DIST Energy'!G164+'FR-16(7)(v)-13 DIST Cust'!G164-'FR-16(7)(v)-14 TOTAL CLASS'!G164","v":0},{"$f":"'FR-16(7)(v)-3 PROD Demand'!H164+'FR-16(7)(v)-4 PROD Energy'!H164+'FR-16(7)(v)-5 PROD Cust'!H164+'FR-16(7)(v)-7 TRANS Demand'!H164+'FR-16(7)(v)-8 TRANS Energy'!H164+'FR-16(7)(v)-9 TRANS Cust'!H164+'FR-16(7)(v)-11 DIST Demand'!H164+'FR-16(7)(v)-12 DIST Energy'!H164+'FR-16(7)(v)-13 DIST Cust'!H164-'FR-16(7)(v)-14 TOTAL CLASS'!H164","v":0},{"$f":"'FR-16(7)(v)-3 PROD Demand'!I164+'FR-16(7)(v)-4 PROD Energy'!I164+'FR-16(7)(v)-5 PROD Cust'!I164+'FR-16(7)(v)-7 TRANS Demand'!I164+'FR-16(7)(v)-8 TRANS Energy'!I164+'FR-16(7)(v)-9 TRANS Cust'!I164+'FR-16(7)(v)-11 DIST Demand'!I164+'FR-16(7)(v)-12 DIST Energy'!I164+'FR-16(7)(v)-13 DIST Cust'!I164-'FR-16(7)(v)-14 TOTAL CLASS'!I164","v":0},{"$f":"'FR-16(7)(v)-3 PROD Demand'!J164+'FR-16(7)(v)-4 PROD Energy'!J164+'FR-16(7)(v)-5 PROD Cust'!J164+'FR-16(7)(v)-7 TRANS Demand'!J164+'FR-16(7)(v)-8 TRANS Energy'!J164+'FR-16(7)(v)-9 TRANS Cust'!J164+'FR-16(7)(v)-11 DIST Demand'!J164+'FR-16(7)(v)-12 DIST Energy'!J164+'FR-16(7)(v)-13 DIST Cust'!J164-'FR-16(7)(v)-14 TOTAL CLASS'!J164","v":0},{"$f":"'FR-16(7)(v)-3 PROD Demand'!K164+'FR-16(7)(v)-4 PROD Energy'!K164+'FR-16(7)(v)-5 PROD Cust'!K164+'FR-16(7)(v)-7 TRANS Demand'!K164+'FR-16(7)(v)-8 TRANS Energy'!K164+'FR-16(7)(v)-9 TRANS Cust'!K164+'FR-16(7)(v)-11 DIST Demand'!K164+'FR-16(7)(v)-12 DIST Energy'!K164+'FR-16(7)(v)-13 DIST Cust'!K164-'FR-16(7)(v)-14 TOTAL CLASS'!K164","v":0},{"$f":"'FR-16(7)(v)-3 PROD Demand'!L164+'FR-16(7)(v)-4 PROD Energy'!L164+'FR-16(7)(v)-5 PROD Cust'!L164+'FR-16(7)(v)-7 TRANS Demand'!L164+'FR-16(7)(v)-8 TRANS Energy'!L164+'FR-16(7)(v)-9 TRANS Cust'!L164+'FR-16(7)(v)-11 DIST Demand'!L164+'FR-16(7)(v)-12 DIST Energy'!L164+'FR-16(7)(v)-13 DIST Cust'!L164-'FR-16(7)(v)-14 TOTAL CLASS'!L164","v":0},{"$f":"'FR-16(7)(v)-3 PROD Demand'!M164+'FR-16(7)(v)-4 PROD Energy'!M164+'FR-16(7)(v)-5 PROD Cust'!M164+'FR-16(7)(v)-7 TRANS Demand'!M164+'FR-16(7)(v)-8 TRANS Energy'!M164+'FR-16(7)(v)-9 TRANS Cust'!M164+'FR-16(7)(v)-11 DIST Demand'!M164+'FR-16(7)(v)-12 DIST Energy'!M164+'FR-16(7)(v)-13 DIST Cust'!M164-'FR-16(7)(v)-14 TOTAL CLASS'!M164","v":0},{"$f":"'FR-16(7)(v)-3 PROD Demand'!N164+'FR-16(7)(v)-4 PROD Energy'!N164+'FR-16(7)(v)-5 PROD Cust'!N164+'FR-16(7)(v)-7 TRANS Demand'!N164+'FR-16(7)(v)-8 TRANS Energy'!N164+'FR-16(7)(v)-9 TRANS Cust'!N164+'FR-16(7)(v)-11 DIST Demand'!N164+'FR-16(7)(v)-12 DIST Energy'!N164+'FR-16(7)(v)-13 DIST Cust'!N164-'FR-16(7)(v)-14 TOTAL CLASS'!N164","v":0},{"$f":"'FR-16(7)(v)-3 PROD Demand'!O164+'FR-16(7)(v)-4 PROD Energy'!O164+'FR-16(7)(v)-5 PROD Cust'!O164+'FR-16(7)(v)-7 TRANS Demand'!O164+'FR-16(7)(v)-8 TRANS Energy'!O164+'FR-16(7)(v)-9 TRANS Cust'!O164+'FR-16(7)(v)-11 DIST Demand'!O164+'FR-16(7)(v)-12 DIST Energy'!O164+'FR-16(7)(v)-13 DIST Cust'!O164-'FR-16(7)(v)-14 TOTAL CLASS'!O164","v":0},{"$f":"'FR-16(7)(v)-3 PROD Demand'!P164+'FR-16(7)(v)-4 PROD Energy'!P164+'FR-16(7)(v)-5 PROD Cust'!P164+'FR-16(7)(v)-7 TRANS Demand'!P164+'FR-16(7)(v)-8 TRANS Energy'!P164+'FR-16(7)(v)-9 TRANS Cust'!P164+'FR-16(7)(v)-11 DIST Demand'!P164+'FR-16(7)(v)-12 DIST Energy'!P164+'FR-16(7)(v)-13 DIST Cust'!P164-'FR-16(7)(v)-14 TOTAL CLASS'!P164","v":0},{"$f":"'FR-16(7)(v)-3 PROD Demand'!Q164+'FR-16(7)(v)-4 PROD Energy'!Q164+'FR-16(7)(v)-5 PROD Cust'!Q164+'FR-16(7)(v)-7 TRANS Demand'!Q164+'FR-16(7)(v)-8 TRANS Energy'!Q164+'FR-16(7)(v)-9 TRANS Cust'!Q164+'FR-16(7)(v)-11 DIST Demand'!Q164+'FR-16(7)(v)-12 DIST Energy'!Q164+'FR-16(7)(v)-13 DIST Cust'!Q164-'FR-16(7)(v)-14 TOTAL CLASS'!Q164","v":0},0,0]
[31,null,{"$f":"'FR-16(7)(v)-1 Functional'!C165","v":"SERVICES"},{"$f":"'FR-16(7)(v)-1 Functional'!D165","v":"K217"},null,{"$f":"'FR-16(7)(v)-3 PROD Demand'!F165+'FR-16(7)(v)-4 PROD Energy'!F165+'FR-16(7)(v)-5 PROD Cust'!F165+'FR-16(7)(v)-7 TRANS Demand'!F165+'FR-16(7)(v)-8 TRANS Energy'!F165+'FR-16(7)(v)-9 TRANS Cust'!F165+'FR-16(7)(v)-11 DIST Demand'!F165+'FR-16(7)(v)-12 DIST Energy'!F165+'FR-16(7)(v)-13 DIST Cust'!F165-'FR-16(7)(v)-14 TOTAL CLASS'!F165","v":0},{"$f":"'FR-16(7)(v)-3 PROD Demand'!G165+'FR-16(7)(v)-4 PROD Energy'!G165+'FR-16(7)(v)-5 PROD Cust'!G165+'FR-16(7)(v)-7 TRANS Demand'!G165+'FR-16(7)(v)-8 TRANS Energy'!G165+'FR-16(7)(v)-9 TRANS Cust'!G165+'FR-16(7)(v)-11 DIST Demand'!G165+'FR-16(7)(v)-12 DIST Energy'!G165+'FR-16(7)(v)-13 DIST Cust'!G165-'FR-16(7)(v)-14 TOTAL CLASS'!G165","v":0},{"$f":"'FR-16(7)(v)-3 PROD Demand'!H165+'FR-16(7)(v)-4 PROD Energy'!H165+'FR-16(7)(v)-5 PROD Cust'!H165+'FR-16(7)(v)-7 TRANS Demand'!H165+'FR-16(7)(v)-8 TRANS Energy'!H165+'FR-16(7)(v)-9 TRANS Cust'!H165+'FR-16(7)(v)-11 DIST Demand'!H165+'FR-16(7)(v)-12 DIST Energy'!H165+'FR-16(7)(v)-13 DIST Cust'!H165-'FR-16(7)(v)-14 TOTAL CLASS'!H165","v":0},{"$f":"'FR-16(7)(v)-3 PROD Demand'!I165+'FR-16(7)(v)-4 PROD Energy'!I165+'FR-16(7)(v)-5 PROD Cust'!I165+'FR-16(7)(v)-7 TRANS Demand'!I165+'FR-16(7)(v)-8 TRANS Energy'!I165+'FR-16(7)(v)-9 TRANS Cust'!I165+'FR-16(7)(v)-11 DIST Demand'!I165+'FR-16(7)(v)-12 DIST Energy'!I165+'FR-16(7)(v)-13 DIST Cust'!I165-'FR-16(7)(v)-14 TOTAL CLASS'!I165","v":0},{"$f":"'FR-16(7)(v)-3 PROD Demand'!J165+'FR-16(7)(v)-4 PROD Energy'!J165+'FR-16(7)(v)-5 PROD Cust'!J165+'FR-16(7)(v)-7 TRANS Demand'!J165+'FR-16(7)(v)-8 TRANS Energy'!J165+'FR-16(7)(v)-9 TRANS Cust'!J165+'FR-16(7)(v)-11 DIST Demand'!J165+'FR-16(7)(v)-12 DIST Energy'!J165+'FR-16(7)(v)-13 DIST Cust'!J165-'FR-16(7)(v)-14 TOTAL CLASS'!J165","v":0},{"$f":"'FR-16(7)(v)-3 PROD Demand'!K165+'FR-16(7)(v)-4 PROD Energy'!K165+'FR-16(7)(v)-5 PROD Cust'!K165+'FR-16(7)(v)-7 TRANS Demand'!K165+'FR-16(7)(v)-8 TRANS Energy'!K165+'FR-16(7)(v)-9 TRANS Cust'!K165+'FR-16(7)(v)-11 DIST Demand'!K165+'FR-16(7)(v)-12 DIST Energy'!K165+'FR-16(7)(v)-13 DIST Cust'!K165-'FR-16(7)(v)-14 TOTAL CLASS'!K165","v":0},{"$f":"'FR-16(7)(v)-3 PROD Demand'!L165+'FR-16(7)(v)-4 PROD Energy'!L165+'FR-16(7)(v)-5 PROD Cust'!L165+'FR-16(7)(v)-7 TRANS Demand'!L165+'FR-16(7)(v)-8 TRANS Energy'!L165+'FR-16(7)(v)-9 TRANS Cust'!L165+'FR-16(7)(v)-11 DIST Demand'!L165+'FR-16(7)(v)-12 DIST Energy'!L165+'FR-16(7)(v)-13 DIST Cust'!L165-'FR-16(7)(v)-14 TOTAL CLASS'!L165","v":0},{"$f":"'FR-16(7)(v)-3 PROD Demand'!M165+'FR-16(7)(v)-4 PROD Energy'!M165+'FR-16(7)(v)-5 PROD Cust'!M165+'FR-16(7)(v)-7 TRANS Demand'!M165+'FR-16(7)(v)-8 TRANS Energy'!M165+'FR-16(7)(v)-9 TRANS Cust'!M165+'FR-16(7)(v)-11 DIST Demand'!M165+'FR-16(7)(v)-12 DIST Energy'!M165+'FR-16(7)(v)-13 DIST Cust'!M165-'FR-16(7)(v)-14 TOTAL CLASS'!M165","v":0},{"$f":"'FR-16(7)(v)-3 PROD Demand'!N165+'FR-16(7)(v)-4 PROD Energy'!N165+'FR-16(7)(v)-5 PROD Cust'!N165+'FR-16(7)(v)-7 TRANS Demand'!N165+'FR-16(7)(v)-8 TRANS Energy'!N165+'FR-16(7)(v)-9 TRANS Cust'!N165+'FR-16(7)(v)-11 DIST Demand'!N165+'FR-16(7)(v)-12 DIST Energy'!N165+'FR-16(7)(v)-13 DIST Cust'!N165-'FR-16(7)(v)-14 TOTAL CLASS'!N165","v":0},{"$f":"'FR-16(7)(v)-3 PROD Demand'!O165+'FR-16(7)(v)-4 PROD Energy'!O165+'FR-16(7)(v)-5 PROD Cust'!O165+'FR-16(7)(v)-7 TRANS Demand'!O165+'FR-16(7)(v)-8 TRANS Energy'!O165+'FR-16(7)(v)-9 TRANS Cust'!O165+'FR-16(7)(v)-11 DIST Demand'!O165+'FR-16(7)(v)-12 DIST Energy'!O165+'FR-16(7)(v)-13 DIST Cust'!O165-'FR-16(7)(v)-14 TOTAL CLASS'!O165","v":0},{"$f":"'FR-16(7)(v)-3 PROD Demand'!P165+'FR-16(7)(v)-4 PROD Energy'!P165+'FR-16(7)(v)-5 PROD Cust'!P165+'FR-16(7)(v)-7 TRANS Demand'!P165+'FR-16(7)(v)-8 TRANS Energy'!P165+'FR-16(7)(v)-9 TRANS Cust'!P165+'FR-16(7)(v)-11 DIST Demand'!P165+'FR-16(7)(v)-12 DIST Energy'!P165+'FR-16(7)(v)-13 DIST Cust'!P165-'FR-16(7)(v)-14 TOTAL CLASS'!P165","v":0},{"$f":"'FR-16(7)(v)-3 PROD Demand'!Q165+'FR-16(7)(v)-4 PROD Energy'!Q165+'FR-16(7)(v)-5 PROD Cust'!Q165+'FR-16(7)(v)-7 TRANS Demand'!Q165+'FR-16(7)(v)-8 TRANS Energy'!Q165+'FR-16(7)(v)-9 TRANS Cust'!Q165+'FR-16(7)(v)-11 DIST Demand'!Q165+'FR-16(7)(v)-12 DIST Energy'!Q165+'FR-16(7)(v)-13 DIST Cust'!Q165-'FR-16(7)(v)-14 TOTAL CLASS'!Q165","v":0},0,0]
[32,null,{"$f":"'FR-16(7)(v)-1 Functional'!C166","v":"METERS"},{"$f":"'FR-16(7)(v)-1 Functional'!D166","v":"K407"},null,{"$f":"'FR-16(7)(v)-3 PROD Demand'!F166+'FR-16(7)(v)-4 PROD Energy'!F166+'FR-16(7)(v)-5 PROD Cust'!F166+'FR-16(7)(v)-7 TRANS Demand'!F166+'FR-16(7)(v)-8 TRANS Energy'!F166+'FR-16(7)(v)-9 TRANS Cust'!F166+'FR-16(7)(v)-11 DIST Demand'!F166+'FR-16(7)(v)-12 DIST Energy'!F166+'FR-16(7)(v)-13 DIST Cust'!F166-'FR-16(7)(v)-14 TOTAL CLASS'!F166","v":0},{"$f":"'FR-16(7)(v)-3 PROD Demand'!G166+'FR-16(7)(v)-4 PROD Energy'!G166+'FR-16(7)(v)-5 PROD Cust'!G166+'FR-16(7)(v)-7 TRANS Demand'!G166+'FR-16(7)(v)-8 TRANS Energy'!G166+'FR-16(7)(v)-9 TRANS Cust'!G166+'FR-16(7)(v)-11 DIST Demand'!G166+'FR-16(7)(v)-12 DIST Energy'!G166+'FR-16(7)(v)-13 DIST Cust'!G166-'FR-16(7)(v)-14 TOTAL CLASS'!G166","v":0},{"$f":"'FR-16(7)(v)-3 PROD Demand'!H166+'FR-16(7)(v)-4 PROD Energy'!H166+'FR-16(7)(v)-5 PROD Cust'!H166+'FR-16(7)(v)-7 TRANS Demand'!H166+'FR-16(7)(v)-8 TRANS Energy'!H166+'FR-16(7)(v)-9 TRANS Cust'!H166+'FR-16(7)(v)-11 DIST Demand'!H166+'FR-16(7)(v)-12 DIST Energy'!H166+'FR-16(7)(v)-13 DIST Cust'!H166-'FR-16(7)(v)-14 TOTAL CLASS'!H166","v":0},{"$f":"'FR-16(7)(v)-3 PROD Demand'!I166+'FR-16(7)(v)-4 PROD Energy'!I166+'FR-16(7)(v)-5 PROD Cust'!I166+'FR-16(7)(v)-7 TRANS Demand'!I166+'FR-16(7)(v)-8 TRANS Energy'!I166+'FR-16(7)(v)-9 TRANS Cust'!I166+'FR-16(7)(v)-11 DIST Demand'!I166+'FR-16(7)(v)-12 DIST Energy'!I166+'FR-16(7)(v)-13 DIST Cust'!I166-'FR-16(7)(v)-14 TOTAL CLASS'!I166","v":0},{"$f":"'FR-16(7)(v)-3 PROD Demand'!J166+'FR-16(7)(v)-4 PROD Energy'!J166+'FR-16(7)(v)-5 PROD Cust'!J166+'FR-16(7)(v)-7 TRANS Demand'!J166+'FR-16(7)(v)-8 TRANS Energy'!J166+'FR-16(7)(v)-9 TRANS Cust'!J166+'FR-16(7)(v)-11 DIST Demand'!J166+'FR-16(7)(v)-12 DIST Energy'!J166+'FR-16(7)(v)-13 DIST Cust'!J166-'FR-16(7)(v)-14 TOTAL CLASS'!J166","v":0},{"$f":"'FR-16(7)(v)-3 PROD Demand'!K166+'FR-16(7)(v)-4 PROD Energy'!K166+'FR-16(7)(v)-5 PROD Cust'!K166+'FR-16(7)(v)-7 TRANS Demand'!K166+'FR-16(7)(v)-8 TRANS Energy'!K166+'FR-16(7)(v)-9 TRANS Cust'!K166+'FR-16(7)(v)-11 DIST Demand'!K166+'FR-16(7)(v)-12 DIST Energy'!K166+'FR-16(7)(v)-13 DIST Cust'!K166-'FR-16(7)(v)-14 TOTAL CLASS'!K166","v":0},{"$f":"'FR-16(7)(v)-3 PROD Demand'!L166+'FR-16(7)(v)-4 PROD Energy'!L166+'FR-16(7)(v)-5 PROD Cust'!L166+'FR-16(7)(v)-7 TRANS Demand'!L166+'FR-16(7)(v)-8 TRANS Energy'!L166+'FR-16(7)(v)-9 TRANS Cust'!L166+'FR-16(7)(v)-11 DIST Demand'!L166+'FR-16(7)(v)-12 DIST Energy'!L166+'FR-16(7)(v)-13 DIST Cust'!L166-'FR-16(7)(v)-14 TOTAL CLASS'!L166","v":0},{"$f":"'FR-16(7)(v)-3 PROD Demand'!M166+'FR-16(7)(v)-4 PROD Energy'!M166+'FR-16(7)(v)-5 PROD Cust'!M166+'FR-16(7)(v)-7 TRANS Demand'!M166+'FR-16(7)(v)-8 TRANS Energy'!M166+'FR-16(7)(v)-9 TRANS Cust'!M166+'FR-16(7)(v)-11 DIST Demand'!M166+'FR-16(7)(v)-12 DIST Energy'!M166+'FR-16(7)(v)-13 DIST Cust'!M166-'FR-16(7)(v)-14 TOTAL CLASS'!M166","v":0},{"$f":"'FR-16(7)(v)-3 PROD Demand'!N166+'FR-16(7)(v)-4 PROD Energy'!N166+'FR-16(7)(v)-5 PROD Cust'!N166+'FR-16(7)(v)-7 TRANS Demand'!N166+'FR-16(7)(v)-8 TRANS Energy'!N166+'FR-16(7)(v)-9 TRANS Cust'!N166+'FR-16(7)(v)-11 DIST Demand'!N166+'FR-16(7)(v)-12 DIST Energy'!N166+'FR-16(7)(v)-13 DIST Cust'!N166-'FR-16(7)(v)-14 TOTAL CLASS'!N166","v":0},{"$f":"'FR-16(7)(v)-3 PROD Demand'!O166+'FR-16(7)(v)-4 PROD Energy'!O166+'FR-16(7)(v)-5 PROD Cust'!O166+'FR-16(7)(v)-7 TRANS Demand'!O166+'FR-16(7)(v)-8 TRANS Energy'!O166+'FR-16(7)(v)-9 TRANS Cust'!O166+'FR-16(7)(v)-11 DIST Demand'!O166+'FR-16(7)(v)-12 DIST Energy'!O166+'FR-16(7)(v)-13 DIST Cust'!O166-'FR-16(7)(v)-14 TOTAL CLASS'!O166","v":0},{"$f":"'FR-16(7)(v)-3 PROD Demand'!P166+'FR-16(7)(v)-4 PROD Energy'!P166+'FR-16(7)(v)-5 PROD Cust'!P166+'FR-16(7)(v)-7 TRANS Demand'!P166+'FR-16(7)(v)-8 TRANS Energy'!P166+'FR-16(7)(v)-9 TRANS Cust'!P166+'FR-16(7)(v)-11 DIST Demand'!P166+'FR-16(7)(v)-12 DIST Energy'!P166+'FR-16(7)(v)-13 DIST Cust'!P166-'FR-16(7)(v)-14 TOTAL CLASS'!P166","v":0},{"$f":"'FR-16(7)(v)-3 PROD Demand'!Q166+'FR-16(7)(v)-4 PROD Energy'!Q166+'FR-16(7)(v)-5 PROD Cust'!Q166+'FR-16(7)(v)-7 TRANS Demand'!Q166+'FR-16(7)(v)-8 TRANS Energy'!Q166+'FR-16(7)(v)-9 TRANS Cust'!Q166+'FR-16(7)(v)-11 DIST Demand'!Q166+'FR-16(7)(v)-12 DIST Energy'!Q166+'FR-16(7)(v)-13 DIST Cust'!Q166-'FR-16(7)(v)-14 TOTAL CLASS'!Q166","v":0},0,0]
[33,null,{"$f":"'FR-16(7)(v)-1 Functional'!C167","v":"STREET LIGHTS"},{"$f":"'FR-16(7)(v)-1 Functional'!D167","v":"K401"},null,{"$f":"'FR-16(7)(v)-3 PROD Demand'!F167+'FR-16(7)(v)-4 PROD Energy'!F167+'FR-16(7)(v)-5 PROD Cust'!F167+'FR-16(7)(v)-7 TRANS Demand'!F167+'FR-16(7)(v)-8 TRANS Energy'!F167+'FR-16(7)(v)-9 TRANS Cust'!F167+'FR-16(7)(v)-11 DIST Demand'!F167+'FR-16(7)(v)-12 DIST Energy'!F167+'FR-16(7)(v)-13 DIST Cust'!F167-'FR-16(7)(v)-14 TOTAL CLASS'!F167","v":0},{"$f":"'FR-16(7)(v)-3 PROD Demand'!G167+'FR-16(7)(v)-4 PROD Energy'!G167+'FR-16(7)(v)-5 PROD Cust'!G167+'FR-16(7)(v)-7 TRANS Demand'!G167+'FR-16(7)(v)-8 TRANS Energy'!G167+'FR-16(7)(v)-9 TRANS Cust'!G167+'FR-16(7)(v)-11 DIST Demand'!G167+'FR-16(7)(v)-12 DIST Energy'!G167+'FR-16(7)(v)-13 DIST Cust'!G167-'FR-16(7)(v)-14 TOTAL CLASS'!G167","v":0},{"$f":"'FR-16(7)(v)-3 PROD Demand'!H167+'FR-16(7)(v)-4 PROD Energy'!H167+'FR-16(7)(v)-5 PROD Cust'!H167+'FR-16(7)(v)-7 TRANS Demand'!H167+'FR-16(7)(v)-8 TRANS Energy'!H167+'FR-16(7)(v)-9 TRANS Cust'!H167+'FR-16(7)(v)-11 DIST Demand'!H167+'FR-16(7)(v)-12 DIST Energy'!H167+'FR-16(7)(v)-13 DIST Cust'!H167-'FR-16(7)(v)-14 TOTAL CLASS'!H167","v":0},{"$f":"'FR-16(7)(v)-3 PROD Demand'!I167+'FR-16(7)(v)-4 PROD Energy'!I167+'FR-16(7)(v)-5 PROD Cust'!I167+'FR-16(7)(v)-7 TRANS Demand'!I167+'FR-16(7)(v)-8 TRANS Energy'!I167+'FR-16(7)(v)-9 TRANS Cust'!I167+'FR-16(7)(v)-11 DIST Demand'!I167+'FR-16(7)(v)-12 DIST Energy'!I167+'FR-16(7)(v)-13 DIST Cust'!I167-'FR-16(7)(v)-14 TOTAL CLASS'!I167","v":0},{"$f":"'FR-16(7)(v)-3 PROD Demand'!J167+'FR-16(7)(v)-4 PROD Energy'!J167+'FR-16(7)(v)-5 PROD Cust'!J167+'FR-16(7)(v)-7 TRANS Demand'!J167+'FR-16(7)(v)-8 TRANS Energy'!J167+'FR-16(7)(v)-9 TRANS Cust'!J167+'FR-16(7)(v)-11 DIST Demand'!J167+'FR-16(7)(v)-12 DIST Energy'!J167+'FR-16(7)(v)-13 DIST Cust'!J167-'FR-16(7)(v)-14 TOTAL CLASS'!J167","v":0},{"$f":"'FR-16(7)(v)-3 PROD Demand'!K167+'FR-16(7)(v)-4 PROD Energy'!K167+'FR-16(7)(v)-5 PROD Cust'!K167+'FR-16(7)(v)-7 TRANS Demand'!K167+'FR-16(7)(v)-8 TRANS Energy'!K167+'FR-16(7)(v)-9 TRANS Cust'!K167+'FR-16(7)(v)-11 DIST Demand'!K167+'FR-16(7)(v)-12 DIST Energy'!K167+'FR-16(7)(v)-13 DIST Cust'!K167-'FR-16(7)(v)-14 TOTAL CLASS'!K167","v":0},{"$f":"'FR-16(7)(v)-3 PROD Demand'!L167+'FR-16(7)(v)-4 PROD Energy'!L167+'FR-16(7)(v)-5 PROD Cust'!L167+'FR-16(7)(v)-7 TRANS Demand'!L167+'FR-16(7)(v)-8 TRANS Energy'!L167+'FR-16(7)(v)-9 TRANS Cust'!L167+'FR-16(7)(v)-11 DIST Demand'!L167+'FR-16(7)(v)-12 DIST Energy'!L167+'FR-16(7)(v)-13 DIST Cust'!L167-'FR-16(7)(v)-14 TOTAL CLASS'!L167","v":0},{"$f":"'FR-16(7)(v)-3 PROD Demand'!M167+'FR-16(7)(v)-4 PROD Energy'!M167+'FR-16(7)(v)-5 PROD Cust'!M167+'FR-16(7)(v)-7 TRANS Demand'!M167+'FR-16(7)(v)-8 TRANS Energy'!M167+'FR-16(7)(v)-9 TRANS Cust'!M167+'FR-16(7)(v)-11 DIST Demand'!M167+'FR-16(7)(v)-12 DIST Energy'!M167+'FR-16(7)(v)-13 DIST Cust'!M167-'FR-16(7)(v)-14 TOTAL CLASS'!M167","v":0},{"$f":"'FR-16(7)(v)-3 PROD Demand'!N167+'FR-16(7)(v)-4 PROD Energy'!N167+'FR-16(7)(v)-5 PROD Cust'!N167+'FR-16(7)(v)-7 TRANS Demand'!N167+'FR-16(7)(v)-8 TRANS Energy'!N167+'FR-16(7)(v)-9 TRANS Cust'!N167+'FR-16(7)(v)-11 DIST Demand'!N167+'FR-16(7)(v)-12 DIST Energy'!N167+'FR-16(7)(v)-13 DIST Cust'!N167-'FR-16(7)(v)-14 TOTAL CLASS'!N167","v":0},{"$f":"'FR-16(7)(v)-3 PROD Demand'!O167+'FR-16(7)(v)-4 PROD Energy'!O167+'FR-16(7)(v)-5 PROD Cust'!O167+'FR-16(7)(v)-7 TRANS Demand'!O167+'FR-16(7)(v)-8 TRANS Energy'!O167+'FR-16(7)(v)-9 TRANS Cust'!O167+'FR-16(7)(v)-11 DIST Demand'!O167+'FR-16(7)(v)-12 DIST Energy'!O167+'FR-16(7)(v)-13 DIST Cust'!O167-'FR-16(7)(v)-14 TOTAL CLASS'!O167","v":0},{"$f":"'FR-16(7)(v)-3 PROD Demand'!P167+'FR-16(7)(v)-4 PROD Energy'!P167+'FR-16(7)(v)-5 PROD Cust'!P167+'FR-16(7)(v)-7 TRANS Demand'!P167+'FR-16(7)(v)-8 TRANS Energy'!P167+'FR-16(7)(v)-9 TRANS Cust'!P167+'FR-16(7)(v)-11 DIST Demand'!P167+'FR-16(7)(v)-12 DIST Energy'!P167+'FR-16(7)(v)-13 DIST Cust'!P167-'FR-16(7)(v)-14 TOTAL CLASS'!P167","v":0},{"$f":"'FR-16(7)(v)-3 PROD Demand'!Q167+'FR-16(7)(v)-4 PROD Energy'!Q167+'FR-16(7)(v)-5 PROD Cust'!Q167+'FR-16(7)(v)-7 TRANS Demand'!Q167+'FR-16(7)(v)-8 TRANS Energy'!Q167+'FR-16(7)(v)-9 TRANS Cust'!Q167+'FR-16(7)(v)-11 DIST Demand'!Q167+'FR-16(7)(v)-12 DIST Energy'!Q167+'FR-16(7)(v)-13 DIST Cust'!Q167-'FR-16(7)(v)-14 TOTAL CLASS'!Q167","v":0},0,0]
[34,null,{"$f":"'FR-16(7)(v)-1 Functional'!C168","v":"ADJUSTMENT  "},{"$f":"'FR-16(7)(v)-1 Functional'!D168","v":"K209"},null,{"$f":"'FR-16(7)(v)-3 PROD Demand'!F168+'FR-16(7)(v)-4 PROD Energy'!F168+'FR-16(7)(v)-5 PROD Cust'!F168+'FR-16(7)(v)-7 TRANS Demand'!F168+'FR-16(7)(v)-8 TRANS Energy'!F168+'FR-16(7)(v)-9 TRANS Cust'!F168+'FR-16(7)(v)-11 DIST Demand'!F168+'FR-16(7)(v)-12 DIST Energy'!F168+'FR-16(7)(v)-13 DIST Cust'!F168-'FR-16(7)(v)-14 TOTAL CLASS'!F168","v":0},{"$f":"'FR-16(7)(v)-3 PROD Demand'!G168+'FR-16(7)(v)-4 PROD Energy'!G168+'FR-16(7)(v)-5 PROD Cust'!G168+'FR-16(7)(v)-7 TRANS Demand'!G168+'FR-16(7)(v)-8 TRANS Energy'!G168+'FR-16(7)(v)-9 TRANS Cust'!G168+'FR-16(7)(v)-11 DIST Demand'!G168+'FR-16(7)(v)-12 DIST Energy'!G168+'FR-16(7)(v)-13 DIST Cust'!G168-'FR-16(7)(v)-14 TOTAL CLASS'!G168","v":0},{"$f":"'FR-16(7)(v)-3 PROD Demand'!H168+'FR-16(7)(v)-4 PROD Energy'!H168+'FR-16(7)(v)-5 PROD Cust'!H168+'FR-16(7)(v)-7 TRANS Demand'!H168+'FR-16(7)(v)-8 TRANS Energy'!H168+'FR-16(7)(v)-9 TRANS Cust'!H168+'FR-16(7)(v)-11 DIST Demand'!H168+'FR-16(7)(v)-12 DIST Energy'!H168+'FR-16(7)(v)-13 DIST Cust'!H168-'FR-16(7)(v)-14 TOTAL CLASS'!H168","v":0},{"$f":"'FR-16(7)(v)-3 PROD Demand'!I168+'FR-16(7)(v)-4 PROD Energy'!I168+'FR-16(7)(v)-5 PROD Cust'!I168+'FR-16(7)(v)-7 TRANS Demand'!I168+'FR-16(7)(v)-8 TRANS Energy'!I168+'FR-16(7)(v)-9 TRANS Cust'!I168+'FR-16(7)(v)-11 DIST Demand'!I168+'FR-16(7)(v)-12 DIST Energy'!I168+'FR-16(7)(v)-13 DIST Cust'!I168-'FR-16(7)(v)-14 TOTAL CLASS'!I168","v":0},{"$f":"'FR-16(7)(v)-3 PROD Demand'!J168+'FR-16(7)(v)-4 PROD Energy'!J168+'FR-16(7)(v)-5 PROD Cust'!J168+'FR-16(7)(v)-7 TRANS Demand'!J168+'FR-16(7)(v)-8 TRANS Energy'!J168+'FR-16(7)(v)-9 TRANS Cust'!J168+'FR-16(7)(v)-11 DIST Demand'!J168+'FR-16(7)(v)-12 DIST Energy'!J168+'FR-16(7)(v)-13 DIST Cust'!J168-'FR-16(7)(v)-14 TOTAL CLASS'!J168","v":0},{"$f":"'FR-16(7)(v)-3 PROD Demand'!K168+'FR-16(7)(v)-4 PROD Energy'!K168+'FR-16(7)(v)-5 PROD Cust'!K168+'FR-16(7)(v)-7 TRANS Demand'!K168+'FR-16(7)(v)-8 TRANS Energy'!K168+'FR-16(7)(v)-9 TRANS Cust'!K168+'FR-16(7)(v)-11 DIST Demand'!K168+'FR-16(7)(v)-12 DIST Energy'!K168+'FR-16(7)(v)-13 DIST Cust'!K168-'FR-16(7)(v)-14 TOTAL CLASS'!K168","v":0},{"$f":"'FR-16(7)(v)-3 PROD Demand'!L168+'FR-16(7)(v)-4 PROD Energy'!L168+'FR-16(7)(v)-5 PROD Cust'!L168+'FR-16(7)(v)-7 TRANS Demand'!L168+'FR-16(7)(v)-8 TRANS Energy'!L168+'FR-16(7)(v)-9 TRANS Cust'!L168+'FR-16(7)(v)-11 DIST Demand'!L168+'FR-16(7)(v)-12 DIST Energy'!L168+'FR-16(7)(v)-13 DIST Cust'!L168-'FR-16(7)(v)-14 TOTAL CLASS'!L168","v":0},{"$f":"'FR-16(7)(v)-3 PROD Demand'!M168+'FR-16(7)(v)-4 PROD Energy'!M168+'FR-16(7)(v)-5 PROD Cust'!M168+'FR-16(7)(v)-7 TRANS Demand'!M168+'FR-16(7)(v)-8 TRANS Energy'!M168+'FR-16(7)(v)-9 TRANS Cust'!M168+'FR-16(7)(v)-11 DIST Demand'!M168+'FR-16(7)(v)-12 DIST Energy'!M168+'FR-16(7)(v)-13 DIST Cust'!M168-'FR-16(7)(v)-14 TOTAL CLASS'!M168","v":0},{"$f":"'FR-16(7)(v)-3 PROD Demand'!N168+'FR-16(7)(v)-4 PROD Energy'!N168+'FR-16(7)(v)-5 PROD Cust'!N168+'FR-16(7)(v)-7 TRANS Demand'!N168+'FR-16(7)(v)-8 TRANS Energy'!N168+'FR-16(7)(v)-9 TRANS Cust'!N168+'FR-16(7)(v)-11 DIST Demand'!N168+'FR-16(7)(v)-12 DIST Energy'!N168+'FR-16(7)(v)-13 DIST Cust'!N168-'FR-16(7)(v)-14 TOTAL CLASS'!N168","v":0},{"$f":"'FR-16(7)(v)-3 PROD Demand'!O168+'FR-16(7)(v)-4 PROD Energy'!O168+'FR-16(7)(v)-5 PROD Cust'!O168+'FR-16(7)(v)-7 TRANS Demand'!O168+'FR-16(7)(v)-8 TRANS Energy'!O168+'FR-16(7)(v)-9 TRANS Cust'!O168+'FR-16(7)(v)-11 DIST Demand'!O168+'FR-16(7)(v)-12 DIST Energy'!O168+'FR-16(7)(v)-13 DIST Cust'!O168-'FR-16(7)(v)-14 TOTAL CLASS'!O168","v":0},{"$f":"'FR-16(7)(v)-3 PROD Demand'!P168+'FR-16(7)(v)-4 PROD Energy'!P168+'FR-16(7)(v)-5 PROD Cust'!P168+'FR-16(7)(v)-7 TRANS Demand'!P168+'FR-16(7)(v)-8 TRANS Energy'!P168+'FR-16(7)(v)-9 TRANS Cust'!P168+'FR-16(7)(v)-11 DIST Demand'!P168+'FR-16(7)(v)-12 DIST Energy'!P168+'FR-16(7)(v)-13 DIST Cust'!P168-'FR-16(7)(v)-14 TOTAL CLASS'!P168","v":0},{"$f":"'FR-16(7)(v)-3 PROD Demand'!Q168+'FR-16(7)(v)-4 PROD Energy'!Q168+'FR-16(7)(v)-5 PROD Cust'!Q168+'FR-16(7)(v)-7 TRANS Demand'!Q168+'FR-16(7)(v)-8 TRANS Energy'!Q168+'FR-16(7)(v)-9 TRANS Cust'!Q168+'FR-16(7)(v)-11 DIST Demand'!Q168+'FR-16(7)(v)-12 DIST Energy'!Q168+'FR-16(7)(v)-13 DIST Cust'!Q168-'FR-16(7)(v)-14 TOTAL CLASS'!Q168","v":0},0,0]
[35,null,{"$f":"'FR-16(7)(v)-1 Functional'!C169","v":"CONSTRUCTION NOT CLASSIFIED"},{"$f":"'FR-16(7)(v)-1 Functional'!D169","v":"K209"},null,{"$f":"'FR-16(7)(v)-3 PROD Demand'!F169+'FR-16(7)(v)-4 PROD Energy'!F169+'FR-16(7)(v)-5 PROD Cust'!F169+'FR-16(7)(v)-7 TRANS Demand'!F169+'FR-16(7)(v)-8 TRANS Energy'!F169+'FR-16(7)(v)-9 TRANS Cust'!F169+'FR-16(7)(v)-11 DIST Demand'!F169+'FR-16(7)(v)-12 DIST Energy'!F169+'FR-16(7)(v)-13 DIST Cust'!F169-'FR-16(7)(v)-14 TOTAL CLASS'!F169","v":0},{"$f":"'FR-16(7)(v)-3 PROD Demand'!G169+'FR-16(7)(v)-4 PROD Energy'!G169+'FR-16(7)(v)-5 PROD Cust'!G169+'FR-16(7)(v)-7 TRANS Demand'!G169+'FR-16(7)(v)-8 TRANS Energy'!G169+'FR-16(7)(v)-9 TRANS Cust'!G169+'FR-16(7)(v)-11 DIST Demand'!G169+'FR-16(7)(v)-12 DIST Energy'!G169+'FR-16(7)(v)-13 DIST Cust'!G169-'FR-16(7)(v)-14 TOTAL CLASS'!G169","v":0},{"$f":"'FR-16(7)(v)-3 PROD Demand'!H169+'FR-16(7)(v)-4 PROD Energy'!H169+'FR-16(7)(v)-5 PROD Cust'!H169+'FR-16(7)(v)-7 TRANS Demand'!H169+'FR-16(7)(v)-8 TRANS Energy'!H169+'FR-16(7)(v)-9 TRANS Cust'!H169+'FR-16(7)(v)-11 DIST Demand'!H169+'FR-16(7)(v)-12 DIST Energy'!H169+'FR-16(7)(v)-13 DIST Cust'!H169-'FR-16(7)(v)-14 TOTAL CLASS'!H169","v":0},{"$f":"'FR-16(7)(v)-3 PROD Demand'!I169+'FR-16(7)(v)-4 PROD Energy'!I169+'FR-16(7)(v)-5 PROD Cust'!I169+'FR-16(7)(v)-7 TRANS Demand'!I169+'FR-16(7)(v)-8 TRANS Energy'!I169+'FR-16(7)(v)-9 TRANS Cust'!I169+'FR-16(7)(v)-11 DIST Demand'!I169+'FR-16(7)(v)-12 DIST Energy'!I169+'FR-16(7)(v)-13 DIST Cust'!I169-'FR-16(7)(v)-14 TOTAL CLASS'!I169","v":0},{"$f":"'FR-16(7)(v)-3 PROD Demand'!J169+'FR-16(7)(v)-4 PROD Energy'!J169+'FR-16(7)(v)-5 PROD Cust'!J169+'FR-16(7)(v)-7 TRANS Demand'!J169+'FR-16(7)(v)-8 TRANS Energy'!J169+'FR-16(7)(v)-9 TRANS Cust'!J169+'FR-16(7)(v)-11 DIST Demand'!J169+'FR-16(7)(v)-12 DIST Energy'!J169+'FR-16(7)(v)-13 DIST Cust'!J169-'FR-16(7)(v)-14 TOTAL CLASS'!J169","v":0},{"$f":"'FR-16(7)(v)-3 PROD Demand'!K169+'FR-16(7)(v)-4 PROD Energy'!K169+'FR-16(7)(v)-5 PROD Cust'!K169+'FR-16(7)(v)-7 TRANS Demand'!K169+'FR-16(7)(v)-8 TRANS Energy'!K169+'FR-16(7)(v)-9 TRANS Cust'!K169+'FR-16(7)(v)-11 DIST Demand'!K169+'FR-16(7)(v)-12 DIST Energy'!K169+'FR-16(7)(v)-13 DIST Cust'!K169-'FR-16(7)(v)-14 TOTAL CLASS'!K169","v":0},{"$f":"'FR-16(7)(v)-3 PROD Demand'!L169+'FR-16(7)(v)-4 PROD Energy'!L169+'FR-16(7)(v)-5 PROD Cust'!L169+'FR-16(7)(v)-7 TRANS Demand'!L169+'FR-16(7)(v)-8 TRANS Energy'!L169+'FR-16(7)(v)-9 TRANS Cust'!L169+'FR-16(7)(v)-11 DIST Demand'!L169+'FR-16(7)(v)-12 DIST Energy'!L169+'FR-16(7)(v)-13 DIST Cust'!L169-'FR-16(7)(v)-14 TOTAL CLASS'!L169","v":0},{"$f":"'FR-16(7)(v)-3 PROD Demand'!M169+'FR-16(7)(v)-4 PROD Energy'!M169+'FR-16(7)(v)-5 PROD Cust'!M169+'FR-16(7)(v)-7 TRANS Demand'!M169+'FR-16(7)(v)-8 TRANS Energy'!M169+'FR-16(7)(v)-9 TRANS Cust'!M169+'FR-16(7)(v)-11 DIST Demand'!M169+'FR-16(7)(v)-12 DIST Energy'!M169+'FR-16(7)(v)-13 DIST Cust'!M169-'FR-16(7)(v)-14 TOTAL CLASS'!M169","v":0},{"$f":"'FR-16(7)(v)-3 PROD Demand'!N169+'FR-16(7)(v)-4 PROD Energy'!N169+'FR-16(7)(v)-5 PROD Cust'!N169+'FR-16(7)(v)-7 TRANS Demand'!N169+'FR-16(7)(v)-8 TRANS Energy'!N169+'FR-16(7)(v)-9 TRANS Cust'!N169+'FR-16(7)(v)-11 DIST Demand'!N169+'FR-16(7)(v)-12 DIST Energy'!N169+'FR-16(7)(v)-13 DIST Cust'!N169-'FR-16(7)(v)-14 TOTAL CLASS'!N169","v":0},{"$f":"'FR-16(7)(v)-3 PROD Demand'!O169+'FR-16(7)(v)-4 PROD Energy'!O169+'FR-16(7)(v)-5 PROD Cust'!O169+'FR-16(7)(v)-7 TRANS Demand'!O169+'FR-16(7)(v)-8 TRANS Energy'!O169+'FR-16(7)(v)-9 TRANS Cust'!O169+'FR-16(7)(v)-11 DIST Demand'!O169+'FR-16(7)(v)-12 DIST Energy'!O169+'FR-16(7)(v)-13 DIST Cust'!O169-'FR-16(7)(v)-14 TOTAL CLASS'!O169","v":0},{"$f":"'FR-16(7)(v)-3 PROD Demand'!P169+'FR-16(7)(v)-4 PROD Energy'!P169+'FR-16(7)(v)-5 PROD Cust'!P169+'FR-16(7)(v)-7 TRANS Demand'!P169+'FR-16(7)(v)-8 TRANS Energy'!P169+'FR-16(7)(v)-9 TRANS Cust'!P169+'FR-16(7)(v)-11 DIST Demand'!P169+'FR-16(7)(v)-12 DIST Energy'!P169+'FR-16(7)(v)-13 DIST Cust'!P169-'FR-16(7)(v)-14 TOTAL CLASS'!P169","v":0},{"$f":"'FR-16(7)(v)-3 PROD Demand'!Q169+'FR-16(7)(v)-4 PROD Energy'!Q169+'FR-16(7)(v)-5 PROD Cust'!Q169+'FR-16(7)(v)-7 TRANS Demand'!Q169+'FR-16(7)(v)-8 TRANS Energy'!Q169+'FR-16(7)(v)-9 TRANS Cust'!Q169+'FR-16(7)(v)-11 DIST Demand'!Q169+'FR-16(7)(v)-12 DIST Energy'!Q169+'FR-16(7)(v)-13 DIST Cust'!Q169-'FR-16(7)(v)-14 TOTAL CLASS'!Q169","v":0},0,0]
[36,null,{"$f":"'FR-16(7)(v)-1 Functional'!C170","v":"RWIP"},{"$f":"'FR-16(7)(v)-1 Functional'!D170","v":"K215"},null,{"$f":"'FR-16(7)(v)-3 PROD Demand'!F170+'FR-16(7)(v)-4 PROD Energy'!F170+'FR-16(7)(v)-5 PROD Cust'!F170+'FR-16(7)(v)-7 TRANS Demand'!F170+'FR-16(7)(v)-8 TRANS Energy'!F170+'FR-16(7)(v)-9 TRANS Cust'!F170+'FR-16(7)(v)-11 DIST Demand'!F170+'FR-16(7)(v)-12 DIST Energy'!F170+'FR-16(7)(v)-13 DIST Cust'!F170-'FR-16(7)(v)-14 TOTAL CLASS'!F170","v":0},{"$f":"'FR-16(7)(v)-3 PROD Demand'!G170+'FR-16(7)(v)-4 PROD Energy'!G170+'FR-16(7)(v)-5 PROD Cust'!G170+'FR-16(7)(v)-7 TRANS Demand'!G170+'FR-16(7)(v)-8 TRANS Energy'!G170+'FR-16(7)(v)-9 TRANS Cust'!G170+'FR-16(7)(v)-11 DIST Demand'!G170+'FR-16(7)(v)-12 DIST Energy'!G170+'FR-16(7)(v)-13 DIST Cust'!G170-'FR-16(7)(v)-14 TOTAL CLASS'!G170","v":0},{"$f":"'FR-16(7)(v)-3 PROD Demand'!H170+'FR-16(7)(v)-4 PROD Energy'!H170+'FR-16(7)(v)-5 PROD Cust'!H170+'FR-16(7)(v)-7 TRANS Demand'!H170+'FR-16(7)(v)-8 TRANS Energy'!H170+'FR-16(7)(v)-9 TRANS Cust'!H170+'FR-16(7)(v)-11 DIST Demand'!H170+'FR-16(7)(v)-12 DIST Energy'!H170+'FR-16(7)(v)-13 DIST Cust'!H170-'FR-16(7)(v)-14 TOTAL CLASS'!H170","v":0},{"$f":"'FR-16(7)(v)-3 PROD Demand'!I170+'FR-16(7)(v)-4 PROD Energy'!I170+'FR-16(7)(v)-5 PROD Cust'!I170+'FR-16(7)(v)-7 TRANS Demand'!I170+'FR-16(7)(v)-8 TRANS Energy'!I170+'FR-16(7)(v)-9 TRANS Cust'!I170+'FR-16(7)(v)-11 DIST Demand'!I170+'FR-16(7)(v)-12 DIST Energy'!I170+'FR-16(7)(v)-13 DIST Cust'!I170-'FR-16(7)(v)-14 TOTAL CLASS'!I170","v":0},{"$f":"'FR-16(7)(v)-3 PROD Demand'!J170+'FR-16(7)(v)-4 PROD Energy'!J170+'FR-16(7)(v)-5 PROD Cust'!J170+'FR-16(7)(v)-7 TRANS Demand'!J170+'FR-16(7)(v)-8 TRANS Energy'!J170+'FR-16(7)(v)-9 TRANS Cust'!J170+'FR-16(7)(v)-11 DIST Demand'!J170+'FR-16(7)(v)-12 DIST Energy'!J170+'FR-16(7)(v)-13 DIST Cust'!J170-'FR-16(7)(v)-14 TOTAL CLASS'!J170","v":0},{"$f":"'FR-16(7)(v)-3 PROD Demand'!K170+'FR-16(7)(v)-4 PROD Energy'!K170+'FR-16(7)(v)-5 PROD Cust'!K170+'FR-16(7)(v)-7 TRANS Demand'!K170+'FR-16(7)(v)-8 TRANS Energy'!K170+'FR-16(7)(v)-9 TRANS Cust'!K170+'FR-16(7)(v)-11 DIST Demand'!K170+'FR-16(7)(v)-12 DIST Energy'!K170+'FR-16(7)(v)-13 DIST Cust'!K170-'FR-16(7)(v)-14 TOTAL CLASS'!K170","v":0}]
[37,null,{"$f":"'FR-16(7)(v)-1 Functional'!C171","v":"  TOTAL DIST DEPREC RESERVE"},null,null,{"$f":"SUM(F149:F170)","v":0},{"$f":"SUM(G149:G169)","v":0},0,0,0,0,0,0,0,0,0,0,0,0]
[38]
[39,null,"TOTAL TRANS & DIST DEPREC RESERVE",null,null,{"$f":"F171+F145","v":0},{"$f":"G171+G145","v":0},0,0,0,0,0,0,0,0,0,0,{"$f":"SUM(G173:Q173)","v":0},{"$f":"F173-R173","v":0}]
[40,null,"TOTAL GROSS PTD PLANT DEPREC RESERVE",null,null,{"$f":"F147+F171","v":0},{"$f":"G147+G171","v":0},0,0,0,0,0,0,0,0,0,0,{"$f":"SUM(G174:Q174)","v":0},{"$f":"F174-R174","v":0}]
[41]
[42,"GENERAL & INTANGIBLE PLANT"]
[43,null,{"$f":"'FR-16(7)(v)-1 Functional'!C177","v":"PRODUCTION - DEMAND"},"A300",null,{"$f":"'FR-16(7)(v)-3 PROD Demand'!F177+'FR-16(7)(v)-4 PROD Energy'!F177+'FR-16(7)(v)-5 PROD Cust'!F177+'FR-16(7)(v)-7 TRANS Demand'!F177+'FR-16(7)(v)-8 TRANS Energy'!F177+'FR-16(7)(v)-9 TRANS Cust'!F177+'FR-16(7)(v)-11 DIST Demand'!F177+'FR-16(7)(v)-12 DIST Energy'!F177+'FR-16(7)(v)-13 DIST Cust'!F177-'FR-16(7)(v)-14 TOTAL CLASS'!F177","v":0},{"$f":"'FR-16(7)(v)-3 PROD Demand'!G177+'FR-16(7)(v)-4 PROD Energy'!G177+'FR-16(7)(v)-5 PROD Cust'!G177+'FR-16(7)(v)-7 TRANS Demand'!G177+'FR-16(7)(v)-8 TRANS Energy'!G177+'FR-16(7)(v)-9 TRANS Cust'!G177+'FR-16(7)(v)-11 DIST Demand'!G177+'FR-16(7)(v)-12 DIST Energy'!G177+'FR-16(7)(v)-13 DIST Cust'!G177-'FR-16(7)(v)-14 TOTAL CLASS'!G177","v":0},{"$f":"'FR-16(7)(v)-3 PROD Demand'!H177+'FR-16(7)(v)-4 PROD Energy'!H177+'FR-16(7)(v)-5 PROD Cust'!H177+'FR-16(7)(v)-7 TRANS Demand'!H177+'FR-16(7)(v)-8 TRANS Energy'!H177+'FR-16(7)(v)-9 TRANS Cust'!H177+'FR-16(7)(v)-11 DIST Demand'!H177+'FR-16(7)(v)-12 DIST Energy'!H177+'FR-16(7)(v)-13 DIST Cust'!H177-'FR-16(7)(v)-14 TOTAL CLASS'!H177","v":0},{"$f":"'FR-16(7)(v)-3 PROD Demand'!I177+'FR-16(7)(v)-4 PROD Energy'!I177+'FR-16(7)(v)-5 PROD Cust'!I177+'FR-16(7)(v)-7 TRANS Demand'!I177+'FR-16(7)(v)-8 TRANS Energy'!I177+'FR-16(7)(v)-9 TRANS Cust'!I177+'FR-16(7)(v)-11 DIST Demand'!I177+'FR-16(7)(v)-12 DIST Energy'!I177+'FR-16(7)(v)-13 DIST Cust'!I177-'FR-16(7)(v)-14 TOTAL CLASS'!I177","v":0},{"$f":"'FR-16(7)(v)-3 PROD Demand'!J177+'FR-16(7)(v)-4 PROD Energy'!J177+'FR-16(7)(v)-5 PROD Cust'!J177+'FR-16(7)(v)-7 TRANS Demand'!J177+'FR-16(7)(v)-8 TRANS Energy'!J177+'FR-16(7)(v)-9 TRANS Cust'!J177+'FR-16(7)(v)-11 DIST Demand'!J177+'FR-16(7)(v)-12 DIST Energy'!J177+'FR-16(7)(v)-13 DIST Cust'!J177-'FR-16(7)(v)-14 TOTAL CLASS'!J177","v":0},{"$f":"'FR-16(7)(v)-3 PROD Demand'!K177+'FR-16(7)(v)-4 PROD Energy'!K177+'FR-16(7)(v)-5 PROD Cust'!K177+'FR-16(7)(v)-7 TRANS Demand'!K177+'FR-16(7)(v)-8 TRANS Energy'!K177+'FR-16(7)(v)-9 TRANS Cust'!K177+'FR-16(7)(v)-11 DIST Demand'!K177+'FR-16(7)(v)-12 DIST Energy'!K177+'FR-16(7)(v)-13 DIST Cust'!K177-'FR-16(7)(v)-14 TOTAL CLASS'!K177","v":0},{"$f":"'FR-16(7)(v)-3 PROD Demand'!L177+'FR-16(7)(v)-4 PROD Energy'!L177+'FR-16(7)(v)-5 PROD Cust'!L177+'FR-16(7)(v)-7 TRANS Demand'!L177+'FR-16(7)(v)-8 TRANS Energy'!L177+'FR-16(7)(v)-9 TRANS Cust'!L177+'FR-16(7)(v)-11 DIST Demand'!L177+'FR-16(7)(v)-12 DIST Energy'!L177+'FR-16(7)(v)-13 DIST Cust'!L177-'FR-16(7)(v)-14 TOTAL CLASS'!L177","v":0},{"$f":"'FR-16(7)(v)-3 PROD Demand'!M177+'FR-16(7)(v)-4 PROD Energy'!M177+'FR-16(7)(v)-5 PROD Cust'!M177+'FR-16(7)(v)-7 TRANS Demand'!M177+'FR-16(7)(v)-8 TRANS Energy'!M177+'FR-16(7)(v)-9 TRANS Cust'!M177+'FR-16(7)(v)-11 DIST Demand'!M177+'FR-16(7)(v)-12 DIST Energy'!M177+'FR-16(7)(v)-13 DIST Cust'!M177-'FR-16(7)(v)-14 TOTAL CLASS'!M177","v":0},{"$f":"'FR-16(7)(v)-3 PROD Demand'!N177+'FR-16(7)(v)-4 PROD Energy'!N177+'FR-16(7)(v)-5 PROD Cust'!N177+'FR-16(7)(v)-7 TRANS Demand'!N177+'FR-16(7)(v)-8 TRANS Energy'!N177+'FR-16(7)(v)-9 TRANS Cust'!N177+'FR-16(7)(v)-11 DIST Demand'!N177+'FR-16(7)(v)-12 DIST Energy'!N177+'FR-16(7)(v)-13 DIST Cust'!N177-'FR-16(7)(v)-14 TOTAL CLASS'!N177","v":0},{"$f":"'FR-16(7)(v)-3 PROD Demand'!O177+'FR-16(7)(v)-4 PROD Energy'!O177+'FR-16(7)(v)-5 PROD Cust'!O177+'FR-16(7)(v)-7 TRANS Demand'!O177+'FR-16(7)(v)-8 TRANS Energy'!O177+'FR-16(7)(v)-9 TRANS Cust'!O177+'FR-16(7)(v)-11 DIST Demand'!O177+'FR-16(7)(v)-12 DIST Energy'!O177+'FR-16(7)(v)-13 DIST Cust'!O177-'FR-16(7)(v)-14 TOTAL CLASS'!O177","v":0},{"$f":"'FR-16(7)(v)-3 PROD Demand'!P177+'FR-16(7)(v)-4 PROD Energy'!P177+'FR-16(7)(v)-5 PROD Cust'!P177+'FR-16(7)(v)-7 TRANS Demand'!P177+'FR-16(7)(v)-8 TRANS Energy'!P177+'FR-16(7)(v)-9 TRANS Cust'!P177+'FR-16(7)(v)-11 DIST Demand'!P177+'FR-16(7)(v)-12 DIST Energy'!P177+'FR-16(7)(v)-13 DIST Cust'!P177-'FR-16(7)(v)-14 TOTAL CLASS'!P177","v":0},{"$f":"'FR-16(7)(v)-3 PROD Demand'!Q177+'FR-16(7)(v)-4 PROD Energy'!Q177+'FR-16(7)(v)-5 PROD Cust'!Q177+'FR-16(7)(v)-7 TRANS Demand'!Q177+'FR-16(7)(v)-8 TRANS Energy'!Q177+'FR-16(7)(v)-9 TRANS Cust'!Q177+'FR-16(7)(v)-11 DIST Demand'!Q177+'FR-16(7)(v)-12 DIST Energy'!Q177+'FR-16(7)(v)-13 DIST Cust'!Q177-'FR-16(7)(v)-14 TOTAL CLASS'!Q177","v":0},{"$f":"SUM(G177:Q177)","v":0},{"$f":"F177-R177","v":0}]
[44,null,{"$f":"'FR-16(7)(v)-1 Functional'!C178","v":"PRODUCTION - ENERGY"},"A300",null,{"$f":"'FR-16(7)(v)-3 PROD Demand'!F178+'FR-16(7)(v)-4 PROD Energy'!F178+'FR-16(7)(v)-5 PROD Cust'!F178+'FR-16(7)(v)-7 TRANS Demand'!F178+'FR-16(7)(v)-8 TRANS Energy'!F178+'FR-16(7)(v)-9 TRANS Cust'!F178+'FR-16(7)(v)-11 DIST Demand'!F178+'FR-16(7)(v)-12 DIST Energy'!F178+'FR-16(7)(v)-13 DIST Cust'!F178-'FR-16(7)(v)-14 TOTAL CLASS'!F178","v":0},{"$f":"'FR-16(7)(v)-3 PROD Demand'!G178+'FR-16(7)(v)-4 PROD Energy'!G178+'FR-16(7)(v)-5 PROD Cust'!G178+'FR-16(7)(v)-7 TRANS Demand'!G178+'FR-16(7)(v)-8 TRANS Energy'!G178+'FR-16(7)(v)-9 TRANS Cust'!G178+'FR-16(7)(v)-11 DIST Demand'!G178+'FR-16(7)(v)-12 DIST Energy'!G178+'FR-16(7)(v)-13 DIST Cust'!G178-'FR-16(7)(v)-14 TOTAL CLASS'!G178","v":0},{"$f":"'FR-16(7)(v)-3 PROD Demand'!H178+'FR-16(7)(v)-4 PROD Energy'!H178+'FR-16(7)(v)-5 PROD Cust'!H178+'FR-16(7)(v)-7 TRANS Demand'!H178+'FR-16(7)(v)-8 TRANS Energy'!H178+'FR-16(7)(v)-9 TRANS Cust'!H178+'FR-16(7)(v)-11 DIST Demand'!H178+'FR-16(7)(v)-12 DIST Energy'!H178+'FR-16(7)(v)-13 DIST Cust'!H178-'FR-16(7)(v)-14 TOTAL CLASS'!H178","v":0},{"$f":"'FR-16(7)(v)-3 PROD Demand'!I178+'FR-16(7)(v)-4 PROD Energy'!I178+'FR-16(7)(v)-5 PROD Cust'!I178+'FR-16(7)(v)-7 TRANS Demand'!I178+'FR-16(7)(v)-8 TRANS Energy'!I178+'FR-16(7)(v)-9 TRANS Cust'!I178+'FR-16(7)(v)-11 DIST Demand'!I178+'FR-16(7)(v)-12 DIST Energy'!I178+'FR-16(7)(v)-13 DIST Cust'!I178-'FR-16(7)(v)-14 TOTAL CLASS'!I178","v":0},{"$f":"'FR-16(7)(v)-3 PROD Demand'!J178+'FR-16(7)(v)-4 PROD Energy'!J178+'FR-16(7)(v)-5 PROD Cust'!J178+'FR-16(7)(v)-7 TRANS Demand'!J178+'FR-16(7)(v)-8 TRANS Energy'!J178+'FR-16(7)(v)-9 TRANS Cust'!J178+'FR-16(7)(v)-11 DIST Demand'!J178+'FR-16(7)(v)-12 DIST Energy'!J178+'FR-16(7)(v)-13 DIST Cust'!J178-'FR-16(7)(v)-14 TOTAL CLASS'!J178","v":0},{"$f":"'FR-16(7)(v)-3 PROD Demand'!K178+'FR-16(7)(v)-4 PROD Energy'!K178+'FR-16(7)(v)-5 PROD Cust'!K178+'FR-16(7)(v)-7 TRANS Demand'!K178+'FR-16(7)(v)-8 TRANS Energy'!K178+'FR-16(7)(v)-9 TRANS Cust'!K178+'FR-16(7)(v)-11 DIST Demand'!K178+'FR-16(7)(v)-12 DIST Energy'!K178+'FR-16(7)(v)-13 DIST Cust'!K178-'FR-16(7)(v)-14 TOTAL CLASS'!K178","v":0},{"$f":"'FR-16(7)(v)-3 PROD Demand'!L178+'FR-16(7)(v)-4 PROD Energy'!L178+'FR-16(7)(v)-5 PROD Cust'!L178+'FR-16(7)(v)-7 TRANS Demand'!L178+'FR-16(7)(v)-8 TRANS Energy'!L178+'FR-16(7)(v)-9 TRANS Cust'!L178+'FR-16(7)(v)-11 DIST Demand'!L178+'FR-16(7)(v)-12 DIST Energy'!L178+'FR-16(7)(v)-13 DIST Cust'!L178-'FR-16(7)(v)-14 TOTAL CLASS'!L178","v":0},{"$f":"'FR-16(7)(v)-3 PROD Demand'!M178+'FR-16(7)(v)-4 PROD Energy'!M178+'FR-16(7)(v)-5 PROD Cust'!M178+'FR-16(7)(v)-7 TRANS Demand'!M178+'FR-16(7)(v)-8 TRANS Energy'!M178+'FR-16(7)(v)-9 TRANS Cust'!M178+'FR-16(7)(v)-11 DIST Demand'!M178+'FR-16(7)(v)-12 DIST Energy'!M178+'FR-16(7)(v)-13 DIST Cust'!M178-'FR-16(7)(v)-14 TOTAL CLASS'!M178","v":0},{"$f":"'FR-16(7)(v)-3 PROD Demand'!N178+'FR-16(7)(v)-4 PROD Energy'!N178+'FR-16(7)(v)-5 PROD Cust'!N178+'FR-16(7)(v)-7 TRANS Demand'!N178+'FR-16(7)(v)-8 TRANS Energy'!N178+'FR-16(7)(v)-9 TRANS Cust'!N178+'FR-16(7)(v)-11 DIST Demand'!N178+'FR-16(7)(v)-12 DIST Energy'!N178+'FR-16(7)(v)-13 DIST Cust'!N178-'FR-16(7)(v)-14 TOTAL CLASS'!N178","v":0},{"$f":"'FR-16(7)(v)-3 PROD Demand'!O178+'FR-16(7)(v)-4 PROD Energy'!O178+'FR-16(7)(v)-5 PROD Cust'!O178+'FR-16(7)(v)-7 TRANS Demand'!O178+'FR-16(7)(v)-8 TRANS Energy'!O178+'FR-16(7)(v)-9 TRANS Cust'!O178+'FR-16(7)(v)-11 DIST Demand'!O178+'FR-16(7)(v)-12 DIST Energy'!O178+'FR-16(7)(v)-13 DIST Cust'!O178-'FR-16(7)(v)-14 TOTAL CLASS'!O178","v":0},{"$f":"'FR-16(7)(v)-3 PROD Demand'!P178+'FR-16(7)(v)-4 PROD Energy'!P178+'FR-16(7)(v)-5 PROD Cust'!P178+'FR-16(7)(v)-7 TRANS Demand'!P178+'FR-16(7)(v)-8 TRANS Energy'!P178+'FR-16(7)(v)-9 TRANS Cust'!P178+'FR-16(7)(v)-11 DIST Demand'!P178+'FR-16(7)(v)-12 DIST Energy'!P178+'FR-16(7)(v)-13 DIST Cust'!P178-'FR-16(7)(v)-14 TOTAL CLASS'!P178","v":0},{"$f":"'FR-16(7)(v)-3 PROD Demand'!Q178+'FR-16(7)(v)-4 PROD Energy'!Q178+'FR-16(7)(v)-5 PROD Cust'!Q178+'FR-16(7)(v)-7 TRANS Demand'!Q178+'FR-16(7)(v)-8 TRANS Energy'!Q178+'FR-16(7)(v)-9 TRANS Cust'!Q178+'FR-16(7)(v)-11 DIST Demand'!Q178+'FR-16(7)(v)-12 DIST Energy'!Q178+'FR-16(7)(v)-13 DIST Cust'!Q178-'FR-16(7)(v)-14 TOTAL CLASS'!Q178","v":0},0,0]
[45,null,{"$f":"'FR-16(7)(v)-1 Functional'!C179","v":"TRANSMISSION"},"A300",null,{"$f":"'FR-16(7)(v)-3 PROD Demand'!F179+'FR-16(7)(v)-4 PROD Energy'!F179+'FR-16(7)(v)-5 PROD Cust'!F179+'FR-16(7)(v)-7 TRANS Demand'!F179+'FR-16(7)(v)-8 TRANS Energy'!F179+'FR-16(7)(v)-9 TRANS Cust'!F179+'FR-16(7)(v)-11 DIST Demand'!F179+'FR-16(7)(v)-12 DIST Energy'!F179+'FR-16(7)(v)-13 DIST Cust'!F179-'FR-16(7)(v)-14 TOTAL CLASS'!F179","v":0},{"$f":"'FR-16(7)(v)-3 PROD Demand'!G179+'FR-16(7)(v)-4 PROD Energy'!G179+'FR-16(7)(v)-5 PROD Cust'!G179+'FR-16(7)(v)-7 TRANS Demand'!G179+'FR-16(7)(v)-8 TRANS Energy'!G179+'FR-16(7)(v)-9 TRANS Cust'!G179+'FR-16(7)(v)-11 DIST Demand'!G179+'FR-16(7)(v)-12 DIST Energy'!G179+'FR-16(7)(v)-13 DIST Cust'!G179-'FR-16(7)(v)-14 TOTAL CLASS'!G179","v":0},{"$f":"'FR-16(7)(v)-3 PROD Demand'!H179+'FR-16(7)(v)-4 PROD Energy'!H179+'FR-16(7)(v)-5 PROD Cust'!H179+'FR-16(7)(v)-7 TRANS Demand'!H179+'FR-16(7)(v)-8 TRANS Energy'!H179+'FR-16(7)(v)-9 TRANS Cust'!H179+'FR-16(7)(v)-11 DIST Demand'!H179+'FR-16(7)(v)-12 DIST Energy'!H179+'FR-16(7)(v)-13 DIST Cust'!H179-'FR-16(7)(v)-14 TOTAL CLASS'!H179","v":0},{"$f":"'FR-16(7)(v)-3 PROD Demand'!I179+'FR-16(7)(v)-4 PROD Energy'!I179+'FR-16(7)(v)-5 PROD Cust'!I179+'FR-16(7)(v)-7 TRANS Demand'!I179+'FR-16(7)(v)-8 TRANS Energy'!I179+'FR-16(7)(v)-9 TRANS Cust'!I179+'FR-16(7)(v)-11 DIST Demand'!I179+'FR-16(7)(v)-12 DIST Energy'!I179+'FR-16(7)(v)-13 DIST Cust'!I179-'FR-16(7)(v)-14 TOTAL CLASS'!I179","v":0},{"$f":"'FR-16(7)(v)-3 PROD Demand'!J179+'FR-16(7)(v)-4 PROD Energy'!J179+'FR-16(7)(v)-5 PROD Cust'!J179+'FR-16(7)(v)-7 TRANS Demand'!J179+'FR-16(7)(v)-8 TRANS Energy'!J179+'FR-16(7)(v)-9 TRANS Cust'!J179+'FR-16(7)(v)-11 DIST Demand'!J179+'FR-16(7)(v)-12 DIST Energy'!J179+'FR-16(7)(v)-13 DIST Cust'!J179-'FR-16(7)(v)-14 TOTAL CLASS'!J179","v":0},{"$f":"'FR-16(7)(v)-3 PROD Demand'!K179+'FR-16(7)(v)-4 PROD Energy'!K179+'FR-16(7)(v)-5 PROD Cust'!K179+'FR-16(7)(v)-7 TRANS Demand'!K179+'FR-16(7)(v)-8 TRANS Energy'!K179+'FR-16(7)(v)-9 TRANS Cust'!K179+'FR-16(7)(v)-11 DIST Demand'!K179+'FR-16(7)(v)-12 DIST Energy'!K179+'FR-16(7)(v)-13 DIST Cust'!K179-'FR-16(7)(v)-14 TOTAL CLASS'!K179","v":0},{"$f":"'FR-16(7)(v)-3 PROD Demand'!L179+'FR-16(7)(v)-4 PROD Energy'!L179+'FR-16(7)(v)-5 PROD Cust'!L179+'FR-16(7)(v)-7 TRANS Demand'!L179+'FR-16(7)(v)-8 TRANS Energy'!L179+'FR-16(7)(v)-9 TRANS Cust'!L179+'FR-16(7)(v)-11 DIST Demand'!L179+'FR-16(7)(v)-12 DIST Energy'!L179+'FR-16(7)(v)-13 DIST Cust'!L179-'FR-16(7)(v)-14 TOTAL CLASS'!L179","v":0},{"$f":"'FR-16(7)(v)-3 PROD Demand'!M179+'FR-16(7)(v)-4 PROD Energy'!M179+'FR-16(7)(v)-5 PROD Cust'!M179+'FR-16(7)(v)-7 TRANS Demand'!M179+'FR-16(7)(v)-8 TRANS Energy'!M179+'FR-16(7)(v)-9 TRANS Cust'!M179+'FR-16(7)(v)-11 DIST Demand'!M179+'FR-16(7)(v)-12 DIST Energy'!M179+'FR-16(7)(v)-13 DIST Cust'!M179-'FR-16(7)(v)-14 TOTAL CLASS'!M179","v":0},{"$f":"'FR-16(7)(v)-3 PROD Demand'!N179+'FR-16(7)(v)-4 PROD Energy'!N179+'FR-16(7)(v)-5 PROD Cust'!N179+'FR-16(7)(v)-7 TRANS Demand'!N179+'FR-16(7)(v)-8 TRANS Energy'!N179+'FR-16(7)(v)-9 TRANS Cust'!N179+'FR-16(7)(v)-11 DIST Demand'!N179+'FR-16(7)(v)-12 DIST Energy'!N179+'FR-16(7)(v)-13 DIST Cust'!N179-'FR-16(7)(v)-14 TOTAL CLASS'!N179","v":0},{"$f":"'FR-16(7)(v)-3 PROD Demand'!O179+'FR-16(7)(v)-4 PROD Energy'!O179+'FR-16(7)(v)-5 PROD Cust'!O179+'FR-16(7)(v)-7 TRANS Demand'!O179+'FR-16(7)(v)-8 TRANS Energy'!O179+'FR-16(7)(v)-9 TRANS Cust'!O179+'FR-16(7)(v)-11 DIST Demand'!O179+'FR-16(7)(v)-12 DIST Energy'!O179+'FR-16(7)(v)-13 DIST Cust'!O179-'FR-16(7)(v)-14 TOTAL CLASS'!O179","v":0},{"$f":"'FR-16(7)(v)-3 PROD Demand'!P179+'FR-16(7)(v)-4 PROD Energy'!P179+'FR-16(7)(v)-5 PROD Cust'!P179+'FR-16(7)(v)-7 TRANS Demand'!P179+'FR-16(7)(v)-8 TRANS Energy'!P179+'FR-16(7)(v)-9 TRANS Cust'!P179+'FR-16(7)(v)-11 DIST Demand'!P179+'FR-16(7)(v)-12 DIST Energy'!P179+'FR-16(7)(v)-13 DIST Cust'!P179-'FR-16(7)(v)-14 TOTAL CLASS'!P179","v":0},{"$f":"'FR-16(7)(v)-3 PROD Demand'!Q179+'FR-16(7)(v)-4 PROD Energy'!Q179+'FR-16(7)(v)-5 PROD Cust'!Q179+'FR-16(7)(v)-7 TRANS Demand'!Q179+'FR-16(7)(v)-8 TRANS Energy'!Q179+'FR-16(7)(v)-9 TRANS Cust'!Q179+'FR-16(7)(v)-11 DIST Demand'!Q179+'FR-16(7)(v)-12 DIST Energy'!Q179+'FR-16(7)(v)-13 DIST Cust'!Q179-'FR-16(7)(v)-14 TOTAL CLASS'!Q179","v":0},0,0]
[46,null,{"$f":"'FR-16(7)(v)-1 Functional'!C180","v":"DISTRIBUTION - DEMAND"},"A300",null,{"$f":"'FR-16(7)(v)-3 PROD Demand'!F180+'FR-16(7)(v)-4 PROD Energy'!F180+'FR-16(7)(v)-5 PROD Cust'!F180+'FR-16(7)(v)-7 TRANS Demand'!F180+'FR-16(7)(v)-8 TRANS Energy'!F180+'FR-16(7)(v)-9 TRANS Cust'!F180+'FR-16(7)(v)-11 DIST Demand'!F180+'FR-16(7)(v)-12 DIST Energy'!F180+'FR-16(7)(v)-13 DIST Cust'!F180-'FR-16(7)(v)-14 TOTAL CLASS'!F180","v":0},{"$f":"'FR-16(7)(v)-3 PROD Demand'!G180+'FR-16(7)(v)-4 PROD Energy'!G180+'FR-16(7)(v)-5 PROD Cust'!G180+'FR-16(7)(v)-7 TRANS Demand'!G180+'FR-16(7)(v)-8 TRANS Energy'!G180+'FR-16(7)(v)-9 TRANS Cust'!G180+'FR-16(7)(v)-11 DIST Demand'!G180+'FR-16(7)(v)-12 DIST Energy'!G180+'FR-16(7)(v)-13 DIST Cust'!G180-'FR-16(7)(v)-14 TOTAL CLASS'!G180","v":0},{"$f":"'FR-16(7)(v)-3 PROD Demand'!H180+'FR-16(7)(v)-4 PROD Energy'!H180+'FR-16(7)(v)-5 PROD Cust'!H180+'FR-16(7)(v)-7 TRANS Demand'!H180+'FR-16(7)(v)-8 TRANS Energy'!H180+'FR-16(7)(v)-9 TRANS Cust'!H180+'FR-16(7)(v)-11 DIST Demand'!H180+'FR-16(7)(v)-12 DIST Energy'!H180+'FR-16(7)(v)-13 DIST Cust'!H180-'FR-16(7)(v)-14 TOTAL CLASS'!H180","v":0},{"$f":"'FR-16(7)(v)-3 PROD Demand'!I180+'FR-16(7)(v)-4 PROD Energy'!I180+'FR-16(7)(v)-5 PROD Cust'!I180+'FR-16(7)(v)-7 TRANS Demand'!I180+'FR-16(7)(v)-8 TRANS Energy'!I180+'FR-16(7)(v)-9 TRANS Cust'!I180+'FR-16(7)(v)-11 DIST Demand'!I180+'FR-16(7)(v)-12 DIST Energy'!I180+'FR-16(7)(v)-13 DIST Cust'!I180-'FR-16(7)(v)-14 TOTAL CLASS'!I180","v":0},{"$f":"'FR-16(7)(v)-3 PROD Demand'!J180+'FR-16(7)(v)-4 PROD Energy'!J180+'FR-16(7)(v)-5 PROD Cust'!J180+'FR-16(7)(v)-7 TRANS Demand'!J180+'FR-16(7)(v)-8 TRANS Energy'!J180+'FR-16(7)(v)-9 TRANS Cust'!J180+'FR-16(7)(v)-11 DIST Demand'!J180+'FR-16(7)(v)-12 DIST Energy'!J180+'FR-16(7)(v)-13 DIST Cust'!J180-'FR-16(7)(v)-14 TOTAL CLASS'!J180","v":0},{"$f":"'FR-16(7)(v)-3 PROD Demand'!K180+'FR-16(7)(v)-4 PROD Energy'!K180+'FR-16(7)(v)-5 PROD Cust'!K180+'FR-16(7)(v)-7 TRANS Demand'!K180+'FR-16(7)(v)-8 TRANS Energy'!K180+'FR-16(7)(v)-9 TRANS Cust'!K180+'FR-16(7)(v)-11 DIST Demand'!K180+'FR-16(7)(v)-12 DIST Energy'!K180+'FR-16(7)(v)-13 DIST Cust'!K180-'FR-16(7)(v)-14 TOTAL CLASS'!K180","v":0},{"$f":"'FR-16(7)(v)-3 PROD Demand'!L180+'FR-16(7)(v)-4 PROD Energy'!L180+'FR-16(7)(v)-5 PROD Cust'!L180+'FR-16(7)(v)-7 TRANS Demand'!L180+'FR-16(7)(v)-8 TRANS Energy'!L180+'FR-16(7)(v)-9 TRANS Cust'!L180+'FR-16(7)(v)-11 DIST Demand'!L180+'FR-16(7)(v)-12 DIST Energy'!L180+'FR-16(7)(v)-13 DIST Cust'!L180-'FR-16(7)(v)-14 TOTAL CLASS'!L180","v":0},{"$f":"'FR-16(7)(v)-3 PROD Demand'!M180+'FR-16(7)(v)-4 PROD Energy'!M180+'FR-16(7)(v)-5 PROD Cust'!M180+'FR-16(7)(v)-7 TRANS Demand'!M180+'FR-16(7)(v)-8 TRANS Energy'!M180+'FR-16(7)(v)-9 TRANS Cust'!M180+'FR-16(7)(v)-11 DIST Demand'!M180+'FR-16(7)(v)-12 DIST Energy'!M180+'FR-16(7)(v)-13 DIST Cust'!M180-'FR-16(7)(v)-14 TOTAL CLASS'!M180","v":0},{"$f":"'FR-16(7)(v)-3 PROD Demand'!N180+'FR-16(7)(v)-4 PROD Energy'!N180+'FR-16(7)(v)-5 PROD Cust'!N180+'FR-16(7)(v)-7 TRANS Demand'!N180+'FR-16(7)(v)-8 TRANS Energy'!N180+'FR-16(7)(v)-9 TRANS Cust'!N180+'FR-16(7)(v)-11 DIST Demand'!N180+'FR-16(7)(v)-12 DIST Energy'!N180+'FR-16(7)(v)-13 DIST Cust'!N180-'FR-16(7)(v)-14 TOTAL CLASS'!N180","v":0},{"$f":"'FR-16(7)(v)-3 PROD Demand'!O180+'FR-16(7)(v)-4 PROD Energy'!O180+'FR-16(7)(v)-5 PROD Cust'!O180+'FR-16(7)(v)-7 TRANS Demand'!O180+'FR-16(7)(v)-8 TRANS Energy'!O180+'FR-16(7)(v)-9 TRANS Cust'!O180+'FR-16(7)(v)-11 DIST Demand'!O180+'FR-16(7)(v)-12 DIST Energy'!O180+'FR-16(7)(v)-13 DIST Cust'!O180-'FR-16(7)(v)-14 TOTAL CLASS'!O180","v":0},{"$f":"'FR-16(7)(v)-3 PROD Demand'!P180+'FR-16(7)(v)-4 PROD Energy'!P180+'FR-16(7)(v)-5 PROD Cust'!P180+'FR-16(7)(v)-7 TRANS Demand'!P180+'FR-16(7)(v)-8 TRANS Energy'!P180+'FR-16(7)(v)-9 TRANS Cust'!P180+'FR-16(7)(v)-11 DIST Demand'!P180+'FR-16(7)(v)-12 DIST Energy'!P180+'FR-16(7)(v)-13 DIST Cust'!P180-'FR-16(7)(v)-14 TOTAL CLASS'!P180","v":0},{"$f":"'FR-16(7)(v)-3 PROD Demand'!Q180+'FR-16(7)(v)-4 PROD Energy'!Q180+'FR-16(7)(v)-5 PROD Cust'!Q180+'FR-16(7)(v)-7 TRANS Demand'!Q180+'FR-16(7)(v)-8 TRANS Energy'!Q180+'FR-16(7)(v)-9 TRANS Cust'!Q180+'FR-16(7)(v)-11 DIST Demand'!Q180+'FR-16(7)(v)-12 DIST Energy'!Q180+'FR-16(7)(v)-13 DIST Cust'!Q180-'FR-16(7)(v)-14 TOTAL CLASS'!Q180","v":0},0,0]
[47,null,{"$f":"'FR-16(7)(v)-1 Functional'!C181","v":"DISTRIBUTION - CUSTOMER"},"A300",null,{"$f":"'FR-16(7)(v)-3 PROD Demand'!F181+'FR-16(7)(v)-4 PROD Energy'!F181+'FR-16(7)(v)-5 PROD Cust'!F181+'FR-16(7)(v)-7 TRANS Demand'!F181+'FR-16(7)(v)-8 TRANS Energy'!F181+'FR-16(7)(v)-9 TRANS Cust'!F181+'FR-16(7)(v)-11 DIST Demand'!F181+'FR-16(7)(v)-12 DIST Energy'!F181+'FR-16(7)(v)-13 DIST Cust'!F181-'FR-16(7)(v)-14 TOTAL CLASS'!F181","v":0},{"$f":"'FR-16(7)(v)-3 PROD Demand'!G181+'FR-16(7)(v)-4 PROD Energy'!G181+'FR-16(7)(v)-5 PROD Cust'!G181+'FR-16(7)(v)-7 TRANS Demand'!G181+'FR-16(7)(v)-8 TRANS Energy'!G181+'FR-16(7)(v)-9 TRANS Cust'!G181+'FR-16(7)(v)-11 DIST Demand'!G181+'FR-16(7)(v)-12 DIST Energy'!G181+'FR-16(7)(v)-13 DIST Cust'!G181-'FR-16(7)(v)-14 TOTAL CLASS'!G181","v":0},{"$f":"'FR-16(7)(v)-3 PROD Demand'!H181+'FR-16(7)(v)-4 PROD Energy'!H181+'FR-16(7)(v)-5 PROD Cust'!H181+'FR-16(7)(v)-7 TRANS Demand'!H181+'FR-16(7)(v)-8 TRANS Energy'!H181+'FR-16(7)(v)-9 TRANS Cust'!H181+'FR-16(7)(v)-11 DIST Demand'!H181+'FR-16(7)(v)-12 DIST Energy'!H181+'FR-16(7)(v)-13 DIST Cust'!H181-'FR-16(7)(v)-14 TOTAL CLASS'!H181","v":0},{"$f":"'FR-16(7)(v)-3 PROD Demand'!I181+'FR-16(7)(v)-4 PROD Energy'!I181+'FR-16(7)(v)-5 PROD Cust'!I181+'FR-16(7)(v)-7 TRANS Demand'!I181+'FR-16(7)(v)-8 TRANS Energy'!I181+'FR-16(7)(v)-9 TRANS Cust'!I181+'FR-16(7)(v)-11 DIST Demand'!I181+'FR-16(7)(v)-12 DIST Energy'!I181+'FR-16(7)(v)-13 DIST Cust'!I181-'FR-16(7)(v)-14 TOTAL CLASS'!I181","v":0},{"$f":"'FR-16(7)(v)-3 PROD Demand'!J181+'FR-16(7)(v)-4 PROD Energy'!J181+'FR-16(7)(v)-5 PROD Cust'!J181+'FR-16(7)(v)-7 TRANS Demand'!J181+'FR-16(7)(v)-8 TRANS Energy'!J181+'FR-16(7)(v)-9 TRANS Cust'!J181+'FR-16(7)(v)-11 DIST Demand'!J181+'FR-16(7)(v)-12 DIST Energy'!J181+'FR-16(7)(v)-13 DIST Cust'!J181-'FR-16(7)(v)-14 TOTAL CLASS'!J181","v":0},{"$f":"'FR-16(7)(v)-3 PROD Demand'!K181+'FR-16(7)(v)-4 PROD Energy'!K181+'FR-16(7)(v)-5 PROD Cust'!K181+'FR-16(7)(v)-7 TRANS Demand'!K181+'FR-16(7)(v)-8 TRANS Energy'!K181+'FR-16(7)(v)-9 TRANS Cust'!K181+'FR-16(7)(v)-11 DIST Demand'!K181+'FR-16(7)(v)-12 DIST Energy'!K181+'FR-16(7)(v)-13 DIST Cust'!K181-'FR-16(7)(v)-14 TOTAL CLASS'!K181","v":0},{"$f":"'FR-16(7)(v)-3 PROD Demand'!L181+'FR-16(7)(v)-4 PROD Energy'!L181+'FR-16(7)(v)-5 PROD Cust'!L181+'FR-16(7)(v)-7 TRANS Demand'!L181+'FR-16(7)(v)-8 TRANS Energy'!L181+'FR-16(7)(v)-9 TRANS Cust'!L181+'FR-16(7)(v)-11 DIST Demand'!L181+'FR-16(7)(v)-12 DIST Energy'!L181+'FR-16(7)(v)-13 DIST Cust'!L181-'FR-16(7)(v)-14 TOTAL CLASS'!L181","v":0},{"$f":"'FR-16(7)(v)-3 PROD Demand'!M181+'FR-16(7)(v)-4 PROD Energy'!M181+'FR-16(7)(v)-5 PROD Cust'!M181+'FR-16(7)(v)-7 TRANS Demand'!M181+'FR-16(7)(v)-8 TRANS Energy'!M181+'FR-16(7)(v)-9 TRANS Cust'!M181+'FR-16(7)(v)-11 DIST Demand'!M181+'FR-16(7)(v)-12 DIST Energy'!M181+'FR-16(7)(v)-13 DIST Cust'!M181-'FR-16(7)(v)-14 TOTAL CLASS'!M181","v":0},{"$f":"'FR-16(7)(v)-3 PROD Demand'!N181+'FR-16(7)(v)-4 PROD Energy'!N181+'FR-16(7)(v)-5 PROD Cust'!N181+'FR-16(7)(v)-7 TRANS Demand'!N181+'FR-16(7)(v)-8 TRANS Energy'!N181+'FR-16(7)(v)-9 TRANS Cust'!N181+'FR-16(7)(v)-11 DIST Demand'!N181+'FR-16(7)(v)-12 DIST Energy'!N181+'FR-16(7)(v)-13 DIST Cust'!N181-'FR-16(7)(v)-14 TOTAL CLASS'!N181","v":0},{"$f":"'FR-16(7)(v)-3 PROD Demand'!O181+'FR-16(7)(v)-4 PROD Energy'!O181+'FR-16(7)(v)-5 PROD Cust'!O181+'FR-16(7)(v)-7 TRANS Demand'!O181+'FR-16(7)(v)-8 TRANS Energy'!O181+'FR-16(7)(v)-9 TRANS Cust'!O181+'FR-16(7)(v)-11 DIST Demand'!O181+'FR-16(7)(v)-12 DIST Energy'!O181+'FR-16(7)(v)-13 DIST Cust'!O181-'FR-16(7)(v)-14 TOTAL CLASS'!O181","v":0},{"$f":"'FR-16(7)(v)-3 PROD Demand'!P181+'FR-16(7)(v)-4 PROD Energy'!P181+'FR-16(7)(v)-5 PROD Cust'!P181+'FR-16(7)(v)-7 TRANS Demand'!P181+'FR-16(7)(v)-8 TRANS Energy'!P181+'FR-16(7)(v)-9 TRANS Cust'!P181+'FR-16(7)(v)-11 DIST Demand'!P181+'FR-16(7)(v)-12 DIST Energy'!P181+'FR-16(7)(v)-13 DIST Cust'!P181-'FR-16(7)(v)-14 TOTAL CLASS'!P181","v":0},{"$f":"'FR-16(7)(v)-3 PROD Demand'!Q181+'FR-16(7)(v)-4 PROD Energy'!Q181+'FR-16(7)(v)-5 PROD Cust'!Q181+'FR-16(7)(v)-7 TRANS Demand'!Q181+'FR-16(7)(v)-8 TRANS Energy'!Q181+'FR-16(7)(v)-9 TRANS Cust'!Q181+'FR-16(7)(v)-11 DIST Demand'!Q181+'FR-16(7)(v)-12 DIST Energy'!Q181+'FR-16(7)(v)-13 DIST Cust'!Q181-'FR-16(7)(v)-14 TOTAL CLASS'!Q181","v":0},0,0]
[48,null,{"$f":"'FR-16(7)(v)-1 Functional'!C182","v":"CUSTOMER ACCOUNTING"},"A300",null,{"$f":"'FR-16(7)(v)-3 PROD Demand'!F182+'FR-16(7)(v)-4 PROD Energy'!F182+'FR-16(7)(v)-5 PROD Cust'!F182+'FR-16(7)(v)-7 TRANS Demand'!F182+'FR-16(7)(v)-8 TRANS Energy'!F182+'FR-16(7)(v)-9 TRANS Cust'!F182+'FR-16(7)(v)-11 DIST Demand'!F182+'FR-16(7)(v)-12 DIST Energy'!F182+'FR-16(7)(v)-13 DIST Cust'!F182-'FR-16(7)(v)-14 TOTAL CLASS'!F182","v":0},{"$f":"'FR-16(7)(v)-3 PROD Demand'!G182+'FR-16(7)(v)-4 PROD Energy'!G182+'FR-16(7)(v)-5 PROD Cust'!G182+'FR-16(7)(v)-7 TRANS Demand'!G182+'FR-16(7)(v)-8 TRANS Energy'!G182+'FR-16(7)(v)-9 TRANS Cust'!G182+'FR-16(7)(v)-11 DIST Demand'!G182+'FR-16(7)(v)-12 DIST Energy'!G182+'FR-16(7)(v)-13 DIST Cust'!G182-'FR-16(7)(v)-14 TOTAL CLASS'!G182","v":0},{"$f":"'FR-16(7)(v)-3 PROD Demand'!H182+'FR-16(7)(v)-4 PROD Energy'!H182+'FR-16(7)(v)-5 PROD Cust'!H182+'FR-16(7)(v)-7 TRANS Demand'!H182+'FR-16(7)(v)-8 TRANS Energy'!H182+'FR-16(7)(v)-9 TRANS Cust'!H182+'FR-16(7)(v)-11 DIST Demand'!H182+'FR-16(7)(v)-12 DIST Energy'!H182+'FR-16(7)(v)-13 DIST Cust'!H182-'FR-16(7)(v)-14 TOTAL CLASS'!H182","v":0},{"$f":"'FR-16(7)(v)-3 PROD Demand'!I182+'FR-16(7)(v)-4 PROD Energy'!I182+'FR-16(7)(v)-5 PROD Cust'!I182+'FR-16(7)(v)-7 TRANS Demand'!I182+'FR-16(7)(v)-8 TRANS Energy'!I182+'FR-16(7)(v)-9 TRANS Cust'!I182+'FR-16(7)(v)-11 DIST Demand'!I182+'FR-16(7)(v)-12 DIST Energy'!I182+'FR-16(7)(v)-13 DIST Cust'!I182-'FR-16(7)(v)-14 TOTAL CLASS'!I182","v":0},{"$f":"'FR-16(7)(v)-3 PROD Demand'!J182+'FR-16(7)(v)-4 PROD Energy'!J182+'FR-16(7)(v)-5 PROD Cust'!J182+'FR-16(7)(v)-7 TRANS Demand'!J182+'FR-16(7)(v)-8 TRANS Energy'!J182+'FR-16(7)(v)-9 TRANS Cust'!J182+'FR-16(7)(v)-11 DIST Demand'!J182+'FR-16(7)(v)-12 DIST Energy'!J182+'FR-16(7)(v)-13 DIST Cust'!J182-'FR-16(7)(v)-14 TOTAL CLASS'!J182","v":0},{"$f":"'FR-16(7)(v)-3 PROD Demand'!K182+'FR-16(7)(v)-4 PROD Energy'!K182+'FR-16(7)(v)-5 PROD Cust'!K182+'FR-16(7)(v)-7 TRANS Demand'!K182+'FR-16(7)(v)-8 TRANS Energy'!K182+'FR-16(7)(v)-9 TRANS Cust'!K182+'FR-16(7)(v)-11 DIST Demand'!K182+'FR-16(7)(v)-12 DIST Energy'!K182+'FR-16(7)(v)-13 DIST Cust'!K182-'FR-16(7)(v)-14 TOTAL CLASS'!K182","v":0},{"$f":"'FR-16(7)(v)-3 PROD Demand'!L182+'FR-16(7)(v)-4 PROD Energy'!L182+'FR-16(7)(v)-5 PROD Cust'!L182+'FR-16(7)(v)-7 TRANS Demand'!L182+'FR-16(7)(v)-8 TRANS Energy'!L182+'FR-16(7)(v)-9 TRANS Cust'!L182+'FR-16(7)(v)-11 DIST Demand'!L182+'FR-16(7)(v)-12 DIST Energy'!L182+'FR-16(7)(v)-13 DIST Cust'!L182-'FR-16(7)(v)-14 TOTAL CLASS'!L182","v":0},{"$f":"'FR-16(7)(v)-3 PROD Demand'!M182+'FR-16(7)(v)-4 PROD Energy'!M182+'FR-16(7)(v)-5 PROD Cust'!M182+'FR-16(7)(v)-7 TRANS Demand'!M182+'FR-16(7)(v)-8 TRANS Energy'!M182+'FR-16(7)(v)-9 TRANS Cust'!M182+'FR-16(7)(v)-11 DIST Demand'!M182+'FR-16(7)(v)-12 DIST Energy'!M182+'FR-16(7)(v)-13 DIST Cust'!M182-'FR-16(7)(v)-14 TOTAL CLASS'!M182","v":0},{"$f":"'FR-16(7)(v)-3 PROD Demand'!N182+'FR-16(7)(v)-4 PROD Energy'!N182+'FR-16(7)(v)-5 PROD Cust'!N182+'FR-16(7)(v)-7 TRANS Demand'!N182+'FR-16(7)(v)-8 TRANS Energy'!N182+'FR-16(7)(v)-9 TRANS Cust'!N182+'FR-16(7)(v)-11 DIST Demand'!N182+'FR-16(7)(v)-12 DIST Energy'!N182+'FR-16(7)(v)-13 DIST Cust'!N182-'FR-16(7)(v)-14 TOTAL CLASS'!N182","v":0},{"$f":"'FR-16(7)(v)-3 PROD Demand'!O182+'FR-16(7)(v)-4 PROD Energy'!O182+'FR-16(7)(v)-5 PROD Cust'!O182+'FR-16(7)(v)-7 TRANS Demand'!O182+'FR-16(7)(v)-8 TRANS Energy'!O182+'FR-16(7)(v)-9 TRANS Cust'!O182+'FR-16(7)(v)-11 DIST Demand'!O182+'FR-16(7)(v)-12 DIST Energy'!O182+'FR-16(7)(v)-13 DIST Cust'!O182-'FR-16(7)(v)-14 TOTAL CLASS'!O182","v":0},{"$f":"'FR-16(7)(v)-3 PROD Demand'!P182+'FR-16(7)(v)-4 PROD Energy'!P182+'FR-16(7)(v)-5 PROD Cust'!P182+'FR-16(7)(v)-7 TRANS Demand'!P182+'FR-16(7)(v)-8 TRANS Energy'!P182+'FR-16(7)(v)-9 TRANS Cust'!P182+'FR-16(7)(v)-11 DIST Demand'!P182+'FR-16(7)(v)-12 DIST Energy'!P182+'FR-16(7)(v)-13 DIST Cust'!P182-'FR-16(7)(v)-14 TOTAL CLASS'!P182","v":0},{"$f":"'FR-16(7)(v)-3 PROD Demand'!Q182+'FR-16(7)(v)-4 PROD Energy'!Q182+'FR-16(7)(v)-5 PROD Cust'!Q182+'FR-16(7)(v)-7 TRANS Demand'!Q182+'FR-16(7)(v)-8 TRANS Energy'!Q182+'FR-16(7)(v)-9 TRANS Cust'!Q182+'FR-16(7)(v)-11 DIST Demand'!Q182+'FR-16(7)(v)-12 DIST Energy'!Q182+'FR-16(7)(v)-13 DIST Cust'!Q182-'FR-16(7)(v)-14 TOTAL CLASS'!Q182","v":0},0,0]
[49,null,{"$f":"'FR-16(7)(v)-1 Functional'!C183","v":"CUSTOMER SERVICE & INFORMATION"},"A300",null,{"$f":"'FR-16(7)(v)-3 PROD Demand'!F183+'FR-16(7)(v)-4 PROD Energy'!F183+'FR-16(7)(v)-5 PROD Cust'!F183+'FR-16(7)(v)-7 TRANS Demand'!F183+'FR-16(7)(v)-8 TRANS Energy'!F183+'FR-16(7)(v)-9 TRANS Cust'!F183+'FR-16(7)(v)-11 DIST Demand'!F183+'FR-16(7)(v)-12 DIST Energy'!F183+'FR-16(7)(v)-13 DIST Cust'!F183-'FR-16(7)(v)-14 TOTAL CLASS'!F183","v":0},{"$f":"'FR-16(7)(v)-3 PROD Demand'!G183+'FR-16(7)(v)-4 PROD Energy'!G183+'FR-16(7)(v)-5 PROD Cust'!G183+'FR-16(7)(v)-7 TRANS Demand'!G183+'FR-16(7)(v)-8 TRANS Energy'!G183+'FR-16(7)(v)-9 TRANS Cust'!G183+'FR-16(7)(v)-11 DIST Demand'!G183+'FR-16(7)(v)-12 DIST Energy'!G183+'FR-16(7)(v)-13 DIST Cust'!G183-'FR-16(7)(v)-14 TOTAL CLASS'!G183","v":0},{"$f":"'FR-16(7)(v)-3 PROD Demand'!H183+'FR-16(7)(v)-4 PROD Energy'!H183+'FR-16(7)(v)-5 PROD Cust'!H183+'FR-16(7)(v)-7 TRANS Demand'!H183+'FR-16(7)(v)-8 TRANS Energy'!H183+'FR-16(7)(v)-9 TRANS Cust'!H183+'FR-16(7)(v)-11 DIST Demand'!H183+'FR-16(7)(v)-12 DIST Energy'!H183+'FR-16(7)(v)-13 DIST Cust'!H183-'FR-16(7)(v)-14 TOTAL CLASS'!H183","v":0},{"$f":"'FR-16(7)(v)-3 PROD Demand'!I183+'FR-16(7)(v)-4 PROD Energy'!I183+'FR-16(7)(v)-5 PROD Cust'!I183+'FR-16(7)(v)-7 TRANS Demand'!I183+'FR-16(7)(v)-8 TRANS Energy'!I183+'FR-16(7)(v)-9 TRANS Cust'!I183+'FR-16(7)(v)-11 DIST Demand'!I183+'FR-16(7)(v)-12 DIST Energy'!I183+'FR-16(7)(v)-13 DIST Cust'!I183-'FR-16(7)(v)-14 TOTAL CLASS'!I183","v":0},{"$f":"'FR-16(7)(v)-3 PROD Demand'!J183+'FR-16(7)(v)-4 PROD Energy'!J183+'FR-16(7)(v)-5 PROD Cust'!J183+'FR-16(7)(v)-7 TRANS Demand'!J183+'FR-16(7)(v)-8 TRANS Energy'!J183+'FR-16(7)(v)-9 TRANS Cust'!J183+'FR-16(7)(v)-11 DIST Demand'!J183+'FR-16(7)(v)-12 DIST Energy'!J183+'FR-16(7)(v)-13 DIST Cust'!J183-'FR-16(7)(v)-14 TOTAL CLASS'!J183","v":0},{"$f":"'FR-16(7)(v)-3 PROD Demand'!K183+'FR-16(7)(v)-4 PROD Energy'!K183+'FR-16(7)(v)-5 PROD Cust'!K183+'FR-16(7)(v)-7 TRANS Demand'!K183+'FR-16(7)(v)-8 TRANS Energy'!K183+'FR-16(7)(v)-9 TRANS Cust'!K183+'FR-16(7)(v)-11 DIST Demand'!K183+'FR-16(7)(v)-12 DIST Energy'!K183+'FR-16(7)(v)-13 DIST Cust'!K183-'FR-16(7)(v)-14 TOTAL CLASS'!K183","v":0},{"$f":"'FR-16(7)(v)-3 PROD Demand'!L183+'FR-16(7)(v)-4 PROD Energy'!L183+'FR-16(7)(v)-5 PROD Cust'!L183+'FR-16(7)(v)-7 TRANS Demand'!L183+'FR-16(7)(v)-8 TRANS Energy'!L183+'FR-16(7)(v)-9 TRANS Cust'!L183+'FR-16(7)(v)-11 DIST Demand'!L183+'FR-16(7)(v)-12 DIST Energy'!L183+'FR-16(7)(v)-13 DIST Cust'!L183-'FR-16(7)(v)-14 TOTAL CLASS'!L183","v":0},{"$f":"'FR-16(7)(v)-3 PROD Demand'!M183+'FR-16(7)(v)-4 PROD Energy'!M183+'FR-16(7)(v)-5 PROD Cust'!M183+'FR-16(7)(v)-7 TRANS Demand'!M183+'FR-16(7)(v)-8 TRANS Energy'!M183+'FR-16(7)(v)-9 TRANS Cust'!M183+'FR-16(7)(v)-11 DIST Demand'!M183+'FR-16(7)(v)-12 DIST Energy'!M183+'FR-16(7)(v)-13 DIST Cust'!M183-'FR-16(7)(v)-14 TOTAL CLASS'!M183","v":0},{"$f":"'FR-16(7)(v)-3 PROD Demand'!N183+'FR-16(7)(v)-4 PROD Energy'!N183+'FR-16(7)(v)-5 PROD Cust'!N183+'FR-16(7)(v)-7 TRANS Demand'!N183+'FR-16(7)(v)-8 TRANS Energy'!N183+'FR-16(7)(v)-9 TRANS Cust'!N183+'FR-16(7)(v)-11 DIST Demand'!N183+'FR-16(7)(v)-12 DIST Energy'!N183+'FR-16(7)(v)-13 DIST Cust'!N183-'FR-16(7)(v)-14 TOTAL CLASS'!N183","v":0},{"$f":"'FR-16(7)(v)-3 PROD Demand'!O183+'FR-16(7)(v)-4 PROD Energy'!O183+'FR-16(7)(v)-5 PROD Cust'!O183+'FR-16(7)(v)-7 TRANS Demand'!O183+'FR-16(7)(v)-8 TRANS Energy'!O183+'FR-16(7)(v)-9 TRANS Cust'!O183+'FR-16(7)(v)-11 DIST Demand'!O183+'FR-16(7)(v)-12 DIST Energy'!O183+'FR-16(7)(v)-13 DIST Cust'!O183-'FR-16(7)(v)-14 TOTAL CLASS'!O183","v":0},{"$f":"'FR-16(7)(v)-3 PROD Demand'!P183+'FR-16(7)(v)-4 PROD Energy'!P183+'FR-16(7)(v)-5 PROD Cust'!P183+'FR-16(7)(v)-7 TRANS Demand'!P183+'FR-16(7)(v)-8 TRANS Energy'!P183+'FR-16(7)(v)-9 TRANS Cust'!P183+'FR-16(7)(v)-11 DIST Demand'!P183+'FR-16(7)(v)-12 DIST Energy'!P183+'FR-16(7)(v)-13 DIST Cust'!P183-'FR-16(7)(v)-14 TOTAL CLASS'!P183","v":0},{"$f":"'FR-16(7)(v)-3 PROD Demand'!Q183+'FR-16(7)(v)-4 PROD Energy'!Q183+'FR-16(7)(v)-5 PROD Cust'!Q183+'FR-16(7)(v)-7 TRANS Demand'!Q183+'FR-16(7)(v)-8 TRANS Energy'!Q183+'FR-16(7)(v)-9 TRANS Cust'!Q183+'FR-16(7)(v)-11 DIST Demand'!Q183+'FR-16(7)(v)-12 DIST Energy'!Q183+'FR-16(7)(v)-13 DIST Cust'!Q183-'FR-16(7)(v)-14 TOTAL CLASS'!Q183","v":0},0,0]
[50,null,{"$f":"'FR-16(7)(v)-1 Functional'!C184","v":"SALES"},"A300",null,{"$f":"'FR-16(7)(v)-3 PROD Demand'!F184+'FR-16(7)(v)-4 PROD Energy'!F184+'FR-16(7)(v)-5 PROD Cust'!F184+'FR-16(7)(v)-7 TRANS Demand'!F184+'FR-16(7)(v)-8 TRANS Energy'!F184+'FR-16(7)(v)-9 TRANS Cust'!F184+'FR-16(7)(v)-11 DIST Demand'!F184+'FR-16(7)(v)-12 DIST Energy'!F184+'FR-16(7)(v)-13 DIST Cust'!F184-'FR-16(7)(v)-14 TOTAL CLASS'!F184","v":0},{"$f":"'FR-16(7)(v)-3 PROD Demand'!G184+'FR-16(7)(v)-4 PROD Energy'!G184+'FR-16(7)(v)-5 PROD Cust'!G184+'FR-16(7)(v)-7 TRANS Demand'!G184+'FR-16(7)(v)-8 TRANS Energy'!G184+'FR-16(7)(v)-9 TRANS Cust'!G184+'FR-16(7)(v)-11 DIST Demand'!G184+'FR-16(7)(v)-12 DIST Energy'!G184+'FR-16(7)(v)-13 DIST Cust'!G184-'FR-16(7)(v)-14 TOTAL CLASS'!G184","v":0},{"$f":"'FR-16(7)(v)-3 PROD Demand'!H184+'FR-16(7)(v)-4 PROD Energy'!H184+'FR-16(7)(v)-5 PROD Cust'!H184+'FR-16(7)(v)-7 TRANS Demand'!H184+'FR-16(7)(v)-8 TRANS Energy'!H184+'FR-16(7)(v)-9 TRANS Cust'!H184+'FR-16(7)(v)-11 DIST Demand'!H184+'FR-16(7)(v)-12 DIST Energy'!H184+'FR-16(7)(v)-13 DIST Cust'!H184-'FR-16(7)(v)-14 TOTAL CLASS'!H184","v":0},{"$f":"'FR-16(7)(v)-3 PROD Demand'!I184+'FR-16(7)(v)-4 PROD Energy'!I184+'FR-16(7)(v)-5 PROD Cust'!I184+'FR-16(7)(v)-7 TRANS Demand'!I184+'FR-16(7)(v)-8 TRANS Energy'!I184+'FR-16(7)(v)-9 TRANS Cust'!I184+'FR-16(7)(v)-11 DIST Demand'!I184+'FR-16(7)(v)-12 DIST Energy'!I184+'FR-16(7)(v)-13 DIST Cust'!I184-'FR-16(7)(v)-14 TOTAL CLASS'!I184","v":0},{"$f":"'FR-16(7)(v)-3 PROD Demand'!J184+'FR-16(7)(v)-4 PROD Energy'!J184+'FR-16(7)(v)-5 PROD Cust'!J184+'FR-16(7)(v)-7 TRANS Demand'!J184+'FR-16(7)(v)-8 TRANS Energy'!J184+'FR-16(7)(v)-9 TRANS Cust'!J184+'FR-16(7)(v)-11 DIST Demand'!J184+'FR-16(7)(v)-12 DIST Energy'!J184+'FR-16(7)(v)-13 DIST Cust'!J184-'FR-16(7)(v)-14 TOTAL CLASS'!J184","v":0},{"$f":"'FR-16(7)(v)-3 PROD Demand'!K184+'FR-16(7)(v)-4 PROD Energy'!K184+'FR-16(7)(v)-5 PROD Cust'!K184+'FR-16(7)(v)-7 TRANS Demand'!K184+'FR-16(7)(v)-8 TRANS Energy'!K184+'FR-16(7)(v)-9 TRANS Cust'!K184+'FR-16(7)(v)-11 DIST Demand'!K184+'FR-16(7)(v)-12 DIST Energy'!K184+'FR-16(7)(v)-13 DIST Cust'!K184-'FR-16(7)(v)-14 TOTAL CLASS'!K184","v":0},{"$f":"'FR-16(7)(v)-3 PROD Demand'!L184+'FR-16(7)(v)-4 PROD Energy'!L184+'FR-16(7)(v)-5 PROD Cust'!L184+'FR-16(7)(v)-7 TRANS Demand'!L184+'FR-16(7)(v)-8 TRANS Energy'!L184+'FR-16(7)(v)-9 TRANS Cust'!L184+'FR-16(7)(v)-11 DIST Demand'!L184+'FR-16(7)(v)-12 DIST Energy'!L184+'FR-16(7)(v)-13 DIST Cust'!L184-'FR-16(7)(v)-14 TOTAL CLASS'!L184","v":0},{"$f":"'FR-16(7)(v)-3 PROD Demand'!M184+'FR-16(7)(v)-4 PROD Energy'!M184+'FR-16(7)(v)-5 PROD Cust'!M184+'FR-16(7)(v)-7 TRANS Demand'!M184+'FR-16(7)(v)-8 TRANS Energy'!M184+'FR-16(7)(v)-9 TRANS Cust'!M184+'FR-16(7)(v)-11 DIST Demand'!M184+'FR-16(7)(v)-12 DIST Energy'!M184+'FR-16(7)(v)-13 DIST Cust'!M184-'FR-16(7)(v)-14 TOTAL CLASS'!M184","v":0},{"$f":"'FR-16(7)(v)-3 PROD Demand'!N184+'FR-16(7)(v)-4 PROD Energy'!N184+'FR-16(7)(v)-5 PROD Cust'!N184+'FR-16(7)(v)-7 TRANS Demand'!N184+'FR-16(7)(v)-8 TRANS Energy'!N184+'FR-16(7)(v)-9 TRANS Cust'!N184+'FR-16(7)(v)-11 DIST Demand'!N184+'FR-16(7)(v)-12 DIST Energy'!N184+'FR-16(7)(v)-13 DIST Cust'!N184-'FR-16(7)(v)-14 TOTAL CLASS'!N184","v":0},{"$f":"'FR-16(7)(v)-3 PROD Demand'!O184+'FR-16(7)(v)-4 PROD Energy'!O184+'FR-16(7)(v)-5 PROD Cust'!O184+'FR-16(7)(v)-7 TRANS Demand'!O184+'FR-16(7)(v)-8 TRANS Energy'!O184+'FR-16(7)(v)-9 TRANS Cust'!O184+'FR-16(7)(v)-11 DIST Demand'!O184+'FR-16(7)(v)-12 DIST Energy'!O184+'FR-16(7)(v)-13 DIST Cust'!O184-'FR-16(7)(v)-14 TOTAL CLASS'!O184","v":0},{"$f":"'FR-16(7)(v)-3 PROD Demand'!P184+'FR-16(7)(v)-4 PROD Energy'!P184+'FR-16(7)(v)-5 PROD Cust'!P184+'FR-16(7)(v)-7 TRANS Demand'!P184+'FR-16(7)(v)-8 TRANS Energy'!P184+'FR-16(7)(v)-9 TRANS Cust'!P184+'FR-16(7)(v)-11 DIST Demand'!P184+'FR-16(7)(v)-12 DIST Energy'!P184+'FR-16(7)(v)-13 DIST Cust'!P184-'FR-16(7)(v)-14 TOTAL CLASS'!P184","v":0},{"$f":"'FR-16(7)(v)-3 PROD Demand'!Q184+'FR-16(7)(v)-4 PROD Energy'!Q184+'FR-16(7)(v)-5 PROD Cust'!Q184+'FR-16(7)(v)-7 TRANS Demand'!Q184+'FR-16(7)(v)-8 TRANS Energy'!Q184+'FR-16(7)(v)-9 TRANS Cust'!Q184+'FR-16(7)(v)-11 DIST Demand'!Q184+'FR-16(7)(v)-12 DIST Energy'!Q184+'FR-16(7)(v)-13 DIST Cust'!Q184-'FR-16(7)(v)-14 TOTAL CLASS'!Q184","v":0},0,0]
[51,null,{"$f":"'FR-16(7)(v)-1 Functional'!C185","v":"ADJUSTMENT"},"A300",null,{"$f":"'FR-16(7)(v)-3 PROD Demand'!F185+'FR-16(7)(v)-4 PROD Energy'!F185+'FR-16(7)(v)-5 PROD Cust'!F185+'FR-16(7)(v)-7 TRANS Demand'!F185+'FR-16(7)(v)-8 TRANS Energy'!F185+'FR-16(7)(v)-9 TRANS Cust'!F185+'FR-16(7)(v)-11 DIST Demand'!F185+'FR-16(7)(v)-12 DIST Energy'!F185+'FR-16(7)(v)-13 DIST Cust'!F185-'FR-16(7)(v)-14 TOTAL CLASS'!F185","v":0},{"$f":"'FR-16(7)(v)-3 PROD Demand'!G185+'FR-16(7)(v)-4 PROD Energy'!G185+'FR-16(7)(v)-5 PROD Cust'!G185+'FR-16(7)(v)-7 TRANS Demand'!G185+'FR-16(7)(v)-8 TRANS Energy'!G185+'FR-16(7)(v)-9 TRANS Cust'!G185+'FR-16(7)(v)-11 DIST Demand'!G185+'FR-16(7)(v)-12 DIST Energy'!G185+'FR-16(7)(v)-13 DIST Cust'!G185-'FR-16(7)(v)-14 TOTAL CLASS'!G185","v":0},{"$f":"'FR-16(7)(v)-3 PROD Demand'!H185+'FR-16(7)(v)-4 PROD Energy'!H185+'FR-16(7)(v)-5 PROD Cust'!H185+'FR-16(7)(v)-7 TRANS Demand'!H185+'FR-16(7)(v)-8 TRANS Energy'!H185+'FR-16(7)(v)-9 TRANS Cust'!H185+'FR-16(7)(v)-11 DIST Demand'!H185+'FR-16(7)(v)-12 DIST Energy'!H185+'FR-16(7)(v)-13 DIST Cust'!H185-'FR-16(7)(v)-14 TOTAL CLASS'!H185","v":0},{"$f":"'FR-16(7)(v)-3 PROD Demand'!I185+'FR-16(7)(v)-4 PROD Energy'!I185+'FR-16(7)(v)-5 PROD Cust'!I185+'FR-16(7)(v)-7 TRANS Demand'!I185+'FR-16(7)(v)-8 TRANS Energy'!I185+'FR-16(7)(v)-9 TRANS Cust'!I185+'FR-16(7)(v)-11 DIST Demand'!I185+'FR-16(7)(v)-12 DIST Energy'!I185+'FR-16(7)(v)-13 DIST Cust'!I185-'FR-16(7)(v)-14 TOTAL CLASS'!I185","v":0},{"$f":"'FR-16(7)(v)-3 PROD Demand'!J185+'FR-16(7)(v)-4 PROD Energy'!J185+'FR-16(7)(v)-5 PROD Cust'!J185+'FR-16(7)(v)-7 TRANS Demand'!J185+'FR-16(7)(v)-8 TRANS Energy'!J185+'FR-16(7)(v)-9 TRANS Cust'!J185+'FR-16(7)(v)-11 DIST Demand'!J185+'FR-16(7)(v)-12 DIST Energy'!J185+'FR-16(7)(v)-13 DIST Cust'!J185-'FR-16(7)(v)-14 TOTAL CLASS'!J185","v":0},{"$f":"'FR-16(7)(v)-3 PROD Demand'!K185+'FR-16(7)(v)-4 PROD Energy'!K185+'FR-16(7)(v)-5 PROD Cust'!K185+'FR-16(7)(v)-7 TRANS Demand'!K185+'FR-16(7)(v)-8 TRANS Energy'!K185+'FR-16(7)(v)-9 TRANS Cust'!K185+'FR-16(7)(v)-11 DIST Demand'!K185+'FR-16(7)(v)-12 DIST Energy'!K185+'FR-16(7)(v)-13 DIST Cust'!K185-'FR-16(7)(v)-14 TOTAL CLASS'!K185","v":0},{"$f":"'FR-16(7)(v)-3 PROD Demand'!L185+'FR-16(7)(v)-4 PROD Energy'!L185+'FR-16(7)(v)-5 PROD Cust'!L185+'FR-16(7)(v)-7 TRANS Demand'!L185+'FR-16(7)(v)-8 TRANS Energy'!L185+'FR-16(7)(v)-9 TRANS Cust'!L185+'FR-16(7)(v)-11 DIST Demand'!L185+'FR-16(7)(v)-12 DIST Energy'!L185+'FR-16(7)(v)-13 DIST Cust'!L185-'FR-16(7)(v)-14 TOTAL CLASS'!L185","v":0},{"$f":"'FR-16(7)(v)-3 PROD Demand'!M185+'FR-16(7)(v)-4 PROD Energy'!M185+'FR-16(7)(v)-5 PROD Cust'!M185+'FR-16(7)(v)-7 TRANS Demand'!M185+'FR-16(7)(v)-8 TRANS Energy'!M185+'FR-16(7)(v)-9 TRANS Cust'!M185+'FR-16(7)(v)-11 DIST Demand'!M185+'FR-16(7)(v)-12 DIST Energy'!M185+'FR-16(7)(v)-13 DIST Cust'!M185-'FR-16(7)(v)-14 TOTAL CLASS'!M185","v":0},{"$f":"'FR-16(7)(v)-3 PROD Demand'!N185+'FR-16(7)(v)-4 PROD Energy'!N185+'FR-16(7)(v)-5 PROD Cust'!N185+'FR-16(7)(v)-7 TRANS Demand'!N185+'FR-16(7)(v)-8 TRANS Energy'!N185+'FR-16(7)(v)-9 TRANS Cust'!N185+'FR-16(7)(v)-11 DIST Demand'!N185+'FR-16(7)(v)-12 DIST Energy'!N185+'FR-16(7)(v)-13 DIST Cust'!N185-'FR-16(7)(v)-14 TOTAL CLASS'!N185","v":0},{"$f":"'FR-16(7)(v)-3 PROD Demand'!O185+'FR-16(7)(v)-4 PROD Energy'!O185+'FR-16(7)(v)-5 PROD Cust'!O185+'FR-16(7)(v)-7 TRANS Demand'!O185+'FR-16(7)(v)-8 TRANS Energy'!O185+'FR-16(7)(v)-9 TRANS Cust'!O185+'FR-16(7)(v)-11 DIST Demand'!O185+'FR-16(7)(v)-12 DIST Energy'!O185+'FR-16(7)(v)-13 DIST Cust'!O185-'FR-16(7)(v)-14 TOTAL CLASS'!O185","v":0},{"$f":"'FR-16(7)(v)-3 PROD Demand'!P185+'FR-16(7)(v)-4 PROD Energy'!P185+'FR-16(7)(v)-5 PROD Cust'!P185+'FR-16(7)(v)-7 TRANS Demand'!P185+'FR-16(7)(v)-8 TRANS Energy'!P185+'FR-16(7)(v)-9 TRANS Cust'!P185+'FR-16(7)(v)-11 DIST Demand'!P185+'FR-16(7)(v)-12 DIST Energy'!P185+'FR-16(7)(v)-13 DIST Cust'!P185-'FR-16(7)(v)-14 TOTAL CLASS'!P185","v":0},{"$f":"'FR-16(7)(v)-3 PROD Demand'!Q185+'FR-16(7)(v)-4 PROD Energy'!Q185+'FR-16(7)(v)-5 PROD Cust'!Q185+'FR-16(7)(v)-7 TRANS Demand'!Q185+'FR-16(7)(v)-8 TRANS Energy'!Q185+'FR-16(7)(v)-9 TRANS Cust'!Q185+'FR-16(7)(v)-11 DIST Demand'!Q185+'FR-16(7)(v)-12 DIST Energy'!Q185+'FR-16(7)(v)-13 DIST Cust'!Q185-'FR-16(7)(v)-14 TOTAL CLASS'!Q185","v":0},0,0]
[52,null,"  GENERAL & INTANG PLANT",null,null,{"$f":"SUM(F176:F185)","v":0},{"$f":"SUM(G176:G185)","v":0},0,0,{"$f":"SUM(J176:J185)","v":0},0,0,0,0,0,0,0,0,0]
[53]
[54,"COMMON & OTHER PLANT"]
[55,null,{"$f":"'FR-16(7)(v)-1 Functional'!C189","v":"PRODUCTION - DEMAND"},"A300",null,{"$f":"'FR-16(7)(v)-3 PROD Demand'!F189+'FR-16(7)(v)-4 PROD Energy'!F189+'FR-16(7)(v)-5 PROD Cust'!F189+'FR-16(7)(v)-7 TRANS Demand'!F189+'FR-16(7)(v)-8 TRANS Energy'!F189+'FR-16(7)(v)-9 TRANS Cust'!F189+'FR-16(7)(v)-11 DIST Demand'!F189+'FR-16(7)(v)-12 DIST Energy'!F189+'FR-16(7)(v)-13 DIST Cust'!F189-'FR-16(7)(v)-14 TOTAL CLASS'!F189","v":0},{"$f":"'FR-16(7)(v)-3 PROD Demand'!G189+'FR-16(7)(v)-4 PROD Energy'!G189+'FR-16(7)(v)-5 PROD Cust'!G189+'FR-16(7)(v)-7 TRANS Demand'!G189+'FR-16(7)(v)-8 TRANS Energy'!G189+'FR-16(7)(v)-9 TRANS Cust'!G189+'FR-16(7)(v)-11 DIST Demand'!G189+'FR-16(7)(v)-12 DIST Energy'!G189+'FR-16(7)(v)-13 DIST Cust'!G189-'FR-16(7)(v)-14 TOTAL CLASS'!G189","v":0},{"$f":"'FR-16(7)(v)-3 PROD Demand'!H189+'FR-16(7)(v)-4 PROD Energy'!H189+'FR-16(7)(v)-5 PROD Cust'!H189+'FR-16(7)(v)-7 TRANS Demand'!H189+'FR-16(7)(v)-8 TRANS Energy'!H189+'FR-16(7)(v)-9 TRANS Cust'!H189+'FR-16(7)(v)-11 DIST Demand'!H189+'FR-16(7)(v)-12 DIST Energy'!H189+'FR-16(7)(v)-13 DIST Cust'!H189-'FR-16(7)(v)-14 TOTAL CLASS'!H189","v":0},{"$f":"'FR-16(7)(v)-3 PROD Demand'!I189+'FR-16(7)(v)-4 PROD Energy'!I189+'FR-16(7)(v)-5 PROD Cust'!I189+'FR-16(7)(v)-7 TRANS Demand'!I189+'FR-16(7)(v)-8 TRANS Energy'!I189+'FR-16(7)(v)-9 TRANS Cust'!I189+'FR-16(7)(v)-11 DIST Demand'!I189+'FR-16(7)(v)-12 DIST Energy'!I189+'FR-16(7)(v)-13 DIST Cust'!I189-'FR-16(7)(v)-14 TOTAL CLASS'!I189","v":0},{"$f":"'FR-16(7)(v)-3 PROD Demand'!J189+'FR-16(7)(v)-4 PROD Energy'!J189+'FR-16(7)(v)-5 PROD Cust'!J189+'FR-16(7)(v)-7 TRANS Demand'!J189+'FR-16(7)(v)-8 TRANS Energy'!J189+'FR-16(7)(v)-9 TRANS Cust'!J189+'FR-16(7)(v)-11 DIST Demand'!J189+'FR-16(7)(v)-12 DIST Energy'!J189+'FR-16(7)(v)-13 DIST Cust'!J189-'FR-16(7)(v)-14 TOTAL CLASS'!J189","v":0},{"$f":"'FR-16(7)(v)-3 PROD Demand'!K189+'FR-16(7)(v)-4 PROD Energy'!K189+'FR-16(7)(v)-5 PROD Cust'!K189+'FR-16(7)(v)-7 TRANS Demand'!K189+'FR-16(7)(v)-8 TRANS Energy'!K189+'FR-16(7)(v)-9 TRANS Cust'!K189+'FR-16(7)(v)-11 DIST Demand'!K189+'FR-16(7)(v)-12 DIST Energy'!K189+'FR-16(7)(v)-13 DIST Cust'!K189-'FR-16(7)(v)-14 TOTAL CLASS'!K189","v":0},{"$f":"'FR-16(7)(v)-3 PROD Demand'!L189+'FR-16(7)(v)-4 PROD Energy'!L189+'FR-16(7)(v)-5 PROD Cust'!L189+'FR-16(7)(v)-7 TRANS Demand'!L189+'FR-16(7)(v)-8 TRANS Energy'!L189+'FR-16(7)(v)-9 TRANS Cust'!L189+'FR-16(7)(v)-11 DIST Demand'!L189+'FR-16(7)(v)-12 DIST Energy'!L189+'FR-16(7)(v)-13 DIST Cust'!L189-'FR-16(7)(v)-14 TOTAL CLASS'!L189","v":0},{"$f":"'FR-16(7)(v)-3 PROD Demand'!M189+'FR-16(7)(v)-4 PROD Energy'!M189+'FR-16(7)(v)-5 PROD Cust'!M189+'FR-16(7)(v)-7 TRANS Demand'!M189+'FR-16(7)(v)-8 TRANS Energy'!M189+'FR-16(7)(v)-9 TRANS Cust'!M189+'FR-16(7)(v)-11 DIST Demand'!M189+'FR-16(7)(v)-12 DIST Energy'!M189+'FR-16(7)(v)-13 DIST Cust'!M189-'FR-16(7)(v)-14 TOTAL CLASS'!M189","v":0},{"$f":"'FR-16(7)(v)-3 PROD Demand'!N189+'FR-16(7)(v)-4 PROD Energy'!N189+'FR-16(7)(v)-5 PROD Cust'!N189+'FR-16(7)(v)-7 TRANS Demand'!N189+'FR-16(7)(v)-8 TRANS Energy'!N189+'FR-16(7)(v)-9 TRANS Cust'!N189+'FR-16(7)(v)-11 DIST Demand'!N189+'FR-16(7)(v)-12 DIST Energy'!N189+'FR-16(7)(v)-13 DIST Cust'!N189-'FR-16(7)(v)-14 TOTAL CLASS'!N189","v":0},{"$f":"'FR-16(7)(v)-3 PROD Demand'!O189+'FR-16(7)(v)-4 PROD Energy'!O189+'FR-16(7)(v)-5 PROD Cust'!O189+'FR-16(7)(v)-7 TRANS Demand'!O189+'FR-16(7)(v)-8 TRANS Energy'!O189+'FR-16(7)(v)-9 TRANS Cust'!O189+'FR-16(7)(v)-11 DIST Demand'!O189+'FR-16(7)(v)-12 DIST Energy'!O189+'FR-16(7)(v)-13 DIST Cust'!O189-'FR-16(7)(v)-14 TOTAL CLASS'!O189","v":0},{"$f":"'FR-16(7)(v)-3 PROD Demand'!P189+'FR-16(7)(v)-4 PROD Energy'!P189+'FR-16(7)(v)-5 PROD Cust'!P189+'FR-16(7)(v)-7 TRANS Demand'!P189+'FR-16(7)(v)-8 TRANS Energy'!P189+'FR-16(7)(v)-9 TRANS Cust'!P189+'FR-16(7)(v)-11 DIST Demand'!P189+'FR-16(7)(v)-12 DIST Energy'!P189+'FR-16(7)(v)-13 DIST Cust'!P189-'FR-16(7)(v)-14 TOTAL CLASS'!P189","v":0},{"$f":"'FR-16(7)(v)-3 PROD Demand'!Q189+'FR-16(7)(v)-4 PROD Energy'!Q189+'FR-16(7)(v)-5 PROD Cust'!Q189+'FR-16(7)(v)-7 TRANS Demand'!Q189+'FR-16(7)(v)-8 TRANS Energy'!Q189+'FR-16(7)(v)-9 TRANS Cust'!Q189+'FR-16(7)(v)-11 DIST Demand'!Q189+'FR-16(7)(v)-12 DIST Energy'!Q189+'FR-16(7)(v)-13 DIST Cust'!Q189-'FR-16(7)(v)-14 TOTAL CLASS'!Q189","v":0},{"$f":"SUM(G189:Q189)","v":0},{"$f":"F189-R189","v":0}]
[56,null,{"$f":"'FR-16(7)(v)-1 Functional'!C190","v":"PRODUCTION - ENERGY"},"A300",null,{"$f":"'FR-16(7)(v)-3 PROD Demand'!F190+'FR-16(7)(v)-4 PROD Energy'!F190+'FR-16(7)(v)-5 PROD Cust'!F190+'FR-16(7)(v)-7 TRANS Demand'!F190+'FR-16(7)(v)-8 TRANS Energy'!F190+'FR-16(7)(v)-9 TRANS Cust'!F190+'FR-16(7)(v)-11 DIST Demand'!F190+'FR-16(7)(v)-12 DIST Energy'!F190+'FR-16(7)(v)-13 DIST Cust'!F190-'FR-16(7)(v)-14 TOTAL CLASS'!F190","v":0},{"$f":"'FR-16(7)(v)-3 PROD Demand'!G190+'FR-16(7)(v)-4 PROD Energy'!G190+'FR-16(7)(v)-5 PROD Cust'!G190+'FR-16(7)(v)-7 TRANS Demand'!G190+'FR-16(7)(v)-8 TRANS Energy'!G190+'FR-16(7)(v)-9 TRANS Cust'!G190+'FR-16(7)(v)-11 DIST Demand'!G190+'FR-16(7)(v)-12 DIST Energy'!G190+'FR-16(7)(v)-13 DIST Cust'!G190-'FR-16(7)(v)-14 TOTAL CLASS'!G190","v":0},{"$f":"'FR-16(7)(v)-3 PROD Demand'!H190+'FR-16(7)(v)-4 PROD Energy'!H190+'FR-16(7)(v)-5 PROD Cust'!H190+'FR-16(7)(v)-7 TRANS Demand'!H190+'FR-16(7)(v)-8 TRANS Energy'!H190+'FR-16(7)(v)-9 TRANS Cust'!H190+'FR-16(7)(v)-11 DIST Demand'!H190+'FR-16(7)(v)-12 DIST Energy'!H190+'FR-16(7)(v)-13 DIST Cust'!H190-'FR-16(7)(v)-14 TOTAL CLASS'!H190","v":0},{"$f":"'FR-16(7)(v)-3 PROD Demand'!I190+'FR-16(7)(v)-4 PROD Energy'!I190+'FR-16(7)(v)-5 PROD Cust'!I190+'FR-16(7)(v)-7 TRANS Demand'!I190+'FR-16(7)(v)-8 TRANS Energy'!I190+'FR-16(7)(v)-9 TRANS Cust'!I190+'FR-16(7)(v)-11 DIST Demand'!I190+'FR-16(7)(v)-12 DIST Energy'!I190+'FR-16(7)(v)-13 DIST Cust'!I190-'FR-16(7)(v)-14 TOTAL CLASS'!I190","v":0},{"$f":"'FR-16(7)(v)-3 PROD Demand'!J190+'FR-16(7)(v)-4 PROD Energy'!J190+'FR-16(7)(v)-5 PROD Cust'!J190+'FR-16(7)(v)-7 TRANS Demand'!J190+'FR-16(7)(v)-8 TRANS Energy'!J190+'FR-16(7)(v)-9 TRANS Cust'!J190+'FR-16(7)(v)-11 DIST Demand'!J190+'FR-16(7)(v)-12 DIST Energy'!J190+'FR-16(7)(v)-13 DIST Cust'!J190-'FR-16(7)(v)-14 TOTAL CLASS'!J190","v":0},{"$f":"'FR-16(7)(v)-3 PROD Demand'!K190+'FR-16(7)(v)-4 PROD Energy'!K190+'FR-16(7)(v)-5 PROD Cust'!K190+'FR-16(7)(v)-7 TRANS Demand'!K190+'FR-16(7)(v)-8 TRANS Energy'!K190+'FR-16(7)(v)-9 TRANS Cust'!K190+'FR-16(7)(v)-11 DIST Demand'!K190+'FR-16(7)(v)-12 DIST Energy'!K190+'FR-16(7)(v)-13 DIST Cust'!K190-'FR-16(7)(v)-14 TOTAL CLASS'!K190","v":0},{"$f":"'FR-16(7)(v)-3 PROD Demand'!L190+'FR-16(7)(v)-4 PROD Energy'!L190+'FR-16(7)(v)-5 PROD Cust'!L190+'FR-16(7)(v)-7 TRANS Demand'!L190+'FR-16(7)(v)-8 TRANS Energy'!L190+'FR-16(7)(v)-9 TRANS Cust'!L190+'FR-16(7)(v)-11 DIST Demand'!L190+'FR-16(7)(v)-12 DIST Energy'!L190+'FR-16(7)(v)-13 DIST Cust'!L190-'FR-16(7)(v)-14 TOTAL CLASS'!L190","v":0},{"$f":"'FR-16(7)(v)-3 PROD Demand'!M190+'FR-16(7)(v)-4 PROD Energy'!M190+'FR-16(7)(v)-5 PROD Cust'!M190+'FR-16(7)(v)-7 TRANS Demand'!M190+'FR-16(7)(v)-8 TRANS Energy'!M190+'FR-16(7)(v)-9 TRANS Cust'!M190+'FR-16(7)(v)-11 DIST Demand'!M190+'FR-16(7)(v)-12 DIST Energy'!M190+'FR-16(7)(v)-13 DIST Cust'!M190-'FR-16(7)(v)-14 TOTAL CLASS'!M190","v":0},{"$f":"'FR-16(7)(v)-3 PROD Demand'!N190+'FR-16(7)(v)-4 PROD Energy'!N190+'FR-16(7)(v)-5 PROD Cust'!N190+'FR-16(7)(v)-7 TRANS Demand'!N190+'FR-16(7)(v)-8 TRANS Energy'!N190+'FR-16(7)(v)-9 TRANS Cust'!N190+'FR-16(7)(v)-11 DIST Demand'!N190+'FR-16(7)(v)-12 DIST Energy'!N190+'FR-16(7)(v)-13 DIST Cust'!N190-'FR-16(7)(v)-14 TOTAL CLASS'!N190","v":0},{"$f":"'FR-16(7)(v)-3 PROD Demand'!O190+'FR-16(7)(v)-4 PROD Energy'!O190+'FR-16(7)(v)-5 PROD Cust'!O190+'FR-16(7)(v)-7 TRANS Demand'!O190+'FR-16(7)(v)-8 TRANS Energy'!O190+'FR-16(7)(v)-9 TRANS Cust'!O190+'FR-16(7)(v)-11 DIST Demand'!O190+'FR-16(7)(v)-12 DIST Energy'!O190+'FR-16(7)(v)-13 DIST Cust'!O190-'FR-16(7)(v)-14 TOTAL CLASS'!O190","v":0},{"$f":"'FR-16(7)(v)-3 PROD Demand'!P190+'FR-16(7)(v)-4 PROD Energy'!P190+'FR-16(7)(v)-5 PROD Cust'!P190+'FR-16(7)(v)-7 TRANS Demand'!P190+'FR-16(7)(v)-8 TRANS Energy'!P190+'FR-16(7)(v)-9 TRANS Cust'!P190+'FR-16(7)(v)-11 DIST Demand'!P190+'FR-16(7)(v)-12 DIST Energy'!P190+'FR-16(7)(v)-13 DIST Cust'!P190-'FR-16(7)(v)-14 TOTAL CLASS'!P190","v":0},{"$f":"'FR-16(7)(v)-3 PROD Demand'!Q190+'FR-16(7)(v)-4 PROD Energy'!Q190+'FR-16(7)(v)-5 PROD Cust'!Q190+'FR-16(7)(v)-7 TRANS Demand'!Q190+'FR-16(7)(v)-8 TRANS Energy'!Q190+'FR-16(7)(v)-9 TRANS Cust'!Q190+'FR-16(7)(v)-11 DIST Demand'!Q190+'FR-16(7)(v)-12 DIST Energy'!Q190+'FR-16(7)(v)-13 DIST Cust'!Q190-'FR-16(7)(v)-14 TOTAL CLASS'!Q190","v":0},0,0]
[57,null,{"$f":"'FR-16(7)(v)-1 Functional'!C191","v":"TRANSMISSION"},"A300",null,{"$f":"'FR-16(7)(v)-3 PROD Demand'!F191+'FR-16(7)(v)-4 PROD Energy'!F191+'FR-16(7)(v)-5 PROD Cust'!F191+'FR-16(7)(v)-7 TRANS Demand'!F191+'FR-16(7)(v)-8 TRANS Energy'!F191+'FR-16(7)(v)-9 TRANS Cust'!F191+'FR-16(7)(v)-11 DIST Demand'!F191+'FR-16(7)(v)-12 DIST Energy'!F191+'FR-16(7)(v)-13 DIST Cust'!F191-'FR-16(7)(v)-14 TOTAL CLASS'!F191","v":0},{"$f":"'FR-16(7)(v)-3 PROD Demand'!G191+'FR-16(7)(v)-4 PROD Energy'!G191+'FR-16(7)(v)-5 PROD Cust'!G191+'FR-16(7)(v)-7 TRANS Demand'!G191+'FR-16(7)(v)-8 TRANS Energy'!G191+'FR-16(7)(v)-9 TRANS Cust'!G191+'FR-16(7)(v)-11 DIST Demand'!G191+'FR-16(7)(v)-12 DIST Energy'!G191+'FR-16(7)(v)-13 DIST Cust'!G191-'FR-16(7)(v)-14 TOTAL CLASS'!G191","v":0},{"$f":"'FR-16(7)(v)-3 PROD Demand'!H191+'FR-16(7)(v)-4 PROD Energy'!H191+'FR-16(7)(v)-5 PROD Cust'!H191+'FR-16(7)(v)-7 TRANS Demand'!H191+'FR-16(7)(v)-8 TRANS Energy'!H191+'FR-16(7)(v)-9 TRANS Cust'!H191+'FR-16(7)(v)-11 DIST Demand'!H191+'FR-16(7)(v)-12 DIST Energy'!H191+'FR-16(7)(v)-13 DIST Cust'!H191-'FR-16(7)(v)-14 TOTAL CLASS'!H191","v":0},{"$f":"'FR-16(7)(v)-3 PROD Demand'!I191+'FR-16(7)(v)-4 PROD Energy'!I191+'FR-16(7)(v)-5 PROD Cust'!I191+'FR-16(7)(v)-7 TRANS Demand'!I191+'FR-16(7)(v)-8 TRANS Energy'!I191+'FR-16(7)(v)-9 TRANS Cust'!I191+'FR-16(7)(v)-11 DIST Demand'!I191+'FR-16(7)(v)-12 DIST Energy'!I191+'FR-16(7)(v)-13 DIST Cust'!I191-'FR-16(7)(v)-14 TOTAL CLASS'!I191","v":0},{"$f":"'FR-16(7)(v)-3 PROD Demand'!J191+'FR-16(7)(v)-4 PROD Energy'!J191+'FR-16(7)(v)-5 PROD Cust'!J191+'FR-16(7)(v)-7 TRANS Demand'!J191+'FR-16(7)(v)-8 TRANS Energy'!J191+'FR-16(7)(v)-9 TRANS Cust'!J191+'FR-16(7)(v)-11 DIST Demand'!J191+'FR-16(7)(v)-12 DIST Energy'!J191+'FR-16(7)(v)-13 DIST Cust'!J191-'FR-16(7)(v)-14 TOTAL CLASS'!J191","v":0},{"$f":"'FR-16(7)(v)-3 PROD Demand'!K191+'FR-16(7)(v)-4 PROD Energy'!K191+'FR-16(7)(v)-5 PROD Cust'!K191+'FR-16(7)(v)-7 TRANS Demand'!K191+'FR-16(7)(v)-8 TRANS Energy'!K191+'FR-16(7)(v)-9 TRANS Cust'!K191+'FR-16(7)(v)-11 DIST Demand'!K191+'FR-16(7)(v)-12 DIST Energy'!K191+'FR-16(7)(v)-13 DIST Cust'!K191-'FR-16(7)(v)-14 TOTAL CLASS'!K191","v":0},{"$f":"'FR-16(7)(v)-3 PROD Demand'!L191+'FR-16(7)(v)-4 PROD Energy'!L191+'FR-16(7)(v)-5 PROD Cust'!L191+'FR-16(7)(v)-7 TRANS Demand'!L191+'FR-16(7)(v)-8 TRANS Energy'!L191+'FR-16(7)(v)-9 TRANS Cust'!L191+'FR-16(7)(v)-11 DIST Demand'!L191+'FR-16(7)(v)-12 DIST Energy'!L191+'FR-16(7)(v)-13 DIST Cust'!L191-'FR-16(7)(v)-14 TOTAL CLASS'!L191","v":0},{"$f":"'FR-16(7)(v)-3 PROD Demand'!M191+'FR-16(7)(v)-4 PROD Energy'!M191+'FR-16(7)(v)-5 PROD Cust'!M191+'FR-16(7)(v)-7 TRANS Demand'!M191+'FR-16(7)(v)-8 TRANS Energy'!M191+'FR-16(7)(v)-9 TRANS Cust'!M191+'FR-16(7)(v)-11 DIST Demand'!M191+'FR-16(7)(v)-12 DIST Energy'!M191+'FR-16(7)(v)-13 DIST Cust'!M191-'FR-16(7)(v)-14 TOTAL CLASS'!M191","v":0},{"$f":"'FR-16(7)(v)-3 PROD Demand'!N191+'FR-16(7)(v)-4 PROD Energy'!N191+'FR-16(7)(v)-5 PROD Cust'!N191+'FR-16(7)(v)-7 TRANS Demand'!N191+'FR-16(7)(v)-8 TRANS Energy'!N191+'FR-16(7)(v)-9 TRANS Cust'!N191+'FR-16(7)(v)-11 DIST Demand'!N191+'FR-16(7)(v)-12 DIST Energy'!N191+'FR-16(7)(v)-13 DIST Cust'!N191-'FR-16(7)(v)-14 TOTAL CLASS'!N191","v":0},{"$f":"'FR-16(7)(v)-3 PROD Demand'!O191+'FR-16(7)(v)-4 PROD Energy'!O191+'FR-16(7)(v)-5 PROD Cust'!O191+'FR-16(7)(v)-7 TRANS Demand'!O191+'FR-16(7)(v)-8 TRANS Energy'!O191+'FR-16(7)(v)-9 TRANS Cust'!O191+'FR-16(7)(v)-11 DIST Demand'!O191+'FR-16(7)(v)-12 DIST Energy'!O191+'FR-16(7)(v)-13 DIST Cust'!O191-'FR-16(7)(v)-14 TOTAL CLASS'!O191","v":0},{"$f":"'FR-16(7)(v)-3 PROD Demand'!P191+'FR-16(7)(v)-4 PROD Energy'!P191+'FR-16(7)(v)-5 PROD Cust'!P191+'FR-16(7)(v)-7 TRANS Demand'!P191+'FR-16(7)(v)-8 TRANS Energy'!P191+'FR-16(7)(v)-9 TRANS Cust'!P191+'FR-16(7)(v)-11 DIST Demand'!P191+'FR-16(7)(v)-12 DIST Energy'!P191+'FR-16(7)(v)-13 DIST Cust'!P191-'FR-16(7)(v)-14 TOTAL CLASS'!P191","v":0},{"$f":"'FR-16(7)(v)-3 PROD Demand'!Q191+'FR-16(7)(v)-4 PROD Energy'!Q191+'FR-16(7)(v)-5 PROD Cust'!Q191+'FR-16(7)(v)-7 TRANS Demand'!Q191+'FR-16(7)(v)-8 TRANS Energy'!Q191+'FR-16(7)(v)-9 TRANS Cust'!Q191+'FR-16(7)(v)-11 DIST Demand'!Q191+'FR-16(7)(v)-12 DIST Energy'!Q191+'FR-16(7)(v)-13 DIST Cust'!Q191-'FR-16(7)(v)-14 TOTAL CLASS'!Q191","v":0},0,0]
[58,null,{"$f":"'FR-16(7)(v)-1 Functional'!C192","v":"DISTRIBUTION - DEMAND"},"A300",null,{"$f":"'FR-16(7)(v)-3 PROD Demand'!F192+'FR-16(7)(v)-4 PROD Energy'!F192+'FR-16(7)(v)-5 PROD Cust'!F192+'FR-16(7)(v)-7 TRANS Demand'!F192+'FR-16(7)(v)-8 TRANS Energy'!F192+'FR-16(7)(v)-9 TRANS Cust'!F192+'FR-16(7)(v)-11 DIST Demand'!F192+'FR-16(7)(v)-12 DIST Energy'!F192+'FR-16(7)(v)-13 DIST Cust'!F192-'FR-16(7)(v)-14 TOTAL CLASS'!F192","v":0},{"$f":"'FR-16(7)(v)-3 PROD Demand'!G192+'FR-16(7)(v)-4 PROD Energy'!G192+'FR-16(7)(v)-5 PROD Cust'!G192+'FR-16(7)(v)-7 TRANS Demand'!G192+'FR-16(7)(v)-8 TRANS Energy'!G192+'FR-16(7)(v)-9 TRANS Cust'!G192+'FR-16(7)(v)-11 DIST Demand'!G192+'FR-16(7)(v)-12 DIST Energy'!G192+'FR-16(7)(v)-13 DIST Cust'!G192-'FR-16(7)(v)-14 TOTAL CLASS'!G192","v":0},{"$f":"'FR-16(7)(v)-3 PROD Demand'!H192+'FR-16(7)(v)-4 PROD Energy'!H192+'FR-16(7)(v)-5 PROD Cust'!H192+'FR-16(7)(v)-7 TRANS Demand'!H192+'FR-16(7)(v)-8 TRANS Energy'!H192+'FR-16(7)(v)-9 TRANS Cust'!H192+'FR-16(7)(v)-11 DIST Demand'!H192+'FR-16(7)(v)-12 DIST Energy'!H192+'FR-16(7)(v)-13 DIST Cust'!H192-'FR-16(7)(v)-14 TOTAL CLASS'!H192","v":0},{"$f":"'FR-16(7)(v)-3 PROD Demand'!I192+'FR-16(7)(v)-4 PROD Energy'!I192+'FR-16(7)(v)-5 PROD Cust'!I192+'FR-16(7)(v)-7 TRANS Demand'!I192+'FR-16(7)(v)-8 TRANS Energy'!I192+'FR-16(7)(v)-9 TRANS Cust'!I192+'FR-16(7)(v)-11 DIST Demand'!I192+'FR-16(7)(v)-12 DIST Energy'!I192+'FR-16(7)(v)-13 DIST Cust'!I192-'FR-16(7)(v)-14 TOTAL CLASS'!I192","v":0},{"$f":"'FR-16(7)(v)-3 PROD Demand'!J192+'FR-16(7)(v)-4 PROD Energy'!J192+'FR-16(7)(v)-5 PROD Cust'!J192+'FR-16(7)(v)-7 TRANS Demand'!J192+'FR-16(7)(v)-8 TRANS Energy'!J192+'FR-16(7)(v)-9 TRANS Cust'!J192+'FR-16(7)(v)-11 DIST Demand'!J192+'FR-16(7)(v)-12 DIST Energy'!J192+'FR-16(7)(v)-13 DIST Cust'!J192-'FR-16(7)(v)-14 TOTAL CLASS'!J192","v":0},{"$f":"'FR-16(7)(v)-3 PROD Demand'!K192+'FR-16(7)(v)-4 PROD Energy'!K192+'FR-16(7)(v)-5 PROD Cust'!K192+'FR-16(7)(v)-7 TRANS Demand'!K192+'FR-16(7)(v)-8 TRANS Energy'!K192+'FR-16(7)(v)-9 TRANS Cust'!K192+'FR-16(7)(v)-11 DIST Demand'!K192+'FR-16(7)(v)-12 DIST Energy'!K192+'FR-16(7)(v)-13 DIST Cust'!K192-'FR-16(7)(v)-14 TOTAL CLASS'!K192","v":0},{"$f":"'FR-16(7)(v)-3 PROD Demand'!L192+'FR-16(7)(v)-4 PROD Energy'!L192+'FR-16(7)(v)-5 PROD Cust'!L192+'FR-16(7)(v)-7 TRANS Demand'!L192+'FR-16(7)(v)-8 TRANS Energy'!L192+'FR-16(7)(v)-9 TRANS Cust'!L192+'FR-16(7)(v)-11 DIST Demand'!L192+'FR-16(7)(v)-12 DIST Energy'!L192+'FR-16(7)(v)-13 DIST Cust'!L192-'FR-16(7)(v)-14 TOTAL CLASS'!L192","v":0},{"$f":"'FR-16(7)(v)-3 PROD Demand'!M192+'FR-16(7)(v)-4 PROD Energy'!M192+'FR-16(7)(v)-5 PROD Cust'!M192+'FR-16(7)(v)-7 TRANS Demand'!M192+'FR-16(7)(v)-8 TRANS Energy'!M192+'FR-16(7)(v)-9 TRANS Cust'!M192+'FR-16(7)(v)-11 DIST Demand'!M192+'FR-16(7)(v)-12 DIST Energy'!M192+'FR-16(7)(v)-13 DIST Cust'!M192-'FR-16(7)(v)-14 TOTAL CLASS'!M192","v":0},{"$f":"'FR-16(7)(v)-3 PROD Demand'!N192+'FR-16(7)(v)-4 PROD Energy'!N192+'FR-16(7)(v)-5 PROD Cust'!N192+'FR-16(7)(v)-7 TRANS Demand'!N192+'FR-16(7)(v)-8 TRANS Energy'!N192+'FR-16(7)(v)-9 TRANS Cust'!N192+'FR-16(7)(v)-11 DIST Demand'!N192+'FR-16(7)(v)-12 DIST Energy'!N192+'FR-16(7)(v)-13 DIST Cust'!N192-'FR-16(7)(v)-14 TOTAL CLASS'!N192","v":0},{"$f":"'FR-16(7)(v)-3 PROD Demand'!O192+'FR-16(7)(v)-4 PROD Energy'!O192+'FR-16(7)(v)-5 PROD Cust'!O192+'FR-16(7)(v)-7 TRANS Demand'!O192+'FR-16(7)(v)-8 TRANS Energy'!O192+'FR-16(7)(v)-9 TRANS Cust'!O192+'FR-16(7)(v)-11 DIST Demand'!O192+'FR-16(7)(v)-12 DIST Energy'!O192+'FR-16(7)(v)-13 DIST Cust'!O192-'FR-16(7)(v)-14 TOTAL CLASS'!O192","v":0},{"$f":"'FR-16(7)(v)-3 PROD Demand'!P192+'FR-16(7)(v)-4 PROD Energy'!P192+'FR-16(7)(v)-5 PROD Cust'!P192+'FR-16(7)(v)-7 TRANS Demand'!P192+'FR-16(7)(v)-8 TRANS Energy'!P192+'FR-16(7)(v)-9 TRANS Cust'!P192+'FR-16(7)(v)-11 DIST Demand'!P192+'FR-16(7)(v)-12 DIST Energy'!P192+'FR-16(7)(v)-13 DIST Cust'!P192-'FR-16(7)(v)-14 TOTAL CLASS'!P192","v":0},{"$f":"'FR-16(7)(v)-3 PROD Demand'!Q192+'FR-16(7)(v)-4 PROD Energy'!Q192+'FR-16(7)(v)-5 PROD Cust'!Q192+'FR-16(7)(v)-7 TRANS Demand'!Q192+'FR-16(7)(v)-8 TRANS Energy'!Q192+'FR-16(7)(v)-9 TRANS Cust'!Q192+'FR-16(7)(v)-11 DIST Demand'!Q192+'FR-16(7)(v)-12 DIST Energy'!Q192+'FR-16(7)(v)-13 DIST Cust'!Q192-'FR-16(7)(v)-14 TOTAL CLASS'!Q192","v":0},0,0]
[59,null,{"$f":"'FR-16(7)(v)-1 Functional'!C193","v":"DISTRIBUTION - CUSTOMER"},"A300",null,{"$f":"'FR-16(7)(v)-3 PROD Demand'!F193+'FR-16(7)(v)-4 PROD Energy'!F193+'FR-16(7)(v)-5 PROD Cust'!F193+'FR-16(7)(v)-7 TRANS Demand'!F193+'FR-16(7)(v)-8 TRANS Energy'!F193+'FR-16(7)(v)-9 TRANS Cust'!F193+'FR-16(7)(v)-11 DIST Demand'!F193+'FR-16(7)(v)-12 DIST Energy'!F193+'FR-16(7)(v)-13 DIST Cust'!F193-'FR-16(7)(v)-14 TOTAL CLASS'!F193","v":0},{"$f":"'FR-16(7)(v)-3 PROD Demand'!G193+'FR-16(7)(v)-4 PROD Energy'!G193+'FR-16(7)(v)-5 PROD Cust'!G193+'FR-16(7)(v)-7 TRANS Demand'!G193+'FR-16(7)(v)-8 TRANS Energy'!G193+'FR-16(7)(v)-9 TRANS Cust'!G193+'FR-16(7)(v)-11 DIST Demand'!G193+'FR-16(7)(v)-12 DIST Energy'!G193+'FR-16(7)(v)-13 DIST Cust'!G193-'FR-16(7)(v)-14 TOTAL CLASS'!G193","v":0},{"$f":"'FR-16(7)(v)-3 PROD Demand'!H193+'FR-16(7)(v)-4 PROD Energy'!H193+'FR-16(7)(v)-5 PROD Cust'!H193+'FR-16(7)(v)-7 TRANS Demand'!H193+'FR-16(7)(v)-8 TRANS Energy'!H193+'FR-16(7)(v)-9 TRANS Cust'!H193+'FR-16(7)(v)-11 DIST Demand'!H193+'FR-16(7)(v)-12 DIST Energy'!H193+'FR-16(7)(v)-13 DIST Cust'!H193-'FR-16(7)(v)-14 TOTAL CLASS'!H193","v":0},{"$f":"'FR-16(7)(v)-3 PROD Demand'!I193+'FR-16(7)(v)-4 PROD Energy'!I193+'FR-16(7)(v)-5 PROD Cust'!I193+'FR-16(7)(v)-7 TRANS Demand'!I193+'FR-16(7)(v)-8 TRANS Energy'!I193+'FR-16(7)(v)-9 TRANS Cust'!I193+'FR-16(7)(v)-11 DIST Demand'!I193+'FR-16(7)(v)-12 DIST Energy'!I193+'FR-16(7)(v)-13 DIST Cust'!I193-'FR-16(7)(v)-14 TOTAL CLASS'!I193","v":0},{"$f":"'FR-16(7)(v)-3 PROD Demand'!J193+'FR-16(7)(v)-4 PROD Energy'!J193+'FR-16(7)(v)-5 PROD Cust'!J193+'FR-16(7)(v)-7 TRANS Demand'!J193+'FR-16(7)(v)-8 TRANS Energy'!J193+'FR-16(7)(v)-9 TRANS Cust'!J193+'FR-16(7)(v)-11 DIST Demand'!J193+'FR-16(7)(v)-12 DIST Energy'!J193+'FR-16(7)(v)-13 DIST Cust'!J193-'FR-16(7)(v)-14 TOTAL CLASS'!J193","v":0},{"$f":"'FR-16(7)(v)-3 PROD Demand'!K193+'FR-16(7)(v)-4 PROD Energy'!K193+'FR-16(7)(v)-5 PROD Cust'!K193+'FR-16(7)(v)-7 TRANS Demand'!K193+'FR-16(7)(v)-8 TRANS Energy'!K193+'FR-16(7)(v)-9 TRANS Cust'!K193+'FR-16(7)(v)-11 DIST Demand'!K193+'FR-16(7)(v)-12 DIST Energy'!K193+'FR-16(7)(v)-13 DIST Cust'!K193-'FR-16(7)(v)-14 TOTAL CLASS'!K193","v":0},{"$f":"'FR-16(7)(v)-3 PROD Demand'!L193+'FR-16(7)(v)-4 PROD Energy'!L193+'FR-16(7)(v)-5 PROD Cust'!L193+'FR-16(7)(v)-7 TRANS Demand'!L193+'FR-16(7)(v)-8 TRANS Energy'!L193+'FR-16(7)(v)-9 TRANS Cust'!L193+'FR-16(7)(v)-11 DIST Demand'!L193+'FR-16(7)(v)-12 DIST Energy'!L193+'FR-16(7)(v)-13 DIST Cust'!L193-'FR-16(7)(v)-14 TOTAL CLASS'!L193","v":0},{"$f":"'FR-16(7)(v)-3 PROD Demand'!M193+'FR-16(7)(v)-4 PROD Energy'!M193+'FR-16(7)(v)-5 PROD Cust'!M193+'FR-16(7)(v)-7 TRANS Demand'!M193+'FR-16(7)(v)-8 TRANS Energy'!M193+'FR-16(7)(v)-9 TRANS Cust'!M193+'FR-16(7)(v)-11 DIST Demand'!M193+'FR-16(7)(v)-12 DIST Energy'!M193+'FR-16(7)(v)-13 DIST Cust'!M193-'FR-16(7)(v)-14 TOTAL CLASS'!M193","v":0},{"$f":"'FR-16(7)(v)-3 PROD Demand'!N193+'FR-16(7)(v)-4 PROD Energy'!N193+'FR-16(7)(v)-5 PROD Cust'!N193+'FR-16(7)(v)-7 TRANS Demand'!N193+'FR-16(7)(v)-8 TRANS Energy'!N193+'FR-16(7)(v)-9 TRANS Cust'!N193+'FR-16(7)(v)-11 DIST Demand'!N193+'FR-16(7)(v)-12 DIST Energy'!N193+'FR-16(7)(v)-13 DIST Cust'!N193-'FR-16(7)(v)-14 TOTAL CLASS'!N193","v":0},{"$f":"'FR-16(7)(v)-3 PROD Demand'!O193+'FR-16(7)(v)-4 PROD Energy'!O193+'FR-16(7)(v)-5 PROD Cust'!O193+'FR-16(7)(v)-7 TRANS Demand'!O193+'FR-16(7)(v)-8 TRANS Energy'!O193+'FR-16(7)(v)-9 TRANS Cust'!O193+'FR-16(7)(v)-11 DIST Demand'!O193+'FR-16(7)(v)-12 DIST Energy'!O193+'FR-16(7)(v)-13 DIST Cust'!O193-'FR-16(7)(v)-14 TOTAL CLASS'!O193","v":0},{"$f":"'FR-16(7)(v)-3 PROD Demand'!P193+'FR-16(7)(v)-4 PROD Energy'!P193+'FR-16(7)(v)-5 PROD Cust'!P193+'FR-16(7)(v)-7 TRANS Demand'!P193+'FR-16(7)(v)-8 TRANS Energy'!P193+'FR-16(7)(v)-9 TRANS Cust'!P193+'FR-16(7)(v)-11 DIST Demand'!P193+'FR-16(7)(v)-12 DIST Energy'!P193+'FR-16(7)(v)-13 DIST Cust'!P193-'FR-16(7)(v)-14 TOTAL CLASS'!P193","v":0},{"$f":"'FR-16(7)(v)-3 PROD Demand'!Q193+'FR-16(7)(v)-4 PROD Energy'!Q193+'FR-16(7)(v)-5 PROD Cust'!Q193+'FR-16(7)(v)-7 TRANS Demand'!Q193+'FR-16(7)(v)-8 TRANS Energy'!Q193+'FR-16(7)(v)-9 TRANS Cust'!Q193+'FR-16(7)(v)-11 DIST Demand'!Q193+'FR-16(7)(v)-12 DIST Energy'!Q193+'FR-16(7)(v)-13 DIST Cust'!Q193-'FR-16(7)(v)-14 TOTAL CLASS'!Q193","v":0},0,0]
[60,null,{"$f":"'FR-16(7)(v)-1 Functional'!C194","v":"CUSTOMER ACCOUNTING"},"A300",null,{"$f":"'FR-16(7)(v)-3 PROD Demand'!F194+'FR-16(7)(v)-4 PROD Energy'!F194+'FR-16(7)(v)-5 PROD Cust'!F194+'FR-16(7)(v)-7 TRANS Demand'!F194+'FR-16(7)(v)-8 TRANS Energy'!F194+'FR-16(7)(v)-9 TRANS Cust'!F194+'FR-16(7)(v)-11 DIST Demand'!F194+'FR-16(7)(v)-12 DIST Energy'!F194+'FR-16(7)(v)-13 DIST Cust'!F194-'FR-16(7)(v)-14 TOTAL CLASS'!F194","v":0},{"$f":"'FR-16(7)(v)-3 PROD Demand'!G194+'FR-16(7)(v)-4 PROD Energy'!G194+'FR-16(7)(v)-5 PROD Cust'!G194+'FR-16(7)(v)-7 TRANS Demand'!G194+'FR-16(7)(v)-8 TRANS Energy'!G194+'FR-16(7)(v)-9 TRANS Cust'!G194+'FR-16(7)(v)-11 DIST Demand'!G194+'FR-16(7)(v)-12 DIST Energy'!G194+'FR-16(7)(v)-13 DIST Cust'!G194-'FR-16(7)(v)-14 TOTAL CLASS'!G194","v":0},{"$f":"'FR-16(7)(v)-3 PROD Demand'!H194+'FR-16(7)(v)-4 PROD Energy'!H194+'FR-16(7)(v)-5 PROD Cust'!H194+'FR-16(7)(v)-7 TRANS Demand'!H194+'FR-16(7)(v)-8 TRANS Energy'!H194+'FR-16(7)(v)-9 TRANS Cust'!H194+'FR-16(7)(v)-11 DIST Demand'!H194+'FR-16(7)(v)-12 DIST Energy'!H194+'FR-16(7)(v)-13 DIST Cust'!H194-'FR-16(7)(v)-14 TOTAL CLASS'!H194","v":0},{"$f":"'FR-16(7)(v)-3 PROD Demand'!I194+'FR-16(7)(v)-4 PROD Energy'!I194+'FR-16(7)(v)-5 PROD Cust'!I194+'FR-16(7)(v)-7 TRANS Demand'!I194+'FR-16(7)(v)-8 TRANS Energy'!I194+'FR-16(7)(v)-9 TRANS Cust'!I194+'FR-16(7)(v)-11 DIST Demand'!I194+'FR-16(7)(v)-12 DIST Energy'!I194+'FR-16(7)(v)-13 DIST Cust'!I194-'FR-16(7)(v)-14 TOTAL CLASS'!I194","v":0},{"$f":"'FR-16(7)(v)-3 PROD Demand'!J194+'FR-16(7)(v)-4 PROD Energy'!J194+'FR-16(7)(v)-5 PROD Cust'!J194+'FR-16(7)(v)-7 TRANS Demand'!J194+'FR-16(7)(v)-8 TRANS Energy'!J194+'FR-16(7)(v)-9 TRANS Cust'!J194+'FR-16(7)(v)-11 DIST Demand'!J194+'FR-16(7)(v)-12 DIST Energy'!J194+'FR-16(7)(v)-13 DIST Cust'!J194-'FR-16(7)(v)-14 TOTAL CLASS'!J194","v":0},{"$f":"'FR-16(7)(v)-3 PROD Demand'!K194+'FR-16(7)(v)-4 PROD Energy'!K194+'FR-16(7)(v)-5 PROD Cust'!K194+'FR-16(7)(v)-7 TRANS Demand'!K194+'FR-16(7)(v)-8 TRANS Energy'!K194+'FR-16(7)(v)-9 TRANS Cust'!K194+'FR-16(7)(v)-11 DIST Demand'!K194+'FR-16(7)(v)-12 DIST Energy'!K194+'FR-16(7)(v)-13 DIST Cust'!K194-'FR-16(7)(v)-14 TOTAL CLASS'!K194","v":0},{"$f":"'FR-16(7)(v)-3 PROD Demand'!L194+'FR-16(7)(v)-4 PROD Energy'!L194+'FR-16(7)(v)-5 PROD Cust'!L194+'FR-16(7)(v)-7 TRANS Demand'!L194+'FR-16(7)(v)-8 TRANS Energy'!L194+'FR-16(7)(v)-9 TRANS Cust'!L194+'FR-16(7)(v)-11 DIST Demand'!L194+'FR-16(7)(v)-12 DIST Energy'!L194+'FR-16(7)(v)-13 DIST Cust'!L194-'FR-16(7)(v)-14 TOTAL CLASS'!L194","v":0},{"$f":"'FR-16(7)(v)-3 PROD Demand'!M194+'FR-16(7)(v)-4 PROD Energy'!M194+'FR-16(7)(v)-5 PROD Cust'!M194+'FR-16(7)(v)-7 TRANS Demand'!M194+'FR-16(7)(v)-8 TRANS Energy'!M194+'FR-16(7)(v)-9 TRANS Cust'!M194+'FR-16(7)(v)-11 DIST Demand'!M194+'FR-16(7)(v)-12 DIST Energy'!M194+'FR-16(7)(v)-13 DIST Cust'!M194-'FR-16(7)(v)-14 TOTAL CLASS'!M194","v":0},{"$f":"'FR-16(7)(v)-3 PROD Demand'!N194+'FR-16(7)(v)-4 PROD Energy'!N194+'FR-16(7)(v)-5 PROD Cust'!N194+'FR-16(7)(v)-7 TRANS Demand'!N194+'FR-16(7)(v)-8 TRANS Energy'!N194+'FR-16(7)(v)-9 TRANS Cust'!N194+'FR-16(7)(v)-11 DIST Demand'!N194+'FR-16(7)(v)-12 DIST Energy'!N194+'FR-16(7)(v)-13 DIST Cust'!N194-'FR-16(7)(v)-14 TOTAL CLASS'!N194","v":0},{"$f":"'FR-16(7)(v)-3 PROD Demand'!O194+'FR-16(7)(v)-4 PROD Energy'!O194+'FR-16(7)(v)-5 PROD Cust'!O194+'FR-16(7)(v)-7 TRANS Demand'!O194+'FR-16(7)(v)-8 TRANS Energy'!O194+'FR-16(7)(v)-9 TRANS Cust'!O194+'FR-16(7)(v)-11 DIST Demand'!O194+'FR-16(7)(v)-12 DIST Energy'!O194+'FR-16(7)(v)-13 DIST Cust'!O194-'FR-16(7)(v)-14 TOTAL CLASS'!O194","v":0},{"$f":"'FR-16(7)(v)-3 PROD Demand'!P194+'FR-16(7)(v)-4 PROD Energy'!P194+'FR-16(7)(v)-5 PROD Cust'!P194+'FR-16(7)(v)-7 TRANS Demand'!P194+'FR-16(7)(v)-8 TRANS Energy'!P194+'FR-16(7)(v)-9 TRANS Cust'!P194+'FR-16(7)(v)-11 DIST Demand'!P194+'FR-16(7)(v)-12 DIST Energy'!P194+'FR-16(7)(v)-13 DIST Cust'!P194-'FR-16(7)(v)-14 TOTAL CLASS'!P194","v":0},{"$f":"'FR-16(7)(v)-3 PROD Demand'!Q194+'FR-16(7)(v)-4 PROD Energy'!Q194+'FR-16(7)(v)-5 PROD Cust'!Q194+'FR-16(7)(v)-7 TRANS Demand'!Q194+'FR-16(7)(v)-8 TRANS Energy'!Q194+'FR-16(7)(v)-9 TRANS Cust'!Q194+'FR-16(7)(v)-11 DIST Demand'!Q194+'FR-16(7)(v)-12 DIST Energy'!Q194+'FR-16(7)(v)-13 DIST Cust'!Q194-'FR-16(7)(v)-14 TOTAL CLASS'!Q194","v":0},0,0]
[61,null,{"$f":"'FR-16(7)(v)-1 Functional'!C195","v":"CUSTOMER SERVICE & INFORMATION"},"A300",null,{"$f":"'FR-16(7)(v)-3 PROD Demand'!F195+'FR-16(7)(v)-4 PROD Energy'!F195+'FR-16(7)(v)-5 PROD Cust'!F195+'FR-16(7)(v)-7 TRANS Demand'!F195+'FR-16(7)(v)-8 TRANS Energy'!F195+'FR-16(7)(v)-9 TRANS Cust'!F195+'FR-16(7)(v)-11 DIST Demand'!F195+'FR-16(7)(v)-12 DIST Energy'!F195+'FR-16(7)(v)-13 DIST Cust'!F195-'FR-16(7)(v)-14 TOTAL CLASS'!F195","v":0},{"$f":"'FR-16(7)(v)-3 PROD Demand'!G195+'FR-16(7)(v)-4 PROD Energy'!G195+'FR-16(7)(v)-5 PROD Cust'!G195+'FR-16(7)(v)-7 TRANS Demand'!G195+'FR-16(7)(v)-8 TRANS Energy'!G195+'FR-16(7)(v)-9 TRANS Cust'!G195+'FR-16(7)(v)-11 DIST Demand'!G195+'FR-16(7)(v)-12 DIST Energy'!G195+'FR-16(7)(v)-13 DIST Cust'!G195-'FR-16(7)(v)-14 TOTAL CLASS'!G195","v":0},{"$f":"'FR-16(7)(v)-3 PROD Demand'!H195+'FR-16(7)(v)-4 PROD Energy'!H195+'FR-16(7)(v)-5 PROD Cust'!H195+'FR-16(7)(v)-7 TRANS Demand'!H195+'FR-16(7)(v)-8 TRANS Energy'!H195+'FR-16(7)(v)-9 TRANS Cust'!H195+'FR-16(7)(v)-11 DIST Demand'!H195+'FR-16(7)(v)-12 DIST Energy'!H195+'FR-16(7)(v)-13 DIST Cust'!H195-'FR-16(7)(v)-14 TOTAL CLASS'!H195","v":0},{"$f":"'FR-16(7)(v)-3 PROD Demand'!I195+'FR-16(7)(v)-4 PROD Energy'!I195+'FR-16(7)(v)-5 PROD Cust'!I195+'FR-16(7)(v)-7 TRANS Demand'!I195+'FR-16(7)(v)-8 TRANS Energy'!I195+'FR-16(7)(v)-9 TRANS Cust'!I195+'FR-16(7)(v)-11 DIST Demand'!I195+'FR-16(7)(v)-12 DIST Energy'!I195+'FR-16(7)(v)-13 DIST Cust'!I195-'FR-16(7)(v)-14 TOTAL CLASS'!I195","v":0},{"$f":"'FR-16(7)(v)-3 PROD Demand'!J195+'FR-16(7)(v)-4 PROD Energy'!J195+'FR-16(7)(v)-5 PROD Cust'!J195+'FR-16(7)(v)-7 TRANS Demand'!J195+'FR-16(7)(v)-8 TRANS Energy'!J195+'FR-16(7)(v)-9 TRANS Cust'!J195+'FR-16(7)(v)-11 DIST Demand'!J195+'FR-16(7)(v)-12 DIST Energy'!J195+'FR-16(7)(v)-13 DIST Cust'!J195-'FR-16(7)(v)-14 TOTAL CLASS'!J195","v":0},{"$f":"'FR-16(7)(v)-3 PROD Demand'!K195+'FR-16(7)(v)-4 PROD Energy'!K195+'FR-16(7)(v)-5 PROD Cust'!K195+'FR-16(7)(v)-7 TRANS Demand'!K195+'FR-16(7)(v)-8 TRANS Energy'!K195+'FR-16(7)(v)-9 TRANS Cust'!K195+'FR-16(7)(v)-11 DIST Demand'!K195+'FR-16(7)(v)-12 DIST Energy'!K195+'FR-16(7)(v)-13 DIST Cust'!K195-'FR-16(7)(v)-14 TOTAL CLASS'!K195","v":0},{"$f":"'FR-16(7)(v)-3 PROD Demand'!L195+'FR-16(7)(v)-4 PROD Energy'!L195+'FR-16(7)(v)-5 PROD Cust'!L195+'FR-16(7)(v)-7 TRANS Demand'!L195+'FR-16(7)(v)-8 TRANS Energy'!L195+'FR-16(7)(v)-9 TRANS Cust'!L195+'FR-16(7)(v)-11 DIST Demand'!L195+'FR-16(7)(v)-12 DIST Energy'!L195+'FR-16(7)(v)-13 DIST Cust'!L195-'FR-16(7)(v)-14 TOTAL CLASS'!L195","v":0},{"$f":"'FR-16(7)(v)-3 PROD Demand'!M195+'FR-16(7)(v)-4 PROD Energy'!M195+'FR-16(7)(v)-5 PROD Cust'!M195+'FR-16(7)(v)-7 TRANS Demand'!M195+'FR-16(7)(v)-8 TRANS Energy'!M195+'FR-16(7)(v)-9 TRANS Cust'!M195+'FR-16(7)(v)-11 DIST Demand'!M195+'FR-16(7)(v)-12 DIST Energy'!M195+'FR-16(7)(v)-13 DIST Cust'!M195-'FR-16(7)(v)-14 TOTAL CLASS'!M195","v":0},{"$f":"'FR-16(7)(v)-3 PROD Demand'!N195+'FR-16(7)(v)-4 PROD Energy'!N195+'FR-16(7)(v)-5 PROD Cust'!N195+'FR-16(7)(v)-7 TRANS Demand'!N195+'FR-16(7)(v)-8 TRANS Energy'!N195+'FR-16(7)(v)-9 TRANS Cust'!N195+'FR-16(7)(v)-11 DIST Demand'!N195+'FR-16(7)(v)-12 DIST Energy'!N195+'FR-16(7)(v)-13 DIST Cust'!N195-'FR-16(7)(v)-14 TOTAL CLASS'!N195","v":0},{"$f":"'FR-16(7)(v)-3 PROD Demand'!O195+'FR-16(7)(v)-4 PROD Energy'!O195+'FR-16(7)(v)-5 PROD Cust'!O195+'FR-16(7)(v)-7 TRANS Demand'!O195+'FR-16(7)(v)-8 TRANS Energy'!O195+'FR-16(7)(v)-9 TRANS Cust'!O195+'FR-16(7)(v)-11 DIST Demand'!O195+'FR-16(7)(v)-12 DIST Energy'!O195+'FR-16(7)(v)-13 DIST Cust'!O195-'FR-16(7)(v)-14 TOTAL CLASS'!O195","v":0},{"$f":"'FR-16(7)(v)-3 PROD Demand'!P195+'FR-16(7)(v)-4 PROD Energy'!P195+'FR-16(7)(v)-5 PROD Cust'!P195+'FR-16(7)(v)-7 TRANS Demand'!P195+'FR-16(7)(v)-8 TRANS Energy'!P195+'FR-16(7)(v)-9 TRANS Cust'!P195+'FR-16(7)(v)-11 DIST Demand'!P195+'FR-16(7)(v)-12 DIST Energy'!P195+'FR-16(7)(v)-13 DIST Cust'!P195-'FR-16(7)(v)-14 TOTAL CLASS'!P195","v":0},{"$f":"'FR-16(7)(v)-3 PROD Demand'!Q195+'FR-16(7)(v)-4 PROD Energy'!Q195+'FR-16(7)(v)-5 PROD Cust'!Q195+'FR-16(7)(v)-7 TRANS Demand'!Q195+'FR-16(7)(v)-8 TRANS Energy'!Q195+'FR-16(7)(v)-9 TRANS Cust'!Q195+'FR-16(7)(v)-11 DIST Demand'!Q195+'FR-16(7)(v)-12 DIST Energy'!Q195+'FR-16(7)(v)-13 DIST Cust'!Q195-'FR-16(7)(v)-14 TOTAL CLASS'!Q195","v":0},0,0]
[62,null,{"$f":"'FR-16(7)(v)-1 Functional'!C196","v":"SALES"},"A300",null,{"$f":"'FR-16(7)(v)-3 PROD Demand'!F196+'FR-16(7)(v)-4 PROD Energy'!F196+'FR-16(7)(v)-5 PROD Cust'!F196+'FR-16(7)(v)-7 TRANS Demand'!F196+'FR-16(7)(v)-8 TRANS Energy'!F196+'FR-16(7)(v)-9 TRANS Cust'!F196+'FR-16(7)(v)-11 DIST Demand'!F196+'FR-16(7)(v)-12 DIST Energy'!F196+'FR-16(7)(v)-13 DIST Cust'!F196-'FR-16(7)(v)-14 TOTAL CLASS'!F196","v":0},{"$f":"'FR-16(7)(v)-3 PROD Demand'!G196+'FR-16(7)(v)-4 PROD Energy'!G196+'FR-16(7)(v)-5 PROD Cust'!G196+'FR-16(7)(v)-7 TRANS Demand'!G196+'FR-16(7)(v)-8 TRANS Energy'!G196+'FR-16(7)(v)-9 TRANS Cust'!G196+'FR-16(7)(v)-11 DIST Demand'!G196+'FR-16(7)(v)-12 DIST Energy'!G196+'FR-16(7)(v)-13 DIST Cust'!G196-'FR-16(7)(v)-14 TOTAL CLASS'!G196","v":0},{"$f":"'FR-16(7)(v)-3 PROD Demand'!H196+'FR-16(7)(v)-4 PROD Energy'!H196+'FR-16(7)(v)-5 PROD Cust'!H196+'FR-16(7)(v)-7 TRANS Demand'!H196+'FR-16(7)(v)-8 TRANS Energy'!H196+'FR-16(7)(v)-9 TRANS Cust'!H196+'FR-16(7)(v)-11 DIST Demand'!H196+'FR-16(7)(v)-12 DIST Energy'!H196+'FR-16(7)(v)-13 DIST Cust'!H196-'FR-16(7)(v)-14 TOTAL CLASS'!H196","v":0},{"$f":"'FR-16(7)(v)-3 PROD Demand'!I196+'FR-16(7)(v)-4 PROD Energy'!I196+'FR-16(7)(v)-5 PROD Cust'!I196+'FR-16(7)(v)-7 TRANS Demand'!I196+'FR-16(7)(v)-8 TRANS Energy'!I196+'FR-16(7)(v)-9 TRANS Cust'!I196+'FR-16(7)(v)-11 DIST Demand'!I196+'FR-16(7)(v)-12 DIST Energy'!I196+'FR-16(7)(v)-13 DIST Cust'!I196-'FR-16(7)(v)-14 TOTAL CLASS'!I196","v":0},{"$f":"'FR-16(7)(v)-3 PROD Demand'!J196+'FR-16(7)(v)-4 PROD Energy'!J196+'FR-16(7)(v)-5 PROD Cust'!J196+'FR-16(7)(v)-7 TRANS Demand'!J196+'FR-16(7)(v)-8 TRANS Energy'!J196+'FR-16(7)(v)-9 TRANS Cust'!J196+'FR-16(7)(v)-11 DIST Demand'!J196+'FR-16(7)(v)-12 DIST Energy'!J196+'FR-16(7)(v)-13 DIST Cust'!J196-'FR-16(7)(v)-14 TOTAL CLASS'!J196","v":0},{"$f":"'FR-16(7)(v)-3 PROD Demand'!K196+'FR-16(7)(v)-4 PROD Energy'!K196+'FR-16(7)(v)-5 PROD Cust'!K196+'FR-16(7)(v)-7 TRANS Demand'!K196+'FR-16(7)(v)-8 TRANS Energy'!K196+'FR-16(7)(v)-9 TRANS Cust'!K196+'FR-16(7)(v)-11 DIST Demand'!K196+'FR-16(7)(v)-12 DIST Energy'!K196+'FR-16(7)(v)-13 DIST Cust'!K196-'FR-16(7)(v)-14 TOTAL CLASS'!K196","v":0},{"$f":"'FR-16(7)(v)-3 PROD Demand'!L196+'FR-16(7)(v)-4 PROD Energy'!L196+'FR-16(7)(v)-5 PROD Cust'!L196+'FR-16(7)(v)-7 TRANS Demand'!L196+'FR-16(7)(v)-8 TRANS Energy'!L196+'FR-16(7)(v)-9 TRANS Cust'!L196+'FR-16(7)(v)-11 DIST Demand'!L196+'FR-16(7)(v)-12 DIST Energy'!L196+'FR-16(7)(v)-13 DIST Cust'!L196-'FR-16(7)(v)-14 TOTAL CLASS'!L196","v":0},{"$f":"'FR-16(7)(v)-3 PROD Demand'!M196+'FR-16(7)(v)-4 PROD Energy'!M196+'FR-16(7)(v)-5 PROD Cust'!M196+'FR-16(7)(v)-7 TRANS Demand'!M196+'FR-16(7)(v)-8 TRANS Energy'!M196+'FR-16(7)(v)-9 TRANS Cust'!M196+'FR-16(7)(v)-11 DIST Demand'!M196+'FR-16(7)(v)-12 DIST Energy'!M196+'FR-16(7)(v)-13 DIST Cust'!M196-'FR-16(7)(v)-14 TOTAL CLASS'!M196","v":0},{"$f":"'FR-16(7)(v)-3 PROD Demand'!N196+'FR-16(7)(v)-4 PROD Energy'!N196+'FR-16(7)(v)-5 PROD Cust'!N196+'FR-16(7)(v)-7 TRANS Demand'!N196+'FR-16(7)(v)-8 TRANS Energy'!N196+'FR-16(7)(v)-9 TRANS Cust'!N196+'FR-16(7)(v)-11 DIST Demand'!N196+'FR-16(7)(v)-12 DIST Energy'!N196+'FR-16(7)(v)-13 DIST Cust'!N196-'FR-16(7)(v)-14 TOTAL CLASS'!N196","v":0},{"$f":"'FR-16(7)(v)-3 PROD Demand'!O196+'FR-16(7)(v)-4 PROD Energy'!O196+'FR-16(7)(v)-5 PROD Cust'!O196+'FR-16(7)(v)-7 TRANS Demand'!O196+'FR-16(7)(v)-8 TRANS Energy'!O196+'FR-16(7)(v)-9 TRANS Cust'!O196+'FR-16(7)(v)-11 DIST Demand'!O196+'FR-16(7)(v)-12 DIST Energy'!O196+'FR-16(7)(v)-13 DIST Cust'!O196-'FR-16(7)(v)-14 TOTAL CLASS'!O196","v":0},{"$f":"'FR-16(7)(v)-3 PROD Demand'!P196+'FR-16(7)(v)-4 PROD Energy'!P196+'FR-16(7)(v)-5 PROD Cust'!P196+'FR-16(7)(v)-7 TRANS Demand'!P196+'FR-16(7)(v)-8 TRANS Energy'!P196+'FR-16(7)(v)-9 TRANS Cust'!P196+'FR-16(7)(v)-11 DIST Demand'!P196+'FR-16(7)(v)-12 DIST Energy'!P196+'FR-16(7)(v)-13 DIST Cust'!P196-'FR-16(7)(v)-14 TOTAL CLASS'!P196","v":0},{"$f":"'FR-16(7)(v)-3 PROD Demand'!Q196+'FR-16(7)(v)-4 PROD Energy'!Q196+'FR-16(7)(v)-5 PROD Cust'!Q196+'FR-16(7)(v)-7 TRANS Demand'!Q196+'FR-16(7)(v)-8 TRANS Energy'!Q196+'FR-16(7)(v)-9 TRANS Cust'!Q196+'FR-16(7)(v)-11 DIST Demand'!Q196+'FR-16(7)(v)-12 DIST Energy'!Q196+'FR-16(7)(v)-13 DIST Cust'!Q196-'FR-16(7)(v)-14 TOTAL CLASS'!Q196","v":0},0,0]
[63,null,{"$f":"'FR-16(7)(v)-1 Functional'!C197","v":"ADJUSTMENT"},"A300",null,{"$f":"'FR-16(7)(v)-3 PROD Demand'!F197+'FR-16(7)(v)-4 PROD Energy'!F197+'FR-16(7)(v)-5 PROD Cust'!F197+'FR-16(7)(v)-7 TRANS Demand'!F197+'FR-16(7)(v)-8 TRANS Energy'!F197+'FR-16(7)(v)-9 TRANS Cust'!F197+'FR-16(7)(v)-11 DIST Demand'!F197+'FR-16(7)(v)-12 DIST Energy'!F197+'FR-16(7)(v)-13 DIST Cust'!F197-'FR-16(7)(v)-14 TOTAL CLASS'!F197","v":0},{"$f":"'FR-16(7)(v)-3 PROD Demand'!G197+'FR-16(7)(v)-4 PROD Energy'!G197+'FR-16(7)(v)-5 PROD Cust'!G197+'FR-16(7)(v)-7 TRANS Demand'!G197+'FR-16(7)(v)-8 TRANS Energy'!G197+'FR-16(7)(v)-9 TRANS Cust'!G197+'FR-16(7)(v)-11 DIST Demand'!G197+'FR-16(7)(v)-12 DIST Energy'!G197+'FR-16(7)(v)-13 DIST Cust'!G197-'FR-16(7)(v)-14 TOTAL CLASS'!G197","v":0},{"$f":"'FR-16(7)(v)-3 PROD Demand'!H197+'FR-16(7)(v)-4 PROD Energy'!H197+'FR-16(7)(v)-5 PROD Cust'!H197+'FR-16(7)(v)-7 TRANS Demand'!H197+'FR-16(7)(v)-8 TRANS Energy'!H197+'FR-16(7)(v)-9 TRANS Cust'!H197+'FR-16(7)(v)-11 DIST Demand'!H197+'FR-16(7)(v)-12 DIST Energy'!H197+'FR-16(7)(v)-13 DIST Cust'!H197-'FR-16(7)(v)-14 TOTAL CLASS'!H197","v":0},{"$f":"'FR-16(7)(v)-3 PROD Demand'!I197+'FR-16(7)(v)-4 PROD Energy'!I197+'FR-16(7)(v)-5 PROD Cust'!I197+'FR-16(7)(v)-7 TRANS Demand'!I197+'FR-16(7)(v)-8 TRANS Energy'!I197+'FR-16(7)(v)-9 TRANS Cust'!I197+'FR-16(7)(v)-11 DIST Demand'!I197+'FR-16(7)(v)-12 DIST Energy'!I197+'FR-16(7)(v)-13 DIST Cust'!I197-'FR-16(7)(v)-14 TOTAL CLASS'!I197","v":0},{"$f":"'FR-16(7)(v)-3 PROD Demand'!J197+'FR-16(7)(v)-4 PROD Energy'!J197+'FR-16(7)(v)-5 PROD Cust'!J197+'FR-16(7)(v)-7 TRANS Demand'!J197+'FR-16(7)(v)-8 TRANS Energy'!J197+'FR-16(7)(v)-9 TRANS Cust'!J197+'FR-16(7)(v)-11 DIST Demand'!J197+'FR-16(7)(v)-12 DIST Energy'!J197+'FR-16(7)(v)-13 DIST Cust'!J197-'FR-16(7)(v)-14 TOTAL CLASS'!J197","v":0},{"$f":"'FR-16(7)(v)-3 PROD Demand'!K197+'FR-16(7)(v)-4 PROD Energy'!K197+'FR-16(7)(v)-5 PROD Cust'!K197+'FR-16(7)(v)-7 TRANS Demand'!K197+'FR-16(7)(v)-8 TRANS Energy'!K197+'FR-16(7)(v)-9 TRANS Cust'!K197+'FR-16(7)(v)-11 DIST Demand'!K197+'FR-16(7)(v)-12 DIST Energy'!K197+'FR-16(7)(v)-13 DIST Cust'!K197-'FR-16(7)(v)-14 TOTAL CLASS'!K197","v":0},{"$f":"'FR-16(7)(v)-3 PROD Demand'!L197+'FR-16(7)(v)-4 PROD Energy'!L197+'FR-16(7)(v)-5 PROD Cust'!L197+'FR-16(7)(v)-7 TRANS Demand'!L197+'FR-16(7)(v)-8 TRANS Energy'!L197+'FR-16(7)(v)-9 TRANS Cust'!L197+'FR-16(7)(v)-11 DIST Demand'!L197+'FR-16(7)(v)-12 DIST Energy'!L197+'FR-16(7)(v)-13 DIST Cust'!L197-'FR-16(7)(v)-14 TOTAL CLASS'!L197","v":0},{"$f":"'FR-16(7)(v)-3 PROD Demand'!M197+'FR-16(7)(v)-4 PROD Energy'!M197+'FR-16(7)(v)-5 PROD Cust'!M197+'FR-16(7)(v)-7 TRANS Demand'!M197+'FR-16(7)(v)-8 TRANS Energy'!M197+'FR-16(7)(v)-9 TRANS Cust'!M197+'FR-16(7)(v)-11 DIST Demand'!M197+'FR-16(7)(v)-12 DIST Energy'!M197+'FR-16(7)(v)-13 DIST Cust'!M197-'FR-16(7)(v)-14 TOTAL CLASS'!M197","v":0},{"$f":"'FR-16(7)(v)-3 PROD Demand'!N197+'FR-16(7)(v)-4 PROD Energy'!N197+'FR-16(7)(v)-5 PROD Cust'!N197+'FR-16(7)(v)-7 TRANS Demand'!N197+'FR-16(7)(v)-8 TRANS Energy'!N197+'FR-16(7)(v)-9 TRANS Cust'!N197+'FR-16(7)(v)-11 DIST Demand'!N197+'FR-16(7)(v)-12 DIST Energy'!N197+'FR-16(7)(v)-13 DIST Cust'!N197-'FR-16(7)(v)-14 TOTAL CLASS'!N197","v":0},{"$f":"'FR-16(7)(v)-3 PROD Demand'!O197+'FR-16(7)(v)-4 PROD Energy'!O197+'FR-16(7)(v)-5 PROD Cust'!O197+'FR-16(7)(v)-7 TRANS Demand'!O197+'FR-16(7)(v)-8 TRANS Energy'!O197+'FR-16(7)(v)-9 TRANS Cust'!O197+'FR-16(7)(v)-11 DIST Demand'!O197+'FR-16(7)(v)-12 DIST Energy'!O197+'FR-16(7)(v)-13 DIST Cust'!O197-'FR-16(7)(v)-14 TOTAL CLASS'!O197","v":0},{"$f":"'FR-16(7)(v)-3 PROD Demand'!P197+'FR-16(7)(v)-4 PROD Energy'!P197+'FR-16(7)(v)-5 PROD Cust'!P197+'FR-16(7)(v)-7 TRANS Demand'!P197+'FR-16(7)(v)-8 TRANS Energy'!P197+'FR-16(7)(v)-9 TRANS Cust'!P197+'FR-16(7)(v)-11 DIST Demand'!P197+'FR-16(7)(v)-12 DIST Energy'!P197+'FR-16(7)(v)-13 DIST Cust'!P197-'FR-16(7)(v)-14 TOTAL CLASS'!P197","v":0},{"$f":"'FR-16(7)(v)-3 PROD Demand'!Q197+'FR-16(7)(v)-4 PROD Energy'!Q197+'FR-16(7)(v)-5 PROD Cust'!Q197+'FR-16(7)(v)-7 TRANS Demand'!Q197+'FR-16(7)(v)-8 TRANS Energy'!Q197+'FR-16(7)(v)-9 TRANS Cust'!Q197+'FR-16(7)(v)-11 DIST Demand'!Q197+'FR-16(7)(v)-12 DIST Energy'!Q197+'FR-16(7)(v)-13 DIST Cust'!Q197-'FR-16(7)(v)-14 TOTAL CLASS'!Q197","v":0},0,0]
[64,null,{"$f":"'FR-16(7)(v)-1 Functional'!C198","v":"  COMMON & OTHER PLANT IN SERVICE"},null,null,{"$f":"SUM(F188:F197)","v":0},{"$f":"SUM(G188:G197)","v":0},0,0,0,0,0,0,0,0,0,0,0,0]
[65]
[66,"TOTAL DEPRECIATION RESERVE",null,null,null,{"$f":"F198+F186+F171+F145+F139","v":0},{"$f":"G198+G186+G171+G145+G139","v":0},0,0,0,0,0,0,0,0,0,0,0,0]
[]
[{"$f":"co_name","v":"DUKE ENERGY KENTUCKY, INC."},null,null,null,null,null,null,null,null,null,null,null,null,null,null,null,null,{"$f":"R1","v":"FR-16(7)(v)-14"}]
[{"$f":"$A$2","v":"TOTAL CLASS ALLOCATED - ELECTRIC COST OF SERVICE"},null,null,null,null,null,null,null,null,null,null,null,null,null,null,null,null,{"$f":"R2","v":"WITNESS RESPONSIBLE:"}]
[{"$f":"case_name","v":"CASE NO: 2019-00271"},null,null,null,null,null,null,null,null,null,null,null,null,null,null,null,null,{"$f":"Witness","v":"JAMES E. ZIOLKOWSKI"}]
[{"$f":"data_filing","v":"DATA: 12 MONTHS ACTUAL  & 0 MONTHS ESTIMATED"},null,null,null,null,null,null,null,null,null,null,null,null,null,null,null,null,{"$f":"\"PAGE \"&Pages2-11&\" OF \"&Pages2","v":"PAGE 4 OF 15"}]
[{"$f":"type","v":"TYPE OF FILING: \"X\" ORIGINAL   UPDATED    REVISED  "}]
[]
[null,null,null,null,null,{"$f":"F$7","v":"TOTAL"},null,{"$f":"H$7","v":"DS"},{"$f":"I$7","v":"GSFL"},{"$f":"J$7","v":"EH"},{"$f":"K$7","v":"SP"},"DT SEC","DT PRI","DP","TT",null,"OTHER"]
["LINE",null,null,null,null,{"$f":"F$8","v":"CLASS"},{"$f":"G$8","v":"RS"},{"$f":"H$8","v":"SECONDARY"},{"$f":"I$8","v":"SECONDARY"},{"$f":"J$8","v":"SECONDARY"},{"$f":"K$8","v":"SECONDARY"},"SECONDARY","PRIMARY","PRIMARY","TRANSMISSION","LT","WATER",{"$f":"R8","v":"TOTAL"},"ALL"]
["NO.",{"$f":"\"NET ELECTRIC PLANT\"","v":"NET ELECTRIC PLANT"},null,"ALLO",null,{"$f":"F$9","v":"ALLOCATED"},{"$f":"G$9","v":"RESIDENTIAL"},{"$f":"H$9","v":"DISTRIBUTION"},{"$f":"I$9","v":"DISTRIBUTION"},{"$f":"J$9","v":"DISTRIBUTION"},{"$f":"K$9","v":"DISTRIBUTION"},"DISTRIBUTION","DISTRIBUTION","DISTRIBUTION","TIME OF DAY","LIGHTING","PUMPING",{"$f":"R9","v":"AT ISSUE"},"OTHER"]
[null,null,"Schedule 4",null,null,null,{"$f":"G$10","v":3},{"$f":"H$10","v":4},{"$f":"I$10","v":5},{"$f":"J$10","v":6},{"$f":"K$10","v":7},8,9,10,11,12,13,null," "]
[1,"PRODUCTION PLANT"]
[2,null,"PRODUCTION STEAM",null,null,{"$f":"F59-F136","v":0},0,0,0,0,0,0,0,0,0,0,0,0,{"$f":"F213-R213","v":0}]
[3,null,"PRODUCTION OTHER",null,null,{"$f":"F60-F137","v":0},0,0,0,0,0,0,0,0,0,0,0,0,{"$f":"F214-R214","v":0}]
[4,null,"ADJUSTMENT",null,null,{"$f":"F61-F138","v":0},0,0,0,0,0,0,0,0,0,0,0,0,{"$f":"F215-R215","v":0}]
[5,null,{"$f":"'FR-16(7)(v)-1 Functional'!C216","v":"  NET PRODUCTION PLANT"},null,null,{"$f":"SUM(F213:F215)","v":0},0,0,0,{"$f":"SUM(J213:J215)","v":0},0,0,0,0,0,0,0,0,0]
[6]
[7,"TRANSMISSION PLANT"]
[8,null,"MAIN STEP-UP TRANSFORMERS",null,null,{"$f":"F65-F142","v":0},0,0,0,0,0,0,0,0,0,0,0,0,{"$f":"F219-R219","v":0}]
[9,null,"OTHER TRANSMISSION",null,null,{"$f":"F66-F143","v":0},0,0,0,0,0,0,0,0,0,0,0,0,{"$f":"F220-R220","v":0}]
[10,null,"ADJUSTMENT",null,null,{"$f":"F67-F144","v":0},0,0,0,0,0,0,0,0,0,0,0,0,{"$f":"F221-R221","v":0}]
[11,null,{"$f":"'FR-16(7)(v)-1 Functional'!C222","v":"    NET TRANSMISSION PLANT"},null,null,{"$f":"SUM(F218:F221)","v":0},0,0,0,0,0,0,0,0,0,0,0,0,0]
[12]
[13,"NET PROD & TRANS PLANT",null,null,null,{"$f":"F70-F147","v":0},{"$f":"G70-G147","v":0},{"$f":"H70-H147","v":0},{"$f":"I70-I147","v":0},{"$f":"J70-J147","v":0},0,0,0,0,0,0,{"$f":"Q70-Q147","v":0},{"$f":"R70-R147","v":0},{"$f":"F224-R224","v":0}]
[14]
[15,"DISTRIBUTION PLANT"]
[16,null,{"$f":"'FR-16(7)(v)-1 Functional'!C227","v":"SUBSTATIONS"},null,null,{"$f":"F73-F150","v":0},0,0,0,0,0,0,0,0,0,0,0,0,{"$f":"F227-R227","v":0}]
[17,null,{"$f":"'FR-16(7)(v)-1 Functional'!C228","v":"POLES, TOWERS  & FIXTURES - PRIMARY - DEMAND"},null,null,{"$f":"F74-F151","v":0},0,0,0,0,0,0,0,0,0,0,0,0,0]
[18,null,{"$f":"'FR-16(7)(v)-1 Functional'!C229","v":"POLES, TOWERS  & FIXTURES - PRIMARY - CUSTOMER"},null,null,{"$f":"F75-F152","v":0},0,0,0,0,0,0,0,0,0,0,0,0,0]
[19,null,{"$f":"'FR-16(7)(v)-1 Functional'!C230","v":"POLES, TOWERS  & FIXTURES - SECONDARY - DEMAND"},null,null,{"$f":"F76-F153","v":0},0,0,0,0,0,0,0,0,0,0,0,0,0]
[20,null,{"$f":"'FR-16(7)(v)-1 Functional'!C231","v":"POLES, TOWERS  & FIXTURES - SECONDARY - CUSTOMER"},null,null,{"$f":"F77-F154","v":0},0,0,0,0,0,0,0,0,0,0,0,0,0]
[21,null,{"$f":"'FR-16(7)(v)-1 Functional'!C232","v":"CONDUCTORS - OVERHEAD / PRIMARY - DEMAND"},null,null,{"$f":"F78-F155","v":0},0,0,0,0,0,0,0,0,0,0,0,0,0]
[22,null,{"$f":"'FR-16(7)(v)-1 Functional'!C233","v":"CONDUCTORS - OVERHEAD / PRIMARY - CUSTOMER"},null,null,{"$f":"F79-F156","v":0},0,0,0,0,0,0,0,0,0,0,0,0,0]
[23,null,{"$f":"'FR-16(7)(v)-1 Functional'!C234","v":"CONDUCTORS - OVERHEAD / SECONDARY - DEMAND"},null,null,{"$f":"F80-F157","v":0},0,0,0,0,0,0,0,0,0,0,0,0,0]
[24,null,{"$f":"'FR-16(7)(v)-1 Functional'!C235","v":"CONDUCTORS - OVERHEAD / SECONDARY - CUSTOMER"},null,null,{"$f":"F81-F158","v":0},0,0,0,0,0,0,0,0,0,0,0,0,0]
[25,null,{"$f":"'FR-16(7)(v)-1 Functional'!C236","v":"CONDUCTORS - UNDERGROUND / PRIMARY - DEMAND"},null,null,{"$f":"F82-F159","v":0},0,0,0,0,0,0,0,0,0,0,0,0,0]
[26,null,{"$f":"'FR-16(7)(v)-1 Functional'!C237","v":"CONDUCTORS - UNDERGROUND / PRIMARY - CUSTOMER"},null,null,{"$f":"F83-F160","v":0},0,0,0,0,0,0,0,0,0,0,0,0,0]
[27,null,{"$f":"'FR-16(7)(v)-1 Functional'!C238","v":"CONDUCTORS - UNDERGROUND / SECONDARY - DEMAND"},null,null,{"$f":"F84-F161","v":0},0,0,0,0,0,0,0,0,0,0,0,0,0]
[28,null,{"$f":"'FR-16(7)(v)-1 Functional'!C239","v":"CONDUCTORS - UNDERGROUND / SECONDARY - CUSTOMER"},null,null,{"$f":"F85-F162","v":0},0,0,0,0,0,0,0,0,0,0,0,0,0]
[29,null,"TRANSFORMERS DEMAND RELATED",null,null,{"$f":"F86-F163","v":0},0,0,0,0,0,0,0,0,0,0,0,0,0]
[30,null,"TRANSFORMERS CUSTOMER RELATED",null,null,{"$f":"F87-F164","v":0},0,0,0,0,0,0,0,0,0,0,0,0,0]
[31,null,{"$f":"'FR-16(7)(v)-1 Functional'!C242","v":"SERVICES"},null,null,{"$f":"F88-F165","v":0},0,0,0,0,0,0,0,0,0,0,0,0,0]
[32,null,{"$f":"'FR-16(7)(v)-1 Functional'!C243","v":"METERS"},null,null,{"$f":"F89-F166","v":0},0,0,0,0,0,0,0,0,0,0,0,0,0]
[33,null,{"$f":"'FR-16(7)(v)-1 Functional'!C244","v":"STREET LIGHTS"},null,null,{"$f":"F90-F167","v":0},0,0,0,0,0,0,0,0,0,0,0,0,0]
[34,null,{"$f":"'FR-16(7)(v)-1 Functional'!C245","v":"ADJUSTMENT  "},null,null,{"$f":"F91-F168","v":0},0,0,0,0,0,0,0,0,0,0,0,0,0]
[35,null,{"$f":"'FR-16(7)(v)-1 Functional'!C246","v":"CONSTRUCTION NOT CLASSIFIED"},null,null,{"$f":"F92-F169","v":0},0,0,0,0,0,0,0,0,0,0,0,0,{"$f":"F246-R246","v":0}]
[36,null,{"$f":"'FR-16(7)(v)-1 Functional'!C247","v":"RWIP"},null,null,{"$f":"F93-F170","v":0},0,0,0,0,0]
[37,null,{"$f":"'FR-16(7)(v)-1 Functional'!C248","v":"  NET DISTRIBUTION PLANT"},null,null,{"$f":"SUM(F226:F246)","v":0},{"$f":"SUM(G226:G246)","v":0},{"$f":"SUM(H226:H246)","v":0},{"$f":"SUM(I226:I246)","v":0},{"$f":"SUM(J226:J246)","v":0},0,0,0,0,0,0,{"$f":"SUM(Q226:Q246)","v":0},{"$f":"SUM(R226:R246)","v":0},{"$f":"SUM(S226:S246)","v":0}]
[38]
[39,"NET PTD PLANT",null,null,null,{"$f":"F96-F173","v":0},0,0,0,0,0,0,0,0,0,0,0,0,{"$f":"S248+S222+S216","v":0}]
[40,"NET TRANS & DIST PLANT",null,null,null,{"$f":"F97-F174","v":0},0,0,0,0,0,0,0,0,0,0,0,0,{"$f":"S248+S222","v":0}]
[41]
[42,"GENERAL & INTANGIBLE PLANT"]
[43,null,{"$f":"'FR-16(7)(v)-1 Functional'!C254","v":"PRODUCTION - DEMAND"},null,null,{"$f":"F100-F177","v":0},0,0,0,0,0,0,0,0,0,0,0,0,{"$f":"F254-R254","v":0}]
[44,null,{"$f":"'FR-16(7)(v)-1 Functional'!C255","v":"PRODUCTION - ENERGY"},null,null,{"$f":"F101-F178","v":0},0,0,0,0,0,0,0,0,0,0,0,0,{"$f":"F255-R255","v":0}]
[45,null,{"$f":"'FR-16(7)(v)-1 Functional'!C256","v":"TRANSMISSION"},null,null,{"$f":"F102-F179","v":0},0,0,0,0,0,0,0,0,0,0,0,0,0]
[46,null,{"$f":"'FR-16(7)(v)-1 Functional'!C257","v":"DISTRIBUTION - DEMAND"},null,null,{"$f":"F103-F180","v":0},0,0,0,0,0,0,0,0,0,0,0,0,0]
[47,null,{"$f":"'FR-16(7)(v)-1 Functional'!C258","v":"DISTRIBUTION - CUSTOMER"},null,null,{"$f":"F104-F181","v":0},0,0,0,0,0,0,0,0,0,0,0,0,0]
[48,null,{"$f":"'FR-16(7)(v)-1 Functional'!C259","v":"CUSTOMER ACCOUNTING"},null,null,{"$f":"F105-F182","v":0},0,0,0,0,0,0,0,0,0,0,0,0,0]
[49,null,{"$f":"'FR-16(7)(v)-1 Functional'!C260","v":"CUSTOMER SERVICE & INFORMATION"},null,null,{"$f":"F106-F183","v":0},0,0,0,0,0,0,0,0,0,0,0,0,0]
[50,null,{"$f":"'FR-16(7)(v)-1 Functional'!C261","v":"SALES"},null,null,{"$f":"F107-F184","v":0},0,0,0,0,0,0,0,0,0,0,0,0,0]
[51,null,{"$f":"'FR-16(7)(v)-1 Functional'!C262","v":"ADJUSTMENT"},null,null,{"$f":"F108-F185","v":0},0,0,0,0,0,0,0,0,0,0,0,0,{"$f":"F262-R262","v":0}]
[52,null,{"$f":"'FR-16(7)(v)-1 Functional'!C263","v":"  NET GENERAL & INTANG PLANT"},null,null,{"$f":"SUM(F253:F262)","v":0},0,0,0,{"$f":"SUM(J253:J262)","v":0},0,0,0,0,0,0,0,0,0]
[53]
[54,"COMMON & OTHER PLANT"]
[55,null,{"$f":"'FR-16(7)(v)-1 Functional'!C266","v":"PRODUCTION - DEMAND"},null,null,{"$f":"F112-F189","v":0},0,0,0,0,0,0,0,0,0,0,0,0,{"$f":"F266-R266","v":0}]
[56,null,{"$f":"'FR-16(7)(v)-1 Functional'!C267","v":"PRODUCTION - ENERGY"},null,null,{"$f":"F113-F190","v":0},0,0,0,0,0,0,0,0,0,0,0,0,{"$f":"F267-R267","v":0}]
[57,null,{"$f":"'FR-16(7)(v)-1 Functional'!C268","v":"TRANSMISSION"},null,null,{"$f":"F114-F191","v":0},0,0,0,0,0,0,0,0,0,0,0,0,0]
[58,null,{"$f":"'FR-16(7)(v)-1 Functional'!C269","v":"DISTRIBUTION - DEMAND"},null,null,{"$f":"F115-F192","v":0},0,0,0,0,0,0,0,0,0,0,0,0,0]
[59,null,{"$f":"'FR-16(7)(v)-1 Functional'!C270","v":"DISTRIBUTION - CUSTOMER"},null,null,{"$f":"F116-F193","v":0},0,0,0,0,0,0,0,0,0,0,0,0,0]
[60,null,{"$f":"'FR-16(7)(v)-1 Functional'!C271","v":"CUSTOMER ACCOUNTING"},null,null,{"$f":"F117-F194","v":0},0,0,0,0,0,0,0,0,0,0,0,0,0]
[61,null,{"$f":"'FR-16(7)(v)-1 Functional'!C272","v":"CUSTOMER SERVICE & INFORMATION"},null,null,{"$f":"F118-F195","v":0},0,0,0,0,0,0,0,0,0,0,0,0,0]
[62,null,{"$f":"'FR-16(7)(v)-1 Functional'!C273","v":"SALES"},null,null,{"$f":"F119-F196","v":0},0,0,0,0,0,0,0,0,0,0,0,0,0]
[63,null,{"$f":"'FR-16(7)(v)-1 Functional'!C274","v":"ADJUSTMENT"},null,null,{"$f":"F120-F197","v":0},0,0,0,0,0,0,0,0,0,0,0,0,{"$f":"F274-R274","v":0}]
[64,null,"  COMMON & OTHER PLANT IN SERVICE",null,null,{"$f":"SUM(F265:F274)","v":0},0,0,0,0,0,0,0,0,0,0,0,0,0]
[65]
[66,null,{"$f":"'FR-16(7)(v)-1 Functional'!C277","v":"NET ELECTRIC PLANT IN SERVICE"},null,null,{"$f":"F275+F263+F248+F222+F216","v":0},{"$f":"G275+G263+G248+G222+G216","v":0},{"$f":"H275+H263+H248+H222+H216","v":0},{"$f":"I275+I263+I248+I222+I216","v":0},{"$f":"J275+J263+J248+J222+J216","v":0},0,0,0,0,0,0,{"$f":"Q275+Q263+Q248+Q222+Q216","v":0},{"$f":"R275+R263+R248+R222+R216","v":0},{"$f":"S275+S263+S248+S222+S216","v":0}]
[]
[{"$f":"co_name","v":"DUKE ENERGY KENTUCKY, INC."},null,null,null,null,null,null,null,null,null,null,null,null,null,null,null,null,{"$f":"R1","v":"FR-16(7)(v)-14"}]
[{"$f":"$A$2","v":"TOTAL CLASS ALLOCATED - ELECTRIC COST OF SERVICE"},null,null,null,null,null,null,null,null,null,null,null,null,null,null,null,null,{"$f":"R2","v":"WITNESS RESPONSIBLE:"}]
[{"$f":"case_name","v":"CASE NO: 2019-00271"},null,null,null,null,null,null,null,null,null,null,null,null,null,null,null,null,{"$f":"Witness","v":"JAMES E. ZIOLKOWSKI"}]
[{"$f":"data_filing","v":"DATA: 12 MONTHS ACTUAL  & 0 MONTHS ESTIMATED"},null,null,null,null,null,null,null,null,null,null,null,null,null,null,null,null,{"$f":"\"PAGE \"&Pages2-10&\" OF \"&Pages2","v":"PAGE 5 OF 15"}]
[{"$f":"type","v":"TYPE OF FILING: \"X\" ORIGINAL   UPDATED    REVISED  "}]
[]
[null,null,null,null,null,{"$f":"F$7","v":"TOTAL"},null,{"$f":"H$7","v":"DS"},{"$f":"I$7","v":"GSFL"},{"$f":"J$7","v":"EH"},{"$f":"K$7","v":"SP"},"DT SEC","DT PRI","DP","TT",null,"OTHER"]
["LINE",null,null,null,null,{"$f":"F$8","v":"CLASS"},{"$f":"G$8","v":"RS"},{"$f":"H$8","v":"SECONDARY"},{"$f":"I$8","v":"SECONDARY"},{"$f":"J$8","v":"SECONDARY"},{"$f":"K$8","v":"SECONDARY"},"SECONDARY","PRIMARY","PRIMARY","TRANSMISSION","LT","WATER",{"$f":"R8","v":"TOTAL"},"ALL"]
["NO.","SUBTRACTIVE RATE BASE ADJUSTMENTS",null,"ALLO",null,{"$f":"F$9","v":"ALLOCATED"},{"$f":"G$9","v":"RESIDENTIAL"},{"$f":"H$9","v":"DISTRIBUTION"},{"$f":"I$9","v":"DISTRIBUTION"},{"$f":"J$9","v":"DISTRIBUTION"},{"$f":"K$9","v":"DISTRIBUTION"},"DISTRIBUTION","DISTRIBUTION","DISTRIBUTION","TIME OF DAY","LIGHTING","PUMPING",{"$f":"R9","v":"AT ISSUE"},"OTHER"]
[null,null,"Schedule 5",null,null,null,{"$f":"G$10","v":3},{"$f":"H$10","v":4},{"$f":"I$10","v":5},{"$f":"J$10","v":6},{"$f":"K$10","v":7},8,9,10,11,12,13,null," "]
[1,"RATE BASE ADJUSTMENTS"]
[2,"ACCUMULATED DEFERRED INCOME TAXES"]
[3," ACCUM DEF INC TAXES (282)"]
[4,null,{"$f":"'FR-16(7)(v)-1 Functional'!C292","v":"LIBERALIZED DEPRECIATION"},{"$f":"'FR-16(7)(v)-1 Functional'!D292","v":"NP29"}," ",{"$f":"'FR-16(7)(v)-3 PROD Demand'!F292+'FR-16(7)(v)-4 PROD Energy'!F292+'FR-16(7)(v)-5 PROD Cust'!F292+'FR-16(7)(v)-7 TRANS Demand'!F292+'FR-16(7)(v)-8 TRANS Energy'!F292+'FR-16(7)(v)-9 TRANS Cust'!F292+'FR-16(7)(v)-11 DIST Demand'!F292+'FR-16(7)(v)-12 DIST Energy'!F292+'FR-16(7)(v)-13 DIST Cust'!F292-'FR-16(7)(v)-14 TOTAL CLASS'!F292","v":0},{"$f":"'FR-16(7)(v)-3 PROD Demand'!G292+'FR-16(7)(v)-4 PROD Energy'!G292+'FR-16(7)(v)-5 PROD Cust'!G292+'FR-16(7)(v)-7 TRANS Demand'!G292+'FR-16(7)(v)-8 TRANS Energy'!G292+'FR-16(7)(v)-9 TRANS Cust'!G292+'FR-16(7)(v)-11 DIST Demand'!G292+'FR-16(7)(v)-12 DIST Energy'!G292+'FR-16(7)(v)-13 DIST Cust'!G292-'FR-16(7)(v)-14 TOTAL CLASS'!G292","v":0},{"$f":"'FR-16(7)(v)-3 PROD Demand'!H292+'FR-16(7)(v)-4 PROD Energy'!H292+'FR-16(7)(v)-5 PROD Cust'!H292+'FR-16(7)(v)-7 TRANS Demand'!H292+'FR-16(7)(v)-8 TRANS Energy'!H292+'FR-16(7)(v)-9 TRANS Cust'!H292+'FR-16(7)(v)-11 DIST Demand'!H292+'FR-16(7)(v)-12 DIST Energy'!H292+'FR-16(7)(v)-13 DIST Cust'!H292-'FR-16(7)(v)-14 TOTAL CLASS'!H292","v":0},{"$f":"'FR-16(7)(v)-3 PROD Demand'!I292+'FR-16(7)(v)-4 PROD Energy'!I292+'FR-16(7)(v)-5 PROD Cust'!I292+'FR-16(7)(v)-7 TRANS Demand'!I292+'FR-16(7)(v)-8 TRANS Energy'!I292+'FR-16(7)(v)-9 TRANS Cust'!I292+'FR-16(7)(v)-11 DIST Demand'!I292+'FR-16(7)(v)-12 DIST Energy'!I292+'FR-16(7)(v)-13 DIST Cust'!I292-'FR-16(7)(v)-14 TOTAL CLASS'!I292","v":0},{"$f":"'FR-16(7)(v)-3 PROD Demand'!J292+'FR-16(7)(v)-4 PROD Energy'!J292+'FR-16(7)(v)-5 PROD Cust'!J292+'FR-16(7)(v)-7 TRANS Demand'!J292+'FR-16(7)(v)-8 TRANS Energy'!J292+'FR-16(7)(v)-9 TRANS Cust'!J292+'FR-16(7)(v)-11 DIST Demand'!J292+'FR-16(7)(v)-12 DIST Energy'!J292+'FR-16(7)(v)-13 DIST Cust'!J292-'FR-16(7)(v)-14 TOTAL CLASS'!J292","v":0},{"$f":"'FR-16(7)(v)-3 PROD Demand'!K292+'FR-16(7)(v)-4 PROD Energy'!K292+'FR-16(7)(v)-5 PROD Cust'!K292+'FR-16(7)(v)-7 TRANS Demand'!K292+'FR-16(7)(v)-8 TRANS Energy'!K292+'FR-16(7)(v)-9 TRANS Cust'!K292+'FR-16(7)(v)-11 DIST Demand'!K292+'FR-16(7)(v)-12 DIST Energy'!K292+'FR-16(7)(v)-13 DIST Cust'!K292-'FR-16(7)(v)-14 TOTAL CLASS'!K292","v":0},{"$f":"'FR-16(7)(v)-3 PROD Demand'!L292+'FR-16(7)(v)-4 PROD Energy'!L292+'FR-16(7)(v)-5 PROD Cust'!L292+'FR-16(7)(v)-7 TRANS Demand'!L292+'FR-16(7)(v)-8 TRANS Energy'!L292+'FR-16(7)(v)-9 TRANS Cust'!L292+'FR-16(7)(v)-11 DIST Demand'!L292+'FR-16(7)(v)-12 DIST Energy'!L292+'FR-16(7)(v)-13 DIST Cust'!L292-'FR-16(7)(v)-14 TOTAL CLASS'!L292","v":0},{"$f":"'FR-16(7)(v)-3 PROD Demand'!M292+'FR-16(7)(v)-4 PROD Energy'!M292+'FR-16(7)(v)-5 PROD Cust'!M292+'FR-16(7)(v)-7 TRANS Demand'!M292+'FR-16(7)(v)-8 TRANS Energy'!M292+'FR-16(7)(v)-9 TRANS Cust'!M292+'FR-16(7)(v)-11 DIST Demand'!M292+'FR-16(7)(v)-12 DIST Energy'!M292+'FR-16(7)(v)-13 DIST Cust'!M292-'FR-16(7)(v)-14 TOTAL CLASS'!M292","v":0},{"$f":"'FR-16(7)(v)-3 PROD Demand'!N292+'FR-16(7)(v)-4 PROD Energy'!N292+'FR-16(7)(v)-5 PROD Cust'!N292+'FR-16(7)(v)-7 TRANS Demand'!N292+'FR-16(7)(v)-8 TRANS Energy'!N292+'FR-16(7)(v)-9 TRANS Cust'!N292+'FR-16(7)(v)-11 DIST Demand'!N292+'FR-16(7)(v)-12 DIST Energy'!N292+'FR-16(7)(v)-13 DIST Cust'!N292-'FR-16(7)(v)-14 TOTAL CLASS'!N292","v":0},{"$f":"'FR-16(7)(v)-3 PROD Demand'!O292+'FR-16(7)(v)-4 PROD Energy'!O292+'FR-16(7)(v)-5 PROD Cust'!O292+'FR-16(7)(v)-7 TRANS Demand'!O292+'FR-16(7)(v)-8 TRANS Energy'!O292+'FR-16(7)(v)-9 TRANS Cust'!O292+'FR-16(7)(v)-11 DIST Demand'!O292+'FR-16(7)(v)-12 DIST Energy'!O292+'FR-16(7)(v)-13 DIST Cust'!O292-'FR-16(7)(v)-14 TOTAL CLASS'!O292","v":0},{"$f":"'FR-16(7)(v)-3 PROD Demand'!P292+'FR-16(7)(v)-4 PROD Energy'!P292+'FR-16(7)(v)-5 PROD Cust'!P292+'FR-16(7)(v)-7 TRANS Demand'!P292+'FR-16(7)(v)-8 TRANS Energy'!P292+'FR-16(7)(v)-9 TRANS Cust'!P292+'FR-16(7)(v)-11 DIST Demand'!P292+'FR-16(7)(v)-12 DIST Energy'!P292+'FR-16(7)(v)-13 DIST Cust'!P292-'FR-16(7)(v)-14 TOTAL CLASS'!P292","v":0},{"$f":"'FR-16(7)(v)-3 PROD Demand'!Q292+'FR-16(7)(v)-4 PROD Energy'!Q292+'FR-16(7)(v)-5 PROD Cust'!Q292+'FR-16(7)(v)-7 TRANS Demand'!Q292+'FR-16(7)(v)-8 TRANS Energy'!Q292+'FR-16(7)(v)-9 TRANS Cust'!Q292+'FR-16(7)(v)-11 DIST Demand'!Q292+'FR-16(7)(v)-12 DIST Energy'!Q292+'FR-16(7)(v)-13 DIST Cust'!Q292-'FR-16(7)(v)-14 TOTAL CLASS'!Q292","v":0},{"$f":"SUM(G292:Q292)","v":0},{"$f":"F292-R292","v":0}]
[5,null,{"$f":"'FR-16(7)(v)-1 Functional'!C293","v":"LEASED METERS"},{"$f":"'FR-16(7)(v)-1 Functional'!D293","v":"NP29"}," ",{"$f":"'FR-16(7)(v)-3 PROD Demand'!F293+'FR-16(7)(v)-4 PROD Energy'!F293+'FR-16(7)(v)-5 PROD Cust'!F293+'FR-16(7)(v)-7 TRANS Demand'!F293+'FR-16(7)(v)-8 TRANS Energy'!F293+'FR-16(7)(v)-9 TRANS Cust'!F293+'FR-16(7)(v)-11 DIST Demand'!F293+'FR-16(7)(v)-12 DIST Energy'!F293+'FR-16(7)(v)-13 DIST Cust'!F293-'FR-16(7)(v)-14 TOTAL CLASS'!F293","v":0},{"$f":"'FR-16(7)(v)-3 PROD Demand'!G293+'FR-16(7)(v)-4 PROD Energy'!G293+'FR-16(7)(v)-5 PROD Cust'!G293+'FR-16(7)(v)-7 TRANS Demand'!G293+'FR-16(7)(v)-8 TRANS Energy'!G293+'FR-16(7)(v)-9 TRANS Cust'!G293+'FR-16(7)(v)-11 DIST Demand'!G293+'FR-16(7)(v)-12 DIST Energy'!G293+'FR-16(7)(v)-13 DIST Cust'!G293-'FR-16(7)(v)-14 TOTAL CLASS'!G293","v":0},{"$f":"'FR-16(7)(v)-3 PROD Demand'!H293+'FR-16(7)(v)-4 PROD Energy'!H293+'FR-16(7)(v)-5 PROD Cust'!H293+'FR-16(7)(v)-7 TRANS Demand'!H293+'FR-16(7)(v)-8 TRANS Energy'!H293+'FR-16(7)(v)-9 TRANS Cust'!H293+'FR-16(7)(v)-11 DIST Demand'!H293+'FR-16(7)(v)-12 DIST Energy'!H293+'FR-16(7)(v)-13 DIST Cust'!H293-'FR-16(7)(v)-14 TOTAL CLASS'!H293","v":0},{"$f":"'FR-16(7)(v)-3 PROD Demand'!I293+'FR-16(7)(v)-4 PROD Energy'!I293+'FR-16(7)(v)-5 PROD Cust'!I293+'FR-16(7)(v)-7 TRANS Demand'!I293+'FR-16(7)(v)-8 TRANS Energy'!I293+'FR-16(7)(v)-9 TRANS Cust'!I293+'FR-16(7)(v)-11 DIST Demand'!I293+'FR-16(7)(v)-12 DIST Energy'!I293+'FR-16(7)(v)-13 DIST Cust'!I293-'FR-16(7)(v)-14 TOTAL CLASS'!I293","v":0},{"$f":"'FR-16(7)(v)-3 PROD Demand'!J293+'FR-16(7)(v)-4 PROD Energy'!J293+'FR-16(7)(v)-5 PROD Cust'!J293+'FR-16(7)(v)-7 TRANS Demand'!J293+'FR-16(7)(v)-8 TRANS Energy'!J293+'FR-16(7)(v)-9 TRANS Cust'!J293+'FR-16(7)(v)-11 DIST Demand'!J293+'FR-16(7)(v)-12 DIST Energy'!J293+'FR-16(7)(v)-13 DIST Cust'!J293-'FR-16(7)(v)-14 TOTAL CLASS'!J293","v":0},{"$f":"'FR-16(7)(v)-3 PROD Demand'!K293+'FR-16(7)(v)-4 PROD Energy'!K293+'FR-16(7)(v)-5 PROD Cust'!K293+'FR-16(7)(v)-7 TRANS Demand'!K293+'FR-16(7)(v)-8 TRANS Energy'!K293+'FR-16(7)(v)-9 TRANS Cust'!K293+'FR-16(7)(v)-11 DIST Demand'!K293+'FR-16(7)(v)-12 DIST Energy'!K293+'FR-16(7)(v)-13 DIST Cust'!K293-'FR-16(7)(v)-14 TOTAL CLASS'!K293","v":0},{"$f":"'FR-16(7)(v)-3 PROD Demand'!L293+'FR-16(7)(v)-4 PROD Energy'!L293+'FR-16(7)(v)-5 PROD Cust'!L293+'FR-16(7)(v)-7 TRANS Demand'!L293+'FR-16(7)(v)-8 TRANS Energy'!L293+'FR-16(7)(v)-9 TRANS Cust'!L293+'FR-16(7)(v)-11 DIST Demand'!L293+'FR-16(7)(v)-12 DIST Energy'!L293+'FR-16(7)(v)-13 DIST Cust'!L293-'FR-16(7)(v)-14 TOTAL CLASS'!L293","v":0},{"$f":"'FR-16(7)(v)-3 PROD Demand'!M293+'FR-16(7)(v)-4 PROD Energy'!M293+'FR-16(7)(v)-5 PROD Cust'!M293+'FR-16(7)(v)-7 TRANS Demand'!M293+'FR-16(7)(v)-8 TRANS Energy'!M293+'FR-16(7)(v)-9 TRANS Cust'!M293+'FR-16(7)(v)-11 DIST Demand'!M293+'FR-16(7)(v)-12 DIST Energy'!M293+'FR-16(7)(v)-13 DIST Cust'!M293-'FR-16(7)(v)-14 TOTAL CLASS'!M293","v":0},{"$f":"'FR-16(7)(v)-3 PROD Demand'!N293+'FR-16(7)(v)-4 PROD Energy'!N293+'FR-16(7)(v)-5 PROD Cust'!N293+'FR-16(7)(v)-7 TRANS Demand'!N293+'FR-16(7)(v)-8 TRANS Energy'!N293+'FR-16(7)(v)-9 TRANS Cust'!N293+'FR-16(7)(v)-11 DIST Demand'!N293+'FR-16(7)(v)-12 DIST Energy'!N293+'FR-16(7)(v)-13 DIST Cust'!N293-'FR-16(7)(v)-14 TOTAL CLASS'!N293","v":0},{"$f":"'FR-16(7)(v)-3 PROD Demand'!O293+'FR-16(7)(v)-4 PROD Energy'!O293+'FR-16(7)(v)-5 PROD Cust'!O293+'FR-16(7)(v)-7 TRANS Demand'!O293+'FR-16(7)(v)-8 TRANS Energy'!O293+'FR-16(7)(v)-9 TRANS Cust'!O293+'FR-16(7)(v)-11 DIST Demand'!O293+'FR-16(7)(v)-12 DIST Energy'!O293+'FR-16(7)(v)-13 DIST Cust'!O293-'FR-16(7)(v)-14 TOTAL CLASS'!O293","v":0},{"$f":"'FR-16(7)(v)-3 PROD Demand'!P293+'FR-16(7)(v)-4 PROD Energy'!P293+'FR-16(7)(v)-5 PROD Cust'!P293+'FR-16(7)(v)-7 TRANS Demand'!P293+'FR-16(7)(v)-8 TRANS Energy'!P293+'FR-16(7)(v)-9 TRANS Cust'!P293+'FR-16(7)(v)-11 DIST Demand'!P293+'FR-16(7)(v)-12 DIST Energy'!P293+'FR-16(7)(v)-13 DIST Cust'!P293-'FR-16(7)(v)-14 TOTAL CLASS'!P293","v":0},{"$f":"'FR-16(7)(v)-3 PROD Demand'!Q293+'FR-16(7)(v)-4 PROD Energy'!Q293+'FR-16(7)(v)-5 PROD Cust'!Q293+'FR-16(7)(v)-7 TRANS Demand'!Q293+'FR-16(7)(v)-8 TRANS Energy'!Q293+'FR-16(7)(v)-9 TRANS Cust'!Q293+'FR-16(7)(v)-11 DIST Demand'!Q293+'FR-16(7)(v)-12 DIST Energy'!Q293+'FR-16(7)(v)-13 DIST Cust'!Q293-'FR-16(7)(v)-14 TOTAL CLASS'!Q293","v":0},0,0]
[6,null,{"$f":"'FR-16(7)(v)-1 Functional'!C294","v":"CONTRIB AID CONSTR"},{"$f":"'FR-16(7)(v)-1 Functional'!D294","v":"D249"}," ",{"$f":"'FR-16(7)(v)-3 PROD Demand'!F294+'FR-16(7)(v)-4 PROD Energy'!F294+'FR-16(7)(v)-5 PROD Cust'!F294+'FR-16(7)(v)-7 TRANS Demand'!F294+'FR-16(7)(v)-8 TRANS Energy'!F294+'FR-16(7)(v)-9 TRANS Cust'!F294+'FR-16(7)(v)-11 DIST Demand'!F294+'FR-16(7)(v)-12 DIST Energy'!F294+'FR-16(7)(v)-13 DIST Cust'!F294-'FR-16(7)(v)-14 TOTAL CLASS'!F294","v":0},{"$f":"'FR-16(7)(v)-3 PROD Demand'!G294+'FR-16(7)(v)-4 PROD Energy'!G294+'FR-16(7)(v)-5 PROD Cust'!G294+'FR-16(7)(v)-7 TRANS Demand'!G294+'FR-16(7)(v)-8 TRANS Energy'!G294+'FR-16(7)(v)-9 TRANS Cust'!G294+'FR-16(7)(v)-11 DIST Demand'!G294+'FR-16(7)(v)-12 DIST Energy'!G294+'FR-16(7)(v)-13 DIST Cust'!G294-'FR-16(7)(v)-14 TOTAL CLASS'!G294","v":0},{"$f":"'FR-16(7)(v)-3 PROD Demand'!H294+'FR-16(7)(v)-4 PROD Energy'!H294+'FR-16(7)(v)-5 PROD Cust'!H294+'FR-16(7)(v)-7 TRANS Demand'!H294+'FR-16(7)(v)-8 TRANS Energy'!H294+'FR-16(7)(v)-9 TRANS Cust'!H294+'FR-16(7)(v)-11 DIST Demand'!H294+'FR-16(7)(v)-12 DIST Energy'!H294+'FR-16(7)(v)-13 DIST Cust'!H294-'FR-16(7)(v)-14 TOTAL CLASS'!H294","v":0},{"$f":"'FR-16(7)(v)-3 PROD Demand'!I294+'FR-16(7)(v)-4 PROD Energy'!I294+'FR-16(7)(v)-5 PROD Cust'!I294+'FR-16(7)(v)-7 TRANS Demand'!I294+'FR-16(7)(v)-8 TRANS Energy'!I294+'FR-16(7)(v)-9 TRANS Cust'!I294+'FR-16(7)(v)-11 DIST Demand'!I294+'FR-16(7)(v)-12 DIST Energy'!I294+'FR-16(7)(v)-13 DIST Cust'!I294-'FR-16(7)(v)-14 TOTAL CLASS'!I294","v":0},{"$f":"'FR-16(7)(v)-3 PROD Demand'!J294+'FR-16(7)(v)-4 PROD Energy'!J294+'FR-16(7)(v)-5 PROD Cust'!J294+'FR-16(7)(v)-7 TRANS Demand'!J294+'FR-16(7)(v)-8 TRANS Energy'!J294+'FR-16(7)(v)-9 TRANS Cust'!J294+'FR-16(7)(v)-11 DIST Demand'!J294+'FR-16(7)(v)-12 DIST Energy'!J294+'FR-16(7)(v)-13 DIST Cust'!J294-'FR-16(7)(v)-14 TOTAL CLASS'!J294","v":0},{"$f":"'FR-16(7)(v)-3 PROD Demand'!K294+'FR-16(7)(v)-4 PROD Energy'!K294+'FR-16(7)(v)-5 PROD Cust'!K294+'FR-16(7)(v)-7 TRANS Demand'!K294+'FR-16(7)(v)-8 TRANS Energy'!K294+'FR-16(7)(v)-9 TRANS Cust'!K294+'FR-16(7)(v)-11 DIST Demand'!K294+'FR-16(7)(v)-12 DIST Energy'!K294+'FR-16(7)(v)-13 DIST Cust'!K294-'FR-16(7)(v)-14 TOTAL CLASS'!K294","v":0},{"$f":"'FR-16(7)(v)-3 PROD Demand'!L294+'FR-16(7)(v)-4 PROD Energy'!L294+'FR-16(7)(v)-5 PROD Cust'!L294+'FR-16(7)(v)-7 TRANS Demand'!L294+'FR-16(7)(v)-8 TRANS Energy'!L294+'FR-16(7)(v)-9 TRANS Cust'!L294+'FR-16(7)(v)-11 DIST Demand'!L294+'FR-16(7)(v)-12 DIST Energy'!L294+'FR-16(7)(v)-13 DIST Cust'!L294-'FR-16(7)(v)-14 TOTAL CLASS'!L294","v":0},{"$f":"'FR-16(7)(v)-3 PROD Demand'!M294+'FR-16(7)(v)-4 PROD Energy'!M294+'FR-16(7)(v)-5 PROD Cust'!M294+'FR-16(7)(v)-7 TRANS Demand'!M294+'FR-16(7)(v)-8 TRANS Energy'!M294+'FR-16(7)(v)-9 TRANS Cust'!M294+'FR-16(7)(v)-11 DIST Demand'!M294+'FR-16(7)(v)-12 DIST Energy'!M294+'FR-16(7)(v)-13 DIST Cust'!M294-'FR-16(7)(v)-14 TOTAL CLASS'!M294","v":0},{"$f":"'FR-16(7)(v)-3 PROD Demand'!N294+'FR-16(7)(v)-4 PROD Energy'!N294+'FR-16(7)(v)-5 PROD Cust'!N294+'FR-16(7)(v)-7 TRANS Demand'!N294+'FR-16(7)(v)-8 TRANS Energy'!N294+'FR-16(7)(v)-9 TRANS Cust'!N294+'FR-16(7)(v)-11 DIST Demand'!N294+'FR-16(7)(v)-12 DIST Energy'!N294+'FR-16(7)(v)-13 DIST Cust'!N294-'FR-16(7)(v)-14 TOTAL CLASS'!N294","v":0},{"$f":"'FR-16(7)(v)-3 PROD Demand'!O294+'FR-16(7)(v)-4 PROD Energy'!O294+'FR-16(7)(v)-5 PROD Cust'!O294+'FR-16(7)(v)-7 TRANS Demand'!O294+'FR-16(7)(v)-8 TRANS Energy'!O294+'FR-16(7)(v)-9 TRANS Cust'!O294+'FR-16(7)(v)-11 DIST Demand'!O294+'FR-16(7)(v)-12 DIST Energy'!O294+'FR-16(7)(v)-13 DIST Cust'!O294-'FR-16(7)(v)-14 TOTAL CLASS'!O294","v":0},{"$f":"'FR-16(7)(v)-3 PROD Demand'!P294+'FR-16(7)(v)-4 PROD Energy'!P294+'FR-16(7)(v)-5 PROD Cust'!P294+'FR-16(7)(v)-7 TRANS Demand'!P294+'FR-16(7)(v)-8 TRANS Energy'!P294+'FR-16(7)(v)-9 TRANS Cust'!P294+'FR-16(7)(v)-11 DIST Demand'!P294+'FR-16(7)(v)-12 DIST Energy'!P294+'FR-16(7)(v)-13 DIST Cust'!P294-'FR-16(7)(v)-14 TOTAL CLASS'!P294","v":0},{"$f":"'FR-16(7)(v)-3 PROD Demand'!Q294+'FR-16(7)(v)-4 PROD Energy'!Q294+'FR-16(7)(v)-5 PROD Cust'!Q294+'FR-16(7)(v)-7 TRANS Demand'!Q294+'FR-16(7)(v)-8 TRANS Energy'!Q294+'FR-16(7)(v)-9 TRANS Cust'!Q294+'FR-16(7)(v)-11 DIST Demand'!Q294+'FR-16(7)(v)-12 DIST Energy'!Q294+'FR-16(7)(v)-13 DIST Cust'!Q294-'FR-16(7)(v)-14 TOTAL CLASS'!Q294","v":0},0,0]
[7,null,{"$f":"'FR-16(7)(v)-1 Functional'!C295","v":"TAX INTEREST, EXPENSING, DEPR."},{"$f":"'FR-16(7)(v)-1 Functional'!D295","v":"NP29"}," ",{"$f":"'FR-16(7)(v)-3 PROD Demand'!F295+'FR-16(7)(v)-4 PROD Energy'!F295+'FR-16(7)(v)-5 PROD Cust'!F295+'FR-16(7)(v)-7 TRANS Demand'!F295+'FR-16(7)(v)-8 TRANS Energy'!F295+'FR-16(7)(v)-9 TRANS Cust'!F295+'FR-16(7)(v)-11 DIST Demand'!F295+'FR-16(7)(v)-12 DIST Energy'!F295+'FR-16(7)(v)-13 DIST Cust'!F295-'FR-16(7)(v)-14 TOTAL CLASS'!F295","v":0},{"$f":"'FR-16(7)(v)-3 PROD Demand'!G295+'FR-16(7)(v)-4 PROD Energy'!G295+'FR-16(7)(v)-5 PROD Cust'!G295+'FR-16(7)(v)-7 TRANS Demand'!G295+'FR-16(7)(v)-8 TRANS Energy'!G295+'FR-16(7)(v)-9 TRANS Cust'!G295+'FR-16(7)(v)-11 DIST Demand'!G295+'FR-16(7)(v)-12 DIST Energy'!G295+'FR-16(7)(v)-13 DIST Cust'!G295-'FR-16(7)(v)-14 TOTAL CLASS'!G295","v":0},{"$f":"'FR-16(7)(v)-3 PROD Demand'!H295+'FR-16(7)(v)-4 PROD Energy'!H295+'FR-16(7)(v)-5 PROD Cust'!H295+'FR-16(7)(v)-7 TRANS Demand'!H295+'FR-16(7)(v)-8 TRANS Energy'!H295+'FR-16(7)(v)-9 TRANS Cust'!H295+'FR-16(7)(v)-11 DIST Demand'!H295+'FR-16(7)(v)-12 DIST Energy'!H295+'FR-16(7)(v)-13 DIST Cust'!H295-'FR-16(7)(v)-14 TOTAL CLASS'!H295","v":0},{"$f":"'FR-16(7)(v)-3 PROD Demand'!I295+'FR-16(7)(v)-4 PROD Energy'!I295+'FR-16(7)(v)-5 PROD Cust'!I295+'FR-16(7)(v)-7 TRANS Demand'!I295+'FR-16(7)(v)-8 TRANS Energy'!I295+'FR-16(7)(v)-9 TRANS Cust'!I295+'FR-16(7)(v)-11 DIST Demand'!I295+'FR-16(7)(v)-12 DIST Energy'!I295+'FR-16(7)(v)-13 DIST Cust'!I295-'FR-16(7)(v)-14 TOTAL CLASS'!I295","v":0},{"$f":"'FR-16(7)(v)-3 PROD Demand'!J295+'FR-16(7)(v)-4 PROD Energy'!J295+'FR-16(7)(v)-5 PROD Cust'!J295+'FR-16(7)(v)-7 TRANS Demand'!J295+'FR-16(7)(v)-8 TRANS Energy'!J295+'FR-16(7)(v)-9 TRANS Cust'!J295+'FR-16(7)(v)-11 DIST Demand'!J295+'FR-16(7)(v)-12 DIST Energy'!J295+'FR-16(7)(v)-13 DIST Cust'!J295-'FR-16(7)(v)-14 TOTAL CLASS'!J295","v":0},{"$f":"'FR-16(7)(v)-3 PROD Demand'!K295+'FR-16(7)(v)-4 PROD Energy'!K295+'FR-16(7)(v)-5 PROD Cust'!K295+'FR-16(7)(v)-7 TRANS Demand'!K295+'FR-16(7)(v)-8 TRANS Energy'!K295+'FR-16(7)(v)-9 TRANS Cust'!K295+'FR-16(7)(v)-11 DIST Demand'!K295+'FR-16(7)(v)-12 DIST Energy'!K295+'FR-16(7)(v)-13 DIST Cust'!K295-'FR-16(7)(v)-14 TOTAL CLASS'!K295","v":0},{"$f":"'FR-16(7)(v)-3 PROD Demand'!L295+'FR-16(7)(v)-4 PROD Energy'!L295+'FR-16(7)(v)-5 PROD Cust'!L295+'FR-16(7)(v)-7 TRANS Demand'!L295+'FR-16(7)(v)-8 TRANS Energy'!L295+'FR-16(7)(v)-9 TRANS Cust'!L295+'FR-16(7)(v)-11 DIST Demand'!L295+'FR-16(7)(v)-12 DIST Energy'!L295+'FR-16(7)(v)-13 DIST Cust'!L295-'FR-16(7)(v)-14 TOTAL CLASS'!L295","v":0},{"$f":"'FR-16(7)(v)-3 PROD Demand'!M295+'FR-16(7)(v)-4 PROD Energy'!M295+'FR-16(7)(v)-5 PROD Cust'!M295+'FR-16(7)(v)-7 TRANS Demand'!M295+'FR-16(7)(v)-8 TRANS Energy'!M295+'FR-16(7)(v)-9 TRANS Cust'!M295+'FR-16(7)(v)-11 DIST Demand'!M295+'FR-16(7)(v)-12 DIST Energy'!M295+'FR-16(7)(v)-13 DIST Cust'!M295-'FR-16(7)(v)-14 TOTAL CLASS'!M295","v":0},{"$f":"'FR-16(7)(v)-3 PROD Demand'!N295+'FR-16(7)(v)-4 PROD Energy'!N295+'FR-16(7)(v)-5 PROD Cust'!N295+'FR-16(7)(v)-7 TRANS Demand'!N295+'FR-16(7)(v)-8 TRANS Energy'!N295+'FR-16(7)(v)-9 TRANS Cust'!N295+'FR-16(7)(v)-11 DIST Demand'!N295+'FR-16(7)(v)-12 DIST Energy'!N295+'FR-16(7)(v)-13 DIST Cust'!N295-'FR-16(7)(v)-14 TOTAL CLASS'!N295","v":0},{"$f":"'FR-16(7)(v)-3 PROD Demand'!O295+'FR-16(7)(v)-4 PROD Energy'!O295+'FR-16(7)(v)-5 PROD Cust'!O295+'FR-16(7)(v)-7 TRANS Demand'!O295+'FR-16(7)(v)-8 TRANS Energy'!O295+'FR-16(7)(v)-9 TRANS Cust'!O295+'FR-16(7)(v)-11 DIST Demand'!O295+'FR-16(7)(v)-12 DIST Energy'!O295+'FR-16(7)(v)-13 DIST Cust'!O295-'FR-16(7)(v)-14 TOTAL CLASS'!O295","v":0},{"$f":"'FR-16(7)(v)-3 PROD Demand'!P295+'FR-16(7)(v)-4 PROD Energy'!P295+'FR-16(7)(v)-5 PROD Cust'!P295+'FR-16(7)(v)-7 TRANS Demand'!P295+'FR-16(7)(v)-8 TRANS Energy'!P295+'FR-16(7)(v)-9 TRANS Cust'!P295+'FR-16(7)(v)-11 DIST Demand'!P295+'FR-16(7)(v)-12 DIST Energy'!P295+'FR-16(7)(v)-13 DIST Cust'!P295-'FR-16(7)(v)-14 TOTAL CLASS'!P295","v":0},{"$f":"'FR-16(7)(v)-3 PROD Demand'!Q295+'FR-16(7)(v)-4 PROD Energy'!Q295+'FR-16(7)(v)-5 PROD Cust'!Q295+'FR-16(7)(v)-7 TRANS Demand'!Q295+'FR-16(7)(v)-8 TRANS Energy'!Q295+'FR-16(7)(v)-9 TRANS Cust'!Q295+'FR-16(7)(v)-11 DIST Demand'!Q295+'FR-16(7)(v)-12 DIST Energy'!Q295+'FR-16(7)(v)-13 DIST Cust'!Q295-'FR-16(7)(v)-14 TOTAL CLASS'!Q295","v":0},0,0]
[8,null,{"$f":"'FR-16(7)(v)-1 Functional'!C296","v":"AFUDC IN DEBT"},{"$f":"'FR-16(7)(v)-1 Functional'!D296","v":"NP29"}," ",{"$f":"'FR-16(7)(v)-3 PROD Demand'!F296+'FR-16(7)(v)-4 PROD Energy'!F296+'FR-16(7)(v)-5 PROD Cust'!F296+'FR-16(7)(v)-7 TRANS Demand'!F296+'FR-16(7)(v)-8 TRANS Energy'!F296+'FR-16(7)(v)-9 TRANS Cust'!F296+'FR-16(7)(v)-11 DIST Demand'!F296+'FR-16(7)(v)-12 DIST Energy'!F296+'FR-16(7)(v)-13 DIST Cust'!F296-'FR-16(7)(v)-14 TOTAL CLASS'!F296","v":0},{"$f":"'FR-16(7)(v)-3 PROD Demand'!G296+'FR-16(7)(v)-4 PROD Energy'!G296+'FR-16(7)(v)-5 PROD Cust'!G296+'FR-16(7)(v)-7 TRANS Demand'!G296+'FR-16(7)(v)-8 TRANS Energy'!G296+'FR-16(7)(v)-9 TRANS Cust'!G296+'FR-16(7)(v)-11 DIST Demand'!G296+'FR-16(7)(v)-12 DIST Energy'!G296+'FR-16(7)(v)-13 DIST Cust'!G296-'FR-16(7)(v)-14 TOTAL CLASS'!G296","v":0},{"$f":"'FR-16(7)(v)-3 PROD Demand'!H296+'FR-16(7)(v)-4 PROD Energy'!H296+'FR-16(7)(v)-5 PROD Cust'!H296+'FR-16(7)(v)-7 TRANS Demand'!H296+'FR-16(7)(v)-8 TRANS Energy'!H296+'FR-16(7)(v)-9 TRANS Cust'!H296+'FR-16(7)(v)-11 DIST Demand'!H296+'FR-16(7)(v)-12 DIST Energy'!H296+'FR-16(7)(v)-13 DIST Cust'!H296-'FR-16(7)(v)-14 TOTAL CLASS'!H296","v":0},{"$f":"'FR-16(7)(v)-3 PROD Demand'!I296+'FR-16(7)(v)-4 PROD Energy'!I296+'FR-16(7)(v)-5 PROD Cust'!I296+'FR-16(7)(v)-7 TRANS Demand'!I296+'FR-16(7)(v)-8 TRANS Energy'!I296+'FR-16(7)(v)-9 TRANS Cust'!I296+'FR-16(7)(v)-11 DIST Demand'!I296+'FR-16(7)(v)-12 DIST Energy'!I296+'FR-16(7)(v)-13 DIST Cust'!I296-'FR-16(7)(v)-14 TOTAL CLASS'!I296","v":0},{"$f":"'FR-16(7)(v)-3 PROD Demand'!J296+'FR-16(7)(v)-4 PROD Energy'!J296+'FR-16(7)(v)-5 PROD Cust'!J296+'FR-16(7)(v)-7 TRANS Demand'!J296+'FR-16(7)(v)-8 TRANS Energy'!J296+'FR-16(7)(v)-9 TRANS Cust'!J296+'FR-16(7)(v)-11 DIST Demand'!J296+'FR-16(7)(v)-12 DIST Energy'!J296+'FR-16(7)(v)-13 DIST Cust'!J296-'FR-16(7)(v)-14 TOTAL CLASS'!J296","v":0},{"$f":"'FR-16(7)(v)-3 PROD Demand'!K296+'FR-16(7)(v)-4 PROD Energy'!K296+'FR-16(7)(v)-5 PROD Cust'!K296+'FR-16(7)(v)-7 TRANS Demand'!K296+'FR-16(7)(v)-8 TRANS Energy'!K296+'FR-16(7)(v)-9 TRANS Cust'!K296+'FR-16(7)(v)-11 DIST Demand'!K296+'FR-16(7)(v)-12 DIST Energy'!K296+'FR-16(7)(v)-13 DIST Cust'!K296-'FR-16(7)(v)-14 TOTAL CLASS'!K296","v":0},{"$f":"'FR-16(7)(v)-3 PROD Demand'!L296+'FR-16(7)(v)-4 PROD Energy'!L296+'FR-16(7)(v)-5 PROD Cust'!L296+'FR-16(7)(v)-7 TRANS Demand'!L296+'FR-16(7)(v)-8 TRANS Energy'!L296+'FR-16(7)(v)-9 TRANS Cust'!L296+'FR-16(7)(v)-11 DIST Demand'!L296+'FR-16(7)(v)-12 DIST Energy'!L296+'FR-16(7)(v)-13 DIST Cust'!L296-'FR-16(7)(v)-14 TOTAL CLASS'!L296","v":0},{"$f":"'FR-16(7)(v)-3 PROD Demand'!M296+'FR-16(7)(v)-4 PROD Energy'!M296+'FR-16(7)(v)-5 PROD Cust'!M296+'FR-16(7)(v)-7 TRANS Demand'!M296+'FR-16(7)(v)-8 TRANS Energy'!M296+'FR-16(7)(v)-9 TRANS Cust'!M296+'FR-16(7)(v)-11 DIST Demand'!M296+'FR-16(7)(v)-12 DIST Energy'!M296+'FR-16(7)(v)-13 DIST Cust'!M296-'FR-16(7)(v)-14 TOTAL CLASS'!M296","v":0},{"$f":"'FR-16(7)(v)-3 PROD Demand'!N296+'FR-16(7)(v)-4 PROD Energy'!N296+'FR-16(7)(v)-5 PROD Cust'!N296+'FR-16(7)(v)-7 TRANS Demand'!N296+'FR-16(7)(v)-8 TRANS Energy'!N296+'FR-16(7)(v)-9 TRANS Cust'!N296+'FR-16(7)(v)-11 DIST Demand'!N296+'FR-16(7)(v)-12 DIST Energy'!N296+'FR-16(7)(v)-13 DIST Cust'!N296-'FR-16(7)(v)-14 TOTAL CLASS'!N296","v":0},{"$f":"'FR-16(7)(v)-3 PROD Demand'!O296+'FR-16(7)(v)-4 PROD Energy'!O296+'FR-16(7)(v)-5 PROD Cust'!O296+'FR-16(7)(v)-7 TRANS Demand'!O296+'FR-16(7)(v)-8 TRANS Energy'!O296+'FR-16(7)(v)-9 TRANS Cust'!O296+'FR-16(7)(v)-11 DIST Demand'!O296+'FR-16(7)(v)-12 DIST Energy'!O296+'FR-16(7)(v)-13 DIST Cust'!O296-'FR-16(7)(v)-14 TOTAL CLASS'!O296","v":0},{"$f":"'FR-16(7)(v)-3 PROD Demand'!P296+'FR-16(7)(v)-4 PROD Energy'!P296+'FR-16(7)(v)-5 PROD Cust'!P296+'FR-16(7)(v)-7 TRANS Demand'!P296+'FR-16(7)(v)-8 TRANS Energy'!P296+'FR-16(7)(v)-9 TRANS Cust'!P296+'FR-16(7)(v)-11 DIST Demand'!P296+'FR-16(7)(v)-12 DIST Energy'!P296+'FR-16(7)(v)-13 DIST Cust'!P296-'FR-16(7)(v)-14 TOTAL CLASS'!P296","v":0},{"$f":"'FR-16(7)(v)-3 PROD Demand'!Q296+'FR-16(7)(v)-4 PROD Energy'!Q296+'FR-16(7)(v)-5 PROD Cust'!Q296+'FR-16(7)(v)-7 TRANS Demand'!Q296+'FR-16(7)(v)-8 TRANS Energy'!Q296+'FR-16(7)(v)-9 TRANS Cust'!Q296+'FR-16(7)(v)-11 DIST Demand'!Q296+'FR-16(7)(v)-12 DIST Energy'!Q296+'FR-16(7)(v)-13 DIST Cust'!Q296-'FR-16(7)(v)-14 TOTAL CLASS'!Q296","v":0},0,0]
[9,null,{"$f":"'FR-16(7)(v)-1 Functional'!C297","v":"CASUALTY LOSS"},{"$f":"'FR-16(7)(v)-1 Functional'!D297","v":"K411"}," ",{"$f":"'FR-16(7)(v)-3 PROD Demand'!F297+'FR-16(7)(v)-4 PROD Energy'!F297+'FR-16(7)(v)-5 PROD Cust'!F297+'FR-16(7)(v)-7 TRANS Demand'!F297+'FR-16(7)(v)-8 TRANS Energy'!F297+'FR-16(7)(v)-9 TRANS Cust'!F297+'FR-16(7)(v)-11 DIST Demand'!F297+'FR-16(7)(v)-12 DIST Energy'!F297+'FR-16(7)(v)-13 DIST Cust'!F297-'FR-16(7)(v)-14 TOTAL CLASS'!F297","v":0},{"$f":"'FR-16(7)(v)-3 PROD Demand'!G297+'FR-16(7)(v)-4 PROD Energy'!G297+'FR-16(7)(v)-5 PROD Cust'!G297+'FR-16(7)(v)-7 TRANS Demand'!G297+'FR-16(7)(v)-8 TRANS Energy'!G297+'FR-16(7)(v)-9 TRANS Cust'!G297+'FR-16(7)(v)-11 DIST Demand'!G297+'FR-16(7)(v)-12 DIST Energy'!G297+'FR-16(7)(v)-13 DIST Cust'!G297-'FR-16(7)(v)-14 TOTAL CLASS'!G297","v":0},{"$f":"'FR-16(7)(v)-3 PROD Demand'!H297+'FR-16(7)(v)-4 PROD Energy'!H297+'FR-16(7)(v)-5 PROD Cust'!H297+'FR-16(7)(v)-7 TRANS Demand'!H297+'FR-16(7)(v)-8 TRANS Energy'!H297+'FR-16(7)(v)-9 TRANS Cust'!H297+'FR-16(7)(v)-11 DIST Demand'!H297+'FR-16(7)(v)-12 DIST Energy'!H297+'FR-16(7)(v)-13 DIST Cust'!H297-'FR-16(7)(v)-14 TOTAL CLASS'!H297","v":0},{"$f":"'FR-16(7)(v)-3 PROD Demand'!I297+'FR-16(7)(v)-4 PROD Energy'!I297+'FR-16(7)(v)-5 PROD Cust'!I297+'FR-16(7)(v)-7 TRANS Demand'!I297+'FR-16(7)(v)-8 TRANS Energy'!I297+'FR-16(7)(v)-9 TRANS Cust'!I297+'FR-16(7)(v)-11 DIST Demand'!I297+'FR-16(7)(v)-12 DIST Energy'!I297+'FR-16(7)(v)-13 DIST Cust'!I297-'FR-16(7)(v)-14 TOTAL CLASS'!I297","v":0},{"$f":"'FR-16(7)(v)-3 PROD Demand'!J297+'FR-16(7)(v)-4 PROD Energy'!J297+'FR-16(7)(v)-5 PROD Cust'!J297+'FR-16(7)(v)-7 TRANS Demand'!J297+'FR-16(7)(v)-8 TRANS Energy'!J297+'FR-16(7)(v)-9 TRANS Cust'!J297+'FR-16(7)(v)-11 DIST Demand'!J297+'FR-16(7)(v)-12 DIST Energy'!J297+'FR-16(7)(v)-13 DIST Cust'!J297-'FR-16(7)(v)-14 TOTAL CLASS'!J297","v":0},{"$f":"'FR-16(7)(v)-3 PROD Demand'!K297+'FR-16(7)(v)-4 PROD Energy'!K297+'FR-16(7)(v)-5 PROD Cust'!K297+'FR-16(7)(v)-7 TRANS Demand'!K297+'FR-16(7)(v)-8 TRANS Energy'!K297+'FR-16(7)(v)-9 TRANS Cust'!K297+'FR-16(7)(v)-11 DIST Demand'!K297+'FR-16(7)(v)-12 DIST Energy'!K297+'FR-16(7)(v)-13 DIST Cust'!K297-'FR-16(7)(v)-14 TOTAL CLASS'!K297","v":0},{"$f":"'FR-16(7)(v)-3 PROD Demand'!L297+'FR-16(7)(v)-4 PROD Energy'!L297+'FR-16(7)(v)-5 PROD Cust'!L297+'FR-16(7)(v)-7 TRANS Demand'!L297+'FR-16(7)(v)-8 TRANS Energy'!L297+'FR-16(7)(v)-9 TRANS Cust'!L297+'FR-16(7)(v)-11 DIST Demand'!L297+'FR-16(7)(v)-12 DIST Energy'!L297+'FR-16(7)(v)-13 DIST Cust'!L297-'FR-16(7)(v)-14 TOTAL CLASS'!L297","v":0},{"$f":"'FR-16(7)(v)-3 PROD Demand'!M297+'FR-16(7)(v)-4 PROD Energy'!M297+'FR-16(7)(v)-5 PROD Cust'!M297+'FR-16(7)(v)-7 TRANS Demand'!M297+'FR-16(7)(v)-8 TRANS Energy'!M297+'FR-16(7)(v)-9 TRANS Cust'!M297+'FR-16(7)(v)-11 DIST Demand'!M297+'FR-16(7)(v)-12 DIST Energy'!M297+'FR-16(7)(v)-13 DIST Cust'!M297-'FR-16(7)(v)-14 TOTAL CLASS'!M297","v":0},{"$f":"'FR-16(7)(v)-3 PROD Demand'!N297+'FR-16(7)(v)-4 PROD Energy'!N297+'FR-16(7)(v)-5 PROD Cust'!N297+'FR-16(7)(v)-7 TRANS Demand'!N297+'FR-16(7)(v)-8 TRANS Energy'!N297+'FR-16(7)(v)-9 TRANS Cust'!N297+'FR-16(7)(v)-11 DIST Demand'!N297+'FR-16(7)(v)-12 DIST Energy'!N297+'FR-16(7)(v)-13 DIST Cust'!N297-'FR-16(7)(v)-14 TOTAL CLASS'!N297","v":0},{"$f":"'FR-16(7)(v)-3 PROD Demand'!O297+'FR-16(7)(v)-4 PROD Energy'!O297+'FR-16(7)(v)-5 PROD Cust'!O297+'FR-16(7)(v)-7 TRANS Demand'!O297+'FR-16(7)(v)-8 TRANS Energy'!O297+'FR-16(7)(v)-9 TRANS Cust'!O297+'FR-16(7)(v)-11 DIST Demand'!O297+'FR-16(7)(v)-12 DIST Energy'!O297+'FR-16(7)(v)-13 DIST Cust'!O297-'FR-16(7)(v)-14 TOTAL CLASS'!O297","v":0},{"$f":"'FR-16(7)(v)-3 PROD Demand'!P297+'FR-16(7)(v)-4 PROD Energy'!P297+'FR-16(7)(v)-5 PROD Cust'!P297+'FR-16(7)(v)-7 TRANS Demand'!P297+'FR-16(7)(v)-8 TRANS Energy'!P297+'FR-16(7)(v)-9 TRANS Cust'!P297+'FR-16(7)(v)-11 DIST Demand'!P297+'FR-16(7)(v)-12 DIST Energy'!P297+'FR-16(7)(v)-13 DIST Cust'!P297-'FR-16(7)(v)-14 TOTAL CLASS'!P297","v":0},{"$f":"'FR-16(7)(v)-3 PROD Demand'!Q297+'FR-16(7)(v)-4 PROD Energy'!Q297+'FR-16(7)(v)-5 PROD Cust'!Q297+'FR-16(7)(v)-7 TRANS Demand'!Q297+'FR-16(7)(v)-8 TRANS Energy'!Q297+'FR-16(7)(v)-9 TRANS Cust'!Q297+'FR-16(7)(v)-11 DIST Demand'!Q297+'FR-16(7)(v)-12 DIST Energy'!Q297+'FR-16(7)(v)-13 DIST Cust'!Q297-'FR-16(7)(v)-14 TOTAL CLASS'!Q297","v":0},0,0]
[10,null,{"$f":"'FR-16(7)(v)-1 Functional'!C298","v":"NON-CASH OVERHEADS"},{"$f":"'FR-16(7)(v)-1 Functional'!D298","v":"G229"}," ",{"$f":"'FR-16(7)(v)-3 PROD Demand'!F298+'FR-16(7)(v)-4 PROD Energy'!F298+'FR-16(7)(v)-5 PROD Cust'!F298+'FR-16(7)(v)-7 TRANS Demand'!F298+'FR-16(7)(v)-8 TRANS Energy'!F298+'FR-16(7)(v)-9 TRANS Cust'!F298+'FR-16(7)(v)-11 DIST Demand'!F298+'FR-16(7)(v)-12 DIST Energy'!F298+'FR-16(7)(v)-13 DIST Cust'!F298-'FR-16(7)(v)-14 TOTAL CLASS'!F298","v":0},{"$f":"'FR-16(7)(v)-3 PROD Demand'!G298+'FR-16(7)(v)-4 PROD Energy'!G298+'FR-16(7)(v)-5 PROD Cust'!G298+'FR-16(7)(v)-7 TRANS Demand'!G298+'FR-16(7)(v)-8 TRANS Energy'!G298+'FR-16(7)(v)-9 TRANS Cust'!G298+'FR-16(7)(v)-11 DIST Demand'!G298+'FR-16(7)(v)-12 DIST Energy'!G298+'FR-16(7)(v)-13 DIST Cust'!G298-'FR-16(7)(v)-14 TOTAL CLASS'!G298","v":0},{"$f":"'FR-16(7)(v)-3 PROD Demand'!H298+'FR-16(7)(v)-4 PROD Energy'!H298+'FR-16(7)(v)-5 PROD Cust'!H298+'FR-16(7)(v)-7 TRANS Demand'!H298+'FR-16(7)(v)-8 TRANS Energy'!H298+'FR-16(7)(v)-9 TRANS Cust'!H298+'FR-16(7)(v)-11 DIST Demand'!H298+'FR-16(7)(v)-12 DIST Energy'!H298+'FR-16(7)(v)-13 DIST Cust'!H298-'FR-16(7)(v)-14 TOTAL CLASS'!H298","v":0},{"$f":"'FR-16(7)(v)-3 PROD Demand'!I298+'FR-16(7)(v)-4 PROD Energy'!I298+'FR-16(7)(v)-5 PROD Cust'!I298+'FR-16(7)(v)-7 TRANS Demand'!I298+'FR-16(7)(v)-8 TRANS Energy'!I298+'FR-16(7)(v)-9 TRANS Cust'!I298+'FR-16(7)(v)-11 DIST Demand'!I298+'FR-16(7)(v)-12 DIST Energy'!I298+'FR-16(7)(v)-13 DIST Cust'!I298-'FR-16(7)(v)-14 TOTAL CLASS'!I298","v":0},{"$f":"'FR-16(7)(v)-3 PROD Demand'!J298+'FR-16(7)(v)-4 PROD Energy'!J298+'FR-16(7)(v)-5 PROD Cust'!J298+'FR-16(7)(v)-7 TRANS Demand'!J298+'FR-16(7)(v)-8 TRANS Energy'!J298+'FR-16(7)(v)-9 TRANS Cust'!J298+'FR-16(7)(v)-11 DIST Demand'!J298+'FR-16(7)(v)-12 DIST Energy'!J298+'FR-16(7)(v)-13 DIST Cust'!J298-'FR-16(7)(v)-14 TOTAL CLASS'!J298","v":0},{"$f":"'FR-16(7)(v)-3 PROD Demand'!K298+'FR-16(7)(v)-4 PROD Energy'!K298+'FR-16(7)(v)-5 PROD Cust'!K298+'FR-16(7)(v)-7 TRANS Demand'!K298+'FR-16(7)(v)-8 TRANS Energy'!K298+'FR-16(7)(v)-9 TRANS Cust'!K298+'FR-16(7)(v)-11 DIST Demand'!K298+'FR-16(7)(v)-12 DIST Energy'!K298+'FR-16(7)(v)-13 DIST Cust'!K298-'FR-16(7)(v)-14 TOTAL CLASS'!K298","v":0},{"$f":"'FR-16(7)(v)-3 PROD Demand'!L298+'FR-16(7)(v)-4 PROD Energy'!L298+'FR-16(7)(v)-5 PROD Cust'!L298+'FR-16(7)(v)-7 TRANS Demand'!L298+'FR-16(7)(v)-8 TRANS Energy'!L298+'FR-16(7)(v)-9 TRANS Cust'!L298+'FR-16(7)(v)-11 DIST Demand'!L298+'FR-16(7)(v)-12 DIST Energy'!L298+'FR-16(7)(v)-13 DIST Cust'!L298-'FR-16(7)(v)-14 TOTAL CLASS'!L298","v":0},{"$f":"'FR-16(7)(v)-3 PROD Demand'!M298+'FR-16(7)(v)-4 PROD Energy'!M298+'FR-16(7)(v)-5 PROD Cust'!M298+'FR-16(7)(v)-7 TRANS Demand'!M298+'FR-16(7)(v)-8 TRANS Energy'!M298+'FR-16(7)(v)-9 TRANS Cust'!M298+'FR-16(7)(v)-11 DIST Demand'!M298+'FR-16(7)(v)-12 DIST Energy'!M298+'FR-16(7)(v)-13 DIST Cust'!M298-'FR-16(7)(v)-14 TOTAL CLASS'!M298","v":0},{"$f":"'FR-16(7)(v)-3 PROD Demand'!N298+'FR-16(7)(v)-4 PROD Energy'!N298+'FR-16(7)(v)-5 PROD Cust'!N298+'FR-16(7)(v)-7 TRANS Demand'!N298+'FR-16(7)(v)-8 TRANS Energy'!N298+'FR-16(7)(v)-9 TRANS Cust'!N298+'FR-16(7)(v)-11 DIST Demand'!N298+'FR-16(7)(v)-12 DIST Energy'!N298+'FR-16(7)(v)-13 DIST Cust'!N298-'FR-16(7)(v)-14 TOTAL CLASS'!N298","v":0},{"$f":"'FR-16(7)(v)-3 PROD Demand'!O298+'FR-16(7)(v)-4 PROD Energy'!O298+'FR-16(7)(v)-5 PROD Cust'!O298+'FR-16(7)(v)-7 TRANS Demand'!O298+'FR-16(7)(v)-8 TRANS Energy'!O298+'FR-16(7)(v)-9 TRANS Cust'!O298+'FR-16(7)(v)-11 DIST Demand'!O298+'FR-16(7)(v)-12 DIST Energy'!O298+'FR-16(7)(v)-13 DIST Cust'!O298-'FR-16(7)(v)-14 TOTAL CLASS'!O298","v":0},{"$f":"'FR-16(7)(v)-3 PROD Demand'!P298+'FR-16(7)(v)-4 PROD Energy'!P298+'FR-16(7)(v)-5 PROD Cust'!P298+'FR-16(7)(v)-7 TRANS Demand'!P298+'FR-16(7)(v)-8 TRANS Energy'!P298+'FR-16(7)(v)-9 TRANS Cust'!P298+'FR-16(7)(v)-11 DIST Demand'!P298+'FR-16(7)(v)-12 DIST Energy'!P298+'FR-16(7)(v)-13 DIST Cust'!P298-'FR-16(7)(v)-14 TOTAL CLASS'!P298","v":0},{"$f":"'FR-16(7)(v)-3 PROD Demand'!Q298+'FR-16(7)(v)-4 PROD Energy'!Q298+'FR-16(7)(v)-5 PROD Cust'!Q298+'FR-16(7)(v)-7 TRANS Demand'!Q298+'FR-16(7)(v)-8 TRANS Energy'!Q298+'FR-16(7)(v)-9 TRANS Cust'!Q298+'FR-16(7)(v)-11 DIST Demand'!Q298+'FR-16(7)(v)-12 DIST Energy'!Q298+'FR-16(7)(v)-13 DIST Cust'!Q298-'FR-16(7)(v)-14 TOTAL CLASS'!Q298","v":0},0,0]
[11,null,{"$f":"'FR-16(7)(v)-1 Functional'!C299","v":"PLANT FAS 109"},{"$f":"'FR-16(7)(v)-1 Functional'!D299","v":"NP29"}," ",{"$f":"'FR-16(7)(v)-3 PROD Demand'!F299+'FR-16(7)(v)-4 PROD Energy'!F299+'FR-16(7)(v)-5 PROD Cust'!F299+'FR-16(7)(v)-7 TRANS Demand'!F299+'FR-16(7)(v)-8 TRANS Energy'!F299+'FR-16(7)(v)-9 TRANS Cust'!F299+'FR-16(7)(v)-11 DIST Demand'!F299+'FR-16(7)(v)-12 DIST Energy'!F299+'FR-16(7)(v)-13 DIST Cust'!F299-'FR-16(7)(v)-14 TOTAL CLASS'!F299","v":0},{"$f":"'FR-16(7)(v)-3 PROD Demand'!G299+'FR-16(7)(v)-4 PROD Energy'!G299+'FR-16(7)(v)-5 PROD Cust'!G299+'FR-16(7)(v)-7 TRANS Demand'!G299+'FR-16(7)(v)-8 TRANS Energy'!G299+'FR-16(7)(v)-9 TRANS Cust'!G299+'FR-16(7)(v)-11 DIST Demand'!G299+'FR-16(7)(v)-12 DIST Energy'!G299+'FR-16(7)(v)-13 DIST Cust'!G299-'FR-16(7)(v)-14 TOTAL CLASS'!G299","v":0},{"$f":"'FR-16(7)(v)-3 PROD Demand'!H299+'FR-16(7)(v)-4 PROD Energy'!H299+'FR-16(7)(v)-5 PROD Cust'!H299+'FR-16(7)(v)-7 TRANS Demand'!H299+'FR-16(7)(v)-8 TRANS Energy'!H299+'FR-16(7)(v)-9 TRANS Cust'!H299+'FR-16(7)(v)-11 DIST Demand'!H299+'FR-16(7)(v)-12 DIST Energy'!H299+'FR-16(7)(v)-13 DIST Cust'!H299-'FR-16(7)(v)-14 TOTAL CLASS'!H299","v":0},{"$f":"'FR-16(7)(v)-3 PROD Demand'!I299+'FR-16(7)(v)-4 PROD Energy'!I299+'FR-16(7)(v)-5 PROD Cust'!I299+'FR-16(7)(v)-7 TRANS Demand'!I299+'FR-16(7)(v)-8 TRANS Energy'!I299+'FR-16(7)(v)-9 TRANS Cust'!I299+'FR-16(7)(v)-11 DIST Demand'!I299+'FR-16(7)(v)-12 DIST Energy'!I299+'FR-16(7)(v)-13 DIST Cust'!I299-'FR-16(7)(v)-14 TOTAL CLASS'!I299","v":0},{"$f":"'FR-16(7)(v)-3 PROD Demand'!J299+'FR-16(7)(v)-4 PROD Energy'!J299+'FR-16(7)(v)-5 PROD Cust'!J299+'FR-16(7)(v)-7 TRANS Demand'!J299+'FR-16(7)(v)-8 TRANS Energy'!J299+'FR-16(7)(v)-9 TRANS Cust'!J299+'FR-16(7)(v)-11 DIST Demand'!J299+'FR-16(7)(v)-12 DIST Energy'!J299+'FR-16(7)(v)-13 DIST Cust'!J299-'FR-16(7)(v)-14 TOTAL CLASS'!J299","v":0},{"$f":"'FR-16(7)(v)-3 PROD Demand'!K299+'FR-16(7)(v)-4 PROD Energy'!K299+'FR-16(7)(v)-5 PROD Cust'!K299+'FR-16(7)(v)-7 TRANS Demand'!K299+'FR-16(7)(v)-8 TRANS Energy'!K299+'FR-16(7)(v)-9 TRANS Cust'!K299+'FR-16(7)(v)-11 DIST Demand'!K299+'FR-16(7)(v)-12 DIST Energy'!K299+'FR-16(7)(v)-13 DIST Cust'!K299-'FR-16(7)(v)-14 TOTAL CLASS'!K299","v":0},{"$f":"'FR-16(7)(v)-3 PROD Demand'!L299+'FR-16(7)(v)-4 PROD Energy'!L299+'FR-16(7)(v)-5 PROD Cust'!L299+'FR-16(7)(v)-7 TRANS Demand'!L299+'FR-16(7)(v)-8 TRANS Energy'!L299+'FR-16(7)(v)-9 TRANS Cust'!L299+'FR-16(7)(v)-11 DIST Demand'!L299+'FR-16(7)(v)-12 DIST Energy'!L299+'FR-16(7)(v)-13 DIST Cust'!L299-'FR-16(7)(v)-14 TOTAL CLASS'!L299","v":0},{"$f":"'FR-16(7)(v)-3 PROD Demand'!M299+'FR-16(7)(v)-4 PROD Energy'!M299+'FR-16(7)(v)-5 PROD Cust'!M299+'FR-16(7)(v)-7 TRANS Demand'!M299+'FR-16(7)(v)-8 TRANS Energy'!M299+'FR-16(7)(v)-9 TRANS Cust'!M299+'FR-16(7)(v)-11 DIST Demand'!M299+'FR-16(7)(v)-12 DIST Energy'!M299+'FR-16(7)(v)-13 DIST Cust'!M299-'FR-16(7)(v)-14 TOTAL CLASS'!M299","v":0},{"$f":"'FR-16(7)(v)-3 PROD Demand'!N299+'FR-16(7)(v)-4 PROD Energy'!N299+'FR-16(7)(v)-5 PROD Cust'!N299+'FR-16(7)(v)-7 TRANS Demand'!N299+'FR-16(7)(v)-8 TRANS Energy'!N299+'FR-16(7)(v)-9 TRANS Cust'!N299+'FR-16(7)(v)-11 DIST Demand'!N299+'FR-16(7)(v)-12 DIST Energy'!N299+'FR-16(7)(v)-13 DIST Cust'!N299-'FR-16(7)(v)-14 TOTAL CLASS'!N299","v":0},{"$f":"'FR-16(7)(v)-3 PROD Demand'!O299+'FR-16(7)(v)-4 PROD Energy'!O299+'FR-16(7)(v)-5 PROD Cust'!O299+'FR-16(7)(v)-7 TRANS Demand'!O299+'FR-16(7)(v)-8 TRANS Energy'!O299+'FR-16(7)(v)-9 TRANS Cust'!O299+'FR-16(7)(v)-11 DIST Demand'!O299+'FR-16(7)(v)-12 DIST Energy'!O299+'FR-16(7)(v)-13 DIST Cust'!O299-'FR-16(7)(v)-14 TOTAL CLASS'!O299","v":0},{"$f":"'FR-16(7)(v)-3 PROD Demand'!P299+'FR-16(7)(v)-4 PROD Energy'!P299+'FR-16(7)(v)-5 PROD Cust'!P299+'FR-16(7)(v)-7 TRANS Demand'!P299+'FR-16(7)(v)-8 TRANS Energy'!P299+'FR-16(7)(v)-9 TRANS Cust'!P299+'FR-16(7)(v)-11 DIST Demand'!P299+'FR-16(7)(v)-12 DIST Energy'!P299+'FR-16(7)(v)-13 DIST Cust'!P299-'FR-16(7)(v)-14 TOTAL CLASS'!P299","v":0},{"$f":"'FR-16(7)(v)-3 PROD Demand'!Q299+'FR-16(7)(v)-4 PROD Energy'!Q299+'FR-16(7)(v)-5 PROD Cust'!Q299+'FR-16(7)(v)-7 TRANS Demand'!Q299+'FR-16(7)(v)-8 TRANS Energy'!Q299+'FR-16(7)(v)-9 TRANS Cust'!Q299+'FR-16(7)(v)-11 DIST Demand'!Q299+'FR-16(7)(v)-12 DIST Energy'!Q299+'FR-16(7)(v)-13 DIST Cust'!Q299-'FR-16(7)(v)-14 TOTAL CLASS'!Q299","v":0},0,0]
[12,null,{"$f":"'FR-16(7)(v)-1 Functional'!C300","v":"MISCELLANEOUS"},{"$f":"'FR-16(7)(v)-1 Functional'!D300","v":"NP29"},null,{"$f":"'FR-16(7)(v)-3 PROD Demand'!F300+'FR-16(7)(v)-4 PROD Energy'!F300+'FR-16(7)(v)-5 PROD Cust'!F300+'FR-16(7)(v)-7 TRANS Demand'!F300+'FR-16(7)(v)-8 TRANS Energy'!F300+'FR-16(7)(v)-9 TRANS Cust'!F300+'FR-16(7)(v)-11 DIST Demand'!F300+'FR-16(7)(v)-12 DIST Energy'!F300+'FR-16(7)(v)-13 DIST Cust'!F300-'FR-16(7)(v)-14 TOTAL CLASS'!F300","v":0},{"$f":"'FR-16(7)(v)-3 PROD Demand'!G300+'FR-16(7)(v)-4 PROD Energy'!G300+'FR-16(7)(v)-5 PROD Cust'!G300+'FR-16(7)(v)-7 TRANS Demand'!G300+'FR-16(7)(v)-8 TRANS Energy'!G300+'FR-16(7)(v)-9 TRANS Cust'!G300+'FR-16(7)(v)-11 DIST Demand'!G300+'FR-16(7)(v)-12 DIST Energy'!G300+'FR-16(7)(v)-13 DIST Cust'!G300-'FR-16(7)(v)-14 TOTAL CLASS'!G300","v":0},{"$f":"'FR-16(7)(v)-3 PROD Demand'!H300+'FR-16(7)(v)-4 PROD Energy'!H300+'FR-16(7)(v)-5 PROD Cust'!H300+'FR-16(7)(v)-7 TRANS Demand'!H300+'FR-16(7)(v)-8 TRANS Energy'!H300+'FR-16(7)(v)-9 TRANS Cust'!H300+'FR-16(7)(v)-11 DIST Demand'!H300+'FR-16(7)(v)-12 DIST Energy'!H300+'FR-16(7)(v)-13 DIST Cust'!H300-'FR-16(7)(v)-14 TOTAL CLASS'!H300","v":0},{"$f":"'FR-16(7)(v)-3 PROD Demand'!I300+'FR-16(7)(v)-4 PROD Energy'!I300+'FR-16(7)(v)-5 PROD Cust'!I300+'FR-16(7)(v)-7 TRANS Demand'!I300+'FR-16(7)(v)-8 TRANS Energy'!I300+'FR-16(7)(v)-9 TRANS Cust'!I300+'FR-16(7)(v)-11 DIST Demand'!I300+'FR-16(7)(v)-12 DIST Energy'!I300+'FR-16(7)(v)-13 DIST Cust'!I300-'FR-16(7)(v)-14 TOTAL CLASS'!I300","v":0},{"$f":"'FR-16(7)(v)-3 PROD Demand'!J300+'FR-16(7)(v)-4 PROD Energy'!J300+'FR-16(7)(v)-5 PROD Cust'!J300+'FR-16(7)(v)-7 TRANS Demand'!J300+'FR-16(7)(v)-8 TRANS Energy'!J300+'FR-16(7)(v)-9 TRANS Cust'!J300+'FR-16(7)(v)-11 DIST Demand'!J300+'FR-16(7)(v)-12 DIST Energy'!J300+'FR-16(7)(v)-13 DIST Cust'!J300-'FR-16(7)(v)-14 TOTAL CLASS'!J300","v":0},{"$f":"'FR-16(7)(v)-3 PROD Demand'!K300+'FR-16(7)(v)-4 PROD Energy'!K300+'FR-16(7)(v)-5 PROD Cust'!K300+'FR-16(7)(v)-7 TRANS Demand'!K300+'FR-16(7)(v)-8 TRANS Energy'!K300+'FR-16(7)(v)-9 TRANS Cust'!K300+'FR-16(7)(v)-11 DIST Demand'!K300+'FR-16(7)(v)-12 DIST Energy'!K300+'FR-16(7)(v)-13 DIST Cust'!K300-'FR-16(7)(v)-14 TOTAL CLASS'!K300","v":0},{"$f":"'FR-16(7)(v)-3 PROD Demand'!L300+'FR-16(7)(v)-4 PROD Energy'!L300+'FR-16(7)(v)-5 PROD Cust'!L300+'FR-16(7)(v)-7 TRANS Demand'!L300+'FR-16(7)(v)-8 TRANS Energy'!L300+'FR-16(7)(v)-9 TRANS Cust'!L300+'FR-16(7)(v)-11 DIST Demand'!L300+'FR-16(7)(v)-12 DIST Energy'!L300+'FR-16(7)(v)-13 DIST Cust'!L300-'FR-16(7)(v)-14 TOTAL CLASS'!L300","v":0},{"$f":"'FR-16(7)(v)-3 PROD Demand'!M300+'FR-16(7)(v)-4 PROD Energy'!M300+'FR-16(7)(v)-5 PROD Cust'!M300+'FR-16(7)(v)-7 TRANS Demand'!M300+'FR-16(7)(v)-8 TRANS Energy'!M300+'FR-16(7)(v)-9 TRANS Cust'!M300+'FR-16(7)(v)-11 DIST Demand'!M300+'FR-16(7)(v)-12 DIST Energy'!M300+'FR-16(7)(v)-13 DIST Cust'!M300-'FR-16(7)(v)-14 TOTAL CLASS'!M300","v":0},{"$f":"'FR-16(7)(v)-3 PROD Demand'!N300+'FR-16(7)(v)-4 PROD Energy'!N300+'FR-16(7)(v)-5 PROD Cust'!N300+'FR-16(7)(v)-7 TRANS Demand'!N300+'FR-16(7)(v)-8 TRANS Energy'!N300+'FR-16(7)(v)-9 TRANS Cust'!N300+'FR-16(7)(v)-11 DIST Demand'!N300+'FR-16(7)(v)-12 DIST Energy'!N300+'FR-16(7)(v)-13 DIST Cust'!N300-'FR-16(7)(v)-14 TOTAL CLASS'!N300","v":0},{"$f":"'FR-16(7)(v)-3 PROD Demand'!O300+'FR-16(7)(v)-4 PROD Energy'!O300+'FR-16(7)(v)-5 PROD Cust'!O300+'FR-16(7)(v)-7 TRANS Demand'!O300+'FR-16(7)(v)-8 TRANS Energy'!O300+'FR-16(7)(v)-9 TRANS Cust'!O300+'FR-16(7)(v)-11 DIST Demand'!O300+'FR-16(7)(v)-12 DIST Energy'!O300+'FR-16(7)(v)-13 DIST Cust'!O300-'FR-16(7)(v)-14 TOTAL CLASS'!O300","v":0},{"$f":"'FR-16(7)(v)-3 PROD Demand'!P300+'FR-16(7)(v)-4 PROD Energy'!P300+'FR-16(7)(v)-5 PROD Cust'!P300+'FR-16(7)(v)-7 TRANS Demand'!P300+'FR-16(7)(v)-8 TRANS Energy'!P300+'FR-16(7)(v)-9 TRANS Cust'!P300+'FR-16(7)(v)-11 DIST Demand'!P300+'FR-16(7)(v)-12 DIST Energy'!P300+'FR-16(7)(v)-13 DIST Cust'!P300-'FR-16(7)(v)-14 TOTAL CLASS'!P300","v":0},{"$f":"'FR-16(7)(v)-3 PROD Demand'!Q300+'FR-16(7)(v)-4 PROD Energy'!Q300+'FR-16(7)(v)-5 PROD Cust'!Q300+'FR-16(7)(v)-7 TRANS Demand'!Q300+'FR-16(7)(v)-8 TRANS Energy'!Q300+'FR-16(7)(v)-9 TRANS Cust'!Q300+'FR-16(7)(v)-11 DIST Demand'!Q300+'FR-16(7)(v)-12 DIST Energy'!Q300+'FR-16(7)(v)-13 DIST Cust'!Q300-'FR-16(7)(v)-14 TOTAL CLASS'!Q300","v":0},0,0]
[13,null,{"$f":"'FR-16(7)(v)-1 Functional'!C301","v":"  TOTAL ACCOUNT 282"},null,null,{"$f":"SUM(F292:F300)","v":0},{"$f":"SUM(G292:G300)","v":0},0,0,{"$f":"SUM(J292:J300)","v":0},0,0,0,0,0,0,0,0,0]
[14]
[15," ACCUM DEF INC TAXES (283)"]
[16,null,{"$f":"'FR-16(7)(v)-1 Functional'!C304","v":"TRANSITION FROM MISO TO PJM"},{"$f":"'FR-16(7)(v)-1 Functional'!D304","v":"NP29"},null,{"$f":"'FR-16(7)(v)-3 PROD Demand'!F304+'FR-16(7)(v)-4 PROD Energy'!F304+'FR-16(7)(v)-5 PROD Cust'!F304+'FR-16(7)(v)-7 TRANS Demand'!F304+'FR-16(7)(v)-8 TRANS Energy'!F304+'FR-16(7)(v)-9 TRANS Cust'!F304+'FR-16(7)(v)-11 DIST Demand'!F304+'FR-16(7)(v)-12 DIST Energy'!F304+'FR-16(7)(v)-13 DIST Cust'!F304-'FR-16(7)(v)-14 TOTAL CLASS'!F304","v":0},{"$f":"'FR-16(7)(v)-3 PROD Demand'!G304+'FR-16(7)(v)-4 PROD Energy'!G304+'FR-16(7)(v)-5 PROD Cust'!G304+'FR-16(7)(v)-7 TRANS Demand'!G304+'FR-16(7)(v)-8 TRANS Energy'!G304+'FR-16(7)(v)-9 TRANS Cust'!G304+'FR-16(7)(v)-11 DIST Demand'!G304+'FR-16(7)(v)-12 DIST Energy'!G304+'FR-16(7)(v)-13 DIST Cust'!G304-'FR-16(7)(v)-14 TOTAL CLASS'!G304","v":0},{"$f":"'FR-16(7)(v)-3 PROD Demand'!H304+'FR-16(7)(v)-4 PROD Energy'!H304+'FR-16(7)(v)-5 PROD Cust'!H304+'FR-16(7)(v)-7 TRANS Demand'!H304+'FR-16(7)(v)-8 TRANS Energy'!H304+'FR-16(7)(v)-9 TRANS Cust'!H304+'FR-16(7)(v)-11 DIST Demand'!H304+'FR-16(7)(v)-12 DIST Energy'!H304+'FR-16(7)(v)-13 DIST Cust'!H304-'FR-16(7)(v)-14 TOTAL CLASS'!H304","v":0},{"$f":"'FR-16(7)(v)-3 PROD Demand'!I304+'FR-16(7)(v)-4 PROD Energy'!I304+'FR-16(7)(v)-5 PROD Cust'!I304+'FR-16(7)(v)-7 TRANS Demand'!I304+'FR-16(7)(v)-8 TRANS Energy'!I304+'FR-16(7)(v)-9 TRANS Cust'!I304+'FR-16(7)(v)-11 DIST Demand'!I304+'FR-16(7)(v)-12 DIST Energy'!I304+'FR-16(7)(v)-13 DIST Cust'!I304-'FR-16(7)(v)-14 TOTAL CLASS'!I304","v":0},{"$f":"'FR-16(7)(v)-3 PROD Demand'!J304+'FR-16(7)(v)-4 PROD Energy'!J304+'FR-16(7)(v)-5 PROD Cust'!J304+'FR-16(7)(v)-7 TRANS Demand'!J304+'FR-16(7)(v)-8 TRANS Energy'!J304+'FR-16(7)(v)-9 TRANS Cust'!J304+'FR-16(7)(v)-11 DIST Demand'!J304+'FR-16(7)(v)-12 DIST Energy'!J304+'FR-16(7)(v)-13 DIST Cust'!J304-'FR-16(7)(v)-14 TOTAL CLASS'!J304","v":0},{"$f":"'FR-16(7)(v)-3 PROD Demand'!K304+'FR-16(7)(v)-4 PROD Energy'!K304+'FR-16(7)(v)-5 PROD Cust'!K304+'FR-16(7)(v)-7 TRANS Demand'!K304+'FR-16(7)(v)-8 TRANS Energy'!K304+'FR-16(7)(v)-9 TRANS Cust'!K304+'FR-16(7)(v)-11 DIST Demand'!K304+'FR-16(7)(v)-12 DIST Energy'!K304+'FR-16(7)(v)-13 DIST Cust'!K304-'FR-16(7)(v)-14 TOTAL CLASS'!K304","v":0},{"$f":"'FR-16(7)(v)-3 PROD Demand'!L304+'FR-16(7)(v)-4 PROD Energy'!L304+'FR-16(7)(v)-5 PROD Cust'!L304+'FR-16(7)(v)-7 TRANS Demand'!L304+'FR-16(7)(v)-8 TRANS Energy'!L304+'FR-16(7)(v)-9 TRANS Cust'!L304+'FR-16(7)(v)-11 DIST Demand'!L304+'FR-16(7)(v)-12 DIST Energy'!L304+'FR-16(7)(v)-13 DIST Cust'!L304-'FR-16(7)(v)-14 TOTAL CLASS'!L304","v":0},{"$f":"'FR-16(7)(v)-3 PROD Demand'!M304+'FR-16(7)(v)-4 PROD Energy'!M304+'FR-16(7)(v)-5 PROD Cust'!M304+'FR-16(7)(v)-7 TRANS Demand'!M304+'FR-16(7)(v)-8 TRANS Energy'!M304+'FR-16(7)(v)-9 TRANS Cust'!M304+'FR-16(7)(v)-11 DIST Demand'!M304+'FR-16(7)(v)-12 DIST Energy'!M304+'FR-16(7)(v)-13 DIST Cust'!M304-'FR-16(7)(v)-14 TOTAL CLASS'!M304","v":0},{"$f":"'FR-16(7)(v)-3 PROD Demand'!N304+'FR-16(7)(v)-4 PROD Energy'!N304+'FR-16(7)(v)-5 PROD Cust'!N304+'FR-16(7)(v)-7 TRANS Demand'!N304+'FR-16(7)(v)-8 TRANS Energy'!N304+'FR-16(7)(v)-9 TRANS Cust'!N304+'FR-16(7)(v)-11 DIST Demand'!N304+'FR-16(7)(v)-12 DIST Energy'!N304+'FR-16(7)(v)-13 DIST Cust'!N304-'FR-16(7)(v)-14 TOTAL CLASS'!N304","v":0},{"$f":"'FR-16(7)(v)-3 PROD Demand'!O304+'FR-16(7)(v)-4 PROD Energy'!O304+'FR-16(7)(v)-5 PROD Cust'!O304+'FR-16(7)(v)-7 TRANS Demand'!O304+'FR-16(7)(v)-8 TRANS Energy'!O304+'FR-16(7)(v)-9 TRANS Cust'!O304+'FR-16(7)(v)-11 DIST Demand'!O304+'FR-16(7)(v)-12 DIST Energy'!O304+'FR-16(7)(v)-13 DIST Cust'!O304-'FR-16(7)(v)-14 TOTAL CLASS'!O304","v":0},{"$f":"'FR-16(7)(v)-3 PROD Demand'!P304+'FR-16(7)(v)-4 PROD Energy'!P304+'FR-16(7)(v)-5 PROD Cust'!P304+'FR-16(7)(v)-7 TRANS Demand'!P304+'FR-16(7)(v)-8 TRANS Energy'!P304+'FR-16(7)(v)-9 TRANS Cust'!P304+'FR-16(7)(v)-11 DIST Demand'!P304+'FR-16(7)(v)-12 DIST Energy'!P304+'FR-16(7)(v)-13 DIST Cust'!P304-'FR-16(7)(v)-14 TOTAL CLASS'!P304","v":0},{"$f":"'FR-16(7)(v)-3 PROD Demand'!Q304+'FR-16(7)(v)-4 PROD Energy'!Q304+'FR-16(7)(v)-5 PROD Cust'!Q304+'FR-16(7)(v)-7 TRANS Demand'!Q304+'FR-16(7)(v)-8 TRANS Energy'!Q304+'FR-16(7)(v)-9 TRANS Cust'!Q304+'FR-16(7)(v)-11 DIST Demand'!Q304+'FR-16(7)(v)-12 DIST Energy'!Q304+'FR-16(7)(v)-13 DIST Cust'!Q304-'FR-16(7)(v)-14 TOTAL CLASS'!Q304","v":0},{"$f":"SUM(G304:Q304)","v":0},{"$f":"F304-R304","v":0}]
[17,null,{"$f":"'FR-16(7)(v)-1 Functional'!C305","v":"DEFERRED PLANT COSTS"},{"$f":"'FR-16(7)(v)-1 Functional'!D305","v":"NP29"},null,{"$f":"'FR-16(7)(v)-3 PROD Demand'!F305+'FR-16(7)(v)-4 PROD Energy'!F305+'FR-16(7)(v)-5 PROD Cust'!F305+'FR-16(7)(v)-7 TRANS Demand'!F305+'FR-16(7)(v)-8 TRANS Energy'!F305+'FR-16(7)(v)-9 TRANS Cust'!F305+'FR-16(7)(v)-11 DIST Demand'!F305+'FR-16(7)(v)-12 DIST Energy'!F305+'FR-16(7)(v)-13 DIST Cust'!F305-'FR-16(7)(v)-14 TOTAL CLASS'!F305","v":0},{"$f":"'FR-16(7)(v)-3 PROD Demand'!G305+'FR-16(7)(v)-4 PROD Energy'!G305+'FR-16(7)(v)-5 PROD Cust'!G305+'FR-16(7)(v)-7 TRANS Demand'!G305+'FR-16(7)(v)-8 TRANS Energy'!G305+'FR-16(7)(v)-9 TRANS Cust'!G305+'FR-16(7)(v)-11 DIST Demand'!G305+'FR-16(7)(v)-12 DIST Energy'!G305+'FR-16(7)(v)-13 DIST Cust'!G305-'FR-16(7)(v)-14 TOTAL CLASS'!G305","v":0},{"$f":"'FR-16(7)(v)-3 PROD Demand'!H305+'FR-16(7)(v)-4 PROD Energy'!H305+'FR-16(7)(v)-5 PROD Cust'!H305+'FR-16(7)(v)-7 TRANS Demand'!H305+'FR-16(7)(v)-8 TRANS Energy'!H305+'FR-16(7)(v)-9 TRANS Cust'!H305+'FR-16(7)(v)-11 DIST Demand'!H305+'FR-16(7)(v)-12 DIST Energy'!H305+'FR-16(7)(v)-13 DIST Cust'!H305-'FR-16(7)(v)-14 TOTAL CLASS'!H305","v":0},{"$f":"'FR-16(7)(v)-3 PROD Demand'!I305+'FR-16(7)(v)-4 PROD Energy'!I305+'FR-16(7)(v)-5 PROD Cust'!I305+'FR-16(7)(v)-7 TRANS Demand'!I305+'FR-16(7)(v)-8 TRANS Energy'!I305+'FR-16(7)(v)-9 TRANS Cust'!I305+'FR-16(7)(v)-11 DIST Demand'!I305+'FR-16(7)(v)-12 DIST Energy'!I305+'FR-16(7)(v)-13 DIST Cust'!I305-'FR-16(7)(v)-14 TOTAL CLASS'!I305","v":0},{"$f":"'FR-16(7)(v)-3 PROD Demand'!J305+'FR-16(7)(v)-4 PROD Energy'!J305+'FR-16(7)(v)-5 PROD Cust'!J305+'FR-16(7)(v)-7 TRANS Demand'!J305+'FR-16(7)(v)-8 TRANS Energy'!J305+'FR-16(7)(v)-9 TRANS Cust'!J305+'FR-16(7)(v)-11 DIST Demand'!J305+'FR-16(7)(v)-12 DIST Energy'!J305+'FR-16(7)(v)-13 DIST Cust'!J305-'FR-16(7)(v)-14 TOTAL CLASS'!J305","v":0},{"$f":"'FR-16(7)(v)-3 PROD Demand'!K305+'FR-16(7)(v)-4 PROD Energy'!K305+'FR-16(7)(v)-5 PROD Cust'!K305+'FR-16(7)(v)-7 TRANS Demand'!K305+'FR-16(7)(v)-8 TRANS Energy'!K305+'FR-16(7)(v)-9 TRANS Cust'!K305+'FR-16(7)(v)-11 DIST Demand'!K305+'FR-16(7)(v)-12 DIST Energy'!K305+'FR-16(7)(v)-13 DIST Cust'!K305-'FR-16(7)(v)-14 TOTAL CLASS'!K305","v":0},{"$f":"'FR-16(7)(v)-3 PROD Demand'!L305+'FR-16(7)(v)-4 PROD Energy'!L305+'FR-16(7)(v)-5 PROD Cust'!L305+'FR-16(7)(v)-7 TRANS Demand'!L305+'FR-16(7)(v)-8 TRANS Energy'!L305+'FR-16(7)(v)-9 TRANS Cust'!L305+'FR-16(7)(v)-11 DIST Demand'!L305+'FR-16(7)(v)-12 DIST Energy'!L305+'FR-16(7)(v)-13 DIST Cust'!L305-'FR-16(7)(v)-14 TOTAL CLASS'!L305","v":0},{"$f":"'FR-16(7)(v)-3 PROD Demand'!M305+'FR-16(7)(v)-4 PROD Energy'!M305+'FR-16(7)(v)-5 PROD Cust'!M305+'FR-16(7)(v)-7 TRANS Demand'!M305+'FR-16(7)(v)-8 TRANS Energy'!M305+'FR-16(7)(v)-9 TRANS Cust'!M305+'FR-16(7)(v)-11 DIST Demand'!M305+'FR-16(7)(v)-12 DIST Energy'!M305+'FR-16(7)(v)-13 DIST Cust'!M305-'FR-16(7)(v)-14 TOTAL CLASS'!M305","v":0},{"$f":"'FR-16(7)(v)-3 PROD Demand'!N305+'FR-16(7)(v)-4 PROD Energy'!N305+'FR-16(7)(v)-5 PROD Cust'!N305+'FR-16(7)(v)-7 TRANS Demand'!N305+'FR-16(7)(v)-8 TRANS Energy'!N305+'FR-16(7)(v)-9 TRANS Cust'!N305+'FR-16(7)(v)-11 DIST Demand'!N305+'FR-16(7)(v)-12 DIST Energy'!N305+'FR-16(7)(v)-13 DIST Cust'!N305-'FR-16(7)(v)-14 TOTAL CLASS'!N305","v":0},{"$f":"'FR-16(7)(v)-3 PROD Demand'!O305+'FR-16(7)(v)-4 PROD Energy'!O305+'FR-16(7)(v)-5 PROD Cust'!O305+'FR-16(7)(v)-7 TRANS Demand'!O305+'FR-16(7)(v)-8 TRANS Energy'!O305+'FR-16(7)(v)-9 TRANS Cust'!O305+'FR-16(7)(v)-11 DIST Demand'!O305+'FR-16(7)(v)-12 DIST Energy'!O305+'FR-16(7)(v)-13 DIST Cust'!O305-'FR-16(7)(v)-14 TOTAL CLASS'!O305","v":0},{"$f":"'FR-16(7)(v)-3 PROD Demand'!P305+'FR-16(7)(v)-4 PROD Energy'!P305+'FR-16(7)(v)-5 PROD Cust'!P305+'FR-16(7)(v)-7 TRANS Demand'!P305+'FR-16(7)(v)-8 TRANS Energy'!P305+'FR-16(7)(v)-9 TRANS Cust'!P305+'FR-16(7)(v)-11 DIST Demand'!P305+'FR-16(7)(v)-12 DIST Energy'!P305+'FR-16(7)(v)-13 DIST Cust'!P305-'FR-16(7)(v)-14 TOTAL CLASS'!P305","v":0},{"$f":"'FR-16(7)(v)-3 PROD Demand'!Q305+'FR-16(7)(v)-4 PROD Energy'!Q305+'FR-16(7)(v)-5 PROD Cust'!Q305+'FR-16(7)(v)-7 TRANS Demand'!Q305+'FR-16(7)(v)-8 TRANS Energy'!Q305+'FR-16(7)(v)-9 TRANS Cust'!Q305+'FR-16(7)(v)-11 DIST Demand'!Q305+'FR-16(7)(v)-12 DIST Energy'!Q305+'FR-16(7)(v)-13 DIST Cust'!Q305-'FR-16(7)(v)-14 TOTAL CLASS'!Q305","v":0},0,0]
[18,null,{"$f":"'FR-16(7)(v)-1 Functional'!C306","v":"MISCELLANEOUS"},{"$f":"'FR-16(7)(v)-1 Functional'!D306","v":"OM39"},null,{"$f":"'FR-16(7)(v)-3 PROD Demand'!F306+'FR-16(7)(v)-4 PROD Energy'!F306+'FR-16(7)(v)-5 PROD Cust'!F306+'FR-16(7)(v)-7 TRANS Demand'!F306+'FR-16(7)(v)-8 TRANS Energy'!F306+'FR-16(7)(v)-9 TRANS Cust'!F306+'FR-16(7)(v)-11 DIST Demand'!F306+'FR-16(7)(v)-12 DIST Energy'!F306+'FR-16(7)(v)-13 DIST Cust'!F306-'FR-16(7)(v)-14 TOTAL CLASS'!F306","v":0},{"$f":"'FR-16(7)(v)-3 PROD Demand'!G306+'FR-16(7)(v)-4 PROD Energy'!G306+'FR-16(7)(v)-5 PROD Cust'!G306+'FR-16(7)(v)-7 TRANS Demand'!G306+'FR-16(7)(v)-8 TRANS Energy'!G306+'FR-16(7)(v)-9 TRANS Cust'!G306+'FR-16(7)(v)-11 DIST Demand'!G306+'FR-16(7)(v)-12 DIST Energy'!G306+'FR-16(7)(v)-13 DIST Cust'!G306-'FR-16(7)(v)-14 TOTAL CLASS'!G306","v":0},{"$f":"'FR-16(7)(v)-3 PROD Demand'!H306+'FR-16(7)(v)-4 PROD Energy'!H306+'FR-16(7)(v)-5 PROD Cust'!H306+'FR-16(7)(v)-7 TRANS Demand'!H306+'FR-16(7)(v)-8 TRANS Energy'!H306+'FR-16(7)(v)-9 TRANS Cust'!H306+'FR-16(7)(v)-11 DIST Demand'!H306+'FR-16(7)(v)-12 DIST Energy'!H306+'FR-16(7)(v)-13 DIST Cust'!H306-'FR-16(7)(v)-14 TOTAL CLASS'!H306","v":0},{"$f":"'FR-16(7)(v)-3 PROD Demand'!I306+'FR-16(7)(v)-4 PROD Energy'!I306+'FR-16(7)(v)-5 PROD Cust'!I306+'FR-16(7)(v)-7 TRANS Demand'!I306+'FR-16(7)(v)-8 TRANS Energy'!I306+'FR-16(7)(v)-9 TRANS Cust'!I306+'FR-16(7)(v)-11 DIST Demand'!I306+'FR-16(7)(v)-12 DIST Energy'!I306+'FR-16(7)(v)-13 DIST Cust'!I306-'FR-16(7)(v)-14 TOTAL CLASS'!I306","v":0},{"$f":"'FR-16(7)(v)-3 PROD Demand'!J306+'FR-16(7)(v)-4 PROD Energy'!J306+'FR-16(7)(v)-5 PROD Cust'!J306+'FR-16(7)(v)-7 TRANS Demand'!J306+'FR-16(7)(v)-8 TRANS Energy'!J306+'FR-16(7)(v)-9 TRANS Cust'!J306+'FR-16(7)(v)-11 DIST Demand'!J306+'FR-16(7)(v)-12 DIST Energy'!J306+'FR-16(7)(v)-13 DIST Cust'!J306-'FR-16(7)(v)-14 TOTAL CLASS'!J306","v":0},{"$f":"'FR-16(7)(v)-3 PROD Demand'!K306+'FR-16(7)(v)-4 PROD Energy'!K306+'FR-16(7)(v)-5 PROD Cust'!K306+'FR-16(7)(v)-7 TRANS Demand'!K306+'FR-16(7)(v)-8 TRANS Energy'!K306+'FR-16(7)(v)-9 TRANS Cust'!K306+'FR-16(7)(v)-11 DIST Demand'!K306+'FR-16(7)(v)-12 DIST Energy'!K306+'FR-16(7)(v)-13 DIST Cust'!K306-'FR-16(7)(v)-14 TOTAL CLASS'!K306","v":0},{"$f":"'FR-16(7)(v)-3 PROD Demand'!L306+'FR-16(7)(v)-4 PROD Energy'!L306+'FR-16(7)(v)-5 PROD Cust'!L306+'FR-16(7)(v)-7 TRANS Demand'!L306+'FR-16(7)(v)-8 TRANS Energy'!L306+'FR-16(7)(v)-9 TRANS Cust'!L306+'FR-16(7)(v)-11 DIST Demand'!L306+'FR-16(7)(v)-12 DIST Energy'!L306+'FR-16(7)(v)-13 DIST Cust'!L306-'FR-16(7)(v)-14 TOTAL CLASS'!L306","v":0},{"$f":"'FR-16(7)(v)-3 PROD Demand'!M306+'FR-16(7)(v)-4 PROD Energy'!M306+'FR-16(7)(v)-5 PROD Cust'!M306+'FR-16(7)(v)-7 TRANS Demand'!M306+'FR-16(7)(v)-8 TRANS Energy'!M306+'FR-16(7)(v)-9 TRANS Cust'!M306+'FR-16(7)(v)-11 DIST Demand'!M306+'FR-16(7)(v)-12 DIST Energy'!M306+'FR-16(7)(v)-13 DIST Cust'!M306-'FR-16(7)(v)-14 TOTAL CLASS'!M306","v":0},{"$f":"'FR-16(7)(v)-3 PROD Demand'!N306+'FR-16(7)(v)-4 PROD Energy'!N306+'FR-16(7)(v)-5 PROD Cust'!N306+'FR-16(7)(v)-7 TRANS Demand'!N306+'FR-16(7)(v)-8 TRANS Energy'!N306+'FR-16(7)(v)-9 TRANS Cust'!N306+'FR-16(7)(v)-11 DIST Demand'!N306+'FR-16(7)(v)-12 DIST Energy'!N306+'FR-16(7)(v)-13 DIST Cust'!N306-'FR-16(7)(v)-14 TOTAL CLASS'!N306","v":0},{"$f":"'FR-16(7)(v)-3 PROD Demand'!O306+'FR-16(7)(v)-4 PROD Energy'!O306+'FR-16(7)(v)-5 PROD Cust'!O306+'FR-16(7)(v)-7 TRANS Demand'!O306+'FR-16(7)(v)-8 TRANS Energy'!O306+'FR-16(7)(v)-9 TRANS Cust'!O306+'FR-16(7)(v)-11 DIST Demand'!O306+'FR-16(7)(v)-12 DIST Energy'!O306+'FR-16(7)(v)-13 DIST Cust'!O306-'FR-16(7)(v)-14 TOTAL CLASS'!O306","v":0},{"$f":"'FR-16(7)(v)-3 PROD Demand'!P306+'FR-16(7)(v)-4 PROD Energy'!P306+'FR-16(7)(v)-5 PROD Cust'!P306+'FR-16(7)(v)-7 TRANS Demand'!P306+'FR-16(7)(v)-8 TRANS Energy'!P306+'FR-16(7)(v)-9 TRANS Cust'!P306+'FR-16(7)(v)-11 DIST Demand'!P306+'FR-16(7)(v)-12 DIST Energy'!P306+'FR-16(7)(v)-13 DIST Cust'!P306-'FR-16(7)(v)-14 TOTAL CLASS'!P306","v":0},{"$f":"'FR-16(7)(v)-3 PROD Demand'!Q306+'FR-16(7)(v)-4 PROD Energy'!Q306+'FR-16(7)(v)-5 PROD Cust'!Q306+'FR-16(7)(v)-7 TRANS Demand'!Q306+'FR-16(7)(v)-8 TRANS Energy'!Q306+'FR-16(7)(v)-9 TRANS Cust'!Q306+'FR-16(7)(v)-11 DIST Demand'!Q306+'FR-16(7)(v)-12 DIST Energy'!Q306+'FR-16(7)(v)-13 DIST Cust'!Q306-'FR-16(7)(v)-14 TOTAL CLASS'!Q306","v":0},0,0]
[19,null,{"$f":"'FR-16(7)(v)-1 Functional'!C307","v":"ENVIRONMENTAL RESERVE"},{"$f":"'FR-16(7)(v)-1 Functional'!D307","v":"NP29"},null,{"$f":"'FR-16(7)(v)-3 PROD Demand'!F307+'FR-16(7)(v)-4 PROD Energy'!F307+'FR-16(7)(v)-5 PROD Cust'!F307+'FR-16(7)(v)-7 TRANS Demand'!F307+'FR-16(7)(v)-8 TRANS Energy'!F307+'FR-16(7)(v)-9 TRANS Cust'!F307+'FR-16(7)(v)-11 DIST Demand'!F307+'FR-16(7)(v)-12 DIST Energy'!F307+'FR-16(7)(v)-13 DIST Cust'!F307-'FR-16(7)(v)-14 TOTAL CLASS'!F307","v":0},{"$f":"'FR-16(7)(v)-3 PROD Demand'!G307+'FR-16(7)(v)-4 PROD Energy'!G307+'FR-16(7)(v)-5 PROD Cust'!G307+'FR-16(7)(v)-7 TRANS Demand'!G307+'FR-16(7)(v)-8 TRANS Energy'!G307+'FR-16(7)(v)-9 TRANS Cust'!G307+'FR-16(7)(v)-11 DIST Demand'!G307+'FR-16(7)(v)-12 DIST Energy'!G307+'FR-16(7)(v)-13 DIST Cust'!G307-'FR-16(7)(v)-14 TOTAL CLASS'!G307","v":0},{"$f":"'FR-16(7)(v)-3 PROD Demand'!H307+'FR-16(7)(v)-4 PROD Energy'!H307+'FR-16(7)(v)-5 PROD Cust'!H307+'FR-16(7)(v)-7 TRANS Demand'!H307+'FR-16(7)(v)-8 TRANS Energy'!H307+'FR-16(7)(v)-9 TRANS Cust'!H307+'FR-16(7)(v)-11 DIST Demand'!H307+'FR-16(7)(v)-12 DIST Energy'!H307+'FR-16(7)(v)-13 DIST Cust'!H307-'FR-16(7)(v)-14 TOTAL CLASS'!H307","v":0},{"$f":"'FR-16(7)(v)-3 PROD Demand'!I307+'FR-16(7)(v)-4 PROD Energy'!I307+'FR-16(7)(v)-5 PROD Cust'!I307+'FR-16(7)(v)-7 TRANS Demand'!I307+'FR-16(7)(v)-8 TRANS Energy'!I307+'FR-16(7)(v)-9 TRANS Cust'!I307+'FR-16(7)(v)-11 DIST Demand'!I307+'FR-16(7)(v)-12 DIST Energy'!I307+'FR-16(7)(v)-13 DIST Cust'!I307-'FR-16(7)(v)-14 TOTAL CLASS'!I307","v":0},{"$f":"'FR-16(7)(v)-3 PROD Demand'!J307+'FR-16(7)(v)-4 PROD Energy'!J307+'FR-16(7)(v)-5 PROD Cust'!J307+'FR-16(7)(v)-7 TRANS Demand'!J307+'FR-16(7)(v)-8 TRANS Energy'!J307+'FR-16(7)(v)-9 TRANS Cust'!J307+'FR-16(7)(v)-11 DIST Demand'!J307+'FR-16(7)(v)-12 DIST Energy'!J307+'FR-16(7)(v)-13 DIST Cust'!J307-'FR-16(7)(v)-14 TOTAL CLASS'!J307","v":0},{"$f":"'FR-16(7)(v)-3 PROD Demand'!K307+'FR-16(7)(v)-4 PROD Energy'!K307+'FR-16(7)(v)-5 PROD Cust'!K307+'FR-16(7)(v)-7 TRANS Demand'!K307+'FR-16(7)(v)-8 TRANS Energy'!K307+'FR-16(7)(v)-9 TRANS Cust'!K307+'FR-16(7)(v)-11 DIST Demand'!K307+'FR-16(7)(v)-12 DIST Energy'!K307+'FR-16(7)(v)-13 DIST Cust'!K307-'FR-16(7)(v)-14 TOTAL CLASS'!K307","v":0},{"$f":"'FR-16(7)(v)-3 PROD Demand'!L307+'FR-16(7)(v)-4 PROD Energy'!L307+'FR-16(7)(v)-5 PROD Cust'!L307+'FR-16(7)(v)-7 TRANS Demand'!L307+'FR-16(7)(v)-8 TRANS Energy'!L307+'FR-16(7)(v)-9 TRANS Cust'!L307+'FR-16(7)(v)-11 DIST Demand'!L307+'FR-16(7)(v)-12 DIST Energy'!L307+'FR-16(7)(v)-13 DIST Cust'!L307-'FR-16(7)(v)-14 TOTAL CLASS'!L307","v":0},{"$f":"'FR-16(7)(v)-3 PROD Demand'!M307+'FR-16(7)(v)-4 PROD Energy'!M307+'FR-16(7)(v)-5 PROD Cust'!M307+'FR-16(7)(v)-7 TRANS Demand'!M307+'FR-16(7)(v)-8 TRANS Energy'!M307+'FR-16(7)(v)-9 TRANS Cust'!M307+'FR-16(7)(v)-11 DIST Demand'!M307+'FR-16(7)(v)-12 DIST Energy'!M307+'FR-16(7)(v)-13 DIST Cust'!M307-'FR-16(7)(v)-14 TOTAL CLASS'!M307","v":0},{"$f":"'FR-16(7)(v)-3 PROD Demand'!N307+'FR-16(7)(v)-4 PROD Energy'!N307+'FR-16(7)(v)-5 PROD Cust'!N307+'FR-16(7)(v)-7 TRANS Demand'!N307+'FR-16(7)(v)-8 TRANS Energy'!N307+'FR-16(7)(v)-9 TRANS Cust'!N307+'FR-16(7)(v)-11 DIST Demand'!N307+'FR-16(7)(v)-12 DIST Energy'!N307+'FR-16(7)(v)-13 DIST Cust'!N307-'FR-16(7)(v)-14 TOTAL CLASS'!N307","v":0},{"$f":"'FR-16(7)(v)-3 PROD Demand'!O307+'FR-16(7)(v)-4 PROD Energy'!O307+'FR-16(7)(v)-5 PROD Cust'!O307+'FR-16(7)(v)-7 TRANS Demand'!O307+'FR-16(7)(v)-8 TRANS Energy'!O307+'FR-16(7)(v)-9 TRANS Cust'!O307+'FR-16(7)(v)-11 DIST Demand'!O307+'FR-16(7)(v)-12 DIST Energy'!O307+'FR-16(7)(v)-13 DIST Cust'!O307-'FR-16(7)(v)-14 TOTAL CLASS'!O307","v":0},{"$f":"'FR-16(7)(v)-3 PROD Demand'!P307+'FR-16(7)(v)-4 PROD Energy'!P307+'FR-16(7)(v)-5 PROD Cust'!P307+'FR-16(7)(v)-7 TRANS Demand'!P307+'FR-16(7)(v)-8 TRANS Energy'!P307+'FR-16(7)(v)-9 TRANS Cust'!P307+'FR-16(7)(v)-11 DIST Demand'!P307+'FR-16(7)(v)-12 DIST Energy'!P307+'FR-16(7)(v)-13 DIST Cust'!P307-'FR-16(7)(v)-14 TOTAL CLASS'!P307","v":0},{"$f":"'FR-16(7)(v)-3 PROD Demand'!Q307+'FR-16(7)(v)-4 PROD Energy'!Q307+'FR-16(7)(v)-5 PROD Cust'!Q307+'FR-16(7)(v)-7 TRANS Demand'!Q307+'FR-16(7)(v)-8 TRANS Energy'!Q307+'FR-16(7)(v)-9 TRANS Cust'!Q307+'FR-16(7)(v)-11 DIST Demand'!Q307+'FR-16(7)(v)-12 DIST Energy'!Q307+'FR-16(7)(v)-13 DIST Cust'!Q307-'FR-16(7)(v)-14 TOTAL CLASS'!Q307","v":0},0,0]
[20,null,{"$f":"'FR-16(7)(v)-1 Functional'!C308","v":"POST IN-SERVICE CARRYING COSTS"},{"$f":"'FR-16(7)(v)-1 Functional'!D308","v":"NP29"},null,{"$f":"'FR-16(7)(v)-3 PROD Demand'!F308+'FR-16(7)(v)-4 PROD Energy'!F308+'FR-16(7)(v)-5 PROD Cust'!F308+'FR-16(7)(v)-7 TRANS Demand'!F308+'FR-16(7)(v)-8 TRANS Energy'!F308+'FR-16(7)(v)-9 TRANS Cust'!F308+'FR-16(7)(v)-11 DIST Demand'!F308+'FR-16(7)(v)-12 DIST Energy'!F308+'FR-16(7)(v)-13 DIST Cust'!F308-'FR-16(7)(v)-14 TOTAL CLASS'!F308","v":0},{"$f":"'FR-16(7)(v)-3 PROD Demand'!G308+'FR-16(7)(v)-4 PROD Energy'!G308+'FR-16(7)(v)-5 PROD Cust'!G308+'FR-16(7)(v)-7 TRANS Demand'!G308+'FR-16(7)(v)-8 TRANS Energy'!G308+'FR-16(7)(v)-9 TRANS Cust'!G308+'FR-16(7)(v)-11 DIST Demand'!G308+'FR-16(7)(v)-12 DIST Energy'!G308+'FR-16(7)(v)-13 DIST Cust'!G308-'FR-16(7)(v)-14 TOTAL CLASS'!G308","v":0},{"$f":"'FR-16(7)(v)-3 PROD Demand'!H308+'FR-16(7)(v)-4 PROD Energy'!H308+'FR-16(7)(v)-5 PROD Cust'!H308+'FR-16(7)(v)-7 TRANS Demand'!H308+'FR-16(7)(v)-8 TRANS Energy'!H308+'FR-16(7)(v)-9 TRANS Cust'!H308+'FR-16(7)(v)-11 DIST Demand'!H308+'FR-16(7)(v)-12 DIST Energy'!H308+'FR-16(7)(v)-13 DIST Cust'!H308-'FR-16(7)(v)-14 TOTAL CLASS'!H308","v":0},{"$f":"'FR-16(7)(v)-3 PROD Demand'!I308+'FR-16(7)(v)-4 PROD Energy'!I308+'FR-16(7)(v)-5 PROD Cust'!I308+'FR-16(7)(v)-7 TRANS Demand'!I308+'FR-16(7)(v)-8 TRANS Energy'!I308+'FR-16(7)(v)-9 TRANS Cust'!I308+'FR-16(7)(v)-11 DIST Demand'!I308+'FR-16(7)(v)-12 DIST Energy'!I308+'FR-16(7)(v)-13 DIST Cust'!I308-'FR-16(7)(v)-14 TOTAL CLASS'!I308","v":0},{"$f":"'FR-16(7)(v)-3 PROD Demand'!J308+'FR-16(7)(v)-4 PROD Energy'!J308+'FR-16(7)(v)-5 PROD Cust'!J308+'FR-16(7)(v)-7 TRANS Demand'!J308+'FR-16(7)(v)-8 TRANS Energy'!J308+'FR-16(7)(v)-9 TRANS Cust'!J308+'FR-16(7)(v)-11 DIST Demand'!J308+'FR-16(7)(v)-12 DIST Energy'!J308+'FR-16(7)(v)-13 DIST Cust'!J308-'FR-16(7)(v)-14 TOTAL CLASS'!J308","v":0},{"$f":"'FR-16(7)(v)-3 PROD Demand'!K308+'FR-16(7)(v)-4 PROD Energy'!K308+'FR-16(7)(v)-5 PROD Cust'!K308+'FR-16(7)(v)-7 TRANS Demand'!K308+'FR-16(7)(v)-8 TRANS Energy'!K308+'FR-16(7)(v)-9 TRANS Cust'!K308+'FR-16(7)(v)-11 DIST Demand'!K308+'FR-16(7)(v)-12 DIST Energy'!K308+'FR-16(7)(v)-13 DIST Cust'!K308-'FR-16(7)(v)-14 TOTAL CLASS'!K308","v":0},{"$f":"'FR-16(7)(v)-3 PROD Demand'!L308+'FR-16(7)(v)-4 PROD Energy'!L308+'FR-16(7)(v)-5 PROD Cust'!L308+'FR-16(7)(v)-7 TRANS Demand'!L308+'FR-16(7)(v)-8 TRANS Energy'!L308+'FR-16(7)(v)-9 TRANS Cust'!L308+'FR-16(7)(v)-11 DIST Demand'!L308+'FR-16(7)(v)-12 DIST Energy'!L308+'FR-16(7)(v)-13 DIST Cust'!L308-'FR-16(7)(v)-14 TOTAL CLASS'!L308","v":0},{"$f":"'FR-16(7)(v)-3 PROD Demand'!M308+'FR-16(7)(v)-4 PROD Energy'!M308+'FR-16(7)(v)-5 PROD Cust'!M308+'FR-16(7)(v)-7 TRANS Demand'!M308+'FR-16(7)(v)-8 TRANS Energy'!M308+'FR-16(7)(v)-9 TRANS Cust'!M308+'FR-16(7)(v)-11 DIST Demand'!M308+'FR-16(7)(v)-12 DIST Energy'!M308+'FR-16(7)(v)-13 DIST Cust'!M308-'FR-16(7)(v)-14 TOTAL CLASS'!M308","v":0},{"$f":"'FR-16(7)(v)-3 PROD Demand'!N308+'FR-16(7)(v)-4 PROD Energy'!N308+'FR-16(7)(v)-5 PROD Cust'!N308+'FR-16(7)(v)-7 TRANS Demand'!N308+'FR-16(7)(v)-8 TRANS Energy'!N308+'FR-16(7)(v)-9 TRANS Cust'!N308+'FR-16(7)(v)-11 DIST Demand'!N308+'FR-16(7)(v)-12 DIST Energy'!N308+'FR-16(7)(v)-13 DIST Cust'!N308-'FR-16(7)(v)-14 TOTAL CLASS'!N308","v":0},{"$f":"'FR-16(7)(v)-3 PROD Demand'!O308+'FR-16(7)(v)-4 PROD Energy'!O308+'FR-16(7)(v)-5 PROD Cust'!O308+'FR-16(7)(v)-7 TRANS Demand'!O308+'FR-16(7)(v)-8 TRANS Energy'!O308+'FR-16(7)(v)-9 TRANS Cust'!O308+'FR-16(7)(v)-11 DIST Demand'!O308+'FR-16(7)(v)-12 DIST Energy'!O308+'FR-16(7)(v)-13 DIST Cust'!O308-'FR-16(7)(v)-14 TOTAL CLASS'!O308","v":0},{"$f":"'FR-16(7)(v)-3 PROD Demand'!P308+'FR-16(7)(v)-4 PROD Energy'!P308+'FR-16(7)(v)-5 PROD Cust'!P308+'FR-16(7)(v)-7 TRANS Demand'!P308+'FR-16(7)(v)-8 TRANS Energy'!P308+'FR-16(7)(v)-9 TRANS Cust'!P308+'FR-16(7)(v)-11 DIST Demand'!P308+'FR-16(7)(v)-12 DIST Energy'!P308+'FR-16(7)(v)-13 DIST Cust'!P308-'FR-16(7)(v)-14 TOTAL CLASS'!P308","v":0},{"$f":"'FR-16(7)(v)-3 PROD Demand'!Q308+'FR-16(7)(v)-4 PROD Energy'!Q308+'FR-16(7)(v)-5 PROD Cust'!Q308+'FR-16(7)(v)-7 TRANS Demand'!Q308+'FR-16(7)(v)-8 TRANS Energy'!Q308+'FR-16(7)(v)-9 TRANS Cust'!Q308+'FR-16(7)(v)-11 DIST Demand'!Q308+'FR-16(7)(v)-12 DIST Energy'!Q308+'FR-16(7)(v)-13 DIST Cust'!Q308-'FR-16(7)(v)-14 TOTAL CLASS'!Q308","v":0},0,0]
[21,null,{"$f":"'FR-16(7)(v)-1 Functional'!C309","v":"ARO CUMULATIVE EFFECT"},{"$f":"'FR-16(7)(v)-1 Functional'!D309","v":"NP29"},null,{"$f":"'FR-16(7)(v)-3 PROD Demand'!F309+'FR-16(7)(v)-4 PROD Energy'!F309+'FR-16(7)(v)-5 PROD Cust'!F309+'FR-16(7)(v)-7 TRANS Demand'!F309+'FR-16(7)(v)-8 TRANS Energy'!F309+'FR-16(7)(v)-9 TRANS Cust'!F309+'FR-16(7)(v)-11 DIST Demand'!F309+'FR-16(7)(v)-12 DIST Energy'!F309+'FR-16(7)(v)-13 DIST Cust'!F309-'FR-16(7)(v)-14 TOTAL CLASS'!F309","v":0},{"$f":"'FR-16(7)(v)-3 PROD Demand'!G309+'FR-16(7)(v)-4 PROD Energy'!G309+'FR-16(7)(v)-5 PROD Cust'!G309+'FR-16(7)(v)-7 TRANS Demand'!G309+'FR-16(7)(v)-8 TRANS Energy'!G309+'FR-16(7)(v)-9 TRANS Cust'!G309+'FR-16(7)(v)-11 DIST Demand'!G309+'FR-16(7)(v)-12 DIST Energy'!G309+'FR-16(7)(v)-13 DIST Cust'!G309-'FR-16(7)(v)-14 TOTAL CLASS'!G309","v":0},{"$f":"'FR-16(7)(v)-3 PROD Demand'!H309+'FR-16(7)(v)-4 PROD Energy'!H309+'FR-16(7)(v)-5 PROD Cust'!H309+'FR-16(7)(v)-7 TRANS Demand'!H309+'FR-16(7)(v)-8 TRANS Energy'!H309+'FR-16(7)(v)-9 TRANS Cust'!H309+'FR-16(7)(v)-11 DIST Demand'!H309+'FR-16(7)(v)-12 DIST Energy'!H309+'FR-16(7)(v)-13 DIST Cust'!H309-'FR-16(7)(v)-14 TOTAL CLASS'!H309","v":0},{"$f":"'FR-16(7)(v)-3 PROD Demand'!I309+'FR-16(7)(v)-4 PROD Energy'!I309+'FR-16(7)(v)-5 PROD Cust'!I309+'FR-16(7)(v)-7 TRANS Demand'!I309+'FR-16(7)(v)-8 TRANS Energy'!I309+'FR-16(7)(v)-9 TRANS Cust'!I309+'FR-16(7)(v)-11 DIST Demand'!I309+'FR-16(7)(v)-12 DIST Energy'!I309+'FR-16(7)(v)-13 DIST Cust'!I309-'FR-16(7)(v)-14 TOTAL CLASS'!I309","v":0},{"$f":"'FR-16(7)(v)-3 PROD Demand'!J309+'FR-16(7)(v)-4 PROD Energy'!J309+'FR-16(7)(v)-5 PROD Cust'!J309+'FR-16(7)(v)-7 TRANS Demand'!J309+'FR-16(7)(v)-8 TRANS Energy'!J309+'FR-16(7)(v)-9 TRANS Cust'!J309+'FR-16(7)(v)-11 DIST Demand'!J309+'FR-16(7)(v)-12 DIST Energy'!J309+'FR-16(7)(v)-13 DIST Cust'!J309-'FR-16(7)(v)-14 TOTAL CLASS'!J309","v":0},{"$f":"'FR-16(7)(v)-3 PROD Demand'!K309+'FR-16(7)(v)-4 PROD Energy'!K309+'FR-16(7)(v)-5 PROD Cust'!K309+'FR-16(7)(v)-7 TRANS Demand'!K309+'FR-16(7)(v)-8 TRANS Energy'!K309+'FR-16(7)(v)-9 TRANS Cust'!K309+'FR-16(7)(v)-11 DIST Demand'!K309+'FR-16(7)(v)-12 DIST Energy'!K309+'FR-16(7)(v)-13 DIST Cust'!K309-'FR-16(7)(v)-14 TOTAL CLASS'!K309","v":0},{"$f":"'FR-16(7)(v)-3 PROD Demand'!L309+'FR-16(7)(v)-4 PROD Energy'!L309+'FR-16(7)(v)-5 PROD Cust'!L309+'FR-16(7)(v)-7 TRANS Demand'!L309+'FR-16(7)(v)-8 TRANS Energy'!L309+'FR-16(7)(v)-9 TRANS Cust'!L309+'FR-16(7)(v)-11 DIST Demand'!L309+'FR-16(7)(v)-12 DIST Energy'!L309+'FR-16(7)(v)-13 DIST Cust'!L309-'FR-16(7)(v)-14 TOTAL CLASS'!L309","v":0},{"$f":"'FR-16(7)(v)-3 PROD Demand'!M309+'FR-16(7)(v)-4 PROD Energy'!M309+'FR-16(7)(v)-5 PROD Cust'!M309+'FR-16(7)(v)-7 TRANS Demand'!M309+'FR-16(7)(v)-8 TRANS Energy'!M309+'FR-16(7)(v)-9 TRANS Cust'!M309+'FR-16(7)(v)-11 DIST Demand'!M309+'FR-16(7)(v)-12 DIST Energy'!M309+'FR-16(7)(v)-13 DIST Cust'!M309-'FR-16(7)(v)-14 TOTAL CLASS'!M309","v":0},{"$f":"'FR-16(7)(v)-3 PROD Demand'!N309+'FR-16(7)(v)-4 PROD Energy'!N309+'FR-16(7)(v)-5 PROD Cust'!N309+'FR-16(7)(v)-7 TRANS Demand'!N309+'FR-16(7)(v)-8 TRANS Energy'!N309+'FR-16(7)(v)-9 TRANS Cust'!N309+'FR-16(7)(v)-11 DIST Demand'!N309+'FR-16(7)(v)-12 DIST Energy'!N309+'FR-16(7)(v)-13 DIST Cust'!N309-'FR-16(7)(v)-14 TOTAL CLASS'!N309","v":0},{"$f":"'FR-16(7)(v)-3 PROD Demand'!O309+'FR-16(7)(v)-4 PROD Energy'!O309+'FR-16(7)(v)-5 PROD Cust'!O309+'FR-16(7)(v)-7 TRANS Demand'!O309+'FR-16(7)(v)-8 TRANS Energy'!O309+'FR-16(7)(v)-9 TRANS Cust'!O309+'FR-16(7)(v)-11 DIST Demand'!O309+'FR-16(7)(v)-12 DIST Energy'!O309+'FR-16(7)(v)-13 DIST Cust'!O309-'FR-16(7)(v)-14 TOTAL CLASS'!O309","v":0},{"$f":"'FR-16(7)(v)-3 PROD Demand'!P309+'FR-16(7)(v)-4 PROD Energy'!P309+'FR-16(7)(v)-5 PROD Cust'!P309+'FR-16(7)(v)-7 TRANS Demand'!P309+'FR-16(7)(v)-8 TRANS Energy'!P309+'FR-16(7)(v)-9 TRANS Cust'!P309+'FR-16(7)(v)-11 DIST Demand'!P309+'FR-16(7)(v)-12 DIST Energy'!P309+'FR-16(7)(v)-13 DIST Cust'!P309-'FR-16(7)(v)-14 TOTAL CLASS'!P309","v":0},{"$f":"'FR-16(7)(v)-3 PROD Demand'!Q309+'FR-16(7)(v)-4 PROD Energy'!Q309+'FR-16(7)(v)-5 PROD Cust'!Q309+'FR-16(7)(v)-7 TRANS Demand'!Q309+'FR-16(7)(v)-8 TRANS Energy'!Q309+'FR-16(7)(v)-9 TRANS Cust'!Q309+'FR-16(7)(v)-11 DIST Demand'!Q309+'FR-16(7)(v)-12 DIST Energy'!Q309+'FR-16(7)(v)-13 DIST Cust'!Q309-'FR-16(7)(v)-14 TOTAL CLASS'!Q309","v":0},0,0]
[22,null,{"$f":"'FR-16(7)(v)-1 Functional'!C310","v":"LOSS ON REACQUIRED DEBT"},{"$f":"'FR-16(7)(v)-1 Functional'!D310","v":"D249"},null,{"$f":"'FR-16(7)(v)-3 PROD Demand'!F310+'FR-16(7)(v)-4 PROD Energy'!F310+'FR-16(7)(v)-5 PROD Cust'!F310+'FR-16(7)(v)-7 TRANS Demand'!F310+'FR-16(7)(v)-8 TRANS Energy'!F310+'FR-16(7)(v)-9 TRANS Cust'!F310+'FR-16(7)(v)-11 DIST Demand'!F310+'FR-16(7)(v)-12 DIST Energy'!F310+'FR-16(7)(v)-13 DIST Cust'!F310-'FR-16(7)(v)-14 TOTAL CLASS'!F310","v":0},{"$f":"'FR-16(7)(v)-3 PROD Demand'!G310+'FR-16(7)(v)-4 PROD Energy'!G310+'FR-16(7)(v)-5 PROD Cust'!G310+'FR-16(7)(v)-7 TRANS Demand'!G310+'FR-16(7)(v)-8 TRANS Energy'!G310+'FR-16(7)(v)-9 TRANS Cust'!G310+'FR-16(7)(v)-11 DIST Demand'!G310+'FR-16(7)(v)-12 DIST Energy'!G310+'FR-16(7)(v)-13 DIST Cust'!G310-'FR-16(7)(v)-14 TOTAL CLASS'!G310","v":0},{"$f":"'FR-16(7)(v)-3 PROD Demand'!H310+'FR-16(7)(v)-4 PROD Energy'!H310+'FR-16(7)(v)-5 PROD Cust'!H310+'FR-16(7)(v)-7 TRANS Demand'!H310+'FR-16(7)(v)-8 TRANS Energy'!H310+'FR-16(7)(v)-9 TRANS Cust'!H310+'FR-16(7)(v)-11 DIST Demand'!H310+'FR-16(7)(v)-12 DIST Energy'!H310+'FR-16(7)(v)-13 DIST Cust'!H310-'FR-16(7)(v)-14 TOTAL CLASS'!H310","v":0},{"$f":"'FR-16(7)(v)-3 PROD Demand'!I310+'FR-16(7)(v)-4 PROD Energy'!I310+'FR-16(7)(v)-5 PROD Cust'!I310+'FR-16(7)(v)-7 TRANS Demand'!I310+'FR-16(7)(v)-8 TRANS Energy'!I310+'FR-16(7)(v)-9 TRANS Cust'!I310+'FR-16(7)(v)-11 DIST Demand'!I310+'FR-16(7)(v)-12 DIST Energy'!I310+'FR-16(7)(v)-13 DIST Cust'!I310-'FR-16(7)(v)-14 TOTAL CLASS'!I310","v":0},{"$f":"'FR-16(7)(v)-3 PROD Demand'!J310+'FR-16(7)(v)-4 PROD Energy'!J310+'FR-16(7)(v)-5 PROD Cust'!J310+'FR-16(7)(v)-7 TRANS Demand'!J310+'FR-16(7)(v)-8 TRANS Energy'!J310+'FR-16(7)(v)-9 TRANS Cust'!J310+'FR-16(7)(v)-11 DIST Demand'!J310+'FR-16(7)(v)-12 DIST Energy'!J310+'FR-16(7)(v)-13 DIST Cust'!J310-'FR-16(7)(v)-14 TOTAL CLASS'!J310","v":0},{"$f":"'FR-16(7)(v)-3 PROD Demand'!K310+'FR-16(7)(v)-4 PROD Energy'!K310+'FR-16(7)(v)-5 PROD Cust'!K310+'FR-16(7)(v)-7 TRANS Demand'!K310+'FR-16(7)(v)-8 TRANS Energy'!K310+'FR-16(7)(v)-9 TRANS Cust'!K310+'FR-16(7)(v)-11 DIST Demand'!K310+'FR-16(7)(v)-12 DIST Energy'!K310+'FR-16(7)(v)-13 DIST Cust'!K310-'FR-16(7)(v)-14 TOTAL CLASS'!K310","v":0},{"$f":"'FR-16(7)(v)-3 PROD Demand'!L310+'FR-16(7)(v)-4 PROD Energy'!L310+'FR-16(7)(v)-5 PROD Cust'!L310+'FR-16(7)(v)-7 TRANS Demand'!L310+'FR-16(7)(v)-8 TRANS Energy'!L310+'FR-16(7)(v)-9 TRANS Cust'!L310+'FR-16(7)(v)-11 DIST Demand'!L310+'FR-16(7)(v)-12 DIST Energy'!L310+'FR-16(7)(v)-13 DIST Cust'!L310-'FR-16(7)(v)-14 TOTAL CLASS'!L310","v":0},{"$f":"'FR-16(7)(v)-3 PROD Demand'!M310+'FR-16(7)(v)-4 PROD Energy'!M310+'FR-16(7)(v)-5 PROD Cust'!M310+'FR-16(7)(v)-7 TRANS Demand'!M310+'FR-16(7)(v)-8 TRANS Energy'!M310+'FR-16(7)(v)-9 TRANS Cust'!M310+'FR-16(7)(v)-11 DIST Demand'!M310+'FR-16(7)(v)-12 DIST Energy'!M310+'FR-16(7)(v)-13 DIST Cust'!M310-'FR-16(7)(v)-14 TOTAL CLASS'!M310","v":0},{"$f":"'FR-16(7)(v)-3 PROD Demand'!N310+'FR-16(7)(v)-4 PROD Energy'!N310+'FR-16(7)(v)-5 PROD Cust'!N310+'FR-16(7)(v)-7 TRANS Demand'!N310+'FR-16(7)(v)-8 TRANS Energy'!N310+'FR-16(7)(v)-9 TRANS Cust'!N310+'FR-16(7)(v)-11 DIST Demand'!N310+'FR-16(7)(v)-12 DIST Energy'!N310+'FR-16(7)(v)-13 DIST Cust'!N310-'FR-16(7)(v)-14 TOTAL CLASS'!N310","v":0},{"$f":"'FR-16(7)(v)-3 PROD Demand'!O310+'FR-16(7)(v)-4 PROD Energy'!O310+'FR-16(7)(v)-5 PROD Cust'!O310+'FR-16(7)(v)-7 TRANS Demand'!O310+'FR-16(7)(v)-8 TRANS Energy'!O310+'FR-16(7)(v)-9 TRANS Cust'!O310+'FR-16(7)(v)-11 DIST Demand'!O310+'FR-16(7)(v)-12 DIST Energy'!O310+'FR-16(7)(v)-13 DIST Cust'!O310-'FR-16(7)(v)-14 TOTAL CLASS'!O310","v":0},{"$f":"'FR-16(7)(v)-3 PROD Demand'!P310+'FR-16(7)(v)-4 PROD Energy'!P310+'FR-16(7)(v)-5 PROD Cust'!P310+'FR-16(7)(v)-7 TRANS Demand'!P310+'FR-16(7)(v)-8 TRANS Energy'!P310+'FR-16(7)(v)-9 TRANS Cust'!P310+'FR-16(7)(v)-11 DIST Demand'!P310+'FR-16(7)(v)-12 DIST Energy'!P310+'FR-16(7)(v)-13 DIST Cust'!P310-'FR-16(7)(v)-14 TOTAL CLASS'!P310","v":0},{"$f":"'FR-16(7)(v)-3 PROD Demand'!Q310+'FR-16(7)(v)-4 PROD Energy'!Q310+'FR-16(7)(v)-5 PROD Cust'!Q310+'FR-16(7)(v)-7 TRANS Demand'!Q310+'FR-16(7)(v)-8 TRANS Energy'!Q310+'FR-16(7)(v)-9 TRANS Cust'!Q310+'FR-16(7)(v)-11 DIST Demand'!Q310+'FR-16(7)(v)-12 DIST Energy'!Q310+'FR-16(7)(v)-13 DIST Cust'!Q310-'FR-16(7)(v)-14 TOTAL CLASS'!Q310","v":0},0,0]
[23,null,{"$f":"'FR-16(7)(v)-1 Functional'!C311","v":"VACATION PAY ACCRUAL"},{"$f":"'FR-16(7)(v)-1 Functional'!D311","v":"A315"},null,{"$f":"'FR-16(7)(v)-3 PROD Demand'!F311+'FR-16(7)(v)-4 PROD Energy'!F311+'FR-16(7)(v)-5 PROD Cust'!F311+'FR-16(7)(v)-7 TRANS Demand'!F311+'FR-16(7)(v)-8 TRANS Energy'!F311+'FR-16(7)(v)-9 TRANS Cust'!F311+'FR-16(7)(v)-11 DIST Demand'!F311+'FR-16(7)(v)-12 DIST Energy'!F311+'FR-16(7)(v)-13 DIST Cust'!F311-'FR-16(7)(v)-14 TOTAL CLASS'!F311","v":0},{"$f":"'FR-16(7)(v)-3 PROD Demand'!G311+'FR-16(7)(v)-4 PROD Energy'!G311+'FR-16(7)(v)-5 PROD Cust'!G311+'FR-16(7)(v)-7 TRANS Demand'!G311+'FR-16(7)(v)-8 TRANS Energy'!G311+'FR-16(7)(v)-9 TRANS Cust'!G311+'FR-16(7)(v)-11 DIST Demand'!G311+'FR-16(7)(v)-12 DIST Energy'!G311+'FR-16(7)(v)-13 DIST Cust'!G311-'FR-16(7)(v)-14 TOTAL CLASS'!G311","v":0},{"$f":"'FR-16(7)(v)-3 PROD Demand'!H311+'FR-16(7)(v)-4 PROD Energy'!H311+'FR-16(7)(v)-5 PROD Cust'!H311+'FR-16(7)(v)-7 TRANS Demand'!H311+'FR-16(7)(v)-8 TRANS Energy'!H311+'FR-16(7)(v)-9 TRANS Cust'!H311+'FR-16(7)(v)-11 DIST Demand'!H311+'FR-16(7)(v)-12 DIST Energy'!H311+'FR-16(7)(v)-13 DIST Cust'!H311-'FR-16(7)(v)-14 TOTAL CLASS'!H311","v":0},{"$f":"'FR-16(7)(v)-3 PROD Demand'!I311+'FR-16(7)(v)-4 PROD Energy'!I311+'FR-16(7)(v)-5 PROD Cust'!I311+'FR-16(7)(v)-7 TRANS Demand'!I311+'FR-16(7)(v)-8 TRANS Energy'!I311+'FR-16(7)(v)-9 TRANS Cust'!I311+'FR-16(7)(v)-11 DIST Demand'!I311+'FR-16(7)(v)-12 DIST Energy'!I311+'FR-16(7)(v)-13 DIST Cust'!I311-'FR-16(7)(v)-14 TOTAL CLASS'!I311","v":0},{"$f":"'FR-16(7)(v)-3 PROD Demand'!J311+'FR-16(7)(v)-4 PROD Energy'!J311+'FR-16(7)(v)-5 PROD Cust'!J311+'FR-16(7)(v)-7 TRANS Demand'!J311+'FR-16(7)(v)-8 TRANS Energy'!J311+'FR-16(7)(v)-9 TRANS Cust'!J311+'FR-16(7)(v)-11 DIST Demand'!J311+'FR-16(7)(v)-12 DIST Energy'!J311+'FR-16(7)(v)-13 DIST Cust'!J311-'FR-16(7)(v)-14 TOTAL CLASS'!J311","v":0},{"$f":"'FR-16(7)(v)-3 PROD Demand'!K311+'FR-16(7)(v)-4 PROD Energy'!K311+'FR-16(7)(v)-5 PROD Cust'!K311+'FR-16(7)(v)-7 TRANS Demand'!K311+'FR-16(7)(v)-8 TRANS Energy'!K311+'FR-16(7)(v)-9 TRANS Cust'!K311+'FR-16(7)(v)-11 DIST Demand'!K311+'FR-16(7)(v)-12 DIST Energy'!K311+'FR-16(7)(v)-13 DIST Cust'!K311-'FR-16(7)(v)-14 TOTAL CLASS'!K311","v":0},{"$f":"'FR-16(7)(v)-3 PROD Demand'!L311+'FR-16(7)(v)-4 PROD Energy'!L311+'FR-16(7)(v)-5 PROD Cust'!L311+'FR-16(7)(v)-7 TRANS Demand'!L311+'FR-16(7)(v)-8 TRANS Energy'!L311+'FR-16(7)(v)-9 TRANS Cust'!L311+'FR-16(7)(v)-11 DIST Demand'!L311+'FR-16(7)(v)-12 DIST Energy'!L311+'FR-16(7)(v)-13 DIST Cust'!L311-'FR-16(7)(v)-14 TOTAL CLASS'!L311","v":0},{"$f":"'FR-16(7)(v)-3 PROD Demand'!M311+'FR-16(7)(v)-4 PROD Energy'!M311+'FR-16(7)(v)-5 PROD Cust'!M311+'FR-16(7)(v)-7 TRANS Demand'!M311+'FR-16(7)(v)-8 TRANS Energy'!M311+'FR-16(7)(v)-9 TRANS Cust'!M311+'FR-16(7)(v)-11 DIST Demand'!M311+'FR-16(7)(v)-12 DIST Energy'!M311+'FR-16(7)(v)-13 DIST Cust'!M311-'FR-16(7)(v)-14 TOTAL CLASS'!M311","v":0},{"$f":"'FR-16(7)(v)-3 PROD Demand'!N311+'FR-16(7)(v)-4 PROD Energy'!N311+'FR-16(7)(v)-5 PROD Cust'!N311+'FR-16(7)(v)-7 TRANS Demand'!N311+'FR-16(7)(v)-8 TRANS Energy'!N311+'FR-16(7)(v)-9 TRANS Cust'!N311+'FR-16(7)(v)-11 DIST Demand'!N311+'FR-16(7)(v)-12 DIST Energy'!N311+'FR-16(7)(v)-13 DIST Cust'!N311-'FR-16(7)(v)-14 TOTAL CLASS'!N311","v":0},{"$f":"'FR-16(7)(v)-3 PROD Demand'!O311+'FR-16(7)(v)-4 PROD Energy'!O311+'FR-16(7)(v)-5 PROD Cust'!O311+'FR-16(7)(v)-7 TRANS Demand'!O311+'FR-16(7)(v)-8 TRANS Energy'!O311+'FR-16(7)(v)-9 TRANS Cust'!O311+'FR-16(7)(v)-11 DIST Demand'!O311+'FR-16(7)(v)-12 DIST Energy'!O311+'FR-16(7)(v)-13 DIST Cust'!O311-'FR-16(7)(v)-14 TOTAL CLASS'!O311","v":0},{"$f":"'FR-16(7)(v)-3 PROD Demand'!P311+'FR-16(7)(v)-4 PROD Energy'!P311+'FR-16(7)(v)-5 PROD Cust'!P311+'FR-16(7)(v)-7 TRANS Demand'!P311+'FR-16(7)(v)-8 TRANS Energy'!P311+'FR-16(7)(v)-9 TRANS Cust'!P311+'FR-16(7)(v)-11 DIST Demand'!P311+'FR-16(7)(v)-12 DIST Energy'!P311+'FR-16(7)(v)-13 DIST Cust'!P311-'FR-16(7)(v)-14 TOTAL CLASS'!P311","v":0},{"$f":"'FR-16(7)(v)-3 PROD Demand'!Q311+'FR-16(7)(v)-4 PROD Energy'!Q311+'FR-16(7)(v)-5 PROD Cust'!Q311+'FR-16(7)(v)-7 TRANS Demand'!Q311+'FR-16(7)(v)-8 TRANS Energy'!Q311+'FR-16(7)(v)-9 TRANS Cust'!Q311+'FR-16(7)(v)-11 DIST Demand'!Q311+'FR-16(7)(v)-12 DIST Energy'!Q311+'FR-16(7)(v)-13 DIST Cust'!Q311-'FR-16(7)(v)-14 TOTAL CLASS'!Q311","v":0},0,0]
[24,null,{"$f":"'FR-16(7)(v)-1 Functional'!C312","v":"NON-AMI METERS RETIRED EARLY"},{"$f":"'FR-16(7)(v)-1 Functional'!D312","v":"OM39"},null,{"$f":"'FR-16(7)(v)-3 PROD Demand'!F312+'FR-16(7)(v)-4 PROD Energy'!F312+'FR-16(7)(v)-5 PROD Cust'!F312+'FR-16(7)(v)-7 TRANS Demand'!F312+'FR-16(7)(v)-8 TRANS Energy'!F312+'FR-16(7)(v)-9 TRANS Cust'!F312+'FR-16(7)(v)-11 DIST Demand'!F312+'FR-16(7)(v)-12 DIST Energy'!F312+'FR-16(7)(v)-13 DIST Cust'!F312-'FR-16(7)(v)-14 TOTAL CLASS'!F312","v":0},{"$f":"'FR-16(7)(v)-3 PROD Demand'!G312+'FR-16(7)(v)-4 PROD Energy'!G312+'FR-16(7)(v)-5 PROD Cust'!G312+'FR-16(7)(v)-7 TRANS Demand'!G312+'FR-16(7)(v)-8 TRANS Energy'!G312+'FR-16(7)(v)-9 TRANS Cust'!G312+'FR-16(7)(v)-11 DIST Demand'!G312+'FR-16(7)(v)-12 DIST Energy'!G312+'FR-16(7)(v)-13 DIST Cust'!G312-'FR-16(7)(v)-14 TOTAL CLASS'!G312","v":0},{"$f":"'FR-16(7)(v)-3 PROD Demand'!H312+'FR-16(7)(v)-4 PROD Energy'!H312+'FR-16(7)(v)-5 PROD Cust'!H312+'FR-16(7)(v)-7 TRANS Demand'!H312+'FR-16(7)(v)-8 TRANS Energy'!H312+'FR-16(7)(v)-9 TRANS Cust'!H312+'FR-16(7)(v)-11 DIST Demand'!H312+'FR-16(7)(v)-12 DIST Energy'!H312+'FR-16(7)(v)-13 DIST Cust'!H312-'FR-16(7)(v)-14 TOTAL CLASS'!H312","v":0},{"$f":"'FR-16(7)(v)-3 PROD Demand'!I312+'FR-16(7)(v)-4 PROD Energy'!I312+'FR-16(7)(v)-5 PROD Cust'!I312+'FR-16(7)(v)-7 TRANS Demand'!I312+'FR-16(7)(v)-8 TRANS Energy'!I312+'FR-16(7)(v)-9 TRANS Cust'!I312+'FR-16(7)(v)-11 DIST Demand'!I312+'FR-16(7)(v)-12 DIST Energy'!I312+'FR-16(7)(v)-13 DIST Cust'!I312-'FR-16(7)(v)-14 TOTAL CLASS'!I312","v":0},{"$f":"'FR-16(7)(v)-3 PROD Demand'!J312+'FR-16(7)(v)-4 PROD Energy'!J312+'FR-16(7)(v)-5 PROD Cust'!J312+'FR-16(7)(v)-7 TRANS Demand'!J312+'FR-16(7)(v)-8 TRANS Energy'!J312+'FR-16(7)(v)-9 TRANS Cust'!J312+'FR-16(7)(v)-11 DIST Demand'!J312+'FR-16(7)(v)-12 DIST Energy'!J312+'FR-16(7)(v)-13 DIST Cust'!J312-'FR-16(7)(v)-14 TOTAL CLASS'!J312","v":0},{"$f":"'FR-16(7)(v)-3 PROD Demand'!K312+'FR-16(7)(v)-4 PROD Energy'!K312+'FR-16(7)(v)-5 PROD Cust'!K312+'FR-16(7)(v)-7 TRANS Demand'!K312+'FR-16(7)(v)-8 TRANS Energy'!K312+'FR-16(7)(v)-9 TRANS Cust'!K312+'FR-16(7)(v)-11 DIST Demand'!K312+'FR-16(7)(v)-12 DIST Energy'!K312+'FR-16(7)(v)-13 DIST Cust'!K312-'FR-16(7)(v)-14 TOTAL CLASS'!K312","v":0},{"$f":"'FR-16(7)(v)-3 PROD Demand'!L312+'FR-16(7)(v)-4 PROD Energy'!L312+'FR-16(7)(v)-5 PROD Cust'!L312+'FR-16(7)(v)-7 TRANS Demand'!L312+'FR-16(7)(v)-8 TRANS Energy'!L312+'FR-16(7)(v)-9 TRANS Cust'!L312+'FR-16(7)(v)-11 DIST Demand'!L312+'FR-16(7)(v)-12 DIST Energy'!L312+'FR-16(7)(v)-13 DIST Cust'!L312-'FR-16(7)(v)-14 TOTAL CLASS'!L312","v":0},{"$f":"'FR-16(7)(v)-3 PROD Demand'!M312+'FR-16(7)(v)-4 PROD Energy'!M312+'FR-16(7)(v)-5 PROD Cust'!M312+'FR-16(7)(v)-7 TRANS Demand'!M312+'FR-16(7)(v)-8 TRANS Energy'!M312+'FR-16(7)(v)-9 TRANS Cust'!M312+'FR-16(7)(v)-11 DIST Demand'!M312+'FR-16(7)(v)-12 DIST Energy'!M312+'FR-16(7)(v)-13 DIST Cust'!M312-'FR-16(7)(v)-14 TOTAL CLASS'!M312","v":0},{"$f":"'FR-16(7)(v)-3 PROD Demand'!N312+'FR-16(7)(v)-4 PROD Energy'!N312+'FR-16(7)(v)-5 PROD Cust'!N312+'FR-16(7)(v)-7 TRANS Demand'!N312+'FR-16(7)(v)-8 TRANS Energy'!N312+'FR-16(7)(v)-9 TRANS Cust'!N312+'FR-16(7)(v)-11 DIST Demand'!N312+'FR-16(7)(v)-12 DIST Energy'!N312+'FR-16(7)(v)-13 DIST Cust'!N312-'FR-16(7)(v)-14 TOTAL CLASS'!N312","v":0},{"$f":"'FR-16(7)(v)-3 PROD Demand'!O312+'FR-16(7)(v)-4 PROD Energy'!O312+'FR-16(7)(v)-5 PROD Cust'!O312+'FR-16(7)(v)-7 TRANS Demand'!O312+'FR-16(7)(v)-8 TRANS Energy'!O312+'FR-16(7)(v)-9 TRANS Cust'!O312+'FR-16(7)(v)-11 DIST Demand'!O312+'FR-16(7)(v)-12 DIST Energy'!O312+'FR-16(7)(v)-13 DIST Cust'!O312-'FR-16(7)(v)-14 TOTAL CLASS'!O312","v":0},{"$f":"'FR-16(7)(v)-3 PROD Demand'!P312+'FR-16(7)(v)-4 PROD Energy'!P312+'FR-16(7)(v)-5 PROD Cust'!P312+'FR-16(7)(v)-7 TRANS Demand'!P312+'FR-16(7)(v)-8 TRANS Energy'!P312+'FR-16(7)(v)-9 TRANS Cust'!P312+'FR-16(7)(v)-11 DIST Demand'!P312+'FR-16(7)(v)-12 DIST Energy'!P312+'FR-16(7)(v)-13 DIST Cust'!P312-'FR-16(7)(v)-14 TOTAL CLASS'!P312","v":0},{"$f":"'FR-16(7)(v)-3 PROD Demand'!Q312+'FR-16(7)(v)-4 PROD Energy'!Q312+'FR-16(7)(v)-5 PROD Cust'!Q312+'FR-16(7)(v)-7 TRANS Demand'!Q312+'FR-16(7)(v)-8 TRANS Energy'!Q312+'FR-16(7)(v)-9 TRANS Cust'!Q312+'FR-16(7)(v)-11 DIST Demand'!Q312+'FR-16(7)(v)-12 DIST Energy'!Q312+'FR-16(7)(v)-13 DIST Cust'!Q312-'FR-16(7)(v)-14 TOTAL CLASS'!Q312","v":0},{"$f":"SUM(G312:Q312)","v":0},0]
[25,null,{"$f":"'FR-16(7)(v)-1 Functional'!C313","v":"PENSION EXPENSE"},{"$f":"'FR-16(7)(v)-1 Functional'!D313","v":"A315"},null,{"$f":"'FR-16(7)(v)-3 PROD Demand'!F313+'FR-16(7)(v)-4 PROD Energy'!F313+'FR-16(7)(v)-5 PROD Cust'!F313+'FR-16(7)(v)-7 TRANS Demand'!F313+'FR-16(7)(v)-8 TRANS Energy'!F313+'FR-16(7)(v)-9 TRANS Cust'!F313+'FR-16(7)(v)-11 DIST Demand'!F313+'FR-16(7)(v)-12 DIST Energy'!F313+'FR-16(7)(v)-13 DIST Cust'!F313-'FR-16(7)(v)-14 TOTAL CLASS'!F313","v":0},{"$f":"'FR-16(7)(v)-3 PROD Demand'!G313+'FR-16(7)(v)-4 PROD Energy'!G313+'FR-16(7)(v)-5 PROD Cust'!G313+'FR-16(7)(v)-7 TRANS Demand'!G313+'FR-16(7)(v)-8 TRANS Energy'!G313+'FR-16(7)(v)-9 TRANS Cust'!G313+'FR-16(7)(v)-11 DIST Demand'!G313+'FR-16(7)(v)-12 DIST Energy'!G313+'FR-16(7)(v)-13 DIST Cust'!G313-'FR-16(7)(v)-14 TOTAL CLASS'!G313","v":0},{"$f":"'FR-16(7)(v)-3 PROD Demand'!H313+'FR-16(7)(v)-4 PROD Energy'!H313+'FR-16(7)(v)-5 PROD Cust'!H313+'FR-16(7)(v)-7 TRANS Demand'!H313+'FR-16(7)(v)-8 TRANS Energy'!H313+'FR-16(7)(v)-9 TRANS Cust'!H313+'FR-16(7)(v)-11 DIST Demand'!H313+'FR-16(7)(v)-12 DIST Energy'!H313+'FR-16(7)(v)-13 DIST Cust'!H313-'FR-16(7)(v)-14 TOTAL CLASS'!H313","v":0},{"$f":"'FR-16(7)(v)-3 PROD Demand'!I313+'FR-16(7)(v)-4 PROD Energy'!I313+'FR-16(7)(v)-5 PROD Cust'!I313+'FR-16(7)(v)-7 TRANS Demand'!I313+'FR-16(7)(v)-8 TRANS Energy'!I313+'FR-16(7)(v)-9 TRANS Cust'!I313+'FR-16(7)(v)-11 DIST Demand'!I313+'FR-16(7)(v)-12 DIST Energy'!I313+'FR-16(7)(v)-13 DIST Cust'!I313-'FR-16(7)(v)-14 TOTAL CLASS'!I313","v":0},{"$f":"'FR-16(7)(v)-3 PROD Demand'!J313+'FR-16(7)(v)-4 PROD Energy'!J313+'FR-16(7)(v)-5 PROD Cust'!J313+'FR-16(7)(v)-7 TRANS Demand'!J313+'FR-16(7)(v)-8 TRANS Energy'!J313+'FR-16(7)(v)-9 TRANS Cust'!J313+'FR-16(7)(v)-11 DIST Demand'!J313+'FR-16(7)(v)-12 DIST Energy'!J313+'FR-16(7)(v)-13 DIST Cust'!J313-'FR-16(7)(v)-14 TOTAL CLASS'!J313","v":0},{"$f":"'FR-16(7)(v)-3 PROD Demand'!K313+'FR-16(7)(v)-4 PROD Energy'!K313+'FR-16(7)(v)-5 PROD Cust'!K313+'FR-16(7)(v)-7 TRANS Demand'!K313+'FR-16(7)(v)-8 TRANS Energy'!K313+'FR-16(7)(v)-9 TRANS Cust'!K313+'FR-16(7)(v)-11 DIST Demand'!K313+'FR-16(7)(v)-12 DIST Energy'!K313+'FR-16(7)(v)-13 DIST Cust'!K313-'FR-16(7)(v)-14 TOTAL CLASS'!K313","v":0},{"$f":"'FR-16(7)(v)-3 PROD Demand'!L313+'FR-16(7)(v)-4 PROD Energy'!L313+'FR-16(7)(v)-5 PROD Cust'!L313+'FR-16(7)(v)-7 TRANS Demand'!L313+'FR-16(7)(v)-8 TRANS Energy'!L313+'FR-16(7)(v)-9 TRANS Cust'!L313+'FR-16(7)(v)-11 DIST Demand'!L313+'FR-16(7)(v)-12 DIST Energy'!L313+'FR-16(7)(v)-13 DIST Cust'!L313-'FR-16(7)(v)-14 TOTAL CLASS'!L313","v":0},{"$f":"'FR-16(7)(v)-3 PROD Demand'!M313+'FR-16(7)(v)-4 PROD Energy'!M313+'FR-16(7)(v)-5 PROD Cust'!M313+'FR-16(7)(v)-7 TRANS Demand'!M313+'FR-16(7)(v)-8 TRANS Energy'!M313+'FR-16(7)(v)-9 TRANS Cust'!M313+'FR-16(7)(v)-11 DIST Demand'!M313+'FR-16(7)(v)-12 DIST Energy'!M313+'FR-16(7)(v)-13 DIST Cust'!M313-'FR-16(7)(v)-14 TOTAL CLASS'!M313","v":0},{"$f":"'FR-16(7)(v)-3 PROD Demand'!N313+'FR-16(7)(v)-4 PROD Energy'!N313+'FR-16(7)(v)-5 PROD Cust'!N313+'FR-16(7)(v)-7 TRANS Demand'!N313+'FR-16(7)(v)-8 TRANS Energy'!N313+'FR-16(7)(v)-9 TRANS Cust'!N313+'FR-16(7)(v)-11 DIST Demand'!N313+'FR-16(7)(v)-12 DIST Energy'!N313+'FR-16(7)(v)-13 DIST Cust'!N313-'FR-16(7)(v)-14 TOTAL CLASS'!N313","v":0},{"$f":"'FR-16(7)(v)-3 PROD Demand'!O313+'FR-16(7)(v)-4 PROD Energy'!O313+'FR-16(7)(v)-5 PROD Cust'!O313+'FR-16(7)(v)-7 TRANS Demand'!O313+'FR-16(7)(v)-8 TRANS Energy'!O313+'FR-16(7)(v)-9 TRANS Cust'!O313+'FR-16(7)(v)-11 DIST Demand'!O313+'FR-16(7)(v)-12 DIST Energy'!O313+'FR-16(7)(v)-13 DIST Cust'!O313-'FR-16(7)(v)-14 TOTAL CLASS'!O313","v":0},{"$f":"'FR-16(7)(v)-3 PROD Demand'!P313+'FR-16(7)(v)-4 PROD Energy'!P313+'FR-16(7)(v)-5 PROD Cust'!P313+'FR-16(7)(v)-7 TRANS Demand'!P313+'FR-16(7)(v)-8 TRANS Energy'!P313+'FR-16(7)(v)-9 TRANS Cust'!P313+'FR-16(7)(v)-11 DIST Demand'!P313+'FR-16(7)(v)-12 DIST Energy'!P313+'FR-16(7)(v)-13 DIST Cust'!P313-'FR-16(7)(v)-14 TOTAL CLASS'!P313","v":0},{"$f":"'FR-16(7)(v)-3 PROD Demand'!Q313+'FR-16(7)(v)-4 PROD Energy'!Q313+'FR-16(7)(v)-5 PROD Cust'!Q313+'FR-16(7)(v)-7 TRANS Demand'!Q313+'FR-16(7)(v)-8 TRANS Energy'!Q313+'FR-16(7)(v)-9 TRANS Cust'!Q313+'FR-16(7)(v)-11 DIST Demand'!Q313+'FR-16(7)(v)-12 DIST Energy'!Q313+'FR-16(7)(v)-13 DIST Cust'!Q313-'FR-16(7)(v)-14 TOTAL CLASS'!Q313","v":0},{"$f":"SUM(G313:Q313)","v":0},0]
[26,null,{"$f":"'FR-16(7)(v)-1 Functional'!C314","v":"UNCOLLECTIBLE ACCOUNTS"},{"$f":"'FR-16(7)(v)-1 Functional'!D314","v":"K411"},null,{"$f":"'FR-16(7)(v)-3 PROD Demand'!F314+'FR-16(7)(v)-4 PROD Energy'!F314+'FR-16(7)(v)-5 PROD Cust'!F314+'FR-16(7)(v)-7 TRANS Demand'!F314+'FR-16(7)(v)-8 TRANS Energy'!F314+'FR-16(7)(v)-9 TRANS Cust'!F314+'FR-16(7)(v)-11 DIST Demand'!F314+'FR-16(7)(v)-12 DIST Energy'!F314+'FR-16(7)(v)-13 DIST Cust'!F314-'FR-16(7)(v)-14 TOTAL CLASS'!F314","v":0},{"$f":"'FR-16(7)(v)-3 PROD Demand'!G314+'FR-16(7)(v)-4 PROD Energy'!G314+'FR-16(7)(v)-5 PROD Cust'!G314+'FR-16(7)(v)-7 TRANS Demand'!G314+'FR-16(7)(v)-8 TRANS Energy'!G314+'FR-16(7)(v)-9 TRANS Cust'!G314+'FR-16(7)(v)-11 DIST Demand'!G314+'FR-16(7)(v)-12 DIST Energy'!G314+'FR-16(7)(v)-13 DIST Cust'!G314-'FR-16(7)(v)-14 TOTAL CLASS'!G314","v":0},{"$f":"'FR-16(7)(v)-3 PROD Demand'!H314+'FR-16(7)(v)-4 PROD Energy'!H314+'FR-16(7)(v)-5 PROD Cust'!H314+'FR-16(7)(v)-7 TRANS Demand'!H314+'FR-16(7)(v)-8 TRANS Energy'!H314+'FR-16(7)(v)-9 TRANS Cust'!H314+'FR-16(7)(v)-11 DIST Demand'!H314+'FR-16(7)(v)-12 DIST Energy'!H314+'FR-16(7)(v)-13 DIST Cust'!H314-'FR-16(7)(v)-14 TOTAL CLASS'!H314","v":0},{"$f":"'FR-16(7)(v)-3 PROD Demand'!I314+'FR-16(7)(v)-4 PROD Energy'!I314+'FR-16(7)(v)-5 PROD Cust'!I314+'FR-16(7)(v)-7 TRANS Demand'!I314+'FR-16(7)(v)-8 TRANS Energy'!I314+'FR-16(7)(v)-9 TRANS Cust'!I314+'FR-16(7)(v)-11 DIST Demand'!I314+'FR-16(7)(v)-12 DIST Energy'!I314+'FR-16(7)(v)-13 DIST Cust'!I314-'FR-16(7)(v)-14 TOTAL CLASS'!I314","v":0},{"$f":"'FR-16(7)(v)-3 PROD Demand'!J314+'FR-16(7)(v)-4 PROD Energy'!J314+'FR-16(7)(v)-5 PROD Cust'!J314+'FR-16(7)(v)-7 TRANS Demand'!J314+'FR-16(7)(v)-8 TRANS Energy'!J314+'FR-16(7)(v)-9 TRANS Cust'!J314+'FR-16(7)(v)-11 DIST Demand'!J314+'FR-16(7)(v)-12 DIST Energy'!J314+'FR-16(7)(v)-13 DIST Cust'!J314-'FR-16(7)(v)-14 TOTAL CLASS'!J314","v":0},{"$f":"'FR-16(7)(v)-3 PROD Demand'!K314+'FR-16(7)(v)-4 PROD Energy'!K314+'FR-16(7)(v)-5 PROD Cust'!K314+'FR-16(7)(v)-7 TRANS Demand'!K314+'FR-16(7)(v)-8 TRANS Energy'!K314+'FR-16(7)(v)-9 TRANS Cust'!K314+'FR-16(7)(v)-11 DIST Demand'!K314+'FR-16(7)(v)-12 DIST Energy'!K314+'FR-16(7)(v)-13 DIST Cust'!K314-'FR-16(7)(v)-14 TOTAL CLASS'!K314","v":0},{"$f":"'FR-16(7)(v)-3 PROD Demand'!L314+'FR-16(7)(v)-4 PROD Energy'!L314+'FR-16(7)(v)-5 PROD Cust'!L314+'FR-16(7)(v)-7 TRANS Demand'!L314+'FR-16(7)(v)-8 TRANS Energy'!L314+'FR-16(7)(v)-9 TRANS Cust'!L314+'FR-16(7)(v)-11 DIST Demand'!L314+'FR-16(7)(v)-12 DIST Energy'!L314+'FR-16(7)(v)-13 DIST Cust'!L314-'FR-16(7)(v)-14 TOTAL CLASS'!L314","v":0},{"$f":"'FR-16(7)(v)-3 PROD Demand'!M314+'FR-16(7)(v)-4 PROD Energy'!M314+'FR-16(7)(v)-5 PROD Cust'!M314+'FR-16(7)(v)-7 TRANS Demand'!M314+'FR-16(7)(v)-8 TRANS Energy'!M314+'FR-16(7)(v)-9 TRANS Cust'!M314+'FR-16(7)(v)-11 DIST Demand'!M314+'FR-16(7)(v)-12 DIST Energy'!M314+'FR-16(7)(v)-13 DIST Cust'!M314-'FR-16(7)(v)-14 TOTAL CLASS'!M314","v":0},{"$f":"'FR-16(7)(v)-3 PROD Demand'!N314+'FR-16(7)(v)-4 PROD Energy'!N314+'FR-16(7)(v)-5 PROD Cust'!N314+'FR-16(7)(v)-7 TRANS Demand'!N314+'FR-16(7)(v)-8 TRANS Energy'!N314+'FR-16(7)(v)-9 TRANS Cust'!N314+'FR-16(7)(v)-11 DIST Demand'!N314+'FR-16(7)(v)-12 DIST Energy'!N314+'FR-16(7)(v)-13 DIST Cust'!N314-'FR-16(7)(v)-14 TOTAL CLASS'!N314","v":0},{"$f":"'FR-16(7)(v)-3 PROD Demand'!O314+'FR-16(7)(v)-4 PROD Energy'!O314+'FR-16(7)(v)-5 PROD Cust'!O314+'FR-16(7)(v)-7 TRANS Demand'!O314+'FR-16(7)(v)-8 TRANS Energy'!O314+'FR-16(7)(v)-9 TRANS Cust'!O314+'FR-16(7)(v)-11 DIST Demand'!O314+'FR-16(7)(v)-12 DIST Energy'!O314+'FR-16(7)(v)-13 DIST Cust'!O314-'FR-16(7)(v)-14 TOTAL CLASS'!O314","v":0},{"$f":"'FR-16(7)(v)-3 PROD Demand'!P314+'FR-16(7)(v)-4 PROD Energy'!P314+'FR-16(7)(v)-5 PROD Cust'!P314+'FR-16(7)(v)-7 TRANS Demand'!P314+'FR-16(7)(v)-8 TRANS Energy'!P314+'FR-16(7)(v)-9 TRANS Cust'!P314+'FR-16(7)(v)-11 DIST Demand'!P314+'FR-16(7)(v)-12 DIST Energy'!P314+'FR-16(7)(v)-13 DIST Cust'!P314-'FR-16(7)(v)-14 TOTAL CLASS'!P314","v":0},{"$f":"'FR-16(7)(v)-3 PROD Demand'!Q314+'FR-16(7)(v)-4 PROD Energy'!Q314+'FR-16(7)(v)-5 PROD Cust'!Q314+'FR-16(7)(v)-7 TRANS Demand'!Q314+'FR-16(7)(v)-8 TRANS Energy'!Q314+'FR-16(7)(v)-9 TRANS Cust'!Q314+'FR-16(7)(v)-11 DIST Demand'!Q314+'FR-16(7)(v)-12 DIST Energy'!Q314+'FR-16(7)(v)-13 DIST Cust'!Q314-'FR-16(7)(v)-14 TOTAL CLASS'!Q314","v":0},0,0]
[27,null,{"$f":"'FR-16(7)(v)-1 Functional'!C315","v":"  TOTAL ACCOUNT 283"},null,null,{"$f":"SUM(F303:F314)","v":0},{"$f":"SUM(G303:G314)","v":0},0,0,{"$f":"SUM(J303:J314)","v":0},0,0,0,0,0,0,0,0,0]
[28]
[29," OTHER ACCUMULATED DEFERRED INCOME TAXES"]
[30,null,{"$f":"'FR-16(7)(v)-1 Functional'!C318","v":"EXCESS ADIT"},"D249",null,{"$f":"'FR-16(7)(v)-3 PROD Demand'!F318+'FR-16(7)(v)-4 PROD Energy'!F318+'FR-16(7)(v)-5 PROD Cust'!F318+'FR-16(7)(v)-7 TRANS Demand'!F318+'FR-16(7)(v)-8 TRANS Energy'!F318+'FR-16(7)(v)-9 TRANS Cust'!F318+'FR-16(7)(v)-11 DIST Demand'!F318+'FR-16(7)(v)-12 DIST Energy'!F318+'FR-16(7)(v)-13 DIST Cust'!F318-'FR-16(7)(v)-14 TOTAL CLASS'!F318","v":0},{"$f":"'FR-16(7)(v)-3 PROD Demand'!G318+'FR-16(7)(v)-4 PROD Energy'!G318+'FR-16(7)(v)-5 PROD Cust'!G318+'FR-16(7)(v)-7 TRANS Demand'!G318+'FR-16(7)(v)-8 TRANS Energy'!G318+'FR-16(7)(v)-9 TRANS Cust'!G318+'FR-16(7)(v)-11 DIST Demand'!G318+'FR-16(7)(v)-12 DIST Energy'!G318+'FR-16(7)(v)-13 DIST Cust'!G318-'FR-16(7)(v)-14 TOTAL CLASS'!G318","v":0},{"$f":"'FR-16(7)(v)-3 PROD Demand'!H318+'FR-16(7)(v)-4 PROD Energy'!H318+'FR-16(7)(v)-5 PROD Cust'!H318+'FR-16(7)(v)-7 TRANS Demand'!H318+'FR-16(7)(v)-8 TRANS Energy'!H318+'FR-16(7)(v)-9 TRANS Cust'!H318+'FR-16(7)(v)-11 DIST Demand'!H318+'FR-16(7)(v)-12 DIST Energy'!H318+'FR-16(7)(v)-13 DIST Cust'!H318-'FR-16(7)(v)-14 TOTAL CLASS'!H318","v":0},{"$f":"'FR-16(7)(v)-3 PROD Demand'!I318+'FR-16(7)(v)-4 PROD Energy'!I318+'FR-16(7)(v)-5 PROD Cust'!I318+'FR-16(7)(v)-7 TRANS Demand'!I318+'FR-16(7)(v)-8 TRANS Energy'!I318+'FR-16(7)(v)-9 TRANS Cust'!I318+'FR-16(7)(v)-11 DIST Demand'!I318+'FR-16(7)(v)-12 DIST Energy'!I318+'FR-16(7)(v)-13 DIST Cust'!I318-'FR-16(7)(v)-14 TOTAL CLASS'!I318","v":0},{"$f":"'FR-16(7)(v)-3 PROD Demand'!J318+'FR-16(7)(v)-4 PROD Energy'!J318+'FR-16(7)(v)-5 PROD Cust'!J318+'FR-16(7)(v)-7 TRANS Demand'!J318+'FR-16(7)(v)-8 TRANS Energy'!J318+'FR-16(7)(v)-9 TRANS Cust'!J318+'FR-16(7)(v)-11 DIST Demand'!J318+'FR-16(7)(v)-12 DIST Energy'!J318+'FR-16(7)(v)-13 DIST Cust'!J318-'FR-16(7)(v)-14 TOTAL CLASS'!J318","v":0},{"$f":"'FR-16(7)(v)-3 PROD Demand'!K318+'FR-16(7)(v)-4 PROD Energy'!K318+'FR-16(7)(v)-5 PROD Cust'!K318+'FR-16(7)(v)-7 TRANS Demand'!K318+'FR-16(7)(v)-8 TRANS Energy'!K318+'FR-16(7)(v)-9 TRANS Cust'!K318+'FR-16(7)(v)-11 DIST Demand'!K318+'FR-16(7)(v)-12 DIST Energy'!K318+'FR-16(7)(v)-13 DIST Cust'!K318-'FR-16(7)(v)-14 TOTAL CLASS'!K318","v":0},{"$f":"'FR-16(7)(v)-3 PROD Demand'!L318+'FR-16(7)(v)-4 PROD Energy'!L318+'FR-16(7)(v)-5 PROD Cust'!L318+'FR-16(7)(v)-7 TRANS Demand'!L318+'FR-16(7)(v)-8 TRANS Energy'!L318+'FR-16(7)(v)-9 TRANS Cust'!L318+'FR-16(7)(v)-11 DIST Demand'!L318+'FR-16(7)(v)-12 DIST Energy'!L318+'FR-16(7)(v)-13 DIST Cust'!L318-'FR-16(7)(v)-14 TOTAL CLASS'!L318","v":0},{"$f":"'FR-16(7)(v)-3 PROD Demand'!M318+'FR-16(7)(v)-4 PROD Energy'!M318+'FR-16(7)(v)-5 PROD Cust'!M318+'FR-16(7)(v)-7 TRANS Demand'!M318+'FR-16(7)(v)-8 TRANS Energy'!M318+'FR-16(7)(v)-9 TRANS Cust'!M318+'FR-16(7)(v)-11 DIST Demand'!M318+'FR-16(7)(v)-12 DIST Energy'!M318+'FR-16(7)(v)-13 DIST Cust'!M318-'FR-16(7)(v)-14 TOTAL CLASS'!M318","v":0},{"$f":"'FR-16(7)(v)-3 PROD Demand'!N318+'FR-16(7)(v)-4 PROD Energy'!N318+'FR-16(7)(v)-5 PROD Cust'!N318+'FR-16(7)(v)-7 TRANS Demand'!N318+'FR-16(7)(v)-8 TRANS Energy'!N318+'FR-16(7)(v)-9 TRANS Cust'!N318+'FR-16(7)(v)-11 DIST Demand'!N318+'FR-16(7)(v)-12 DIST Energy'!N318+'FR-16(7)(v)-13 DIST Cust'!N318-'FR-16(7)(v)-14 TOTAL CLASS'!N318","v":0},{"$f":"'FR-16(7)(v)-3 PROD Demand'!O318+'FR-16(7)(v)-4 PROD Energy'!O318+'FR-16(7)(v)-5 PROD Cust'!O318+'FR-16(7)(v)-7 TRANS Demand'!O318+'FR-16(7)(v)-8 TRANS Energy'!O318+'FR-16(7)(v)-9 TRANS Cust'!O318+'FR-16(7)(v)-11 DIST Demand'!O318+'FR-16(7)(v)-12 DIST Energy'!O318+'FR-16(7)(v)-13 DIST Cust'!O318-'FR-16(7)(v)-14 TOTAL CLASS'!O318","v":0},{"$f":"'FR-16(7)(v)-3 PROD Demand'!P318+'FR-16(7)(v)-4 PROD Energy'!P318+'FR-16(7)(v)-5 PROD Cust'!P318+'FR-16(7)(v)-7 TRANS Demand'!P318+'FR-16(7)(v)-8 TRANS Energy'!P318+'FR-16(7)(v)-9 TRANS Cust'!P318+'FR-16(7)(v)-11 DIST Demand'!P318+'FR-16(7)(v)-12 DIST Energy'!P318+'FR-16(7)(v)-13 DIST Cust'!P318-'FR-16(7)(v)-14 TOTAL CLASS'!P318","v":0},{"$f":"'FR-16(7)(v)-3 PROD Demand'!Q318+'FR-16(7)(v)-4 PROD Energy'!Q318+'FR-16(7)(v)-5 PROD Cust'!Q318+'FR-16(7)(v)-7 TRANS Demand'!Q318+'FR-16(7)(v)-8 TRANS Energy'!Q318+'FR-16(7)(v)-9 TRANS Cust'!Q318+'FR-16(7)(v)-11 DIST Demand'!Q318+'FR-16(7)(v)-12 DIST Energy'!Q318+'FR-16(7)(v)-13 DIST Cust'!Q318-'FR-16(7)(v)-14 TOTAL CLASS'!Q318","v":0},{"$f":"SUM(G318:Q318)","v":0},{"$f":"F318-R318","v":0}]
[31,null,{"$f":"'FR-16(7)(v)-1 Functional'!C319","v":"CUSTOMER SERVICE DEPOSITS"},{"$f":"'FR-16(7)(v)-1 Functional'!D319","v":"NP29"},null,{"$f":"'FR-16(7)(v)-3 PROD Demand'!F319+'FR-16(7)(v)-4 PROD Energy'!F319+'FR-16(7)(v)-5 PROD Cust'!F319+'FR-16(7)(v)-7 TRANS Demand'!F319+'FR-16(7)(v)-8 TRANS Energy'!F319+'FR-16(7)(v)-9 TRANS Cust'!F319+'FR-16(7)(v)-11 DIST Demand'!F319+'FR-16(7)(v)-12 DIST Energy'!F319+'FR-16(7)(v)-13 DIST Cust'!F319-'FR-16(7)(v)-14 TOTAL CLASS'!F319","v":0},{"$f":"'FR-16(7)(v)-3 PROD Demand'!G319+'FR-16(7)(v)-4 PROD Energy'!G319+'FR-16(7)(v)-5 PROD Cust'!G319+'FR-16(7)(v)-7 TRANS Demand'!G319+'FR-16(7)(v)-8 TRANS Energy'!G319+'FR-16(7)(v)-9 TRANS Cust'!G319+'FR-16(7)(v)-11 DIST Demand'!G319+'FR-16(7)(v)-12 DIST Energy'!G319+'FR-16(7)(v)-13 DIST Cust'!G319-'FR-16(7)(v)-14 TOTAL CLASS'!G319","v":0},{"$f":"'FR-16(7)(v)-3 PROD Demand'!H319+'FR-16(7)(v)-4 PROD Energy'!H319+'FR-16(7)(v)-5 PROD Cust'!H319+'FR-16(7)(v)-7 TRANS Demand'!H319+'FR-16(7)(v)-8 TRANS Energy'!H319+'FR-16(7)(v)-9 TRANS Cust'!H319+'FR-16(7)(v)-11 DIST Demand'!H319+'FR-16(7)(v)-12 DIST Energy'!H319+'FR-16(7)(v)-13 DIST Cust'!H319-'FR-16(7)(v)-14 TOTAL CLASS'!H319","v":0},{"$f":"'FR-16(7)(v)-3 PROD Demand'!I319+'FR-16(7)(v)-4 PROD Energy'!I319+'FR-16(7)(v)-5 PROD Cust'!I319+'FR-16(7)(v)-7 TRANS Demand'!I319+'FR-16(7)(v)-8 TRANS Energy'!I319+'FR-16(7)(v)-9 TRANS Cust'!I319+'FR-16(7)(v)-11 DIST Demand'!I319+'FR-16(7)(v)-12 DIST Energy'!I319+'FR-16(7)(v)-13 DIST Cust'!I319-'FR-16(7)(v)-14 TOTAL CLASS'!I319","v":0},{"$f":"'FR-16(7)(v)-3 PROD Demand'!J319+'FR-16(7)(v)-4 PROD Energy'!J319+'FR-16(7)(v)-5 PROD Cust'!J319+'FR-16(7)(v)-7 TRANS Demand'!J319+'FR-16(7)(v)-8 TRANS Energy'!J319+'FR-16(7)(v)-9 TRANS Cust'!J319+'FR-16(7)(v)-11 DIST Demand'!J319+'FR-16(7)(v)-12 DIST Energy'!J319+'FR-16(7)(v)-13 DIST Cust'!J319-'FR-16(7)(v)-14 TOTAL CLASS'!J319","v":0},{"$f":"'FR-16(7)(v)-3 PROD Demand'!K319+'FR-16(7)(v)-4 PROD Energy'!K319+'FR-16(7)(v)-5 PROD Cust'!K319+'FR-16(7)(v)-7 TRANS Demand'!K319+'FR-16(7)(v)-8 TRANS Energy'!K319+'FR-16(7)(v)-9 TRANS Cust'!K319+'FR-16(7)(v)-11 DIST Demand'!K319+'FR-16(7)(v)-12 DIST Energy'!K319+'FR-16(7)(v)-13 DIST Cust'!K319-'FR-16(7)(v)-14 TOTAL CLASS'!K319","v":0},{"$f":"'FR-16(7)(v)-3 PROD Demand'!L319+'FR-16(7)(v)-4 PROD Energy'!L319+'FR-16(7)(v)-5 PROD Cust'!L319+'FR-16(7)(v)-7 TRANS Demand'!L319+'FR-16(7)(v)-8 TRANS Energy'!L319+'FR-16(7)(v)-9 TRANS Cust'!L319+'FR-16(7)(v)-11 DIST Demand'!L319+'FR-16(7)(v)-12 DIST Energy'!L319+'FR-16(7)(v)-13 DIST Cust'!L319-'FR-16(7)(v)-14 TOTAL CLASS'!L319","v":0},{"$f":"'FR-16(7)(v)-3 PROD Demand'!M319+'FR-16(7)(v)-4 PROD Energy'!M319+'FR-16(7)(v)-5 PROD Cust'!M319+'FR-16(7)(v)-7 TRANS Demand'!M319+'FR-16(7)(v)-8 TRANS Energy'!M319+'FR-16(7)(v)-9 TRANS Cust'!M319+'FR-16(7)(v)-11 DIST Demand'!M319+'FR-16(7)(v)-12 DIST Energy'!M319+'FR-16(7)(v)-13 DIST Cust'!M319-'FR-16(7)(v)-14 TOTAL CLASS'!M319","v":0},{"$f":"'FR-16(7)(v)-3 PROD Demand'!N319+'FR-16(7)(v)-4 PROD Energy'!N319+'FR-16(7)(v)-5 PROD Cust'!N319+'FR-16(7)(v)-7 TRANS Demand'!N319+'FR-16(7)(v)-8 TRANS Energy'!N319+'FR-16(7)(v)-9 TRANS Cust'!N319+'FR-16(7)(v)-11 DIST Demand'!N319+'FR-16(7)(v)-12 DIST Energy'!N319+'FR-16(7)(v)-13 DIST Cust'!N319-'FR-16(7)(v)-14 TOTAL CLASS'!N319","v":0},{"$f":"'FR-16(7)(v)-3 PROD Demand'!O319+'FR-16(7)(v)-4 PROD Energy'!O319+'FR-16(7)(v)-5 PROD Cust'!O319+'FR-16(7)(v)-7 TRANS Demand'!O319+'FR-16(7)(v)-8 TRANS Energy'!O319+'FR-16(7)(v)-9 TRANS Cust'!O319+'FR-16(7)(v)-11 DIST Demand'!O319+'FR-16(7)(v)-12 DIST Energy'!O319+'FR-16(7)(v)-13 DIST Cust'!O319-'FR-16(7)(v)-14 TOTAL CLASS'!O319","v":0},{"$f":"'FR-16(7)(v)-3 PROD Demand'!P319+'FR-16(7)(v)-4 PROD Energy'!P319+'FR-16(7)(v)-5 PROD Cust'!P319+'FR-16(7)(v)-7 TRANS Demand'!P319+'FR-16(7)(v)-8 TRANS Energy'!P319+'FR-16(7)(v)-9 TRANS Cust'!P319+'FR-16(7)(v)-11 DIST Demand'!P319+'FR-16(7)(v)-12 DIST Energy'!P319+'FR-16(7)(v)-13 DIST Cust'!P319-'FR-16(7)(v)-14 TOTAL CLASS'!P319","v":0},{"$f":"'FR-16(7)(v)-3 PROD Demand'!Q319+'FR-16(7)(v)-4 PROD Energy'!Q319+'FR-16(7)(v)-5 PROD Cust'!Q319+'FR-16(7)(v)-7 TRANS Demand'!Q319+'FR-16(7)(v)-8 TRANS Energy'!Q319+'FR-16(7)(v)-9 TRANS Cust'!Q319+'FR-16(7)(v)-11 DIST Demand'!Q319+'FR-16(7)(v)-12 DIST Energy'!Q319+'FR-16(7)(v)-13 DIST Cust'!Q319-'FR-16(7)(v)-14 TOTAL CLASS'!Q319","v":0},{"$f":"SUM(G319:Q319)","v":0},{"$f":"F319-R319","v":0}]
[32,null,{"$f":"'FR-16(7)(v)-1 Functional'!C320","v":"POST RETIREMENT BENEFITS"},{"$f":"'FR-16(7)(v)-1 Functional'!D320","v":"NP29"},null,{"$f":"'FR-16(7)(v)-3 PROD Demand'!F320+'FR-16(7)(v)-4 PROD Energy'!F320+'FR-16(7)(v)-5 PROD Cust'!F320+'FR-16(7)(v)-7 TRANS Demand'!F320+'FR-16(7)(v)-8 TRANS Energy'!F320+'FR-16(7)(v)-9 TRANS Cust'!F320+'FR-16(7)(v)-11 DIST Demand'!F320+'FR-16(7)(v)-12 DIST Energy'!F320+'FR-16(7)(v)-13 DIST Cust'!F320-'FR-16(7)(v)-14 TOTAL CLASS'!F320","v":0},{"$f":"'FR-16(7)(v)-3 PROD Demand'!G320+'FR-16(7)(v)-4 PROD Energy'!G320+'FR-16(7)(v)-5 PROD Cust'!G320+'FR-16(7)(v)-7 TRANS Demand'!G320+'FR-16(7)(v)-8 TRANS Energy'!G320+'FR-16(7)(v)-9 TRANS Cust'!G320+'FR-16(7)(v)-11 DIST Demand'!G320+'FR-16(7)(v)-12 DIST Energy'!G320+'FR-16(7)(v)-13 DIST Cust'!G320-'FR-16(7)(v)-14 TOTAL CLASS'!G320","v":0},{"$f":"'FR-16(7)(v)-3 PROD Demand'!H320+'FR-16(7)(v)-4 PROD Energy'!H320+'FR-16(7)(v)-5 PROD Cust'!H320+'FR-16(7)(v)-7 TRANS Demand'!H320+'FR-16(7)(v)-8 TRANS Energy'!H320+'FR-16(7)(v)-9 TRANS Cust'!H320+'FR-16(7)(v)-11 DIST Demand'!H320+'FR-16(7)(v)-12 DIST Energy'!H320+'FR-16(7)(v)-13 DIST Cust'!H320-'FR-16(7)(v)-14 TOTAL CLASS'!H320","v":0},{"$f":"'FR-16(7)(v)-3 PROD Demand'!I320+'FR-16(7)(v)-4 PROD Energy'!I320+'FR-16(7)(v)-5 PROD Cust'!I320+'FR-16(7)(v)-7 TRANS Demand'!I320+'FR-16(7)(v)-8 TRANS Energy'!I320+'FR-16(7)(v)-9 TRANS Cust'!I320+'FR-16(7)(v)-11 DIST Demand'!I320+'FR-16(7)(v)-12 DIST Energy'!I320+'FR-16(7)(v)-13 DIST Cust'!I320-'FR-16(7)(v)-14 TOTAL CLASS'!I320","v":0},{"$f":"'FR-16(7)(v)-3 PROD Demand'!J320+'FR-16(7)(v)-4 PROD Energy'!J320+'FR-16(7)(v)-5 PROD Cust'!J320+'FR-16(7)(v)-7 TRANS Demand'!J320+'FR-16(7)(v)-8 TRANS Energy'!J320+'FR-16(7)(v)-9 TRANS Cust'!J320+'FR-16(7)(v)-11 DIST Demand'!J320+'FR-16(7)(v)-12 DIST Energy'!J320+'FR-16(7)(v)-13 DIST Cust'!J320-'FR-16(7)(v)-14 TOTAL CLASS'!J320","v":0},{"$f":"'FR-16(7)(v)-3 PROD Demand'!K320+'FR-16(7)(v)-4 PROD Energy'!K320+'FR-16(7)(v)-5 PROD Cust'!K320+'FR-16(7)(v)-7 TRANS Demand'!K320+'FR-16(7)(v)-8 TRANS Energy'!K320+'FR-16(7)(v)-9 TRANS Cust'!K320+'FR-16(7)(v)-11 DIST Demand'!K320+'FR-16(7)(v)-12 DIST Energy'!K320+'FR-16(7)(v)-13 DIST Cust'!K320-'FR-16(7)(v)-14 TOTAL CLASS'!K320","v":0},{"$f":"'FR-16(7)(v)-3 PROD Demand'!L320+'FR-16(7)(v)-4 PROD Energy'!L320+'FR-16(7)(v)-5 PROD Cust'!L320+'FR-16(7)(v)-7 TRANS Demand'!L320+'FR-16(7)(v)-8 TRANS Energy'!L320+'FR-16(7)(v)-9 TRANS Cust'!L320+'FR-16(7)(v)-11 DIST Demand'!L320+'FR-16(7)(v)-12 DIST Energy'!L320+'FR-16(7)(v)-13 DIST Cust'!L320-'FR-16(7)(v)-14 TOTAL CLASS'!L320","v":0},{"$f":"'FR-16(7)(v)-3 PROD Demand'!M320+'FR-16(7)(v)-4 PROD Energy'!M320+'FR-16(7)(v)-5 PROD Cust'!M320+'FR-16(7)(v)-7 TRANS Demand'!M320+'FR-16(7)(v)-8 TRANS Energy'!M320+'FR-16(7)(v)-9 TRANS Cust'!M320+'FR-16(7)(v)-11 DIST Demand'!M320+'FR-16(7)(v)-12 DIST Energy'!M320+'FR-16(7)(v)-13 DIST Cust'!M320-'FR-16(7)(v)-14 TOTAL CLASS'!M320","v":0},{"$f":"'FR-16(7)(v)-3 PROD Demand'!N320+'FR-16(7)(v)-4 PROD Energy'!N320+'FR-16(7)(v)-5 PROD Cust'!N320+'FR-16(7)(v)-7 TRANS Demand'!N320+'FR-16(7)(v)-8 TRANS Energy'!N320+'FR-16(7)(v)-9 TRANS Cust'!N320+'FR-16(7)(v)-11 DIST Demand'!N320+'FR-16(7)(v)-12 DIST Energy'!N320+'FR-16(7)(v)-13 DIST Cust'!N320-'FR-16(7)(v)-14 TOTAL CLASS'!N320","v":0},{"$f":"'FR-16(7)(v)-3 PROD Demand'!O320+'FR-16(7)(v)-4 PROD Energy'!O320+'FR-16(7)(v)-5 PROD Cust'!O320+'FR-16(7)(v)-7 TRANS Demand'!O320+'FR-16(7)(v)-8 TRANS Energy'!O320+'FR-16(7)(v)-9 TRANS Cust'!O320+'FR-16(7)(v)-11 DIST Demand'!O320+'FR-16(7)(v)-12 DIST Energy'!O320+'FR-16(7)(v)-13 DIST Cust'!O320-'FR-16(7)(v)-14 TOTAL CLASS'!O320","v":0},{"$f":"'FR-16(7)(v)-3 PROD Demand'!P320+'FR-16(7)(v)-4 PROD Energy'!P320+'FR-16(7)(v)-5 PROD Cust'!P320+'FR-16(7)(v)-7 TRANS Demand'!P320+'FR-16(7)(v)-8 TRANS Energy'!P320+'FR-16(7)(v)-9 TRANS Cust'!P320+'FR-16(7)(v)-11 DIST Demand'!P320+'FR-16(7)(v)-12 DIST Energy'!P320+'FR-16(7)(v)-13 DIST Cust'!P320-'FR-16(7)(v)-14 TOTAL CLASS'!P320","v":0},{"$f":"'FR-16(7)(v)-3 PROD Demand'!Q320+'FR-16(7)(v)-4 PROD Energy'!Q320+'FR-16(7)(v)-5 PROD Cust'!Q320+'FR-16(7)(v)-7 TRANS Demand'!Q320+'FR-16(7)(v)-8 TRANS Energy'!Q320+'FR-16(7)(v)-9 TRANS Cust'!Q320+'FR-16(7)(v)-11 DIST Demand'!Q320+'FR-16(7)(v)-12 DIST Energy'!Q320+'FR-16(7)(v)-13 DIST Cust'!Q320-'FR-16(7)(v)-14 TOTAL CLASS'!Q320","v":0},{"$f":"SUM(G320:Q320)","v":0},{"$f":"F320-R320","v":0}]
[33,null,{"$f":"'FR-16(7)(v)-1 Functional'!C321","v":"INVESTMENT TAX CREDIT"},{"$f":"'FR-16(7)(v)-1 Functional'!D321","v":"NP29"},null,{"$f":"'FR-16(7)(v)-3 PROD Demand'!F321+'FR-16(7)(v)-4 PROD Energy'!F321+'FR-16(7)(v)-5 PROD Cust'!F321+'FR-16(7)(v)-7 TRANS Demand'!F321+'FR-16(7)(v)-8 TRANS Energy'!F321+'FR-16(7)(v)-9 TRANS Cust'!F321+'FR-16(7)(v)-11 DIST Demand'!F321+'FR-16(7)(v)-12 DIST Energy'!F321+'FR-16(7)(v)-13 DIST Cust'!F321-'FR-16(7)(v)-14 TOTAL CLASS'!F321","v":0},{"$f":"'FR-16(7)(v)-3 PROD Demand'!G321+'FR-16(7)(v)-4 PROD Energy'!G321+'FR-16(7)(v)-5 PROD Cust'!G321+'FR-16(7)(v)-7 TRANS Demand'!G321+'FR-16(7)(v)-8 TRANS Energy'!G321+'FR-16(7)(v)-9 TRANS Cust'!G321+'FR-16(7)(v)-11 DIST Demand'!G321+'FR-16(7)(v)-12 DIST Energy'!G321+'FR-16(7)(v)-13 DIST Cust'!G321-'FR-16(7)(v)-14 TOTAL CLASS'!G321","v":0},{"$f":"'FR-16(7)(v)-3 PROD Demand'!H321+'FR-16(7)(v)-4 PROD Energy'!H321+'FR-16(7)(v)-5 PROD Cust'!H321+'FR-16(7)(v)-7 TRANS Demand'!H321+'FR-16(7)(v)-8 TRANS Energy'!H321+'FR-16(7)(v)-9 TRANS Cust'!H321+'FR-16(7)(v)-11 DIST Demand'!H321+'FR-16(7)(v)-12 DIST Energy'!H321+'FR-16(7)(v)-13 DIST Cust'!H321-'FR-16(7)(v)-14 TOTAL CLASS'!H321","v":0},{"$f":"'FR-16(7)(v)-3 PROD Demand'!I321+'FR-16(7)(v)-4 PROD Energy'!I321+'FR-16(7)(v)-5 PROD Cust'!I321+'FR-16(7)(v)-7 TRANS Demand'!I321+'FR-16(7)(v)-8 TRANS Energy'!I321+'FR-16(7)(v)-9 TRANS Cust'!I321+'FR-16(7)(v)-11 DIST Demand'!I321+'FR-16(7)(v)-12 DIST Energy'!I321+'FR-16(7)(v)-13 DIST Cust'!I321-'FR-16(7)(v)-14 TOTAL CLASS'!I321","v":0},{"$f":"'FR-16(7)(v)-3 PROD Demand'!J321+'FR-16(7)(v)-4 PROD Energy'!J321+'FR-16(7)(v)-5 PROD Cust'!J321+'FR-16(7)(v)-7 TRANS Demand'!J321+'FR-16(7)(v)-8 TRANS Energy'!J321+'FR-16(7)(v)-9 TRANS Cust'!J321+'FR-16(7)(v)-11 DIST Demand'!J321+'FR-16(7)(v)-12 DIST Energy'!J321+'FR-16(7)(v)-13 DIST Cust'!J321-'FR-16(7)(v)-14 TOTAL CLASS'!J321","v":0},{"$f":"'FR-16(7)(v)-3 PROD Demand'!K321+'FR-16(7)(v)-4 PROD Energy'!K321+'FR-16(7)(v)-5 PROD Cust'!K321+'FR-16(7)(v)-7 TRANS Demand'!K321+'FR-16(7)(v)-8 TRANS Energy'!K321+'FR-16(7)(v)-9 TRANS Cust'!K321+'FR-16(7)(v)-11 DIST Demand'!K321+'FR-16(7)(v)-12 DIST Energy'!K321+'FR-16(7)(v)-13 DIST Cust'!K321-'FR-16(7)(v)-14 TOTAL CLASS'!K321","v":0},{"$f":"'FR-16(7)(v)-3 PROD Demand'!L321+'FR-16(7)(v)-4 PROD Energy'!L321+'FR-16(7)(v)-5 PROD Cust'!L321+'FR-16(7)(v)-7 TRANS Demand'!L321+'FR-16(7)(v)-8 TRANS Energy'!L321+'FR-16(7)(v)-9 TRANS Cust'!L321+'FR-16(7)(v)-11 DIST Demand'!L321+'FR-16(7)(v)-12 DIST Energy'!L321+'FR-16(7)(v)-13 DIST Cust'!L321-'FR-16(7)(v)-14 TOTAL CLASS'!L321","v":0},{"$f":"'FR-16(7)(v)-3 PROD Demand'!M321+'FR-16(7)(v)-4 PROD Energy'!M321+'FR-16(7)(v)-5 PROD Cust'!M321+'FR-16(7)(v)-7 TRANS Demand'!M321+'FR-16(7)(v)-8 TRANS Energy'!M321+'FR-16(7)(v)-9 TRANS Cust'!M321+'FR-16(7)(v)-11 DIST Demand'!M321+'FR-16(7)(v)-12 DIST Energy'!M321+'FR-16(7)(v)-13 DIST Cust'!M321-'FR-16(7)(v)-14 TOTAL CLASS'!M321","v":0},{"$f":"'FR-16(7)(v)-3 PROD Demand'!N321+'FR-16(7)(v)-4 PROD Energy'!N321+'FR-16(7)(v)-5 PROD Cust'!N321+'FR-16(7)(v)-7 TRANS Demand'!N321+'FR-16(7)(v)-8 TRANS Energy'!N321+'FR-16(7)(v)-9 TRANS Cust'!N321+'FR-16(7)(v)-11 DIST Demand'!N321+'FR-16(7)(v)-12 DIST Energy'!N321+'FR-16(7)(v)-13 DIST Cust'!N321-'FR-16(7)(v)-14 TOTAL CLASS'!N321","v":0},{"$f":"'FR-16(7)(v)-3 PROD Demand'!O321+'FR-16(7)(v)-4 PROD Energy'!O321+'FR-16(7)(v)-5 PROD Cust'!O321+'FR-16(7)(v)-7 TRANS Demand'!O321+'FR-16(7)(v)-8 TRANS Energy'!O321+'FR-16(7)(v)-9 TRANS Cust'!O321+'FR-16(7)(v)-11 DIST Demand'!O321+'FR-16(7)(v)-12 DIST Energy'!O321+'FR-16(7)(v)-13 DIST Cust'!O321-'FR-16(7)(v)-14 TOTAL CLASS'!O321","v":0},{"$f":"'FR-16(7)(v)-3 PROD Demand'!P321+'FR-16(7)(v)-4 PROD Energy'!P321+'FR-16(7)(v)-5 PROD Cust'!P321+'FR-16(7)(v)-7 TRANS Demand'!P321+'FR-16(7)(v)-8 TRANS Energy'!P321+'FR-16(7)(v)-9 TRANS Cust'!P321+'FR-16(7)(v)-11 DIST Demand'!P321+'FR-16(7)(v)-12 DIST Energy'!P321+'FR-16(7)(v)-13 DIST Cust'!P321-'FR-16(7)(v)-14 TOTAL CLASS'!P321","v":0},{"$f":"'FR-16(7)(v)-3 PROD Demand'!Q321+'FR-16(7)(v)-4 PROD Energy'!Q321+'FR-16(7)(v)-5 PROD Cust'!Q321+'FR-16(7)(v)-7 TRANS Demand'!Q321+'FR-16(7)(v)-8 TRANS Energy'!Q321+'FR-16(7)(v)-9 TRANS Cust'!Q321+'FR-16(7)(v)-11 DIST Demand'!Q321+'FR-16(7)(v)-12 DIST Energy'!Q321+'FR-16(7)(v)-13 DIST Cust'!Q321-'FR-16(7)(v)-14 TOTAL CLASS'!Q321","v":0},{"$f":"SUM(G321:Q321)","v":0},{"$f":"F321-R321","v":0}]
[34,null,{"$f":"'FR-16(7)(v)-1 Functional'!C322","v":"  TOTAL OTHER SUBTRACTIVE ADJUSTMENTS"},null,null,{"$f":"SUM(F317:F321)","v":0},{"$f":"SUM(G317:G321)","v":0},0,0,0,0,0,0,0,0,0,0,0,0]
[35]
[36,{"$f":"'FR-16(7)(v)-1 Functional'!B324","v":"TOTAL SUBTRACTIVE RATE BASE ADJUSTMENTS"},null,null,null,{"$f":"F322+F315+F301","v":0},{"$f":"G322+G315+G301","v":0},0,0,0,0,0,0,0,0,0,0,0,0]
[]
[{"$f":"co_name","v":"DUKE ENERGY KENTUCKY, INC."},null,null,null,null,null,null,null,null,null,null,null,null,null,null,null,null,{"$f":"R1","v":"FR-16(7)(v)-14"}]
[{"$f":"$A$2","v":"TOTAL CLASS ALLOCATED - ELECTRIC COST OF SERVICE"},null,null,null,null,null,null,null,null,null,null,null,null,null,null,null,null,{"$f":"R2","v":"WITNESS RESPONSIBLE:"}]
[{"$f":"case_name","v":"CASE NO: 2019-00271"},null,null,null,null,null,null,null,null,null,null,null,null,null,null,null,null,{"$f":"Witness","v":"JAMES E. ZIOLKOWSKI"}]
[{"$f":"data_filing","v":"DATA: 12 MONTHS ACTUAL  & 0 MONTHS ESTIMATED"},null,null,null,null,null,null,null,null,null,null,null,null,null,null,null,null,{"$f":"\"PAGE \"&Pages2-9&\" OF \"&Pages2","v":"PAGE 6 OF 15"}]
[{"$f":"type","v":"TYPE OF FILING: \"X\" ORIGINAL   UPDATED    REVISED  "}]
[]
[null,null,null,null,null,{"$f":"F$7","v":"TOTAL"},null,{"$f":"H$7","v":"DS"},{"$f":"I$7","v":"GSFL"},{"$f":"J$7","v":"EH"},{"$f":"K$7","v":"SP"},"DT SEC","DT PRI","DP","TT",null,"OTHER"]
["LINE",null,null,null,null,{"$f":"F$8","v":"CLASS"},{"$f":"G$8","v":"RS"},{"$f":"H$8","v":"SECONDARY"},{"$f":"I$8","v":"SECONDARY"},{"$f":"J$8","v":"SECONDARY"},{"$f":"K$8","v":"SECONDARY"},"SECONDARY","PRIMARY","PRIMARY","TRANSMISSION","LT","WATER",{"$f":"R8","v":"TOTAL"},"ALL"]
["NO.","ADDITIVE RATE BASE ADJUSTMENTS",null,"ALLO",null,{"$f":"F$9","v":"ALLOCATED"},{"$f":"G$9","v":"RESIDENTIAL"},{"$f":"H$9","v":"DISTRIBUTION"},{"$f":"I$9","v":"DISTRIBUTION"},{"$f":"J$9","v":"DISTRIBUTION"},{"$f":"K$9","v":"DISTRIBUTION"},"DISTRIBUTION","DISTRIBUTION","DISTRIBUTION","TIME OF DAY","LIGHTING","PUMPING",{"$f":"R9","v":"AT ISSUE"},"OTHER"]
[null,null,"Schedule 5.1",null,null,null,{"$f":"G$10","v":3},{"$f":"H$10","v":4},{"$f":"I$10","v":5},{"$f":"J$10","v":6},{"$f":"K$10","v":7},8,9,10,11,12,13,null," "]
[1,"OTHER ACCUMULATED DEFERRED INCOME TAXES"]
[2," ACCUM DEF INC TAXES (190)"]
[3,null,{"$f":"'FR-16(7)(v)-1 Functional'!C338","v":"UNCOLLECTIBLE ACCTS"},{"$f":"'FR-16(7)(v)-1 Functional'!D338","v":"K411"},null,{"$f":"'FR-16(7)(v)-3 PROD Demand'!F338+'FR-16(7)(v)-4 PROD Energy'!F338+'FR-16(7)(v)-5 PROD Cust'!F338+'FR-16(7)(v)-7 TRANS Demand'!F338+'FR-16(7)(v)-8 TRANS Energy'!F338+'FR-16(7)(v)-9 TRANS Cust'!F338+'FR-16(7)(v)-11 DIST Demand'!F338+'FR-16(7)(v)-12 DIST Energy'!F338+'FR-16(7)(v)-13 DIST Cust'!F338-'FR-16(7)(v)-14 TOTAL CLASS'!F338","v":0},{"$f":"'FR-16(7)(v)-3 PROD Demand'!G338+'FR-16(7)(v)-4 PROD Energy'!G338+'FR-16(7)(v)-5 PROD Cust'!G338+'FR-16(7)(v)-7 TRANS Demand'!G338+'FR-16(7)(v)-8 TRANS Energy'!G338+'FR-16(7)(v)-9 TRANS Cust'!G338+'FR-16(7)(v)-11 DIST Demand'!G338+'FR-16(7)(v)-12 DIST Energy'!G338+'FR-16(7)(v)-13 DIST Cust'!G338-'FR-16(7)(v)-14 TOTAL CLASS'!G338","v":0},{"$f":"'FR-16(7)(v)-3 PROD Demand'!H338+'FR-16(7)(v)-4 PROD Energy'!H338+'FR-16(7)(v)-5 PROD Cust'!H338+'FR-16(7)(v)-7 TRANS Demand'!H338+'FR-16(7)(v)-8 TRANS Energy'!H338+'FR-16(7)(v)-9 TRANS Cust'!H338+'FR-16(7)(v)-11 DIST Demand'!H338+'FR-16(7)(v)-12 DIST Energy'!H338+'FR-16(7)(v)-13 DIST Cust'!H338-'FR-16(7)(v)-14 TOTAL CLASS'!H338","v":0},{"$f":"'FR-16(7)(v)-3 PROD Demand'!I338+'FR-16(7)(v)-4 PROD Energy'!I338+'FR-16(7)(v)-5 PROD Cust'!I338+'FR-16(7)(v)-7 TRANS Demand'!I338+'FR-16(7)(v)-8 TRANS Energy'!I338+'FR-16(7)(v)-9 TRANS Cust'!I338+'FR-16(7)(v)-11 DIST Demand'!I338+'FR-16(7)(v)-12 DIST Energy'!I338+'FR-16(7)(v)-13 DIST Cust'!I338-'FR-16(7)(v)-14 TOTAL CLASS'!I338","v":0},{"$f":"'FR-16(7)(v)-3 PROD Demand'!J338+'FR-16(7)(v)-4 PROD Energy'!J338+'FR-16(7)(v)-5 PROD Cust'!J338+'FR-16(7)(v)-7 TRANS Demand'!J338+'FR-16(7)(v)-8 TRANS Energy'!J338+'FR-16(7)(v)-9 TRANS Cust'!J338+'FR-16(7)(v)-11 DIST Demand'!J338+'FR-16(7)(v)-12 DIST Energy'!J338+'FR-16(7)(v)-13 DIST Cust'!J338-'FR-16(7)(v)-14 TOTAL CLASS'!J338","v":0},{"$f":"'FR-16(7)(v)-3 PROD Demand'!K338+'FR-16(7)(v)-4 PROD Energy'!K338+'FR-16(7)(v)-5 PROD Cust'!K338+'FR-16(7)(v)-7 TRANS Demand'!K338+'FR-16(7)(v)-8 TRANS Energy'!K338+'FR-16(7)(v)-9 TRANS Cust'!K338+'FR-16(7)(v)-11 DIST Demand'!K338+'FR-16(7)(v)-12 DIST Energy'!K338+'FR-16(7)(v)-13 DIST Cust'!K338-'FR-16(7)(v)-14 TOTAL CLASS'!K338","v":0},{"$f":"'FR-16(7)(v)-3 PROD Demand'!L338+'FR-16(7)(v)-4 PROD Energy'!L338+'FR-16(7)(v)-5 PROD Cust'!L338+'FR-16(7)(v)-7 TRANS Demand'!L338+'FR-16(7)(v)-8 TRANS Energy'!L338+'FR-16(7)(v)-9 TRANS Cust'!L338+'FR-16(7)(v)-11 DIST Demand'!L338+'FR-16(7)(v)-12 DIST Energy'!L338+'FR-16(7)(v)-13 DIST Cust'!L338-'FR-16(7)(v)-14 TOTAL CLASS'!L338","v":0},{"$f":"'FR-16(7)(v)-3 PROD Demand'!M338+'FR-16(7)(v)-4 PROD Energy'!M338+'FR-16(7)(v)-5 PROD Cust'!M338+'FR-16(7)(v)-7 TRANS Demand'!M338+'FR-16(7)(v)-8 TRANS Energy'!M338+'FR-16(7)(v)-9 TRANS Cust'!M338+'FR-16(7)(v)-11 DIST Demand'!M338+'FR-16(7)(v)-12 DIST Energy'!M338+'FR-16(7)(v)-13 DIST Cust'!M338-'FR-16(7)(v)-14 TOTAL CLASS'!M338","v":0},{"$f":"'FR-16(7)(v)-3 PROD Demand'!N338+'FR-16(7)(v)-4 PROD Energy'!N338+'FR-16(7)(v)-5 PROD Cust'!N338+'FR-16(7)(v)-7 TRANS Demand'!N338+'FR-16(7)(v)-8 TRANS Energy'!N338+'FR-16(7)(v)-9 TRANS Cust'!N338+'FR-16(7)(v)-11 DIST Demand'!N338+'FR-16(7)(v)-12 DIST Energy'!N338+'FR-16(7)(v)-13 DIST Cust'!N338-'FR-16(7)(v)-14 TOTAL CLASS'!N338","v":0},{"$f":"'FR-16(7)(v)-3 PROD Demand'!O338+'FR-16(7)(v)-4 PROD Energy'!O338+'FR-16(7)(v)-5 PROD Cust'!O338+'FR-16(7)(v)-7 TRANS Demand'!O338+'FR-16(7)(v)-8 TRANS Energy'!O338+'FR-16(7)(v)-9 TRANS Cust'!O338+'FR-16(7)(v)-11 DIST Demand'!O338+'FR-16(7)(v)-12 DIST Energy'!O338+'FR-16(7)(v)-13 DIST Cust'!O338-'FR-16(7)(v)-14 TOTAL CLASS'!O338","v":0},{"$f":"'FR-16(7)(v)-3 PROD Demand'!P338+'FR-16(7)(v)-4 PROD Energy'!P338+'FR-16(7)(v)-5 PROD Cust'!P338+'FR-16(7)(v)-7 TRANS Demand'!P338+'FR-16(7)(v)-8 TRANS Energy'!P338+'FR-16(7)(v)-9 TRANS Cust'!P338+'FR-16(7)(v)-11 DIST Demand'!P338+'FR-16(7)(v)-12 DIST Energy'!P338+'FR-16(7)(v)-13 DIST Cust'!P338-'FR-16(7)(v)-14 TOTAL CLASS'!P338","v":0},{"$f":"'FR-16(7)(v)-3 PROD Demand'!Q338+'FR-16(7)(v)-4 PROD Energy'!Q338+'FR-16(7)(v)-5 PROD Cust'!Q338+'FR-16(7)(v)-7 TRANS Demand'!Q338+'FR-16(7)(v)-8 TRANS Energy'!Q338+'FR-16(7)(v)-9 TRANS Cust'!Q338+'FR-16(7)(v)-11 DIST Demand'!Q338+'FR-16(7)(v)-12 DIST Energy'!Q338+'FR-16(7)(v)-13 DIST Cust'!Q338-'FR-16(7)(v)-14 TOTAL CLASS'!Q338","v":0},{"$f":"SUM(G338:Q338)","v":0},{"$f":"F338-R338","v":0}]
[4,null,{"$f":"'FR-16(7)(v)-1 Functional'!C339","v":"CASH FLOW HEDGE"},{"$f":"'FR-16(7)(v)-1 Functional'!D339","v":"A315"},null,{"$f":"'FR-16(7)(v)-3 PROD Demand'!F339+'FR-16(7)(v)-4 PROD Energy'!F339+'FR-16(7)(v)-5 PROD Cust'!F339+'FR-16(7)(v)-7 TRANS Demand'!F339+'FR-16(7)(v)-8 TRANS Energy'!F339+'FR-16(7)(v)-9 TRANS Cust'!F339+'FR-16(7)(v)-11 DIST Demand'!F339+'FR-16(7)(v)-12 DIST Energy'!F339+'FR-16(7)(v)-13 DIST Cust'!F339-'FR-16(7)(v)-14 TOTAL CLASS'!F339","v":0},{"$f":"'FR-16(7)(v)-3 PROD Demand'!G339+'FR-16(7)(v)-4 PROD Energy'!G339+'FR-16(7)(v)-5 PROD Cust'!G339+'FR-16(7)(v)-7 TRANS Demand'!G339+'FR-16(7)(v)-8 TRANS Energy'!G339+'FR-16(7)(v)-9 TRANS Cust'!G339+'FR-16(7)(v)-11 DIST Demand'!G339+'FR-16(7)(v)-12 DIST Energy'!G339+'FR-16(7)(v)-13 DIST Cust'!G339-'FR-16(7)(v)-14 TOTAL CLASS'!G339","v":0},{"$f":"'FR-16(7)(v)-3 PROD Demand'!H339+'FR-16(7)(v)-4 PROD Energy'!H339+'FR-16(7)(v)-5 PROD Cust'!H339+'FR-16(7)(v)-7 TRANS Demand'!H339+'FR-16(7)(v)-8 TRANS Energy'!H339+'FR-16(7)(v)-9 TRANS Cust'!H339+'FR-16(7)(v)-11 DIST Demand'!H339+'FR-16(7)(v)-12 DIST Energy'!H339+'FR-16(7)(v)-13 DIST Cust'!H339-'FR-16(7)(v)-14 TOTAL CLASS'!H339","v":0},{"$f":"'FR-16(7)(v)-3 PROD Demand'!I339+'FR-16(7)(v)-4 PROD Energy'!I339+'FR-16(7)(v)-5 PROD Cust'!I339+'FR-16(7)(v)-7 TRANS Demand'!I339+'FR-16(7)(v)-8 TRANS Energy'!I339+'FR-16(7)(v)-9 TRANS Cust'!I339+'FR-16(7)(v)-11 DIST Demand'!I339+'FR-16(7)(v)-12 DIST Energy'!I339+'FR-16(7)(v)-13 DIST Cust'!I339-'FR-16(7)(v)-14 TOTAL CLASS'!I339","v":0},{"$f":"'FR-16(7)(v)-3 PROD Demand'!J339+'FR-16(7)(v)-4 PROD Energy'!J339+'FR-16(7)(v)-5 PROD Cust'!J339+'FR-16(7)(v)-7 TRANS Demand'!J339+'FR-16(7)(v)-8 TRANS Energy'!J339+'FR-16(7)(v)-9 TRANS Cust'!J339+'FR-16(7)(v)-11 DIST Demand'!J339+'FR-16(7)(v)-12 DIST Energy'!J339+'FR-16(7)(v)-13 DIST Cust'!J339-'FR-16(7)(v)-14 TOTAL CLASS'!J339","v":0},{"$f":"'FR-16(7)(v)-3 PROD Demand'!K339+'FR-16(7)(v)-4 PROD Energy'!K339+'FR-16(7)(v)-5 PROD Cust'!K339+'FR-16(7)(v)-7 TRANS Demand'!K339+'FR-16(7)(v)-8 TRANS Energy'!K339+'FR-16(7)(v)-9 TRANS Cust'!K339+'FR-16(7)(v)-11 DIST Demand'!K339+'FR-16(7)(v)-12 DIST Energy'!K339+'FR-16(7)(v)-13 DIST Cust'!K339-'FR-16(7)(v)-14 TOTAL CLASS'!K339","v":0},{"$f":"'FR-16(7)(v)-3 PROD Demand'!L339+'FR-16(7)(v)-4 PROD Energy'!L339+'FR-16(7)(v)-5 PROD Cust'!L339+'FR-16(7)(v)-7 TRANS Demand'!L339+'FR-16(7)(v)-8 TRANS Energy'!L339+'FR-16(7)(v)-9 TRANS Cust'!L339+'FR-16(7)(v)-11 DIST Demand'!L339+'FR-16(7)(v)-12 DIST Energy'!L339+'FR-16(7)(v)-13 DIST Cust'!L339-'FR-16(7)(v)-14 TOTAL CLASS'!L339","v":0},{"$f":"'FR-16(7)(v)-3 PROD Demand'!M339+'FR-16(7)(v)-4 PROD Energy'!M339+'FR-16(7)(v)-5 PROD Cust'!M339+'FR-16(7)(v)-7 TRANS Demand'!M339+'FR-16(7)(v)-8 TRANS Energy'!M339+'FR-16(7)(v)-9 TRANS Cust'!M339+'FR-16(7)(v)-11 DIST Demand'!M339+'FR-16(7)(v)-12 DIST Energy'!M339+'FR-16(7)(v)-13 DIST Cust'!M339-'FR-16(7)(v)-14 TOTAL CLASS'!M339","v":0},{"$f":"'FR-16(7)(v)-3 PROD Demand'!N339+'FR-16(7)(v)-4 PROD Energy'!N339+'FR-16(7)(v)-5 PROD Cust'!N339+'FR-16(7)(v)-7 TRANS Demand'!N339+'FR-16(7)(v)-8 TRANS Energy'!N339+'FR-16(7)(v)-9 TRANS Cust'!N339+'FR-16(7)(v)-11 DIST Demand'!N339+'FR-16(7)(v)-12 DIST Energy'!N339+'FR-16(7)(v)-13 DIST Cust'!N339-'FR-16(7)(v)-14 TOTAL CLASS'!N339","v":0},{"$f":"'FR-16(7)(v)-3 PROD Demand'!O339+'FR-16(7)(v)-4 PROD Energy'!O339+'FR-16(7)(v)-5 PROD Cust'!O339+'FR-16(7)(v)-7 TRANS Demand'!O339+'FR-16(7)(v)-8 TRANS Energy'!O339+'FR-16(7)(v)-9 TRANS Cust'!O339+'FR-16(7)(v)-11 DIST Demand'!O339+'FR-16(7)(v)-12 DIST Energy'!O339+'FR-16(7)(v)-13 DIST Cust'!O339-'FR-16(7)(v)-14 TOTAL CLASS'!O339","v":0},{"$f":"'FR-16(7)(v)-3 PROD Demand'!P339+'FR-16(7)(v)-4 PROD Energy'!P339+'FR-16(7)(v)-5 PROD Cust'!P339+'FR-16(7)(v)-7 TRANS Demand'!P339+'FR-16(7)(v)-8 TRANS Energy'!P339+'FR-16(7)(v)-9 TRANS Cust'!P339+'FR-16(7)(v)-11 DIST Demand'!P339+'FR-16(7)(v)-12 DIST Energy'!P339+'FR-16(7)(v)-13 DIST Cust'!P339-'FR-16(7)(v)-14 TOTAL CLASS'!P339","v":0},{"$f":"'FR-16(7)(v)-3 PROD Demand'!Q339+'FR-16(7)(v)-4 PROD Energy'!Q339+'FR-16(7)(v)-5 PROD Cust'!Q339+'FR-16(7)(v)-7 TRANS Demand'!Q339+'FR-16(7)(v)-8 TRANS Energy'!Q339+'FR-16(7)(v)-9 TRANS Cust'!Q339+'FR-16(7)(v)-11 DIST Demand'!Q339+'FR-16(7)(v)-12 DIST Energy'!Q339+'FR-16(7)(v)-13 DIST Cust'!Q339-'FR-16(7)(v)-14 TOTAL CLASS'!Q339","v":0},0,0]
[5,null,{"$f":"'FR-16(7)(v)-1 Functional'!C340","v":"RESERVED FOR FUTURE USE"},{"$f":"'FR-16(7)(v)-1 Functional'!D340","v":"NP29"},null,{"$f":"'FR-16(7)(v)-3 PROD Demand'!F340+'FR-16(7)(v)-4 PROD Energy'!F340+'FR-16(7)(v)-5 PROD Cust'!F340+'FR-16(7)(v)-7 TRANS Demand'!F340+'FR-16(7)(v)-8 TRANS Energy'!F340+'FR-16(7)(v)-9 TRANS Cust'!F340+'FR-16(7)(v)-11 DIST Demand'!F340+'FR-16(7)(v)-12 DIST Energy'!F340+'FR-16(7)(v)-13 DIST Cust'!F340-'FR-16(7)(v)-14 TOTAL CLASS'!F340","v":0},{"$f":"'FR-16(7)(v)-3 PROD Demand'!G340+'FR-16(7)(v)-4 PROD Energy'!G340+'FR-16(7)(v)-5 PROD Cust'!G340+'FR-16(7)(v)-7 TRANS Demand'!G340+'FR-16(7)(v)-8 TRANS Energy'!G340+'FR-16(7)(v)-9 TRANS Cust'!G340+'FR-16(7)(v)-11 DIST Demand'!G340+'FR-16(7)(v)-12 DIST Energy'!G340+'FR-16(7)(v)-13 DIST Cust'!G340-'FR-16(7)(v)-14 TOTAL CLASS'!G340","v":0},{"$f":"'FR-16(7)(v)-3 PROD Demand'!H340+'FR-16(7)(v)-4 PROD Energy'!H340+'FR-16(7)(v)-5 PROD Cust'!H340+'FR-16(7)(v)-7 TRANS Demand'!H340+'FR-16(7)(v)-8 TRANS Energy'!H340+'FR-16(7)(v)-9 TRANS Cust'!H340+'FR-16(7)(v)-11 DIST Demand'!H340+'FR-16(7)(v)-12 DIST Energy'!H340+'FR-16(7)(v)-13 DIST Cust'!H340-'FR-16(7)(v)-14 TOTAL CLASS'!H340","v":0},{"$f":"'FR-16(7)(v)-3 PROD Demand'!I340+'FR-16(7)(v)-4 PROD Energy'!I340+'FR-16(7)(v)-5 PROD Cust'!I340+'FR-16(7)(v)-7 TRANS Demand'!I340+'FR-16(7)(v)-8 TRANS Energy'!I340+'FR-16(7)(v)-9 TRANS Cust'!I340+'FR-16(7)(v)-11 DIST Demand'!I340+'FR-16(7)(v)-12 DIST Energy'!I340+'FR-16(7)(v)-13 DIST Cust'!I340-'FR-16(7)(v)-14 TOTAL CLASS'!I340","v":0},{"$f":"'FR-16(7)(v)-3 PROD Demand'!J340+'FR-16(7)(v)-4 PROD Energy'!J340+'FR-16(7)(v)-5 PROD Cust'!J340+'FR-16(7)(v)-7 TRANS Demand'!J340+'FR-16(7)(v)-8 TRANS Energy'!J340+'FR-16(7)(v)-9 TRANS Cust'!J340+'FR-16(7)(v)-11 DIST Demand'!J340+'FR-16(7)(v)-12 DIST Energy'!J340+'FR-16(7)(v)-13 DIST Cust'!J340-'FR-16(7)(v)-14 TOTAL CLASS'!J340","v":0},{"$f":"'FR-16(7)(v)-3 PROD Demand'!K340+'FR-16(7)(v)-4 PROD Energy'!K340+'FR-16(7)(v)-5 PROD Cust'!K340+'FR-16(7)(v)-7 TRANS Demand'!K340+'FR-16(7)(v)-8 TRANS Energy'!K340+'FR-16(7)(v)-9 TRANS Cust'!K340+'FR-16(7)(v)-11 DIST Demand'!K340+'FR-16(7)(v)-12 DIST Energy'!K340+'FR-16(7)(v)-13 DIST Cust'!K340-'FR-16(7)(v)-14 TOTAL CLASS'!K340","v":0},{"$f":"'FR-16(7)(v)-3 PROD Demand'!L340+'FR-16(7)(v)-4 PROD Energy'!L340+'FR-16(7)(v)-5 PROD Cust'!L340+'FR-16(7)(v)-7 TRANS Demand'!L340+'FR-16(7)(v)-8 TRANS Energy'!L340+'FR-16(7)(v)-9 TRANS Cust'!L340+'FR-16(7)(v)-11 DIST Demand'!L340+'FR-16(7)(v)-12 DIST Energy'!L340+'FR-16(7)(v)-13 DIST Cust'!L340-'FR-16(7)(v)-14 TOTAL CLASS'!L340","v":0},{"$f":"'FR-16(7)(v)-3 PROD Demand'!M340+'FR-16(7)(v)-4 PROD Energy'!M340+'FR-16(7)(v)-5 PROD Cust'!M340+'FR-16(7)(v)-7 TRANS Demand'!M340+'FR-16(7)(v)-8 TRANS Energy'!M340+'FR-16(7)(v)-9 TRANS Cust'!M340+'FR-16(7)(v)-11 DIST Demand'!M340+'FR-16(7)(v)-12 DIST Energy'!M340+'FR-16(7)(v)-13 DIST Cust'!M340-'FR-16(7)(v)-14 TOTAL CLASS'!M340","v":0},{"$f":"'FR-16(7)(v)-3 PROD Demand'!N340+'FR-16(7)(v)-4 PROD Energy'!N340+'FR-16(7)(v)-5 PROD Cust'!N340+'FR-16(7)(v)-7 TRANS Demand'!N340+'FR-16(7)(v)-8 TRANS Energy'!N340+'FR-16(7)(v)-9 TRANS Cust'!N340+'FR-16(7)(v)-11 DIST Demand'!N340+'FR-16(7)(v)-12 DIST Energy'!N340+'FR-16(7)(v)-13 DIST Cust'!N340-'FR-16(7)(v)-14 TOTAL CLASS'!N340","v":0},{"$f":"'FR-16(7)(v)-3 PROD Demand'!O340+'FR-16(7)(v)-4 PROD Energy'!O340+'FR-16(7)(v)-5 PROD Cust'!O340+'FR-16(7)(v)-7 TRANS Demand'!O340+'FR-16(7)(v)-8 TRANS Energy'!O340+'FR-16(7)(v)-9 TRANS Cust'!O340+'FR-16(7)(v)-11 DIST Demand'!O340+'FR-16(7)(v)-12 DIST Energy'!O340+'FR-16(7)(v)-13 DIST Cust'!O340-'FR-16(7)(v)-14 TOTAL CLASS'!O340","v":0},{"$f":"'FR-16(7)(v)-3 PROD Demand'!P340+'FR-16(7)(v)-4 PROD Energy'!P340+'FR-16(7)(v)-5 PROD Cust'!P340+'FR-16(7)(v)-7 TRANS Demand'!P340+'FR-16(7)(v)-8 TRANS Energy'!P340+'FR-16(7)(v)-9 TRANS Cust'!P340+'FR-16(7)(v)-11 DIST Demand'!P340+'FR-16(7)(v)-12 DIST Energy'!P340+'FR-16(7)(v)-13 DIST Cust'!P340-'FR-16(7)(v)-14 TOTAL CLASS'!P340","v":0},{"$f":"'FR-16(7)(v)-3 PROD Demand'!Q340+'FR-16(7)(v)-4 PROD Energy'!Q340+'FR-16(7)(v)-5 PROD Cust'!Q340+'FR-16(7)(v)-7 TRANS Demand'!Q340+'FR-16(7)(v)-8 TRANS Energy'!Q340+'FR-16(7)(v)-9 TRANS Cust'!Q340+'FR-16(7)(v)-11 DIST Demand'!Q340+'FR-16(7)(v)-12 DIST Energy'!Q340+'FR-16(7)(v)-13 DIST Cust'!Q340-'FR-16(7)(v)-14 TOTAL CLASS'!Q340","v":0},0,0]
[6,null,{"$f":"'FR-16(7)(v)-1 Functional'!C341","v":"RESERVED FOR FUTURE USE"},{"$f":"'FR-16(7)(v)-1 Functional'!D341","v":"NP29"},null,{"$f":"'FR-16(7)(v)-3 PROD Demand'!F341+'FR-16(7)(v)-4 PROD Energy'!F341+'FR-16(7)(v)-5 PROD Cust'!F341+'FR-16(7)(v)-7 TRANS Demand'!F341+'FR-16(7)(v)-8 TRANS Energy'!F341+'FR-16(7)(v)-9 TRANS Cust'!F341+'FR-16(7)(v)-11 DIST Demand'!F341+'FR-16(7)(v)-12 DIST Energy'!F341+'FR-16(7)(v)-13 DIST Cust'!F341-'FR-16(7)(v)-14 TOTAL CLASS'!F341","v":0},{"$f":"'FR-16(7)(v)-3 PROD Demand'!G341+'FR-16(7)(v)-4 PROD Energy'!G341+'FR-16(7)(v)-5 PROD Cust'!G341+'FR-16(7)(v)-7 TRANS Demand'!G341+'FR-16(7)(v)-8 TRANS Energy'!G341+'FR-16(7)(v)-9 TRANS Cust'!G341+'FR-16(7)(v)-11 DIST Demand'!G341+'FR-16(7)(v)-12 DIST Energy'!G341+'FR-16(7)(v)-13 DIST Cust'!G341-'FR-16(7)(v)-14 TOTAL CLASS'!G341","v":0},{"$f":"'FR-16(7)(v)-3 PROD Demand'!H341+'FR-16(7)(v)-4 PROD Energy'!H341+'FR-16(7)(v)-5 PROD Cust'!H341+'FR-16(7)(v)-7 TRANS Demand'!H341+'FR-16(7)(v)-8 TRANS Energy'!H341+'FR-16(7)(v)-9 TRANS Cust'!H341+'FR-16(7)(v)-11 DIST Demand'!H341+'FR-16(7)(v)-12 DIST Energy'!H341+'FR-16(7)(v)-13 DIST Cust'!H341-'FR-16(7)(v)-14 TOTAL CLASS'!H341","v":0},{"$f":"'FR-16(7)(v)-3 PROD Demand'!I341+'FR-16(7)(v)-4 PROD Energy'!I341+'FR-16(7)(v)-5 PROD Cust'!I341+'FR-16(7)(v)-7 TRANS Demand'!I341+'FR-16(7)(v)-8 TRANS Energy'!I341+'FR-16(7)(v)-9 TRANS Cust'!I341+'FR-16(7)(v)-11 DIST Demand'!I341+'FR-16(7)(v)-12 DIST Energy'!I341+'FR-16(7)(v)-13 DIST Cust'!I341-'FR-16(7)(v)-14 TOTAL CLASS'!I341","v":0},{"$f":"'FR-16(7)(v)-3 PROD Demand'!J341+'FR-16(7)(v)-4 PROD Energy'!J341+'FR-16(7)(v)-5 PROD Cust'!J341+'FR-16(7)(v)-7 TRANS Demand'!J341+'FR-16(7)(v)-8 TRANS Energy'!J341+'FR-16(7)(v)-9 TRANS Cust'!J341+'FR-16(7)(v)-11 DIST Demand'!J341+'FR-16(7)(v)-12 DIST Energy'!J341+'FR-16(7)(v)-13 DIST Cust'!J341-'FR-16(7)(v)-14 TOTAL CLASS'!J341","v":0},{"$f":"'FR-16(7)(v)-3 PROD Demand'!K341+'FR-16(7)(v)-4 PROD Energy'!K341+'FR-16(7)(v)-5 PROD Cust'!K341+'FR-16(7)(v)-7 TRANS Demand'!K341+'FR-16(7)(v)-8 TRANS Energy'!K341+'FR-16(7)(v)-9 TRANS Cust'!K341+'FR-16(7)(v)-11 DIST Demand'!K341+'FR-16(7)(v)-12 DIST Energy'!K341+'FR-16(7)(v)-13 DIST Cust'!K341-'FR-16(7)(v)-14 TOTAL CLASS'!K341","v":0},{"$f":"'FR-16(7)(v)-3 PROD Demand'!L341+'FR-16(7)(v)-4 PROD Energy'!L341+'FR-16(7)(v)-5 PROD Cust'!L341+'FR-16(7)(v)-7 TRANS Demand'!L341+'FR-16(7)(v)-8 TRANS Energy'!L341+'FR-16(7)(v)-9 TRANS Cust'!L341+'FR-16(7)(v)-11 DIST Demand'!L341+'FR-16(7)(v)-12 DIST Energy'!L341+'FR-16(7)(v)-13 DIST Cust'!L341-'FR-16(7)(v)-14 TOTAL CLASS'!L341","v":0},{"$f":"'FR-16(7)(v)-3 PROD Demand'!M341+'FR-16(7)(v)-4 PROD Energy'!M341+'FR-16(7)(v)-5 PROD Cust'!M341+'FR-16(7)(v)-7 TRANS Demand'!M341+'FR-16(7)(v)-8 TRANS Energy'!M341+'FR-16(7)(v)-9 TRANS Cust'!M341+'FR-16(7)(v)-11 DIST Demand'!M341+'FR-16(7)(v)-12 DIST Energy'!M341+'FR-16(7)(v)-13 DIST Cust'!M341-'FR-16(7)(v)-14 TOTAL CLASS'!M341","v":0},{"$f":"'FR-16(7)(v)-3 PROD Demand'!N341+'FR-16(7)(v)-4 PROD Energy'!N341+'FR-16(7)(v)-5 PROD Cust'!N341+'FR-16(7)(v)-7 TRANS Demand'!N341+'FR-16(7)(v)-8 TRANS Energy'!N341+'FR-16(7)(v)-9 TRANS Cust'!N341+'FR-16(7)(v)-11 DIST Demand'!N341+'FR-16(7)(v)-12 DIST Energy'!N341+'FR-16(7)(v)-13 DIST Cust'!N341-'FR-16(7)(v)-14 TOTAL CLASS'!N341","v":0},{"$f":"'FR-16(7)(v)-3 PROD Demand'!O341+'FR-16(7)(v)-4 PROD Energy'!O341+'FR-16(7)(v)-5 PROD Cust'!O341+'FR-16(7)(v)-7 TRANS Demand'!O341+'FR-16(7)(v)-8 TRANS Energy'!O341+'FR-16(7)(v)-9 TRANS Cust'!O341+'FR-16(7)(v)-11 DIST Demand'!O341+'FR-16(7)(v)-12 DIST Energy'!O341+'FR-16(7)(v)-13 DIST Cust'!O341-'FR-16(7)(v)-14 TOTAL CLASS'!O341","v":0},{"$f":"'FR-16(7)(v)-3 PROD Demand'!P341+'FR-16(7)(v)-4 PROD Energy'!P341+'FR-16(7)(v)-5 PROD Cust'!P341+'FR-16(7)(v)-7 TRANS Demand'!P341+'FR-16(7)(v)-8 TRANS Energy'!P341+'FR-16(7)(v)-9 TRANS Cust'!P341+'FR-16(7)(v)-11 DIST Demand'!P341+'FR-16(7)(v)-12 DIST Energy'!P341+'FR-16(7)(v)-13 DIST Cust'!P341-'FR-16(7)(v)-14 TOTAL CLASS'!P341","v":0},{"$f":"'FR-16(7)(v)-3 PROD Demand'!Q341+'FR-16(7)(v)-4 PROD Energy'!Q341+'FR-16(7)(v)-5 PROD Cust'!Q341+'FR-16(7)(v)-7 TRANS Demand'!Q341+'FR-16(7)(v)-8 TRANS Energy'!Q341+'FR-16(7)(v)-9 TRANS Cust'!Q341+'FR-16(7)(v)-11 DIST Demand'!Q341+'FR-16(7)(v)-12 DIST Energy'!Q341+'FR-16(7)(v)-13 DIST Cust'!Q341-'FR-16(7)(v)-14 TOTAL CLASS'!Q341","v":0},0,0]
[7,null,{"$f":"'FR-16(7)(v)-1 Functional'!C342","v":"ELECTRIC METERS"},{"$f":"'FR-16(7)(v)-1 Functional'!D342","v":"K407"},null,{"$f":"'FR-16(7)(v)-3 PROD Demand'!F342+'FR-16(7)(v)-4 PROD Energy'!F342+'FR-16(7)(v)-5 PROD Cust'!F342+'FR-16(7)(v)-7 TRANS Demand'!F342+'FR-16(7)(v)-8 TRANS Energy'!F342+'FR-16(7)(v)-9 TRANS Cust'!F342+'FR-16(7)(v)-11 DIST Demand'!F342+'FR-16(7)(v)-12 DIST Energy'!F342+'FR-16(7)(v)-13 DIST Cust'!F342-'FR-16(7)(v)-14 TOTAL CLASS'!F342","v":0},{"$f":"'FR-16(7)(v)-3 PROD Demand'!G342+'FR-16(7)(v)-4 PROD Energy'!G342+'FR-16(7)(v)-5 PROD Cust'!G342+'FR-16(7)(v)-7 TRANS Demand'!G342+'FR-16(7)(v)-8 TRANS Energy'!G342+'FR-16(7)(v)-9 TRANS Cust'!G342+'FR-16(7)(v)-11 DIST Demand'!G342+'FR-16(7)(v)-12 DIST Energy'!G342+'FR-16(7)(v)-13 DIST Cust'!G342-'FR-16(7)(v)-14 TOTAL CLASS'!G342","v":0},{"$f":"'FR-16(7)(v)-3 PROD Demand'!H342+'FR-16(7)(v)-4 PROD Energy'!H342+'FR-16(7)(v)-5 PROD Cust'!H342+'FR-16(7)(v)-7 TRANS Demand'!H342+'FR-16(7)(v)-8 TRANS Energy'!H342+'FR-16(7)(v)-9 TRANS Cust'!H342+'FR-16(7)(v)-11 DIST Demand'!H342+'FR-16(7)(v)-12 DIST Energy'!H342+'FR-16(7)(v)-13 DIST Cust'!H342-'FR-16(7)(v)-14 TOTAL CLASS'!H342","v":0},{"$f":"'FR-16(7)(v)-3 PROD Demand'!I342+'FR-16(7)(v)-4 PROD Energy'!I342+'FR-16(7)(v)-5 PROD Cust'!I342+'FR-16(7)(v)-7 TRANS Demand'!I342+'FR-16(7)(v)-8 TRANS Energy'!I342+'FR-16(7)(v)-9 TRANS Cust'!I342+'FR-16(7)(v)-11 DIST Demand'!I342+'FR-16(7)(v)-12 DIST Energy'!I342+'FR-16(7)(v)-13 DIST Cust'!I342-'FR-16(7)(v)-14 TOTAL CLASS'!I342","v":0},{"$f":"'FR-16(7)(v)-3 PROD Demand'!J342+'FR-16(7)(v)-4 PROD Energy'!J342+'FR-16(7)(v)-5 PROD Cust'!J342+'FR-16(7)(v)-7 TRANS Demand'!J342+'FR-16(7)(v)-8 TRANS Energy'!J342+'FR-16(7)(v)-9 TRANS Cust'!J342+'FR-16(7)(v)-11 DIST Demand'!J342+'FR-16(7)(v)-12 DIST Energy'!J342+'FR-16(7)(v)-13 DIST Cust'!J342-'FR-16(7)(v)-14 TOTAL CLASS'!J342","v":0},{"$f":"'FR-16(7)(v)-3 PROD Demand'!K342+'FR-16(7)(v)-4 PROD Energy'!K342+'FR-16(7)(v)-5 PROD Cust'!K342+'FR-16(7)(v)-7 TRANS Demand'!K342+'FR-16(7)(v)-8 TRANS Energy'!K342+'FR-16(7)(v)-9 TRANS Cust'!K342+'FR-16(7)(v)-11 DIST Demand'!K342+'FR-16(7)(v)-12 DIST Energy'!K342+'FR-16(7)(v)-13 DIST Cust'!K342-'FR-16(7)(v)-14 TOTAL CLASS'!K342","v":0},{"$f":"'FR-16(7)(v)-3 PROD Demand'!L342+'FR-16(7)(v)-4 PROD Energy'!L342+'FR-16(7)(v)-5 PROD Cust'!L342+'FR-16(7)(v)-7 TRANS Demand'!L342+'FR-16(7)(v)-8 TRANS Energy'!L342+'FR-16(7)(v)-9 TRANS Cust'!L342+'FR-16(7)(v)-11 DIST Demand'!L342+'FR-16(7)(v)-12 DIST Energy'!L342+'FR-16(7)(v)-13 DIST Cust'!L342-'FR-16(7)(v)-14 TOTAL CLASS'!L342","v":0},{"$f":"'FR-16(7)(v)-3 PROD Demand'!M342+'FR-16(7)(v)-4 PROD Energy'!M342+'FR-16(7)(v)-5 PROD Cust'!M342+'FR-16(7)(v)-7 TRANS Demand'!M342+'FR-16(7)(v)-8 TRANS Energy'!M342+'FR-16(7)(v)-9 TRANS Cust'!M342+'FR-16(7)(v)-11 DIST Demand'!M342+'FR-16(7)(v)-12 DIST Energy'!M342+'FR-16(7)(v)-13 DIST Cust'!M342-'FR-16(7)(v)-14 TOTAL CLASS'!M342","v":0},{"$f":"'FR-16(7)(v)-3 PROD Demand'!N342+'FR-16(7)(v)-4 PROD Energy'!N342+'FR-16(7)(v)-5 PROD Cust'!N342+'FR-16(7)(v)-7 TRANS Demand'!N342+'FR-16(7)(v)-8 TRANS Energy'!N342+'FR-16(7)(v)-9 TRANS Cust'!N342+'FR-16(7)(v)-11 DIST Demand'!N342+'FR-16(7)(v)-12 DIST Energy'!N342+'FR-16(7)(v)-13 DIST Cust'!N342-'FR-16(7)(v)-14 TOTAL CLASS'!N342","v":0},{"$f":"'FR-16(7)(v)-3 PROD Demand'!O342+'FR-16(7)(v)-4 PROD Energy'!O342+'FR-16(7)(v)-5 PROD Cust'!O342+'FR-16(7)(v)-7 TRANS Demand'!O342+'FR-16(7)(v)-8 TRANS Energy'!O342+'FR-16(7)(v)-9 TRANS Cust'!O342+'FR-16(7)(v)-11 DIST Demand'!O342+'FR-16(7)(v)-12 DIST Energy'!O342+'FR-16(7)(v)-13 DIST Cust'!O342-'FR-16(7)(v)-14 TOTAL CLASS'!O342","v":0},{"$f":"'FR-16(7)(v)-3 PROD Demand'!P342+'FR-16(7)(v)-4 PROD Energy'!P342+'FR-16(7)(v)-5 PROD Cust'!P342+'FR-16(7)(v)-7 TRANS Demand'!P342+'FR-16(7)(v)-8 TRANS Energy'!P342+'FR-16(7)(v)-9 TRANS Cust'!P342+'FR-16(7)(v)-11 DIST Demand'!P342+'FR-16(7)(v)-12 DIST Energy'!P342+'FR-16(7)(v)-13 DIST Cust'!P342-'FR-16(7)(v)-14 TOTAL CLASS'!P342","v":0},{"$f":"'FR-16(7)(v)-3 PROD Demand'!Q342+'FR-16(7)(v)-4 PROD Energy'!Q342+'FR-16(7)(v)-5 PROD Cust'!Q342+'FR-16(7)(v)-7 TRANS Demand'!Q342+'FR-16(7)(v)-8 TRANS Energy'!Q342+'FR-16(7)(v)-9 TRANS Cust'!Q342+'FR-16(7)(v)-11 DIST Demand'!Q342+'FR-16(7)(v)-12 DIST Energy'!Q342+'FR-16(7)(v)-13 DIST Cust'!Q342-'FR-16(7)(v)-14 TOTAL CLASS'!Q342","v":0},0,0]
[8,null,{"$f":"'FR-16(7)(v)-1 Functional'!C343","v":"UNAMORTIZED DEBT PREMIUM"},{"$f":"'FR-16(7)(v)-1 Functional'!D343","v":"D249"},null,{"$f":"'FR-16(7)(v)-3 PROD Demand'!F343+'FR-16(7)(v)-4 PROD Energy'!F343+'FR-16(7)(v)-5 PROD Cust'!F343+'FR-16(7)(v)-7 TRANS Demand'!F343+'FR-16(7)(v)-8 TRANS Energy'!F343+'FR-16(7)(v)-9 TRANS Cust'!F343+'FR-16(7)(v)-11 DIST Demand'!F343+'FR-16(7)(v)-12 DIST Energy'!F343+'FR-16(7)(v)-13 DIST Cust'!F343-'FR-16(7)(v)-14 TOTAL CLASS'!F343","v":0},{"$f":"'FR-16(7)(v)-3 PROD Demand'!G343+'FR-16(7)(v)-4 PROD Energy'!G343+'FR-16(7)(v)-5 PROD Cust'!G343+'FR-16(7)(v)-7 TRANS Demand'!G343+'FR-16(7)(v)-8 TRANS Energy'!G343+'FR-16(7)(v)-9 TRANS Cust'!G343+'FR-16(7)(v)-11 DIST Demand'!G343+'FR-16(7)(v)-12 DIST Energy'!G343+'FR-16(7)(v)-13 DIST Cust'!G343-'FR-16(7)(v)-14 TOTAL CLASS'!G343","v":0},{"$f":"'FR-16(7)(v)-3 PROD Demand'!H343+'FR-16(7)(v)-4 PROD Energy'!H343+'FR-16(7)(v)-5 PROD Cust'!H343+'FR-16(7)(v)-7 TRANS Demand'!H343+'FR-16(7)(v)-8 TRANS Energy'!H343+'FR-16(7)(v)-9 TRANS Cust'!H343+'FR-16(7)(v)-11 DIST Demand'!H343+'FR-16(7)(v)-12 DIST Energy'!H343+'FR-16(7)(v)-13 DIST Cust'!H343-'FR-16(7)(v)-14 TOTAL CLASS'!H343","v":0},{"$f":"'FR-16(7)(v)-3 PROD Demand'!I343+'FR-16(7)(v)-4 PROD Energy'!I343+'FR-16(7)(v)-5 PROD Cust'!I343+'FR-16(7)(v)-7 TRANS Demand'!I343+'FR-16(7)(v)-8 TRANS Energy'!I343+'FR-16(7)(v)-9 TRANS Cust'!I343+'FR-16(7)(v)-11 DIST Demand'!I343+'FR-16(7)(v)-12 DIST Energy'!I343+'FR-16(7)(v)-13 DIST Cust'!I343-'FR-16(7)(v)-14 TOTAL CLASS'!I343","v":0},{"$f":"'FR-16(7)(v)-3 PROD Demand'!J343+'FR-16(7)(v)-4 PROD Energy'!J343+'FR-16(7)(v)-5 PROD Cust'!J343+'FR-16(7)(v)-7 TRANS Demand'!J343+'FR-16(7)(v)-8 TRANS Energy'!J343+'FR-16(7)(v)-9 TRANS Cust'!J343+'FR-16(7)(v)-11 DIST Demand'!J343+'FR-16(7)(v)-12 DIST Energy'!J343+'FR-16(7)(v)-13 DIST Cust'!J343-'FR-16(7)(v)-14 TOTAL CLASS'!J343","v":0},{"$f":"'FR-16(7)(v)-3 PROD Demand'!K343+'FR-16(7)(v)-4 PROD Energy'!K343+'FR-16(7)(v)-5 PROD Cust'!K343+'FR-16(7)(v)-7 TRANS Demand'!K343+'FR-16(7)(v)-8 TRANS Energy'!K343+'FR-16(7)(v)-9 TRANS Cust'!K343+'FR-16(7)(v)-11 DIST Demand'!K343+'FR-16(7)(v)-12 DIST Energy'!K343+'FR-16(7)(v)-13 DIST Cust'!K343-'FR-16(7)(v)-14 TOTAL CLASS'!K343","v":0},{"$f":"'FR-16(7)(v)-3 PROD Demand'!L343+'FR-16(7)(v)-4 PROD Energy'!L343+'FR-16(7)(v)-5 PROD Cust'!L343+'FR-16(7)(v)-7 TRANS Demand'!L343+'FR-16(7)(v)-8 TRANS Energy'!L343+'FR-16(7)(v)-9 TRANS Cust'!L343+'FR-16(7)(v)-11 DIST Demand'!L343+'FR-16(7)(v)-12 DIST Energy'!L343+'FR-16(7)(v)-13 DIST Cust'!L343-'FR-16(7)(v)-14 TOTAL CLASS'!L343","v":0},{"$f":"'FR-16(7)(v)-3 PROD Demand'!M343+'FR-16(7)(v)-4 PROD Energy'!M343+'FR-16(7)(v)-5 PROD Cust'!M343+'FR-16(7)(v)-7 TRANS Demand'!M343+'FR-16(7)(v)-8 TRANS Energy'!M343+'FR-16(7)(v)-9 TRANS Cust'!M343+'FR-16(7)(v)-11 DIST Demand'!M343+'FR-16(7)(v)-12 DIST Energy'!M343+'FR-16(7)(v)-13 DIST Cust'!M343-'FR-16(7)(v)-14 TOTAL CLASS'!M343","v":0},{"$f":"'FR-16(7)(v)-3 PROD Demand'!N343+'FR-16(7)(v)-4 PROD Energy'!N343+'FR-16(7)(v)-5 PROD Cust'!N343+'FR-16(7)(v)-7 TRANS Demand'!N343+'FR-16(7)(v)-8 TRANS Energy'!N343+'FR-16(7)(v)-9 TRANS Cust'!N343+'FR-16(7)(v)-11 DIST Demand'!N343+'FR-16(7)(v)-12 DIST Energy'!N343+'FR-16(7)(v)-13 DIST Cust'!N343-'FR-16(7)(v)-14 TOTAL CLASS'!N343","v":0},{"$f":"'FR-16(7)(v)-3 PROD Demand'!O343+'FR-16(7)(v)-4 PROD Energy'!O343+'FR-16(7)(v)-5 PROD Cust'!O343+'FR-16(7)(v)-7 TRANS Demand'!O343+'FR-16(7)(v)-8 TRANS Energy'!O343+'FR-16(7)(v)-9 TRANS Cust'!O343+'FR-16(7)(v)-11 DIST Demand'!O343+'FR-16(7)(v)-12 DIST Energy'!O343+'FR-16(7)(v)-13 DIST Cust'!O343-'FR-16(7)(v)-14 TOTAL CLASS'!O343","v":0},{"$f":"'FR-16(7)(v)-3 PROD Demand'!P343+'FR-16(7)(v)-4 PROD Energy'!P343+'FR-16(7)(v)-5 PROD Cust'!P343+'FR-16(7)(v)-7 TRANS Demand'!P343+'FR-16(7)(v)-8 TRANS Energy'!P343+'FR-16(7)(v)-9 TRANS Cust'!P343+'FR-16(7)(v)-11 DIST Demand'!P343+'FR-16(7)(v)-12 DIST Energy'!P343+'FR-16(7)(v)-13 DIST Cust'!P343-'FR-16(7)(v)-14 TOTAL CLASS'!P343","v":0},{"$f":"'FR-16(7)(v)-3 PROD Demand'!Q343+'FR-16(7)(v)-4 PROD Energy'!Q343+'FR-16(7)(v)-5 PROD Cust'!Q343+'FR-16(7)(v)-7 TRANS Demand'!Q343+'FR-16(7)(v)-8 TRANS Energy'!Q343+'FR-16(7)(v)-9 TRANS Cust'!Q343+'FR-16(7)(v)-11 DIST Demand'!Q343+'FR-16(7)(v)-12 DIST Energy'!Q343+'FR-16(7)(v)-13 DIST Cust'!Q343-'FR-16(7)(v)-14 TOTAL CLASS'!Q343","v":0},0,0]
[9,null,{"$f":"'FR-16(7)(v)-1 Functional'!C344","v":"ARO CUMULATIVE EFFECT"},{"$f":"'FR-16(7)(v)-1 Functional'!D344","v":"NP29"},null,{"$f":"'FR-16(7)(v)-3 PROD Demand'!F344+'FR-16(7)(v)-4 PROD Energy'!F344+'FR-16(7)(v)-5 PROD Cust'!F344+'FR-16(7)(v)-7 TRANS Demand'!F344+'FR-16(7)(v)-8 TRANS Energy'!F344+'FR-16(7)(v)-9 TRANS Cust'!F344+'FR-16(7)(v)-11 DIST Demand'!F344+'FR-16(7)(v)-12 DIST Energy'!F344+'FR-16(7)(v)-13 DIST Cust'!F344-'FR-16(7)(v)-14 TOTAL CLASS'!F344","v":0},{"$f":"'FR-16(7)(v)-3 PROD Demand'!G344+'FR-16(7)(v)-4 PROD Energy'!G344+'FR-16(7)(v)-5 PROD Cust'!G344+'FR-16(7)(v)-7 TRANS Demand'!G344+'FR-16(7)(v)-8 TRANS Energy'!G344+'FR-16(7)(v)-9 TRANS Cust'!G344+'FR-16(7)(v)-11 DIST Demand'!G344+'FR-16(7)(v)-12 DIST Energy'!G344+'FR-16(7)(v)-13 DIST Cust'!G344-'FR-16(7)(v)-14 TOTAL CLASS'!G344","v":0},{"$f":"'FR-16(7)(v)-3 PROD Demand'!H344+'FR-16(7)(v)-4 PROD Energy'!H344+'FR-16(7)(v)-5 PROD Cust'!H344+'FR-16(7)(v)-7 TRANS Demand'!H344+'FR-16(7)(v)-8 TRANS Energy'!H344+'FR-16(7)(v)-9 TRANS Cust'!H344+'FR-16(7)(v)-11 DIST Demand'!H344+'FR-16(7)(v)-12 DIST Energy'!H344+'FR-16(7)(v)-13 DIST Cust'!H344-'FR-16(7)(v)-14 TOTAL CLASS'!H344","v":0},{"$f":"'FR-16(7)(v)-3 PROD Demand'!I344+'FR-16(7)(v)-4 PROD Energy'!I344+'FR-16(7)(v)-5 PROD Cust'!I344+'FR-16(7)(v)-7 TRANS Demand'!I344+'FR-16(7)(v)-8 TRANS Energy'!I344+'FR-16(7)(v)-9 TRANS Cust'!I344+'FR-16(7)(v)-11 DIST Demand'!I344+'FR-16(7)(v)-12 DIST Energy'!I344+'FR-16(7)(v)-13 DIST Cust'!I344-'FR-16(7)(v)-14 TOTAL CLASS'!I344","v":0},{"$f":"'FR-16(7)(v)-3 PROD Demand'!J344+'FR-16(7)(v)-4 PROD Energy'!J344+'FR-16(7)(v)-5 PROD Cust'!J344+'FR-16(7)(v)-7 TRANS Demand'!J344+'FR-16(7)(v)-8 TRANS Energy'!J344+'FR-16(7)(v)-9 TRANS Cust'!J344+'FR-16(7)(v)-11 DIST Demand'!J344+'FR-16(7)(v)-12 DIST Energy'!J344+'FR-16(7)(v)-13 DIST Cust'!J344-'FR-16(7)(v)-14 TOTAL CLASS'!J344","v":0},{"$f":"'FR-16(7)(v)-3 PROD Demand'!K344+'FR-16(7)(v)-4 PROD Energy'!K344+'FR-16(7)(v)-5 PROD Cust'!K344+'FR-16(7)(v)-7 TRANS Demand'!K344+'FR-16(7)(v)-8 TRANS Energy'!K344+'FR-16(7)(v)-9 TRANS Cust'!K344+'FR-16(7)(v)-11 DIST Demand'!K344+'FR-16(7)(v)-12 DIST Energy'!K344+'FR-16(7)(v)-13 DIST Cust'!K344-'FR-16(7)(v)-14 TOTAL CLASS'!K344","v":0},{"$f":"'FR-16(7)(v)-3 PROD Demand'!L344+'FR-16(7)(v)-4 PROD Energy'!L344+'FR-16(7)(v)-5 PROD Cust'!L344+'FR-16(7)(v)-7 TRANS Demand'!L344+'FR-16(7)(v)-8 TRANS Energy'!L344+'FR-16(7)(v)-9 TRANS Cust'!L344+'FR-16(7)(v)-11 DIST Demand'!L344+'FR-16(7)(v)-12 DIST Energy'!L344+'FR-16(7)(v)-13 DIST Cust'!L344-'FR-16(7)(v)-14 TOTAL CLASS'!L344","v":0},{"$f":"'FR-16(7)(v)-3 PROD Demand'!M344+'FR-16(7)(v)-4 PROD Energy'!M344+'FR-16(7)(v)-5 PROD Cust'!M344+'FR-16(7)(v)-7 TRANS Demand'!M344+'FR-16(7)(v)-8 TRANS Energy'!M344+'FR-16(7)(v)-9 TRANS Cust'!M344+'FR-16(7)(v)-11 DIST Demand'!M344+'FR-16(7)(v)-12 DIST Energy'!M344+'FR-16(7)(v)-13 DIST Cust'!M344-'FR-16(7)(v)-14 TOTAL CLASS'!M344","v":0},{"$f":"'FR-16(7)(v)-3 PROD Demand'!N344+'FR-16(7)(v)-4 PROD Energy'!N344+'FR-16(7)(v)-5 PROD Cust'!N344+'FR-16(7)(v)-7 TRANS Demand'!N344+'FR-16(7)(v)-8 TRANS Energy'!N344+'FR-16(7)(v)-9 TRANS Cust'!N344+'FR-16(7)(v)-11 DIST Demand'!N344+'FR-16(7)(v)-12 DIST Energy'!N344+'FR-16(7)(v)-13 DIST Cust'!N344-'FR-16(7)(v)-14 TOTAL CLASS'!N344","v":0},{"$f":"'FR-16(7)(v)-3 PROD Demand'!O344+'FR-16(7)(v)-4 PROD Energy'!O344+'FR-16(7)(v)-5 PROD Cust'!O344+'FR-16(7)(v)-7 TRANS Demand'!O344+'FR-16(7)(v)-8 TRANS Energy'!O344+'FR-16(7)(v)-9 TRANS Cust'!O344+'FR-16(7)(v)-11 DIST Demand'!O344+'FR-16(7)(v)-12 DIST Energy'!O344+'FR-16(7)(v)-13 DIST Cust'!O344-'FR-16(7)(v)-14 TOTAL CLASS'!O344","v":0},{"$f":"'FR-16(7)(v)-3 PROD Demand'!P344+'FR-16(7)(v)-4 PROD Energy'!P344+'FR-16(7)(v)-5 PROD Cust'!P344+'FR-16(7)(v)-7 TRANS Demand'!P344+'FR-16(7)(v)-8 TRANS Energy'!P344+'FR-16(7)(v)-9 TRANS Cust'!P344+'FR-16(7)(v)-11 DIST Demand'!P344+'FR-16(7)(v)-12 DIST Energy'!P344+'FR-16(7)(v)-13 DIST Cust'!P344-'FR-16(7)(v)-14 TOTAL CLASS'!P344","v":0},{"$f":"'FR-16(7)(v)-3 PROD Demand'!Q344+'FR-16(7)(v)-4 PROD Energy'!Q344+'FR-16(7)(v)-5 PROD Cust'!Q344+'FR-16(7)(v)-7 TRANS Demand'!Q344+'FR-16(7)(v)-8 TRANS Energy'!Q344+'FR-16(7)(v)-9 TRANS Cust'!Q344+'FR-16(7)(v)-11 DIST Demand'!Q344+'FR-16(7)(v)-12 DIST Energy'!Q344+'FR-16(7)(v)-13 DIST Cust'!Q344-'FR-16(7)(v)-14 TOTAL CLASS'!Q344","v":0},0,0]
[10,null,{"$f":"'FR-16(7)(v)-1 Functional'!C345","v":"RETIREMENT PLAN"},{"$f":"'FR-16(7)(v)-1 Functional'!D345","v":"A315"},null,{"$f":"'FR-16(7)(v)-3 PROD Demand'!F345+'FR-16(7)(v)-4 PROD Energy'!F345+'FR-16(7)(v)-5 PROD Cust'!F345+'FR-16(7)(v)-7 TRANS Demand'!F345+'FR-16(7)(v)-8 TRANS Energy'!F345+'FR-16(7)(v)-9 TRANS Cust'!F345+'FR-16(7)(v)-11 DIST Demand'!F345+'FR-16(7)(v)-12 DIST Energy'!F345+'FR-16(7)(v)-13 DIST Cust'!F345-'FR-16(7)(v)-14 TOTAL CLASS'!F345","v":0},{"$f":"'FR-16(7)(v)-3 PROD Demand'!G345+'FR-16(7)(v)-4 PROD Energy'!G345+'FR-16(7)(v)-5 PROD Cust'!G345+'FR-16(7)(v)-7 TRANS Demand'!G345+'FR-16(7)(v)-8 TRANS Energy'!G345+'FR-16(7)(v)-9 TRANS Cust'!G345+'FR-16(7)(v)-11 DIST Demand'!G345+'FR-16(7)(v)-12 DIST Energy'!G345+'FR-16(7)(v)-13 DIST Cust'!G345-'FR-16(7)(v)-14 TOTAL CLASS'!G345","v":0},{"$f":"'FR-16(7)(v)-3 PROD Demand'!H345+'FR-16(7)(v)-4 PROD Energy'!H345+'FR-16(7)(v)-5 PROD Cust'!H345+'FR-16(7)(v)-7 TRANS Demand'!H345+'FR-16(7)(v)-8 TRANS Energy'!H345+'FR-16(7)(v)-9 TRANS Cust'!H345+'FR-16(7)(v)-11 DIST Demand'!H345+'FR-16(7)(v)-12 DIST Energy'!H345+'FR-16(7)(v)-13 DIST Cust'!H345-'FR-16(7)(v)-14 TOTAL CLASS'!H345","v":0},{"$f":"'FR-16(7)(v)-3 PROD Demand'!I345+'FR-16(7)(v)-4 PROD Energy'!I345+'FR-16(7)(v)-5 PROD Cust'!I345+'FR-16(7)(v)-7 TRANS Demand'!I345+'FR-16(7)(v)-8 TRANS Energy'!I345+'FR-16(7)(v)-9 TRANS Cust'!I345+'FR-16(7)(v)-11 DIST Demand'!I345+'FR-16(7)(v)-12 DIST Energy'!I345+'FR-16(7)(v)-13 DIST Cust'!I345-'FR-16(7)(v)-14 TOTAL CLASS'!I345","v":0},{"$f":"'FR-16(7)(v)-3 PROD Demand'!J345+'FR-16(7)(v)-4 PROD Energy'!J345+'FR-16(7)(v)-5 PROD Cust'!J345+'FR-16(7)(v)-7 TRANS Demand'!J345+'FR-16(7)(v)-8 TRANS Energy'!J345+'FR-16(7)(v)-9 TRANS Cust'!J345+'FR-16(7)(v)-11 DIST Demand'!J345+'FR-16(7)(v)-12 DIST Energy'!J345+'FR-16(7)(v)-13 DIST Cust'!J345-'FR-16(7)(v)-14 TOTAL CLASS'!J345","v":0},{"$f":"'FR-16(7)(v)-3 PROD Demand'!K345+'FR-16(7)(v)-4 PROD Energy'!K345+'FR-16(7)(v)-5 PROD Cust'!K345+'FR-16(7)(v)-7 TRANS Demand'!K345+'FR-16(7)(v)-8 TRANS Energy'!K345+'FR-16(7)(v)-9 TRANS Cust'!K345+'FR-16(7)(v)-11 DIST Demand'!K345+'FR-16(7)(v)-12 DIST Energy'!K345+'FR-16(7)(v)-13 DIST Cust'!K345-'FR-16(7)(v)-14 TOTAL CLASS'!K345","v":0},{"$f":"'FR-16(7)(v)-3 PROD Demand'!L345+'FR-16(7)(v)-4 PROD Energy'!L345+'FR-16(7)(v)-5 PROD Cust'!L345+'FR-16(7)(v)-7 TRANS Demand'!L345+'FR-16(7)(v)-8 TRANS Energy'!L345+'FR-16(7)(v)-9 TRANS Cust'!L345+'FR-16(7)(v)-11 DIST Demand'!L345+'FR-16(7)(v)-12 DIST Energy'!L345+'FR-16(7)(v)-13 DIST Cust'!L345-'FR-16(7)(v)-14 TOTAL CLASS'!L345","v":0},{"$f":"'FR-16(7)(v)-3 PROD Demand'!M345+'FR-16(7)(v)-4 PROD Energy'!M345+'FR-16(7)(v)-5 PROD Cust'!M345+'FR-16(7)(v)-7 TRANS Demand'!M345+'FR-16(7)(v)-8 TRANS Energy'!M345+'FR-16(7)(v)-9 TRANS Cust'!M345+'FR-16(7)(v)-11 DIST Demand'!M345+'FR-16(7)(v)-12 DIST Energy'!M345+'FR-16(7)(v)-13 DIST Cust'!M345-'FR-16(7)(v)-14 TOTAL CLASS'!M345","v":0},{"$f":"'FR-16(7)(v)-3 PROD Demand'!N345+'FR-16(7)(v)-4 PROD Energy'!N345+'FR-16(7)(v)-5 PROD Cust'!N345+'FR-16(7)(v)-7 TRANS Demand'!N345+'FR-16(7)(v)-8 TRANS Energy'!N345+'FR-16(7)(v)-9 TRANS Cust'!N345+'FR-16(7)(v)-11 DIST Demand'!N345+'FR-16(7)(v)-12 DIST Energy'!N345+'FR-16(7)(v)-13 DIST Cust'!N345-'FR-16(7)(v)-14 TOTAL CLASS'!N345","v":0},{"$f":"'FR-16(7)(v)-3 PROD Demand'!O345+'FR-16(7)(v)-4 PROD Energy'!O345+'FR-16(7)(v)-5 PROD Cust'!O345+'FR-16(7)(v)-7 TRANS Demand'!O345+'FR-16(7)(v)-8 TRANS Energy'!O345+'FR-16(7)(v)-9 TRANS Cust'!O345+'FR-16(7)(v)-11 DIST Demand'!O345+'FR-16(7)(v)-12 DIST Energy'!O345+'FR-16(7)(v)-13 DIST Cust'!O345-'FR-16(7)(v)-14 TOTAL CLASS'!O345","v":0},{"$f":"'FR-16(7)(v)-3 PROD Demand'!P345+'FR-16(7)(v)-4 PROD Energy'!P345+'FR-16(7)(v)-5 PROD Cust'!P345+'FR-16(7)(v)-7 TRANS Demand'!P345+'FR-16(7)(v)-8 TRANS Energy'!P345+'FR-16(7)(v)-9 TRANS Cust'!P345+'FR-16(7)(v)-11 DIST Demand'!P345+'FR-16(7)(v)-12 DIST Energy'!P345+'FR-16(7)(v)-13 DIST Cust'!P345-'FR-16(7)(v)-14 TOTAL CLASS'!P345","v":0},{"$f":"'FR-16(7)(v)-3 PROD Demand'!Q345+'FR-16(7)(v)-4 PROD Energy'!Q345+'FR-16(7)(v)-5 PROD Cust'!Q345+'FR-16(7)(v)-7 TRANS Demand'!Q345+'FR-16(7)(v)-8 TRANS Energy'!Q345+'FR-16(7)(v)-9 TRANS Cust'!Q345+'FR-16(7)(v)-11 DIST Demand'!Q345+'FR-16(7)(v)-12 DIST Energy'!Q345+'FR-16(7)(v)-13 DIST Cust'!Q345-'FR-16(7)(v)-14 TOTAL CLASS'!Q345","v":0},0,0]
[11,null,{"$f":"'FR-16(7)(v)-1 Functional'!C346","v":"POST RETIREMENT BENEFITS "},{"$f":"'FR-16(7)(v)-1 Functional'!D346","v":"A315"},null,{"$f":"'FR-16(7)(v)-3 PROD Demand'!F346+'FR-16(7)(v)-4 PROD Energy'!F346+'FR-16(7)(v)-5 PROD Cust'!F346+'FR-16(7)(v)-7 TRANS Demand'!F346+'FR-16(7)(v)-8 TRANS Energy'!F346+'FR-16(7)(v)-9 TRANS Cust'!F346+'FR-16(7)(v)-11 DIST Demand'!F346+'FR-16(7)(v)-12 DIST Energy'!F346+'FR-16(7)(v)-13 DIST Cust'!F346-'FR-16(7)(v)-14 TOTAL CLASS'!F346","v":0},{"$f":"'FR-16(7)(v)-3 PROD Demand'!G346+'FR-16(7)(v)-4 PROD Energy'!G346+'FR-16(7)(v)-5 PROD Cust'!G346+'FR-16(7)(v)-7 TRANS Demand'!G346+'FR-16(7)(v)-8 TRANS Energy'!G346+'FR-16(7)(v)-9 TRANS Cust'!G346+'FR-16(7)(v)-11 DIST Demand'!G346+'FR-16(7)(v)-12 DIST Energy'!G346+'FR-16(7)(v)-13 DIST Cust'!G346-'FR-16(7)(v)-14 TOTAL CLASS'!G346","v":0},{"$f":"'FR-16(7)(v)-3 PROD Demand'!H346+'FR-16(7)(v)-4 PROD Energy'!H346+'FR-16(7)(v)-5 PROD Cust'!H346+'FR-16(7)(v)-7 TRANS Demand'!H346+'FR-16(7)(v)-8 TRANS Energy'!H346+'FR-16(7)(v)-9 TRANS Cust'!H346+'FR-16(7)(v)-11 DIST Demand'!H346+'FR-16(7)(v)-12 DIST Energy'!H346+'FR-16(7)(v)-13 DIST Cust'!H346-'FR-16(7)(v)-14 TOTAL CLASS'!H346","v":0},{"$f":"'FR-16(7)(v)-3 PROD Demand'!I346+'FR-16(7)(v)-4 PROD Energy'!I346+'FR-16(7)(v)-5 PROD Cust'!I346+'FR-16(7)(v)-7 TRANS Demand'!I346+'FR-16(7)(v)-8 TRANS Energy'!I346+'FR-16(7)(v)-9 TRANS Cust'!I346+'FR-16(7)(v)-11 DIST Demand'!I346+'FR-16(7)(v)-12 DIST Energy'!I346+'FR-16(7)(v)-13 DIST Cust'!I346-'FR-16(7)(v)-14 TOTAL CLASS'!I346","v":0},{"$f":"'FR-16(7)(v)-3 PROD Demand'!J346+'FR-16(7)(v)-4 PROD Energy'!J346+'FR-16(7)(v)-5 PROD Cust'!J346+'FR-16(7)(v)-7 TRANS Demand'!J346+'FR-16(7)(v)-8 TRANS Energy'!J346+'FR-16(7)(v)-9 TRANS Cust'!J346+'FR-16(7)(v)-11 DIST Demand'!J346+'FR-16(7)(v)-12 DIST Energy'!J346+'FR-16(7)(v)-13 DIST Cust'!J346-'FR-16(7)(v)-14 TOTAL CLASS'!J346","v":0},{"$f":"'FR-16(7)(v)-3 PROD Demand'!K346+'FR-16(7)(v)-4 PROD Energy'!K346+'FR-16(7)(v)-5 PROD Cust'!K346+'FR-16(7)(v)-7 TRANS Demand'!K346+'FR-16(7)(v)-8 TRANS Energy'!K346+'FR-16(7)(v)-9 TRANS Cust'!K346+'FR-16(7)(v)-11 DIST Demand'!K346+'FR-16(7)(v)-12 DIST Energy'!K346+'FR-16(7)(v)-13 DIST Cust'!K346-'FR-16(7)(v)-14 TOTAL CLASS'!K346","v":0},{"$f":"'FR-16(7)(v)-3 PROD Demand'!L346+'FR-16(7)(v)-4 PROD Energy'!L346+'FR-16(7)(v)-5 PROD Cust'!L346+'FR-16(7)(v)-7 TRANS Demand'!L346+'FR-16(7)(v)-8 TRANS Energy'!L346+'FR-16(7)(v)-9 TRANS Cust'!L346+'FR-16(7)(v)-11 DIST Demand'!L346+'FR-16(7)(v)-12 DIST Energy'!L346+'FR-16(7)(v)-13 DIST Cust'!L346-'FR-16(7)(v)-14 TOTAL CLASS'!L346","v":0},{"$f":"'FR-16(7)(v)-3 PROD Demand'!M346+'FR-16(7)(v)-4 PROD Energy'!M346+'FR-16(7)(v)-5 PROD Cust'!M346+'FR-16(7)(v)-7 TRANS Demand'!M346+'FR-16(7)(v)-8 TRANS Energy'!M346+'FR-16(7)(v)-9 TRANS Cust'!M346+'FR-16(7)(v)-11 DIST Demand'!M346+'FR-16(7)(v)-12 DIST Energy'!M346+'FR-16(7)(v)-13 DIST Cust'!M346-'FR-16(7)(v)-14 TOTAL CLASS'!M346","v":0},{"$f":"'FR-16(7)(v)-3 PROD Demand'!N346+'FR-16(7)(v)-4 PROD Energy'!N346+'FR-16(7)(v)-5 PROD Cust'!N346+'FR-16(7)(v)-7 TRANS Demand'!N346+'FR-16(7)(v)-8 TRANS Energy'!N346+'FR-16(7)(v)-9 TRANS Cust'!N346+'FR-16(7)(v)-11 DIST Demand'!N346+'FR-16(7)(v)-12 DIST Energy'!N346+'FR-16(7)(v)-13 DIST Cust'!N346-'FR-16(7)(v)-14 TOTAL CLASS'!N346","v":0},{"$f":"'FR-16(7)(v)-3 PROD Demand'!O346+'FR-16(7)(v)-4 PROD Energy'!O346+'FR-16(7)(v)-5 PROD Cust'!O346+'FR-16(7)(v)-7 TRANS Demand'!O346+'FR-16(7)(v)-8 TRANS Energy'!O346+'FR-16(7)(v)-9 TRANS Cust'!O346+'FR-16(7)(v)-11 DIST Demand'!O346+'FR-16(7)(v)-12 DIST Energy'!O346+'FR-16(7)(v)-13 DIST Cust'!O346-'FR-16(7)(v)-14 TOTAL CLASS'!O346","v":0},{"$f":"'FR-16(7)(v)-3 PROD Demand'!P346+'FR-16(7)(v)-4 PROD Energy'!P346+'FR-16(7)(v)-5 PROD Cust'!P346+'FR-16(7)(v)-7 TRANS Demand'!P346+'FR-16(7)(v)-8 TRANS Energy'!P346+'FR-16(7)(v)-9 TRANS Cust'!P346+'FR-16(7)(v)-11 DIST Demand'!P346+'FR-16(7)(v)-12 DIST Energy'!P346+'FR-16(7)(v)-13 DIST Cust'!P346-'FR-16(7)(v)-14 TOTAL CLASS'!P346","v":0},{"$f":"'FR-16(7)(v)-3 PROD Demand'!Q346+'FR-16(7)(v)-4 PROD Energy'!Q346+'FR-16(7)(v)-5 PROD Cust'!Q346+'FR-16(7)(v)-7 TRANS Demand'!Q346+'FR-16(7)(v)-8 TRANS Energy'!Q346+'FR-16(7)(v)-9 TRANS Cust'!Q346+'FR-16(7)(v)-11 DIST Demand'!Q346+'FR-16(7)(v)-12 DIST Energy'!Q346+'FR-16(7)(v)-13 DIST Cust'!Q346-'FR-16(7)(v)-14 TOTAL CLASS'!Q346","v":0},0,0]
[12,null,{"$f":"'FR-16(7)(v)-1 Functional'!C347","v":"POST RETIREMENT BENEFITS - HEALTH CARE"},{"$f":"'FR-16(7)(v)-1 Functional'!D347","v":"A315"},null,{"$f":"'FR-16(7)(v)-3 PROD Demand'!F347+'FR-16(7)(v)-4 PROD Energy'!F347+'FR-16(7)(v)-5 PROD Cust'!F347+'FR-16(7)(v)-7 TRANS Demand'!F347+'FR-16(7)(v)-8 TRANS Energy'!F347+'FR-16(7)(v)-9 TRANS Cust'!F347+'FR-16(7)(v)-11 DIST Demand'!F347+'FR-16(7)(v)-12 DIST Energy'!F347+'FR-16(7)(v)-13 DIST Cust'!F347-'FR-16(7)(v)-14 TOTAL CLASS'!F347","v":0},{"$f":"'FR-16(7)(v)-3 PROD Demand'!G347+'FR-16(7)(v)-4 PROD Energy'!G347+'FR-16(7)(v)-5 PROD Cust'!G347+'FR-16(7)(v)-7 TRANS Demand'!G347+'FR-16(7)(v)-8 TRANS Energy'!G347+'FR-16(7)(v)-9 TRANS Cust'!G347+'FR-16(7)(v)-11 DIST Demand'!G347+'FR-16(7)(v)-12 DIST Energy'!G347+'FR-16(7)(v)-13 DIST Cust'!G347-'FR-16(7)(v)-14 TOTAL CLASS'!G347","v":0},{"$f":"'FR-16(7)(v)-3 PROD Demand'!H347+'FR-16(7)(v)-4 PROD Energy'!H347+'FR-16(7)(v)-5 PROD Cust'!H347+'FR-16(7)(v)-7 TRANS Demand'!H347+'FR-16(7)(v)-8 TRANS Energy'!H347+'FR-16(7)(v)-9 TRANS Cust'!H347+'FR-16(7)(v)-11 DIST Demand'!H347+'FR-16(7)(v)-12 DIST Energy'!H347+'FR-16(7)(v)-13 DIST Cust'!H347-'FR-16(7)(v)-14 TOTAL CLASS'!H347","v":0},{"$f":"'FR-16(7)(v)-3 PROD Demand'!I347+'FR-16(7)(v)-4 PROD Energy'!I347+'FR-16(7)(v)-5 PROD Cust'!I347+'FR-16(7)(v)-7 TRANS Demand'!I347+'FR-16(7)(v)-8 TRANS Energy'!I347+'FR-16(7)(v)-9 TRANS Cust'!I347+'FR-16(7)(v)-11 DIST Demand'!I347+'FR-16(7)(v)-12 DIST Energy'!I347+'FR-16(7)(v)-13 DIST Cust'!I347-'FR-16(7)(v)-14 TOTAL CLASS'!I347","v":0},{"$f":"'FR-16(7)(v)-3 PROD Demand'!J347+'FR-16(7)(v)-4 PROD Energy'!J347+'FR-16(7)(v)-5 PROD Cust'!J347+'FR-16(7)(v)-7 TRANS Demand'!J347+'FR-16(7)(v)-8 TRANS Energy'!J347+'FR-16(7)(v)-9 TRANS Cust'!J347+'FR-16(7)(v)-11 DIST Demand'!J347+'FR-16(7)(v)-12 DIST Energy'!J347+'FR-16(7)(v)-13 DIST Cust'!J347-'FR-16(7)(v)-14 TOTAL CLASS'!J347","v":0},{"$f":"'FR-16(7)(v)-3 PROD Demand'!K347+'FR-16(7)(v)-4 PROD Energy'!K347+'FR-16(7)(v)-5 PROD Cust'!K347+'FR-16(7)(v)-7 TRANS Demand'!K347+'FR-16(7)(v)-8 TRANS Energy'!K347+'FR-16(7)(v)-9 TRANS Cust'!K347+'FR-16(7)(v)-11 DIST Demand'!K347+'FR-16(7)(v)-12 DIST Energy'!K347+'FR-16(7)(v)-13 DIST Cust'!K347-'FR-16(7)(v)-14 TOTAL CLASS'!K347","v":0},{"$f":"'FR-16(7)(v)-3 PROD Demand'!L347+'FR-16(7)(v)-4 PROD Energy'!L347+'FR-16(7)(v)-5 PROD Cust'!L347+'FR-16(7)(v)-7 TRANS Demand'!L347+'FR-16(7)(v)-8 TRANS Energy'!L347+'FR-16(7)(v)-9 TRANS Cust'!L347+'FR-16(7)(v)-11 DIST Demand'!L347+'FR-16(7)(v)-12 DIST Energy'!L347+'FR-16(7)(v)-13 DIST Cust'!L347-'FR-16(7)(v)-14 TOTAL CLASS'!L347","v":0},{"$f":"'FR-16(7)(v)-3 PROD Demand'!M347+'FR-16(7)(v)-4 PROD Energy'!M347+'FR-16(7)(v)-5 PROD Cust'!M347+'FR-16(7)(v)-7 TRANS Demand'!M347+'FR-16(7)(v)-8 TRANS Energy'!M347+'FR-16(7)(v)-9 TRANS Cust'!M347+'FR-16(7)(v)-11 DIST Demand'!M347+'FR-16(7)(v)-12 DIST Energy'!M347+'FR-16(7)(v)-13 DIST Cust'!M347-'FR-16(7)(v)-14 TOTAL CLASS'!M347","v":0},{"$f":"'FR-16(7)(v)-3 PROD Demand'!N347+'FR-16(7)(v)-4 PROD Energy'!N347+'FR-16(7)(v)-5 PROD Cust'!N347+'FR-16(7)(v)-7 TRANS Demand'!N347+'FR-16(7)(v)-8 TRANS Energy'!N347+'FR-16(7)(v)-9 TRANS Cust'!N347+'FR-16(7)(v)-11 DIST Demand'!N347+'FR-16(7)(v)-12 DIST Energy'!N347+'FR-16(7)(v)-13 DIST Cust'!N347-'FR-16(7)(v)-14 TOTAL CLASS'!N347","v":0},{"$f":"'FR-16(7)(v)-3 PROD Demand'!O347+'FR-16(7)(v)-4 PROD Energy'!O347+'FR-16(7)(v)-5 PROD Cust'!O347+'FR-16(7)(v)-7 TRANS Demand'!O347+'FR-16(7)(v)-8 TRANS Energy'!O347+'FR-16(7)(v)-9 TRANS Cust'!O347+'FR-16(7)(v)-11 DIST Demand'!O347+'FR-16(7)(v)-12 DIST Energy'!O347+'FR-16(7)(v)-13 DIST Cust'!O347-'FR-16(7)(v)-14 TOTAL CLASS'!O347","v":0},{"$f":"'FR-16(7)(v)-3 PROD Demand'!P347+'FR-16(7)(v)-4 PROD Energy'!P347+'FR-16(7)(v)-5 PROD Cust'!P347+'FR-16(7)(v)-7 TRANS Demand'!P347+'FR-16(7)(v)-8 TRANS Energy'!P347+'FR-16(7)(v)-9 TRANS Cust'!P347+'FR-16(7)(v)-11 DIST Demand'!P347+'FR-16(7)(v)-12 DIST Energy'!P347+'FR-16(7)(v)-13 DIST Cust'!P347-'FR-16(7)(v)-14 TOTAL CLASS'!P347","v":0},{"$f":"'FR-16(7)(v)-3 PROD Demand'!Q347+'FR-16(7)(v)-4 PROD Energy'!Q347+'FR-16(7)(v)-5 PROD Cust'!Q347+'FR-16(7)(v)-7 TRANS Demand'!Q347+'FR-16(7)(v)-8 TRANS Energy'!Q347+'FR-16(7)(v)-9 TRANS Cust'!Q347+'FR-16(7)(v)-11 DIST Demand'!Q347+'FR-16(7)(v)-12 DIST Energy'!Q347+'FR-16(7)(v)-13 DIST Cust'!Q347-'FR-16(7)(v)-14 TOTAL CLASS'!Q347","v":0},0,0]
[13,null,{"$f":"'FR-16(7)(v)-1 Functional'!C348","v":"POST EMPLOYMENT BENEFITS - SFAS 112"},{"$f":"'FR-16(7)(v)-1 Functional'!D348","v":"A315"},null,{"$f":"'FR-16(7)(v)-3 PROD Demand'!F348+'FR-16(7)(v)-4 PROD Energy'!F348+'FR-16(7)(v)-5 PROD Cust'!F348+'FR-16(7)(v)-7 TRANS Demand'!F348+'FR-16(7)(v)-8 TRANS Energy'!F348+'FR-16(7)(v)-9 TRANS Cust'!F348+'FR-16(7)(v)-11 DIST Demand'!F348+'FR-16(7)(v)-12 DIST Energy'!F348+'FR-16(7)(v)-13 DIST Cust'!F348-'FR-16(7)(v)-14 TOTAL CLASS'!F348","v":0},{"$f":"'FR-16(7)(v)-3 PROD Demand'!G348+'FR-16(7)(v)-4 PROD Energy'!G348+'FR-16(7)(v)-5 PROD Cust'!G348+'FR-16(7)(v)-7 TRANS Demand'!G348+'FR-16(7)(v)-8 TRANS Energy'!G348+'FR-16(7)(v)-9 TRANS Cust'!G348+'FR-16(7)(v)-11 DIST Demand'!G348+'FR-16(7)(v)-12 DIST Energy'!G348+'FR-16(7)(v)-13 DIST Cust'!G348-'FR-16(7)(v)-14 TOTAL CLASS'!G348","v":0},{"$f":"'FR-16(7)(v)-3 PROD Demand'!H348+'FR-16(7)(v)-4 PROD Energy'!H348+'FR-16(7)(v)-5 PROD Cust'!H348+'FR-16(7)(v)-7 TRANS Demand'!H348+'FR-16(7)(v)-8 TRANS Energy'!H348+'FR-16(7)(v)-9 TRANS Cust'!H348+'FR-16(7)(v)-11 DIST Demand'!H348+'FR-16(7)(v)-12 DIST Energy'!H348+'FR-16(7)(v)-13 DIST Cust'!H348-'FR-16(7)(v)-14 TOTAL CLASS'!H348","v":0},{"$f":"'FR-16(7)(v)-3 PROD Demand'!I348+'FR-16(7)(v)-4 PROD Energy'!I348+'FR-16(7)(v)-5 PROD Cust'!I348+'FR-16(7)(v)-7 TRANS Demand'!I348+'FR-16(7)(v)-8 TRANS Energy'!I348+'FR-16(7)(v)-9 TRANS Cust'!I348+'FR-16(7)(v)-11 DIST Demand'!I348+'FR-16(7)(v)-12 DIST Energy'!I348+'FR-16(7)(v)-13 DIST Cust'!I348-'FR-16(7)(v)-14 TOTAL CLASS'!I348","v":0},{"$f":"'FR-16(7)(v)-3 PROD Demand'!J348+'FR-16(7)(v)-4 PROD Energy'!J348+'FR-16(7)(v)-5 PROD Cust'!J348+'FR-16(7)(v)-7 TRANS Demand'!J348+'FR-16(7)(v)-8 TRANS Energy'!J348+'FR-16(7)(v)-9 TRANS Cust'!J348+'FR-16(7)(v)-11 DIST Demand'!J348+'FR-16(7)(v)-12 DIST Energy'!J348+'FR-16(7)(v)-13 DIST Cust'!J348-'FR-16(7)(v)-14 TOTAL CLASS'!J348","v":0},{"$f":"'FR-16(7)(v)-3 PROD Demand'!K348+'FR-16(7)(v)-4 PROD Energy'!K348+'FR-16(7)(v)-5 PROD Cust'!K348+'FR-16(7)(v)-7 TRANS Demand'!K348+'FR-16(7)(v)-8 TRANS Energy'!K348+'FR-16(7)(v)-9 TRANS Cust'!K348+'FR-16(7)(v)-11 DIST Demand'!K348+'FR-16(7)(v)-12 DIST Energy'!K348+'FR-16(7)(v)-13 DIST Cust'!K348-'FR-16(7)(v)-14 TOTAL CLASS'!K348","v":0},{"$f":"'FR-16(7)(v)-3 PROD Demand'!L348+'FR-16(7)(v)-4 PROD Energy'!L348+'FR-16(7)(v)-5 PROD Cust'!L348+'FR-16(7)(v)-7 TRANS Demand'!L348+'FR-16(7)(v)-8 TRANS Energy'!L348+'FR-16(7)(v)-9 TRANS Cust'!L348+'FR-16(7)(v)-11 DIST Demand'!L348+'FR-16(7)(v)-12 DIST Energy'!L348+'FR-16(7)(v)-13 DIST Cust'!L348-'FR-16(7)(v)-14 TOTAL CLASS'!L348","v":0},{"$f":"'FR-16(7)(v)-3 PROD Demand'!M348+'FR-16(7)(v)-4 PROD Energy'!M348+'FR-16(7)(v)-5 PROD Cust'!M348+'FR-16(7)(v)-7 TRANS Demand'!M348+'FR-16(7)(v)-8 TRANS Energy'!M348+'FR-16(7)(v)-9 TRANS Cust'!M348+'FR-16(7)(v)-11 DIST Demand'!M348+'FR-16(7)(v)-12 DIST Energy'!M348+'FR-16(7)(v)-13 DIST Cust'!M348-'FR-16(7)(v)-14 TOTAL CLASS'!M348","v":0},{"$f":"'FR-16(7)(v)-3 PROD Demand'!N348+'FR-16(7)(v)-4 PROD Energy'!N348+'FR-16(7)(v)-5 PROD Cust'!N348+'FR-16(7)(v)-7 TRANS Demand'!N348+'FR-16(7)(v)-8 TRANS Energy'!N348+'FR-16(7)(v)-9 TRANS Cust'!N348+'FR-16(7)(v)-11 DIST Demand'!N348+'FR-16(7)(v)-12 DIST Energy'!N348+'FR-16(7)(v)-13 DIST Cust'!N348-'FR-16(7)(v)-14 TOTAL CLASS'!N348","v":0},{"$f":"'FR-16(7)(v)-3 PROD Demand'!O348+'FR-16(7)(v)-4 PROD Energy'!O348+'FR-16(7)(v)-5 PROD Cust'!O348+'FR-16(7)(v)-7 TRANS Demand'!O348+'FR-16(7)(v)-8 TRANS Energy'!O348+'FR-16(7)(v)-9 TRANS Cust'!O348+'FR-16(7)(v)-11 DIST Demand'!O348+'FR-16(7)(v)-12 DIST Energy'!O348+'FR-16(7)(v)-13 DIST Cust'!O348-'FR-16(7)(v)-14 TOTAL CLASS'!O348","v":0},{"$f":"'FR-16(7)(v)-3 PROD Demand'!P348+'FR-16(7)(v)-4 PROD Energy'!P348+'FR-16(7)(v)-5 PROD Cust'!P348+'FR-16(7)(v)-7 TRANS Demand'!P348+'FR-16(7)(v)-8 TRANS Energy'!P348+'FR-16(7)(v)-9 TRANS Cust'!P348+'FR-16(7)(v)-11 DIST Demand'!P348+'FR-16(7)(v)-12 DIST Energy'!P348+'FR-16(7)(v)-13 DIST Cust'!P348-'FR-16(7)(v)-14 TOTAL CLASS'!P348","v":0},{"$f":"'FR-16(7)(v)-3 PROD Demand'!Q348+'FR-16(7)(v)-4 PROD Energy'!Q348+'FR-16(7)(v)-5 PROD Cust'!Q348+'FR-16(7)(v)-7 TRANS Demand'!Q348+'FR-16(7)(v)-8 TRANS Energy'!Q348+'FR-16(7)(v)-9 TRANS Cust'!Q348+'FR-16(7)(v)-11 DIST Demand'!Q348+'FR-16(7)(v)-12 DIST Energy'!Q348+'FR-16(7)(v)-13 DIST Cust'!Q348-'FR-16(7)(v)-14 TOTAL CLASS'!Q348","v":0},0,0]
[14,null,{"$f":"'FR-16(7)(v)-1 Functional'!C349","v":"SUPPLEMENTAL PENSION PLAN"},{"$f":"'FR-16(7)(v)-1 Functional'!D349","v":"A315"},null,{"$f":"'FR-16(7)(v)-3 PROD Demand'!F349+'FR-16(7)(v)-4 PROD Energy'!F349+'FR-16(7)(v)-5 PROD Cust'!F349+'FR-16(7)(v)-7 TRANS Demand'!F349+'FR-16(7)(v)-8 TRANS Energy'!F349+'FR-16(7)(v)-9 TRANS Cust'!F349+'FR-16(7)(v)-11 DIST Demand'!F349+'FR-16(7)(v)-12 DIST Energy'!F349+'FR-16(7)(v)-13 DIST Cust'!F349-'FR-16(7)(v)-14 TOTAL CLASS'!F349","v":0},{"$f":"'FR-16(7)(v)-3 PROD Demand'!G349+'FR-16(7)(v)-4 PROD Energy'!G349+'FR-16(7)(v)-5 PROD Cust'!G349+'FR-16(7)(v)-7 TRANS Demand'!G349+'FR-16(7)(v)-8 TRANS Energy'!G349+'FR-16(7)(v)-9 TRANS Cust'!G349+'FR-16(7)(v)-11 DIST Demand'!G349+'FR-16(7)(v)-12 DIST Energy'!G349+'FR-16(7)(v)-13 DIST Cust'!G349-'FR-16(7)(v)-14 TOTAL CLASS'!G349","v":0},{"$f":"'FR-16(7)(v)-3 PROD Demand'!H349+'FR-16(7)(v)-4 PROD Energy'!H349+'FR-16(7)(v)-5 PROD Cust'!H349+'FR-16(7)(v)-7 TRANS Demand'!H349+'FR-16(7)(v)-8 TRANS Energy'!H349+'FR-16(7)(v)-9 TRANS Cust'!H349+'FR-16(7)(v)-11 DIST Demand'!H349+'FR-16(7)(v)-12 DIST Energy'!H349+'FR-16(7)(v)-13 DIST Cust'!H349-'FR-16(7)(v)-14 TOTAL CLASS'!H349","v":0},{"$f":"'FR-16(7)(v)-3 PROD Demand'!I349+'FR-16(7)(v)-4 PROD Energy'!I349+'FR-16(7)(v)-5 PROD Cust'!I349+'FR-16(7)(v)-7 TRANS Demand'!I349+'FR-16(7)(v)-8 TRANS Energy'!I349+'FR-16(7)(v)-9 TRANS Cust'!I349+'FR-16(7)(v)-11 DIST Demand'!I349+'FR-16(7)(v)-12 DIST Energy'!I349+'FR-16(7)(v)-13 DIST Cust'!I349-'FR-16(7)(v)-14 TOTAL CLASS'!I349","v":0},{"$f":"'FR-16(7)(v)-3 PROD Demand'!J349+'FR-16(7)(v)-4 PROD Energy'!J349+'FR-16(7)(v)-5 PROD Cust'!J349+'FR-16(7)(v)-7 TRANS Demand'!J349+'FR-16(7)(v)-8 TRANS Energy'!J349+'FR-16(7)(v)-9 TRANS Cust'!J349+'FR-16(7)(v)-11 DIST Demand'!J349+'FR-16(7)(v)-12 DIST Energy'!J349+'FR-16(7)(v)-13 DIST Cust'!J349-'FR-16(7)(v)-14 TOTAL CLASS'!J349","v":0},{"$f":"'FR-16(7)(v)-3 PROD Demand'!K349+'FR-16(7)(v)-4 PROD Energy'!K349+'FR-16(7)(v)-5 PROD Cust'!K349+'FR-16(7)(v)-7 TRANS Demand'!K349+'FR-16(7)(v)-8 TRANS Energy'!K349+'FR-16(7)(v)-9 TRANS Cust'!K349+'FR-16(7)(v)-11 DIST Demand'!K349+'FR-16(7)(v)-12 DIST Energy'!K349+'FR-16(7)(v)-13 DIST Cust'!K349-'FR-16(7)(v)-14 TOTAL CLASS'!K349","v":0},{"$f":"'FR-16(7)(v)-3 PROD Demand'!L349+'FR-16(7)(v)-4 PROD Energy'!L349+'FR-16(7)(v)-5 PROD Cust'!L349+'FR-16(7)(v)-7 TRANS Demand'!L349+'FR-16(7)(v)-8 TRANS Energy'!L349+'FR-16(7)(v)-9 TRANS Cust'!L349+'FR-16(7)(v)-11 DIST Demand'!L349+'FR-16(7)(v)-12 DIST Energy'!L349+'FR-16(7)(v)-13 DIST Cust'!L349-'FR-16(7)(v)-14 TOTAL CLASS'!L349","v":0},{"$f":"'FR-16(7)(v)-3 PROD Demand'!M349+'FR-16(7)(v)-4 PROD Energy'!M349+'FR-16(7)(v)-5 PROD Cust'!M349+'FR-16(7)(v)-7 TRANS Demand'!M349+'FR-16(7)(v)-8 TRANS Energy'!M349+'FR-16(7)(v)-9 TRANS Cust'!M349+'FR-16(7)(v)-11 DIST Demand'!M349+'FR-16(7)(v)-12 DIST Energy'!M349+'FR-16(7)(v)-13 DIST Cust'!M349-'FR-16(7)(v)-14 TOTAL CLASS'!M349","v":0},{"$f":"'FR-16(7)(v)-3 PROD Demand'!N349+'FR-16(7)(v)-4 PROD Energy'!N349+'FR-16(7)(v)-5 PROD Cust'!N349+'FR-16(7)(v)-7 TRANS Demand'!N349+'FR-16(7)(v)-8 TRANS Energy'!N349+'FR-16(7)(v)-9 TRANS Cust'!N349+'FR-16(7)(v)-11 DIST Demand'!N349+'FR-16(7)(v)-12 DIST Energy'!N349+'FR-16(7)(v)-13 DIST Cust'!N349-'FR-16(7)(v)-14 TOTAL CLASS'!N349","v":0},{"$f":"'FR-16(7)(v)-3 PROD Demand'!O349+'FR-16(7)(v)-4 PROD Energy'!O349+'FR-16(7)(v)-5 PROD Cust'!O349+'FR-16(7)(v)-7 TRANS Demand'!O349+'FR-16(7)(v)-8 TRANS Energy'!O349+'FR-16(7)(v)-9 TRANS Cust'!O349+'FR-16(7)(v)-11 DIST Demand'!O349+'FR-16(7)(v)-12 DIST Energy'!O349+'FR-16(7)(v)-13 DIST Cust'!O349-'FR-16(7)(v)-14 TOTAL CLASS'!O349","v":0},{"$f":"'FR-16(7)(v)-3 PROD Demand'!P349+'FR-16(7)(v)-4 PROD Energy'!P349+'FR-16(7)(v)-5 PROD Cust'!P349+'FR-16(7)(v)-7 TRANS Demand'!P349+'FR-16(7)(v)-8 TRANS Energy'!P349+'FR-16(7)(v)-9 TRANS Cust'!P349+'FR-16(7)(v)-11 DIST Demand'!P349+'FR-16(7)(v)-12 DIST Energy'!P349+'FR-16(7)(v)-13 DIST Cust'!P349-'FR-16(7)(v)-14 TOTAL CLASS'!P349","v":0},{"$f":"'FR-16(7)(v)-3 PROD Demand'!Q349+'FR-16(7)(v)-4 PROD Energy'!Q349+'FR-16(7)(v)-5 PROD Cust'!Q349+'FR-16(7)(v)-7 TRANS Demand'!Q349+'FR-16(7)(v)-8 TRANS Energy'!Q349+'FR-16(7)(v)-9 TRANS Cust'!Q349+'FR-16(7)(v)-11 DIST Demand'!Q349+'FR-16(7)(v)-12 DIST Energy'!Q349+'FR-16(7)(v)-13 DIST Cust'!Q349-'FR-16(7)(v)-14 TOTAL CLASS'!Q349","v":0},0,0]
[15,null,{"$f":"'FR-16(7)(v)-1 Functional'!C350","v":"INCENTIVE PLAN"},{"$f":"'FR-16(7)(v)-1 Functional'!D350","v":"A315"},null,{"$f":"'FR-16(7)(v)-3 PROD Demand'!F350+'FR-16(7)(v)-4 PROD Energy'!F350+'FR-16(7)(v)-5 PROD Cust'!F350+'FR-16(7)(v)-7 TRANS Demand'!F350+'FR-16(7)(v)-8 TRANS Energy'!F350+'FR-16(7)(v)-9 TRANS Cust'!F350+'FR-16(7)(v)-11 DIST Demand'!F350+'FR-16(7)(v)-12 DIST Energy'!F350+'FR-16(7)(v)-13 DIST Cust'!F350-'FR-16(7)(v)-14 TOTAL CLASS'!F350","v":0},{"$f":"'FR-16(7)(v)-3 PROD Demand'!G350+'FR-16(7)(v)-4 PROD Energy'!G350+'FR-16(7)(v)-5 PROD Cust'!G350+'FR-16(7)(v)-7 TRANS Demand'!G350+'FR-16(7)(v)-8 TRANS Energy'!G350+'FR-16(7)(v)-9 TRANS Cust'!G350+'FR-16(7)(v)-11 DIST Demand'!G350+'FR-16(7)(v)-12 DIST Energy'!G350+'FR-16(7)(v)-13 DIST Cust'!G350-'FR-16(7)(v)-14 TOTAL CLASS'!G350","v":0},{"$f":"'FR-16(7)(v)-3 PROD Demand'!H350+'FR-16(7)(v)-4 PROD Energy'!H350+'FR-16(7)(v)-5 PROD Cust'!H350+'FR-16(7)(v)-7 TRANS Demand'!H350+'FR-16(7)(v)-8 TRANS Energy'!H350+'FR-16(7)(v)-9 TRANS Cust'!H350+'FR-16(7)(v)-11 DIST Demand'!H350+'FR-16(7)(v)-12 DIST Energy'!H350+'FR-16(7)(v)-13 DIST Cust'!H350-'FR-16(7)(v)-14 TOTAL CLASS'!H350","v":0},{"$f":"'FR-16(7)(v)-3 PROD Demand'!I350+'FR-16(7)(v)-4 PROD Energy'!I350+'FR-16(7)(v)-5 PROD Cust'!I350+'FR-16(7)(v)-7 TRANS Demand'!I350+'FR-16(7)(v)-8 TRANS Energy'!I350+'FR-16(7)(v)-9 TRANS Cust'!I350+'FR-16(7)(v)-11 DIST Demand'!I350+'FR-16(7)(v)-12 DIST Energy'!I350+'FR-16(7)(v)-13 DIST Cust'!I350-'FR-16(7)(v)-14 TOTAL CLASS'!I350","v":0},{"$f":"'FR-16(7)(v)-3 PROD Demand'!J350+'FR-16(7)(v)-4 PROD Energy'!J350+'FR-16(7)(v)-5 PROD Cust'!J350+'FR-16(7)(v)-7 TRANS Demand'!J350+'FR-16(7)(v)-8 TRANS Energy'!J350+'FR-16(7)(v)-9 TRANS Cust'!J350+'FR-16(7)(v)-11 DIST Demand'!J350+'FR-16(7)(v)-12 DIST Energy'!J350+'FR-16(7)(v)-13 DIST Cust'!J350-'FR-16(7)(v)-14 TOTAL CLASS'!J350","v":0},{"$f":"'FR-16(7)(v)-3 PROD Demand'!K350+'FR-16(7)(v)-4 PROD Energy'!K350+'FR-16(7)(v)-5 PROD Cust'!K350+'FR-16(7)(v)-7 TRANS Demand'!K350+'FR-16(7)(v)-8 TRANS Energy'!K350+'FR-16(7)(v)-9 TRANS Cust'!K350+'FR-16(7)(v)-11 DIST Demand'!K350+'FR-16(7)(v)-12 DIST Energy'!K350+'FR-16(7)(v)-13 DIST Cust'!K350-'FR-16(7)(v)-14 TOTAL CLASS'!K350","v":0},{"$f":"'FR-16(7)(v)-3 PROD Demand'!L350+'FR-16(7)(v)-4 PROD Energy'!L350+'FR-16(7)(v)-5 PROD Cust'!L350+'FR-16(7)(v)-7 TRANS Demand'!L350+'FR-16(7)(v)-8 TRANS Energy'!L350+'FR-16(7)(v)-9 TRANS Cust'!L350+'FR-16(7)(v)-11 DIST Demand'!L350+'FR-16(7)(v)-12 DIST Energy'!L350+'FR-16(7)(v)-13 DIST Cust'!L350-'FR-16(7)(v)-14 TOTAL CLASS'!L350","v":0},{"$f":"'FR-16(7)(v)-3 PROD Demand'!M350+'FR-16(7)(v)-4 PROD Energy'!M350+'FR-16(7)(v)-5 PROD Cust'!M350+'FR-16(7)(v)-7 TRANS Demand'!M350+'FR-16(7)(v)-8 TRANS Energy'!M350+'FR-16(7)(v)-9 TRANS Cust'!M350+'FR-16(7)(v)-11 DIST Demand'!M350+'FR-16(7)(v)-12 DIST Energy'!M350+'FR-16(7)(v)-13 DIST Cust'!M350-'FR-16(7)(v)-14 TOTAL CLASS'!M350","v":0},{"$f":"'FR-16(7)(v)-3 PROD Demand'!N350+'FR-16(7)(v)-4 PROD Energy'!N350+'FR-16(7)(v)-5 PROD Cust'!N350+'FR-16(7)(v)-7 TRANS Demand'!N350+'FR-16(7)(v)-8 TRANS Energy'!N350+'FR-16(7)(v)-9 TRANS Cust'!N350+'FR-16(7)(v)-11 DIST Demand'!N350+'FR-16(7)(v)-12 DIST Energy'!N350+'FR-16(7)(v)-13 DIST Cust'!N350-'FR-16(7)(v)-14 TOTAL CLASS'!N350","v":0},{"$f":"'FR-16(7)(v)-3 PROD Demand'!O350+'FR-16(7)(v)-4 PROD Energy'!O350+'FR-16(7)(v)-5 PROD Cust'!O350+'FR-16(7)(v)-7 TRANS Demand'!O350+'FR-16(7)(v)-8 TRANS Energy'!O350+'FR-16(7)(v)-9 TRANS Cust'!O350+'FR-16(7)(v)-11 DIST Demand'!O350+'FR-16(7)(v)-12 DIST Energy'!O350+'FR-16(7)(v)-13 DIST Cust'!O350-'FR-16(7)(v)-14 TOTAL CLASS'!O350","v":0},{"$f":"'FR-16(7)(v)-3 PROD Demand'!P350+'FR-16(7)(v)-4 PROD Energy'!P350+'FR-16(7)(v)-5 PROD Cust'!P350+'FR-16(7)(v)-7 TRANS Demand'!P350+'FR-16(7)(v)-8 TRANS Energy'!P350+'FR-16(7)(v)-9 TRANS Cust'!P350+'FR-16(7)(v)-11 DIST Demand'!P350+'FR-16(7)(v)-12 DIST Energy'!P350+'FR-16(7)(v)-13 DIST Cust'!P350-'FR-16(7)(v)-14 TOTAL CLASS'!P350","v":0},{"$f":"'FR-16(7)(v)-3 PROD Demand'!Q350+'FR-16(7)(v)-4 PROD Energy'!Q350+'FR-16(7)(v)-5 PROD Cust'!Q350+'FR-16(7)(v)-7 TRANS Demand'!Q350+'FR-16(7)(v)-8 TRANS Energy'!Q350+'FR-16(7)(v)-9 TRANS Cust'!Q350+'FR-16(7)(v)-11 DIST Demand'!Q350+'FR-16(7)(v)-12 DIST Energy'!Q350+'FR-16(7)(v)-13 DIST Cust'!Q350-'FR-16(7)(v)-14 TOTAL CLASS'!Q350","v":0},0,0]
[16,null,{"$f":"'FR-16(7)(v)-1 Functional'!C351","v":"FEDERAL DEFERRED TAX RECEIVEABLE"},{"$f":"'FR-16(7)(v)-1 Functional'!D351","v":"A315"},null,{"$f":"'FR-16(7)(v)-3 PROD Demand'!F351+'FR-16(7)(v)-4 PROD Energy'!F351+'FR-16(7)(v)-5 PROD Cust'!F351+'FR-16(7)(v)-7 TRANS Demand'!F351+'FR-16(7)(v)-8 TRANS Energy'!F351+'FR-16(7)(v)-9 TRANS Cust'!F351+'FR-16(7)(v)-11 DIST Demand'!F351+'FR-16(7)(v)-12 DIST Energy'!F351+'FR-16(7)(v)-13 DIST Cust'!F351-'FR-16(7)(v)-14 TOTAL CLASS'!F351","v":0},{"$f":"'FR-16(7)(v)-3 PROD Demand'!G351+'FR-16(7)(v)-4 PROD Energy'!G351+'FR-16(7)(v)-5 PROD Cust'!G351+'FR-16(7)(v)-7 TRANS Demand'!G351+'FR-16(7)(v)-8 TRANS Energy'!G351+'FR-16(7)(v)-9 TRANS Cust'!G351+'FR-16(7)(v)-11 DIST Demand'!G351+'FR-16(7)(v)-12 DIST Energy'!G351+'FR-16(7)(v)-13 DIST Cust'!G351-'FR-16(7)(v)-14 TOTAL CLASS'!G351","v":0},{"$f":"'FR-16(7)(v)-3 PROD Demand'!H351+'FR-16(7)(v)-4 PROD Energy'!H351+'FR-16(7)(v)-5 PROD Cust'!H351+'FR-16(7)(v)-7 TRANS Demand'!H351+'FR-16(7)(v)-8 TRANS Energy'!H351+'FR-16(7)(v)-9 TRANS Cust'!H351+'FR-16(7)(v)-11 DIST Demand'!H351+'FR-16(7)(v)-12 DIST Energy'!H351+'FR-16(7)(v)-13 DIST Cust'!H351-'FR-16(7)(v)-14 TOTAL CLASS'!H351","v":0},{"$f":"'FR-16(7)(v)-3 PROD Demand'!I351+'FR-16(7)(v)-4 PROD Energy'!I351+'FR-16(7)(v)-5 PROD Cust'!I351+'FR-16(7)(v)-7 TRANS Demand'!I351+'FR-16(7)(v)-8 TRANS Energy'!I351+'FR-16(7)(v)-9 TRANS Cust'!I351+'FR-16(7)(v)-11 DIST Demand'!I351+'FR-16(7)(v)-12 DIST Energy'!I351+'FR-16(7)(v)-13 DIST Cust'!I351-'FR-16(7)(v)-14 TOTAL CLASS'!I351","v":0},{"$f":"'FR-16(7)(v)-3 PROD Demand'!J351+'FR-16(7)(v)-4 PROD Energy'!J351+'FR-16(7)(v)-5 PROD Cust'!J351+'FR-16(7)(v)-7 TRANS Demand'!J351+'FR-16(7)(v)-8 TRANS Energy'!J351+'FR-16(7)(v)-9 TRANS Cust'!J351+'FR-16(7)(v)-11 DIST Demand'!J351+'FR-16(7)(v)-12 DIST Energy'!J351+'FR-16(7)(v)-13 DIST Cust'!J351-'FR-16(7)(v)-14 TOTAL CLASS'!J351","v":0},{"$f":"'FR-16(7)(v)-3 PROD Demand'!K351+'FR-16(7)(v)-4 PROD Energy'!K351+'FR-16(7)(v)-5 PROD Cust'!K351+'FR-16(7)(v)-7 TRANS Demand'!K351+'FR-16(7)(v)-8 TRANS Energy'!K351+'FR-16(7)(v)-9 TRANS Cust'!K351+'FR-16(7)(v)-11 DIST Demand'!K351+'FR-16(7)(v)-12 DIST Energy'!K351+'FR-16(7)(v)-13 DIST Cust'!K351-'FR-16(7)(v)-14 TOTAL CLASS'!K351","v":0},{"$f":"'FR-16(7)(v)-3 PROD Demand'!L351+'FR-16(7)(v)-4 PROD Energy'!L351+'FR-16(7)(v)-5 PROD Cust'!L351+'FR-16(7)(v)-7 TRANS Demand'!L351+'FR-16(7)(v)-8 TRANS Energy'!L351+'FR-16(7)(v)-9 TRANS Cust'!L351+'FR-16(7)(v)-11 DIST Demand'!L351+'FR-16(7)(v)-12 DIST Energy'!L351+'FR-16(7)(v)-13 DIST Cust'!L351-'FR-16(7)(v)-14 TOTAL CLASS'!L351","v":0},{"$f":"'FR-16(7)(v)-3 PROD Demand'!M351+'FR-16(7)(v)-4 PROD Energy'!M351+'FR-16(7)(v)-5 PROD Cust'!M351+'FR-16(7)(v)-7 TRANS Demand'!M351+'FR-16(7)(v)-8 TRANS Energy'!M351+'FR-16(7)(v)-9 TRANS Cust'!M351+'FR-16(7)(v)-11 DIST Demand'!M351+'FR-16(7)(v)-12 DIST Energy'!M351+'FR-16(7)(v)-13 DIST Cust'!M351-'FR-16(7)(v)-14 TOTAL CLASS'!M351","v":0},{"$f":"'FR-16(7)(v)-3 PROD Demand'!N351+'FR-16(7)(v)-4 PROD Energy'!N351+'FR-16(7)(v)-5 PROD Cust'!N351+'FR-16(7)(v)-7 TRANS Demand'!N351+'FR-16(7)(v)-8 TRANS Energy'!N351+'FR-16(7)(v)-9 TRANS Cust'!N351+'FR-16(7)(v)-11 DIST Demand'!N351+'FR-16(7)(v)-12 DIST Energy'!N351+'FR-16(7)(v)-13 DIST Cust'!N351-'FR-16(7)(v)-14 TOTAL CLASS'!N351","v":0},{"$f":"'FR-16(7)(v)-3 PROD Demand'!O351+'FR-16(7)(v)-4 PROD Energy'!O351+'FR-16(7)(v)-5 PROD Cust'!O351+'FR-16(7)(v)-7 TRANS Demand'!O351+'FR-16(7)(v)-8 TRANS Energy'!O351+'FR-16(7)(v)-9 TRANS Cust'!O351+'FR-16(7)(v)-11 DIST Demand'!O351+'FR-16(7)(v)-12 DIST Energy'!O351+'FR-16(7)(v)-13 DIST Cust'!O351-'FR-16(7)(v)-14 TOTAL CLASS'!O351","v":0},{"$f":"'FR-16(7)(v)-3 PROD Demand'!P351+'FR-16(7)(v)-4 PROD Energy'!P351+'FR-16(7)(v)-5 PROD Cust'!P351+'FR-16(7)(v)-7 TRANS Demand'!P351+'FR-16(7)(v)-8 TRANS Energy'!P351+'FR-16(7)(v)-9 TRANS Cust'!P351+'FR-16(7)(v)-11 DIST Demand'!P351+'FR-16(7)(v)-12 DIST Energy'!P351+'FR-16(7)(v)-13 DIST Cust'!P351-'FR-16(7)(v)-14 TOTAL CLASS'!P351","v":0},{"$f":"'FR-16(7)(v)-3 PROD Demand'!Q351+'FR-16(7)(v)-4 PROD Energy'!Q351+'FR-16(7)(v)-5 PROD Cust'!Q351+'FR-16(7)(v)-7 TRANS Demand'!Q351+'FR-16(7)(v)-8 TRANS Energy'!Q351+'FR-16(7)(v)-9 TRANS Cust'!Q351+'FR-16(7)(v)-11 DIST Demand'!Q351+'FR-16(7)(v)-12 DIST Energy'!Q351+'FR-16(7)(v)-13 DIST Cust'!Q351-'FR-16(7)(v)-14 TOTAL CLASS'!Q351","v":0},0,0]
[17,null,{"$f":"'FR-16(7)(v)-1 Functional'!C352","v":"MISCELLANEOUS"},{"$f":"'FR-16(7)(v)-1 Functional'!D352","v":"A315"},null,{"$f":"'FR-16(7)(v)-3 PROD Demand'!F352+'FR-16(7)(v)-4 PROD Energy'!F352+'FR-16(7)(v)-5 PROD Cust'!F352+'FR-16(7)(v)-7 TRANS Demand'!F352+'FR-16(7)(v)-8 TRANS Energy'!F352+'FR-16(7)(v)-9 TRANS Cust'!F352+'FR-16(7)(v)-11 DIST Demand'!F352+'FR-16(7)(v)-12 DIST Energy'!F352+'FR-16(7)(v)-13 DIST Cust'!F352-'FR-16(7)(v)-14 TOTAL CLASS'!F352","v":0},{"$f":"'FR-16(7)(v)-3 PROD Demand'!G352+'FR-16(7)(v)-4 PROD Energy'!G352+'FR-16(7)(v)-5 PROD Cust'!G352+'FR-16(7)(v)-7 TRANS Demand'!G352+'FR-16(7)(v)-8 TRANS Energy'!G352+'FR-16(7)(v)-9 TRANS Cust'!G352+'FR-16(7)(v)-11 DIST Demand'!G352+'FR-16(7)(v)-12 DIST Energy'!G352+'FR-16(7)(v)-13 DIST Cust'!G352-'FR-16(7)(v)-14 TOTAL CLASS'!G352","v":0},{"$f":"'FR-16(7)(v)-3 PROD Demand'!H352+'FR-16(7)(v)-4 PROD Energy'!H352+'FR-16(7)(v)-5 PROD Cust'!H352+'FR-16(7)(v)-7 TRANS Demand'!H352+'FR-16(7)(v)-8 TRANS Energy'!H352+'FR-16(7)(v)-9 TRANS Cust'!H352+'FR-16(7)(v)-11 DIST Demand'!H352+'FR-16(7)(v)-12 DIST Energy'!H352+'FR-16(7)(v)-13 DIST Cust'!H352-'FR-16(7)(v)-14 TOTAL CLASS'!H352","v":0},{"$f":"'FR-16(7)(v)-3 PROD Demand'!I352+'FR-16(7)(v)-4 PROD Energy'!I352+'FR-16(7)(v)-5 PROD Cust'!I352+'FR-16(7)(v)-7 TRANS Demand'!I352+'FR-16(7)(v)-8 TRANS Energy'!I352+'FR-16(7)(v)-9 TRANS Cust'!I352+'FR-16(7)(v)-11 DIST Demand'!I352+'FR-16(7)(v)-12 DIST Energy'!I352+'FR-16(7)(v)-13 DIST Cust'!I352-'FR-16(7)(v)-14 TOTAL CLASS'!I352","v":0},{"$f":"'FR-16(7)(v)-3 PROD Demand'!J352+'FR-16(7)(v)-4 PROD Energy'!J352+'FR-16(7)(v)-5 PROD Cust'!J352+'FR-16(7)(v)-7 TRANS Demand'!J352+'FR-16(7)(v)-8 TRANS Energy'!J352+'FR-16(7)(v)-9 TRANS Cust'!J352+'FR-16(7)(v)-11 DIST Demand'!J352+'FR-16(7)(v)-12 DIST Energy'!J352+'FR-16(7)(v)-13 DIST Cust'!J352-'FR-16(7)(v)-14 TOTAL CLASS'!J352","v":0},{"$f":"'FR-16(7)(v)-3 PROD Demand'!K352+'FR-16(7)(v)-4 PROD Energy'!K352+'FR-16(7)(v)-5 PROD Cust'!K352+'FR-16(7)(v)-7 TRANS Demand'!K352+'FR-16(7)(v)-8 TRANS Energy'!K352+'FR-16(7)(v)-9 TRANS Cust'!K352+'FR-16(7)(v)-11 DIST Demand'!K352+'FR-16(7)(v)-12 DIST Energy'!K352+'FR-16(7)(v)-13 DIST Cust'!K352-'FR-16(7)(v)-14 TOTAL CLASS'!K352","v":0},{"$f":"'FR-16(7)(v)-3 PROD Demand'!L352+'FR-16(7)(v)-4 PROD Energy'!L352+'FR-16(7)(v)-5 PROD Cust'!L352+'FR-16(7)(v)-7 TRANS Demand'!L352+'FR-16(7)(v)-8 TRANS Energy'!L352+'FR-16(7)(v)-9 TRANS Cust'!L352+'FR-16(7)(v)-11 DIST Demand'!L352+'FR-16(7)(v)-12 DIST Energy'!L352+'FR-16(7)(v)-13 DIST Cust'!L352-'FR-16(7)(v)-14 TOTAL CLASS'!L352","v":0},{"$f":"'FR-16(7)(v)-3 PROD Demand'!M352+'FR-16(7)(v)-4 PROD Energy'!M352+'FR-16(7)(v)-5 PROD Cust'!M352+'FR-16(7)(v)-7 TRANS Demand'!M352+'FR-16(7)(v)-8 TRANS Energy'!M352+'FR-16(7)(v)-9 TRANS Cust'!M352+'FR-16(7)(v)-11 DIST Demand'!M352+'FR-16(7)(v)-12 DIST Energy'!M352+'FR-16(7)(v)-13 DIST Cust'!M352-'FR-16(7)(v)-14 TOTAL CLASS'!M352","v":0},{"$f":"'FR-16(7)(v)-3 PROD Demand'!N352+'FR-16(7)(v)-4 PROD Energy'!N352+'FR-16(7)(v)-5 PROD Cust'!N352+'FR-16(7)(v)-7 TRANS Demand'!N352+'FR-16(7)(v)-8 TRANS Energy'!N352+'FR-16(7)(v)-9 TRANS Cust'!N352+'FR-16(7)(v)-11 DIST Demand'!N352+'FR-16(7)(v)-12 DIST Energy'!N352+'FR-16(7)(v)-13 DIST Cust'!N352-'FR-16(7)(v)-14 TOTAL CLASS'!N352","v":0},{"$f":"'FR-16(7)(v)-3 PROD Demand'!O352+'FR-16(7)(v)-4 PROD Energy'!O352+'FR-16(7)(v)-5 PROD Cust'!O352+'FR-16(7)(v)-7 TRANS Demand'!O352+'FR-16(7)(v)-8 TRANS Energy'!O352+'FR-16(7)(v)-9 TRANS Cust'!O352+'FR-16(7)(v)-11 DIST Demand'!O352+'FR-16(7)(v)-12 DIST Energy'!O352+'FR-16(7)(v)-13 DIST Cust'!O352-'FR-16(7)(v)-14 TOTAL CLASS'!O352","v":0},{"$f":"'FR-16(7)(v)-3 PROD Demand'!P352+'FR-16(7)(v)-4 PROD Energy'!P352+'FR-16(7)(v)-5 PROD Cust'!P352+'FR-16(7)(v)-7 TRANS Demand'!P352+'FR-16(7)(v)-8 TRANS Energy'!P352+'FR-16(7)(v)-9 TRANS Cust'!P352+'FR-16(7)(v)-11 DIST Demand'!P352+'FR-16(7)(v)-12 DIST Energy'!P352+'FR-16(7)(v)-13 DIST Cust'!P352-'FR-16(7)(v)-14 TOTAL CLASS'!P352","v":0},{"$f":"'FR-16(7)(v)-3 PROD Demand'!Q352+'FR-16(7)(v)-4 PROD Energy'!Q352+'FR-16(7)(v)-5 PROD Cust'!Q352+'FR-16(7)(v)-7 TRANS Demand'!Q352+'FR-16(7)(v)-8 TRANS Energy'!Q352+'FR-16(7)(v)-9 TRANS Cust'!Q352+'FR-16(7)(v)-11 DIST Demand'!Q352+'FR-16(7)(v)-12 DIST Energy'!Q352+'FR-16(7)(v)-13 DIST Cust'!Q352-'FR-16(7)(v)-14 TOTAL CLASS'!Q352","v":0},0,0]
[18,null,{"$f":"'FR-16(7)(v)-1 Functional'!C353","v":"DEFERRED TAX"},{"$f":"'FR-16(7)(v)-1 Functional'!D353","v":"A315"},null,{"$f":"'FR-16(7)(v)-3 PROD Demand'!F353+'FR-16(7)(v)-4 PROD Energy'!F353+'FR-16(7)(v)-5 PROD Cust'!F353+'FR-16(7)(v)-7 TRANS Demand'!F353+'FR-16(7)(v)-8 TRANS Energy'!F353+'FR-16(7)(v)-9 TRANS Cust'!F353+'FR-16(7)(v)-11 DIST Demand'!F353+'FR-16(7)(v)-12 DIST Energy'!F353+'FR-16(7)(v)-13 DIST Cust'!F353-'FR-16(7)(v)-14 TOTAL CLASS'!F353","v":0},{"$f":"'FR-16(7)(v)-3 PROD Demand'!G353+'FR-16(7)(v)-4 PROD Energy'!G353+'FR-16(7)(v)-5 PROD Cust'!G353+'FR-16(7)(v)-7 TRANS Demand'!G353+'FR-16(7)(v)-8 TRANS Energy'!G353+'FR-16(7)(v)-9 TRANS Cust'!G353+'FR-16(7)(v)-11 DIST Demand'!G353+'FR-16(7)(v)-12 DIST Energy'!G353+'FR-16(7)(v)-13 DIST Cust'!G353-'FR-16(7)(v)-14 TOTAL CLASS'!G353","v":0},{"$f":"'FR-16(7)(v)-3 PROD Demand'!H353+'FR-16(7)(v)-4 PROD Energy'!H353+'FR-16(7)(v)-5 PROD Cust'!H353+'FR-16(7)(v)-7 TRANS Demand'!H353+'FR-16(7)(v)-8 TRANS Energy'!H353+'FR-16(7)(v)-9 TRANS Cust'!H353+'FR-16(7)(v)-11 DIST Demand'!H353+'FR-16(7)(v)-12 DIST Energy'!H353+'FR-16(7)(v)-13 DIST Cust'!H353-'FR-16(7)(v)-14 TOTAL CLASS'!H353","v":0},{"$f":"'FR-16(7)(v)-3 PROD Demand'!I353+'FR-16(7)(v)-4 PROD Energy'!I353+'FR-16(7)(v)-5 PROD Cust'!I353+'FR-16(7)(v)-7 TRANS Demand'!I353+'FR-16(7)(v)-8 TRANS Energy'!I353+'FR-16(7)(v)-9 TRANS Cust'!I353+'FR-16(7)(v)-11 DIST Demand'!I353+'FR-16(7)(v)-12 DIST Energy'!I353+'FR-16(7)(v)-13 DIST Cust'!I353-'FR-16(7)(v)-14 TOTAL CLASS'!I353","v":0},{"$f":"'FR-16(7)(v)-3 PROD Demand'!J353+'FR-16(7)(v)-4 PROD Energy'!J353+'FR-16(7)(v)-5 PROD Cust'!J353+'FR-16(7)(v)-7 TRANS Demand'!J353+'FR-16(7)(v)-8 TRANS Energy'!J353+'FR-16(7)(v)-9 TRANS Cust'!J353+'FR-16(7)(v)-11 DIST Demand'!J353+'FR-16(7)(v)-12 DIST Energy'!J353+'FR-16(7)(v)-13 DIST Cust'!J353-'FR-16(7)(v)-14 TOTAL CLASS'!J353","v":0},{"$f":"'FR-16(7)(v)-3 PROD Demand'!K353+'FR-16(7)(v)-4 PROD Energy'!K353+'FR-16(7)(v)-5 PROD Cust'!K353+'FR-16(7)(v)-7 TRANS Demand'!K353+'FR-16(7)(v)-8 TRANS Energy'!K353+'FR-16(7)(v)-9 TRANS Cust'!K353+'FR-16(7)(v)-11 DIST Demand'!K353+'FR-16(7)(v)-12 DIST Energy'!K353+'FR-16(7)(v)-13 DIST Cust'!K353-'FR-16(7)(v)-14 TOTAL CLASS'!K353","v":0},{"$f":"'FR-16(7)(v)-3 PROD Demand'!L353+'FR-16(7)(v)-4 PROD Energy'!L353+'FR-16(7)(v)-5 PROD Cust'!L353+'FR-16(7)(v)-7 TRANS Demand'!L353+'FR-16(7)(v)-8 TRANS Energy'!L353+'FR-16(7)(v)-9 TRANS Cust'!L353+'FR-16(7)(v)-11 DIST Demand'!L353+'FR-16(7)(v)-12 DIST Energy'!L353+'FR-16(7)(v)-13 DIST Cust'!L353-'FR-16(7)(v)-14 TOTAL CLASS'!L353","v":0},{"$f":"'FR-16(7)(v)-3 PROD Demand'!M353+'FR-16(7)(v)-4 PROD Energy'!M353+'FR-16(7)(v)-5 PROD Cust'!M353+'FR-16(7)(v)-7 TRANS Demand'!M353+'FR-16(7)(v)-8 TRANS Energy'!M353+'FR-16(7)(v)-9 TRANS Cust'!M353+'FR-16(7)(v)-11 DIST Demand'!M353+'FR-16(7)(v)-12 DIST Energy'!M353+'FR-16(7)(v)-13 DIST Cust'!M353-'FR-16(7)(v)-14 TOTAL CLASS'!M353","v":0},{"$f":"'FR-16(7)(v)-3 PROD Demand'!N353+'FR-16(7)(v)-4 PROD Energy'!N353+'FR-16(7)(v)-5 PROD Cust'!N353+'FR-16(7)(v)-7 TRANS Demand'!N353+'FR-16(7)(v)-8 TRANS Energy'!N353+'FR-16(7)(v)-9 TRANS Cust'!N353+'FR-16(7)(v)-11 DIST Demand'!N353+'FR-16(7)(v)-12 DIST Energy'!N353+'FR-16(7)(v)-13 DIST Cust'!N353-'FR-16(7)(v)-14 TOTAL CLASS'!N353","v":0},{"$f":"'FR-16(7)(v)-3 PROD Demand'!O353+'FR-16(7)(v)-4 PROD Energy'!O353+'FR-16(7)(v)-5 PROD Cust'!O353+'FR-16(7)(v)-7 TRANS Demand'!O353+'FR-16(7)(v)-8 TRANS Energy'!O353+'FR-16(7)(v)-9 TRANS Cust'!O353+'FR-16(7)(v)-11 DIST Demand'!O353+'FR-16(7)(v)-12 DIST Energy'!O353+'FR-16(7)(v)-13 DIST Cust'!O353-'FR-16(7)(v)-14 TOTAL CLASS'!O353","v":0},{"$f":"'FR-16(7)(v)-3 PROD Demand'!P353+'FR-16(7)(v)-4 PROD Energy'!P353+'FR-16(7)(v)-5 PROD Cust'!P353+'FR-16(7)(v)-7 TRANS Demand'!P353+'FR-16(7)(v)-8 TRANS Energy'!P353+'FR-16(7)(v)-9 TRANS Cust'!P353+'FR-16(7)(v)-11 DIST Demand'!P353+'FR-16(7)(v)-12 DIST Energy'!P353+'FR-16(7)(v)-13 DIST Cust'!P353-'FR-16(7)(v)-14 TOTAL CLASS'!P353","v":0},{"$f":"'FR-16(7)(v)-3 PROD Demand'!Q353+'FR-16(7)(v)-4 PROD Energy'!Q353+'FR-16(7)(v)-5 PROD Cust'!Q353+'FR-16(7)(v)-7 TRANS Demand'!Q353+'FR-16(7)(v)-8 TRANS Energy'!Q353+'FR-16(7)(v)-9 TRANS Cust'!Q353+'FR-16(7)(v)-11 DIST Demand'!Q353+'FR-16(7)(v)-12 DIST Energy'!Q353+'FR-16(7)(v)-13 DIST Cust'!Q353-'FR-16(7)(v)-14 TOTAL CLASS'!Q353","v":0},0,0]
[19,null,{"$f":"'FR-16(7)(v)-1 Functional'!C354","v":"NET OPERATING LOSS"},{"$f":"'FR-16(7)(v)-1 Functional'!D354","v":"NP29"},null,{"$f":"'FR-16(7)(v)-3 PROD Demand'!F354+'FR-16(7)(v)-4 PROD Energy'!F354+'FR-16(7)(v)-5 PROD Cust'!F354+'FR-16(7)(v)-7 TRANS Demand'!F354+'FR-16(7)(v)-8 TRANS Energy'!F354+'FR-16(7)(v)-9 TRANS Cust'!F354+'FR-16(7)(v)-11 DIST Demand'!F354+'FR-16(7)(v)-12 DIST Energy'!F354+'FR-16(7)(v)-13 DIST Cust'!F354-'FR-16(7)(v)-14 TOTAL CLASS'!F354","v":0},{"$f":"'FR-16(7)(v)-3 PROD Demand'!G354+'FR-16(7)(v)-4 PROD Energy'!G354+'FR-16(7)(v)-5 PROD Cust'!G354+'FR-16(7)(v)-7 TRANS Demand'!G354+'FR-16(7)(v)-8 TRANS Energy'!G354+'FR-16(7)(v)-9 TRANS Cust'!G354+'FR-16(7)(v)-11 DIST Demand'!G354+'FR-16(7)(v)-12 DIST Energy'!G354+'FR-16(7)(v)-13 DIST Cust'!G354-'FR-16(7)(v)-14 TOTAL CLASS'!G354","v":0},{"$f":"'FR-16(7)(v)-3 PROD Demand'!H354+'FR-16(7)(v)-4 PROD Energy'!H354+'FR-16(7)(v)-5 PROD Cust'!H354+'FR-16(7)(v)-7 TRANS Demand'!H354+'FR-16(7)(v)-8 TRANS Energy'!H354+'FR-16(7)(v)-9 TRANS Cust'!H354+'FR-16(7)(v)-11 DIST Demand'!H354+'FR-16(7)(v)-12 DIST Energy'!H354+'FR-16(7)(v)-13 DIST Cust'!H354-'FR-16(7)(v)-14 TOTAL CLASS'!H354","v":0},{"$f":"'FR-16(7)(v)-3 PROD Demand'!I354+'FR-16(7)(v)-4 PROD Energy'!I354+'FR-16(7)(v)-5 PROD Cust'!I354+'FR-16(7)(v)-7 TRANS Demand'!I354+'FR-16(7)(v)-8 TRANS Energy'!I354+'FR-16(7)(v)-9 TRANS Cust'!I354+'FR-16(7)(v)-11 DIST Demand'!I354+'FR-16(7)(v)-12 DIST Energy'!I354+'FR-16(7)(v)-13 DIST Cust'!I354-'FR-16(7)(v)-14 TOTAL CLASS'!I354","v":0},{"$f":"'FR-16(7)(v)-3 PROD Demand'!J354+'FR-16(7)(v)-4 PROD Energy'!J354+'FR-16(7)(v)-5 PROD Cust'!J354+'FR-16(7)(v)-7 TRANS Demand'!J354+'FR-16(7)(v)-8 TRANS Energy'!J354+'FR-16(7)(v)-9 TRANS Cust'!J354+'FR-16(7)(v)-11 DIST Demand'!J354+'FR-16(7)(v)-12 DIST Energy'!J354+'FR-16(7)(v)-13 DIST Cust'!J354-'FR-16(7)(v)-14 TOTAL CLASS'!J354","v":0},{"$f":"'FR-16(7)(v)-3 PROD Demand'!K354+'FR-16(7)(v)-4 PROD Energy'!K354+'FR-16(7)(v)-5 PROD Cust'!K354+'FR-16(7)(v)-7 TRANS Demand'!K354+'FR-16(7)(v)-8 TRANS Energy'!K354+'FR-16(7)(v)-9 TRANS Cust'!K354+'FR-16(7)(v)-11 DIST Demand'!K354+'FR-16(7)(v)-12 DIST Energy'!K354+'FR-16(7)(v)-13 DIST Cust'!K354-'FR-16(7)(v)-14 TOTAL CLASS'!K354","v":0},{"$f":"'FR-16(7)(v)-3 PROD Demand'!L354+'FR-16(7)(v)-4 PROD Energy'!L354+'FR-16(7)(v)-5 PROD Cust'!L354+'FR-16(7)(v)-7 TRANS Demand'!L354+'FR-16(7)(v)-8 TRANS Energy'!L354+'FR-16(7)(v)-9 TRANS Cust'!L354+'FR-16(7)(v)-11 DIST Demand'!L354+'FR-16(7)(v)-12 DIST Energy'!L354+'FR-16(7)(v)-13 DIST Cust'!L354-'FR-16(7)(v)-14 TOTAL CLASS'!L354","v":0},{"$f":"'FR-16(7)(v)-3 PROD Demand'!M354+'FR-16(7)(v)-4 PROD Energy'!M354+'FR-16(7)(v)-5 PROD Cust'!M354+'FR-16(7)(v)-7 TRANS Demand'!M354+'FR-16(7)(v)-8 TRANS Energy'!M354+'FR-16(7)(v)-9 TRANS Cust'!M354+'FR-16(7)(v)-11 DIST Demand'!M354+'FR-16(7)(v)-12 DIST Energy'!M354+'FR-16(7)(v)-13 DIST Cust'!M354-'FR-16(7)(v)-14 TOTAL CLASS'!M354","v":0},{"$f":"'FR-16(7)(v)-3 PROD Demand'!N354+'FR-16(7)(v)-4 PROD Energy'!N354+'FR-16(7)(v)-5 PROD Cust'!N354+'FR-16(7)(v)-7 TRANS Demand'!N354+'FR-16(7)(v)-8 TRANS Energy'!N354+'FR-16(7)(v)-9 TRANS Cust'!N354+'FR-16(7)(v)-11 DIST Demand'!N354+'FR-16(7)(v)-12 DIST Energy'!N354+'FR-16(7)(v)-13 DIST Cust'!N354-'FR-16(7)(v)-14 TOTAL CLASS'!N354","v":0},{"$f":"'FR-16(7)(v)-3 PROD Demand'!O354+'FR-16(7)(v)-4 PROD Energy'!O354+'FR-16(7)(v)-5 PROD Cust'!O354+'FR-16(7)(v)-7 TRANS Demand'!O354+'FR-16(7)(v)-8 TRANS Energy'!O354+'FR-16(7)(v)-9 TRANS Cust'!O354+'FR-16(7)(v)-11 DIST Demand'!O354+'FR-16(7)(v)-12 DIST Energy'!O354+'FR-16(7)(v)-13 DIST Cust'!O354-'FR-16(7)(v)-14 TOTAL CLASS'!O354","v":0},{"$f":"'FR-16(7)(v)-3 PROD Demand'!P354+'FR-16(7)(v)-4 PROD Energy'!P354+'FR-16(7)(v)-5 PROD Cust'!P354+'FR-16(7)(v)-7 TRANS Demand'!P354+'FR-16(7)(v)-8 TRANS Energy'!P354+'FR-16(7)(v)-9 TRANS Cust'!P354+'FR-16(7)(v)-11 DIST Demand'!P354+'FR-16(7)(v)-12 DIST Energy'!P354+'FR-16(7)(v)-13 DIST Cust'!P354-'FR-16(7)(v)-14 TOTAL CLASS'!P354","v":0},{"$f":"'FR-16(7)(v)-3 PROD Demand'!Q354+'FR-16(7)(v)-4 PROD Energy'!Q354+'FR-16(7)(v)-5 PROD Cust'!Q354+'FR-16(7)(v)-7 TRANS Demand'!Q354+'FR-16(7)(v)-8 TRANS Energy'!Q354+'FR-16(7)(v)-9 TRANS Cust'!Q354+'FR-16(7)(v)-11 DIST Demand'!Q354+'FR-16(7)(v)-12 DIST Energy'!Q354+'FR-16(7)(v)-13 DIST Cust'!Q354-'FR-16(7)(v)-14 TOTAL CLASS'!Q354","v":0},0,0]
[20,null,{"$f":"'FR-16(7)(v)-1 Functional'!C355","v":"401K INCENTIVE PLAN"},{"$f":"'FR-16(7)(v)-1 Functional'!D355","v":"A315"},null,{"$f":"'FR-16(7)(v)-3 PROD Demand'!F355+'FR-16(7)(v)-4 PROD Energy'!F355+'FR-16(7)(v)-5 PROD Cust'!F355+'FR-16(7)(v)-7 TRANS Demand'!F355+'FR-16(7)(v)-8 TRANS Energy'!F355+'FR-16(7)(v)-9 TRANS Cust'!F355+'FR-16(7)(v)-11 DIST Demand'!F355+'FR-16(7)(v)-12 DIST Energy'!F355+'FR-16(7)(v)-13 DIST Cust'!F355-'FR-16(7)(v)-14 TOTAL CLASS'!F355","v":0},{"$f":"'FR-16(7)(v)-3 PROD Demand'!G355+'FR-16(7)(v)-4 PROD Energy'!G355+'FR-16(7)(v)-5 PROD Cust'!G355+'FR-16(7)(v)-7 TRANS Demand'!G355+'FR-16(7)(v)-8 TRANS Energy'!G355+'FR-16(7)(v)-9 TRANS Cust'!G355+'FR-16(7)(v)-11 DIST Demand'!G355+'FR-16(7)(v)-12 DIST Energy'!G355+'FR-16(7)(v)-13 DIST Cust'!G355-'FR-16(7)(v)-14 TOTAL CLASS'!G355","v":0},{"$f":"'FR-16(7)(v)-3 PROD Demand'!H355+'FR-16(7)(v)-4 PROD Energy'!H355+'FR-16(7)(v)-5 PROD Cust'!H355+'FR-16(7)(v)-7 TRANS Demand'!H355+'FR-16(7)(v)-8 TRANS Energy'!H355+'FR-16(7)(v)-9 TRANS Cust'!H355+'FR-16(7)(v)-11 DIST Demand'!H355+'FR-16(7)(v)-12 DIST Energy'!H355+'FR-16(7)(v)-13 DIST Cust'!H355-'FR-16(7)(v)-14 TOTAL CLASS'!H355","v":0},{"$f":"'FR-16(7)(v)-3 PROD Demand'!I355+'FR-16(7)(v)-4 PROD Energy'!I355+'FR-16(7)(v)-5 PROD Cust'!I355+'FR-16(7)(v)-7 TRANS Demand'!I355+'FR-16(7)(v)-8 TRANS Energy'!I355+'FR-16(7)(v)-9 TRANS Cust'!I355+'FR-16(7)(v)-11 DIST Demand'!I355+'FR-16(7)(v)-12 DIST Energy'!I355+'FR-16(7)(v)-13 DIST Cust'!I355-'FR-16(7)(v)-14 TOTAL CLASS'!I355","v":0},{"$f":"'FR-16(7)(v)-3 PROD Demand'!J355+'FR-16(7)(v)-4 PROD Energy'!J355+'FR-16(7)(v)-5 PROD Cust'!J355+'FR-16(7)(v)-7 TRANS Demand'!J355+'FR-16(7)(v)-8 TRANS Energy'!J355+'FR-16(7)(v)-9 TRANS Cust'!J355+'FR-16(7)(v)-11 DIST Demand'!J355+'FR-16(7)(v)-12 DIST Energy'!J355+'FR-16(7)(v)-13 DIST Cust'!J355-'FR-16(7)(v)-14 TOTAL CLASS'!J355","v":0},{"$f":"'FR-16(7)(v)-3 PROD Demand'!K355+'FR-16(7)(v)-4 PROD Energy'!K355+'FR-16(7)(v)-5 PROD Cust'!K355+'FR-16(7)(v)-7 TRANS Demand'!K355+'FR-16(7)(v)-8 TRANS Energy'!K355+'FR-16(7)(v)-9 TRANS Cust'!K355+'FR-16(7)(v)-11 DIST Demand'!K355+'FR-16(7)(v)-12 DIST Energy'!K355+'FR-16(7)(v)-13 DIST Cust'!K355-'FR-16(7)(v)-14 TOTAL CLASS'!K355","v":0},{"$f":"'FR-16(7)(v)-3 PROD Demand'!L355+'FR-16(7)(v)-4 PROD Energy'!L355+'FR-16(7)(v)-5 PROD Cust'!L355+'FR-16(7)(v)-7 TRANS Demand'!L355+'FR-16(7)(v)-8 TRANS Energy'!L355+'FR-16(7)(v)-9 TRANS Cust'!L355+'FR-16(7)(v)-11 DIST Demand'!L355+'FR-16(7)(v)-12 DIST Energy'!L355+'FR-16(7)(v)-13 DIST Cust'!L355-'FR-16(7)(v)-14 TOTAL CLASS'!L355","v":0},{"$f":"'FR-16(7)(v)-3 PROD Demand'!M355+'FR-16(7)(v)-4 PROD Energy'!M355+'FR-16(7)(v)-5 PROD Cust'!M355+'FR-16(7)(v)-7 TRANS Demand'!M355+'FR-16(7)(v)-8 TRANS Energy'!M355+'FR-16(7)(v)-9 TRANS Cust'!M355+'FR-16(7)(v)-11 DIST Demand'!M355+'FR-16(7)(v)-12 DIST Energy'!M355+'FR-16(7)(v)-13 DIST Cust'!M355-'FR-16(7)(v)-14 TOTAL CLASS'!M355","v":0},{"$f":"'FR-16(7)(v)-3 PROD Demand'!N355+'FR-16(7)(v)-4 PROD Energy'!N355+'FR-16(7)(v)-5 PROD Cust'!N355+'FR-16(7)(v)-7 TRANS Demand'!N355+'FR-16(7)(v)-8 TRANS Energy'!N355+'FR-16(7)(v)-9 TRANS Cust'!N355+'FR-16(7)(v)-11 DIST Demand'!N355+'FR-16(7)(v)-12 DIST Energy'!N355+'FR-16(7)(v)-13 DIST Cust'!N355-'FR-16(7)(v)-14 TOTAL CLASS'!N355","v":0},{"$f":"'FR-16(7)(v)-3 PROD Demand'!O355+'FR-16(7)(v)-4 PROD Energy'!O355+'FR-16(7)(v)-5 PROD Cust'!O355+'FR-16(7)(v)-7 TRANS Demand'!O355+'FR-16(7)(v)-8 TRANS Energy'!O355+'FR-16(7)(v)-9 TRANS Cust'!O355+'FR-16(7)(v)-11 DIST Demand'!O355+'FR-16(7)(v)-12 DIST Energy'!O355+'FR-16(7)(v)-13 DIST Cust'!O355-'FR-16(7)(v)-14 TOTAL CLASS'!O355","v":0},{"$f":"'FR-16(7)(v)-3 PROD Demand'!P355+'FR-16(7)(v)-4 PROD Energy'!P355+'FR-16(7)(v)-5 PROD Cust'!P355+'FR-16(7)(v)-7 TRANS Demand'!P355+'FR-16(7)(v)-8 TRANS Energy'!P355+'FR-16(7)(v)-9 TRANS Cust'!P355+'FR-16(7)(v)-11 DIST Demand'!P355+'FR-16(7)(v)-12 DIST Energy'!P355+'FR-16(7)(v)-13 DIST Cust'!P355-'FR-16(7)(v)-14 TOTAL CLASS'!P355","v":0},{"$f":"'FR-16(7)(v)-3 PROD Demand'!Q355+'FR-16(7)(v)-4 PROD Energy'!Q355+'FR-16(7)(v)-5 PROD Cust'!Q355+'FR-16(7)(v)-7 TRANS Demand'!Q355+'FR-16(7)(v)-8 TRANS Energy'!Q355+'FR-16(7)(v)-9 TRANS Cust'!Q355+'FR-16(7)(v)-11 DIST Demand'!Q355+'FR-16(7)(v)-12 DIST Energy'!Q355+'FR-16(7)(v)-13 DIST Cust'!Q355-'FR-16(7)(v)-14 TOTAL CLASS'!Q355","v":0},0,0]
[21,null,{"$f":"'FR-16(7)(v)-1 Functional'!C356","v":"ENVIRONMENTAL RESERVE"},{"$f":"'FR-16(7)(v)-1 Functional'!D356","v":"NP29"},null,{"$f":"'FR-16(7)(v)-3 PROD Demand'!F356+'FR-16(7)(v)-4 PROD Energy'!F356+'FR-16(7)(v)-5 PROD Cust'!F356+'FR-16(7)(v)-7 TRANS Demand'!F356+'FR-16(7)(v)-8 TRANS Energy'!F356+'FR-16(7)(v)-9 TRANS Cust'!F356+'FR-16(7)(v)-11 DIST Demand'!F356+'FR-16(7)(v)-12 DIST Energy'!F356+'FR-16(7)(v)-13 DIST Cust'!F356-'FR-16(7)(v)-14 TOTAL CLASS'!F356","v":0},{"$f":"'FR-16(7)(v)-3 PROD Demand'!G356+'FR-16(7)(v)-4 PROD Energy'!G356+'FR-16(7)(v)-5 PROD Cust'!G356+'FR-16(7)(v)-7 TRANS Demand'!G356+'FR-16(7)(v)-8 TRANS Energy'!G356+'FR-16(7)(v)-9 TRANS Cust'!G356+'FR-16(7)(v)-11 DIST Demand'!G356+'FR-16(7)(v)-12 DIST Energy'!G356+'FR-16(7)(v)-13 DIST Cust'!G356-'FR-16(7)(v)-14 TOTAL CLASS'!G356","v":0},{"$f":"'FR-16(7)(v)-3 PROD Demand'!H356+'FR-16(7)(v)-4 PROD Energy'!H356+'FR-16(7)(v)-5 PROD Cust'!H356+'FR-16(7)(v)-7 TRANS Demand'!H356+'FR-16(7)(v)-8 TRANS Energy'!H356+'FR-16(7)(v)-9 TRANS Cust'!H356+'FR-16(7)(v)-11 DIST Demand'!H356+'FR-16(7)(v)-12 DIST Energy'!H356+'FR-16(7)(v)-13 DIST Cust'!H356-'FR-16(7)(v)-14 TOTAL CLASS'!H356","v":0},{"$f":"'FR-16(7)(v)-3 PROD Demand'!I356+'FR-16(7)(v)-4 PROD Energy'!I356+'FR-16(7)(v)-5 PROD Cust'!I356+'FR-16(7)(v)-7 TRANS Demand'!I356+'FR-16(7)(v)-8 TRANS Energy'!I356+'FR-16(7)(v)-9 TRANS Cust'!I356+'FR-16(7)(v)-11 DIST Demand'!I356+'FR-16(7)(v)-12 DIST Energy'!I356+'FR-16(7)(v)-13 DIST Cust'!I356-'FR-16(7)(v)-14 TOTAL CLASS'!I356","v":0},{"$f":"'FR-16(7)(v)-3 PROD Demand'!J356+'FR-16(7)(v)-4 PROD Energy'!J356+'FR-16(7)(v)-5 PROD Cust'!J356+'FR-16(7)(v)-7 TRANS Demand'!J356+'FR-16(7)(v)-8 TRANS Energy'!J356+'FR-16(7)(v)-9 TRANS Cust'!J356+'FR-16(7)(v)-11 DIST Demand'!J356+'FR-16(7)(v)-12 DIST Energy'!J356+'FR-16(7)(v)-13 DIST Cust'!J356-'FR-16(7)(v)-14 TOTAL CLASS'!J356","v":0},{"$f":"'FR-16(7)(v)-3 PROD Demand'!K356+'FR-16(7)(v)-4 PROD Energy'!K356+'FR-16(7)(v)-5 PROD Cust'!K356+'FR-16(7)(v)-7 TRANS Demand'!K356+'FR-16(7)(v)-8 TRANS Energy'!K356+'FR-16(7)(v)-9 TRANS Cust'!K356+'FR-16(7)(v)-11 DIST Demand'!K356+'FR-16(7)(v)-12 DIST Energy'!K356+'FR-16(7)(v)-13 DIST Cust'!K356-'FR-16(7)(v)-14 TOTAL CLASS'!K356","v":0},{"$f":"'FR-16(7)(v)-3 PROD Demand'!L356+'FR-16(7)(v)-4 PROD Energy'!L356+'FR-16(7)(v)-5 PROD Cust'!L356+'FR-16(7)(v)-7 TRANS Demand'!L356+'FR-16(7)(v)-8 TRANS Energy'!L356+'FR-16(7)(v)-9 TRANS Cust'!L356+'FR-16(7)(v)-11 DIST Demand'!L356+'FR-16(7)(v)-12 DIST Energy'!L356+'FR-16(7)(v)-13 DIST Cust'!L356-'FR-16(7)(v)-14 TOTAL CLASS'!L356","v":0},{"$f":"'FR-16(7)(v)-3 PROD Demand'!M356+'FR-16(7)(v)-4 PROD Energy'!M356+'FR-16(7)(v)-5 PROD Cust'!M356+'FR-16(7)(v)-7 TRANS Demand'!M356+'FR-16(7)(v)-8 TRANS Energy'!M356+'FR-16(7)(v)-9 TRANS Cust'!M356+'FR-16(7)(v)-11 DIST Demand'!M356+'FR-16(7)(v)-12 DIST Energy'!M356+'FR-16(7)(v)-13 DIST Cust'!M356-'FR-16(7)(v)-14 TOTAL CLASS'!M356","v":0},{"$f":"'FR-16(7)(v)-3 PROD Demand'!N356+'FR-16(7)(v)-4 PROD Energy'!N356+'FR-16(7)(v)-5 PROD Cust'!N356+'FR-16(7)(v)-7 TRANS Demand'!N356+'FR-16(7)(v)-8 TRANS Energy'!N356+'FR-16(7)(v)-9 TRANS Cust'!N356+'FR-16(7)(v)-11 DIST Demand'!N356+'FR-16(7)(v)-12 DIST Energy'!N356+'FR-16(7)(v)-13 DIST Cust'!N356-'FR-16(7)(v)-14 TOTAL CLASS'!N356","v":0},{"$f":"'FR-16(7)(v)-3 PROD Demand'!O356+'FR-16(7)(v)-4 PROD Energy'!O356+'FR-16(7)(v)-5 PROD Cust'!O356+'FR-16(7)(v)-7 TRANS Demand'!O356+'FR-16(7)(v)-8 TRANS Energy'!O356+'FR-16(7)(v)-9 TRANS Cust'!O356+'FR-16(7)(v)-11 DIST Demand'!O356+'FR-16(7)(v)-12 DIST Energy'!O356+'FR-16(7)(v)-13 DIST Cust'!O356-'FR-16(7)(v)-14 TOTAL CLASS'!O356","v":0},{"$f":"'FR-16(7)(v)-3 PROD Demand'!P356+'FR-16(7)(v)-4 PROD Energy'!P356+'FR-16(7)(v)-5 PROD Cust'!P356+'FR-16(7)(v)-7 TRANS Demand'!P356+'FR-16(7)(v)-8 TRANS Energy'!P356+'FR-16(7)(v)-9 TRANS Cust'!P356+'FR-16(7)(v)-11 DIST Demand'!P356+'FR-16(7)(v)-12 DIST Energy'!P356+'FR-16(7)(v)-13 DIST Cust'!P356-'FR-16(7)(v)-14 TOTAL CLASS'!P356","v":0},{"$f":"'FR-16(7)(v)-3 PROD Demand'!Q356+'FR-16(7)(v)-4 PROD Energy'!Q356+'FR-16(7)(v)-5 PROD Cust'!Q356+'FR-16(7)(v)-7 TRANS Demand'!Q356+'FR-16(7)(v)-8 TRANS Energy'!Q356+'FR-16(7)(v)-9 TRANS Cust'!Q356+'FR-16(7)(v)-11 DIST Demand'!Q356+'FR-16(7)(v)-12 DIST Energy'!Q356+'FR-16(7)(v)-13 DIST Cust'!Q356-'FR-16(7)(v)-14 TOTAL CLASS'!Q356","v":0},0,0]
[22,null,{"$f":"'FR-16(7)(v)-1 Functional'!C357","v":"VACATION PAY ACCRUALS"},{"$f":"'FR-16(7)(v)-1 Functional'!D357","v":"A315"},null,{"$f":"'FR-16(7)(v)-3 PROD Demand'!F357+'FR-16(7)(v)-4 PROD Energy'!F357+'FR-16(7)(v)-5 PROD Cust'!F357+'FR-16(7)(v)-7 TRANS Demand'!F357+'FR-16(7)(v)-8 TRANS Energy'!F357+'FR-16(7)(v)-9 TRANS Cust'!F357+'FR-16(7)(v)-11 DIST Demand'!F357+'FR-16(7)(v)-12 DIST Energy'!F357+'FR-16(7)(v)-13 DIST Cust'!F357-'FR-16(7)(v)-14 TOTAL CLASS'!F357","v":0},{"$f":"'FR-16(7)(v)-3 PROD Demand'!G357+'FR-16(7)(v)-4 PROD Energy'!G357+'FR-16(7)(v)-5 PROD Cust'!G357+'FR-16(7)(v)-7 TRANS Demand'!G357+'FR-16(7)(v)-8 TRANS Energy'!G357+'FR-16(7)(v)-9 TRANS Cust'!G357+'FR-16(7)(v)-11 DIST Demand'!G357+'FR-16(7)(v)-12 DIST Energy'!G357+'FR-16(7)(v)-13 DIST Cust'!G357-'FR-16(7)(v)-14 TOTAL CLASS'!G357","v":0},{"$f":"'FR-16(7)(v)-3 PROD Demand'!H357+'FR-16(7)(v)-4 PROD Energy'!H357+'FR-16(7)(v)-5 PROD Cust'!H357+'FR-16(7)(v)-7 TRANS Demand'!H357+'FR-16(7)(v)-8 TRANS Energy'!H357+'FR-16(7)(v)-9 TRANS Cust'!H357+'FR-16(7)(v)-11 DIST Demand'!H357+'FR-16(7)(v)-12 DIST Energy'!H357+'FR-16(7)(v)-13 DIST Cust'!H357-'FR-16(7)(v)-14 TOTAL CLASS'!H357","v":0},{"$f":"'FR-16(7)(v)-3 PROD Demand'!I357+'FR-16(7)(v)-4 PROD Energy'!I357+'FR-16(7)(v)-5 PROD Cust'!I357+'FR-16(7)(v)-7 TRANS Demand'!I357+'FR-16(7)(v)-8 TRANS Energy'!I357+'FR-16(7)(v)-9 TRANS Cust'!I357+'FR-16(7)(v)-11 DIST Demand'!I357+'FR-16(7)(v)-12 DIST Energy'!I357+'FR-16(7)(v)-13 DIST Cust'!I357-'FR-16(7)(v)-14 TOTAL CLASS'!I357","v":0},{"$f":"'FR-16(7)(v)-3 PROD Demand'!J357+'FR-16(7)(v)-4 PROD Energy'!J357+'FR-16(7)(v)-5 PROD Cust'!J357+'FR-16(7)(v)-7 TRANS Demand'!J357+'FR-16(7)(v)-8 TRANS Energy'!J357+'FR-16(7)(v)-9 TRANS Cust'!J357+'FR-16(7)(v)-11 DIST Demand'!J357+'FR-16(7)(v)-12 DIST Energy'!J357+'FR-16(7)(v)-13 DIST Cust'!J357-'FR-16(7)(v)-14 TOTAL CLASS'!J357","v":0},{"$f":"'FR-16(7)(v)-3 PROD Demand'!K357+'FR-16(7)(v)-4 PROD Energy'!K357+'FR-16(7)(v)-5 PROD Cust'!K357+'FR-16(7)(v)-7 TRANS Demand'!K357+'FR-16(7)(v)-8 TRANS Energy'!K357+'FR-16(7)(v)-9 TRANS Cust'!K357+'FR-16(7)(v)-11 DIST Demand'!K357+'FR-16(7)(v)-12 DIST Energy'!K357+'FR-16(7)(v)-13 DIST Cust'!K357-'FR-16(7)(v)-14 TOTAL CLASS'!K357","v":0},{"$f":"'FR-16(7)(v)-3 PROD Demand'!L357+'FR-16(7)(v)-4 PROD Energy'!L357+'FR-16(7)(v)-5 PROD Cust'!L357+'FR-16(7)(v)-7 TRANS Demand'!L357+'FR-16(7)(v)-8 TRANS Energy'!L357+'FR-16(7)(v)-9 TRANS Cust'!L357+'FR-16(7)(v)-11 DIST Demand'!L357+'FR-16(7)(v)-12 DIST Energy'!L357+'FR-16(7)(v)-13 DIST Cust'!L357-'FR-16(7)(v)-14 TOTAL CLASS'!L357","v":0},{"$f":"'FR-16(7)(v)-3 PROD Demand'!M357+'FR-16(7)(v)-4 PROD Energy'!M357+'FR-16(7)(v)-5 PROD Cust'!M357+'FR-16(7)(v)-7 TRANS Demand'!M357+'FR-16(7)(v)-8 TRANS Energy'!M357+'FR-16(7)(v)-9 TRANS Cust'!M357+'FR-16(7)(v)-11 DIST Demand'!M357+'FR-16(7)(v)-12 DIST Energy'!M357+'FR-16(7)(v)-13 DIST Cust'!M357-'FR-16(7)(v)-14 TOTAL CLASS'!M357","v":0},{"$f":"'FR-16(7)(v)-3 PROD Demand'!N357+'FR-16(7)(v)-4 PROD Energy'!N357+'FR-16(7)(v)-5 PROD Cust'!N357+'FR-16(7)(v)-7 TRANS Demand'!N357+'FR-16(7)(v)-8 TRANS Energy'!N357+'FR-16(7)(v)-9 TRANS Cust'!N357+'FR-16(7)(v)-11 DIST Demand'!N357+'FR-16(7)(v)-12 DIST Energy'!N357+'FR-16(7)(v)-13 DIST Cust'!N357-'FR-16(7)(v)-14 TOTAL CLASS'!N357","v":0},{"$f":"'FR-16(7)(v)-3 PROD Demand'!O357+'FR-16(7)(v)-4 PROD Energy'!O357+'FR-16(7)(v)-5 PROD Cust'!O357+'FR-16(7)(v)-7 TRANS Demand'!O357+'FR-16(7)(v)-8 TRANS Energy'!O357+'FR-16(7)(v)-9 TRANS Cust'!O357+'FR-16(7)(v)-11 DIST Demand'!O357+'FR-16(7)(v)-12 DIST Energy'!O357+'FR-16(7)(v)-13 DIST Cust'!O357-'FR-16(7)(v)-14 TOTAL CLASS'!O357","v":0},{"$f":"'FR-16(7)(v)-3 PROD Demand'!P357+'FR-16(7)(v)-4 PROD Energy'!P357+'FR-16(7)(v)-5 PROD Cust'!P357+'FR-16(7)(v)-7 TRANS Demand'!P357+'FR-16(7)(v)-8 TRANS Energy'!P357+'FR-16(7)(v)-9 TRANS Cust'!P357+'FR-16(7)(v)-11 DIST Demand'!P357+'FR-16(7)(v)-12 DIST Energy'!P357+'FR-16(7)(v)-13 DIST Cust'!P357-'FR-16(7)(v)-14 TOTAL CLASS'!P357","v":0},{"$f":"'FR-16(7)(v)-3 PROD Demand'!Q357+'FR-16(7)(v)-4 PROD Energy'!Q357+'FR-16(7)(v)-5 PROD Cust'!Q357+'FR-16(7)(v)-7 TRANS Demand'!Q357+'FR-16(7)(v)-8 TRANS Energy'!Q357+'FR-16(7)(v)-9 TRANS Cust'!Q357+'FR-16(7)(v)-11 DIST Demand'!Q357+'FR-16(7)(v)-12 DIST Energy'!Q357+'FR-16(7)(v)-13 DIST Cust'!Q357-'FR-16(7)(v)-14 TOTAL CLASS'!Q357","v":0},0,0]
[23,null,{"$f":"'FR-16(7)(v)-1 Functional'!C358","v":"DEMAND SIDE MANAGEMENT DEFERRAL"},{"$f":"'FR-16(7)(v)-1 Functional'!D358","v":"NP29"},null,{"$f":"'FR-16(7)(v)-3 PROD Demand'!F358+'FR-16(7)(v)-4 PROD Energy'!F358+'FR-16(7)(v)-5 PROD Cust'!F358+'FR-16(7)(v)-7 TRANS Demand'!F358+'FR-16(7)(v)-8 TRANS Energy'!F358+'FR-16(7)(v)-9 TRANS Cust'!F358+'FR-16(7)(v)-11 DIST Demand'!F358+'FR-16(7)(v)-12 DIST Energy'!F358+'FR-16(7)(v)-13 DIST Cust'!F358-'FR-16(7)(v)-14 TOTAL CLASS'!F358","v":0},{"$f":"'FR-16(7)(v)-3 PROD Demand'!G358+'FR-16(7)(v)-4 PROD Energy'!G358+'FR-16(7)(v)-5 PROD Cust'!G358+'FR-16(7)(v)-7 TRANS Demand'!G358+'FR-16(7)(v)-8 TRANS Energy'!G358+'FR-16(7)(v)-9 TRANS Cust'!G358+'FR-16(7)(v)-11 DIST Demand'!G358+'FR-16(7)(v)-12 DIST Energy'!G358+'FR-16(7)(v)-13 DIST Cust'!G358-'FR-16(7)(v)-14 TOTAL CLASS'!G358","v":0},{"$f":"'FR-16(7)(v)-3 PROD Demand'!H358+'FR-16(7)(v)-4 PROD Energy'!H358+'FR-16(7)(v)-5 PROD Cust'!H358+'FR-16(7)(v)-7 TRANS Demand'!H358+'FR-16(7)(v)-8 TRANS Energy'!H358+'FR-16(7)(v)-9 TRANS Cust'!H358+'FR-16(7)(v)-11 DIST Demand'!H358+'FR-16(7)(v)-12 DIST Energy'!H358+'FR-16(7)(v)-13 DIST Cust'!H358-'FR-16(7)(v)-14 TOTAL CLASS'!H358","v":0},{"$f":"'FR-16(7)(v)-3 PROD Demand'!I358+'FR-16(7)(v)-4 PROD Energy'!I358+'FR-16(7)(v)-5 PROD Cust'!I358+'FR-16(7)(v)-7 TRANS Demand'!I358+'FR-16(7)(v)-8 TRANS Energy'!I358+'FR-16(7)(v)-9 TRANS Cust'!I358+'FR-16(7)(v)-11 DIST Demand'!I358+'FR-16(7)(v)-12 DIST Energy'!I358+'FR-16(7)(v)-13 DIST Cust'!I358-'FR-16(7)(v)-14 TOTAL CLASS'!I358","v":0},{"$f":"'FR-16(7)(v)-3 PROD Demand'!J358+'FR-16(7)(v)-4 PROD Energy'!J358+'FR-16(7)(v)-5 PROD Cust'!J358+'FR-16(7)(v)-7 TRANS Demand'!J358+'FR-16(7)(v)-8 TRANS Energy'!J358+'FR-16(7)(v)-9 TRANS Cust'!J358+'FR-16(7)(v)-11 DIST Demand'!J358+'FR-16(7)(v)-12 DIST Energy'!J358+'FR-16(7)(v)-13 DIST Cust'!J358-'FR-16(7)(v)-14 TOTAL CLASS'!J358","v":0},{"$f":"'FR-16(7)(v)-3 PROD Demand'!K358+'FR-16(7)(v)-4 PROD Energy'!K358+'FR-16(7)(v)-5 PROD Cust'!K358+'FR-16(7)(v)-7 TRANS Demand'!K358+'FR-16(7)(v)-8 TRANS Energy'!K358+'FR-16(7)(v)-9 TRANS Cust'!K358+'FR-16(7)(v)-11 DIST Demand'!K358+'FR-16(7)(v)-12 DIST Energy'!K358+'FR-16(7)(v)-13 DIST Cust'!K358-'FR-16(7)(v)-14 TOTAL CLASS'!K358","v":0},{"$f":"'FR-16(7)(v)-3 PROD Demand'!L358+'FR-16(7)(v)-4 PROD Energy'!L358+'FR-16(7)(v)-5 PROD Cust'!L358+'FR-16(7)(v)-7 TRANS Demand'!L358+'FR-16(7)(v)-8 TRANS Energy'!L358+'FR-16(7)(v)-9 TRANS Cust'!L358+'FR-16(7)(v)-11 DIST Demand'!L358+'FR-16(7)(v)-12 DIST Energy'!L358+'FR-16(7)(v)-13 DIST Cust'!L358-'FR-16(7)(v)-14 TOTAL CLASS'!L358","v":0},{"$f":"'FR-16(7)(v)-3 PROD Demand'!M358+'FR-16(7)(v)-4 PROD Energy'!M358+'FR-16(7)(v)-5 PROD Cust'!M358+'FR-16(7)(v)-7 TRANS Demand'!M358+'FR-16(7)(v)-8 TRANS Energy'!M358+'FR-16(7)(v)-9 TRANS Cust'!M358+'FR-16(7)(v)-11 DIST Demand'!M358+'FR-16(7)(v)-12 DIST Energy'!M358+'FR-16(7)(v)-13 DIST Cust'!M358-'FR-16(7)(v)-14 TOTAL CLASS'!M358","v":0},{"$f":"'FR-16(7)(v)-3 PROD Demand'!N358+'FR-16(7)(v)-4 PROD Energy'!N358+'FR-16(7)(v)-5 PROD Cust'!N358+'FR-16(7)(v)-7 TRANS Demand'!N358+'FR-16(7)(v)-8 TRANS Energy'!N358+'FR-16(7)(v)-9 TRANS Cust'!N358+'FR-16(7)(v)-11 DIST Demand'!N358+'FR-16(7)(v)-12 DIST Energy'!N358+'FR-16(7)(v)-13 DIST Cust'!N358-'FR-16(7)(v)-14 TOTAL CLASS'!N358","v":0},{"$f":"'FR-16(7)(v)-3 PROD Demand'!O358+'FR-16(7)(v)-4 PROD Energy'!O358+'FR-16(7)(v)-5 PROD Cust'!O358+'FR-16(7)(v)-7 TRANS Demand'!O358+'FR-16(7)(v)-8 TRANS Energy'!O358+'FR-16(7)(v)-9 TRANS Cust'!O358+'FR-16(7)(v)-11 DIST Demand'!O358+'FR-16(7)(v)-12 DIST Energy'!O358+'FR-16(7)(v)-13 DIST Cust'!O358-'FR-16(7)(v)-14 TOTAL CLASS'!O358","v":0},{"$f":"'FR-16(7)(v)-3 PROD Demand'!P358+'FR-16(7)(v)-4 PROD Energy'!P358+'FR-16(7)(v)-5 PROD Cust'!P358+'FR-16(7)(v)-7 TRANS Demand'!P358+'FR-16(7)(v)-8 TRANS Energy'!P358+'FR-16(7)(v)-9 TRANS Cust'!P358+'FR-16(7)(v)-11 DIST Demand'!P358+'FR-16(7)(v)-12 DIST Energy'!P358+'FR-16(7)(v)-13 DIST Cust'!P358-'FR-16(7)(v)-14 TOTAL CLASS'!P358","v":0},{"$f":"'FR-16(7)(v)-3 PROD Demand'!Q358+'FR-16(7)(v)-4 PROD Energy'!Q358+'FR-16(7)(v)-5 PROD Cust'!Q358+'FR-16(7)(v)-7 TRANS Demand'!Q358+'FR-16(7)(v)-8 TRANS Energy'!Q358+'FR-16(7)(v)-9 TRANS Cust'!Q358+'FR-16(7)(v)-11 DIST Demand'!Q358+'FR-16(7)(v)-12 DIST Energy'!Q358+'FR-16(7)(v)-13 DIST Cust'!Q358-'FR-16(7)(v)-14 TOTAL CLASS'!Q358","v":0},0,0]
[24,null,{"$f":"'FR-16(7)(v)-1 Functional'!C359","v":"OPERATING LEASE OBLIGATION"},{"$f":"'FR-16(7)(v)-1 Functional'!D359","v":"NP29"},null,{"$f":"'FR-16(7)(v)-3 PROD Demand'!F359+'FR-16(7)(v)-4 PROD Energy'!F359+'FR-16(7)(v)-5 PROD Cust'!F359+'FR-16(7)(v)-7 TRANS Demand'!F359+'FR-16(7)(v)-8 TRANS Energy'!F359+'FR-16(7)(v)-9 TRANS Cust'!F359+'FR-16(7)(v)-11 DIST Demand'!F359+'FR-16(7)(v)-12 DIST Energy'!F359+'FR-16(7)(v)-13 DIST Cust'!F359-'FR-16(7)(v)-14 TOTAL CLASS'!F359","v":0},{"$f":"'FR-16(7)(v)-3 PROD Demand'!G359+'FR-16(7)(v)-4 PROD Energy'!G359+'FR-16(7)(v)-5 PROD Cust'!G359+'FR-16(7)(v)-7 TRANS Demand'!G359+'FR-16(7)(v)-8 TRANS Energy'!G359+'FR-16(7)(v)-9 TRANS Cust'!G359+'FR-16(7)(v)-11 DIST Demand'!G359+'FR-16(7)(v)-12 DIST Energy'!G359+'FR-16(7)(v)-13 DIST Cust'!G359-'FR-16(7)(v)-14 TOTAL CLASS'!G359","v":0},{"$f":"'FR-16(7)(v)-3 PROD Demand'!H359+'FR-16(7)(v)-4 PROD Energy'!H359+'FR-16(7)(v)-5 PROD Cust'!H359+'FR-16(7)(v)-7 TRANS Demand'!H359+'FR-16(7)(v)-8 TRANS Energy'!H359+'FR-16(7)(v)-9 TRANS Cust'!H359+'FR-16(7)(v)-11 DIST Demand'!H359+'FR-16(7)(v)-12 DIST Energy'!H359+'FR-16(7)(v)-13 DIST Cust'!H359-'FR-16(7)(v)-14 TOTAL CLASS'!H359","v":0},{"$f":"'FR-16(7)(v)-3 PROD Demand'!I359+'FR-16(7)(v)-4 PROD Energy'!I359+'FR-16(7)(v)-5 PROD Cust'!I359+'FR-16(7)(v)-7 TRANS Demand'!I359+'FR-16(7)(v)-8 TRANS Energy'!I359+'FR-16(7)(v)-9 TRANS Cust'!I359+'FR-16(7)(v)-11 DIST Demand'!I359+'FR-16(7)(v)-12 DIST Energy'!I359+'FR-16(7)(v)-13 DIST Cust'!I359-'FR-16(7)(v)-14 TOTAL CLASS'!I359","v":0},{"$f":"'FR-16(7)(v)-3 PROD Demand'!J359+'FR-16(7)(v)-4 PROD Energy'!J359+'FR-16(7)(v)-5 PROD Cust'!J359+'FR-16(7)(v)-7 TRANS Demand'!J359+'FR-16(7)(v)-8 TRANS Energy'!J359+'FR-16(7)(v)-9 TRANS Cust'!J359+'FR-16(7)(v)-11 DIST Demand'!J359+'FR-16(7)(v)-12 DIST Energy'!J359+'FR-16(7)(v)-13 DIST Cust'!J359-'FR-16(7)(v)-14 TOTAL CLASS'!J359","v":0},{"$f":"'FR-16(7)(v)-3 PROD Demand'!K359+'FR-16(7)(v)-4 PROD Energy'!K359+'FR-16(7)(v)-5 PROD Cust'!K359+'FR-16(7)(v)-7 TRANS Demand'!K359+'FR-16(7)(v)-8 TRANS Energy'!K359+'FR-16(7)(v)-9 TRANS Cust'!K359+'FR-16(7)(v)-11 DIST Demand'!K359+'FR-16(7)(v)-12 DIST Energy'!K359+'FR-16(7)(v)-13 DIST Cust'!K359-'FR-16(7)(v)-14 TOTAL CLASS'!K359","v":0},{"$f":"'FR-16(7)(v)-3 PROD Demand'!L359+'FR-16(7)(v)-4 PROD Energy'!L359+'FR-16(7)(v)-5 PROD Cust'!L359+'FR-16(7)(v)-7 TRANS Demand'!L359+'FR-16(7)(v)-8 TRANS Energy'!L359+'FR-16(7)(v)-9 TRANS Cust'!L359+'FR-16(7)(v)-11 DIST Demand'!L359+'FR-16(7)(v)-12 DIST Energy'!L359+'FR-16(7)(v)-13 DIST Cust'!L359-'FR-16(7)(v)-14 TOTAL CLASS'!L359","v":0},{"$f":"'FR-16(7)(v)-3 PROD Demand'!M359+'FR-16(7)(v)-4 PROD Energy'!M359+'FR-16(7)(v)-5 PROD Cust'!M359+'FR-16(7)(v)-7 TRANS Demand'!M359+'FR-16(7)(v)-8 TRANS Energy'!M359+'FR-16(7)(v)-9 TRANS Cust'!M359+'FR-16(7)(v)-11 DIST Demand'!M359+'FR-16(7)(v)-12 DIST Energy'!M359+'FR-16(7)(v)-13 DIST Cust'!M359-'FR-16(7)(v)-14 TOTAL CLASS'!M359","v":0},{"$f":"'FR-16(7)(v)-3 PROD Demand'!N359+'FR-16(7)(v)-4 PROD Energy'!N359+'FR-16(7)(v)-5 PROD Cust'!N359+'FR-16(7)(v)-7 TRANS Demand'!N359+'FR-16(7)(v)-8 TRANS Energy'!N359+'FR-16(7)(v)-9 TRANS Cust'!N359+'FR-16(7)(v)-11 DIST Demand'!N359+'FR-16(7)(v)-12 DIST Energy'!N359+'FR-16(7)(v)-13 DIST Cust'!N359-'FR-16(7)(v)-14 TOTAL CLASS'!N359","v":0},{"$f":"'FR-16(7)(v)-3 PROD Demand'!O359+'FR-16(7)(v)-4 PROD Energy'!O359+'FR-16(7)(v)-5 PROD Cust'!O359+'FR-16(7)(v)-7 TRANS Demand'!O359+'FR-16(7)(v)-8 TRANS Energy'!O359+'FR-16(7)(v)-9 TRANS Cust'!O359+'FR-16(7)(v)-11 DIST Demand'!O359+'FR-16(7)(v)-12 DIST Energy'!O359+'FR-16(7)(v)-13 DIST Cust'!O359-'FR-16(7)(v)-14 TOTAL CLASS'!O359","v":0},{"$f":"'FR-16(7)(v)-3 PROD Demand'!P359+'FR-16(7)(v)-4 PROD Energy'!P359+'FR-16(7)(v)-5 PROD Cust'!P359+'FR-16(7)(v)-7 TRANS Demand'!P359+'FR-16(7)(v)-8 TRANS Energy'!P359+'FR-16(7)(v)-9 TRANS Cust'!P359+'FR-16(7)(v)-11 DIST Demand'!P359+'FR-16(7)(v)-12 DIST Energy'!P359+'FR-16(7)(v)-13 DIST Cust'!P359-'FR-16(7)(v)-14 TOTAL CLASS'!P359","v":0},{"$f":"'FR-16(7)(v)-3 PROD Demand'!Q359+'FR-16(7)(v)-4 PROD Energy'!Q359+'FR-16(7)(v)-5 PROD Cust'!Q359+'FR-16(7)(v)-7 TRANS Demand'!Q359+'FR-16(7)(v)-8 TRANS Energy'!Q359+'FR-16(7)(v)-9 TRANS Cust'!Q359+'FR-16(7)(v)-11 DIST Demand'!Q359+'FR-16(7)(v)-12 DIST Energy'!Q359+'FR-16(7)(v)-13 DIST Cust'!Q359-'FR-16(7)(v)-14 TOTAL CLASS'!Q359","v":0},0,0]
[25,null,{"$f":"'FR-16(7)(v)-1 Functional'!C360","v":"INJURIES & DAMAGES"},{"$f":"'FR-16(7)(v)-1 Functional'!D360","v":"NP29"},null,{"$f":"'FR-16(7)(v)-3 PROD Demand'!F360+'FR-16(7)(v)-4 PROD Energy'!F360+'FR-16(7)(v)-5 PROD Cust'!F360+'FR-16(7)(v)-7 TRANS Demand'!F360+'FR-16(7)(v)-8 TRANS Energy'!F360+'FR-16(7)(v)-9 TRANS Cust'!F360+'FR-16(7)(v)-11 DIST Demand'!F360+'FR-16(7)(v)-12 DIST Energy'!F360+'FR-16(7)(v)-13 DIST Cust'!F360-'FR-16(7)(v)-14 TOTAL CLASS'!F360","v":0},{"$f":"'FR-16(7)(v)-3 PROD Demand'!G360+'FR-16(7)(v)-4 PROD Energy'!G360+'FR-16(7)(v)-5 PROD Cust'!G360+'FR-16(7)(v)-7 TRANS Demand'!G360+'FR-16(7)(v)-8 TRANS Energy'!G360+'FR-16(7)(v)-9 TRANS Cust'!G360+'FR-16(7)(v)-11 DIST Demand'!G360+'FR-16(7)(v)-12 DIST Energy'!G360+'FR-16(7)(v)-13 DIST Cust'!G360-'FR-16(7)(v)-14 TOTAL CLASS'!G360","v":0},{"$f":"'FR-16(7)(v)-3 PROD Demand'!H360+'FR-16(7)(v)-4 PROD Energy'!H360+'FR-16(7)(v)-5 PROD Cust'!H360+'FR-16(7)(v)-7 TRANS Demand'!H360+'FR-16(7)(v)-8 TRANS Energy'!H360+'FR-16(7)(v)-9 TRANS Cust'!H360+'FR-16(7)(v)-11 DIST Demand'!H360+'FR-16(7)(v)-12 DIST Energy'!H360+'FR-16(7)(v)-13 DIST Cust'!H360-'FR-16(7)(v)-14 TOTAL CLASS'!H360","v":0},{"$f":"'FR-16(7)(v)-3 PROD Demand'!I360+'FR-16(7)(v)-4 PROD Energy'!I360+'FR-16(7)(v)-5 PROD Cust'!I360+'FR-16(7)(v)-7 TRANS Demand'!I360+'FR-16(7)(v)-8 TRANS Energy'!I360+'FR-16(7)(v)-9 TRANS Cust'!I360+'FR-16(7)(v)-11 DIST Demand'!I360+'FR-16(7)(v)-12 DIST Energy'!I360+'FR-16(7)(v)-13 DIST Cust'!I360-'FR-16(7)(v)-14 TOTAL CLASS'!I360","v":0},{"$f":"'FR-16(7)(v)-3 PROD Demand'!J360+'FR-16(7)(v)-4 PROD Energy'!J360+'FR-16(7)(v)-5 PROD Cust'!J360+'FR-16(7)(v)-7 TRANS Demand'!J360+'FR-16(7)(v)-8 TRANS Energy'!J360+'FR-16(7)(v)-9 TRANS Cust'!J360+'FR-16(7)(v)-11 DIST Demand'!J360+'FR-16(7)(v)-12 DIST Energy'!J360+'FR-16(7)(v)-13 DIST Cust'!J360-'FR-16(7)(v)-14 TOTAL CLASS'!J360","v":0},{"$f":"'FR-16(7)(v)-3 PROD Demand'!K360+'FR-16(7)(v)-4 PROD Energy'!K360+'FR-16(7)(v)-5 PROD Cust'!K360+'FR-16(7)(v)-7 TRANS Demand'!K360+'FR-16(7)(v)-8 TRANS Energy'!K360+'FR-16(7)(v)-9 TRANS Cust'!K360+'FR-16(7)(v)-11 DIST Demand'!K360+'FR-16(7)(v)-12 DIST Energy'!K360+'FR-16(7)(v)-13 DIST Cust'!K360-'FR-16(7)(v)-14 TOTAL CLASS'!K360","v":0},{"$f":"'FR-16(7)(v)-3 PROD Demand'!L360+'FR-16(7)(v)-4 PROD Energy'!L360+'FR-16(7)(v)-5 PROD Cust'!L360+'FR-16(7)(v)-7 TRANS Demand'!L360+'FR-16(7)(v)-8 TRANS Energy'!L360+'FR-16(7)(v)-9 TRANS Cust'!L360+'FR-16(7)(v)-11 DIST Demand'!L360+'FR-16(7)(v)-12 DIST Energy'!L360+'FR-16(7)(v)-13 DIST Cust'!L360-'FR-16(7)(v)-14 TOTAL CLASS'!L360","v":0},{"$f":"'FR-16(7)(v)-3 PROD Demand'!M360+'FR-16(7)(v)-4 PROD Energy'!M360+'FR-16(7)(v)-5 PROD Cust'!M360+'FR-16(7)(v)-7 TRANS Demand'!M360+'FR-16(7)(v)-8 TRANS Energy'!M360+'FR-16(7)(v)-9 TRANS Cust'!M360+'FR-16(7)(v)-11 DIST Demand'!M360+'FR-16(7)(v)-12 DIST Energy'!M360+'FR-16(7)(v)-13 DIST Cust'!M360-'FR-16(7)(v)-14 TOTAL CLASS'!M360","v":0},{"$f":"'FR-16(7)(v)-3 PROD Demand'!N360+'FR-16(7)(v)-4 PROD Energy'!N360+'FR-16(7)(v)-5 PROD Cust'!N360+'FR-16(7)(v)-7 TRANS Demand'!N360+'FR-16(7)(v)-8 TRANS Energy'!N360+'FR-16(7)(v)-9 TRANS Cust'!N360+'FR-16(7)(v)-11 DIST Demand'!N360+'FR-16(7)(v)-12 DIST Energy'!N360+'FR-16(7)(v)-13 DIST Cust'!N360-'FR-16(7)(v)-14 TOTAL CLASS'!N360","v":0},{"$f":"'FR-16(7)(v)-3 PROD Demand'!O360+'FR-16(7)(v)-4 PROD Energy'!O360+'FR-16(7)(v)-5 PROD Cust'!O360+'FR-16(7)(v)-7 TRANS Demand'!O360+'FR-16(7)(v)-8 TRANS Energy'!O360+'FR-16(7)(v)-9 TRANS Cust'!O360+'FR-16(7)(v)-11 DIST Demand'!O360+'FR-16(7)(v)-12 DIST Energy'!O360+'FR-16(7)(v)-13 DIST Cust'!O360-'FR-16(7)(v)-14 TOTAL CLASS'!O360","v":0},{"$f":"'FR-16(7)(v)-3 PROD Demand'!P360+'FR-16(7)(v)-4 PROD Energy'!P360+'FR-16(7)(v)-5 PROD Cust'!P360+'FR-16(7)(v)-7 TRANS Demand'!P360+'FR-16(7)(v)-8 TRANS Energy'!P360+'FR-16(7)(v)-9 TRANS Cust'!P360+'FR-16(7)(v)-11 DIST Demand'!P360+'FR-16(7)(v)-12 DIST Energy'!P360+'FR-16(7)(v)-13 DIST Cust'!P360-'FR-16(7)(v)-14 TOTAL CLASS'!P360","v":0},{"$f":"'FR-16(7)(v)-3 PROD Demand'!Q360+'FR-16(7)(v)-4 PROD Energy'!Q360+'FR-16(7)(v)-5 PROD Cust'!Q360+'FR-16(7)(v)-7 TRANS Demand'!Q360+'FR-16(7)(v)-8 TRANS Energy'!Q360+'FR-16(7)(v)-9 TRANS Cust'!Q360+'FR-16(7)(v)-11 DIST Demand'!Q360+'FR-16(7)(v)-12 DIST Energy'!Q360+'FR-16(7)(v)-13 DIST Cust'!Q360-'FR-16(7)(v)-14 TOTAL CLASS'!Q360","v":0},0,0]
[26,null,{"$f":"'FR-16(7)(v)-1 Functional'!C361","v":"  TOTAL ACCOUNT 190"},null,null,{"$f":"SUM(F337:F360)","v":0},{"$f":"SUM(G337:G360)","v":0},0,0,{"$f":"SUM(J337:J360)","v":0},0,0,0,0,0,0,0,0,0]
[27]
[28," OTHER"]
[29,null,{"$f":"'FR-16(7)(v)-1 Functional'!C364","v":"RESERVED FOR FUTURE USE"},{"$f":"'FR-16(7)(v)-1 Functional'!D364","v":"NP29"},null,{"$f":"'FR-16(7)(v)-3 PROD Demand'!F364+'FR-16(7)(v)-4 PROD Energy'!F364+'FR-16(7)(v)-5 PROD Cust'!F364+'FR-16(7)(v)-7 TRANS Demand'!F364+'FR-16(7)(v)-8 TRANS Energy'!F364+'FR-16(7)(v)-9 TRANS Cust'!F364+'FR-16(7)(v)-11 DIST Demand'!F364+'FR-16(7)(v)-12 DIST Energy'!F364+'FR-16(7)(v)-13 DIST Cust'!F364-'FR-16(7)(v)-14 TOTAL CLASS'!F364","v":0},{"$f":"'FR-16(7)(v)-3 PROD Demand'!G364+'FR-16(7)(v)-4 PROD Energy'!G364+'FR-16(7)(v)-5 PROD Cust'!G364+'FR-16(7)(v)-7 TRANS Demand'!G364+'FR-16(7)(v)-8 TRANS Energy'!G364+'FR-16(7)(v)-9 TRANS Cust'!G364+'FR-16(7)(v)-11 DIST Demand'!G364+'FR-16(7)(v)-12 DIST Energy'!G364+'FR-16(7)(v)-13 DIST Cust'!G364-'FR-16(7)(v)-14 TOTAL CLASS'!G364","v":0},{"$f":"'FR-16(7)(v)-3 PROD Demand'!H364+'FR-16(7)(v)-4 PROD Energy'!H364+'FR-16(7)(v)-5 PROD Cust'!H364+'FR-16(7)(v)-7 TRANS Demand'!H364+'FR-16(7)(v)-8 TRANS Energy'!H364+'FR-16(7)(v)-9 TRANS Cust'!H364+'FR-16(7)(v)-11 DIST Demand'!H364+'FR-16(7)(v)-12 DIST Energy'!H364+'FR-16(7)(v)-13 DIST Cust'!H364-'FR-16(7)(v)-14 TOTAL CLASS'!H364","v":0},{"$f":"'FR-16(7)(v)-3 PROD Demand'!I364+'FR-16(7)(v)-4 PROD Energy'!I364+'FR-16(7)(v)-5 PROD Cust'!I364+'FR-16(7)(v)-7 TRANS Demand'!I364+'FR-16(7)(v)-8 TRANS Energy'!I364+'FR-16(7)(v)-9 TRANS Cust'!I364+'FR-16(7)(v)-11 DIST Demand'!I364+'FR-16(7)(v)-12 DIST Energy'!I364+'FR-16(7)(v)-13 DIST Cust'!I364-'FR-16(7)(v)-14 TOTAL CLASS'!I364","v":0},{"$f":"'FR-16(7)(v)-3 PROD Demand'!J364+'FR-16(7)(v)-4 PROD Energy'!J364+'FR-16(7)(v)-5 PROD Cust'!J364+'FR-16(7)(v)-7 TRANS Demand'!J364+'FR-16(7)(v)-8 TRANS Energy'!J364+'FR-16(7)(v)-9 TRANS Cust'!J364+'FR-16(7)(v)-11 DIST Demand'!J364+'FR-16(7)(v)-12 DIST Energy'!J364+'FR-16(7)(v)-13 DIST Cust'!J364-'FR-16(7)(v)-14 TOTAL CLASS'!J364","v":0},{"$f":"'FR-16(7)(v)-3 PROD Demand'!K364+'FR-16(7)(v)-4 PROD Energy'!K364+'FR-16(7)(v)-5 PROD Cust'!K364+'FR-16(7)(v)-7 TRANS Demand'!K364+'FR-16(7)(v)-8 TRANS Energy'!K364+'FR-16(7)(v)-9 TRANS Cust'!K364+'FR-16(7)(v)-11 DIST Demand'!K364+'FR-16(7)(v)-12 DIST Energy'!K364+'FR-16(7)(v)-13 DIST Cust'!K364-'FR-16(7)(v)-14 TOTAL CLASS'!K364","v":0},{"$f":"'FR-16(7)(v)-3 PROD Demand'!L364+'FR-16(7)(v)-4 PROD Energy'!L364+'FR-16(7)(v)-5 PROD Cust'!L364+'FR-16(7)(v)-7 TRANS Demand'!L364+'FR-16(7)(v)-8 TRANS Energy'!L364+'FR-16(7)(v)-9 TRANS Cust'!L364+'FR-16(7)(v)-11 DIST Demand'!L364+'FR-16(7)(v)-12 DIST Energy'!L364+'FR-16(7)(v)-13 DIST Cust'!L364-'FR-16(7)(v)-14 TOTAL CLASS'!L364","v":0},{"$f":"'FR-16(7)(v)-3 PROD Demand'!M364+'FR-16(7)(v)-4 PROD Energy'!M364+'FR-16(7)(v)-5 PROD Cust'!M364+'FR-16(7)(v)-7 TRANS Demand'!M364+'FR-16(7)(v)-8 TRANS Energy'!M364+'FR-16(7)(v)-9 TRANS Cust'!M364+'FR-16(7)(v)-11 DIST Demand'!M364+'FR-16(7)(v)-12 DIST Energy'!M364+'FR-16(7)(v)-13 DIST Cust'!M364-'FR-16(7)(v)-14 TOTAL CLASS'!M364","v":0},{"$f":"'FR-16(7)(v)-3 PROD Demand'!N364+'FR-16(7)(v)-4 PROD Energy'!N364+'FR-16(7)(v)-5 PROD Cust'!N364+'FR-16(7)(v)-7 TRANS Demand'!N364+'FR-16(7)(v)-8 TRANS Energy'!N364+'FR-16(7)(v)-9 TRANS Cust'!N364+'FR-16(7)(v)-11 DIST Demand'!N364+'FR-16(7)(v)-12 DIST Energy'!N364+'FR-16(7)(v)-13 DIST Cust'!N364-'FR-16(7)(v)-14 TOTAL CLASS'!N364","v":0},{"$f":"'FR-16(7)(v)-3 PROD Demand'!O364+'FR-16(7)(v)-4 PROD Energy'!O364+'FR-16(7)(v)-5 PROD Cust'!O364+'FR-16(7)(v)-7 TRANS Demand'!O364+'FR-16(7)(v)-8 TRANS Energy'!O364+'FR-16(7)(v)-9 TRANS Cust'!O364+'FR-16(7)(v)-11 DIST Demand'!O364+'FR-16(7)(v)-12 DIST Energy'!O364+'FR-16(7)(v)-13 DIST Cust'!O364-'FR-16(7)(v)-14 TOTAL CLASS'!O364","v":0},{"$f":"'FR-16(7)(v)-3 PROD Demand'!P364+'FR-16(7)(v)-4 PROD Energy'!P364+'FR-16(7)(v)-5 PROD Cust'!P364+'FR-16(7)(v)-7 TRANS Demand'!P364+'FR-16(7)(v)-8 TRANS Energy'!P364+'FR-16(7)(v)-9 TRANS Cust'!P364+'FR-16(7)(v)-11 DIST Demand'!P364+'FR-16(7)(v)-12 DIST Energy'!P364+'FR-16(7)(v)-13 DIST Cust'!P364-'FR-16(7)(v)-14 TOTAL CLASS'!P364","v":0},{"$f":"'FR-16(7)(v)-3 PROD Demand'!Q364+'FR-16(7)(v)-4 PROD Energy'!Q364+'FR-16(7)(v)-5 PROD Cust'!Q364+'FR-16(7)(v)-7 TRANS Demand'!Q364+'FR-16(7)(v)-8 TRANS Energy'!Q364+'FR-16(7)(v)-9 TRANS Cust'!Q364+'FR-16(7)(v)-11 DIST Demand'!Q364+'FR-16(7)(v)-12 DIST Energy'!Q364+'FR-16(7)(v)-13 DIST Cust'!Q364-'FR-16(7)(v)-14 TOTAL CLASS'!Q364","v":0},{"$f":"SUM(G364:Q364)","v":0},{"$f":"F364-R364","v":0}]
[30,null,{"$f":"'FR-16(7)(v)-1 Functional'!C365","v":"RATE CASE EXPENSE REGULATORY ASSET"},{"$f":"'FR-16(7)(v)-1 Functional'!D365","v":"NP29"},null,{"$f":"'FR-16(7)(v)-3 PROD Demand'!F365+'FR-16(7)(v)-4 PROD Energy'!F365+'FR-16(7)(v)-5 PROD Cust'!F365+'FR-16(7)(v)-7 TRANS Demand'!F365+'FR-16(7)(v)-8 TRANS Energy'!F365+'FR-16(7)(v)-9 TRANS Cust'!F365+'FR-16(7)(v)-11 DIST Demand'!F365+'FR-16(7)(v)-12 DIST Energy'!F365+'FR-16(7)(v)-13 DIST Cust'!F365-'FR-16(7)(v)-14 TOTAL CLASS'!F365","v":0},{"$f":"'FR-16(7)(v)-3 PROD Demand'!G365+'FR-16(7)(v)-4 PROD Energy'!G365+'FR-16(7)(v)-5 PROD Cust'!G365+'FR-16(7)(v)-7 TRANS Demand'!G365+'FR-16(7)(v)-8 TRANS Energy'!G365+'FR-16(7)(v)-9 TRANS Cust'!G365+'FR-16(7)(v)-11 DIST Demand'!G365+'FR-16(7)(v)-12 DIST Energy'!G365+'FR-16(7)(v)-13 DIST Cust'!G365-'FR-16(7)(v)-14 TOTAL CLASS'!G365","v":0},{"$f":"'FR-16(7)(v)-3 PROD Demand'!H365+'FR-16(7)(v)-4 PROD Energy'!H365+'FR-16(7)(v)-5 PROD Cust'!H365+'FR-16(7)(v)-7 TRANS Demand'!H365+'FR-16(7)(v)-8 TRANS Energy'!H365+'FR-16(7)(v)-9 TRANS Cust'!H365+'FR-16(7)(v)-11 DIST Demand'!H365+'FR-16(7)(v)-12 DIST Energy'!H365+'FR-16(7)(v)-13 DIST Cust'!H365-'FR-16(7)(v)-14 TOTAL CLASS'!H365","v":0},{"$f":"'FR-16(7)(v)-3 PROD Demand'!I365+'FR-16(7)(v)-4 PROD Energy'!I365+'FR-16(7)(v)-5 PROD Cust'!I365+'FR-16(7)(v)-7 TRANS Demand'!I365+'FR-16(7)(v)-8 TRANS Energy'!I365+'FR-16(7)(v)-9 TRANS Cust'!I365+'FR-16(7)(v)-11 DIST Demand'!I365+'FR-16(7)(v)-12 DIST Energy'!I365+'FR-16(7)(v)-13 DIST Cust'!I365-'FR-16(7)(v)-14 TOTAL CLASS'!I365","v":0},{"$f":"'FR-16(7)(v)-3 PROD Demand'!J365+'FR-16(7)(v)-4 PROD Energy'!J365+'FR-16(7)(v)-5 PROD Cust'!J365+'FR-16(7)(v)-7 TRANS Demand'!J365+'FR-16(7)(v)-8 TRANS Energy'!J365+'FR-16(7)(v)-9 TRANS Cust'!J365+'FR-16(7)(v)-11 DIST Demand'!J365+'FR-16(7)(v)-12 DIST Energy'!J365+'FR-16(7)(v)-13 DIST Cust'!J365-'FR-16(7)(v)-14 TOTAL CLASS'!J365","v":0},{"$f":"'FR-16(7)(v)-3 PROD Demand'!K365+'FR-16(7)(v)-4 PROD Energy'!K365+'FR-16(7)(v)-5 PROD Cust'!K365+'FR-16(7)(v)-7 TRANS Demand'!K365+'FR-16(7)(v)-8 TRANS Energy'!K365+'FR-16(7)(v)-9 TRANS Cust'!K365+'FR-16(7)(v)-11 DIST Demand'!K365+'FR-16(7)(v)-12 DIST Energy'!K365+'FR-16(7)(v)-13 DIST Cust'!K365-'FR-16(7)(v)-14 TOTAL CLASS'!K365","v":0},{"$f":"'FR-16(7)(v)-3 PROD Demand'!L365+'FR-16(7)(v)-4 PROD Energy'!L365+'FR-16(7)(v)-5 PROD Cust'!L365+'FR-16(7)(v)-7 TRANS Demand'!L365+'FR-16(7)(v)-8 TRANS Energy'!L365+'FR-16(7)(v)-9 TRANS Cust'!L365+'FR-16(7)(v)-11 DIST Demand'!L365+'FR-16(7)(v)-12 DIST Energy'!L365+'FR-16(7)(v)-13 DIST Cust'!L365-'FR-16(7)(v)-14 TOTAL CLASS'!L365","v":0},{"$f":"'FR-16(7)(v)-3 PROD Demand'!M365+'FR-16(7)(v)-4 PROD Energy'!M365+'FR-16(7)(v)-5 PROD Cust'!M365+'FR-16(7)(v)-7 TRANS Demand'!M365+'FR-16(7)(v)-8 TRANS Energy'!M365+'FR-16(7)(v)-9 TRANS Cust'!M365+'FR-16(7)(v)-11 DIST Demand'!M365+'FR-16(7)(v)-12 DIST Energy'!M365+'FR-16(7)(v)-13 DIST Cust'!M365-'FR-16(7)(v)-14 TOTAL CLASS'!M365","v":0},{"$f":"'FR-16(7)(v)-3 PROD Demand'!N365+'FR-16(7)(v)-4 PROD Energy'!N365+'FR-16(7)(v)-5 PROD Cust'!N365+'FR-16(7)(v)-7 TRANS Demand'!N365+'FR-16(7)(v)-8 TRANS Energy'!N365+'FR-16(7)(v)-9 TRANS Cust'!N365+'FR-16(7)(v)-11 DIST Demand'!N365+'FR-16(7)(v)-12 DIST Energy'!N365+'FR-16(7)(v)-13 DIST Cust'!N365-'FR-16(7)(v)-14 TOTAL CLASS'!N365","v":0},{"$f":"'FR-16(7)(v)-3 PROD Demand'!O365+'FR-16(7)(v)-4 PROD Energy'!O365+'FR-16(7)(v)-5 PROD Cust'!O365+'FR-16(7)(v)-7 TRANS Demand'!O365+'FR-16(7)(v)-8 TRANS Energy'!O365+'FR-16(7)(v)-9 TRANS Cust'!O365+'FR-16(7)(v)-11 DIST Demand'!O365+'FR-16(7)(v)-12 DIST Energy'!O365+'FR-16(7)(v)-13 DIST Cust'!O365-'FR-16(7)(v)-14 TOTAL CLASS'!O365","v":0},{"$f":"'FR-16(7)(v)-3 PROD Demand'!P365+'FR-16(7)(v)-4 PROD Energy'!P365+'FR-16(7)(v)-5 PROD Cust'!P365+'FR-16(7)(v)-7 TRANS Demand'!P365+'FR-16(7)(v)-8 TRANS Energy'!P365+'FR-16(7)(v)-9 TRANS Cust'!P365+'FR-16(7)(v)-11 DIST Demand'!P365+'FR-16(7)(v)-12 DIST Energy'!P365+'FR-16(7)(v)-13 DIST Cust'!P365-'FR-16(7)(v)-14 TOTAL CLASS'!P365","v":0},{"$f":"'FR-16(7)(v)-3 PROD Demand'!Q365+'FR-16(7)(v)-4 PROD Energy'!Q365+'FR-16(7)(v)-5 PROD Cust'!Q365+'FR-16(7)(v)-7 TRANS Demand'!Q365+'FR-16(7)(v)-8 TRANS Energy'!Q365+'FR-16(7)(v)-9 TRANS Cust'!Q365+'FR-16(7)(v)-11 DIST Demand'!Q365+'FR-16(7)(v)-12 DIST Energy'!Q365+'FR-16(7)(v)-13 DIST Cust'!Q365-'FR-16(7)(v)-14 TOTAL CLASS'!Q365","v":0},{"$f":"SUM(G365:Q365)","v":0},{"$f":"F365-R365","v":0}]
[31,null,{"$f":"'FR-16(7)(v)-1 Functional'!C366","v":"RESERVED FOR FUTURE USE"},{"$f":"'FR-16(7)(v)-1 Functional'!D366","v":"NP29"},null,{"$f":"'FR-16(7)(v)-3 PROD Demand'!F366+'FR-16(7)(v)-4 PROD Energy'!F366+'FR-16(7)(v)-5 PROD Cust'!F366+'FR-16(7)(v)-7 TRANS Demand'!F366+'FR-16(7)(v)-8 TRANS Energy'!F366+'FR-16(7)(v)-9 TRANS Cust'!F366+'FR-16(7)(v)-11 DIST Demand'!F366+'FR-16(7)(v)-12 DIST Energy'!F366+'FR-16(7)(v)-13 DIST Cust'!F366-'FR-16(7)(v)-14 TOTAL CLASS'!F366","v":0},{"$f":"'FR-16(7)(v)-3 PROD Demand'!G366+'FR-16(7)(v)-4 PROD Energy'!G366+'FR-16(7)(v)-5 PROD Cust'!G366+'FR-16(7)(v)-7 TRANS Demand'!G366+'FR-16(7)(v)-8 TRANS Energy'!G366+'FR-16(7)(v)-9 TRANS Cust'!G366+'FR-16(7)(v)-11 DIST Demand'!G366+'FR-16(7)(v)-12 DIST Energy'!G366+'FR-16(7)(v)-13 DIST Cust'!G366-'FR-16(7)(v)-14 TOTAL CLASS'!G366","v":0},{"$f":"'FR-16(7)(v)-3 PROD Demand'!H366+'FR-16(7)(v)-4 PROD Energy'!H366+'FR-16(7)(v)-5 PROD Cust'!H366+'FR-16(7)(v)-7 TRANS Demand'!H366+'FR-16(7)(v)-8 TRANS Energy'!H366+'FR-16(7)(v)-9 TRANS Cust'!H366+'FR-16(7)(v)-11 DIST Demand'!H366+'FR-16(7)(v)-12 DIST Energy'!H366+'FR-16(7)(v)-13 DIST Cust'!H366-'FR-16(7)(v)-14 TOTAL CLASS'!H366","v":0},{"$f":"'FR-16(7)(v)-3 PROD Demand'!I366+'FR-16(7)(v)-4 PROD Energy'!I366+'FR-16(7)(v)-5 PROD Cust'!I366+'FR-16(7)(v)-7 TRANS Demand'!I366+'FR-16(7)(v)-8 TRANS Energy'!I366+'FR-16(7)(v)-9 TRANS Cust'!I366+'FR-16(7)(v)-11 DIST Demand'!I366+'FR-16(7)(v)-12 DIST Energy'!I366+'FR-16(7)(v)-13 DIST Cust'!I366-'FR-16(7)(v)-14 TOTAL CLASS'!I366","v":0},{"$f":"'FR-16(7)(v)-3 PROD Demand'!J366+'FR-16(7)(v)-4 PROD Energy'!J366+'FR-16(7)(v)-5 PROD Cust'!J366+'FR-16(7)(v)-7 TRANS Demand'!J366+'FR-16(7)(v)-8 TRANS Energy'!J366+'FR-16(7)(v)-9 TRANS Cust'!J366+'FR-16(7)(v)-11 DIST Demand'!J366+'FR-16(7)(v)-12 DIST Energy'!J366+'FR-16(7)(v)-13 DIST Cust'!J366-'FR-16(7)(v)-14 TOTAL CLASS'!J366","v":0},{"$f":"'FR-16(7)(v)-3 PROD Demand'!K366+'FR-16(7)(v)-4 PROD Energy'!K366+'FR-16(7)(v)-5 PROD Cust'!K366+'FR-16(7)(v)-7 TRANS Demand'!K366+'FR-16(7)(v)-8 TRANS Energy'!K366+'FR-16(7)(v)-9 TRANS Cust'!K366+'FR-16(7)(v)-11 DIST Demand'!K366+'FR-16(7)(v)-12 DIST Energy'!K366+'FR-16(7)(v)-13 DIST Cust'!K366-'FR-16(7)(v)-14 TOTAL CLASS'!K366","v":0},{"$f":"'FR-16(7)(v)-3 PROD Demand'!L366+'FR-16(7)(v)-4 PROD Energy'!L366+'FR-16(7)(v)-5 PROD Cust'!L366+'FR-16(7)(v)-7 TRANS Demand'!L366+'FR-16(7)(v)-8 TRANS Energy'!L366+'FR-16(7)(v)-9 TRANS Cust'!L366+'FR-16(7)(v)-11 DIST Demand'!L366+'FR-16(7)(v)-12 DIST Energy'!L366+'FR-16(7)(v)-13 DIST Cust'!L366-'FR-16(7)(v)-14 TOTAL CLASS'!L366","v":0},{"$f":"'FR-16(7)(v)-3 PROD Demand'!M366+'FR-16(7)(v)-4 PROD Energy'!M366+'FR-16(7)(v)-5 PROD Cust'!M366+'FR-16(7)(v)-7 TRANS Demand'!M366+'FR-16(7)(v)-8 TRANS Energy'!M366+'FR-16(7)(v)-9 TRANS Cust'!M366+'FR-16(7)(v)-11 DIST Demand'!M366+'FR-16(7)(v)-12 DIST Energy'!M366+'FR-16(7)(v)-13 DIST Cust'!M366-'FR-16(7)(v)-14 TOTAL CLASS'!M366","v":0},{"$f":"'FR-16(7)(v)-3 PROD Demand'!N366+'FR-16(7)(v)-4 PROD Energy'!N366+'FR-16(7)(v)-5 PROD Cust'!N366+'FR-16(7)(v)-7 TRANS Demand'!N366+'FR-16(7)(v)-8 TRANS Energy'!N366+'FR-16(7)(v)-9 TRANS Cust'!N366+'FR-16(7)(v)-11 DIST Demand'!N366+'FR-16(7)(v)-12 DIST Energy'!N366+'FR-16(7)(v)-13 DIST Cust'!N366-'FR-16(7)(v)-14 TOTAL CLASS'!N366","v":0},{"$f":"'FR-16(7)(v)-3 PROD Demand'!O366+'FR-16(7)(v)-4 PROD Energy'!O366+'FR-16(7)(v)-5 PROD Cust'!O366+'FR-16(7)(v)-7 TRANS Demand'!O366+'FR-16(7)(v)-8 TRANS Energy'!O366+'FR-16(7)(v)-9 TRANS Cust'!O366+'FR-16(7)(v)-11 DIST Demand'!O366+'FR-16(7)(v)-12 DIST Energy'!O366+'FR-16(7)(v)-13 DIST Cust'!O366-'FR-16(7)(v)-14 TOTAL CLASS'!O366","v":0},{"$f":"'FR-16(7)(v)-3 PROD Demand'!P366+'FR-16(7)(v)-4 PROD Energy'!P366+'FR-16(7)(v)-5 PROD Cust'!P366+'FR-16(7)(v)-7 TRANS Demand'!P366+'FR-16(7)(v)-8 TRANS Energy'!P366+'FR-16(7)(v)-9 TRANS Cust'!P366+'FR-16(7)(v)-11 DIST Demand'!P366+'FR-16(7)(v)-12 DIST Energy'!P366+'FR-16(7)(v)-13 DIST Cust'!P366-'FR-16(7)(v)-14 TOTAL CLASS'!P366","v":0},{"$f":"'FR-16(7)(v)-3 PROD Demand'!Q366+'FR-16(7)(v)-4 PROD Energy'!Q366+'FR-16(7)(v)-5 PROD Cust'!Q366+'FR-16(7)(v)-7 TRANS Demand'!Q366+'FR-16(7)(v)-8 TRANS Energy'!Q366+'FR-16(7)(v)-9 TRANS Cust'!Q366+'FR-16(7)(v)-11 DIST Demand'!Q366+'FR-16(7)(v)-12 DIST Energy'!Q366+'FR-16(7)(v)-13 DIST Cust'!Q366-'FR-16(7)(v)-14 TOTAL CLASS'!Q366","v":0},{"$f":"SUM(G366:Q366)","v":0},{"$f":"F366-R366","v":0}]
[32,null,{"$f":"'FR-16(7)(v)-1 Functional'!C367","v":"  OTHER"},null,null,{"$f":"SUM(F363:F366)","v":0},{"$f":"SUM(G363:G366)","v":0},0,0,0,0,0,0,0,0,0,0,0,0]
[33]
[34,"CONSTRUCTION WORK IN PROGRESS"]
[35,null,"PRODUCTION",{"$f":"'FR-16(7)(v)-1 Functional'!D370","v":"P129"},null,{"$f":"'FR-16(7)(v)-3 PROD Demand'!F370+'FR-16(7)(v)-4 PROD Energy'!F370+'FR-16(7)(v)-5 PROD Cust'!F370+'FR-16(7)(v)-7 TRANS Demand'!F370+'FR-16(7)(v)-8 TRANS Energy'!F370+'FR-16(7)(v)-9 TRANS Cust'!F370+'FR-16(7)(v)-11 DIST Demand'!F370+'FR-16(7)(v)-12 DIST Energy'!F370+'FR-16(7)(v)-13 DIST Cust'!F370-'FR-16(7)(v)-14 TOTAL CLASS'!F370","v":0},{"$f":"'FR-16(7)(v)-3 PROD Demand'!G370+'FR-16(7)(v)-4 PROD Energy'!G370+'FR-16(7)(v)-5 PROD Cust'!G370+'FR-16(7)(v)-7 TRANS Demand'!G370+'FR-16(7)(v)-8 TRANS Energy'!G370+'FR-16(7)(v)-9 TRANS Cust'!G370+'FR-16(7)(v)-11 DIST Demand'!G370+'FR-16(7)(v)-12 DIST Energy'!G370+'FR-16(7)(v)-13 DIST Cust'!G370-'FR-16(7)(v)-14 TOTAL CLASS'!G370","v":0},{"$f":"'FR-16(7)(v)-3 PROD Demand'!H370+'FR-16(7)(v)-4 PROD Energy'!H370+'FR-16(7)(v)-5 PROD Cust'!H370+'FR-16(7)(v)-7 TRANS Demand'!H370+'FR-16(7)(v)-8 TRANS Energy'!H370+'FR-16(7)(v)-9 TRANS Cust'!H370+'FR-16(7)(v)-11 DIST Demand'!H370+'FR-16(7)(v)-12 DIST Energy'!H370+'FR-16(7)(v)-13 DIST Cust'!H370-'FR-16(7)(v)-14 TOTAL CLASS'!H370","v":0},{"$f":"'FR-16(7)(v)-3 PROD Demand'!I370+'FR-16(7)(v)-4 PROD Energy'!I370+'FR-16(7)(v)-5 PROD Cust'!I370+'FR-16(7)(v)-7 TRANS Demand'!I370+'FR-16(7)(v)-8 TRANS Energy'!I370+'FR-16(7)(v)-9 TRANS Cust'!I370+'FR-16(7)(v)-11 DIST Demand'!I370+'FR-16(7)(v)-12 DIST Energy'!I370+'FR-16(7)(v)-13 DIST Cust'!I370-'FR-16(7)(v)-14 TOTAL CLASS'!I370","v":0},{"$f":"'FR-16(7)(v)-3 PROD Demand'!J370+'FR-16(7)(v)-4 PROD Energy'!J370+'FR-16(7)(v)-5 PROD Cust'!J370+'FR-16(7)(v)-7 TRANS Demand'!J370+'FR-16(7)(v)-8 TRANS Energy'!J370+'FR-16(7)(v)-9 TRANS Cust'!J370+'FR-16(7)(v)-11 DIST Demand'!J370+'FR-16(7)(v)-12 DIST Energy'!J370+'FR-16(7)(v)-13 DIST Cust'!J370-'FR-16(7)(v)-14 TOTAL CLASS'!J370","v":0},{"$f":"'FR-16(7)(v)-3 PROD Demand'!K370+'FR-16(7)(v)-4 PROD Energy'!K370+'FR-16(7)(v)-5 PROD Cust'!K370+'FR-16(7)(v)-7 TRANS Demand'!K370+'FR-16(7)(v)-8 TRANS Energy'!K370+'FR-16(7)(v)-9 TRANS Cust'!K370+'FR-16(7)(v)-11 DIST Demand'!K370+'FR-16(7)(v)-12 DIST Energy'!K370+'FR-16(7)(v)-13 DIST Cust'!K370-'FR-16(7)(v)-14 TOTAL CLASS'!K370","v":0},{"$f":"'FR-16(7)(v)-3 PROD Demand'!L370+'FR-16(7)(v)-4 PROD Energy'!L370+'FR-16(7)(v)-5 PROD Cust'!L370+'FR-16(7)(v)-7 TRANS Demand'!L370+'FR-16(7)(v)-8 TRANS Energy'!L370+'FR-16(7)(v)-9 TRANS Cust'!L370+'FR-16(7)(v)-11 DIST Demand'!L370+'FR-16(7)(v)-12 DIST Energy'!L370+'FR-16(7)(v)-13 DIST Cust'!L370-'FR-16(7)(v)-14 TOTAL CLASS'!L370","v":0},{"$f":"'FR-16(7)(v)-3 PROD Demand'!M370+'FR-16(7)(v)-4 PROD Energy'!M370+'FR-16(7)(v)-5 PROD Cust'!M370+'FR-16(7)(v)-7 TRANS Demand'!M370+'FR-16(7)(v)-8 TRANS Energy'!M370+'FR-16(7)(v)-9 TRANS Cust'!M370+'FR-16(7)(v)-11 DIST Demand'!M370+'FR-16(7)(v)-12 DIST Energy'!M370+'FR-16(7)(v)-13 DIST Cust'!M370-'FR-16(7)(v)-14 TOTAL CLASS'!M370","v":0},{"$f":"'FR-16(7)(v)-3 PROD Demand'!N370+'FR-16(7)(v)-4 PROD Energy'!N370+'FR-16(7)(v)-5 PROD Cust'!N370+'FR-16(7)(v)-7 TRANS Demand'!N370+'FR-16(7)(v)-8 TRANS Energy'!N370+'FR-16(7)(v)-9 TRANS Cust'!N370+'FR-16(7)(v)-11 DIST Demand'!N370+'FR-16(7)(v)-12 DIST Energy'!N370+'FR-16(7)(v)-13 DIST Cust'!N370-'FR-16(7)(v)-14 TOTAL CLASS'!N370","v":0},{"$f":"'FR-16(7)(v)-3 PROD Demand'!O370+'FR-16(7)(v)-4 PROD Energy'!O370+'FR-16(7)(v)-5 PROD Cust'!O370+'FR-16(7)(v)-7 TRANS Demand'!O370+'FR-16(7)(v)-8 TRANS Energy'!O370+'FR-16(7)(v)-9 TRANS Cust'!O370+'FR-16(7)(v)-11 DIST Demand'!O370+'FR-16(7)(v)-12 DIST Energy'!O370+'FR-16(7)(v)-13 DIST Cust'!O370-'FR-16(7)(v)-14 TOTAL CLASS'!O370","v":0},{"$f":"'FR-16(7)(v)-3 PROD Demand'!P370+'FR-16(7)(v)-4 PROD Energy'!P370+'FR-16(7)(v)-5 PROD Cust'!P370+'FR-16(7)(v)-7 TRANS Demand'!P370+'FR-16(7)(v)-8 TRANS Energy'!P370+'FR-16(7)(v)-9 TRANS Cust'!P370+'FR-16(7)(v)-11 DIST Demand'!P370+'FR-16(7)(v)-12 DIST Energy'!P370+'FR-16(7)(v)-13 DIST Cust'!P370-'FR-16(7)(v)-14 TOTAL CLASS'!P370","v":0},{"$f":"'FR-16(7)(v)-3 PROD Demand'!Q370+'FR-16(7)(v)-4 PROD Energy'!Q370+'FR-16(7)(v)-5 PROD Cust'!Q370+'FR-16(7)(v)-7 TRANS Demand'!Q370+'FR-16(7)(v)-8 TRANS Energy'!Q370+'FR-16(7)(v)-9 TRANS Cust'!Q370+'FR-16(7)(v)-11 DIST Demand'!Q370+'FR-16(7)(v)-12 DIST Energy'!Q370+'FR-16(7)(v)-13 DIST Cust'!Q370-'FR-16(7)(v)-14 TOTAL CLASS'!Q370","v":0},{"$f":"SUM(G370:Q370)","v":0},{"$f":"F370-R370","v":0}]
[36,null,"TRANSMISSION","T129",null,{"$f":"'FR-16(7)(v)-3 PROD Demand'!F371+'FR-16(7)(v)-4 PROD Energy'!F371+'FR-16(7)(v)-5 PROD Cust'!F371+'FR-16(7)(v)-7 TRANS Demand'!F371+'FR-16(7)(v)-8 TRANS Energy'!F371+'FR-16(7)(v)-9 TRANS Cust'!F371+'FR-16(7)(v)-11 DIST Demand'!F371+'FR-16(7)(v)-12 DIST Energy'!F371+'FR-16(7)(v)-13 DIST Cust'!F371-'FR-16(7)(v)-14 TOTAL CLASS'!F371","v":0},{"$f":"'FR-16(7)(v)-3 PROD Demand'!G371+'FR-16(7)(v)-4 PROD Energy'!G371+'FR-16(7)(v)-5 PROD Cust'!G371+'FR-16(7)(v)-7 TRANS Demand'!G371+'FR-16(7)(v)-8 TRANS Energy'!G371+'FR-16(7)(v)-9 TRANS Cust'!G371+'FR-16(7)(v)-11 DIST Demand'!G371+'FR-16(7)(v)-12 DIST Energy'!G371+'FR-16(7)(v)-13 DIST Cust'!G371-'FR-16(7)(v)-14 TOTAL CLASS'!G371","v":0},{"$f":"'FR-16(7)(v)-3 PROD Demand'!H371+'FR-16(7)(v)-4 PROD Energy'!H371+'FR-16(7)(v)-5 PROD Cust'!H371+'FR-16(7)(v)-7 TRANS Demand'!H371+'FR-16(7)(v)-8 TRANS Energy'!H371+'FR-16(7)(v)-9 TRANS Cust'!H371+'FR-16(7)(v)-11 DIST Demand'!H371+'FR-16(7)(v)-12 DIST Energy'!H371+'FR-16(7)(v)-13 DIST Cust'!H371-'FR-16(7)(v)-14 TOTAL CLASS'!H371","v":0},{"$f":"'FR-16(7)(v)-3 PROD Demand'!I371+'FR-16(7)(v)-4 PROD Energy'!I371+'FR-16(7)(v)-5 PROD Cust'!I371+'FR-16(7)(v)-7 TRANS Demand'!I371+'FR-16(7)(v)-8 TRANS Energy'!I371+'FR-16(7)(v)-9 TRANS Cust'!I371+'FR-16(7)(v)-11 DIST Demand'!I371+'FR-16(7)(v)-12 DIST Energy'!I371+'FR-16(7)(v)-13 DIST Cust'!I371-'FR-16(7)(v)-14 TOTAL CLASS'!I371","v":0},{"$f":"'FR-16(7)(v)-3 PROD Demand'!J371+'FR-16(7)(v)-4 PROD Energy'!J371+'FR-16(7)(v)-5 PROD Cust'!J371+'FR-16(7)(v)-7 TRANS Demand'!J371+'FR-16(7)(v)-8 TRANS Energy'!J371+'FR-16(7)(v)-9 TRANS Cust'!J371+'FR-16(7)(v)-11 DIST Demand'!J371+'FR-16(7)(v)-12 DIST Energy'!J371+'FR-16(7)(v)-13 DIST Cust'!J371-'FR-16(7)(v)-14 TOTAL CLASS'!J371","v":0},{"$f":"'FR-16(7)(v)-3 PROD Demand'!K371+'FR-16(7)(v)-4 PROD Energy'!K371+'FR-16(7)(v)-5 PROD Cust'!K371+'FR-16(7)(v)-7 TRANS Demand'!K371+'FR-16(7)(v)-8 TRANS Energy'!K371+'FR-16(7)(v)-9 TRANS Cust'!K371+'FR-16(7)(v)-11 DIST Demand'!K371+'FR-16(7)(v)-12 DIST Energy'!K371+'FR-16(7)(v)-13 DIST Cust'!K371-'FR-16(7)(v)-14 TOTAL CLASS'!K371","v":0},{"$f":"'FR-16(7)(v)-3 PROD Demand'!L371+'FR-16(7)(v)-4 PROD Energy'!L371+'FR-16(7)(v)-5 PROD Cust'!L371+'FR-16(7)(v)-7 TRANS Demand'!L371+'FR-16(7)(v)-8 TRANS Energy'!L371+'FR-16(7)(v)-9 TRANS Cust'!L371+'FR-16(7)(v)-11 DIST Demand'!L371+'FR-16(7)(v)-12 DIST Energy'!L371+'FR-16(7)(v)-13 DIST Cust'!L371-'FR-16(7)(v)-14 TOTAL CLASS'!L371","v":0},{"$f":"'FR-16(7)(v)-3 PROD Demand'!M371+'FR-16(7)(v)-4 PROD Energy'!M371+'FR-16(7)(v)-5 PROD Cust'!M371+'FR-16(7)(v)-7 TRANS Demand'!M371+'FR-16(7)(v)-8 TRANS Energy'!M371+'FR-16(7)(v)-9 TRANS Cust'!M371+'FR-16(7)(v)-11 DIST Demand'!M371+'FR-16(7)(v)-12 DIST Energy'!M371+'FR-16(7)(v)-13 DIST Cust'!M371-'FR-16(7)(v)-14 TOTAL CLASS'!M371","v":0},{"$f":"'FR-16(7)(v)-3 PROD Demand'!N371+'FR-16(7)(v)-4 PROD Energy'!N371+'FR-16(7)(v)-5 PROD Cust'!N371+'FR-16(7)(v)-7 TRANS Demand'!N371+'FR-16(7)(v)-8 TRANS Energy'!N371+'FR-16(7)(v)-9 TRANS Cust'!N371+'FR-16(7)(v)-11 DIST Demand'!N371+'FR-16(7)(v)-12 DIST Energy'!N371+'FR-16(7)(v)-13 DIST Cust'!N371-'FR-16(7)(v)-14 TOTAL CLASS'!N371","v":0},{"$f":"'FR-16(7)(v)-3 PROD Demand'!O371+'FR-16(7)(v)-4 PROD Energy'!O371+'FR-16(7)(v)-5 PROD Cust'!O371+'FR-16(7)(v)-7 TRANS Demand'!O371+'FR-16(7)(v)-8 TRANS Energy'!O371+'FR-16(7)(v)-9 TRANS Cust'!O371+'FR-16(7)(v)-11 DIST Demand'!O371+'FR-16(7)(v)-12 DIST Energy'!O371+'FR-16(7)(v)-13 DIST Cust'!O371-'FR-16(7)(v)-14 TOTAL CLASS'!O371","v":0},{"$f":"'FR-16(7)(v)-3 PROD Demand'!P371+'FR-16(7)(v)-4 PROD Energy'!P371+'FR-16(7)(v)-5 PROD Cust'!P371+'FR-16(7)(v)-7 TRANS Demand'!P371+'FR-16(7)(v)-8 TRANS Energy'!P371+'FR-16(7)(v)-9 TRANS Cust'!P371+'FR-16(7)(v)-11 DIST Demand'!P371+'FR-16(7)(v)-12 DIST Energy'!P371+'FR-16(7)(v)-13 DIST Cust'!P371-'FR-16(7)(v)-14 TOTAL CLASS'!P371","v":0},{"$f":"'FR-16(7)(v)-3 PROD Demand'!Q371+'FR-16(7)(v)-4 PROD Energy'!Q371+'FR-16(7)(v)-5 PROD Cust'!Q371+'FR-16(7)(v)-7 TRANS Demand'!Q371+'FR-16(7)(v)-8 TRANS Energy'!Q371+'FR-16(7)(v)-9 TRANS Cust'!Q371+'FR-16(7)(v)-11 DIST Demand'!Q371+'FR-16(7)(v)-12 DIST Energy'!Q371+'FR-16(7)(v)-13 DIST Cust'!Q371-'FR-16(7)(v)-14 TOTAL CLASS'!Q371","v":0},{"$f":"SUM(G371:Q371)","v":0},{"$f":"F371-R371","v":0}]
[37,null,"DISTRIBUTION",{"$f":"'FR-16(7)(v)-1 Functional'!D372","v":"D149"},null,{"$f":"'FR-16(7)(v)-3 PROD Demand'!F372+'FR-16(7)(v)-4 PROD Energy'!F372+'FR-16(7)(v)-5 PROD Cust'!F372+'FR-16(7)(v)-7 TRANS Demand'!F372+'FR-16(7)(v)-8 TRANS Energy'!F372+'FR-16(7)(v)-9 TRANS Cust'!F372+'FR-16(7)(v)-11 DIST Demand'!F372+'FR-16(7)(v)-12 DIST Energy'!F372+'FR-16(7)(v)-13 DIST Cust'!F372-'FR-16(7)(v)-14 TOTAL CLASS'!F372","v":0},{"$f":"'FR-16(7)(v)-3 PROD Demand'!G372+'FR-16(7)(v)-4 PROD Energy'!G372+'FR-16(7)(v)-5 PROD Cust'!G372+'FR-16(7)(v)-7 TRANS Demand'!G372+'FR-16(7)(v)-8 TRANS Energy'!G372+'FR-16(7)(v)-9 TRANS Cust'!G372+'FR-16(7)(v)-11 DIST Demand'!G372+'FR-16(7)(v)-12 DIST Energy'!G372+'FR-16(7)(v)-13 DIST Cust'!G372-'FR-16(7)(v)-14 TOTAL CLASS'!G372","v":0},{"$f":"'FR-16(7)(v)-3 PROD Demand'!H372+'FR-16(7)(v)-4 PROD Energy'!H372+'FR-16(7)(v)-5 PROD Cust'!H372+'FR-16(7)(v)-7 TRANS Demand'!H372+'FR-16(7)(v)-8 TRANS Energy'!H372+'FR-16(7)(v)-9 TRANS Cust'!H372+'FR-16(7)(v)-11 DIST Demand'!H372+'FR-16(7)(v)-12 DIST Energy'!H372+'FR-16(7)(v)-13 DIST Cust'!H372-'FR-16(7)(v)-14 TOTAL CLASS'!H372","v":0},{"$f":"'FR-16(7)(v)-3 PROD Demand'!I372+'FR-16(7)(v)-4 PROD Energy'!I372+'FR-16(7)(v)-5 PROD Cust'!I372+'FR-16(7)(v)-7 TRANS Demand'!I372+'FR-16(7)(v)-8 TRANS Energy'!I372+'FR-16(7)(v)-9 TRANS Cust'!I372+'FR-16(7)(v)-11 DIST Demand'!I372+'FR-16(7)(v)-12 DIST Energy'!I372+'FR-16(7)(v)-13 DIST Cust'!I372-'FR-16(7)(v)-14 TOTAL CLASS'!I372","v":0},{"$f":"'FR-16(7)(v)-3 PROD Demand'!J372+'FR-16(7)(v)-4 PROD Energy'!J372+'FR-16(7)(v)-5 PROD Cust'!J372+'FR-16(7)(v)-7 TRANS Demand'!J372+'FR-16(7)(v)-8 TRANS Energy'!J372+'FR-16(7)(v)-9 TRANS Cust'!J372+'FR-16(7)(v)-11 DIST Demand'!J372+'FR-16(7)(v)-12 DIST Energy'!J372+'FR-16(7)(v)-13 DIST Cust'!J372-'FR-16(7)(v)-14 TOTAL CLASS'!J372","v":0},{"$f":"'FR-16(7)(v)-3 PROD Demand'!K372+'FR-16(7)(v)-4 PROD Energy'!K372+'FR-16(7)(v)-5 PROD Cust'!K372+'FR-16(7)(v)-7 TRANS Demand'!K372+'FR-16(7)(v)-8 TRANS Energy'!K372+'FR-16(7)(v)-9 TRANS Cust'!K372+'FR-16(7)(v)-11 DIST Demand'!K372+'FR-16(7)(v)-12 DIST Energy'!K372+'FR-16(7)(v)-13 DIST Cust'!K372-'FR-16(7)(v)-14 TOTAL CLASS'!K372","v":0},{"$f":"'FR-16(7)(v)-3 PROD Demand'!L372+'FR-16(7)(v)-4 PROD Energy'!L372+'FR-16(7)(v)-5 PROD Cust'!L372+'FR-16(7)(v)-7 TRANS Demand'!L372+'FR-16(7)(v)-8 TRANS Energy'!L372+'FR-16(7)(v)-9 TRANS Cust'!L372+'FR-16(7)(v)-11 DIST Demand'!L372+'FR-16(7)(v)-12 DIST Energy'!L372+'FR-16(7)(v)-13 DIST Cust'!L372-'FR-16(7)(v)-14 TOTAL CLASS'!L372","v":0},{"$f":"'FR-16(7)(v)-3 PROD Demand'!M372+'FR-16(7)(v)-4 PROD Energy'!M372+'FR-16(7)(v)-5 PROD Cust'!M372+'FR-16(7)(v)-7 TRANS Demand'!M372+'FR-16(7)(v)-8 TRANS Energy'!M372+'FR-16(7)(v)-9 TRANS Cust'!M372+'FR-16(7)(v)-11 DIST Demand'!M372+'FR-16(7)(v)-12 DIST Energy'!M372+'FR-16(7)(v)-13 DIST Cust'!M372-'FR-16(7)(v)-14 TOTAL CLASS'!M372","v":0},{"$f":"'FR-16(7)(v)-3 PROD Demand'!N372+'FR-16(7)(v)-4 PROD Energy'!N372+'FR-16(7)(v)-5 PROD Cust'!N372+'FR-16(7)(v)-7 TRANS Demand'!N372+'FR-16(7)(v)-8 TRANS Energy'!N372+'FR-16(7)(v)-9 TRANS Cust'!N372+'FR-16(7)(v)-11 DIST Demand'!N372+'FR-16(7)(v)-12 DIST Energy'!N372+'FR-16(7)(v)-13 DIST Cust'!N372-'FR-16(7)(v)-14 TOTAL CLASS'!N372","v":0},{"$f":"'FR-16(7)(v)-3 PROD Demand'!O372+'FR-16(7)(v)-4 PROD Energy'!O372+'FR-16(7)(v)-5 PROD Cust'!O372+'FR-16(7)(v)-7 TRANS Demand'!O372+'FR-16(7)(v)-8 TRANS Energy'!O372+'FR-16(7)(v)-9 TRANS Cust'!O372+'FR-16(7)(v)-11 DIST Demand'!O372+'FR-16(7)(v)-12 DIST Energy'!O372+'FR-16(7)(v)-13 DIST Cust'!O372-'FR-16(7)(v)-14 TOTAL CLASS'!O372","v":0},{"$f":"'FR-16(7)(v)-3 PROD Demand'!P372+'FR-16(7)(v)-4 PROD Energy'!P372+'FR-16(7)(v)-5 PROD Cust'!P372+'FR-16(7)(v)-7 TRANS Demand'!P372+'FR-16(7)(v)-8 TRANS Energy'!P372+'FR-16(7)(v)-9 TRANS Cust'!P372+'FR-16(7)(v)-11 DIST Demand'!P372+'FR-16(7)(v)-12 DIST Energy'!P372+'FR-16(7)(v)-13 DIST Cust'!P372-'FR-16(7)(v)-14 TOTAL CLASS'!P372","v":0},{"$f":"'FR-16(7)(v)-3 PROD Demand'!Q372+'FR-16(7)(v)-4 PROD Energy'!Q372+'FR-16(7)(v)-5 PROD Cust'!Q372+'FR-16(7)(v)-7 TRANS Demand'!Q372+'FR-16(7)(v)-8 TRANS Energy'!Q372+'FR-16(7)(v)-9 TRANS Cust'!Q372+'FR-16(7)(v)-11 DIST Demand'!Q372+'FR-16(7)(v)-12 DIST Energy'!Q372+'FR-16(7)(v)-13 DIST Cust'!Q372-'FR-16(7)(v)-14 TOTAL CLASS'!Q372","v":0},{"$f":"SUM(G372:Q372)","v":0},{"$f":"F372-R372","v":0}]
[38,null,"COMMON",{"$f":"'FR-16(7)(v)-1 Functional'!D373","v":"C129"},null,{"$f":"'FR-16(7)(v)-3 PROD Demand'!F373+'FR-16(7)(v)-4 PROD Energy'!F373+'FR-16(7)(v)-5 PROD Cust'!F373+'FR-16(7)(v)-7 TRANS Demand'!F373+'FR-16(7)(v)-8 TRANS Energy'!F373+'FR-16(7)(v)-9 TRANS Cust'!F373+'FR-16(7)(v)-11 DIST Demand'!F373+'FR-16(7)(v)-12 DIST Energy'!F373+'FR-16(7)(v)-13 DIST Cust'!F373-'FR-16(7)(v)-14 TOTAL CLASS'!F373","v":0},{"$f":"'FR-16(7)(v)-3 PROD Demand'!G373+'FR-16(7)(v)-4 PROD Energy'!G373+'FR-16(7)(v)-5 PROD Cust'!G373+'FR-16(7)(v)-7 TRANS Demand'!G373+'FR-16(7)(v)-8 TRANS Energy'!G373+'FR-16(7)(v)-9 TRANS Cust'!G373+'FR-16(7)(v)-11 DIST Demand'!G373+'FR-16(7)(v)-12 DIST Energy'!G373+'FR-16(7)(v)-13 DIST Cust'!G373-'FR-16(7)(v)-14 TOTAL CLASS'!G373","v":0},{"$f":"'FR-16(7)(v)-3 PROD Demand'!H373+'FR-16(7)(v)-4 PROD Energy'!H373+'FR-16(7)(v)-5 PROD Cust'!H373+'FR-16(7)(v)-7 TRANS Demand'!H373+'FR-16(7)(v)-8 TRANS Energy'!H373+'FR-16(7)(v)-9 TRANS Cust'!H373+'FR-16(7)(v)-11 DIST Demand'!H373+'FR-16(7)(v)-12 DIST Energy'!H373+'FR-16(7)(v)-13 DIST Cust'!H373-'FR-16(7)(v)-14 TOTAL CLASS'!H373","v":0},{"$f":"'FR-16(7)(v)-3 PROD Demand'!I373+'FR-16(7)(v)-4 PROD Energy'!I373+'FR-16(7)(v)-5 PROD Cust'!I373+'FR-16(7)(v)-7 TRANS Demand'!I373+'FR-16(7)(v)-8 TRANS Energy'!I373+'FR-16(7)(v)-9 TRANS Cust'!I373+'FR-16(7)(v)-11 DIST Demand'!I373+'FR-16(7)(v)-12 DIST Energy'!I373+'FR-16(7)(v)-13 DIST Cust'!I373-'FR-16(7)(v)-14 TOTAL CLASS'!I373","v":0},{"$f":"'FR-16(7)(v)-3 PROD Demand'!J373+'FR-16(7)(v)-4 PROD Energy'!J373+'FR-16(7)(v)-5 PROD Cust'!J373+'FR-16(7)(v)-7 TRANS Demand'!J373+'FR-16(7)(v)-8 TRANS Energy'!J373+'FR-16(7)(v)-9 TRANS Cust'!J373+'FR-16(7)(v)-11 DIST Demand'!J373+'FR-16(7)(v)-12 DIST Energy'!J373+'FR-16(7)(v)-13 DIST Cust'!J373-'FR-16(7)(v)-14 TOTAL CLASS'!J373","v":0},{"$f":"'FR-16(7)(v)-3 PROD Demand'!K373+'FR-16(7)(v)-4 PROD Energy'!K373+'FR-16(7)(v)-5 PROD Cust'!K373+'FR-16(7)(v)-7 TRANS Demand'!K373+'FR-16(7)(v)-8 TRANS Energy'!K373+'FR-16(7)(v)-9 TRANS Cust'!K373+'FR-16(7)(v)-11 DIST Demand'!K373+'FR-16(7)(v)-12 DIST Energy'!K373+'FR-16(7)(v)-13 DIST Cust'!K373-'FR-16(7)(v)-14 TOTAL CLASS'!K373","v":0},{"$f":"'FR-16(7)(v)-3 PROD Demand'!L373+'FR-16(7)(v)-4 PROD Energy'!L373+'FR-16(7)(v)-5 PROD Cust'!L373+'FR-16(7)(v)-7 TRANS Demand'!L373+'FR-16(7)(v)-8 TRANS Energy'!L373+'FR-16(7)(v)-9 TRANS Cust'!L373+'FR-16(7)(v)-11 DIST Demand'!L373+'FR-16(7)(v)-12 DIST Energy'!L373+'FR-16(7)(v)-13 DIST Cust'!L373-'FR-16(7)(v)-14 TOTAL CLASS'!L373","v":0},{"$f":"'FR-16(7)(v)-3 PROD Demand'!M373+'FR-16(7)(v)-4 PROD Energy'!M373+'FR-16(7)(v)-5 PROD Cust'!M373+'FR-16(7)(v)-7 TRANS Demand'!M373+'FR-16(7)(v)-8 TRANS Energy'!M373+'FR-16(7)(v)-9 TRANS Cust'!M373+'FR-16(7)(v)-11 DIST Demand'!M373+'FR-16(7)(v)-12 DIST Energy'!M373+'FR-16(7)(v)-13 DIST Cust'!M373-'FR-16(7)(v)-14 TOTAL CLASS'!M373","v":0},{"$f":"'FR-16(7)(v)-3 PROD Demand'!N373+'FR-16(7)(v)-4 PROD Energy'!N373+'FR-16(7)(v)-5 PROD Cust'!N373+'FR-16(7)(v)-7 TRANS Demand'!N373+'FR-16(7)(v)-8 TRANS Energy'!N373+'FR-16(7)(v)-9 TRANS Cust'!N373+'FR-16(7)(v)-11 DIST Demand'!N373+'FR-16(7)(v)-12 DIST Energy'!N373+'FR-16(7)(v)-13 DIST Cust'!N373-'FR-16(7)(v)-14 TOTAL CLASS'!N373","v":0},{"$f":"'FR-16(7)(v)-3 PROD Demand'!O373+'FR-16(7)(v)-4 PROD Energy'!O373+'FR-16(7)(v)-5 PROD Cust'!O373+'FR-16(7)(v)-7 TRANS Demand'!O373+'FR-16(7)(v)-8 TRANS Energy'!O373+'FR-16(7)(v)-9 TRANS Cust'!O373+'FR-16(7)(v)-11 DIST Demand'!O373+'FR-16(7)(v)-12 DIST Energy'!O373+'FR-16(7)(v)-13 DIST Cust'!O373-'FR-16(7)(v)-14 TOTAL CLASS'!O373","v":0},{"$f":"'FR-16(7)(v)-3 PROD Demand'!P373+'FR-16(7)(v)-4 PROD Energy'!P373+'FR-16(7)(v)-5 PROD Cust'!P373+'FR-16(7)(v)-7 TRANS Demand'!P373+'FR-16(7)(v)-8 TRANS Energy'!P373+'FR-16(7)(v)-9 TRANS Cust'!P373+'FR-16(7)(v)-11 DIST Demand'!P373+'FR-16(7)(v)-12 DIST Energy'!P373+'FR-16(7)(v)-13 DIST Cust'!P373-'FR-16(7)(v)-14 TOTAL CLASS'!P373","v":0},{"$f":"'FR-16(7)(v)-3 PROD Demand'!Q373+'FR-16(7)(v)-4 PROD Energy'!Q373+'FR-16(7)(v)-5 PROD Cust'!Q373+'FR-16(7)(v)-7 TRANS Demand'!Q373+'FR-16(7)(v)-8 TRANS Energy'!Q373+'FR-16(7)(v)-9 TRANS Cust'!Q373+'FR-16(7)(v)-11 DIST Demand'!Q373+'FR-16(7)(v)-12 DIST Energy'!Q373+'FR-16(7)(v)-13 DIST Cust'!Q373-'FR-16(7)(v)-14 TOTAL CLASS'!Q373","v":0},{"$f":"SUM(G373:Q373)","v":0},{"$f":"F373-R373","v":0}]
[39,null,"GENERAL",{"$f":"'FR-16(7)(v)-1 Functional'!D374","v":"G129"},null,{"$f":"'FR-16(7)(v)-3 PROD Demand'!F374+'FR-16(7)(v)-4 PROD Energy'!F374+'FR-16(7)(v)-5 PROD Cust'!F374+'FR-16(7)(v)-7 TRANS Demand'!F374+'FR-16(7)(v)-8 TRANS Energy'!F374+'FR-16(7)(v)-9 TRANS Cust'!F374+'FR-16(7)(v)-11 DIST Demand'!F374+'FR-16(7)(v)-12 DIST Energy'!F374+'FR-16(7)(v)-13 DIST Cust'!F374-'FR-16(7)(v)-14 TOTAL CLASS'!F374","v":0},{"$f":"'FR-16(7)(v)-3 PROD Demand'!G374+'FR-16(7)(v)-4 PROD Energy'!G374+'FR-16(7)(v)-5 PROD Cust'!G374+'FR-16(7)(v)-7 TRANS Demand'!G374+'FR-16(7)(v)-8 TRANS Energy'!G374+'FR-16(7)(v)-9 TRANS Cust'!G374+'FR-16(7)(v)-11 DIST Demand'!G374+'FR-16(7)(v)-12 DIST Energy'!G374+'FR-16(7)(v)-13 DIST Cust'!G374-'FR-16(7)(v)-14 TOTAL CLASS'!G374","v":0},{"$f":"'FR-16(7)(v)-3 PROD Demand'!H374+'FR-16(7)(v)-4 PROD Energy'!H374+'FR-16(7)(v)-5 PROD Cust'!H374+'FR-16(7)(v)-7 TRANS Demand'!H374+'FR-16(7)(v)-8 TRANS Energy'!H374+'FR-16(7)(v)-9 TRANS Cust'!H374+'FR-16(7)(v)-11 DIST Demand'!H374+'FR-16(7)(v)-12 DIST Energy'!H374+'FR-16(7)(v)-13 DIST Cust'!H374-'FR-16(7)(v)-14 TOTAL CLASS'!H374","v":0},{"$f":"'FR-16(7)(v)-3 PROD Demand'!I374+'FR-16(7)(v)-4 PROD Energy'!I374+'FR-16(7)(v)-5 PROD Cust'!I374+'FR-16(7)(v)-7 TRANS Demand'!I374+'FR-16(7)(v)-8 TRANS Energy'!I374+'FR-16(7)(v)-9 TRANS Cust'!I374+'FR-16(7)(v)-11 DIST Demand'!I374+'FR-16(7)(v)-12 DIST Energy'!I374+'FR-16(7)(v)-13 DIST Cust'!I374-'FR-16(7)(v)-14 TOTAL CLASS'!I374","v":0},{"$f":"'FR-16(7)(v)-3 PROD Demand'!J374+'FR-16(7)(v)-4 PROD Energy'!J374+'FR-16(7)(v)-5 PROD Cust'!J374+'FR-16(7)(v)-7 TRANS Demand'!J374+'FR-16(7)(v)-8 TRANS Energy'!J374+'FR-16(7)(v)-9 TRANS Cust'!J374+'FR-16(7)(v)-11 DIST Demand'!J374+'FR-16(7)(v)-12 DIST Energy'!J374+'FR-16(7)(v)-13 DIST Cust'!J374-'FR-16(7)(v)-14 TOTAL CLASS'!J374","v":0},{"$f":"'FR-16(7)(v)-3 PROD Demand'!K374+'FR-16(7)(v)-4 PROD Energy'!K374+'FR-16(7)(v)-5 PROD Cust'!K374+'FR-16(7)(v)-7 TRANS Demand'!K374+'FR-16(7)(v)-8 TRANS Energy'!K374+'FR-16(7)(v)-9 TRANS Cust'!K374+'FR-16(7)(v)-11 DIST Demand'!K374+'FR-16(7)(v)-12 DIST Energy'!K374+'FR-16(7)(v)-13 DIST Cust'!K374-'FR-16(7)(v)-14 TOTAL CLASS'!K374","v":0},{"$f":"'FR-16(7)(v)-3 PROD Demand'!L374+'FR-16(7)(v)-4 PROD Energy'!L374+'FR-16(7)(v)-5 PROD Cust'!L374+'FR-16(7)(v)-7 TRANS Demand'!L374+'FR-16(7)(v)-8 TRANS Energy'!L374+'FR-16(7)(v)-9 TRANS Cust'!L374+'FR-16(7)(v)-11 DIST Demand'!L374+'FR-16(7)(v)-12 DIST Energy'!L374+'FR-16(7)(v)-13 DIST Cust'!L374-'FR-16(7)(v)-14 TOTAL CLASS'!L374","v":0},{"$f":"'FR-16(7)(v)-3 PROD Demand'!M374+'FR-16(7)(v)-4 PROD Energy'!M374+'FR-16(7)(v)-5 PROD Cust'!M374+'FR-16(7)(v)-7 TRANS Demand'!M374+'FR-16(7)(v)-8 TRANS Energy'!M374+'FR-16(7)(v)-9 TRANS Cust'!M374+'FR-16(7)(v)-11 DIST Demand'!M374+'FR-16(7)(v)-12 DIST Energy'!M374+'FR-16(7)(v)-13 DIST Cust'!M374-'FR-16(7)(v)-14 TOTAL CLASS'!M374","v":0},{"$f":"'FR-16(7)(v)-3 PROD Demand'!N374+'FR-16(7)(v)-4 PROD Energy'!N374+'FR-16(7)(v)-5 PROD Cust'!N374+'FR-16(7)(v)-7 TRANS Demand'!N374+'FR-16(7)(v)-8 TRANS Energy'!N374+'FR-16(7)(v)-9 TRANS Cust'!N374+'FR-16(7)(v)-11 DIST Demand'!N374+'FR-16(7)(v)-12 DIST Energy'!N374+'FR-16(7)(v)-13 DIST Cust'!N374-'FR-16(7)(v)-14 TOTAL CLASS'!N374","v":0},{"$f":"'FR-16(7)(v)-3 PROD Demand'!O374+'FR-16(7)(v)-4 PROD Energy'!O374+'FR-16(7)(v)-5 PROD Cust'!O374+'FR-16(7)(v)-7 TRANS Demand'!O374+'FR-16(7)(v)-8 TRANS Energy'!O374+'FR-16(7)(v)-9 TRANS Cust'!O374+'FR-16(7)(v)-11 DIST Demand'!O374+'FR-16(7)(v)-12 DIST Energy'!O374+'FR-16(7)(v)-13 DIST Cust'!O374-'FR-16(7)(v)-14 TOTAL CLASS'!O374","v":0},{"$f":"'FR-16(7)(v)-3 PROD Demand'!P374+'FR-16(7)(v)-4 PROD Energy'!P374+'FR-16(7)(v)-5 PROD Cust'!P374+'FR-16(7)(v)-7 TRANS Demand'!P374+'FR-16(7)(v)-8 TRANS Energy'!P374+'FR-16(7)(v)-9 TRANS Cust'!P374+'FR-16(7)(v)-11 DIST Demand'!P374+'FR-16(7)(v)-12 DIST Energy'!P374+'FR-16(7)(v)-13 DIST Cust'!P374-'FR-16(7)(v)-14 TOTAL CLASS'!P374","v":0},{"$f":"'FR-16(7)(v)-3 PROD Demand'!Q374+'FR-16(7)(v)-4 PROD Energy'!Q374+'FR-16(7)(v)-5 PROD Cust'!Q374+'FR-16(7)(v)-7 TRANS Demand'!Q374+'FR-16(7)(v)-8 TRANS Energy'!Q374+'FR-16(7)(v)-9 TRANS Cust'!Q374+'FR-16(7)(v)-11 DIST Demand'!Q374+'FR-16(7)(v)-12 DIST Energy'!Q374+'FR-16(7)(v)-13 DIST Cust'!Q374-'FR-16(7)(v)-14 TOTAL CLASS'!Q374","v":0},{"$f":"SUM(G374:Q374)","v":0},{"$f":"F374-R374","v":0}]
[40,null,"TOTAL CONSTRUCTION WORK IN PROGRESS",null,null,{"$f":"SUM(F370:F374)","v":0},{"$f":"SUM(G370:G374)","v":0},0,0,0,0,0,0,0,0,0,0,0,0]
[41]
[42,{"$f":"'FR-16(7)(v)-1 Functional'!B377","v":"TOTAL ADDITIVE RATE BASE ADJUSTMENTS"},null,null,null,{"$f":"F361+F367+F375","v":0},{"$f":"G361+G367+G375","v":0},{"$f":"H361+H367+H375","v":0},{"$f":"I361+I367+I375","v":0},{"$f":"J361+J367+J375","v":0},0,0,0,0,0,0,{"$f":"Q361+Q367+Q375","v":0},{"$f":"R361+R367+R375","v":0},{"$f":"S361+S367","v":0}]
[]
[{"$f":"co_name","v":"DUKE ENERGY KENTUCKY, INC."},null,null,null,null,null,null,null,null,null,null,null,null,null,null,null,null,{"$f":"R1","v":"FR-16(7)(v)-14"}]
[{"$f":"$A$2","v":"TOTAL CLASS ALLOCATED - ELECTRIC COST OF SERVICE"},null,null,null,null,null,null,null,null,null,null,null,null,null,null,null,null,{"$f":"R2","v":"WITNESS RESPONSIBLE:"}]
[{"$f":"case_name","v":"CASE NO: 2019-00271"},null,null,null,null,null,null,null,null,null,null,null,null,null,null,null,null,{"$f":"Witness","v":"JAMES E. ZIOLKOWSKI"}]
[{"$f":"data_filing","v":"DATA: 12 MONTHS ACTUAL  & 0 MONTHS ESTIMATED"},null,null,null,null,null,null,null,null,null,null,null,null,null,null,null,null,{"$f":"\"PAGE \"&Pages2-8&\" OF \"&Pages2","v":"PAGE 7 OF 15"}]
[{"$f":"type","v":"TYPE OF FILING: \"X\" ORIGINAL   UPDATED    REVISED  "}]
[]
[null,null,null,null,null,{"$f":"F$7","v":"TOTAL"},null,{"$f":"H$7","v":"DS"},{"$f":"I$7","v":"GSFL"},{"$f":"J$7","v":"EH"},{"$f":"K$7","v":"SP"},"DT SEC","DT PRI","DP","TT",null,"OTHER"]
["LINE",null,null,null,null,{"$f":"F$8","v":"CLASS"},{"$f":"G$8","v":"RS"},{"$f":"H$8","v":"SECONDARY"},{"$f":"I$8","v":"SECONDARY"},{"$f":"J$8","v":"SECONDARY"},{"$f":"K$8","v":"SECONDARY"},"SECONDARY","PRIMARY","PRIMARY","TRANSMISSION","LT","WATER",{"$f":"R8","v":"TOTAL"},"ALL"]
["NO.","WORKING CAPITAL",null,"ALLO",null,{"$f":"F$9","v":"ALLOCATED"},{"$f":"G$9","v":"RESIDENTIAL"},{"$f":"H$9","v":"DISTRIBUTION"},{"$f":"I$9","v":"DISTRIBUTION"},{"$f":"J$9","v":"DISTRIBUTION"},{"$f":"K$9","v":"DISTRIBUTION"},"DISTRIBUTION","DISTRIBUTION","DISTRIBUTION","TIME OF DAY","LIGHTING","PUMPING",{"$f":"R9","v":"AT ISSUE"},"OTHER"]
[null,null,"Schedule 5.2",null,null,null,{"$f":"G$10","v":3},{"$f":"H$10","v":4},{"$f":"I$10","v":5},{"$f":"J$10","v":6},{"$f":"K$10","v":7},8,9,10,11,12,13,null," "]
[]
[1,"NET ORIGINAL COST RATE BASE",null,null,null,{"$f":"F277-F324+F377","v":0},{"$f":"G277-G324+G377","v":0},0,0,0,0,0,0,0,0,0,0,0,0]
[2]
[3,"WORKING CAPITAL"]
[4]
[5,"PLANT MATERIALS & SUPPLIES"]
[6,null,"OTHER MATERIALS & SUPPLIES","PD29",null,{"$f":"'FR-16(7)(v)-3 PROD Demand'!F395+'FR-16(7)(v)-4 PROD Energy'!F395+'FR-16(7)(v)-5 PROD Cust'!F395+'FR-16(7)(v)-7 TRANS Demand'!F395+'FR-16(7)(v)-8 TRANS Energy'!F395+'FR-16(7)(v)-9 TRANS Cust'!F395+'FR-16(7)(v)-11 DIST Demand'!F395+'FR-16(7)(v)-12 DIST Energy'!F395+'FR-16(7)(v)-13 DIST Cust'!F395-'FR-16(7)(v)-14 TOTAL CLASS'!F395","v":0},{"$f":"'FR-16(7)(v)-3 PROD Demand'!G395+'FR-16(7)(v)-4 PROD Energy'!G395+'FR-16(7)(v)-5 PROD Cust'!G395+'FR-16(7)(v)-7 TRANS Demand'!G395+'FR-16(7)(v)-8 TRANS Energy'!G395+'FR-16(7)(v)-9 TRANS Cust'!G395+'FR-16(7)(v)-11 DIST Demand'!G395+'FR-16(7)(v)-12 DIST Energy'!G395+'FR-16(7)(v)-13 DIST Cust'!G395-'FR-16(7)(v)-14 TOTAL CLASS'!G395","v":0},{"$f":"'FR-16(7)(v)-3 PROD Demand'!H395+'FR-16(7)(v)-4 PROD Energy'!H395+'FR-16(7)(v)-5 PROD Cust'!H395+'FR-16(7)(v)-7 TRANS Demand'!H395+'FR-16(7)(v)-8 TRANS Energy'!H395+'FR-16(7)(v)-9 TRANS Cust'!H395+'FR-16(7)(v)-11 DIST Demand'!H395+'FR-16(7)(v)-12 DIST Energy'!H395+'FR-16(7)(v)-13 DIST Cust'!H395-'FR-16(7)(v)-14 TOTAL CLASS'!H395","v":0},{"$f":"'FR-16(7)(v)-3 PROD Demand'!I395+'FR-16(7)(v)-4 PROD Energy'!I395+'FR-16(7)(v)-5 PROD Cust'!I395+'FR-16(7)(v)-7 TRANS Demand'!I395+'FR-16(7)(v)-8 TRANS Energy'!I395+'FR-16(7)(v)-9 TRANS Cust'!I395+'FR-16(7)(v)-11 DIST Demand'!I395+'FR-16(7)(v)-12 DIST Energy'!I395+'FR-16(7)(v)-13 DIST Cust'!I395-'FR-16(7)(v)-14 TOTAL CLASS'!I395","v":0},{"$f":"'FR-16(7)(v)-3 PROD Demand'!J395+'FR-16(7)(v)-4 PROD Energy'!J395+'FR-16(7)(v)-5 PROD Cust'!J395+'FR-16(7)(v)-7 TRANS Demand'!J395+'FR-16(7)(v)-8 TRANS Energy'!J395+'FR-16(7)(v)-9 TRANS Cust'!J395+'FR-16(7)(v)-11 DIST Demand'!J395+'FR-16(7)(v)-12 DIST Energy'!J395+'FR-16(7)(v)-13 DIST Cust'!J395-'FR-16(7)(v)-14 TOTAL CLASS'!J395","v":0},{"$f":"'FR-16(7)(v)-3 PROD Demand'!K395+'FR-16(7)(v)-4 PROD Energy'!K395+'FR-16(7)(v)-5 PROD Cust'!K395+'FR-16(7)(v)-7 TRANS Demand'!K395+'FR-16(7)(v)-8 TRANS Energy'!K395+'FR-16(7)(v)-9 TRANS Cust'!K395+'FR-16(7)(v)-11 DIST Demand'!K395+'FR-16(7)(v)-12 DIST Energy'!K395+'FR-16(7)(v)-13 DIST Cust'!K395-'FR-16(7)(v)-14 TOTAL CLASS'!K395","v":0},{"$f":"'FR-16(7)(v)-3 PROD Demand'!L395+'FR-16(7)(v)-4 PROD Energy'!L395+'FR-16(7)(v)-5 PROD Cust'!L395+'FR-16(7)(v)-7 TRANS Demand'!L395+'FR-16(7)(v)-8 TRANS Energy'!L395+'FR-16(7)(v)-9 TRANS Cust'!L395+'FR-16(7)(v)-11 DIST Demand'!L395+'FR-16(7)(v)-12 DIST Energy'!L395+'FR-16(7)(v)-13 DIST Cust'!L395-'FR-16(7)(v)-14 TOTAL CLASS'!L395","v":0},{"$f":"'FR-16(7)(v)-3 PROD Demand'!M395+'FR-16(7)(v)-4 PROD Energy'!M395+'FR-16(7)(v)-5 PROD Cust'!M395+'FR-16(7)(v)-7 TRANS Demand'!M395+'FR-16(7)(v)-8 TRANS Energy'!M395+'FR-16(7)(v)-9 TRANS Cust'!M395+'FR-16(7)(v)-11 DIST Demand'!M395+'FR-16(7)(v)-12 DIST Energy'!M395+'FR-16(7)(v)-13 DIST Cust'!M395-'FR-16(7)(v)-14 TOTAL CLASS'!M395","v":0},{"$f":"'FR-16(7)(v)-3 PROD Demand'!N395+'FR-16(7)(v)-4 PROD Energy'!N395+'FR-16(7)(v)-5 PROD Cust'!N395+'FR-16(7)(v)-7 TRANS Demand'!N395+'FR-16(7)(v)-8 TRANS Energy'!N395+'FR-16(7)(v)-9 TRANS Cust'!N395+'FR-16(7)(v)-11 DIST Demand'!N395+'FR-16(7)(v)-12 DIST Energy'!N395+'FR-16(7)(v)-13 DIST Cust'!N395-'FR-16(7)(v)-14 TOTAL CLASS'!N395","v":0},{"$f":"'FR-16(7)(v)-3 PROD Demand'!O395+'FR-16(7)(v)-4 PROD Energy'!O395+'FR-16(7)(v)-5 PROD Cust'!O395+'FR-16(7)(v)-7 TRANS Demand'!O395+'FR-16(7)(v)-8 TRANS Energy'!O395+'FR-16(7)(v)-9 TRANS Cust'!O395+'FR-16(7)(v)-11 DIST Demand'!O395+'FR-16(7)(v)-12 DIST Energy'!O395+'FR-16(7)(v)-13 DIST Cust'!O395-'FR-16(7)(v)-14 TOTAL CLASS'!O395","v":0},{"$f":"'FR-16(7)(v)-3 PROD Demand'!P395+'FR-16(7)(v)-4 PROD Energy'!P395+'FR-16(7)(v)-5 PROD Cust'!P395+'FR-16(7)(v)-7 TRANS Demand'!P395+'FR-16(7)(v)-8 TRANS Energy'!P395+'FR-16(7)(v)-9 TRANS Cust'!P395+'FR-16(7)(v)-11 DIST Demand'!P395+'FR-16(7)(v)-12 DIST Energy'!P395+'FR-16(7)(v)-13 DIST Cust'!P395-'FR-16(7)(v)-14 TOTAL CLASS'!P395","v":0},{"$f":"'FR-16(7)(v)-3 PROD Demand'!Q395+'FR-16(7)(v)-4 PROD Energy'!Q395+'FR-16(7)(v)-5 PROD Cust'!Q395+'FR-16(7)(v)-7 TRANS Demand'!Q395+'FR-16(7)(v)-8 TRANS Energy'!Q395+'FR-16(7)(v)-9 TRANS Cust'!Q395+'FR-16(7)(v)-11 DIST Demand'!Q395+'FR-16(7)(v)-12 DIST Energy'!Q395+'FR-16(7)(v)-13 DIST Cust'!Q395-'FR-16(7)(v)-14 TOTAL CLASS'!Q395","v":0},{"$f":"SUM(G395:Q395)","v":0},{"$f":"F395-R395","v":0}]
[7,null,{"$f":"'FR-16(7)(v)-1 Functional'!C396","v":"FUEL"},{"$f":"'FR-16(7)(v)-1 Functional'!D396","v":"K301"},null,{"$f":"'FR-16(7)(v)-3 PROD Demand'!F396+'FR-16(7)(v)-4 PROD Energy'!F396+'FR-16(7)(v)-5 PROD Cust'!F396+'FR-16(7)(v)-7 TRANS Demand'!F396+'FR-16(7)(v)-8 TRANS Energy'!F396+'FR-16(7)(v)-9 TRANS Cust'!F396+'FR-16(7)(v)-11 DIST Demand'!F396+'FR-16(7)(v)-12 DIST Energy'!F396+'FR-16(7)(v)-13 DIST Cust'!F396-'FR-16(7)(v)-14 TOTAL CLASS'!F396","v":0},{"$f":"'FR-16(7)(v)-3 PROD Demand'!G396+'FR-16(7)(v)-4 PROD Energy'!G396+'FR-16(7)(v)-5 PROD Cust'!G396+'FR-16(7)(v)-7 TRANS Demand'!G396+'FR-16(7)(v)-8 TRANS Energy'!G396+'FR-16(7)(v)-9 TRANS Cust'!G396+'FR-16(7)(v)-11 DIST Demand'!G396+'FR-16(7)(v)-12 DIST Energy'!G396+'FR-16(7)(v)-13 DIST Cust'!G396-'FR-16(7)(v)-14 TOTAL CLASS'!G396","v":0},{"$f":"'FR-16(7)(v)-3 PROD Demand'!H396+'FR-16(7)(v)-4 PROD Energy'!H396+'FR-16(7)(v)-5 PROD Cust'!H396+'FR-16(7)(v)-7 TRANS Demand'!H396+'FR-16(7)(v)-8 TRANS Energy'!H396+'FR-16(7)(v)-9 TRANS Cust'!H396+'FR-16(7)(v)-11 DIST Demand'!H396+'FR-16(7)(v)-12 DIST Energy'!H396+'FR-16(7)(v)-13 DIST Cust'!H396-'FR-16(7)(v)-14 TOTAL CLASS'!H396","v":0},{"$f":"'FR-16(7)(v)-3 PROD Demand'!I396+'FR-16(7)(v)-4 PROD Energy'!I396+'FR-16(7)(v)-5 PROD Cust'!I396+'FR-16(7)(v)-7 TRANS Demand'!I396+'FR-16(7)(v)-8 TRANS Energy'!I396+'FR-16(7)(v)-9 TRANS Cust'!I396+'FR-16(7)(v)-11 DIST Demand'!I396+'FR-16(7)(v)-12 DIST Energy'!I396+'FR-16(7)(v)-13 DIST Cust'!I396-'FR-16(7)(v)-14 TOTAL CLASS'!I396","v":0},{"$f":"'FR-16(7)(v)-3 PROD Demand'!J396+'FR-16(7)(v)-4 PROD Energy'!J396+'FR-16(7)(v)-5 PROD Cust'!J396+'FR-16(7)(v)-7 TRANS Demand'!J396+'FR-16(7)(v)-8 TRANS Energy'!J396+'FR-16(7)(v)-9 TRANS Cust'!J396+'FR-16(7)(v)-11 DIST Demand'!J396+'FR-16(7)(v)-12 DIST Energy'!J396+'FR-16(7)(v)-13 DIST Cust'!J396-'FR-16(7)(v)-14 TOTAL CLASS'!J396","v":0},{"$f":"'FR-16(7)(v)-3 PROD Demand'!K396+'FR-16(7)(v)-4 PROD Energy'!K396+'FR-16(7)(v)-5 PROD Cust'!K396+'FR-16(7)(v)-7 TRANS Demand'!K396+'FR-16(7)(v)-8 TRANS Energy'!K396+'FR-16(7)(v)-9 TRANS Cust'!K396+'FR-16(7)(v)-11 DIST Demand'!K396+'FR-16(7)(v)-12 DIST Energy'!K396+'FR-16(7)(v)-13 DIST Cust'!K396-'FR-16(7)(v)-14 TOTAL CLASS'!K396","v":0},{"$f":"'FR-16(7)(v)-3 PROD Demand'!L396+'FR-16(7)(v)-4 PROD Energy'!L396+'FR-16(7)(v)-5 PROD Cust'!L396+'FR-16(7)(v)-7 TRANS Demand'!L396+'FR-16(7)(v)-8 TRANS Energy'!L396+'FR-16(7)(v)-9 TRANS Cust'!L396+'FR-16(7)(v)-11 DIST Demand'!L396+'FR-16(7)(v)-12 DIST Energy'!L396+'FR-16(7)(v)-13 DIST Cust'!L396-'FR-16(7)(v)-14 TOTAL CLASS'!L396","v":0},{"$f":"'FR-16(7)(v)-3 PROD Demand'!M396+'FR-16(7)(v)-4 PROD Energy'!M396+'FR-16(7)(v)-5 PROD Cust'!M396+'FR-16(7)(v)-7 TRANS Demand'!M396+'FR-16(7)(v)-8 TRANS Energy'!M396+'FR-16(7)(v)-9 TRANS Cust'!M396+'FR-16(7)(v)-11 DIST Demand'!M396+'FR-16(7)(v)-12 DIST Energy'!M396+'FR-16(7)(v)-13 DIST Cust'!M396-'FR-16(7)(v)-14 TOTAL CLASS'!M396","v":0},{"$f":"'FR-16(7)(v)-3 PROD Demand'!N396+'FR-16(7)(v)-4 PROD Energy'!N396+'FR-16(7)(v)-5 PROD Cust'!N396+'FR-16(7)(v)-7 TRANS Demand'!N396+'FR-16(7)(v)-8 TRANS Energy'!N396+'FR-16(7)(v)-9 TRANS Cust'!N396+'FR-16(7)(v)-11 DIST Demand'!N396+'FR-16(7)(v)-12 DIST Energy'!N396+'FR-16(7)(v)-13 DIST Cust'!N396-'FR-16(7)(v)-14 TOTAL CLASS'!N396","v":0},{"$f":"'FR-16(7)(v)-3 PROD Demand'!O396+'FR-16(7)(v)-4 PROD Energy'!O396+'FR-16(7)(v)-5 PROD Cust'!O396+'FR-16(7)(v)-7 TRANS Demand'!O396+'FR-16(7)(v)-8 TRANS Energy'!O396+'FR-16(7)(v)-9 TRANS Cust'!O396+'FR-16(7)(v)-11 DIST Demand'!O396+'FR-16(7)(v)-12 DIST Energy'!O396+'FR-16(7)(v)-13 DIST Cust'!O396-'FR-16(7)(v)-14 TOTAL CLASS'!O396","v":0},{"$f":"'FR-16(7)(v)-3 PROD Demand'!P396+'FR-16(7)(v)-4 PROD Energy'!P396+'FR-16(7)(v)-5 PROD Cust'!P396+'FR-16(7)(v)-7 TRANS Demand'!P396+'FR-16(7)(v)-8 TRANS Energy'!P396+'FR-16(7)(v)-9 TRANS Cust'!P396+'FR-16(7)(v)-11 DIST Demand'!P396+'FR-16(7)(v)-12 DIST Energy'!P396+'FR-16(7)(v)-13 DIST Cust'!P396-'FR-16(7)(v)-14 TOTAL CLASS'!P396","v":0},{"$f":"'FR-16(7)(v)-3 PROD Demand'!Q396+'FR-16(7)(v)-4 PROD Energy'!Q396+'FR-16(7)(v)-5 PROD Cust'!Q396+'FR-16(7)(v)-7 TRANS Demand'!Q396+'FR-16(7)(v)-8 TRANS Energy'!Q396+'FR-16(7)(v)-9 TRANS Cust'!Q396+'FR-16(7)(v)-11 DIST Demand'!Q396+'FR-16(7)(v)-12 DIST Energy'!Q396+'FR-16(7)(v)-13 DIST Cust'!Q396-'FR-16(7)(v)-14 TOTAL CLASS'!Q396","v":0},{"$f":"SUM(G396:Q396)","v":0},{"$f":"F396-R396","v":0}]
[8,null,{"$f":"'FR-16(7)(v)-1 Functional'!C397","v":"EMISSION ALLOWANCES"},{"$f":"'FR-16(7)(v)-1 Functional'!D397","v":"K301"},null,{"$f":"'FR-16(7)(v)-3 PROD Demand'!F397+'FR-16(7)(v)-4 PROD Energy'!F397+'FR-16(7)(v)-5 PROD Cust'!F397+'FR-16(7)(v)-7 TRANS Demand'!F397+'FR-16(7)(v)-8 TRANS Energy'!F397+'FR-16(7)(v)-9 TRANS Cust'!F397+'FR-16(7)(v)-11 DIST Demand'!F397+'FR-16(7)(v)-12 DIST Energy'!F397+'FR-16(7)(v)-13 DIST Cust'!F397-'FR-16(7)(v)-14 TOTAL CLASS'!F397","v":0},{"$f":"'FR-16(7)(v)-3 PROD Demand'!G397+'FR-16(7)(v)-4 PROD Energy'!G397+'FR-16(7)(v)-5 PROD Cust'!G397+'FR-16(7)(v)-7 TRANS Demand'!G397+'FR-16(7)(v)-8 TRANS Energy'!G397+'FR-16(7)(v)-9 TRANS Cust'!G397+'FR-16(7)(v)-11 DIST Demand'!G397+'FR-16(7)(v)-12 DIST Energy'!G397+'FR-16(7)(v)-13 DIST Cust'!G397-'FR-16(7)(v)-14 TOTAL CLASS'!G397","v":0},{"$f":"'FR-16(7)(v)-3 PROD Demand'!H397+'FR-16(7)(v)-4 PROD Energy'!H397+'FR-16(7)(v)-5 PROD Cust'!H397+'FR-16(7)(v)-7 TRANS Demand'!H397+'FR-16(7)(v)-8 TRANS Energy'!H397+'FR-16(7)(v)-9 TRANS Cust'!H397+'FR-16(7)(v)-11 DIST Demand'!H397+'FR-16(7)(v)-12 DIST Energy'!H397+'FR-16(7)(v)-13 DIST Cust'!H397-'FR-16(7)(v)-14 TOTAL CLASS'!H397","v":0},{"$f":"'FR-16(7)(v)-3 PROD Demand'!I397+'FR-16(7)(v)-4 PROD Energy'!I397+'FR-16(7)(v)-5 PROD Cust'!I397+'FR-16(7)(v)-7 TRANS Demand'!I397+'FR-16(7)(v)-8 TRANS Energy'!I397+'FR-16(7)(v)-9 TRANS Cust'!I397+'FR-16(7)(v)-11 DIST Demand'!I397+'FR-16(7)(v)-12 DIST Energy'!I397+'FR-16(7)(v)-13 DIST Cust'!I397-'FR-16(7)(v)-14 TOTAL CLASS'!I397","v":0},{"$f":"'FR-16(7)(v)-3 PROD Demand'!J397+'FR-16(7)(v)-4 PROD Energy'!J397+'FR-16(7)(v)-5 PROD Cust'!J397+'FR-16(7)(v)-7 TRANS Demand'!J397+'FR-16(7)(v)-8 TRANS Energy'!J397+'FR-16(7)(v)-9 TRANS Cust'!J397+'FR-16(7)(v)-11 DIST Demand'!J397+'FR-16(7)(v)-12 DIST Energy'!J397+'FR-16(7)(v)-13 DIST Cust'!J397-'FR-16(7)(v)-14 TOTAL CLASS'!J397","v":0},{"$f":"'FR-16(7)(v)-3 PROD Demand'!K397+'FR-16(7)(v)-4 PROD Energy'!K397+'FR-16(7)(v)-5 PROD Cust'!K397+'FR-16(7)(v)-7 TRANS Demand'!K397+'FR-16(7)(v)-8 TRANS Energy'!K397+'FR-16(7)(v)-9 TRANS Cust'!K397+'FR-16(7)(v)-11 DIST Demand'!K397+'FR-16(7)(v)-12 DIST Energy'!K397+'FR-16(7)(v)-13 DIST Cust'!K397-'FR-16(7)(v)-14 TOTAL CLASS'!K397","v":0},{"$f":"'FR-16(7)(v)-3 PROD Demand'!L397+'FR-16(7)(v)-4 PROD Energy'!L397+'FR-16(7)(v)-5 PROD Cust'!L397+'FR-16(7)(v)-7 TRANS Demand'!L397+'FR-16(7)(v)-8 TRANS Energy'!L397+'FR-16(7)(v)-9 TRANS Cust'!L397+'FR-16(7)(v)-11 DIST Demand'!L397+'FR-16(7)(v)-12 DIST Energy'!L397+'FR-16(7)(v)-13 DIST Cust'!L397-'FR-16(7)(v)-14 TOTAL CLASS'!L397","v":0},{"$f":"'FR-16(7)(v)-3 PROD Demand'!M397+'FR-16(7)(v)-4 PROD Energy'!M397+'FR-16(7)(v)-5 PROD Cust'!M397+'FR-16(7)(v)-7 TRANS Demand'!M397+'FR-16(7)(v)-8 TRANS Energy'!M397+'FR-16(7)(v)-9 TRANS Cust'!M397+'FR-16(7)(v)-11 DIST Demand'!M397+'FR-16(7)(v)-12 DIST Energy'!M397+'FR-16(7)(v)-13 DIST Cust'!M397-'FR-16(7)(v)-14 TOTAL CLASS'!M397","v":0},{"$f":"'FR-16(7)(v)-3 PROD Demand'!N397+'FR-16(7)(v)-4 PROD Energy'!N397+'FR-16(7)(v)-5 PROD Cust'!N397+'FR-16(7)(v)-7 TRANS Demand'!N397+'FR-16(7)(v)-8 TRANS Energy'!N397+'FR-16(7)(v)-9 TRANS Cust'!N397+'FR-16(7)(v)-11 DIST Demand'!N397+'FR-16(7)(v)-12 DIST Energy'!N397+'FR-16(7)(v)-13 DIST Cust'!N397-'FR-16(7)(v)-14 TOTAL CLASS'!N397","v":0},{"$f":"'FR-16(7)(v)-3 PROD Demand'!O397+'FR-16(7)(v)-4 PROD Energy'!O397+'FR-16(7)(v)-5 PROD Cust'!O397+'FR-16(7)(v)-7 TRANS Demand'!O397+'FR-16(7)(v)-8 TRANS Energy'!O397+'FR-16(7)(v)-9 TRANS Cust'!O397+'FR-16(7)(v)-11 DIST Demand'!O397+'FR-16(7)(v)-12 DIST Energy'!O397+'FR-16(7)(v)-13 DIST Cust'!O397-'FR-16(7)(v)-14 TOTAL CLASS'!O397","v":0},{"$f":"'FR-16(7)(v)-3 PROD Demand'!P397+'FR-16(7)(v)-4 PROD Energy'!P397+'FR-16(7)(v)-5 PROD Cust'!P397+'FR-16(7)(v)-7 TRANS Demand'!P397+'FR-16(7)(v)-8 TRANS Energy'!P397+'FR-16(7)(v)-9 TRANS Cust'!P397+'FR-16(7)(v)-11 DIST Demand'!P397+'FR-16(7)(v)-12 DIST Energy'!P397+'FR-16(7)(v)-13 DIST Cust'!P397-'FR-16(7)(v)-14 TOTAL CLASS'!P397","v":0},{"$f":"'FR-16(7)(v)-3 PROD Demand'!Q397+'FR-16(7)(v)-4 PROD Energy'!Q397+'FR-16(7)(v)-5 PROD Cust'!Q397+'FR-16(7)(v)-7 TRANS Demand'!Q397+'FR-16(7)(v)-8 TRANS Energy'!Q397+'FR-16(7)(v)-9 TRANS Cust'!Q397+'FR-16(7)(v)-11 DIST Demand'!Q397+'FR-16(7)(v)-12 DIST Energy'!Q397+'FR-16(7)(v)-13 DIST Cust'!Q397-'FR-16(7)(v)-14 TOTAL CLASS'!Q397","v":0},{"$f":"SUM(G397:Q397)","v":0},{"$f":"F397-R397","v":0}]
[9,null,{"$f":"'FR-16(7)(v)-1 Functional'!C398","v":"  TOTAL PLANT MATS. & SUPPLIES"},null,null,{"$f":"SUM(F394:F397)","v":0},{"$f":"SUM(G394:G397)","v":0},0,0,0,0,0,0,0,0,0,0,0,0]
[10,"TOTAL MATERIALS & SUPPLIES",null,null,null,{"$f":"F398","v":0},{"$f":"G398","v":0},0,0,0,0,0,0,0,0,0,0,0,0]
[11]
[12,"PREPAYMENTS"]
[13,null,{"$f":"'FR-16(7)(v)-1 Functional'!C402","v":"INSURANCE GENERAL"},{"$f":"'FR-16(7)(v)-1 Functional'!D402","v":"NP29"},null,{"$f":"'FR-16(7)(v)-3 PROD Demand'!F402+'FR-16(7)(v)-4 PROD Energy'!F402+'FR-16(7)(v)-5 PROD Cust'!F402+'FR-16(7)(v)-7 TRANS Demand'!F402+'FR-16(7)(v)-8 TRANS Energy'!F402+'FR-16(7)(v)-9 TRANS Cust'!F402+'FR-16(7)(v)-11 DIST Demand'!F402+'FR-16(7)(v)-12 DIST Energy'!F402+'FR-16(7)(v)-13 DIST Cust'!F402-'FR-16(7)(v)-14 TOTAL CLASS'!F402","v":0},{"$f":"'FR-16(7)(v)-3 PROD Demand'!G402+'FR-16(7)(v)-4 PROD Energy'!G402+'FR-16(7)(v)-5 PROD Cust'!G402+'FR-16(7)(v)-7 TRANS Demand'!G402+'FR-16(7)(v)-8 TRANS Energy'!G402+'FR-16(7)(v)-9 TRANS Cust'!G402+'FR-16(7)(v)-11 DIST Demand'!G402+'FR-16(7)(v)-12 DIST Energy'!G402+'FR-16(7)(v)-13 DIST Cust'!G402-'FR-16(7)(v)-14 TOTAL CLASS'!G402","v":0},{"$f":"'FR-16(7)(v)-3 PROD Demand'!H402+'FR-16(7)(v)-4 PROD Energy'!H402+'FR-16(7)(v)-5 PROD Cust'!H402+'FR-16(7)(v)-7 TRANS Demand'!H402+'FR-16(7)(v)-8 TRANS Energy'!H402+'FR-16(7)(v)-9 TRANS Cust'!H402+'FR-16(7)(v)-11 DIST Demand'!H402+'FR-16(7)(v)-12 DIST Energy'!H402+'FR-16(7)(v)-13 DIST Cust'!H402-'FR-16(7)(v)-14 TOTAL CLASS'!H402","v":0},{"$f":"'FR-16(7)(v)-3 PROD Demand'!I402+'FR-16(7)(v)-4 PROD Energy'!I402+'FR-16(7)(v)-5 PROD Cust'!I402+'FR-16(7)(v)-7 TRANS Demand'!I402+'FR-16(7)(v)-8 TRANS Energy'!I402+'FR-16(7)(v)-9 TRANS Cust'!I402+'FR-16(7)(v)-11 DIST Demand'!I402+'FR-16(7)(v)-12 DIST Energy'!I402+'FR-16(7)(v)-13 DIST Cust'!I402-'FR-16(7)(v)-14 TOTAL CLASS'!I402","v":0},{"$f":"'FR-16(7)(v)-3 PROD Demand'!J402+'FR-16(7)(v)-4 PROD Energy'!J402+'FR-16(7)(v)-5 PROD Cust'!J402+'FR-16(7)(v)-7 TRANS Demand'!J402+'FR-16(7)(v)-8 TRANS Energy'!J402+'FR-16(7)(v)-9 TRANS Cust'!J402+'FR-16(7)(v)-11 DIST Demand'!J402+'FR-16(7)(v)-12 DIST Energy'!J402+'FR-16(7)(v)-13 DIST Cust'!J402-'FR-16(7)(v)-14 TOTAL CLASS'!J402","v":0},{"$f":"'FR-16(7)(v)-3 PROD Demand'!K402+'FR-16(7)(v)-4 PROD Energy'!K402+'FR-16(7)(v)-5 PROD Cust'!K402+'FR-16(7)(v)-7 TRANS Demand'!K402+'FR-16(7)(v)-8 TRANS Energy'!K402+'FR-16(7)(v)-9 TRANS Cust'!K402+'FR-16(7)(v)-11 DIST Demand'!K402+'FR-16(7)(v)-12 DIST Energy'!K402+'FR-16(7)(v)-13 DIST Cust'!K402-'FR-16(7)(v)-14 TOTAL CLASS'!K402","v":0},{"$f":"'FR-16(7)(v)-3 PROD Demand'!L402+'FR-16(7)(v)-4 PROD Energy'!L402+'FR-16(7)(v)-5 PROD Cust'!L402+'FR-16(7)(v)-7 TRANS Demand'!L402+'FR-16(7)(v)-8 TRANS Energy'!L402+'FR-16(7)(v)-9 TRANS Cust'!L402+'FR-16(7)(v)-11 DIST Demand'!L402+'FR-16(7)(v)-12 DIST Energy'!L402+'FR-16(7)(v)-13 DIST Cust'!L402-'FR-16(7)(v)-14 TOTAL CLASS'!L402","v":0},{"$f":"'FR-16(7)(v)-3 PROD Demand'!M402+'FR-16(7)(v)-4 PROD Energy'!M402+'FR-16(7)(v)-5 PROD Cust'!M402+'FR-16(7)(v)-7 TRANS Demand'!M402+'FR-16(7)(v)-8 TRANS Energy'!M402+'FR-16(7)(v)-9 TRANS Cust'!M402+'FR-16(7)(v)-11 DIST Demand'!M402+'FR-16(7)(v)-12 DIST Energy'!M402+'FR-16(7)(v)-13 DIST Cust'!M402-'FR-16(7)(v)-14 TOTAL CLASS'!M402","v":0},{"$f":"'FR-16(7)(v)-3 PROD Demand'!N402+'FR-16(7)(v)-4 PROD Energy'!N402+'FR-16(7)(v)-5 PROD Cust'!N402+'FR-16(7)(v)-7 TRANS Demand'!N402+'FR-16(7)(v)-8 TRANS Energy'!N402+'FR-16(7)(v)-9 TRANS Cust'!N402+'FR-16(7)(v)-11 DIST Demand'!N402+'FR-16(7)(v)-12 DIST Energy'!N402+'FR-16(7)(v)-13 DIST Cust'!N402-'FR-16(7)(v)-14 TOTAL CLASS'!N402","v":0},{"$f":"'FR-16(7)(v)-3 PROD Demand'!O402+'FR-16(7)(v)-4 PROD Energy'!O402+'FR-16(7)(v)-5 PROD Cust'!O402+'FR-16(7)(v)-7 TRANS Demand'!O402+'FR-16(7)(v)-8 TRANS Energy'!O402+'FR-16(7)(v)-9 TRANS Cust'!O402+'FR-16(7)(v)-11 DIST Demand'!O402+'FR-16(7)(v)-12 DIST Energy'!O402+'FR-16(7)(v)-13 DIST Cust'!O402-'FR-16(7)(v)-14 TOTAL CLASS'!O402","v":0},{"$f":"'FR-16(7)(v)-3 PROD Demand'!P402+'FR-16(7)(v)-4 PROD Energy'!P402+'FR-16(7)(v)-5 PROD Cust'!P402+'FR-16(7)(v)-7 TRANS Demand'!P402+'FR-16(7)(v)-8 TRANS Energy'!P402+'FR-16(7)(v)-9 TRANS Cust'!P402+'FR-16(7)(v)-11 DIST Demand'!P402+'FR-16(7)(v)-12 DIST Energy'!P402+'FR-16(7)(v)-13 DIST Cust'!P402-'FR-16(7)(v)-14 TOTAL CLASS'!P402","v":0},{"$f":"'FR-16(7)(v)-3 PROD Demand'!Q402+'FR-16(7)(v)-4 PROD Energy'!Q402+'FR-16(7)(v)-5 PROD Cust'!Q402+'FR-16(7)(v)-7 TRANS Demand'!Q402+'FR-16(7)(v)-8 TRANS Energy'!Q402+'FR-16(7)(v)-9 TRANS Cust'!Q402+'FR-16(7)(v)-11 DIST Demand'!Q402+'FR-16(7)(v)-12 DIST Energy'!Q402+'FR-16(7)(v)-13 DIST Cust'!Q402-'FR-16(7)(v)-14 TOTAL CLASS'!Q402","v":0},{"$f":"SUM(G402:Q402)","v":0},{"$f":"F402-R402","v":0}]
[14,null,{"$f":"'FR-16(7)(v)-1 Functional'!C403","v":"EXCISE TAX"},{"$f":"'FR-16(7)(v)-1 Functional'!D403","v":"NP29"},null,{"$f":"'FR-16(7)(v)-3 PROD Demand'!F403+'FR-16(7)(v)-4 PROD Energy'!F403+'FR-16(7)(v)-5 PROD Cust'!F403+'FR-16(7)(v)-7 TRANS Demand'!F403+'FR-16(7)(v)-8 TRANS Energy'!F403+'FR-16(7)(v)-9 TRANS Cust'!F403+'FR-16(7)(v)-11 DIST Demand'!F403+'FR-16(7)(v)-12 DIST Energy'!F403+'FR-16(7)(v)-13 DIST Cust'!F403-'FR-16(7)(v)-14 TOTAL CLASS'!F403","v":0},{"$f":"'FR-16(7)(v)-3 PROD Demand'!G403+'FR-16(7)(v)-4 PROD Energy'!G403+'FR-16(7)(v)-5 PROD Cust'!G403+'FR-16(7)(v)-7 TRANS Demand'!G403+'FR-16(7)(v)-8 TRANS Energy'!G403+'FR-16(7)(v)-9 TRANS Cust'!G403+'FR-16(7)(v)-11 DIST Demand'!G403+'FR-16(7)(v)-12 DIST Energy'!G403+'FR-16(7)(v)-13 DIST Cust'!G403-'FR-16(7)(v)-14 TOTAL CLASS'!G403","v":0},{"$f":"'FR-16(7)(v)-3 PROD Demand'!H403+'FR-16(7)(v)-4 PROD Energy'!H403+'FR-16(7)(v)-5 PROD Cust'!H403+'FR-16(7)(v)-7 TRANS Demand'!H403+'FR-16(7)(v)-8 TRANS Energy'!H403+'FR-16(7)(v)-9 TRANS Cust'!H403+'FR-16(7)(v)-11 DIST Demand'!H403+'FR-16(7)(v)-12 DIST Energy'!H403+'FR-16(7)(v)-13 DIST Cust'!H403-'FR-16(7)(v)-14 TOTAL CLASS'!H403","v":0},{"$f":"'FR-16(7)(v)-3 PROD Demand'!I403+'FR-16(7)(v)-4 PROD Energy'!I403+'FR-16(7)(v)-5 PROD Cust'!I403+'FR-16(7)(v)-7 TRANS Demand'!I403+'FR-16(7)(v)-8 TRANS Energy'!I403+'FR-16(7)(v)-9 TRANS Cust'!I403+'FR-16(7)(v)-11 DIST Demand'!I403+'FR-16(7)(v)-12 DIST Energy'!I403+'FR-16(7)(v)-13 DIST Cust'!I403-'FR-16(7)(v)-14 TOTAL CLASS'!I403","v":0},{"$f":"'FR-16(7)(v)-3 PROD Demand'!J403+'FR-16(7)(v)-4 PROD Energy'!J403+'FR-16(7)(v)-5 PROD Cust'!J403+'FR-16(7)(v)-7 TRANS Demand'!J403+'FR-16(7)(v)-8 TRANS Energy'!J403+'FR-16(7)(v)-9 TRANS Cust'!J403+'FR-16(7)(v)-11 DIST Demand'!J403+'FR-16(7)(v)-12 DIST Energy'!J403+'FR-16(7)(v)-13 DIST Cust'!J403-'FR-16(7)(v)-14 TOTAL CLASS'!J403","v":0},{"$f":"'FR-16(7)(v)-3 PROD Demand'!K403+'FR-16(7)(v)-4 PROD Energy'!K403+'FR-16(7)(v)-5 PROD Cust'!K403+'FR-16(7)(v)-7 TRANS Demand'!K403+'FR-16(7)(v)-8 TRANS Energy'!K403+'FR-16(7)(v)-9 TRANS Cust'!K403+'FR-16(7)(v)-11 DIST Demand'!K403+'FR-16(7)(v)-12 DIST Energy'!K403+'FR-16(7)(v)-13 DIST Cust'!K403-'FR-16(7)(v)-14 TOTAL CLASS'!K403","v":0},{"$f":"'FR-16(7)(v)-3 PROD Demand'!L403+'FR-16(7)(v)-4 PROD Energy'!L403+'FR-16(7)(v)-5 PROD Cust'!L403+'FR-16(7)(v)-7 TRANS Demand'!L403+'FR-16(7)(v)-8 TRANS Energy'!L403+'FR-16(7)(v)-9 TRANS Cust'!L403+'FR-16(7)(v)-11 DIST Demand'!L403+'FR-16(7)(v)-12 DIST Energy'!L403+'FR-16(7)(v)-13 DIST Cust'!L403-'FR-16(7)(v)-14 TOTAL CLASS'!L403","v":0},{"$f":"'FR-16(7)(v)-3 PROD Demand'!M403+'FR-16(7)(v)-4 PROD Energy'!M403+'FR-16(7)(v)-5 PROD Cust'!M403+'FR-16(7)(v)-7 TRANS Demand'!M403+'FR-16(7)(v)-8 TRANS Energy'!M403+'FR-16(7)(v)-9 TRANS Cust'!M403+'FR-16(7)(v)-11 DIST Demand'!M403+'FR-16(7)(v)-12 DIST Energy'!M403+'FR-16(7)(v)-13 DIST Cust'!M403-'FR-16(7)(v)-14 TOTAL CLASS'!M403","v":0},{"$f":"'FR-16(7)(v)-3 PROD Demand'!N403+'FR-16(7)(v)-4 PROD Energy'!N403+'FR-16(7)(v)-5 PROD Cust'!N403+'FR-16(7)(v)-7 TRANS Demand'!N403+'FR-16(7)(v)-8 TRANS Energy'!N403+'FR-16(7)(v)-9 TRANS Cust'!N403+'FR-16(7)(v)-11 DIST Demand'!N403+'FR-16(7)(v)-12 DIST Energy'!N403+'FR-16(7)(v)-13 DIST Cust'!N403-'FR-16(7)(v)-14 TOTAL CLASS'!N403","v":0},{"$f":"'FR-16(7)(v)-3 PROD Demand'!O403+'FR-16(7)(v)-4 PROD Energy'!O403+'FR-16(7)(v)-5 PROD Cust'!O403+'FR-16(7)(v)-7 TRANS Demand'!O403+'FR-16(7)(v)-8 TRANS Energy'!O403+'FR-16(7)(v)-9 TRANS Cust'!O403+'FR-16(7)(v)-11 DIST Demand'!O403+'FR-16(7)(v)-12 DIST Energy'!O403+'FR-16(7)(v)-13 DIST Cust'!O403-'FR-16(7)(v)-14 TOTAL CLASS'!O403","v":0},{"$f":"'FR-16(7)(v)-3 PROD Demand'!P403+'FR-16(7)(v)-4 PROD Energy'!P403+'FR-16(7)(v)-5 PROD Cust'!P403+'FR-16(7)(v)-7 TRANS Demand'!P403+'FR-16(7)(v)-8 TRANS Energy'!P403+'FR-16(7)(v)-9 TRANS Cust'!P403+'FR-16(7)(v)-11 DIST Demand'!P403+'FR-16(7)(v)-12 DIST Energy'!P403+'FR-16(7)(v)-13 DIST Cust'!P403-'FR-16(7)(v)-14 TOTAL CLASS'!P403","v":0},{"$f":"'FR-16(7)(v)-3 PROD Demand'!Q403+'FR-16(7)(v)-4 PROD Energy'!Q403+'FR-16(7)(v)-5 PROD Cust'!Q403+'FR-16(7)(v)-7 TRANS Demand'!Q403+'FR-16(7)(v)-8 TRANS Energy'!Q403+'FR-16(7)(v)-9 TRANS Cust'!Q403+'FR-16(7)(v)-11 DIST Demand'!Q403+'FR-16(7)(v)-12 DIST Energy'!Q403+'FR-16(7)(v)-13 DIST Cust'!Q403-'FR-16(7)(v)-14 TOTAL CLASS'!Q403","v":0},{"$f":"SUM(G403:Q403)","v":0},{"$f":"F403-R403","v":0}]
[15,null,{"$f":"'FR-16(7)(v)-1 Functional'!C404","v":"COLLATERAL ASSET"},{"$f":"'FR-16(7)(v)-1 Functional'!D404","v":"K301"},null,{"$f":"'FR-16(7)(v)-3 PROD Demand'!F404+'FR-16(7)(v)-4 PROD Energy'!F404+'FR-16(7)(v)-5 PROD Cust'!F404+'FR-16(7)(v)-7 TRANS Demand'!F404+'FR-16(7)(v)-8 TRANS Energy'!F404+'FR-16(7)(v)-9 TRANS Cust'!F404+'FR-16(7)(v)-11 DIST Demand'!F404+'FR-16(7)(v)-12 DIST Energy'!F404+'FR-16(7)(v)-13 DIST Cust'!F404-'FR-16(7)(v)-14 TOTAL CLASS'!F404","v":0},{"$f":"'FR-16(7)(v)-3 PROD Demand'!G404+'FR-16(7)(v)-4 PROD Energy'!G404+'FR-16(7)(v)-5 PROD Cust'!G404+'FR-16(7)(v)-7 TRANS Demand'!G404+'FR-16(7)(v)-8 TRANS Energy'!G404+'FR-16(7)(v)-9 TRANS Cust'!G404+'FR-16(7)(v)-11 DIST Demand'!G404+'FR-16(7)(v)-12 DIST Energy'!G404+'FR-16(7)(v)-13 DIST Cust'!G404-'FR-16(7)(v)-14 TOTAL CLASS'!G404","v":0},{"$f":"'FR-16(7)(v)-3 PROD Demand'!H404+'FR-16(7)(v)-4 PROD Energy'!H404+'FR-16(7)(v)-5 PROD Cust'!H404+'FR-16(7)(v)-7 TRANS Demand'!H404+'FR-16(7)(v)-8 TRANS Energy'!H404+'FR-16(7)(v)-9 TRANS Cust'!H404+'FR-16(7)(v)-11 DIST Demand'!H404+'FR-16(7)(v)-12 DIST Energy'!H404+'FR-16(7)(v)-13 DIST Cust'!H404-'FR-16(7)(v)-14 TOTAL CLASS'!H404","v":0},{"$f":"'FR-16(7)(v)-3 PROD Demand'!I404+'FR-16(7)(v)-4 PROD Energy'!I404+'FR-16(7)(v)-5 PROD Cust'!I404+'FR-16(7)(v)-7 TRANS Demand'!I404+'FR-16(7)(v)-8 TRANS Energy'!I404+'FR-16(7)(v)-9 TRANS Cust'!I404+'FR-16(7)(v)-11 DIST Demand'!I404+'FR-16(7)(v)-12 DIST Energy'!I404+'FR-16(7)(v)-13 DIST Cust'!I404-'FR-16(7)(v)-14 TOTAL CLASS'!I404","v":0},{"$f":"'FR-16(7)(v)-3 PROD Demand'!J404+'FR-16(7)(v)-4 PROD Energy'!J404+'FR-16(7)(v)-5 PROD Cust'!J404+'FR-16(7)(v)-7 TRANS Demand'!J404+'FR-16(7)(v)-8 TRANS Energy'!J404+'FR-16(7)(v)-9 TRANS Cust'!J404+'FR-16(7)(v)-11 DIST Demand'!J404+'FR-16(7)(v)-12 DIST Energy'!J404+'FR-16(7)(v)-13 DIST Cust'!J404-'FR-16(7)(v)-14 TOTAL CLASS'!J404","v":0},{"$f":"'FR-16(7)(v)-3 PROD Demand'!K404+'FR-16(7)(v)-4 PROD Energy'!K404+'FR-16(7)(v)-5 PROD Cust'!K404+'FR-16(7)(v)-7 TRANS Demand'!K404+'FR-16(7)(v)-8 TRANS Energy'!K404+'FR-16(7)(v)-9 TRANS Cust'!K404+'FR-16(7)(v)-11 DIST Demand'!K404+'FR-16(7)(v)-12 DIST Energy'!K404+'FR-16(7)(v)-13 DIST Cust'!K404-'FR-16(7)(v)-14 TOTAL CLASS'!K404","v":0},{"$f":"'FR-16(7)(v)-3 PROD Demand'!L404+'FR-16(7)(v)-4 PROD Energy'!L404+'FR-16(7)(v)-5 PROD Cust'!L404+'FR-16(7)(v)-7 TRANS Demand'!L404+'FR-16(7)(v)-8 TRANS Energy'!L404+'FR-16(7)(v)-9 TRANS Cust'!L404+'FR-16(7)(v)-11 DIST Demand'!L404+'FR-16(7)(v)-12 DIST Energy'!L404+'FR-16(7)(v)-13 DIST Cust'!L404-'FR-16(7)(v)-14 TOTAL CLASS'!L404","v":0},{"$f":"'FR-16(7)(v)-3 PROD Demand'!M404+'FR-16(7)(v)-4 PROD Energy'!M404+'FR-16(7)(v)-5 PROD Cust'!M404+'FR-16(7)(v)-7 TRANS Demand'!M404+'FR-16(7)(v)-8 TRANS Energy'!M404+'FR-16(7)(v)-9 TRANS Cust'!M404+'FR-16(7)(v)-11 DIST Demand'!M404+'FR-16(7)(v)-12 DIST Energy'!M404+'FR-16(7)(v)-13 DIST Cust'!M404-'FR-16(7)(v)-14 TOTAL CLASS'!M404","v":0},{"$f":"'FR-16(7)(v)-3 PROD Demand'!N404+'FR-16(7)(v)-4 PROD Energy'!N404+'FR-16(7)(v)-5 PROD Cust'!N404+'FR-16(7)(v)-7 TRANS Demand'!N404+'FR-16(7)(v)-8 TRANS Energy'!N404+'FR-16(7)(v)-9 TRANS Cust'!N404+'FR-16(7)(v)-11 DIST Demand'!N404+'FR-16(7)(v)-12 DIST Energy'!N404+'FR-16(7)(v)-13 DIST Cust'!N404-'FR-16(7)(v)-14 TOTAL CLASS'!N404","v":0},{"$f":"'FR-16(7)(v)-3 PROD Demand'!O404+'FR-16(7)(v)-4 PROD Energy'!O404+'FR-16(7)(v)-5 PROD Cust'!O404+'FR-16(7)(v)-7 TRANS Demand'!O404+'FR-16(7)(v)-8 TRANS Energy'!O404+'FR-16(7)(v)-9 TRANS Cust'!O404+'FR-16(7)(v)-11 DIST Demand'!O404+'FR-16(7)(v)-12 DIST Energy'!O404+'FR-16(7)(v)-13 DIST Cust'!O404-'FR-16(7)(v)-14 TOTAL CLASS'!O404","v":0},{"$f":"'FR-16(7)(v)-3 PROD Demand'!P404+'FR-16(7)(v)-4 PROD Energy'!P404+'FR-16(7)(v)-5 PROD Cust'!P404+'FR-16(7)(v)-7 TRANS Demand'!P404+'FR-16(7)(v)-8 TRANS Energy'!P404+'FR-16(7)(v)-9 TRANS Cust'!P404+'FR-16(7)(v)-11 DIST Demand'!P404+'FR-16(7)(v)-12 DIST Energy'!P404+'FR-16(7)(v)-13 DIST Cust'!P404-'FR-16(7)(v)-14 TOTAL CLASS'!P404","v":0},{"$f":"'FR-16(7)(v)-3 PROD Demand'!Q404+'FR-16(7)(v)-4 PROD Energy'!Q404+'FR-16(7)(v)-5 PROD Cust'!Q404+'FR-16(7)(v)-7 TRANS Demand'!Q404+'FR-16(7)(v)-8 TRANS Energy'!Q404+'FR-16(7)(v)-9 TRANS Cust'!Q404+'FR-16(7)(v)-11 DIST Demand'!Q404+'FR-16(7)(v)-12 DIST Energy'!Q404+'FR-16(7)(v)-13 DIST Cust'!Q404-'FR-16(7)(v)-14 TOTAL CLASS'!Q404","v":0},{"$f":"SUM(G404:Q404)","v":0},{"$f":"F404-R404","v":0}]
[16,null,{"$f":"'FR-16(7)(v)-1 Functional'!C405","v":"  TOTAL PREPAYMENTS"},null,null,{"$f":"SUM(F401:F404)","v":0},{"$f":"SUM(G401:G404)","v":0},0,0,0,0,0,0,0,0,0,0,0,0]
[17]
[18,"AUTO CALC (O&M-ELECTRIC FUEL COST)/8",null,null,null,{"$f":"'FR-16(7)(v)-3 PROD Demand'!F407+'FR-16(7)(v)-4 PROD Energy'!F407+'FR-16(7)(v)-5 PROD Cust'!F407+'FR-16(7)(v)-7 TRANS Demand'!F407+'FR-16(7)(v)-8 TRANS Energy'!F407+'FR-16(7)(v)-9 TRANS Cust'!F407+'FR-16(7)(v)-11 DIST Demand'!F407+'FR-16(7)(v)-12 DIST Energy'!F407+'FR-16(7)(v)-13 DIST Cust'!F407-'FR-16(7)(v)-14 TOTAL CLASS'!F407","v":0},{"$f":"F407-SUM(H407:Q407)","v":0},{"$f":"IF(WorkingCap=\"No\",0,ROUND((H549-H447-H448)/8,0))","v":0},0,0,0,0,0,0,0,0,0,{"$f":"SUM(G407:Q407)","v":0},{"$f":"F407-R407","v":0}]
[19,"  TOTAL WORKING CASH",null,null,null,{"$f":"F407","v":0},{"$f":"G407","v":0},0,0,0,0,0,0,0,0,0,0,0,0]
[20]
[21,"MISCELLANEOUS WORKING CAPITAL"]
[22,null,{"$f":"'FR-16(7)(v)-1 Functional'!C411","v":"RESERVED FOR FUTURE USE"},{"$f":"'FR-16(7)(v)-1 Functional'!D411","v":"K301"},null,{"$f":"'FR-16(7)(v)-3 PROD Demand'!F411+'FR-16(7)(v)-4 PROD Energy'!F411+'FR-16(7)(v)-5 PROD Cust'!F411+'FR-16(7)(v)-7 TRANS Demand'!F411+'FR-16(7)(v)-8 TRANS Energy'!F411+'FR-16(7)(v)-9 TRANS Cust'!F411+'FR-16(7)(v)-11 DIST Demand'!F411+'FR-16(7)(v)-12 DIST Energy'!F411+'FR-16(7)(v)-13 DIST Cust'!F411-'FR-16(7)(v)-14 TOTAL CLASS'!F411","v":0},{"$f":"'FR-16(7)(v)-3 PROD Demand'!G411+'FR-16(7)(v)-4 PROD Energy'!G411+'FR-16(7)(v)-5 PROD Cust'!G411+'FR-16(7)(v)-7 TRANS Demand'!G411+'FR-16(7)(v)-8 TRANS Energy'!G411+'FR-16(7)(v)-9 TRANS Cust'!G411+'FR-16(7)(v)-11 DIST Demand'!G411+'FR-16(7)(v)-12 DIST Energy'!G411+'FR-16(7)(v)-13 DIST Cust'!G411-'FR-16(7)(v)-14 TOTAL CLASS'!G411","v":0},{"$f":"'FR-16(7)(v)-3 PROD Demand'!H411+'FR-16(7)(v)-4 PROD Energy'!H411+'FR-16(7)(v)-5 PROD Cust'!H411+'FR-16(7)(v)-7 TRANS Demand'!H411+'FR-16(7)(v)-8 TRANS Energy'!H411+'FR-16(7)(v)-9 TRANS Cust'!H411+'FR-16(7)(v)-11 DIST Demand'!H411+'FR-16(7)(v)-12 DIST Energy'!H411+'FR-16(7)(v)-13 DIST Cust'!H411-'FR-16(7)(v)-14 TOTAL CLASS'!H411","v":0},{"$f":"'FR-16(7)(v)-3 PROD Demand'!I411+'FR-16(7)(v)-4 PROD Energy'!I411+'FR-16(7)(v)-5 PROD Cust'!I411+'FR-16(7)(v)-7 TRANS Demand'!I411+'FR-16(7)(v)-8 TRANS Energy'!I411+'FR-16(7)(v)-9 TRANS Cust'!I411+'FR-16(7)(v)-11 DIST Demand'!I411+'FR-16(7)(v)-12 DIST Energy'!I411+'FR-16(7)(v)-13 DIST Cust'!I411-'FR-16(7)(v)-14 TOTAL CLASS'!I411","v":0},{"$f":"'FR-16(7)(v)-3 PROD Demand'!J411+'FR-16(7)(v)-4 PROD Energy'!J411+'FR-16(7)(v)-5 PROD Cust'!J411+'FR-16(7)(v)-7 TRANS Demand'!J411+'FR-16(7)(v)-8 TRANS Energy'!J411+'FR-16(7)(v)-9 TRANS Cust'!J411+'FR-16(7)(v)-11 DIST Demand'!J411+'FR-16(7)(v)-12 DIST Energy'!J411+'FR-16(7)(v)-13 DIST Cust'!J411-'FR-16(7)(v)-14 TOTAL CLASS'!J411","v":0},{"$f":"'FR-16(7)(v)-3 PROD Demand'!K411+'FR-16(7)(v)-4 PROD Energy'!K411+'FR-16(7)(v)-5 PROD Cust'!K411+'FR-16(7)(v)-7 TRANS Demand'!K411+'FR-16(7)(v)-8 TRANS Energy'!K411+'FR-16(7)(v)-9 TRANS Cust'!K411+'FR-16(7)(v)-11 DIST Demand'!K411+'FR-16(7)(v)-12 DIST Energy'!K411+'FR-16(7)(v)-13 DIST Cust'!K411-'FR-16(7)(v)-14 TOTAL CLASS'!K411","v":0},{"$f":"'FR-16(7)(v)-3 PROD Demand'!L411+'FR-16(7)(v)-4 PROD Energy'!L411+'FR-16(7)(v)-5 PROD Cust'!L411+'FR-16(7)(v)-7 TRANS Demand'!L411+'FR-16(7)(v)-8 TRANS Energy'!L411+'FR-16(7)(v)-9 TRANS Cust'!L411+'FR-16(7)(v)-11 DIST Demand'!L411+'FR-16(7)(v)-12 DIST Energy'!L411+'FR-16(7)(v)-13 DIST Cust'!L411-'FR-16(7)(v)-14 TOTAL CLASS'!L411","v":0},{"$f":"'FR-16(7)(v)-3 PROD Demand'!M411+'FR-16(7)(v)-4 PROD Energy'!M411+'FR-16(7)(v)-5 PROD Cust'!M411+'FR-16(7)(v)-7 TRANS Demand'!M411+'FR-16(7)(v)-8 TRANS Energy'!M411+'FR-16(7)(v)-9 TRANS Cust'!M411+'FR-16(7)(v)-11 DIST Demand'!M411+'FR-16(7)(v)-12 DIST Energy'!M411+'FR-16(7)(v)-13 DIST Cust'!M411-'FR-16(7)(v)-14 TOTAL CLASS'!M411","v":0},{"$f":"'FR-16(7)(v)-3 PROD Demand'!N411+'FR-16(7)(v)-4 PROD Energy'!N411+'FR-16(7)(v)-5 PROD Cust'!N411+'FR-16(7)(v)-7 TRANS Demand'!N411+'FR-16(7)(v)-8 TRANS Energy'!N411+'FR-16(7)(v)-9 TRANS Cust'!N411+'FR-16(7)(v)-11 DIST Demand'!N411+'FR-16(7)(v)-12 DIST Energy'!N411+'FR-16(7)(v)-13 DIST Cust'!N411-'FR-16(7)(v)-14 TOTAL CLASS'!N411","v":0},{"$f":"'FR-16(7)(v)-3 PROD Demand'!O411+'FR-16(7)(v)-4 PROD Energy'!O411+'FR-16(7)(v)-5 PROD Cust'!O411+'FR-16(7)(v)-7 TRANS Demand'!O411+'FR-16(7)(v)-8 TRANS Energy'!O411+'FR-16(7)(v)-9 TRANS Cust'!O411+'FR-16(7)(v)-11 DIST Demand'!O411+'FR-16(7)(v)-12 DIST Energy'!O411+'FR-16(7)(v)-13 DIST Cust'!O411-'FR-16(7)(v)-14 TOTAL CLASS'!O411","v":0},{"$f":"'FR-16(7)(v)-3 PROD Demand'!P411+'FR-16(7)(v)-4 PROD Energy'!P411+'FR-16(7)(v)-5 PROD Cust'!P411+'FR-16(7)(v)-7 TRANS Demand'!P411+'FR-16(7)(v)-8 TRANS Energy'!P411+'FR-16(7)(v)-9 TRANS Cust'!P411+'FR-16(7)(v)-11 DIST Demand'!P411+'FR-16(7)(v)-12 DIST Energy'!P411+'FR-16(7)(v)-13 DIST Cust'!P411-'FR-16(7)(v)-14 TOTAL CLASS'!P411","v":0},{"$f":"'FR-16(7)(v)-3 PROD Demand'!Q411+'FR-16(7)(v)-4 PROD Energy'!Q411+'FR-16(7)(v)-5 PROD Cust'!Q411+'FR-16(7)(v)-7 TRANS Demand'!Q411+'FR-16(7)(v)-8 TRANS Energy'!Q411+'FR-16(7)(v)-9 TRANS Cust'!Q411+'FR-16(7)(v)-11 DIST Demand'!Q411+'FR-16(7)(v)-12 DIST Energy'!Q411+'FR-16(7)(v)-13 DIST Cust'!Q411-'FR-16(7)(v)-14 TOTAL CLASS'!Q411","v":0},{"$f":"SUM(G411:Q411)","v":0},{"$f":"F411-R411","v":0}]
[23,null,{"$f":"'FR-16(7)(v)-1 Functional'!C412","v":"PIPP UNCOLLECTIBLES"},{"$f":"'FR-16(7)(v)-1 Functional'!D412","v":"A315"},null,{"$f":"'FR-16(7)(v)-3 PROD Demand'!F412+'FR-16(7)(v)-4 PROD Energy'!F412+'FR-16(7)(v)-5 PROD Cust'!F412+'FR-16(7)(v)-7 TRANS Demand'!F412+'FR-16(7)(v)-8 TRANS Energy'!F412+'FR-16(7)(v)-9 TRANS Cust'!F412+'FR-16(7)(v)-11 DIST Demand'!F412+'FR-16(7)(v)-12 DIST Energy'!F412+'FR-16(7)(v)-13 DIST Cust'!F412-'FR-16(7)(v)-14 TOTAL CLASS'!F412","v":0},{"$f":"'FR-16(7)(v)-3 PROD Demand'!G412+'FR-16(7)(v)-4 PROD Energy'!G412+'FR-16(7)(v)-5 PROD Cust'!G412+'FR-16(7)(v)-7 TRANS Demand'!G412+'FR-16(7)(v)-8 TRANS Energy'!G412+'FR-16(7)(v)-9 TRANS Cust'!G412+'FR-16(7)(v)-11 DIST Demand'!G412+'FR-16(7)(v)-12 DIST Energy'!G412+'FR-16(7)(v)-13 DIST Cust'!G412-'FR-16(7)(v)-14 TOTAL CLASS'!G412","v":0},{"$f":"'FR-16(7)(v)-3 PROD Demand'!H412+'FR-16(7)(v)-4 PROD Energy'!H412+'FR-16(7)(v)-5 PROD Cust'!H412+'FR-16(7)(v)-7 TRANS Demand'!H412+'FR-16(7)(v)-8 TRANS Energy'!H412+'FR-16(7)(v)-9 TRANS Cust'!H412+'FR-16(7)(v)-11 DIST Demand'!H412+'FR-16(7)(v)-12 DIST Energy'!H412+'FR-16(7)(v)-13 DIST Cust'!H412-'FR-16(7)(v)-14 TOTAL CLASS'!H412","v":0},{"$f":"'FR-16(7)(v)-3 PROD Demand'!I412+'FR-16(7)(v)-4 PROD Energy'!I412+'FR-16(7)(v)-5 PROD Cust'!I412+'FR-16(7)(v)-7 TRANS Demand'!I412+'FR-16(7)(v)-8 TRANS Energy'!I412+'FR-16(7)(v)-9 TRANS Cust'!I412+'FR-16(7)(v)-11 DIST Demand'!I412+'FR-16(7)(v)-12 DIST Energy'!I412+'FR-16(7)(v)-13 DIST Cust'!I412-'FR-16(7)(v)-14 TOTAL CLASS'!I412","v":0},{"$f":"'FR-16(7)(v)-3 PROD Demand'!J412+'FR-16(7)(v)-4 PROD Energy'!J412+'FR-16(7)(v)-5 PROD Cust'!J412+'FR-16(7)(v)-7 TRANS Demand'!J412+'FR-16(7)(v)-8 TRANS Energy'!J412+'FR-16(7)(v)-9 TRANS Cust'!J412+'FR-16(7)(v)-11 DIST Demand'!J412+'FR-16(7)(v)-12 DIST Energy'!J412+'FR-16(7)(v)-13 DIST Cust'!J412-'FR-16(7)(v)-14 TOTAL CLASS'!J412","v":0},{"$f":"'FR-16(7)(v)-3 PROD Demand'!K412+'FR-16(7)(v)-4 PROD Energy'!K412+'FR-16(7)(v)-5 PROD Cust'!K412+'FR-16(7)(v)-7 TRANS Demand'!K412+'FR-16(7)(v)-8 TRANS Energy'!K412+'FR-16(7)(v)-9 TRANS Cust'!K412+'FR-16(7)(v)-11 DIST Demand'!K412+'FR-16(7)(v)-12 DIST Energy'!K412+'FR-16(7)(v)-13 DIST Cust'!K412-'FR-16(7)(v)-14 TOTAL CLASS'!K412","v":0},{"$f":"'FR-16(7)(v)-3 PROD Demand'!L412+'FR-16(7)(v)-4 PROD Energy'!L412+'FR-16(7)(v)-5 PROD Cust'!L412+'FR-16(7)(v)-7 TRANS Demand'!L412+'FR-16(7)(v)-8 TRANS Energy'!L412+'FR-16(7)(v)-9 TRANS Cust'!L412+'FR-16(7)(v)-11 DIST Demand'!L412+'FR-16(7)(v)-12 DIST Energy'!L412+'FR-16(7)(v)-13 DIST Cust'!L412-'FR-16(7)(v)-14 TOTAL CLASS'!L412","v":0},{"$f":"'FR-16(7)(v)-3 PROD Demand'!M412+'FR-16(7)(v)-4 PROD Energy'!M412+'FR-16(7)(v)-5 PROD Cust'!M412+'FR-16(7)(v)-7 TRANS Demand'!M412+'FR-16(7)(v)-8 TRANS Energy'!M412+'FR-16(7)(v)-9 TRANS Cust'!M412+'FR-16(7)(v)-11 DIST Demand'!M412+'FR-16(7)(v)-12 DIST Energy'!M412+'FR-16(7)(v)-13 DIST Cust'!M412-'FR-16(7)(v)-14 TOTAL CLASS'!M412","v":0},{"$f":"'FR-16(7)(v)-3 PROD Demand'!N412+'FR-16(7)(v)-4 PROD Energy'!N412+'FR-16(7)(v)-5 PROD Cust'!N412+'FR-16(7)(v)-7 TRANS Demand'!N412+'FR-16(7)(v)-8 TRANS Energy'!N412+'FR-16(7)(v)-9 TRANS Cust'!N412+'FR-16(7)(v)-11 DIST Demand'!N412+'FR-16(7)(v)-12 DIST Energy'!N412+'FR-16(7)(v)-13 DIST Cust'!N412-'FR-16(7)(v)-14 TOTAL CLASS'!N412","v":0},{"$f":"'FR-16(7)(v)-3 PROD Demand'!O412+'FR-16(7)(v)-4 PROD Energy'!O412+'FR-16(7)(v)-5 PROD Cust'!O412+'FR-16(7)(v)-7 TRANS Demand'!O412+'FR-16(7)(v)-8 TRANS Energy'!O412+'FR-16(7)(v)-9 TRANS Cust'!O412+'FR-16(7)(v)-11 DIST Demand'!O412+'FR-16(7)(v)-12 DIST Energy'!O412+'FR-16(7)(v)-13 DIST Cust'!O412-'FR-16(7)(v)-14 TOTAL CLASS'!O412","v":0},{"$f":"'FR-16(7)(v)-3 PROD Demand'!P412+'FR-16(7)(v)-4 PROD Energy'!P412+'FR-16(7)(v)-5 PROD Cust'!P412+'FR-16(7)(v)-7 TRANS Demand'!P412+'FR-16(7)(v)-8 TRANS Energy'!P412+'FR-16(7)(v)-9 TRANS Cust'!P412+'FR-16(7)(v)-11 DIST Demand'!P412+'FR-16(7)(v)-12 DIST Energy'!P412+'FR-16(7)(v)-13 DIST Cust'!P412-'FR-16(7)(v)-14 TOTAL CLASS'!P412","v":0},{"$f":"'FR-16(7)(v)-3 PROD Demand'!Q412+'FR-16(7)(v)-4 PROD Energy'!Q412+'FR-16(7)(v)-5 PROD Cust'!Q412+'FR-16(7)(v)-7 TRANS Demand'!Q412+'FR-16(7)(v)-8 TRANS Energy'!Q412+'FR-16(7)(v)-9 TRANS Cust'!Q412+'FR-16(7)(v)-11 DIST Demand'!Q412+'FR-16(7)(v)-12 DIST Energy'!Q412+'FR-16(7)(v)-13 DIST Cust'!Q412-'FR-16(7)(v)-14 TOTAL CLASS'!Q412","v":0},{"$f":"SUM(G412:Q412)","v":0},{"$f":"F412-R412","v":0}]
[24,null,{"$f":"'FR-16(7)(v)-1 Functional'!C413","v":"RESERVED FOR FUTURE USE"},{"$f":"'FR-16(7)(v)-1 Functional'!D413","v":"D249"},null,{"$f":"'FR-16(7)(v)-3 PROD Demand'!F413+'FR-16(7)(v)-4 PROD Energy'!F413+'FR-16(7)(v)-5 PROD Cust'!F413+'FR-16(7)(v)-7 TRANS Demand'!F413+'FR-16(7)(v)-8 TRANS Energy'!F413+'FR-16(7)(v)-9 TRANS Cust'!F413+'FR-16(7)(v)-11 DIST Demand'!F413+'FR-16(7)(v)-12 DIST Energy'!F413+'FR-16(7)(v)-13 DIST Cust'!F413-'FR-16(7)(v)-14 TOTAL CLASS'!F413","v":0},{"$f":"'FR-16(7)(v)-3 PROD Demand'!G413+'FR-16(7)(v)-4 PROD Energy'!G413+'FR-16(7)(v)-5 PROD Cust'!G413+'FR-16(7)(v)-7 TRANS Demand'!G413+'FR-16(7)(v)-8 TRANS Energy'!G413+'FR-16(7)(v)-9 TRANS Cust'!G413+'FR-16(7)(v)-11 DIST Demand'!G413+'FR-16(7)(v)-12 DIST Energy'!G413+'FR-16(7)(v)-13 DIST Cust'!G413-'FR-16(7)(v)-14 TOTAL CLASS'!G413","v":0},{"$f":"'FR-16(7)(v)-3 PROD Demand'!H413+'FR-16(7)(v)-4 PROD Energy'!H413+'FR-16(7)(v)-5 PROD Cust'!H413+'FR-16(7)(v)-7 TRANS Demand'!H413+'FR-16(7)(v)-8 TRANS Energy'!H413+'FR-16(7)(v)-9 TRANS Cust'!H413+'FR-16(7)(v)-11 DIST Demand'!H413+'FR-16(7)(v)-12 DIST Energy'!H413+'FR-16(7)(v)-13 DIST Cust'!H413-'FR-16(7)(v)-14 TOTAL CLASS'!H413","v":0},{"$f":"'FR-16(7)(v)-3 PROD Demand'!I413+'FR-16(7)(v)-4 PROD Energy'!I413+'FR-16(7)(v)-5 PROD Cust'!I413+'FR-16(7)(v)-7 TRANS Demand'!I413+'FR-16(7)(v)-8 TRANS Energy'!I413+'FR-16(7)(v)-9 TRANS Cust'!I413+'FR-16(7)(v)-11 DIST Demand'!I413+'FR-16(7)(v)-12 DIST Energy'!I413+'FR-16(7)(v)-13 DIST Cust'!I413-'FR-16(7)(v)-14 TOTAL CLASS'!I413","v":0},{"$f":"'FR-16(7)(v)-3 PROD Demand'!J413+'FR-16(7)(v)-4 PROD Energy'!J413+'FR-16(7)(v)-5 PROD Cust'!J413+'FR-16(7)(v)-7 TRANS Demand'!J413+'FR-16(7)(v)-8 TRANS Energy'!J413+'FR-16(7)(v)-9 TRANS Cust'!J413+'FR-16(7)(v)-11 DIST Demand'!J413+'FR-16(7)(v)-12 DIST Energy'!J413+'FR-16(7)(v)-13 DIST Cust'!J413-'FR-16(7)(v)-14 TOTAL CLASS'!J413","v":0},{"$f":"'FR-16(7)(v)-3 PROD Demand'!K413+'FR-16(7)(v)-4 PROD Energy'!K413+'FR-16(7)(v)-5 PROD Cust'!K413+'FR-16(7)(v)-7 TRANS Demand'!K413+'FR-16(7)(v)-8 TRANS Energy'!K413+'FR-16(7)(v)-9 TRANS Cust'!K413+'FR-16(7)(v)-11 DIST Demand'!K413+'FR-16(7)(v)-12 DIST Energy'!K413+'FR-16(7)(v)-13 DIST Cust'!K413-'FR-16(7)(v)-14 TOTAL CLASS'!K413","v":0},{"$f":"'FR-16(7)(v)-3 PROD Demand'!L413+'FR-16(7)(v)-4 PROD Energy'!L413+'FR-16(7)(v)-5 PROD Cust'!L413+'FR-16(7)(v)-7 TRANS Demand'!L413+'FR-16(7)(v)-8 TRANS Energy'!L413+'FR-16(7)(v)-9 TRANS Cust'!L413+'FR-16(7)(v)-11 DIST Demand'!L413+'FR-16(7)(v)-12 DIST Energy'!L413+'FR-16(7)(v)-13 DIST Cust'!L413-'FR-16(7)(v)-14 TOTAL CLASS'!L413","v":0},{"$f":"'FR-16(7)(v)-3 PROD Demand'!M413+'FR-16(7)(v)-4 PROD Energy'!M413+'FR-16(7)(v)-5 PROD Cust'!M413+'FR-16(7)(v)-7 TRANS Demand'!M413+'FR-16(7)(v)-8 TRANS Energy'!M413+'FR-16(7)(v)-9 TRANS Cust'!M413+'FR-16(7)(v)-11 DIST Demand'!M413+'FR-16(7)(v)-12 DIST Energy'!M413+'FR-16(7)(v)-13 DIST Cust'!M413-'FR-16(7)(v)-14 TOTAL CLASS'!M413","v":0},{"$f":"'FR-16(7)(v)-3 PROD Demand'!N413+'FR-16(7)(v)-4 PROD Energy'!N413+'FR-16(7)(v)-5 PROD Cust'!N413+'FR-16(7)(v)-7 TRANS Demand'!N413+'FR-16(7)(v)-8 TRANS Energy'!N413+'FR-16(7)(v)-9 TRANS Cust'!N413+'FR-16(7)(v)-11 DIST Demand'!N413+'FR-16(7)(v)-12 DIST Energy'!N413+'FR-16(7)(v)-13 DIST Cust'!N413-'FR-16(7)(v)-14 TOTAL CLASS'!N413","v":0},{"$f":"'FR-16(7)(v)-3 PROD Demand'!O413+'FR-16(7)(v)-4 PROD Energy'!O413+'FR-16(7)(v)-5 PROD Cust'!O413+'FR-16(7)(v)-7 TRANS Demand'!O413+'FR-16(7)(v)-8 TRANS Energy'!O413+'FR-16(7)(v)-9 TRANS Cust'!O413+'FR-16(7)(v)-11 DIST Demand'!O413+'FR-16(7)(v)-12 DIST Energy'!O413+'FR-16(7)(v)-13 DIST Cust'!O413-'FR-16(7)(v)-14 TOTAL CLASS'!O413","v":0},{"$f":"'FR-16(7)(v)-3 PROD Demand'!P413+'FR-16(7)(v)-4 PROD Energy'!P413+'FR-16(7)(v)-5 PROD Cust'!P413+'FR-16(7)(v)-7 TRANS Demand'!P413+'FR-16(7)(v)-8 TRANS Energy'!P413+'FR-16(7)(v)-9 TRANS Cust'!P413+'FR-16(7)(v)-11 DIST Demand'!P413+'FR-16(7)(v)-12 DIST Energy'!P413+'FR-16(7)(v)-13 DIST Cust'!P413-'FR-16(7)(v)-14 TOTAL CLASS'!P413","v":0},{"$f":"'FR-16(7)(v)-3 PROD Demand'!Q413+'FR-16(7)(v)-4 PROD Energy'!Q413+'FR-16(7)(v)-5 PROD Cust'!Q413+'FR-16(7)(v)-7 TRANS Demand'!Q413+'FR-16(7)(v)-8 TRANS Energy'!Q413+'FR-16(7)(v)-9 TRANS Cust'!Q413+'FR-16(7)(v)-11 DIST Demand'!Q413+'FR-16(7)(v)-12 DIST Energy'!Q413+'FR-16(7)(v)-13 DIST Cust'!Q413-'FR-16(7)(v)-14 TOTAL CLASS'!Q413","v":0},{"$f":"SUM(G413:Q413)","v":0},{"$f":"F413-R413","v":0}]
[25,null,{"$f":"'FR-16(7)(v)-1 Functional'!C414","v":"  TOTAL MISC WORK CAPITAL"},null,null,{"$f":"SUM(F410:F413)","v":0},{"$f":"SUM(G410:G413)","v":0},0,0,0,0,0,0,0,0,0,0,0,0]
[26]
[27,"TOTAL WORKING CAPITAL",null,null,null,{"$f":"F399+F405+F408+F414","v":0},{"$f":"G399+G405+G408+G414","v":0},0,0,0,0,0,0,0,0,0,0,0,{"$f":"F416-R416","v":0}]
[28,"PRELIMINARY SUMMARY"]
[29,null,{"$f":"'FR-16(7)(v)-1 Functional'!C418","v":"TOTAL ACCUMULATED DEFERRED INCOME TAXES"},null,null,{"$f":"-F324","v":0},{"$f":"-G324","v":0},0,0,0,0,0,0,0,0,0,0,0,{"$f":"F418-R418","v":0}]
[30,null,{"$f":"'FR-16(7)(v)-1 Functional'!C419","v":"TOTAL OTHER ACCUMULATED DEFERRED INCOME TAXES"},null,null,{"$f":"F377","v":0},{"$f":"G377","v":0},0,0,0,0,0,0,0,0,0,0,0,{"$f":"F419-R419","v":0}]
[31,null,{"$f":"'FR-16(7)(v)-1 Functional'!C420","v":"TOTAL WORKING CAPITAL"},null,null,{"$f":"F416","v":0},{"$f":"G416","v":0},0,0,0,0,0,0,0,0,0,0,0,{"$f":"F420-R420","v":0}]
[32,null,{"$f":"'FR-16(7)(v)-1 Functional'!C421","v":"  TOTAL RATE BASE ADJUSTMENTS"},null,null,{"$f":"SUM(F417:F420)","v":0},{"$f":"SUM(G417:G420)","v":0},0,0,{"$f":"SUM(J417:J420)","v":0},0,0,0,0,0,0,0,0,0]
[33]
[34,"RATE BASE CALCULATION"]
[35,null,{"$f":"'FR-16(7)(v)-1 Functional'!C424","v":"NET ELECTRIC PLANT IN SERVICE"},null,null,{"$f":"F277","v":0},{"$f":"G277","v":0},0,0,0,0,0,0,0,0,0,0,0,{"$f":"F424-R424","v":0}]
[36,null,{"$f":"'FR-16(7)(v)-1 Functional'!C425","v":"TOTAL RATE BASE ADJUSTMENTS"},null,null,{"$f":"F421","v":0},{"$f":"G421","v":0},0,0,0,0,0,0,0,0,0,0,0,{"$f":"F425-R425","v":0}]
[37,null,{"$f":"'FR-16(7)(v)-1 Functional'!C426","v":"  TOTAL RATE BASE"},null,null,{"$f":"SUM(F423:F425)","v":0},{"$f":"SUM(G423:G425)","v":0},0,0,0,0,0,0,0,0,0,0,0,0]
[38]
[39,"TOTAL RATE OF RETURN ALLOWABLE",null,null,null,{"$f":"$F$811","v":6.7100000000000007E-2},{"$f":"$F$811","v":6.7100000000000007E-2},6.7100000000000007E-2,6.7100000000000007E-2,6.7100000000000007E-2,6.7100000000000007E-2,6.7100000000000007E-2,6.7100000000000007E-2,6.7100000000000007E-2,6.7100000000000007E-2,6.7100000000000007E-2,6.7100000000000007E-2,{"$f":"F811","v":6.7100000000000007E-2}]
[40,"RETURN ON RATE BASE",null,null,null,{"$f":"'FR-16(7)(v)-3 PROD Demand'!F429+'FR-16(7)(v)-4 PROD Energy'!F429+'FR-16(7)(v)-5 PROD Cust'!F429+'FR-16(7)(v)-7 TRANS Demand'!F429+'FR-16(7)(v)-8 TRANS Energy'!F429+'FR-16(7)(v)-9 TRANS Cust'!F429+'FR-16(7)(v)-11 DIST Demand'!F429+'FR-16(7)(v)-12 DIST Energy'!F429+'FR-16(7)(v)-13 DIST Cust'!F429-'FR-16(7)(v)-14 TOTAL CLASS'!F429","v":-9465},{"$f":"'FR-16(7)(v)-3 PROD Demand'!G429+'FR-16(7)(v)-4 PROD Energy'!G429+'FR-16(7)(v)-5 PROD Cust'!G429+'FR-16(7)(v)-7 TRANS Demand'!G429+'FR-16(7)(v)-8 TRANS Energy'!G429+'FR-16(7)(v)-9 TRANS Cust'!G429+'FR-16(7)(v)-11 DIST Demand'!G429+'FR-16(7)(v)-12 DIST Energy'!G429+'FR-16(7)(v)-13 DIST Cust'!G429-'FR-16(7)(v)-14 TOTAL CLASS'!G429","v":0},{"$f":"'FR-16(7)(v)-3 PROD Demand'!H429+'FR-16(7)(v)-4 PROD Energy'!H429+'FR-16(7)(v)-5 PROD Cust'!H429+'FR-16(7)(v)-7 TRANS Demand'!H429+'FR-16(7)(v)-8 TRANS Energy'!H429+'FR-16(7)(v)-9 TRANS Cust'!H429+'FR-16(7)(v)-11 DIST Demand'!H429+'FR-16(7)(v)-12 DIST Energy'!H429+'FR-16(7)(v)-13 DIST Cust'!H429-'FR-16(7)(v)-14 TOTAL CLASS'!H429","v":0},{"$f":"'FR-16(7)(v)-3 PROD Demand'!I429+'FR-16(7)(v)-4 PROD Energy'!I429+'FR-16(7)(v)-5 PROD Cust'!I429+'FR-16(7)(v)-7 TRANS Demand'!I429+'FR-16(7)(v)-8 TRANS Energy'!I429+'FR-16(7)(v)-9 TRANS Cust'!I429+'FR-16(7)(v)-11 DIST Demand'!I429+'FR-16(7)(v)-12 DIST Energy'!I429+'FR-16(7)(v)-13 DIST Cust'!I429-'FR-16(7)(v)-14 TOTAL CLASS'!I429","v":0},{"$f":"'FR-16(7)(v)-3 PROD Demand'!J429+'FR-16(7)(v)-4 PROD Energy'!J429+'FR-16(7)(v)-5 PROD Cust'!J429+'FR-16(7)(v)-7 TRANS Demand'!J429+'FR-16(7)(v)-8 TRANS Energy'!J429+'FR-16(7)(v)-9 TRANS Cust'!J429+'FR-16(7)(v)-11 DIST Demand'!J429+'FR-16(7)(v)-12 DIST Energy'!J429+'FR-16(7)(v)-13 DIST Cust'!J429-'FR-16(7)(v)-14 TOTAL CLASS'!J429","v":0},{"$f":"'FR-16(7)(v)-3 PROD Demand'!K429+'FR-16(7)(v)-4 PROD Energy'!K429+'FR-16(7)(v)-5 PROD Cust'!K429+'FR-16(7)(v)-7 TRANS Demand'!K429+'FR-16(7)(v)-8 TRANS Energy'!K429+'FR-16(7)(v)-9 TRANS Cust'!K429+'FR-16(7)(v)-11 DIST Demand'!K429+'FR-16(7)(v)-12 DIST Energy'!K429+'FR-16(7)(v)-13 DIST Cust'!K429-'FR-16(7)(v)-14 TOTAL CLASS'!K429","v":0},{"$f":"'FR-16(7)(v)-3 PROD Demand'!L429+'FR-16(7)(v)-4 PROD Energy'!L429+'FR-16(7)(v)-5 PROD Cust'!L429+'FR-16(7)(v)-7 TRANS Demand'!L429+'FR-16(7)(v)-8 TRANS Energy'!L429+'FR-16(7)(v)-9 TRANS Cust'!L429+'FR-16(7)(v)-11 DIST Demand'!L429+'FR-16(7)(v)-12 DIST Energy'!L429+'FR-16(7)(v)-13 DIST Cust'!L429-'FR-16(7)(v)-14 TOTAL CLASS'!L429","v":0},{"$f":"'FR-16(7)(v)-3 PROD Demand'!M429+'FR-16(7)(v)-4 PROD Energy'!M429+'FR-16(7)(v)-5 PROD Cust'!M429+'FR-16(7)(v)-7 TRANS Demand'!M429+'FR-16(7)(v)-8 TRANS Energy'!M429+'FR-16(7)(v)-9 TRANS Cust'!M429+'FR-16(7)(v)-11 DIST Demand'!M429+'FR-16(7)(v)-12 DIST Energy'!M429+'FR-16(7)(v)-13 DIST Cust'!M429-'FR-16(7)(v)-14 TOTAL CLASS'!M429","v":0},{"$f":"'FR-16(7)(v)-3 PROD Demand'!N429+'FR-16(7)(v)-4 PROD Energy'!N429+'FR-16(7)(v)-5 PROD Cust'!N429+'FR-16(7)(v)-7 TRANS Demand'!N429+'FR-16(7)(v)-8 TRANS Energy'!N429+'FR-16(7)(v)-9 TRANS Cust'!N429+'FR-16(7)(v)-11 DIST Demand'!N429+'FR-16(7)(v)-12 DIST Energy'!N429+'FR-16(7)(v)-13 DIST Cust'!N429-'FR-16(7)(v)-14 TOTAL CLASS'!N429","v":0},{"$f":"'FR-16(7)(v)-3 PROD Demand'!O429+'FR-16(7)(v)-4 PROD Energy'!O429+'FR-16(7)(v)-5 PROD Cust'!O429+'FR-16(7)(v)-7 TRANS Demand'!O429+'FR-16(7)(v)-8 TRANS Energy'!O429+'FR-16(7)(v)-9 TRANS Cust'!O429+'FR-16(7)(v)-11 DIST Demand'!O429+'FR-16(7)(v)-12 DIST Energy'!O429+'FR-16(7)(v)-13 DIST Cust'!O429-'FR-16(7)(v)-14 TOTAL CLASS'!O429","v":0},{"$f":"'FR-16(7)(v)-3 PROD Demand'!P429+'FR-16(7)(v)-4 PROD Energy'!P429+'FR-16(7)(v)-5 PROD Cust'!P429+'FR-16(7)(v)-7 TRANS Demand'!P429+'FR-16(7)(v)-8 TRANS Energy'!P429+'FR-16(7)(v)-9 TRANS Cust'!P429+'FR-16(7)(v)-11 DIST Demand'!P429+'FR-16(7)(v)-12 DIST Energy'!P429+'FR-16(7)(v)-13 DIST Cust'!P429-'FR-16(7)(v)-14 TOTAL CLASS'!P429","v":0},{"$f":"'FR-16(7)(v)-3 PROD Demand'!Q429+'FR-16(7)(v)-4 PROD Energy'!Q429+'FR-16(7)(v)-5 PROD Cust'!Q429+'FR-16(7)(v)-7 TRANS Demand'!Q429+'FR-16(7)(v)-8 TRANS Energy'!Q429+'FR-16(7)(v)-9 TRANS Cust'!Q429+'FR-16(7)(v)-11 DIST Demand'!Q429+'FR-16(7)(v)-12 DIST Energy'!Q429+'FR-16(7)(v)-13 DIST Cust'!Q429-'FR-16(7)(v)-14 TOTAL CLASS'!Q429","v":0},{"$f":"SUM(G429:Q429)","v":0},{"$f":"F429-R429","v":-9465}]
[41]
[42,{"$f":"'FR-16(7)(v)-1 Functional'!B431","v":"ELECTRIC RATE BASE"},null,{"$f":"'FR-16(7)(v)-1 Functional'!D431","v":"RB99"},null,{"$f":"F284","v":0},0,0,0,0,0,0,0,0,0,0,0,{"$f":"SUM(G431:Q431)","v":0},{"$f":"F431-R431","v":0}]
[43,{"$f":"'FR-16(7)(v)-1 Functional'!B432","v":"TOTAL RATE OF RETURN ALLOWABLE"},null,null,null,{"$f":"RofR","v":6.7110000000000003E-2},6.7110000000000003E-2,6.7110000000000003E-2,6.7110000000000003E-2,6.7110000000000003E-2,6.7110000000000003E-2,6.7110000000000003E-2,6.7110000000000003E-2,6.7110000000000003E-2,6.7110000000000003E-2,6.7110000000000003E-2,6.7110000000000003E-2,6.7110000000000003E-2]
[44,{"$f":"'FR-16(7)(v)-1 Functional'!B433","v":"RETURN ON RATE BASE"},null,null,null,{"$f":"'FR-16(7)(v)-3 PROD Demand'!F433+'FR-16(7)(v)-4 PROD Energy'!F433+'FR-16(7)(v)-5 PROD Cust'!F433+'FR-16(7)(v)-7 TRANS Demand'!F433+'FR-16(7)(v)-8 TRANS Energy'!F433+'FR-16(7)(v)-9 TRANS Cust'!F433+'FR-16(7)(v)-11 DIST Demand'!F433+'FR-16(7)(v)-12 DIST Energy'!F433+'FR-16(7)(v)-13 DIST Cust'!F433-'FR-16(7)(v)-14 TOTAL CLASS'!F433","v":1},{"$f":"'FR-16(7)(v)-3 PROD Demand'!G433+'FR-16(7)(v)-4 PROD Energy'!G433+'FR-16(7)(v)-5 PROD Cust'!G433+'FR-16(7)(v)-7 TRANS Demand'!G433+'FR-16(7)(v)-8 TRANS Energy'!G433+'FR-16(7)(v)-9 TRANS Cust'!G433+'FR-16(7)(v)-11 DIST Demand'!G433+'FR-16(7)(v)-12 DIST Energy'!G433+'FR-16(7)(v)-13 DIST Cust'!G433-'FR-16(7)(v)-14 TOTAL CLASS'!G433","v":0},{"$f":"'FR-16(7)(v)-3 PROD Demand'!H433+'FR-16(7)(v)-4 PROD Energy'!H433+'FR-16(7)(v)-5 PROD Cust'!H433+'FR-16(7)(v)-7 TRANS Demand'!H433+'FR-16(7)(v)-8 TRANS Energy'!H433+'FR-16(7)(v)-9 TRANS Cust'!H433+'FR-16(7)(v)-11 DIST Demand'!H433+'FR-16(7)(v)-12 DIST Energy'!H433+'FR-16(7)(v)-13 DIST Cust'!H433-'FR-16(7)(v)-14 TOTAL CLASS'!H433","v":0},{"$f":"'FR-16(7)(v)-3 PROD Demand'!I433+'FR-16(7)(v)-4 PROD Energy'!I433+'FR-16(7)(v)-5 PROD Cust'!I433+'FR-16(7)(v)-7 TRANS Demand'!I433+'FR-16(7)(v)-8 TRANS Energy'!I433+'FR-16(7)(v)-9 TRANS Cust'!I433+'FR-16(7)(v)-11 DIST Demand'!I433+'FR-16(7)(v)-12 DIST Energy'!I433+'FR-16(7)(v)-13 DIST Cust'!I433-'FR-16(7)(v)-14 TOTAL CLASS'!I433","v":0},{"$f":"'FR-16(7)(v)-3 PROD Demand'!J433+'FR-16(7)(v)-4 PROD Energy'!J433+'FR-16(7)(v)-5 PROD Cust'!J433+'FR-16(7)(v)-7 TRANS Demand'!J433+'FR-16(7)(v)-8 TRANS Energy'!J433+'FR-16(7)(v)-9 TRANS Cust'!J433+'FR-16(7)(v)-11 DIST Demand'!J433+'FR-16(7)(v)-12 DIST Energy'!J433+'FR-16(7)(v)-13 DIST Cust'!J433-'FR-16(7)(v)-14 TOTAL CLASS'!J433","v":0},{"$f":"'FR-16(7)(v)-3 PROD Demand'!K433+'FR-16(7)(v)-4 PROD Energy'!K433+'FR-16(7)(v)-5 PROD Cust'!K433+'FR-16(7)(v)-7 TRANS Demand'!K433+'FR-16(7)(v)-8 TRANS Energy'!K433+'FR-16(7)(v)-9 TRANS Cust'!K433+'FR-16(7)(v)-11 DIST Demand'!K433+'FR-16(7)(v)-12 DIST Energy'!K433+'FR-16(7)(v)-13 DIST Cust'!K433-'FR-16(7)(v)-14 TOTAL CLASS'!K433","v":0},{"$f":"'FR-16(7)(v)-3 PROD Demand'!L433+'FR-16(7)(v)-4 PROD Energy'!L433+'FR-16(7)(v)-5 PROD Cust'!L433+'FR-16(7)(v)-7 TRANS Demand'!L433+'FR-16(7)(v)-8 TRANS Energy'!L433+'FR-16(7)(v)-9 TRANS Cust'!L433+'FR-16(7)(v)-11 DIST Demand'!L433+'FR-16(7)(v)-12 DIST Energy'!L433+'FR-16(7)(v)-13 DIST Cust'!L433-'FR-16(7)(v)-14 TOTAL CLASS'!L433","v":0},{"$f":"'FR-16(7)(v)-3 PROD Demand'!M433+'FR-16(7)(v)-4 PROD Energy'!M433+'FR-16(7)(v)-5 PROD Cust'!M433+'FR-16(7)(v)-7 TRANS Demand'!M433+'FR-16(7)(v)-8 TRANS Energy'!M433+'FR-16(7)(v)-9 TRANS Cust'!M433+'FR-16(7)(v)-11 DIST Demand'!M433+'FR-16(7)(v)-12 DIST Energy'!M433+'FR-16(7)(v)-13 DIST Cust'!M433-'FR-16(7)(v)-14 TOTAL CLASS'!M433","v":0},{"$f":"'FR-16(7)(v)-3 PROD Demand'!N433+'FR-16(7)(v)-4 PROD Energy'!N433+'FR-16(7)(v)-5 PROD Cust'!N433+'FR-16(7)(v)-7 TRANS Demand'!N433+'FR-16(7)(v)-8 TRANS Energy'!N433+'FR-16(7)(v)-9 TRANS Cust'!N433+'FR-16(7)(v)-11 DIST Demand'!N433+'FR-16(7)(v)-12 DIST Energy'!N433+'FR-16(7)(v)-13 DIST Cust'!N433-'FR-16(7)(v)-14 TOTAL CLASS'!N433","v":0},{"$f":"'FR-16(7)(v)-3 PROD Demand'!O433+'FR-16(7)(v)-4 PROD Energy'!O433+'FR-16(7)(v)-5 PROD Cust'!O433+'FR-16(7)(v)-7 TRANS Demand'!O433+'FR-16(7)(v)-8 TRANS Energy'!O433+'FR-16(7)(v)-9 TRANS Cust'!O433+'FR-16(7)(v)-11 DIST Demand'!O433+'FR-16(7)(v)-12 DIST Energy'!O433+'FR-16(7)(v)-13 DIST Cust'!O433-'FR-16(7)(v)-14 TOTAL CLASS'!O433","v":0},{"$f":"'FR-16(7)(v)-3 PROD Demand'!P433+'FR-16(7)(v)-4 PROD Energy'!P433+'FR-16(7)(v)-5 PROD Cust'!P433+'FR-16(7)(v)-7 TRANS Demand'!P433+'FR-16(7)(v)-8 TRANS Energy'!P433+'FR-16(7)(v)-9 TRANS Cust'!P433+'FR-16(7)(v)-11 DIST Demand'!P433+'FR-16(7)(v)-12 DIST Energy'!P433+'FR-16(7)(v)-13 DIST Cust'!P433-'FR-16(7)(v)-14 TOTAL CLASS'!P433","v":0},{"$f":"'FR-16(7)(v)-3 PROD Demand'!Q433+'FR-16(7)(v)-4 PROD Energy'!Q433+'FR-16(7)(v)-5 PROD Cust'!Q433+'FR-16(7)(v)-7 TRANS Demand'!Q433+'FR-16(7)(v)-8 TRANS Energy'!Q433+'FR-16(7)(v)-9 TRANS Cust'!Q433+'FR-16(7)(v)-11 DIST Demand'!Q433+'FR-16(7)(v)-12 DIST Energy'!Q433+'FR-16(7)(v)-13 DIST Cust'!Q433-'FR-16(7)(v)-14 TOTAL CLASS'!Q433","v":0},{"$f":"SUM(G433:Q433)","v":0},{"$f":"F433-R433","v":1}]
[]
[{"$f":"co_name","v":"DUKE ENERGY KENTUCKY, INC."},null,null,null,null,null,null,null,null,null,null,null,null,null,null,null,null,{"$f":"R1","v":"FR-16(7)(v)-14"}]
[{"$f":"$A$2","v":"TOTAL CLASS ALLOCATED - ELECTRIC COST OF SERVICE"},null,null,null,null,null,null,null,null,null,null,null,null,null,null,null,null,{"$f":"R2","v":"WITNESS RESPONSIBLE:"}]
[{"$f":"case_name","v":"CASE NO: 2019-00271"},null,null,null,null,null,null,null,null,null,null,null,null,null,null,null,null,{"$f":"Witness","v":"JAMES E. ZIOLKOWSKI"}]
[{"$f":"data_filing","v":"DATA: 12 MONTHS ACTUAL  & 0 MONTHS ESTIMATED"},null,null,null,null,null,null,null,null,null,null,null,null,null,null,null,null,{"$f":"\"PAGE \"&Pages2-7&\" OF \"&Pages2","v":"PAGE 8 OF 15"}]
[{"$f":"type","v":"TYPE OF FILING: \"X\" ORIGINAL   UPDATED    REVISED  "}]
[]
[null,null,null,null,null,{"$f":"F$7","v":"TOTAL"},null,{"$f":"H$7","v":"DS"},{"$f":"I$7","v":"GSFL"},{"$f":"J$7","v":"EH"},{"$f":"K$7","v":"SP"},"DT SEC","DT PRI","DP","TT",null,"OTHER"]
["LINE",null,null,null,null,{"$f":"F$8","v":"CLASS"},{"$f":"G$8","v":"RS"},{"$f":"H$8","v":"SECONDARY"},{"$f":"I$8","v":"SECONDARY"},{"$f":"J$8","v":"SECONDARY"},{"$f":"K$8","v":"SECONDARY"},"SECONDARY","PRIMARY","PRIMARY","TRANSMISSION","LT","WATER",{"$f":"R8","v":"TOTAL"},"ALL"]
["NO.","O&M EXPENSES",null,"ALLO",null,{"$f":"F$9","v":"ALLOCATED"},{"$f":"G$9","v":"RESIDENTIAL"},{"$f":"H$9","v":"DISTRIBUTION"},{"$f":"I$9","v":"DISTRIBUTION"},{"$f":"J$9","v":"DISTRIBUTION"},{"$f":"K$9","v":"DISTRIBUTION"},"DISTRIBUTION","DISTRIBUTION","DISTRIBUTION","TIME OF DAY","LIGHTING","PUMPING",{"$f":"R9","v":"AT ISSUE"},"OTHER"]
[null,null,"Schedule 6",null,null,null,{"$f":"G$10","v":3},{"$f":"H$10","v":4},{"$f":"I$10","v":5},{"$f":"J$10","v":6},{"$f":"K$10","v":7},8,9,10,11,12,13,null," "]
[1,"PRODUCTION O&M"]
[2,{"$f":"'FR-16(7)(v)-1 Functional'!B446","v":"ENERGY RELATED PRODUCTION O&M"}]
[3,null,{"$f":"'FR-16(7)(v)-1 Functional'!C447","v":"FUEL"},{"$f":"'FR-16(7)(v)-1 Functional'!D447","v":"K302"},null,{"$f":"'FR-16(7)(v)-3 PROD Demand'!F447+'FR-16(7)(v)-4 PROD Energy'!F447+'FR-16(7)(v)-5 PROD Cust'!F447+'FR-16(7)(v)-7 TRANS Demand'!F447+'FR-16(7)(v)-8 TRANS Energy'!F447+'FR-16(7)(v)-9 TRANS Cust'!F447+'FR-16(7)(v)-11 DIST Demand'!F447+'FR-16(7)(v)-12 DIST Energy'!F447+'FR-16(7)(v)-13 DIST Cust'!F447-'FR-16(7)(v)-14 TOTAL CLASS'!F447","v":0},{"$f":"'FR-16(7)(v)-3 PROD Demand'!G447+'FR-16(7)(v)-4 PROD Energy'!G447+'FR-16(7)(v)-5 PROD Cust'!G447+'FR-16(7)(v)-7 TRANS Demand'!G447+'FR-16(7)(v)-8 TRANS Energy'!G447+'FR-16(7)(v)-9 TRANS Cust'!G447+'FR-16(7)(v)-11 DIST Demand'!G447+'FR-16(7)(v)-12 DIST Energy'!G447+'FR-16(7)(v)-13 DIST Cust'!G447-'FR-16(7)(v)-14 TOTAL CLASS'!G447","v":0},{"$f":"'FR-16(7)(v)-3 PROD Demand'!H447+'FR-16(7)(v)-4 PROD Energy'!H447+'FR-16(7)(v)-5 PROD Cust'!H447+'FR-16(7)(v)-7 TRANS Demand'!H447+'FR-16(7)(v)-8 TRANS Energy'!H447+'FR-16(7)(v)-9 TRANS Cust'!H447+'FR-16(7)(v)-11 DIST Demand'!H447+'FR-16(7)(v)-12 DIST Energy'!H447+'FR-16(7)(v)-13 DIST Cust'!H447-'FR-16(7)(v)-14 TOTAL CLASS'!H447","v":0},{"$f":"'FR-16(7)(v)-3 PROD Demand'!I447+'FR-16(7)(v)-4 PROD Energy'!I447+'FR-16(7)(v)-5 PROD Cust'!I447+'FR-16(7)(v)-7 TRANS Demand'!I447+'FR-16(7)(v)-8 TRANS Energy'!I447+'FR-16(7)(v)-9 TRANS Cust'!I447+'FR-16(7)(v)-11 DIST Demand'!I447+'FR-16(7)(v)-12 DIST Energy'!I447+'FR-16(7)(v)-13 DIST Cust'!I447-'FR-16(7)(v)-14 TOTAL CLASS'!I447","v":0},{"$f":"'FR-16(7)(v)-3 PROD Demand'!J447+'FR-16(7)(v)-4 PROD Energy'!J447+'FR-16(7)(v)-5 PROD Cust'!J447+'FR-16(7)(v)-7 TRANS Demand'!J447+'FR-16(7)(v)-8 TRANS Energy'!J447+'FR-16(7)(v)-9 TRANS Cust'!J447+'FR-16(7)(v)-11 DIST Demand'!J447+'FR-16(7)(v)-12 DIST Energy'!J447+'FR-16(7)(v)-13 DIST Cust'!J447-'FR-16(7)(v)-14 TOTAL CLASS'!J447","v":0},{"$f":"'FR-16(7)(v)-3 PROD Demand'!K447+'FR-16(7)(v)-4 PROD Energy'!K447+'FR-16(7)(v)-5 PROD Cust'!K447+'FR-16(7)(v)-7 TRANS Demand'!K447+'FR-16(7)(v)-8 TRANS Energy'!K447+'FR-16(7)(v)-9 TRANS Cust'!K447+'FR-16(7)(v)-11 DIST Demand'!K447+'FR-16(7)(v)-12 DIST Energy'!K447+'FR-16(7)(v)-13 DIST Cust'!K447-'FR-16(7)(v)-14 TOTAL CLASS'!K447","v":0},{"$f":"'FR-16(7)(v)-3 PROD Demand'!L447+'FR-16(7)(v)-4 PROD Energy'!L447+'FR-16(7)(v)-5 PROD Cust'!L447+'FR-16(7)(v)-7 TRANS Demand'!L447+'FR-16(7)(v)-8 TRANS Energy'!L447+'FR-16(7)(v)-9 TRANS Cust'!L447+'FR-16(7)(v)-11 DIST Demand'!L447+'FR-16(7)(v)-12 DIST Energy'!L447+'FR-16(7)(v)-13 DIST Cust'!L447-'FR-16(7)(v)-14 TOTAL CLASS'!L447","v":0},{"$f":"'FR-16(7)(v)-3 PROD Demand'!M447+'FR-16(7)(v)-4 PROD Energy'!M447+'FR-16(7)(v)-5 PROD Cust'!M447+'FR-16(7)(v)-7 TRANS Demand'!M447+'FR-16(7)(v)-8 TRANS Energy'!M447+'FR-16(7)(v)-9 TRANS Cust'!M447+'FR-16(7)(v)-11 DIST Demand'!M447+'FR-16(7)(v)-12 DIST Energy'!M447+'FR-16(7)(v)-13 DIST Cust'!M447-'FR-16(7)(v)-14 TOTAL CLASS'!M447","v":0},{"$f":"'FR-16(7)(v)-3 PROD Demand'!N447+'FR-16(7)(v)-4 PROD Energy'!N447+'FR-16(7)(v)-5 PROD Cust'!N447+'FR-16(7)(v)-7 TRANS Demand'!N447+'FR-16(7)(v)-8 TRANS Energy'!N447+'FR-16(7)(v)-9 TRANS Cust'!N447+'FR-16(7)(v)-11 DIST Demand'!N447+'FR-16(7)(v)-12 DIST Energy'!N447+'FR-16(7)(v)-13 DIST Cust'!N447-'FR-16(7)(v)-14 TOTAL CLASS'!N447","v":0},{"$f":"'FR-16(7)(v)-3 PROD Demand'!O447+'FR-16(7)(v)-4 PROD Energy'!O447+'FR-16(7)(v)-5 PROD Cust'!O447+'FR-16(7)(v)-7 TRANS Demand'!O447+'FR-16(7)(v)-8 TRANS Energy'!O447+'FR-16(7)(v)-9 TRANS Cust'!O447+'FR-16(7)(v)-11 DIST Demand'!O447+'FR-16(7)(v)-12 DIST Energy'!O447+'FR-16(7)(v)-13 DIST Cust'!O447-'FR-16(7)(v)-14 TOTAL CLASS'!O447","v":0},{"$f":"'FR-16(7)(v)-3 PROD Demand'!P447+'FR-16(7)(v)-4 PROD Energy'!P447+'FR-16(7)(v)-5 PROD Cust'!P447+'FR-16(7)(v)-7 TRANS Demand'!P447+'FR-16(7)(v)-8 TRANS Energy'!P447+'FR-16(7)(v)-9 TRANS Cust'!P447+'FR-16(7)(v)-11 DIST Demand'!P447+'FR-16(7)(v)-12 DIST Energy'!P447+'FR-16(7)(v)-13 DIST Cust'!P447-'FR-16(7)(v)-14 TOTAL CLASS'!P447","v":0},{"$f":"'FR-16(7)(v)-3 PROD Demand'!Q447+'FR-16(7)(v)-4 PROD Energy'!Q447+'FR-16(7)(v)-5 PROD Cust'!Q447+'FR-16(7)(v)-7 TRANS Demand'!Q447+'FR-16(7)(v)-8 TRANS Energy'!Q447+'FR-16(7)(v)-9 TRANS Cust'!Q447+'FR-16(7)(v)-11 DIST Demand'!Q447+'FR-16(7)(v)-12 DIST Energy'!Q447+'FR-16(7)(v)-13 DIST Cust'!Q447-'FR-16(7)(v)-14 TOTAL CLASS'!Q447","v":0},{"$f":"SUM(G447:Q447)","v":0},{"$f":"F447-R447","v":0}]
[4,null,{"$f":"'FR-16(7)(v)-1 Functional'!C448","v":"FUEL AND PURCHASED POWER ADJUSTMENT"},{"$f":"'FR-16(7)(v)-1 Functional'!D448","v":"K302"},null,{"$f":"'FR-16(7)(v)-3 PROD Demand'!F448+'FR-16(7)(v)-4 PROD Energy'!F448+'FR-16(7)(v)-5 PROD Cust'!F448+'FR-16(7)(v)-7 TRANS Demand'!F448+'FR-16(7)(v)-8 TRANS Energy'!F448+'FR-16(7)(v)-9 TRANS Cust'!F448+'FR-16(7)(v)-11 DIST Demand'!F448+'FR-16(7)(v)-12 DIST Energy'!F448+'FR-16(7)(v)-13 DIST Cust'!F448-'FR-16(7)(v)-14 TOTAL CLASS'!F448","v":0},{"$f":"'FR-16(7)(v)-3 PROD Demand'!G448+'FR-16(7)(v)-4 PROD Energy'!G448+'FR-16(7)(v)-5 PROD Cust'!G448+'FR-16(7)(v)-7 TRANS Demand'!G448+'FR-16(7)(v)-8 TRANS Energy'!G448+'FR-16(7)(v)-9 TRANS Cust'!G448+'FR-16(7)(v)-11 DIST Demand'!G448+'FR-16(7)(v)-12 DIST Energy'!G448+'FR-16(7)(v)-13 DIST Cust'!G448-'FR-16(7)(v)-14 TOTAL CLASS'!G448","v":0},{"$f":"'FR-16(7)(v)-3 PROD Demand'!H448+'FR-16(7)(v)-4 PROD Energy'!H448+'FR-16(7)(v)-5 PROD Cust'!H448+'FR-16(7)(v)-7 TRANS Demand'!H448+'FR-16(7)(v)-8 TRANS Energy'!H448+'FR-16(7)(v)-9 TRANS Cust'!H448+'FR-16(7)(v)-11 DIST Demand'!H448+'FR-16(7)(v)-12 DIST Energy'!H448+'FR-16(7)(v)-13 DIST Cust'!H448-'FR-16(7)(v)-14 TOTAL CLASS'!H448","v":0},{"$f":"'FR-16(7)(v)-3 PROD Demand'!I448+'FR-16(7)(v)-4 PROD Energy'!I448+'FR-16(7)(v)-5 PROD Cust'!I448+'FR-16(7)(v)-7 TRANS Demand'!I448+'FR-16(7)(v)-8 TRANS Energy'!I448+'FR-16(7)(v)-9 TRANS Cust'!I448+'FR-16(7)(v)-11 DIST Demand'!I448+'FR-16(7)(v)-12 DIST Energy'!I448+'FR-16(7)(v)-13 DIST Cust'!I448-'FR-16(7)(v)-14 TOTAL CLASS'!I448","v":0},{"$f":"'FR-16(7)(v)-3 PROD Demand'!J448+'FR-16(7)(v)-4 PROD Energy'!J448+'FR-16(7)(v)-5 PROD Cust'!J448+'FR-16(7)(v)-7 TRANS Demand'!J448+'FR-16(7)(v)-8 TRANS Energy'!J448+'FR-16(7)(v)-9 TRANS Cust'!J448+'FR-16(7)(v)-11 DIST Demand'!J448+'FR-16(7)(v)-12 DIST Energy'!J448+'FR-16(7)(v)-13 DIST Cust'!J448-'FR-16(7)(v)-14 TOTAL CLASS'!J448","v":0},{"$f":"'FR-16(7)(v)-3 PROD Demand'!K448+'FR-16(7)(v)-4 PROD Energy'!K448+'FR-16(7)(v)-5 PROD Cust'!K448+'FR-16(7)(v)-7 TRANS Demand'!K448+'FR-16(7)(v)-8 TRANS Energy'!K448+'FR-16(7)(v)-9 TRANS Cust'!K448+'FR-16(7)(v)-11 DIST Demand'!K448+'FR-16(7)(v)-12 DIST Energy'!K448+'FR-16(7)(v)-13 DIST Cust'!K448-'FR-16(7)(v)-14 TOTAL CLASS'!K448","v":0},{"$f":"'FR-16(7)(v)-3 PROD Demand'!L448+'FR-16(7)(v)-4 PROD Energy'!L448+'FR-16(7)(v)-5 PROD Cust'!L448+'FR-16(7)(v)-7 TRANS Demand'!L448+'FR-16(7)(v)-8 TRANS Energy'!L448+'FR-16(7)(v)-9 TRANS Cust'!L448+'FR-16(7)(v)-11 DIST Demand'!L448+'FR-16(7)(v)-12 DIST Energy'!L448+'FR-16(7)(v)-13 DIST Cust'!L448-'FR-16(7)(v)-14 TOTAL CLASS'!L448","v":0},{"$f":"'FR-16(7)(v)-3 PROD Demand'!M448+'FR-16(7)(v)-4 PROD Energy'!M448+'FR-16(7)(v)-5 PROD Cust'!M448+'FR-16(7)(v)-7 TRANS Demand'!M448+'FR-16(7)(v)-8 TRANS Energy'!M448+'FR-16(7)(v)-9 TRANS Cust'!M448+'FR-16(7)(v)-11 DIST Demand'!M448+'FR-16(7)(v)-12 DIST Energy'!M448+'FR-16(7)(v)-13 DIST Cust'!M448-'FR-16(7)(v)-14 TOTAL CLASS'!M448","v":0},{"$f":"'FR-16(7)(v)-3 PROD Demand'!N448+'FR-16(7)(v)-4 PROD Energy'!N448+'FR-16(7)(v)-5 PROD Cust'!N448+'FR-16(7)(v)-7 TRANS Demand'!N448+'FR-16(7)(v)-8 TRANS Energy'!N448+'FR-16(7)(v)-9 TRANS Cust'!N448+'FR-16(7)(v)-11 DIST Demand'!N448+'FR-16(7)(v)-12 DIST Energy'!N448+'FR-16(7)(v)-13 DIST Cust'!N448-'FR-16(7)(v)-14 TOTAL CLASS'!N448","v":0},{"$f":"'FR-16(7)(v)-3 PROD Demand'!O448+'FR-16(7)(v)-4 PROD Energy'!O448+'FR-16(7)(v)-5 PROD Cust'!O448+'FR-16(7)(v)-7 TRANS Demand'!O448+'FR-16(7)(v)-8 TRANS Energy'!O448+'FR-16(7)(v)-9 TRANS Cust'!O448+'FR-16(7)(v)-11 DIST Demand'!O448+'FR-16(7)(v)-12 DIST Energy'!O448+'FR-16(7)(v)-13 DIST Cust'!O448-'FR-16(7)(v)-14 TOTAL CLASS'!O448","v":0},{"$f":"'FR-16(7)(v)-3 PROD Demand'!P448+'FR-16(7)(v)-4 PROD Energy'!P448+'FR-16(7)(v)-5 PROD Cust'!P448+'FR-16(7)(v)-7 TRANS Demand'!P448+'FR-16(7)(v)-8 TRANS Energy'!P448+'FR-16(7)(v)-9 TRANS Cust'!P448+'FR-16(7)(v)-11 DIST Demand'!P448+'FR-16(7)(v)-12 DIST Energy'!P448+'FR-16(7)(v)-13 DIST Cust'!P448-'FR-16(7)(v)-14 TOTAL CLASS'!P448","v":0},{"$f":"'FR-16(7)(v)-3 PROD Demand'!Q448+'FR-16(7)(v)-4 PROD Energy'!Q448+'FR-16(7)(v)-5 PROD Cust'!Q448+'FR-16(7)(v)-7 TRANS Demand'!Q448+'FR-16(7)(v)-8 TRANS Energy'!Q448+'FR-16(7)(v)-9 TRANS Cust'!Q448+'FR-16(7)(v)-11 DIST Demand'!Q448+'FR-16(7)(v)-12 DIST Energy'!Q448+'FR-16(7)(v)-13 DIST Cust'!Q448-'FR-16(7)(v)-14 TOTAL CLASS'!Q448","v":0},0,0]
[5,null,{"$f":"'FR-16(7)(v)-1 Functional'!C449","v":"EMISSION ALLOWANCES"},{"$f":"'FR-16(7)(v)-1 Functional'!D449","v":"K301"},null,{"$f":"'FR-16(7)(v)-3 PROD Demand'!F449+'FR-16(7)(v)-4 PROD Energy'!F449+'FR-16(7)(v)-5 PROD Cust'!F449+'FR-16(7)(v)-7 TRANS Demand'!F449+'FR-16(7)(v)-8 TRANS Energy'!F449+'FR-16(7)(v)-9 TRANS Cust'!F449+'FR-16(7)(v)-11 DIST Demand'!F449+'FR-16(7)(v)-12 DIST Energy'!F449+'FR-16(7)(v)-13 DIST Cust'!F449-'FR-16(7)(v)-14 TOTAL CLASS'!F449","v":0},{"$f":"'FR-16(7)(v)-3 PROD Demand'!G449+'FR-16(7)(v)-4 PROD Energy'!G449+'FR-16(7)(v)-5 PROD Cust'!G449+'FR-16(7)(v)-7 TRANS Demand'!G449+'FR-16(7)(v)-8 TRANS Energy'!G449+'FR-16(7)(v)-9 TRANS Cust'!G449+'FR-16(7)(v)-11 DIST Demand'!G449+'FR-16(7)(v)-12 DIST Energy'!G449+'FR-16(7)(v)-13 DIST Cust'!G449-'FR-16(7)(v)-14 TOTAL CLASS'!G449","v":0},{"$f":"'FR-16(7)(v)-3 PROD Demand'!H449+'FR-16(7)(v)-4 PROD Energy'!H449+'FR-16(7)(v)-5 PROD Cust'!H449+'FR-16(7)(v)-7 TRANS Demand'!H449+'FR-16(7)(v)-8 TRANS Energy'!H449+'FR-16(7)(v)-9 TRANS Cust'!H449+'FR-16(7)(v)-11 DIST Demand'!H449+'FR-16(7)(v)-12 DIST Energy'!H449+'FR-16(7)(v)-13 DIST Cust'!H449-'FR-16(7)(v)-14 TOTAL CLASS'!H449","v":0},{"$f":"'FR-16(7)(v)-3 PROD Demand'!I449+'FR-16(7)(v)-4 PROD Energy'!I449+'FR-16(7)(v)-5 PROD Cust'!I449+'FR-16(7)(v)-7 TRANS Demand'!I449+'FR-16(7)(v)-8 TRANS Energy'!I449+'FR-16(7)(v)-9 TRANS Cust'!I449+'FR-16(7)(v)-11 DIST Demand'!I449+'FR-16(7)(v)-12 DIST Energy'!I449+'FR-16(7)(v)-13 DIST Cust'!I449-'FR-16(7)(v)-14 TOTAL CLASS'!I449","v":0},{"$f":"'FR-16(7)(v)-3 PROD Demand'!J449+'FR-16(7)(v)-4 PROD Energy'!J449+'FR-16(7)(v)-5 PROD Cust'!J449+'FR-16(7)(v)-7 TRANS Demand'!J449+'FR-16(7)(v)-8 TRANS Energy'!J449+'FR-16(7)(v)-9 TRANS Cust'!J449+'FR-16(7)(v)-11 DIST Demand'!J449+'FR-16(7)(v)-12 DIST Energy'!J449+'FR-16(7)(v)-13 DIST Cust'!J449-'FR-16(7)(v)-14 TOTAL CLASS'!J449","v":0},{"$f":"'FR-16(7)(v)-3 PROD Demand'!K449+'FR-16(7)(v)-4 PROD Energy'!K449+'FR-16(7)(v)-5 PROD Cust'!K449+'FR-16(7)(v)-7 TRANS Demand'!K449+'FR-16(7)(v)-8 TRANS Energy'!K449+'FR-16(7)(v)-9 TRANS Cust'!K449+'FR-16(7)(v)-11 DIST Demand'!K449+'FR-16(7)(v)-12 DIST Energy'!K449+'FR-16(7)(v)-13 DIST Cust'!K449-'FR-16(7)(v)-14 TOTAL CLASS'!K449","v":0},{"$f":"'FR-16(7)(v)-3 PROD Demand'!L449+'FR-16(7)(v)-4 PROD Energy'!L449+'FR-16(7)(v)-5 PROD Cust'!L449+'FR-16(7)(v)-7 TRANS Demand'!L449+'FR-16(7)(v)-8 TRANS Energy'!L449+'FR-16(7)(v)-9 TRANS Cust'!L449+'FR-16(7)(v)-11 DIST Demand'!L449+'FR-16(7)(v)-12 DIST Energy'!L449+'FR-16(7)(v)-13 DIST Cust'!L449-'FR-16(7)(v)-14 TOTAL CLASS'!L449","v":0},{"$f":"'FR-16(7)(v)-3 PROD Demand'!M449+'FR-16(7)(v)-4 PROD Energy'!M449+'FR-16(7)(v)-5 PROD Cust'!M449+'FR-16(7)(v)-7 TRANS Demand'!M449+'FR-16(7)(v)-8 TRANS Energy'!M449+'FR-16(7)(v)-9 TRANS Cust'!M449+'FR-16(7)(v)-11 DIST Demand'!M449+'FR-16(7)(v)-12 DIST Energy'!M449+'FR-16(7)(v)-13 DIST Cust'!M449-'FR-16(7)(v)-14 TOTAL CLASS'!M449","v":0},{"$f":"'FR-16(7)(v)-3 PROD Demand'!N449+'FR-16(7)(v)-4 PROD Energy'!N449+'FR-16(7)(v)-5 PROD Cust'!N449+'FR-16(7)(v)-7 TRANS Demand'!N449+'FR-16(7)(v)-8 TRANS Energy'!N449+'FR-16(7)(v)-9 TRANS Cust'!N449+'FR-16(7)(v)-11 DIST Demand'!N449+'FR-16(7)(v)-12 DIST Energy'!N449+'FR-16(7)(v)-13 DIST Cust'!N449-'FR-16(7)(v)-14 TOTAL CLASS'!N449","v":0},{"$f":"'FR-16(7)(v)-3 PROD Demand'!O449+'FR-16(7)(v)-4 PROD Energy'!O449+'FR-16(7)(v)-5 PROD Cust'!O449+'FR-16(7)(v)-7 TRANS Demand'!O449+'FR-16(7)(v)-8 TRANS Energy'!O449+'FR-16(7)(v)-9 TRANS Cust'!O449+'FR-16(7)(v)-11 DIST Demand'!O449+'FR-16(7)(v)-12 DIST Energy'!O449+'FR-16(7)(v)-13 DIST Cust'!O449-'FR-16(7)(v)-14 TOTAL CLASS'!O449","v":0},{"$f":"'FR-16(7)(v)-3 PROD Demand'!P449+'FR-16(7)(v)-4 PROD Energy'!P449+'FR-16(7)(v)-5 PROD Cust'!P449+'FR-16(7)(v)-7 TRANS Demand'!P449+'FR-16(7)(v)-8 TRANS Energy'!P449+'FR-16(7)(v)-9 TRANS Cust'!P449+'FR-16(7)(v)-11 DIST Demand'!P449+'FR-16(7)(v)-12 DIST Energy'!P449+'FR-16(7)(v)-13 DIST Cust'!P449-'FR-16(7)(v)-14 TOTAL CLASS'!P449","v":0},{"$f":"'FR-16(7)(v)-3 PROD Demand'!Q449+'FR-16(7)(v)-4 PROD Energy'!Q449+'FR-16(7)(v)-5 PROD Cust'!Q449+'FR-16(7)(v)-7 TRANS Demand'!Q449+'FR-16(7)(v)-8 TRANS Energy'!Q449+'FR-16(7)(v)-9 TRANS Cust'!Q449+'FR-16(7)(v)-11 DIST Demand'!Q449+'FR-16(7)(v)-12 DIST Energy'!Q449+'FR-16(7)(v)-13 DIST Cust'!Q449-'FR-16(7)(v)-14 TOTAL CLASS'!Q449","v":0},0,0]
[6,null,{"$f":"'FR-16(7)(v)-1 Functional'!C450","v":"ELIMINATE EMISSION ALLOW & OTHER VAR COST"},{"$f":"'FR-16(7)(v)-1 Functional'!D450","v":"K301"},null,{"$f":"'FR-16(7)(v)-3 PROD Demand'!F450+'FR-16(7)(v)-4 PROD Energy'!F450+'FR-16(7)(v)-5 PROD Cust'!F450+'FR-16(7)(v)-7 TRANS Demand'!F450+'FR-16(7)(v)-8 TRANS Energy'!F450+'FR-16(7)(v)-9 TRANS Cust'!F450+'FR-16(7)(v)-11 DIST Demand'!F450+'FR-16(7)(v)-12 DIST Energy'!F450+'FR-16(7)(v)-13 DIST Cust'!F450-'FR-16(7)(v)-14 TOTAL CLASS'!F450","v":0},{"$f":"'FR-16(7)(v)-3 PROD Demand'!G450+'FR-16(7)(v)-4 PROD Energy'!G450+'FR-16(7)(v)-5 PROD Cust'!G450+'FR-16(7)(v)-7 TRANS Demand'!G450+'FR-16(7)(v)-8 TRANS Energy'!G450+'FR-16(7)(v)-9 TRANS Cust'!G450+'FR-16(7)(v)-11 DIST Demand'!G450+'FR-16(7)(v)-12 DIST Energy'!G450+'FR-16(7)(v)-13 DIST Cust'!G450-'FR-16(7)(v)-14 TOTAL CLASS'!G450","v":0},{"$f":"'FR-16(7)(v)-3 PROD Demand'!H450+'FR-16(7)(v)-4 PROD Energy'!H450+'FR-16(7)(v)-5 PROD Cust'!H450+'FR-16(7)(v)-7 TRANS Demand'!H450+'FR-16(7)(v)-8 TRANS Energy'!H450+'FR-16(7)(v)-9 TRANS Cust'!H450+'FR-16(7)(v)-11 DIST Demand'!H450+'FR-16(7)(v)-12 DIST Energy'!H450+'FR-16(7)(v)-13 DIST Cust'!H450-'FR-16(7)(v)-14 TOTAL CLASS'!H450","v":0},{"$f":"'FR-16(7)(v)-3 PROD Demand'!I450+'FR-16(7)(v)-4 PROD Energy'!I450+'FR-16(7)(v)-5 PROD Cust'!I450+'FR-16(7)(v)-7 TRANS Demand'!I450+'FR-16(7)(v)-8 TRANS Energy'!I450+'FR-16(7)(v)-9 TRANS Cust'!I450+'FR-16(7)(v)-11 DIST Demand'!I450+'FR-16(7)(v)-12 DIST Energy'!I450+'FR-16(7)(v)-13 DIST Cust'!I450-'FR-16(7)(v)-14 TOTAL CLASS'!I450","v":0},{"$f":"'FR-16(7)(v)-3 PROD Demand'!J450+'FR-16(7)(v)-4 PROD Energy'!J450+'FR-16(7)(v)-5 PROD Cust'!J450+'FR-16(7)(v)-7 TRANS Demand'!J450+'FR-16(7)(v)-8 TRANS Energy'!J450+'FR-16(7)(v)-9 TRANS Cust'!J450+'FR-16(7)(v)-11 DIST Demand'!J450+'FR-16(7)(v)-12 DIST Energy'!J450+'FR-16(7)(v)-13 DIST Cust'!J450-'FR-16(7)(v)-14 TOTAL CLASS'!J450","v":0},{"$f":"'FR-16(7)(v)-3 PROD Demand'!K450+'FR-16(7)(v)-4 PROD Energy'!K450+'FR-16(7)(v)-5 PROD Cust'!K450+'FR-16(7)(v)-7 TRANS Demand'!K450+'FR-16(7)(v)-8 TRANS Energy'!K450+'FR-16(7)(v)-9 TRANS Cust'!K450+'FR-16(7)(v)-11 DIST Demand'!K450+'FR-16(7)(v)-12 DIST Energy'!K450+'FR-16(7)(v)-13 DIST Cust'!K450-'FR-16(7)(v)-14 TOTAL CLASS'!K450","v":0},{"$f":"'FR-16(7)(v)-3 PROD Demand'!L450+'FR-16(7)(v)-4 PROD Energy'!L450+'FR-16(7)(v)-5 PROD Cust'!L450+'FR-16(7)(v)-7 TRANS Demand'!L450+'FR-16(7)(v)-8 TRANS Energy'!L450+'FR-16(7)(v)-9 TRANS Cust'!L450+'FR-16(7)(v)-11 DIST Demand'!L450+'FR-16(7)(v)-12 DIST Energy'!L450+'FR-16(7)(v)-13 DIST Cust'!L450-'FR-16(7)(v)-14 TOTAL CLASS'!L450","v":0},{"$f":"'FR-16(7)(v)-3 PROD Demand'!M450+'FR-16(7)(v)-4 PROD Energy'!M450+'FR-16(7)(v)-5 PROD Cust'!M450+'FR-16(7)(v)-7 TRANS Demand'!M450+'FR-16(7)(v)-8 TRANS Energy'!M450+'FR-16(7)(v)-9 TRANS Cust'!M450+'FR-16(7)(v)-11 DIST Demand'!M450+'FR-16(7)(v)-12 DIST Energy'!M450+'FR-16(7)(v)-13 DIST Cust'!M450-'FR-16(7)(v)-14 TOTAL CLASS'!M450","v":0},{"$f":"'FR-16(7)(v)-3 PROD Demand'!N450+'FR-16(7)(v)-4 PROD Energy'!N450+'FR-16(7)(v)-5 PROD Cust'!N450+'FR-16(7)(v)-7 TRANS Demand'!N450+'FR-16(7)(v)-8 TRANS Energy'!N450+'FR-16(7)(v)-9 TRANS Cust'!N450+'FR-16(7)(v)-11 DIST Demand'!N450+'FR-16(7)(v)-12 DIST Energy'!N450+'FR-16(7)(v)-13 DIST Cust'!N450-'FR-16(7)(v)-14 TOTAL CLASS'!N450","v":0},{"$f":"'FR-16(7)(v)-3 PROD Demand'!O450+'FR-16(7)(v)-4 PROD Energy'!O450+'FR-16(7)(v)-5 PROD Cust'!O450+'FR-16(7)(v)-7 TRANS Demand'!O450+'FR-16(7)(v)-8 TRANS Energy'!O450+'FR-16(7)(v)-9 TRANS Cust'!O450+'FR-16(7)(v)-11 DIST Demand'!O450+'FR-16(7)(v)-12 DIST Energy'!O450+'FR-16(7)(v)-13 DIST Cust'!O450-'FR-16(7)(v)-14 TOTAL CLASS'!O450","v":0},{"$f":"'FR-16(7)(v)-3 PROD Demand'!P450+'FR-16(7)(v)-4 PROD Energy'!P450+'FR-16(7)(v)-5 PROD Cust'!P450+'FR-16(7)(v)-7 TRANS Demand'!P450+'FR-16(7)(v)-8 TRANS Energy'!P450+'FR-16(7)(v)-9 TRANS Cust'!P450+'FR-16(7)(v)-11 DIST Demand'!P450+'FR-16(7)(v)-12 DIST Energy'!P450+'FR-16(7)(v)-13 DIST Cust'!P450-'FR-16(7)(v)-14 TOTAL CLASS'!P450","v":0},{"$f":"'FR-16(7)(v)-3 PROD Demand'!Q450+'FR-16(7)(v)-4 PROD Energy'!Q450+'FR-16(7)(v)-5 PROD Cust'!Q450+'FR-16(7)(v)-7 TRANS Demand'!Q450+'FR-16(7)(v)-8 TRANS Energy'!Q450+'FR-16(7)(v)-9 TRANS Cust'!Q450+'FR-16(7)(v)-11 DIST Demand'!Q450+'FR-16(7)(v)-12 DIST Energy'!Q450+'FR-16(7)(v)-13 DIST Cust'!Q450-'FR-16(7)(v)-14 TOTAL CLASS'!Q450","v":0},0,0]
[7,null,{"$f":"'FR-16(7)(v)-1 Functional'!C451","v":"OTHER PRODUCTION EXPENSE - MAINTENANCE"},{"$f":"'FR-16(7)(v)-1 Functional'!D451","v":"K301"},null,{"$f":"'FR-16(7)(v)-3 PROD Demand'!F451+'FR-16(7)(v)-4 PROD Energy'!F451+'FR-16(7)(v)-5 PROD Cust'!F451+'FR-16(7)(v)-7 TRANS Demand'!F451+'FR-16(7)(v)-8 TRANS Energy'!F451+'FR-16(7)(v)-9 TRANS Cust'!F451+'FR-16(7)(v)-11 DIST Demand'!F451+'FR-16(7)(v)-12 DIST Energy'!F451+'FR-16(7)(v)-13 DIST Cust'!F451-'FR-16(7)(v)-14 TOTAL CLASS'!F451","v":0},{"$f":"'FR-16(7)(v)-3 PROD Demand'!G451+'FR-16(7)(v)-4 PROD Energy'!G451+'FR-16(7)(v)-5 PROD Cust'!G451+'FR-16(7)(v)-7 TRANS Demand'!G451+'FR-16(7)(v)-8 TRANS Energy'!G451+'FR-16(7)(v)-9 TRANS Cust'!G451+'FR-16(7)(v)-11 DIST Demand'!G451+'FR-16(7)(v)-12 DIST Energy'!G451+'FR-16(7)(v)-13 DIST Cust'!G451-'FR-16(7)(v)-14 TOTAL CLASS'!G451","v":0},{"$f":"'FR-16(7)(v)-3 PROD Demand'!H451+'FR-16(7)(v)-4 PROD Energy'!H451+'FR-16(7)(v)-5 PROD Cust'!H451+'FR-16(7)(v)-7 TRANS Demand'!H451+'FR-16(7)(v)-8 TRANS Energy'!H451+'FR-16(7)(v)-9 TRANS Cust'!H451+'FR-16(7)(v)-11 DIST Demand'!H451+'FR-16(7)(v)-12 DIST Energy'!H451+'FR-16(7)(v)-13 DIST Cust'!H451-'FR-16(7)(v)-14 TOTAL CLASS'!H451","v":0},{"$f":"'FR-16(7)(v)-3 PROD Demand'!I451+'FR-16(7)(v)-4 PROD Energy'!I451+'FR-16(7)(v)-5 PROD Cust'!I451+'FR-16(7)(v)-7 TRANS Demand'!I451+'FR-16(7)(v)-8 TRANS Energy'!I451+'FR-16(7)(v)-9 TRANS Cust'!I451+'FR-16(7)(v)-11 DIST Demand'!I451+'FR-16(7)(v)-12 DIST Energy'!I451+'FR-16(7)(v)-13 DIST Cust'!I451-'FR-16(7)(v)-14 TOTAL CLASS'!I451","v":0},{"$f":"'FR-16(7)(v)-3 PROD Demand'!J451+'FR-16(7)(v)-4 PROD Energy'!J451+'FR-16(7)(v)-5 PROD Cust'!J451+'FR-16(7)(v)-7 TRANS Demand'!J451+'FR-16(7)(v)-8 TRANS Energy'!J451+'FR-16(7)(v)-9 TRANS Cust'!J451+'FR-16(7)(v)-11 DIST Demand'!J451+'FR-16(7)(v)-12 DIST Energy'!J451+'FR-16(7)(v)-13 DIST Cust'!J451-'FR-16(7)(v)-14 TOTAL CLASS'!J451","v":0},{"$f":"'FR-16(7)(v)-3 PROD Demand'!K451+'FR-16(7)(v)-4 PROD Energy'!K451+'FR-16(7)(v)-5 PROD Cust'!K451+'FR-16(7)(v)-7 TRANS Demand'!K451+'FR-16(7)(v)-8 TRANS Energy'!K451+'FR-16(7)(v)-9 TRANS Cust'!K451+'FR-16(7)(v)-11 DIST Demand'!K451+'FR-16(7)(v)-12 DIST Energy'!K451+'FR-16(7)(v)-13 DIST Cust'!K451-'FR-16(7)(v)-14 TOTAL CLASS'!K451","v":0},{"$f":"'FR-16(7)(v)-3 PROD Demand'!L451+'FR-16(7)(v)-4 PROD Energy'!L451+'FR-16(7)(v)-5 PROD Cust'!L451+'FR-16(7)(v)-7 TRANS Demand'!L451+'FR-16(7)(v)-8 TRANS Energy'!L451+'FR-16(7)(v)-9 TRANS Cust'!L451+'FR-16(7)(v)-11 DIST Demand'!L451+'FR-16(7)(v)-12 DIST Energy'!L451+'FR-16(7)(v)-13 DIST Cust'!L451-'FR-16(7)(v)-14 TOTAL CLASS'!L451","v":0},{"$f":"'FR-16(7)(v)-3 PROD Demand'!M451+'FR-16(7)(v)-4 PROD Energy'!M451+'FR-16(7)(v)-5 PROD Cust'!M451+'FR-16(7)(v)-7 TRANS Demand'!M451+'FR-16(7)(v)-8 TRANS Energy'!M451+'FR-16(7)(v)-9 TRANS Cust'!M451+'FR-16(7)(v)-11 DIST Demand'!M451+'FR-16(7)(v)-12 DIST Energy'!M451+'FR-16(7)(v)-13 DIST Cust'!M451-'FR-16(7)(v)-14 TOTAL CLASS'!M451","v":0},{"$f":"'FR-16(7)(v)-3 PROD Demand'!N451+'FR-16(7)(v)-4 PROD Energy'!N451+'FR-16(7)(v)-5 PROD Cust'!N451+'FR-16(7)(v)-7 TRANS Demand'!N451+'FR-16(7)(v)-8 TRANS Energy'!N451+'FR-16(7)(v)-9 TRANS Cust'!N451+'FR-16(7)(v)-11 DIST Demand'!N451+'FR-16(7)(v)-12 DIST Energy'!N451+'FR-16(7)(v)-13 DIST Cust'!N451-'FR-16(7)(v)-14 TOTAL CLASS'!N451","v":0},{"$f":"'FR-16(7)(v)-3 PROD Demand'!O451+'FR-16(7)(v)-4 PROD Energy'!O451+'FR-16(7)(v)-5 PROD Cust'!O451+'FR-16(7)(v)-7 TRANS Demand'!O451+'FR-16(7)(v)-8 TRANS Energy'!O451+'FR-16(7)(v)-9 TRANS Cust'!O451+'FR-16(7)(v)-11 DIST Demand'!O451+'FR-16(7)(v)-12 DIST Energy'!O451+'FR-16(7)(v)-13 DIST Cust'!O451-'FR-16(7)(v)-14 TOTAL CLASS'!O451","v":0},{"$f":"'FR-16(7)(v)-3 PROD Demand'!P451+'FR-16(7)(v)-4 PROD Energy'!P451+'FR-16(7)(v)-5 PROD Cust'!P451+'FR-16(7)(v)-7 TRANS Demand'!P451+'FR-16(7)(v)-8 TRANS Energy'!P451+'FR-16(7)(v)-9 TRANS Cust'!P451+'FR-16(7)(v)-11 DIST Demand'!P451+'FR-16(7)(v)-12 DIST Energy'!P451+'FR-16(7)(v)-13 DIST Cust'!P451-'FR-16(7)(v)-14 TOTAL CLASS'!P451","v":0},{"$f":"'FR-16(7)(v)-3 PROD Demand'!Q451+'FR-16(7)(v)-4 PROD Energy'!Q451+'FR-16(7)(v)-5 PROD Cust'!Q451+'FR-16(7)(v)-7 TRANS Demand'!Q451+'FR-16(7)(v)-8 TRANS Energy'!Q451+'FR-16(7)(v)-9 TRANS Cust'!Q451+'FR-16(7)(v)-11 DIST Demand'!Q451+'FR-16(7)(v)-12 DIST Energy'!Q451+'FR-16(7)(v)-13 DIST Cust'!Q451-'FR-16(7)(v)-14 TOTAL CLASS'!Q451","v":0},0,0]
[8,null,{"$f":"'FR-16(7)(v)-1 Functional'!C452","v":"MISO TRANSMISSION CHARGES - ACCT 555"},{"$f":"'FR-16(7)(v)-1 Functional'!D452","v":"K301"},null,{"$f":"'FR-16(7)(v)-3 PROD Demand'!F452+'FR-16(7)(v)-4 PROD Energy'!F452+'FR-16(7)(v)-5 PROD Cust'!F452+'FR-16(7)(v)-7 TRANS Demand'!F452+'FR-16(7)(v)-8 TRANS Energy'!F452+'FR-16(7)(v)-9 TRANS Cust'!F452+'FR-16(7)(v)-11 DIST Demand'!F452+'FR-16(7)(v)-12 DIST Energy'!F452+'FR-16(7)(v)-13 DIST Cust'!F452-'FR-16(7)(v)-14 TOTAL CLASS'!F452","v":0},{"$f":"'FR-16(7)(v)-3 PROD Demand'!G452+'FR-16(7)(v)-4 PROD Energy'!G452+'FR-16(7)(v)-5 PROD Cust'!G452+'FR-16(7)(v)-7 TRANS Demand'!G452+'FR-16(7)(v)-8 TRANS Energy'!G452+'FR-16(7)(v)-9 TRANS Cust'!G452+'FR-16(7)(v)-11 DIST Demand'!G452+'FR-16(7)(v)-12 DIST Energy'!G452+'FR-16(7)(v)-13 DIST Cust'!G452-'FR-16(7)(v)-14 TOTAL CLASS'!G452","v":0},{"$f":"'FR-16(7)(v)-3 PROD Demand'!H452+'FR-16(7)(v)-4 PROD Energy'!H452+'FR-16(7)(v)-5 PROD Cust'!H452+'FR-16(7)(v)-7 TRANS Demand'!H452+'FR-16(7)(v)-8 TRANS Energy'!H452+'FR-16(7)(v)-9 TRANS Cust'!H452+'FR-16(7)(v)-11 DIST Demand'!H452+'FR-16(7)(v)-12 DIST Energy'!H452+'FR-16(7)(v)-13 DIST Cust'!H452-'FR-16(7)(v)-14 TOTAL CLASS'!H452","v":0},{"$f":"'FR-16(7)(v)-3 PROD Demand'!I452+'FR-16(7)(v)-4 PROD Energy'!I452+'FR-16(7)(v)-5 PROD Cust'!I452+'FR-16(7)(v)-7 TRANS Demand'!I452+'FR-16(7)(v)-8 TRANS Energy'!I452+'FR-16(7)(v)-9 TRANS Cust'!I452+'FR-16(7)(v)-11 DIST Demand'!I452+'FR-16(7)(v)-12 DIST Energy'!I452+'FR-16(7)(v)-13 DIST Cust'!I452-'FR-16(7)(v)-14 TOTAL CLASS'!I452","v":0},{"$f":"'FR-16(7)(v)-3 PROD Demand'!J452+'FR-16(7)(v)-4 PROD Energy'!J452+'FR-16(7)(v)-5 PROD Cust'!J452+'FR-16(7)(v)-7 TRANS Demand'!J452+'FR-16(7)(v)-8 TRANS Energy'!J452+'FR-16(7)(v)-9 TRANS Cust'!J452+'FR-16(7)(v)-11 DIST Demand'!J452+'FR-16(7)(v)-12 DIST Energy'!J452+'FR-16(7)(v)-13 DIST Cust'!J452-'FR-16(7)(v)-14 TOTAL CLASS'!J452","v":0},{"$f":"'FR-16(7)(v)-3 PROD Demand'!K452+'FR-16(7)(v)-4 PROD Energy'!K452+'FR-16(7)(v)-5 PROD Cust'!K452+'FR-16(7)(v)-7 TRANS Demand'!K452+'FR-16(7)(v)-8 TRANS Energy'!K452+'FR-16(7)(v)-9 TRANS Cust'!K452+'FR-16(7)(v)-11 DIST Demand'!K452+'FR-16(7)(v)-12 DIST Energy'!K452+'FR-16(7)(v)-13 DIST Cust'!K452-'FR-16(7)(v)-14 TOTAL CLASS'!K452","v":0},{"$f":"'FR-16(7)(v)-3 PROD Demand'!L452+'FR-16(7)(v)-4 PROD Energy'!L452+'FR-16(7)(v)-5 PROD Cust'!L452+'FR-16(7)(v)-7 TRANS Demand'!L452+'FR-16(7)(v)-8 TRANS Energy'!L452+'FR-16(7)(v)-9 TRANS Cust'!L452+'FR-16(7)(v)-11 DIST Demand'!L452+'FR-16(7)(v)-12 DIST Energy'!L452+'FR-16(7)(v)-13 DIST Cust'!L452-'FR-16(7)(v)-14 TOTAL CLASS'!L452","v":0},{"$f":"'FR-16(7)(v)-3 PROD Demand'!M452+'FR-16(7)(v)-4 PROD Energy'!M452+'FR-16(7)(v)-5 PROD Cust'!M452+'FR-16(7)(v)-7 TRANS Demand'!M452+'FR-16(7)(v)-8 TRANS Energy'!M452+'FR-16(7)(v)-9 TRANS Cust'!M452+'FR-16(7)(v)-11 DIST Demand'!M452+'FR-16(7)(v)-12 DIST Energy'!M452+'FR-16(7)(v)-13 DIST Cust'!M452-'FR-16(7)(v)-14 TOTAL CLASS'!M452","v":0},{"$f":"'FR-16(7)(v)-3 PROD Demand'!N452+'FR-16(7)(v)-4 PROD Energy'!N452+'FR-16(7)(v)-5 PROD Cust'!N452+'FR-16(7)(v)-7 TRANS Demand'!N452+'FR-16(7)(v)-8 TRANS Energy'!N452+'FR-16(7)(v)-9 TRANS Cust'!N452+'FR-16(7)(v)-11 DIST Demand'!N452+'FR-16(7)(v)-12 DIST Energy'!N452+'FR-16(7)(v)-13 DIST Cust'!N452-'FR-16(7)(v)-14 TOTAL CLASS'!N452","v":0},{"$f":"'FR-16(7)(v)-3 PROD Demand'!O452+'FR-16(7)(v)-4 PROD Energy'!O452+'FR-16(7)(v)-5 PROD Cust'!O452+'FR-16(7)(v)-7 TRANS Demand'!O452+'FR-16(7)(v)-8 TRANS Energy'!O452+'FR-16(7)(v)-9 TRANS Cust'!O452+'FR-16(7)(v)-11 DIST Demand'!O452+'FR-16(7)(v)-12 DIST Energy'!O452+'FR-16(7)(v)-13 DIST Cust'!O452-'FR-16(7)(v)-14 TOTAL CLASS'!O452","v":0},{"$f":"'FR-16(7)(v)-3 PROD Demand'!P452+'FR-16(7)(v)-4 PROD Energy'!P452+'FR-16(7)(v)-5 PROD Cust'!P452+'FR-16(7)(v)-7 TRANS Demand'!P452+'FR-16(7)(v)-8 TRANS Energy'!P452+'FR-16(7)(v)-9 TRANS Cust'!P452+'FR-16(7)(v)-11 DIST Demand'!P452+'FR-16(7)(v)-12 DIST Energy'!P452+'FR-16(7)(v)-13 DIST Cust'!P452-'FR-16(7)(v)-14 TOTAL CLASS'!P452","v":0},{"$f":"'FR-16(7)(v)-3 PROD Demand'!Q452+'FR-16(7)(v)-4 PROD Energy'!Q452+'FR-16(7)(v)-5 PROD Cust'!Q452+'FR-16(7)(v)-7 TRANS Demand'!Q452+'FR-16(7)(v)-8 TRANS Energy'!Q452+'FR-16(7)(v)-9 TRANS Cust'!Q452+'FR-16(7)(v)-11 DIST Demand'!Q452+'FR-16(7)(v)-12 DIST Energy'!Q452+'FR-16(7)(v)-13 DIST Cust'!Q452-'FR-16(7)(v)-14 TOTAL CLASS'!Q452","v":0},0,0]
[9,null,"  TOTAL ENERGY RELATED",null,null,{"$f":"SUM(F447:F452)","v":0},{"$f":"SUM(G447:G452)","v":0},0,0,0,0,0,0,0,0,0,0,0,0]
[10]
[11,"DEMAND RELATED & OTHER PROD O&M"]
[12,null,{"$f":"'FR-16(7)(v)-1 Functional'!C456","v":"OTHER PRODUCTION EXPENSES - OPERATIONS"},{"$f":"'FR-16(7)(v)-1 Functional'!D456","v":"K201"},null,{"$f":"'FR-16(7)(v)-3 PROD Demand'!F456+'FR-16(7)(v)-4 PROD Energy'!F456+'FR-16(7)(v)-5 PROD Cust'!F456+'FR-16(7)(v)-7 TRANS Demand'!F456+'FR-16(7)(v)-8 TRANS Energy'!F456+'FR-16(7)(v)-9 TRANS Cust'!F456+'FR-16(7)(v)-11 DIST Demand'!F456+'FR-16(7)(v)-12 DIST Energy'!F456+'FR-16(7)(v)-13 DIST Cust'!F456-'FR-16(7)(v)-14 TOTAL CLASS'!F456","v":0},{"$f":"'FR-16(7)(v)-3 PROD Demand'!G456+'FR-16(7)(v)-4 PROD Energy'!G456+'FR-16(7)(v)-5 PROD Cust'!G456+'FR-16(7)(v)-7 TRANS Demand'!G456+'FR-16(7)(v)-8 TRANS Energy'!G456+'FR-16(7)(v)-9 TRANS Cust'!G456+'FR-16(7)(v)-11 DIST Demand'!G456+'FR-16(7)(v)-12 DIST Energy'!G456+'FR-16(7)(v)-13 DIST Cust'!G456-'FR-16(7)(v)-14 TOTAL CLASS'!G456","v":0},{"$f":"'FR-16(7)(v)-3 PROD Demand'!H456+'FR-16(7)(v)-4 PROD Energy'!H456+'FR-16(7)(v)-5 PROD Cust'!H456+'FR-16(7)(v)-7 TRANS Demand'!H456+'FR-16(7)(v)-8 TRANS Energy'!H456+'FR-16(7)(v)-9 TRANS Cust'!H456+'FR-16(7)(v)-11 DIST Demand'!H456+'FR-16(7)(v)-12 DIST Energy'!H456+'FR-16(7)(v)-13 DIST Cust'!H456-'FR-16(7)(v)-14 TOTAL CLASS'!H456","v":0},{"$f":"'FR-16(7)(v)-3 PROD Demand'!I456+'FR-16(7)(v)-4 PROD Energy'!I456+'FR-16(7)(v)-5 PROD Cust'!I456+'FR-16(7)(v)-7 TRANS Demand'!I456+'FR-16(7)(v)-8 TRANS Energy'!I456+'FR-16(7)(v)-9 TRANS Cust'!I456+'FR-16(7)(v)-11 DIST Demand'!I456+'FR-16(7)(v)-12 DIST Energy'!I456+'FR-16(7)(v)-13 DIST Cust'!I456-'FR-16(7)(v)-14 TOTAL CLASS'!I456","v":0},{"$f":"'FR-16(7)(v)-3 PROD Demand'!J456+'FR-16(7)(v)-4 PROD Energy'!J456+'FR-16(7)(v)-5 PROD Cust'!J456+'FR-16(7)(v)-7 TRANS Demand'!J456+'FR-16(7)(v)-8 TRANS Energy'!J456+'FR-16(7)(v)-9 TRANS Cust'!J456+'FR-16(7)(v)-11 DIST Demand'!J456+'FR-16(7)(v)-12 DIST Energy'!J456+'FR-16(7)(v)-13 DIST Cust'!J456-'FR-16(7)(v)-14 TOTAL CLASS'!J456","v":0},{"$f":"'FR-16(7)(v)-3 PROD Demand'!K456+'FR-16(7)(v)-4 PROD Energy'!K456+'FR-16(7)(v)-5 PROD Cust'!K456+'FR-16(7)(v)-7 TRANS Demand'!K456+'FR-16(7)(v)-8 TRANS Energy'!K456+'FR-16(7)(v)-9 TRANS Cust'!K456+'FR-16(7)(v)-11 DIST Demand'!K456+'FR-16(7)(v)-12 DIST Energy'!K456+'FR-16(7)(v)-13 DIST Cust'!K456-'FR-16(7)(v)-14 TOTAL CLASS'!K456","v":0},{"$f":"'FR-16(7)(v)-3 PROD Demand'!L456+'FR-16(7)(v)-4 PROD Energy'!L456+'FR-16(7)(v)-5 PROD Cust'!L456+'FR-16(7)(v)-7 TRANS Demand'!L456+'FR-16(7)(v)-8 TRANS Energy'!L456+'FR-16(7)(v)-9 TRANS Cust'!L456+'FR-16(7)(v)-11 DIST Demand'!L456+'FR-16(7)(v)-12 DIST Energy'!L456+'FR-16(7)(v)-13 DIST Cust'!L456-'FR-16(7)(v)-14 TOTAL CLASS'!L456","v":0},{"$f":"'FR-16(7)(v)-3 PROD Demand'!M456+'FR-16(7)(v)-4 PROD Energy'!M456+'FR-16(7)(v)-5 PROD Cust'!M456+'FR-16(7)(v)-7 TRANS Demand'!M456+'FR-16(7)(v)-8 TRANS Energy'!M456+'FR-16(7)(v)-9 TRANS Cust'!M456+'FR-16(7)(v)-11 DIST Demand'!M456+'FR-16(7)(v)-12 DIST Energy'!M456+'FR-16(7)(v)-13 DIST Cust'!M456-'FR-16(7)(v)-14 TOTAL CLASS'!M456","v":0},{"$f":"'FR-16(7)(v)-3 PROD Demand'!N456+'FR-16(7)(v)-4 PROD Energy'!N456+'FR-16(7)(v)-5 PROD Cust'!N456+'FR-16(7)(v)-7 TRANS Demand'!N456+'FR-16(7)(v)-8 TRANS Energy'!N456+'FR-16(7)(v)-9 TRANS Cust'!N456+'FR-16(7)(v)-11 DIST Demand'!N456+'FR-16(7)(v)-12 DIST Energy'!N456+'FR-16(7)(v)-13 DIST Cust'!N456-'FR-16(7)(v)-14 TOTAL CLASS'!N456","v":0},{"$f":"'FR-16(7)(v)-3 PROD Demand'!O456+'FR-16(7)(v)-4 PROD Energy'!O456+'FR-16(7)(v)-5 PROD Cust'!O456+'FR-16(7)(v)-7 TRANS Demand'!O456+'FR-16(7)(v)-8 TRANS Energy'!O456+'FR-16(7)(v)-9 TRANS Cust'!O456+'FR-16(7)(v)-11 DIST Demand'!O456+'FR-16(7)(v)-12 DIST Energy'!O456+'FR-16(7)(v)-13 DIST Cust'!O456-'FR-16(7)(v)-14 TOTAL CLASS'!O456","v":0},{"$f":"'FR-16(7)(v)-3 PROD Demand'!P456+'FR-16(7)(v)-4 PROD Energy'!P456+'FR-16(7)(v)-5 PROD Cust'!P456+'FR-16(7)(v)-7 TRANS Demand'!P456+'FR-16(7)(v)-8 TRANS Energy'!P456+'FR-16(7)(v)-9 TRANS Cust'!P456+'FR-16(7)(v)-11 DIST Demand'!P456+'FR-16(7)(v)-12 DIST Energy'!P456+'FR-16(7)(v)-13 DIST Cust'!P456-'FR-16(7)(v)-14 TOTAL CLASS'!P456","v":0},{"$f":"'FR-16(7)(v)-3 PROD Demand'!Q456+'FR-16(7)(v)-4 PROD Energy'!Q456+'FR-16(7)(v)-5 PROD Cust'!Q456+'FR-16(7)(v)-7 TRANS Demand'!Q456+'FR-16(7)(v)-8 TRANS Energy'!Q456+'FR-16(7)(v)-9 TRANS Cust'!Q456+'FR-16(7)(v)-11 DIST Demand'!Q456+'FR-16(7)(v)-12 DIST Energy'!Q456+'FR-16(7)(v)-13 DIST Cust'!Q456-'FR-16(7)(v)-14 TOTAL CLASS'!Q456","v":0},{"$f":"SUM(G456:Q456)","v":0},{"$f":"F456-R456","v":0}]
[13,null,"  TOTAL DEMAND REL & OTH PROD O&M ",null,null,{"$f":"SUM(F455:F456)","v":0},{"$f":"SUM(G455:G456)","v":0},0,0,0,0,0,0,0,0,0,0,0,0]
[14]
[15,"TOTAL PRODUCTION O&M",null,null," ",{"$f":"F457+F453","v":0},{"$f":"G457+G453","v":0},0,0,0,0,0,0,0,0,0,0,0,0]
[16]
[17,"TRANSMISSION O & M"]
[18,null,{"$f":"'FR-16(7)(v)-1 Functional'!C462","v":"TRANSFORMER LEASE PAYMENTS"},{"$f":"'FR-16(7)(v)-1 Functional'!D462","v":"K202"},null,{"$f":"'FR-16(7)(v)-3 PROD Demand'!F462+'FR-16(7)(v)-4 PROD Energy'!F462+'FR-16(7)(v)-5 PROD Cust'!F462+'FR-16(7)(v)-7 TRANS Demand'!F462+'FR-16(7)(v)-8 TRANS Energy'!F462+'FR-16(7)(v)-9 TRANS Cust'!F462+'FR-16(7)(v)-11 DIST Demand'!F462+'FR-16(7)(v)-12 DIST Energy'!F462+'FR-16(7)(v)-13 DIST Cust'!F462-'FR-16(7)(v)-14 TOTAL CLASS'!F462","v":0},{"$f":"'FR-16(7)(v)-3 PROD Demand'!G462+'FR-16(7)(v)-4 PROD Energy'!G462+'FR-16(7)(v)-5 PROD Cust'!G462+'FR-16(7)(v)-7 TRANS Demand'!G462+'FR-16(7)(v)-8 TRANS Energy'!G462+'FR-16(7)(v)-9 TRANS Cust'!G462+'FR-16(7)(v)-11 DIST Demand'!G462+'FR-16(7)(v)-12 DIST Energy'!G462+'FR-16(7)(v)-13 DIST Cust'!G462-'FR-16(7)(v)-14 TOTAL CLASS'!G462","v":0},{"$f":"'FR-16(7)(v)-3 PROD Demand'!H462+'FR-16(7)(v)-4 PROD Energy'!H462+'FR-16(7)(v)-5 PROD Cust'!H462+'FR-16(7)(v)-7 TRANS Demand'!H462+'FR-16(7)(v)-8 TRANS Energy'!H462+'FR-16(7)(v)-9 TRANS Cust'!H462+'FR-16(7)(v)-11 DIST Demand'!H462+'FR-16(7)(v)-12 DIST Energy'!H462+'FR-16(7)(v)-13 DIST Cust'!H462-'FR-16(7)(v)-14 TOTAL CLASS'!H462","v":0},{"$f":"'FR-16(7)(v)-3 PROD Demand'!I462+'FR-16(7)(v)-4 PROD Energy'!I462+'FR-16(7)(v)-5 PROD Cust'!I462+'FR-16(7)(v)-7 TRANS Demand'!I462+'FR-16(7)(v)-8 TRANS Energy'!I462+'FR-16(7)(v)-9 TRANS Cust'!I462+'FR-16(7)(v)-11 DIST Demand'!I462+'FR-16(7)(v)-12 DIST Energy'!I462+'FR-16(7)(v)-13 DIST Cust'!I462-'FR-16(7)(v)-14 TOTAL CLASS'!I462","v":0},{"$f":"'FR-16(7)(v)-3 PROD Demand'!J462+'FR-16(7)(v)-4 PROD Energy'!J462+'FR-16(7)(v)-5 PROD Cust'!J462+'FR-16(7)(v)-7 TRANS Demand'!J462+'FR-16(7)(v)-8 TRANS Energy'!J462+'FR-16(7)(v)-9 TRANS Cust'!J462+'FR-16(7)(v)-11 DIST Demand'!J462+'FR-16(7)(v)-12 DIST Energy'!J462+'FR-16(7)(v)-13 DIST Cust'!J462-'FR-16(7)(v)-14 TOTAL CLASS'!J462","v":0},{"$f":"'FR-16(7)(v)-3 PROD Demand'!K462+'FR-16(7)(v)-4 PROD Energy'!K462+'FR-16(7)(v)-5 PROD Cust'!K462+'FR-16(7)(v)-7 TRANS Demand'!K462+'FR-16(7)(v)-8 TRANS Energy'!K462+'FR-16(7)(v)-9 TRANS Cust'!K462+'FR-16(7)(v)-11 DIST Demand'!K462+'FR-16(7)(v)-12 DIST Energy'!K462+'FR-16(7)(v)-13 DIST Cust'!K462-'FR-16(7)(v)-14 TOTAL CLASS'!K462","v":0},{"$f":"'FR-16(7)(v)-3 PROD Demand'!L462+'FR-16(7)(v)-4 PROD Energy'!L462+'FR-16(7)(v)-5 PROD Cust'!L462+'FR-16(7)(v)-7 TRANS Demand'!L462+'FR-16(7)(v)-8 TRANS Energy'!L462+'FR-16(7)(v)-9 TRANS Cust'!L462+'FR-16(7)(v)-11 DIST Demand'!L462+'FR-16(7)(v)-12 DIST Energy'!L462+'FR-16(7)(v)-13 DIST Cust'!L462-'FR-16(7)(v)-14 TOTAL CLASS'!L462","v":0},{"$f":"'FR-16(7)(v)-3 PROD Demand'!M462+'FR-16(7)(v)-4 PROD Energy'!M462+'FR-16(7)(v)-5 PROD Cust'!M462+'FR-16(7)(v)-7 TRANS Demand'!M462+'FR-16(7)(v)-8 TRANS Energy'!M462+'FR-16(7)(v)-9 TRANS Cust'!M462+'FR-16(7)(v)-11 DIST Demand'!M462+'FR-16(7)(v)-12 DIST Energy'!M462+'FR-16(7)(v)-13 DIST Cust'!M462-'FR-16(7)(v)-14 TOTAL CLASS'!M462","v":0},{"$f":"'FR-16(7)(v)-3 PROD Demand'!N462+'FR-16(7)(v)-4 PROD Energy'!N462+'FR-16(7)(v)-5 PROD Cust'!N462+'FR-16(7)(v)-7 TRANS Demand'!N462+'FR-16(7)(v)-8 TRANS Energy'!N462+'FR-16(7)(v)-9 TRANS Cust'!N462+'FR-16(7)(v)-11 DIST Demand'!N462+'FR-16(7)(v)-12 DIST Energy'!N462+'FR-16(7)(v)-13 DIST Cust'!N462-'FR-16(7)(v)-14 TOTAL CLASS'!N462","v":0},{"$f":"'FR-16(7)(v)-3 PROD Demand'!O462+'FR-16(7)(v)-4 PROD Energy'!O462+'FR-16(7)(v)-5 PROD Cust'!O462+'FR-16(7)(v)-7 TRANS Demand'!O462+'FR-16(7)(v)-8 TRANS Energy'!O462+'FR-16(7)(v)-9 TRANS Cust'!O462+'FR-16(7)(v)-11 DIST Demand'!O462+'FR-16(7)(v)-12 DIST Energy'!O462+'FR-16(7)(v)-13 DIST Cust'!O462-'FR-16(7)(v)-14 TOTAL CLASS'!O462","v":0},{"$f":"'FR-16(7)(v)-3 PROD Demand'!P462+'FR-16(7)(v)-4 PROD Energy'!P462+'FR-16(7)(v)-5 PROD Cust'!P462+'FR-16(7)(v)-7 TRANS Demand'!P462+'FR-16(7)(v)-8 TRANS Energy'!P462+'FR-16(7)(v)-9 TRANS Cust'!P462+'FR-16(7)(v)-11 DIST Demand'!P462+'FR-16(7)(v)-12 DIST Energy'!P462+'FR-16(7)(v)-13 DIST Cust'!P462-'FR-16(7)(v)-14 TOTAL CLASS'!P462","v":0},{"$f":"'FR-16(7)(v)-3 PROD Demand'!Q462+'FR-16(7)(v)-4 PROD Energy'!Q462+'FR-16(7)(v)-5 PROD Cust'!Q462+'FR-16(7)(v)-7 TRANS Demand'!Q462+'FR-16(7)(v)-8 TRANS Energy'!Q462+'FR-16(7)(v)-9 TRANS Cust'!Q462+'FR-16(7)(v)-11 DIST Demand'!Q462+'FR-16(7)(v)-12 DIST Energy'!Q462+'FR-16(7)(v)-13 DIST Cust'!Q462-'FR-16(7)(v)-14 TOTAL CLASS'!Q462","v":0},{"$f":"SUM(G462:Q462)","v":0},{"$f":"F462-R462","v":0}]
[19,null,{"$f":"'FR-16(7)(v)-1 Functional'!C463","v":"OTHER TRANSMISSION"},{"$f":"'FR-16(7)(v)-1 Functional'!D463","v":"K202"},null,{"$f":"'FR-16(7)(v)-3 PROD Demand'!F463+'FR-16(7)(v)-4 PROD Energy'!F463+'FR-16(7)(v)-5 PROD Cust'!F463+'FR-16(7)(v)-7 TRANS Demand'!F463+'FR-16(7)(v)-8 TRANS Energy'!F463+'FR-16(7)(v)-9 TRANS Cust'!F463+'FR-16(7)(v)-11 DIST Demand'!F463+'FR-16(7)(v)-12 DIST Energy'!F463+'FR-16(7)(v)-13 DIST Cust'!F463-'FR-16(7)(v)-14 TOTAL CLASS'!F463","v":0},{"$f":"'FR-16(7)(v)-3 PROD Demand'!G463+'FR-16(7)(v)-4 PROD Energy'!G463+'FR-16(7)(v)-5 PROD Cust'!G463+'FR-16(7)(v)-7 TRANS Demand'!G463+'FR-16(7)(v)-8 TRANS Energy'!G463+'FR-16(7)(v)-9 TRANS Cust'!G463+'FR-16(7)(v)-11 DIST Demand'!G463+'FR-16(7)(v)-12 DIST Energy'!G463+'FR-16(7)(v)-13 DIST Cust'!G463-'FR-16(7)(v)-14 TOTAL CLASS'!G463","v":0},{"$f":"'FR-16(7)(v)-3 PROD Demand'!H463+'FR-16(7)(v)-4 PROD Energy'!H463+'FR-16(7)(v)-5 PROD Cust'!H463+'FR-16(7)(v)-7 TRANS Demand'!H463+'FR-16(7)(v)-8 TRANS Energy'!H463+'FR-16(7)(v)-9 TRANS Cust'!H463+'FR-16(7)(v)-11 DIST Demand'!H463+'FR-16(7)(v)-12 DIST Energy'!H463+'FR-16(7)(v)-13 DIST Cust'!H463-'FR-16(7)(v)-14 TOTAL CLASS'!H463","v":0},{"$f":"'FR-16(7)(v)-3 PROD Demand'!I463+'FR-16(7)(v)-4 PROD Energy'!I463+'FR-16(7)(v)-5 PROD Cust'!I463+'FR-16(7)(v)-7 TRANS Demand'!I463+'FR-16(7)(v)-8 TRANS Energy'!I463+'FR-16(7)(v)-9 TRANS Cust'!I463+'FR-16(7)(v)-11 DIST Demand'!I463+'FR-16(7)(v)-12 DIST Energy'!I463+'FR-16(7)(v)-13 DIST Cust'!I463-'FR-16(7)(v)-14 TOTAL CLASS'!I463","v":0},{"$f":"'FR-16(7)(v)-3 PROD Demand'!J463+'FR-16(7)(v)-4 PROD Energy'!J463+'FR-16(7)(v)-5 PROD Cust'!J463+'FR-16(7)(v)-7 TRANS Demand'!J463+'FR-16(7)(v)-8 TRANS Energy'!J463+'FR-16(7)(v)-9 TRANS Cust'!J463+'FR-16(7)(v)-11 DIST Demand'!J463+'FR-16(7)(v)-12 DIST Energy'!J463+'FR-16(7)(v)-13 DIST Cust'!J463-'FR-16(7)(v)-14 TOTAL CLASS'!J463","v":0},{"$f":"'FR-16(7)(v)-3 PROD Demand'!K463+'FR-16(7)(v)-4 PROD Energy'!K463+'FR-16(7)(v)-5 PROD Cust'!K463+'FR-16(7)(v)-7 TRANS Demand'!K463+'FR-16(7)(v)-8 TRANS Energy'!K463+'FR-16(7)(v)-9 TRANS Cust'!K463+'FR-16(7)(v)-11 DIST Demand'!K463+'FR-16(7)(v)-12 DIST Energy'!K463+'FR-16(7)(v)-13 DIST Cust'!K463-'FR-16(7)(v)-14 TOTAL CLASS'!K463","v":0},{"$f":"'FR-16(7)(v)-3 PROD Demand'!L463+'FR-16(7)(v)-4 PROD Energy'!L463+'FR-16(7)(v)-5 PROD Cust'!L463+'FR-16(7)(v)-7 TRANS Demand'!L463+'FR-16(7)(v)-8 TRANS Energy'!L463+'FR-16(7)(v)-9 TRANS Cust'!L463+'FR-16(7)(v)-11 DIST Demand'!L463+'FR-16(7)(v)-12 DIST Energy'!L463+'FR-16(7)(v)-13 DIST Cust'!L463-'FR-16(7)(v)-14 TOTAL CLASS'!L463","v":0},{"$f":"'FR-16(7)(v)-3 PROD Demand'!M463+'FR-16(7)(v)-4 PROD Energy'!M463+'FR-16(7)(v)-5 PROD Cust'!M463+'FR-16(7)(v)-7 TRANS Demand'!M463+'FR-16(7)(v)-8 TRANS Energy'!M463+'FR-16(7)(v)-9 TRANS Cust'!M463+'FR-16(7)(v)-11 DIST Demand'!M463+'FR-16(7)(v)-12 DIST Energy'!M463+'FR-16(7)(v)-13 DIST Cust'!M463-'FR-16(7)(v)-14 TOTAL CLASS'!M463","v":0},{"$f":"'FR-16(7)(v)-3 PROD Demand'!N463+'FR-16(7)(v)-4 PROD Energy'!N463+'FR-16(7)(v)-5 PROD Cust'!N463+'FR-16(7)(v)-7 TRANS Demand'!N463+'FR-16(7)(v)-8 TRANS Energy'!N463+'FR-16(7)(v)-9 TRANS Cust'!N463+'FR-16(7)(v)-11 DIST Demand'!N463+'FR-16(7)(v)-12 DIST Energy'!N463+'FR-16(7)(v)-13 DIST Cust'!N463-'FR-16(7)(v)-14 TOTAL CLASS'!N463","v":0},{"$f":"'FR-16(7)(v)-3 PROD Demand'!O463+'FR-16(7)(v)-4 PROD Energy'!O463+'FR-16(7)(v)-5 PROD Cust'!O463+'FR-16(7)(v)-7 TRANS Demand'!O463+'FR-16(7)(v)-8 TRANS Energy'!O463+'FR-16(7)(v)-9 TRANS Cust'!O463+'FR-16(7)(v)-11 DIST Demand'!O463+'FR-16(7)(v)-12 DIST Energy'!O463+'FR-16(7)(v)-13 DIST Cust'!O463-'FR-16(7)(v)-14 TOTAL CLASS'!O463","v":0},{"$f":"'FR-16(7)(v)-3 PROD Demand'!P463+'FR-16(7)(v)-4 PROD Energy'!P463+'FR-16(7)(v)-5 PROD Cust'!P463+'FR-16(7)(v)-7 TRANS Demand'!P463+'FR-16(7)(v)-8 TRANS Energy'!P463+'FR-16(7)(v)-9 TRANS Cust'!P463+'FR-16(7)(v)-11 DIST Demand'!P463+'FR-16(7)(v)-12 DIST Energy'!P463+'FR-16(7)(v)-13 DIST Cust'!P463-'FR-16(7)(v)-14 TOTAL CLASS'!P463","v":0},{"$f":"'FR-16(7)(v)-3 PROD Demand'!Q463+'FR-16(7)(v)-4 PROD Energy'!Q463+'FR-16(7)(v)-5 PROD Cust'!Q463+'FR-16(7)(v)-7 TRANS Demand'!Q463+'FR-16(7)(v)-8 TRANS Energy'!Q463+'FR-16(7)(v)-9 TRANS Cust'!Q463+'FR-16(7)(v)-11 DIST Demand'!Q463+'FR-16(7)(v)-12 DIST Energy'!Q463+'FR-16(7)(v)-13 DIST Cust'!Q463-'FR-16(7)(v)-14 TOTAL CLASS'!Q463","v":0},{"$f":"SUM(G463:Q463)","v":0},{"$f":"F463-R463","v":0}]
[20,null,{"$f":"'FR-16(7)(v)-1 Functional'!C464","v":"MISCELLANEOUS ADJUSTMENTS"},{"$f":"'FR-16(7)(v)-1 Functional'!D464","v":"K202"},null,{"$f":"'FR-16(7)(v)-3 PROD Demand'!F464+'FR-16(7)(v)-4 PROD Energy'!F464+'FR-16(7)(v)-5 PROD Cust'!F464+'FR-16(7)(v)-7 TRANS Demand'!F464+'FR-16(7)(v)-8 TRANS Energy'!F464+'FR-16(7)(v)-9 TRANS Cust'!F464+'FR-16(7)(v)-11 DIST Demand'!F464+'FR-16(7)(v)-12 DIST Energy'!F464+'FR-16(7)(v)-13 DIST Cust'!F464-'FR-16(7)(v)-14 TOTAL CLASS'!F464","v":0},{"$f":"'FR-16(7)(v)-3 PROD Demand'!G464+'FR-16(7)(v)-4 PROD Energy'!G464+'FR-16(7)(v)-5 PROD Cust'!G464+'FR-16(7)(v)-7 TRANS Demand'!G464+'FR-16(7)(v)-8 TRANS Energy'!G464+'FR-16(7)(v)-9 TRANS Cust'!G464+'FR-16(7)(v)-11 DIST Demand'!G464+'FR-16(7)(v)-12 DIST Energy'!G464+'FR-16(7)(v)-13 DIST Cust'!G464-'FR-16(7)(v)-14 TOTAL CLASS'!G464","v":0},{"$f":"'FR-16(7)(v)-3 PROD Demand'!H464+'FR-16(7)(v)-4 PROD Energy'!H464+'FR-16(7)(v)-5 PROD Cust'!H464+'FR-16(7)(v)-7 TRANS Demand'!H464+'FR-16(7)(v)-8 TRANS Energy'!H464+'FR-16(7)(v)-9 TRANS Cust'!H464+'FR-16(7)(v)-11 DIST Demand'!H464+'FR-16(7)(v)-12 DIST Energy'!H464+'FR-16(7)(v)-13 DIST Cust'!H464-'FR-16(7)(v)-14 TOTAL CLASS'!H464","v":0},{"$f":"'FR-16(7)(v)-3 PROD Demand'!I464+'FR-16(7)(v)-4 PROD Energy'!I464+'FR-16(7)(v)-5 PROD Cust'!I464+'FR-16(7)(v)-7 TRANS Demand'!I464+'FR-16(7)(v)-8 TRANS Energy'!I464+'FR-16(7)(v)-9 TRANS Cust'!I464+'FR-16(7)(v)-11 DIST Demand'!I464+'FR-16(7)(v)-12 DIST Energy'!I464+'FR-16(7)(v)-13 DIST Cust'!I464-'FR-16(7)(v)-14 TOTAL CLASS'!I464","v":0},{"$f":"'FR-16(7)(v)-3 PROD Demand'!J464+'FR-16(7)(v)-4 PROD Energy'!J464+'FR-16(7)(v)-5 PROD Cust'!J464+'FR-16(7)(v)-7 TRANS Demand'!J464+'FR-16(7)(v)-8 TRANS Energy'!J464+'FR-16(7)(v)-9 TRANS Cust'!J464+'FR-16(7)(v)-11 DIST Demand'!J464+'FR-16(7)(v)-12 DIST Energy'!J464+'FR-16(7)(v)-13 DIST Cust'!J464-'FR-16(7)(v)-14 TOTAL CLASS'!J464","v":0},{"$f":"'FR-16(7)(v)-3 PROD Demand'!K464+'FR-16(7)(v)-4 PROD Energy'!K464+'FR-16(7)(v)-5 PROD Cust'!K464+'FR-16(7)(v)-7 TRANS Demand'!K464+'FR-16(7)(v)-8 TRANS Energy'!K464+'FR-16(7)(v)-9 TRANS Cust'!K464+'FR-16(7)(v)-11 DIST Demand'!K464+'FR-16(7)(v)-12 DIST Energy'!K464+'FR-16(7)(v)-13 DIST Cust'!K464-'FR-16(7)(v)-14 TOTAL CLASS'!K464","v":0},{"$f":"'FR-16(7)(v)-3 PROD Demand'!L464+'FR-16(7)(v)-4 PROD Energy'!L464+'FR-16(7)(v)-5 PROD Cust'!L464+'FR-16(7)(v)-7 TRANS Demand'!L464+'FR-16(7)(v)-8 TRANS Energy'!L464+'FR-16(7)(v)-9 TRANS Cust'!L464+'FR-16(7)(v)-11 DIST Demand'!L464+'FR-16(7)(v)-12 DIST Energy'!L464+'FR-16(7)(v)-13 DIST Cust'!L464-'FR-16(7)(v)-14 TOTAL CLASS'!L464","v":0},{"$f":"'FR-16(7)(v)-3 PROD Demand'!M464+'FR-16(7)(v)-4 PROD Energy'!M464+'FR-16(7)(v)-5 PROD Cust'!M464+'FR-16(7)(v)-7 TRANS Demand'!M464+'FR-16(7)(v)-8 TRANS Energy'!M464+'FR-16(7)(v)-9 TRANS Cust'!M464+'FR-16(7)(v)-11 DIST Demand'!M464+'FR-16(7)(v)-12 DIST Energy'!M464+'FR-16(7)(v)-13 DIST Cust'!M464-'FR-16(7)(v)-14 TOTAL CLASS'!M464","v":0},{"$f":"'FR-16(7)(v)-3 PROD Demand'!N464+'FR-16(7)(v)-4 PROD Energy'!N464+'FR-16(7)(v)-5 PROD Cust'!N464+'FR-16(7)(v)-7 TRANS Demand'!N464+'FR-16(7)(v)-8 TRANS Energy'!N464+'FR-16(7)(v)-9 TRANS Cust'!N464+'FR-16(7)(v)-11 DIST Demand'!N464+'FR-16(7)(v)-12 DIST Energy'!N464+'FR-16(7)(v)-13 DIST Cust'!N464-'FR-16(7)(v)-14 TOTAL CLASS'!N464","v":0},{"$f":"'FR-16(7)(v)-3 PROD Demand'!O464+'FR-16(7)(v)-4 PROD Energy'!O464+'FR-16(7)(v)-5 PROD Cust'!O464+'FR-16(7)(v)-7 TRANS Demand'!O464+'FR-16(7)(v)-8 TRANS Energy'!O464+'FR-16(7)(v)-9 TRANS Cust'!O464+'FR-16(7)(v)-11 DIST Demand'!O464+'FR-16(7)(v)-12 DIST Energy'!O464+'FR-16(7)(v)-13 DIST Cust'!O464-'FR-16(7)(v)-14 TOTAL CLASS'!O464","v":0},{"$f":"'FR-16(7)(v)-3 PROD Demand'!P464+'FR-16(7)(v)-4 PROD Energy'!P464+'FR-16(7)(v)-5 PROD Cust'!P464+'FR-16(7)(v)-7 TRANS Demand'!P464+'FR-16(7)(v)-8 TRANS Energy'!P464+'FR-16(7)(v)-9 TRANS Cust'!P464+'FR-16(7)(v)-11 DIST Demand'!P464+'FR-16(7)(v)-12 DIST Energy'!P464+'FR-16(7)(v)-13 DIST Cust'!P464-'FR-16(7)(v)-14 TOTAL CLASS'!P464","v":0},{"$f":"'FR-16(7)(v)-3 PROD Demand'!Q464+'FR-16(7)(v)-4 PROD Energy'!Q464+'FR-16(7)(v)-5 PROD Cust'!Q464+'FR-16(7)(v)-7 TRANS Demand'!Q464+'FR-16(7)(v)-8 TRANS Energy'!Q464+'FR-16(7)(v)-9 TRANS Cust'!Q464+'FR-16(7)(v)-11 DIST Demand'!Q464+'FR-16(7)(v)-12 DIST Energy'!Q464+'FR-16(7)(v)-13 DIST Cust'!Q464-'FR-16(7)(v)-14 TOTAL CLASS'!Q464","v":0},{"$f":"SUM(G464:Q464)","v":0},{"$f":"F464-R464","v":0}]
[21,null,{"$f":"'FR-16(7)(v)-1 Functional'!C465","v":"NETWORK SERVICE RATES ADJUSTMENT"},{"$f":"'FR-16(7)(v)-1 Functional'!D465","v":"K202"},null,{"$f":"'FR-16(7)(v)-3 PROD Demand'!F465+'FR-16(7)(v)-4 PROD Energy'!F465+'FR-16(7)(v)-5 PROD Cust'!F465+'FR-16(7)(v)-7 TRANS Demand'!F465+'FR-16(7)(v)-8 TRANS Energy'!F465+'FR-16(7)(v)-9 TRANS Cust'!F465+'FR-16(7)(v)-11 DIST Demand'!F465+'FR-16(7)(v)-12 DIST Energy'!F465+'FR-16(7)(v)-13 DIST Cust'!F465-'FR-16(7)(v)-14 TOTAL CLASS'!F465","v":0},{"$f":"'FR-16(7)(v)-3 PROD Demand'!G465+'FR-16(7)(v)-4 PROD Energy'!G465+'FR-16(7)(v)-5 PROD Cust'!G465+'FR-16(7)(v)-7 TRANS Demand'!G465+'FR-16(7)(v)-8 TRANS Energy'!G465+'FR-16(7)(v)-9 TRANS Cust'!G465+'FR-16(7)(v)-11 DIST Demand'!G465+'FR-16(7)(v)-12 DIST Energy'!G465+'FR-16(7)(v)-13 DIST Cust'!G465-'FR-16(7)(v)-14 TOTAL CLASS'!G465","v":0},{"$f":"'FR-16(7)(v)-3 PROD Demand'!H465+'FR-16(7)(v)-4 PROD Energy'!H465+'FR-16(7)(v)-5 PROD Cust'!H465+'FR-16(7)(v)-7 TRANS Demand'!H465+'FR-16(7)(v)-8 TRANS Energy'!H465+'FR-16(7)(v)-9 TRANS Cust'!H465+'FR-16(7)(v)-11 DIST Demand'!H465+'FR-16(7)(v)-12 DIST Energy'!H465+'FR-16(7)(v)-13 DIST Cust'!H465-'FR-16(7)(v)-14 TOTAL CLASS'!H465","v":0},{"$f":"'FR-16(7)(v)-3 PROD Demand'!I465+'FR-16(7)(v)-4 PROD Energy'!I465+'FR-16(7)(v)-5 PROD Cust'!I465+'FR-16(7)(v)-7 TRANS Demand'!I465+'FR-16(7)(v)-8 TRANS Energy'!I465+'FR-16(7)(v)-9 TRANS Cust'!I465+'FR-16(7)(v)-11 DIST Demand'!I465+'FR-16(7)(v)-12 DIST Energy'!I465+'FR-16(7)(v)-13 DIST Cust'!I465-'FR-16(7)(v)-14 TOTAL CLASS'!I465","v":0},{"$f":"'FR-16(7)(v)-3 PROD Demand'!J465+'FR-16(7)(v)-4 PROD Energy'!J465+'FR-16(7)(v)-5 PROD Cust'!J465+'FR-16(7)(v)-7 TRANS Demand'!J465+'FR-16(7)(v)-8 TRANS Energy'!J465+'FR-16(7)(v)-9 TRANS Cust'!J465+'FR-16(7)(v)-11 DIST Demand'!J465+'FR-16(7)(v)-12 DIST Energy'!J465+'FR-16(7)(v)-13 DIST Cust'!J465-'FR-16(7)(v)-14 TOTAL CLASS'!J465","v":0},{"$f":"'FR-16(7)(v)-3 PROD Demand'!K465+'FR-16(7)(v)-4 PROD Energy'!K465+'FR-16(7)(v)-5 PROD Cust'!K465+'FR-16(7)(v)-7 TRANS Demand'!K465+'FR-16(7)(v)-8 TRANS Energy'!K465+'FR-16(7)(v)-9 TRANS Cust'!K465+'FR-16(7)(v)-11 DIST Demand'!K465+'FR-16(7)(v)-12 DIST Energy'!K465+'FR-16(7)(v)-13 DIST Cust'!K465-'FR-16(7)(v)-14 TOTAL CLASS'!K465","v":0},{"$f":"'FR-16(7)(v)-3 PROD Demand'!L465+'FR-16(7)(v)-4 PROD Energy'!L465+'FR-16(7)(v)-5 PROD Cust'!L465+'FR-16(7)(v)-7 TRANS Demand'!L465+'FR-16(7)(v)-8 TRANS Energy'!L465+'FR-16(7)(v)-9 TRANS Cust'!L465+'FR-16(7)(v)-11 DIST Demand'!L465+'FR-16(7)(v)-12 DIST Energy'!L465+'FR-16(7)(v)-13 DIST Cust'!L465-'FR-16(7)(v)-14 TOTAL CLASS'!L465","v":0},{"$f":"'FR-16(7)(v)-3 PROD Demand'!M465+'FR-16(7)(v)-4 PROD Energy'!M465+'FR-16(7)(v)-5 PROD Cust'!M465+'FR-16(7)(v)-7 TRANS Demand'!M465+'FR-16(7)(v)-8 TRANS Energy'!M465+'FR-16(7)(v)-9 TRANS Cust'!M465+'FR-16(7)(v)-11 DIST Demand'!M465+'FR-16(7)(v)-12 DIST Energy'!M465+'FR-16(7)(v)-13 DIST Cust'!M465-'FR-16(7)(v)-14 TOTAL CLASS'!M465","v":0},{"$f":"'FR-16(7)(v)-3 PROD Demand'!N465+'FR-16(7)(v)-4 PROD Energy'!N465+'FR-16(7)(v)-5 PROD Cust'!N465+'FR-16(7)(v)-7 TRANS Demand'!N465+'FR-16(7)(v)-8 TRANS Energy'!N465+'FR-16(7)(v)-9 TRANS Cust'!N465+'FR-16(7)(v)-11 DIST Demand'!N465+'FR-16(7)(v)-12 DIST Energy'!N465+'FR-16(7)(v)-13 DIST Cust'!N465-'FR-16(7)(v)-14 TOTAL CLASS'!N465","v":0},{"$f":"'FR-16(7)(v)-3 PROD Demand'!O465+'FR-16(7)(v)-4 PROD Energy'!O465+'FR-16(7)(v)-5 PROD Cust'!O465+'FR-16(7)(v)-7 TRANS Demand'!O465+'FR-16(7)(v)-8 TRANS Energy'!O465+'FR-16(7)(v)-9 TRANS Cust'!O465+'FR-16(7)(v)-11 DIST Demand'!O465+'FR-16(7)(v)-12 DIST Energy'!O465+'FR-16(7)(v)-13 DIST Cust'!O465-'FR-16(7)(v)-14 TOTAL CLASS'!O465","v":0},{"$f":"'FR-16(7)(v)-3 PROD Demand'!P465+'FR-16(7)(v)-4 PROD Energy'!P465+'FR-16(7)(v)-5 PROD Cust'!P465+'FR-16(7)(v)-7 TRANS Demand'!P465+'FR-16(7)(v)-8 TRANS Energy'!P465+'FR-16(7)(v)-9 TRANS Cust'!P465+'FR-16(7)(v)-11 DIST Demand'!P465+'FR-16(7)(v)-12 DIST Energy'!P465+'FR-16(7)(v)-13 DIST Cust'!P465-'FR-16(7)(v)-14 TOTAL CLASS'!P465","v":0},{"$f":"'FR-16(7)(v)-3 PROD Demand'!Q465+'FR-16(7)(v)-4 PROD Energy'!Q465+'FR-16(7)(v)-5 PROD Cust'!Q465+'FR-16(7)(v)-7 TRANS Demand'!Q465+'FR-16(7)(v)-8 TRANS Energy'!Q465+'FR-16(7)(v)-9 TRANS Cust'!Q465+'FR-16(7)(v)-11 DIST Demand'!Q465+'FR-16(7)(v)-12 DIST Energy'!Q465+'FR-16(7)(v)-13 DIST Cust'!Q465-'FR-16(7)(v)-14 TOTAL CLASS'!Q465","v":0},{"$f":"SUM(G465:Q465)","v":0},{"$f":"F465-R465","v":0}]
[22,null,{"$f":"'FR-16(7)(v)-1 Functional'!C466","v":"  TOTAL TRANSMISSION O & M"},null,null,{"$f":"SUM(F462:F465)","v":0},{"$f":"SUM(G462:G465)","v":0},0,0,0,0,0,0,0,0,0,0,0,0]
[23]
[24,"REGIONAL MARKET O&M"]
[25,null,{"$f":"'FR-16(7)(v)-1 Functional'!C469","v":"MARKET FACILITATION - MONITORING & COMPLIANCE"},{"$f":"'FR-16(7)(v)-1 Functional'!D469","v":"K202"},null,{"$f":"'FR-16(7)(v)-3 PROD Demand'!F469+'FR-16(7)(v)-4 PROD Energy'!F469+'FR-16(7)(v)-5 PROD Cust'!F469+'FR-16(7)(v)-7 TRANS Demand'!F469+'FR-16(7)(v)-8 TRANS Energy'!F469+'FR-16(7)(v)-9 TRANS Cust'!F469+'FR-16(7)(v)-11 DIST Demand'!F469+'FR-16(7)(v)-12 DIST Energy'!F469+'FR-16(7)(v)-13 DIST Cust'!F469-'FR-16(7)(v)-14 TOTAL CLASS'!F469","v":0},{"$f":"'FR-16(7)(v)-3 PROD Demand'!G469+'FR-16(7)(v)-4 PROD Energy'!G469+'FR-16(7)(v)-5 PROD Cust'!G469+'FR-16(7)(v)-7 TRANS Demand'!G469+'FR-16(7)(v)-8 TRANS Energy'!G469+'FR-16(7)(v)-9 TRANS Cust'!G469+'FR-16(7)(v)-11 DIST Demand'!G469+'FR-16(7)(v)-12 DIST Energy'!G469+'FR-16(7)(v)-13 DIST Cust'!G469-'FR-16(7)(v)-14 TOTAL CLASS'!G469","v":0},{"$f":"'FR-16(7)(v)-3 PROD Demand'!H469+'FR-16(7)(v)-4 PROD Energy'!H469+'FR-16(7)(v)-5 PROD Cust'!H469+'FR-16(7)(v)-7 TRANS Demand'!H469+'FR-16(7)(v)-8 TRANS Energy'!H469+'FR-16(7)(v)-9 TRANS Cust'!H469+'FR-16(7)(v)-11 DIST Demand'!H469+'FR-16(7)(v)-12 DIST Energy'!H469+'FR-16(7)(v)-13 DIST Cust'!H469-'FR-16(7)(v)-14 TOTAL CLASS'!H469","v":0},{"$f":"'FR-16(7)(v)-3 PROD Demand'!I469+'FR-16(7)(v)-4 PROD Energy'!I469+'FR-16(7)(v)-5 PROD Cust'!I469+'FR-16(7)(v)-7 TRANS Demand'!I469+'FR-16(7)(v)-8 TRANS Energy'!I469+'FR-16(7)(v)-9 TRANS Cust'!I469+'FR-16(7)(v)-11 DIST Demand'!I469+'FR-16(7)(v)-12 DIST Energy'!I469+'FR-16(7)(v)-13 DIST Cust'!I469-'FR-16(7)(v)-14 TOTAL CLASS'!I469","v":0},{"$f":"'FR-16(7)(v)-3 PROD Demand'!J469+'FR-16(7)(v)-4 PROD Energy'!J469+'FR-16(7)(v)-5 PROD Cust'!J469+'FR-16(7)(v)-7 TRANS Demand'!J469+'FR-16(7)(v)-8 TRANS Energy'!J469+'FR-16(7)(v)-9 TRANS Cust'!J469+'FR-16(7)(v)-11 DIST Demand'!J469+'FR-16(7)(v)-12 DIST Energy'!J469+'FR-16(7)(v)-13 DIST Cust'!J469-'FR-16(7)(v)-14 TOTAL CLASS'!J469","v":0},{"$f":"'FR-16(7)(v)-3 PROD Demand'!K469+'FR-16(7)(v)-4 PROD Energy'!K469+'FR-16(7)(v)-5 PROD Cust'!K469+'FR-16(7)(v)-7 TRANS Demand'!K469+'FR-16(7)(v)-8 TRANS Energy'!K469+'FR-16(7)(v)-9 TRANS Cust'!K469+'FR-16(7)(v)-11 DIST Demand'!K469+'FR-16(7)(v)-12 DIST Energy'!K469+'FR-16(7)(v)-13 DIST Cust'!K469-'FR-16(7)(v)-14 TOTAL CLASS'!K469","v":0},{"$f":"'FR-16(7)(v)-3 PROD Demand'!L469+'FR-16(7)(v)-4 PROD Energy'!L469+'FR-16(7)(v)-5 PROD Cust'!L469+'FR-16(7)(v)-7 TRANS Demand'!L469+'FR-16(7)(v)-8 TRANS Energy'!L469+'FR-16(7)(v)-9 TRANS Cust'!L469+'FR-16(7)(v)-11 DIST Demand'!L469+'FR-16(7)(v)-12 DIST Energy'!L469+'FR-16(7)(v)-13 DIST Cust'!L469-'FR-16(7)(v)-14 TOTAL CLASS'!L469","v":0},{"$f":"'FR-16(7)(v)-3 PROD Demand'!M469+'FR-16(7)(v)-4 PROD Energy'!M469+'FR-16(7)(v)-5 PROD Cust'!M469+'FR-16(7)(v)-7 TRANS Demand'!M469+'FR-16(7)(v)-8 TRANS Energy'!M469+'FR-16(7)(v)-9 TRANS Cust'!M469+'FR-16(7)(v)-11 DIST Demand'!M469+'FR-16(7)(v)-12 DIST Energy'!M469+'FR-16(7)(v)-13 DIST Cust'!M469-'FR-16(7)(v)-14 TOTAL CLASS'!M469","v":0},{"$f":"'FR-16(7)(v)-3 PROD Demand'!N469+'FR-16(7)(v)-4 PROD Energy'!N469+'FR-16(7)(v)-5 PROD Cust'!N469+'FR-16(7)(v)-7 TRANS Demand'!N469+'FR-16(7)(v)-8 TRANS Energy'!N469+'FR-16(7)(v)-9 TRANS Cust'!N469+'FR-16(7)(v)-11 DIST Demand'!N469+'FR-16(7)(v)-12 DIST Energy'!N469+'FR-16(7)(v)-13 DIST Cust'!N469-'FR-16(7)(v)-14 TOTAL CLASS'!N469","v":0},{"$f":"'FR-16(7)(v)-3 PROD Demand'!O469+'FR-16(7)(v)-4 PROD Energy'!O469+'FR-16(7)(v)-5 PROD Cust'!O469+'FR-16(7)(v)-7 TRANS Demand'!O469+'FR-16(7)(v)-8 TRANS Energy'!O469+'FR-16(7)(v)-9 TRANS Cust'!O469+'FR-16(7)(v)-11 DIST Demand'!O469+'FR-16(7)(v)-12 DIST Energy'!O469+'FR-16(7)(v)-13 DIST Cust'!O469-'FR-16(7)(v)-14 TOTAL CLASS'!O469","v":0},{"$f":"'FR-16(7)(v)-3 PROD Demand'!P469+'FR-16(7)(v)-4 PROD Energy'!P469+'FR-16(7)(v)-5 PROD Cust'!P469+'FR-16(7)(v)-7 TRANS Demand'!P469+'FR-16(7)(v)-8 TRANS Energy'!P469+'FR-16(7)(v)-9 TRANS Cust'!P469+'FR-16(7)(v)-11 DIST Demand'!P469+'FR-16(7)(v)-12 DIST Energy'!P469+'FR-16(7)(v)-13 DIST Cust'!P469-'FR-16(7)(v)-14 TOTAL CLASS'!P469","v":0},{"$f":"'FR-16(7)(v)-3 PROD Demand'!Q469+'FR-16(7)(v)-4 PROD Energy'!Q469+'FR-16(7)(v)-5 PROD Cust'!Q469+'FR-16(7)(v)-7 TRANS Demand'!Q469+'FR-16(7)(v)-8 TRANS Energy'!Q469+'FR-16(7)(v)-9 TRANS Cust'!Q469+'FR-16(7)(v)-11 DIST Demand'!Q469+'FR-16(7)(v)-12 DIST Energy'!Q469+'FR-16(7)(v)-13 DIST Cust'!Q469-'FR-16(7)(v)-14 TOTAL CLASS'!Q469","v":0},{"$f":"SUM(G469:Q469)","v":0},{"$f":"F469-R469","v":0}]
[26,null,"TOTAL REGIONAL MARKET O&M",null,null,{"$f":"SUM(F468:F469)","v":0},{"$f":"SUM(G468:G469)","v":0},0,0,0,0,0,0,0,0,0,0,0,0]
[27]
[28,"DISTRIBUTION O & M"]
[29,null,{"$f":"'FR-16(7)(v)-1 Functional'!C473","v":"SUBSTATIONS"},"A300",null,{"$f":"'FR-16(7)(v)-3 PROD Demand'!F473+'FR-16(7)(v)-4 PROD Energy'!F473+'FR-16(7)(v)-5 PROD Cust'!F473+'FR-16(7)(v)-7 TRANS Demand'!F473+'FR-16(7)(v)-8 TRANS Energy'!F473+'FR-16(7)(v)-9 TRANS Cust'!F473+'FR-16(7)(v)-11 DIST Demand'!F473+'FR-16(7)(v)-12 DIST Energy'!F473+'FR-16(7)(v)-13 DIST Cust'!F473-'FR-16(7)(v)-14 TOTAL CLASS'!F473","v":0},{"$f":"'FR-16(7)(v)-3 PROD Demand'!G473+'FR-16(7)(v)-4 PROD Energy'!G473+'FR-16(7)(v)-5 PROD Cust'!G473+'FR-16(7)(v)-7 TRANS Demand'!G473+'FR-16(7)(v)-8 TRANS Energy'!G473+'FR-16(7)(v)-9 TRANS Cust'!G473+'FR-16(7)(v)-11 DIST Demand'!G473+'FR-16(7)(v)-12 DIST Energy'!G473+'FR-16(7)(v)-13 DIST Cust'!G473-'FR-16(7)(v)-14 TOTAL CLASS'!G473","v":0},{"$f":"'FR-16(7)(v)-3 PROD Demand'!H473+'FR-16(7)(v)-4 PROD Energy'!H473+'FR-16(7)(v)-5 PROD Cust'!H473+'FR-16(7)(v)-7 TRANS Demand'!H473+'FR-16(7)(v)-8 TRANS Energy'!H473+'FR-16(7)(v)-9 TRANS Cust'!H473+'FR-16(7)(v)-11 DIST Demand'!H473+'FR-16(7)(v)-12 DIST Energy'!H473+'FR-16(7)(v)-13 DIST Cust'!H473-'FR-16(7)(v)-14 TOTAL CLASS'!H473","v":0},{"$f":"'FR-16(7)(v)-3 PROD Demand'!I473+'FR-16(7)(v)-4 PROD Energy'!I473+'FR-16(7)(v)-5 PROD Cust'!I473+'FR-16(7)(v)-7 TRANS Demand'!I473+'FR-16(7)(v)-8 TRANS Energy'!I473+'FR-16(7)(v)-9 TRANS Cust'!I473+'FR-16(7)(v)-11 DIST Demand'!I473+'FR-16(7)(v)-12 DIST Energy'!I473+'FR-16(7)(v)-13 DIST Cust'!I473-'FR-16(7)(v)-14 TOTAL CLASS'!I473","v":0},{"$f":"'FR-16(7)(v)-3 PROD Demand'!J473+'FR-16(7)(v)-4 PROD Energy'!J473+'FR-16(7)(v)-5 PROD Cust'!J473+'FR-16(7)(v)-7 TRANS Demand'!J473+'FR-16(7)(v)-8 TRANS Energy'!J473+'FR-16(7)(v)-9 TRANS Cust'!J473+'FR-16(7)(v)-11 DIST Demand'!J473+'FR-16(7)(v)-12 DIST Energy'!J473+'FR-16(7)(v)-13 DIST Cust'!J473-'FR-16(7)(v)-14 TOTAL CLASS'!J473","v":0},{"$f":"'FR-16(7)(v)-3 PROD Demand'!K473+'FR-16(7)(v)-4 PROD Energy'!K473+'FR-16(7)(v)-5 PROD Cust'!K473+'FR-16(7)(v)-7 TRANS Demand'!K473+'FR-16(7)(v)-8 TRANS Energy'!K473+'FR-16(7)(v)-9 TRANS Cust'!K473+'FR-16(7)(v)-11 DIST Demand'!K473+'FR-16(7)(v)-12 DIST Energy'!K473+'FR-16(7)(v)-13 DIST Cust'!K473-'FR-16(7)(v)-14 TOTAL CLASS'!K473","v":0},{"$f":"'FR-16(7)(v)-3 PROD Demand'!L473+'FR-16(7)(v)-4 PROD Energy'!L473+'FR-16(7)(v)-5 PROD Cust'!L473+'FR-16(7)(v)-7 TRANS Demand'!L473+'FR-16(7)(v)-8 TRANS Energy'!L473+'FR-16(7)(v)-9 TRANS Cust'!L473+'FR-16(7)(v)-11 DIST Demand'!L473+'FR-16(7)(v)-12 DIST Energy'!L473+'FR-16(7)(v)-13 DIST Cust'!L473-'FR-16(7)(v)-14 TOTAL CLASS'!L473","v":0},{"$f":"'FR-16(7)(v)-3 PROD Demand'!M473+'FR-16(7)(v)-4 PROD Energy'!M473+'FR-16(7)(v)-5 PROD Cust'!M473+'FR-16(7)(v)-7 TRANS Demand'!M473+'FR-16(7)(v)-8 TRANS Energy'!M473+'FR-16(7)(v)-9 TRANS Cust'!M473+'FR-16(7)(v)-11 DIST Demand'!M473+'FR-16(7)(v)-12 DIST Energy'!M473+'FR-16(7)(v)-13 DIST Cust'!M473-'FR-16(7)(v)-14 TOTAL CLASS'!M473","v":0},{"$f":"'FR-16(7)(v)-3 PROD Demand'!N473+'FR-16(7)(v)-4 PROD Energy'!N473+'FR-16(7)(v)-5 PROD Cust'!N473+'FR-16(7)(v)-7 TRANS Demand'!N473+'FR-16(7)(v)-8 TRANS Energy'!N473+'FR-16(7)(v)-9 TRANS Cust'!N473+'FR-16(7)(v)-11 DIST Demand'!N473+'FR-16(7)(v)-12 DIST Energy'!N473+'FR-16(7)(v)-13 DIST Cust'!N473-'FR-16(7)(v)-14 TOTAL CLASS'!N473","v":0},{"$f":"'FR-16(7)(v)-3 PROD Demand'!O473+'FR-16(7)(v)-4 PROD Energy'!O473+'FR-16(7)(v)-5 PROD Cust'!O473+'FR-16(7)(v)-7 TRANS Demand'!O473+'FR-16(7)(v)-8 TRANS Energy'!O473+'FR-16(7)(v)-9 TRANS Cust'!O473+'FR-16(7)(v)-11 DIST Demand'!O473+'FR-16(7)(v)-12 DIST Energy'!O473+'FR-16(7)(v)-13 DIST Cust'!O473-'FR-16(7)(v)-14 TOTAL CLASS'!O473","v":0},{"$f":"'FR-16(7)(v)-3 PROD Demand'!P473+'FR-16(7)(v)-4 PROD Energy'!P473+'FR-16(7)(v)-5 PROD Cust'!P473+'FR-16(7)(v)-7 TRANS Demand'!P473+'FR-16(7)(v)-8 TRANS Energy'!P473+'FR-16(7)(v)-9 TRANS Cust'!P473+'FR-16(7)(v)-11 DIST Demand'!P473+'FR-16(7)(v)-12 DIST Energy'!P473+'FR-16(7)(v)-13 DIST Cust'!P473-'FR-16(7)(v)-14 TOTAL CLASS'!P473","v":0},{"$f":"'FR-16(7)(v)-3 PROD Demand'!Q473+'FR-16(7)(v)-4 PROD Energy'!Q473+'FR-16(7)(v)-5 PROD Cust'!Q473+'FR-16(7)(v)-7 TRANS Demand'!Q473+'FR-16(7)(v)-8 TRANS Energy'!Q473+'FR-16(7)(v)-9 TRANS Cust'!Q473+'FR-16(7)(v)-11 DIST Demand'!Q473+'FR-16(7)(v)-12 DIST Energy'!Q473+'FR-16(7)(v)-13 DIST Cust'!Q473-'FR-16(7)(v)-14 TOTAL CLASS'!Q473","v":0},{"$f":"SUM(G473:Q473)","v":0},{"$f":"F473-R473","v":0}]
[30,null,{"$f":"'FR-16(7)(v)-1 Functional'!C474","v":"POLES, TOWERS & FIXTURES"},"A300",null,{"$f":"'FR-16(7)(v)-3 PROD Demand'!F474+'FR-16(7)(v)-4 PROD Energy'!F474+'FR-16(7)(v)-5 PROD Cust'!F474+'FR-16(7)(v)-7 TRANS Demand'!F474+'FR-16(7)(v)-8 TRANS Energy'!F474+'FR-16(7)(v)-9 TRANS Cust'!F474+'FR-16(7)(v)-11 DIST Demand'!F474+'FR-16(7)(v)-12 DIST Energy'!F474+'FR-16(7)(v)-13 DIST Cust'!F474-'FR-16(7)(v)-14 TOTAL CLASS'!F474","v":0},{"$f":"'FR-16(7)(v)-3 PROD Demand'!G474+'FR-16(7)(v)-4 PROD Energy'!G474+'FR-16(7)(v)-5 PROD Cust'!G474+'FR-16(7)(v)-7 TRANS Demand'!G474+'FR-16(7)(v)-8 TRANS Energy'!G474+'FR-16(7)(v)-9 TRANS Cust'!G474+'FR-16(7)(v)-11 DIST Demand'!G474+'FR-16(7)(v)-12 DIST Energy'!G474+'FR-16(7)(v)-13 DIST Cust'!G474-'FR-16(7)(v)-14 TOTAL CLASS'!G474","v":0},{"$f":"'FR-16(7)(v)-3 PROD Demand'!H474+'FR-16(7)(v)-4 PROD Energy'!H474+'FR-16(7)(v)-5 PROD Cust'!H474+'FR-16(7)(v)-7 TRANS Demand'!H474+'FR-16(7)(v)-8 TRANS Energy'!H474+'FR-16(7)(v)-9 TRANS Cust'!H474+'FR-16(7)(v)-11 DIST Demand'!H474+'FR-16(7)(v)-12 DIST Energy'!H474+'FR-16(7)(v)-13 DIST Cust'!H474-'FR-16(7)(v)-14 TOTAL CLASS'!H474","v":0},{"$f":"'FR-16(7)(v)-3 PROD Demand'!I474+'FR-16(7)(v)-4 PROD Energy'!I474+'FR-16(7)(v)-5 PROD Cust'!I474+'FR-16(7)(v)-7 TRANS Demand'!I474+'FR-16(7)(v)-8 TRANS Energy'!I474+'FR-16(7)(v)-9 TRANS Cust'!I474+'FR-16(7)(v)-11 DIST Demand'!I474+'FR-16(7)(v)-12 DIST Energy'!I474+'FR-16(7)(v)-13 DIST Cust'!I474-'FR-16(7)(v)-14 TOTAL CLASS'!I474","v":0},{"$f":"'FR-16(7)(v)-3 PROD Demand'!J474+'FR-16(7)(v)-4 PROD Energy'!J474+'FR-16(7)(v)-5 PROD Cust'!J474+'FR-16(7)(v)-7 TRANS Demand'!J474+'FR-16(7)(v)-8 TRANS Energy'!J474+'FR-16(7)(v)-9 TRANS Cust'!J474+'FR-16(7)(v)-11 DIST Demand'!J474+'FR-16(7)(v)-12 DIST Energy'!J474+'FR-16(7)(v)-13 DIST Cust'!J474-'FR-16(7)(v)-14 TOTAL CLASS'!J474","v":0},{"$f":"'FR-16(7)(v)-3 PROD Demand'!K474+'FR-16(7)(v)-4 PROD Energy'!K474+'FR-16(7)(v)-5 PROD Cust'!K474+'FR-16(7)(v)-7 TRANS Demand'!K474+'FR-16(7)(v)-8 TRANS Energy'!K474+'FR-16(7)(v)-9 TRANS Cust'!K474+'FR-16(7)(v)-11 DIST Demand'!K474+'FR-16(7)(v)-12 DIST Energy'!K474+'FR-16(7)(v)-13 DIST Cust'!K474-'FR-16(7)(v)-14 TOTAL CLASS'!K474","v":0},{"$f":"'FR-16(7)(v)-3 PROD Demand'!L474+'FR-16(7)(v)-4 PROD Energy'!L474+'FR-16(7)(v)-5 PROD Cust'!L474+'FR-16(7)(v)-7 TRANS Demand'!L474+'FR-16(7)(v)-8 TRANS Energy'!L474+'FR-16(7)(v)-9 TRANS Cust'!L474+'FR-16(7)(v)-11 DIST Demand'!L474+'FR-16(7)(v)-12 DIST Energy'!L474+'FR-16(7)(v)-13 DIST Cust'!L474-'FR-16(7)(v)-14 TOTAL CLASS'!L474","v":0},{"$f":"'FR-16(7)(v)-3 PROD Demand'!M474+'FR-16(7)(v)-4 PROD Energy'!M474+'FR-16(7)(v)-5 PROD Cust'!M474+'FR-16(7)(v)-7 TRANS Demand'!M474+'FR-16(7)(v)-8 TRANS Energy'!M474+'FR-16(7)(v)-9 TRANS Cust'!M474+'FR-16(7)(v)-11 DIST Demand'!M474+'FR-16(7)(v)-12 DIST Energy'!M474+'FR-16(7)(v)-13 DIST Cust'!M474-'FR-16(7)(v)-14 TOTAL CLASS'!M474","v":0},{"$f":"'FR-16(7)(v)-3 PROD Demand'!N474+'FR-16(7)(v)-4 PROD Energy'!N474+'FR-16(7)(v)-5 PROD Cust'!N474+'FR-16(7)(v)-7 TRANS Demand'!N474+'FR-16(7)(v)-8 TRANS Energy'!N474+'FR-16(7)(v)-9 TRANS Cust'!N474+'FR-16(7)(v)-11 DIST Demand'!N474+'FR-16(7)(v)-12 DIST Energy'!N474+'FR-16(7)(v)-13 DIST Cust'!N474-'FR-16(7)(v)-14 TOTAL CLASS'!N474","v":0},{"$f":"'FR-16(7)(v)-3 PROD Demand'!O474+'FR-16(7)(v)-4 PROD Energy'!O474+'FR-16(7)(v)-5 PROD Cust'!O474+'FR-16(7)(v)-7 TRANS Demand'!O474+'FR-16(7)(v)-8 TRANS Energy'!O474+'FR-16(7)(v)-9 TRANS Cust'!O474+'FR-16(7)(v)-11 DIST Demand'!O474+'FR-16(7)(v)-12 DIST Energy'!O474+'FR-16(7)(v)-13 DIST Cust'!O474-'FR-16(7)(v)-14 TOTAL CLASS'!O474","v":0},{"$f":"'FR-16(7)(v)-3 PROD Demand'!P474+'FR-16(7)(v)-4 PROD Energy'!P474+'FR-16(7)(v)-5 PROD Cust'!P474+'FR-16(7)(v)-7 TRANS Demand'!P474+'FR-16(7)(v)-8 TRANS Energy'!P474+'FR-16(7)(v)-9 TRANS Cust'!P474+'FR-16(7)(v)-11 DIST Demand'!P474+'FR-16(7)(v)-12 DIST Energy'!P474+'FR-16(7)(v)-13 DIST Cust'!P474-'FR-16(7)(v)-14 TOTAL CLASS'!P474","v":0},{"$f":"'FR-16(7)(v)-3 PROD Demand'!Q474+'FR-16(7)(v)-4 PROD Energy'!Q474+'FR-16(7)(v)-5 PROD Cust'!Q474+'FR-16(7)(v)-7 TRANS Demand'!Q474+'FR-16(7)(v)-8 TRANS Energy'!Q474+'FR-16(7)(v)-9 TRANS Cust'!Q474+'FR-16(7)(v)-11 DIST Demand'!Q474+'FR-16(7)(v)-12 DIST Energy'!Q474+'FR-16(7)(v)-13 DIST Cust'!Q474-'FR-16(7)(v)-14 TOTAL CLASS'!Q474","v":0},0,0]
[31,null,{"$f":"'FR-16(7)(v)-1 Functional'!C475","v":"OVERHEAD LINES - PRIMARY / DEMAND"},"A300",null,{"$f":"'FR-16(7)(v)-3 PROD Demand'!F475+'FR-16(7)(v)-4 PROD Energy'!F475+'FR-16(7)(v)-5 PROD Cust'!F475+'FR-16(7)(v)-7 TRANS Demand'!F475+'FR-16(7)(v)-8 TRANS Energy'!F475+'FR-16(7)(v)-9 TRANS Cust'!F475+'FR-16(7)(v)-11 DIST Demand'!F475+'FR-16(7)(v)-12 DIST Energy'!F475+'FR-16(7)(v)-13 DIST Cust'!F475-'FR-16(7)(v)-14 TOTAL CLASS'!F475","v":0},{"$f":"'FR-16(7)(v)-3 PROD Demand'!G475+'FR-16(7)(v)-4 PROD Energy'!G475+'FR-16(7)(v)-5 PROD Cust'!G475+'FR-16(7)(v)-7 TRANS Demand'!G475+'FR-16(7)(v)-8 TRANS Energy'!G475+'FR-16(7)(v)-9 TRANS Cust'!G475+'FR-16(7)(v)-11 DIST Demand'!G475+'FR-16(7)(v)-12 DIST Energy'!G475+'FR-16(7)(v)-13 DIST Cust'!G475-'FR-16(7)(v)-14 TOTAL CLASS'!G475","v":0},{"$f":"'FR-16(7)(v)-3 PROD Demand'!H475+'FR-16(7)(v)-4 PROD Energy'!H475+'FR-16(7)(v)-5 PROD Cust'!H475+'FR-16(7)(v)-7 TRANS Demand'!H475+'FR-16(7)(v)-8 TRANS Energy'!H475+'FR-16(7)(v)-9 TRANS Cust'!H475+'FR-16(7)(v)-11 DIST Demand'!H475+'FR-16(7)(v)-12 DIST Energy'!H475+'FR-16(7)(v)-13 DIST Cust'!H475-'FR-16(7)(v)-14 TOTAL CLASS'!H475","v":0},{"$f":"'FR-16(7)(v)-3 PROD Demand'!I475+'FR-16(7)(v)-4 PROD Energy'!I475+'FR-16(7)(v)-5 PROD Cust'!I475+'FR-16(7)(v)-7 TRANS Demand'!I475+'FR-16(7)(v)-8 TRANS Energy'!I475+'FR-16(7)(v)-9 TRANS Cust'!I475+'FR-16(7)(v)-11 DIST Demand'!I475+'FR-16(7)(v)-12 DIST Energy'!I475+'FR-16(7)(v)-13 DIST Cust'!I475-'FR-16(7)(v)-14 TOTAL CLASS'!I475","v":0},{"$f":"'FR-16(7)(v)-3 PROD Demand'!J475+'FR-16(7)(v)-4 PROD Energy'!J475+'FR-16(7)(v)-5 PROD Cust'!J475+'FR-16(7)(v)-7 TRANS Demand'!J475+'FR-16(7)(v)-8 TRANS Energy'!J475+'FR-16(7)(v)-9 TRANS Cust'!J475+'FR-16(7)(v)-11 DIST Demand'!J475+'FR-16(7)(v)-12 DIST Energy'!J475+'FR-16(7)(v)-13 DIST Cust'!J475-'FR-16(7)(v)-14 TOTAL CLASS'!J475","v":0},{"$f":"'FR-16(7)(v)-3 PROD Demand'!K475+'FR-16(7)(v)-4 PROD Energy'!K475+'FR-16(7)(v)-5 PROD Cust'!K475+'FR-16(7)(v)-7 TRANS Demand'!K475+'FR-16(7)(v)-8 TRANS Energy'!K475+'FR-16(7)(v)-9 TRANS Cust'!K475+'FR-16(7)(v)-11 DIST Demand'!K475+'FR-16(7)(v)-12 DIST Energy'!K475+'FR-16(7)(v)-13 DIST Cust'!K475-'FR-16(7)(v)-14 TOTAL CLASS'!K475","v":0},{"$f":"'FR-16(7)(v)-3 PROD Demand'!L475+'FR-16(7)(v)-4 PROD Energy'!L475+'FR-16(7)(v)-5 PROD Cust'!L475+'FR-16(7)(v)-7 TRANS Demand'!L475+'FR-16(7)(v)-8 TRANS Energy'!L475+'FR-16(7)(v)-9 TRANS Cust'!L475+'FR-16(7)(v)-11 DIST Demand'!L475+'FR-16(7)(v)-12 DIST Energy'!L475+'FR-16(7)(v)-13 DIST Cust'!L475-'FR-16(7)(v)-14 TOTAL CLASS'!L475","v":0},{"$f":"'FR-16(7)(v)-3 PROD Demand'!M475+'FR-16(7)(v)-4 PROD Energy'!M475+'FR-16(7)(v)-5 PROD Cust'!M475+'FR-16(7)(v)-7 TRANS Demand'!M475+'FR-16(7)(v)-8 TRANS Energy'!M475+'FR-16(7)(v)-9 TRANS Cust'!M475+'FR-16(7)(v)-11 DIST Demand'!M475+'FR-16(7)(v)-12 DIST Energy'!M475+'FR-16(7)(v)-13 DIST Cust'!M475-'FR-16(7)(v)-14 TOTAL CLASS'!M475","v":0},{"$f":"'FR-16(7)(v)-3 PROD Demand'!N475+'FR-16(7)(v)-4 PROD Energy'!N475+'FR-16(7)(v)-5 PROD Cust'!N475+'FR-16(7)(v)-7 TRANS Demand'!N475+'FR-16(7)(v)-8 TRANS Energy'!N475+'FR-16(7)(v)-9 TRANS Cust'!N475+'FR-16(7)(v)-11 DIST Demand'!N475+'FR-16(7)(v)-12 DIST Energy'!N475+'FR-16(7)(v)-13 DIST Cust'!N475-'FR-16(7)(v)-14 TOTAL CLASS'!N475","v":0},{"$f":"'FR-16(7)(v)-3 PROD Demand'!O475+'FR-16(7)(v)-4 PROD Energy'!O475+'FR-16(7)(v)-5 PROD Cust'!O475+'FR-16(7)(v)-7 TRANS Demand'!O475+'FR-16(7)(v)-8 TRANS Energy'!O475+'FR-16(7)(v)-9 TRANS Cust'!O475+'FR-16(7)(v)-11 DIST Demand'!O475+'FR-16(7)(v)-12 DIST Energy'!O475+'FR-16(7)(v)-13 DIST Cust'!O475-'FR-16(7)(v)-14 TOTAL CLASS'!O475","v":0},{"$f":"'FR-16(7)(v)-3 PROD Demand'!P475+'FR-16(7)(v)-4 PROD Energy'!P475+'FR-16(7)(v)-5 PROD Cust'!P475+'FR-16(7)(v)-7 TRANS Demand'!P475+'FR-16(7)(v)-8 TRANS Energy'!P475+'FR-16(7)(v)-9 TRANS Cust'!P475+'FR-16(7)(v)-11 DIST Demand'!P475+'FR-16(7)(v)-12 DIST Energy'!P475+'FR-16(7)(v)-13 DIST Cust'!P475-'FR-16(7)(v)-14 TOTAL CLASS'!P475","v":0},{"$f":"'FR-16(7)(v)-3 PROD Demand'!Q475+'FR-16(7)(v)-4 PROD Energy'!Q475+'FR-16(7)(v)-5 PROD Cust'!Q475+'FR-16(7)(v)-7 TRANS Demand'!Q475+'FR-16(7)(v)-8 TRANS Energy'!Q475+'FR-16(7)(v)-9 TRANS Cust'!Q475+'FR-16(7)(v)-11 DIST Demand'!Q475+'FR-16(7)(v)-12 DIST Energy'!Q475+'FR-16(7)(v)-13 DIST Cust'!Q475-'FR-16(7)(v)-14 TOTAL CLASS'!Q475","v":0},0,0]
[32,null,{"$f":"'FR-16(7)(v)-1 Functional'!C476","v":"OVERHEAD LINES - PRIMARY / CUSTOMER"},"A300",null,{"$f":"'FR-16(7)(v)-3 PROD Demand'!F476+'FR-16(7)(v)-4 PROD Energy'!F476+'FR-16(7)(v)-5 PROD Cust'!F476+'FR-16(7)(v)-7 TRANS Demand'!F476+'FR-16(7)(v)-8 TRANS Energy'!F476+'FR-16(7)(v)-9 TRANS Cust'!F476+'FR-16(7)(v)-11 DIST Demand'!F476+'FR-16(7)(v)-12 DIST Energy'!F476+'FR-16(7)(v)-13 DIST Cust'!F476-'FR-16(7)(v)-14 TOTAL CLASS'!F476","v":0},{"$f":"'FR-16(7)(v)-3 PROD Demand'!G476+'FR-16(7)(v)-4 PROD Energy'!G476+'FR-16(7)(v)-5 PROD Cust'!G476+'FR-16(7)(v)-7 TRANS Demand'!G476+'FR-16(7)(v)-8 TRANS Energy'!G476+'FR-16(7)(v)-9 TRANS Cust'!G476+'FR-16(7)(v)-11 DIST Demand'!G476+'FR-16(7)(v)-12 DIST Energy'!G476+'FR-16(7)(v)-13 DIST Cust'!G476-'FR-16(7)(v)-14 TOTAL CLASS'!G476","v":0},{"$f":"'FR-16(7)(v)-3 PROD Demand'!H476+'FR-16(7)(v)-4 PROD Energy'!H476+'FR-16(7)(v)-5 PROD Cust'!H476+'FR-16(7)(v)-7 TRANS Demand'!H476+'FR-16(7)(v)-8 TRANS Energy'!H476+'FR-16(7)(v)-9 TRANS Cust'!H476+'FR-16(7)(v)-11 DIST Demand'!H476+'FR-16(7)(v)-12 DIST Energy'!H476+'FR-16(7)(v)-13 DIST Cust'!H476-'FR-16(7)(v)-14 TOTAL CLASS'!H476","v":0},{"$f":"'FR-16(7)(v)-3 PROD Demand'!I476+'FR-16(7)(v)-4 PROD Energy'!I476+'FR-16(7)(v)-5 PROD Cust'!I476+'FR-16(7)(v)-7 TRANS Demand'!I476+'FR-16(7)(v)-8 TRANS Energy'!I476+'FR-16(7)(v)-9 TRANS Cust'!I476+'FR-16(7)(v)-11 DIST Demand'!I476+'FR-16(7)(v)-12 DIST Energy'!I476+'FR-16(7)(v)-13 DIST Cust'!I476-'FR-16(7)(v)-14 TOTAL CLASS'!I476","v":0},{"$f":"'FR-16(7)(v)-3 PROD Demand'!J476+'FR-16(7)(v)-4 PROD Energy'!J476+'FR-16(7)(v)-5 PROD Cust'!J476+'FR-16(7)(v)-7 TRANS Demand'!J476+'FR-16(7)(v)-8 TRANS Energy'!J476+'FR-16(7)(v)-9 TRANS Cust'!J476+'FR-16(7)(v)-11 DIST Demand'!J476+'FR-16(7)(v)-12 DIST Energy'!J476+'FR-16(7)(v)-13 DIST Cust'!J476-'FR-16(7)(v)-14 TOTAL CLASS'!J476","v":0},{"$f":"'FR-16(7)(v)-3 PROD Demand'!K476+'FR-16(7)(v)-4 PROD Energy'!K476+'FR-16(7)(v)-5 PROD Cust'!K476+'FR-16(7)(v)-7 TRANS Demand'!K476+'FR-16(7)(v)-8 TRANS Energy'!K476+'FR-16(7)(v)-9 TRANS Cust'!K476+'FR-16(7)(v)-11 DIST Demand'!K476+'FR-16(7)(v)-12 DIST Energy'!K476+'FR-16(7)(v)-13 DIST Cust'!K476-'FR-16(7)(v)-14 TOTAL CLASS'!K476","v":0},{"$f":"'FR-16(7)(v)-3 PROD Demand'!L476+'FR-16(7)(v)-4 PROD Energy'!L476+'FR-16(7)(v)-5 PROD Cust'!L476+'FR-16(7)(v)-7 TRANS Demand'!L476+'FR-16(7)(v)-8 TRANS Energy'!L476+'FR-16(7)(v)-9 TRANS Cust'!L476+'FR-16(7)(v)-11 DIST Demand'!L476+'FR-16(7)(v)-12 DIST Energy'!L476+'FR-16(7)(v)-13 DIST Cust'!L476-'FR-16(7)(v)-14 TOTAL CLASS'!L476","v":0},{"$f":"'FR-16(7)(v)-3 PROD Demand'!M476+'FR-16(7)(v)-4 PROD Energy'!M476+'FR-16(7)(v)-5 PROD Cust'!M476+'FR-16(7)(v)-7 TRANS Demand'!M476+'FR-16(7)(v)-8 TRANS Energy'!M476+'FR-16(7)(v)-9 TRANS Cust'!M476+'FR-16(7)(v)-11 DIST Demand'!M476+'FR-16(7)(v)-12 DIST Energy'!M476+'FR-16(7)(v)-13 DIST Cust'!M476-'FR-16(7)(v)-14 TOTAL CLASS'!M476","v":0},{"$f":"'FR-16(7)(v)-3 PROD Demand'!N476+'FR-16(7)(v)-4 PROD Energy'!N476+'FR-16(7)(v)-5 PROD Cust'!N476+'FR-16(7)(v)-7 TRANS Demand'!N476+'FR-16(7)(v)-8 TRANS Energy'!N476+'FR-16(7)(v)-9 TRANS Cust'!N476+'FR-16(7)(v)-11 DIST Demand'!N476+'FR-16(7)(v)-12 DIST Energy'!N476+'FR-16(7)(v)-13 DIST Cust'!N476-'FR-16(7)(v)-14 TOTAL CLASS'!N476","v":0},{"$f":"'FR-16(7)(v)-3 PROD Demand'!O476+'FR-16(7)(v)-4 PROD Energy'!O476+'FR-16(7)(v)-5 PROD Cust'!O476+'FR-16(7)(v)-7 TRANS Demand'!O476+'FR-16(7)(v)-8 TRANS Energy'!O476+'FR-16(7)(v)-9 TRANS Cust'!O476+'FR-16(7)(v)-11 DIST Demand'!O476+'FR-16(7)(v)-12 DIST Energy'!O476+'FR-16(7)(v)-13 DIST Cust'!O476-'FR-16(7)(v)-14 TOTAL CLASS'!O476","v":0},{"$f":"'FR-16(7)(v)-3 PROD Demand'!P476+'FR-16(7)(v)-4 PROD Energy'!P476+'FR-16(7)(v)-5 PROD Cust'!P476+'FR-16(7)(v)-7 TRANS Demand'!P476+'FR-16(7)(v)-8 TRANS Energy'!P476+'FR-16(7)(v)-9 TRANS Cust'!P476+'FR-16(7)(v)-11 DIST Demand'!P476+'FR-16(7)(v)-12 DIST Energy'!P476+'FR-16(7)(v)-13 DIST Cust'!P476-'FR-16(7)(v)-14 TOTAL CLASS'!P476","v":0},{"$f":"'FR-16(7)(v)-3 PROD Demand'!Q476+'FR-16(7)(v)-4 PROD Energy'!Q476+'FR-16(7)(v)-5 PROD Cust'!Q476+'FR-16(7)(v)-7 TRANS Demand'!Q476+'FR-16(7)(v)-8 TRANS Energy'!Q476+'FR-16(7)(v)-9 TRANS Cust'!Q476+'FR-16(7)(v)-11 DIST Demand'!Q476+'FR-16(7)(v)-12 DIST Energy'!Q476+'FR-16(7)(v)-13 DIST Cust'!Q476-'FR-16(7)(v)-14 TOTAL CLASS'!Q476","v":0},0,0]
[33,null,{"$f":"'FR-16(7)(v)-1 Functional'!C477","v":"OVERHEAD LINES - SECONDARY / DEMAND"},"A300",null,{"$f":"'FR-16(7)(v)-3 PROD Demand'!F477+'FR-16(7)(v)-4 PROD Energy'!F477+'FR-16(7)(v)-5 PROD Cust'!F477+'FR-16(7)(v)-7 TRANS Demand'!F477+'FR-16(7)(v)-8 TRANS Energy'!F477+'FR-16(7)(v)-9 TRANS Cust'!F477+'FR-16(7)(v)-11 DIST Demand'!F477+'FR-16(7)(v)-12 DIST Energy'!F477+'FR-16(7)(v)-13 DIST Cust'!F477-'FR-16(7)(v)-14 TOTAL CLASS'!F477","v":0},{"$f":"'FR-16(7)(v)-3 PROD Demand'!G477+'FR-16(7)(v)-4 PROD Energy'!G477+'FR-16(7)(v)-5 PROD Cust'!G477+'FR-16(7)(v)-7 TRANS Demand'!G477+'FR-16(7)(v)-8 TRANS Energy'!G477+'FR-16(7)(v)-9 TRANS Cust'!G477+'FR-16(7)(v)-11 DIST Demand'!G477+'FR-16(7)(v)-12 DIST Energy'!G477+'FR-16(7)(v)-13 DIST Cust'!G477-'FR-16(7)(v)-14 TOTAL CLASS'!G477","v":0},{"$f":"'FR-16(7)(v)-3 PROD Demand'!H477+'FR-16(7)(v)-4 PROD Energy'!H477+'FR-16(7)(v)-5 PROD Cust'!H477+'FR-16(7)(v)-7 TRANS Demand'!H477+'FR-16(7)(v)-8 TRANS Energy'!H477+'FR-16(7)(v)-9 TRANS Cust'!H477+'FR-16(7)(v)-11 DIST Demand'!H477+'FR-16(7)(v)-12 DIST Energy'!H477+'FR-16(7)(v)-13 DIST Cust'!H477-'FR-16(7)(v)-14 TOTAL CLASS'!H477","v":0},{"$f":"'FR-16(7)(v)-3 PROD Demand'!I477+'FR-16(7)(v)-4 PROD Energy'!I477+'FR-16(7)(v)-5 PROD Cust'!I477+'FR-16(7)(v)-7 TRANS Demand'!I477+'FR-16(7)(v)-8 TRANS Energy'!I477+'FR-16(7)(v)-9 TRANS Cust'!I477+'FR-16(7)(v)-11 DIST Demand'!I477+'FR-16(7)(v)-12 DIST Energy'!I477+'FR-16(7)(v)-13 DIST Cust'!I477-'FR-16(7)(v)-14 TOTAL CLASS'!I477","v":0},{"$f":"'FR-16(7)(v)-3 PROD Demand'!J477+'FR-16(7)(v)-4 PROD Energy'!J477+'FR-16(7)(v)-5 PROD Cust'!J477+'FR-16(7)(v)-7 TRANS Demand'!J477+'FR-16(7)(v)-8 TRANS Energy'!J477+'FR-16(7)(v)-9 TRANS Cust'!J477+'FR-16(7)(v)-11 DIST Demand'!J477+'FR-16(7)(v)-12 DIST Energy'!J477+'FR-16(7)(v)-13 DIST Cust'!J477-'FR-16(7)(v)-14 TOTAL CLASS'!J477","v":0},{"$f":"'FR-16(7)(v)-3 PROD Demand'!K477+'FR-16(7)(v)-4 PROD Energy'!K477+'FR-16(7)(v)-5 PROD Cust'!K477+'FR-16(7)(v)-7 TRANS Demand'!K477+'FR-16(7)(v)-8 TRANS Energy'!K477+'FR-16(7)(v)-9 TRANS Cust'!K477+'FR-16(7)(v)-11 DIST Demand'!K477+'FR-16(7)(v)-12 DIST Energy'!K477+'FR-16(7)(v)-13 DIST Cust'!K477-'FR-16(7)(v)-14 TOTAL CLASS'!K477","v":0},{"$f":"'FR-16(7)(v)-3 PROD Demand'!L477+'FR-16(7)(v)-4 PROD Energy'!L477+'FR-16(7)(v)-5 PROD Cust'!L477+'FR-16(7)(v)-7 TRANS Demand'!L477+'FR-16(7)(v)-8 TRANS Energy'!L477+'FR-16(7)(v)-9 TRANS Cust'!L477+'FR-16(7)(v)-11 DIST Demand'!L477+'FR-16(7)(v)-12 DIST Energy'!L477+'FR-16(7)(v)-13 DIST Cust'!L477-'FR-16(7)(v)-14 TOTAL CLASS'!L477","v":0},{"$f":"'FR-16(7)(v)-3 PROD Demand'!M477+'FR-16(7)(v)-4 PROD Energy'!M477+'FR-16(7)(v)-5 PROD Cust'!M477+'FR-16(7)(v)-7 TRANS Demand'!M477+'FR-16(7)(v)-8 TRANS Energy'!M477+'FR-16(7)(v)-9 TRANS Cust'!M477+'FR-16(7)(v)-11 DIST Demand'!M477+'FR-16(7)(v)-12 DIST Energy'!M477+'FR-16(7)(v)-13 DIST Cust'!M477-'FR-16(7)(v)-14 TOTAL CLASS'!M477","v":0},{"$f":"'FR-16(7)(v)-3 PROD Demand'!N477+'FR-16(7)(v)-4 PROD Energy'!N477+'FR-16(7)(v)-5 PROD Cust'!N477+'FR-16(7)(v)-7 TRANS Demand'!N477+'FR-16(7)(v)-8 TRANS Energy'!N477+'FR-16(7)(v)-9 TRANS Cust'!N477+'FR-16(7)(v)-11 DIST Demand'!N477+'FR-16(7)(v)-12 DIST Energy'!N477+'FR-16(7)(v)-13 DIST Cust'!N477-'FR-16(7)(v)-14 TOTAL CLASS'!N477","v":0},{"$f":"'FR-16(7)(v)-3 PROD Demand'!O477+'FR-16(7)(v)-4 PROD Energy'!O477+'FR-16(7)(v)-5 PROD Cust'!O477+'FR-16(7)(v)-7 TRANS Demand'!O477+'FR-16(7)(v)-8 TRANS Energy'!O477+'FR-16(7)(v)-9 TRANS Cust'!O477+'FR-16(7)(v)-11 DIST Demand'!O477+'FR-16(7)(v)-12 DIST Energy'!O477+'FR-16(7)(v)-13 DIST Cust'!O477-'FR-16(7)(v)-14 TOTAL CLASS'!O477","v":0},{"$f":"'FR-16(7)(v)-3 PROD Demand'!P477+'FR-16(7)(v)-4 PROD Energy'!P477+'FR-16(7)(v)-5 PROD Cust'!P477+'FR-16(7)(v)-7 TRANS Demand'!P477+'FR-16(7)(v)-8 TRANS Energy'!P477+'FR-16(7)(v)-9 TRANS Cust'!P477+'FR-16(7)(v)-11 DIST Demand'!P477+'FR-16(7)(v)-12 DIST Energy'!P477+'FR-16(7)(v)-13 DIST Cust'!P477-'FR-16(7)(v)-14 TOTAL CLASS'!P477","v":0},{"$f":"'FR-16(7)(v)-3 PROD Demand'!Q477+'FR-16(7)(v)-4 PROD Energy'!Q477+'FR-16(7)(v)-5 PROD Cust'!Q477+'FR-16(7)(v)-7 TRANS Demand'!Q477+'FR-16(7)(v)-8 TRANS Energy'!Q477+'FR-16(7)(v)-9 TRANS Cust'!Q477+'FR-16(7)(v)-11 DIST Demand'!Q477+'FR-16(7)(v)-12 DIST Energy'!Q477+'FR-16(7)(v)-13 DIST Cust'!Q477-'FR-16(7)(v)-14 TOTAL CLASS'!Q477","v":0},0,0]
[34,null,{"$f":"'FR-16(7)(v)-1 Functional'!C478","v":"OVERHEAD LINES - SECONDARY / CUSTOMER"},"A300",null,{"$f":"'FR-16(7)(v)-3 PROD Demand'!F478+'FR-16(7)(v)-4 PROD Energy'!F478+'FR-16(7)(v)-5 PROD Cust'!F478+'FR-16(7)(v)-7 TRANS Demand'!F478+'FR-16(7)(v)-8 TRANS Energy'!F478+'FR-16(7)(v)-9 TRANS Cust'!F478+'FR-16(7)(v)-11 DIST Demand'!F478+'FR-16(7)(v)-12 DIST Energy'!F478+'FR-16(7)(v)-13 DIST Cust'!F478-'FR-16(7)(v)-14 TOTAL CLASS'!F478","v":0},{"$f":"'FR-16(7)(v)-3 PROD Demand'!G478+'FR-16(7)(v)-4 PROD Energy'!G478+'FR-16(7)(v)-5 PROD Cust'!G478+'FR-16(7)(v)-7 TRANS Demand'!G478+'FR-16(7)(v)-8 TRANS Energy'!G478+'FR-16(7)(v)-9 TRANS Cust'!G478+'FR-16(7)(v)-11 DIST Demand'!G478+'FR-16(7)(v)-12 DIST Energy'!G478+'FR-16(7)(v)-13 DIST Cust'!G478-'FR-16(7)(v)-14 TOTAL CLASS'!G478","v":0},{"$f":"'FR-16(7)(v)-3 PROD Demand'!H478+'FR-16(7)(v)-4 PROD Energy'!H478+'FR-16(7)(v)-5 PROD Cust'!H478+'FR-16(7)(v)-7 TRANS Demand'!H478+'FR-16(7)(v)-8 TRANS Energy'!H478+'FR-16(7)(v)-9 TRANS Cust'!H478+'FR-16(7)(v)-11 DIST Demand'!H478+'FR-16(7)(v)-12 DIST Energy'!H478+'FR-16(7)(v)-13 DIST Cust'!H478-'FR-16(7)(v)-14 TOTAL CLASS'!H478","v":0},{"$f":"'FR-16(7)(v)-3 PROD Demand'!I478+'FR-16(7)(v)-4 PROD Energy'!I478+'FR-16(7)(v)-5 PROD Cust'!I478+'FR-16(7)(v)-7 TRANS Demand'!I478+'FR-16(7)(v)-8 TRANS Energy'!I478+'FR-16(7)(v)-9 TRANS Cust'!I478+'FR-16(7)(v)-11 DIST Demand'!I478+'FR-16(7)(v)-12 DIST Energy'!I478+'FR-16(7)(v)-13 DIST Cust'!I478-'FR-16(7)(v)-14 TOTAL CLASS'!I478","v":0},{"$f":"'FR-16(7)(v)-3 PROD Demand'!J478+'FR-16(7)(v)-4 PROD Energy'!J478+'FR-16(7)(v)-5 PROD Cust'!J478+'FR-16(7)(v)-7 TRANS Demand'!J478+'FR-16(7)(v)-8 TRANS Energy'!J478+'FR-16(7)(v)-9 TRANS Cust'!J478+'FR-16(7)(v)-11 DIST Demand'!J478+'FR-16(7)(v)-12 DIST Energy'!J478+'FR-16(7)(v)-13 DIST Cust'!J478-'FR-16(7)(v)-14 TOTAL CLASS'!J478","v":0},{"$f":"'FR-16(7)(v)-3 PROD Demand'!K478+'FR-16(7)(v)-4 PROD Energy'!K478+'FR-16(7)(v)-5 PROD Cust'!K478+'FR-16(7)(v)-7 TRANS Demand'!K478+'FR-16(7)(v)-8 TRANS Energy'!K478+'FR-16(7)(v)-9 TRANS Cust'!K478+'FR-16(7)(v)-11 DIST Demand'!K478+'FR-16(7)(v)-12 DIST Energy'!K478+'FR-16(7)(v)-13 DIST Cust'!K478-'FR-16(7)(v)-14 TOTAL CLASS'!K478","v":0},{"$f":"'FR-16(7)(v)-3 PROD Demand'!L478+'FR-16(7)(v)-4 PROD Energy'!L478+'FR-16(7)(v)-5 PROD Cust'!L478+'FR-16(7)(v)-7 TRANS Demand'!L478+'FR-16(7)(v)-8 TRANS Energy'!L478+'FR-16(7)(v)-9 TRANS Cust'!L478+'FR-16(7)(v)-11 DIST Demand'!L478+'FR-16(7)(v)-12 DIST Energy'!L478+'FR-16(7)(v)-13 DIST Cust'!L478-'FR-16(7)(v)-14 TOTAL CLASS'!L478","v":0},{"$f":"'FR-16(7)(v)-3 PROD Demand'!M478+'FR-16(7)(v)-4 PROD Energy'!M478+'FR-16(7)(v)-5 PROD Cust'!M478+'FR-16(7)(v)-7 TRANS Demand'!M478+'FR-16(7)(v)-8 TRANS Energy'!M478+'FR-16(7)(v)-9 TRANS Cust'!M478+'FR-16(7)(v)-11 DIST Demand'!M478+'FR-16(7)(v)-12 DIST Energy'!M478+'FR-16(7)(v)-13 DIST Cust'!M478-'FR-16(7)(v)-14 TOTAL CLASS'!M478","v":0},{"$f":"'FR-16(7)(v)-3 PROD Demand'!N478+'FR-16(7)(v)-4 PROD Energy'!N478+'FR-16(7)(v)-5 PROD Cust'!N478+'FR-16(7)(v)-7 TRANS Demand'!N478+'FR-16(7)(v)-8 TRANS Energy'!N478+'FR-16(7)(v)-9 TRANS Cust'!N478+'FR-16(7)(v)-11 DIST Demand'!N478+'FR-16(7)(v)-12 DIST Energy'!N478+'FR-16(7)(v)-13 DIST Cust'!N478-'FR-16(7)(v)-14 TOTAL CLASS'!N478","v":0},{"$f":"'FR-16(7)(v)-3 PROD Demand'!O478+'FR-16(7)(v)-4 PROD Energy'!O478+'FR-16(7)(v)-5 PROD Cust'!O478+'FR-16(7)(v)-7 TRANS Demand'!O478+'FR-16(7)(v)-8 TRANS Energy'!O478+'FR-16(7)(v)-9 TRANS Cust'!O478+'FR-16(7)(v)-11 DIST Demand'!O478+'FR-16(7)(v)-12 DIST Energy'!O478+'FR-16(7)(v)-13 DIST Cust'!O478-'FR-16(7)(v)-14 TOTAL CLASS'!O478","v":0},{"$f":"'FR-16(7)(v)-3 PROD Demand'!P478+'FR-16(7)(v)-4 PROD Energy'!P478+'FR-16(7)(v)-5 PROD Cust'!P478+'FR-16(7)(v)-7 TRANS Demand'!P478+'FR-16(7)(v)-8 TRANS Energy'!P478+'FR-16(7)(v)-9 TRANS Cust'!P478+'FR-16(7)(v)-11 DIST Demand'!P478+'FR-16(7)(v)-12 DIST Energy'!P478+'FR-16(7)(v)-13 DIST Cust'!P478-'FR-16(7)(v)-14 TOTAL CLASS'!P478","v":0},{"$f":"'FR-16(7)(v)-3 PROD Demand'!Q478+'FR-16(7)(v)-4 PROD Energy'!Q478+'FR-16(7)(v)-5 PROD Cust'!Q478+'FR-16(7)(v)-7 TRANS Demand'!Q478+'FR-16(7)(v)-8 TRANS Energy'!Q478+'FR-16(7)(v)-9 TRANS Cust'!Q478+'FR-16(7)(v)-11 DIST Demand'!Q478+'FR-16(7)(v)-12 DIST Energy'!Q478+'FR-16(7)(v)-13 DIST Cust'!Q478-'FR-16(7)(v)-14 TOTAL CLASS'!Q478","v":0},0,0]
[35,null,{"$f":"'FR-16(7)(v)-1 Functional'!C479","v":"UNDERGROUND LINES - PRIMARY / DEMAND"},"A300",null,{"$f":"'FR-16(7)(v)-3 PROD Demand'!F479+'FR-16(7)(v)-4 PROD Energy'!F479+'FR-16(7)(v)-5 PROD Cust'!F479+'FR-16(7)(v)-7 TRANS Demand'!F479+'FR-16(7)(v)-8 TRANS Energy'!F479+'FR-16(7)(v)-9 TRANS Cust'!F479+'FR-16(7)(v)-11 DIST Demand'!F479+'FR-16(7)(v)-12 DIST Energy'!F479+'FR-16(7)(v)-13 DIST Cust'!F479-'FR-16(7)(v)-14 TOTAL CLASS'!F479","v":0},{"$f":"'FR-16(7)(v)-3 PROD Demand'!G479+'FR-16(7)(v)-4 PROD Energy'!G479+'FR-16(7)(v)-5 PROD Cust'!G479+'FR-16(7)(v)-7 TRANS Demand'!G479+'FR-16(7)(v)-8 TRANS Energy'!G479+'FR-16(7)(v)-9 TRANS Cust'!G479+'FR-16(7)(v)-11 DIST Demand'!G479+'FR-16(7)(v)-12 DIST Energy'!G479+'FR-16(7)(v)-13 DIST Cust'!G479-'FR-16(7)(v)-14 TOTAL CLASS'!G479","v":0},{"$f":"'FR-16(7)(v)-3 PROD Demand'!H479+'FR-16(7)(v)-4 PROD Energy'!H479+'FR-16(7)(v)-5 PROD Cust'!H479+'FR-16(7)(v)-7 TRANS Demand'!H479+'FR-16(7)(v)-8 TRANS Energy'!H479+'FR-16(7)(v)-9 TRANS Cust'!H479+'FR-16(7)(v)-11 DIST Demand'!H479+'FR-16(7)(v)-12 DIST Energy'!H479+'FR-16(7)(v)-13 DIST Cust'!H479-'FR-16(7)(v)-14 TOTAL CLASS'!H479","v":0},{"$f":"'FR-16(7)(v)-3 PROD Demand'!I479+'FR-16(7)(v)-4 PROD Energy'!I479+'FR-16(7)(v)-5 PROD Cust'!I479+'FR-16(7)(v)-7 TRANS Demand'!I479+'FR-16(7)(v)-8 TRANS Energy'!I479+'FR-16(7)(v)-9 TRANS Cust'!I479+'FR-16(7)(v)-11 DIST Demand'!I479+'FR-16(7)(v)-12 DIST Energy'!I479+'FR-16(7)(v)-13 DIST Cust'!I479-'FR-16(7)(v)-14 TOTAL CLASS'!I479","v":0},{"$f":"'FR-16(7)(v)-3 PROD Demand'!J479+'FR-16(7)(v)-4 PROD Energy'!J479+'FR-16(7)(v)-5 PROD Cust'!J479+'FR-16(7)(v)-7 TRANS Demand'!J479+'FR-16(7)(v)-8 TRANS Energy'!J479+'FR-16(7)(v)-9 TRANS Cust'!J479+'FR-16(7)(v)-11 DIST Demand'!J479+'FR-16(7)(v)-12 DIST Energy'!J479+'FR-16(7)(v)-13 DIST Cust'!J479-'FR-16(7)(v)-14 TOTAL CLASS'!J479","v":0},{"$f":"'FR-16(7)(v)-3 PROD Demand'!K479+'FR-16(7)(v)-4 PROD Energy'!K479+'FR-16(7)(v)-5 PROD Cust'!K479+'FR-16(7)(v)-7 TRANS Demand'!K479+'FR-16(7)(v)-8 TRANS Energy'!K479+'FR-16(7)(v)-9 TRANS Cust'!K479+'FR-16(7)(v)-11 DIST Demand'!K479+'FR-16(7)(v)-12 DIST Energy'!K479+'FR-16(7)(v)-13 DIST Cust'!K479-'FR-16(7)(v)-14 TOTAL CLASS'!K479","v":0},{"$f":"'FR-16(7)(v)-3 PROD Demand'!L479+'FR-16(7)(v)-4 PROD Energy'!L479+'FR-16(7)(v)-5 PROD Cust'!L479+'FR-16(7)(v)-7 TRANS Demand'!L479+'FR-16(7)(v)-8 TRANS Energy'!L479+'FR-16(7)(v)-9 TRANS Cust'!L479+'FR-16(7)(v)-11 DIST Demand'!L479+'FR-16(7)(v)-12 DIST Energy'!L479+'FR-16(7)(v)-13 DIST Cust'!L479-'FR-16(7)(v)-14 TOTAL CLASS'!L479","v":0},{"$f":"'FR-16(7)(v)-3 PROD Demand'!M479+'FR-16(7)(v)-4 PROD Energy'!M479+'FR-16(7)(v)-5 PROD Cust'!M479+'FR-16(7)(v)-7 TRANS Demand'!M479+'FR-16(7)(v)-8 TRANS Energy'!M479+'FR-16(7)(v)-9 TRANS Cust'!M479+'FR-16(7)(v)-11 DIST Demand'!M479+'FR-16(7)(v)-12 DIST Energy'!M479+'FR-16(7)(v)-13 DIST Cust'!M479-'FR-16(7)(v)-14 TOTAL CLASS'!M479","v":0},{"$f":"'FR-16(7)(v)-3 PROD Demand'!N479+'FR-16(7)(v)-4 PROD Energy'!N479+'FR-16(7)(v)-5 PROD Cust'!N479+'FR-16(7)(v)-7 TRANS Demand'!N479+'FR-16(7)(v)-8 TRANS Energy'!N479+'FR-16(7)(v)-9 TRANS Cust'!N479+'FR-16(7)(v)-11 DIST Demand'!N479+'FR-16(7)(v)-12 DIST Energy'!N479+'FR-16(7)(v)-13 DIST Cust'!N479-'FR-16(7)(v)-14 TOTAL CLASS'!N479","v":0},{"$f":"'FR-16(7)(v)-3 PROD Demand'!O479+'FR-16(7)(v)-4 PROD Energy'!O479+'FR-16(7)(v)-5 PROD Cust'!O479+'FR-16(7)(v)-7 TRANS Demand'!O479+'FR-16(7)(v)-8 TRANS Energy'!O479+'FR-16(7)(v)-9 TRANS Cust'!O479+'FR-16(7)(v)-11 DIST Demand'!O479+'FR-16(7)(v)-12 DIST Energy'!O479+'FR-16(7)(v)-13 DIST Cust'!O479-'FR-16(7)(v)-14 TOTAL CLASS'!O479","v":0},{"$f":"'FR-16(7)(v)-3 PROD Demand'!P479+'FR-16(7)(v)-4 PROD Energy'!P479+'FR-16(7)(v)-5 PROD Cust'!P479+'FR-16(7)(v)-7 TRANS Demand'!P479+'FR-16(7)(v)-8 TRANS Energy'!P479+'FR-16(7)(v)-9 TRANS Cust'!P479+'FR-16(7)(v)-11 DIST Demand'!P479+'FR-16(7)(v)-12 DIST Energy'!P479+'FR-16(7)(v)-13 DIST Cust'!P479-'FR-16(7)(v)-14 TOTAL CLASS'!P479","v":0},{"$f":"'FR-16(7)(v)-3 PROD Demand'!Q479+'FR-16(7)(v)-4 PROD Energy'!Q479+'FR-16(7)(v)-5 PROD Cust'!Q479+'FR-16(7)(v)-7 TRANS Demand'!Q479+'FR-16(7)(v)-8 TRANS Energy'!Q479+'FR-16(7)(v)-9 TRANS Cust'!Q479+'FR-16(7)(v)-11 DIST Demand'!Q479+'FR-16(7)(v)-12 DIST Energy'!Q479+'FR-16(7)(v)-13 DIST Cust'!Q479-'FR-16(7)(v)-14 TOTAL CLASS'!Q479","v":0},0,0]
[36,null,{"$f":"'FR-16(7)(v)-1 Functional'!C480","v":"UNDERGROUND LINES - PRIMARY / CUSTOMER"},"A300",null,{"$f":"'FR-16(7)(v)-3 PROD Demand'!F480+'FR-16(7)(v)-4 PROD Energy'!F480+'FR-16(7)(v)-5 PROD Cust'!F480+'FR-16(7)(v)-7 TRANS Demand'!F480+'FR-16(7)(v)-8 TRANS Energy'!F480+'FR-16(7)(v)-9 TRANS Cust'!F480+'FR-16(7)(v)-11 DIST Demand'!F480+'FR-16(7)(v)-12 DIST Energy'!F480+'FR-16(7)(v)-13 DIST Cust'!F480-'FR-16(7)(v)-14 TOTAL CLASS'!F480","v":0},{"$f":"'FR-16(7)(v)-3 PROD Demand'!G480+'FR-16(7)(v)-4 PROD Energy'!G480+'FR-16(7)(v)-5 PROD Cust'!G480+'FR-16(7)(v)-7 TRANS Demand'!G480+'FR-16(7)(v)-8 TRANS Energy'!G480+'FR-16(7)(v)-9 TRANS Cust'!G480+'FR-16(7)(v)-11 DIST Demand'!G480+'FR-16(7)(v)-12 DIST Energy'!G480+'FR-16(7)(v)-13 DIST Cust'!G480-'FR-16(7)(v)-14 TOTAL CLASS'!G480","v":0},{"$f":"'FR-16(7)(v)-3 PROD Demand'!H480+'FR-16(7)(v)-4 PROD Energy'!H480+'FR-16(7)(v)-5 PROD Cust'!H480+'FR-16(7)(v)-7 TRANS Demand'!H480+'FR-16(7)(v)-8 TRANS Energy'!H480+'FR-16(7)(v)-9 TRANS Cust'!H480+'FR-16(7)(v)-11 DIST Demand'!H480+'FR-16(7)(v)-12 DIST Energy'!H480+'FR-16(7)(v)-13 DIST Cust'!H480-'FR-16(7)(v)-14 TOTAL CLASS'!H480","v":0},{"$f":"'FR-16(7)(v)-3 PROD Demand'!I480+'FR-16(7)(v)-4 PROD Energy'!I480+'FR-16(7)(v)-5 PROD Cust'!I480+'FR-16(7)(v)-7 TRANS Demand'!I480+'FR-16(7)(v)-8 TRANS Energy'!I480+'FR-16(7)(v)-9 TRANS Cust'!I480+'FR-16(7)(v)-11 DIST Demand'!I480+'FR-16(7)(v)-12 DIST Energy'!I480+'FR-16(7)(v)-13 DIST Cust'!I480-'FR-16(7)(v)-14 TOTAL CLASS'!I480","v":0},{"$f":"'FR-16(7)(v)-3 PROD Demand'!J480+'FR-16(7)(v)-4 PROD Energy'!J480+'FR-16(7)(v)-5 PROD Cust'!J480+'FR-16(7)(v)-7 TRANS Demand'!J480+'FR-16(7)(v)-8 TRANS Energy'!J480+'FR-16(7)(v)-9 TRANS Cust'!J480+'FR-16(7)(v)-11 DIST Demand'!J480+'FR-16(7)(v)-12 DIST Energy'!J480+'FR-16(7)(v)-13 DIST Cust'!J480-'FR-16(7)(v)-14 TOTAL CLASS'!J480","v":0},{"$f":"'FR-16(7)(v)-3 PROD Demand'!K480+'FR-16(7)(v)-4 PROD Energy'!K480+'FR-16(7)(v)-5 PROD Cust'!K480+'FR-16(7)(v)-7 TRANS Demand'!K480+'FR-16(7)(v)-8 TRANS Energy'!K480+'FR-16(7)(v)-9 TRANS Cust'!K480+'FR-16(7)(v)-11 DIST Demand'!K480+'FR-16(7)(v)-12 DIST Energy'!K480+'FR-16(7)(v)-13 DIST Cust'!K480-'FR-16(7)(v)-14 TOTAL CLASS'!K480","v":0},{"$f":"'FR-16(7)(v)-3 PROD Demand'!L480+'FR-16(7)(v)-4 PROD Energy'!L480+'FR-16(7)(v)-5 PROD Cust'!L480+'FR-16(7)(v)-7 TRANS Demand'!L480+'FR-16(7)(v)-8 TRANS Energy'!L480+'FR-16(7)(v)-9 TRANS Cust'!L480+'FR-16(7)(v)-11 DIST Demand'!L480+'FR-16(7)(v)-12 DIST Energy'!L480+'FR-16(7)(v)-13 DIST Cust'!L480-'FR-16(7)(v)-14 TOTAL CLASS'!L480","v":0},{"$f":"'FR-16(7)(v)-3 PROD Demand'!M480+'FR-16(7)(v)-4 PROD Energy'!M480+'FR-16(7)(v)-5 PROD Cust'!M480+'FR-16(7)(v)-7 TRANS Demand'!M480+'FR-16(7)(v)-8 TRANS Energy'!M480+'FR-16(7)(v)-9 TRANS Cust'!M480+'FR-16(7)(v)-11 DIST Demand'!M480+'FR-16(7)(v)-12 DIST Energy'!M480+'FR-16(7)(v)-13 DIST Cust'!M480-'FR-16(7)(v)-14 TOTAL CLASS'!M480","v":0},{"$f":"'FR-16(7)(v)-3 PROD Demand'!N480+'FR-16(7)(v)-4 PROD Energy'!N480+'FR-16(7)(v)-5 PROD Cust'!N480+'FR-16(7)(v)-7 TRANS Demand'!N480+'FR-16(7)(v)-8 TRANS Energy'!N480+'FR-16(7)(v)-9 TRANS Cust'!N480+'FR-16(7)(v)-11 DIST Demand'!N480+'FR-16(7)(v)-12 DIST Energy'!N480+'FR-16(7)(v)-13 DIST Cust'!N480-'FR-16(7)(v)-14 TOTAL CLASS'!N480","v":0},{"$f":"'FR-16(7)(v)-3 PROD Demand'!O480+'FR-16(7)(v)-4 PROD Energy'!O480+'FR-16(7)(v)-5 PROD Cust'!O480+'FR-16(7)(v)-7 TRANS Demand'!O480+'FR-16(7)(v)-8 TRANS Energy'!O480+'FR-16(7)(v)-9 TRANS Cust'!O480+'FR-16(7)(v)-11 DIST Demand'!O480+'FR-16(7)(v)-12 DIST Energy'!O480+'FR-16(7)(v)-13 DIST Cust'!O480-'FR-16(7)(v)-14 TOTAL CLASS'!O480","v":0},{"$f":"'FR-16(7)(v)-3 PROD Demand'!P480+'FR-16(7)(v)-4 PROD Energy'!P480+'FR-16(7)(v)-5 PROD Cust'!P480+'FR-16(7)(v)-7 TRANS Demand'!P480+'FR-16(7)(v)-8 TRANS Energy'!P480+'FR-16(7)(v)-9 TRANS Cust'!P480+'FR-16(7)(v)-11 DIST Demand'!P480+'FR-16(7)(v)-12 DIST Energy'!P480+'FR-16(7)(v)-13 DIST Cust'!P480-'FR-16(7)(v)-14 TOTAL CLASS'!P480","v":0},{"$f":"'FR-16(7)(v)-3 PROD Demand'!Q480+'FR-16(7)(v)-4 PROD Energy'!Q480+'FR-16(7)(v)-5 PROD Cust'!Q480+'FR-16(7)(v)-7 TRANS Demand'!Q480+'FR-16(7)(v)-8 TRANS Energy'!Q480+'FR-16(7)(v)-9 TRANS Cust'!Q480+'FR-16(7)(v)-11 DIST Demand'!Q480+'FR-16(7)(v)-12 DIST Energy'!Q480+'FR-16(7)(v)-13 DIST Cust'!Q480-'FR-16(7)(v)-14 TOTAL CLASS'!Q480","v":0},0,0]
[37,null,{"$f":"'FR-16(7)(v)-1 Functional'!C481","v":"UNDERGROUND LINES - SECONDARY / DEMAND"},"A300",null,{"$f":"'FR-16(7)(v)-3 PROD Demand'!F481+'FR-16(7)(v)-4 PROD Energy'!F481+'FR-16(7)(v)-5 PROD Cust'!F481+'FR-16(7)(v)-7 TRANS Demand'!F481+'FR-16(7)(v)-8 TRANS Energy'!F481+'FR-16(7)(v)-9 TRANS Cust'!F481+'FR-16(7)(v)-11 DIST Demand'!F481+'FR-16(7)(v)-12 DIST Energy'!F481+'FR-16(7)(v)-13 DIST Cust'!F481-'FR-16(7)(v)-14 TOTAL CLASS'!F481","v":0},{"$f":"'FR-16(7)(v)-3 PROD Demand'!G481+'FR-16(7)(v)-4 PROD Energy'!G481+'FR-16(7)(v)-5 PROD Cust'!G481+'FR-16(7)(v)-7 TRANS Demand'!G481+'FR-16(7)(v)-8 TRANS Energy'!G481+'FR-16(7)(v)-9 TRANS Cust'!G481+'FR-16(7)(v)-11 DIST Demand'!G481+'FR-16(7)(v)-12 DIST Energy'!G481+'FR-16(7)(v)-13 DIST Cust'!G481-'FR-16(7)(v)-14 TOTAL CLASS'!G481","v":0},{"$f":"'FR-16(7)(v)-3 PROD Demand'!H481+'FR-16(7)(v)-4 PROD Energy'!H481+'FR-16(7)(v)-5 PROD Cust'!H481+'FR-16(7)(v)-7 TRANS Demand'!H481+'FR-16(7)(v)-8 TRANS Energy'!H481+'FR-16(7)(v)-9 TRANS Cust'!H481+'FR-16(7)(v)-11 DIST Demand'!H481+'FR-16(7)(v)-12 DIST Energy'!H481+'FR-16(7)(v)-13 DIST Cust'!H481-'FR-16(7)(v)-14 TOTAL CLASS'!H481","v":0},{"$f":"'FR-16(7)(v)-3 PROD Demand'!I481+'FR-16(7)(v)-4 PROD Energy'!I481+'FR-16(7)(v)-5 PROD Cust'!I481+'FR-16(7)(v)-7 TRANS Demand'!I481+'FR-16(7)(v)-8 TRANS Energy'!I481+'FR-16(7)(v)-9 TRANS Cust'!I481+'FR-16(7)(v)-11 DIST Demand'!I481+'FR-16(7)(v)-12 DIST Energy'!I481+'FR-16(7)(v)-13 DIST Cust'!I481-'FR-16(7)(v)-14 TOTAL CLASS'!I481","v":0},{"$f":"'FR-16(7)(v)-3 PROD Demand'!J481+'FR-16(7)(v)-4 PROD Energy'!J481+'FR-16(7)(v)-5 PROD Cust'!J481+'FR-16(7)(v)-7 TRANS Demand'!J481+'FR-16(7)(v)-8 TRANS Energy'!J481+'FR-16(7)(v)-9 TRANS Cust'!J481+'FR-16(7)(v)-11 DIST Demand'!J481+'FR-16(7)(v)-12 DIST Energy'!J481+'FR-16(7)(v)-13 DIST Cust'!J481-'FR-16(7)(v)-14 TOTAL CLASS'!J481","v":0},{"$f":"'FR-16(7)(v)-3 PROD Demand'!K481+'FR-16(7)(v)-4 PROD Energy'!K481+'FR-16(7)(v)-5 PROD Cust'!K481+'FR-16(7)(v)-7 TRANS Demand'!K481+'FR-16(7)(v)-8 TRANS Energy'!K481+'FR-16(7)(v)-9 TRANS Cust'!K481+'FR-16(7)(v)-11 DIST Demand'!K481+'FR-16(7)(v)-12 DIST Energy'!K481+'FR-16(7)(v)-13 DIST Cust'!K481-'FR-16(7)(v)-14 TOTAL CLASS'!K481","v":0},{"$f":"'FR-16(7)(v)-3 PROD Demand'!L481+'FR-16(7)(v)-4 PROD Energy'!L481+'FR-16(7)(v)-5 PROD Cust'!L481+'FR-16(7)(v)-7 TRANS Demand'!L481+'FR-16(7)(v)-8 TRANS Energy'!L481+'FR-16(7)(v)-9 TRANS Cust'!L481+'FR-16(7)(v)-11 DIST Demand'!L481+'FR-16(7)(v)-12 DIST Energy'!L481+'FR-16(7)(v)-13 DIST Cust'!L481-'FR-16(7)(v)-14 TOTAL CLASS'!L481","v":0},{"$f":"'FR-16(7)(v)-3 PROD Demand'!M481+'FR-16(7)(v)-4 PROD Energy'!M481+'FR-16(7)(v)-5 PROD Cust'!M481+'FR-16(7)(v)-7 TRANS Demand'!M481+'FR-16(7)(v)-8 TRANS Energy'!M481+'FR-16(7)(v)-9 TRANS Cust'!M481+'FR-16(7)(v)-11 DIST Demand'!M481+'FR-16(7)(v)-12 DIST Energy'!M481+'FR-16(7)(v)-13 DIST Cust'!M481-'FR-16(7)(v)-14 TOTAL CLASS'!M481","v":0},{"$f":"'FR-16(7)(v)-3 PROD Demand'!N481+'FR-16(7)(v)-4 PROD Energy'!N481+'FR-16(7)(v)-5 PROD Cust'!N481+'FR-16(7)(v)-7 TRANS Demand'!N481+'FR-16(7)(v)-8 TRANS Energy'!N481+'FR-16(7)(v)-9 TRANS Cust'!N481+'FR-16(7)(v)-11 DIST Demand'!N481+'FR-16(7)(v)-12 DIST Energy'!N481+'FR-16(7)(v)-13 DIST Cust'!N481-'FR-16(7)(v)-14 TOTAL CLASS'!N481","v":0},{"$f":"'FR-16(7)(v)-3 PROD Demand'!O481+'FR-16(7)(v)-4 PROD Energy'!O481+'FR-16(7)(v)-5 PROD Cust'!O481+'FR-16(7)(v)-7 TRANS Demand'!O481+'FR-16(7)(v)-8 TRANS Energy'!O481+'FR-16(7)(v)-9 TRANS Cust'!O481+'FR-16(7)(v)-11 DIST Demand'!O481+'FR-16(7)(v)-12 DIST Energy'!O481+'FR-16(7)(v)-13 DIST Cust'!O481-'FR-16(7)(v)-14 TOTAL CLASS'!O481","v":0},{"$f":"'FR-16(7)(v)-3 PROD Demand'!P481+'FR-16(7)(v)-4 PROD Energy'!P481+'FR-16(7)(v)-5 PROD Cust'!P481+'FR-16(7)(v)-7 TRANS Demand'!P481+'FR-16(7)(v)-8 TRANS Energy'!P481+'FR-16(7)(v)-9 TRANS Cust'!P481+'FR-16(7)(v)-11 DIST Demand'!P481+'FR-16(7)(v)-12 DIST Energy'!P481+'FR-16(7)(v)-13 DIST Cust'!P481-'FR-16(7)(v)-14 TOTAL CLASS'!P481","v":0},{"$f":"'FR-16(7)(v)-3 PROD Demand'!Q481+'FR-16(7)(v)-4 PROD Energy'!Q481+'FR-16(7)(v)-5 PROD Cust'!Q481+'FR-16(7)(v)-7 TRANS Demand'!Q481+'FR-16(7)(v)-8 TRANS Energy'!Q481+'FR-16(7)(v)-9 TRANS Cust'!Q481+'FR-16(7)(v)-11 DIST Demand'!Q481+'FR-16(7)(v)-12 DIST Energy'!Q481+'FR-16(7)(v)-13 DIST Cust'!Q481-'FR-16(7)(v)-14 TOTAL CLASS'!Q481","v":0},0,0]
[38,null,{"$f":"'FR-16(7)(v)-1 Functional'!C482","v":"UNDERGROUND LINES - SECONDARY / CUSTOMER"},"A300",null,{"$f":"'FR-16(7)(v)-3 PROD Demand'!F482+'FR-16(7)(v)-4 PROD Energy'!F482+'FR-16(7)(v)-5 PROD Cust'!F482+'FR-16(7)(v)-7 TRANS Demand'!F482+'FR-16(7)(v)-8 TRANS Energy'!F482+'FR-16(7)(v)-9 TRANS Cust'!F482+'FR-16(7)(v)-11 DIST Demand'!F482+'FR-16(7)(v)-12 DIST Energy'!F482+'FR-16(7)(v)-13 DIST Cust'!F482-'FR-16(7)(v)-14 TOTAL CLASS'!F482","v":0},{"$f":"'FR-16(7)(v)-3 PROD Demand'!G482+'FR-16(7)(v)-4 PROD Energy'!G482+'FR-16(7)(v)-5 PROD Cust'!G482+'FR-16(7)(v)-7 TRANS Demand'!G482+'FR-16(7)(v)-8 TRANS Energy'!G482+'FR-16(7)(v)-9 TRANS Cust'!G482+'FR-16(7)(v)-11 DIST Demand'!G482+'FR-16(7)(v)-12 DIST Energy'!G482+'FR-16(7)(v)-13 DIST Cust'!G482-'FR-16(7)(v)-14 TOTAL CLASS'!G482","v":0},{"$f":"'FR-16(7)(v)-3 PROD Demand'!H482+'FR-16(7)(v)-4 PROD Energy'!H482+'FR-16(7)(v)-5 PROD Cust'!H482+'FR-16(7)(v)-7 TRANS Demand'!H482+'FR-16(7)(v)-8 TRANS Energy'!H482+'FR-16(7)(v)-9 TRANS Cust'!H482+'FR-16(7)(v)-11 DIST Demand'!H482+'FR-16(7)(v)-12 DIST Energy'!H482+'FR-16(7)(v)-13 DIST Cust'!H482-'FR-16(7)(v)-14 TOTAL CLASS'!H482","v":0},{"$f":"'FR-16(7)(v)-3 PROD Demand'!I482+'FR-16(7)(v)-4 PROD Energy'!I482+'FR-16(7)(v)-5 PROD Cust'!I482+'FR-16(7)(v)-7 TRANS Demand'!I482+'FR-16(7)(v)-8 TRANS Energy'!I482+'FR-16(7)(v)-9 TRANS Cust'!I482+'FR-16(7)(v)-11 DIST Demand'!I482+'FR-16(7)(v)-12 DIST Energy'!I482+'FR-16(7)(v)-13 DIST Cust'!I482-'FR-16(7)(v)-14 TOTAL CLASS'!I482","v":0},{"$f":"'FR-16(7)(v)-3 PROD Demand'!J482+'FR-16(7)(v)-4 PROD Energy'!J482+'FR-16(7)(v)-5 PROD Cust'!J482+'FR-16(7)(v)-7 TRANS Demand'!J482+'FR-16(7)(v)-8 TRANS Energy'!J482+'FR-16(7)(v)-9 TRANS Cust'!J482+'FR-16(7)(v)-11 DIST Demand'!J482+'FR-16(7)(v)-12 DIST Energy'!J482+'FR-16(7)(v)-13 DIST Cust'!J482-'FR-16(7)(v)-14 TOTAL CLASS'!J482","v":0},{"$f":"'FR-16(7)(v)-3 PROD Demand'!K482+'FR-16(7)(v)-4 PROD Energy'!K482+'FR-16(7)(v)-5 PROD Cust'!K482+'FR-16(7)(v)-7 TRANS Demand'!K482+'FR-16(7)(v)-8 TRANS Energy'!K482+'FR-16(7)(v)-9 TRANS Cust'!K482+'FR-16(7)(v)-11 DIST Demand'!K482+'FR-16(7)(v)-12 DIST Energy'!K482+'FR-16(7)(v)-13 DIST Cust'!K482-'FR-16(7)(v)-14 TOTAL CLASS'!K482","v":0},{"$f":"'FR-16(7)(v)-3 PROD Demand'!L482+'FR-16(7)(v)-4 PROD Energy'!L482+'FR-16(7)(v)-5 PROD Cust'!L482+'FR-16(7)(v)-7 TRANS Demand'!L482+'FR-16(7)(v)-8 TRANS Energy'!L482+'FR-16(7)(v)-9 TRANS Cust'!L482+'FR-16(7)(v)-11 DIST Demand'!L482+'FR-16(7)(v)-12 DIST Energy'!L482+'FR-16(7)(v)-13 DIST Cust'!L482-'FR-16(7)(v)-14 TOTAL CLASS'!L482","v":0},{"$f":"'FR-16(7)(v)-3 PROD Demand'!M482+'FR-16(7)(v)-4 PROD Energy'!M482+'FR-16(7)(v)-5 PROD Cust'!M482+'FR-16(7)(v)-7 TRANS Demand'!M482+'FR-16(7)(v)-8 TRANS Energy'!M482+'FR-16(7)(v)-9 TRANS Cust'!M482+'FR-16(7)(v)-11 DIST Demand'!M482+'FR-16(7)(v)-12 DIST Energy'!M482+'FR-16(7)(v)-13 DIST Cust'!M482-'FR-16(7)(v)-14 TOTAL CLASS'!M482","v":0},{"$f":"'FR-16(7)(v)-3 PROD Demand'!N482+'FR-16(7)(v)-4 PROD Energy'!N482+'FR-16(7)(v)-5 PROD Cust'!N482+'FR-16(7)(v)-7 TRANS Demand'!N482+'FR-16(7)(v)-8 TRANS Energy'!N482+'FR-16(7)(v)-9 TRANS Cust'!N482+'FR-16(7)(v)-11 DIST Demand'!N482+'FR-16(7)(v)-12 DIST Energy'!N482+'FR-16(7)(v)-13 DIST Cust'!N482-'FR-16(7)(v)-14 TOTAL CLASS'!N482","v":0},{"$f":"'FR-16(7)(v)-3 PROD Demand'!O482+'FR-16(7)(v)-4 PROD Energy'!O482+'FR-16(7)(v)-5 PROD Cust'!O482+'FR-16(7)(v)-7 TRANS Demand'!O482+'FR-16(7)(v)-8 TRANS Energy'!O482+'FR-16(7)(v)-9 TRANS Cust'!O482+'FR-16(7)(v)-11 DIST Demand'!O482+'FR-16(7)(v)-12 DIST Energy'!O482+'FR-16(7)(v)-13 DIST Cust'!O482-'FR-16(7)(v)-14 TOTAL CLASS'!O482","v":0},{"$f":"'FR-16(7)(v)-3 PROD Demand'!P482+'FR-16(7)(v)-4 PROD Energy'!P482+'FR-16(7)(v)-5 PROD Cust'!P482+'FR-16(7)(v)-7 TRANS Demand'!P482+'FR-16(7)(v)-8 TRANS Energy'!P482+'FR-16(7)(v)-9 TRANS Cust'!P482+'FR-16(7)(v)-11 DIST Demand'!P482+'FR-16(7)(v)-12 DIST Energy'!P482+'FR-16(7)(v)-13 DIST Cust'!P482-'FR-16(7)(v)-14 TOTAL CLASS'!P482","v":0},{"$f":"'FR-16(7)(v)-3 PROD Demand'!Q482+'FR-16(7)(v)-4 PROD Energy'!Q482+'FR-16(7)(v)-5 PROD Cust'!Q482+'FR-16(7)(v)-7 TRANS Demand'!Q482+'FR-16(7)(v)-8 TRANS Energy'!Q482+'FR-16(7)(v)-9 TRANS Cust'!Q482+'FR-16(7)(v)-11 DIST Demand'!Q482+'FR-16(7)(v)-12 DIST Energy'!Q482+'FR-16(7)(v)-13 DIST Cust'!Q482-'FR-16(7)(v)-14 TOTAL CLASS'!Q482","v":0},0,0]
[39,null,{"$f":"'FR-16(7)(v)-1 Functional'!C483","v":"TRANSFORMERS DEMAND RELATED"},"A300",null,{"$f":"'FR-16(7)(v)-3 PROD Demand'!F483+'FR-16(7)(v)-4 PROD Energy'!F483+'FR-16(7)(v)-5 PROD Cust'!F483+'FR-16(7)(v)-7 TRANS Demand'!F483+'FR-16(7)(v)-8 TRANS Energy'!F483+'FR-16(7)(v)-9 TRANS Cust'!F483+'FR-16(7)(v)-11 DIST Demand'!F483+'FR-16(7)(v)-12 DIST Energy'!F483+'FR-16(7)(v)-13 DIST Cust'!F483-'FR-16(7)(v)-14 TOTAL CLASS'!F483","v":0},{"$f":"'FR-16(7)(v)-3 PROD Demand'!G483+'FR-16(7)(v)-4 PROD Energy'!G483+'FR-16(7)(v)-5 PROD Cust'!G483+'FR-16(7)(v)-7 TRANS Demand'!G483+'FR-16(7)(v)-8 TRANS Energy'!G483+'FR-16(7)(v)-9 TRANS Cust'!G483+'FR-16(7)(v)-11 DIST Demand'!G483+'FR-16(7)(v)-12 DIST Energy'!G483+'FR-16(7)(v)-13 DIST Cust'!G483-'FR-16(7)(v)-14 TOTAL CLASS'!G483","v":0},{"$f":"'FR-16(7)(v)-3 PROD Demand'!H483+'FR-16(7)(v)-4 PROD Energy'!H483+'FR-16(7)(v)-5 PROD Cust'!H483+'FR-16(7)(v)-7 TRANS Demand'!H483+'FR-16(7)(v)-8 TRANS Energy'!H483+'FR-16(7)(v)-9 TRANS Cust'!H483+'FR-16(7)(v)-11 DIST Demand'!H483+'FR-16(7)(v)-12 DIST Energy'!H483+'FR-16(7)(v)-13 DIST Cust'!H483-'FR-16(7)(v)-14 TOTAL CLASS'!H483","v":0},{"$f":"'FR-16(7)(v)-3 PROD Demand'!I483+'FR-16(7)(v)-4 PROD Energy'!I483+'FR-16(7)(v)-5 PROD Cust'!I483+'FR-16(7)(v)-7 TRANS Demand'!I483+'FR-16(7)(v)-8 TRANS Energy'!I483+'FR-16(7)(v)-9 TRANS Cust'!I483+'FR-16(7)(v)-11 DIST Demand'!I483+'FR-16(7)(v)-12 DIST Energy'!I483+'FR-16(7)(v)-13 DIST Cust'!I483-'FR-16(7)(v)-14 TOTAL CLASS'!I483","v":0},{"$f":"'FR-16(7)(v)-3 PROD Demand'!J483+'FR-16(7)(v)-4 PROD Energy'!J483+'FR-16(7)(v)-5 PROD Cust'!J483+'FR-16(7)(v)-7 TRANS Demand'!J483+'FR-16(7)(v)-8 TRANS Energy'!J483+'FR-16(7)(v)-9 TRANS Cust'!J483+'FR-16(7)(v)-11 DIST Demand'!J483+'FR-16(7)(v)-12 DIST Energy'!J483+'FR-16(7)(v)-13 DIST Cust'!J483-'FR-16(7)(v)-14 TOTAL CLASS'!J483","v":0},{"$f":"'FR-16(7)(v)-3 PROD Demand'!K483+'FR-16(7)(v)-4 PROD Energy'!K483+'FR-16(7)(v)-5 PROD Cust'!K483+'FR-16(7)(v)-7 TRANS Demand'!K483+'FR-16(7)(v)-8 TRANS Energy'!K483+'FR-16(7)(v)-9 TRANS Cust'!K483+'FR-16(7)(v)-11 DIST Demand'!K483+'FR-16(7)(v)-12 DIST Energy'!K483+'FR-16(7)(v)-13 DIST Cust'!K483-'FR-16(7)(v)-14 TOTAL CLASS'!K483","v":0},{"$f":"'FR-16(7)(v)-3 PROD Demand'!L483+'FR-16(7)(v)-4 PROD Energy'!L483+'FR-16(7)(v)-5 PROD Cust'!L483+'FR-16(7)(v)-7 TRANS Demand'!L483+'FR-16(7)(v)-8 TRANS Energy'!L483+'FR-16(7)(v)-9 TRANS Cust'!L483+'FR-16(7)(v)-11 DIST Demand'!L483+'FR-16(7)(v)-12 DIST Energy'!L483+'FR-16(7)(v)-13 DIST Cust'!L483-'FR-16(7)(v)-14 TOTAL CLASS'!L483","v":0},{"$f":"'FR-16(7)(v)-3 PROD Demand'!M483+'FR-16(7)(v)-4 PROD Energy'!M483+'FR-16(7)(v)-5 PROD Cust'!M483+'FR-16(7)(v)-7 TRANS Demand'!M483+'FR-16(7)(v)-8 TRANS Energy'!M483+'FR-16(7)(v)-9 TRANS Cust'!M483+'FR-16(7)(v)-11 DIST Demand'!M483+'FR-16(7)(v)-12 DIST Energy'!M483+'FR-16(7)(v)-13 DIST Cust'!M483-'FR-16(7)(v)-14 TOTAL CLASS'!M483","v":0},{"$f":"'FR-16(7)(v)-3 PROD Demand'!N483+'FR-16(7)(v)-4 PROD Energy'!N483+'FR-16(7)(v)-5 PROD Cust'!N483+'FR-16(7)(v)-7 TRANS Demand'!N483+'FR-16(7)(v)-8 TRANS Energy'!N483+'FR-16(7)(v)-9 TRANS Cust'!N483+'FR-16(7)(v)-11 DIST Demand'!N483+'FR-16(7)(v)-12 DIST Energy'!N483+'FR-16(7)(v)-13 DIST Cust'!N483-'FR-16(7)(v)-14 TOTAL CLASS'!N483","v":0},{"$f":"'FR-16(7)(v)-3 PROD Demand'!O483+'FR-16(7)(v)-4 PROD Energy'!O483+'FR-16(7)(v)-5 PROD Cust'!O483+'FR-16(7)(v)-7 TRANS Demand'!O483+'FR-16(7)(v)-8 TRANS Energy'!O483+'FR-16(7)(v)-9 TRANS Cust'!O483+'FR-16(7)(v)-11 DIST Demand'!O483+'FR-16(7)(v)-12 DIST Energy'!O483+'FR-16(7)(v)-13 DIST Cust'!O483-'FR-16(7)(v)-14 TOTAL CLASS'!O483","v":0},{"$f":"'FR-16(7)(v)-3 PROD Demand'!P483+'FR-16(7)(v)-4 PROD Energy'!P483+'FR-16(7)(v)-5 PROD Cust'!P483+'FR-16(7)(v)-7 TRANS Demand'!P483+'FR-16(7)(v)-8 TRANS Energy'!P483+'FR-16(7)(v)-9 TRANS Cust'!P483+'FR-16(7)(v)-11 DIST Demand'!P483+'FR-16(7)(v)-12 DIST Energy'!P483+'FR-16(7)(v)-13 DIST Cust'!P483-'FR-16(7)(v)-14 TOTAL CLASS'!P483","v":0},{"$f":"'FR-16(7)(v)-3 PROD Demand'!Q483+'FR-16(7)(v)-4 PROD Energy'!Q483+'FR-16(7)(v)-5 PROD Cust'!Q483+'FR-16(7)(v)-7 TRANS Demand'!Q483+'FR-16(7)(v)-8 TRANS Energy'!Q483+'FR-16(7)(v)-9 TRANS Cust'!Q483+'FR-16(7)(v)-11 DIST Demand'!Q483+'FR-16(7)(v)-12 DIST Energy'!Q483+'FR-16(7)(v)-13 DIST Cust'!Q483-'FR-16(7)(v)-14 TOTAL CLASS'!Q483","v":0},0,0]
[40,null,{"$f":"'FR-16(7)(v)-1 Functional'!C484","v":"TRANSFORMERS CUSTOMER RELATED"},"A300",null,{"$f":"'FR-16(7)(v)-3 PROD Demand'!F484+'FR-16(7)(v)-4 PROD Energy'!F484+'FR-16(7)(v)-5 PROD Cust'!F484+'FR-16(7)(v)-7 TRANS Demand'!F484+'FR-16(7)(v)-8 TRANS Energy'!F484+'FR-16(7)(v)-9 TRANS Cust'!F484+'FR-16(7)(v)-11 DIST Demand'!F484+'FR-16(7)(v)-12 DIST Energy'!F484+'FR-16(7)(v)-13 DIST Cust'!F484-'FR-16(7)(v)-14 TOTAL CLASS'!F484","v":0},{"$f":"'FR-16(7)(v)-3 PROD Demand'!G484+'FR-16(7)(v)-4 PROD Energy'!G484+'FR-16(7)(v)-5 PROD Cust'!G484+'FR-16(7)(v)-7 TRANS Demand'!G484+'FR-16(7)(v)-8 TRANS Energy'!G484+'FR-16(7)(v)-9 TRANS Cust'!G484+'FR-16(7)(v)-11 DIST Demand'!G484+'FR-16(7)(v)-12 DIST Energy'!G484+'FR-16(7)(v)-13 DIST Cust'!G484-'FR-16(7)(v)-14 TOTAL CLASS'!G484","v":0},{"$f":"'FR-16(7)(v)-3 PROD Demand'!H484+'FR-16(7)(v)-4 PROD Energy'!H484+'FR-16(7)(v)-5 PROD Cust'!H484+'FR-16(7)(v)-7 TRANS Demand'!H484+'FR-16(7)(v)-8 TRANS Energy'!H484+'FR-16(7)(v)-9 TRANS Cust'!H484+'FR-16(7)(v)-11 DIST Demand'!H484+'FR-16(7)(v)-12 DIST Energy'!H484+'FR-16(7)(v)-13 DIST Cust'!H484-'FR-16(7)(v)-14 TOTAL CLASS'!H484","v":0},{"$f":"'FR-16(7)(v)-3 PROD Demand'!I484+'FR-16(7)(v)-4 PROD Energy'!I484+'FR-16(7)(v)-5 PROD Cust'!I484+'FR-16(7)(v)-7 TRANS Demand'!I484+'FR-16(7)(v)-8 TRANS Energy'!I484+'FR-16(7)(v)-9 TRANS Cust'!I484+'FR-16(7)(v)-11 DIST Demand'!I484+'FR-16(7)(v)-12 DIST Energy'!I484+'FR-16(7)(v)-13 DIST Cust'!I484-'FR-16(7)(v)-14 TOTAL CLASS'!I484","v":0},{"$f":"'FR-16(7)(v)-3 PROD Demand'!J484+'FR-16(7)(v)-4 PROD Energy'!J484+'FR-16(7)(v)-5 PROD Cust'!J484+'FR-16(7)(v)-7 TRANS Demand'!J484+'FR-16(7)(v)-8 TRANS Energy'!J484+'FR-16(7)(v)-9 TRANS Cust'!J484+'FR-16(7)(v)-11 DIST Demand'!J484+'FR-16(7)(v)-12 DIST Energy'!J484+'FR-16(7)(v)-13 DIST Cust'!J484-'FR-16(7)(v)-14 TOTAL CLASS'!J484","v":0},{"$f":"'FR-16(7)(v)-3 PROD Demand'!K484+'FR-16(7)(v)-4 PROD Energy'!K484+'FR-16(7)(v)-5 PROD Cust'!K484+'FR-16(7)(v)-7 TRANS Demand'!K484+'FR-16(7)(v)-8 TRANS Energy'!K484+'FR-16(7)(v)-9 TRANS Cust'!K484+'FR-16(7)(v)-11 DIST Demand'!K484+'FR-16(7)(v)-12 DIST Energy'!K484+'FR-16(7)(v)-13 DIST Cust'!K484-'FR-16(7)(v)-14 TOTAL CLASS'!K484","v":0},{"$f":"'FR-16(7)(v)-3 PROD Demand'!L484+'FR-16(7)(v)-4 PROD Energy'!L484+'FR-16(7)(v)-5 PROD Cust'!L484+'FR-16(7)(v)-7 TRANS Demand'!L484+'FR-16(7)(v)-8 TRANS Energy'!L484+'FR-16(7)(v)-9 TRANS Cust'!L484+'FR-16(7)(v)-11 DIST Demand'!L484+'FR-16(7)(v)-12 DIST Energy'!L484+'FR-16(7)(v)-13 DIST Cust'!L484-'FR-16(7)(v)-14 TOTAL CLASS'!L484","v":0},{"$f":"'FR-16(7)(v)-3 PROD Demand'!M484+'FR-16(7)(v)-4 PROD Energy'!M484+'FR-16(7)(v)-5 PROD Cust'!M484+'FR-16(7)(v)-7 TRANS Demand'!M484+'FR-16(7)(v)-8 TRANS Energy'!M484+'FR-16(7)(v)-9 TRANS Cust'!M484+'FR-16(7)(v)-11 DIST Demand'!M484+'FR-16(7)(v)-12 DIST Energy'!M484+'FR-16(7)(v)-13 DIST Cust'!M484-'FR-16(7)(v)-14 TOTAL CLASS'!M484","v":0},{"$f":"'FR-16(7)(v)-3 PROD Demand'!N484+'FR-16(7)(v)-4 PROD Energy'!N484+'FR-16(7)(v)-5 PROD Cust'!N484+'FR-16(7)(v)-7 TRANS Demand'!N484+'FR-16(7)(v)-8 TRANS Energy'!N484+'FR-16(7)(v)-9 TRANS Cust'!N484+'FR-16(7)(v)-11 DIST Demand'!N484+'FR-16(7)(v)-12 DIST Energy'!N484+'FR-16(7)(v)-13 DIST Cust'!N484-'FR-16(7)(v)-14 TOTAL CLASS'!N484","v":0},{"$f":"'FR-16(7)(v)-3 PROD Demand'!O484+'FR-16(7)(v)-4 PROD Energy'!O484+'FR-16(7)(v)-5 PROD Cust'!O484+'FR-16(7)(v)-7 TRANS Demand'!O484+'FR-16(7)(v)-8 TRANS Energy'!O484+'FR-16(7)(v)-9 TRANS Cust'!O484+'FR-16(7)(v)-11 DIST Demand'!O484+'FR-16(7)(v)-12 DIST Energy'!O484+'FR-16(7)(v)-13 DIST Cust'!O484-'FR-16(7)(v)-14 TOTAL CLASS'!O484","v":0},{"$f":"'FR-16(7)(v)-3 PROD Demand'!P484+'FR-16(7)(v)-4 PROD Energy'!P484+'FR-16(7)(v)-5 PROD Cust'!P484+'FR-16(7)(v)-7 TRANS Demand'!P484+'FR-16(7)(v)-8 TRANS Energy'!P484+'FR-16(7)(v)-9 TRANS Cust'!P484+'FR-16(7)(v)-11 DIST Demand'!P484+'FR-16(7)(v)-12 DIST Energy'!P484+'FR-16(7)(v)-13 DIST Cust'!P484-'FR-16(7)(v)-14 TOTAL CLASS'!P484","v":0},{"$f":"'FR-16(7)(v)-3 PROD Demand'!Q484+'FR-16(7)(v)-4 PROD Energy'!Q484+'FR-16(7)(v)-5 PROD Cust'!Q484+'FR-16(7)(v)-7 TRANS Demand'!Q484+'FR-16(7)(v)-8 TRANS Energy'!Q484+'FR-16(7)(v)-9 TRANS Cust'!Q484+'FR-16(7)(v)-11 DIST Demand'!Q484+'FR-16(7)(v)-12 DIST Energy'!Q484+'FR-16(7)(v)-13 DIST Cust'!Q484-'FR-16(7)(v)-14 TOTAL CLASS'!Q484","v":0},0,0]
[41,null,{"$f":"'FR-16(7)(v)-1 Functional'!C485","v":"OTHER MAINTENANCE"},"A300",null,{"$f":"'FR-16(7)(v)-3 PROD Demand'!F485+'FR-16(7)(v)-4 PROD Energy'!F485+'FR-16(7)(v)-5 PROD Cust'!F485+'FR-16(7)(v)-7 TRANS Demand'!F485+'FR-16(7)(v)-8 TRANS Energy'!F485+'FR-16(7)(v)-9 TRANS Cust'!F485+'FR-16(7)(v)-11 DIST Demand'!F485+'FR-16(7)(v)-12 DIST Energy'!F485+'FR-16(7)(v)-13 DIST Cust'!F485-'FR-16(7)(v)-14 TOTAL CLASS'!F485","v":0},{"$f":"'FR-16(7)(v)-3 PROD Demand'!G485+'FR-16(7)(v)-4 PROD Energy'!G485+'FR-16(7)(v)-5 PROD Cust'!G485+'FR-16(7)(v)-7 TRANS Demand'!G485+'FR-16(7)(v)-8 TRANS Energy'!G485+'FR-16(7)(v)-9 TRANS Cust'!G485+'FR-16(7)(v)-11 DIST Demand'!G485+'FR-16(7)(v)-12 DIST Energy'!G485+'FR-16(7)(v)-13 DIST Cust'!G485-'FR-16(7)(v)-14 TOTAL CLASS'!G485","v":0},{"$f":"'FR-16(7)(v)-3 PROD Demand'!H485+'FR-16(7)(v)-4 PROD Energy'!H485+'FR-16(7)(v)-5 PROD Cust'!H485+'FR-16(7)(v)-7 TRANS Demand'!H485+'FR-16(7)(v)-8 TRANS Energy'!H485+'FR-16(7)(v)-9 TRANS Cust'!H485+'FR-16(7)(v)-11 DIST Demand'!H485+'FR-16(7)(v)-12 DIST Energy'!H485+'FR-16(7)(v)-13 DIST Cust'!H485-'FR-16(7)(v)-14 TOTAL CLASS'!H485","v":0},{"$f":"'FR-16(7)(v)-3 PROD Demand'!I485+'FR-16(7)(v)-4 PROD Energy'!I485+'FR-16(7)(v)-5 PROD Cust'!I485+'FR-16(7)(v)-7 TRANS Demand'!I485+'FR-16(7)(v)-8 TRANS Energy'!I485+'FR-16(7)(v)-9 TRANS Cust'!I485+'FR-16(7)(v)-11 DIST Demand'!I485+'FR-16(7)(v)-12 DIST Energy'!I485+'FR-16(7)(v)-13 DIST Cust'!I485-'FR-16(7)(v)-14 TOTAL CLASS'!I485","v":0},{"$f":"'FR-16(7)(v)-3 PROD Demand'!J485+'FR-16(7)(v)-4 PROD Energy'!J485+'FR-16(7)(v)-5 PROD Cust'!J485+'FR-16(7)(v)-7 TRANS Demand'!J485+'FR-16(7)(v)-8 TRANS Energy'!J485+'FR-16(7)(v)-9 TRANS Cust'!J485+'FR-16(7)(v)-11 DIST Demand'!J485+'FR-16(7)(v)-12 DIST Energy'!J485+'FR-16(7)(v)-13 DIST Cust'!J485-'FR-16(7)(v)-14 TOTAL CLASS'!J485","v":0},{"$f":"'FR-16(7)(v)-3 PROD Demand'!K485+'FR-16(7)(v)-4 PROD Energy'!K485+'FR-16(7)(v)-5 PROD Cust'!K485+'FR-16(7)(v)-7 TRANS Demand'!K485+'FR-16(7)(v)-8 TRANS Energy'!K485+'FR-16(7)(v)-9 TRANS Cust'!K485+'FR-16(7)(v)-11 DIST Demand'!K485+'FR-16(7)(v)-12 DIST Energy'!K485+'FR-16(7)(v)-13 DIST Cust'!K485-'FR-16(7)(v)-14 TOTAL CLASS'!K485","v":0},{"$f":"'FR-16(7)(v)-3 PROD Demand'!L485+'FR-16(7)(v)-4 PROD Energy'!L485+'FR-16(7)(v)-5 PROD Cust'!L485+'FR-16(7)(v)-7 TRANS Demand'!L485+'FR-16(7)(v)-8 TRANS Energy'!L485+'FR-16(7)(v)-9 TRANS Cust'!L485+'FR-16(7)(v)-11 DIST Demand'!L485+'FR-16(7)(v)-12 DIST Energy'!L485+'FR-16(7)(v)-13 DIST Cust'!L485-'FR-16(7)(v)-14 TOTAL CLASS'!L485","v":0},{"$f":"'FR-16(7)(v)-3 PROD Demand'!M485+'FR-16(7)(v)-4 PROD Energy'!M485+'FR-16(7)(v)-5 PROD Cust'!M485+'FR-16(7)(v)-7 TRANS Demand'!M485+'FR-16(7)(v)-8 TRANS Energy'!M485+'FR-16(7)(v)-9 TRANS Cust'!M485+'FR-16(7)(v)-11 DIST Demand'!M485+'FR-16(7)(v)-12 DIST Energy'!M485+'FR-16(7)(v)-13 DIST Cust'!M485-'FR-16(7)(v)-14 TOTAL CLASS'!M485","v":0},{"$f":"'FR-16(7)(v)-3 PROD Demand'!N485+'FR-16(7)(v)-4 PROD Energy'!N485+'FR-16(7)(v)-5 PROD Cust'!N485+'FR-16(7)(v)-7 TRANS Demand'!N485+'FR-16(7)(v)-8 TRANS Energy'!N485+'FR-16(7)(v)-9 TRANS Cust'!N485+'FR-16(7)(v)-11 DIST Demand'!N485+'FR-16(7)(v)-12 DIST Energy'!N485+'FR-16(7)(v)-13 DIST Cust'!N485-'FR-16(7)(v)-14 TOTAL CLASS'!N485","v":0},{"$f":"'FR-16(7)(v)-3 PROD Demand'!O485+'FR-16(7)(v)-4 PROD Energy'!O485+'FR-16(7)(v)-5 PROD Cust'!O485+'FR-16(7)(v)-7 TRANS Demand'!O485+'FR-16(7)(v)-8 TRANS Energy'!O485+'FR-16(7)(v)-9 TRANS Cust'!O485+'FR-16(7)(v)-11 DIST Demand'!O485+'FR-16(7)(v)-12 DIST Energy'!O485+'FR-16(7)(v)-13 DIST Cust'!O485-'FR-16(7)(v)-14 TOTAL CLASS'!O485","v":0},{"$f":"'FR-16(7)(v)-3 PROD Demand'!P485+'FR-16(7)(v)-4 PROD Energy'!P485+'FR-16(7)(v)-5 PROD Cust'!P485+'FR-16(7)(v)-7 TRANS Demand'!P485+'FR-16(7)(v)-8 TRANS Energy'!P485+'FR-16(7)(v)-9 TRANS Cust'!P485+'FR-16(7)(v)-11 DIST Demand'!P485+'FR-16(7)(v)-12 DIST Energy'!P485+'FR-16(7)(v)-13 DIST Cust'!P485-'FR-16(7)(v)-14 TOTAL CLASS'!P485","v":0},{"$f":"'FR-16(7)(v)-3 PROD Demand'!Q485+'FR-16(7)(v)-4 PROD Energy'!Q485+'FR-16(7)(v)-5 PROD Cust'!Q485+'FR-16(7)(v)-7 TRANS Demand'!Q485+'FR-16(7)(v)-8 TRANS Energy'!Q485+'FR-16(7)(v)-9 TRANS Cust'!Q485+'FR-16(7)(v)-11 DIST Demand'!Q485+'FR-16(7)(v)-12 DIST Energy'!Q485+'FR-16(7)(v)-13 DIST Cust'!Q485-'FR-16(7)(v)-14 TOTAL CLASS'!Q485","v":0},0,0]
[42,null,{"$f":"'FR-16(7)(v)-1 Functional'!C486","v":"LOAD DISPATCH"},"A300",null,{"$f":"'FR-16(7)(v)-3 PROD Demand'!F486+'FR-16(7)(v)-4 PROD Energy'!F486+'FR-16(7)(v)-5 PROD Cust'!F486+'FR-16(7)(v)-7 TRANS Demand'!F486+'FR-16(7)(v)-8 TRANS Energy'!F486+'FR-16(7)(v)-9 TRANS Cust'!F486+'FR-16(7)(v)-11 DIST Demand'!F486+'FR-16(7)(v)-12 DIST Energy'!F486+'FR-16(7)(v)-13 DIST Cust'!F486-'FR-16(7)(v)-14 TOTAL CLASS'!F486","v":0},{"$f":"'FR-16(7)(v)-3 PROD Demand'!G486+'FR-16(7)(v)-4 PROD Energy'!G486+'FR-16(7)(v)-5 PROD Cust'!G486+'FR-16(7)(v)-7 TRANS Demand'!G486+'FR-16(7)(v)-8 TRANS Energy'!G486+'FR-16(7)(v)-9 TRANS Cust'!G486+'FR-16(7)(v)-11 DIST Demand'!G486+'FR-16(7)(v)-12 DIST Energy'!G486+'FR-16(7)(v)-13 DIST Cust'!G486-'FR-16(7)(v)-14 TOTAL CLASS'!G486","v":0},{"$f":"'FR-16(7)(v)-3 PROD Demand'!H486+'FR-16(7)(v)-4 PROD Energy'!H486+'FR-16(7)(v)-5 PROD Cust'!H486+'FR-16(7)(v)-7 TRANS Demand'!H486+'FR-16(7)(v)-8 TRANS Energy'!H486+'FR-16(7)(v)-9 TRANS Cust'!H486+'FR-16(7)(v)-11 DIST Demand'!H486+'FR-16(7)(v)-12 DIST Energy'!H486+'FR-16(7)(v)-13 DIST Cust'!H486-'FR-16(7)(v)-14 TOTAL CLASS'!H486","v":0},{"$f":"'FR-16(7)(v)-3 PROD Demand'!I486+'FR-16(7)(v)-4 PROD Energy'!I486+'FR-16(7)(v)-5 PROD Cust'!I486+'FR-16(7)(v)-7 TRANS Demand'!I486+'FR-16(7)(v)-8 TRANS Energy'!I486+'FR-16(7)(v)-9 TRANS Cust'!I486+'FR-16(7)(v)-11 DIST Demand'!I486+'FR-16(7)(v)-12 DIST Energy'!I486+'FR-16(7)(v)-13 DIST Cust'!I486-'FR-16(7)(v)-14 TOTAL CLASS'!I486","v":0},{"$f":"'FR-16(7)(v)-3 PROD Demand'!J486+'FR-16(7)(v)-4 PROD Energy'!J486+'FR-16(7)(v)-5 PROD Cust'!J486+'FR-16(7)(v)-7 TRANS Demand'!J486+'FR-16(7)(v)-8 TRANS Energy'!J486+'FR-16(7)(v)-9 TRANS Cust'!J486+'FR-16(7)(v)-11 DIST Demand'!J486+'FR-16(7)(v)-12 DIST Energy'!J486+'FR-16(7)(v)-13 DIST Cust'!J486-'FR-16(7)(v)-14 TOTAL CLASS'!J486","v":0},{"$f":"'FR-16(7)(v)-3 PROD Demand'!K486+'FR-16(7)(v)-4 PROD Energy'!K486+'FR-16(7)(v)-5 PROD Cust'!K486+'FR-16(7)(v)-7 TRANS Demand'!K486+'FR-16(7)(v)-8 TRANS Energy'!K486+'FR-16(7)(v)-9 TRANS Cust'!K486+'FR-16(7)(v)-11 DIST Demand'!K486+'FR-16(7)(v)-12 DIST Energy'!K486+'FR-16(7)(v)-13 DIST Cust'!K486-'FR-16(7)(v)-14 TOTAL CLASS'!K486","v":0},{"$f":"'FR-16(7)(v)-3 PROD Demand'!L486+'FR-16(7)(v)-4 PROD Energy'!L486+'FR-16(7)(v)-5 PROD Cust'!L486+'FR-16(7)(v)-7 TRANS Demand'!L486+'FR-16(7)(v)-8 TRANS Energy'!L486+'FR-16(7)(v)-9 TRANS Cust'!L486+'FR-16(7)(v)-11 DIST Demand'!L486+'FR-16(7)(v)-12 DIST Energy'!L486+'FR-16(7)(v)-13 DIST Cust'!L486-'FR-16(7)(v)-14 TOTAL CLASS'!L486","v":0},{"$f":"'FR-16(7)(v)-3 PROD Demand'!M486+'FR-16(7)(v)-4 PROD Energy'!M486+'FR-16(7)(v)-5 PROD Cust'!M486+'FR-16(7)(v)-7 TRANS Demand'!M486+'FR-16(7)(v)-8 TRANS Energy'!M486+'FR-16(7)(v)-9 TRANS Cust'!M486+'FR-16(7)(v)-11 DIST Demand'!M486+'FR-16(7)(v)-12 DIST Energy'!M486+'FR-16(7)(v)-13 DIST Cust'!M486-'FR-16(7)(v)-14 TOTAL CLASS'!M486","v":0},{"$f":"'FR-16(7)(v)-3 PROD Demand'!N486+'FR-16(7)(v)-4 PROD Energy'!N486+'FR-16(7)(v)-5 PROD Cust'!N486+'FR-16(7)(v)-7 TRANS Demand'!N486+'FR-16(7)(v)-8 TRANS Energy'!N486+'FR-16(7)(v)-9 TRANS Cust'!N486+'FR-16(7)(v)-11 DIST Demand'!N486+'FR-16(7)(v)-12 DIST Energy'!N486+'FR-16(7)(v)-13 DIST Cust'!N486-'FR-16(7)(v)-14 TOTAL CLASS'!N486","v":0},{"$f":"'FR-16(7)(v)-3 PROD Demand'!O486+'FR-16(7)(v)-4 PROD Energy'!O486+'FR-16(7)(v)-5 PROD Cust'!O486+'FR-16(7)(v)-7 TRANS Demand'!O486+'FR-16(7)(v)-8 TRANS Energy'!O486+'FR-16(7)(v)-9 TRANS Cust'!O486+'FR-16(7)(v)-11 DIST Demand'!O486+'FR-16(7)(v)-12 DIST Energy'!O486+'FR-16(7)(v)-13 DIST Cust'!O486-'FR-16(7)(v)-14 TOTAL CLASS'!O486","v":0},{"$f":"'FR-16(7)(v)-3 PROD Demand'!P486+'FR-16(7)(v)-4 PROD Energy'!P486+'FR-16(7)(v)-5 PROD Cust'!P486+'FR-16(7)(v)-7 TRANS Demand'!P486+'FR-16(7)(v)-8 TRANS Energy'!P486+'FR-16(7)(v)-9 TRANS Cust'!P486+'FR-16(7)(v)-11 DIST Demand'!P486+'FR-16(7)(v)-12 DIST Energy'!P486+'FR-16(7)(v)-13 DIST Cust'!P486-'FR-16(7)(v)-14 TOTAL CLASS'!P486","v":0},{"$f":"'FR-16(7)(v)-3 PROD Demand'!Q486+'FR-16(7)(v)-4 PROD Energy'!Q486+'FR-16(7)(v)-5 PROD Cust'!Q486+'FR-16(7)(v)-7 TRANS Demand'!Q486+'FR-16(7)(v)-8 TRANS Energy'!Q486+'FR-16(7)(v)-9 TRANS Cust'!Q486+'FR-16(7)(v)-11 DIST Demand'!Q486+'FR-16(7)(v)-12 DIST Energy'!Q486+'FR-16(7)(v)-13 DIST Cust'!Q486-'FR-16(7)(v)-14 TOTAL CLASS'!Q486","v":0},0,0]
[43,null,{"$f":"'FR-16(7)(v)-1 Functional'!C487","v":"METERS"},"A300",null,{"$f":"'FR-16(7)(v)-3 PROD Demand'!F487+'FR-16(7)(v)-4 PROD Energy'!F487+'FR-16(7)(v)-5 PROD Cust'!F487+'FR-16(7)(v)-7 TRANS Demand'!F487+'FR-16(7)(v)-8 TRANS Energy'!F487+'FR-16(7)(v)-9 TRANS Cust'!F487+'FR-16(7)(v)-11 DIST Demand'!F487+'FR-16(7)(v)-12 DIST Energy'!F487+'FR-16(7)(v)-13 DIST Cust'!F487-'FR-16(7)(v)-14 TOTAL CLASS'!F487","v":0},{"$f":"'FR-16(7)(v)-3 PROD Demand'!G487+'FR-16(7)(v)-4 PROD Energy'!G487+'FR-16(7)(v)-5 PROD Cust'!G487+'FR-16(7)(v)-7 TRANS Demand'!G487+'FR-16(7)(v)-8 TRANS Energy'!G487+'FR-16(7)(v)-9 TRANS Cust'!G487+'FR-16(7)(v)-11 DIST Demand'!G487+'FR-16(7)(v)-12 DIST Energy'!G487+'FR-16(7)(v)-13 DIST Cust'!G487-'FR-16(7)(v)-14 TOTAL CLASS'!G487","v":0},{"$f":"'FR-16(7)(v)-3 PROD Demand'!H487+'FR-16(7)(v)-4 PROD Energy'!H487+'FR-16(7)(v)-5 PROD Cust'!H487+'FR-16(7)(v)-7 TRANS Demand'!H487+'FR-16(7)(v)-8 TRANS Energy'!H487+'FR-16(7)(v)-9 TRANS Cust'!H487+'FR-16(7)(v)-11 DIST Demand'!H487+'FR-16(7)(v)-12 DIST Energy'!H487+'FR-16(7)(v)-13 DIST Cust'!H487-'FR-16(7)(v)-14 TOTAL CLASS'!H487","v":0},{"$f":"'FR-16(7)(v)-3 PROD Demand'!I487+'FR-16(7)(v)-4 PROD Energy'!I487+'FR-16(7)(v)-5 PROD Cust'!I487+'FR-16(7)(v)-7 TRANS Demand'!I487+'FR-16(7)(v)-8 TRANS Energy'!I487+'FR-16(7)(v)-9 TRANS Cust'!I487+'FR-16(7)(v)-11 DIST Demand'!I487+'FR-16(7)(v)-12 DIST Energy'!I487+'FR-16(7)(v)-13 DIST Cust'!I487-'FR-16(7)(v)-14 TOTAL CLASS'!I487","v":0},{"$f":"'FR-16(7)(v)-3 PROD Demand'!J487+'FR-16(7)(v)-4 PROD Energy'!J487+'FR-16(7)(v)-5 PROD Cust'!J487+'FR-16(7)(v)-7 TRANS Demand'!J487+'FR-16(7)(v)-8 TRANS Energy'!J487+'FR-16(7)(v)-9 TRANS Cust'!J487+'FR-16(7)(v)-11 DIST Demand'!J487+'FR-16(7)(v)-12 DIST Energy'!J487+'FR-16(7)(v)-13 DIST Cust'!J487-'FR-16(7)(v)-14 TOTAL CLASS'!J487","v":0},{"$f":"'FR-16(7)(v)-3 PROD Demand'!K487+'FR-16(7)(v)-4 PROD Energy'!K487+'FR-16(7)(v)-5 PROD Cust'!K487+'FR-16(7)(v)-7 TRANS Demand'!K487+'FR-16(7)(v)-8 TRANS Energy'!K487+'FR-16(7)(v)-9 TRANS Cust'!K487+'FR-16(7)(v)-11 DIST Demand'!K487+'FR-16(7)(v)-12 DIST Energy'!K487+'FR-16(7)(v)-13 DIST Cust'!K487-'FR-16(7)(v)-14 TOTAL CLASS'!K487","v":0},{"$f":"'FR-16(7)(v)-3 PROD Demand'!L487+'FR-16(7)(v)-4 PROD Energy'!L487+'FR-16(7)(v)-5 PROD Cust'!L487+'FR-16(7)(v)-7 TRANS Demand'!L487+'FR-16(7)(v)-8 TRANS Energy'!L487+'FR-16(7)(v)-9 TRANS Cust'!L487+'FR-16(7)(v)-11 DIST Demand'!L487+'FR-16(7)(v)-12 DIST Energy'!L487+'FR-16(7)(v)-13 DIST Cust'!L487-'FR-16(7)(v)-14 TOTAL CLASS'!L487","v":0},{"$f":"'FR-16(7)(v)-3 PROD Demand'!M487+'FR-16(7)(v)-4 PROD Energy'!M487+'FR-16(7)(v)-5 PROD Cust'!M487+'FR-16(7)(v)-7 TRANS Demand'!M487+'FR-16(7)(v)-8 TRANS Energy'!M487+'FR-16(7)(v)-9 TRANS Cust'!M487+'FR-16(7)(v)-11 DIST Demand'!M487+'FR-16(7)(v)-12 DIST Energy'!M487+'FR-16(7)(v)-13 DIST Cust'!M487-'FR-16(7)(v)-14 TOTAL CLASS'!M487","v":0},{"$f":"'FR-16(7)(v)-3 PROD Demand'!N487+'FR-16(7)(v)-4 PROD Energy'!N487+'FR-16(7)(v)-5 PROD Cust'!N487+'FR-16(7)(v)-7 TRANS Demand'!N487+'FR-16(7)(v)-8 TRANS Energy'!N487+'FR-16(7)(v)-9 TRANS Cust'!N487+'FR-16(7)(v)-11 DIST Demand'!N487+'FR-16(7)(v)-12 DIST Energy'!N487+'FR-16(7)(v)-13 DIST Cust'!N487-'FR-16(7)(v)-14 TOTAL CLASS'!N487","v":0},{"$f":"'FR-16(7)(v)-3 PROD Demand'!O487+'FR-16(7)(v)-4 PROD Energy'!O487+'FR-16(7)(v)-5 PROD Cust'!O487+'FR-16(7)(v)-7 TRANS Demand'!O487+'FR-16(7)(v)-8 TRANS Energy'!O487+'FR-16(7)(v)-9 TRANS Cust'!O487+'FR-16(7)(v)-11 DIST Demand'!O487+'FR-16(7)(v)-12 DIST Energy'!O487+'FR-16(7)(v)-13 DIST Cust'!O487-'FR-16(7)(v)-14 TOTAL CLASS'!O487","v":0},{"$f":"'FR-16(7)(v)-3 PROD Demand'!P487+'FR-16(7)(v)-4 PROD Energy'!P487+'FR-16(7)(v)-5 PROD Cust'!P487+'FR-16(7)(v)-7 TRANS Demand'!P487+'FR-16(7)(v)-8 TRANS Energy'!P487+'FR-16(7)(v)-9 TRANS Cust'!P487+'FR-16(7)(v)-11 DIST Demand'!P487+'FR-16(7)(v)-12 DIST Energy'!P487+'FR-16(7)(v)-13 DIST Cust'!P487-'FR-16(7)(v)-14 TOTAL CLASS'!P487","v":0},{"$f":"'FR-16(7)(v)-3 PROD Demand'!Q487+'FR-16(7)(v)-4 PROD Energy'!Q487+'FR-16(7)(v)-5 PROD Cust'!Q487+'FR-16(7)(v)-7 TRANS Demand'!Q487+'FR-16(7)(v)-8 TRANS Energy'!Q487+'FR-16(7)(v)-9 TRANS Cust'!Q487+'FR-16(7)(v)-11 DIST Demand'!Q487+'FR-16(7)(v)-12 DIST Energy'!Q487+'FR-16(7)(v)-13 DIST Cust'!Q487-'FR-16(7)(v)-14 TOTAL CLASS'!Q487","v":0},0,0]
[44,null,{"$f":"'FR-16(7)(v)-1 Functional'!C488","v":"STREET LIGHTING AND SIGNAL SYSTEMS"},"A300",null,{"$f":"'FR-16(7)(v)-3 PROD Demand'!F488+'FR-16(7)(v)-4 PROD Energy'!F488+'FR-16(7)(v)-5 PROD Cust'!F488+'FR-16(7)(v)-7 TRANS Demand'!F488+'FR-16(7)(v)-8 TRANS Energy'!F488+'FR-16(7)(v)-9 TRANS Cust'!F488+'FR-16(7)(v)-11 DIST Demand'!F488+'FR-16(7)(v)-12 DIST Energy'!F488+'FR-16(7)(v)-13 DIST Cust'!F488-'FR-16(7)(v)-14 TOTAL CLASS'!F488","v":0},{"$f":"'FR-16(7)(v)-3 PROD Demand'!G488+'FR-16(7)(v)-4 PROD Energy'!G488+'FR-16(7)(v)-5 PROD Cust'!G488+'FR-16(7)(v)-7 TRANS Demand'!G488+'FR-16(7)(v)-8 TRANS Energy'!G488+'FR-16(7)(v)-9 TRANS Cust'!G488+'FR-16(7)(v)-11 DIST Demand'!G488+'FR-16(7)(v)-12 DIST Energy'!G488+'FR-16(7)(v)-13 DIST Cust'!G488-'FR-16(7)(v)-14 TOTAL CLASS'!G488","v":0},{"$f":"'FR-16(7)(v)-3 PROD Demand'!H488+'FR-16(7)(v)-4 PROD Energy'!H488+'FR-16(7)(v)-5 PROD Cust'!H488+'FR-16(7)(v)-7 TRANS Demand'!H488+'FR-16(7)(v)-8 TRANS Energy'!H488+'FR-16(7)(v)-9 TRANS Cust'!H488+'FR-16(7)(v)-11 DIST Demand'!H488+'FR-16(7)(v)-12 DIST Energy'!H488+'FR-16(7)(v)-13 DIST Cust'!H488-'FR-16(7)(v)-14 TOTAL CLASS'!H488","v":0},{"$f":"'FR-16(7)(v)-3 PROD Demand'!I488+'FR-16(7)(v)-4 PROD Energy'!I488+'FR-16(7)(v)-5 PROD Cust'!I488+'FR-16(7)(v)-7 TRANS Demand'!I488+'FR-16(7)(v)-8 TRANS Energy'!I488+'FR-16(7)(v)-9 TRANS Cust'!I488+'FR-16(7)(v)-11 DIST Demand'!I488+'FR-16(7)(v)-12 DIST Energy'!I488+'FR-16(7)(v)-13 DIST Cust'!I488-'FR-16(7)(v)-14 TOTAL CLASS'!I488","v":0},{"$f":"'FR-16(7)(v)-3 PROD Demand'!J488+'FR-16(7)(v)-4 PROD Energy'!J488+'FR-16(7)(v)-5 PROD Cust'!J488+'FR-16(7)(v)-7 TRANS Demand'!J488+'FR-16(7)(v)-8 TRANS Energy'!J488+'FR-16(7)(v)-9 TRANS Cust'!J488+'FR-16(7)(v)-11 DIST Demand'!J488+'FR-16(7)(v)-12 DIST Energy'!J488+'FR-16(7)(v)-13 DIST Cust'!J488-'FR-16(7)(v)-14 TOTAL CLASS'!J488","v":0},{"$f":"'FR-16(7)(v)-3 PROD Demand'!K488+'FR-16(7)(v)-4 PROD Energy'!K488+'FR-16(7)(v)-5 PROD Cust'!K488+'FR-16(7)(v)-7 TRANS Demand'!K488+'FR-16(7)(v)-8 TRANS Energy'!K488+'FR-16(7)(v)-9 TRANS Cust'!K488+'FR-16(7)(v)-11 DIST Demand'!K488+'FR-16(7)(v)-12 DIST Energy'!K488+'FR-16(7)(v)-13 DIST Cust'!K488-'FR-16(7)(v)-14 TOTAL CLASS'!K488","v":0},{"$f":"'FR-16(7)(v)-3 PROD Demand'!L488+'FR-16(7)(v)-4 PROD Energy'!L488+'FR-16(7)(v)-5 PROD Cust'!L488+'FR-16(7)(v)-7 TRANS Demand'!L488+'FR-16(7)(v)-8 TRANS Energy'!L488+'FR-16(7)(v)-9 TRANS Cust'!L488+'FR-16(7)(v)-11 DIST Demand'!L488+'FR-16(7)(v)-12 DIST Energy'!L488+'FR-16(7)(v)-13 DIST Cust'!L488-'FR-16(7)(v)-14 TOTAL CLASS'!L488","v":0},{"$f":"'FR-16(7)(v)-3 PROD Demand'!M488+'FR-16(7)(v)-4 PROD Energy'!M488+'FR-16(7)(v)-5 PROD Cust'!M488+'FR-16(7)(v)-7 TRANS Demand'!M488+'FR-16(7)(v)-8 TRANS Energy'!M488+'FR-16(7)(v)-9 TRANS Cust'!M488+'FR-16(7)(v)-11 DIST Demand'!M488+'FR-16(7)(v)-12 DIST Energy'!M488+'FR-16(7)(v)-13 DIST Cust'!M488-'FR-16(7)(v)-14 TOTAL CLASS'!M488","v":0},{"$f":"'FR-16(7)(v)-3 PROD Demand'!N488+'FR-16(7)(v)-4 PROD Energy'!N488+'FR-16(7)(v)-5 PROD Cust'!N488+'FR-16(7)(v)-7 TRANS Demand'!N488+'FR-16(7)(v)-8 TRANS Energy'!N488+'FR-16(7)(v)-9 TRANS Cust'!N488+'FR-16(7)(v)-11 DIST Demand'!N488+'FR-16(7)(v)-12 DIST Energy'!N488+'FR-16(7)(v)-13 DIST Cust'!N488-'FR-16(7)(v)-14 TOTAL CLASS'!N488","v":0},{"$f":"'FR-16(7)(v)-3 PROD Demand'!O488+'FR-16(7)(v)-4 PROD Energy'!O488+'FR-16(7)(v)-5 PROD Cust'!O488+'FR-16(7)(v)-7 TRANS Demand'!O488+'FR-16(7)(v)-8 TRANS Energy'!O488+'FR-16(7)(v)-9 TRANS Cust'!O488+'FR-16(7)(v)-11 DIST Demand'!O488+'FR-16(7)(v)-12 DIST Energy'!O488+'FR-16(7)(v)-13 DIST Cust'!O488-'FR-16(7)(v)-14 TOTAL CLASS'!O488","v":0},{"$f":"'FR-16(7)(v)-3 PROD Demand'!P488+'FR-16(7)(v)-4 PROD Energy'!P488+'FR-16(7)(v)-5 PROD Cust'!P488+'FR-16(7)(v)-7 TRANS Demand'!P488+'FR-16(7)(v)-8 TRANS Energy'!P488+'FR-16(7)(v)-9 TRANS Cust'!P488+'FR-16(7)(v)-11 DIST Demand'!P488+'FR-16(7)(v)-12 DIST Energy'!P488+'FR-16(7)(v)-13 DIST Cust'!P488-'FR-16(7)(v)-14 TOTAL CLASS'!P488","v":0},{"$f":"'FR-16(7)(v)-3 PROD Demand'!Q488+'FR-16(7)(v)-4 PROD Energy'!Q488+'FR-16(7)(v)-5 PROD Cust'!Q488+'FR-16(7)(v)-7 TRANS Demand'!Q488+'FR-16(7)(v)-8 TRANS Energy'!Q488+'FR-16(7)(v)-9 TRANS Cust'!Q488+'FR-16(7)(v)-11 DIST Demand'!Q488+'FR-16(7)(v)-12 DIST Energy'!Q488+'FR-16(7)(v)-13 DIST Cust'!Q488-'FR-16(7)(v)-14 TOTAL CLASS'!Q488","v":0},0,0]
[45,null,{"$f":"'FR-16(7)(v)-1 Functional'!C489","v":"OTHER OPERATIONS"},"A300",null,{"$f":"'FR-16(7)(v)-3 PROD Demand'!F489+'FR-16(7)(v)-4 PROD Energy'!F489+'FR-16(7)(v)-5 PROD Cust'!F489+'FR-16(7)(v)-7 TRANS Demand'!F489+'FR-16(7)(v)-8 TRANS Energy'!F489+'FR-16(7)(v)-9 TRANS Cust'!F489+'FR-16(7)(v)-11 DIST Demand'!F489+'FR-16(7)(v)-12 DIST Energy'!F489+'FR-16(7)(v)-13 DIST Cust'!F489-'FR-16(7)(v)-14 TOTAL CLASS'!F489","v":0},{"$f":"'FR-16(7)(v)-3 PROD Demand'!G489+'FR-16(7)(v)-4 PROD Energy'!G489+'FR-16(7)(v)-5 PROD Cust'!G489+'FR-16(7)(v)-7 TRANS Demand'!G489+'FR-16(7)(v)-8 TRANS Energy'!G489+'FR-16(7)(v)-9 TRANS Cust'!G489+'FR-16(7)(v)-11 DIST Demand'!G489+'FR-16(7)(v)-12 DIST Energy'!G489+'FR-16(7)(v)-13 DIST Cust'!G489-'FR-16(7)(v)-14 TOTAL CLASS'!G489","v":0},{"$f":"'FR-16(7)(v)-3 PROD Demand'!H489+'FR-16(7)(v)-4 PROD Energy'!H489+'FR-16(7)(v)-5 PROD Cust'!H489+'FR-16(7)(v)-7 TRANS Demand'!H489+'FR-16(7)(v)-8 TRANS Energy'!H489+'FR-16(7)(v)-9 TRANS Cust'!H489+'FR-16(7)(v)-11 DIST Demand'!H489+'FR-16(7)(v)-12 DIST Energy'!H489+'FR-16(7)(v)-13 DIST Cust'!H489-'FR-16(7)(v)-14 TOTAL CLASS'!H489","v":0},{"$f":"'FR-16(7)(v)-3 PROD Demand'!I489+'FR-16(7)(v)-4 PROD Energy'!I489+'FR-16(7)(v)-5 PROD Cust'!I489+'FR-16(7)(v)-7 TRANS Demand'!I489+'FR-16(7)(v)-8 TRANS Energy'!I489+'FR-16(7)(v)-9 TRANS Cust'!I489+'FR-16(7)(v)-11 DIST Demand'!I489+'FR-16(7)(v)-12 DIST Energy'!I489+'FR-16(7)(v)-13 DIST Cust'!I489-'FR-16(7)(v)-14 TOTAL CLASS'!I489","v":0},{"$f":"'FR-16(7)(v)-3 PROD Demand'!J489+'FR-16(7)(v)-4 PROD Energy'!J489+'FR-16(7)(v)-5 PROD Cust'!J489+'FR-16(7)(v)-7 TRANS Demand'!J489+'FR-16(7)(v)-8 TRANS Energy'!J489+'FR-16(7)(v)-9 TRANS Cust'!J489+'FR-16(7)(v)-11 DIST Demand'!J489+'FR-16(7)(v)-12 DIST Energy'!J489+'FR-16(7)(v)-13 DIST Cust'!J489-'FR-16(7)(v)-14 TOTAL CLASS'!J489","v":0},{"$f":"'FR-16(7)(v)-3 PROD Demand'!K489+'FR-16(7)(v)-4 PROD Energy'!K489+'FR-16(7)(v)-5 PROD Cust'!K489+'FR-16(7)(v)-7 TRANS Demand'!K489+'FR-16(7)(v)-8 TRANS Energy'!K489+'FR-16(7)(v)-9 TRANS Cust'!K489+'FR-16(7)(v)-11 DIST Demand'!K489+'FR-16(7)(v)-12 DIST Energy'!K489+'FR-16(7)(v)-13 DIST Cust'!K489-'FR-16(7)(v)-14 TOTAL CLASS'!K489","v":0},{"$f":"'FR-16(7)(v)-3 PROD Demand'!L489+'FR-16(7)(v)-4 PROD Energy'!L489+'FR-16(7)(v)-5 PROD Cust'!L489+'FR-16(7)(v)-7 TRANS Demand'!L489+'FR-16(7)(v)-8 TRANS Energy'!L489+'FR-16(7)(v)-9 TRANS Cust'!L489+'FR-16(7)(v)-11 DIST Demand'!L489+'FR-16(7)(v)-12 DIST Energy'!L489+'FR-16(7)(v)-13 DIST Cust'!L489-'FR-16(7)(v)-14 TOTAL CLASS'!L489","v":0},{"$f":"'FR-16(7)(v)-3 PROD Demand'!M489+'FR-16(7)(v)-4 PROD Energy'!M489+'FR-16(7)(v)-5 PROD Cust'!M489+'FR-16(7)(v)-7 TRANS Demand'!M489+'FR-16(7)(v)-8 TRANS Energy'!M489+'FR-16(7)(v)-9 TRANS Cust'!M489+'FR-16(7)(v)-11 DIST Demand'!M489+'FR-16(7)(v)-12 DIST Energy'!M489+'FR-16(7)(v)-13 DIST Cust'!M489-'FR-16(7)(v)-14 TOTAL CLASS'!M489","v":0},{"$f":"'FR-16(7)(v)-3 PROD Demand'!N489+'FR-16(7)(v)-4 PROD Energy'!N489+'FR-16(7)(v)-5 PROD Cust'!N489+'FR-16(7)(v)-7 TRANS Demand'!N489+'FR-16(7)(v)-8 TRANS Energy'!N489+'FR-16(7)(v)-9 TRANS Cust'!N489+'FR-16(7)(v)-11 DIST Demand'!N489+'FR-16(7)(v)-12 DIST Energy'!N489+'FR-16(7)(v)-13 DIST Cust'!N489-'FR-16(7)(v)-14 TOTAL CLASS'!N489","v":0},{"$f":"'FR-16(7)(v)-3 PROD Demand'!O489+'FR-16(7)(v)-4 PROD Energy'!O489+'FR-16(7)(v)-5 PROD Cust'!O489+'FR-16(7)(v)-7 TRANS Demand'!O489+'FR-16(7)(v)-8 TRANS Energy'!O489+'FR-16(7)(v)-9 TRANS Cust'!O489+'FR-16(7)(v)-11 DIST Demand'!O489+'FR-16(7)(v)-12 DIST Energy'!O489+'FR-16(7)(v)-13 DIST Cust'!O489-'FR-16(7)(v)-14 TOTAL CLASS'!O489","v":0},{"$f":"'FR-16(7)(v)-3 PROD Demand'!P489+'FR-16(7)(v)-4 PROD Energy'!P489+'FR-16(7)(v)-5 PROD Cust'!P489+'FR-16(7)(v)-7 TRANS Demand'!P489+'FR-16(7)(v)-8 TRANS Energy'!P489+'FR-16(7)(v)-9 TRANS Cust'!P489+'FR-16(7)(v)-11 DIST Demand'!P489+'FR-16(7)(v)-12 DIST Energy'!P489+'FR-16(7)(v)-13 DIST Cust'!P489-'FR-16(7)(v)-14 TOTAL CLASS'!P489","v":0},{"$f":"'FR-16(7)(v)-3 PROD Demand'!Q489+'FR-16(7)(v)-4 PROD Energy'!Q489+'FR-16(7)(v)-5 PROD Cust'!Q489+'FR-16(7)(v)-7 TRANS Demand'!Q489+'FR-16(7)(v)-8 TRANS Energy'!Q489+'FR-16(7)(v)-9 TRANS Cust'!Q489+'FR-16(7)(v)-11 DIST Demand'!Q489+'FR-16(7)(v)-12 DIST Energy'!Q489+'FR-16(7)(v)-13 DIST Cust'!Q489-'FR-16(7)(v)-14 TOTAL CLASS'!Q489","v":0},0,0]
[46,null,{"$f":"'FR-16(7)(v)-1 Functional'!C490","v":"MISCELLANEOUS EXPENSES ADJUSTMENT"},"A300",null,{"$f":"'FR-16(7)(v)-3 PROD Demand'!F490+'FR-16(7)(v)-4 PROD Energy'!F490+'FR-16(7)(v)-5 PROD Cust'!F490+'FR-16(7)(v)-7 TRANS Demand'!F490+'FR-16(7)(v)-8 TRANS Energy'!F490+'FR-16(7)(v)-9 TRANS Cust'!F490+'FR-16(7)(v)-11 DIST Demand'!F490+'FR-16(7)(v)-12 DIST Energy'!F490+'FR-16(7)(v)-13 DIST Cust'!F490-'FR-16(7)(v)-14 TOTAL CLASS'!F490","v":0},{"$f":"'FR-16(7)(v)-3 PROD Demand'!G490+'FR-16(7)(v)-4 PROD Energy'!G490+'FR-16(7)(v)-5 PROD Cust'!G490+'FR-16(7)(v)-7 TRANS Demand'!G490+'FR-16(7)(v)-8 TRANS Energy'!G490+'FR-16(7)(v)-9 TRANS Cust'!G490+'FR-16(7)(v)-11 DIST Demand'!G490+'FR-16(7)(v)-12 DIST Energy'!G490+'FR-16(7)(v)-13 DIST Cust'!G490-'FR-16(7)(v)-14 TOTAL CLASS'!G490","v":0},{"$f":"'FR-16(7)(v)-3 PROD Demand'!H490+'FR-16(7)(v)-4 PROD Energy'!H490+'FR-16(7)(v)-5 PROD Cust'!H490+'FR-16(7)(v)-7 TRANS Demand'!H490+'FR-16(7)(v)-8 TRANS Energy'!H490+'FR-16(7)(v)-9 TRANS Cust'!H490+'FR-16(7)(v)-11 DIST Demand'!H490+'FR-16(7)(v)-12 DIST Energy'!H490+'FR-16(7)(v)-13 DIST Cust'!H490-'FR-16(7)(v)-14 TOTAL CLASS'!H490","v":0},{"$f":"'FR-16(7)(v)-3 PROD Demand'!I490+'FR-16(7)(v)-4 PROD Energy'!I490+'FR-16(7)(v)-5 PROD Cust'!I490+'FR-16(7)(v)-7 TRANS Demand'!I490+'FR-16(7)(v)-8 TRANS Energy'!I490+'FR-16(7)(v)-9 TRANS Cust'!I490+'FR-16(7)(v)-11 DIST Demand'!I490+'FR-16(7)(v)-12 DIST Energy'!I490+'FR-16(7)(v)-13 DIST Cust'!I490-'FR-16(7)(v)-14 TOTAL CLASS'!I490","v":0},{"$f":"'FR-16(7)(v)-3 PROD Demand'!J490+'FR-16(7)(v)-4 PROD Energy'!J490+'FR-16(7)(v)-5 PROD Cust'!J490+'FR-16(7)(v)-7 TRANS Demand'!J490+'FR-16(7)(v)-8 TRANS Energy'!J490+'FR-16(7)(v)-9 TRANS Cust'!J490+'FR-16(7)(v)-11 DIST Demand'!J490+'FR-16(7)(v)-12 DIST Energy'!J490+'FR-16(7)(v)-13 DIST Cust'!J490-'FR-16(7)(v)-14 TOTAL CLASS'!J490","v":0},{"$f":"'FR-16(7)(v)-3 PROD Demand'!K490+'FR-16(7)(v)-4 PROD Energy'!K490+'FR-16(7)(v)-5 PROD Cust'!K490+'FR-16(7)(v)-7 TRANS Demand'!K490+'FR-16(7)(v)-8 TRANS Energy'!K490+'FR-16(7)(v)-9 TRANS Cust'!K490+'FR-16(7)(v)-11 DIST Demand'!K490+'FR-16(7)(v)-12 DIST Energy'!K490+'FR-16(7)(v)-13 DIST Cust'!K490-'FR-16(7)(v)-14 TOTAL CLASS'!K490","v":0},{"$f":"'FR-16(7)(v)-3 PROD Demand'!L490+'FR-16(7)(v)-4 PROD Energy'!L490+'FR-16(7)(v)-5 PROD Cust'!L490+'FR-16(7)(v)-7 TRANS Demand'!L490+'FR-16(7)(v)-8 TRANS Energy'!L490+'FR-16(7)(v)-9 TRANS Cust'!L490+'FR-16(7)(v)-11 DIST Demand'!L490+'FR-16(7)(v)-12 DIST Energy'!L490+'FR-16(7)(v)-13 DIST Cust'!L490-'FR-16(7)(v)-14 TOTAL CLASS'!L490","v":0},{"$f":"'FR-16(7)(v)-3 PROD Demand'!M490+'FR-16(7)(v)-4 PROD Energy'!M490+'FR-16(7)(v)-5 PROD Cust'!M490+'FR-16(7)(v)-7 TRANS Demand'!M490+'FR-16(7)(v)-8 TRANS Energy'!M490+'FR-16(7)(v)-9 TRANS Cust'!M490+'FR-16(7)(v)-11 DIST Demand'!M490+'FR-16(7)(v)-12 DIST Energy'!M490+'FR-16(7)(v)-13 DIST Cust'!M490-'FR-16(7)(v)-14 TOTAL CLASS'!M490","v":0},{"$f":"'FR-16(7)(v)-3 PROD Demand'!N490+'FR-16(7)(v)-4 PROD Energy'!N490+'FR-16(7)(v)-5 PROD Cust'!N490+'FR-16(7)(v)-7 TRANS Demand'!N490+'FR-16(7)(v)-8 TRANS Energy'!N490+'FR-16(7)(v)-9 TRANS Cust'!N490+'FR-16(7)(v)-11 DIST Demand'!N490+'FR-16(7)(v)-12 DIST Energy'!N490+'FR-16(7)(v)-13 DIST Cust'!N490-'FR-16(7)(v)-14 TOTAL CLASS'!N490","v":0},{"$f":"'FR-16(7)(v)-3 PROD Demand'!O490+'FR-16(7)(v)-4 PROD Energy'!O490+'FR-16(7)(v)-5 PROD Cust'!O490+'FR-16(7)(v)-7 TRANS Demand'!O490+'FR-16(7)(v)-8 TRANS Energy'!O490+'FR-16(7)(v)-9 TRANS Cust'!O490+'FR-16(7)(v)-11 DIST Demand'!O490+'FR-16(7)(v)-12 DIST Energy'!O490+'FR-16(7)(v)-13 DIST Cust'!O490-'FR-16(7)(v)-14 TOTAL CLASS'!O490","v":0},{"$f":"'FR-16(7)(v)-3 PROD Demand'!P490+'FR-16(7)(v)-4 PROD Energy'!P490+'FR-16(7)(v)-5 PROD Cust'!P490+'FR-16(7)(v)-7 TRANS Demand'!P490+'FR-16(7)(v)-8 TRANS Energy'!P490+'FR-16(7)(v)-9 TRANS Cust'!P490+'FR-16(7)(v)-11 DIST Demand'!P490+'FR-16(7)(v)-12 DIST Energy'!P490+'FR-16(7)(v)-13 DIST Cust'!P490-'FR-16(7)(v)-14 TOTAL CLASS'!P490","v":0},{"$f":"'FR-16(7)(v)-3 PROD Demand'!Q490+'FR-16(7)(v)-4 PROD Energy'!Q490+'FR-16(7)(v)-5 PROD Cust'!Q490+'FR-16(7)(v)-7 TRANS Demand'!Q490+'FR-16(7)(v)-8 TRANS Energy'!Q490+'FR-16(7)(v)-9 TRANS Cust'!Q490+'FR-16(7)(v)-11 DIST Demand'!Q490+'FR-16(7)(v)-12 DIST Energy'!Q490+'FR-16(7)(v)-13 DIST Cust'!Q490-'FR-16(7)(v)-14 TOTAL CLASS'!Q490","v":0},0,0]
[47,null,{"$f":"'FR-16(7)(v)-1 Functional'!C491","v":"AFFILIATED COMPANY RENTS ADJUSTMENT"},"A300",null,{"$f":"'FR-16(7)(v)-3 PROD Demand'!F491+'FR-16(7)(v)-4 PROD Energy'!F491+'FR-16(7)(v)-5 PROD Cust'!F491+'FR-16(7)(v)-7 TRANS Demand'!F491+'FR-16(7)(v)-8 TRANS Energy'!F491+'FR-16(7)(v)-9 TRANS Cust'!F491+'FR-16(7)(v)-11 DIST Demand'!F491+'FR-16(7)(v)-12 DIST Energy'!F491+'FR-16(7)(v)-13 DIST Cust'!F491-'FR-16(7)(v)-14 TOTAL CLASS'!F491","v":0},{"$f":"'FR-16(7)(v)-3 PROD Demand'!G491+'FR-16(7)(v)-4 PROD Energy'!G491+'FR-16(7)(v)-5 PROD Cust'!G491+'FR-16(7)(v)-7 TRANS Demand'!G491+'FR-16(7)(v)-8 TRANS Energy'!G491+'FR-16(7)(v)-9 TRANS Cust'!G491+'FR-16(7)(v)-11 DIST Demand'!G491+'FR-16(7)(v)-12 DIST Energy'!G491+'FR-16(7)(v)-13 DIST Cust'!G491-'FR-16(7)(v)-14 TOTAL CLASS'!G491","v":0},{"$f":"'FR-16(7)(v)-3 PROD Demand'!H491+'FR-16(7)(v)-4 PROD Energy'!H491+'FR-16(7)(v)-5 PROD Cust'!H491+'FR-16(7)(v)-7 TRANS Demand'!H491+'FR-16(7)(v)-8 TRANS Energy'!H491+'FR-16(7)(v)-9 TRANS Cust'!H491+'FR-16(7)(v)-11 DIST Demand'!H491+'FR-16(7)(v)-12 DIST Energy'!H491+'FR-16(7)(v)-13 DIST Cust'!H491-'FR-16(7)(v)-14 TOTAL CLASS'!H491","v":0},{"$f":"'FR-16(7)(v)-3 PROD Demand'!I491+'FR-16(7)(v)-4 PROD Energy'!I491+'FR-16(7)(v)-5 PROD Cust'!I491+'FR-16(7)(v)-7 TRANS Demand'!I491+'FR-16(7)(v)-8 TRANS Energy'!I491+'FR-16(7)(v)-9 TRANS Cust'!I491+'FR-16(7)(v)-11 DIST Demand'!I491+'FR-16(7)(v)-12 DIST Energy'!I491+'FR-16(7)(v)-13 DIST Cust'!I491-'FR-16(7)(v)-14 TOTAL CLASS'!I491","v":0},{"$f":"'FR-16(7)(v)-3 PROD Demand'!J491+'FR-16(7)(v)-4 PROD Energy'!J491+'FR-16(7)(v)-5 PROD Cust'!J491+'FR-16(7)(v)-7 TRANS Demand'!J491+'FR-16(7)(v)-8 TRANS Energy'!J491+'FR-16(7)(v)-9 TRANS Cust'!J491+'FR-16(7)(v)-11 DIST Demand'!J491+'FR-16(7)(v)-12 DIST Energy'!J491+'FR-16(7)(v)-13 DIST Cust'!J491-'FR-16(7)(v)-14 TOTAL CLASS'!J491","v":0},{"$f":"'FR-16(7)(v)-3 PROD Demand'!K491+'FR-16(7)(v)-4 PROD Energy'!K491+'FR-16(7)(v)-5 PROD Cust'!K491+'FR-16(7)(v)-7 TRANS Demand'!K491+'FR-16(7)(v)-8 TRANS Energy'!K491+'FR-16(7)(v)-9 TRANS Cust'!K491+'FR-16(7)(v)-11 DIST Demand'!K491+'FR-16(7)(v)-12 DIST Energy'!K491+'FR-16(7)(v)-13 DIST Cust'!K491-'FR-16(7)(v)-14 TOTAL CLASS'!K491","v":0},{"$f":"'FR-16(7)(v)-3 PROD Demand'!L491+'FR-16(7)(v)-4 PROD Energy'!L491+'FR-16(7)(v)-5 PROD Cust'!L491+'FR-16(7)(v)-7 TRANS Demand'!L491+'FR-16(7)(v)-8 TRANS Energy'!L491+'FR-16(7)(v)-9 TRANS Cust'!L491+'FR-16(7)(v)-11 DIST Demand'!L491+'FR-16(7)(v)-12 DIST Energy'!L491+'FR-16(7)(v)-13 DIST Cust'!L491-'FR-16(7)(v)-14 TOTAL CLASS'!L491","v":0},{"$f":"'FR-16(7)(v)-3 PROD Demand'!M491+'FR-16(7)(v)-4 PROD Energy'!M491+'FR-16(7)(v)-5 PROD Cust'!M491+'FR-16(7)(v)-7 TRANS Demand'!M491+'FR-16(7)(v)-8 TRANS Energy'!M491+'FR-16(7)(v)-9 TRANS Cust'!M491+'FR-16(7)(v)-11 DIST Demand'!M491+'FR-16(7)(v)-12 DIST Energy'!M491+'FR-16(7)(v)-13 DIST Cust'!M491-'FR-16(7)(v)-14 TOTAL CLASS'!M491","v":0},{"$f":"'FR-16(7)(v)-3 PROD Demand'!N491+'FR-16(7)(v)-4 PROD Energy'!N491+'FR-16(7)(v)-5 PROD Cust'!N491+'FR-16(7)(v)-7 TRANS Demand'!N491+'FR-16(7)(v)-8 TRANS Energy'!N491+'FR-16(7)(v)-9 TRANS Cust'!N491+'FR-16(7)(v)-11 DIST Demand'!N491+'FR-16(7)(v)-12 DIST Energy'!N491+'FR-16(7)(v)-13 DIST Cust'!N491-'FR-16(7)(v)-14 TOTAL CLASS'!N491","v":0},{"$f":"'FR-16(7)(v)-3 PROD Demand'!O491+'FR-16(7)(v)-4 PROD Energy'!O491+'FR-16(7)(v)-5 PROD Cust'!O491+'FR-16(7)(v)-7 TRANS Demand'!O491+'FR-16(7)(v)-8 TRANS Energy'!O491+'FR-16(7)(v)-9 TRANS Cust'!O491+'FR-16(7)(v)-11 DIST Demand'!O491+'FR-16(7)(v)-12 DIST Energy'!O491+'FR-16(7)(v)-13 DIST Cust'!O491-'FR-16(7)(v)-14 TOTAL CLASS'!O491","v":0},{"$f":"'FR-16(7)(v)-3 PROD Demand'!P491+'FR-16(7)(v)-4 PROD Energy'!P491+'FR-16(7)(v)-5 PROD Cust'!P491+'FR-16(7)(v)-7 TRANS Demand'!P491+'FR-16(7)(v)-8 TRANS Energy'!P491+'FR-16(7)(v)-9 TRANS Cust'!P491+'FR-16(7)(v)-11 DIST Demand'!P491+'FR-16(7)(v)-12 DIST Energy'!P491+'FR-16(7)(v)-13 DIST Cust'!P491-'FR-16(7)(v)-14 TOTAL CLASS'!P491","v":0},{"$f":"'FR-16(7)(v)-3 PROD Demand'!Q491+'FR-16(7)(v)-4 PROD Energy'!Q491+'FR-16(7)(v)-5 PROD Cust'!Q491+'FR-16(7)(v)-7 TRANS Demand'!Q491+'FR-16(7)(v)-8 TRANS Energy'!Q491+'FR-16(7)(v)-9 TRANS Cust'!Q491+'FR-16(7)(v)-11 DIST Demand'!Q491+'FR-16(7)(v)-12 DIST Energy'!Q491+'FR-16(7)(v)-13 DIST Cust'!Q491-'FR-16(7)(v)-14 TOTAL CLASS'!Q491","v":0},0,0]
[48,null,{"$f":"'FR-16(7)(v)-1 Functional'!C492","v":"  TOTAL DISTRIBUTION O & M"},null," ",{"$f":"SUM(F472:F491)","v":0},{"$f":"SUM(G472:G491)","v":0},0,0,{"$f":"SUM(J472:J491)","v":0},0,0,0,0,0,0,0,0,0]
[49,null," "]
[50,"CUSTOMER ACCOUNTING"]
[51,null,{"$f":"'FR-16(7)(v)-1 Functional'!C495","v":"CUSTOMER ACCOUNTING EXPENSE"},{"$f":"'FR-16(7)(v)-1 Functional'!D495","v":"K409"},null,{"$f":"'FR-16(7)(v)-3 PROD Demand'!F495+'FR-16(7)(v)-4 PROD Energy'!F495+'FR-16(7)(v)-5 PROD Cust'!F495+'FR-16(7)(v)-7 TRANS Demand'!F495+'FR-16(7)(v)-8 TRANS Energy'!F495+'FR-16(7)(v)-9 TRANS Cust'!F495+'FR-16(7)(v)-11 DIST Demand'!F495+'FR-16(7)(v)-12 DIST Energy'!F495+'FR-16(7)(v)-13 DIST Cust'!F495-'FR-16(7)(v)-14 TOTAL CLASS'!F495","v":0},{"$f":"'FR-16(7)(v)-3 PROD Demand'!G495+'FR-16(7)(v)-4 PROD Energy'!G495+'FR-16(7)(v)-5 PROD Cust'!G495+'FR-16(7)(v)-7 TRANS Demand'!G495+'FR-16(7)(v)-8 TRANS Energy'!G495+'FR-16(7)(v)-9 TRANS Cust'!G495+'FR-16(7)(v)-11 DIST Demand'!G495+'FR-16(7)(v)-12 DIST Energy'!G495+'FR-16(7)(v)-13 DIST Cust'!G495-'FR-16(7)(v)-14 TOTAL CLASS'!G495","v":0},{"$f":"'FR-16(7)(v)-3 PROD Demand'!H495+'FR-16(7)(v)-4 PROD Energy'!H495+'FR-16(7)(v)-5 PROD Cust'!H495+'FR-16(7)(v)-7 TRANS Demand'!H495+'FR-16(7)(v)-8 TRANS Energy'!H495+'FR-16(7)(v)-9 TRANS Cust'!H495+'FR-16(7)(v)-11 DIST Demand'!H495+'FR-16(7)(v)-12 DIST Energy'!H495+'FR-16(7)(v)-13 DIST Cust'!H495-'FR-16(7)(v)-14 TOTAL CLASS'!H495","v":0},{"$f":"'FR-16(7)(v)-3 PROD Demand'!I495+'FR-16(7)(v)-4 PROD Energy'!I495+'FR-16(7)(v)-5 PROD Cust'!I495+'FR-16(7)(v)-7 TRANS Demand'!I495+'FR-16(7)(v)-8 TRANS Energy'!I495+'FR-16(7)(v)-9 TRANS Cust'!I495+'FR-16(7)(v)-11 DIST Demand'!I495+'FR-16(7)(v)-12 DIST Energy'!I495+'FR-16(7)(v)-13 DIST Cust'!I495-'FR-16(7)(v)-14 TOTAL CLASS'!I495","v":0},{"$f":"'FR-16(7)(v)-3 PROD Demand'!J495+'FR-16(7)(v)-4 PROD Energy'!J495+'FR-16(7)(v)-5 PROD Cust'!J495+'FR-16(7)(v)-7 TRANS Demand'!J495+'FR-16(7)(v)-8 TRANS Energy'!J495+'FR-16(7)(v)-9 TRANS Cust'!J495+'FR-16(7)(v)-11 DIST Demand'!J495+'FR-16(7)(v)-12 DIST Energy'!J495+'FR-16(7)(v)-13 DIST Cust'!J495-'FR-16(7)(v)-14 TOTAL CLASS'!J495","v":0},{"$f":"'FR-16(7)(v)-3 PROD Demand'!K495+'FR-16(7)(v)-4 PROD Energy'!K495+'FR-16(7)(v)-5 PROD Cust'!K495+'FR-16(7)(v)-7 TRANS Demand'!K495+'FR-16(7)(v)-8 TRANS Energy'!K495+'FR-16(7)(v)-9 TRANS Cust'!K495+'FR-16(7)(v)-11 DIST Demand'!K495+'FR-16(7)(v)-12 DIST Energy'!K495+'FR-16(7)(v)-13 DIST Cust'!K495-'FR-16(7)(v)-14 TOTAL CLASS'!K495","v":0},{"$f":"'FR-16(7)(v)-3 PROD Demand'!L495+'FR-16(7)(v)-4 PROD Energy'!L495+'FR-16(7)(v)-5 PROD Cust'!L495+'FR-16(7)(v)-7 TRANS Demand'!L495+'FR-16(7)(v)-8 TRANS Energy'!L495+'FR-16(7)(v)-9 TRANS Cust'!L495+'FR-16(7)(v)-11 DIST Demand'!L495+'FR-16(7)(v)-12 DIST Energy'!L495+'FR-16(7)(v)-13 DIST Cust'!L495-'FR-16(7)(v)-14 TOTAL CLASS'!L495","v":0},{"$f":"'FR-16(7)(v)-3 PROD Demand'!M495+'FR-16(7)(v)-4 PROD Energy'!M495+'FR-16(7)(v)-5 PROD Cust'!M495+'FR-16(7)(v)-7 TRANS Demand'!M495+'FR-16(7)(v)-8 TRANS Energy'!M495+'FR-16(7)(v)-9 TRANS Cust'!M495+'FR-16(7)(v)-11 DIST Demand'!M495+'FR-16(7)(v)-12 DIST Energy'!M495+'FR-16(7)(v)-13 DIST Cust'!M495-'FR-16(7)(v)-14 TOTAL CLASS'!M495","v":0},{"$f":"'FR-16(7)(v)-3 PROD Demand'!N495+'FR-16(7)(v)-4 PROD Energy'!N495+'FR-16(7)(v)-5 PROD Cust'!N495+'FR-16(7)(v)-7 TRANS Demand'!N495+'FR-16(7)(v)-8 TRANS Energy'!N495+'FR-16(7)(v)-9 TRANS Cust'!N495+'FR-16(7)(v)-11 DIST Demand'!N495+'FR-16(7)(v)-12 DIST Energy'!N495+'FR-16(7)(v)-13 DIST Cust'!N495-'FR-16(7)(v)-14 TOTAL CLASS'!N495","v":0},{"$f":"'FR-16(7)(v)-3 PROD Demand'!O495+'FR-16(7)(v)-4 PROD Energy'!O495+'FR-16(7)(v)-5 PROD Cust'!O495+'FR-16(7)(v)-7 TRANS Demand'!O495+'FR-16(7)(v)-8 TRANS Energy'!O495+'FR-16(7)(v)-9 TRANS Cust'!O495+'FR-16(7)(v)-11 DIST Demand'!O495+'FR-16(7)(v)-12 DIST Energy'!O495+'FR-16(7)(v)-13 DIST Cust'!O495-'FR-16(7)(v)-14 TOTAL CLASS'!O495","v":0},{"$f":"'FR-16(7)(v)-3 PROD Demand'!P495+'FR-16(7)(v)-4 PROD Energy'!P495+'FR-16(7)(v)-5 PROD Cust'!P495+'FR-16(7)(v)-7 TRANS Demand'!P495+'FR-16(7)(v)-8 TRANS Energy'!P495+'FR-16(7)(v)-9 TRANS Cust'!P495+'FR-16(7)(v)-11 DIST Demand'!P495+'FR-16(7)(v)-12 DIST Energy'!P495+'FR-16(7)(v)-13 DIST Cust'!P495-'FR-16(7)(v)-14 TOTAL CLASS'!P495","v":0},{"$f":"'FR-16(7)(v)-3 PROD Demand'!Q495+'FR-16(7)(v)-4 PROD Energy'!Q495+'FR-16(7)(v)-5 PROD Cust'!Q495+'FR-16(7)(v)-7 TRANS Demand'!Q495+'FR-16(7)(v)-8 TRANS Energy'!Q495+'FR-16(7)(v)-9 TRANS Cust'!Q495+'FR-16(7)(v)-11 DIST Demand'!Q495+'FR-16(7)(v)-12 DIST Energy'!Q495+'FR-16(7)(v)-13 DIST Cust'!Q495-'FR-16(7)(v)-14 TOTAL CLASS'!Q495","v":0},{"$f":"SUM(G495:Q495)","v":0},{"$f":"F495-R495","v":0}]
[52,null,{"$f":"'FR-16(7)(v)-1 Functional'!C496","v":"UNCOLLECTIBLE EXP"},{"$f":"'FR-16(7)(v)-1 Functional'!D496","v":"K411"},null,{"$f":"'FR-16(7)(v)-3 PROD Demand'!F496+'FR-16(7)(v)-4 PROD Energy'!F496+'FR-16(7)(v)-5 PROD Cust'!F496+'FR-16(7)(v)-7 TRANS Demand'!F496+'FR-16(7)(v)-8 TRANS Energy'!F496+'FR-16(7)(v)-9 TRANS Cust'!F496+'FR-16(7)(v)-11 DIST Demand'!F496+'FR-16(7)(v)-12 DIST Energy'!F496+'FR-16(7)(v)-13 DIST Cust'!F496-'FR-16(7)(v)-14 TOTAL CLASS'!F496","v":0},{"$f":"'FR-16(7)(v)-3 PROD Demand'!G496+'FR-16(7)(v)-4 PROD Energy'!G496+'FR-16(7)(v)-5 PROD Cust'!G496+'FR-16(7)(v)-7 TRANS Demand'!G496+'FR-16(7)(v)-8 TRANS Energy'!G496+'FR-16(7)(v)-9 TRANS Cust'!G496+'FR-16(7)(v)-11 DIST Demand'!G496+'FR-16(7)(v)-12 DIST Energy'!G496+'FR-16(7)(v)-13 DIST Cust'!G496-'FR-16(7)(v)-14 TOTAL CLASS'!G496","v":0},{"$f":"'FR-16(7)(v)-3 PROD Demand'!H496+'FR-16(7)(v)-4 PROD Energy'!H496+'FR-16(7)(v)-5 PROD Cust'!H496+'FR-16(7)(v)-7 TRANS Demand'!H496+'FR-16(7)(v)-8 TRANS Energy'!H496+'FR-16(7)(v)-9 TRANS Cust'!H496+'FR-16(7)(v)-11 DIST Demand'!H496+'FR-16(7)(v)-12 DIST Energy'!H496+'FR-16(7)(v)-13 DIST Cust'!H496-'FR-16(7)(v)-14 TOTAL CLASS'!H496","v":0},{"$f":"'FR-16(7)(v)-3 PROD Demand'!I496+'FR-16(7)(v)-4 PROD Energy'!I496+'FR-16(7)(v)-5 PROD Cust'!I496+'FR-16(7)(v)-7 TRANS Demand'!I496+'FR-16(7)(v)-8 TRANS Energy'!I496+'FR-16(7)(v)-9 TRANS Cust'!I496+'FR-16(7)(v)-11 DIST Demand'!I496+'FR-16(7)(v)-12 DIST Energy'!I496+'FR-16(7)(v)-13 DIST Cust'!I496-'FR-16(7)(v)-14 TOTAL CLASS'!I496","v":0},{"$f":"'FR-16(7)(v)-3 PROD Demand'!J496+'FR-16(7)(v)-4 PROD Energy'!J496+'FR-16(7)(v)-5 PROD Cust'!J496+'FR-16(7)(v)-7 TRANS Demand'!J496+'FR-16(7)(v)-8 TRANS Energy'!J496+'FR-16(7)(v)-9 TRANS Cust'!J496+'FR-16(7)(v)-11 DIST Demand'!J496+'FR-16(7)(v)-12 DIST Energy'!J496+'FR-16(7)(v)-13 DIST Cust'!J496-'FR-16(7)(v)-14 TOTAL CLASS'!J496","v":0},{"$f":"'FR-16(7)(v)-3 PROD Demand'!K496+'FR-16(7)(v)-4 PROD Energy'!K496+'FR-16(7)(v)-5 PROD Cust'!K496+'FR-16(7)(v)-7 TRANS Demand'!K496+'FR-16(7)(v)-8 TRANS Energy'!K496+'FR-16(7)(v)-9 TRANS Cust'!K496+'FR-16(7)(v)-11 DIST Demand'!K496+'FR-16(7)(v)-12 DIST Energy'!K496+'FR-16(7)(v)-13 DIST Cust'!K496-'FR-16(7)(v)-14 TOTAL CLASS'!K496","v":0},{"$f":"'FR-16(7)(v)-3 PROD Demand'!L496+'FR-16(7)(v)-4 PROD Energy'!L496+'FR-16(7)(v)-5 PROD Cust'!L496+'FR-16(7)(v)-7 TRANS Demand'!L496+'FR-16(7)(v)-8 TRANS Energy'!L496+'FR-16(7)(v)-9 TRANS Cust'!L496+'FR-16(7)(v)-11 DIST Demand'!L496+'FR-16(7)(v)-12 DIST Energy'!L496+'FR-16(7)(v)-13 DIST Cust'!L496-'FR-16(7)(v)-14 TOTAL CLASS'!L496","v":0},{"$f":"'FR-16(7)(v)-3 PROD Demand'!M496+'FR-16(7)(v)-4 PROD Energy'!M496+'FR-16(7)(v)-5 PROD Cust'!M496+'FR-16(7)(v)-7 TRANS Demand'!M496+'FR-16(7)(v)-8 TRANS Energy'!M496+'FR-16(7)(v)-9 TRANS Cust'!M496+'FR-16(7)(v)-11 DIST Demand'!M496+'FR-16(7)(v)-12 DIST Energy'!M496+'FR-16(7)(v)-13 DIST Cust'!M496-'FR-16(7)(v)-14 TOTAL CLASS'!M496","v":0},{"$f":"'FR-16(7)(v)-3 PROD Demand'!N496+'FR-16(7)(v)-4 PROD Energy'!N496+'FR-16(7)(v)-5 PROD Cust'!N496+'FR-16(7)(v)-7 TRANS Demand'!N496+'FR-16(7)(v)-8 TRANS Energy'!N496+'FR-16(7)(v)-9 TRANS Cust'!N496+'FR-16(7)(v)-11 DIST Demand'!N496+'FR-16(7)(v)-12 DIST Energy'!N496+'FR-16(7)(v)-13 DIST Cust'!N496-'FR-16(7)(v)-14 TOTAL CLASS'!N496","v":0},{"$f":"'FR-16(7)(v)-3 PROD Demand'!O496+'FR-16(7)(v)-4 PROD Energy'!O496+'FR-16(7)(v)-5 PROD Cust'!O496+'FR-16(7)(v)-7 TRANS Demand'!O496+'FR-16(7)(v)-8 TRANS Energy'!O496+'FR-16(7)(v)-9 TRANS Cust'!O496+'FR-16(7)(v)-11 DIST Demand'!O496+'FR-16(7)(v)-12 DIST Energy'!O496+'FR-16(7)(v)-13 DIST Cust'!O496-'FR-16(7)(v)-14 TOTAL CLASS'!O496","v":0},{"$f":"'FR-16(7)(v)-3 PROD Demand'!P496+'FR-16(7)(v)-4 PROD Energy'!P496+'FR-16(7)(v)-5 PROD Cust'!P496+'FR-16(7)(v)-7 TRANS Demand'!P496+'FR-16(7)(v)-8 TRANS Energy'!P496+'FR-16(7)(v)-9 TRANS Cust'!P496+'FR-16(7)(v)-11 DIST Demand'!P496+'FR-16(7)(v)-12 DIST Energy'!P496+'FR-16(7)(v)-13 DIST Cust'!P496-'FR-16(7)(v)-14 TOTAL CLASS'!P496","v":0},{"$f":"'FR-16(7)(v)-3 PROD Demand'!Q496+'FR-16(7)(v)-4 PROD Energy'!Q496+'FR-16(7)(v)-5 PROD Cust'!Q496+'FR-16(7)(v)-7 TRANS Demand'!Q496+'FR-16(7)(v)-8 TRANS Energy'!Q496+'FR-16(7)(v)-9 TRANS Cust'!Q496+'FR-16(7)(v)-11 DIST Demand'!Q496+'FR-16(7)(v)-12 DIST Energy'!Q496+'FR-16(7)(v)-13 DIST Cust'!Q496-'FR-16(7)(v)-14 TOTAL CLASS'!Q496","v":0},0,0]
[53,null,{"$f":"'FR-16(7)(v)-1 Functional'!C497","v":"METER READING"},{"$f":"'FR-16(7)(v)-1 Functional'!D497","v":"K407"},null,{"$f":"'FR-16(7)(v)-3 PROD Demand'!F497+'FR-16(7)(v)-4 PROD Energy'!F497+'FR-16(7)(v)-5 PROD Cust'!F497+'FR-16(7)(v)-7 TRANS Demand'!F497+'FR-16(7)(v)-8 TRANS Energy'!F497+'FR-16(7)(v)-9 TRANS Cust'!F497+'FR-16(7)(v)-11 DIST Demand'!F497+'FR-16(7)(v)-12 DIST Energy'!F497+'FR-16(7)(v)-13 DIST Cust'!F497-'FR-16(7)(v)-14 TOTAL CLASS'!F497","v":0},{"$f":"'FR-16(7)(v)-3 PROD Demand'!G497+'FR-16(7)(v)-4 PROD Energy'!G497+'FR-16(7)(v)-5 PROD Cust'!G497+'FR-16(7)(v)-7 TRANS Demand'!G497+'FR-16(7)(v)-8 TRANS Energy'!G497+'FR-16(7)(v)-9 TRANS Cust'!G497+'FR-16(7)(v)-11 DIST Demand'!G497+'FR-16(7)(v)-12 DIST Energy'!G497+'FR-16(7)(v)-13 DIST Cust'!G497-'FR-16(7)(v)-14 TOTAL CLASS'!G497","v":0},{"$f":"'FR-16(7)(v)-3 PROD Demand'!H497+'FR-16(7)(v)-4 PROD Energy'!H497+'FR-16(7)(v)-5 PROD Cust'!H497+'FR-16(7)(v)-7 TRANS Demand'!H497+'FR-16(7)(v)-8 TRANS Energy'!H497+'FR-16(7)(v)-9 TRANS Cust'!H497+'FR-16(7)(v)-11 DIST Demand'!H497+'FR-16(7)(v)-12 DIST Energy'!H497+'FR-16(7)(v)-13 DIST Cust'!H497-'FR-16(7)(v)-14 TOTAL CLASS'!H497","v":0},{"$f":"'FR-16(7)(v)-3 PROD Demand'!I497+'FR-16(7)(v)-4 PROD Energy'!I497+'FR-16(7)(v)-5 PROD Cust'!I497+'FR-16(7)(v)-7 TRANS Demand'!I497+'FR-16(7)(v)-8 TRANS Energy'!I497+'FR-16(7)(v)-9 TRANS Cust'!I497+'FR-16(7)(v)-11 DIST Demand'!I497+'FR-16(7)(v)-12 DIST Energy'!I497+'FR-16(7)(v)-13 DIST Cust'!I497-'FR-16(7)(v)-14 TOTAL CLASS'!I497","v":0},{"$f":"'FR-16(7)(v)-3 PROD Demand'!J497+'FR-16(7)(v)-4 PROD Energy'!J497+'FR-16(7)(v)-5 PROD Cust'!J497+'FR-16(7)(v)-7 TRANS Demand'!J497+'FR-16(7)(v)-8 TRANS Energy'!J497+'FR-16(7)(v)-9 TRANS Cust'!J497+'FR-16(7)(v)-11 DIST Demand'!J497+'FR-16(7)(v)-12 DIST Energy'!J497+'FR-16(7)(v)-13 DIST Cust'!J497-'FR-16(7)(v)-14 TOTAL CLASS'!J497","v":0},{"$f":"'FR-16(7)(v)-3 PROD Demand'!K497+'FR-16(7)(v)-4 PROD Energy'!K497+'FR-16(7)(v)-5 PROD Cust'!K497+'FR-16(7)(v)-7 TRANS Demand'!K497+'FR-16(7)(v)-8 TRANS Energy'!K497+'FR-16(7)(v)-9 TRANS Cust'!K497+'FR-16(7)(v)-11 DIST Demand'!K497+'FR-16(7)(v)-12 DIST Energy'!K497+'FR-16(7)(v)-13 DIST Cust'!K497-'FR-16(7)(v)-14 TOTAL CLASS'!K497","v":0},{"$f":"'FR-16(7)(v)-3 PROD Demand'!L497+'FR-16(7)(v)-4 PROD Energy'!L497+'FR-16(7)(v)-5 PROD Cust'!L497+'FR-16(7)(v)-7 TRANS Demand'!L497+'FR-16(7)(v)-8 TRANS Energy'!L497+'FR-16(7)(v)-9 TRANS Cust'!L497+'FR-16(7)(v)-11 DIST Demand'!L497+'FR-16(7)(v)-12 DIST Energy'!L497+'FR-16(7)(v)-13 DIST Cust'!L497-'FR-16(7)(v)-14 TOTAL CLASS'!L497","v":0},{"$f":"'FR-16(7)(v)-3 PROD Demand'!M497+'FR-16(7)(v)-4 PROD Energy'!M497+'FR-16(7)(v)-5 PROD Cust'!M497+'FR-16(7)(v)-7 TRANS Demand'!M497+'FR-16(7)(v)-8 TRANS Energy'!M497+'FR-16(7)(v)-9 TRANS Cust'!M497+'FR-16(7)(v)-11 DIST Demand'!M497+'FR-16(7)(v)-12 DIST Energy'!M497+'FR-16(7)(v)-13 DIST Cust'!M497-'FR-16(7)(v)-14 TOTAL CLASS'!M497","v":0},{"$f":"'FR-16(7)(v)-3 PROD Demand'!N497+'FR-16(7)(v)-4 PROD Energy'!N497+'FR-16(7)(v)-5 PROD Cust'!N497+'FR-16(7)(v)-7 TRANS Demand'!N497+'FR-16(7)(v)-8 TRANS Energy'!N497+'FR-16(7)(v)-9 TRANS Cust'!N497+'FR-16(7)(v)-11 DIST Demand'!N497+'FR-16(7)(v)-12 DIST Energy'!N497+'FR-16(7)(v)-13 DIST Cust'!N497-'FR-16(7)(v)-14 TOTAL CLASS'!N497","v":0},{"$f":"'FR-16(7)(v)-3 PROD Demand'!O497+'FR-16(7)(v)-4 PROD Energy'!O497+'FR-16(7)(v)-5 PROD Cust'!O497+'FR-16(7)(v)-7 TRANS Demand'!O497+'FR-16(7)(v)-8 TRANS Energy'!O497+'FR-16(7)(v)-9 TRANS Cust'!O497+'FR-16(7)(v)-11 DIST Demand'!O497+'FR-16(7)(v)-12 DIST Energy'!O497+'FR-16(7)(v)-13 DIST Cust'!O497-'FR-16(7)(v)-14 TOTAL CLASS'!O497","v":0},{"$f":"'FR-16(7)(v)-3 PROD Demand'!P497+'FR-16(7)(v)-4 PROD Energy'!P497+'FR-16(7)(v)-5 PROD Cust'!P497+'FR-16(7)(v)-7 TRANS Demand'!P497+'FR-16(7)(v)-8 TRANS Energy'!P497+'FR-16(7)(v)-9 TRANS Cust'!P497+'FR-16(7)(v)-11 DIST Demand'!P497+'FR-16(7)(v)-12 DIST Energy'!P497+'FR-16(7)(v)-13 DIST Cust'!P497-'FR-16(7)(v)-14 TOTAL CLASS'!P497","v":0},{"$f":"'FR-16(7)(v)-3 PROD Demand'!Q497+'FR-16(7)(v)-4 PROD Energy'!Q497+'FR-16(7)(v)-5 PROD Cust'!Q497+'FR-16(7)(v)-7 TRANS Demand'!Q497+'FR-16(7)(v)-8 TRANS Energy'!Q497+'FR-16(7)(v)-9 TRANS Cust'!Q497+'FR-16(7)(v)-11 DIST Demand'!Q497+'FR-16(7)(v)-12 DIST Energy'!Q497+'FR-16(7)(v)-13 DIST Cust'!Q497-'FR-16(7)(v)-14 TOTAL CLASS'!Q497","v":0},0,0]
[54,null,{"$f":"'FR-16(7)(v)-1 Functional'!C498","v":"UNCOLLECTIBLE EXP ADJUSTMENT"},{"$f":"'FR-16(7)(v)-1 Functional'!D498","v":"K411"},null,{"$f":"'FR-16(7)(v)-3 PROD Demand'!F498+'FR-16(7)(v)-4 PROD Energy'!F498+'FR-16(7)(v)-5 PROD Cust'!F498+'FR-16(7)(v)-7 TRANS Demand'!F498+'FR-16(7)(v)-8 TRANS Energy'!F498+'FR-16(7)(v)-9 TRANS Cust'!F498+'FR-16(7)(v)-11 DIST Demand'!F498+'FR-16(7)(v)-12 DIST Energy'!F498+'FR-16(7)(v)-13 DIST Cust'!F498-'FR-16(7)(v)-14 TOTAL CLASS'!F498","v":0},{"$f":"'FR-16(7)(v)-3 PROD Demand'!G498+'FR-16(7)(v)-4 PROD Energy'!G498+'FR-16(7)(v)-5 PROD Cust'!G498+'FR-16(7)(v)-7 TRANS Demand'!G498+'FR-16(7)(v)-8 TRANS Energy'!G498+'FR-16(7)(v)-9 TRANS Cust'!G498+'FR-16(7)(v)-11 DIST Demand'!G498+'FR-16(7)(v)-12 DIST Energy'!G498+'FR-16(7)(v)-13 DIST Cust'!G498-'FR-16(7)(v)-14 TOTAL CLASS'!G498","v":0},{"$f":"'FR-16(7)(v)-3 PROD Demand'!H498+'FR-16(7)(v)-4 PROD Energy'!H498+'FR-16(7)(v)-5 PROD Cust'!H498+'FR-16(7)(v)-7 TRANS Demand'!H498+'FR-16(7)(v)-8 TRANS Energy'!H498+'FR-16(7)(v)-9 TRANS Cust'!H498+'FR-16(7)(v)-11 DIST Demand'!H498+'FR-16(7)(v)-12 DIST Energy'!H498+'FR-16(7)(v)-13 DIST Cust'!H498-'FR-16(7)(v)-14 TOTAL CLASS'!H498","v":0},{"$f":"'FR-16(7)(v)-3 PROD Demand'!I498+'FR-16(7)(v)-4 PROD Energy'!I498+'FR-16(7)(v)-5 PROD Cust'!I498+'FR-16(7)(v)-7 TRANS Demand'!I498+'FR-16(7)(v)-8 TRANS Energy'!I498+'FR-16(7)(v)-9 TRANS Cust'!I498+'FR-16(7)(v)-11 DIST Demand'!I498+'FR-16(7)(v)-12 DIST Energy'!I498+'FR-16(7)(v)-13 DIST Cust'!I498-'FR-16(7)(v)-14 TOTAL CLASS'!I498","v":0},{"$f":"'FR-16(7)(v)-3 PROD Demand'!J498+'FR-16(7)(v)-4 PROD Energy'!J498+'FR-16(7)(v)-5 PROD Cust'!J498+'FR-16(7)(v)-7 TRANS Demand'!J498+'FR-16(7)(v)-8 TRANS Energy'!J498+'FR-16(7)(v)-9 TRANS Cust'!J498+'FR-16(7)(v)-11 DIST Demand'!J498+'FR-16(7)(v)-12 DIST Energy'!J498+'FR-16(7)(v)-13 DIST Cust'!J498-'FR-16(7)(v)-14 TOTAL CLASS'!J498","v":0},{"$f":"'FR-16(7)(v)-3 PROD Demand'!K498+'FR-16(7)(v)-4 PROD Energy'!K498+'FR-16(7)(v)-5 PROD Cust'!K498+'FR-16(7)(v)-7 TRANS Demand'!K498+'FR-16(7)(v)-8 TRANS Energy'!K498+'FR-16(7)(v)-9 TRANS Cust'!K498+'FR-16(7)(v)-11 DIST Demand'!K498+'FR-16(7)(v)-12 DIST Energy'!K498+'FR-16(7)(v)-13 DIST Cust'!K498-'FR-16(7)(v)-14 TOTAL CLASS'!K498","v":0},{"$f":"'FR-16(7)(v)-3 PROD Demand'!L498+'FR-16(7)(v)-4 PROD Energy'!L498+'FR-16(7)(v)-5 PROD Cust'!L498+'FR-16(7)(v)-7 TRANS Demand'!L498+'FR-16(7)(v)-8 TRANS Energy'!L498+'FR-16(7)(v)-9 TRANS Cust'!L498+'FR-16(7)(v)-11 DIST Demand'!L498+'FR-16(7)(v)-12 DIST Energy'!L498+'FR-16(7)(v)-13 DIST Cust'!L498-'FR-16(7)(v)-14 TOTAL CLASS'!L498","v":0},{"$f":"'FR-16(7)(v)-3 PROD Demand'!M498+'FR-16(7)(v)-4 PROD Energy'!M498+'FR-16(7)(v)-5 PROD Cust'!M498+'FR-16(7)(v)-7 TRANS Demand'!M498+'FR-16(7)(v)-8 TRANS Energy'!M498+'FR-16(7)(v)-9 TRANS Cust'!M498+'FR-16(7)(v)-11 DIST Demand'!M498+'FR-16(7)(v)-12 DIST Energy'!M498+'FR-16(7)(v)-13 DIST Cust'!M498-'FR-16(7)(v)-14 TOTAL CLASS'!M498","v":0},{"$f":"'FR-16(7)(v)-3 PROD Demand'!N498+'FR-16(7)(v)-4 PROD Energy'!N498+'FR-16(7)(v)-5 PROD Cust'!N498+'FR-16(7)(v)-7 TRANS Demand'!N498+'FR-16(7)(v)-8 TRANS Energy'!N498+'FR-16(7)(v)-9 TRANS Cust'!N498+'FR-16(7)(v)-11 DIST Demand'!N498+'FR-16(7)(v)-12 DIST Energy'!N498+'FR-16(7)(v)-13 DIST Cust'!N498-'FR-16(7)(v)-14 TOTAL CLASS'!N498","v":0},{"$f":"'FR-16(7)(v)-3 PROD Demand'!O498+'FR-16(7)(v)-4 PROD Energy'!O498+'FR-16(7)(v)-5 PROD Cust'!O498+'FR-16(7)(v)-7 TRANS Demand'!O498+'FR-16(7)(v)-8 TRANS Energy'!O498+'FR-16(7)(v)-9 TRANS Cust'!O498+'FR-16(7)(v)-11 DIST Demand'!O498+'FR-16(7)(v)-12 DIST Energy'!O498+'FR-16(7)(v)-13 DIST Cust'!O498-'FR-16(7)(v)-14 TOTAL CLASS'!O498","v":0},{"$f":"'FR-16(7)(v)-3 PROD Demand'!P498+'FR-16(7)(v)-4 PROD Energy'!P498+'FR-16(7)(v)-5 PROD Cust'!P498+'FR-16(7)(v)-7 TRANS Demand'!P498+'FR-16(7)(v)-8 TRANS Energy'!P498+'FR-16(7)(v)-9 TRANS Cust'!P498+'FR-16(7)(v)-11 DIST Demand'!P498+'FR-16(7)(v)-12 DIST Energy'!P498+'FR-16(7)(v)-13 DIST Cust'!P498-'FR-16(7)(v)-14 TOTAL CLASS'!P498","v":0},{"$f":"'FR-16(7)(v)-3 PROD Demand'!Q498+'FR-16(7)(v)-4 PROD Energy'!Q498+'FR-16(7)(v)-5 PROD Cust'!Q498+'FR-16(7)(v)-7 TRANS Demand'!Q498+'FR-16(7)(v)-8 TRANS Energy'!Q498+'FR-16(7)(v)-9 TRANS Cust'!Q498+'FR-16(7)(v)-11 DIST Demand'!Q498+'FR-16(7)(v)-12 DIST Energy'!Q498+'FR-16(7)(v)-13 DIST Cust'!Q498-'FR-16(7)(v)-14 TOTAL CLASS'!Q498","v":0},0,0]
[55,null,{"$f":"'FR-16(7)(v)-1 Functional'!C499","v":"CREDIT CARD FEES"},{"$f":"'FR-16(7)(v)-1 Functional'!D499","v":"K407"},null,{"$f":"'FR-16(7)(v)-3 PROD Demand'!F499+'FR-16(7)(v)-4 PROD Energy'!F499+'FR-16(7)(v)-5 PROD Cust'!F499+'FR-16(7)(v)-7 TRANS Demand'!F499+'FR-16(7)(v)-8 TRANS Energy'!F499+'FR-16(7)(v)-9 TRANS Cust'!F499+'FR-16(7)(v)-11 DIST Demand'!F499+'FR-16(7)(v)-12 DIST Energy'!F499+'FR-16(7)(v)-13 DIST Cust'!F499-'FR-16(7)(v)-14 TOTAL CLASS'!F499","v":0},{"$f":"'FR-16(7)(v)-3 PROD Demand'!G499+'FR-16(7)(v)-4 PROD Energy'!G499+'FR-16(7)(v)-5 PROD Cust'!G499+'FR-16(7)(v)-7 TRANS Demand'!G499+'FR-16(7)(v)-8 TRANS Energy'!G499+'FR-16(7)(v)-9 TRANS Cust'!G499+'FR-16(7)(v)-11 DIST Demand'!G499+'FR-16(7)(v)-12 DIST Energy'!G499+'FR-16(7)(v)-13 DIST Cust'!G499-'FR-16(7)(v)-14 TOTAL CLASS'!G499","v":0},{"$f":"'FR-16(7)(v)-3 PROD Demand'!H499+'FR-16(7)(v)-4 PROD Energy'!H499+'FR-16(7)(v)-5 PROD Cust'!H499+'FR-16(7)(v)-7 TRANS Demand'!H499+'FR-16(7)(v)-8 TRANS Energy'!H499+'FR-16(7)(v)-9 TRANS Cust'!H499+'FR-16(7)(v)-11 DIST Demand'!H499+'FR-16(7)(v)-12 DIST Energy'!H499+'FR-16(7)(v)-13 DIST Cust'!H499-'FR-16(7)(v)-14 TOTAL CLASS'!H499","v":0},{"$f":"'FR-16(7)(v)-3 PROD Demand'!I499+'FR-16(7)(v)-4 PROD Energy'!I499+'FR-16(7)(v)-5 PROD Cust'!I499+'FR-16(7)(v)-7 TRANS Demand'!I499+'FR-16(7)(v)-8 TRANS Energy'!I499+'FR-16(7)(v)-9 TRANS Cust'!I499+'FR-16(7)(v)-11 DIST Demand'!I499+'FR-16(7)(v)-12 DIST Energy'!I499+'FR-16(7)(v)-13 DIST Cust'!I499-'FR-16(7)(v)-14 TOTAL CLASS'!I499","v":0},{"$f":"'FR-16(7)(v)-3 PROD Demand'!J499+'FR-16(7)(v)-4 PROD Energy'!J499+'FR-16(7)(v)-5 PROD Cust'!J499+'FR-16(7)(v)-7 TRANS Demand'!J499+'FR-16(7)(v)-8 TRANS Energy'!J499+'FR-16(7)(v)-9 TRANS Cust'!J499+'FR-16(7)(v)-11 DIST Demand'!J499+'FR-16(7)(v)-12 DIST Energy'!J499+'FR-16(7)(v)-13 DIST Cust'!J499-'FR-16(7)(v)-14 TOTAL CLASS'!J499","v":0},{"$f":"'FR-16(7)(v)-3 PROD Demand'!K499+'FR-16(7)(v)-4 PROD Energy'!K499+'FR-16(7)(v)-5 PROD Cust'!K499+'FR-16(7)(v)-7 TRANS Demand'!K499+'FR-16(7)(v)-8 TRANS Energy'!K499+'FR-16(7)(v)-9 TRANS Cust'!K499+'FR-16(7)(v)-11 DIST Demand'!K499+'FR-16(7)(v)-12 DIST Energy'!K499+'FR-16(7)(v)-13 DIST Cust'!K499-'FR-16(7)(v)-14 TOTAL CLASS'!K499","v":0},{"$f":"'FR-16(7)(v)-3 PROD Demand'!L499+'FR-16(7)(v)-4 PROD Energy'!L499+'FR-16(7)(v)-5 PROD Cust'!L499+'FR-16(7)(v)-7 TRANS Demand'!L499+'FR-16(7)(v)-8 TRANS Energy'!L499+'FR-16(7)(v)-9 TRANS Cust'!L499+'FR-16(7)(v)-11 DIST Demand'!L499+'FR-16(7)(v)-12 DIST Energy'!L499+'FR-16(7)(v)-13 DIST Cust'!L499-'FR-16(7)(v)-14 TOTAL CLASS'!L499","v":0},{"$f":"'FR-16(7)(v)-3 PROD Demand'!M499+'FR-16(7)(v)-4 PROD Energy'!M499+'FR-16(7)(v)-5 PROD Cust'!M499+'FR-16(7)(v)-7 TRANS Demand'!M499+'FR-16(7)(v)-8 TRANS Energy'!M499+'FR-16(7)(v)-9 TRANS Cust'!M499+'FR-16(7)(v)-11 DIST Demand'!M499+'FR-16(7)(v)-12 DIST Energy'!M499+'FR-16(7)(v)-13 DIST Cust'!M499-'FR-16(7)(v)-14 TOTAL CLASS'!M499","v":0},{"$f":"'FR-16(7)(v)-3 PROD Demand'!N499+'FR-16(7)(v)-4 PROD Energy'!N499+'FR-16(7)(v)-5 PROD Cust'!N499+'FR-16(7)(v)-7 TRANS Demand'!N499+'FR-16(7)(v)-8 TRANS Energy'!N499+'FR-16(7)(v)-9 TRANS Cust'!N499+'FR-16(7)(v)-11 DIST Demand'!N499+'FR-16(7)(v)-12 DIST Energy'!N499+'FR-16(7)(v)-13 DIST Cust'!N499-'FR-16(7)(v)-14 TOTAL CLASS'!N499","v":0},{"$f":"'FR-16(7)(v)-3 PROD Demand'!O499+'FR-16(7)(v)-4 PROD Energy'!O499+'FR-16(7)(v)-5 PROD Cust'!O499+'FR-16(7)(v)-7 TRANS Demand'!O499+'FR-16(7)(v)-8 TRANS Energy'!O499+'FR-16(7)(v)-9 TRANS Cust'!O499+'FR-16(7)(v)-11 DIST Demand'!O499+'FR-16(7)(v)-12 DIST Energy'!O499+'FR-16(7)(v)-13 DIST Cust'!O499-'FR-16(7)(v)-14 TOTAL CLASS'!O499","v":0},{"$f":"'FR-16(7)(v)-3 PROD Demand'!P499+'FR-16(7)(v)-4 PROD Energy'!P499+'FR-16(7)(v)-5 PROD Cust'!P499+'FR-16(7)(v)-7 TRANS Demand'!P499+'FR-16(7)(v)-8 TRANS Energy'!P499+'FR-16(7)(v)-9 TRANS Cust'!P499+'FR-16(7)(v)-11 DIST Demand'!P499+'FR-16(7)(v)-12 DIST Energy'!P499+'FR-16(7)(v)-13 DIST Cust'!P499-'FR-16(7)(v)-14 TOTAL CLASS'!P499","v":0},{"$f":"'FR-16(7)(v)-3 PROD Demand'!Q499+'FR-16(7)(v)-4 PROD Energy'!Q499+'FR-16(7)(v)-5 PROD Cust'!Q499+'FR-16(7)(v)-7 TRANS Demand'!Q499+'FR-16(7)(v)-8 TRANS Energy'!Q499+'FR-16(7)(v)-9 TRANS Cust'!Q499+'FR-16(7)(v)-11 DIST Demand'!Q499+'FR-16(7)(v)-12 DIST Energy'!Q499+'FR-16(7)(v)-13 DIST Cust'!Q499-'FR-16(7)(v)-14 TOTAL CLASS'!Q499","v":0},0,0]
[56,null,{"$f":"'FR-16(7)(v)-1 Functional'!C500","v":"ELIMINATE REV & EXP - DSM RIDER"},{"$f":"'FR-16(7)(v)-1 Functional'!D500","v":"K405"},null,{"$f":"'FR-16(7)(v)-3 PROD Demand'!F500+'FR-16(7)(v)-4 PROD Energy'!F500+'FR-16(7)(v)-5 PROD Cust'!F500+'FR-16(7)(v)-7 TRANS Demand'!F500+'FR-16(7)(v)-8 TRANS Energy'!F500+'FR-16(7)(v)-9 TRANS Cust'!F500+'FR-16(7)(v)-11 DIST Demand'!F500+'FR-16(7)(v)-12 DIST Energy'!F500+'FR-16(7)(v)-13 DIST Cust'!F500-'FR-16(7)(v)-14 TOTAL CLASS'!F500","v":0},{"$f":"'FR-16(7)(v)-3 PROD Demand'!G500+'FR-16(7)(v)-4 PROD Energy'!G500+'FR-16(7)(v)-5 PROD Cust'!G500+'FR-16(7)(v)-7 TRANS Demand'!G500+'FR-16(7)(v)-8 TRANS Energy'!G500+'FR-16(7)(v)-9 TRANS Cust'!G500+'FR-16(7)(v)-11 DIST Demand'!G500+'FR-16(7)(v)-12 DIST Energy'!G500+'FR-16(7)(v)-13 DIST Cust'!G500-'FR-16(7)(v)-14 TOTAL CLASS'!G500","v":0},{"$f":"'FR-16(7)(v)-3 PROD Demand'!H500+'FR-16(7)(v)-4 PROD Energy'!H500+'FR-16(7)(v)-5 PROD Cust'!H500+'FR-16(7)(v)-7 TRANS Demand'!H500+'FR-16(7)(v)-8 TRANS Energy'!H500+'FR-16(7)(v)-9 TRANS Cust'!H500+'FR-16(7)(v)-11 DIST Demand'!H500+'FR-16(7)(v)-12 DIST Energy'!H500+'FR-16(7)(v)-13 DIST Cust'!H500-'FR-16(7)(v)-14 TOTAL CLASS'!H500","v":0},{"$f":"'FR-16(7)(v)-3 PROD Demand'!I500+'FR-16(7)(v)-4 PROD Energy'!I500+'FR-16(7)(v)-5 PROD Cust'!I500+'FR-16(7)(v)-7 TRANS Demand'!I500+'FR-16(7)(v)-8 TRANS Energy'!I500+'FR-16(7)(v)-9 TRANS Cust'!I500+'FR-16(7)(v)-11 DIST Demand'!I500+'FR-16(7)(v)-12 DIST Energy'!I500+'FR-16(7)(v)-13 DIST Cust'!I500-'FR-16(7)(v)-14 TOTAL CLASS'!I500","v":0},{"$f":"'FR-16(7)(v)-3 PROD Demand'!J500+'FR-16(7)(v)-4 PROD Energy'!J500+'FR-16(7)(v)-5 PROD Cust'!J500+'FR-16(7)(v)-7 TRANS Demand'!J500+'FR-16(7)(v)-8 TRANS Energy'!J500+'FR-16(7)(v)-9 TRANS Cust'!J500+'FR-16(7)(v)-11 DIST Demand'!J500+'FR-16(7)(v)-12 DIST Energy'!J500+'FR-16(7)(v)-13 DIST Cust'!J500-'FR-16(7)(v)-14 TOTAL CLASS'!J500","v":0},{"$f":"'FR-16(7)(v)-3 PROD Demand'!K500+'FR-16(7)(v)-4 PROD Energy'!K500+'FR-16(7)(v)-5 PROD Cust'!K500+'FR-16(7)(v)-7 TRANS Demand'!K500+'FR-16(7)(v)-8 TRANS Energy'!K500+'FR-16(7)(v)-9 TRANS Cust'!K500+'FR-16(7)(v)-11 DIST Demand'!K500+'FR-16(7)(v)-12 DIST Energy'!K500+'FR-16(7)(v)-13 DIST Cust'!K500-'FR-16(7)(v)-14 TOTAL CLASS'!K500","v":0},{"$f":"'FR-16(7)(v)-3 PROD Demand'!L500+'FR-16(7)(v)-4 PROD Energy'!L500+'FR-16(7)(v)-5 PROD Cust'!L500+'FR-16(7)(v)-7 TRANS Demand'!L500+'FR-16(7)(v)-8 TRANS Energy'!L500+'FR-16(7)(v)-9 TRANS Cust'!L500+'FR-16(7)(v)-11 DIST Demand'!L500+'FR-16(7)(v)-12 DIST Energy'!L500+'FR-16(7)(v)-13 DIST Cust'!L500-'FR-16(7)(v)-14 TOTAL CLASS'!L500","v":0},{"$f":"'FR-16(7)(v)-3 PROD Demand'!M500+'FR-16(7)(v)-4 PROD Energy'!M500+'FR-16(7)(v)-5 PROD Cust'!M500+'FR-16(7)(v)-7 TRANS Demand'!M500+'FR-16(7)(v)-8 TRANS Energy'!M500+'FR-16(7)(v)-9 TRANS Cust'!M500+'FR-16(7)(v)-11 DIST Demand'!M500+'FR-16(7)(v)-12 DIST Energy'!M500+'FR-16(7)(v)-13 DIST Cust'!M500-'FR-16(7)(v)-14 TOTAL CLASS'!M500","v":0},{"$f":"'FR-16(7)(v)-3 PROD Demand'!N500+'FR-16(7)(v)-4 PROD Energy'!N500+'FR-16(7)(v)-5 PROD Cust'!N500+'FR-16(7)(v)-7 TRANS Demand'!N500+'FR-16(7)(v)-8 TRANS Energy'!N500+'FR-16(7)(v)-9 TRANS Cust'!N500+'FR-16(7)(v)-11 DIST Demand'!N500+'FR-16(7)(v)-12 DIST Energy'!N500+'FR-16(7)(v)-13 DIST Cust'!N500-'FR-16(7)(v)-14 TOTAL CLASS'!N500","v":0},{"$f":"'FR-16(7)(v)-3 PROD Demand'!O500+'FR-16(7)(v)-4 PROD Energy'!O500+'FR-16(7)(v)-5 PROD Cust'!O500+'FR-16(7)(v)-7 TRANS Demand'!O500+'FR-16(7)(v)-8 TRANS Energy'!O500+'FR-16(7)(v)-9 TRANS Cust'!O500+'FR-16(7)(v)-11 DIST Demand'!O500+'FR-16(7)(v)-12 DIST Energy'!O500+'FR-16(7)(v)-13 DIST Cust'!O500-'FR-16(7)(v)-14 TOTAL CLASS'!O500","v":0},{"$f":"'FR-16(7)(v)-3 PROD Demand'!P500+'FR-16(7)(v)-4 PROD Energy'!P500+'FR-16(7)(v)-5 PROD Cust'!P500+'FR-16(7)(v)-7 TRANS Demand'!P500+'FR-16(7)(v)-8 TRANS Energy'!P500+'FR-16(7)(v)-9 TRANS Cust'!P500+'FR-16(7)(v)-11 DIST Demand'!P500+'FR-16(7)(v)-12 DIST Energy'!P500+'FR-16(7)(v)-13 DIST Cust'!P500-'FR-16(7)(v)-14 TOTAL CLASS'!P500","v":0},{"$f":"'FR-16(7)(v)-3 PROD Demand'!Q500+'FR-16(7)(v)-4 PROD Energy'!Q500+'FR-16(7)(v)-5 PROD Cust'!Q500+'FR-16(7)(v)-7 TRANS Demand'!Q500+'FR-16(7)(v)-8 TRANS Energy'!Q500+'FR-16(7)(v)-9 TRANS Cust'!Q500+'FR-16(7)(v)-11 DIST Demand'!Q500+'FR-16(7)(v)-12 DIST Energy'!Q500+'FR-16(7)(v)-13 DIST Cust'!Q500-'FR-16(7)(v)-14 TOTAL CLASS'!Q500","v":0},0,0]
[57,null,{"$f":"'FR-16(7)(v)-1 Functional'!C501","v":"SALE OF A/R"},{"$f":"'FR-16(7)(v)-1 Functional'!D501","v":"K411"},null,{"$f":"'FR-16(7)(v)-3 PROD Demand'!F501+'FR-16(7)(v)-4 PROD Energy'!F501+'FR-16(7)(v)-5 PROD Cust'!F501+'FR-16(7)(v)-7 TRANS Demand'!F501+'FR-16(7)(v)-8 TRANS Energy'!F501+'FR-16(7)(v)-9 TRANS Cust'!F501+'FR-16(7)(v)-11 DIST Demand'!F501+'FR-16(7)(v)-12 DIST Energy'!F501+'FR-16(7)(v)-13 DIST Cust'!F501-'FR-16(7)(v)-14 TOTAL CLASS'!F501","v":0},{"$f":"'FR-16(7)(v)-3 PROD Demand'!G501+'FR-16(7)(v)-4 PROD Energy'!G501+'FR-16(7)(v)-5 PROD Cust'!G501+'FR-16(7)(v)-7 TRANS Demand'!G501+'FR-16(7)(v)-8 TRANS Energy'!G501+'FR-16(7)(v)-9 TRANS Cust'!G501+'FR-16(7)(v)-11 DIST Demand'!G501+'FR-16(7)(v)-12 DIST Energy'!G501+'FR-16(7)(v)-13 DIST Cust'!G501-'FR-16(7)(v)-14 TOTAL CLASS'!G501","v":0},{"$f":"'FR-16(7)(v)-3 PROD Demand'!H501+'FR-16(7)(v)-4 PROD Energy'!H501+'FR-16(7)(v)-5 PROD Cust'!H501+'FR-16(7)(v)-7 TRANS Demand'!H501+'FR-16(7)(v)-8 TRANS Energy'!H501+'FR-16(7)(v)-9 TRANS Cust'!H501+'FR-16(7)(v)-11 DIST Demand'!H501+'FR-16(7)(v)-12 DIST Energy'!H501+'FR-16(7)(v)-13 DIST Cust'!H501-'FR-16(7)(v)-14 TOTAL CLASS'!H501","v":0},{"$f":"'FR-16(7)(v)-3 PROD Demand'!I501+'FR-16(7)(v)-4 PROD Energy'!I501+'FR-16(7)(v)-5 PROD Cust'!I501+'FR-16(7)(v)-7 TRANS Demand'!I501+'FR-16(7)(v)-8 TRANS Energy'!I501+'FR-16(7)(v)-9 TRANS Cust'!I501+'FR-16(7)(v)-11 DIST Demand'!I501+'FR-16(7)(v)-12 DIST Energy'!I501+'FR-16(7)(v)-13 DIST Cust'!I501-'FR-16(7)(v)-14 TOTAL CLASS'!I501","v":0},{"$f":"'FR-16(7)(v)-3 PROD Demand'!J501+'FR-16(7)(v)-4 PROD Energy'!J501+'FR-16(7)(v)-5 PROD Cust'!J501+'FR-16(7)(v)-7 TRANS Demand'!J501+'FR-16(7)(v)-8 TRANS Energy'!J501+'FR-16(7)(v)-9 TRANS Cust'!J501+'FR-16(7)(v)-11 DIST Demand'!J501+'FR-16(7)(v)-12 DIST Energy'!J501+'FR-16(7)(v)-13 DIST Cust'!J501-'FR-16(7)(v)-14 TOTAL CLASS'!J501","v":0},{"$f":"'FR-16(7)(v)-3 PROD Demand'!K501+'FR-16(7)(v)-4 PROD Energy'!K501+'FR-16(7)(v)-5 PROD Cust'!K501+'FR-16(7)(v)-7 TRANS Demand'!K501+'FR-16(7)(v)-8 TRANS Energy'!K501+'FR-16(7)(v)-9 TRANS Cust'!K501+'FR-16(7)(v)-11 DIST Demand'!K501+'FR-16(7)(v)-12 DIST Energy'!K501+'FR-16(7)(v)-13 DIST Cust'!K501-'FR-16(7)(v)-14 TOTAL CLASS'!K501","v":0},{"$f":"'FR-16(7)(v)-3 PROD Demand'!L501+'FR-16(7)(v)-4 PROD Energy'!L501+'FR-16(7)(v)-5 PROD Cust'!L501+'FR-16(7)(v)-7 TRANS Demand'!L501+'FR-16(7)(v)-8 TRANS Energy'!L501+'FR-16(7)(v)-9 TRANS Cust'!L501+'FR-16(7)(v)-11 DIST Demand'!L501+'FR-16(7)(v)-12 DIST Energy'!L501+'FR-16(7)(v)-13 DIST Cust'!L501-'FR-16(7)(v)-14 TOTAL CLASS'!L501","v":0},{"$f":"'FR-16(7)(v)-3 PROD Demand'!M501+'FR-16(7)(v)-4 PROD Energy'!M501+'FR-16(7)(v)-5 PROD Cust'!M501+'FR-16(7)(v)-7 TRANS Demand'!M501+'FR-16(7)(v)-8 TRANS Energy'!M501+'FR-16(7)(v)-9 TRANS Cust'!M501+'FR-16(7)(v)-11 DIST Demand'!M501+'FR-16(7)(v)-12 DIST Energy'!M501+'FR-16(7)(v)-13 DIST Cust'!M501-'FR-16(7)(v)-14 TOTAL CLASS'!M501","v":0},{"$f":"'FR-16(7)(v)-3 PROD Demand'!N501+'FR-16(7)(v)-4 PROD Energy'!N501+'FR-16(7)(v)-5 PROD Cust'!N501+'FR-16(7)(v)-7 TRANS Demand'!N501+'FR-16(7)(v)-8 TRANS Energy'!N501+'FR-16(7)(v)-9 TRANS Cust'!N501+'FR-16(7)(v)-11 DIST Demand'!N501+'FR-16(7)(v)-12 DIST Energy'!N501+'FR-16(7)(v)-13 DIST Cust'!N501-'FR-16(7)(v)-14 TOTAL CLASS'!N501","v":0},{"$f":"'FR-16(7)(v)-3 PROD Demand'!O501+'FR-16(7)(v)-4 PROD Energy'!O501+'FR-16(7)(v)-5 PROD Cust'!O501+'FR-16(7)(v)-7 TRANS Demand'!O501+'FR-16(7)(v)-8 TRANS Energy'!O501+'FR-16(7)(v)-9 TRANS Cust'!O501+'FR-16(7)(v)-11 DIST Demand'!O501+'FR-16(7)(v)-12 DIST Energy'!O501+'FR-16(7)(v)-13 DIST Cust'!O501-'FR-16(7)(v)-14 TOTAL CLASS'!O501","v":0},{"$f":"'FR-16(7)(v)-3 PROD Demand'!P501+'FR-16(7)(v)-4 PROD Energy'!P501+'FR-16(7)(v)-5 PROD Cust'!P501+'FR-16(7)(v)-7 TRANS Demand'!P501+'FR-16(7)(v)-8 TRANS Energy'!P501+'FR-16(7)(v)-9 TRANS Cust'!P501+'FR-16(7)(v)-11 DIST Demand'!P501+'FR-16(7)(v)-12 DIST Energy'!P501+'FR-16(7)(v)-13 DIST Cust'!P501-'FR-16(7)(v)-14 TOTAL CLASS'!P501","v":0},{"$f":"'FR-16(7)(v)-3 PROD Demand'!Q501+'FR-16(7)(v)-4 PROD Energy'!Q501+'FR-16(7)(v)-5 PROD Cust'!Q501+'FR-16(7)(v)-7 TRANS Demand'!Q501+'FR-16(7)(v)-8 TRANS Energy'!Q501+'FR-16(7)(v)-9 TRANS Cust'!Q501+'FR-16(7)(v)-11 DIST Demand'!Q501+'FR-16(7)(v)-12 DIST Energy'!Q501+'FR-16(7)(v)-13 DIST Cust'!Q501-'FR-16(7)(v)-14 TOTAL CLASS'!Q501","v":0},0,0]
[58,null,{"$f":"'FR-16(7)(v)-1 Functional'!C502","v":"ELIMINATE MISC EXPENSE"},{"$f":"'FR-16(7)(v)-1 Functional'!D502","v":"K405"},null,{"$f":"'FR-16(7)(v)-3 PROD Demand'!F502+'FR-16(7)(v)-4 PROD Energy'!F502+'FR-16(7)(v)-5 PROD Cust'!F502+'FR-16(7)(v)-7 TRANS Demand'!F502+'FR-16(7)(v)-8 TRANS Energy'!F502+'FR-16(7)(v)-9 TRANS Cust'!F502+'FR-16(7)(v)-11 DIST Demand'!F502+'FR-16(7)(v)-12 DIST Energy'!F502+'FR-16(7)(v)-13 DIST Cust'!F502-'FR-16(7)(v)-14 TOTAL CLASS'!F502","v":0},{"$f":"'FR-16(7)(v)-3 PROD Demand'!G502+'FR-16(7)(v)-4 PROD Energy'!G502+'FR-16(7)(v)-5 PROD Cust'!G502+'FR-16(7)(v)-7 TRANS Demand'!G502+'FR-16(7)(v)-8 TRANS Energy'!G502+'FR-16(7)(v)-9 TRANS Cust'!G502+'FR-16(7)(v)-11 DIST Demand'!G502+'FR-16(7)(v)-12 DIST Energy'!G502+'FR-16(7)(v)-13 DIST Cust'!G502-'FR-16(7)(v)-14 TOTAL CLASS'!G502","v":0},{"$f":"'FR-16(7)(v)-3 PROD Demand'!H502+'FR-16(7)(v)-4 PROD Energy'!H502+'FR-16(7)(v)-5 PROD Cust'!H502+'FR-16(7)(v)-7 TRANS Demand'!H502+'FR-16(7)(v)-8 TRANS Energy'!H502+'FR-16(7)(v)-9 TRANS Cust'!H502+'FR-16(7)(v)-11 DIST Demand'!H502+'FR-16(7)(v)-12 DIST Energy'!H502+'FR-16(7)(v)-13 DIST Cust'!H502-'FR-16(7)(v)-14 TOTAL CLASS'!H502","v":0},{"$f":"'FR-16(7)(v)-3 PROD Demand'!I502+'FR-16(7)(v)-4 PROD Energy'!I502+'FR-16(7)(v)-5 PROD Cust'!I502+'FR-16(7)(v)-7 TRANS Demand'!I502+'FR-16(7)(v)-8 TRANS Energy'!I502+'FR-16(7)(v)-9 TRANS Cust'!I502+'FR-16(7)(v)-11 DIST Demand'!I502+'FR-16(7)(v)-12 DIST Energy'!I502+'FR-16(7)(v)-13 DIST Cust'!I502-'FR-16(7)(v)-14 TOTAL CLASS'!I502","v":0},{"$f":"'FR-16(7)(v)-3 PROD Demand'!J502+'FR-16(7)(v)-4 PROD Energy'!J502+'FR-16(7)(v)-5 PROD Cust'!J502+'FR-16(7)(v)-7 TRANS Demand'!J502+'FR-16(7)(v)-8 TRANS Energy'!J502+'FR-16(7)(v)-9 TRANS Cust'!J502+'FR-16(7)(v)-11 DIST Demand'!J502+'FR-16(7)(v)-12 DIST Energy'!J502+'FR-16(7)(v)-13 DIST Cust'!J502-'FR-16(7)(v)-14 TOTAL CLASS'!J502","v":0},{"$f":"'FR-16(7)(v)-3 PROD Demand'!K502+'FR-16(7)(v)-4 PROD Energy'!K502+'FR-16(7)(v)-5 PROD Cust'!K502+'FR-16(7)(v)-7 TRANS Demand'!K502+'FR-16(7)(v)-8 TRANS Energy'!K502+'FR-16(7)(v)-9 TRANS Cust'!K502+'FR-16(7)(v)-11 DIST Demand'!K502+'FR-16(7)(v)-12 DIST Energy'!K502+'FR-16(7)(v)-13 DIST Cust'!K502-'FR-16(7)(v)-14 TOTAL CLASS'!K502","v":0},{"$f":"'FR-16(7)(v)-3 PROD Demand'!L502+'FR-16(7)(v)-4 PROD Energy'!L502+'FR-16(7)(v)-5 PROD Cust'!L502+'FR-16(7)(v)-7 TRANS Demand'!L502+'FR-16(7)(v)-8 TRANS Energy'!L502+'FR-16(7)(v)-9 TRANS Cust'!L502+'FR-16(7)(v)-11 DIST Demand'!L502+'FR-16(7)(v)-12 DIST Energy'!L502+'FR-16(7)(v)-13 DIST Cust'!L502-'FR-16(7)(v)-14 TOTAL CLASS'!L502","v":0},{"$f":"'FR-16(7)(v)-3 PROD Demand'!M502+'FR-16(7)(v)-4 PROD Energy'!M502+'FR-16(7)(v)-5 PROD Cust'!M502+'FR-16(7)(v)-7 TRANS Demand'!M502+'FR-16(7)(v)-8 TRANS Energy'!M502+'FR-16(7)(v)-9 TRANS Cust'!M502+'FR-16(7)(v)-11 DIST Demand'!M502+'FR-16(7)(v)-12 DIST Energy'!M502+'FR-16(7)(v)-13 DIST Cust'!M502-'FR-16(7)(v)-14 TOTAL CLASS'!M502","v":0},{"$f":"'FR-16(7)(v)-3 PROD Demand'!N502+'FR-16(7)(v)-4 PROD Energy'!N502+'FR-16(7)(v)-5 PROD Cust'!N502+'FR-16(7)(v)-7 TRANS Demand'!N502+'FR-16(7)(v)-8 TRANS Energy'!N502+'FR-16(7)(v)-9 TRANS Cust'!N502+'FR-16(7)(v)-11 DIST Demand'!N502+'FR-16(7)(v)-12 DIST Energy'!N502+'FR-16(7)(v)-13 DIST Cust'!N502-'FR-16(7)(v)-14 TOTAL CLASS'!N502","v":0},{"$f":"'FR-16(7)(v)-3 PROD Demand'!O502+'FR-16(7)(v)-4 PROD Energy'!O502+'FR-16(7)(v)-5 PROD Cust'!O502+'FR-16(7)(v)-7 TRANS Demand'!O502+'FR-16(7)(v)-8 TRANS Energy'!O502+'FR-16(7)(v)-9 TRANS Cust'!O502+'FR-16(7)(v)-11 DIST Demand'!O502+'FR-16(7)(v)-12 DIST Energy'!O502+'FR-16(7)(v)-13 DIST Cust'!O502-'FR-16(7)(v)-14 TOTAL CLASS'!O502","v":0},{"$f":"'FR-16(7)(v)-3 PROD Demand'!P502+'FR-16(7)(v)-4 PROD Energy'!P502+'FR-16(7)(v)-5 PROD Cust'!P502+'FR-16(7)(v)-7 TRANS Demand'!P502+'FR-16(7)(v)-8 TRANS Energy'!P502+'FR-16(7)(v)-9 TRANS Cust'!P502+'FR-16(7)(v)-11 DIST Demand'!P502+'FR-16(7)(v)-12 DIST Energy'!P502+'FR-16(7)(v)-13 DIST Cust'!P502-'FR-16(7)(v)-14 TOTAL CLASS'!P502","v":0},{"$f":"'FR-16(7)(v)-3 PROD Demand'!Q502+'FR-16(7)(v)-4 PROD Energy'!Q502+'FR-16(7)(v)-5 PROD Cust'!Q502+'FR-16(7)(v)-7 TRANS Demand'!Q502+'FR-16(7)(v)-8 TRANS Energy'!Q502+'FR-16(7)(v)-9 TRANS Cust'!Q502+'FR-16(7)(v)-11 DIST Demand'!Q502+'FR-16(7)(v)-12 DIST Energy'!Q502+'FR-16(7)(v)-13 DIST Cust'!Q502-'FR-16(7)(v)-14 TOTAL CLASS'!Q502","v":0},0,0]
[59,null,{"$f":"'FR-16(7)(v)-1 Functional'!C503","v":"  TOTAL CUSTOMER ACCT EXPENSE"},null," ",{"$f":"SUM(F494:F502)","v":0},{"$f":"SUM(G494:G502)","v":0},0,0,{"$f":"SUM(J494:J502)","v":0},0,0,0,0,0,0,0,0,0]
[]
[{"$f":"co_name","v":"DUKE ENERGY KENTUCKY, INC."},null,null,null,null,null,null,null,null,null,null,null,null,null,null,null,null,{"$f":"R1","v":"FR-16(7)(v)-14"}]
[{"$f":"$A$2","v":"TOTAL CLASS ALLOCATED - ELECTRIC COST OF SERVICE"},null,null,null,null,null,null,null,null,null,null,null,null,null,null,null,null,{"$f":"R2","v":"WITNESS RESPONSIBLE:"}]
[{"$f":"case_name","v":"CASE NO: 2019-00271"},null,null,null,null,null,null,null,null,null,null,null,null,null,null,null,null,{"$f":"Witness","v":"JAMES E. ZIOLKOWSKI"}]
[{"$f":"data_filing","v":"DATA: 12 MONTHS ACTUAL  & 0 MONTHS ESTIMATED"},null,null,null,null,null,null,null,null,null,null,null,null,null,null,null,null,{"$f":"\"PAGE \"&Pages2-6&\" OF \"&Pages2","v":"PAGE 9 OF 15"}]
[{"$f":"type","v":"TYPE OF FILING: \"X\" ORIGINAL   UPDATED    REVISED  "}]
[]
[null,null,null,null,null,{"$f":"F$7","v":"TOTAL"},null,{"$f":"H$7","v":"DS"},{"$f":"I$7","v":"GSFL"},{"$f":"J$7","v":"EH"},{"$f":"K$7","v":"SP"},"DT SEC","DT PRI","DP","TT",null,"OTHER"]
["LINE",null,null,null,null,{"$f":"F$8","v":"CLASS"},{"$f":"G$8","v":"RS"},{"$f":"H$8","v":"SECONDARY"},{"$f":"I$8","v":"SECONDARY"},{"$f":"J$8","v":"SECONDARY"},{"$f":"K$8","v":"SECONDARY"},"SECONDARY","PRIMARY","PRIMARY","TRANSMISSION","LT","WATER",{"$f":"R8","v":"TOTAL"},"ALL"]
["NO.","O&M EXPENSES",null,"ALLO",null,{"$f":"F$9","v":"ALLOCATED"},{"$f":"G$9","v":"RESIDENTIAL"},{"$f":"H$9","v":"DISTRIBUTION"},{"$f":"I$9","v":"DISTRIBUTION"},{"$f":"J$9","v":"DISTRIBUTION"},{"$f":"K$9","v":"DISTRIBUTION"},"DISTRIBUTION","DISTRIBUTION","DISTRIBUTION","TIME OF DAY","LIGHTING","PUMPING",{"$f":"R9","v":"AT ISSUE"},"OTHER"]
[null,null,"Schedule 6.1",null,null,null,{"$f":"G$10","v":3},{"$f":"H$10","v":4},{"$f":"I$10","v":5},{"$f":"J$10","v":6},{"$f":"K$10","v":7},8,9,10,11,12,13,null," "]
[1,"CUSTOMER SERVICE & INFORMATION"]
[2,null,{"$f":"'FR-16(7)(v)-1 Functional'!C516","v":"TOTAL CUST SERVICE & INFO"},{"$f":"'FR-16(7)(v)-1 Functional'!D516","v":"K405"},null,{"$f":"'FR-16(7)(v)-3 PROD Demand'!F516+'FR-16(7)(v)-4 PROD Energy'!F516+'FR-16(7)(v)-5 PROD Cust'!F516+'FR-16(7)(v)-7 TRANS Demand'!F516+'FR-16(7)(v)-8 TRANS Energy'!F516+'FR-16(7)(v)-9 TRANS Cust'!F516+'FR-16(7)(v)-11 DIST Demand'!F516+'FR-16(7)(v)-12 DIST Energy'!F516+'FR-16(7)(v)-13 DIST Cust'!F516-'FR-16(7)(v)-14 TOTAL CLASS'!F516","v":0},{"$f":"'FR-16(7)(v)-3 PROD Demand'!G516+'FR-16(7)(v)-4 PROD Energy'!G516+'FR-16(7)(v)-5 PROD Cust'!G516+'FR-16(7)(v)-7 TRANS Demand'!G516+'FR-16(7)(v)-8 TRANS Energy'!G516+'FR-16(7)(v)-9 TRANS Cust'!G516+'FR-16(7)(v)-11 DIST Demand'!G516+'FR-16(7)(v)-12 DIST Energy'!G516+'FR-16(7)(v)-13 DIST Cust'!G516-'FR-16(7)(v)-14 TOTAL CLASS'!G516","v":0},{"$f":"'FR-16(7)(v)-3 PROD Demand'!H516+'FR-16(7)(v)-4 PROD Energy'!H516+'FR-16(7)(v)-5 PROD Cust'!H516+'FR-16(7)(v)-7 TRANS Demand'!H516+'FR-16(7)(v)-8 TRANS Energy'!H516+'FR-16(7)(v)-9 TRANS Cust'!H516+'FR-16(7)(v)-11 DIST Demand'!H516+'FR-16(7)(v)-12 DIST Energy'!H516+'FR-16(7)(v)-13 DIST Cust'!H516-'FR-16(7)(v)-14 TOTAL CLASS'!H516","v":0},{"$f":"'FR-16(7)(v)-3 PROD Demand'!I516+'FR-16(7)(v)-4 PROD Energy'!I516+'FR-16(7)(v)-5 PROD Cust'!I516+'FR-16(7)(v)-7 TRANS Demand'!I516+'FR-16(7)(v)-8 TRANS Energy'!I516+'FR-16(7)(v)-9 TRANS Cust'!I516+'FR-16(7)(v)-11 DIST Demand'!I516+'FR-16(7)(v)-12 DIST Energy'!I516+'FR-16(7)(v)-13 DIST Cust'!I516-'FR-16(7)(v)-14 TOTAL CLASS'!I516","v":0},{"$f":"'FR-16(7)(v)-3 PROD Demand'!J516+'FR-16(7)(v)-4 PROD Energy'!J516+'FR-16(7)(v)-5 PROD Cust'!J516+'FR-16(7)(v)-7 TRANS Demand'!J516+'FR-16(7)(v)-8 TRANS Energy'!J516+'FR-16(7)(v)-9 TRANS Cust'!J516+'FR-16(7)(v)-11 DIST Demand'!J516+'FR-16(7)(v)-12 DIST Energy'!J516+'FR-16(7)(v)-13 DIST Cust'!J516-'FR-16(7)(v)-14 TOTAL CLASS'!J516","v":0},{"$f":"'FR-16(7)(v)-3 PROD Demand'!K516+'FR-16(7)(v)-4 PROD Energy'!K516+'FR-16(7)(v)-5 PROD Cust'!K516+'FR-16(7)(v)-7 TRANS Demand'!K516+'FR-16(7)(v)-8 TRANS Energy'!K516+'FR-16(7)(v)-9 TRANS Cust'!K516+'FR-16(7)(v)-11 DIST Demand'!K516+'FR-16(7)(v)-12 DIST Energy'!K516+'FR-16(7)(v)-13 DIST Cust'!K516-'FR-16(7)(v)-14 TOTAL CLASS'!K516","v":0},{"$f":"'FR-16(7)(v)-3 PROD Demand'!L516+'FR-16(7)(v)-4 PROD Energy'!L516+'FR-16(7)(v)-5 PROD Cust'!L516+'FR-16(7)(v)-7 TRANS Demand'!L516+'FR-16(7)(v)-8 TRANS Energy'!L516+'FR-16(7)(v)-9 TRANS Cust'!L516+'FR-16(7)(v)-11 DIST Demand'!L516+'FR-16(7)(v)-12 DIST Energy'!L516+'FR-16(7)(v)-13 DIST Cust'!L516-'FR-16(7)(v)-14 TOTAL CLASS'!L516","v":0},{"$f":"'FR-16(7)(v)-3 PROD Demand'!M516+'FR-16(7)(v)-4 PROD Energy'!M516+'FR-16(7)(v)-5 PROD Cust'!M516+'FR-16(7)(v)-7 TRANS Demand'!M516+'FR-16(7)(v)-8 TRANS Energy'!M516+'FR-16(7)(v)-9 TRANS Cust'!M516+'FR-16(7)(v)-11 DIST Demand'!M516+'FR-16(7)(v)-12 DIST Energy'!M516+'FR-16(7)(v)-13 DIST Cust'!M516-'FR-16(7)(v)-14 TOTAL CLASS'!M516","v":0},{"$f":"'FR-16(7)(v)-3 PROD Demand'!N516+'FR-16(7)(v)-4 PROD Energy'!N516+'FR-16(7)(v)-5 PROD Cust'!N516+'FR-16(7)(v)-7 TRANS Demand'!N516+'FR-16(7)(v)-8 TRANS Energy'!N516+'FR-16(7)(v)-9 TRANS Cust'!N516+'FR-16(7)(v)-11 DIST Demand'!N516+'FR-16(7)(v)-12 DIST Energy'!N516+'FR-16(7)(v)-13 DIST Cust'!N516-'FR-16(7)(v)-14 TOTAL CLASS'!N516","v":0},{"$f":"'FR-16(7)(v)-3 PROD Demand'!O516+'FR-16(7)(v)-4 PROD Energy'!O516+'FR-16(7)(v)-5 PROD Cust'!O516+'FR-16(7)(v)-7 TRANS Demand'!O516+'FR-16(7)(v)-8 TRANS Energy'!O516+'FR-16(7)(v)-9 TRANS Cust'!O516+'FR-16(7)(v)-11 DIST Demand'!O516+'FR-16(7)(v)-12 DIST Energy'!O516+'FR-16(7)(v)-13 DIST Cust'!O516-'FR-16(7)(v)-14 TOTAL CLASS'!O516","v":0},{"$f":"'FR-16(7)(v)-3 PROD Demand'!P516+'FR-16(7)(v)-4 PROD Energy'!P516+'FR-16(7)(v)-5 PROD Cust'!P516+'FR-16(7)(v)-7 TRANS Demand'!P516+'FR-16(7)(v)-8 TRANS Energy'!P516+'FR-16(7)(v)-9 TRANS Cust'!P516+'FR-16(7)(v)-11 DIST Demand'!P516+'FR-16(7)(v)-12 DIST Energy'!P516+'FR-16(7)(v)-13 DIST Cust'!P516-'FR-16(7)(v)-14 TOTAL CLASS'!P516","v":0},{"$f":"'FR-16(7)(v)-3 PROD Demand'!Q516+'FR-16(7)(v)-4 PROD Energy'!Q516+'FR-16(7)(v)-5 PROD Cust'!Q516+'FR-16(7)(v)-7 TRANS Demand'!Q516+'FR-16(7)(v)-8 TRANS Energy'!Q516+'FR-16(7)(v)-9 TRANS Cust'!Q516+'FR-16(7)(v)-11 DIST Demand'!Q516+'FR-16(7)(v)-12 DIST Energy'!Q516+'FR-16(7)(v)-13 DIST Cust'!Q516-'FR-16(7)(v)-14 TOTAL CLASS'!Q516","v":0},{"$f":"SUM(G516:Q516)","v":0},{"$f":"F516-R516","v":0}]
[3,null,{"$f":"'FR-16(7)(v)-1 Functional'!C517","v":"INFORMATIONAL & INSTRUCTIONAL ADV"},{"$f":"'FR-16(7)(v)-1 Functional'!D517","v":"K405"},null,{"$f":"'FR-16(7)(v)-3 PROD Demand'!F517+'FR-16(7)(v)-4 PROD Energy'!F517+'FR-16(7)(v)-5 PROD Cust'!F517+'FR-16(7)(v)-7 TRANS Demand'!F517+'FR-16(7)(v)-8 TRANS Energy'!F517+'FR-16(7)(v)-9 TRANS Cust'!F517+'FR-16(7)(v)-11 DIST Demand'!F517+'FR-16(7)(v)-12 DIST Energy'!F517+'FR-16(7)(v)-13 DIST Cust'!F517-'FR-16(7)(v)-14 TOTAL CLASS'!F517","v":0},{"$f":"'FR-16(7)(v)-3 PROD Demand'!G517+'FR-16(7)(v)-4 PROD Energy'!G517+'FR-16(7)(v)-5 PROD Cust'!G517+'FR-16(7)(v)-7 TRANS Demand'!G517+'FR-16(7)(v)-8 TRANS Energy'!G517+'FR-16(7)(v)-9 TRANS Cust'!G517+'FR-16(7)(v)-11 DIST Demand'!G517+'FR-16(7)(v)-12 DIST Energy'!G517+'FR-16(7)(v)-13 DIST Cust'!G517-'FR-16(7)(v)-14 TOTAL CLASS'!G517","v":0},{"$f":"'FR-16(7)(v)-3 PROD Demand'!H517+'FR-16(7)(v)-4 PROD Energy'!H517+'FR-16(7)(v)-5 PROD Cust'!H517+'FR-16(7)(v)-7 TRANS Demand'!H517+'FR-16(7)(v)-8 TRANS Energy'!H517+'FR-16(7)(v)-9 TRANS Cust'!H517+'FR-16(7)(v)-11 DIST Demand'!H517+'FR-16(7)(v)-12 DIST Energy'!H517+'FR-16(7)(v)-13 DIST Cust'!H517-'FR-16(7)(v)-14 TOTAL CLASS'!H517","v":0},{"$f":"'FR-16(7)(v)-3 PROD Demand'!I517+'FR-16(7)(v)-4 PROD Energy'!I517+'FR-16(7)(v)-5 PROD Cust'!I517+'FR-16(7)(v)-7 TRANS Demand'!I517+'FR-16(7)(v)-8 TRANS Energy'!I517+'FR-16(7)(v)-9 TRANS Cust'!I517+'FR-16(7)(v)-11 DIST Demand'!I517+'FR-16(7)(v)-12 DIST Energy'!I517+'FR-16(7)(v)-13 DIST Cust'!I517-'FR-16(7)(v)-14 TOTAL CLASS'!I517","v":0},{"$f":"'FR-16(7)(v)-3 PROD Demand'!J517+'FR-16(7)(v)-4 PROD Energy'!J517+'FR-16(7)(v)-5 PROD Cust'!J517+'FR-16(7)(v)-7 TRANS Demand'!J517+'FR-16(7)(v)-8 TRANS Energy'!J517+'FR-16(7)(v)-9 TRANS Cust'!J517+'FR-16(7)(v)-11 DIST Demand'!J517+'FR-16(7)(v)-12 DIST Energy'!J517+'FR-16(7)(v)-13 DIST Cust'!J517-'FR-16(7)(v)-14 TOTAL CLASS'!J517","v":0},{"$f":"'FR-16(7)(v)-3 PROD Demand'!K517+'FR-16(7)(v)-4 PROD Energy'!K517+'FR-16(7)(v)-5 PROD Cust'!K517+'FR-16(7)(v)-7 TRANS Demand'!K517+'FR-16(7)(v)-8 TRANS Energy'!K517+'FR-16(7)(v)-9 TRANS Cust'!K517+'FR-16(7)(v)-11 DIST Demand'!K517+'FR-16(7)(v)-12 DIST Energy'!K517+'FR-16(7)(v)-13 DIST Cust'!K517-'FR-16(7)(v)-14 TOTAL CLASS'!K517","v":0},{"$f":"'FR-16(7)(v)-3 PROD Demand'!L517+'FR-16(7)(v)-4 PROD Energy'!L517+'FR-16(7)(v)-5 PROD Cust'!L517+'FR-16(7)(v)-7 TRANS Demand'!L517+'FR-16(7)(v)-8 TRANS Energy'!L517+'FR-16(7)(v)-9 TRANS Cust'!L517+'FR-16(7)(v)-11 DIST Demand'!L517+'FR-16(7)(v)-12 DIST Energy'!L517+'FR-16(7)(v)-13 DIST Cust'!L517-'FR-16(7)(v)-14 TOTAL CLASS'!L517","v":0},{"$f":"'FR-16(7)(v)-3 PROD Demand'!M517+'FR-16(7)(v)-4 PROD Energy'!M517+'FR-16(7)(v)-5 PROD Cust'!M517+'FR-16(7)(v)-7 TRANS Demand'!M517+'FR-16(7)(v)-8 TRANS Energy'!M517+'FR-16(7)(v)-9 TRANS Cust'!M517+'FR-16(7)(v)-11 DIST Demand'!M517+'FR-16(7)(v)-12 DIST Energy'!M517+'FR-16(7)(v)-13 DIST Cust'!M517-'FR-16(7)(v)-14 TOTAL CLASS'!M517","v":0},{"$f":"'FR-16(7)(v)-3 PROD Demand'!N517+'FR-16(7)(v)-4 PROD Energy'!N517+'FR-16(7)(v)-5 PROD Cust'!N517+'FR-16(7)(v)-7 TRANS Demand'!N517+'FR-16(7)(v)-8 TRANS Energy'!N517+'FR-16(7)(v)-9 TRANS Cust'!N517+'FR-16(7)(v)-11 DIST Demand'!N517+'FR-16(7)(v)-12 DIST Energy'!N517+'FR-16(7)(v)-13 DIST Cust'!N517-'FR-16(7)(v)-14 TOTAL CLASS'!N517","v":0},{"$f":"'FR-16(7)(v)-3 PROD Demand'!O517+'FR-16(7)(v)-4 PROD Energy'!O517+'FR-16(7)(v)-5 PROD Cust'!O517+'FR-16(7)(v)-7 TRANS Demand'!O517+'FR-16(7)(v)-8 TRANS Energy'!O517+'FR-16(7)(v)-9 TRANS Cust'!O517+'FR-16(7)(v)-11 DIST Demand'!O517+'FR-16(7)(v)-12 DIST Energy'!O517+'FR-16(7)(v)-13 DIST Cust'!O517-'FR-16(7)(v)-14 TOTAL CLASS'!O517","v":0},{"$f":"'FR-16(7)(v)-3 PROD Demand'!P517+'FR-16(7)(v)-4 PROD Energy'!P517+'FR-16(7)(v)-5 PROD Cust'!P517+'FR-16(7)(v)-7 TRANS Demand'!P517+'FR-16(7)(v)-8 TRANS Energy'!P517+'FR-16(7)(v)-9 TRANS Cust'!P517+'FR-16(7)(v)-11 DIST Demand'!P517+'FR-16(7)(v)-12 DIST Energy'!P517+'FR-16(7)(v)-13 DIST Cust'!P517-'FR-16(7)(v)-14 TOTAL CLASS'!P517","v":0},{"$f":"'FR-16(7)(v)-3 PROD Demand'!Q517+'FR-16(7)(v)-4 PROD Energy'!Q517+'FR-16(7)(v)-5 PROD Cust'!Q517+'FR-16(7)(v)-7 TRANS Demand'!Q517+'FR-16(7)(v)-8 TRANS Energy'!Q517+'FR-16(7)(v)-9 TRANS Cust'!Q517+'FR-16(7)(v)-11 DIST Demand'!Q517+'FR-16(7)(v)-12 DIST Energy'!Q517+'FR-16(7)(v)-13 DIST Cust'!Q517-'FR-16(7)(v)-14 TOTAL CLASS'!Q517","v":0},{"$f":"SUM(G517:Q517)","v":0}]
[4,null,{"$f":"'FR-16(7)(v)-1 Functional'!C518","v":"TOTAL CUSTOMER SERV. & INFO."},null," ",{"$f":"SUM(F516:F517)","v":0},{"$f":"SUM(G516:G517)","v":0},0,0,0,0,0,0,0,0,0,0,0,0]
[5]
[6,"SALES"]
[7,null,{"$f":"'FR-16(7)(v)-1 Functional'!C521","v":"SALES EXPENSE"},{"$f":"'FR-16(7)(v)-1 Functional'!D521","v":"K405"}," ",{"$f":"'FR-16(7)(v)-3 PROD Demand'!F521+'FR-16(7)(v)-4 PROD Energy'!F521+'FR-16(7)(v)-5 PROD Cust'!F521+'FR-16(7)(v)-7 TRANS Demand'!F521+'FR-16(7)(v)-8 TRANS Energy'!F521+'FR-16(7)(v)-9 TRANS Cust'!F521+'FR-16(7)(v)-11 DIST Demand'!F521+'FR-16(7)(v)-12 DIST Energy'!F521+'FR-16(7)(v)-13 DIST Cust'!F521-'FR-16(7)(v)-14 TOTAL CLASS'!F521","v":0},{"$f":"'FR-16(7)(v)-3 PROD Demand'!G521+'FR-16(7)(v)-4 PROD Energy'!G521+'FR-16(7)(v)-5 PROD Cust'!G521+'FR-16(7)(v)-7 TRANS Demand'!G521+'FR-16(7)(v)-8 TRANS Energy'!G521+'FR-16(7)(v)-9 TRANS Cust'!G521+'FR-16(7)(v)-11 DIST Demand'!G521+'FR-16(7)(v)-12 DIST Energy'!G521+'FR-16(7)(v)-13 DIST Cust'!G521-'FR-16(7)(v)-14 TOTAL CLASS'!G521","v":0},{"$f":"'FR-16(7)(v)-3 PROD Demand'!H521+'FR-16(7)(v)-4 PROD Energy'!H521+'FR-16(7)(v)-5 PROD Cust'!H521+'FR-16(7)(v)-7 TRANS Demand'!H521+'FR-16(7)(v)-8 TRANS Energy'!H521+'FR-16(7)(v)-9 TRANS Cust'!H521+'FR-16(7)(v)-11 DIST Demand'!H521+'FR-16(7)(v)-12 DIST Energy'!H521+'FR-16(7)(v)-13 DIST Cust'!H521-'FR-16(7)(v)-14 TOTAL CLASS'!H521","v":0},{"$f":"'FR-16(7)(v)-3 PROD Demand'!I521+'FR-16(7)(v)-4 PROD Energy'!I521+'FR-16(7)(v)-5 PROD Cust'!I521+'FR-16(7)(v)-7 TRANS Demand'!I521+'FR-16(7)(v)-8 TRANS Energy'!I521+'FR-16(7)(v)-9 TRANS Cust'!I521+'FR-16(7)(v)-11 DIST Demand'!I521+'FR-16(7)(v)-12 DIST Energy'!I521+'FR-16(7)(v)-13 DIST Cust'!I521-'FR-16(7)(v)-14 TOTAL CLASS'!I521","v":0},{"$f":"'FR-16(7)(v)-3 PROD Demand'!J521+'FR-16(7)(v)-4 PROD Energy'!J521+'FR-16(7)(v)-5 PROD Cust'!J521+'FR-16(7)(v)-7 TRANS Demand'!J521+'FR-16(7)(v)-8 TRANS Energy'!J521+'FR-16(7)(v)-9 TRANS Cust'!J521+'FR-16(7)(v)-11 DIST Demand'!J521+'FR-16(7)(v)-12 DIST Energy'!J521+'FR-16(7)(v)-13 DIST Cust'!J521-'FR-16(7)(v)-14 TOTAL CLASS'!J521","v":0},{"$f":"'FR-16(7)(v)-3 PROD Demand'!K521+'FR-16(7)(v)-4 PROD Energy'!K521+'FR-16(7)(v)-5 PROD Cust'!K521+'FR-16(7)(v)-7 TRANS Demand'!K521+'FR-16(7)(v)-8 TRANS Energy'!K521+'FR-16(7)(v)-9 TRANS Cust'!K521+'FR-16(7)(v)-11 DIST Demand'!K521+'FR-16(7)(v)-12 DIST Energy'!K521+'FR-16(7)(v)-13 DIST Cust'!K521-'FR-16(7)(v)-14 TOTAL CLASS'!K521","v":0},{"$f":"'FR-16(7)(v)-3 PROD Demand'!L521+'FR-16(7)(v)-4 PROD Energy'!L521+'FR-16(7)(v)-5 PROD Cust'!L521+'FR-16(7)(v)-7 TRANS Demand'!L521+'FR-16(7)(v)-8 TRANS Energy'!L521+'FR-16(7)(v)-9 TRANS Cust'!L521+'FR-16(7)(v)-11 DIST Demand'!L521+'FR-16(7)(v)-12 DIST Energy'!L521+'FR-16(7)(v)-13 DIST Cust'!L521-'FR-16(7)(v)-14 TOTAL CLASS'!L521","v":0},{"$f":"'FR-16(7)(v)-3 PROD Demand'!M521+'FR-16(7)(v)-4 PROD Energy'!M521+'FR-16(7)(v)-5 PROD Cust'!M521+'FR-16(7)(v)-7 TRANS Demand'!M521+'FR-16(7)(v)-8 TRANS Energy'!M521+'FR-16(7)(v)-9 TRANS Cust'!M521+'FR-16(7)(v)-11 DIST Demand'!M521+'FR-16(7)(v)-12 DIST Energy'!M521+'FR-16(7)(v)-13 DIST Cust'!M521-'FR-16(7)(v)-14 TOTAL CLASS'!M521","v":0},{"$f":"'FR-16(7)(v)-3 PROD Demand'!N521+'FR-16(7)(v)-4 PROD Energy'!N521+'FR-16(7)(v)-5 PROD Cust'!N521+'FR-16(7)(v)-7 TRANS Demand'!N521+'FR-16(7)(v)-8 TRANS Energy'!N521+'FR-16(7)(v)-9 TRANS Cust'!N521+'FR-16(7)(v)-11 DIST Demand'!N521+'FR-16(7)(v)-12 DIST Energy'!N521+'FR-16(7)(v)-13 DIST Cust'!N521-'FR-16(7)(v)-14 TOTAL CLASS'!N521","v":0},{"$f":"'FR-16(7)(v)-3 PROD Demand'!O521+'FR-16(7)(v)-4 PROD Energy'!O521+'FR-16(7)(v)-5 PROD Cust'!O521+'FR-16(7)(v)-7 TRANS Demand'!O521+'FR-16(7)(v)-8 TRANS Energy'!O521+'FR-16(7)(v)-9 TRANS Cust'!O521+'FR-16(7)(v)-11 DIST Demand'!O521+'FR-16(7)(v)-12 DIST Energy'!O521+'FR-16(7)(v)-13 DIST Cust'!O521-'FR-16(7)(v)-14 TOTAL CLASS'!O521","v":0},{"$f":"'FR-16(7)(v)-3 PROD Demand'!P521+'FR-16(7)(v)-4 PROD Energy'!P521+'FR-16(7)(v)-5 PROD Cust'!P521+'FR-16(7)(v)-7 TRANS Demand'!P521+'FR-16(7)(v)-8 TRANS Energy'!P521+'FR-16(7)(v)-9 TRANS Cust'!P521+'FR-16(7)(v)-11 DIST Demand'!P521+'FR-16(7)(v)-12 DIST Energy'!P521+'FR-16(7)(v)-13 DIST Cust'!P521-'FR-16(7)(v)-14 TOTAL CLASS'!P521","v":0},{"$f":"'FR-16(7)(v)-3 PROD Demand'!Q521+'FR-16(7)(v)-4 PROD Energy'!Q521+'FR-16(7)(v)-5 PROD Cust'!Q521+'FR-16(7)(v)-7 TRANS Demand'!Q521+'FR-16(7)(v)-8 TRANS Energy'!Q521+'FR-16(7)(v)-9 TRANS Cust'!Q521+'FR-16(7)(v)-11 DIST Demand'!Q521+'FR-16(7)(v)-12 DIST Energy'!Q521+'FR-16(7)(v)-13 DIST Cust'!Q521-'FR-16(7)(v)-14 TOTAL CLASS'!Q521","v":0},{"$f":"SUM(G521:Q521)","v":0},{"$f":"F521-R521","v":0}]
[8,null,{"$f":"'FR-16(7)(v)-1 Functional'!C522","v":"TOTAL SALES EXPENSE"},null," ",{"$f":"SUM(F520:F521)","v":0},{"$f":"SUM(G520:G521)","v":0},0,0,0,0,0,0,0,0,0,0,0,0]
[9]
[10,"ADMINISTRATIVE & GENERAL "]
[11,null,{"$f":"'FR-16(7)(v)-1 Functional'!C525","v":"PRODUCTION - DEMAND RELATED"},{"$f":"'FR-16(7)(v)-1 Functional'!D525","v":"P349"},null,{"$f":"'FR-16(7)(v)-3 PROD Demand'!F525+'FR-16(7)(v)-4 PROD Energy'!F525+'FR-16(7)(v)-5 PROD Cust'!F525+'FR-16(7)(v)-7 TRANS Demand'!F525+'FR-16(7)(v)-8 TRANS Energy'!F525+'FR-16(7)(v)-9 TRANS Cust'!F525+'FR-16(7)(v)-11 DIST Demand'!F525+'FR-16(7)(v)-12 DIST Energy'!F525+'FR-16(7)(v)-13 DIST Cust'!F525-'FR-16(7)(v)-14 TOTAL CLASS'!F525","v":0},{"$f":"'FR-16(7)(v)-3 PROD Demand'!G525+'FR-16(7)(v)-4 PROD Energy'!G525+'FR-16(7)(v)-5 PROD Cust'!G525+'FR-16(7)(v)-7 TRANS Demand'!G525+'FR-16(7)(v)-8 TRANS Energy'!G525+'FR-16(7)(v)-9 TRANS Cust'!G525+'FR-16(7)(v)-11 DIST Demand'!G525+'FR-16(7)(v)-12 DIST Energy'!G525+'FR-16(7)(v)-13 DIST Cust'!G525-'FR-16(7)(v)-14 TOTAL CLASS'!G525","v":0},{"$f":"'FR-16(7)(v)-3 PROD Demand'!H525+'FR-16(7)(v)-4 PROD Energy'!H525+'FR-16(7)(v)-5 PROD Cust'!H525+'FR-16(7)(v)-7 TRANS Demand'!H525+'FR-16(7)(v)-8 TRANS Energy'!H525+'FR-16(7)(v)-9 TRANS Cust'!H525+'FR-16(7)(v)-11 DIST Demand'!H525+'FR-16(7)(v)-12 DIST Energy'!H525+'FR-16(7)(v)-13 DIST Cust'!H525-'FR-16(7)(v)-14 TOTAL CLASS'!H525","v":0},{"$f":"'FR-16(7)(v)-3 PROD Demand'!I525+'FR-16(7)(v)-4 PROD Energy'!I525+'FR-16(7)(v)-5 PROD Cust'!I525+'FR-16(7)(v)-7 TRANS Demand'!I525+'FR-16(7)(v)-8 TRANS Energy'!I525+'FR-16(7)(v)-9 TRANS Cust'!I525+'FR-16(7)(v)-11 DIST Demand'!I525+'FR-16(7)(v)-12 DIST Energy'!I525+'FR-16(7)(v)-13 DIST Cust'!I525-'FR-16(7)(v)-14 TOTAL CLASS'!I525","v":0},{"$f":"'FR-16(7)(v)-3 PROD Demand'!J525+'FR-16(7)(v)-4 PROD Energy'!J525+'FR-16(7)(v)-5 PROD Cust'!J525+'FR-16(7)(v)-7 TRANS Demand'!J525+'FR-16(7)(v)-8 TRANS Energy'!J525+'FR-16(7)(v)-9 TRANS Cust'!J525+'FR-16(7)(v)-11 DIST Demand'!J525+'FR-16(7)(v)-12 DIST Energy'!J525+'FR-16(7)(v)-13 DIST Cust'!J525-'FR-16(7)(v)-14 TOTAL CLASS'!J525","v":0},{"$f":"'FR-16(7)(v)-3 PROD Demand'!K525+'FR-16(7)(v)-4 PROD Energy'!K525+'FR-16(7)(v)-5 PROD Cust'!K525+'FR-16(7)(v)-7 TRANS Demand'!K525+'FR-16(7)(v)-8 TRANS Energy'!K525+'FR-16(7)(v)-9 TRANS Cust'!K525+'FR-16(7)(v)-11 DIST Demand'!K525+'FR-16(7)(v)-12 DIST Energy'!K525+'FR-16(7)(v)-13 DIST Cust'!K525-'FR-16(7)(v)-14 TOTAL CLASS'!K525","v":0},{"$f":"'FR-16(7)(v)-3 PROD Demand'!L525+'FR-16(7)(v)-4 PROD Energy'!L525+'FR-16(7)(v)-5 PROD Cust'!L525+'FR-16(7)(v)-7 TRANS Demand'!L525+'FR-16(7)(v)-8 TRANS Energy'!L525+'FR-16(7)(v)-9 TRANS Cust'!L525+'FR-16(7)(v)-11 DIST Demand'!L525+'FR-16(7)(v)-12 DIST Energy'!L525+'FR-16(7)(v)-13 DIST Cust'!L525-'FR-16(7)(v)-14 TOTAL CLASS'!L525","v":0},{"$f":"'FR-16(7)(v)-3 PROD Demand'!M525+'FR-16(7)(v)-4 PROD Energy'!M525+'FR-16(7)(v)-5 PROD Cust'!M525+'FR-16(7)(v)-7 TRANS Demand'!M525+'FR-16(7)(v)-8 TRANS Energy'!M525+'FR-16(7)(v)-9 TRANS Cust'!M525+'FR-16(7)(v)-11 DIST Demand'!M525+'FR-16(7)(v)-12 DIST Energy'!M525+'FR-16(7)(v)-13 DIST Cust'!M525-'FR-16(7)(v)-14 TOTAL CLASS'!M525","v":0},{"$f":"'FR-16(7)(v)-3 PROD Demand'!N525+'FR-16(7)(v)-4 PROD Energy'!N525+'FR-16(7)(v)-5 PROD Cust'!N525+'FR-16(7)(v)-7 TRANS Demand'!N525+'FR-16(7)(v)-8 TRANS Energy'!N525+'FR-16(7)(v)-9 TRANS Cust'!N525+'FR-16(7)(v)-11 DIST Demand'!N525+'FR-16(7)(v)-12 DIST Energy'!N525+'FR-16(7)(v)-13 DIST Cust'!N525-'FR-16(7)(v)-14 TOTAL CLASS'!N525","v":0},{"$f":"'FR-16(7)(v)-3 PROD Demand'!O525+'FR-16(7)(v)-4 PROD Energy'!O525+'FR-16(7)(v)-5 PROD Cust'!O525+'FR-16(7)(v)-7 TRANS Demand'!O525+'FR-16(7)(v)-8 TRANS Energy'!O525+'FR-16(7)(v)-9 TRANS Cust'!O525+'FR-16(7)(v)-11 DIST Demand'!O525+'FR-16(7)(v)-12 DIST Energy'!O525+'FR-16(7)(v)-13 DIST Cust'!O525-'FR-16(7)(v)-14 TOTAL CLASS'!O525","v":0},{"$f":"'FR-16(7)(v)-3 PROD Demand'!P525+'FR-16(7)(v)-4 PROD Energy'!P525+'FR-16(7)(v)-5 PROD Cust'!P525+'FR-16(7)(v)-7 TRANS Demand'!P525+'FR-16(7)(v)-8 TRANS Energy'!P525+'FR-16(7)(v)-9 TRANS Cust'!P525+'FR-16(7)(v)-11 DIST Demand'!P525+'FR-16(7)(v)-12 DIST Energy'!P525+'FR-16(7)(v)-13 DIST Cust'!P525-'FR-16(7)(v)-14 TOTAL CLASS'!P525","v":0},{"$f":"'FR-16(7)(v)-3 PROD Demand'!Q525+'FR-16(7)(v)-4 PROD Energy'!Q525+'FR-16(7)(v)-5 PROD Cust'!Q525+'FR-16(7)(v)-7 TRANS Demand'!Q525+'FR-16(7)(v)-8 TRANS Energy'!Q525+'FR-16(7)(v)-9 TRANS Cust'!Q525+'FR-16(7)(v)-11 DIST Demand'!Q525+'FR-16(7)(v)-12 DIST Energy'!Q525+'FR-16(7)(v)-13 DIST Cust'!Q525-'FR-16(7)(v)-14 TOTAL CLASS'!Q525","v":0},{"$f":"SUM(G525:Q525)","v":0},{"$f":"F525-R525","v":0}]
[12,null,{"$f":"'FR-16(7)(v)-1 Functional'!C526","v":"PRODUCTION - ENERGY RELATED"},{"$f":"'FR-16(7)(v)-1 Functional'!D526","v":"E349"},null,{"$f":"'FR-16(7)(v)-3 PROD Demand'!F526+'FR-16(7)(v)-4 PROD Energy'!F526+'FR-16(7)(v)-5 PROD Cust'!F526+'FR-16(7)(v)-7 TRANS Demand'!F526+'FR-16(7)(v)-8 TRANS Energy'!F526+'FR-16(7)(v)-9 TRANS Cust'!F526+'FR-16(7)(v)-11 DIST Demand'!F526+'FR-16(7)(v)-12 DIST Energy'!F526+'FR-16(7)(v)-13 DIST Cust'!F526-'FR-16(7)(v)-14 TOTAL CLASS'!F526","v":0},{"$f":"'FR-16(7)(v)-3 PROD Demand'!G526+'FR-16(7)(v)-4 PROD Energy'!G526+'FR-16(7)(v)-5 PROD Cust'!G526+'FR-16(7)(v)-7 TRANS Demand'!G526+'FR-16(7)(v)-8 TRANS Energy'!G526+'FR-16(7)(v)-9 TRANS Cust'!G526+'FR-16(7)(v)-11 DIST Demand'!G526+'FR-16(7)(v)-12 DIST Energy'!G526+'FR-16(7)(v)-13 DIST Cust'!G526-'FR-16(7)(v)-14 TOTAL CLASS'!G526","v":0},{"$f":"'FR-16(7)(v)-3 PROD Demand'!H526+'FR-16(7)(v)-4 PROD Energy'!H526+'FR-16(7)(v)-5 PROD Cust'!H526+'FR-16(7)(v)-7 TRANS Demand'!H526+'FR-16(7)(v)-8 TRANS Energy'!H526+'FR-16(7)(v)-9 TRANS Cust'!H526+'FR-16(7)(v)-11 DIST Demand'!H526+'FR-16(7)(v)-12 DIST Energy'!H526+'FR-16(7)(v)-13 DIST Cust'!H526-'FR-16(7)(v)-14 TOTAL CLASS'!H526","v":0},{"$f":"'FR-16(7)(v)-3 PROD Demand'!I526+'FR-16(7)(v)-4 PROD Energy'!I526+'FR-16(7)(v)-5 PROD Cust'!I526+'FR-16(7)(v)-7 TRANS Demand'!I526+'FR-16(7)(v)-8 TRANS Energy'!I526+'FR-16(7)(v)-9 TRANS Cust'!I526+'FR-16(7)(v)-11 DIST Demand'!I526+'FR-16(7)(v)-12 DIST Energy'!I526+'FR-16(7)(v)-13 DIST Cust'!I526-'FR-16(7)(v)-14 TOTAL CLASS'!I526","v":0},{"$f":"'FR-16(7)(v)-3 PROD Demand'!J526+'FR-16(7)(v)-4 PROD Energy'!J526+'FR-16(7)(v)-5 PROD Cust'!J526+'FR-16(7)(v)-7 TRANS Demand'!J526+'FR-16(7)(v)-8 TRANS Energy'!J526+'FR-16(7)(v)-9 TRANS Cust'!J526+'FR-16(7)(v)-11 DIST Demand'!J526+'FR-16(7)(v)-12 DIST Energy'!J526+'FR-16(7)(v)-13 DIST Cust'!J526-'FR-16(7)(v)-14 TOTAL CLASS'!J526","v":0},{"$f":"'FR-16(7)(v)-3 PROD Demand'!K526+'FR-16(7)(v)-4 PROD Energy'!K526+'FR-16(7)(v)-5 PROD Cust'!K526+'FR-16(7)(v)-7 TRANS Demand'!K526+'FR-16(7)(v)-8 TRANS Energy'!K526+'FR-16(7)(v)-9 TRANS Cust'!K526+'FR-16(7)(v)-11 DIST Demand'!K526+'FR-16(7)(v)-12 DIST Energy'!K526+'FR-16(7)(v)-13 DIST Cust'!K526-'FR-16(7)(v)-14 TOTAL CLASS'!K526","v":0},{"$f":"'FR-16(7)(v)-3 PROD Demand'!L526+'FR-16(7)(v)-4 PROD Energy'!L526+'FR-16(7)(v)-5 PROD Cust'!L526+'FR-16(7)(v)-7 TRANS Demand'!L526+'FR-16(7)(v)-8 TRANS Energy'!L526+'FR-16(7)(v)-9 TRANS Cust'!L526+'FR-16(7)(v)-11 DIST Demand'!L526+'FR-16(7)(v)-12 DIST Energy'!L526+'FR-16(7)(v)-13 DIST Cust'!L526-'FR-16(7)(v)-14 TOTAL CLASS'!L526","v":0},{"$f":"'FR-16(7)(v)-3 PROD Demand'!M526+'FR-16(7)(v)-4 PROD Energy'!M526+'FR-16(7)(v)-5 PROD Cust'!M526+'FR-16(7)(v)-7 TRANS Demand'!M526+'FR-16(7)(v)-8 TRANS Energy'!M526+'FR-16(7)(v)-9 TRANS Cust'!M526+'FR-16(7)(v)-11 DIST Demand'!M526+'FR-16(7)(v)-12 DIST Energy'!M526+'FR-16(7)(v)-13 DIST Cust'!M526-'FR-16(7)(v)-14 TOTAL CLASS'!M526","v":0},{"$f":"'FR-16(7)(v)-3 PROD Demand'!N526+'FR-16(7)(v)-4 PROD Energy'!N526+'FR-16(7)(v)-5 PROD Cust'!N526+'FR-16(7)(v)-7 TRANS Demand'!N526+'FR-16(7)(v)-8 TRANS Energy'!N526+'FR-16(7)(v)-9 TRANS Cust'!N526+'FR-16(7)(v)-11 DIST Demand'!N526+'FR-16(7)(v)-12 DIST Energy'!N526+'FR-16(7)(v)-13 DIST Cust'!N526-'FR-16(7)(v)-14 TOTAL CLASS'!N526","v":0},{"$f":"'FR-16(7)(v)-3 PROD Demand'!O526+'FR-16(7)(v)-4 PROD Energy'!O526+'FR-16(7)(v)-5 PROD Cust'!O526+'FR-16(7)(v)-7 TRANS Demand'!O526+'FR-16(7)(v)-8 TRANS Energy'!O526+'FR-16(7)(v)-9 TRANS Cust'!O526+'FR-16(7)(v)-11 DIST Demand'!O526+'FR-16(7)(v)-12 DIST Energy'!O526+'FR-16(7)(v)-13 DIST Cust'!O526-'FR-16(7)(v)-14 TOTAL CLASS'!O526","v":0},{"$f":"'FR-16(7)(v)-3 PROD Demand'!P526+'FR-16(7)(v)-4 PROD Energy'!P526+'FR-16(7)(v)-5 PROD Cust'!P526+'FR-16(7)(v)-7 TRANS Demand'!P526+'FR-16(7)(v)-8 TRANS Energy'!P526+'FR-16(7)(v)-9 TRANS Cust'!P526+'FR-16(7)(v)-11 DIST Demand'!P526+'FR-16(7)(v)-12 DIST Energy'!P526+'FR-16(7)(v)-13 DIST Cust'!P526-'FR-16(7)(v)-14 TOTAL CLASS'!P526","v":0},{"$f":"'FR-16(7)(v)-3 PROD Demand'!Q526+'FR-16(7)(v)-4 PROD Energy'!Q526+'FR-16(7)(v)-5 PROD Cust'!Q526+'FR-16(7)(v)-7 TRANS Demand'!Q526+'FR-16(7)(v)-8 TRANS Energy'!Q526+'FR-16(7)(v)-9 TRANS Cust'!Q526+'FR-16(7)(v)-11 DIST Demand'!Q526+'FR-16(7)(v)-12 DIST Energy'!Q526+'FR-16(7)(v)-13 DIST Cust'!Q526-'FR-16(7)(v)-14 TOTAL CLASS'!Q526","v":0},0,0]
[13,null,"TRANSMISSION","T349",null,{"$f":"'FR-16(7)(v)-3 PROD Demand'!F527+'FR-16(7)(v)-4 PROD Energy'!F527+'FR-16(7)(v)-5 PROD Cust'!F527+'FR-16(7)(v)-7 TRANS Demand'!F527+'FR-16(7)(v)-8 TRANS Energy'!F527+'FR-16(7)(v)-9 TRANS Cust'!F527+'FR-16(7)(v)-11 DIST Demand'!F527+'FR-16(7)(v)-12 DIST Energy'!F527+'FR-16(7)(v)-13 DIST Cust'!F527-'FR-16(7)(v)-14 TOTAL CLASS'!F527","v":0},{"$f":"'FR-16(7)(v)-3 PROD Demand'!G527+'FR-16(7)(v)-4 PROD Energy'!G527+'FR-16(7)(v)-5 PROD Cust'!G527+'FR-16(7)(v)-7 TRANS Demand'!G527+'FR-16(7)(v)-8 TRANS Energy'!G527+'FR-16(7)(v)-9 TRANS Cust'!G527+'FR-16(7)(v)-11 DIST Demand'!G527+'FR-16(7)(v)-12 DIST Energy'!G527+'FR-16(7)(v)-13 DIST Cust'!G527-'FR-16(7)(v)-14 TOTAL CLASS'!G527","v":0},{"$f":"'FR-16(7)(v)-3 PROD Demand'!H527+'FR-16(7)(v)-4 PROD Energy'!H527+'FR-16(7)(v)-5 PROD Cust'!H527+'FR-16(7)(v)-7 TRANS Demand'!H527+'FR-16(7)(v)-8 TRANS Energy'!H527+'FR-16(7)(v)-9 TRANS Cust'!H527+'FR-16(7)(v)-11 DIST Demand'!H527+'FR-16(7)(v)-12 DIST Energy'!H527+'FR-16(7)(v)-13 DIST Cust'!H527-'FR-16(7)(v)-14 TOTAL CLASS'!H527","v":0},{"$f":"'FR-16(7)(v)-3 PROD Demand'!I527+'FR-16(7)(v)-4 PROD Energy'!I527+'FR-16(7)(v)-5 PROD Cust'!I527+'FR-16(7)(v)-7 TRANS Demand'!I527+'FR-16(7)(v)-8 TRANS Energy'!I527+'FR-16(7)(v)-9 TRANS Cust'!I527+'FR-16(7)(v)-11 DIST Demand'!I527+'FR-16(7)(v)-12 DIST Energy'!I527+'FR-16(7)(v)-13 DIST Cust'!I527-'FR-16(7)(v)-14 TOTAL CLASS'!I527","v":0},{"$f":"'FR-16(7)(v)-3 PROD Demand'!J527+'FR-16(7)(v)-4 PROD Energy'!J527+'FR-16(7)(v)-5 PROD Cust'!J527+'FR-16(7)(v)-7 TRANS Demand'!J527+'FR-16(7)(v)-8 TRANS Energy'!J527+'FR-16(7)(v)-9 TRANS Cust'!J527+'FR-16(7)(v)-11 DIST Demand'!J527+'FR-16(7)(v)-12 DIST Energy'!J527+'FR-16(7)(v)-13 DIST Cust'!J527-'FR-16(7)(v)-14 TOTAL CLASS'!J527","v":0},{"$f":"'FR-16(7)(v)-3 PROD Demand'!K527+'FR-16(7)(v)-4 PROD Energy'!K527+'FR-16(7)(v)-5 PROD Cust'!K527+'FR-16(7)(v)-7 TRANS Demand'!K527+'FR-16(7)(v)-8 TRANS Energy'!K527+'FR-16(7)(v)-9 TRANS Cust'!K527+'FR-16(7)(v)-11 DIST Demand'!K527+'FR-16(7)(v)-12 DIST Energy'!K527+'FR-16(7)(v)-13 DIST Cust'!K527-'FR-16(7)(v)-14 TOTAL CLASS'!K527","v":0},{"$f":"'FR-16(7)(v)-3 PROD Demand'!L527+'FR-16(7)(v)-4 PROD Energy'!L527+'FR-16(7)(v)-5 PROD Cust'!L527+'FR-16(7)(v)-7 TRANS Demand'!L527+'FR-16(7)(v)-8 TRANS Energy'!L527+'FR-16(7)(v)-9 TRANS Cust'!L527+'FR-16(7)(v)-11 DIST Demand'!L527+'FR-16(7)(v)-12 DIST Energy'!L527+'FR-16(7)(v)-13 DIST Cust'!L527-'FR-16(7)(v)-14 TOTAL CLASS'!L527","v":0},{"$f":"'FR-16(7)(v)-3 PROD Demand'!M527+'FR-16(7)(v)-4 PROD Energy'!M527+'FR-16(7)(v)-5 PROD Cust'!M527+'FR-16(7)(v)-7 TRANS Demand'!M527+'FR-16(7)(v)-8 TRANS Energy'!M527+'FR-16(7)(v)-9 TRANS Cust'!M527+'FR-16(7)(v)-11 DIST Demand'!M527+'FR-16(7)(v)-12 DIST Energy'!M527+'FR-16(7)(v)-13 DIST Cust'!M527-'FR-16(7)(v)-14 TOTAL CLASS'!M527","v":0},{"$f":"'FR-16(7)(v)-3 PROD Demand'!N527+'FR-16(7)(v)-4 PROD Energy'!N527+'FR-16(7)(v)-5 PROD Cust'!N527+'FR-16(7)(v)-7 TRANS Demand'!N527+'FR-16(7)(v)-8 TRANS Energy'!N527+'FR-16(7)(v)-9 TRANS Cust'!N527+'FR-16(7)(v)-11 DIST Demand'!N527+'FR-16(7)(v)-12 DIST Energy'!N527+'FR-16(7)(v)-13 DIST Cust'!N527-'FR-16(7)(v)-14 TOTAL CLASS'!N527","v":0},{"$f":"'FR-16(7)(v)-3 PROD Demand'!O527+'FR-16(7)(v)-4 PROD Energy'!O527+'FR-16(7)(v)-5 PROD Cust'!O527+'FR-16(7)(v)-7 TRANS Demand'!O527+'FR-16(7)(v)-8 TRANS Energy'!O527+'FR-16(7)(v)-9 TRANS Cust'!O527+'FR-16(7)(v)-11 DIST Demand'!O527+'FR-16(7)(v)-12 DIST Energy'!O527+'FR-16(7)(v)-13 DIST Cust'!O527-'FR-16(7)(v)-14 TOTAL CLASS'!O527","v":0},{"$f":"'FR-16(7)(v)-3 PROD Demand'!P527+'FR-16(7)(v)-4 PROD Energy'!P527+'FR-16(7)(v)-5 PROD Cust'!P527+'FR-16(7)(v)-7 TRANS Demand'!P527+'FR-16(7)(v)-8 TRANS Energy'!P527+'FR-16(7)(v)-9 TRANS Cust'!P527+'FR-16(7)(v)-11 DIST Demand'!P527+'FR-16(7)(v)-12 DIST Energy'!P527+'FR-16(7)(v)-13 DIST Cust'!P527-'FR-16(7)(v)-14 TOTAL CLASS'!P527","v":0},{"$f":"'FR-16(7)(v)-3 PROD Demand'!Q527+'FR-16(7)(v)-4 PROD Energy'!Q527+'FR-16(7)(v)-5 PROD Cust'!Q527+'FR-16(7)(v)-7 TRANS Demand'!Q527+'FR-16(7)(v)-8 TRANS Energy'!Q527+'FR-16(7)(v)-9 TRANS Cust'!Q527+'FR-16(7)(v)-11 DIST Demand'!Q527+'FR-16(7)(v)-12 DIST Energy'!Q527+'FR-16(7)(v)-13 DIST Cust'!Q527-'FR-16(7)(v)-14 TOTAL CLASS'!Q527","v":0},0,0]
[14,null,{"$f":"'FR-16(7)(v)-1 Functional'!C528","v":"DISTRIBUTION"},{"$f":"'FR-16(7)(v)-1 Functional'!D528","v":"D349"},null,{"$f":"'FR-16(7)(v)-3 PROD Demand'!F528+'FR-16(7)(v)-4 PROD Energy'!F528+'FR-16(7)(v)-5 PROD Cust'!F528+'FR-16(7)(v)-7 TRANS Demand'!F528+'FR-16(7)(v)-8 TRANS Energy'!F528+'FR-16(7)(v)-9 TRANS Cust'!F528+'FR-16(7)(v)-11 DIST Demand'!F528+'FR-16(7)(v)-12 DIST Energy'!F528+'FR-16(7)(v)-13 DIST Cust'!F528-'FR-16(7)(v)-14 TOTAL CLASS'!F528","v":0},{"$f":"'FR-16(7)(v)-3 PROD Demand'!G528+'FR-16(7)(v)-4 PROD Energy'!G528+'FR-16(7)(v)-5 PROD Cust'!G528+'FR-16(7)(v)-7 TRANS Demand'!G528+'FR-16(7)(v)-8 TRANS Energy'!G528+'FR-16(7)(v)-9 TRANS Cust'!G528+'FR-16(7)(v)-11 DIST Demand'!G528+'FR-16(7)(v)-12 DIST Energy'!G528+'FR-16(7)(v)-13 DIST Cust'!G528-'FR-16(7)(v)-14 TOTAL CLASS'!G528","v":0},{"$f":"'FR-16(7)(v)-3 PROD Demand'!H528+'FR-16(7)(v)-4 PROD Energy'!H528+'FR-16(7)(v)-5 PROD Cust'!H528+'FR-16(7)(v)-7 TRANS Demand'!H528+'FR-16(7)(v)-8 TRANS Energy'!H528+'FR-16(7)(v)-9 TRANS Cust'!H528+'FR-16(7)(v)-11 DIST Demand'!H528+'FR-16(7)(v)-12 DIST Energy'!H528+'FR-16(7)(v)-13 DIST Cust'!H528-'FR-16(7)(v)-14 TOTAL CLASS'!H528","v":0},{"$f":"'FR-16(7)(v)-3 PROD Demand'!I528+'FR-16(7)(v)-4 PROD Energy'!I528+'FR-16(7)(v)-5 PROD Cust'!I528+'FR-16(7)(v)-7 TRANS Demand'!I528+'FR-16(7)(v)-8 TRANS Energy'!I528+'FR-16(7)(v)-9 TRANS Cust'!I528+'FR-16(7)(v)-11 DIST Demand'!I528+'FR-16(7)(v)-12 DIST Energy'!I528+'FR-16(7)(v)-13 DIST Cust'!I528-'FR-16(7)(v)-14 TOTAL CLASS'!I528","v":0},{"$f":"'FR-16(7)(v)-3 PROD Demand'!J528+'FR-16(7)(v)-4 PROD Energy'!J528+'FR-16(7)(v)-5 PROD Cust'!J528+'FR-16(7)(v)-7 TRANS Demand'!J528+'FR-16(7)(v)-8 TRANS Energy'!J528+'FR-16(7)(v)-9 TRANS Cust'!J528+'FR-16(7)(v)-11 DIST Demand'!J528+'FR-16(7)(v)-12 DIST Energy'!J528+'FR-16(7)(v)-13 DIST Cust'!J528-'FR-16(7)(v)-14 TOTAL CLASS'!J528","v":0},{"$f":"'FR-16(7)(v)-3 PROD Demand'!K528+'FR-16(7)(v)-4 PROD Energy'!K528+'FR-16(7)(v)-5 PROD Cust'!K528+'FR-16(7)(v)-7 TRANS Demand'!K528+'FR-16(7)(v)-8 TRANS Energy'!K528+'FR-16(7)(v)-9 TRANS Cust'!K528+'FR-16(7)(v)-11 DIST Demand'!K528+'FR-16(7)(v)-12 DIST Energy'!K528+'FR-16(7)(v)-13 DIST Cust'!K528-'FR-16(7)(v)-14 TOTAL CLASS'!K528","v":0},{"$f":"'FR-16(7)(v)-3 PROD Demand'!L528+'FR-16(7)(v)-4 PROD Energy'!L528+'FR-16(7)(v)-5 PROD Cust'!L528+'FR-16(7)(v)-7 TRANS Demand'!L528+'FR-16(7)(v)-8 TRANS Energy'!L528+'FR-16(7)(v)-9 TRANS Cust'!L528+'FR-16(7)(v)-11 DIST Demand'!L528+'FR-16(7)(v)-12 DIST Energy'!L528+'FR-16(7)(v)-13 DIST Cust'!L528-'FR-16(7)(v)-14 TOTAL CLASS'!L528","v":0},{"$f":"'FR-16(7)(v)-3 PROD Demand'!M528+'FR-16(7)(v)-4 PROD Energy'!M528+'FR-16(7)(v)-5 PROD Cust'!M528+'FR-16(7)(v)-7 TRANS Demand'!M528+'FR-16(7)(v)-8 TRANS Energy'!M528+'FR-16(7)(v)-9 TRANS Cust'!M528+'FR-16(7)(v)-11 DIST Demand'!M528+'FR-16(7)(v)-12 DIST Energy'!M528+'FR-16(7)(v)-13 DIST Cust'!M528-'FR-16(7)(v)-14 TOTAL CLASS'!M528","v":0},{"$f":"'FR-16(7)(v)-3 PROD Demand'!N528+'FR-16(7)(v)-4 PROD Energy'!N528+'FR-16(7)(v)-5 PROD Cust'!N528+'FR-16(7)(v)-7 TRANS Demand'!N528+'FR-16(7)(v)-8 TRANS Energy'!N528+'FR-16(7)(v)-9 TRANS Cust'!N528+'FR-16(7)(v)-11 DIST Demand'!N528+'FR-16(7)(v)-12 DIST Energy'!N528+'FR-16(7)(v)-13 DIST Cust'!N528-'FR-16(7)(v)-14 TOTAL CLASS'!N528","v":0},{"$f":"'FR-16(7)(v)-3 PROD Demand'!O528+'FR-16(7)(v)-4 PROD Energy'!O528+'FR-16(7)(v)-5 PROD Cust'!O528+'FR-16(7)(v)-7 TRANS Demand'!O528+'FR-16(7)(v)-8 TRANS Energy'!O528+'FR-16(7)(v)-9 TRANS Cust'!O528+'FR-16(7)(v)-11 DIST Demand'!O528+'FR-16(7)(v)-12 DIST Energy'!O528+'FR-16(7)(v)-13 DIST Cust'!O528-'FR-16(7)(v)-14 TOTAL CLASS'!O528","v":0},{"$f":"'FR-16(7)(v)-3 PROD Demand'!P528+'FR-16(7)(v)-4 PROD Energy'!P528+'FR-16(7)(v)-5 PROD Cust'!P528+'FR-16(7)(v)-7 TRANS Demand'!P528+'FR-16(7)(v)-8 TRANS Energy'!P528+'FR-16(7)(v)-9 TRANS Cust'!P528+'FR-16(7)(v)-11 DIST Demand'!P528+'FR-16(7)(v)-12 DIST Energy'!P528+'FR-16(7)(v)-13 DIST Cust'!P528-'FR-16(7)(v)-14 TOTAL CLASS'!P528","v":0},{"$f":"'FR-16(7)(v)-3 PROD Demand'!Q528+'FR-16(7)(v)-4 PROD Energy'!Q528+'FR-16(7)(v)-5 PROD Cust'!Q528+'FR-16(7)(v)-7 TRANS Demand'!Q528+'FR-16(7)(v)-8 TRANS Energy'!Q528+'FR-16(7)(v)-9 TRANS Cust'!Q528+'FR-16(7)(v)-11 DIST Demand'!Q528+'FR-16(7)(v)-12 DIST Energy'!Q528+'FR-16(7)(v)-13 DIST Cust'!Q528-'FR-16(7)(v)-14 TOTAL CLASS'!Q528","v":0},0,0]
[15,null,{"$f":"'FR-16(7)(v)-1 Functional'!C529","v":"CUSTOMER ACCOUNTING"},{"$f":"'FR-16(7)(v)-1 Functional'!D529","v":"C319"},null,{"$f":"'FR-16(7)(v)-3 PROD Demand'!F529+'FR-16(7)(v)-4 PROD Energy'!F529+'FR-16(7)(v)-5 PROD Cust'!F529+'FR-16(7)(v)-7 TRANS Demand'!F529+'FR-16(7)(v)-8 TRANS Energy'!F529+'FR-16(7)(v)-9 TRANS Cust'!F529+'FR-16(7)(v)-11 DIST Demand'!F529+'FR-16(7)(v)-12 DIST Energy'!F529+'FR-16(7)(v)-13 DIST Cust'!F529-'FR-16(7)(v)-14 TOTAL CLASS'!F529","v":0},{"$f":"'FR-16(7)(v)-3 PROD Demand'!G529+'FR-16(7)(v)-4 PROD Energy'!G529+'FR-16(7)(v)-5 PROD Cust'!G529+'FR-16(7)(v)-7 TRANS Demand'!G529+'FR-16(7)(v)-8 TRANS Energy'!G529+'FR-16(7)(v)-9 TRANS Cust'!G529+'FR-16(7)(v)-11 DIST Demand'!G529+'FR-16(7)(v)-12 DIST Energy'!G529+'FR-16(7)(v)-13 DIST Cust'!G529-'FR-16(7)(v)-14 TOTAL CLASS'!G529","v":0},{"$f":"'FR-16(7)(v)-3 PROD Demand'!H529+'FR-16(7)(v)-4 PROD Energy'!H529+'FR-16(7)(v)-5 PROD Cust'!H529+'FR-16(7)(v)-7 TRANS Demand'!H529+'FR-16(7)(v)-8 TRANS Energy'!H529+'FR-16(7)(v)-9 TRANS Cust'!H529+'FR-16(7)(v)-11 DIST Demand'!H529+'FR-16(7)(v)-12 DIST Energy'!H529+'FR-16(7)(v)-13 DIST Cust'!H529-'FR-16(7)(v)-14 TOTAL CLASS'!H529","v":0},{"$f":"'FR-16(7)(v)-3 PROD Demand'!I529+'FR-16(7)(v)-4 PROD Energy'!I529+'FR-16(7)(v)-5 PROD Cust'!I529+'FR-16(7)(v)-7 TRANS Demand'!I529+'FR-16(7)(v)-8 TRANS Energy'!I529+'FR-16(7)(v)-9 TRANS Cust'!I529+'FR-16(7)(v)-11 DIST Demand'!I529+'FR-16(7)(v)-12 DIST Energy'!I529+'FR-16(7)(v)-13 DIST Cust'!I529-'FR-16(7)(v)-14 TOTAL CLASS'!I529","v":0},{"$f":"'FR-16(7)(v)-3 PROD Demand'!J529+'FR-16(7)(v)-4 PROD Energy'!J529+'FR-16(7)(v)-5 PROD Cust'!J529+'FR-16(7)(v)-7 TRANS Demand'!J529+'FR-16(7)(v)-8 TRANS Energy'!J529+'FR-16(7)(v)-9 TRANS Cust'!J529+'FR-16(7)(v)-11 DIST Demand'!J529+'FR-16(7)(v)-12 DIST Energy'!J529+'FR-16(7)(v)-13 DIST Cust'!J529-'FR-16(7)(v)-14 TOTAL CLASS'!J529","v":0},{"$f":"'FR-16(7)(v)-3 PROD Demand'!K529+'FR-16(7)(v)-4 PROD Energy'!K529+'FR-16(7)(v)-5 PROD Cust'!K529+'FR-16(7)(v)-7 TRANS Demand'!K529+'FR-16(7)(v)-8 TRANS Energy'!K529+'FR-16(7)(v)-9 TRANS Cust'!K529+'FR-16(7)(v)-11 DIST Demand'!K529+'FR-16(7)(v)-12 DIST Energy'!K529+'FR-16(7)(v)-13 DIST Cust'!K529-'FR-16(7)(v)-14 TOTAL CLASS'!K529","v":0},{"$f":"'FR-16(7)(v)-3 PROD Demand'!L529+'FR-16(7)(v)-4 PROD Energy'!L529+'FR-16(7)(v)-5 PROD Cust'!L529+'FR-16(7)(v)-7 TRANS Demand'!L529+'FR-16(7)(v)-8 TRANS Energy'!L529+'FR-16(7)(v)-9 TRANS Cust'!L529+'FR-16(7)(v)-11 DIST Demand'!L529+'FR-16(7)(v)-12 DIST Energy'!L529+'FR-16(7)(v)-13 DIST Cust'!L529-'FR-16(7)(v)-14 TOTAL CLASS'!L529","v":0},{"$f":"'FR-16(7)(v)-3 PROD Demand'!M529+'FR-16(7)(v)-4 PROD Energy'!M529+'FR-16(7)(v)-5 PROD Cust'!M529+'FR-16(7)(v)-7 TRANS Demand'!M529+'FR-16(7)(v)-8 TRANS Energy'!M529+'FR-16(7)(v)-9 TRANS Cust'!M529+'FR-16(7)(v)-11 DIST Demand'!M529+'FR-16(7)(v)-12 DIST Energy'!M529+'FR-16(7)(v)-13 DIST Cust'!M529-'FR-16(7)(v)-14 TOTAL CLASS'!M529","v":0},{"$f":"'FR-16(7)(v)-3 PROD Demand'!N529+'FR-16(7)(v)-4 PROD Energy'!N529+'FR-16(7)(v)-5 PROD Cust'!N529+'FR-16(7)(v)-7 TRANS Demand'!N529+'FR-16(7)(v)-8 TRANS Energy'!N529+'FR-16(7)(v)-9 TRANS Cust'!N529+'FR-16(7)(v)-11 DIST Demand'!N529+'FR-16(7)(v)-12 DIST Energy'!N529+'FR-16(7)(v)-13 DIST Cust'!N529-'FR-16(7)(v)-14 TOTAL CLASS'!N529","v":0},{"$f":"'FR-16(7)(v)-3 PROD Demand'!O529+'FR-16(7)(v)-4 PROD Energy'!O529+'FR-16(7)(v)-5 PROD Cust'!O529+'FR-16(7)(v)-7 TRANS Demand'!O529+'FR-16(7)(v)-8 TRANS Energy'!O529+'FR-16(7)(v)-9 TRANS Cust'!O529+'FR-16(7)(v)-11 DIST Demand'!O529+'FR-16(7)(v)-12 DIST Energy'!O529+'FR-16(7)(v)-13 DIST Cust'!O529-'FR-16(7)(v)-14 TOTAL CLASS'!O529","v":0},{"$f":"'FR-16(7)(v)-3 PROD Demand'!P529+'FR-16(7)(v)-4 PROD Energy'!P529+'FR-16(7)(v)-5 PROD Cust'!P529+'FR-16(7)(v)-7 TRANS Demand'!P529+'FR-16(7)(v)-8 TRANS Energy'!P529+'FR-16(7)(v)-9 TRANS Cust'!P529+'FR-16(7)(v)-11 DIST Demand'!P529+'FR-16(7)(v)-12 DIST Energy'!P529+'FR-16(7)(v)-13 DIST Cust'!P529-'FR-16(7)(v)-14 TOTAL CLASS'!P529","v":0},{"$f":"'FR-16(7)(v)-3 PROD Demand'!Q529+'FR-16(7)(v)-4 PROD Energy'!Q529+'FR-16(7)(v)-5 PROD Cust'!Q529+'FR-16(7)(v)-7 TRANS Demand'!Q529+'FR-16(7)(v)-8 TRANS Energy'!Q529+'FR-16(7)(v)-9 TRANS Cust'!Q529+'FR-16(7)(v)-11 DIST Demand'!Q529+'FR-16(7)(v)-12 DIST Energy'!Q529+'FR-16(7)(v)-13 DIST Cust'!Q529-'FR-16(7)(v)-14 TOTAL CLASS'!Q529","v":0},0,0]
[16,null,{"$f":"'FR-16(7)(v)-1 Functional'!C530","v":"CUSTOMER SERVICE & INFORMATION"},{"$f":"'FR-16(7)(v)-1 Functional'!D530","v":"C331"},null,{"$f":"'FR-16(7)(v)-3 PROD Demand'!F530+'FR-16(7)(v)-4 PROD Energy'!F530+'FR-16(7)(v)-5 PROD Cust'!F530+'FR-16(7)(v)-7 TRANS Demand'!F530+'FR-16(7)(v)-8 TRANS Energy'!F530+'FR-16(7)(v)-9 TRANS Cust'!F530+'FR-16(7)(v)-11 DIST Demand'!F530+'FR-16(7)(v)-12 DIST Energy'!F530+'FR-16(7)(v)-13 DIST Cust'!F530-'FR-16(7)(v)-14 TOTAL CLASS'!F530","v":0},{"$f":"'FR-16(7)(v)-3 PROD Demand'!G530+'FR-16(7)(v)-4 PROD Energy'!G530+'FR-16(7)(v)-5 PROD Cust'!G530+'FR-16(7)(v)-7 TRANS Demand'!G530+'FR-16(7)(v)-8 TRANS Energy'!G530+'FR-16(7)(v)-9 TRANS Cust'!G530+'FR-16(7)(v)-11 DIST Demand'!G530+'FR-16(7)(v)-12 DIST Energy'!G530+'FR-16(7)(v)-13 DIST Cust'!G530-'FR-16(7)(v)-14 TOTAL CLASS'!G530","v":0},{"$f":"'FR-16(7)(v)-3 PROD Demand'!H530+'FR-16(7)(v)-4 PROD Energy'!H530+'FR-16(7)(v)-5 PROD Cust'!H530+'FR-16(7)(v)-7 TRANS Demand'!H530+'FR-16(7)(v)-8 TRANS Energy'!H530+'FR-16(7)(v)-9 TRANS Cust'!H530+'FR-16(7)(v)-11 DIST Demand'!H530+'FR-16(7)(v)-12 DIST Energy'!H530+'FR-16(7)(v)-13 DIST Cust'!H530-'FR-16(7)(v)-14 TOTAL CLASS'!H530","v":0},{"$f":"'FR-16(7)(v)-3 PROD Demand'!I530+'FR-16(7)(v)-4 PROD Energy'!I530+'FR-16(7)(v)-5 PROD Cust'!I530+'FR-16(7)(v)-7 TRANS Demand'!I530+'FR-16(7)(v)-8 TRANS Energy'!I530+'FR-16(7)(v)-9 TRANS Cust'!I530+'FR-16(7)(v)-11 DIST Demand'!I530+'FR-16(7)(v)-12 DIST Energy'!I530+'FR-16(7)(v)-13 DIST Cust'!I530-'FR-16(7)(v)-14 TOTAL CLASS'!I530","v":0},{"$f":"'FR-16(7)(v)-3 PROD Demand'!J530+'FR-16(7)(v)-4 PROD Energy'!J530+'FR-16(7)(v)-5 PROD Cust'!J530+'FR-16(7)(v)-7 TRANS Demand'!J530+'FR-16(7)(v)-8 TRANS Energy'!J530+'FR-16(7)(v)-9 TRANS Cust'!J530+'FR-16(7)(v)-11 DIST Demand'!J530+'FR-16(7)(v)-12 DIST Energy'!J530+'FR-16(7)(v)-13 DIST Cust'!J530-'FR-16(7)(v)-14 TOTAL CLASS'!J530","v":0},{"$f":"'FR-16(7)(v)-3 PROD Demand'!K530+'FR-16(7)(v)-4 PROD Energy'!K530+'FR-16(7)(v)-5 PROD Cust'!K530+'FR-16(7)(v)-7 TRANS Demand'!K530+'FR-16(7)(v)-8 TRANS Energy'!K530+'FR-16(7)(v)-9 TRANS Cust'!K530+'FR-16(7)(v)-11 DIST Demand'!K530+'FR-16(7)(v)-12 DIST Energy'!K530+'FR-16(7)(v)-13 DIST Cust'!K530-'FR-16(7)(v)-14 TOTAL CLASS'!K530","v":0},{"$f":"'FR-16(7)(v)-3 PROD Demand'!L530+'FR-16(7)(v)-4 PROD Energy'!L530+'FR-16(7)(v)-5 PROD Cust'!L530+'FR-16(7)(v)-7 TRANS Demand'!L530+'FR-16(7)(v)-8 TRANS Energy'!L530+'FR-16(7)(v)-9 TRANS Cust'!L530+'FR-16(7)(v)-11 DIST Demand'!L530+'FR-16(7)(v)-12 DIST Energy'!L530+'FR-16(7)(v)-13 DIST Cust'!L530-'FR-16(7)(v)-14 TOTAL CLASS'!L530","v":0},{"$f":"'FR-16(7)(v)-3 PROD Demand'!M530+'FR-16(7)(v)-4 PROD Energy'!M530+'FR-16(7)(v)-5 PROD Cust'!M530+'FR-16(7)(v)-7 TRANS Demand'!M530+'FR-16(7)(v)-8 TRANS Energy'!M530+'FR-16(7)(v)-9 TRANS Cust'!M530+'FR-16(7)(v)-11 DIST Demand'!M530+'FR-16(7)(v)-12 DIST Energy'!M530+'FR-16(7)(v)-13 DIST Cust'!M530-'FR-16(7)(v)-14 TOTAL CLASS'!M530","v":0},{"$f":"'FR-16(7)(v)-3 PROD Demand'!N530+'FR-16(7)(v)-4 PROD Energy'!N530+'FR-16(7)(v)-5 PROD Cust'!N530+'FR-16(7)(v)-7 TRANS Demand'!N530+'FR-16(7)(v)-8 TRANS Energy'!N530+'FR-16(7)(v)-9 TRANS Cust'!N530+'FR-16(7)(v)-11 DIST Demand'!N530+'FR-16(7)(v)-12 DIST Energy'!N530+'FR-16(7)(v)-13 DIST Cust'!N530-'FR-16(7)(v)-14 TOTAL CLASS'!N530","v":0},{"$f":"'FR-16(7)(v)-3 PROD Demand'!O530+'FR-16(7)(v)-4 PROD Energy'!O530+'FR-16(7)(v)-5 PROD Cust'!O530+'FR-16(7)(v)-7 TRANS Demand'!O530+'FR-16(7)(v)-8 TRANS Energy'!O530+'FR-16(7)(v)-9 TRANS Cust'!O530+'FR-16(7)(v)-11 DIST Demand'!O530+'FR-16(7)(v)-12 DIST Energy'!O530+'FR-16(7)(v)-13 DIST Cust'!O530-'FR-16(7)(v)-14 TOTAL CLASS'!O530","v":0},{"$f":"'FR-16(7)(v)-3 PROD Demand'!P530+'FR-16(7)(v)-4 PROD Energy'!P530+'FR-16(7)(v)-5 PROD Cust'!P530+'FR-16(7)(v)-7 TRANS Demand'!P530+'FR-16(7)(v)-8 TRANS Energy'!P530+'FR-16(7)(v)-9 TRANS Cust'!P530+'FR-16(7)(v)-11 DIST Demand'!P530+'FR-16(7)(v)-12 DIST Energy'!P530+'FR-16(7)(v)-13 DIST Cust'!P530-'FR-16(7)(v)-14 TOTAL CLASS'!P530","v":0},{"$f":"'FR-16(7)(v)-3 PROD Demand'!Q530+'FR-16(7)(v)-4 PROD Energy'!Q530+'FR-16(7)(v)-5 PROD Cust'!Q530+'FR-16(7)(v)-7 TRANS Demand'!Q530+'FR-16(7)(v)-8 TRANS Energy'!Q530+'FR-16(7)(v)-9 TRANS Cust'!Q530+'FR-16(7)(v)-11 DIST Demand'!Q530+'FR-16(7)(v)-12 DIST Energy'!Q530+'FR-16(7)(v)-13 DIST Cust'!Q530-'FR-16(7)(v)-14 TOTAL CLASS'!Q530","v":0},0,0]
[17,null,{"$f":"'FR-16(7)(v)-1 Functional'!C531","v":"SALES"},{"$f":"'FR-16(7)(v)-1 Functional'!D531","v":"S319"},null,{"$f":"'FR-16(7)(v)-3 PROD Demand'!F531+'FR-16(7)(v)-4 PROD Energy'!F531+'FR-16(7)(v)-5 PROD Cust'!F531+'FR-16(7)(v)-7 TRANS Demand'!F531+'FR-16(7)(v)-8 TRANS Energy'!F531+'FR-16(7)(v)-9 TRANS Cust'!F531+'FR-16(7)(v)-11 DIST Demand'!F531+'FR-16(7)(v)-12 DIST Energy'!F531+'FR-16(7)(v)-13 DIST Cust'!F531-'FR-16(7)(v)-14 TOTAL CLASS'!F531","v":0},{"$f":"'FR-16(7)(v)-3 PROD Demand'!G531+'FR-16(7)(v)-4 PROD Energy'!G531+'FR-16(7)(v)-5 PROD Cust'!G531+'FR-16(7)(v)-7 TRANS Demand'!G531+'FR-16(7)(v)-8 TRANS Energy'!G531+'FR-16(7)(v)-9 TRANS Cust'!G531+'FR-16(7)(v)-11 DIST Demand'!G531+'FR-16(7)(v)-12 DIST Energy'!G531+'FR-16(7)(v)-13 DIST Cust'!G531-'FR-16(7)(v)-14 TOTAL CLASS'!G531","v":0},{"$f":"'FR-16(7)(v)-3 PROD Demand'!H531+'FR-16(7)(v)-4 PROD Energy'!H531+'FR-16(7)(v)-5 PROD Cust'!H531+'FR-16(7)(v)-7 TRANS Demand'!H531+'FR-16(7)(v)-8 TRANS Energy'!H531+'FR-16(7)(v)-9 TRANS Cust'!H531+'FR-16(7)(v)-11 DIST Demand'!H531+'FR-16(7)(v)-12 DIST Energy'!H531+'FR-16(7)(v)-13 DIST Cust'!H531-'FR-16(7)(v)-14 TOTAL CLASS'!H531","v":0},{"$f":"'FR-16(7)(v)-3 PROD Demand'!I531+'FR-16(7)(v)-4 PROD Energy'!I531+'FR-16(7)(v)-5 PROD Cust'!I531+'FR-16(7)(v)-7 TRANS Demand'!I531+'FR-16(7)(v)-8 TRANS Energy'!I531+'FR-16(7)(v)-9 TRANS Cust'!I531+'FR-16(7)(v)-11 DIST Demand'!I531+'FR-16(7)(v)-12 DIST Energy'!I531+'FR-16(7)(v)-13 DIST Cust'!I531-'FR-16(7)(v)-14 TOTAL CLASS'!I531","v":0},{"$f":"'FR-16(7)(v)-3 PROD Demand'!J531+'FR-16(7)(v)-4 PROD Energy'!J531+'FR-16(7)(v)-5 PROD Cust'!J531+'FR-16(7)(v)-7 TRANS Demand'!J531+'FR-16(7)(v)-8 TRANS Energy'!J531+'FR-16(7)(v)-9 TRANS Cust'!J531+'FR-16(7)(v)-11 DIST Demand'!J531+'FR-16(7)(v)-12 DIST Energy'!J531+'FR-16(7)(v)-13 DIST Cust'!J531-'FR-16(7)(v)-14 TOTAL CLASS'!J531","v":0},{"$f":"'FR-16(7)(v)-3 PROD Demand'!K531+'FR-16(7)(v)-4 PROD Energy'!K531+'FR-16(7)(v)-5 PROD Cust'!K531+'FR-16(7)(v)-7 TRANS Demand'!K531+'FR-16(7)(v)-8 TRANS Energy'!K531+'FR-16(7)(v)-9 TRANS Cust'!K531+'FR-16(7)(v)-11 DIST Demand'!K531+'FR-16(7)(v)-12 DIST Energy'!K531+'FR-16(7)(v)-13 DIST Cust'!K531-'FR-16(7)(v)-14 TOTAL CLASS'!K531","v":0},{"$f":"'FR-16(7)(v)-3 PROD Demand'!L531+'FR-16(7)(v)-4 PROD Energy'!L531+'FR-16(7)(v)-5 PROD Cust'!L531+'FR-16(7)(v)-7 TRANS Demand'!L531+'FR-16(7)(v)-8 TRANS Energy'!L531+'FR-16(7)(v)-9 TRANS Cust'!L531+'FR-16(7)(v)-11 DIST Demand'!L531+'FR-16(7)(v)-12 DIST Energy'!L531+'FR-16(7)(v)-13 DIST Cust'!L531-'FR-16(7)(v)-14 TOTAL CLASS'!L531","v":0},{"$f":"'FR-16(7)(v)-3 PROD Demand'!M531+'FR-16(7)(v)-4 PROD Energy'!M531+'FR-16(7)(v)-5 PROD Cust'!M531+'FR-16(7)(v)-7 TRANS Demand'!M531+'FR-16(7)(v)-8 TRANS Energy'!M531+'FR-16(7)(v)-9 TRANS Cust'!M531+'FR-16(7)(v)-11 DIST Demand'!M531+'FR-16(7)(v)-12 DIST Energy'!M531+'FR-16(7)(v)-13 DIST Cust'!M531-'FR-16(7)(v)-14 TOTAL CLASS'!M531","v":0},{"$f":"'FR-16(7)(v)-3 PROD Demand'!N531+'FR-16(7)(v)-4 PROD Energy'!N531+'FR-16(7)(v)-5 PROD Cust'!N531+'FR-16(7)(v)-7 TRANS Demand'!N531+'FR-16(7)(v)-8 TRANS Energy'!N531+'FR-16(7)(v)-9 TRANS Cust'!N531+'FR-16(7)(v)-11 DIST Demand'!N531+'FR-16(7)(v)-12 DIST Energy'!N531+'FR-16(7)(v)-13 DIST Cust'!N531-'FR-16(7)(v)-14 TOTAL CLASS'!N531","v":0},{"$f":"'FR-16(7)(v)-3 PROD Demand'!O531+'FR-16(7)(v)-4 PROD Energy'!O531+'FR-16(7)(v)-5 PROD Cust'!O531+'FR-16(7)(v)-7 TRANS Demand'!O531+'FR-16(7)(v)-8 TRANS Energy'!O531+'FR-16(7)(v)-9 TRANS Cust'!O531+'FR-16(7)(v)-11 DIST Demand'!O531+'FR-16(7)(v)-12 DIST Energy'!O531+'FR-16(7)(v)-13 DIST Cust'!O531-'FR-16(7)(v)-14 TOTAL CLASS'!O531","v":0},{"$f":"'FR-16(7)(v)-3 PROD Demand'!P531+'FR-16(7)(v)-4 PROD Energy'!P531+'FR-16(7)(v)-5 PROD Cust'!P531+'FR-16(7)(v)-7 TRANS Demand'!P531+'FR-16(7)(v)-8 TRANS Energy'!P531+'FR-16(7)(v)-9 TRANS Cust'!P531+'FR-16(7)(v)-11 DIST Demand'!P531+'FR-16(7)(v)-12 DIST Energy'!P531+'FR-16(7)(v)-13 DIST Cust'!P531-'FR-16(7)(v)-14 TOTAL CLASS'!P531","v":0},{"$f":"'FR-16(7)(v)-3 PROD Demand'!Q531+'FR-16(7)(v)-4 PROD Energy'!Q531+'FR-16(7)(v)-5 PROD Cust'!Q531+'FR-16(7)(v)-7 TRANS Demand'!Q531+'FR-16(7)(v)-8 TRANS Energy'!Q531+'FR-16(7)(v)-9 TRANS Cust'!Q531+'FR-16(7)(v)-11 DIST Demand'!Q531+'FR-16(7)(v)-12 DIST Energy'!Q531+'FR-16(7)(v)-13 DIST Cust'!Q531-'FR-16(7)(v)-14 TOTAL CLASS'!Q531","v":0},0,0]
[18,null,{"$f":"'FR-16(7)(v)-1 Functional'!C532","v":"TOT ADMIN & GEN LESS REG EXP"}," ",null,{"$f":"SUM(F525:F531)","v":0},{"$f":"SUM(G525:G531)","v":0},0,0,{"$f":"SUM(J525:J531)","v":0},0,0,0,0,0,0,0,0,0]
[19,null,{"$f":"'FR-16(7)(v)-1 Functional'!C533","v":"RATE CASE EXPENSE ADJUSTMENT"},{"$f":"'FR-16(7)(v)-1 Functional'!D533","v":"A315"},null,{"$f":"'FR-16(7)(v)-3 PROD Demand'!F533+'FR-16(7)(v)-4 PROD Energy'!F533+'FR-16(7)(v)-5 PROD Cust'!F533+'FR-16(7)(v)-7 TRANS Demand'!F533+'FR-16(7)(v)-8 TRANS Energy'!F533+'FR-16(7)(v)-9 TRANS Cust'!F533+'FR-16(7)(v)-11 DIST Demand'!F533+'FR-16(7)(v)-12 DIST Energy'!F533+'FR-16(7)(v)-13 DIST Cust'!F533-'FR-16(7)(v)-14 TOTAL CLASS'!F533","v":0},{"$f":"'FR-16(7)(v)-3 PROD Demand'!G533+'FR-16(7)(v)-4 PROD Energy'!G533+'FR-16(7)(v)-5 PROD Cust'!G533+'FR-16(7)(v)-7 TRANS Demand'!G533+'FR-16(7)(v)-8 TRANS Energy'!G533+'FR-16(7)(v)-9 TRANS Cust'!G533+'FR-16(7)(v)-11 DIST Demand'!G533+'FR-16(7)(v)-12 DIST Energy'!G533+'FR-16(7)(v)-13 DIST Cust'!G533-'FR-16(7)(v)-14 TOTAL CLASS'!G533","v":0},{"$f":"'FR-16(7)(v)-3 PROD Demand'!H533+'FR-16(7)(v)-4 PROD Energy'!H533+'FR-16(7)(v)-5 PROD Cust'!H533+'FR-16(7)(v)-7 TRANS Demand'!H533+'FR-16(7)(v)-8 TRANS Energy'!H533+'FR-16(7)(v)-9 TRANS Cust'!H533+'FR-16(7)(v)-11 DIST Demand'!H533+'FR-16(7)(v)-12 DIST Energy'!H533+'FR-16(7)(v)-13 DIST Cust'!H533-'FR-16(7)(v)-14 TOTAL CLASS'!H533","v":0},{"$f":"'FR-16(7)(v)-3 PROD Demand'!I533+'FR-16(7)(v)-4 PROD Energy'!I533+'FR-16(7)(v)-5 PROD Cust'!I533+'FR-16(7)(v)-7 TRANS Demand'!I533+'FR-16(7)(v)-8 TRANS Energy'!I533+'FR-16(7)(v)-9 TRANS Cust'!I533+'FR-16(7)(v)-11 DIST Demand'!I533+'FR-16(7)(v)-12 DIST Energy'!I533+'FR-16(7)(v)-13 DIST Cust'!I533-'FR-16(7)(v)-14 TOTAL CLASS'!I533","v":0},{"$f":"'FR-16(7)(v)-3 PROD Demand'!J533+'FR-16(7)(v)-4 PROD Energy'!J533+'FR-16(7)(v)-5 PROD Cust'!J533+'FR-16(7)(v)-7 TRANS Demand'!J533+'FR-16(7)(v)-8 TRANS Energy'!J533+'FR-16(7)(v)-9 TRANS Cust'!J533+'FR-16(7)(v)-11 DIST Demand'!J533+'FR-16(7)(v)-12 DIST Energy'!J533+'FR-16(7)(v)-13 DIST Cust'!J533-'FR-16(7)(v)-14 TOTAL CLASS'!J533","v":0},{"$f":"'FR-16(7)(v)-3 PROD Demand'!K533+'FR-16(7)(v)-4 PROD Energy'!K533+'FR-16(7)(v)-5 PROD Cust'!K533+'FR-16(7)(v)-7 TRANS Demand'!K533+'FR-16(7)(v)-8 TRANS Energy'!K533+'FR-16(7)(v)-9 TRANS Cust'!K533+'FR-16(7)(v)-11 DIST Demand'!K533+'FR-16(7)(v)-12 DIST Energy'!K533+'FR-16(7)(v)-13 DIST Cust'!K533-'FR-16(7)(v)-14 TOTAL CLASS'!K533","v":0},{"$f":"'FR-16(7)(v)-3 PROD Demand'!L533+'FR-16(7)(v)-4 PROD Energy'!L533+'FR-16(7)(v)-5 PROD Cust'!L533+'FR-16(7)(v)-7 TRANS Demand'!L533+'FR-16(7)(v)-8 TRANS Energy'!L533+'FR-16(7)(v)-9 TRANS Cust'!L533+'FR-16(7)(v)-11 DIST Demand'!L533+'FR-16(7)(v)-12 DIST Energy'!L533+'FR-16(7)(v)-13 DIST Cust'!L533-'FR-16(7)(v)-14 TOTAL CLASS'!L533","v":0},{"$f":"'FR-16(7)(v)-3 PROD Demand'!M533+'FR-16(7)(v)-4 PROD Energy'!M533+'FR-16(7)(v)-5 PROD Cust'!M533+'FR-16(7)(v)-7 TRANS Demand'!M533+'FR-16(7)(v)-8 TRANS Energy'!M533+'FR-16(7)(v)-9 TRANS Cust'!M533+'FR-16(7)(v)-11 DIST Demand'!M533+'FR-16(7)(v)-12 DIST Energy'!M533+'FR-16(7)(v)-13 DIST Cust'!M533-'FR-16(7)(v)-14 TOTAL CLASS'!M533","v":0},{"$f":"'FR-16(7)(v)-3 PROD Demand'!N533+'FR-16(7)(v)-4 PROD Energy'!N533+'FR-16(7)(v)-5 PROD Cust'!N533+'FR-16(7)(v)-7 TRANS Demand'!N533+'FR-16(7)(v)-8 TRANS Energy'!N533+'FR-16(7)(v)-9 TRANS Cust'!N533+'FR-16(7)(v)-11 DIST Demand'!N533+'FR-16(7)(v)-12 DIST Energy'!N533+'FR-16(7)(v)-13 DIST Cust'!N533-'FR-16(7)(v)-14 TOTAL CLASS'!N533","v":0},{"$f":"'FR-16(7)(v)-3 PROD Demand'!O533+'FR-16(7)(v)-4 PROD Energy'!O533+'FR-16(7)(v)-5 PROD Cust'!O533+'FR-16(7)(v)-7 TRANS Demand'!O533+'FR-16(7)(v)-8 TRANS Energy'!O533+'FR-16(7)(v)-9 TRANS Cust'!O533+'FR-16(7)(v)-11 DIST Demand'!O533+'FR-16(7)(v)-12 DIST Energy'!O533+'FR-16(7)(v)-13 DIST Cust'!O533-'FR-16(7)(v)-14 TOTAL CLASS'!O533","v":0},{"$f":"'FR-16(7)(v)-3 PROD Demand'!P533+'FR-16(7)(v)-4 PROD Energy'!P533+'FR-16(7)(v)-5 PROD Cust'!P533+'FR-16(7)(v)-7 TRANS Demand'!P533+'FR-16(7)(v)-8 TRANS Energy'!P533+'FR-16(7)(v)-9 TRANS Cust'!P533+'FR-16(7)(v)-11 DIST Demand'!P533+'FR-16(7)(v)-12 DIST Energy'!P533+'FR-16(7)(v)-13 DIST Cust'!P533-'FR-16(7)(v)-14 TOTAL CLASS'!P533","v":0},{"$f":"'FR-16(7)(v)-3 PROD Demand'!Q533+'FR-16(7)(v)-4 PROD Energy'!Q533+'FR-16(7)(v)-5 PROD Cust'!Q533+'FR-16(7)(v)-7 TRANS Demand'!Q533+'FR-16(7)(v)-8 TRANS Energy'!Q533+'FR-16(7)(v)-9 TRANS Cust'!Q533+'FR-16(7)(v)-11 DIST Demand'!Q533+'FR-16(7)(v)-12 DIST Energy'!Q533+'FR-16(7)(v)-13 DIST Cust'!Q533-'FR-16(7)(v)-14 TOTAL CLASS'!Q533","v":0},{"$f":"SUM(G533:Q533)","v":0},{"$f":"F533-R533","v":0}]
[20,null,{"$f":"'FR-16(7)(v)-1 Functional'!C534","v":"ELIMINATE MISCELLANEOUS EXPENSES ADJUSTMENT"},{"$f":"'FR-16(7)(v)-1 Functional'!D534","v":"A315"},null,{"$f":"'FR-16(7)(v)-3 PROD Demand'!F534+'FR-16(7)(v)-4 PROD Energy'!F534+'FR-16(7)(v)-5 PROD Cust'!F534+'FR-16(7)(v)-7 TRANS Demand'!F534+'FR-16(7)(v)-8 TRANS Energy'!F534+'FR-16(7)(v)-9 TRANS Cust'!F534+'FR-16(7)(v)-11 DIST Demand'!F534+'FR-16(7)(v)-12 DIST Energy'!F534+'FR-16(7)(v)-13 DIST Cust'!F534-'FR-16(7)(v)-14 TOTAL CLASS'!F534","v":0},{"$f":"'FR-16(7)(v)-3 PROD Demand'!G534+'FR-16(7)(v)-4 PROD Energy'!G534+'FR-16(7)(v)-5 PROD Cust'!G534+'FR-16(7)(v)-7 TRANS Demand'!G534+'FR-16(7)(v)-8 TRANS Energy'!G534+'FR-16(7)(v)-9 TRANS Cust'!G534+'FR-16(7)(v)-11 DIST Demand'!G534+'FR-16(7)(v)-12 DIST Energy'!G534+'FR-16(7)(v)-13 DIST Cust'!G534-'FR-16(7)(v)-14 TOTAL CLASS'!G534","v":0},{"$f":"'FR-16(7)(v)-3 PROD Demand'!H534+'FR-16(7)(v)-4 PROD Energy'!H534+'FR-16(7)(v)-5 PROD Cust'!H534+'FR-16(7)(v)-7 TRANS Demand'!H534+'FR-16(7)(v)-8 TRANS Energy'!H534+'FR-16(7)(v)-9 TRANS Cust'!H534+'FR-16(7)(v)-11 DIST Demand'!H534+'FR-16(7)(v)-12 DIST Energy'!H534+'FR-16(7)(v)-13 DIST Cust'!H534-'FR-16(7)(v)-14 TOTAL CLASS'!H534","v":0},{"$f":"'FR-16(7)(v)-3 PROD Demand'!I534+'FR-16(7)(v)-4 PROD Energy'!I534+'FR-16(7)(v)-5 PROD Cust'!I534+'FR-16(7)(v)-7 TRANS Demand'!I534+'FR-16(7)(v)-8 TRANS Energy'!I534+'FR-16(7)(v)-9 TRANS Cust'!I534+'FR-16(7)(v)-11 DIST Demand'!I534+'FR-16(7)(v)-12 DIST Energy'!I534+'FR-16(7)(v)-13 DIST Cust'!I534-'FR-16(7)(v)-14 TOTAL CLASS'!I534","v":0},{"$f":"'FR-16(7)(v)-3 PROD Demand'!J534+'FR-16(7)(v)-4 PROD Energy'!J534+'FR-16(7)(v)-5 PROD Cust'!J534+'FR-16(7)(v)-7 TRANS Demand'!J534+'FR-16(7)(v)-8 TRANS Energy'!J534+'FR-16(7)(v)-9 TRANS Cust'!J534+'FR-16(7)(v)-11 DIST Demand'!J534+'FR-16(7)(v)-12 DIST Energy'!J534+'FR-16(7)(v)-13 DIST Cust'!J534-'FR-16(7)(v)-14 TOTAL CLASS'!J534","v":0},{"$f":"'FR-16(7)(v)-3 PROD Demand'!K534+'FR-16(7)(v)-4 PROD Energy'!K534+'FR-16(7)(v)-5 PROD Cust'!K534+'FR-16(7)(v)-7 TRANS Demand'!K534+'FR-16(7)(v)-8 TRANS Energy'!K534+'FR-16(7)(v)-9 TRANS Cust'!K534+'FR-16(7)(v)-11 DIST Demand'!K534+'FR-16(7)(v)-12 DIST Energy'!K534+'FR-16(7)(v)-13 DIST Cust'!K534-'FR-16(7)(v)-14 TOTAL CLASS'!K534","v":0},{"$f":"'FR-16(7)(v)-3 PROD Demand'!L534+'FR-16(7)(v)-4 PROD Energy'!L534+'FR-16(7)(v)-5 PROD Cust'!L534+'FR-16(7)(v)-7 TRANS Demand'!L534+'FR-16(7)(v)-8 TRANS Energy'!L534+'FR-16(7)(v)-9 TRANS Cust'!L534+'FR-16(7)(v)-11 DIST Demand'!L534+'FR-16(7)(v)-12 DIST Energy'!L534+'FR-16(7)(v)-13 DIST Cust'!L534-'FR-16(7)(v)-14 TOTAL CLASS'!L534","v":0},{"$f":"'FR-16(7)(v)-3 PROD Demand'!M534+'FR-16(7)(v)-4 PROD Energy'!M534+'FR-16(7)(v)-5 PROD Cust'!M534+'FR-16(7)(v)-7 TRANS Demand'!M534+'FR-16(7)(v)-8 TRANS Energy'!M534+'FR-16(7)(v)-9 TRANS Cust'!M534+'FR-16(7)(v)-11 DIST Demand'!M534+'FR-16(7)(v)-12 DIST Energy'!M534+'FR-16(7)(v)-13 DIST Cust'!M534-'FR-16(7)(v)-14 TOTAL CLASS'!M534","v":0},{"$f":"'FR-16(7)(v)-3 PROD Demand'!N534+'FR-16(7)(v)-4 PROD Energy'!N534+'FR-16(7)(v)-5 PROD Cust'!N534+'FR-16(7)(v)-7 TRANS Demand'!N534+'FR-16(7)(v)-8 TRANS Energy'!N534+'FR-16(7)(v)-9 TRANS Cust'!N534+'FR-16(7)(v)-11 DIST Demand'!N534+'FR-16(7)(v)-12 DIST Energy'!N534+'FR-16(7)(v)-13 DIST Cust'!N534-'FR-16(7)(v)-14 TOTAL CLASS'!N534","v":0},{"$f":"'FR-16(7)(v)-3 PROD Demand'!O534+'FR-16(7)(v)-4 PROD Energy'!O534+'FR-16(7)(v)-5 PROD Cust'!O534+'FR-16(7)(v)-7 TRANS Demand'!O534+'FR-16(7)(v)-8 TRANS Energy'!O534+'FR-16(7)(v)-9 TRANS Cust'!O534+'FR-16(7)(v)-11 DIST Demand'!O534+'FR-16(7)(v)-12 DIST Energy'!O534+'FR-16(7)(v)-13 DIST Cust'!O534-'FR-16(7)(v)-14 TOTAL CLASS'!O534","v":0},{"$f":"'FR-16(7)(v)-3 PROD Demand'!P534+'FR-16(7)(v)-4 PROD Energy'!P534+'FR-16(7)(v)-5 PROD Cust'!P534+'FR-16(7)(v)-7 TRANS Demand'!P534+'FR-16(7)(v)-8 TRANS Energy'!P534+'FR-16(7)(v)-9 TRANS Cust'!P534+'FR-16(7)(v)-11 DIST Demand'!P534+'FR-16(7)(v)-12 DIST Energy'!P534+'FR-16(7)(v)-13 DIST Cust'!P534-'FR-16(7)(v)-14 TOTAL CLASS'!P534","v":0},{"$f":"'FR-16(7)(v)-3 PROD Demand'!Q534+'FR-16(7)(v)-4 PROD Energy'!Q534+'FR-16(7)(v)-5 PROD Cust'!Q534+'FR-16(7)(v)-7 TRANS Demand'!Q534+'FR-16(7)(v)-8 TRANS Energy'!Q534+'FR-16(7)(v)-9 TRANS Cust'!Q534+'FR-16(7)(v)-11 DIST Demand'!Q534+'FR-16(7)(v)-12 DIST Energy'!Q534+'FR-16(7)(v)-13 DIST Cust'!Q534-'FR-16(7)(v)-14 TOTAL CLASS'!Q534","v":0},0,0]
[21,null,{"$f":"'FR-16(7)(v)-1 Functional'!C535","v":"RIDER ESM ELIMINATION"},{"$f":"'FR-16(7)(v)-1 Functional'!D535","v":"A315"},null,{"$f":"'FR-16(7)(v)-3 PROD Demand'!F535+'FR-16(7)(v)-4 PROD Energy'!F535+'FR-16(7)(v)-5 PROD Cust'!F535+'FR-16(7)(v)-7 TRANS Demand'!F535+'FR-16(7)(v)-8 TRANS Energy'!F535+'FR-16(7)(v)-9 TRANS Cust'!F535+'FR-16(7)(v)-11 DIST Demand'!F535+'FR-16(7)(v)-12 DIST Energy'!F535+'FR-16(7)(v)-13 DIST Cust'!F535-'FR-16(7)(v)-14 TOTAL CLASS'!F535","v":0},{"$f":"'FR-16(7)(v)-3 PROD Demand'!G535+'FR-16(7)(v)-4 PROD Energy'!G535+'FR-16(7)(v)-5 PROD Cust'!G535+'FR-16(7)(v)-7 TRANS Demand'!G535+'FR-16(7)(v)-8 TRANS Energy'!G535+'FR-16(7)(v)-9 TRANS Cust'!G535+'FR-16(7)(v)-11 DIST Demand'!G535+'FR-16(7)(v)-12 DIST Energy'!G535+'FR-16(7)(v)-13 DIST Cust'!G535-'FR-16(7)(v)-14 TOTAL CLASS'!G535","v":0},{"$f":"'FR-16(7)(v)-3 PROD Demand'!H535+'FR-16(7)(v)-4 PROD Energy'!H535+'FR-16(7)(v)-5 PROD Cust'!H535+'FR-16(7)(v)-7 TRANS Demand'!H535+'FR-16(7)(v)-8 TRANS Energy'!H535+'FR-16(7)(v)-9 TRANS Cust'!H535+'FR-16(7)(v)-11 DIST Demand'!H535+'FR-16(7)(v)-12 DIST Energy'!H535+'FR-16(7)(v)-13 DIST Cust'!H535-'FR-16(7)(v)-14 TOTAL CLASS'!H535","v":0},{"$f":"'FR-16(7)(v)-3 PROD Demand'!I535+'FR-16(7)(v)-4 PROD Energy'!I535+'FR-16(7)(v)-5 PROD Cust'!I535+'FR-16(7)(v)-7 TRANS Demand'!I535+'FR-16(7)(v)-8 TRANS Energy'!I535+'FR-16(7)(v)-9 TRANS Cust'!I535+'FR-16(7)(v)-11 DIST Demand'!I535+'FR-16(7)(v)-12 DIST Energy'!I535+'FR-16(7)(v)-13 DIST Cust'!I535-'FR-16(7)(v)-14 TOTAL CLASS'!I535","v":0},{"$f":"'FR-16(7)(v)-3 PROD Demand'!J535+'FR-16(7)(v)-4 PROD Energy'!J535+'FR-16(7)(v)-5 PROD Cust'!J535+'FR-16(7)(v)-7 TRANS Demand'!J535+'FR-16(7)(v)-8 TRANS Energy'!J535+'FR-16(7)(v)-9 TRANS Cust'!J535+'FR-16(7)(v)-11 DIST Demand'!J535+'FR-16(7)(v)-12 DIST Energy'!J535+'FR-16(7)(v)-13 DIST Cust'!J535-'FR-16(7)(v)-14 TOTAL CLASS'!J535","v":0},{"$f":"'FR-16(7)(v)-3 PROD Demand'!K535+'FR-16(7)(v)-4 PROD Energy'!K535+'FR-16(7)(v)-5 PROD Cust'!K535+'FR-16(7)(v)-7 TRANS Demand'!K535+'FR-16(7)(v)-8 TRANS Energy'!K535+'FR-16(7)(v)-9 TRANS Cust'!K535+'FR-16(7)(v)-11 DIST Demand'!K535+'FR-16(7)(v)-12 DIST Energy'!K535+'FR-16(7)(v)-13 DIST Cust'!K535-'FR-16(7)(v)-14 TOTAL CLASS'!K535","v":0},{"$f":"'FR-16(7)(v)-3 PROD Demand'!L535+'FR-16(7)(v)-4 PROD Energy'!L535+'FR-16(7)(v)-5 PROD Cust'!L535+'FR-16(7)(v)-7 TRANS Demand'!L535+'FR-16(7)(v)-8 TRANS Energy'!L535+'FR-16(7)(v)-9 TRANS Cust'!L535+'FR-16(7)(v)-11 DIST Demand'!L535+'FR-16(7)(v)-12 DIST Energy'!L535+'FR-16(7)(v)-13 DIST Cust'!L535-'FR-16(7)(v)-14 TOTAL CLASS'!L535","v":0},{"$f":"'FR-16(7)(v)-3 PROD Demand'!M535+'FR-16(7)(v)-4 PROD Energy'!M535+'FR-16(7)(v)-5 PROD Cust'!M535+'FR-16(7)(v)-7 TRANS Demand'!M535+'FR-16(7)(v)-8 TRANS Energy'!M535+'FR-16(7)(v)-9 TRANS Cust'!M535+'FR-16(7)(v)-11 DIST Demand'!M535+'FR-16(7)(v)-12 DIST Energy'!M535+'FR-16(7)(v)-13 DIST Cust'!M535-'FR-16(7)(v)-14 TOTAL CLASS'!M535","v":0},{"$f":"'FR-16(7)(v)-3 PROD Demand'!N535+'FR-16(7)(v)-4 PROD Energy'!N535+'FR-16(7)(v)-5 PROD Cust'!N535+'FR-16(7)(v)-7 TRANS Demand'!N535+'FR-16(7)(v)-8 TRANS Energy'!N535+'FR-16(7)(v)-9 TRANS Cust'!N535+'FR-16(7)(v)-11 DIST Demand'!N535+'FR-16(7)(v)-12 DIST Energy'!N535+'FR-16(7)(v)-13 DIST Cust'!N535-'FR-16(7)(v)-14 TOTAL CLASS'!N535","v":0},{"$f":"'FR-16(7)(v)-3 PROD Demand'!O535+'FR-16(7)(v)-4 PROD Energy'!O535+'FR-16(7)(v)-5 PROD Cust'!O535+'FR-16(7)(v)-7 TRANS Demand'!O535+'FR-16(7)(v)-8 TRANS Energy'!O535+'FR-16(7)(v)-9 TRANS Cust'!O535+'FR-16(7)(v)-11 DIST Demand'!O535+'FR-16(7)(v)-12 DIST Energy'!O535+'FR-16(7)(v)-13 DIST Cust'!O535-'FR-16(7)(v)-14 TOTAL CLASS'!O535","v":0},{"$f":"'FR-16(7)(v)-3 PROD Demand'!P535+'FR-16(7)(v)-4 PROD Energy'!P535+'FR-16(7)(v)-5 PROD Cust'!P535+'FR-16(7)(v)-7 TRANS Demand'!P535+'FR-16(7)(v)-8 TRANS Energy'!P535+'FR-16(7)(v)-9 TRANS Cust'!P535+'FR-16(7)(v)-11 DIST Demand'!P535+'FR-16(7)(v)-12 DIST Energy'!P535+'FR-16(7)(v)-13 DIST Cust'!P535-'FR-16(7)(v)-14 TOTAL CLASS'!P535","v":0},{"$f":"'FR-16(7)(v)-3 PROD Demand'!Q535+'FR-16(7)(v)-4 PROD Energy'!Q535+'FR-16(7)(v)-5 PROD Cust'!Q535+'FR-16(7)(v)-7 TRANS Demand'!Q535+'FR-16(7)(v)-8 TRANS Energy'!Q535+'FR-16(7)(v)-9 TRANS Cust'!Q535+'FR-16(7)(v)-11 DIST Demand'!Q535+'FR-16(7)(v)-12 DIST Energy'!Q535+'FR-16(7)(v)-13 DIST Cust'!Q535-'FR-16(7)(v)-14 TOTAL CLASS'!Q535","v":0},0,0]
[22,null,{"$f":"'FR-16(7)(v)-1 Functional'!C536","v":"ELIMINATE DSM"},{"$f":"'FR-16(7)(v)-1 Functional'!D536","v":"A315"},null,{"$f":"'FR-16(7)(v)-3 PROD Demand'!F536+'FR-16(7)(v)-4 PROD Energy'!F536+'FR-16(7)(v)-5 PROD Cust'!F536+'FR-16(7)(v)-7 TRANS Demand'!F536+'FR-16(7)(v)-8 TRANS Energy'!F536+'FR-16(7)(v)-9 TRANS Cust'!F536+'FR-16(7)(v)-11 DIST Demand'!F536+'FR-16(7)(v)-12 DIST Energy'!F536+'FR-16(7)(v)-13 DIST Cust'!F536-'FR-16(7)(v)-14 TOTAL CLASS'!F536","v":0},{"$f":"'FR-16(7)(v)-3 PROD Demand'!G536+'FR-16(7)(v)-4 PROD Energy'!G536+'FR-16(7)(v)-5 PROD Cust'!G536+'FR-16(7)(v)-7 TRANS Demand'!G536+'FR-16(7)(v)-8 TRANS Energy'!G536+'FR-16(7)(v)-9 TRANS Cust'!G536+'FR-16(7)(v)-11 DIST Demand'!G536+'FR-16(7)(v)-12 DIST Energy'!G536+'FR-16(7)(v)-13 DIST Cust'!G536-'FR-16(7)(v)-14 TOTAL CLASS'!G536","v":0},{"$f":"'FR-16(7)(v)-3 PROD Demand'!H536+'FR-16(7)(v)-4 PROD Energy'!H536+'FR-16(7)(v)-5 PROD Cust'!H536+'FR-16(7)(v)-7 TRANS Demand'!H536+'FR-16(7)(v)-8 TRANS Energy'!H536+'FR-16(7)(v)-9 TRANS Cust'!H536+'FR-16(7)(v)-11 DIST Demand'!H536+'FR-16(7)(v)-12 DIST Energy'!H536+'FR-16(7)(v)-13 DIST Cust'!H536-'FR-16(7)(v)-14 TOTAL CLASS'!H536","v":0},{"$f":"'FR-16(7)(v)-3 PROD Demand'!I536+'FR-16(7)(v)-4 PROD Energy'!I536+'FR-16(7)(v)-5 PROD Cust'!I536+'FR-16(7)(v)-7 TRANS Demand'!I536+'FR-16(7)(v)-8 TRANS Energy'!I536+'FR-16(7)(v)-9 TRANS Cust'!I536+'FR-16(7)(v)-11 DIST Demand'!I536+'FR-16(7)(v)-12 DIST Energy'!I536+'FR-16(7)(v)-13 DIST Cust'!I536-'FR-16(7)(v)-14 TOTAL CLASS'!I536","v":0},{"$f":"'FR-16(7)(v)-3 PROD Demand'!J536+'FR-16(7)(v)-4 PROD Energy'!J536+'FR-16(7)(v)-5 PROD Cust'!J536+'FR-16(7)(v)-7 TRANS Demand'!J536+'FR-16(7)(v)-8 TRANS Energy'!J536+'FR-16(7)(v)-9 TRANS Cust'!J536+'FR-16(7)(v)-11 DIST Demand'!J536+'FR-16(7)(v)-12 DIST Energy'!J536+'FR-16(7)(v)-13 DIST Cust'!J536-'FR-16(7)(v)-14 TOTAL CLASS'!J536","v":0},{"$f":"'FR-16(7)(v)-3 PROD Demand'!K536+'FR-16(7)(v)-4 PROD Energy'!K536+'FR-16(7)(v)-5 PROD Cust'!K536+'FR-16(7)(v)-7 TRANS Demand'!K536+'FR-16(7)(v)-8 TRANS Energy'!K536+'FR-16(7)(v)-9 TRANS Cust'!K536+'FR-16(7)(v)-11 DIST Demand'!K536+'FR-16(7)(v)-12 DIST Energy'!K536+'FR-16(7)(v)-13 DIST Cust'!K536-'FR-16(7)(v)-14 TOTAL CLASS'!K536","v":0},{"$f":"'FR-16(7)(v)-3 PROD Demand'!L536+'FR-16(7)(v)-4 PROD Energy'!L536+'FR-16(7)(v)-5 PROD Cust'!L536+'FR-16(7)(v)-7 TRANS Demand'!L536+'FR-16(7)(v)-8 TRANS Energy'!L536+'FR-16(7)(v)-9 TRANS Cust'!L536+'FR-16(7)(v)-11 DIST Demand'!L536+'FR-16(7)(v)-12 DIST Energy'!L536+'FR-16(7)(v)-13 DIST Cust'!L536-'FR-16(7)(v)-14 TOTAL CLASS'!L536","v":0},{"$f":"'FR-16(7)(v)-3 PROD Demand'!M536+'FR-16(7)(v)-4 PROD Energy'!M536+'FR-16(7)(v)-5 PROD Cust'!M536+'FR-16(7)(v)-7 TRANS Demand'!M536+'FR-16(7)(v)-8 TRANS Energy'!M536+'FR-16(7)(v)-9 TRANS Cust'!M536+'FR-16(7)(v)-11 DIST Demand'!M536+'FR-16(7)(v)-12 DIST Energy'!M536+'FR-16(7)(v)-13 DIST Cust'!M536-'FR-16(7)(v)-14 TOTAL CLASS'!M536","v":0},{"$f":"'FR-16(7)(v)-3 PROD Demand'!N536+'FR-16(7)(v)-4 PROD Energy'!N536+'FR-16(7)(v)-5 PROD Cust'!N536+'FR-16(7)(v)-7 TRANS Demand'!N536+'FR-16(7)(v)-8 TRANS Energy'!N536+'FR-16(7)(v)-9 TRANS Cust'!N536+'FR-16(7)(v)-11 DIST Demand'!N536+'FR-16(7)(v)-12 DIST Energy'!N536+'FR-16(7)(v)-13 DIST Cust'!N536-'FR-16(7)(v)-14 TOTAL CLASS'!N536","v":0},{"$f":"'FR-16(7)(v)-3 PROD Demand'!O536+'FR-16(7)(v)-4 PROD Energy'!O536+'FR-16(7)(v)-5 PROD Cust'!O536+'FR-16(7)(v)-7 TRANS Demand'!O536+'FR-16(7)(v)-8 TRANS Energy'!O536+'FR-16(7)(v)-9 TRANS Cust'!O536+'FR-16(7)(v)-11 DIST Demand'!O536+'FR-16(7)(v)-12 DIST Energy'!O536+'FR-16(7)(v)-13 DIST Cust'!O536-'FR-16(7)(v)-14 TOTAL CLASS'!O536","v":0},{"$f":"'FR-16(7)(v)-3 PROD Demand'!P536+'FR-16(7)(v)-4 PROD Energy'!P536+'FR-16(7)(v)-5 PROD Cust'!P536+'FR-16(7)(v)-7 TRANS Demand'!P536+'FR-16(7)(v)-8 TRANS Energy'!P536+'FR-16(7)(v)-9 TRANS Cust'!P536+'FR-16(7)(v)-11 DIST Demand'!P536+'FR-16(7)(v)-12 DIST Energy'!P536+'FR-16(7)(v)-13 DIST Cust'!P536-'FR-16(7)(v)-14 TOTAL CLASS'!P536","v":0},{"$f":"'FR-16(7)(v)-3 PROD Demand'!Q536+'FR-16(7)(v)-4 PROD Energy'!Q536+'FR-16(7)(v)-5 PROD Cust'!Q536+'FR-16(7)(v)-7 TRANS Demand'!Q536+'FR-16(7)(v)-8 TRANS Energy'!Q536+'FR-16(7)(v)-9 TRANS Cust'!Q536+'FR-16(7)(v)-11 DIST Demand'!Q536+'FR-16(7)(v)-12 DIST Energy'!Q536+'FR-16(7)(v)-13 DIST Cust'!Q536-'FR-16(7)(v)-14 TOTAL CLASS'!Q536","v":0},0,0]
[23,null,{"$f":"'FR-16(7)(v)-1 Functional'!C537","v":"DSM DEFERRAL - ELECTRIC"},{"$f":"'FR-16(7)(v)-1 Functional'!D537","v":"A315"},null,{"$f":"'FR-16(7)(v)-3 PROD Demand'!F537+'FR-16(7)(v)-4 PROD Energy'!F537+'FR-16(7)(v)-5 PROD Cust'!F537+'FR-16(7)(v)-7 TRANS Demand'!F537+'FR-16(7)(v)-8 TRANS Energy'!F537+'FR-16(7)(v)-9 TRANS Cust'!F537+'FR-16(7)(v)-11 DIST Demand'!F537+'FR-16(7)(v)-12 DIST Energy'!F537+'FR-16(7)(v)-13 DIST Cust'!F537-'FR-16(7)(v)-14 TOTAL CLASS'!F537","v":0},{"$f":"'FR-16(7)(v)-3 PROD Demand'!G537+'FR-16(7)(v)-4 PROD Energy'!G537+'FR-16(7)(v)-5 PROD Cust'!G537+'FR-16(7)(v)-7 TRANS Demand'!G537+'FR-16(7)(v)-8 TRANS Energy'!G537+'FR-16(7)(v)-9 TRANS Cust'!G537+'FR-16(7)(v)-11 DIST Demand'!G537+'FR-16(7)(v)-12 DIST Energy'!G537+'FR-16(7)(v)-13 DIST Cust'!G537-'FR-16(7)(v)-14 TOTAL CLASS'!G537","v":0},{"$f":"'FR-16(7)(v)-3 PROD Demand'!H537+'FR-16(7)(v)-4 PROD Energy'!H537+'FR-16(7)(v)-5 PROD Cust'!H537+'FR-16(7)(v)-7 TRANS Demand'!H537+'FR-16(7)(v)-8 TRANS Energy'!H537+'FR-16(7)(v)-9 TRANS Cust'!H537+'FR-16(7)(v)-11 DIST Demand'!H537+'FR-16(7)(v)-12 DIST Energy'!H537+'FR-16(7)(v)-13 DIST Cust'!H537-'FR-16(7)(v)-14 TOTAL CLASS'!H537","v":0},{"$f":"'FR-16(7)(v)-3 PROD Demand'!I537+'FR-16(7)(v)-4 PROD Energy'!I537+'FR-16(7)(v)-5 PROD Cust'!I537+'FR-16(7)(v)-7 TRANS Demand'!I537+'FR-16(7)(v)-8 TRANS Energy'!I537+'FR-16(7)(v)-9 TRANS Cust'!I537+'FR-16(7)(v)-11 DIST Demand'!I537+'FR-16(7)(v)-12 DIST Energy'!I537+'FR-16(7)(v)-13 DIST Cust'!I537-'FR-16(7)(v)-14 TOTAL CLASS'!I537","v":0},{"$f":"'FR-16(7)(v)-3 PROD Demand'!J537+'FR-16(7)(v)-4 PROD Energy'!J537+'FR-16(7)(v)-5 PROD Cust'!J537+'FR-16(7)(v)-7 TRANS Demand'!J537+'FR-16(7)(v)-8 TRANS Energy'!J537+'FR-16(7)(v)-9 TRANS Cust'!J537+'FR-16(7)(v)-11 DIST Demand'!J537+'FR-16(7)(v)-12 DIST Energy'!J537+'FR-16(7)(v)-13 DIST Cust'!J537-'FR-16(7)(v)-14 TOTAL CLASS'!J537","v":0},{"$f":"'FR-16(7)(v)-3 PROD Demand'!K537+'FR-16(7)(v)-4 PROD Energy'!K537+'FR-16(7)(v)-5 PROD Cust'!K537+'FR-16(7)(v)-7 TRANS Demand'!K537+'FR-16(7)(v)-8 TRANS Energy'!K537+'FR-16(7)(v)-9 TRANS Cust'!K537+'FR-16(7)(v)-11 DIST Demand'!K537+'FR-16(7)(v)-12 DIST Energy'!K537+'FR-16(7)(v)-13 DIST Cust'!K537-'FR-16(7)(v)-14 TOTAL CLASS'!K537","v":0},{"$f":"'FR-16(7)(v)-3 PROD Demand'!L537+'FR-16(7)(v)-4 PROD Energy'!L537+'FR-16(7)(v)-5 PROD Cust'!L537+'FR-16(7)(v)-7 TRANS Demand'!L537+'FR-16(7)(v)-8 TRANS Energy'!L537+'FR-16(7)(v)-9 TRANS Cust'!L537+'FR-16(7)(v)-11 DIST Demand'!L537+'FR-16(7)(v)-12 DIST Energy'!L537+'FR-16(7)(v)-13 DIST Cust'!L537-'FR-16(7)(v)-14 TOTAL CLASS'!L537","v":0},{"$f":"'FR-16(7)(v)-3 PROD Demand'!M537+'FR-16(7)(v)-4 PROD Energy'!M537+'FR-16(7)(v)-5 PROD Cust'!M537+'FR-16(7)(v)-7 TRANS Demand'!M537+'FR-16(7)(v)-8 TRANS Energy'!M537+'FR-16(7)(v)-9 TRANS Cust'!M537+'FR-16(7)(v)-11 DIST Demand'!M537+'FR-16(7)(v)-12 DIST Energy'!M537+'FR-16(7)(v)-13 DIST Cust'!M537-'FR-16(7)(v)-14 TOTAL CLASS'!M537","v":0},{"$f":"'FR-16(7)(v)-3 PROD Demand'!N537+'FR-16(7)(v)-4 PROD Energy'!N537+'FR-16(7)(v)-5 PROD Cust'!N537+'FR-16(7)(v)-7 TRANS Demand'!N537+'FR-16(7)(v)-8 TRANS Energy'!N537+'FR-16(7)(v)-9 TRANS Cust'!N537+'FR-16(7)(v)-11 DIST Demand'!N537+'FR-16(7)(v)-12 DIST Energy'!N537+'FR-16(7)(v)-13 DIST Cust'!N537-'FR-16(7)(v)-14 TOTAL CLASS'!N537","v":0},{"$f":"'FR-16(7)(v)-3 PROD Demand'!O537+'FR-16(7)(v)-4 PROD Energy'!O537+'FR-16(7)(v)-5 PROD Cust'!O537+'FR-16(7)(v)-7 TRANS Demand'!O537+'FR-16(7)(v)-8 TRANS Energy'!O537+'FR-16(7)(v)-9 TRANS Cust'!O537+'FR-16(7)(v)-11 DIST Demand'!O537+'FR-16(7)(v)-12 DIST Energy'!O537+'FR-16(7)(v)-13 DIST Cust'!O537-'FR-16(7)(v)-14 TOTAL CLASS'!O537","v":0},{"$f":"'FR-16(7)(v)-3 PROD Demand'!P537+'FR-16(7)(v)-4 PROD Energy'!P537+'FR-16(7)(v)-5 PROD Cust'!P537+'FR-16(7)(v)-7 TRANS Demand'!P537+'FR-16(7)(v)-8 TRANS Energy'!P537+'FR-16(7)(v)-9 TRANS Cust'!P537+'FR-16(7)(v)-11 DIST Demand'!P537+'FR-16(7)(v)-12 DIST Energy'!P537+'FR-16(7)(v)-13 DIST Cust'!P537-'FR-16(7)(v)-14 TOTAL CLASS'!P537","v":0},{"$f":"'FR-16(7)(v)-3 PROD Demand'!Q537+'FR-16(7)(v)-4 PROD Energy'!Q537+'FR-16(7)(v)-5 PROD Cust'!Q537+'FR-16(7)(v)-7 TRANS Demand'!Q537+'FR-16(7)(v)-8 TRANS Energy'!Q537+'FR-16(7)(v)-9 TRANS Cust'!Q537+'FR-16(7)(v)-11 DIST Demand'!Q537+'FR-16(7)(v)-12 DIST Energy'!Q537+'FR-16(7)(v)-13 DIST Cust'!Q537-'FR-16(7)(v)-14 TOTAL CLASS'!Q537","v":0},0,0]
[24,null,{"$f":"'FR-16(7)(v)-1 Functional'!C538","v":"PENSION ADJUSTMENT"},{"$f":"'FR-16(7)(v)-1 Functional'!D538","v":"A315"},null,{"$f":"'FR-16(7)(v)-3 PROD Demand'!F538+'FR-16(7)(v)-4 PROD Energy'!F538+'FR-16(7)(v)-5 PROD Cust'!F538+'FR-16(7)(v)-7 TRANS Demand'!F538+'FR-16(7)(v)-8 TRANS Energy'!F538+'FR-16(7)(v)-9 TRANS Cust'!F538+'FR-16(7)(v)-11 DIST Demand'!F538+'FR-16(7)(v)-12 DIST Energy'!F538+'FR-16(7)(v)-13 DIST Cust'!F538-'FR-16(7)(v)-14 TOTAL CLASS'!F538","v":0},{"$f":"'FR-16(7)(v)-3 PROD Demand'!G538+'FR-16(7)(v)-4 PROD Energy'!G538+'FR-16(7)(v)-5 PROD Cust'!G538+'FR-16(7)(v)-7 TRANS Demand'!G538+'FR-16(7)(v)-8 TRANS Energy'!G538+'FR-16(7)(v)-9 TRANS Cust'!G538+'FR-16(7)(v)-11 DIST Demand'!G538+'FR-16(7)(v)-12 DIST Energy'!G538+'FR-16(7)(v)-13 DIST Cust'!G538-'FR-16(7)(v)-14 TOTAL CLASS'!G538","v":0},{"$f":"'FR-16(7)(v)-3 PROD Demand'!H538+'FR-16(7)(v)-4 PROD Energy'!H538+'FR-16(7)(v)-5 PROD Cust'!H538+'FR-16(7)(v)-7 TRANS Demand'!H538+'FR-16(7)(v)-8 TRANS Energy'!H538+'FR-16(7)(v)-9 TRANS Cust'!H538+'FR-16(7)(v)-11 DIST Demand'!H538+'FR-16(7)(v)-12 DIST Energy'!H538+'FR-16(7)(v)-13 DIST Cust'!H538-'FR-16(7)(v)-14 TOTAL CLASS'!H538","v":0},{"$f":"'FR-16(7)(v)-3 PROD Demand'!I538+'FR-16(7)(v)-4 PROD Energy'!I538+'FR-16(7)(v)-5 PROD Cust'!I538+'FR-16(7)(v)-7 TRANS Demand'!I538+'FR-16(7)(v)-8 TRANS Energy'!I538+'FR-16(7)(v)-9 TRANS Cust'!I538+'FR-16(7)(v)-11 DIST Demand'!I538+'FR-16(7)(v)-12 DIST Energy'!I538+'FR-16(7)(v)-13 DIST Cust'!I538-'FR-16(7)(v)-14 TOTAL CLASS'!I538","v":0},{"$f":"'FR-16(7)(v)-3 PROD Demand'!J538+'FR-16(7)(v)-4 PROD Energy'!J538+'FR-16(7)(v)-5 PROD Cust'!J538+'FR-16(7)(v)-7 TRANS Demand'!J538+'FR-16(7)(v)-8 TRANS Energy'!J538+'FR-16(7)(v)-9 TRANS Cust'!J538+'FR-16(7)(v)-11 DIST Demand'!J538+'FR-16(7)(v)-12 DIST Energy'!J538+'FR-16(7)(v)-13 DIST Cust'!J538-'FR-16(7)(v)-14 TOTAL CLASS'!J538","v":0},{"$f":"'FR-16(7)(v)-3 PROD Demand'!K538+'FR-16(7)(v)-4 PROD Energy'!K538+'FR-16(7)(v)-5 PROD Cust'!K538+'FR-16(7)(v)-7 TRANS Demand'!K538+'FR-16(7)(v)-8 TRANS Energy'!K538+'FR-16(7)(v)-9 TRANS Cust'!K538+'FR-16(7)(v)-11 DIST Demand'!K538+'FR-16(7)(v)-12 DIST Energy'!K538+'FR-16(7)(v)-13 DIST Cust'!K538-'FR-16(7)(v)-14 TOTAL CLASS'!K538","v":0},{"$f":"'FR-16(7)(v)-3 PROD Demand'!L538+'FR-16(7)(v)-4 PROD Energy'!L538+'FR-16(7)(v)-5 PROD Cust'!L538+'FR-16(7)(v)-7 TRANS Demand'!L538+'FR-16(7)(v)-8 TRANS Energy'!L538+'FR-16(7)(v)-9 TRANS Cust'!L538+'FR-16(7)(v)-11 DIST Demand'!L538+'FR-16(7)(v)-12 DIST Energy'!L538+'FR-16(7)(v)-13 DIST Cust'!L538-'FR-16(7)(v)-14 TOTAL CLASS'!L538","v":0},{"$f":"'FR-16(7)(v)-3 PROD Demand'!M538+'FR-16(7)(v)-4 PROD Energy'!M538+'FR-16(7)(v)-5 PROD Cust'!M538+'FR-16(7)(v)-7 TRANS Demand'!M538+'FR-16(7)(v)-8 TRANS Energy'!M538+'FR-16(7)(v)-9 TRANS Cust'!M538+'FR-16(7)(v)-11 DIST Demand'!M538+'FR-16(7)(v)-12 DIST Energy'!M538+'FR-16(7)(v)-13 DIST Cust'!M538-'FR-16(7)(v)-14 TOTAL CLASS'!M538","v":0},{"$f":"'FR-16(7)(v)-3 PROD Demand'!N538+'FR-16(7)(v)-4 PROD Energy'!N538+'FR-16(7)(v)-5 PROD Cust'!N538+'FR-16(7)(v)-7 TRANS Demand'!N538+'FR-16(7)(v)-8 TRANS Energy'!N538+'FR-16(7)(v)-9 TRANS Cust'!N538+'FR-16(7)(v)-11 DIST Demand'!N538+'FR-16(7)(v)-12 DIST Energy'!N538+'FR-16(7)(v)-13 DIST Cust'!N538-'FR-16(7)(v)-14 TOTAL CLASS'!N538","v":0},{"$f":"'FR-16(7)(v)-3 PROD Demand'!O538+'FR-16(7)(v)-4 PROD Energy'!O538+'FR-16(7)(v)-5 PROD Cust'!O538+'FR-16(7)(v)-7 TRANS Demand'!O538+'FR-16(7)(v)-8 TRANS Energy'!O538+'FR-16(7)(v)-9 TRANS Cust'!O538+'FR-16(7)(v)-11 DIST Demand'!O538+'FR-16(7)(v)-12 DIST Energy'!O538+'FR-16(7)(v)-13 DIST Cust'!O538-'FR-16(7)(v)-14 TOTAL CLASS'!O538","v":0},{"$f":"'FR-16(7)(v)-3 PROD Demand'!P538+'FR-16(7)(v)-4 PROD Energy'!P538+'FR-16(7)(v)-5 PROD Cust'!P538+'FR-16(7)(v)-7 TRANS Demand'!P538+'FR-16(7)(v)-8 TRANS Energy'!P538+'FR-16(7)(v)-9 TRANS Cust'!P538+'FR-16(7)(v)-11 DIST Demand'!P538+'FR-16(7)(v)-12 DIST Energy'!P538+'FR-16(7)(v)-13 DIST Cust'!P538-'FR-16(7)(v)-14 TOTAL CLASS'!P538","v":0},{"$f":"'FR-16(7)(v)-3 PROD Demand'!Q538+'FR-16(7)(v)-4 PROD Energy'!Q538+'FR-16(7)(v)-5 PROD Cust'!Q538+'FR-16(7)(v)-7 TRANS Demand'!Q538+'FR-16(7)(v)-8 TRANS Energy'!Q538+'FR-16(7)(v)-9 TRANS Cust'!Q538+'FR-16(7)(v)-11 DIST Demand'!Q538+'FR-16(7)(v)-12 DIST Energy'!Q538+'FR-16(7)(v)-13 DIST Cust'!Q538-'FR-16(7)(v)-14 TOTAL CLASS'!Q538","v":0},0,0]
[25,null,{"$f":"'FR-16(7)(v)-1 Functional'!C539","v":"ELIMINATE MISC EXPENSES"},{"$f":"'FR-16(7)(v)-1 Functional'!D539","v":"A315"},null,{"$f":"'FR-16(7)(v)-3 PROD Demand'!F539+'FR-16(7)(v)-4 PROD Energy'!F539+'FR-16(7)(v)-5 PROD Cust'!F539+'FR-16(7)(v)-7 TRANS Demand'!F539+'FR-16(7)(v)-8 TRANS Energy'!F539+'FR-16(7)(v)-9 TRANS Cust'!F539+'FR-16(7)(v)-11 DIST Demand'!F539+'FR-16(7)(v)-12 DIST Energy'!F539+'FR-16(7)(v)-13 DIST Cust'!F539-'FR-16(7)(v)-14 TOTAL CLASS'!F539","v":0},{"$f":"'FR-16(7)(v)-3 PROD Demand'!G539+'FR-16(7)(v)-4 PROD Energy'!G539+'FR-16(7)(v)-5 PROD Cust'!G539+'FR-16(7)(v)-7 TRANS Demand'!G539+'FR-16(7)(v)-8 TRANS Energy'!G539+'FR-16(7)(v)-9 TRANS Cust'!G539+'FR-16(7)(v)-11 DIST Demand'!G539+'FR-16(7)(v)-12 DIST Energy'!G539+'FR-16(7)(v)-13 DIST Cust'!G539-'FR-16(7)(v)-14 TOTAL CLASS'!G539","v":0},{"$f":"'FR-16(7)(v)-3 PROD Demand'!H539+'FR-16(7)(v)-4 PROD Energy'!H539+'FR-16(7)(v)-5 PROD Cust'!H539+'FR-16(7)(v)-7 TRANS Demand'!H539+'FR-16(7)(v)-8 TRANS Energy'!H539+'FR-16(7)(v)-9 TRANS Cust'!H539+'FR-16(7)(v)-11 DIST Demand'!H539+'FR-16(7)(v)-12 DIST Energy'!H539+'FR-16(7)(v)-13 DIST Cust'!H539-'FR-16(7)(v)-14 TOTAL CLASS'!H539","v":0},{"$f":"'FR-16(7)(v)-3 PROD Demand'!I539+'FR-16(7)(v)-4 PROD Energy'!I539+'FR-16(7)(v)-5 PROD Cust'!I539+'FR-16(7)(v)-7 TRANS Demand'!I539+'FR-16(7)(v)-8 TRANS Energy'!I539+'FR-16(7)(v)-9 TRANS Cust'!I539+'FR-16(7)(v)-11 DIST Demand'!I539+'FR-16(7)(v)-12 DIST Energy'!I539+'FR-16(7)(v)-13 DIST Cust'!I539-'FR-16(7)(v)-14 TOTAL CLASS'!I539","v":0},{"$f":"'FR-16(7)(v)-3 PROD Demand'!J539+'FR-16(7)(v)-4 PROD Energy'!J539+'FR-16(7)(v)-5 PROD Cust'!J539+'FR-16(7)(v)-7 TRANS Demand'!J539+'FR-16(7)(v)-8 TRANS Energy'!J539+'FR-16(7)(v)-9 TRANS Cust'!J539+'FR-16(7)(v)-11 DIST Demand'!J539+'FR-16(7)(v)-12 DIST Energy'!J539+'FR-16(7)(v)-13 DIST Cust'!J539-'FR-16(7)(v)-14 TOTAL CLASS'!J539","v":0},{"$f":"'FR-16(7)(v)-3 PROD Demand'!K539+'FR-16(7)(v)-4 PROD Energy'!K539+'FR-16(7)(v)-5 PROD Cust'!K539+'FR-16(7)(v)-7 TRANS Demand'!K539+'FR-16(7)(v)-8 TRANS Energy'!K539+'FR-16(7)(v)-9 TRANS Cust'!K539+'FR-16(7)(v)-11 DIST Demand'!K539+'FR-16(7)(v)-12 DIST Energy'!K539+'FR-16(7)(v)-13 DIST Cust'!K539-'FR-16(7)(v)-14 TOTAL CLASS'!K539","v":0},{"$f":"'FR-16(7)(v)-3 PROD Demand'!L539+'FR-16(7)(v)-4 PROD Energy'!L539+'FR-16(7)(v)-5 PROD Cust'!L539+'FR-16(7)(v)-7 TRANS Demand'!L539+'FR-16(7)(v)-8 TRANS Energy'!L539+'FR-16(7)(v)-9 TRANS Cust'!L539+'FR-16(7)(v)-11 DIST Demand'!L539+'FR-16(7)(v)-12 DIST Energy'!L539+'FR-16(7)(v)-13 DIST Cust'!L539-'FR-16(7)(v)-14 TOTAL CLASS'!L539","v":0},{"$f":"'FR-16(7)(v)-3 PROD Demand'!M539+'FR-16(7)(v)-4 PROD Energy'!M539+'FR-16(7)(v)-5 PROD Cust'!M539+'FR-16(7)(v)-7 TRANS Demand'!M539+'FR-16(7)(v)-8 TRANS Energy'!M539+'FR-16(7)(v)-9 TRANS Cust'!M539+'FR-16(7)(v)-11 DIST Demand'!M539+'FR-16(7)(v)-12 DIST Energy'!M539+'FR-16(7)(v)-13 DIST Cust'!M539-'FR-16(7)(v)-14 TOTAL CLASS'!M539","v":0},{"$f":"'FR-16(7)(v)-3 PROD Demand'!N539+'FR-16(7)(v)-4 PROD Energy'!N539+'FR-16(7)(v)-5 PROD Cust'!N539+'FR-16(7)(v)-7 TRANS Demand'!N539+'FR-16(7)(v)-8 TRANS Energy'!N539+'FR-16(7)(v)-9 TRANS Cust'!N539+'FR-16(7)(v)-11 DIST Demand'!N539+'FR-16(7)(v)-12 DIST Energy'!N539+'FR-16(7)(v)-13 DIST Cust'!N539-'FR-16(7)(v)-14 TOTAL CLASS'!N539","v":0},{"$f":"'FR-16(7)(v)-3 PROD Demand'!O539+'FR-16(7)(v)-4 PROD Energy'!O539+'FR-16(7)(v)-5 PROD Cust'!O539+'FR-16(7)(v)-7 TRANS Demand'!O539+'FR-16(7)(v)-8 TRANS Energy'!O539+'FR-16(7)(v)-9 TRANS Cust'!O539+'FR-16(7)(v)-11 DIST Demand'!O539+'FR-16(7)(v)-12 DIST Energy'!O539+'FR-16(7)(v)-13 DIST Cust'!O539-'FR-16(7)(v)-14 TOTAL CLASS'!O539","v":0},{"$f":"'FR-16(7)(v)-3 PROD Demand'!P539+'FR-16(7)(v)-4 PROD Energy'!P539+'FR-16(7)(v)-5 PROD Cust'!P539+'FR-16(7)(v)-7 TRANS Demand'!P539+'FR-16(7)(v)-8 TRANS Energy'!P539+'FR-16(7)(v)-9 TRANS Cust'!P539+'FR-16(7)(v)-11 DIST Demand'!P539+'FR-16(7)(v)-12 DIST Energy'!P539+'FR-16(7)(v)-13 DIST Cust'!P539-'FR-16(7)(v)-14 TOTAL CLASS'!P539","v":0},{"$f":"'FR-16(7)(v)-3 PROD Demand'!Q539+'FR-16(7)(v)-4 PROD Energy'!Q539+'FR-16(7)(v)-5 PROD Cust'!Q539+'FR-16(7)(v)-7 TRANS Demand'!Q539+'FR-16(7)(v)-8 TRANS Energy'!Q539+'FR-16(7)(v)-9 TRANS Cust'!Q539+'FR-16(7)(v)-11 DIST Demand'!Q539+'FR-16(7)(v)-12 DIST Energy'!Q539+'FR-16(7)(v)-13 DIST Cust'!Q539-'FR-16(7)(v)-14 TOTAL CLASS'!Q539","v":0},0,0]
[26,null,{"$f":"'FR-16(7)(v)-1 Functional'!C540","v":"ELIMINATE MERGER COSTS AND CREDITS"},{"$f":"'FR-16(7)(v)-1 Functional'!D540","v":"A315"},null,{"$f":"'FR-16(7)(v)-3 PROD Demand'!F540+'FR-16(7)(v)-4 PROD Energy'!F540+'FR-16(7)(v)-5 PROD Cust'!F540+'FR-16(7)(v)-7 TRANS Demand'!F540+'FR-16(7)(v)-8 TRANS Energy'!F540+'FR-16(7)(v)-9 TRANS Cust'!F540+'FR-16(7)(v)-11 DIST Demand'!F540+'FR-16(7)(v)-12 DIST Energy'!F540+'FR-16(7)(v)-13 DIST Cust'!F540-'FR-16(7)(v)-14 TOTAL CLASS'!F540","v":0},{"$f":"'FR-16(7)(v)-3 PROD Demand'!G540+'FR-16(7)(v)-4 PROD Energy'!G540+'FR-16(7)(v)-5 PROD Cust'!G540+'FR-16(7)(v)-7 TRANS Demand'!G540+'FR-16(7)(v)-8 TRANS Energy'!G540+'FR-16(7)(v)-9 TRANS Cust'!G540+'FR-16(7)(v)-11 DIST Demand'!G540+'FR-16(7)(v)-12 DIST Energy'!G540+'FR-16(7)(v)-13 DIST Cust'!G540-'FR-16(7)(v)-14 TOTAL CLASS'!G540","v":0},{"$f":"'FR-16(7)(v)-3 PROD Demand'!H540+'FR-16(7)(v)-4 PROD Energy'!H540+'FR-16(7)(v)-5 PROD Cust'!H540+'FR-16(7)(v)-7 TRANS Demand'!H540+'FR-16(7)(v)-8 TRANS Energy'!H540+'FR-16(7)(v)-9 TRANS Cust'!H540+'FR-16(7)(v)-11 DIST Demand'!H540+'FR-16(7)(v)-12 DIST Energy'!H540+'FR-16(7)(v)-13 DIST Cust'!H540-'FR-16(7)(v)-14 TOTAL CLASS'!H540","v":0},{"$f":"'FR-16(7)(v)-3 PROD Demand'!I540+'FR-16(7)(v)-4 PROD Energy'!I540+'FR-16(7)(v)-5 PROD Cust'!I540+'FR-16(7)(v)-7 TRANS Demand'!I540+'FR-16(7)(v)-8 TRANS Energy'!I540+'FR-16(7)(v)-9 TRANS Cust'!I540+'FR-16(7)(v)-11 DIST Demand'!I540+'FR-16(7)(v)-12 DIST Energy'!I540+'FR-16(7)(v)-13 DIST Cust'!I540-'FR-16(7)(v)-14 TOTAL CLASS'!I540","v":0},{"$f":"'FR-16(7)(v)-3 PROD Demand'!J540+'FR-16(7)(v)-4 PROD Energy'!J540+'FR-16(7)(v)-5 PROD Cust'!J540+'FR-16(7)(v)-7 TRANS Demand'!J540+'FR-16(7)(v)-8 TRANS Energy'!J540+'FR-16(7)(v)-9 TRANS Cust'!J540+'FR-16(7)(v)-11 DIST Demand'!J540+'FR-16(7)(v)-12 DIST Energy'!J540+'FR-16(7)(v)-13 DIST Cust'!J540-'FR-16(7)(v)-14 TOTAL CLASS'!J540","v":0},{"$f":"'FR-16(7)(v)-3 PROD Demand'!K540+'FR-16(7)(v)-4 PROD Energy'!K540+'FR-16(7)(v)-5 PROD Cust'!K540+'FR-16(7)(v)-7 TRANS Demand'!K540+'FR-16(7)(v)-8 TRANS Energy'!K540+'FR-16(7)(v)-9 TRANS Cust'!K540+'FR-16(7)(v)-11 DIST Demand'!K540+'FR-16(7)(v)-12 DIST Energy'!K540+'FR-16(7)(v)-13 DIST Cust'!K540-'FR-16(7)(v)-14 TOTAL CLASS'!K540","v":0},{"$f":"'FR-16(7)(v)-3 PROD Demand'!L540+'FR-16(7)(v)-4 PROD Energy'!L540+'FR-16(7)(v)-5 PROD Cust'!L540+'FR-16(7)(v)-7 TRANS Demand'!L540+'FR-16(7)(v)-8 TRANS Energy'!L540+'FR-16(7)(v)-9 TRANS Cust'!L540+'FR-16(7)(v)-11 DIST Demand'!L540+'FR-16(7)(v)-12 DIST Energy'!L540+'FR-16(7)(v)-13 DIST Cust'!L540-'FR-16(7)(v)-14 TOTAL CLASS'!L540","v":0},{"$f":"'FR-16(7)(v)-3 PROD Demand'!M540+'FR-16(7)(v)-4 PROD Energy'!M540+'FR-16(7)(v)-5 PROD Cust'!M540+'FR-16(7)(v)-7 TRANS Demand'!M540+'FR-16(7)(v)-8 TRANS Energy'!M540+'FR-16(7)(v)-9 TRANS Cust'!M540+'FR-16(7)(v)-11 DIST Demand'!M540+'FR-16(7)(v)-12 DIST Energy'!M540+'FR-16(7)(v)-13 DIST Cust'!M540-'FR-16(7)(v)-14 TOTAL CLASS'!M540","v":0},{"$f":"'FR-16(7)(v)-3 PROD Demand'!N540+'FR-16(7)(v)-4 PROD Energy'!N540+'FR-16(7)(v)-5 PROD Cust'!N540+'FR-16(7)(v)-7 TRANS Demand'!N540+'FR-16(7)(v)-8 TRANS Energy'!N540+'FR-16(7)(v)-9 TRANS Cust'!N540+'FR-16(7)(v)-11 DIST Demand'!N540+'FR-16(7)(v)-12 DIST Energy'!N540+'FR-16(7)(v)-13 DIST Cust'!N540-'FR-16(7)(v)-14 TOTAL CLASS'!N540","v":0},{"$f":"'FR-16(7)(v)-3 PROD Demand'!O540+'FR-16(7)(v)-4 PROD Energy'!O540+'FR-16(7)(v)-5 PROD Cust'!O540+'FR-16(7)(v)-7 TRANS Demand'!O540+'FR-16(7)(v)-8 TRANS Energy'!O540+'FR-16(7)(v)-9 TRANS Cust'!O540+'FR-16(7)(v)-11 DIST Demand'!O540+'FR-16(7)(v)-12 DIST Energy'!O540+'FR-16(7)(v)-13 DIST Cust'!O540-'FR-16(7)(v)-14 TOTAL CLASS'!O540","v":0},{"$f":"'FR-16(7)(v)-3 PROD Demand'!P540+'FR-16(7)(v)-4 PROD Energy'!P540+'FR-16(7)(v)-5 PROD Cust'!P540+'FR-16(7)(v)-7 TRANS Demand'!P540+'FR-16(7)(v)-8 TRANS Energy'!P540+'FR-16(7)(v)-9 TRANS Cust'!P540+'FR-16(7)(v)-11 DIST Demand'!P540+'FR-16(7)(v)-12 DIST Energy'!P540+'FR-16(7)(v)-13 DIST Cust'!P540-'FR-16(7)(v)-14 TOTAL CLASS'!P540","v":0},{"$f":"'FR-16(7)(v)-3 PROD Demand'!Q540+'FR-16(7)(v)-4 PROD Energy'!Q540+'FR-16(7)(v)-5 PROD Cust'!Q540+'FR-16(7)(v)-7 TRANS Demand'!Q540+'FR-16(7)(v)-8 TRANS Energy'!Q540+'FR-16(7)(v)-9 TRANS Cust'!Q540+'FR-16(7)(v)-11 DIST Demand'!Q540+'FR-16(7)(v)-12 DIST Energy'!Q540+'FR-16(7)(v)-13 DIST Cust'!Q540-'FR-16(7)(v)-14 TOTAL CLASS'!Q540","v":0},0,0]
[27,null,{"$f":"'FR-16(7)(v)-1 Functional'!C541","v":"ANNUALIZE KYPSC MAINT TAX"},{"$f":"'FR-16(7)(v)-1 Functional'!D541","v":"A315"},null,{"$f":"'FR-16(7)(v)-3 PROD Demand'!F541+'FR-16(7)(v)-4 PROD Energy'!F541+'FR-16(7)(v)-5 PROD Cust'!F541+'FR-16(7)(v)-7 TRANS Demand'!F541+'FR-16(7)(v)-8 TRANS Energy'!F541+'FR-16(7)(v)-9 TRANS Cust'!F541+'FR-16(7)(v)-11 DIST Demand'!F541+'FR-16(7)(v)-12 DIST Energy'!F541+'FR-16(7)(v)-13 DIST Cust'!F541-'FR-16(7)(v)-14 TOTAL CLASS'!F541","v":0},{"$f":"'FR-16(7)(v)-3 PROD Demand'!G541+'FR-16(7)(v)-4 PROD Energy'!G541+'FR-16(7)(v)-5 PROD Cust'!G541+'FR-16(7)(v)-7 TRANS Demand'!G541+'FR-16(7)(v)-8 TRANS Energy'!G541+'FR-16(7)(v)-9 TRANS Cust'!G541+'FR-16(7)(v)-11 DIST Demand'!G541+'FR-16(7)(v)-12 DIST Energy'!G541+'FR-16(7)(v)-13 DIST Cust'!G541-'FR-16(7)(v)-14 TOTAL CLASS'!G541","v":0},{"$f":"'FR-16(7)(v)-3 PROD Demand'!H541+'FR-16(7)(v)-4 PROD Energy'!H541+'FR-16(7)(v)-5 PROD Cust'!H541+'FR-16(7)(v)-7 TRANS Demand'!H541+'FR-16(7)(v)-8 TRANS Energy'!H541+'FR-16(7)(v)-9 TRANS Cust'!H541+'FR-16(7)(v)-11 DIST Demand'!H541+'FR-16(7)(v)-12 DIST Energy'!H541+'FR-16(7)(v)-13 DIST Cust'!H541-'FR-16(7)(v)-14 TOTAL CLASS'!H541","v":0},{"$f":"'FR-16(7)(v)-3 PROD Demand'!I541+'FR-16(7)(v)-4 PROD Energy'!I541+'FR-16(7)(v)-5 PROD Cust'!I541+'FR-16(7)(v)-7 TRANS Demand'!I541+'FR-16(7)(v)-8 TRANS Energy'!I541+'FR-16(7)(v)-9 TRANS Cust'!I541+'FR-16(7)(v)-11 DIST Demand'!I541+'FR-16(7)(v)-12 DIST Energy'!I541+'FR-16(7)(v)-13 DIST Cust'!I541-'FR-16(7)(v)-14 TOTAL CLASS'!I541","v":0},{"$f":"'FR-16(7)(v)-3 PROD Demand'!J541+'FR-16(7)(v)-4 PROD Energy'!J541+'FR-16(7)(v)-5 PROD Cust'!J541+'FR-16(7)(v)-7 TRANS Demand'!J541+'FR-16(7)(v)-8 TRANS Energy'!J541+'FR-16(7)(v)-9 TRANS Cust'!J541+'FR-16(7)(v)-11 DIST Demand'!J541+'FR-16(7)(v)-12 DIST Energy'!J541+'FR-16(7)(v)-13 DIST Cust'!J541-'FR-16(7)(v)-14 TOTAL CLASS'!J541","v":0},{"$f":"'FR-16(7)(v)-3 PROD Demand'!K541+'FR-16(7)(v)-4 PROD Energy'!K541+'FR-16(7)(v)-5 PROD Cust'!K541+'FR-16(7)(v)-7 TRANS Demand'!K541+'FR-16(7)(v)-8 TRANS Energy'!K541+'FR-16(7)(v)-9 TRANS Cust'!K541+'FR-16(7)(v)-11 DIST Demand'!K541+'FR-16(7)(v)-12 DIST Energy'!K541+'FR-16(7)(v)-13 DIST Cust'!K541-'FR-16(7)(v)-14 TOTAL CLASS'!K541","v":0},{"$f":"'FR-16(7)(v)-3 PROD Demand'!L541+'FR-16(7)(v)-4 PROD Energy'!L541+'FR-16(7)(v)-5 PROD Cust'!L541+'FR-16(7)(v)-7 TRANS Demand'!L541+'FR-16(7)(v)-8 TRANS Energy'!L541+'FR-16(7)(v)-9 TRANS Cust'!L541+'FR-16(7)(v)-11 DIST Demand'!L541+'FR-16(7)(v)-12 DIST Energy'!L541+'FR-16(7)(v)-13 DIST Cust'!L541-'FR-16(7)(v)-14 TOTAL CLASS'!L541","v":0},{"$f":"'FR-16(7)(v)-3 PROD Demand'!M541+'FR-16(7)(v)-4 PROD Energy'!M541+'FR-16(7)(v)-5 PROD Cust'!M541+'FR-16(7)(v)-7 TRANS Demand'!M541+'FR-16(7)(v)-8 TRANS Energy'!M541+'FR-16(7)(v)-9 TRANS Cust'!M541+'FR-16(7)(v)-11 DIST Demand'!M541+'FR-16(7)(v)-12 DIST Energy'!M541+'FR-16(7)(v)-13 DIST Cust'!M541-'FR-16(7)(v)-14 TOTAL CLASS'!M541","v":0},{"$f":"'FR-16(7)(v)-3 PROD Demand'!N541+'FR-16(7)(v)-4 PROD Energy'!N541+'FR-16(7)(v)-5 PROD Cust'!N541+'FR-16(7)(v)-7 TRANS Demand'!N541+'FR-16(7)(v)-8 TRANS Energy'!N541+'FR-16(7)(v)-9 TRANS Cust'!N541+'FR-16(7)(v)-11 DIST Demand'!N541+'FR-16(7)(v)-12 DIST Energy'!N541+'FR-16(7)(v)-13 DIST Cust'!N541-'FR-16(7)(v)-14 TOTAL CLASS'!N541","v":0},{"$f":"'FR-16(7)(v)-3 PROD Demand'!O541+'FR-16(7)(v)-4 PROD Energy'!O541+'FR-16(7)(v)-5 PROD Cust'!O541+'FR-16(7)(v)-7 TRANS Demand'!O541+'FR-16(7)(v)-8 TRANS Energy'!O541+'FR-16(7)(v)-9 TRANS Cust'!O541+'FR-16(7)(v)-11 DIST Demand'!O541+'FR-16(7)(v)-12 DIST Energy'!O541+'FR-16(7)(v)-13 DIST Cust'!O541-'FR-16(7)(v)-14 TOTAL CLASS'!O541","v":0},{"$f":"'FR-16(7)(v)-3 PROD Demand'!P541+'FR-16(7)(v)-4 PROD Energy'!P541+'FR-16(7)(v)-5 PROD Cust'!P541+'FR-16(7)(v)-7 TRANS Demand'!P541+'FR-16(7)(v)-8 TRANS Energy'!P541+'FR-16(7)(v)-9 TRANS Cust'!P541+'FR-16(7)(v)-11 DIST Demand'!P541+'FR-16(7)(v)-12 DIST Energy'!P541+'FR-16(7)(v)-13 DIST Cust'!P541-'FR-16(7)(v)-14 TOTAL CLASS'!P541","v":0},{"$f":"'FR-16(7)(v)-3 PROD Demand'!Q541+'FR-16(7)(v)-4 PROD Energy'!Q541+'FR-16(7)(v)-5 PROD Cust'!Q541+'FR-16(7)(v)-7 TRANS Demand'!Q541+'FR-16(7)(v)-8 TRANS Energy'!Q541+'FR-16(7)(v)-9 TRANS Cust'!Q541+'FR-16(7)(v)-11 DIST Demand'!Q541+'FR-16(7)(v)-12 DIST Energy'!Q541+'FR-16(7)(v)-13 DIST Cust'!Q541-'FR-16(7)(v)-14 TOTAL CLASS'!Q541","v":0},0,0]
[28,null,{"$f":"'FR-16(7)(v)-1 Functional'!C542","v":"REMOVE INCENTIVE COMP"},{"$f":"'FR-16(7)(v)-1 Functional'!D542","v":"A315"},null,{"$f":"'FR-16(7)(v)-3 PROD Demand'!F542+'FR-16(7)(v)-4 PROD Energy'!F542+'FR-16(7)(v)-5 PROD Cust'!F542+'FR-16(7)(v)-7 TRANS Demand'!F542+'FR-16(7)(v)-8 TRANS Energy'!F542+'FR-16(7)(v)-9 TRANS Cust'!F542+'FR-16(7)(v)-11 DIST Demand'!F542+'FR-16(7)(v)-12 DIST Energy'!F542+'FR-16(7)(v)-13 DIST Cust'!F542-'FR-16(7)(v)-14 TOTAL CLASS'!F542","v":0},{"$f":"'FR-16(7)(v)-3 PROD Demand'!G542+'FR-16(7)(v)-4 PROD Energy'!G542+'FR-16(7)(v)-5 PROD Cust'!G542+'FR-16(7)(v)-7 TRANS Demand'!G542+'FR-16(7)(v)-8 TRANS Energy'!G542+'FR-16(7)(v)-9 TRANS Cust'!G542+'FR-16(7)(v)-11 DIST Demand'!G542+'FR-16(7)(v)-12 DIST Energy'!G542+'FR-16(7)(v)-13 DIST Cust'!G542-'FR-16(7)(v)-14 TOTAL CLASS'!G542","v":0},{"$f":"'FR-16(7)(v)-3 PROD Demand'!H542+'FR-16(7)(v)-4 PROD Energy'!H542+'FR-16(7)(v)-5 PROD Cust'!H542+'FR-16(7)(v)-7 TRANS Demand'!H542+'FR-16(7)(v)-8 TRANS Energy'!H542+'FR-16(7)(v)-9 TRANS Cust'!H542+'FR-16(7)(v)-11 DIST Demand'!H542+'FR-16(7)(v)-12 DIST Energy'!H542+'FR-16(7)(v)-13 DIST Cust'!H542-'FR-16(7)(v)-14 TOTAL CLASS'!H542","v":0},{"$f":"'FR-16(7)(v)-3 PROD Demand'!I542+'FR-16(7)(v)-4 PROD Energy'!I542+'FR-16(7)(v)-5 PROD Cust'!I542+'FR-16(7)(v)-7 TRANS Demand'!I542+'FR-16(7)(v)-8 TRANS Energy'!I542+'FR-16(7)(v)-9 TRANS Cust'!I542+'FR-16(7)(v)-11 DIST Demand'!I542+'FR-16(7)(v)-12 DIST Energy'!I542+'FR-16(7)(v)-13 DIST Cust'!I542-'FR-16(7)(v)-14 TOTAL CLASS'!I542","v":0},{"$f":"'FR-16(7)(v)-3 PROD Demand'!J542+'FR-16(7)(v)-4 PROD Energy'!J542+'FR-16(7)(v)-5 PROD Cust'!J542+'FR-16(7)(v)-7 TRANS Demand'!J542+'FR-16(7)(v)-8 TRANS Energy'!J542+'FR-16(7)(v)-9 TRANS Cust'!J542+'FR-16(7)(v)-11 DIST Demand'!J542+'FR-16(7)(v)-12 DIST Energy'!J542+'FR-16(7)(v)-13 DIST Cust'!J542-'FR-16(7)(v)-14 TOTAL CLASS'!J542","v":0},{"$f":"'FR-16(7)(v)-3 PROD Demand'!K542+'FR-16(7)(v)-4 PROD Energy'!K542+'FR-16(7)(v)-5 PROD Cust'!K542+'FR-16(7)(v)-7 TRANS Demand'!K542+'FR-16(7)(v)-8 TRANS Energy'!K542+'FR-16(7)(v)-9 TRANS Cust'!K542+'FR-16(7)(v)-11 DIST Demand'!K542+'FR-16(7)(v)-12 DIST Energy'!K542+'FR-16(7)(v)-13 DIST Cust'!K542-'FR-16(7)(v)-14 TOTAL CLASS'!K542","v":0},{"$f":"'FR-16(7)(v)-3 PROD Demand'!L542+'FR-16(7)(v)-4 PROD Energy'!L542+'FR-16(7)(v)-5 PROD Cust'!L542+'FR-16(7)(v)-7 TRANS Demand'!L542+'FR-16(7)(v)-8 TRANS Energy'!L542+'FR-16(7)(v)-9 TRANS Cust'!L542+'FR-16(7)(v)-11 DIST Demand'!L542+'FR-16(7)(v)-12 DIST Energy'!L542+'FR-16(7)(v)-13 DIST Cust'!L542-'FR-16(7)(v)-14 TOTAL CLASS'!L542","v":0},{"$f":"'FR-16(7)(v)-3 PROD Demand'!M542+'FR-16(7)(v)-4 PROD Energy'!M542+'FR-16(7)(v)-5 PROD Cust'!M542+'FR-16(7)(v)-7 TRANS Demand'!M542+'FR-16(7)(v)-8 TRANS Energy'!M542+'FR-16(7)(v)-9 TRANS Cust'!M542+'FR-16(7)(v)-11 DIST Demand'!M542+'FR-16(7)(v)-12 DIST Energy'!M542+'FR-16(7)(v)-13 DIST Cust'!M542-'FR-16(7)(v)-14 TOTAL CLASS'!M542","v":0},{"$f":"'FR-16(7)(v)-3 PROD Demand'!N542+'FR-16(7)(v)-4 PROD Energy'!N542+'FR-16(7)(v)-5 PROD Cust'!N542+'FR-16(7)(v)-7 TRANS Demand'!N542+'FR-16(7)(v)-8 TRANS Energy'!N542+'FR-16(7)(v)-9 TRANS Cust'!N542+'FR-16(7)(v)-11 DIST Demand'!N542+'FR-16(7)(v)-12 DIST Energy'!N542+'FR-16(7)(v)-13 DIST Cust'!N542-'FR-16(7)(v)-14 TOTAL CLASS'!N542","v":0},{"$f":"'FR-16(7)(v)-3 PROD Demand'!O542+'FR-16(7)(v)-4 PROD Energy'!O542+'FR-16(7)(v)-5 PROD Cust'!O542+'FR-16(7)(v)-7 TRANS Demand'!O542+'FR-16(7)(v)-8 TRANS Energy'!O542+'FR-16(7)(v)-9 TRANS Cust'!O542+'FR-16(7)(v)-11 DIST Demand'!O542+'FR-16(7)(v)-12 DIST Energy'!O542+'FR-16(7)(v)-13 DIST Cust'!O542-'FR-16(7)(v)-14 TOTAL CLASS'!O542","v":0},{"$f":"'FR-16(7)(v)-3 PROD Demand'!P542+'FR-16(7)(v)-4 PROD Energy'!P542+'FR-16(7)(v)-5 PROD Cust'!P542+'FR-16(7)(v)-7 TRANS Demand'!P542+'FR-16(7)(v)-8 TRANS Energy'!P542+'FR-16(7)(v)-9 TRANS Cust'!P542+'FR-16(7)(v)-11 DIST Demand'!P542+'FR-16(7)(v)-12 DIST Energy'!P542+'FR-16(7)(v)-13 DIST Cust'!P542-'FR-16(7)(v)-14 TOTAL CLASS'!P542","v":0},{"$f":"'FR-16(7)(v)-3 PROD Demand'!Q542+'FR-16(7)(v)-4 PROD Energy'!Q542+'FR-16(7)(v)-5 PROD Cust'!Q542+'FR-16(7)(v)-7 TRANS Demand'!Q542+'FR-16(7)(v)-8 TRANS Energy'!Q542+'FR-16(7)(v)-9 TRANS Cust'!Q542+'FR-16(7)(v)-11 DIST Demand'!Q542+'FR-16(7)(v)-12 DIST Energy'!Q542+'FR-16(7)(v)-13 DIST Cust'!Q542-'FR-16(7)(v)-14 TOTAL CLASS'!Q542","v":0},0,0]
[29,null,{"$f":"'FR-16(7)(v)-1 Functional'!C543","v":"CREDIT CARD FEES"},{"$f":"'FR-16(7)(v)-1 Functional'!D543","v":"A315"},null,{"$f":"'FR-16(7)(v)-3 PROD Demand'!F543+'FR-16(7)(v)-4 PROD Energy'!F543+'FR-16(7)(v)-5 PROD Cust'!F543+'FR-16(7)(v)-7 TRANS Demand'!F543+'FR-16(7)(v)-8 TRANS Energy'!F543+'FR-16(7)(v)-9 TRANS Cust'!F543+'FR-16(7)(v)-11 DIST Demand'!F543+'FR-16(7)(v)-12 DIST Energy'!F543+'FR-16(7)(v)-13 DIST Cust'!F543-'FR-16(7)(v)-14 TOTAL CLASS'!F543","v":0},{"$f":"'FR-16(7)(v)-3 PROD Demand'!G543+'FR-16(7)(v)-4 PROD Energy'!G543+'FR-16(7)(v)-5 PROD Cust'!G543+'FR-16(7)(v)-7 TRANS Demand'!G543+'FR-16(7)(v)-8 TRANS Energy'!G543+'FR-16(7)(v)-9 TRANS Cust'!G543+'FR-16(7)(v)-11 DIST Demand'!G543+'FR-16(7)(v)-12 DIST Energy'!G543+'FR-16(7)(v)-13 DIST Cust'!G543-'FR-16(7)(v)-14 TOTAL CLASS'!G543","v":0},{"$f":"'FR-16(7)(v)-3 PROD Demand'!H543+'FR-16(7)(v)-4 PROD Energy'!H543+'FR-16(7)(v)-5 PROD Cust'!H543+'FR-16(7)(v)-7 TRANS Demand'!H543+'FR-16(7)(v)-8 TRANS Energy'!H543+'FR-16(7)(v)-9 TRANS Cust'!H543+'FR-16(7)(v)-11 DIST Demand'!H543+'FR-16(7)(v)-12 DIST Energy'!H543+'FR-16(7)(v)-13 DIST Cust'!H543-'FR-16(7)(v)-14 TOTAL CLASS'!H543","v":0},{"$f":"'FR-16(7)(v)-3 PROD Demand'!I543+'FR-16(7)(v)-4 PROD Energy'!I543+'FR-16(7)(v)-5 PROD Cust'!I543+'FR-16(7)(v)-7 TRANS Demand'!I543+'FR-16(7)(v)-8 TRANS Energy'!I543+'FR-16(7)(v)-9 TRANS Cust'!I543+'FR-16(7)(v)-11 DIST Demand'!I543+'FR-16(7)(v)-12 DIST Energy'!I543+'FR-16(7)(v)-13 DIST Cust'!I543-'FR-16(7)(v)-14 TOTAL CLASS'!I543","v":0},{"$f":"'FR-16(7)(v)-3 PROD Demand'!J543+'FR-16(7)(v)-4 PROD Energy'!J543+'FR-16(7)(v)-5 PROD Cust'!J543+'FR-16(7)(v)-7 TRANS Demand'!J543+'FR-16(7)(v)-8 TRANS Energy'!J543+'FR-16(7)(v)-9 TRANS Cust'!J543+'FR-16(7)(v)-11 DIST Demand'!J543+'FR-16(7)(v)-12 DIST Energy'!J543+'FR-16(7)(v)-13 DIST Cust'!J543-'FR-16(7)(v)-14 TOTAL CLASS'!J543","v":0},{"$f":"'FR-16(7)(v)-3 PROD Demand'!K543+'FR-16(7)(v)-4 PROD Energy'!K543+'FR-16(7)(v)-5 PROD Cust'!K543+'FR-16(7)(v)-7 TRANS Demand'!K543+'FR-16(7)(v)-8 TRANS Energy'!K543+'FR-16(7)(v)-9 TRANS Cust'!K543+'FR-16(7)(v)-11 DIST Demand'!K543+'FR-16(7)(v)-12 DIST Energy'!K543+'FR-16(7)(v)-13 DIST Cust'!K543-'FR-16(7)(v)-14 TOTAL CLASS'!K543","v":0},{"$f":"'FR-16(7)(v)-3 PROD Demand'!L543+'FR-16(7)(v)-4 PROD Energy'!L543+'FR-16(7)(v)-5 PROD Cust'!L543+'FR-16(7)(v)-7 TRANS Demand'!L543+'FR-16(7)(v)-8 TRANS Energy'!L543+'FR-16(7)(v)-9 TRANS Cust'!L543+'FR-16(7)(v)-11 DIST Demand'!L543+'FR-16(7)(v)-12 DIST Energy'!L543+'FR-16(7)(v)-13 DIST Cust'!L543-'FR-16(7)(v)-14 TOTAL CLASS'!L543","v":0},{"$f":"'FR-16(7)(v)-3 PROD Demand'!M543+'FR-16(7)(v)-4 PROD Energy'!M543+'FR-16(7)(v)-5 PROD Cust'!M543+'FR-16(7)(v)-7 TRANS Demand'!M543+'FR-16(7)(v)-8 TRANS Energy'!M543+'FR-16(7)(v)-9 TRANS Cust'!M543+'FR-16(7)(v)-11 DIST Demand'!M543+'FR-16(7)(v)-12 DIST Energy'!M543+'FR-16(7)(v)-13 DIST Cust'!M543-'FR-16(7)(v)-14 TOTAL CLASS'!M543","v":0},{"$f":"'FR-16(7)(v)-3 PROD Demand'!N543+'FR-16(7)(v)-4 PROD Energy'!N543+'FR-16(7)(v)-5 PROD Cust'!N543+'FR-16(7)(v)-7 TRANS Demand'!N543+'FR-16(7)(v)-8 TRANS Energy'!N543+'FR-16(7)(v)-9 TRANS Cust'!N543+'FR-16(7)(v)-11 DIST Demand'!N543+'FR-16(7)(v)-12 DIST Energy'!N543+'FR-16(7)(v)-13 DIST Cust'!N543-'FR-16(7)(v)-14 TOTAL CLASS'!N543","v":0},{"$f":"'FR-16(7)(v)-3 PROD Demand'!O543+'FR-16(7)(v)-4 PROD Energy'!O543+'FR-16(7)(v)-5 PROD Cust'!O543+'FR-16(7)(v)-7 TRANS Demand'!O543+'FR-16(7)(v)-8 TRANS Energy'!O543+'FR-16(7)(v)-9 TRANS Cust'!O543+'FR-16(7)(v)-11 DIST Demand'!O543+'FR-16(7)(v)-12 DIST Energy'!O543+'FR-16(7)(v)-13 DIST Cust'!O543-'FR-16(7)(v)-14 TOTAL CLASS'!O543","v":0},{"$f":"'FR-16(7)(v)-3 PROD Demand'!P543+'FR-16(7)(v)-4 PROD Energy'!P543+'FR-16(7)(v)-5 PROD Cust'!P543+'FR-16(7)(v)-7 TRANS Demand'!P543+'FR-16(7)(v)-8 TRANS Energy'!P543+'FR-16(7)(v)-9 TRANS Cust'!P543+'FR-16(7)(v)-11 DIST Demand'!P543+'FR-16(7)(v)-12 DIST Energy'!P543+'FR-16(7)(v)-13 DIST Cust'!P543-'FR-16(7)(v)-14 TOTAL CLASS'!P543","v":0},{"$f":"'FR-16(7)(v)-3 PROD Demand'!Q543+'FR-16(7)(v)-4 PROD Energy'!Q543+'FR-16(7)(v)-5 PROD Cust'!Q543+'FR-16(7)(v)-7 TRANS Demand'!Q543+'FR-16(7)(v)-8 TRANS Energy'!Q543+'FR-16(7)(v)-9 TRANS Cust'!Q543+'FR-16(7)(v)-11 DIST Demand'!Q543+'FR-16(7)(v)-12 DIST Energy'!Q543+'FR-16(7)(v)-13 DIST Cust'!Q543-'FR-16(7)(v)-14 TOTAL CLASS'!Q543","v":0},0,0]
[30,null,{"$f":"'FR-16(7)(v)-1 Functional'!C544","v":"ELIMINATE INCENTIVE COMPENSATION ADJUSTMENT"},{"$f":"'FR-16(7)(v)-1 Functional'!D544","v":"A315"},null,{"$f":"'FR-16(7)(v)-3 PROD Demand'!F544+'FR-16(7)(v)-4 PROD Energy'!F544+'FR-16(7)(v)-5 PROD Cust'!F544+'FR-16(7)(v)-7 TRANS Demand'!F544+'FR-16(7)(v)-8 TRANS Energy'!F544+'FR-16(7)(v)-9 TRANS Cust'!F544+'FR-16(7)(v)-11 DIST Demand'!F544+'FR-16(7)(v)-12 DIST Energy'!F544+'FR-16(7)(v)-13 DIST Cust'!F544-'FR-16(7)(v)-14 TOTAL CLASS'!F544","v":0},{"$f":"'FR-16(7)(v)-3 PROD Demand'!G544+'FR-16(7)(v)-4 PROD Energy'!G544+'FR-16(7)(v)-5 PROD Cust'!G544+'FR-16(7)(v)-7 TRANS Demand'!G544+'FR-16(7)(v)-8 TRANS Energy'!G544+'FR-16(7)(v)-9 TRANS Cust'!G544+'FR-16(7)(v)-11 DIST Demand'!G544+'FR-16(7)(v)-12 DIST Energy'!G544+'FR-16(7)(v)-13 DIST Cust'!G544-'FR-16(7)(v)-14 TOTAL CLASS'!G544","v":0},{"$f":"'FR-16(7)(v)-3 PROD Demand'!H544+'FR-16(7)(v)-4 PROD Energy'!H544+'FR-16(7)(v)-5 PROD Cust'!H544+'FR-16(7)(v)-7 TRANS Demand'!H544+'FR-16(7)(v)-8 TRANS Energy'!H544+'FR-16(7)(v)-9 TRANS Cust'!H544+'FR-16(7)(v)-11 DIST Demand'!H544+'FR-16(7)(v)-12 DIST Energy'!H544+'FR-16(7)(v)-13 DIST Cust'!H544-'FR-16(7)(v)-14 TOTAL CLASS'!H544","v":0},{"$f":"'FR-16(7)(v)-3 PROD Demand'!I544+'FR-16(7)(v)-4 PROD Energy'!I544+'FR-16(7)(v)-5 PROD Cust'!I544+'FR-16(7)(v)-7 TRANS Demand'!I544+'FR-16(7)(v)-8 TRANS Energy'!I544+'FR-16(7)(v)-9 TRANS Cust'!I544+'FR-16(7)(v)-11 DIST Demand'!I544+'FR-16(7)(v)-12 DIST Energy'!I544+'FR-16(7)(v)-13 DIST Cust'!I544-'FR-16(7)(v)-14 TOTAL CLASS'!I544","v":0},{"$f":"'FR-16(7)(v)-3 PROD Demand'!J544+'FR-16(7)(v)-4 PROD Energy'!J544+'FR-16(7)(v)-5 PROD Cust'!J544+'FR-16(7)(v)-7 TRANS Demand'!J544+'FR-16(7)(v)-8 TRANS Energy'!J544+'FR-16(7)(v)-9 TRANS Cust'!J544+'FR-16(7)(v)-11 DIST Demand'!J544+'FR-16(7)(v)-12 DIST Energy'!J544+'FR-16(7)(v)-13 DIST Cust'!J544-'FR-16(7)(v)-14 TOTAL CLASS'!J544","v":0},{"$f":"'FR-16(7)(v)-3 PROD Demand'!K544+'FR-16(7)(v)-4 PROD Energy'!K544+'FR-16(7)(v)-5 PROD Cust'!K544+'FR-16(7)(v)-7 TRANS Demand'!K544+'FR-16(7)(v)-8 TRANS Energy'!K544+'FR-16(7)(v)-9 TRANS Cust'!K544+'FR-16(7)(v)-11 DIST Demand'!K544+'FR-16(7)(v)-12 DIST Energy'!K544+'FR-16(7)(v)-13 DIST Cust'!K544-'FR-16(7)(v)-14 TOTAL CLASS'!K544","v":0},{"$f":"'FR-16(7)(v)-3 PROD Demand'!L544+'FR-16(7)(v)-4 PROD Energy'!L544+'FR-16(7)(v)-5 PROD Cust'!L544+'FR-16(7)(v)-7 TRANS Demand'!L544+'FR-16(7)(v)-8 TRANS Energy'!L544+'FR-16(7)(v)-9 TRANS Cust'!L544+'FR-16(7)(v)-11 DIST Demand'!L544+'FR-16(7)(v)-12 DIST Energy'!L544+'FR-16(7)(v)-13 DIST Cust'!L544-'FR-16(7)(v)-14 TOTAL CLASS'!L544","v":0},{"$f":"'FR-16(7)(v)-3 PROD Demand'!M544+'FR-16(7)(v)-4 PROD Energy'!M544+'FR-16(7)(v)-5 PROD Cust'!M544+'FR-16(7)(v)-7 TRANS Demand'!M544+'FR-16(7)(v)-8 TRANS Energy'!M544+'FR-16(7)(v)-9 TRANS Cust'!M544+'FR-16(7)(v)-11 DIST Demand'!M544+'FR-16(7)(v)-12 DIST Energy'!M544+'FR-16(7)(v)-13 DIST Cust'!M544-'FR-16(7)(v)-14 TOTAL CLASS'!M544","v":0},{"$f":"'FR-16(7)(v)-3 PROD Demand'!N544+'FR-16(7)(v)-4 PROD Energy'!N544+'FR-16(7)(v)-5 PROD Cust'!N544+'FR-16(7)(v)-7 TRANS Demand'!N544+'FR-16(7)(v)-8 TRANS Energy'!N544+'FR-16(7)(v)-9 TRANS Cust'!N544+'FR-16(7)(v)-11 DIST Demand'!N544+'FR-16(7)(v)-12 DIST Energy'!N544+'FR-16(7)(v)-13 DIST Cust'!N544-'FR-16(7)(v)-14 TOTAL CLASS'!N544","v":0},{"$f":"'FR-16(7)(v)-3 PROD Demand'!O544+'FR-16(7)(v)-4 PROD Energy'!O544+'FR-16(7)(v)-5 PROD Cust'!O544+'FR-16(7)(v)-7 TRANS Demand'!O544+'FR-16(7)(v)-8 TRANS Energy'!O544+'FR-16(7)(v)-9 TRANS Cust'!O544+'FR-16(7)(v)-11 DIST Demand'!O544+'FR-16(7)(v)-12 DIST Energy'!O544+'FR-16(7)(v)-13 DIST Cust'!O544-'FR-16(7)(v)-14 TOTAL CLASS'!O544","v":0},{"$f":"'FR-16(7)(v)-3 PROD Demand'!P544+'FR-16(7)(v)-4 PROD Energy'!P544+'FR-16(7)(v)-5 PROD Cust'!P544+'FR-16(7)(v)-7 TRANS Demand'!P544+'FR-16(7)(v)-8 TRANS Energy'!P544+'FR-16(7)(v)-9 TRANS Cust'!P544+'FR-16(7)(v)-11 DIST Demand'!P544+'FR-16(7)(v)-12 DIST Energy'!P544+'FR-16(7)(v)-13 DIST Cust'!P544-'FR-16(7)(v)-14 TOTAL CLASS'!P544","v":0},{"$f":"'FR-16(7)(v)-3 PROD Demand'!Q544+'FR-16(7)(v)-4 PROD Energy'!Q544+'FR-16(7)(v)-5 PROD Cust'!Q544+'FR-16(7)(v)-7 TRANS Demand'!Q544+'FR-16(7)(v)-8 TRANS Energy'!Q544+'FR-16(7)(v)-9 TRANS Cust'!Q544+'FR-16(7)(v)-11 DIST Demand'!Q544+'FR-16(7)(v)-12 DIST Energy'!Q544+'FR-16(7)(v)-13 DIST Cust'!Q544-'FR-16(7)(v)-14 TOTAL CLASS'!Q544","v":0},0,0]
[31,null,{"$f":"'FR-16(7)(v)-1 Functional'!C545","v":"AMORTIZATION OF DEFERRAL ASSET"},{"$f":"'FR-16(7)(v)-1 Functional'!D545","v":"A315"},null,{"$f":"'FR-16(7)(v)-3 PROD Demand'!F545+'FR-16(7)(v)-4 PROD Energy'!F545+'FR-16(7)(v)-5 PROD Cust'!F545+'FR-16(7)(v)-7 TRANS Demand'!F545+'FR-16(7)(v)-8 TRANS Energy'!F545+'FR-16(7)(v)-9 TRANS Cust'!F545+'FR-16(7)(v)-11 DIST Demand'!F545+'FR-16(7)(v)-12 DIST Energy'!F545+'FR-16(7)(v)-13 DIST Cust'!F545-'FR-16(7)(v)-14 TOTAL CLASS'!F545","v":0},{"$f":"'FR-16(7)(v)-3 PROD Demand'!G545+'FR-16(7)(v)-4 PROD Energy'!G545+'FR-16(7)(v)-5 PROD Cust'!G545+'FR-16(7)(v)-7 TRANS Demand'!G545+'FR-16(7)(v)-8 TRANS Energy'!G545+'FR-16(7)(v)-9 TRANS Cust'!G545+'FR-16(7)(v)-11 DIST Demand'!G545+'FR-16(7)(v)-12 DIST Energy'!G545+'FR-16(7)(v)-13 DIST Cust'!G545-'FR-16(7)(v)-14 TOTAL CLASS'!G545","v":0},{"$f":"'FR-16(7)(v)-3 PROD Demand'!H545+'FR-16(7)(v)-4 PROD Energy'!H545+'FR-16(7)(v)-5 PROD Cust'!H545+'FR-16(7)(v)-7 TRANS Demand'!H545+'FR-16(7)(v)-8 TRANS Energy'!H545+'FR-16(7)(v)-9 TRANS Cust'!H545+'FR-16(7)(v)-11 DIST Demand'!H545+'FR-16(7)(v)-12 DIST Energy'!H545+'FR-16(7)(v)-13 DIST Cust'!H545-'FR-16(7)(v)-14 TOTAL CLASS'!H545","v":0},{"$f":"'FR-16(7)(v)-3 PROD Demand'!I545+'FR-16(7)(v)-4 PROD Energy'!I545+'FR-16(7)(v)-5 PROD Cust'!I545+'FR-16(7)(v)-7 TRANS Demand'!I545+'FR-16(7)(v)-8 TRANS Energy'!I545+'FR-16(7)(v)-9 TRANS Cust'!I545+'FR-16(7)(v)-11 DIST Demand'!I545+'FR-16(7)(v)-12 DIST Energy'!I545+'FR-16(7)(v)-13 DIST Cust'!I545-'FR-16(7)(v)-14 TOTAL CLASS'!I545","v":0},{"$f":"'FR-16(7)(v)-3 PROD Demand'!J545+'FR-16(7)(v)-4 PROD Energy'!J545+'FR-16(7)(v)-5 PROD Cust'!J545+'FR-16(7)(v)-7 TRANS Demand'!J545+'FR-16(7)(v)-8 TRANS Energy'!J545+'FR-16(7)(v)-9 TRANS Cust'!J545+'FR-16(7)(v)-11 DIST Demand'!J545+'FR-16(7)(v)-12 DIST Energy'!J545+'FR-16(7)(v)-13 DIST Cust'!J545-'FR-16(7)(v)-14 TOTAL CLASS'!J545","v":0},{"$f":"'FR-16(7)(v)-3 PROD Demand'!K545+'FR-16(7)(v)-4 PROD Energy'!K545+'FR-16(7)(v)-5 PROD Cust'!K545+'FR-16(7)(v)-7 TRANS Demand'!K545+'FR-16(7)(v)-8 TRANS Energy'!K545+'FR-16(7)(v)-9 TRANS Cust'!K545+'FR-16(7)(v)-11 DIST Demand'!K545+'FR-16(7)(v)-12 DIST Energy'!K545+'FR-16(7)(v)-13 DIST Cust'!K545-'FR-16(7)(v)-14 TOTAL CLASS'!K545","v":0},{"$f":"'FR-16(7)(v)-3 PROD Demand'!L545+'FR-16(7)(v)-4 PROD Energy'!L545+'FR-16(7)(v)-5 PROD Cust'!L545+'FR-16(7)(v)-7 TRANS Demand'!L545+'FR-16(7)(v)-8 TRANS Energy'!L545+'FR-16(7)(v)-9 TRANS Cust'!L545+'FR-16(7)(v)-11 DIST Demand'!L545+'FR-16(7)(v)-12 DIST Energy'!L545+'FR-16(7)(v)-13 DIST Cust'!L545-'FR-16(7)(v)-14 TOTAL CLASS'!L545","v":0},{"$f":"'FR-16(7)(v)-3 PROD Demand'!M545+'FR-16(7)(v)-4 PROD Energy'!M545+'FR-16(7)(v)-5 PROD Cust'!M545+'FR-16(7)(v)-7 TRANS Demand'!M545+'FR-16(7)(v)-8 TRANS Energy'!M545+'FR-16(7)(v)-9 TRANS Cust'!M545+'FR-16(7)(v)-11 DIST Demand'!M545+'FR-16(7)(v)-12 DIST Energy'!M545+'FR-16(7)(v)-13 DIST Cust'!M545-'FR-16(7)(v)-14 TOTAL CLASS'!M545","v":0},{"$f":"'FR-16(7)(v)-3 PROD Demand'!N545+'FR-16(7)(v)-4 PROD Energy'!N545+'FR-16(7)(v)-5 PROD Cust'!N545+'FR-16(7)(v)-7 TRANS Demand'!N545+'FR-16(7)(v)-8 TRANS Energy'!N545+'FR-16(7)(v)-9 TRANS Cust'!N545+'FR-16(7)(v)-11 DIST Demand'!N545+'FR-16(7)(v)-12 DIST Energy'!N545+'FR-16(7)(v)-13 DIST Cust'!N545-'FR-16(7)(v)-14 TOTAL CLASS'!N545","v":0},{"$f":"'FR-16(7)(v)-3 PROD Demand'!O545+'FR-16(7)(v)-4 PROD Energy'!O545+'FR-16(7)(v)-5 PROD Cust'!O545+'FR-16(7)(v)-7 TRANS Demand'!O545+'FR-16(7)(v)-8 TRANS Energy'!O545+'FR-16(7)(v)-9 TRANS Cust'!O545+'FR-16(7)(v)-11 DIST Demand'!O545+'FR-16(7)(v)-12 DIST Energy'!O545+'FR-16(7)(v)-13 DIST Cust'!O545-'FR-16(7)(v)-14 TOTAL CLASS'!O545","v":0},{"$f":"'FR-16(7)(v)-3 PROD Demand'!P545+'FR-16(7)(v)-4 PROD Energy'!P545+'FR-16(7)(v)-5 PROD Cust'!P545+'FR-16(7)(v)-7 TRANS Demand'!P545+'FR-16(7)(v)-8 TRANS Energy'!P545+'FR-16(7)(v)-9 TRANS Cust'!P545+'FR-16(7)(v)-11 DIST Demand'!P545+'FR-16(7)(v)-12 DIST Energy'!P545+'FR-16(7)(v)-13 DIST Cust'!P545-'FR-16(7)(v)-14 TOTAL CLASS'!P545","v":0},{"$f":"'FR-16(7)(v)-3 PROD Demand'!Q545+'FR-16(7)(v)-4 PROD Energy'!Q545+'FR-16(7)(v)-5 PROD Cust'!Q545+'FR-16(7)(v)-7 TRANS Demand'!Q545+'FR-16(7)(v)-8 TRANS Energy'!Q545+'FR-16(7)(v)-9 TRANS Cust'!Q545+'FR-16(7)(v)-11 DIST Demand'!Q545+'FR-16(7)(v)-12 DIST Energy'!Q545+'FR-16(7)(v)-13 DIST Cust'!Q545-'FR-16(7)(v)-14 TOTAL CLASS'!Q545","v":0},0,0]
[32,null,{"$f":"'FR-16(7)(v)-1 Functional'!C546","v":"AMORTIZATION OF DEFERRED EXPENSES"},{"$f":"'FR-16(7)(v)-1 Functional'!D546","v":"A315"},null,{"$f":"'FR-16(7)(v)-3 PROD Demand'!F546+'FR-16(7)(v)-4 PROD Energy'!F546+'FR-16(7)(v)-5 PROD Cust'!F546+'FR-16(7)(v)-7 TRANS Demand'!F546+'FR-16(7)(v)-8 TRANS Energy'!F546+'FR-16(7)(v)-9 TRANS Cust'!F546+'FR-16(7)(v)-11 DIST Demand'!F546+'FR-16(7)(v)-12 DIST Energy'!F546+'FR-16(7)(v)-13 DIST Cust'!F546-'FR-16(7)(v)-14 TOTAL CLASS'!F546","v":0},{"$f":"'FR-16(7)(v)-3 PROD Demand'!G546+'FR-16(7)(v)-4 PROD Energy'!G546+'FR-16(7)(v)-5 PROD Cust'!G546+'FR-16(7)(v)-7 TRANS Demand'!G546+'FR-16(7)(v)-8 TRANS Energy'!G546+'FR-16(7)(v)-9 TRANS Cust'!G546+'FR-16(7)(v)-11 DIST Demand'!G546+'FR-16(7)(v)-12 DIST Energy'!G546+'FR-16(7)(v)-13 DIST Cust'!G546-'FR-16(7)(v)-14 TOTAL CLASS'!G546","v":0},{"$f":"'FR-16(7)(v)-3 PROD Demand'!H546+'FR-16(7)(v)-4 PROD Energy'!H546+'FR-16(7)(v)-5 PROD Cust'!H546+'FR-16(7)(v)-7 TRANS Demand'!H546+'FR-16(7)(v)-8 TRANS Energy'!H546+'FR-16(7)(v)-9 TRANS Cust'!H546+'FR-16(7)(v)-11 DIST Demand'!H546+'FR-16(7)(v)-12 DIST Energy'!H546+'FR-16(7)(v)-13 DIST Cust'!H546-'FR-16(7)(v)-14 TOTAL CLASS'!H546","v":0},{"$f":"'FR-16(7)(v)-3 PROD Demand'!I546+'FR-16(7)(v)-4 PROD Energy'!I546+'FR-16(7)(v)-5 PROD Cust'!I546+'FR-16(7)(v)-7 TRANS Demand'!I546+'FR-16(7)(v)-8 TRANS Energy'!I546+'FR-16(7)(v)-9 TRANS Cust'!I546+'FR-16(7)(v)-11 DIST Demand'!I546+'FR-16(7)(v)-12 DIST Energy'!I546+'FR-16(7)(v)-13 DIST Cust'!I546-'FR-16(7)(v)-14 TOTAL CLASS'!I546","v":0},{"$f":"'FR-16(7)(v)-3 PROD Demand'!J546+'FR-16(7)(v)-4 PROD Energy'!J546+'FR-16(7)(v)-5 PROD Cust'!J546+'FR-16(7)(v)-7 TRANS Demand'!J546+'FR-16(7)(v)-8 TRANS Energy'!J546+'FR-16(7)(v)-9 TRANS Cust'!J546+'FR-16(7)(v)-11 DIST Demand'!J546+'FR-16(7)(v)-12 DIST Energy'!J546+'FR-16(7)(v)-13 DIST Cust'!J546-'FR-16(7)(v)-14 TOTAL CLASS'!J546","v":0},{"$f":"'FR-16(7)(v)-3 PROD Demand'!K546+'FR-16(7)(v)-4 PROD Energy'!K546+'FR-16(7)(v)-5 PROD Cust'!K546+'FR-16(7)(v)-7 TRANS Demand'!K546+'FR-16(7)(v)-8 TRANS Energy'!K546+'FR-16(7)(v)-9 TRANS Cust'!K546+'FR-16(7)(v)-11 DIST Demand'!K546+'FR-16(7)(v)-12 DIST Energy'!K546+'FR-16(7)(v)-13 DIST Cust'!K546-'FR-16(7)(v)-14 TOTAL CLASS'!K546","v":0},{"$f":"'FR-16(7)(v)-3 PROD Demand'!L546+'FR-16(7)(v)-4 PROD Energy'!L546+'FR-16(7)(v)-5 PROD Cust'!L546+'FR-16(7)(v)-7 TRANS Demand'!L546+'FR-16(7)(v)-8 TRANS Energy'!L546+'FR-16(7)(v)-9 TRANS Cust'!L546+'FR-16(7)(v)-11 DIST Demand'!L546+'FR-16(7)(v)-12 DIST Energy'!L546+'FR-16(7)(v)-13 DIST Cust'!L546-'FR-16(7)(v)-14 TOTAL CLASS'!L546","v":0},{"$f":"'FR-16(7)(v)-3 PROD Demand'!M546+'FR-16(7)(v)-4 PROD Energy'!M546+'FR-16(7)(v)-5 PROD Cust'!M546+'FR-16(7)(v)-7 TRANS Demand'!M546+'FR-16(7)(v)-8 TRANS Energy'!M546+'FR-16(7)(v)-9 TRANS Cust'!M546+'FR-16(7)(v)-11 DIST Demand'!M546+'FR-16(7)(v)-12 DIST Energy'!M546+'FR-16(7)(v)-13 DIST Cust'!M546-'FR-16(7)(v)-14 TOTAL CLASS'!M546","v":0},{"$f":"'FR-16(7)(v)-3 PROD Demand'!N546+'FR-16(7)(v)-4 PROD Energy'!N546+'FR-16(7)(v)-5 PROD Cust'!N546+'FR-16(7)(v)-7 TRANS Demand'!N546+'FR-16(7)(v)-8 TRANS Energy'!N546+'FR-16(7)(v)-9 TRANS Cust'!N546+'FR-16(7)(v)-11 DIST Demand'!N546+'FR-16(7)(v)-12 DIST Energy'!N546+'FR-16(7)(v)-13 DIST Cust'!N546-'FR-16(7)(v)-14 TOTAL CLASS'!N546","v":0},{"$f":"'FR-16(7)(v)-3 PROD Demand'!O546+'FR-16(7)(v)-4 PROD Energy'!O546+'FR-16(7)(v)-5 PROD Cust'!O546+'FR-16(7)(v)-7 TRANS Demand'!O546+'FR-16(7)(v)-8 TRANS Energy'!O546+'FR-16(7)(v)-9 TRANS Cust'!O546+'FR-16(7)(v)-11 DIST Demand'!O546+'FR-16(7)(v)-12 DIST Energy'!O546+'FR-16(7)(v)-13 DIST Cust'!O546-'FR-16(7)(v)-14 TOTAL CLASS'!O546","v":0},{"$f":"'FR-16(7)(v)-3 PROD Demand'!P546+'FR-16(7)(v)-4 PROD Energy'!P546+'FR-16(7)(v)-5 PROD Cust'!P546+'FR-16(7)(v)-7 TRANS Demand'!P546+'FR-16(7)(v)-8 TRANS Energy'!P546+'FR-16(7)(v)-9 TRANS Cust'!P546+'FR-16(7)(v)-11 DIST Demand'!P546+'FR-16(7)(v)-12 DIST Energy'!P546+'FR-16(7)(v)-13 DIST Cust'!P546-'FR-16(7)(v)-14 TOTAL CLASS'!P546","v":0},{"$f":"'FR-16(7)(v)-3 PROD Demand'!Q546+'FR-16(7)(v)-4 PROD Energy'!Q546+'FR-16(7)(v)-5 PROD Cust'!Q546+'FR-16(7)(v)-7 TRANS Demand'!Q546+'FR-16(7)(v)-8 TRANS Energy'!Q546+'FR-16(7)(v)-9 TRANS Cust'!Q546+'FR-16(7)(v)-11 DIST Demand'!Q546+'FR-16(7)(v)-12 DIST Energy'!Q546+'FR-16(7)(v)-13 DIST Cust'!Q546-'FR-16(7)(v)-14 TOTAL CLASS'!Q546","v":0},0,0]
[33,null,{"$f":"'FR-16(7)(v)-1 Functional'!C547","v":"TOTAL ADMIN. & GENERAL"},null," ",{"$f":"SUM(F532:F546)","v":0},{"$f":"SUM(G532:G546)","v":0},0,0,{"$f":"SUM(J532:J546)","v":0},0,0,0,0,0,0,0,0,0]
[34]
[35,null,{"$f":"'FR-16(7)(v)-1 Functional'!C549","v":"TOTAL O & M EXPENSE"},null,null,{"$f":"F547+F522+F518+F503+F492+F470+F466+F459","v":0},{"$f":"G547+G522+G518+G503+G492+G470+G466+G459","v":0},0,0,0,0,0,0,0,0,0,0,0,{"$f":"S547+S522+S518+S503+S492+S466+S459","v":0}]
[]
[{"$f":"co_name","v":"DUKE ENERGY KENTUCKY, INC."},null,null,null,null,null,null,null,null,null,null,null,null,null,null,null,null,{"$f":"R1","v":"FR-16(7)(v)-14"}]
[{"$f":"$A$2","v":"TOTAL CLASS ALLOCATED - ELECTRIC COST OF SERVICE"},null,null,null,null,null,null,null,null,null,null,null,null,null,null,null,null,{"$f":"R2","v":"WITNESS RESPONSIBLE:"}]
[{"$f":"case_name","v":"CASE NO: 2019-00271"},null,null,null,null,null,null,null,null,null,null,null,null,null,null,null,null,{"$f":"Witness","v":"JAMES E. ZIOLKOWSKI"}]
[{"$f":"data_filing","v":"DATA: 12 MONTHS ACTUAL  & 0 MONTHS ESTIMATED"},null,null,null,null,null,null,null,null,null,null,null,null,null,null,null,null,{"$f":"\"PAGE \"&Pages2-5&\" OF \"&Pages2","v":"PAGE 10 OF 15"}]
[{"$f":"type","v":"TYPE OF FILING: \"X\" ORIGINAL   UPDATED    REVISED  "}]
[]
[null,null,null,null,null,{"$f":"F$7","v":"TOTAL"},null,{"$f":"H$7","v":"DS"},{"$f":"I$7","v":"GSFL"},{"$f":"J$7","v":"EH"},{"$f":"K$7","v":"SP"},"DT SEC","DT PRI","DP","TT",null,"OTHER"]
["LINE",null,null,null,null,{"$f":"F$8","v":"CLASS"},{"$f":"G$8","v":"RS"},{"$f":"H$8","v":"SECONDARY"},{"$f":"I$8","v":"SECONDARY"},{"$f":"J$8","v":"SECONDARY"},{"$f":"K$8","v":"SECONDARY"},"SECONDARY","PRIMARY","PRIMARY","TRANSMISSION","LT","WATER",{"$f":"R8","v":"TOTAL"},"ALL"]
["NO.","DEPRECIATION EXPENSE",null,"ALLO",null,{"$f":"F$9","v":"ALLOCATED"},{"$f":"G$9","v":"RESIDENTIAL"},{"$f":"H$9","v":"DISTRIBUTION"},{"$f":"I$9","v":"DISTRIBUTION"},{"$f":"J$9","v":"DISTRIBUTION"},{"$f":"K$9","v":"DISTRIBUTION"},"DISTRIBUTION","DISTRIBUTION","DISTRIBUTION","TIME OF DAY","LIGHTING","PUMPING",{"$f":"R9","v":"AT ISSUE"},"OTHER"]
[null,null,"Schedule 7",null,null,null,{"$f":"G$10","v":3},{"$f":"H$10","v":4},{"$f":"I$10","v":5},{"$f":"J$10","v":6},{"$f":"K$10","v":7},8,9,10,11,12,13,null," "]
[1,"PRODUCTION DEPRECIATION"]
[2,null,{"$f":"'FR-16(7)(v)-1 Functional'!C562","v":"PRODUCTION DEPRECIATION"},{"$f":"'FR-16(7)(v)-1 Functional'!D562","v":"P229"},null,{"$f":"'FR-16(7)(v)-3 PROD Demand'!F562+'FR-16(7)(v)-4 PROD Energy'!F562+'FR-16(7)(v)-5 PROD Cust'!F562+'FR-16(7)(v)-7 TRANS Demand'!F562+'FR-16(7)(v)-8 TRANS Energy'!F562+'FR-16(7)(v)-9 TRANS Cust'!F562+'FR-16(7)(v)-11 DIST Demand'!F562+'FR-16(7)(v)-12 DIST Energy'!F562+'FR-16(7)(v)-13 DIST Cust'!F562-'FR-16(7)(v)-14 TOTAL CLASS'!F562","v":0},{"$f":"'FR-16(7)(v)-3 PROD Demand'!G562+'FR-16(7)(v)-4 PROD Energy'!G562+'FR-16(7)(v)-5 PROD Cust'!G562+'FR-16(7)(v)-7 TRANS Demand'!G562+'FR-16(7)(v)-8 TRANS Energy'!G562+'FR-16(7)(v)-9 TRANS Cust'!G562+'FR-16(7)(v)-11 DIST Demand'!G562+'FR-16(7)(v)-12 DIST Energy'!G562+'FR-16(7)(v)-13 DIST Cust'!G562-'FR-16(7)(v)-14 TOTAL CLASS'!G562","v":0},{"$f":"'FR-16(7)(v)-3 PROD Demand'!H562+'FR-16(7)(v)-4 PROD Energy'!H562+'FR-16(7)(v)-5 PROD Cust'!H562+'FR-16(7)(v)-7 TRANS Demand'!H562+'FR-16(7)(v)-8 TRANS Energy'!H562+'FR-16(7)(v)-9 TRANS Cust'!H562+'FR-16(7)(v)-11 DIST Demand'!H562+'FR-16(7)(v)-12 DIST Energy'!H562+'FR-16(7)(v)-13 DIST Cust'!H562-'FR-16(7)(v)-14 TOTAL CLASS'!H562","v":0},{"$f":"'FR-16(7)(v)-3 PROD Demand'!I562+'FR-16(7)(v)-4 PROD Energy'!I562+'FR-16(7)(v)-5 PROD Cust'!I562+'FR-16(7)(v)-7 TRANS Demand'!I562+'FR-16(7)(v)-8 TRANS Energy'!I562+'FR-16(7)(v)-9 TRANS Cust'!I562+'FR-16(7)(v)-11 DIST Demand'!I562+'FR-16(7)(v)-12 DIST Energy'!I562+'FR-16(7)(v)-13 DIST Cust'!I562-'FR-16(7)(v)-14 TOTAL CLASS'!I562","v":0},{"$f":"'FR-16(7)(v)-3 PROD Demand'!J562+'FR-16(7)(v)-4 PROD Energy'!J562+'FR-16(7)(v)-5 PROD Cust'!J562+'FR-16(7)(v)-7 TRANS Demand'!J562+'FR-16(7)(v)-8 TRANS Energy'!J562+'FR-16(7)(v)-9 TRANS Cust'!J562+'FR-16(7)(v)-11 DIST Demand'!J562+'FR-16(7)(v)-12 DIST Energy'!J562+'FR-16(7)(v)-13 DIST Cust'!J562-'FR-16(7)(v)-14 TOTAL CLASS'!J562","v":0},{"$f":"'FR-16(7)(v)-3 PROD Demand'!K562+'FR-16(7)(v)-4 PROD Energy'!K562+'FR-16(7)(v)-5 PROD Cust'!K562+'FR-16(7)(v)-7 TRANS Demand'!K562+'FR-16(7)(v)-8 TRANS Energy'!K562+'FR-16(7)(v)-9 TRANS Cust'!K562+'FR-16(7)(v)-11 DIST Demand'!K562+'FR-16(7)(v)-12 DIST Energy'!K562+'FR-16(7)(v)-13 DIST Cust'!K562-'FR-16(7)(v)-14 TOTAL CLASS'!K562","v":0},{"$f":"'FR-16(7)(v)-3 PROD Demand'!L562+'FR-16(7)(v)-4 PROD Energy'!L562+'FR-16(7)(v)-5 PROD Cust'!L562+'FR-16(7)(v)-7 TRANS Demand'!L562+'FR-16(7)(v)-8 TRANS Energy'!L562+'FR-16(7)(v)-9 TRANS Cust'!L562+'FR-16(7)(v)-11 DIST Demand'!L562+'FR-16(7)(v)-12 DIST Energy'!L562+'FR-16(7)(v)-13 DIST Cust'!L562-'FR-16(7)(v)-14 TOTAL CLASS'!L562","v":0},{"$f":"'FR-16(7)(v)-3 PROD Demand'!M562+'FR-16(7)(v)-4 PROD Energy'!M562+'FR-16(7)(v)-5 PROD Cust'!M562+'FR-16(7)(v)-7 TRANS Demand'!M562+'FR-16(7)(v)-8 TRANS Energy'!M562+'FR-16(7)(v)-9 TRANS Cust'!M562+'FR-16(7)(v)-11 DIST Demand'!M562+'FR-16(7)(v)-12 DIST Energy'!M562+'FR-16(7)(v)-13 DIST Cust'!M562-'FR-16(7)(v)-14 TOTAL CLASS'!M562","v":0},{"$f":"'FR-16(7)(v)-3 PROD Demand'!N562+'FR-16(7)(v)-4 PROD Energy'!N562+'FR-16(7)(v)-5 PROD Cust'!N562+'FR-16(7)(v)-7 TRANS Demand'!N562+'FR-16(7)(v)-8 TRANS Energy'!N562+'FR-16(7)(v)-9 TRANS Cust'!N562+'FR-16(7)(v)-11 DIST Demand'!N562+'FR-16(7)(v)-12 DIST Energy'!N562+'FR-16(7)(v)-13 DIST Cust'!N562-'FR-16(7)(v)-14 TOTAL CLASS'!N562","v":0},{"$f":"'FR-16(7)(v)-3 PROD Demand'!O562+'FR-16(7)(v)-4 PROD Energy'!O562+'FR-16(7)(v)-5 PROD Cust'!O562+'FR-16(7)(v)-7 TRANS Demand'!O562+'FR-16(7)(v)-8 TRANS Energy'!O562+'FR-16(7)(v)-9 TRANS Cust'!O562+'FR-16(7)(v)-11 DIST Demand'!O562+'FR-16(7)(v)-12 DIST Energy'!O562+'FR-16(7)(v)-13 DIST Cust'!O562-'FR-16(7)(v)-14 TOTAL CLASS'!O562","v":0},{"$f":"'FR-16(7)(v)-3 PROD Demand'!P562+'FR-16(7)(v)-4 PROD Energy'!P562+'FR-16(7)(v)-5 PROD Cust'!P562+'FR-16(7)(v)-7 TRANS Demand'!P562+'FR-16(7)(v)-8 TRANS Energy'!P562+'FR-16(7)(v)-9 TRANS Cust'!P562+'FR-16(7)(v)-11 DIST Demand'!P562+'FR-16(7)(v)-12 DIST Energy'!P562+'FR-16(7)(v)-13 DIST Cust'!P562-'FR-16(7)(v)-14 TOTAL CLASS'!P562","v":0},{"$f":"'FR-16(7)(v)-3 PROD Demand'!Q562+'FR-16(7)(v)-4 PROD Energy'!Q562+'FR-16(7)(v)-5 PROD Cust'!Q562+'FR-16(7)(v)-7 TRANS Demand'!Q562+'FR-16(7)(v)-8 TRANS Energy'!Q562+'FR-16(7)(v)-9 TRANS Cust'!Q562+'FR-16(7)(v)-11 DIST Demand'!Q562+'FR-16(7)(v)-12 DIST Energy'!Q562+'FR-16(7)(v)-13 DIST Cust'!Q562-'FR-16(7)(v)-14 TOTAL CLASS'!Q562","v":0},{"$f":"SUM(G562:Q562)","v":0},{"$f":"F562-R562","v":0}]
[3,null,{"$f":"'FR-16(7)(v)-1 Functional'!C563","v":"  TOTAL PRODUCTION DEPREC EXP."},null,null,{"$f":"SUM(F562:F562)","v":0},{"$f":"SUM(G562:G562)","v":0},0,0,0,0,0,0,0,0,0,0,0,0]
[4]
[5,"TRANSMISSION DEPRECIATION"]
[6,null,"TRANSMISSION DEPRECIATION","T229",null,{"$f":"'FR-16(7)(v)-3 PROD Demand'!F566+'FR-16(7)(v)-4 PROD Energy'!F566+'FR-16(7)(v)-5 PROD Cust'!F566+'FR-16(7)(v)-7 TRANS Demand'!F566+'FR-16(7)(v)-8 TRANS Energy'!F566+'FR-16(7)(v)-9 TRANS Cust'!F566+'FR-16(7)(v)-11 DIST Demand'!F566+'FR-16(7)(v)-12 DIST Energy'!F566+'FR-16(7)(v)-13 DIST Cust'!F566-'FR-16(7)(v)-14 TOTAL CLASS'!F566","v":0},{"$f":"'FR-16(7)(v)-3 PROD Demand'!G566+'FR-16(7)(v)-4 PROD Energy'!G566+'FR-16(7)(v)-5 PROD Cust'!G566+'FR-16(7)(v)-7 TRANS Demand'!G566+'FR-16(7)(v)-8 TRANS Energy'!G566+'FR-16(7)(v)-9 TRANS Cust'!G566+'FR-16(7)(v)-11 DIST Demand'!G566+'FR-16(7)(v)-12 DIST Energy'!G566+'FR-16(7)(v)-13 DIST Cust'!G566-'FR-16(7)(v)-14 TOTAL CLASS'!G566","v":0},{"$f":"'FR-16(7)(v)-3 PROD Demand'!H566+'FR-16(7)(v)-4 PROD Energy'!H566+'FR-16(7)(v)-5 PROD Cust'!H566+'FR-16(7)(v)-7 TRANS Demand'!H566+'FR-16(7)(v)-8 TRANS Energy'!H566+'FR-16(7)(v)-9 TRANS Cust'!H566+'FR-16(7)(v)-11 DIST Demand'!H566+'FR-16(7)(v)-12 DIST Energy'!H566+'FR-16(7)(v)-13 DIST Cust'!H566-'FR-16(7)(v)-14 TOTAL CLASS'!H566","v":0},{"$f":"'FR-16(7)(v)-3 PROD Demand'!I566+'FR-16(7)(v)-4 PROD Energy'!I566+'FR-16(7)(v)-5 PROD Cust'!I566+'FR-16(7)(v)-7 TRANS Demand'!I566+'FR-16(7)(v)-8 TRANS Energy'!I566+'FR-16(7)(v)-9 TRANS Cust'!I566+'FR-16(7)(v)-11 DIST Demand'!I566+'FR-16(7)(v)-12 DIST Energy'!I566+'FR-16(7)(v)-13 DIST Cust'!I566-'FR-16(7)(v)-14 TOTAL CLASS'!I566","v":0},{"$f":"'FR-16(7)(v)-3 PROD Demand'!J566+'FR-16(7)(v)-4 PROD Energy'!J566+'FR-16(7)(v)-5 PROD Cust'!J566+'FR-16(7)(v)-7 TRANS Demand'!J566+'FR-16(7)(v)-8 TRANS Energy'!J566+'FR-16(7)(v)-9 TRANS Cust'!J566+'FR-16(7)(v)-11 DIST Demand'!J566+'FR-16(7)(v)-12 DIST Energy'!J566+'FR-16(7)(v)-13 DIST Cust'!J566-'FR-16(7)(v)-14 TOTAL CLASS'!J566","v":0},{"$f":"'FR-16(7)(v)-3 PROD Demand'!K566+'FR-16(7)(v)-4 PROD Energy'!K566+'FR-16(7)(v)-5 PROD Cust'!K566+'FR-16(7)(v)-7 TRANS Demand'!K566+'FR-16(7)(v)-8 TRANS Energy'!K566+'FR-16(7)(v)-9 TRANS Cust'!K566+'FR-16(7)(v)-11 DIST Demand'!K566+'FR-16(7)(v)-12 DIST Energy'!K566+'FR-16(7)(v)-13 DIST Cust'!K566-'FR-16(7)(v)-14 TOTAL CLASS'!K566","v":0},{"$f":"'FR-16(7)(v)-3 PROD Demand'!L566+'FR-16(7)(v)-4 PROD Energy'!L566+'FR-16(7)(v)-5 PROD Cust'!L566+'FR-16(7)(v)-7 TRANS Demand'!L566+'FR-16(7)(v)-8 TRANS Energy'!L566+'FR-16(7)(v)-9 TRANS Cust'!L566+'FR-16(7)(v)-11 DIST Demand'!L566+'FR-16(7)(v)-12 DIST Energy'!L566+'FR-16(7)(v)-13 DIST Cust'!L566-'FR-16(7)(v)-14 TOTAL CLASS'!L566","v":0},{"$f":"'FR-16(7)(v)-3 PROD Demand'!M566+'FR-16(7)(v)-4 PROD Energy'!M566+'FR-16(7)(v)-5 PROD Cust'!M566+'FR-16(7)(v)-7 TRANS Demand'!M566+'FR-16(7)(v)-8 TRANS Energy'!M566+'FR-16(7)(v)-9 TRANS Cust'!M566+'FR-16(7)(v)-11 DIST Demand'!M566+'FR-16(7)(v)-12 DIST Energy'!M566+'FR-16(7)(v)-13 DIST Cust'!M566-'FR-16(7)(v)-14 TOTAL CLASS'!M566","v":0},{"$f":"'FR-16(7)(v)-3 PROD Demand'!N566+'FR-16(7)(v)-4 PROD Energy'!N566+'FR-16(7)(v)-5 PROD Cust'!N566+'FR-16(7)(v)-7 TRANS Demand'!N566+'FR-16(7)(v)-8 TRANS Energy'!N566+'FR-16(7)(v)-9 TRANS Cust'!N566+'FR-16(7)(v)-11 DIST Demand'!N566+'FR-16(7)(v)-12 DIST Energy'!N566+'FR-16(7)(v)-13 DIST Cust'!N566-'FR-16(7)(v)-14 TOTAL CLASS'!N566","v":0},{"$f":"'FR-16(7)(v)-3 PROD Demand'!O566+'FR-16(7)(v)-4 PROD Energy'!O566+'FR-16(7)(v)-5 PROD Cust'!O566+'FR-16(7)(v)-7 TRANS Demand'!O566+'FR-16(7)(v)-8 TRANS Energy'!O566+'FR-16(7)(v)-9 TRANS Cust'!O566+'FR-16(7)(v)-11 DIST Demand'!O566+'FR-16(7)(v)-12 DIST Energy'!O566+'FR-16(7)(v)-13 DIST Cust'!O566-'FR-16(7)(v)-14 TOTAL CLASS'!O566","v":0},{"$f":"'FR-16(7)(v)-3 PROD Demand'!P566+'FR-16(7)(v)-4 PROD Energy'!P566+'FR-16(7)(v)-5 PROD Cust'!P566+'FR-16(7)(v)-7 TRANS Demand'!P566+'FR-16(7)(v)-8 TRANS Energy'!P566+'FR-16(7)(v)-9 TRANS Cust'!P566+'FR-16(7)(v)-11 DIST Demand'!P566+'FR-16(7)(v)-12 DIST Energy'!P566+'FR-16(7)(v)-13 DIST Cust'!P566-'FR-16(7)(v)-14 TOTAL CLASS'!P566","v":0},{"$f":"'FR-16(7)(v)-3 PROD Demand'!Q566+'FR-16(7)(v)-4 PROD Energy'!Q566+'FR-16(7)(v)-5 PROD Cust'!Q566+'FR-16(7)(v)-7 TRANS Demand'!Q566+'FR-16(7)(v)-8 TRANS Energy'!Q566+'FR-16(7)(v)-9 TRANS Cust'!Q566+'FR-16(7)(v)-11 DIST Demand'!Q566+'FR-16(7)(v)-12 DIST Energy'!Q566+'FR-16(7)(v)-13 DIST Cust'!Q566-'FR-16(7)(v)-14 TOTAL CLASS'!Q566","v":0},{"$f":"SUM(G566:Q566)","v":0},{"$f":"F566-R566","v":0}]
[7,null,{"$f":"'FR-16(7)(v)-1 Functional'!C567","v":"  TOTAL TRANSMISSION DEP. EXP."},null,null,{"$f":"SUM(F566:F566)","v":0},{"$f":"SUM(G566:G566)","v":0},0,0,0,0,0,0,0,0,0,0,0,0]
[8]
[9,"DISTRIBUTION DEPRECIATION"]
[10,null,{"$f":"'FR-16(7)(v)-1 Functional'!C570","v":"DISTRIBUTION DEPRECIATION"},{"$f":"'FR-16(7)(v)-1 Functional'!D570","v":"D249"},null,{"$f":"'FR-16(7)(v)-3 PROD Demand'!F570+'FR-16(7)(v)-4 PROD Energy'!F570+'FR-16(7)(v)-5 PROD Cust'!F570+'FR-16(7)(v)-7 TRANS Demand'!F570+'FR-16(7)(v)-8 TRANS Energy'!F570+'FR-16(7)(v)-9 TRANS Cust'!F570+'FR-16(7)(v)-11 DIST Demand'!F570+'FR-16(7)(v)-12 DIST Energy'!F570+'FR-16(7)(v)-13 DIST Cust'!F570-'FR-16(7)(v)-14 TOTAL CLASS'!F570","v":0},{"$f":"'FR-16(7)(v)-3 PROD Demand'!G570+'FR-16(7)(v)-4 PROD Energy'!G570+'FR-16(7)(v)-5 PROD Cust'!G570+'FR-16(7)(v)-7 TRANS Demand'!G570+'FR-16(7)(v)-8 TRANS Energy'!G570+'FR-16(7)(v)-9 TRANS Cust'!G570+'FR-16(7)(v)-11 DIST Demand'!G570+'FR-16(7)(v)-12 DIST Energy'!G570+'FR-16(7)(v)-13 DIST Cust'!G570-'FR-16(7)(v)-14 TOTAL CLASS'!G570","v":0},{"$f":"'FR-16(7)(v)-3 PROD Demand'!H570+'FR-16(7)(v)-4 PROD Energy'!H570+'FR-16(7)(v)-5 PROD Cust'!H570+'FR-16(7)(v)-7 TRANS Demand'!H570+'FR-16(7)(v)-8 TRANS Energy'!H570+'FR-16(7)(v)-9 TRANS Cust'!H570+'FR-16(7)(v)-11 DIST Demand'!H570+'FR-16(7)(v)-12 DIST Energy'!H570+'FR-16(7)(v)-13 DIST Cust'!H570-'FR-16(7)(v)-14 TOTAL CLASS'!H570","v":0},{"$f":"'FR-16(7)(v)-3 PROD Demand'!I570+'FR-16(7)(v)-4 PROD Energy'!I570+'FR-16(7)(v)-5 PROD Cust'!I570+'FR-16(7)(v)-7 TRANS Demand'!I570+'FR-16(7)(v)-8 TRANS Energy'!I570+'FR-16(7)(v)-9 TRANS Cust'!I570+'FR-16(7)(v)-11 DIST Demand'!I570+'FR-16(7)(v)-12 DIST Energy'!I570+'FR-16(7)(v)-13 DIST Cust'!I570-'FR-16(7)(v)-14 TOTAL CLASS'!I570","v":0},{"$f":"'FR-16(7)(v)-3 PROD Demand'!J570+'FR-16(7)(v)-4 PROD Energy'!J570+'FR-16(7)(v)-5 PROD Cust'!J570+'FR-16(7)(v)-7 TRANS Demand'!J570+'FR-16(7)(v)-8 TRANS Energy'!J570+'FR-16(7)(v)-9 TRANS Cust'!J570+'FR-16(7)(v)-11 DIST Demand'!J570+'FR-16(7)(v)-12 DIST Energy'!J570+'FR-16(7)(v)-13 DIST Cust'!J570-'FR-16(7)(v)-14 TOTAL CLASS'!J570","v":0},{"$f":"'FR-16(7)(v)-3 PROD Demand'!K570+'FR-16(7)(v)-4 PROD Energy'!K570+'FR-16(7)(v)-5 PROD Cust'!K570+'FR-16(7)(v)-7 TRANS Demand'!K570+'FR-16(7)(v)-8 TRANS Energy'!K570+'FR-16(7)(v)-9 TRANS Cust'!K570+'FR-16(7)(v)-11 DIST Demand'!K570+'FR-16(7)(v)-12 DIST Energy'!K570+'FR-16(7)(v)-13 DIST Cust'!K570-'FR-16(7)(v)-14 TOTAL CLASS'!K570","v":0},{"$f":"'FR-16(7)(v)-3 PROD Demand'!L570+'FR-16(7)(v)-4 PROD Energy'!L570+'FR-16(7)(v)-5 PROD Cust'!L570+'FR-16(7)(v)-7 TRANS Demand'!L570+'FR-16(7)(v)-8 TRANS Energy'!L570+'FR-16(7)(v)-9 TRANS Cust'!L570+'FR-16(7)(v)-11 DIST Demand'!L570+'FR-16(7)(v)-12 DIST Energy'!L570+'FR-16(7)(v)-13 DIST Cust'!L570-'FR-16(7)(v)-14 TOTAL CLASS'!L570","v":0},{"$f":"'FR-16(7)(v)-3 PROD Demand'!M570+'FR-16(7)(v)-4 PROD Energy'!M570+'FR-16(7)(v)-5 PROD Cust'!M570+'FR-16(7)(v)-7 TRANS Demand'!M570+'FR-16(7)(v)-8 TRANS Energy'!M570+'FR-16(7)(v)-9 TRANS Cust'!M570+'FR-16(7)(v)-11 DIST Demand'!M570+'FR-16(7)(v)-12 DIST Energy'!M570+'FR-16(7)(v)-13 DIST Cust'!M570-'FR-16(7)(v)-14 TOTAL CLASS'!M570","v":0},{"$f":"'FR-16(7)(v)-3 PROD Demand'!N570+'FR-16(7)(v)-4 PROD Energy'!N570+'FR-16(7)(v)-5 PROD Cust'!N570+'FR-16(7)(v)-7 TRANS Demand'!N570+'FR-16(7)(v)-8 TRANS Energy'!N570+'FR-16(7)(v)-9 TRANS Cust'!N570+'FR-16(7)(v)-11 DIST Demand'!N570+'FR-16(7)(v)-12 DIST Energy'!N570+'FR-16(7)(v)-13 DIST Cust'!N570-'FR-16(7)(v)-14 TOTAL CLASS'!N570","v":0},{"$f":"'FR-16(7)(v)-3 PROD Demand'!O570+'FR-16(7)(v)-4 PROD Energy'!O570+'FR-16(7)(v)-5 PROD Cust'!O570+'FR-16(7)(v)-7 TRANS Demand'!O570+'FR-16(7)(v)-8 TRANS Energy'!O570+'FR-16(7)(v)-9 TRANS Cust'!O570+'FR-16(7)(v)-11 DIST Demand'!O570+'FR-16(7)(v)-12 DIST Energy'!O570+'FR-16(7)(v)-13 DIST Cust'!O570-'FR-16(7)(v)-14 TOTAL CLASS'!O570","v":0},{"$f":"'FR-16(7)(v)-3 PROD Demand'!P570+'FR-16(7)(v)-4 PROD Energy'!P570+'FR-16(7)(v)-5 PROD Cust'!P570+'FR-16(7)(v)-7 TRANS Demand'!P570+'FR-16(7)(v)-8 TRANS Energy'!P570+'FR-16(7)(v)-9 TRANS Cust'!P570+'FR-16(7)(v)-11 DIST Demand'!P570+'FR-16(7)(v)-12 DIST Energy'!P570+'FR-16(7)(v)-13 DIST Cust'!P570-'FR-16(7)(v)-14 TOTAL CLASS'!P570","v":0},{"$f":"'FR-16(7)(v)-3 PROD Demand'!Q570+'FR-16(7)(v)-4 PROD Energy'!Q570+'FR-16(7)(v)-5 PROD Cust'!Q570+'FR-16(7)(v)-7 TRANS Demand'!Q570+'FR-16(7)(v)-8 TRANS Energy'!Q570+'FR-16(7)(v)-9 TRANS Cust'!Q570+'FR-16(7)(v)-11 DIST Demand'!Q570+'FR-16(7)(v)-12 DIST Energy'!Q570+'FR-16(7)(v)-13 DIST Cust'!Q570-'FR-16(7)(v)-14 TOTAL CLASS'!Q570","v":0},{"$f":"SUM(G570:Q570)","v":0},{"$f":"F570-R570","v":0}]
[11,null,{"$f":"'FR-16(7)(v)-1 Functional'!C571","v":"  TOTAL DIST. DEPREC EXP."},null,null,{"$f":"SUM(F570:F570)","v":0},{"$f":"SUM(G570:G570)","v":0},0,0,0,0,0,0,0,0,0,0,0,0]
[12]
[13,"GENERAL DEPRECIATION"]
[14,null,{"$f":"'FR-16(7)(v)-1 Functional'!C574","v":"GENERAL DEPRECIATION"},{"$f":"'FR-16(7)(v)-1 Functional'!D574","v":"G229"},null,{"$f":"'FR-16(7)(v)-3 PROD Demand'!F574+'FR-16(7)(v)-4 PROD Energy'!F574+'FR-16(7)(v)-5 PROD Cust'!F574+'FR-16(7)(v)-7 TRANS Demand'!F574+'FR-16(7)(v)-8 TRANS Energy'!F574+'FR-16(7)(v)-9 TRANS Cust'!F574+'FR-16(7)(v)-11 DIST Demand'!F574+'FR-16(7)(v)-12 DIST Energy'!F574+'FR-16(7)(v)-13 DIST Cust'!F574-'FR-16(7)(v)-14 TOTAL CLASS'!F574","v":0},{"$f":"'FR-16(7)(v)-3 PROD Demand'!G574+'FR-16(7)(v)-4 PROD Energy'!G574+'FR-16(7)(v)-5 PROD Cust'!G574+'FR-16(7)(v)-7 TRANS Demand'!G574+'FR-16(7)(v)-8 TRANS Energy'!G574+'FR-16(7)(v)-9 TRANS Cust'!G574+'FR-16(7)(v)-11 DIST Demand'!G574+'FR-16(7)(v)-12 DIST Energy'!G574+'FR-16(7)(v)-13 DIST Cust'!G574-'FR-16(7)(v)-14 TOTAL CLASS'!G574","v":0},{"$f":"'FR-16(7)(v)-3 PROD Demand'!H574+'FR-16(7)(v)-4 PROD Energy'!H574+'FR-16(7)(v)-5 PROD Cust'!H574+'FR-16(7)(v)-7 TRANS Demand'!H574+'FR-16(7)(v)-8 TRANS Energy'!H574+'FR-16(7)(v)-9 TRANS Cust'!H574+'FR-16(7)(v)-11 DIST Demand'!H574+'FR-16(7)(v)-12 DIST Energy'!H574+'FR-16(7)(v)-13 DIST Cust'!H574-'FR-16(7)(v)-14 TOTAL CLASS'!H574","v":0},{"$f":"'FR-16(7)(v)-3 PROD Demand'!I574+'FR-16(7)(v)-4 PROD Energy'!I574+'FR-16(7)(v)-5 PROD Cust'!I574+'FR-16(7)(v)-7 TRANS Demand'!I574+'FR-16(7)(v)-8 TRANS Energy'!I574+'FR-16(7)(v)-9 TRANS Cust'!I574+'FR-16(7)(v)-11 DIST Demand'!I574+'FR-16(7)(v)-12 DIST Energy'!I574+'FR-16(7)(v)-13 DIST Cust'!I574-'FR-16(7)(v)-14 TOTAL CLASS'!I574","v":0},{"$f":"'FR-16(7)(v)-3 PROD Demand'!J574+'FR-16(7)(v)-4 PROD Energy'!J574+'FR-16(7)(v)-5 PROD Cust'!J574+'FR-16(7)(v)-7 TRANS Demand'!J574+'FR-16(7)(v)-8 TRANS Energy'!J574+'FR-16(7)(v)-9 TRANS Cust'!J574+'FR-16(7)(v)-11 DIST Demand'!J574+'FR-16(7)(v)-12 DIST Energy'!J574+'FR-16(7)(v)-13 DIST Cust'!J574-'FR-16(7)(v)-14 TOTAL CLASS'!J574","v":0},{"$f":"'FR-16(7)(v)-3 PROD Demand'!K574+'FR-16(7)(v)-4 PROD Energy'!K574+'FR-16(7)(v)-5 PROD Cust'!K574+'FR-16(7)(v)-7 TRANS Demand'!K574+'FR-16(7)(v)-8 TRANS Energy'!K574+'FR-16(7)(v)-9 TRANS Cust'!K574+'FR-16(7)(v)-11 DIST Demand'!K574+'FR-16(7)(v)-12 DIST Energy'!K574+'FR-16(7)(v)-13 DIST Cust'!K574-'FR-16(7)(v)-14 TOTAL CLASS'!K574","v":0},{"$f":"'FR-16(7)(v)-3 PROD Demand'!L574+'FR-16(7)(v)-4 PROD Energy'!L574+'FR-16(7)(v)-5 PROD Cust'!L574+'FR-16(7)(v)-7 TRANS Demand'!L574+'FR-16(7)(v)-8 TRANS Energy'!L574+'FR-16(7)(v)-9 TRANS Cust'!L574+'FR-16(7)(v)-11 DIST Demand'!L574+'FR-16(7)(v)-12 DIST Energy'!L574+'FR-16(7)(v)-13 DIST Cust'!L574-'FR-16(7)(v)-14 TOTAL CLASS'!L574","v":0},{"$f":"'FR-16(7)(v)-3 PROD Demand'!M574+'FR-16(7)(v)-4 PROD Energy'!M574+'FR-16(7)(v)-5 PROD Cust'!M574+'FR-16(7)(v)-7 TRANS Demand'!M574+'FR-16(7)(v)-8 TRANS Energy'!M574+'FR-16(7)(v)-9 TRANS Cust'!M574+'FR-16(7)(v)-11 DIST Demand'!M574+'FR-16(7)(v)-12 DIST Energy'!M574+'FR-16(7)(v)-13 DIST Cust'!M574-'FR-16(7)(v)-14 TOTAL CLASS'!M574","v":0},{"$f":"'FR-16(7)(v)-3 PROD Demand'!N574+'FR-16(7)(v)-4 PROD Energy'!N574+'FR-16(7)(v)-5 PROD Cust'!N574+'FR-16(7)(v)-7 TRANS Demand'!N574+'FR-16(7)(v)-8 TRANS Energy'!N574+'FR-16(7)(v)-9 TRANS Cust'!N574+'FR-16(7)(v)-11 DIST Demand'!N574+'FR-16(7)(v)-12 DIST Energy'!N574+'FR-16(7)(v)-13 DIST Cust'!N574-'FR-16(7)(v)-14 TOTAL CLASS'!N574","v":0},{"$f":"'FR-16(7)(v)-3 PROD Demand'!O574+'FR-16(7)(v)-4 PROD Energy'!O574+'FR-16(7)(v)-5 PROD Cust'!O574+'FR-16(7)(v)-7 TRANS Demand'!O574+'FR-16(7)(v)-8 TRANS Energy'!O574+'FR-16(7)(v)-9 TRANS Cust'!O574+'FR-16(7)(v)-11 DIST Demand'!O574+'FR-16(7)(v)-12 DIST Energy'!O574+'FR-16(7)(v)-13 DIST Cust'!O574-'FR-16(7)(v)-14 TOTAL CLASS'!O574","v":0},{"$f":"'FR-16(7)(v)-3 PROD Demand'!P574+'FR-16(7)(v)-4 PROD Energy'!P574+'FR-16(7)(v)-5 PROD Cust'!P574+'FR-16(7)(v)-7 TRANS Demand'!P574+'FR-16(7)(v)-8 TRANS Energy'!P574+'FR-16(7)(v)-9 TRANS Cust'!P574+'FR-16(7)(v)-11 DIST Demand'!P574+'FR-16(7)(v)-12 DIST Energy'!P574+'FR-16(7)(v)-13 DIST Cust'!P574-'FR-16(7)(v)-14 TOTAL CLASS'!P574","v":0},{"$f":"'FR-16(7)(v)-3 PROD Demand'!Q574+'FR-16(7)(v)-4 PROD Energy'!Q574+'FR-16(7)(v)-5 PROD Cust'!Q574+'FR-16(7)(v)-7 TRANS Demand'!Q574+'FR-16(7)(v)-8 TRANS Energy'!Q574+'FR-16(7)(v)-9 TRANS Cust'!Q574+'FR-16(7)(v)-11 DIST Demand'!Q574+'FR-16(7)(v)-12 DIST Energy'!Q574+'FR-16(7)(v)-13 DIST Cust'!Q574-'FR-16(7)(v)-14 TOTAL CLASS'!Q574","v":0},{"$f":"SUM(G574:Q574)","v":0},{"$f":"F574-R574","v":0}]
[15,null,{"$f":"'FR-16(7)(v)-1 Functional'!C575","v":"  TOTAL GENERAL DEPREC EXP."},null,null,{"$f":"SUM(F574:F574)","v":0},{"$f":"SUM(G574:G574)","v":0},0,0,0,0,0,0,0,0,0,0,0,0]
[16]
[17,"COMMON AND OTHER DEPRECIATION"]
[18,null,{"$f":"'FR-16(7)(v)-1 Functional'!C578","v":"COMMON DEPRECIATION"},{"$f":"'FR-16(7)(v)-1 Functional'!D578","v":"C229"},null,{"$f":"'FR-16(7)(v)-3 PROD Demand'!F578+'FR-16(7)(v)-4 PROD Energy'!F578+'FR-16(7)(v)-5 PROD Cust'!F578+'FR-16(7)(v)-7 TRANS Demand'!F578+'FR-16(7)(v)-8 TRANS Energy'!F578+'FR-16(7)(v)-9 TRANS Cust'!F578+'FR-16(7)(v)-11 DIST Demand'!F578+'FR-16(7)(v)-12 DIST Energy'!F578+'FR-16(7)(v)-13 DIST Cust'!F578-'FR-16(7)(v)-14 TOTAL CLASS'!F578","v":0},{"$f":"'FR-16(7)(v)-3 PROD Demand'!G578+'FR-16(7)(v)-4 PROD Energy'!G578+'FR-16(7)(v)-5 PROD Cust'!G578+'FR-16(7)(v)-7 TRANS Demand'!G578+'FR-16(7)(v)-8 TRANS Energy'!G578+'FR-16(7)(v)-9 TRANS Cust'!G578+'FR-16(7)(v)-11 DIST Demand'!G578+'FR-16(7)(v)-12 DIST Energy'!G578+'FR-16(7)(v)-13 DIST Cust'!G578-'FR-16(7)(v)-14 TOTAL CLASS'!G578","v":0},{"$f":"'FR-16(7)(v)-3 PROD Demand'!H578+'FR-16(7)(v)-4 PROD Energy'!H578+'FR-16(7)(v)-5 PROD Cust'!H578+'FR-16(7)(v)-7 TRANS Demand'!H578+'FR-16(7)(v)-8 TRANS Energy'!H578+'FR-16(7)(v)-9 TRANS Cust'!H578+'FR-16(7)(v)-11 DIST Demand'!H578+'FR-16(7)(v)-12 DIST Energy'!H578+'FR-16(7)(v)-13 DIST Cust'!H578-'FR-16(7)(v)-14 TOTAL CLASS'!H578","v":0},{"$f":"'FR-16(7)(v)-3 PROD Demand'!I578+'FR-16(7)(v)-4 PROD Energy'!I578+'FR-16(7)(v)-5 PROD Cust'!I578+'FR-16(7)(v)-7 TRANS Demand'!I578+'FR-16(7)(v)-8 TRANS Energy'!I578+'FR-16(7)(v)-9 TRANS Cust'!I578+'FR-16(7)(v)-11 DIST Demand'!I578+'FR-16(7)(v)-12 DIST Energy'!I578+'FR-16(7)(v)-13 DIST Cust'!I578-'FR-16(7)(v)-14 TOTAL CLASS'!I578","v":0},{"$f":"'FR-16(7)(v)-3 PROD Demand'!J578+'FR-16(7)(v)-4 PROD Energy'!J578+'FR-16(7)(v)-5 PROD Cust'!J578+'FR-16(7)(v)-7 TRANS Demand'!J578+'FR-16(7)(v)-8 TRANS Energy'!J578+'FR-16(7)(v)-9 TRANS Cust'!J578+'FR-16(7)(v)-11 DIST Demand'!J578+'FR-16(7)(v)-12 DIST Energy'!J578+'FR-16(7)(v)-13 DIST Cust'!J578-'FR-16(7)(v)-14 TOTAL CLASS'!J578","v":0},{"$f":"'FR-16(7)(v)-3 PROD Demand'!K578+'FR-16(7)(v)-4 PROD Energy'!K578+'FR-16(7)(v)-5 PROD Cust'!K578+'FR-16(7)(v)-7 TRANS Demand'!K578+'FR-16(7)(v)-8 TRANS Energy'!K578+'FR-16(7)(v)-9 TRANS Cust'!K578+'FR-16(7)(v)-11 DIST Demand'!K578+'FR-16(7)(v)-12 DIST Energy'!K578+'FR-16(7)(v)-13 DIST Cust'!K578-'FR-16(7)(v)-14 TOTAL CLASS'!K578","v":0},{"$f":"'FR-16(7)(v)-3 PROD Demand'!L578+'FR-16(7)(v)-4 PROD Energy'!L578+'FR-16(7)(v)-5 PROD Cust'!L578+'FR-16(7)(v)-7 TRANS Demand'!L578+'FR-16(7)(v)-8 TRANS Energy'!L578+'FR-16(7)(v)-9 TRANS Cust'!L578+'FR-16(7)(v)-11 DIST Demand'!L578+'FR-16(7)(v)-12 DIST Energy'!L578+'FR-16(7)(v)-13 DIST Cust'!L578-'FR-16(7)(v)-14 TOTAL CLASS'!L578","v":0},{"$f":"'FR-16(7)(v)-3 PROD Demand'!M578+'FR-16(7)(v)-4 PROD Energy'!M578+'FR-16(7)(v)-5 PROD Cust'!M578+'FR-16(7)(v)-7 TRANS Demand'!M578+'FR-16(7)(v)-8 TRANS Energy'!M578+'FR-16(7)(v)-9 TRANS Cust'!M578+'FR-16(7)(v)-11 DIST Demand'!M578+'FR-16(7)(v)-12 DIST Energy'!M578+'FR-16(7)(v)-13 DIST Cust'!M578-'FR-16(7)(v)-14 TOTAL CLASS'!M578","v":0},{"$f":"'FR-16(7)(v)-3 PROD Demand'!N578+'FR-16(7)(v)-4 PROD Energy'!N578+'FR-16(7)(v)-5 PROD Cust'!N578+'FR-16(7)(v)-7 TRANS Demand'!N578+'FR-16(7)(v)-8 TRANS Energy'!N578+'FR-16(7)(v)-9 TRANS Cust'!N578+'FR-16(7)(v)-11 DIST Demand'!N578+'FR-16(7)(v)-12 DIST Energy'!N578+'FR-16(7)(v)-13 DIST Cust'!N578-'FR-16(7)(v)-14 TOTAL CLASS'!N578","v":0},{"$f":"'FR-16(7)(v)-3 PROD Demand'!O578+'FR-16(7)(v)-4 PROD Energy'!O578+'FR-16(7)(v)-5 PROD Cust'!O578+'FR-16(7)(v)-7 TRANS Demand'!O578+'FR-16(7)(v)-8 TRANS Energy'!O578+'FR-16(7)(v)-9 TRANS Cust'!O578+'FR-16(7)(v)-11 DIST Demand'!O578+'FR-16(7)(v)-12 DIST Energy'!O578+'FR-16(7)(v)-13 DIST Cust'!O578-'FR-16(7)(v)-14 TOTAL CLASS'!O578","v":0},{"$f":"'FR-16(7)(v)-3 PROD Demand'!P578+'FR-16(7)(v)-4 PROD Energy'!P578+'FR-16(7)(v)-5 PROD Cust'!P578+'FR-16(7)(v)-7 TRANS Demand'!P578+'FR-16(7)(v)-8 TRANS Energy'!P578+'FR-16(7)(v)-9 TRANS Cust'!P578+'FR-16(7)(v)-11 DIST Demand'!P578+'FR-16(7)(v)-12 DIST Energy'!P578+'FR-16(7)(v)-13 DIST Cust'!P578-'FR-16(7)(v)-14 TOTAL CLASS'!P578","v":0},{"$f":"'FR-16(7)(v)-3 PROD Demand'!Q578+'FR-16(7)(v)-4 PROD Energy'!Q578+'FR-16(7)(v)-5 PROD Cust'!Q578+'FR-16(7)(v)-7 TRANS Demand'!Q578+'FR-16(7)(v)-8 TRANS Energy'!Q578+'FR-16(7)(v)-9 TRANS Cust'!Q578+'FR-16(7)(v)-11 DIST Demand'!Q578+'FR-16(7)(v)-12 DIST Energy'!Q578+'FR-16(7)(v)-13 DIST Cust'!Q578-'FR-16(7)(v)-14 TOTAL CLASS'!Q578","v":0},{"$f":"SUM(G578:Q578)","v":0},{"$f":"F578-R578","v":0}]
[19,null,{"$f":"'FR-16(7)(v)-1 Functional'!C579","v":"  TOTAL COM & OTHER DEPREC EXP."},null,null,{"$f":"SUM(F578:F578)","v":0},{"$f":"SUM(G578:G578)","v":0},0,0,0,0,0,0,0,0,0,0,0,0]
[20]
[21]
[22,"TOTAL DEPRECIATION EXPENSE",null,null," ",{"$f":"F579+F575+F571+F567+F563","v":0},{"$f":"G579+G575+G571+G567+G563","v":0},0,0,0,0,0,0,0,0,0,0,0,0]
[]
[{"$f":"co_name","v":"DUKE ENERGY KENTUCKY, INC."},null,null,null,null,null,null,null,null,null,null,null,null,null,null,null,null,{"$f":"R1","v":"FR-16(7)(v)-14"}]
[{"$f":"$A$2","v":"TOTAL CLASS ALLOCATED - ELECTRIC COST OF SERVICE"},null,null,null,null,null,null,null,null,null,null,null,null,null,null,null,null,{"$f":"R2","v":"WITNESS RESPONSIBLE:"}]
[{"$f":"case_name","v":"CASE NO: 2019-00271"},null,null,null,null,null,null,null,null,null,null,null,null,null,null,null,null,{"$f":"Witness","v":"JAMES E. ZIOLKOWSKI"}]
[{"$f":"data_filing","v":"DATA: 12 MONTHS ACTUAL  & 0 MONTHS ESTIMATED"},null,null,null,null,null,null,null,null,null,null,null,null,null,null,null,null,{"$f":"\"PAGE \"&Pages2-4&\" OF \"&Pages2","v":"PAGE 11 OF 15"}]
[{"$f":"type","v":"TYPE OF FILING: \"X\" ORIGINAL   UPDATED    REVISED  "}]
[]
[null,null,null,null,null,{"$f":"F$7","v":"TOTAL"},null,{"$f":"H$7","v":"DS"},{"$f":"I$7","v":"GSFL"},{"$f":"J$7","v":"EH"},{"$f":"K$7","v":"SP"},"DT SEC","DT PRI","DP","TT",null,"OTHER"]
["LINE",null,null,null,null,{"$f":"F$8","v":"CLASS"},{"$f":"G$8","v":"RS"},{"$f":"H$8","v":"SECONDARY"},{"$f":"I$8","v":"SECONDARY"},{"$f":"J$8","v":"SECONDARY"},{"$f":"K$8","v":"SECONDARY"},"SECONDARY","PRIMARY","PRIMARY","TRANSMISSION","LT","WATER",{"$f":"R8","v":"TOTAL"},"ALL"]
["NO.","OTHER TAXES & MISC EXPENSES",null,"ALLO",null,{"$f":"F$9","v":"ALLOCATED"},{"$f":"G$9","v":"RESIDENTIAL"},{"$f":"H$9","v":"DISTRIBUTION"},{"$f":"I$9","v":"DISTRIBUTION"},{"$f":"J$9","v":"DISTRIBUTION"},{"$f":"K$9","v":"DISTRIBUTION"},"DISTRIBUTION","DISTRIBUTION","DISTRIBUTION","TIME OF DAY","LIGHTING","PUMPING",{"$f":"R9","v":"AT ISSUE"},"OTHER"]
[null,null,"Schedule 8",null,null,null,{"$f":"G$10","v":3},{"$f":"H$10","v":4},{"$f":"I$10","v":5},{"$f":"J$10","v":6},{"$f":"K$10","v":7},8,9,10,11,12,13,null," "]
[1,"TAXES OTHER THAN INC & REV"]
[2," REAL ESTATE & PROPERTY TAX"]
[3,null,{"$f":"'FR-16(7)(v)-1 Functional'!C596","v":"REAL ESTATE & PROPERTY TAX"},{"$f":"'FR-16(7)(v)-1 Functional'!D596","v":"NP29"},null,{"$f":"'FR-16(7)(v)-3 PROD Demand'!F596+'FR-16(7)(v)-4 PROD Energy'!F596+'FR-16(7)(v)-5 PROD Cust'!F596+'FR-16(7)(v)-7 TRANS Demand'!F596+'FR-16(7)(v)-8 TRANS Energy'!F596+'FR-16(7)(v)-9 TRANS Cust'!F596+'FR-16(7)(v)-11 DIST Demand'!F596+'FR-16(7)(v)-12 DIST Energy'!F596+'FR-16(7)(v)-13 DIST Cust'!F596-'FR-16(7)(v)-14 TOTAL CLASS'!F596","v":0},{"$f":"'FR-16(7)(v)-3 PROD Demand'!G596+'FR-16(7)(v)-4 PROD Energy'!G596+'FR-16(7)(v)-5 PROD Cust'!G596+'FR-16(7)(v)-7 TRANS Demand'!G596+'FR-16(7)(v)-8 TRANS Energy'!G596+'FR-16(7)(v)-9 TRANS Cust'!G596+'FR-16(7)(v)-11 DIST Demand'!G596+'FR-16(7)(v)-12 DIST Energy'!G596+'FR-16(7)(v)-13 DIST Cust'!G596-'FR-16(7)(v)-14 TOTAL CLASS'!G596","v":0},{"$f":"'FR-16(7)(v)-3 PROD Demand'!H596+'FR-16(7)(v)-4 PROD Energy'!H596+'FR-16(7)(v)-5 PROD Cust'!H596+'FR-16(7)(v)-7 TRANS Demand'!H596+'FR-16(7)(v)-8 TRANS Energy'!H596+'FR-16(7)(v)-9 TRANS Cust'!H596+'FR-16(7)(v)-11 DIST Demand'!H596+'FR-16(7)(v)-12 DIST Energy'!H596+'FR-16(7)(v)-13 DIST Cust'!H596-'FR-16(7)(v)-14 TOTAL CLASS'!H596","v":0},{"$f":"'FR-16(7)(v)-3 PROD Demand'!I596+'FR-16(7)(v)-4 PROD Energy'!I596+'FR-16(7)(v)-5 PROD Cust'!I596+'FR-16(7)(v)-7 TRANS Demand'!I596+'FR-16(7)(v)-8 TRANS Energy'!I596+'FR-16(7)(v)-9 TRANS Cust'!I596+'FR-16(7)(v)-11 DIST Demand'!I596+'FR-16(7)(v)-12 DIST Energy'!I596+'FR-16(7)(v)-13 DIST Cust'!I596-'FR-16(7)(v)-14 TOTAL CLASS'!I596","v":0},{"$f":"'FR-16(7)(v)-3 PROD Demand'!J596+'FR-16(7)(v)-4 PROD Energy'!J596+'FR-16(7)(v)-5 PROD Cust'!J596+'FR-16(7)(v)-7 TRANS Demand'!J596+'FR-16(7)(v)-8 TRANS Energy'!J596+'FR-16(7)(v)-9 TRANS Cust'!J596+'FR-16(7)(v)-11 DIST Demand'!J596+'FR-16(7)(v)-12 DIST Energy'!J596+'FR-16(7)(v)-13 DIST Cust'!J596-'FR-16(7)(v)-14 TOTAL CLASS'!J596","v":0},{"$f":"'FR-16(7)(v)-3 PROD Demand'!K596+'FR-16(7)(v)-4 PROD Energy'!K596+'FR-16(7)(v)-5 PROD Cust'!K596+'FR-16(7)(v)-7 TRANS Demand'!K596+'FR-16(7)(v)-8 TRANS Energy'!K596+'FR-16(7)(v)-9 TRANS Cust'!K596+'FR-16(7)(v)-11 DIST Demand'!K596+'FR-16(7)(v)-12 DIST Energy'!K596+'FR-16(7)(v)-13 DIST Cust'!K596-'FR-16(7)(v)-14 TOTAL CLASS'!K596","v":0},{"$f":"'FR-16(7)(v)-3 PROD Demand'!L596+'FR-16(7)(v)-4 PROD Energy'!L596+'FR-16(7)(v)-5 PROD Cust'!L596+'FR-16(7)(v)-7 TRANS Demand'!L596+'FR-16(7)(v)-8 TRANS Energy'!L596+'FR-16(7)(v)-9 TRANS Cust'!L596+'FR-16(7)(v)-11 DIST Demand'!L596+'FR-16(7)(v)-12 DIST Energy'!L596+'FR-16(7)(v)-13 DIST Cust'!L596-'FR-16(7)(v)-14 TOTAL CLASS'!L596","v":0},{"$f":"'FR-16(7)(v)-3 PROD Demand'!M596+'FR-16(7)(v)-4 PROD Energy'!M596+'FR-16(7)(v)-5 PROD Cust'!M596+'FR-16(7)(v)-7 TRANS Demand'!M596+'FR-16(7)(v)-8 TRANS Energy'!M596+'FR-16(7)(v)-9 TRANS Cust'!M596+'FR-16(7)(v)-11 DIST Demand'!M596+'FR-16(7)(v)-12 DIST Energy'!M596+'FR-16(7)(v)-13 DIST Cust'!M596-'FR-16(7)(v)-14 TOTAL CLASS'!M596","v":0},{"$f":"'FR-16(7)(v)-3 PROD Demand'!N596+'FR-16(7)(v)-4 PROD Energy'!N596+'FR-16(7)(v)-5 PROD Cust'!N596+'FR-16(7)(v)-7 TRANS Demand'!N596+'FR-16(7)(v)-8 TRANS Energy'!N596+'FR-16(7)(v)-9 TRANS Cust'!N596+'FR-16(7)(v)-11 DIST Demand'!N596+'FR-16(7)(v)-12 DIST Energy'!N596+'FR-16(7)(v)-13 DIST Cust'!N596-'FR-16(7)(v)-14 TOTAL CLASS'!N596","v":0},{"$f":"'FR-16(7)(v)-3 PROD Demand'!O596+'FR-16(7)(v)-4 PROD Energy'!O596+'FR-16(7)(v)-5 PROD Cust'!O596+'FR-16(7)(v)-7 TRANS Demand'!O596+'FR-16(7)(v)-8 TRANS Energy'!O596+'FR-16(7)(v)-9 TRANS Cust'!O596+'FR-16(7)(v)-11 DIST Demand'!O596+'FR-16(7)(v)-12 DIST Energy'!O596+'FR-16(7)(v)-13 DIST Cust'!O596-'FR-16(7)(v)-14 TOTAL CLASS'!O596","v":0},{"$f":"'FR-16(7)(v)-3 PROD Demand'!P596+'FR-16(7)(v)-4 PROD Energy'!P596+'FR-16(7)(v)-5 PROD Cust'!P596+'FR-16(7)(v)-7 TRANS Demand'!P596+'FR-16(7)(v)-8 TRANS Energy'!P596+'FR-16(7)(v)-9 TRANS Cust'!P596+'FR-16(7)(v)-11 DIST Demand'!P596+'FR-16(7)(v)-12 DIST Energy'!P596+'FR-16(7)(v)-13 DIST Cust'!P596-'FR-16(7)(v)-14 TOTAL CLASS'!P596","v":0},{"$f":"'FR-16(7)(v)-3 PROD Demand'!Q596+'FR-16(7)(v)-4 PROD Energy'!Q596+'FR-16(7)(v)-5 PROD Cust'!Q596+'FR-16(7)(v)-7 TRANS Demand'!Q596+'FR-16(7)(v)-8 TRANS Energy'!Q596+'FR-16(7)(v)-9 TRANS Cust'!Q596+'FR-16(7)(v)-11 DIST Demand'!Q596+'FR-16(7)(v)-12 DIST Energy'!Q596+'FR-16(7)(v)-13 DIST Cust'!Q596-'FR-16(7)(v)-14 TOTAL CLASS'!Q596","v":0},{"$f":"SUM(G596:Q596)","v":0},{"$f":"F596-R596","v":0}]
[4,null,{"$f":"'FR-16(7)(v)-1 Functional'!C597","v":"ANNUALIZE PROPERTY TAX"},{"$f":"'FR-16(7)(v)-1 Functional'!D597","v":"NP29"}," ",{"$f":"'FR-16(7)(v)-3 PROD Demand'!F597+'FR-16(7)(v)-4 PROD Energy'!F597+'FR-16(7)(v)-5 PROD Cust'!F597+'FR-16(7)(v)-7 TRANS Demand'!F597+'FR-16(7)(v)-8 TRANS Energy'!F597+'FR-16(7)(v)-9 TRANS Cust'!F597+'FR-16(7)(v)-11 DIST Demand'!F597+'FR-16(7)(v)-12 DIST Energy'!F597+'FR-16(7)(v)-13 DIST Cust'!F597-'FR-16(7)(v)-14 TOTAL CLASS'!F597","v":0},{"$f":"'FR-16(7)(v)-3 PROD Demand'!G597+'FR-16(7)(v)-4 PROD Energy'!G597+'FR-16(7)(v)-5 PROD Cust'!G597+'FR-16(7)(v)-7 TRANS Demand'!G597+'FR-16(7)(v)-8 TRANS Energy'!G597+'FR-16(7)(v)-9 TRANS Cust'!G597+'FR-16(7)(v)-11 DIST Demand'!G597+'FR-16(7)(v)-12 DIST Energy'!G597+'FR-16(7)(v)-13 DIST Cust'!G597-'FR-16(7)(v)-14 TOTAL CLASS'!G597","v":0},{"$f":"'FR-16(7)(v)-3 PROD Demand'!H597+'FR-16(7)(v)-4 PROD Energy'!H597+'FR-16(7)(v)-5 PROD Cust'!H597+'FR-16(7)(v)-7 TRANS Demand'!H597+'FR-16(7)(v)-8 TRANS Energy'!H597+'FR-16(7)(v)-9 TRANS Cust'!H597+'FR-16(7)(v)-11 DIST Demand'!H597+'FR-16(7)(v)-12 DIST Energy'!H597+'FR-16(7)(v)-13 DIST Cust'!H597-'FR-16(7)(v)-14 TOTAL CLASS'!H597","v":0},{"$f":"'FR-16(7)(v)-3 PROD Demand'!I597+'FR-16(7)(v)-4 PROD Energy'!I597+'FR-16(7)(v)-5 PROD Cust'!I597+'FR-16(7)(v)-7 TRANS Demand'!I597+'FR-16(7)(v)-8 TRANS Energy'!I597+'FR-16(7)(v)-9 TRANS Cust'!I597+'FR-16(7)(v)-11 DIST Demand'!I597+'FR-16(7)(v)-12 DIST Energy'!I597+'FR-16(7)(v)-13 DIST Cust'!I597-'FR-16(7)(v)-14 TOTAL CLASS'!I597","v":0},{"$f":"'FR-16(7)(v)-3 PROD Demand'!J597+'FR-16(7)(v)-4 PROD Energy'!J597+'FR-16(7)(v)-5 PROD Cust'!J597+'FR-16(7)(v)-7 TRANS Demand'!J597+'FR-16(7)(v)-8 TRANS Energy'!J597+'FR-16(7)(v)-9 TRANS Cust'!J597+'FR-16(7)(v)-11 DIST Demand'!J597+'FR-16(7)(v)-12 DIST Energy'!J597+'FR-16(7)(v)-13 DIST Cust'!J597-'FR-16(7)(v)-14 TOTAL CLASS'!J597","v":0},{"$f":"'FR-16(7)(v)-3 PROD Demand'!K597+'FR-16(7)(v)-4 PROD Energy'!K597+'FR-16(7)(v)-5 PROD Cust'!K597+'FR-16(7)(v)-7 TRANS Demand'!K597+'FR-16(7)(v)-8 TRANS Energy'!K597+'FR-16(7)(v)-9 TRANS Cust'!K597+'FR-16(7)(v)-11 DIST Demand'!K597+'FR-16(7)(v)-12 DIST Energy'!K597+'FR-16(7)(v)-13 DIST Cust'!K597-'FR-16(7)(v)-14 TOTAL CLASS'!K597","v":0},{"$f":"'FR-16(7)(v)-3 PROD Demand'!L597+'FR-16(7)(v)-4 PROD Energy'!L597+'FR-16(7)(v)-5 PROD Cust'!L597+'FR-16(7)(v)-7 TRANS Demand'!L597+'FR-16(7)(v)-8 TRANS Energy'!L597+'FR-16(7)(v)-9 TRANS Cust'!L597+'FR-16(7)(v)-11 DIST Demand'!L597+'FR-16(7)(v)-12 DIST Energy'!L597+'FR-16(7)(v)-13 DIST Cust'!L597-'FR-16(7)(v)-14 TOTAL CLASS'!L597","v":0},{"$f":"'FR-16(7)(v)-3 PROD Demand'!M597+'FR-16(7)(v)-4 PROD Energy'!M597+'FR-16(7)(v)-5 PROD Cust'!M597+'FR-16(7)(v)-7 TRANS Demand'!M597+'FR-16(7)(v)-8 TRANS Energy'!M597+'FR-16(7)(v)-9 TRANS Cust'!M597+'FR-16(7)(v)-11 DIST Demand'!M597+'FR-16(7)(v)-12 DIST Energy'!M597+'FR-16(7)(v)-13 DIST Cust'!M597-'FR-16(7)(v)-14 TOTAL CLASS'!M597","v":0},{"$f":"'FR-16(7)(v)-3 PROD Demand'!N597+'FR-16(7)(v)-4 PROD Energy'!N597+'FR-16(7)(v)-5 PROD Cust'!N597+'FR-16(7)(v)-7 TRANS Demand'!N597+'FR-16(7)(v)-8 TRANS Energy'!N597+'FR-16(7)(v)-9 TRANS Cust'!N597+'FR-16(7)(v)-11 DIST Demand'!N597+'FR-16(7)(v)-12 DIST Energy'!N597+'FR-16(7)(v)-13 DIST Cust'!N597-'FR-16(7)(v)-14 TOTAL CLASS'!N597","v":0},{"$f":"'FR-16(7)(v)-3 PROD Demand'!O597+'FR-16(7)(v)-4 PROD Energy'!O597+'FR-16(7)(v)-5 PROD Cust'!O597+'FR-16(7)(v)-7 TRANS Demand'!O597+'FR-16(7)(v)-8 TRANS Energy'!O597+'FR-16(7)(v)-9 TRANS Cust'!O597+'FR-16(7)(v)-11 DIST Demand'!O597+'FR-16(7)(v)-12 DIST Energy'!O597+'FR-16(7)(v)-13 DIST Cust'!O597-'FR-16(7)(v)-14 TOTAL CLASS'!O597","v":0},{"$f":"'FR-16(7)(v)-3 PROD Demand'!P597+'FR-16(7)(v)-4 PROD Energy'!P597+'FR-16(7)(v)-5 PROD Cust'!P597+'FR-16(7)(v)-7 TRANS Demand'!P597+'FR-16(7)(v)-8 TRANS Energy'!P597+'FR-16(7)(v)-9 TRANS Cust'!P597+'FR-16(7)(v)-11 DIST Demand'!P597+'FR-16(7)(v)-12 DIST Energy'!P597+'FR-16(7)(v)-13 DIST Cust'!P597-'FR-16(7)(v)-14 TOTAL CLASS'!P597","v":0},{"$f":"'FR-16(7)(v)-3 PROD Demand'!Q597+'FR-16(7)(v)-4 PROD Energy'!Q597+'FR-16(7)(v)-5 PROD Cust'!Q597+'FR-16(7)(v)-7 TRANS Demand'!Q597+'FR-16(7)(v)-8 TRANS Energy'!Q597+'FR-16(7)(v)-9 TRANS Cust'!Q597+'FR-16(7)(v)-11 DIST Demand'!Q597+'FR-16(7)(v)-12 DIST Energy'!Q597+'FR-16(7)(v)-13 DIST Cust'!Q597-'FR-16(7)(v)-14 TOTAL CLASS'!Q597","v":0},{"$f":"SUM(G597:Q597)","v":0},{"$f":"F597-R597","v":0}]
[5,null,{"$f":"'FR-16(7)(v)-1 Functional'!C598","v":"  TOTAL REAL ESTATE & PROPERTY TAX"},null,null,{"$f":"SUM(F596:F597)","v":0},{"$f":"SUM(G596:G597)","v":0},{"$f":"SUM(H596:H597)","v":0},{"$f":"SUM(I596:I597)","v":0},{"$f":"SUM(J596:J597)","v":0},0,0,0,0,0,0,{"$f":"SUM($Q$596:$Q$597)","v":0},{"$f":"SUM(R596:R597)","v":0},{"$f":"SUM(S596:S597)","v":0}]
[6]
[7," MISCELLANEOUS TAXES"]
[8,null,{"$f":"'FR-16(7)(v)-1 Functional'!C601","v":"PAYROLL "},{"$f":"'FR-16(7)(v)-1 Functional'!D601","v":"A315"},null,{"$f":"'FR-16(7)(v)-3 PROD Demand'!F601+'FR-16(7)(v)-4 PROD Energy'!F601+'FR-16(7)(v)-5 PROD Cust'!F601+'FR-16(7)(v)-7 TRANS Demand'!F601+'FR-16(7)(v)-8 TRANS Energy'!F601+'FR-16(7)(v)-9 TRANS Cust'!F601+'FR-16(7)(v)-11 DIST Demand'!F601+'FR-16(7)(v)-12 DIST Energy'!F601+'FR-16(7)(v)-13 DIST Cust'!F601-'FR-16(7)(v)-14 TOTAL CLASS'!F601","v":0},{"$f":"'FR-16(7)(v)-3 PROD Demand'!G601+'FR-16(7)(v)-4 PROD Energy'!G601+'FR-16(7)(v)-5 PROD Cust'!G601+'FR-16(7)(v)-7 TRANS Demand'!G601+'FR-16(7)(v)-8 TRANS Energy'!G601+'FR-16(7)(v)-9 TRANS Cust'!G601+'FR-16(7)(v)-11 DIST Demand'!G601+'FR-16(7)(v)-12 DIST Energy'!G601+'FR-16(7)(v)-13 DIST Cust'!G601-'FR-16(7)(v)-14 TOTAL CLASS'!G601","v":0},{"$f":"'FR-16(7)(v)-3 PROD Demand'!H601+'FR-16(7)(v)-4 PROD Energy'!H601+'FR-16(7)(v)-5 PROD Cust'!H601+'FR-16(7)(v)-7 TRANS Demand'!H601+'FR-16(7)(v)-8 TRANS Energy'!H601+'FR-16(7)(v)-9 TRANS Cust'!H601+'FR-16(7)(v)-11 DIST Demand'!H601+'FR-16(7)(v)-12 DIST Energy'!H601+'FR-16(7)(v)-13 DIST Cust'!H601-'FR-16(7)(v)-14 TOTAL CLASS'!H601","v":0},{"$f":"'FR-16(7)(v)-3 PROD Demand'!I601+'FR-16(7)(v)-4 PROD Energy'!I601+'FR-16(7)(v)-5 PROD Cust'!I601+'FR-16(7)(v)-7 TRANS Demand'!I601+'FR-16(7)(v)-8 TRANS Energy'!I601+'FR-16(7)(v)-9 TRANS Cust'!I601+'FR-16(7)(v)-11 DIST Demand'!I601+'FR-16(7)(v)-12 DIST Energy'!I601+'FR-16(7)(v)-13 DIST Cust'!I601-'FR-16(7)(v)-14 TOTAL CLASS'!I601","v":0},{"$f":"'FR-16(7)(v)-3 PROD Demand'!J601+'FR-16(7)(v)-4 PROD Energy'!J601+'FR-16(7)(v)-5 PROD Cust'!J601+'FR-16(7)(v)-7 TRANS Demand'!J601+'FR-16(7)(v)-8 TRANS Energy'!J601+'FR-16(7)(v)-9 TRANS Cust'!J601+'FR-16(7)(v)-11 DIST Demand'!J601+'FR-16(7)(v)-12 DIST Energy'!J601+'FR-16(7)(v)-13 DIST Cust'!J601-'FR-16(7)(v)-14 TOTAL CLASS'!J601","v":0},{"$f":"'FR-16(7)(v)-3 PROD Demand'!K601+'FR-16(7)(v)-4 PROD Energy'!K601+'FR-16(7)(v)-5 PROD Cust'!K601+'FR-16(7)(v)-7 TRANS Demand'!K601+'FR-16(7)(v)-8 TRANS Energy'!K601+'FR-16(7)(v)-9 TRANS Cust'!K601+'FR-16(7)(v)-11 DIST Demand'!K601+'FR-16(7)(v)-12 DIST Energy'!K601+'FR-16(7)(v)-13 DIST Cust'!K601-'FR-16(7)(v)-14 TOTAL CLASS'!K601","v":0},{"$f":"'FR-16(7)(v)-3 PROD Demand'!L601+'FR-16(7)(v)-4 PROD Energy'!L601+'FR-16(7)(v)-5 PROD Cust'!L601+'FR-16(7)(v)-7 TRANS Demand'!L601+'FR-16(7)(v)-8 TRANS Energy'!L601+'FR-16(7)(v)-9 TRANS Cust'!L601+'FR-16(7)(v)-11 DIST Demand'!L601+'FR-16(7)(v)-12 DIST Energy'!L601+'FR-16(7)(v)-13 DIST Cust'!L601-'FR-16(7)(v)-14 TOTAL CLASS'!L601","v":0},{"$f":"'FR-16(7)(v)-3 PROD Demand'!M601+'FR-16(7)(v)-4 PROD Energy'!M601+'FR-16(7)(v)-5 PROD Cust'!M601+'FR-16(7)(v)-7 TRANS Demand'!M601+'FR-16(7)(v)-8 TRANS Energy'!M601+'FR-16(7)(v)-9 TRANS Cust'!M601+'FR-16(7)(v)-11 DIST Demand'!M601+'FR-16(7)(v)-12 DIST Energy'!M601+'FR-16(7)(v)-13 DIST Cust'!M601-'FR-16(7)(v)-14 TOTAL CLASS'!M601","v":0},{"$f":"'FR-16(7)(v)-3 PROD Demand'!N601+'FR-16(7)(v)-4 PROD Energy'!N601+'FR-16(7)(v)-5 PROD Cust'!N601+'FR-16(7)(v)-7 TRANS Demand'!N601+'FR-16(7)(v)-8 TRANS Energy'!N601+'FR-16(7)(v)-9 TRANS Cust'!N601+'FR-16(7)(v)-11 DIST Demand'!N601+'FR-16(7)(v)-12 DIST Energy'!N601+'FR-16(7)(v)-13 DIST Cust'!N601-'FR-16(7)(v)-14 TOTAL CLASS'!N601","v":0},{"$f":"'FR-16(7)(v)-3 PROD Demand'!O601+'FR-16(7)(v)-4 PROD Energy'!O601+'FR-16(7)(v)-5 PROD Cust'!O601+'FR-16(7)(v)-7 TRANS Demand'!O601+'FR-16(7)(v)-8 TRANS Energy'!O601+'FR-16(7)(v)-9 TRANS Cust'!O601+'FR-16(7)(v)-11 DIST Demand'!O601+'FR-16(7)(v)-12 DIST Energy'!O601+'FR-16(7)(v)-13 DIST Cust'!O601-'FR-16(7)(v)-14 TOTAL CLASS'!O601","v":0},{"$f":"'FR-16(7)(v)-3 PROD Demand'!P601+'FR-16(7)(v)-4 PROD Energy'!P601+'FR-16(7)(v)-5 PROD Cust'!P601+'FR-16(7)(v)-7 TRANS Demand'!P601+'FR-16(7)(v)-8 TRANS Energy'!P601+'FR-16(7)(v)-9 TRANS Cust'!P601+'FR-16(7)(v)-11 DIST Demand'!P601+'FR-16(7)(v)-12 DIST Energy'!P601+'FR-16(7)(v)-13 DIST Cust'!P601-'FR-16(7)(v)-14 TOTAL CLASS'!P601","v":0},{"$f":"'FR-16(7)(v)-3 PROD Demand'!Q601+'FR-16(7)(v)-4 PROD Energy'!Q601+'FR-16(7)(v)-5 PROD Cust'!Q601+'FR-16(7)(v)-7 TRANS Demand'!Q601+'FR-16(7)(v)-8 TRANS Energy'!Q601+'FR-16(7)(v)-9 TRANS Cust'!Q601+'FR-16(7)(v)-11 DIST Demand'!Q601+'FR-16(7)(v)-12 DIST Energy'!Q601+'FR-16(7)(v)-13 DIST Cust'!Q601-'FR-16(7)(v)-14 TOTAL CLASS'!Q601","v":0},{"$f":"SUM(G601:Q601)","v":0},{"$f":"F601-R601","v":0}]
[9,null,{"$f":"'FR-16(7)(v)-1 Functional'!C602","v":"ELIMINATE DSM "},{"$f":"'FR-16(7)(v)-1 Functional'!D602","v":"A315"},null,{"$f":"'FR-16(7)(v)-3 PROD Demand'!F602+'FR-16(7)(v)-4 PROD Energy'!F602+'FR-16(7)(v)-5 PROD Cust'!F602+'FR-16(7)(v)-7 TRANS Demand'!F602+'FR-16(7)(v)-8 TRANS Energy'!F602+'FR-16(7)(v)-9 TRANS Cust'!F602+'FR-16(7)(v)-11 DIST Demand'!F602+'FR-16(7)(v)-12 DIST Energy'!F602+'FR-16(7)(v)-13 DIST Cust'!F602-'FR-16(7)(v)-14 TOTAL CLASS'!F602","v":0},{"$f":"'FR-16(7)(v)-3 PROD Demand'!G602+'FR-16(7)(v)-4 PROD Energy'!G602+'FR-16(7)(v)-5 PROD Cust'!G602+'FR-16(7)(v)-7 TRANS Demand'!G602+'FR-16(7)(v)-8 TRANS Energy'!G602+'FR-16(7)(v)-9 TRANS Cust'!G602+'FR-16(7)(v)-11 DIST Demand'!G602+'FR-16(7)(v)-12 DIST Energy'!G602+'FR-16(7)(v)-13 DIST Cust'!G602-'FR-16(7)(v)-14 TOTAL CLASS'!G602","v":0},{"$f":"'FR-16(7)(v)-3 PROD Demand'!H602+'FR-16(7)(v)-4 PROD Energy'!H602+'FR-16(7)(v)-5 PROD Cust'!H602+'FR-16(7)(v)-7 TRANS Demand'!H602+'FR-16(7)(v)-8 TRANS Energy'!H602+'FR-16(7)(v)-9 TRANS Cust'!H602+'FR-16(7)(v)-11 DIST Demand'!H602+'FR-16(7)(v)-12 DIST Energy'!H602+'FR-16(7)(v)-13 DIST Cust'!H602-'FR-16(7)(v)-14 TOTAL CLASS'!H602","v":0},{"$f":"'FR-16(7)(v)-3 PROD Demand'!I602+'FR-16(7)(v)-4 PROD Energy'!I602+'FR-16(7)(v)-5 PROD Cust'!I602+'FR-16(7)(v)-7 TRANS Demand'!I602+'FR-16(7)(v)-8 TRANS Energy'!I602+'FR-16(7)(v)-9 TRANS Cust'!I602+'FR-16(7)(v)-11 DIST Demand'!I602+'FR-16(7)(v)-12 DIST Energy'!I602+'FR-16(7)(v)-13 DIST Cust'!I602-'FR-16(7)(v)-14 TOTAL CLASS'!I602","v":0},{"$f":"'FR-16(7)(v)-3 PROD Demand'!J602+'FR-16(7)(v)-4 PROD Energy'!J602+'FR-16(7)(v)-5 PROD Cust'!J602+'FR-16(7)(v)-7 TRANS Demand'!J602+'FR-16(7)(v)-8 TRANS Energy'!J602+'FR-16(7)(v)-9 TRANS Cust'!J602+'FR-16(7)(v)-11 DIST Demand'!J602+'FR-16(7)(v)-12 DIST Energy'!J602+'FR-16(7)(v)-13 DIST Cust'!J602-'FR-16(7)(v)-14 TOTAL CLASS'!J602","v":0},{"$f":"'FR-16(7)(v)-3 PROD Demand'!K602+'FR-16(7)(v)-4 PROD Energy'!K602+'FR-16(7)(v)-5 PROD Cust'!K602+'FR-16(7)(v)-7 TRANS Demand'!K602+'FR-16(7)(v)-8 TRANS Energy'!K602+'FR-16(7)(v)-9 TRANS Cust'!K602+'FR-16(7)(v)-11 DIST Demand'!K602+'FR-16(7)(v)-12 DIST Energy'!K602+'FR-16(7)(v)-13 DIST Cust'!K602-'FR-16(7)(v)-14 TOTAL CLASS'!K602","v":0},{"$f":"'FR-16(7)(v)-3 PROD Demand'!L602+'FR-16(7)(v)-4 PROD Energy'!L602+'FR-16(7)(v)-5 PROD Cust'!L602+'FR-16(7)(v)-7 TRANS Demand'!L602+'FR-16(7)(v)-8 TRANS Energy'!L602+'FR-16(7)(v)-9 TRANS Cust'!L602+'FR-16(7)(v)-11 DIST Demand'!L602+'FR-16(7)(v)-12 DIST Energy'!L602+'FR-16(7)(v)-13 DIST Cust'!L602-'FR-16(7)(v)-14 TOTAL CLASS'!L602","v":0},{"$f":"'FR-16(7)(v)-3 PROD Demand'!M602+'FR-16(7)(v)-4 PROD Energy'!M602+'FR-16(7)(v)-5 PROD Cust'!M602+'FR-16(7)(v)-7 TRANS Demand'!M602+'FR-16(7)(v)-8 TRANS Energy'!M602+'FR-16(7)(v)-9 TRANS Cust'!M602+'FR-16(7)(v)-11 DIST Demand'!M602+'FR-16(7)(v)-12 DIST Energy'!M602+'FR-16(7)(v)-13 DIST Cust'!M602-'FR-16(7)(v)-14 TOTAL CLASS'!M602","v":0},{"$f":"'FR-16(7)(v)-3 PROD Demand'!N602+'FR-16(7)(v)-4 PROD Energy'!N602+'FR-16(7)(v)-5 PROD Cust'!N602+'FR-16(7)(v)-7 TRANS Demand'!N602+'FR-16(7)(v)-8 TRANS Energy'!N602+'FR-16(7)(v)-9 TRANS Cust'!N602+'FR-16(7)(v)-11 DIST Demand'!N602+'FR-16(7)(v)-12 DIST Energy'!N602+'FR-16(7)(v)-13 DIST Cust'!N602-'FR-16(7)(v)-14 TOTAL CLASS'!N602","v":0},{"$f":"'FR-16(7)(v)-3 PROD Demand'!O602+'FR-16(7)(v)-4 PROD Energy'!O602+'FR-16(7)(v)-5 PROD Cust'!O602+'FR-16(7)(v)-7 TRANS Demand'!O602+'FR-16(7)(v)-8 TRANS Energy'!O602+'FR-16(7)(v)-9 TRANS Cust'!O602+'FR-16(7)(v)-11 DIST Demand'!O602+'FR-16(7)(v)-12 DIST Energy'!O602+'FR-16(7)(v)-13 DIST Cust'!O602-'FR-16(7)(v)-14 TOTAL CLASS'!O602","v":0},{"$f":"'FR-16(7)(v)-3 PROD Demand'!P602+'FR-16(7)(v)-4 PROD Energy'!P602+'FR-16(7)(v)-5 PROD Cust'!P602+'FR-16(7)(v)-7 TRANS Demand'!P602+'FR-16(7)(v)-8 TRANS Energy'!P602+'FR-16(7)(v)-9 TRANS Cust'!P602+'FR-16(7)(v)-11 DIST Demand'!P602+'FR-16(7)(v)-12 DIST Energy'!P602+'FR-16(7)(v)-13 DIST Cust'!P602-'FR-16(7)(v)-14 TOTAL CLASS'!P602","v":0},{"$f":"'FR-16(7)(v)-3 PROD Demand'!Q602+'FR-16(7)(v)-4 PROD Energy'!Q602+'FR-16(7)(v)-5 PROD Cust'!Q602+'FR-16(7)(v)-7 TRANS Demand'!Q602+'FR-16(7)(v)-8 TRANS Energy'!Q602+'FR-16(7)(v)-9 TRANS Cust'!Q602+'FR-16(7)(v)-11 DIST Demand'!Q602+'FR-16(7)(v)-12 DIST Energy'!Q602+'FR-16(7)(v)-13 DIST Cust'!Q602-'FR-16(7)(v)-14 TOTAL CLASS'!Q602","v":0},{"$f":"SUM(G602:Q602)","v":0},{"$f":"F602-R602","v":0}]
[10,null,{"$f":"'FR-16(7)(v)-1 Functional'!C603","v":"FRANCHISE & LICENSE"},{"$f":"'FR-16(7)(v)-1 Functional'!D603","v":"A315"},null,{"$f":"'FR-16(7)(v)-3 PROD Demand'!F603+'FR-16(7)(v)-4 PROD Energy'!F603+'FR-16(7)(v)-5 PROD Cust'!F603+'FR-16(7)(v)-7 TRANS Demand'!F603+'FR-16(7)(v)-8 TRANS Energy'!F603+'FR-16(7)(v)-9 TRANS Cust'!F603+'FR-16(7)(v)-11 DIST Demand'!F603+'FR-16(7)(v)-12 DIST Energy'!F603+'FR-16(7)(v)-13 DIST Cust'!F603-'FR-16(7)(v)-14 TOTAL CLASS'!F603","v":0},{"$f":"'FR-16(7)(v)-3 PROD Demand'!G603+'FR-16(7)(v)-4 PROD Energy'!G603+'FR-16(7)(v)-5 PROD Cust'!G603+'FR-16(7)(v)-7 TRANS Demand'!G603+'FR-16(7)(v)-8 TRANS Energy'!G603+'FR-16(7)(v)-9 TRANS Cust'!G603+'FR-16(7)(v)-11 DIST Demand'!G603+'FR-16(7)(v)-12 DIST Energy'!G603+'FR-16(7)(v)-13 DIST Cust'!G603-'FR-16(7)(v)-14 TOTAL CLASS'!G603","v":0},{"$f":"'FR-16(7)(v)-3 PROD Demand'!H603+'FR-16(7)(v)-4 PROD Energy'!H603+'FR-16(7)(v)-5 PROD Cust'!H603+'FR-16(7)(v)-7 TRANS Demand'!H603+'FR-16(7)(v)-8 TRANS Energy'!H603+'FR-16(7)(v)-9 TRANS Cust'!H603+'FR-16(7)(v)-11 DIST Demand'!H603+'FR-16(7)(v)-12 DIST Energy'!H603+'FR-16(7)(v)-13 DIST Cust'!H603-'FR-16(7)(v)-14 TOTAL CLASS'!H603","v":0},{"$f":"'FR-16(7)(v)-3 PROD Demand'!I603+'FR-16(7)(v)-4 PROD Energy'!I603+'FR-16(7)(v)-5 PROD Cust'!I603+'FR-16(7)(v)-7 TRANS Demand'!I603+'FR-16(7)(v)-8 TRANS Energy'!I603+'FR-16(7)(v)-9 TRANS Cust'!I603+'FR-16(7)(v)-11 DIST Demand'!I603+'FR-16(7)(v)-12 DIST Energy'!I603+'FR-16(7)(v)-13 DIST Cust'!I603-'FR-16(7)(v)-14 TOTAL CLASS'!I603","v":0},{"$f":"'FR-16(7)(v)-3 PROD Demand'!J603+'FR-16(7)(v)-4 PROD Energy'!J603+'FR-16(7)(v)-5 PROD Cust'!J603+'FR-16(7)(v)-7 TRANS Demand'!J603+'FR-16(7)(v)-8 TRANS Energy'!J603+'FR-16(7)(v)-9 TRANS Cust'!J603+'FR-16(7)(v)-11 DIST Demand'!J603+'FR-16(7)(v)-12 DIST Energy'!J603+'FR-16(7)(v)-13 DIST Cust'!J603-'FR-16(7)(v)-14 TOTAL CLASS'!J603","v":0},{"$f":"'FR-16(7)(v)-3 PROD Demand'!K603+'FR-16(7)(v)-4 PROD Energy'!K603+'FR-16(7)(v)-5 PROD Cust'!K603+'FR-16(7)(v)-7 TRANS Demand'!K603+'FR-16(7)(v)-8 TRANS Energy'!K603+'FR-16(7)(v)-9 TRANS Cust'!K603+'FR-16(7)(v)-11 DIST Demand'!K603+'FR-16(7)(v)-12 DIST Energy'!K603+'FR-16(7)(v)-13 DIST Cust'!K603-'FR-16(7)(v)-14 TOTAL CLASS'!K603","v":0},{"$f":"'FR-16(7)(v)-3 PROD Demand'!L603+'FR-16(7)(v)-4 PROD Energy'!L603+'FR-16(7)(v)-5 PROD Cust'!L603+'FR-16(7)(v)-7 TRANS Demand'!L603+'FR-16(7)(v)-8 TRANS Energy'!L603+'FR-16(7)(v)-9 TRANS Cust'!L603+'FR-16(7)(v)-11 DIST Demand'!L603+'FR-16(7)(v)-12 DIST Energy'!L603+'FR-16(7)(v)-13 DIST Cust'!L603-'FR-16(7)(v)-14 TOTAL CLASS'!L603","v":0},{"$f":"'FR-16(7)(v)-3 PROD Demand'!M603+'FR-16(7)(v)-4 PROD Energy'!M603+'FR-16(7)(v)-5 PROD Cust'!M603+'FR-16(7)(v)-7 TRANS Demand'!M603+'FR-16(7)(v)-8 TRANS Energy'!M603+'FR-16(7)(v)-9 TRANS Cust'!M603+'FR-16(7)(v)-11 DIST Demand'!M603+'FR-16(7)(v)-12 DIST Energy'!M603+'FR-16(7)(v)-13 DIST Cust'!M603-'FR-16(7)(v)-14 TOTAL CLASS'!M603","v":0},{"$f":"'FR-16(7)(v)-3 PROD Demand'!N603+'FR-16(7)(v)-4 PROD Energy'!N603+'FR-16(7)(v)-5 PROD Cust'!N603+'FR-16(7)(v)-7 TRANS Demand'!N603+'FR-16(7)(v)-8 TRANS Energy'!N603+'FR-16(7)(v)-9 TRANS Cust'!N603+'FR-16(7)(v)-11 DIST Demand'!N603+'FR-16(7)(v)-12 DIST Energy'!N603+'FR-16(7)(v)-13 DIST Cust'!N603-'FR-16(7)(v)-14 TOTAL CLASS'!N603","v":0},{"$f":"'FR-16(7)(v)-3 PROD Demand'!O603+'FR-16(7)(v)-4 PROD Energy'!O603+'FR-16(7)(v)-5 PROD Cust'!O603+'FR-16(7)(v)-7 TRANS Demand'!O603+'FR-16(7)(v)-8 TRANS Energy'!O603+'FR-16(7)(v)-9 TRANS Cust'!O603+'FR-16(7)(v)-11 DIST Demand'!O603+'FR-16(7)(v)-12 DIST Energy'!O603+'FR-16(7)(v)-13 DIST Cust'!O603-'FR-16(7)(v)-14 TOTAL CLASS'!O603","v":0},{"$f":"'FR-16(7)(v)-3 PROD Demand'!P603+'FR-16(7)(v)-4 PROD Energy'!P603+'FR-16(7)(v)-5 PROD Cust'!P603+'FR-16(7)(v)-7 TRANS Demand'!P603+'FR-16(7)(v)-8 TRANS Energy'!P603+'FR-16(7)(v)-9 TRANS Cust'!P603+'FR-16(7)(v)-11 DIST Demand'!P603+'FR-16(7)(v)-12 DIST Energy'!P603+'FR-16(7)(v)-13 DIST Cust'!P603-'FR-16(7)(v)-14 TOTAL CLASS'!P603","v":0},{"$f":"'FR-16(7)(v)-3 PROD Demand'!Q603+'FR-16(7)(v)-4 PROD Energy'!Q603+'FR-16(7)(v)-5 PROD Cust'!Q603+'FR-16(7)(v)-7 TRANS Demand'!Q603+'FR-16(7)(v)-8 TRANS Energy'!Q603+'FR-16(7)(v)-9 TRANS Cust'!Q603+'FR-16(7)(v)-11 DIST Demand'!Q603+'FR-16(7)(v)-12 DIST Energy'!Q603+'FR-16(7)(v)-13 DIST Cust'!Q603-'FR-16(7)(v)-14 TOTAL CLASS'!Q603","v":0},{"$f":"SUM(G603:Q603)","v":0},{"$f":"F603-R603","v":0}]
[11,null,{"$f":"'FR-16(7)(v)-1 Functional'!C604","v":"ELIMINATE ESM"},{"$f":"'FR-16(7)(v)-1 Functional'!D604","v":"A315"},null,{"$f":"'FR-16(7)(v)-3 PROD Demand'!F604+'FR-16(7)(v)-4 PROD Energy'!F604+'FR-16(7)(v)-5 PROD Cust'!F604+'FR-16(7)(v)-7 TRANS Demand'!F604+'FR-16(7)(v)-8 TRANS Energy'!F604+'FR-16(7)(v)-9 TRANS Cust'!F604+'FR-16(7)(v)-11 DIST Demand'!F604+'FR-16(7)(v)-12 DIST Energy'!F604+'FR-16(7)(v)-13 DIST Cust'!F604-'FR-16(7)(v)-14 TOTAL CLASS'!F604","v":0},{"$f":"'FR-16(7)(v)-3 PROD Demand'!G604+'FR-16(7)(v)-4 PROD Energy'!G604+'FR-16(7)(v)-5 PROD Cust'!G604+'FR-16(7)(v)-7 TRANS Demand'!G604+'FR-16(7)(v)-8 TRANS Energy'!G604+'FR-16(7)(v)-9 TRANS Cust'!G604+'FR-16(7)(v)-11 DIST Demand'!G604+'FR-16(7)(v)-12 DIST Energy'!G604+'FR-16(7)(v)-13 DIST Cust'!G604-'FR-16(7)(v)-14 TOTAL CLASS'!G604","v":0},{"$f":"'FR-16(7)(v)-3 PROD Demand'!H604+'FR-16(7)(v)-4 PROD Energy'!H604+'FR-16(7)(v)-5 PROD Cust'!H604+'FR-16(7)(v)-7 TRANS Demand'!H604+'FR-16(7)(v)-8 TRANS Energy'!H604+'FR-16(7)(v)-9 TRANS Cust'!H604+'FR-16(7)(v)-11 DIST Demand'!H604+'FR-16(7)(v)-12 DIST Energy'!H604+'FR-16(7)(v)-13 DIST Cust'!H604-'FR-16(7)(v)-14 TOTAL CLASS'!H604","v":0},{"$f":"'FR-16(7)(v)-3 PROD Demand'!I604+'FR-16(7)(v)-4 PROD Energy'!I604+'FR-16(7)(v)-5 PROD Cust'!I604+'FR-16(7)(v)-7 TRANS Demand'!I604+'FR-16(7)(v)-8 TRANS Energy'!I604+'FR-16(7)(v)-9 TRANS Cust'!I604+'FR-16(7)(v)-11 DIST Demand'!I604+'FR-16(7)(v)-12 DIST Energy'!I604+'FR-16(7)(v)-13 DIST Cust'!I604-'FR-16(7)(v)-14 TOTAL CLASS'!I604","v":0},{"$f":"'FR-16(7)(v)-3 PROD Demand'!J604+'FR-16(7)(v)-4 PROD Energy'!J604+'FR-16(7)(v)-5 PROD Cust'!J604+'FR-16(7)(v)-7 TRANS Demand'!J604+'FR-16(7)(v)-8 TRANS Energy'!J604+'FR-16(7)(v)-9 TRANS Cust'!J604+'FR-16(7)(v)-11 DIST Demand'!J604+'FR-16(7)(v)-12 DIST Energy'!J604+'FR-16(7)(v)-13 DIST Cust'!J604-'FR-16(7)(v)-14 TOTAL CLASS'!J604","v":0},{"$f":"'FR-16(7)(v)-3 PROD Demand'!K604+'FR-16(7)(v)-4 PROD Energy'!K604+'FR-16(7)(v)-5 PROD Cust'!K604+'FR-16(7)(v)-7 TRANS Demand'!K604+'FR-16(7)(v)-8 TRANS Energy'!K604+'FR-16(7)(v)-9 TRANS Cust'!K604+'FR-16(7)(v)-11 DIST Demand'!K604+'FR-16(7)(v)-12 DIST Energy'!K604+'FR-16(7)(v)-13 DIST Cust'!K604-'FR-16(7)(v)-14 TOTAL CLASS'!K604","v":0},{"$f":"'FR-16(7)(v)-3 PROD Demand'!L604+'FR-16(7)(v)-4 PROD Energy'!L604+'FR-16(7)(v)-5 PROD Cust'!L604+'FR-16(7)(v)-7 TRANS Demand'!L604+'FR-16(7)(v)-8 TRANS Energy'!L604+'FR-16(7)(v)-9 TRANS Cust'!L604+'FR-16(7)(v)-11 DIST Demand'!L604+'FR-16(7)(v)-12 DIST Energy'!L604+'FR-16(7)(v)-13 DIST Cust'!L604-'FR-16(7)(v)-14 TOTAL CLASS'!L604","v":0},{"$f":"'FR-16(7)(v)-3 PROD Demand'!M604+'FR-16(7)(v)-4 PROD Energy'!M604+'FR-16(7)(v)-5 PROD Cust'!M604+'FR-16(7)(v)-7 TRANS Demand'!M604+'FR-16(7)(v)-8 TRANS Energy'!M604+'FR-16(7)(v)-9 TRANS Cust'!M604+'FR-16(7)(v)-11 DIST Demand'!M604+'FR-16(7)(v)-12 DIST Energy'!M604+'FR-16(7)(v)-13 DIST Cust'!M604-'FR-16(7)(v)-14 TOTAL CLASS'!M604","v":0},{"$f":"'FR-16(7)(v)-3 PROD Demand'!N604+'FR-16(7)(v)-4 PROD Energy'!N604+'FR-16(7)(v)-5 PROD Cust'!N604+'FR-16(7)(v)-7 TRANS Demand'!N604+'FR-16(7)(v)-8 TRANS Energy'!N604+'FR-16(7)(v)-9 TRANS Cust'!N604+'FR-16(7)(v)-11 DIST Demand'!N604+'FR-16(7)(v)-12 DIST Energy'!N604+'FR-16(7)(v)-13 DIST Cust'!N604-'FR-16(7)(v)-14 TOTAL CLASS'!N604","v":0},{"$f":"'FR-16(7)(v)-3 PROD Demand'!O604+'FR-16(7)(v)-4 PROD Energy'!O604+'FR-16(7)(v)-5 PROD Cust'!O604+'FR-16(7)(v)-7 TRANS Demand'!O604+'FR-16(7)(v)-8 TRANS Energy'!O604+'FR-16(7)(v)-9 TRANS Cust'!O604+'FR-16(7)(v)-11 DIST Demand'!O604+'FR-16(7)(v)-12 DIST Energy'!O604+'FR-16(7)(v)-13 DIST Cust'!O604-'FR-16(7)(v)-14 TOTAL CLASS'!O604","v":0},{"$f":"'FR-16(7)(v)-3 PROD Demand'!P604+'FR-16(7)(v)-4 PROD Energy'!P604+'FR-16(7)(v)-5 PROD Cust'!P604+'FR-16(7)(v)-7 TRANS Demand'!P604+'FR-16(7)(v)-8 TRANS Energy'!P604+'FR-16(7)(v)-9 TRANS Cust'!P604+'FR-16(7)(v)-11 DIST Demand'!P604+'FR-16(7)(v)-12 DIST Energy'!P604+'FR-16(7)(v)-13 DIST Cust'!P604-'FR-16(7)(v)-14 TOTAL CLASS'!P604","v":0},{"$f":"'FR-16(7)(v)-3 PROD Demand'!Q604+'FR-16(7)(v)-4 PROD Energy'!Q604+'FR-16(7)(v)-5 PROD Cust'!Q604+'FR-16(7)(v)-7 TRANS Demand'!Q604+'FR-16(7)(v)-8 TRANS Energy'!Q604+'FR-16(7)(v)-9 TRANS Cust'!Q604+'FR-16(7)(v)-11 DIST Demand'!Q604+'FR-16(7)(v)-12 DIST Energy'!Q604+'FR-16(7)(v)-13 DIST Cust'!Q604-'FR-16(7)(v)-14 TOTAL CLASS'!Q604","v":0},{"$f":"SUM(G604:Q604)","v":0},{"$f":"F604-R604","v":0}]
[12,null,{"$f":"'FR-16(7)(v)-1 Functional'!C605","v":"  TOTAL MISCELLANEOUS TAXES"},null,null,{"$f":"SUM(F601:F604)","v":0},{"$f":"SUM(G601:G604)","v":0},{"$f":"SUM(H601:H604)","v":0},{"$f":"SUM(I601:I604)","v":0},{"$f":"SUM(J601:J604)","v":0},0,0,0,0,0,0,{"$f":"SUM($Q$601:$Q$604)","v":0},{"$f":"SUM(R601:R604)","v":0},{"$f":"SUM(S601:S604)","v":0}]
[13]
[14," MISCELLANEOUS EXPENSES"]
[15,null,{"$f":"'FR-16(7)(v)-1 Functional'!C608","v":"PSC MAINT. EXP ON INCREASE"},{"$f":"'FR-16(7)(v)-1 Functional'!D608","v":"K902"},null,{"$f":"'FR-16(7)(v)-3 PROD Demand'!F608+'FR-16(7)(v)-4 PROD Energy'!F608+'FR-16(7)(v)-5 PROD Cust'!F608+'FR-16(7)(v)-7 TRANS Demand'!F608+'FR-16(7)(v)-8 TRANS Energy'!F608+'FR-16(7)(v)-9 TRANS Cust'!F608+'FR-16(7)(v)-11 DIST Demand'!F608+'FR-16(7)(v)-12 DIST Energy'!F608+'FR-16(7)(v)-13 DIST Cust'!F608-'FR-16(7)(v)-14 TOTAL CLASS'!F608","v":0},{"$f":"'FR-16(7)(v)-3 PROD Demand'!G608+'FR-16(7)(v)-4 PROD Energy'!G608+'FR-16(7)(v)-5 PROD Cust'!G608+'FR-16(7)(v)-7 TRANS Demand'!G608+'FR-16(7)(v)-8 TRANS Energy'!G608+'FR-16(7)(v)-9 TRANS Cust'!G608+'FR-16(7)(v)-11 DIST Demand'!G608+'FR-16(7)(v)-12 DIST Energy'!G608+'FR-16(7)(v)-13 DIST Cust'!G608-'FR-16(7)(v)-14 TOTAL CLASS'!G608","v":0},{"$f":"'FR-16(7)(v)-3 PROD Demand'!H608+'FR-16(7)(v)-4 PROD Energy'!H608+'FR-16(7)(v)-5 PROD Cust'!H608+'FR-16(7)(v)-7 TRANS Demand'!H608+'FR-16(7)(v)-8 TRANS Energy'!H608+'FR-16(7)(v)-9 TRANS Cust'!H608+'FR-16(7)(v)-11 DIST Demand'!H608+'FR-16(7)(v)-12 DIST Energy'!H608+'FR-16(7)(v)-13 DIST Cust'!H608-'FR-16(7)(v)-14 TOTAL CLASS'!H608","v":0},{"$f":"'FR-16(7)(v)-3 PROD Demand'!I608+'FR-16(7)(v)-4 PROD Energy'!I608+'FR-16(7)(v)-5 PROD Cust'!I608+'FR-16(7)(v)-7 TRANS Demand'!I608+'FR-16(7)(v)-8 TRANS Energy'!I608+'FR-16(7)(v)-9 TRANS Cust'!I608+'FR-16(7)(v)-11 DIST Demand'!I608+'FR-16(7)(v)-12 DIST Energy'!I608+'FR-16(7)(v)-13 DIST Cust'!I608-'FR-16(7)(v)-14 TOTAL CLASS'!I608","v":0},{"$f":"'FR-16(7)(v)-3 PROD Demand'!J608+'FR-16(7)(v)-4 PROD Energy'!J608+'FR-16(7)(v)-5 PROD Cust'!J608+'FR-16(7)(v)-7 TRANS Demand'!J608+'FR-16(7)(v)-8 TRANS Energy'!J608+'FR-16(7)(v)-9 TRANS Cust'!J608+'FR-16(7)(v)-11 DIST Demand'!J608+'FR-16(7)(v)-12 DIST Energy'!J608+'FR-16(7)(v)-13 DIST Cust'!J608-'FR-16(7)(v)-14 TOTAL CLASS'!J608","v":0},{"$f":"'FR-16(7)(v)-3 PROD Demand'!K608+'FR-16(7)(v)-4 PROD Energy'!K608+'FR-16(7)(v)-5 PROD Cust'!K608+'FR-16(7)(v)-7 TRANS Demand'!K608+'FR-16(7)(v)-8 TRANS Energy'!K608+'FR-16(7)(v)-9 TRANS Cust'!K608+'FR-16(7)(v)-11 DIST Demand'!K608+'FR-16(7)(v)-12 DIST Energy'!K608+'FR-16(7)(v)-13 DIST Cust'!K608-'FR-16(7)(v)-14 TOTAL CLASS'!K608","v":0},{"$f":"'FR-16(7)(v)-3 PROD Demand'!L608+'FR-16(7)(v)-4 PROD Energy'!L608+'FR-16(7)(v)-5 PROD Cust'!L608+'FR-16(7)(v)-7 TRANS Demand'!L608+'FR-16(7)(v)-8 TRANS Energy'!L608+'FR-16(7)(v)-9 TRANS Cust'!L608+'FR-16(7)(v)-11 DIST Demand'!L608+'FR-16(7)(v)-12 DIST Energy'!L608+'FR-16(7)(v)-13 DIST Cust'!L608-'FR-16(7)(v)-14 TOTAL CLASS'!L608","v":0},{"$f":"'FR-16(7)(v)-3 PROD Demand'!M608+'FR-16(7)(v)-4 PROD Energy'!M608+'FR-16(7)(v)-5 PROD Cust'!M608+'FR-16(7)(v)-7 TRANS Demand'!M608+'FR-16(7)(v)-8 TRANS Energy'!M608+'FR-16(7)(v)-9 TRANS Cust'!M608+'FR-16(7)(v)-11 DIST Demand'!M608+'FR-16(7)(v)-12 DIST Energy'!M608+'FR-16(7)(v)-13 DIST Cust'!M608-'FR-16(7)(v)-14 TOTAL CLASS'!M608","v":0},{"$f":"'FR-16(7)(v)-3 PROD Demand'!N608+'FR-16(7)(v)-4 PROD Energy'!N608+'FR-16(7)(v)-5 PROD Cust'!N608+'FR-16(7)(v)-7 TRANS Demand'!N608+'FR-16(7)(v)-8 TRANS Energy'!N608+'FR-16(7)(v)-9 TRANS Cust'!N608+'FR-16(7)(v)-11 DIST Demand'!N608+'FR-16(7)(v)-12 DIST Energy'!N608+'FR-16(7)(v)-13 DIST Cust'!N608-'FR-16(7)(v)-14 TOTAL CLASS'!N608","v":0},{"$f":"'FR-16(7)(v)-3 PROD Demand'!O608+'FR-16(7)(v)-4 PROD Energy'!O608+'FR-16(7)(v)-5 PROD Cust'!O608+'FR-16(7)(v)-7 TRANS Demand'!O608+'FR-16(7)(v)-8 TRANS Energy'!O608+'FR-16(7)(v)-9 TRANS Cust'!O608+'FR-16(7)(v)-11 DIST Demand'!O608+'FR-16(7)(v)-12 DIST Energy'!O608+'FR-16(7)(v)-13 DIST Cust'!O608-'FR-16(7)(v)-14 TOTAL CLASS'!O608","v":0},{"$f":"'FR-16(7)(v)-3 PROD Demand'!P608+'FR-16(7)(v)-4 PROD Energy'!P608+'FR-16(7)(v)-5 PROD Cust'!P608+'FR-16(7)(v)-7 TRANS Demand'!P608+'FR-16(7)(v)-8 TRANS Energy'!P608+'FR-16(7)(v)-9 TRANS Cust'!P608+'FR-16(7)(v)-11 DIST Demand'!P608+'FR-16(7)(v)-12 DIST Energy'!P608+'FR-16(7)(v)-13 DIST Cust'!P608-'FR-16(7)(v)-14 TOTAL CLASS'!P608","v":0},{"$f":"'FR-16(7)(v)-3 PROD Demand'!Q608+'FR-16(7)(v)-4 PROD Energy'!Q608+'FR-16(7)(v)-5 PROD Cust'!Q608+'FR-16(7)(v)-7 TRANS Demand'!Q608+'FR-16(7)(v)-8 TRANS Energy'!Q608+'FR-16(7)(v)-9 TRANS Cust'!Q608+'FR-16(7)(v)-11 DIST Demand'!Q608+'FR-16(7)(v)-12 DIST Energy'!Q608+'FR-16(7)(v)-13 DIST Cust'!Q608-'FR-16(7)(v)-14 TOTAL CLASS'!Q608","v":0},{"$f":"SUM(G608:Q608)","v":0},{"$f":"F608-R608","v":0}]
[16,null,{"$f":"'FR-16(7)(v)-1 Functional'!C609","v":"RESERVED FOR FUTURE USE"},{"$f":"'FR-16(7)(v)-1 Functional'!D609","v":"K902"},null,{"$f":"'FR-16(7)(v)-3 PROD Demand'!F609+'FR-16(7)(v)-4 PROD Energy'!F609+'FR-16(7)(v)-5 PROD Cust'!F609+'FR-16(7)(v)-7 TRANS Demand'!F609+'FR-16(7)(v)-8 TRANS Energy'!F609+'FR-16(7)(v)-9 TRANS Cust'!F609+'FR-16(7)(v)-11 DIST Demand'!F609+'FR-16(7)(v)-12 DIST Energy'!F609+'FR-16(7)(v)-13 DIST Cust'!F609-'FR-16(7)(v)-14 TOTAL CLASS'!F609","v":0},{"$f":"'FR-16(7)(v)-3 PROD Demand'!G609+'FR-16(7)(v)-4 PROD Energy'!G609+'FR-16(7)(v)-5 PROD Cust'!G609+'FR-16(7)(v)-7 TRANS Demand'!G609+'FR-16(7)(v)-8 TRANS Energy'!G609+'FR-16(7)(v)-9 TRANS Cust'!G609+'FR-16(7)(v)-11 DIST Demand'!G609+'FR-16(7)(v)-12 DIST Energy'!G609+'FR-16(7)(v)-13 DIST Cust'!G609-'FR-16(7)(v)-14 TOTAL CLASS'!G609","v":0},{"$f":"'FR-16(7)(v)-3 PROD Demand'!H609+'FR-16(7)(v)-4 PROD Energy'!H609+'FR-16(7)(v)-5 PROD Cust'!H609+'FR-16(7)(v)-7 TRANS Demand'!H609+'FR-16(7)(v)-8 TRANS Energy'!H609+'FR-16(7)(v)-9 TRANS Cust'!H609+'FR-16(7)(v)-11 DIST Demand'!H609+'FR-16(7)(v)-12 DIST Energy'!H609+'FR-16(7)(v)-13 DIST Cust'!H609-'FR-16(7)(v)-14 TOTAL CLASS'!H609","v":0},{"$f":"'FR-16(7)(v)-3 PROD Demand'!I609+'FR-16(7)(v)-4 PROD Energy'!I609+'FR-16(7)(v)-5 PROD Cust'!I609+'FR-16(7)(v)-7 TRANS Demand'!I609+'FR-16(7)(v)-8 TRANS Energy'!I609+'FR-16(7)(v)-9 TRANS Cust'!I609+'FR-16(7)(v)-11 DIST Demand'!I609+'FR-16(7)(v)-12 DIST Energy'!I609+'FR-16(7)(v)-13 DIST Cust'!I609-'FR-16(7)(v)-14 TOTAL CLASS'!I609","v":0},{"$f":"'FR-16(7)(v)-3 PROD Demand'!J609+'FR-16(7)(v)-4 PROD Energy'!J609+'FR-16(7)(v)-5 PROD Cust'!J609+'FR-16(7)(v)-7 TRANS Demand'!J609+'FR-16(7)(v)-8 TRANS Energy'!J609+'FR-16(7)(v)-9 TRANS Cust'!J609+'FR-16(7)(v)-11 DIST Demand'!J609+'FR-16(7)(v)-12 DIST Energy'!J609+'FR-16(7)(v)-13 DIST Cust'!J609-'FR-16(7)(v)-14 TOTAL CLASS'!J609","v":0},{"$f":"'FR-16(7)(v)-3 PROD Demand'!K609+'FR-16(7)(v)-4 PROD Energy'!K609+'FR-16(7)(v)-5 PROD Cust'!K609+'FR-16(7)(v)-7 TRANS Demand'!K609+'FR-16(7)(v)-8 TRANS Energy'!K609+'FR-16(7)(v)-9 TRANS Cust'!K609+'FR-16(7)(v)-11 DIST Demand'!K609+'FR-16(7)(v)-12 DIST Energy'!K609+'FR-16(7)(v)-13 DIST Cust'!K609-'FR-16(7)(v)-14 TOTAL CLASS'!K609","v":0},{"$f":"'FR-16(7)(v)-3 PROD Demand'!L609+'FR-16(7)(v)-4 PROD Energy'!L609+'FR-16(7)(v)-5 PROD Cust'!L609+'FR-16(7)(v)-7 TRANS Demand'!L609+'FR-16(7)(v)-8 TRANS Energy'!L609+'FR-16(7)(v)-9 TRANS Cust'!L609+'FR-16(7)(v)-11 DIST Demand'!L609+'FR-16(7)(v)-12 DIST Energy'!L609+'FR-16(7)(v)-13 DIST Cust'!L609-'FR-16(7)(v)-14 TOTAL CLASS'!L609","v":0},{"$f":"'FR-16(7)(v)-3 PROD Demand'!M609+'FR-16(7)(v)-4 PROD Energy'!M609+'FR-16(7)(v)-5 PROD Cust'!M609+'FR-16(7)(v)-7 TRANS Demand'!M609+'FR-16(7)(v)-8 TRANS Energy'!M609+'FR-16(7)(v)-9 TRANS Cust'!M609+'FR-16(7)(v)-11 DIST Demand'!M609+'FR-16(7)(v)-12 DIST Energy'!M609+'FR-16(7)(v)-13 DIST Cust'!M609-'FR-16(7)(v)-14 TOTAL CLASS'!M609","v":0},{"$f":"'FR-16(7)(v)-3 PROD Demand'!N609+'FR-16(7)(v)-4 PROD Energy'!N609+'FR-16(7)(v)-5 PROD Cust'!N609+'FR-16(7)(v)-7 TRANS Demand'!N609+'FR-16(7)(v)-8 TRANS Energy'!N609+'FR-16(7)(v)-9 TRANS Cust'!N609+'FR-16(7)(v)-11 DIST Demand'!N609+'FR-16(7)(v)-12 DIST Energy'!N609+'FR-16(7)(v)-13 DIST Cust'!N609-'FR-16(7)(v)-14 TOTAL CLASS'!N609","v":0},{"$f":"'FR-16(7)(v)-3 PROD Demand'!O609+'FR-16(7)(v)-4 PROD Energy'!O609+'FR-16(7)(v)-5 PROD Cust'!O609+'FR-16(7)(v)-7 TRANS Demand'!O609+'FR-16(7)(v)-8 TRANS Energy'!O609+'FR-16(7)(v)-9 TRANS Cust'!O609+'FR-16(7)(v)-11 DIST Demand'!O609+'FR-16(7)(v)-12 DIST Energy'!O609+'FR-16(7)(v)-13 DIST Cust'!O609-'FR-16(7)(v)-14 TOTAL CLASS'!O609","v":0},{"$f":"'FR-16(7)(v)-3 PROD Demand'!P609+'FR-16(7)(v)-4 PROD Energy'!P609+'FR-16(7)(v)-5 PROD Cust'!P609+'FR-16(7)(v)-7 TRANS Demand'!P609+'FR-16(7)(v)-8 TRANS Energy'!P609+'FR-16(7)(v)-9 TRANS Cust'!P609+'FR-16(7)(v)-11 DIST Demand'!P609+'FR-16(7)(v)-12 DIST Energy'!P609+'FR-16(7)(v)-13 DIST Cust'!P609-'FR-16(7)(v)-14 TOTAL CLASS'!P609","v":0},{"$f":"'FR-16(7)(v)-3 PROD Demand'!Q609+'FR-16(7)(v)-4 PROD Energy'!Q609+'FR-16(7)(v)-5 PROD Cust'!Q609+'FR-16(7)(v)-7 TRANS Demand'!Q609+'FR-16(7)(v)-8 TRANS Energy'!Q609+'FR-16(7)(v)-9 TRANS Cust'!Q609+'FR-16(7)(v)-11 DIST Demand'!Q609+'FR-16(7)(v)-12 DIST Energy'!Q609+'FR-16(7)(v)-13 DIST Cust'!Q609-'FR-16(7)(v)-14 TOTAL CLASS'!Q609","v":0},{"$f":"SUM(G609:Q609)","v":0},{"$f":"F609-R609","v":0}]
[17,null,{"$f":"'FR-16(7)(v)-1 Functional'!C610","v":"  TOTAL MISCELLANEOUS EXPENSES"},null,null,{"$f":"SUM(F608:F609)","v":0},{"$f":"SUM(G608:G609)","v":0},{"$f":"SUM(H608:H609)","v":0},{"$f":"SUM(I608:I609)","v":0},{"$f":"SUM(J608:J609)","v":0},0,0,0,0,0,0,{"$f":"SUM($Q$608:$Q$609)","v":0},{"$f":"SUM(R608:R609)","v":0},{"$f":"SUM(S608:S609)","v":0}]
[18]
[19,"TOTAL OTHER TAX & MISC EXPENSE",null,null," ",{"$f":"F605+F598+F610","v":0},{"$f":"G605+G598+G610","v":0},{"$f":"H605+H598+H610","v":0},{"$f":"I605+I598+I610","v":0},{"$f":"J605+J598+J610","v":0},0,0,0,0,0,0,{"$f":"$Q$605+$Q$598+$Q$610","v":0},{"$f":"R605+R598+R610","v":0},{"$f":"S605+S598+S610","v":0}]
[20]
[21,"PRELIMINARY SUMMARY"]
[22,null,{"$f":"'FR-16(7)(v)-1 Functional'!C615","v":"TOTAL O&M EXPENSE"},null,null,{"$f":"F549","v":0},{"$f":"G549","v":0},0,0,0,0,0,0,0,0,0,0,0,0]
[23,null,{"$f":"'FR-16(7)(v)-1 Functional'!C616","v":"TOTAL DEPRECIATION EXPENSE"},null,null,{"$f":"F582","v":0},{"$f":"G582","v":0},0,0,0,0,0,0,0,0,0,0,0,0]
[24,null,{"$f":"'FR-16(7)(v)-1 Functional'!C617","v":"TOTAL OTHER TAX & MISC EXPENSE"},null,null,{"$f":"F612","v":0},{"$f":"G612","v":0},{"$f":"H612","v":0},{"$f":"I612","v":0},{"$f":"J612","v":0},0,0,0,0,0,0,{"$f":"$Q$612","v":0},{"$f":"R612","v":0},{"$f":"S612","v":0}]
[25,null,{"$f":"'FR-16(7)(v)-1 Functional'!C618","v":"  TOTAL OPER EXP EXCL INCOME & REV TAX"},null,null,{"$f":"SUM(F615:F617)","v":0},{"$f":"SUM(G615:G617)","v":0},{"$f":"SUM(H615:H617)","v":0},{"$f":"SUM(I615:I617)","v":0},{"$f":"SUM(J615:J617)","v":0},0,0,0,0,0,0,{"$f":"SUM($Q$615:$Q$617)","v":0},{"$f":"SUM(R615:R617)","v":0},{"$f":"SUM(S615:S617)","v":0}]
[]
[{"$f":"co_name","v":"DUKE ENERGY KENTUCKY, INC."},null,null,null,null,null,null,null,null,null,null,null,null,null,null,null,null,{"$f":"R1","v":"FR-16(7)(v)-14"}]
[{"$f":"$A$2","v":"TOTAL CLASS ALLOCATED - ELECTRIC COST OF SERVICE"},null,null,null,null,null,null,null,null,null,null,null,null,null,null,null,null,{"$f":"R2","v":"WITNESS RESPONSIBLE:"}]
[{"$f":"case_name","v":"CASE NO: 2019-00271"},null,null,null,null,null,null,null,null,null,null,null,null,null,null,null,null,{"$f":"Witness","v":"JAMES E. ZIOLKOWSKI"}]
[{"$f":"data_filing","v":"DATA: 12 MONTHS ACTUAL  & 0 MONTHS ESTIMATED"},null,null,null,null,null,null,null,null,null,null,null,null,null,null,null,null,{"$f":"\"PAGE \"&Pages2-3&\" OF \"&Pages2","v":"PAGE 12 OF 15"}]
[{"$f":"type","v":"TYPE OF FILING: \"X\" ORIGINAL   UPDATED    REVISED  "}]
[]
[null,null,null,null,null,{"$f":"F$7","v":"TOTAL"},null,{"$f":"H$7","v":"DS"},{"$f":"I$7","v":"GSFL"},{"$f":"J$7","v":"EH"},{"$f":"K$7","v":"SP"},"DT SEC","DT PRI","DP","TT",null,"OTHER"]
["LINE",null,null,null,null,{"$f":"F$8","v":"CLASS"},{"$f":"G$8","v":"RS"},{"$f":"H$8","v":"SECONDARY"},{"$f":"I$8","v":"SECONDARY"},{"$f":"J$8","v":"SECONDARY"},{"$f":"K$8","v":"SECONDARY"},"SECONDARY","PRIMARY","PRIMARY","TRANSMISSION","LT","WATER",{"$f":"R8","v":"TOTAL"},"ALL"]
["NO.","FEDERAL INCOME TAX BASED ON RETURN",null,"ALLO",null,{"$f":"F$9","v":"ALLOCATED"},{"$f":"G$9","v":"RESIDENTIAL"},{"$f":"H$9","v":"DISTRIBUTION"},{"$f":"I$9","v":"DISTRIBUTION"},{"$f":"J$9","v":"DISTRIBUTION"},{"$f":"K$9","v":"DISTRIBUTION"},"DISTRIBUTION","DISTRIBUTION","DISTRIBUTION","TIME OF DAY","LIGHTING","PUMPING",{"$f":"R9","v":"AT ISSUE"},"OTHER"]
[null,null,"Schedule 9",null,null,null,{"$f":"G$10","v":3},{"$f":"H$10","v":4},{"$f":"I$10","v":5},{"$f":"J$10","v":6},{"$f":"K$10","v":7},8,9,10,11,12,13,null," "]
[1,"FEDERAL INCOME TAX DEDUCTIONS"]
[2," AUTOMATIC INTEREST CALCULATION",null,null,null," "]
[3,null,{"$f":"'FR-16(7)(v)-1 Functional'!C632","v":"AUTO PROC INTEREST DED"},{"$f":"'FR-16(7)(v)-1 Functional'!D632","v":"RB99"},null,{"$f":"'FR-16(7)(v)-3 PROD Demand'!F632+'FR-16(7)(v)-4 PROD Energy'!F632+'FR-16(7)(v)-5 PROD Cust'!F632+'FR-16(7)(v)-7 TRANS Demand'!F632+'FR-16(7)(v)-8 TRANS Energy'!F632+'FR-16(7)(v)-9 TRANS Cust'!F632+'FR-16(7)(v)-11 DIST Demand'!F632+'FR-16(7)(v)-12 DIST Energy'!F632+'FR-16(7)(v)-13 DIST Cust'!F632-'FR-16(7)(v)-14 TOTAL CLASS'!F632","v":0},{"$f":"'FR-16(7)(v)-3 PROD Demand'!G632+'FR-16(7)(v)-4 PROD Energy'!G632+'FR-16(7)(v)-5 PROD Cust'!G632+'FR-16(7)(v)-7 TRANS Demand'!G632+'FR-16(7)(v)-8 TRANS Energy'!G632+'FR-16(7)(v)-9 TRANS Cust'!G632+'FR-16(7)(v)-11 DIST Demand'!G632+'FR-16(7)(v)-12 DIST Energy'!G632+'FR-16(7)(v)-13 DIST Cust'!G632-'FR-16(7)(v)-14 TOTAL CLASS'!G632","v":0},{"$f":"'FR-16(7)(v)-3 PROD Demand'!H632+'FR-16(7)(v)-4 PROD Energy'!H632+'FR-16(7)(v)-5 PROD Cust'!H632+'FR-16(7)(v)-7 TRANS Demand'!H632+'FR-16(7)(v)-8 TRANS Energy'!H632+'FR-16(7)(v)-9 TRANS Cust'!H632+'FR-16(7)(v)-11 DIST Demand'!H632+'FR-16(7)(v)-12 DIST Energy'!H632+'FR-16(7)(v)-13 DIST Cust'!H632-'FR-16(7)(v)-14 TOTAL CLASS'!H632","v":0},{"$f":"'FR-16(7)(v)-3 PROD Demand'!I632+'FR-16(7)(v)-4 PROD Energy'!I632+'FR-16(7)(v)-5 PROD Cust'!I632+'FR-16(7)(v)-7 TRANS Demand'!I632+'FR-16(7)(v)-8 TRANS Energy'!I632+'FR-16(7)(v)-9 TRANS Cust'!I632+'FR-16(7)(v)-11 DIST Demand'!I632+'FR-16(7)(v)-12 DIST Energy'!I632+'FR-16(7)(v)-13 DIST Cust'!I632-'FR-16(7)(v)-14 TOTAL CLASS'!I632","v":0},{"$f":"'FR-16(7)(v)-3 PROD Demand'!J632+'FR-16(7)(v)-4 PROD Energy'!J632+'FR-16(7)(v)-5 PROD Cust'!J632+'FR-16(7)(v)-7 TRANS Demand'!J632+'FR-16(7)(v)-8 TRANS Energy'!J632+'FR-16(7)(v)-9 TRANS Cust'!J632+'FR-16(7)(v)-11 DIST Demand'!J632+'FR-16(7)(v)-12 DIST Energy'!J632+'FR-16(7)(v)-13 DIST Cust'!J632-'FR-16(7)(v)-14 TOTAL CLASS'!J632","v":0},{"$f":"'FR-16(7)(v)-3 PROD Demand'!K632+'FR-16(7)(v)-4 PROD Energy'!K632+'FR-16(7)(v)-5 PROD Cust'!K632+'FR-16(7)(v)-7 TRANS Demand'!K632+'FR-16(7)(v)-8 TRANS Energy'!K632+'FR-16(7)(v)-9 TRANS Cust'!K632+'FR-16(7)(v)-11 DIST Demand'!K632+'FR-16(7)(v)-12 DIST Energy'!K632+'FR-16(7)(v)-13 DIST Cust'!K632-'FR-16(7)(v)-14 TOTAL CLASS'!K632","v":0},{"$f":"'FR-16(7)(v)-3 PROD Demand'!L632+'FR-16(7)(v)-4 PROD Energy'!L632+'FR-16(7)(v)-5 PROD Cust'!L632+'FR-16(7)(v)-7 TRANS Demand'!L632+'FR-16(7)(v)-8 TRANS Energy'!L632+'FR-16(7)(v)-9 TRANS Cust'!L632+'FR-16(7)(v)-11 DIST Demand'!L632+'FR-16(7)(v)-12 DIST Energy'!L632+'FR-16(7)(v)-13 DIST Cust'!L632-'FR-16(7)(v)-14 TOTAL CLASS'!L632","v":0},{"$f":"'FR-16(7)(v)-3 PROD Demand'!M632+'FR-16(7)(v)-4 PROD Energy'!M632+'FR-16(7)(v)-5 PROD Cust'!M632+'FR-16(7)(v)-7 TRANS Demand'!M632+'FR-16(7)(v)-8 TRANS Energy'!M632+'FR-16(7)(v)-9 TRANS Cust'!M632+'FR-16(7)(v)-11 DIST Demand'!M632+'FR-16(7)(v)-12 DIST Energy'!M632+'FR-16(7)(v)-13 DIST Cust'!M632-'FR-16(7)(v)-14 TOTAL CLASS'!M632","v":0},{"$f":"'FR-16(7)(v)-3 PROD Demand'!N632+'FR-16(7)(v)-4 PROD Energy'!N632+'FR-16(7)(v)-5 PROD Cust'!N632+'FR-16(7)(v)-7 TRANS Demand'!N632+'FR-16(7)(v)-8 TRANS Energy'!N632+'FR-16(7)(v)-9 TRANS Cust'!N632+'FR-16(7)(v)-11 DIST Demand'!N632+'FR-16(7)(v)-12 DIST Energy'!N632+'FR-16(7)(v)-13 DIST Cust'!N632-'FR-16(7)(v)-14 TOTAL CLASS'!N632","v":0},{"$f":"'FR-16(7)(v)-3 PROD Demand'!O632+'FR-16(7)(v)-4 PROD Energy'!O632+'FR-16(7)(v)-5 PROD Cust'!O632+'FR-16(7)(v)-7 TRANS Demand'!O632+'FR-16(7)(v)-8 TRANS Energy'!O632+'FR-16(7)(v)-9 TRANS Cust'!O632+'FR-16(7)(v)-11 DIST Demand'!O632+'FR-16(7)(v)-12 DIST Energy'!O632+'FR-16(7)(v)-13 DIST Cust'!O632-'FR-16(7)(v)-14 TOTAL CLASS'!O632","v":0},{"$f":"'FR-16(7)(v)-3 PROD Demand'!P632+'FR-16(7)(v)-4 PROD Energy'!P632+'FR-16(7)(v)-5 PROD Cust'!P632+'FR-16(7)(v)-7 TRANS Demand'!P632+'FR-16(7)(v)-8 TRANS Energy'!P632+'FR-16(7)(v)-9 TRANS Cust'!P632+'FR-16(7)(v)-11 DIST Demand'!P632+'FR-16(7)(v)-12 DIST Energy'!P632+'FR-16(7)(v)-13 DIST Cust'!P632-'FR-16(7)(v)-14 TOTAL CLASS'!P632","v":0},{"$f":"'FR-16(7)(v)-3 PROD Demand'!Q632+'FR-16(7)(v)-4 PROD Energy'!Q632+'FR-16(7)(v)-5 PROD Cust'!Q632+'FR-16(7)(v)-7 TRANS Demand'!Q632+'FR-16(7)(v)-8 TRANS Energy'!Q632+'FR-16(7)(v)-9 TRANS Cust'!Q632+'FR-16(7)(v)-11 DIST Demand'!Q632+'FR-16(7)(v)-12 DIST Energy'!Q632+'FR-16(7)(v)-13 DIST Cust'!Q632-'FR-16(7)(v)-14 TOTAL CLASS'!Q632","v":0},{"$f":"SUM(G632:Q632)","v":0},{"$f":"F632-R632","v":0}]
[4,null,{"$f":"'FR-16(7)(v)-1 Functional'!C633","v":"  TOTAL INTEREST EXPENSE"},null,null,{"$f":"F632","v":0},{"$f":"G632","v":0},{"$f":"H632","v":0},{"$f":"I632","v":0},{"$f":"J632","v":0},0,0,0,0,0,0,{"$f":"$Q$632","v":0},{"$f":"R632","v":0},{"$f":"S632","v":0}]
[5]
[6," OTHER DEDUCTIONS"]
[7,null,{"$f":"'FR-16(7)(v)-1 Functional'!C636","v":"DEPREC EXCESS TAX-BOOK"},{"$f":"'FR-16(7)(v)-1 Functional'!D636","v":"DE49"},null,{"$f":"'FR-16(7)(v)-3 PROD Demand'!F636+'FR-16(7)(v)-4 PROD Energy'!F636+'FR-16(7)(v)-5 PROD Cust'!F636+'FR-16(7)(v)-7 TRANS Demand'!F636+'FR-16(7)(v)-8 TRANS Energy'!F636+'FR-16(7)(v)-9 TRANS Cust'!F636+'FR-16(7)(v)-11 DIST Demand'!F636+'FR-16(7)(v)-12 DIST Energy'!F636+'FR-16(7)(v)-13 DIST Cust'!F636-'FR-16(7)(v)-14 TOTAL CLASS'!F636","v":0},{"$f":"'FR-16(7)(v)-3 PROD Demand'!G636+'FR-16(7)(v)-4 PROD Energy'!G636+'FR-16(7)(v)-5 PROD Cust'!G636+'FR-16(7)(v)-7 TRANS Demand'!G636+'FR-16(7)(v)-8 TRANS Energy'!G636+'FR-16(7)(v)-9 TRANS Cust'!G636+'FR-16(7)(v)-11 DIST Demand'!G636+'FR-16(7)(v)-12 DIST Energy'!G636+'FR-16(7)(v)-13 DIST Cust'!G636-'FR-16(7)(v)-14 TOTAL CLASS'!G636","v":0},{"$f":"'FR-16(7)(v)-3 PROD Demand'!H636+'FR-16(7)(v)-4 PROD Energy'!H636+'FR-16(7)(v)-5 PROD Cust'!H636+'FR-16(7)(v)-7 TRANS Demand'!H636+'FR-16(7)(v)-8 TRANS Energy'!H636+'FR-16(7)(v)-9 TRANS Cust'!H636+'FR-16(7)(v)-11 DIST Demand'!H636+'FR-16(7)(v)-12 DIST Energy'!H636+'FR-16(7)(v)-13 DIST Cust'!H636-'FR-16(7)(v)-14 TOTAL CLASS'!H636","v":0},{"$f":"'FR-16(7)(v)-3 PROD Demand'!I636+'FR-16(7)(v)-4 PROD Energy'!I636+'FR-16(7)(v)-5 PROD Cust'!I636+'FR-16(7)(v)-7 TRANS Demand'!I636+'FR-16(7)(v)-8 TRANS Energy'!I636+'FR-16(7)(v)-9 TRANS Cust'!I636+'FR-16(7)(v)-11 DIST Demand'!I636+'FR-16(7)(v)-12 DIST Energy'!I636+'FR-16(7)(v)-13 DIST Cust'!I636-'FR-16(7)(v)-14 TOTAL CLASS'!I636","v":0},{"$f":"'FR-16(7)(v)-3 PROD Demand'!J636+'FR-16(7)(v)-4 PROD Energy'!J636+'FR-16(7)(v)-5 PROD Cust'!J636+'FR-16(7)(v)-7 TRANS Demand'!J636+'FR-16(7)(v)-8 TRANS Energy'!J636+'FR-16(7)(v)-9 TRANS Cust'!J636+'FR-16(7)(v)-11 DIST Demand'!J636+'FR-16(7)(v)-12 DIST Energy'!J636+'FR-16(7)(v)-13 DIST Cust'!J636-'FR-16(7)(v)-14 TOTAL CLASS'!J636","v":0},{"$f":"'FR-16(7)(v)-3 PROD Demand'!K636+'FR-16(7)(v)-4 PROD Energy'!K636+'FR-16(7)(v)-5 PROD Cust'!K636+'FR-16(7)(v)-7 TRANS Demand'!K636+'FR-16(7)(v)-8 TRANS Energy'!K636+'FR-16(7)(v)-9 TRANS Cust'!K636+'FR-16(7)(v)-11 DIST Demand'!K636+'FR-16(7)(v)-12 DIST Energy'!K636+'FR-16(7)(v)-13 DIST Cust'!K636-'FR-16(7)(v)-14 TOTAL CLASS'!K636","v":0},{"$f":"'FR-16(7)(v)-3 PROD Demand'!L636+'FR-16(7)(v)-4 PROD Energy'!L636+'FR-16(7)(v)-5 PROD Cust'!L636+'FR-16(7)(v)-7 TRANS Demand'!L636+'FR-16(7)(v)-8 TRANS Energy'!L636+'FR-16(7)(v)-9 TRANS Cust'!L636+'FR-16(7)(v)-11 DIST Demand'!L636+'FR-16(7)(v)-12 DIST Energy'!L636+'FR-16(7)(v)-13 DIST Cust'!L636-'FR-16(7)(v)-14 TOTAL CLASS'!L636","v":0},{"$f":"'FR-16(7)(v)-3 PROD Demand'!M636+'FR-16(7)(v)-4 PROD Energy'!M636+'FR-16(7)(v)-5 PROD Cust'!M636+'FR-16(7)(v)-7 TRANS Demand'!M636+'FR-16(7)(v)-8 TRANS Energy'!M636+'FR-16(7)(v)-9 TRANS Cust'!M636+'FR-16(7)(v)-11 DIST Demand'!M636+'FR-16(7)(v)-12 DIST Energy'!M636+'FR-16(7)(v)-13 DIST Cust'!M636-'FR-16(7)(v)-14 TOTAL CLASS'!M636","v":0},{"$f":"'FR-16(7)(v)-3 PROD Demand'!N636+'FR-16(7)(v)-4 PROD Energy'!N636+'FR-16(7)(v)-5 PROD Cust'!N636+'FR-16(7)(v)-7 TRANS Demand'!N636+'FR-16(7)(v)-8 TRANS Energy'!N636+'FR-16(7)(v)-9 TRANS Cust'!N636+'FR-16(7)(v)-11 DIST Demand'!N636+'FR-16(7)(v)-12 DIST Energy'!N636+'FR-16(7)(v)-13 DIST Cust'!N636-'FR-16(7)(v)-14 TOTAL CLASS'!N636","v":0},{"$f":"'FR-16(7)(v)-3 PROD Demand'!O636+'FR-16(7)(v)-4 PROD Energy'!O636+'FR-16(7)(v)-5 PROD Cust'!O636+'FR-16(7)(v)-7 TRANS Demand'!O636+'FR-16(7)(v)-8 TRANS Energy'!O636+'FR-16(7)(v)-9 TRANS Cust'!O636+'FR-16(7)(v)-11 DIST Demand'!O636+'FR-16(7)(v)-12 DIST Energy'!O636+'FR-16(7)(v)-13 DIST Cust'!O636-'FR-16(7)(v)-14 TOTAL CLASS'!O636","v":0},{"$f":"'FR-16(7)(v)-3 PROD Demand'!P636+'FR-16(7)(v)-4 PROD Energy'!P636+'FR-16(7)(v)-5 PROD Cust'!P636+'FR-16(7)(v)-7 TRANS Demand'!P636+'FR-16(7)(v)-8 TRANS Energy'!P636+'FR-16(7)(v)-9 TRANS Cust'!P636+'FR-16(7)(v)-11 DIST Demand'!P636+'FR-16(7)(v)-12 DIST Energy'!P636+'FR-16(7)(v)-13 DIST Cust'!P636-'FR-16(7)(v)-14 TOTAL CLASS'!P636","v":0},{"$f":"'FR-16(7)(v)-3 PROD Demand'!Q636+'FR-16(7)(v)-4 PROD Energy'!Q636+'FR-16(7)(v)-5 PROD Cust'!Q636+'FR-16(7)(v)-7 TRANS Demand'!Q636+'FR-16(7)(v)-8 TRANS Energy'!Q636+'FR-16(7)(v)-9 TRANS Cust'!Q636+'FR-16(7)(v)-11 DIST Demand'!Q636+'FR-16(7)(v)-12 DIST Energy'!Q636+'FR-16(7)(v)-13 DIST Cust'!Q636-'FR-16(7)(v)-14 TOTAL CLASS'!Q636","v":0},{"$f":"SUM(G636:Q636)","v":0},{"$f":"F636-R636","v":0}]
[8,null,{"$f":"'FR-16(7)(v)-1 Functional'!C637","v":"PERMANENT DIFFERENCES"},{"$f":"'FR-16(7)(v)-1 Functional'!D637","v":"A357"},null,{"$f":"'FR-16(7)(v)-3 PROD Demand'!F637+'FR-16(7)(v)-4 PROD Energy'!F637+'FR-16(7)(v)-5 PROD Cust'!F637+'FR-16(7)(v)-7 TRANS Demand'!F637+'FR-16(7)(v)-8 TRANS Energy'!F637+'FR-16(7)(v)-9 TRANS Cust'!F637+'FR-16(7)(v)-11 DIST Demand'!F637+'FR-16(7)(v)-12 DIST Energy'!F637+'FR-16(7)(v)-13 DIST Cust'!F637-'FR-16(7)(v)-14 TOTAL CLASS'!F637","v":0},{"$f":"'FR-16(7)(v)-3 PROD Demand'!G637+'FR-16(7)(v)-4 PROD Energy'!G637+'FR-16(7)(v)-5 PROD Cust'!G637+'FR-16(7)(v)-7 TRANS Demand'!G637+'FR-16(7)(v)-8 TRANS Energy'!G637+'FR-16(7)(v)-9 TRANS Cust'!G637+'FR-16(7)(v)-11 DIST Demand'!G637+'FR-16(7)(v)-12 DIST Energy'!G637+'FR-16(7)(v)-13 DIST Cust'!G637-'FR-16(7)(v)-14 TOTAL CLASS'!G637","v":0},{"$f":"'FR-16(7)(v)-3 PROD Demand'!H637+'FR-16(7)(v)-4 PROD Energy'!H637+'FR-16(7)(v)-5 PROD Cust'!H637+'FR-16(7)(v)-7 TRANS Demand'!H637+'FR-16(7)(v)-8 TRANS Energy'!H637+'FR-16(7)(v)-9 TRANS Cust'!H637+'FR-16(7)(v)-11 DIST Demand'!H637+'FR-16(7)(v)-12 DIST Energy'!H637+'FR-16(7)(v)-13 DIST Cust'!H637-'FR-16(7)(v)-14 TOTAL CLASS'!H637","v":0},{"$f":"'FR-16(7)(v)-3 PROD Demand'!I637+'FR-16(7)(v)-4 PROD Energy'!I637+'FR-16(7)(v)-5 PROD Cust'!I637+'FR-16(7)(v)-7 TRANS Demand'!I637+'FR-16(7)(v)-8 TRANS Energy'!I637+'FR-16(7)(v)-9 TRANS Cust'!I637+'FR-16(7)(v)-11 DIST Demand'!I637+'FR-16(7)(v)-12 DIST Energy'!I637+'FR-16(7)(v)-13 DIST Cust'!I637-'FR-16(7)(v)-14 TOTAL CLASS'!I637","v":0},{"$f":"'FR-16(7)(v)-3 PROD Demand'!J637+'FR-16(7)(v)-4 PROD Energy'!J637+'FR-16(7)(v)-5 PROD Cust'!J637+'FR-16(7)(v)-7 TRANS Demand'!J637+'FR-16(7)(v)-8 TRANS Energy'!J637+'FR-16(7)(v)-9 TRANS Cust'!J637+'FR-16(7)(v)-11 DIST Demand'!J637+'FR-16(7)(v)-12 DIST Energy'!J637+'FR-16(7)(v)-13 DIST Cust'!J637-'FR-16(7)(v)-14 TOTAL CLASS'!J637","v":0},{"$f":"'FR-16(7)(v)-3 PROD Demand'!K637+'FR-16(7)(v)-4 PROD Energy'!K637+'FR-16(7)(v)-5 PROD Cust'!K637+'FR-16(7)(v)-7 TRANS Demand'!K637+'FR-16(7)(v)-8 TRANS Energy'!K637+'FR-16(7)(v)-9 TRANS Cust'!K637+'FR-16(7)(v)-11 DIST Demand'!K637+'FR-16(7)(v)-12 DIST Energy'!K637+'FR-16(7)(v)-13 DIST Cust'!K637-'FR-16(7)(v)-14 TOTAL CLASS'!K637","v":0},{"$f":"'FR-16(7)(v)-3 PROD Demand'!L637+'FR-16(7)(v)-4 PROD Energy'!L637+'FR-16(7)(v)-5 PROD Cust'!L637+'FR-16(7)(v)-7 TRANS Demand'!L637+'FR-16(7)(v)-8 TRANS Energy'!L637+'FR-16(7)(v)-9 TRANS Cust'!L637+'FR-16(7)(v)-11 DIST Demand'!L637+'FR-16(7)(v)-12 DIST Energy'!L637+'FR-16(7)(v)-13 DIST Cust'!L637-'FR-16(7)(v)-14 TOTAL CLASS'!L637","v":0},{"$f":"'FR-16(7)(v)-3 PROD Demand'!M637+'FR-16(7)(v)-4 PROD Energy'!M637+'FR-16(7)(v)-5 PROD Cust'!M637+'FR-16(7)(v)-7 TRANS Demand'!M637+'FR-16(7)(v)-8 TRANS Energy'!M637+'FR-16(7)(v)-9 TRANS Cust'!M637+'FR-16(7)(v)-11 DIST Demand'!M637+'FR-16(7)(v)-12 DIST Energy'!M637+'FR-16(7)(v)-13 DIST Cust'!M637-'FR-16(7)(v)-14 TOTAL CLASS'!M637","v":0},{"$f":"'FR-16(7)(v)-3 PROD Demand'!N637+'FR-16(7)(v)-4 PROD Energy'!N637+'FR-16(7)(v)-5 PROD Cust'!N637+'FR-16(7)(v)-7 TRANS Demand'!N637+'FR-16(7)(v)-8 TRANS Energy'!N637+'FR-16(7)(v)-9 TRANS Cust'!N637+'FR-16(7)(v)-11 DIST Demand'!N637+'FR-16(7)(v)-12 DIST Energy'!N637+'FR-16(7)(v)-13 DIST Cust'!N637-'FR-16(7)(v)-14 TOTAL CLASS'!N637","v":0},{"$f":"'FR-16(7)(v)-3 PROD Demand'!O637+'FR-16(7)(v)-4 PROD Energy'!O637+'FR-16(7)(v)-5 PROD Cust'!O637+'FR-16(7)(v)-7 TRANS Demand'!O637+'FR-16(7)(v)-8 TRANS Energy'!O637+'FR-16(7)(v)-9 TRANS Cust'!O637+'FR-16(7)(v)-11 DIST Demand'!O637+'FR-16(7)(v)-12 DIST Energy'!O637+'FR-16(7)(v)-13 DIST Cust'!O637-'FR-16(7)(v)-14 TOTAL CLASS'!O637","v":0},{"$f":"'FR-16(7)(v)-3 PROD Demand'!P637+'FR-16(7)(v)-4 PROD Energy'!P637+'FR-16(7)(v)-5 PROD Cust'!P637+'FR-16(7)(v)-7 TRANS Demand'!P637+'FR-16(7)(v)-8 TRANS Energy'!P637+'FR-16(7)(v)-9 TRANS Cust'!P637+'FR-16(7)(v)-11 DIST Demand'!P637+'FR-16(7)(v)-12 DIST Energy'!P637+'FR-16(7)(v)-13 DIST Cust'!P637-'FR-16(7)(v)-14 TOTAL CLASS'!P637","v":0},{"$f":"'FR-16(7)(v)-3 PROD Demand'!Q637+'FR-16(7)(v)-4 PROD Energy'!Q637+'FR-16(7)(v)-5 PROD Cust'!Q637+'FR-16(7)(v)-7 TRANS Demand'!Q637+'FR-16(7)(v)-8 TRANS Energy'!Q637+'FR-16(7)(v)-9 TRANS Cust'!Q637+'FR-16(7)(v)-11 DIST Demand'!Q637+'FR-16(7)(v)-12 DIST Energy'!Q637+'FR-16(7)(v)-13 DIST Cust'!Q637-'FR-16(7)(v)-14 TOTAL CLASS'!Q637","v":0},{"$f":"SUM(G637:Q637)","v":0},{"$f":"F637-R637","v":0}]
[9,null,{"$f":"'FR-16(7)(v)-1 Functional'!C638","v":"TEMPORARY DIFFERENCES"},{"$f":"'FR-16(7)(v)-1 Functional'!D638","v":"DE49"},null,{"$f":"'FR-16(7)(v)-3 PROD Demand'!F638+'FR-16(7)(v)-4 PROD Energy'!F638+'FR-16(7)(v)-5 PROD Cust'!F638+'FR-16(7)(v)-7 TRANS Demand'!F638+'FR-16(7)(v)-8 TRANS Energy'!F638+'FR-16(7)(v)-9 TRANS Cust'!F638+'FR-16(7)(v)-11 DIST Demand'!F638+'FR-16(7)(v)-12 DIST Energy'!F638+'FR-16(7)(v)-13 DIST Cust'!F638-'FR-16(7)(v)-14 TOTAL CLASS'!F638","v":0},{"$f":"'FR-16(7)(v)-3 PROD Demand'!G638+'FR-16(7)(v)-4 PROD Energy'!G638+'FR-16(7)(v)-5 PROD Cust'!G638+'FR-16(7)(v)-7 TRANS Demand'!G638+'FR-16(7)(v)-8 TRANS Energy'!G638+'FR-16(7)(v)-9 TRANS Cust'!G638+'FR-16(7)(v)-11 DIST Demand'!G638+'FR-16(7)(v)-12 DIST Energy'!G638+'FR-16(7)(v)-13 DIST Cust'!G638-'FR-16(7)(v)-14 TOTAL CLASS'!G638","v":0},{"$f":"'FR-16(7)(v)-3 PROD Demand'!H638+'FR-16(7)(v)-4 PROD Energy'!H638+'FR-16(7)(v)-5 PROD Cust'!H638+'FR-16(7)(v)-7 TRANS Demand'!H638+'FR-16(7)(v)-8 TRANS Energy'!H638+'FR-16(7)(v)-9 TRANS Cust'!H638+'FR-16(7)(v)-11 DIST Demand'!H638+'FR-16(7)(v)-12 DIST Energy'!H638+'FR-16(7)(v)-13 DIST Cust'!H638-'FR-16(7)(v)-14 TOTAL CLASS'!H638","v":0},{"$f":"'FR-16(7)(v)-3 PROD Demand'!I638+'FR-16(7)(v)-4 PROD Energy'!I638+'FR-16(7)(v)-5 PROD Cust'!I638+'FR-16(7)(v)-7 TRANS Demand'!I638+'FR-16(7)(v)-8 TRANS Energy'!I638+'FR-16(7)(v)-9 TRANS Cust'!I638+'FR-16(7)(v)-11 DIST Demand'!I638+'FR-16(7)(v)-12 DIST Energy'!I638+'FR-16(7)(v)-13 DIST Cust'!I638-'FR-16(7)(v)-14 TOTAL CLASS'!I638","v":0},{"$f":"'FR-16(7)(v)-3 PROD Demand'!J638+'FR-16(7)(v)-4 PROD Energy'!J638+'FR-16(7)(v)-5 PROD Cust'!J638+'FR-16(7)(v)-7 TRANS Demand'!J638+'FR-16(7)(v)-8 TRANS Energy'!J638+'FR-16(7)(v)-9 TRANS Cust'!J638+'FR-16(7)(v)-11 DIST Demand'!J638+'FR-16(7)(v)-12 DIST Energy'!J638+'FR-16(7)(v)-13 DIST Cust'!J638-'FR-16(7)(v)-14 TOTAL CLASS'!J638","v":0},{"$f":"'FR-16(7)(v)-3 PROD Demand'!K638+'FR-16(7)(v)-4 PROD Energy'!K638+'FR-16(7)(v)-5 PROD Cust'!K638+'FR-16(7)(v)-7 TRANS Demand'!K638+'FR-16(7)(v)-8 TRANS Energy'!K638+'FR-16(7)(v)-9 TRANS Cust'!K638+'FR-16(7)(v)-11 DIST Demand'!K638+'FR-16(7)(v)-12 DIST Energy'!K638+'FR-16(7)(v)-13 DIST Cust'!K638-'FR-16(7)(v)-14 TOTAL CLASS'!K638","v":0},{"$f":"'FR-16(7)(v)-3 PROD Demand'!L638+'FR-16(7)(v)-4 PROD Energy'!L638+'FR-16(7)(v)-5 PROD Cust'!L638+'FR-16(7)(v)-7 TRANS Demand'!L638+'FR-16(7)(v)-8 TRANS Energy'!L638+'FR-16(7)(v)-9 TRANS Cust'!L638+'FR-16(7)(v)-11 DIST Demand'!L638+'FR-16(7)(v)-12 DIST Energy'!L638+'FR-16(7)(v)-13 DIST Cust'!L638-'FR-16(7)(v)-14 TOTAL CLASS'!L638","v":0},{"$f":"'FR-16(7)(v)-3 PROD Demand'!M638+'FR-16(7)(v)-4 PROD Energy'!M638+'FR-16(7)(v)-5 PROD Cust'!M638+'FR-16(7)(v)-7 TRANS Demand'!M638+'FR-16(7)(v)-8 TRANS Energy'!M638+'FR-16(7)(v)-9 TRANS Cust'!M638+'FR-16(7)(v)-11 DIST Demand'!M638+'FR-16(7)(v)-12 DIST Energy'!M638+'FR-16(7)(v)-13 DIST Cust'!M638-'FR-16(7)(v)-14 TOTAL CLASS'!M638","v":0},{"$f":"'FR-16(7)(v)-3 PROD Demand'!N638+'FR-16(7)(v)-4 PROD Energy'!N638+'FR-16(7)(v)-5 PROD Cust'!N638+'FR-16(7)(v)-7 TRANS Demand'!N638+'FR-16(7)(v)-8 TRANS Energy'!N638+'FR-16(7)(v)-9 TRANS Cust'!N638+'FR-16(7)(v)-11 DIST Demand'!N638+'FR-16(7)(v)-12 DIST Energy'!N638+'FR-16(7)(v)-13 DIST Cust'!N638-'FR-16(7)(v)-14 TOTAL CLASS'!N638","v":0},{"$f":"'FR-16(7)(v)-3 PROD Demand'!O638+'FR-16(7)(v)-4 PROD Energy'!O638+'FR-16(7)(v)-5 PROD Cust'!O638+'FR-16(7)(v)-7 TRANS Demand'!O638+'FR-16(7)(v)-8 TRANS Energy'!O638+'FR-16(7)(v)-9 TRANS Cust'!O638+'FR-16(7)(v)-11 DIST Demand'!O638+'FR-16(7)(v)-12 DIST Energy'!O638+'FR-16(7)(v)-13 DIST Cust'!O638-'FR-16(7)(v)-14 TOTAL CLASS'!O638","v":0},{"$f":"'FR-16(7)(v)-3 PROD Demand'!P638+'FR-16(7)(v)-4 PROD Energy'!P638+'FR-16(7)(v)-5 PROD Cust'!P638+'FR-16(7)(v)-7 TRANS Demand'!P638+'FR-16(7)(v)-8 TRANS Energy'!P638+'FR-16(7)(v)-9 TRANS Cust'!P638+'FR-16(7)(v)-11 DIST Demand'!P638+'FR-16(7)(v)-12 DIST Energy'!P638+'FR-16(7)(v)-13 DIST Cust'!P638-'FR-16(7)(v)-14 TOTAL CLASS'!P638","v":0},{"$f":"'FR-16(7)(v)-3 PROD Demand'!Q638+'FR-16(7)(v)-4 PROD Energy'!Q638+'FR-16(7)(v)-5 PROD Cust'!Q638+'FR-16(7)(v)-7 TRANS Demand'!Q638+'FR-16(7)(v)-8 TRANS Energy'!Q638+'FR-16(7)(v)-9 TRANS Cust'!Q638+'FR-16(7)(v)-11 DIST Demand'!Q638+'FR-16(7)(v)-12 DIST Energy'!Q638+'FR-16(7)(v)-13 DIST Cust'!Q638-'FR-16(7)(v)-14 TOTAL CLASS'!Q638","v":0},{"$f":"SUM(G638:Q638)","v":0},{"$f":"F638-R638","v":0}]
[10,null,{"$f":"'FR-16(7)(v)-1 Functional'!C639","v":"  TOTAL OTHER DEDUCTIONS"},null,null,{"$f":"SUM(F636:F638)","v":0},{"$f":"SUM(G636:G638)","v":0},{"$f":"SUM(H636:H638)","v":0},{"$f":"SUM(I636:I638)","v":0},{"$f":"SUM(J636:J638)","v":0},0,0,0,0,0,0,{"$f":"SUM($Q$636:$Q$638)","v":0},{"$f":"SUM(R636:R638)","v":0},{"$f":"SUM(S636:S638)","v":0}]
[11]
[12,"NET DEDUCTIONS AND ADDITIONS",null,null,null,{"$f":"F639+F633","v":0},{"$f":"G639+G633","v":0},{"$f":"H639+H633","v":0},{"$f":"I639+I633","v":0},{"$f":"J639+J633","v":0},0,0,0,0,0,0,{"$f":"$Q$639+$Q$633","v":0},{"$f":"R639+R633","v":0},{"$f":"S639+S633","v":0}]
[13]
[14," FED DEFERRED INCOME TAX (410 & 411)"]
[15,null,{"$f":"'FR-16(7)(v)-1 Functional'!C644","v":"DEFERRED INCOME TAXES - NET"},{"$f":"'FR-16(7)(v)-1 Functional'!D644","v":"OM39"},null,{"$f":"'FR-16(7)(v)-3 PROD Demand'!F644+'FR-16(7)(v)-4 PROD Energy'!F644+'FR-16(7)(v)-5 PROD Cust'!F644+'FR-16(7)(v)-7 TRANS Demand'!F644+'FR-16(7)(v)-8 TRANS Energy'!F644+'FR-16(7)(v)-9 TRANS Cust'!F644+'FR-16(7)(v)-11 DIST Demand'!F644+'FR-16(7)(v)-12 DIST Energy'!F644+'FR-16(7)(v)-13 DIST Cust'!F644-'FR-16(7)(v)-14 TOTAL CLASS'!F644","v":-139},{"$f":"'FR-16(7)(v)-3 PROD Demand'!G644+'FR-16(7)(v)-4 PROD Energy'!G644+'FR-16(7)(v)-5 PROD Cust'!G644+'FR-16(7)(v)-7 TRANS Demand'!G644+'FR-16(7)(v)-8 TRANS Energy'!G644+'FR-16(7)(v)-9 TRANS Cust'!G644+'FR-16(7)(v)-11 DIST Demand'!G644+'FR-16(7)(v)-12 DIST Energy'!G644+'FR-16(7)(v)-13 DIST Cust'!G644-'FR-16(7)(v)-14 TOTAL CLASS'!G644","v":0},{"$f":"'FR-16(7)(v)-3 PROD Demand'!H644+'FR-16(7)(v)-4 PROD Energy'!H644+'FR-16(7)(v)-5 PROD Cust'!H644+'FR-16(7)(v)-7 TRANS Demand'!H644+'FR-16(7)(v)-8 TRANS Energy'!H644+'FR-16(7)(v)-9 TRANS Cust'!H644+'FR-16(7)(v)-11 DIST Demand'!H644+'FR-16(7)(v)-12 DIST Energy'!H644+'FR-16(7)(v)-13 DIST Cust'!H644-'FR-16(7)(v)-14 TOTAL CLASS'!H644","v":0},{"$f":"'FR-16(7)(v)-3 PROD Demand'!I644+'FR-16(7)(v)-4 PROD Energy'!I644+'FR-16(7)(v)-5 PROD Cust'!I644+'FR-16(7)(v)-7 TRANS Demand'!I644+'FR-16(7)(v)-8 TRANS Energy'!I644+'FR-16(7)(v)-9 TRANS Cust'!I644+'FR-16(7)(v)-11 DIST Demand'!I644+'FR-16(7)(v)-12 DIST Energy'!I644+'FR-16(7)(v)-13 DIST Cust'!I644-'FR-16(7)(v)-14 TOTAL CLASS'!I644","v":0},{"$f":"'FR-16(7)(v)-3 PROD Demand'!J644+'FR-16(7)(v)-4 PROD Energy'!J644+'FR-16(7)(v)-5 PROD Cust'!J644+'FR-16(7)(v)-7 TRANS Demand'!J644+'FR-16(7)(v)-8 TRANS Energy'!J644+'FR-16(7)(v)-9 TRANS Cust'!J644+'FR-16(7)(v)-11 DIST Demand'!J644+'FR-16(7)(v)-12 DIST Energy'!J644+'FR-16(7)(v)-13 DIST Cust'!J644-'FR-16(7)(v)-14 TOTAL CLASS'!J644","v":0},{"$f":"'FR-16(7)(v)-3 PROD Demand'!K644+'FR-16(7)(v)-4 PROD Energy'!K644+'FR-16(7)(v)-5 PROD Cust'!K644+'FR-16(7)(v)-7 TRANS Demand'!K644+'FR-16(7)(v)-8 TRANS Energy'!K644+'FR-16(7)(v)-9 TRANS Cust'!K644+'FR-16(7)(v)-11 DIST Demand'!K644+'FR-16(7)(v)-12 DIST Energy'!K644+'FR-16(7)(v)-13 DIST Cust'!K644-'FR-16(7)(v)-14 TOTAL CLASS'!K644","v":0},{"$f":"'FR-16(7)(v)-3 PROD Demand'!L644+'FR-16(7)(v)-4 PROD Energy'!L644+'FR-16(7)(v)-5 PROD Cust'!L644+'FR-16(7)(v)-7 TRANS Demand'!L644+'FR-16(7)(v)-8 TRANS Energy'!L644+'FR-16(7)(v)-9 TRANS Cust'!L644+'FR-16(7)(v)-11 DIST Demand'!L644+'FR-16(7)(v)-12 DIST Energy'!L644+'FR-16(7)(v)-13 DIST Cust'!L644-'FR-16(7)(v)-14 TOTAL CLASS'!L644","v":0},{"$f":"'FR-16(7)(v)-3 PROD Demand'!M644+'FR-16(7)(v)-4 PROD Energy'!M644+'FR-16(7)(v)-5 PROD Cust'!M644+'FR-16(7)(v)-7 TRANS Demand'!M644+'FR-16(7)(v)-8 TRANS Energy'!M644+'FR-16(7)(v)-9 TRANS Cust'!M644+'FR-16(7)(v)-11 DIST Demand'!M644+'FR-16(7)(v)-12 DIST Energy'!M644+'FR-16(7)(v)-13 DIST Cust'!M644-'FR-16(7)(v)-14 TOTAL CLASS'!M644","v":0},{"$f":"'FR-16(7)(v)-3 PROD Demand'!N644+'FR-16(7)(v)-4 PROD Energy'!N644+'FR-16(7)(v)-5 PROD Cust'!N644+'FR-16(7)(v)-7 TRANS Demand'!N644+'FR-16(7)(v)-8 TRANS Energy'!N644+'FR-16(7)(v)-9 TRANS Cust'!N644+'FR-16(7)(v)-11 DIST Demand'!N644+'FR-16(7)(v)-12 DIST Energy'!N644+'FR-16(7)(v)-13 DIST Cust'!N644-'FR-16(7)(v)-14 TOTAL CLASS'!N644","v":0},{"$f":"'FR-16(7)(v)-3 PROD Demand'!O644+'FR-16(7)(v)-4 PROD Energy'!O644+'FR-16(7)(v)-5 PROD Cust'!O644+'FR-16(7)(v)-7 TRANS Demand'!O644+'FR-16(7)(v)-8 TRANS Energy'!O644+'FR-16(7)(v)-9 TRANS Cust'!O644+'FR-16(7)(v)-11 DIST Demand'!O644+'FR-16(7)(v)-12 DIST Energy'!O644+'FR-16(7)(v)-13 DIST Cust'!O644-'FR-16(7)(v)-14 TOTAL CLASS'!O644","v":0},{"$f":"'FR-16(7)(v)-3 PROD Demand'!P644+'FR-16(7)(v)-4 PROD Energy'!P644+'FR-16(7)(v)-5 PROD Cust'!P644+'FR-16(7)(v)-7 TRANS Demand'!P644+'FR-16(7)(v)-8 TRANS Energy'!P644+'FR-16(7)(v)-9 TRANS Cust'!P644+'FR-16(7)(v)-11 DIST Demand'!P644+'FR-16(7)(v)-12 DIST Energy'!P644+'FR-16(7)(v)-13 DIST Cust'!P644-'FR-16(7)(v)-14 TOTAL CLASS'!P644","v":0},{"$f":"'FR-16(7)(v)-3 PROD Demand'!Q644+'FR-16(7)(v)-4 PROD Energy'!Q644+'FR-16(7)(v)-5 PROD Cust'!Q644+'FR-16(7)(v)-7 TRANS Demand'!Q644+'FR-16(7)(v)-8 TRANS Energy'!Q644+'FR-16(7)(v)-9 TRANS Cust'!Q644+'FR-16(7)(v)-11 DIST Demand'!Q644+'FR-16(7)(v)-12 DIST Energy'!Q644+'FR-16(7)(v)-13 DIST Cust'!Q644-'FR-16(7)(v)-14 TOTAL CLASS'!Q644","v":0},{"$f":"SUM(G644:Q644)","v":0},{"$f":"F644-R644","v":-139}]
[16,null,{"$f":"'FR-16(7)(v)-1 Functional'!C645","v":"AMORT OF DEFERRED MERGER COST"},{"$f":"'FR-16(7)(v)-1 Functional'!D645","v":"A357"},null,{"$f":"'FR-16(7)(v)-3 PROD Demand'!F645+'FR-16(7)(v)-4 PROD Energy'!F645+'FR-16(7)(v)-5 PROD Cust'!F645+'FR-16(7)(v)-7 TRANS Demand'!F645+'FR-16(7)(v)-8 TRANS Energy'!F645+'FR-16(7)(v)-9 TRANS Cust'!F645+'FR-16(7)(v)-11 DIST Demand'!F645+'FR-16(7)(v)-12 DIST Energy'!F645+'FR-16(7)(v)-13 DIST Cust'!F645-'FR-16(7)(v)-14 TOTAL CLASS'!F645","v":0},{"$f":"'FR-16(7)(v)-3 PROD Demand'!G645+'FR-16(7)(v)-4 PROD Energy'!G645+'FR-16(7)(v)-5 PROD Cust'!G645+'FR-16(7)(v)-7 TRANS Demand'!G645+'FR-16(7)(v)-8 TRANS Energy'!G645+'FR-16(7)(v)-9 TRANS Cust'!G645+'FR-16(7)(v)-11 DIST Demand'!G645+'FR-16(7)(v)-12 DIST Energy'!G645+'FR-16(7)(v)-13 DIST Cust'!G645-'FR-16(7)(v)-14 TOTAL CLASS'!G645","v":0},{"$f":"'FR-16(7)(v)-3 PROD Demand'!H645+'FR-16(7)(v)-4 PROD Energy'!H645+'FR-16(7)(v)-5 PROD Cust'!H645+'FR-16(7)(v)-7 TRANS Demand'!H645+'FR-16(7)(v)-8 TRANS Energy'!H645+'FR-16(7)(v)-9 TRANS Cust'!H645+'FR-16(7)(v)-11 DIST Demand'!H645+'FR-16(7)(v)-12 DIST Energy'!H645+'FR-16(7)(v)-13 DIST Cust'!H645-'FR-16(7)(v)-14 TOTAL CLASS'!H645","v":0},{"$f":"'FR-16(7)(v)-3 PROD Demand'!I645+'FR-16(7)(v)-4 PROD Energy'!I645+'FR-16(7)(v)-5 PROD Cust'!I645+'FR-16(7)(v)-7 TRANS Demand'!I645+'FR-16(7)(v)-8 TRANS Energy'!I645+'FR-16(7)(v)-9 TRANS Cust'!I645+'FR-16(7)(v)-11 DIST Demand'!I645+'FR-16(7)(v)-12 DIST Energy'!I645+'FR-16(7)(v)-13 DIST Cust'!I645-'FR-16(7)(v)-14 TOTAL CLASS'!I645","v":0},{"$f":"'FR-16(7)(v)-3 PROD Demand'!J645+'FR-16(7)(v)-4 PROD Energy'!J645+'FR-16(7)(v)-5 PROD Cust'!J645+'FR-16(7)(v)-7 TRANS Demand'!J645+'FR-16(7)(v)-8 TRANS Energy'!J645+'FR-16(7)(v)-9 TRANS Cust'!J645+'FR-16(7)(v)-11 DIST Demand'!J645+'FR-16(7)(v)-12 DIST Energy'!J645+'FR-16(7)(v)-13 DIST Cust'!J645-'FR-16(7)(v)-14 TOTAL CLASS'!J645","v":0},{"$f":"'FR-16(7)(v)-3 PROD Demand'!K645+'FR-16(7)(v)-4 PROD Energy'!K645+'FR-16(7)(v)-5 PROD Cust'!K645+'FR-16(7)(v)-7 TRANS Demand'!K645+'FR-16(7)(v)-8 TRANS Energy'!K645+'FR-16(7)(v)-9 TRANS Cust'!K645+'FR-16(7)(v)-11 DIST Demand'!K645+'FR-16(7)(v)-12 DIST Energy'!K645+'FR-16(7)(v)-13 DIST Cust'!K645-'FR-16(7)(v)-14 TOTAL CLASS'!K645","v":0},{"$f":"'FR-16(7)(v)-3 PROD Demand'!L645+'FR-16(7)(v)-4 PROD Energy'!L645+'FR-16(7)(v)-5 PROD Cust'!L645+'FR-16(7)(v)-7 TRANS Demand'!L645+'FR-16(7)(v)-8 TRANS Energy'!L645+'FR-16(7)(v)-9 TRANS Cust'!L645+'FR-16(7)(v)-11 DIST Demand'!L645+'FR-16(7)(v)-12 DIST Energy'!L645+'FR-16(7)(v)-13 DIST Cust'!L645-'FR-16(7)(v)-14 TOTAL CLASS'!L645","v":0},{"$f":"'FR-16(7)(v)-3 PROD Demand'!M645+'FR-16(7)(v)-4 PROD Energy'!M645+'FR-16(7)(v)-5 PROD Cust'!M645+'FR-16(7)(v)-7 TRANS Demand'!M645+'FR-16(7)(v)-8 TRANS Energy'!M645+'FR-16(7)(v)-9 TRANS Cust'!M645+'FR-16(7)(v)-11 DIST Demand'!M645+'FR-16(7)(v)-12 DIST Energy'!M645+'FR-16(7)(v)-13 DIST Cust'!M645-'FR-16(7)(v)-14 TOTAL CLASS'!M645","v":0},{"$f":"'FR-16(7)(v)-3 PROD Demand'!N645+'FR-16(7)(v)-4 PROD Energy'!N645+'FR-16(7)(v)-5 PROD Cust'!N645+'FR-16(7)(v)-7 TRANS Demand'!N645+'FR-16(7)(v)-8 TRANS Energy'!N645+'FR-16(7)(v)-9 TRANS Cust'!N645+'FR-16(7)(v)-11 DIST Demand'!N645+'FR-16(7)(v)-12 DIST Energy'!N645+'FR-16(7)(v)-13 DIST Cust'!N645-'FR-16(7)(v)-14 TOTAL CLASS'!N645","v":0},{"$f":"'FR-16(7)(v)-3 PROD Demand'!O645+'FR-16(7)(v)-4 PROD Energy'!O645+'FR-16(7)(v)-5 PROD Cust'!O645+'FR-16(7)(v)-7 TRANS Demand'!O645+'FR-16(7)(v)-8 TRANS Energy'!O645+'FR-16(7)(v)-9 TRANS Cust'!O645+'FR-16(7)(v)-11 DIST Demand'!O645+'FR-16(7)(v)-12 DIST Energy'!O645+'FR-16(7)(v)-13 DIST Cust'!O645-'FR-16(7)(v)-14 TOTAL CLASS'!O645","v":0},{"$f":"'FR-16(7)(v)-3 PROD Demand'!P645+'FR-16(7)(v)-4 PROD Energy'!P645+'FR-16(7)(v)-5 PROD Cust'!P645+'FR-16(7)(v)-7 TRANS Demand'!P645+'FR-16(7)(v)-8 TRANS Energy'!P645+'FR-16(7)(v)-9 TRANS Cust'!P645+'FR-16(7)(v)-11 DIST Demand'!P645+'FR-16(7)(v)-12 DIST Energy'!P645+'FR-16(7)(v)-13 DIST Cust'!P645-'FR-16(7)(v)-14 TOTAL CLASS'!P645","v":0},{"$f":"'FR-16(7)(v)-3 PROD Demand'!Q645+'FR-16(7)(v)-4 PROD Energy'!Q645+'FR-16(7)(v)-5 PROD Cust'!Q645+'FR-16(7)(v)-7 TRANS Demand'!Q645+'FR-16(7)(v)-8 TRANS Energy'!Q645+'FR-16(7)(v)-9 TRANS Cust'!Q645+'FR-16(7)(v)-11 DIST Demand'!Q645+'FR-16(7)(v)-12 DIST Energy'!Q645+'FR-16(7)(v)-13 DIST Cust'!Q645-'FR-16(7)(v)-14 TOTAL CLASS'!Q645","v":0},{"$f":"SUM(G645:Q645)","v":0},{"$f":"F645-R645","v":0}]
[17,null,{"$f":"'FR-16(7)(v)-1 Functional'!C646","v":"DIT ADJUSTMENT - S/L DEPRECIATION"},{"$f":"'FR-16(7)(v)-1 Functional'!D646","v":"DE49"},null,{"$f":"'FR-16(7)(v)-3 PROD Demand'!F646+'FR-16(7)(v)-4 PROD Energy'!F646+'FR-16(7)(v)-5 PROD Cust'!F646+'FR-16(7)(v)-7 TRANS Demand'!F646+'FR-16(7)(v)-8 TRANS Energy'!F646+'FR-16(7)(v)-9 TRANS Cust'!F646+'FR-16(7)(v)-11 DIST Demand'!F646+'FR-16(7)(v)-12 DIST Energy'!F646+'FR-16(7)(v)-13 DIST Cust'!F646-'FR-16(7)(v)-14 TOTAL CLASS'!F646","v":0},{"$f":"'FR-16(7)(v)-3 PROD Demand'!G646+'FR-16(7)(v)-4 PROD Energy'!G646+'FR-16(7)(v)-5 PROD Cust'!G646+'FR-16(7)(v)-7 TRANS Demand'!G646+'FR-16(7)(v)-8 TRANS Energy'!G646+'FR-16(7)(v)-9 TRANS Cust'!G646+'FR-16(7)(v)-11 DIST Demand'!G646+'FR-16(7)(v)-12 DIST Energy'!G646+'FR-16(7)(v)-13 DIST Cust'!G646-'FR-16(7)(v)-14 TOTAL CLASS'!G646","v":0},{"$f":"'FR-16(7)(v)-3 PROD Demand'!H646+'FR-16(7)(v)-4 PROD Energy'!H646+'FR-16(7)(v)-5 PROD Cust'!H646+'FR-16(7)(v)-7 TRANS Demand'!H646+'FR-16(7)(v)-8 TRANS Energy'!H646+'FR-16(7)(v)-9 TRANS Cust'!H646+'FR-16(7)(v)-11 DIST Demand'!H646+'FR-16(7)(v)-12 DIST Energy'!H646+'FR-16(7)(v)-13 DIST Cust'!H646-'FR-16(7)(v)-14 TOTAL CLASS'!H646","v":0},{"$f":"'FR-16(7)(v)-3 PROD Demand'!I646+'FR-16(7)(v)-4 PROD Energy'!I646+'FR-16(7)(v)-5 PROD Cust'!I646+'FR-16(7)(v)-7 TRANS Demand'!I646+'FR-16(7)(v)-8 TRANS Energy'!I646+'FR-16(7)(v)-9 TRANS Cust'!I646+'FR-16(7)(v)-11 DIST Demand'!I646+'FR-16(7)(v)-12 DIST Energy'!I646+'FR-16(7)(v)-13 DIST Cust'!I646-'FR-16(7)(v)-14 TOTAL CLASS'!I646","v":0},{"$f":"'FR-16(7)(v)-3 PROD Demand'!J646+'FR-16(7)(v)-4 PROD Energy'!J646+'FR-16(7)(v)-5 PROD Cust'!J646+'FR-16(7)(v)-7 TRANS Demand'!J646+'FR-16(7)(v)-8 TRANS Energy'!J646+'FR-16(7)(v)-9 TRANS Cust'!J646+'FR-16(7)(v)-11 DIST Demand'!J646+'FR-16(7)(v)-12 DIST Energy'!J646+'FR-16(7)(v)-13 DIST Cust'!J646-'FR-16(7)(v)-14 TOTAL CLASS'!J646","v":0},{"$f":"'FR-16(7)(v)-3 PROD Demand'!K646+'FR-16(7)(v)-4 PROD Energy'!K646+'FR-16(7)(v)-5 PROD Cust'!K646+'FR-16(7)(v)-7 TRANS Demand'!K646+'FR-16(7)(v)-8 TRANS Energy'!K646+'FR-16(7)(v)-9 TRANS Cust'!K646+'FR-16(7)(v)-11 DIST Demand'!K646+'FR-16(7)(v)-12 DIST Energy'!K646+'FR-16(7)(v)-13 DIST Cust'!K646-'FR-16(7)(v)-14 TOTAL CLASS'!K646","v":0},{"$f":"'FR-16(7)(v)-3 PROD Demand'!L646+'FR-16(7)(v)-4 PROD Energy'!L646+'FR-16(7)(v)-5 PROD Cust'!L646+'FR-16(7)(v)-7 TRANS Demand'!L646+'FR-16(7)(v)-8 TRANS Energy'!L646+'FR-16(7)(v)-9 TRANS Cust'!L646+'FR-16(7)(v)-11 DIST Demand'!L646+'FR-16(7)(v)-12 DIST Energy'!L646+'FR-16(7)(v)-13 DIST Cust'!L646-'FR-16(7)(v)-14 TOTAL CLASS'!L646","v":0},{"$f":"'FR-16(7)(v)-3 PROD Demand'!M646+'FR-16(7)(v)-4 PROD Energy'!M646+'FR-16(7)(v)-5 PROD Cust'!M646+'FR-16(7)(v)-7 TRANS Demand'!M646+'FR-16(7)(v)-8 TRANS Energy'!M646+'FR-16(7)(v)-9 TRANS Cust'!M646+'FR-16(7)(v)-11 DIST Demand'!M646+'FR-16(7)(v)-12 DIST Energy'!M646+'FR-16(7)(v)-13 DIST Cust'!M646-'FR-16(7)(v)-14 TOTAL CLASS'!M646","v":0},{"$f":"'FR-16(7)(v)-3 PROD Demand'!N646+'FR-16(7)(v)-4 PROD Energy'!N646+'FR-16(7)(v)-5 PROD Cust'!N646+'FR-16(7)(v)-7 TRANS Demand'!N646+'FR-16(7)(v)-8 TRANS Energy'!N646+'FR-16(7)(v)-9 TRANS Cust'!N646+'FR-16(7)(v)-11 DIST Demand'!N646+'FR-16(7)(v)-12 DIST Energy'!N646+'FR-16(7)(v)-13 DIST Cust'!N646-'FR-16(7)(v)-14 TOTAL CLASS'!N646","v":0},{"$f":"'FR-16(7)(v)-3 PROD Demand'!O646+'FR-16(7)(v)-4 PROD Energy'!O646+'FR-16(7)(v)-5 PROD Cust'!O646+'FR-16(7)(v)-7 TRANS Demand'!O646+'FR-16(7)(v)-8 TRANS Energy'!O646+'FR-16(7)(v)-9 TRANS Cust'!O646+'FR-16(7)(v)-11 DIST Demand'!O646+'FR-16(7)(v)-12 DIST Energy'!O646+'FR-16(7)(v)-13 DIST Cust'!O646-'FR-16(7)(v)-14 TOTAL CLASS'!O646","v":0},{"$f":"'FR-16(7)(v)-3 PROD Demand'!P646+'FR-16(7)(v)-4 PROD Energy'!P646+'FR-16(7)(v)-5 PROD Cust'!P646+'FR-16(7)(v)-7 TRANS Demand'!P646+'FR-16(7)(v)-8 TRANS Energy'!P646+'FR-16(7)(v)-9 TRANS Cust'!P646+'FR-16(7)(v)-11 DIST Demand'!P646+'FR-16(7)(v)-12 DIST Energy'!P646+'FR-16(7)(v)-13 DIST Cust'!P646-'FR-16(7)(v)-14 TOTAL CLASS'!P646","v":0},{"$f":"'FR-16(7)(v)-3 PROD Demand'!Q646+'FR-16(7)(v)-4 PROD Energy'!Q646+'FR-16(7)(v)-5 PROD Cust'!Q646+'FR-16(7)(v)-7 TRANS Demand'!Q646+'FR-16(7)(v)-8 TRANS Energy'!Q646+'FR-16(7)(v)-9 TRANS Cust'!Q646+'FR-16(7)(v)-11 DIST Demand'!Q646+'FR-16(7)(v)-12 DIST Energy'!Q646+'FR-16(7)(v)-13 DIST Cust'!Q646-'FR-16(7)(v)-14 TOTAL CLASS'!Q646","v":0},{"$f":"SUM(G646:Q646)","v":0},{"$f":"F646-R646","v":0}]
[18,null,{"$f":"'FR-16(7)(v)-1 Functional'!C647","v":"DIT ADJUSTMENT - ARAM"},{"$f":"'FR-16(7)(v)-1 Functional'!D647","v":"K201"},null,{"$f":"'FR-16(7)(v)-3 PROD Demand'!F647+'FR-16(7)(v)-4 PROD Energy'!F647+'FR-16(7)(v)-5 PROD Cust'!F647+'FR-16(7)(v)-7 TRANS Demand'!F647+'FR-16(7)(v)-8 TRANS Energy'!F647+'FR-16(7)(v)-9 TRANS Cust'!F647+'FR-16(7)(v)-11 DIST Demand'!F647+'FR-16(7)(v)-12 DIST Energy'!F647+'FR-16(7)(v)-13 DIST Cust'!F647-'FR-16(7)(v)-14 TOTAL CLASS'!F647","v":0},{"$f":"'FR-16(7)(v)-3 PROD Demand'!G647+'FR-16(7)(v)-4 PROD Energy'!G647+'FR-16(7)(v)-5 PROD Cust'!G647+'FR-16(7)(v)-7 TRANS Demand'!G647+'FR-16(7)(v)-8 TRANS Energy'!G647+'FR-16(7)(v)-9 TRANS Cust'!G647+'FR-16(7)(v)-11 DIST Demand'!G647+'FR-16(7)(v)-12 DIST Energy'!G647+'FR-16(7)(v)-13 DIST Cust'!G647-'FR-16(7)(v)-14 TOTAL CLASS'!G647","v":0},{"$f":"'FR-16(7)(v)-3 PROD Demand'!H647+'FR-16(7)(v)-4 PROD Energy'!H647+'FR-16(7)(v)-5 PROD Cust'!H647+'FR-16(7)(v)-7 TRANS Demand'!H647+'FR-16(7)(v)-8 TRANS Energy'!H647+'FR-16(7)(v)-9 TRANS Cust'!H647+'FR-16(7)(v)-11 DIST Demand'!H647+'FR-16(7)(v)-12 DIST Energy'!H647+'FR-16(7)(v)-13 DIST Cust'!H647-'FR-16(7)(v)-14 TOTAL CLASS'!H647","v":0},{"$f":"'FR-16(7)(v)-3 PROD Demand'!I647+'FR-16(7)(v)-4 PROD Energy'!I647+'FR-16(7)(v)-5 PROD Cust'!I647+'FR-16(7)(v)-7 TRANS Demand'!I647+'FR-16(7)(v)-8 TRANS Energy'!I647+'FR-16(7)(v)-9 TRANS Cust'!I647+'FR-16(7)(v)-11 DIST Demand'!I647+'FR-16(7)(v)-12 DIST Energy'!I647+'FR-16(7)(v)-13 DIST Cust'!I647-'FR-16(7)(v)-14 TOTAL CLASS'!I647","v":0},{"$f":"'FR-16(7)(v)-3 PROD Demand'!J647+'FR-16(7)(v)-4 PROD Energy'!J647+'FR-16(7)(v)-5 PROD Cust'!J647+'FR-16(7)(v)-7 TRANS Demand'!J647+'FR-16(7)(v)-8 TRANS Energy'!J647+'FR-16(7)(v)-9 TRANS Cust'!J647+'FR-16(7)(v)-11 DIST Demand'!J647+'FR-16(7)(v)-12 DIST Energy'!J647+'FR-16(7)(v)-13 DIST Cust'!J647-'FR-16(7)(v)-14 TOTAL CLASS'!J647","v":0},{"$f":"'FR-16(7)(v)-3 PROD Demand'!K647+'FR-16(7)(v)-4 PROD Energy'!K647+'FR-16(7)(v)-5 PROD Cust'!K647+'FR-16(7)(v)-7 TRANS Demand'!K647+'FR-16(7)(v)-8 TRANS Energy'!K647+'FR-16(7)(v)-9 TRANS Cust'!K647+'FR-16(7)(v)-11 DIST Demand'!K647+'FR-16(7)(v)-12 DIST Energy'!K647+'FR-16(7)(v)-13 DIST Cust'!K647-'FR-16(7)(v)-14 TOTAL CLASS'!K647","v":0},{"$f":"'FR-16(7)(v)-3 PROD Demand'!L647+'FR-16(7)(v)-4 PROD Energy'!L647+'FR-16(7)(v)-5 PROD Cust'!L647+'FR-16(7)(v)-7 TRANS Demand'!L647+'FR-16(7)(v)-8 TRANS Energy'!L647+'FR-16(7)(v)-9 TRANS Cust'!L647+'FR-16(7)(v)-11 DIST Demand'!L647+'FR-16(7)(v)-12 DIST Energy'!L647+'FR-16(7)(v)-13 DIST Cust'!L647-'FR-16(7)(v)-14 TOTAL CLASS'!L647","v":0},{"$f":"'FR-16(7)(v)-3 PROD Demand'!M647+'FR-16(7)(v)-4 PROD Energy'!M647+'FR-16(7)(v)-5 PROD Cust'!M647+'FR-16(7)(v)-7 TRANS Demand'!M647+'FR-16(7)(v)-8 TRANS Energy'!M647+'FR-16(7)(v)-9 TRANS Cust'!M647+'FR-16(7)(v)-11 DIST Demand'!M647+'FR-16(7)(v)-12 DIST Energy'!M647+'FR-16(7)(v)-13 DIST Cust'!M647-'FR-16(7)(v)-14 TOTAL CLASS'!M647","v":0},{"$f":"'FR-16(7)(v)-3 PROD Demand'!N647+'FR-16(7)(v)-4 PROD Energy'!N647+'FR-16(7)(v)-5 PROD Cust'!N647+'FR-16(7)(v)-7 TRANS Demand'!N647+'FR-16(7)(v)-8 TRANS Energy'!N647+'FR-16(7)(v)-9 TRANS Cust'!N647+'FR-16(7)(v)-11 DIST Demand'!N647+'FR-16(7)(v)-12 DIST Energy'!N647+'FR-16(7)(v)-13 DIST Cust'!N647-'FR-16(7)(v)-14 TOTAL CLASS'!N647","v":0},{"$f":"'FR-16(7)(v)-3 PROD Demand'!O647+'FR-16(7)(v)-4 PROD Energy'!O647+'FR-16(7)(v)-5 PROD Cust'!O647+'FR-16(7)(v)-7 TRANS Demand'!O647+'FR-16(7)(v)-8 TRANS Energy'!O647+'FR-16(7)(v)-9 TRANS Cust'!O647+'FR-16(7)(v)-11 DIST Demand'!O647+'FR-16(7)(v)-12 DIST Energy'!O647+'FR-16(7)(v)-13 DIST Cust'!O647-'FR-16(7)(v)-14 TOTAL CLASS'!O647","v":0},{"$f":"'FR-16(7)(v)-3 PROD Demand'!P647+'FR-16(7)(v)-4 PROD Energy'!P647+'FR-16(7)(v)-5 PROD Cust'!P647+'FR-16(7)(v)-7 TRANS Demand'!P647+'FR-16(7)(v)-8 TRANS Energy'!P647+'FR-16(7)(v)-9 TRANS Cust'!P647+'FR-16(7)(v)-11 DIST Demand'!P647+'FR-16(7)(v)-12 DIST Energy'!P647+'FR-16(7)(v)-13 DIST Cust'!P647-'FR-16(7)(v)-14 TOTAL CLASS'!P647","v":0},{"$f":"'FR-16(7)(v)-3 PROD Demand'!Q647+'FR-16(7)(v)-4 PROD Energy'!Q647+'FR-16(7)(v)-5 PROD Cust'!Q647+'FR-16(7)(v)-7 TRANS Demand'!Q647+'FR-16(7)(v)-8 TRANS Energy'!Q647+'FR-16(7)(v)-9 TRANS Cust'!Q647+'FR-16(7)(v)-11 DIST Demand'!Q647+'FR-16(7)(v)-12 DIST Energy'!Q647+'FR-16(7)(v)-13 DIST Cust'!Q647-'FR-16(7)(v)-14 TOTAL CLASS'!Q647","v":0},{"$f":"SUM(G647:Q647)","v":0},{"$f":"F647-R647","v":0}]
[19,null,{"$f":"'FR-16(7)(v)-1 Functional'!C648","v":"DIT ADJUSTMENT - AMORT OF EXCESS DEF TAXES"},{"$f":"'FR-16(7)(v)-1 Functional'!D648","v":"A357"},null,{"$f":"'FR-16(7)(v)-3 PROD Demand'!F648+'FR-16(7)(v)-4 PROD Energy'!F648+'FR-16(7)(v)-5 PROD Cust'!F648+'FR-16(7)(v)-7 TRANS Demand'!F648+'FR-16(7)(v)-8 TRANS Energy'!F648+'FR-16(7)(v)-9 TRANS Cust'!F648+'FR-16(7)(v)-11 DIST Demand'!F648+'FR-16(7)(v)-12 DIST Energy'!F648+'FR-16(7)(v)-13 DIST Cust'!F648-'FR-16(7)(v)-14 TOTAL CLASS'!F648","v":0},{"$f":"'FR-16(7)(v)-3 PROD Demand'!G648+'FR-16(7)(v)-4 PROD Energy'!G648+'FR-16(7)(v)-5 PROD Cust'!G648+'FR-16(7)(v)-7 TRANS Demand'!G648+'FR-16(7)(v)-8 TRANS Energy'!G648+'FR-16(7)(v)-9 TRANS Cust'!G648+'FR-16(7)(v)-11 DIST Demand'!G648+'FR-16(7)(v)-12 DIST Energy'!G648+'FR-16(7)(v)-13 DIST Cust'!G648-'FR-16(7)(v)-14 TOTAL CLASS'!G648","v":0},{"$f":"'FR-16(7)(v)-3 PROD Demand'!H648+'FR-16(7)(v)-4 PROD Energy'!H648+'FR-16(7)(v)-5 PROD Cust'!H648+'FR-16(7)(v)-7 TRANS Demand'!H648+'FR-16(7)(v)-8 TRANS Energy'!H648+'FR-16(7)(v)-9 TRANS Cust'!H648+'FR-16(7)(v)-11 DIST Demand'!H648+'FR-16(7)(v)-12 DIST Energy'!H648+'FR-16(7)(v)-13 DIST Cust'!H648-'FR-16(7)(v)-14 TOTAL CLASS'!H648","v":0},{"$f":"'FR-16(7)(v)-3 PROD Demand'!I648+'FR-16(7)(v)-4 PROD Energy'!I648+'FR-16(7)(v)-5 PROD Cust'!I648+'FR-16(7)(v)-7 TRANS Demand'!I648+'FR-16(7)(v)-8 TRANS Energy'!I648+'FR-16(7)(v)-9 TRANS Cust'!I648+'FR-16(7)(v)-11 DIST Demand'!I648+'FR-16(7)(v)-12 DIST Energy'!I648+'FR-16(7)(v)-13 DIST Cust'!I648-'FR-16(7)(v)-14 TOTAL CLASS'!I648","v":0},{"$f":"'FR-16(7)(v)-3 PROD Demand'!J648+'FR-16(7)(v)-4 PROD Energy'!J648+'FR-16(7)(v)-5 PROD Cust'!J648+'FR-16(7)(v)-7 TRANS Demand'!J648+'FR-16(7)(v)-8 TRANS Energy'!J648+'FR-16(7)(v)-9 TRANS Cust'!J648+'FR-16(7)(v)-11 DIST Demand'!J648+'FR-16(7)(v)-12 DIST Energy'!J648+'FR-16(7)(v)-13 DIST Cust'!J648-'FR-16(7)(v)-14 TOTAL CLASS'!J648","v":0},{"$f":"'FR-16(7)(v)-3 PROD Demand'!K648+'FR-16(7)(v)-4 PROD Energy'!K648+'FR-16(7)(v)-5 PROD Cust'!K648+'FR-16(7)(v)-7 TRANS Demand'!K648+'FR-16(7)(v)-8 TRANS Energy'!K648+'FR-16(7)(v)-9 TRANS Cust'!K648+'FR-16(7)(v)-11 DIST Demand'!K648+'FR-16(7)(v)-12 DIST Energy'!K648+'FR-16(7)(v)-13 DIST Cust'!K648-'FR-16(7)(v)-14 TOTAL CLASS'!K648","v":0},{"$f":"'FR-16(7)(v)-3 PROD Demand'!L648+'FR-16(7)(v)-4 PROD Energy'!L648+'FR-16(7)(v)-5 PROD Cust'!L648+'FR-16(7)(v)-7 TRANS Demand'!L648+'FR-16(7)(v)-8 TRANS Energy'!L648+'FR-16(7)(v)-9 TRANS Cust'!L648+'FR-16(7)(v)-11 DIST Demand'!L648+'FR-16(7)(v)-12 DIST Energy'!L648+'FR-16(7)(v)-13 DIST Cust'!L648-'FR-16(7)(v)-14 TOTAL CLASS'!L648","v":0},{"$f":"'FR-16(7)(v)-3 PROD Demand'!M648+'FR-16(7)(v)-4 PROD Energy'!M648+'FR-16(7)(v)-5 PROD Cust'!M648+'FR-16(7)(v)-7 TRANS Demand'!M648+'FR-16(7)(v)-8 TRANS Energy'!M648+'FR-16(7)(v)-9 TRANS Cust'!M648+'FR-16(7)(v)-11 DIST Demand'!M648+'FR-16(7)(v)-12 DIST Energy'!M648+'FR-16(7)(v)-13 DIST Cust'!M648-'FR-16(7)(v)-14 TOTAL CLASS'!M648","v":0},{"$f":"'FR-16(7)(v)-3 PROD Demand'!N648+'FR-16(7)(v)-4 PROD Energy'!N648+'FR-16(7)(v)-5 PROD Cust'!N648+'FR-16(7)(v)-7 TRANS Demand'!N648+'FR-16(7)(v)-8 TRANS Energy'!N648+'FR-16(7)(v)-9 TRANS Cust'!N648+'FR-16(7)(v)-11 DIST Demand'!N648+'FR-16(7)(v)-12 DIST Energy'!N648+'FR-16(7)(v)-13 DIST Cust'!N648-'FR-16(7)(v)-14 TOTAL CLASS'!N648","v":0},{"$f":"'FR-16(7)(v)-3 PROD Demand'!O648+'FR-16(7)(v)-4 PROD Energy'!O648+'FR-16(7)(v)-5 PROD Cust'!O648+'FR-16(7)(v)-7 TRANS Demand'!O648+'FR-16(7)(v)-8 TRANS Energy'!O648+'FR-16(7)(v)-9 TRANS Cust'!O648+'FR-16(7)(v)-11 DIST Demand'!O648+'FR-16(7)(v)-12 DIST Energy'!O648+'FR-16(7)(v)-13 DIST Cust'!O648-'FR-16(7)(v)-14 TOTAL CLASS'!O648","v":0},{"$f":"'FR-16(7)(v)-3 PROD Demand'!P648+'FR-16(7)(v)-4 PROD Energy'!P648+'FR-16(7)(v)-5 PROD Cust'!P648+'FR-16(7)(v)-7 TRANS Demand'!P648+'FR-16(7)(v)-8 TRANS Energy'!P648+'FR-16(7)(v)-9 TRANS Cust'!P648+'FR-16(7)(v)-11 DIST Demand'!P648+'FR-16(7)(v)-12 DIST Energy'!P648+'FR-16(7)(v)-13 DIST Cust'!P648-'FR-16(7)(v)-14 TOTAL CLASS'!P648","v":0},{"$f":"'FR-16(7)(v)-3 PROD Demand'!Q648+'FR-16(7)(v)-4 PROD Energy'!Q648+'FR-16(7)(v)-5 PROD Cust'!Q648+'FR-16(7)(v)-7 TRANS Demand'!Q648+'FR-16(7)(v)-8 TRANS Energy'!Q648+'FR-16(7)(v)-9 TRANS Cust'!Q648+'FR-16(7)(v)-11 DIST Demand'!Q648+'FR-16(7)(v)-12 DIST Energy'!Q648+'FR-16(7)(v)-13 DIST Cust'!Q648-'FR-16(7)(v)-14 TOTAL CLASS'!Q648","v":0},{"$f":"SUM(G648:Q648)","v":0},{"$f":"F648-R648","v":0}]
[20,null,{"$f":"'FR-16(7)(v)-1 Functional'!C649","v":"  TOTAL FED DEF IT (410 & 411)"},null,null,{"$f":"SUM(F644:F648)","v":-139},{"$f":"SUM(G644:G648)","v":0},{"$f":"SUM(H644:H648)","v":0},{"$f":"SUM(I644:I648)","v":0},{"$f":"SUM(J644:J648)","v":0},0,0,0,0,0,0,{"$f":"SUM($Q$644:$Q$648)","v":0},{"$f":"SUM(R644:R648)","v":0},{"$f":"SUM(S644:S648)","v":-139}]
[21]
[22," AMORT INV TAX CREDIT"]
[23,null,{"$f":"'FR-16(7)(v)-1 Functional'!C652","v":"AMORTIZE ITC"},{"$f":"'FR-16(7)(v)-1 Functional'!D652","v":"NP29"},null,{"$f":"'FR-16(7)(v)-3 PROD Demand'!F652+'FR-16(7)(v)-4 PROD Energy'!F652+'FR-16(7)(v)-5 PROD Cust'!F652+'FR-16(7)(v)-7 TRANS Demand'!F652+'FR-16(7)(v)-8 TRANS Energy'!F652+'FR-16(7)(v)-9 TRANS Cust'!F652+'FR-16(7)(v)-11 DIST Demand'!F652+'FR-16(7)(v)-12 DIST Energy'!F652+'FR-16(7)(v)-13 DIST Cust'!F652-'FR-16(7)(v)-14 TOTAL CLASS'!F652","v":0},{"$f":"'FR-16(7)(v)-3 PROD Demand'!G652+'FR-16(7)(v)-4 PROD Energy'!G652+'FR-16(7)(v)-5 PROD Cust'!G652+'FR-16(7)(v)-7 TRANS Demand'!G652+'FR-16(7)(v)-8 TRANS Energy'!G652+'FR-16(7)(v)-9 TRANS Cust'!G652+'FR-16(7)(v)-11 DIST Demand'!G652+'FR-16(7)(v)-12 DIST Energy'!G652+'FR-16(7)(v)-13 DIST Cust'!G652-'FR-16(7)(v)-14 TOTAL CLASS'!G652","v":0},{"$f":"'FR-16(7)(v)-3 PROD Demand'!H652+'FR-16(7)(v)-4 PROD Energy'!H652+'FR-16(7)(v)-5 PROD Cust'!H652+'FR-16(7)(v)-7 TRANS Demand'!H652+'FR-16(7)(v)-8 TRANS Energy'!H652+'FR-16(7)(v)-9 TRANS Cust'!H652+'FR-16(7)(v)-11 DIST Demand'!H652+'FR-16(7)(v)-12 DIST Energy'!H652+'FR-16(7)(v)-13 DIST Cust'!H652-'FR-16(7)(v)-14 TOTAL CLASS'!H652","v":0},{"$f":"'FR-16(7)(v)-3 PROD Demand'!I652+'FR-16(7)(v)-4 PROD Energy'!I652+'FR-16(7)(v)-5 PROD Cust'!I652+'FR-16(7)(v)-7 TRANS Demand'!I652+'FR-16(7)(v)-8 TRANS Energy'!I652+'FR-16(7)(v)-9 TRANS Cust'!I652+'FR-16(7)(v)-11 DIST Demand'!I652+'FR-16(7)(v)-12 DIST Energy'!I652+'FR-16(7)(v)-13 DIST Cust'!I652-'FR-16(7)(v)-14 TOTAL CLASS'!I652","v":0},{"$f":"'FR-16(7)(v)-3 PROD Demand'!J652+'FR-16(7)(v)-4 PROD Energy'!J652+'FR-16(7)(v)-5 PROD Cust'!J652+'FR-16(7)(v)-7 TRANS Demand'!J652+'FR-16(7)(v)-8 TRANS Energy'!J652+'FR-16(7)(v)-9 TRANS Cust'!J652+'FR-16(7)(v)-11 DIST Demand'!J652+'FR-16(7)(v)-12 DIST Energy'!J652+'FR-16(7)(v)-13 DIST Cust'!J652-'FR-16(7)(v)-14 TOTAL CLASS'!J652","v":0},{"$f":"'FR-16(7)(v)-3 PROD Demand'!K652+'FR-16(7)(v)-4 PROD Energy'!K652+'FR-16(7)(v)-5 PROD Cust'!K652+'FR-16(7)(v)-7 TRANS Demand'!K652+'FR-16(7)(v)-8 TRANS Energy'!K652+'FR-16(7)(v)-9 TRANS Cust'!K652+'FR-16(7)(v)-11 DIST Demand'!K652+'FR-16(7)(v)-12 DIST Energy'!K652+'FR-16(7)(v)-13 DIST Cust'!K652-'FR-16(7)(v)-14 TOTAL CLASS'!K652","v":0},{"$f":"'FR-16(7)(v)-3 PROD Demand'!L652+'FR-16(7)(v)-4 PROD Energy'!L652+'FR-16(7)(v)-5 PROD Cust'!L652+'FR-16(7)(v)-7 TRANS Demand'!L652+'FR-16(7)(v)-8 TRANS Energy'!L652+'FR-16(7)(v)-9 TRANS Cust'!L652+'FR-16(7)(v)-11 DIST Demand'!L652+'FR-16(7)(v)-12 DIST Energy'!L652+'FR-16(7)(v)-13 DIST Cust'!L652-'FR-16(7)(v)-14 TOTAL CLASS'!L652","v":0},{"$f":"'FR-16(7)(v)-3 PROD Demand'!M652+'FR-16(7)(v)-4 PROD Energy'!M652+'FR-16(7)(v)-5 PROD Cust'!M652+'FR-16(7)(v)-7 TRANS Demand'!M652+'FR-16(7)(v)-8 TRANS Energy'!M652+'FR-16(7)(v)-9 TRANS Cust'!M652+'FR-16(7)(v)-11 DIST Demand'!M652+'FR-16(7)(v)-12 DIST Energy'!M652+'FR-16(7)(v)-13 DIST Cust'!M652-'FR-16(7)(v)-14 TOTAL CLASS'!M652","v":0},{"$f":"'FR-16(7)(v)-3 PROD Demand'!N652+'FR-16(7)(v)-4 PROD Energy'!N652+'FR-16(7)(v)-5 PROD Cust'!N652+'FR-16(7)(v)-7 TRANS Demand'!N652+'FR-16(7)(v)-8 TRANS Energy'!N652+'FR-16(7)(v)-9 TRANS Cust'!N652+'FR-16(7)(v)-11 DIST Demand'!N652+'FR-16(7)(v)-12 DIST Energy'!N652+'FR-16(7)(v)-13 DIST Cust'!N652-'FR-16(7)(v)-14 TOTAL CLASS'!N652","v":0},{"$f":"'FR-16(7)(v)-3 PROD Demand'!O652+'FR-16(7)(v)-4 PROD Energy'!O652+'FR-16(7)(v)-5 PROD Cust'!O652+'FR-16(7)(v)-7 TRANS Demand'!O652+'FR-16(7)(v)-8 TRANS Energy'!O652+'FR-16(7)(v)-9 TRANS Cust'!O652+'FR-16(7)(v)-11 DIST Demand'!O652+'FR-16(7)(v)-12 DIST Energy'!O652+'FR-16(7)(v)-13 DIST Cust'!O652-'FR-16(7)(v)-14 TOTAL CLASS'!O652","v":0},{"$f":"'FR-16(7)(v)-3 PROD Demand'!P652+'FR-16(7)(v)-4 PROD Energy'!P652+'FR-16(7)(v)-5 PROD Cust'!P652+'FR-16(7)(v)-7 TRANS Demand'!P652+'FR-16(7)(v)-8 TRANS Energy'!P652+'FR-16(7)(v)-9 TRANS Cust'!P652+'FR-16(7)(v)-11 DIST Demand'!P652+'FR-16(7)(v)-12 DIST Energy'!P652+'FR-16(7)(v)-13 DIST Cust'!P652-'FR-16(7)(v)-14 TOTAL CLASS'!P652","v":0},{"$f":"'FR-16(7)(v)-3 PROD Demand'!Q652+'FR-16(7)(v)-4 PROD Energy'!Q652+'FR-16(7)(v)-5 PROD Cust'!Q652+'FR-16(7)(v)-7 TRANS Demand'!Q652+'FR-16(7)(v)-8 TRANS Energy'!Q652+'FR-16(7)(v)-9 TRANS Cust'!Q652+'FR-16(7)(v)-11 DIST Demand'!Q652+'FR-16(7)(v)-12 DIST Energy'!Q652+'FR-16(7)(v)-13 DIST Cust'!Q652-'FR-16(7)(v)-14 TOTAL CLASS'!Q652","v":0},{"$f":"SUM(G652:Q652)","v":0},{"$f":"F652-R652","v":0}]
[24,null,{"$f":"'FR-16(7)(v)-1 Functional'!C653","v":"  TOTAL AMORTIZED ITC"},null,null,{"$f":"SUM(F652:F652)","v":0},{"$f":"SUM(G652:G652)","v":0},{"$f":"SUM(H652:H652)","v":0},{"$f":"SUM(I652:I652)","v":0},{"$f":"SUM(J652:J652)","v":0},0,0,0,0,0,0,{"$f":"SUM($Q$652:$Q$652)","v":0},{"$f":"SUM(R652:R652)","v":0},{"$f":"SUM(S652:S652)","v":0}]
[25]
[26," OTHER FEDERAL TAX CREDITS"]
[27,null,{"$f":"'FR-16(7)(v)-1 Functional'!C656","v":"FUEL TAX CREDIT"},"K301",null,{"$f":"'FR-16(7)(v)-3 PROD Demand'!F656+'FR-16(7)(v)-4 PROD Energy'!F656+'FR-16(7)(v)-5 PROD Cust'!F656+'FR-16(7)(v)-7 TRANS Demand'!F656+'FR-16(7)(v)-8 TRANS Energy'!F656+'FR-16(7)(v)-9 TRANS Cust'!F656+'FR-16(7)(v)-11 DIST Demand'!F656+'FR-16(7)(v)-12 DIST Energy'!F656+'FR-16(7)(v)-13 DIST Cust'!F656-'FR-16(7)(v)-14 TOTAL CLASS'!F656","v":0},{"$f":"'FR-16(7)(v)-3 PROD Demand'!G656+'FR-16(7)(v)-4 PROD Energy'!G656+'FR-16(7)(v)-5 PROD Cust'!G656+'FR-16(7)(v)-7 TRANS Demand'!G656+'FR-16(7)(v)-8 TRANS Energy'!G656+'FR-16(7)(v)-9 TRANS Cust'!G656+'FR-16(7)(v)-11 DIST Demand'!G656+'FR-16(7)(v)-12 DIST Energy'!G656+'FR-16(7)(v)-13 DIST Cust'!G656-'FR-16(7)(v)-14 TOTAL CLASS'!G656","v":0},{"$f":"'FR-16(7)(v)-3 PROD Demand'!H656+'FR-16(7)(v)-4 PROD Energy'!H656+'FR-16(7)(v)-5 PROD Cust'!H656+'FR-16(7)(v)-7 TRANS Demand'!H656+'FR-16(7)(v)-8 TRANS Energy'!H656+'FR-16(7)(v)-9 TRANS Cust'!H656+'FR-16(7)(v)-11 DIST Demand'!H656+'FR-16(7)(v)-12 DIST Energy'!H656+'FR-16(7)(v)-13 DIST Cust'!H656-'FR-16(7)(v)-14 TOTAL CLASS'!H656","v":0},{"$f":"'FR-16(7)(v)-3 PROD Demand'!I656+'FR-16(7)(v)-4 PROD Energy'!I656+'FR-16(7)(v)-5 PROD Cust'!I656+'FR-16(7)(v)-7 TRANS Demand'!I656+'FR-16(7)(v)-8 TRANS Energy'!I656+'FR-16(7)(v)-9 TRANS Cust'!I656+'FR-16(7)(v)-11 DIST Demand'!I656+'FR-16(7)(v)-12 DIST Energy'!I656+'FR-16(7)(v)-13 DIST Cust'!I656-'FR-16(7)(v)-14 TOTAL CLASS'!I656","v":0},{"$f":"'FR-16(7)(v)-3 PROD Demand'!J656+'FR-16(7)(v)-4 PROD Energy'!J656+'FR-16(7)(v)-5 PROD Cust'!J656+'FR-16(7)(v)-7 TRANS Demand'!J656+'FR-16(7)(v)-8 TRANS Energy'!J656+'FR-16(7)(v)-9 TRANS Cust'!J656+'FR-16(7)(v)-11 DIST Demand'!J656+'FR-16(7)(v)-12 DIST Energy'!J656+'FR-16(7)(v)-13 DIST Cust'!J656-'FR-16(7)(v)-14 TOTAL CLASS'!J656","v":0},{"$f":"'FR-16(7)(v)-3 PROD Demand'!K656+'FR-16(7)(v)-4 PROD Energy'!K656+'FR-16(7)(v)-5 PROD Cust'!K656+'FR-16(7)(v)-7 TRANS Demand'!K656+'FR-16(7)(v)-8 TRANS Energy'!K656+'FR-16(7)(v)-9 TRANS Cust'!K656+'FR-16(7)(v)-11 DIST Demand'!K656+'FR-16(7)(v)-12 DIST Energy'!K656+'FR-16(7)(v)-13 DIST Cust'!K656-'FR-16(7)(v)-14 TOTAL CLASS'!K656","v":0},{"$f":"'FR-16(7)(v)-3 PROD Demand'!L656+'FR-16(7)(v)-4 PROD Energy'!L656+'FR-16(7)(v)-5 PROD Cust'!L656+'FR-16(7)(v)-7 TRANS Demand'!L656+'FR-16(7)(v)-8 TRANS Energy'!L656+'FR-16(7)(v)-9 TRANS Cust'!L656+'FR-16(7)(v)-11 DIST Demand'!L656+'FR-16(7)(v)-12 DIST Energy'!L656+'FR-16(7)(v)-13 DIST Cust'!L656-'FR-16(7)(v)-14 TOTAL CLASS'!L656","v":0},{"$f":"'FR-16(7)(v)-3 PROD Demand'!M656+'FR-16(7)(v)-4 PROD Energy'!M656+'FR-16(7)(v)-5 PROD Cust'!M656+'FR-16(7)(v)-7 TRANS Demand'!M656+'FR-16(7)(v)-8 TRANS Energy'!M656+'FR-16(7)(v)-9 TRANS Cust'!M656+'FR-16(7)(v)-11 DIST Demand'!M656+'FR-16(7)(v)-12 DIST Energy'!M656+'FR-16(7)(v)-13 DIST Cust'!M656-'FR-16(7)(v)-14 TOTAL CLASS'!M656","v":0},{"$f":"'FR-16(7)(v)-3 PROD Demand'!N656+'FR-16(7)(v)-4 PROD Energy'!N656+'FR-16(7)(v)-5 PROD Cust'!N656+'FR-16(7)(v)-7 TRANS Demand'!N656+'FR-16(7)(v)-8 TRANS Energy'!N656+'FR-16(7)(v)-9 TRANS Cust'!N656+'FR-16(7)(v)-11 DIST Demand'!N656+'FR-16(7)(v)-12 DIST Energy'!N656+'FR-16(7)(v)-13 DIST Cust'!N656-'FR-16(7)(v)-14 TOTAL CLASS'!N656","v":0},{"$f":"'FR-16(7)(v)-3 PROD Demand'!O656+'FR-16(7)(v)-4 PROD Energy'!O656+'FR-16(7)(v)-5 PROD Cust'!O656+'FR-16(7)(v)-7 TRANS Demand'!O656+'FR-16(7)(v)-8 TRANS Energy'!O656+'FR-16(7)(v)-9 TRANS Cust'!O656+'FR-16(7)(v)-11 DIST Demand'!O656+'FR-16(7)(v)-12 DIST Energy'!O656+'FR-16(7)(v)-13 DIST Cust'!O656-'FR-16(7)(v)-14 TOTAL CLASS'!O656","v":0},{"$f":"'FR-16(7)(v)-3 PROD Demand'!P656+'FR-16(7)(v)-4 PROD Energy'!P656+'FR-16(7)(v)-5 PROD Cust'!P656+'FR-16(7)(v)-7 TRANS Demand'!P656+'FR-16(7)(v)-8 TRANS Energy'!P656+'FR-16(7)(v)-9 TRANS Cust'!P656+'FR-16(7)(v)-11 DIST Demand'!P656+'FR-16(7)(v)-12 DIST Energy'!P656+'FR-16(7)(v)-13 DIST Cust'!P656-'FR-16(7)(v)-14 TOTAL CLASS'!P656","v":0},{"$f":"'FR-16(7)(v)-3 PROD Demand'!Q656+'FR-16(7)(v)-4 PROD Energy'!Q656+'FR-16(7)(v)-5 PROD Cust'!Q656+'FR-16(7)(v)-7 TRANS Demand'!Q656+'FR-16(7)(v)-8 TRANS Energy'!Q656+'FR-16(7)(v)-9 TRANS Cust'!Q656+'FR-16(7)(v)-11 DIST Demand'!Q656+'FR-16(7)(v)-12 DIST Energy'!Q656+'FR-16(7)(v)-13 DIST Cust'!Q656-'FR-16(7)(v)-14 TOTAL CLASS'!Q656","v":0},{"$f":"SUM(G656:Q656)","v":0},{"$f":"F656-R656","v":0}]
[28,null,{"$f":"'FR-16(7)(v)-1 Functional'!C657","v":"R&D CREDIT - SECTION 41"},"A315",null,{"$f":"'FR-16(7)(v)-3 PROD Demand'!F657+'FR-16(7)(v)-4 PROD Energy'!F657+'FR-16(7)(v)-5 PROD Cust'!F657+'FR-16(7)(v)-7 TRANS Demand'!F657+'FR-16(7)(v)-8 TRANS Energy'!F657+'FR-16(7)(v)-9 TRANS Cust'!F657+'FR-16(7)(v)-11 DIST Demand'!F657+'FR-16(7)(v)-12 DIST Energy'!F657+'FR-16(7)(v)-13 DIST Cust'!F657-'FR-16(7)(v)-14 TOTAL CLASS'!F657","v":0},{"$f":"'FR-16(7)(v)-3 PROD Demand'!G657+'FR-16(7)(v)-4 PROD Energy'!G657+'FR-16(7)(v)-5 PROD Cust'!G657+'FR-16(7)(v)-7 TRANS Demand'!G657+'FR-16(7)(v)-8 TRANS Energy'!G657+'FR-16(7)(v)-9 TRANS Cust'!G657+'FR-16(7)(v)-11 DIST Demand'!G657+'FR-16(7)(v)-12 DIST Energy'!G657+'FR-16(7)(v)-13 DIST Cust'!G657-'FR-16(7)(v)-14 TOTAL CLASS'!G657","v":0},{"$f":"'FR-16(7)(v)-3 PROD Demand'!H657+'FR-16(7)(v)-4 PROD Energy'!H657+'FR-16(7)(v)-5 PROD Cust'!H657+'FR-16(7)(v)-7 TRANS Demand'!H657+'FR-16(7)(v)-8 TRANS Energy'!H657+'FR-16(7)(v)-9 TRANS Cust'!H657+'FR-16(7)(v)-11 DIST Demand'!H657+'FR-16(7)(v)-12 DIST Energy'!H657+'FR-16(7)(v)-13 DIST Cust'!H657-'FR-16(7)(v)-14 TOTAL CLASS'!H657","v":0},{"$f":"'FR-16(7)(v)-3 PROD Demand'!I657+'FR-16(7)(v)-4 PROD Energy'!I657+'FR-16(7)(v)-5 PROD Cust'!I657+'FR-16(7)(v)-7 TRANS Demand'!I657+'FR-16(7)(v)-8 TRANS Energy'!I657+'FR-16(7)(v)-9 TRANS Cust'!I657+'FR-16(7)(v)-11 DIST Demand'!I657+'FR-16(7)(v)-12 DIST Energy'!I657+'FR-16(7)(v)-13 DIST Cust'!I657-'FR-16(7)(v)-14 TOTAL CLASS'!I657","v":0},{"$f":"'FR-16(7)(v)-3 PROD Demand'!J657+'FR-16(7)(v)-4 PROD Energy'!J657+'FR-16(7)(v)-5 PROD Cust'!J657+'FR-16(7)(v)-7 TRANS Demand'!J657+'FR-16(7)(v)-8 TRANS Energy'!J657+'FR-16(7)(v)-9 TRANS Cust'!J657+'FR-16(7)(v)-11 DIST Demand'!J657+'FR-16(7)(v)-12 DIST Energy'!J657+'FR-16(7)(v)-13 DIST Cust'!J657-'FR-16(7)(v)-14 TOTAL CLASS'!J657","v":0},{"$f":"'FR-16(7)(v)-3 PROD Demand'!K657+'FR-16(7)(v)-4 PROD Energy'!K657+'FR-16(7)(v)-5 PROD Cust'!K657+'FR-16(7)(v)-7 TRANS Demand'!K657+'FR-16(7)(v)-8 TRANS Energy'!K657+'FR-16(7)(v)-9 TRANS Cust'!K657+'FR-16(7)(v)-11 DIST Demand'!K657+'FR-16(7)(v)-12 DIST Energy'!K657+'FR-16(7)(v)-13 DIST Cust'!K657-'FR-16(7)(v)-14 TOTAL CLASS'!K657","v":0},{"$f":"'FR-16(7)(v)-3 PROD Demand'!L657+'FR-16(7)(v)-4 PROD Energy'!L657+'FR-16(7)(v)-5 PROD Cust'!L657+'FR-16(7)(v)-7 TRANS Demand'!L657+'FR-16(7)(v)-8 TRANS Energy'!L657+'FR-16(7)(v)-9 TRANS Cust'!L657+'FR-16(7)(v)-11 DIST Demand'!L657+'FR-16(7)(v)-12 DIST Energy'!L657+'FR-16(7)(v)-13 DIST Cust'!L657-'FR-16(7)(v)-14 TOTAL CLASS'!L657","v":0},{"$f":"'FR-16(7)(v)-3 PROD Demand'!M657+'FR-16(7)(v)-4 PROD Energy'!M657+'FR-16(7)(v)-5 PROD Cust'!M657+'FR-16(7)(v)-7 TRANS Demand'!M657+'FR-16(7)(v)-8 TRANS Energy'!M657+'FR-16(7)(v)-9 TRANS Cust'!M657+'FR-16(7)(v)-11 DIST Demand'!M657+'FR-16(7)(v)-12 DIST Energy'!M657+'FR-16(7)(v)-13 DIST Cust'!M657-'FR-16(7)(v)-14 TOTAL CLASS'!M657","v":0},{"$f":"'FR-16(7)(v)-3 PROD Demand'!N657+'FR-16(7)(v)-4 PROD Energy'!N657+'FR-16(7)(v)-5 PROD Cust'!N657+'FR-16(7)(v)-7 TRANS Demand'!N657+'FR-16(7)(v)-8 TRANS Energy'!N657+'FR-16(7)(v)-9 TRANS Cust'!N657+'FR-16(7)(v)-11 DIST Demand'!N657+'FR-16(7)(v)-12 DIST Energy'!N657+'FR-16(7)(v)-13 DIST Cust'!N657-'FR-16(7)(v)-14 TOTAL CLASS'!N657","v":0},{"$f":"'FR-16(7)(v)-3 PROD Demand'!O657+'FR-16(7)(v)-4 PROD Energy'!O657+'FR-16(7)(v)-5 PROD Cust'!O657+'FR-16(7)(v)-7 TRANS Demand'!O657+'FR-16(7)(v)-8 TRANS Energy'!O657+'FR-16(7)(v)-9 TRANS Cust'!O657+'FR-16(7)(v)-11 DIST Demand'!O657+'FR-16(7)(v)-12 DIST Energy'!O657+'FR-16(7)(v)-13 DIST Cust'!O657-'FR-16(7)(v)-14 TOTAL CLASS'!O657","v":0},{"$f":"'FR-16(7)(v)-3 PROD Demand'!P657+'FR-16(7)(v)-4 PROD Energy'!P657+'FR-16(7)(v)-5 PROD Cust'!P657+'FR-16(7)(v)-7 TRANS Demand'!P657+'FR-16(7)(v)-8 TRANS Energy'!P657+'FR-16(7)(v)-9 TRANS Cust'!P657+'FR-16(7)(v)-11 DIST Demand'!P657+'FR-16(7)(v)-12 DIST Energy'!P657+'FR-16(7)(v)-13 DIST Cust'!P657-'FR-16(7)(v)-14 TOTAL CLASS'!P657","v":0},{"$f":"'FR-16(7)(v)-3 PROD Demand'!Q657+'FR-16(7)(v)-4 PROD Energy'!Q657+'FR-16(7)(v)-5 PROD Cust'!Q657+'FR-16(7)(v)-7 TRANS Demand'!Q657+'FR-16(7)(v)-8 TRANS Energy'!Q657+'FR-16(7)(v)-9 TRANS Cust'!Q657+'FR-16(7)(v)-11 DIST Demand'!Q657+'FR-16(7)(v)-12 DIST Energy'!Q657+'FR-16(7)(v)-13 DIST Cust'!Q657-'FR-16(7)(v)-14 TOTAL CLASS'!Q657","v":0},{"$f":"SUM(G657:Q657)","v":0},{"$f":"F657-R657","v":0}]
[29,null,"  TOTAL OTHER FEDERAL TAX CREDITS",null,null,{"$f":"SUM(F656:F657)","v":0},{"$f":"SUM(G656:G657)","v":0},{"$f":"SUM(H656:H657)","v":0},{"$f":"SUM(I656:I657)","v":0},{"$f":"SUM(J656:J657)","v":0},0,0,0,0,0,0,{"$f":"SUM($Q$656:$Q$657)","v":0},{"$f":"SUM(R656:R657)","v":0},{"$f":"SUM(S656:S657)","v":0}]
[30]
[31,"PRELIMINARY SUMMARY"]
[32,null,{"$f":"'FR-16(7)(v)-1 Functional'!C661","v":"TOTAL FED DEF IT (410 & 411)"},null,null,{"$f":"F649","v":-139},{"$f":"G649","v":0},{"$f":"H649","v":0},{"$f":"I649","v":0},{"$f":"J649","v":0},0,0,0,0,0,0,{"$f":"$Q$649","v":0},{"$f":"R649","v":0},{"$f":"S649","v":-139}]
[33,null,{"$f":"'FR-16(7)(v)-1 Functional'!C662","v":"TOTAL AMORTIZED ITC & OTHER FEDERAL TAX CREDITS"},null,null,{"$f":"-F653-F658","v":0},{"$f":"-G653-G658","v":0},0,0,0,0,0,0,0,0,0,0,0,0]
[34,null,{"$f":"'FR-16(7)(v)-1 Functional'!C663","v":"  TOTAL FEDERAL TAX ADJUSTMENTS"},null,null,{"$f":"SUM(F661:F662)","v":-139},{"$f":"SUM(G661:G662)","v":0},{"$f":"SUM(H661:H662)","v":0},{"$f":"SUM(I661:I662)","v":0},{"$f":"SUM(J661:J662)","v":0},0,0,0,0,0,0,{"$f":"SUM($Q$661:$Q$662)","v":0},{"$f":"SUM(R661:R662)","v":0},{"$f":"SUM(S661:S662)","v":-139}]
[35]
[36,"FEDERAL INCOME TAX COMPUTATION"]
[37,null,"RETURN ON RATE BASE",null,null,{"$f":"F433","v":1},{"$f":"G433","v":0},{"$f":"H433","v":0},{"$f":"I433","v":0},{"$f":"J433","v":0},0,0,0,0,0,0,{"$f":"Q433","v":0},{"$f":"R433","v":0},{"$f":"F666-R666","v":1}]
[38,null,{"$f":"'FR-16(7)(v)-1 Functional'!C667","v":"NET DEDUCTIONS AND ADDITIONS"},null,null,{"$f":"-F641","v":0},{"$f":"-G641","v":0},{"$f":"-H641","v":0},{"$f":"-I641","v":0},{"$f":"-J641","v":0},0,0,0,0,0,0,{"$f":"-$Q$641","v":0},{"$f":"-R641","v":0},{"$f":"F667-R667","v":0}]
[39,null,{"$f":"'FR-16(7)(v)-1 Functional'!C668","v":"TOTAL FEDERAL TAX ADJUSTMENTS"},null,null,{"$f":"F663","v":-139},{"$f":"G663","v":0},{"$f":"H663","v":0},{"$f":"I663","v":0},{"$f":"J663","v":0},0,0,0,0,0,0,{"$f":"$Q$663","v":0},{"$f":"R663","v":0},{"$f":"F668-R668","v":-139}]
[40,null,"TOTAL STATE PROV DEF IT (410 & 411)",null,null,{"$f":"F707","v":0},{"$f":"G707","v":0},0,0,0,0,0,0,0,0,0,0,0,{"$f":"F669-R669","v":0}]
[41,null,"RESERVED",null,null,{"$f":"'FR-16(7)(v)-3 PROD Demand'!F670+'FR-16(7)(v)-4 PROD Energy'!F670+'FR-16(7)(v)-5 PROD Cust'!F670+'FR-16(7)(v)-7 TRANS Demand'!F670+'FR-16(7)(v)-8 TRANS Energy'!F670+'FR-16(7)(v)-9 TRANS Cust'!F670+'FR-16(7)(v)-11 DIST Demand'!F670+'FR-16(7)(v)-12 DIST Energy'!F670+'FR-16(7)(v)-13 DIST Cust'!F670-'FR-16(7)(v)-14 TOTAL CLASS'!F670","v":0},{"$f":"'FR-16(7)(v)-3 PROD Demand'!G670+'FR-16(7)(v)-4 PROD Energy'!G670+'FR-16(7)(v)-5 PROD Cust'!G670+'FR-16(7)(v)-7 TRANS Demand'!G670+'FR-16(7)(v)-8 TRANS Energy'!G670+'FR-16(7)(v)-9 TRANS Cust'!G670+'FR-16(7)(v)-11 DIST Demand'!G670+'FR-16(7)(v)-12 DIST Energy'!G670+'FR-16(7)(v)-13 DIST Cust'!G670-'FR-16(7)(v)-14 TOTAL CLASS'!G670","v":0},{"$f":"'FR-16(7)(v)-3 PROD Demand'!H670+'FR-16(7)(v)-4 PROD Energy'!H670+'FR-16(7)(v)-5 PROD Cust'!H670+'FR-16(7)(v)-7 TRANS Demand'!H670+'FR-16(7)(v)-8 TRANS Energy'!H670+'FR-16(7)(v)-9 TRANS Cust'!H670+'FR-16(7)(v)-11 DIST Demand'!H670+'FR-16(7)(v)-12 DIST Energy'!H670+'FR-16(7)(v)-13 DIST Cust'!H670-'FR-16(7)(v)-14 TOTAL CLASS'!H670","v":0},{"$f":"'FR-16(7)(v)-3 PROD Demand'!I670+'FR-16(7)(v)-4 PROD Energy'!I670+'FR-16(7)(v)-5 PROD Cust'!I670+'FR-16(7)(v)-7 TRANS Demand'!I670+'FR-16(7)(v)-8 TRANS Energy'!I670+'FR-16(7)(v)-9 TRANS Cust'!I670+'FR-16(7)(v)-11 DIST Demand'!I670+'FR-16(7)(v)-12 DIST Energy'!I670+'FR-16(7)(v)-13 DIST Cust'!I670-'FR-16(7)(v)-14 TOTAL CLASS'!I670","v":0},{"$f":"'FR-16(7)(v)-3 PROD Demand'!J670+'FR-16(7)(v)-4 PROD Energy'!J670+'FR-16(7)(v)-5 PROD Cust'!J670+'FR-16(7)(v)-7 TRANS Demand'!J670+'FR-16(7)(v)-8 TRANS Energy'!J670+'FR-16(7)(v)-9 TRANS Cust'!J670+'FR-16(7)(v)-11 DIST Demand'!J670+'FR-16(7)(v)-12 DIST Energy'!J670+'FR-16(7)(v)-13 DIST Cust'!J670-'FR-16(7)(v)-14 TOTAL CLASS'!J670","v":0},{"$f":"'FR-16(7)(v)-3 PROD Demand'!K670+'FR-16(7)(v)-4 PROD Energy'!K670+'FR-16(7)(v)-5 PROD Cust'!K670+'FR-16(7)(v)-7 TRANS Demand'!K670+'FR-16(7)(v)-8 TRANS Energy'!K670+'FR-16(7)(v)-9 TRANS Cust'!K670+'FR-16(7)(v)-11 DIST Demand'!K670+'FR-16(7)(v)-12 DIST Energy'!K670+'FR-16(7)(v)-13 DIST Cust'!K670-'FR-16(7)(v)-14 TOTAL CLASS'!K670","v":0},{"$f":"'FR-16(7)(v)-3 PROD Demand'!L670+'FR-16(7)(v)-4 PROD Energy'!L670+'FR-16(7)(v)-5 PROD Cust'!L670+'FR-16(7)(v)-7 TRANS Demand'!L670+'FR-16(7)(v)-8 TRANS Energy'!L670+'FR-16(7)(v)-9 TRANS Cust'!L670+'FR-16(7)(v)-11 DIST Demand'!L670+'FR-16(7)(v)-12 DIST Energy'!L670+'FR-16(7)(v)-13 DIST Cust'!L670-'FR-16(7)(v)-14 TOTAL CLASS'!L670","v":0},{"$f":"'FR-16(7)(v)-3 PROD Demand'!M670+'FR-16(7)(v)-4 PROD Energy'!M670+'FR-16(7)(v)-5 PROD Cust'!M670+'FR-16(7)(v)-7 TRANS Demand'!M670+'FR-16(7)(v)-8 TRANS Energy'!M670+'FR-16(7)(v)-9 TRANS Cust'!M670+'FR-16(7)(v)-11 DIST Demand'!M670+'FR-16(7)(v)-12 DIST Energy'!M670+'FR-16(7)(v)-13 DIST Cust'!M670-'FR-16(7)(v)-14 TOTAL CLASS'!M670","v":0},{"$f":"'FR-16(7)(v)-3 PROD Demand'!N670+'FR-16(7)(v)-4 PROD Energy'!N670+'FR-16(7)(v)-5 PROD Cust'!N670+'FR-16(7)(v)-7 TRANS Demand'!N670+'FR-16(7)(v)-8 TRANS Energy'!N670+'FR-16(7)(v)-9 TRANS Cust'!N670+'FR-16(7)(v)-11 DIST Demand'!N670+'FR-16(7)(v)-12 DIST Energy'!N670+'FR-16(7)(v)-13 DIST Cust'!N670-'FR-16(7)(v)-14 TOTAL CLASS'!N670","v":0},{"$f":"'FR-16(7)(v)-3 PROD Demand'!O670+'FR-16(7)(v)-4 PROD Energy'!O670+'FR-16(7)(v)-5 PROD Cust'!O670+'FR-16(7)(v)-7 TRANS Demand'!O670+'FR-16(7)(v)-8 TRANS Energy'!O670+'FR-16(7)(v)-9 TRANS Cust'!O670+'FR-16(7)(v)-11 DIST Demand'!O670+'FR-16(7)(v)-12 DIST Energy'!O670+'FR-16(7)(v)-13 DIST Cust'!O670-'FR-16(7)(v)-14 TOTAL CLASS'!O670","v":0},{"$f":"'FR-16(7)(v)-3 PROD Demand'!P670+'FR-16(7)(v)-4 PROD Energy'!P670+'FR-16(7)(v)-5 PROD Cust'!P670+'FR-16(7)(v)-7 TRANS Demand'!P670+'FR-16(7)(v)-8 TRANS Energy'!P670+'FR-16(7)(v)-9 TRANS Cust'!P670+'FR-16(7)(v)-11 DIST Demand'!P670+'FR-16(7)(v)-12 DIST Energy'!P670+'FR-16(7)(v)-13 DIST Cust'!P670-'FR-16(7)(v)-14 TOTAL CLASS'!P670","v":0},{"$f":"'FR-16(7)(v)-3 PROD Demand'!Q670+'FR-16(7)(v)-4 PROD Energy'!Q670+'FR-16(7)(v)-5 PROD Cust'!Q670+'FR-16(7)(v)-7 TRANS Demand'!Q670+'FR-16(7)(v)-8 TRANS Energy'!Q670+'FR-16(7)(v)-9 TRANS Cust'!Q670+'FR-16(7)(v)-11 DIST Demand'!Q670+'FR-16(7)(v)-12 DIST Energy'!Q670+'FR-16(7)(v)-13 DIST Cust'!Q670-'FR-16(7)(v)-14 TOTAL CLASS'!Q670","v":0},{"$f":"R24","v":0},{"$f":"F670-R670","v":0}]
[42,null,{"$f":"'FR-16(7)(v)-1 Functional'!C671","v":"  BASE FOR FIT COMPUATION"},null,null,{"$f":"SUM(F666:F670)","v":-138},{"$f":"SUM(G666:G670)","v":0},{"$f":"SUM(H666:H670)","v":0},{"$f":"SUM(I666:I670)","v":0},{"$f":"SUM(J666:J670)","v":0},0,0,0,0,0,0,{"$f":"SUM($Q$666:$Q$670)","v":0},{"$f":"SUM(R666:R670)","v":0},{"$f":"SUM(S666:S670)","v":-138}]
[43]
[44,null,{"$f":"'FR-16(7)(v)-1 Functional'!C673","v":"FIT FACTOR K190/(1-K190)"},null,null,{"$f":"ROUND(FIT/(1-FIT),9)","v":0.26582278500000001},0.26582278500000001,0.26582278500000001,0.26582278500000001,0.26582278500000001,0.26582278500000001,0.26582278500000001,0.26582278500000001,0.26582278500000001,0.26582278500000001,0.26582278500000001,0.26582278500000001,null,{"$f":"ROUND(R815/(1-R815),9)","v":0.26582278500000001}]
[45,null,{"$f":"'FR-16(7)(v)-1 Functional'!C674","v":"PRELIM FED INCOME TAX"},null,null,{"$f":"'FR-16(7)(v)-3 PROD Demand'!F674+'FR-16(7)(v)-4 PROD Energy'!F674+'FR-16(7)(v)-5 PROD Cust'!F674+'FR-16(7)(v)-7 TRANS Demand'!F674+'FR-16(7)(v)-8 TRANS Energy'!F674+'FR-16(7)(v)-9 TRANS Cust'!F674+'FR-16(7)(v)-11 DIST Demand'!F674+'FR-16(7)(v)-12 DIST Energy'!F674+'FR-16(7)(v)-13 DIST Cust'!F674-'FR-16(7)(v)-14 TOTAL CLASS'!F674","v":-37},{"$f":"'FR-16(7)(v)-3 PROD Demand'!G674+'FR-16(7)(v)-4 PROD Energy'!G674+'FR-16(7)(v)-5 PROD Cust'!G674+'FR-16(7)(v)-7 TRANS Demand'!G674+'FR-16(7)(v)-8 TRANS Energy'!G674+'FR-16(7)(v)-9 TRANS Cust'!G674+'FR-16(7)(v)-11 DIST Demand'!G674+'FR-16(7)(v)-12 DIST Energy'!G674+'FR-16(7)(v)-13 DIST Cust'!G674-'FR-16(7)(v)-14 TOTAL CLASS'!G674","v":0},{"$f":"'FR-16(7)(v)-3 PROD Demand'!H674+'FR-16(7)(v)-4 PROD Energy'!H674+'FR-16(7)(v)-5 PROD Cust'!H674+'FR-16(7)(v)-7 TRANS Demand'!H674+'FR-16(7)(v)-8 TRANS Energy'!H674+'FR-16(7)(v)-9 TRANS Cust'!H674+'FR-16(7)(v)-11 DIST Demand'!H674+'FR-16(7)(v)-12 DIST Energy'!H674+'FR-16(7)(v)-13 DIST Cust'!H674-'FR-16(7)(v)-14 TOTAL CLASS'!H674","v":0},{"$f":"'FR-16(7)(v)-3 PROD Demand'!I674+'FR-16(7)(v)-4 PROD Energy'!I674+'FR-16(7)(v)-5 PROD Cust'!I674+'FR-16(7)(v)-7 TRANS Demand'!I674+'FR-16(7)(v)-8 TRANS Energy'!I674+'FR-16(7)(v)-9 TRANS Cust'!I674+'FR-16(7)(v)-11 DIST Demand'!I674+'FR-16(7)(v)-12 DIST Energy'!I674+'FR-16(7)(v)-13 DIST Cust'!I674-'FR-16(7)(v)-14 TOTAL CLASS'!I674","v":0},{"$f":"'FR-16(7)(v)-3 PROD Demand'!J674+'FR-16(7)(v)-4 PROD Energy'!J674+'FR-16(7)(v)-5 PROD Cust'!J674+'FR-16(7)(v)-7 TRANS Demand'!J674+'FR-16(7)(v)-8 TRANS Energy'!J674+'FR-16(7)(v)-9 TRANS Cust'!J674+'FR-16(7)(v)-11 DIST Demand'!J674+'FR-16(7)(v)-12 DIST Energy'!J674+'FR-16(7)(v)-13 DIST Cust'!J674-'FR-16(7)(v)-14 TOTAL CLASS'!J674","v":0},{"$f":"'FR-16(7)(v)-3 PROD Demand'!K674+'FR-16(7)(v)-4 PROD Energy'!K674+'FR-16(7)(v)-5 PROD Cust'!K674+'FR-16(7)(v)-7 TRANS Demand'!K674+'FR-16(7)(v)-8 TRANS Energy'!K674+'FR-16(7)(v)-9 TRANS Cust'!K674+'FR-16(7)(v)-11 DIST Demand'!K674+'FR-16(7)(v)-12 DIST Energy'!K674+'FR-16(7)(v)-13 DIST Cust'!K674-'FR-16(7)(v)-14 TOTAL CLASS'!K674","v":0},{"$f":"'FR-16(7)(v)-3 PROD Demand'!L674+'FR-16(7)(v)-4 PROD Energy'!L674+'FR-16(7)(v)-5 PROD Cust'!L674+'FR-16(7)(v)-7 TRANS Demand'!L674+'FR-16(7)(v)-8 TRANS Energy'!L674+'FR-16(7)(v)-9 TRANS Cust'!L674+'FR-16(7)(v)-11 DIST Demand'!L674+'FR-16(7)(v)-12 DIST Energy'!L674+'FR-16(7)(v)-13 DIST Cust'!L674-'FR-16(7)(v)-14 TOTAL CLASS'!L674","v":0},{"$f":"'FR-16(7)(v)-3 PROD Demand'!M674+'FR-16(7)(v)-4 PROD Energy'!M674+'FR-16(7)(v)-5 PROD Cust'!M674+'FR-16(7)(v)-7 TRANS Demand'!M674+'FR-16(7)(v)-8 TRANS Energy'!M674+'FR-16(7)(v)-9 TRANS Cust'!M674+'FR-16(7)(v)-11 DIST Demand'!M674+'FR-16(7)(v)-12 DIST Energy'!M674+'FR-16(7)(v)-13 DIST Cust'!M674-'FR-16(7)(v)-14 TOTAL CLASS'!M674","v":0},{"$f":"'FR-16(7)(v)-3 PROD Demand'!N674+'FR-16(7)(v)-4 PROD Energy'!N674+'FR-16(7)(v)-5 PROD Cust'!N674+'FR-16(7)(v)-7 TRANS Demand'!N674+'FR-16(7)(v)-8 TRANS Energy'!N674+'FR-16(7)(v)-9 TRANS Cust'!N674+'FR-16(7)(v)-11 DIST Demand'!N674+'FR-16(7)(v)-12 DIST Energy'!N674+'FR-16(7)(v)-13 DIST Cust'!N674-'FR-16(7)(v)-14 TOTAL CLASS'!N674","v":0},{"$f":"'FR-16(7)(v)-3 PROD Demand'!O674+'FR-16(7)(v)-4 PROD Energy'!O674+'FR-16(7)(v)-5 PROD Cust'!O674+'FR-16(7)(v)-7 TRANS Demand'!O674+'FR-16(7)(v)-8 TRANS Energy'!O674+'FR-16(7)(v)-9 TRANS Cust'!O674+'FR-16(7)(v)-11 DIST Demand'!O674+'FR-16(7)(v)-12 DIST Energy'!O674+'FR-16(7)(v)-13 DIST Cust'!O674-'FR-16(7)(v)-14 TOTAL CLASS'!O674","v":0},{"$f":"'FR-16(7)(v)-3 PROD Demand'!P674+'FR-16(7)(v)-4 PROD Energy'!P674+'FR-16(7)(v)-5 PROD Cust'!P674+'FR-16(7)(v)-7 TRANS Demand'!P674+'FR-16(7)(v)-8 TRANS Energy'!P674+'FR-16(7)(v)-9 TRANS Cust'!P674+'FR-16(7)(v)-11 DIST Demand'!P674+'FR-16(7)(v)-12 DIST Energy'!P674+'FR-16(7)(v)-13 DIST Cust'!P674-'FR-16(7)(v)-14 TOTAL CLASS'!P674","v":0},{"$f":"'FR-16(7)(v)-3 PROD Demand'!Q674+'FR-16(7)(v)-4 PROD Energy'!Q674+'FR-16(7)(v)-5 PROD Cust'!Q674+'FR-16(7)(v)-7 TRANS Demand'!Q674+'FR-16(7)(v)-8 TRANS Energy'!Q674+'FR-16(7)(v)-9 TRANS Cust'!Q674+'FR-16(7)(v)-11 DIST Demand'!Q674+'FR-16(7)(v)-12 DIST Energy'!Q674+'FR-16(7)(v)-13 DIST Cust'!Q674-'FR-16(7)(v)-14 TOTAL CLASS'!Q674","v":0},{"$f":"SUM(G674:Q674)","v":0},{"$f":"F674-R674","v":-37}]
[46,null,{"$f":"'FR-16(7)(v)-1 Functional'!C675","v":"TOTAL FEDERAL TAX ADJUSTMENTS"},null,null,{"$f":"F663","v":-139},{"$f":"G663","v":0},{"$f":"H663","v":0},{"$f":"I663","v":0},{"$f":"J663","v":0},0,0,0,0,0,0,{"$f":"$Q$663","v":0},{"$f":"R663","v":0},{"$f":"F675-R675","v":-139}]
[47,null,{"$f":"'FR-16(7)(v)-1 Functional'!C676","v":"  NET FED INCOME TAX ALLOWABLE"},null,null,{"$f":"SUM(F674:F675)","v":-176},{"$f":"SUM(G674:G675)","v":0},{"$f":"SUM(H674:H675)","v":0},{"$f":"SUM(I674:I675)","v":0},{"$f":"SUM(J674:J675)","v":0},0,0,0,0,0,0,{"$f":"SUM($Q$674:$Q$675)","v":0},{"$f":"SUM(R674:R675)","v":0},{"$f":"SUM(S674:S675)","v":-176}]
[48]
[49,"INCOME TAX BASED ON RETURN"]
[50,"FEDERAL INCOME TAX PAYABLE"]
[51,null,{"$f":"'FR-16(7)(v)-1 Functional'!C680","v":"PRELIM FEDERAL INCOME TAX"},null,null,{"$f":"F674","v":-37},{"$f":"G674","v":0},{"$f":"H674","v":0},{"$f":"I674","v":0},{"$f":"J674","v":0},0,0,0,0,0,0,{"$f":"$Q$674","v":0},{"$f":"R674","v":0},{"$f":"S674","v":-37}]
[53,null,{"$f":"'FR-16(7)(v)-1 Functional'!C681","v":"  NET FED INCOME TAX PAYABLE"},null,null,{"$f":"SUM(F680:F680)","v":-37},{"$f":"SUM(G680:G680)","v":0},{"$f":"SUM(H680:H680)","v":0},{"$f":"SUM(I680:I680)","v":0},{"$f":"SUM(J680:J680)","v":0},0,0,0,0,0,0,{"$f":"SUM($Q$680:$Q$680)","v":0},{"$f":"SUM(R680:R680)","v":0},{"$f":"SUM(S680:S680)","v":-37}]
[]
[{"$f":"co_name","v":"DUKE ENERGY KENTUCKY, INC."},null,null,null,null,null,null,null,null,null,null,null,null,null,null,null,null,{"$f":"R1","v":"FR-16(7)(v)-14"}]
[{"$f":"$A$2","v":"TOTAL CLASS ALLOCATED - ELECTRIC COST OF SERVICE"},null,null,null,null,null,null,null,null,null,null,null,null,null,null,null,null,{"$f":"R2","v":"WITNESS RESPONSIBLE:"}]
[{"$f":"case_name","v":"CASE NO: 2019-00271"},null,null,null,null,null,null,null,null,null,null,null,null,null,null,null,null,{"$f":"Witness","v":"JAMES E. ZIOLKOWSKI"}]
[{"$f":"data_filing","v":"DATA: 12 MONTHS ACTUAL  & 0 MONTHS ESTIMATED"},null,null,null,null,null,null,null,null,null,null,null,null,null,null,null,null,{"$f":"\"PAGE \"&Pages2-2&\" OF \"&Pages2","v":"PAGE 13 OF 15"}]
[{"$f":"type","v":"TYPE OF FILING: \"X\" ORIGINAL   UPDATED    REVISED  "}]
[]
[null,null,null,null,null,{"$f":"F$7","v":"TOTAL"},null,{"$f":"H$7","v":"DS"},{"$f":"I$7","v":"GSFL"},{"$f":"J$7","v":"EH"},{"$f":"K$7","v":"SP"},"DT SEC","DT PRI","DP","TT",null,"OTHER"]
["LINE",null,null,null,null,{"$f":"F$8","v":"CLASS"},{"$f":"G$8","v":"RS"},{"$f":"H$8","v":"SECONDARY"},{"$f":"I$8","v":"SECONDARY"},{"$f":"J$8","v":"SECONDARY"},{"$f":"K$8","v":"SECONDARY"},"SECONDARY","PRIMARY","PRIMARY","TRANSMISSION","LT","WATER",{"$f":"R8","v":"TOTAL"},"ALL"]
["NO.","STATE INCOME TAX BASED ON RETURN",null,"Allo",null,{"$f":"F$9","v":"ALLOCATED"},{"$f":"G$9","v":"RESIDENTIAL"},{"$f":"H$9","v":"DISTRIBUTION"},{"$f":"I$9","v":"DISTRIBUTION"},{"$f":"J$9","v":"DISTRIBUTION"},{"$f":"K$9","v":"DISTRIBUTION"},"DISTRIBUTION","DISTRIBUTION","DISTRIBUTION","TIME OF DAY","LIGHTING","PUMPING",{"$f":"R9","v":"AT ISSUE"},"OTHER"]
[null,null,"Schedule 9.1",null,null,null,{"$f":"G$10","v":3},{"$f":"H$10","v":4},{"$f":"I$10","v":5},{"$f":"J$10","v":6},{"$f":"K$10","v":7},8,9,10,11,12,13,null," "]
[1,"DEDUCTIONS IN ADDITION TO Y871"]
[2,"KY TAXABLE INCOME ADJUSTMENT",null,"NP29",null,{"$f":"'FR-16(7)(v)-3 PROD Demand'!F694+'FR-16(7)(v)-4 PROD Energy'!F694+'FR-16(7)(v)-5 PROD Cust'!F694+'FR-16(7)(v)-7 TRANS Demand'!F694+'FR-16(7)(v)-8 TRANS Energy'!F694+'FR-16(7)(v)-9 TRANS Cust'!F694+'FR-16(7)(v)-11 DIST Demand'!F694+'FR-16(7)(v)-12 DIST Energy'!F694+'FR-16(7)(v)-13 DIST Cust'!F694-'FR-16(7)(v)-14 TOTAL CLASS'!F694","v":0},{"$f":"'FR-16(7)(v)-3 PROD Demand'!G694+'FR-16(7)(v)-4 PROD Energy'!G694+'FR-16(7)(v)-5 PROD Cust'!G694+'FR-16(7)(v)-7 TRANS Demand'!G694+'FR-16(7)(v)-8 TRANS Energy'!G694+'FR-16(7)(v)-9 TRANS Cust'!G694+'FR-16(7)(v)-11 DIST Demand'!G694+'FR-16(7)(v)-12 DIST Energy'!G694+'FR-16(7)(v)-13 DIST Cust'!G694-'FR-16(7)(v)-14 TOTAL CLASS'!G694","v":0},{"$f":"'FR-16(7)(v)-3 PROD Demand'!H694+'FR-16(7)(v)-4 PROD Energy'!H694+'FR-16(7)(v)-5 PROD Cust'!H694+'FR-16(7)(v)-7 TRANS Demand'!H694+'FR-16(7)(v)-8 TRANS Energy'!H694+'FR-16(7)(v)-9 TRANS Cust'!H694+'FR-16(7)(v)-11 DIST Demand'!H694+'FR-16(7)(v)-12 DIST Energy'!H694+'FR-16(7)(v)-13 DIST Cust'!H694-'FR-16(7)(v)-14 TOTAL CLASS'!H694","v":0},{"$f":"'FR-16(7)(v)-3 PROD Demand'!I694+'FR-16(7)(v)-4 PROD Energy'!I694+'FR-16(7)(v)-5 PROD Cust'!I694+'FR-16(7)(v)-7 TRANS Demand'!I694+'FR-16(7)(v)-8 TRANS Energy'!I694+'FR-16(7)(v)-9 TRANS Cust'!I694+'FR-16(7)(v)-11 DIST Demand'!I694+'FR-16(7)(v)-12 DIST Energy'!I694+'FR-16(7)(v)-13 DIST Cust'!I694-'FR-16(7)(v)-14 TOTAL CLASS'!I694","v":0},{"$f":"'FR-16(7)(v)-3 PROD Demand'!J694+'FR-16(7)(v)-4 PROD Energy'!J694+'FR-16(7)(v)-5 PROD Cust'!J694+'FR-16(7)(v)-7 TRANS Demand'!J694+'FR-16(7)(v)-8 TRANS Energy'!J694+'FR-16(7)(v)-9 TRANS Cust'!J694+'FR-16(7)(v)-11 DIST Demand'!J694+'FR-16(7)(v)-12 DIST Energy'!J694+'FR-16(7)(v)-13 DIST Cust'!J694-'FR-16(7)(v)-14 TOTAL CLASS'!J694","v":0},{"$f":"'FR-16(7)(v)-3 PROD Demand'!K694+'FR-16(7)(v)-4 PROD Energy'!K694+'FR-16(7)(v)-5 PROD Cust'!K694+'FR-16(7)(v)-7 TRANS Demand'!K694+'FR-16(7)(v)-8 TRANS Energy'!K694+'FR-16(7)(v)-9 TRANS Cust'!K694+'FR-16(7)(v)-11 DIST Demand'!K694+'FR-16(7)(v)-12 DIST Energy'!K694+'FR-16(7)(v)-13 DIST Cust'!K694-'FR-16(7)(v)-14 TOTAL CLASS'!K694","v":0},{"$f":"'FR-16(7)(v)-3 PROD Demand'!L694+'FR-16(7)(v)-4 PROD Energy'!L694+'FR-16(7)(v)-5 PROD Cust'!L694+'FR-16(7)(v)-7 TRANS Demand'!L694+'FR-16(7)(v)-8 TRANS Energy'!L694+'FR-16(7)(v)-9 TRANS Cust'!L694+'FR-16(7)(v)-11 DIST Demand'!L694+'FR-16(7)(v)-12 DIST Energy'!L694+'FR-16(7)(v)-13 DIST Cust'!L694-'FR-16(7)(v)-14 TOTAL CLASS'!L694","v":0},{"$f":"'FR-16(7)(v)-3 PROD Demand'!M694+'FR-16(7)(v)-4 PROD Energy'!M694+'FR-16(7)(v)-5 PROD Cust'!M694+'FR-16(7)(v)-7 TRANS Demand'!M694+'FR-16(7)(v)-8 TRANS Energy'!M694+'FR-16(7)(v)-9 TRANS Cust'!M694+'FR-16(7)(v)-11 DIST Demand'!M694+'FR-16(7)(v)-12 DIST Energy'!M694+'FR-16(7)(v)-13 DIST Cust'!M694-'FR-16(7)(v)-14 TOTAL CLASS'!M694","v":0},{"$f":"'FR-16(7)(v)-3 PROD Demand'!N694+'FR-16(7)(v)-4 PROD Energy'!N694+'FR-16(7)(v)-5 PROD Cust'!N694+'FR-16(7)(v)-7 TRANS Demand'!N694+'FR-16(7)(v)-8 TRANS Energy'!N694+'FR-16(7)(v)-9 TRANS Cust'!N694+'FR-16(7)(v)-11 DIST Demand'!N694+'FR-16(7)(v)-12 DIST Energy'!N694+'FR-16(7)(v)-13 DIST Cust'!N694-'FR-16(7)(v)-14 TOTAL CLASS'!N694","v":0},{"$f":"'FR-16(7)(v)-3 PROD Demand'!O694+'FR-16(7)(v)-4 PROD Energy'!O694+'FR-16(7)(v)-5 PROD Cust'!O694+'FR-16(7)(v)-7 TRANS Demand'!O694+'FR-16(7)(v)-8 TRANS Energy'!O694+'FR-16(7)(v)-9 TRANS Cust'!O694+'FR-16(7)(v)-11 DIST Demand'!O694+'FR-16(7)(v)-12 DIST Energy'!O694+'FR-16(7)(v)-13 DIST Cust'!O694-'FR-16(7)(v)-14 TOTAL CLASS'!O694","v":0},{"$f":"'FR-16(7)(v)-3 PROD Demand'!P694+'FR-16(7)(v)-4 PROD Energy'!P694+'FR-16(7)(v)-5 PROD Cust'!P694+'FR-16(7)(v)-7 TRANS Demand'!P694+'FR-16(7)(v)-8 TRANS Energy'!P694+'FR-16(7)(v)-9 TRANS Cust'!P694+'FR-16(7)(v)-11 DIST Demand'!P694+'FR-16(7)(v)-12 DIST Energy'!P694+'FR-16(7)(v)-13 DIST Cust'!P694-'FR-16(7)(v)-14 TOTAL CLASS'!P694","v":0},{"$f":"'FR-16(7)(v)-3 PROD Demand'!Q694+'FR-16(7)(v)-4 PROD Energy'!Q694+'FR-16(7)(v)-5 PROD Cust'!Q694+'FR-16(7)(v)-7 TRANS Demand'!Q694+'FR-16(7)(v)-8 TRANS Energy'!Q694+'FR-16(7)(v)-9 TRANS Cust'!Q694+'FR-16(7)(v)-11 DIST Demand'!Q694+'FR-16(7)(v)-12 DIST Energy'!Q694+'FR-16(7)(v)-13 DIST Cust'!Q694-'FR-16(7)(v)-14 TOTAL CLASS'!Q694","v":0},{"$f":"SUM(G694:Q694)","v":0},{"$f":"F694-R694","v":0}]
[3,"RESERVED FOR FUTURE USE",null,"NP29",null,{"$f":"'FR-16(7)(v)-3 PROD Demand'!F695+'FR-16(7)(v)-4 PROD Energy'!F695+'FR-16(7)(v)-5 PROD Cust'!F695+'FR-16(7)(v)-7 TRANS Demand'!F695+'FR-16(7)(v)-8 TRANS Energy'!F695+'FR-16(7)(v)-9 TRANS Cust'!F695+'FR-16(7)(v)-11 DIST Demand'!F695+'FR-16(7)(v)-12 DIST Energy'!F695+'FR-16(7)(v)-13 DIST Cust'!F695-'FR-16(7)(v)-14 TOTAL CLASS'!F695","v":0},{"$f":"'FR-16(7)(v)-3 PROD Demand'!G695+'FR-16(7)(v)-4 PROD Energy'!G695+'FR-16(7)(v)-5 PROD Cust'!G695+'FR-16(7)(v)-7 TRANS Demand'!G695+'FR-16(7)(v)-8 TRANS Energy'!G695+'FR-16(7)(v)-9 TRANS Cust'!G695+'FR-16(7)(v)-11 DIST Demand'!G695+'FR-16(7)(v)-12 DIST Energy'!G695+'FR-16(7)(v)-13 DIST Cust'!G695-'FR-16(7)(v)-14 TOTAL CLASS'!G695","v":0},{"$f":"'FR-16(7)(v)-3 PROD Demand'!H695+'FR-16(7)(v)-4 PROD Energy'!H695+'FR-16(7)(v)-5 PROD Cust'!H695+'FR-16(7)(v)-7 TRANS Demand'!H695+'FR-16(7)(v)-8 TRANS Energy'!H695+'FR-16(7)(v)-9 TRANS Cust'!H695+'FR-16(7)(v)-11 DIST Demand'!H695+'FR-16(7)(v)-12 DIST Energy'!H695+'FR-16(7)(v)-13 DIST Cust'!H695-'FR-16(7)(v)-14 TOTAL CLASS'!H695","v":0},{"$f":"'FR-16(7)(v)-3 PROD Demand'!I695+'FR-16(7)(v)-4 PROD Energy'!I695+'FR-16(7)(v)-5 PROD Cust'!I695+'FR-16(7)(v)-7 TRANS Demand'!I695+'FR-16(7)(v)-8 TRANS Energy'!I695+'FR-16(7)(v)-9 TRANS Cust'!I695+'FR-16(7)(v)-11 DIST Demand'!I695+'FR-16(7)(v)-12 DIST Energy'!I695+'FR-16(7)(v)-13 DIST Cust'!I695-'FR-16(7)(v)-14 TOTAL CLASS'!I695","v":0},{"$f":"'FR-16(7)(v)-3 PROD Demand'!J695+'FR-16(7)(v)-4 PROD Energy'!J695+'FR-16(7)(v)-5 PROD Cust'!J695+'FR-16(7)(v)-7 TRANS Demand'!J695+'FR-16(7)(v)-8 TRANS Energy'!J695+'FR-16(7)(v)-9 TRANS Cust'!J695+'FR-16(7)(v)-11 DIST Demand'!J695+'FR-16(7)(v)-12 DIST Energy'!J695+'FR-16(7)(v)-13 DIST Cust'!J695-'FR-16(7)(v)-14 TOTAL CLASS'!J695","v":0},{"$f":"'FR-16(7)(v)-3 PROD Demand'!K695+'FR-16(7)(v)-4 PROD Energy'!K695+'FR-16(7)(v)-5 PROD Cust'!K695+'FR-16(7)(v)-7 TRANS Demand'!K695+'FR-16(7)(v)-8 TRANS Energy'!K695+'FR-16(7)(v)-9 TRANS Cust'!K695+'FR-16(7)(v)-11 DIST Demand'!K695+'FR-16(7)(v)-12 DIST Energy'!K695+'FR-16(7)(v)-13 DIST Cust'!K695-'FR-16(7)(v)-14 TOTAL CLASS'!K695","v":0},{"$f":"'FR-16(7)(v)-3 PROD Demand'!L695+'FR-16(7)(v)-4 PROD Energy'!L695+'FR-16(7)(v)-5 PROD Cust'!L695+'FR-16(7)(v)-7 TRANS Demand'!L695+'FR-16(7)(v)-8 TRANS Energy'!L695+'FR-16(7)(v)-9 TRANS Cust'!L695+'FR-16(7)(v)-11 DIST Demand'!L695+'FR-16(7)(v)-12 DIST Energy'!L695+'FR-16(7)(v)-13 DIST Cust'!L695-'FR-16(7)(v)-14 TOTAL CLASS'!L695","v":0},{"$f":"'FR-16(7)(v)-3 PROD Demand'!M695+'FR-16(7)(v)-4 PROD Energy'!M695+'FR-16(7)(v)-5 PROD Cust'!M695+'FR-16(7)(v)-7 TRANS Demand'!M695+'FR-16(7)(v)-8 TRANS Energy'!M695+'FR-16(7)(v)-9 TRANS Cust'!M695+'FR-16(7)(v)-11 DIST Demand'!M695+'FR-16(7)(v)-12 DIST Energy'!M695+'FR-16(7)(v)-13 DIST Cust'!M695-'FR-16(7)(v)-14 TOTAL CLASS'!M695","v":0},{"$f":"'FR-16(7)(v)-3 PROD Demand'!N695+'FR-16(7)(v)-4 PROD Energy'!N695+'FR-16(7)(v)-5 PROD Cust'!N695+'FR-16(7)(v)-7 TRANS Demand'!N695+'FR-16(7)(v)-8 TRANS Energy'!N695+'FR-16(7)(v)-9 TRANS Cust'!N695+'FR-16(7)(v)-11 DIST Demand'!N695+'FR-16(7)(v)-12 DIST Energy'!N695+'FR-16(7)(v)-13 DIST Cust'!N695-'FR-16(7)(v)-14 TOTAL CLASS'!N695","v":0},{"$f":"'FR-16(7)(v)-3 PROD Demand'!O695+'FR-16(7)(v)-4 PROD Energy'!O695+'FR-16(7)(v)-5 PROD Cust'!O695+'FR-16(7)(v)-7 TRANS Demand'!O695+'FR-16(7)(v)-8 TRANS Energy'!O695+'FR-16(7)(v)-9 TRANS Cust'!O695+'FR-16(7)(v)-11 DIST Demand'!O695+'FR-16(7)(v)-12 DIST Energy'!O695+'FR-16(7)(v)-13 DIST Cust'!O695-'FR-16(7)(v)-14 TOTAL CLASS'!O695","v":0},{"$f":"'FR-16(7)(v)-3 PROD Demand'!P695+'FR-16(7)(v)-4 PROD Energy'!P695+'FR-16(7)(v)-5 PROD Cust'!P695+'FR-16(7)(v)-7 TRANS Demand'!P695+'FR-16(7)(v)-8 TRANS Energy'!P695+'FR-16(7)(v)-9 TRANS Cust'!P695+'FR-16(7)(v)-11 DIST Demand'!P695+'FR-16(7)(v)-12 DIST Energy'!P695+'FR-16(7)(v)-13 DIST Cust'!P695-'FR-16(7)(v)-14 TOTAL CLASS'!P695","v":0},{"$f":"'FR-16(7)(v)-3 PROD Demand'!Q695+'FR-16(7)(v)-4 PROD Energy'!Q695+'FR-16(7)(v)-5 PROD Cust'!Q695+'FR-16(7)(v)-7 TRANS Demand'!Q695+'FR-16(7)(v)-8 TRANS Energy'!Q695+'FR-16(7)(v)-9 TRANS Cust'!Q695+'FR-16(7)(v)-11 DIST Demand'!Q695+'FR-16(7)(v)-12 DIST Energy'!Q695+'FR-16(7)(v)-13 DIST Cust'!Q695-'FR-16(7)(v)-14 TOTAL CLASS'!Q695","v":0},{"$f":"SUM(G695:Q695)","v":0},{"$f":"F695-R695","v":0}]
[4,"  DEDUCTIONS IN ADD TO Y871",null,null,null,{"$f":"SUM(F694:F695)","v":0},{"$f":"SUM(G694:G695)","v":0},0,0,0,0,0,0,0,0,0,0,0,0]
[5]
[6,"STATE INCOME TAX ADJUSTMENTS"]
[7,"STATE PROV DEF INC TAX (410 & 411)"]
[8,"OTHER DEFERRED INCOME TAXES - NET",null,"AG39",null,{"$f":"'FR-16(7)(v)-3 PROD Demand'!F700+'FR-16(7)(v)-4 PROD Energy'!F700+'FR-16(7)(v)-5 PROD Cust'!F700+'FR-16(7)(v)-7 TRANS Demand'!F700+'FR-16(7)(v)-8 TRANS Energy'!F700+'FR-16(7)(v)-9 TRANS Cust'!F700+'FR-16(7)(v)-11 DIST Demand'!F700+'FR-16(7)(v)-12 DIST Energy'!F700+'FR-16(7)(v)-13 DIST Cust'!F700-'FR-16(7)(v)-14 TOTAL CLASS'!F700","v":0},{"$f":"'FR-16(7)(v)-3 PROD Demand'!G700+'FR-16(7)(v)-4 PROD Energy'!G700+'FR-16(7)(v)-5 PROD Cust'!G700+'FR-16(7)(v)-7 TRANS Demand'!G700+'FR-16(7)(v)-8 TRANS Energy'!G700+'FR-16(7)(v)-9 TRANS Cust'!G700+'FR-16(7)(v)-11 DIST Demand'!G700+'FR-16(7)(v)-12 DIST Energy'!G700+'FR-16(7)(v)-13 DIST Cust'!G700-'FR-16(7)(v)-14 TOTAL CLASS'!G700","v":0},{"$f":"'FR-16(7)(v)-3 PROD Demand'!H700+'FR-16(7)(v)-4 PROD Energy'!H700+'FR-16(7)(v)-5 PROD Cust'!H700+'FR-16(7)(v)-7 TRANS Demand'!H700+'FR-16(7)(v)-8 TRANS Energy'!H700+'FR-16(7)(v)-9 TRANS Cust'!H700+'FR-16(7)(v)-11 DIST Demand'!H700+'FR-16(7)(v)-12 DIST Energy'!H700+'FR-16(7)(v)-13 DIST Cust'!H700-'FR-16(7)(v)-14 TOTAL CLASS'!H700","v":0},{"$f":"'FR-16(7)(v)-3 PROD Demand'!I700+'FR-16(7)(v)-4 PROD Energy'!I700+'FR-16(7)(v)-5 PROD Cust'!I700+'FR-16(7)(v)-7 TRANS Demand'!I700+'FR-16(7)(v)-8 TRANS Energy'!I700+'FR-16(7)(v)-9 TRANS Cust'!I700+'FR-16(7)(v)-11 DIST Demand'!I700+'FR-16(7)(v)-12 DIST Energy'!I700+'FR-16(7)(v)-13 DIST Cust'!I700-'FR-16(7)(v)-14 TOTAL CLASS'!I700","v":0},{"$f":"'FR-16(7)(v)-3 PROD Demand'!J700+'FR-16(7)(v)-4 PROD Energy'!J700+'FR-16(7)(v)-5 PROD Cust'!J700+'FR-16(7)(v)-7 TRANS Demand'!J700+'FR-16(7)(v)-8 TRANS Energy'!J700+'FR-16(7)(v)-9 TRANS Cust'!J700+'FR-16(7)(v)-11 DIST Demand'!J700+'FR-16(7)(v)-12 DIST Energy'!J700+'FR-16(7)(v)-13 DIST Cust'!J700-'FR-16(7)(v)-14 TOTAL CLASS'!J700","v":0},{"$f":"'FR-16(7)(v)-3 PROD Demand'!K700+'FR-16(7)(v)-4 PROD Energy'!K700+'FR-16(7)(v)-5 PROD Cust'!K700+'FR-16(7)(v)-7 TRANS Demand'!K700+'FR-16(7)(v)-8 TRANS Energy'!K700+'FR-16(7)(v)-9 TRANS Cust'!K700+'FR-16(7)(v)-11 DIST Demand'!K700+'FR-16(7)(v)-12 DIST Energy'!K700+'FR-16(7)(v)-13 DIST Cust'!K700-'FR-16(7)(v)-14 TOTAL CLASS'!K700","v":0},{"$f":"'FR-16(7)(v)-3 PROD Demand'!L700+'FR-16(7)(v)-4 PROD Energy'!L700+'FR-16(7)(v)-5 PROD Cust'!L700+'FR-16(7)(v)-7 TRANS Demand'!L700+'FR-16(7)(v)-8 TRANS Energy'!L700+'FR-16(7)(v)-9 TRANS Cust'!L700+'FR-16(7)(v)-11 DIST Demand'!L700+'FR-16(7)(v)-12 DIST Energy'!L700+'FR-16(7)(v)-13 DIST Cust'!L700-'FR-16(7)(v)-14 TOTAL CLASS'!L700","v":0},{"$f":"'FR-16(7)(v)-3 PROD Demand'!M700+'FR-16(7)(v)-4 PROD Energy'!M700+'FR-16(7)(v)-5 PROD Cust'!M700+'FR-16(7)(v)-7 TRANS Demand'!M700+'FR-16(7)(v)-8 TRANS Energy'!M700+'FR-16(7)(v)-9 TRANS Cust'!M700+'FR-16(7)(v)-11 DIST Demand'!M700+'FR-16(7)(v)-12 DIST Energy'!M700+'FR-16(7)(v)-13 DIST Cust'!M700-'FR-16(7)(v)-14 TOTAL CLASS'!M700","v":0},{"$f":"'FR-16(7)(v)-3 PROD Demand'!N700+'FR-16(7)(v)-4 PROD Energy'!N700+'FR-16(7)(v)-5 PROD Cust'!N700+'FR-16(7)(v)-7 TRANS Demand'!N700+'FR-16(7)(v)-8 TRANS Energy'!N700+'FR-16(7)(v)-9 TRANS Cust'!N700+'FR-16(7)(v)-11 DIST Demand'!N700+'FR-16(7)(v)-12 DIST Energy'!N700+'FR-16(7)(v)-13 DIST Cust'!N700-'FR-16(7)(v)-14 TOTAL CLASS'!N700","v":0},{"$f":"'FR-16(7)(v)-3 PROD Demand'!O700+'FR-16(7)(v)-4 PROD Energy'!O700+'FR-16(7)(v)-5 PROD Cust'!O700+'FR-16(7)(v)-7 TRANS Demand'!O700+'FR-16(7)(v)-8 TRANS Energy'!O700+'FR-16(7)(v)-9 TRANS Cust'!O700+'FR-16(7)(v)-11 DIST Demand'!O700+'FR-16(7)(v)-12 DIST Energy'!O700+'FR-16(7)(v)-13 DIST Cust'!O700-'FR-16(7)(v)-14 TOTAL CLASS'!O700","v":0},{"$f":"'FR-16(7)(v)-3 PROD Demand'!P700+'FR-16(7)(v)-4 PROD Energy'!P700+'FR-16(7)(v)-5 PROD Cust'!P700+'FR-16(7)(v)-7 TRANS Demand'!P700+'FR-16(7)(v)-8 TRANS Energy'!P700+'FR-16(7)(v)-9 TRANS Cust'!P700+'FR-16(7)(v)-11 DIST Demand'!P700+'FR-16(7)(v)-12 DIST Energy'!P700+'FR-16(7)(v)-13 DIST Cust'!P700-'FR-16(7)(v)-14 TOTAL CLASS'!P700","v":0},{"$f":"'FR-16(7)(v)-3 PROD Demand'!Q700+'FR-16(7)(v)-4 PROD Energy'!Q700+'FR-16(7)(v)-5 PROD Cust'!Q700+'FR-16(7)(v)-7 TRANS Demand'!Q700+'FR-16(7)(v)-8 TRANS Energy'!Q700+'FR-16(7)(v)-9 TRANS Cust'!Q700+'FR-16(7)(v)-11 DIST Demand'!Q700+'FR-16(7)(v)-12 DIST Energy'!Q700+'FR-16(7)(v)-13 DIST Cust'!Q700-'FR-16(7)(v)-14 TOTAL CLASS'!Q700","v":0},{"$f":"SUM(G700:Q700)","v":0},{"$f":"F700-R700","v":0}]
[9,"  TOT STATE PROV DEF IT (410 & 411)",null,null,null,{"$f":"SUM(F700)","v":0},{"$f":"SUM(G700)","v":0},0,0,0,0,0,0,0,0,0,0,0,0]
[10]
[11,"OTHER SIT ADJUSTMENTS"]
[12,"CURRENT YEAR PAYABLE ADJUSTMENT",null,"NP29",null,{"$f":"'FR-16(7)(v)-3 PROD Demand'!F704+'FR-16(7)(v)-4 PROD Energy'!F704+'FR-16(7)(v)-5 PROD Cust'!F704+'FR-16(7)(v)-7 TRANS Demand'!F704+'FR-16(7)(v)-8 TRANS Energy'!F704+'FR-16(7)(v)-9 TRANS Cust'!F704+'FR-16(7)(v)-11 DIST Demand'!F704+'FR-16(7)(v)-12 DIST Energy'!F704+'FR-16(7)(v)-13 DIST Cust'!F704-'FR-16(7)(v)-14 TOTAL CLASS'!F704","v":0},{"$f":"'FR-16(7)(v)-3 PROD Demand'!G704+'FR-16(7)(v)-4 PROD Energy'!G704+'FR-16(7)(v)-5 PROD Cust'!G704+'FR-16(7)(v)-7 TRANS Demand'!G704+'FR-16(7)(v)-8 TRANS Energy'!G704+'FR-16(7)(v)-9 TRANS Cust'!G704+'FR-16(7)(v)-11 DIST Demand'!G704+'FR-16(7)(v)-12 DIST Energy'!G704+'FR-16(7)(v)-13 DIST Cust'!G704-'FR-16(7)(v)-14 TOTAL CLASS'!G704","v":0},{"$f":"'FR-16(7)(v)-3 PROD Demand'!H704+'FR-16(7)(v)-4 PROD Energy'!H704+'FR-16(7)(v)-5 PROD Cust'!H704+'FR-16(7)(v)-7 TRANS Demand'!H704+'FR-16(7)(v)-8 TRANS Energy'!H704+'FR-16(7)(v)-9 TRANS Cust'!H704+'FR-16(7)(v)-11 DIST Demand'!H704+'FR-16(7)(v)-12 DIST Energy'!H704+'FR-16(7)(v)-13 DIST Cust'!H704-'FR-16(7)(v)-14 TOTAL CLASS'!H704","v":0},{"$f":"'FR-16(7)(v)-3 PROD Demand'!I704+'FR-16(7)(v)-4 PROD Energy'!I704+'FR-16(7)(v)-5 PROD Cust'!I704+'FR-16(7)(v)-7 TRANS Demand'!I704+'FR-16(7)(v)-8 TRANS Energy'!I704+'FR-16(7)(v)-9 TRANS Cust'!I704+'FR-16(7)(v)-11 DIST Demand'!I704+'FR-16(7)(v)-12 DIST Energy'!I704+'FR-16(7)(v)-13 DIST Cust'!I704-'FR-16(7)(v)-14 TOTAL CLASS'!I704","v":0},{"$f":"'FR-16(7)(v)-3 PROD Demand'!J704+'FR-16(7)(v)-4 PROD Energy'!J704+'FR-16(7)(v)-5 PROD Cust'!J704+'FR-16(7)(v)-7 TRANS Demand'!J704+'FR-16(7)(v)-8 TRANS Energy'!J704+'FR-16(7)(v)-9 TRANS Cust'!J704+'FR-16(7)(v)-11 DIST Demand'!J704+'FR-16(7)(v)-12 DIST Energy'!J704+'FR-16(7)(v)-13 DIST Cust'!J704-'FR-16(7)(v)-14 TOTAL CLASS'!J704","v":0},{"$f":"'FR-16(7)(v)-3 PROD Demand'!K704+'FR-16(7)(v)-4 PROD Energy'!K704+'FR-16(7)(v)-5 PROD Cust'!K704+'FR-16(7)(v)-7 TRANS Demand'!K704+'FR-16(7)(v)-8 TRANS Energy'!K704+'FR-16(7)(v)-9 TRANS Cust'!K704+'FR-16(7)(v)-11 DIST Demand'!K704+'FR-16(7)(v)-12 DIST Energy'!K704+'FR-16(7)(v)-13 DIST Cust'!K704-'FR-16(7)(v)-14 TOTAL CLASS'!K704","v":0},{"$f":"'FR-16(7)(v)-3 PROD Demand'!L704+'FR-16(7)(v)-4 PROD Energy'!L704+'FR-16(7)(v)-5 PROD Cust'!L704+'FR-16(7)(v)-7 TRANS Demand'!L704+'FR-16(7)(v)-8 TRANS Energy'!L704+'FR-16(7)(v)-9 TRANS Cust'!L704+'FR-16(7)(v)-11 DIST Demand'!L704+'FR-16(7)(v)-12 DIST Energy'!L704+'FR-16(7)(v)-13 DIST Cust'!L704-'FR-16(7)(v)-14 TOTAL CLASS'!L704","v":0},{"$f":"'FR-16(7)(v)-3 PROD Demand'!M704+'FR-16(7)(v)-4 PROD Energy'!M704+'FR-16(7)(v)-5 PROD Cust'!M704+'FR-16(7)(v)-7 TRANS Demand'!M704+'FR-16(7)(v)-8 TRANS Energy'!M704+'FR-16(7)(v)-9 TRANS Cust'!M704+'FR-16(7)(v)-11 DIST Demand'!M704+'FR-16(7)(v)-12 DIST Energy'!M704+'FR-16(7)(v)-13 DIST Cust'!M704-'FR-16(7)(v)-14 TOTAL CLASS'!M704","v":0},{"$f":"'FR-16(7)(v)-3 PROD Demand'!N704+'FR-16(7)(v)-4 PROD Energy'!N704+'FR-16(7)(v)-5 PROD Cust'!N704+'FR-16(7)(v)-7 TRANS Demand'!N704+'FR-16(7)(v)-8 TRANS Energy'!N704+'FR-16(7)(v)-9 TRANS Cust'!N704+'FR-16(7)(v)-11 DIST Demand'!N704+'FR-16(7)(v)-12 DIST Energy'!N704+'FR-16(7)(v)-13 DIST Cust'!N704-'FR-16(7)(v)-14 TOTAL CLASS'!N704","v":0},{"$f":"'FR-16(7)(v)-3 PROD Demand'!O704+'FR-16(7)(v)-4 PROD Energy'!O704+'FR-16(7)(v)-5 PROD Cust'!O704+'FR-16(7)(v)-7 TRANS Demand'!O704+'FR-16(7)(v)-8 TRANS Energy'!O704+'FR-16(7)(v)-9 TRANS Cust'!O704+'FR-16(7)(v)-11 DIST Demand'!O704+'FR-16(7)(v)-12 DIST Energy'!O704+'FR-16(7)(v)-13 DIST Cust'!O704-'FR-16(7)(v)-14 TOTAL CLASS'!O704","v":0},{"$f":"'FR-16(7)(v)-3 PROD Demand'!P704+'FR-16(7)(v)-4 PROD Energy'!P704+'FR-16(7)(v)-5 PROD Cust'!P704+'FR-16(7)(v)-7 TRANS Demand'!P704+'FR-16(7)(v)-8 TRANS Energy'!P704+'FR-16(7)(v)-9 TRANS Cust'!P704+'FR-16(7)(v)-11 DIST Demand'!P704+'FR-16(7)(v)-12 DIST Energy'!P704+'FR-16(7)(v)-13 DIST Cust'!P704-'FR-16(7)(v)-14 TOTAL CLASS'!P704","v":0},{"$f":"'FR-16(7)(v)-3 PROD Demand'!Q704+'FR-16(7)(v)-4 PROD Energy'!Q704+'FR-16(7)(v)-5 PROD Cust'!Q704+'FR-16(7)(v)-7 TRANS Demand'!Q704+'FR-16(7)(v)-8 TRANS Energy'!Q704+'FR-16(7)(v)-9 TRANS Cust'!Q704+'FR-16(7)(v)-11 DIST Demand'!Q704+'FR-16(7)(v)-12 DIST Energy'!Q704+'FR-16(7)(v)-13 DIST Cust'!Q704-'FR-16(7)(v)-14 TOTAL CLASS'!Q704","v":0},{"$f":"SUM(G704:Q704)","v":0},{"$f":"F704-R704","v":0}]
[13,"  OTHER SIT ADJUSMENTS",null,null,null,{"$f":"SUM(F704)","v":0},{"$f":"SUM(G704)","v":0},0,0,0,0,0,0,0,0,0,0,0,0]
[14]
[15,"TOTAL STATE INC TAX ADJUSTMENT",null,null,null,{"$f":"F705+F701","v":0},{"$f":"G705+G701","v":0},0,0,0,0,0,0,0,0,0,0,0,0]
[16]
[17,"INCOME TAX BASED ON RETURN"]
[18,"SUMMARY OF SIT CALCULATION"]
[19,"RETURN ON RATE BASE",null,null,null,{"$f":"F433","v":1},{"$f":"G433","v":0},{"$f":"H433","v":0},{"$f":"I433","v":0},{"$f":"J433","v":0},0,0,0,0,0,0,{"$f":"Q433","v":0},{"$f":"R433","v":0},{"$f":"S433","v":1}]
[20,"NET FED INCOME TAX ALLOWABLE",null,null,null,{"$f":"F676","v":-176},{"$f":"G676","v":0},0,0,0,0,0,0,0,0,0,0,{"$f":"R676","v":0},{"$f":"S676","v":-176}]
[21,"NET FED. DED. AND ADDITIONS",null,null,null,{"$f":"-F641","v":0},{"$f":"-G641","v":0},{"$f":"-H641","v":0},{"$f":"-I641","v":0},{"$f":"-J641","v":0},0,0,0,0,0,0,{"$f":"-Q641","v":0},{"$f":"-R641","v":0},{"$f":"-S641","v":0}]
[22,"DEDUCTIONS IN ADD TO Y871",null,null,null,{"$f":"-F696","v":0},{"$f":"-G696","v":0},0,0,0,0,0,0,0,0,0,0,0,0]
[23,"RESERVED",null,null,null,{"$f":"F24","v":0},{"$f":"G24","v":0},{"$f":"H24","v":0},{"$f":"I24","v":0},{"$f":"J24","v":0},0,0,0,0,0,0,{"$f":"Q24","v":0},{"$f":"R24","v":0},{"$f":"S24","v":0}]
[24,"TOTAL STATE INC TAX ADJ",null,null,null,{"$f":"F707","v":0},{"$f":"G707","v":0},0,0,0,0,0,0,0,0,0,0,0,0]
[25,"  BASE FOR SIT COMPUTATION",null,null,null,{"$f":"SUM(F711:F716)","v":-175},{"$f":"SUM(G711:G716)","v":0},0,0,0,0,0,0,0,0,0,0,0,-175]
[26]
[27,"SIT FACTOR K192/(1-K192)",null,null,null,{"$f":"ROUND(SIT/(1-SIT),8)","v":5.2282660000000002E-2},5.2282660000000002E-2,5.2282660000000002E-2,5.2282660000000002E-2,5.2282660000000002E-2,5.2282660000000002E-2,5.2282660000000002E-2,5.2282660000000002E-2,5.2282660000000002E-2,5.2282660000000002E-2,5.2282660000000002E-2,5.2282660000000002E-2,5.2282660000000002E-2,5.2282660000000002E-2]
[28,"PRELIMINARY STATE INCOME TAX",null,null,null,{"$f":"'FR-16(7)(v)-3 PROD Demand'!F720+'FR-16(7)(v)-4 PROD Energy'!F720+'FR-16(7)(v)-5 PROD Cust'!F720+'FR-16(7)(v)-7 TRANS Demand'!F720+'FR-16(7)(v)-8 TRANS Energy'!F720+'FR-16(7)(v)-9 TRANS Cust'!F720+'FR-16(7)(v)-11 DIST Demand'!F720+'FR-16(7)(v)-12 DIST Energy'!F720+'FR-16(7)(v)-13 DIST Cust'!F720-'FR-16(7)(v)-14 TOTAL CLASS'!F720","v":-9},{"$f":"'FR-16(7)(v)-3 PROD Demand'!G720+'FR-16(7)(v)-4 PROD Energy'!G720+'FR-16(7)(v)-5 PROD Cust'!G720+'FR-16(7)(v)-7 TRANS Demand'!G720+'FR-16(7)(v)-8 TRANS Energy'!G720+'FR-16(7)(v)-9 TRANS Cust'!G720+'FR-16(7)(v)-11 DIST Demand'!G720+'FR-16(7)(v)-12 DIST Energy'!G720+'FR-16(7)(v)-13 DIST Cust'!G720-'FR-16(7)(v)-14 TOTAL CLASS'!G720","v":0},{"$f":"'FR-16(7)(v)-3 PROD Demand'!H720+'FR-16(7)(v)-4 PROD Energy'!H720+'FR-16(7)(v)-5 PROD Cust'!H720+'FR-16(7)(v)-7 TRANS Demand'!H720+'FR-16(7)(v)-8 TRANS Energy'!H720+'FR-16(7)(v)-9 TRANS Cust'!H720+'FR-16(7)(v)-11 DIST Demand'!H720+'FR-16(7)(v)-12 DIST Energy'!H720+'FR-16(7)(v)-13 DIST Cust'!H720-'FR-16(7)(v)-14 TOTAL CLASS'!H720","v":0},{"$f":"'FR-16(7)(v)-3 PROD Demand'!I720+'FR-16(7)(v)-4 PROD Energy'!I720+'FR-16(7)(v)-5 PROD Cust'!I720+'FR-16(7)(v)-7 TRANS Demand'!I720+'FR-16(7)(v)-8 TRANS Energy'!I720+'FR-16(7)(v)-9 TRANS Cust'!I720+'FR-16(7)(v)-11 DIST Demand'!I720+'FR-16(7)(v)-12 DIST Energy'!I720+'FR-16(7)(v)-13 DIST Cust'!I720-'FR-16(7)(v)-14 TOTAL CLASS'!I720","v":0},{"$f":"'FR-16(7)(v)-3 PROD Demand'!J720+'FR-16(7)(v)-4 PROD Energy'!J720+'FR-16(7)(v)-5 PROD Cust'!J720+'FR-16(7)(v)-7 TRANS Demand'!J720+'FR-16(7)(v)-8 TRANS Energy'!J720+'FR-16(7)(v)-9 TRANS Cust'!J720+'FR-16(7)(v)-11 DIST Demand'!J720+'FR-16(7)(v)-12 DIST Energy'!J720+'FR-16(7)(v)-13 DIST Cust'!J720-'FR-16(7)(v)-14 TOTAL CLASS'!J720","v":0},{"$f":"'FR-16(7)(v)-3 PROD Demand'!K720+'FR-16(7)(v)-4 PROD Energy'!K720+'FR-16(7)(v)-5 PROD Cust'!K720+'FR-16(7)(v)-7 TRANS Demand'!K720+'FR-16(7)(v)-8 TRANS Energy'!K720+'FR-16(7)(v)-9 TRANS Cust'!K720+'FR-16(7)(v)-11 DIST Demand'!K720+'FR-16(7)(v)-12 DIST Energy'!K720+'FR-16(7)(v)-13 DIST Cust'!K720-'FR-16(7)(v)-14 TOTAL CLASS'!K720","v":0},{"$f":"'FR-16(7)(v)-3 PROD Demand'!L720+'FR-16(7)(v)-4 PROD Energy'!L720+'FR-16(7)(v)-5 PROD Cust'!L720+'FR-16(7)(v)-7 TRANS Demand'!L720+'FR-16(7)(v)-8 TRANS Energy'!L720+'FR-16(7)(v)-9 TRANS Cust'!L720+'FR-16(7)(v)-11 DIST Demand'!L720+'FR-16(7)(v)-12 DIST Energy'!L720+'FR-16(7)(v)-13 DIST Cust'!L720-'FR-16(7)(v)-14 TOTAL CLASS'!L720","v":0},{"$f":"'FR-16(7)(v)-3 PROD Demand'!M720+'FR-16(7)(v)-4 PROD Energy'!M720+'FR-16(7)(v)-5 PROD Cust'!M720+'FR-16(7)(v)-7 TRANS Demand'!M720+'FR-16(7)(v)-8 TRANS Energy'!M720+'FR-16(7)(v)-9 TRANS Cust'!M720+'FR-16(7)(v)-11 DIST Demand'!M720+'FR-16(7)(v)-12 DIST Energy'!M720+'FR-16(7)(v)-13 DIST Cust'!M720-'FR-16(7)(v)-14 TOTAL CLASS'!M720","v":0},{"$f":"'FR-16(7)(v)-3 PROD Demand'!N720+'FR-16(7)(v)-4 PROD Energy'!N720+'FR-16(7)(v)-5 PROD Cust'!N720+'FR-16(7)(v)-7 TRANS Demand'!N720+'FR-16(7)(v)-8 TRANS Energy'!N720+'FR-16(7)(v)-9 TRANS Cust'!N720+'FR-16(7)(v)-11 DIST Demand'!N720+'FR-16(7)(v)-12 DIST Energy'!N720+'FR-16(7)(v)-13 DIST Cust'!N720-'FR-16(7)(v)-14 TOTAL CLASS'!N720","v":0},{"$f":"'FR-16(7)(v)-3 PROD Demand'!O720+'FR-16(7)(v)-4 PROD Energy'!O720+'FR-16(7)(v)-5 PROD Cust'!O720+'FR-16(7)(v)-7 TRANS Demand'!O720+'FR-16(7)(v)-8 TRANS Energy'!O720+'FR-16(7)(v)-9 TRANS Cust'!O720+'FR-16(7)(v)-11 DIST Demand'!O720+'FR-16(7)(v)-12 DIST Energy'!O720+'FR-16(7)(v)-13 DIST Cust'!O720-'FR-16(7)(v)-14 TOTAL CLASS'!O720","v":0},{"$f":"'FR-16(7)(v)-3 PROD Demand'!P720+'FR-16(7)(v)-4 PROD Energy'!P720+'FR-16(7)(v)-5 PROD Cust'!P720+'FR-16(7)(v)-7 TRANS Demand'!P720+'FR-16(7)(v)-8 TRANS Energy'!P720+'FR-16(7)(v)-9 TRANS Cust'!P720+'FR-16(7)(v)-11 DIST Demand'!P720+'FR-16(7)(v)-12 DIST Energy'!P720+'FR-16(7)(v)-13 DIST Cust'!P720-'FR-16(7)(v)-14 TOTAL CLASS'!P720","v":0},{"$f":"'FR-16(7)(v)-3 PROD Demand'!Q720+'FR-16(7)(v)-4 PROD Energy'!Q720+'FR-16(7)(v)-5 PROD Cust'!Q720+'FR-16(7)(v)-7 TRANS Demand'!Q720+'FR-16(7)(v)-8 TRANS Energy'!Q720+'FR-16(7)(v)-9 TRANS Cust'!Q720+'FR-16(7)(v)-11 DIST Demand'!Q720+'FR-16(7)(v)-12 DIST Energy'!Q720+'FR-16(7)(v)-13 DIST Cust'!Q720-'FR-16(7)(v)-14 TOTAL CLASS'!Q720","v":0},{"$f":"ROUND(R717*R719,0)","v":0},{"$f":"ROUND(S717*S719,0)","v":-9}]
[29,"TOTAL STATE INCOME TAX ADJ.",null,null,null,{"$f":"F707","v":0},0,0,0,0,0,0,0,0,0,0,0,0,0]
[30,"  NET STATE INC TAX ALLOWABLE",null,null,null,{"$f":"F721+F720","v":-9},0,0,0,0,0,0,0,0,0,0,0,0,-9]
[31]
[32,"STATE INCOME TAX PAYABLE"]
[33,"PRELIMINARY STATE INCOME TAX",null,null,null,{"$f":"F720","v":-9},{"$f":"G720","v":0},0,0,0,0,0,0,0,0,0,0,0,-9]
[34,"OTHER SIT ADJUSTMENTS",null,null,null,{"$f":"F705","v":0},{"$f":"G705","v":0},0,0,0,0,0,0,0,0,0,0,0,0]
[35,"  NET STATE INCOME TAX PAYABLE",null,null,null,{"$f":"F725+F726","v":-9},0,0,0,0,0,0,0,0,0,0,0,0,-9]
[36]
[37,"COMPOSITE TAX RATE",null,null,null,{"$f":"(SIT*(1-FIT))+((1-SIT)*(1-FIT)*RevTax)+FIT","v":0.24925115},0.24925115,0.24925115,0.24925115,0.24925115,0.24925115,0.24925115,0.24925115,0.24925115,0.24925115,0.24925115,0.24925115,0.24925115,0.24925115]
[]
[{"$f":"co_name","v":"DUKE ENERGY KENTUCKY, INC."},null,null,null,null,null,null,null,null,null,null,null,null,null,null,null,null,{"$f":"R1","v":"FR-16(7)(v)-14"}]
[{"$f":"$A$2","v":"TOTAL CLASS ALLOCATED - ELECTRIC COST OF SERVICE"},null,null,null,null,null,null,null,null,null,null,null,null,null,null,null,null,{"$f":"R2","v":"WITNESS RESPONSIBLE:"}]
[{"$f":"case_name","v":"CASE NO: 2019-00271"},null,null,null,null,null,null,null,null,null,null,null,null,null,null,null,null,{"$f":"Witness","v":"JAMES E. ZIOLKOWSKI"}]
[{"$f":"data_filing","v":"DATA: 12 MONTHS ACTUAL  & 0 MONTHS ESTIMATED"},null,null,null,null,null,null,null,null,null,null,null,null,null,null,null,null,{"$f":"\"PAGE \"&Pages2-1&\" OF \"&Pages2","v":"PAGE 14 OF 15"}]
[{"$f":"type","v":"TYPE OF FILING: \"X\" ORIGINAL   UPDATED    REVISED  "}]
[]
[null,null,null,null,null,{"$f":"F$7","v":"TOTAL"},null,{"$f":"H$7","v":"DS"},{"$f":"I$7","v":"GSFL"},{"$f":"J$7","v":"EH"},{"$f":"K$7","v":"SP"},"DT SEC","DT PRI","DP","TT",null,"OTHER"]
["LINE",null,null,null,null,{"$f":"F$8","v":"CLASS"},{"$f":"G$8","v":"RS"},{"$f":"H$8","v":"SECONDARY"},{"$f":"I$8","v":"SECONDARY"},{"$f":"J$8","v":"SECONDARY"},{"$f":"K$8","v":"SECONDARY"},"SECONDARY","PRIMARY","PRIMARY","TRANSMISSION","LT","WATER",{"$f":"R8","v":"TOTAL"},"ALL"]
["NO.","COST OF SERVICE COMPUTATION",null,"ALLO",null,{"$f":"F$9","v":"ALLOCATED"},{"$f":"G$9","v":"RESIDENTIAL"},{"$f":"H$9","v":"DISTRIBUTION"},{"$f":"I$9","v":"DISTRIBUTION"},{"$f":"J$9","v":"DISTRIBUTION"},{"$f":"K$9","v":"DISTRIBUTION"},"DISTRIBUTION","DISTRIBUTION","DISTRIBUTION","TIME OF DAY","LIGHTING","PUMPING",{"$f":"R9","v":"AT ISSUE"},"OTHER"]
[null,null,"Schedule 10",null,null,null,{"$f":"G$10","v":3},{"$f":"H$10","v":4},{"$f":"I$10","v":5},{"$f":"J$10","v":6},{"$f":"K$10","v":7},8,9,10,11,12,13,null," "]
[1,"OTHER OPERATING REVENUES"]
[2,null,{"$f":"'FR-16(7)(v)-1 Functional'!C742","v":"MISC SERVICE REVENUE"},{"$f":"'FR-16(7)(v)-1 Functional'!D742","v":"D249"},null,{"$f":"'FR-16(7)(v)-3 PROD Demand'!F742+'FR-16(7)(v)-4 PROD Energy'!F742+'FR-16(7)(v)-5 PROD Cust'!F742+'FR-16(7)(v)-7 TRANS Demand'!F742+'FR-16(7)(v)-8 TRANS Energy'!F742+'FR-16(7)(v)-9 TRANS Cust'!F742+'FR-16(7)(v)-11 DIST Demand'!F742+'FR-16(7)(v)-12 DIST Energy'!F742+'FR-16(7)(v)-13 DIST Cust'!F742-'FR-16(7)(v)-14 TOTAL CLASS'!F742","v":0},{"$f":"'FR-16(7)(v)-3 PROD Demand'!G742+'FR-16(7)(v)-4 PROD Energy'!G742+'FR-16(7)(v)-5 PROD Cust'!G742+'FR-16(7)(v)-7 TRANS Demand'!G742+'FR-16(7)(v)-8 TRANS Energy'!G742+'FR-16(7)(v)-9 TRANS Cust'!G742+'FR-16(7)(v)-11 DIST Demand'!G742+'FR-16(7)(v)-12 DIST Energy'!G742+'FR-16(7)(v)-13 DIST Cust'!G742-'FR-16(7)(v)-14 TOTAL CLASS'!G742","v":0},{"$f":"'FR-16(7)(v)-3 PROD Demand'!H742+'FR-16(7)(v)-4 PROD Energy'!H742+'FR-16(7)(v)-5 PROD Cust'!H742+'FR-16(7)(v)-7 TRANS Demand'!H742+'FR-16(7)(v)-8 TRANS Energy'!H742+'FR-16(7)(v)-9 TRANS Cust'!H742+'FR-16(7)(v)-11 DIST Demand'!H742+'FR-16(7)(v)-12 DIST Energy'!H742+'FR-16(7)(v)-13 DIST Cust'!H742-'FR-16(7)(v)-14 TOTAL CLASS'!H742","v":0},{"$f":"'FR-16(7)(v)-3 PROD Demand'!I742+'FR-16(7)(v)-4 PROD Energy'!I742+'FR-16(7)(v)-5 PROD Cust'!I742+'FR-16(7)(v)-7 TRANS Demand'!I742+'FR-16(7)(v)-8 TRANS Energy'!I742+'FR-16(7)(v)-9 TRANS Cust'!I742+'FR-16(7)(v)-11 DIST Demand'!I742+'FR-16(7)(v)-12 DIST Energy'!I742+'FR-16(7)(v)-13 DIST Cust'!I742-'FR-16(7)(v)-14 TOTAL CLASS'!I742","v":0},{"$f":"'FR-16(7)(v)-3 PROD Demand'!J742+'FR-16(7)(v)-4 PROD Energy'!J742+'FR-16(7)(v)-5 PROD Cust'!J742+'FR-16(7)(v)-7 TRANS Demand'!J742+'FR-16(7)(v)-8 TRANS Energy'!J742+'FR-16(7)(v)-9 TRANS Cust'!J742+'FR-16(7)(v)-11 DIST Demand'!J742+'FR-16(7)(v)-12 DIST Energy'!J742+'FR-16(7)(v)-13 DIST Cust'!J742-'FR-16(7)(v)-14 TOTAL CLASS'!J742","v":0},{"$f":"'FR-16(7)(v)-3 PROD Demand'!K742+'FR-16(7)(v)-4 PROD Energy'!K742+'FR-16(7)(v)-5 PROD Cust'!K742+'FR-16(7)(v)-7 TRANS Demand'!K742+'FR-16(7)(v)-8 TRANS Energy'!K742+'FR-16(7)(v)-9 TRANS Cust'!K742+'FR-16(7)(v)-11 DIST Demand'!K742+'FR-16(7)(v)-12 DIST Energy'!K742+'FR-16(7)(v)-13 DIST Cust'!K742-'FR-16(7)(v)-14 TOTAL CLASS'!K742","v":0},{"$f":"'FR-16(7)(v)-3 PROD Demand'!L742+'FR-16(7)(v)-4 PROD Energy'!L742+'FR-16(7)(v)-5 PROD Cust'!L742+'FR-16(7)(v)-7 TRANS Demand'!L742+'FR-16(7)(v)-8 TRANS Energy'!L742+'FR-16(7)(v)-9 TRANS Cust'!L742+'FR-16(7)(v)-11 DIST Demand'!L742+'FR-16(7)(v)-12 DIST Energy'!L742+'FR-16(7)(v)-13 DIST Cust'!L742-'FR-16(7)(v)-14 TOTAL CLASS'!L742","v":0},{"$f":"'FR-16(7)(v)-3 PROD Demand'!M742+'FR-16(7)(v)-4 PROD Energy'!M742+'FR-16(7)(v)-5 PROD Cust'!M742+'FR-16(7)(v)-7 TRANS Demand'!M742+'FR-16(7)(v)-8 TRANS Energy'!M742+'FR-16(7)(v)-9 TRANS Cust'!M742+'FR-16(7)(v)-11 DIST Demand'!M742+'FR-16(7)(v)-12 DIST Energy'!M742+'FR-16(7)(v)-13 DIST Cust'!M742-'FR-16(7)(v)-14 TOTAL CLASS'!M742","v":0},{"$f":"'FR-16(7)(v)-3 PROD Demand'!N742+'FR-16(7)(v)-4 PROD Energy'!N742+'FR-16(7)(v)-5 PROD Cust'!N742+'FR-16(7)(v)-7 TRANS Demand'!N742+'FR-16(7)(v)-8 TRANS Energy'!N742+'FR-16(7)(v)-9 TRANS Cust'!N742+'FR-16(7)(v)-11 DIST Demand'!N742+'FR-16(7)(v)-12 DIST Energy'!N742+'FR-16(7)(v)-13 DIST Cust'!N742-'FR-16(7)(v)-14 TOTAL CLASS'!N742","v":0},{"$f":"'FR-16(7)(v)-3 PROD Demand'!O742+'FR-16(7)(v)-4 PROD Energy'!O742+'FR-16(7)(v)-5 PROD Cust'!O742+'FR-16(7)(v)-7 TRANS Demand'!O742+'FR-16(7)(v)-8 TRANS Energy'!O742+'FR-16(7)(v)-9 TRANS Cust'!O742+'FR-16(7)(v)-11 DIST Demand'!O742+'FR-16(7)(v)-12 DIST Energy'!O742+'FR-16(7)(v)-13 DIST Cust'!O742-'FR-16(7)(v)-14 TOTAL CLASS'!O742","v":0},{"$f":"'FR-16(7)(v)-3 PROD Demand'!P742+'FR-16(7)(v)-4 PROD Energy'!P742+'FR-16(7)(v)-5 PROD Cust'!P742+'FR-16(7)(v)-7 TRANS Demand'!P742+'FR-16(7)(v)-8 TRANS Energy'!P742+'FR-16(7)(v)-9 TRANS Cust'!P742+'FR-16(7)(v)-11 DIST Demand'!P742+'FR-16(7)(v)-12 DIST Energy'!P742+'FR-16(7)(v)-13 DIST Cust'!P742-'FR-16(7)(v)-14 TOTAL CLASS'!P742","v":0},{"$f":"'FR-16(7)(v)-3 PROD Demand'!Q742+'FR-16(7)(v)-4 PROD Energy'!Q742+'FR-16(7)(v)-5 PROD Cust'!Q742+'FR-16(7)(v)-7 TRANS Demand'!Q742+'FR-16(7)(v)-8 TRANS Energy'!Q742+'FR-16(7)(v)-9 TRANS Cust'!Q742+'FR-16(7)(v)-11 DIST Demand'!Q742+'FR-16(7)(v)-12 DIST Energy'!Q742+'FR-16(7)(v)-13 DIST Cust'!Q742-'FR-16(7)(v)-14 TOTAL CLASS'!Q742","v":0},{"$f":"SUM(G742:Q742)","v":0},{"$f":"F742-R742","v":0}]
[3,null,{"$f":"'FR-16(7)(v)-1 Functional'!C743","v":"INTERDEPARTMENTAL"},{"$f":"'FR-16(7)(v)-1 Functional'!D743","v":"K902"},null,{"$f":"'FR-16(7)(v)-3 PROD Demand'!F743+'FR-16(7)(v)-4 PROD Energy'!F743+'FR-16(7)(v)-5 PROD Cust'!F743+'FR-16(7)(v)-7 TRANS Demand'!F743+'FR-16(7)(v)-8 TRANS Energy'!F743+'FR-16(7)(v)-9 TRANS Cust'!F743+'FR-16(7)(v)-11 DIST Demand'!F743+'FR-16(7)(v)-12 DIST Energy'!F743+'FR-16(7)(v)-13 DIST Cust'!F743-'FR-16(7)(v)-14 TOTAL CLASS'!F743","v":0},{"$f":"'FR-16(7)(v)-3 PROD Demand'!G743+'FR-16(7)(v)-4 PROD Energy'!G743+'FR-16(7)(v)-5 PROD Cust'!G743+'FR-16(7)(v)-7 TRANS Demand'!G743+'FR-16(7)(v)-8 TRANS Energy'!G743+'FR-16(7)(v)-9 TRANS Cust'!G743+'FR-16(7)(v)-11 DIST Demand'!G743+'FR-16(7)(v)-12 DIST Energy'!G743+'FR-16(7)(v)-13 DIST Cust'!G743-'FR-16(7)(v)-14 TOTAL CLASS'!G743","v":0},{"$f":"'FR-16(7)(v)-3 PROD Demand'!H743+'FR-16(7)(v)-4 PROD Energy'!H743+'FR-16(7)(v)-5 PROD Cust'!H743+'FR-16(7)(v)-7 TRANS Demand'!H743+'FR-16(7)(v)-8 TRANS Energy'!H743+'FR-16(7)(v)-9 TRANS Cust'!H743+'FR-16(7)(v)-11 DIST Demand'!H743+'FR-16(7)(v)-12 DIST Energy'!H743+'FR-16(7)(v)-13 DIST Cust'!H743-'FR-16(7)(v)-14 TOTAL CLASS'!H743","v":0},{"$f":"'FR-16(7)(v)-3 PROD Demand'!I743+'FR-16(7)(v)-4 PROD Energy'!I743+'FR-16(7)(v)-5 PROD Cust'!I743+'FR-16(7)(v)-7 TRANS Demand'!I743+'FR-16(7)(v)-8 TRANS Energy'!I743+'FR-16(7)(v)-9 TRANS Cust'!I743+'FR-16(7)(v)-11 DIST Demand'!I743+'FR-16(7)(v)-12 DIST Energy'!I743+'FR-16(7)(v)-13 DIST Cust'!I743-'FR-16(7)(v)-14 TOTAL CLASS'!I743","v":0},{"$f":"'FR-16(7)(v)-3 PROD Demand'!J743+'FR-16(7)(v)-4 PROD Energy'!J743+'FR-16(7)(v)-5 PROD Cust'!J743+'FR-16(7)(v)-7 TRANS Demand'!J743+'FR-16(7)(v)-8 TRANS Energy'!J743+'FR-16(7)(v)-9 TRANS Cust'!J743+'FR-16(7)(v)-11 DIST Demand'!J743+'FR-16(7)(v)-12 DIST Energy'!J743+'FR-16(7)(v)-13 DIST Cust'!J743-'FR-16(7)(v)-14 TOTAL CLASS'!J743","v":0},{"$f":"'FR-16(7)(v)-3 PROD Demand'!K743+'FR-16(7)(v)-4 PROD Energy'!K743+'FR-16(7)(v)-5 PROD Cust'!K743+'FR-16(7)(v)-7 TRANS Demand'!K743+'FR-16(7)(v)-8 TRANS Energy'!K743+'FR-16(7)(v)-9 TRANS Cust'!K743+'FR-16(7)(v)-11 DIST Demand'!K743+'FR-16(7)(v)-12 DIST Energy'!K743+'FR-16(7)(v)-13 DIST Cust'!K743-'FR-16(7)(v)-14 TOTAL CLASS'!K743","v":0},{"$f":"'FR-16(7)(v)-3 PROD Demand'!L743+'FR-16(7)(v)-4 PROD Energy'!L743+'FR-16(7)(v)-5 PROD Cust'!L743+'FR-16(7)(v)-7 TRANS Demand'!L743+'FR-16(7)(v)-8 TRANS Energy'!L743+'FR-16(7)(v)-9 TRANS Cust'!L743+'FR-16(7)(v)-11 DIST Demand'!L743+'FR-16(7)(v)-12 DIST Energy'!L743+'FR-16(7)(v)-13 DIST Cust'!L743-'FR-16(7)(v)-14 TOTAL CLASS'!L743","v":0},{"$f":"'FR-16(7)(v)-3 PROD Demand'!M743+'FR-16(7)(v)-4 PROD Energy'!M743+'FR-16(7)(v)-5 PROD Cust'!M743+'FR-16(7)(v)-7 TRANS Demand'!M743+'FR-16(7)(v)-8 TRANS Energy'!M743+'FR-16(7)(v)-9 TRANS Cust'!M743+'FR-16(7)(v)-11 DIST Demand'!M743+'FR-16(7)(v)-12 DIST Energy'!M743+'FR-16(7)(v)-13 DIST Cust'!M743-'FR-16(7)(v)-14 TOTAL CLASS'!M743","v":0},{"$f":"'FR-16(7)(v)-3 PROD Demand'!N743+'FR-16(7)(v)-4 PROD Energy'!N743+'FR-16(7)(v)-5 PROD Cust'!N743+'FR-16(7)(v)-7 TRANS Demand'!N743+'FR-16(7)(v)-8 TRANS Energy'!N743+'FR-16(7)(v)-9 TRANS Cust'!N743+'FR-16(7)(v)-11 DIST Demand'!N743+'FR-16(7)(v)-12 DIST Energy'!N743+'FR-16(7)(v)-13 DIST Cust'!N743-'FR-16(7)(v)-14 TOTAL CLASS'!N743","v":0},{"$f":"'FR-16(7)(v)-3 PROD Demand'!O743+'FR-16(7)(v)-4 PROD Energy'!O743+'FR-16(7)(v)-5 PROD Cust'!O743+'FR-16(7)(v)-7 TRANS Demand'!O743+'FR-16(7)(v)-8 TRANS Energy'!O743+'FR-16(7)(v)-9 TRANS Cust'!O743+'FR-16(7)(v)-11 DIST Demand'!O743+'FR-16(7)(v)-12 DIST Energy'!O743+'FR-16(7)(v)-13 DIST Cust'!O743-'FR-16(7)(v)-14 TOTAL CLASS'!O743","v":0},{"$f":"'FR-16(7)(v)-3 PROD Demand'!P743+'FR-16(7)(v)-4 PROD Energy'!P743+'FR-16(7)(v)-5 PROD Cust'!P743+'FR-16(7)(v)-7 TRANS Demand'!P743+'FR-16(7)(v)-8 TRANS Energy'!P743+'FR-16(7)(v)-9 TRANS Cust'!P743+'FR-16(7)(v)-11 DIST Demand'!P743+'FR-16(7)(v)-12 DIST Energy'!P743+'FR-16(7)(v)-13 DIST Cust'!P743-'FR-16(7)(v)-14 TOTAL CLASS'!P743","v":0},{"$f":"'FR-16(7)(v)-3 PROD Demand'!Q743+'FR-16(7)(v)-4 PROD Energy'!Q743+'FR-16(7)(v)-5 PROD Cust'!Q743+'FR-16(7)(v)-7 TRANS Demand'!Q743+'FR-16(7)(v)-8 TRANS Energy'!Q743+'FR-16(7)(v)-9 TRANS Cust'!Q743+'FR-16(7)(v)-11 DIST Demand'!Q743+'FR-16(7)(v)-12 DIST Energy'!Q743+'FR-16(7)(v)-13 DIST Cust'!Q743-'FR-16(7)(v)-14 TOTAL CLASS'!Q743","v":0},0,0]
[4,null,{"$f":"'FR-16(7)(v)-1 Functional'!C744","v":"POLE & LINE ATTACHMENTS"},{"$f":"'FR-16(7)(v)-1 Functional'!D744","v":"D249"},null,{"$f":"'FR-16(7)(v)-3 PROD Demand'!F744+'FR-16(7)(v)-4 PROD Energy'!F744+'FR-16(7)(v)-5 PROD Cust'!F744+'FR-16(7)(v)-7 TRANS Demand'!F744+'FR-16(7)(v)-8 TRANS Energy'!F744+'FR-16(7)(v)-9 TRANS Cust'!F744+'FR-16(7)(v)-11 DIST Demand'!F744+'FR-16(7)(v)-12 DIST Energy'!F744+'FR-16(7)(v)-13 DIST Cust'!F744-'FR-16(7)(v)-14 TOTAL CLASS'!F744","v":0},{"$f":"'FR-16(7)(v)-3 PROD Demand'!G744+'FR-16(7)(v)-4 PROD Energy'!G744+'FR-16(7)(v)-5 PROD Cust'!G744+'FR-16(7)(v)-7 TRANS Demand'!G744+'FR-16(7)(v)-8 TRANS Energy'!G744+'FR-16(7)(v)-9 TRANS Cust'!G744+'FR-16(7)(v)-11 DIST Demand'!G744+'FR-16(7)(v)-12 DIST Energy'!G744+'FR-16(7)(v)-13 DIST Cust'!G744-'FR-16(7)(v)-14 TOTAL CLASS'!G744","v":0},{"$f":"'FR-16(7)(v)-3 PROD Demand'!H744+'FR-16(7)(v)-4 PROD Energy'!H744+'FR-16(7)(v)-5 PROD Cust'!H744+'FR-16(7)(v)-7 TRANS Demand'!H744+'FR-16(7)(v)-8 TRANS Energy'!H744+'FR-16(7)(v)-9 TRANS Cust'!H744+'FR-16(7)(v)-11 DIST Demand'!H744+'FR-16(7)(v)-12 DIST Energy'!H744+'FR-16(7)(v)-13 DIST Cust'!H744-'FR-16(7)(v)-14 TOTAL CLASS'!H744","v":0},{"$f":"'FR-16(7)(v)-3 PROD Demand'!I744+'FR-16(7)(v)-4 PROD Energy'!I744+'FR-16(7)(v)-5 PROD Cust'!I744+'FR-16(7)(v)-7 TRANS Demand'!I744+'FR-16(7)(v)-8 TRANS Energy'!I744+'FR-16(7)(v)-9 TRANS Cust'!I744+'FR-16(7)(v)-11 DIST Demand'!I744+'FR-16(7)(v)-12 DIST Energy'!I744+'FR-16(7)(v)-13 DIST Cust'!I744-'FR-16(7)(v)-14 TOTAL CLASS'!I744","v":0},{"$f":"'FR-16(7)(v)-3 PROD Demand'!J744+'FR-16(7)(v)-4 PROD Energy'!J744+'FR-16(7)(v)-5 PROD Cust'!J744+'FR-16(7)(v)-7 TRANS Demand'!J744+'FR-16(7)(v)-8 TRANS Energy'!J744+'FR-16(7)(v)-9 TRANS Cust'!J744+'FR-16(7)(v)-11 DIST Demand'!J744+'FR-16(7)(v)-12 DIST Energy'!J744+'FR-16(7)(v)-13 DIST Cust'!J744-'FR-16(7)(v)-14 TOTAL CLASS'!J744","v":0},{"$f":"'FR-16(7)(v)-3 PROD Demand'!K744+'FR-16(7)(v)-4 PROD Energy'!K744+'FR-16(7)(v)-5 PROD Cust'!K744+'FR-16(7)(v)-7 TRANS Demand'!K744+'FR-16(7)(v)-8 TRANS Energy'!K744+'FR-16(7)(v)-9 TRANS Cust'!K744+'FR-16(7)(v)-11 DIST Demand'!K744+'FR-16(7)(v)-12 DIST Energy'!K744+'FR-16(7)(v)-13 DIST Cust'!K744-'FR-16(7)(v)-14 TOTAL CLASS'!K744","v":0},{"$f":"'FR-16(7)(v)-3 PROD Demand'!L744+'FR-16(7)(v)-4 PROD Energy'!L744+'FR-16(7)(v)-5 PROD Cust'!L744+'FR-16(7)(v)-7 TRANS Demand'!L744+'FR-16(7)(v)-8 TRANS Energy'!L744+'FR-16(7)(v)-9 TRANS Cust'!L744+'FR-16(7)(v)-11 DIST Demand'!L744+'FR-16(7)(v)-12 DIST Energy'!L744+'FR-16(7)(v)-13 DIST Cust'!L744-'FR-16(7)(v)-14 TOTAL CLASS'!L744","v":0},{"$f":"'FR-16(7)(v)-3 PROD Demand'!M744+'FR-16(7)(v)-4 PROD Energy'!M744+'FR-16(7)(v)-5 PROD Cust'!M744+'FR-16(7)(v)-7 TRANS Demand'!M744+'FR-16(7)(v)-8 TRANS Energy'!M744+'FR-16(7)(v)-9 TRANS Cust'!M744+'FR-16(7)(v)-11 DIST Demand'!M744+'FR-16(7)(v)-12 DIST Energy'!M744+'FR-16(7)(v)-13 DIST Cust'!M744-'FR-16(7)(v)-14 TOTAL CLASS'!M744","v":0},{"$f":"'FR-16(7)(v)-3 PROD Demand'!N744+'FR-16(7)(v)-4 PROD Energy'!N744+'FR-16(7)(v)-5 PROD Cust'!N744+'FR-16(7)(v)-7 TRANS Demand'!N744+'FR-16(7)(v)-8 TRANS Energy'!N744+'FR-16(7)(v)-9 TRANS Cust'!N744+'FR-16(7)(v)-11 DIST Demand'!N744+'FR-16(7)(v)-12 DIST Energy'!N744+'FR-16(7)(v)-13 DIST Cust'!N744-'FR-16(7)(v)-14 TOTAL CLASS'!N744","v":0},{"$f":"'FR-16(7)(v)-3 PROD Demand'!O744+'FR-16(7)(v)-4 PROD Energy'!O744+'FR-16(7)(v)-5 PROD Cust'!O744+'FR-16(7)(v)-7 TRANS Demand'!O744+'FR-16(7)(v)-8 TRANS Energy'!O744+'FR-16(7)(v)-9 TRANS Cust'!O744+'FR-16(7)(v)-11 DIST Demand'!O744+'FR-16(7)(v)-12 DIST Energy'!O744+'FR-16(7)(v)-13 DIST Cust'!O744-'FR-16(7)(v)-14 TOTAL CLASS'!O744","v":0},{"$f":"'FR-16(7)(v)-3 PROD Demand'!P744+'FR-16(7)(v)-4 PROD Energy'!P744+'FR-16(7)(v)-5 PROD Cust'!P744+'FR-16(7)(v)-7 TRANS Demand'!P744+'FR-16(7)(v)-8 TRANS Energy'!P744+'FR-16(7)(v)-9 TRANS Cust'!P744+'FR-16(7)(v)-11 DIST Demand'!P744+'FR-16(7)(v)-12 DIST Energy'!P744+'FR-16(7)(v)-13 DIST Cust'!P744-'FR-16(7)(v)-14 TOTAL CLASS'!P744","v":0},{"$f":"'FR-16(7)(v)-3 PROD Demand'!Q744+'FR-16(7)(v)-4 PROD Energy'!Q744+'FR-16(7)(v)-5 PROD Cust'!Q744+'FR-16(7)(v)-7 TRANS Demand'!Q744+'FR-16(7)(v)-8 TRANS Energy'!Q744+'FR-16(7)(v)-9 TRANS Cust'!Q744+'FR-16(7)(v)-11 DIST Demand'!Q744+'FR-16(7)(v)-12 DIST Energy'!Q744+'FR-16(7)(v)-13 DIST Cust'!Q744-'FR-16(7)(v)-14 TOTAL CLASS'!Q744","v":0},0,0]
[5,null,{"$f":"'FR-16(7)(v)-1 Functional'!C745","v":"RENTS"},{"$f":"'FR-16(7)(v)-1 Functional'!D745","v":"D249"},null,{"$f":"'FR-16(7)(v)-3 PROD Demand'!F745+'FR-16(7)(v)-4 PROD Energy'!F745+'FR-16(7)(v)-5 PROD Cust'!F745+'FR-16(7)(v)-7 TRANS Demand'!F745+'FR-16(7)(v)-8 TRANS Energy'!F745+'FR-16(7)(v)-9 TRANS Cust'!F745+'FR-16(7)(v)-11 DIST Demand'!F745+'FR-16(7)(v)-12 DIST Energy'!F745+'FR-16(7)(v)-13 DIST Cust'!F745-'FR-16(7)(v)-14 TOTAL CLASS'!F745","v":0},{"$f":"'FR-16(7)(v)-3 PROD Demand'!G745+'FR-16(7)(v)-4 PROD Energy'!G745+'FR-16(7)(v)-5 PROD Cust'!G745+'FR-16(7)(v)-7 TRANS Demand'!G745+'FR-16(7)(v)-8 TRANS Energy'!G745+'FR-16(7)(v)-9 TRANS Cust'!G745+'FR-16(7)(v)-11 DIST Demand'!G745+'FR-16(7)(v)-12 DIST Energy'!G745+'FR-16(7)(v)-13 DIST Cust'!G745-'FR-16(7)(v)-14 TOTAL CLASS'!G745","v":0},{"$f":"'FR-16(7)(v)-3 PROD Demand'!H745+'FR-16(7)(v)-4 PROD Energy'!H745+'FR-16(7)(v)-5 PROD Cust'!H745+'FR-16(7)(v)-7 TRANS Demand'!H745+'FR-16(7)(v)-8 TRANS Energy'!H745+'FR-16(7)(v)-9 TRANS Cust'!H745+'FR-16(7)(v)-11 DIST Demand'!H745+'FR-16(7)(v)-12 DIST Energy'!H745+'FR-16(7)(v)-13 DIST Cust'!H745-'FR-16(7)(v)-14 TOTAL CLASS'!H745","v":0},{"$f":"'FR-16(7)(v)-3 PROD Demand'!I745+'FR-16(7)(v)-4 PROD Energy'!I745+'FR-16(7)(v)-5 PROD Cust'!I745+'FR-16(7)(v)-7 TRANS Demand'!I745+'FR-16(7)(v)-8 TRANS Energy'!I745+'FR-16(7)(v)-9 TRANS Cust'!I745+'FR-16(7)(v)-11 DIST Demand'!I745+'FR-16(7)(v)-12 DIST Energy'!I745+'FR-16(7)(v)-13 DIST Cust'!I745-'FR-16(7)(v)-14 TOTAL CLASS'!I745","v":0},{"$f":"'FR-16(7)(v)-3 PROD Demand'!J745+'FR-16(7)(v)-4 PROD Energy'!J745+'FR-16(7)(v)-5 PROD Cust'!J745+'FR-16(7)(v)-7 TRANS Demand'!J745+'FR-16(7)(v)-8 TRANS Energy'!J745+'FR-16(7)(v)-9 TRANS Cust'!J745+'FR-16(7)(v)-11 DIST Demand'!J745+'FR-16(7)(v)-12 DIST Energy'!J745+'FR-16(7)(v)-13 DIST Cust'!J745-'FR-16(7)(v)-14 TOTAL CLASS'!J745","v":0},{"$f":"'FR-16(7)(v)-3 PROD Demand'!K745+'FR-16(7)(v)-4 PROD Energy'!K745+'FR-16(7)(v)-5 PROD Cust'!K745+'FR-16(7)(v)-7 TRANS Demand'!K745+'FR-16(7)(v)-8 TRANS Energy'!K745+'FR-16(7)(v)-9 TRANS Cust'!K745+'FR-16(7)(v)-11 DIST Demand'!K745+'FR-16(7)(v)-12 DIST Energy'!K745+'FR-16(7)(v)-13 DIST Cust'!K745-'FR-16(7)(v)-14 TOTAL CLASS'!K745","v":0},{"$f":"'FR-16(7)(v)-3 PROD Demand'!L745+'FR-16(7)(v)-4 PROD Energy'!L745+'FR-16(7)(v)-5 PROD Cust'!L745+'FR-16(7)(v)-7 TRANS Demand'!L745+'FR-16(7)(v)-8 TRANS Energy'!L745+'FR-16(7)(v)-9 TRANS Cust'!L745+'FR-16(7)(v)-11 DIST Demand'!L745+'FR-16(7)(v)-12 DIST Energy'!L745+'FR-16(7)(v)-13 DIST Cust'!L745-'FR-16(7)(v)-14 TOTAL CLASS'!L745","v":0},{"$f":"'FR-16(7)(v)-3 PROD Demand'!M745+'FR-16(7)(v)-4 PROD Energy'!M745+'FR-16(7)(v)-5 PROD Cust'!M745+'FR-16(7)(v)-7 TRANS Demand'!M745+'FR-16(7)(v)-8 TRANS Energy'!M745+'FR-16(7)(v)-9 TRANS Cust'!M745+'FR-16(7)(v)-11 DIST Demand'!M745+'FR-16(7)(v)-12 DIST Energy'!M745+'FR-16(7)(v)-13 DIST Cust'!M745-'FR-16(7)(v)-14 TOTAL CLASS'!M745","v":0},{"$f":"'FR-16(7)(v)-3 PROD Demand'!N745+'FR-16(7)(v)-4 PROD Energy'!N745+'FR-16(7)(v)-5 PROD Cust'!N745+'FR-16(7)(v)-7 TRANS Demand'!N745+'FR-16(7)(v)-8 TRANS Energy'!N745+'FR-16(7)(v)-9 TRANS Cust'!N745+'FR-16(7)(v)-11 DIST Demand'!N745+'FR-16(7)(v)-12 DIST Energy'!N745+'FR-16(7)(v)-13 DIST Cust'!N745-'FR-16(7)(v)-14 TOTAL CLASS'!N745","v":0},{"$f":"'FR-16(7)(v)-3 PROD Demand'!O745+'FR-16(7)(v)-4 PROD Energy'!O745+'FR-16(7)(v)-5 PROD Cust'!O745+'FR-16(7)(v)-7 TRANS Demand'!O745+'FR-16(7)(v)-8 TRANS Energy'!O745+'FR-16(7)(v)-9 TRANS Cust'!O745+'FR-16(7)(v)-11 DIST Demand'!O745+'FR-16(7)(v)-12 DIST Energy'!O745+'FR-16(7)(v)-13 DIST Cust'!O745-'FR-16(7)(v)-14 TOTAL CLASS'!O745","v":0},{"$f":"'FR-16(7)(v)-3 PROD Demand'!P745+'FR-16(7)(v)-4 PROD Energy'!P745+'FR-16(7)(v)-5 PROD Cust'!P745+'FR-16(7)(v)-7 TRANS Demand'!P745+'FR-16(7)(v)-8 TRANS Energy'!P745+'FR-16(7)(v)-9 TRANS Cust'!P745+'FR-16(7)(v)-11 DIST Demand'!P745+'FR-16(7)(v)-12 DIST Energy'!P745+'FR-16(7)(v)-13 DIST Cust'!P745-'FR-16(7)(v)-14 TOTAL CLASS'!P745","v":0},{"$f":"'FR-16(7)(v)-3 PROD Demand'!Q745+'FR-16(7)(v)-4 PROD Energy'!Q745+'FR-16(7)(v)-5 PROD Cust'!Q745+'FR-16(7)(v)-7 TRANS Demand'!Q745+'FR-16(7)(v)-8 TRANS Energy'!Q745+'FR-16(7)(v)-9 TRANS Cust'!Q745+'FR-16(7)(v)-11 DIST Demand'!Q745+'FR-16(7)(v)-12 DIST Energy'!Q745+'FR-16(7)(v)-13 DIST Cust'!Q745-'FR-16(7)(v)-14 TOTAL CLASS'!Q745","v":0},0,0]
[6,null,{"$f":"'FR-16(7)(v)-1 Functional'!C746","v":"TRANSMISSION CHARGE PTP"},{"$f":"'FR-16(7)(v)-1 Functional'!D746","v":"T229"},null,{"$f":"'FR-16(7)(v)-3 PROD Demand'!F746+'FR-16(7)(v)-4 PROD Energy'!F746+'FR-16(7)(v)-5 PROD Cust'!F746+'FR-16(7)(v)-7 TRANS Demand'!F746+'FR-16(7)(v)-8 TRANS Energy'!F746+'FR-16(7)(v)-9 TRANS Cust'!F746+'FR-16(7)(v)-11 DIST Demand'!F746+'FR-16(7)(v)-12 DIST Energy'!F746+'FR-16(7)(v)-13 DIST Cust'!F746-'FR-16(7)(v)-14 TOTAL CLASS'!F746","v":0},{"$f":"'FR-16(7)(v)-3 PROD Demand'!G746+'FR-16(7)(v)-4 PROD Energy'!G746+'FR-16(7)(v)-5 PROD Cust'!G746+'FR-16(7)(v)-7 TRANS Demand'!G746+'FR-16(7)(v)-8 TRANS Energy'!G746+'FR-16(7)(v)-9 TRANS Cust'!G746+'FR-16(7)(v)-11 DIST Demand'!G746+'FR-16(7)(v)-12 DIST Energy'!G746+'FR-16(7)(v)-13 DIST Cust'!G746-'FR-16(7)(v)-14 TOTAL CLASS'!G746","v":0},{"$f":"'FR-16(7)(v)-3 PROD Demand'!H746+'FR-16(7)(v)-4 PROD Energy'!H746+'FR-16(7)(v)-5 PROD Cust'!H746+'FR-16(7)(v)-7 TRANS Demand'!H746+'FR-16(7)(v)-8 TRANS Energy'!H746+'FR-16(7)(v)-9 TRANS Cust'!H746+'FR-16(7)(v)-11 DIST Demand'!H746+'FR-16(7)(v)-12 DIST Energy'!H746+'FR-16(7)(v)-13 DIST Cust'!H746-'FR-16(7)(v)-14 TOTAL CLASS'!H746","v":0},{"$f":"'FR-16(7)(v)-3 PROD Demand'!I746+'FR-16(7)(v)-4 PROD Energy'!I746+'FR-16(7)(v)-5 PROD Cust'!I746+'FR-16(7)(v)-7 TRANS Demand'!I746+'FR-16(7)(v)-8 TRANS Energy'!I746+'FR-16(7)(v)-9 TRANS Cust'!I746+'FR-16(7)(v)-11 DIST Demand'!I746+'FR-16(7)(v)-12 DIST Energy'!I746+'FR-16(7)(v)-13 DIST Cust'!I746-'FR-16(7)(v)-14 TOTAL CLASS'!I746","v":0},{"$f":"'FR-16(7)(v)-3 PROD Demand'!J746+'FR-16(7)(v)-4 PROD Energy'!J746+'FR-16(7)(v)-5 PROD Cust'!J746+'FR-16(7)(v)-7 TRANS Demand'!J746+'FR-16(7)(v)-8 TRANS Energy'!J746+'FR-16(7)(v)-9 TRANS Cust'!J746+'FR-16(7)(v)-11 DIST Demand'!J746+'FR-16(7)(v)-12 DIST Energy'!J746+'FR-16(7)(v)-13 DIST Cust'!J746-'FR-16(7)(v)-14 TOTAL CLASS'!J746","v":0},{"$f":"'FR-16(7)(v)-3 PROD Demand'!K746+'FR-16(7)(v)-4 PROD Energy'!K746+'FR-16(7)(v)-5 PROD Cust'!K746+'FR-16(7)(v)-7 TRANS Demand'!K746+'FR-16(7)(v)-8 TRANS Energy'!K746+'FR-16(7)(v)-9 TRANS Cust'!K746+'FR-16(7)(v)-11 DIST Demand'!K746+'FR-16(7)(v)-12 DIST Energy'!K746+'FR-16(7)(v)-13 DIST Cust'!K746-'FR-16(7)(v)-14 TOTAL CLASS'!K746","v":0},{"$f":"'FR-16(7)(v)-3 PROD Demand'!L746+'FR-16(7)(v)-4 PROD Energy'!L746+'FR-16(7)(v)-5 PROD Cust'!L746+'FR-16(7)(v)-7 TRANS Demand'!L746+'FR-16(7)(v)-8 TRANS Energy'!L746+'FR-16(7)(v)-9 TRANS Cust'!L746+'FR-16(7)(v)-11 DIST Demand'!L746+'FR-16(7)(v)-12 DIST Energy'!L746+'FR-16(7)(v)-13 DIST Cust'!L746-'FR-16(7)(v)-14 TOTAL CLASS'!L746","v":0},{"$f":"'FR-16(7)(v)-3 PROD Demand'!M746+'FR-16(7)(v)-4 PROD Energy'!M746+'FR-16(7)(v)-5 PROD Cust'!M746+'FR-16(7)(v)-7 TRANS Demand'!M746+'FR-16(7)(v)-8 TRANS Energy'!M746+'FR-16(7)(v)-9 TRANS Cust'!M746+'FR-16(7)(v)-11 DIST Demand'!M746+'FR-16(7)(v)-12 DIST Energy'!M746+'FR-16(7)(v)-13 DIST Cust'!M746-'FR-16(7)(v)-14 TOTAL CLASS'!M746","v":0},{"$f":"'FR-16(7)(v)-3 PROD Demand'!N746+'FR-16(7)(v)-4 PROD Energy'!N746+'FR-16(7)(v)-5 PROD Cust'!N746+'FR-16(7)(v)-7 TRANS Demand'!N746+'FR-16(7)(v)-8 TRANS Energy'!N746+'FR-16(7)(v)-9 TRANS Cust'!N746+'FR-16(7)(v)-11 DIST Demand'!N746+'FR-16(7)(v)-12 DIST Energy'!N746+'FR-16(7)(v)-13 DIST Cust'!N746-'FR-16(7)(v)-14 TOTAL CLASS'!N746","v":0},{"$f":"'FR-16(7)(v)-3 PROD Demand'!O746+'FR-16(7)(v)-4 PROD Energy'!O746+'FR-16(7)(v)-5 PROD Cust'!O746+'FR-16(7)(v)-7 TRANS Demand'!O746+'FR-16(7)(v)-8 TRANS Energy'!O746+'FR-16(7)(v)-9 TRANS Cust'!O746+'FR-16(7)(v)-11 DIST Demand'!O746+'FR-16(7)(v)-12 DIST Energy'!O746+'FR-16(7)(v)-13 DIST Cust'!O746-'FR-16(7)(v)-14 TOTAL CLASS'!O746","v":0},{"$f":"'FR-16(7)(v)-3 PROD Demand'!P746+'FR-16(7)(v)-4 PROD Energy'!P746+'FR-16(7)(v)-5 PROD Cust'!P746+'FR-16(7)(v)-7 TRANS Demand'!P746+'FR-16(7)(v)-8 TRANS Energy'!P746+'FR-16(7)(v)-9 TRANS Cust'!P746+'FR-16(7)(v)-11 DIST Demand'!P746+'FR-16(7)(v)-12 DIST Energy'!P746+'FR-16(7)(v)-13 DIST Cust'!P746-'FR-16(7)(v)-14 TOTAL CLASS'!P746","v":0},{"$f":"'FR-16(7)(v)-3 PROD Demand'!Q746+'FR-16(7)(v)-4 PROD Energy'!Q746+'FR-16(7)(v)-5 PROD Cust'!Q746+'FR-16(7)(v)-7 TRANS Demand'!Q746+'FR-16(7)(v)-8 TRANS Energy'!Q746+'FR-16(7)(v)-9 TRANS Cust'!Q746+'FR-16(7)(v)-11 DIST Demand'!Q746+'FR-16(7)(v)-12 DIST Energy'!Q746+'FR-16(7)(v)-13 DIST Cust'!Q746-'FR-16(7)(v)-14 TOTAL CLASS'!Q746","v":0},0,0]
[7,null,{"$f":"'FR-16(7)(v)-1 Functional'!C747","v":"PJM REACTIVE REVENUE"},{"$f":"'FR-16(7)(v)-1 Functional'!D747","v":"K401"},null,{"$f":"'FR-16(7)(v)-3 PROD Demand'!F747+'FR-16(7)(v)-4 PROD Energy'!F747+'FR-16(7)(v)-5 PROD Cust'!F747+'FR-16(7)(v)-7 TRANS Demand'!F747+'FR-16(7)(v)-8 TRANS Energy'!F747+'FR-16(7)(v)-9 TRANS Cust'!F747+'FR-16(7)(v)-11 DIST Demand'!F747+'FR-16(7)(v)-12 DIST Energy'!F747+'FR-16(7)(v)-13 DIST Cust'!F747-'FR-16(7)(v)-14 TOTAL CLASS'!F747","v":0},{"$f":"'FR-16(7)(v)-3 PROD Demand'!G747+'FR-16(7)(v)-4 PROD Energy'!G747+'FR-16(7)(v)-5 PROD Cust'!G747+'FR-16(7)(v)-7 TRANS Demand'!G747+'FR-16(7)(v)-8 TRANS Energy'!G747+'FR-16(7)(v)-9 TRANS Cust'!G747+'FR-16(7)(v)-11 DIST Demand'!G747+'FR-16(7)(v)-12 DIST Energy'!G747+'FR-16(7)(v)-13 DIST Cust'!G747-'FR-16(7)(v)-14 TOTAL CLASS'!G747","v":0},{"$f":"'FR-16(7)(v)-3 PROD Demand'!H747+'FR-16(7)(v)-4 PROD Energy'!H747+'FR-16(7)(v)-5 PROD Cust'!H747+'FR-16(7)(v)-7 TRANS Demand'!H747+'FR-16(7)(v)-8 TRANS Energy'!H747+'FR-16(7)(v)-9 TRANS Cust'!H747+'FR-16(7)(v)-11 DIST Demand'!H747+'FR-16(7)(v)-12 DIST Energy'!H747+'FR-16(7)(v)-13 DIST Cust'!H747-'FR-16(7)(v)-14 TOTAL CLASS'!H747","v":0},{"$f":"'FR-16(7)(v)-3 PROD Demand'!I747+'FR-16(7)(v)-4 PROD Energy'!I747+'FR-16(7)(v)-5 PROD Cust'!I747+'FR-16(7)(v)-7 TRANS Demand'!I747+'FR-16(7)(v)-8 TRANS Energy'!I747+'FR-16(7)(v)-9 TRANS Cust'!I747+'FR-16(7)(v)-11 DIST Demand'!I747+'FR-16(7)(v)-12 DIST Energy'!I747+'FR-16(7)(v)-13 DIST Cust'!I747-'FR-16(7)(v)-14 TOTAL CLASS'!I747","v":0},{"$f":"'FR-16(7)(v)-3 PROD Demand'!J747+'FR-16(7)(v)-4 PROD Energy'!J747+'FR-16(7)(v)-5 PROD Cust'!J747+'FR-16(7)(v)-7 TRANS Demand'!J747+'FR-16(7)(v)-8 TRANS Energy'!J747+'FR-16(7)(v)-9 TRANS Cust'!J747+'FR-16(7)(v)-11 DIST Demand'!J747+'FR-16(7)(v)-12 DIST Energy'!J747+'FR-16(7)(v)-13 DIST Cust'!J747-'FR-16(7)(v)-14 TOTAL CLASS'!J747","v":0},{"$f":"'FR-16(7)(v)-3 PROD Demand'!K747+'FR-16(7)(v)-4 PROD Energy'!K747+'FR-16(7)(v)-5 PROD Cust'!K747+'FR-16(7)(v)-7 TRANS Demand'!K747+'FR-16(7)(v)-8 TRANS Energy'!K747+'FR-16(7)(v)-9 TRANS Cust'!K747+'FR-16(7)(v)-11 DIST Demand'!K747+'FR-16(7)(v)-12 DIST Energy'!K747+'FR-16(7)(v)-13 DIST Cust'!K747-'FR-16(7)(v)-14 TOTAL CLASS'!K747","v":0},{"$f":"'FR-16(7)(v)-3 PROD Demand'!L747+'FR-16(7)(v)-4 PROD Energy'!L747+'FR-16(7)(v)-5 PROD Cust'!L747+'FR-16(7)(v)-7 TRANS Demand'!L747+'FR-16(7)(v)-8 TRANS Energy'!L747+'FR-16(7)(v)-9 TRANS Cust'!L747+'FR-16(7)(v)-11 DIST Demand'!L747+'FR-16(7)(v)-12 DIST Energy'!L747+'FR-16(7)(v)-13 DIST Cust'!L747-'FR-16(7)(v)-14 TOTAL CLASS'!L747","v":0},{"$f":"'FR-16(7)(v)-3 PROD Demand'!M747+'FR-16(7)(v)-4 PROD Energy'!M747+'FR-16(7)(v)-5 PROD Cust'!M747+'FR-16(7)(v)-7 TRANS Demand'!M747+'FR-16(7)(v)-8 TRANS Energy'!M747+'FR-16(7)(v)-9 TRANS Cust'!M747+'FR-16(7)(v)-11 DIST Demand'!M747+'FR-16(7)(v)-12 DIST Energy'!M747+'FR-16(7)(v)-13 DIST Cust'!M747-'FR-16(7)(v)-14 TOTAL CLASS'!M747","v":0},{"$f":"'FR-16(7)(v)-3 PROD Demand'!N747+'FR-16(7)(v)-4 PROD Energy'!N747+'FR-16(7)(v)-5 PROD Cust'!N747+'FR-16(7)(v)-7 TRANS Demand'!N747+'FR-16(7)(v)-8 TRANS Energy'!N747+'FR-16(7)(v)-9 TRANS Cust'!N747+'FR-16(7)(v)-11 DIST Demand'!N747+'FR-16(7)(v)-12 DIST Energy'!N747+'FR-16(7)(v)-13 DIST Cust'!N747-'FR-16(7)(v)-14 TOTAL CLASS'!N747","v":0},{"$f":"'FR-16(7)(v)-3 PROD Demand'!O747+'FR-16(7)(v)-4 PROD Energy'!O747+'FR-16(7)(v)-5 PROD Cust'!O747+'FR-16(7)(v)-7 TRANS Demand'!O747+'FR-16(7)(v)-8 TRANS Energy'!O747+'FR-16(7)(v)-9 TRANS Cust'!O747+'FR-16(7)(v)-11 DIST Demand'!O747+'FR-16(7)(v)-12 DIST Energy'!O747+'FR-16(7)(v)-13 DIST Cust'!O747-'FR-16(7)(v)-14 TOTAL CLASS'!O747","v":0},{"$f":"'FR-16(7)(v)-3 PROD Demand'!P747+'FR-16(7)(v)-4 PROD Energy'!P747+'FR-16(7)(v)-5 PROD Cust'!P747+'FR-16(7)(v)-7 TRANS Demand'!P747+'FR-16(7)(v)-8 TRANS Energy'!P747+'FR-16(7)(v)-9 TRANS Cust'!P747+'FR-16(7)(v)-11 DIST Demand'!P747+'FR-16(7)(v)-12 DIST Energy'!P747+'FR-16(7)(v)-13 DIST Cust'!P747-'FR-16(7)(v)-14 TOTAL CLASS'!P747","v":0},{"$f":"'FR-16(7)(v)-3 PROD Demand'!Q747+'FR-16(7)(v)-4 PROD Energy'!Q747+'FR-16(7)(v)-5 PROD Cust'!Q747+'FR-16(7)(v)-7 TRANS Demand'!Q747+'FR-16(7)(v)-8 TRANS Energy'!Q747+'FR-16(7)(v)-9 TRANS Cust'!Q747+'FR-16(7)(v)-11 DIST Demand'!Q747+'FR-16(7)(v)-12 DIST Energy'!Q747+'FR-16(7)(v)-13 DIST Cust'!Q747-'FR-16(7)(v)-14 TOTAL CLASS'!Q747","v":0},0,0]
[8,null,{"$f":"'FR-16(7)(v)-1 Functional'!C748","v":"OTHER TRANSMISSION REVENUES"},{"$f":"'FR-16(7)(v)-1 Functional'!D748","v":"T229"},null,{"$f":"'FR-16(7)(v)-3 PROD Demand'!F748+'FR-16(7)(v)-4 PROD Energy'!F748+'FR-16(7)(v)-5 PROD Cust'!F748+'FR-16(7)(v)-7 TRANS Demand'!F748+'FR-16(7)(v)-8 TRANS Energy'!F748+'FR-16(7)(v)-9 TRANS Cust'!F748+'FR-16(7)(v)-11 DIST Demand'!F748+'FR-16(7)(v)-12 DIST Energy'!F748+'FR-16(7)(v)-13 DIST Cust'!F748-'FR-16(7)(v)-14 TOTAL CLASS'!F748","v":0},{"$f":"'FR-16(7)(v)-3 PROD Demand'!G748+'FR-16(7)(v)-4 PROD Energy'!G748+'FR-16(7)(v)-5 PROD Cust'!G748+'FR-16(7)(v)-7 TRANS Demand'!G748+'FR-16(7)(v)-8 TRANS Energy'!G748+'FR-16(7)(v)-9 TRANS Cust'!G748+'FR-16(7)(v)-11 DIST Demand'!G748+'FR-16(7)(v)-12 DIST Energy'!G748+'FR-16(7)(v)-13 DIST Cust'!G748-'FR-16(7)(v)-14 TOTAL CLASS'!G748","v":0},{"$f":"'FR-16(7)(v)-3 PROD Demand'!H748+'FR-16(7)(v)-4 PROD Energy'!H748+'FR-16(7)(v)-5 PROD Cust'!H748+'FR-16(7)(v)-7 TRANS Demand'!H748+'FR-16(7)(v)-8 TRANS Energy'!H748+'FR-16(7)(v)-9 TRANS Cust'!H748+'FR-16(7)(v)-11 DIST Demand'!H748+'FR-16(7)(v)-12 DIST Energy'!H748+'FR-16(7)(v)-13 DIST Cust'!H748-'FR-16(7)(v)-14 TOTAL CLASS'!H748","v":0},{"$f":"'FR-16(7)(v)-3 PROD Demand'!I748+'FR-16(7)(v)-4 PROD Energy'!I748+'FR-16(7)(v)-5 PROD Cust'!I748+'FR-16(7)(v)-7 TRANS Demand'!I748+'FR-16(7)(v)-8 TRANS Energy'!I748+'FR-16(7)(v)-9 TRANS Cust'!I748+'FR-16(7)(v)-11 DIST Demand'!I748+'FR-16(7)(v)-12 DIST Energy'!I748+'FR-16(7)(v)-13 DIST Cust'!I748-'FR-16(7)(v)-14 TOTAL CLASS'!I748","v":0},{"$f":"'FR-16(7)(v)-3 PROD Demand'!J748+'FR-16(7)(v)-4 PROD Energy'!J748+'FR-16(7)(v)-5 PROD Cust'!J748+'FR-16(7)(v)-7 TRANS Demand'!J748+'FR-16(7)(v)-8 TRANS Energy'!J748+'FR-16(7)(v)-9 TRANS Cust'!J748+'FR-16(7)(v)-11 DIST Demand'!J748+'FR-16(7)(v)-12 DIST Energy'!J748+'FR-16(7)(v)-13 DIST Cust'!J748-'FR-16(7)(v)-14 TOTAL CLASS'!J748","v":0},{"$f":"'FR-16(7)(v)-3 PROD Demand'!K748+'FR-16(7)(v)-4 PROD Energy'!K748+'FR-16(7)(v)-5 PROD Cust'!K748+'FR-16(7)(v)-7 TRANS Demand'!K748+'FR-16(7)(v)-8 TRANS Energy'!K748+'FR-16(7)(v)-9 TRANS Cust'!K748+'FR-16(7)(v)-11 DIST Demand'!K748+'FR-16(7)(v)-12 DIST Energy'!K748+'FR-16(7)(v)-13 DIST Cust'!K748-'FR-16(7)(v)-14 TOTAL CLASS'!K748","v":0},{"$f":"'FR-16(7)(v)-3 PROD Demand'!L748+'FR-16(7)(v)-4 PROD Energy'!L748+'FR-16(7)(v)-5 PROD Cust'!L748+'FR-16(7)(v)-7 TRANS Demand'!L748+'FR-16(7)(v)-8 TRANS Energy'!L748+'FR-16(7)(v)-9 TRANS Cust'!L748+'FR-16(7)(v)-11 DIST Demand'!L748+'FR-16(7)(v)-12 DIST Energy'!L748+'FR-16(7)(v)-13 DIST Cust'!L748-'FR-16(7)(v)-14 TOTAL CLASS'!L748","v":0},{"$f":"'FR-16(7)(v)-3 PROD Demand'!M748+'FR-16(7)(v)-4 PROD Energy'!M748+'FR-16(7)(v)-5 PROD Cust'!M748+'FR-16(7)(v)-7 TRANS Demand'!M748+'FR-16(7)(v)-8 TRANS Energy'!M748+'FR-16(7)(v)-9 TRANS Cust'!M748+'FR-16(7)(v)-11 DIST Demand'!M748+'FR-16(7)(v)-12 DIST Energy'!M748+'FR-16(7)(v)-13 DIST Cust'!M748-'FR-16(7)(v)-14 TOTAL CLASS'!M748","v":0},{"$f":"'FR-16(7)(v)-3 PROD Demand'!N748+'FR-16(7)(v)-4 PROD Energy'!N748+'FR-16(7)(v)-5 PROD Cust'!N748+'FR-16(7)(v)-7 TRANS Demand'!N748+'FR-16(7)(v)-8 TRANS Energy'!N748+'FR-16(7)(v)-9 TRANS Cust'!N748+'FR-16(7)(v)-11 DIST Demand'!N748+'FR-16(7)(v)-12 DIST Energy'!N748+'FR-16(7)(v)-13 DIST Cust'!N748-'FR-16(7)(v)-14 TOTAL CLASS'!N748","v":0},{"$f":"'FR-16(7)(v)-3 PROD Demand'!O748+'FR-16(7)(v)-4 PROD Energy'!O748+'FR-16(7)(v)-5 PROD Cust'!O748+'FR-16(7)(v)-7 TRANS Demand'!O748+'FR-16(7)(v)-8 TRANS Energy'!O748+'FR-16(7)(v)-9 TRANS Cust'!O748+'FR-16(7)(v)-11 DIST Demand'!O748+'FR-16(7)(v)-12 DIST Energy'!O748+'FR-16(7)(v)-13 DIST Cust'!O748-'FR-16(7)(v)-14 TOTAL CLASS'!O748","v":0},{"$f":"'FR-16(7)(v)-3 PROD Demand'!P748+'FR-16(7)(v)-4 PROD Energy'!P748+'FR-16(7)(v)-5 PROD Cust'!P748+'FR-16(7)(v)-7 TRANS Demand'!P748+'FR-16(7)(v)-8 TRANS Energy'!P748+'FR-16(7)(v)-9 TRANS Cust'!P748+'FR-16(7)(v)-11 DIST Demand'!P748+'FR-16(7)(v)-12 DIST Energy'!P748+'FR-16(7)(v)-13 DIST Cust'!P748-'FR-16(7)(v)-14 TOTAL CLASS'!P748","v":0},{"$f":"'FR-16(7)(v)-3 PROD Demand'!Q748+'FR-16(7)(v)-4 PROD Energy'!Q748+'FR-16(7)(v)-5 PROD Cust'!Q748+'FR-16(7)(v)-7 TRANS Demand'!Q748+'FR-16(7)(v)-8 TRANS Energy'!Q748+'FR-16(7)(v)-9 TRANS Cust'!Q748+'FR-16(7)(v)-11 DIST Demand'!Q748+'FR-16(7)(v)-12 DIST Energy'!Q748+'FR-16(7)(v)-13 DIST Cust'!Q748-'FR-16(7)(v)-14 TOTAL CLASS'!Q748","v":0},0,0]
[9,null,{"$f":"'FR-16(7)(v)-1 Functional'!C749","v":"FIXED BILL PREMIUM"},{"$f":"'FR-16(7)(v)-1 Functional'!D749","v":"K902"},null,{"$f":"'FR-16(7)(v)-3 PROD Demand'!F749+'FR-16(7)(v)-4 PROD Energy'!F749+'FR-16(7)(v)-5 PROD Cust'!F749+'FR-16(7)(v)-7 TRANS Demand'!F749+'FR-16(7)(v)-8 TRANS Energy'!F749+'FR-16(7)(v)-9 TRANS Cust'!F749+'FR-16(7)(v)-11 DIST Demand'!F749+'FR-16(7)(v)-12 DIST Energy'!F749+'FR-16(7)(v)-13 DIST Cust'!F749-'FR-16(7)(v)-14 TOTAL CLASS'!F749","v":0},{"$f":"'FR-16(7)(v)-3 PROD Demand'!G749+'FR-16(7)(v)-4 PROD Energy'!G749+'FR-16(7)(v)-5 PROD Cust'!G749+'FR-16(7)(v)-7 TRANS Demand'!G749+'FR-16(7)(v)-8 TRANS Energy'!G749+'FR-16(7)(v)-9 TRANS Cust'!G749+'FR-16(7)(v)-11 DIST Demand'!G749+'FR-16(7)(v)-12 DIST Energy'!G749+'FR-16(7)(v)-13 DIST Cust'!G749-'FR-16(7)(v)-14 TOTAL CLASS'!G749","v":0},{"$f":"'FR-16(7)(v)-3 PROD Demand'!H749+'FR-16(7)(v)-4 PROD Energy'!H749+'FR-16(7)(v)-5 PROD Cust'!H749+'FR-16(7)(v)-7 TRANS Demand'!H749+'FR-16(7)(v)-8 TRANS Energy'!H749+'FR-16(7)(v)-9 TRANS Cust'!H749+'FR-16(7)(v)-11 DIST Demand'!H749+'FR-16(7)(v)-12 DIST Energy'!H749+'FR-16(7)(v)-13 DIST Cust'!H749-'FR-16(7)(v)-14 TOTAL CLASS'!H749","v":0},{"$f":"'FR-16(7)(v)-3 PROD Demand'!I749+'FR-16(7)(v)-4 PROD Energy'!I749+'FR-16(7)(v)-5 PROD Cust'!I749+'FR-16(7)(v)-7 TRANS Demand'!I749+'FR-16(7)(v)-8 TRANS Energy'!I749+'FR-16(7)(v)-9 TRANS Cust'!I749+'FR-16(7)(v)-11 DIST Demand'!I749+'FR-16(7)(v)-12 DIST Energy'!I749+'FR-16(7)(v)-13 DIST Cust'!I749-'FR-16(7)(v)-14 TOTAL CLASS'!I749","v":0},{"$f":"'FR-16(7)(v)-3 PROD Demand'!J749+'FR-16(7)(v)-4 PROD Energy'!J749+'FR-16(7)(v)-5 PROD Cust'!J749+'FR-16(7)(v)-7 TRANS Demand'!J749+'FR-16(7)(v)-8 TRANS Energy'!J749+'FR-16(7)(v)-9 TRANS Cust'!J749+'FR-16(7)(v)-11 DIST Demand'!J749+'FR-16(7)(v)-12 DIST Energy'!J749+'FR-16(7)(v)-13 DIST Cust'!J749-'FR-16(7)(v)-14 TOTAL CLASS'!J749","v":0},{"$f":"'FR-16(7)(v)-3 PROD Demand'!K749+'FR-16(7)(v)-4 PROD Energy'!K749+'FR-16(7)(v)-5 PROD Cust'!K749+'FR-16(7)(v)-7 TRANS Demand'!K749+'FR-16(7)(v)-8 TRANS Energy'!K749+'FR-16(7)(v)-9 TRANS Cust'!K749+'FR-16(7)(v)-11 DIST Demand'!K749+'FR-16(7)(v)-12 DIST Energy'!K749+'FR-16(7)(v)-13 DIST Cust'!K749-'FR-16(7)(v)-14 TOTAL CLASS'!K749","v":0},{"$f":"'FR-16(7)(v)-3 PROD Demand'!L749+'FR-16(7)(v)-4 PROD Energy'!L749+'FR-16(7)(v)-5 PROD Cust'!L749+'FR-16(7)(v)-7 TRANS Demand'!L749+'FR-16(7)(v)-8 TRANS Energy'!L749+'FR-16(7)(v)-9 TRANS Cust'!L749+'FR-16(7)(v)-11 DIST Demand'!L749+'FR-16(7)(v)-12 DIST Energy'!L749+'FR-16(7)(v)-13 DIST Cust'!L749-'FR-16(7)(v)-14 TOTAL CLASS'!L749","v":0},{"$f":"'FR-16(7)(v)-3 PROD Demand'!M749+'FR-16(7)(v)-4 PROD Energy'!M749+'FR-16(7)(v)-5 PROD Cust'!M749+'FR-16(7)(v)-7 TRANS Demand'!M749+'FR-16(7)(v)-8 TRANS Energy'!M749+'FR-16(7)(v)-9 TRANS Cust'!M749+'FR-16(7)(v)-11 DIST Demand'!M749+'FR-16(7)(v)-12 DIST Energy'!M749+'FR-16(7)(v)-13 DIST Cust'!M749-'FR-16(7)(v)-14 TOTAL CLASS'!M749","v":0},{"$f":"'FR-16(7)(v)-3 PROD Demand'!N749+'FR-16(7)(v)-4 PROD Energy'!N749+'FR-16(7)(v)-5 PROD Cust'!N749+'FR-16(7)(v)-7 TRANS Demand'!N749+'FR-16(7)(v)-8 TRANS Energy'!N749+'FR-16(7)(v)-9 TRANS Cust'!N749+'FR-16(7)(v)-11 DIST Demand'!N749+'FR-16(7)(v)-12 DIST Energy'!N749+'FR-16(7)(v)-13 DIST Cust'!N749-'FR-16(7)(v)-14 TOTAL CLASS'!N749","v":0},{"$f":"'FR-16(7)(v)-3 PROD Demand'!O749+'FR-16(7)(v)-4 PROD Energy'!O749+'FR-16(7)(v)-5 PROD Cust'!O749+'FR-16(7)(v)-7 TRANS Demand'!O749+'FR-16(7)(v)-8 TRANS Energy'!O749+'FR-16(7)(v)-9 TRANS Cust'!O749+'FR-16(7)(v)-11 DIST Demand'!O749+'FR-16(7)(v)-12 DIST Energy'!O749+'FR-16(7)(v)-13 DIST Cust'!O749-'FR-16(7)(v)-14 TOTAL CLASS'!O749","v":0},{"$f":"'FR-16(7)(v)-3 PROD Demand'!P749+'FR-16(7)(v)-4 PROD Energy'!P749+'FR-16(7)(v)-5 PROD Cust'!P749+'FR-16(7)(v)-7 TRANS Demand'!P749+'FR-16(7)(v)-8 TRANS Energy'!P749+'FR-16(7)(v)-9 TRANS Cust'!P749+'FR-16(7)(v)-11 DIST Demand'!P749+'FR-16(7)(v)-12 DIST Energy'!P749+'FR-16(7)(v)-13 DIST Cust'!P749-'FR-16(7)(v)-14 TOTAL CLASS'!P749","v":0},{"$f":"'FR-16(7)(v)-3 PROD Demand'!Q749+'FR-16(7)(v)-4 PROD Energy'!Q749+'FR-16(7)(v)-5 PROD Cust'!Q749+'FR-16(7)(v)-7 TRANS Demand'!Q749+'FR-16(7)(v)-8 TRANS Energy'!Q749+'FR-16(7)(v)-9 TRANS Cust'!Q749+'FR-16(7)(v)-11 DIST Demand'!Q749+'FR-16(7)(v)-12 DIST Energy'!Q749+'FR-16(7)(v)-13 DIST Cust'!Q749-'FR-16(7)(v)-14 TOTAL CLASS'!Q749","v":0},0,0]
[10,null,{"$f":"'FR-16(7)(v)-1 Functional'!C750","v":"  TOTAL OTHER OPERATING REVS"},null,null,{"$f":"SUM(F742:F749)","v":0},{"$f":"SUM(G742:G749)","v":0},{"$f":"SUM(H742:H749)","v":0},{"$f":"SUM(I742:I749)","v":0},{"$f":"SUM(J742:J749)","v":0},0,0,0,0,0,0,{"$f":"SUM($Q$742:$Q$749)","v":0},{"$f":"SUM(R742:R749)","v":0},{"$f":"SUM(S742:S749)","v":0}]
[11]
[12,"COST OF SERVICE COMPUTATION"]
[13,null,{"$f":"'FR-16(7)(v)-1 Functional'!C753","v":"TOTAL OP EXP EXC INC & REV TAX"},null,null,{"$f":"F618","v":0},{"$f":"G618","v":0},{"$f":"H618","v":0},{"$f":"I618","v":0},{"$f":"J618","v":0},0,0,0,0,0,0,{"$f":"$Q$618","v":0},{"$f":"R618","v":0},{"$f":"S618","v":0}]
[14,null,"RETURN ON RATE BASE",null,null,{"$f":"F433","v":1},{"$f":"G433","v":0},{"$f":"H433","v":0},{"$f":"I433","v":0},{"$f":"J433","v":0},0,0,0,0,0,0,{"$f":"Q433","v":0},{"$f":"R433","v":0},{"$f":"S433","v":1}]
[15,null,{"$f":"'FR-16(7)(v)-1 Functional'!C755","v":"NET FED INCOME TAX ALLOWABLE"},null,null,{"$f":"F676","v":-176},{"$f":"G676","v":0},{"$f":"H676","v":0},{"$f":"I676","v":0},{"$f":"J676","v":0},0,0,0,0,0,0,{"$f":"$Q$676","v":0},{"$f":"R676","v":0},{"$f":"S676","v":-176}]
[16,null,{"$f":"'FR-16(7)(v)-1 Functional'!C756","v":"NET STATE INCOME TAX ALLOWABLE"},null,null,{"$f":"F722","v":-9},{"$f":"G722","v":0},0,0,0,0,0,0,0,0,0,0,0,-9]
[17,null,{"$f":"'FR-16(7)(v)-1 Functional'!C757","v":"TOTAL OTHER OPERATING REVENUES"},null,null,{"$f":"-F750","v":0},{"$f":"-G750","v":0},{"$f":"-H750","v":0},{"$f":"-I750","v":0},{"$f":"-J750","v":0},0,0,0,0,0,0,{"$f":"-$Q$750","v":0},{"$f":"-R750","v":0},{"$f":"-S750","v":0}]
[18,null,{"$f":"'FR-16(7)(v)-1 Functional'!C758","v":"  SUBTOTAL B"},null,null,{"$f":"SUM(F752:F757)","v":-184},{"$f":"SUM(G752:G757)","v":0},{"$f":"SUM(H752:H757)","v":0},{"$f":"SUM(I752:I757)","v":0},{"$f":"SUM(J752:J757)","v":0},0,0,0,0,0,0,{"$f":"SUM($Q$752:$Q$757)","v":0},{"$f":"SUM(R752:R757)","v":0},{"$f":"R758-F758","v":184}]
[19]
[20,null,{"$f":"'FR-16(7)(v)-1 Functional'!C760","v":"TOTAL OTHER OPERATING REVENUES"},null,null,{"$f":"-F757","v":0},{"$f":"-G757","v":0},{"$f":"-H757","v":0},{"$f":"-I757","v":0},{"$f":"-J757","v":0},0,0,0,0,0,0,{"$f":"-$Q$757","v":0},{"$f":"-R757","v":0},{"$f":"-S757","v":0}]
[21,null,{"$f":"'FR-16(7)(v)-1 Functional'!C761","v":"LESS: REVS EXCL FROM REV TAX CALC"},null,null,{"$f":"'FR-16(7)(v)-13 DIST Cust'!F761+'FR-16(7)(v)-11 DIST Demand'!F761+'FR-16(7)(v)-4 PROD Energy'!F761","v":0},{"$f":"'FR-16(7)(v)-13 DIST Cust'!G761+'FR-16(7)(v)-11 DIST Demand'!G761+'FR-16(7)(v)-4 PROD Energy'!G761","v":0},{"$f":"'FR-16(7)(v)-13 DIST Cust'!H761+'FR-16(7)(v)-11 DIST Demand'!H761+'FR-16(7)(v)-4 PROD Energy'!H761","v":0},{"$f":"'FR-16(7)(v)-13 DIST Cust'!I761+'FR-16(7)(v)-11 DIST Demand'!I761+'FR-16(7)(v)-4 PROD Energy'!I761","v":0},{"$f":"'FR-16(7)(v)-13 DIST Cust'!J761+'FR-16(7)(v)-11 DIST Demand'!J761+'FR-16(7)(v)-4 PROD Energy'!J761","v":0},{"$f":"'FR-16(7)(v)-13 DIST Cust'!K761+'FR-16(7)(v)-11 DIST Demand'!K761+'FR-16(7)(v)-4 PROD Energy'!K761","v":0},{"$f":"'FR-16(7)(v)-13 DIST Cust'!L761+'FR-16(7)(v)-11 DIST Demand'!L761+'FR-16(7)(v)-4 PROD Energy'!L761","v":0},{"$f":"'FR-16(7)(v)-13 DIST Cust'!M761+'FR-16(7)(v)-11 DIST Demand'!M761+'FR-16(7)(v)-4 PROD Energy'!M761","v":0},{"$f":"'FR-16(7)(v)-13 DIST Cust'!N761+'FR-16(7)(v)-11 DIST Demand'!N761+'FR-16(7)(v)-4 PROD Energy'!N761","v":0},{"$f":"'FR-16(7)(v)-13 DIST Cust'!O761+'FR-16(7)(v)-11 DIST Demand'!O761+'FR-16(7)(v)-4 PROD Energy'!O761","v":0},{"$f":"'FR-16(7)(v)-13 DIST Cust'!P761+'FR-16(7)(v)-11 DIST Demand'!P761+'FR-16(7)(v)-4 PROD Energy'!P761","v":0},{"$f":"'FR-16(7)(v)-13 DIST Cust'!Q761+'FR-16(7)(v)-11 DIST Demand'!Q761+'FR-16(7)(v)-4 PROD Energy'!Q761","v":0},{"$f":"SUM(G761:Q761)","v":0},{"$f":"F761-R761","v":0}]
[22,null,{"$f":"'FR-16(7)(v)-1 Functional'!C762","v":"OTHER OPERATING REVS TO BE TAXED"},null,null,{"$f":"F760-F761","v":0},{"$f":"G760-G761","v":0},{"$f":"H760-H761","v":0},{"$f":"I760-I761","v":0},{"$f":"J760-J761","v":0},0,0,0,0,0,0,{"$f":"$Q$760-Q761","v":0},{"$f":"R760-R761","v":0},{"$f":"S760-S761","v":0}]
[23]
[24,null,{"$f":"'FR-16(7)(v)-1 Functional'!C764","v":"REVENUE TAX FACTOR"},null,null,{"$f":"ROUND(F817/(1-F817),8)","v":0},{"$f":"ROUND(G817/(1-G817),8)","v":0},0,0,0,0,0,0,0,0,0,0,0,0]
[25,null,{"$f":"'FR-16(7)(v)-1 Functional'!C765","v":"REVENUE TAX ON OTHER OPER. REVS"},null,null,{"$f":"'FR-16(7)(v)-3 PROD Demand'!F765+'FR-16(7)(v)-4 PROD Energy'!F765+'FR-16(7)(v)-5 PROD Cust'!F765+'FR-16(7)(v)-7 TRANS Demand'!F765+'FR-16(7)(v)-8 TRANS Energy'!F765+'FR-16(7)(v)-9 TRANS Cust'!F765+'FR-16(7)(v)-11 DIST Demand'!F765+'FR-16(7)(v)-12 DIST Energy'!F765+'FR-16(7)(v)-13 DIST Cust'!F765-'FR-16(7)(v)-14 TOTAL CLASS'!F765","v":0},{"$f":"F765-SUM(H765:Q765)","v":0},{"$f":"ROUND(H764*H762,0)","v":0},{"$f":"ROUND(I764*I762,0)","v":0},{"$f":"ROUND(J764*J762,0)","v":0},0,0,0,0,0,0,{"$f":"ROUND(Q764*Q762,0)","v":0},{"$f":"SUM(G765:Q765)","v":0},{"$f":"ROUND(S764*S762,0)","v":0}]
[26,null,{"$f":"'FR-16(7)(v)-1 Functional'!C766","v":"REVENUE TAX ON COST OF SERVICE"},null,null,{"$f":"'FR-16(7)(v)-3 PROD Demand'!F766+'FR-16(7)(v)-4 PROD Energy'!F766+'FR-16(7)(v)-5 PROD Cust'!F766+'FR-16(7)(v)-7 TRANS Demand'!F766+'FR-16(7)(v)-8 TRANS Energy'!F766+'FR-16(7)(v)-9 TRANS Cust'!F766+'FR-16(7)(v)-11 DIST Demand'!F766+'FR-16(7)(v)-12 DIST Energy'!F766+'FR-16(7)(v)-13 DIST Cust'!F766-'FR-16(7)(v)-14 TOTAL CLASS'!F766","v":0},{"$f":"F766-SUM(H766:Q766)","v":0},{"$f":"ROUND(H764*H758,0)","v":0},{"$f":"ROUND(I764*I758,0)","v":0},{"$f":"ROUND(J764*J758,0)","v":0},0,0,0,0,0,0,{"$f":"ROUND(Q764*$Q$758,0)","v":0},{"$f":"SUM(G766:Q766)","v":0},{"$f":"ROUND(S764*S758,0)","v":0}]
[27,null,{"$f":"'FR-16(7)(v)-1 Functional'!C767","v":"TOTAL REVENUE TAX"},null,null,{"$f":"F766+F765","v":0},{"$f":"G766+G765","v":0},{"$f":"H766+H765","v":0},{"$f":"I766+I765","v":0},{"$f":"J766+J765","v":0},0,0,0,0,0,0,0,0,0]
[28]
[29,null,"RESERVED",null,null,{"$f":"F24","v":0},{"$f":"G24","v":0},0,0,0,0,0,0,0,0,0,0,0]
[30,null,{"$f":"'FR-16(7)(v)-1 Functional'!C770","v":"  TOTAL ELECTRIC COST OF SERVICE"},null,null,{"$f":"F769+F767+F758","v":-184},{"$f":"G769+G767+G758","v":0},{"$f":"H769+H767+H758","v":0},0,0,0,0,0,0,0,0,0,0,{"$f":"S767+S758","v":184}]
[31]
[32,"PROPOSED REVENUES ",null,null,null,{"$f":"'FR-16(7)(v)-3 PROD Demand'!F772+'FR-16(7)(v)-4 PROD Energy'!F772+'FR-16(7)(v)-5 PROD Cust'!F772+'FR-16(7)(v)-7 TRANS Demand'!F772+'FR-16(7)(v)-8 TRANS Energy'!F772+'FR-16(7)(v)-9 TRANS Cust'!F772+'FR-16(7)(v)-11 DIST Demand'!F772+'FR-16(7)(v)-12 DIST Energy'!F772+'FR-16(7)(v)-13 DIST Cust'!F772-'FR-16(7)(v)-14 TOTAL CLASS'!F772","v":0},{"$f":"'FR-16(7)(v)-3 PROD Demand'!G772+'FR-16(7)(v)-4 PROD Energy'!G772+'FR-16(7)(v)-5 PROD Cust'!G772+'FR-16(7)(v)-7 TRANS Demand'!G772+'FR-16(7)(v)-8 TRANS Energy'!G772+'FR-16(7)(v)-9 TRANS Cust'!G772+'FR-16(7)(v)-11 DIST Demand'!G772+'FR-16(7)(v)-12 DIST Energy'!G772+'FR-16(7)(v)-13 DIST Cust'!G772-'FR-16(7)(v)-14 TOTAL CLASS'!G772","v":0},{"$f":"'FR-16(7)(v)-3 PROD Demand'!H772+'FR-16(7)(v)-4 PROD Energy'!H772+'FR-16(7)(v)-5 PROD Cust'!H772+'FR-16(7)(v)-7 TRANS Demand'!H772+'FR-16(7)(v)-8 TRANS Energy'!H772+'FR-16(7)(v)-9 TRANS Cust'!H772+'FR-16(7)(v)-11 DIST Demand'!H772+'FR-16(7)(v)-12 DIST Energy'!H772+'FR-16(7)(v)-13 DIST Cust'!H772-'FR-16(7)(v)-14 TOTAL CLASS'!H772","v":0},{"$f":"'FR-16(7)(v)-3 PROD Demand'!I772+'FR-16(7)(v)-4 PROD Energy'!I772+'FR-16(7)(v)-5 PROD Cust'!I772+'FR-16(7)(v)-7 TRANS Demand'!I772+'FR-16(7)(v)-8 TRANS Energy'!I772+'FR-16(7)(v)-9 TRANS Cust'!I772+'FR-16(7)(v)-11 DIST Demand'!I772+'FR-16(7)(v)-12 DIST Energy'!I772+'FR-16(7)(v)-13 DIST Cust'!I772-'FR-16(7)(v)-14 TOTAL CLASS'!I772","v":0},{"$f":"'FR-16(7)(v)-3 PROD Demand'!J772+'FR-16(7)(v)-4 PROD Energy'!J772+'FR-16(7)(v)-5 PROD Cust'!J772+'FR-16(7)(v)-7 TRANS Demand'!J772+'FR-16(7)(v)-8 TRANS Energy'!J772+'FR-16(7)(v)-9 TRANS Cust'!J772+'FR-16(7)(v)-11 DIST Demand'!J772+'FR-16(7)(v)-12 DIST Energy'!J772+'FR-16(7)(v)-13 DIST Cust'!J772-'FR-16(7)(v)-14 TOTAL CLASS'!J772","v":0},{"$f":"'FR-16(7)(v)-3 PROD Demand'!K772+'FR-16(7)(v)-4 PROD Energy'!K772+'FR-16(7)(v)-5 PROD Cust'!K772+'FR-16(7)(v)-7 TRANS Demand'!K772+'FR-16(7)(v)-8 TRANS Energy'!K772+'FR-16(7)(v)-9 TRANS Cust'!K772+'FR-16(7)(v)-11 DIST Demand'!K772+'FR-16(7)(v)-12 DIST Energy'!K772+'FR-16(7)(v)-13 DIST Cust'!K772-'FR-16(7)(v)-14 TOTAL CLASS'!K772","v":0},{"$f":"'FR-16(7)(v)-3 PROD Demand'!L772+'FR-16(7)(v)-4 PROD Energy'!L772+'FR-16(7)(v)-5 PROD Cust'!L772+'FR-16(7)(v)-7 TRANS Demand'!L772+'FR-16(7)(v)-8 TRANS Energy'!L772+'FR-16(7)(v)-9 TRANS Cust'!L772+'FR-16(7)(v)-11 DIST Demand'!L772+'FR-16(7)(v)-12 DIST Energy'!L772+'FR-16(7)(v)-13 DIST Cust'!L772-'FR-16(7)(v)-14 TOTAL CLASS'!L772","v":0},{"$f":"'FR-16(7)(v)-3 PROD Demand'!M772+'FR-16(7)(v)-4 PROD Energy'!M772+'FR-16(7)(v)-5 PROD Cust'!M772+'FR-16(7)(v)-7 TRANS Demand'!M772+'FR-16(7)(v)-8 TRANS Energy'!M772+'FR-16(7)(v)-9 TRANS Cust'!M772+'FR-16(7)(v)-11 DIST Demand'!M772+'FR-16(7)(v)-12 DIST Energy'!M772+'FR-16(7)(v)-13 DIST Cust'!M772-'FR-16(7)(v)-14 TOTAL CLASS'!M772","v":0},{"$f":"'FR-16(7)(v)-3 PROD Demand'!N772+'FR-16(7)(v)-4 PROD Energy'!N772+'FR-16(7)(v)-5 PROD Cust'!N772+'FR-16(7)(v)-7 TRANS Demand'!N772+'FR-16(7)(v)-8 TRANS Energy'!N772+'FR-16(7)(v)-9 TRANS Cust'!N772+'FR-16(7)(v)-11 DIST Demand'!N772+'FR-16(7)(v)-12 DIST Energy'!N772+'FR-16(7)(v)-13 DIST Cust'!N772-'FR-16(7)(v)-14 TOTAL CLASS'!N772","v":0},{"$f":"'FR-16(7)(v)-3 PROD Demand'!O772+'FR-16(7)(v)-4 PROD Energy'!O772+'FR-16(7)(v)-5 PROD Cust'!O772+'FR-16(7)(v)-7 TRANS Demand'!O772+'FR-16(7)(v)-8 TRANS Energy'!O772+'FR-16(7)(v)-9 TRANS Cust'!O772+'FR-16(7)(v)-11 DIST Demand'!O772+'FR-16(7)(v)-12 DIST Energy'!O772+'FR-16(7)(v)-13 DIST Cust'!O772-'FR-16(7)(v)-14 TOTAL CLASS'!O772","v":0},{"$f":"'FR-16(7)(v)-3 PROD Demand'!P772+'FR-16(7)(v)-4 PROD Energy'!P772+'FR-16(7)(v)-5 PROD Cust'!P772+'FR-16(7)(v)-7 TRANS Demand'!P772+'FR-16(7)(v)-8 TRANS Energy'!P772+'FR-16(7)(v)-9 TRANS Cust'!P772+'FR-16(7)(v)-11 DIST Demand'!P772+'FR-16(7)(v)-12 DIST Energy'!P772+'FR-16(7)(v)-13 DIST Cust'!P772-'FR-16(7)(v)-14 TOTAL CLASS'!P772","v":0},{"$f":"'FR-16(7)(v)-3 PROD Demand'!Q772+'FR-16(7)(v)-4 PROD Energy'!Q772+'FR-16(7)(v)-5 PROD Cust'!Q772+'FR-16(7)(v)-7 TRANS Demand'!Q772+'FR-16(7)(v)-8 TRANS Energy'!Q772+'FR-16(7)(v)-9 TRANS Cust'!Q772+'FR-16(7)(v)-11 DIST Demand'!Q772+'FR-16(7)(v)-12 DIST Energy'!Q772+'FR-16(7)(v)-13 DIST Cust'!Q772-'FR-16(7)(v)-14 TOTAL CLASS'!Q772","v":0},{"$f":"SUM(G772:Q772)","v":0},{"$f":"F772-R772","v":0}]
[33,"TOTAL ELECTRIC COST OF SERVICE",null,null,null,{"$f":"'FR-16(7)(v)-3 PROD Demand'!F773+'FR-16(7)(v)-4 PROD Energy'!F773+'FR-16(7)(v)-5 PROD Cust'!F773+'FR-16(7)(v)-7 TRANS Demand'!F773+'FR-16(7)(v)-8 TRANS Energy'!F773+'FR-16(7)(v)-9 TRANS Cust'!F773+'FR-16(7)(v)-11 DIST Demand'!F773+'FR-16(7)(v)-12 DIST Energy'!F773+'FR-16(7)(v)-13 DIST Cust'!F773-'FR-16(7)(v)-14 TOTAL CLASS'!F773","v":184},{"$f":"'FR-16(7)(v)-3 PROD Demand'!G773+'FR-16(7)(v)-4 PROD Energy'!G773+'FR-16(7)(v)-5 PROD Cust'!G773+'FR-16(7)(v)-7 TRANS Demand'!G773+'FR-16(7)(v)-8 TRANS Energy'!G773+'FR-16(7)(v)-9 TRANS Cust'!G773+'FR-16(7)(v)-11 DIST Demand'!G773+'FR-16(7)(v)-12 DIST Energy'!G773+'FR-16(7)(v)-13 DIST Cust'!G773-'FR-16(7)(v)-14 TOTAL CLASS'!G773","v":0},{"$f":"'FR-16(7)(v)-3 PROD Demand'!H773+'FR-16(7)(v)-4 PROD Energy'!H773+'FR-16(7)(v)-5 PROD Cust'!H773+'FR-16(7)(v)-7 TRANS Demand'!H773+'FR-16(7)(v)-8 TRANS Energy'!H773+'FR-16(7)(v)-9 TRANS Cust'!H773+'FR-16(7)(v)-11 DIST Demand'!H773+'FR-16(7)(v)-12 DIST Energy'!H773+'FR-16(7)(v)-13 DIST Cust'!H773-'FR-16(7)(v)-14 TOTAL CLASS'!H773","v":0},{"$f":"'FR-16(7)(v)-3 PROD Demand'!I773+'FR-16(7)(v)-4 PROD Energy'!I773+'FR-16(7)(v)-5 PROD Cust'!I773+'FR-16(7)(v)-7 TRANS Demand'!I773+'FR-16(7)(v)-8 TRANS Energy'!I773+'FR-16(7)(v)-9 TRANS Cust'!I773+'FR-16(7)(v)-11 DIST Demand'!I773+'FR-16(7)(v)-12 DIST Energy'!I773+'FR-16(7)(v)-13 DIST Cust'!I773-'FR-16(7)(v)-14 TOTAL CLASS'!I773","v":0},{"$f":"'FR-16(7)(v)-3 PROD Demand'!J773+'FR-16(7)(v)-4 PROD Energy'!J773+'FR-16(7)(v)-5 PROD Cust'!J773+'FR-16(7)(v)-7 TRANS Demand'!J773+'FR-16(7)(v)-8 TRANS Energy'!J773+'FR-16(7)(v)-9 TRANS Cust'!J773+'FR-16(7)(v)-11 DIST Demand'!J773+'FR-16(7)(v)-12 DIST Energy'!J773+'FR-16(7)(v)-13 DIST Cust'!J773-'FR-16(7)(v)-14 TOTAL CLASS'!J773","v":0},{"$f":"'FR-16(7)(v)-3 PROD Demand'!K773+'FR-16(7)(v)-4 PROD Energy'!K773+'FR-16(7)(v)-5 PROD Cust'!K773+'FR-16(7)(v)-7 TRANS Demand'!K773+'FR-16(7)(v)-8 TRANS Energy'!K773+'FR-16(7)(v)-9 TRANS Cust'!K773+'FR-16(7)(v)-11 DIST Demand'!K773+'FR-16(7)(v)-12 DIST Energy'!K773+'FR-16(7)(v)-13 DIST Cust'!K773-'FR-16(7)(v)-14 TOTAL CLASS'!K773","v":0},{"$f":"'FR-16(7)(v)-3 PROD Demand'!L773+'FR-16(7)(v)-4 PROD Energy'!L773+'FR-16(7)(v)-5 PROD Cust'!L773+'FR-16(7)(v)-7 TRANS Demand'!L773+'FR-16(7)(v)-8 TRANS Energy'!L773+'FR-16(7)(v)-9 TRANS Cust'!L773+'FR-16(7)(v)-11 DIST Demand'!L773+'FR-16(7)(v)-12 DIST Energy'!L773+'FR-16(7)(v)-13 DIST Cust'!L773-'FR-16(7)(v)-14 TOTAL CLASS'!L773","v":0},{"$f":"'FR-16(7)(v)-3 PROD Demand'!M773+'FR-16(7)(v)-4 PROD Energy'!M773+'FR-16(7)(v)-5 PROD Cust'!M773+'FR-16(7)(v)-7 TRANS Demand'!M773+'FR-16(7)(v)-8 TRANS Energy'!M773+'FR-16(7)(v)-9 TRANS Cust'!M773+'FR-16(7)(v)-11 DIST Demand'!M773+'FR-16(7)(v)-12 DIST Energy'!M773+'FR-16(7)(v)-13 DIST Cust'!M773-'FR-16(7)(v)-14 TOTAL CLASS'!M773","v":0},{"$f":"'FR-16(7)(v)-3 PROD Demand'!N773+'FR-16(7)(v)-4 PROD Energy'!N773+'FR-16(7)(v)-5 PROD Cust'!N773+'FR-16(7)(v)-7 TRANS Demand'!N773+'FR-16(7)(v)-8 TRANS Energy'!N773+'FR-16(7)(v)-9 TRANS Cust'!N773+'FR-16(7)(v)-11 DIST Demand'!N773+'FR-16(7)(v)-12 DIST Energy'!N773+'FR-16(7)(v)-13 DIST Cust'!N773-'FR-16(7)(v)-14 TOTAL CLASS'!N773","v":0},{"$f":"'FR-16(7)(v)-3 PROD Demand'!O773+'FR-16(7)(v)-4 PROD Energy'!O773+'FR-16(7)(v)-5 PROD Cust'!O773+'FR-16(7)(v)-7 TRANS Demand'!O773+'FR-16(7)(v)-8 TRANS Energy'!O773+'FR-16(7)(v)-9 TRANS Cust'!O773+'FR-16(7)(v)-11 DIST Demand'!O773+'FR-16(7)(v)-12 DIST Energy'!O773+'FR-16(7)(v)-13 DIST Cust'!O773-'FR-16(7)(v)-14 TOTAL CLASS'!O773","v":0},{"$f":"'FR-16(7)(v)-3 PROD Demand'!P773+'FR-16(7)(v)-4 PROD Energy'!P773+'FR-16(7)(v)-5 PROD Cust'!P773+'FR-16(7)(v)-7 TRANS Demand'!P773+'FR-16(7)(v)-8 TRANS Energy'!P773+'FR-16(7)(v)-9 TRANS Cust'!P773+'FR-16(7)(v)-11 DIST Demand'!P773+'FR-16(7)(v)-12 DIST Energy'!P773+'FR-16(7)(v)-13 DIST Cust'!P773-'FR-16(7)(v)-14 TOTAL CLASS'!P773","v":0},{"$f":"'FR-16(7)(v)-3 PROD Demand'!Q773+'FR-16(7)(v)-4 PROD Energy'!Q773+'FR-16(7)(v)-5 PROD Cust'!Q773+'FR-16(7)(v)-7 TRANS Demand'!Q773+'FR-16(7)(v)-8 TRANS Energy'!Q773+'FR-16(7)(v)-9 TRANS Cust'!Q773+'FR-16(7)(v)-11 DIST Demand'!Q773+'FR-16(7)(v)-12 DIST Energy'!Q773+'FR-16(7)(v)-13 DIST Cust'!Q773-'FR-16(7)(v)-14 TOTAL CLASS'!Q773","v":0},{"$f":"-R770","v":0},{"$f":"-S770","v":-184}]
[34,"EXCESS REVENUES",null,null,null,{"$f":"'FR-16(7)(v)-3 PROD Demand'!F774+'FR-16(7)(v)-4 PROD Energy'!F774+'FR-16(7)(v)-5 PROD Cust'!F774+'FR-16(7)(v)-7 TRANS Demand'!F774+'FR-16(7)(v)-8 TRANS Energy'!F774+'FR-16(7)(v)-9 TRANS Cust'!F774+'FR-16(7)(v)-11 DIST Demand'!F774+'FR-16(7)(v)-12 DIST Energy'!F774+'FR-16(7)(v)-13 DIST Cust'!F774-'FR-16(7)(v)-14 TOTAL CLASS'!F774","v":184},{"$f":"'FR-16(7)(v)-3 PROD Demand'!G774+'FR-16(7)(v)-4 PROD Energy'!G774+'FR-16(7)(v)-5 PROD Cust'!G774+'FR-16(7)(v)-7 TRANS Demand'!G774+'FR-16(7)(v)-8 TRANS Energy'!G774+'FR-16(7)(v)-9 TRANS Cust'!G774+'FR-16(7)(v)-11 DIST Demand'!G774+'FR-16(7)(v)-12 DIST Energy'!G774+'FR-16(7)(v)-13 DIST Cust'!G774-'FR-16(7)(v)-14 TOTAL CLASS'!G774","v":0},{"$f":"'FR-16(7)(v)-3 PROD Demand'!H774+'FR-16(7)(v)-4 PROD Energy'!H774+'FR-16(7)(v)-5 PROD Cust'!H774+'FR-16(7)(v)-7 TRANS Demand'!H774+'FR-16(7)(v)-8 TRANS Energy'!H774+'FR-16(7)(v)-9 TRANS Cust'!H774+'FR-16(7)(v)-11 DIST Demand'!H774+'FR-16(7)(v)-12 DIST Energy'!H774+'FR-16(7)(v)-13 DIST Cust'!H774-'FR-16(7)(v)-14 TOTAL CLASS'!H774","v":0},{"$f":"'FR-16(7)(v)-3 PROD Demand'!I774+'FR-16(7)(v)-4 PROD Energy'!I774+'FR-16(7)(v)-5 PROD Cust'!I774+'FR-16(7)(v)-7 TRANS Demand'!I774+'FR-16(7)(v)-8 TRANS Energy'!I774+'FR-16(7)(v)-9 TRANS Cust'!I774+'FR-16(7)(v)-11 DIST Demand'!I774+'FR-16(7)(v)-12 DIST Energy'!I774+'FR-16(7)(v)-13 DIST Cust'!I774-'FR-16(7)(v)-14 TOTAL CLASS'!I774","v":0},{"$f":"'FR-16(7)(v)-3 PROD Demand'!J774+'FR-16(7)(v)-4 PROD Energy'!J774+'FR-16(7)(v)-5 PROD Cust'!J774+'FR-16(7)(v)-7 TRANS Demand'!J774+'FR-16(7)(v)-8 TRANS Energy'!J774+'FR-16(7)(v)-9 TRANS Cust'!J774+'FR-16(7)(v)-11 DIST Demand'!J774+'FR-16(7)(v)-12 DIST Energy'!J774+'FR-16(7)(v)-13 DIST Cust'!J774-'FR-16(7)(v)-14 TOTAL CLASS'!J774","v":0},{"$f":"'FR-16(7)(v)-3 PROD Demand'!K774+'FR-16(7)(v)-4 PROD Energy'!K774+'FR-16(7)(v)-5 PROD Cust'!K774+'FR-16(7)(v)-7 TRANS Demand'!K774+'FR-16(7)(v)-8 TRANS Energy'!K774+'FR-16(7)(v)-9 TRANS Cust'!K774+'FR-16(7)(v)-11 DIST Demand'!K774+'FR-16(7)(v)-12 DIST Energy'!K774+'FR-16(7)(v)-13 DIST Cust'!K774-'FR-16(7)(v)-14 TOTAL CLASS'!K774","v":0},{"$f":"'FR-16(7)(v)-3 PROD Demand'!L774+'FR-16(7)(v)-4 PROD Energy'!L774+'FR-16(7)(v)-5 PROD Cust'!L774+'FR-16(7)(v)-7 TRANS Demand'!L774+'FR-16(7)(v)-8 TRANS Energy'!L774+'FR-16(7)(v)-9 TRANS Cust'!L774+'FR-16(7)(v)-11 DIST Demand'!L774+'FR-16(7)(v)-12 DIST Energy'!L774+'FR-16(7)(v)-13 DIST Cust'!L774-'FR-16(7)(v)-14 TOTAL CLASS'!L774","v":0},{"$f":"'FR-16(7)(v)-3 PROD Demand'!M774+'FR-16(7)(v)-4 PROD Energy'!M774+'FR-16(7)(v)-5 PROD Cust'!M774+'FR-16(7)(v)-7 TRANS Demand'!M774+'FR-16(7)(v)-8 TRANS Energy'!M774+'FR-16(7)(v)-9 TRANS Cust'!M774+'FR-16(7)(v)-11 DIST Demand'!M774+'FR-16(7)(v)-12 DIST Energy'!M774+'FR-16(7)(v)-13 DIST Cust'!M774-'FR-16(7)(v)-14 TOTAL CLASS'!M774","v":0},{"$f":"'FR-16(7)(v)-3 PROD Demand'!N774+'FR-16(7)(v)-4 PROD Energy'!N774+'FR-16(7)(v)-5 PROD Cust'!N774+'FR-16(7)(v)-7 TRANS Demand'!N774+'FR-16(7)(v)-8 TRANS Energy'!N774+'FR-16(7)(v)-9 TRANS Cust'!N774+'FR-16(7)(v)-11 DIST Demand'!N774+'FR-16(7)(v)-12 DIST Energy'!N774+'FR-16(7)(v)-13 DIST Cust'!N774-'FR-16(7)(v)-14 TOTAL CLASS'!N774","v":0},{"$f":"'FR-16(7)(v)-3 PROD Demand'!O774+'FR-16(7)(v)-4 PROD Energy'!O774+'FR-16(7)(v)-5 PROD Cust'!O774+'FR-16(7)(v)-7 TRANS Demand'!O774+'FR-16(7)(v)-8 TRANS Energy'!O774+'FR-16(7)(v)-9 TRANS Cust'!O774+'FR-16(7)(v)-11 DIST Demand'!O774+'FR-16(7)(v)-12 DIST Energy'!O774+'FR-16(7)(v)-13 DIST Cust'!O774-'FR-16(7)(v)-14 TOTAL CLASS'!O774","v":0},{"$f":"'FR-16(7)(v)-3 PROD Demand'!P774+'FR-16(7)(v)-4 PROD Energy'!P774+'FR-16(7)(v)-5 PROD Cust'!P774+'FR-16(7)(v)-7 TRANS Demand'!P774+'FR-16(7)(v)-8 TRANS Energy'!P774+'FR-16(7)(v)-9 TRANS Cust'!P774+'FR-16(7)(v)-11 DIST Demand'!P774+'FR-16(7)(v)-12 DIST Energy'!P774+'FR-16(7)(v)-13 DIST Cust'!P774-'FR-16(7)(v)-14 TOTAL CLASS'!P774","v":0},{"$f":"'FR-16(7)(v)-3 PROD Demand'!Q774+'FR-16(7)(v)-4 PROD Energy'!Q774+'FR-16(7)(v)-5 PROD Cust'!Q774+'FR-16(7)(v)-7 TRANS Demand'!Q774+'FR-16(7)(v)-8 TRANS Energy'!Q774+'FR-16(7)(v)-9 TRANS Cust'!Q774+'FR-16(7)(v)-11 DIST Demand'!Q774+'FR-16(7)(v)-12 DIST Energy'!Q774+'FR-16(7)(v)-13 DIST Cust'!Q774-'FR-16(7)(v)-14 TOTAL CLASS'!Q774","v":0},{"$f":"SUM(G774:Q774)","v":0},{"$f":"F774-R774","v":184}]
[35,"COMPOSITE TAX RATE",null,null,null,{"$f":"F729","v":0.24925115},{"$f":"G729","v":0.24925115},0.24925115,0.24925115,0.24925115,0.24925115,0.24925115,0.24925115,0.24925115,0.24925115,0.24925115,0.24925115,0.24925115,0.24925115]
[36,"EXCESS TAX",null,null,null,{"$f":"'FR-16(7)(v)-3 PROD Demand'!F776+'FR-16(7)(v)-4 PROD Energy'!F776+'FR-16(7)(v)-5 PROD Cust'!F776+'FR-16(7)(v)-7 TRANS Demand'!F776+'FR-16(7)(v)-8 TRANS Energy'!F776+'FR-16(7)(v)-9 TRANS Cust'!F776+'FR-16(7)(v)-11 DIST Demand'!F776+'FR-16(7)(v)-12 DIST Energy'!F776+'FR-16(7)(v)-13 DIST Cust'!F776-'FR-16(7)(v)-14 TOTAL CLASS'!F776","v":0},{"$f":"'FR-16(7)(v)-3 PROD Demand'!G776+'FR-16(7)(v)-4 PROD Energy'!G776+'FR-16(7)(v)-5 PROD Cust'!G776+'FR-16(7)(v)-7 TRANS Demand'!G776+'FR-16(7)(v)-8 TRANS Energy'!G776+'FR-16(7)(v)-9 TRANS Cust'!G776+'FR-16(7)(v)-11 DIST Demand'!G776+'FR-16(7)(v)-12 DIST Energy'!G776+'FR-16(7)(v)-13 DIST Cust'!G776-'FR-16(7)(v)-14 TOTAL CLASS'!G776","v":0},{"$f":"'FR-16(7)(v)-3 PROD Demand'!H776+'FR-16(7)(v)-4 PROD Energy'!H776+'FR-16(7)(v)-5 PROD Cust'!H776+'FR-16(7)(v)-7 TRANS Demand'!H776+'FR-16(7)(v)-8 TRANS Energy'!H776+'FR-16(7)(v)-9 TRANS Cust'!H776+'FR-16(7)(v)-11 DIST Demand'!H776+'FR-16(7)(v)-12 DIST Energy'!H776+'FR-16(7)(v)-13 DIST Cust'!H776-'FR-16(7)(v)-14 TOTAL CLASS'!H776","v":0},{"$f":"'FR-16(7)(v)-3 PROD Demand'!I776+'FR-16(7)(v)-4 PROD Energy'!I776+'FR-16(7)(v)-5 PROD Cust'!I776+'FR-16(7)(v)-7 TRANS Demand'!I776+'FR-16(7)(v)-8 TRANS Energy'!I776+'FR-16(7)(v)-9 TRANS Cust'!I776+'FR-16(7)(v)-11 DIST Demand'!I776+'FR-16(7)(v)-12 DIST Energy'!I776+'FR-16(7)(v)-13 DIST Cust'!I776-'FR-16(7)(v)-14 TOTAL CLASS'!I776","v":0},{"$f":"'FR-16(7)(v)-3 PROD Demand'!J776+'FR-16(7)(v)-4 PROD Energy'!J776+'FR-16(7)(v)-5 PROD Cust'!J776+'FR-16(7)(v)-7 TRANS Demand'!J776+'FR-16(7)(v)-8 TRANS Energy'!J776+'FR-16(7)(v)-9 TRANS Cust'!J776+'FR-16(7)(v)-11 DIST Demand'!J776+'FR-16(7)(v)-12 DIST Energy'!J776+'FR-16(7)(v)-13 DIST Cust'!J776-'FR-16(7)(v)-14 TOTAL CLASS'!J776","v":0},{"$f":"'FR-16(7)(v)-3 PROD Demand'!K776+'FR-16(7)(v)-4 PROD Energy'!K776+'FR-16(7)(v)-5 PROD Cust'!K776+'FR-16(7)(v)-7 TRANS Demand'!K776+'FR-16(7)(v)-8 TRANS Energy'!K776+'FR-16(7)(v)-9 TRANS Cust'!K776+'FR-16(7)(v)-11 DIST Demand'!K776+'FR-16(7)(v)-12 DIST Energy'!K776+'FR-16(7)(v)-13 DIST Cust'!K776-'FR-16(7)(v)-14 TOTAL CLASS'!K776","v":0},{"$f":"'FR-16(7)(v)-3 PROD Demand'!L776+'FR-16(7)(v)-4 PROD Energy'!L776+'FR-16(7)(v)-5 PROD Cust'!L776+'FR-16(7)(v)-7 TRANS Demand'!L776+'FR-16(7)(v)-8 TRANS Energy'!L776+'FR-16(7)(v)-9 TRANS Cust'!L776+'FR-16(7)(v)-11 DIST Demand'!L776+'FR-16(7)(v)-12 DIST Energy'!L776+'FR-16(7)(v)-13 DIST Cust'!L776-'FR-16(7)(v)-14 TOTAL CLASS'!L776","v":0},{"$f":"'FR-16(7)(v)-3 PROD Demand'!M776+'FR-16(7)(v)-4 PROD Energy'!M776+'FR-16(7)(v)-5 PROD Cust'!M776+'FR-16(7)(v)-7 TRANS Demand'!M776+'FR-16(7)(v)-8 TRANS Energy'!M776+'FR-16(7)(v)-9 TRANS Cust'!M776+'FR-16(7)(v)-11 DIST Demand'!M776+'FR-16(7)(v)-12 DIST Energy'!M776+'FR-16(7)(v)-13 DIST Cust'!M776-'FR-16(7)(v)-14 TOTAL CLASS'!M776","v":0},{"$f":"'FR-16(7)(v)-3 PROD Demand'!N776+'FR-16(7)(v)-4 PROD Energy'!N776+'FR-16(7)(v)-5 PROD Cust'!N776+'FR-16(7)(v)-7 TRANS Demand'!N776+'FR-16(7)(v)-8 TRANS Energy'!N776+'FR-16(7)(v)-9 TRANS Cust'!N776+'FR-16(7)(v)-11 DIST Demand'!N776+'FR-16(7)(v)-12 DIST Energy'!N776+'FR-16(7)(v)-13 DIST Cust'!N776-'FR-16(7)(v)-14 TOTAL CLASS'!N776","v":0},{"$f":"'FR-16(7)(v)-3 PROD Demand'!O776+'FR-16(7)(v)-4 PROD Energy'!O776+'FR-16(7)(v)-5 PROD Cust'!O776+'FR-16(7)(v)-7 TRANS Demand'!O776+'FR-16(7)(v)-8 TRANS Energy'!O776+'FR-16(7)(v)-9 TRANS Cust'!O776+'FR-16(7)(v)-11 DIST Demand'!O776+'FR-16(7)(v)-12 DIST Energy'!O776+'FR-16(7)(v)-13 DIST Cust'!O776-'FR-16(7)(v)-14 TOTAL CLASS'!O776","v":0},{"$f":"'FR-16(7)(v)-3 PROD Demand'!P776+'FR-16(7)(v)-4 PROD Energy'!P776+'FR-16(7)(v)-5 PROD Cust'!P776+'FR-16(7)(v)-7 TRANS Demand'!P776+'FR-16(7)(v)-8 TRANS Energy'!P776+'FR-16(7)(v)-9 TRANS Cust'!P776+'FR-16(7)(v)-11 DIST Demand'!P776+'FR-16(7)(v)-12 DIST Energy'!P776+'FR-16(7)(v)-13 DIST Cust'!P776-'FR-16(7)(v)-14 TOTAL CLASS'!P776","v":0},{"$f":"'FR-16(7)(v)-3 PROD Demand'!Q776+'FR-16(7)(v)-4 PROD Energy'!Q776+'FR-16(7)(v)-5 PROD Cust'!Q776+'FR-16(7)(v)-7 TRANS Demand'!Q776+'FR-16(7)(v)-8 TRANS Energy'!Q776+'FR-16(7)(v)-9 TRANS Cust'!Q776+'FR-16(7)(v)-11 DIST Demand'!Q776+'FR-16(7)(v)-12 DIST Energy'!Q776+'FR-16(7)(v)-13 DIST Cust'!Q776-'FR-16(7)(v)-14 TOTAL CLASS'!Q776","v":0},{"$f":"SUM(G776:Q776)","v":0},{"$f":"F776-R776","v":0}]
[37,"EXCESS RETURN",null,null,null,{"$f":"F774-F776","v":184},{"$f":"G774-G776","v":0},{"$f":"H774-H776","v":0},{"$f":"I774-I776","v":0},{"$f":"J774-J776","v":0},0,0,0,0,0,0,{"$f":"Q774-Q776","v":0},{"$f":"SUM(G777:Q777)","v":0},{"$f":"F777-R777","v":184}]
[]
[{"$f":"co_name","v":"DUKE ENERGY KENTUCKY, INC."},null,null,null,null,null,null,null,null,null,null,null,null,null,null,null,null,{"$f":"R1","v":"FR-16(7)(v)-14"}]
[{"$f":"$A$2","v":"TOTAL CLASS ALLOCATED - ELECTRIC COST OF SERVICE"},null,null,null,null,null,null,null,null,null,null,null,null,null,null,null,null,{"$f":"R2","v":"WITNESS RESPONSIBLE:"}]
[{"$f":"case_name","v":"CASE NO: 2019-00271"},null,null,null,null,null,null,null,null,null,null,null,null,null,null,null,null,{"$f":"Witness","v":"JAMES E. ZIOLKOWSKI"}]
[{"$f":"data_filing","v":"DATA: 12 MONTHS ACTUAL  & 0 MONTHS ESTIMATED"},null,null,null,null,null,null,null,null,null,null,null,null,null,null,null,null,{"$f":"\"PAGE \"&Pages2&\" OF \"&Pages2","v":"PAGE 15 OF 15"}]
[{"$f":"type","v":"TYPE OF FILING: \"X\" ORIGINAL   UPDATED    REVISED  "}]
[]
[null,null,null,null,null,{"$f":"F$7","v":"TOTAL"},null,{"$f":"H$7","v":"DS"},{"$f":"I$7","v":"GSFL"},{"$f":"J$7","v":"EH"},{"$f":"K$7","v":"SP"},"DT SEC","DT PRI","DP","TT",null,"OTHER"]
["LINE",null,null,null,null,{"$f":"F$8","v":"CLASS"},{"$f":"G$8","v":"RS"},{"$f":"H$8","v":"SECONDARY"},{"$f":"I$8","v":"SECONDARY"},{"$f":"J$8","v":"SECONDARY"},{"$f":"K$8","v":"SECONDARY"},"SECONDARY","PRIMARY","PRIMARY","TRANSMISSION","LT","WATER",{"$f":"R8","v":"TOTAL"},"ALL"]
["NO.","ROR, TAX RATES & SPEC FACTORS",null,"ALLO",null,{"$f":"F$9","v":"ALLOCATED"},{"$f":"G$9","v":"RESIDENTIAL"},{"$f":"H$9","v":"DISTRIBUTION"},{"$f":"I$9","v":"DISTRIBUTION"},{"$f":"J$9","v":"DISTRIBUTION"},{"$f":"K$9","v":"DISTRIBUTION"},"DISTRIBUTION","DISTRIBUTION","DISTRIBUTION","TIME OF DAY","LIGHTING","PUMPING",{"$f":"R9","v":"AT ISSUE"},"OTHER"]
[null,null,"Schedule 11",null,null,null,{"$f":"G$10","v":3},{"$f":"H$10","v":4},{"$f":"I$10","v":5},{"$f":"J$10","v":6},{"$f":"K$10","v":7},8,9,10,11,12,13,null," "]
[1,"RATE OF RETURN"]
[2," CAPITALIZATION AMOUNTS",null,null,null,null,"RATIO"]
[3,null,{"$f":"'FR-16(7)(v)-1 Functional'!C791","v":"LONG TERM DEBT"},null,null,{"$f":"'FR-16(7)(v)-2 PROD Classified'!$F$791","v":665948506},{"$f":"IF(TotalCap=0,0,ROUND(F791/TotalCap,4))","v":0.45929999999999999}]
[4,null,{"$f":"'FR-16(7)(v)-1 Functional'!C792","v":"PREFERRED STOCK"},null,null,{"$f":"'FR-16(7)(v)-2 PROD Classified'!$F$792","v":0},{"$f":"IF(TotalCap=0,0,ROUND(F792/TotalCap,4))","v":0}]
[5,null,{"$f":"'FR-16(7)(v)-1 Functional'!C793","v":"COMMON STOCK"},null,null,{"$f":"[0]!Equity","v":699348680},{"$f":"1-G791-G792-G794-G795","v":0.48239999999999994}]
[6,null,{"$f":"'FR-16(7)(v)-1 Functional'!C794","v":"SHORT TERM DEBT"},null,null,{"$f":"'FR-16(7)(v)-2 PROD Classified'!$F$794","v":84600060},{"$f":"IF(TotalCap=0,0,ROUND(F794/TotalCap,4))","v":5.8299999999999998E-2}]
[7,null,{"$f":"'FR-16(7)(v)-1 Functional'!C795","v":"UNAMORTIZED DISCOUNT"},null,null,{"$f":"'FR-16(7)(v)-2 PROD Classified'!$F$795","v":0},{"$f":"IF(TotalCap=0,0,ROUND(F795/TotalCap,4))","v":0}]
[8,null,{"$f":"'FR-16(7)(v)-1 Functional'!C796","v":"  TOTAL"},null,null,{"$f":"SUM(F790:F795)","v":1449897246},{"$f":"SUM(G791:G795)","v":1}]
[9]
[10," COST OF CAPITAL"]
[11,null,{"$f":"'FR-16(7)(v)-1 Functional'!C799","v":"LONG TERM DEBT"},null,null,{"$f":"'FR-16(7)(v)-2 PROD Classified'!$F$799","v":4.0730000000000002E-2}]
[12,null,{"$f":"'FR-16(7)(v)-1 Functional'!C800","v":"PREFERRED STOCK"},null,null,{"$f":"'FR-16(7)(v)-2 PROD Classified'!$F$800","v":0}]
[13,null,{"$f":"'FR-16(7)(v)-1 Functional'!C801","v":"COMMON STOCK"},null,null,{"$f":"'FR-16(7)(v)-2 PROD Classified'!$F$801","v":9.8000000000000004E-2}]
[14,null,{"$f":"'FR-16(7)(v)-1 Functional'!C802","v":"SHORT TERM DEBT"},null,null,{"$f":"'FR-16(7)(v)-2 PROD Classified'!$F$802","v":1.9369999999999998E-2}]
[15,null,{"$f":"'FR-16(7)(v)-1 Functional'!C803","v":"UNAMORTIZED DISCOUNT"},null,null,{"$f":"'FR-16(7)(v)-2 PROD Classified'!$F$803","v":0}]
[16]
[17," WEIGHTED COST OF CAPITAL"]
[18,null,{"$f":"'FR-16(7)(v)-1 Functional'!C806","v":"LONG TERM DEBT"},null,null,{"$f":"ROUND(G791*F799,4)","v":1.8700000000000001E-2}]
[19,null,{"$f":"'FR-16(7)(v)-1 Functional'!C807","v":"PREFERRED STOCK"},null,null,{"$f":"ROUND(G792*F800,4)","v":0}]
[20,null,{"$f":"'FR-16(7)(v)-1 Functional'!C808","v":"COMMON STOCK"},null,null,{"$f":"ROUND(G793*F801,4)","v":4.7300000000000002E-2}]
[21,null,{"$f":"'FR-16(7)(v)-1 Functional'!C809","v":"SHORT TERM DEBT"},null,null,{"$f":"ROUND(G794*F802,4)","v":1.1000000000000001E-3}]
[22,null,{"$f":"'FR-16(7)(v)-1 Functional'!C810","v":"UNAMORTIZED DISCOUNT"},null,null,{"$f":"ROUND(G795*F803,4)","v":0}]
[23,null,{"$f":"'FR-16(7)(v)-1 Functional'!C811","v":"  TOT RATE OF RETURN ALLOWABLE"},null,null,{"$f":"SUM(F806:F810)","v":6.7100000000000007E-2}]
[24]
[25,"TAX RATES AND SPECIAL FACTORS"]
[26,null,{"$f":"'FR-16(7)(v)-1 Functional'!C814","v":"SHORT TERM DEBT COST"},null,null,0,{"$f":"F814","v":0},{"$f":"F814","v":0},{"$f":"F814","v":0},{"$f":"G814","v":0},0,0,0,0,0,0,{"$f":"$F$814","v":0},{"$f":"F814","v":0},{"$f":"F814","v":0}]
[27,null,{"$f":"'FR-16(7)(v)-1 Functional'!C815","v":"FEDERAL INCOME TAX RATE"},null,null,0.35,{"$f":"FIT","v":0.21},0.21,0.21,0.21,0.21,0.21,0.21,0.21,0.21,0.21,0.21,0.21,0.21]
[28,null,{"$f":"'FR-16(7)(v)-1 Functional'!C816","v":"STATE INCOME TAX RATE"},null,null,{"$f":"SIT","v":4.9685000000000007E-2},{"$f":"SIT","v":4.9685000000000007E-2},4.9685000000000007E-2,4.9685000000000007E-2,4.9685000000000007E-2,4.9685000000000007E-2,4.9685000000000007E-2,4.9685000000000007E-2,4.9685000000000007E-2,4.9685000000000007E-2,4.9685000000000007E-2,4.9685000000000007E-2,4.9685000000000007E-2,4.9685000000000007E-2]
[29,null,{"$f":"'FR-16(7)(v)-1 Functional'!C817","v":"REVENUE TAX RATE"},null,null,0,{"$f":"RevTax","v":0},0,0,0,0,0,0,0,0,0,0,0,0]
[]
[]
[]
[]
[]
[]
[]
[]
[]
[]
[]
[]
[]
[]
[]
[]
[]
[]
[]
[]
[]
[]
[]
[]
[]
[]
[]
[]
[]
[]
[]
[]
[]
[]
[]
[]
[]
[]
[]
[]
[]
[]
[]
[]
[]
[]
[]
[]
[]
[]
[]
[]
[]
[]
[]
[]
[]
[]
[]
[]
[]
[]
[]
[]
[]
[]
[]
[]
[]
[]
[]
[]
[]
[]
[]
[]
[]
[]
[]
[]
[]
[]
[]
[]
[]
[]
[]
[]
[]
[]
[]
[]
[]
[]
[]
[]
[]
[]
[]
[]
[]
[]
[]
[]
[]
[]
[]
[]
[]
[]
[]
[]
[]
[]
[]
[]
[]
[]
[]
[]
[]
[]
[]
[]
[]
[]
[]
[]
[]
[]
[]
[]
[]
[]
[]
[]
[]
[]
[]
[]
[]
[]
[]
[]
[]
[]
[]
[]
[]
[]
[]
[]
[]
[]
[]
[]
[]
[]
[]
[]
[]
[]
[]
[]
[]
[]
["DO NOT FILE THIS PAGE"]
[]
[{"$f":"co_name","v":"DUKE ENERGY KENTUCKY, INC."},null,null,null,null,null,null,null,null,null,null,null,null,null,null,null,null,{"$f":"R1","v":"FR-16(7)(v)-14"}]
[{"$f":"$A$2","v":"TOTAL CLASS ALLOCATED - ELECTRIC COST OF SERVICE"},null,null,null,null,null,null,null,null,null,null,null,null,null,null,null,null,{"$f":"R2","v":"WITNESS RESPONSIBLE:"}]
[{"$f":"case_name","v":"CASE NO: 2019-00271"},null,null,null,null,null,null,null,null,null,null,null,null,null,null,null,null,{"$f":"Witness","v":"JAMES E. ZIOLKOWSKI"}]
[{"$f":"data_filing","v":"DATA: 12 MONTHS ACTUAL  & 0 MONTHS ESTIMATED"},null,null,null,null,null,null,null,null,null,null,null,null,null,null,null,null,{"$f":"\"PAGE \"&Pages2&\" OF \"&Pages2","v":"PAGE 15 OF 15"}]
[{"$f":"type","v":"TYPE OF FILING: \"X\" ORIGINAL   UPDATED    REVISED  "}]
[]
[null,null,null,null,null,{"$f":"F$7","v":"TOTAL"},null,{"$f":"H$7","v":"DS"},{"$f":"I$7","v":"GSFL"},{"$f":"J$7","v":"EH"},{"$f":"K$7","v":"SP"},"DT SEC","DT PRI","DP","TT",null,"OTHER"]
["LINE",null,null,null,null,{"$f":"F$8","v":"CLASS"},{"$f":"G$8","v":"RS"},{"$f":"H$8","v":"SECONDARY"},{"$f":"I$8","v":"SECONDARY"},{"$f":"J$8","v":"SECONDARY"},{"$f":"K$8","v":"SECONDARY"},"SECONDARY","PRIMARY","PRIMARY","TRANSMISSION","LT","WATER",{"$f":"R8","v":"TOTAL"},"ALL"]
["NO.","INCOME TAX BASED ON REVENUES",null,"ALLO",null,{"$f":"F$9","v":"ALLOCATED"},{"$f":"G$9","v":"RESIDENTIAL"},{"$f":"H$9","v":"DISTRIBUTION"},{"$f":"I$9","v":"DISTRIBUTION"},{"$f":"J$9","v":"DISTRIBUTION"},{"$f":"K$9","v":"DISTRIBUTION"},"DISTRIBUTION","DISTRIBUTION","DISTRIBUTION","TIME OF DAY","LIGHTING","PUMPING",{"$f":"R9","v":"AT ISSUE"},"OTHER"]
[null,null,"Schedule 13",null,null,null,{"$f":"G$10","v":3},{"$f":"H$10","v":4},{"$f":"I$10","v":5},{"$f":"J$10","v":6},{"$f":"K$10","v":7},8,9,10,11,12,13,null," "]
[1,"NET INCOME COMPUTATION"]
[2,null,{"$f":"'FR-16(7)(v)-1 Functional'!C1008","v":"TOTAL ELECTRIC COST OF SERVICE"},null,null,{"$f":"F770","v":-184},0,0,0,0,0,0,0,0,0,0,0,0,184]
[3,null,{"$f":"'FR-16(7)(v)-1 Functional'!C1009","v":"TOTAL OTHER OPERATING REVENUES"},null,null,{"$f":"F750","v":0},{"$f":"G750","v":0},{"$f":"H750","v":0},{"$f":"I750","v":0},{"$f":"J750","v":0},0,0,0,0,0,0,{"$f":"$Q$750","v":0},{"$f":"R750","v":0},{"$f":"S750","v":0}]
[4,null,{"$f":"'FR-16(7)(v)-1 Functional'!C1010","v":"  TOTAL ELECTRIC REVENUE"},null,null,{"$f":"SUM(F996:F998)","v":-184},0,0,0,{"$f":"SUM(J996:J998)","v":0},0,0,0,0,0,0,0,0,184]
[5,null,{"$f":"'FR-16(7)(v)-1 Functional'!C1011","v":"TOTAL OP EXP EX INC & REV TAX"},null,null,{"$f":"-F618","v":0},{"$f":"-G618","v":0},{"$f":"-H618","v":0},{"$f":"-I618","v":0},{"$f":"-J618","v":0},0,0,0,0,0,0,{"$f":"-$Q$618","v":0},{"$f":"-R618","v":0},{"$f":"-S618","v":0}]
[6,null,{"$f":"'FR-16(7)(v)-1 Functional'!C1012","v":"FIRM SERVICE REVENUE TAX"},null,null,{"$f":"-ROUND(F817*F997,0)","v":0},{"$f":"F1001-SUM(H1001:Q1001)","v":0},{"$f":"-ROUND(H817*H997,0)","v":0},{"$f":"-ROUND(I817*I997,0)","v":0},{"$f":"-ROUND(J817*J997,0)","v":0},0,0,0,0,0,0,{"$f":"-ROUND(Q817*Q997,0)","v":0},{"$f":"SUM(G1001:Q1001)","v":0},{"$f":"-ROUND('FR-16(7)(v)-1 Functional'!K817*S997,0)","v":0}]
[7,null,{"$f":"'FR-16(7)(v)-1 Functional'!C1013","v":"  NET INCOME"},null,null,{"$f":"SUM(F999:F1001)","v":-184},{"$f":"SUM(G999:G1001)","v":0},{"$f":"SUM(H999:H1001)","v":0},{"$f":"SUM(I999:I1001)","v":0},{"$f":"SUM(J999:J1001)","v":0},0,0,0,0,0,0,{"$f":"SUM(Q999:Q1001)","v":0},{"$f":"SUM(G1002:Q1002)","v":0},{"$f":"SUM(S999:S1001)","v":184}]
[8]
[9,"ADJUSTMENTS TO NET INCOME"]
[10,null,{"$f":"'FR-16(7)(v)-1 Functional'!C1016","v":"TOTAL INTEREST EXPENSE"},null,null,{"$f":"-F633","v":0},{"$f":"-G633","v":0},{"$f":"-H633","v":0},{"$f":"-I633","v":0},{"$f":"-J633","v":0},0,0,0,0,0,0,{"$f":"-$Q$633","v":0},{"$f":"-R633","v":0},{"$f":"-S633","v":0}]
[11,null,{"$f":"'FR-16(7)(v)-1 Functional'!C1017","v":"TOTAL OTHER DEDUCTIONS"},null,null,{"$f":"-F639","v":0},{"$f":"-G639","v":0},{"$f":"-H639","v":0},{"$f":"-I639","v":0},{"$f":"-J639","v":0},0,0,0,0,0,0,{"$f":"-$Q$639","v":0},{"$f":"-R639","v":0},{"$f":"-S639","v":0}]
[12,null,{"$f":"'FR-16(7)(v)-1 Functional'!C1018","v":"  PRELIMINARY TAXABLE INCOME"},null,null,{"$f":"SUM(F1004:F1006)+F1002","v":-184},{"$f":"SUM(G1004:G1006)+G1002","v":0},{"$f":"SUM(H1004:H1006)+H1002","v":0},{"$f":"SUM(I1004:I1006)+I1002","v":0},{"$f":"SUM(J1004:J1006)+J1002","v":0},0,0,0,0,0,0,{"$f":"SUM(Q1004:Q1006)+Q1002","v":0},{"$f":"SUM(G1007:Q1007)","v":0},{"$f":"SUM(S1004:S1006)+S1002","v":184}]
[13]
[14,"INCOME TAX BASED ON REVENUES"]
[15,"FEDERAL INCOME TAX COMPUTATION"]
[16,null,{"$f":"'FR-16(7)(v)-1 Functional'!C1022","v":"PRELIMINARY TAXABLE INCOME"},null,null,{"$f":"F1007","v":-184},0,0,0,0,0,0,0,0,0,0,0,0,184]
[17,null,{"$f":"'FR-16(7)(v)-1 Functional'!C1023","v":"  NET FEDERAL TAXABLE INCOME"},null,null,{"$f":"SUM(F1011:F1011)","v":-184},0,0,0,0,0,0,0,0,0,0,0,0,184]
[18,null,{"$f":"'FR-16(7)(v)-1 Functional'!C1024","v":"  FEDERAL INCOME TAX RATE"},null,null,{"$f":"F815","v":0.35},{"$f":"G815","v":0.21},{"$f":"H815","v":0.21},{"$f":"I815","v":0.21},{"$f":"J815","v":0.21},0.21,0.21,0.21,0.21,0.21,0.21,{"$f":"Q815","v":0.21},null,{"$f":"'FR-16(7)(v)-1 Functional'!K815","v":0.21}]
[19,null,{"$f":"'FR-16(7)(v)-1 Functional'!C1025","v":"PRELIMINARY FIT = FI01 * K190"},null,null,{"$f":"ROUND(F1013*F1012,0)","v":-64},{"$f":"F1014-SUM(H1014:Q1014)","v":-64},{"$f":"ROUND(H1013*H1012,0)","v":0},{"$f":"ROUND(I1013*I1012,0)","v":0},{"$f":"ROUND(J1013*J1012,0)","v":0},0,0,0,0,0,0,{"$f":"ROUND(Q1013*Q1012,0)","v":0},{"$f":"SUM(G1014:Q1014)","v":-64},{"$f":"ROUND(S1013*S1012,0)","v":39}]
[20,null,{"$f":"'FR-16(7)(v)-1 Functional'!C1026","v":"TOTAL FED DEF IT (410 & 411)"},null,null,{"$f":"F649","v":-139},{"$f":"G649","v":0},{"$f":"H649","v":0},{"$f":"I649","v":0},{"$f":"J649","v":0},0,0,0,0,0,0,{"$f":"$Q$649","v":0},{"$f":"R649","v":0},{"$f":"S649","v":-139}]
[21,null,{"$f":"'FR-16(7)(v)-1 Functional'!C1027","v":"TOTAL AMORTIZED ITC"},null,null,{"$f":"-F653","v":0},{"$f":"-G653","v":0},{"$f":"-H653","v":0},{"$f":"-I653","v":0},{"$f":"-J653","v":0},0,0,0,0,0,0,{"$f":"-$Q$653","v":0},{"$f":"-R653","v":0},{"$f":"-S653","v":0}]
[22,null,{"$f":"'FR-16(7)(v)-1 Functional'!C1028","v":"  NET FED INC TAX ALLOWABLE"},null,null,{"$f":"SUM(F1014:F1016)","v":-203},-64,0,0,0,0,0,0,0,0,0,0,-64,-100]
[23]
[24,"FEDERAL INCOME TAX PAYABLE"]
[25,null,{"$f":"'FR-16(7)(v)-1 Functional'!C1031","v":"PRELIM FIT"},null,null,{"$f":"F1014","v":-64},-64,0,0,0,0,0,0,0,0,0,0,-64,39]
[26,null,{"$f":"'FR-16(7)(v)-1 Functional'!C1032","v":"TEST YEAR INV TAX CREDIT"},null,null,{"$f":"-F658","v":0},{"$f":"-G658","v":0},{"$f":"-H658","v":0},{"$f":"-I658","v":0},{"$f":"-J658","v":0},0,0,0,0,0,0,{"$f":"-$Q$658","v":0},{"$f":"-R658","v":0},{"$f":"-S658","v":0}]
[27,null,{"$f":"'FR-16(7)(v)-1 Functional'!C1033","v":"  FED INC TAX PAYABLE"},null,null,{"$f":"SUM(F1019:F1021)","v":-64},-64,0,0,0,0,0,0,0,0,0,0,-64,39]
[28]
[29,"PRELIMINARY SUMMARY"]
[30,null,{"$f":"'FR-16(7)(v)-1 Functional'!C1036","v":"NET INCOME"},null,null,{"$f":"F1002","v":-184},0,0,0,0,0,0,0,0,0,0,0,0,184]
[31,null,{"$f":"'FR-16(7)(v)-1 Functional'!C1037","v":"NET FED INC TAX ALLOWABLE"},null,null,{"$f":"-F1017","v":203},64,0,0,0,0,0,0,0,0,0,0,64,100]
[32,null,{"$f":"'FR-16(7)(v)-1 Functional'!C1038","v":"  OVERALL RETURN EARNED"},null,null,{"$f":"SUM(F1024:F1026)","v":19},64,0,0,0,0,0,0,0,0,0,0,64,284]
[33]
[34,null,{"$f":"'FR-16(7)(v)-1 Functional'!C1040","v":"  RATE OF RETURN EARNED"},null,null,{"$f":"IF(F426=0,0,ROUND(F1027/F426,5))","v":0},{"$f":"IF(G426=0,0,ROUND(G1027/G426,5))","v":0},{"$f":"IF(H426=0,0,ROUND(H1027/H426,5))","v":0},{"$f":"IF(I426=0,0,ROUND(I1027/I426,5))","v":0},{"$f":"IF(J426=0,0,ROUND(J1027/J426,5))","v":0},0,0,0,0,0,0,{"$f":"IF(Q426=0,0,ROUND(Q1027/Q426,5))","v":0},{"$f":"IF(R426=0,0,ROUND(R1027/R426,5))","v":0},{"$f":"IF(S426=0,0,ROUND(S1027/S426,5))","v":0}]

{"sheet":"FR-16(7)(v)-14 TOTAL CLASS","index":18,"n_rows":1029,"n_cols":19,"rows_kept":1029,"cut":false,"hidden":false,"merged":[]}
[{"$f":"co_name","v":"DUKE ENERGY KENTUCKY, INC."},null,null,null,null,null,null,null,null,null,null,null,null,null,null,null,null,"FR-16(7)(v)-14"]
["TOTAL CLASS ALLOCATED - ELECTRIC COST OF SERVICE",null,null,null,null,null,null,null,null,null,null,null,null,null,null,null,null,"WITNESS RESPONSIBLE:"]
[{"$f":"case_name","v":"CASE NO: 2019-00271"},null,null,null,null,null,null,null,null,null,null,null,null,null,null,null,null,{"$f":"Witness","v":"JAMES E. ZIOLKOWSKI"}]
[{"$f":"data_filing","v":"DATA: 12 MONTHS ACTUAL  & 0 MONTHS ESTIMATED"},null,null,null,null,null,null,null,null,null,null,null,null,null,null,null,null,{"$f":"\"PAGE \"&Pages2-14&\" OF \"&Pages2","v":"PAGE 1 OF 15"}]
[{"$f":"type","v":"TYPE OF FILING: \"X\" ORIGINAL   UPDATED    REVISED  "}]
[]
[null,null,null,null,null,"TOTAL",null,{"$f":"'FR-16(7)(v)-3 PROD Demand'!H7","v":"DS"},{"$f":"'FR-16(7)(v)-3 PROD Demand'!I7","v":"GSFL"},{"$f":"'FR-16(7)(v)-3 PROD Demand'!J7","v":"EH"},{"$f":"'FR-16(7)(v)-3 PROD Demand'!K7","v":"SP"},{"$f":"'FR-16(7)(v)-3 PROD Demand'!L7","v":"DT SEC"},{"$f":"'FR-16(7)(v)-3 PROD Demand'!M7","v":"DT PRI"},{"$f":"'FR-16(7)(v)-3 PROD Demand'!N7","v":"DP"},{"$f":"'FR-16(7)(v)-3 PROD Demand'!O7","v":"TT"},null,{"$f":"'FR-16(7)(v)-3 PROD Demand'!Q7","v":"OTHER"}]
["LINE",null,null,null,null,"CLASS",{"$f":"'FR-16(7)(v)-3 PROD Demand'!G8","v":"RS"},{"$f":"'FR-16(7)(v)-3 PROD Demand'!H8","v":"SECONDARY"},{"$f":"'FR-16(7)(v)-3 PROD Demand'!I8","v":"SECONDARY"},{"$f":"'FR-16(7)(v)-3 PROD Demand'!J8","v":"SECONDARY"},{"$f":"'FR-16(7)(v)-3 PROD Demand'!K8","v":"SECONDARY"},{"$f":"'FR-16(7)(v)-3 PROD Demand'!L8","v":"SECONDARY"},{"$f":"'FR-16(7)(v)-3 PROD Demand'!M8","v":"PRIMARY"},{"$f":"'FR-16(7)(v)-3 PROD Demand'!N8","v":"PRIMARY"},{"$f":"'FR-16(7)(v)-3 PROD Demand'!O8","v":"TRANSMISSION"},{"$f":"'FR-16(7)(v)-3 PROD Demand'!P8","v":"LT"},{"$f":"'FR-16(7)(v)-3 PROD Demand'!Q8","v":"WATER"},{"$f":"'FR-16(7)(v)-3 PROD Demand'!R8","v":"TOTAL"},{"$f":"'FR-16(7)(v)-3 PROD Demand'!S8","v":"ALL"}]
["NO.","SUMMARY OF RESULTS",null,"ALLO",null,"ALLOCATED",{"$f":"'FR-16(7)(v)-3 PROD Demand'!G9","v":"RESIDENTIAL"},{"$f":"'FR-16(7)(v)-3 PROD Demand'!H9","v":"DISTRIBUTION"},{"$f":"'FR-16(7)(v)-3 PROD Demand'!I9","v":"DISTRIBUTION"},{"$f":"'FR-16(7)(v)-3 PROD Demand'!J9","v":"DISTRIBUTION"},{"$f":"'FR-16(7)(v)-3 PROD Demand'!K9","v":"DISTRIBUTION"},{"$f":"'FR-16(7)(v)-3 PROD Demand'!L9","v":"DISTRIBUTION"},{"$f":"'FR-16(7)(v)-3 PROD Demand'!M9","v":"DISTRIBUTION"},{"$f":"'FR-16(7)(v)-3 PROD Demand'!N9","v":"DISTRIBUTION"},{"$f":"'FR-16(7)(v)-3 PROD Demand'!O9","v":"TIME OF DAY"},{"$f":"'FR-16(7)(v)-3 PROD Demand'!P9","v":"LIGHTING"},{"$f":"'FR-16(7)(v)-3 PROD Demand'!Q9","v":"PUMPING"},{"$f":"'FR-16(7)(v)-3 PROD Demand'!R9","v":"AT ISSUE"},{"$f":"'FR-16(7)(v)-3 PROD Demand'!S9","v":"OTHER"}]
[null,null,"Schedule 1",null,null,null,3,4,5,6,7,8,9,10,11,12,13]
[1,"NET INCOME COMPUTATION"]
[2,null,{"$f":"'FR-16(7)(v)-1 Functional'!C12","v":"GROSS ELECTRIC PLANT IN SERVICE"},null,null,{"$f":"F123","v":1949359835},{"$f":"G123","v":950855827},{"$f":"H123","v":502749698},{"$f":"I123","v":2477965},{"$f":"J123","v":9708499},145103,244536260,161404647,7890667,57809196,11570718,{"$f":"Q123","v":211255},{"$f":"SUM(G12:Q12)","v":1949359835},{"$f":"F12-R12","v":0}]
[3,null,{"$f":"'FR-16(7)(v)-1 Functional'!C13","v":"TOTAL DEPRECIATION RESERVE"},null,null,{"$f":"-F200","v":-795436883},{"$f":"-G200","v":-380312223},{"$f":"-H200","v":-206121793},{"$f":"-I200","v":-1018710},{"$f":"-J200","v":-3935495},-58030,-100888198,-66655247,-3242856,-27423884,-5694343,{"$f":"-Q200","v":-86104},{"$f":"SUM(G13:Q13)","v":-795436883},{"$f":"F13-R13","v":0}]
[4,null,{"$f":"'FR-16(7)(v)-1 Functional'!C14","v":"TOTAL RATE BASE ADJUSTMENTS"},null,null,{"$f":"F421","v":-207495126},{"$f":"G421","v":-101954929},{"$f":"H421","v":-54305934},{"$f":"I421","v":-262084},{"$f":"J421","v":-1090391},-15539,-26018763,-17070734,-842034,-4751970,-1160255,{"$f":"Q421","v":-22493},{"$f":"SUM(G14:Q14)","v":-207495126},{"$f":"F14-R14","v":0}]
[5,null,{"$f":"'FR-16(7)(v)-1 Functional'!C15","v":"  TOTAL RATE BASE"},null,null,{"$f":"SUM(F12:F14)","v":946427826},{"$f":"SUM(G12:G14)","v":468588675},{"$f":"SUM(H12:H14)","v":242321971},{"$f":"SUM(I12:I14)","v":1197171},{"$f":"SUM(J12:J14)","v":4682613},71534,117629299,77678666,3805777,25633342,4716120,{"$f":"SUM(Q12:Q14)","v":102658},{"$f":"SUM(R12:R14)","v":946427826},{"$f":"F15-R15","v":0}]
[6]
[7,"OPERATING EXPENSES"]
[8,null,{"$f":"'FR-16(7)(v)-1 Functional'!C18","v":"TOTAL O&M EXPENSE"},null,null,{"$f":"F549","v":209792284},{"$f":"G549","v":92724430},{"$f":"H549","v":53105892},{"$f":"I549","v":288008},{"$f":"J549","v":891508},15359,30098766,20687129,986111,9537511,1433909,{"$f":"Q549","v":23661},{"$f":"SUM(G18:Q18)","v":209792284},{"$f":"F18-R18","v":0}]
[9,null,{"$f":"'FR-16(7)(v)-1 Functional'!C19","v":"TOTAL DEPRECIATION EXPENSE"},null,null,{"$f":"F582","v":58197795},{"$f":"G582","v":27967520},{"$f":"H582","v":15181448},{"$f":"I582","v":74513},{"$f":"J582","v":290337},4328,7431765,4911695,239418,1872107,218310,{"$f":"Q582","v":6354},{"$f":"SUM(G19:Q19)","v":58197795},0]
[10,null,{"$f":"'FR-16(7)(v)-1 Functional'!C20","v":"TOTAL OTHER TAX & MISC EXPENSE"},null,null,{"$f":"F612","v":14578329},{"$f":"G612","v":7330086},{"$f":"H612","v":3678419},{"$f":"I612","v":18179},{"$f":"J612","v":70934},1098,1783674,1177258,57726,382604,76794,{"$f":"$Q$612","v":1557},{"$f":"SUM(G20:Q20)","v":14578329},0]
[11,null,{"$f":"'FR-16(7)(v)-1 Functional'!C21","v":"  TOTAL OP EXP EXCLUDING INC & REV TAX"},null,null,{"$f":"SUM(F17:F20)","v":282568408},128022036,71965759,380700,{"$f":"SUM(J17:J20)","v":1252779},20785,39314205,26776082,1283255,11792222,1729013,31572,282568408,0]
[12,null,{"$f":"'FR-16(7)(v)-1 Functional'!C22","v":"NET FED INCOME TAX EXP ALLOWABLE"},null,null,{"$f":"F676","v":7123621},{"$f":"G676","v":2291207},{"$f":"H676","v":1993614},{"$f":"I676","v":11923},{"$f":"J676","v":29653},560,1309753,927754,43507,435199,79367,{"$f":"$Q$676","v":908},{"$f":"SUM(G22:Q22)","v":7123445},176]
[13,null,"NET STATE INCOME TAX EXP ALLOWABLE",null,null,{"$f":"F722","v":2461566},{"$f":"G722","v":1822464},{"$f":"H722","v":285271},1796,3750,152,155077,110081,5432,45260,32071,203,{"$f":"SUM(G23:Q23)","v":2461557},9]
[14,null,"RESERVED",{"$f":"'FR-16(7)(v)-1 Functional'!D24","v":"CW29"},null,{"$f":"'FR-16(7)(v)-1 Functional'!F24","v":0},{"$f":"'FR-16(7)(v)-3 PROD Demand'!G24+'FR-16(7)(v)-4 PROD Energy'!G24+'FR-16(7)(v)-5 PROD Cust'!G24+'FR-16(7)(v)-7 TRANS Demand'!G24+'FR-16(7)(v)-8 TRANS Energy'!G24+'FR-16(7)(v)-9 TRANS Cust'!G24+'FR-16(7)(v)-11 DIST Demand'!G24+'FR-16(7)(v)-12 DIST Energy'!G24+'FR-16(7)(v)-13 DIST Cust'!G24","v":0},{"$f":"'FR-16(7)(v)-3 PROD Demand'!H24+'FR-16(7)(v)-4 PROD Energy'!H24+'FR-16(7)(v)-5 PROD Cust'!H24+'FR-16(7)(v)-7 TRANS Demand'!H24+'FR-16(7)(v)-8 TRANS Energy'!H24+'FR-16(7)(v)-9 TRANS Cust'!H24+'FR-16(7)(v)-11 DIST Demand'!H24+'FR-16(7)(v)-12 DIST Energy'!H24+'FR-16(7)(v)-13 DIST Cust'!H24","v":0},{"$f":"'FR-16(7)(v)-3 PROD Demand'!I24+'FR-16(7)(v)-4 PROD Energy'!I24+'FR-16(7)(v)-5 PROD Cust'!I24+'FR-16(7)(v)-7 TRANS Demand'!I24+'FR-16(7)(v)-8 TRANS Energy'!I24+'FR-16(7)(v)-9 TRANS Cust'!I24+'FR-16(7)(v)-11 DIST Demand'!I24+'FR-16(7)(v)-12 DIST Energy'!I24+'FR-16(7)(v)-13 DIST Cust'!I24","v":0},{"$f":"'FR-16(7)(v)-3 PROD Demand'!J24+'FR-16(7)(v)-4 PROD Energy'!J24+'FR-16(7)(v)-5 PROD Cust'!J24+'FR-16(7)(v)-7 TRANS Demand'!J24+'FR-16(7)(v)-8 TRANS Energy'!J24+'FR-16(7)(v)-9 TRANS Cust'!J24+'FR-16(7)(v)-11 DIST Demand'!J24+'FR-16(7)(v)-12 DIST Energy'!J24+'FR-16(7)(v)-13 DIST Cust'!J24","v":0},{"$f":"'FR-16(7)(v)-3 PROD Demand'!K24+'FR-16(7)(v)-4 PROD Energy'!K24+'FR-16(7)(v)-5 PROD Cust'!K24+'FR-16(7)(v)-7 TRANS Demand'!K24+'FR-16(7)(v)-8 TRANS Energy'!K24+'FR-16(7)(v)-9 TRANS Cust'!K24+'FR-16(7)(v)-11 DIST Demand'!K24+'FR-16(7)(v)-12 DIST Energy'!K24+'FR-16(7)(v)-13 DIST Cust'!K24","v":0},{"$f":"'FR-16(7)(v)-3 PROD Demand'!L24+'FR-16(7)(v)-4 PROD Energy'!L24+'FR-16(7)(v)-5 PROD Cust'!L24+'FR-16(7)(v)-7 TRANS Demand'!L24+'FR-16(7)(v)-8 TRANS Energy'!L24+'FR-16(7)(v)-9 TRANS Cust'!L24+'FR-16(7)(v)-11 DIST Demand'!L24+'FR-16(7)(v)-12 DIST Energy'!L24+'FR-16(7)(v)-13 DIST Cust'!L24","v":0},{"$f":"'FR-16(7)(v)-3 PROD Demand'!M24+'FR-16(7)(v)-4 PROD Energy'!M24+'FR-16(7)(v)-5 PROD Cust'!M24+'FR-16(7)(v)-7 TRANS Demand'!M24+'FR-16(7)(v)-8 TRANS Energy'!M24+'FR-16(7)(v)-9 TRANS Cust'!M24+'FR-16(7)(v)-11 DIST Demand'!M24+'FR-16(7)(v)-12 DIST Energy'!M24+'FR-16(7)(v)-13 DIST Cust'!M24","v":0},{"$f":"'FR-16(7)(v)-3 PROD Demand'!N24+'FR-16(7)(v)-4 PROD Energy'!N24+'FR-16(7)(v)-5 PROD Cust'!N24+'FR-16(7)(v)-7 TRANS Demand'!N24+'FR-16(7)(v)-8 TRANS Energy'!N24+'FR-16(7)(v)-9 TRANS Cust'!N24+'FR-16(7)(v)-11 DIST Demand'!N24+'FR-16(7)(v)-12 DIST Energy'!N24+'FR-16(7)(v)-13 DIST Cust'!N24","v":0},{"$f":"'FR-16(7)(v)-3 PROD Demand'!O24+'FR-16(7)(v)-4 PROD Energy'!O24+'FR-16(7)(v)-5 PROD Cust'!O24+'FR-16(7)(v)-7 TRANS Demand'!O24+'FR-16(7)(v)-8 TRANS Energy'!O24+'FR-16(7)(v)-9 TRANS Cust'!O24+'FR-16(7)(v)-11 DIST Demand'!O24+'FR-16(7)(v)-12 DIST Energy'!O24+'FR-16(7)(v)-13 DIST Cust'!O24","v":0},{"$f":"'FR-16(7)(v)-3 PROD Demand'!P24+'FR-16(7)(v)-4 PROD Energy'!P24+'FR-16(7)(v)-5 PROD Cust'!P24+'FR-16(7)(v)-7 TRANS Demand'!P24+'FR-16(7)(v)-8 TRANS Energy'!P24+'FR-16(7)(v)-9 TRANS Cust'!P24+'FR-16(7)(v)-11 DIST Demand'!P24+'FR-16(7)(v)-12 DIST Energy'!P24+'FR-16(7)(v)-13 DIST Cust'!P24","v":0},{"$f":"'FR-16(7)(v)-3 PROD Demand'!Q24+'FR-16(7)(v)-4 PROD Energy'!Q24+'FR-16(7)(v)-5 PROD Cust'!Q24+'FR-16(7)(v)-7 TRANS Demand'!Q24+'FR-16(7)(v)-8 TRANS Energy'!Q24+'FR-16(7)(v)-9 TRANS Cust'!Q24+'FR-16(7)(v)-11 DIST Demand'!Q24+'FR-16(7)(v)-12 DIST Energy'!Q24+'FR-16(7)(v)-13 DIST Cust'!Q24","v":0},{"$f":"SUM(G24:Q24)","v":0},{"$f":"F24-R24","v":0}]
[15,null,{"$f":"'FR-16(7)(v)-1 Functional'!C25","v":"REVENUE TAX"},null,null,{"$f":"F767","v":0},{"$f":"G767","v":0},{"$f":"H767","v":0},{"$f":"I767","v":0},{"$f":"J767","v":0},0,0,0,0,0,0,{"$f":"Q767","v":0},{"$f":"SUM(G25:Q25)","v":0},0]
[16,null,{"$f":"'FR-16(7)(v)-1 Functional'!C26","v":"  TOTAL OPERATING EXPENSE"},null,null,{"$f":"SUM(F21:F25)","v":292153595},{"$f":"SUM(G21:G25)","v":132135707},{"$f":"SUM(H21:H25)","v":74244644},{"$f":"SUM(I21:I25)","v":394419},{"$f":"SUM(J21:J25)","v":1286182},21497,40779035,27813917,1332194,12272681,1840451,{"$f":"SUM(Q21:Q25)","v":32683},{"$f":"SUM(R21:R25)","v":292153410},185]
[17]
[18,"RETURN ON RATE BASE",null,null,null,{"$f":"F433","v":63514771},31416824,16275026,80246,314751,4820,7904870,5220166,255798,1720370,314977,6924,{"$f":"SUM(G28:Q28)","v":63514772},{"$f":"F28-R28","v":-1}]
[19,"TOTAL OTHER OPERATING REVENUES",null,null,null,{"$f":"-F750","v":-1695053},{"$f":"-G750","v":-935653},{"$f":"-H750","v":-406615},{"$f":"-I750","v":-2052},{"$f":"-J750","v":-8323},-136,-187913,-123253,-6206,-7206,-17517,{"$f":"-$Q$750","v":-179},{"$f":"SUM(G29:Q29)","v":-1695053},0]
[20,null,{"$f":"'FR-16(7)(v)-1 Functional'!C30","v":"TOTAL ELECTRIC COST OF SERVICE"},null,null,{"$f":"SUM(F26:F29)","v":353973313},{"$f":"SUM(G26:G29)","v":162616878},{"$f":"SUM(H26:H29)","v":90113055},{"$f":"SUM(I26:I29)","v":472613},{"$f":"SUM(J26:J29)","v":1592610},26181,48495992,32910830,1581786,13985845,2137911,{"$f":"SUM(Q26:Q29)","v":39428},{"$f":"SUM(R26:R29)","v":353973129},184]
[21,"ADJUSTMENT FOR INTERCLASS SUBSIDIZATION",null,{"$f":"1-'WP FR-16(7)(v) Rate Incr'!I11","v":0.95},null,{"$f":"'WP FR-16(7)(v) Rate Incr'!H27-'WP FR-16(7)(v) Rate Incr'!I27","v":0},{"$f":"'WP FR-16(7)(v) Rate Incr'!H15-'WP FR-16(7)(v) Rate Incr'!I15","v":-15936250},{"$f":"'WP FR-16(7)(v) Rate Incr'!H16-'WP FR-16(7)(v) Rate Incr'!I16","v":11001266},{"$f":"'WP FR-16(7)(v) Rate Incr'!$H17-'WP FR-16(7)(v) Rate Incr'!$I17","v":152493},{"$f":"'WP FR-16(7)(v) Rate Incr'!$H18-'WP FR-16(7)(v) Rate Incr'!$I18","v":-733100},{"$f":"'WP FR-16(7)(v) Rate Incr'!$H19-'WP FR-16(7)(v) Rate Incr'!$I19","v":6791},{"$f":"'WP FR-16(7)(v) Rate Incr'!$H20-'WP FR-16(7)(v) Rate Incr'!$I20","v":3742125},{"$f":"'WP FR-16(7)(v) Rate Incr'!$H21-'WP FR-16(7)(v) Rate Incr'!$I21","v":647497},{"$f":"'WP FR-16(7)(v) Rate Incr'!$H22-'WP FR-16(7)(v) Rate Incr'!$I22","v":-39543},{"$f":"'WP FR-16(7)(v) Rate Incr'!$H23-'WP FR-16(7)(v) Rate Incr'!$I23","v":1214804},{"$f":"'WP FR-16(7)(v) Rate Incr'!$H24-'WP FR-16(7)(v) Rate Incr'!$I24","v":-39229},{"$f":"'WP FR-16(7)(v) Rate Incr'!$H25-'WP FR-16(7)(v) Rate Incr'!$I25","v":-16854},{"$f":"SUM(G31:Q31)","v":0},0]
[22,{"$f":"'FR-16(7)(v)-1 Functional'!$B$32","v":"REQUESTED REVENUES (COST OF SERVICE ADJUSTED FOR SUBSIDIES)"},null,null,null,{"$f":"F30+F31","v":353973313},146680628,101114321,625106,{"$f":"J30+J31","v":859510},32972,52238117,33558327,1542243,15200649,2098682,22574,353973129,184]
[23,"PROPOSED REVENUES",null,null,null,{"$f":"SUM(G33:Q33)","v":355094168},{"$f":"'FR-16(7)(v)-3 PROD Demand'!G883","v":147195469},{"$f":"'FR-16(7)(v)-3 PROD Demand'!H883","v":101595371},{"$f":"'FR-16(7)(v)-3 PROD Demand'!I883","v":649414},{"$f":"'FR-16(7)(v)-3 PROD Demand'!J883","v":676300},{"$f":"'FR-16(7)(v)-3 PROD Demand'!K883","v":33717},{"$f":"'FR-16(7)(v)-3 PROD Demand'!L883","v":52518255},{"$f":"'FR-16(7)(v)-3 PROD Demand'!M883","v":33522516},{"$f":"'FR-16(7)(v)-3 PROD Demand'!N883","v":1546768},{"$f":"'FR-16(7)(v)-3 PROD Demand'!O883","v":15232520},{"$f":"'FR-16(7)(v)-3 PROD Demand'!P883","v":2104877},{"$f":"'FR-16(7)(v)-3 PROD Demand'!Q883","v":18961},{"$f":"SUM(G33:Q33)","v":355094168},0]
[24,"DIFFERENCE (REQUESTED LESS PROPOSED)",null,null,null,{"$f":"F32-F33","v":-1120855},-514841,-481050,-24308,{"$f":"J32-J33","v":183210},-745,-280138,35811,-4525,-31871,-6195,3613,-1121039,184]
[25]
[26,"TOTAL RETURN EARNED",null,null,null,{"$f":"F777+F28","v":64356206},{"$f":"G777+G28","v":83612817},{"$f":"H777+H28","v":-6214456},{"$f":"I777+I28","v":-34389},{"$f":"J777+J28","v":-110525},2508,-6415242,-4586109,-197570,-2638710,936645,{"$f":"Q777+Q28","v":1422},{"$f":"R777+R28","v":64356391},{"$f":"F36-R36","v":-185}]
[27,"RATE OF RETURN EARNED",null,null,null,{"$f":"IF(F431=0,0,ROUND(F36/F431,5))","v":6.8000000000000005E-2},0.17860999999999999,-2.563E-2,-2.8760000000000001E-2,-2.3570000000000001E-2,3.492E-2,-5.4460000000000001E-2,-5.8959999999999999E-2,-5.1830000000000001E-2,-0.10292999999999999,0.19955999999999999,1.3780000000000001E-2,6.8000000000000005E-2,0]
[28,"TOTAL RATE OF RETURN ALLOWABLE",null,null,null,{"$f":"$F$811","v":6.7100000000000007E-2},{"$f":"$F$811","v":6.7100000000000007E-2},6.7100000000000007E-2,6.7100000000000007E-2,6.7100000000000007E-2,6.7100000000000007E-2,6.7100000000000007E-2,6.7100000000000007E-2,6.7100000000000007E-2,6.7100000000000007E-2,6.7100000000000007E-2,6.7100000000000007E-2,{"$f":"F811","v":6.7100000000000007E-2},{"$f":"IF(S37=0,0,F811)","v":0}]
[29,"RETURN EARNED ON COMMON EQUITY",null,null,null,{"$f":"IF(Equity=0,0,(F37-$F$806-$F$807-$F$809)*TotalCap/Equity)","v":9.9928761225659288E-2},0.32924660934122307,-9.4185967271404589E-2,-0.10067511711863102,-8.9915152994955241E-2,3.1346947504812615E-2,-0.15395663503355725,-0.16328608369570385,-0.14850409059323602,-0.25444516317894528,0.37268037589055003,-1.248072909913836E-2,{"$f":"IF(Equity=0,0,(R37-F806-F807-F809)*TotalCap/Equity)","v":9.9928761225659288E-2},{"$f":"IF(OR(Equity=0,S37=0)=TRUE,0,(S37-F806-F807-F809)*TotalCap/Equity)","v":0}]
[30,"ALLOWED RETURN ON COMMON EQUITY",null,null,null,{"$f":"IF(Equity=0,0,(F38-$F$806-$F$807-$F$809)*TotalCap/Equity)","v":9.8062871493229981E-2},9.8062871493229981E-2,9.8062871493229981E-2,9.8062871493229981E-2,9.8062871493229981E-2,9.8062871493229981E-2,9.8062871493229981E-2,9.8062871493229981E-2,9.8062871493229981E-2,9.8062871493229981E-2,9.8062871493229981E-2,9.8062871493229981E-2,{"$f":"IF(Equity=0,0,(R38-F806-F807-F809)*TotalCap/Equity)","v":9.8062871493229981E-2},{"$f":"IF(OR(Equity=0,S38=0)=TRUE,0,(S38-F806-F807-F809)*TotalCap/Equity)","v":0}]
[31,null,null,null,null," "]
[32,"PRESENT REVENUES (Schedule M)",null,null,null,{"$f":"SUM(G42:Q42)","v":309580654},{"$f":"'FR-16(7)(v)-4 PROD Energy'!G881","v":123883637},{"$f":"'FR-16(7)(v)-4 PROD Energy'!H881","v":90318223},{"$f":"'FR-16(7)(v)-4 PROD Energy'!I881","v":577046},{"$f":"'FR-16(7)(v)-4 PROD Energy'!J881","v":600937},{"$f":"'FR-16(7)(v)-4 PROD Energy'!K881","v":29960},{"$f":"'FR-16(7)(v)-4 PROD Energy'!L881","v":46910116},{"$f":"'FR-16(7)(v)-4 PROD Energy'!M881","v":29943872},{"$f":"'FR-16(7)(v)-4 PROD Energy'!N881","v":1361377},{"$f":"'FR-16(7)(v)-4 PROD Energy'!O881","v":14062168},{"$f":"'FR-16(7)(v)-4 PROD Energy'!P881","v":1876470},{"$f":"'FR-16(7)(v)-4 PROD Energy'!Q881","v":16848},{"$f":"SUM(G42:Q42)","v":309580654},{"$f":"F42-R42","v":0}]
[33,"REVENUE INCREASE JUSTIFIED",null,null,null,{"$f":"F30-F42","v":44392659},38733241,-205168,-104433,{"$f":"J30-J42","v":991673},-3779,1585876,2966958,220409,-76323,261441,22580,44392475,184]
[34,null,"PER UNIT PRES REV",null,null,{"$f":"IF(F42=0,0,ROUND(F43/F42,5))","v":0.1434},0.31265999999999999,-2.2699999999999999E-3,-0.18098,{"$f":"IF(J42=0,0,ROUND(J43/J42,5))","v":1.65021},-0.12612999999999999,3.381E-2,9.9080000000000001E-2,0.16189999999999999,-5.4299999999999999E-3,0.13933000000000001,1.34022,0.1434,0]
[35,"REVENUE INCREASE REQUESTED",null,null,null,{"$f":"F33-F42","v":45513514},23311832,11277148,72368,{"$f":"J33-J42","v":75363},3757,5608139,3578644,185391,1170352,228407,2113,45513514,0]
[36,null,"PER UNIT PRES REV",null,null,{"$f":"IF(F42=0,0,ROUND(F45/F42,5))","v":0.14702000000000001},0.18817999999999999,0.12486,0.12540999999999999,{"$f":"IF(J42=0,0,ROUND(J45/J42,5))","v":0.12540999999999999},0.12540000000000001,0.11955,0.11951000000000001,0.13618,8.3229999999999998E-2,0.12171999999999999,0.12542,0.14702000000000001,0]
[]
[{"$f":"co_name","v":"DUKE ENERGY KENTUCKY, INC."},null,null,null,null,null,null,null,null,null,null,null,null,null,null,null,null,{"$f":"R1","v":"FR-16(7)(v)-14"}]
[{"$f":"$A$2","v":"TOTAL CLASS ALLOCATED - ELECTRIC COST OF SERVICE"},null,null,null,null,null,null,null,null,null,null,null,null,null,null,null,null,{"$f":"R2","v":"WITNESS RESPONSIBLE:"}]
[{"$f":"case_name","v":"CASE NO: 2019-00271"},null,null,null,null,null,null,null,null,null,null,null,null,null,null,null,null,{"$f":"Witness","v":"JAMES E. ZIOLKOWSKI"}]
[{"$f":"data_filing","v":"DATA: 12 MONTHS ACTUAL  & 0 MONTHS ESTIMATED"},null,null,null,null,null,null,null,null,null,null,null,null,null,null,null,null,{"$f":"\"PAGE \"&Pages2-13&\" OF \"&Pages2","v":"PAGE 2 OF 15"}]
[{"$f":"type","v":"TYPE OF FILING: \"X\" ORIGINAL   UPDATED    REVISED  "}]
[]
[null,null,null,null,null,{"$f":"F$7","v":"TOTAL"},null,{"$f":"H$7","v":"DS"},{"$f":"I$7","v":"GSFL"},{"$f":"J$7","v":"EH"},{"$f":"K$7","v":"SP"},"DT SEC","DT PRI","DP","TT",null,"OTHER"]
["LINE",null,null,null,null,{"$f":"F$8","v":"CLASS"},{"$f":"G$8","v":"RS"},{"$f":"H$8","v":"SECONDARY"},{"$f":"I$8","v":"SECONDARY"},{"$f":"J$8","v":"SECONDARY"},{"$f":"K$8","v":"SECONDARY"},"SECONDARY","PRIMARY","PRIMARY","TRANSMISSION","LT","WATER",{"$f":"R8","v":"TOTAL"},"ALL"]
["NO.","GROSS ELECTRIC PLANT IN SERVICE",null,"ALLO",null,{"$f":"F$9","v":"ALLOCATED"},{"$f":"G$9","v":"RESIDENTIAL"},{"$f":"H$9","v":"DISTRIBUTION"},{"$f":"I$9","v":"DISTRIBUTION"},{"$f":"J$9","v":"DISTRIBUTION"},{"$f":"K$9","v":"DISTRIBUTION"},"DISTRIBUTION","DISTRIBUTION","DISTRIBUTION","TIME OF DAY","LIGHTING","PUMPING",{"$f":"R9","v":"AT ISSUE"},"OTHER"]
[null,null,"Schedule 2",null,null,null,{"$f":"G$10","v":3},{"$f":"H$10","v":4},{"$f":"I$10","v":5},{"$f":"J$10","v":6},{"$f":"K$10","v":7},8,9,10,11,12,13,null," "]
[1,"PRODUCTION PLANT"]
[2,null,"PRODUCTION STEAM","K201",null,{"$f":"'FR-16(7)(v)-1 Functional'!F59","v":835340554},{"$f":"'FR-16(7)(v)-3 PROD Demand'!G59+'FR-16(7)(v)-4 PROD Energy'!G59+'FR-16(7)(v)-5 PROD Cust'!G59+'FR-16(7)(v)-7 TRANS Demand'!G59+'FR-16(7)(v)-8 TRANS Energy'!G59+'FR-16(7)(v)-9 TRANS Cust'!G59+'FR-16(7)(v)-11 DIST Demand'!G59+'FR-16(7)(v)-12 DIST Energy'!G59+'FR-16(7)(v)-13 DIST Cust'!G59","v":376554815},{"$f":"'FR-16(7)(v)-3 PROD Demand'!H59+'FR-16(7)(v)-4 PROD Energy'!H59+'FR-16(7)(v)-5 PROD Cust'!H59+'FR-16(7)(v)-7 TRANS Demand'!H59+'FR-16(7)(v)-8 TRANS Energy'!H59+'FR-16(7)(v)-9 TRANS Cust'!H59+'FR-16(7)(v)-11 DIST Demand'!H59+'FR-16(7)(v)-12 DIST Energy'!H59+'FR-16(7)(v)-13 DIST Cust'!H59","v":226076568},{"$f":"'FR-16(7)(v)-3 PROD Demand'!I59+'FR-16(7)(v)-4 PROD Energy'!I59+'FR-16(7)(v)-5 PROD Cust'!I59+'FR-16(7)(v)-7 TRANS Demand'!I59+'FR-16(7)(v)-8 TRANS Energy'!I59+'FR-16(7)(v)-9 TRANS Cust'!I59+'FR-16(7)(v)-11 DIST Demand'!I59+'FR-16(7)(v)-12 DIST Energy'!I59+'FR-16(7)(v)-13 DIST Cust'!I59","v":1085943},{"$f":"'FR-16(7)(v)-3 PROD Demand'!J59+'FR-16(7)(v)-4 PROD Energy'!J59+'FR-16(7)(v)-5 PROD Cust'!J59+'FR-16(7)(v)-7 TRANS Demand'!J59+'FR-16(7)(v)-8 TRANS Energy'!J59+'FR-16(7)(v)-9 TRANS Cust'!J59+'FR-16(7)(v)-11 DIST Demand'!J59+'FR-16(7)(v)-12 DIST Energy'!J59+'FR-16(7)(v)-13 DIST Cust'!J59","v":4285297},{"$f":"'FR-16(7)(v)-3 PROD Demand'!K59+'FR-16(7)(v)-4 PROD Energy'!K59+'FR-16(7)(v)-5 PROD Cust'!K59+'FR-16(7)(v)-7 TRANS Demand'!K59+'FR-16(7)(v)-8 TRANS Energy'!K59+'FR-16(7)(v)-9 TRANS Cust'!K59+'FR-16(7)(v)-11 DIST Demand'!K59+'FR-16(7)(v)-12 DIST Energy'!K59+'FR-16(7)(v)-13 DIST Cust'!K59","v":58474},{"$f":"'FR-16(7)(v)-3 PROD Demand'!L59+'FR-16(7)(v)-4 PROD Energy'!L59+'FR-16(7)(v)-5 PROD Cust'!L59+'FR-16(7)(v)-7 TRANS Demand'!L59+'FR-16(7)(v)-8 TRANS Energy'!L59+'FR-16(7)(v)-9 TRANS Cust'!L59+'FR-16(7)(v)-11 DIST Demand'!L59+'FR-16(7)(v)-12 DIST Energy'!L59+'FR-16(7)(v)-13 DIST Cust'!L59","v":112720854},{"$f":"'FR-16(7)(v)-3 PROD Demand'!M59+'FR-16(7)(v)-4 PROD Energy'!M59+'FR-16(7)(v)-5 PROD Cust'!M59+'FR-16(7)(v)-7 TRANS Demand'!M59+'FR-16(7)(v)-8 TRANS Energy'!M59+'FR-16(7)(v)-9 TRANS Cust'!M59+'FR-16(7)(v)-11 DIST Demand'!M59+'FR-16(7)(v)-12 DIST Energy'!M59+'FR-16(7)(v)-13 DIST Cust'!M59","v":74520731},{"$f":"'FR-16(7)(v)-3 PROD Demand'!N59+'FR-16(7)(v)-4 PROD Energy'!N59+'FR-16(7)(v)-5 PROD Cust'!N59+'FR-16(7)(v)-7 TRANS Demand'!N59+'FR-16(7)(v)-8 TRANS Energy'!N59+'FR-16(7)(v)-9 TRANS Cust'!N59+'FR-16(7)(v)-11 DIST Demand'!N59+'FR-16(7)(v)-12 DIST Energy'!N59+'FR-16(7)(v)-13 DIST Cust'!N59","v":3600318},{"$f":"'FR-16(7)(v)-3 PROD Demand'!O59+'FR-16(7)(v)-4 PROD Energy'!O59+'FR-16(7)(v)-5 PROD Cust'!O59+'FR-16(7)(v)-7 TRANS Demand'!O59+'FR-16(7)(v)-8 TRANS Energy'!O59+'FR-16(7)(v)-9 TRANS Cust'!O59+'FR-16(7)(v)-11 DIST Demand'!O59+'FR-16(7)(v)-12 DIST Energy'!O59+'FR-16(7)(v)-13 DIST Cust'!O59","v":35309845},{"$f":"'FR-16(7)(v)-3 PROD Demand'!P59+'FR-16(7)(v)-4 PROD Energy'!P59+'FR-16(7)(v)-5 PROD Cust'!P59+'FR-16(7)(v)-7 TRANS Demand'!P59+'FR-16(7)(v)-8 TRANS Energy'!P59+'FR-16(7)(v)-9 TRANS Cust'!P59+'FR-16(7)(v)-11 DIST Demand'!P59+'FR-16(7)(v)-12 DIST Energy'!P59+'FR-16(7)(v)-13 DIST Cust'!P59","v":1035822},{"$f":"'FR-16(7)(v)-3 PROD Demand'!Q59+'FR-16(7)(v)-4 PROD Energy'!Q59+'FR-16(7)(v)-5 PROD Cust'!Q59+'FR-16(7)(v)-7 TRANS Demand'!Q59+'FR-16(7)(v)-8 TRANS Energy'!Q59+'FR-16(7)(v)-9 TRANS Cust'!Q59+'FR-16(7)(v)-11 DIST Demand'!Q59+'FR-16(7)(v)-12 DIST Energy'!Q59+'FR-16(7)(v)-13 DIST Cust'!Q59","v":91887},{"$f":"SUM(G59:Q59)","v":835340554},{"$f":"F59-R59","v":0}]
[3,null,"PRODUCTION OTHER","K201",null,{"$f":"'FR-16(7)(v)-1 Functional'!F60","v":373451984},{"$f":"'FR-16(7)(v)-3 PROD Demand'!G60+'FR-16(7)(v)-4 PROD Energy'!G60+'FR-16(7)(v)-5 PROD Cust'!G60+'FR-16(7)(v)-7 TRANS Demand'!G60+'FR-16(7)(v)-8 TRANS Energy'!G60+'FR-16(7)(v)-9 TRANS Cust'!G60+'FR-16(7)(v)-11 DIST Demand'!G60+'FR-16(7)(v)-12 DIST Energy'!G60+'FR-16(7)(v)-13 DIST Cust'!G60","v":168344685},{"$f":"'FR-16(7)(v)-3 PROD Demand'!H60+'FR-16(7)(v)-4 PROD Energy'!H60+'FR-16(7)(v)-5 PROD Cust'!H60+'FR-16(7)(v)-7 TRANS Demand'!H60+'FR-16(7)(v)-8 TRANS Energy'!H60+'FR-16(7)(v)-9 TRANS Cust'!H60+'FR-16(7)(v)-11 DIST Demand'!H60+'FR-16(7)(v)-12 DIST Energy'!H60+'FR-16(7)(v)-13 DIST Cust'!H60","v":101071045},{"$f":"'FR-16(7)(v)-3 PROD Demand'!I60+'FR-16(7)(v)-4 PROD Energy'!I60+'FR-16(7)(v)-5 PROD Cust'!I60+'FR-16(7)(v)-7 TRANS Demand'!I60+'FR-16(7)(v)-8 TRANS Energy'!I60+'FR-16(7)(v)-9 TRANS Cust'!I60+'FR-16(7)(v)-11 DIST Demand'!I60+'FR-16(7)(v)-12 DIST Energy'!I60+'FR-16(7)(v)-13 DIST Cust'!I60","v":485488},{"$f":"'FR-16(7)(v)-3 PROD Demand'!J60+'FR-16(7)(v)-4 PROD Energy'!J60+'FR-16(7)(v)-5 PROD Cust'!J60+'FR-16(7)(v)-7 TRANS Demand'!J60+'FR-16(7)(v)-8 TRANS Energy'!J60+'FR-16(7)(v)-9 TRANS Cust'!J60+'FR-16(7)(v)-11 DIST Demand'!J60+'FR-16(7)(v)-12 DIST Energy'!J60+'FR-16(7)(v)-13 DIST Cust'!J60","v":1915809},{"$f":"'FR-16(7)(v)-3 PROD Demand'!K60+'FR-16(7)(v)-4 PROD Energy'!K60+'FR-16(7)(v)-5 PROD Cust'!K60+'FR-16(7)(v)-7 TRANS Demand'!K60+'FR-16(7)(v)-8 TRANS Energy'!K60+'FR-16(7)(v)-9 TRANS Cust'!K60+'FR-16(7)(v)-11 DIST Demand'!K60+'FR-16(7)(v)-12 DIST Energy'!K60+'FR-16(7)(v)-13 DIST Cust'!K60","v":26142},{"$f":"'FR-16(7)(v)-3 PROD Demand'!L60+'FR-16(7)(v)-4 PROD Energy'!L60+'FR-16(7)(v)-5 PROD Cust'!L60+'FR-16(7)(v)-7 TRANS Demand'!L60+'FR-16(7)(v)-8 TRANS Energy'!L60+'FR-16(7)(v)-9 TRANS Cust'!L60+'FR-16(7)(v)-11 DIST Demand'!L60+'FR-16(7)(v)-12 DIST Energy'!L60+'FR-16(7)(v)-13 DIST Cust'!L60","v":50393611},{"$f":"'FR-16(7)(v)-3 PROD Demand'!M60+'FR-16(7)(v)-4 PROD Energy'!M60+'FR-16(7)(v)-5 PROD Cust'!M60+'FR-16(7)(v)-7 TRANS Demand'!M60+'FR-16(7)(v)-8 TRANS Energy'!M60+'FR-16(7)(v)-9 TRANS Cust'!M60+'FR-16(7)(v)-11 DIST Demand'!M60+'FR-16(7)(v)-12 DIST Energy'!M60+'FR-16(7)(v)-13 DIST Cust'!M60","v":33315651},{"$f":"'FR-16(7)(v)-3 PROD Demand'!N60+'FR-16(7)(v)-4 PROD Energy'!N60+'FR-16(7)(v)-5 PROD Cust'!N60+'FR-16(7)(v)-7 TRANS Demand'!N60+'FR-16(7)(v)-8 TRANS Energy'!N60+'FR-16(7)(v)-9 TRANS Cust'!N60+'FR-16(7)(v)-11 DIST Demand'!N60+'FR-16(7)(v)-12 DIST Energy'!N60+'FR-16(7)(v)-13 DIST Cust'!N60","v":1609578},{"$f":"'FR-16(7)(v)-3 PROD Demand'!O60+'FR-16(7)(v)-4 PROD Energy'!O60+'FR-16(7)(v)-5 PROD Cust'!O60+'FR-16(7)(v)-7 TRANS Demand'!O60+'FR-16(7)(v)-8 TRANS Energy'!O60+'FR-16(7)(v)-9 TRANS Cust'!O60+'FR-16(7)(v)-11 DIST Demand'!O60+'FR-16(7)(v)-12 DIST Energy'!O60+'FR-16(7)(v)-13 DIST Cust'!O60","v":15785815},{"$f":"'FR-16(7)(v)-3 PROD Demand'!P60+'FR-16(7)(v)-4 PROD Energy'!P60+'FR-16(7)(v)-5 PROD Cust'!P60+'FR-16(7)(v)-7 TRANS Demand'!P60+'FR-16(7)(v)-8 TRANS Energy'!P60+'FR-16(7)(v)-9 TRANS Cust'!P60+'FR-16(7)(v)-11 DIST Demand'!P60+'FR-16(7)(v)-12 DIST Energy'!P60+'FR-16(7)(v)-13 DIST Cust'!P60","v":463080},{"$f":"'FR-16(7)(v)-3 PROD Demand'!Q60+'FR-16(7)(v)-4 PROD Energy'!Q60+'FR-16(7)(v)-5 PROD Cust'!Q60+'FR-16(7)(v)-7 TRANS Demand'!Q60+'FR-16(7)(v)-8 TRANS Energy'!Q60+'FR-16(7)(v)-9 TRANS Cust'!Q60+'FR-16(7)(v)-11 DIST Demand'!Q60+'FR-16(7)(v)-12 DIST Energy'!Q60+'FR-16(7)(v)-13 DIST Cust'!Q60","v":41080},{"$f":"SUM(G60:Q60)","v":373451984},{"$f":"F60-R60","v":0}]
[4,null,{"$f":"'FR-16(7)(v)-1 Functional'!C61","v":"ADJUSTMENT"},"K201",null,{"$f":"'FR-16(7)(v)-1 Functional'!F61","v":0},{"$f":"'FR-16(7)(v)-3 PROD Demand'!G61+'FR-16(7)(v)-4 PROD Energy'!G61+'FR-16(7)(v)-5 PROD Cust'!G61+'FR-16(7)(v)-7 TRANS Demand'!G61+'FR-16(7)(v)-8 TRANS Energy'!G61+'FR-16(7)(v)-9 TRANS Cust'!G61+'FR-16(7)(v)-11 DIST Demand'!G61+'FR-16(7)(v)-12 DIST Energy'!G61+'FR-16(7)(v)-13 DIST Cust'!G61","v":0},{"$f":"'FR-16(7)(v)-3 PROD Demand'!H61+'FR-16(7)(v)-4 PROD Energy'!H61+'FR-16(7)(v)-5 PROD Cust'!H61+'FR-16(7)(v)-7 TRANS Demand'!H61+'FR-16(7)(v)-8 TRANS Energy'!H61+'FR-16(7)(v)-9 TRANS Cust'!H61+'FR-16(7)(v)-11 DIST Demand'!H61+'FR-16(7)(v)-12 DIST Energy'!H61+'FR-16(7)(v)-13 DIST Cust'!H61","v":0},{"$f":"'FR-16(7)(v)-3 PROD Demand'!I61+'FR-16(7)(v)-4 PROD Energy'!I61+'FR-16(7)(v)-5 PROD Cust'!I61+'FR-16(7)(v)-7 TRANS Demand'!I61+'FR-16(7)(v)-8 TRANS Energy'!I61+'FR-16(7)(v)-9 TRANS Cust'!I61+'FR-16(7)(v)-11 DIST Demand'!I61+'FR-16(7)(v)-12 DIST Energy'!I61+'FR-16(7)(v)-13 DIST Cust'!I61","v":0},{"$f":"'FR-16(7)(v)-3 PROD Demand'!J61+'FR-16(7)(v)-4 PROD Energy'!J61+'FR-16(7)(v)-5 PROD Cust'!J61+'FR-16(7)(v)-7 TRANS Demand'!J61+'FR-16(7)(v)-8 TRANS Energy'!J61+'FR-16(7)(v)-9 TRANS Cust'!J61+'FR-16(7)(v)-11 DIST Demand'!J61+'FR-16(7)(v)-12 DIST Energy'!J61+'FR-16(7)(v)-13 DIST Cust'!J61","v":0},{"$f":"'FR-16(7)(v)-3 PROD Demand'!K61+'FR-16(7)(v)-4 PROD Energy'!K61+'FR-16(7)(v)-5 PROD Cust'!K61+'FR-16(7)(v)-7 TRANS Demand'!K61+'FR-16(7)(v)-8 TRANS Energy'!K61+'FR-16(7)(v)-9 TRANS Cust'!K61+'FR-16(7)(v)-11 DIST Demand'!K61+'FR-16(7)(v)-12 DIST Energy'!K61+'FR-16(7)(v)-13 DIST Cust'!K61","v":0},{"$f":"'FR-16(7)(v)-3 PROD Demand'!L61+'FR-16(7)(v)-4 PROD Energy'!L61+'FR-16(7)(v)-5 PROD Cust'!L61+'FR-16(7)(v)-7 TRANS Demand'!L61+'FR-16(7)(v)-8 TRANS Energy'!L61+'FR-16(7)(v)-9 TRANS Cust'!L61+'FR-16(7)(v)-11 DIST Demand'!L61+'FR-16(7)(v)-12 DIST Energy'!L61+'FR-16(7)(v)-13 DIST Cust'!L61","v":0},{"$f":"'FR-16(7)(v)-3 PROD Demand'!M61+'FR-16(7)(v)-4 PROD Energy'!M61+'FR-16(7)(v)-5 PROD Cust'!M61+'FR-16(7)(v)-7 TRANS Demand'!M61+'FR-16(7)(v)-8 TRANS Energy'!M61+'FR-16(7)(v)-9 TRANS Cust'!M61+'FR-16(7)(v)-11 DIST Demand'!M61+'FR-16(7)(v)-12 DIST Energy'!M61+'FR-16(7)(v)-13 DIST Cust'!M61","v":0},{"$f":"'FR-16(7)(v)-3 PROD Demand'!N61+'FR-16(7)(v)-4 PROD Energy'!N61+'FR-16(7)(v)-5 PROD Cust'!N61+'FR-16(7)(v)-7 TRANS Demand'!N61+'FR-16(7)(v)-8 TRANS Energy'!N61+'FR-16(7)(v)-9 TRANS Cust'!N61+'FR-16(7)(v)-11 DIST Demand'!N61+'FR-16(7)(v)-12 DIST Energy'!N61+'FR-16(7)(v)-13 DIST Cust'!N61","v":0},{"$f":"'FR-16(7)(v)-3 PROD Demand'!O61+'FR-16(7)(v)-4 PROD Energy'!O61+'FR-16(7)(v)-5 PROD Cust'!O61+'FR-16(7)(v)-7 TRANS Demand'!O61+'FR-16(7)(v)-8 TRANS Energy'!O61+'FR-16(7)(v)-9 TRANS Cust'!O61+'FR-16(7)(v)-11 DIST Demand'!O61+'FR-16(7)(v)-12 DIST Energy'!O61+'FR-16(7)(v)-13 DIST Cust'!O61","v":0},{"$f":"'FR-16(7)(v)-3 PROD Demand'!P61+'FR-16(7)(v)-4 PROD Energy'!P61+'FR-16(7)(v)-5 PROD Cust'!P61+'FR-16(7)(v)-7 TRANS Demand'!P61+'FR-16(7)(v)-8 TRANS Energy'!P61+'FR-16(7)(v)-9 TRANS Cust'!P61+'FR-16(7)(v)-11 DIST Demand'!P61+'FR-16(7)(v)-12 DIST Energy'!P61+'FR-16(7)(v)-13 DIST Cust'!P61","v":0},{"$f":"'FR-16(7)(v)-3 PROD Demand'!Q61+'FR-16(7)(v)-4 PROD Energy'!Q61+'FR-16(7)(v)-5 PROD Cust'!Q61+'FR-16(7)(v)-7 TRANS Demand'!Q61+'FR-16(7)(v)-8 TRANS Energy'!Q61+'FR-16(7)(v)-9 TRANS Cust'!Q61+'FR-16(7)(v)-11 DIST Demand'!Q61+'FR-16(7)(v)-12 DIST Energy'!Q61+'FR-16(7)(v)-13 DIST Cust'!Q61","v":0},{"$f":"SUM(G61:Q61)","v":0},{"$f":"F61-R61","v":0}]
[5,null,{"$f":"'FR-16(7)(v)-1 Functional'!C62","v":"  PRODUCTION PLANT IN SERVICE"},null,null,{"$f":"SUM(F59:F61)","v":1208792538},{"$f":"SUM(G59:G61)","v":544899500},{"$f":"SUM(H59:H61)","v":327147613},{"$f":"SUM(I59:I61)","v":1571431},{"$f":"SUM(J59:J61)","v":6201106},84616,163114465,107836382,5209896,51095660,1498902,{"$f":"SUM($Q$59:$Q$61)","v":132967},{"$f":"SUM(R59:R61)","v":1208792538},{"$f":"SUM(S59:S61)","v":0}]
[6]
[7,"TRANSMISSION PLANT"]
[8,null,"MAIN STEP-UP TRANSFORMERS","K201",null,{"$f":"'FR-16(7)(v)-1 Functional'!F65","v":0},{"$f":"'FR-16(7)(v)-3 PROD Demand'!G65+'FR-16(7)(v)-4 PROD Energy'!G65+'FR-16(7)(v)-5 PROD Cust'!G65+'FR-16(7)(v)-7 TRANS Demand'!G65+'FR-16(7)(v)-8 TRANS Energy'!G65+'FR-16(7)(v)-9 TRANS Cust'!G65+'FR-16(7)(v)-11 DIST Demand'!G65+'FR-16(7)(v)-12 DIST Energy'!G65+'FR-16(7)(v)-13 DIST Cust'!G65","v":0},{"$f":"'FR-16(7)(v)-3 PROD Demand'!H65+'FR-16(7)(v)-4 PROD Energy'!H65+'FR-16(7)(v)-5 PROD Cust'!H65+'FR-16(7)(v)-7 TRANS Demand'!H65+'FR-16(7)(v)-8 TRANS Energy'!H65+'FR-16(7)(v)-9 TRANS Cust'!H65+'FR-16(7)(v)-11 DIST Demand'!H65+'FR-16(7)(v)-12 DIST Energy'!H65+'FR-16(7)(v)-13 DIST Cust'!H65","v":0},{"$f":"'FR-16(7)(v)-3 PROD Demand'!I65+'FR-16(7)(v)-4 PROD Energy'!I65+'FR-16(7)(v)-5 PROD Cust'!I65+'FR-16(7)(v)-7 TRANS Demand'!I65+'FR-16(7)(v)-8 TRANS Energy'!I65+'FR-16(7)(v)-9 TRANS Cust'!I65+'FR-16(7)(v)-11 DIST Demand'!I65+'FR-16(7)(v)-12 DIST Energy'!I65+'FR-16(7)(v)-13 DIST Cust'!I65","v":0},{"$f":"'FR-16(7)(v)-3 PROD Demand'!J65+'FR-16(7)(v)-4 PROD Energy'!J65+'FR-16(7)(v)-5 PROD Cust'!J65+'FR-16(7)(v)-7 TRANS Demand'!J65+'FR-16(7)(v)-8 TRANS Energy'!J65+'FR-16(7)(v)-9 TRANS Cust'!J65+'FR-16(7)(v)-11 DIST Demand'!J65+'FR-16(7)(v)-12 DIST Energy'!J65+'FR-16(7)(v)-13 DIST Cust'!J65","v":0},{"$f":"'FR-16(7)(v)-3 PROD Demand'!K65+'FR-16(7)(v)-4 PROD Energy'!K65+'FR-16(7)(v)-5 PROD Cust'!K65+'FR-16(7)(v)-7 TRANS Demand'!K65+'FR-16(7)(v)-8 TRANS Energy'!K65+'FR-16(7)(v)-9 TRANS Cust'!K65+'FR-16(7)(v)-11 DIST Demand'!K65+'FR-16(7)(v)-12 DIST Energy'!K65+'FR-16(7)(v)-13 DIST Cust'!K65","v":0},{"$f":"'FR-16(7)(v)-3 PROD Demand'!L65+'FR-16(7)(v)-4 PROD Energy'!L65+'FR-16(7)(v)-5 PROD Cust'!L65+'FR-16(7)(v)-7 TRANS Demand'!L65+'FR-16(7)(v)-8 TRANS Energy'!L65+'FR-16(7)(v)-9 TRANS Cust'!L65+'FR-16(7)(v)-11 DIST Demand'!L65+'FR-16(7)(v)-12 DIST Energy'!L65+'FR-16(7)(v)-13 DIST Cust'!L65","v":0},{"$f":"'FR-16(7)(v)-3 PROD Demand'!M65+'FR-16(7)(v)-4 PROD Energy'!M65+'FR-16(7)(v)-5 PROD Cust'!M65+'FR-16(7)(v)-7 TRANS Demand'!M65+'FR-16(7)(v)-8 TRANS Energy'!M65+'FR-16(7)(v)-9 TRANS Cust'!M65+'FR-16(7)(v)-11 DIST Demand'!M65+'FR-16(7)(v)-12 DIST Energy'!M65+'FR-16(7)(v)-13 DIST Cust'!M65","v":0},{"$f":"'FR-16(7)(v)-3 PROD Demand'!N65+'FR-16(7)(v)-4 PROD Energy'!N65+'FR-16(7)(v)-5 PROD Cust'!N65+'FR-16(7)(v)-7 TRANS Demand'!N65+'FR-16(7)(v)-8 TRANS Energy'!N65+'FR-16(7)(v)-9 TRANS Cust'!N65+'FR-16(7)(v)-11 DIST Demand'!N65+'FR-16(7)(v)-12 DIST Energy'!N65+'FR-16(7)(v)-13 DIST Cust'!N65","v":0},{"$f":"'FR-16(7)(v)-3 PROD Demand'!O65+'FR-16(7)(v)-4 PROD Energy'!O65+'FR-16(7)(v)-5 PROD Cust'!O65+'FR-16(7)(v)-7 TRANS Demand'!O65+'FR-16(7)(v)-8 TRANS Energy'!O65+'FR-16(7)(v)-9 TRANS Cust'!O65+'FR-16(7)(v)-11 DIST Demand'!O65+'FR-16(7)(v)-12 DIST Energy'!O65+'FR-16(7)(v)-13 DIST Cust'!O65","v":0},{"$f":"'FR-16(7)(v)-3 PROD Demand'!P65+'FR-16(7)(v)-4 PROD Energy'!P65+'FR-16(7)(v)-5 PROD Cust'!P65+'FR-16(7)(v)-7 TRANS Demand'!P65+'FR-16(7)(v)-8 TRANS Energy'!P65+'FR-16(7)(v)-9 TRANS Cust'!P65+'FR-16(7)(v)-11 DIST Demand'!P65+'FR-16(7)(v)-12 DIST Energy'!P65+'FR-16(7)(v)-13 DIST Cust'!P65","v":0},{"$f":"'FR-16(7)(v)-3 PROD Demand'!Q65+'FR-16(7)(v)-4 PROD Energy'!Q65+'FR-16(7)(v)-5 PROD Cust'!Q65+'FR-16(7)(v)-7 TRANS Demand'!Q65+'FR-16(7)(v)-8 TRANS Energy'!Q65+'FR-16(7)(v)-9 TRANS Cust'!Q65+'FR-16(7)(v)-11 DIST Demand'!Q65+'FR-16(7)(v)-12 DIST Energy'!Q65+'FR-16(7)(v)-13 DIST Cust'!Q65","v":0},{"$f":"SUM(G65:Q65)","v":0},{"$f":"F65-R65","v":0}]
[9,null,"OTHER TRANSMISSION","K201",null,{"$f":"'FR-16(7)(v)-1 Functional'!F66","v":72371702},{"$f":"'FR-16(7)(v)-3 PROD Demand'!G66+'FR-16(7)(v)-4 PROD Energy'!G66+'FR-16(7)(v)-5 PROD Cust'!G66+'FR-16(7)(v)-7 TRANS Demand'!G66+'FR-16(7)(v)-8 TRANS Energy'!G66+'FR-16(7)(v)-9 TRANS Cust'!G66+'FR-16(7)(v)-11 DIST Demand'!G66+'FR-16(7)(v)-12 DIST Energy'!G66+'FR-16(7)(v)-13 DIST Cust'!G66","v":32623716},{"$f":"'FR-16(7)(v)-3 PROD Demand'!H66+'FR-16(7)(v)-4 PROD Energy'!H66+'FR-16(7)(v)-5 PROD Cust'!H66+'FR-16(7)(v)-7 TRANS Demand'!H66+'FR-16(7)(v)-8 TRANS Energy'!H66+'FR-16(7)(v)-9 TRANS Cust'!H66+'FR-16(7)(v)-11 DIST Demand'!H66+'FR-16(7)(v)-12 DIST Energy'!H66+'FR-16(7)(v)-13 DIST Cust'!H66","v":19586677},{"$f":"'FR-16(7)(v)-3 PROD Demand'!I66+'FR-16(7)(v)-4 PROD Energy'!I66+'FR-16(7)(v)-5 PROD Cust'!I66+'FR-16(7)(v)-7 TRANS Demand'!I66+'FR-16(7)(v)-8 TRANS Energy'!I66+'FR-16(7)(v)-9 TRANS Cust'!I66+'FR-16(7)(v)-11 DIST Demand'!I66+'FR-16(7)(v)-12 DIST Energy'!I66+'FR-16(7)(v)-13 DIST Cust'!I66","v":94083},{"$f":"'FR-16(7)(v)-3 PROD Demand'!J66+'FR-16(7)(v)-4 PROD Energy'!J66+'FR-16(7)(v)-5 PROD Cust'!J66+'FR-16(7)(v)-7 TRANS Demand'!J66+'FR-16(7)(v)-8 TRANS Energy'!J66+'FR-16(7)(v)-9 TRANS Cust'!J66+'FR-16(7)(v)-11 DIST Demand'!J66+'FR-16(7)(v)-12 DIST Energy'!J66+'FR-16(7)(v)-13 DIST Cust'!J66","v":371267},{"$f":"'FR-16(7)(v)-3 PROD Demand'!K66+'FR-16(7)(v)-4 PROD Energy'!K66+'FR-16(7)(v)-5 PROD Cust'!K66+'FR-16(7)(v)-7 TRANS Demand'!K66+'FR-16(7)(v)-8 TRANS Energy'!K66+'FR-16(7)(v)-9 TRANS Cust'!K66+'FR-16(7)(v)-11 DIST Demand'!K66+'FR-16(7)(v)-12 DIST Energy'!K66+'FR-16(7)(v)-13 DIST Cust'!K66","v":5066},{"$f":"'FR-16(7)(v)-3 PROD Demand'!L66+'FR-16(7)(v)-4 PROD Energy'!L66+'FR-16(7)(v)-5 PROD Cust'!L66+'FR-16(7)(v)-7 TRANS Demand'!L66+'FR-16(7)(v)-8 TRANS Energy'!L66+'FR-16(7)(v)-9 TRANS Cust'!L66+'FR-16(7)(v)-11 DIST Demand'!L66+'FR-16(7)(v)-12 DIST Energy'!L66+'FR-16(7)(v)-13 DIST Cust'!L66","v":9765837},{"$f":"'FR-16(7)(v)-3 PROD Demand'!M66+'FR-16(7)(v)-4 PROD Energy'!M66+'FR-16(7)(v)-5 PROD Cust'!M66+'FR-16(7)(v)-7 TRANS Demand'!M66+'FR-16(7)(v)-8 TRANS Energy'!M66+'FR-16(7)(v)-9 TRANS Cust'!M66+'FR-16(7)(v)-11 DIST Demand'!M66+'FR-16(7)(v)-12 DIST Energy'!M66+'FR-16(7)(v)-13 DIST Cust'!M66","v":6456280},{"$f":"'FR-16(7)(v)-3 PROD Demand'!N66+'FR-16(7)(v)-4 PROD Energy'!N66+'FR-16(7)(v)-5 PROD Cust'!N66+'FR-16(7)(v)-7 TRANS Demand'!N66+'FR-16(7)(v)-8 TRANS Energy'!N66+'FR-16(7)(v)-9 TRANS Cust'!N66+'FR-16(7)(v)-11 DIST Demand'!N66+'FR-16(7)(v)-12 DIST Energy'!N66+'FR-16(7)(v)-13 DIST Cust'!N66","v":311922},{"$f":"'FR-16(7)(v)-3 PROD Demand'!O66+'FR-16(7)(v)-4 PROD Energy'!O66+'FR-16(7)(v)-5 PROD Cust'!O66+'FR-16(7)(v)-7 TRANS Demand'!O66+'FR-16(7)(v)-8 TRANS Energy'!O66+'FR-16(7)(v)-9 TRANS Cust'!O66+'FR-16(7)(v)-11 DIST Demand'!O66+'FR-16(7)(v)-12 DIST Energy'!O66+'FR-16(7)(v)-13 DIST Cust'!O66","v":3059152},{"$f":"'FR-16(7)(v)-3 PROD Demand'!P66+'FR-16(7)(v)-4 PROD Energy'!P66+'FR-16(7)(v)-5 PROD Cust'!P66+'FR-16(7)(v)-7 TRANS Demand'!P66+'FR-16(7)(v)-8 TRANS Energy'!P66+'FR-16(7)(v)-9 TRANS Cust'!P66+'FR-16(7)(v)-11 DIST Demand'!P66+'FR-16(7)(v)-12 DIST Energy'!P66+'FR-16(7)(v)-13 DIST Cust'!P66","v":89741},{"$f":"'FR-16(7)(v)-3 PROD Demand'!Q66+'FR-16(7)(v)-4 PROD Energy'!Q66+'FR-16(7)(v)-5 PROD Cust'!Q66+'FR-16(7)(v)-7 TRANS Demand'!Q66+'FR-16(7)(v)-8 TRANS Energy'!Q66+'FR-16(7)(v)-9 TRANS Cust'!Q66+'FR-16(7)(v)-11 DIST Demand'!Q66+'FR-16(7)(v)-12 DIST Energy'!Q66+'FR-16(7)(v)-13 DIST Cust'!Q66","v":7961},{"$f":"SUM(G66:Q66)","v":72371702},{"$f":"F66-R66","v":0}]
[10,null,"ADJUSTMENT","K201",null,{"$f":"'FR-16(7)(v)-1 Functional'!F67","v":0},{"$f":"'FR-16(7)(v)-3 PROD Demand'!G67+'FR-16(7)(v)-4 PROD Energy'!G67+'FR-16(7)(v)-5 PROD Cust'!G67+'FR-16(7)(v)-7 TRANS Demand'!G67+'FR-16(7)(v)-8 TRANS Energy'!G67+'FR-16(7)(v)-9 TRANS Cust'!G67+'FR-16(7)(v)-11 DIST Demand'!G67+'FR-16(7)(v)-12 DIST Energy'!G67+'FR-16(7)(v)-13 DIST Cust'!G67","v":0},{"$f":"'FR-16(7)(v)-3 PROD Demand'!H67+'FR-16(7)(v)-4 PROD Energy'!H67+'FR-16(7)(v)-5 PROD Cust'!H67+'FR-16(7)(v)-7 TRANS Demand'!H67+'FR-16(7)(v)-8 TRANS Energy'!H67+'FR-16(7)(v)-9 TRANS Cust'!H67+'FR-16(7)(v)-11 DIST Demand'!H67+'FR-16(7)(v)-12 DIST Energy'!H67+'FR-16(7)(v)-13 DIST Cust'!H67","v":0},{"$f":"'FR-16(7)(v)-3 PROD Demand'!I67+'FR-16(7)(v)-4 PROD Energy'!I67+'FR-16(7)(v)-5 PROD Cust'!I67+'FR-16(7)(v)-7 TRANS Demand'!I67+'FR-16(7)(v)-8 TRANS Energy'!I67+'FR-16(7)(v)-9 TRANS Cust'!I67+'FR-16(7)(v)-11 DIST Demand'!I67+'FR-16(7)(v)-12 DIST Energy'!I67+'FR-16(7)(v)-13 DIST Cust'!I67","v":0},{"$f":"'FR-16(7)(v)-3 PROD Demand'!J67+'FR-16(7)(v)-4 PROD Energy'!J67+'FR-16(7)(v)-5 PROD Cust'!J67+'FR-16(7)(v)-7 TRANS Demand'!J67+'FR-16(7)(v)-8 TRANS Energy'!J67+'FR-16(7)(v)-9 TRANS Cust'!J67+'FR-16(7)(v)-11 DIST Demand'!J67+'FR-16(7)(v)-12 DIST Energy'!J67+'FR-16(7)(v)-13 DIST Cust'!J67","v":0},{"$f":"'FR-16(7)(v)-3 PROD Demand'!K67+'FR-16(7)(v)-4 PROD Energy'!K67+'FR-16(7)(v)-5 PROD Cust'!K67+'FR-16(7)(v)-7 TRANS Demand'!K67+'FR-16(7)(v)-8 TRANS Energy'!K67+'FR-16(7)(v)-9 TRANS Cust'!K67+'FR-16(7)(v)-11 DIST Demand'!K67+'FR-16(7)(v)-12 DIST Energy'!K67+'FR-16(7)(v)-13 DIST Cust'!K67","v":0},{"$f":"'FR-16(7)(v)-3 PROD Demand'!L67+'FR-16(7)(v)-4 PROD Energy'!L67+'FR-16(7)(v)-5 PROD Cust'!L67+'FR-16(7)(v)-7 TRANS Demand'!L67+'FR-16(7)(v)-8 TRANS Energy'!L67+'FR-16(7)(v)-9 TRANS Cust'!L67+'FR-16(7)(v)-11 DIST Demand'!L67+'FR-16(7)(v)-12 DIST Energy'!L67+'FR-16(7)(v)-13 DIST Cust'!L67","v":0},{"$f":"'FR-16(7)(v)-3 PROD Demand'!M67+'FR-16(7)(v)-4 PROD Energy'!M67+'FR-16(7)(v)-5 PROD Cust'!M67+'FR-16(7)(v)-7 TRANS Demand'!M67+'FR-16(7)(v)-8 TRANS Energy'!M67+'FR-16(7)(v)-9 TRANS Cust'!M67+'FR-16(7)(v)-11 DIST Demand'!M67+'FR-16(7)(v)-12 DIST Energy'!M67+'FR-16(7)(v)-13 DIST Cust'!M67","v":0},{"$f":"'FR-16(7)(v)-3 PROD Demand'!N67+'FR-16(7)(v)-4 PROD Energy'!N67+'FR-16(7)(v)-5 PROD Cust'!N67+'FR-16(7)(v)-7 TRANS Demand'!N67+'FR-16(7)(v)-8 TRANS Energy'!N67+'FR-16(7)(v)-9 TRANS Cust'!N67+'FR-16(7)(v)-11 DIST Demand'!N67+'FR-16(7)(v)-12 DIST Energy'!N67+'FR-16(7)(v)-13 DIST Cust'!N67","v":0},{"$f":"'FR-16(7)(v)-3 PROD Demand'!O67+'FR-16(7)(v)-4 PROD Energy'!O67+'FR-16(7)(v)-5 PROD Cust'!O67+'FR-16(7)(v)-7 TRANS Demand'!O67+'FR-16(7)(v)-8 TRANS Energy'!O67+'FR-16(7)(v)-9 TRANS Cust'!O67+'FR-16(7)(v)-11 DIST Demand'!O67+'FR-16(7)(v)-12 DIST Energy'!O67+'FR-16(7)(v)-13 DIST Cust'!O67","v":0},{"$f":"'FR-16(7)(v)-3 PROD Demand'!P67+'FR-16(7)(v)-4 PROD Energy'!P67+'FR-16(7)(v)-5 PROD Cust'!P67+'FR-16(7)(v)-7 TRANS Demand'!P67+'FR-16(7)(v)-8 TRANS Energy'!P67+'FR-16(7)(v)-9 TRANS Cust'!P67+'FR-16(7)(v)-11 DIST Demand'!P67+'FR-16(7)(v)-12 DIST Energy'!P67+'FR-16(7)(v)-13 DIST Cust'!P67","v":0},{"$f":"'FR-16(7)(v)-3 PROD Demand'!Q67+'FR-16(7)(v)-4 PROD Energy'!Q67+'FR-16(7)(v)-5 PROD Cust'!Q67+'FR-16(7)(v)-7 TRANS Demand'!Q67+'FR-16(7)(v)-8 TRANS Energy'!Q67+'FR-16(7)(v)-9 TRANS Cust'!Q67+'FR-16(7)(v)-11 DIST Demand'!Q67+'FR-16(7)(v)-12 DIST Energy'!Q67+'FR-16(7)(v)-13 DIST Cust'!Q67","v":0},{"$f":"SUM(G67:Q67)","v":0},{"$f":"F67-R67","v":0}]
[11,null,{"$f":"'FR-16(7)(v)-1 Functional'!C68","v":"  TRANSMISSION PLANT IN SERVICE"},null,null,{"$f":"SUM(F65:F67)","v":72371702},32623716,19586677,94083,371267,5066,9765837,6456280,311922,3059152,89741,7961,72371702,{"$f":"SUM(S65)","v":0}]
[12]
[13,"TOTAL PROD & TRANS PLANT",null,null,null,{"$f":"F68+F62","v":1281164240},{"$f":"G68+G62","v":577523216},{"$f":"H68+H62","v":346734290},{"$f":"I68+I62","v":1665514},{"$f":"J68+J62","v":6572373},89682,172880302,114292662,5521818,54154812,1588643,{"$f":"$Q$68+$Q$62","v":140928},{"$f":"R68+R62","v":1281164240},{"$f":"S68+S62","v":0}]
[14]
[15,"DISTRIBUTION PLANT"]
[16,null,{"$f":"'FR-16(7)(v)-1 Functional'!C73","v":"SUBSTATIONS"},{"$f":"'FR-16(7)(v)-1 Functional'!D73","v":"K215"},null,{"$f":"'FR-16(7)(v)-1 Functional'!F73","v":90976376},{"$f":"'FR-16(7)(v)-3 PROD Demand'!G73+'FR-16(7)(v)-4 PROD Energy'!G73+'FR-16(7)(v)-5 PROD Cust'!G73+'FR-16(7)(v)-7 TRANS Demand'!G73+'FR-16(7)(v)-8 TRANS Energy'!G73+'FR-16(7)(v)-9 TRANS Cust'!G73+'FR-16(7)(v)-11 DIST Demand'!G73+'FR-16(7)(v)-12 DIST Energy'!G73+'FR-16(7)(v)-13 DIST Cust'!G73","v":42707041},{"$f":"'FR-16(7)(v)-3 PROD Demand'!H73+'FR-16(7)(v)-4 PROD Energy'!H73+'FR-16(7)(v)-5 PROD Cust'!H73+'FR-16(7)(v)-7 TRANS Demand'!H73+'FR-16(7)(v)-8 TRANS Energy'!H73+'FR-16(7)(v)-9 TRANS Cust'!H73+'FR-16(7)(v)-11 DIST Demand'!H73+'FR-16(7)(v)-12 DIST Energy'!H73+'FR-16(7)(v)-13 DIST Cust'!H73","v":25221381},{"$f":"'FR-16(7)(v)-3 PROD Demand'!I73+'FR-16(7)(v)-4 PROD Energy'!I73+'FR-16(7)(v)-5 PROD Cust'!I73+'FR-16(7)(v)-7 TRANS Demand'!I73+'FR-16(7)(v)-8 TRANS Energy'!I73+'FR-16(7)(v)-9 TRANS Cust'!I73+'FR-16(7)(v)-11 DIST Demand'!I73+'FR-16(7)(v)-12 DIST Energy'!I73+'FR-16(7)(v)-13 DIST Cust'!I73","v":117360},{"$f":"'FR-16(7)(v)-3 PROD Demand'!J73+'FR-16(7)(v)-4 PROD Energy'!J73+'FR-16(7)(v)-5 PROD Cust'!J73+'FR-16(7)(v)-7 TRANS Demand'!J73+'FR-16(7)(v)-8 TRANS Energy'!J73+'FR-16(7)(v)-9 TRANS Cust'!J73+'FR-16(7)(v)-11 DIST Demand'!J73+'FR-16(7)(v)-12 DIST Energy'!J73+'FR-16(7)(v)-13 DIST Cust'!J73","v":553136},{"$f":"'FR-16(7)(v)-3 PROD Demand'!K73+'FR-16(7)(v)-4 PROD Energy'!K73+'FR-16(7)(v)-5 PROD Cust'!K73+'FR-16(7)(v)-7 TRANS Demand'!K73+'FR-16(7)(v)-8 TRANS Energy'!K73+'FR-16(7)(v)-9 TRANS Cust'!K73+'FR-16(7)(v)-11 DIST Demand'!K73+'FR-16(7)(v)-12 DIST Energy'!K73+'FR-16(7)(v)-13 DIST Cust'!K73","v":6368},{"$f":"'FR-16(7)(v)-3 PROD Demand'!L73+'FR-16(7)(v)-4 PROD Energy'!L73+'FR-16(7)(v)-5 PROD Cust'!L73+'FR-16(7)(v)-7 TRANS Demand'!L73+'FR-16(7)(v)-8 TRANS Energy'!L73+'FR-16(7)(v)-9 TRANS Cust'!L73+'FR-16(7)(v)-11 DIST Demand'!L73+'FR-16(7)(v)-12 DIST Energy'!L73+'FR-16(7)(v)-13 DIST Cust'!L73","v":12880435},{"$f":"'FR-16(7)(v)-3 PROD Demand'!M73+'FR-16(7)(v)-4 PROD Energy'!M73+'FR-16(7)(v)-5 PROD Cust'!M73+'FR-16(7)(v)-7 TRANS Demand'!M73+'FR-16(7)(v)-8 TRANS Energy'!M73+'FR-16(7)(v)-9 TRANS Cust'!M73+'FR-16(7)(v)-11 DIST Demand'!M73+'FR-16(7)(v)-12 DIST Energy'!M73+'FR-16(7)(v)-13 DIST Cust'!M73","v":8483547},{"$f":"'FR-16(7)(v)-3 PROD Demand'!N73+'FR-16(7)(v)-4 PROD Energy'!N73+'FR-16(7)(v)-5 PROD Cust'!N73+'FR-16(7)(v)-7 TRANS Demand'!N73+'FR-16(7)(v)-8 TRANS Energy'!N73+'FR-16(7)(v)-9 TRANS Cust'!N73+'FR-16(7)(v)-11 DIST Demand'!N73+'FR-16(7)(v)-12 DIST Energy'!N73+'FR-16(7)(v)-13 DIST Cust'!N73","v":425769},{"$f":"'FR-16(7)(v)-3 PROD Demand'!O73+'FR-16(7)(v)-4 PROD Energy'!O73+'FR-16(7)(v)-5 PROD Cust'!O73+'FR-16(7)(v)-7 TRANS Demand'!O73+'FR-16(7)(v)-8 TRANS Energy'!O73+'FR-16(7)(v)-9 TRANS Cust'!O73+'FR-16(7)(v)-11 DIST Demand'!O73+'FR-16(7)(v)-12 DIST Energy'!O73+'FR-16(7)(v)-13 DIST Cust'!O73","v":0},{"$f":"'FR-16(7)(v)-3 PROD Demand'!P73+'FR-16(7)(v)-4 PROD Energy'!P73+'FR-16(7)(v)-5 PROD Cust'!P73+'FR-16(7)(v)-7 TRANS Demand'!P73+'FR-16(7)(v)-8 TRANS Energy'!P73+'FR-16(7)(v)-9 TRANS Cust'!P73+'FR-16(7)(v)-11 DIST Demand'!P73+'FR-16(7)(v)-12 DIST Energy'!P73+'FR-16(7)(v)-13 DIST Cust'!P73","v":571332},{"$f":"'FR-16(7)(v)-3 PROD Demand'!Q73+'FR-16(7)(v)-4 PROD Energy'!Q73+'FR-16(7)(v)-5 PROD Cust'!Q73+'FR-16(7)(v)-7 TRANS Demand'!Q73+'FR-16(7)(v)-8 TRANS Energy'!Q73+'FR-16(7)(v)-9 TRANS Cust'!Q73+'FR-16(7)(v)-11 DIST Demand'!Q73+'FR-16(7)(v)-12 DIST Energy'!Q73+'FR-16(7)(v)-13 DIST Cust'!Q73","v":10007},{"$f":"SUM(G73:Q73)","v":90976376},{"$f":"F73-R73","v":0}]
[17,null,{"$f":"'FR-16(7)(v)-1 Functional'!C74","v":"POLES, TOWERS  & FIXTURES - PRIMARY - DEMAND"},{"$f":"'FR-16(7)(v)-1 Functional'!D74","v":"K205"},null,{"$f":"'FR-16(7)(v)-1 Functional'!F74","v":33009975},{"$f":"'FR-16(7)(v)-3 PROD Demand'!G74+'FR-16(7)(v)-4 PROD Energy'!G74+'FR-16(7)(v)-5 PROD Cust'!G74+'FR-16(7)(v)-7 TRANS Demand'!G74+'FR-16(7)(v)-8 TRANS Energy'!G74+'FR-16(7)(v)-9 TRANS Cust'!G74+'FR-16(7)(v)-11 DIST Demand'!G74+'FR-16(7)(v)-12 DIST Energy'!G74+'FR-16(7)(v)-13 DIST Cust'!G74","v":15495872},{"$f":"'FR-16(7)(v)-3 PROD Demand'!H74+'FR-16(7)(v)-4 PROD Energy'!H74+'FR-16(7)(v)-5 PROD Cust'!H74+'FR-16(7)(v)-7 TRANS Demand'!H74+'FR-16(7)(v)-8 TRANS Energy'!H74+'FR-16(7)(v)-9 TRANS Cust'!H74+'FR-16(7)(v)-11 DIST Demand'!H74+'FR-16(7)(v)-12 DIST Energy'!H74+'FR-16(7)(v)-13 DIST Cust'!H74","v":9151355},{"$f":"'FR-16(7)(v)-3 PROD Demand'!I74+'FR-16(7)(v)-4 PROD Energy'!I74+'FR-16(7)(v)-5 PROD Cust'!I74+'FR-16(7)(v)-7 TRANS Demand'!I74+'FR-16(7)(v)-8 TRANS Energy'!I74+'FR-16(7)(v)-9 TRANS Cust'!I74+'FR-16(7)(v)-11 DIST Demand'!I74+'FR-16(7)(v)-12 DIST Energy'!I74+'FR-16(7)(v)-13 DIST Cust'!I74","v":42583},{"$f":"'FR-16(7)(v)-3 PROD Demand'!J74+'FR-16(7)(v)-4 PROD Energy'!J74+'FR-16(7)(v)-5 PROD Cust'!J74+'FR-16(7)(v)-7 TRANS Demand'!J74+'FR-16(7)(v)-8 TRANS Energy'!J74+'FR-16(7)(v)-9 TRANS Cust'!J74+'FR-16(7)(v)-11 DIST Demand'!J74+'FR-16(7)(v)-12 DIST Energy'!J74+'FR-16(7)(v)-13 DIST Cust'!J74","v":200701},{"$f":"'FR-16(7)(v)-3 PROD Demand'!K74+'FR-16(7)(v)-4 PROD Energy'!K74+'FR-16(7)(v)-5 PROD Cust'!K74+'FR-16(7)(v)-7 TRANS Demand'!K74+'FR-16(7)(v)-8 TRANS Energy'!K74+'FR-16(7)(v)-9 TRANS Cust'!K74+'FR-16(7)(v)-11 DIST Demand'!K74+'FR-16(7)(v)-12 DIST Energy'!K74+'FR-16(7)(v)-13 DIST Cust'!K74","v":2311},{"$f":"'FR-16(7)(v)-3 PROD Demand'!L74+'FR-16(7)(v)-4 PROD Energy'!L74+'FR-16(7)(v)-5 PROD Cust'!L74+'FR-16(7)(v)-7 TRANS Demand'!L74+'FR-16(7)(v)-8 TRANS Energy'!L74+'FR-16(7)(v)-9 TRANS Cust'!L74+'FR-16(7)(v)-11 DIST Demand'!L74+'FR-16(7)(v)-12 DIST Energy'!L74+'FR-16(7)(v)-13 DIST Cust'!L74","v":4673552},{"$f":"'FR-16(7)(v)-3 PROD Demand'!M74+'FR-16(7)(v)-4 PROD Energy'!M74+'FR-16(7)(v)-5 PROD Cust'!M74+'FR-16(7)(v)-7 TRANS Demand'!M74+'FR-16(7)(v)-8 TRANS Energy'!M74+'FR-16(7)(v)-9 TRANS Cust'!M74+'FR-16(7)(v)-11 DIST Demand'!M74+'FR-16(7)(v)-12 DIST Energy'!M74+'FR-16(7)(v)-13 DIST Cust'!M74","v":3078180},{"$f":"'FR-16(7)(v)-3 PROD Demand'!N74+'FR-16(7)(v)-4 PROD Energy'!N74+'FR-16(7)(v)-5 PROD Cust'!N74+'FR-16(7)(v)-7 TRANS Demand'!N74+'FR-16(7)(v)-8 TRANS Energy'!N74+'FR-16(7)(v)-9 TRANS Cust'!N74+'FR-16(7)(v)-11 DIST Demand'!N74+'FR-16(7)(v)-12 DIST Energy'!N74+'FR-16(7)(v)-13 DIST Cust'!N74","v":154487},{"$f":"'FR-16(7)(v)-3 PROD Demand'!O74+'FR-16(7)(v)-4 PROD Energy'!O74+'FR-16(7)(v)-5 PROD Cust'!O74+'FR-16(7)(v)-7 TRANS Demand'!O74+'FR-16(7)(v)-8 TRANS Energy'!O74+'FR-16(7)(v)-9 TRANS Cust'!O74+'FR-16(7)(v)-11 DIST Demand'!O74+'FR-16(7)(v)-12 DIST Energy'!O74+'FR-16(7)(v)-13 DIST Cust'!O74","v":0},{"$f":"'FR-16(7)(v)-3 PROD Demand'!P74+'FR-16(7)(v)-4 PROD Energy'!P74+'FR-16(7)(v)-5 PROD Cust'!P74+'FR-16(7)(v)-7 TRANS Demand'!P74+'FR-16(7)(v)-8 TRANS Energy'!P74+'FR-16(7)(v)-9 TRANS Cust'!P74+'FR-16(7)(v)-11 DIST Demand'!P74+'FR-16(7)(v)-12 DIST Energy'!P74+'FR-16(7)(v)-13 DIST Cust'!P74","v":207303},{"$f":"'FR-16(7)(v)-3 PROD Demand'!Q74+'FR-16(7)(v)-4 PROD Energy'!Q74+'FR-16(7)(v)-5 PROD Cust'!Q74+'FR-16(7)(v)-7 TRANS Demand'!Q74+'FR-16(7)(v)-8 TRANS Energy'!Q74+'FR-16(7)(v)-9 TRANS Cust'!Q74+'FR-16(7)(v)-11 DIST Demand'!Q74+'FR-16(7)(v)-12 DIST Energy'!Q74+'FR-16(7)(v)-13 DIST Cust'!Q74","v":3631},{"$f":"SUM(G74:Q74)","v":33009975},{"$f":"F74-R74","v":0}]
[18,null,{"$f":"'FR-16(7)(v)-1 Functional'!C75","v":"POLES, TOWERS  & FIXTURES - PRIMARY - CUSTOMER"},{"$f":"'FR-16(7)(v)-1 Functional'!D75","v":"K405"},null,{"$f":"'FR-16(7)(v)-1 Functional'!F75","v":15106661},{"$f":"'FR-16(7)(v)-3 PROD Demand'!G75+'FR-16(7)(v)-4 PROD Energy'!G75+'FR-16(7)(v)-5 PROD Cust'!G75+'FR-16(7)(v)-7 TRANS Demand'!G75+'FR-16(7)(v)-8 TRANS Energy'!G75+'FR-16(7)(v)-9 TRANS Cust'!G75+'FR-16(7)(v)-11 DIST Demand'!G75+'FR-16(7)(v)-12 DIST Energy'!G75+'FR-16(7)(v)-13 DIST Cust'!G75","v":13626963},{"$f":"'FR-16(7)(v)-3 PROD Demand'!H75+'FR-16(7)(v)-4 PROD Energy'!H75+'FR-16(7)(v)-5 PROD Cust'!H75+'FR-16(7)(v)-7 TRANS Demand'!H75+'FR-16(7)(v)-8 TRANS Energy'!H75+'FR-16(7)(v)-9 TRANS Cust'!H75+'FR-16(7)(v)-11 DIST Demand'!H75+'FR-16(7)(v)-12 DIST Energy'!H75+'FR-16(7)(v)-13 DIST Cust'!H75","v":1376217},{"$f":"'FR-16(7)(v)-3 PROD Demand'!I75+'FR-16(7)(v)-4 PROD Energy'!I75+'FR-16(7)(v)-5 PROD Cust'!I75+'FR-16(7)(v)-7 TRANS Demand'!I75+'FR-16(7)(v)-8 TRANS Energy'!I75+'FR-16(7)(v)-9 TRANS Cust'!I75+'FR-16(7)(v)-11 DIST Demand'!I75+'FR-16(7)(v)-12 DIST Energy'!I75+'FR-16(7)(v)-13 DIST Cust'!I75","v":18279},{"$f":"'FR-16(7)(v)-3 PROD Demand'!J75+'FR-16(7)(v)-4 PROD Energy'!J75+'FR-16(7)(v)-5 PROD Cust'!J75+'FR-16(7)(v)-7 TRANS Demand'!J75+'FR-16(7)(v)-8 TRANS Energy'!J75+'FR-16(7)(v)-9 TRANS Cust'!J75+'FR-16(7)(v)-11 DIST Demand'!J75+'FR-16(7)(v)-12 DIST Energy'!J75+'FR-16(7)(v)-13 DIST Cust'!J75","v":10877},{"$f":"'FR-16(7)(v)-3 PROD Demand'!K75+'FR-16(7)(v)-4 PROD Energy'!K75+'FR-16(7)(v)-5 PROD Cust'!K75+'FR-16(7)(v)-7 TRANS Demand'!K75+'FR-16(7)(v)-8 TRANS Energy'!K75+'FR-16(7)(v)-9 TRANS Cust'!K75+'FR-16(7)(v)-11 DIST Demand'!K75+'FR-16(7)(v)-12 DIST Energy'!K75+'FR-16(7)(v)-13 DIST Cust'!K75","v":1511},{"$f":"'FR-16(7)(v)-3 PROD Demand'!L75+'FR-16(7)(v)-4 PROD Energy'!L75+'FR-16(7)(v)-5 PROD Cust'!L75+'FR-16(7)(v)-7 TRANS Demand'!L75+'FR-16(7)(v)-8 TRANS Energy'!L75+'FR-16(7)(v)-9 TRANS Cust'!L75+'FR-16(7)(v)-11 DIST Demand'!L75+'FR-16(7)(v)-12 DIST Energy'!L75+'FR-16(7)(v)-13 DIST Cust'!L75","v":16919},{"$f":"'FR-16(7)(v)-3 PROD Demand'!M75+'FR-16(7)(v)-4 PROD Energy'!M75+'FR-16(7)(v)-5 PROD Cust'!M75+'FR-16(7)(v)-7 TRANS Demand'!M75+'FR-16(7)(v)-8 TRANS Energy'!M75+'FR-16(7)(v)-9 TRANS Cust'!M75+'FR-16(7)(v)-11 DIST Demand'!M75+'FR-16(7)(v)-12 DIST Energy'!M75+'FR-16(7)(v)-13 DIST Cust'!M75","v":3928},{"$f":"'FR-16(7)(v)-3 PROD Demand'!N75+'FR-16(7)(v)-4 PROD Energy'!N75+'FR-16(7)(v)-5 PROD Cust'!N75+'FR-16(7)(v)-7 TRANS Demand'!N75+'FR-16(7)(v)-8 TRANS Energy'!N75+'FR-16(7)(v)-9 TRANS Cust'!N75+'FR-16(7)(v)-11 DIST Demand'!N75+'FR-16(7)(v)-12 DIST Energy'!N75+'FR-16(7)(v)-13 DIST Cust'!N75","v":1057},{"$f":"'FR-16(7)(v)-3 PROD Demand'!O75+'FR-16(7)(v)-4 PROD Energy'!O75+'FR-16(7)(v)-5 PROD Cust'!O75+'FR-16(7)(v)-7 TRANS Demand'!O75+'FR-16(7)(v)-8 TRANS Energy'!O75+'FR-16(7)(v)-9 TRANS Cust'!O75+'FR-16(7)(v)-11 DIST Demand'!O75+'FR-16(7)(v)-12 DIST Energy'!O75+'FR-16(7)(v)-13 DIST Cust'!O75","v":0},{"$f":"'FR-16(7)(v)-3 PROD Demand'!P75+'FR-16(7)(v)-4 PROD Energy'!P75+'FR-16(7)(v)-5 PROD Cust'!P75+'FR-16(7)(v)-7 TRANS Demand'!P75+'FR-16(7)(v)-8 TRANS Energy'!P75+'FR-16(7)(v)-9 TRANS Cust'!P75+'FR-16(7)(v)-11 DIST Demand'!P75+'FR-16(7)(v)-12 DIST Energy'!P75+'FR-16(7)(v)-13 DIST Cust'!P75","v":49701},{"$f":"'FR-16(7)(v)-3 PROD Demand'!Q75+'FR-16(7)(v)-4 PROD Energy'!Q75+'FR-16(7)(v)-5 PROD Cust'!Q75+'FR-16(7)(v)-7 TRANS Demand'!Q75+'FR-16(7)(v)-8 TRANS Energy'!Q75+'FR-16(7)(v)-9 TRANS Cust'!Q75+'FR-16(7)(v)-11 DIST Demand'!Q75+'FR-16(7)(v)-12 DIST Energy'!Q75+'FR-16(7)(v)-13 DIST Cust'!Q75","v":1209},{"$f":"SUM(G75:Q75)","v":15106661},{"$f":"F75-R75","v":0}]
[19,null,{"$f":"'FR-16(7)(v)-1 Functional'!C76","v":"POLES, TOWERS  & FIXTURES - SECONDARY - DEMAND"},{"$f":"'FR-16(7)(v)-1 Functional'!D76","v":"K206"},null,{"$f":"'FR-16(7)(v)-1 Functional'!F76","v":12624115},{"$f":"'FR-16(7)(v)-3 PROD Demand'!G76+'FR-16(7)(v)-4 PROD Energy'!G76+'FR-16(7)(v)-5 PROD Cust'!G76+'FR-16(7)(v)-7 TRANS Demand'!G76+'FR-16(7)(v)-8 TRANS Energy'!G76+'FR-16(7)(v)-9 TRANS Cust'!G76+'FR-16(7)(v)-11 DIST Demand'!G76+'FR-16(7)(v)-12 DIST Energy'!G76+'FR-16(7)(v)-13 DIST Cust'!G76","v":5926138},{"$f":"'FR-16(7)(v)-3 PROD Demand'!H76+'FR-16(7)(v)-4 PROD Energy'!H76+'FR-16(7)(v)-5 PROD Cust'!H76+'FR-16(7)(v)-7 TRANS Demand'!H76+'FR-16(7)(v)-8 TRANS Energy'!H76+'FR-16(7)(v)-9 TRANS Cust'!H76+'FR-16(7)(v)-11 DIST Demand'!H76+'FR-16(7)(v)-12 DIST Energy'!H76+'FR-16(7)(v)-13 DIST Cust'!H76","v":3499783},{"$f":"'FR-16(7)(v)-3 PROD Demand'!I76+'FR-16(7)(v)-4 PROD Energy'!I76+'FR-16(7)(v)-5 PROD Cust'!I76+'FR-16(7)(v)-7 TRANS Demand'!I76+'FR-16(7)(v)-8 TRANS Energy'!I76+'FR-16(7)(v)-9 TRANS Cust'!I76+'FR-16(7)(v)-11 DIST Demand'!I76+'FR-16(7)(v)-12 DIST Energy'!I76+'FR-16(7)(v)-13 DIST Cust'!I76","v":16285},{"$f":"'FR-16(7)(v)-3 PROD Demand'!J76+'FR-16(7)(v)-4 PROD Energy'!J76+'FR-16(7)(v)-5 PROD Cust'!J76+'FR-16(7)(v)-7 TRANS Demand'!J76+'FR-16(7)(v)-8 TRANS Energy'!J76+'FR-16(7)(v)-9 TRANS Cust'!J76+'FR-16(7)(v)-11 DIST Demand'!J76+'FR-16(7)(v)-12 DIST Energy'!J76+'FR-16(7)(v)-13 DIST Cust'!J76","v":76755},{"$f":"'FR-16(7)(v)-3 PROD Demand'!K76+'FR-16(7)(v)-4 PROD Energy'!K76+'FR-16(7)(v)-5 PROD Cust'!K76+'FR-16(7)(v)-7 TRANS Demand'!K76+'FR-16(7)(v)-8 TRANS Energy'!K76+'FR-16(7)(v)-9 TRANS Cust'!K76+'FR-16(7)(v)-11 DIST Demand'!K76+'FR-16(7)(v)-12 DIST Energy'!K76+'FR-16(7)(v)-13 DIST Cust'!K76","v":884},{"$f":"'FR-16(7)(v)-3 PROD Demand'!L76+'FR-16(7)(v)-4 PROD Energy'!L76+'FR-16(7)(v)-5 PROD Cust'!L76+'FR-16(7)(v)-7 TRANS Demand'!L76+'FR-16(7)(v)-8 TRANS Energy'!L76+'FR-16(7)(v)-9 TRANS Cust'!L76+'FR-16(7)(v)-11 DIST Demand'!L76+'FR-16(7)(v)-12 DIST Energy'!L76+'FR-16(7)(v)-13 DIST Cust'!L76","v":1787322},{"$f":"'FR-16(7)(v)-3 PROD Demand'!M76+'FR-16(7)(v)-4 PROD Energy'!M76+'FR-16(7)(v)-5 PROD Cust'!M76+'FR-16(7)(v)-7 TRANS Demand'!M76+'FR-16(7)(v)-8 TRANS Energy'!M76+'FR-16(7)(v)-9 TRANS Cust'!M76+'FR-16(7)(v)-11 DIST Demand'!M76+'FR-16(7)(v)-12 DIST Energy'!M76+'FR-16(7)(v)-13 DIST Cust'!M76","v":1177199},{"$f":"'FR-16(7)(v)-3 PROD Demand'!N76+'FR-16(7)(v)-4 PROD Energy'!N76+'FR-16(7)(v)-5 PROD Cust'!N76+'FR-16(7)(v)-7 TRANS Demand'!N76+'FR-16(7)(v)-8 TRANS Energy'!N76+'FR-16(7)(v)-9 TRANS Cust'!N76+'FR-16(7)(v)-11 DIST Demand'!N76+'FR-16(7)(v)-12 DIST Energy'!N76+'FR-16(7)(v)-13 DIST Cust'!N76","v":59081},{"$f":"'FR-16(7)(v)-3 PROD Demand'!O76+'FR-16(7)(v)-4 PROD Energy'!O76+'FR-16(7)(v)-5 PROD Cust'!O76+'FR-16(7)(v)-7 TRANS Demand'!O76+'FR-16(7)(v)-8 TRANS Energy'!O76+'FR-16(7)(v)-9 TRANS Cust'!O76+'FR-16(7)(v)-11 DIST Demand'!O76+'FR-16(7)(v)-12 DIST Energy'!O76+'FR-16(7)(v)-13 DIST Cust'!O76","v":0},{"$f":"'FR-16(7)(v)-3 PROD Demand'!P76+'FR-16(7)(v)-4 PROD Energy'!P76+'FR-16(7)(v)-5 PROD Cust'!P76+'FR-16(7)(v)-7 TRANS Demand'!P76+'FR-16(7)(v)-8 TRANS Energy'!P76+'FR-16(7)(v)-9 TRANS Cust'!P76+'FR-16(7)(v)-11 DIST Demand'!P76+'FR-16(7)(v)-12 DIST Energy'!P76+'FR-16(7)(v)-13 DIST Cust'!P76","v":79279},{"$f":"'FR-16(7)(v)-3 PROD Demand'!Q76+'FR-16(7)(v)-4 PROD Energy'!Q76+'FR-16(7)(v)-5 PROD Cust'!Q76+'FR-16(7)(v)-7 TRANS Demand'!Q76+'FR-16(7)(v)-8 TRANS Energy'!Q76+'FR-16(7)(v)-9 TRANS Cust'!Q76+'FR-16(7)(v)-11 DIST Demand'!Q76+'FR-16(7)(v)-12 DIST Energy'!Q76+'FR-16(7)(v)-13 DIST Cust'!Q76","v":1389},12624115,0]
[20,null,{"$f":"'FR-16(7)(v)-1 Functional'!C77","v":"POLES, TOWERS  & FIXTURES - SECONDARY - CUSTOMER"},{"$f":"'FR-16(7)(v)-1 Functional'!D77","v":"K405"},null,{"$f":"'FR-16(7)(v)-1 Functional'!F77","v":3414764},{"$f":"'FR-16(7)(v)-3 PROD Demand'!G77+'FR-16(7)(v)-4 PROD Energy'!G77+'FR-16(7)(v)-5 PROD Cust'!G77+'FR-16(7)(v)-7 TRANS Demand'!G77+'FR-16(7)(v)-8 TRANS Energy'!G77+'FR-16(7)(v)-9 TRANS Cust'!G77+'FR-16(7)(v)-11 DIST Demand'!G77+'FR-16(7)(v)-12 DIST Energy'!G77+'FR-16(7)(v)-13 DIST Cust'!G77","v":3080287},{"$f":"'FR-16(7)(v)-3 PROD Demand'!H77+'FR-16(7)(v)-4 PROD Energy'!H77+'FR-16(7)(v)-5 PROD Cust'!H77+'FR-16(7)(v)-7 TRANS Demand'!H77+'FR-16(7)(v)-8 TRANS Energy'!H77+'FR-16(7)(v)-9 TRANS Cust'!H77+'FR-16(7)(v)-11 DIST Demand'!H77+'FR-16(7)(v)-12 DIST Energy'!H77+'FR-16(7)(v)-13 DIST Cust'!H77","v":311085},{"$f":"'FR-16(7)(v)-3 PROD Demand'!I77+'FR-16(7)(v)-4 PROD Energy'!I77+'FR-16(7)(v)-5 PROD Cust'!I77+'FR-16(7)(v)-7 TRANS Demand'!I77+'FR-16(7)(v)-8 TRANS Energy'!I77+'FR-16(7)(v)-9 TRANS Cust'!I77+'FR-16(7)(v)-11 DIST Demand'!I77+'FR-16(7)(v)-12 DIST Energy'!I77+'FR-16(7)(v)-13 DIST Cust'!I77","v":4132},{"$f":"'FR-16(7)(v)-3 PROD Demand'!J77+'FR-16(7)(v)-4 PROD Energy'!J77+'FR-16(7)(v)-5 PROD Cust'!J77+'FR-16(7)(v)-7 TRANS Demand'!J77+'FR-16(7)(v)-8 TRANS Energy'!J77+'FR-16(7)(v)-9 TRANS Cust'!J77+'FR-16(7)(v)-11 DIST Demand'!J77+'FR-16(7)(v)-12 DIST Energy'!J77+'FR-16(7)(v)-13 DIST Cust'!J77","v":2459},{"$f":"'FR-16(7)(v)-3 PROD Demand'!K77+'FR-16(7)(v)-4 PROD Energy'!K77+'FR-16(7)(v)-5 PROD Cust'!K77+'FR-16(7)(v)-7 TRANS Demand'!K77+'FR-16(7)(v)-8 TRANS Energy'!K77+'FR-16(7)(v)-9 TRANS Cust'!K77+'FR-16(7)(v)-11 DIST Demand'!K77+'FR-16(7)(v)-12 DIST Energy'!K77+'FR-16(7)(v)-13 DIST Cust'!K77","v":341},{"$f":"'FR-16(7)(v)-3 PROD Demand'!L77+'FR-16(7)(v)-4 PROD Energy'!L77+'FR-16(7)(v)-5 PROD Cust'!L77+'FR-16(7)(v)-7 TRANS Demand'!L77+'FR-16(7)(v)-8 TRANS Energy'!L77+'FR-16(7)(v)-9 TRANS Cust'!L77+'FR-16(7)(v)-11 DIST Demand'!L77+'FR-16(7)(v)-12 DIST Energy'!L77+'FR-16(7)(v)-13 DIST Cust'!L77","v":3825},{"$f":"'FR-16(7)(v)-3 PROD Demand'!M77+'FR-16(7)(v)-4 PROD Energy'!M77+'FR-16(7)(v)-5 PROD Cust'!M77+'FR-16(7)(v)-7 TRANS Demand'!M77+'FR-16(7)(v)-8 TRANS Energy'!M77+'FR-16(7)(v)-9 TRANS Cust'!M77+'FR-16(7)(v)-11 DIST Demand'!M77+'FR-16(7)(v)-12 DIST Energy'!M77+'FR-16(7)(v)-13 DIST Cust'!M77","v":888},{"$f":"'FR-16(7)(v)-3 PROD Demand'!N77+'FR-16(7)(v)-4 PROD Energy'!N77+'FR-16(7)(v)-5 PROD Cust'!N77+'FR-16(7)(v)-7 TRANS Demand'!N77+'FR-16(7)(v)-8 TRANS Energy'!N77+'FR-16(7)(v)-9 TRANS Cust'!N77+'FR-16(7)(v)-11 DIST Demand'!N77+'FR-16(7)(v)-12 DIST Energy'!N77+'FR-16(7)(v)-13 DIST Cust'!N77","v":239},{"$f":"'FR-16(7)(v)-3 PROD Demand'!O77+'FR-16(7)(v)-4 PROD Energy'!O77+'FR-16(7)(v)-5 PROD Cust'!O77+'FR-16(7)(v)-7 TRANS Demand'!O77+'FR-16(7)(v)-8 TRANS Energy'!O77+'FR-16(7)(v)-9 TRANS Cust'!O77+'FR-16(7)(v)-11 DIST Demand'!O77+'FR-16(7)(v)-12 DIST Energy'!O77+'FR-16(7)(v)-13 DIST Cust'!O77","v":0},{"$f":"'FR-16(7)(v)-3 PROD Demand'!P77+'FR-16(7)(v)-4 PROD Energy'!P77+'FR-16(7)(v)-5 PROD Cust'!P77+'FR-16(7)(v)-7 TRANS Demand'!P77+'FR-16(7)(v)-8 TRANS Energy'!P77+'FR-16(7)(v)-9 TRANS Cust'!P77+'FR-16(7)(v)-11 DIST Demand'!P77+'FR-16(7)(v)-12 DIST Energy'!P77+'FR-16(7)(v)-13 DIST Cust'!P77","v":11235},{"$f":"'FR-16(7)(v)-3 PROD Demand'!Q77+'FR-16(7)(v)-4 PROD Energy'!Q77+'FR-16(7)(v)-5 PROD Cust'!Q77+'FR-16(7)(v)-7 TRANS Demand'!Q77+'FR-16(7)(v)-8 TRANS Energy'!Q77+'FR-16(7)(v)-9 TRANS Cust'!Q77+'FR-16(7)(v)-11 DIST Demand'!Q77+'FR-16(7)(v)-12 DIST Energy'!Q77+'FR-16(7)(v)-13 DIST Cust'!Q77","v":273},3414764,0]
[21,null,{"$f":"'FR-16(7)(v)-1 Functional'!C78","v":"CONDUCTORS - OVERHEAD / PRIMARY - DEMAND"},{"$f":"'FR-16(7)(v)-1 Functional'!D78","v":"K205"},null,{"$f":"'FR-16(7)(v)-1 Functional'!F78","v":75222822},{"$f":"'FR-16(7)(v)-3 PROD Demand'!G78+'FR-16(7)(v)-4 PROD Energy'!G78+'FR-16(7)(v)-5 PROD Cust'!G78+'FR-16(7)(v)-7 TRANS Demand'!G78+'FR-16(7)(v)-8 TRANS Energy'!G78+'FR-16(7)(v)-9 TRANS Cust'!G78+'FR-16(7)(v)-11 DIST Demand'!G78+'FR-16(7)(v)-12 DIST Energy'!G78+'FR-16(7)(v)-13 DIST Cust'!G78","v":35311849},{"$f":"'FR-16(7)(v)-3 PROD Demand'!H78+'FR-16(7)(v)-4 PROD Energy'!H78+'FR-16(7)(v)-5 PROD Cust'!H78+'FR-16(7)(v)-7 TRANS Demand'!H78+'FR-16(7)(v)-8 TRANS Energy'!H78+'FR-16(7)(v)-9 TRANS Cust'!H78+'FR-16(7)(v)-11 DIST Demand'!H78+'FR-16(7)(v)-12 DIST Energy'!H78+'FR-16(7)(v)-13 DIST Cust'!H78","v":20854023},{"$f":"'FR-16(7)(v)-3 PROD Demand'!I78+'FR-16(7)(v)-4 PROD Energy'!I78+'FR-16(7)(v)-5 PROD Cust'!I78+'FR-16(7)(v)-7 TRANS Demand'!I78+'FR-16(7)(v)-8 TRANS Energy'!I78+'FR-16(7)(v)-9 TRANS Cust'!I78+'FR-16(7)(v)-11 DIST Demand'!I78+'FR-16(7)(v)-12 DIST Energy'!I78+'FR-16(7)(v)-13 DIST Cust'!I78","v":97037},{"$f":"'FR-16(7)(v)-3 PROD Demand'!J78+'FR-16(7)(v)-4 PROD Energy'!J78+'FR-16(7)(v)-5 PROD Cust'!J78+'FR-16(7)(v)-7 TRANS Demand'!J78+'FR-16(7)(v)-8 TRANS Energy'!J78+'FR-16(7)(v)-9 TRANS Cust'!J78+'FR-16(7)(v)-11 DIST Demand'!J78+'FR-16(7)(v)-12 DIST Energy'!J78+'FR-16(7)(v)-13 DIST Cust'!J78","v":457355},{"$f":"'FR-16(7)(v)-3 PROD Demand'!K78+'FR-16(7)(v)-4 PROD Energy'!K78+'FR-16(7)(v)-5 PROD Cust'!K78+'FR-16(7)(v)-7 TRANS Demand'!K78+'FR-16(7)(v)-8 TRANS Energy'!K78+'FR-16(7)(v)-9 TRANS Cust'!K78+'FR-16(7)(v)-11 DIST Demand'!K78+'FR-16(7)(v)-12 DIST Energy'!K78+'FR-16(7)(v)-13 DIST Cust'!K78","v":5266},{"$f":"'FR-16(7)(v)-3 PROD Demand'!L78+'FR-16(7)(v)-4 PROD Energy'!L78+'FR-16(7)(v)-5 PROD Cust'!L78+'FR-16(7)(v)-7 TRANS Demand'!L78+'FR-16(7)(v)-8 TRANS Energy'!L78+'FR-16(7)(v)-9 TRANS Cust'!L78+'FR-16(7)(v)-11 DIST Demand'!L78+'FR-16(7)(v)-12 DIST Energy'!L78+'FR-16(7)(v)-13 DIST Cust'!L78","v":10650047},{"$f":"'FR-16(7)(v)-3 PROD Demand'!M78+'FR-16(7)(v)-4 PROD Energy'!M78+'FR-16(7)(v)-5 PROD Cust'!M78+'FR-16(7)(v)-7 TRANS Demand'!M78+'FR-16(7)(v)-8 TRANS Energy'!M78+'FR-16(7)(v)-9 TRANS Cust'!M78+'FR-16(7)(v)-11 DIST Demand'!M78+'FR-16(7)(v)-12 DIST Energy'!M78+'FR-16(7)(v)-13 DIST Cust'!M78","v":7014528},{"$f":"'FR-16(7)(v)-3 PROD Demand'!N78+'FR-16(7)(v)-4 PROD Energy'!N78+'FR-16(7)(v)-5 PROD Cust'!N78+'FR-16(7)(v)-7 TRANS Demand'!N78+'FR-16(7)(v)-8 TRANS Energy'!N78+'FR-16(7)(v)-9 TRANS Cust'!N78+'FR-16(7)(v)-11 DIST Demand'!N78+'FR-16(7)(v)-12 DIST Energy'!N78+'FR-16(7)(v)-13 DIST Cust'!N78","v":352043},{"$f":"'FR-16(7)(v)-3 PROD Demand'!O78+'FR-16(7)(v)-4 PROD Energy'!O78+'FR-16(7)(v)-5 PROD Cust'!O78+'FR-16(7)(v)-7 TRANS Demand'!O78+'FR-16(7)(v)-8 TRANS Energy'!O78+'FR-16(7)(v)-9 TRANS Cust'!O78+'FR-16(7)(v)-11 DIST Demand'!O78+'FR-16(7)(v)-12 DIST Energy'!O78+'FR-16(7)(v)-13 DIST Cust'!O78","v":0},{"$f":"'FR-16(7)(v)-3 PROD Demand'!P78+'FR-16(7)(v)-4 PROD Energy'!P78+'FR-16(7)(v)-5 PROD Cust'!P78+'FR-16(7)(v)-7 TRANS Demand'!P78+'FR-16(7)(v)-8 TRANS Energy'!P78+'FR-16(7)(v)-9 TRANS Cust'!P78+'FR-16(7)(v)-11 DIST Demand'!P78+'FR-16(7)(v)-12 DIST Energy'!P78+'FR-16(7)(v)-13 DIST Cust'!P78","v":472399},{"$f":"'FR-16(7)(v)-3 PROD Demand'!Q78+'FR-16(7)(v)-4 PROD Energy'!Q78+'FR-16(7)(v)-5 PROD Cust'!Q78+'FR-16(7)(v)-7 TRANS Demand'!Q78+'FR-16(7)(v)-8 TRANS Energy'!Q78+'FR-16(7)(v)-9 TRANS Cust'!Q78+'FR-16(7)(v)-11 DIST Demand'!Q78+'FR-16(7)(v)-12 DIST Energy'!Q78+'FR-16(7)(v)-13 DIST Cust'!Q78","v":8275},75222822,0]
[22,null,{"$f":"'FR-16(7)(v)-1 Functional'!C79","v":"CONDUCTORS - OVERHEAD / PRIMARY - CUSTOMER"},{"$f":"'FR-16(7)(v)-1 Functional'!D79","v":"K405"},null,{"$f":"'FR-16(7)(v)-1 Functional'!F79","v":16426781},{"$f":"'FR-16(7)(v)-3 PROD Demand'!G79+'FR-16(7)(v)-4 PROD Energy'!G79+'FR-16(7)(v)-5 PROD Cust'!G79+'FR-16(7)(v)-7 TRANS Demand'!G79+'FR-16(7)(v)-8 TRANS Energy'!G79+'FR-16(7)(v)-9 TRANS Cust'!G79+'FR-16(7)(v)-11 DIST Demand'!G79+'FR-16(7)(v)-12 DIST Energy'!G79+'FR-16(7)(v)-13 DIST Cust'!G79","v":14817778},{"$f":"'FR-16(7)(v)-3 PROD Demand'!H79+'FR-16(7)(v)-4 PROD Energy'!H79+'FR-16(7)(v)-5 PROD Cust'!H79+'FR-16(7)(v)-7 TRANS Demand'!H79+'FR-16(7)(v)-8 TRANS Energy'!H79+'FR-16(7)(v)-9 TRANS Cust'!H79+'FR-16(7)(v)-11 DIST Demand'!H79+'FR-16(7)(v)-12 DIST Energy'!H79+'FR-16(7)(v)-13 DIST Cust'!H79","v":1496480},{"$f":"'FR-16(7)(v)-3 PROD Demand'!I79+'FR-16(7)(v)-4 PROD Energy'!I79+'FR-16(7)(v)-5 PROD Cust'!I79+'FR-16(7)(v)-7 TRANS Demand'!I79+'FR-16(7)(v)-8 TRANS Energy'!I79+'FR-16(7)(v)-9 TRANS Cust'!I79+'FR-16(7)(v)-11 DIST Demand'!I79+'FR-16(7)(v)-12 DIST Energy'!I79+'FR-16(7)(v)-13 DIST Cust'!I79","v":19876},{"$f":"'FR-16(7)(v)-3 PROD Demand'!J79+'FR-16(7)(v)-4 PROD Energy'!J79+'FR-16(7)(v)-5 PROD Cust'!J79+'FR-16(7)(v)-7 TRANS Demand'!J79+'FR-16(7)(v)-8 TRANS Energy'!J79+'FR-16(7)(v)-9 TRANS Cust'!J79+'FR-16(7)(v)-11 DIST Demand'!J79+'FR-16(7)(v)-12 DIST Energy'!J79+'FR-16(7)(v)-13 DIST Cust'!J79","v":11827},{"$f":"'FR-16(7)(v)-3 PROD Demand'!K79+'FR-16(7)(v)-4 PROD Energy'!K79+'FR-16(7)(v)-5 PROD Cust'!K79+'FR-16(7)(v)-7 TRANS Demand'!K79+'FR-16(7)(v)-8 TRANS Energy'!K79+'FR-16(7)(v)-9 TRANS Cust'!K79+'FR-16(7)(v)-11 DIST Demand'!K79+'FR-16(7)(v)-12 DIST Energy'!K79+'FR-16(7)(v)-13 DIST Cust'!K79","v":1643},{"$f":"'FR-16(7)(v)-3 PROD Demand'!L79+'FR-16(7)(v)-4 PROD Energy'!L79+'FR-16(7)(v)-5 PROD Cust'!L79+'FR-16(7)(v)-7 TRANS Demand'!L79+'FR-16(7)(v)-8 TRANS Energy'!L79+'FR-16(7)(v)-9 TRANS Cust'!L79+'FR-16(7)(v)-11 DIST Demand'!L79+'FR-16(7)(v)-12 DIST Energy'!L79+'FR-16(7)(v)-13 DIST Cust'!L79","v":18398},{"$f":"'FR-16(7)(v)-3 PROD Demand'!M79+'FR-16(7)(v)-4 PROD Energy'!M79+'FR-16(7)(v)-5 PROD Cust'!M79+'FR-16(7)(v)-7 TRANS Demand'!M79+'FR-16(7)(v)-8 TRANS Energy'!M79+'FR-16(7)(v)-9 TRANS Cust'!M79+'FR-16(7)(v)-11 DIST Demand'!M79+'FR-16(7)(v)-12 DIST Energy'!M79+'FR-16(7)(v)-13 DIST Cust'!M79","v":4271},{"$f":"'FR-16(7)(v)-3 PROD Demand'!N79+'FR-16(7)(v)-4 PROD Energy'!N79+'FR-16(7)(v)-5 PROD Cust'!N79+'FR-16(7)(v)-7 TRANS Demand'!N79+'FR-16(7)(v)-8 TRANS Energy'!N79+'FR-16(7)(v)-9 TRANS Cust'!N79+'FR-16(7)(v)-11 DIST Demand'!N79+'FR-16(7)(v)-12 DIST Energy'!N79+'FR-16(7)(v)-13 DIST Cust'!N79","v":1150},{"$f":"'FR-16(7)(v)-3 PROD Demand'!O79+'FR-16(7)(v)-4 PROD Energy'!O79+'FR-16(7)(v)-5 PROD Cust'!O79+'FR-16(7)(v)-7 TRANS Demand'!O79+'FR-16(7)(v)-8 TRANS Energy'!O79+'FR-16(7)(v)-9 TRANS Cust'!O79+'FR-16(7)(v)-11 DIST Demand'!O79+'FR-16(7)(v)-12 DIST Energy'!O79+'FR-16(7)(v)-13 DIST Cust'!O79","v":0},{"$f":"'FR-16(7)(v)-3 PROD Demand'!P79+'FR-16(7)(v)-4 PROD Energy'!P79+'FR-16(7)(v)-5 PROD Cust'!P79+'FR-16(7)(v)-7 TRANS Demand'!P79+'FR-16(7)(v)-8 TRANS Energy'!P79+'FR-16(7)(v)-9 TRANS Cust'!P79+'FR-16(7)(v)-11 DIST Demand'!P79+'FR-16(7)(v)-12 DIST Energy'!P79+'FR-16(7)(v)-13 DIST Cust'!P79","v":54044},{"$f":"'FR-16(7)(v)-3 PROD Demand'!Q79+'FR-16(7)(v)-4 PROD Energy'!Q79+'FR-16(7)(v)-5 PROD Cust'!Q79+'FR-16(7)(v)-7 TRANS Demand'!Q79+'FR-16(7)(v)-8 TRANS Energy'!Q79+'FR-16(7)(v)-9 TRANS Cust'!Q79+'FR-16(7)(v)-11 DIST Demand'!Q79+'FR-16(7)(v)-12 DIST Energy'!Q79+'FR-16(7)(v)-13 DIST Cust'!Q79","v":1314},16426781,0]
[23,null,{"$f":"'FR-16(7)(v)-1 Functional'!C80","v":"CONDUCTORS - OVERHEAD / SECONDARY - DEMAND"},{"$f":"'FR-16(7)(v)-1 Functional'!D80","v":"K206"},null,{"$f":"'FR-16(7)(v)-1 Functional'!F80","v":30629852},{"$f":"'FR-16(7)(v)-3 PROD Demand'!G80+'FR-16(7)(v)-4 PROD Energy'!G80+'FR-16(7)(v)-5 PROD Cust'!G80+'FR-16(7)(v)-7 TRANS Demand'!G80+'FR-16(7)(v)-8 TRANS Energy'!G80+'FR-16(7)(v)-9 TRANS Cust'!G80+'FR-16(7)(v)-11 DIST Demand'!G80+'FR-16(7)(v)-12 DIST Energy'!G80+'FR-16(7)(v)-13 DIST Cust'!G80","v":14378571},{"$f":"'FR-16(7)(v)-3 PROD Demand'!H80+'FR-16(7)(v)-4 PROD Energy'!H80+'FR-16(7)(v)-5 PROD Cust'!H80+'FR-16(7)(v)-7 TRANS Demand'!H80+'FR-16(7)(v)-8 TRANS Energy'!H80+'FR-16(7)(v)-9 TRANS Cust'!H80+'FR-16(7)(v)-11 DIST Demand'!H80+'FR-16(7)(v)-12 DIST Energy'!H80+'FR-16(7)(v)-13 DIST Cust'!H80","v":8491514},{"$f":"'FR-16(7)(v)-3 PROD Demand'!I80+'FR-16(7)(v)-4 PROD Energy'!I80+'FR-16(7)(v)-5 PROD Cust'!I80+'FR-16(7)(v)-7 TRANS Demand'!I80+'FR-16(7)(v)-8 TRANS Energy'!I80+'FR-16(7)(v)-9 TRANS Cust'!I80+'FR-16(7)(v)-11 DIST Demand'!I80+'FR-16(7)(v)-12 DIST Energy'!I80+'FR-16(7)(v)-13 DIST Cust'!I80","v":39513},{"$f":"'FR-16(7)(v)-3 PROD Demand'!J80+'FR-16(7)(v)-4 PROD Energy'!J80+'FR-16(7)(v)-5 PROD Cust'!J80+'FR-16(7)(v)-7 TRANS Demand'!J80+'FR-16(7)(v)-8 TRANS Energy'!J80+'FR-16(7)(v)-9 TRANS Cust'!J80+'FR-16(7)(v)-11 DIST Demand'!J80+'FR-16(7)(v)-12 DIST Energy'!J80+'FR-16(7)(v)-13 DIST Cust'!J80","v":186230},{"$f":"'FR-16(7)(v)-3 PROD Demand'!K80+'FR-16(7)(v)-4 PROD Energy'!K80+'FR-16(7)(v)-5 PROD Cust'!K80+'FR-16(7)(v)-7 TRANS Demand'!K80+'FR-16(7)(v)-8 TRANS Energy'!K80+'FR-16(7)(v)-9 TRANS Cust'!K80+'FR-16(7)(v)-11 DIST Demand'!K80+'FR-16(7)(v)-12 DIST Energy'!K80+'FR-16(7)(v)-13 DIST Cust'!K80","v":2144},{"$f":"'FR-16(7)(v)-3 PROD Demand'!L80+'FR-16(7)(v)-4 PROD Energy'!L80+'FR-16(7)(v)-5 PROD Cust'!L80+'FR-16(7)(v)-7 TRANS Demand'!L80+'FR-16(7)(v)-8 TRANS Energy'!L80+'FR-16(7)(v)-9 TRANS Cust'!L80+'FR-16(7)(v)-11 DIST Demand'!L80+'FR-16(7)(v)-12 DIST Energy'!L80+'FR-16(7)(v)-13 DIST Cust'!L80","v":4336574},{"$f":"'FR-16(7)(v)-3 PROD Demand'!M80+'FR-16(7)(v)-4 PROD Energy'!M80+'FR-16(7)(v)-5 PROD Cust'!M80+'FR-16(7)(v)-7 TRANS Demand'!M80+'FR-16(7)(v)-8 TRANS Energy'!M80+'FR-16(7)(v)-9 TRANS Cust'!M80+'FR-16(7)(v)-11 DIST Demand'!M80+'FR-16(7)(v)-12 DIST Energy'!M80+'FR-16(7)(v)-13 DIST Cust'!M80","v":2856234},{"$f":"'FR-16(7)(v)-3 PROD Demand'!N80+'FR-16(7)(v)-4 PROD Energy'!N80+'FR-16(7)(v)-5 PROD Cust'!N80+'FR-16(7)(v)-7 TRANS Demand'!N80+'FR-16(7)(v)-8 TRANS Energy'!N80+'FR-16(7)(v)-9 TRANS Cust'!N80+'FR-16(7)(v)-11 DIST Demand'!N80+'FR-16(7)(v)-12 DIST Energy'!N80+'FR-16(7)(v)-13 DIST Cust'!N80","v":143348},{"$f":"'FR-16(7)(v)-3 PROD Demand'!O80+'FR-16(7)(v)-4 PROD Energy'!O80+'FR-16(7)(v)-5 PROD Cust'!O80+'FR-16(7)(v)-7 TRANS Demand'!O80+'FR-16(7)(v)-8 TRANS Energy'!O80+'FR-16(7)(v)-9 TRANS Cust'!O80+'FR-16(7)(v)-11 DIST Demand'!O80+'FR-16(7)(v)-12 DIST Energy'!O80+'FR-16(7)(v)-13 DIST Cust'!O80","v":0},{"$f":"'FR-16(7)(v)-3 PROD Demand'!P80+'FR-16(7)(v)-4 PROD Energy'!P80+'FR-16(7)(v)-5 PROD Cust'!P80+'FR-16(7)(v)-7 TRANS Demand'!P80+'FR-16(7)(v)-8 TRANS Energy'!P80+'FR-16(7)(v)-9 TRANS Cust'!P80+'FR-16(7)(v)-11 DIST Demand'!P80+'FR-16(7)(v)-12 DIST Energy'!P80+'FR-16(7)(v)-13 DIST Cust'!P80","v":192355},{"$f":"'FR-16(7)(v)-3 PROD Demand'!Q80+'FR-16(7)(v)-4 PROD Energy'!Q80+'FR-16(7)(v)-5 PROD Cust'!Q80+'FR-16(7)(v)-7 TRANS Demand'!Q80+'FR-16(7)(v)-8 TRANS Energy'!Q80+'FR-16(7)(v)-9 TRANS Cust'!Q80+'FR-16(7)(v)-11 DIST Demand'!Q80+'FR-16(7)(v)-12 DIST Energy'!Q80+'FR-16(7)(v)-13 DIST Cust'!Q80","v":3369},30629852,0]
[24,null,{"$f":"'FR-16(7)(v)-1 Functional'!C81","v":"CONDUCTORS - OVERHEAD / SECONDARY - CUSTOMER"},{"$f":"'FR-16(7)(v)-1 Functional'!D81","v":"K405"},null,{"$f":"'FR-16(7)(v)-1 Functional'!F81","v":6804493},{"$f":"'FR-16(7)(v)-3 PROD Demand'!G81+'FR-16(7)(v)-4 PROD Energy'!G81+'FR-16(7)(v)-5 PROD Cust'!G81+'FR-16(7)(v)-7 TRANS Demand'!G81+'FR-16(7)(v)-8 TRANS Energy'!G81+'FR-16(7)(v)-9 TRANS Cust'!G81+'FR-16(7)(v)-11 DIST Demand'!G81+'FR-16(7)(v)-12 DIST Energy'!G81+'FR-16(7)(v)-13 DIST Cust'!G81","v":6137995},{"$f":"'FR-16(7)(v)-3 PROD Demand'!H81+'FR-16(7)(v)-4 PROD Energy'!H81+'FR-16(7)(v)-5 PROD Cust'!H81+'FR-16(7)(v)-7 TRANS Demand'!H81+'FR-16(7)(v)-8 TRANS Energy'!H81+'FR-16(7)(v)-9 TRANS Cust'!H81+'FR-16(7)(v)-11 DIST Demand'!H81+'FR-16(7)(v)-12 DIST Energy'!H81+'FR-16(7)(v)-13 DIST Cust'!H81","v":619889},{"$f":"'FR-16(7)(v)-3 PROD Demand'!I81+'FR-16(7)(v)-4 PROD Energy'!I81+'FR-16(7)(v)-5 PROD Cust'!I81+'FR-16(7)(v)-7 TRANS Demand'!I81+'FR-16(7)(v)-8 TRANS Energy'!I81+'FR-16(7)(v)-9 TRANS Cust'!I81+'FR-16(7)(v)-11 DIST Demand'!I81+'FR-16(7)(v)-12 DIST Energy'!I81+'FR-16(7)(v)-13 DIST Cust'!I81","v":8233},{"$f":"'FR-16(7)(v)-3 PROD Demand'!J81+'FR-16(7)(v)-4 PROD Energy'!J81+'FR-16(7)(v)-5 PROD Cust'!J81+'FR-16(7)(v)-7 TRANS Demand'!J81+'FR-16(7)(v)-8 TRANS Energy'!J81+'FR-16(7)(v)-9 TRANS Cust'!J81+'FR-16(7)(v)-11 DIST Demand'!J81+'FR-16(7)(v)-12 DIST Energy'!J81+'FR-16(7)(v)-13 DIST Cust'!J81","v":4899},{"$f":"'FR-16(7)(v)-3 PROD Demand'!K81+'FR-16(7)(v)-4 PROD Energy'!K81+'FR-16(7)(v)-5 PROD Cust'!K81+'FR-16(7)(v)-7 TRANS Demand'!K81+'FR-16(7)(v)-8 TRANS Energy'!K81+'FR-16(7)(v)-9 TRANS Cust'!K81+'FR-16(7)(v)-11 DIST Demand'!K81+'FR-16(7)(v)-12 DIST Energy'!K81+'FR-16(7)(v)-13 DIST Cust'!K81","v":680},{"$f":"'FR-16(7)(v)-3 PROD Demand'!L81+'FR-16(7)(v)-4 PROD Energy'!L81+'FR-16(7)(v)-5 PROD Cust'!L81+'FR-16(7)(v)-7 TRANS Demand'!L81+'FR-16(7)(v)-8 TRANS Energy'!L81+'FR-16(7)(v)-9 TRANS Cust'!L81+'FR-16(7)(v)-11 DIST Demand'!L81+'FR-16(7)(v)-12 DIST Energy'!L81+'FR-16(7)(v)-13 DIST Cust'!L81","v":7621},{"$f":"'FR-16(7)(v)-3 PROD Demand'!M81+'FR-16(7)(v)-4 PROD Energy'!M81+'FR-16(7)(v)-5 PROD Cust'!M81+'FR-16(7)(v)-7 TRANS Demand'!M81+'FR-16(7)(v)-8 TRANS Energy'!M81+'FR-16(7)(v)-9 TRANS Cust'!M81+'FR-16(7)(v)-11 DIST Demand'!M81+'FR-16(7)(v)-12 DIST Energy'!M81+'FR-16(7)(v)-13 DIST Cust'!M81","v":1769},{"$f":"'FR-16(7)(v)-3 PROD Demand'!N81+'FR-16(7)(v)-4 PROD Energy'!N81+'FR-16(7)(v)-5 PROD Cust'!N81+'FR-16(7)(v)-7 TRANS Demand'!N81+'FR-16(7)(v)-8 TRANS Energy'!N81+'FR-16(7)(v)-9 TRANS Cust'!N81+'FR-16(7)(v)-11 DIST Demand'!N81+'FR-16(7)(v)-12 DIST Energy'!N81+'FR-16(7)(v)-13 DIST Cust'!N81","v":476},{"$f":"'FR-16(7)(v)-3 PROD Demand'!O81+'FR-16(7)(v)-4 PROD Energy'!O81+'FR-16(7)(v)-5 PROD Cust'!O81+'FR-16(7)(v)-7 TRANS Demand'!O81+'FR-16(7)(v)-8 TRANS Energy'!O81+'FR-16(7)(v)-9 TRANS Cust'!O81+'FR-16(7)(v)-11 DIST Demand'!O81+'FR-16(7)(v)-12 DIST Energy'!O81+'FR-16(7)(v)-13 DIST Cust'!O81","v":0},{"$f":"'FR-16(7)(v)-3 PROD Demand'!P81+'FR-16(7)(v)-4 PROD Energy'!P81+'FR-16(7)(v)-5 PROD Cust'!P81+'FR-16(7)(v)-7 TRANS Demand'!P81+'FR-16(7)(v)-8 TRANS Energy'!P81+'FR-16(7)(v)-9 TRANS Cust'!P81+'FR-16(7)(v)-11 DIST Demand'!P81+'FR-16(7)(v)-12 DIST Energy'!P81+'FR-16(7)(v)-13 DIST Cust'!P81","v":22387},{"$f":"'FR-16(7)(v)-3 PROD Demand'!Q81+'FR-16(7)(v)-4 PROD Energy'!Q81+'FR-16(7)(v)-5 PROD Cust'!Q81+'FR-16(7)(v)-7 TRANS Demand'!Q81+'FR-16(7)(v)-8 TRANS Energy'!Q81+'FR-16(7)(v)-9 TRANS Cust'!Q81+'FR-16(7)(v)-11 DIST Demand'!Q81+'FR-16(7)(v)-12 DIST Energy'!Q81+'FR-16(7)(v)-13 DIST Cust'!Q81","v":544},6804493,0]
[25,null,{"$f":"'FR-16(7)(v)-1 Functional'!C82","v":"CONDUCTORS - UNDERGROUND / PRIMARY - DEMAND"},{"$f":"'FR-16(7)(v)-1 Functional'!D82","v":"K205"},null,{"$f":"'FR-16(7)(v)-1 Functional'!F82","v":56141307},{"$f":"'FR-16(7)(v)-3 PROD Demand'!G82+'FR-16(7)(v)-4 PROD Energy'!G82+'FR-16(7)(v)-5 PROD Cust'!G82+'FR-16(7)(v)-7 TRANS Demand'!G82+'FR-16(7)(v)-8 TRANS Energy'!G82+'FR-16(7)(v)-9 TRANS Cust'!G82+'FR-16(7)(v)-11 DIST Demand'!G82+'FR-16(7)(v)-12 DIST Energy'!G82+'FR-16(7)(v)-13 DIST Cust'!G82","v":26354414},{"$f":"'FR-16(7)(v)-3 PROD Demand'!H82+'FR-16(7)(v)-4 PROD Energy'!H82+'FR-16(7)(v)-5 PROD Cust'!H82+'FR-16(7)(v)-7 TRANS Demand'!H82+'FR-16(7)(v)-8 TRANS Energy'!H82+'FR-16(7)(v)-9 TRANS Cust'!H82+'FR-16(7)(v)-11 DIST Demand'!H82+'FR-16(7)(v)-12 DIST Energy'!H82+'FR-16(7)(v)-13 DIST Cust'!H82","v":15564055},{"$f":"'FR-16(7)(v)-3 PROD Demand'!I82+'FR-16(7)(v)-4 PROD Energy'!I82+'FR-16(7)(v)-5 PROD Cust'!I82+'FR-16(7)(v)-7 TRANS Demand'!I82+'FR-16(7)(v)-8 TRANS Energy'!I82+'FR-16(7)(v)-9 TRANS Cust'!I82+'FR-16(7)(v)-11 DIST Demand'!I82+'FR-16(7)(v)-12 DIST Energy'!I82+'FR-16(7)(v)-13 DIST Cust'!I82","v":72422},{"$f":"'FR-16(7)(v)-3 PROD Demand'!J82+'FR-16(7)(v)-4 PROD Energy'!J82+'FR-16(7)(v)-5 PROD Cust'!J82+'FR-16(7)(v)-7 TRANS Demand'!J82+'FR-16(7)(v)-8 TRANS Energy'!J82+'FR-16(7)(v)-9 TRANS Cust'!J82+'FR-16(7)(v)-11 DIST Demand'!J82+'FR-16(7)(v)-12 DIST Energy'!J82+'FR-16(7)(v)-13 DIST Cust'!J82","v":341339},{"$f":"'FR-16(7)(v)-3 PROD Demand'!K82+'FR-16(7)(v)-4 PROD Energy'!K82+'FR-16(7)(v)-5 PROD Cust'!K82+'FR-16(7)(v)-7 TRANS Demand'!K82+'FR-16(7)(v)-8 TRANS Energy'!K82+'FR-16(7)(v)-9 TRANS Cust'!K82+'FR-16(7)(v)-11 DIST Demand'!K82+'FR-16(7)(v)-12 DIST Energy'!K82+'FR-16(7)(v)-13 DIST Cust'!K82","v":3930},{"$f":"'FR-16(7)(v)-3 PROD Demand'!L82+'FR-16(7)(v)-4 PROD Energy'!L82+'FR-16(7)(v)-5 PROD Cust'!L82+'FR-16(7)(v)-7 TRANS Demand'!L82+'FR-16(7)(v)-8 TRANS Energy'!L82+'FR-16(7)(v)-9 TRANS Cust'!L82+'FR-16(7)(v)-11 DIST Demand'!L82+'FR-16(7)(v)-12 DIST Energy'!L82+'FR-16(7)(v)-13 DIST Cust'!L82","v":7948486},{"$f":"'FR-16(7)(v)-3 PROD Demand'!M82+'FR-16(7)(v)-4 PROD Energy'!M82+'FR-16(7)(v)-5 PROD Cust'!M82+'FR-16(7)(v)-7 TRANS Demand'!M82+'FR-16(7)(v)-8 TRANS Energy'!M82+'FR-16(7)(v)-9 TRANS Cust'!M82+'FR-16(7)(v)-11 DIST Demand'!M82+'FR-16(7)(v)-12 DIST Energy'!M82+'FR-16(7)(v)-13 DIST Cust'!M82","v":5235177},{"$f":"'FR-16(7)(v)-3 PROD Demand'!N82+'FR-16(7)(v)-4 PROD Energy'!N82+'FR-16(7)(v)-5 PROD Cust'!N82+'FR-16(7)(v)-7 TRANS Demand'!N82+'FR-16(7)(v)-8 TRANS Energy'!N82+'FR-16(7)(v)-9 TRANS Cust'!N82+'FR-16(7)(v)-11 DIST Demand'!N82+'FR-16(7)(v)-12 DIST Energy'!N82+'FR-16(7)(v)-13 DIST Cust'!N82","v":262741},{"$f":"'FR-16(7)(v)-3 PROD Demand'!O82+'FR-16(7)(v)-4 PROD Energy'!O82+'FR-16(7)(v)-5 PROD Cust'!O82+'FR-16(7)(v)-7 TRANS Demand'!O82+'FR-16(7)(v)-8 TRANS Energy'!O82+'FR-16(7)(v)-9 TRANS Cust'!O82+'FR-16(7)(v)-11 DIST Demand'!O82+'FR-16(7)(v)-12 DIST Energy'!O82+'FR-16(7)(v)-13 DIST Cust'!O82","v":0},{"$f":"'FR-16(7)(v)-3 PROD Demand'!P82+'FR-16(7)(v)-4 PROD Energy'!P82+'FR-16(7)(v)-5 PROD Cust'!P82+'FR-16(7)(v)-7 TRANS Demand'!P82+'FR-16(7)(v)-8 TRANS Energy'!P82+'FR-16(7)(v)-9 TRANS Cust'!P82+'FR-16(7)(v)-11 DIST Demand'!P82+'FR-16(7)(v)-12 DIST Energy'!P82+'FR-16(7)(v)-13 DIST Cust'!P82","v":352567},{"$f":"'FR-16(7)(v)-3 PROD Demand'!Q82+'FR-16(7)(v)-4 PROD Energy'!Q82+'FR-16(7)(v)-5 PROD Cust'!Q82+'FR-16(7)(v)-7 TRANS Demand'!Q82+'FR-16(7)(v)-8 TRANS Energy'!Q82+'FR-16(7)(v)-9 TRANS Cust'!Q82+'FR-16(7)(v)-11 DIST Demand'!Q82+'FR-16(7)(v)-12 DIST Energy'!Q82+'FR-16(7)(v)-13 DIST Cust'!Q82","v":6176},56141307,0]
[26,null,{"$f":"'FR-16(7)(v)-1 Functional'!C83","v":"CONDUCTORS - UNDERGROUND / PRIMARY - CUSTOMER"},{"$f":"'FR-16(7)(v)-1 Functional'!D83","v":"K405"},null,{"$f":"'FR-16(7)(v)-1 Functional'!F83","v":17434066},{"$f":"'FR-16(7)(v)-3 PROD Demand'!G83+'FR-16(7)(v)-4 PROD Energy'!G83+'FR-16(7)(v)-5 PROD Cust'!G83+'FR-16(7)(v)-7 TRANS Demand'!G83+'FR-16(7)(v)-8 TRANS Energy'!G83+'FR-16(7)(v)-9 TRANS Cust'!G83+'FR-16(7)(v)-11 DIST Demand'!G83+'FR-16(7)(v)-12 DIST Energy'!G83+'FR-16(7)(v)-13 DIST Cust'!G83","v":15726400},{"$f":"'FR-16(7)(v)-3 PROD Demand'!H83+'FR-16(7)(v)-4 PROD Energy'!H83+'FR-16(7)(v)-5 PROD Cust'!H83+'FR-16(7)(v)-7 TRANS Demand'!H83+'FR-16(7)(v)-8 TRANS Energy'!H83+'FR-16(7)(v)-9 TRANS Cust'!H83+'FR-16(7)(v)-11 DIST Demand'!H83+'FR-16(7)(v)-12 DIST Energy'!H83+'FR-16(7)(v)-13 DIST Cust'!H83","v":1588243},{"$f":"'FR-16(7)(v)-3 PROD Demand'!I83+'FR-16(7)(v)-4 PROD Energy'!I83+'FR-16(7)(v)-5 PROD Cust'!I83+'FR-16(7)(v)-7 TRANS Demand'!I83+'FR-16(7)(v)-8 TRANS Energy'!I83+'FR-16(7)(v)-9 TRANS Cust'!I83+'FR-16(7)(v)-11 DIST Demand'!I83+'FR-16(7)(v)-12 DIST Energy'!I83+'FR-16(7)(v)-13 DIST Cust'!I83","v":21095},{"$f":"'FR-16(7)(v)-3 PROD Demand'!J83+'FR-16(7)(v)-4 PROD Energy'!J83+'FR-16(7)(v)-5 PROD Cust'!J83+'FR-16(7)(v)-7 TRANS Demand'!J83+'FR-16(7)(v)-8 TRANS Energy'!J83+'FR-16(7)(v)-9 TRANS Cust'!J83+'FR-16(7)(v)-11 DIST Demand'!J83+'FR-16(7)(v)-12 DIST Energy'!J83+'FR-16(7)(v)-13 DIST Cust'!J83","v":12553},{"$f":"'FR-16(7)(v)-3 PROD Demand'!K83+'FR-16(7)(v)-4 PROD Energy'!K83+'FR-16(7)(v)-5 PROD Cust'!K83+'FR-16(7)(v)-7 TRANS Demand'!K83+'FR-16(7)(v)-8 TRANS Energy'!K83+'FR-16(7)(v)-9 TRANS Cust'!K83+'FR-16(7)(v)-11 DIST Demand'!K83+'FR-16(7)(v)-12 DIST Energy'!K83+'FR-16(7)(v)-13 DIST Cust'!K83","v":1743},{"$f":"'FR-16(7)(v)-3 PROD Demand'!L83+'FR-16(7)(v)-4 PROD Energy'!L83+'FR-16(7)(v)-5 PROD Cust'!L83+'FR-16(7)(v)-7 TRANS Demand'!L83+'FR-16(7)(v)-8 TRANS Energy'!L83+'FR-16(7)(v)-9 TRANS Cust'!L83+'FR-16(7)(v)-11 DIST Demand'!L83+'FR-16(7)(v)-12 DIST Energy'!L83+'FR-16(7)(v)-13 DIST Cust'!L83","v":19526},{"$f":"'FR-16(7)(v)-3 PROD Demand'!M83+'FR-16(7)(v)-4 PROD Energy'!M83+'FR-16(7)(v)-5 PROD Cust'!M83+'FR-16(7)(v)-7 TRANS Demand'!M83+'FR-16(7)(v)-8 TRANS Energy'!M83+'FR-16(7)(v)-9 TRANS Cust'!M83+'FR-16(7)(v)-11 DIST Demand'!M83+'FR-16(7)(v)-12 DIST Energy'!M83+'FR-16(7)(v)-13 DIST Cust'!M83","v":4533},{"$f":"'FR-16(7)(v)-3 PROD Demand'!N83+'FR-16(7)(v)-4 PROD Energy'!N83+'FR-16(7)(v)-5 PROD Cust'!N83+'FR-16(7)(v)-7 TRANS Demand'!N83+'FR-16(7)(v)-8 TRANS Energy'!N83+'FR-16(7)(v)-9 TRANS Cust'!N83+'FR-16(7)(v)-11 DIST Demand'!N83+'FR-16(7)(v)-12 DIST Energy'!N83+'FR-16(7)(v)-13 DIST Cust'!N83","v":1220},{"$f":"'FR-16(7)(v)-3 PROD Demand'!O83+'FR-16(7)(v)-4 PROD Energy'!O83+'FR-16(7)(v)-5 PROD Cust'!O83+'FR-16(7)(v)-7 TRANS Demand'!O83+'FR-16(7)(v)-8 TRANS Energy'!O83+'FR-16(7)(v)-9 TRANS Cust'!O83+'FR-16(7)(v)-11 DIST Demand'!O83+'FR-16(7)(v)-12 DIST Energy'!O83+'FR-16(7)(v)-13 DIST Cust'!O83","v":0},{"$f":"'FR-16(7)(v)-3 PROD Demand'!P83+'FR-16(7)(v)-4 PROD Energy'!P83+'FR-16(7)(v)-5 PROD Cust'!P83+'FR-16(7)(v)-7 TRANS Demand'!P83+'FR-16(7)(v)-8 TRANS Energy'!P83+'FR-16(7)(v)-9 TRANS Cust'!P83+'FR-16(7)(v)-11 DIST Demand'!P83+'FR-16(7)(v)-12 DIST Energy'!P83+'FR-16(7)(v)-13 DIST Cust'!P83","v":57358},{"$f":"'FR-16(7)(v)-3 PROD Demand'!Q83+'FR-16(7)(v)-4 PROD Energy'!Q83+'FR-16(7)(v)-5 PROD Cust'!Q83+'FR-16(7)(v)-7 TRANS Demand'!Q83+'FR-16(7)(v)-8 TRANS Energy'!Q83+'FR-16(7)(v)-9 TRANS Cust'!Q83+'FR-16(7)(v)-11 DIST Demand'!Q83+'FR-16(7)(v)-12 DIST Energy'!Q83+'FR-16(7)(v)-13 DIST Cust'!Q83","v":1395},17434066,0]
[27,null,{"$f":"'FR-16(7)(v)-1 Functional'!C84","v":"CONDUCTORS - UNDERGROUND / SECONDARY - DEMAND"},{"$f":"'FR-16(7)(v)-1 Functional'!D84","v":"K206"},null,{"$f":"'FR-16(7)(v)-1 Functional'!F84","v":9617808},{"$f":"'FR-16(7)(v)-3 PROD Demand'!G84+'FR-16(7)(v)-4 PROD Energy'!G84+'FR-16(7)(v)-5 PROD Cust'!G84+'FR-16(7)(v)-7 TRANS Demand'!G84+'FR-16(7)(v)-8 TRANS Energy'!G84+'FR-16(7)(v)-9 TRANS Cust'!G84+'FR-16(7)(v)-11 DIST Demand'!G84+'FR-16(7)(v)-12 DIST Energy'!G84+'FR-16(7)(v)-13 DIST Cust'!G84","v":4514888},{"$f":"'FR-16(7)(v)-3 PROD Demand'!H84+'FR-16(7)(v)-4 PROD Energy'!H84+'FR-16(7)(v)-5 PROD Cust'!H84+'FR-16(7)(v)-7 TRANS Demand'!H84+'FR-16(7)(v)-8 TRANS Energy'!H84+'FR-16(7)(v)-9 TRANS Cust'!H84+'FR-16(7)(v)-11 DIST Demand'!H84+'FR-16(7)(v)-12 DIST Energy'!H84+'FR-16(7)(v)-13 DIST Cust'!H84","v":2666345},{"$f":"'FR-16(7)(v)-3 PROD Demand'!I84+'FR-16(7)(v)-4 PROD Energy'!I84+'FR-16(7)(v)-5 PROD Cust'!I84+'FR-16(7)(v)-7 TRANS Demand'!I84+'FR-16(7)(v)-8 TRANS Energy'!I84+'FR-16(7)(v)-9 TRANS Cust'!I84+'FR-16(7)(v)-11 DIST Demand'!I84+'FR-16(7)(v)-12 DIST Energy'!I84+'FR-16(7)(v)-13 DIST Cust'!I84","v":12407},{"$f":"'FR-16(7)(v)-3 PROD Demand'!J84+'FR-16(7)(v)-4 PROD Energy'!J84+'FR-16(7)(v)-5 PROD Cust'!J84+'FR-16(7)(v)-7 TRANS Demand'!J84+'FR-16(7)(v)-8 TRANS Energy'!J84+'FR-16(7)(v)-9 TRANS Cust'!J84+'FR-16(7)(v)-11 DIST Demand'!J84+'FR-16(7)(v)-12 DIST Energy'!J84+'FR-16(7)(v)-13 DIST Cust'!J84","v":58476},{"$f":"'FR-16(7)(v)-3 PROD Demand'!K84+'FR-16(7)(v)-4 PROD Energy'!K84+'FR-16(7)(v)-5 PROD Cust'!K84+'FR-16(7)(v)-7 TRANS Demand'!K84+'FR-16(7)(v)-8 TRANS Energy'!K84+'FR-16(7)(v)-9 TRANS Cust'!K84+'FR-16(7)(v)-11 DIST Demand'!K84+'FR-16(7)(v)-12 DIST Energy'!K84+'FR-16(7)(v)-13 DIST Cust'!K84","v":673},{"$f":"'FR-16(7)(v)-3 PROD Demand'!L84+'FR-16(7)(v)-4 PROD Energy'!L84+'FR-16(7)(v)-5 PROD Cust'!L84+'FR-16(7)(v)-7 TRANS Demand'!L84+'FR-16(7)(v)-8 TRANS Energy'!L84+'FR-16(7)(v)-9 TRANS Cust'!L84+'FR-16(7)(v)-11 DIST Demand'!L84+'FR-16(7)(v)-12 DIST Energy'!L84+'FR-16(7)(v)-13 DIST Cust'!L84","v":1361689},{"$f":"'FR-16(7)(v)-3 PROD Demand'!M84+'FR-16(7)(v)-4 PROD Energy'!M84+'FR-16(7)(v)-5 PROD Cust'!M84+'FR-16(7)(v)-7 TRANS Demand'!M84+'FR-16(7)(v)-8 TRANS Energy'!M84+'FR-16(7)(v)-9 TRANS Cust'!M84+'FR-16(7)(v)-11 DIST Demand'!M84+'FR-16(7)(v)-12 DIST Energy'!M84+'FR-16(7)(v)-13 DIST Cust'!M84","v":896861},{"$f":"'FR-16(7)(v)-3 PROD Demand'!N84+'FR-16(7)(v)-4 PROD Energy'!N84+'FR-16(7)(v)-5 PROD Cust'!N84+'FR-16(7)(v)-7 TRANS Demand'!N84+'FR-16(7)(v)-8 TRANS Energy'!N84+'FR-16(7)(v)-9 TRANS Cust'!N84+'FR-16(7)(v)-11 DIST Demand'!N84+'FR-16(7)(v)-12 DIST Energy'!N84+'FR-16(7)(v)-13 DIST Cust'!N84","v":45011},{"$f":"'FR-16(7)(v)-3 PROD Demand'!O84+'FR-16(7)(v)-4 PROD Energy'!O84+'FR-16(7)(v)-5 PROD Cust'!O84+'FR-16(7)(v)-7 TRANS Demand'!O84+'FR-16(7)(v)-8 TRANS Energy'!O84+'FR-16(7)(v)-9 TRANS Cust'!O84+'FR-16(7)(v)-11 DIST Demand'!O84+'FR-16(7)(v)-12 DIST Energy'!O84+'FR-16(7)(v)-13 DIST Cust'!O84","v":0},{"$f":"'FR-16(7)(v)-3 PROD Demand'!P84+'FR-16(7)(v)-4 PROD Energy'!P84+'FR-16(7)(v)-5 PROD Cust'!P84+'FR-16(7)(v)-7 TRANS Demand'!P84+'FR-16(7)(v)-8 TRANS Energy'!P84+'FR-16(7)(v)-9 TRANS Cust'!P84+'FR-16(7)(v)-11 DIST Demand'!P84+'FR-16(7)(v)-12 DIST Energy'!P84+'FR-16(7)(v)-13 DIST Cust'!P84","v":60400},{"$f":"'FR-16(7)(v)-3 PROD Demand'!Q84+'FR-16(7)(v)-4 PROD Energy'!Q84+'FR-16(7)(v)-5 PROD Cust'!Q84+'FR-16(7)(v)-7 TRANS Demand'!Q84+'FR-16(7)(v)-8 TRANS Energy'!Q84+'FR-16(7)(v)-9 TRANS Cust'!Q84+'FR-16(7)(v)-11 DIST Demand'!Q84+'FR-16(7)(v)-12 DIST Energy'!Q84+'FR-16(7)(v)-13 DIST Cust'!Q84","v":1058},9617808,0]
[28,null,{"$f":"'FR-16(7)(v)-1 Functional'!C85","v":"CONDUCTORS - UNDERGROUND / SECONDARY - CUSTOMER"},{"$f":"'FR-16(7)(v)-1 Functional'!D85","v":"K405"},null,{"$f":"'FR-16(7)(v)-1 Functional'!F85","v":5451847},{"$f":"'FR-16(7)(v)-3 PROD Demand'!G85+'FR-16(7)(v)-4 PROD Energy'!G85+'FR-16(7)(v)-5 PROD Cust'!G85+'FR-16(7)(v)-7 TRANS Demand'!G85+'FR-16(7)(v)-8 TRANS Energy'!G85+'FR-16(7)(v)-9 TRANS Cust'!G85+'FR-16(7)(v)-11 DIST Demand'!G85+'FR-16(7)(v)-12 DIST Energy'!G85+'FR-16(7)(v)-13 DIST Cust'!G85","v":4917839},{"$f":"'FR-16(7)(v)-3 PROD Demand'!H85+'FR-16(7)(v)-4 PROD Energy'!H85+'FR-16(7)(v)-5 PROD Cust'!H85+'FR-16(7)(v)-7 TRANS Demand'!H85+'FR-16(7)(v)-8 TRANS Energy'!H85+'FR-16(7)(v)-9 TRANS Cust'!H85+'FR-16(7)(v)-11 DIST Demand'!H85+'FR-16(7)(v)-12 DIST Energy'!H85+'FR-16(7)(v)-13 DIST Cust'!H85","v":496663},{"$f":"'FR-16(7)(v)-3 PROD Demand'!I85+'FR-16(7)(v)-4 PROD Energy'!I85+'FR-16(7)(v)-5 PROD Cust'!I85+'FR-16(7)(v)-7 TRANS Demand'!I85+'FR-16(7)(v)-8 TRANS Energy'!I85+'FR-16(7)(v)-9 TRANS Cust'!I85+'FR-16(7)(v)-11 DIST Demand'!I85+'FR-16(7)(v)-12 DIST Energy'!I85+'FR-16(7)(v)-13 DIST Cust'!I85","v":6597},{"$f":"'FR-16(7)(v)-3 PROD Demand'!J85+'FR-16(7)(v)-4 PROD Energy'!J85+'FR-16(7)(v)-5 PROD Cust'!J85+'FR-16(7)(v)-7 TRANS Demand'!J85+'FR-16(7)(v)-8 TRANS Energy'!J85+'FR-16(7)(v)-9 TRANS Cust'!J85+'FR-16(7)(v)-11 DIST Demand'!J85+'FR-16(7)(v)-12 DIST Energy'!J85+'FR-16(7)(v)-13 DIST Cust'!J85","v":3925},{"$f":"'FR-16(7)(v)-3 PROD Demand'!K85+'FR-16(7)(v)-4 PROD Energy'!K85+'FR-16(7)(v)-5 PROD Cust'!K85+'FR-16(7)(v)-7 TRANS Demand'!K85+'FR-16(7)(v)-8 TRANS Energy'!K85+'FR-16(7)(v)-9 TRANS Cust'!K85+'FR-16(7)(v)-11 DIST Demand'!K85+'FR-16(7)(v)-12 DIST Energy'!K85+'FR-16(7)(v)-13 DIST Cust'!K85","v":545},{"$f":"'FR-16(7)(v)-3 PROD Demand'!L85+'FR-16(7)(v)-4 PROD Energy'!L85+'FR-16(7)(v)-5 PROD Cust'!L85+'FR-16(7)(v)-7 TRANS Demand'!L85+'FR-16(7)(v)-8 TRANS Energy'!L85+'FR-16(7)(v)-9 TRANS Cust'!L85+'FR-16(7)(v)-11 DIST Demand'!L85+'FR-16(7)(v)-12 DIST Energy'!L85+'FR-16(7)(v)-13 DIST Cust'!L85","v":6106},{"$f":"'FR-16(7)(v)-3 PROD Demand'!M85+'FR-16(7)(v)-4 PROD Energy'!M85+'FR-16(7)(v)-5 PROD Cust'!M85+'FR-16(7)(v)-7 TRANS Demand'!M85+'FR-16(7)(v)-8 TRANS Energy'!M85+'FR-16(7)(v)-9 TRANS Cust'!M85+'FR-16(7)(v)-11 DIST Demand'!M85+'FR-16(7)(v)-12 DIST Energy'!M85+'FR-16(7)(v)-13 DIST Cust'!M85","v":1417},{"$f":"'FR-16(7)(v)-3 PROD Demand'!N85+'FR-16(7)(v)-4 PROD Energy'!N85+'FR-16(7)(v)-5 PROD Cust'!N85+'FR-16(7)(v)-7 TRANS Demand'!N85+'FR-16(7)(v)-8 TRANS Energy'!N85+'FR-16(7)(v)-9 TRANS Cust'!N85+'FR-16(7)(v)-11 DIST Demand'!N85+'FR-16(7)(v)-12 DIST Energy'!N85+'FR-16(7)(v)-13 DIST Cust'!N85","v":382},{"$f":"'FR-16(7)(v)-3 PROD Demand'!O85+'FR-16(7)(v)-4 PROD Energy'!O85+'FR-16(7)(v)-5 PROD Cust'!O85+'FR-16(7)(v)-7 TRANS Demand'!O85+'FR-16(7)(v)-8 TRANS Energy'!O85+'FR-16(7)(v)-9 TRANS Cust'!O85+'FR-16(7)(v)-11 DIST Demand'!O85+'FR-16(7)(v)-12 DIST Energy'!O85+'FR-16(7)(v)-13 DIST Cust'!O85","v":0},{"$f":"'FR-16(7)(v)-3 PROD Demand'!P85+'FR-16(7)(v)-4 PROD Energy'!P85+'FR-16(7)(v)-5 PROD Cust'!P85+'FR-16(7)(v)-7 TRANS Demand'!P85+'FR-16(7)(v)-8 TRANS Energy'!P85+'FR-16(7)(v)-9 TRANS Cust'!P85+'FR-16(7)(v)-11 DIST Demand'!P85+'FR-16(7)(v)-12 DIST Energy'!P85+'FR-16(7)(v)-13 DIST Cust'!P85","v":17937},{"$f":"'FR-16(7)(v)-3 PROD Demand'!Q85+'FR-16(7)(v)-4 PROD Energy'!Q85+'FR-16(7)(v)-5 PROD Cust'!Q85+'FR-16(7)(v)-7 TRANS Demand'!Q85+'FR-16(7)(v)-8 TRANS Energy'!Q85+'FR-16(7)(v)-9 TRANS Cust'!Q85+'FR-16(7)(v)-11 DIST Demand'!Q85+'FR-16(7)(v)-12 DIST Energy'!Q85+'FR-16(7)(v)-13 DIST Cust'!Q85","v":436},5451847,0]
[29,null,{"$f":"'FR-16(7)(v)-1 Functional'!C86","v":"TRANSFORMERS DEMAND RELATED"},{"$f":"'FR-16(7)(v)-1 Functional'!D86","v":"K215"},null,{"$f":"'FR-16(7)(v)-1 Functional'!F86","v":47116092},{"$f":"'FR-16(7)(v)-3 PROD Demand'!G86+'FR-16(7)(v)-4 PROD Energy'!G86+'FR-16(7)(v)-5 PROD Cust'!G86+'FR-16(7)(v)-7 TRANS Demand'!G86+'FR-16(7)(v)-8 TRANS Energy'!G86+'FR-16(7)(v)-9 TRANS Cust'!G86+'FR-16(7)(v)-11 DIST Demand'!G86+'FR-16(7)(v)-12 DIST Energy'!G86+'FR-16(7)(v)-13 DIST Cust'!G86","v":22117707},{"$f":"'FR-16(7)(v)-3 PROD Demand'!H86+'FR-16(7)(v)-4 PROD Energy'!H86+'FR-16(7)(v)-5 PROD Cust'!H86+'FR-16(7)(v)-7 TRANS Demand'!H86+'FR-16(7)(v)-8 TRANS Energy'!H86+'FR-16(7)(v)-9 TRANS Cust'!H86+'FR-16(7)(v)-11 DIST Demand'!H86+'FR-16(7)(v)-12 DIST Energy'!H86+'FR-16(7)(v)-13 DIST Cust'!H86","v":13061994},{"$f":"'FR-16(7)(v)-3 PROD Demand'!I86+'FR-16(7)(v)-4 PROD Energy'!I86+'FR-16(7)(v)-5 PROD Cust'!I86+'FR-16(7)(v)-7 TRANS Demand'!I86+'FR-16(7)(v)-8 TRANS Energy'!I86+'FR-16(7)(v)-9 TRANS Cust'!I86+'FR-16(7)(v)-11 DIST Demand'!I86+'FR-16(7)(v)-12 DIST Energy'!I86+'FR-16(7)(v)-13 DIST Cust'!I86","v":60780},{"$f":"'FR-16(7)(v)-3 PROD Demand'!J86+'FR-16(7)(v)-4 PROD Energy'!J86+'FR-16(7)(v)-5 PROD Cust'!J86+'FR-16(7)(v)-7 TRANS Demand'!J86+'FR-16(7)(v)-8 TRANS Energy'!J86+'FR-16(7)(v)-9 TRANS Cust'!J86+'FR-16(7)(v)-11 DIST Demand'!J86+'FR-16(7)(v)-12 DIST Energy'!J86+'FR-16(7)(v)-13 DIST Cust'!J86","v":286466},{"$f":"'FR-16(7)(v)-3 PROD Demand'!K86+'FR-16(7)(v)-4 PROD Energy'!K86+'FR-16(7)(v)-5 PROD Cust'!K86+'FR-16(7)(v)-7 TRANS Demand'!K86+'FR-16(7)(v)-8 TRANS Energy'!K86+'FR-16(7)(v)-9 TRANS Cust'!K86+'FR-16(7)(v)-11 DIST Demand'!K86+'FR-16(7)(v)-12 DIST Energy'!K86+'FR-16(7)(v)-13 DIST Cust'!K86","v":3298},{"$f":"'FR-16(7)(v)-3 PROD Demand'!L86+'FR-16(7)(v)-4 PROD Energy'!L86+'FR-16(7)(v)-5 PROD Cust'!L86+'FR-16(7)(v)-7 TRANS Demand'!L86+'FR-16(7)(v)-8 TRANS Energy'!L86+'FR-16(7)(v)-9 TRANS Cust'!L86+'FR-16(7)(v)-11 DIST Demand'!L86+'FR-16(7)(v)-12 DIST Energy'!L86+'FR-16(7)(v)-13 DIST Cust'!L86","v":6670696},{"$f":"'FR-16(7)(v)-3 PROD Demand'!M86+'FR-16(7)(v)-4 PROD Energy'!M86+'FR-16(7)(v)-5 PROD Cust'!M86+'FR-16(7)(v)-7 TRANS Demand'!M86+'FR-16(7)(v)-8 TRANS Energy'!M86+'FR-16(7)(v)-9 TRANS Cust'!M86+'FR-16(7)(v)-11 DIST Demand'!M86+'FR-16(7)(v)-12 DIST Energy'!M86+'FR-16(7)(v)-13 DIST Cust'!M86","v":4393576},{"$f":"'FR-16(7)(v)-3 PROD Demand'!N86+'FR-16(7)(v)-4 PROD Energy'!N86+'FR-16(7)(v)-5 PROD Cust'!N86+'FR-16(7)(v)-7 TRANS Demand'!N86+'FR-16(7)(v)-8 TRANS Energy'!N86+'FR-16(7)(v)-9 TRANS Cust'!N86+'FR-16(7)(v)-11 DIST Demand'!N86+'FR-16(7)(v)-12 DIST Energy'!N86+'FR-16(7)(v)-13 DIST Cust'!N86","v":220503},{"$f":"'FR-16(7)(v)-3 PROD Demand'!O86+'FR-16(7)(v)-4 PROD Energy'!O86+'FR-16(7)(v)-5 PROD Cust'!O86+'FR-16(7)(v)-7 TRANS Demand'!O86+'FR-16(7)(v)-8 TRANS Energy'!O86+'FR-16(7)(v)-9 TRANS Cust'!O86+'FR-16(7)(v)-11 DIST Demand'!O86+'FR-16(7)(v)-12 DIST Energy'!O86+'FR-16(7)(v)-13 DIST Cust'!O86","v":0},{"$f":"'FR-16(7)(v)-3 PROD Demand'!P86+'FR-16(7)(v)-4 PROD Energy'!P86+'FR-16(7)(v)-5 PROD Cust'!P86+'FR-16(7)(v)-7 TRANS Demand'!P86+'FR-16(7)(v)-8 TRANS Energy'!P86+'FR-16(7)(v)-9 TRANS Cust'!P86+'FR-16(7)(v)-11 DIST Demand'!P86+'FR-16(7)(v)-12 DIST Energy'!P86+'FR-16(7)(v)-13 DIST Cust'!P86","v":295889},{"$f":"'FR-16(7)(v)-3 PROD Demand'!Q86+'FR-16(7)(v)-4 PROD Energy'!Q86+'FR-16(7)(v)-5 PROD Cust'!Q86+'FR-16(7)(v)-7 TRANS Demand'!Q86+'FR-16(7)(v)-8 TRANS Energy'!Q86+'FR-16(7)(v)-9 TRANS Cust'!Q86+'FR-16(7)(v)-11 DIST Demand'!Q86+'FR-16(7)(v)-12 DIST Energy'!Q86+'FR-16(7)(v)-13 DIST Cust'!Q86","v":5183},{"$f":"SUM(G86:Q86)","v":47116092},{"$f":"F86-R86","v":0}]
[30,null,{"$f":"'FR-16(7)(v)-1 Functional'!C87","v":"TRANSFORMERS CUSTOMER RELATED"},{"$f":"'FR-16(7)(v)-1 Functional'!D87","v":"K405"},null,{"$f":"'FR-16(7)(v)-1 Functional'!F87","v":15311023},{"$f":"'FR-16(7)(v)-3 PROD Demand'!G87+'FR-16(7)(v)-4 PROD Energy'!G87+'FR-16(7)(v)-5 PROD Cust'!G87+'FR-16(7)(v)-7 TRANS Demand'!G87+'FR-16(7)(v)-8 TRANS Energy'!G87+'FR-16(7)(v)-9 TRANS Cust'!G87+'FR-16(7)(v)-11 DIST Demand'!G87+'FR-16(7)(v)-12 DIST Energy'!G87+'FR-16(7)(v)-13 DIST Cust'!G87","v":13811309},{"$f":"'FR-16(7)(v)-3 PROD Demand'!H87+'FR-16(7)(v)-4 PROD Energy'!H87+'FR-16(7)(v)-5 PROD Cust'!H87+'FR-16(7)(v)-7 TRANS Demand'!H87+'FR-16(7)(v)-8 TRANS Energy'!H87+'FR-16(7)(v)-9 TRANS Cust'!H87+'FR-16(7)(v)-11 DIST Demand'!H87+'FR-16(7)(v)-12 DIST Energy'!H87+'FR-16(7)(v)-13 DIST Cust'!H87","v":1394834},{"$f":"'FR-16(7)(v)-3 PROD Demand'!I87+'FR-16(7)(v)-4 PROD Energy'!I87+'FR-16(7)(v)-5 PROD Cust'!I87+'FR-16(7)(v)-7 TRANS Demand'!I87+'FR-16(7)(v)-8 TRANS Energy'!I87+'FR-16(7)(v)-9 TRANS Cust'!I87+'FR-16(7)(v)-11 DIST Demand'!I87+'FR-16(7)(v)-12 DIST Energy'!I87+'FR-16(7)(v)-13 DIST Cust'!I87","v":18526},{"$f":"'FR-16(7)(v)-3 PROD Demand'!J87+'FR-16(7)(v)-4 PROD Energy'!J87+'FR-16(7)(v)-5 PROD Cust'!J87+'FR-16(7)(v)-7 TRANS Demand'!J87+'FR-16(7)(v)-8 TRANS Energy'!J87+'FR-16(7)(v)-9 TRANS Cust'!J87+'FR-16(7)(v)-11 DIST Demand'!J87+'FR-16(7)(v)-12 DIST Energy'!J87+'FR-16(7)(v)-13 DIST Cust'!J87","v":11024},{"$f":"'FR-16(7)(v)-3 PROD Demand'!K87+'FR-16(7)(v)-4 PROD Energy'!K87+'FR-16(7)(v)-5 PROD Cust'!K87+'FR-16(7)(v)-7 TRANS Demand'!K87+'FR-16(7)(v)-8 TRANS Energy'!K87+'FR-16(7)(v)-9 TRANS Cust'!K87+'FR-16(7)(v)-11 DIST Demand'!K87+'FR-16(7)(v)-12 DIST Energy'!K87+'FR-16(7)(v)-13 DIST Cust'!K87","v":1531},{"$f":"'FR-16(7)(v)-3 PROD Demand'!L87+'FR-16(7)(v)-4 PROD Energy'!L87+'FR-16(7)(v)-5 PROD Cust'!L87+'FR-16(7)(v)-7 TRANS Demand'!L87+'FR-16(7)(v)-8 TRANS Energy'!L87+'FR-16(7)(v)-9 TRANS Cust'!L87+'FR-16(7)(v)-11 DIST Demand'!L87+'FR-16(7)(v)-12 DIST Energy'!L87+'FR-16(7)(v)-13 DIST Cust'!L87","v":17148},{"$f":"'FR-16(7)(v)-3 PROD Demand'!M87+'FR-16(7)(v)-4 PROD Energy'!M87+'FR-16(7)(v)-5 PROD Cust'!M87+'FR-16(7)(v)-7 TRANS Demand'!M87+'FR-16(7)(v)-8 TRANS Energy'!M87+'FR-16(7)(v)-9 TRANS Cust'!M87+'FR-16(7)(v)-11 DIST Demand'!M87+'FR-16(7)(v)-12 DIST Energy'!M87+'FR-16(7)(v)-13 DIST Cust'!M87","v":3981},{"$f":"'FR-16(7)(v)-3 PROD Demand'!N87+'FR-16(7)(v)-4 PROD Energy'!N87+'FR-16(7)(v)-5 PROD Cust'!N87+'FR-16(7)(v)-7 TRANS Demand'!N87+'FR-16(7)(v)-8 TRANS Energy'!N87+'FR-16(7)(v)-9 TRANS Cust'!N87+'FR-16(7)(v)-11 DIST Demand'!N87+'FR-16(7)(v)-12 DIST Energy'!N87+'FR-16(7)(v)-13 DIST Cust'!N87","v":1072},{"$f":"'FR-16(7)(v)-3 PROD Demand'!O87+'FR-16(7)(v)-4 PROD Energy'!O87+'FR-16(7)(v)-5 PROD Cust'!O87+'FR-16(7)(v)-7 TRANS Demand'!O87+'FR-16(7)(v)-8 TRANS Energy'!O87+'FR-16(7)(v)-9 TRANS Cust'!O87+'FR-16(7)(v)-11 DIST Demand'!O87+'FR-16(7)(v)-12 DIST Energy'!O87+'FR-16(7)(v)-13 DIST Cust'!O87","v":0},{"$f":"'FR-16(7)(v)-3 PROD Demand'!P87+'FR-16(7)(v)-4 PROD Energy'!P87+'FR-16(7)(v)-5 PROD Cust'!P87+'FR-16(7)(v)-7 TRANS Demand'!P87+'FR-16(7)(v)-8 TRANS Energy'!P87+'FR-16(7)(v)-9 TRANS Cust'!P87+'FR-16(7)(v)-11 DIST Demand'!P87+'FR-16(7)(v)-12 DIST Energy'!P87+'FR-16(7)(v)-13 DIST Cust'!P87","v":50373},{"$f":"'FR-16(7)(v)-3 PROD Demand'!Q87+'FR-16(7)(v)-4 PROD Energy'!Q87+'FR-16(7)(v)-5 PROD Cust'!Q87+'FR-16(7)(v)-7 TRANS Demand'!Q87+'FR-16(7)(v)-8 TRANS Energy'!Q87+'FR-16(7)(v)-9 TRANS Cust'!Q87+'FR-16(7)(v)-11 DIST Demand'!Q87+'FR-16(7)(v)-12 DIST Energy'!Q87+'FR-16(7)(v)-13 DIST Cust'!Q87","v":1225},15311023,0]
[31,null,{"$f":"'FR-16(7)(v)-1 Functional'!C88","v":"SERVICES"},{"$f":"'FR-16(7)(v)-1 Functional'!D88","v":"K217"},null,{"$f":"'FR-16(7)(v)-1 Functional'!F88","v":21226508},{"$f":"'FR-16(7)(v)-3 PROD Demand'!G88+'FR-16(7)(v)-4 PROD Energy'!G88+'FR-16(7)(v)-5 PROD Cust'!G88+'FR-16(7)(v)-7 TRANS Demand'!G88+'FR-16(7)(v)-8 TRANS Energy'!G88+'FR-16(7)(v)-9 TRANS Cust'!G88+'FR-16(7)(v)-11 DIST Demand'!G88+'FR-16(7)(v)-12 DIST Energy'!G88+'FR-16(7)(v)-13 DIST Cust'!G88","v":18964823},{"$f":"'FR-16(7)(v)-3 PROD Demand'!H88+'FR-16(7)(v)-4 PROD Energy'!H88+'FR-16(7)(v)-5 PROD Cust'!H88+'FR-16(7)(v)-7 TRANS Demand'!H88+'FR-16(7)(v)-8 TRANS Energy'!H88+'FR-16(7)(v)-9 TRANS Cust'!H88+'FR-16(7)(v)-11 DIST Demand'!H88+'FR-16(7)(v)-12 DIST Energy'!H88+'FR-16(7)(v)-13 DIST Cust'!H88","v":1913994},{"$f":"'FR-16(7)(v)-3 PROD Demand'!I88+'FR-16(7)(v)-4 PROD Energy'!I88+'FR-16(7)(v)-5 PROD Cust'!I88+'FR-16(7)(v)-7 TRANS Demand'!I88+'FR-16(7)(v)-8 TRANS Energy'!I88+'FR-16(7)(v)-9 TRANS Cust'!I88+'FR-16(7)(v)-11 DIST Demand'!I88+'FR-16(7)(v)-12 DIST Energy'!I88+'FR-16(7)(v)-13 DIST Cust'!I88","v":25472},{"$f":"'FR-16(7)(v)-3 PROD Demand'!J88+'FR-16(7)(v)-4 PROD Energy'!J88+'FR-16(7)(v)-5 PROD Cust'!J88+'FR-16(7)(v)-7 TRANS Demand'!J88+'FR-16(7)(v)-8 TRANS Energy'!J88+'FR-16(7)(v)-9 TRANS Cust'!J88+'FR-16(7)(v)-11 DIST Demand'!J88+'FR-16(7)(v)-12 DIST Energy'!J88+'FR-16(7)(v)-13 DIST Cust'!J88","v":60708},{"$f":"'FR-16(7)(v)-3 PROD Demand'!K88+'FR-16(7)(v)-4 PROD Energy'!K88+'FR-16(7)(v)-5 PROD Cust'!K88+'FR-16(7)(v)-7 TRANS Demand'!K88+'FR-16(7)(v)-8 TRANS Energy'!K88+'FR-16(7)(v)-9 TRANS Cust'!K88+'FR-16(7)(v)-11 DIST Demand'!K88+'FR-16(7)(v)-12 DIST Energy'!K88+'FR-16(7)(v)-13 DIST Cust'!K88","v":2123},{"$f":"'FR-16(7)(v)-3 PROD Demand'!L88+'FR-16(7)(v)-4 PROD Energy'!L88+'FR-16(7)(v)-5 PROD Cust'!L88+'FR-16(7)(v)-7 TRANS Demand'!L88+'FR-16(7)(v)-8 TRANS Energy'!L88+'FR-16(7)(v)-9 TRANS Cust'!L88+'FR-16(7)(v)-11 DIST Demand'!L88+'FR-16(7)(v)-12 DIST Energy'!L88+'FR-16(7)(v)-13 DIST Cust'!L88","v":137336},{"$f":"'FR-16(7)(v)-3 PROD Demand'!M88+'FR-16(7)(v)-4 PROD Energy'!M88+'FR-16(7)(v)-5 PROD Cust'!M88+'FR-16(7)(v)-7 TRANS Demand'!M88+'FR-16(7)(v)-8 TRANS Energy'!M88+'FR-16(7)(v)-9 TRANS Cust'!M88+'FR-16(7)(v)-11 DIST Demand'!M88+'FR-16(7)(v)-12 DIST Energy'!M88+'FR-16(7)(v)-13 DIST Cust'!M88","v":32689},{"$f":"'FR-16(7)(v)-3 PROD Demand'!N88+'FR-16(7)(v)-4 PROD Energy'!N88+'FR-16(7)(v)-5 PROD Cust'!N88+'FR-16(7)(v)-7 TRANS Demand'!N88+'FR-16(7)(v)-8 TRANS Energy'!N88+'FR-16(7)(v)-9 TRANS Cust'!N88+'FR-16(7)(v)-11 DIST Demand'!N88+'FR-16(7)(v)-12 DIST Energy'!N88+'FR-16(7)(v)-13 DIST Cust'!N88","v":8915},{"$f":"'FR-16(7)(v)-3 PROD Demand'!O88+'FR-16(7)(v)-4 PROD Energy'!O88+'FR-16(7)(v)-5 PROD Cust'!O88+'FR-16(7)(v)-7 TRANS Demand'!O88+'FR-16(7)(v)-8 TRANS Energy'!O88+'FR-16(7)(v)-9 TRANS Cust'!O88+'FR-16(7)(v)-11 DIST Demand'!O88+'FR-16(7)(v)-12 DIST Energy'!O88+'FR-16(7)(v)-13 DIST Cust'!O88","v":9764},{"$f":"'FR-16(7)(v)-3 PROD Demand'!P88+'FR-16(7)(v)-4 PROD Energy'!P88+'FR-16(7)(v)-5 PROD Cust'!P88+'FR-16(7)(v)-7 TRANS Demand'!P88+'FR-16(7)(v)-8 TRANS Energy'!P88+'FR-16(7)(v)-9 TRANS Cust'!P88+'FR-16(7)(v)-11 DIST Demand'!P88+'FR-16(7)(v)-12 DIST Energy'!P88+'FR-16(7)(v)-13 DIST Cust'!P88","v":68986},{"$f":"'FR-16(7)(v)-3 PROD Demand'!Q88+'FR-16(7)(v)-4 PROD Energy'!Q88+'FR-16(7)(v)-5 PROD Cust'!Q88+'FR-16(7)(v)-7 TRANS Demand'!Q88+'FR-16(7)(v)-8 TRANS Energy'!Q88+'FR-16(7)(v)-9 TRANS Cust'!Q88+'FR-16(7)(v)-11 DIST Demand'!Q88+'FR-16(7)(v)-12 DIST Energy'!Q88+'FR-16(7)(v)-13 DIST Cust'!Q88","v":1698},21226508,0]
[32,null,{"$f":"'FR-16(7)(v)-1 Functional'!C89","v":"METERS"},{"$f":"'FR-16(7)(v)-1 Functional'!D89","v":"K407"},null,{"$f":"'FR-16(7)(v)-1 Functional'!F89","v":22573919},{"$f":"'FR-16(7)(v)-3 PROD Demand'!G89+'FR-16(7)(v)-4 PROD Energy'!G89+'FR-16(7)(v)-5 PROD Cust'!G89+'FR-16(7)(v)-7 TRANS Demand'!G89+'FR-16(7)(v)-8 TRANS Energy'!G89+'FR-16(7)(v)-9 TRANS Cust'!G89+'FR-16(7)(v)-11 DIST Demand'!G89+'FR-16(7)(v)-12 DIST Energy'!G89+'FR-16(7)(v)-13 DIST Cust'!G89","v":18247177},{"$f":"'FR-16(7)(v)-3 PROD Demand'!H89+'FR-16(7)(v)-4 PROD Energy'!H89+'FR-16(7)(v)-5 PROD Cust'!H89+'FR-16(7)(v)-7 TRANS Demand'!H89+'FR-16(7)(v)-8 TRANS Energy'!H89+'FR-16(7)(v)-9 TRANS Cust'!H89+'FR-16(7)(v)-11 DIST Demand'!H89+'FR-16(7)(v)-12 DIST Energy'!H89+'FR-16(7)(v)-13 DIST Cust'!H89","v":4129447},{"$f":"'FR-16(7)(v)-3 PROD Demand'!I89+'FR-16(7)(v)-4 PROD Energy'!I89+'FR-16(7)(v)-5 PROD Cust'!I89+'FR-16(7)(v)-7 TRANS Demand'!I89+'FR-16(7)(v)-8 TRANS Energy'!I89+'FR-16(7)(v)-9 TRANS Cust'!I89+'FR-16(7)(v)-11 DIST Demand'!I89+'FR-16(7)(v)-12 DIST Energy'!I89+'FR-16(7)(v)-13 DIST Cust'!I89","v":0},{"$f":"'FR-16(7)(v)-3 PROD Demand'!J89+'FR-16(7)(v)-4 PROD Energy'!J89+'FR-16(7)(v)-5 PROD Cust'!J89+'FR-16(7)(v)-7 TRANS Demand'!J89+'FR-16(7)(v)-8 TRANS Energy'!J89+'FR-16(7)(v)-9 TRANS Cust'!J89+'FR-16(7)(v)-11 DIST Demand'!J89+'FR-16(7)(v)-12 DIST Energy'!J89+'FR-16(7)(v)-13 DIST Cust'!J89","v":31603},{"$f":"'FR-16(7)(v)-3 PROD Demand'!K89+'FR-16(7)(v)-4 PROD Energy'!K89+'FR-16(7)(v)-5 PROD Cust'!K89+'FR-16(7)(v)-7 TRANS Demand'!K89+'FR-16(7)(v)-8 TRANS Energy'!K89+'FR-16(7)(v)-9 TRANS Cust'!K89+'FR-16(7)(v)-11 DIST Demand'!K89+'FR-16(7)(v)-12 DIST Energy'!K89+'FR-16(7)(v)-13 DIST Cust'!K89","v":4966},{"$f":"'FR-16(7)(v)-3 PROD Demand'!L89+'FR-16(7)(v)-4 PROD Energy'!L89+'FR-16(7)(v)-5 PROD Cust'!L89+'FR-16(7)(v)-7 TRANS Demand'!L89+'FR-16(7)(v)-8 TRANS Energy'!L89+'FR-16(7)(v)-9 TRANS Cust'!L89+'FR-16(7)(v)-11 DIST Demand'!L89+'FR-16(7)(v)-12 DIST Energy'!L89+'FR-16(7)(v)-13 DIST Cust'!L89","v":146956},{"$f":"'FR-16(7)(v)-3 PROD Demand'!M89+'FR-16(7)(v)-4 PROD Energy'!M89+'FR-16(7)(v)-5 PROD Cust'!M89+'FR-16(7)(v)-7 TRANS Demand'!M89+'FR-16(7)(v)-8 TRANS Energy'!M89+'FR-16(7)(v)-9 TRANS Cust'!M89+'FR-16(7)(v)-11 DIST Demand'!M89+'FR-16(7)(v)-12 DIST Energy'!M89+'FR-16(7)(v)-13 DIST Cust'!M89","v":0},{"$f":"'FR-16(7)(v)-3 PROD Demand'!N89+'FR-16(7)(v)-4 PROD Energy'!N89+'FR-16(7)(v)-5 PROD Cust'!N89+'FR-16(7)(v)-7 TRANS Demand'!N89+'FR-16(7)(v)-8 TRANS Energy'!N89+'FR-16(7)(v)-9 TRANS Cust'!N89+'FR-16(7)(v)-11 DIST Demand'!N89+'FR-16(7)(v)-12 DIST Energy'!N89+'FR-16(7)(v)-13 DIST Cust'!N89","v":5417},{"$f":"'FR-16(7)(v)-3 PROD Demand'!O89+'FR-16(7)(v)-4 PROD Energy'!O89+'FR-16(7)(v)-5 PROD Cust'!O89+'FR-16(7)(v)-7 TRANS Demand'!O89+'FR-16(7)(v)-8 TRANS Energy'!O89+'FR-16(7)(v)-9 TRANS Cust'!O89+'FR-16(7)(v)-11 DIST Demand'!O89+'FR-16(7)(v)-12 DIST Energy'!O89+'FR-16(7)(v)-13 DIST Cust'!O89","v":5192},{"$f":"'FR-16(7)(v)-3 PROD Demand'!P89+'FR-16(7)(v)-4 PROD Energy'!P89+'FR-16(7)(v)-5 PROD Cust'!P89+'FR-16(7)(v)-7 TRANS Demand'!P89+'FR-16(7)(v)-8 TRANS Energy'!P89+'FR-16(7)(v)-9 TRANS Cust'!P89+'FR-16(7)(v)-11 DIST Demand'!P89+'FR-16(7)(v)-12 DIST Energy'!P89+'FR-16(7)(v)-13 DIST Cust'!P89","v":0},{"$f":"'FR-16(7)(v)-3 PROD Demand'!Q89+'FR-16(7)(v)-4 PROD Energy'!Q89+'FR-16(7)(v)-5 PROD Cust'!Q89+'FR-16(7)(v)-7 TRANS Demand'!Q89+'FR-16(7)(v)-8 TRANS Energy'!Q89+'FR-16(7)(v)-9 TRANS Cust'!Q89+'FR-16(7)(v)-11 DIST Demand'!Q89+'FR-16(7)(v)-12 DIST Energy'!Q89+'FR-16(7)(v)-13 DIST Cust'!Q89","v":3161},22573919,0]
[33,null,{"$f":"'FR-16(7)(v)-1 Functional'!C90","v":"STREET LIGHTS"},{"$f":"'FR-16(7)(v)-1 Functional'!D90","v":"K401"},null,{"$f":"'FR-16(7)(v)-1 Functional'!F90","v":5595857},{"$f":"'FR-16(7)(v)-3 PROD Demand'!G90+'FR-16(7)(v)-4 PROD Energy'!G90+'FR-16(7)(v)-5 PROD Cust'!G90+'FR-16(7)(v)-7 TRANS Demand'!G90+'FR-16(7)(v)-8 TRANS Energy'!G90+'FR-16(7)(v)-9 TRANS Cust'!G90+'FR-16(7)(v)-11 DIST Demand'!G90+'FR-16(7)(v)-12 DIST Energy'!G90+'FR-16(7)(v)-13 DIST Cust'!G90","v":0},{"$f":"'FR-16(7)(v)-3 PROD Demand'!H90+'FR-16(7)(v)-4 PROD Energy'!H90+'FR-16(7)(v)-5 PROD Cust'!H90+'FR-16(7)(v)-7 TRANS Demand'!H90+'FR-16(7)(v)-8 TRANS Energy'!H90+'FR-16(7)(v)-9 TRANS Cust'!H90+'FR-16(7)(v)-11 DIST Demand'!H90+'FR-16(7)(v)-12 DIST Energy'!H90+'FR-16(7)(v)-13 DIST Cust'!H90","v":0},{"$f":"'FR-16(7)(v)-3 PROD Demand'!I90+'FR-16(7)(v)-4 PROD Energy'!I90+'FR-16(7)(v)-5 PROD Cust'!I90+'FR-16(7)(v)-7 TRANS Demand'!I90+'FR-16(7)(v)-8 TRANS Energy'!I90+'FR-16(7)(v)-9 TRANS Cust'!I90+'FR-16(7)(v)-11 DIST Demand'!I90+'FR-16(7)(v)-12 DIST Energy'!I90+'FR-16(7)(v)-13 DIST Cust'!I90","v":0},{"$f":"'FR-16(7)(v)-3 PROD Demand'!J90+'FR-16(7)(v)-4 PROD Energy'!J90+'FR-16(7)(v)-5 PROD Cust'!J90+'FR-16(7)(v)-7 TRANS Demand'!J90+'FR-16(7)(v)-8 TRANS Energy'!J90+'FR-16(7)(v)-9 TRANS Cust'!J90+'FR-16(7)(v)-11 DIST Demand'!J90+'FR-16(7)(v)-12 DIST Energy'!J90+'FR-16(7)(v)-13 DIST Cust'!J90","v":0},{"$f":"'FR-16(7)(v)-3 PROD Demand'!K90+'FR-16(7)(v)-4 PROD Energy'!K90+'FR-16(7)(v)-5 PROD Cust'!K90+'FR-16(7)(v)-7 TRANS Demand'!K90+'FR-16(7)(v)-8 TRANS Energy'!K90+'FR-16(7)(v)-9 TRANS Cust'!K90+'FR-16(7)(v)-11 DIST Demand'!K90+'FR-16(7)(v)-12 DIST Energy'!K90+'FR-16(7)(v)-13 DIST Cust'!K90","v":0},{"$f":"'FR-16(7)(v)-3 PROD Demand'!L90+'FR-16(7)(v)-4 PROD Energy'!L90+'FR-16(7)(v)-5 PROD Cust'!L90+'FR-16(7)(v)-7 TRANS Demand'!L90+'FR-16(7)(v)-8 TRANS Energy'!L90+'FR-16(7)(v)-9 TRANS Cust'!L90+'FR-16(7)(v)-11 DIST Demand'!L90+'FR-16(7)(v)-12 DIST Energy'!L90+'FR-16(7)(v)-13 DIST Cust'!L90","v":0},{"$f":"'FR-16(7)(v)-3 PROD Demand'!M90+'FR-16(7)(v)-4 PROD Energy'!M90+'FR-16(7)(v)-5 PROD Cust'!M90+'FR-16(7)(v)-7 TRANS Demand'!M90+'FR-16(7)(v)-8 TRANS Energy'!M90+'FR-16(7)(v)-9 TRANS Cust'!M90+'FR-16(7)(v)-11 DIST Demand'!M90+'FR-16(7)(v)-12 DIST Energy'!M90+'FR-16(7)(v)-13 DIST Cust'!M90","v":0},{"$f":"'FR-16(7)(v)-3 PROD Demand'!N90+'FR-16(7)(v)-4 PROD Energy'!N90+'FR-16(7)(v)-5 PROD Cust'!N90+'FR-16(7)(v)-7 TRANS Demand'!N90+'FR-16(7)(v)-8 TRANS Energy'!N90+'FR-16(7)(v)-9 TRANS Cust'!N90+'FR-16(7)(v)-11 DIST Demand'!N90+'FR-16(7)(v)-12 DIST Energy'!N90+'FR-16(7)(v)-13 DIST Cust'!N90","v":0},{"$f":"'FR-16(7)(v)-3 PROD Demand'!O90+'FR-16(7)(v)-4 PROD Energy'!O90+'FR-16(7)(v)-5 PROD Cust'!O90+'FR-16(7)(v)-7 TRANS Demand'!O90+'FR-16(7)(v)-8 TRANS Energy'!O90+'FR-16(7)(v)-9 TRANS Cust'!O90+'FR-16(7)(v)-11 DIST Demand'!O90+'FR-16(7)(v)-12 DIST Energy'!O90+'FR-16(7)(v)-13 DIST Cust'!O90","v":0},{"$f":"'FR-16(7)(v)-3 PROD Demand'!P90+'FR-16(7)(v)-4 PROD Energy'!P90+'FR-16(7)(v)-5 PROD Cust'!P90+'FR-16(7)(v)-7 TRANS Demand'!P90+'FR-16(7)(v)-8 TRANS Energy'!P90+'FR-16(7)(v)-9 TRANS Cust'!P90+'FR-16(7)(v)-11 DIST Demand'!P90+'FR-16(7)(v)-12 DIST Energy'!P90+'FR-16(7)(v)-13 DIST Cust'!P90","v":5595857},{"$f":"'FR-16(7)(v)-3 PROD Demand'!Q90+'FR-16(7)(v)-4 PROD Energy'!Q90+'FR-16(7)(v)-5 PROD Cust'!Q90+'FR-16(7)(v)-7 TRANS Demand'!Q90+'FR-16(7)(v)-8 TRANS Energy'!Q90+'FR-16(7)(v)-9 TRANS Cust'!Q90+'FR-16(7)(v)-11 DIST Demand'!Q90+'FR-16(7)(v)-12 DIST Energy'!Q90+'FR-16(7)(v)-13 DIST Cust'!Q90","v":0},5595857,0]
[34,null,{"$f":"'FR-16(7)(v)-1 Functional'!C91","v":"ADJUSTMENT  "},{"$f":"'FR-16(7)(v)-1 Functional'!D91","v":"K209"},null,{"$f":"'FR-16(7)(v)-1 Functional'!F91","v":0},{"$f":"'FR-16(7)(v)-3 PROD Demand'!G91+'FR-16(7)(v)-4 PROD Energy'!G91+'FR-16(7)(v)-5 PROD Cust'!G91+'FR-16(7)(v)-7 TRANS Demand'!G91+'FR-16(7)(v)-8 TRANS Energy'!G91+'FR-16(7)(v)-9 TRANS Cust'!G91+'FR-16(7)(v)-11 DIST Demand'!G91+'FR-16(7)(v)-12 DIST Energy'!G91+'FR-16(7)(v)-13 DIST Cust'!G91","v":0},{"$f":"'FR-16(7)(v)-3 PROD Demand'!H91+'FR-16(7)(v)-4 PROD Energy'!H91+'FR-16(7)(v)-5 PROD Cust'!H91+'FR-16(7)(v)-7 TRANS Demand'!H91+'FR-16(7)(v)-8 TRANS Energy'!H91+'FR-16(7)(v)-9 TRANS Cust'!H91+'FR-16(7)(v)-11 DIST Demand'!H91+'FR-16(7)(v)-12 DIST Energy'!H91+'FR-16(7)(v)-13 DIST Cust'!H91","v":0},{"$f":"'FR-16(7)(v)-3 PROD Demand'!I91+'FR-16(7)(v)-4 PROD Energy'!I91+'FR-16(7)(v)-5 PROD Cust'!I91+'FR-16(7)(v)-7 TRANS Demand'!I91+'FR-16(7)(v)-8 TRANS Energy'!I91+'FR-16(7)(v)-9 TRANS Cust'!I91+'FR-16(7)(v)-11 DIST Demand'!I91+'FR-16(7)(v)-12 DIST Energy'!I91+'FR-16(7)(v)-13 DIST Cust'!I91","v":0},{"$f":"'FR-16(7)(v)-3 PROD Demand'!J91+'FR-16(7)(v)-4 PROD Energy'!J91+'FR-16(7)(v)-5 PROD Cust'!J91+'FR-16(7)(v)-7 TRANS Demand'!J91+'FR-16(7)(v)-8 TRANS Energy'!J91+'FR-16(7)(v)-9 TRANS Cust'!J91+'FR-16(7)(v)-11 DIST Demand'!J91+'FR-16(7)(v)-12 DIST Energy'!J91+'FR-16(7)(v)-13 DIST Cust'!J91","v":0},{"$f":"'FR-16(7)(v)-3 PROD Demand'!K91+'FR-16(7)(v)-4 PROD Energy'!K91+'FR-16(7)(v)-5 PROD Cust'!K91+'FR-16(7)(v)-7 TRANS Demand'!K91+'FR-16(7)(v)-8 TRANS Energy'!K91+'FR-16(7)(v)-9 TRANS Cust'!K91+'FR-16(7)(v)-11 DIST Demand'!K91+'FR-16(7)(v)-12 DIST Energy'!K91+'FR-16(7)(v)-13 DIST Cust'!K91","v":0},{"$f":"'FR-16(7)(v)-3 PROD Demand'!L91+'FR-16(7)(v)-4 PROD Energy'!L91+'FR-16(7)(v)-5 PROD Cust'!L91+'FR-16(7)(v)-7 TRANS Demand'!L91+'FR-16(7)(v)-8 TRANS Energy'!L91+'FR-16(7)(v)-9 TRANS Cust'!L91+'FR-16(7)(v)-11 DIST Demand'!L91+'FR-16(7)(v)-12 DIST Energy'!L91+'FR-16(7)(v)-13 DIST Cust'!L91","v":0},{"$f":"'FR-16(7)(v)-3 PROD Demand'!M91+'FR-16(7)(v)-4 PROD Energy'!M91+'FR-16(7)(v)-5 PROD Cust'!M91+'FR-16(7)(v)-7 TRANS Demand'!M91+'FR-16(7)(v)-8 TRANS Energy'!M91+'FR-16(7)(v)-9 TRANS Cust'!M91+'FR-16(7)(v)-11 DIST Demand'!M91+'FR-16(7)(v)-12 DIST Energy'!M91+'FR-16(7)(v)-13 DIST Cust'!M91","v":0},{"$f":"'FR-16(7)(v)-3 PROD Demand'!N91+'FR-16(7)(v)-4 PROD Energy'!N91+'FR-16(7)(v)-5 PROD Cust'!N91+'FR-16(7)(v)-7 TRANS Demand'!N91+'FR-16(7)(v)-8 TRANS Energy'!N91+'FR-16(7)(v)-9 TRANS Cust'!N91+'FR-16(7)(v)-11 DIST Demand'!N91+'FR-16(7)(v)-12 DIST Energy'!N91+'FR-16(7)(v)-13 DIST Cust'!N91","v":0},{"$f":"'FR-16(7)(v)-3 PROD Demand'!O91+'FR-16(7)(v)-4 PROD Energy'!O91+'FR-16(7)(v)-5 PROD Cust'!O91+'FR-16(7)(v)-7 TRANS Demand'!O91+'FR-16(7)(v)-8 TRANS Energy'!O91+'FR-16(7)(v)-9 TRANS Cust'!O91+'FR-16(7)(v)-11 DIST Demand'!O91+'FR-16(7)(v)-12 DIST Energy'!O91+'FR-16(7)(v)-13 DIST Cust'!O91","v":0},{"$f":"'FR-16(7)(v)-3 PROD Demand'!P91+'FR-16(7)(v)-4 PROD Energy'!P91+'FR-16(7)(v)-5 PROD Cust'!P91+'FR-16(7)(v)-7 TRANS Demand'!P91+'FR-16(7)(v)-8 TRANS Energy'!P91+'FR-16(7)(v)-9 TRANS Cust'!P91+'FR-16(7)(v)-11 DIST Demand'!P91+'FR-16(7)(v)-12 DIST Energy'!P91+'FR-16(7)(v)-13 DIST Cust'!P91","v":0},{"$f":"'FR-16(7)(v)-3 PROD Demand'!Q91+'FR-16(7)(v)-4 PROD Energy'!Q91+'FR-16(7)(v)-5 PROD Cust'!Q91+'FR-16(7)(v)-7 TRANS Demand'!Q91+'FR-16(7)(v)-8 TRANS Energy'!Q91+'FR-16(7)(v)-9 TRANS Cust'!Q91+'FR-16(7)(v)-11 DIST Demand'!Q91+'FR-16(7)(v)-12 DIST Energy'!Q91+'FR-16(7)(v)-13 DIST Cust'!Q91","v":0},0,0]
[35,null,{"$f":"'FR-16(7)(v)-1 Functional'!C92","v":"CONSTRUCTION NOT CLASSIFIED"},{"$f":"'FR-16(7)(v)-1 Functional'!D92","v":"K209"},null,{"$f":"'FR-16(7)(v)-1 Functional'!F92","v":94687831},{"$f":"'FR-16(7)(v)-3 PROD Demand'!G92+'FR-16(7)(v)-4 PROD Energy'!G92+'FR-16(7)(v)-5 PROD Cust'!G92+'FR-16(7)(v)-7 TRANS Demand'!G92+'FR-16(7)(v)-8 TRANS Energy'!G92+'FR-16(7)(v)-9 TRANS Cust'!G92+'FR-16(7)(v)-11 DIST Demand'!G92+'FR-16(7)(v)-12 DIST Energy'!G92+'FR-16(7)(v)-13 DIST Cust'!G92","v":53946157},{"$f":"'FR-16(7)(v)-3 PROD Demand'!H92+'FR-16(7)(v)-4 PROD Energy'!H92+'FR-16(7)(v)-5 PROD Cust'!H92+'FR-16(7)(v)-7 TRANS Demand'!H92+'FR-16(7)(v)-8 TRANS Energy'!H92+'FR-16(7)(v)-9 TRANS Cust'!H92+'FR-16(7)(v)-11 DIST Demand'!H92+'FR-16(7)(v)-12 DIST Energy'!H92+'FR-16(7)(v)-13 DIST Cust'!H92","v":21848508},{"$f":"'FR-16(7)(v)-3 PROD Demand'!I92+'FR-16(7)(v)-4 PROD Energy'!I92+'FR-16(7)(v)-5 PROD Cust'!I92+'FR-16(7)(v)-7 TRANS Demand'!I92+'FR-16(7)(v)-8 TRANS Energy'!I92+'FR-16(7)(v)-9 TRANS Cust'!I92+'FR-16(7)(v)-11 DIST Demand'!I92+'FR-16(7)(v)-12 DIST Energy'!I92+'FR-16(7)(v)-13 DIST Cust'!I92","v":113302},{"$f":"'FR-16(7)(v)-3 PROD Demand'!J92+'FR-16(7)(v)-4 PROD Energy'!J92+'FR-16(7)(v)-5 PROD Cust'!J92+'FR-16(7)(v)-7 TRANS Demand'!J92+'FR-16(7)(v)-8 TRANS Energy'!J92+'FR-16(7)(v)-9 TRANS Cust'!J92+'FR-16(7)(v)-11 DIST Demand'!J92+'FR-16(7)(v)-12 DIST Energy'!J92+'FR-16(7)(v)-13 DIST Cust'!J92","v":451378},{"$f":"'FR-16(7)(v)-3 PROD Demand'!K92+'FR-16(7)(v)-4 PROD Energy'!K92+'FR-16(7)(v)-5 PROD Cust'!K92+'FR-16(7)(v)-7 TRANS Demand'!K92+'FR-16(7)(v)-8 TRANS Energy'!K92+'FR-16(7)(v)-9 TRANS Cust'!K92+'FR-16(7)(v)-11 DIST Demand'!K92+'FR-16(7)(v)-12 DIST Energy'!K92+'FR-16(7)(v)-13 DIST Cust'!K92","v":7891},{"$f":"'FR-16(7)(v)-3 PROD Demand'!L92+'FR-16(7)(v)-4 PROD Energy'!L92+'FR-16(7)(v)-5 PROD Cust'!L92+'FR-16(7)(v)-7 TRANS Demand'!L92+'FR-16(7)(v)-8 TRANS Energy'!L92+'FR-16(7)(v)-9 TRANS Cust'!L92+'FR-16(7)(v)-11 DIST Demand'!L92+'FR-16(7)(v)-12 DIST Energy'!L92+'FR-16(7)(v)-13 DIST Cust'!L92","v":9901336},{"$f":"'FR-16(7)(v)-3 PROD Demand'!M92+'FR-16(7)(v)-4 PROD Energy'!M92+'FR-16(7)(v)-5 PROD Cust'!M92+'FR-16(7)(v)-7 TRANS Demand'!M92+'FR-16(7)(v)-8 TRANS Energy'!M92+'FR-16(7)(v)-9 TRANS Cust'!M92+'FR-16(7)(v)-11 DIST Demand'!M92+'FR-16(7)(v)-12 DIST Energy'!M92+'FR-16(7)(v)-13 DIST Cust'!M92","v":6483658},{"$f":"'FR-16(7)(v)-3 PROD Demand'!N92+'FR-16(7)(v)-4 PROD Energy'!N92+'FR-16(7)(v)-5 PROD Cust'!N92+'FR-16(7)(v)-7 TRANS Demand'!N92+'FR-16(7)(v)-8 TRANS Energy'!N92+'FR-16(7)(v)-9 TRANS Cust'!N92+'FR-16(7)(v)-11 DIST Demand'!N92+'FR-16(7)(v)-12 DIST Energy'!N92+'FR-16(7)(v)-13 DIST Cust'!N92","v":328670},{"$f":"'FR-16(7)(v)-3 PROD Demand'!O92+'FR-16(7)(v)-4 PROD Energy'!O92+'FR-16(7)(v)-5 PROD Cust'!O92+'FR-16(7)(v)-7 TRANS Demand'!O92+'FR-16(7)(v)-8 TRANS Energy'!O92+'FR-16(7)(v)-9 TRANS Cust'!O92+'FR-16(7)(v)-11 DIST Demand'!O92+'FR-16(7)(v)-12 DIST Energy'!O92+'FR-16(7)(v)-13 DIST Cust'!O92","v":3032},{"$f":"'FR-16(7)(v)-3 PROD Demand'!P92+'FR-16(7)(v)-4 PROD Energy'!P92+'FR-16(7)(v)-5 PROD Cust'!P92+'FR-16(7)(v)-7 TRANS Demand'!P92+'FR-16(7)(v)-8 TRANS Energy'!P92+'FR-16(7)(v)-9 TRANS Cust'!P92+'FR-16(7)(v)-11 DIST Demand'!P92+'FR-16(7)(v)-12 DIST Energy'!P92+'FR-16(7)(v)-13 DIST Cust'!P92","v":1593989},{"$f":"'FR-16(7)(v)-3 PROD Demand'!Q92+'FR-16(7)(v)-4 PROD Energy'!Q92+'FR-16(7)(v)-5 PROD Cust'!Q92+'FR-16(7)(v)-7 TRANS Demand'!Q92+'FR-16(7)(v)-8 TRANS Energy'!Q92+'FR-16(7)(v)-9 TRANS Cust'!Q92+'FR-16(7)(v)-11 DIST Demand'!Q92+'FR-16(7)(v)-12 DIST Energy'!Q92+'FR-16(7)(v)-13 DIST Cust'!Q92","v":9910},94687831,0]
[36,null,{"$f":"'FR-16(7)(v)-1 Functional'!C93","v":"RWIP"},{"$f":"'FR-16(7)(v)-1 Functional'!D93","v":"K215"},null,{"$f":"'FR-16(7)(v)-1 Functional'!F93","v":0},{"$f":"'FR-16(7)(v)-3 PROD Demand'!G93+'FR-16(7)(v)-4 PROD Energy'!G93+'FR-16(7)(v)-5 PROD Cust'!G93+'FR-16(7)(v)-7 TRANS Demand'!G93+'FR-16(7)(v)-8 TRANS Energy'!G93+'FR-16(7)(v)-9 TRANS Cust'!G93+'FR-16(7)(v)-11 DIST Demand'!G93+'FR-16(7)(v)-12 DIST Energy'!G93+'FR-16(7)(v)-13 DIST Cust'!G93","v":0},{"$f":"'FR-16(7)(v)-3 PROD Demand'!H93+'FR-16(7)(v)-4 PROD Energy'!H93+'FR-16(7)(v)-5 PROD Cust'!H93+'FR-16(7)(v)-7 TRANS Demand'!H93+'FR-16(7)(v)-8 TRANS Energy'!H93+'FR-16(7)(v)-9 TRANS Cust'!H93+'FR-16(7)(v)-11 DIST Demand'!H93+'FR-16(7)(v)-12 DIST Energy'!H93+'FR-16(7)(v)-13 DIST Cust'!H93","v":0},{"$f":"'FR-16(7)(v)-3 PROD Demand'!I93+'FR-16(7)(v)-4 PROD Energy'!I93+'FR-16(7)(v)-5 PROD Cust'!I93+'FR-16(7)(v)-7 TRANS Demand'!I93+'FR-16(7)(v)-8 TRANS Energy'!I93+'FR-16(7)(v)-9 TRANS Cust'!I93+'FR-16(7)(v)-11 DIST Demand'!I93+'FR-16(7)(v)-12 DIST Energy'!I93+'FR-16(7)(v)-13 DIST Cust'!I93","v":0},{"$f":"'FR-16(7)(v)-3 PROD Demand'!J93+'FR-16(7)(v)-4 PROD Energy'!J93+'FR-16(7)(v)-5 PROD Cust'!J93+'FR-16(7)(v)-7 TRANS Demand'!J93+'FR-16(7)(v)-8 TRANS Energy'!J93+'FR-16(7)(v)-9 TRANS Cust'!J93+'FR-16(7)(v)-11 DIST Demand'!J93+'FR-16(7)(v)-12 DIST Energy'!J93+'FR-16(7)(v)-13 DIST Cust'!J93","v":0},{"$f":"'FR-16(7)(v)-3 PROD Demand'!K93+'FR-16(7)(v)-4 PROD Energy'!K93+'FR-16(7)(v)-5 PROD Cust'!K93+'FR-16(7)(v)-7 TRANS Demand'!K93+'FR-16(7)(v)-8 TRANS Energy'!K93+'FR-16(7)(v)-9 TRANS Cust'!K93+'FR-16(7)(v)-11 DIST Demand'!K93+'FR-16(7)(v)-12 DIST Energy'!K93+'FR-16(7)(v)-13 DIST Cust'!K93","v":0},{"$f":"'FR-16(7)(v)-3 PROD Demand'!L93+'FR-16(7)(v)-4 PROD Energy'!L93+'FR-16(7)(v)-5 PROD Cust'!L93+'FR-16(7)(v)-7 TRANS Demand'!L93+'FR-16(7)(v)-8 TRANS Energy'!L93+'FR-16(7)(v)-9 TRANS Cust'!L93+'FR-16(7)(v)-11 DIST Demand'!L93+'FR-16(7)(v)-12 DIST Energy'!L93+'FR-16(7)(v)-13 DIST Cust'!L93","v":0},{"$f":"'FR-16(7)(v)-3 PROD Demand'!M93+'FR-16(7)(v)-4 PROD Energy'!M93+'FR-16(7)(v)-5 PROD Cust'!M93+'FR-16(7)(v)-7 TRANS Demand'!M93+'FR-16(7)(v)-8 TRANS Energy'!M93+'FR-16(7)(v)-9 TRANS Cust'!M93+'FR-16(7)(v)-11 DIST Demand'!M93+'FR-16(7)(v)-12 DIST Energy'!M93+'FR-16(7)(v)-13 DIST Cust'!M93","v":0},{"$f":"'FR-16(7)(v)-3 PROD Demand'!N93+'FR-16(7)(v)-4 PROD Energy'!N93+'FR-16(7)(v)-5 PROD Cust'!N93+'FR-16(7)(v)-7 TRANS Demand'!N93+'FR-16(7)(v)-8 TRANS Energy'!N93+'FR-16(7)(v)-9 TRANS Cust'!N93+'FR-16(7)(v)-11 DIST Demand'!N93+'FR-16(7)(v)-12 DIST Energy'!N93+'FR-16(7)(v)-13 DIST Cust'!N93","v":0},{"$f":"'FR-16(7)(v)-3 PROD Demand'!O93+'FR-16(7)(v)-4 PROD Energy'!O93+'FR-16(7)(v)-5 PROD Cust'!O93+'FR-16(7)(v)-7 TRANS Demand'!O93+'FR-16(7)(v)-8 TRANS Energy'!O93+'FR-16(7)(v)-9 TRANS Cust'!O93+'FR-16(7)(v)-11 DIST Demand'!O93+'FR-16(7)(v)-12 DIST Energy'!O93+'FR-16(7)(v)-13 DIST Cust'!O93","v":0},{"$f":"'FR-16(7)(v)-3 PROD Demand'!P93+'FR-16(7)(v)-4 PROD Energy'!P93+'FR-16(7)(v)-5 PROD Cust'!P93+'FR-16(7)(v)-7 TRANS Demand'!P93+'FR-16(7)(v)-8 TRANS Energy'!P93+'FR-16(7)(v)-9 TRANS Cust'!P93+'FR-16(7)(v)-11 DIST Demand'!P93+'FR-16(7)(v)-12 DIST Energy'!P93+'FR-16(7)(v)-13 DIST Cust'!P93","v":0},{"$f":"'FR-16(7)(v)-3 PROD Demand'!Q93+'FR-16(7)(v)-4 PROD Energy'!Q93+'FR-16(7)(v)-5 PROD Cust'!Q93+'FR-16(7)(v)-7 TRANS Demand'!Q93+'FR-16(7)(v)-8 TRANS Energy'!Q93+'FR-16(7)(v)-9 TRANS Cust'!Q93+'FR-16(7)(v)-11 DIST Demand'!Q93+'FR-16(7)(v)-12 DIST Energy'!Q93+'FR-16(7)(v)-13 DIST Cust'!Q93","v":0},{"$f":"SUM(G93:Q93)","v":0},{"$f":"F93-R93","v":0}]
[37,null,{"$f":"'FR-16(7)(v)-1 Functional'!C94","v":"  DISTRIBUTION PLANT IN SERVICE"},null,null,{"$f":"SUM(F73:F93)","v":579372097},{"$f":"SUM(G73:G92)","v":330083208},{"$f":"SUM(H73:H92)","v":133685810},{"$f":"SUM(I73:I92)","v":693899},{"$f":"SUM(J73:J92)","v":2761711},47848,60583972,39672436,2011581,17988,9753391,{"$f":"SUM(Q73:Q92)","v":60253},{"$f":"SUM(R73:R92)","v":579372097},{"$f":"SUM(S73:S92)","v":0}]
[38]
[39,"TOTAL TRANS & DIST PLANT",null,null,null,{"$f":"F94+F68","v":651743799},{"$f":"G94+G68","v":362706924},{"$f":"H94+H68","v":153272487},{"$f":"I94+I68","v":787982},{"$f":"J94+J68","v":3132978},52914,70349809,46128716,2323503,3077140,9843132,{"$f":"Q94+$Q$68","v":68214},{"$f":"R94+R68","v":651743799},{"$f":"S94+S68","v":0}]
[40,"TOTAL GROSS PTD PLANT",null,null,null,{"$f":"F94+F70","v":1860536337},{"$f":"G94+G70","v":907606424},{"$f":"H94+H70","v":480420100},{"$f":"I94+I70","v":2359413},{"$f":"J94+J70","v":9334084},137530,233464274,153965098,7533399,54172800,11342034,{"$f":"Q94+Q70","v":201181},{"$f":"R94+R70","v":1860536337},{"$f":"S94+S70","v":0}]
[41]
[42,"GENERAL & INTANGIBLE PLANT"]
[43,null,{"$f":"'FR-16(7)(v)-1 Functional'!C100","v":"PRODUCTION - DEMAND"},{"$f":"'FR-16(7)(v)-1 Functional'!D100","v":"K201"},null,{"$f":"'FR-16(7)(v)-1 Functional'!F100","v":16704047},{"$f":"'FR-16(7)(v)-3 PROD Demand'!G100+'FR-16(7)(v)-4 PROD Energy'!G100+'FR-16(7)(v)-5 PROD Cust'!G100+'FR-16(7)(v)-7 TRANS Demand'!G100+'FR-16(7)(v)-8 TRANS Energy'!G100+'FR-16(7)(v)-9 TRANS Cust'!G100+'FR-16(7)(v)-11 DIST Demand'!G100+'FR-16(7)(v)-12 DIST Energy'!G100+'FR-16(7)(v)-13 DIST Cust'!G100","v":7529852},{"$f":"'FR-16(7)(v)-3 PROD Demand'!H100+'FR-16(7)(v)-4 PROD Energy'!H100+'FR-16(7)(v)-5 PROD Cust'!H100+'FR-16(7)(v)-7 TRANS Demand'!H100+'FR-16(7)(v)-8 TRANS Energy'!H100+'FR-16(7)(v)-9 TRANS Cust'!H100+'FR-16(7)(v)-11 DIST Demand'!H100+'FR-16(7)(v)-12 DIST Energy'!H100+'FR-16(7)(v)-13 DIST Cust'!H100","v":4520783},{"$f":"'FR-16(7)(v)-3 PROD Demand'!I100+'FR-16(7)(v)-4 PROD Energy'!I100+'FR-16(7)(v)-5 PROD Cust'!I100+'FR-16(7)(v)-7 TRANS Demand'!I100+'FR-16(7)(v)-8 TRANS Energy'!I100+'FR-16(7)(v)-9 TRANS Cust'!I100+'FR-16(7)(v)-11 DIST Demand'!I100+'FR-16(7)(v)-12 DIST Energy'!I100+'FR-16(7)(v)-13 DIST Cust'!I100","v":21715},{"$f":"'FR-16(7)(v)-3 PROD Demand'!J100+'FR-16(7)(v)-4 PROD Energy'!J100+'FR-16(7)(v)-5 PROD Cust'!J100+'FR-16(7)(v)-7 TRANS Demand'!J100+'FR-16(7)(v)-8 TRANS Energy'!J100+'FR-16(7)(v)-9 TRANS Cust'!J100+'FR-16(7)(v)-11 DIST Demand'!J100+'FR-16(7)(v)-12 DIST Energy'!J100+'FR-16(7)(v)-13 DIST Cust'!J100","v":85692},{"$f":"'FR-16(7)(v)-3 PROD Demand'!K100+'FR-16(7)(v)-4 PROD Energy'!K100+'FR-16(7)(v)-5 PROD Cust'!K100+'FR-16(7)(v)-7 TRANS Demand'!K100+'FR-16(7)(v)-8 TRANS Energy'!K100+'FR-16(7)(v)-9 TRANS Cust'!K100+'FR-16(7)(v)-11 DIST Demand'!K100+'FR-16(7)(v)-12 DIST Energy'!K100+'FR-16(7)(v)-13 DIST Cust'!K100","v":1169},{"$f":"'FR-16(7)(v)-3 PROD Demand'!L100+'FR-16(7)(v)-4 PROD Energy'!L100+'FR-16(7)(v)-5 PROD Cust'!L100+'FR-16(7)(v)-7 TRANS Demand'!L100+'FR-16(7)(v)-8 TRANS Energy'!L100+'FR-16(7)(v)-9 TRANS Cust'!L100+'FR-16(7)(v)-11 DIST Demand'!L100+'FR-16(7)(v)-12 DIST Energy'!L100+'FR-16(7)(v)-13 DIST Cust'!L100","v":2254044},{"$f":"'FR-16(7)(v)-3 PROD Demand'!M100+'FR-16(7)(v)-4 PROD Energy'!M100+'FR-16(7)(v)-5 PROD Cust'!M100+'FR-16(7)(v)-7 TRANS Demand'!M100+'FR-16(7)(v)-8 TRANS Energy'!M100+'FR-16(7)(v)-9 TRANS Cust'!M100+'FR-16(7)(v)-11 DIST Demand'!M100+'FR-16(7)(v)-12 DIST Energy'!M100+'FR-16(7)(v)-13 DIST Cust'!M100","v":1490168},{"$f":"'FR-16(7)(v)-3 PROD Demand'!N100+'FR-16(7)(v)-4 PROD Energy'!N100+'FR-16(7)(v)-5 PROD Cust'!N100+'FR-16(7)(v)-7 TRANS Demand'!N100+'FR-16(7)(v)-8 TRANS Energy'!N100+'FR-16(7)(v)-9 TRANS Cust'!N100+'FR-16(7)(v)-11 DIST Demand'!N100+'FR-16(7)(v)-12 DIST Energy'!N100+'FR-16(7)(v)-13 DIST Cust'!N100","v":71994},{"$f":"'FR-16(7)(v)-3 PROD Demand'!O100+'FR-16(7)(v)-4 PROD Energy'!O100+'FR-16(7)(v)-5 PROD Cust'!O100+'FR-16(7)(v)-7 TRANS Demand'!O100+'FR-16(7)(v)-8 TRANS Energy'!O100+'FR-16(7)(v)-9 TRANS Cust'!O100+'FR-16(7)(v)-11 DIST Demand'!O100+'FR-16(7)(v)-12 DIST Energy'!O100+'FR-16(7)(v)-13 DIST Cust'!O100","v":706080},{"$f":"'FR-16(7)(v)-3 PROD Demand'!P100+'FR-16(7)(v)-4 PROD Energy'!P100+'FR-16(7)(v)-5 PROD Cust'!P100+'FR-16(7)(v)-7 TRANS Demand'!P100+'FR-16(7)(v)-8 TRANS Energy'!P100+'FR-16(7)(v)-9 TRANS Cust'!P100+'FR-16(7)(v)-11 DIST Demand'!P100+'FR-16(7)(v)-12 DIST Energy'!P100+'FR-16(7)(v)-13 DIST Cust'!P100","v":20713},{"$f":"'FR-16(7)(v)-3 PROD Demand'!Q100+'FR-16(7)(v)-4 PROD Energy'!Q100+'FR-16(7)(v)-5 PROD Cust'!Q100+'FR-16(7)(v)-7 TRANS Demand'!Q100+'FR-16(7)(v)-8 TRANS Energy'!Q100+'FR-16(7)(v)-9 TRANS Cust'!Q100+'FR-16(7)(v)-11 DIST Demand'!Q100+'FR-16(7)(v)-12 DIST Energy'!Q100+'FR-16(7)(v)-13 DIST Cust'!Q100","v":1837},{"$f":"SUM(G100:Q100)","v":16704047},{"$f":"F100-R100","v":0}]
[44,null,{"$f":"'FR-16(7)(v)-1 Functional'!C101","v":"PRODUCTION - ENERGY"},{"$f":"'FR-16(7)(v)-1 Functional'!D101","v":"K301"},null,{"$f":"'FR-16(7)(v)-1 Functional'!F101","v":19517654},{"$f":"'FR-16(7)(v)-3 PROD Demand'!G101+'FR-16(7)(v)-4 PROD Energy'!G101+'FR-16(7)(v)-5 PROD Cust'!G101+'FR-16(7)(v)-7 TRANS Demand'!G101+'FR-16(7)(v)-8 TRANS Energy'!G101+'FR-16(7)(v)-9 TRANS Cust'!G101+'FR-16(7)(v)-11 DIST Demand'!G101+'FR-16(7)(v)-12 DIST Energy'!G101+'FR-16(7)(v)-13 DIST Cust'!G101","v":7367133},{"$f":"'FR-16(7)(v)-3 PROD Demand'!H101+'FR-16(7)(v)-4 PROD Energy'!H101+'FR-16(7)(v)-5 PROD Cust'!H101+'FR-16(7)(v)-7 TRANS Demand'!H101+'FR-16(7)(v)-8 TRANS Energy'!H101+'FR-16(7)(v)-9 TRANS Cust'!H101+'FR-16(7)(v)-11 DIST Demand'!H101+'FR-16(7)(v)-12 DIST Energy'!H101+'FR-16(7)(v)-13 DIST Cust'!H101","v":5256495},{"$f":"'FR-16(7)(v)-3 PROD Demand'!I101+'FR-16(7)(v)-4 PROD Energy'!I101+'FR-16(7)(v)-5 PROD Cust'!I101+'FR-16(7)(v)-7 TRANS Demand'!I101+'FR-16(7)(v)-8 TRANS Energy'!I101+'FR-16(7)(v)-9 TRANS Cust'!I101+'FR-16(7)(v)-11 DIST Demand'!I101+'FR-16(7)(v)-12 DIST Energy'!I101+'FR-16(7)(v)-13 DIST Cust'!I101","v":29472},{"$f":"'FR-16(7)(v)-3 PROD Demand'!J101+'FR-16(7)(v)-4 PROD Energy'!J101+'FR-16(7)(v)-5 PROD Cust'!J101+'FR-16(7)(v)-7 TRANS Demand'!J101+'FR-16(7)(v)-8 TRANS Energy'!J101+'FR-16(7)(v)-9 TRANS Cust'!J101+'FR-16(7)(v)-11 DIST Demand'!J101+'FR-16(7)(v)-12 DIST Energy'!J101+'FR-16(7)(v)-13 DIST Cust'!J101","v":83536},{"$f":"'FR-16(7)(v)-3 PROD Demand'!K101+'FR-16(7)(v)-4 PROD Energy'!K101+'FR-16(7)(v)-5 PROD Cust'!K101+'FR-16(7)(v)-7 TRANS Demand'!K101+'FR-16(7)(v)-8 TRANS Energy'!K101+'FR-16(7)(v)-9 TRANS Cust'!K101+'FR-16(7)(v)-11 DIST Demand'!K101+'FR-16(7)(v)-12 DIST Energy'!K101+'FR-16(7)(v)-13 DIST Cust'!K101","v":1366},{"$f":"'FR-16(7)(v)-3 PROD Demand'!L101+'FR-16(7)(v)-4 PROD Energy'!L101+'FR-16(7)(v)-5 PROD Cust'!L101+'FR-16(7)(v)-7 TRANS Demand'!L101+'FR-16(7)(v)-8 TRANS Energy'!L101+'FR-16(7)(v)-9 TRANS Cust'!L101+'FR-16(7)(v)-11 DIST Demand'!L101+'FR-16(7)(v)-12 DIST Energy'!L101+'FR-16(7)(v)-13 DIST Cust'!L101","v":3220608},{"$f":"'FR-16(7)(v)-3 PROD Demand'!M101+'FR-16(7)(v)-4 PROD Energy'!M101+'FR-16(7)(v)-5 PROD Cust'!M101+'FR-16(7)(v)-7 TRANS Demand'!M101+'FR-16(7)(v)-8 TRANS Energy'!M101+'FR-16(7)(v)-9 TRANS Cust'!M101+'FR-16(7)(v)-11 DIST Demand'!M101+'FR-16(7)(v)-12 DIST Energy'!M101+'FR-16(7)(v)-13 DIST Cust'!M101","v":2236918},{"$f":"'FR-16(7)(v)-3 PROD Demand'!N101+'FR-16(7)(v)-4 PROD Energy'!N101+'FR-16(7)(v)-5 PROD Cust'!N101+'FR-16(7)(v)-7 TRANS Demand'!N101+'FR-16(7)(v)-8 TRANS Energy'!N101+'FR-16(7)(v)-9 TRANS Cust'!N101+'FR-16(7)(v)-11 DIST Demand'!N101+'FR-16(7)(v)-12 DIST Energy'!N101+'FR-16(7)(v)-13 DIST Cust'!N101","v":104810},{"$f":"'FR-16(7)(v)-3 PROD Demand'!O101+'FR-16(7)(v)-4 PROD Energy'!O101+'FR-16(7)(v)-5 PROD Cust'!O101+'FR-16(7)(v)-7 TRANS Demand'!O101+'FR-16(7)(v)-8 TRANS Energy'!O101+'FR-16(7)(v)-9 TRANS Cust'!O101+'FR-16(7)(v)-11 DIST Demand'!O101+'FR-16(7)(v)-12 DIST Energy'!O101+'FR-16(7)(v)-13 DIST Cust'!O101","v":1130072},{"$f":"'FR-16(7)(v)-3 PROD Demand'!P101+'FR-16(7)(v)-4 PROD Energy'!P101+'FR-16(7)(v)-5 PROD Cust'!P101+'FR-16(7)(v)-7 TRANS Demand'!P101+'FR-16(7)(v)-8 TRANS Energy'!P101+'FR-16(7)(v)-9 TRANS Cust'!P101+'FR-16(7)(v)-11 DIST Demand'!P101+'FR-16(7)(v)-12 DIST Energy'!P101+'FR-16(7)(v)-13 DIST Cust'!P101","v":85097},{"$f":"'FR-16(7)(v)-3 PROD Demand'!Q101+'FR-16(7)(v)-4 PROD Energy'!Q101+'FR-16(7)(v)-5 PROD Cust'!Q101+'FR-16(7)(v)-7 TRANS Demand'!Q101+'FR-16(7)(v)-8 TRANS Energy'!Q101+'FR-16(7)(v)-9 TRANS Cust'!Q101+'FR-16(7)(v)-11 DIST Demand'!Q101+'FR-16(7)(v)-12 DIST Energy'!Q101+'FR-16(7)(v)-13 DIST Cust'!Q101","v":2147},19517654,0]
[45,null,{"$f":"'FR-16(7)(v)-1 Functional'!C102","v":"TRANSMISSION"},{"$f":"'FR-16(7)(v)-1 Functional'!D102","v":"K202"},null,{"$f":"'FR-16(7)(v)-1 Functional'!F102","v":2639608},{"$f":"'FR-16(7)(v)-3 PROD Demand'!G102+'FR-16(7)(v)-4 PROD Energy'!G102+'FR-16(7)(v)-5 PROD Cust'!G102+'FR-16(7)(v)-7 TRANS Demand'!G102+'FR-16(7)(v)-8 TRANS Energy'!G102+'FR-16(7)(v)-9 TRANS Cust'!G102+'FR-16(7)(v)-11 DIST Demand'!G102+'FR-16(7)(v)-12 DIST Energy'!G102+'FR-16(7)(v)-13 DIST Cust'!G102","v":1189883},{"$f":"'FR-16(7)(v)-3 PROD Demand'!H102+'FR-16(7)(v)-4 PROD Energy'!H102+'FR-16(7)(v)-5 PROD Cust'!H102+'FR-16(7)(v)-7 TRANS Demand'!H102+'FR-16(7)(v)-8 TRANS Energy'!H102+'FR-16(7)(v)-9 TRANS Cust'!H102+'FR-16(7)(v)-11 DIST Demand'!H102+'FR-16(7)(v)-12 DIST Energy'!H102+'FR-16(7)(v)-13 DIST Cust'!H102","v":714384},{"$f":"'FR-16(7)(v)-3 PROD Demand'!I102+'FR-16(7)(v)-4 PROD Energy'!I102+'FR-16(7)(v)-5 PROD Cust'!I102+'FR-16(7)(v)-7 TRANS Demand'!I102+'FR-16(7)(v)-8 TRANS Energy'!I102+'FR-16(7)(v)-9 TRANS Cust'!I102+'FR-16(7)(v)-11 DIST Demand'!I102+'FR-16(7)(v)-12 DIST Energy'!I102+'FR-16(7)(v)-13 DIST Cust'!I102","v":3431},{"$f":"'FR-16(7)(v)-3 PROD Demand'!J102+'FR-16(7)(v)-4 PROD Energy'!J102+'FR-16(7)(v)-5 PROD Cust'!J102+'FR-16(7)(v)-7 TRANS Demand'!J102+'FR-16(7)(v)-8 TRANS Energy'!J102+'FR-16(7)(v)-9 TRANS Cust'!J102+'FR-16(7)(v)-11 DIST Demand'!J102+'FR-16(7)(v)-12 DIST Energy'!J102+'FR-16(7)(v)-13 DIST Cust'!J102","v":13541},{"$f":"'FR-16(7)(v)-3 PROD Demand'!K102+'FR-16(7)(v)-4 PROD Energy'!K102+'FR-16(7)(v)-5 PROD Cust'!K102+'FR-16(7)(v)-7 TRANS Demand'!K102+'FR-16(7)(v)-8 TRANS Energy'!K102+'FR-16(7)(v)-9 TRANS Cust'!K102+'FR-16(7)(v)-11 DIST Demand'!K102+'FR-16(7)(v)-12 DIST Energy'!K102+'FR-16(7)(v)-13 DIST Cust'!K102","v":185},{"$f":"'FR-16(7)(v)-3 PROD Demand'!L102+'FR-16(7)(v)-4 PROD Energy'!L102+'FR-16(7)(v)-5 PROD Cust'!L102+'FR-16(7)(v)-7 TRANS Demand'!L102+'FR-16(7)(v)-8 TRANS Energy'!L102+'FR-16(7)(v)-9 TRANS Cust'!L102+'FR-16(7)(v)-11 DIST Demand'!L102+'FR-16(7)(v)-12 DIST Energy'!L102+'FR-16(7)(v)-13 DIST Cust'!L102","v":356189},{"$f":"'FR-16(7)(v)-3 PROD Demand'!M102+'FR-16(7)(v)-4 PROD Energy'!M102+'FR-16(7)(v)-5 PROD Cust'!M102+'FR-16(7)(v)-7 TRANS Demand'!M102+'FR-16(7)(v)-8 TRANS Energy'!M102+'FR-16(7)(v)-9 TRANS Cust'!M102+'FR-16(7)(v)-11 DIST Demand'!M102+'FR-16(7)(v)-12 DIST Energy'!M102+'FR-16(7)(v)-13 DIST Cust'!M102","v":235479},{"$f":"'FR-16(7)(v)-3 PROD Demand'!N102+'FR-16(7)(v)-4 PROD Energy'!N102+'FR-16(7)(v)-5 PROD Cust'!N102+'FR-16(7)(v)-7 TRANS Demand'!N102+'FR-16(7)(v)-8 TRANS Energy'!N102+'FR-16(7)(v)-9 TRANS Cust'!N102+'FR-16(7)(v)-11 DIST Demand'!N102+'FR-16(7)(v)-12 DIST Energy'!N102+'FR-16(7)(v)-13 DIST Cust'!N102","v":11377},{"$f":"'FR-16(7)(v)-3 PROD Demand'!O102+'FR-16(7)(v)-4 PROD Energy'!O102+'FR-16(7)(v)-5 PROD Cust'!O102+'FR-16(7)(v)-7 TRANS Demand'!O102+'FR-16(7)(v)-8 TRANS Energy'!O102+'FR-16(7)(v)-9 TRANS Cust'!O102+'FR-16(7)(v)-11 DIST Demand'!O102+'FR-16(7)(v)-12 DIST Energy'!O102+'FR-16(7)(v)-13 DIST Cust'!O102","v":111576},{"$f":"'FR-16(7)(v)-3 PROD Demand'!P102+'FR-16(7)(v)-4 PROD Energy'!P102+'FR-16(7)(v)-5 PROD Cust'!P102+'FR-16(7)(v)-7 TRANS Demand'!P102+'FR-16(7)(v)-8 TRANS Energy'!P102+'FR-16(7)(v)-9 TRANS Cust'!P102+'FR-16(7)(v)-11 DIST Demand'!P102+'FR-16(7)(v)-12 DIST Energy'!P102+'FR-16(7)(v)-13 DIST Cust'!P102","v":3273},{"$f":"'FR-16(7)(v)-3 PROD Demand'!Q102+'FR-16(7)(v)-4 PROD Energy'!Q102+'FR-16(7)(v)-5 PROD Cust'!Q102+'FR-16(7)(v)-7 TRANS Demand'!Q102+'FR-16(7)(v)-8 TRANS Energy'!Q102+'FR-16(7)(v)-9 TRANS Cust'!Q102+'FR-16(7)(v)-11 DIST Demand'!Q102+'FR-16(7)(v)-12 DIST Energy'!Q102+'FR-16(7)(v)-13 DIST Cust'!Q102","v":290},2639608,0]
[46,null,{"$f":"'FR-16(7)(v)-1 Functional'!C103","v":"DISTRIBUTION - DEMAND"},{"$f":"'FR-16(7)(v)-1 Functional'!D103","v":"K201"},null,{"$f":"'FR-16(7)(v)-1 Functional'!F103","v":8865387},{"$f":"'FR-16(7)(v)-3 PROD Demand'!G103+'FR-16(7)(v)-4 PROD Energy'!G103+'FR-16(7)(v)-5 PROD Cust'!G103+'FR-16(7)(v)-7 TRANS Demand'!G103+'FR-16(7)(v)-8 TRANS Energy'!G103+'FR-16(7)(v)-9 TRANS Cust'!G103+'FR-16(7)(v)-11 DIST Demand'!G103+'FR-16(7)(v)-12 DIST Energy'!G103+'FR-16(7)(v)-13 DIST Cust'!G103","v":3996340},{"$f":"'FR-16(7)(v)-3 PROD Demand'!H103+'FR-16(7)(v)-4 PROD Energy'!H103+'FR-16(7)(v)-5 PROD Cust'!H103+'FR-16(7)(v)-7 TRANS Demand'!H103+'FR-16(7)(v)-8 TRANS Energy'!H103+'FR-16(7)(v)-9 TRANS Cust'!H103+'FR-16(7)(v)-11 DIST Demand'!H103+'FR-16(7)(v)-12 DIST Energy'!H103+'FR-16(7)(v)-13 DIST Cust'!H103","v":2399328},{"$f":"'FR-16(7)(v)-3 PROD Demand'!I103+'FR-16(7)(v)-4 PROD Energy'!I103+'FR-16(7)(v)-5 PROD Cust'!I103+'FR-16(7)(v)-7 TRANS Demand'!I103+'FR-16(7)(v)-8 TRANS Energy'!I103+'FR-16(7)(v)-9 TRANS Cust'!I103+'FR-16(7)(v)-11 DIST Demand'!I103+'FR-16(7)(v)-12 DIST Energy'!I103+'FR-16(7)(v)-13 DIST Cust'!I103","v":11525},{"$f":"'FR-16(7)(v)-3 PROD Demand'!J103+'FR-16(7)(v)-4 PROD Energy'!J103+'FR-16(7)(v)-5 PROD Cust'!J103+'FR-16(7)(v)-7 TRANS Demand'!J103+'FR-16(7)(v)-8 TRANS Energy'!J103+'FR-16(7)(v)-9 TRANS Cust'!J103+'FR-16(7)(v)-11 DIST Demand'!J103+'FR-16(7)(v)-12 DIST Energy'!J103+'FR-16(7)(v)-13 DIST Cust'!J103","v":45479},{"$f":"'FR-16(7)(v)-3 PROD Demand'!K103+'FR-16(7)(v)-4 PROD Energy'!K103+'FR-16(7)(v)-5 PROD Cust'!K103+'FR-16(7)(v)-7 TRANS Demand'!K103+'FR-16(7)(v)-8 TRANS Energy'!K103+'FR-16(7)(v)-9 TRANS Cust'!K103+'FR-16(7)(v)-11 DIST Demand'!K103+'FR-16(7)(v)-12 DIST Energy'!K103+'FR-16(7)(v)-13 DIST Cust'!K103","v":621},{"$f":"'FR-16(7)(v)-3 PROD Demand'!L103+'FR-16(7)(v)-4 PROD Energy'!L103+'FR-16(7)(v)-5 PROD Cust'!L103+'FR-16(7)(v)-7 TRANS Demand'!L103+'FR-16(7)(v)-8 TRANS Energy'!L103+'FR-16(7)(v)-9 TRANS Cust'!L103+'FR-16(7)(v)-11 DIST Demand'!L103+'FR-16(7)(v)-12 DIST Energy'!L103+'FR-16(7)(v)-13 DIST Cust'!L103","v":1196295},{"$f":"'FR-16(7)(v)-3 PROD Demand'!M103+'FR-16(7)(v)-4 PROD Energy'!M103+'FR-16(7)(v)-5 PROD Cust'!M103+'FR-16(7)(v)-7 TRANS Demand'!M103+'FR-16(7)(v)-8 TRANS Energy'!M103+'FR-16(7)(v)-9 TRANS Cust'!M103+'FR-16(7)(v)-11 DIST Demand'!M103+'FR-16(7)(v)-12 DIST Energy'!M103+'FR-16(7)(v)-13 DIST Cust'!M103","v":790881},{"$f":"'FR-16(7)(v)-3 PROD Demand'!N103+'FR-16(7)(v)-4 PROD Energy'!N103+'FR-16(7)(v)-5 PROD Cust'!N103+'FR-16(7)(v)-7 TRANS Demand'!N103+'FR-16(7)(v)-8 TRANS Energy'!N103+'FR-16(7)(v)-9 TRANS Cust'!N103+'FR-16(7)(v)-11 DIST Demand'!N103+'FR-16(7)(v)-12 DIST Energy'!N103+'FR-16(7)(v)-13 DIST Cust'!N103","v":38210},{"$f":"'FR-16(7)(v)-3 PROD Demand'!O103+'FR-16(7)(v)-4 PROD Energy'!O103+'FR-16(7)(v)-5 PROD Cust'!O103+'FR-16(7)(v)-7 TRANS Demand'!O103+'FR-16(7)(v)-8 TRANS Energy'!O103+'FR-16(7)(v)-9 TRANS Cust'!O103+'FR-16(7)(v)-11 DIST Demand'!O103+'FR-16(7)(v)-12 DIST Energy'!O103+'FR-16(7)(v)-13 DIST Cust'!O103","v":374740},{"$f":"'FR-16(7)(v)-3 PROD Demand'!P103+'FR-16(7)(v)-4 PROD Energy'!P103+'FR-16(7)(v)-5 PROD Cust'!P103+'FR-16(7)(v)-7 TRANS Demand'!P103+'FR-16(7)(v)-8 TRANS Energy'!P103+'FR-16(7)(v)-9 TRANS Cust'!P103+'FR-16(7)(v)-11 DIST Demand'!P103+'FR-16(7)(v)-12 DIST Energy'!P103+'FR-16(7)(v)-13 DIST Cust'!P103","v":10993},{"$f":"'FR-16(7)(v)-3 PROD Demand'!Q103+'FR-16(7)(v)-4 PROD Energy'!Q103+'FR-16(7)(v)-5 PROD Cust'!Q103+'FR-16(7)(v)-7 TRANS Demand'!Q103+'FR-16(7)(v)-8 TRANS Energy'!Q103+'FR-16(7)(v)-9 TRANS Cust'!Q103+'FR-16(7)(v)-11 DIST Demand'!Q103+'FR-16(7)(v)-12 DIST Energy'!Q103+'FR-16(7)(v)-13 DIST Cust'!Q103","v":975},8865387,0]
[47,null,{"$f":"'FR-16(7)(v)-1 Functional'!C104","v":"DISTRIBUTION - CUSTOMER"},{"$f":"'FR-16(7)(v)-1 Functional'!D104","v":"K405"},null,{"$f":"'FR-16(7)(v)-1 Functional'!F104","v":1946061},{"$f":"'FR-16(7)(v)-3 PROD Demand'!G104+'FR-16(7)(v)-4 PROD Energy'!G104+'FR-16(7)(v)-5 PROD Cust'!G104+'FR-16(7)(v)-7 TRANS Demand'!G104+'FR-16(7)(v)-8 TRANS Energy'!G104+'FR-16(7)(v)-9 TRANS Cust'!G104+'FR-16(7)(v)-11 DIST Demand'!G104+'FR-16(7)(v)-12 DIST Energy'!G104+'FR-16(7)(v)-13 DIST Cust'!G104","v":1755229},{"$f":"'FR-16(7)(v)-3 PROD Demand'!H104+'FR-16(7)(v)-4 PROD Energy'!H104+'FR-16(7)(v)-5 PROD Cust'!H104+'FR-16(7)(v)-7 TRANS Demand'!H104+'FR-16(7)(v)-8 TRANS Energy'!H104+'FR-16(7)(v)-9 TRANS Cust'!H104+'FR-16(7)(v)-11 DIST Demand'!H104+'FR-16(7)(v)-12 DIST Energy'!H104+'FR-16(7)(v)-13 DIST Cust'!H104","v":177286},{"$f":"'FR-16(7)(v)-3 PROD Demand'!I104+'FR-16(7)(v)-4 PROD Energy'!I104+'FR-16(7)(v)-5 PROD Cust'!I104+'FR-16(7)(v)-7 TRANS Demand'!I104+'FR-16(7)(v)-8 TRANS Energy'!I104+'FR-16(7)(v)-9 TRANS Cust'!I104+'FR-16(7)(v)-11 DIST Demand'!I104+'FR-16(7)(v)-12 DIST Energy'!I104+'FR-16(7)(v)-13 DIST Cust'!I104","v":2355},{"$f":"'FR-16(7)(v)-3 PROD Demand'!J104+'FR-16(7)(v)-4 PROD Energy'!J104+'FR-16(7)(v)-5 PROD Cust'!J104+'FR-16(7)(v)-7 TRANS Demand'!J104+'FR-16(7)(v)-8 TRANS Energy'!J104+'FR-16(7)(v)-9 TRANS Cust'!J104+'FR-16(7)(v)-11 DIST Demand'!J104+'FR-16(7)(v)-12 DIST Energy'!J104+'FR-16(7)(v)-13 DIST Cust'!J104","v":1401},{"$f":"'FR-16(7)(v)-3 PROD Demand'!K104+'FR-16(7)(v)-4 PROD Energy'!K104+'FR-16(7)(v)-5 PROD Cust'!K104+'FR-16(7)(v)-7 TRANS Demand'!K104+'FR-16(7)(v)-8 TRANS Energy'!K104+'FR-16(7)(v)-9 TRANS Cust'!K104+'FR-16(7)(v)-11 DIST Demand'!K104+'FR-16(7)(v)-12 DIST Energy'!K104+'FR-16(7)(v)-13 DIST Cust'!K104","v":195},{"$f":"'FR-16(7)(v)-3 PROD Demand'!L104+'FR-16(7)(v)-4 PROD Energy'!L104+'FR-16(7)(v)-5 PROD Cust'!L104+'FR-16(7)(v)-7 TRANS Demand'!L104+'FR-16(7)(v)-8 TRANS Energy'!L104+'FR-16(7)(v)-9 TRANS Cust'!L104+'FR-16(7)(v)-11 DIST Demand'!L104+'FR-16(7)(v)-12 DIST Energy'!L104+'FR-16(7)(v)-13 DIST Cust'!L104","v":2180},{"$f":"'FR-16(7)(v)-3 PROD Demand'!M104+'FR-16(7)(v)-4 PROD Energy'!M104+'FR-16(7)(v)-5 PROD Cust'!M104+'FR-16(7)(v)-7 TRANS Demand'!M104+'FR-16(7)(v)-8 TRANS Energy'!M104+'FR-16(7)(v)-9 TRANS Cust'!M104+'FR-16(7)(v)-11 DIST Demand'!M104+'FR-16(7)(v)-12 DIST Energy'!M104+'FR-16(7)(v)-13 DIST Cust'!M104","v":506},{"$f":"'FR-16(7)(v)-3 PROD Demand'!N104+'FR-16(7)(v)-4 PROD Energy'!N104+'FR-16(7)(v)-5 PROD Cust'!N104+'FR-16(7)(v)-7 TRANS Demand'!N104+'FR-16(7)(v)-8 TRANS Energy'!N104+'FR-16(7)(v)-9 TRANS Cust'!N104+'FR-16(7)(v)-11 DIST Demand'!N104+'FR-16(7)(v)-12 DIST Energy'!N104+'FR-16(7)(v)-13 DIST Cust'!N104","v":136},{"$f":"'FR-16(7)(v)-3 PROD Demand'!O104+'FR-16(7)(v)-4 PROD Energy'!O104+'FR-16(7)(v)-5 PROD Cust'!O104+'FR-16(7)(v)-7 TRANS Demand'!O104+'FR-16(7)(v)-8 TRANS Energy'!O104+'FR-16(7)(v)-9 TRANS Cust'!O104+'FR-16(7)(v)-11 DIST Demand'!O104+'FR-16(7)(v)-12 DIST Energy'!O104+'FR-16(7)(v)-13 DIST Cust'!O104","v":214},{"$f":"'FR-16(7)(v)-3 PROD Demand'!P104+'FR-16(7)(v)-4 PROD Energy'!P104+'FR-16(7)(v)-5 PROD Cust'!P104+'FR-16(7)(v)-7 TRANS Demand'!P104+'FR-16(7)(v)-8 TRANS Energy'!P104+'FR-16(7)(v)-9 TRANS Cust'!P104+'FR-16(7)(v)-11 DIST Demand'!P104+'FR-16(7)(v)-12 DIST Energy'!P104+'FR-16(7)(v)-13 DIST Cust'!P104","v":6403},{"$f":"'FR-16(7)(v)-3 PROD Demand'!Q104+'FR-16(7)(v)-4 PROD Energy'!Q104+'FR-16(7)(v)-5 PROD Cust'!Q104+'FR-16(7)(v)-7 TRANS Demand'!Q104+'FR-16(7)(v)-8 TRANS Energy'!Q104+'FR-16(7)(v)-9 TRANS Cust'!Q104+'FR-16(7)(v)-11 DIST Demand'!Q104+'FR-16(7)(v)-12 DIST Energy'!Q104+'FR-16(7)(v)-13 DIST Cust'!Q104","v":156},1946061,0]
[48,null,{"$f":"'FR-16(7)(v)-1 Functional'!C105","v":"CUSTOMER ACCOUNTING"},{"$f":"'FR-16(7)(v)-1 Functional'!D105","v":"A308"},null,{"$f":"'FR-16(7)(v)-1 Functional'!F105","v":6615123},{"$f":"'FR-16(7)(v)-3 PROD Demand'!G105+'FR-16(7)(v)-4 PROD Energy'!G105+'FR-16(7)(v)-5 PROD Cust'!G105+'FR-16(7)(v)-7 TRANS Demand'!G105+'FR-16(7)(v)-8 TRANS Energy'!G105+'FR-16(7)(v)-9 TRANS Cust'!G105+'FR-16(7)(v)-11 DIST Demand'!G105+'FR-16(7)(v)-12 DIST Energy'!G105+'FR-16(7)(v)-13 DIST Cust'!G105","v":5389317},{"$f":"'FR-16(7)(v)-3 PROD Demand'!H105+'FR-16(7)(v)-4 PROD Energy'!H105+'FR-16(7)(v)-5 PROD Cust'!H105+'FR-16(7)(v)-7 TRANS Demand'!H105+'FR-16(7)(v)-8 TRANS Energy'!H105+'FR-16(7)(v)-9 TRANS Cust'!H105+'FR-16(7)(v)-11 DIST Demand'!H105+'FR-16(7)(v)-12 DIST Energy'!H105+'FR-16(7)(v)-13 DIST Cust'!H105","v":1151465},{"$f":"'FR-16(7)(v)-3 PROD Demand'!I105+'FR-16(7)(v)-4 PROD Energy'!I105+'FR-16(7)(v)-5 PROD Cust'!I105+'FR-16(7)(v)-7 TRANS Demand'!I105+'FR-16(7)(v)-8 TRANS Energy'!I105+'FR-16(7)(v)-9 TRANS Cust'!I105+'FR-16(7)(v)-11 DIST Demand'!I105+'FR-16(7)(v)-12 DIST Energy'!I105+'FR-16(7)(v)-13 DIST Cust'!I105","v":6683},{"$f":"'FR-16(7)(v)-3 PROD Demand'!J105+'FR-16(7)(v)-4 PROD Energy'!J105+'FR-16(7)(v)-5 PROD Cust'!J105+'FR-16(7)(v)-7 TRANS Demand'!J105+'FR-16(7)(v)-8 TRANS Energy'!J105+'FR-16(7)(v)-9 TRANS Cust'!J105+'FR-16(7)(v)-11 DIST Demand'!J105+'FR-16(7)(v)-12 DIST Energy'!J105+'FR-16(7)(v)-13 DIST Cust'!J105","v":9132},{"$f":"'FR-16(7)(v)-3 PROD Demand'!K105+'FR-16(7)(v)-4 PROD Energy'!K105+'FR-16(7)(v)-5 PROD Cust'!K105+'FR-16(7)(v)-7 TRANS Demand'!K105+'FR-16(7)(v)-8 TRANS Energy'!K105+'FR-16(7)(v)-9 TRANS Cust'!K105+'FR-16(7)(v)-11 DIST Demand'!K105+'FR-16(7)(v)-12 DIST Energy'!K105+'FR-16(7)(v)-13 DIST Cust'!K105","v":1257},{"$f":"'FR-16(7)(v)-3 PROD Demand'!L105+'FR-16(7)(v)-4 PROD Energy'!L105+'FR-16(7)(v)-5 PROD Cust'!L105+'FR-16(7)(v)-7 TRANS Demand'!L105+'FR-16(7)(v)-8 TRANS Energy'!L105+'FR-16(7)(v)-9 TRANS Cust'!L105+'FR-16(7)(v)-11 DIST Demand'!L105+'FR-16(7)(v)-12 DIST Energy'!L105+'FR-16(7)(v)-13 DIST Cust'!L105","v":40514},{"$f":"'FR-16(7)(v)-3 PROD Demand'!M105+'FR-16(7)(v)-4 PROD Energy'!M105+'FR-16(7)(v)-5 PROD Cust'!M105+'FR-16(7)(v)-7 TRANS Demand'!M105+'FR-16(7)(v)-8 TRANS Energy'!M105+'FR-16(7)(v)-9 TRANS Cust'!M105+'FR-16(7)(v)-11 DIST Demand'!M105+'FR-16(7)(v)-12 DIST Energy'!M105+'FR-16(7)(v)-13 DIST Cust'!M105","v":-3341},{"$f":"'FR-16(7)(v)-3 PROD Demand'!N105+'FR-16(7)(v)-4 PROD Energy'!N105+'FR-16(7)(v)-5 PROD Cust'!N105+'FR-16(7)(v)-7 TRANS Demand'!N105+'FR-16(7)(v)-8 TRANS Energy'!N105+'FR-16(7)(v)-9 TRANS Cust'!N105+'FR-16(7)(v)-11 DIST Demand'!N105+'FR-16(7)(v)-12 DIST Energy'!N105+'FR-16(7)(v)-13 DIST Cust'!N105","v":1586},{"$f":"'FR-16(7)(v)-3 PROD Demand'!O105+'FR-16(7)(v)-4 PROD Energy'!O105+'FR-16(7)(v)-5 PROD Cust'!O105+'FR-16(7)(v)-7 TRANS Demand'!O105+'FR-16(7)(v)-8 TRANS Energy'!O105+'FR-16(7)(v)-9 TRANS Cust'!O105+'FR-16(7)(v)-11 DIST Demand'!O105+'FR-16(7)(v)-12 DIST Energy'!O105+'FR-16(7)(v)-13 DIST Cust'!O105","v":-612},{"$f":"'FR-16(7)(v)-3 PROD Demand'!P105+'FR-16(7)(v)-4 PROD Energy'!P105+'FR-16(7)(v)-5 PROD Cust'!P105+'FR-16(7)(v)-7 TRANS Demand'!P105+'FR-16(7)(v)-8 TRANS Energy'!P105+'FR-16(7)(v)-9 TRANS Cust'!P105+'FR-16(7)(v)-11 DIST Demand'!P105+'FR-16(7)(v)-12 DIST Energy'!P105+'FR-16(7)(v)-13 DIST Cust'!P105","v":18129},{"$f":"'FR-16(7)(v)-3 PROD Demand'!Q105+'FR-16(7)(v)-4 PROD Energy'!Q105+'FR-16(7)(v)-5 PROD Cust'!Q105+'FR-16(7)(v)-7 TRANS Demand'!Q105+'FR-16(7)(v)-8 TRANS Energy'!Q105+'FR-16(7)(v)-9 TRANS Cust'!Q105+'FR-16(7)(v)-11 DIST Demand'!Q105+'FR-16(7)(v)-12 DIST Energy'!Q105+'FR-16(7)(v)-13 DIST Cust'!Q105","v":993},6615123,0]
[49,null,{"$f":"'FR-16(7)(v)-1 Functional'!C106","v":"CUSTOMER SERVICE & INFORMATION"},{"$f":"'FR-16(7)(v)-1 Functional'!D106","v":"A310"},null,{"$f":"'FR-16(7)(v)-1 Functional'!F106","v":432753},{"$f":"'FR-16(7)(v)-3 PROD Demand'!G106+'FR-16(7)(v)-4 PROD Energy'!G106+'FR-16(7)(v)-5 PROD Cust'!G106+'FR-16(7)(v)-7 TRANS Demand'!G106+'FR-16(7)(v)-8 TRANS Energy'!G106+'FR-16(7)(v)-9 TRANS Cust'!G106+'FR-16(7)(v)-11 DIST Demand'!G106+'FR-16(7)(v)-12 DIST Energy'!G106+'FR-16(7)(v)-13 DIST Cust'!G106","v":390315},{"$f":"'FR-16(7)(v)-3 PROD Demand'!H106+'FR-16(7)(v)-4 PROD Energy'!H106+'FR-16(7)(v)-5 PROD Cust'!H106+'FR-16(7)(v)-7 TRANS Demand'!H106+'FR-16(7)(v)-8 TRANS Energy'!H106+'FR-16(7)(v)-9 TRANS Cust'!H106+'FR-16(7)(v)-11 DIST Demand'!H106+'FR-16(7)(v)-12 DIST Energy'!H106+'FR-16(7)(v)-13 DIST Cust'!H106","v":39424},{"$f":"'FR-16(7)(v)-3 PROD Demand'!I106+'FR-16(7)(v)-4 PROD Energy'!I106+'FR-16(7)(v)-5 PROD Cust'!I106+'FR-16(7)(v)-7 TRANS Demand'!I106+'FR-16(7)(v)-8 TRANS Energy'!I106+'FR-16(7)(v)-9 TRANS Cust'!I106+'FR-16(7)(v)-11 DIST Demand'!I106+'FR-16(7)(v)-12 DIST Energy'!I106+'FR-16(7)(v)-13 DIST Cust'!I106","v":524},{"$f":"'FR-16(7)(v)-3 PROD Demand'!J106+'FR-16(7)(v)-4 PROD Energy'!J106+'FR-16(7)(v)-5 PROD Cust'!J106+'FR-16(7)(v)-7 TRANS Demand'!J106+'FR-16(7)(v)-8 TRANS Energy'!J106+'FR-16(7)(v)-9 TRANS Cust'!J106+'FR-16(7)(v)-11 DIST Demand'!J106+'FR-16(7)(v)-12 DIST Energy'!J106+'FR-16(7)(v)-13 DIST Cust'!J106","v":312},{"$f":"'FR-16(7)(v)-3 PROD Demand'!K106+'FR-16(7)(v)-4 PROD Energy'!K106+'FR-16(7)(v)-5 PROD Cust'!K106+'FR-16(7)(v)-7 TRANS Demand'!K106+'FR-16(7)(v)-8 TRANS Energy'!K106+'FR-16(7)(v)-9 TRANS Cust'!K106+'FR-16(7)(v)-11 DIST Demand'!K106+'FR-16(7)(v)-12 DIST Energy'!K106+'FR-16(7)(v)-13 DIST Cust'!K106","v":43},{"$f":"'FR-16(7)(v)-3 PROD Demand'!L106+'FR-16(7)(v)-4 PROD Energy'!L106+'FR-16(7)(v)-5 PROD Cust'!L106+'FR-16(7)(v)-7 TRANS Demand'!L106+'FR-16(7)(v)-8 TRANS Energy'!L106+'FR-16(7)(v)-9 TRANS Cust'!L106+'FR-16(7)(v)-11 DIST Demand'!L106+'FR-16(7)(v)-12 DIST Energy'!L106+'FR-16(7)(v)-13 DIST Cust'!L106","v":485},{"$f":"'FR-16(7)(v)-3 PROD Demand'!M106+'FR-16(7)(v)-4 PROD Energy'!M106+'FR-16(7)(v)-5 PROD Cust'!M106+'FR-16(7)(v)-7 TRANS Demand'!M106+'FR-16(7)(v)-8 TRANS Energy'!M106+'FR-16(7)(v)-9 TRANS Cust'!M106+'FR-16(7)(v)-11 DIST Demand'!M106+'FR-16(7)(v)-12 DIST Energy'!M106+'FR-16(7)(v)-13 DIST Cust'!M106","v":113},{"$f":"'FR-16(7)(v)-3 PROD Demand'!N106+'FR-16(7)(v)-4 PROD Energy'!N106+'FR-16(7)(v)-5 PROD Cust'!N106+'FR-16(7)(v)-7 TRANS Demand'!N106+'FR-16(7)(v)-8 TRANS Energy'!N106+'FR-16(7)(v)-9 TRANS Cust'!N106+'FR-16(7)(v)-11 DIST Demand'!N106+'FR-16(7)(v)-12 DIST Energy'!N106+'FR-16(7)(v)-13 DIST Cust'!N106","v":30},{"$f":"'FR-16(7)(v)-3 PROD Demand'!O106+'FR-16(7)(v)-4 PROD Energy'!O106+'FR-16(7)(v)-5 PROD Cust'!O106+'FR-16(7)(v)-7 TRANS Demand'!O106+'FR-16(7)(v)-8 TRANS Energy'!O106+'FR-16(7)(v)-9 TRANS Cust'!O106+'FR-16(7)(v)-11 DIST Demand'!O106+'FR-16(7)(v)-12 DIST Energy'!O106+'FR-16(7)(v)-13 DIST Cust'!O106","v":48},{"$f":"'FR-16(7)(v)-3 PROD Demand'!P106+'FR-16(7)(v)-4 PROD Energy'!P106+'FR-16(7)(v)-5 PROD Cust'!P106+'FR-16(7)(v)-7 TRANS Demand'!P106+'FR-16(7)(v)-8 TRANS Energy'!P106+'FR-16(7)(v)-9 TRANS Cust'!P106+'FR-16(7)(v)-11 DIST Demand'!P106+'FR-16(7)(v)-12 DIST Energy'!P106+'FR-16(7)(v)-13 DIST Cust'!P106","v":1424},{"$f":"'FR-16(7)(v)-3 PROD Demand'!Q106+'FR-16(7)(v)-4 PROD Energy'!Q106+'FR-16(7)(v)-5 PROD Cust'!Q106+'FR-16(7)(v)-7 TRANS Demand'!Q106+'FR-16(7)(v)-8 TRANS Energy'!Q106+'FR-16(7)(v)-9 TRANS Cust'!Q106+'FR-16(7)(v)-11 DIST Demand'!Q106+'FR-16(7)(v)-12 DIST Energy'!Q106+'FR-16(7)(v)-13 DIST Cust'!Q106","v":35},432753,0]
[50,null,{"$f":"'FR-16(7)(v)-1 Functional'!C107","v":"SALES"},{"$f":"'FR-16(7)(v)-1 Functional'!D107","v":"A312"},null,{"$f":"'FR-16(7)(v)-1 Functional'!F107","v":0},{"$f":"'FR-16(7)(v)-3 PROD Demand'!G107+'FR-16(7)(v)-4 PROD Energy'!G107+'FR-16(7)(v)-5 PROD Cust'!G107+'FR-16(7)(v)-7 TRANS Demand'!G107+'FR-16(7)(v)-8 TRANS Energy'!G107+'FR-16(7)(v)-9 TRANS Cust'!G107+'FR-16(7)(v)-11 DIST Demand'!G107+'FR-16(7)(v)-12 DIST Energy'!G107+'FR-16(7)(v)-13 DIST Cust'!G107","v":0},{"$f":"'FR-16(7)(v)-3 PROD Demand'!H107+'FR-16(7)(v)-4 PROD Energy'!H107+'FR-16(7)(v)-5 PROD Cust'!H107+'FR-16(7)(v)-7 TRANS Demand'!H107+'FR-16(7)(v)-8 TRANS Energy'!H107+'FR-16(7)(v)-9 TRANS Cust'!H107+'FR-16(7)(v)-11 DIST Demand'!H107+'FR-16(7)(v)-12 DIST Energy'!H107+'FR-16(7)(v)-13 DIST Cust'!H107","v":0},{"$f":"'FR-16(7)(v)-3 PROD Demand'!I107+'FR-16(7)(v)-4 PROD Energy'!I107+'FR-16(7)(v)-5 PROD Cust'!I107+'FR-16(7)(v)-7 TRANS Demand'!I107+'FR-16(7)(v)-8 TRANS Energy'!I107+'FR-16(7)(v)-9 TRANS Cust'!I107+'FR-16(7)(v)-11 DIST Demand'!I107+'FR-16(7)(v)-12 DIST Energy'!I107+'FR-16(7)(v)-13 DIST Cust'!I107","v":0},{"$f":"'FR-16(7)(v)-3 PROD Demand'!J107+'FR-16(7)(v)-4 PROD Energy'!J107+'FR-16(7)(v)-5 PROD Cust'!J107+'FR-16(7)(v)-7 TRANS Demand'!J107+'FR-16(7)(v)-8 TRANS Energy'!J107+'FR-16(7)(v)-9 TRANS Cust'!J107+'FR-16(7)(v)-11 DIST Demand'!J107+'FR-16(7)(v)-12 DIST Energy'!J107+'FR-16(7)(v)-13 DIST Cust'!J107","v":0},{"$f":"'FR-16(7)(v)-3 PROD Demand'!K107+'FR-16(7)(v)-4 PROD Energy'!K107+'FR-16(7)(v)-5 PROD Cust'!K107+'FR-16(7)(v)-7 TRANS Demand'!K107+'FR-16(7)(v)-8 TRANS Energy'!K107+'FR-16(7)(v)-9 TRANS Cust'!K107+'FR-16(7)(v)-11 DIST Demand'!K107+'FR-16(7)(v)-12 DIST Energy'!K107+'FR-16(7)(v)-13 DIST Cust'!K107","v":0},{"$f":"'FR-16(7)(v)-3 PROD Demand'!L107+'FR-16(7)(v)-4 PROD Energy'!L107+'FR-16(7)(v)-5 PROD Cust'!L107+'FR-16(7)(v)-7 TRANS Demand'!L107+'FR-16(7)(v)-8 TRANS Energy'!L107+'FR-16(7)(v)-9 TRANS Cust'!L107+'FR-16(7)(v)-11 DIST Demand'!L107+'FR-16(7)(v)-12 DIST Energy'!L107+'FR-16(7)(v)-13 DIST Cust'!L107","v":0},{"$f":"'FR-16(7)(v)-3 PROD Demand'!M107+'FR-16(7)(v)-4 PROD Energy'!M107+'FR-16(7)(v)-5 PROD Cust'!M107+'FR-16(7)(v)-7 TRANS Demand'!M107+'FR-16(7)(v)-8 TRANS Energy'!M107+'FR-16(7)(v)-9 TRANS Cust'!M107+'FR-16(7)(v)-11 DIST Demand'!M107+'FR-16(7)(v)-12 DIST Energy'!M107+'FR-16(7)(v)-13 DIST Cust'!M107","v":0},{"$f":"'FR-16(7)(v)-3 PROD Demand'!N107+'FR-16(7)(v)-4 PROD Energy'!N107+'FR-16(7)(v)-5 PROD Cust'!N107+'FR-16(7)(v)-7 TRANS Demand'!N107+'FR-16(7)(v)-8 TRANS Energy'!N107+'FR-16(7)(v)-9 TRANS Cust'!N107+'FR-16(7)(v)-11 DIST Demand'!N107+'FR-16(7)(v)-12 DIST Energy'!N107+'FR-16(7)(v)-13 DIST Cust'!N107","v":0},{"$f":"'FR-16(7)(v)-3 PROD Demand'!O107+'FR-16(7)(v)-4 PROD Energy'!O107+'FR-16(7)(v)-5 PROD Cust'!O107+'FR-16(7)(v)-7 TRANS Demand'!O107+'FR-16(7)(v)-8 TRANS Energy'!O107+'FR-16(7)(v)-9 TRANS Cust'!O107+'FR-16(7)(v)-11 DIST Demand'!O107+'FR-16(7)(v)-12 DIST Energy'!O107+'FR-16(7)(v)-13 DIST Cust'!O107","v":0},{"$f":"'FR-16(7)(v)-3 PROD Demand'!P107+'FR-16(7)(v)-4 PROD Energy'!P107+'FR-16(7)(v)-5 PROD Cust'!P107+'FR-16(7)(v)-7 TRANS Demand'!P107+'FR-16(7)(v)-8 TRANS Energy'!P107+'FR-16(7)(v)-9 TRANS Cust'!P107+'FR-16(7)(v)-11 DIST Demand'!P107+'FR-16(7)(v)-12 DIST Energy'!P107+'FR-16(7)(v)-13 DIST Cust'!P107","v":0},{"$f":"'FR-16(7)(v)-3 PROD Demand'!Q107+'FR-16(7)(v)-4 PROD Energy'!Q107+'FR-16(7)(v)-5 PROD Cust'!Q107+'FR-16(7)(v)-7 TRANS Demand'!Q107+'FR-16(7)(v)-8 TRANS Energy'!Q107+'FR-16(7)(v)-9 TRANS Cust'!Q107+'FR-16(7)(v)-11 DIST Demand'!Q107+'FR-16(7)(v)-12 DIST Energy'!Q107+'FR-16(7)(v)-13 DIST Cust'!Q107","v":0},0,0]
[51,null,{"$f":"'FR-16(7)(v)-1 Functional'!C108","v":"ADJUSTMENT"},{"$f":"'FR-16(7)(v)-1 Functional'!D108","v":"A315"},null,{"$f":"'FR-16(7)(v)-1 Functional'!F108","v":0},{"$f":"'FR-16(7)(v)-3 PROD Demand'!G108+'FR-16(7)(v)-4 PROD Energy'!G108+'FR-16(7)(v)-5 PROD Cust'!G108+'FR-16(7)(v)-7 TRANS Demand'!G108+'FR-16(7)(v)-8 TRANS Energy'!G108+'FR-16(7)(v)-9 TRANS Cust'!G108+'FR-16(7)(v)-11 DIST Demand'!G108+'FR-16(7)(v)-12 DIST Energy'!G108+'FR-16(7)(v)-13 DIST Cust'!G108","v":0},{"$f":"'FR-16(7)(v)-3 PROD Demand'!H108+'FR-16(7)(v)-4 PROD Energy'!H108+'FR-16(7)(v)-5 PROD Cust'!H108+'FR-16(7)(v)-7 TRANS Demand'!H108+'FR-16(7)(v)-8 TRANS Energy'!H108+'FR-16(7)(v)-9 TRANS Cust'!H108+'FR-16(7)(v)-11 DIST Demand'!H108+'FR-16(7)(v)-12 DIST Energy'!H108+'FR-16(7)(v)-13 DIST Cust'!H108","v":0},{"$f":"'FR-16(7)(v)-3 PROD Demand'!I108+'FR-16(7)(v)-4 PROD Energy'!I108+'FR-16(7)(v)-5 PROD Cust'!I108+'FR-16(7)(v)-7 TRANS Demand'!I108+'FR-16(7)(v)-8 TRANS Energy'!I108+'FR-16(7)(v)-9 TRANS Cust'!I108+'FR-16(7)(v)-11 DIST Demand'!I108+'FR-16(7)(v)-12 DIST Energy'!I108+'FR-16(7)(v)-13 DIST Cust'!I108","v":0},{"$f":"'FR-16(7)(v)-3 PROD Demand'!J108+'FR-16(7)(v)-4 PROD Energy'!J108+'FR-16(7)(v)-5 PROD Cust'!J108+'FR-16(7)(v)-7 TRANS Demand'!J108+'FR-16(7)(v)-8 TRANS Energy'!J108+'FR-16(7)(v)-9 TRANS Cust'!J108+'FR-16(7)(v)-11 DIST Demand'!J108+'FR-16(7)(v)-12 DIST Energy'!J108+'FR-16(7)(v)-13 DIST Cust'!J108","v":0},{"$f":"'FR-16(7)(v)-3 PROD Demand'!K108+'FR-16(7)(v)-4 PROD Energy'!K108+'FR-16(7)(v)-5 PROD Cust'!K108+'FR-16(7)(v)-7 TRANS Demand'!K108+'FR-16(7)(v)-8 TRANS Energy'!K108+'FR-16(7)(v)-9 TRANS Cust'!K108+'FR-16(7)(v)-11 DIST Demand'!K108+'FR-16(7)(v)-12 DIST Energy'!K108+'FR-16(7)(v)-13 DIST Cust'!K108","v":0},{"$f":"'FR-16(7)(v)-3 PROD Demand'!L108+'FR-16(7)(v)-4 PROD Energy'!L108+'FR-16(7)(v)-5 PROD Cust'!L108+'FR-16(7)(v)-7 TRANS Demand'!L108+'FR-16(7)(v)-8 TRANS Energy'!L108+'FR-16(7)(v)-9 TRANS Cust'!L108+'FR-16(7)(v)-11 DIST Demand'!L108+'FR-16(7)(v)-12 DIST Energy'!L108+'FR-16(7)(v)-13 DIST Cust'!L108","v":0},{"$f":"'FR-16(7)(v)-3 PROD Demand'!M108+'FR-16(7)(v)-4 PROD Energy'!M108+'FR-16(7)(v)-5 PROD Cust'!M108+'FR-16(7)(v)-7 TRANS Demand'!M108+'FR-16(7)(v)-8 TRANS Energy'!M108+'FR-16(7)(v)-9 TRANS Cust'!M108+'FR-16(7)(v)-11 DIST Demand'!M108+'FR-16(7)(v)-12 DIST Energy'!M108+'FR-16(7)(v)-13 DIST Cust'!M108","v":0},{"$f":"'FR-16(7)(v)-3 PROD Demand'!N108+'FR-16(7)(v)-4 PROD Energy'!N108+'FR-16(7)(v)-5 PROD Cust'!N108+'FR-16(7)(v)-7 TRANS Demand'!N108+'FR-16(7)(v)-8 TRANS Energy'!N108+'FR-16(7)(v)-9 TRANS Cust'!N108+'FR-16(7)(v)-11 DIST Demand'!N108+'FR-16(7)(v)-12 DIST Energy'!N108+'FR-16(7)(v)-13 DIST Cust'!N108","v":0},{"$f":"'FR-16(7)(v)-3 PROD Demand'!O108+'FR-16(7)(v)-4 PROD Energy'!O108+'FR-16(7)(v)-5 PROD Cust'!O108+'FR-16(7)(v)-7 TRANS Demand'!O108+'FR-16(7)(v)-8 TRANS Energy'!O108+'FR-16(7)(v)-9 TRANS Cust'!O108+'FR-16(7)(v)-11 DIST Demand'!O108+'FR-16(7)(v)-12 DIST Energy'!O108+'FR-16(7)(v)-13 DIST Cust'!O108","v":0},{"$f":"'FR-16(7)(v)-3 PROD Demand'!P108+'FR-16(7)(v)-4 PROD Energy'!P108+'FR-16(7)(v)-5 PROD Cust'!P108+'FR-16(7)(v)-7 TRANS Demand'!P108+'FR-16(7)(v)-8 TRANS Energy'!P108+'FR-16(7)(v)-9 TRANS Cust'!P108+'FR-16(7)(v)-11 DIST Demand'!P108+'FR-16(7)(v)-12 DIST Energy'!P108+'FR-16(7)(v)-13 DIST Cust'!P108","v":0},{"$f":"'FR-16(7)(v)-3 PROD Demand'!Q108+'FR-16(7)(v)-4 PROD Energy'!Q108+'FR-16(7)(v)-5 PROD Cust'!Q108+'FR-16(7)(v)-7 TRANS Demand'!Q108+'FR-16(7)(v)-8 TRANS Energy'!Q108+'FR-16(7)(v)-9 TRANS Cust'!Q108+'FR-16(7)(v)-11 DIST Demand'!Q108+'FR-16(7)(v)-12 DIST Energy'!Q108+'FR-16(7)(v)-13 DIST Cust'!Q108","v":0},0,0]
[52,null,{"$f":"'FR-16(7)(v)-1 Functional'!C109","v":"  GEN & INTANG PLANT IN SERVICE"},null,null,{"$f":"SUM(F100:F108)","v":56720633},27618069,14259165,75705,{"$f":"SUM(J100:J108)","v":239093},4836,7070315,4750724,228143,2322118,146032,6433,56720633,0]
[53]
[54,"COMMON & OTHER PLANT"]
[55,null,{"$f":"'FR-16(7)(v)-1 Functional'!C112","v":"PRODUCTION - DEMAND"},{"$f":"'FR-16(7)(v)-1 Functional'!D112","v":"K201"},null,{"$f":"'FR-16(7)(v)-1 Functional'!F112","v":9454192},{"$f":"'FR-16(7)(v)-3 PROD Demand'!G112+'FR-16(7)(v)-4 PROD Energy'!G112+'FR-16(7)(v)-5 PROD Cust'!G112+'FR-16(7)(v)-7 TRANS Demand'!G112+'FR-16(7)(v)-8 TRANS Energy'!G112+'FR-16(7)(v)-9 TRANS Cust'!G112+'FR-16(7)(v)-11 DIST Demand'!G112+'FR-16(7)(v)-12 DIST Energy'!G112+'FR-16(7)(v)-13 DIST Cust'!G112","v":4261760},{"$f":"'FR-16(7)(v)-3 PROD Demand'!H112+'FR-16(7)(v)-4 PROD Energy'!H112+'FR-16(7)(v)-5 PROD Cust'!H112+'FR-16(7)(v)-7 TRANS Demand'!H112+'FR-16(7)(v)-8 TRANS Energy'!H112+'FR-16(7)(v)-9 TRANS Cust'!H112+'FR-16(7)(v)-11 DIST Demand'!H112+'FR-16(7)(v)-12 DIST Energy'!H112+'FR-16(7)(v)-13 DIST Cust'!H112","v":2558683},{"$f":"'FR-16(7)(v)-3 PROD Demand'!I112+'FR-16(7)(v)-4 PROD Energy'!I112+'FR-16(7)(v)-5 PROD Cust'!I112+'FR-16(7)(v)-7 TRANS Demand'!I112+'FR-16(7)(v)-8 TRANS Energy'!I112+'FR-16(7)(v)-9 TRANS Cust'!I112+'FR-16(7)(v)-11 DIST Demand'!I112+'FR-16(7)(v)-12 DIST Energy'!I112+'FR-16(7)(v)-13 DIST Cust'!I112","v":12290},{"$f":"'FR-16(7)(v)-3 PROD Demand'!J112+'FR-16(7)(v)-4 PROD Energy'!J112+'FR-16(7)(v)-5 PROD Cust'!J112+'FR-16(7)(v)-7 TRANS Demand'!J112+'FR-16(7)(v)-8 TRANS Energy'!J112+'FR-16(7)(v)-9 TRANS Cust'!J112+'FR-16(7)(v)-11 DIST Demand'!J112+'FR-16(7)(v)-12 DIST Energy'!J112+'FR-16(7)(v)-13 DIST Cust'!J112","v":48500},{"$f":"'FR-16(7)(v)-3 PROD Demand'!K112+'FR-16(7)(v)-4 PROD Energy'!K112+'FR-16(7)(v)-5 PROD Cust'!K112+'FR-16(7)(v)-7 TRANS Demand'!K112+'FR-16(7)(v)-8 TRANS Energy'!K112+'FR-16(7)(v)-9 TRANS Cust'!K112+'FR-16(7)(v)-11 DIST Demand'!K112+'FR-16(7)(v)-12 DIST Energy'!K112+'FR-16(7)(v)-13 DIST Cust'!K112","v":662},{"$f":"'FR-16(7)(v)-3 PROD Demand'!L112+'FR-16(7)(v)-4 PROD Energy'!L112+'FR-16(7)(v)-5 PROD Cust'!L112+'FR-16(7)(v)-7 TRANS Demand'!L112+'FR-16(7)(v)-8 TRANS Energy'!L112+'FR-16(7)(v)-9 TRANS Cust'!L112+'FR-16(7)(v)-11 DIST Demand'!L112+'FR-16(7)(v)-12 DIST Energy'!L112+'FR-16(7)(v)-13 DIST Cust'!L112","v":1275749},{"$f":"'FR-16(7)(v)-3 PROD Demand'!M112+'FR-16(7)(v)-4 PROD Energy'!M112+'FR-16(7)(v)-5 PROD Cust'!M112+'FR-16(7)(v)-7 TRANS Demand'!M112+'FR-16(7)(v)-8 TRANS Energy'!M112+'FR-16(7)(v)-9 TRANS Cust'!M112+'FR-16(7)(v)-11 DIST Demand'!M112+'FR-16(7)(v)-12 DIST Energy'!M112+'FR-16(7)(v)-13 DIST Cust'!M112","v":843408},{"$f":"'FR-16(7)(v)-3 PROD Demand'!N112+'FR-16(7)(v)-4 PROD Energy'!N112+'FR-16(7)(v)-5 PROD Cust'!N112+'FR-16(7)(v)-7 TRANS Demand'!N112+'FR-16(7)(v)-8 TRANS Energy'!N112+'FR-16(7)(v)-9 TRANS Cust'!N112+'FR-16(7)(v)-11 DIST Demand'!N112+'FR-16(7)(v)-12 DIST Energy'!N112+'FR-16(7)(v)-13 DIST Cust'!N112","v":40748},{"$f":"'FR-16(7)(v)-3 PROD Demand'!O112+'FR-16(7)(v)-4 PROD Energy'!O112+'FR-16(7)(v)-5 PROD Cust'!O112+'FR-16(7)(v)-7 TRANS Demand'!O112+'FR-16(7)(v)-8 TRANS Energy'!O112+'FR-16(7)(v)-9 TRANS Cust'!O112+'FR-16(7)(v)-11 DIST Demand'!O112+'FR-16(7)(v)-12 DIST Energy'!O112+'FR-16(7)(v)-13 DIST Cust'!O112","v":399629},{"$f":"'FR-16(7)(v)-3 PROD Demand'!P112+'FR-16(7)(v)-4 PROD Energy'!P112+'FR-16(7)(v)-5 PROD Cust'!P112+'FR-16(7)(v)-7 TRANS Demand'!P112+'FR-16(7)(v)-8 TRANS Energy'!P112+'FR-16(7)(v)-9 TRANS Cust'!P112+'FR-16(7)(v)-11 DIST Demand'!P112+'FR-16(7)(v)-12 DIST Energy'!P112+'FR-16(7)(v)-13 DIST Cust'!P112","v":11723},{"$f":"'FR-16(7)(v)-3 PROD Demand'!Q112+'FR-16(7)(v)-4 PROD Energy'!Q112+'FR-16(7)(v)-5 PROD Cust'!Q112+'FR-16(7)(v)-7 TRANS Demand'!Q112+'FR-16(7)(v)-8 TRANS Energy'!Q112+'FR-16(7)(v)-9 TRANS Cust'!Q112+'FR-16(7)(v)-11 DIST Demand'!Q112+'FR-16(7)(v)-12 DIST Energy'!Q112+'FR-16(7)(v)-13 DIST Cust'!Q112","v":1040},{"$f":"SUM(G112:Q112)","v":9454192},{"$f":"F112-R112","v":0}]
[56,null,{"$f":"'FR-16(7)(v)-1 Functional'!C113","v":"PRODUCTION - ENERGY"},{"$f":"'FR-16(7)(v)-1 Functional'!D113","v":"K301"},null,{"$f":"'FR-16(7)(v)-1 Functional'!F113","v":11046644},{"$f":"'FR-16(7)(v)-3 PROD Demand'!G113+'FR-16(7)(v)-4 PROD Energy'!G113+'FR-16(7)(v)-5 PROD Cust'!G113+'FR-16(7)(v)-7 TRANS Demand'!G113+'FR-16(7)(v)-8 TRANS Energy'!G113+'FR-16(7)(v)-9 TRANS Cust'!G113+'FR-16(7)(v)-11 DIST Demand'!G113+'FR-16(7)(v)-12 DIST Energy'!G113+'FR-16(7)(v)-13 DIST Cust'!G113","v":4169667},{"$f":"'FR-16(7)(v)-3 PROD Demand'!H113+'FR-16(7)(v)-4 PROD Energy'!H113+'FR-16(7)(v)-5 PROD Cust'!H113+'FR-16(7)(v)-7 TRANS Demand'!H113+'FR-16(7)(v)-8 TRANS Energy'!H113+'FR-16(7)(v)-9 TRANS Cust'!H113+'FR-16(7)(v)-11 DIST Demand'!H113+'FR-16(7)(v)-12 DIST Energy'!H113+'FR-16(7)(v)-13 DIST Cust'!H113","v":2975082},{"$f":"'FR-16(7)(v)-3 PROD Demand'!I113+'FR-16(7)(v)-4 PROD Energy'!I113+'FR-16(7)(v)-5 PROD Cust'!I113+'FR-16(7)(v)-7 TRANS Demand'!I113+'FR-16(7)(v)-8 TRANS Energy'!I113+'FR-16(7)(v)-9 TRANS Cust'!I113+'FR-16(7)(v)-11 DIST Demand'!I113+'FR-16(7)(v)-12 DIST Energy'!I113+'FR-16(7)(v)-13 DIST Cust'!I113","v":16680},{"$f":"'FR-16(7)(v)-3 PROD Demand'!J113+'FR-16(7)(v)-4 PROD Energy'!J113+'FR-16(7)(v)-5 PROD Cust'!J113+'FR-16(7)(v)-7 TRANS Demand'!J113+'FR-16(7)(v)-8 TRANS Energy'!J113+'FR-16(7)(v)-9 TRANS Cust'!J113+'FR-16(7)(v)-11 DIST Demand'!J113+'FR-16(7)(v)-12 DIST Energy'!J113+'FR-16(7)(v)-13 DIST Cust'!J113","v":47280},{"$f":"'FR-16(7)(v)-3 PROD Demand'!K113+'FR-16(7)(v)-4 PROD Energy'!K113+'FR-16(7)(v)-5 PROD Cust'!K113+'FR-16(7)(v)-7 TRANS Demand'!K113+'FR-16(7)(v)-8 TRANS Energy'!K113+'FR-16(7)(v)-9 TRANS Cust'!K113+'FR-16(7)(v)-11 DIST Demand'!K113+'FR-16(7)(v)-12 DIST Energy'!K113+'FR-16(7)(v)-13 DIST Cust'!K113","v":773},{"$f":"'FR-16(7)(v)-3 PROD Demand'!L113+'FR-16(7)(v)-4 PROD Energy'!L113+'FR-16(7)(v)-5 PROD Cust'!L113+'FR-16(7)(v)-7 TRANS Demand'!L113+'FR-16(7)(v)-8 TRANS Energy'!L113+'FR-16(7)(v)-9 TRANS Cust'!L113+'FR-16(7)(v)-11 DIST Demand'!L113+'FR-16(7)(v)-12 DIST Energy'!L113+'FR-16(7)(v)-13 DIST Cust'!L113","v":1822807},{"$f":"'FR-16(7)(v)-3 PROD Demand'!M113+'FR-16(7)(v)-4 PROD Energy'!M113+'FR-16(7)(v)-5 PROD Cust'!M113+'FR-16(7)(v)-7 TRANS Demand'!M113+'FR-16(7)(v)-8 TRANS Energy'!M113+'FR-16(7)(v)-9 TRANS Cust'!M113+'FR-16(7)(v)-11 DIST Demand'!M113+'FR-16(7)(v)-12 DIST Energy'!M113+'FR-16(7)(v)-13 DIST Cust'!M113","v":1266056},{"$f":"'FR-16(7)(v)-3 PROD Demand'!N113+'FR-16(7)(v)-4 PROD Energy'!N113+'FR-16(7)(v)-5 PROD Cust'!N113+'FR-16(7)(v)-7 TRANS Demand'!N113+'FR-16(7)(v)-8 TRANS Energy'!N113+'FR-16(7)(v)-9 TRANS Cust'!N113+'FR-16(7)(v)-11 DIST Demand'!N113+'FR-16(7)(v)-12 DIST Energy'!N113+'FR-16(7)(v)-13 DIST Cust'!N113","v":59320},{"$f":"'FR-16(7)(v)-3 PROD Demand'!O113+'FR-16(7)(v)-4 PROD Energy'!O113+'FR-16(7)(v)-5 PROD Cust'!O113+'FR-16(7)(v)-7 TRANS Demand'!O113+'FR-16(7)(v)-8 TRANS Energy'!O113+'FR-16(7)(v)-9 TRANS Cust'!O113+'FR-16(7)(v)-11 DIST Demand'!O113+'FR-16(7)(v)-12 DIST Energy'!O113+'FR-16(7)(v)-13 DIST Cust'!O113","v":639601},{"$f":"'FR-16(7)(v)-3 PROD Demand'!P113+'FR-16(7)(v)-4 PROD Energy'!P113+'FR-16(7)(v)-5 PROD Cust'!P113+'FR-16(7)(v)-7 TRANS Demand'!P113+'FR-16(7)(v)-8 TRANS Energy'!P113+'FR-16(7)(v)-9 TRANS Cust'!P113+'FR-16(7)(v)-11 DIST Demand'!P113+'FR-16(7)(v)-12 DIST Energy'!P113+'FR-16(7)(v)-13 DIST Cust'!P113","v":48163},{"$f":"'FR-16(7)(v)-3 PROD Demand'!Q113+'FR-16(7)(v)-4 PROD Energy'!Q113+'FR-16(7)(v)-5 PROD Cust'!Q113+'FR-16(7)(v)-7 TRANS Demand'!Q113+'FR-16(7)(v)-8 TRANS Energy'!Q113+'FR-16(7)(v)-9 TRANS Cust'!Q113+'FR-16(7)(v)-11 DIST Demand'!Q113+'FR-16(7)(v)-12 DIST Energy'!Q113+'FR-16(7)(v)-13 DIST Cust'!Q113","v":1215},11046644,0]
[57,null,{"$f":"'FR-16(7)(v)-1 Functional'!C114","v":"TRANSMISSION"},{"$f":"'FR-16(7)(v)-1 Functional'!D114","v":"K202"},null,{"$f":"'FR-16(7)(v)-1 Functional'!F114","v":1493971},{"$f":"'FR-16(7)(v)-3 PROD Demand'!G114+'FR-16(7)(v)-4 PROD Energy'!G114+'FR-16(7)(v)-5 PROD Cust'!G114+'FR-16(7)(v)-7 TRANS Demand'!G114+'FR-16(7)(v)-8 TRANS Energy'!G114+'FR-16(7)(v)-9 TRANS Cust'!G114+'FR-16(7)(v)-11 DIST Demand'!G114+'FR-16(7)(v)-12 DIST Energy'!G114+'FR-16(7)(v)-13 DIST Cust'!G114","v":673453},{"$f":"'FR-16(7)(v)-3 PROD Demand'!H114+'FR-16(7)(v)-4 PROD Energy'!H114+'FR-16(7)(v)-5 PROD Cust'!H114+'FR-16(7)(v)-7 TRANS Demand'!H114+'FR-16(7)(v)-8 TRANS Energy'!H114+'FR-16(7)(v)-9 TRANS Cust'!H114+'FR-16(7)(v)-11 DIST Demand'!H114+'FR-16(7)(v)-12 DIST Energy'!H114+'FR-16(7)(v)-13 DIST Cust'!H114","v":404328},{"$f":"'FR-16(7)(v)-3 PROD Demand'!I114+'FR-16(7)(v)-4 PROD Energy'!I114+'FR-16(7)(v)-5 PROD Cust'!I114+'FR-16(7)(v)-7 TRANS Demand'!I114+'FR-16(7)(v)-8 TRANS Energy'!I114+'FR-16(7)(v)-9 TRANS Cust'!I114+'FR-16(7)(v)-11 DIST Demand'!I114+'FR-16(7)(v)-12 DIST Energy'!I114+'FR-16(7)(v)-13 DIST Cust'!I114","v":1942},{"$f":"'FR-16(7)(v)-3 PROD Demand'!J114+'FR-16(7)(v)-4 PROD Energy'!J114+'FR-16(7)(v)-5 PROD Cust'!J114+'FR-16(7)(v)-7 TRANS Demand'!J114+'FR-16(7)(v)-8 TRANS Energy'!J114+'FR-16(7)(v)-9 TRANS Cust'!J114+'FR-16(7)(v)-11 DIST Demand'!J114+'FR-16(7)(v)-12 DIST Energy'!J114+'FR-16(7)(v)-13 DIST Cust'!J114","v":7664},{"$f":"'FR-16(7)(v)-3 PROD Demand'!K114+'FR-16(7)(v)-4 PROD Energy'!K114+'FR-16(7)(v)-5 PROD Cust'!K114+'FR-16(7)(v)-7 TRANS Demand'!K114+'FR-16(7)(v)-8 TRANS Energy'!K114+'FR-16(7)(v)-9 TRANS Cust'!K114+'FR-16(7)(v)-11 DIST Demand'!K114+'FR-16(7)(v)-12 DIST Energy'!K114+'FR-16(7)(v)-13 DIST Cust'!K114","v":105},{"$f":"'FR-16(7)(v)-3 PROD Demand'!L114+'FR-16(7)(v)-4 PROD Energy'!L114+'FR-16(7)(v)-5 PROD Cust'!L114+'FR-16(7)(v)-7 TRANS Demand'!L114+'FR-16(7)(v)-8 TRANS Energy'!L114+'FR-16(7)(v)-9 TRANS Cust'!L114+'FR-16(7)(v)-11 DIST Demand'!L114+'FR-16(7)(v)-12 DIST Energy'!L114+'FR-16(7)(v)-13 DIST Cust'!L114","v":201596},{"$f":"'FR-16(7)(v)-3 PROD Demand'!M114+'FR-16(7)(v)-4 PROD Energy'!M114+'FR-16(7)(v)-5 PROD Cust'!M114+'FR-16(7)(v)-7 TRANS Demand'!M114+'FR-16(7)(v)-8 TRANS Energy'!M114+'FR-16(7)(v)-9 TRANS Cust'!M114+'FR-16(7)(v)-11 DIST Demand'!M114+'FR-16(7)(v)-12 DIST Energy'!M114+'FR-16(7)(v)-13 DIST Cust'!M114","v":133277},{"$f":"'FR-16(7)(v)-3 PROD Demand'!N114+'FR-16(7)(v)-4 PROD Energy'!N114+'FR-16(7)(v)-5 PROD Cust'!N114+'FR-16(7)(v)-7 TRANS Demand'!N114+'FR-16(7)(v)-8 TRANS Energy'!N114+'FR-16(7)(v)-9 TRANS Cust'!N114+'FR-16(7)(v)-11 DIST Demand'!N114+'FR-16(7)(v)-12 DIST Energy'!N114+'FR-16(7)(v)-13 DIST Cust'!N114","v":6439},{"$f":"'FR-16(7)(v)-3 PROD Demand'!O114+'FR-16(7)(v)-4 PROD Energy'!O114+'FR-16(7)(v)-5 PROD Cust'!O114+'FR-16(7)(v)-7 TRANS Demand'!O114+'FR-16(7)(v)-8 TRANS Energy'!O114+'FR-16(7)(v)-9 TRANS Cust'!O114+'FR-16(7)(v)-11 DIST Demand'!O114+'FR-16(7)(v)-12 DIST Energy'!O114+'FR-16(7)(v)-13 DIST Cust'!O114","v":63150},{"$f":"'FR-16(7)(v)-3 PROD Demand'!P114+'FR-16(7)(v)-4 PROD Energy'!P114+'FR-16(7)(v)-5 PROD Cust'!P114+'FR-16(7)(v)-7 TRANS Demand'!P114+'FR-16(7)(v)-8 TRANS Energy'!P114+'FR-16(7)(v)-9 TRANS Cust'!P114+'FR-16(7)(v)-11 DIST Demand'!P114+'FR-16(7)(v)-12 DIST Energy'!P114+'FR-16(7)(v)-13 DIST Cust'!P114","v":1853},{"$f":"'FR-16(7)(v)-3 PROD Demand'!Q114+'FR-16(7)(v)-4 PROD Energy'!Q114+'FR-16(7)(v)-5 PROD Cust'!Q114+'FR-16(7)(v)-7 TRANS Demand'!Q114+'FR-16(7)(v)-8 TRANS Energy'!Q114+'FR-16(7)(v)-9 TRANS Cust'!Q114+'FR-16(7)(v)-11 DIST Demand'!Q114+'FR-16(7)(v)-12 DIST Energy'!Q114+'FR-16(7)(v)-13 DIST Cust'!Q114","v":164},1493971,0]
[58,null,{"$f":"'FR-16(7)(v)-1 Functional'!C115","v":"DISTRIBUTION - DEMAND"},{"$f":"'FR-16(7)(v)-1 Functional'!D115","v":"K201"},null,{"$f":"'FR-16(7)(v)-1 Functional'!F115","v":5017651},{"$f":"'FR-16(7)(v)-3 PROD Demand'!G115+'FR-16(7)(v)-4 PROD Energy'!G115+'FR-16(7)(v)-5 PROD Cust'!G115+'FR-16(7)(v)-7 TRANS Demand'!G115+'FR-16(7)(v)-8 TRANS Energy'!G115+'FR-16(7)(v)-9 TRANS Cust'!G115+'FR-16(7)(v)-11 DIST Demand'!G115+'FR-16(7)(v)-12 DIST Energy'!G115+'FR-16(7)(v)-13 DIST Cust'!G115","v":2261856},{"$f":"'FR-16(7)(v)-3 PROD Demand'!H115+'FR-16(7)(v)-4 PROD Energy'!H115+'FR-16(7)(v)-5 PROD Cust'!H115+'FR-16(7)(v)-7 TRANS Demand'!H115+'FR-16(7)(v)-8 TRANS Energy'!H115+'FR-16(7)(v)-9 TRANS Cust'!H115+'FR-16(7)(v)-11 DIST Demand'!H115+'FR-16(7)(v)-12 DIST Energy'!H115+'FR-16(7)(v)-13 DIST Cust'!H115","v":1357977},{"$f":"'FR-16(7)(v)-3 PROD Demand'!I115+'FR-16(7)(v)-4 PROD Energy'!I115+'FR-16(7)(v)-5 PROD Cust'!I115+'FR-16(7)(v)-7 TRANS Demand'!I115+'FR-16(7)(v)-8 TRANS Energy'!I115+'FR-16(7)(v)-9 TRANS Cust'!I115+'FR-16(7)(v)-11 DIST Demand'!I115+'FR-16(7)(v)-12 DIST Energy'!I115+'FR-16(7)(v)-13 DIST Cust'!I115","v":6523},{"$f":"'FR-16(7)(v)-3 PROD Demand'!J115+'FR-16(7)(v)-4 PROD Energy'!J115+'FR-16(7)(v)-5 PROD Cust'!J115+'FR-16(7)(v)-7 TRANS Demand'!J115+'FR-16(7)(v)-8 TRANS Energy'!J115+'FR-16(7)(v)-9 TRANS Cust'!J115+'FR-16(7)(v)-11 DIST Demand'!J115+'FR-16(7)(v)-12 DIST Energy'!J115+'FR-16(7)(v)-13 DIST Cust'!J115","v":25741},{"$f":"'FR-16(7)(v)-3 PROD Demand'!K115+'FR-16(7)(v)-4 PROD Energy'!K115+'FR-16(7)(v)-5 PROD Cust'!K115+'FR-16(7)(v)-7 TRANS Demand'!K115+'FR-16(7)(v)-8 TRANS Energy'!K115+'FR-16(7)(v)-9 TRANS Cust'!K115+'FR-16(7)(v)-11 DIST Demand'!K115+'FR-16(7)(v)-12 DIST Energy'!K115+'FR-16(7)(v)-13 DIST Cust'!K115","v":351},{"$f":"'FR-16(7)(v)-3 PROD Demand'!L115+'FR-16(7)(v)-4 PROD Energy'!L115+'FR-16(7)(v)-5 PROD Cust'!L115+'FR-16(7)(v)-7 TRANS Demand'!L115+'FR-16(7)(v)-8 TRANS Energy'!L115+'FR-16(7)(v)-9 TRANS Cust'!L115+'FR-16(7)(v)-11 DIST Demand'!L115+'FR-16(7)(v)-12 DIST Energy'!L115+'FR-16(7)(v)-13 DIST Cust'!L115","v":677082},{"$f":"'FR-16(7)(v)-3 PROD Demand'!M115+'FR-16(7)(v)-4 PROD Energy'!M115+'FR-16(7)(v)-5 PROD Cust'!M115+'FR-16(7)(v)-7 TRANS Demand'!M115+'FR-16(7)(v)-8 TRANS Energy'!M115+'FR-16(7)(v)-9 TRANS Cust'!M115+'FR-16(7)(v)-11 DIST Demand'!M115+'FR-16(7)(v)-12 DIST Energy'!M115+'FR-16(7)(v)-13 DIST Cust'!M115","v":447625},{"$f":"'FR-16(7)(v)-3 PROD Demand'!N115+'FR-16(7)(v)-4 PROD Energy'!N115+'FR-16(7)(v)-5 PROD Cust'!N115+'FR-16(7)(v)-7 TRANS Demand'!N115+'FR-16(7)(v)-8 TRANS Energy'!N115+'FR-16(7)(v)-9 TRANS Cust'!N115+'FR-16(7)(v)-11 DIST Demand'!N115+'FR-16(7)(v)-12 DIST Energy'!N115+'FR-16(7)(v)-13 DIST Cust'!N115","v":21626},{"$f":"'FR-16(7)(v)-3 PROD Demand'!O115+'FR-16(7)(v)-4 PROD Energy'!O115+'FR-16(7)(v)-5 PROD Cust'!O115+'FR-16(7)(v)-7 TRANS Demand'!O115+'FR-16(7)(v)-8 TRANS Energy'!O115+'FR-16(7)(v)-9 TRANS Cust'!O115+'FR-16(7)(v)-11 DIST Demand'!O115+'FR-16(7)(v)-12 DIST Energy'!O115+'FR-16(7)(v)-13 DIST Cust'!O115","v":212096},{"$f":"'FR-16(7)(v)-3 PROD Demand'!P115+'FR-16(7)(v)-4 PROD Energy'!P115+'FR-16(7)(v)-5 PROD Cust'!P115+'FR-16(7)(v)-7 TRANS Demand'!P115+'FR-16(7)(v)-8 TRANS Energy'!P115+'FR-16(7)(v)-9 TRANS Cust'!P115+'FR-16(7)(v)-11 DIST Demand'!P115+'FR-16(7)(v)-12 DIST Energy'!P115+'FR-16(7)(v)-13 DIST Cust'!P115","v":6222},{"$f":"'FR-16(7)(v)-3 PROD Demand'!Q115+'FR-16(7)(v)-4 PROD Energy'!Q115+'FR-16(7)(v)-5 PROD Cust'!Q115+'FR-16(7)(v)-7 TRANS Demand'!Q115+'FR-16(7)(v)-8 TRANS Energy'!Q115+'FR-16(7)(v)-9 TRANS Cust'!Q115+'FR-16(7)(v)-11 DIST Demand'!Q115+'FR-16(7)(v)-12 DIST Energy'!Q115+'FR-16(7)(v)-13 DIST Cust'!Q115","v":552},5017651,0]
[59,null,{"$f":"'FR-16(7)(v)-1 Functional'!C116","v":"DISTRIBUTION - CUSTOMER"},{"$f":"'FR-16(7)(v)-1 Functional'!D116","v":"K405"},null,{"$f":"'FR-16(7)(v)-1 Functional'!F116","v":1101435},{"$f":"'FR-16(7)(v)-3 PROD Demand'!G116+'FR-16(7)(v)-4 PROD Energy'!G116+'FR-16(7)(v)-5 PROD Cust'!G116+'FR-16(7)(v)-7 TRANS Demand'!G116+'FR-16(7)(v)-8 TRANS Energy'!G116+'FR-16(7)(v)-9 TRANS Cust'!G116+'FR-16(7)(v)-11 DIST Demand'!G116+'FR-16(7)(v)-12 DIST Energy'!G116+'FR-16(7)(v)-13 DIST Cust'!G116","v":993428},{"$f":"'FR-16(7)(v)-3 PROD Demand'!H116+'FR-16(7)(v)-4 PROD Energy'!H116+'FR-16(7)(v)-5 PROD Cust'!H116+'FR-16(7)(v)-7 TRANS Demand'!H116+'FR-16(7)(v)-8 TRANS Energy'!H116+'FR-16(7)(v)-9 TRANS Cust'!H116+'FR-16(7)(v)-11 DIST Demand'!H116+'FR-16(7)(v)-12 DIST Energy'!H116+'FR-16(7)(v)-13 DIST Cust'!H116","v":100341},{"$f":"'FR-16(7)(v)-3 PROD Demand'!I116+'FR-16(7)(v)-4 PROD Energy'!I116+'FR-16(7)(v)-5 PROD Cust'!I116+'FR-16(7)(v)-7 TRANS Demand'!I116+'FR-16(7)(v)-8 TRANS Energy'!I116+'FR-16(7)(v)-9 TRANS Cust'!I116+'FR-16(7)(v)-11 DIST Demand'!I116+'FR-16(7)(v)-12 DIST Energy'!I116+'FR-16(7)(v)-13 DIST Cust'!I116","v":1333},{"$f":"'FR-16(7)(v)-3 PROD Demand'!J116+'FR-16(7)(v)-4 PROD Energy'!J116+'FR-16(7)(v)-5 PROD Cust'!J116+'FR-16(7)(v)-7 TRANS Demand'!J116+'FR-16(7)(v)-8 TRANS Energy'!J116+'FR-16(7)(v)-9 TRANS Cust'!J116+'FR-16(7)(v)-11 DIST Demand'!J116+'FR-16(7)(v)-12 DIST Energy'!J116+'FR-16(7)(v)-13 DIST Cust'!J116","v":793},{"$f":"'FR-16(7)(v)-3 PROD Demand'!K116+'FR-16(7)(v)-4 PROD Energy'!K116+'FR-16(7)(v)-5 PROD Cust'!K116+'FR-16(7)(v)-7 TRANS Demand'!K116+'FR-16(7)(v)-8 TRANS Energy'!K116+'FR-16(7)(v)-9 TRANS Cust'!K116+'FR-16(7)(v)-11 DIST Demand'!K116+'FR-16(7)(v)-12 DIST Energy'!K116+'FR-16(7)(v)-13 DIST Cust'!K116","v":110},{"$f":"'FR-16(7)(v)-3 PROD Demand'!L116+'FR-16(7)(v)-4 PROD Energy'!L116+'FR-16(7)(v)-5 PROD Cust'!L116+'FR-16(7)(v)-7 TRANS Demand'!L116+'FR-16(7)(v)-8 TRANS Energy'!L116+'FR-16(7)(v)-9 TRANS Cust'!L116+'FR-16(7)(v)-11 DIST Demand'!L116+'FR-16(7)(v)-12 DIST Energy'!L116+'FR-16(7)(v)-13 DIST Cust'!L116","v":1234},{"$f":"'FR-16(7)(v)-3 PROD Demand'!M116+'FR-16(7)(v)-4 PROD Energy'!M116+'FR-16(7)(v)-5 PROD Cust'!M116+'FR-16(7)(v)-7 TRANS Demand'!M116+'FR-16(7)(v)-8 TRANS Energy'!M116+'FR-16(7)(v)-9 TRANS Cust'!M116+'FR-16(7)(v)-11 DIST Demand'!M116+'FR-16(7)(v)-12 DIST Energy'!M116+'FR-16(7)(v)-13 DIST Cust'!M116","v":286},{"$f":"'FR-16(7)(v)-3 PROD Demand'!N116+'FR-16(7)(v)-4 PROD Energy'!N116+'FR-16(7)(v)-5 PROD Cust'!N116+'FR-16(7)(v)-7 TRANS Demand'!N116+'FR-16(7)(v)-8 TRANS Energy'!N116+'FR-16(7)(v)-9 TRANS Cust'!N116+'FR-16(7)(v)-11 DIST Demand'!N116+'FR-16(7)(v)-12 DIST Energy'!N116+'FR-16(7)(v)-13 DIST Cust'!N116","v":77},{"$f":"'FR-16(7)(v)-3 PROD Demand'!O116+'FR-16(7)(v)-4 PROD Energy'!O116+'FR-16(7)(v)-5 PROD Cust'!O116+'FR-16(7)(v)-7 TRANS Demand'!O116+'FR-16(7)(v)-8 TRANS Energy'!O116+'FR-16(7)(v)-9 TRANS Cust'!O116+'FR-16(7)(v)-11 DIST Demand'!O116+'FR-16(7)(v)-12 DIST Energy'!O116+'FR-16(7)(v)-13 DIST Cust'!O116","v":121},{"$f":"'FR-16(7)(v)-3 PROD Demand'!P116+'FR-16(7)(v)-4 PROD Energy'!P116+'FR-16(7)(v)-5 PROD Cust'!P116+'FR-16(7)(v)-7 TRANS Demand'!P116+'FR-16(7)(v)-8 TRANS Energy'!P116+'FR-16(7)(v)-9 TRANS Cust'!P116+'FR-16(7)(v)-11 DIST Demand'!P116+'FR-16(7)(v)-12 DIST Energy'!P116+'FR-16(7)(v)-13 DIST Cust'!P116","v":3624},{"$f":"'FR-16(7)(v)-3 PROD Demand'!Q116+'FR-16(7)(v)-4 PROD Energy'!Q116+'FR-16(7)(v)-5 PROD Cust'!Q116+'FR-16(7)(v)-7 TRANS Demand'!Q116+'FR-16(7)(v)-8 TRANS Energy'!Q116+'FR-16(7)(v)-9 TRANS Cust'!Q116+'FR-16(7)(v)-11 DIST Demand'!Q116+'FR-16(7)(v)-12 DIST Energy'!Q116+'FR-16(7)(v)-13 DIST Cust'!Q116","v":88},1101435,0]
[60,null,{"$f":"'FR-16(7)(v)-1 Functional'!C117","v":"CUSTOMER ACCOUNTING"},{"$f":"'FR-16(7)(v)-1 Functional'!D117","v":"A308"},null,{"$f":"'FR-16(7)(v)-1 Functional'!F117","v":3744042},{"$f":"'FR-16(7)(v)-3 PROD Demand'!G117+'FR-16(7)(v)-4 PROD Energy'!G117+'FR-16(7)(v)-5 PROD Cust'!G117+'FR-16(7)(v)-7 TRANS Demand'!G117+'FR-16(7)(v)-8 TRANS Energy'!G117+'FR-16(7)(v)-9 TRANS Cust'!G117+'FR-16(7)(v)-11 DIST Demand'!G117+'FR-16(7)(v)-12 DIST Energy'!G117+'FR-16(7)(v)-13 DIST Cust'!G117","v":3050257},{"$f":"'FR-16(7)(v)-3 PROD Demand'!H117+'FR-16(7)(v)-4 PROD Energy'!H117+'FR-16(7)(v)-5 PROD Cust'!H117+'FR-16(7)(v)-7 TRANS Demand'!H117+'FR-16(7)(v)-8 TRANS Energy'!H117+'FR-16(7)(v)-9 TRANS Cust'!H117+'FR-16(7)(v)-11 DIST Demand'!H117+'FR-16(7)(v)-12 DIST Energy'!H117+'FR-16(7)(v)-13 DIST Cust'!H117","v":651709},{"$f":"'FR-16(7)(v)-3 PROD Demand'!I117+'FR-16(7)(v)-4 PROD Energy'!I117+'FR-16(7)(v)-5 PROD Cust'!I117+'FR-16(7)(v)-7 TRANS Demand'!I117+'FR-16(7)(v)-8 TRANS Energy'!I117+'FR-16(7)(v)-9 TRANS Cust'!I117+'FR-16(7)(v)-11 DIST Demand'!I117+'FR-16(7)(v)-12 DIST Energy'!I117+'FR-16(7)(v)-13 DIST Cust'!I117","v":3783},{"$f":"'FR-16(7)(v)-3 PROD Demand'!J117+'FR-16(7)(v)-4 PROD Energy'!J117+'FR-16(7)(v)-5 PROD Cust'!J117+'FR-16(7)(v)-7 TRANS Demand'!J117+'FR-16(7)(v)-8 TRANS Energy'!J117+'FR-16(7)(v)-9 TRANS Cust'!J117+'FR-16(7)(v)-11 DIST Demand'!J117+'FR-16(7)(v)-12 DIST Energy'!J117+'FR-16(7)(v)-13 DIST Cust'!J117","v":5168},{"$f":"'FR-16(7)(v)-3 PROD Demand'!K117+'FR-16(7)(v)-4 PROD Energy'!K117+'FR-16(7)(v)-5 PROD Cust'!K117+'FR-16(7)(v)-7 TRANS Demand'!K117+'FR-16(7)(v)-8 TRANS Energy'!K117+'FR-16(7)(v)-9 TRANS Cust'!K117+'FR-16(7)(v)-11 DIST Demand'!K117+'FR-16(7)(v)-12 DIST Energy'!K117+'FR-16(7)(v)-13 DIST Cust'!K117","v":712},{"$f":"'FR-16(7)(v)-3 PROD Demand'!L117+'FR-16(7)(v)-4 PROD Energy'!L117+'FR-16(7)(v)-5 PROD Cust'!L117+'FR-16(7)(v)-7 TRANS Demand'!L117+'FR-16(7)(v)-8 TRANS Energy'!L117+'FR-16(7)(v)-9 TRANS Cust'!L117+'FR-16(7)(v)-11 DIST Demand'!L117+'FR-16(7)(v)-12 DIST Energy'!L117+'FR-16(7)(v)-13 DIST Cust'!L117","v":22929},{"$f":"'FR-16(7)(v)-3 PROD Demand'!M117+'FR-16(7)(v)-4 PROD Energy'!M117+'FR-16(7)(v)-5 PROD Cust'!M117+'FR-16(7)(v)-7 TRANS Demand'!M117+'FR-16(7)(v)-8 TRANS Energy'!M117+'FR-16(7)(v)-9 TRANS Cust'!M117+'FR-16(7)(v)-11 DIST Demand'!M117+'FR-16(7)(v)-12 DIST Energy'!M117+'FR-16(7)(v)-13 DIST Cust'!M117","v":-1891},{"$f":"'FR-16(7)(v)-3 PROD Demand'!N117+'FR-16(7)(v)-4 PROD Energy'!N117+'FR-16(7)(v)-5 PROD Cust'!N117+'FR-16(7)(v)-7 TRANS Demand'!N117+'FR-16(7)(v)-8 TRANS Energy'!N117+'FR-16(7)(v)-9 TRANS Cust'!N117+'FR-16(7)(v)-11 DIST Demand'!N117+'FR-16(7)(v)-12 DIST Energy'!N117+'FR-16(7)(v)-13 DIST Cust'!N117","v":898},{"$f":"'FR-16(7)(v)-3 PROD Demand'!O117+'FR-16(7)(v)-4 PROD Energy'!O117+'FR-16(7)(v)-5 PROD Cust'!O117+'FR-16(7)(v)-7 TRANS Demand'!O117+'FR-16(7)(v)-8 TRANS Energy'!O117+'FR-16(7)(v)-9 TRANS Cust'!O117+'FR-16(7)(v)-11 DIST Demand'!O117+'FR-16(7)(v)-12 DIST Energy'!O117+'FR-16(7)(v)-13 DIST Cust'!O117","v":-346},{"$f":"'FR-16(7)(v)-3 PROD Demand'!P117+'FR-16(7)(v)-4 PROD Energy'!P117+'FR-16(7)(v)-5 PROD Cust'!P117+'FR-16(7)(v)-7 TRANS Demand'!P117+'FR-16(7)(v)-8 TRANS Energy'!P117+'FR-16(7)(v)-9 TRANS Cust'!P117+'FR-16(7)(v)-11 DIST Demand'!P117+'FR-16(7)(v)-12 DIST Energy'!P117+'FR-16(7)(v)-13 DIST Cust'!P117","v":10261},{"$f":"'FR-16(7)(v)-3 PROD Demand'!Q117+'FR-16(7)(v)-4 PROD Energy'!Q117+'FR-16(7)(v)-5 PROD Cust'!Q117+'FR-16(7)(v)-7 TRANS Demand'!Q117+'FR-16(7)(v)-8 TRANS Energy'!Q117+'FR-16(7)(v)-9 TRANS Cust'!Q117+'FR-16(7)(v)-11 DIST Demand'!Q117+'FR-16(7)(v)-12 DIST Energy'!Q117+'FR-16(7)(v)-13 DIST Cust'!Q117","v":562},3744042,0]
[61,null,{"$f":"'FR-16(7)(v)-1 Functional'!C118","v":"CUSTOMER SERVICE & INFORMATION"},{"$f":"'FR-16(7)(v)-1 Functional'!D118","v":"A310"},null,{"$f":"'FR-16(7)(v)-1 Functional'!F118","v":244930},{"$f":"'FR-16(7)(v)-3 PROD Demand'!G118+'FR-16(7)(v)-4 PROD Energy'!G118+'FR-16(7)(v)-5 PROD Cust'!G118+'FR-16(7)(v)-7 TRANS Demand'!G118+'FR-16(7)(v)-8 TRANS Energy'!G118+'FR-16(7)(v)-9 TRANS Cust'!G118+'FR-16(7)(v)-11 DIST Demand'!G118+'FR-16(7)(v)-12 DIST Energy'!G118+'FR-16(7)(v)-13 DIST Cust'!G118","v":220913},{"$f":"'FR-16(7)(v)-3 PROD Demand'!H118+'FR-16(7)(v)-4 PROD Energy'!H118+'FR-16(7)(v)-5 PROD Cust'!H118+'FR-16(7)(v)-7 TRANS Demand'!H118+'FR-16(7)(v)-8 TRANS Energy'!H118+'FR-16(7)(v)-9 TRANS Cust'!H118+'FR-16(7)(v)-11 DIST Demand'!H118+'FR-16(7)(v)-12 DIST Energy'!H118+'FR-16(7)(v)-13 DIST Cust'!H118","v":22313},{"$f":"'FR-16(7)(v)-3 PROD Demand'!I118+'FR-16(7)(v)-4 PROD Energy'!I118+'FR-16(7)(v)-5 PROD Cust'!I118+'FR-16(7)(v)-7 TRANS Demand'!I118+'FR-16(7)(v)-8 TRANS Energy'!I118+'FR-16(7)(v)-9 TRANS Cust'!I118+'FR-16(7)(v)-11 DIST Demand'!I118+'FR-16(7)(v)-12 DIST Energy'!I118+'FR-16(7)(v)-13 DIST Cust'!I118","v":296},{"$f":"'FR-16(7)(v)-3 PROD Demand'!J118+'FR-16(7)(v)-4 PROD Energy'!J118+'FR-16(7)(v)-5 PROD Cust'!J118+'FR-16(7)(v)-7 TRANS Demand'!J118+'FR-16(7)(v)-8 TRANS Energy'!J118+'FR-16(7)(v)-9 TRANS Cust'!J118+'FR-16(7)(v)-11 DIST Demand'!J118+'FR-16(7)(v)-12 DIST Energy'!J118+'FR-16(7)(v)-13 DIST Cust'!J118","v":176},{"$f":"'FR-16(7)(v)-3 PROD Demand'!K118+'FR-16(7)(v)-4 PROD Energy'!K118+'FR-16(7)(v)-5 PROD Cust'!K118+'FR-16(7)(v)-7 TRANS Demand'!K118+'FR-16(7)(v)-8 TRANS Energy'!K118+'FR-16(7)(v)-9 TRANS Cust'!K118+'FR-16(7)(v)-11 DIST Demand'!K118+'FR-16(7)(v)-12 DIST Energy'!K118+'FR-16(7)(v)-13 DIST Cust'!K118","v":24},{"$f":"'FR-16(7)(v)-3 PROD Demand'!L118+'FR-16(7)(v)-4 PROD Energy'!L118+'FR-16(7)(v)-5 PROD Cust'!L118+'FR-16(7)(v)-7 TRANS Demand'!L118+'FR-16(7)(v)-8 TRANS Energy'!L118+'FR-16(7)(v)-9 TRANS Cust'!L118+'FR-16(7)(v)-11 DIST Demand'!L118+'FR-16(7)(v)-12 DIST Energy'!L118+'FR-16(7)(v)-13 DIST Cust'!L118","v":274},{"$f":"'FR-16(7)(v)-3 PROD Demand'!M118+'FR-16(7)(v)-4 PROD Energy'!M118+'FR-16(7)(v)-5 PROD Cust'!M118+'FR-16(7)(v)-7 TRANS Demand'!M118+'FR-16(7)(v)-8 TRANS Energy'!M118+'FR-16(7)(v)-9 TRANS Cust'!M118+'FR-16(7)(v)-11 DIST Demand'!M118+'FR-16(7)(v)-12 DIST Energy'!M118+'FR-16(7)(v)-13 DIST Cust'!M118","v":64},{"$f":"'FR-16(7)(v)-3 PROD Demand'!N118+'FR-16(7)(v)-4 PROD Energy'!N118+'FR-16(7)(v)-5 PROD Cust'!N118+'FR-16(7)(v)-7 TRANS Demand'!N118+'FR-16(7)(v)-8 TRANS Energy'!N118+'FR-16(7)(v)-9 TRANS Cust'!N118+'FR-16(7)(v)-11 DIST Demand'!N118+'FR-16(7)(v)-12 DIST Energy'!N118+'FR-16(7)(v)-13 DIST Cust'!N118","v":17},{"$f":"'FR-16(7)(v)-3 PROD Demand'!O118+'FR-16(7)(v)-4 PROD Energy'!O118+'FR-16(7)(v)-5 PROD Cust'!O118+'FR-16(7)(v)-7 TRANS Demand'!O118+'FR-16(7)(v)-8 TRANS Energy'!O118+'FR-16(7)(v)-9 TRANS Cust'!O118+'FR-16(7)(v)-11 DIST Demand'!O118+'FR-16(7)(v)-12 DIST Energy'!O118+'FR-16(7)(v)-13 DIST Cust'!O118","v":27},{"$f":"'FR-16(7)(v)-3 PROD Demand'!P118+'FR-16(7)(v)-4 PROD Energy'!P118+'FR-16(7)(v)-5 PROD Cust'!P118+'FR-16(7)(v)-7 TRANS Demand'!P118+'FR-16(7)(v)-8 TRANS Energy'!P118+'FR-16(7)(v)-9 TRANS Cust'!P118+'FR-16(7)(v)-11 DIST Demand'!P118+'FR-16(7)(v)-12 DIST Energy'!P118+'FR-16(7)(v)-13 DIST Cust'!P118","v":806},{"$f":"'FR-16(7)(v)-3 PROD Demand'!Q118+'FR-16(7)(v)-4 PROD Energy'!Q118+'FR-16(7)(v)-5 PROD Cust'!Q118+'FR-16(7)(v)-7 TRANS Demand'!Q118+'FR-16(7)(v)-8 TRANS Energy'!Q118+'FR-16(7)(v)-9 TRANS Cust'!Q118+'FR-16(7)(v)-11 DIST Demand'!Q118+'FR-16(7)(v)-12 DIST Energy'!Q118+'FR-16(7)(v)-13 DIST Cust'!Q118","v":20},244930,0]
[62,null,{"$f":"'FR-16(7)(v)-1 Functional'!C119","v":"SALES"},{"$f":"'FR-16(7)(v)-1 Functional'!D119","v":"A312"},null,{"$f":"'FR-16(7)(v)-1 Functional'!F119","v":0},{"$f":"'FR-16(7)(v)-3 PROD Demand'!G119+'FR-16(7)(v)-4 PROD Energy'!G119+'FR-16(7)(v)-5 PROD Cust'!G119+'FR-16(7)(v)-7 TRANS Demand'!G119+'FR-16(7)(v)-8 TRANS Energy'!G119+'FR-16(7)(v)-9 TRANS Cust'!G119+'FR-16(7)(v)-11 DIST Demand'!G119+'FR-16(7)(v)-12 DIST Energy'!G119+'FR-16(7)(v)-13 DIST Cust'!G119","v":0},{"$f":"'FR-16(7)(v)-3 PROD Demand'!H119+'FR-16(7)(v)-4 PROD Energy'!H119+'FR-16(7)(v)-5 PROD Cust'!H119+'FR-16(7)(v)-7 TRANS Demand'!H119+'FR-16(7)(v)-8 TRANS Energy'!H119+'FR-16(7)(v)-9 TRANS Cust'!H119+'FR-16(7)(v)-11 DIST Demand'!H119+'FR-16(7)(v)-12 DIST Energy'!H119+'FR-16(7)(v)-13 DIST Cust'!H119","v":0},{"$f":"'FR-16(7)(v)-3 PROD Demand'!I119+'FR-16(7)(v)-4 PROD Energy'!I119+'FR-16(7)(v)-5 PROD Cust'!I119+'FR-16(7)(v)-7 TRANS Demand'!I119+'FR-16(7)(v)-8 TRANS Energy'!I119+'FR-16(7)(v)-9 TRANS Cust'!I119+'FR-16(7)(v)-11 DIST Demand'!I119+'FR-16(7)(v)-12 DIST Energy'!I119+'FR-16(7)(v)-13 DIST Cust'!I119","v":0},{"$f":"'FR-16(7)(v)-3 PROD Demand'!J119+'FR-16(7)(v)-4 PROD Energy'!J119+'FR-16(7)(v)-5 PROD Cust'!J119+'FR-16(7)(v)-7 TRANS Demand'!J119+'FR-16(7)(v)-8 TRANS Energy'!J119+'FR-16(7)(v)-9 TRANS Cust'!J119+'FR-16(7)(v)-11 DIST Demand'!J119+'FR-16(7)(v)-12 DIST Energy'!J119+'FR-16(7)(v)-13 DIST Cust'!J119","v":0},{"$f":"'FR-16(7)(v)-3 PROD Demand'!K119+'FR-16(7)(v)-4 PROD Energy'!K119+'FR-16(7)(v)-5 PROD Cust'!K119+'FR-16(7)(v)-7 TRANS Demand'!K119+'FR-16(7)(v)-8 TRANS Energy'!K119+'FR-16(7)(v)-9 TRANS Cust'!K119+'FR-16(7)(v)-11 DIST Demand'!K119+'FR-16(7)(v)-12 DIST Energy'!K119+'FR-16(7)(v)-13 DIST Cust'!K119","v":0},{"$f":"'FR-16(7)(v)-3 PROD Demand'!L119+'FR-16(7)(v)-4 PROD Energy'!L119+'FR-16(7)(v)-5 PROD Cust'!L119+'FR-16(7)(v)-7 TRANS Demand'!L119+'FR-16(7)(v)-8 TRANS Energy'!L119+'FR-16(7)(v)-9 TRANS Cust'!L119+'FR-16(7)(v)-11 DIST Demand'!L119+'FR-16(7)(v)-12 DIST Energy'!L119+'FR-16(7)(v)-13 DIST Cust'!L119","v":0},{"$f":"'FR-16(7)(v)-3 PROD Demand'!M119+'FR-16(7)(v)-4 PROD Energy'!M119+'FR-16(7)(v)-5 PROD Cust'!M119+'FR-16(7)(v)-7 TRANS Demand'!M119+'FR-16(7)(v)-8 TRANS Energy'!M119+'FR-16(7)(v)-9 TRANS Cust'!M119+'FR-16(7)(v)-11 DIST Demand'!M119+'FR-16(7)(v)-12 DIST Energy'!M119+'FR-16(7)(v)-13 DIST Cust'!M119","v":0},{"$f":"'FR-16(7)(v)-3 PROD Demand'!N119+'FR-16(7)(v)-4 PROD Energy'!N119+'FR-16(7)(v)-5 PROD Cust'!N119+'FR-16(7)(v)-7 TRANS Demand'!N119+'FR-16(7)(v)-8 TRANS Energy'!N119+'FR-16(7)(v)-9 TRANS Cust'!N119+'FR-16(7)(v)-11 DIST Demand'!N119+'FR-16(7)(v)-12 DIST Energy'!N119+'FR-16(7)(v)-13 DIST Cust'!N119","v":0},{"$f":"'FR-16(7)(v)-3 PROD Demand'!O119+'FR-16(7)(v)-4 PROD Energy'!O119+'FR-16(7)(v)-5 PROD Cust'!O119+'FR-16(7)(v)-7 TRANS Demand'!O119+'FR-16(7)(v)-8 TRANS Energy'!O119+'FR-16(7)(v)-9 TRANS Cust'!O119+'FR-16(7)(v)-11 DIST Demand'!O119+'FR-16(7)(v)-12 DIST Energy'!O119+'FR-16(7)(v)-13 DIST Cust'!O119","v":0},{"$f":"'FR-16(7)(v)-3 PROD Demand'!P119+'FR-16(7)(v)-4 PROD Energy'!P119+'FR-16(7)(v)-5 PROD Cust'!P119+'FR-16(7)(v)-7 TRANS Demand'!P119+'FR-16(7)(v)-8 TRANS Energy'!P119+'FR-16(7)(v)-9 TRANS Cust'!P119+'FR-16(7)(v)-11 DIST Demand'!P119+'FR-16(7)(v)-12 DIST Energy'!P119+'FR-16(7)(v)-13 DIST Cust'!P119","v":0},{"$f":"'FR-16(7)(v)-3 PROD Demand'!Q119+'FR-16(7)(v)-4 PROD Energy'!Q119+'FR-16(7)(v)-5 PROD Cust'!Q119+'FR-16(7)(v)-7 TRANS Demand'!Q119+'FR-16(7)(v)-8 TRANS Energy'!Q119+'FR-16(7)(v)-9 TRANS Cust'!Q119+'FR-16(7)(v)-11 DIST Demand'!Q119+'FR-16(7)(v)-12 DIST Energy'!Q119+'FR-16(7)(v)-13 DIST Cust'!Q119","v":0},0,0]
[63,null,{"$f":"'FR-16(7)(v)-1 Functional'!C120","v":"ADJUSTMENT"},{"$f":"'FR-16(7)(v)-1 Functional'!D120","v":"A315"},null,{"$f":"'FR-16(7)(v)-1 Functional'!F120","v":0},{"$f":"'FR-16(7)(v)-3 PROD Demand'!G120+'FR-16(7)(v)-4 PROD Energy'!G120+'FR-16(7)(v)-5 PROD Cust'!G120+'FR-16(7)(v)-7 TRANS Demand'!G120+'FR-16(7)(v)-8 TRANS Energy'!G120+'FR-16(7)(v)-9 TRANS Cust'!G120+'FR-16(7)(v)-11 DIST Demand'!G120+'FR-16(7)(v)-12 DIST Energy'!G120+'FR-16(7)(v)-13 DIST Cust'!G120","v":0},{"$f":"'FR-16(7)(v)-3 PROD Demand'!H120+'FR-16(7)(v)-4 PROD Energy'!H120+'FR-16(7)(v)-5 PROD Cust'!H120+'FR-16(7)(v)-7 TRANS Demand'!H120+'FR-16(7)(v)-8 TRANS Energy'!H120+'FR-16(7)(v)-9 TRANS Cust'!H120+'FR-16(7)(v)-11 DIST Demand'!H120+'FR-16(7)(v)-12 DIST Energy'!H120+'FR-16(7)(v)-13 DIST Cust'!H120","v":0},{"$f":"'FR-16(7)(v)-3 PROD Demand'!I120+'FR-16(7)(v)-4 PROD Energy'!I120+'FR-16(7)(v)-5 PROD Cust'!I120+'FR-16(7)(v)-7 TRANS Demand'!I120+'FR-16(7)(v)-8 TRANS Energy'!I120+'FR-16(7)(v)-9 TRANS Cust'!I120+'FR-16(7)(v)-11 DIST Demand'!I120+'FR-16(7)(v)-12 DIST Energy'!I120+'FR-16(7)(v)-13 DIST Cust'!I120","v":0},{"$f":"'FR-16(7)(v)-3 PROD Demand'!J120+'FR-16(7)(v)-4 PROD Energy'!J120+'FR-16(7)(v)-5 PROD Cust'!J120+'FR-16(7)(v)-7 TRANS Demand'!J120+'FR-16(7)(v)-8 TRANS Energy'!J120+'FR-16(7)(v)-9 TRANS Cust'!J120+'FR-16(7)(v)-11 DIST Demand'!J120+'FR-16(7)(v)-12 DIST Energy'!J120+'FR-16(7)(v)-13 DIST Cust'!J120","v":0},{"$f":"'FR-16(7)(v)-3 PROD Demand'!K120+'FR-16(7)(v)-4 PROD Energy'!K120+'FR-16(7)(v)-5 PROD Cust'!K120+'FR-16(7)(v)-7 TRANS Demand'!K120+'FR-16(7)(v)-8 TRANS Energy'!K120+'FR-16(7)(v)-9 TRANS Cust'!K120+'FR-16(7)(v)-11 DIST Demand'!K120+'FR-16(7)(v)-12 DIST Energy'!K120+'FR-16(7)(v)-13 DIST Cust'!K120","v":0},{"$f":"'FR-16(7)(v)-3 PROD Demand'!L120+'FR-16(7)(v)-4 PROD Energy'!L120+'FR-16(7)(v)-5 PROD Cust'!L120+'FR-16(7)(v)-7 TRANS Demand'!L120+'FR-16(7)(v)-8 TRANS Energy'!L120+'FR-16(7)(v)-9 TRANS Cust'!L120+'FR-16(7)(v)-11 DIST Demand'!L120+'FR-16(7)(v)-12 DIST Energy'!L120+'FR-16(7)(v)-13 DIST Cust'!L120","v":0},{"$f":"'FR-16(7)(v)-3 PROD Demand'!M120+'FR-16(7)(v)-4 PROD Energy'!M120+'FR-16(7)(v)-5 PROD Cust'!M120+'FR-16(7)(v)-7 TRANS Demand'!M120+'FR-16(7)(v)-8 TRANS Energy'!M120+'FR-16(7)(v)-9 TRANS Cust'!M120+'FR-16(7)(v)-11 DIST Demand'!M120+'FR-16(7)(v)-12 DIST Energy'!M120+'FR-16(7)(v)-13 DIST Cust'!M120","v":0},{"$f":"'FR-16(7)(v)-3 PROD Demand'!N120+'FR-16(7)(v)-4 PROD Energy'!N120+'FR-16(7)(v)-5 PROD Cust'!N120+'FR-16(7)(v)-7 TRANS Demand'!N120+'FR-16(7)(v)-8 TRANS Energy'!N120+'FR-16(7)(v)-9 TRANS Cust'!N120+'FR-16(7)(v)-11 DIST Demand'!N120+'FR-16(7)(v)-12 DIST Energy'!N120+'FR-16(7)(v)-13 DIST Cust'!N120","v":0},{"$f":"'FR-16(7)(v)-3 PROD Demand'!O120+'FR-16(7)(v)-4 PROD Energy'!O120+'FR-16(7)(v)-5 PROD Cust'!O120+'FR-16(7)(v)-7 TRANS Demand'!O120+'FR-16(7)(v)-8 TRANS Energy'!O120+'FR-16(7)(v)-9 TRANS Cust'!O120+'FR-16(7)(v)-11 DIST Demand'!O120+'FR-16(7)(v)-12 DIST Energy'!O120+'FR-16(7)(v)-13 DIST Cust'!O120","v":0},{"$f":"'FR-16(7)(v)-3 PROD Demand'!P120+'FR-16(7)(v)-4 PROD Energy'!P120+'FR-16(7)(v)-5 PROD Cust'!P120+'FR-16(7)(v)-7 TRANS Demand'!P120+'FR-16(7)(v)-8 TRANS Energy'!P120+'FR-16(7)(v)-9 TRANS Cust'!P120+'FR-16(7)(v)-11 DIST Demand'!P120+'FR-16(7)(v)-12 DIST Energy'!P120+'FR-16(7)(v)-13 DIST Cust'!P120","v":0},{"$f":"'FR-16(7)(v)-3 PROD Demand'!Q120+'FR-16(7)(v)-4 PROD Energy'!Q120+'FR-16(7)(v)-5 PROD Cust'!Q120+'FR-16(7)(v)-7 TRANS Demand'!Q120+'FR-16(7)(v)-8 TRANS Energy'!Q120+'FR-16(7)(v)-9 TRANS Cust'!Q120+'FR-16(7)(v)-11 DIST Demand'!Q120+'FR-16(7)(v)-12 DIST Energy'!Q120+'FR-16(7)(v)-13 DIST Cust'!Q120","v":0},0,0]
[64,null,{"$f":"'FR-16(7)(v)-1 Functional'!C121","v":"  COMMON & OTHER PLANT IN SERVICE"},null,null,{"$f":"SUM(F112:F120)","v":32102865},15631334,8070433,42847,{"$f":"SUM(J112:J120)","v":135322},2737,4001671,2688825,129125,1314278,82652,3641,32102865,0]
[65]
[66,"GROSS ELECTRIC PLANT IN SERVICE",null,null,null,{"$f":"F97+F109+F121","v":1949359835},950855827,502749698,2477965,{"$f":"J97+J109+J121","v":9708499},145103,244536260,161404647,7890667,57809196,11570718,211255,1949359835,0]
[]
[{"$f":"co_name","v":"DUKE ENERGY KENTUCKY, INC."},null,null,null,null,null,null,null,null,null,null,null,null,null,null,null,null,{"$f":"R1","v":"FR-16(7)(v)-14"}]
[{"$f":"$A$2","v":"TOTAL CLASS ALLOCATED - ELECTRIC COST OF SERVICE"},null,null,null,null,null,null,null,null,null,null,null,null,null,null,null,null,{"$f":"R2","v":"WITNESS RESPONSIBLE:"}]
[{"$f":"case_name","v":"CASE NO: 2019-00271"},null,null,null,null,null,null,null,null,null,null,null,null,null,null,null,null,{"$f":"Witness","v":"JAMES E. ZIOLKOWSKI"}]
[{"$f":"data_filing","v":"DATA: 12 MONTHS ACTUAL  & 0 MONTHS ESTIMATED"},null,null,null,null,null,null,null,null,null,null,null,null,null,null,null,null,{"$f":"\"PAGE \"&Pages2-12&\" OF \"&Pages2","v":"PAGE 3 OF 15"}]
[{"$f":"type","v":"TYPE OF FILING: \"X\" ORIGINAL   UPDATED    REVISED  "}]
[]
[null,null,null,null,null,{"$f":"F$7","v":"TOTAL"},null,{"$f":"H$7","v":"DS"},{"$f":"I$7","v":"GSFL"},{"$f":"J$7","v":"EH"},{"$f":"K$7","v":"SP"},"DT SEC","DT PRI","DP","TT",null,"OTHER"]
["LINE",null,null,null,null,{"$f":"F$8","v":"CLASS"},{"$f":"G$8","v":"RS"},{"$f":"H$8","v":"SECONDARY"},{"$f":"I$8","v":"SECONDARY"},{"$f":"J$8","v":"SECONDARY"},{"$f":"K$8","v":"SECONDARY"},"SECONDARY","PRIMARY","PRIMARY","TRANSMISSION","LT","WATER",{"$f":"R8","v":"TOTAL"},"ALL"]
["NO.","DEPRECIATION RESERVE",null,"ALLO",null,{"$f":"F$9","v":"ALLOCATED"},{"$f":"G$9","v":"RESIDENTIAL"},{"$f":"H$9","v":"DISTRIBUTION"},{"$f":"I$9","v":"DISTRIBUTION"},{"$f":"J$9","v":"DISTRIBUTION"},{"$f":"K$9","v":"DISTRIBUTION"},"DISTRIBUTION","DISTRIBUTION","DISTRIBUTION","TIME OF DAY","LIGHTING","PUMPING",{"$f":"R9","v":"AT ISSUE"},"OTHER"]
[null,null,"Schedule 3",null,null,null,{"$f":"G$10","v":3},{"$f":"H$10","v":4},{"$f":"I$10","v":5},{"$f":"J$10","v":6},{"$f":"K$10","v":7},8,9,10,11,12,13,null," "]
[1,"PRODUCTION PLANT"]
[2,null,{"$f":"'FR-16(7)(v)-1 Functional'!C136","v":"PRODUCTION STEAM"},{"$f":"'FR-16(7)(v)-1 Functional'!D136","v":"K201"},null,{"$f":"'FR-16(7)(v)-1 Functional'!F136","v":401160304},{"$f":"'FR-16(7)(v)-3 PROD Demand'!G136+'FR-16(7)(v)-4 PROD Energy'!G136+'FR-16(7)(v)-5 PROD Cust'!G136+'FR-16(7)(v)-7 TRANS Demand'!G136+'FR-16(7)(v)-8 TRANS Energy'!G136+'FR-16(7)(v)-9 TRANS Cust'!G136+'FR-16(7)(v)-11 DIST Demand'!G136+'FR-16(7)(v)-12 DIST Energy'!G136+'FR-16(7)(v)-13 DIST Cust'!G136","v":180835042},{"$f":"'FR-16(7)(v)-3 PROD Demand'!H136+'FR-16(7)(v)-4 PROD Energy'!H136+'FR-16(7)(v)-5 PROD Cust'!H136+'FR-16(7)(v)-7 TRANS Demand'!H136+'FR-16(7)(v)-8 TRANS Energy'!H136+'FR-16(7)(v)-9 TRANS Cust'!H136+'FR-16(7)(v)-11 DIST Demand'!H136+'FR-16(7)(v)-12 DIST Energy'!H136+'FR-16(7)(v)-13 DIST Cust'!H136","v":108570025},{"$f":"'FR-16(7)(v)-3 PROD Demand'!I136+'FR-16(7)(v)-4 PROD Energy'!I136+'FR-16(7)(v)-5 PROD Cust'!I136+'FR-16(7)(v)-7 TRANS Demand'!I136+'FR-16(7)(v)-8 TRANS Energy'!I136+'FR-16(7)(v)-9 TRANS Cust'!I136+'FR-16(7)(v)-11 DIST Demand'!I136+'FR-16(7)(v)-12 DIST Energy'!I136+'FR-16(7)(v)-13 DIST Cust'!I136","v":521508},{"$f":"'FR-16(7)(v)-3 PROD Demand'!J136+'FR-16(7)(v)-4 PROD Energy'!J136+'FR-16(7)(v)-5 PROD Cust'!J136+'FR-16(7)(v)-7 TRANS Demand'!J136+'FR-16(7)(v)-8 TRANS Energy'!J136+'FR-16(7)(v)-9 TRANS Cust'!J136+'FR-16(7)(v)-11 DIST Demand'!J136+'FR-16(7)(v)-12 DIST Energy'!J136+'FR-16(7)(v)-13 DIST Cust'!J136","v":2057952},{"$f":"'FR-16(7)(v)-3 PROD Demand'!K136+'FR-16(7)(v)-4 PROD Energy'!K136+'FR-16(7)(v)-5 PROD Cust'!K136+'FR-16(7)(v)-7 TRANS Demand'!K136+'FR-16(7)(v)-8 TRANS Energy'!K136+'FR-16(7)(v)-9 TRANS Cust'!K136+'FR-16(7)(v)-11 DIST Demand'!K136+'FR-16(7)(v)-12 DIST Energy'!K136+'FR-16(7)(v)-13 DIST Cust'!K136","v":28081},{"$f":"'FR-16(7)(v)-3 PROD Demand'!L136+'FR-16(7)(v)-4 PROD Energy'!L136+'FR-16(7)(v)-5 PROD Cust'!L136+'FR-16(7)(v)-7 TRANS Demand'!L136+'FR-16(7)(v)-8 TRANS Energy'!L136+'FR-16(7)(v)-9 TRANS Cust'!L136+'FR-16(7)(v)-11 DIST Demand'!L136+'FR-16(7)(v)-12 DIST Energy'!L136+'FR-16(7)(v)-13 DIST Cust'!L136","v":54132571},{"$f":"'FR-16(7)(v)-3 PROD Demand'!M136+'FR-16(7)(v)-4 PROD Energy'!M136+'FR-16(7)(v)-5 PROD Cust'!M136+'FR-16(7)(v)-7 TRANS Demand'!M136+'FR-16(7)(v)-8 TRANS Energy'!M136+'FR-16(7)(v)-9 TRANS Cust'!M136+'FR-16(7)(v)-11 DIST Demand'!M136+'FR-16(7)(v)-12 DIST Energy'!M136+'FR-16(7)(v)-13 DIST Cust'!M136","v":35787511},{"$f":"'FR-16(7)(v)-3 PROD Demand'!N136+'FR-16(7)(v)-4 PROD Energy'!N136+'FR-16(7)(v)-5 PROD Cust'!N136+'FR-16(7)(v)-7 TRANS Demand'!N136+'FR-16(7)(v)-8 TRANS Energy'!N136+'FR-16(7)(v)-9 TRANS Cust'!N136+'FR-16(7)(v)-11 DIST Demand'!N136+'FR-16(7)(v)-12 DIST Energy'!N136+'FR-16(7)(v)-13 DIST Cust'!N136","v":1729001},{"$f":"'FR-16(7)(v)-3 PROD Demand'!O136+'FR-16(7)(v)-4 PROD Energy'!O136+'FR-16(7)(v)-5 PROD Cust'!O136+'FR-16(7)(v)-7 TRANS Demand'!O136+'FR-16(7)(v)-8 TRANS Energy'!O136+'FR-16(7)(v)-9 TRANS Cust'!O136+'FR-16(7)(v)-11 DIST Demand'!O136+'FR-16(7)(v)-12 DIST Energy'!O136+'FR-16(7)(v)-13 DIST Cust'!O136","v":16957046},{"$f":"'FR-16(7)(v)-3 PROD Demand'!P136+'FR-16(7)(v)-4 PROD Energy'!P136+'FR-16(7)(v)-5 PROD Cust'!P136+'FR-16(7)(v)-7 TRANS Demand'!P136+'FR-16(7)(v)-8 TRANS Energy'!P136+'FR-16(7)(v)-9 TRANS Cust'!P136+'FR-16(7)(v)-11 DIST Demand'!P136+'FR-16(7)(v)-12 DIST Energy'!P136+'FR-16(7)(v)-13 DIST Cust'!P136","v":497439},{"$f":"'FR-16(7)(v)-3 PROD Demand'!Q136+'FR-16(7)(v)-4 PROD Energy'!Q136+'FR-16(7)(v)-5 PROD Cust'!Q136+'FR-16(7)(v)-7 TRANS Demand'!Q136+'FR-16(7)(v)-8 TRANS Energy'!Q136+'FR-16(7)(v)-9 TRANS Cust'!Q136+'FR-16(7)(v)-11 DIST Demand'!Q136+'FR-16(7)(v)-12 DIST Energy'!Q136+'FR-16(7)(v)-13 DIST Cust'!Q136","v":44128},{"$f":"SUM(G136:Q136)","v":401160304},{"$f":"F136-R136","v":0}]
[3,null,{"$f":"'FR-16(7)(v)-1 Functional'!C137","v":"PRODUCTION OTHER"},{"$f":"'FR-16(7)(v)-1 Functional'!D137","v":"K201"},null,{"$f":"'FR-16(7)(v)-1 Functional'!F137","v":184221788},{"$f":"'FR-16(7)(v)-3 PROD Demand'!G137+'FR-16(7)(v)-4 PROD Energy'!G137+'FR-16(7)(v)-5 PROD Cust'!G137+'FR-16(7)(v)-7 TRANS Demand'!G137+'FR-16(7)(v)-8 TRANS Energy'!G137+'FR-16(7)(v)-9 TRANS Cust'!G137+'FR-16(7)(v)-11 DIST Demand'!G137+'FR-16(7)(v)-12 DIST Energy'!G137+'FR-16(7)(v)-13 DIST Cust'!G137","v":83043497},{"$f":"'FR-16(7)(v)-3 PROD Demand'!H137+'FR-16(7)(v)-4 PROD Energy'!H137+'FR-16(7)(v)-5 PROD Cust'!H137+'FR-16(7)(v)-7 TRANS Demand'!H137+'FR-16(7)(v)-8 TRANS Energy'!H137+'FR-16(7)(v)-9 TRANS Cust'!H137+'FR-16(7)(v)-11 DIST Demand'!H137+'FR-16(7)(v)-12 DIST Energy'!H137+'FR-16(7)(v)-13 DIST Cust'!H137","v":49857785},{"$f":"'FR-16(7)(v)-3 PROD Demand'!I137+'FR-16(7)(v)-4 PROD Energy'!I137+'FR-16(7)(v)-5 PROD Cust'!I137+'FR-16(7)(v)-7 TRANS Demand'!I137+'FR-16(7)(v)-8 TRANS Energy'!I137+'FR-16(7)(v)-9 TRANS Cust'!I137+'FR-16(7)(v)-11 DIST Demand'!I137+'FR-16(7)(v)-12 DIST Energy'!I137+'FR-16(7)(v)-13 DIST Cust'!I137","v":239488},{"$f":"'FR-16(7)(v)-3 PROD Demand'!J137+'FR-16(7)(v)-4 PROD Energy'!J137+'FR-16(7)(v)-5 PROD Cust'!J137+'FR-16(7)(v)-7 TRANS Demand'!J137+'FR-16(7)(v)-8 TRANS Energy'!J137+'FR-16(7)(v)-9 TRANS Cust'!J137+'FR-16(7)(v)-11 DIST Demand'!J137+'FR-16(7)(v)-12 DIST Energy'!J137+'FR-16(7)(v)-13 DIST Cust'!J137","v":945058},{"$f":"'FR-16(7)(v)-3 PROD Demand'!K137+'FR-16(7)(v)-4 PROD Energy'!K137+'FR-16(7)(v)-5 PROD Cust'!K137+'FR-16(7)(v)-7 TRANS Demand'!K137+'FR-16(7)(v)-8 TRANS Energy'!K137+'FR-16(7)(v)-9 TRANS Cust'!K137+'FR-16(7)(v)-11 DIST Demand'!K137+'FR-16(7)(v)-12 DIST Energy'!K137+'FR-16(7)(v)-13 DIST Cust'!K137","v":12896},{"$f":"'FR-16(7)(v)-3 PROD Demand'!L137+'FR-16(7)(v)-4 PROD Energy'!L137+'FR-16(7)(v)-5 PROD Cust'!L137+'FR-16(7)(v)-7 TRANS Demand'!L137+'FR-16(7)(v)-8 TRANS Energy'!L137+'FR-16(7)(v)-9 TRANS Cust'!L137+'FR-16(7)(v)-11 DIST Demand'!L137+'FR-16(7)(v)-12 DIST Energy'!L137+'FR-16(7)(v)-13 DIST Cust'!L137","v":24858888},{"$f":"'FR-16(7)(v)-3 PROD Demand'!M137+'FR-16(7)(v)-4 PROD Energy'!M137+'FR-16(7)(v)-5 PROD Cust'!M137+'FR-16(7)(v)-7 TRANS Demand'!M137+'FR-16(7)(v)-8 TRANS Energy'!M137+'FR-16(7)(v)-9 TRANS Cust'!M137+'FR-16(7)(v)-11 DIST Demand'!M137+'FR-16(7)(v)-12 DIST Energy'!M137+'FR-16(7)(v)-13 DIST Cust'!M137","v":16434426},{"$f":"'FR-16(7)(v)-3 PROD Demand'!N137+'FR-16(7)(v)-4 PROD Energy'!N137+'FR-16(7)(v)-5 PROD Cust'!N137+'FR-16(7)(v)-7 TRANS Demand'!N137+'FR-16(7)(v)-8 TRANS Energy'!N137+'FR-16(7)(v)-9 TRANS Cust'!N137+'FR-16(7)(v)-11 DIST Demand'!N137+'FR-16(7)(v)-12 DIST Energy'!N137+'FR-16(7)(v)-13 DIST Cust'!N137","v":793996},{"$f":"'FR-16(7)(v)-3 PROD Demand'!O137+'FR-16(7)(v)-4 PROD Energy'!O137+'FR-16(7)(v)-5 PROD Cust'!O137+'FR-16(7)(v)-7 TRANS Demand'!O137+'FR-16(7)(v)-8 TRANS Energy'!O137+'FR-16(7)(v)-9 TRANS Cust'!O137+'FR-16(7)(v)-11 DIST Demand'!O137+'FR-16(7)(v)-12 DIST Energy'!O137+'FR-16(7)(v)-13 DIST Cust'!O137","v":7787055},{"$f":"'FR-16(7)(v)-3 PROD Demand'!P137+'FR-16(7)(v)-4 PROD Energy'!P137+'FR-16(7)(v)-5 PROD Cust'!P137+'FR-16(7)(v)-7 TRANS Demand'!P137+'FR-16(7)(v)-8 TRANS Energy'!P137+'FR-16(7)(v)-9 TRANS Cust'!P137+'FR-16(7)(v)-11 DIST Demand'!P137+'FR-16(7)(v)-12 DIST Energy'!P137+'FR-16(7)(v)-13 DIST Cust'!P137","v":228435},{"$f":"'FR-16(7)(v)-3 PROD Demand'!Q137+'FR-16(7)(v)-4 PROD Energy'!Q137+'FR-16(7)(v)-5 PROD Cust'!Q137+'FR-16(7)(v)-7 TRANS Demand'!Q137+'FR-16(7)(v)-8 TRANS Energy'!Q137+'FR-16(7)(v)-9 TRANS Cust'!Q137+'FR-16(7)(v)-11 DIST Demand'!Q137+'FR-16(7)(v)-12 DIST Energy'!Q137+'FR-16(7)(v)-13 DIST Cust'!Q137","v":20264},{"$f":"SUM(G137:Q137)","v":184221788},{"$f":"F137-R137","v":0}]
[4,null,{"$f":"'FR-16(7)(v)-1 Functional'!C138","v":"ADJUSTMENT"},{"$f":"'FR-16(7)(v)-1 Functional'!D138","v":"K201"},null,{"$f":"'FR-16(7)(v)-1 Functional'!F138","v":1553366},{"$f":"'FR-16(7)(v)-3 PROD Demand'!G138+'FR-16(7)(v)-4 PROD Energy'!G138+'FR-16(7)(v)-5 PROD Cust'!G138+'FR-16(7)(v)-7 TRANS Demand'!G138+'FR-16(7)(v)-8 TRANS Energy'!G138+'FR-16(7)(v)-9 TRANS Cust'!G138+'FR-16(7)(v)-11 DIST Demand'!G138+'FR-16(7)(v)-12 DIST Energy'!G138+'FR-16(7)(v)-13 DIST Cust'!G138","v":700226},{"$f":"'FR-16(7)(v)-3 PROD Demand'!H138+'FR-16(7)(v)-4 PROD Energy'!H138+'FR-16(7)(v)-5 PROD Cust'!H138+'FR-16(7)(v)-7 TRANS Demand'!H138+'FR-16(7)(v)-8 TRANS Energy'!H138+'FR-16(7)(v)-9 TRANS Cust'!H138+'FR-16(7)(v)-11 DIST Demand'!H138+'FR-16(7)(v)-12 DIST Energy'!H138+'FR-16(7)(v)-13 DIST Cust'!H138","v":420403},{"$f":"'FR-16(7)(v)-3 PROD Demand'!I138+'FR-16(7)(v)-4 PROD Energy'!I138+'FR-16(7)(v)-5 PROD Cust'!I138+'FR-16(7)(v)-7 TRANS Demand'!I138+'FR-16(7)(v)-8 TRANS Energy'!I138+'FR-16(7)(v)-9 TRANS Cust'!I138+'FR-16(7)(v)-11 DIST Demand'!I138+'FR-16(7)(v)-12 DIST Energy'!I138+'FR-16(7)(v)-13 DIST Cust'!I138","v":2019},{"$f":"'FR-16(7)(v)-3 PROD Demand'!J138+'FR-16(7)(v)-4 PROD Energy'!J138+'FR-16(7)(v)-5 PROD Cust'!J138+'FR-16(7)(v)-7 TRANS Demand'!J138+'FR-16(7)(v)-8 TRANS Energy'!J138+'FR-16(7)(v)-9 TRANS Cust'!J138+'FR-16(7)(v)-11 DIST Demand'!J138+'FR-16(7)(v)-12 DIST Energy'!J138+'FR-16(7)(v)-13 DIST Cust'!J138","v":7969},{"$f":"'FR-16(7)(v)-3 PROD Demand'!K138+'FR-16(7)(v)-4 PROD Energy'!K138+'FR-16(7)(v)-5 PROD Cust'!K138+'FR-16(7)(v)-7 TRANS Demand'!K138+'FR-16(7)(v)-8 TRANS Energy'!K138+'FR-16(7)(v)-9 TRANS Cust'!K138+'FR-16(7)(v)-11 DIST Demand'!K138+'FR-16(7)(v)-12 DIST Energy'!K138+'FR-16(7)(v)-13 DIST Cust'!K138","v":109},{"$f":"'FR-16(7)(v)-3 PROD Demand'!L138+'FR-16(7)(v)-4 PROD Energy'!L138+'FR-16(7)(v)-5 PROD Cust'!L138+'FR-16(7)(v)-7 TRANS Demand'!L138+'FR-16(7)(v)-8 TRANS Energy'!L138+'FR-16(7)(v)-9 TRANS Cust'!L138+'FR-16(7)(v)-11 DIST Demand'!L138+'FR-16(7)(v)-12 DIST Energy'!L138+'FR-16(7)(v)-13 DIST Cust'!L138","v":209611},{"$f":"'FR-16(7)(v)-3 PROD Demand'!M138+'FR-16(7)(v)-4 PROD Energy'!M138+'FR-16(7)(v)-5 PROD Cust'!M138+'FR-16(7)(v)-7 TRANS Demand'!M138+'FR-16(7)(v)-8 TRANS Energy'!M138+'FR-16(7)(v)-9 TRANS Cust'!M138+'FR-16(7)(v)-11 DIST Demand'!M138+'FR-16(7)(v)-12 DIST Energy'!M138+'FR-16(7)(v)-13 DIST Cust'!M138","v":138576},{"$f":"'FR-16(7)(v)-3 PROD Demand'!N138+'FR-16(7)(v)-4 PROD Energy'!N138+'FR-16(7)(v)-5 PROD Cust'!N138+'FR-16(7)(v)-7 TRANS Demand'!N138+'FR-16(7)(v)-8 TRANS Energy'!N138+'FR-16(7)(v)-9 TRANS Cust'!N138+'FR-16(7)(v)-11 DIST Demand'!N138+'FR-16(7)(v)-12 DIST Energy'!N138+'FR-16(7)(v)-13 DIST Cust'!N138","v":6695},{"$f":"'FR-16(7)(v)-3 PROD Demand'!O138+'FR-16(7)(v)-4 PROD Energy'!O138+'FR-16(7)(v)-5 PROD Cust'!O138+'FR-16(7)(v)-7 TRANS Demand'!O138+'FR-16(7)(v)-8 TRANS Energy'!O138+'FR-16(7)(v)-9 TRANS Cust'!O138+'FR-16(7)(v)-11 DIST Demand'!O138+'FR-16(7)(v)-12 DIST Energy'!O138+'FR-16(7)(v)-13 DIST Cust'!O138","v":65661},{"$f":"'FR-16(7)(v)-3 PROD Demand'!P138+'FR-16(7)(v)-4 PROD Energy'!P138+'FR-16(7)(v)-5 PROD Cust'!P138+'FR-16(7)(v)-7 TRANS Demand'!P138+'FR-16(7)(v)-8 TRANS Energy'!P138+'FR-16(7)(v)-9 TRANS Cust'!P138+'FR-16(7)(v)-11 DIST Demand'!P138+'FR-16(7)(v)-12 DIST Energy'!P138+'FR-16(7)(v)-13 DIST Cust'!P138","v":1926},{"$f":"'FR-16(7)(v)-3 PROD Demand'!Q138+'FR-16(7)(v)-4 PROD Energy'!Q138+'FR-16(7)(v)-5 PROD Cust'!Q138+'FR-16(7)(v)-7 TRANS Demand'!Q138+'FR-16(7)(v)-8 TRANS Energy'!Q138+'FR-16(7)(v)-9 TRANS Cust'!Q138+'FR-16(7)(v)-11 DIST Demand'!Q138+'FR-16(7)(v)-12 DIST Energy'!Q138+'FR-16(7)(v)-13 DIST Cust'!Q138","v":171},{"$f":"SUM(G138:Q138)","v":1553366},{"$f":"F138-R138","v":0}]
[5,null,{"$f":"'FR-16(7)(v)-1 Functional'!C139","v":"  TOTAL PROD DEPREC RESERVE"},null,null,{"$f":"SUM(F136:F138)","v":586935458},264578765,158848213,763015,3010979,41086,79201070,52360513,2529692,24809762,727800,64563,586935458,{"$f":"SUM(S136:S136)","v":0}]
[6]
[7,"TRANSMISSION PLANT"]
[8,null,{"$f":"'FR-16(7)(v)-1 Functional'!C142","v":"MAIN STEP-UP TRANSFORMERS"},{"$f":"'FR-16(7)(v)-1 Functional'!D142","v":"K202"},null,{"$f":"'FR-16(7)(v)-1 Functional'!F142","v":0},{"$f":"'FR-16(7)(v)-3 PROD Demand'!G142+'FR-16(7)(v)-4 PROD Energy'!G142+'FR-16(7)(v)-5 PROD Cust'!G142+'FR-16(7)(v)-7 TRANS Demand'!G142+'FR-16(7)(v)-8 TRANS Energy'!G142+'FR-16(7)(v)-9 TRANS Cust'!G142+'FR-16(7)(v)-11 DIST Demand'!G142+'FR-16(7)(v)-12 DIST Energy'!G142+'FR-16(7)(v)-13 DIST Cust'!G142","v":0},{"$f":"'FR-16(7)(v)-3 PROD Demand'!H142+'FR-16(7)(v)-4 PROD Energy'!H142+'FR-16(7)(v)-5 PROD Cust'!H142+'FR-16(7)(v)-7 TRANS Demand'!H142+'FR-16(7)(v)-8 TRANS Energy'!H142+'FR-16(7)(v)-9 TRANS Cust'!H142+'FR-16(7)(v)-11 DIST Demand'!H142+'FR-16(7)(v)-12 DIST Energy'!H142+'FR-16(7)(v)-13 DIST Cust'!H142","v":0},{"$f":"'FR-16(7)(v)-3 PROD Demand'!I142+'FR-16(7)(v)-4 PROD Energy'!I142+'FR-16(7)(v)-5 PROD Cust'!I142+'FR-16(7)(v)-7 TRANS Demand'!I142+'FR-16(7)(v)-8 TRANS Energy'!I142+'FR-16(7)(v)-9 TRANS Cust'!I142+'FR-16(7)(v)-11 DIST Demand'!I142+'FR-16(7)(v)-12 DIST Energy'!I142+'FR-16(7)(v)-13 DIST Cust'!I142","v":0},{"$f":"'FR-16(7)(v)-3 PROD Demand'!J142+'FR-16(7)(v)-4 PROD Energy'!J142+'FR-16(7)(v)-5 PROD Cust'!J142+'FR-16(7)(v)-7 TRANS Demand'!J142+'FR-16(7)(v)-8 TRANS Energy'!J142+'FR-16(7)(v)-9 TRANS Cust'!J142+'FR-16(7)(v)-11 DIST Demand'!J142+'FR-16(7)(v)-12 DIST Energy'!J142+'FR-16(7)(v)-13 DIST Cust'!J142","v":0},{"$f":"'FR-16(7)(v)-3 PROD Demand'!K142+'FR-16(7)(v)-4 PROD Energy'!K142+'FR-16(7)(v)-5 PROD Cust'!K142+'FR-16(7)(v)-7 TRANS Demand'!K142+'FR-16(7)(v)-8 TRANS Energy'!K142+'FR-16(7)(v)-9 TRANS Cust'!K142+'FR-16(7)(v)-11 DIST Demand'!K142+'FR-16(7)(v)-12 DIST Energy'!K142+'FR-16(7)(v)-13 DIST Cust'!K142","v":0},{"$f":"'FR-16(7)(v)-3 PROD Demand'!L142+'FR-16(7)(v)-4 PROD Energy'!L142+'FR-16(7)(v)-5 PROD Cust'!L142+'FR-16(7)(v)-7 TRANS Demand'!L142+'FR-16(7)(v)-8 TRANS Energy'!L142+'FR-16(7)(v)-9 TRANS Cust'!L142+'FR-16(7)(v)-11 DIST Demand'!L142+'FR-16(7)(v)-12 DIST Energy'!L142+'FR-16(7)(v)-13 DIST Cust'!L142","v":0},{"$f":"'FR-16(7)(v)-3 PROD Demand'!M142+'FR-16(7)(v)-4 PROD Energy'!M142+'FR-16(7)(v)-5 PROD Cust'!M142+'FR-16(7)(v)-7 TRANS Demand'!M142+'FR-16(7)(v)-8 TRANS Energy'!M142+'FR-16(7)(v)-9 TRANS Cust'!M142+'FR-16(7)(v)-11 DIST Demand'!M142+'FR-16(7)(v)-12 DIST Energy'!M142+'FR-16(7)(v)-13 DIST Cust'!M142","v":0},{"$f":"'FR-16(7)(v)-3 PROD Demand'!N142+'FR-16(7)(v)-4 PROD Energy'!N142+'FR-16(7)(v)-5 PROD Cust'!N142+'FR-16(7)(v)-7 TRANS Demand'!N142+'FR-16(7)(v)-8 TRANS Energy'!N142+'FR-16(7)(v)-9 TRANS Cust'!N142+'FR-16(7)(v)-11 DIST Demand'!N142+'FR-16(7)(v)-12 DIST Energy'!N142+'FR-16(7)(v)-13 DIST Cust'!N142","v":0},{"$f":"'FR-16(7)(v)-3 PROD Demand'!O142+'FR-16(7)(v)-4 PROD Energy'!O142+'FR-16(7)(v)-5 PROD Cust'!O142+'FR-16(7)(v)-7 TRANS Demand'!O142+'FR-16(7)(v)-8 TRANS Energy'!O142+'FR-16(7)(v)-9 TRANS Cust'!O142+'FR-16(7)(v)-11 DIST Demand'!O142+'FR-16(7)(v)-12 DIST Energy'!O142+'FR-16(7)(v)-13 DIST Cust'!O142","v":0},{"$f":"'FR-16(7)(v)-3 PROD Demand'!P142+'FR-16(7)(v)-4 PROD Energy'!P142+'FR-16(7)(v)-5 PROD Cust'!P142+'FR-16(7)(v)-7 TRANS Demand'!P142+'FR-16(7)(v)-8 TRANS Energy'!P142+'FR-16(7)(v)-9 TRANS Cust'!P142+'FR-16(7)(v)-11 DIST Demand'!P142+'FR-16(7)(v)-12 DIST Energy'!P142+'FR-16(7)(v)-13 DIST Cust'!P142","v":0},{"$f":"'FR-16(7)(v)-3 PROD Demand'!Q142+'FR-16(7)(v)-4 PROD Energy'!Q142+'FR-16(7)(v)-5 PROD Cust'!Q142+'FR-16(7)(v)-7 TRANS Demand'!Q142+'FR-16(7)(v)-8 TRANS Energy'!Q142+'FR-16(7)(v)-9 TRANS Cust'!Q142+'FR-16(7)(v)-11 DIST Demand'!Q142+'FR-16(7)(v)-12 DIST Energy'!Q142+'FR-16(7)(v)-13 DIST Cust'!Q142","v":0},{"$f":"SUM(G142:Q142)","v":0},{"$f":"F142-R142","v":0}]
[9,null,{"$f":"'FR-16(7)(v)-1 Functional'!C143","v":"OTHER TRANSMISSION"},{"$f":"'FR-16(7)(v)-1 Functional'!D143","v":"K202"},null,{"$f":"'FR-16(7)(v)-1 Functional'!F143","v":19959025},{"$f":"'FR-16(7)(v)-3 PROD Demand'!G143+'FR-16(7)(v)-4 PROD Energy'!G143+'FR-16(7)(v)-5 PROD Cust'!G143+'FR-16(7)(v)-7 TRANS Demand'!G143+'FR-16(7)(v)-8 TRANS Energy'!G143+'FR-16(7)(v)-9 TRANS Cust'!G143+'FR-16(7)(v)-11 DIST Demand'!G143+'FR-16(7)(v)-12 DIST Energy'!G143+'FR-16(7)(v)-13 DIST Cust'!G143","v":8997129},{"$f":"'FR-16(7)(v)-3 PROD Demand'!H143+'FR-16(7)(v)-4 PROD Energy'!H143+'FR-16(7)(v)-5 PROD Cust'!H143+'FR-16(7)(v)-7 TRANS Demand'!H143+'FR-16(7)(v)-8 TRANS Energy'!H143+'FR-16(7)(v)-9 TRANS Cust'!H143+'FR-16(7)(v)-11 DIST Demand'!H143+'FR-16(7)(v)-12 DIST Energy'!H143+'FR-16(7)(v)-13 DIST Cust'!H143","v":5401711},{"$f":"'FR-16(7)(v)-3 PROD Demand'!I143+'FR-16(7)(v)-4 PROD Energy'!I143+'FR-16(7)(v)-5 PROD Cust'!I143+'FR-16(7)(v)-7 TRANS Demand'!I143+'FR-16(7)(v)-8 TRANS Energy'!I143+'FR-16(7)(v)-9 TRANS Cust'!I143+'FR-16(7)(v)-11 DIST Demand'!I143+'FR-16(7)(v)-12 DIST Energy'!I143+'FR-16(7)(v)-13 DIST Cust'!I143","v":25947},{"$f":"'FR-16(7)(v)-3 PROD Demand'!J143+'FR-16(7)(v)-4 PROD Energy'!J143+'FR-16(7)(v)-5 PROD Cust'!J143+'FR-16(7)(v)-7 TRANS Demand'!J143+'FR-16(7)(v)-8 TRANS Energy'!J143+'FR-16(7)(v)-9 TRANS Cust'!J143+'FR-16(7)(v)-11 DIST Demand'!J143+'FR-16(7)(v)-12 DIST Energy'!J143+'FR-16(7)(v)-13 DIST Cust'!J143","v":102390},{"$f":"'FR-16(7)(v)-3 PROD Demand'!K143+'FR-16(7)(v)-4 PROD Energy'!K143+'FR-16(7)(v)-5 PROD Cust'!K143+'FR-16(7)(v)-7 TRANS Demand'!K143+'FR-16(7)(v)-8 TRANS Energy'!K143+'FR-16(7)(v)-9 TRANS Cust'!K143+'FR-16(7)(v)-11 DIST Demand'!K143+'FR-16(7)(v)-12 DIST Energy'!K143+'FR-16(7)(v)-13 DIST Cust'!K143","v":1397},{"$f":"'FR-16(7)(v)-3 PROD Demand'!L143+'FR-16(7)(v)-4 PROD Energy'!L143+'FR-16(7)(v)-5 PROD Cust'!L143+'FR-16(7)(v)-7 TRANS Demand'!L143+'FR-16(7)(v)-8 TRANS Energy'!L143+'FR-16(7)(v)-9 TRANS Cust'!L143+'FR-16(7)(v)-11 DIST Demand'!L143+'FR-16(7)(v)-12 DIST Energy'!L143+'FR-16(7)(v)-13 DIST Cust'!L143","v":2693271},{"$f":"'FR-16(7)(v)-3 PROD Demand'!M143+'FR-16(7)(v)-4 PROD Energy'!M143+'FR-16(7)(v)-5 PROD Cust'!M143+'FR-16(7)(v)-7 TRANS Demand'!M143+'FR-16(7)(v)-8 TRANS Energy'!M143+'FR-16(7)(v)-9 TRANS Cust'!M143+'FR-16(7)(v)-11 DIST Demand'!M143+'FR-16(7)(v)-12 DIST Energy'!M143+'FR-16(7)(v)-13 DIST Cust'!M143","v":1780545},{"$f":"'FR-16(7)(v)-3 PROD Demand'!N143+'FR-16(7)(v)-4 PROD Energy'!N143+'FR-16(7)(v)-5 PROD Cust'!N143+'FR-16(7)(v)-7 TRANS Demand'!N143+'FR-16(7)(v)-8 TRANS Energy'!N143+'FR-16(7)(v)-9 TRANS Cust'!N143+'FR-16(7)(v)-11 DIST Demand'!N143+'FR-16(7)(v)-12 DIST Energy'!N143+'FR-16(7)(v)-13 DIST Cust'!N143","v":86023},{"$f":"'FR-16(7)(v)-3 PROD Demand'!O143+'FR-16(7)(v)-4 PROD Energy'!O143+'FR-16(7)(v)-5 PROD Cust'!O143+'FR-16(7)(v)-7 TRANS Demand'!O143+'FR-16(7)(v)-8 TRANS Energy'!O143+'FR-16(7)(v)-9 TRANS Cust'!O143+'FR-16(7)(v)-11 DIST Demand'!O143+'FR-16(7)(v)-12 DIST Energy'!O143+'FR-16(7)(v)-13 DIST Cust'!O143","v":843668},{"$f":"'FR-16(7)(v)-3 PROD Demand'!P143+'FR-16(7)(v)-4 PROD Energy'!P143+'FR-16(7)(v)-5 PROD Cust'!P143+'FR-16(7)(v)-7 TRANS Demand'!P143+'FR-16(7)(v)-8 TRANS Energy'!P143+'FR-16(7)(v)-9 TRANS Cust'!P143+'FR-16(7)(v)-11 DIST Demand'!P143+'FR-16(7)(v)-12 DIST Energy'!P143+'FR-16(7)(v)-13 DIST Cust'!P143","v":24749},{"$f":"'FR-16(7)(v)-3 PROD Demand'!Q143+'FR-16(7)(v)-4 PROD Energy'!Q143+'FR-16(7)(v)-5 PROD Cust'!Q143+'FR-16(7)(v)-7 TRANS Demand'!Q143+'FR-16(7)(v)-8 TRANS Energy'!Q143+'FR-16(7)(v)-9 TRANS Cust'!Q143+'FR-16(7)(v)-11 DIST Demand'!Q143+'FR-16(7)(v)-12 DIST Energy'!Q143+'FR-16(7)(v)-13 DIST Cust'!Q143","v":2195},{"$f":"SUM(G143:Q143)","v":19959025},{"$f":"F143-R143","v":0}]
[10,null,{"$f":"'FR-16(7)(v)-1 Functional'!C144","v":"ADJUSTMENT"},{"$f":"'FR-16(7)(v)-1 Functional'!D144","v":"K202"},null,{"$f":"'FR-16(7)(v)-1 Functional'!F144","v":-70176},{"$f":"'FR-16(7)(v)-3 PROD Demand'!G144+'FR-16(7)(v)-4 PROD Energy'!G144+'FR-16(7)(v)-5 PROD Cust'!G144+'FR-16(7)(v)-7 TRANS Demand'!G144+'FR-16(7)(v)-8 TRANS Energy'!G144+'FR-16(7)(v)-9 TRANS Cust'!G144+'FR-16(7)(v)-11 DIST Demand'!G144+'FR-16(7)(v)-12 DIST Energy'!G144+'FR-16(7)(v)-13 DIST Cust'!G144","v":-31635},{"$f":"'FR-16(7)(v)-3 PROD Demand'!H144+'FR-16(7)(v)-4 PROD Energy'!H144+'FR-16(7)(v)-5 PROD Cust'!H144+'FR-16(7)(v)-7 TRANS Demand'!H144+'FR-16(7)(v)-8 TRANS Energy'!H144+'FR-16(7)(v)-9 TRANS Cust'!H144+'FR-16(7)(v)-11 DIST Demand'!H144+'FR-16(7)(v)-12 DIST Energy'!H144+'FR-16(7)(v)-13 DIST Cust'!H144","v":-18992},{"$f":"'FR-16(7)(v)-3 PROD Demand'!I144+'FR-16(7)(v)-4 PROD Energy'!I144+'FR-16(7)(v)-5 PROD Cust'!I144+'FR-16(7)(v)-7 TRANS Demand'!I144+'FR-16(7)(v)-8 TRANS Energy'!I144+'FR-16(7)(v)-9 TRANS Cust'!I144+'FR-16(7)(v)-11 DIST Demand'!I144+'FR-16(7)(v)-12 DIST Energy'!I144+'FR-16(7)(v)-13 DIST Cust'!I144","v":-91},{"$f":"'FR-16(7)(v)-3 PROD Demand'!J144+'FR-16(7)(v)-4 PROD Energy'!J144+'FR-16(7)(v)-5 PROD Cust'!J144+'FR-16(7)(v)-7 TRANS Demand'!J144+'FR-16(7)(v)-8 TRANS Energy'!J144+'FR-16(7)(v)-9 TRANS Cust'!J144+'FR-16(7)(v)-11 DIST Demand'!J144+'FR-16(7)(v)-12 DIST Energy'!J144+'FR-16(7)(v)-13 DIST Cust'!J144","v":-360},{"$f":"'FR-16(7)(v)-3 PROD Demand'!K144+'FR-16(7)(v)-4 PROD Energy'!K144+'FR-16(7)(v)-5 PROD Cust'!K144+'FR-16(7)(v)-7 TRANS Demand'!K144+'FR-16(7)(v)-8 TRANS Energy'!K144+'FR-16(7)(v)-9 TRANS Cust'!K144+'FR-16(7)(v)-11 DIST Demand'!K144+'FR-16(7)(v)-12 DIST Energy'!K144+'FR-16(7)(v)-13 DIST Cust'!K144","v":-5},{"$f":"'FR-16(7)(v)-3 PROD Demand'!L144+'FR-16(7)(v)-4 PROD Energy'!L144+'FR-16(7)(v)-5 PROD Cust'!L144+'FR-16(7)(v)-7 TRANS Demand'!L144+'FR-16(7)(v)-8 TRANS Energy'!L144+'FR-16(7)(v)-9 TRANS Cust'!L144+'FR-16(7)(v)-11 DIST Demand'!L144+'FR-16(7)(v)-12 DIST Energy'!L144+'FR-16(7)(v)-13 DIST Cust'!L144","v":-9470},{"$f":"'FR-16(7)(v)-3 PROD Demand'!M144+'FR-16(7)(v)-4 PROD Energy'!M144+'FR-16(7)(v)-5 PROD Cust'!M144+'FR-16(7)(v)-7 TRANS Demand'!M144+'FR-16(7)(v)-8 TRANS Energy'!M144+'FR-16(7)(v)-9 TRANS Cust'!M144+'FR-16(7)(v)-11 DIST Demand'!M144+'FR-16(7)(v)-12 DIST Energy'!M144+'FR-16(7)(v)-13 DIST Cust'!M144","v":-6260},{"$f":"'FR-16(7)(v)-3 PROD Demand'!N144+'FR-16(7)(v)-4 PROD Energy'!N144+'FR-16(7)(v)-5 PROD Cust'!N144+'FR-16(7)(v)-7 TRANS Demand'!N144+'FR-16(7)(v)-8 TRANS Energy'!N144+'FR-16(7)(v)-9 TRANS Cust'!N144+'FR-16(7)(v)-11 DIST Demand'!N144+'FR-16(7)(v)-12 DIST Energy'!N144+'FR-16(7)(v)-13 DIST Cust'!N144","v":-302},{"$f":"'FR-16(7)(v)-3 PROD Demand'!O144+'FR-16(7)(v)-4 PROD Energy'!O144+'FR-16(7)(v)-5 PROD Cust'!O144+'FR-16(7)(v)-7 TRANS Demand'!O144+'FR-16(7)(v)-8 TRANS Energy'!O144+'FR-16(7)(v)-9 TRANS Cust'!O144+'FR-16(7)(v)-11 DIST Demand'!O144+'FR-16(7)(v)-12 DIST Energy'!O144+'FR-16(7)(v)-13 DIST Cust'!O144","v":-2966},{"$f":"'FR-16(7)(v)-3 PROD Demand'!P144+'FR-16(7)(v)-4 PROD Energy'!P144+'FR-16(7)(v)-5 PROD Cust'!P144+'FR-16(7)(v)-7 TRANS Demand'!P144+'FR-16(7)(v)-8 TRANS Energy'!P144+'FR-16(7)(v)-9 TRANS Cust'!P144+'FR-16(7)(v)-11 DIST Demand'!P144+'FR-16(7)(v)-12 DIST Energy'!P144+'FR-16(7)(v)-13 DIST Cust'!P144","v":-87},{"$f":"'FR-16(7)(v)-3 PROD Demand'!Q144+'FR-16(7)(v)-4 PROD Energy'!Q144+'FR-16(7)(v)-5 PROD Cust'!Q144+'FR-16(7)(v)-7 TRANS Demand'!Q144+'FR-16(7)(v)-8 TRANS Energy'!Q144+'FR-16(7)(v)-9 TRANS Cust'!Q144+'FR-16(7)(v)-11 DIST Demand'!Q144+'FR-16(7)(v)-12 DIST Energy'!Q144+'FR-16(7)(v)-13 DIST Cust'!Q144","v":-8},{"$f":"SUM(G144:Q144)","v":-70176},{"$f":"F144-R144","v":0}]
[11,null,{"$f":"'FR-16(7)(v)-1 Functional'!C145","v":"  TOTAL TRANS DEPREC RESERVE"},null,null,{"$f":"SUM(F142:F144)","v":19888849},8965494,5382719,25856,102030,1392,2683801,1774285,85721,840702,24662,2187,19888849,{"$f":"SUM(S142:S142)","v":0}]
[12]
[13,null,"TOTAL PROD & TRANS DEPREC RESERVE",null,null,{"$f":"F145+F139","v":606824307},{"$f":"G145+G139","v":273544259},{"$f":"H145+H139","v":164230932},{"$f":"I145+I139","v":788871},{"$f":"J145+J139","v":3113009},42478,81884871,54134798,2615413,25650464,752462,{"$f":"Q145+Q139","v":66750},{"$f":"SUM(G147:Q147)","v":606824307},{"$f":"F147-R147","v":0}]
[14]
[15,"DISTRIBUTION PLANT"]
[16,null,{"$f":"'FR-16(7)(v)-1 Functional'!C150","v":"SUBSTATIONS"},{"$f":"'FR-16(7)(v)-1 Functional'!D150","v":"K215"},null,{"$f":"'FR-16(7)(v)-1 Functional'!F150","v":18483835},{"$f":"'FR-16(7)(v)-3 PROD Demand'!G150+'FR-16(7)(v)-4 PROD Energy'!G150+'FR-16(7)(v)-5 PROD Cust'!G150+'FR-16(7)(v)-7 TRANS Demand'!G150+'FR-16(7)(v)-8 TRANS Energy'!G150+'FR-16(7)(v)-9 TRANS Cust'!G150+'FR-16(7)(v)-11 DIST Demand'!G150+'FR-16(7)(v)-12 DIST Energy'!G150+'FR-16(7)(v)-13 DIST Cust'!G150","v":8676867},{"$f":"'FR-16(7)(v)-3 PROD Demand'!H150+'FR-16(7)(v)-4 PROD Energy'!H150+'FR-16(7)(v)-5 PROD Cust'!H150+'FR-16(7)(v)-7 TRANS Demand'!H150+'FR-16(7)(v)-8 TRANS Energy'!H150+'FR-16(7)(v)-9 TRANS Cust'!H150+'FR-16(7)(v)-11 DIST Demand'!H150+'FR-16(7)(v)-12 DIST Energy'!H150+'FR-16(7)(v)-13 DIST Cust'!H150","v":5124274},{"$f":"'FR-16(7)(v)-3 PROD Demand'!I150+'FR-16(7)(v)-4 PROD Energy'!I150+'FR-16(7)(v)-5 PROD Cust'!I150+'FR-16(7)(v)-7 TRANS Demand'!I150+'FR-16(7)(v)-8 TRANS Energy'!I150+'FR-16(7)(v)-9 TRANS Cust'!I150+'FR-16(7)(v)-11 DIST Demand'!I150+'FR-16(7)(v)-12 DIST Energy'!I150+'FR-16(7)(v)-13 DIST Cust'!I150","v":23844},{"$f":"'FR-16(7)(v)-3 PROD Demand'!J150+'FR-16(7)(v)-4 PROD Energy'!J150+'FR-16(7)(v)-5 PROD Cust'!J150+'FR-16(7)(v)-7 TRANS Demand'!J150+'FR-16(7)(v)-8 TRANS Energy'!J150+'FR-16(7)(v)-9 TRANS Cust'!J150+'FR-16(7)(v)-11 DIST Demand'!J150+'FR-16(7)(v)-12 DIST Energy'!J150+'FR-16(7)(v)-13 DIST Cust'!J150","v":112382},{"$f":"'FR-16(7)(v)-3 PROD Demand'!K150+'FR-16(7)(v)-4 PROD Energy'!K150+'FR-16(7)(v)-5 PROD Cust'!K150+'FR-16(7)(v)-7 TRANS Demand'!K150+'FR-16(7)(v)-8 TRANS Energy'!K150+'FR-16(7)(v)-9 TRANS Cust'!K150+'FR-16(7)(v)-11 DIST Demand'!K150+'FR-16(7)(v)-12 DIST Energy'!K150+'FR-16(7)(v)-13 DIST Cust'!K150","v":1294},{"$f":"'FR-16(7)(v)-3 PROD Demand'!L150+'FR-16(7)(v)-4 PROD Energy'!L150+'FR-16(7)(v)-5 PROD Cust'!L150+'FR-16(7)(v)-7 TRANS Demand'!L150+'FR-16(7)(v)-8 TRANS Energy'!L150+'FR-16(7)(v)-9 TRANS Cust'!L150+'FR-16(7)(v)-11 DIST Demand'!L150+'FR-16(7)(v)-12 DIST Energy'!L150+'FR-16(7)(v)-13 DIST Cust'!L150","v":2616941},{"$f":"'FR-16(7)(v)-3 PROD Demand'!M150+'FR-16(7)(v)-4 PROD Energy'!M150+'FR-16(7)(v)-5 PROD Cust'!M150+'FR-16(7)(v)-7 TRANS Demand'!M150+'FR-16(7)(v)-8 TRANS Energy'!M150+'FR-16(7)(v)-9 TRANS Cust'!M150+'FR-16(7)(v)-11 DIST Demand'!M150+'FR-16(7)(v)-12 DIST Energy'!M150+'FR-16(7)(v)-13 DIST Cust'!M150","v":1723618},{"$f":"'FR-16(7)(v)-3 PROD Demand'!N150+'FR-16(7)(v)-4 PROD Energy'!N150+'FR-16(7)(v)-5 PROD Cust'!N150+'FR-16(7)(v)-7 TRANS Demand'!N150+'FR-16(7)(v)-8 TRANS Energy'!N150+'FR-16(7)(v)-9 TRANS Cust'!N150+'FR-16(7)(v)-11 DIST Demand'!N150+'FR-16(7)(v)-12 DIST Energy'!N150+'FR-16(7)(v)-13 DIST Cust'!N150","v":86504},{"$f":"'FR-16(7)(v)-3 PROD Demand'!O150+'FR-16(7)(v)-4 PROD Energy'!O150+'FR-16(7)(v)-5 PROD Cust'!O150+'FR-16(7)(v)-7 TRANS Demand'!O150+'FR-16(7)(v)-8 TRANS Energy'!O150+'FR-16(7)(v)-9 TRANS Cust'!O150+'FR-16(7)(v)-11 DIST Demand'!O150+'FR-16(7)(v)-12 DIST Energy'!O150+'FR-16(7)(v)-13 DIST Cust'!O150","v":0},{"$f":"'FR-16(7)(v)-3 PROD Demand'!P150+'FR-16(7)(v)-4 PROD Energy'!P150+'FR-16(7)(v)-5 PROD Cust'!P150+'FR-16(7)(v)-7 TRANS Demand'!P150+'FR-16(7)(v)-8 TRANS Energy'!P150+'FR-16(7)(v)-9 TRANS Cust'!P150+'FR-16(7)(v)-11 DIST Demand'!P150+'FR-16(7)(v)-12 DIST Energy'!P150+'FR-16(7)(v)-13 DIST Cust'!P150","v":116078},{"$f":"'FR-16(7)(v)-3 PROD Demand'!Q150+'FR-16(7)(v)-4 PROD Energy'!Q150+'FR-16(7)(v)-5 PROD Cust'!Q150+'FR-16(7)(v)-7 TRANS Demand'!Q150+'FR-16(7)(v)-8 TRANS Energy'!Q150+'FR-16(7)(v)-9 TRANS Cust'!Q150+'FR-16(7)(v)-11 DIST Demand'!Q150+'FR-16(7)(v)-12 DIST Energy'!Q150+'FR-16(7)(v)-13 DIST Cust'!Q150","v":2033},{"$f":"SUM(G150:Q150)","v":18483835},{"$f":"F150-R150","v":0}]
[17,null,{"$f":"'FR-16(7)(v)-1 Functional'!C151","v":"POLES, TOWERS  & FIXTURES - PRIMARY - DEMAND"},{"$f":"'FR-16(7)(v)-1 Functional'!D151","v":"K205"},null,{"$f":"'FR-16(7)(v)-1 Functional'!F151","v":15103464},{"$f":"'FR-16(7)(v)-3 PROD Demand'!G151+'FR-16(7)(v)-4 PROD Energy'!G151+'FR-16(7)(v)-5 PROD Cust'!G151+'FR-16(7)(v)-7 TRANS Demand'!G151+'FR-16(7)(v)-8 TRANS Energy'!G151+'FR-16(7)(v)-9 TRANS Cust'!G151+'FR-16(7)(v)-11 DIST Demand'!G151+'FR-16(7)(v)-12 DIST Energy'!G151+'FR-16(7)(v)-13 DIST Cust'!G151","v":7090021},{"$f":"'FR-16(7)(v)-3 PROD Demand'!H151+'FR-16(7)(v)-4 PROD Energy'!H151+'FR-16(7)(v)-5 PROD Cust'!H151+'FR-16(7)(v)-7 TRANS Demand'!H151+'FR-16(7)(v)-8 TRANS Energy'!H151+'FR-16(7)(v)-9 TRANS Cust'!H151+'FR-16(7)(v)-11 DIST Demand'!H151+'FR-16(7)(v)-12 DIST Energy'!H151+'FR-16(7)(v)-13 DIST Cust'!H151","v":4187133},{"$f":"'FR-16(7)(v)-3 PROD Demand'!I151+'FR-16(7)(v)-4 PROD Energy'!I151+'FR-16(7)(v)-5 PROD Cust'!I151+'FR-16(7)(v)-7 TRANS Demand'!I151+'FR-16(7)(v)-8 TRANS Energy'!I151+'FR-16(7)(v)-9 TRANS Cust'!I151+'FR-16(7)(v)-11 DIST Demand'!I151+'FR-16(7)(v)-12 DIST Energy'!I151+'FR-16(7)(v)-13 DIST Cust'!I151","v":19483},{"$f":"'FR-16(7)(v)-3 PROD Demand'!J151+'FR-16(7)(v)-4 PROD Energy'!J151+'FR-16(7)(v)-5 PROD Cust'!J151+'FR-16(7)(v)-7 TRANS Demand'!J151+'FR-16(7)(v)-8 TRANS Energy'!J151+'FR-16(7)(v)-9 TRANS Cust'!J151+'FR-16(7)(v)-11 DIST Demand'!J151+'FR-16(7)(v)-12 DIST Energy'!J151+'FR-16(7)(v)-13 DIST Cust'!J151","v":91829},{"$f":"'FR-16(7)(v)-3 PROD Demand'!K151+'FR-16(7)(v)-4 PROD Energy'!K151+'FR-16(7)(v)-5 PROD Cust'!K151+'FR-16(7)(v)-7 TRANS Demand'!K151+'FR-16(7)(v)-8 TRANS Energy'!K151+'FR-16(7)(v)-9 TRANS Cust'!K151+'FR-16(7)(v)-11 DIST Demand'!K151+'FR-16(7)(v)-12 DIST Energy'!K151+'FR-16(7)(v)-13 DIST Cust'!K151","v":1057},{"$f":"'FR-16(7)(v)-3 PROD Demand'!L151+'FR-16(7)(v)-4 PROD Energy'!L151+'FR-16(7)(v)-5 PROD Cust'!L151+'FR-16(7)(v)-7 TRANS Demand'!L151+'FR-16(7)(v)-8 TRANS Energy'!L151+'FR-16(7)(v)-9 TRANS Cust'!L151+'FR-16(7)(v)-11 DIST Demand'!L151+'FR-16(7)(v)-12 DIST Energy'!L151+'FR-16(7)(v)-13 DIST Cust'!L151","v":2138348},{"$f":"'FR-16(7)(v)-3 PROD Demand'!M151+'FR-16(7)(v)-4 PROD Energy'!M151+'FR-16(7)(v)-5 PROD Cust'!M151+'FR-16(7)(v)-7 TRANS Demand'!M151+'FR-16(7)(v)-8 TRANS Energy'!M151+'FR-16(7)(v)-9 TRANS Cust'!M151+'FR-16(7)(v)-11 DIST Demand'!M151+'FR-16(7)(v)-12 DIST Energy'!M151+'FR-16(7)(v)-13 DIST Cust'!M151","v":1408398},{"$f":"'FR-16(7)(v)-3 PROD Demand'!N151+'FR-16(7)(v)-4 PROD Energy'!N151+'FR-16(7)(v)-5 PROD Cust'!N151+'FR-16(7)(v)-7 TRANS Demand'!N151+'FR-16(7)(v)-8 TRANS Energy'!N151+'FR-16(7)(v)-9 TRANS Cust'!N151+'FR-16(7)(v)-11 DIST Demand'!N151+'FR-16(7)(v)-12 DIST Energy'!N151+'FR-16(7)(v)-13 DIST Cust'!N151","v":70684},{"$f":"'FR-16(7)(v)-3 PROD Demand'!O151+'FR-16(7)(v)-4 PROD Energy'!O151+'FR-16(7)(v)-5 PROD Cust'!O151+'FR-16(7)(v)-7 TRANS Demand'!O151+'FR-16(7)(v)-8 TRANS Energy'!O151+'FR-16(7)(v)-9 TRANS Cust'!O151+'FR-16(7)(v)-11 DIST Demand'!O151+'FR-16(7)(v)-12 DIST Energy'!O151+'FR-16(7)(v)-13 DIST Cust'!O151","v":0},{"$f":"'FR-16(7)(v)-3 PROD Demand'!P151+'FR-16(7)(v)-4 PROD Energy'!P151+'FR-16(7)(v)-5 PROD Cust'!P151+'FR-16(7)(v)-7 TRANS Demand'!P151+'FR-16(7)(v)-8 TRANS Energy'!P151+'FR-16(7)(v)-9 TRANS Cust'!P151+'FR-16(7)(v)-11 DIST Demand'!P151+'FR-16(7)(v)-12 DIST Energy'!P151+'FR-16(7)(v)-13 DIST Cust'!P151","v":94850},{"$f":"'FR-16(7)(v)-3 PROD Demand'!Q151+'FR-16(7)(v)-4 PROD Energy'!Q151+'FR-16(7)(v)-5 PROD Cust'!Q151+'FR-16(7)(v)-7 TRANS Demand'!Q151+'FR-16(7)(v)-8 TRANS Energy'!Q151+'FR-16(7)(v)-9 TRANS Cust'!Q151+'FR-16(7)(v)-11 DIST Demand'!Q151+'FR-16(7)(v)-12 DIST Energy'!Q151+'FR-16(7)(v)-13 DIST Cust'!Q151","v":1661},{"$f":"SUM(G151:Q151)","v":15103464},{"$f":"F151-R151","v":0}]
[18,null,{"$f":"'FR-16(7)(v)-1 Functional'!C152","v":"POLES, TOWERS  & FIXTURES - PRIMARY - CUSTOMER"},{"$f":"'FR-16(7)(v)-1 Functional'!D152","v":"K405"},null,{"$f":"'FR-16(7)(v)-1 Functional'!F152","v":6911939},{"$f":"'FR-16(7)(v)-3 PROD Demand'!G152+'FR-16(7)(v)-4 PROD Energy'!G152+'FR-16(7)(v)-5 PROD Cust'!G152+'FR-16(7)(v)-7 TRANS Demand'!G152+'FR-16(7)(v)-8 TRANS Energy'!G152+'FR-16(7)(v)-9 TRANS Cust'!G152+'FR-16(7)(v)-11 DIST Demand'!G152+'FR-16(7)(v)-12 DIST Energy'!G152+'FR-16(7)(v)-13 DIST Cust'!G152","v":6234915},{"$f":"'FR-16(7)(v)-3 PROD Demand'!H152+'FR-16(7)(v)-4 PROD Energy'!H152+'FR-16(7)(v)-5 PROD Cust'!H152+'FR-16(7)(v)-7 TRANS Demand'!H152+'FR-16(7)(v)-8 TRANS Energy'!H152+'FR-16(7)(v)-9 TRANS Cust'!H152+'FR-16(7)(v)-11 DIST Demand'!H152+'FR-16(7)(v)-12 DIST Energy'!H152+'FR-16(7)(v)-13 DIST Cust'!H152","v":629678},{"$f":"'FR-16(7)(v)-3 PROD Demand'!I152+'FR-16(7)(v)-4 PROD Energy'!I152+'FR-16(7)(v)-5 PROD Cust'!I152+'FR-16(7)(v)-7 TRANS Demand'!I152+'FR-16(7)(v)-8 TRANS Energy'!I152+'FR-16(7)(v)-9 TRANS Cust'!I152+'FR-16(7)(v)-11 DIST Demand'!I152+'FR-16(7)(v)-12 DIST Energy'!I152+'FR-16(7)(v)-13 DIST Cust'!I152","v":8363},{"$f":"'FR-16(7)(v)-3 PROD Demand'!J152+'FR-16(7)(v)-4 PROD Energy'!J152+'FR-16(7)(v)-5 PROD Cust'!J152+'FR-16(7)(v)-7 TRANS Demand'!J152+'FR-16(7)(v)-8 TRANS Energy'!J152+'FR-16(7)(v)-9 TRANS Cust'!J152+'FR-16(7)(v)-11 DIST Demand'!J152+'FR-16(7)(v)-12 DIST Energy'!J152+'FR-16(7)(v)-13 DIST Cust'!J152","v":4977},{"$f":"'FR-16(7)(v)-3 PROD Demand'!K152+'FR-16(7)(v)-4 PROD Energy'!K152+'FR-16(7)(v)-5 PROD Cust'!K152+'FR-16(7)(v)-7 TRANS Demand'!K152+'FR-16(7)(v)-8 TRANS Energy'!K152+'FR-16(7)(v)-9 TRANS Cust'!K152+'FR-16(7)(v)-11 DIST Demand'!K152+'FR-16(7)(v)-12 DIST Energy'!K152+'FR-16(7)(v)-13 DIST Cust'!K152","v":691},{"$f":"'FR-16(7)(v)-3 PROD Demand'!L152+'FR-16(7)(v)-4 PROD Energy'!L152+'FR-16(7)(v)-5 PROD Cust'!L152+'FR-16(7)(v)-7 TRANS Demand'!L152+'FR-16(7)(v)-8 TRANS Energy'!L152+'FR-16(7)(v)-9 TRANS Cust'!L152+'FR-16(7)(v)-11 DIST Demand'!L152+'FR-16(7)(v)-12 DIST Energy'!L152+'FR-16(7)(v)-13 DIST Cust'!L152","v":7741},{"$f":"'FR-16(7)(v)-3 PROD Demand'!M152+'FR-16(7)(v)-4 PROD Energy'!M152+'FR-16(7)(v)-5 PROD Cust'!M152+'FR-16(7)(v)-7 TRANS Demand'!M152+'FR-16(7)(v)-8 TRANS Energy'!M152+'FR-16(7)(v)-9 TRANS Cust'!M152+'FR-16(7)(v)-11 DIST Demand'!M152+'FR-16(7)(v)-12 DIST Energy'!M152+'FR-16(7)(v)-13 DIST Cust'!M152","v":1797},{"$f":"'FR-16(7)(v)-3 PROD Demand'!N152+'FR-16(7)(v)-4 PROD Energy'!N152+'FR-16(7)(v)-5 PROD Cust'!N152+'FR-16(7)(v)-7 TRANS Demand'!N152+'FR-16(7)(v)-8 TRANS Energy'!N152+'FR-16(7)(v)-9 TRANS Cust'!N152+'FR-16(7)(v)-11 DIST Demand'!N152+'FR-16(7)(v)-12 DIST Energy'!N152+'FR-16(7)(v)-13 DIST Cust'!N152","v":484},{"$f":"'FR-16(7)(v)-3 PROD Demand'!O152+'FR-16(7)(v)-4 PROD Energy'!O152+'FR-16(7)(v)-5 PROD Cust'!O152+'FR-16(7)(v)-7 TRANS Demand'!O152+'FR-16(7)(v)-8 TRANS Energy'!O152+'FR-16(7)(v)-9 TRANS Cust'!O152+'FR-16(7)(v)-11 DIST Demand'!O152+'FR-16(7)(v)-12 DIST Energy'!O152+'FR-16(7)(v)-13 DIST Cust'!O152","v":0},{"$f":"'FR-16(7)(v)-3 PROD Demand'!P152+'FR-16(7)(v)-4 PROD Energy'!P152+'FR-16(7)(v)-5 PROD Cust'!P152+'FR-16(7)(v)-7 TRANS Demand'!P152+'FR-16(7)(v)-8 TRANS Energy'!P152+'FR-16(7)(v)-9 TRANS Cust'!P152+'FR-16(7)(v)-11 DIST Demand'!P152+'FR-16(7)(v)-12 DIST Energy'!P152+'FR-16(7)(v)-13 DIST Cust'!P152","v":22740},{"$f":"'FR-16(7)(v)-3 PROD Demand'!Q152+'FR-16(7)(v)-4 PROD Energy'!Q152+'FR-16(7)(v)-5 PROD Cust'!Q152+'FR-16(7)(v)-7 TRANS Demand'!Q152+'FR-16(7)(v)-8 TRANS Energy'!Q152+'FR-16(7)(v)-9 TRANS Cust'!Q152+'FR-16(7)(v)-11 DIST Demand'!Q152+'FR-16(7)(v)-12 DIST Energy'!Q152+'FR-16(7)(v)-13 DIST Cust'!Q152","v":553},{"$f":"SUM(G152:Q152)","v":6911939},{"$f":"F152-R152","v":0}]
[19,null,{"$f":"'FR-16(7)(v)-1 Functional'!C153","v":"POLES, TOWERS  & FIXTURES - SECONDARY - DEMAND"},{"$f":"'FR-16(7)(v)-1 Functional'!D153","v":"K206"},null,{"$f":"'FR-16(7)(v)-1 Functional'!F153","v":5776068},{"$f":"'FR-16(7)(v)-3 PROD Demand'!G153+'FR-16(7)(v)-4 PROD Energy'!G153+'FR-16(7)(v)-5 PROD Cust'!G153+'FR-16(7)(v)-7 TRANS Demand'!G153+'FR-16(7)(v)-8 TRANS Energy'!G153+'FR-16(7)(v)-9 TRANS Cust'!G153+'FR-16(7)(v)-11 DIST Demand'!G153+'FR-16(7)(v)-12 DIST Energy'!G153+'FR-16(7)(v)-13 DIST Cust'!G153","v":2711461},{"$f":"'FR-16(7)(v)-3 PROD Demand'!H153+'FR-16(7)(v)-4 PROD Energy'!H153+'FR-16(7)(v)-5 PROD Cust'!H153+'FR-16(7)(v)-7 TRANS Demand'!H153+'FR-16(7)(v)-8 TRANS Energy'!H153+'FR-16(7)(v)-9 TRANS Cust'!H153+'FR-16(7)(v)-11 DIST Demand'!H153+'FR-16(7)(v)-12 DIST Energy'!H153+'FR-16(7)(v)-13 DIST Cust'!H153","v":1601299},{"$f":"'FR-16(7)(v)-3 PROD Demand'!I153+'FR-16(7)(v)-4 PROD Energy'!I153+'FR-16(7)(v)-5 PROD Cust'!I153+'FR-16(7)(v)-7 TRANS Demand'!I153+'FR-16(7)(v)-8 TRANS Energy'!I153+'FR-16(7)(v)-9 TRANS Cust'!I153+'FR-16(7)(v)-11 DIST Demand'!I153+'FR-16(7)(v)-12 DIST Energy'!I153+'FR-16(7)(v)-13 DIST Cust'!I153","v":7451},{"$f":"'FR-16(7)(v)-3 PROD Demand'!J153+'FR-16(7)(v)-4 PROD Energy'!J153+'FR-16(7)(v)-5 PROD Cust'!J153+'FR-16(7)(v)-7 TRANS Demand'!J153+'FR-16(7)(v)-8 TRANS Energy'!J153+'FR-16(7)(v)-9 TRANS Cust'!J153+'FR-16(7)(v)-11 DIST Demand'!J153+'FR-16(7)(v)-12 DIST Energy'!J153+'FR-16(7)(v)-13 DIST Cust'!J153","v":35118},{"$f":"'FR-16(7)(v)-3 PROD Demand'!K153+'FR-16(7)(v)-4 PROD Energy'!K153+'FR-16(7)(v)-5 PROD Cust'!K153+'FR-16(7)(v)-7 TRANS Demand'!K153+'FR-16(7)(v)-8 TRANS Energy'!K153+'FR-16(7)(v)-9 TRANS Cust'!K153+'FR-16(7)(v)-11 DIST Demand'!K153+'FR-16(7)(v)-12 DIST Energy'!K153+'FR-16(7)(v)-13 DIST Cust'!K153","v":404},{"$f":"'FR-16(7)(v)-3 PROD Demand'!L153+'FR-16(7)(v)-4 PROD Energy'!L153+'FR-16(7)(v)-5 PROD Cust'!L153+'FR-16(7)(v)-7 TRANS Demand'!L153+'FR-16(7)(v)-8 TRANS Energy'!L153+'FR-16(7)(v)-9 TRANS Cust'!L153+'FR-16(7)(v)-11 DIST Demand'!L153+'FR-16(7)(v)-12 DIST Energy'!L153+'FR-16(7)(v)-13 DIST Cust'!L153","v":817776},{"$f":"'FR-16(7)(v)-3 PROD Demand'!M153+'FR-16(7)(v)-4 PROD Energy'!M153+'FR-16(7)(v)-5 PROD Cust'!M153+'FR-16(7)(v)-7 TRANS Demand'!M153+'FR-16(7)(v)-8 TRANS Energy'!M153+'FR-16(7)(v)-9 TRANS Cust'!M153+'FR-16(7)(v)-11 DIST Demand'!M153+'FR-16(7)(v)-12 DIST Energy'!M153+'FR-16(7)(v)-13 DIST Cust'!M153","v":538618},{"$f":"'FR-16(7)(v)-3 PROD Demand'!N153+'FR-16(7)(v)-4 PROD Energy'!N153+'FR-16(7)(v)-5 PROD Cust'!N153+'FR-16(7)(v)-7 TRANS Demand'!N153+'FR-16(7)(v)-8 TRANS Energy'!N153+'FR-16(7)(v)-9 TRANS Cust'!N153+'FR-16(7)(v)-11 DIST Demand'!N153+'FR-16(7)(v)-12 DIST Energy'!N153+'FR-16(7)(v)-13 DIST Cust'!N153","v":27032},{"$f":"'FR-16(7)(v)-3 PROD Demand'!O153+'FR-16(7)(v)-4 PROD Energy'!O153+'FR-16(7)(v)-5 PROD Cust'!O153+'FR-16(7)(v)-7 TRANS Demand'!O153+'FR-16(7)(v)-8 TRANS Energy'!O153+'FR-16(7)(v)-9 TRANS Cust'!O153+'FR-16(7)(v)-11 DIST Demand'!O153+'FR-16(7)(v)-12 DIST Energy'!O153+'FR-16(7)(v)-13 DIST Cust'!O153","v":0},{"$f":"'FR-16(7)(v)-3 PROD Demand'!P153+'FR-16(7)(v)-4 PROD Energy'!P153+'FR-16(7)(v)-5 PROD Cust'!P153+'FR-16(7)(v)-7 TRANS Demand'!P153+'FR-16(7)(v)-8 TRANS Energy'!P153+'FR-16(7)(v)-9 TRANS Cust'!P153+'FR-16(7)(v)-11 DIST Demand'!P153+'FR-16(7)(v)-12 DIST Energy'!P153+'FR-16(7)(v)-13 DIST Cust'!P153","v":36274},{"$f":"'FR-16(7)(v)-3 PROD Demand'!Q153+'FR-16(7)(v)-4 PROD Energy'!Q153+'FR-16(7)(v)-5 PROD Cust'!Q153+'FR-16(7)(v)-7 TRANS Demand'!Q153+'FR-16(7)(v)-8 TRANS Energy'!Q153+'FR-16(7)(v)-9 TRANS Cust'!Q153+'FR-16(7)(v)-11 DIST Demand'!Q153+'FR-16(7)(v)-12 DIST Energy'!Q153+'FR-16(7)(v)-13 DIST Cust'!Q153","v":635},5776068,0]
[20,null,{"$f":"'FR-16(7)(v)-1 Functional'!C154","v":"POLES, TOWERS  & FIXTURES - SECONDARY - CUSTOMER"},{"$f":"'FR-16(7)(v)-1 Functional'!D154","v":"K405"},null,{"$f":"'FR-16(7)(v)-1 Functional'!F154","v":1562400},{"$f":"'FR-16(7)(v)-3 PROD Demand'!G154+'FR-16(7)(v)-4 PROD Energy'!G154+'FR-16(7)(v)-5 PROD Cust'!G154+'FR-16(7)(v)-7 TRANS Demand'!G154+'FR-16(7)(v)-8 TRANS Energy'!G154+'FR-16(7)(v)-9 TRANS Cust'!G154+'FR-16(7)(v)-11 DIST Demand'!G154+'FR-16(7)(v)-12 DIST Energy'!G154+'FR-16(7)(v)-13 DIST Cust'!G154","v":1409363},{"$f":"'FR-16(7)(v)-3 PROD Demand'!H154+'FR-16(7)(v)-4 PROD Energy'!H154+'FR-16(7)(v)-5 PROD Cust'!H154+'FR-16(7)(v)-7 TRANS Demand'!H154+'FR-16(7)(v)-8 TRANS Energy'!H154+'FR-16(7)(v)-9 TRANS Cust'!H154+'FR-16(7)(v)-11 DIST Demand'!H154+'FR-16(7)(v)-12 DIST Energy'!H154+'FR-16(7)(v)-13 DIST Cust'!H154","v":142335},{"$f":"'FR-16(7)(v)-3 PROD Demand'!I154+'FR-16(7)(v)-4 PROD Energy'!I154+'FR-16(7)(v)-5 PROD Cust'!I154+'FR-16(7)(v)-7 TRANS Demand'!I154+'FR-16(7)(v)-8 TRANS Energy'!I154+'FR-16(7)(v)-9 TRANS Cust'!I154+'FR-16(7)(v)-11 DIST Demand'!I154+'FR-16(7)(v)-12 DIST Energy'!I154+'FR-16(7)(v)-13 DIST Cust'!I154","v":1891},{"$f":"'FR-16(7)(v)-3 PROD Demand'!J154+'FR-16(7)(v)-4 PROD Energy'!J154+'FR-16(7)(v)-5 PROD Cust'!J154+'FR-16(7)(v)-7 TRANS Demand'!J154+'FR-16(7)(v)-8 TRANS Energy'!J154+'FR-16(7)(v)-9 TRANS Cust'!J154+'FR-16(7)(v)-11 DIST Demand'!J154+'FR-16(7)(v)-12 DIST Energy'!J154+'FR-16(7)(v)-13 DIST Cust'!J154","v":1125},{"$f":"'FR-16(7)(v)-3 PROD Demand'!K154+'FR-16(7)(v)-4 PROD Energy'!K154+'FR-16(7)(v)-5 PROD Cust'!K154+'FR-16(7)(v)-7 TRANS Demand'!K154+'FR-16(7)(v)-8 TRANS Energy'!K154+'FR-16(7)(v)-9 TRANS Cust'!K154+'FR-16(7)(v)-11 DIST Demand'!K154+'FR-16(7)(v)-12 DIST Energy'!K154+'FR-16(7)(v)-13 DIST Cust'!K154","v":156},{"$f":"'FR-16(7)(v)-3 PROD Demand'!L154+'FR-16(7)(v)-4 PROD Energy'!L154+'FR-16(7)(v)-5 PROD Cust'!L154+'FR-16(7)(v)-7 TRANS Demand'!L154+'FR-16(7)(v)-8 TRANS Energy'!L154+'FR-16(7)(v)-9 TRANS Cust'!L154+'FR-16(7)(v)-11 DIST Demand'!L154+'FR-16(7)(v)-12 DIST Energy'!L154+'FR-16(7)(v)-13 DIST Cust'!L154","v":1750},{"$f":"'FR-16(7)(v)-3 PROD Demand'!M154+'FR-16(7)(v)-4 PROD Energy'!M154+'FR-16(7)(v)-5 PROD Cust'!M154+'FR-16(7)(v)-7 TRANS Demand'!M154+'FR-16(7)(v)-8 TRANS Energy'!M154+'FR-16(7)(v)-9 TRANS Cust'!M154+'FR-16(7)(v)-11 DIST Demand'!M154+'FR-16(7)(v)-12 DIST Energy'!M154+'FR-16(7)(v)-13 DIST Cust'!M154","v":406},{"$f":"'FR-16(7)(v)-3 PROD Demand'!N154+'FR-16(7)(v)-4 PROD Energy'!N154+'FR-16(7)(v)-5 PROD Cust'!N154+'FR-16(7)(v)-7 TRANS Demand'!N154+'FR-16(7)(v)-8 TRANS Energy'!N154+'FR-16(7)(v)-9 TRANS Cust'!N154+'FR-16(7)(v)-11 DIST Demand'!N154+'FR-16(7)(v)-12 DIST Energy'!N154+'FR-16(7)(v)-13 DIST Cust'!N154","v":109},{"$f":"'FR-16(7)(v)-3 PROD Demand'!O154+'FR-16(7)(v)-4 PROD Energy'!O154+'FR-16(7)(v)-5 PROD Cust'!O154+'FR-16(7)(v)-7 TRANS Demand'!O154+'FR-16(7)(v)-8 TRANS Energy'!O154+'FR-16(7)(v)-9 TRANS Cust'!O154+'FR-16(7)(v)-11 DIST Demand'!O154+'FR-16(7)(v)-12 DIST Energy'!O154+'FR-16(7)(v)-13 DIST Cust'!O154","v":0},{"$f":"'FR-16(7)(v)-3 PROD Demand'!P154+'FR-16(7)(v)-4 PROD Energy'!P154+'FR-16(7)(v)-5 PROD Cust'!P154+'FR-16(7)(v)-7 TRANS Demand'!P154+'FR-16(7)(v)-8 TRANS Energy'!P154+'FR-16(7)(v)-9 TRANS Cust'!P154+'FR-16(7)(v)-11 DIST Demand'!P154+'FR-16(7)(v)-12 DIST Energy'!P154+'FR-16(7)(v)-13 DIST Cust'!P154","v":5140},{"$f":"'FR-16(7)(v)-3 PROD Demand'!Q154+'FR-16(7)(v)-4 PROD Energy'!Q154+'FR-16(7)(v)-5 PROD Cust'!Q154+'FR-16(7)(v)-7 TRANS Demand'!Q154+'FR-16(7)(v)-8 TRANS Energy'!Q154+'FR-16(7)(v)-9 TRANS Cust'!Q154+'FR-16(7)(v)-11 DIST Demand'!Q154+'FR-16(7)(v)-12 DIST Energy'!Q154+'FR-16(7)(v)-13 DIST Cust'!Q154","v":125},1562400,0]
[21,null,{"$f":"'FR-16(7)(v)-1 Functional'!C155","v":"CONDUCTORS - OVERHEAD / PRIMARY - DEMAND"},{"$f":"'FR-16(7)(v)-1 Functional'!D155","v":"K205"},null,{"$f":"'FR-16(7)(v)-1 Functional'!F155","v":22430547},{"$f":"'FR-16(7)(v)-3 PROD Demand'!G155+'FR-16(7)(v)-4 PROD Energy'!G155+'FR-16(7)(v)-5 PROD Cust'!G155+'FR-16(7)(v)-7 TRANS Demand'!G155+'FR-16(7)(v)-8 TRANS Energy'!G155+'FR-16(7)(v)-9 TRANS Cust'!G155+'FR-16(7)(v)-11 DIST Demand'!G155+'FR-16(7)(v)-12 DIST Energy'!G155+'FR-16(7)(v)-13 DIST Cust'!G155","v":10529571},{"$f":"'FR-16(7)(v)-3 PROD Demand'!H155+'FR-16(7)(v)-4 PROD Energy'!H155+'FR-16(7)(v)-5 PROD Cust'!H155+'FR-16(7)(v)-7 TRANS Demand'!H155+'FR-16(7)(v)-8 TRANS Energy'!H155+'FR-16(7)(v)-9 TRANS Cust'!H155+'FR-16(7)(v)-11 DIST Demand'!H155+'FR-16(7)(v)-12 DIST Energy'!H155+'FR-16(7)(v)-13 DIST Cust'!H155","v":6218421},{"$f":"'FR-16(7)(v)-3 PROD Demand'!I155+'FR-16(7)(v)-4 PROD Energy'!I155+'FR-16(7)(v)-5 PROD Cust'!I155+'FR-16(7)(v)-7 TRANS Demand'!I155+'FR-16(7)(v)-8 TRANS Energy'!I155+'FR-16(7)(v)-9 TRANS Cust'!I155+'FR-16(7)(v)-11 DIST Demand'!I155+'FR-16(7)(v)-12 DIST Energy'!I155+'FR-16(7)(v)-13 DIST Cust'!I155","v":28935},{"$f":"'FR-16(7)(v)-3 PROD Demand'!J155+'FR-16(7)(v)-4 PROD Energy'!J155+'FR-16(7)(v)-5 PROD Cust'!J155+'FR-16(7)(v)-7 TRANS Demand'!J155+'FR-16(7)(v)-8 TRANS Energy'!J155+'FR-16(7)(v)-9 TRANS Cust'!J155+'FR-16(7)(v)-11 DIST Demand'!J155+'FR-16(7)(v)-12 DIST Energy'!J155+'FR-16(7)(v)-13 DIST Cust'!J155","v":136378},{"$f":"'FR-16(7)(v)-3 PROD Demand'!K155+'FR-16(7)(v)-4 PROD Energy'!K155+'FR-16(7)(v)-5 PROD Cust'!K155+'FR-16(7)(v)-7 TRANS Demand'!K155+'FR-16(7)(v)-8 TRANS Energy'!K155+'FR-16(7)(v)-9 TRANS Cust'!K155+'FR-16(7)(v)-11 DIST Demand'!K155+'FR-16(7)(v)-12 DIST Energy'!K155+'FR-16(7)(v)-13 DIST Cust'!K155","v":1570},{"$f":"'FR-16(7)(v)-3 PROD Demand'!L155+'FR-16(7)(v)-4 PROD Energy'!L155+'FR-16(7)(v)-5 PROD Cust'!L155+'FR-16(7)(v)-7 TRANS Demand'!L155+'FR-16(7)(v)-8 TRANS Energy'!L155+'FR-16(7)(v)-9 TRANS Cust'!L155+'FR-16(7)(v)-11 DIST Demand'!L155+'FR-16(7)(v)-12 DIST Energy'!L155+'FR-16(7)(v)-13 DIST Cust'!L155","v":3175717},{"$f":"'FR-16(7)(v)-3 PROD Demand'!M155+'FR-16(7)(v)-4 PROD Energy'!M155+'FR-16(7)(v)-5 PROD Cust'!M155+'FR-16(7)(v)-7 TRANS Demand'!M155+'FR-16(7)(v)-8 TRANS Energy'!M155+'FR-16(7)(v)-9 TRANS Cust'!M155+'FR-16(7)(v)-11 DIST Demand'!M155+'FR-16(7)(v)-12 DIST Energy'!M155+'FR-16(7)(v)-13 DIST Cust'!M155","v":2091649},{"$f":"'FR-16(7)(v)-3 PROD Demand'!N155+'FR-16(7)(v)-4 PROD Energy'!N155+'FR-16(7)(v)-5 PROD Cust'!N155+'FR-16(7)(v)-7 TRANS Demand'!N155+'FR-16(7)(v)-8 TRANS Energy'!N155+'FR-16(7)(v)-9 TRANS Cust'!N155+'FR-16(7)(v)-11 DIST Demand'!N155+'FR-16(7)(v)-12 DIST Energy'!N155+'FR-16(7)(v)-13 DIST Cust'!N155","v":104975},{"$f":"'FR-16(7)(v)-3 PROD Demand'!O155+'FR-16(7)(v)-4 PROD Energy'!O155+'FR-16(7)(v)-5 PROD Cust'!O155+'FR-16(7)(v)-7 TRANS Demand'!O155+'FR-16(7)(v)-8 TRANS Energy'!O155+'FR-16(7)(v)-9 TRANS Cust'!O155+'FR-16(7)(v)-11 DIST Demand'!O155+'FR-16(7)(v)-12 DIST Energy'!O155+'FR-16(7)(v)-13 DIST Cust'!O155","v":0},{"$f":"'FR-16(7)(v)-3 PROD Demand'!P155+'FR-16(7)(v)-4 PROD Energy'!P155+'FR-16(7)(v)-5 PROD Cust'!P155+'FR-16(7)(v)-7 TRANS Demand'!P155+'FR-16(7)(v)-8 TRANS Energy'!P155+'FR-16(7)(v)-9 TRANS Cust'!P155+'FR-16(7)(v)-11 DIST Demand'!P155+'FR-16(7)(v)-12 DIST Energy'!P155+'FR-16(7)(v)-13 DIST Cust'!P155","v":140864},{"$f":"'FR-16(7)(v)-3 PROD Demand'!Q155+'FR-16(7)(v)-4 PROD Energy'!Q155+'FR-16(7)(v)-5 PROD Cust'!Q155+'FR-16(7)(v)-7 TRANS Demand'!Q155+'FR-16(7)(v)-8 TRANS Energy'!Q155+'FR-16(7)(v)-9 TRANS Cust'!Q155+'FR-16(7)(v)-11 DIST Demand'!Q155+'FR-16(7)(v)-12 DIST Energy'!Q155+'FR-16(7)(v)-13 DIST Cust'!Q155","v":2467},22430547,0]
[22,null,{"$f":"'FR-16(7)(v)-1 Functional'!C156","v":"CONDUCTORS - OVERHEAD / PRIMARY - CUSTOMER"},{"$f":"'FR-16(7)(v)-1 Functional'!D156","v":"K405"},null,{"$f":"'FR-16(7)(v)-1 Functional'!F156","v":4898270},{"$f":"'FR-16(7)(v)-3 PROD Demand'!G156+'FR-16(7)(v)-4 PROD Energy'!G156+'FR-16(7)(v)-5 PROD Cust'!G156+'FR-16(7)(v)-7 TRANS Demand'!G156+'FR-16(7)(v)-8 TRANS Energy'!G156+'FR-16(7)(v)-9 TRANS Cust'!G156+'FR-16(7)(v)-11 DIST Demand'!G156+'FR-16(7)(v)-12 DIST Energy'!G156+'FR-16(7)(v)-13 DIST Cust'!G156","v":4418484},{"$f":"'FR-16(7)(v)-3 PROD Demand'!H156+'FR-16(7)(v)-4 PROD Energy'!H156+'FR-16(7)(v)-5 PROD Cust'!H156+'FR-16(7)(v)-7 TRANS Demand'!H156+'FR-16(7)(v)-8 TRANS Energy'!H156+'FR-16(7)(v)-9 TRANS Cust'!H156+'FR-16(7)(v)-11 DIST Demand'!H156+'FR-16(7)(v)-12 DIST Energy'!H156+'FR-16(7)(v)-13 DIST Cust'!H156","v":446232},{"$f":"'FR-16(7)(v)-3 PROD Demand'!I156+'FR-16(7)(v)-4 PROD Energy'!I156+'FR-16(7)(v)-5 PROD Cust'!I156+'FR-16(7)(v)-7 TRANS Demand'!I156+'FR-16(7)(v)-8 TRANS Energy'!I156+'FR-16(7)(v)-9 TRANS Cust'!I156+'FR-16(7)(v)-11 DIST Demand'!I156+'FR-16(7)(v)-12 DIST Energy'!I156+'FR-16(7)(v)-13 DIST Cust'!I156","v":5927},{"$f":"'FR-16(7)(v)-3 PROD Demand'!J156+'FR-16(7)(v)-4 PROD Energy'!J156+'FR-16(7)(v)-5 PROD Cust'!J156+'FR-16(7)(v)-7 TRANS Demand'!J156+'FR-16(7)(v)-8 TRANS Energy'!J156+'FR-16(7)(v)-9 TRANS Cust'!J156+'FR-16(7)(v)-11 DIST Demand'!J156+'FR-16(7)(v)-12 DIST Energy'!J156+'FR-16(7)(v)-13 DIST Cust'!J156","v":3527},{"$f":"'FR-16(7)(v)-3 PROD Demand'!K156+'FR-16(7)(v)-4 PROD Energy'!K156+'FR-16(7)(v)-5 PROD Cust'!K156+'FR-16(7)(v)-7 TRANS Demand'!K156+'FR-16(7)(v)-8 TRANS Energy'!K156+'FR-16(7)(v)-9 TRANS Cust'!K156+'FR-16(7)(v)-11 DIST Demand'!K156+'FR-16(7)(v)-12 DIST Energy'!K156+'FR-16(7)(v)-13 DIST Cust'!K156","v":490},{"$f":"'FR-16(7)(v)-3 PROD Demand'!L156+'FR-16(7)(v)-4 PROD Energy'!L156+'FR-16(7)(v)-5 PROD Cust'!L156+'FR-16(7)(v)-7 TRANS Demand'!L156+'FR-16(7)(v)-8 TRANS Energy'!L156+'FR-16(7)(v)-9 TRANS Cust'!L156+'FR-16(7)(v)-11 DIST Demand'!L156+'FR-16(7)(v)-12 DIST Energy'!L156+'FR-16(7)(v)-13 DIST Cust'!L156","v":5486},{"$f":"'FR-16(7)(v)-3 PROD Demand'!M156+'FR-16(7)(v)-4 PROD Energy'!M156+'FR-16(7)(v)-5 PROD Cust'!M156+'FR-16(7)(v)-7 TRANS Demand'!M156+'FR-16(7)(v)-8 TRANS Energy'!M156+'FR-16(7)(v)-9 TRANS Cust'!M156+'FR-16(7)(v)-11 DIST Demand'!M156+'FR-16(7)(v)-12 DIST Energy'!M156+'FR-16(7)(v)-13 DIST Cust'!M156","v":1274},{"$f":"'FR-16(7)(v)-3 PROD Demand'!N156+'FR-16(7)(v)-4 PROD Energy'!N156+'FR-16(7)(v)-5 PROD Cust'!N156+'FR-16(7)(v)-7 TRANS Demand'!N156+'FR-16(7)(v)-8 TRANS Energy'!N156+'FR-16(7)(v)-9 TRANS Cust'!N156+'FR-16(7)(v)-11 DIST Demand'!N156+'FR-16(7)(v)-12 DIST Energy'!N156+'FR-16(7)(v)-13 DIST Cust'!N156","v":343},{"$f":"'FR-16(7)(v)-3 PROD Demand'!O156+'FR-16(7)(v)-4 PROD Energy'!O156+'FR-16(7)(v)-5 PROD Cust'!O156+'FR-16(7)(v)-7 TRANS Demand'!O156+'FR-16(7)(v)-8 TRANS Energy'!O156+'FR-16(7)(v)-9 TRANS Cust'!O156+'FR-16(7)(v)-11 DIST Demand'!O156+'FR-16(7)(v)-12 DIST Energy'!O156+'FR-16(7)(v)-13 DIST Cust'!O156","v":0},{"$f":"'FR-16(7)(v)-3 PROD Demand'!P156+'FR-16(7)(v)-4 PROD Energy'!P156+'FR-16(7)(v)-5 PROD Cust'!P156+'FR-16(7)(v)-7 TRANS Demand'!P156+'FR-16(7)(v)-8 TRANS Energy'!P156+'FR-16(7)(v)-9 TRANS Cust'!P156+'FR-16(7)(v)-11 DIST Demand'!P156+'FR-16(7)(v)-12 DIST Energy'!P156+'FR-16(7)(v)-13 DIST Cust'!P156","v":16115},{"$f":"'FR-16(7)(v)-3 PROD Demand'!Q156+'FR-16(7)(v)-4 PROD Energy'!Q156+'FR-16(7)(v)-5 PROD Cust'!Q156+'FR-16(7)(v)-7 TRANS Demand'!Q156+'FR-16(7)(v)-8 TRANS Energy'!Q156+'FR-16(7)(v)-9 TRANS Cust'!Q156+'FR-16(7)(v)-11 DIST Demand'!Q156+'FR-16(7)(v)-12 DIST Energy'!Q156+'FR-16(7)(v)-13 DIST Cust'!Q156","v":392},4898270,0]
[23,null,{"$f":"'FR-16(7)(v)-1 Functional'!C157","v":"CONDUCTORS - OVERHEAD / SECONDARY - DEMAND"},{"$f":"'FR-16(7)(v)-1 Functional'!D157","v":"K206"},null,{"$f":"'FR-16(7)(v)-1 Functional'!F157","v":9133457},{"$f":"'FR-16(7)(v)-3 PROD Demand'!G157+'FR-16(7)(v)-4 PROD Energy'!G157+'FR-16(7)(v)-5 PROD Cust'!G157+'FR-16(7)(v)-7 TRANS Demand'!G157+'FR-16(7)(v)-8 TRANS Energy'!G157+'FR-16(7)(v)-9 TRANS Cust'!G157+'FR-16(7)(v)-11 DIST Demand'!G157+'FR-16(7)(v)-12 DIST Energy'!G157+'FR-16(7)(v)-13 DIST Cust'!G157","v":4287519},{"$f":"'FR-16(7)(v)-3 PROD Demand'!H157+'FR-16(7)(v)-4 PROD Energy'!H157+'FR-16(7)(v)-5 PROD Cust'!H157+'FR-16(7)(v)-7 TRANS Demand'!H157+'FR-16(7)(v)-8 TRANS Energy'!H157+'FR-16(7)(v)-9 TRANS Cust'!H157+'FR-16(7)(v)-11 DIST Demand'!H157+'FR-16(7)(v)-12 DIST Energy'!H157+'FR-16(7)(v)-13 DIST Cust'!H157","v":2532068},{"$f":"'FR-16(7)(v)-3 PROD Demand'!I157+'FR-16(7)(v)-4 PROD Energy'!I157+'FR-16(7)(v)-5 PROD Cust'!I157+'FR-16(7)(v)-7 TRANS Demand'!I157+'FR-16(7)(v)-8 TRANS Energy'!I157+'FR-16(7)(v)-9 TRANS Cust'!I157+'FR-16(7)(v)-11 DIST Demand'!I157+'FR-16(7)(v)-12 DIST Energy'!I157+'FR-16(7)(v)-13 DIST Cust'!I157","v":11782},{"$f":"'FR-16(7)(v)-3 PROD Demand'!J157+'FR-16(7)(v)-4 PROD Energy'!J157+'FR-16(7)(v)-5 PROD Cust'!J157+'FR-16(7)(v)-7 TRANS Demand'!J157+'FR-16(7)(v)-8 TRANS Energy'!J157+'FR-16(7)(v)-9 TRANS Cust'!J157+'FR-16(7)(v)-11 DIST Demand'!J157+'FR-16(7)(v)-12 DIST Energy'!J157+'FR-16(7)(v)-13 DIST Cust'!J157","v":55531},{"$f":"'FR-16(7)(v)-3 PROD Demand'!K157+'FR-16(7)(v)-4 PROD Energy'!K157+'FR-16(7)(v)-5 PROD Cust'!K157+'FR-16(7)(v)-7 TRANS Demand'!K157+'FR-16(7)(v)-8 TRANS Energy'!K157+'FR-16(7)(v)-9 TRANS Cust'!K157+'FR-16(7)(v)-11 DIST Demand'!K157+'FR-16(7)(v)-12 DIST Energy'!K157+'FR-16(7)(v)-13 DIST Cust'!K157","v":639},{"$f":"'FR-16(7)(v)-3 PROD Demand'!L157+'FR-16(7)(v)-4 PROD Energy'!L157+'FR-16(7)(v)-5 PROD Cust'!L157+'FR-16(7)(v)-7 TRANS Demand'!L157+'FR-16(7)(v)-8 TRANS Energy'!L157+'FR-16(7)(v)-9 TRANS Cust'!L157+'FR-16(7)(v)-11 DIST Demand'!L157+'FR-16(7)(v)-12 DIST Energy'!L157+'FR-16(7)(v)-13 DIST Cust'!L157","v":1293115},{"$f":"'FR-16(7)(v)-3 PROD Demand'!M157+'FR-16(7)(v)-4 PROD Energy'!M157+'FR-16(7)(v)-5 PROD Cust'!M157+'FR-16(7)(v)-7 TRANS Demand'!M157+'FR-16(7)(v)-8 TRANS Energy'!M157+'FR-16(7)(v)-9 TRANS Cust'!M157+'FR-16(7)(v)-11 DIST Demand'!M157+'FR-16(7)(v)-12 DIST Energy'!M157+'FR-16(7)(v)-13 DIST Cust'!M157","v":851695},{"$f":"'FR-16(7)(v)-3 PROD Demand'!N157+'FR-16(7)(v)-4 PROD Energy'!N157+'FR-16(7)(v)-5 PROD Cust'!N157+'FR-16(7)(v)-7 TRANS Demand'!N157+'FR-16(7)(v)-8 TRANS Energy'!N157+'FR-16(7)(v)-9 TRANS Cust'!N157+'FR-16(7)(v)-11 DIST Demand'!N157+'FR-16(7)(v)-12 DIST Energy'!N157+'FR-16(7)(v)-13 DIST Cust'!N157","v":42745},{"$f":"'FR-16(7)(v)-3 PROD Demand'!O157+'FR-16(7)(v)-4 PROD Energy'!O157+'FR-16(7)(v)-5 PROD Cust'!O157+'FR-16(7)(v)-7 TRANS Demand'!O157+'FR-16(7)(v)-8 TRANS Energy'!O157+'FR-16(7)(v)-9 TRANS Cust'!O157+'FR-16(7)(v)-11 DIST Demand'!O157+'FR-16(7)(v)-12 DIST Energy'!O157+'FR-16(7)(v)-13 DIST Cust'!O157","v":0},{"$f":"'FR-16(7)(v)-3 PROD Demand'!P157+'FR-16(7)(v)-4 PROD Energy'!P157+'FR-16(7)(v)-5 PROD Cust'!P157+'FR-16(7)(v)-7 TRANS Demand'!P157+'FR-16(7)(v)-8 TRANS Energy'!P157+'FR-16(7)(v)-9 TRANS Cust'!P157+'FR-16(7)(v)-11 DIST Demand'!P157+'FR-16(7)(v)-12 DIST Energy'!P157+'FR-16(7)(v)-13 DIST Cust'!P157","v":57358},{"$f":"'FR-16(7)(v)-3 PROD Demand'!Q157+'FR-16(7)(v)-4 PROD Energy'!Q157+'FR-16(7)(v)-5 PROD Cust'!Q157+'FR-16(7)(v)-7 TRANS Demand'!Q157+'FR-16(7)(v)-8 TRANS Energy'!Q157+'FR-16(7)(v)-9 TRANS Cust'!Q157+'FR-16(7)(v)-11 DIST Demand'!Q157+'FR-16(7)(v)-12 DIST Energy'!Q157+'FR-16(7)(v)-13 DIST Cust'!Q157","v":1005},9133457,0]
[24,null,{"$f":"'FR-16(7)(v)-1 Functional'!C158","v":"CONDUCTORS - OVERHEAD / SECONDARY - CUSTOMER"},{"$f":"'FR-16(7)(v)-1 Functional'!D158","v":"K405"},null,{"$f":"'FR-16(7)(v)-1 Functional'!F158","v":2029018},{"$f":"'FR-16(7)(v)-3 PROD Demand'!G158+'FR-16(7)(v)-4 PROD Energy'!G158+'FR-16(7)(v)-5 PROD Cust'!G158+'FR-16(7)(v)-7 TRANS Demand'!G158+'FR-16(7)(v)-8 TRANS Energy'!G158+'FR-16(7)(v)-9 TRANS Cust'!G158+'FR-16(7)(v)-11 DIST Demand'!G158+'FR-16(7)(v)-12 DIST Energy'!G158+'FR-16(7)(v)-13 DIST Cust'!G158","v":1830275},{"$f":"'FR-16(7)(v)-3 PROD Demand'!H158+'FR-16(7)(v)-4 PROD Energy'!H158+'FR-16(7)(v)-5 PROD Cust'!H158+'FR-16(7)(v)-7 TRANS Demand'!H158+'FR-16(7)(v)-8 TRANS Energy'!H158+'FR-16(7)(v)-9 TRANS Cust'!H158+'FR-16(7)(v)-11 DIST Demand'!H158+'FR-16(7)(v)-12 DIST Energy'!H158+'FR-16(7)(v)-13 DIST Cust'!H158","v":184844},{"$f":"'FR-16(7)(v)-3 PROD Demand'!I158+'FR-16(7)(v)-4 PROD Energy'!I158+'FR-16(7)(v)-5 PROD Cust'!I158+'FR-16(7)(v)-7 TRANS Demand'!I158+'FR-16(7)(v)-8 TRANS Energy'!I158+'FR-16(7)(v)-9 TRANS Cust'!I158+'FR-16(7)(v)-11 DIST Demand'!I158+'FR-16(7)(v)-12 DIST Energy'!I158+'FR-16(7)(v)-13 DIST Cust'!I158","v":2455},{"$f":"'FR-16(7)(v)-3 PROD Demand'!J158+'FR-16(7)(v)-4 PROD Energy'!J158+'FR-16(7)(v)-5 PROD Cust'!J158+'FR-16(7)(v)-7 TRANS Demand'!J158+'FR-16(7)(v)-8 TRANS Energy'!J158+'FR-16(7)(v)-9 TRANS Cust'!J158+'FR-16(7)(v)-11 DIST Demand'!J158+'FR-16(7)(v)-12 DIST Energy'!J158+'FR-16(7)(v)-13 DIST Cust'!J158","v":1461},{"$f":"'FR-16(7)(v)-3 PROD Demand'!K158+'FR-16(7)(v)-4 PROD Energy'!K158+'FR-16(7)(v)-5 PROD Cust'!K158+'FR-16(7)(v)-7 TRANS Demand'!K158+'FR-16(7)(v)-8 TRANS Energy'!K158+'FR-16(7)(v)-9 TRANS Cust'!K158+'FR-16(7)(v)-11 DIST Demand'!K158+'FR-16(7)(v)-12 DIST Energy'!K158+'FR-16(7)(v)-13 DIST Cust'!K158","v":203},{"$f":"'FR-16(7)(v)-3 PROD Demand'!L158+'FR-16(7)(v)-4 PROD Energy'!L158+'FR-16(7)(v)-5 PROD Cust'!L158+'FR-16(7)(v)-7 TRANS Demand'!L158+'FR-16(7)(v)-8 TRANS Energy'!L158+'FR-16(7)(v)-9 TRANS Cust'!L158+'FR-16(7)(v)-11 DIST Demand'!L158+'FR-16(7)(v)-12 DIST Energy'!L158+'FR-16(7)(v)-13 DIST Cust'!L158","v":2273},{"$f":"'FR-16(7)(v)-3 PROD Demand'!M158+'FR-16(7)(v)-4 PROD Energy'!M158+'FR-16(7)(v)-5 PROD Cust'!M158+'FR-16(7)(v)-7 TRANS Demand'!M158+'FR-16(7)(v)-8 TRANS Energy'!M158+'FR-16(7)(v)-9 TRANS Cust'!M158+'FR-16(7)(v)-11 DIST Demand'!M158+'FR-16(7)(v)-12 DIST Energy'!M158+'FR-16(7)(v)-13 DIST Cust'!M158","v":528},{"$f":"'FR-16(7)(v)-3 PROD Demand'!N158+'FR-16(7)(v)-4 PROD Energy'!N158+'FR-16(7)(v)-5 PROD Cust'!N158+'FR-16(7)(v)-7 TRANS Demand'!N158+'FR-16(7)(v)-8 TRANS Energy'!N158+'FR-16(7)(v)-9 TRANS Cust'!N158+'FR-16(7)(v)-11 DIST Demand'!N158+'FR-16(7)(v)-12 DIST Energy'!N158+'FR-16(7)(v)-13 DIST Cust'!N158","v":142},{"$f":"'FR-16(7)(v)-3 PROD Demand'!O158+'FR-16(7)(v)-4 PROD Energy'!O158+'FR-16(7)(v)-5 PROD Cust'!O158+'FR-16(7)(v)-7 TRANS Demand'!O158+'FR-16(7)(v)-8 TRANS Energy'!O158+'FR-16(7)(v)-9 TRANS Cust'!O158+'FR-16(7)(v)-11 DIST Demand'!O158+'FR-16(7)(v)-12 DIST Energy'!O158+'FR-16(7)(v)-13 DIST Cust'!O158","v":0},{"$f":"'FR-16(7)(v)-3 PROD Demand'!P158+'FR-16(7)(v)-4 PROD Energy'!P158+'FR-16(7)(v)-5 PROD Cust'!P158+'FR-16(7)(v)-7 TRANS Demand'!P158+'FR-16(7)(v)-8 TRANS Energy'!P158+'FR-16(7)(v)-9 TRANS Cust'!P158+'FR-16(7)(v)-11 DIST Demand'!P158+'FR-16(7)(v)-12 DIST Energy'!P158+'FR-16(7)(v)-13 DIST Cust'!P158","v":6675},{"$f":"'FR-16(7)(v)-3 PROD Demand'!Q158+'FR-16(7)(v)-4 PROD Energy'!Q158+'FR-16(7)(v)-5 PROD Cust'!Q158+'FR-16(7)(v)-7 TRANS Demand'!Q158+'FR-16(7)(v)-8 TRANS Energy'!Q158+'FR-16(7)(v)-9 TRANS Cust'!Q158+'FR-16(7)(v)-11 DIST Demand'!Q158+'FR-16(7)(v)-12 DIST Energy'!Q158+'FR-16(7)(v)-13 DIST Cust'!Q158","v":162},2029018,0]
[25,null,{"$f":"'FR-16(7)(v)-1 Functional'!C159","v":"CONDUCTORS - UNDERGROUND / PRIMARY - DEMAND"},{"$f":"'FR-16(7)(v)-1 Functional'!D159","v":"K205"},null,{"$f":"'FR-16(7)(v)-1 Functional'!F159","v":16606325},{"$f":"'FR-16(7)(v)-3 PROD Demand'!G159+'FR-16(7)(v)-4 PROD Energy'!G159+'FR-16(7)(v)-5 PROD Cust'!G159+'FR-16(7)(v)-7 TRANS Demand'!G159+'FR-16(7)(v)-8 TRANS Energy'!G159+'FR-16(7)(v)-9 TRANS Cust'!G159+'FR-16(7)(v)-11 DIST Demand'!G159+'FR-16(7)(v)-12 DIST Energy'!G159+'FR-16(7)(v)-13 DIST Cust'!G159","v":7795508},{"$f":"'FR-16(7)(v)-3 PROD Demand'!H159+'FR-16(7)(v)-4 PROD Energy'!H159+'FR-16(7)(v)-5 PROD Cust'!H159+'FR-16(7)(v)-7 TRANS Demand'!H159+'FR-16(7)(v)-8 TRANS Energy'!H159+'FR-16(7)(v)-9 TRANS Cust'!H159+'FR-16(7)(v)-11 DIST Demand'!H159+'FR-16(7)(v)-12 DIST Energy'!H159+'FR-16(7)(v)-13 DIST Cust'!H159","v":4603771},{"$f":"'FR-16(7)(v)-3 PROD Demand'!I159+'FR-16(7)(v)-4 PROD Energy'!I159+'FR-16(7)(v)-5 PROD Cust'!I159+'FR-16(7)(v)-7 TRANS Demand'!I159+'FR-16(7)(v)-8 TRANS Energy'!I159+'FR-16(7)(v)-9 TRANS Cust'!I159+'FR-16(7)(v)-11 DIST Demand'!I159+'FR-16(7)(v)-12 DIST Energy'!I159+'FR-16(7)(v)-13 DIST Cust'!I159","v":21422},{"$f":"'FR-16(7)(v)-3 PROD Demand'!J159+'FR-16(7)(v)-4 PROD Energy'!J159+'FR-16(7)(v)-5 PROD Cust'!J159+'FR-16(7)(v)-7 TRANS Demand'!J159+'FR-16(7)(v)-8 TRANS Energy'!J159+'FR-16(7)(v)-9 TRANS Cust'!J159+'FR-16(7)(v)-11 DIST Demand'!J159+'FR-16(7)(v)-12 DIST Energy'!J159+'FR-16(7)(v)-13 DIST Cust'!J159","v":100966},{"$f":"'FR-16(7)(v)-3 PROD Demand'!K159+'FR-16(7)(v)-4 PROD Energy'!K159+'FR-16(7)(v)-5 PROD Cust'!K159+'FR-16(7)(v)-7 TRANS Demand'!K159+'FR-16(7)(v)-8 TRANS Energy'!K159+'FR-16(7)(v)-9 TRANS Cust'!K159+'FR-16(7)(v)-11 DIST Demand'!K159+'FR-16(7)(v)-12 DIST Energy'!K159+'FR-16(7)(v)-13 DIST Cust'!K159","v":1162},{"$f":"'FR-16(7)(v)-3 PROD Demand'!L159+'FR-16(7)(v)-4 PROD Energy'!L159+'FR-16(7)(v)-5 PROD Cust'!L159+'FR-16(7)(v)-7 TRANS Demand'!L159+'FR-16(7)(v)-8 TRANS Energy'!L159+'FR-16(7)(v)-9 TRANS Cust'!L159+'FR-16(7)(v)-11 DIST Demand'!L159+'FR-16(7)(v)-12 DIST Energy'!L159+'FR-16(7)(v)-13 DIST Cust'!L159","v":2351123},{"$f":"'FR-16(7)(v)-3 PROD Demand'!M159+'FR-16(7)(v)-4 PROD Energy'!M159+'FR-16(7)(v)-5 PROD Cust'!M159+'FR-16(7)(v)-7 TRANS Demand'!M159+'FR-16(7)(v)-8 TRANS Energy'!M159+'FR-16(7)(v)-9 TRANS Cust'!M159+'FR-16(7)(v)-11 DIST Demand'!M159+'FR-16(7)(v)-12 DIST Energy'!M159+'FR-16(7)(v)-13 DIST Cust'!M159","v":1548540},{"$f":"'FR-16(7)(v)-3 PROD Demand'!N159+'FR-16(7)(v)-4 PROD Energy'!N159+'FR-16(7)(v)-5 PROD Cust'!N159+'FR-16(7)(v)-7 TRANS Demand'!N159+'FR-16(7)(v)-8 TRANS Energy'!N159+'FR-16(7)(v)-9 TRANS Cust'!N159+'FR-16(7)(v)-11 DIST Demand'!N159+'FR-16(7)(v)-12 DIST Energy'!N159+'FR-16(7)(v)-13 DIST Cust'!N159","v":77718},{"$f":"'FR-16(7)(v)-3 PROD Demand'!O159+'FR-16(7)(v)-4 PROD Energy'!O159+'FR-16(7)(v)-5 PROD Cust'!O159+'FR-16(7)(v)-7 TRANS Demand'!O159+'FR-16(7)(v)-8 TRANS Energy'!O159+'FR-16(7)(v)-9 TRANS Cust'!O159+'FR-16(7)(v)-11 DIST Demand'!O159+'FR-16(7)(v)-12 DIST Energy'!O159+'FR-16(7)(v)-13 DIST Cust'!O159","v":0},{"$f":"'FR-16(7)(v)-3 PROD Demand'!P159+'FR-16(7)(v)-4 PROD Energy'!P159+'FR-16(7)(v)-5 PROD Cust'!P159+'FR-16(7)(v)-7 TRANS Demand'!P159+'FR-16(7)(v)-8 TRANS Energy'!P159+'FR-16(7)(v)-9 TRANS Cust'!P159+'FR-16(7)(v)-11 DIST Demand'!P159+'FR-16(7)(v)-12 DIST Energy'!P159+'FR-16(7)(v)-13 DIST Cust'!P159","v":104288},{"$f":"'FR-16(7)(v)-3 PROD Demand'!Q159+'FR-16(7)(v)-4 PROD Energy'!Q159+'FR-16(7)(v)-5 PROD Cust'!Q159+'FR-16(7)(v)-7 TRANS Demand'!Q159+'FR-16(7)(v)-8 TRANS Energy'!Q159+'FR-16(7)(v)-9 TRANS Cust'!Q159+'FR-16(7)(v)-11 DIST Demand'!Q159+'FR-16(7)(v)-12 DIST Energy'!Q159+'FR-16(7)(v)-13 DIST Cust'!Q159","v":1827},16606325,0]
[26,null,{"$f":"'FR-16(7)(v)-1 Functional'!C160","v":"CONDUCTORS - UNDERGROUND / PRIMARY - CUSTOMER"},{"$f":"'FR-16(7)(v)-1 Functional'!D160","v":"K405"},null,{"$f":"'FR-16(7)(v)-1 Functional'!F160","v":5156912},{"$f":"'FR-16(7)(v)-3 PROD Demand'!G160+'FR-16(7)(v)-4 PROD Energy'!G160+'FR-16(7)(v)-5 PROD Cust'!G160+'FR-16(7)(v)-7 TRANS Demand'!G160+'FR-16(7)(v)-8 TRANS Energy'!G160+'FR-16(7)(v)-9 TRANS Cust'!G160+'FR-16(7)(v)-11 DIST Demand'!G160+'FR-16(7)(v)-12 DIST Energy'!G160+'FR-16(7)(v)-13 DIST Cust'!G160","v":4651791},{"$f":"'FR-16(7)(v)-3 PROD Demand'!H160+'FR-16(7)(v)-4 PROD Energy'!H160+'FR-16(7)(v)-5 PROD Cust'!H160+'FR-16(7)(v)-7 TRANS Demand'!H160+'FR-16(7)(v)-8 TRANS Energy'!H160+'FR-16(7)(v)-9 TRANS Cust'!H160+'FR-16(7)(v)-11 DIST Demand'!H160+'FR-16(7)(v)-12 DIST Energy'!H160+'FR-16(7)(v)-13 DIST Cust'!H160","v":469795},{"$f":"'FR-16(7)(v)-3 PROD Demand'!I160+'FR-16(7)(v)-4 PROD Energy'!I160+'FR-16(7)(v)-5 PROD Cust'!I160+'FR-16(7)(v)-7 TRANS Demand'!I160+'FR-16(7)(v)-8 TRANS Energy'!I160+'FR-16(7)(v)-9 TRANS Cust'!I160+'FR-16(7)(v)-11 DIST Demand'!I160+'FR-16(7)(v)-12 DIST Energy'!I160+'FR-16(7)(v)-13 DIST Cust'!I160","v":6240},{"$f":"'FR-16(7)(v)-3 PROD Demand'!J160+'FR-16(7)(v)-4 PROD Energy'!J160+'FR-16(7)(v)-5 PROD Cust'!J160+'FR-16(7)(v)-7 TRANS Demand'!J160+'FR-16(7)(v)-8 TRANS Energy'!J160+'FR-16(7)(v)-9 TRANS Cust'!J160+'FR-16(7)(v)-11 DIST Demand'!J160+'FR-16(7)(v)-12 DIST Energy'!J160+'FR-16(7)(v)-13 DIST Cust'!J160","v":3713},{"$f":"'FR-16(7)(v)-3 PROD Demand'!K160+'FR-16(7)(v)-4 PROD Energy'!K160+'FR-16(7)(v)-5 PROD Cust'!K160+'FR-16(7)(v)-7 TRANS Demand'!K160+'FR-16(7)(v)-8 TRANS Energy'!K160+'FR-16(7)(v)-9 TRANS Cust'!K160+'FR-16(7)(v)-11 DIST Demand'!K160+'FR-16(7)(v)-12 DIST Energy'!K160+'FR-16(7)(v)-13 DIST Cust'!K160","v":516},{"$f":"'FR-16(7)(v)-3 PROD Demand'!L160+'FR-16(7)(v)-4 PROD Energy'!L160+'FR-16(7)(v)-5 PROD Cust'!L160+'FR-16(7)(v)-7 TRANS Demand'!L160+'FR-16(7)(v)-8 TRANS Energy'!L160+'FR-16(7)(v)-9 TRANS Cust'!L160+'FR-16(7)(v)-11 DIST Demand'!L160+'FR-16(7)(v)-12 DIST Energy'!L160+'FR-16(7)(v)-13 DIST Cust'!L160","v":5776},{"$f":"'FR-16(7)(v)-3 PROD Demand'!M160+'FR-16(7)(v)-4 PROD Energy'!M160+'FR-16(7)(v)-5 PROD Cust'!M160+'FR-16(7)(v)-7 TRANS Demand'!M160+'FR-16(7)(v)-8 TRANS Energy'!M160+'FR-16(7)(v)-9 TRANS Cust'!M160+'FR-16(7)(v)-11 DIST Demand'!M160+'FR-16(7)(v)-12 DIST Energy'!M160+'FR-16(7)(v)-13 DIST Cust'!M160","v":1341},{"$f":"'FR-16(7)(v)-3 PROD Demand'!N160+'FR-16(7)(v)-4 PROD Energy'!N160+'FR-16(7)(v)-5 PROD Cust'!N160+'FR-16(7)(v)-7 TRANS Demand'!N160+'FR-16(7)(v)-8 TRANS Energy'!N160+'FR-16(7)(v)-9 TRANS Cust'!N160+'FR-16(7)(v)-11 DIST Demand'!N160+'FR-16(7)(v)-12 DIST Energy'!N160+'FR-16(7)(v)-13 DIST Cust'!N160","v":361},{"$f":"'FR-16(7)(v)-3 PROD Demand'!O160+'FR-16(7)(v)-4 PROD Energy'!O160+'FR-16(7)(v)-5 PROD Cust'!O160+'FR-16(7)(v)-7 TRANS Demand'!O160+'FR-16(7)(v)-8 TRANS Energy'!O160+'FR-16(7)(v)-9 TRANS Cust'!O160+'FR-16(7)(v)-11 DIST Demand'!O160+'FR-16(7)(v)-12 DIST Energy'!O160+'FR-16(7)(v)-13 DIST Cust'!O160","v":0},{"$f":"'FR-16(7)(v)-3 PROD Demand'!P160+'FR-16(7)(v)-4 PROD Energy'!P160+'FR-16(7)(v)-5 PROD Cust'!P160+'FR-16(7)(v)-7 TRANS Demand'!P160+'FR-16(7)(v)-8 TRANS Energy'!P160+'FR-16(7)(v)-9 TRANS Cust'!P160+'FR-16(7)(v)-11 DIST Demand'!P160+'FR-16(7)(v)-12 DIST Energy'!P160+'FR-16(7)(v)-13 DIST Cust'!P160","v":16966},{"$f":"'FR-16(7)(v)-3 PROD Demand'!Q160+'FR-16(7)(v)-4 PROD Energy'!Q160+'FR-16(7)(v)-5 PROD Cust'!Q160+'FR-16(7)(v)-7 TRANS Demand'!Q160+'FR-16(7)(v)-8 TRANS Energy'!Q160+'FR-16(7)(v)-9 TRANS Cust'!Q160+'FR-16(7)(v)-11 DIST Demand'!Q160+'FR-16(7)(v)-12 DIST Energy'!Q160+'FR-16(7)(v)-13 DIST Cust'!Q160","v":413},5156912,0]
[27,null,{"$f":"'FR-16(7)(v)-1 Functional'!C161","v":"CONDUCTORS - UNDERGROUND / SECONDARY - DEMAND"},{"$f":"'FR-16(7)(v)-1 Functional'!D161","v":"K206"},null,{"$f":"'FR-16(7)(v)-1 Functional'!F161","v":2844900},{"$f":"'FR-16(7)(v)-3 PROD Demand'!G161+'FR-16(7)(v)-4 PROD Energy'!G161+'FR-16(7)(v)-5 PROD Cust'!G161+'FR-16(7)(v)-7 TRANS Demand'!G161+'FR-16(7)(v)-8 TRANS Energy'!G161+'FR-16(7)(v)-9 TRANS Cust'!G161+'FR-16(7)(v)-11 DIST Demand'!G161+'FR-16(7)(v)-12 DIST Energy'!G161+'FR-16(7)(v)-13 DIST Cust'!G161","v":1335481},{"$f":"'FR-16(7)(v)-3 PROD Demand'!H161+'FR-16(7)(v)-4 PROD Energy'!H161+'FR-16(7)(v)-5 PROD Cust'!H161+'FR-16(7)(v)-7 TRANS Demand'!H161+'FR-16(7)(v)-8 TRANS Energy'!H161+'FR-16(7)(v)-9 TRANS Cust'!H161+'FR-16(7)(v)-11 DIST Demand'!H161+'FR-16(7)(v)-12 DIST Energy'!H161+'FR-16(7)(v)-13 DIST Cust'!H161","v":788692},{"$f":"'FR-16(7)(v)-3 PROD Demand'!I161+'FR-16(7)(v)-4 PROD Energy'!I161+'FR-16(7)(v)-5 PROD Cust'!I161+'FR-16(7)(v)-7 TRANS Demand'!I161+'FR-16(7)(v)-8 TRANS Energy'!I161+'FR-16(7)(v)-9 TRANS Cust'!I161+'FR-16(7)(v)-11 DIST Demand'!I161+'FR-16(7)(v)-12 DIST Energy'!I161+'FR-16(7)(v)-13 DIST Cust'!I161","v":3670},{"$f":"'FR-16(7)(v)-3 PROD Demand'!J161+'FR-16(7)(v)-4 PROD Energy'!J161+'FR-16(7)(v)-5 PROD Cust'!J161+'FR-16(7)(v)-7 TRANS Demand'!J161+'FR-16(7)(v)-8 TRANS Energy'!J161+'FR-16(7)(v)-9 TRANS Cust'!J161+'FR-16(7)(v)-11 DIST Demand'!J161+'FR-16(7)(v)-12 DIST Energy'!J161+'FR-16(7)(v)-13 DIST Cust'!J161","v":17297},{"$f":"'FR-16(7)(v)-3 PROD Demand'!K161+'FR-16(7)(v)-4 PROD Energy'!K161+'FR-16(7)(v)-5 PROD Cust'!K161+'FR-16(7)(v)-7 TRANS Demand'!K161+'FR-16(7)(v)-8 TRANS Energy'!K161+'FR-16(7)(v)-9 TRANS Cust'!K161+'FR-16(7)(v)-11 DIST Demand'!K161+'FR-16(7)(v)-12 DIST Energy'!K161+'FR-16(7)(v)-13 DIST Cust'!K161","v":199},{"$f":"'FR-16(7)(v)-3 PROD Demand'!L161+'FR-16(7)(v)-4 PROD Energy'!L161+'FR-16(7)(v)-5 PROD Cust'!L161+'FR-16(7)(v)-7 TRANS Demand'!L161+'FR-16(7)(v)-8 TRANS Energy'!L161+'FR-16(7)(v)-9 TRANS Cust'!L161+'FR-16(7)(v)-11 DIST Demand'!L161+'FR-16(7)(v)-12 DIST Energy'!L161+'FR-16(7)(v)-13 DIST Cust'!L161","v":402781},{"$f":"'FR-16(7)(v)-3 PROD Demand'!M161+'FR-16(7)(v)-4 PROD Energy'!M161+'FR-16(7)(v)-5 PROD Cust'!M161+'FR-16(7)(v)-7 TRANS Demand'!M161+'FR-16(7)(v)-8 TRANS Energy'!M161+'FR-16(7)(v)-9 TRANS Cust'!M161+'FR-16(7)(v)-11 DIST Demand'!M161+'FR-16(7)(v)-12 DIST Energy'!M161+'FR-16(7)(v)-13 DIST Cust'!M161","v":265287},{"$f":"'FR-16(7)(v)-3 PROD Demand'!N161+'FR-16(7)(v)-4 PROD Energy'!N161+'FR-16(7)(v)-5 PROD Cust'!N161+'FR-16(7)(v)-7 TRANS Demand'!N161+'FR-16(7)(v)-8 TRANS Energy'!N161+'FR-16(7)(v)-9 TRANS Cust'!N161+'FR-16(7)(v)-11 DIST Demand'!N161+'FR-16(7)(v)-12 DIST Energy'!N161+'FR-16(7)(v)-13 DIST Cust'!N161","v":13314},{"$f":"'FR-16(7)(v)-3 PROD Demand'!O161+'FR-16(7)(v)-4 PROD Energy'!O161+'FR-16(7)(v)-5 PROD Cust'!O161+'FR-16(7)(v)-7 TRANS Demand'!O161+'FR-16(7)(v)-8 TRANS Energy'!O161+'FR-16(7)(v)-9 TRANS Cust'!O161+'FR-16(7)(v)-11 DIST Demand'!O161+'FR-16(7)(v)-12 DIST Energy'!O161+'FR-16(7)(v)-13 DIST Cust'!O161","v":0},{"$f":"'FR-16(7)(v)-3 PROD Demand'!P161+'FR-16(7)(v)-4 PROD Energy'!P161+'FR-16(7)(v)-5 PROD Cust'!P161+'FR-16(7)(v)-7 TRANS Demand'!P161+'FR-16(7)(v)-8 TRANS Energy'!P161+'FR-16(7)(v)-9 TRANS Cust'!P161+'FR-16(7)(v)-11 DIST Demand'!P161+'FR-16(7)(v)-12 DIST Energy'!P161+'FR-16(7)(v)-13 DIST Cust'!P161","v":17866},{"$f":"'FR-16(7)(v)-3 PROD Demand'!Q161+'FR-16(7)(v)-4 PROD Energy'!Q161+'FR-16(7)(v)-5 PROD Cust'!Q161+'FR-16(7)(v)-7 TRANS Demand'!Q161+'FR-16(7)(v)-8 TRANS Energy'!Q161+'FR-16(7)(v)-9 TRANS Cust'!Q161+'FR-16(7)(v)-11 DIST Demand'!Q161+'FR-16(7)(v)-12 DIST Energy'!Q161+'FR-16(7)(v)-13 DIST Cust'!Q161","v":313},2844900,0]
[28,null,{"$f":"'FR-16(7)(v)-1 Functional'!C162","v":"CONDUCTORS - UNDERGROUND / SECONDARY - CUSTOMER"},{"$f":"'FR-16(7)(v)-1 Functional'!D162","v":"K405"},null,{"$f":"'FR-16(7)(v)-1 Functional'!F162","v":1612630},{"$f":"'FR-16(7)(v)-3 PROD Demand'!G162+'FR-16(7)(v)-4 PROD Energy'!G162+'FR-16(7)(v)-5 PROD Cust'!G162+'FR-16(7)(v)-7 TRANS Demand'!G162+'FR-16(7)(v)-8 TRANS Energy'!G162+'FR-16(7)(v)-9 TRANS Cust'!G162+'FR-16(7)(v)-11 DIST Demand'!G162+'FR-16(7)(v)-12 DIST Energy'!G162+'FR-16(7)(v)-13 DIST Cust'!G162","v":1454673},{"$f":"'FR-16(7)(v)-3 PROD Demand'!H162+'FR-16(7)(v)-4 PROD Energy'!H162+'FR-16(7)(v)-5 PROD Cust'!H162+'FR-16(7)(v)-7 TRANS Demand'!H162+'FR-16(7)(v)-8 TRANS Energy'!H162+'FR-16(7)(v)-9 TRANS Cust'!H162+'FR-16(7)(v)-11 DIST Demand'!H162+'FR-16(7)(v)-12 DIST Energy'!H162+'FR-16(7)(v)-13 DIST Cust'!H162","v":146911},{"$f":"'FR-16(7)(v)-3 PROD Demand'!I162+'FR-16(7)(v)-4 PROD Energy'!I162+'FR-16(7)(v)-5 PROD Cust'!I162+'FR-16(7)(v)-7 TRANS Demand'!I162+'FR-16(7)(v)-8 TRANS Energy'!I162+'FR-16(7)(v)-9 TRANS Cust'!I162+'FR-16(7)(v)-11 DIST Demand'!I162+'FR-16(7)(v)-12 DIST Energy'!I162+'FR-16(7)(v)-13 DIST Cust'!I162","v":1951},{"$f":"'FR-16(7)(v)-3 PROD Demand'!J162+'FR-16(7)(v)-4 PROD Energy'!J162+'FR-16(7)(v)-5 PROD Cust'!J162+'FR-16(7)(v)-7 TRANS Demand'!J162+'FR-16(7)(v)-8 TRANS Energy'!J162+'FR-16(7)(v)-9 TRANS Cust'!J162+'FR-16(7)(v)-11 DIST Demand'!J162+'FR-16(7)(v)-12 DIST Energy'!J162+'FR-16(7)(v)-13 DIST Cust'!J162","v":1161},{"$f":"'FR-16(7)(v)-3 PROD Demand'!K162+'FR-16(7)(v)-4 PROD Energy'!K162+'FR-16(7)(v)-5 PROD Cust'!K162+'FR-16(7)(v)-7 TRANS Demand'!K162+'FR-16(7)(v)-8 TRANS Energy'!K162+'FR-16(7)(v)-9 TRANS Cust'!K162+'FR-16(7)(v)-11 DIST Demand'!K162+'FR-16(7)(v)-12 DIST Energy'!K162+'FR-16(7)(v)-13 DIST Cust'!K162","v":161},{"$f":"'FR-16(7)(v)-3 PROD Demand'!L162+'FR-16(7)(v)-4 PROD Energy'!L162+'FR-16(7)(v)-5 PROD Cust'!L162+'FR-16(7)(v)-7 TRANS Demand'!L162+'FR-16(7)(v)-8 TRANS Energy'!L162+'FR-16(7)(v)-9 TRANS Cust'!L162+'FR-16(7)(v)-11 DIST Demand'!L162+'FR-16(7)(v)-12 DIST Energy'!L162+'FR-16(7)(v)-13 DIST Cust'!L162","v":1806},{"$f":"'FR-16(7)(v)-3 PROD Demand'!M162+'FR-16(7)(v)-4 PROD Energy'!M162+'FR-16(7)(v)-5 PROD Cust'!M162+'FR-16(7)(v)-7 TRANS Demand'!M162+'FR-16(7)(v)-8 TRANS Energy'!M162+'FR-16(7)(v)-9 TRANS Cust'!M162+'FR-16(7)(v)-11 DIST Demand'!M162+'FR-16(7)(v)-12 DIST Energy'!M162+'FR-16(7)(v)-13 DIST Cust'!M162","v":419},{"$f":"'FR-16(7)(v)-3 PROD Demand'!N162+'FR-16(7)(v)-4 PROD Energy'!N162+'FR-16(7)(v)-5 PROD Cust'!N162+'FR-16(7)(v)-7 TRANS Demand'!N162+'FR-16(7)(v)-8 TRANS Energy'!N162+'FR-16(7)(v)-9 TRANS Cust'!N162+'FR-16(7)(v)-11 DIST Demand'!N162+'FR-16(7)(v)-12 DIST Energy'!N162+'FR-16(7)(v)-13 DIST Cust'!N162","v":113},{"$f":"'FR-16(7)(v)-3 PROD Demand'!O162+'FR-16(7)(v)-4 PROD Energy'!O162+'FR-16(7)(v)-5 PROD Cust'!O162+'FR-16(7)(v)-7 TRANS Demand'!O162+'FR-16(7)(v)-8 TRANS Energy'!O162+'FR-16(7)(v)-9 TRANS Cust'!O162+'FR-16(7)(v)-11 DIST Demand'!O162+'FR-16(7)(v)-12 DIST Energy'!O162+'FR-16(7)(v)-13 DIST Cust'!O162","v":0},{"$f":"'FR-16(7)(v)-3 PROD Demand'!P162+'FR-16(7)(v)-4 PROD Energy'!P162+'FR-16(7)(v)-5 PROD Cust'!P162+'FR-16(7)(v)-7 TRANS Demand'!P162+'FR-16(7)(v)-8 TRANS Energy'!P162+'FR-16(7)(v)-9 TRANS Cust'!P162+'FR-16(7)(v)-11 DIST Demand'!P162+'FR-16(7)(v)-12 DIST Energy'!P162+'FR-16(7)(v)-13 DIST Cust'!P162","v":5306},{"$f":"'FR-16(7)(v)-3 PROD Demand'!Q162+'FR-16(7)(v)-4 PROD Energy'!Q162+'FR-16(7)(v)-5 PROD Cust'!Q162+'FR-16(7)(v)-7 TRANS Demand'!Q162+'FR-16(7)(v)-8 TRANS Energy'!Q162+'FR-16(7)(v)-9 TRANS Cust'!Q162+'FR-16(7)(v)-11 DIST Demand'!Q162+'FR-16(7)(v)-12 DIST Energy'!Q162+'FR-16(7)(v)-13 DIST Cust'!Q162","v":129},1612630,0]
[29,null,{"$f":"'FR-16(7)(v)-1 Functional'!C163","v":"TRANSFORMERS DEMAND RELATED"},{"$f":"'FR-16(7)(v)-1 Functional'!D163","v":"K215"},null,{"$f":"'FR-16(7)(v)-1 Functional'!F163","v":20506142},{"$f":"'FR-16(7)(v)-3 PROD Demand'!G163+'FR-16(7)(v)-4 PROD Energy'!G163+'FR-16(7)(v)-5 PROD Cust'!G163+'FR-16(7)(v)-7 TRANS Demand'!G163+'FR-16(7)(v)-8 TRANS Energy'!G163+'FR-16(7)(v)-9 TRANS Cust'!G163+'FR-16(7)(v)-11 DIST Demand'!G163+'FR-16(7)(v)-12 DIST Energy'!G163+'FR-16(7)(v)-13 DIST Cust'!G163","v":9626197},{"$f":"'FR-16(7)(v)-3 PROD Demand'!H163+'FR-16(7)(v)-4 PROD Energy'!H163+'FR-16(7)(v)-5 PROD Cust'!H163+'FR-16(7)(v)-7 TRANS Demand'!H163+'FR-16(7)(v)-8 TRANS Energy'!H163+'FR-16(7)(v)-9 TRANS Cust'!H163+'FR-16(7)(v)-11 DIST Demand'!H163+'FR-16(7)(v)-12 DIST Energy'!H163+'FR-16(7)(v)-13 DIST Cust'!H163","v":5684918},{"$f":"'FR-16(7)(v)-3 PROD Demand'!I163+'FR-16(7)(v)-4 PROD Energy'!I163+'FR-16(7)(v)-5 PROD Cust'!I163+'FR-16(7)(v)-7 TRANS Demand'!I163+'FR-16(7)(v)-8 TRANS Energy'!I163+'FR-16(7)(v)-9 TRANS Cust'!I163+'FR-16(7)(v)-11 DIST Demand'!I163+'FR-16(7)(v)-12 DIST Energy'!I163+'FR-16(7)(v)-13 DIST Cust'!I163","v":26453},{"$f":"'FR-16(7)(v)-3 PROD Demand'!J163+'FR-16(7)(v)-4 PROD Energy'!J163+'FR-16(7)(v)-5 PROD Cust'!J163+'FR-16(7)(v)-7 TRANS Demand'!J163+'FR-16(7)(v)-8 TRANS Energy'!J163+'FR-16(7)(v)-9 TRANS Cust'!J163+'FR-16(7)(v)-11 DIST Demand'!J163+'FR-16(7)(v)-12 DIST Energy'!J163+'FR-16(7)(v)-13 DIST Cust'!J163","v":124677},{"$f":"'FR-16(7)(v)-3 PROD Demand'!K163+'FR-16(7)(v)-4 PROD Energy'!K163+'FR-16(7)(v)-5 PROD Cust'!K163+'FR-16(7)(v)-7 TRANS Demand'!K163+'FR-16(7)(v)-8 TRANS Energy'!K163+'FR-16(7)(v)-9 TRANS Cust'!K163+'FR-16(7)(v)-11 DIST Demand'!K163+'FR-16(7)(v)-12 DIST Energy'!K163+'FR-16(7)(v)-13 DIST Cust'!K163","v":1435},{"$f":"'FR-16(7)(v)-3 PROD Demand'!L163+'FR-16(7)(v)-4 PROD Energy'!L163+'FR-16(7)(v)-5 PROD Cust'!L163+'FR-16(7)(v)-7 TRANS Demand'!L163+'FR-16(7)(v)-8 TRANS Energy'!L163+'FR-16(7)(v)-9 TRANS Cust'!L163+'FR-16(7)(v)-11 DIST Demand'!L163+'FR-16(7)(v)-12 DIST Energy'!L163+'FR-16(7)(v)-13 DIST Cust'!L163","v":2903260},{"$f":"'FR-16(7)(v)-3 PROD Demand'!M163+'FR-16(7)(v)-4 PROD Energy'!M163+'FR-16(7)(v)-5 PROD Cust'!M163+'FR-16(7)(v)-7 TRANS Demand'!M163+'FR-16(7)(v)-8 TRANS Energy'!M163+'FR-16(7)(v)-9 TRANS Cust'!M163+'FR-16(7)(v)-11 DIST Demand'!M163+'FR-16(7)(v)-12 DIST Energy'!M163+'FR-16(7)(v)-13 DIST Cust'!M163","v":1912198},{"$f":"'FR-16(7)(v)-3 PROD Demand'!N163+'FR-16(7)(v)-4 PROD Energy'!N163+'FR-16(7)(v)-5 PROD Cust'!N163+'FR-16(7)(v)-7 TRANS Demand'!N163+'FR-16(7)(v)-8 TRANS Energy'!N163+'FR-16(7)(v)-9 TRANS Cust'!N163+'FR-16(7)(v)-11 DIST Demand'!N163+'FR-16(7)(v)-12 DIST Energy'!N163+'FR-16(7)(v)-13 DIST Cust'!N163","v":95969},{"$f":"'FR-16(7)(v)-3 PROD Demand'!O163+'FR-16(7)(v)-4 PROD Energy'!O163+'FR-16(7)(v)-5 PROD Cust'!O163+'FR-16(7)(v)-7 TRANS Demand'!O163+'FR-16(7)(v)-8 TRANS Energy'!O163+'FR-16(7)(v)-9 TRANS Cust'!O163+'FR-16(7)(v)-11 DIST Demand'!O163+'FR-16(7)(v)-12 DIST Energy'!O163+'FR-16(7)(v)-13 DIST Cust'!O163","v":0},{"$f":"'FR-16(7)(v)-3 PROD Demand'!P163+'FR-16(7)(v)-4 PROD Energy'!P163+'FR-16(7)(v)-5 PROD Cust'!P163+'FR-16(7)(v)-7 TRANS Demand'!P163+'FR-16(7)(v)-8 TRANS Energy'!P163+'FR-16(7)(v)-9 TRANS Cust'!P163+'FR-16(7)(v)-11 DIST Demand'!P163+'FR-16(7)(v)-12 DIST Energy'!P163+'FR-16(7)(v)-13 DIST Cust'!P163","v":128779},{"$f":"'FR-16(7)(v)-3 PROD Demand'!Q163+'FR-16(7)(v)-4 PROD Energy'!Q163+'FR-16(7)(v)-5 PROD Cust'!Q163+'FR-16(7)(v)-7 TRANS Demand'!Q163+'FR-16(7)(v)-8 TRANS Energy'!Q163+'FR-16(7)(v)-9 TRANS Cust'!Q163+'FR-16(7)(v)-11 DIST Demand'!Q163+'FR-16(7)(v)-12 DIST Energy'!Q163+'FR-16(7)(v)-13 DIST Cust'!Q163","v":2256},{"$f":"SUM(G163:Q163)","v":20506142},{"$f":"F163-R163","v":0}]
[30,null,{"$f":"'FR-16(7)(v)-1 Functional'!C164","v":"TRANSFORMERS CUSTOMER RELATED"},{"$f":"'FR-16(7)(v)-1 Functional'!D164","v":"K405"},null,{"$f":"'FR-16(7)(v)-1 Functional'!F164","v":6663753},{"$f":"'FR-16(7)(v)-3 PROD Demand'!G164+'FR-16(7)(v)-4 PROD Energy'!G164+'FR-16(7)(v)-5 PROD Cust'!G164+'FR-16(7)(v)-7 TRANS Demand'!G164+'FR-16(7)(v)-8 TRANS Energy'!G164+'FR-16(7)(v)-9 TRANS Cust'!G164+'FR-16(7)(v)-11 DIST Demand'!G164+'FR-16(7)(v)-12 DIST Energy'!G164+'FR-16(7)(v)-13 DIST Cust'!G164","v":6011039},{"$f":"'FR-16(7)(v)-3 PROD Demand'!H164+'FR-16(7)(v)-4 PROD Energy'!H164+'FR-16(7)(v)-5 PROD Cust'!H164+'FR-16(7)(v)-7 TRANS Demand'!H164+'FR-16(7)(v)-8 TRANS Energy'!H164+'FR-16(7)(v)-9 TRANS Cust'!H164+'FR-16(7)(v)-11 DIST Demand'!H164+'FR-16(7)(v)-12 DIST Energy'!H164+'FR-16(7)(v)-13 DIST Cust'!H164","v":607068},{"$f":"'FR-16(7)(v)-3 PROD Demand'!I164+'FR-16(7)(v)-4 PROD Energy'!I164+'FR-16(7)(v)-5 PROD Cust'!I164+'FR-16(7)(v)-7 TRANS Demand'!I164+'FR-16(7)(v)-8 TRANS Energy'!I164+'FR-16(7)(v)-9 TRANS Cust'!I164+'FR-16(7)(v)-11 DIST Demand'!I164+'FR-16(7)(v)-12 DIST Energy'!I164+'FR-16(7)(v)-13 DIST Cust'!I164","v":8063},{"$f":"'FR-16(7)(v)-3 PROD Demand'!J164+'FR-16(7)(v)-4 PROD Energy'!J164+'FR-16(7)(v)-5 PROD Cust'!J164+'FR-16(7)(v)-7 TRANS Demand'!J164+'FR-16(7)(v)-8 TRANS Energy'!J164+'FR-16(7)(v)-9 TRANS Cust'!J164+'FR-16(7)(v)-11 DIST Demand'!J164+'FR-16(7)(v)-12 DIST Energy'!J164+'FR-16(7)(v)-13 DIST Cust'!J164","v":4798},{"$f":"'FR-16(7)(v)-3 PROD Demand'!K164+'FR-16(7)(v)-4 PROD Energy'!K164+'FR-16(7)(v)-5 PROD Cust'!K164+'FR-16(7)(v)-7 TRANS Demand'!K164+'FR-16(7)(v)-8 TRANS Energy'!K164+'FR-16(7)(v)-9 TRANS Cust'!K164+'FR-16(7)(v)-11 DIST Demand'!K164+'FR-16(7)(v)-12 DIST Energy'!K164+'FR-16(7)(v)-13 DIST Cust'!K164","v":666},{"$f":"'FR-16(7)(v)-3 PROD Demand'!L164+'FR-16(7)(v)-4 PROD Energy'!L164+'FR-16(7)(v)-5 PROD Cust'!L164+'FR-16(7)(v)-7 TRANS Demand'!L164+'FR-16(7)(v)-8 TRANS Energy'!L164+'FR-16(7)(v)-9 TRANS Cust'!L164+'FR-16(7)(v)-11 DIST Demand'!L164+'FR-16(7)(v)-12 DIST Energy'!L164+'FR-16(7)(v)-13 DIST Cust'!L164","v":7463},{"$f":"'FR-16(7)(v)-3 PROD Demand'!M164+'FR-16(7)(v)-4 PROD Energy'!M164+'FR-16(7)(v)-5 PROD Cust'!M164+'FR-16(7)(v)-7 TRANS Demand'!M164+'FR-16(7)(v)-8 TRANS Energy'!M164+'FR-16(7)(v)-9 TRANS Cust'!M164+'FR-16(7)(v)-11 DIST Demand'!M164+'FR-16(7)(v)-12 DIST Energy'!M164+'FR-16(7)(v)-13 DIST Cust'!M164","v":1733},{"$f":"'FR-16(7)(v)-3 PROD Demand'!N164+'FR-16(7)(v)-4 PROD Energy'!N164+'FR-16(7)(v)-5 PROD Cust'!N164+'FR-16(7)(v)-7 TRANS Demand'!N164+'FR-16(7)(v)-8 TRANS Energy'!N164+'FR-16(7)(v)-9 TRANS Cust'!N164+'FR-16(7)(v)-11 DIST Demand'!N164+'FR-16(7)(v)-12 DIST Energy'!N164+'FR-16(7)(v)-13 DIST Cust'!N164","v":466},{"$f":"'FR-16(7)(v)-3 PROD Demand'!O164+'FR-16(7)(v)-4 PROD Energy'!O164+'FR-16(7)(v)-5 PROD Cust'!O164+'FR-16(7)(v)-7 TRANS Demand'!O164+'FR-16(7)(v)-8 TRANS Energy'!O164+'FR-16(7)(v)-9 TRANS Cust'!O164+'FR-16(7)(v)-11 DIST Demand'!O164+'FR-16(7)(v)-12 DIST Energy'!O164+'FR-16(7)(v)-13 DIST Cust'!O164","v":0},{"$f":"'FR-16(7)(v)-3 PROD Demand'!P164+'FR-16(7)(v)-4 PROD Energy'!P164+'FR-16(7)(v)-5 PROD Cust'!P164+'FR-16(7)(v)-7 TRANS Demand'!P164+'FR-16(7)(v)-8 TRANS Energy'!P164+'FR-16(7)(v)-9 TRANS Cust'!P164+'FR-16(7)(v)-11 DIST Demand'!P164+'FR-16(7)(v)-12 DIST Energy'!P164+'FR-16(7)(v)-13 DIST Cust'!P164","v":21924},{"$f":"'FR-16(7)(v)-3 PROD Demand'!Q164+'FR-16(7)(v)-4 PROD Energy'!Q164+'FR-16(7)(v)-5 PROD Cust'!Q164+'FR-16(7)(v)-7 TRANS Demand'!Q164+'FR-16(7)(v)-8 TRANS Energy'!Q164+'FR-16(7)(v)-9 TRANS Cust'!Q164+'FR-16(7)(v)-11 DIST Demand'!Q164+'FR-16(7)(v)-12 DIST Energy'!Q164+'FR-16(7)(v)-13 DIST Cust'!Q164","v":533},6663753,0]
[31,null,{"$f":"'FR-16(7)(v)-1 Functional'!C165","v":"SERVICES"},{"$f":"'FR-16(7)(v)-1 Functional'!D165","v":"K217"},null,{"$f":"'FR-16(7)(v)-1 Functional'!F165","v":11659391},{"$f":"'FR-16(7)(v)-3 PROD Demand'!G165+'FR-16(7)(v)-4 PROD Energy'!G165+'FR-16(7)(v)-5 PROD Cust'!G165+'FR-16(7)(v)-7 TRANS Demand'!G165+'FR-16(7)(v)-8 TRANS Energy'!G165+'FR-16(7)(v)-9 TRANS Cust'!G165+'FR-16(7)(v)-11 DIST Demand'!G165+'FR-16(7)(v)-12 DIST Energy'!G165+'FR-16(7)(v)-13 DIST Cust'!G165","v":10417084},{"$f":"'FR-16(7)(v)-3 PROD Demand'!H165+'FR-16(7)(v)-4 PROD Energy'!H165+'FR-16(7)(v)-5 PROD Cust'!H165+'FR-16(7)(v)-7 TRANS Demand'!H165+'FR-16(7)(v)-8 TRANS Energy'!H165+'FR-16(7)(v)-9 TRANS Cust'!H165+'FR-16(7)(v)-11 DIST Demand'!H165+'FR-16(7)(v)-12 DIST Energy'!H165+'FR-16(7)(v)-13 DIST Cust'!H165","v":1051327},{"$f":"'FR-16(7)(v)-3 PROD Demand'!I165+'FR-16(7)(v)-4 PROD Energy'!I165+'FR-16(7)(v)-5 PROD Cust'!I165+'FR-16(7)(v)-7 TRANS Demand'!I165+'FR-16(7)(v)-8 TRANS Energy'!I165+'FR-16(7)(v)-9 TRANS Cust'!I165+'FR-16(7)(v)-11 DIST Demand'!I165+'FR-16(7)(v)-12 DIST Energy'!I165+'FR-16(7)(v)-13 DIST Cust'!I165","v":13991},{"$f":"'FR-16(7)(v)-3 PROD Demand'!J165+'FR-16(7)(v)-4 PROD Energy'!J165+'FR-16(7)(v)-5 PROD Cust'!J165+'FR-16(7)(v)-7 TRANS Demand'!J165+'FR-16(7)(v)-8 TRANS Energy'!J165+'FR-16(7)(v)-9 TRANS Cust'!J165+'FR-16(7)(v)-11 DIST Demand'!J165+'FR-16(7)(v)-12 DIST Energy'!J165+'FR-16(7)(v)-13 DIST Cust'!J165","v":33346},{"$f":"'FR-16(7)(v)-3 PROD Demand'!K165+'FR-16(7)(v)-4 PROD Energy'!K165+'FR-16(7)(v)-5 PROD Cust'!K165+'FR-16(7)(v)-7 TRANS Demand'!K165+'FR-16(7)(v)-8 TRANS Energy'!K165+'FR-16(7)(v)-9 TRANS Cust'!K165+'FR-16(7)(v)-11 DIST Demand'!K165+'FR-16(7)(v)-12 DIST Energy'!K165+'FR-16(7)(v)-13 DIST Cust'!K165","v":1166},{"$f":"'FR-16(7)(v)-3 PROD Demand'!L165+'FR-16(7)(v)-4 PROD Energy'!L165+'FR-16(7)(v)-5 PROD Cust'!L165+'FR-16(7)(v)-7 TRANS Demand'!L165+'FR-16(7)(v)-8 TRANS Energy'!L165+'FR-16(7)(v)-9 TRANS Cust'!L165+'FR-16(7)(v)-11 DIST Demand'!L165+'FR-16(7)(v)-12 DIST Energy'!L165+'FR-16(7)(v)-13 DIST Cust'!L165","v":75436},{"$f":"'FR-16(7)(v)-3 PROD Demand'!M165+'FR-16(7)(v)-4 PROD Energy'!M165+'FR-16(7)(v)-5 PROD Cust'!M165+'FR-16(7)(v)-7 TRANS Demand'!M165+'FR-16(7)(v)-8 TRANS Energy'!M165+'FR-16(7)(v)-9 TRANS Cust'!M165+'FR-16(7)(v)-11 DIST Demand'!M165+'FR-16(7)(v)-12 DIST Energy'!M165+'FR-16(7)(v)-13 DIST Cust'!M165","v":17955},{"$f":"'FR-16(7)(v)-3 PROD Demand'!N165+'FR-16(7)(v)-4 PROD Energy'!N165+'FR-16(7)(v)-5 PROD Cust'!N165+'FR-16(7)(v)-7 TRANS Demand'!N165+'FR-16(7)(v)-8 TRANS Energy'!N165+'FR-16(7)(v)-9 TRANS Cust'!N165+'FR-16(7)(v)-11 DIST Demand'!N165+'FR-16(7)(v)-12 DIST Energy'!N165+'FR-16(7)(v)-13 DIST Cust'!N165","v":4897},{"$f":"'FR-16(7)(v)-3 PROD Demand'!O165+'FR-16(7)(v)-4 PROD Energy'!O165+'FR-16(7)(v)-5 PROD Cust'!O165+'FR-16(7)(v)-7 TRANS Demand'!O165+'FR-16(7)(v)-8 TRANS Energy'!O165+'FR-16(7)(v)-9 TRANS Cust'!O165+'FR-16(7)(v)-11 DIST Demand'!O165+'FR-16(7)(v)-12 DIST Energy'!O165+'FR-16(7)(v)-13 DIST Cust'!O165","v":5363},{"$f":"'FR-16(7)(v)-3 PROD Demand'!P165+'FR-16(7)(v)-4 PROD Energy'!P165+'FR-16(7)(v)-5 PROD Cust'!P165+'FR-16(7)(v)-7 TRANS Demand'!P165+'FR-16(7)(v)-8 TRANS Energy'!P165+'FR-16(7)(v)-9 TRANS Cust'!P165+'FR-16(7)(v)-11 DIST Demand'!P165+'FR-16(7)(v)-12 DIST Energy'!P165+'FR-16(7)(v)-13 DIST Cust'!P165","v":37893},{"$f":"'FR-16(7)(v)-3 PROD Demand'!Q165+'FR-16(7)(v)-4 PROD Energy'!Q165+'FR-16(7)(v)-5 PROD Cust'!Q165+'FR-16(7)(v)-7 TRANS Demand'!Q165+'FR-16(7)(v)-8 TRANS Energy'!Q165+'FR-16(7)(v)-9 TRANS Cust'!Q165+'FR-16(7)(v)-11 DIST Demand'!Q165+'FR-16(7)(v)-12 DIST Energy'!Q165+'FR-16(7)(v)-13 DIST Cust'!Q165","v":933},11659391,0]
[32,null,{"$f":"'FR-16(7)(v)-1 Functional'!C166","v":"METERS"},{"$f":"'FR-16(7)(v)-1 Functional'!D166","v":"K407"},null,{"$f":"'FR-16(7)(v)-1 Functional'!F166","v":4965805},{"$f":"'FR-16(7)(v)-3 PROD Demand'!G166+'FR-16(7)(v)-4 PROD Energy'!G166+'FR-16(7)(v)-5 PROD Cust'!G166+'FR-16(7)(v)-7 TRANS Demand'!G166+'FR-16(7)(v)-8 TRANS Energy'!G166+'FR-16(7)(v)-9 TRANS Cust'!G166+'FR-16(7)(v)-11 DIST Demand'!G166+'FR-16(7)(v)-12 DIST Energy'!G166+'FR-16(7)(v)-13 DIST Cust'!G166","v":4014009},{"$f":"'FR-16(7)(v)-3 PROD Demand'!H166+'FR-16(7)(v)-4 PROD Energy'!H166+'FR-16(7)(v)-5 PROD Cust'!H166+'FR-16(7)(v)-7 TRANS Demand'!H166+'FR-16(7)(v)-8 TRANS Energy'!H166+'FR-16(7)(v)-9 TRANS Cust'!H166+'FR-16(7)(v)-11 DIST Demand'!H166+'FR-16(7)(v)-12 DIST Energy'!H166+'FR-16(7)(v)-13 DIST Cust'!H166","v":908395},{"$f":"'FR-16(7)(v)-3 PROD Demand'!I166+'FR-16(7)(v)-4 PROD Energy'!I166+'FR-16(7)(v)-5 PROD Cust'!I166+'FR-16(7)(v)-7 TRANS Demand'!I166+'FR-16(7)(v)-8 TRANS Energy'!I166+'FR-16(7)(v)-9 TRANS Cust'!I166+'FR-16(7)(v)-11 DIST Demand'!I166+'FR-16(7)(v)-12 DIST Energy'!I166+'FR-16(7)(v)-13 DIST Cust'!I166","v":0},{"$f":"'FR-16(7)(v)-3 PROD Demand'!J166+'FR-16(7)(v)-4 PROD Energy'!J166+'FR-16(7)(v)-5 PROD Cust'!J166+'FR-16(7)(v)-7 TRANS Demand'!J166+'FR-16(7)(v)-8 TRANS Energy'!J166+'FR-16(7)(v)-9 TRANS Cust'!J166+'FR-16(7)(v)-11 DIST Demand'!J166+'FR-16(7)(v)-12 DIST Energy'!J166+'FR-16(7)(v)-13 DIST Cust'!J166","v":6953},{"$f":"'FR-16(7)(v)-3 PROD Demand'!K166+'FR-16(7)(v)-4 PROD Energy'!K166+'FR-16(7)(v)-5 PROD Cust'!K166+'FR-16(7)(v)-7 TRANS Demand'!K166+'FR-16(7)(v)-8 TRANS Energy'!K166+'FR-16(7)(v)-9 TRANS Cust'!K166+'FR-16(7)(v)-11 DIST Demand'!K166+'FR-16(7)(v)-12 DIST Energy'!K166+'FR-16(7)(v)-13 DIST Cust'!K166","v":1092},{"$f":"'FR-16(7)(v)-3 PROD Demand'!L166+'FR-16(7)(v)-4 PROD Energy'!L166+'FR-16(7)(v)-5 PROD Cust'!L166+'FR-16(7)(v)-7 TRANS Demand'!L166+'FR-16(7)(v)-8 TRANS Energy'!L166+'FR-16(7)(v)-9 TRANS Cust'!L166+'FR-16(7)(v)-11 DIST Demand'!L166+'FR-16(7)(v)-12 DIST Energy'!L166+'FR-16(7)(v)-13 DIST Cust'!L166","v":32327},{"$f":"'FR-16(7)(v)-3 PROD Demand'!M166+'FR-16(7)(v)-4 PROD Energy'!M166+'FR-16(7)(v)-5 PROD Cust'!M166+'FR-16(7)(v)-7 TRANS Demand'!M166+'FR-16(7)(v)-8 TRANS Energy'!M166+'FR-16(7)(v)-9 TRANS Cust'!M166+'FR-16(7)(v)-11 DIST Demand'!M166+'FR-16(7)(v)-12 DIST Energy'!M166+'FR-16(7)(v)-13 DIST Cust'!M166","v":0},{"$f":"'FR-16(7)(v)-3 PROD Demand'!N166+'FR-16(7)(v)-4 PROD Energy'!N166+'FR-16(7)(v)-5 PROD Cust'!N166+'FR-16(7)(v)-7 TRANS Demand'!N166+'FR-16(7)(v)-8 TRANS Energy'!N166+'FR-16(7)(v)-9 TRANS Cust'!N166+'FR-16(7)(v)-11 DIST Demand'!N166+'FR-16(7)(v)-12 DIST Energy'!N166+'FR-16(7)(v)-13 DIST Cust'!N166","v":1192},{"$f":"'FR-16(7)(v)-3 PROD Demand'!O166+'FR-16(7)(v)-4 PROD Energy'!O166+'FR-16(7)(v)-5 PROD Cust'!O166+'FR-16(7)(v)-7 TRANS Demand'!O166+'FR-16(7)(v)-8 TRANS Energy'!O166+'FR-16(7)(v)-9 TRANS Cust'!O166+'FR-16(7)(v)-11 DIST Demand'!O166+'FR-16(7)(v)-12 DIST Energy'!O166+'FR-16(7)(v)-13 DIST Cust'!O166","v":1142},{"$f":"'FR-16(7)(v)-3 PROD Demand'!P166+'FR-16(7)(v)-4 PROD Energy'!P166+'FR-16(7)(v)-5 PROD Cust'!P166+'FR-16(7)(v)-7 TRANS Demand'!P166+'FR-16(7)(v)-8 TRANS Energy'!P166+'FR-16(7)(v)-9 TRANS Cust'!P166+'FR-16(7)(v)-11 DIST Demand'!P166+'FR-16(7)(v)-12 DIST Energy'!P166+'FR-16(7)(v)-13 DIST Cust'!P166","v":0},{"$f":"'FR-16(7)(v)-3 PROD Demand'!Q166+'FR-16(7)(v)-4 PROD Energy'!Q166+'FR-16(7)(v)-5 PROD Cust'!Q166+'FR-16(7)(v)-7 TRANS Demand'!Q166+'FR-16(7)(v)-8 TRANS Energy'!Q166+'FR-16(7)(v)-9 TRANS Cust'!Q166+'FR-16(7)(v)-11 DIST Demand'!Q166+'FR-16(7)(v)-12 DIST Energy'!Q166+'FR-16(7)(v)-13 DIST Cust'!Q166","v":695},4965805,0]
[33,null,{"$f":"'FR-16(7)(v)-1 Functional'!C167","v":"STREET LIGHTS"},{"$f":"'FR-16(7)(v)-1 Functional'!D167","v":"K401"},null,{"$f":"'FR-16(7)(v)-1 Functional'!F167","v":4073494},{"$f":"'FR-16(7)(v)-3 PROD Demand'!G167+'FR-16(7)(v)-4 PROD Energy'!G167+'FR-16(7)(v)-5 PROD Cust'!G167+'FR-16(7)(v)-7 TRANS Demand'!G167+'FR-16(7)(v)-8 TRANS Energy'!G167+'FR-16(7)(v)-9 TRANS Cust'!G167+'FR-16(7)(v)-11 DIST Demand'!G167+'FR-16(7)(v)-12 DIST Energy'!G167+'FR-16(7)(v)-13 DIST Cust'!G167","v":0},{"$f":"'FR-16(7)(v)-3 PROD Demand'!H167+'FR-16(7)(v)-4 PROD Energy'!H167+'FR-16(7)(v)-5 PROD Cust'!H167+'FR-16(7)(v)-7 TRANS Demand'!H167+'FR-16(7)(v)-8 TRANS Energy'!H167+'FR-16(7)(v)-9 TRANS Cust'!H167+'FR-16(7)(v)-11 DIST Demand'!H167+'FR-16(7)(v)-12 DIST Energy'!H167+'FR-16(7)(v)-13 DIST Cust'!H167","v":0},{"$f":"'FR-16(7)(v)-3 PROD Demand'!I167+'FR-16(7)(v)-4 PROD Energy'!I167+'FR-16(7)(v)-5 PROD Cust'!I167+'FR-16(7)(v)-7 TRANS Demand'!I167+'FR-16(7)(v)-8 TRANS Energy'!I167+'FR-16(7)(v)-9 TRANS Cust'!I167+'FR-16(7)(v)-11 DIST Demand'!I167+'FR-16(7)(v)-12 DIST Energy'!I167+'FR-16(7)(v)-13 DIST Cust'!I167","v":0},{"$f":"'FR-16(7)(v)-3 PROD Demand'!J167+'FR-16(7)(v)-4 PROD Energy'!J167+'FR-16(7)(v)-5 PROD Cust'!J167+'FR-16(7)(v)-7 TRANS Demand'!J167+'FR-16(7)(v)-8 TRANS Energy'!J167+'FR-16(7)(v)-9 TRANS Cust'!J167+'FR-16(7)(v)-11 DIST Demand'!J167+'FR-16(7)(v)-12 DIST Energy'!J167+'FR-16(7)(v)-13 DIST Cust'!J167","v":0},{"$f":"'FR-16(7)(v)-3 PROD Demand'!K167+'FR-16(7)(v)-4 PROD Energy'!K167+'FR-16(7)(v)-5 PROD Cust'!K167+'FR-16(7)(v)-7 TRANS Demand'!K167+'FR-16(7)(v)-8 TRANS Energy'!K167+'FR-16(7)(v)-9 TRANS Cust'!K167+'FR-16(7)(v)-11 DIST Demand'!K167+'FR-16(7)(v)-12 DIST Energy'!K167+'FR-16(7)(v)-13 DIST Cust'!K167","v":0},{"$f":"'FR-16(7)(v)-3 PROD Demand'!L167+'FR-16(7)(v)-4 PROD Energy'!L167+'FR-16(7)(v)-5 PROD Cust'!L167+'FR-16(7)(v)-7 TRANS Demand'!L167+'FR-16(7)(v)-8 TRANS Energy'!L167+'FR-16(7)(v)-9 TRANS Cust'!L167+'FR-16(7)(v)-11 DIST Demand'!L167+'FR-16(7)(v)-12 DIST Energy'!L167+'FR-16(7)(v)-13 DIST Cust'!L167","v":0},{"$f":"'FR-16(7)(v)-3 PROD Demand'!M167+'FR-16(7)(v)-4 PROD Energy'!M167+'FR-16(7)(v)-5 PROD Cust'!M167+'FR-16(7)(v)-7 TRANS Demand'!M167+'FR-16(7)(v)-8 TRANS Energy'!M167+'FR-16(7)(v)-9 TRANS Cust'!M167+'FR-16(7)(v)-11 DIST Demand'!M167+'FR-16(7)(v)-12 DIST Energy'!M167+'FR-16(7)(v)-13 DIST Cust'!M167","v":0},{"$f":"'FR-16(7)(v)-3 PROD Demand'!N167+'FR-16(7)(v)-4 PROD Energy'!N167+'FR-16(7)(v)-5 PROD Cust'!N167+'FR-16(7)(v)-7 TRANS Demand'!N167+'FR-16(7)(v)-8 TRANS Energy'!N167+'FR-16(7)(v)-9 TRANS Cust'!N167+'FR-16(7)(v)-11 DIST Demand'!N167+'FR-16(7)(v)-12 DIST Energy'!N167+'FR-16(7)(v)-13 DIST Cust'!N167","v":0},{"$f":"'FR-16(7)(v)-3 PROD Demand'!O167+'FR-16(7)(v)-4 PROD Energy'!O167+'FR-16(7)(v)-5 PROD Cust'!O167+'FR-16(7)(v)-7 TRANS Demand'!O167+'FR-16(7)(v)-8 TRANS Energy'!O167+'FR-16(7)(v)-9 TRANS Cust'!O167+'FR-16(7)(v)-11 DIST Demand'!O167+'FR-16(7)(v)-12 DIST Energy'!O167+'FR-16(7)(v)-13 DIST Cust'!O167","v":0},{"$f":"'FR-16(7)(v)-3 PROD Demand'!P167+'FR-16(7)(v)-4 PROD Energy'!P167+'FR-16(7)(v)-5 PROD Cust'!P167+'FR-16(7)(v)-7 TRANS Demand'!P167+'FR-16(7)(v)-8 TRANS Energy'!P167+'FR-16(7)(v)-9 TRANS Cust'!P167+'FR-16(7)(v)-11 DIST Demand'!P167+'FR-16(7)(v)-12 DIST Energy'!P167+'FR-16(7)(v)-13 DIST Cust'!P167","v":4073494},{"$f":"'FR-16(7)(v)-3 PROD Demand'!Q167+'FR-16(7)(v)-4 PROD Energy'!Q167+'FR-16(7)(v)-5 PROD Cust'!Q167+'FR-16(7)(v)-7 TRANS Demand'!Q167+'FR-16(7)(v)-8 TRANS Energy'!Q167+'FR-16(7)(v)-9 TRANS Cust'!Q167+'FR-16(7)(v)-11 DIST Demand'!Q167+'FR-16(7)(v)-12 DIST Energy'!Q167+'FR-16(7)(v)-13 DIST Cust'!Q167","v":0},4073494,0]
[34,null,{"$f":"'FR-16(7)(v)-1 Functional'!C168","v":"ADJUSTMENT  "},{"$f":"'FR-16(7)(v)-1 Functional'!D168","v":"K209"},null,{"$f":"'FR-16(7)(v)-1 Functional'!F168","v":467132},{"$f":"'FR-16(7)(v)-3 PROD Demand'!G168+'FR-16(7)(v)-4 PROD Energy'!G168+'FR-16(7)(v)-5 PROD Cust'!G168+'FR-16(7)(v)-7 TRANS Demand'!G168+'FR-16(7)(v)-8 TRANS Energy'!G168+'FR-16(7)(v)-9 TRANS Cust'!G168+'FR-16(7)(v)-11 DIST Demand'!G168+'FR-16(7)(v)-12 DIST Energy'!G168+'FR-16(7)(v)-13 DIST Cust'!G168","v":266136},{"$f":"'FR-16(7)(v)-3 PROD Demand'!H168+'FR-16(7)(v)-4 PROD Energy'!H168+'FR-16(7)(v)-5 PROD Cust'!H168+'FR-16(7)(v)-7 TRANS Demand'!H168+'FR-16(7)(v)-8 TRANS Energy'!H168+'FR-16(7)(v)-9 TRANS Cust'!H168+'FR-16(7)(v)-11 DIST Demand'!H168+'FR-16(7)(v)-12 DIST Energy'!H168+'FR-16(7)(v)-13 DIST Cust'!H168","v":107788},{"$f":"'FR-16(7)(v)-3 PROD Demand'!I168+'FR-16(7)(v)-4 PROD Energy'!I168+'FR-16(7)(v)-5 PROD Cust'!I168+'FR-16(7)(v)-7 TRANS Demand'!I168+'FR-16(7)(v)-8 TRANS Energy'!I168+'FR-16(7)(v)-9 TRANS Cust'!I168+'FR-16(7)(v)-11 DIST Demand'!I168+'FR-16(7)(v)-12 DIST Energy'!I168+'FR-16(7)(v)-13 DIST Cust'!I168","v":559},{"$f":"'FR-16(7)(v)-3 PROD Demand'!J168+'FR-16(7)(v)-4 PROD Energy'!J168+'FR-16(7)(v)-5 PROD Cust'!J168+'FR-16(7)(v)-7 TRANS Demand'!J168+'FR-16(7)(v)-8 TRANS Energy'!J168+'FR-16(7)(v)-9 TRANS Cust'!J168+'FR-16(7)(v)-11 DIST Demand'!J168+'FR-16(7)(v)-12 DIST Energy'!J168+'FR-16(7)(v)-13 DIST Cust'!J168","v":2227},{"$f":"'FR-16(7)(v)-3 PROD Demand'!K168+'FR-16(7)(v)-4 PROD Energy'!K168+'FR-16(7)(v)-5 PROD Cust'!K168+'FR-16(7)(v)-7 TRANS Demand'!K168+'FR-16(7)(v)-8 TRANS Energy'!K168+'FR-16(7)(v)-9 TRANS Cust'!K168+'FR-16(7)(v)-11 DIST Demand'!K168+'FR-16(7)(v)-12 DIST Energy'!K168+'FR-16(7)(v)-13 DIST Cust'!K168","v":39},{"$f":"'FR-16(7)(v)-3 PROD Demand'!L168+'FR-16(7)(v)-4 PROD Energy'!L168+'FR-16(7)(v)-5 PROD Cust'!L168+'FR-16(7)(v)-7 TRANS Demand'!L168+'FR-16(7)(v)-8 TRANS Energy'!L168+'FR-16(7)(v)-9 TRANS Cust'!L168+'FR-16(7)(v)-11 DIST Demand'!L168+'FR-16(7)(v)-12 DIST Energy'!L168+'FR-16(7)(v)-13 DIST Cust'!L168","v":48847},{"$f":"'FR-16(7)(v)-3 PROD Demand'!M168+'FR-16(7)(v)-4 PROD Energy'!M168+'FR-16(7)(v)-5 PROD Cust'!M168+'FR-16(7)(v)-7 TRANS Demand'!M168+'FR-16(7)(v)-8 TRANS Energy'!M168+'FR-16(7)(v)-9 TRANS Cust'!M168+'FR-16(7)(v)-11 DIST Demand'!M168+'FR-16(7)(v)-12 DIST Energy'!M168+'FR-16(7)(v)-13 DIST Cust'!M168","v":31986},{"$f":"'FR-16(7)(v)-3 PROD Demand'!N168+'FR-16(7)(v)-4 PROD Energy'!N168+'FR-16(7)(v)-5 PROD Cust'!N168+'FR-16(7)(v)-7 TRANS Demand'!N168+'FR-16(7)(v)-8 TRANS Energy'!N168+'FR-16(7)(v)-9 TRANS Cust'!N168+'FR-16(7)(v)-11 DIST Demand'!N168+'FR-16(7)(v)-12 DIST Energy'!N168+'FR-16(7)(v)-13 DIST Cust'!N168","v":1622},{"$f":"'FR-16(7)(v)-3 PROD Demand'!O168+'FR-16(7)(v)-4 PROD Energy'!O168+'FR-16(7)(v)-5 PROD Cust'!O168+'FR-16(7)(v)-7 TRANS Demand'!O168+'FR-16(7)(v)-8 TRANS Energy'!O168+'FR-16(7)(v)-9 TRANS Cust'!O168+'FR-16(7)(v)-11 DIST Demand'!O168+'FR-16(7)(v)-12 DIST Energy'!O168+'FR-16(7)(v)-13 DIST Cust'!O168","v":15},{"$f":"'FR-16(7)(v)-3 PROD Demand'!P168+'FR-16(7)(v)-4 PROD Energy'!P168+'FR-16(7)(v)-5 PROD Cust'!P168+'FR-16(7)(v)-7 TRANS Demand'!P168+'FR-16(7)(v)-8 TRANS Energy'!P168+'FR-16(7)(v)-9 TRANS Cust'!P168+'FR-16(7)(v)-11 DIST Demand'!P168+'FR-16(7)(v)-12 DIST Energy'!P168+'FR-16(7)(v)-13 DIST Cust'!P168","v":7864},{"$f":"'FR-16(7)(v)-3 PROD Demand'!Q168+'FR-16(7)(v)-4 PROD Energy'!Q168+'FR-16(7)(v)-5 PROD Cust'!Q168+'FR-16(7)(v)-7 TRANS Demand'!Q168+'FR-16(7)(v)-8 TRANS Energy'!Q168+'FR-16(7)(v)-9 TRANS Cust'!Q168+'FR-16(7)(v)-11 DIST Demand'!Q168+'FR-16(7)(v)-12 DIST Energy'!Q168+'FR-16(7)(v)-13 DIST Cust'!Q168","v":49},467132,0]
[35,null,{"$f":"'FR-16(7)(v)-1 Functional'!C169","v":"CONSTRUCTION NOT CLASSIFIED"},{"$f":"'FR-16(7)(v)-1 Functional'!D169","v":"K209"},null,{"$f":"'FR-16(7)(v)-1 Functional'!F169","v":1525727},{"$f":"'FR-16(7)(v)-3 PROD Demand'!G169+'FR-16(7)(v)-4 PROD Energy'!G169+'FR-16(7)(v)-5 PROD Cust'!G169+'FR-16(7)(v)-7 TRANS Demand'!G169+'FR-16(7)(v)-8 TRANS Energy'!G169+'FR-16(7)(v)-9 TRANS Cust'!G169+'FR-16(7)(v)-11 DIST Demand'!G169+'FR-16(7)(v)-12 DIST Energy'!G169+'FR-16(7)(v)-13 DIST Cust'!G169","v":869245},{"$f":"'FR-16(7)(v)-3 PROD Demand'!H169+'FR-16(7)(v)-4 PROD Energy'!H169+'FR-16(7)(v)-5 PROD Cust'!H169+'FR-16(7)(v)-7 TRANS Demand'!H169+'FR-16(7)(v)-8 TRANS Energy'!H169+'FR-16(7)(v)-9 TRANS Cust'!H169+'FR-16(7)(v)-11 DIST Demand'!H169+'FR-16(7)(v)-12 DIST Energy'!H169+'FR-16(7)(v)-13 DIST Cust'!H169","v":352050},{"$f":"'FR-16(7)(v)-3 PROD Demand'!I169+'FR-16(7)(v)-4 PROD Energy'!I169+'FR-16(7)(v)-5 PROD Cust'!I169+'FR-16(7)(v)-7 TRANS Demand'!I169+'FR-16(7)(v)-8 TRANS Energy'!I169+'FR-16(7)(v)-9 TRANS Cust'!I169+'FR-16(7)(v)-11 DIST Demand'!I169+'FR-16(7)(v)-12 DIST Energy'!I169+'FR-16(7)(v)-13 DIST Cust'!I169","v":1826},{"$f":"'FR-16(7)(v)-3 PROD Demand'!J169+'FR-16(7)(v)-4 PROD Energy'!J169+'FR-16(7)(v)-5 PROD Cust'!J169+'FR-16(7)(v)-7 TRANS Demand'!J169+'FR-16(7)(v)-8 TRANS Energy'!J169+'FR-16(7)(v)-9 TRANS Cust'!J169+'FR-16(7)(v)-11 DIST Demand'!J169+'FR-16(7)(v)-12 DIST Energy'!J169+'FR-16(7)(v)-13 DIST Cust'!J169","v":7273},{"$f":"'FR-16(7)(v)-3 PROD Demand'!K169+'FR-16(7)(v)-4 PROD Energy'!K169+'FR-16(7)(v)-5 PROD Cust'!K169+'FR-16(7)(v)-7 TRANS Demand'!K169+'FR-16(7)(v)-8 TRANS Energy'!K169+'FR-16(7)(v)-9 TRANS Cust'!K169+'FR-16(7)(v)-11 DIST Demand'!K169+'FR-16(7)(v)-12 DIST Energy'!K169+'FR-16(7)(v)-13 DIST Cust'!K169","v":127},{"$f":"'FR-16(7)(v)-3 PROD Demand'!L169+'FR-16(7)(v)-4 PROD Energy'!L169+'FR-16(7)(v)-5 PROD Cust'!L169+'FR-16(7)(v)-7 TRANS Demand'!L169+'FR-16(7)(v)-8 TRANS Energy'!L169+'FR-16(7)(v)-9 TRANS Cust'!L169+'FR-16(7)(v)-11 DIST Demand'!L169+'FR-16(7)(v)-12 DIST Energy'!L169+'FR-16(7)(v)-13 DIST Cust'!L169","v":159543},{"$f":"'FR-16(7)(v)-3 PROD Demand'!M169+'FR-16(7)(v)-4 PROD Energy'!M169+'FR-16(7)(v)-5 PROD Cust'!M169+'FR-16(7)(v)-7 TRANS Demand'!M169+'FR-16(7)(v)-8 TRANS Energy'!M169+'FR-16(7)(v)-9 TRANS Cust'!M169+'FR-16(7)(v)-11 DIST Demand'!M169+'FR-16(7)(v)-12 DIST Energy'!M169+'FR-16(7)(v)-13 DIST Cust'!M169","v":104473},{"$f":"'FR-16(7)(v)-3 PROD Demand'!N169+'FR-16(7)(v)-4 PROD Energy'!N169+'FR-16(7)(v)-5 PROD Cust'!N169+'FR-16(7)(v)-7 TRANS Demand'!N169+'FR-16(7)(v)-8 TRANS Energy'!N169+'FR-16(7)(v)-9 TRANS Cust'!N169+'FR-16(7)(v)-11 DIST Demand'!N169+'FR-16(7)(v)-12 DIST Energy'!N169+'FR-16(7)(v)-13 DIST Cust'!N169","v":5296},{"$f":"'FR-16(7)(v)-3 PROD Demand'!O169+'FR-16(7)(v)-4 PROD Energy'!O169+'FR-16(7)(v)-5 PROD Cust'!O169+'FR-16(7)(v)-7 TRANS Demand'!O169+'FR-16(7)(v)-8 TRANS Energy'!O169+'FR-16(7)(v)-9 TRANS Cust'!O169+'FR-16(7)(v)-11 DIST Demand'!O169+'FR-16(7)(v)-12 DIST Energy'!O169+'FR-16(7)(v)-13 DIST Cust'!O169","v":49},{"$f":"'FR-16(7)(v)-3 PROD Demand'!P169+'FR-16(7)(v)-4 PROD Energy'!P169+'FR-16(7)(v)-5 PROD Cust'!P169+'FR-16(7)(v)-7 TRANS Demand'!P169+'FR-16(7)(v)-8 TRANS Energy'!P169+'FR-16(7)(v)-9 TRANS Cust'!P169+'FR-16(7)(v)-11 DIST Demand'!P169+'FR-16(7)(v)-12 DIST Energy'!P169+'FR-16(7)(v)-13 DIST Cust'!P169","v":25685},{"$f":"'FR-16(7)(v)-3 PROD Demand'!Q169+'FR-16(7)(v)-4 PROD Energy'!Q169+'FR-16(7)(v)-5 PROD Cust'!Q169+'FR-16(7)(v)-7 TRANS Demand'!Q169+'FR-16(7)(v)-8 TRANS Energy'!Q169+'FR-16(7)(v)-9 TRANS Cust'!Q169+'FR-16(7)(v)-11 DIST Demand'!Q169+'FR-16(7)(v)-12 DIST Energy'!Q169+'FR-16(7)(v)-13 DIST Cust'!Q169","v":160},1525727,0]
[36,null,{"$f":"'FR-16(7)(v)-1 Functional'!C170","v":"RWIP"},{"$f":"'FR-16(7)(v)-1 Functional'!D170","v":"K215"},null,{"$f":"'FR-16(7)(v)-1 Functional'!F170","v":-17119217},{"$f":"'FR-16(7)(v)-3 PROD Demand'!G170+'FR-16(7)(v)-4 PROD Energy'!G170+'FR-16(7)(v)-5 PROD Cust'!G170+'FR-16(7)(v)-7 TRANS Demand'!G170+'FR-16(7)(v)-8 TRANS Energy'!G170+'FR-16(7)(v)-9 TRANS Cust'!G170+'FR-16(7)(v)-11 DIST Demand'!G170+'FR-16(7)(v)-12 DIST Energy'!G170+'FR-16(7)(v)-13 DIST Cust'!G170","v":-8036273},{"$f":"'FR-16(7)(v)-3 PROD Demand'!H170+'FR-16(7)(v)-4 PROD Energy'!H170+'FR-16(7)(v)-5 PROD Cust'!H170+'FR-16(7)(v)-7 TRANS Demand'!H170+'FR-16(7)(v)-8 TRANS Energy'!H170+'FR-16(7)(v)-9 TRANS Cust'!H170+'FR-16(7)(v)-11 DIST Demand'!H170+'FR-16(7)(v)-12 DIST Energy'!H170+'FR-16(7)(v)-13 DIST Cust'!H170","v":-4745961},{"$f":"'FR-16(7)(v)-3 PROD Demand'!I170+'FR-16(7)(v)-4 PROD Energy'!I170+'FR-16(7)(v)-5 PROD Cust'!I170+'FR-16(7)(v)-7 TRANS Demand'!I170+'FR-16(7)(v)-8 TRANS Energy'!I170+'FR-16(7)(v)-9 TRANS Cust'!I170+'FR-16(7)(v)-11 DIST Demand'!I170+'FR-16(7)(v)-12 DIST Energy'!I170+'FR-16(7)(v)-13 DIST Cust'!I170","v":-22084},{"$f":"'FR-16(7)(v)-3 PROD Demand'!J170+'FR-16(7)(v)-4 PROD Energy'!J170+'FR-16(7)(v)-5 PROD Cust'!J170+'FR-16(7)(v)-7 TRANS Demand'!J170+'FR-16(7)(v)-8 TRANS Energy'!J170+'FR-16(7)(v)-9 TRANS Cust'!J170+'FR-16(7)(v)-11 DIST Demand'!J170+'FR-16(7)(v)-12 DIST Energy'!J170+'FR-16(7)(v)-13 DIST Cust'!J170","v":-104085},{"$f":"'FR-16(7)(v)-3 PROD Demand'!K170+'FR-16(7)(v)-4 PROD Energy'!K170+'FR-16(7)(v)-5 PROD Cust'!K170+'FR-16(7)(v)-7 TRANS Demand'!K170+'FR-16(7)(v)-8 TRANS Energy'!K170+'FR-16(7)(v)-9 TRANS Cust'!K170+'FR-16(7)(v)-11 DIST Demand'!K170+'FR-16(7)(v)-12 DIST Energy'!K170+'FR-16(7)(v)-13 DIST Cust'!K170","v":-1198},{"$f":"'FR-16(7)(v)-3 PROD Demand'!L170+'FR-16(7)(v)-4 PROD Energy'!L170+'FR-16(7)(v)-5 PROD Cust'!L170+'FR-16(7)(v)-7 TRANS Demand'!L170+'FR-16(7)(v)-8 TRANS Energy'!L170+'FR-16(7)(v)-9 TRANS Cust'!L170+'FR-16(7)(v)-11 DIST Demand'!L170+'FR-16(7)(v)-12 DIST Energy'!L170+'FR-16(7)(v)-13 DIST Cust'!L170","v":-2423739},{"$f":"'FR-16(7)(v)-3 PROD Demand'!M170+'FR-16(7)(v)-4 PROD Energy'!M170+'FR-16(7)(v)-5 PROD Cust'!M170+'FR-16(7)(v)-7 TRANS Demand'!M170+'FR-16(7)(v)-8 TRANS Energy'!M170+'FR-16(7)(v)-9 TRANS Cust'!M170+'FR-16(7)(v)-11 DIST Demand'!M170+'FR-16(7)(v)-12 DIST Energy'!M170+'FR-16(7)(v)-13 DIST Cust'!M170","v":-1596367},{"$f":"'FR-16(7)(v)-3 PROD Demand'!N170+'FR-16(7)(v)-4 PROD Energy'!N170+'FR-16(7)(v)-5 PROD Cust'!N170+'FR-16(7)(v)-7 TRANS Demand'!N170+'FR-16(7)(v)-8 TRANS Energy'!N170+'FR-16(7)(v)-9 TRANS Cust'!N170+'FR-16(7)(v)-11 DIST Demand'!N170+'FR-16(7)(v)-12 DIST Energy'!N170+'FR-16(7)(v)-13 DIST Cust'!N170","v":-80118},{"$f":"'FR-16(7)(v)-3 PROD Demand'!O170+'FR-16(7)(v)-4 PROD Energy'!O170+'FR-16(7)(v)-5 PROD Cust'!O170+'FR-16(7)(v)-7 TRANS Demand'!O170+'FR-16(7)(v)-8 TRANS Energy'!O170+'FR-16(7)(v)-9 TRANS Cust'!O170+'FR-16(7)(v)-11 DIST Demand'!O170+'FR-16(7)(v)-12 DIST Energy'!O170+'FR-16(7)(v)-13 DIST Cust'!O170","v":0},{"$f":"'FR-16(7)(v)-3 PROD Demand'!P170+'FR-16(7)(v)-4 PROD Energy'!P170+'FR-16(7)(v)-5 PROD Cust'!P170+'FR-16(7)(v)-7 TRANS Demand'!P170+'FR-16(7)(v)-8 TRANS Energy'!P170+'FR-16(7)(v)-9 TRANS Cust'!P170+'FR-16(7)(v)-11 DIST Demand'!P170+'FR-16(7)(v)-12 DIST Energy'!P170+'FR-16(7)(v)-13 DIST Cust'!P170","v":-107509},{"$f":"'FR-16(7)(v)-3 PROD Demand'!Q170+'FR-16(7)(v)-4 PROD Energy'!Q170+'FR-16(7)(v)-5 PROD Cust'!Q170+'FR-16(7)(v)-7 TRANS Demand'!Q170+'FR-16(7)(v)-8 TRANS Energy'!Q170+'FR-16(7)(v)-9 TRANS Cust'!Q170+'FR-16(7)(v)-11 DIST Demand'!Q170+'FR-16(7)(v)-12 DIST Energy'!Q170+'FR-16(7)(v)-13 DIST Cust'!Q170","v":-1883},{"$f":"SUM(G170:Q170)","v":-17119217},{"$f":"F170-R170","v":0}]
[37,null,{"$f":"'FR-16(7)(v)-1 Functional'!C171","v":"  TOTAL DIST DEPREC RESERVE"},null,null,{"$f":"SUM(F149:F170)","v":145291992},{"$f":"SUM(G149:G170)","v":85593366},31041038,172222,640654,11869,13623770,8905548,453848,6569,4828650,14458,145291992,0]
[38]
[39,null,"TOTAL TRANS & DIST DEPREC RESERVE",null,null,{"$f":"F171+F145","v":165180841},{"$f":"G171+G145","v":94558860},{"$f":"H171+H145","v":36423757},{"$f":"I171+I145","v":198078},{"$f":"J171+J145","v":742684},13261,16307571,10679833,539569,847271,4853312,{"$f":"Q171+Q145","v":16645},{"$f":"SUM(G173:Q173)","v":165180841},{"$f":"F173-R173","v":0}]
[40,null,"TOTAL GROSS PTD PLANT DEPREC RESERVE",null,null,{"$f":"F147+F171","v":752116299},{"$f":"G147+G171","v":359137625},{"$f":"H147+H171","v":195271970},{"$f":"I147+I171","v":961093},{"$f":"J147+J171","v":3753663},54347,95508641,63040346,3069261,25657033,5581112,{"$f":"Q147+Q171","v":81208},{"$f":"SUM(G174:Q174)","v":752116299},{"$f":"F174-R174","v":0}]
[41]
[42,"GENERAL & INTANGIBLE PLANT"]
[43,null,{"$f":"'FR-16(7)(v)-1 Functional'!C177","v":"PRODUCTION - DEMAND"},"K201",null,{"$f":"'FR-16(7)(v)-1 Functional'!F177","v":5383063},{"$f":"'FR-16(7)(v)-3 PROD Demand'!G177+'FR-16(7)(v)-4 PROD Energy'!G177+'FR-16(7)(v)-5 PROD Cust'!G177+'FR-16(7)(v)-7 TRANS Demand'!G177+'FR-16(7)(v)-8 TRANS Energy'!G177+'FR-16(7)(v)-9 TRANS Cust'!G177+'FR-16(7)(v)-11 DIST Demand'!G177+'FR-16(7)(v)-12 DIST Energy'!G177+'FR-16(7)(v)-13 DIST Cust'!G177","v":2426577},{"$f":"'FR-16(7)(v)-3 PROD Demand'!H177+'FR-16(7)(v)-4 PROD Energy'!H177+'FR-16(7)(v)-5 PROD Cust'!H177+'FR-16(7)(v)-7 TRANS Demand'!H177+'FR-16(7)(v)-8 TRANS Energy'!H177+'FR-16(7)(v)-9 TRANS Cust'!H177+'FR-16(7)(v)-11 DIST Demand'!H177+'FR-16(7)(v)-12 DIST Energy'!H177+'FR-16(7)(v)-13 DIST Cust'!H177","v":1456872},{"$f":"'FR-16(7)(v)-3 PROD Demand'!I177+'FR-16(7)(v)-4 PROD Energy'!I177+'FR-16(7)(v)-5 PROD Cust'!I177+'FR-16(7)(v)-7 TRANS Demand'!I177+'FR-16(7)(v)-8 TRANS Energy'!I177+'FR-16(7)(v)-9 TRANS Cust'!I177+'FR-16(7)(v)-11 DIST Demand'!I177+'FR-16(7)(v)-12 DIST Energy'!I177+'FR-16(7)(v)-13 DIST Cust'!I177","v":6998},{"$f":"'FR-16(7)(v)-3 PROD Demand'!J177+'FR-16(7)(v)-4 PROD Energy'!J177+'FR-16(7)(v)-5 PROD Cust'!J177+'FR-16(7)(v)-7 TRANS Demand'!J177+'FR-16(7)(v)-8 TRANS Energy'!J177+'FR-16(7)(v)-9 TRANS Cust'!J177+'FR-16(7)(v)-11 DIST Demand'!J177+'FR-16(7)(v)-12 DIST Energy'!J177+'FR-16(7)(v)-13 DIST Cust'!J177","v":27615},{"$f":"'FR-16(7)(v)-3 PROD Demand'!K177+'FR-16(7)(v)-4 PROD Energy'!K177+'FR-16(7)(v)-5 PROD Cust'!K177+'FR-16(7)(v)-7 TRANS Demand'!K177+'FR-16(7)(v)-8 TRANS Energy'!K177+'FR-16(7)(v)-9 TRANS Cust'!K177+'FR-16(7)(v)-11 DIST Demand'!K177+'FR-16(7)(v)-12 DIST Energy'!K177+'FR-16(7)(v)-13 DIST Cust'!K177","v":377},{"$f":"'FR-16(7)(v)-3 PROD Demand'!L177+'FR-16(7)(v)-4 PROD Energy'!L177+'FR-16(7)(v)-5 PROD Cust'!L177+'FR-16(7)(v)-7 TRANS Demand'!L177+'FR-16(7)(v)-8 TRANS Energy'!L177+'FR-16(7)(v)-9 TRANS Cust'!L177+'FR-16(7)(v)-11 DIST Demand'!L177+'FR-16(7)(v)-12 DIST Energy'!L177+'FR-16(7)(v)-13 DIST Cust'!L177","v":726391},{"$f":"'FR-16(7)(v)-3 PROD Demand'!M177+'FR-16(7)(v)-4 PROD Energy'!M177+'FR-16(7)(v)-5 PROD Cust'!M177+'FR-16(7)(v)-7 TRANS Demand'!M177+'FR-16(7)(v)-8 TRANS Energy'!M177+'FR-16(7)(v)-9 TRANS Cust'!M177+'FR-16(7)(v)-11 DIST Demand'!M177+'FR-16(7)(v)-12 DIST Energy'!M177+'FR-16(7)(v)-13 DIST Cust'!M177","v":480223},{"$f":"'FR-16(7)(v)-3 PROD Demand'!N177+'FR-16(7)(v)-4 PROD Energy'!N177+'FR-16(7)(v)-5 PROD Cust'!N177+'FR-16(7)(v)-7 TRANS Demand'!N177+'FR-16(7)(v)-8 TRANS Energy'!N177+'FR-16(7)(v)-9 TRANS Cust'!N177+'FR-16(7)(v)-11 DIST Demand'!N177+'FR-16(7)(v)-12 DIST Energy'!N177+'FR-16(7)(v)-13 DIST Cust'!N177","v":23201},{"$f":"'FR-16(7)(v)-3 PROD Demand'!O177+'FR-16(7)(v)-4 PROD Energy'!O177+'FR-16(7)(v)-5 PROD Cust'!O177+'FR-16(7)(v)-7 TRANS Demand'!O177+'FR-16(7)(v)-8 TRANS Energy'!O177+'FR-16(7)(v)-9 TRANS Cust'!O177+'FR-16(7)(v)-11 DIST Demand'!O177+'FR-16(7)(v)-12 DIST Energy'!O177+'FR-16(7)(v)-13 DIST Cust'!O177","v":227542},{"$f":"'FR-16(7)(v)-3 PROD Demand'!P177+'FR-16(7)(v)-4 PROD Energy'!P177+'FR-16(7)(v)-5 PROD Cust'!P177+'FR-16(7)(v)-7 TRANS Demand'!P177+'FR-16(7)(v)-8 TRANS Energy'!P177+'FR-16(7)(v)-9 TRANS Cust'!P177+'FR-16(7)(v)-11 DIST Demand'!P177+'FR-16(7)(v)-12 DIST Energy'!P177+'FR-16(7)(v)-13 DIST Cust'!P177","v":6675},{"$f":"'FR-16(7)(v)-3 PROD Demand'!Q177+'FR-16(7)(v)-4 PROD Energy'!Q177+'FR-16(7)(v)-5 PROD Cust'!Q177+'FR-16(7)(v)-7 TRANS Demand'!Q177+'FR-16(7)(v)-8 TRANS Energy'!Q177+'FR-16(7)(v)-9 TRANS Cust'!Q177+'FR-16(7)(v)-11 DIST Demand'!Q177+'FR-16(7)(v)-12 DIST Energy'!Q177+'FR-16(7)(v)-13 DIST Cust'!Q177","v":592},{"$f":"SUM(G177:Q177)","v":5383063},{"$f":"F177-R177","v":0}]
[44,null,{"$f":"'FR-16(7)(v)-1 Functional'!C178","v":"PRODUCTION - ENERGY"},"K301",null,{"$f":"'FR-16(7)(v)-1 Functional'!F178","v":6289780},{"$f":"'FR-16(7)(v)-3 PROD Demand'!G178+'FR-16(7)(v)-4 PROD Energy'!G178+'FR-16(7)(v)-5 PROD Cust'!G178+'FR-16(7)(v)-7 TRANS Demand'!G178+'FR-16(7)(v)-8 TRANS Energy'!G178+'FR-16(7)(v)-9 TRANS Cust'!G178+'FR-16(7)(v)-11 DIST Demand'!G178+'FR-16(7)(v)-12 DIST Energy'!G178+'FR-16(7)(v)-13 DIST Cust'!G178","v":2374140},{"$f":"'FR-16(7)(v)-3 PROD Demand'!H178+'FR-16(7)(v)-4 PROD Energy'!H178+'FR-16(7)(v)-5 PROD Cust'!H178+'FR-16(7)(v)-7 TRANS Demand'!H178+'FR-16(7)(v)-8 TRANS Energy'!H178+'FR-16(7)(v)-9 TRANS Cust'!H178+'FR-16(7)(v)-11 DIST Demand'!H178+'FR-16(7)(v)-12 DIST Energy'!H178+'FR-16(7)(v)-13 DIST Cust'!H178","v":1693964},{"$f":"'FR-16(7)(v)-3 PROD Demand'!I178+'FR-16(7)(v)-4 PROD Energy'!I178+'FR-16(7)(v)-5 PROD Cust'!I178+'FR-16(7)(v)-7 TRANS Demand'!I178+'FR-16(7)(v)-8 TRANS Energy'!I178+'FR-16(7)(v)-9 TRANS Cust'!I178+'FR-16(7)(v)-11 DIST Demand'!I178+'FR-16(7)(v)-12 DIST Energy'!I178+'FR-16(7)(v)-13 DIST Cust'!I178","v":9498},{"$f":"'FR-16(7)(v)-3 PROD Demand'!J178+'FR-16(7)(v)-4 PROD Energy'!J178+'FR-16(7)(v)-5 PROD Cust'!J178+'FR-16(7)(v)-7 TRANS Demand'!J178+'FR-16(7)(v)-8 TRANS Energy'!J178+'FR-16(7)(v)-9 TRANS Cust'!J178+'FR-16(7)(v)-11 DIST Demand'!J178+'FR-16(7)(v)-12 DIST Energy'!J178+'FR-16(7)(v)-13 DIST Cust'!J178","v":26920},{"$f":"'FR-16(7)(v)-3 PROD Demand'!K178+'FR-16(7)(v)-4 PROD Energy'!K178+'FR-16(7)(v)-5 PROD Cust'!K178+'FR-16(7)(v)-7 TRANS Demand'!K178+'FR-16(7)(v)-8 TRANS Energy'!K178+'FR-16(7)(v)-9 TRANS Cust'!K178+'FR-16(7)(v)-11 DIST Demand'!K178+'FR-16(7)(v)-12 DIST Energy'!K178+'FR-16(7)(v)-13 DIST Cust'!K178","v":440},{"$f":"'FR-16(7)(v)-3 PROD Demand'!L178+'FR-16(7)(v)-4 PROD Energy'!L178+'FR-16(7)(v)-5 PROD Cust'!L178+'FR-16(7)(v)-7 TRANS Demand'!L178+'FR-16(7)(v)-8 TRANS Energy'!L178+'FR-16(7)(v)-9 TRANS Cust'!L178+'FR-16(7)(v)-11 DIST Demand'!L178+'FR-16(7)(v)-12 DIST Energy'!L178+'FR-16(7)(v)-13 DIST Cust'!L178","v":1037877},{"$f":"'FR-16(7)(v)-3 PROD Demand'!M178+'FR-16(7)(v)-4 PROD Energy'!M178+'FR-16(7)(v)-5 PROD Cust'!M178+'FR-16(7)(v)-7 TRANS Demand'!M178+'FR-16(7)(v)-8 TRANS Energy'!M178+'FR-16(7)(v)-9 TRANS Cust'!M178+'FR-16(7)(v)-11 DIST Demand'!M178+'FR-16(7)(v)-12 DIST Energy'!M178+'FR-16(7)(v)-13 DIST Cust'!M178","v":720872},{"$f":"'FR-16(7)(v)-3 PROD Demand'!N178+'FR-16(7)(v)-4 PROD Energy'!N178+'FR-16(7)(v)-5 PROD Cust'!N178+'FR-16(7)(v)-7 TRANS Demand'!N178+'FR-16(7)(v)-8 TRANS Energy'!N178+'FR-16(7)(v)-9 TRANS Cust'!N178+'FR-16(7)(v)-11 DIST Demand'!N178+'FR-16(7)(v)-12 DIST Energy'!N178+'FR-16(7)(v)-13 DIST Cust'!N178","v":33776},{"$f":"'FR-16(7)(v)-3 PROD Demand'!O178+'FR-16(7)(v)-4 PROD Energy'!O178+'FR-16(7)(v)-5 PROD Cust'!O178+'FR-16(7)(v)-7 TRANS Demand'!O178+'FR-16(7)(v)-8 TRANS Energy'!O178+'FR-16(7)(v)-9 TRANS Cust'!O178+'FR-16(7)(v)-11 DIST Demand'!O178+'FR-16(7)(v)-12 DIST Energy'!O178+'FR-16(7)(v)-13 DIST Cust'!O178","v":364178},{"$f":"'FR-16(7)(v)-3 PROD Demand'!P178+'FR-16(7)(v)-4 PROD Energy'!P178+'FR-16(7)(v)-5 PROD Cust'!P178+'FR-16(7)(v)-7 TRANS Demand'!P178+'FR-16(7)(v)-8 TRANS Energy'!P178+'FR-16(7)(v)-9 TRANS Cust'!P178+'FR-16(7)(v)-11 DIST Demand'!P178+'FR-16(7)(v)-12 DIST Energy'!P178+'FR-16(7)(v)-13 DIST Cust'!P178","v":27423},{"$f":"'FR-16(7)(v)-3 PROD Demand'!Q178+'FR-16(7)(v)-4 PROD Energy'!Q178+'FR-16(7)(v)-5 PROD Cust'!Q178+'FR-16(7)(v)-7 TRANS Demand'!Q178+'FR-16(7)(v)-8 TRANS Energy'!Q178+'FR-16(7)(v)-9 TRANS Cust'!Q178+'FR-16(7)(v)-11 DIST Demand'!Q178+'FR-16(7)(v)-12 DIST Energy'!Q178+'FR-16(7)(v)-13 DIST Cust'!Q178","v":692},6289780,0]
[45,null,{"$f":"'FR-16(7)(v)-1 Functional'!C179","v":"TRANSMISSION"},"K202",null,{"$f":"'FR-16(7)(v)-1 Functional'!F179","v":850643},{"$f":"'FR-16(7)(v)-3 PROD Demand'!G179+'FR-16(7)(v)-4 PROD Energy'!G179+'FR-16(7)(v)-5 PROD Cust'!G179+'FR-16(7)(v)-7 TRANS Demand'!G179+'FR-16(7)(v)-8 TRANS Energy'!G179+'FR-16(7)(v)-9 TRANS Cust'!G179+'FR-16(7)(v)-11 DIST Demand'!G179+'FR-16(7)(v)-12 DIST Energy'!G179+'FR-16(7)(v)-13 DIST Cust'!G179","v":383451},{"$f":"'FR-16(7)(v)-3 PROD Demand'!H179+'FR-16(7)(v)-4 PROD Energy'!H179+'FR-16(7)(v)-5 PROD Cust'!H179+'FR-16(7)(v)-7 TRANS Demand'!H179+'FR-16(7)(v)-8 TRANS Energy'!H179+'FR-16(7)(v)-9 TRANS Cust'!H179+'FR-16(7)(v)-11 DIST Demand'!H179+'FR-16(7)(v)-12 DIST Energy'!H179+'FR-16(7)(v)-13 DIST Cust'!H179","v":230218},{"$f":"'FR-16(7)(v)-3 PROD Demand'!I179+'FR-16(7)(v)-4 PROD Energy'!I179+'FR-16(7)(v)-5 PROD Cust'!I179+'FR-16(7)(v)-7 TRANS Demand'!I179+'FR-16(7)(v)-8 TRANS Energy'!I179+'FR-16(7)(v)-9 TRANS Cust'!I179+'FR-16(7)(v)-11 DIST Demand'!I179+'FR-16(7)(v)-12 DIST Energy'!I179+'FR-16(7)(v)-13 DIST Cust'!I179","v":1106},{"$f":"'FR-16(7)(v)-3 PROD Demand'!J179+'FR-16(7)(v)-4 PROD Energy'!J179+'FR-16(7)(v)-5 PROD Cust'!J179+'FR-16(7)(v)-7 TRANS Demand'!J179+'FR-16(7)(v)-8 TRANS Energy'!J179+'FR-16(7)(v)-9 TRANS Cust'!J179+'FR-16(7)(v)-11 DIST Demand'!J179+'FR-16(7)(v)-12 DIST Energy'!J179+'FR-16(7)(v)-13 DIST Cust'!J179","v":4364},{"$f":"'FR-16(7)(v)-3 PROD Demand'!K179+'FR-16(7)(v)-4 PROD Energy'!K179+'FR-16(7)(v)-5 PROD Cust'!K179+'FR-16(7)(v)-7 TRANS Demand'!K179+'FR-16(7)(v)-8 TRANS Energy'!K179+'FR-16(7)(v)-9 TRANS Cust'!K179+'FR-16(7)(v)-11 DIST Demand'!K179+'FR-16(7)(v)-12 DIST Energy'!K179+'FR-16(7)(v)-13 DIST Cust'!K179","v":60},{"$f":"'FR-16(7)(v)-3 PROD Demand'!L179+'FR-16(7)(v)-4 PROD Energy'!L179+'FR-16(7)(v)-5 PROD Cust'!L179+'FR-16(7)(v)-7 TRANS Demand'!L179+'FR-16(7)(v)-8 TRANS Energy'!L179+'FR-16(7)(v)-9 TRANS Cust'!L179+'FR-16(7)(v)-11 DIST Demand'!L179+'FR-16(7)(v)-12 DIST Energy'!L179+'FR-16(7)(v)-13 DIST Cust'!L179","v":114786},{"$f":"'FR-16(7)(v)-3 PROD Demand'!M179+'FR-16(7)(v)-4 PROD Energy'!M179+'FR-16(7)(v)-5 PROD Cust'!M179+'FR-16(7)(v)-7 TRANS Demand'!M179+'FR-16(7)(v)-8 TRANS Energy'!M179+'FR-16(7)(v)-9 TRANS Cust'!M179+'FR-16(7)(v)-11 DIST Demand'!M179+'FR-16(7)(v)-12 DIST Energy'!M179+'FR-16(7)(v)-13 DIST Cust'!M179","v":75886},{"$f":"'FR-16(7)(v)-3 PROD Demand'!N179+'FR-16(7)(v)-4 PROD Energy'!N179+'FR-16(7)(v)-5 PROD Cust'!N179+'FR-16(7)(v)-7 TRANS Demand'!N179+'FR-16(7)(v)-8 TRANS Energy'!N179+'FR-16(7)(v)-9 TRANS Cust'!N179+'FR-16(7)(v)-11 DIST Demand'!N179+'FR-16(7)(v)-12 DIST Energy'!N179+'FR-16(7)(v)-13 DIST Cust'!N179","v":3666},{"$f":"'FR-16(7)(v)-3 PROD Demand'!O179+'FR-16(7)(v)-4 PROD Energy'!O179+'FR-16(7)(v)-5 PROD Cust'!O179+'FR-16(7)(v)-7 TRANS Demand'!O179+'FR-16(7)(v)-8 TRANS Energy'!O179+'FR-16(7)(v)-9 TRANS Cust'!O179+'FR-16(7)(v)-11 DIST Demand'!O179+'FR-16(7)(v)-12 DIST Energy'!O179+'FR-16(7)(v)-13 DIST Cust'!O179","v":35957},{"$f":"'FR-16(7)(v)-3 PROD Demand'!P179+'FR-16(7)(v)-4 PROD Energy'!P179+'FR-16(7)(v)-5 PROD Cust'!P179+'FR-16(7)(v)-7 TRANS Demand'!P179+'FR-16(7)(v)-8 TRANS Energy'!P179+'FR-16(7)(v)-9 TRANS Cust'!P179+'FR-16(7)(v)-11 DIST Demand'!P179+'FR-16(7)(v)-12 DIST Energy'!P179+'FR-16(7)(v)-13 DIST Cust'!P179","v":1055},{"$f":"'FR-16(7)(v)-3 PROD Demand'!Q179+'FR-16(7)(v)-4 PROD Energy'!Q179+'FR-16(7)(v)-5 PROD Cust'!Q179+'FR-16(7)(v)-7 TRANS Demand'!Q179+'FR-16(7)(v)-8 TRANS Energy'!Q179+'FR-16(7)(v)-9 TRANS Cust'!Q179+'FR-16(7)(v)-11 DIST Demand'!Q179+'FR-16(7)(v)-12 DIST Energy'!Q179+'FR-16(7)(v)-13 DIST Cust'!Q179","v":94},850643,0]
[46,null,{"$f":"'FR-16(7)(v)-1 Functional'!C180","v":"DISTRIBUTION - DEMAND"},"K201",null,{"$f":"'FR-16(7)(v)-1 Functional'!F180","v":2856969},{"$f":"'FR-16(7)(v)-3 PROD Demand'!G180+'FR-16(7)(v)-4 PROD Energy'!G180+'FR-16(7)(v)-5 PROD Cust'!G180+'FR-16(7)(v)-7 TRANS Demand'!G180+'FR-16(7)(v)-8 TRANS Energy'!G180+'FR-16(7)(v)-9 TRANS Cust'!G180+'FR-16(7)(v)-11 DIST Demand'!G180+'FR-16(7)(v)-12 DIST Energy'!G180+'FR-16(7)(v)-13 DIST Cust'!G180","v":1287865},{"$f":"'FR-16(7)(v)-3 PROD Demand'!H180+'FR-16(7)(v)-4 PROD Energy'!H180+'FR-16(7)(v)-5 PROD Cust'!H180+'FR-16(7)(v)-7 TRANS Demand'!H180+'FR-16(7)(v)-8 TRANS Energy'!H180+'FR-16(7)(v)-9 TRANS Cust'!H180+'FR-16(7)(v)-11 DIST Demand'!H180+'FR-16(7)(v)-12 DIST Energy'!H180+'FR-16(7)(v)-13 DIST Cust'!H180","v":773210},{"$f":"'FR-16(7)(v)-3 PROD Demand'!I180+'FR-16(7)(v)-4 PROD Energy'!I180+'FR-16(7)(v)-5 PROD Cust'!I180+'FR-16(7)(v)-7 TRANS Demand'!I180+'FR-16(7)(v)-8 TRANS Energy'!I180+'FR-16(7)(v)-9 TRANS Cust'!I180+'FR-16(7)(v)-11 DIST Demand'!I180+'FR-16(7)(v)-12 DIST Energy'!I180+'FR-16(7)(v)-13 DIST Cust'!I180","v":3714},{"$f":"'FR-16(7)(v)-3 PROD Demand'!J180+'FR-16(7)(v)-4 PROD Energy'!J180+'FR-16(7)(v)-5 PROD Cust'!J180+'FR-16(7)(v)-7 TRANS Demand'!J180+'FR-16(7)(v)-8 TRANS Energy'!J180+'FR-16(7)(v)-9 TRANS Cust'!J180+'FR-16(7)(v)-11 DIST Demand'!J180+'FR-16(7)(v)-12 DIST Energy'!J180+'FR-16(7)(v)-13 DIST Cust'!J180","v":14656},{"$f":"'FR-16(7)(v)-3 PROD Demand'!K180+'FR-16(7)(v)-4 PROD Energy'!K180+'FR-16(7)(v)-5 PROD Cust'!K180+'FR-16(7)(v)-7 TRANS Demand'!K180+'FR-16(7)(v)-8 TRANS Energy'!K180+'FR-16(7)(v)-9 TRANS Cust'!K180+'FR-16(7)(v)-11 DIST Demand'!K180+'FR-16(7)(v)-12 DIST Energy'!K180+'FR-16(7)(v)-13 DIST Cust'!K180","v":200},{"$f":"'FR-16(7)(v)-3 PROD Demand'!L180+'FR-16(7)(v)-4 PROD Energy'!L180+'FR-16(7)(v)-5 PROD Cust'!L180+'FR-16(7)(v)-7 TRANS Demand'!L180+'FR-16(7)(v)-8 TRANS Energy'!L180+'FR-16(7)(v)-9 TRANS Cust'!L180+'FR-16(7)(v)-11 DIST Demand'!L180+'FR-16(7)(v)-12 DIST Energy'!L180+'FR-16(7)(v)-13 DIST Cust'!L180","v":385519},{"$f":"'FR-16(7)(v)-3 PROD Demand'!M180+'FR-16(7)(v)-4 PROD Energy'!M180+'FR-16(7)(v)-5 PROD Cust'!M180+'FR-16(7)(v)-7 TRANS Demand'!M180+'FR-16(7)(v)-8 TRANS Energy'!M180+'FR-16(7)(v)-9 TRANS Cust'!M180+'FR-16(7)(v)-11 DIST Demand'!M180+'FR-16(7)(v)-12 DIST Energy'!M180+'FR-16(7)(v)-13 DIST Cust'!M180","v":254870},{"$f":"'FR-16(7)(v)-3 PROD Demand'!N180+'FR-16(7)(v)-4 PROD Energy'!N180+'FR-16(7)(v)-5 PROD Cust'!N180+'FR-16(7)(v)-7 TRANS Demand'!N180+'FR-16(7)(v)-8 TRANS Energy'!N180+'FR-16(7)(v)-9 TRANS Cust'!N180+'FR-16(7)(v)-11 DIST Demand'!N180+'FR-16(7)(v)-12 DIST Energy'!N180+'FR-16(7)(v)-13 DIST Cust'!N180","v":12314},{"$f":"'FR-16(7)(v)-3 PROD Demand'!O180+'FR-16(7)(v)-4 PROD Energy'!O180+'FR-16(7)(v)-5 PROD Cust'!O180+'FR-16(7)(v)-7 TRANS Demand'!O180+'FR-16(7)(v)-8 TRANS Energy'!O180+'FR-16(7)(v)-9 TRANS Cust'!O180+'FR-16(7)(v)-11 DIST Demand'!O180+'FR-16(7)(v)-12 DIST Energy'!O180+'FR-16(7)(v)-13 DIST Cust'!O180","v":120764},{"$f":"'FR-16(7)(v)-3 PROD Demand'!P180+'FR-16(7)(v)-4 PROD Energy'!P180+'FR-16(7)(v)-5 PROD Cust'!P180+'FR-16(7)(v)-7 TRANS Demand'!P180+'FR-16(7)(v)-8 TRANS Energy'!P180+'FR-16(7)(v)-9 TRANS Cust'!P180+'FR-16(7)(v)-11 DIST Demand'!P180+'FR-16(7)(v)-12 DIST Energy'!P180+'FR-16(7)(v)-13 DIST Cust'!P180","v":3543},{"$f":"'FR-16(7)(v)-3 PROD Demand'!Q180+'FR-16(7)(v)-4 PROD Energy'!Q180+'FR-16(7)(v)-5 PROD Cust'!Q180+'FR-16(7)(v)-7 TRANS Demand'!Q180+'FR-16(7)(v)-8 TRANS Energy'!Q180+'FR-16(7)(v)-9 TRANS Cust'!Q180+'FR-16(7)(v)-11 DIST Demand'!Q180+'FR-16(7)(v)-12 DIST Energy'!Q180+'FR-16(7)(v)-13 DIST Cust'!Q180","v":314},2856969,0]
[47,null,{"$f":"'FR-16(7)(v)-1 Functional'!C181","v":"DISTRIBUTION - CUSTOMER"},"K405",null,{"$f":"'FR-16(7)(v)-1 Functional'!F181","v":627139},{"$f":"'FR-16(7)(v)-3 PROD Demand'!G181+'FR-16(7)(v)-4 PROD Energy'!G181+'FR-16(7)(v)-5 PROD Cust'!G181+'FR-16(7)(v)-7 TRANS Demand'!G181+'FR-16(7)(v)-8 TRANS Energy'!G181+'FR-16(7)(v)-9 TRANS Cust'!G181+'FR-16(7)(v)-11 DIST Demand'!G181+'FR-16(7)(v)-12 DIST Energy'!G181+'FR-16(7)(v)-13 DIST Cust'!G181","v":565642},{"$f":"'FR-16(7)(v)-3 PROD Demand'!H181+'FR-16(7)(v)-4 PROD Energy'!H181+'FR-16(7)(v)-5 PROD Cust'!H181+'FR-16(7)(v)-7 TRANS Demand'!H181+'FR-16(7)(v)-8 TRANS Energy'!H181+'FR-16(7)(v)-9 TRANS Cust'!H181+'FR-16(7)(v)-11 DIST Demand'!H181+'FR-16(7)(v)-12 DIST Energy'!H181+'FR-16(7)(v)-13 DIST Cust'!H181","v":57132},{"$f":"'FR-16(7)(v)-3 PROD Demand'!I181+'FR-16(7)(v)-4 PROD Energy'!I181+'FR-16(7)(v)-5 PROD Cust'!I181+'FR-16(7)(v)-7 TRANS Demand'!I181+'FR-16(7)(v)-8 TRANS Energy'!I181+'FR-16(7)(v)-9 TRANS Cust'!I181+'FR-16(7)(v)-11 DIST Demand'!I181+'FR-16(7)(v)-12 DIST Energy'!I181+'FR-16(7)(v)-13 DIST Cust'!I181","v":759},{"$f":"'FR-16(7)(v)-3 PROD Demand'!J181+'FR-16(7)(v)-4 PROD Energy'!J181+'FR-16(7)(v)-5 PROD Cust'!J181+'FR-16(7)(v)-7 TRANS Demand'!J181+'FR-16(7)(v)-8 TRANS Energy'!J181+'FR-16(7)(v)-9 TRANS Cust'!J181+'FR-16(7)(v)-11 DIST Demand'!J181+'FR-16(7)(v)-12 DIST Energy'!J181+'FR-16(7)(v)-13 DIST Cust'!J181","v":452},{"$f":"'FR-16(7)(v)-3 PROD Demand'!K181+'FR-16(7)(v)-4 PROD Energy'!K181+'FR-16(7)(v)-5 PROD Cust'!K181+'FR-16(7)(v)-7 TRANS Demand'!K181+'FR-16(7)(v)-8 TRANS Energy'!K181+'FR-16(7)(v)-9 TRANS Cust'!K181+'FR-16(7)(v)-11 DIST Demand'!K181+'FR-16(7)(v)-12 DIST Energy'!K181+'FR-16(7)(v)-13 DIST Cust'!K181","v":63},{"$f":"'FR-16(7)(v)-3 PROD Demand'!L181+'FR-16(7)(v)-4 PROD Energy'!L181+'FR-16(7)(v)-5 PROD Cust'!L181+'FR-16(7)(v)-7 TRANS Demand'!L181+'FR-16(7)(v)-8 TRANS Energy'!L181+'FR-16(7)(v)-9 TRANS Cust'!L181+'FR-16(7)(v)-11 DIST Demand'!L181+'FR-16(7)(v)-12 DIST Energy'!L181+'FR-16(7)(v)-13 DIST Cust'!L181","v":702},{"$f":"'FR-16(7)(v)-3 PROD Demand'!M181+'FR-16(7)(v)-4 PROD Energy'!M181+'FR-16(7)(v)-5 PROD Cust'!M181+'FR-16(7)(v)-7 TRANS Demand'!M181+'FR-16(7)(v)-8 TRANS Energy'!M181+'FR-16(7)(v)-9 TRANS Cust'!M181+'FR-16(7)(v)-11 DIST Demand'!M181+'FR-16(7)(v)-12 DIST Energy'!M181+'FR-16(7)(v)-13 DIST Cust'!M181","v":163},{"$f":"'FR-16(7)(v)-3 PROD Demand'!N181+'FR-16(7)(v)-4 PROD Energy'!N181+'FR-16(7)(v)-5 PROD Cust'!N181+'FR-16(7)(v)-7 TRANS Demand'!N181+'FR-16(7)(v)-8 TRANS Energy'!N181+'FR-16(7)(v)-9 TRANS Cust'!N181+'FR-16(7)(v)-11 DIST Demand'!N181+'FR-16(7)(v)-12 DIST Energy'!N181+'FR-16(7)(v)-13 DIST Cust'!N181","v":44},{"$f":"'FR-16(7)(v)-3 PROD Demand'!O181+'FR-16(7)(v)-4 PROD Energy'!O181+'FR-16(7)(v)-5 PROD Cust'!O181+'FR-16(7)(v)-7 TRANS Demand'!O181+'FR-16(7)(v)-8 TRANS Energy'!O181+'FR-16(7)(v)-9 TRANS Cust'!O181+'FR-16(7)(v)-11 DIST Demand'!O181+'FR-16(7)(v)-12 DIST Energy'!O181+'FR-16(7)(v)-13 DIST Cust'!O181","v":69},{"$f":"'FR-16(7)(v)-3 PROD Demand'!P181+'FR-16(7)(v)-4 PROD Energy'!P181+'FR-16(7)(v)-5 PROD Cust'!P181+'FR-16(7)(v)-7 TRANS Demand'!P181+'FR-16(7)(v)-8 TRANS Energy'!P181+'FR-16(7)(v)-9 TRANS Cust'!P181+'FR-16(7)(v)-11 DIST Demand'!P181+'FR-16(7)(v)-12 DIST Energy'!P181+'FR-16(7)(v)-13 DIST Cust'!P181","v":2063},{"$f":"'FR-16(7)(v)-3 PROD Demand'!Q181+'FR-16(7)(v)-4 PROD Energy'!Q181+'FR-16(7)(v)-5 PROD Cust'!Q181+'FR-16(7)(v)-7 TRANS Demand'!Q181+'FR-16(7)(v)-8 TRANS Energy'!Q181+'FR-16(7)(v)-9 TRANS Cust'!Q181+'FR-16(7)(v)-11 DIST Demand'!Q181+'FR-16(7)(v)-12 DIST Energy'!Q181+'FR-16(7)(v)-13 DIST Cust'!Q181","v":50},627139,0]
[48,null,{"$f":"'FR-16(7)(v)-1 Functional'!C182","v":"CUSTOMER ACCOUNTING"},"A308",null,{"$f":"'FR-16(7)(v)-1 Functional'!F182","v":2131797},{"$f":"'FR-16(7)(v)-3 PROD Demand'!G182+'FR-16(7)(v)-4 PROD Energy'!G182+'FR-16(7)(v)-5 PROD Cust'!G182+'FR-16(7)(v)-7 TRANS Demand'!G182+'FR-16(7)(v)-8 TRANS Energy'!G182+'FR-16(7)(v)-9 TRANS Cust'!G182+'FR-16(7)(v)-11 DIST Demand'!G182+'FR-16(7)(v)-12 DIST Energy'!G182+'FR-16(7)(v)-13 DIST Cust'!G182","v":1736766},{"$f":"'FR-16(7)(v)-3 PROD Demand'!H182+'FR-16(7)(v)-4 PROD Energy'!H182+'FR-16(7)(v)-5 PROD Cust'!H182+'FR-16(7)(v)-7 TRANS Demand'!H182+'FR-16(7)(v)-8 TRANS Energy'!H182+'FR-16(7)(v)-9 TRANS Cust'!H182+'FR-16(7)(v)-11 DIST Demand'!H182+'FR-16(7)(v)-12 DIST Energy'!H182+'FR-16(7)(v)-13 DIST Cust'!H182","v":371073},{"$f":"'FR-16(7)(v)-3 PROD Demand'!I182+'FR-16(7)(v)-4 PROD Energy'!I182+'FR-16(7)(v)-5 PROD Cust'!I182+'FR-16(7)(v)-7 TRANS Demand'!I182+'FR-16(7)(v)-8 TRANS Energy'!I182+'FR-16(7)(v)-9 TRANS Cust'!I182+'FR-16(7)(v)-11 DIST Demand'!I182+'FR-16(7)(v)-12 DIST Energy'!I182+'FR-16(7)(v)-13 DIST Cust'!I182","v":2154},{"$f":"'FR-16(7)(v)-3 PROD Demand'!J182+'FR-16(7)(v)-4 PROD Energy'!J182+'FR-16(7)(v)-5 PROD Cust'!J182+'FR-16(7)(v)-7 TRANS Demand'!J182+'FR-16(7)(v)-8 TRANS Energy'!J182+'FR-16(7)(v)-9 TRANS Cust'!J182+'FR-16(7)(v)-11 DIST Demand'!J182+'FR-16(7)(v)-12 DIST Energy'!J182+'FR-16(7)(v)-13 DIST Cust'!J182","v":2943},{"$f":"'FR-16(7)(v)-3 PROD Demand'!K182+'FR-16(7)(v)-4 PROD Energy'!K182+'FR-16(7)(v)-5 PROD Cust'!K182+'FR-16(7)(v)-7 TRANS Demand'!K182+'FR-16(7)(v)-8 TRANS Energy'!K182+'FR-16(7)(v)-9 TRANS Cust'!K182+'FR-16(7)(v)-11 DIST Demand'!K182+'FR-16(7)(v)-12 DIST Energy'!K182+'FR-16(7)(v)-13 DIST Cust'!K182","v":405},{"$f":"'FR-16(7)(v)-3 PROD Demand'!L182+'FR-16(7)(v)-4 PROD Energy'!L182+'FR-16(7)(v)-5 PROD Cust'!L182+'FR-16(7)(v)-7 TRANS Demand'!L182+'FR-16(7)(v)-8 TRANS Energy'!L182+'FR-16(7)(v)-9 TRANS Cust'!L182+'FR-16(7)(v)-11 DIST Demand'!L182+'FR-16(7)(v)-12 DIST Energy'!L182+'FR-16(7)(v)-13 DIST Cust'!L182","v":13056},{"$f":"'FR-16(7)(v)-3 PROD Demand'!M182+'FR-16(7)(v)-4 PROD Energy'!M182+'FR-16(7)(v)-5 PROD Cust'!M182+'FR-16(7)(v)-7 TRANS Demand'!M182+'FR-16(7)(v)-8 TRANS Energy'!M182+'FR-16(7)(v)-9 TRANS Cust'!M182+'FR-16(7)(v)-11 DIST Demand'!M182+'FR-16(7)(v)-12 DIST Energy'!M182+'FR-16(7)(v)-13 DIST Cust'!M182","v":-1076},{"$f":"'FR-16(7)(v)-3 PROD Demand'!N182+'FR-16(7)(v)-4 PROD Energy'!N182+'FR-16(7)(v)-5 PROD Cust'!N182+'FR-16(7)(v)-7 TRANS Demand'!N182+'FR-16(7)(v)-8 TRANS Energy'!N182+'FR-16(7)(v)-9 TRANS Cust'!N182+'FR-16(7)(v)-11 DIST Demand'!N182+'FR-16(7)(v)-12 DIST Energy'!N182+'FR-16(7)(v)-13 DIST Cust'!N182","v":511},{"$f":"'FR-16(7)(v)-3 PROD Demand'!O182+'FR-16(7)(v)-4 PROD Energy'!O182+'FR-16(7)(v)-5 PROD Cust'!O182+'FR-16(7)(v)-7 TRANS Demand'!O182+'FR-16(7)(v)-8 TRANS Energy'!O182+'FR-16(7)(v)-9 TRANS Cust'!O182+'FR-16(7)(v)-11 DIST Demand'!O182+'FR-16(7)(v)-12 DIST Energy'!O182+'FR-16(7)(v)-13 DIST Cust'!O182","v":-197},{"$f":"'FR-16(7)(v)-3 PROD Demand'!P182+'FR-16(7)(v)-4 PROD Energy'!P182+'FR-16(7)(v)-5 PROD Cust'!P182+'FR-16(7)(v)-7 TRANS Demand'!P182+'FR-16(7)(v)-8 TRANS Energy'!P182+'FR-16(7)(v)-9 TRANS Cust'!P182+'FR-16(7)(v)-11 DIST Demand'!P182+'FR-16(7)(v)-12 DIST Energy'!P182+'FR-16(7)(v)-13 DIST Cust'!P182","v":5842},{"$f":"'FR-16(7)(v)-3 PROD Demand'!Q182+'FR-16(7)(v)-4 PROD Energy'!Q182+'FR-16(7)(v)-5 PROD Cust'!Q182+'FR-16(7)(v)-7 TRANS Demand'!Q182+'FR-16(7)(v)-8 TRANS Energy'!Q182+'FR-16(7)(v)-9 TRANS Cust'!Q182+'FR-16(7)(v)-11 DIST Demand'!Q182+'FR-16(7)(v)-12 DIST Energy'!Q182+'FR-16(7)(v)-13 DIST Cust'!Q182","v":320},2131797,0]
[49,null,{"$f":"'FR-16(7)(v)-1 Functional'!C183","v":"CUSTOMER SERVICE & INFORMATION"},"A310",null,{"$f":"'FR-16(7)(v)-1 Functional'!F183","v":139459},{"$f":"'FR-16(7)(v)-3 PROD Demand'!G183+'FR-16(7)(v)-4 PROD Energy'!G183+'FR-16(7)(v)-5 PROD Cust'!G183+'FR-16(7)(v)-7 TRANS Demand'!G183+'FR-16(7)(v)-8 TRANS Energy'!G183+'FR-16(7)(v)-9 TRANS Cust'!G183+'FR-16(7)(v)-11 DIST Demand'!G183+'FR-16(7)(v)-12 DIST Energy'!G183+'FR-16(7)(v)-13 DIST Cust'!G183","v":125784},{"$f":"'FR-16(7)(v)-3 PROD Demand'!H183+'FR-16(7)(v)-4 PROD Energy'!H183+'FR-16(7)(v)-5 PROD Cust'!H183+'FR-16(7)(v)-7 TRANS Demand'!H183+'FR-16(7)(v)-8 TRANS Energy'!H183+'FR-16(7)(v)-9 TRANS Cust'!H183+'FR-16(7)(v)-11 DIST Demand'!H183+'FR-16(7)(v)-12 DIST Energy'!H183+'FR-16(7)(v)-13 DIST Cust'!H183","v":12705},{"$f":"'FR-16(7)(v)-3 PROD Demand'!I183+'FR-16(7)(v)-4 PROD Energy'!I183+'FR-16(7)(v)-5 PROD Cust'!I183+'FR-16(7)(v)-7 TRANS Demand'!I183+'FR-16(7)(v)-8 TRANS Energy'!I183+'FR-16(7)(v)-9 TRANS Cust'!I183+'FR-16(7)(v)-11 DIST Demand'!I183+'FR-16(7)(v)-12 DIST Energy'!I183+'FR-16(7)(v)-13 DIST Cust'!I183","v":169},{"$f":"'FR-16(7)(v)-3 PROD Demand'!J183+'FR-16(7)(v)-4 PROD Energy'!J183+'FR-16(7)(v)-5 PROD Cust'!J183+'FR-16(7)(v)-7 TRANS Demand'!J183+'FR-16(7)(v)-8 TRANS Energy'!J183+'FR-16(7)(v)-9 TRANS Cust'!J183+'FR-16(7)(v)-11 DIST Demand'!J183+'FR-16(7)(v)-12 DIST Energy'!J183+'FR-16(7)(v)-13 DIST Cust'!J183","v":100},{"$f":"'FR-16(7)(v)-3 PROD Demand'!K183+'FR-16(7)(v)-4 PROD Energy'!K183+'FR-16(7)(v)-5 PROD Cust'!K183+'FR-16(7)(v)-7 TRANS Demand'!K183+'FR-16(7)(v)-8 TRANS Energy'!K183+'FR-16(7)(v)-9 TRANS Cust'!K183+'FR-16(7)(v)-11 DIST Demand'!K183+'FR-16(7)(v)-12 DIST Energy'!K183+'FR-16(7)(v)-13 DIST Cust'!K183","v":14},{"$f":"'FR-16(7)(v)-3 PROD Demand'!L183+'FR-16(7)(v)-4 PROD Energy'!L183+'FR-16(7)(v)-5 PROD Cust'!L183+'FR-16(7)(v)-7 TRANS Demand'!L183+'FR-16(7)(v)-8 TRANS Energy'!L183+'FR-16(7)(v)-9 TRANS Cust'!L183+'FR-16(7)(v)-11 DIST Demand'!L183+'FR-16(7)(v)-12 DIST Energy'!L183+'FR-16(7)(v)-13 DIST Cust'!L183","v":156},{"$f":"'FR-16(7)(v)-3 PROD Demand'!M183+'FR-16(7)(v)-4 PROD Energy'!M183+'FR-16(7)(v)-5 PROD Cust'!M183+'FR-16(7)(v)-7 TRANS Demand'!M183+'FR-16(7)(v)-8 TRANS Energy'!M183+'FR-16(7)(v)-9 TRANS Cust'!M183+'FR-16(7)(v)-11 DIST Demand'!M183+'FR-16(7)(v)-12 DIST Energy'!M183+'FR-16(7)(v)-13 DIST Cust'!M183","v":36},{"$f":"'FR-16(7)(v)-3 PROD Demand'!N183+'FR-16(7)(v)-4 PROD Energy'!N183+'FR-16(7)(v)-5 PROD Cust'!N183+'FR-16(7)(v)-7 TRANS Demand'!N183+'FR-16(7)(v)-8 TRANS Energy'!N183+'FR-16(7)(v)-9 TRANS Cust'!N183+'FR-16(7)(v)-11 DIST Demand'!N183+'FR-16(7)(v)-12 DIST Energy'!N183+'FR-16(7)(v)-13 DIST Cust'!N183","v":10},{"$f":"'FR-16(7)(v)-3 PROD Demand'!O183+'FR-16(7)(v)-4 PROD Energy'!O183+'FR-16(7)(v)-5 PROD Cust'!O183+'FR-16(7)(v)-7 TRANS Demand'!O183+'FR-16(7)(v)-8 TRANS Energy'!O183+'FR-16(7)(v)-9 TRANS Cust'!O183+'FR-16(7)(v)-11 DIST Demand'!O183+'FR-16(7)(v)-12 DIST Energy'!O183+'FR-16(7)(v)-13 DIST Cust'!O183","v":15},{"$f":"'FR-16(7)(v)-3 PROD Demand'!P183+'FR-16(7)(v)-4 PROD Energy'!P183+'FR-16(7)(v)-5 PROD Cust'!P183+'FR-16(7)(v)-7 TRANS Demand'!P183+'FR-16(7)(v)-8 TRANS Energy'!P183+'FR-16(7)(v)-9 TRANS Cust'!P183+'FR-16(7)(v)-11 DIST Demand'!P183+'FR-16(7)(v)-12 DIST Energy'!P183+'FR-16(7)(v)-13 DIST Cust'!P183","v":459},{"$f":"'FR-16(7)(v)-3 PROD Demand'!Q183+'FR-16(7)(v)-4 PROD Energy'!Q183+'FR-16(7)(v)-5 PROD Cust'!Q183+'FR-16(7)(v)-7 TRANS Demand'!Q183+'FR-16(7)(v)-8 TRANS Energy'!Q183+'FR-16(7)(v)-9 TRANS Cust'!Q183+'FR-16(7)(v)-11 DIST Demand'!Q183+'FR-16(7)(v)-12 DIST Energy'!Q183+'FR-16(7)(v)-13 DIST Cust'!Q183","v":11},139459,0]
[50,null,{"$f":"'FR-16(7)(v)-1 Functional'!C184","v":"SALES"},"A312",null,{"$f":"'FR-16(7)(v)-1 Functional'!F184","v":0},{"$f":"'FR-16(7)(v)-3 PROD Demand'!G184+'FR-16(7)(v)-4 PROD Energy'!G184+'FR-16(7)(v)-5 PROD Cust'!G184+'FR-16(7)(v)-7 TRANS Demand'!G184+'FR-16(7)(v)-8 TRANS Energy'!G184+'FR-16(7)(v)-9 TRANS Cust'!G184+'FR-16(7)(v)-11 DIST Demand'!G184+'FR-16(7)(v)-12 DIST Energy'!G184+'FR-16(7)(v)-13 DIST Cust'!G184","v":0},{"$f":"'FR-16(7)(v)-3 PROD Demand'!H184+'FR-16(7)(v)-4 PROD Energy'!H184+'FR-16(7)(v)-5 PROD Cust'!H184+'FR-16(7)(v)-7 TRANS Demand'!H184+'FR-16(7)(v)-8 TRANS Energy'!H184+'FR-16(7)(v)-9 TRANS Cust'!H184+'FR-16(7)(v)-11 DIST Demand'!H184+'FR-16(7)(v)-12 DIST Energy'!H184+'FR-16(7)(v)-13 DIST Cust'!H184","v":0},{"$f":"'FR-16(7)(v)-3 PROD Demand'!I184+'FR-16(7)(v)-4 PROD Energy'!I184+'FR-16(7)(v)-5 PROD Cust'!I184+'FR-16(7)(v)-7 TRANS Demand'!I184+'FR-16(7)(v)-8 TRANS Energy'!I184+'FR-16(7)(v)-9 TRANS Cust'!I184+'FR-16(7)(v)-11 DIST Demand'!I184+'FR-16(7)(v)-12 DIST Energy'!I184+'FR-16(7)(v)-13 DIST Cust'!I184","v":0},{"$f":"'FR-16(7)(v)-3 PROD Demand'!J184+'FR-16(7)(v)-4 PROD Energy'!J184+'FR-16(7)(v)-5 PROD Cust'!J184+'FR-16(7)(v)-7 TRANS Demand'!J184+'FR-16(7)(v)-8 TRANS Energy'!J184+'FR-16(7)(v)-9 TRANS Cust'!J184+'FR-16(7)(v)-11 DIST Demand'!J184+'FR-16(7)(v)-12 DIST Energy'!J184+'FR-16(7)(v)-13 DIST Cust'!J184","v":0},{"$f":"'FR-16(7)(v)-3 PROD Demand'!K184+'FR-16(7)(v)-4 PROD Energy'!K184+'FR-16(7)(v)-5 PROD Cust'!K184+'FR-16(7)(v)-7 TRANS Demand'!K184+'FR-16(7)(v)-8 TRANS Energy'!K184+'FR-16(7)(v)-9 TRANS Cust'!K184+'FR-16(7)(v)-11 DIST Demand'!K184+'FR-16(7)(v)-12 DIST Energy'!K184+'FR-16(7)(v)-13 DIST Cust'!K184","v":0},{"$f":"'FR-16(7)(v)-3 PROD Demand'!L184+'FR-16(7)(v)-4 PROD Energy'!L184+'FR-16(7)(v)-5 PROD Cust'!L184+'FR-16(7)(v)-7 TRANS Demand'!L184+'FR-16(7)(v)-8 TRANS Energy'!L184+'FR-16(7)(v)-9 TRANS Cust'!L184+'FR-16(7)(v)-11 DIST Demand'!L184+'FR-16(7)(v)-12 DIST Energy'!L184+'FR-16(7)(v)-13 DIST Cust'!L184","v":0},{"$f":"'FR-16(7)(v)-3 PROD Demand'!M184+'FR-16(7)(v)-4 PROD Energy'!M184+'FR-16(7)(v)-5 PROD Cust'!M184+'FR-16(7)(v)-7 TRANS Demand'!M184+'FR-16(7)(v)-8 TRANS Energy'!M184+'FR-16(7)(v)-9 TRANS Cust'!M184+'FR-16(7)(v)-11 DIST Demand'!M184+'FR-16(7)(v)-12 DIST Energy'!M184+'FR-16(7)(v)-13 DIST Cust'!M184","v":0},{"$f":"'FR-16(7)(v)-3 PROD Demand'!N184+'FR-16(7)(v)-4 PROD Energy'!N184+'FR-16(7)(v)-5 PROD Cust'!N184+'FR-16(7)(v)-7 TRANS Demand'!N184+'FR-16(7)(v)-8 TRANS Energy'!N184+'FR-16(7)(v)-9 TRANS Cust'!N184+'FR-16(7)(v)-11 DIST Demand'!N184+'FR-16(7)(v)-12 DIST Energy'!N184+'FR-16(7)(v)-13 DIST Cust'!N184","v":0},{"$f":"'FR-16(7)(v)-3 PROD Demand'!O184+'FR-16(7)(v)-4 PROD Energy'!O184+'FR-16(7)(v)-5 PROD Cust'!O184+'FR-16(7)(v)-7 TRANS Demand'!O184+'FR-16(7)(v)-8 TRANS Energy'!O184+'FR-16(7)(v)-9 TRANS Cust'!O184+'FR-16(7)(v)-11 DIST Demand'!O184+'FR-16(7)(v)-12 DIST Energy'!O184+'FR-16(7)(v)-13 DIST Cust'!O184","v":0},{"$f":"'FR-16(7)(v)-3 PROD Demand'!P184+'FR-16(7)(v)-4 PROD Energy'!P184+'FR-16(7)(v)-5 PROD Cust'!P184+'FR-16(7)(v)-7 TRANS Demand'!P184+'FR-16(7)(v)-8 TRANS Energy'!P184+'FR-16(7)(v)-9 TRANS Cust'!P184+'FR-16(7)(v)-11 DIST Demand'!P184+'FR-16(7)(v)-12 DIST Energy'!P184+'FR-16(7)(v)-13 DIST Cust'!P184","v":0},{"$f":"'FR-16(7)(v)-3 PROD Demand'!Q184+'FR-16(7)(v)-4 PROD Energy'!Q184+'FR-16(7)(v)-5 PROD Cust'!Q184+'FR-16(7)(v)-7 TRANS Demand'!Q184+'FR-16(7)(v)-8 TRANS Energy'!Q184+'FR-16(7)(v)-9 TRANS Cust'!Q184+'FR-16(7)(v)-11 DIST Demand'!Q184+'FR-16(7)(v)-12 DIST Energy'!Q184+'FR-16(7)(v)-13 DIST Cust'!Q184","v":0},0,0]
[51,null,{"$f":"'FR-16(7)(v)-1 Functional'!C185","v":"ADJUSTMENT"},"A315",null,{"$f":"'FR-16(7)(v)-1 Functional'!F185","v":325445},{"$f":"'FR-16(7)(v)-3 PROD Demand'!G185+'FR-16(7)(v)-4 PROD Energy'!G185+'FR-16(7)(v)-5 PROD Cust'!G185+'FR-16(7)(v)-7 TRANS Demand'!G185+'FR-16(7)(v)-8 TRANS Energy'!G185+'FR-16(7)(v)-9 TRANS Cust'!G185+'FR-16(7)(v)-11 DIST Demand'!G185+'FR-16(7)(v)-12 DIST Energy'!G185+'FR-16(7)(v)-13 DIST Cust'!G185","v":235345},{"$f":"'FR-16(7)(v)-3 PROD Demand'!H185+'FR-16(7)(v)-4 PROD Energy'!H185+'FR-16(7)(v)-5 PROD Cust'!H185+'FR-16(7)(v)-7 TRANS Demand'!H185+'FR-16(7)(v)-8 TRANS Energy'!H185+'FR-16(7)(v)-9 TRANS Cust'!H185+'FR-16(7)(v)-11 DIST Demand'!H185+'FR-16(7)(v)-12 DIST Energy'!H185+'FR-16(7)(v)-13 DIST Cust'!H185","v":43311},{"$f":"'FR-16(7)(v)-3 PROD Demand'!I185+'FR-16(7)(v)-4 PROD Energy'!I185+'FR-16(7)(v)-5 PROD Cust'!I185+'FR-16(7)(v)-7 TRANS Demand'!I185+'FR-16(7)(v)-8 TRANS Energy'!I185+'FR-16(7)(v)-9 TRANS Cust'!I185+'FR-16(7)(v)-11 DIST Demand'!I185+'FR-16(7)(v)-12 DIST Energy'!I185+'FR-16(7)(v)-13 DIST Cust'!I185","v":242},{"$f":"'FR-16(7)(v)-3 PROD Demand'!J185+'FR-16(7)(v)-4 PROD Energy'!J185+'FR-16(7)(v)-5 PROD Cust'!J185+'FR-16(7)(v)-7 TRANS Demand'!J185+'FR-16(7)(v)-8 TRANS Energy'!J185+'FR-16(7)(v)-9 TRANS Cust'!J185+'FR-16(7)(v)-11 DIST Demand'!J185+'FR-16(7)(v)-12 DIST Energy'!J185+'FR-16(7)(v)-13 DIST Cust'!J185","v":638},{"$f":"'FR-16(7)(v)-3 PROD Demand'!K185+'FR-16(7)(v)-4 PROD Energy'!K185+'FR-16(7)(v)-5 PROD Cust'!K185+'FR-16(7)(v)-7 TRANS Demand'!K185+'FR-16(7)(v)-8 TRANS Energy'!K185+'FR-16(7)(v)-9 TRANS Cust'!K185+'FR-16(7)(v)-11 DIST Demand'!K185+'FR-16(7)(v)-12 DIST Energy'!K185+'FR-16(7)(v)-13 DIST Cust'!K185","v":18},{"$f":"'FR-16(7)(v)-3 PROD Demand'!L185+'FR-16(7)(v)-4 PROD Energy'!L185+'FR-16(7)(v)-5 PROD Cust'!L185+'FR-16(7)(v)-7 TRANS Demand'!L185+'FR-16(7)(v)-8 TRANS Energy'!L185+'FR-16(7)(v)-9 TRANS Cust'!L185+'FR-16(7)(v)-11 DIST Demand'!L185+'FR-16(7)(v)-12 DIST Energy'!L185+'FR-16(7)(v)-13 DIST Cust'!L185","v":21233},{"$f":"'FR-16(7)(v)-3 PROD Demand'!M185+'FR-16(7)(v)-4 PROD Energy'!M185+'FR-16(7)(v)-5 PROD Cust'!M185+'FR-16(7)(v)-7 TRANS Demand'!M185+'FR-16(7)(v)-8 TRANS Energy'!M185+'FR-16(7)(v)-9 TRANS Cust'!M185+'FR-16(7)(v)-11 DIST Demand'!M185+'FR-16(7)(v)-12 DIST Energy'!M185+'FR-16(7)(v)-13 DIST Cust'!M185","v":14494},{"$f":"'FR-16(7)(v)-3 PROD Demand'!N185+'FR-16(7)(v)-4 PROD Energy'!N185+'FR-16(7)(v)-5 PROD Cust'!N185+'FR-16(7)(v)-7 TRANS Demand'!N185+'FR-16(7)(v)-8 TRANS Energy'!N185+'FR-16(7)(v)-9 TRANS Cust'!N185+'FR-16(7)(v)-11 DIST Demand'!N185+'FR-16(7)(v)-12 DIST Energy'!N185+'FR-16(7)(v)-13 DIST Cust'!N185","v":692},{"$f":"'FR-16(7)(v)-3 PROD Demand'!O185+'FR-16(7)(v)-4 PROD Energy'!O185+'FR-16(7)(v)-5 PROD Cust'!O185+'FR-16(7)(v)-7 TRANS Demand'!O185+'FR-16(7)(v)-8 TRANS Energy'!O185+'FR-16(7)(v)-9 TRANS Cust'!O185+'FR-16(7)(v)-11 DIST Demand'!O185+'FR-16(7)(v)-12 DIST Energy'!O185+'FR-16(7)(v)-13 DIST Cust'!O185","v":7004},{"$f":"'FR-16(7)(v)-3 PROD Demand'!P185+'FR-16(7)(v)-4 PROD Energy'!P185+'FR-16(7)(v)-5 PROD Cust'!P185+'FR-16(7)(v)-7 TRANS Demand'!P185+'FR-16(7)(v)-8 TRANS Energy'!P185+'FR-16(7)(v)-9 TRANS Cust'!P185+'FR-16(7)(v)-11 DIST Demand'!P185+'FR-16(7)(v)-12 DIST Energy'!P185+'FR-16(7)(v)-13 DIST Cust'!P185","v":2447},{"$f":"'FR-16(7)(v)-3 PROD Demand'!Q185+'FR-16(7)(v)-4 PROD Energy'!Q185+'FR-16(7)(v)-5 PROD Cust'!Q185+'FR-16(7)(v)-7 TRANS Demand'!Q185+'FR-16(7)(v)-8 TRANS Energy'!Q185+'FR-16(7)(v)-9 TRANS Cust'!Q185+'FR-16(7)(v)-11 DIST Demand'!Q185+'FR-16(7)(v)-12 DIST Energy'!Q185+'FR-16(7)(v)-13 DIST Cust'!Q185","v":21},325445,0]
[52,null,"  GENERAL & INTANG PLANT",null,null,{"$f":"SUM(F176:F185)","v":18604295},9135570,4638485,24640,{"$f":"SUM(J176:J185)","v":77688},1577,2299720,1545468,74214,755332,49507,2094,18604295,0]
[53]
[54,"COMMON & OTHER PLANT"]
[55,null,{"$f":"'FR-16(7)(v)-1 Functional'!C189","v":"PRODUCTION - DEMAND"},"K201",null,{"$f":"'FR-16(7)(v)-1 Functional'!F189","v":7273485},{"$f":"'FR-16(7)(v)-3 PROD Demand'!G189+'FR-16(7)(v)-4 PROD Energy'!G189+'FR-16(7)(v)-5 PROD Cust'!G189+'FR-16(7)(v)-7 TRANS Demand'!G189+'FR-16(7)(v)-8 TRANS Energy'!G189+'FR-16(7)(v)-9 TRANS Cust'!G189+'FR-16(7)(v)-11 DIST Demand'!G189+'FR-16(7)(v)-12 DIST Energy'!G189+'FR-16(7)(v)-13 DIST Cust'!G189","v":3278741},{"$f":"'FR-16(7)(v)-3 PROD Demand'!H189+'FR-16(7)(v)-4 PROD Energy'!H189+'FR-16(7)(v)-5 PROD Cust'!H189+'FR-16(7)(v)-7 TRANS Demand'!H189+'FR-16(7)(v)-8 TRANS Energy'!H189+'FR-16(7)(v)-9 TRANS Cust'!H189+'FR-16(7)(v)-11 DIST Demand'!H189+'FR-16(7)(v)-12 DIST Energy'!H189+'FR-16(7)(v)-13 DIST Cust'!H189","v":1968496},{"$f":"'FR-16(7)(v)-3 PROD Demand'!I189+'FR-16(7)(v)-4 PROD Energy'!I189+'FR-16(7)(v)-5 PROD Cust'!I189+'FR-16(7)(v)-7 TRANS Demand'!I189+'FR-16(7)(v)-8 TRANS Energy'!I189+'FR-16(7)(v)-9 TRANS Cust'!I189+'FR-16(7)(v)-11 DIST Demand'!I189+'FR-16(7)(v)-12 DIST Energy'!I189+'FR-16(7)(v)-13 DIST Cust'!I189","v":9456},{"$f":"'FR-16(7)(v)-3 PROD Demand'!J189+'FR-16(7)(v)-4 PROD Energy'!J189+'FR-16(7)(v)-5 PROD Cust'!J189+'FR-16(7)(v)-7 TRANS Demand'!J189+'FR-16(7)(v)-8 TRANS Energy'!J189+'FR-16(7)(v)-9 TRANS Cust'!J189+'FR-16(7)(v)-11 DIST Demand'!J189+'FR-16(7)(v)-12 DIST Energy'!J189+'FR-16(7)(v)-13 DIST Cust'!J189","v":37313},{"$f":"'FR-16(7)(v)-3 PROD Demand'!K189+'FR-16(7)(v)-4 PROD Energy'!K189+'FR-16(7)(v)-5 PROD Cust'!K189+'FR-16(7)(v)-7 TRANS Demand'!K189+'FR-16(7)(v)-8 TRANS Energy'!K189+'FR-16(7)(v)-9 TRANS Cust'!K189+'FR-16(7)(v)-11 DIST Demand'!K189+'FR-16(7)(v)-12 DIST Energy'!K189+'FR-16(7)(v)-13 DIST Cust'!K189","v":509},{"$f":"'FR-16(7)(v)-3 PROD Demand'!L189+'FR-16(7)(v)-4 PROD Energy'!L189+'FR-16(7)(v)-5 PROD Cust'!L189+'FR-16(7)(v)-7 TRANS Demand'!L189+'FR-16(7)(v)-8 TRANS Energy'!L189+'FR-16(7)(v)-9 TRANS Cust'!L189+'FR-16(7)(v)-11 DIST Demand'!L189+'FR-16(7)(v)-12 DIST Energy'!L189+'FR-16(7)(v)-13 DIST Cust'!L189","v":981484},{"$f":"'FR-16(7)(v)-3 PROD Demand'!M189+'FR-16(7)(v)-4 PROD Energy'!M189+'FR-16(7)(v)-5 PROD Cust'!M189+'FR-16(7)(v)-7 TRANS Demand'!M189+'FR-16(7)(v)-8 TRANS Energy'!M189+'FR-16(7)(v)-9 TRANS Cust'!M189+'FR-16(7)(v)-11 DIST Demand'!M189+'FR-16(7)(v)-12 DIST Energy'!M189+'FR-16(7)(v)-13 DIST Cust'!M189","v":648868},{"$f":"'FR-16(7)(v)-3 PROD Demand'!N189+'FR-16(7)(v)-4 PROD Energy'!N189+'FR-16(7)(v)-5 PROD Cust'!N189+'FR-16(7)(v)-7 TRANS Demand'!N189+'FR-16(7)(v)-8 TRANS Energy'!N189+'FR-16(7)(v)-9 TRANS Cust'!N189+'FR-16(7)(v)-11 DIST Demand'!N189+'FR-16(7)(v)-12 DIST Energy'!N189+'FR-16(7)(v)-13 DIST Cust'!N189","v":31349},{"$f":"'FR-16(7)(v)-3 PROD Demand'!O189+'FR-16(7)(v)-4 PROD Energy'!O189+'FR-16(7)(v)-5 PROD Cust'!O189+'FR-16(7)(v)-7 TRANS Demand'!O189+'FR-16(7)(v)-8 TRANS Energy'!O189+'FR-16(7)(v)-9 TRANS Cust'!O189+'FR-16(7)(v)-11 DIST Demand'!O189+'FR-16(7)(v)-12 DIST Energy'!O189+'FR-16(7)(v)-13 DIST Cust'!O189","v":307450},{"$f":"'FR-16(7)(v)-3 PROD Demand'!P189+'FR-16(7)(v)-4 PROD Energy'!P189+'FR-16(7)(v)-5 PROD Cust'!P189+'FR-16(7)(v)-7 TRANS Demand'!P189+'FR-16(7)(v)-8 TRANS Energy'!P189+'FR-16(7)(v)-9 TRANS Cust'!P189+'FR-16(7)(v)-11 DIST Demand'!P189+'FR-16(7)(v)-12 DIST Energy'!P189+'FR-16(7)(v)-13 DIST Cust'!P189","v":9019},{"$f":"'FR-16(7)(v)-3 PROD Demand'!Q189+'FR-16(7)(v)-4 PROD Energy'!Q189+'FR-16(7)(v)-5 PROD Cust'!Q189+'FR-16(7)(v)-7 TRANS Demand'!Q189+'FR-16(7)(v)-8 TRANS Energy'!Q189+'FR-16(7)(v)-9 TRANS Cust'!Q189+'FR-16(7)(v)-11 DIST Demand'!Q189+'FR-16(7)(v)-12 DIST Energy'!Q189+'FR-16(7)(v)-13 DIST Cust'!Q189","v":800},{"$f":"SUM(G189:Q189)","v":7273485},{"$f":"F189-R189","v":0}]
[56,null,{"$f":"'FR-16(7)(v)-1 Functional'!C190","v":"PRODUCTION - ENERGY"},"K301",null,{"$f":"'FR-16(7)(v)-1 Functional'!F190","v":8498622},{"$f":"'FR-16(7)(v)-3 PROD Demand'!G190+'FR-16(7)(v)-4 PROD Energy'!G190+'FR-16(7)(v)-5 PROD Cust'!G190+'FR-16(7)(v)-7 TRANS Demand'!G190+'FR-16(7)(v)-8 TRANS Energy'!G190+'FR-16(7)(v)-9 TRANS Cust'!G190+'FR-16(7)(v)-11 DIST Demand'!G190+'FR-16(7)(v)-12 DIST Energy'!G190+'FR-16(7)(v)-13 DIST Cust'!G190","v":3207889},{"$f":"'FR-16(7)(v)-3 PROD Demand'!H190+'FR-16(7)(v)-4 PROD Energy'!H190+'FR-16(7)(v)-5 PROD Cust'!H190+'FR-16(7)(v)-7 TRANS Demand'!H190+'FR-16(7)(v)-8 TRANS Energy'!H190+'FR-16(7)(v)-9 TRANS Cust'!H190+'FR-16(7)(v)-11 DIST Demand'!H190+'FR-16(7)(v)-12 DIST Energy'!H190+'FR-16(7)(v)-13 DIST Cust'!H190","v":2288849},{"$f":"'FR-16(7)(v)-3 PROD Demand'!I190+'FR-16(7)(v)-4 PROD Energy'!I190+'FR-16(7)(v)-5 PROD Cust'!I190+'FR-16(7)(v)-7 TRANS Demand'!I190+'FR-16(7)(v)-8 TRANS Energy'!I190+'FR-16(7)(v)-9 TRANS Cust'!I190+'FR-16(7)(v)-11 DIST Demand'!I190+'FR-16(7)(v)-12 DIST Energy'!I190+'FR-16(7)(v)-13 DIST Cust'!I190","v":12833},{"$f":"'FR-16(7)(v)-3 PROD Demand'!J190+'FR-16(7)(v)-4 PROD Energy'!J190+'FR-16(7)(v)-5 PROD Cust'!J190+'FR-16(7)(v)-7 TRANS Demand'!J190+'FR-16(7)(v)-8 TRANS Energy'!J190+'FR-16(7)(v)-9 TRANS Cust'!J190+'FR-16(7)(v)-11 DIST Demand'!J190+'FR-16(7)(v)-12 DIST Energy'!J190+'FR-16(7)(v)-13 DIST Cust'!J190","v":36374},{"$f":"'FR-16(7)(v)-3 PROD Demand'!K190+'FR-16(7)(v)-4 PROD Energy'!K190+'FR-16(7)(v)-5 PROD Cust'!K190+'FR-16(7)(v)-7 TRANS Demand'!K190+'FR-16(7)(v)-8 TRANS Energy'!K190+'FR-16(7)(v)-9 TRANS Cust'!K190+'FR-16(7)(v)-11 DIST Demand'!K190+'FR-16(7)(v)-12 DIST Energy'!K190+'FR-16(7)(v)-13 DIST Cust'!K190","v":595},{"$f":"'FR-16(7)(v)-3 PROD Demand'!L190+'FR-16(7)(v)-4 PROD Energy'!L190+'FR-16(7)(v)-5 PROD Cust'!L190+'FR-16(7)(v)-7 TRANS Demand'!L190+'FR-16(7)(v)-8 TRANS Energy'!L190+'FR-16(7)(v)-9 TRANS Cust'!L190+'FR-16(7)(v)-11 DIST Demand'!L190+'FR-16(7)(v)-12 DIST Energy'!L190+'FR-16(7)(v)-13 DIST Cust'!L190","v":1402358},{"$f":"'FR-16(7)(v)-3 PROD Demand'!M190+'FR-16(7)(v)-4 PROD Energy'!M190+'FR-16(7)(v)-5 PROD Cust'!M190+'FR-16(7)(v)-7 TRANS Demand'!M190+'FR-16(7)(v)-8 TRANS Energy'!M190+'FR-16(7)(v)-9 TRANS Cust'!M190+'FR-16(7)(v)-11 DIST Demand'!M190+'FR-16(7)(v)-12 DIST Energy'!M190+'FR-16(7)(v)-13 DIST Cust'!M190","v":974027},{"$f":"'FR-16(7)(v)-3 PROD Demand'!N190+'FR-16(7)(v)-4 PROD Energy'!N190+'FR-16(7)(v)-5 PROD Cust'!N190+'FR-16(7)(v)-7 TRANS Demand'!N190+'FR-16(7)(v)-8 TRANS Energy'!N190+'FR-16(7)(v)-9 TRANS Cust'!N190+'FR-16(7)(v)-11 DIST Demand'!N190+'FR-16(7)(v)-12 DIST Energy'!N190+'FR-16(7)(v)-13 DIST Cust'!N190","v":45638},{"$f":"'FR-16(7)(v)-3 PROD Demand'!O190+'FR-16(7)(v)-4 PROD Energy'!O190+'FR-16(7)(v)-5 PROD Cust'!O190+'FR-16(7)(v)-7 TRANS Demand'!O190+'FR-16(7)(v)-8 TRANS Energy'!O190+'FR-16(7)(v)-9 TRANS Cust'!O190+'FR-16(7)(v)-11 DIST Demand'!O190+'FR-16(7)(v)-12 DIST Energy'!O190+'FR-16(7)(v)-13 DIST Cust'!O190","v":492070},{"$f":"'FR-16(7)(v)-3 PROD Demand'!P190+'FR-16(7)(v)-4 PROD Energy'!P190+'FR-16(7)(v)-5 PROD Cust'!P190+'FR-16(7)(v)-7 TRANS Demand'!P190+'FR-16(7)(v)-8 TRANS Energy'!P190+'FR-16(7)(v)-9 TRANS Cust'!P190+'FR-16(7)(v)-11 DIST Demand'!P190+'FR-16(7)(v)-12 DIST Energy'!P190+'FR-16(7)(v)-13 DIST Cust'!P190","v":37054},{"$f":"'FR-16(7)(v)-3 PROD Demand'!Q190+'FR-16(7)(v)-4 PROD Energy'!Q190+'FR-16(7)(v)-5 PROD Cust'!Q190+'FR-16(7)(v)-7 TRANS Demand'!Q190+'FR-16(7)(v)-8 TRANS Energy'!Q190+'FR-16(7)(v)-9 TRANS Cust'!Q190+'FR-16(7)(v)-11 DIST Demand'!Q190+'FR-16(7)(v)-12 DIST Energy'!Q190+'FR-16(7)(v)-13 DIST Cust'!Q190","v":935},8498622,0]
[57,null,{"$f":"'FR-16(7)(v)-1 Functional'!C191","v":"TRANSMISSION"},"K202",null,{"$f":"'FR-16(7)(v)-1 Functional'!F191","v":1149371},{"$f":"'FR-16(7)(v)-3 PROD Demand'!G191+'FR-16(7)(v)-4 PROD Energy'!G191+'FR-16(7)(v)-5 PROD Cust'!G191+'FR-16(7)(v)-7 TRANS Demand'!G191+'FR-16(7)(v)-8 TRANS Energy'!G191+'FR-16(7)(v)-9 TRANS Cust'!G191+'FR-16(7)(v)-11 DIST Demand'!G191+'FR-16(7)(v)-12 DIST Energy'!G191+'FR-16(7)(v)-13 DIST Cust'!G191","v":518115},{"$f":"'FR-16(7)(v)-3 PROD Demand'!H191+'FR-16(7)(v)-4 PROD Energy'!H191+'FR-16(7)(v)-5 PROD Cust'!H191+'FR-16(7)(v)-7 TRANS Demand'!H191+'FR-16(7)(v)-8 TRANS Energy'!H191+'FR-16(7)(v)-9 TRANS Cust'!H191+'FR-16(7)(v)-11 DIST Demand'!H191+'FR-16(7)(v)-12 DIST Energy'!H191+'FR-16(7)(v)-13 DIST Cust'!H191","v":311066},{"$f":"'FR-16(7)(v)-3 PROD Demand'!I191+'FR-16(7)(v)-4 PROD Energy'!I191+'FR-16(7)(v)-5 PROD Cust'!I191+'FR-16(7)(v)-7 TRANS Demand'!I191+'FR-16(7)(v)-8 TRANS Energy'!I191+'FR-16(7)(v)-9 TRANS Cust'!I191+'FR-16(7)(v)-11 DIST Demand'!I191+'FR-16(7)(v)-12 DIST Energy'!I191+'FR-16(7)(v)-13 DIST Cust'!I191","v":1494},{"$f":"'FR-16(7)(v)-3 PROD Demand'!J191+'FR-16(7)(v)-4 PROD Energy'!J191+'FR-16(7)(v)-5 PROD Cust'!J191+'FR-16(7)(v)-7 TRANS Demand'!J191+'FR-16(7)(v)-8 TRANS Energy'!J191+'FR-16(7)(v)-9 TRANS Cust'!J191+'FR-16(7)(v)-11 DIST Demand'!J191+'FR-16(7)(v)-12 DIST Energy'!J191+'FR-16(7)(v)-13 DIST Cust'!J191","v":5896},{"$f":"'FR-16(7)(v)-3 PROD Demand'!K191+'FR-16(7)(v)-4 PROD Energy'!K191+'FR-16(7)(v)-5 PROD Cust'!K191+'FR-16(7)(v)-7 TRANS Demand'!K191+'FR-16(7)(v)-8 TRANS Energy'!K191+'FR-16(7)(v)-9 TRANS Cust'!K191+'FR-16(7)(v)-11 DIST Demand'!K191+'FR-16(7)(v)-12 DIST Energy'!K191+'FR-16(7)(v)-13 DIST Cust'!K191","v":80},{"$f":"'FR-16(7)(v)-3 PROD Demand'!L191+'FR-16(7)(v)-4 PROD Energy'!L191+'FR-16(7)(v)-5 PROD Cust'!L191+'FR-16(7)(v)-7 TRANS Demand'!L191+'FR-16(7)(v)-8 TRANS Energy'!L191+'FR-16(7)(v)-9 TRANS Cust'!L191+'FR-16(7)(v)-11 DIST Demand'!L191+'FR-16(7)(v)-12 DIST Energy'!L191+'FR-16(7)(v)-13 DIST Cust'!L191","v":155096},{"$f":"'FR-16(7)(v)-3 PROD Demand'!M191+'FR-16(7)(v)-4 PROD Energy'!M191+'FR-16(7)(v)-5 PROD Cust'!M191+'FR-16(7)(v)-7 TRANS Demand'!M191+'FR-16(7)(v)-8 TRANS Energy'!M191+'FR-16(7)(v)-9 TRANS Cust'!M191+'FR-16(7)(v)-11 DIST Demand'!M191+'FR-16(7)(v)-12 DIST Energy'!M191+'FR-16(7)(v)-13 DIST Cust'!M191","v":102535},{"$f":"'FR-16(7)(v)-3 PROD Demand'!N191+'FR-16(7)(v)-4 PROD Energy'!N191+'FR-16(7)(v)-5 PROD Cust'!N191+'FR-16(7)(v)-7 TRANS Demand'!N191+'FR-16(7)(v)-8 TRANS Energy'!N191+'FR-16(7)(v)-9 TRANS Cust'!N191+'FR-16(7)(v)-11 DIST Demand'!N191+'FR-16(7)(v)-12 DIST Energy'!N191+'FR-16(7)(v)-13 DIST Cust'!N191","v":4954},{"$f":"'FR-16(7)(v)-3 PROD Demand'!O191+'FR-16(7)(v)-4 PROD Energy'!O191+'FR-16(7)(v)-5 PROD Cust'!O191+'FR-16(7)(v)-7 TRANS Demand'!O191+'FR-16(7)(v)-8 TRANS Energy'!O191+'FR-16(7)(v)-9 TRANS Cust'!O191+'FR-16(7)(v)-11 DIST Demand'!O191+'FR-16(7)(v)-12 DIST Energy'!O191+'FR-16(7)(v)-13 DIST Cust'!O191","v":48584},{"$f":"'FR-16(7)(v)-3 PROD Demand'!P191+'FR-16(7)(v)-4 PROD Energy'!P191+'FR-16(7)(v)-5 PROD Cust'!P191+'FR-16(7)(v)-7 TRANS Demand'!P191+'FR-16(7)(v)-8 TRANS Energy'!P191+'FR-16(7)(v)-9 TRANS Cust'!P191+'FR-16(7)(v)-11 DIST Demand'!P191+'FR-16(7)(v)-12 DIST Energy'!P191+'FR-16(7)(v)-13 DIST Cust'!P191","v":1425},{"$f":"'FR-16(7)(v)-3 PROD Demand'!Q191+'FR-16(7)(v)-4 PROD Energy'!Q191+'FR-16(7)(v)-5 PROD Cust'!Q191+'FR-16(7)(v)-7 TRANS Demand'!Q191+'FR-16(7)(v)-8 TRANS Energy'!Q191+'FR-16(7)(v)-9 TRANS Cust'!Q191+'FR-16(7)(v)-11 DIST Demand'!Q191+'FR-16(7)(v)-12 DIST Energy'!Q191+'FR-16(7)(v)-13 DIST Cust'!Q191","v":126},1149371,0]
[58,null,{"$f":"'FR-16(7)(v)-1 Functional'!C192","v":"DISTRIBUTION - DEMAND"},"K201",null,{"$f":"'FR-16(7)(v)-1 Functional'!F192","v":3860278},{"$f":"'FR-16(7)(v)-3 PROD Demand'!G192+'FR-16(7)(v)-4 PROD Energy'!G192+'FR-16(7)(v)-5 PROD Cust'!G192+'FR-16(7)(v)-7 TRANS Demand'!G192+'FR-16(7)(v)-8 TRANS Energy'!G192+'FR-16(7)(v)-9 TRANS Cust'!G192+'FR-16(7)(v)-11 DIST Demand'!G192+'FR-16(7)(v)-12 DIST Energy'!G192+'FR-16(7)(v)-13 DIST Cust'!G192","v":1740136},{"$f":"'FR-16(7)(v)-3 PROD Demand'!H192+'FR-16(7)(v)-4 PROD Energy'!H192+'FR-16(7)(v)-5 PROD Cust'!H192+'FR-16(7)(v)-7 TRANS Demand'!H192+'FR-16(7)(v)-8 TRANS Energy'!H192+'FR-16(7)(v)-9 TRANS Cust'!H192+'FR-16(7)(v)-11 DIST Demand'!H192+'FR-16(7)(v)-12 DIST Energy'!H192+'FR-16(7)(v)-13 DIST Cust'!H192","v":1044746},{"$f":"'FR-16(7)(v)-3 PROD Demand'!I192+'FR-16(7)(v)-4 PROD Energy'!I192+'FR-16(7)(v)-5 PROD Cust'!I192+'FR-16(7)(v)-7 TRANS Demand'!I192+'FR-16(7)(v)-8 TRANS Energy'!I192+'FR-16(7)(v)-9 TRANS Cust'!I192+'FR-16(7)(v)-11 DIST Demand'!I192+'FR-16(7)(v)-12 DIST Energy'!I192+'FR-16(7)(v)-13 DIST Cust'!I192","v":5018},{"$f":"'FR-16(7)(v)-3 PROD Demand'!J192+'FR-16(7)(v)-4 PROD Energy'!J192+'FR-16(7)(v)-5 PROD Cust'!J192+'FR-16(7)(v)-7 TRANS Demand'!J192+'FR-16(7)(v)-8 TRANS Energy'!J192+'FR-16(7)(v)-9 TRANS Cust'!J192+'FR-16(7)(v)-11 DIST Demand'!J192+'FR-16(7)(v)-12 DIST Energy'!J192+'FR-16(7)(v)-13 DIST Cust'!J192","v":19803},{"$f":"'FR-16(7)(v)-3 PROD Demand'!K192+'FR-16(7)(v)-4 PROD Energy'!K192+'FR-16(7)(v)-5 PROD Cust'!K192+'FR-16(7)(v)-7 TRANS Demand'!K192+'FR-16(7)(v)-8 TRANS Energy'!K192+'FR-16(7)(v)-9 TRANS Cust'!K192+'FR-16(7)(v)-11 DIST Demand'!K192+'FR-16(7)(v)-12 DIST Energy'!K192+'FR-16(7)(v)-13 DIST Cust'!K192","v":270},{"$f":"'FR-16(7)(v)-3 PROD Demand'!L192+'FR-16(7)(v)-4 PROD Energy'!L192+'FR-16(7)(v)-5 PROD Cust'!L192+'FR-16(7)(v)-7 TRANS Demand'!L192+'FR-16(7)(v)-8 TRANS Energy'!L192+'FR-16(7)(v)-9 TRANS Cust'!L192+'FR-16(7)(v)-11 DIST Demand'!L192+'FR-16(7)(v)-12 DIST Energy'!L192+'FR-16(7)(v)-13 DIST Cust'!L192","v":520906},{"$f":"'FR-16(7)(v)-3 PROD Demand'!M192+'FR-16(7)(v)-4 PROD Energy'!M192+'FR-16(7)(v)-5 PROD Cust'!M192+'FR-16(7)(v)-7 TRANS Demand'!M192+'FR-16(7)(v)-8 TRANS Energy'!M192+'FR-16(7)(v)-9 TRANS Cust'!M192+'FR-16(7)(v)-11 DIST Demand'!M192+'FR-16(7)(v)-12 DIST Energy'!M192+'FR-16(7)(v)-13 DIST Cust'!M192","v":344375},{"$f":"'FR-16(7)(v)-3 PROD Demand'!N192+'FR-16(7)(v)-4 PROD Energy'!N192+'FR-16(7)(v)-5 PROD Cust'!N192+'FR-16(7)(v)-7 TRANS Demand'!N192+'FR-16(7)(v)-8 TRANS Energy'!N192+'FR-16(7)(v)-9 TRANS Cust'!N192+'FR-16(7)(v)-11 DIST Demand'!N192+'FR-16(7)(v)-12 DIST Energy'!N192+'FR-16(7)(v)-13 DIST Cust'!N192","v":16638},{"$f":"'FR-16(7)(v)-3 PROD Demand'!O192+'FR-16(7)(v)-4 PROD Energy'!O192+'FR-16(7)(v)-5 PROD Cust'!O192+'FR-16(7)(v)-7 TRANS Demand'!O192+'FR-16(7)(v)-8 TRANS Energy'!O192+'FR-16(7)(v)-9 TRANS Cust'!O192+'FR-16(7)(v)-11 DIST Demand'!O192+'FR-16(7)(v)-12 DIST Energy'!O192+'FR-16(7)(v)-13 DIST Cust'!O192","v":163174},{"$f":"'FR-16(7)(v)-3 PROD Demand'!P192+'FR-16(7)(v)-4 PROD Energy'!P192+'FR-16(7)(v)-5 PROD Cust'!P192+'FR-16(7)(v)-7 TRANS Demand'!P192+'FR-16(7)(v)-8 TRANS Energy'!P192+'FR-16(7)(v)-9 TRANS Cust'!P192+'FR-16(7)(v)-11 DIST Demand'!P192+'FR-16(7)(v)-12 DIST Energy'!P192+'FR-16(7)(v)-13 DIST Cust'!P192","v":4787},{"$f":"'FR-16(7)(v)-3 PROD Demand'!Q192+'FR-16(7)(v)-4 PROD Energy'!Q192+'FR-16(7)(v)-5 PROD Cust'!Q192+'FR-16(7)(v)-7 TRANS Demand'!Q192+'FR-16(7)(v)-8 TRANS Energy'!Q192+'FR-16(7)(v)-9 TRANS Cust'!Q192+'FR-16(7)(v)-11 DIST Demand'!Q192+'FR-16(7)(v)-12 DIST Energy'!Q192+'FR-16(7)(v)-13 DIST Cust'!Q192","v":425},3860278,0]
[59,null,{"$f":"'FR-16(7)(v)-1 Functional'!C193","v":"DISTRIBUTION - CUSTOMER"},"K405",null,{"$f":"'FR-16(7)(v)-1 Functional'!F193","v":847378},{"$f":"'FR-16(7)(v)-3 PROD Demand'!G193+'FR-16(7)(v)-4 PROD Energy'!G193+'FR-16(7)(v)-5 PROD Cust'!G193+'FR-16(7)(v)-7 TRANS Demand'!G193+'FR-16(7)(v)-8 TRANS Energy'!G193+'FR-16(7)(v)-9 TRANS Cust'!G193+'FR-16(7)(v)-11 DIST Demand'!G193+'FR-16(7)(v)-12 DIST Energy'!G193+'FR-16(7)(v)-13 DIST Cust'!G193","v":764285},{"$f":"'FR-16(7)(v)-3 PROD Demand'!H193+'FR-16(7)(v)-4 PROD Energy'!H193+'FR-16(7)(v)-5 PROD Cust'!H193+'FR-16(7)(v)-7 TRANS Demand'!H193+'FR-16(7)(v)-8 TRANS Energy'!H193+'FR-16(7)(v)-9 TRANS Cust'!H193+'FR-16(7)(v)-11 DIST Demand'!H193+'FR-16(7)(v)-12 DIST Energy'!H193+'FR-16(7)(v)-13 DIST Cust'!H193","v":77196},{"$f":"'FR-16(7)(v)-3 PROD Demand'!I193+'FR-16(7)(v)-4 PROD Energy'!I193+'FR-16(7)(v)-5 PROD Cust'!I193+'FR-16(7)(v)-7 TRANS Demand'!I193+'FR-16(7)(v)-8 TRANS Energy'!I193+'FR-16(7)(v)-9 TRANS Cust'!I193+'FR-16(7)(v)-11 DIST Demand'!I193+'FR-16(7)(v)-12 DIST Energy'!I193+'FR-16(7)(v)-13 DIST Cust'!I193","v":1025},{"$f":"'FR-16(7)(v)-3 PROD Demand'!J193+'FR-16(7)(v)-4 PROD Energy'!J193+'FR-16(7)(v)-5 PROD Cust'!J193+'FR-16(7)(v)-7 TRANS Demand'!J193+'FR-16(7)(v)-8 TRANS Energy'!J193+'FR-16(7)(v)-9 TRANS Cust'!J193+'FR-16(7)(v)-11 DIST Demand'!J193+'FR-16(7)(v)-12 DIST Energy'!J193+'FR-16(7)(v)-13 DIST Cust'!J193","v":610},{"$f":"'FR-16(7)(v)-3 PROD Demand'!K193+'FR-16(7)(v)-4 PROD Energy'!K193+'FR-16(7)(v)-5 PROD Cust'!K193+'FR-16(7)(v)-7 TRANS Demand'!K193+'FR-16(7)(v)-8 TRANS Energy'!K193+'FR-16(7)(v)-9 TRANS Cust'!K193+'FR-16(7)(v)-11 DIST Demand'!K193+'FR-16(7)(v)-12 DIST Energy'!K193+'FR-16(7)(v)-13 DIST Cust'!K193","v":85},{"$f":"'FR-16(7)(v)-3 PROD Demand'!L193+'FR-16(7)(v)-4 PROD Energy'!L193+'FR-16(7)(v)-5 PROD Cust'!L193+'FR-16(7)(v)-7 TRANS Demand'!L193+'FR-16(7)(v)-8 TRANS Energy'!L193+'FR-16(7)(v)-9 TRANS Cust'!L193+'FR-16(7)(v)-11 DIST Demand'!L193+'FR-16(7)(v)-12 DIST Energy'!L193+'FR-16(7)(v)-13 DIST Cust'!L193","v":949},{"$f":"'FR-16(7)(v)-3 PROD Demand'!M193+'FR-16(7)(v)-4 PROD Energy'!M193+'FR-16(7)(v)-5 PROD Cust'!M193+'FR-16(7)(v)-7 TRANS Demand'!M193+'FR-16(7)(v)-8 TRANS Energy'!M193+'FR-16(7)(v)-9 TRANS Cust'!M193+'FR-16(7)(v)-11 DIST Demand'!M193+'FR-16(7)(v)-12 DIST Energy'!M193+'FR-16(7)(v)-13 DIST Cust'!M193","v":220},{"$f":"'FR-16(7)(v)-3 PROD Demand'!N193+'FR-16(7)(v)-4 PROD Energy'!N193+'FR-16(7)(v)-5 PROD Cust'!N193+'FR-16(7)(v)-7 TRANS Demand'!N193+'FR-16(7)(v)-8 TRANS Energy'!N193+'FR-16(7)(v)-9 TRANS Cust'!N193+'FR-16(7)(v)-11 DIST Demand'!N193+'FR-16(7)(v)-12 DIST Energy'!N193+'FR-16(7)(v)-13 DIST Cust'!N193","v":59},{"$f":"'FR-16(7)(v)-3 PROD Demand'!O193+'FR-16(7)(v)-4 PROD Energy'!O193+'FR-16(7)(v)-5 PROD Cust'!O193+'FR-16(7)(v)-7 TRANS Demand'!O193+'FR-16(7)(v)-8 TRANS Energy'!O193+'FR-16(7)(v)-9 TRANS Cust'!O193+'FR-16(7)(v)-11 DIST Demand'!O193+'FR-16(7)(v)-12 DIST Energy'!O193+'FR-16(7)(v)-13 DIST Cust'!O193","v":93},{"$f":"'FR-16(7)(v)-3 PROD Demand'!P193+'FR-16(7)(v)-4 PROD Energy'!P193+'FR-16(7)(v)-5 PROD Cust'!P193+'FR-16(7)(v)-7 TRANS Demand'!P193+'FR-16(7)(v)-8 TRANS Energy'!P193+'FR-16(7)(v)-9 TRANS Cust'!P193+'FR-16(7)(v)-11 DIST Demand'!P193+'FR-16(7)(v)-12 DIST Energy'!P193+'FR-16(7)(v)-13 DIST Cust'!P193","v":2788},{"$f":"'FR-16(7)(v)-3 PROD Demand'!Q193+'FR-16(7)(v)-4 PROD Energy'!Q193+'FR-16(7)(v)-5 PROD Cust'!Q193+'FR-16(7)(v)-7 TRANS Demand'!Q193+'FR-16(7)(v)-8 TRANS Energy'!Q193+'FR-16(7)(v)-9 TRANS Cust'!Q193+'FR-16(7)(v)-11 DIST Demand'!Q193+'FR-16(7)(v)-12 DIST Energy'!Q193+'FR-16(7)(v)-13 DIST Cust'!Q193","v":68},847378,0]
[60,null,{"$f":"'FR-16(7)(v)-1 Functional'!C194","v":"CUSTOMER ACCOUNTING"},"A308",null,{"$f":"'FR-16(7)(v)-1 Functional'!F194","v":2880440},{"$f":"'FR-16(7)(v)-3 PROD Demand'!G194+'FR-16(7)(v)-4 PROD Energy'!G194+'FR-16(7)(v)-5 PROD Cust'!G194+'FR-16(7)(v)-7 TRANS Demand'!G194+'FR-16(7)(v)-8 TRANS Energy'!G194+'FR-16(7)(v)-9 TRANS Cust'!G194+'FR-16(7)(v)-11 DIST Demand'!G194+'FR-16(7)(v)-12 DIST Energy'!G194+'FR-16(7)(v)-13 DIST Cust'!G194","v":2346684},{"$f":"'FR-16(7)(v)-3 PROD Demand'!H194+'FR-16(7)(v)-4 PROD Energy'!H194+'FR-16(7)(v)-5 PROD Cust'!H194+'FR-16(7)(v)-7 TRANS Demand'!H194+'FR-16(7)(v)-8 TRANS Energy'!H194+'FR-16(7)(v)-9 TRANS Cust'!H194+'FR-16(7)(v)-11 DIST Demand'!H194+'FR-16(7)(v)-12 DIST Energy'!H194+'FR-16(7)(v)-13 DIST Cust'!H194","v":501386},{"$f":"'FR-16(7)(v)-3 PROD Demand'!I194+'FR-16(7)(v)-4 PROD Energy'!I194+'FR-16(7)(v)-5 PROD Cust'!I194+'FR-16(7)(v)-7 TRANS Demand'!I194+'FR-16(7)(v)-8 TRANS Energy'!I194+'FR-16(7)(v)-9 TRANS Cust'!I194+'FR-16(7)(v)-11 DIST Demand'!I194+'FR-16(7)(v)-12 DIST Energy'!I194+'FR-16(7)(v)-13 DIST Cust'!I194","v":2910},{"$f":"'FR-16(7)(v)-3 PROD Demand'!J194+'FR-16(7)(v)-4 PROD Energy'!J194+'FR-16(7)(v)-5 PROD Cust'!J194+'FR-16(7)(v)-7 TRANS Demand'!J194+'FR-16(7)(v)-8 TRANS Energy'!J194+'FR-16(7)(v)-9 TRANS Cust'!J194+'FR-16(7)(v)-11 DIST Demand'!J194+'FR-16(7)(v)-12 DIST Energy'!J194+'FR-16(7)(v)-13 DIST Cust'!J194","v":3976},{"$f":"'FR-16(7)(v)-3 PROD Demand'!K194+'FR-16(7)(v)-4 PROD Energy'!K194+'FR-16(7)(v)-5 PROD Cust'!K194+'FR-16(7)(v)-7 TRANS Demand'!K194+'FR-16(7)(v)-8 TRANS Energy'!K194+'FR-16(7)(v)-9 TRANS Cust'!K194+'FR-16(7)(v)-11 DIST Demand'!K194+'FR-16(7)(v)-12 DIST Energy'!K194+'FR-16(7)(v)-13 DIST Cust'!K194","v":547},{"$f":"'FR-16(7)(v)-3 PROD Demand'!L194+'FR-16(7)(v)-4 PROD Energy'!L194+'FR-16(7)(v)-5 PROD Cust'!L194+'FR-16(7)(v)-7 TRANS Demand'!L194+'FR-16(7)(v)-8 TRANS Energy'!L194+'FR-16(7)(v)-9 TRANS Cust'!L194+'FR-16(7)(v)-11 DIST Demand'!L194+'FR-16(7)(v)-12 DIST Energy'!L194+'FR-16(7)(v)-13 DIST Cust'!L194","v":17641},{"$f":"'FR-16(7)(v)-3 PROD Demand'!M194+'FR-16(7)(v)-4 PROD Energy'!M194+'FR-16(7)(v)-5 PROD Cust'!M194+'FR-16(7)(v)-7 TRANS Demand'!M194+'FR-16(7)(v)-8 TRANS Energy'!M194+'FR-16(7)(v)-9 TRANS Cust'!M194+'FR-16(7)(v)-11 DIST Demand'!M194+'FR-16(7)(v)-12 DIST Energy'!M194+'FR-16(7)(v)-13 DIST Cust'!M194","v":-1455},{"$f":"'FR-16(7)(v)-3 PROD Demand'!N194+'FR-16(7)(v)-4 PROD Energy'!N194+'FR-16(7)(v)-5 PROD Cust'!N194+'FR-16(7)(v)-7 TRANS Demand'!N194+'FR-16(7)(v)-8 TRANS Energy'!N194+'FR-16(7)(v)-9 TRANS Cust'!N194+'FR-16(7)(v)-11 DIST Demand'!N194+'FR-16(7)(v)-12 DIST Energy'!N194+'FR-16(7)(v)-13 DIST Cust'!N194","v":691},{"$f":"'FR-16(7)(v)-3 PROD Demand'!O194+'FR-16(7)(v)-4 PROD Energy'!O194+'FR-16(7)(v)-5 PROD Cust'!O194+'FR-16(7)(v)-7 TRANS Demand'!O194+'FR-16(7)(v)-8 TRANS Energy'!O194+'FR-16(7)(v)-9 TRANS Cust'!O194+'FR-16(7)(v)-11 DIST Demand'!O194+'FR-16(7)(v)-12 DIST Energy'!O194+'FR-16(7)(v)-13 DIST Cust'!O194","v":-266},{"$f":"'FR-16(7)(v)-3 PROD Demand'!P194+'FR-16(7)(v)-4 PROD Energy'!P194+'FR-16(7)(v)-5 PROD Cust'!P194+'FR-16(7)(v)-7 TRANS Demand'!P194+'FR-16(7)(v)-8 TRANS Energy'!P194+'FR-16(7)(v)-9 TRANS Cust'!P194+'FR-16(7)(v)-11 DIST Demand'!P194+'FR-16(7)(v)-12 DIST Energy'!P194+'FR-16(7)(v)-13 DIST Cust'!P194","v":7894},{"$f":"'FR-16(7)(v)-3 PROD Demand'!Q194+'FR-16(7)(v)-4 PROD Energy'!Q194+'FR-16(7)(v)-5 PROD Cust'!Q194+'FR-16(7)(v)-7 TRANS Demand'!Q194+'FR-16(7)(v)-8 TRANS Energy'!Q194+'FR-16(7)(v)-9 TRANS Cust'!Q194+'FR-16(7)(v)-11 DIST Demand'!Q194+'FR-16(7)(v)-12 DIST Energy'!Q194+'FR-16(7)(v)-13 DIST Cust'!Q194","v":432},2880440,0]
[61,null,{"$f":"'FR-16(7)(v)-1 Functional'!C195","v":"CUSTOMER SERVICE & INFORMATION"},"A310",null,{"$f":"'FR-16(7)(v)-1 Functional'!F195","v":188435},{"$f":"'FR-16(7)(v)-3 PROD Demand'!G195+'FR-16(7)(v)-4 PROD Energy'!G195+'FR-16(7)(v)-5 PROD Cust'!G195+'FR-16(7)(v)-7 TRANS Demand'!G195+'FR-16(7)(v)-8 TRANS Energy'!G195+'FR-16(7)(v)-9 TRANS Cust'!G195+'FR-16(7)(v)-11 DIST Demand'!G195+'FR-16(7)(v)-12 DIST Energy'!G195+'FR-16(7)(v)-13 DIST Cust'!G195","v":169957},{"$f":"'FR-16(7)(v)-3 PROD Demand'!H195+'FR-16(7)(v)-4 PROD Energy'!H195+'FR-16(7)(v)-5 PROD Cust'!H195+'FR-16(7)(v)-7 TRANS Demand'!H195+'FR-16(7)(v)-8 TRANS Energy'!H195+'FR-16(7)(v)-9 TRANS Cust'!H195+'FR-16(7)(v)-11 DIST Demand'!H195+'FR-16(7)(v)-12 DIST Energy'!H195+'FR-16(7)(v)-13 DIST Cust'!H195","v":17166},{"$f":"'FR-16(7)(v)-3 PROD Demand'!I195+'FR-16(7)(v)-4 PROD Energy'!I195+'FR-16(7)(v)-5 PROD Cust'!I195+'FR-16(7)(v)-7 TRANS Demand'!I195+'FR-16(7)(v)-8 TRANS Energy'!I195+'FR-16(7)(v)-9 TRANS Cust'!I195+'FR-16(7)(v)-11 DIST Demand'!I195+'FR-16(7)(v)-12 DIST Energy'!I195+'FR-16(7)(v)-13 DIST Cust'!I195","v":228},{"$f":"'FR-16(7)(v)-3 PROD Demand'!J195+'FR-16(7)(v)-4 PROD Energy'!J195+'FR-16(7)(v)-5 PROD Cust'!J195+'FR-16(7)(v)-7 TRANS Demand'!J195+'FR-16(7)(v)-8 TRANS Energy'!J195+'FR-16(7)(v)-9 TRANS Cust'!J195+'FR-16(7)(v)-11 DIST Demand'!J195+'FR-16(7)(v)-12 DIST Energy'!J195+'FR-16(7)(v)-13 DIST Cust'!J195","v":136},{"$f":"'FR-16(7)(v)-3 PROD Demand'!K195+'FR-16(7)(v)-4 PROD Energy'!K195+'FR-16(7)(v)-5 PROD Cust'!K195+'FR-16(7)(v)-7 TRANS Demand'!K195+'FR-16(7)(v)-8 TRANS Energy'!K195+'FR-16(7)(v)-9 TRANS Cust'!K195+'FR-16(7)(v)-11 DIST Demand'!K195+'FR-16(7)(v)-12 DIST Energy'!K195+'FR-16(7)(v)-13 DIST Cust'!K195","v":19},{"$f":"'FR-16(7)(v)-3 PROD Demand'!L195+'FR-16(7)(v)-4 PROD Energy'!L195+'FR-16(7)(v)-5 PROD Cust'!L195+'FR-16(7)(v)-7 TRANS Demand'!L195+'FR-16(7)(v)-8 TRANS Energy'!L195+'FR-16(7)(v)-9 TRANS Cust'!L195+'FR-16(7)(v)-11 DIST Demand'!L195+'FR-16(7)(v)-12 DIST Energy'!L195+'FR-16(7)(v)-13 DIST Cust'!L195","v":211},{"$f":"'FR-16(7)(v)-3 PROD Demand'!M195+'FR-16(7)(v)-4 PROD Energy'!M195+'FR-16(7)(v)-5 PROD Cust'!M195+'FR-16(7)(v)-7 TRANS Demand'!M195+'FR-16(7)(v)-8 TRANS Energy'!M195+'FR-16(7)(v)-9 TRANS Cust'!M195+'FR-16(7)(v)-11 DIST Demand'!M195+'FR-16(7)(v)-12 DIST Energy'!M195+'FR-16(7)(v)-13 DIST Cust'!M195","v":49},{"$f":"'FR-16(7)(v)-3 PROD Demand'!N195+'FR-16(7)(v)-4 PROD Energy'!N195+'FR-16(7)(v)-5 PROD Cust'!N195+'FR-16(7)(v)-7 TRANS Demand'!N195+'FR-16(7)(v)-8 TRANS Energy'!N195+'FR-16(7)(v)-9 TRANS Cust'!N195+'FR-16(7)(v)-11 DIST Demand'!N195+'FR-16(7)(v)-12 DIST Energy'!N195+'FR-16(7)(v)-13 DIST Cust'!N195","v":13},{"$f":"'FR-16(7)(v)-3 PROD Demand'!O195+'FR-16(7)(v)-4 PROD Energy'!O195+'FR-16(7)(v)-5 PROD Cust'!O195+'FR-16(7)(v)-7 TRANS Demand'!O195+'FR-16(7)(v)-8 TRANS Energy'!O195+'FR-16(7)(v)-9 TRANS Cust'!O195+'FR-16(7)(v)-11 DIST Demand'!O195+'FR-16(7)(v)-12 DIST Energy'!O195+'FR-16(7)(v)-13 DIST Cust'!O195","v":21},{"$f":"'FR-16(7)(v)-3 PROD Demand'!P195+'FR-16(7)(v)-4 PROD Energy'!P195+'FR-16(7)(v)-5 PROD Cust'!P195+'FR-16(7)(v)-7 TRANS Demand'!P195+'FR-16(7)(v)-8 TRANS Energy'!P195+'FR-16(7)(v)-9 TRANS Cust'!P195+'FR-16(7)(v)-11 DIST Demand'!P195+'FR-16(7)(v)-12 DIST Energy'!P195+'FR-16(7)(v)-13 DIST Cust'!P195","v":620},{"$f":"'FR-16(7)(v)-3 PROD Demand'!Q195+'FR-16(7)(v)-4 PROD Energy'!Q195+'FR-16(7)(v)-5 PROD Cust'!Q195+'FR-16(7)(v)-7 TRANS Demand'!Q195+'FR-16(7)(v)-8 TRANS Energy'!Q195+'FR-16(7)(v)-9 TRANS Cust'!Q195+'FR-16(7)(v)-11 DIST Demand'!Q195+'FR-16(7)(v)-12 DIST Energy'!Q195+'FR-16(7)(v)-13 DIST Cust'!Q195","v":15},188435,0]
[62,null,{"$f":"'FR-16(7)(v)-1 Functional'!C196","v":"SALES"},"A312",null,{"$f":"'FR-16(7)(v)-1 Functional'!F196","v":0},{"$f":"'FR-16(7)(v)-3 PROD Demand'!G196+'FR-16(7)(v)-4 PROD Energy'!G196+'FR-16(7)(v)-5 PROD Cust'!G196+'FR-16(7)(v)-7 TRANS Demand'!G196+'FR-16(7)(v)-8 TRANS Energy'!G196+'FR-16(7)(v)-9 TRANS Cust'!G196+'FR-16(7)(v)-11 DIST Demand'!G196+'FR-16(7)(v)-12 DIST Energy'!G196+'FR-16(7)(v)-13 DIST Cust'!G196","v":0},{"$f":"'FR-16(7)(v)-3 PROD Demand'!H196+'FR-16(7)(v)-4 PROD Energy'!H196+'FR-16(7)(v)-5 PROD Cust'!H196+'FR-16(7)(v)-7 TRANS Demand'!H196+'FR-16(7)(v)-8 TRANS Energy'!H196+'FR-16(7)(v)-9 TRANS Cust'!H196+'FR-16(7)(v)-11 DIST Demand'!H196+'FR-16(7)(v)-12 DIST Energy'!H196+'FR-16(7)(v)-13 DIST Cust'!H196","v":0},{"$f":"'FR-16(7)(v)-3 PROD Demand'!I196+'FR-16(7)(v)-4 PROD Energy'!I196+'FR-16(7)(v)-5 PROD Cust'!I196+'FR-16(7)(v)-7 TRANS Demand'!I196+'FR-16(7)(v)-8 TRANS Energy'!I196+'FR-16(7)(v)-9 TRANS Cust'!I196+'FR-16(7)(v)-11 DIST Demand'!I196+'FR-16(7)(v)-12 DIST Energy'!I196+'FR-16(7)(v)-13 DIST Cust'!I196","v":0},{"$f":"'FR-16(7)(v)-3 PROD Demand'!J196+'FR-16(7)(v)-4 PROD Energy'!J196+'FR-16(7)(v)-5 PROD Cust'!J196+'FR-16(7)(v)-7 TRANS Demand'!J196+'FR-16(7)(v)-8 TRANS Energy'!J196+'FR-16(7)(v)-9 TRANS Cust'!J196+'FR-16(7)(v)-11 DIST Demand'!J196+'FR-16(7)(v)-12 DIST Energy'!J196+'FR-16(7)(v)-13 DIST Cust'!J196","v":0},{"$f":"'FR-16(7)(v)-3 PROD Demand'!K196+'FR-16(7)(v)-4 PROD Energy'!K196+'FR-16(7)(v)-5 PROD Cust'!K196+'FR-16(7)(v)-7 TRANS Demand'!K196+'FR-16(7)(v)-8 TRANS Energy'!K196+'FR-16(7)(v)-9 TRANS Cust'!K196+'FR-16(7)(v)-11 DIST Demand'!K196+'FR-16(7)(v)-12 DIST Energy'!K196+'FR-16(7)(v)-13 DIST Cust'!K196","v":0},{"$f":"'FR-16(7)(v)-3 PROD Demand'!L196+'FR-16(7)(v)-4 PROD Energy'!L196+'FR-16(7)(v)-5 PROD Cust'!L196+'FR-16(7)(v)-7 TRANS Demand'!L196+'FR-16(7)(v)-8 TRANS Energy'!L196+'FR-16(7)(v)-9 TRANS Cust'!L196+'FR-16(7)(v)-11 DIST Demand'!L196+'FR-16(7)(v)-12 DIST Energy'!L196+'FR-16(7)(v)-13 DIST Cust'!L196","v":0},{"$f":"'FR-16(7)(v)-3 PROD Demand'!M196+'FR-16(7)(v)-4 PROD Energy'!M196+'FR-16(7)(v)-5 PROD Cust'!M196+'FR-16(7)(v)-7 TRANS Demand'!M196+'FR-16(7)(v)-8 TRANS Energy'!M196+'FR-16(7)(v)-9 TRANS Cust'!M196+'FR-16(7)(v)-11 DIST Demand'!M196+'FR-16(7)(v)-12 DIST Energy'!M196+'FR-16(7)(v)-13 DIST Cust'!M196","v":0},{"$f":"'FR-16(7)(v)-3 PROD Demand'!N196+'FR-16(7)(v)-4 PROD Energy'!N196+'FR-16(7)(v)-5 PROD Cust'!N196+'FR-16(7)(v)-7 TRANS Demand'!N196+'FR-16(7)(v)-8 TRANS Energy'!N196+'FR-16(7)(v)-9 TRANS Cust'!N196+'FR-16(7)(v)-11 DIST Demand'!N196+'FR-16(7)(v)-12 DIST Energy'!N196+'FR-16(7)(v)-13 DIST Cust'!N196","v":0},{"$f":"'FR-16(7)(v)-3 PROD Demand'!O196+'FR-16(7)(v)-4 PROD Energy'!O196+'FR-16(7)(v)-5 PROD Cust'!O196+'FR-16(7)(v)-7 TRANS Demand'!O196+'FR-16(7)(v)-8 TRANS Energy'!O196+'FR-16(7)(v)-9 TRANS Cust'!O196+'FR-16(7)(v)-11 DIST Demand'!O196+'FR-16(7)(v)-12 DIST Energy'!O196+'FR-16(7)(v)-13 DIST Cust'!O196","v":0},{"$f":"'FR-16(7)(v)-3 PROD Demand'!P196+'FR-16(7)(v)-4 PROD Energy'!P196+'FR-16(7)(v)-5 PROD Cust'!P196+'FR-16(7)(v)-7 TRANS Demand'!P196+'FR-16(7)(v)-8 TRANS Energy'!P196+'FR-16(7)(v)-9 TRANS Cust'!P196+'FR-16(7)(v)-11 DIST Demand'!P196+'FR-16(7)(v)-12 DIST Energy'!P196+'FR-16(7)(v)-13 DIST Cust'!P196","v":0},{"$f":"'FR-16(7)(v)-3 PROD Demand'!Q196+'FR-16(7)(v)-4 PROD Energy'!Q196+'FR-16(7)(v)-5 PROD Cust'!Q196+'FR-16(7)(v)-7 TRANS Demand'!Q196+'FR-16(7)(v)-8 TRANS Energy'!Q196+'FR-16(7)(v)-9 TRANS Cust'!Q196+'FR-16(7)(v)-11 DIST Demand'!Q196+'FR-16(7)(v)-12 DIST Energy'!Q196+'FR-16(7)(v)-13 DIST Cust'!Q196","v":0},0,0]
[63,null,{"$f":"'FR-16(7)(v)-1 Functional'!C197","v":"ADJUSTMENT"},"A315",null,{"$f":"'FR-16(7)(v)-1 Functional'!F197","v":18280},{"$f":"'FR-16(7)(v)-3 PROD Demand'!G197+'FR-16(7)(v)-4 PROD Energy'!G197+'FR-16(7)(v)-5 PROD Cust'!G197+'FR-16(7)(v)-7 TRANS Demand'!G197+'FR-16(7)(v)-8 TRANS Energy'!G197+'FR-16(7)(v)-9 TRANS Cust'!G197+'FR-16(7)(v)-11 DIST Demand'!G197+'FR-16(7)(v)-12 DIST Energy'!G197+'FR-16(7)(v)-13 DIST Cust'!G197","v":13221},{"$f":"'FR-16(7)(v)-3 PROD Demand'!H197+'FR-16(7)(v)-4 PROD Energy'!H197+'FR-16(7)(v)-5 PROD Cust'!H197+'FR-16(7)(v)-7 TRANS Demand'!H197+'FR-16(7)(v)-8 TRANS Energy'!H197+'FR-16(7)(v)-9 TRANS Cust'!H197+'FR-16(7)(v)-11 DIST Demand'!H197+'FR-16(7)(v)-12 DIST Energy'!H197+'FR-16(7)(v)-13 DIST Cust'!H197","v":2433},{"$f":"'FR-16(7)(v)-3 PROD Demand'!I197+'FR-16(7)(v)-4 PROD Energy'!I197+'FR-16(7)(v)-5 PROD Cust'!I197+'FR-16(7)(v)-7 TRANS Demand'!I197+'FR-16(7)(v)-8 TRANS Energy'!I197+'FR-16(7)(v)-9 TRANS Cust'!I197+'FR-16(7)(v)-11 DIST Demand'!I197+'FR-16(7)(v)-12 DIST Energy'!I197+'FR-16(7)(v)-13 DIST Cust'!I197","v":13},{"$f":"'FR-16(7)(v)-3 PROD Demand'!J197+'FR-16(7)(v)-4 PROD Energy'!J197+'FR-16(7)(v)-5 PROD Cust'!J197+'FR-16(7)(v)-7 TRANS Demand'!J197+'FR-16(7)(v)-8 TRANS Energy'!J197+'FR-16(7)(v)-9 TRANS Cust'!J197+'FR-16(7)(v)-11 DIST Demand'!J197+'FR-16(7)(v)-12 DIST Energy'!J197+'FR-16(7)(v)-13 DIST Cust'!J197","v":36},{"$f":"'FR-16(7)(v)-3 PROD Demand'!K197+'FR-16(7)(v)-4 PROD Energy'!K197+'FR-16(7)(v)-5 PROD Cust'!K197+'FR-16(7)(v)-7 TRANS Demand'!K197+'FR-16(7)(v)-8 TRANS Energy'!K197+'FR-16(7)(v)-9 TRANS Cust'!K197+'FR-16(7)(v)-11 DIST Demand'!K197+'FR-16(7)(v)-12 DIST Energy'!K197+'FR-16(7)(v)-13 DIST Cust'!K197","v":1},{"$f":"'FR-16(7)(v)-3 PROD Demand'!L197+'FR-16(7)(v)-4 PROD Energy'!L197+'FR-16(7)(v)-5 PROD Cust'!L197+'FR-16(7)(v)-7 TRANS Demand'!L197+'FR-16(7)(v)-8 TRANS Energy'!L197+'FR-16(7)(v)-9 TRANS Cust'!L197+'FR-16(7)(v)-11 DIST Demand'!L197+'FR-16(7)(v)-12 DIST Energy'!L197+'FR-16(7)(v)-13 DIST Cust'!L197","v":1192},{"$f":"'FR-16(7)(v)-3 PROD Demand'!M197+'FR-16(7)(v)-4 PROD Energy'!M197+'FR-16(7)(v)-5 PROD Cust'!M197+'FR-16(7)(v)-7 TRANS Demand'!M197+'FR-16(7)(v)-8 TRANS Energy'!M197+'FR-16(7)(v)-9 TRANS Cust'!M197+'FR-16(7)(v)-11 DIST Demand'!M197+'FR-16(7)(v)-12 DIST Energy'!M197+'FR-16(7)(v)-13 DIST Cust'!M197","v":814},{"$f":"'FR-16(7)(v)-3 PROD Demand'!N197+'FR-16(7)(v)-4 PROD Energy'!N197+'FR-16(7)(v)-5 PROD Cust'!N197+'FR-16(7)(v)-7 TRANS Demand'!N197+'FR-16(7)(v)-8 TRANS Energy'!N197+'FR-16(7)(v)-9 TRANS Cust'!N197+'FR-16(7)(v)-11 DIST Demand'!N197+'FR-16(7)(v)-12 DIST Energy'!N197+'FR-16(7)(v)-13 DIST Cust'!N197","v":39},{"$f":"'FR-16(7)(v)-3 PROD Demand'!O197+'FR-16(7)(v)-4 PROD Energy'!O197+'FR-16(7)(v)-5 PROD Cust'!O197+'FR-16(7)(v)-7 TRANS Demand'!O197+'FR-16(7)(v)-8 TRANS Energy'!O197+'FR-16(7)(v)-9 TRANS Cust'!O197+'FR-16(7)(v)-11 DIST Demand'!O197+'FR-16(7)(v)-12 DIST Energy'!O197+'FR-16(7)(v)-13 DIST Cust'!O197","v":393},{"$f":"'FR-16(7)(v)-3 PROD Demand'!P197+'FR-16(7)(v)-4 PROD Energy'!P197+'FR-16(7)(v)-5 PROD Cust'!P197+'FR-16(7)(v)-7 TRANS Demand'!P197+'FR-16(7)(v)-8 TRANS Energy'!P197+'FR-16(7)(v)-9 TRANS Cust'!P197+'FR-16(7)(v)-11 DIST Demand'!P197+'FR-16(7)(v)-12 DIST Energy'!P197+'FR-16(7)(v)-13 DIST Cust'!P197","v":137},{"$f":"'FR-16(7)(v)-3 PROD Demand'!Q197+'FR-16(7)(v)-4 PROD Energy'!Q197+'FR-16(7)(v)-5 PROD Cust'!Q197+'FR-16(7)(v)-7 TRANS Demand'!Q197+'FR-16(7)(v)-8 TRANS Energy'!Q197+'FR-16(7)(v)-9 TRANS Cust'!Q197+'FR-16(7)(v)-11 DIST Demand'!Q197+'FR-16(7)(v)-12 DIST Energy'!Q197+'FR-16(7)(v)-13 DIST Cust'!Q197","v":1},18280,0]
[64,null,{"$f":"'FR-16(7)(v)-1 Functional'!C198","v":"  COMMON & OTHER PLANT IN SERVICE"},null,null,{"$f":"SUM(F189:F197)","v":24716289},{"$f":"SUM(G188:G197)","v":12039028},6211338,32977,{"$f":"SUM(J188:J197)","v":104144},2106,3079837,2069433,99381,1011519,63724,2802,24716289,0]
[65]
[66,"TOTAL DEPRECIATION RESERVE",null,null,null,{"$f":"F198+F186+F171+F145+F139","v":795436883},380312223,206121793,1018710,{"$f":"J198+J186+J171+J145+J139","v":3935495},58030,100888198,66655247,3242856,27423884,5694343,86104,795436883,0]
[]
[{"$f":"co_name","v":"DUKE ENERGY KENTUCKY, INC."},null,null,null,null,null,null,null,null,null,null,null,null,null,null,null,null,{"$f":"R1","v":"FR-16(7)(v)-14"}]
[{"$f":"$A$2","v":"TOTAL CLASS ALLOCATED - ELECTRIC COST OF SERVICE"},null,null,null,null,null,null,null,null,null,null,null,null,null,null,null,null,{"$f":"R2","v":"WITNESS RESPONSIBLE:"}]
[{"$f":"case_name","v":"CASE NO: 2019-00271"},null,null,null,null,null,null,null,null,null,null,null,null,null,null,null,null,{"$f":"Witness","v":"JAMES E. ZIOLKOWSKI"}]
[{"$f":"data_filing","v":"DATA: 12 MONTHS ACTUAL  & 0 MONTHS ESTIMATED"},null,null,null,null,null,null,null,null,null,null,null,null,null,null,null,null,{"$f":"\"PAGE \"&Pages2-11&\" OF \"&Pages2","v":"PAGE 4 OF 15"}]
[{"$f":"type","v":"TYPE OF FILING: \"X\" ORIGINAL   UPDATED    REVISED  "}]
[]
[null,null,null,null,null,{"$f":"F$7","v":"TOTAL"},null,{"$f":"H$7","v":"DS"},{"$f":"I$7","v":"GSFL"},{"$f":"J$7","v":"EH"},{"$f":"K$7","v":"SP"},"DT SEC","DT PRI","DP","TT",null,"OTHER"]
["LINE",null,null,null,null,{"$f":"F$8","v":"CLASS"},{"$f":"G$8","v":"RS"},{"$f":"H$8","v":"SECONDARY"},{"$f":"I$8","v":"SECONDARY"},{"$f":"J$8","v":"SECONDARY"},{"$f":"K$8","v":"SECONDARY"},"SECONDARY","PRIMARY","PRIMARY","TRANSMISSION","LT","WATER",{"$f":"R8","v":"TOTAL"},"ALL"]
["NO.",{"$f":"\"NET ELECTRIC PLANT\"","v":"NET ELECTRIC PLANT"},null,"ALLO",null,{"$f":"F$9","v":"ALLOCATED"},{"$f":"G$9","v":"RESIDENTIAL"},{"$f":"H$9","v":"DISTRIBUTION"},{"$f":"I$9","v":"DISTRIBUTION"},{"$f":"J$9","v":"DISTRIBUTION"},{"$f":"K$9","v":"DISTRIBUTION"},"DISTRIBUTION","DISTRIBUTION","DISTRIBUTION","TIME OF DAY","LIGHTING","PUMPING",{"$f":"R9","v":"AT ISSUE"},"OTHER"]
[null,null,"Schedule 4",null,null,null,{"$f":"G$10","v":3},{"$f":"H$10","v":4},{"$f":"I$10","v":5},{"$f":"J$10","v":6},{"$f":"K$10","v":7},8,9,10,11,12,13,null," "]
[1,"PRODUCTION PLANT"]
[2,null,"PRODUCTION STEAM",null,null,{"$f":"F59-F136","v":434180250},{"$f":"G59-G136","v":195719773},{"$f":"H59-H136","v":117506543},{"$f":"I59-I136","v":564435},{"$f":"J59-J136","v":2227345},30393,58588283,38733220,1871317,18352799,538383,{"$f":"Q59-Q136","v":47759},{"$f":"R59-R136","v":434180250},{"$f":"F213-R213","v":0}]
[3,null,"PRODUCTION OTHER",null,null,{"$f":"F60-F137","v":189230196},85301188,51213260,246000,{"$f":"J60-J137","v":970751},13246,25534723,16881225,815582,7998760,234645,20816,189230196,{"$f":"F214-R214","v":0}]
[4,null,"ADJUSTMENT",null,null,{"$f":"F61-F138","v":-1553366},-700226,-420403,-2019,{"$f":"J61-J138","v":-7969},-109,-209611,-138576,-6695,-65661,-1926,-171,-1553366,{"$f":"F215-R215","v":0}]
[5,null,{"$f":"'FR-16(7)(v)-1 Functional'!C216","v":"  NET PRODUCTION PLANT"},null,null,{"$f":"SUM(F213:F215)","v":621857080},280320735,168299400,808416,{"$f":"SUM(J213:J215)","v":3190127},43530,83913395,55475869,2680204,26285898,771102,68404,621857080,0]
[6]
[7,"TRANSMISSION PLANT"]
[8,null,"MAIN STEP-UP TRANSFORMERS",null,null,{"$f":"F65-F142","v":0},0,0,0,{"$f":"J65-J142","v":0},0,0,0,0,0,0,0,0,{"$f":"F219-R219","v":0}]
[9,null,"OTHER TRANSMISSION",null,null,{"$f":"F66-F143","v":52412677},23626587,14184966,68136,{"$f":"J66-J143","v":268877},3669,7072566,4675735,225899,2215484,64992,5766,52412677,{"$f":"F220-R220","v":0}]
[10,null,"ADJUSTMENT",null,null,{"$f":"F67-F144","v":70176},31635,18992,91,{"$f":"J67-J144","v":360},5,9470,6260,302,2966,87,8,70176,{"$f":"F221-R221","v":0}]
[11,null,{"$f":"'FR-16(7)(v)-1 Functional'!C222","v":"    NET TRANSMISSION PLANT"},null,null,{"$f":"SUM(F218:F221)","v":52482853},23658222,14203958,68227,{"$f":"SUM(J218:J221)","v":269237},3674,7082036,4681995,226201,2218450,65079,5774,52482853,0]
[12]
[13,"NET PROD & TRANS PLANT",null,null,null,{"$f":"F70-F147","v":674339933},{"$f":"G70-G147","v":303978957},{"$f":"H70-H147","v":182503358},{"$f":"I70-I147","v":876643},{"$f":"J70-J147","v":3459364},47204,90995431,60157864,2906405,28504348,836181,{"$f":"Q70-Q147","v":74178},{"$f":"R70-R147","v":674339933},{"$f":"F224-R224","v":0}]
[14]
[15,"DISTRIBUTION PLANT"]
[16,null,{"$f":"'FR-16(7)(v)-1 Functional'!C227","v":"SUBSTATIONS"},null,null,{"$f":"F73-F150","v":72492541},34030174,20097107,93516,{"$f":"J73-J150","v":440754},5074,10263494,6759929,339265,0,455254,7974,72492541,{"$f":"F227-R227","v":0}]
[17,null,{"$f":"'FR-16(7)(v)-1 Functional'!C228","v":"POLES, TOWERS  & FIXTURES - PRIMARY - DEMAND"},null,null,{"$f":"F74-F151","v":17906511},{"$f":"G74-G151","v":8405851},{"$f":"H74-H151","v":4964222},{"$f":"I74-I151","v":23100},{"$f":"J74-J151","v":108872},1254,2535204,1669782,83803,0,112453,{"$f":"Q74-Q151","v":1970},{"$f":"R74-R151","v":17906511},{"$f":"F228-R228","v":0}]
[18,null,{"$f":"'FR-16(7)(v)-1 Functional'!C229","v":"POLES, TOWERS  & FIXTURES - PRIMARY - CUSTOMER"},null,null,{"$f":"F75-F152","v":8194722},{"$f":"G75-G152","v":7392048},746539,9916,5900,820,9178,2131,573,0,26961,656,8194722,{"$f":"F229-R229","v":0}]
[19,null,{"$f":"'FR-16(7)(v)-1 Functional'!C230","v":"POLES, TOWERS  & FIXTURES - SECONDARY - DEMAND"},null,null,6848047,{"$f":"G76-G153","v":3214677},1898484,8834,41637,480,969546,638581,32049,0,43005,754,6848047,0]
[20,null,{"$f":"'FR-16(7)(v)-1 Functional'!C231","v":"POLES, TOWERS  & FIXTURES - SECONDARY - CUSTOMER"},null,null,1852364,{"$f":"G77-G154","v":1670924},168750,2241,1334,185,2075,482,130,0,6095,148,1852364,0]
[21,null,{"$f":"'FR-16(7)(v)-1 Functional'!C232","v":"CONDUCTORS - OVERHEAD / PRIMARY - DEMAND"},null,null,52792275,{"$f":"G78-G155","v":24782278},14635602,68102,320977,3696,7474330,4922879,247068,0,331535,5808,52792275,0]
[22,null,{"$f":"'FR-16(7)(v)-1 Functional'!C233","v":"CONDUCTORS - OVERHEAD / PRIMARY - CUSTOMER"},null,null,11528511,{"$f":"G79-G156","v":10399294},1050248,13949,8300,1153,12912,2997,807,0,37929,922,11528511,0]
[23,null,{"$f":"'FR-16(7)(v)-1 Functional'!C234","v":"CONDUCTORS - OVERHEAD / SECONDARY - DEMAND"},null,null,21496395,{"$f":"G80-G157","v":10091052},5959446,27731,130699,1505,3043459,2004539,100603,0,134997,2364,21496395,0]
[24,null,{"$f":"'FR-16(7)(v)-1 Functional'!C235","v":"CONDUCTORS - OVERHEAD / SECONDARY - CUSTOMER"},null,null,4775475,{"$f":"G81-G158","v":4307720},435045,5778,3438,477,5348,1241,334,0,15712,382,4775475,0]
[25,null,{"$f":"'FR-16(7)(v)-1 Functional'!C236","v":"CONDUCTORS - UNDERGROUND / PRIMARY - DEMAND"},null,null,39534982,{"$f":"G82-G159","v":18558906},10960284,51000,240373,2768,5597363,3686637,185023,0,248279,4349,39534982,0]
[26,null,{"$f":"'FR-16(7)(v)-1 Functional'!C237","v":"CONDUCTORS - UNDERGROUND / PRIMARY - CUSTOMER"},null,null,12277154,{"$f":"G83-G160","v":11074609},1118448,14855,8840,1227,13750,3192,859,0,40392,982,12277154,0]
[27,null,{"$f":"'FR-16(7)(v)-1 Functional'!C238","v":"CONDUCTORS - UNDERGROUND / SECONDARY - DEMAND"},null,null,6772908,{"$f":"G84-G161","v":3179407},1877653,8737,41179,474,958908,631574,31697,0,42534,745,6772908,0]
[28,null,{"$f":"'FR-16(7)(v)-1 Functional'!C239","v":"CONDUCTORS - UNDERGROUND / SECONDARY - CUSTOMER"},null,null,3839217,{"$f":"G85-G162","v":3463166},349752,4646,2764,384,4300,998,269,0,12631,307,3839217,0]
[29,null,"TRANSFORMERS DEMAND RELATED",null,null,26609950,{"$f":"G86-G163","v":12491510},7377076,34327,161789,1863,3767436,2481378,124534,0,167110,2927,26609950,{"$f":"F240-R240","v":0}]
[30,null,"TRANSFORMERS CUSTOMER RELATED",null,null,8647270,{"$f":"G87-G164","v":7800270},787766,10463,6226,865,9685,2248,606,0,28449,692,8647270,0]
[31,null,{"$f":"'FR-16(7)(v)-1 Functional'!C242","v":"SERVICES"},null,null,{"$f":"F88-F165","v":9567117},8547739,862667,11481,{"$f":"J88-J165","v":27362},957,61900,14734,4018,4401,31093,765,9567117,0]
[32,null,{"$f":"'FR-16(7)(v)-1 Functional'!C243","v":"METERS"},null,null,{"$f":"F89-F166","v":17608114},14233168,3221052,0,{"$f":"J89-J166","v":24650},3874,114629,0,4225,4050,0,2466,17608114,0]
[33,null,{"$f":"'FR-16(7)(v)-1 Functional'!C244","v":"STREET LIGHTS"},null,null,{"$f":"F90-F167","v":1522363},0,0,0,{"$f":"J90-J167","v":0},0,0,0,0,0,1522363,0,1522363,0]
[34,null,{"$f":"'FR-16(7)(v)-1 Functional'!C245","v":"ADJUSTMENT  "},null,null,{"$f":"F91-F168","v":-467132},-266136,-107788,-559,{"$f":"J91-J168","v":-2227},-39,-48847,-31986,-1622,-15,-7864,-49,-467132,0]
[35,null,{"$f":"'FR-16(7)(v)-1 Functional'!C246","v":"CONSTRUCTION NOT CLASSIFIED"},null,null,{"$f":"F92-F169","v":93162104},53076912,21496458,111476,{"$f":"J92-J169","v":444105},7764,9741793,6379185,323374,2983,1568304,9750,93162104,0]
[36,null,{"$f":"'FR-16(7)(v)-1 Functional'!C247","v":"RWIP"},null,null,17119217,8036273,4745961,22084,104085,1198,2423739,1596367,80118,0,107509,1883,17119217,0]
[37,null,{"$f":"'FR-16(7)(v)-1 Functional'!C248","v":"  NET DISTRIBUTION PLANT"},null,null,{"$f":"SUM(F226:F247)","v":434080105},{"$f":"SUM(G226:G247)","v":244489842},{"$f":"SUM(H226:H247)","v":102644772},521677,2121057,35979,46960202,30766888,1557733,11419,4924741,45795,434080105,0]
[38]
[39,"NET PTD PLANT",null,null,null,{"$f":"F96-F173","v":486562958},268148064,116848730,589904,{"$f":"J96-J173","v":2390294},39653,54042238,35448883,1783934,2229869,4989820,51569,486562958,{"$f":"S248+S222+S216","v":0}]
[40,"NET TRANS & DIST PLANT",null,null,null,{"$f":"F97-F174","v":1108420038},548468799,285148130,1398320,{"$f":"J97-J174","v":5580421},83183,137955633,90924752,4464138,28515767,5760922,119973,1108420038,{"$f":"S248+S222","v":0}]
[41]
[42,"GENERAL & INTANGIBLE PLANT"]
[43,null,{"$f":"'FR-16(7)(v)-1 Functional'!C254","v":"PRODUCTION - DEMAND"},null,null,{"$f":"F100-F177","v":11320984},5103275,3063911,14717,{"$f":"J100-J177","v":58077},792,1527653,1009945,48793,478538,14038,1245,11320984,{"$f":"F254-R254","v":0}]
[44,null,{"$f":"'FR-16(7)(v)-1 Functional'!C255","v":"PRODUCTION - ENERGY"},null,null,{"$f":"F101-F178","v":13227874},4992993,3562531,19974,{"$f":"J101-J178","v":56616},926,2182731,1516046,71034,765894,57674,1455,13227874,{"$f":"F255-R255","v":0}]
[45,null,{"$f":"'FR-16(7)(v)-1 Functional'!C256","v":"TRANSMISSION"},null,null,{"$f":"F102-F179","v":1788965},806432,484166,2325,{"$f":"J102-J179","v":9177},125,241403,159593,7711,75619,2218,196,1788965,0]
[46,null,{"$f":"'FR-16(7)(v)-1 Functional'!C257","v":"DISTRIBUTION - DEMAND"},null,null,{"$f":"F103-F180","v":6008418},2708475,1626118,7811,30823,421,810776,536011,25896,253976,7450,661,6008418,0]
[47,null,{"$f":"'FR-16(7)(v)-1 Functional'!C258","v":"DISTRIBUTION - CUSTOMER"},null,null,{"$f":"F104-F181","v":1318922},1189587,120154,1596,949,132,1478,343,92,145,4340,106,1318922,{"$f":"F258-R258","v":0}]
[48,null,{"$f":"'FR-16(7)(v)-1 Functional'!C259","v":"CUSTOMER ACCOUNTING"},null,null,{"$f":"F105-F182","v":4483326},3652551,780392,4529,{"$f":"J105-J182","v":6189},852,27458,-2265,1075,-415,12287,673,4483326,0]
[49,null,{"$f":"'FR-16(7)(v)-1 Functional'!C260","v":"CUSTOMER SERVICE & INFORMATION"},null,null,{"$f":"F106-F183","v":293294},264531,26719,355,{"$f":"J106-J183","v":212},29,329,77,20,33,965,{"$f":"Q106-Q183","v":24},{"$f":"R106-R183","v":293294},0]
[50,null,{"$f":"'FR-16(7)(v)-1 Functional'!C261","v":"SALES"},null,null,0,0,0,0,{"$f":"J107-J184","v":0},0,0,0,0,0,0,{"$f":"Q107-Q184","v":0},{"$f":"R107-R184","v":0},{"$f":"F261-R261","v":0}]
[51,null,{"$f":"'FR-16(7)(v)-1 Functional'!C262","v":"ADJUSTMENT"},null,null,{"$f":"F108-F185","v":-325445},-235345,-43311,-242,{"$f":"J108-J185","v":-638},-18,-21233,-14494,-692,-7004,-2447,-21,-325445,{"$f":"F262-R262","v":0}]
[52,null,{"$f":"'FR-16(7)(v)-1 Functional'!C263","v":"  NET GENERAL & INTANG PLANT"},null,null,{"$f":"SUM(F253:F262)","v":38116338},18482499,9620680,51065,{"$f":"SUM(J253:J262)","v":161405},3259,4770595,3205256,153929,1566786,96525,4339,38116338,0]
[53]
[54,"COMMON & OTHER PLANT"]
[55,null,{"$f":"'FR-16(7)(v)-1 Functional'!C266","v":"PRODUCTION - DEMAND"},null,null,{"$f":"F112-F189","v":2180707},983019,590187,2834,{"$f":"J112-J189","v":11187},153,294265,194540,9399,92179,2704,240,2180707,{"$f":"F266-R266","v":0}]
[56,null,{"$f":"'FR-16(7)(v)-1 Functional'!C267","v":"PRODUCTION - ENERGY"},null,null,{"$f":"F113-F190","v":2548022},961778,686233,3847,{"$f":"J113-J190","v":10906},178,420449,292029,13682,147531,11109,280,2548022,{"$f":"F267-R267","v":0}]
[57,null,{"$f":"'FR-16(7)(v)-1 Functional'!C268","v":"TRANSMISSION"},null,null,{"$f":"F114-F191","v":344600},155338,93262,448,{"$f":"J114-J191","v":1768},25,46500,30742,1485,14566,428,38,344600,0]
[58,null,{"$f":"'FR-16(7)(v)-1 Functional'!C269","v":"DISTRIBUTION - DEMAND"},null,null,{"$f":"F115-F192","v":1157373},521720,313231,1505,5938,81,156176,103250,4988,48922,1435,127,1157373,0]
[59,null,{"$f":"'FR-16(7)(v)-1 Functional'!C270","v":"DISTRIBUTION - CUSTOMER"},null,null,{"$f":"F116-F193","v":254057},229143,23145,308,183,25,285,66,18,28,836,20,254057,{"$f":"F270-R270","v":0}]
[60,null,{"$f":"'FR-16(7)(v)-1 Functional'!C271","v":"CUSTOMER ACCOUNTING"},null,null,{"$f":"F117-F194","v":863602},703573,150323,873,{"$f":"J117-J194","v":1192},165,5288,-436,207,-80,2367,130,863602,0]
[61,null,{"$f":"'FR-16(7)(v)-1 Functional'!C272","v":"CUSTOMER SERVICE & INFORMATION"},null,null,{"$f":"F118-F195","v":56495},50956,5147,68,{"$f":"J118-J195","v":40},5,63,15,4,6,186,{"$f":"Q118-Q195","v":5},{"$f":"R118-R195","v":56495},0]
[62,null,{"$f":"'FR-16(7)(v)-1 Functional'!C273","v":"SALES"},null,null,0,0,0,0,{"$f":"J119-J196","v":0},0,0,0,0,0,0,{"$f":"Q119-Q196","v":0},{"$f":"R119-R196","v":0},{"$f":"F273-R273","v":0}]
[63,null,{"$f":"'FR-16(7)(v)-1 Functional'!C274","v":"ADJUSTMENT"},null,null,{"$f":"F120-F197","v":-18280},-13221,-2433,-13,{"$f":"J120-J197","v":-36},-1,-1192,-814,-39,-393,-137,-1,-18280,{"$f":"F274-R274","v":0}]
[64,null,"  COMMON & OTHER PLANT IN SERVICE",null,null,{"$f":"SUM(F265:F274)","v":7386576},3592306,1859095,9870,{"$f":"SUM(J265:J274)","v":31178},631,921834,619392,29744,302759,18928,839,7386576,0]
[65]
[66,null,{"$f":"'FR-16(7)(v)-1 Functional'!C277","v":"NET ELECTRIC PLANT IN SERVICE"},null,null,{"$f":"F275+F263+F248+F222+F216","v":1153922952},{"$f":"G275+G263+G248+G222+G216","v":570543604},{"$f":"H275+H263+H248+H222+H216","v":296627905},{"$f":"I275+I263+I248+I222+I216","v":1459255},{"$f":"J275+J263+J248+J222+J216","v":5773004},87073,143648062,94749400,4647811,30385312,5876375,{"$f":"Q275+Q263+Q248+Q222+Q216","v":125151},{"$f":"R275+R263+R248+R222+R216","v":1153922952},{"$f":"S275+S263+S248+S222+S216","v":0}]
[]
[{"$f":"co_name","v":"DUKE ENERGY KENTUCKY, INC."},null,null,null,null,null,null,null,null,null,null,null,null,null,null,null,null,{"$f":"R1","v":"FR-16(7)(v)-14"}]
[{"$f":"$A$2","v":"TOTAL CLASS ALLOCATED - ELECTRIC COST OF SERVICE"},null,null,null,null,null,null,null,null,null,null,null,null,null,null,null,null,{"$f":"R2","v":"WITNESS RESPONSIBLE:"}]
[{"$f":"case_name","v":"CASE NO: 2019-00271"},null,null,null,null,null,null,null,null,null,null,null,null,null,null,null,null,{"$f":"Witness","v":"JAMES E. ZIOLKOWSKI"}]
[{"$f":"data_filing","v":"DATA: 12 MONTHS ACTUAL  & 0 MONTHS ESTIMATED"},null,null,null,null,null,null,null,null,null,null,null,null,null,null,null,null,{"$f":"\"PAGE \"&Pages2-10&\" OF \"&Pages2","v":"PAGE 5 OF 15"}]
[{"$f":"type","v":"TYPE OF FILING: \"X\" ORIGINAL   UPDATED    REVISED  "}]
[]
[null,null,null,null,null,{"$f":"F$7","v":"TOTAL"},null,{"$f":"H$7","v":"DS"},{"$f":"I$7","v":"GSFL"},{"$f":"J$7","v":"EH"},{"$f":"K$7","v":"SP"},"DT SEC","DT PRI","DP","TT",null,"OTHER"]
["LINE",null,null,null,null,{"$f":"F$8","v":"CLASS"},{"$f":"G$8","v":"RS"},{"$f":"H$8","v":"SECONDARY"},{"$f":"I$8","v":"SECONDARY"},{"$f":"J$8","v":"SECONDARY"},{"$f":"K$8","v":"SECONDARY"},"SECONDARY","PRIMARY","PRIMARY","TRANSMISSION","LT","WATER",{"$f":"R8","v":"TOTAL"},"ALL"]
["NO.","SUBTRACTIVE RATE BASE ADJUSTMENTS",null,"ALLO",null,{"$f":"F$9","v":"ALLOCATED"},{"$f":"G$9","v":"RESIDENTIAL"},{"$f":"H$9","v":"DISTRIBUTION"},{"$f":"I$9","v":"DISTRIBUTION"},{"$f":"J$9","v":"DISTRIBUTION"},{"$f":"K$9","v":"DISTRIBUTION"},"DISTRIBUTION","DISTRIBUTION","DISTRIBUTION","TIME OF DAY","LIGHTING","PUMPING",{"$f":"R9","v":"AT ISSUE"},"OTHER"]
[null,null,"Schedule 5",null,null,null,{"$f":"G$10","v":3},{"$f":"H$10","v":4},{"$f":"I$10","v":5},{"$f":"J$10","v":6},{"$f":"K$10","v":7},8,9,10,11,12,13,null," "]
[1,"RATE BASE ADJUSTMENTS"]
[2,"ACCUMULATED DEFERRED INCOME TAXES"]
[3," ACCUM DEF INC TAXES (282)"]
[4,null,{"$f":"'FR-16(7)(v)-1 Functional'!C292","v":"LIBERALIZED DEPRECIATION"},{"$f":"'FR-16(7)(v)-1 Functional'!D292","v":"NP29"}," ",{"$f":"'FR-16(7)(v)-1 Functional'!F292","v":68331279},{"$f":"'FR-16(7)(v)-3 PROD Demand'!G292+'FR-16(7)(v)-4 PROD Energy'!G292+'FR-16(7)(v)-5 PROD Cust'!G292+'FR-16(7)(v)-7 TRANS Demand'!G292+'FR-16(7)(v)-8 TRANS Energy'!G292+'FR-16(7)(v)-9 TRANS Cust'!G292+'FR-16(7)(v)-11 DIST Demand'!G292+'FR-16(7)(v)-12 DIST Energy'!G292+'FR-16(7)(v)-13 DIST Cust'!G292","v":33758992},{"$f":"'FR-16(7)(v)-3 PROD Demand'!H292+'FR-16(7)(v)-4 PROD Energy'!H292+'FR-16(7)(v)-5 PROD Cust'!H292+'FR-16(7)(v)-7 TRANS Demand'!H292+'FR-16(7)(v)-8 TRANS Energy'!H292+'FR-16(7)(v)-9 TRANS Cust'!H292+'FR-16(7)(v)-11 DIST Demand'!H292+'FR-16(7)(v)-12 DIST Energy'!H292+'FR-16(7)(v)-13 DIST Cust'!H292","v":17576737},{"$f":"'FR-16(7)(v)-3 PROD Demand'!I292+'FR-16(7)(v)-4 PROD Energy'!I292+'FR-16(7)(v)-5 PROD Cust'!I292+'FR-16(7)(v)-7 TRANS Demand'!I292+'FR-16(7)(v)-8 TRANS Energy'!I292+'FR-16(7)(v)-9 TRANS Cust'!I292+'FR-16(7)(v)-11 DIST Demand'!I292+'FR-16(7)(v)-12 DIST Energy'!I292+'FR-16(7)(v)-13 DIST Cust'!I292","v":86406},{"$f":"'FR-16(7)(v)-3 PROD Demand'!J292+'FR-16(7)(v)-4 PROD Energy'!J292+'FR-16(7)(v)-5 PROD Cust'!J292+'FR-16(7)(v)-7 TRANS Demand'!J292+'FR-16(7)(v)-8 TRANS Energy'!J292+'FR-16(7)(v)-9 TRANS Cust'!J292+'FR-16(7)(v)-11 DIST Demand'!J292+'FR-16(7)(v)-12 DIST Energy'!J292+'FR-16(7)(v)-13 DIST Cust'!J292","v":342160},{"$f":"'FR-16(7)(v)-3 PROD Demand'!K292+'FR-16(7)(v)-4 PROD Energy'!K292+'FR-16(7)(v)-5 PROD Cust'!K292+'FR-16(7)(v)-7 TRANS Demand'!K292+'FR-16(7)(v)-8 TRANS Energy'!K292+'FR-16(7)(v)-9 TRANS Cust'!K292+'FR-16(7)(v)-11 DIST Demand'!K292+'FR-16(7)(v)-12 DIST Energy'!K292+'FR-16(7)(v)-13 DIST Cust'!K292","v":5176},{"$f":"'FR-16(7)(v)-3 PROD Demand'!L292+'FR-16(7)(v)-4 PROD Energy'!L292+'FR-16(7)(v)-5 PROD Cust'!L292+'FR-16(7)(v)-7 TRANS Demand'!L292+'FR-16(7)(v)-8 TRANS Energy'!L292+'FR-16(7)(v)-9 TRANS Cust'!L292+'FR-16(7)(v)-11 DIST Demand'!L292+'FR-16(7)(v)-12 DIST Energy'!L292+'FR-16(7)(v)-13 DIST Cust'!L292","v":8515914},{"$f":"'FR-16(7)(v)-3 PROD Demand'!M292+'FR-16(7)(v)-4 PROD Energy'!M292+'FR-16(7)(v)-5 PROD Cust'!M292+'FR-16(7)(v)-7 TRANS Demand'!M292+'FR-16(7)(v)-8 TRANS Energy'!M292+'FR-16(7)(v)-9 TRANS Cust'!M292+'FR-16(7)(v)-11 DIST Demand'!M292+'FR-16(7)(v)-12 DIST Energy'!M292+'FR-16(7)(v)-13 DIST Cust'!M292","v":5616961},{"$f":"'FR-16(7)(v)-3 PROD Demand'!N292+'FR-16(7)(v)-4 PROD Energy'!N292+'FR-16(7)(v)-5 PROD Cust'!N292+'FR-16(7)(v)-7 TRANS Demand'!N292+'FR-16(7)(v)-8 TRANS Energy'!N292+'FR-16(7)(v)-9 TRANS Cust'!N292+'FR-16(7)(v)-11 DIST Demand'!N292+'FR-16(7)(v)-12 DIST Energy'!N292+'FR-16(7)(v)-13 DIST Cust'!N292","v":275492},{"$f":"'FR-16(7)(v)-3 PROD Demand'!O292+'FR-16(7)(v)-4 PROD Energy'!O292+'FR-16(7)(v)-5 PROD Cust'!O292+'FR-16(7)(v)-7 TRANS Demand'!O292+'FR-16(7)(v)-8 TRANS Energy'!O292+'FR-16(7)(v)-9 TRANS Cust'!O292+'FR-16(7)(v)-11 DIST Demand'!O292+'FR-16(7)(v)-12 DIST Energy'!O292+'FR-16(7)(v)-13 DIST Cust'!O292","v":1799445},{"$f":"'FR-16(7)(v)-3 PROD Demand'!P292+'FR-16(7)(v)-4 PROD Energy'!P292+'FR-16(7)(v)-5 PROD Cust'!P292+'FR-16(7)(v)-7 TRANS Demand'!P292+'FR-16(7)(v)-8 TRANS Energy'!P292+'FR-16(7)(v)-9 TRANS Cust'!P292+'FR-16(7)(v)-11 DIST Demand'!P292+'FR-16(7)(v)-12 DIST Energy'!P292+'FR-16(7)(v)-13 DIST Cust'!P292","v":346610},{"$f":"'FR-16(7)(v)-3 PROD Demand'!Q292+'FR-16(7)(v)-4 PROD Energy'!Q292+'FR-16(7)(v)-5 PROD Cust'!Q292+'FR-16(7)(v)-7 TRANS Demand'!Q292+'FR-16(7)(v)-8 TRANS Energy'!Q292+'FR-16(7)(v)-9 TRANS Cust'!Q292+'FR-16(7)(v)-11 DIST Demand'!Q292+'FR-16(7)(v)-12 DIST Energy'!Q292+'FR-16(7)(v)-13 DIST Cust'!Q292","v":7386},{"$f":"SUM(G292:Q292)","v":68331279},{"$f":"F292-R292","v":0}]
[5,null,{"$f":"'FR-16(7)(v)-1 Functional'!C293","v":"LEASED METERS"},{"$f":"'FR-16(7)(v)-1 Functional'!D293","v":"NP29"}," ",{"$f":"'FR-16(7)(v)-1 Functional'!F293","v":1549912},{"$f":"'FR-16(7)(v)-3 PROD Demand'!G293+'FR-16(7)(v)-4 PROD Energy'!G293+'FR-16(7)(v)-5 PROD Cust'!G293+'FR-16(7)(v)-7 TRANS Demand'!G293+'FR-16(7)(v)-8 TRANS Energy'!G293+'FR-16(7)(v)-9 TRANS Cust'!G293+'FR-16(7)(v)-11 DIST Demand'!G293+'FR-16(7)(v)-12 DIST Energy'!G293+'FR-16(7)(v)-13 DIST Cust'!G293","v":765734},{"$f":"'FR-16(7)(v)-3 PROD Demand'!H293+'FR-16(7)(v)-4 PROD Energy'!H293+'FR-16(7)(v)-5 PROD Cust'!H293+'FR-16(7)(v)-7 TRANS Demand'!H293+'FR-16(7)(v)-8 TRANS Energy'!H293+'FR-16(7)(v)-9 TRANS Cust'!H293+'FR-16(7)(v)-11 DIST Demand'!H293+'FR-16(7)(v)-12 DIST Energy'!H293+'FR-16(7)(v)-13 DIST Cust'!H293","v":398680},{"$f":"'FR-16(7)(v)-3 PROD Demand'!I293+'FR-16(7)(v)-4 PROD Energy'!I293+'FR-16(7)(v)-5 PROD Cust'!I293+'FR-16(7)(v)-7 TRANS Demand'!I293+'FR-16(7)(v)-8 TRANS Energy'!I293+'FR-16(7)(v)-9 TRANS Cust'!I293+'FR-16(7)(v)-11 DIST Demand'!I293+'FR-16(7)(v)-12 DIST Energy'!I293+'FR-16(7)(v)-13 DIST Cust'!I293","v":1960},{"$f":"'FR-16(7)(v)-3 PROD Demand'!J293+'FR-16(7)(v)-4 PROD Energy'!J293+'FR-16(7)(v)-5 PROD Cust'!J293+'FR-16(7)(v)-7 TRANS Demand'!J293+'FR-16(7)(v)-8 TRANS Energy'!J293+'FR-16(7)(v)-9 TRANS Cust'!J293+'FR-16(7)(v)-11 DIST Demand'!J293+'FR-16(7)(v)-12 DIST Energy'!J293+'FR-16(7)(v)-13 DIST Cust'!J293","v":7761},{"$f":"'FR-16(7)(v)-3 PROD Demand'!K293+'FR-16(7)(v)-4 PROD Energy'!K293+'FR-16(7)(v)-5 PROD Cust'!K293+'FR-16(7)(v)-7 TRANS Demand'!K293+'FR-16(7)(v)-8 TRANS Energy'!K293+'FR-16(7)(v)-9 TRANS Cust'!K293+'FR-16(7)(v)-11 DIST Demand'!K293+'FR-16(7)(v)-12 DIST Energy'!K293+'FR-16(7)(v)-13 DIST Cust'!K293","v":116},{"$f":"'FR-16(7)(v)-3 PROD Demand'!L293+'FR-16(7)(v)-4 PROD Energy'!L293+'FR-16(7)(v)-5 PROD Cust'!L293+'FR-16(7)(v)-7 TRANS Demand'!L293+'FR-16(7)(v)-8 TRANS Energy'!L293+'FR-16(7)(v)-9 TRANS Cust'!L293+'FR-16(7)(v)-11 DIST Demand'!L293+'FR-16(7)(v)-12 DIST Energy'!L293+'FR-16(7)(v)-13 DIST Cust'!L293","v":193161},{"$f":"'FR-16(7)(v)-3 PROD Demand'!M293+'FR-16(7)(v)-4 PROD Energy'!M293+'FR-16(7)(v)-5 PROD Cust'!M293+'FR-16(7)(v)-7 TRANS Demand'!M293+'FR-16(7)(v)-8 TRANS Energy'!M293+'FR-16(7)(v)-9 TRANS Cust'!M293+'FR-16(7)(v)-11 DIST Demand'!M293+'FR-16(7)(v)-12 DIST Energy'!M293+'FR-16(7)(v)-13 DIST Cust'!M293","v":127406},{"$f":"'FR-16(7)(v)-3 PROD Demand'!N293+'FR-16(7)(v)-4 PROD Energy'!N293+'FR-16(7)(v)-5 PROD Cust'!N293+'FR-16(7)(v)-7 TRANS Demand'!N293+'FR-16(7)(v)-8 TRANS Energy'!N293+'FR-16(7)(v)-9 TRANS Cust'!N293+'FR-16(7)(v)-11 DIST Demand'!N293+'FR-16(7)(v)-12 DIST Energy'!N293+'FR-16(7)(v)-13 DIST Cust'!N293","v":6249},{"$f":"'FR-16(7)(v)-3 PROD Demand'!O293+'FR-16(7)(v)-4 PROD Energy'!O293+'FR-16(7)(v)-5 PROD Cust'!O293+'FR-16(7)(v)-7 TRANS Demand'!O293+'FR-16(7)(v)-8 TRANS Energy'!O293+'FR-16(7)(v)-9 TRANS Cust'!O293+'FR-16(7)(v)-11 DIST Demand'!O293+'FR-16(7)(v)-12 DIST Energy'!O293+'FR-16(7)(v)-13 DIST Cust'!O293","v":40816},{"$f":"'FR-16(7)(v)-3 PROD Demand'!P293+'FR-16(7)(v)-4 PROD Energy'!P293+'FR-16(7)(v)-5 PROD Cust'!P293+'FR-16(7)(v)-7 TRANS Demand'!P293+'FR-16(7)(v)-8 TRANS Energy'!P293+'FR-16(7)(v)-9 TRANS Cust'!P293+'FR-16(7)(v)-11 DIST Demand'!P293+'FR-16(7)(v)-12 DIST Energy'!P293+'FR-16(7)(v)-13 DIST Cust'!P293","v":7862},{"$f":"'FR-16(7)(v)-3 PROD Demand'!Q293+'FR-16(7)(v)-4 PROD Energy'!Q293+'FR-16(7)(v)-5 PROD Cust'!Q293+'FR-16(7)(v)-7 TRANS Demand'!Q293+'FR-16(7)(v)-8 TRANS Energy'!Q293+'FR-16(7)(v)-9 TRANS Cust'!Q293+'FR-16(7)(v)-11 DIST Demand'!Q293+'FR-16(7)(v)-12 DIST Energy'!Q293+'FR-16(7)(v)-13 DIST Cust'!Q293","v":167},1549912,0]
[6,null,{"$f":"'FR-16(7)(v)-1 Functional'!C294","v":"CONTRIB AID CONSTR"},{"$f":"'FR-16(7)(v)-1 Functional'!D294","v":"D249"}," ",{"$f":"'FR-16(7)(v)-1 Functional'!F294","v":0},{"$f":"'FR-16(7)(v)-3 PROD Demand'!G294+'FR-16(7)(v)-4 PROD Energy'!G294+'FR-16(7)(v)-5 PROD Cust'!G294+'FR-16(7)(v)-7 TRANS Demand'!G294+'FR-16(7)(v)-8 TRANS Energy'!G294+'FR-16(7)(v)-9 TRANS Cust'!G294+'FR-16(7)(v)-11 DIST Demand'!G294+'FR-16(7)(v)-12 DIST Energy'!G294+'FR-16(7)(v)-13 DIST Cust'!G294","v":0},{"$f":"'FR-16(7)(v)-3 PROD Demand'!H294+'FR-16(7)(v)-4 PROD Energy'!H294+'FR-16(7)(v)-5 PROD Cust'!H294+'FR-16(7)(v)-7 TRANS Demand'!H294+'FR-16(7)(v)-8 TRANS Energy'!H294+'FR-16(7)(v)-9 TRANS Cust'!H294+'FR-16(7)(v)-11 DIST Demand'!H294+'FR-16(7)(v)-12 DIST Energy'!H294+'FR-16(7)(v)-13 DIST Cust'!H294","v":0},{"$f":"'FR-16(7)(v)-3 PROD Demand'!I294+'FR-16(7)(v)-4 PROD Energy'!I294+'FR-16(7)(v)-5 PROD Cust'!I294+'FR-16(7)(v)-7 TRANS Demand'!I294+'FR-16(7)(v)-8 TRANS Energy'!I294+'FR-16(7)(v)-9 TRANS Cust'!I294+'FR-16(7)(v)-11 DIST Demand'!I294+'FR-16(7)(v)-12 DIST Energy'!I294+'FR-16(7)(v)-13 DIST Cust'!I294","v":0},{"$f":"'FR-16(7)(v)-3 PROD Demand'!J294+'FR-16(7)(v)-4 PROD Energy'!J294+'FR-16(7)(v)-5 PROD Cust'!J294+'FR-16(7)(v)-7 TRANS Demand'!J294+'FR-16(7)(v)-8 TRANS Energy'!J294+'FR-16(7)(v)-9 TRANS Cust'!J294+'FR-16(7)(v)-11 DIST Demand'!J294+'FR-16(7)(v)-12 DIST Energy'!J294+'FR-16(7)(v)-13 DIST Cust'!J294","v":0},{"$f":"'FR-16(7)(v)-3 PROD Demand'!K294+'FR-16(7)(v)-4 PROD Energy'!K294+'FR-16(7)(v)-5 PROD Cust'!K294+'FR-16(7)(v)-7 TRANS Demand'!K294+'FR-16(7)(v)-8 TRANS Energy'!K294+'FR-16(7)(v)-9 TRANS Cust'!K294+'FR-16(7)(v)-11 DIST Demand'!K294+'FR-16(7)(v)-12 DIST Energy'!K294+'FR-16(7)(v)-13 DIST Cust'!K294","v":0},{"$f":"'FR-16(7)(v)-3 PROD Demand'!L294+'FR-16(7)(v)-4 PROD Energy'!L294+'FR-16(7)(v)-5 PROD Cust'!L294+'FR-16(7)(v)-7 TRANS Demand'!L294+'FR-16(7)(v)-8 TRANS Energy'!L294+'FR-16(7)(v)-9 TRANS Cust'!L294+'FR-16(7)(v)-11 DIST Demand'!L294+'FR-16(7)(v)-12 DIST Energy'!L294+'FR-16(7)(v)-13 DIST Cust'!L294","v":0},{"$f":"'FR-16(7)(v)-3 PROD Demand'!M294+'FR-16(7)(v)-4 PROD Energy'!M294+'FR-16(7)(v)-5 PROD Cust'!M294+'FR-16(7)(v)-7 TRANS Demand'!M294+'FR-16(7)(v)-8 TRANS Energy'!M294+'FR-16(7)(v)-9 TRANS Cust'!M294+'FR-16(7)(v)-11 DIST Demand'!M294+'FR-16(7)(v)-12 DIST Energy'!M294+'FR-16(7)(v)-13 DIST Cust'!M294","v":0},{"$f":"'FR-16(7)(v)-3 PROD Demand'!N294+'FR-16(7)(v)-4 PROD Energy'!N294+'FR-16(7)(v)-5 PROD Cust'!N294+'FR-16(7)(v)-7 TRANS Demand'!N294+'FR-16(7)(v)-8 TRANS Energy'!N294+'FR-16(7)(v)-9 TRANS Cust'!N294+'FR-16(7)(v)-11 DIST Demand'!N294+'FR-16(7)(v)-12 DIST Energy'!N294+'FR-16(7)(v)-13 DIST Cust'!N294","v":0},{"$f":"'FR-16(7)(v)-3 PROD Demand'!O294+'FR-16(7)(v)-4 PROD Energy'!O294+'FR-16(7)(v)-5 PROD Cust'!O294+'FR-16(7)(v)-7 TRANS Demand'!O294+'FR-16(7)(v)-8 TRANS Energy'!O294+'FR-16(7)(v)-9 TRANS Cust'!O294+'FR-16(7)(v)-11 DIST Demand'!O294+'FR-16(7)(v)-12 DIST Energy'!O294+'FR-16(7)(v)-13 DIST Cust'!O294","v":0},{"$f":"'FR-16(7)(v)-3 PROD Demand'!P294+'FR-16(7)(v)-4 PROD Energy'!P294+'FR-16(7)(v)-5 PROD Cust'!P294+'FR-16(7)(v)-7 TRANS Demand'!P294+'FR-16(7)(v)-8 TRANS Energy'!P294+'FR-16(7)(v)-9 TRANS Cust'!P294+'FR-16(7)(v)-11 DIST Demand'!P294+'FR-16(7)(v)-12 DIST Energy'!P294+'FR-16(7)(v)-13 DIST Cust'!P294","v":0},{"$f":"'FR-16(7)(v)-3 PROD Demand'!Q294+'FR-16(7)(v)-4 PROD Energy'!Q294+'FR-16(7)(v)-5 PROD Cust'!Q294+'FR-16(7)(v)-7 TRANS Demand'!Q294+'FR-16(7)(v)-8 TRANS Energy'!Q294+'FR-16(7)(v)-9 TRANS Cust'!Q294+'FR-16(7)(v)-11 DIST Demand'!Q294+'FR-16(7)(v)-12 DIST Energy'!Q294+'FR-16(7)(v)-13 DIST Cust'!Q294","v":0},0,0]
[7,null,{"$f":"'FR-16(7)(v)-1 Functional'!C295","v":"TAX INTEREST, EXPENSING, DEPR."},{"$f":"'FR-16(7)(v)-1 Functional'!D295","v":"NP29"}," ",{"$f":"'FR-16(7)(v)-1 Functional'!F295","v":68227370},{"$f":"'FR-16(7)(v)-3 PROD Demand'!G295+'FR-16(7)(v)-4 PROD Energy'!G295+'FR-16(7)(v)-5 PROD Cust'!G295+'FR-16(7)(v)-7 TRANS Demand'!G295+'FR-16(7)(v)-8 TRANS Energy'!G295+'FR-16(7)(v)-9 TRANS Cust'!G295+'FR-16(7)(v)-11 DIST Demand'!G295+'FR-16(7)(v)-12 DIST Energy'!G295+'FR-16(7)(v)-13 DIST Cust'!G295","v":33707655},{"$f":"'FR-16(7)(v)-3 PROD Demand'!H295+'FR-16(7)(v)-4 PROD Energy'!H295+'FR-16(7)(v)-5 PROD Cust'!H295+'FR-16(7)(v)-7 TRANS Demand'!H295+'FR-16(7)(v)-8 TRANS Energy'!H295+'FR-16(7)(v)-9 TRANS Cust'!H295+'FR-16(7)(v)-11 DIST Demand'!H295+'FR-16(7)(v)-12 DIST Energy'!H295+'FR-16(7)(v)-13 DIST Cust'!H295","v":17550008},{"$f":"'FR-16(7)(v)-3 PROD Demand'!I295+'FR-16(7)(v)-4 PROD Energy'!I295+'FR-16(7)(v)-5 PROD Cust'!I295+'FR-16(7)(v)-7 TRANS Demand'!I295+'FR-16(7)(v)-8 TRANS Energy'!I295+'FR-16(7)(v)-9 TRANS Cust'!I295+'FR-16(7)(v)-11 DIST Demand'!I295+'FR-16(7)(v)-12 DIST Energy'!I295+'FR-16(7)(v)-13 DIST Cust'!I295","v":86276},{"$f":"'FR-16(7)(v)-3 PROD Demand'!J295+'FR-16(7)(v)-4 PROD Energy'!J295+'FR-16(7)(v)-5 PROD Cust'!J295+'FR-16(7)(v)-7 TRANS Demand'!J295+'FR-16(7)(v)-8 TRANS Energy'!J295+'FR-16(7)(v)-9 TRANS Cust'!J295+'FR-16(7)(v)-11 DIST Demand'!J295+'FR-16(7)(v)-12 DIST Energy'!J295+'FR-16(7)(v)-13 DIST Cust'!J295","v":341637},{"$f":"'FR-16(7)(v)-3 PROD Demand'!K295+'FR-16(7)(v)-4 PROD Energy'!K295+'FR-16(7)(v)-5 PROD Cust'!K295+'FR-16(7)(v)-7 TRANS Demand'!K295+'FR-16(7)(v)-8 TRANS Energy'!K295+'FR-16(7)(v)-9 TRANS Cust'!K295+'FR-16(7)(v)-11 DIST Demand'!K295+'FR-16(7)(v)-12 DIST Energy'!K295+'FR-16(7)(v)-13 DIST Cust'!K295","v":5169},{"$f":"'FR-16(7)(v)-3 PROD Demand'!L295+'FR-16(7)(v)-4 PROD Energy'!L295+'FR-16(7)(v)-5 PROD Cust'!L295+'FR-16(7)(v)-7 TRANS Demand'!L295+'FR-16(7)(v)-8 TRANS Energy'!L295+'FR-16(7)(v)-9 TRANS Cust'!L295+'FR-16(7)(v)-11 DIST Demand'!L295+'FR-16(7)(v)-12 DIST Energy'!L295+'FR-16(7)(v)-13 DIST Cust'!L295","v":8502964},{"$f":"'FR-16(7)(v)-3 PROD Demand'!M295+'FR-16(7)(v)-4 PROD Energy'!M295+'FR-16(7)(v)-5 PROD Cust'!M295+'FR-16(7)(v)-7 TRANS Demand'!M295+'FR-16(7)(v)-8 TRANS Energy'!M295+'FR-16(7)(v)-9 TRANS Cust'!M295+'FR-16(7)(v)-11 DIST Demand'!M295+'FR-16(7)(v)-12 DIST Energy'!M295+'FR-16(7)(v)-13 DIST Cust'!M295","v":5608419},{"$f":"'FR-16(7)(v)-3 PROD Demand'!N295+'FR-16(7)(v)-4 PROD Energy'!N295+'FR-16(7)(v)-5 PROD Cust'!N295+'FR-16(7)(v)-7 TRANS Demand'!N295+'FR-16(7)(v)-8 TRANS Energy'!N295+'FR-16(7)(v)-9 TRANS Cust'!N295+'FR-16(7)(v)-11 DIST Demand'!N295+'FR-16(7)(v)-12 DIST Energy'!N295+'FR-16(7)(v)-13 DIST Cust'!N295","v":275075},{"$f":"'FR-16(7)(v)-3 PROD Demand'!O295+'FR-16(7)(v)-4 PROD Energy'!O295+'FR-16(7)(v)-5 PROD Cust'!O295+'FR-16(7)(v)-7 TRANS Demand'!O295+'FR-16(7)(v)-8 TRANS Energy'!O295+'FR-16(7)(v)-9 TRANS Cust'!O295+'FR-16(7)(v)-11 DIST Demand'!O295+'FR-16(7)(v)-12 DIST Energy'!O295+'FR-16(7)(v)-13 DIST Cust'!O295","v":1796709},{"$f":"'FR-16(7)(v)-3 PROD Demand'!P295+'FR-16(7)(v)-4 PROD Energy'!P295+'FR-16(7)(v)-5 PROD Cust'!P295+'FR-16(7)(v)-7 TRANS Demand'!P295+'FR-16(7)(v)-8 TRANS Energy'!P295+'FR-16(7)(v)-9 TRANS Cust'!P295+'FR-16(7)(v)-11 DIST Demand'!P295+'FR-16(7)(v)-12 DIST Energy'!P295+'FR-16(7)(v)-13 DIST Cust'!P295","v":346084},{"$f":"'FR-16(7)(v)-3 PROD Demand'!Q295+'FR-16(7)(v)-4 PROD Energy'!Q295+'FR-16(7)(v)-5 PROD Cust'!Q295+'FR-16(7)(v)-7 TRANS Demand'!Q295+'FR-16(7)(v)-8 TRANS Energy'!Q295+'FR-16(7)(v)-9 TRANS Cust'!Q295+'FR-16(7)(v)-11 DIST Demand'!Q295+'FR-16(7)(v)-12 DIST Energy'!Q295+'FR-16(7)(v)-13 DIST Cust'!Q295","v":7374},68227370,0]
[8,null,{"$f":"'FR-16(7)(v)-1 Functional'!C296","v":"AFUDC IN DEBT"},{"$f":"'FR-16(7)(v)-1 Functional'!D296","v":"NP29"}," ",{"$f":"'FR-16(7)(v)-1 Functional'!F296","v":0},{"$f":"'FR-16(7)(v)-3 PROD Demand'!G296+'FR-16(7)(v)-4 PROD Energy'!G296+'FR-16(7)(v)-5 PROD Cust'!G296+'FR-16(7)(v)-7 TRANS Demand'!G296+'FR-16(7)(v)-8 TRANS Energy'!G296+'FR-16(7)(v)-9 TRANS Cust'!G296+'FR-16(7)(v)-11 DIST Demand'!G296+'FR-16(7)(v)-12 DIST Energy'!G296+'FR-16(7)(v)-13 DIST Cust'!G296","v":0},{"$f":"'FR-16(7)(v)-3 PROD Demand'!H296+'FR-16(7)(v)-4 PROD Energy'!H296+'FR-16(7)(v)-5 PROD Cust'!H296+'FR-16(7)(v)-7 TRANS Demand'!H296+'FR-16(7)(v)-8 TRANS Energy'!H296+'FR-16(7)(v)-9 TRANS Cust'!H296+'FR-16(7)(v)-11 DIST Demand'!H296+'FR-16(7)(v)-12 DIST Energy'!H296+'FR-16(7)(v)-13 DIST Cust'!H296","v":0},{"$f":"'FR-16(7)(v)-3 PROD Demand'!I296+'FR-16(7)(v)-4 PROD Energy'!I296+'FR-16(7)(v)-5 PROD Cust'!I296+'FR-16(7)(v)-7 TRANS Demand'!I296+'FR-16(7)(v)-8 TRANS Energy'!I296+'FR-16(7)(v)-9 TRANS Cust'!I296+'FR-16(7)(v)-11 DIST Demand'!I296+'FR-16(7)(v)-12 DIST Energy'!I296+'FR-16(7)(v)-13 DIST Cust'!I296","v":0},{"$f":"'FR-16(7)(v)-3 PROD Demand'!J296+'FR-16(7)(v)-4 PROD Energy'!J296+'FR-16(7)(v)-5 PROD Cust'!J296+'FR-16(7)(v)-7 TRANS Demand'!J296+'FR-16(7)(v)-8 TRANS Energy'!J296+'FR-16(7)(v)-9 TRANS Cust'!J296+'FR-16(7)(v)-11 DIST Demand'!J296+'FR-16(7)(v)-12 DIST Energy'!J296+'FR-16(7)(v)-13 DIST Cust'!J296","v":0},{"$f":"'FR-16(7)(v)-3 PROD Demand'!K296+'FR-16(7)(v)-4 PROD Energy'!K296+'FR-16(7)(v)-5 PROD Cust'!K296+'FR-16(7)(v)-7 TRANS Demand'!K296+'FR-16(7)(v)-8 TRANS Energy'!K296+'FR-16(7)(v)-9 TRANS Cust'!K296+'FR-16(7)(v)-11 DIST Demand'!K296+'FR-16(7)(v)-12 DIST Energy'!K296+'FR-16(7)(v)-13 DIST Cust'!K296","v":0},{"$f":"'FR-16(7)(v)-3 PROD Demand'!L296+'FR-16(7)(v)-4 PROD Energy'!L296+'FR-16(7)(v)-5 PROD Cust'!L296+'FR-16(7)(v)-7 TRANS Demand'!L296+'FR-16(7)(v)-8 TRANS Energy'!L296+'FR-16(7)(v)-9 TRANS Cust'!L296+'FR-16(7)(v)-11 DIST Demand'!L296+'FR-16(7)(v)-12 DIST Energy'!L296+'FR-16(7)(v)-13 DIST Cust'!L296","v":0},{"$f":"'FR-16(7)(v)-3 PROD Demand'!M296+'FR-16(7)(v)-4 PROD Energy'!M296+'FR-16(7)(v)-5 PROD Cust'!M296+'FR-16(7)(v)-7 TRANS Demand'!M296+'FR-16(7)(v)-8 TRANS Energy'!M296+'FR-16(7)(v)-9 TRANS Cust'!M296+'FR-16(7)(v)-11 DIST Demand'!M296+'FR-16(7)(v)-12 DIST Energy'!M296+'FR-16(7)(v)-13 DIST Cust'!M296","v":0},{"$f":"'FR-16(7)(v)-3 PROD Demand'!N296+'FR-16(7)(v)-4 PROD Energy'!N296+'FR-16(7)(v)-5 PROD Cust'!N296+'FR-16(7)(v)-7 TRANS Demand'!N296+'FR-16(7)(v)-8 TRANS Energy'!N296+'FR-16(7)(v)-9 TRANS Cust'!N296+'FR-16(7)(v)-11 DIST Demand'!N296+'FR-16(7)(v)-12 DIST Energy'!N296+'FR-16(7)(v)-13 DIST Cust'!N296","v":0},{"$f":"'FR-16(7)(v)-3 PROD Demand'!O296+'FR-16(7)(v)-4 PROD Energy'!O296+'FR-16(7)(v)-5 PROD Cust'!O296+'FR-16(7)(v)-7 TRANS Demand'!O296+'FR-16(7)(v)-8 TRANS Energy'!O296+'FR-16(7)(v)-9 TRANS Cust'!O296+'FR-16(7)(v)-11 DIST Demand'!O296+'FR-16(7)(v)-12 DIST Energy'!O296+'FR-16(7)(v)-13 DIST Cust'!O296","v":0},{"$f":"'FR-16(7)(v)-3 PROD Demand'!P296+'FR-16(7)(v)-4 PROD Energy'!P296+'FR-16(7)(v)-5 PROD Cust'!P296+'FR-16(7)(v)-7 TRANS Demand'!P296+'FR-16(7)(v)-8 TRANS Energy'!P296+'FR-16(7)(v)-9 TRANS Cust'!P296+'FR-16(7)(v)-11 DIST Demand'!P296+'FR-16(7)(v)-12 DIST Energy'!P296+'FR-16(7)(v)-13 DIST Cust'!P296","v":0},{"$f":"'FR-16(7)(v)-3 PROD Demand'!Q296+'FR-16(7)(v)-4 PROD Energy'!Q296+'FR-16(7)(v)-5 PROD Cust'!Q296+'FR-16(7)(v)-7 TRANS Demand'!Q296+'FR-16(7)(v)-8 TRANS Energy'!Q296+'FR-16(7)(v)-9 TRANS Cust'!Q296+'FR-16(7)(v)-11 DIST Demand'!Q296+'FR-16(7)(v)-12 DIST Energy'!Q296+'FR-16(7)(v)-13 DIST Cust'!Q296","v":0},0,0]
[9,null,{"$f":"'FR-16(7)(v)-1 Functional'!C297","v":"CASUALTY LOSS"},{"$f":"'FR-16(7)(v)-1 Functional'!D297","v":"K411"}," ",{"$f":"'FR-16(7)(v)-1 Functional'!F297","v":-381694},{"$f":"'FR-16(7)(v)-3 PROD Demand'!G297+'FR-16(7)(v)-4 PROD Energy'!G297+'FR-16(7)(v)-5 PROD Cust'!G297+'FR-16(7)(v)-7 TRANS Demand'!G297+'FR-16(7)(v)-8 TRANS Energy'!G297+'FR-16(7)(v)-9 TRANS Cust'!G297+'FR-16(7)(v)-11 DIST Demand'!G297+'FR-16(7)(v)-12 DIST Energy'!G297+'FR-16(7)(v)-13 DIST Cust'!G297","v":-347779},{"$f":"'FR-16(7)(v)-3 PROD Demand'!H297+'FR-16(7)(v)-4 PROD Energy'!H297+'FR-16(7)(v)-5 PROD Cust'!H297+'FR-16(7)(v)-7 TRANS Demand'!H297+'FR-16(7)(v)-8 TRANS Energy'!H297+'FR-16(7)(v)-9 TRANS Cust'!H297+'FR-16(7)(v)-11 DIST Demand'!H297+'FR-16(7)(v)-12 DIST Energy'!H297+'FR-16(7)(v)-13 DIST Cust'!H297","v":-16493},{"$f":"'FR-16(7)(v)-3 PROD Demand'!I297+'FR-16(7)(v)-4 PROD Energy'!I297+'FR-16(7)(v)-5 PROD Cust'!I297+'FR-16(7)(v)-7 TRANS Demand'!I297+'FR-16(7)(v)-8 TRANS Energy'!I297+'FR-16(7)(v)-9 TRANS Cust'!I297+'FR-16(7)(v)-11 DIST Demand'!I297+'FR-16(7)(v)-12 DIST Energy'!I297+'FR-16(7)(v)-13 DIST Cust'!I297","v":-107},{"$f":"'FR-16(7)(v)-3 PROD Demand'!J297+'FR-16(7)(v)-4 PROD Energy'!J297+'FR-16(7)(v)-5 PROD Cust'!J297+'FR-16(7)(v)-7 TRANS Demand'!J297+'FR-16(7)(v)-8 TRANS Energy'!J297+'FR-16(7)(v)-9 TRANS Cust'!J297+'FR-16(7)(v)-11 DIST Demand'!J297+'FR-16(7)(v)-12 DIST Energy'!J297+'FR-16(7)(v)-13 DIST Cust'!J297","v":-111},{"$f":"'FR-16(7)(v)-3 PROD Demand'!K297+'FR-16(7)(v)-4 PROD Energy'!K297+'FR-16(7)(v)-5 PROD Cust'!K297+'FR-16(7)(v)-7 TRANS Demand'!K297+'FR-16(7)(v)-8 TRANS Energy'!K297+'FR-16(7)(v)-9 TRANS Cust'!K297+'FR-16(7)(v)-11 DIST Demand'!K297+'FR-16(7)(v)-12 DIST Energy'!K297+'FR-16(7)(v)-13 DIST Cust'!K297","v":-4},{"$f":"'FR-16(7)(v)-3 PROD Demand'!L297+'FR-16(7)(v)-4 PROD Energy'!L297+'FR-16(7)(v)-5 PROD Cust'!L297+'FR-16(7)(v)-7 TRANS Demand'!L297+'FR-16(7)(v)-8 TRANS Energy'!L297+'FR-16(7)(v)-9 TRANS Cust'!L297+'FR-16(7)(v)-11 DIST Demand'!L297+'FR-16(7)(v)-12 DIST Energy'!L297+'FR-16(7)(v)-13 DIST Cust'!L297","v":-8566},{"$f":"'FR-16(7)(v)-3 PROD Demand'!M297+'FR-16(7)(v)-4 PROD Energy'!M297+'FR-16(7)(v)-5 PROD Cust'!M297+'FR-16(7)(v)-7 TRANS Demand'!M297+'FR-16(7)(v)-8 TRANS Energy'!M297+'FR-16(7)(v)-9 TRANS Cust'!M297+'FR-16(7)(v)-11 DIST Demand'!M297+'FR-16(7)(v)-12 DIST Energy'!M297+'FR-16(7)(v)-13 DIST Cust'!M297","v":-5470},{"$f":"'FR-16(7)(v)-3 PROD Demand'!N297+'FR-16(7)(v)-4 PROD Energy'!N297+'FR-16(7)(v)-5 PROD Cust'!N297+'FR-16(7)(v)-7 TRANS Demand'!N297+'FR-16(7)(v)-8 TRANS Energy'!N297+'FR-16(7)(v)-9 TRANS Cust'!N297+'FR-16(7)(v)-11 DIST Demand'!N297+'FR-16(7)(v)-12 DIST Energy'!N297+'FR-16(7)(v)-13 DIST Cust'!N297","v":-248},{"$f":"'FR-16(7)(v)-3 PROD Demand'!O297+'FR-16(7)(v)-4 PROD Energy'!O297+'FR-16(7)(v)-5 PROD Cust'!O297+'FR-16(7)(v)-7 TRANS Demand'!O297+'FR-16(7)(v)-8 TRANS Energy'!O297+'FR-16(7)(v)-9 TRANS Cust'!O297+'FR-16(7)(v)-11 DIST Demand'!O297+'FR-16(7)(v)-12 DIST Energy'!O297+'FR-16(7)(v)-13 DIST Cust'!O297","v":-2569},{"$f":"'FR-16(7)(v)-3 PROD Demand'!P297+'FR-16(7)(v)-4 PROD Energy'!P297+'FR-16(7)(v)-5 PROD Cust'!P297+'FR-16(7)(v)-7 TRANS Demand'!P297+'FR-16(7)(v)-8 TRANS Energy'!P297+'FR-16(7)(v)-9 TRANS Cust'!P297+'FR-16(7)(v)-11 DIST Demand'!P297+'FR-16(7)(v)-12 DIST Energy'!P297+'FR-16(7)(v)-13 DIST Cust'!P297","v":-343},{"$f":"'FR-16(7)(v)-3 PROD Demand'!Q297+'FR-16(7)(v)-4 PROD Energy'!Q297+'FR-16(7)(v)-5 PROD Cust'!Q297+'FR-16(7)(v)-7 TRANS Demand'!Q297+'FR-16(7)(v)-8 TRANS Energy'!Q297+'FR-16(7)(v)-9 TRANS Cust'!Q297+'FR-16(7)(v)-11 DIST Demand'!Q297+'FR-16(7)(v)-12 DIST Energy'!Q297+'FR-16(7)(v)-13 DIST Cust'!Q297","v":-4},-381694,0]
[10,null,{"$f":"'FR-16(7)(v)-1 Functional'!C298","v":"NON-CASH OVERHEADS"},{"$f":"'FR-16(7)(v)-1 Functional'!D298","v":"G229"}," ",{"$f":"'FR-16(7)(v)-1 Functional'!F298","v":0},{"$f":"'FR-16(7)(v)-3 PROD Demand'!G298+'FR-16(7)(v)-4 PROD Energy'!G298+'FR-16(7)(v)-5 PROD Cust'!G298+'FR-16(7)(v)-7 TRANS Demand'!G298+'FR-16(7)(v)-8 TRANS Energy'!G298+'FR-16(7)(v)-9 TRANS Cust'!G298+'FR-16(7)(v)-11 DIST Demand'!G298+'FR-16(7)(v)-12 DIST Energy'!G298+'FR-16(7)(v)-13 DIST Cust'!G298","v":0},{"$f":"'FR-16(7)(v)-3 PROD Demand'!H298+'FR-16(7)(v)-4 PROD Energy'!H298+'FR-16(7)(v)-5 PROD Cust'!H298+'FR-16(7)(v)-7 TRANS Demand'!H298+'FR-16(7)(v)-8 TRANS Energy'!H298+'FR-16(7)(v)-9 TRANS Cust'!H298+'FR-16(7)(v)-11 DIST Demand'!H298+'FR-16(7)(v)-12 DIST Energy'!H298+'FR-16(7)(v)-13 DIST Cust'!H298","v":0},{"$f":"'FR-16(7)(v)-3 PROD Demand'!I298+'FR-16(7)(v)-4 PROD Energy'!I298+'FR-16(7)(v)-5 PROD Cust'!I298+'FR-16(7)(v)-7 TRANS Demand'!I298+'FR-16(7)(v)-8 TRANS Energy'!I298+'FR-16(7)(v)-9 TRANS Cust'!I298+'FR-16(7)(v)-11 DIST Demand'!I298+'FR-16(7)(v)-12 DIST Energy'!I298+'FR-16(7)(v)-13 DIST Cust'!I298","v":0},{"$f":"'FR-16(7)(v)-3 PROD Demand'!J298+'FR-16(7)(v)-4 PROD Energy'!J298+'FR-16(7)(v)-5 PROD Cust'!J298+'FR-16(7)(v)-7 TRANS Demand'!J298+'FR-16(7)(v)-8 TRANS Energy'!J298+'FR-16(7)(v)-9 TRANS Cust'!J298+'FR-16(7)(v)-11 DIST Demand'!J298+'FR-16(7)(v)-12 DIST Energy'!J298+'FR-16(7)(v)-13 DIST Cust'!J298","v":0},{"$f":"'FR-16(7)(v)-3 PROD Demand'!K298+'FR-16(7)(v)-4 PROD Energy'!K298+'FR-16(7)(v)-5 PROD Cust'!K298+'FR-16(7)(v)-7 TRANS Demand'!K298+'FR-16(7)(v)-8 TRANS Energy'!K298+'FR-16(7)(v)-9 TRANS Cust'!K298+'FR-16(7)(v)-11 DIST Demand'!K298+'FR-16(7)(v)-12 DIST Energy'!K298+'FR-16(7)(v)-13 DIST Cust'!K298","v":0},{"$f":"'FR-16(7)(v)-3 PROD Demand'!L298+'FR-16(7)(v)-4 PROD Energy'!L298+'FR-16(7)(v)-5 PROD Cust'!L298+'FR-16(7)(v)-7 TRANS Demand'!L298+'FR-16(7)(v)-8 TRANS Energy'!L298+'FR-16(7)(v)-9 TRANS Cust'!L298+'FR-16(7)(v)-11 DIST Demand'!L298+'FR-16(7)(v)-12 DIST Energy'!L298+'FR-16(7)(v)-13 DIST Cust'!L298","v":0},{"$f":"'FR-16(7)(v)-3 PROD Demand'!M298+'FR-16(7)(v)-4 PROD Energy'!M298+'FR-16(7)(v)-5 PROD Cust'!M298+'FR-16(7)(v)-7 TRANS Demand'!M298+'FR-16(7)(v)-8 TRANS Energy'!M298+'FR-16(7)(v)-9 TRANS Cust'!M298+'FR-16(7)(v)-11 DIST Demand'!M298+'FR-16(7)(v)-12 DIST Energy'!M298+'FR-16(7)(v)-13 DIST Cust'!M298","v":0},{"$f":"'FR-16(7)(v)-3 PROD Demand'!N298+'FR-16(7)(v)-4 PROD Energy'!N298+'FR-16(7)(v)-5 PROD Cust'!N298+'FR-16(7)(v)-7 TRANS Demand'!N298+'FR-16(7)(v)-8 TRANS Energy'!N298+'FR-16(7)(v)-9 TRANS Cust'!N298+'FR-16(7)(v)-11 DIST Demand'!N298+'FR-16(7)(v)-12 DIST Energy'!N298+'FR-16(7)(v)-13 DIST Cust'!N298","v":0},{"$f":"'FR-16(7)(v)-3 PROD Demand'!O298+'FR-16(7)(v)-4 PROD Energy'!O298+'FR-16(7)(v)-5 PROD Cust'!O298+'FR-16(7)(v)-7 TRANS Demand'!O298+'FR-16(7)(v)-8 TRANS Energy'!O298+'FR-16(7)(v)-9 TRANS Cust'!O298+'FR-16(7)(v)-11 DIST Demand'!O298+'FR-16(7)(v)-12 DIST Energy'!O298+'FR-16(7)(v)-13 DIST Cust'!O298","v":0},{"$f":"'FR-16(7)(v)-3 PROD Demand'!P298+'FR-16(7)(v)-4 PROD Energy'!P298+'FR-16(7)(v)-5 PROD Cust'!P298+'FR-16(7)(v)-7 TRANS Demand'!P298+'FR-16(7)(v)-8 TRANS Energy'!P298+'FR-16(7)(v)-9 TRANS Cust'!P298+'FR-16(7)(v)-11 DIST Demand'!P298+'FR-16(7)(v)-12 DIST Energy'!P298+'FR-16(7)(v)-13 DIST Cust'!P298","v":0},{"$f":"'FR-16(7)(v)-3 PROD Demand'!Q298+'FR-16(7)(v)-4 PROD Energy'!Q298+'FR-16(7)(v)-5 PROD Cust'!Q298+'FR-16(7)(v)-7 TRANS Demand'!Q298+'FR-16(7)(v)-8 TRANS Energy'!Q298+'FR-16(7)(v)-9 TRANS Cust'!Q298+'FR-16(7)(v)-11 DIST Demand'!Q298+'FR-16(7)(v)-12 DIST Energy'!Q298+'FR-16(7)(v)-13 DIST Cust'!Q298","v":0},0,0]
[11,null,{"$f":"'FR-16(7)(v)-1 Functional'!C299","v":"PLANT FAS 109"},{"$f":"'FR-16(7)(v)-1 Functional'!D299","v":"NP29"}," ",{"$f":"'FR-16(7)(v)-1 Functional'!F299","v":0},{"$f":"'FR-16(7)(v)-3 PROD Demand'!G299+'FR-16(7)(v)-4 PROD Energy'!G299+'FR-16(7)(v)-5 PROD Cust'!G299+'FR-16(7)(v)-7 TRANS Demand'!G299+'FR-16(7)(v)-8 TRANS Energy'!G299+'FR-16(7)(v)-9 TRANS Cust'!G299+'FR-16(7)(v)-11 DIST Demand'!G299+'FR-16(7)(v)-12 DIST Energy'!G299+'FR-16(7)(v)-13 DIST Cust'!G299","v":0},{"$f":"'FR-16(7)(v)-3 PROD Demand'!H299+'FR-16(7)(v)-4 PROD Energy'!H299+'FR-16(7)(v)-5 PROD Cust'!H299+'FR-16(7)(v)-7 TRANS Demand'!H299+'FR-16(7)(v)-8 TRANS Energy'!H299+'FR-16(7)(v)-9 TRANS Cust'!H299+'FR-16(7)(v)-11 DIST Demand'!H299+'FR-16(7)(v)-12 DIST Energy'!H299+'FR-16(7)(v)-13 DIST Cust'!H299","v":0},{"$f":"'FR-16(7)(v)-3 PROD Demand'!I299+'FR-16(7)(v)-4 PROD Energy'!I299+'FR-16(7)(v)-5 PROD Cust'!I299+'FR-16(7)(v)-7 TRANS Demand'!I299+'FR-16(7)(v)-8 TRANS Energy'!I299+'FR-16(7)(v)-9 TRANS Cust'!I299+'FR-16(7)(v)-11 DIST Demand'!I299+'FR-16(7)(v)-12 DIST Energy'!I299+'FR-16(7)(v)-13 DIST Cust'!I299","v":0},{"$f":"'FR-16(7)(v)-3 PROD Demand'!J299+'FR-16(7)(v)-4 PROD Energy'!J299+'FR-16(7)(v)-5 PROD Cust'!J299+'FR-16(7)(v)-7 TRANS Demand'!J299+'FR-16(7)(v)-8 TRANS Energy'!J299+'FR-16(7)(v)-9 TRANS Cust'!J299+'FR-16(7)(v)-11 DIST Demand'!J299+'FR-16(7)(v)-12 DIST Energy'!J299+'FR-16(7)(v)-13 DIST Cust'!J299","v":0},{"$f":"'FR-16(7)(v)-3 PROD Demand'!K299+'FR-16(7)(v)-4 PROD Energy'!K299+'FR-16(7)(v)-5 PROD Cust'!K299+'FR-16(7)(v)-7 TRANS Demand'!K299+'FR-16(7)(v)-8 TRANS Energy'!K299+'FR-16(7)(v)-9 TRANS Cust'!K299+'FR-16(7)(v)-11 DIST Demand'!K299+'FR-16(7)(v)-12 DIST Energy'!K299+'FR-16(7)(v)-13 DIST Cust'!K299","v":0},{"$f":"'FR-16(7)(v)-3 PROD Demand'!L299+'FR-16(7)(v)-4 PROD Energy'!L299+'FR-16(7)(v)-5 PROD Cust'!L299+'FR-16(7)(v)-7 TRANS Demand'!L299+'FR-16(7)(v)-8 TRANS Energy'!L299+'FR-16(7)(v)-9 TRANS Cust'!L299+'FR-16(7)(v)-11 DIST Demand'!L299+'FR-16(7)(v)-12 DIST Energy'!L299+'FR-16(7)(v)-13 DIST Cust'!L299","v":0},{"$f":"'FR-16(7)(v)-3 PROD Demand'!M299+'FR-16(7)(v)-4 PROD Energy'!M299+'FR-16(7)(v)-5 PROD Cust'!M299+'FR-16(7)(v)-7 TRANS Demand'!M299+'FR-16(7)(v)-8 TRANS Energy'!M299+'FR-16(7)(v)-9 TRANS Cust'!M299+'FR-16(7)(v)-11 DIST Demand'!M299+'FR-16(7)(v)-12 DIST Energy'!M299+'FR-16(7)(v)-13 DIST Cust'!M299","v":0},{"$f":"'FR-16(7)(v)-3 PROD Demand'!N299+'FR-16(7)(v)-4 PROD Energy'!N299+'FR-16(7)(v)-5 PROD Cust'!N299+'FR-16(7)(v)-7 TRANS Demand'!N299+'FR-16(7)(v)-8 TRANS Energy'!N299+'FR-16(7)(v)-9 TRANS Cust'!N299+'FR-16(7)(v)-11 DIST Demand'!N299+'FR-16(7)(v)-12 DIST Energy'!N299+'FR-16(7)(v)-13 DIST Cust'!N299","v":0},{"$f":"'FR-16(7)(v)-3 PROD Demand'!O299+'FR-16(7)(v)-4 PROD Energy'!O299+'FR-16(7)(v)-5 PROD Cust'!O299+'FR-16(7)(v)-7 TRANS Demand'!O299+'FR-16(7)(v)-8 TRANS Energy'!O299+'FR-16(7)(v)-9 TRANS Cust'!O299+'FR-16(7)(v)-11 DIST Demand'!O299+'FR-16(7)(v)-12 DIST Energy'!O299+'FR-16(7)(v)-13 DIST Cust'!O299","v":0},{"$f":"'FR-16(7)(v)-3 PROD Demand'!P299+'FR-16(7)(v)-4 PROD Energy'!P299+'FR-16(7)(v)-5 PROD Cust'!P299+'FR-16(7)(v)-7 TRANS Demand'!P299+'FR-16(7)(v)-8 TRANS Energy'!P299+'FR-16(7)(v)-9 TRANS Cust'!P299+'FR-16(7)(v)-11 DIST Demand'!P299+'FR-16(7)(v)-12 DIST Energy'!P299+'FR-16(7)(v)-13 DIST Cust'!P299","v":0},{"$f":"'FR-16(7)(v)-3 PROD Demand'!Q299+'FR-16(7)(v)-4 PROD Energy'!Q299+'FR-16(7)(v)-5 PROD Cust'!Q299+'FR-16(7)(v)-7 TRANS Demand'!Q299+'FR-16(7)(v)-8 TRANS Energy'!Q299+'FR-16(7)(v)-9 TRANS Cust'!Q299+'FR-16(7)(v)-11 DIST Demand'!Q299+'FR-16(7)(v)-12 DIST Energy'!Q299+'FR-16(7)(v)-13 DIST Cust'!Q299","v":0},0,0]
[12,null,{"$f":"'FR-16(7)(v)-1 Functional'!C300","v":"MISCELLANEOUS"},{"$f":"'FR-16(7)(v)-1 Functional'!D300","v":"NP29"},null,{"$f":"'FR-16(7)(v)-1 Functional'!F300","v":64381629},{"$f":"'FR-16(7)(v)-3 PROD Demand'!G300+'FR-16(7)(v)-4 PROD Energy'!G300+'FR-16(7)(v)-5 PROD Cust'!G300+'FR-16(7)(v)-7 TRANS Demand'!G300+'FR-16(7)(v)-8 TRANS Energy'!G300+'FR-16(7)(v)-9 TRANS Cust'!G300+'FR-16(7)(v)-11 DIST Demand'!G300+'FR-16(7)(v)-12 DIST Energy'!G300+'FR-16(7)(v)-13 DIST Cust'!G300","v":31807674},{"$f":"'FR-16(7)(v)-3 PROD Demand'!H300+'FR-16(7)(v)-4 PROD Energy'!H300+'FR-16(7)(v)-5 PROD Cust'!H300+'FR-16(7)(v)-7 TRANS Demand'!H300+'FR-16(7)(v)-8 TRANS Energy'!H300+'FR-16(7)(v)-9 TRANS Cust'!H300+'FR-16(7)(v)-11 DIST Demand'!H300+'FR-16(7)(v)-12 DIST Energy'!H300+'FR-16(7)(v)-13 DIST Cust'!H300","v":16560775},{"$f":"'FR-16(7)(v)-3 PROD Demand'!I300+'FR-16(7)(v)-4 PROD Energy'!I300+'FR-16(7)(v)-5 PROD Cust'!I300+'FR-16(7)(v)-7 TRANS Demand'!I300+'FR-16(7)(v)-8 TRANS Energy'!I300+'FR-16(7)(v)-9 TRANS Cust'!I300+'FR-16(7)(v)-11 DIST Demand'!I300+'FR-16(7)(v)-12 DIST Energy'!I300+'FR-16(7)(v)-13 DIST Cust'!I300","v":81411},{"$f":"'FR-16(7)(v)-3 PROD Demand'!J300+'FR-16(7)(v)-4 PROD Energy'!J300+'FR-16(7)(v)-5 PROD Cust'!J300+'FR-16(7)(v)-7 TRANS Demand'!J300+'FR-16(7)(v)-8 TRANS Energy'!J300+'FR-16(7)(v)-9 TRANS Cust'!J300+'FR-16(7)(v)-11 DIST Demand'!J300+'FR-16(7)(v)-12 DIST Energy'!J300+'FR-16(7)(v)-13 DIST Cust'!J300","v":322381},{"$f":"'FR-16(7)(v)-3 PROD Demand'!K300+'FR-16(7)(v)-4 PROD Energy'!K300+'FR-16(7)(v)-5 PROD Cust'!K300+'FR-16(7)(v)-7 TRANS Demand'!K300+'FR-16(7)(v)-8 TRANS Energy'!K300+'FR-16(7)(v)-9 TRANS Cust'!K300+'FR-16(7)(v)-11 DIST Demand'!K300+'FR-16(7)(v)-12 DIST Energy'!K300+'FR-16(7)(v)-13 DIST Cust'!K300","v":4876},{"$f":"'FR-16(7)(v)-3 PROD Demand'!L300+'FR-16(7)(v)-4 PROD Energy'!L300+'FR-16(7)(v)-5 PROD Cust'!L300+'FR-16(7)(v)-7 TRANS Demand'!L300+'FR-16(7)(v)-8 TRANS Energy'!L300+'FR-16(7)(v)-9 TRANS Cust'!L300+'FR-16(7)(v)-11 DIST Demand'!L300+'FR-16(7)(v)-12 DIST Energy'!L300+'FR-16(7)(v)-13 DIST Cust'!L300","v":8023681},{"$f":"'FR-16(7)(v)-3 PROD Demand'!M300+'FR-16(7)(v)-4 PROD Energy'!M300+'FR-16(7)(v)-5 PROD Cust'!M300+'FR-16(7)(v)-7 TRANS Demand'!M300+'FR-16(7)(v)-8 TRANS Energy'!M300+'FR-16(7)(v)-9 TRANS Cust'!M300+'FR-16(7)(v)-11 DIST Demand'!M300+'FR-16(7)(v)-12 DIST Energy'!M300+'FR-16(7)(v)-13 DIST Cust'!M300","v":5292293},{"$f":"'FR-16(7)(v)-3 PROD Demand'!N300+'FR-16(7)(v)-4 PROD Energy'!N300+'FR-16(7)(v)-5 PROD Cust'!N300+'FR-16(7)(v)-7 TRANS Demand'!N300+'FR-16(7)(v)-8 TRANS Energy'!N300+'FR-16(7)(v)-9 TRANS Cust'!N300+'FR-16(7)(v)-11 DIST Demand'!N300+'FR-16(7)(v)-12 DIST Energy'!N300+'FR-16(7)(v)-13 DIST Cust'!N300","v":259570},{"$f":"'FR-16(7)(v)-3 PROD Demand'!O300+'FR-16(7)(v)-4 PROD Energy'!O300+'FR-16(7)(v)-5 PROD Cust'!O300+'FR-16(7)(v)-7 TRANS Demand'!O300+'FR-16(7)(v)-8 TRANS Energy'!O300+'FR-16(7)(v)-9 TRANS Cust'!O300+'FR-16(7)(v)-11 DIST Demand'!O300+'FR-16(7)(v)-12 DIST Energy'!O300+'FR-16(7)(v)-13 DIST Cust'!O300","v":1695435},{"$f":"'FR-16(7)(v)-3 PROD Demand'!P300+'FR-16(7)(v)-4 PROD Energy'!P300+'FR-16(7)(v)-5 PROD Cust'!P300+'FR-16(7)(v)-7 TRANS Demand'!P300+'FR-16(7)(v)-8 TRANS Energy'!P300+'FR-16(7)(v)-9 TRANS Cust'!P300+'FR-16(7)(v)-11 DIST Demand'!P300+'FR-16(7)(v)-12 DIST Energy'!P300+'FR-16(7)(v)-13 DIST Cust'!P300","v":326575},{"$f":"'FR-16(7)(v)-3 PROD Demand'!Q300+'FR-16(7)(v)-4 PROD Energy'!Q300+'FR-16(7)(v)-5 PROD Cust'!Q300+'FR-16(7)(v)-7 TRANS Demand'!Q300+'FR-16(7)(v)-8 TRANS Energy'!Q300+'FR-16(7)(v)-9 TRANS Cust'!Q300+'FR-16(7)(v)-11 DIST Demand'!Q300+'FR-16(7)(v)-12 DIST Energy'!Q300+'FR-16(7)(v)-13 DIST Cust'!Q300","v":6958},64381629,0]
[13,null,{"$f":"'FR-16(7)(v)-1 Functional'!C301","v":"  TOTAL ACCOUNT 282"},null,null,{"$f":"SUM(F292:F300)","v":202108496},99692276,52069707,255946,{"$f":"SUM(J292:J300)","v":1013828},15333,25227154,16639609,816138,5329836,1026788,21881,202108496,0]
[14]
[15," ACCUM DEF INC TAXES (283)"]
[16,null,{"$f":"'FR-16(7)(v)-1 Functional'!C304","v":"TRANSITION FROM MISO TO PJM"},{"$f":"'FR-16(7)(v)-1 Functional'!D304","v":"NP29"},null,{"$f":"'FR-16(7)(v)-1 Functional'!F304","v":-3666482},{"$f":"'FR-16(7)(v)-3 PROD Demand'!G304+'FR-16(7)(v)-4 PROD Energy'!G304+'FR-16(7)(v)-5 PROD Cust'!G304+'FR-16(7)(v)-7 TRANS Demand'!G304+'FR-16(7)(v)-8 TRANS Energy'!G304+'FR-16(7)(v)-9 TRANS Cust'!G304+'FR-16(7)(v)-11 DIST Demand'!G304+'FR-16(7)(v)-12 DIST Energy'!G304+'FR-16(7)(v)-13 DIST Cust'!G304","v":-1811421},{"$f":"'FR-16(7)(v)-3 PROD Demand'!H304+'FR-16(7)(v)-4 PROD Energy'!H304+'FR-16(7)(v)-5 PROD Cust'!H304+'FR-16(7)(v)-7 TRANS Demand'!H304+'FR-16(7)(v)-8 TRANS Energy'!H304+'FR-16(7)(v)-9 TRANS Cust'!H304+'FR-16(7)(v)-11 DIST Demand'!H304+'FR-16(7)(v)-12 DIST Energy'!H304+'FR-16(7)(v)-13 DIST Cust'!H304","v":-943123},{"$f":"'FR-16(7)(v)-3 PROD Demand'!I304+'FR-16(7)(v)-4 PROD Energy'!I304+'FR-16(7)(v)-5 PROD Cust'!I304+'FR-16(7)(v)-7 TRANS Demand'!I304+'FR-16(7)(v)-8 TRANS Energy'!I304+'FR-16(7)(v)-9 TRANS Cust'!I304+'FR-16(7)(v)-11 DIST Demand'!I304+'FR-16(7)(v)-12 DIST Energy'!I304+'FR-16(7)(v)-13 DIST Cust'!I304","v":-4637},{"$f":"'FR-16(7)(v)-3 PROD Demand'!J304+'FR-16(7)(v)-4 PROD Energy'!J304+'FR-16(7)(v)-5 PROD Cust'!J304+'FR-16(7)(v)-7 TRANS Demand'!J304+'FR-16(7)(v)-8 TRANS Energy'!J304+'FR-16(7)(v)-9 TRANS Cust'!J304+'FR-16(7)(v)-11 DIST Demand'!J304+'FR-16(7)(v)-12 DIST Energy'!J304+'FR-16(7)(v)-13 DIST Cust'!J304","v":-18360},{"$f":"'FR-16(7)(v)-3 PROD Demand'!K304+'FR-16(7)(v)-4 PROD Energy'!K304+'FR-16(7)(v)-5 PROD Cust'!K304+'FR-16(7)(v)-7 TRANS Demand'!K304+'FR-16(7)(v)-8 TRANS Energy'!K304+'FR-16(7)(v)-9 TRANS Cust'!K304+'FR-16(7)(v)-11 DIST Demand'!K304+'FR-16(7)(v)-12 DIST Energy'!K304+'FR-16(7)(v)-13 DIST Cust'!K304","v":-278},{"$f":"'FR-16(7)(v)-3 PROD Demand'!L304+'FR-16(7)(v)-4 PROD Energy'!L304+'FR-16(7)(v)-5 PROD Cust'!L304+'FR-16(7)(v)-7 TRANS Demand'!L304+'FR-16(7)(v)-8 TRANS Energy'!L304+'FR-16(7)(v)-9 TRANS Cust'!L304+'FR-16(7)(v)-11 DIST Demand'!L304+'FR-16(7)(v)-12 DIST Energy'!L304+'FR-16(7)(v)-13 DIST Cust'!L304","v":-456941},{"$f":"'FR-16(7)(v)-3 PROD Demand'!M304+'FR-16(7)(v)-4 PROD Energy'!M304+'FR-16(7)(v)-5 PROD Cust'!M304+'FR-16(7)(v)-7 TRANS Demand'!M304+'FR-16(7)(v)-8 TRANS Energy'!M304+'FR-16(7)(v)-9 TRANS Cust'!M304+'FR-16(7)(v)-11 DIST Demand'!M304+'FR-16(7)(v)-12 DIST Energy'!M304+'FR-16(7)(v)-13 DIST Cust'!M304","v":-301391},{"$f":"'FR-16(7)(v)-3 PROD Demand'!N304+'FR-16(7)(v)-4 PROD Energy'!N304+'FR-16(7)(v)-5 PROD Cust'!N304+'FR-16(7)(v)-7 TRANS Demand'!N304+'FR-16(7)(v)-8 TRANS Energy'!N304+'FR-16(7)(v)-9 TRANS Cust'!N304+'FR-16(7)(v)-11 DIST Demand'!N304+'FR-16(7)(v)-12 DIST Energy'!N304+'FR-16(7)(v)-13 DIST Cust'!N304","v":-14783},{"$f":"'FR-16(7)(v)-3 PROD Demand'!O304+'FR-16(7)(v)-4 PROD Energy'!O304+'FR-16(7)(v)-5 PROD Cust'!O304+'FR-16(7)(v)-7 TRANS Demand'!O304+'FR-16(7)(v)-8 TRANS Energy'!O304+'FR-16(7)(v)-9 TRANS Cust'!O304+'FR-16(7)(v)-11 DIST Demand'!O304+'FR-16(7)(v)-12 DIST Energy'!O304+'FR-16(7)(v)-13 DIST Cust'!O304","v":-96553},{"$f":"'FR-16(7)(v)-3 PROD Demand'!P304+'FR-16(7)(v)-4 PROD Energy'!P304+'FR-16(7)(v)-5 PROD Cust'!P304+'FR-16(7)(v)-7 TRANS Demand'!P304+'FR-16(7)(v)-8 TRANS Energy'!P304+'FR-16(7)(v)-9 TRANS Cust'!P304+'FR-16(7)(v)-11 DIST Demand'!P304+'FR-16(7)(v)-12 DIST Energy'!P304+'FR-16(7)(v)-13 DIST Cust'!P304","v":-18598},{"$f":"'FR-16(7)(v)-3 PROD Demand'!Q304+'FR-16(7)(v)-4 PROD Energy'!Q304+'FR-16(7)(v)-5 PROD Cust'!Q304+'FR-16(7)(v)-7 TRANS Demand'!Q304+'FR-16(7)(v)-8 TRANS Energy'!Q304+'FR-16(7)(v)-9 TRANS Cust'!Q304+'FR-16(7)(v)-11 DIST Demand'!Q304+'FR-16(7)(v)-12 DIST Energy'!Q304+'FR-16(7)(v)-13 DIST Cust'!Q304","v":-397},{"$f":"SUM(G304:Q304)","v":-3666482},{"$f":"F304-R304","v":0}]
[17,null,{"$f":"'FR-16(7)(v)-1 Functional'!C305","v":"DEFERRED PLANT COSTS"},{"$f":"'FR-16(7)(v)-1 Functional'!D305","v":"NP29"},null,{"$f":"'FR-16(7)(v)-1 Functional'!F305","v":714287},{"$f":"'FR-16(7)(v)-3 PROD Demand'!G305+'FR-16(7)(v)-4 PROD Energy'!G305+'FR-16(7)(v)-5 PROD Cust'!G305+'FR-16(7)(v)-7 TRANS Demand'!G305+'FR-16(7)(v)-8 TRANS Energy'!G305+'FR-16(7)(v)-9 TRANS Cust'!G305+'FR-16(7)(v)-11 DIST Demand'!G305+'FR-16(7)(v)-12 DIST Energy'!G305+'FR-16(7)(v)-13 DIST Cust'!G305","v":352892},{"$f":"'FR-16(7)(v)-3 PROD Demand'!H305+'FR-16(7)(v)-4 PROD Energy'!H305+'FR-16(7)(v)-5 PROD Cust'!H305+'FR-16(7)(v)-7 TRANS Demand'!H305+'FR-16(7)(v)-8 TRANS Energy'!H305+'FR-16(7)(v)-9 TRANS Cust'!H305+'FR-16(7)(v)-11 DIST Demand'!H305+'FR-16(7)(v)-12 DIST Energy'!H305+'FR-16(7)(v)-13 DIST Cust'!H305","v":183736},{"$f":"'FR-16(7)(v)-3 PROD Demand'!I305+'FR-16(7)(v)-4 PROD Energy'!I305+'FR-16(7)(v)-5 PROD Cust'!I305+'FR-16(7)(v)-7 TRANS Demand'!I305+'FR-16(7)(v)-8 TRANS Energy'!I305+'FR-16(7)(v)-9 TRANS Cust'!I305+'FR-16(7)(v)-11 DIST Demand'!I305+'FR-16(7)(v)-12 DIST Energy'!I305+'FR-16(7)(v)-13 DIST Cust'!I305","v":904},{"$f":"'FR-16(7)(v)-3 PROD Demand'!J305+'FR-16(7)(v)-4 PROD Energy'!J305+'FR-16(7)(v)-5 PROD Cust'!J305+'FR-16(7)(v)-7 TRANS Demand'!J305+'FR-16(7)(v)-8 TRANS Energy'!J305+'FR-16(7)(v)-9 TRANS Cust'!J305+'FR-16(7)(v)-11 DIST Demand'!J305+'FR-16(7)(v)-12 DIST Energy'!J305+'FR-16(7)(v)-13 DIST Cust'!J305","v":3575},{"$f":"'FR-16(7)(v)-3 PROD Demand'!K305+'FR-16(7)(v)-4 PROD Energy'!K305+'FR-16(7)(v)-5 PROD Cust'!K305+'FR-16(7)(v)-7 TRANS Demand'!K305+'FR-16(7)(v)-8 TRANS Energy'!K305+'FR-16(7)(v)-9 TRANS Cust'!K305+'FR-16(7)(v)-11 DIST Demand'!K305+'FR-16(7)(v)-12 DIST Energy'!K305+'FR-16(7)(v)-13 DIST Cust'!K305","v":54},{"$f":"'FR-16(7)(v)-3 PROD Demand'!L305+'FR-16(7)(v)-4 PROD Energy'!L305+'FR-16(7)(v)-5 PROD Cust'!L305+'FR-16(7)(v)-7 TRANS Demand'!L305+'FR-16(7)(v)-8 TRANS Energy'!L305+'FR-16(7)(v)-9 TRANS Cust'!L305+'FR-16(7)(v)-11 DIST Demand'!L305+'FR-16(7)(v)-12 DIST Energy'!L305+'FR-16(7)(v)-13 DIST Cust'!L305","v":89019},{"$f":"'FR-16(7)(v)-3 PROD Demand'!M305+'FR-16(7)(v)-4 PROD Energy'!M305+'FR-16(7)(v)-5 PROD Cust'!M305+'FR-16(7)(v)-7 TRANS Demand'!M305+'FR-16(7)(v)-8 TRANS Energy'!M305+'FR-16(7)(v)-9 TRANS Cust'!M305+'FR-16(7)(v)-11 DIST Demand'!M305+'FR-16(7)(v)-12 DIST Energy'!M305+'FR-16(7)(v)-13 DIST Cust'!M305","v":58716},{"$f":"'FR-16(7)(v)-3 PROD Demand'!N305+'FR-16(7)(v)-4 PROD Energy'!N305+'FR-16(7)(v)-5 PROD Cust'!N305+'FR-16(7)(v)-7 TRANS Demand'!N305+'FR-16(7)(v)-8 TRANS Energy'!N305+'FR-16(7)(v)-9 TRANS Cust'!N305+'FR-16(7)(v)-11 DIST Demand'!N305+'FR-16(7)(v)-12 DIST Energy'!N305+'FR-16(7)(v)-13 DIST Cust'!N305","v":2880},{"$f":"'FR-16(7)(v)-3 PROD Demand'!O305+'FR-16(7)(v)-4 PROD Energy'!O305+'FR-16(7)(v)-5 PROD Cust'!O305+'FR-16(7)(v)-7 TRANS Demand'!O305+'FR-16(7)(v)-8 TRANS Energy'!O305+'FR-16(7)(v)-9 TRANS Cust'!O305+'FR-16(7)(v)-11 DIST Demand'!O305+'FR-16(7)(v)-12 DIST Energy'!O305+'FR-16(7)(v)-13 DIST Cust'!O305","v":18810},{"$f":"'FR-16(7)(v)-3 PROD Demand'!P305+'FR-16(7)(v)-4 PROD Energy'!P305+'FR-16(7)(v)-5 PROD Cust'!P305+'FR-16(7)(v)-7 TRANS Demand'!P305+'FR-16(7)(v)-8 TRANS Energy'!P305+'FR-16(7)(v)-9 TRANS Cust'!P305+'FR-16(7)(v)-11 DIST Demand'!P305+'FR-16(7)(v)-12 DIST Energy'!P305+'FR-16(7)(v)-13 DIST Cust'!P305","v":3623},{"$f":"'FR-16(7)(v)-3 PROD Demand'!Q305+'FR-16(7)(v)-4 PROD Energy'!Q305+'FR-16(7)(v)-5 PROD Cust'!Q305+'FR-16(7)(v)-7 TRANS Demand'!Q305+'FR-16(7)(v)-8 TRANS Energy'!Q305+'FR-16(7)(v)-9 TRANS Cust'!Q305+'FR-16(7)(v)-11 DIST Demand'!Q305+'FR-16(7)(v)-12 DIST Energy'!Q305+'FR-16(7)(v)-13 DIST Cust'!Q305","v":78},714287,0]
[18,null,{"$f":"'FR-16(7)(v)-1 Functional'!C306","v":"MISCELLANEOUS"},{"$f":"'FR-16(7)(v)-1 Functional'!D306","v":"OM39"},null,{"$f":"'FR-16(7)(v)-1 Functional'!F306","v":10906524},{"$f":"'FR-16(7)(v)-3 PROD Demand'!G306+'FR-16(7)(v)-4 PROD Energy'!G306+'FR-16(7)(v)-5 PROD Cust'!G306+'FR-16(7)(v)-7 TRANS Demand'!G306+'FR-16(7)(v)-8 TRANS Energy'!G306+'FR-16(7)(v)-9 TRANS Cust'!G306+'FR-16(7)(v)-11 DIST Demand'!G306+'FR-16(7)(v)-12 DIST Energy'!G306+'FR-16(7)(v)-13 DIST Cust'!G306","v":4820555},{"$f":"'FR-16(7)(v)-3 PROD Demand'!H306+'FR-16(7)(v)-4 PROD Energy'!H306+'FR-16(7)(v)-5 PROD Cust'!H306+'FR-16(7)(v)-7 TRANS Demand'!H306+'FR-16(7)(v)-8 TRANS Energy'!H306+'FR-16(7)(v)-9 TRANS Cust'!H306+'FR-16(7)(v)-11 DIST Demand'!H306+'FR-16(7)(v)-12 DIST Energy'!H306+'FR-16(7)(v)-13 DIST Cust'!H306","v":2760795},{"$f":"'FR-16(7)(v)-3 PROD Demand'!I306+'FR-16(7)(v)-4 PROD Energy'!I306+'FR-16(7)(v)-5 PROD Cust'!I306+'FR-16(7)(v)-7 TRANS Demand'!I306+'FR-16(7)(v)-8 TRANS Energy'!I306+'FR-16(7)(v)-9 TRANS Cust'!I306+'FR-16(7)(v)-11 DIST Demand'!I306+'FR-16(7)(v)-12 DIST Energy'!I306+'FR-16(7)(v)-13 DIST Cust'!I306","v":14972},{"$f":"'FR-16(7)(v)-3 PROD Demand'!J306+'FR-16(7)(v)-4 PROD Energy'!J306+'FR-16(7)(v)-5 PROD Cust'!J306+'FR-16(7)(v)-7 TRANS Demand'!J306+'FR-16(7)(v)-8 TRANS Energy'!J306+'FR-16(7)(v)-9 TRANS Cust'!J306+'FR-16(7)(v)-11 DIST Demand'!J306+'FR-16(7)(v)-12 DIST Energy'!J306+'FR-16(7)(v)-13 DIST Cust'!J306","v":46362},{"$f":"'FR-16(7)(v)-3 PROD Demand'!K306+'FR-16(7)(v)-4 PROD Energy'!K306+'FR-16(7)(v)-5 PROD Cust'!K306+'FR-16(7)(v)-7 TRANS Demand'!K306+'FR-16(7)(v)-8 TRANS Energy'!K306+'FR-16(7)(v)-9 TRANS Cust'!K306+'FR-16(7)(v)-11 DIST Demand'!K306+'FR-16(7)(v)-12 DIST Energy'!K306+'FR-16(7)(v)-13 DIST Cust'!K306","v":797},{"$f":"'FR-16(7)(v)-3 PROD Demand'!L306+'FR-16(7)(v)-4 PROD Energy'!L306+'FR-16(7)(v)-5 PROD Cust'!L306+'FR-16(7)(v)-7 TRANS Demand'!L306+'FR-16(7)(v)-8 TRANS Energy'!L306+'FR-16(7)(v)-9 TRANS Cust'!L306+'FR-16(7)(v)-11 DIST Demand'!L306+'FR-16(7)(v)-12 DIST Energy'!L306+'FR-16(7)(v)-13 DIST Cust'!L306","v":1564733},{"$f":"'FR-16(7)(v)-3 PROD Demand'!M306+'FR-16(7)(v)-4 PROD Energy'!M306+'FR-16(7)(v)-5 PROD Cust'!M306+'FR-16(7)(v)-7 TRANS Demand'!M306+'FR-16(7)(v)-8 TRANS Energy'!M306+'FR-16(7)(v)-9 TRANS Cust'!M306+'FR-16(7)(v)-11 DIST Demand'!M306+'FR-16(7)(v)-12 DIST Energy'!M306+'FR-16(7)(v)-13 DIST Cust'!M306","v":1075457},{"$f":"'FR-16(7)(v)-3 PROD Demand'!N306+'FR-16(7)(v)-4 PROD Energy'!N306+'FR-16(7)(v)-5 PROD Cust'!N306+'FR-16(7)(v)-7 TRANS Demand'!N306+'FR-16(7)(v)-8 TRANS Energy'!N306+'FR-16(7)(v)-9 TRANS Cust'!N306+'FR-16(7)(v)-11 DIST Demand'!N306+'FR-16(7)(v)-12 DIST Energy'!N306+'FR-16(7)(v)-13 DIST Cust'!N306","v":51254},{"$f":"'FR-16(7)(v)-3 PROD Demand'!O306+'FR-16(7)(v)-4 PROD Energy'!O306+'FR-16(7)(v)-5 PROD Cust'!O306+'FR-16(7)(v)-7 TRANS Demand'!O306+'FR-16(7)(v)-8 TRANS Energy'!O306+'FR-16(7)(v)-9 TRANS Cust'!O306+'FR-16(7)(v)-11 DIST Demand'!O306+'FR-16(7)(v)-12 DIST Energy'!O306+'FR-16(7)(v)-13 DIST Cust'!O306","v":495851},{"$f":"'FR-16(7)(v)-3 PROD Demand'!P306+'FR-16(7)(v)-4 PROD Energy'!P306+'FR-16(7)(v)-5 PROD Cust'!P306+'FR-16(7)(v)-7 TRANS Demand'!P306+'FR-16(7)(v)-8 TRANS Energy'!P306+'FR-16(7)(v)-9 TRANS Cust'!P306+'FR-16(7)(v)-11 DIST Demand'!P306+'FR-16(7)(v)-12 DIST Energy'!P306+'FR-16(7)(v)-13 DIST Cust'!P306","v":74516},{"$f":"'FR-16(7)(v)-3 PROD Demand'!Q306+'FR-16(7)(v)-4 PROD Energy'!Q306+'FR-16(7)(v)-5 PROD Cust'!Q306+'FR-16(7)(v)-7 TRANS Demand'!Q306+'FR-16(7)(v)-8 TRANS Energy'!Q306+'FR-16(7)(v)-9 TRANS Cust'!Q306+'FR-16(7)(v)-11 DIST Demand'!Q306+'FR-16(7)(v)-12 DIST Energy'!Q306+'FR-16(7)(v)-13 DIST Cust'!Q306","v":1232},10906524,0]
[19,null,{"$f":"'FR-16(7)(v)-1 Functional'!C307","v":"ENVIRONMENTAL RESERVE"},{"$f":"'FR-16(7)(v)-1 Functional'!D307","v":"NP29"},null,{"$f":"'FR-16(7)(v)-1 Functional'!F307","v":0},{"$f":"'FR-16(7)(v)-3 PROD Demand'!G307+'FR-16(7)(v)-4 PROD Energy'!G307+'FR-16(7)(v)-5 PROD Cust'!G307+'FR-16(7)(v)-7 TRANS Demand'!G307+'FR-16(7)(v)-8 TRANS Energy'!G307+'FR-16(7)(v)-9 TRANS Cust'!G307+'FR-16(7)(v)-11 DIST Demand'!G307+'FR-16(7)(v)-12 DIST Energy'!G307+'FR-16(7)(v)-13 DIST Cust'!G307","v":0},{"$f":"'FR-16(7)(v)-3 PROD Demand'!H307+'FR-16(7)(v)-4 PROD Energy'!H307+'FR-16(7)(v)-5 PROD Cust'!H307+'FR-16(7)(v)-7 TRANS Demand'!H307+'FR-16(7)(v)-8 TRANS Energy'!H307+'FR-16(7)(v)-9 TRANS Cust'!H307+'FR-16(7)(v)-11 DIST Demand'!H307+'FR-16(7)(v)-12 DIST Energy'!H307+'FR-16(7)(v)-13 DIST Cust'!H307","v":0},{"$f":"'FR-16(7)(v)-3 PROD Demand'!I307+'FR-16(7)(v)-4 PROD Energy'!I307+'FR-16(7)(v)-5 PROD Cust'!I307+'FR-16(7)(v)-7 TRANS Demand'!I307+'FR-16(7)(v)-8 TRANS Energy'!I307+'FR-16(7)(v)-9 TRANS Cust'!I307+'FR-16(7)(v)-11 DIST Demand'!I307+'FR-16(7)(v)-12 DIST Energy'!I307+'FR-16(7)(v)-13 DIST Cust'!I307","v":0},{"$f":"'FR-16(7)(v)-3 PROD Demand'!J307+'FR-16(7)(v)-4 PROD Energy'!J307+'FR-16(7)(v)-5 PROD Cust'!J307+'FR-16(7)(v)-7 TRANS Demand'!J307+'FR-16(7)(v)-8 TRANS Energy'!J307+'FR-16(7)(v)-9 TRANS Cust'!J307+'FR-16(7)(v)-11 DIST Demand'!J307+'FR-16(7)(v)-12 DIST Energy'!J307+'FR-16(7)(v)-13 DIST Cust'!J307","v":0},{"$f":"'FR-16(7)(v)-3 PROD Demand'!K307+'FR-16(7)(v)-4 PROD Energy'!K307+'FR-16(7)(v)-5 PROD Cust'!K307+'FR-16(7)(v)-7 TRANS Demand'!K307+'FR-16(7)(v)-8 TRANS Energy'!K307+'FR-16(7)(v)-9 TRANS Cust'!K307+'FR-16(7)(v)-11 DIST Demand'!K307+'FR-16(7)(v)-12 DIST Energy'!K307+'FR-16(7)(v)-13 DIST Cust'!K307","v":0},{"$f":"'FR-16(7)(v)-3 PROD Demand'!L307+'FR-16(7)(v)-4 PROD Energy'!L307+'FR-16(7)(v)-5 PROD Cust'!L307+'FR-16(7)(v)-7 TRANS Demand'!L307+'FR-16(7)(v)-8 TRANS Energy'!L307+'FR-16(7)(v)-9 TRANS Cust'!L307+'FR-16(7)(v)-11 DIST Demand'!L307+'FR-16(7)(v)-12 DIST Energy'!L307+'FR-16(7)(v)-13 DIST Cust'!L307","v":0},{"$f":"'FR-16(7)(v)-3 PROD Demand'!M307+'FR-16(7)(v)-4 PROD Energy'!M307+'FR-16(7)(v)-5 PROD Cust'!M307+'FR-16(7)(v)-7 TRANS Demand'!M307+'FR-16(7)(v)-8 TRANS Energy'!M307+'FR-16(7)(v)-9 TRANS Cust'!M307+'FR-16(7)(v)-11 DIST Demand'!M307+'FR-16(7)(v)-12 DIST Energy'!M307+'FR-16(7)(v)-13 DIST Cust'!M307","v":0},{"$f":"'FR-16(7)(v)-3 PROD Demand'!N307+'FR-16(7)(v)-4 PROD Energy'!N307+'FR-16(7)(v)-5 PROD Cust'!N307+'FR-16(7)(v)-7 TRANS Demand'!N307+'FR-16(7)(v)-8 TRANS Energy'!N307+'FR-16(7)(v)-9 TRANS Cust'!N307+'FR-16(7)(v)-11 DIST Demand'!N307+'FR-16(7)(v)-12 DIST Energy'!N307+'FR-16(7)(v)-13 DIST Cust'!N307","v":0},{"$f":"'FR-16(7)(v)-3 PROD Demand'!O307+'FR-16(7)(v)-4 PROD Energy'!O307+'FR-16(7)(v)-5 PROD Cust'!O307+'FR-16(7)(v)-7 TRANS Demand'!O307+'FR-16(7)(v)-8 TRANS Energy'!O307+'FR-16(7)(v)-9 TRANS Cust'!O307+'FR-16(7)(v)-11 DIST Demand'!O307+'FR-16(7)(v)-12 DIST Energy'!O307+'FR-16(7)(v)-13 DIST Cust'!O307","v":0},{"$f":"'FR-16(7)(v)-3 PROD Demand'!P307+'FR-16(7)(v)-4 PROD Energy'!P307+'FR-16(7)(v)-5 PROD Cust'!P307+'FR-16(7)(v)-7 TRANS Demand'!P307+'FR-16(7)(v)-8 TRANS Energy'!P307+'FR-16(7)(v)-9 TRANS Cust'!P307+'FR-16(7)(v)-11 DIST Demand'!P307+'FR-16(7)(v)-12 DIST Energy'!P307+'FR-16(7)(v)-13 DIST Cust'!P307","v":0},{"$f":"'FR-16(7)(v)-3 PROD Demand'!Q307+'FR-16(7)(v)-4 PROD Energy'!Q307+'FR-16(7)(v)-5 PROD Cust'!Q307+'FR-16(7)(v)-7 TRANS Demand'!Q307+'FR-16(7)(v)-8 TRANS Energy'!Q307+'FR-16(7)(v)-9 TRANS Cust'!Q307+'FR-16(7)(v)-11 DIST Demand'!Q307+'FR-16(7)(v)-12 DIST Energy'!Q307+'FR-16(7)(v)-13 DIST Cust'!Q307","v":0},0,0]
[20,null,{"$f":"'FR-16(7)(v)-1 Functional'!C308","v":"POST IN-SERVICE CARRYING COSTS"},{"$f":"'FR-16(7)(v)-1 Functional'!D308","v":"NP29"},null,{"$f":"'FR-16(7)(v)-1 Functional'!F308","v":0},{"$f":"'FR-16(7)(v)-3 PROD Demand'!G308+'FR-16(7)(v)-4 PROD Energy'!G308+'FR-16(7)(v)-5 PROD Cust'!G308+'FR-16(7)(v)-7 TRANS Demand'!G308+'FR-16(7)(v)-8 TRANS Energy'!G308+'FR-16(7)(v)-9 TRANS Cust'!G308+'FR-16(7)(v)-11 DIST Demand'!G308+'FR-16(7)(v)-12 DIST Energy'!G308+'FR-16(7)(v)-13 DIST Cust'!G308","v":0},{"$f":"'FR-16(7)(v)-3 PROD Demand'!H308+'FR-16(7)(v)-4 PROD Energy'!H308+'FR-16(7)(v)-5 PROD Cust'!H308+'FR-16(7)(v)-7 TRANS Demand'!H308+'FR-16(7)(v)-8 TRANS Energy'!H308+'FR-16(7)(v)-9 TRANS Cust'!H308+'FR-16(7)(v)-11 DIST Demand'!H308+'FR-16(7)(v)-12 DIST Energy'!H308+'FR-16(7)(v)-13 DIST Cust'!H308","v":0},{"$f":"'FR-16(7)(v)-3 PROD Demand'!I308+'FR-16(7)(v)-4 PROD Energy'!I308+'FR-16(7)(v)-5 PROD Cust'!I308+'FR-16(7)(v)-7 TRANS Demand'!I308+'FR-16(7)(v)-8 TRANS Energy'!I308+'FR-16(7)(v)-9 TRANS Cust'!I308+'FR-16(7)(v)-11 DIST Demand'!I308+'FR-16(7)(v)-12 DIST Energy'!I308+'FR-16(7)(v)-13 DIST Cust'!I308","v":0},{"$f":"'FR-16(7)(v)-3 PROD Demand'!J308+'FR-16(7)(v)-4 PROD Energy'!J308+'FR-16(7)(v)-5 PROD Cust'!J308+'FR-16(7)(v)-7 TRANS Demand'!J308+'FR-16(7)(v)-8 TRANS Energy'!J308+'FR-16(7)(v)-9 TRANS Cust'!J308+'FR-16(7)(v)-11 DIST Demand'!J308+'FR-16(7)(v)-12 DIST Energy'!J308+'FR-16(7)(v)-13 DIST Cust'!J308","v":0},{"$f":"'FR-16(7)(v)-3 PROD Demand'!K308+'FR-16(7)(v)-4 PROD Energy'!K308+'FR-16(7)(v)-5 PROD Cust'!K308+'FR-16(7)(v)-7 TRANS Demand'!K308+'FR-16(7)(v)-8 TRANS Energy'!K308+'FR-16(7)(v)-9 TRANS Cust'!K308+'FR-16(7)(v)-11 DIST Demand'!K308+'FR-16(7)(v)-12 DIST Energy'!K308+'FR-16(7)(v)-13 DIST Cust'!K308","v":0},{"$f":"'FR-16(7)(v)-3 PROD Demand'!L308+'FR-16(7)(v)-4 PROD Energy'!L308+'FR-16(7)(v)-5 PROD Cust'!L308+'FR-16(7)(v)-7 TRANS Demand'!L308+'FR-16(7)(v)-8 TRANS Energy'!L308+'FR-16(7)(v)-9 TRANS Cust'!L308+'FR-16(7)(v)-11 DIST Demand'!L308+'FR-16(7)(v)-12 DIST Energy'!L308+'FR-16(7)(v)-13 DIST Cust'!L308","v":0},{"$f":"'FR-16(7)(v)-3 PROD Demand'!M308+'FR-16(7)(v)-4 PROD Energy'!M308+'FR-16(7)(v)-5 PROD Cust'!M308+'FR-16(7)(v)-7 TRANS Demand'!M308+'FR-16(7)(v)-8 TRANS Energy'!M308+'FR-16(7)(v)-9 TRANS Cust'!M308+'FR-16(7)(v)-11 DIST Demand'!M308+'FR-16(7)(v)-12 DIST Energy'!M308+'FR-16(7)(v)-13 DIST Cust'!M308","v":0},{"$f":"'FR-16(7)(v)-3 PROD Demand'!N308+'FR-16(7)(v)-4 PROD Energy'!N308+'FR-16(7)(v)-5 PROD Cust'!N308+'FR-16(7)(v)-7 TRANS Demand'!N308+'FR-16(7)(v)-8 TRANS Energy'!N308+'FR-16(7)(v)-9 TRANS Cust'!N308+'FR-16(7)(v)-11 DIST Demand'!N308+'FR-16(7)(v)-12 DIST Energy'!N308+'FR-16(7)(v)-13 DIST Cust'!N308","v":0},{"$f":"'FR-16(7)(v)-3 PROD Demand'!O308+'FR-16(7)(v)-4 PROD Energy'!O308+'FR-16(7)(v)-5 PROD Cust'!O308+'FR-16(7)(v)-7 TRANS Demand'!O308+'FR-16(7)(v)-8 TRANS Energy'!O308+'FR-16(7)(v)-9 TRANS Cust'!O308+'FR-16(7)(v)-11 DIST Demand'!O308+'FR-16(7)(v)-12 DIST Energy'!O308+'FR-16(7)(v)-13 DIST Cust'!O308","v":0},{"$f":"'FR-16(7)(v)-3 PROD Demand'!P308+'FR-16(7)(v)-4 PROD Energy'!P308+'FR-16(7)(v)-5 PROD Cust'!P308+'FR-16(7)(v)-7 TRANS Demand'!P308+'FR-16(7)(v)-8 TRANS Energy'!P308+'FR-16(7)(v)-9 TRANS Cust'!P308+'FR-16(7)(v)-11 DIST Demand'!P308+'FR-16(7)(v)-12 DIST Energy'!P308+'FR-16(7)(v)-13 DIST Cust'!P308","v":0},{"$f":"'FR-16(7)(v)-3 PROD Demand'!Q308+'FR-16(7)(v)-4 PROD Energy'!Q308+'FR-16(7)(v)-5 PROD Cust'!Q308+'FR-16(7)(v)-7 TRANS Demand'!Q308+'FR-16(7)(v)-8 TRANS Energy'!Q308+'FR-16(7)(v)-9 TRANS Cust'!Q308+'FR-16(7)(v)-11 DIST Demand'!Q308+'FR-16(7)(v)-12 DIST Energy'!Q308+'FR-16(7)(v)-13 DIST Cust'!Q308","v":0},0,0]
[21,null,{"$f":"'FR-16(7)(v)-1 Functional'!C309","v":"ARO CUMULATIVE EFFECT"},{"$f":"'FR-16(7)(v)-1 Functional'!D309","v":"NP29"},null,{"$f":"'FR-16(7)(v)-1 Functional'!F309","v":0},{"$f":"'FR-16(7)(v)-3 PROD Demand'!G309+'FR-16(7)(v)-4 PROD Energy'!G309+'FR-16(7)(v)-5 PROD Cust'!G309+'FR-16(7)(v)-7 TRANS Demand'!G309+'FR-16(7)(v)-8 TRANS Energy'!G309+'FR-16(7)(v)-9 TRANS Cust'!G309+'FR-16(7)(v)-11 DIST Demand'!G309+'FR-16(7)(v)-12 DIST Energy'!G309+'FR-16(7)(v)-13 DIST Cust'!G309","v":0},{"$f":"'FR-16(7)(v)-3 PROD Demand'!H309+'FR-16(7)(v)-4 PROD Energy'!H309+'FR-16(7)(v)-5 PROD Cust'!H309+'FR-16(7)(v)-7 TRANS Demand'!H309+'FR-16(7)(v)-8 TRANS Energy'!H309+'FR-16(7)(v)-9 TRANS Cust'!H309+'FR-16(7)(v)-11 DIST Demand'!H309+'FR-16(7)(v)-12 DIST Energy'!H309+'FR-16(7)(v)-13 DIST Cust'!H309","v":0},{"$f":"'FR-16(7)(v)-3 PROD Demand'!I309+'FR-16(7)(v)-4 PROD Energy'!I309+'FR-16(7)(v)-5 PROD Cust'!I309+'FR-16(7)(v)-7 TRANS Demand'!I309+'FR-16(7)(v)-8 TRANS Energy'!I309+'FR-16(7)(v)-9 TRANS Cust'!I309+'FR-16(7)(v)-11 DIST Demand'!I309+'FR-16(7)(v)-12 DIST Energy'!I309+'FR-16(7)(v)-13 DIST Cust'!I309","v":0},{"$f":"'FR-16(7)(v)-3 PROD Demand'!J309+'FR-16(7)(v)-4 PROD Energy'!J309+'FR-16(7)(v)-5 PROD Cust'!J309+'FR-16(7)(v)-7 TRANS Demand'!J309+'FR-16(7)(v)-8 TRANS Energy'!J309+'FR-16(7)(v)-9 TRANS Cust'!J309+'FR-16(7)(v)-11 DIST Demand'!J309+'FR-16(7)(v)-12 DIST Energy'!J309+'FR-16(7)(v)-13 DIST Cust'!J309","v":0},{"$f":"'FR-16(7)(v)-3 PROD Demand'!K309+'FR-16(7)(v)-4 PROD Energy'!K309+'FR-16(7)(v)-5 PROD Cust'!K309+'FR-16(7)(v)-7 TRANS Demand'!K309+'FR-16(7)(v)-8 TRANS Energy'!K309+'FR-16(7)(v)-9 TRANS Cust'!K309+'FR-16(7)(v)-11 DIST Demand'!K309+'FR-16(7)(v)-12 DIST Energy'!K309+'FR-16(7)(v)-13 DIST Cust'!K309","v":0},{"$f":"'FR-16(7)(v)-3 PROD Demand'!L309+'FR-16(7)(v)-4 PROD Energy'!L309+'FR-16(7)(v)-5 PROD Cust'!L309+'FR-16(7)(v)-7 TRANS Demand'!L309+'FR-16(7)(v)-8 TRANS Energy'!L309+'FR-16(7)(v)-9 TRANS Cust'!L309+'FR-16(7)(v)-11 DIST Demand'!L309+'FR-16(7)(v)-12 DIST Energy'!L309+'FR-16(7)(v)-13 DIST Cust'!L309","v":0},{"$f":"'FR-16(7)(v)-3 PROD Demand'!M309+'FR-16(7)(v)-4 PROD Energy'!M309+'FR-16(7)(v)-5 PROD Cust'!M309+'FR-16(7)(v)-7 TRANS Demand'!M309+'FR-16(7)(v)-8 TRANS Energy'!M309+'FR-16(7)(v)-9 TRANS Cust'!M309+'FR-16(7)(v)-11 DIST Demand'!M309+'FR-16(7)(v)-12 DIST Energy'!M309+'FR-16(7)(v)-13 DIST Cust'!M309","v":0},{"$f":"'FR-16(7)(v)-3 PROD Demand'!N309+'FR-16(7)(v)-4 PROD Energy'!N309+'FR-16(7)(v)-5 PROD Cust'!N309+'FR-16(7)(v)-7 TRANS Demand'!N309+'FR-16(7)(v)-8 TRANS Energy'!N309+'FR-16(7)(v)-9 TRANS Cust'!N309+'FR-16(7)(v)-11 DIST Demand'!N309+'FR-16(7)(v)-12 DIST Energy'!N309+'FR-16(7)(v)-13 DIST Cust'!N309","v":0},{"$f":"'FR-16(7)(v)-3 PROD Demand'!O309+'FR-16(7)(v)-4 PROD Energy'!O309+'FR-16(7)(v)-5 PROD Cust'!O309+'FR-16(7)(v)-7 TRANS Demand'!O309+'FR-16(7)(v)-8 TRANS Energy'!O309+'FR-16(7)(v)-9 TRANS Cust'!O309+'FR-16(7)(v)-11 DIST Demand'!O309+'FR-16(7)(v)-12 DIST Energy'!O309+'FR-16(7)(v)-13 DIST Cust'!O309","v":0},{"$f":"'FR-16(7)(v)-3 PROD Demand'!P309+'FR-16(7)(v)-4 PROD Energy'!P309+'FR-16(7)(v)-5 PROD Cust'!P309+'FR-16(7)(v)-7 TRANS Demand'!P309+'FR-16(7)(v)-8 TRANS Energy'!P309+'FR-16(7)(v)-9 TRANS Cust'!P309+'FR-16(7)(v)-11 DIST Demand'!P309+'FR-16(7)(v)-12 DIST Energy'!P309+'FR-16(7)(v)-13 DIST Cust'!P309","v":0},{"$f":"'FR-16(7)(v)-3 PROD Demand'!Q309+'FR-16(7)(v)-4 PROD Energy'!Q309+'FR-16(7)(v)-5 PROD Cust'!Q309+'FR-16(7)(v)-7 TRANS Demand'!Q309+'FR-16(7)(v)-8 TRANS Energy'!Q309+'FR-16(7)(v)-9 TRANS Cust'!Q309+'FR-16(7)(v)-11 DIST Demand'!Q309+'FR-16(7)(v)-12 DIST Energy'!Q309+'FR-16(7)(v)-13 DIST Cust'!Q309","v":0},0,0]
[22,null,{"$f":"'FR-16(7)(v)-1 Functional'!C310","v":"LOSS ON REACQUIRED DEBT"},{"$f":"'FR-16(7)(v)-1 Functional'!D310","v":"D249"},null,{"$f":"'FR-16(7)(v)-1 Functional'!F310","v":0},{"$f":"'FR-16(7)(v)-3 PROD Demand'!G310+'FR-16(7)(v)-4 PROD Energy'!G310+'FR-16(7)(v)-5 PROD Cust'!G310+'FR-16(7)(v)-7 TRANS Demand'!G310+'FR-16(7)(v)-8 TRANS Energy'!G310+'FR-16(7)(v)-9 TRANS Cust'!G310+'FR-16(7)(v)-11 DIST Demand'!G310+'FR-16(7)(v)-12 DIST Energy'!G310+'FR-16(7)(v)-13 DIST Cust'!G310","v":0},{"$f":"'FR-16(7)(v)-3 PROD Demand'!H310+'FR-16(7)(v)-4 PROD Energy'!H310+'FR-16(7)(v)-5 PROD Cust'!H310+'FR-16(7)(v)-7 TRANS Demand'!H310+'FR-16(7)(v)-8 TRANS Energy'!H310+'FR-16(7)(v)-9 TRANS Cust'!H310+'FR-16(7)(v)-11 DIST Demand'!H310+'FR-16(7)(v)-12 DIST Energy'!H310+'FR-16(7)(v)-13 DIST Cust'!H310","v":0},{"$f":"'FR-16(7)(v)-3 PROD Demand'!I310+'FR-16(7)(v)-4 PROD Energy'!I310+'FR-16(7)(v)-5 PROD Cust'!I310+'FR-16(7)(v)-7 TRANS Demand'!I310+'FR-16(7)(v)-8 TRANS Energy'!I310+'FR-16(7)(v)-9 TRANS Cust'!I310+'FR-16(7)(v)-11 DIST Demand'!I310+'FR-16(7)(v)-12 DIST Energy'!I310+'FR-16(7)(v)-13 DIST Cust'!I310","v":0},{"$f":"'FR-16(7)(v)-3 PROD Demand'!J310+'FR-16(7)(v)-4 PROD Energy'!J310+'FR-16(7)(v)-5 PROD Cust'!J310+'FR-16(7)(v)-7 TRANS Demand'!J310+'FR-16(7)(v)-8 TRANS Energy'!J310+'FR-16(7)(v)-9 TRANS Cust'!J310+'FR-16(7)(v)-11 DIST Demand'!J310+'FR-16(7)(v)-12 DIST Energy'!J310+'FR-16(7)(v)-13 DIST Cust'!J310","v":0},{"$f":"'FR-16(7)(v)-3 PROD Demand'!K310+'FR-16(7)(v)-4 PROD Energy'!K310+'FR-16(7)(v)-5 PROD Cust'!K310+'FR-16(7)(v)-7 TRANS Demand'!K310+'FR-16(7)(v)-8 TRANS Energy'!K310+'FR-16(7)(v)-9 TRANS Cust'!K310+'FR-16(7)(v)-11 DIST Demand'!K310+'FR-16(7)(v)-12 DIST Energy'!K310+'FR-16(7)(v)-13 DIST Cust'!K310","v":0},{"$f":"'FR-16(7)(v)-3 PROD Demand'!L310+'FR-16(7)(v)-4 PROD Energy'!L310+'FR-16(7)(v)-5 PROD Cust'!L310+'FR-16(7)(v)-7 TRANS Demand'!L310+'FR-16(7)(v)-8 TRANS Energy'!L310+'FR-16(7)(v)-9 TRANS Cust'!L310+'FR-16(7)(v)-11 DIST Demand'!L310+'FR-16(7)(v)-12 DIST Energy'!L310+'FR-16(7)(v)-13 DIST Cust'!L310","v":0},{"$f":"'FR-16(7)(v)-3 PROD Demand'!M310+'FR-16(7)(v)-4 PROD Energy'!M310+'FR-16(7)(v)-5 PROD Cust'!M310+'FR-16(7)(v)-7 TRANS Demand'!M310+'FR-16(7)(v)-8 TRANS Energy'!M310+'FR-16(7)(v)-9 TRANS Cust'!M310+'FR-16(7)(v)-11 DIST Demand'!M310+'FR-16(7)(v)-12 DIST Energy'!M310+'FR-16(7)(v)-13 DIST Cust'!M310","v":0},{"$f":"'FR-16(7)(v)-3 PROD Demand'!N310+'FR-16(7)(v)-4 PROD Energy'!N310+'FR-16(7)(v)-5 PROD Cust'!N310+'FR-16(7)(v)-7 TRANS Demand'!N310+'FR-16(7)(v)-8 TRANS Energy'!N310+'FR-16(7)(v)-9 TRANS Cust'!N310+'FR-16(7)(v)-11 DIST Demand'!N310+'FR-16(7)(v)-12 DIST Energy'!N310+'FR-16(7)(v)-13 DIST Cust'!N310","v":0},{"$f":"'FR-16(7)(v)-3 PROD Demand'!O310+'FR-16(7)(v)-4 PROD Energy'!O310+'FR-16(7)(v)-5 PROD Cust'!O310+'FR-16(7)(v)-7 TRANS Demand'!O310+'FR-16(7)(v)-8 TRANS Energy'!O310+'FR-16(7)(v)-9 TRANS Cust'!O310+'FR-16(7)(v)-11 DIST Demand'!O310+'FR-16(7)(v)-12 DIST Energy'!O310+'FR-16(7)(v)-13 DIST Cust'!O310","v":0},{"$f":"'FR-16(7)(v)-3 PROD Demand'!P310+'FR-16(7)(v)-4 PROD Energy'!P310+'FR-16(7)(v)-5 PROD Cust'!P310+'FR-16(7)(v)-7 TRANS Demand'!P310+'FR-16(7)(v)-8 TRANS Energy'!P310+'FR-16(7)(v)-9 TRANS Cust'!P310+'FR-16(7)(v)-11 DIST Demand'!P310+'FR-16(7)(v)-12 DIST Energy'!P310+'FR-16(7)(v)-13 DIST Cust'!P310","v":0},{"$f":"'FR-16(7)(v)-3 PROD Demand'!Q310+'FR-16(7)(v)-4 PROD Energy'!Q310+'FR-16(7)(v)-5 PROD Cust'!Q310+'FR-16(7)(v)-7 TRANS Demand'!Q310+'FR-16(7)(v)-8 TRANS Energy'!Q310+'FR-16(7)(v)-9 TRANS Cust'!Q310+'FR-16(7)(v)-11 DIST Demand'!Q310+'FR-16(7)(v)-12 DIST Energy'!Q310+'FR-16(7)(v)-13 DIST Cust'!Q310","v":0},0,0]
[23,null,{"$f":"'FR-16(7)(v)-1 Functional'!C311","v":"VACATION PAY ACCRUAL"},{"$f":"'FR-16(7)(v)-1 Functional'!D311","v":"A315"},null,{"$f":"'FR-16(7)(v)-1 Functional'!F311","v":0},{"$f":"'FR-16(7)(v)-3 PROD Demand'!G311+'FR-16(7)(v)-4 PROD Energy'!G311+'FR-16(7)(v)-5 PROD Cust'!G311+'FR-16(7)(v)-7 TRANS Demand'!G311+'FR-16(7)(v)-8 TRANS Energy'!G311+'FR-16(7)(v)-9 TRANS Cust'!G311+'FR-16(7)(v)-11 DIST Demand'!G311+'FR-16(7)(v)-12 DIST Energy'!G311+'FR-16(7)(v)-13 DIST Cust'!G311","v":0},{"$f":"'FR-16(7)(v)-3 PROD Demand'!H311+'FR-16(7)(v)-4 PROD Energy'!H311+'FR-16(7)(v)-5 PROD Cust'!H311+'FR-16(7)(v)-7 TRANS Demand'!H311+'FR-16(7)(v)-8 TRANS Energy'!H311+'FR-16(7)(v)-9 TRANS Cust'!H311+'FR-16(7)(v)-11 DIST Demand'!H311+'FR-16(7)(v)-12 DIST Energy'!H311+'FR-16(7)(v)-13 DIST Cust'!H311","v":0},{"$f":"'FR-16(7)(v)-3 PROD Demand'!I311+'FR-16(7)(v)-4 PROD Energy'!I311+'FR-16(7)(v)-5 PROD Cust'!I311+'FR-16(7)(v)-7 TRANS Demand'!I311+'FR-16(7)(v)-8 TRANS Energy'!I311+'FR-16(7)(v)-9 TRANS Cust'!I311+'FR-16(7)(v)-11 DIST Demand'!I311+'FR-16(7)(v)-12 DIST Energy'!I311+'FR-16(7)(v)-13 DIST Cust'!I311","v":0},{"$f":"'FR-16(7)(v)-3 PROD Demand'!J311+'FR-16(7)(v)-4 PROD Energy'!J311+'FR-16(7)(v)-5 PROD Cust'!J311+'FR-16(7)(v)-7 TRANS Demand'!J311+'FR-16(7)(v)-8 TRANS Energy'!J311+'FR-16(7)(v)-9 TRANS Cust'!J311+'FR-16(7)(v)-11 DIST Demand'!J311+'FR-16(7)(v)-12 DIST Energy'!J311+'FR-16(7)(v)-13 DIST Cust'!J311","v":0},{"$f":"'FR-16(7)(v)-3 PROD Demand'!K311+'FR-16(7)(v)-4 PROD Energy'!K311+'FR-16(7)(v)-5 PROD Cust'!K311+'FR-16(7)(v)-7 TRANS Demand'!K311+'FR-16(7)(v)-8 TRANS Energy'!K311+'FR-16(7)(v)-9 TRANS Cust'!K311+'FR-16(7)(v)-11 DIST Demand'!K311+'FR-16(7)(v)-12 DIST Energy'!K311+'FR-16(7)(v)-13 DIST Cust'!K311","v":0},{"$f":"'FR-16(7)(v)-3 PROD Demand'!L311+'FR-16(7)(v)-4 PROD Energy'!L311+'FR-16(7)(v)-5 PROD Cust'!L311+'FR-16(7)(v)-7 TRANS Demand'!L311+'FR-16(7)(v)-8 TRANS Energy'!L311+'FR-16(7)(v)-9 TRANS Cust'!L311+'FR-16(7)(v)-11 DIST Demand'!L311+'FR-16(7)(v)-12 DIST Energy'!L311+'FR-16(7)(v)-13 DIST Cust'!L311","v":0},{"$f":"'FR-16(7)(v)-3 PROD Demand'!M311+'FR-16(7)(v)-4 PROD Energy'!M311+'FR-16(7)(v)-5 PROD Cust'!M311+'FR-16(7)(v)-7 TRANS Demand'!M311+'FR-16(7)(v)-8 TRANS Energy'!M311+'FR-16(7)(v)-9 TRANS Cust'!M311+'FR-16(7)(v)-11 DIST Demand'!M311+'FR-16(7)(v)-12 DIST Energy'!M311+'FR-16(7)(v)-13 DIST Cust'!M311","v":0},{"$f":"'FR-16(7)(v)-3 PROD Demand'!N311+'FR-16(7)(v)-4 PROD Energy'!N311+'FR-16(7)(v)-5 PROD Cust'!N311+'FR-16(7)(v)-7 TRANS Demand'!N311+'FR-16(7)(v)-8 TRANS Energy'!N311+'FR-16(7)(v)-9 TRANS Cust'!N311+'FR-16(7)(v)-11 DIST Demand'!N311+'FR-16(7)(v)-12 DIST Energy'!N311+'FR-16(7)(v)-13 DIST Cust'!N311","v":0},{"$f":"'FR-16(7)(v)-3 PROD Demand'!O311+'FR-16(7)(v)-4 PROD Energy'!O311+'FR-16(7)(v)-5 PROD Cust'!O311+'FR-16(7)(v)-7 TRANS Demand'!O311+'FR-16(7)(v)-8 TRANS Energy'!O311+'FR-16(7)(v)-9 TRANS Cust'!O311+'FR-16(7)(v)-11 DIST Demand'!O311+'FR-16(7)(v)-12 DIST Energy'!O311+'FR-16(7)(v)-13 DIST Cust'!O311","v":0},{"$f":"'FR-16(7)(v)-3 PROD Demand'!P311+'FR-16(7)(v)-4 PROD Energy'!P311+'FR-16(7)(v)-5 PROD Cust'!P311+'FR-16(7)(v)-7 TRANS Demand'!P311+'FR-16(7)(v)-8 TRANS Energy'!P311+'FR-16(7)(v)-9 TRANS Cust'!P311+'FR-16(7)(v)-11 DIST Demand'!P311+'FR-16(7)(v)-12 DIST Energy'!P311+'FR-16(7)(v)-13 DIST Cust'!P311","v":0},{"$f":"'FR-16(7)(v)-3 PROD Demand'!Q311+'FR-16(7)(v)-4 PROD Energy'!Q311+'FR-16(7)(v)-5 PROD Cust'!Q311+'FR-16(7)(v)-7 TRANS Demand'!Q311+'FR-16(7)(v)-8 TRANS Energy'!Q311+'FR-16(7)(v)-9 TRANS Cust'!Q311+'FR-16(7)(v)-11 DIST Demand'!Q311+'FR-16(7)(v)-12 DIST Energy'!Q311+'FR-16(7)(v)-13 DIST Cust'!Q311","v":0},0,0]
[24,null,{"$f":"'FR-16(7)(v)-1 Functional'!C312","v":"NON-AMI METERS RETIRED EARLY"},{"$f":"'FR-16(7)(v)-1 Functional'!D312","v":"OM39"},null,{"$f":"'FR-16(7)(v)-1 Functional'!F312","v":1308623},{"$f":"'FR-16(7)(v)-3 PROD Demand'!G312+'FR-16(7)(v)-4 PROD Energy'!G312+'FR-16(7)(v)-5 PROD Cust'!G312+'FR-16(7)(v)-7 TRANS Demand'!G312+'FR-16(7)(v)-8 TRANS Energy'!G312+'FR-16(7)(v)-9 TRANS Cust'!G312+'FR-16(7)(v)-11 DIST Demand'!G312+'FR-16(7)(v)-12 DIST Energy'!G312+'FR-16(7)(v)-13 DIST Cust'!G312","v":578395},{"$f":"'FR-16(7)(v)-3 PROD Demand'!H312+'FR-16(7)(v)-4 PROD Energy'!H312+'FR-16(7)(v)-5 PROD Cust'!H312+'FR-16(7)(v)-7 TRANS Demand'!H312+'FR-16(7)(v)-8 TRANS Energy'!H312+'FR-16(7)(v)-9 TRANS Cust'!H312+'FR-16(7)(v)-11 DIST Demand'!H312+'FR-16(7)(v)-12 DIST Energy'!H312+'FR-16(7)(v)-13 DIST Cust'!H312","v":331255},{"$f":"'FR-16(7)(v)-3 PROD Demand'!I312+'FR-16(7)(v)-4 PROD Energy'!I312+'FR-16(7)(v)-5 PROD Cust'!I312+'FR-16(7)(v)-7 TRANS Demand'!I312+'FR-16(7)(v)-8 TRANS Energy'!I312+'FR-16(7)(v)-9 TRANS Cust'!I312+'FR-16(7)(v)-11 DIST Demand'!I312+'FR-16(7)(v)-12 DIST Energy'!I312+'FR-16(7)(v)-13 DIST Cust'!I312","v":1796},{"$f":"'FR-16(7)(v)-3 PROD Demand'!J312+'FR-16(7)(v)-4 PROD Energy'!J312+'FR-16(7)(v)-5 PROD Cust'!J312+'FR-16(7)(v)-7 TRANS Demand'!J312+'FR-16(7)(v)-8 TRANS Energy'!J312+'FR-16(7)(v)-9 TRANS Cust'!J312+'FR-16(7)(v)-11 DIST Demand'!J312+'FR-16(7)(v)-12 DIST Energy'!J312+'FR-16(7)(v)-13 DIST Cust'!J312","v":5564},{"$f":"'FR-16(7)(v)-3 PROD Demand'!K312+'FR-16(7)(v)-4 PROD Energy'!K312+'FR-16(7)(v)-5 PROD Cust'!K312+'FR-16(7)(v)-7 TRANS Demand'!K312+'FR-16(7)(v)-8 TRANS Energy'!K312+'FR-16(7)(v)-9 TRANS Cust'!K312+'FR-16(7)(v)-11 DIST Demand'!K312+'FR-16(7)(v)-12 DIST Energy'!K312+'FR-16(7)(v)-13 DIST Cust'!K312","v":95},{"$f":"'FR-16(7)(v)-3 PROD Demand'!L312+'FR-16(7)(v)-4 PROD Energy'!L312+'FR-16(7)(v)-5 PROD Cust'!L312+'FR-16(7)(v)-7 TRANS Demand'!L312+'FR-16(7)(v)-8 TRANS Energy'!L312+'FR-16(7)(v)-9 TRANS Cust'!L312+'FR-16(7)(v)-11 DIST Demand'!L312+'FR-16(7)(v)-12 DIST Energy'!L312+'FR-16(7)(v)-13 DIST Cust'!L312","v":187745},{"$f":"'FR-16(7)(v)-3 PROD Demand'!M312+'FR-16(7)(v)-4 PROD Energy'!M312+'FR-16(7)(v)-5 PROD Cust'!M312+'FR-16(7)(v)-7 TRANS Demand'!M312+'FR-16(7)(v)-8 TRANS Energy'!M312+'FR-16(7)(v)-9 TRANS Cust'!M312+'FR-16(7)(v)-11 DIST Demand'!M312+'FR-16(7)(v)-12 DIST Energy'!M312+'FR-16(7)(v)-13 DIST Cust'!M312","v":129039},{"$f":"'FR-16(7)(v)-3 PROD Demand'!N312+'FR-16(7)(v)-4 PROD Energy'!N312+'FR-16(7)(v)-5 PROD Cust'!N312+'FR-16(7)(v)-7 TRANS Demand'!N312+'FR-16(7)(v)-8 TRANS Energy'!N312+'FR-16(7)(v)-9 TRANS Cust'!N312+'FR-16(7)(v)-11 DIST Demand'!N312+'FR-16(7)(v)-12 DIST Energy'!N312+'FR-16(7)(v)-13 DIST Cust'!N312","v":6150},{"$f":"'FR-16(7)(v)-3 PROD Demand'!O312+'FR-16(7)(v)-4 PROD Energy'!O312+'FR-16(7)(v)-5 PROD Cust'!O312+'FR-16(7)(v)-7 TRANS Demand'!O312+'FR-16(7)(v)-8 TRANS Energy'!O312+'FR-16(7)(v)-9 TRANS Cust'!O312+'FR-16(7)(v)-11 DIST Demand'!O312+'FR-16(7)(v)-12 DIST Energy'!O312+'FR-16(7)(v)-13 DIST Cust'!O312","v":59495},{"$f":"'FR-16(7)(v)-3 PROD Demand'!P312+'FR-16(7)(v)-4 PROD Energy'!P312+'FR-16(7)(v)-5 PROD Cust'!P312+'FR-16(7)(v)-7 TRANS Demand'!P312+'FR-16(7)(v)-8 TRANS Energy'!P312+'FR-16(7)(v)-9 TRANS Cust'!P312+'FR-16(7)(v)-11 DIST Demand'!P312+'FR-16(7)(v)-12 DIST Energy'!P312+'FR-16(7)(v)-13 DIST Cust'!P312","v":8941},{"$f":"'FR-16(7)(v)-3 PROD Demand'!Q312+'FR-16(7)(v)-4 PROD Energy'!Q312+'FR-16(7)(v)-5 PROD Cust'!Q312+'FR-16(7)(v)-7 TRANS Demand'!Q312+'FR-16(7)(v)-8 TRANS Energy'!Q312+'FR-16(7)(v)-9 TRANS Cust'!Q312+'FR-16(7)(v)-11 DIST Demand'!Q312+'FR-16(7)(v)-12 DIST Energy'!Q312+'FR-16(7)(v)-13 DIST Cust'!Q312","v":148},{"$f":"SUM(G312:Q312)","v":1308623},0]
[25,null,{"$f":"'FR-16(7)(v)-1 Functional'!C313","v":"PENSION EXPENSE"},{"$f":"'FR-16(7)(v)-1 Functional'!D313","v":"A315"},null,{"$f":"'FR-16(7)(v)-1 Functional'!F313","v":6884317},{"$f":"'FR-16(7)(v)-3 PROD Demand'!G313+'FR-16(7)(v)-4 PROD Energy'!G313+'FR-16(7)(v)-5 PROD Cust'!G313+'FR-16(7)(v)-7 TRANS Demand'!G313+'FR-16(7)(v)-8 TRANS Energy'!G313+'FR-16(7)(v)-9 TRANS Cust'!G313+'FR-16(7)(v)-11 DIST Demand'!G313+'FR-16(7)(v)-12 DIST Energy'!G313+'FR-16(7)(v)-13 DIST Cust'!G313","v":4500601},{"$f":"'FR-16(7)(v)-3 PROD Demand'!H313+'FR-16(7)(v)-4 PROD Energy'!H313+'FR-16(7)(v)-5 PROD Cust'!H313+'FR-16(7)(v)-7 TRANS Demand'!H313+'FR-16(7)(v)-8 TRANS Energy'!H313+'FR-16(7)(v)-9 TRANS Cust'!H313+'FR-16(7)(v)-11 DIST Demand'!H313+'FR-16(7)(v)-12 DIST Energy'!H313+'FR-16(7)(v)-13 DIST Cust'!H313","v":1166269},{"$f":"'FR-16(7)(v)-3 PROD Demand'!I313+'FR-16(7)(v)-4 PROD Energy'!I313+'FR-16(7)(v)-5 PROD Cust'!I313+'FR-16(7)(v)-7 TRANS Demand'!I313+'FR-16(7)(v)-8 TRANS Energy'!I313+'FR-16(7)(v)-9 TRANS Cust'!I313+'FR-16(7)(v)-11 DIST Demand'!I313+'FR-16(7)(v)-12 DIST Energy'!I313+'FR-16(7)(v)-13 DIST Cust'!I313","v":6202},{"$f":"'FR-16(7)(v)-3 PROD Demand'!J313+'FR-16(7)(v)-4 PROD Energy'!J313+'FR-16(7)(v)-5 PROD Cust'!J313+'FR-16(7)(v)-7 TRANS Demand'!J313+'FR-16(7)(v)-8 TRANS Energy'!J313+'FR-16(7)(v)-9 TRANS Cust'!J313+'FR-16(7)(v)-11 DIST Demand'!J313+'FR-16(7)(v)-12 DIST Energy'!J313+'FR-16(7)(v)-13 DIST Cust'!J313","v":19894},{"$f":"'FR-16(7)(v)-3 PROD Demand'!K313+'FR-16(7)(v)-4 PROD Energy'!K313+'FR-16(7)(v)-5 PROD Cust'!K313+'FR-16(7)(v)-7 TRANS Demand'!K313+'FR-16(7)(v)-8 TRANS Energy'!K313+'FR-16(7)(v)-9 TRANS Cust'!K313+'FR-16(7)(v)-11 DIST Demand'!K313+'FR-16(7)(v)-12 DIST Energy'!K313+'FR-16(7)(v)-13 DIST Cust'!K313","v":448},{"$f":"'FR-16(7)(v)-3 PROD Demand'!L313+'FR-16(7)(v)-4 PROD Energy'!L313+'FR-16(7)(v)-5 PROD Cust'!L313+'FR-16(7)(v)-7 TRANS Demand'!L313+'FR-16(7)(v)-8 TRANS Energy'!L313+'FR-16(7)(v)-9 TRANS Cust'!L313+'FR-16(7)(v)-11 DIST Demand'!L313+'FR-16(7)(v)-12 DIST Energy'!L313+'FR-16(7)(v)-13 DIST Cust'!L313","v":570409},{"$f":"'FR-16(7)(v)-3 PROD Demand'!M313+'FR-16(7)(v)-4 PROD Energy'!M313+'FR-16(7)(v)-5 PROD Cust'!M313+'FR-16(7)(v)-7 TRANS Demand'!M313+'FR-16(7)(v)-8 TRANS Energy'!M313+'FR-16(7)(v)-9 TRANS Cust'!M313+'FR-16(7)(v)-11 DIST Demand'!M313+'FR-16(7)(v)-12 DIST Energy'!M313+'FR-16(7)(v)-13 DIST Cust'!M313","v":384840},{"$f":"'FR-16(7)(v)-3 PROD Demand'!N313+'FR-16(7)(v)-4 PROD Energy'!N313+'FR-16(7)(v)-5 PROD Cust'!N313+'FR-16(7)(v)-7 TRANS Demand'!N313+'FR-16(7)(v)-8 TRANS Energy'!N313+'FR-16(7)(v)-9 TRANS Cust'!N313+'FR-16(7)(v)-11 DIST Demand'!N313+'FR-16(7)(v)-12 DIST Energy'!N313+'FR-16(7)(v)-13 DIST Cust'!N313","v":18940},{"$f":"'FR-16(7)(v)-3 PROD Demand'!O313+'FR-16(7)(v)-4 PROD Energy'!O313+'FR-16(7)(v)-5 PROD Cust'!O313+'FR-16(7)(v)-7 TRANS Demand'!O313+'FR-16(7)(v)-8 TRANS Energy'!O313+'FR-16(7)(v)-9 TRANS Cust'!O313+'FR-16(7)(v)-11 DIST Demand'!O313+'FR-16(7)(v)-12 DIST Energy'!O313+'FR-16(7)(v)-13 DIST Cust'!O313","v":158593},{"$f":"'FR-16(7)(v)-3 PROD Demand'!P313+'FR-16(7)(v)-4 PROD Energy'!P313+'FR-16(7)(v)-5 PROD Cust'!P313+'FR-16(7)(v)-7 TRANS Demand'!P313+'FR-16(7)(v)-8 TRANS Energy'!P313+'FR-16(7)(v)-9 TRANS Cust'!P313+'FR-16(7)(v)-11 DIST Demand'!P313+'FR-16(7)(v)-12 DIST Energy'!P313+'FR-16(7)(v)-13 DIST Cust'!P313","v":57499},{"$f":"'FR-16(7)(v)-3 PROD Demand'!Q313+'FR-16(7)(v)-4 PROD Energy'!Q313+'FR-16(7)(v)-5 PROD Cust'!Q313+'FR-16(7)(v)-7 TRANS Demand'!Q313+'FR-16(7)(v)-8 TRANS Energy'!Q313+'FR-16(7)(v)-9 TRANS Cust'!Q313+'FR-16(7)(v)-11 DIST Demand'!Q313+'FR-16(7)(v)-12 DIST Energy'!Q313+'FR-16(7)(v)-13 DIST Cust'!Q313","v":622},{"$f":"SUM(G313:Q313)","v":6884317},0]
[26,null,{"$f":"'FR-16(7)(v)-1 Functional'!C314","v":"UNCOLLECTIBLE ACCOUNTS"},{"$f":"'FR-16(7)(v)-1 Functional'!D314","v":"K411"},null,{"$f":"'FR-16(7)(v)-1 Functional'!F314","v":0},{"$f":"'FR-16(7)(v)-3 PROD Demand'!G314+'FR-16(7)(v)-4 PROD Energy'!G314+'FR-16(7)(v)-5 PROD Cust'!G314+'FR-16(7)(v)-7 TRANS Demand'!G314+'FR-16(7)(v)-8 TRANS Energy'!G314+'FR-16(7)(v)-9 TRANS Cust'!G314+'FR-16(7)(v)-11 DIST Demand'!G314+'FR-16(7)(v)-12 DIST Energy'!G314+'FR-16(7)(v)-13 DIST Cust'!G314","v":0},{"$f":"'FR-16(7)(v)-3 PROD Demand'!H314+'FR-16(7)(v)-4 PROD Energy'!H314+'FR-16(7)(v)-5 PROD Cust'!H314+'FR-16(7)(v)-7 TRANS Demand'!H314+'FR-16(7)(v)-8 TRANS Energy'!H314+'FR-16(7)(v)-9 TRANS Cust'!H314+'FR-16(7)(v)-11 DIST Demand'!H314+'FR-16(7)(v)-12 DIST Energy'!H314+'FR-16(7)(v)-13 DIST Cust'!H314","v":0},{"$f":"'FR-16(7)(v)-3 PROD Demand'!I314+'FR-16(7)(v)-4 PROD Energy'!I314+'FR-16(7)(v)-5 PROD Cust'!I314+'FR-16(7)(v)-7 TRANS Demand'!I314+'FR-16(7)(v)-8 TRANS Energy'!I314+'FR-16(7)(v)-9 TRANS Cust'!I314+'FR-16(7)(v)-11 DIST Demand'!I314+'FR-16(7)(v)-12 DIST Energy'!I314+'FR-16(7)(v)-13 DIST Cust'!I314","v":0},{"$f":"'FR-16(7)(v)-3 PROD Demand'!J314+'FR-16(7)(v)-4 PROD Energy'!J314+'FR-16(7)(v)-5 PROD Cust'!J314+'FR-16(7)(v)-7 TRANS Demand'!J314+'FR-16(7)(v)-8 TRANS Energy'!J314+'FR-16(7)(v)-9 TRANS Cust'!J314+'FR-16(7)(v)-11 DIST Demand'!J314+'FR-16(7)(v)-12 DIST Energy'!J314+'FR-16(7)(v)-13 DIST Cust'!J314","v":0},{"$f":"'FR-16(7)(v)-3 PROD Demand'!K314+'FR-16(7)(v)-4 PROD Energy'!K314+'FR-16(7)(v)-5 PROD Cust'!K314+'FR-16(7)(v)-7 TRANS Demand'!K314+'FR-16(7)(v)-8 TRANS Energy'!K314+'FR-16(7)(v)-9 TRANS Cust'!K314+'FR-16(7)(v)-11 DIST Demand'!K314+'FR-16(7)(v)-12 DIST Energy'!K314+'FR-16(7)(v)-13 DIST Cust'!K314","v":0},{"$f":"'FR-16(7)(v)-3 PROD Demand'!L314+'FR-16(7)(v)-4 PROD Energy'!L314+'FR-16(7)(v)-5 PROD Cust'!L314+'FR-16(7)(v)-7 TRANS Demand'!L314+'FR-16(7)(v)-8 TRANS Energy'!L314+'FR-16(7)(v)-9 TRANS Cust'!L314+'FR-16(7)(v)-11 DIST Demand'!L314+'FR-16(7)(v)-12 DIST Energy'!L314+'FR-16(7)(v)-13 DIST Cust'!L314","v":0},{"$f":"'FR-16(7)(v)-3 PROD Demand'!M314+'FR-16(7)(v)-4 PROD Energy'!M314+'FR-16(7)(v)-5 PROD Cust'!M314+'FR-16(7)(v)-7 TRANS Demand'!M314+'FR-16(7)(v)-8 TRANS Energy'!M314+'FR-16(7)(v)-9 TRANS Cust'!M314+'FR-16(7)(v)-11 DIST Demand'!M314+'FR-16(7)(v)-12 DIST Energy'!M314+'FR-16(7)(v)-13 DIST Cust'!M314","v":0},{"$f":"'FR-16(7)(v)-3 PROD Demand'!N314+'FR-16(7)(v)-4 PROD Energy'!N314+'FR-16(7)(v)-5 PROD Cust'!N314+'FR-16(7)(v)-7 TRANS Demand'!N314+'FR-16(7)(v)-8 TRANS Energy'!N314+'FR-16(7)(v)-9 TRANS Cust'!N314+'FR-16(7)(v)-11 DIST Demand'!N314+'FR-16(7)(v)-12 DIST Energy'!N314+'FR-16(7)(v)-13 DIST Cust'!N314","v":0},{"$f":"'FR-16(7)(v)-3 PROD Demand'!O314+'FR-16(7)(v)-4 PROD Energy'!O314+'FR-16(7)(v)-5 PROD Cust'!O314+'FR-16(7)(v)-7 TRANS Demand'!O314+'FR-16(7)(v)-8 TRANS Energy'!O314+'FR-16(7)(v)-9 TRANS Cust'!O314+'FR-16(7)(v)-11 DIST Demand'!O314+'FR-16(7)(v)-12 DIST Energy'!O314+'FR-16(7)(v)-13 DIST Cust'!O314","v":0},{"$f":"'FR-16(7)(v)-3 PROD Demand'!P314+'FR-16(7)(v)-4 PROD Energy'!P314+'FR-16(7)(v)-5 PROD Cust'!P314+'FR-16(7)(v)-7 TRANS Demand'!P314+'FR-16(7)(v)-8 TRANS Energy'!P314+'FR-16(7)(v)-9 TRANS Cust'!P314+'FR-16(7)(v)-11 DIST Demand'!P314+'FR-16(7)(v)-12 DIST Energy'!P314+'FR-16(7)(v)-13 DIST Cust'!P314","v":0},{"$f":"'FR-16(7)(v)-3 PROD Demand'!Q314+'FR-16(7)(v)-4 PROD Energy'!Q314+'FR-16(7)(v)-5 PROD Cust'!Q314+'FR-16(7)(v)-7 TRANS Demand'!Q314+'FR-16(7)(v)-8 TRANS Energy'!Q314+'FR-16(7)(v)-9 TRANS Cust'!Q314+'FR-16(7)(v)-11 DIST Demand'!Q314+'FR-16(7)(v)-12 DIST Energy'!Q314+'FR-16(7)(v)-13 DIST Cust'!Q314","v":0},0,0]
[27,null,{"$f":"'FR-16(7)(v)-1 Functional'!C315","v":"  TOTAL ACCOUNT 283"},null,null,{"$f":"SUM(F303:F314)","v":16147269},8441022,3498932,19237,{"$f":"SUM(J303:J314)","v":57035},1116,1954965,1346661,64441,636196,125981,1683,16147269,0]
[28]
[29," OTHER ACCUMULATED DEFERRED INCOME TAXES"]
[30,null,{"$f":"'FR-16(7)(v)-1 Functional'!C318","v":"EXCESS ADIT"},"D249",null,{"$f":"'FR-16(7)(v)-1 Functional'!F318","v":63555450},{"$f":"'FR-16(7)(v)-3 PROD Demand'!G318+'FR-16(7)(v)-4 PROD Energy'!G318+'FR-16(7)(v)-5 PROD Cust'!G318+'FR-16(7)(v)-7 TRANS Demand'!G318+'FR-16(7)(v)-8 TRANS Energy'!G318+'FR-16(7)(v)-9 TRANS Cust'!G318+'FR-16(7)(v)-11 DIST Demand'!G318+'FR-16(7)(v)-12 DIST Energy'!G318+'FR-16(7)(v)-13 DIST Cust'!G318","v":31399499},{"$f":"'FR-16(7)(v)-3 PROD Demand'!H318+'FR-16(7)(v)-4 PROD Energy'!H318+'FR-16(7)(v)-5 PROD Cust'!H318+'FR-16(7)(v)-7 TRANS Demand'!H318+'FR-16(7)(v)-8 TRANS Energy'!H318+'FR-16(7)(v)-9 TRANS Cust'!H318+'FR-16(7)(v)-11 DIST Demand'!H318+'FR-16(7)(v)-12 DIST Energy'!H318+'FR-16(7)(v)-13 DIST Cust'!H318","v":16348258},{"$f":"'FR-16(7)(v)-3 PROD Demand'!I318+'FR-16(7)(v)-4 PROD Energy'!I318+'FR-16(7)(v)-5 PROD Cust'!I318+'FR-16(7)(v)-7 TRANS Demand'!I318+'FR-16(7)(v)-8 TRANS Energy'!I318+'FR-16(7)(v)-9 TRANS Cust'!I318+'FR-16(7)(v)-11 DIST Demand'!I318+'FR-16(7)(v)-12 DIST Energy'!I318+'FR-16(7)(v)-13 DIST Cust'!I318","v":80366},{"$f":"'FR-16(7)(v)-3 PROD Demand'!J318+'FR-16(7)(v)-4 PROD Energy'!J318+'FR-16(7)(v)-5 PROD Cust'!J318+'FR-16(7)(v)-7 TRANS Demand'!J318+'FR-16(7)(v)-8 TRANS Energy'!J318+'FR-16(7)(v)-9 TRANS Cust'!J318+'FR-16(7)(v)-11 DIST Demand'!J318+'FR-16(7)(v)-12 DIST Energy'!J318+'FR-16(7)(v)-13 DIST Cust'!J318","v":318244},{"$f":"'FR-16(7)(v)-3 PROD Demand'!K318+'FR-16(7)(v)-4 PROD Energy'!K318+'FR-16(7)(v)-5 PROD Cust'!K318+'FR-16(7)(v)-7 TRANS Demand'!K318+'FR-16(7)(v)-8 TRANS Energy'!K318+'FR-16(7)(v)-9 TRANS Cust'!K318+'FR-16(7)(v)-11 DIST Demand'!K318+'FR-16(7)(v)-12 DIST Energy'!K318+'FR-16(7)(v)-13 DIST Cust'!K318","v":4815},{"$f":"'FR-16(7)(v)-3 PROD Demand'!L318+'FR-16(7)(v)-4 PROD Energy'!L318+'FR-16(7)(v)-5 PROD Cust'!L318+'FR-16(7)(v)-7 TRANS Demand'!L318+'FR-16(7)(v)-8 TRANS Energy'!L318+'FR-16(7)(v)-9 TRANS Cust'!L318+'FR-16(7)(v)-11 DIST Demand'!L318+'FR-16(7)(v)-12 DIST Energy'!L318+'FR-16(7)(v)-13 DIST Cust'!L318","v":7920718},{"$f":"'FR-16(7)(v)-3 PROD Demand'!M318+'FR-16(7)(v)-4 PROD Energy'!M318+'FR-16(7)(v)-5 PROD Cust'!M318+'FR-16(7)(v)-7 TRANS Demand'!M318+'FR-16(7)(v)-8 TRANS Energy'!M318+'FR-16(7)(v)-9 TRANS Cust'!M318+'FR-16(7)(v)-11 DIST Demand'!M318+'FR-16(7)(v)-12 DIST Energy'!M318+'FR-16(7)(v)-13 DIST Cust'!M318","v":5224379},{"$f":"'FR-16(7)(v)-3 PROD Demand'!N318+'FR-16(7)(v)-4 PROD Energy'!N318+'FR-16(7)(v)-5 PROD Cust'!N318+'FR-16(7)(v)-7 TRANS Demand'!N318+'FR-16(7)(v)-8 TRANS Energy'!N318+'FR-16(7)(v)-9 TRANS Cust'!N318+'FR-16(7)(v)-11 DIST Demand'!N318+'FR-16(7)(v)-12 DIST Energy'!N318+'FR-16(7)(v)-13 DIST Cust'!N318","v":256238},{"$f":"'FR-16(7)(v)-3 PROD Demand'!O318+'FR-16(7)(v)-4 PROD Energy'!O318+'FR-16(7)(v)-5 PROD Cust'!O318+'FR-16(7)(v)-7 TRANS Demand'!O318+'FR-16(7)(v)-8 TRANS Energy'!O318+'FR-16(7)(v)-9 TRANS Cust'!O318+'FR-16(7)(v)-11 DIST Demand'!O318+'FR-16(7)(v)-12 DIST Energy'!O318+'FR-16(7)(v)-13 DIST Cust'!O318","v":1673679},{"$f":"'FR-16(7)(v)-3 PROD Demand'!P318+'FR-16(7)(v)-4 PROD Energy'!P318+'FR-16(7)(v)-5 PROD Cust'!P318+'FR-16(7)(v)-7 TRANS Demand'!P318+'FR-16(7)(v)-8 TRANS Energy'!P318+'FR-16(7)(v)-9 TRANS Cust'!P318+'FR-16(7)(v)-11 DIST Demand'!P318+'FR-16(7)(v)-12 DIST Energy'!P318+'FR-16(7)(v)-13 DIST Cust'!P318","v":322385},{"$f":"'FR-16(7)(v)-3 PROD Demand'!Q318+'FR-16(7)(v)-4 PROD Energy'!Q318+'FR-16(7)(v)-5 PROD Cust'!Q318+'FR-16(7)(v)-7 TRANS Demand'!Q318+'FR-16(7)(v)-8 TRANS Energy'!Q318+'FR-16(7)(v)-9 TRANS Cust'!Q318+'FR-16(7)(v)-11 DIST Demand'!Q318+'FR-16(7)(v)-12 DIST Energy'!Q318+'FR-16(7)(v)-13 DIST Cust'!Q318","v":6869},{"$f":"SUM(G318:Q318)","v":63555450},{"$f":"F318-R318","v":0}]
[31,null,{"$f":"'FR-16(7)(v)-1 Functional'!C319","v":"CUSTOMER SERVICE DEPOSITS"},{"$f":"'FR-16(7)(v)-1 Functional'!D319","v":"NP29"},null,{"$f":"'FR-16(7)(v)-1 Functional'!F319","v":0},{"$f":"'FR-16(7)(v)-3 PROD Demand'!G319+'FR-16(7)(v)-4 PROD Energy'!G319+'FR-16(7)(v)-5 PROD Cust'!G319+'FR-16(7)(v)-7 TRANS Demand'!G319+'FR-16(7)(v)-8 TRANS Energy'!G319+'FR-16(7)(v)-9 TRANS Cust'!G319+'FR-16(7)(v)-11 DIST Demand'!G319+'FR-16(7)(v)-12 DIST Energy'!G319+'FR-16(7)(v)-13 DIST Cust'!G319","v":0},{"$f":"'FR-16(7)(v)-3 PROD Demand'!H319+'FR-16(7)(v)-4 PROD Energy'!H319+'FR-16(7)(v)-5 PROD Cust'!H319+'FR-16(7)(v)-7 TRANS Demand'!H319+'FR-16(7)(v)-8 TRANS Energy'!H319+'FR-16(7)(v)-9 TRANS Cust'!H319+'FR-16(7)(v)-11 DIST Demand'!H319+'FR-16(7)(v)-12 DIST Energy'!H319+'FR-16(7)(v)-13 DIST Cust'!H319","v":0},{"$f":"'FR-16(7)(v)-3 PROD Demand'!I319+'FR-16(7)(v)-4 PROD Energy'!I319+'FR-16(7)(v)-5 PROD Cust'!I319+'FR-16(7)(v)-7 TRANS Demand'!I319+'FR-16(7)(v)-8 TRANS Energy'!I319+'FR-16(7)(v)-9 TRANS Cust'!I319+'FR-16(7)(v)-11 DIST Demand'!I319+'FR-16(7)(v)-12 DIST Energy'!I319+'FR-16(7)(v)-13 DIST Cust'!I319","v":0},{"$f":"'FR-16(7)(v)-3 PROD Demand'!J319+'FR-16(7)(v)-4 PROD Energy'!J319+'FR-16(7)(v)-5 PROD Cust'!J319+'FR-16(7)(v)-7 TRANS Demand'!J319+'FR-16(7)(v)-8 TRANS Energy'!J319+'FR-16(7)(v)-9 TRANS Cust'!J319+'FR-16(7)(v)-11 DIST Demand'!J319+'FR-16(7)(v)-12 DIST Energy'!J319+'FR-16(7)(v)-13 DIST Cust'!J319","v":0},{"$f":"'FR-16(7)(v)-3 PROD Demand'!K319+'FR-16(7)(v)-4 PROD Energy'!K319+'FR-16(7)(v)-5 PROD Cust'!K319+'FR-16(7)(v)-7 TRANS Demand'!K319+'FR-16(7)(v)-8 TRANS Energy'!K319+'FR-16(7)(v)-9 TRANS Cust'!K319+'FR-16(7)(v)-11 DIST Demand'!K319+'FR-16(7)(v)-12 DIST Energy'!K319+'FR-16(7)(v)-13 DIST Cust'!K319","v":0},{"$f":"'FR-16(7)(v)-3 PROD Demand'!L319+'FR-16(7)(v)-4 PROD Energy'!L319+'FR-16(7)(v)-5 PROD Cust'!L319+'FR-16(7)(v)-7 TRANS Demand'!L319+'FR-16(7)(v)-8 TRANS Energy'!L319+'FR-16(7)(v)-9 TRANS Cust'!L319+'FR-16(7)(v)-11 DIST Demand'!L319+'FR-16(7)(v)-12 DIST Energy'!L319+'FR-16(7)(v)-13 DIST Cust'!L319","v":0},{"$f":"'FR-16(7)(v)-3 PROD Demand'!M319+'FR-16(7)(v)-4 PROD Energy'!M319+'FR-16(7)(v)-5 PROD Cust'!M319+'FR-16(7)(v)-7 TRANS Demand'!M319+'FR-16(7)(v)-8 TRANS Energy'!M319+'FR-16(7)(v)-9 TRANS Cust'!M319+'FR-16(7)(v)-11 DIST Demand'!M319+'FR-16(7)(v)-12 DIST Energy'!M319+'FR-16(7)(v)-13 DIST Cust'!M319","v":0},{"$f":"'FR-16(7)(v)-3 PROD Demand'!N319+'FR-16(7)(v)-4 PROD Energy'!N319+'FR-16(7)(v)-5 PROD Cust'!N319+'FR-16(7)(v)-7 TRANS Demand'!N319+'FR-16(7)(v)-8 TRANS Energy'!N319+'FR-16(7)(v)-9 TRANS Cust'!N319+'FR-16(7)(v)-11 DIST Demand'!N319+'FR-16(7)(v)-12 DIST Energy'!N319+'FR-16(7)(v)-13 DIST Cust'!N319","v":0},{"$f":"'FR-16(7)(v)-3 PROD Demand'!O319+'FR-16(7)(v)-4 PROD Energy'!O319+'FR-16(7)(v)-5 PROD Cust'!O319+'FR-16(7)(v)-7 TRANS Demand'!O319+'FR-16(7)(v)-8 TRANS Energy'!O319+'FR-16(7)(v)-9 TRANS Cust'!O319+'FR-16(7)(v)-11 DIST Demand'!O319+'FR-16(7)(v)-12 DIST Energy'!O319+'FR-16(7)(v)-13 DIST Cust'!O319","v":0},{"$f":"'FR-16(7)(v)-3 PROD Demand'!P319+'FR-16(7)(v)-4 PROD Energy'!P319+'FR-16(7)(v)-5 PROD Cust'!P319+'FR-16(7)(v)-7 TRANS Demand'!P319+'FR-16(7)(v)-8 TRANS Energy'!P319+'FR-16(7)(v)-9 TRANS Cust'!P319+'FR-16(7)(v)-11 DIST Demand'!P319+'FR-16(7)(v)-12 DIST Energy'!P319+'FR-16(7)(v)-13 DIST Cust'!P319","v":0},{"$f":"'FR-16(7)(v)-3 PROD Demand'!Q319+'FR-16(7)(v)-4 PROD Energy'!Q319+'FR-16(7)(v)-5 PROD Cust'!Q319+'FR-16(7)(v)-7 TRANS Demand'!Q319+'FR-16(7)(v)-8 TRANS Energy'!Q319+'FR-16(7)(v)-9 TRANS Cust'!Q319+'FR-16(7)(v)-11 DIST Demand'!Q319+'FR-16(7)(v)-12 DIST Energy'!Q319+'FR-16(7)(v)-13 DIST Cust'!Q319","v":0},{"$f":"SUM(G319:Q319)","v":0},{"$f":"F319-R319","v":0}]
[32,null,{"$f":"'FR-16(7)(v)-1 Functional'!C320","v":"POST RETIREMENT BENEFITS"},{"$f":"'FR-16(7)(v)-1 Functional'!D320","v":"NP29"},null,{"$f":"'FR-16(7)(v)-1 Functional'!F320","v":0},{"$f":"'FR-16(7)(v)-3 PROD Demand'!G320+'FR-16(7)(v)-4 PROD Energy'!G320+'FR-16(7)(v)-5 PROD Cust'!G320+'FR-16(7)(v)-7 TRANS Demand'!G320+'FR-16(7)(v)-8 TRANS Energy'!G320+'FR-16(7)(v)-9 TRANS Cust'!G320+'FR-16(7)(v)-11 DIST Demand'!G320+'FR-16(7)(v)-12 DIST Energy'!G320+'FR-16(7)(v)-13 DIST Cust'!G320","v":0},{"$f":"'FR-16(7)(v)-3 PROD Demand'!H320+'FR-16(7)(v)-4 PROD Energy'!H320+'FR-16(7)(v)-5 PROD Cust'!H320+'FR-16(7)(v)-7 TRANS Demand'!H320+'FR-16(7)(v)-8 TRANS Energy'!H320+'FR-16(7)(v)-9 TRANS Cust'!H320+'FR-16(7)(v)-11 DIST Demand'!H320+'FR-16(7)(v)-12 DIST Energy'!H320+'FR-16(7)(v)-13 DIST Cust'!H320","v":0},{"$f":"'FR-16(7)(v)-3 PROD Demand'!I320+'FR-16(7)(v)-4 PROD Energy'!I320+'FR-16(7)(v)-5 PROD Cust'!I320+'FR-16(7)(v)-7 TRANS Demand'!I320+'FR-16(7)(v)-8 TRANS Energy'!I320+'FR-16(7)(v)-9 TRANS Cust'!I320+'FR-16(7)(v)-11 DIST Demand'!I320+'FR-16(7)(v)-12 DIST Energy'!I320+'FR-16(7)(v)-13 DIST Cust'!I320","v":0},{"$f":"'FR-16(7)(v)-3 PROD Demand'!J320+'FR-16(7)(v)-4 PROD Energy'!J320+'FR-16(7)(v)-5 PROD Cust'!J320+'FR-16(7)(v)-7 TRANS Demand'!J320+'FR-16(7)(v)-8 TRANS Energy'!J320+'FR-16(7)(v)-9 TRANS Cust'!J320+'FR-16(7)(v)-11 DIST Demand'!J320+'FR-16(7)(v)-12 DIST Energy'!J320+'FR-16(7)(v)-13 DIST Cust'!J320","v":0},{"$f":"'FR-16(7)(v)-3 PROD Demand'!K320+'FR-16(7)(v)-4 PROD Energy'!K320+'FR-16(7)(v)-5 PROD Cust'!K320+'FR-16(7)(v)-7 TRANS Demand'!K320+'FR-16(7)(v)-8 TRANS Energy'!K320+'FR-16(7)(v)-9 TRANS Cust'!K320+'FR-16(7)(v)-11 DIST Demand'!K320+'FR-16(7)(v)-12 DIST Energy'!K320+'FR-16(7)(v)-13 DIST Cust'!K320","v":0},{"$f":"'FR-16(7)(v)-3 PROD Demand'!L320+'FR-16(7)(v)-4 PROD Energy'!L320+'FR-16(7)(v)-5 PROD Cust'!L320+'FR-16(7)(v)-7 TRANS Demand'!L320+'FR-16(7)(v)-8 TRANS Energy'!L320+'FR-16(7)(v)-9 TRANS Cust'!L320+'FR-16(7)(v)-11 DIST Demand'!L320+'FR-16(7)(v)-12 DIST Energy'!L320+'FR-16(7)(v)-13 DIST Cust'!L320","v":0},{"$f":"'FR-16(7)(v)-3 PROD Demand'!M320+'FR-16(7)(v)-4 PROD Energy'!M320+'FR-16(7)(v)-5 PROD Cust'!M320+'FR-16(7)(v)-7 TRANS Demand'!M320+'FR-16(7)(v)-8 TRANS Energy'!M320+'FR-16(7)(v)-9 TRANS Cust'!M320+'FR-16(7)(v)-11 DIST Demand'!M320+'FR-16(7)(v)-12 DIST Energy'!M320+'FR-16(7)(v)-13 DIST Cust'!M320","v":0},{"$f":"'FR-16(7)(v)-3 PROD Demand'!N320+'FR-16(7)(v)-4 PROD Energy'!N320+'FR-16(7)(v)-5 PROD Cust'!N320+'FR-16(7)(v)-7 TRANS Demand'!N320+'FR-16(7)(v)-8 TRANS Energy'!N320+'FR-16(7)(v)-9 TRANS Cust'!N320+'FR-16(7)(v)-11 DIST Demand'!N320+'FR-16(7)(v)-12 DIST Energy'!N320+'FR-16(7)(v)-13 DIST Cust'!N320","v":0},{"$f":"'FR-16(7)(v)-3 PROD Demand'!O320+'FR-16(7)(v)-4 PROD Energy'!O320+'FR-16(7)(v)-5 PROD Cust'!O320+'FR-16(7)(v)-7 TRANS Demand'!O320+'FR-16(7)(v)-8 TRANS Energy'!O320+'FR-16(7)(v)-9 TRANS Cust'!O320+'FR-16(7)(v)-11 DIST Demand'!O320+'FR-16(7)(v)-12 DIST Energy'!O320+'FR-16(7)(v)-13 DIST Cust'!O320","v":0},{"$f":"'FR-16(7)(v)-3 PROD Demand'!P320+'FR-16(7)(v)-4 PROD Energy'!P320+'FR-16(7)(v)-5 PROD Cust'!P320+'FR-16(7)(v)-7 TRANS Demand'!P320+'FR-16(7)(v)-8 TRANS Energy'!P320+'FR-16(7)(v)-9 TRANS Cust'!P320+'FR-16(7)(v)-11 DIST Demand'!P320+'FR-16(7)(v)-12 DIST Energy'!P320+'FR-16(7)(v)-13 DIST Cust'!P320","v":0},{"$f":"'FR-16(7)(v)-3 PROD Demand'!Q320+'FR-16(7)(v)-4 PROD Energy'!Q320+'FR-16(7)(v)-5 PROD Cust'!Q320+'FR-16(7)(v)-7 TRANS Demand'!Q320+'FR-16(7)(v)-8 TRANS Energy'!Q320+'FR-16(7)(v)-9 TRANS Cust'!Q320+'FR-16(7)(v)-11 DIST Demand'!Q320+'FR-16(7)(v)-12 DIST Energy'!Q320+'FR-16(7)(v)-13 DIST Cust'!Q320","v":0},{"$f":"SUM(G320:Q320)","v":0},{"$f":"F320-R320","v":0}]
[33,null,{"$f":"'FR-16(7)(v)-1 Functional'!C321","v":"INVESTMENT TAX CREDIT"},{"$f":"'FR-16(7)(v)-1 Functional'!D321","v":"NP29"},null,{"$f":"'FR-16(7)(v)-1 Functional'!F321","v":0},{"$f":"'FR-16(7)(v)-3 PROD Demand'!G321+'FR-16(7)(v)-4 PROD Energy'!G321+'FR-16(7)(v)-5 PROD Cust'!G321+'FR-16(7)(v)-7 TRANS Demand'!G321+'FR-16(7)(v)-8 TRANS Energy'!G321+'FR-16(7)(v)-9 TRANS Cust'!G321+'FR-16(7)(v)-11 DIST Demand'!G321+'FR-16(7)(v)-12 DIST Energy'!G321+'FR-16(7)(v)-13 DIST Cust'!G321","v":0},{"$f":"'FR-16(7)(v)-3 PROD Demand'!H321+'FR-16(7)(v)-4 PROD Energy'!H321+'FR-16(7)(v)-5 PROD Cust'!H321+'FR-16(7)(v)-7 TRANS Demand'!H321+'FR-16(7)(v)-8 TRANS Energy'!H321+'FR-16(7)(v)-9 TRANS Cust'!H321+'FR-16(7)(v)-11 DIST Demand'!H321+'FR-16(7)(v)-12 DIST Energy'!H321+'FR-16(7)(v)-13 DIST Cust'!H321","v":0},{"$f":"'FR-16(7)(v)-3 PROD Demand'!I321+'FR-16(7)(v)-4 PROD Energy'!I321+'FR-16(7)(v)-5 PROD Cust'!I321+'FR-16(7)(v)-7 TRANS Demand'!I321+'FR-16(7)(v)-8 TRANS Energy'!I321+'FR-16(7)(v)-9 TRANS Cust'!I321+'FR-16(7)(v)-11 DIST Demand'!I321+'FR-16(7)(v)-12 DIST Energy'!I321+'FR-16(7)(v)-13 DIST Cust'!I321","v":0},{"$f":"'FR-16(7)(v)-3 PROD Demand'!J321+'FR-16(7)(v)-4 PROD Energy'!J321+'FR-16(7)(v)-5 PROD Cust'!J321+'FR-16(7)(v)-7 TRANS Demand'!J321+'FR-16(7)(v)-8 TRANS Energy'!J321+'FR-16(7)(v)-9 TRANS Cust'!J321+'FR-16(7)(v)-11 DIST Demand'!J321+'FR-16(7)(v)-12 DIST Energy'!J321+'FR-16(7)(v)-13 DIST Cust'!J321","v":0},{"$f":"'FR-16(7)(v)-3 PROD Demand'!K321+'FR-16(7)(v)-4 PROD Energy'!K321+'FR-16(7)(v)-5 PROD Cust'!K321+'FR-16(7)(v)-7 TRANS Demand'!K321+'FR-16(7)(v)-8 TRANS Energy'!K321+'FR-16(7)(v)-9 TRANS Cust'!K321+'FR-16(7)(v)-11 DIST Demand'!K321+'FR-16(7)(v)-12 DIST Energy'!K321+'FR-16(7)(v)-13 DIST Cust'!K321","v":0},{"$f":"'FR-16(7)(v)-3 PROD Demand'!L321+'FR-16(7)(v)-4 PROD Energy'!L321+'FR-16(7)(v)-5 PROD Cust'!L321+'FR-16(7)(v)-7 TRANS Demand'!L321+'FR-16(7)(v)-8 TRANS Energy'!L321+'FR-16(7)(v)-9 TRANS Cust'!L321+'FR-16(7)(v)-11 DIST Demand'!L321+'FR-16(7)(v)-12 DIST Energy'!L321+'FR-16(7)(v)-13 DIST Cust'!L321","v":0},{"$f":"'FR-16(7)(v)-3 PROD Demand'!M321+'FR-16(7)(v)-4 PROD Energy'!M321+'FR-16(7)(v)-5 PROD Cust'!M321+'FR-16(7)(v)-7 TRANS Demand'!M321+'FR-16(7)(v)-8 TRANS Energy'!M321+'FR-16(7)(v)-9 TRANS Cust'!M321+'FR-16(7)(v)-11 DIST Demand'!M321+'FR-16(7)(v)-12 DIST Energy'!M321+'FR-16(7)(v)-13 DIST Cust'!M321","v":0},{"$f":"'FR-16(7)(v)-3 PROD Demand'!N321+'FR-16(7)(v)-4 PROD Energy'!N321+'FR-16(7)(v)-5 PROD Cust'!N321+'FR-16(7)(v)-7 TRANS Demand'!N321+'FR-16(7)(v)-8 TRANS Energy'!N321+'FR-16(7)(v)-9 TRANS Cust'!N321+'FR-16(7)(v)-11 DIST Demand'!N321+'FR-16(7)(v)-12 DIST Energy'!N321+'FR-16(7)(v)-13 DIST Cust'!N321","v":0},{"$f":"'FR-16(7)(v)-3 PROD Demand'!O321+'FR-16(7)(v)-4 PROD Energy'!O321+'FR-16(7)(v)-5 PROD Cust'!O321+'FR-16(7)(v)-7 TRANS Demand'!O321+'FR-16(7)(v)-8 TRANS Energy'!O321+'FR-16(7)(v)-9 TRANS Cust'!O321+'FR-16(7)(v)-11 DIST Demand'!O321+'FR-16(7)(v)-12 DIST Energy'!O321+'FR-16(7)(v)-13 DIST Cust'!O321","v":0},{"$f":"'FR-16(7)(v)-3 PROD Demand'!P321+'FR-16(7)(v)-4 PROD Energy'!P321+'FR-16(7)(v)-5 PROD Cust'!P321+'FR-16(7)(v)-7 TRANS Demand'!P321+'FR-16(7)(v)-8 TRANS Energy'!P321+'FR-16(7)(v)-9 TRANS Cust'!P321+'FR-16(7)(v)-11 DIST Demand'!P321+'FR-16(7)(v)-12 DIST Energy'!P321+'FR-16(7)(v)-13 DIST Cust'!P321","v":0},{"$f":"'FR-16(7)(v)-3 PROD Demand'!Q321+'FR-16(7)(v)-4 PROD Energy'!Q321+'FR-16(7)(v)-5 PROD Cust'!Q321+'FR-16(7)(v)-7 TRANS Demand'!Q321+'FR-16(7)(v)-8 TRANS Energy'!Q321+'FR-16(7)(v)-9 TRANS Cust'!Q321+'FR-16(7)(v)-11 DIST Demand'!Q321+'FR-16(7)(v)-12 DIST Energy'!Q321+'FR-16(7)(v)-13 DIST Cust'!Q321","v":0},{"$f":"SUM(G321:Q321)","v":0},{"$f":"F321-R321","v":0}]
[34,null,{"$f":"'FR-16(7)(v)-1 Functional'!C322","v":"  TOTAL OTHER SUBTRACTIVE ADJUSTMENTS"},null,null,{"$f":"SUM(F317:F321)","v":63555450},31399499,16348258,80366,{"$f":"SUM(J317:J321)","v":318244},4815,7920718,5224379,256238,1673679,322385,6869,63555450,0]
[35]
[36,{"$f":"'FR-16(7)(v)-1 Functional'!B324","v":"TOTAL SUBTRACTIVE RATE BASE ADJUSTMENTS"},null,null,null,{"$f":"F322+F315+F301","v":281811215},139532797,71916897,355549,{"$f":"J322+J315+J301","v":1389107},21264,35102837,23210649,1136817,7639711,1475154,30433,281811215,0]
[]
[{"$f":"co_name","v":"DUKE ENERGY KENTUCKY, INC."},null,null,null,null,null,null,null,null,null,null,null,null,null,null,null,null,{"$f":"R1","v":"FR-16(7)(v)-14"}]
[{"$f":"$A$2","v":"TOTAL CLASS ALLOCATED - ELECTRIC COST OF SERVICE"},null,null,null,null,null,null,null,null,null,null,null,null,null,null,null,null,{"$f":"R2","v":"WITNESS RESPONSIBLE:"}]
[{"$f":"case_name","v":"CASE NO: 2019-00271"},null,null,null,null,null,null,null,null,null,null,null,null,null,null,null,null,{"$f":"Witness","v":"JAMES E. ZIOLKOWSKI"}]
[{"$f":"data_filing","v":"DATA: 12 MONTHS ACTUAL  & 0 MONTHS ESTIMATED"},null,null,null,null,null,null,null,null,null,null,null,null,null,null,null,null,{"$f":"\"PAGE \"&Pages2-9&\" OF \"&Pages2","v":"PAGE 6 OF 15"}]
[{"$f":"type","v":"TYPE OF FILING: \"X\" ORIGINAL   UPDATED    REVISED  "}]
[]
[null,null,null,null,null,{"$f":"F$7","v":"TOTAL"},null,{"$f":"H$7","v":"DS"},{"$f":"I$7","v":"GSFL"},{"$f":"J$7","v":"EH"},{"$f":"K$7","v":"SP"},"DT SEC","DT PRI","DP","TT",null,"OTHER"]
["LINE",null,null,null,null,{"$f":"F$8","v":"CLASS"},{"$f":"G$8","v":"RS"},{"$f":"H$8","v":"SECONDARY"},{"$f":"I$8","v":"SECONDARY"},{"$f":"J$8","v":"SECONDARY"},{"$f":"K$8","v":"SECONDARY"},"SECONDARY","PRIMARY","PRIMARY","TRANSMISSION","LT","WATER",{"$f":"R8","v":"TOTAL"},"ALL"]
["NO.","ADDITIVE RATE BASE ADJUSTMENTS",null,"ALLO",null,{"$f":"F$9","v":"ALLOCATED"},{"$f":"G$9","v":"RESIDENTIAL"},{"$f":"H$9","v":"DISTRIBUTION"},{"$f":"I$9","v":"DISTRIBUTION"},{"$f":"J$9","v":"DISTRIBUTION"},{"$f":"K$9","v":"DISTRIBUTION"},"DISTRIBUTION","DISTRIBUTION","DISTRIBUTION","TIME OF DAY","LIGHTING","PUMPING",{"$f":"R9","v":"AT ISSUE"},"OTHER"]
[null,null,"Schedule 5.1",null,null,null,{"$f":"G$10","v":3},{"$f":"H$10","v":4},{"$f":"I$10","v":5},{"$f":"J$10","v":6},{"$f":"K$10","v":7},8,9,10,11,12,13,null," "]
[1,"OTHER ACCUMULATED DEFERRED INCOME TAXES"]
[2," ACCUM DEF INC TAXES (190)"]
[3,null,{"$f":"'FR-16(7)(v)-1 Functional'!C338","v":"UNCOLLECTIBLE ACCTS"},{"$f":"'FR-16(7)(v)-1 Functional'!D338","v":"K411"},null,{"$f":"'FR-16(7)(v)-1 Functional'!F338","v":70274},{"$f":"'FR-16(7)(v)-3 PROD Demand'!G338+'FR-16(7)(v)-4 PROD Energy'!G338+'FR-16(7)(v)-5 PROD Cust'!G338+'FR-16(7)(v)-7 TRANS Demand'!G338+'FR-16(7)(v)-8 TRANS Energy'!G338+'FR-16(7)(v)-9 TRANS Cust'!G338+'FR-16(7)(v)-11 DIST Demand'!G338+'FR-16(7)(v)-12 DIST Energy'!G338+'FR-16(7)(v)-13 DIST Cust'!G338","v":64031},{"$f":"'FR-16(7)(v)-3 PROD Demand'!H338+'FR-16(7)(v)-4 PROD Energy'!H338+'FR-16(7)(v)-5 PROD Cust'!H338+'FR-16(7)(v)-7 TRANS Demand'!H338+'FR-16(7)(v)-8 TRANS Energy'!H338+'FR-16(7)(v)-9 TRANS Cust'!H338+'FR-16(7)(v)-11 DIST Demand'!H338+'FR-16(7)(v)-12 DIST Energy'!H338+'FR-16(7)(v)-13 DIST Cust'!H338","v":3036},{"$f":"'FR-16(7)(v)-3 PROD Demand'!I338+'FR-16(7)(v)-4 PROD Energy'!I338+'FR-16(7)(v)-5 PROD Cust'!I338+'FR-16(7)(v)-7 TRANS Demand'!I338+'FR-16(7)(v)-8 TRANS Energy'!I338+'FR-16(7)(v)-9 TRANS Cust'!I338+'FR-16(7)(v)-11 DIST Demand'!I338+'FR-16(7)(v)-12 DIST Energy'!I338+'FR-16(7)(v)-13 DIST Cust'!I338","v":20},{"$f":"'FR-16(7)(v)-3 PROD Demand'!J338+'FR-16(7)(v)-4 PROD Energy'!J338+'FR-16(7)(v)-5 PROD Cust'!J338+'FR-16(7)(v)-7 TRANS Demand'!J338+'FR-16(7)(v)-8 TRANS Energy'!J338+'FR-16(7)(v)-9 TRANS Cust'!J338+'FR-16(7)(v)-11 DIST Demand'!J338+'FR-16(7)(v)-12 DIST Energy'!J338+'FR-16(7)(v)-13 DIST Cust'!J338","v":20},{"$f":"'FR-16(7)(v)-3 PROD Demand'!K338+'FR-16(7)(v)-4 PROD Energy'!K338+'FR-16(7)(v)-5 PROD Cust'!K338+'FR-16(7)(v)-7 TRANS Demand'!K338+'FR-16(7)(v)-8 TRANS Energy'!K338+'FR-16(7)(v)-9 TRANS Cust'!K338+'FR-16(7)(v)-11 DIST Demand'!K338+'FR-16(7)(v)-12 DIST Energy'!K338+'FR-16(7)(v)-13 DIST Cust'!K338","v":1},{"$f":"'FR-16(7)(v)-3 PROD Demand'!L338+'FR-16(7)(v)-4 PROD Energy'!L338+'FR-16(7)(v)-5 PROD Cust'!L338+'FR-16(7)(v)-7 TRANS Demand'!L338+'FR-16(7)(v)-8 TRANS Energy'!L338+'FR-16(7)(v)-9 TRANS Cust'!L338+'FR-16(7)(v)-11 DIST Demand'!L338+'FR-16(7)(v)-12 DIST Energy'!L338+'FR-16(7)(v)-13 DIST Cust'!L338","v":1577},{"$f":"'FR-16(7)(v)-3 PROD Demand'!M338+'FR-16(7)(v)-4 PROD Energy'!M338+'FR-16(7)(v)-5 PROD Cust'!M338+'FR-16(7)(v)-7 TRANS Demand'!M338+'FR-16(7)(v)-8 TRANS Energy'!M338+'FR-16(7)(v)-9 TRANS Cust'!M338+'FR-16(7)(v)-11 DIST Demand'!M338+'FR-16(7)(v)-12 DIST Energy'!M338+'FR-16(7)(v)-13 DIST Cust'!M338","v":1007},{"$f":"'FR-16(7)(v)-3 PROD Demand'!N338+'FR-16(7)(v)-4 PROD Energy'!N338+'FR-16(7)(v)-5 PROD Cust'!N338+'FR-16(7)(v)-7 TRANS Demand'!N338+'FR-16(7)(v)-8 TRANS Energy'!N338+'FR-16(7)(v)-9 TRANS Cust'!N338+'FR-16(7)(v)-11 DIST Demand'!N338+'FR-16(7)(v)-12 DIST Energy'!N338+'FR-16(7)(v)-13 DIST Cust'!N338","v":45},{"$f":"'FR-16(7)(v)-3 PROD Demand'!O338+'FR-16(7)(v)-4 PROD Energy'!O338+'FR-16(7)(v)-5 PROD Cust'!O338+'FR-16(7)(v)-7 TRANS Demand'!O338+'FR-16(7)(v)-8 TRANS Energy'!O338+'FR-16(7)(v)-9 TRANS Cust'!O338+'FR-16(7)(v)-11 DIST Demand'!O338+'FR-16(7)(v)-12 DIST Energy'!O338+'FR-16(7)(v)-13 DIST Cust'!O338","v":473},{"$f":"'FR-16(7)(v)-3 PROD Demand'!P338+'FR-16(7)(v)-4 PROD Energy'!P338+'FR-16(7)(v)-5 PROD Cust'!P338+'FR-16(7)(v)-7 TRANS Demand'!P338+'FR-16(7)(v)-8 TRANS Energy'!P338+'FR-16(7)(v)-9 TRANS Cust'!P338+'FR-16(7)(v)-11 DIST Demand'!P338+'FR-16(7)(v)-12 DIST Energy'!P338+'FR-16(7)(v)-13 DIST Cust'!P338","v":63},{"$f":"'FR-16(7)(v)-3 PROD Demand'!Q338+'FR-16(7)(v)-4 PROD Energy'!Q338+'FR-16(7)(v)-5 PROD Cust'!Q338+'FR-16(7)(v)-7 TRANS Demand'!Q338+'FR-16(7)(v)-8 TRANS Energy'!Q338+'FR-16(7)(v)-9 TRANS Cust'!Q338+'FR-16(7)(v)-11 DIST Demand'!Q338+'FR-16(7)(v)-12 DIST Energy'!Q338+'FR-16(7)(v)-13 DIST Cust'!Q338","v":1},{"$f":"SUM(G338:Q338)","v":70274},{"$f":"F338-R338","v":0}]
[4,null,{"$f":"'FR-16(7)(v)-1 Functional'!C339","v":"CASH FLOW HEDGE"},{"$f":"'FR-16(7)(v)-1 Functional'!D339","v":"A315"},null,{"$f":"'FR-16(7)(v)-1 Functional'!F339","v":276611},{"$f":"'FR-16(7)(v)-3 PROD Demand'!G339+'FR-16(7)(v)-4 PROD Energy'!G339+'FR-16(7)(v)-5 PROD Cust'!G339+'FR-16(7)(v)-7 TRANS Demand'!G339+'FR-16(7)(v)-8 TRANS Energy'!G339+'FR-16(7)(v)-9 TRANS Cust'!G339+'FR-16(7)(v)-11 DIST Demand'!G339+'FR-16(7)(v)-12 DIST Energy'!G339+'FR-16(7)(v)-13 DIST Cust'!G339","v":180838},{"$f":"'FR-16(7)(v)-3 PROD Demand'!H339+'FR-16(7)(v)-4 PROD Energy'!H339+'FR-16(7)(v)-5 PROD Cust'!H339+'FR-16(7)(v)-7 TRANS Demand'!H339+'FR-16(7)(v)-8 TRANS Energy'!H339+'FR-16(7)(v)-9 TRANS Cust'!H339+'FR-16(7)(v)-11 DIST Demand'!H339+'FR-16(7)(v)-12 DIST Energy'!H339+'FR-16(7)(v)-13 DIST Cust'!H339","v":46861},{"$f":"'FR-16(7)(v)-3 PROD Demand'!I339+'FR-16(7)(v)-4 PROD Energy'!I339+'FR-16(7)(v)-5 PROD Cust'!I339+'FR-16(7)(v)-7 TRANS Demand'!I339+'FR-16(7)(v)-8 TRANS Energy'!I339+'FR-16(7)(v)-9 TRANS Cust'!I339+'FR-16(7)(v)-11 DIST Demand'!I339+'FR-16(7)(v)-12 DIST Energy'!I339+'FR-16(7)(v)-13 DIST Cust'!I339","v":249},{"$f":"'FR-16(7)(v)-3 PROD Demand'!J339+'FR-16(7)(v)-4 PROD Energy'!J339+'FR-16(7)(v)-5 PROD Cust'!J339+'FR-16(7)(v)-7 TRANS Demand'!J339+'FR-16(7)(v)-8 TRANS Energy'!J339+'FR-16(7)(v)-9 TRANS Cust'!J339+'FR-16(7)(v)-11 DIST Demand'!J339+'FR-16(7)(v)-12 DIST Energy'!J339+'FR-16(7)(v)-13 DIST Cust'!J339","v":798},{"$f":"'FR-16(7)(v)-3 PROD Demand'!K339+'FR-16(7)(v)-4 PROD Energy'!K339+'FR-16(7)(v)-5 PROD Cust'!K339+'FR-16(7)(v)-7 TRANS Demand'!K339+'FR-16(7)(v)-8 TRANS Energy'!K339+'FR-16(7)(v)-9 TRANS Cust'!K339+'FR-16(7)(v)-11 DIST Demand'!K339+'FR-16(7)(v)-12 DIST Energy'!K339+'FR-16(7)(v)-13 DIST Cust'!K339","v":19},{"$f":"'FR-16(7)(v)-3 PROD Demand'!L339+'FR-16(7)(v)-4 PROD Energy'!L339+'FR-16(7)(v)-5 PROD Cust'!L339+'FR-16(7)(v)-7 TRANS Demand'!L339+'FR-16(7)(v)-8 TRANS Energy'!L339+'FR-16(7)(v)-9 TRANS Cust'!L339+'FR-16(7)(v)-11 DIST Demand'!L339+'FR-16(7)(v)-12 DIST Energy'!L339+'FR-16(7)(v)-13 DIST Cust'!L339","v":22919},{"$f":"'FR-16(7)(v)-3 PROD Demand'!M339+'FR-16(7)(v)-4 PROD Energy'!M339+'FR-16(7)(v)-5 PROD Cust'!M339+'FR-16(7)(v)-7 TRANS Demand'!M339+'FR-16(7)(v)-8 TRANS Energy'!M339+'FR-16(7)(v)-9 TRANS Cust'!M339+'FR-16(7)(v)-11 DIST Demand'!M339+'FR-16(7)(v)-12 DIST Energy'!M339+'FR-16(7)(v)-13 DIST Cust'!M339","v":15462},{"$f":"'FR-16(7)(v)-3 PROD Demand'!N339+'FR-16(7)(v)-4 PROD Energy'!N339+'FR-16(7)(v)-5 PROD Cust'!N339+'FR-16(7)(v)-7 TRANS Demand'!N339+'FR-16(7)(v)-8 TRANS Energy'!N339+'FR-16(7)(v)-9 TRANS Cust'!N339+'FR-16(7)(v)-11 DIST Demand'!N339+'FR-16(7)(v)-12 DIST Energy'!N339+'FR-16(7)(v)-13 DIST Cust'!N339","v":760},{"$f":"'FR-16(7)(v)-3 PROD Demand'!O339+'FR-16(7)(v)-4 PROD Energy'!O339+'FR-16(7)(v)-5 PROD Cust'!O339+'FR-16(7)(v)-7 TRANS Demand'!O339+'FR-16(7)(v)-8 TRANS Energy'!O339+'FR-16(7)(v)-9 TRANS Cust'!O339+'FR-16(7)(v)-11 DIST Demand'!O339+'FR-16(7)(v)-12 DIST Energy'!O339+'FR-16(7)(v)-13 DIST Cust'!O339","v":6371},{"$f":"'FR-16(7)(v)-3 PROD Demand'!P339+'FR-16(7)(v)-4 PROD Energy'!P339+'FR-16(7)(v)-5 PROD Cust'!P339+'FR-16(7)(v)-7 TRANS Demand'!P339+'FR-16(7)(v)-8 TRANS Energy'!P339+'FR-16(7)(v)-9 TRANS Cust'!P339+'FR-16(7)(v)-11 DIST Demand'!P339+'FR-16(7)(v)-12 DIST Energy'!P339+'FR-16(7)(v)-13 DIST Cust'!P339","v":2310},{"$f":"'FR-16(7)(v)-3 PROD Demand'!Q339+'FR-16(7)(v)-4 PROD Energy'!Q339+'FR-16(7)(v)-5 PROD Cust'!Q339+'FR-16(7)(v)-7 TRANS Demand'!Q339+'FR-16(7)(v)-8 TRANS Energy'!Q339+'FR-16(7)(v)-9 TRANS Cust'!Q339+'FR-16(7)(v)-11 DIST Demand'!Q339+'FR-16(7)(v)-12 DIST Energy'!Q339+'FR-16(7)(v)-13 DIST Cust'!Q339","v":24},276611,0]
[5,null,{"$f":"'FR-16(7)(v)-1 Functional'!C340","v":"RESERVED FOR FUTURE USE"},{"$f":"'FR-16(7)(v)-1 Functional'!D340","v":"NP29"},null,{"$f":"'FR-16(7)(v)-1 Functional'!F340","v":0},{"$f":"'FR-16(7)(v)-3 PROD Demand'!G340+'FR-16(7)(v)-4 PROD Energy'!G340+'FR-16(7)(v)-5 PROD Cust'!G340+'FR-16(7)(v)-7 TRANS Demand'!G340+'FR-16(7)(v)-8 TRANS Energy'!G340+'FR-16(7)(v)-9 TRANS Cust'!G340+'FR-16(7)(v)-11 DIST Demand'!G340+'FR-16(7)(v)-12 DIST Energy'!G340+'FR-16(7)(v)-13 DIST Cust'!G340","v":0},{"$f":"'FR-16(7)(v)-3 PROD Demand'!H340+'FR-16(7)(v)-4 PROD Energy'!H340+'FR-16(7)(v)-5 PROD Cust'!H340+'FR-16(7)(v)-7 TRANS Demand'!H340+'FR-16(7)(v)-8 TRANS Energy'!H340+'FR-16(7)(v)-9 TRANS Cust'!H340+'FR-16(7)(v)-11 DIST Demand'!H340+'FR-16(7)(v)-12 DIST Energy'!H340+'FR-16(7)(v)-13 DIST Cust'!H340","v":0},{"$f":"'FR-16(7)(v)-3 PROD Demand'!I340+'FR-16(7)(v)-4 PROD Energy'!I340+'FR-16(7)(v)-5 PROD Cust'!I340+'FR-16(7)(v)-7 TRANS Demand'!I340+'FR-16(7)(v)-8 TRANS Energy'!I340+'FR-16(7)(v)-9 TRANS Cust'!I340+'FR-16(7)(v)-11 DIST Demand'!I340+'FR-16(7)(v)-12 DIST Energy'!I340+'FR-16(7)(v)-13 DIST Cust'!I340","v":0},{"$f":"'FR-16(7)(v)-3 PROD Demand'!J340+'FR-16(7)(v)-4 PROD Energy'!J340+'FR-16(7)(v)-5 PROD Cust'!J340+'FR-16(7)(v)-7 TRANS Demand'!J340+'FR-16(7)(v)-8 TRANS Energy'!J340+'FR-16(7)(v)-9 TRANS Cust'!J340+'FR-16(7)(v)-11 DIST Demand'!J340+'FR-16(7)(v)-12 DIST Energy'!J340+'FR-16(7)(v)-13 DIST Cust'!J340","v":0},{"$f":"'FR-16(7)(v)-3 PROD Demand'!K340+'FR-16(7)(v)-4 PROD Energy'!K340+'FR-16(7)(v)-5 PROD Cust'!K340+'FR-16(7)(v)-7 TRANS Demand'!K340+'FR-16(7)(v)-8 TRANS Energy'!K340+'FR-16(7)(v)-9 TRANS Cust'!K340+'FR-16(7)(v)-11 DIST Demand'!K340+'FR-16(7)(v)-12 DIST Energy'!K340+'FR-16(7)(v)-13 DIST Cust'!K340","v":0},{"$f":"'FR-16(7)(v)-3 PROD Demand'!L340+'FR-16(7)(v)-4 PROD Energy'!L340+'FR-16(7)(v)-5 PROD Cust'!L340+'FR-16(7)(v)-7 TRANS Demand'!L340+'FR-16(7)(v)-8 TRANS Energy'!L340+'FR-16(7)(v)-9 TRANS Cust'!L340+'FR-16(7)(v)-11 DIST Demand'!L340+'FR-16(7)(v)-12 DIST Energy'!L340+'FR-16(7)(v)-13 DIST Cust'!L340","v":0},{"$f":"'FR-16(7)(v)-3 PROD Demand'!M340+'FR-16(7)(v)-4 PROD Energy'!M340+'FR-16(7)(v)-5 PROD Cust'!M340+'FR-16(7)(v)-7 TRANS Demand'!M340+'FR-16(7)(v)-8 TRANS Energy'!M340+'FR-16(7)(v)-9 TRANS Cust'!M340+'FR-16(7)(v)-11 DIST Demand'!M340+'FR-16(7)(v)-12 DIST Energy'!M340+'FR-16(7)(v)-13 DIST Cust'!M340","v":0},{"$f":"'FR-16(7)(v)-3 PROD Demand'!N340+'FR-16(7)(v)-4 PROD Energy'!N340+'FR-16(7)(v)-5 PROD Cust'!N340+'FR-16(7)(v)-7 TRANS Demand'!N340+'FR-16(7)(v)-8 TRANS Energy'!N340+'FR-16(7)(v)-9 TRANS Cust'!N340+'FR-16(7)(v)-11 DIST Demand'!N340+'FR-16(7)(v)-12 DIST Energy'!N340+'FR-16(7)(v)-13 DIST Cust'!N340","v":0},{"$f":"'FR-16(7)(v)-3 PROD Demand'!O340+'FR-16(7)(v)-4 PROD Energy'!O340+'FR-16(7)(v)-5 PROD Cust'!O340+'FR-16(7)(v)-7 TRANS Demand'!O340+'FR-16(7)(v)-8 TRANS Energy'!O340+'FR-16(7)(v)-9 TRANS Cust'!O340+'FR-16(7)(v)-11 DIST Demand'!O340+'FR-16(7)(v)-12 DIST Energy'!O340+'FR-16(7)(v)-13 DIST Cust'!O340","v":0},{"$f":"'FR-16(7)(v)-3 PROD Demand'!P340+'FR-16(7)(v)-4 PROD Energy'!P340+'FR-16(7)(v)-5 PROD Cust'!P340+'FR-16(7)(v)-7 TRANS Demand'!P340+'FR-16(7)(v)-8 TRANS Energy'!P340+'FR-16(7)(v)-9 TRANS Cust'!P340+'FR-16(7)(v)-11 DIST Demand'!P340+'FR-16(7)(v)-12 DIST Energy'!P340+'FR-16(7)(v)-13 DIST Cust'!P340","v":0},{"$f":"'FR-16(7)(v)-3 PROD Demand'!Q340+'FR-16(7)(v)-4 PROD Energy'!Q340+'FR-16(7)(v)-5 PROD Cust'!Q340+'FR-16(7)(v)-7 TRANS Demand'!Q340+'FR-16(7)(v)-8 TRANS Energy'!Q340+'FR-16(7)(v)-9 TRANS Cust'!Q340+'FR-16(7)(v)-11 DIST Demand'!Q340+'FR-16(7)(v)-12 DIST Energy'!Q340+'FR-16(7)(v)-13 DIST Cust'!Q340","v":0},0,0]
[6,null,{"$f":"'FR-16(7)(v)-1 Functional'!C341","v":"RESERVED FOR FUTURE USE"},{"$f":"'FR-16(7)(v)-1 Functional'!D341","v":"NP29"},null,{"$f":"'FR-16(7)(v)-1 Functional'!F341","v":0},{"$f":"'FR-16(7)(v)-3 PROD Demand'!G341+'FR-16(7)(v)-4 PROD Energy'!G341+'FR-16(7)(v)-5 PROD Cust'!G341+'FR-16(7)(v)-7 TRANS Demand'!G341+'FR-16(7)(v)-8 TRANS Energy'!G341+'FR-16(7)(v)-9 TRANS Cust'!G341+'FR-16(7)(v)-11 DIST Demand'!G341+'FR-16(7)(v)-12 DIST Energy'!G341+'FR-16(7)(v)-13 DIST Cust'!G341","v":0},{"$f":"'FR-16(7)(v)-3 PROD Demand'!H341+'FR-16(7)(v)-4 PROD Energy'!H341+'FR-16(7)(v)-5 PROD Cust'!H341+'FR-16(7)(v)-7 TRANS Demand'!H341+'FR-16(7)(v)-8 TRANS Energy'!H341+'FR-16(7)(v)-9 TRANS Cust'!H341+'FR-16(7)(v)-11 DIST Demand'!H341+'FR-16(7)(v)-12 DIST Energy'!H341+'FR-16(7)(v)-13 DIST Cust'!H341","v":0},{"$f":"'FR-16(7)(v)-3 PROD Demand'!I341+'FR-16(7)(v)-4 PROD Energy'!I341+'FR-16(7)(v)-5 PROD Cust'!I341+'FR-16(7)(v)-7 TRANS Demand'!I341+'FR-16(7)(v)-8 TRANS Energy'!I341+'FR-16(7)(v)-9 TRANS Cust'!I341+'FR-16(7)(v)-11 DIST Demand'!I341+'FR-16(7)(v)-12 DIST Energy'!I341+'FR-16(7)(v)-13 DIST Cust'!I341","v":0},{"$f":"'FR-16(7)(v)-3 PROD Demand'!J341+'FR-16(7)(v)-4 PROD Energy'!J341+'FR-16(7)(v)-5 PROD Cust'!J341+'FR-16(7)(v)-7 TRANS Demand'!J341+'FR-16(7)(v)-8 TRANS Energy'!J341+'FR-16(7)(v)-9 TRANS Cust'!J341+'FR-16(7)(v)-11 DIST Demand'!J341+'FR-16(7)(v)-12 DIST Energy'!J341+'FR-16(7)(v)-13 DIST Cust'!J341","v":0},{"$f":"'FR-16(7)(v)-3 PROD Demand'!K341+'FR-16(7)(v)-4 PROD Energy'!K341+'FR-16(7)(v)-5 PROD Cust'!K341+'FR-16(7)(v)-7 TRANS Demand'!K341+'FR-16(7)(v)-8 TRANS Energy'!K341+'FR-16(7)(v)-9 TRANS Cust'!K341+'FR-16(7)(v)-11 DIST Demand'!K341+'FR-16(7)(v)-12 DIST Energy'!K341+'FR-16(7)(v)-13 DIST Cust'!K341","v":0},{"$f":"'FR-16(7)(v)-3 PROD Demand'!L341+'FR-16(7)(v)-4 PROD Energy'!L341+'FR-16(7)(v)-5 PROD Cust'!L341+'FR-16(7)(v)-7 TRANS Demand'!L341+'FR-16(7)(v)-8 TRANS Energy'!L341+'FR-16(7)(v)-9 TRANS Cust'!L341+'FR-16(7)(v)-11 DIST Demand'!L341+'FR-16(7)(v)-12 DIST Energy'!L341+'FR-16(7)(v)-13 DIST Cust'!L341","v":0},{"$f":"'FR-16(7)(v)-3 PROD Demand'!M341+'FR-16(7)(v)-4 PROD Energy'!M341+'FR-16(7)(v)-5 PROD Cust'!M341+'FR-16(7)(v)-7 TRANS Demand'!M341+'FR-16(7)(v)-8 TRANS Energy'!M341+'FR-16(7)(v)-9 TRANS Cust'!M341+'FR-16(7)(v)-11 DIST Demand'!M341+'FR-16(7)(v)-12 DIST Energy'!M341+'FR-16(7)(v)-13 DIST Cust'!M341","v":0},{"$f":"'FR-16(7)(v)-3 PROD Demand'!N341+'FR-16(7)(v)-4 PROD Energy'!N341+'FR-16(7)(v)-5 PROD Cust'!N341+'FR-16(7)(v)-7 TRANS Demand'!N341+'FR-16(7)(v)-8 TRANS Energy'!N341+'FR-16(7)(v)-9 TRANS Cust'!N341+'FR-16(7)(v)-11 DIST Demand'!N341+'FR-16(7)(v)-12 DIST Energy'!N341+'FR-16(7)(v)-13 DIST Cust'!N341","v":0},{"$f":"'FR-16(7)(v)-3 PROD Demand'!O341+'FR-16(7)(v)-4 PROD Energy'!O341+'FR-16(7)(v)-5 PROD Cust'!O341+'FR-16(7)(v)-7 TRANS Demand'!O341+'FR-16(7)(v)-8 TRANS Energy'!O341+'FR-16(7)(v)-9 TRANS Cust'!O341+'FR-16(7)(v)-11 DIST Demand'!O341+'FR-16(7)(v)-12 DIST Energy'!O341+'FR-16(7)(v)-13 DIST Cust'!O341","v":0},{"$f":"'FR-16(7)(v)-3 PROD Demand'!P341+'FR-16(7)(v)-4 PROD Energy'!P341+'FR-16(7)(v)-5 PROD Cust'!P341+'FR-16(7)(v)-7 TRANS Demand'!P341+'FR-16(7)(v)-8 TRANS Energy'!P341+'FR-16(7)(v)-9 TRANS Cust'!P341+'FR-16(7)(v)-11 DIST Demand'!P341+'FR-16(7)(v)-12 DIST Energy'!P341+'FR-16(7)(v)-13 DIST Cust'!P341","v":0},{"$f":"'FR-16(7)(v)-3 PROD Demand'!Q341+'FR-16(7)(v)-4 PROD Energy'!Q341+'FR-16(7)(v)-5 PROD Cust'!Q341+'FR-16(7)(v)-7 TRANS Demand'!Q341+'FR-16(7)(v)-8 TRANS Energy'!Q341+'FR-16(7)(v)-9 TRANS Cust'!Q341+'FR-16(7)(v)-11 DIST Demand'!Q341+'FR-16(7)(v)-12 DIST Energy'!Q341+'FR-16(7)(v)-13 DIST Cust'!Q341","v":0},0,0]
[7,null,{"$f":"'FR-16(7)(v)-1 Functional'!C342","v":"ELECTRIC METERS"},{"$f":"'FR-16(7)(v)-1 Functional'!D342","v":"K407"},null,{"$f":"'FR-16(7)(v)-1 Functional'!F342","v":0},{"$f":"'FR-16(7)(v)-3 PROD Demand'!G342+'FR-16(7)(v)-4 PROD Energy'!G342+'FR-16(7)(v)-5 PROD Cust'!G342+'FR-16(7)(v)-7 TRANS Demand'!G342+'FR-16(7)(v)-8 TRANS Energy'!G342+'FR-16(7)(v)-9 TRANS Cust'!G342+'FR-16(7)(v)-11 DIST Demand'!G342+'FR-16(7)(v)-12 DIST Energy'!G342+'FR-16(7)(v)-13 DIST Cust'!G342","v":0},{"$f":"'FR-16(7)(v)-3 PROD Demand'!H342+'FR-16(7)(v)-4 PROD Energy'!H342+'FR-16(7)(v)-5 PROD Cust'!H342+'FR-16(7)(v)-7 TRANS Demand'!H342+'FR-16(7)(v)-8 TRANS Energy'!H342+'FR-16(7)(v)-9 TRANS Cust'!H342+'FR-16(7)(v)-11 DIST Demand'!H342+'FR-16(7)(v)-12 DIST Energy'!H342+'FR-16(7)(v)-13 DIST Cust'!H342","v":0},{"$f":"'FR-16(7)(v)-3 PROD Demand'!I342+'FR-16(7)(v)-4 PROD Energy'!I342+'FR-16(7)(v)-5 PROD Cust'!I342+'FR-16(7)(v)-7 TRANS Demand'!I342+'FR-16(7)(v)-8 TRANS Energy'!I342+'FR-16(7)(v)-9 TRANS Cust'!I342+'FR-16(7)(v)-11 DIST Demand'!I342+'FR-16(7)(v)-12 DIST Energy'!I342+'FR-16(7)(v)-13 DIST Cust'!I342","v":0},{"$f":"'FR-16(7)(v)-3 PROD Demand'!J342+'FR-16(7)(v)-4 PROD Energy'!J342+'FR-16(7)(v)-5 PROD Cust'!J342+'FR-16(7)(v)-7 TRANS Demand'!J342+'FR-16(7)(v)-8 TRANS Energy'!J342+'FR-16(7)(v)-9 TRANS Cust'!J342+'FR-16(7)(v)-11 DIST Demand'!J342+'FR-16(7)(v)-12 DIST Energy'!J342+'FR-16(7)(v)-13 DIST Cust'!J342","v":0},{"$f":"'FR-16(7)(v)-3 PROD Demand'!K342+'FR-16(7)(v)-4 PROD Energy'!K342+'FR-16(7)(v)-5 PROD Cust'!K342+'FR-16(7)(v)-7 TRANS Demand'!K342+'FR-16(7)(v)-8 TRANS Energy'!K342+'FR-16(7)(v)-9 TRANS Cust'!K342+'FR-16(7)(v)-11 DIST Demand'!K342+'FR-16(7)(v)-12 DIST Energy'!K342+'FR-16(7)(v)-13 DIST Cust'!K342","v":0},{"$f":"'FR-16(7)(v)-3 PROD Demand'!L342+'FR-16(7)(v)-4 PROD Energy'!L342+'FR-16(7)(v)-5 PROD Cust'!L342+'FR-16(7)(v)-7 TRANS Demand'!L342+'FR-16(7)(v)-8 TRANS Energy'!L342+'FR-16(7)(v)-9 TRANS Cust'!L342+'FR-16(7)(v)-11 DIST Demand'!L342+'FR-16(7)(v)-12 DIST Energy'!L342+'FR-16(7)(v)-13 DIST Cust'!L342","v":0},{"$f":"'FR-16(7)(v)-3 PROD Demand'!M342+'FR-16(7)(v)-4 PROD Energy'!M342+'FR-16(7)(v)-5 PROD Cust'!M342+'FR-16(7)(v)-7 TRANS Demand'!M342+'FR-16(7)(v)-8 TRANS Energy'!M342+'FR-16(7)(v)-9 TRANS Cust'!M342+'FR-16(7)(v)-11 DIST Demand'!M342+'FR-16(7)(v)-12 DIST Energy'!M342+'FR-16(7)(v)-13 DIST Cust'!M342","v":0},{"$f":"'FR-16(7)(v)-3 PROD Demand'!N342+'FR-16(7)(v)-4 PROD Energy'!N342+'FR-16(7)(v)-5 PROD Cust'!N342+'FR-16(7)(v)-7 TRANS Demand'!N342+'FR-16(7)(v)-8 TRANS Energy'!N342+'FR-16(7)(v)-9 TRANS Cust'!N342+'FR-16(7)(v)-11 DIST Demand'!N342+'FR-16(7)(v)-12 DIST Energy'!N342+'FR-16(7)(v)-13 DIST Cust'!N342","v":0},{"$f":"'FR-16(7)(v)-3 PROD Demand'!O342+'FR-16(7)(v)-4 PROD Energy'!O342+'FR-16(7)(v)-5 PROD Cust'!O342+'FR-16(7)(v)-7 TRANS Demand'!O342+'FR-16(7)(v)-8 TRANS Energy'!O342+'FR-16(7)(v)-9 TRANS Cust'!O342+'FR-16(7)(v)-11 DIST Demand'!O342+'FR-16(7)(v)-12 DIST Energy'!O342+'FR-16(7)(v)-13 DIST Cust'!O342","v":0},{"$f":"'FR-16(7)(v)-3 PROD Demand'!P342+'FR-16(7)(v)-4 PROD Energy'!P342+'FR-16(7)(v)-5 PROD Cust'!P342+'FR-16(7)(v)-7 TRANS Demand'!P342+'FR-16(7)(v)-8 TRANS Energy'!P342+'FR-16(7)(v)-9 TRANS Cust'!P342+'FR-16(7)(v)-11 DIST Demand'!P342+'FR-16(7)(v)-12 DIST Energy'!P342+'FR-16(7)(v)-13 DIST Cust'!P342","v":0},{"$f":"'FR-16(7)(v)-3 PROD Demand'!Q342+'FR-16(7)(v)-4 PROD Energy'!Q342+'FR-16(7)(v)-5 PROD Cust'!Q342+'FR-16(7)(v)-7 TRANS Demand'!Q342+'FR-16(7)(v)-8 TRANS Energy'!Q342+'FR-16(7)(v)-9 TRANS Cust'!Q342+'FR-16(7)(v)-11 DIST Demand'!Q342+'FR-16(7)(v)-12 DIST Energy'!Q342+'FR-16(7)(v)-13 DIST Cust'!Q342","v":0},0,0]
[8,null,{"$f":"'FR-16(7)(v)-1 Functional'!C343","v":"UNAMORTIZED DEBT PREMIUM"},{"$f":"'FR-16(7)(v)-1 Functional'!D343","v":"D249"},null,{"$f":"'FR-16(7)(v)-1 Functional'!F343","v":0},{"$f":"'FR-16(7)(v)-3 PROD Demand'!G343+'FR-16(7)(v)-4 PROD Energy'!G343+'FR-16(7)(v)-5 PROD Cust'!G343+'FR-16(7)(v)-7 TRANS Demand'!G343+'FR-16(7)(v)-8 TRANS Energy'!G343+'FR-16(7)(v)-9 TRANS Cust'!G343+'FR-16(7)(v)-11 DIST Demand'!G343+'FR-16(7)(v)-12 DIST Energy'!G343+'FR-16(7)(v)-13 DIST Cust'!G343","v":0},{"$f":"'FR-16(7)(v)-3 PROD Demand'!H343+'FR-16(7)(v)-4 PROD Energy'!H343+'FR-16(7)(v)-5 PROD Cust'!H343+'FR-16(7)(v)-7 TRANS Demand'!H343+'FR-16(7)(v)-8 TRANS Energy'!H343+'FR-16(7)(v)-9 TRANS Cust'!H343+'FR-16(7)(v)-11 DIST Demand'!H343+'FR-16(7)(v)-12 DIST Energy'!H343+'FR-16(7)(v)-13 DIST Cust'!H343","v":0},{"$f":"'FR-16(7)(v)-3 PROD Demand'!I343+'FR-16(7)(v)-4 PROD Energy'!I343+'FR-16(7)(v)-5 PROD Cust'!I343+'FR-16(7)(v)-7 TRANS Demand'!I343+'FR-16(7)(v)-8 TRANS Energy'!I343+'FR-16(7)(v)-9 TRANS Cust'!I343+'FR-16(7)(v)-11 DIST Demand'!I343+'FR-16(7)(v)-12 DIST Energy'!I343+'FR-16(7)(v)-13 DIST Cust'!I343","v":0},{"$f":"'FR-16(7)(v)-3 PROD Demand'!J343+'FR-16(7)(v)-4 PROD Energy'!J343+'FR-16(7)(v)-5 PROD Cust'!J343+'FR-16(7)(v)-7 TRANS Demand'!J343+'FR-16(7)(v)-8 TRANS Energy'!J343+'FR-16(7)(v)-9 TRANS Cust'!J343+'FR-16(7)(v)-11 DIST Demand'!J343+'FR-16(7)(v)-12 DIST Energy'!J343+'FR-16(7)(v)-13 DIST Cust'!J343","v":0},{"$f":"'FR-16(7)(v)-3 PROD Demand'!K343+'FR-16(7)(v)-4 PROD Energy'!K343+'FR-16(7)(v)-5 PROD Cust'!K343+'FR-16(7)(v)-7 TRANS Demand'!K343+'FR-16(7)(v)-8 TRANS Energy'!K343+'FR-16(7)(v)-9 TRANS Cust'!K343+'FR-16(7)(v)-11 DIST Demand'!K343+'FR-16(7)(v)-12 DIST Energy'!K343+'FR-16(7)(v)-13 DIST Cust'!K343","v":0},{"$f":"'FR-16(7)(v)-3 PROD Demand'!L343+'FR-16(7)(v)-4 PROD Energy'!L343+'FR-16(7)(v)-5 PROD Cust'!L343+'FR-16(7)(v)-7 TRANS Demand'!L343+'FR-16(7)(v)-8 TRANS Energy'!L343+'FR-16(7)(v)-9 TRANS Cust'!L343+'FR-16(7)(v)-11 DIST Demand'!L343+'FR-16(7)(v)-12 DIST Energy'!L343+'FR-16(7)(v)-13 DIST Cust'!L343","v":0},{"$f":"'FR-16(7)(v)-3 PROD Demand'!M343+'FR-16(7)(v)-4 PROD Energy'!M343+'FR-16(7)(v)-5 PROD Cust'!M343+'FR-16(7)(v)-7 TRANS Demand'!M343+'FR-16(7)(v)-8 TRANS Energy'!M343+'FR-16(7)(v)-9 TRANS Cust'!M343+'FR-16(7)(v)-11 DIST Demand'!M343+'FR-16(7)(v)-12 DIST Energy'!M343+'FR-16(7)(v)-13 DIST Cust'!M343","v":0},{"$f":"'FR-16(7)(v)-3 PROD Demand'!N343+'FR-16(7)(v)-4 PROD Energy'!N343+'FR-16(7)(v)-5 PROD Cust'!N343+'FR-16(7)(v)-7 TRANS Demand'!N343+'FR-16(7)(v)-8 TRANS Energy'!N343+'FR-16(7)(v)-9 TRANS Cust'!N343+'FR-16(7)(v)-11 DIST Demand'!N343+'FR-16(7)(v)-12 DIST Energy'!N343+'FR-16(7)(v)-13 DIST Cust'!N343","v":0},{"$f":"'FR-16(7)(v)-3 PROD Demand'!O343+'FR-16(7)(v)-4 PROD Energy'!O343+'FR-16(7)(v)-5 PROD Cust'!O343+'FR-16(7)(v)-7 TRANS Demand'!O343+'FR-16(7)(v)-8 TRANS Energy'!O343+'FR-16(7)(v)-9 TRANS Cust'!O343+'FR-16(7)(v)-11 DIST Demand'!O343+'FR-16(7)(v)-12 DIST Energy'!O343+'FR-16(7)(v)-13 DIST Cust'!O343","v":0},{"$f":"'FR-16(7)(v)-3 PROD Demand'!P343+'FR-16(7)(v)-4 PROD Energy'!P343+'FR-16(7)(v)-5 PROD Cust'!P343+'FR-16(7)(v)-7 TRANS Demand'!P343+'FR-16(7)(v)-8 TRANS Energy'!P343+'FR-16(7)(v)-9 TRANS Cust'!P343+'FR-16(7)(v)-11 DIST Demand'!P343+'FR-16(7)(v)-12 DIST Energy'!P343+'FR-16(7)(v)-13 DIST Cust'!P343","v":0},{"$f":"'FR-16(7)(v)-3 PROD Demand'!Q343+'FR-16(7)(v)-4 PROD Energy'!Q343+'FR-16(7)(v)-5 PROD Cust'!Q343+'FR-16(7)(v)-7 TRANS Demand'!Q343+'FR-16(7)(v)-8 TRANS Energy'!Q343+'FR-16(7)(v)-9 TRANS Cust'!Q343+'FR-16(7)(v)-11 DIST Demand'!Q343+'FR-16(7)(v)-12 DIST Energy'!Q343+'FR-16(7)(v)-13 DIST Cust'!Q343","v":0},0,0]
[9,null,{"$f":"'FR-16(7)(v)-1 Functional'!C344","v":"ARO CUMULATIVE EFFECT"},{"$f":"'FR-16(7)(v)-1 Functional'!D344","v":"NP29"},null,{"$f":"'FR-16(7)(v)-1 Functional'!F344","v":0},{"$f":"'FR-16(7)(v)-3 PROD Demand'!G344+'FR-16(7)(v)-4 PROD Energy'!G344+'FR-16(7)(v)-5 PROD Cust'!G344+'FR-16(7)(v)-7 TRANS Demand'!G344+'FR-16(7)(v)-8 TRANS Energy'!G344+'FR-16(7)(v)-9 TRANS Cust'!G344+'FR-16(7)(v)-11 DIST Demand'!G344+'FR-16(7)(v)-12 DIST Energy'!G344+'FR-16(7)(v)-13 DIST Cust'!G344","v":0},{"$f":"'FR-16(7)(v)-3 PROD Demand'!H344+'FR-16(7)(v)-4 PROD Energy'!H344+'FR-16(7)(v)-5 PROD Cust'!H344+'FR-16(7)(v)-7 TRANS Demand'!H344+'FR-16(7)(v)-8 TRANS Energy'!H344+'FR-16(7)(v)-9 TRANS Cust'!H344+'FR-16(7)(v)-11 DIST Demand'!H344+'FR-16(7)(v)-12 DIST Energy'!H344+'FR-16(7)(v)-13 DIST Cust'!H344","v":0},{"$f":"'FR-16(7)(v)-3 PROD Demand'!I344+'FR-16(7)(v)-4 PROD Energy'!I344+'FR-16(7)(v)-5 PROD Cust'!I344+'FR-16(7)(v)-7 TRANS Demand'!I344+'FR-16(7)(v)-8 TRANS Energy'!I344+'FR-16(7)(v)-9 TRANS Cust'!I344+'FR-16(7)(v)-11 DIST Demand'!I344+'FR-16(7)(v)-12 DIST Energy'!I344+'FR-16(7)(v)-13 DIST Cust'!I344","v":0},{"$f":"'FR-16(7)(v)-3 PROD Demand'!J344+'FR-16(7)(v)-4 PROD Energy'!J344+'FR-16(7)(v)-5 PROD Cust'!J344+'FR-16(7)(v)-7 TRANS Demand'!J344+'FR-16(7)(v)-8 TRANS Energy'!J344+'FR-16(7)(v)-9 TRANS Cust'!J344+'FR-16(7)(v)-11 DIST Demand'!J344+'FR-16(7)(v)-12 DIST Energy'!J344+'FR-16(7)(v)-13 DIST Cust'!J344","v":0},{"$f":"'FR-16(7)(v)-3 PROD Demand'!K344+'FR-16(7)(v)-4 PROD Energy'!K344+'FR-16(7)(v)-5 PROD Cust'!K344+'FR-16(7)(v)-7 TRANS Demand'!K344+'FR-16(7)(v)-8 TRANS Energy'!K344+'FR-16(7)(v)-9 TRANS Cust'!K344+'FR-16(7)(v)-11 DIST Demand'!K344+'FR-16(7)(v)-12 DIST Energy'!K344+'FR-16(7)(v)-13 DIST Cust'!K344","v":0},{"$f":"'FR-16(7)(v)-3 PROD Demand'!L344+'FR-16(7)(v)-4 PROD Energy'!L344+'FR-16(7)(v)-5 PROD Cust'!L344+'FR-16(7)(v)-7 TRANS Demand'!L344+'FR-16(7)(v)-8 TRANS Energy'!L344+'FR-16(7)(v)-9 TRANS Cust'!L344+'FR-16(7)(v)-11 DIST Demand'!L344+'FR-16(7)(v)-12 DIST Energy'!L344+'FR-16(7)(v)-13 DIST Cust'!L344","v":0},{"$f":"'FR-16(7)(v)-3 PROD Demand'!M344+'FR-16(7)(v)-4 PROD Energy'!M344+'FR-16(7)(v)-5 PROD Cust'!M344+'FR-16(7)(v)-7 TRANS Demand'!M344+'FR-16(7)(v)-8 TRANS Energy'!M344+'FR-16(7)(v)-9 TRANS Cust'!M344+'FR-16(7)(v)-11 DIST Demand'!M344+'FR-16(7)(v)-12 DIST Energy'!M344+'FR-16(7)(v)-13 DIST Cust'!M344","v":0},{"$f":"'FR-16(7)(v)-3 PROD Demand'!N344+'FR-16(7)(v)-4 PROD Energy'!N344+'FR-16(7)(v)-5 PROD Cust'!N344+'FR-16(7)(v)-7 TRANS Demand'!N344+'FR-16(7)(v)-8 TRANS Energy'!N344+'FR-16(7)(v)-9 TRANS Cust'!N344+'FR-16(7)(v)-11 DIST Demand'!N344+'FR-16(7)(v)-12 DIST Energy'!N344+'FR-16(7)(v)-13 DIST Cust'!N344","v":0},{"$f":"'FR-16(7)(v)-3 PROD Demand'!O344+'FR-16(7)(v)-4 PROD Energy'!O344+'FR-16(7)(v)-5 PROD Cust'!O344+'FR-16(7)(v)-7 TRANS Demand'!O344+'FR-16(7)(v)-8 TRANS Energy'!O344+'FR-16(7)(v)-9 TRANS Cust'!O344+'FR-16(7)(v)-11 DIST Demand'!O344+'FR-16(7)(v)-12 DIST Energy'!O344+'FR-16(7)(v)-13 DIST Cust'!O344","v":0},{"$f":"'FR-16(7)(v)-3 PROD Demand'!P344+'FR-16(7)(v)-4 PROD Energy'!P344+'FR-16(7)(v)-5 PROD Cust'!P344+'FR-16(7)(v)-7 TRANS Demand'!P344+'FR-16(7)(v)-8 TRANS Energy'!P344+'FR-16(7)(v)-9 TRANS Cust'!P344+'FR-16(7)(v)-11 DIST Demand'!P344+'FR-16(7)(v)-12 DIST Energy'!P344+'FR-16(7)(v)-13 DIST Cust'!P344","v":0},{"$f":"'FR-16(7)(v)-3 PROD Demand'!Q344+'FR-16(7)(v)-4 PROD Energy'!Q344+'FR-16(7)(v)-5 PROD Cust'!Q344+'FR-16(7)(v)-7 TRANS Demand'!Q344+'FR-16(7)(v)-8 TRANS Energy'!Q344+'FR-16(7)(v)-9 TRANS Cust'!Q344+'FR-16(7)(v)-11 DIST Demand'!Q344+'FR-16(7)(v)-12 DIST Energy'!Q344+'FR-16(7)(v)-13 DIST Cust'!Q344","v":0},0,0]
[10,null,{"$f":"'FR-16(7)(v)-1 Functional'!C345","v":"RETIREMENT PLAN"},{"$f":"'FR-16(7)(v)-1 Functional'!D345","v":"A315"},null,{"$f":"'FR-16(7)(v)-1 Functional'!F345","v":2841332},{"$f":"'FR-16(7)(v)-3 PROD Demand'!G345+'FR-16(7)(v)-4 PROD Energy'!G345+'FR-16(7)(v)-5 PROD Cust'!G345+'FR-16(7)(v)-7 TRANS Demand'!G345+'FR-16(7)(v)-8 TRANS Energy'!G345+'FR-16(7)(v)-9 TRANS Cust'!G345+'FR-16(7)(v)-11 DIST Demand'!G345+'FR-16(7)(v)-12 DIST Energy'!G345+'FR-16(7)(v)-13 DIST Cust'!G345","v":1857511},{"$f":"'FR-16(7)(v)-3 PROD Demand'!H345+'FR-16(7)(v)-4 PROD Energy'!H345+'FR-16(7)(v)-5 PROD Cust'!H345+'FR-16(7)(v)-7 TRANS Demand'!H345+'FR-16(7)(v)-8 TRANS Energy'!H345+'FR-16(7)(v)-9 TRANS Cust'!H345+'FR-16(7)(v)-11 DIST Demand'!H345+'FR-16(7)(v)-12 DIST Energy'!H345+'FR-16(7)(v)-13 DIST Cust'!H345","v":481349},{"$f":"'FR-16(7)(v)-3 PROD Demand'!I345+'FR-16(7)(v)-4 PROD Energy'!I345+'FR-16(7)(v)-5 PROD Cust'!I345+'FR-16(7)(v)-7 TRANS Demand'!I345+'FR-16(7)(v)-8 TRANS Energy'!I345+'FR-16(7)(v)-9 TRANS Cust'!I345+'FR-16(7)(v)-11 DIST Demand'!I345+'FR-16(7)(v)-12 DIST Energy'!I345+'FR-16(7)(v)-13 DIST Cust'!I345","v":2560},{"$f":"'FR-16(7)(v)-3 PROD Demand'!J345+'FR-16(7)(v)-4 PROD Energy'!J345+'FR-16(7)(v)-5 PROD Cust'!J345+'FR-16(7)(v)-7 TRANS Demand'!J345+'FR-16(7)(v)-8 TRANS Energy'!J345+'FR-16(7)(v)-9 TRANS Cust'!J345+'FR-16(7)(v)-11 DIST Demand'!J345+'FR-16(7)(v)-12 DIST Energy'!J345+'FR-16(7)(v)-13 DIST Cust'!J345","v":8210},{"$f":"'FR-16(7)(v)-3 PROD Demand'!K345+'FR-16(7)(v)-4 PROD Energy'!K345+'FR-16(7)(v)-5 PROD Cust'!K345+'FR-16(7)(v)-7 TRANS Demand'!K345+'FR-16(7)(v)-8 TRANS Energy'!K345+'FR-16(7)(v)-9 TRANS Cust'!K345+'FR-16(7)(v)-11 DIST Demand'!K345+'FR-16(7)(v)-12 DIST Energy'!K345+'FR-16(7)(v)-13 DIST Cust'!K345","v":184},{"$f":"'FR-16(7)(v)-3 PROD Demand'!L345+'FR-16(7)(v)-4 PROD Energy'!L345+'FR-16(7)(v)-5 PROD Cust'!L345+'FR-16(7)(v)-7 TRANS Demand'!L345+'FR-16(7)(v)-8 TRANS Energy'!L345+'FR-16(7)(v)-9 TRANS Cust'!L345+'FR-16(7)(v)-11 DIST Demand'!L345+'FR-16(7)(v)-12 DIST Energy'!L345+'FR-16(7)(v)-13 DIST Cust'!L345","v":235422},{"$f":"'FR-16(7)(v)-3 PROD Demand'!M345+'FR-16(7)(v)-4 PROD Energy'!M345+'FR-16(7)(v)-5 PROD Cust'!M345+'FR-16(7)(v)-7 TRANS Demand'!M345+'FR-16(7)(v)-8 TRANS Energy'!M345+'FR-16(7)(v)-9 TRANS Cust'!M345+'FR-16(7)(v)-11 DIST Demand'!M345+'FR-16(7)(v)-12 DIST Energy'!M345+'FR-16(7)(v)-13 DIST Cust'!M345","v":158833},{"$f":"'FR-16(7)(v)-3 PROD Demand'!N345+'FR-16(7)(v)-4 PROD Energy'!N345+'FR-16(7)(v)-5 PROD Cust'!N345+'FR-16(7)(v)-7 TRANS Demand'!N345+'FR-16(7)(v)-8 TRANS Energy'!N345+'FR-16(7)(v)-9 TRANS Cust'!N345+'FR-16(7)(v)-11 DIST Demand'!N345+'FR-16(7)(v)-12 DIST Energy'!N345+'FR-16(7)(v)-13 DIST Cust'!N345","v":7817},{"$f":"'FR-16(7)(v)-3 PROD Demand'!O345+'FR-16(7)(v)-4 PROD Energy'!O345+'FR-16(7)(v)-5 PROD Cust'!O345+'FR-16(7)(v)-7 TRANS Demand'!O345+'FR-16(7)(v)-8 TRANS Energy'!O345+'FR-16(7)(v)-9 TRANS Cust'!O345+'FR-16(7)(v)-11 DIST Demand'!O345+'FR-16(7)(v)-12 DIST Energy'!O345+'FR-16(7)(v)-13 DIST Cust'!O345","v":65455},{"$f":"'FR-16(7)(v)-3 PROD Demand'!P345+'FR-16(7)(v)-4 PROD Energy'!P345+'FR-16(7)(v)-5 PROD Cust'!P345+'FR-16(7)(v)-7 TRANS Demand'!P345+'FR-16(7)(v)-8 TRANS Energy'!P345+'FR-16(7)(v)-9 TRANS Cust'!P345+'FR-16(7)(v)-11 DIST Demand'!P345+'FR-16(7)(v)-12 DIST Energy'!P345+'FR-16(7)(v)-13 DIST Cust'!P345","v":23733},{"$f":"'FR-16(7)(v)-3 PROD Demand'!Q345+'FR-16(7)(v)-4 PROD Energy'!Q345+'FR-16(7)(v)-5 PROD Cust'!Q345+'FR-16(7)(v)-7 TRANS Demand'!Q345+'FR-16(7)(v)-8 TRANS Energy'!Q345+'FR-16(7)(v)-9 TRANS Cust'!Q345+'FR-16(7)(v)-11 DIST Demand'!Q345+'FR-16(7)(v)-12 DIST Energy'!Q345+'FR-16(7)(v)-13 DIST Cust'!Q345","v":258},2841332,0]
[11,null,{"$f":"'FR-16(7)(v)-1 Functional'!C346","v":"POST RETIREMENT BENEFITS "},{"$f":"'FR-16(7)(v)-1 Functional'!D346","v":"A315"},null,{"$f":"'FR-16(7)(v)-1 Functional'!F346","v":0},{"$f":"'FR-16(7)(v)-3 PROD Demand'!G346+'FR-16(7)(v)-4 PROD Energy'!G346+'FR-16(7)(v)-5 PROD Cust'!G346+'FR-16(7)(v)-7 TRANS Demand'!G346+'FR-16(7)(v)-8 TRANS Energy'!G346+'FR-16(7)(v)-9 TRANS Cust'!G346+'FR-16(7)(v)-11 DIST Demand'!G346+'FR-16(7)(v)-12 DIST Energy'!G346+'FR-16(7)(v)-13 DIST Cust'!G346","v":0},{"$f":"'FR-16(7)(v)-3 PROD Demand'!H346+'FR-16(7)(v)-4 PROD Energy'!H346+'FR-16(7)(v)-5 PROD Cust'!H346+'FR-16(7)(v)-7 TRANS Demand'!H346+'FR-16(7)(v)-8 TRANS Energy'!H346+'FR-16(7)(v)-9 TRANS Cust'!H346+'FR-16(7)(v)-11 DIST Demand'!H346+'FR-16(7)(v)-12 DIST Energy'!H346+'FR-16(7)(v)-13 DIST Cust'!H346","v":0},{"$f":"'FR-16(7)(v)-3 PROD Demand'!I346+'FR-16(7)(v)-4 PROD Energy'!I346+'FR-16(7)(v)-5 PROD Cust'!I346+'FR-16(7)(v)-7 TRANS Demand'!I346+'FR-16(7)(v)-8 TRANS Energy'!I346+'FR-16(7)(v)-9 TRANS Cust'!I346+'FR-16(7)(v)-11 DIST Demand'!I346+'FR-16(7)(v)-12 DIST Energy'!I346+'FR-16(7)(v)-13 DIST Cust'!I346","v":0},{"$f":"'FR-16(7)(v)-3 PROD Demand'!J346+'FR-16(7)(v)-4 PROD Energy'!J346+'FR-16(7)(v)-5 PROD Cust'!J346+'FR-16(7)(v)-7 TRANS Demand'!J346+'FR-16(7)(v)-8 TRANS Energy'!J346+'FR-16(7)(v)-9 TRANS Cust'!J346+'FR-16(7)(v)-11 DIST Demand'!J346+'FR-16(7)(v)-12 DIST Energy'!J346+'FR-16(7)(v)-13 DIST Cust'!J346","v":0},{"$f":"'FR-16(7)(v)-3 PROD Demand'!K346+'FR-16(7)(v)-4 PROD Energy'!K346+'FR-16(7)(v)-5 PROD Cust'!K346+'FR-16(7)(v)-7 TRANS Demand'!K346+'FR-16(7)(v)-8 TRANS Energy'!K346+'FR-16(7)(v)-9 TRANS Cust'!K346+'FR-16(7)(v)-11 DIST Demand'!K346+'FR-16(7)(v)-12 DIST Energy'!K346+'FR-16(7)(v)-13 DIST Cust'!K346","v":0},{"$f":"'FR-16(7)(v)-3 PROD Demand'!L346+'FR-16(7)(v)-4 PROD Energy'!L346+'FR-16(7)(v)-5 PROD Cust'!L346+'FR-16(7)(v)-7 TRANS Demand'!L346+'FR-16(7)(v)-8 TRANS Energy'!L346+'FR-16(7)(v)-9 TRANS Cust'!L346+'FR-16(7)(v)-11 DIST Demand'!L346+'FR-16(7)(v)-12 DIST Energy'!L346+'FR-16(7)(v)-13 DIST Cust'!L346","v":0},{"$f":"'FR-16(7)(v)-3 PROD Demand'!M346+'FR-16(7)(v)-4 PROD Energy'!M346+'FR-16(7)(v)-5 PROD Cust'!M346+'FR-16(7)(v)-7 TRANS Demand'!M346+'FR-16(7)(v)-8 TRANS Energy'!M346+'FR-16(7)(v)-9 TRANS Cust'!M346+'FR-16(7)(v)-11 DIST Demand'!M346+'FR-16(7)(v)-12 DIST Energy'!M346+'FR-16(7)(v)-13 DIST Cust'!M346","v":0},{"$f":"'FR-16(7)(v)-3 PROD Demand'!N346+'FR-16(7)(v)-4 PROD Energy'!N346+'FR-16(7)(v)-5 PROD Cust'!N346+'FR-16(7)(v)-7 TRANS Demand'!N346+'FR-16(7)(v)-8 TRANS Energy'!N346+'FR-16(7)(v)-9 TRANS Cust'!N346+'FR-16(7)(v)-11 DIST Demand'!N346+'FR-16(7)(v)-12 DIST Energy'!N346+'FR-16(7)(v)-13 DIST Cust'!N346","v":0},{"$f":"'FR-16(7)(v)-3 PROD Demand'!O346+'FR-16(7)(v)-4 PROD Energy'!O346+'FR-16(7)(v)-5 PROD Cust'!O346+'FR-16(7)(v)-7 TRANS Demand'!O346+'FR-16(7)(v)-8 TRANS Energy'!O346+'FR-16(7)(v)-9 TRANS Cust'!O346+'FR-16(7)(v)-11 DIST Demand'!O346+'FR-16(7)(v)-12 DIST Energy'!O346+'FR-16(7)(v)-13 DIST Cust'!O346","v":0},{"$f":"'FR-16(7)(v)-3 PROD Demand'!P346+'FR-16(7)(v)-4 PROD Energy'!P346+'FR-16(7)(v)-5 PROD Cust'!P346+'FR-16(7)(v)-7 TRANS Demand'!P346+'FR-16(7)(v)-8 TRANS Energy'!P346+'FR-16(7)(v)-9 TRANS Cust'!P346+'FR-16(7)(v)-11 DIST Demand'!P346+'FR-16(7)(v)-12 DIST Energy'!P346+'FR-16(7)(v)-13 DIST Cust'!P346","v":0},{"$f":"'FR-16(7)(v)-3 PROD Demand'!Q346+'FR-16(7)(v)-4 PROD Energy'!Q346+'FR-16(7)(v)-5 PROD Cust'!Q346+'FR-16(7)(v)-7 TRANS Demand'!Q346+'FR-16(7)(v)-8 TRANS Energy'!Q346+'FR-16(7)(v)-9 TRANS Cust'!Q346+'FR-16(7)(v)-11 DIST Demand'!Q346+'FR-16(7)(v)-12 DIST Energy'!Q346+'FR-16(7)(v)-13 DIST Cust'!Q346","v":0},0,0]
[12,null,{"$f":"'FR-16(7)(v)-1 Functional'!C347","v":"POST RETIREMENT BENEFITS - HEALTH CARE"},{"$f":"'FR-16(7)(v)-1 Functional'!D347","v":"A315"},null,{"$f":"'FR-16(7)(v)-1 Functional'!F347","v":0},{"$f":"'FR-16(7)(v)-3 PROD Demand'!G347+'FR-16(7)(v)-4 PROD Energy'!G347+'FR-16(7)(v)-5 PROD Cust'!G347+'FR-16(7)(v)-7 TRANS Demand'!G347+'FR-16(7)(v)-8 TRANS Energy'!G347+'FR-16(7)(v)-9 TRANS Cust'!G347+'FR-16(7)(v)-11 DIST Demand'!G347+'FR-16(7)(v)-12 DIST Energy'!G347+'FR-16(7)(v)-13 DIST Cust'!G347","v":0},{"$f":"'FR-16(7)(v)-3 PROD Demand'!H347+'FR-16(7)(v)-4 PROD Energy'!H347+'FR-16(7)(v)-5 PROD Cust'!H347+'FR-16(7)(v)-7 TRANS Demand'!H347+'FR-16(7)(v)-8 TRANS Energy'!H347+'FR-16(7)(v)-9 TRANS Cust'!H347+'FR-16(7)(v)-11 DIST Demand'!H347+'FR-16(7)(v)-12 DIST Energy'!H347+'FR-16(7)(v)-13 DIST Cust'!H347","v":0},{"$f":"'FR-16(7)(v)-3 PROD Demand'!I347+'FR-16(7)(v)-4 PROD Energy'!I347+'FR-16(7)(v)-5 PROD Cust'!I347+'FR-16(7)(v)-7 TRANS Demand'!I347+'FR-16(7)(v)-8 TRANS Energy'!I347+'FR-16(7)(v)-9 TRANS Cust'!I347+'FR-16(7)(v)-11 DIST Demand'!I347+'FR-16(7)(v)-12 DIST Energy'!I347+'FR-16(7)(v)-13 DIST Cust'!I347","v":0},{"$f":"'FR-16(7)(v)-3 PROD Demand'!J347+'FR-16(7)(v)-4 PROD Energy'!J347+'FR-16(7)(v)-5 PROD Cust'!J347+'FR-16(7)(v)-7 TRANS Demand'!J347+'FR-16(7)(v)-8 TRANS Energy'!J347+'FR-16(7)(v)-9 TRANS Cust'!J347+'FR-16(7)(v)-11 DIST Demand'!J347+'FR-16(7)(v)-12 DIST Energy'!J347+'FR-16(7)(v)-13 DIST Cust'!J347","v":0},{"$f":"'FR-16(7)(v)-3 PROD Demand'!K347+'FR-16(7)(v)-4 PROD Energy'!K347+'FR-16(7)(v)-5 PROD Cust'!K347+'FR-16(7)(v)-7 TRANS Demand'!K347+'FR-16(7)(v)-8 TRANS Energy'!K347+'FR-16(7)(v)-9 TRANS Cust'!K347+'FR-16(7)(v)-11 DIST Demand'!K347+'FR-16(7)(v)-12 DIST Energy'!K347+'FR-16(7)(v)-13 DIST Cust'!K347","v":0},{"$f":"'FR-16(7)(v)-3 PROD Demand'!L347+'FR-16(7)(v)-4 PROD Energy'!L347+'FR-16(7)(v)-5 PROD Cust'!L347+'FR-16(7)(v)-7 TRANS Demand'!L347+'FR-16(7)(v)-8 TRANS Energy'!L347+'FR-16(7)(v)-9 TRANS Cust'!L347+'FR-16(7)(v)-11 DIST Demand'!L347+'FR-16(7)(v)-12 DIST Energy'!L347+'FR-16(7)(v)-13 DIST Cust'!L347","v":0},{"$f":"'FR-16(7)(v)-3 PROD Demand'!M347+'FR-16(7)(v)-4 PROD Energy'!M347+'FR-16(7)(v)-5 PROD Cust'!M347+'FR-16(7)(v)-7 TRANS Demand'!M347+'FR-16(7)(v)-8 TRANS Energy'!M347+'FR-16(7)(v)-9 TRANS Cust'!M347+'FR-16(7)(v)-11 DIST Demand'!M347+'FR-16(7)(v)-12 DIST Energy'!M347+'FR-16(7)(v)-13 DIST Cust'!M347","v":0},{"$f":"'FR-16(7)(v)-3 PROD Demand'!N347+'FR-16(7)(v)-4 PROD Energy'!N347+'FR-16(7)(v)-5 PROD Cust'!N347+'FR-16(7)(v)-7 TRANS Demand'!N347+'FR-16(7)(v)-8 TRANS Energy'!N347+'FR-16(7)(v)-9 TRANS Cust'!N347+'FR-16(7)(v)-11 DIST Demand'!N347+'FR-16(7)(v)-12 DIST Energy'!N347+'FR-16(7)(v)-13 DIST Cust'!N347","v":0},{"$f":"'FR-16(7)(v)-3 PROD Demand'!O347+'FR-16(7)(v)-4 PROD Energy'!O347+'FR-16(7)(v)-5 PROD Cust'!O347+'FR-16(7)(v)-7 TRANS Demand'!O347+'FR-16(7)(v)-8 TRANS Energy'!O347+'FR-16(7)(v)-9 TRANS Cust'!O347+'FR-16(7)(v)-11 DIST Demand'!O347+'FR-16(7)(v)-12 DIST Energy'!O347+'FR-16(7)(v)-13 DIST Cust'!O347","v":0},{"$f":"'FR-16(7)(v)-3 PROD Demand'!P347+'FR-16(7)(v)-4 PROD Energy'!P347+'FR-16(7)(v)-5 PROD Cust'!P347+'FR-16(7)(v)-7 TRANS Demand'!P347+'FR-16(7)(v)-8 TRANS Energy'!P347+'FR-16(7)(v)-9 TRANS Cust'!P347+'FR-16(7)(v)-11 DIST Demand'!P347+'FR-16(7)(v)-12 DIST Energy'!P347+'FR-16(7)(v)-13 DIST Cust'!P347","v":0},{"$f":"'FR-16(7)(v)-3 PROD Demand'!Q347+'FR-16(7)(v)-4 PROD Energy'!Q347+'FR-16(7)(v)-5 PROD Cust'!Q347+'FR-16(7)(v)-7 TRANS Demand'!Q347+'FR-16(7)(v)-8 TRANS Energy'!Q347+'FR-16(7)(v)-9 TRANS Cust'!Q347+'FR-16(7)(v)-11 DIST Demand'!Q347+'FR-16(7)(v)-12 DIST Energy'!Q347+'FR-16(7)(v)-13 DIST Cust'!Q347","v":0},0,0]
[13,null,{"$f":"'FR-16(7)(v)-1 Functional'!C348","v":"POST EMPLOYMENT BENEFITS - SFAS 112"},{"$f":"'FR-16(7)(v)-1 Functional'!D348","v":"A315"},null,{"$f":"'FR-16(7)(v)-1 Functional'!F348","v":0},{"$f":"'FR-16(7)(v)-3 PROD Demand'!G348+'FR-16(7)(v)-4 PROD Energy'!G348+'FR-16(7)(v)-5 PROD Cust'!G348+'FR-16(7)(v)-7 TRANS Demand'!G348+'FR-16(7)(v)-8 TRANS Energy'!G348+'FR-16(7)(v)-9 TRANS Cust'!G348+'FR-16(7)(v)-11 DIST Demand'!G348+'FR-16(7)(v)-12 DIST Energy'!G348+'FR-16(7)(v)-13 DIST Cust'!G348","v":0},{"$f":"'FR-16(7)(v)-3 PROD Demand'!H348+'FR-16(7)(v)-4 PROD Energy'!H348+'FR-16(7)(v)-5 PROD Cust'!H348+'FR-16(7)(v)-7 TRANS Demand'!H348+'FR-16(7)(v)-8 TRANS Energy'!H348+'FR-16(7)(v)-9 TRANS Cust'!H348+'FR-16(7)(v)-11 DIST Demand'!H348+'FR-16(7)(v)-12 DIST Energy'!H348+'FR-16(7)(v)-13 DIST Cust'!H348","v":0},{"$f":"'FR-16(7)(v)-3 PROD Demand'!I348+'FR-16(7)(v)-4 PROD Energy'!I348+'FR-16(7)(v)-5 PROD Cust'!I348+'FR-16(7)(v)-7 TRANS Demand'!I348+'FR-16(7)(v)-8 TRANS Energy'!I348+'FR-16(7)(v)-9 TRANS Cust'!I348+'FR-16(7)(v)-11 DIST Demand'!I348+'FR-16(7)(v)-12 DIST Energy'!I348+'FR-16(7)(v)-13 DIST Cust'!I348","v":0},{"$f":"'FR-16(7)(v)-3 PROD Demand'!J348+'FR-16(7)(v)-4 PROD Energy'!J348+'FR-16(7)(v)-5 PROD Cust'!J348+'FR-16(7)(v)-7 TRANS Demand'!J348+'FR-16(7)(v)-8 TRANS Energy'!J348+'FR-16(7)(v)-9 TRANS Cust'!J348+'FR-16(7)(v)-11 DIST Demand'!J348+'FR-16(7)(v)-12 DIST Energy'!J348+'FR-16(7)(v)-13 DIST Cust'!J348","v":0},{"$f":"'FR-16(7)(v)-3 PROD Demand'!K348+'FR-16(7)(v)-4 PROD Energy'!K348+'FR-16(7)(v)-5 PROD Cust'!K348+'FR-16(7)(v)-7 TRANS Demand'!K348+'FR-16(7)(v)-8 TRANS Energy'!K348+'FR-16(7)(v)-9 TRANS Cust'!K348+'FR-16(7)(v)-11 DIST Demand'!K348+'FR-16(7)(v)-12 DIST Energy'!K348+'FR-16(7)(v)-13 DIST Cust'!K348","v":0},{"$f":"'FR-16(7)(v)-3 PROD Demand'!L348+'FR-16(7)(v)-4 PROD Energy'!L348+'FR-16(7)(v)-5 PROD Cust'!L348+'FR-16(7)(v)-7 TRANS Demand'!L348+'FR-16(7)(v)-8 TRANS Energy'!L348+'FR-16(7)(v)-9 TRANS Cust'!L348+'FR-16(7)(v)-11 DIST Demand'!L348+'FR-16(7)(v)-12 DIST Energy'!L348+'FR-16(7)(v)-13 DIST Cust'!L348","v":0},{"$f":"'FR-16(7)(v)-3 PROD Demand'!M348+'FR-16(7)(v)-4 PROD Energy'!M348+'FR-16(7)(v)-5 PROD Cust'!M348+'FR-16(7)(v)-7 TRANS Demand'!M348+'FR-16(7)(v)-8 TRANS Energy'!M348+'FR-16(7)(v)-9 TRANS Cust'!M348+'FR-16(7)(v)-11 DIST Demand'!M348+'FR-16(7)(v)-12 DIST Energy'!M348+'FR-16(7)(v)-13 DIST Cust'!M348","v":0},{"$f":"'FR-16(7)(v)-3 PROD Demand'!N348+'FR-16(7)(v)-4 PROD Energy'!N348+'FR-16(7)(v)-5 PROD Cust'!N348+'FR-16(7)(v)-7 TRANS Demand'!N348+'FR-16(7)(v)-8 TRANS Energy'!N348+'FR-16(7)(v)-9 TRANS Cust'!N348+'FR-16(7)(v)-11 DIST Demand'!N348+'FR-16(7)(v)-12 DIST Energy'!N348+'FR-16(7)(v)-13 DIST Cust'!N348","v":0},{"$f":"'FR-16(7)(v)-3 PROD Demand'!O348+'FR-16(7)(v)-4 PROD Energy'!O348+'FR-16(7)(v)-5 PROD Cust'!O348+'FR-16(7)(v)-7 TRANS Demand'!O348+'FR-16(7)(v)-8 TRANS Energy'!O348+'FR-16(7)(v)-9 TRANS Cust'!O348+'FR-16(7)(v)-11 DIST Demand'!O348+'FR-16(7)(v)-12 DIST Energy'!O348+'FR-16(7)(v)-13 DIST Cust'!O348","v":0},{"$f":"'FR-16(7)(v)-3 PROD Demand'!P348+'FR-16(7)(v)-4 PROD Energy'!P348+'FR-16(7)(v)-5 PROD Cust'!P348+'FR-16(7)(v)-7 TRANS Demand'!P348+'FR-16(7)(v)-8 TRANS Energy'!P348+'FR-16(7)(v)-9 TRANS Cust'!P348+'FR-16(7)(v)-11 DIST Demand'!P348+'FR-16(7)(v)-12 DIST Energy'!P348+'FR-16(7)(v)-13 DIST Cust'!P348","v":0},{"$f":"'FR-16(7)(v)-3 PROD Demand'!Q348+'FR-16(7)(v)-4 PROD Energy'!Q348+'FR-16(7)(v)-5 PROD Cust'!Q348+'FR-16(7)(v)-7 TRANS Demand'!Q348+'FR-16(7)(v)-8 TRANS Energy'!Q348+'FR-16(7)(v)-9 TRANS Cust'!Q348+'FR-16(7)(v)-11 DIST Demand'!Q348+'FR-16(7)(v)-12 DIST Energy'!Q348+'FR-16(7)(v)-13 DIST Cust'!Q348","v":0},0,0]
[14,null,{"$f":"'FR-16(7)(v)-1 Functional'!C349","v":"SUPPLEMENTAL PENSION PLAN"},{"$f":"'FR-16(7)(v)-1 Functional'!D349","v":"A315"},null,{"$f":"'FR-16(7)(v)-1 Functional'!F349","v":0},{"$f":"'FR-16(7)(v)-3 PROD Demand'!G349+'FR-16(7)(v)-4 PROD Energy'!G349+'FR-16(7)(v)-5 PROD Cust'!G349+'FR-16(7)(v)-7 TRANS Demand'!G349+'FR-16(7)(v)-8 TRANS Energy'!G349+'FR-16(7)(v)-9 TRANS Cust'!G349+'FR-16(7)(v)-11 DIST Demand'!G349+'FR-16(7)(v)-12 DIST Energy'!G349+'FR-16(7)(v)-13 DIST Cust'!G349","v":0},{"$f":"'FR-16(7)(v)-3 PROD Demand'!H349+'FR-16(7)(v)-4 PROD Energy'!H349+'FR-16(7)(v)-5 PROD Cust'!H349+'FR-16(7)(v)-7 TRANS Demand'!H349+'FR-16(7)(v)-8 TRANS Energy'!H349+'FR-16(7)(v)-9 TRANS Cust'!H349+'FR-16(7)(v)-11 DIST Demand'!H349+'FR-16(7)(v)-12 DIST Energy'!H349+'FR-16(7)(v)-13 DIST Cust'!H349","v":0},{"$f":"'FR-16(7)(v)-3 PROD Demand'!I349+'FR-16(7)(v)-4 PROD Energy'!I349+'FR-16(7)(v)-5 PROD Cust'!I349+'FR-16(7)(v)-7 TRANS Demand'!I349+'FR-16(7)(v)-8 TRANS Energy'!I349+'FR-16(7)(v)-9 TRANS Cust'!I349+'FR-16(7)(v)-11 DIST Demand'!I349+'FR-16(7)(v)-12 DIST Energy'!I349+'FR-16(7)(v)-13 DIST Cust'!I349","v":0},{"$f":"'FR-16(7)(v)-3 PROD Demand'!J349+'FR-16(7)(v)-4 PROD Energy'!J349+'FR-16(7)(v)-5 PROD Cust'!J349+'FR-16(7)(v)-7 TRANS Demand'!J349+'FR-16(7)(v)-8 TRANS Energy'!J349+'FR-16(7)(v)-9 TRANS Cust'!J349+'FR-16(7)(v)-11 DIST Demand'!J349+'FR-16(7)(v)-12 DIST Energy'!J349+'FR-16(7)(v)-13 DIST Cust'!J349","v":0},{"$f":"'FR-16(7)(v)-3 PROD Demand'!K349+'FR-16(7)(v)-4 PROD Energy'!K349+'FR-16(7)(v)-5 PROD Cust'!K349+'FR-16(7)(v)-7 TRANS Demand'!K349+'FR-16(7)(v)-8 TRANS Energy'!K349+'FR-16(7)(v)-9 TRANS Cust'!K349+'FR-16(7)(v)-11 DIST Demand'!K349+'FR-16(7)(v)-12 DIST Energy'!K349+'FR-16(7)(v)-13 DIST Cust'!K349","v":0},{"$f":"'FR-16(7)(v)-3 PROD Demand'!L349+'FR-16(7)(v)-4 PROD Energy'!L349+'FR-16(7)(v)-5 PROD Cust'!L349+'FR-16(7)(v)-7 TRANS Demand'!L349+'FR-16(7)(v)-8 TRANS Energy'!L349+'FR-16(7)(v)-9 TRANS Cust'!L349+'FR-16(7)(v)-11 DIST Demand'!L349+'FR-16(7)(v)-12 DIST Energy'!L349+'FR-16(7)(v)-13 DIST Cust'!L349","v":0},{"$f":"'FR-16(7)(v)-3 PROD Demand'!M349+'FR-16(7)(v)-4 PROD Energy'!M349+'FR-16(7)(v)-5 PROD Cust'!M349+'FR-16(7)(v)-7 TRANS Demand'!M349+'FR-16(7)(v)-8 TRANS Energy'!M349+'FR-16(7)(v)-9 TRANS Cust'!M349+'FR-16(7)(v)-11 DIST Demand'!M349+'FR-16(7)(v)-12 DIST Energy'!M349+'FR-16(7)(v)-13 DIST Cust'!M349","v":0},{"$f":"'FR-16(7)(v)-3 PROD Demand'!N349+'FR-16(7)(v)-4 PROD Energy'!N349+'FR-16(7)(v)-5 PROD Cust'!N349+'FR-16(7)(v)-7 TRANS Demand'!N349+'FR-16(7)(v)-8 TRANS Energy'!N349+'FR-16(7)(v)-9 TRANS Cust'!N349+'FR-16(7)(v)-11 DIST Demand'!N349+'FR-16(7)(v)-12 DIST Energy'!N349+'FR-16(7)(v)-13 DIST Cust'!N349","v":0},{"$f":"'FR-16(7)(v)-3 PROD Demand'!O349+'FR-16(7)(v)-4 PROD Energy'!O349+'FR-16(7)(v)-5 PROD Cust'!O349+'FR-16(7)(v)-7 TRANS Demand'!O349+'FR-16(7)(v)-8 TRANS Energy'!O349+'FR-16(7)(v)-9 TRANS Cust'!O349+'FR-16(7)(v)-11 DIST Demand'!O349+'FR-16(7)(v)-12 DIST Energy'!O349+'FR-16(7)(v)-13 DIST Cust'!O349","v":0},{"$f":"'FR-16(7)(v)-3 PROD Demand'!P349+'FR-16(7)(v)-4 PROD Energy'!P349+'FR-16(7)(v)-5 PROD Cust'!P349+'FR-16(7)(v)-7 TRANS Demand'!P349+'FR-16(7)(v)-8 TRANS Energy'!P349+'FR-16(7)(v)-9 TRANS Cust'!P349+'FR-16(7)(v)-11 DIST Demand'!P349+'FR-16(7)(v)-12 DIST Energy'!P349+'FR-16(7)(v)-13 DIST Cust'!P349","v":0},{"$f":"'FR-16(7)(v)-3 PROD Demand'!Q349+'FR-16(7)(v)-4 PROD Energy'!Q349+'FR-16(7)(v)-5 PROD Cust'!Q349+'FR-16(7)(v)-7 TRANS Demand'!Q349+'FR-16(7)(v)-8 TRANS Energy'!Q349+'FR-16(7)(v)-9 TRANS Cust'!Q349+'FR-16(7)(v)-11 DIST Demand'!Q349+'FR-16(7)(v)-12 DIST Energy'!Q349+'FR-16(7)(v)-13 DIST Cust'!Q349","v":0},0,0]
[15,null,{"$f":"'FR-16(7)(v)-1 Functional'!C350","v":"INCENTIVE PLAN"},{"$f":"'FR-16(7)(v)-1 Functional'!D350","v":"A315"},null,{"$f":"'FR-16(7)(v)-1 Functional'!F350","v":0},{"$f":"'FR-16(7)(v)-3 PROD Demand'!G350+'FR-16(7)(v)-4 PROD Energy'!G350+'FR-16(7)(v)-5 PROD Cust'!G350+'FR-16(7)(v)-7 TRANS Demand'!G350+'FR-16(7)(v)-8 TRANS Energy'!G350+'FR-16(7)(v)-9 TRANS Cust'!G350+'FR-16(7)(v)-11 DIST Demand'!G350+'FR-16(7)(v)-12 DIST Energy'!G350+'FR-16(7)(v)-13 DIST Cust'!G350","v":0},{"$f":"'FR-16(7)(v)-3 PROD Demand'!H350+'FR-16(7)(v)-4 PROD Energy'!H350+'FR-16(7)(v)-5 PROD Cust'!H350+'FR-16(7)(v)-7 TRANS Demand'!H350+'FR-16(7)(v)-8 TRANS Energy'!H350+'FR-16(7)(v)-9 TRANS Cust'!H350+'FR-16(7)(v)-11 DIST Demand'!H350+'FR-16(7)(v)-12 DIST Energy'!H350+'FR-16(7)(v)-13 DIST Cust'!H350","v":0},{"$f":"'FR-16(7)(v)-3 PROD Demand'!I350+'FR-16(7)(v)-4 PROD Energy'!I350+'FR-16(7)(v)-5 PROD Cust'!I350+'FR-16(7)(v)-7 TRANS Demand'!I350+'FR-16(7)(v)-8 TRANS Energy'!I350+'FR-16(7)(v)-9 TRANS Cust'!I350+'FR-16(7)(v)-11 DIST Demand'!I350+'FR-16(7)(v)-12 DIST Energy'!I350+'FR-16(7)(v)-13 DIST Cust'!I350","v":0},{"$f":"'FR-16(7)(v)-3 PROD Demand'!J350+'FR-16(7)(v)-4 PROD Energy'!J350+'FR-16(7)(v)-5 PROD Cust'!J350+'FR-16(7)(v)-7 TRANS Demand'!J350+'FR-16(7)(v)-8 TRANS Energy'!J350+'FR-16(7)(v)-9 TRANS Cust'!J350+'FR-16(7)(v)-11 DIST Demand'!J350+'FR-16(7)(v)-12 DIST Energy'!J350+'FR-16(7)(v)-13 DIST Cust'!J350","v":0},{"$f":"'FR-16(7)(v)-3 PROD Demand'!K350+'FR-16(7)(v)-4 PROD Energy'!K350+'FR-16(7)(v)-5 PROD Cust'!K350+'FR-16(7)(v)-7 TRANS Demand'!K350+'FR-16(7)(v)-8 TRANS Energy'!K350+'FR-16(7)(v)-9 TRANS Cust'!K350+'FR-16(7)(v)-11 DIST Demand'!K350+'FR-16(7)(v)-12 DIST Energy'!K350+'FR-16(7)(v)-13 DIST Cust'!K350","v":0},{"$f":"'FR-16(7)(v)-3 PROD Demand'!L350+'FR-16(7)(v)-4 PROD Energy'!L350+'FR-16(7)(v)-5 PROD Cust'!L350+'FR-16(7)(v)-7 TRANS Demand'!L350+'FR-16(7)(v)-8 TRANS Energy'!L350+'FR-16(7)(v)-9 TRANS Cust'!L350+'FR-16(7)(v)-11 DIST Demand'!L350+'FR-16(7)(v)-12 DIST Energy'!L350+'FR-16(7)(v)-13 DIST Cust'!L350","v":0},{"$f":"'FR-16(7)(v)-3 PROD Demand'!M350+'FR-16(7)(v)-4 PROD Energy'!M350+'FR-16(7)(v)-5 PROD Cust'!M350+'FR-16(7)(v)-7 TRANS Demand'!M350+'FR-16(7)(v)-8 TRANS Energy'!M350+'FR-16(7)(v)-9 TRANS Cust'!M350+'FR-16(7)(v)-11 DIST Demand'!M350+'FR-16(7)(v)-12 DIST Energy'!M350+'FR-16(7)(v)-13 DIST Cust'!M350","v":0},{"$f":"'FR-16(7)(v)-3 PROD Demand'!N350+'FR-16(7)(v)-4 PROD Energy'!N350+'FR-16(7)(v)-5 PROD Cust'!N350+'FR-16(7)(v)-7 TRANS Demand'!N350+'FR-16(7)(v)-8 TRANS Energy'!N350+'FR-16(7)(v)-9 TRANS Cust'!N350+'FR-16(7)(v)-11 DIST Demand'!N350+'FR-16(7)(v)-12 DIST Energy'!N350+'FR-16(7)(v)-13 DIST Cust'!N350","v":0},{"$f":"'FR-16(7)(v)-3 PROD Demand'!O350+'FR-16(7)(v)-4 PROD Energy'!O350+'FR-16(7)(v)-5 PROD Cust'!O350+'FR-16(7)(v)-7 TRANS Demand'!O350+'FR-16(7)(v)-8 TRANS Energy'!O350+'FR-16(7)(v)-9 TRANS Cust'!O350+'FR-16(7)(v)-11 DIST Demand'!O350+'FR-16(7)(v)-12 DIST Energy'!O350+'FR-16(7)(v)-13 DIST Cust'!O350","v":0},{"$f":"'FR-16(7)(v)-3 PROD Demand'!P350+'FR-16(7)(v)-4 PROD Energy'!P350+'FR-16(7)(v)-5 PROD Cust'!P350+'FR-16(7)(v)-7 TRANS Demand'!P350+'FR-16(7)(v)-8 TRANS Energy'!P350+'FR-16(7)(v)-9 TRANS Cust'!P350+'FR-16(7)(v)-11 DIST Demand'!P350+'FR-16(7)(v)-12 DIST Energy'!P350+'FR-16(7)(v)-13 DIST Cust'!P350","v":0},{"$f":"'FR-16(7)(v)-3 PROD Demand'!Q350+'FR-16(7)(v)-4 PROD Energy'!Q350+'FR-16(7)(v)-5 PROD Cust'!Q350+'FR-16(7)(v)-7 TRANS Demand'!Q350+'FR-16(7)(v)-8 TRANS Energy'!Q350+'FR-16(7)(v)-9 TRANS Cust'!Q350+'FR-16(7)(v)-11 DIST Demand'!Q350+'FR-16(7)(v)-12 DIST Energy'!Q350+'FR-16(7)(v)-13 DIST Cust'!Q350","v":0},0,0]
[16,null,{"$f":"'FR-16(7)(v)-1 Functional'!C351","v":"FEDERAL DEFERRED TAX RECEIVEABLE"},{"$f":"'FR-16(7)(v)-1 Functional'!D351","v":"A315"},null,{"$f":"'FR-16(7)(v)-1 Functional'!F351","v":0},{"$f":"'FR-16(7)(v)-3 PROD Demand'!G351+'FR-16(7)(v)-4 PROD Energy'!G351+'FR-16(7)(v)-5 PROD Cust'!G351+'FR-16(7)(v)-7 TRANS Demand'!G351+'FR-16(7)(v)-8 TRANS Energy'!G351+'FR-16(7)(v)-9 TRANS Cust'!G351+'FR-16(7)(v)-11 DIST Demand'!G351+'FR-16(7)(v)-12 DIST Energy'!G351+'FR-16(7)(v)-13 DIST Cust'!G351","v":0},{"$f":"'FR-16(7)(v)-3 PROD Demand'!H351+'FR-16(7)(v)-4 PROD Energy'!H351+'FR-16(7)(v)-5 PROD Cust'!H351+'FR-16(7)(v)-7 TRANS Demand'!H351+'FR-16(7)(v)-8 TRANS Energy'!H351+'FR-16(7)(v)-9 TRANS Cust'!H351+'FR-16(7)(v)-11 DIST Demand'!H351+'FR-16(7)(v)-12 DIST Energy'!H351+'FR-16(7)(v)-13 DIST Cust'!H351","v":0},{"$f":"'FR-16(7)(v)-3 PROD Demand'!I351+'FR-16(7)(v)-4 PROD Energy'!I351+'FR-16(7)(v)-5 PROD Cust'!I351+'FR-16(7)(v)-7 TRANS Demand'!I351+'FR-16(7)(v)-8 TRANS Energy'!I351+'FR-16(7)(v)-9 TRANS Cust'!I351+'FR-16(7)(v)-11 DIST Demand'!I351+'FR-16(7)(v)-12 DIST Energy'!I351+'FR-16(7)(v)-13 DIST Cust'!I351","v":0},{"$f":"'FR-16(7)(v)-3 PROD Demand'!J351+'FR-16(7)(v)-4 PROD Energy'!J351+'FR-16(7)(v)-5 PROD Cust'!J351+'FR-16(7)(v)-7 TRANS Demand'!J351+'FR-16(7)(v)-8 TRANS Energy'!J351+'FR-16(7)(v)-9 TRANS Cust'!J351+'FR-16(7)(v)-11 DIST Demand'!J351+'FR-16(7)(v)-12 DIST Energy'!J351+'FR-16(7)(v)-13 DIST Cust'!J351","v":0},{"$f":"'FR-16(7)(v)-3 PROD Demand'!K351+'FR-16(7)(v)-4 PROD Energy'!K351+'FR-16(7)(v)-5 PROD Cust'!K351+'FR-16(7)(v)-7 TRANS Demand'!K351+'FR-16(7)(v)-8 TRANS Energy'!K351+'FR-16(7)(v)-9 TRANS Cust'!K351+'FR-16(7)(v)-11 DIST Demand'!K351+'FR-16(7)(v)-12 DIST Energy'!K351+'FR-16(7)(v)-13 DIST Cust'!K351","v":0},{"$f":"'FR-16(7)(v)-3 PROD Demand'!L351+'FR-16(7)(v)-4 PROD Energy'!L351+'FR-16(7)(v)-5 PROD Cust'!L351+'FR-16(7)(v)-7 TRANS Demand'!L351+'FR-16(7)(v)-8 TRANS Energy'!L351+'FR-16(7)(v)-9 TRANS Cust'!L351+'FR-16(7)(v)-11 DIST Demand'!L351+'FR-16(7)(v)-12 DIST Energy'!L351+'FR-16(7)(v)-13 DIST Cust'!L351","v":0},{"$f":"'FR-16(7)(v)-3 PROD Demand'!M351+'FR-16(7)(v)-4 PROD Energy'!M351+'FR-16(7)(v)-5 PROD Cust'!M351+'FR-16(7)(v)-7 TRANS Demand'!M351+'FR-16(7)(v)-8 TRANS Energy'!M351+'FR-16(7)(v)-9 TRANS Cust'!M351+'FR-16(7)(v)-11 DIST Demand'!M351+'FR-16(7)(v)-12 DIST Energy'!M351+'FR-16(7)(v)-13 DIST Cust'!M351","v":0},{"$f":"'FR-16(7)(v)-3 PROD Demand'!N351+'FR-16(7)(v)-4 PROD Energy'!N351+'FR-16(7)(v)-5 PROD Cust'!N351+'FR-16(7)(v)-7 TRANS Demand'!N351+'FR-16(7)(v)-8 TRANS Energy'!N351+'FR-16(7)(v)-9 TRANS Cust'!N351+'FR-16(7)(v)-11 DIST Demand'!N351+'FR-16(7)(v)-12 DIST Energy'!N351+'FR-16(7)(v)-13 DIST Cust'!N351","v":0},{"$f":"'FR-16(7)(v)-3 PROD Demand'!O351+'FR-16(7)(v)-4 PROD Energy'!O351+'FR-16(7)(v)-5 PROD Cust'!O351+'FR-16(7)(v)-7 TRANS Demand'!O351+'FR-16(7)(v)-8 TRANS Energy'!O351+'FR-16(7)(v)-9 TRANS Cust'!O351+'FR-16(7)(v)-11 DIST Demand'!O351+'FR-16(7)(v)-12 DIST Energy'!O351+'FR-16(7)(v)-13 DIST Cust'!O351","v":0},{"$f":"'FR-16(7)(v)-3 PROD Demand'!P351+'FR-16(7)(v)-4 PROD Energy'!P351+'FR-16(7)(v)-5 PROD Cust'!P351+'FR-16(7)(v)-7 TRANS Demand'!P351+'FR-16(7)(v)-8 TRANS Energy'!P351+'FR-16(7)(v)-9 TRANS Cust'!P351+'FR-16(7)(v)-11 DIST Demand'!P351+'FR-16(7)(v)-12 DIST Energy'!P351+'FR-16(7)(v)-13 DIST Cust'!P351","v":0},{"$f":"'FR-16(7)(v)-3 PROD Demand'!Q351+'FR-16(7)(v)-4 PROD Energy'!Q351+'FR-16(7)(v)-5 PROD Cust'!Q351+'FR-16(7)(v)-7 TRANS Demand'!Q351+'FR-16(7)(v)-8 TRANS Energy'!Q351+'FR-16(7)(v)-9 TRANS Cust'!Q351+'FR-16(7)(v)-11 DIST Demand'!Q351+'FR-16(7)(v)-12 DIST Energy'!Q351+'FR-16(7)(v)-13 DIST Cust'!Q351","v":0},0,0]
[17,null,{"$f":"'FR-16(7)(v)-1 Functional'!C352","v":"MISCELLANEOUS"},{"$f":"'FR-16(7)(v)-1 Functional'!D352","v":"A315"},null,{"$f":"'FR-16(7)(v)-1 Functional'!F352","v":9119839},{"$f":"'FR-16(7)(v)-3 PROD Demand'!G352+'FR-16(7)(v)-4 PROD Energy'!G352+'FR-16(7)(v)-5 PROD Cust'!G352+'FR-16(7)(v)-7 TRANS Demand'!G352+'FR-16(7)(v)-8 TRANS Energy'!G352+'FR-16(7)(v)-9 TRANS Cust'!G352+'FR-16(7)(v)-11 DIST Demand'!G352+'FR-16(7)(v)-12 DIST Energy'!G352+'FR-16(7)(v)-13 DIST Cust'!G352","v":5962068},{"$f":"'FR-16(7)(v)-3 PROD Demand'!H352+'FR-16(7)(v)-4 PROD Energy'!H352+'FR-16(7)(v)-5 PROD Cust'!H352+'FR-16(7)(v)-7 TRANS Demand'!H352+'FR-16(7)(v)-8 TRANS Energy'!H352+'FR-16(7)(v)-9 TRANS Cust'!H352+'FR-16(7)(v)-11 DIST Demand'!H352+'FR-16(7)(v)-12 DIST Energy'!H352+'FR-16(7)(v)-13 DIST Cust'!H352","v":1544989},{"$f":"'FR-16(7)(v)-3 PROD Demand'!I352+'FR-16(7)(v)-4 PROD Energy'!I352+'FR-16(7)(v)-5 PROD Cust'!I352+'FR-16(7)(v)-7 TRANS Demand'!I352+'FR-16(7)(v)-8 TRANS Energy'!I352+'FR-16(7)(v)-9 TRANS Cust'!I352+'FR-16(7)(v)-11 DIST Demand'!I352+'FR-16(7)(v)-12 DIST Energy'!I352+'FR-16(7)(v)-13 DIST Cust'!I352","v":8217},{"$f":"'FR-16(7)(v)-3 PROD Demand'!J352+'FR-16(7)(v)-4 PROD Energy'!J352+'FR-16(7)(v)-5 PROD Cust'!J352+'FR-16(7)(v)-7 TRANS Demand'!J352+'FR-16(7)(v)-8 TRANS Energy'!J352+'FR-16(7)(v)-9 TRANS Cust'!J352+'FR-16(7)(v)-11 DIST Demand'!J352+'FR-16(7)(v)-12 DIST Energy'!J352+'FR-16(7)(v)-13 DIST Cust'!J352","v":26354},{"$f":"'FR-16(7)(v)-3 PROD Demand'!K352+'FR-16(7)(v)-4 PROD Energy'!K352+'FR-16(7)(v)-5 PROD Cust'!K352+'FR-16(7)(v)-7 TRANS Demand'!K352+'FR-16(7)(v)-8 TRANS Energy'!K352+'FR-16(7)(v)-9 TRANS Cust'!K352+'FR-16(7)(v)-11 DIST Demand'!K352+'FR-16(7)(v)-12 DIST Energy'!K352+'FR-16(7)(v)-13 DIST Cust'!K352","v":594},{"$f":"'FR-16(7)(v)-3 PROD Demand'!L352+'FR-16(7)(v)-4 PROD Energy'!L352+'FR-16(7)(v)-5 PROD Cust'!L352+'FR-16(7)(v)-7 TRANS Demand'!L352+'FR-16(7)(v)-8 TRANS Energy'!L352+'FR-16(7)(v)-9 TRANS Cust'!L352+'FR-16(7)(v)-11 DIST Demand'!L352+'FR-16(7)(v)-12 DIST Energy'!L352+'FR-16(7)(v)-13 DIST Cust'!L352","v":755636},{"$f":"'FR-16(7)(v)-3 PROD Demand'!M352+'FR-16(7)(v)-4 PROD Energy'!M352+'FR-16(7)(v)-5 PROD Cust'!M352+'FR-16(7)(v)-7 TRANS Demand'!M352+'FR-16(7)(v)-8 TRANS Energy'!M352+'FR-16(7)(v)-9 TRANS Cust'!M352+'FR-16(7)(v)-11 DIST Demand'!M352+'FR-16(7)(v)-12 DIST Energy'!M352+'FR-16(7)(v)-13 DIST Cust'!M352","v":509807},{"$f":"'FR-16(7)(v)-3 PROD Demand'!N352+'FR-16(7)(v)-4 PROD Energy'!N352+'FR-16(7)(v)-5 PROD Cust'!N352+'FR-16(7)(v)-7 TRANS Demand'!N352+'FR-16(7)(v)-8 TRANS Energy'!N352+'FR-16(7)(v)-9 TRANS Cust'!N352+'FR-16(7)(v)-11 DIST Demand'!N352+'FR-16(7)(v)-12 DIST Energy'!N352+'FR-16(7)(v)-13 DIST Cust'!N352","v":25088},{"$f":"'FR-16(7)(v)-3 PROD Demand'!O352+'FR-16(7)(v)-4 PROD Energy'!O352+'FR-16(7)(v)-5 PROD Cust'!O352+'FR-16(7)(v)-7 TRANS Demand'!O352+'FR-16(7)(v)-8 TRANS Energy'!O352+'FR-16(7)(v)-9 TRANS Cust'!O352+'FR-16(7)(v)-11 DIST Demand'!O352+'FR-16(7)(v)-12 DIST Energy'!O352+'FR-16(7)(v)-13 DIST Cust'!O352","v":210090},{"$f":"'FR-16(7)(v)-3 PROD Demand'!P352+'FR-16(7)(v)-4 PROD Energy'!P352+'FR-16(7)(v)-5 PROD Cust'!P352+'FR-16(7)(v)-7 TRANS Demand'!P352+'FR-16(7)(v)-8 TRANS Energy'!P352+'FR-16(7)(v)-9 TRANS Cust'!P352+'FR-16(7)(v)-11 DIST Demand'!P352+'FR-16(7)(v)-12 DIST Energy'!P352+'FR-16(7)(v)-13 DIST Cust'!P352","v":76172},{"$f":"'FR-16(7)(v)-3 PROD Demand'!Q352+'FR-16(7)(v)-4 PROD Energy'!Q352+'FR-16(7)(v)-5 PROD Cust'!Q352+'FR-16(7)(v)-7 TRANS Demand'!Q352+'FR-16(7)(v)-8 TRANS Energy'!Q352+'FR-16(7)(v)-9 TRANS Cust'!Q352+'FR-16(7)(v)-11 DIST Demand'!Q352+'FR-16(7)(v)-12 DIST Energy'!Q352+'FR-16(7)(v)-13 DIST Cust'!Q352","v":824},9119839,0]
[18,null,{"$f":"'FR-16(7)(v)-1 Functional'!C353","v":"DEFERRED TAX"},{"$f":"'FR-16(7)(v)-1 Functional'!D353","v":"A315"},null,{"$f":"'FR-16(7)(v)-1 Functional'!F353","v":4155837},{"$f":"'FR-16(7)(v)-3 PROD Demand'!G353+'FR-16(7)(v)-4 PROD Energy'!G353+'FR-16(7)(v)-5 PROD Cust'!G353+'FR-16(7)(v)-7 TRANS Demand'!G353+'FR-16(7)(v)-8 TRANS Energy'!G353+'FR-16(7)(v)-9 TRANS Cust'!G353+'FR-16(7)(v)-11 DIST Demand'!G353+'FR-16(7)(v)-12 DIST Energy'!G353+'FR-16(7)(v)-13 DIST Cust'!G353","v":2716864},{"$f":"'FR-16(7)(v)-3 PROD Demand'!H353+'FR-16(7)(v)-4 PROD Energy'!H353+'FR-16(7)(v)-5 PROD Cust'!H353+'FR-16(7)(v)-7 TRANS Demand'!H353+'FR-16(7)(v)-8 TRANS Energy'!H353+'FR-16(7)(v)-9 TRANS Cust'!H353+'FR-16(7)(v)-11 DIST Demand'!H353+'FR-16(7)(v)-12 DIST Energy'!H353+'FR-16(7)(v)-13 DIST Cust'!H353","v":704040},{"$f":"'FR-16(7)(v)-3 PROD Demand'!I353+'FR-16(7)(v)-4 PROD Energy'!I353+'FR-16(7)(v)-5 PROD Cust'!I353+'FR-16(7)(v)-7 TRANS Demand'!I353+'FR-16(7)(v)-8 TRANS Energy'!I353+'FR-16(7)(v)-9 TRANS Cust'!I353+'FR-16(7)(v)-11 DIST Demand'!I353+'FR-16(7)(v)-12 DIST Energy'!I353+'FR-16(7)(v)-13 DIST Cust'!I353","v":3744},{"$f":"'FR-16(7)(v)-3 PROD Demand'!J353+'FR-16(7)(v)-4 PROD Energy'!J353+'FR-16(7)(v)-5 PROD Cust'!J353+'FR-16(7)(v)-7 TRANS Demand'!J353+'FR-16(7)(v)-8 TRANS Energy'!J353+'FR-16(7)(v)-9 TRANS Cust'!J353+'FR-16(7)(v)-11 DIST Demand'!J353+'FR-16(7)(v)-12 DIST Energy'!J353+'FR-16(7)(v)-13 DIST Cust'!J353","v":12010},{"$f":"'FR-16(7)(v)-3 PROD Demand'!K353+'FR-16(7)(v)-4 PROD Energy'!K353+'FR-16(7)(v)-5 PROD Cust'!K353+'FR-16(7)(v)-7 TRANS Demand'!K353+'FR-16(7)(v)-8 TRANS Energy'!K353+'FR-16(7)(v)-9 TRANS Cust'!K353+'FR-16(7)(v)-11 DIST Demand'!K353+'FR-16(7)(v)-12 DIST Energy'!K353+'FR-16(7)(v)-13 DIST Cust'!K353","v":271},{"$f":"'FR-16(7)(v)-3 PROD Demand'!L353+'FR-16(7)(v)-4 PROD Energy'!L353+'FR-16(7)(v)-5 PROD Cust'!L353+'FR-16(7)(v)-7 TRANS Demand'!L353+'FR-16(7)(v)-8 TRANS Energy'!L353+'FR-16(7)(v)-9 TRANS Cust'!L353+'FR-16(7)(v)-11 DIST Demand'!L353+'FR-16(7)(v)-12 DIST Energy'!L353+'FR-16(7)(v)-13 DIST Cust'!L353","v":344336},{"$f":"'FR-16(7)(v)-3 PROD Demand'!M353+'FR-16(7)(v)-4 PROD Energy'!M353+'FR-16(7)(v)-5 PROD Cust'!M353+'FR-16(7)(v)-7 TRANS Demand'!M353+'FR-16(7)(v)-8 TRANS Energy'!M353+'FR-16(7)(v)-9 TRANS Cust'!M353+'FR-16(7)(v)-11 DIST Demand'!M353+'FR-16(7)(v)-12 DIST Energy'!M353+'FR-16(7)(v)-13 DIST Cust'!M353","v":232315},{"$f":"'FR-16(7)(v)-3 PROD Demand'!N353+'FR-16(7)(v)-4 PROD Energy'!N353+'FR-16(7)(v)-5 PROD Cust'!N353+'FR-16(7)(v)-7 TRANS Demand'!N353+'FR-16(7)(v)-8 TRANS Energy'!N353+'FR-16(7)(v)-9 TRANS Cust'!N353+'FR-16(7)(v)-11 DIST Demand'!N353+'FR-16(7)(v)-12 DIST Energy'!N353+'FR-16(7)(v)-13 DIST Cust'!N353","v":11433},{"$f":"'FR-16(7)(v)-3 PROD Demand'!O353+'FR-16(7)(v)-4 PROD Energy'!O353+'FR-16(7)(v)-5 PROD Cust'!O353+'FR-16(7)(v)-7 TRANS Demand'!O353+'FR-16(7)(v)-8 TRANS Energy'!O353+'FR-16(7)(v)-9 TRANS Cust'!O353+'FR-16(7)(v)-11 DIST Demand'!O353+'FR-16(7)(v)-12 DIST Energy'!O353+'FR-16(7)(v)-13 DIST Cust'!O353","v":95737},{"$f":"'FR-16(7)(v)-3 PROD Demand'!P353+'FR-16(7)(v)-4 PROD Energy'!P353+'FR-16(7)(v)-5 PROD Cust'!P353+'FR-16(7)(v)-7 TRANS Demand'!P353+'FR-16(7)(v)-8 TRANS Energy'!P353+'FR-16(7)(v)-9 TRANS Cust'!P353+'FR-16(7)(v)-11 DIST Demand'!P353+'FR-16(7)(v)-12 DIST Energy'!P353+'FR-16(7)(v)-13 DIST Cust'!P353","v":34712},{"$f":"'FR-16(7)(v)-3 PROD Demand'!Q353+'FR-16(7)(v)-4 PROD Energy'!Q353+'FR-16(7)(v)-5 PROD Cust'!Q353+'FR-16(7)(v)-7 TRANS Demand'!Q353+'FR-16(7)(v)-8 TRANS Energy'!Q353+'FR-16(7)(v)-9 TRANS Cust'!Q353+'FR-16(7)(v)-11 DIST Demand'!Q353+'FR-16(7)(v)-12 DIST Energy'!Q353+'FR-16(7)(v)-13 DIST Cust'!Q353","v":375},4155837,0]
[19,null,{"$f":"'FR-16(7)(v)-1 Functional'!C354","v":"NET OPERATING LOSS"},{"$f":"'FR-16(7)(v)-1 Functional'!D354","v":"NP29"},null,{"$f":"'FR-16(7)(v)-1 Functional'!F354","v":0},{"$f":"'FR-16(7)(v)-3 PROD Demand'!G354+'FR-16(7)(v)-4 PROD Energy'!G354+'FR-16(7)(v)-5 PROD Cust'!G354+'FR-16(7)(v)-7 TRANS Demand'!G354+'FR-16(7)(v)-8 TRANS Energy'!G354+'FR-16(7)(v)-9 TRANS Cust'!G354+'FR-16(7)(v)-11 DIST Demand'!G354+'FR-16(7)(v)-12 DIST Energy'!G354+'FR-16(7)(v)-13 DIST Cust'!G354","v":0},{"$f":"'FR-16(7)(v)-3 PROD Demand'!H354+'FR-16(7)(v)-4 PROD Energy'!H354+'FR-16(7)(v)-5 PROD Cust'!H354+'FR-16(7)(v)-7 TRANS Demand'!H354+'FR-16(7)(v)-8 TRANS Energy'!H354+'FR-16(7)(v)-9 TRANS Cust'!H354+'FR-16(7)(v)-11 DIST Demand'!H354+'FR-16(7)(v)-12 DIST Energy'!H354+'FR-16(7)(v)-13 DIST Cust'!H354","v":0},{"$f":"'FR-16(7)(v)-3 PROD Demand'!I354+'FR-16(7)(v)-4 PROD Energy'!I354+'FR-16(7)(v)-5 PROD Cust'!I354+'FR-16(7)(v)-7 TRANS Demand'!I354+'FR-16(7)(v)-8 TRANS Energy'!I354+'FR-16(7)(v)-9 TRANS Cust'!I354+'FR-16(7)(v)-11 DIST Demand'!I354+'FR-16(7)(v)-12 DIST Energy'!I354+'FR-16(7)(v)-13 DIST Cust'!I354","v":0},{"$f":"'FR-16(7)(v)-3 PROD Demand'!J354+'FR-16(7)(v)-4 PROD Energy'!J354+'FR-16(7)(v)-5 PROD Cust'!J354+'FR-16(7)(v)-7 TRANS Demand'!J354+'FR-16(7)(v)-8 TRANS Energy'!J354+'FR-16(7)(v)-9 TRANS Cust'!J354+'FR-16(7)(v)-11 DIST Demand'!J354+'FR-16(7)(v)-12 DIST Energy'!J354+'FR-16(7)(v)-13 DIST Cust'!J354","v":0},{"$f":"'FR-16(7)(v)-3 PROD Demand'!K354+'FR-16(7)(v)-4 PROD Energy'!K354+'FR-16(7)(v)-5 PROD Cust'!K354+'FR-16(7)(v)-7 TRANS Demand'!K354+'FR-16(7)(v)-8 TRANS Energy'!K354+'FR-16(7)(v)-9 TRANS Cust'!K354+'FR-16(7)(v)-11 DIST Demand'!K354+'FR-16(7)(v)-12 DIST Energy'!K354+'FR-16(7)(v)-13 DIST Cust'!K354","v":0},{"$f":"'FR-16(7)(v)-3 PROD Demand'!L354+'FR-16(7)(v)-4 PROD Energy'!L354+'FR-16(7)(v)-5 PROD Cust'!L354+'FR-16(7)(v)-7 TRANS Demand'!L354+'FR-16(7)(v)-8 TRANS Energy'!L354+'FR-16(7)(v)-9 TRANS Cust'!L354+'FR-16(7)(v)-11 DIST Demand'!L354+'FR-16(7)(v)-12 DIST Energy'!L354+'FR-16(7)(v)-13 DIST Cust'!L354","v":0},{"$f":"'FR-16(7)(v)-3 PROD Demand'!M354+'FR-16(7)(v)-4 PROD Energy'!M354+'FR-16(7)(v)-5 PROD Cust'!M354+'FR-16(7)(v)-7 TRANS Demand'!M354+'FR-16(7)(v)-8 TRANS Energy'!M354+'FR-16(7)(v)-9 TRANS Cust'!M354+'FR-16(7)(v)-11 DIST Demand'!M354+'FR-16(7)(v)-12 DIST Energy'!M354+'FR-16(7)(v)-13 DIST Cust'!M354","v":0},{"$f":"'FR-16(7)(v)-3 PROD Demand'!N354+'FR-16(7)(v)-4 PROD Energy'!N354+'FR-16(7)(v)-5 PROD Cust'!N354+'FR-16(7)(v)-7 TRANS Demand'!N354+'FR-16(7)(v)-8 TRANS Energy'!N354+'FR-16(7)(v)-9 TRANS Cust'!N354+'FR-16(7)(v)-11 DIST Demand'!N354+'FR-16(7)(v)-12 DIST Energy'!N354+'FR-16(7)(v)-13 DIST Cust'!N354","v":0},{"$f":"'FR-16(7)(v)-3 PROD Demand'!O354+'FR-16(7)(v)-4 PROD Energy'!O354+'FR-16(7)(v)-5 PROD Cust'!O354+'FR-16(7)(v)-7 TRANS Demand'!O354+'FR-16(7)(v)-8 TRANS Energy'!O354+'FR-16(7)(v)-9 TRANS Cust'!O354+'FR-16(7)(v)-11 DIST Demand'!O354+'FR-16(7)(v)-12 DIST Energy'!O354+'FR-16(7)(v)-13 DIST Cust'!O354","v":0},{"$f":"'FR-16(7)(v)-3 PROD Demand'!P354+'FR-16(7)(v)-4 PROD Energy'!P354+'FR-16(7)(v)-5 PROD Cust'!P354+'FR-16(7)(v)-7 TRANS Demand'!P354+'FR-16(7)(v)-8 TRANS Energy'!P354+'FR-16(7)(v)-9 TRANS Cust'!P354+'FR-16(7)(v)-11 DIST Demand'!P354+'FR-16(7)(v)-12 DIST Energy'!P354+'FR-16(7)(v)-13 DIST Cust'!P354","v":0},{"$f":"'FR-16(7)(v)-3 PROD Demand'!Q354+'FR-16(7)(v)-4 PROD Energy'!Q354+'FR-16(7)(v)-5 PROD Cust'!Q354+'FR-16(7)(v)-7 TRANS Demand'!Q354+'FR-16(7)(v)-8 TRANS Energy'!Q354+'FR-16(7)(v)-9 TRANS Cust'!Q354+'FR-16(7)(v)-11 DIST Demand'!Q354+'FR-16(7)(v)-12 DIST Energy'!Q354+'FR-16(7)(v)-13 DIST Cust'!Q354","v":0},0,0]
[20,null,{"$f":"'FR-16(7)(v)-1 Functional'!C355","v":"401K INCENTIVE PLAN"},{"$f":"'FR-16(7)(v)-1 Functional'!D355","v":"A315"},null,{"$f":"'FR-16(7)(v)-1 Functional'!F355","v":0},{"$f":"'FR-16(7)(v)-3 PROD Demand'!G355+'FR-16(7)(v)-4 PROD Energy'!G355+'FR-16(7)(v)-5 PROD Cust'!G355+'FR-16(7)(v)-7 TRANS Demand'!G355+'FR-16(7)(v)-8 TRANS Energy'!G355+'FR-16(7)(v)-9 TRANS Cust'!G355+'FR-16(7)(v)-11 DIST Demand'!G355+'FR-16(7)(v)-12 DIST Energy'!G355+'FR-16(7)(v)-13 DIST Cust'!G355","v":0},{"$f":"'FR-16(7)(v)-3 PROD Demand'!H355+'FR-16(7)(v)-4 PROD Energy'!H355+'FR-16(7)(v)-5 PROD Cust'!H355+'FR-16(7)(v)-7 TRANS Demand'!H355+'FR-16(7)(v)-8 TRANS Energy'!H355+'FR-16(7)(v)-9 TRANS Cust'!H355+'FR-16(7)(v)-11 DIST Demand'!H355+'FR-16(7)(v)-12 DIST Energy'!H355+'FR-16(7)(v)-13 DIST Cust'!H355","v":0},{"$f":"'FR-16(7)(v)-3 PROD Demand'!I355+'FR-16(7)(v)-4 PROD Energy'!I355+'FR-16(7)(v)-5 PROD Cust'!I355+'FR-16(7)(v)-7 TRANS Demand'!I355+'FR-16(7)(v)-8 TRANS Energy'!I355+'FR-16(7)(v)-9 TRANS Cust'!I355+'FR-16(7)(v)-11 DIST Demand'!I355+'FR-16(7)(v)-12 DIST Energy'!I355+'FR-16(7)(v)-13 DIST Cust'!I355","v":0},{"$f":"'FR-16(7)(v)-3 PROD Demand'!J355+'FR-16(7)(v)-4 PROD Energy'!J355+'FR-16(7)(v)-5 PROD Cust'!J355+'FR-16(7)(v)-7 TRANS Demand'!J355+'FR-16(7)(v)-8 TRANS Energy'!J355+'FR-16(7)(v)-9 TRANS Cust'!J355+'FR-16(7)(v)-11 DIST Demand'!J355+'FR-16(7)(v)-12 DIST Energy'!J355+'FR-16(7)(v)-13 DIST Cust'!J355","v":0},{"$f":"'FR-16(7)(v)-3 PROD Demand'!K355+'FR-16(7)(v)-4 PROD Energy'!K355+'FR-16(7)(v)-5 PROD Cust'!K355+'FR-16(7)(v)-7 TRANS Demand'!K355+'FR-16(7)(v)-8 TRANS Energy'!K355+'FR-16(7)(v)-9 TRANS Cust'!K355+'FR-16(7)(v)-11 DIST Demand'!K355+'FR-16(7)(v)-12 DIST Energy'!K355+'FR-16(7)(v)-13 DIST Cust'!K355","v":0},{"$f":"'FR-16(7)(v)-3 PROD Demand'!L355+'FR-16(7)(v)-4 PROD Energy'!L355+'FR-16(7)(v)-5 PROD Cust'!L355+'FR-16(7)(v)-7 TRANS Demand'!L355+'FR-16(7)(v)-8 TRANS Energy'!L355+'FR-16(7)(v)-9 TRANS Cust'!L355+'FR-16(7)(v)-11 DIST Demand'!L355+'FR-16(7)(v)-12 DIST Energy'!L355+'FR-16(7)(v)-13 DIST Cust'!L355","v":0},{"$f":"'FR-16(7)(v)-3 PROD Demand'!M355+'FR-16(7)(v)-4 PROD Energy'!M355+'FR-16(7)(v)-5 PROD Cust'!M355+'FR-16(7)(v)-7 TRANS Demand'!M355+'FR-16(7)(v)-8 TRANS Energy'!M355+'FR-16(7)(v)-9 TRANS Cust'!M355+'FR-16(7)(v)-11 DIST Demand'!M355+'FR-16(7)(v)-12 DIST Energy'!M355+'FR-16(7)(v)-13 DIST Cust'!M355","v":0},{"$f":"'FR-16(7)(v)-3 PROD Demand'!N355+'FR-16(7)(v)-4 PROD Energy'!N355+'FR-16(7)(v)-5 PROD Cust'!N355+'FR-16(7)(v)-7 TRANS Demand'!N355+'FR-16(7)(v)-8 TRANS Energy'!N355+'FR-16(7)(v)-9 TRANS Cust'!N355+'FR-16(7)(v)-11 DIST Demand'!N355+'FR-16(7)(v)-12 DIST Energy'!N355+'FR-16(7)(v)-13 DIST Cust'!N355","v":0},{"$f":"'FR-16(7)(v)-3 PROD Demand'!O355+'FR-16(7)(v)-4 PROD Energy'!O355+'FR-16(7)(v)-5 PROD Cust'!O355+'FR-16(7)(v)-7 TRANS Demand'!O355+'FR-16(7)(v)-8 TRANS Energy'!O355+'FR-16(7)(v)-9 TRANS Cust'!O355+'FR-16(7)(v)-11 DIST Demand'!O355+'FR-16(7)(v)-12 DIST Energy'!O355+'FR-16(7)(v)-13 DIST Cust'!O355","v":0},{"$f":"'FR-16(7)(v)-3 PROD Demand'!P355+'FR-16(7)(v)-4 PROD Energy'!P355+'FR-16(7)(v)-5 PROD Cust'!P355+'FR-16(7)(v)-7 TRANS Demand'!P355+'FR-16(7)(v)-8 TRANS Energy'!P355+'FR-16(7)(v)-9 TRANS Cust'!P355+'FR-16(7)(v)-11 DIST Demand'!P355+'FR-16(7)(v)-12 DIST Energy'!P355+'FR-16(7)(v)-13 DIST Cust'!P355","v":0},{"$f":"'FR-16(7)(v)-3 PROD Demand'!Q355+'FR-16(7)(v)-4 PROD Energy'!Q355+'FR-16(7)(v)-5 PROD Cust'!Q355+'FR-16(7)(v)-7 TRANS Demand'!Q355+'FR-16(7)(v)-8 TRANS Energy'!Q355+'FR-16(7)(v)-9 TRANS Cust'!Q355+'FR-16(7)(v)-11 DIST Demand'!Q355+'FR-16(7)(v)-12 DIST Energy'!Q355+'FR-16(7)(v)-13 DIST Cust'!Q355","v":0},0,0]
[21,null,{"$f":"'FR-16(7)(v)-1 Functional'!C356","v":"ENVIRONMENTAL RESERVE"},{"$f":"'FR-16(7)(v)-1 Functional'!D356","v":"NP29"},null,{"$f":"'FR-16(7)(v)-1 Functional'!F356","v":0},{"$f":"'FR-16(7)(v)-3 PROD Demand'!G356+'FR-16(7)(v)-4 PROD Energy'!G356+'FR-16(7)(v)-5 PROD Cust'!G356+'FR-16(7)(v)-7 TRANS Demand'!G356+'FR-16(7)(v)-8 TRANS Energy'!G356+'FR-16(7)(v)-9 TRANS Cust'!G356+'FR-16(7)(v)-11 DIST Demand'!G356+'FR-16(7)(v)-12 DIST Energy'!G356+'FR-16(7)(v)-13 DIST Cust'!G356","v":0},{"$f":"'FR-16(7)(v)-3 PROD Demand'!H356+'FR-16(7)(v)-4 PROD Energy'!H356+'FR-16(7)(v)-5 PROD Cust'!H356+'FR-16(7)(v)-7 TRANS Demand'!H356+'FR-16(7)(v)-8 TRANS Energy'!H356+'FR-16(7)(v)-9 TRANS Cust'!H356+'FR-16(7)(v)-11 DIST Demand'!H356+'FR-16(7)(v)-12 DIST Energy'!H356+'FR-16(7)(v)-13 DIST Cust'!H356","v":0},{"$f":"'FR-16(7)(v)-3 PROD Demand'!I356+'FR-16(7)(v)-4 PROD Energy'!I356+'FR-16(7)(v)-5 PROD Cust'!I356+'FR-16(7)(v)-7 TRANS Demand'!I356+'FR-16(7)(v)-8 TRANS Energy'!I356+'FR-16(7)(v)-9 TRANS Cust'!I356+'FR-16(7)(v)-11 DIST Demand'!I356+'FR-16(7)(v)-12 DIST Energy'!I356+'FR-16(7)(v)-13 DIST Cust'!I356","v":0},{"$f":"'FR-16(7)(v)-3 PROD Demand'!J356+'FR-16(7)(v)-4 PROD Energy'!J356+'FR-16(7)(v)-5 PROD Cust'!J356+'FR-16(7)(v)-7 TRANS Demand'!J356+'FR-16(7)(v)-8 TRANS Energy'!J356+'FR-16(7)(v)-9 TRANS Cust'!J356+'FR-16(7)(v)-11 DIST Demand'!J356+'FR-16(7)(v)-12 DIST Energy'!J356+'FR-16(7)(v)-13 DIST Cust'!J356","v":0},{"$f":"'FR-16(7)(v)-3 PROD Demand'!K356+'FR-16(7)(v)-4 PROD Energy'!K356+'FR-16(7)(v)-5 PROD Cust'!K356+'FR-16(7)(v)-7 TRANS Demand'!K356+'FR-16(7)(v)-8 TRANS Energy'!K356+'FR-16(7)(v)-9 TRANS Cust'!K356+'FR-16(7)(v)-11 DIST Demand'!K356+'FR-16(7)(v)-12 DIST Energy'!K356+'FR-16(7)(v)-13 DIST Cust'!K356","v":0},{"$f":"'FR-16(7)(v)-3 PROD Demand'!L356+'FR-16(7)(v)-4 PROD Energy'!L356+'FR-16(7)(v)-5 PROD Cust'!L356+'FR-16(7)(v)-7 TRANS Demand'!L356+'FR-16(7)(v)-8 TRANS Energy'!L356+'FR-16(7)(v)-9 TRANS Cust'!L356+'FR-16(7)(v)-11 DIST Demand'!L356+'FR-16(7)(v)-12 DIST Energy'!L356+'FR-16(7)(v)-13 DIST Cust'!L356","v":0},{"$f":"'FR-16(7)(v)-3 PROD Demand'!M356+'FR-16(7)(v)-4 PROD Energy'!M356+'FR-16(7)(v)-5 PROD Cust'!M356+'FR-16(7)(v)-7 TRANS Demand'!M356+'FR-16(7)(v)-8 TRANS Energy'!M356+'FR-16(7)(v)-9 TRANS Cust'!M356+'FR-16(7)(v)-11 DIST Demand'!M356+'FR-16(7)(v)-12 DIST Energy'!M356+'FR-16(7)(v)-13 DIST Cust'!M356","v":0},{"$f":"'FR-16(7)(v)-3 PROD Demand'!N356+'FR-16(7)(v)-4 PROD Energy'!N356+'FR-16(7)(v)-5 PROD Cust'!N356+'FR-16(7)(v)-7 TRANS Demand'!N356+'FR-16(7)(v)-8 TRANS Energy'!N356+'FR-16(7)(v)-9 TRANS Cust'!N356+'FR-16(7)(v)-11 DIST Demand'!N356+'FR-16(7)(v)-12 DIST Energy'!N356+'FR-16(7)(v)-13 DIST Cust'!N356","v":0},{"$f":"'FR-16(7)(v)-3 PROD Demand'!O356+'FR-16(7)(v)-4 PROD Energy'!O356+'FR-16(7)(v)-5 PROD Cust'!O356+'FR-16(7)(v)-7 TRANS Demand'!O356+'FR-16(7)(v)-8 TRANS Energy'!O356+'FR-16(7)(v)-9 TRANS Cust'!O356+'FR-16(7)(v)-11 DIST Demand'!O356+'FR-16(7)(v)-12 DIST Energy'!O356+'FR-16(7)(v)-13 DIST Cust'!O356","v":0},{"$f":"'FR-16(7)(v)-3 PROD Demand'!P356+'FR-16(7)(v)-4 PROD Energy'!P356+'FR-16(7)(v)-5 PROD Cust'!P356+'FR-16(7)(v)-7 TRANS Demand'!P356+'FR-16(7)(v)-8 TRANS Energy'!P356+'FR-16(7)(v)-9 TRANS Cust'!P356+'FR-16(7)(v)-11 DIST Demand'!P356+'FR-16(7)(v)-12 DIST Energy'!P356+'FR-16(7)(v)-13 DIST Cust'!P356","v":0},{"$f":"'FR-16(7)(v)-3 PROD Demand'!Q356+'FR-16(7)(v)-4 PROD Energy'!Q356+'FR-16(7)(v)-5 PROD Cust'!Q356+'FR-16(7)(v)-7 TRANS Demand'!Q356+'FR-16(7)(v)-8 TRANS Energy'!Q356+'FR-16(7)(v)-9 TRANS Cust'!Q356+'FR-16(7)(v)-11 DIST Demand'!Q356+'FR-16(7)(v)-12 DIST Energy'!Q356+'FR-16(7)(v)-13 DIST Cust'!Q356","v":0},0,0]
[22,null,{"$f":"'FR-16(7)(v)-1 Functional'!C357","v":"VACATION PAY ACCRUALS"},{"$f":"'FR-16(7)(v)-1 Functional'!D357","v":"A315"},null,{"$f":"'FR-16(7)(v)-1 Functional'!F357","v":450495},{"$f":"'FR-16(7)(v)-3 PROD Demand'!G357+'FR-16(7)(v)-4 PROD Energy'!G357+'FR-16(7)(v)-5 PROD Cust'!G357+'FR-16(7)(v)-7 TRANS Demand'!G357+'FR-16(7)(v)-8 TRANS Energy'!G357+'FR-16(7)(v)-9 TRANS Cust'!G357+'FR-16(7)(v)-11 DIST Demand'!G357+'FR-16(7)(v)-12 DIST Energy'!G357+'FR-16(7)(v)-13 DIST Cust'!G357","v":294509},{"$f":"'FR-16(7)(v)-3 PROD Demand'!H357+'FR-16(7)(v)-4 PROD Energy'!H357+'FR-16(7)(v)-5 PROD Cust'!H357+'FR-16(7)(v)-7 TRANS Demand'!H357+'FR-16(7)(v)-8 TRANS Energy'!H357+'FR-16(7)(v)-9 TRANS Cust'!H357+'FR-16(7)(v)-11 DIST Demand'!H357+'FR-16(7)(v)-12 DIST Energy'!H357+'FR-16(7)(v)-13 DIST Cust'!H357","v":76319},{"$f":"'FR-16(7)(v)-3 PROD Demand'!I357+'FR-16(7)(v)-4 PROD Energy'!I357+'FR-16(7)(v)-5 PROD Cust'!I357+'FR-16(7)(v)-7 TRANS Demand'!I357+'FR-16(7)(v)-8 TRANS Energy'!I357+'FR-16(7)(v)-9 TRANS Cust'!I357+'FR-16(7)(v)-11 DIST Demand'!I357+'FR-16(7)(v)-12 DIST Energy'!I357+'FR-16(7)(v)-13 DIST Cust'!I357","v":405},{"$f":"'FR-16(7)(v)-3 PROD Demand'!J357+'FR-16(7)(v)-4 PROD Energy'!J357+'FR-16(7)(v)-5 PROD Cust'!J357+'FR-16(7)(v)-7 TRANS Demand'!J357+'FR-16(7)(v)-8 TRANS Energy'!J357+'FR-16(7)(v)-9 TRANS Cust'!J357+'FR-16(7)(v)-11 DIST Demand'!J357+'FR-16(7)(v)-12 DIST Energy'!J357+'FR-16(7)(v)-13 DIST Cust'!J357","v":1303},{"$f":"'FR-16(7)(v)-3 PROD Demand'!K357+'FR-16(7)(v)-4 PROD Energy'!K357+'FR-16(7)(v)-5 PROD Cust'!K357+'FR-16(7)(v)-7 TRANS Demand'!K357+'FR-16(7)(v)-8 TRANS Energy'!K357+'FR-16(7)(v)-9 TRANS Cust'!K357+'FR-16(7)(v)-11 DIST Demand'!K357+'FR-16(7)(v)-12 DIST Energy'!K357+'FR-16(7)(v)-13 DIST Cust'!K357","v":29},{"$f":"'FR-16(7)(v)-3 PROD Demand'!L357+'FR-16(7)(v)-4 PROD Energy'!L357+'FR-16(7)(v)-5 PROD Cust'!L357+'FR-16(7)(v)-7 TRANS Demand'!L357+'FR-16(7)(v)-8 TRANS Energy'!L357+'FR-16(7)(v)-9 TRANS Cust'!L357+'FR-16(7)(v)-11 DIST Demand'!L357+'FR-16(7)(v)-12 DIST Energy'!L357+'FR-16(7)(v)-13 DIST Cust'!L357","v":37327},{"$f":"'FR-16(7)(v)-3 PROD Demand'!M357+'FR-16(7)(v)-4 PROD Energy'!M357+'FR-16(7)(v)-5 PROD Cust'!M357+'FR-16(7)(v)-7 TRANS Demand'!M357+'FR-16(7)(v)-8 TRANS Energy'!M357+'FR-16(7)(v)-9 TRANS Cust'!M357+'FR-16(7)(v)-11 DIST Demand'!M357+'FR-16(7)(v)-12 DIST Energy'!M357+'FR-16(7)(v)-13 DIST Cust'!M357","v":25183},{"$f":"'FR-16(7)(v)-3 PROD Demand'!N357+'FR-16(7)(v)-4 PROD Energy'!N357+'FR-16(7)(v)-5 PROD Cust'!N357+'FR-16(7)(v)-7 TRANS Demand'!N357+'FR-16(7)(v)-8 TRANS Energy'!N357+'FR-16(7)(v)-9 TRANS Cust'!N357+'FR-16(7)(v)-11 DIST Demand'!N357+'FR-16(7)(v)-12 DIST Energy'!N357+'FR-16(7)(v)-13 DIST Cust'!N357","v":1240},{"$f":"'FR-16(7)(v)-3 PROD Demand'!O357+'FR-16(7)(v)-4 PROD Energy'!O357+'FR-16(7)(v)-5 PROD Cust'!O357+'FR-16(7)(v)-7 TRANS Demand'!O357+'FR-16(7)(v)-8 TRANS Energy'!O357+'FR-16(7)(v)-9 TRANS Cust'!O357+'FR-16(7)(v)-11 DIST Demand'!O357+'FR-16(7)(v)-12 DIST Energy'!O357+'FR-16(7)(v)-13 DIST Cust'!O357","v":10377},{"$f":"'FR-16(7)(v)-3 PROD Demand'!P357+'FR-16(7)(v)-4 PROD Energy'!P357+'FR-16(7)(v)-5 PROD Cust'!P357+'FR-16(7)(v)-7 TRANS Demand'!P357+'FR-16(7)(v)-8 TRANS Energy'!P357+'FR-16(7)(v)-9 TRANS Cust'!P357+'FR-16(7)(v)-11 DIST Demand'!P357+'FR-16(7)(v)-12 DIST Energy'!P357+'FR-16(7)(v)-13 DIST Cust'!P357","v":3763},{"$f":"'FR-16(7)(v)-3 PROD Demand'!Q357+'FR-16(7)(v)-4 PROD Energy'!Q357+'FR-16(7)(v)-5 PROD Cust'!Q357+'FR-16(7)(v)-7 TRANS Demand'!Q357+'FR-16(7)(v)-8 TRANS Energy'!Q357+'FR-16(7)(v)-9 TRANS Cust'!Q357+'FR-16(7)(v)-11 DIST Demand'!Q357+'FR-16(7)(v)-12 DIST Energy'!Q357+'FR-16(7)(v)-13 DIST Cust'!Q357","v":40},450495,0]
[23,null,{"$f":"'FR-16(7)(v)-1 Functional'!C358","v":"DEMAND SIDE MANAGEMENT DEFERRAL"},{"$f":"'FR-16(7)(v)-1 Functional'!D358","v":"NP29"},null,{"$f":"'FR-16(7)(v)-1 Functional'!F358","v":632806},{"$f":"'FR-16(7)(v)-3 PROD Demand'!G358+'FR-16(7)(v)-4 PROD Energy'!G358+'FR-16(7)(v)-5 PROD Cust'!G358+'FR-16(7)(v)-7 TRANS Demand'!G358+'FR-16(7)(v)-8 TRANS Energy'!G358+'FR-16(7)(v)-9 TRANS Cust'!G358+'FR-16(7)(v)-11 DIST Demand'!G358+'FR-16(7)(v)-12 DIST Energy'!G358+'FR-16(7)(v)-13 DIST Cust'!G358","v":312637},{"$f":"'FR-16(7)(v)-3 PROD Demand'!H358+'FR-16(7)(v)-4 PROD Energy'!H358+'FR-16(7)(v)-5 PROD Cust'!H358+'FR-16(7)(v)-7 TRANS Demand'!H358+'FR-16(7)(v)-8 TRANS Energy'!H358+'FR-16(7)(v)-9 TRANS Cust'!H358+'FR-16(7)(v)-11 DIST Demand'!H358+'FR-16(7)(v)-12 DIST Energy'!H358+'FR-16(7)(v)-13 DIST Cust'!H358","v":162776},{"$f":"'FR-16(7)(v)-3 PROD Demand'!I358+'FR-16(7)(v)-4 PROD Energy'!I358+'FR-16(7)(v)-5 PROD Cust'!I358+'FR-16(7)(v)-7 TRANS Demand'!I358+'FR-16(7)(v)-8 TRANS Energy'!I358+'FR-16(7)(v)-9 TRANS Cust'!I358+'FR-16(7)(v)-11 DIST Demand'!I358+'FR-16(7)(v)-12 DIST Energy'!I358+'FR-16(7)(v)-13 DIST Cust'!I358","v":800},{"$f":"'FR-16(7)(v)-3 PROD Demand'!J358+'FR-16(7)(v)-4 PROD Energy'!J358+'FR-16(7)(v)-5 PROD Cust'!J358+'FR-16(7)(v)-7 TRANS Demand'!J358+'FR-16(7)(v)-8 TRANS Energy'!J358+'FR-16(7)(v)-9 TRANS Cust'!J358+'FR-16(7)(v)-11 DIST Demand'!J358+'FR-16(7)(v)-12 DIST Energy'!J358+'FR-16(7)(v)-13 DIST Cust'!J358","v":3169},{"$f":"'FR-16(7)(v)-3 PROD Demand'!K358+'FR-16(7)(v)-4 PROD Energy'!K358+'FR-16(7)(v)-5 PROD Cust'!K358+'FR-16(7)(v)-7 TRANS Demand'!K358+'FR-16(7)(v)-8 TRANS Energy'!K358+'FR-16(7)(v)-9 TRANS Cust'!K358+'FR-16(7)(v)-11 DIST Demand'!K358+'FR-16(7)(v)-12 DIST Energy'!K358+'FR-16(7)(v)-13 DIST Cust'!K358","v":49},{"$f":"'FR-16(7)(v)-3 PROD Demand'!L358+'FR-16(7)(v)-4 PROD Energy'!L358+'FR-16(7)(v)-5 PROD Cust'!L358+'FR-16(7)(v)-7 TRANS Demand'!L358+'FR-16(7)(v)-8 TRANS Energy'!L358+'FR-16(7)(v)-9 TRANS Cust'!L358+'FR-16(7)(v)-11 DIST Demand'!L358+'FR-16(7)(v)-12 DIST Energy'!L358+'FR-16(7)(v)-13 DIST Cust'!L358","v":78864},{"$f":"'FR-16(7)(v)-3 PROD Demand'!M358+'FR-16(7)(v)-4 PROD Energy'!M358+'FR-16(7)(v)-5 PROD Cust'!M358+'FR-16(7)(v)-7 TRANS Demand'!M358+'FR-16(7)(v)-8 TRANS Energy'!M358+'FR-16(7)(v)-9 TRANS Cust'!M358+'FR-16(7)(v)-11 DIST Demand'!M358+'FR-16(7)(v)-12 DIST Energy'!M358+'FR-16(7)(v)-13 DIST Cust'!M358","v":52018},{"$f":"'FR-16(7)(v)-3 PROD Demand'!N358+'FR-16(7)(v)-4 PROD Energy'!N358+'FR-16(7)(v)-5 PROD Cust'!N358+'FR-16(7)(v)-7 TRANS Demand'!N358+'FR-16(7)(v)-8 TRANS Energy'!N358+'FR-16(7)(v)-9 TRANS Cust'!N358+'FR-16(7)(v)-11 DIST Demand'!N358+'FR-16(7)(v)-12 DIST Energy'!N358+'FR-16(7)(v)-13 DIST Cust'!N358","v":2551},{"$f":"'FR-16(7)(v)-3 PROD Demand'!O358+'FR-16(7)(v)-4 PROD Energy'!O358+'FR-16(7)(v)-5 PROD Cust'!O358+'FR-16(7)(v)-7 TRANS Demand'!O358+'FR-16(7)(v)-8 TRANS Energy'!O358+'FR-16(7)(v)-9 TRANS Cust'!O358+'FR-16(7)(v)-11 DIST Demand'!O358+'FR-16(7)(v)-12 DIST Energy'!O358+'FR-16(7)(v)-13 DIST Cust'!O358","v":16664},{"$f":"'FR-16(7)(v)-3 PROD Demand'!P358+'FR-16(7)(v)-4 PROD Energy'!P358+'FR-16(7)(v)-5 PROD Cust'!P358+'FR-16(7)(v)-7 TRANS Demand'!P358+'FR-16(7)(v)-8 TRANS Energy'!P358+'FR-16(7)(v)-9 TRANS Cust'!P358+'FR-16(7)(v)-11 DIST Demand'!P358+'FR-16(7)(v)-12 DIST Energy'!P358+'FR-16(7)(v)-13 DIST Cust'!P358","v":3210},{"$f":"'FR-16(7)(v)-3 PROD Demand'!Q358+'FR-16(7)(v)-4 PROD Energy'!Q358+'FR-16(7)(v)-5 PROD Cust'!Q358+'FR-16(7)(v)-7 TRANS Demand'!Q358+'FR-16(7)(v)-8 TRANS Energy'!Q358+'FR-16(7)(v)-9 TRANS Cust'!Q358+'FR-16(7)(v)-11 DIST Demand'!Q358+'FR-16(7)(v)-12 DIST Energy'!Q358+'FR-16(7)(v)-13 DIST Cust'!Q358","v":68},632806,0]
[24,null,{"$f":"'FR-16(7)(v)-1 Functional'!C359","v":"OPERATING LEASE OBLIGATION"},{"$f":"'FR-16(7)(v)-1 Functional'!D359","v":"NP29"},null,{"$f":"'FR-16(7)(v)-1 Functional'!F359","v":2341678},{"$f":"'FR-16(7)(v)-3 PROD Demand'!G359+'FR-16(7)(v)-4 PROD Energy'!G359+'FR-16(7)(v)-5 PROD Cust'!G359+'FR-16(7)(v)-7 TRANS Demand'!G359+'FR-16(7)(v)-8 TRANS Energy'!G359+'FR-16(7)(v)-9 TRANS Cust'!G359+'FR-16(7)(v)-11 DIST Demand'!G359+'FR-16(7)(v)-12 DIST Energy'!G359+'FR-16(7)(v)-13 DIST Cust'!G359","v":1156901},{"$f":"'FR-16(7)(v)-3 PROD Demand'!H359+'FR-16(7)(v)-4 PROD Energy'!H359+'FR-16(7)(v)-5 PROD Cust'!H359+'FR-16(7)(v)-7 TRANS Demand'!H359+'FR-16(7)(v)-8 TRANS Energy'!H359+'FR-16(7)(v)-9 TRANS Cust'!H359+'FR-16(7)(v)-11 DIST Demand'!H359+'FR-16(7)(v)-12 DIST Energy'!H359+'FR-16(7)(v)-13 DIST Cust'!H359","v":602346},{"$f":"'FR-16(7)(v)-3 PROD Demand'!I359+'FR-16(7)(v)-4 PROD Energy'!I359+'FR-16(7)(v)-5 PROD Cust'!I359+'FR-16(7)(v)-7 TRANS Demand'!I359+'FR-16(7)(v)-8 TRANS Energy'!I359+'FR-16(7)(v)-9 TRANS Cust'!I359+'FR-16(7)(v)-11 DIST Demand'!I359+'FR-16(7)(v)-12 DIST Energy'!I359+'FR-16(7)(v)-13 DIST Cust'!I359","v":2962},{"$f":"'FR-16(7)(v)-3 PROD Demand'!J359+'FR-16(7)(v)-4 PROD Energy'!J359+'FR-16(7)(v)-5 PROD Cust'!J359+'FR-16(7)(v)-7 TRANS Demand'!J359+'FR-16(7)(v)-8 TRANS Energy'!J359+'FR-16(7)(v)-9 TRANS Cust'!J359+'FR-16(7)(v)-11 DIST Demand'!J359+'FR-16(7)(v)-12 DIST Energy'!J359+'FR-16(7)(v)-13 DIST Cust'!J359","v":11726},{"$f":"'FR-16(7)(v)-3 PROD Demand'!K359+'FR-16(7)(v)-4 PROD Energy'!K359+'FR-16(7)(v)-5 PROD Cust'!K359+'FR-16(7)(v)-7 TRANS Demand'!K359+'FR-16(7)(v)-8 TRANS Energy'!K359+'FR-16(7)(v)-9 TRANS Cust'!K359+'FR-16(7)(v)-11 DIST Demand'!K359+'FR-16(7)(v)-12 DIST Energy'!K359+'FR-16(7)(v)-13 DIST Cust'!K359","v":177},{"$f":"'FR-16(7)(v)-3 PROD Demand'!L359+'FR-16(7)(v)-4 PROD Energy'!L359+'FR-16(7)(v)-5 PROD Cust'!L359+'FR-16(7)(v)-7 TRANS Demand'!L359+'FR-16(7)(v)-8 TRANS Energy'!L359+'FR-16(7)(v)-9 TRANS Cust'!L359+'FR-16(7)(v)-11 DIST Demand'!L359+'FR-16(7)(v)-12 DIST Energy'!L359+'FR-16(7)(v)-13 DIST Cust'!L359","v":291836},{"$f":"'FR-16(7)(v)-3 PROD Demand'!M359+'FR-16(7)(v)-4 PROD Energy'!M359+'FR-16(7)(v)-5 PROD Cust'!M359+'FR-16(7)(v)-7 TRANS Demand'!M359+'FR-16(7)(v)-8 TRANS Energy'!M359+'FR-16(7)(v)-9 TRANS Cust'!M359+'FR-16(7)(v)-11 DIST Demand'!M359+'FR-16(7)(v)-12 DIST Energy'!M359+'FR-16(7)(v)-13 DIST Cust'!M359","v":192491},{"$f":"'FR-16(7)(v)-3 PROD Demand'!N359+'FR-16(7)(v)-4 PROD Energy'!N359+'FR-16(7)(v)-5 PROD Cust'!N359+'FR-16(7)(v)-7 TRANS Demand'!N359+'FR-16(7)(v)-8 TRANS Energy'!N359+'FR-16(7)(v)-9 TRANS Cust'!N359+'FR-16(7)(v)-11 DIST Demand'!N359+'FR-16(7)(v)-12 DIST Energy'!N359+'FR-16(7)(v)-13 DIST Cust'!N359","v":9442},{"$f":"'FR-16(7)(v)-3 PROD Demand'!O359+'FR-16(7)(v)-4 PROD Energy'!O359+'FR-16(7)(v)-5 PROD Cust'!O359+'FR-16(7)(v)-7 TRANS Demand'!O359+'FR-16(7)(v)-8 TRANS Energy'!O359+'FR-16(7)(v)-9 TRANS Cust'!O359+'FR-16(7)(v)-11 DIST Demand'!O359+'FR-16(7)(v)-12 DIST Energy'!O359+'FR-16(7)(v)-13 DIST Cust'!O359","v":61666},{"$f":"'FR-16(7)(v)-3 PROD Demand'!P359+'FR-16(7)(v)-4 PROD Energy'!P359+'FR-16(7)(v)-5 PROD Cust'!P359+'FR-16(7)(v)-7 TRANS Demand'!P359+'FR-16(7)(v)-8 TRANS Energy'!P359+'FR-16(7)(v)-9 TRANS Cust'!P359+'FR-16(7)(v)-11 DIST Demand'!P359+'FR-16(7)(v)-12 DIST Energy'!P359+'FR-16(7)(v)-13 DIST Cust'!P359","v":11879},{"$f":"'FR-16(7)(v)-3 PROD Demand'!Q359+'FR-16(7)(v)-4 PROD Energy'!Q359+'FR-16(7)(v)-5 PROD Cust'!Q359+'FR-16(7)(v)-7 TRANS Demand'!Q359+'FR-16(7)(v)-8 TRANS Energy'!Q359+'FR-16(7)(v)-9 TRANS Cust'!Q359+'FR-16(7)(v)-11 DIST Demand'!Q359+'FR-16(7)(v)-12 DIST Energy'!Q359+'FR-16(7)(v)-13 DIST Cust'!Q359","v":252},2341678,0]
[25,null,{"$f":"'FR-16(7)(v)-1 Functional'!C360","v":"INJURIES & DAMAGES"},{"$f":"'FR-16(7)(v)-1 Functional'!D360","v":"NP29"},null,{"$f":"'FR-16(7)(v)-1 Functional'!F360","v":0},{"$f":"'FR-16(7)(v)-3 PROD Demand'!G360+'FR-16(7)(v)-4 PROD Energy'!G360+'FR-16(7)(v)-5 PROD Cust'!G360+'FR-16(7)(v)-7 TRANS Demand'!G360+'FR-16(7)(v)-8 TRANS Energy'!G360+'FR-16(7)(v)-9 TRANS Cust'!G360+'FR-16(7)(v)-11 DIST Demand'!G360+'FR-16(7)(v)-12 DIST Energy'!G360+'FR-16(7)(v)-13 DIST Cust'!G360","v":0},{"$f":"'FR-16(7)(v)-3 PROD Demand'!H360+'FR-16(7)(v)-4 PROD Energy'!H360+'FR-16(7)(v)-5 PROD Cust'!H360+'FR-16(7)(v)-7 TRANS Demand'!H360+'FR-16(7)(v)-8 TRANS Energy'!H360+'FR-16(7)(v)-9 TRANS Cust'!H360+'FR-16(7)(v)-11 DIST Demand'!H360+'FR-16(7)(v)-12 DIST Energy'!H360+'FR-16(7)(v)-13 DIST Cust'!H360","v":0},{"$f":"'FR-16(7)(v)-3 PROD Demand'!I360+'FR-16(7)(v)-4 PROD Energy'!I360+'FR-16(7)(v)-5 PROD Cust'!I360+'FR-16(7)(v)-7 TRANS Demand'!I360+'FR-16(7)(v)-8 TRANS Energy'!I360+'FR-16(7)(v)-9 TRANS Cust'!I360+'FR-16(7)(v)-11 DIST Demand'!I360+'FR-16(7)(v)-12 DIST Energy'!I360+'FR-16(7)(v)-13 DIST Cust'!I360","v":0},{"$f":"'FR-16(7)(v)-3 PROD Demand'!J360+'FR-16(7)(v)-4 PROD Energy'!J360+'FR-16(7)(v)-5 PROD Cust'!J360+'FR-16(7)(v)-7 TRANS Demand'!J360+'FR-16(7)(v)-8 TRANS Energy'!J360+'FR-16(7)(v)-9 TRANS Cust'!J360+'FR-16(7)(v)-11 DIST Demand'!J360+'FR-16(7)(v)-12 DIST Energy'!J360+'FR-16(7)(v)-13 DIST Cust'!J360","v":0},{"$f":"'FR-16(7)(v)-3 PROD Demand'!K360+'FR-16(7)(v)-4 PROD Energy'!K360+'FR-16(7)(v)-5 PROD Cust'!K360+'FR-16(7)(v)-7 TRANS Demand'!K360+'FR-16(7)(v)-8 TRANS Energy'!K360+'FR-16(7)(v)-9 TRANS Cust'!K360+'FR-16(7)(v)-11 DIST Demand'!K360+'FR-16(7)(v)-12 DIST Energy'!K360+'FR-16(7)(v)-13 DIST Cust'!K360","v":0},{"$f":"'FR-16(7)(v)-3 PROD Demand'!L360+'FR-16(7)(v)-4 PROD Energy'!L360+'FR-16(7)(v)-5 PROD Cust'!L360+'FR-16(7)(v)-7 TRANS Demand'!L360+'FR-16(7)(v)-8 TRANS Energy'!L360+'FR-16(7)(v)-9 TRANS Cust'!L360+'FR-16(7)(v)-11 DIST Demand'!L360+'FR-16(7)(v)-12 DIST Energy'!L360+'FR-16(7)(v)-13 DIST Cust'!L360","v":0},{"$f":"'FR-16(7)(v)-3 PROD Demand'!M360+'FR-16(7)(v)-4 PROD Energy'!M360+'FR-16(7)(v)-5 PROD Cust'!M360+'FR-16(7)(v)-7 TRANS Demand'!M360+'FR-16(7)(v)-8 TRANS Energy'!M360+'FR-16(7)(v)-9 TRANS Cust'!M360+'FR-16(7)(v)-11 DIST Demand'!M360+'FR-16(7)(v)-12 DIST Energy'!M360+'FR-16(7)(v)-13 DIST Cust'!M360","v":0},{"$f":"'FR-16(7)(v)-3 PROD Demand'!N360+'FR-16(7)(v)-4 PROD Energy'!N360+'FR-16(7)(v)-5 PROD Cust'!N360+'FR-16(7)(v)-7 TRANS Demand'!N360+'FR-16(7)(v)-8 TRANS Energy'!N360+'FR-16(7)(v)-9 TRANS Cust'!N360+'FR-16(7)(v)-11 DIST Demand'!N360+'FR-16(7)(v)-12 DIST Energy'!N360+'FR-16(7)(v)-13 DIST Cust'!N360","v":0},{"$f":"'FR-16(7)(v)-3 PROD Demand'!O360+'FR-16(7)(v)-4 PROD Energy'!O360+'FR-16(7)(v)-5 PROD Cust'!O360+'FR-16(7)(v)-7 TRANS Demand'!O360+'FR-16(7)(v)-8 TRANS Energy'!O360+'FR-16(7)(v)-9 TRANS Cust'!O360+'FR-16(7)(v)-11 DIST Demand'!O360+'FR-16(7)(v)-12 DIST Energy'!O360+'FR-16(7)(v)-13 DIST Cust'!O360","v":0},{"$f":"'FR-16(7)(v)-3 PROD Demand'!P360+'FR-16(7)(v)-4 PROD Energy'!P360+'FR-16(7)(v)-5 PROD Cust'!P360+'FR-16(7)(v)-7 TRANS Demand'!P360+'FR-16(7)(v)-8 TRANS Energy'!P360+'FR-16(7)(v)-9 TRANS Cust'!P360+'FR-16(7)(v)-11 DIST Demand'!P360+'FR-16(7)(v)-12 DIST Energy'!P360+'FR-16(7)(v)-13 DIST Cust'!P360","v":0},{"$f":"'FR-16(7)(v)-3 PROD Demand'!Q360+'FR-16(7)(v)-4 PROD Energy'!Q360+'FR-16(7)(v)-5 PROD Cust'!Q360+'FR-16(7)(v)-7 TRANS Demand'!Q360+'FR-16(7)(v)-8 TRANS Energy'!Q360+'FR-16(7)(v)-9 TRANS Cust'!Q360+'FR-16(7)(v)-11 DIST Demand'!Q360+'FR-16(7)(v)-12 DIST Energy'!Q360+'FR-16(7)(v)-13 DIST Cust'!Q360","v":0},0,0]
[26,null,{"$f":"'FR-16(7)(v)-1 Functional'!C361","v":"  TOTAL ACCOUNT 190"},null,null,{"$f":"SUM(F337:F360)","v":19888872},12545359,3621716,18957,{"$f":"SUM(J337:J360)","v":63590},1324,1767917,1187116,58376,466833,155842,1842,19888872,0]
[27]
[28," OTHER"]
[29,null,{"$f":"'FR-16(7)(v)-1 Functional'!C364","v":"RESERVED FOR FUTURE USE"},{"$f":"'FR-16(7)(v)-1 Functional'!D364","v":"NP29"},null,{"$f":"'FR-16(7)(v)-1 Functional'!F364","v":0},{"$f":"'FR-16(7)(v)-3 PROD Demand'!G364+'FR-16(7)(v)-4 PROD Energy'!G364+'FR-16(7)(v)-5 PROD Cust'!G364+'FR-16(7)(v)-7 TRANS Demand'!G364+'FR-16(7)(v)-8 TRANS Energy'!G364+'FR-16(7)(v)-9 TRANS Cust'!G364+'FR-16(7)(v)-11 DIST Demand'!G364+'FR-16(7)(v)-12 DIST Energy'!G364+'FR-16(7)(v)-13 DIST Cust'!G364","v":0},{"$f":"'FR-16(7)(v)-3 PROD Demand'!H364+'FR-16(7)(v)-4 PROD Energy'!H364+'FR-16(7)(v)-5 PROD Cust'!H364+'FR-16(7)(v)-7 TRANS Demand'!H364+'FR-16(7)(v)-8 TRANS Energy'!H364+'FR-16(7)(v)-9 TRANS Cust'!H364+'FR-16(7)(v)-11 DIST Demand'!H364+'FR-16(7)(v)-12 DIST Energy'!H364+'FR-16(7)(v)-13 DIST Cust'!H364","v":0},{"$f":"'FR-16(7)(v)-3 PROD Demand'!I364+'FR-16(7)(v)-4 PROD Energy'!I364+'FR-16(7)(v)-5 PROD Cust'!I364+'FR-16(7)(v)-7 TRANS Demand'!I364+'FR-16(7)(v)-8 TRANS Energy'!I364+'FR-16(7)(v)-9 TRANS Cust'!I364+'FR-16(7)(v)-11 DIST Demand'!I364+'FR-16(7)(v)-12 DIST Energy'!I364+'FR-16(7)(v)-13 DIST Cust'!I364","v":0},{"$f":"'FR-16(7)(v)-3 PROD Demand'!J364+'FR-16(7)(v)-4 PROD Energy'!J364+'FR-16(7)(v)-5 PROD Cust'!J364+'FR-16(7)(v)-7 TRANS Demand'!J364+'FR-16(7)(v)-8 TRANS Energy'!J364+'FR-16(7)(v)-9 TRANS Cust'!J364+'FR-16(7)(v)-11 DIST Demand'!J364+'FR-16(7)(v)-12 DIST Energy'!J364+'FR-16(7)(v)-13 DIST Cust'!J364","v":0},{"$f":"'FR-16(7)(v)-3 PROD Demand'!K364+'FR-16(7)(v)-4 PROD Energy'!K364+'FR-16(7)(v)-5 PROD Cust'!K364+'FR-16(7)(v)-7 TRANS Demand'!K364+'FR-16(7)(v)-8 TRANS Energy'!K364+'FR-16(7)(v)-9 TRANS Cust'!K364+'FR-16(7)(v)-11 DIST Demand'!K364+'FR-16(7)(v)-12 DIST Energy'!K364+'FR-16(7)(v)-13 DIST Cust'!K364","v":0},{"$f":"'FR-16(7)(v)-3 PROD Demand'!L364+'FR-16(7)(v)-4 PROD Energy'!L364+'FR-16(7)(v)-5 PROD Cust'!L364+'FR-16(7)(v)-7 TRANS Demand'!L364+'FR-16(7)(v)-8 TRANS Energy'!L364+'FR-16(7)(v)-9 TRANS Cust'!L364+'FR-16(7)(v)-11 DIST Demand'!L364+'FR-16(7)(v)-12 DIST Energy'!L364+'FR-16(7)(v)-13 DIST Cust'!L364","v":0},{"$f":"'FR-16(7)(v)-3 PROD Demand'!M364+'FR-16(7)(v)-4 PROD Energy'!M364+'FR-16(7)(v)-5 PROD Cust'!M364+'FR-16(7)(v)-7 TRANS Demand'!M364+'FR-16(7)(v)-8 TRANS Energy'!M364+'FR-16(7)(v)-9 TRANS Cust'!M364+'FR-16(7)(v)-11 DIST Demand'!M364+'FR-16(7)(v)-12 DIST Energy'!M364+'FR-16(7)(v)-13 DIST Cust'!M364","v":0},{"$f":"'FR-16(7)(v)-3 PROD Demand'!N364+'FR-16(7)(v)-4 PROD Energy'!N364+'FR-16(7)(v)-5 PROD Cust'!N364+'FR-16(7)(v)-7 TRANS Demand'!N364+'FR-16(7)(v)-8 TRANS Energy'!N364+'FR-16(7)(v)-9 TRANS Cust'!N364+'FR-16(7)(v)-11 DIST Demand'!N364+'FR-16(7)(v)-12 DIST Energy'!N364+'FR-16(7)(v)-13 DIST Cust'!N364","v":0},{"$f":"'FR-16(7)(v)-3 PROD Demand'!O364+'FR-16(7)(v)-4 PROD Energy'!O364+'FR-16(7)(v)-5 PROD Cust'!O364+'FR-16(7)(v)-7 TRANS Demand'!O364+'FR-16(7)(v)-8 TRANS Energy'!O364+'FR-16(7)(v)-9 TRANS Cust'!O364+'FR-16(7)(v)-11 DIST Demand'!O364+'FR-16(7)(v)-12 DIST Energy'!O364+'FR-16(7)(v)-13 DIST Cust'!O364","v":0},{"$f":"'FR-16(7)(v)-3 PROD Demand'!P364+'FR-16(7)(v)-4 PROD Energy'!P364+'FR-16(7)(v)-5 PROD Cust'!P364+'FR-16(7)(v)-7 TRANS Demand'!P364+'FR-16(7)(v)-8 TRANS Energy'!P364+'FR-16(7)(v)-9 TRANS Cust'!P364+'FR-16(7)(v)-11 DIST Demand'!P364+'FR-16(7)(v)-12 DIST Energy'!P364+'FR-16(7)(v)-13 DIST Cust'!P364","v":0},{"$f":"'FR-16(7)(v)-3 PROD Demand'!Q364+'FR-16(7)(v)-4 PROD Energy'!Q364+'FR-16(7)(v)-5 PROD Cust'!Q364+'FR-16(7)(v)-7 TRANS Demand'!Q364+'FR-16(7)(v)-8 TRANS Energy'!Q364+'FR-16(7)(v)-9 TRANS Cust'!Q364+'FR-16(7)(v)-11 DIST Demand'!Q364+'FR-16(7)(v)-12 DIST Energy'!Q364+'FR-16(7)(v)-13 DIST Cust'!Q364","v":0},{"$f":"SUM(G364:Q364)","v":0},{"$f":"F364-R364","v":0}]
[30,null,{"$f":"'FR-16(7)(v)-1 Functional'!C365","v":"RATE CASE EXPENSE REGULATORY ASSET"},{"$f":"'FR-16(7)(v)-1 Functional'!D365","v":"NP29"},null,{"$f":"'FR-16(7)(v)-1 Functional'!F365","v":948688},{"$f":"'FR-16(7)(v)-3 PROD Demand'!G365+'FR-16(7)(v)-4 PROD Energy'!G365+'FR-16(7)(v)-5 PROD Cust'!G365+'FR-16(7)(v)-7 TRANS Demand'!G365+'FR-16(7)(v)-8 TRANS Energy'!G365+'FR-16(7)(v)-9 TRANS Cust'!G365+'FR-16(7)(v)-11 DIST Demand'!G365+'FR-16(7)(v)-12 DIST Energy'!G365+'FR-16(7)(v)-13 DIST Cust'!G365","v":468702},{"$f":"'FR-16(7)(v)-3 PROD Demand'!H365+'FR-16(7)(v)-4 PROD Energy'!H365+'FR-16(7)(v)-5 PROD Cust'!H365+'FR-16(7)(v)-7 TRANS Demand'!H365+'FR-16(7)(v)-8 TRANS Energy'!H365+'FR-16(7)(v)-9 TRANS Cust'!H365+'FR-16(7)(v)-11 DIST Demand'!H365+'FR-16(7)(v)-12 DIST Energy'!H365+'FR-16(7)(v)-13 DIST Cust'!H365","v":244029},{"$f":"'FR-16(7)(v)-3 PROD Demand'!I365+'FR-16(7)(v)-4 PROD Energy'!I365+'FR-16(7)(v)-5 PROD Cust'!I365+'FR-16(7)(v)-7 TRANS Demand'!I365+'FR-16(7)(v)-8 TRANS Energy'!I365+'FR-16(7)(v)-9 TRANS Cust'!I365+'FR-16(7)(v)-11 DIST Demand'!I365+'FR-16(7)(v)-12 DIST Energy'!I365+'FR-16(7)(v)-13 DIST Cust'!I365","v":1200},{"$f":"'FR-16(7)(v)-3 PROD Demand'!J365+'FR-16(7)(v)-4 PROD Energy'!J365+'FR-16(7)(v)-5 PROD Cust'!J365+'FR-16(7)(v)-7 TRANS Demand'!J365+'FR-16(7)(v)-8 TRANS Energy'!J365+'FR-16(7)(v)-9 TRANS Cust'!J365+'FR-16(7)(v)-11 DIST Demand'!J365+'FR-16(7)(v)-12 DIST Energy'!J365+'FR-16(7)(v)-13 DIST Cust'!J365","v":4750},{"$f":"'FR-16(7)(v)-3 PROD Demand'!K365+'FR-16(7)(v)-4 PROD Energy'!K365+'FR-16(7)(v)-5 PROD Cust'!K365+'FR-16(7)(v)-7 TRANS Demand'!K365+'FR-16(7)(v)-8 TRANS Energy'!K365+'FR-16(7)(v)-9 TRANS Cust'!K365+'FR-16(7)(v)-11 DIST Demand'!K365+'FR-16(7)(v)-12 DIST Energy'!K365+'FR-16(7)(v)-13 DIST Cust'!K365","v":72},{"$f":"'FR-16(7)(v)-3 PROD Demand'!L365+'FR-16(7)(v)-4 PROD Energy'!L365+'FR-16(7)(v)-5 PROD Cust'!L365+'FR-16(7)(v)-7 TRANS Demand'!L365+'FR-16(7)(v)-8 TRANS Energy'!L365+'FR-16(7)(v)-9 TRANS Cust'!L365+'FR-16(7)(v)-11 DIST Demand'!L365+'FR-16(7)(v)-12 DIST Energy'!L365+'FR-16(7)(v)-13 DIST Cust'!L365","v":118231},{"$f":"'FR-16(7)(v)-3 PROD Demand'!M365+'FR-16(7)(v)-4 PROD Energy'!M365+'FR-16(7)(v)-5 PROD Cust'!M365+'FR-16(7)(v)-7 TRANS Demand'!M365+'FR-16(7)(v)-8 TRANS Energy'!M365+'FR-16(7)(v)-9 TRANS Cust'!M365+'FR-16(7)(v)-11 DIST Demand'!M365+'FR-16(7)(v)-12 DIST Energy'!M365+'FR-16(7)(v)-13 DIST Cust'!M365","v":77984},{"$f":"'FR-16(7)(v)-3 PROD Demand'!N365+'FR-16(7)(v)-4 PROD Energy'!N365+'FR-16(7)(v)-5 PROD Cust'!N365+'FR-16(7)(v)-7 TRANS Demand'!N365+'FR-16(7)(v)-8 TRANS Energy'!N365+'FR-16(7)(v)-9 TRANS Cust'!N365+'FR-16(7)(v)-11 DIST Demand'!N365+'FR-16(7)(v)-12 DIST Energy'!N365+'FR-16(7)(v)-13 DIST Cust'!N365","v":3824},{"$f":"'FR-16(7)(v)-3 PROD Demand'!O365+'FR-16(7)(v)-4 PROD Energy'!O365+'FR-16(7)(v)-5 PROD Cust'!O365+'FR-16(7)(v)-7 TRANS Demand'!O365+'FR-16(7)(v)-8 TRANS Energy'!O365+'FR-16(7)(v)-9 TRANS Cust'!O365+'FR-16(7)(v)-11 DIST Demand'!O365+'FR-16(7)(v)-12 DIST Energy'!O365+'FR-16(7)(v)-13 DIST Cust'!O365","v":24982},{"$f":"'FR-16(7)(v)-3 PROD Demand'!P365+'FR-16(7)(v)-4 PROD Energy'!P365+'FR-16(7)(v)-5 PROD Cust'!P365+'FR-16(7)(v)-7 TRANS Demand'!P365+'FR-16(7)(v)-8 TRANS Energy'!P365+'FR-16(7)(v)-9 TRANS Cust'!P365+'FR-16(7)(v)-11 DIST Demand'!P365+'FR-16(7)(v)-12 DIST Energy'!P365+'FR-16(7)(v)-13 DIST Cust'!P365","v":4812},{"$f":"'FR-16(7)(v)-3 PROD Demand'!Q365+'FR-16(7)(v)-4 PROD Energy'!Q365+'FR-16(7)(v)-5 PROD Cust'!Q365+'FR-16(7)(v)-7 TRANS Demand'!Q365+'FR-16(7)(v)-8 TRANS Energy'!Q365+'FR-16(7)(v)-9 TRANS Cust'!Q365+'FR-16(7)(v)-11 DIST Demand'!Q365+'FR-16(7)(v)-12 DIST Energy'!Q365+'FR-16(7)(v)-13 DIST Cust'!Q365","v":102},{"$f":"SUM(G365:Q365)","v":948688},{"$f":"F365-R365","v":0}]
[31,null,{"$f":"'FR-16(7)(v)-1 Functional'!C366","v":"RESERVED FOR FUTURE USE"},{"$f":"'FR-16(7)(v)-1 Functional'!D366","v":"NP29"},null,{"$f":"'FR-16(7)(v)-1 Functional'!F366","v":0},{"$f":"'FR-16(7)(v)-3 PROD Demand'!G366+'FR-16(7)(v)-4 PROD Energy'!G366+'FR-16(7)(v)-5 PROD Cust'!G366+'FR-16(7)(v)-7 TRANS Demand'!G366+'FR-16(7)(v)-8 TRANS Energy'!G366+'FR-16(7)(v)-9 TRANS Cust'!G366+'FR-16(7)(v)-11 DIST Demand'!G366+'FR-16(7)(v)-12 DIST Energy'!G366+'FR-16(7)(v)-13 DIST Cust'!G366","v":0},{"$f":"'FR-16(7)(v)-3 PROD Demand'!H366+'FR-16(7)(v)-4 PROD Energy'!H366+'FR-16(7)(v)-5 PROD Cust'!H366+'FR-16(7)(v)-7 TRANS Demand'!H366+'FR-16(7)(v)-8 TRANS Energy'!H366+'FR-16(7)(v)-9 TRANS Cust'!H366+'FR-16(7)(v)-11 DIST Demand'!H366+'FR-16(7)(v)-12 DIST Energy'!H366+'FR-16(7)(v)-13 DIST Cust'!H366","v":0},{"$f":"'FR-16(7)(v)-3 PROD Demand'!I366+'FR-16(7)(v)-4 PROD Energy'!I366+'FR-16(7)(v)-5 PROD Cust'!I366+'FR-16(7)(v)-7 TRANS Demand'!I366+'FR-16(7)(v)-8 TRANS Energy'!I366+'FR-16(7)(v)-9 TRANS Cust'!I366+'FR-16(7)(v)-11 DIST Demand'!I366+'FR-16(7)(v)-12 DIST Energy'!I366+'FR-16(7)(v)-13 DIST Cust'!I366","v":0},{"$f":"'FR-16(7)(v)-3 PROD Demand'!J366+'FR-16(7)(v)-4 PROD Energy'!J366+'FR-16(7)(v)-5 PROD Cust'!J366+'FR-16(7)(v)-7 TRANS Demand'!J366+'FR-16(7)(v)-8 TRANS Energy'!J366+'FR-16(7)(v)-9 TRANS Cust'!J366+'FR-16(7)(v)-11 DIST Demand'!J366+'FR-16(7)(v)-12 DIST Energy'!J366+'FR-16(7)(v)-13 DIST Cust'!J366","v":0},{"$f":"'FR-16(7)(v)-3 PROD Demand'!K366+'FR-16(7)(v)-4 PROD Energy'!K366+'FR-16(7)(v)-5 PROD Cust'!K366+'FR-16(7)(v)-7 TRANS Demand'!K366+'FR-16(7)(v)-8 TRANS Energy'!K366+'FR-16(7)(v)-9 TRANS Cust'!K366+'FR-16(7)(v)-11 DIST Demand'!K366+'FR-16(7)(v)-12 DIST Energy'!K366+'FR-16(7)(v)-13 DIST Cust'!K366","v":0},{"$f":"'FR-16(7)(v)-3 PROD Demand'!L366+'FR-16(7)(v)-4 PROD Energy'!L366+'FR-16(7)(v)-5 PROD Cust'!L366+'FR-16(7)(v)-7 TRANS Demand'!L366+'FR-16(7)(v)-8 TRANS Energy'!L366+'FR-16(7)(v)-9 TRANS Cust'!L366+'FR-16(7)(v)-11 DIST Demand'!L366+'FR-16(7)(v)-12 DIST Energy'!L366+'FR-16(7)(v)-13 DIST Cust'!L366","v":0},{"$f":"'FR-16(7)(v)-3 PROD Demand'!M366+'FR-16(7)(v)-4 PROD Energy'!M366+'FR-16(7)(v)-5 PROD Cust'!M366+'FR-16(7)(v)-7 TRANS Demand'!M366+'FR-16(7)(v)-8 TRANS Energy'!M366+'FR-16(7)(v)-9 TRANS Cust'!M366+'FR-16(7)(v)-11 DIST Demand'!M366+'FR-16(7)(v)-12 DIST Energy'!M366+'FR-16(7)(v)-13 DIST Cust'!M366","v":0},{"$f":"'FR-16(7)(v)-3 PROD Demand'!N366+'FR-16(7)(v)-4 PROD Energy'!N366+'FR-16(7)(v)-5 PROD Cust'!N366+'FR-16(7)(v)-7 TRANS Demand'!N366+'FR-16(7)(v)-8 TRANS Energy'!N366+'FR-16(7)(v)-9 TRANS Cust'!N366+'FR-16(7)(v)-11 DIST Demand'!N366+'FR-16(7)(v)-12 DIST Energy'!N366+'FR-16(7)(v)-13 DIST Cust'!N366","v":0},{"$f":"'FR-16(7)(v)-3 PROD Demand'!O366+'FR-16(7)(v)-4 PROD Energy'!O366+'FR-16(7)(v)-5 PROD Cust'!O366+'FR-16(7)(v)-7 TRANS Demand'!O366+'FR-16(7)(v)-8 TRANS Energy'!O366+'FR-16(7)(v)-9 TRANS Cust'!O366+'FR-16(7)(v)-11 DIST Demand'!O366+'FR-16(7)(v)-12 DIST Energy'!O366+'FR-16(7)(v)-13 DIST Cust'!O366","v":0},{"$f":"'FR-16(7)(v)-3 PROD Demand'!P366+'FR-16(7)(v)-4 PROD Energy'!P366+'FR-16(7)(v)-5 PROD Cust'!P366+'FR-16(7)(v)-7 TRANS Demand'!P366+'FR-16(7)(v)-8 TRANS Energy'!P366+'FR-16(7)(v)-9 TRANS Cust'!P366+'FR-16(7)(v)-11 DIST Demand'!P366+'FR-16(7)(v)-12 DIST Energy'!P366+'FR-16(7)(v)-13 DIST Cust'!P366","v":0},{"$f":"'FR-16(7)(v)-3 PROD Demand'!Q366+'FR-16(7)(v)-4 PROD Energy'!Q366+'FR-16(7)(v)-5 PROD Cust'!Q366+'FR-16(7)(v)-7 TRANS Demand'!Q366+'FR-16(7)(v)-8 TRANS Energy'!Q366+'FR-16(7)(v)-9 TRANS Cust'!Q366+'FR-16(7)(v)-11 DIST Demand'!Q366+'FR-16(7)(v)-12 DIST Energy'!Q366+'FR-16(7)(v)-13 DIST Cust'!Q366","v":0},{"$f":"SUM(G366:Q366)","v":0},{"$f":"F366-R366","v":0}]
[32,null,{"$f":"'FR-16(7)(v)-1 Functional'!C367","v":"  OTHER"},null,null,{"$f":"SUM(F364:F366)","v":948688},{"$f":"SUM(G363:G366)","v":468702},244029,1200,{"$f":"SUM(J363:J366)","v":4750},72,118231,77984,3824,24982,4812,102,948688,0]
[33,null,null,null,null," "]
[34,"CONSTRUCTION WORK IN PROGRESS"]
[35,null,"PRODUCTION",{"$f":"'FR-16(7)(v)-1 Functional'!D370","v":"P129"},null,{"$f":"'FR-16(7)(v)-1 Functional'!F370","v":0},{"$f":"'FR-16(7)(v)-3 PROD Demand'!G370+'FR-16(7)(v)-4 PROD Energy'!G370+'FR-16(7)(v)-5 PROD Cust'!G370+'FR-16(7)(v)-7 TRANS Demand'!G370+'FR-16(7)(v)-8 TRANS Energy'!G370+'FR-16(7)(v)-9 TRANS Cust'!G370+'FR-16(7)(v)-11 DIST Demand'!G370+'FR-16(7)(v)-12 DIST Energy'!G370+'FR-16(7)(v)-13 DIST Cust'!G370","v":0},{"$f":"'FR-16(7)(v)-3 PROD Demand'!H370+'FR-16(7)(v)-4 PROD Energy'!H370+'FR-16(7)(v)-5 PROD Cust'!H370+'FR-16(7)(v)-7 TRANS Demand'!H370+'FR-16(7)(v)-8 TRANS Energy'!H370+'FR-16(7)(v)-9 TRANS Cust'!H370+'FR-16(7)(v)-11 DIST Demand'!H370+'FR-16(7)(v)-12 DIST Energy'!H370+'FR-16(7)(v)-13 DIST Cust'!H370","v":0},{"$f":"'FR-16(7)(v)-3 PROD Demand'!I370+'FR-16(7)(v)-4 PROD Energy'!I370+'FR-16(7)(v)-5 PROD Cust'!I370+'FR-16(7)(v)-7 TRANS Demand'!I370+'FR-16(7)(v)-8 TRANS Energy'!I370+'FR-16(7)(v)-9 TRANS Cust'!I370+'FR-16(7)(v)-11 DIST Demand'!I370+'FR-16(7)(v)-12 DIST Energy'!I370+'FR-16(7)(v)-13 DIST Cust'!I370","v":0},{"$f":"'FR-16(7)(v)-3 PROD Demand'!J370+'FR-16(7)(v)-4 PROD Energy'!J370+'FR-16(7)(v)-5 PROD Cust'!J370+'FR-16(7)(v)-7 TRANS Demand'!J370+'FR-16(7)(v)-8 TRANS Energy'!J370+'FR-16(7)(v)-9 TRANS Cust'!J370+'FR-16(7)(v)-11 DIST Demand'!J370+'FR-16(7)(v)-12 DIST Energy'!J370+'FR-16(7)(v)-13 DIST Cust'!J370","v":0},{"$f":"'FR-16(7)(v)-3 PROD Demand'!K370+'FR-16(7)(v)-4 PROD Energy'!K370+'FR-16(7)(v)-5 PROD Cust'!K370+'FR-16(7)(v)-7 TRANS Demand'!K370+'FR-16(7)(v)-8 TRANS Energy'!K370+'FR-16(7)(v)-9 TRANS Cust'!K370+'FR-16(7)(v)-11 DIST Demand'!K370+'FR-16(7)(v)-12 DIST Energy'!K370+'FR-16(7)(v)-13 DIST Cust'!K370","v":0},{"$f":"'FR-16(7)(v)-3 PROD Demand'!L370+'FR-16(7)(v)-4 PROD Energy'!L370+'FR-16(7)(v)-5 PROD Cust'!L370+'FR-16(7)(v)-7 TRANS Demand'!L370+'FR-16(7)(v)-8 TRANS Energy'!L370+'FR-16(7)(v)-9 TRANS Cust'!L370+'FR-16(7)(v)-11 DIST Demand'!L370+'FR-16(7)(v)-12 DIST Energy'!L370+'FR-16(7)(v)-13 DIST Cust'!L370","v":0},{"$f":"'FR-16(7)(v)-3 PROD Demand'!M370+'FR-16(7)(v)-4 PROD Energy'!M370+'FR-16(7)(v)-5 PROD Cust'!M370+'FR-16(7)(v)-7 TRANS Demand'!M370+'FR-16(7)(v)-8 TRANS Energy'!M370+'FR-16(7)(v)-9 TRANS Cust'!M370+'FR-16(7)(v)-11 DIST Demand'!M370+'FR-16(7)(v)-12 DIST Energy'!M370+'FR-16(7)(v)-13 DIST Cust'!M370","v":0},{"$f":"'FR-16(7)(v)-3 PROD Demand'!N370+'FR-16(7)(v)-4 PROD Energy'!N370+'FR-16(7)(v)-5 PROD Cust'!N370+'FR-16(7)(v)-7 TRANS Demand'!N370+'FR-16(7)(v)-8 TRANS Energy'!N370+'FR-16(7)(v)-9 TRANS Cust'!N370+'FR-16(7)(v)-11 DIST Demand'!N370+'FR-16(7)(v)-12 DIST Energy'!N370+'FR-16(7)(v)-13 DIST Cust'!N370","v":0},{"$f":"'FR-16(7)(v)-3 PROD Demand'!O370+'FR-16(7)(v)-4 PROD Energy'!O370+'FR-16(7)(v)-5 PROD Cust'!O370+'FR-16(7)(v)-7 TRANS Demand'!O370+'FR-16(7)(v)-8 TRANS Energy'!O370+'FR-16(7)(v)-9 TRANS Cust'!O370+'FR-16(7)(v)-11 DIST Demand'!O370+'FR-16(7)(v)-12 DIST Energy'!O370+'FR-16(7)(v)-13 DIST Cust'!O370","v":0},{"$f":"'FR-16(7)(v)-3 PROD Demand'!P370+'FR-16(7)(v)-4 PROD Energy'!P370+'FR-16(7)(v)-5 PROD Cust'!P370+'FR-16(7)(v)-7 TRANS Demand'!P370+'FR-16(7)(v)-8 TRANS Energy'!P370+'FR-16(7)(v)-9 TRANS Cust'!P370+'FR-16(7)(v)-11 DIST Demand'!P370+'FR-16(7)(v)-12 DIST Energy'!P370+'FR-16(7)(v)-13 DIST Cust'!P370","v":0},{"$f":"'FR-16(7)(v)-3 PROD Demand'!Q370+'FR-16(7)(v)-4 PROD Energy'!Q370+'FR-16(7)(v)-5 PROD Cust'!Q370+'FR-16(7)(v)-7 TRANS Demand'!Q370+'FR-16(7)(v)-8 TRANS Energy'!Q370+'FR-16(7)(v)-9 TRANS Cust'!Q370+'FR-16(7)(v)-11 DIST Demand'!Q370+'FR-16(7)(v)-12 DIST Energy'!Q370+'FR-16(7)(v)-13 DIST Cust'!Q370","v":0},{"$f":"SUM(G370:Q370)","v":0},{"$f":"F370-R370","v":0}]
[36,null,"TRANSMISSION","T129",null,{"$f":"'FR-16(7)(v)-1 Functional'!F371","v":0},{"$f":"'FR-16(7)(v)-3 PROD Demand'!G371+'FR-16(7)(v)-4 PROD Energy'!G371+'FR-16(7)(v)-5 PROD Cust'!G371+'FR-16(7)(v)-7 TRANS Demand'!G371+'FR-16(7)(v)-8 TRANS Energy'!G371+'FR-16(7)(v)-9 TRANS Cust'!G371+'FR-16(7)(v)-11 DIST Demand'!G371+'FR-16(7)(v)-12 DIST Energy'!G371+'FR-16(7)(v)-13 DIST Cust'!G371","v":0},{"$f":"'FR-16(7)(v)-3 PROD Demand'!H371+'FR-16(7)(v)-4 PROD Energy'!H371+'FR-16(7)(v)-5 PROD Cust'!H371+'FR-16(7)(v)-7 TRANS Demand'!H371+'FR-16(7)(v)-8 TRANS Energy'!H371+'FR-16(7)(v)-9 TRANS Cust'!H371+'FR-16(7)(v)-11 DIST Demand'!H371+'FR-16(7)(v)-12 DIST Energy'!H371+'FR-16(7)(v)-13 DIST Cust'!H371","v":0},{"$f":"'FR-16(7)(v)-3 PROD Demand'!I371+'FR-16(7)(v)-4 PROD Energy'!I371+'FR-16(7)(v)-5 PROD Cust'!I371+'FR-16(7)(v)-7 TRANS Demand'!I371+'FR-16(7)(v)-8 TRANS Energy'!I371+'FR-16(7)(v)-9 TRANS Cust'!I371+'FR-16(7)(v)-11 DIST Demand'!I371+'FR-16(7)(v)-12 DIST Energy'!I371+'FR-16(7)(v)-13 DIST Cust'!I371","v":0},{"$f":"'FR-16(7)(v)-3 PROD Demand'!J371+'FR-16(7)(v)-4 PROD Energy'!J371+'FR-16(7)(v)-5 PROD Cust'!J371+'FR-16(7)(v)-7 TRANS Demand'!J371+'FR-16(7)(v)-8 TRANS Energy'!J371+'FR-16(7)(v)-9 TRANS Cust'!J371+'FR-16(7)(v)-11 DIST Demand'!J371+'FR-16(7)(v)-12 DIST Energy'!J371+'FR-16(7)(v)-13 DIST Cust'!J371","v":0},{"$f":"'FR-16(7)(v)-3 PROD Demand'!K371+'FR-16(7)(v)-4 PROD Energy'!K371+'FR-16(7)(v)-5 PROD Cust'!K371+'FR-16(7)(v)-7 TRANS Demand'!K371+'FR-16(7)(v)-8 TRANS Energy'!K371+'FR-16(7)(v)-9 TRANS Cust'!K371+'FR-16(7)(v)-11 DIST Demand'!K371+'FR-16(7)(v)-12 DIST Energy'!K371+'FR-16(7)(v)-13 DIST Cust'!K371","v":0},{"$f":"'FR-16(7)(v)-3 PROD Demand'!L371+'FR-16(7)(v)-4 PROD Energy'!L371+'FR-16(7)(v)-5 PROD Cust'!L371+'FR-16(7)(v)-7 TRANS Demand'!L371+'FR-16(7)(v)-8 TRANS Energy'!L371+'FR-16(7)(v)-9 TRANS Cust'!L371+'FR-16(7)(v)-11 DIST Demand'!L371+'FR-16(7)(v)-12 DIST Energy'!L371+'FR-16(7)(v)-13 DIST Cust'!L371","v":0},{"$f":"'FR-16(7)(v)-3 PROD Demand'!M371+'FR-16(7)(v)-4 PROD Energy'!M371+'FR-16(7)(v)-5 PROD Cust'!M371+'FR-16(7)(v)-7 TRANS Demand'!M371+'FR-16(7)(v)-8 TRANS Energy'!M371+'FR-16(7)(v)-9 TRANS Cust'!M371+'FR-16(7)(v)-11 DIST Demand'!M371+'FR-16(7)(v)-12 DIST Energy'!M371+'FR-16(7)(v)-13 DIST Cust'!M371","v":0},{"$f":"'FR-16(7)(v)-3 PROD Demand'!N371+'FR-16(7)(v)-4 PROD Energy'!N371+'FR-16(7)(v)-5 PROD Cust'!N371+'FR-16(7)(v)-7 TRANS Demand'!N371+'FR-16(7)(v)-8 TRANS Energy'!N371+'FR-16(7)(v)-9 TRANS Cust'!N371+'FR-16(7)(v)-11 DIST Demand'!N371+'FR-16(7)(v)-12 DIST Energy'!N371+'FR-16(7)(v)-13 DIST Cust'!N371","v":0},{"$f":"'FR-16(7)(v)-3 PROD Demand'!O371+'FR-16(7)(v)-4 PROD Energy'!O371+'FR-16(7)(v)-5 PROD Cust'!O371+'FR-16(7)(v)-7 TRANS Demand'!O371+'FR-16(7)(v)-8 TRANS Energy'!O371+'FR-16(7)(v)-9 TRANS Cust'!O371+'FR-16(7)(v)-11 DIST Demand'!O371+'FR-16(7)(v)-12 DIST Energy'!O371+'FR-16(7)(v)-13 DIST Cust'!O371","v":0},{"$f":"'FR-16(7)(v)-3 PROD Demand'!P371+'FR-16(7)(v)-4 PROD Energy'!P371+'FR-16(7)(v)-5 PROD Cust'!P371+'FR-16(7)(v)-7 TRANS Demand'!P371+'FR-16(7)(v)-8 TRANS Energy'!P371+'FR-16(7)(v)-9 TRANS Cust'!P371+'FR-16(7)(v)-11 DIST Demand'!P371+'FR-16(7)(v)-12 DIST Energy'!P371+'FR-16(7)(v)-13 DIST Cust'!P371","v":0},{"$f":"'FR-16(7)(v)-3 PROD Demand'!Q371+'FR-16(7)(v)-4 PROD Energy'!Q371+'FR-16(7)(v)-5 PROD Cust'!Q371+'FR-16(7)(v)-7 TRANS Demand'!Q371+'FR-16(7)(v)-8 TRANS Energy'!Q371+'FR-16(7)(v)-9 TRANS Cust'!Q371+'FR-16(7)(v)-11 DIST Demand'!Q371+'FR-16(7)(v)-12 DIST Energy'!Q371+'FR-16(7)(v)-13 DIST Cust'!Q371","v":0},{"$f":"SUM(G371:Q371)","v":0},{"$f":"F371-R371","v":0}]
[37,null,"DISTRIBUTION",{"$f":"'FR-16(7)(v)-1 Functional'!D372","v":"D149"},null,{"$f":"'FR-16(7)(v)-1 Functional'!F372","v":0},{"$f":"'FR-16(7)(v)-3 PROD Demand'!G372+'FR-16(7)(v)-4 PROD Energy'!G372+'FR-16(7)(v)-5 PROD Cust'!G372+'FR-16(7)(v)-7 TRANS Demand'!G372+'FR-16(7)(v)-8 TRANS Energy'!G372+'FR-16(7)(v)-9 TRANS Cust'!G372+'FR-16(7)(v)-11 DIST Demand'!G372+'FR-16(7)(v)-12 DIST Energy'!G372+'FR-16(7)(v)-13 DIST Cust'!G372","v":0},{"$f":"'FR-16(7)(v)-3 PROD Demand'!H372+'FR-16(7)(v)-4 PROD Energy'!H372+'FR-16(7)(v)-5 PROD Cust'!H372+'FR-16(7)(v)-7 TRANS Demand'!H372+'FR-16(7)(v)-8 TRANS Energy'!H372+'FR-16(7)(v)-9 TRANS Cust'!H372+'FR-16(7)(v)-11 DIST Demand'!H372+'FR-16(7)(v)-12 DIST Energy'!H372+'FR-16(7)(v)-13 DIST Cust'!H372","v":0},{"$f":"'FR-16(7)(v)-3 PROD Demand'!I372+'FR-16(7)(v)-4 PROD Energy'!I372+'FR-16(7)(v)-5 PROD Cust'!I372+'FR-16(7)(v)-7 TRANS Demand'!I372+'FR-16(7)(v)-8 TRANS Energy'!I372+'FR-16(7)(v)-9 TRANS Cust'!I372+'FR-16(7)(v)-11 DIST Demand'!I372+'FR-16(7)(v)-12 DIST Energy'!I372+'FR-16(7)(v)-13 DIST Cust'!I372","v":0},{"$f":"'FR-16(7)(v)-3 PROD Demand'!J372+'FR-16(7)(v)-4 PROD Energy'!J372+'FR-16(7)(v)-5 PROD Cust'!J372+'FR-16(7)(v)-7 TRANS Demand'!J372+'FR-16(7)(v)-8 TRANS Energy'!J372+'FR-16(7)(v)-9 TRANS Cust'!J372+'FR-16(7)(v)-11 DIST Demand'!J372+'FR-16(7)(v)-12 DIST Energy'!J372+'FR-16(7)(v)-13 DIST Cust'!J372","v":0},{"$f":"'FR-16(7)(v)-3 PROD Demand'!K372+'FR-16(7)(v)-4 PROD Energy'!K372+'FR-16(7)(v)-5 PROD Cust'!K372+'FR-16(7)(v)-7 TRANS Demand'!K372+'FR-16(7)(v)-8 TRANS Energy'!K372+'FR-16(7)(v)-9 TRANS Cust'!K372+'FR-16(7)(v)-11 DIST Demand'!K372+'FR-16(7)(v)-12 DIST Energy'!K372+'FR-16(7)(v)-13 DIST Cust'!K372","v":0},{"$f":"'FR-16(7)(v)-3 PROD Demand'!L372+'FR-16(7)(v)-4 PROD Energy'!L372+'FR-16(7)(v)-5 PROD Cust'!L372+'FR-16(7)(v)-7 TRANS Demand'!L372+'FR-16(7)(v)-8 TRANS Energy'!L372+'FR-16(7)(v)-9 TRANS Cust'!L372+'FR-16(7)(v)-11 DIST Demand'!L372+'FR-16(7)(v)-12 DIST Energy'!L372+'FR-16(7)(v)-13 DIST Cust'!L372","v":0},{"$f":"'FR-16(7)(v)-3 PROD Demand'!M372+'FR-16(7)(v)-4 PROD Energy'!M372+'FR-16(7)(v)-5 PROD Cust'!M372+'FR-16(7)(v)-7 TRANS Demand'!M372+'FR-16(7)(v)-8 TRANS Energy'!M372+'FR-16(7)(v)-9 TRANS Cust'!M372+'FR-16(7)(v)-11 DIST Demand'!M372+'FR-16(7)(v)-12 DIST Energy'!M372+'FR-16(7)(v)-13 DIST Cust'!M372","v":0},{"$f":"'FR-16(7)(v)-3 PROD Demand'!N372+'FR-16(7)(v)-4 PROD Energy'!N372+'FR-16(7)(v)-5 PROD Cust'!N372+'FR-16(7)(v)-7 TRANS Demand'!N372+'FR-16(7)(v)-8 TRANS Energy'!N372+'FR-16(7)(v)-9 TRANS Cust'!N372+'FR-16(7)(v)-11 DIST Demand'!N372+'FR-16(7)(v)-12 DIST Energy'!N372+'FR-16(7)(v)-13 DIST Cust'!N372","v":0},{"$f":"'FR-16(7)(v)-3 PROD Demand'!O372+'FR-16(7)(v)-4 PROD Energy'!O372+'FR-16(7)(v)-5 PROD Cust'!O372+'FR-16(7)(v)-7 TRANS Demand'!O372+'FR-16(7)(v)-8 TRANS Energy'!O372+'FR-16(7)(v)-9 TRANS Cust'!O372+'FR-16(7)(v)-11 DIST Demand'!O372+'FR-16(7)(v)-12 DIST Energy'!O372+'FR-16(7)(v)-13 DIST Cust'!O372","v":0},{"$f":"'FR-16(7)(v)-3 PROD Demand'!P372+'FR-16(7)(v)-4 PROD Energy'!P372+'FR-16(7)(v)-5 PROD Cust'!P372+'FR-16(7)(v)-7 TRANS Demand'!P372+'FR-16(7)(v)-8 TRANS Energy'!P372+'FR-16(7)(v)-9 TRANS Cust'!P372+'FR-16(7)(v)-11 DIST Demand'!P372+'FR-16(7)(v)-12 DIST Energy'!P372+'FR-16(7)(v)-13 DIST Cust'!P372","v":0},{"$f":"'FR-16(7)(v)-3 PROD Demand'!Q372+'FR-16(7)(v)-4 PROD Energy'!Q372+'FR-16(7)(v)-5 PROD Cust'!Q372+'FR-16(7)(v)-7 TRANS Demand'!Q372+'FR-16(7)(v)-8 TRANS Energy'!Q372+'FR-16(7)(v)-9 TRANS Cust'!Q372+'FR-16(7)(v)-11 DIST Demand'!Q372+'FR-16(7)(v)-12 DIST Energy'!Q372+'FR-16(7)(v)-13 DIST Cust'!Q372","v":0},{"$f":"SUM(G372:Q372)","v":0},{"$f":"F372-R372","v":0}]
[38,null,"COMMON",{"$f":"'FR-16(7)(v)-1 Functional'!D373","v":"C129"},null,{"$f":"'FR-16(7)(v)-1 Functional'!F373","v":0},{"$f":"'FR-16(7)(v)-3 PROD Demand'!G373+'FR-16(7)(v)-4 PROD Energy'!G373+'FR-16(7)(v)-5 PROD Cust'!G373+'FR-16(7)(v)-7 TRANS Demand'!G373+'FR-16(7)(v)-8 TRANS Energy'!G373+'FR-16(7)(v)-9 TRANS Cust'!G373+'FR-16(7)(v)-11 DIST Demand'!G373+'FR-16(7)(v)-12 DIST Energy'!G373+'FR-16(7)(v)-13 DIST Cust'!G373","v":0},{"$f":"'FR-16(7)(v)-3 PROD Demand'!H373+'FR-16(7)(v)-4 PROD Energy'!H373+'FR-16(7)(v)-5 PROD Cust'!H373+'FR-16(7)(v)-7 TRANS Demand'!H373+'FR-16(7)(v)-8 TRANS Energy'!H373+'FR-16(7)(v)-9 TRANS Cust'!H373+'FR-16(7)(v)-11 DIST Demand'!H373+'FR-16(7)(v)-12 DIST Energy'!H373+'FR-16(7)(v)-13 DIST Cust'!H373","v":0},{"$f":"'FR-16(7)(v)-3 PROD Demand'!I373+'FR-16(7)(v)-4 PROD Energy'!I373+'FR-16(7)(v)-5 PROD Cust'!I373+'FR-16(7)(v)-7 TRANS Demand'!I373+'FR-16(7)(v)-8 TRANS Energy'!I373+'FR-16(7)(v)-9 TRANS Cust'!I373+'FR-16(7)(v)-11 DIST Demand'!I373+'FR-16(7)(v)-12 DIST Energy'!I373+'FR-16(7)(v)-13 DIST Cust'!I373","v":0},{"$f":"'FR-16(7)(v)-3 PROD Demand'!J373+'FR-16(7)(v)-4 PROD Energy'!J373+'FR-16(7)(v)-5 PROD Cust'!J373+'FR-16(7)(v)-7 TRANS Demand'!J373+'FR-16(7)(v)-8 TRANS Energy'!J373+'FR-16(7)(v)-9 TRANS Cust'!J373+'FR-16(7)(v)-11 DIST Demand'!J373+'FR-16(7)(v)-12 DIST Energy'!J373+'FR-16(7)(v)-13 DIST Cust'!J373","v":0},{"$f":"'FR-16(7)(v)-3 PROD Demand'!K373+'FR-16(7)(v)-4 PROD Energy'!K373+'FR-16(7)(v)-5 PROD Cust'!K373+'FR-16(7)(v)-7 TRANS Demand'!K373+'FR-16(7)(v)-8 TRANS Energy'!K373+'FR-16(7)(v)-9 TRANS Cust'!K373+'FR-16(7)(v)-11 DIST Demand'!K373+'FR-16(7)(v)-12 DIST Energy'!K373+'FR-16(7)(v)-13 DIST Cust'!K373","v":0},{"$f":"'FR-16(7)(v)-3 PROD Demand'!L373+'FR-16(7)(v)-4 PROD Energy'!L373+'FR-16(7)(v)-5 PROD Cust'!L373+'FR-16(7)(v)-7 TRANS Demand'!L373+'FR-16(7)(v)-8 TRANS Energy'!L373+'FR-16(7)(v)-9 TRANS Cust'!L373+'FR-16(7)(v)-11 DIST Demand'!L373+'FR-16(7)(v)-12 DIST Energy'!L373+'FR-16(7)(v)-13 DIST Cust'!L373","v":0},{"$f":"'FR-16(7)(v)-3 PROD Demand'!M373+'FR-16(7)(v)-4 PROD Energy'!M373+'FR-16(7)(v)-5 PROD Cust'!M373+'FR-16(7)(v)-7 TRANS Demand'!M373+'FR-16(7)(v)-8 TRANS Energy'!M373+'FR-16(7)(v)-9 TRANS Cust'!M373+'FR-16(7)(v)-11 DIST Demand'!M373+'FR-16(7)(v)-12 DIST Energy'!M373+'FR-16(7)(v)-13 DIST Cust'!M373","v":0},{"$f":"'FR-16(7)(v)-3 PROD Demand'!N373+'FR-16(7)(v)-4 PROD Energy'!N373+'FR-16(7)(v)-5 PROD Cust'!N373+'FR-16(7)(v)-7 TRANS Demand'!N373+'FR-16(7)(v)-8 TRANS Energy'!N373+'FR-16(7)(v)-9 TRANS Cust'!N373+'FR-16(7)(v)-11 DIST Demand'!N373+'FR-16(7)(v)-12 DIST Energy'!N373+'FR-16(7)(v)-13 DIST Cust'!N373","v":0},{"$f":"'FR-16(7)(v)-3 PROD Demand'!O373+'FR-16(7)(v)-4 PROD Energy'!O373+'FR-16(7)(v)-5 PROD Cust'!O373+'FR-16(7)(v)-7 TRANS Demand'!O373+'FR-16(7)(v)-8 TRANS Energy'!O373+'FR-16(7)(v)-9 TRANS Cust'!O373+'FR-16(7)(v)-11 DIST Demand'!O373+'FR-16(7)(v)-12 DIST Energy'!O373+'FR-16(7)(v)-13 DIST Cust'!O373","v":0},{"$f":"'FR-16(7)(v)-3 PROD Demand'!P373+'FR-16(7)(v)-4 PROD Energy'!P373+'FR-16(7)(v)-5 PROD Cust'!P373+'FR-16(7)(v)-7 TRANS Demand'!P373+'FR-16(7)(v)-8 TRANS Energy'!P373+'FR-16(7)(v)-9 TRANS Cust'!P373+'FR-16(7)(v)-11 DIST Demand'!P373+'FR-16(7)(v)-12 DIST Energy'!P373+'FR-16(7)(v)-13 DIST Cust'!P373","v":0},{"$f":"'FR-16(7)(v)-3 PROD Demand'!Q373+'FR-16(7)(v)-4 PROD Energy'!Q373+'FR-16(7)(v)-5 PROD Cust'!Q373+'FR-16(7)(v)-7 TRANS Demand'!Q373+'FR-16(7)(v)-8 TRANS Energy'!Q373+'FR-16(7)(v)-9 TRANS Cust'!Q373+'FR-16(7)(v)-11 DIST Demand'!Q373+'FR-16(7)(v)-12 DIST Energy'!Q373+'FR-16(7)(v)-13 DIST Cust'!Q373","v":0},{"$f":"SUM(G373:Q373)","v":0},{"$f":"F373-R373","v":0}]
[39,null,"GENERAL",{"$f":"'FR-16(7)(v)-1 Functional'!D374","v":"G129"},null,{"$f":"'FR-16(7)(v)-1 Functional'!F374","v":0},{"$f":"'FR-16(7)(v)-3 PROD Demand'!G374+'FR-16(7)(v)-4 PROD Energy'!G374+'FR-16(7)(v)-5 PROD Cust'!G374+'FR-16(7)(v)-7 TRANS Demand'!G374+'FR-16(7)(v)-8 TRANS Energy'!G374+'FR-16(7)(v)-9 TRANS Cust'!G374+'FR-16(7)(v)-11 DIST Demand'!G374+'FR-16(7)(v)-12 DIST Energy'!G374+'FR-16(7)(v)-13 DIST Cust'!G374","v":0},{"$f":"'FR-16(7)(v)-3 PROD Demand'!H374+'FR-16(7)(v)-4 PROD Energy'!H374+'FR-16(7)(v)-5 PROD Cust'!H374+'FR-16(7)(v)-7 TRANS Demand'!H374+'FR-16(7)(v)-8 TRANS Energy'!H374+'FR-16(7)(v)-9 TRANS Cust'!H374+'FR-16(7)(v)-11 DIST Demand'!H374+'FR-16(7)(v)-12 DIST Energy'!H374+'FR-16(7)(v)-13 DIST Cust'!H374","v":0},{"$f":"'FR-16(7)(v)-3 PROD Demand'!I374+'FR-16(7)(v)-4 PROD Energy'!I374+'FR-16(7)(v)-5 PROD Cust'!I374+'FR-16(7)(v)-7 TRANS Demand'!I374+'FR-16(7)(v)-8 TRANS Energy'!I374+'FR-16(7)(v)-9 TRANS Cust'!I374+'FR-16(7)(v)-11 DIST Demand'!I374+'FR-16(7)(v)-12 DIST Energy'!I374+'FR-16(7)(v)-13 DIST Cust'!I374","v":0},{"$f":"'FR-16(7)(v)-3 PROD Demand'!J374+'FR-16(7)(v)-4 PROD Energy'!J374+'FR-16(7)(v)-5 PROD Cust'!J374+'FR-16(7)(v)-7 TRANS Demand'!J374+'FR-16(7)(v)-8 TRANS Energy'!J374+'FR-16(7)(v)-9 TRANS Cust'!J374+'FR-16(7)(v)-11 DIST Demand'!J374+'FR-16(7)(v)-12 DIST Energy'!J374+'FR-16(7)(v)-13 DIST Cust'!J374","v":0},{"$f":"'FR-16(7)(v)-3 PROD Demand'!K374+'FR-16(7)(v)-4 PROD Energy'!K374+'FR-16(7)(v)-5 PROD Cust'!K374+'FR-16(7)(v)-7 TRANS Demand'!K374+'FR-16(7)(v)-8 TRANS Energy'!K374+'FR-16(7)(v)-9 TRANS Cust'!K374+'FR-16(7)(v)-11 DIST Demand'!K374+'FR-16(7)(v)-12 DIST Energy'!K374+'FR-16(7)(v)-13 DIST Cust'!K374","v":0},{"$f":"'FR-16(7)(v)-3 PROD Demand'!L374+'FR-16(7)(v)-4 PROD Energy'!L374+'FR-16(7)(v)-5 PROD Cust'!L374+'FR-16(7)(v)-7 TRANS Demand'!L374+'FR-16(7)(v)-8 TRANS Energy'!L374+'FR-16(7)(v)-9 TRANS Cust'!L374+'FR-16(7)(v)-11 DIST Demand'!L374+'FR-16(7)(v)-12 DIST Energy'!L374+'FR-16(7)(v)-13 DIST Cust'!L374","v":0},{"$f":"'FR-16(7)(v)-3 PROD Demand'!M374+'FR-16(7)(v)-4 PROD Energy'!M374+'FR-16(7)(v)-5 PROD Cust'!M374+'FR-16(7)(v)-7 TRANS Demand'!M374+'FR-16(7)(v)-8 TRANS Energy'!M374+'FR-16(7)(v)-9 TRANS Cust'!M374+'FR-16(7)(v)-11 DIST Demand'!M374+'FR-16(7)(v)-12 DIST Energy'!M374+'FR-16(7)(v)-13 DIST Cust'!M374","v":0},{"$f":"'FR-16(7)(v)-3 PROD Demand'!N374+'FR-16(7)(v)-4 PROD Energy'!N374+'FR-16(7)(v)-5 PROD Cust'!N374+'FR-16(7)(v)-7 TRANS Demand'!N374+'FR-16(7)(v)-8 TRANS Energy'!N374+'FR-16(7)(v)-9 TRANS Cust'!N374+'FR-16(7)(v)-11 DIST Demand'!N374+'FR-16(7)(v)-12 DIST Energy'!N374+'FR-16(7)(v)-13 DIST Cust'!N374","v":0},{"$f":"'FR-16(7)(v)-3 PROD Demand'!O374+'FR-16(7)(v)-4 PROD Energy'!O374+'FR-16(7)(v)-5 PROD Cust'!O374+'FR-16(7)(v)-7 TRANS Demand'!O374+'FR-16(7)(v)-8 TRANS Energy'!O374+'FR-16(7)(v)-9 TRANS Cust'!O374+'FR-16(7)(v)-11 DIST Demand'!O374+'FR-16(7)(v)-12 DIST Energy'!O374+'FR-16(7)(v)-13 DIST Cust'!O374","v":0},{"$f":"'FR-16(7)(v)-3 PROD Demand'!P374+'FR-16(7)(v)-4 PROD Energy'!P374+'FR-16(7)(v)-5 PROD Cust'!P374+'FR-16(7)(v)-7 TRANS Demand'!P374+'FR-16(7)(v)-8 TRANS Energy'!P374+'FR-16(7)(v)-9 TRANS Cust'!P374+'FR-16(7)(v)-11 DIST Demand'!P374+'FR-16(7)(v)-12 DIST Energy'!P374+'FR-16(7)(v)-13 DIST Cust'!P374","v":0},{"$f":"'FR-16(7)(v)-3 PROD Demand'!Q374+'FR-16(7)(v)-4 PROD Energy'!Q374+'FR-16(7)(v)-5 PROD Cust'!Q374+'FR-16(7)(v)-7 TRANS Demand'!Q374+'FR-16(7)(v)-8 TRANS Energy'!Q374+'FR-16(7)(v)-9 TRANS Cust'!Q374+'FR-16(7)(v)-11 DIST Demand'!Q374+'FR-16(7)(v)-12 DIST Energy'!Q374+'FR-16(7)(v)-13 DIST Cust'!Q374","v":0},{"$f":"SUM(G374:Q374)","v":0},{"$f":"F374-R374","v":0}]
[40,null,"TOTAL CONSTRUCTION WORK IN PROGRESS",null,null,{"$f":"SUM(F370:F374)","v":0},{"$f":"SUM(G370:G374)","v":0},0,0,{"$f":"SUM(J370:J374)","v":0},0,0,0,0,0,0,0,0,0]
[41]
[42,{"$f":"'FR-16(7)(v)-1 Functional'!B377","v":"TOTAL ADDITIVE RATE BASE ADJUSTMENTS"},null,null,null,{"$f":"F361+F367+F375","v":20837560},{"$f":"G361+G367+G375","v":13014061},{"$f":"H361+H367+H375","v":3865745},{"$f":"I361+I367+I375","v":20157},{"$f":"J361+J367+J375","v":68340},1396,1886148,1265100,62200,491815,160654,{"$f":"Q361+Q367+Q375","v":1944},{"$f":"R361+R367+R375","v":20837560},{"$f":"S361+S367","v":0}]
[]
[{"$f":"co_name","v":"DUKE ENERGY KENTUCKY, INC."},null,null,null,null,null,null,null,null,null,null,null,null,null,null,null,null,{"$f":"R1","v":"FR-16(7)(v)-14"}]
[{"$f":"$A$2","v":"TOTAL CLASS ALLOCATED - ELECTRIC COST OF SERVICE"},null,null,null,null,null,null,null,null,null,null,null,null,null,null,null,null,{"$f":"R2","v":"WITNESS RESPONSIBLE:"}]
[{"$f":"case_name","v":"CASE NO: 2019-00271"},null,null,null,null,null,null,null,null,null,null,null,null,null,null,null,null,{"$f":"Witness","v":"JAMES E. ZIOLKOWSKI"}]
[{"$f":"data_filing","v":"DATA: 12 MONTHS ACTUAL  & 0 MONTHS ESTIMATED"},null,null,null,null,null,null,null,null,null,null,null,null,null,null,null,null,{"$f":"\"PAGE \"&Pages2-8&\" OF \"&Pages2","v":"PAGE 7 OF 15"}]
[{"$f":"type","v":"TYPE OF FILING: \"X\" ORIGINAL   UPDATED    REVISED  "}]
[]
[null,null,null,null,null,{"$f":"F$7","v":"TOTAL"},null,{"$f":"H$7","v":"DS"},{"$f":"I$7","v":"GSFL"},{"$f":"J$7","v":"EH"},{"$f":"K$7","v":"SP"},"DT SEC","DT PRI","DP","TT",null,"OTHER"]
["LINE",null,null,null,null,{"$f":"F$8","v":"CLASS"},{"$f":"G$8","v":"RS"},{"$f":"H$8","v":"SECONDARY"},{"$f":"I$8","v":"SECONDARY"},{"$f":"J$8","v":"SECONDARY"},{"$f":"K$8","v":"SECONDARY"},"SECONDARY","PRIMARY","PRIMARY","TRANSMISSION","LT","WATER",{"$f":"R8","v":"TOTAL"},"ALL"]
["NO.","WORKING CAPITAL",null,"ALLO",null,{"$f":"F$9","v":"ALLOCATED"},{"$f":"G$9","v":"RESIDENTIAL"},{"$f":"H$9","v":"DISTRIBUTION"},{"$f":"I$9","v":"DISTRIBUTION"},{"$f":"J$9","v":"DISTRIBUTION"},{"$f":"K$9","v":"DISTRIBUTION"},"DISTRIBUTION","DISTRIBUTION","DISTRIBUTION","TIME OF DAY","LIGHTING","PUMPING",{"$f":"R9","v":"AT ISSUE"},"OTHER"]
[null,null,"Schedule 5.2",null,null,null,{"$f":"G$10","v":3},{"$f":"H$10","v":4},{"$f":"I$10","v":5},{"$f":"J$10","v":6},{"$f":"K$10","v":7},8,9,10,11,12,13,null," "]
[]
[1,"NET ORIGINAL COST RATE BASE",null,null,null,{"$f":"F277-F324+F377","v":892949297},444024868,228576753,1123863,{"$f":"J277-J324+J377","v":4452237},67205,110431373,72803851,3573194,23237416,4561875,96662,892949297,0]
[2]
[3,"WORKING CAPITAL"]
[4]
[5,"PLANT MATERIALS & SUPPLIES"]
[6,null,"OTHER MATERIALS & SUPPLIES","PD29",null,{"$f":"'FR-16(7)(v)-1 Functional'!F395","v":18759249},{"$f":"'FR-16(7)(v)-3 PROD Demand'!G395+'FR-16(7)(v)-4 PROD Energy'!G395+'FR-16(7)(v)-5 PROD Cust'!G395+'FR-16(7)(v)-7 TRANS Demand'!G395+'FR-16(7)(v)-8 TRANS Energy'!G395+'FR-16(7)(v)-9 TRANS Cust'!G395+'FR-16(7)(v)-11 DIST Demand'!G395+'FR-16(7)(v)-12 DIST Energy'!G395+'FR-16(7)(v)-13 DIST Cust'!G395","v":10329953},{"$f":"'FR-16(7)(v)-3 PROD Demand'!H395+'FR-16(7)(v)-4 PROD Energy'!H395+'FR-16(7)(v)-5 PROD Cust'!H395+'FR-16(7)(v)-7 TRANS Demand'!H395+'FR-16(7)(v)-8 TRANS Energy'!H395+'FR-16(7)(v)-9 TRANS Cust'!H395+'FR-16(7)(v)-11 DIST Demand'!H395+'FR-16(7)(v)-12 DIST Energy'!H395+'FR-16(7)(v)-13 DIST Cust'!H395","v":4377655},{"$f":"'FR-16(7)(v)-3 PROD Demand'!I395+'FR-16(7)(v)-4 PROD Energy'!I395+'FR-16(7)(v)-5 PROD Cust'!I395+'FR-16(7)(v)-7 TRANS Demand'!I395+'FR-16(7)(v)-8 TRANS Energy'!I395+'FR-16(7)(v)-9 TRANS Cust'!I395+'FR-16(7)(v)-11 DIST Demand'!I395+'FR-16(7)(v)-12 DIST Energy'!I395+'FR-16(7)(v)-13 DIST Cust'!I395","v":24093},{"$f":"'FR-16(7)(v)-3 PROD Demand'!J395+'FR-16(7)(v)-4 PROD Energy'!J395+'FR-16(7)(v)-5 PROD Cust'!J395+'FR-16(7)(v)-7 TRANS Demand'!J395+'FR-16(7)(v)-8 TRANS Energy'!J395+'FR-16(7)(v)-9 TRANS Cust'!J395+'FR-16(7)(v)-11 DIST Demand'!J395+'FR-16(7)(v)-12 DIST Energy'!J395+'FR-16(7)(v)-13 DIST Cust'!J395","v":68854},{"$f":"'FR-16(7)(v)-3 PROD Demand'!K395+'FR-16(7)(v)-4 PROD Energy'!K395+'FR-16(7)(v)-5 PROD Cust'!K395+'FR-16(7)(v)-7 TRANS Demand'!K395+'FR-16(7)(v)-8 TRANS Energy'!K395+'FR-16(7)(v)-9 TRANS Cust'!K395+'FR-16(7)(v)-11 DIST Demand'!K395+'FR-16(7)(v)-12 DIST Energy'!K395+'FR-16(7)(v)-13 DIST Cust'!K395","v":1897},{"$f":"'FR-16(7)(v)-3 PROD Demand'!L395+'FR-16(7)(v)-4 PROD Energy'!L395+'FR-16(7)(v)-5 PROD Cust'!L395+'FR-16(7)(v)-7 TRANS Demand'!L395+'FR-16(7)(v)-8 TRANS Energy'!L395+'FR-16(7)(v)-9 TRANS Cust'!L395+'FR-16(7)(v)-11 DIST Demand'!L395+'FR-16(7)(v)-12 DIST Energy'!L395+'FR-16(7)(v)-13 DIST Cust'!L395","v":1929916},{"$f":"'FR-16(7)(v)-3 PROD Demand'!M395+'FR-16(7)(v)-4 PROD Energy'!M395+'FR-16(7)(v)-5 PROD Cust'!M395+'FR-16(7)(v)-7 TRANS Demand'!M395+'FR-16(7)(v)-8 TRANS Energy'!M395+'FR-16(7)(v)-9 TRANS Cust'!M395+'FR-16(7)(v)-11 DIST Demand'!M395+'FR-16(7)(v)-12 DIST Energy'!M395+'FR-16(7)(v)-13 DIST Cust'!M395","v":1284683},{"$f":"'FR-16(7)(v)-3 PROD Demand'!N395+'FR-16(7)(v)-4 PROD Energy'!N395+'FR-16(7)(v)-5 PROD Cust'!N395+'FR-16(7)(v)-7 TRANS Demand'!N395+'FR-16(7)(v)-8 TRANS Energy'!N395+'FR-16(7)(v)-9 TRANS Cust'!N395+'FR-16(7)(v)-11 DIST Demand'!N395+'FR-16(7)(v)-12 DIST Energy'!N395+'FR-16(7)(v)-13 DIST Cust'!N395","v":62379},{"$f":"'FR-16(7)(v)-3 PROD Demand'!O395+'FR-16(7)(v)-4 PROD Energy'!O395+'FR-16(7)(v)-5 PROD Cust'!O395+'FR-16(7)(v)-7 TRANS Demand'!O395+'FR-16(7)(v)-8 TRANS Energy'!O395+'FR-16(7)(v)-9 TRANS Cust'!O395+'FR-16(7)(v)-11 DIST Demand'!O395+'FR-16(7)(v)-12 DIST Energy'!O395+'FR-16(7)(v)-13 DIST Cust'!O395","v":628279},{"$f":"'FR-16(7)(v)-3 PROD Demand'!P395+'FR-16(7)(v)-4 PROD Energy'!P395+'FR-16(7)(v)-5 PROD Cust'!P395+'FR-16(7)(v)-7 TRANS Demand'!P395+'FR-16(7)(v)-8 TRANS Energy'!P395+'FR-16(7)(v)-9 TRANS Cust'!P395+'FR-16(7)(v)-11 DIST Demand'!P395+'FR-16(7)(v)-12 DIST Energy'!P395+'FR-16(7)(v)-13 DIST Cust'!P395","v":49361},{"$f":"'FR-16(7)(v)-3 PROD Demand'!Q395+'FR-16(7)(v)-4 PROD Energy'!Q395+'FR-16(7)(v)-5 PROD Cust'!Q395+'FR-16(7)(v)-7 TRANS Demand'!Q395+'FR-16(7)(v)-8 TRANS Energy'!Q395+'FR-16(7)(v)-9 TRANS Cust'!Q395+'FR-16(7)(v)-11 DIST Demand'!Q395+'FR-16(7)(v)-12 DIST Energy'!Q395+'FR-16(7)(v)-13 DIST Cust'!Q395","v":2179},{"$f":"SUM(G395:Q395)","v":18759249},{"$f":"F395-R395","v":0}]
[7,null,{"$f":"'FR-16(7)(v)-1 Functional'!C396","v":"FUEL"},{"$f":"'FR-16(7)(v)-1 Functional'!D396","v":"K301"},null,{"$f":"'FR-16(7)(v)-1 Functional'!F396","v":19518014},{"$f":"'FR-16(7)(v)-3 PROD Demand'!G396+'FR-16(7)(v)-4 PROD Energy'!G396+'FR-16(7)(v)-5 PROD Cust'!G396+'FR-16(7)(v)-7 TRANS Demand'!G396+'FR-16(7)(v)-8 TRANS Energy'!G396+'FR-16(7)(v)-9 TRANS Cust'!G396+'FR-16(7)(v)-11 DIST Demand'!G396+'FR-16(7)(v)-12 DIST Energy'!G396+'FR-16(7)(v)-13 DIST Cust'!G396","v":7367269},{"$f":"'FR-16(7)(v)-3 PROD Demand'!H396+'FR-16(7)(v)-4 PROD Energy'!H396+'FR-16(7)(v)-5 PROD Cust'!H396+'FR-16(7)(v)-7 TRANS Demand'!H396+'FR-16(7)(v)-8 TRANS Energy'!H396+'FR-16(7)(v)-9 TRANS Cust'!H396+'FR-16(7)(v)-11 DIST Demand'!H396+'FR-16(7)(v)-12 DIST Energy'!H396+'FR-16(7)(v)-13 DIST Cust'!H396","v":5256592},{"$f":"'FR-16(7)(v)-3 PROD Demand'!I396+'FR-16(7)(v)-4 PROD Energy'!I396+'FR-16(7)(v)-5 PROD Cust'!I396+'FR-16(7)(v)-7 TRANS Demand'!I396+'FR-16(7)(v)-8 TRANS Energy'!I396+'FR-16(7)(v)-9 TRANS Cust'!I396+'FR-16(7)(v)-11 DIST Demand'!I396+'FR-16(7)(v)-12 DIST Energy'!I396+'FR-16(7)(v)-13 DIST Cust'!I396","v":29472},{"$f":"'FR-16(7)(v)-3 PROD Demand'!J396+'FR-16(7)(v)-4 PROD Energy'!J396+'FR-16(7)(v)-5 PROD Cust'!J396+'FR-16(7)(v)-7 TRANS Demand'!J396+'FR-16(7)(v)-8 TRANS Energy'!J396+'FR-16(7)(v)-9 TRANS Cust'!J396+'FR-16(7)(v)-11 DIST Demand'!J396+'FR-16(7)(v)-12 DIST Energy'!J396+'FR-16(7)(v)-13 DIST Cust'!J396","v":83537},{"$f":"'FR-16(7)(v)-3 PROD Demand'!K396+'FR-16(7)(v)-4 PROD Energy'!K396+'FR-16(7)(v)-5 PROD Cust'!K396+'FR-16(7)(v)-7 TRANS Demand'!K396+'FR-16(7)(v)-8 TRANS Energy'!K396+'FR-16(7)(v)-9 TRANS Cust'!K396+'FR-16(7)(v)-11 DIST Demand'!K396+'FR-16(7)(v)-12 DIST Energy'!K396+'FR-16(7)(v)-13 DIST Cust'!K396","v":1366},{"$f":"'FR-16(7)(v)-3 PROD Demand'!L396+'FR-16(7)(v)-4 PROD Energy'!L396+'FR-16(7)(v)-5 PROD Cust'!L396+'FR-16(7)(v)-7 TRANS Demand'!L396+'FR-16(7)(v)-8 TRANS Energy'!L396+'FR-16(7)(v)-9 TRANS Cust'!L396+'FR-16(7)(v)-11 DIST Demand'!L396+'FR-16(7)(v)-12 DIST Energy'!L396+'FR-16(7)(v)-13 DIST Cust'!L396","v":3220667},{"$f":"'FR-16(7)(v)-3 PROD Demand'!M396+'FR-16(7)(v)-4 PROD Energy'!M396+'FR-16(7)(v)-5 PROD Cust'!M396+'FR-16(7)(v)-7 TRANS Demand'!M396+'FR-16(7)(v)-8 TRANS Energy'!M396+'FR-16(7)(v)-9 TRANS Cust'!M396+'FR-16(7)(v)-11 DIST Demand'!M396+'FR-16(7)(v)-12 DIST Energy'!M396+'FR-16(7)(v)-13 DIST Cust'!M396","v":2236960},{"$f":"'FR-16(7)(v)-3 PROD Demand'!N396+'FR-16(7)(v)-4 PROD Energy'!N396+'FR-16(7)(v)-5 PROD Cust'!N396+'FR-16(7)(v)-7 TRANS Demand'!N396+'FR-16(7)(v)-8 TRANS Energy'!N396+'FR-16(7)(v)-9 TRANS Cust'!N396+'FR-16(7)(v)-11 DIST Demand'!N396+'FR-16(7)(v)-12 DIST Energy'!N396+'FR-16(7)(v)-13 DIST Cust'!N396","v":104812},{"$f":"'FR-16(7)(v)-3 PROD Demand'!O396+'FR-16(7)(v)-4 PROD Energy'!O396+'FR-16(7)(v)-5 PROD Cust'!O396+'FR-16(7)(v)-7 TRANS Demand'!O396+'FR-16(7)(v)-8 TRANS Energy'!O396+'FR-16(7)(v)-9 TRANS Cust'!O396+'FR-16(7)(v)-11 DIST Demand'!O396+'FR-16(7)(v)-12 DIST Energy'!O396+'FR-16(7)(v)-13 DIST Cust'!O396","v":1130093},{"$f":"'FR-16(7)(v)-3 PROD Demand'!P396+'FR-16(7)(v)-4 PROD Energy'!P396+'FR-16(7)(v)-5 PROD Cust'!P396+'FR-16(7)(v)-7 TRANS Demand'!P396+'FR-16(7)(v)-8 TRANS Energy'!P396+'FR-16(7)(v)-9 TRANS Cust'!P396+'FR-16(7)(v)-11 DIST Demand'!P396+'FR-16(7)(v)-12 DIST Energy'!P396+'FR-16(7)(v)-13 DIST Cust'!P396","v":85099},{"$f":"'FR-16(7)(v)-3 PROD Demand'!Q396+'FR-16(7)(v)-4 PROD Energy'!Q396+'FR-16(7)(v)-5 PROD Cust'!Q396+'FR-16(7)(v)-7 TRANS Demand'!Q396+'FR-16(7)(v)-8 TRANS Energy'!Q396+'FR-16(7)(v)-9 TRANS Cust'!Q396+'FR-16(7)(v)-11 DIST Demand'!Q396+'FR-16(7)(v)-12 DIST Energy'!Q396+'FR-16(7)(v)-13 DIST Cust'!Q396","v":2147},{"$f":"SUM(G396:Q396)","v":19518014},{"$f":"F396-R396","v":0}]
[8,null,{"$f":"'FR-16(7)(v)-1 Functional'!C397","v":"EMISSION ALLOWANCES"},{"$f":"'FR-16(7)(v)-1 Functional'!D397","v":"K301"},null,{"$f":"'FR-16(7)(v)-1 Functional'!F397","v":0},{"$f":"'FR-16(7)(v)-3 PROD Demand'!G397+'FR-16(7)(v)-4 PROD Energy'!G397+'FR-16(7)(v)-5 PROD Cust'!G397+'FR-16(7)(v)-7 TRANS Demand'!G397+'FR-16(7)(v)-8 TRANS Energy'!G397+'FR-16(7)(v)-9 TRANS Cust'!G397+'FR-16(7)(v)-11 DIST Demand'!G397+'FR-16(7)(v)-12 DIST Energy'!G397+'FR-16(7)(v)-13 DIST Cust'!G397","v":0},{"$f":"'FR-16(7)(v)-3 PROD Demand'!H397+'FR-16(7)(v)-4 PROD Energy'!H397+'FR-16(7)(v)-5 PROD Cust'!H397+'FR-16(7)(v)-7 TRANS Demand'!H397+'FR-16(7)(v)-8 TRANS Energy'!H397+'FR-16(7)(v)-9 TRANS Cust'!H397+'FR-16(7)(v)-11 DIST Demand'!H397+'FR-16(7)(v)-12 DIST Energy'!H397+'FR-16(7)(v)-13 DIST Cust'!H397","v":0},{"$f":"'FR-16(7)(v)-3 PROD Demand'!I397+'FR-16(7)(v)-4 PROD Energy'!I397+'FR-16(7)(v)-5 PROD Cust'!I397+'FR-16(7)(v)-7 TRANS Demand'!I397+'FR-16(7)(v)-8 TRANS Energy'!I397+'FR-16(7)(v)-9 TRANS Cust'!I397+'FR-16(7)(v)-11 DIST Demand'!I397+'FR-16(7)(v)-12 DIST Energy'!I397+'FR-16(7)(v)-13 DIST Cust'!I397","v":0},{"$f":"'FR-16(7)(v)-3 PROD Demand'!J397+'FR-16(7)(v)-4 PROD Energy'!J397+'FR-16(7)(v)-5 PROD Cust'!J397+'FR-16(7)(v)-7 TRANS Demand'!J397+'FR-16(7)(v)-8 TRANS Energy'!J397+'FR-16(7)(v)-9 TRANS Cust'!J397+'FR-16(7)(v)-11 DIST Demand'!J397+'FR-16(7)(v)-12 DIST Energy'!J397+'FR-16(7)(v)-13 DIST Cust'!J397","v":0},{"$f":"'FR-16(7)(v)-3 PROD Demand'!K397+'FR-16(7)(v)-4 PROD Energy'!K397+'FR-16(7)(v)-5 PROD Cust'!K397+'FR-16(7)(v)-7 TRANS Demand'!K397+'FR-16(7)(v)-8 TRANS Energy'!K397+'FR-16(7)(v)-9 TRANS Cust'!K397+'FR-16(7)(v)-11 DIST Demand'!K397+'FR-16(7)(v)-12 DIST Energy'!K397+'FR-16(7)(v)-13 DIST Cust'!K397","v":0},{"$f":"'FR-16(7)(v)-3 PROD Demand'!L397+'FR-16(7)(v)-4 PROD Energy'!L397+'FR-16(7)(v)-5 PROD Cust'!L397+'FR-16(7)(v)-7 TRANS Demand'!L397+'FR-16(7)(v)-8 TRANS Energy'!L397+'FR-16(7)(v)-9 TRANS Cust'!L397+'FR-16(7)(v)-11 DIST Demand'!L397+'FR-16(7)(v)-12 DIST Energy'!L397+'FR-16(7)(v)-13 DIST Cust'!L397","v":0},{"$f":"'FR-16(7)(v)-3 PROD Demand'!M397+'FR-16(7)(v)-4 PROD Energy'!M397+'FR-16(7)(v)-5 PROD Cust'!M397+'FR-16(7)(v)-7 TRANS Demand'!M397+'FR-16(7)(v)-8 TRANS Energy'!M397+'FR-16(7)(v)-9 TRANS Cust'!M397+'FR-16(7)(v)-11 DIST Demand'!M397+'FR-16(7)(v)-12 DIST Energy'!M397+'FR-16(7)(v)-13 DIST Cust'!M397","v":0},{"$f":"'FR-16(7)(v)-3 PROD Demand'!N397+'FR-16(7)(v)-4 PROD Energy'!N397+'FR-16(7)(v)-5 PROD Cust'!N397+'FR-16(7)(v)-7 TRANS Demand'!N397+'FR-16(7)(v)-8 TRANS Energy'!N397+'FR-16(7)(v)-9 TRANS Cust'!N397+'FR-16(7)(v)-11 DIST Demand'!N397+'FR-16(7)(v)-12 DIST Energy'!N397+'FR-16(7)(v)-13 DIST Cust'!N397","v":0},{"$f":"'FR-16(7)(v)-3 PROD Demand'!O397+'FR-16(7)(v)-4 PROD Energy'!O397+'FR-16(7)(v)-5 PROD Cust'!O397+'FR-16(7)(v)-7 TRANS Demand'!O397+'FR-16(7)(v)-8 TRANS Energy'!O397+'FR-16(7)(v)-9 TRANS Cust'!O397+'FR-16(7)(v)-11 DIST Demand'!O397+'FR-16(7)(v)-12 DIST Energy'!O397+'FR-16(7)(v)-13 DIST Cust'!O397","v":0},{"$f":"'FR-16(7)(v)-3 PROD Demand'!P397+'FR-16(7)(v)-4 PROD Energy'!P397+'FR-16(7)(v)-5 PROD Cust'!P397+'FR-16(7)(v)-7 TRANS Demand'!P397+'FR-16(7)(v)-8 TRANS Energy'!P397+'FR-16(7)(v)-9 TRANS Cust'!P397+'FR-16(7)(v)-11 DIST Demand'!P397+'FR-16(7)(v)-12 DIST Energy'!P397+'FR-16(7)(v)-13 DIST Cust'!P397","v":0},{"$f":"'FR-16(7)(v)-3 PROD Demand'!Q397+'FR-16(7)(v)-4 PROD Energy'!Q397+'FR-16(7)(v)-5 PROD Cust'!Q397+'FR-16(7)(v)-7 TRANS Demand'!Q397+'FR-16(7)(v)-8 TRANS Energy'!Q397+'FR-16(7)(v)-9 TRANS Cust'!Q397+'FR-16(7)(v)-11 DIST Demand'!Q397+'FR-16(7)(v)-12 DIST Energy'!Q397+'FR-16(7)(v)-13 DIST Cust'!Q397","v":0},{"$f":"SUM(G397:Q397)","v":0},{"$f":"F397-R397","v":0}]
[9,null,{"$f":"'FR-16(7)(v)-1 Functional'!C398","v":"  TOTAL PLANT MATS. & SUPPLIES"},null,null,{"$f":"SUM(F394:F397)","v":38277263},17697222,9634247,53565,{"$f":"SUM(J394:J397)","v":152391},3263,5150583,3521643,167191,1758372,134460,4326,38277263,0]
[10,"TOTAL MATERIALS & SUPPLIES",null,null,null,{"$f":"F398","v":38277263},17697222,9634247,53565,{"$f":"J398","v":152391},3263,5150583,3521643,167191,1758372,134460,4326,38277263,0]
[11]
[12,"PREPAYMENTS"]
[13,null,{"$f":"'FR-16(7)(v)-1 Functional'!C402","v":"INSURANCE GENERAL"},{"$f":"'FR-16(7)(v)-1 Functional'!D402","v":"NP29"},null,{"$f":"'FR-16(7)(v)-1 Functional'!F402","v":280124},{"$f":"'FR-16(7)(v)-3 PROD Demand'!G402+'FR-16(7)(v)-4 PROD Energy'!G402+'FR-16(7)(v)-5 PROD Cust'!G402+'FR-16(7)(v)-7 TRANS Demand'!G402+'FR-16(7)(v)-8 TRANS Energy'!G402+'FR-16(7)(v)-9 TRANS Cust'!G402+'FR-16(7)(v)-11 DIST Demand'!G402+'FR-16(7)(v)-12 DIST Energy'!G402+'FR-16(7)(v)-13 DIST Cust'!G402","v":138397},{"$f":"'FR-16(7)(v)-3 PROD Demand'!H402+'FR-16(7)(v)-4 PROD Energy'!H402+'FR-16(7)(v)-5 PROD Cust'!H402+'FR-16(7)(v)-7 TRANS Demand'!H402+'FR-16(7)(v)-8 TRANS Energy'!H402+'FR-16(7)(v)-9 TRANS Cust'!H402+'FR-16(7)(v)-11 DIST Demand'!H402+'FR-16(7)(v)-12 DIST Energy'!H402+'FR-16(7)(v)-13 DIST Cust'!H402","v":72056},{"$f":"'FR-16(7)(v)-3 PROD Demand'!I402+'FR-16(7)(v)-4 PROD Energy'!I402+'FR-16(7)(v)-5 PROD Cust'!I402+'FR-16(7)(v)-7 TRANS Demand'!I402+'FR-16(7)(v)-8 TRANS Energy'!I402+'FR-16(7)(v)-9 TRANS Cust'!I402+'FR-16(7)(v)-11 DIST Demand'!I402+'FR-16(7)(v)-12 DIST Energy'!I402+'FR-16(7)(v)-13 DIST Cust'!I402","v":355},{"$f":"'FR-16(7)(v)-3 PROD Demand'!J402+'FR-16(7)(v)-4 PROD Energy'!J402+'FR-16(7)(v)-5 PROD Cust'!J402+'FR-16(7)(v)-7 TRANS Demand'!J402+'FR-16(7)(v)-8 TRANS Energy'!J402+'FR-16(7)(v)-9 TRANS Cust'!J402+'FR-16(7)(v)-11 DIST Demand'!J402+'FR-16(7)(v)-12 DIST Energy'!J402+'FR-16(7)(v)-13 DIST Cust'!J402","v":1402},{"$f":"'FR-16(7)(v)-3 PROD Demand'!K402+'FR-16(7)(v)-4 PROD Energy'!K402+'FR-16(7)(v)-5 PROD Cust'!K402+'FR-16(7)(v)-7 TRANS Demand'!K402+'FR-16(7)(v)-8 TRANS Energy'!K402+'FR-16(7)(v)-9 TRANS Cust'!K402+'FR-16(7)(v)-11 DIST Demand'!K402+'FR-16(7)(v)-12 DIST Energy'!K402+'FR-16(7)(v)-13 DIST Cust'!K402","v":21},{"$f":"'FR-16(7)(v)-3 PROD Demand'!L402+'FR-16(7)(v)-4 PROD Energy'!L402+'FR-16(7)(v)-5 PROD Cust'!L402+'FR-16(7)(v)-7 TRANS Demand'!L402+'FR-16(7)(v)-8 TRANS Energy'!L402+'FR-16(7)(v)-9 TRANS Cust'!L402+'FR-16(7)(v)-11 DIST Demand'!L402+'FR-16(7)(v)-12 DIST Energy'!L402+'FR-16(7)(v)-13 DIST Cust'!L402","v":34911},{"$f":"'FR-16(7)(v)-3 PROD Demand'!M402+'FR-16(7)(v)-4 PROD Energy'!M402+'FR-16(7)(v)-5 PROD Cust'!M402+'FR-16(7)(v)-7 TRANS Demand'!M402+'FR-16(7)(v)-8 TRANS Energy'!M402+'FR-16(7)(v)-9 TRANS Cust'!M402+'FR-16(7)(v)-11 DIST Demand'!M402+'FR-16(7)(v)-12 DIST Energy'!M402+'FR-16(7)(v)-13 DIST Cust'!M402","v":23027},{"$f":"'FR-16(7)(v)-3 PROD Demand'!N402+'FR-16(7)(v)-4 PROD Energy'!N402+'FR-16(7)(v)-5 PROD Cust'!N402+'FR-16(7)(v)-7 TRANS Demand'!N402+'FR-16(7)(v)-8 TRANS Energy'!N402+'FR-16(7)(v)-9 TRANS Cust'!N402+'FR-16(7)(v)-11 DIST Demand'!N402+'FR-16(7)(v)-12 DIST Energy'!N402+'FR-16(7)(v)-13 DIST Cust'!N402","v":1129},{"$f":"'FR-16(7)(v)-3 PROD Demand'!O402+'FR-16(7)(v)-4 PROD Energy'!O402+'FR-16(7)(v)-5 PROD Cust'!O402+'FR-16(7)(v)-7 TRANS Demand'!O402+'FR-16(7)(v)-8 TRANS Energy'!O402+'FR-16(7)(v)-9 TRANS Cust'!O402+'FR-16(7)(v)-11 DIST Demand'!O402+'FR-16(7)(v)-12 DIST Energy'!O402+'FR-16(7)(v)-13 DIST Cust'!O402","v":7377},{"$f":"'FR-16(7)(v)-3 PROD Demand'!P402+'FR-16(7)(v)-4 PROD Energy'!P402+'FR-16(7)(v)-5 PROD Cust'!P402+'FR-16(7)(v)-7 TRANS Demand'!P402+'FR-16(7)(v)-8 TRANS Energy'!P402+'FR-16(7)(v)-9 TRANS Cust'!P402+'FR-16(7)(v)-11 DIST Demand'!P402+'FR-16(7)(v)-12 DIST Energy'!P402+'FR-16(7)(v)-13 DIST Cust'!P402","v":1420},{"$f":"'FR-16(7)(v)-3 PROD Demand'!Q402+'FR-16(7)(v)-4 PROD Energy'!Q402+'FR-16(7)(v)-5 PROD Cust'!Q402+'FR-16(7)(v)-7 TRANS Demand'!Q402+'FR-16(7)(v)-8 TRANS Energy'!Q402+'FR-16(7)(v)-9 TRANS Cust'!Q402+'FR-16(7)(v)-11 DIST Demand'!Q402+'FR-16(7)(v)-12 DIST Energy'!Q402+'FR-16(7)(v)-13 DIST Cust'!Q402","v":29},{"$f":"SUM(G402:Q402)","v":280124},{"$f":"F402-R402","v":0}]
[14,null,{"$f":"'FR-16(7)(v)-1 Functional'!C403","v":"EXCISE TAX"},{"$f":"'FR-16(7)(v)-1 Functional'!D403","v":"NP29"},null,{"$f":"'FR-16(7)(v)-1 Functional'!F403","v":0},{"$f":"'FR-16(7)(v)-3 PROD Demand'!G403+'FR-16(7)(v)-4 PROD Energy'!G403+'FR-16(7)(v)-5 PROD Cust'!G403+'FR-16(7)(v)-7 TRANS Demand'!G403+'FR-16(7)(v)-8 TRANS Energy'!G403+'FR-16(7)(v)-9 TRANS Cust'!G403+'FR-16(7)(v)-11 DIST Demand'!G403+'FR-16(7)(v)-12 DIST Energy'!G403+'FR-16(7)(v)-13 DIST Cust'!G403","v":0},{"$f":"'FR-16(7)(v)-3 PROD Demand'!H403+'FR-16(7)(v)-4 PROD Energy'!H403+'FR-16(7)(v)-5 PROD Cust'!H403+'FR-16(7)(v)-7 TRANS Demand'!H403+'FR-16(7)(v)-8 TRANS Energy'!H403+'FR-16(7)(v)-9 TRANS Cust'!H403+'FR-16(7)(v)-11 DIST Demand'!H403+'FR-16(7)(v)-12 DIST Energy'!H403+'FR-16(7)(v)-13 DIST Cust'!H403","v":0},{"$f":"'FR-16(7)(v)-3 PROD Demand'!I403+'FR-16(7)(v)-4 PROD Energy'!I403+'FR-16(7)(v)-5 PROD Cust'!I403+'FR-16(7)(v)-7 TRANS Demand'!I403+'FR-16(7)(v)-8 TRANS Energy'!I403+'FR-16(7)(v)-9 TRANS Cust'!I403+'FR-16(7)(v)-11 DIST Demand'!I403+'FR-16(7)(v)-12 DIST Energy'!I403+'FR-16(7)(v)-13 DIST Cust'!I403","v":0},{"$f":"'FR-16(7)(v)-3 PROD Demand'!J403+'FR-16(7)(v)-4 PROD Energy'!J403+'FR-16(7)(v)-5 PROD Cust'!J403+'FR-16(7)(v)-7 TRANS Demand'!J403+'FR-16(7)(v)-8 TRANS Energy'!J403+'FR-16(7)(v)-9 TRANS Cust'!J403+'FR-16(7)(v)-11 DIST Demand'!J403+'FR-16(7)(v)-12 DIST Energy'!J403+'FR-16(7)(v)-13 DIST Cust'!J403","v":0},{"$f":"'FR-16(7)(v)-3 PROD Demand'!K403+'FR-16(7)(v)-4 PROD Energy'!K403+'FR-16(7)(v)-5 PROD Cust'!K403+'FR-16(7)(v)-7 TRANS Demand'!K403+'FR-16(7)(v)-8 TRANS Energy'!K403+'FR-16(7)(v)-9 TRANS Cust'!K403+'FR-16(7)(v)-11 DIST Demand'!K403+'FR-16(7)(v)-12 DIST Energy'!K403+'FR-16(7)(v)-13 DIST Cust'!K403","v":0},{"$f":"'FR-16(7)(v)-3 PROD Demand'!L403+'FR-16(7)(v)-4 PROD Energy'!L403+'FR-16(7)(v)-5 PROD Cust'!L403+'FR-16(7)(v)-7 TRANS Demand'!L403+'FR-16(7)(v)-8 TRANS Energy'!L403+'FR-16(7)(v)-9 TRANS Cust'!L403+'FR-16(7)(v)-11 DIST Demand'!L403+'FR-16(7)(v)-12 DIST Energy'!L403+'FR-16(7)(v)-13 DIST Cust'!L403","v":0},{"$f":"'FR-16(7)(v)-3 PROD Demand'!M403+'FR-16(7)(v)-4 PROD Energy'!M403+'FR-16(7)(v)-5 PROD Cust'!M403+'FR-16(7)(v)-7 TRANS Demand'!M403+'FR-16(7)(v)-8 TRANS Energy'!M403+'FR-16(7)(v)-9 TRANS Cust'!M403+'FR-16(7)(v)-11 DIST Demand'!M403+'FR-16(7)(v)-12 DIST Energy'!M403+'FR-16(7)(v)-13 DIST Cust'!M403","v":0},{"$f":"'FR-16(7)(v)-3 PROD Demand'!N403+'FR-16(7)(v)-4 PROD Energy'!N403+'FR-16(7)(v)-5 PROD Cust'!N403+'FR-16(7)(v)-7 TRANS Demand'!N403+'FR-16(7)(v)-8 TRANS Energy'!N403+'FR-16(7)(v)-9 TRANS Cust'!N403+'FR-16(7)(v)-11 DIST Demand'!N403+'FR-16(7)(v)-12 DIST Energy'!N403+'FR-16(7)(v)-13 DIST Cust'!N403","v":0},{"$f":"'FR-16(7)(v)-3 PROD Demand'!O403+'FR-16(7)(v)-4 PROD Energy'!O403+'FR-16(7)(v)-5 PROD Cust'!O403+'FR-16(7)(v)-7 TRANS Demand'!O403+'FR-16(7)(v)-8 TRANS Energy'!O403+'FR-16(7)(v)-9 TRANS Cust'!O403+'FR-16(7)(v)-11 DIST Demand'!O403+'FR-16(7)(v)-12 DIST Energy'!O403+'FR-16(7)(v)-13 DIST Cust'!O403","v":0},{"$f":"'FR-16(7)(v)-3 PROD Demand'!P403+'FR-16(7)(v)-4 PROD Energy'!P403+'FR-16(7)(v)-5 PROD Cust'!P403+'FR-16(7)(v)-7 TRANS Demand'!P403+'FR-16(7)(v)-8 TRANS Energy'!P403+'FR-16(7)(v)-9 TRANS Cust'!P403+'FR-16(7)(v)-11 DIST Demand'!P403+'FR-16(7)(v)-12 DIST Energy'!P403+'FR-16(7)(v)-13 DIST Cust'!P403","v":0},{"$f":"'FR-16(7)(v)-3 PROD Demand'!Q403+'FR-16(7)(v)-4 PROD Energy'!Q403+'FR-16(7)(v)-5 PROD Cust'!Q403+'FR-16(7)(v)-7 TRANS Demand'!Q403+'FR-16(7)(v)-8 TRANS Energy'!Q403+'FR-16(7)(v)-9 TRANS Cust'!Q403+'FR-16(7)(v)-11 DIST Demand'!Q403+'FR-16(7)(v)-12 DIST Energy'!Q403+'FR-16(7)(v)-13 DIST Cust'!Q403","v":0},{"$f":"SUM(G403:Q403)","v":0},{"$f":"F403-R403","v":0}]
[15,null,{"$f":"'FR-16(7)(v)-1 Functional'!C404","v":"COLLATERAL ASSET"},{"$f":"'FR-16(7)(v)-1 Functional'!D404","v":"K301"},null,{"$f":"'FR-16(7)(v)-1 Functional'!F404","v":-44086},{"$f":"'FR-16(7)(v)-3 PROD Demand'!G404+'FR-16(7)(v)-4 PROD Energy'!G404+'FR-16(7)(v)-5 PROD Cust'!G404+'FR-16(7)(v)-7 TRANS Demand'!G404+'FR-16(7)(v)-8 TRANS Energy'!G404+'FR-16(7)(v)-9 TRANS Cust'!G404+'FR-16(7)(v)-11 DIST Demand'!G404+'FR-16(7)(v)-12 DIST Energy'!G404+'FR-16(7)(v)-13 DIST Cust'!G404","v":-16639},{"$f":"'FR-16(7)(v)-3 PROD Demand'!H404+'FR-16(7)(v)-4 PROD Energy'!H404+'FR-16(7)(v)-5 PROD Cust'!H404+'FR-16(7)(v)-7 TRANS Demand'!H404+'FR-16(7)(v)-8 TRANS Energy'!H404+'FR-16(7)(v)-9 TRANS Cust'!H404+'FR-16(7)(v)-11 DIST Demand'!H404+'FR-16(7)(v)-12 DIST Energy'!H404+'FR-16(7)(v)-13 DIST Cust'!H404","v":-11873},{"$f":"'FR-16(7)(v)-3 PROD Demand'!I404+'FR-16(7)(v)-4 PROD Energy'!I404+'FR-16(7)(v)-5 PROD Cust'!I404+'FR-16(7)(v)-7 TRANS Demand'!I404+'FR-16(7)(v)-8 TRANS Energy'!I404+'FR-16(7)(v)-9 TRANS Cust'!I404+'FR-16(7)(v)-11 DIST Demand'!I404+'FR-16(7)(v)-12 DIST Energy'!I404+'FR-16(7)(v)-13 DIST Cust'!I404","v":-67},{"$f":"'FR-16(7)(v)-3 PROD Demand'!J404+'FR-16(7)(v)-4 PROD Energy'!J404+'FR-16(7)(v)-5 PROD Cust'!J404+'FR-16(7)(v)-7 TRANS Demand'!J404+'FR-16(7)(v)-8 TRANS Energy'!J404+'FR-16(7)(v)-9 TRANS Cust'!J404+'FR-16(7)(v)-11 DIST Demand'!J404+'FR-16(7)(v)-12 DIST Energy'!J404+'FR-16(7)(v)-13 DIST Cust'!J404","v":-189},{"$f":"'FR-16(7)(v)-3 PROD Demand'!K404+'FR-16(7)(v)-4 PROD Energy'!K404+'FR-16(7)(v)-5 PROD Cust'!K404+'FR-16(7)(v)-7 TRANS Demand'!K404+'FR-16(7)(v)-8 TRANS Energy'!K404+'FR-16(7)(v)-9 TRANS Cust'!K404+'FR-16(7)(v)-11 DIST Demand'!K404+'FR-16(7)(v)-12 DIST Energy'!K404+'FR-16(7)(v)-13 DIST Cust'!K404","v":-3},{"$f":"'FR-16(7)(v)-3 PROD Demand'!L404+'FR-16(7)(v)-4 PROD Energy'!L404+'FR-16(7)(v)-5 PROD Cust'!L404+'FR-16(7)(v)-7 TRANS Demand'!L404+'FR-16(7)(v)-8 TRANS Energy'!L404+'FR-16(7)(v)-9 TRANS Cust'!L404+'FR-16(7)(v)-11 DIST Demand'!L404+'FR-16(7)(v)-12 DIST Energy'!L404+'FR-16(7)(v)-13 DIST Cust'!L404","v":-7275},{"$f":"'FR-16(7)(v)-3 PROD Demand'!M404+'FR-16(7)(v)-4 PROD Energy'!M404+'FR-16(7)(v)-5 PROD Cust'!M404+'FR-16(7)(v)-7 TRANS Demand'!M404+'FR-16(7)(v)-8 TRANS Energy'!M404+'FR-16(7)(v)-9 TRANS Cust'!M404+'FR-16(7)(v)-11 DIST Demand'!M404+'FR-16(7)(v)-12 DIST Energy'!M404+'FR-16(7)(v)-13 DIST Cust'!M404","v":-5053},{"$f":"'FR-16(7)(v)-3 PROD Demand'!N404+'FR-16(7)(v)-4 PROD Energy'!N404+'FR-16(7)(v)-5 PROD Cust'!N404+'FR-16(7)(v)-7 TRANS Demand'!N404+'FR-16(7)(v)-8 TRANS Energy'!N404+'FR-16(7)(v)-9 TRANS Cust'!N404+'FR-16(7)(v)-11 DIST Demand'!N404+'FR-16(7)(v)-12 DIST Energy'!N404+'FR-16(7)(v)-13 DIST Cust'!N404","v":-237},{"$f":"'FR-16(7)(v)-3 PROD Demand'!O404+'FR-16(7)(v)-4 PROD Energy'!O404+'FR-16(7)(v)-5 PROD Cust'!O404+'FR-16(7)(v)-7 TRANS Demand'!O404+'FR-16(7)(v)-8 TRANS Energy'!O404+'FR-16(7)(v)-9 TRANS Cust'!O404+'FR-16(7)(v)-11 DIST Demand'!O404+'FR-16(7)(v)-12 DIST Energy'!O404+'FR-16(7)(v)-13 DIST Cust'!O404","v":-2553},{"$f":"'FR-16(7)(v)-3 PROD Demand'!P404+'FR-16(7)(v)-4 PROD Energy'!P404+'FR-16(7)(v)-5 PROD Cust'!P404+'FR-16(7)(v)-7 TRANS Demand'!P404+'FR-16(7)(v)-8 TRANS Energy'!P404+'FR-16(7)(v)-9 TRANS Cust'!P404+'FR-16(7)(v)-11 DIST Demand'!P404+'FR-16(7)(v)-12 DIST Energy'!P404+'FR-16(7)(v)-13 DIST Cust'!P404","v":-192},{"$f":"'FR-16(7)(v)-3 PROD Demand'!Q404+'FR-16(7)(v)-4 PROD Energy'!Q404+'FR-16(7)(v)-5 PROD Cust'!Q404+'FR-16(7)(v)-7 TRANS Demand'!Q404+'FR-16(7)(v)-8 TRANS Energy'!Q404+'FR-16(7)(v)-9 TRANS Cust'!Q404+'FR-16(7)(v)-11 DIST Demand'!Q404+'FR-16(7)(v)-12 DIST Energy'!Q404+'FR-16(7)(v)-13 DIST Cust'!Q404","v":-5},{"$f":"SUM(G404:Q404)","v":-44086},{"$f":"F404-R404","v":0}]
[16,null,{"$f":"'FR-16(7)(v)-1 Functional'!C405","v":"  TOTAL PREPAYMENTS"},null,null,{"$f":"SUM(F401:F404)","v":236038},121758,60183,288,{"$f":"SUM(J401:J404)","v":1213},18,27636,17974,892,4824,1228,24,236038,0]
[17]
[18,"AUTO CALC (O&M-ELECTRIC FUEL COST)/8",null,"NP29",null,{"$f":"'FR-16(7)(v)-1 Functional'!F407","v":14965228},{"$f":"'FR-16(7)(v)-3 PROD Demand'!G407+'FR-16(7)(v)-4 PROD Energy'!G407+'FR-16(7)(v)-5 PROD Cust'!G407+'FR-16(7)(v)-7 TRANS Demand'!G407+'FR-16(7)(v)-8 TRANS Energy'!G407+'FR-16(7)(v)-9 TRANS Cust'!G407+'FR-16(7)(v)-11 DIST Demand'!G407+'FR-16(7)(v)-12 DIST Energy'!G407+'FR-16(7)(v)-13 DIST Cust'!G407","v":6744827},{"$f":"'FR-16(7)(v)-3 PROD Demand'!H407+'FR-16(7)(v)-4 PROD Energy'!H407+'FR-16(7)(v)-5 PROD Cust'!H407+'FR-16(7)(v)-7 TRANS Demand'!H407+'FR-16(7)(v)-8 TRANS Energy'!H407+'FR-16(7)(v)-9 TRANS Cust'!H407+'FR-16(7)(v)-11 DIST Demand'!H407+'FR-16(7)(v)-12 DIST Energy'!H407+'FR-16(7)(v)-13 DIST Cust'!H407","v":4050788},{"$f":"'FR-16(7)(v)-3 PROD Demand'!I407+'FR-16(7)(v)-4 PROD Energy'!I407+'FR-16(7)(v)-5 PROD Cust'!I407+'FR-16(7)(v)-7 TRANS Demand'!I407+'FR-16(7)(v)-8 TRANS Energy'!I407+'FR-16(7)(v)-9 TRANS Cust'!I407+'FR-16(7)(v)-11 DIST Demand'!I407+'FR-16(7)(v)-12 DIST Energy'!I407+'FR-16(7)(v)-13 DIST Cust'!I407","v":19455},{"$f":"'FR-16(7)(v)-3 PROD Demand'!J407+'FR-16(7)(v)-4 PROD Energy'!J407+'FR-16(7)(v)-5 PROD Cust'!J407+'FR-16(7)(v)-7 TRANS Demand'!J407+'FR-16(7)(v)-8 TRANS Energy'!J407+'FR-16(7)(v)-9 TRANS Cust'!J407+'FR-16(7)(v)-11 DIST Demand'!J407+'FR-16(7)(v)-12 DIST Energy'!J407+'FR-16(7)(v)-13 DIST Cust'!J407","v":76772},{"$f":"'FR-16(7)(v)-3 PROD Demand'!K407+'FR-16(7)(v)-4 PROD Energy'!K407+'FR-16(7)(v)-5 PROD Cust'!K407+'FR-16(7)(v)-7 TRANS Demand'!K407+'FR-16(7)(v)-8 TRANS Energy'!K407+'FR-16(7)(v)-9 TRANS Cust'!K407+'FR-16(7)(v)-11 DIST Demand'!K407+'FR-16(7)(v)-12 DIST Energy'!K407+'FR-16(7)(v)-13 DIST Cust'!K407","v":1048},{"$f":"'FR-16(7)(v)-3 PROD Demand'!L407+'FR-16(7)(v)-4 PROD Energy'!L407+'FR-16(7)(v)-5 PROD Cust'!L407+'FR-16(7)(v)-7 TRANS Demand'!L407+'FR-16(7)(v)-8 TRANS Energy'!L407+'FR-16(7)(v)-9 TRANS Cust'!L407+'FR-16(7)(v)-11 DIST Demand'!L407+'FR-16(7)(v)-12 DIST Energy'!L407+'FR-16(7)(v)-13 DIST Cust'!L407","v":2019707},{"$f":"'FR-16(7)(v)-3 PROD Demand'!M407+'FR-16(7)(v)-4 PROD Energy'!M407+'FR-16(7)(v)-5 PROD Cust'!M407+'FR-16(7)(v)-7 TRANS Demand'!M407+'FR-16(7)(v)-8 TRANS Energy'!M407+'FR-16(7)(v)-9 TRANS Cust'!M407+'FR-16(7)(v)-11 DIST Demand'!M407+'FR-16(7)(v)-12 DIST Energy'!M407+'FR-16(7)(v)-13 DIST Cust'!M407","v":1335198},{"$f":"'FR-16(7)(v)-3 PROD Demand'!N407+'FR-16(7)(v)-4 PROD Energy'!N407+'FR-16(7)(v)-5 PROD Cust'!N407+'FR-16(7)(v)-7 TRANS Demand'!N407+'FR-16(7)(v)-8 TRANS Energy'!N407+'FR-16(7)(v)-9 TRANS Cust'!N407+'FR-16(7)(v)-11 DIST Demand'!N407+'FR-16(7)(v)-12 DIST Energy'!N407+'FR-16(7)(v)-13 DIST Cust'!N407","v":64500},{"$f":"'FR-16(7)(v)-3 PROD Demand'!O407+'FR-16(7)(v)-4 PROD Energy'!O407+'FR-16(7)(v)-5 PROD Cust'!O407+'FR-16(7)(v)-7 TRANS Demand'!O407+'FR-16(7)(v)-8 TRANS Energy'!O407+'FR-16(7)(v)-9 TRANS Cust'!O407+'FR-16(7)(v)-11 DIST Demand'!O407+'FR-16(7)(v)-12 DIST Energy'!O407+'FR-16(7)(v)-13 DIST Cust'!O407","v":632730},{"$f":"'FR-16(7)(v)-3 PROD Demand'!P407+'FR-16(7)(v)-4 PROD Energy'!P407+'FR-16(7)(v)-5 PROD Cust'!P407+'FR-16(7)(v)-7 TRANS Demand'!P407+'FR-16(7)(v)-8 TRANS Energy'!P407+'FR-16(7)(v)-9 TRANS Cust'!P407+'FR-16(7)(v)-11 DIST Demand'!P407+'FR-16(7)(v)-12 DIST Energy'!P407+'FR-16(7)(v)-13 DIST Cust'!P407","v":18557},{"$f":"'FR-16(7)(v)-3 PROD Demand'!Q407+'FR-16(7)(v)-4 PROD Energy'!Q407+'FR-16(7)(v)-5 PROD Cust'!Q407+'FR-16(7)(v)-7 TRANS Demand'!Q407+'FR-16(7)(v)-8 TRANS Energy'!Q407+'FR-16(7)(v)-9 TRANS Cust'!Q407+'FR-16(7)(v)-11 DIST Demand'!Q407+'FR-16(7)(v)-12 DIST Energy'!Q407+'FR-16(7)(v)-13 DIST Cust'!Q407","v":1646},{"$f":"SUM(G407:Q407)","v":14965228},{"$f":"F407-R407","v":0}]
[19,"  TOTAL WORKING CASH",null,null,null,{"$f":"F407","v":14965228},6744827,4050788,19455,{"$f":"J407","v":76772},1048,2019707,1335198,64500,632730,18557,1646,14965228,0]
[20]
[21,"MISCELLANEOUS WORKING CAPITAL"]
[22,null,{"$f":"'FR-16(7)(v)-1 Functional'!C411","v":"RESERVED FOR FUTURE USE"},{"$f":"'FR-16(7)(v)-1 Functional'!D411","v":"K301"},null,{"$f":"'FR-16(7)(v)-1 Functional'!F411","v":0},{"$f":"'FR-16(7)(v)-3 PROD Demand'!G411+'FR-16(7)(v)-4 PROD Energy'!G411+'FR-16(7)(v)-5 PROD Cust'!G411+'FR-16(7)(v)-7 TRANS Demand'!G411+'FR-16(7)(v)-8 TRANS Energy'!G411+'FR-16(7)(v)-9 TRANS Cust'!G411+'FR-16(7)(v)-11 DIST Demand'!G411+'FR-16(7)(v)-12 DIST Energy'!G411+'FR-16(7)(v)-13 DIST Cust'!G411","v":0},{"$f":"'FR-16(7)(v)-3 PROD Demand'!H411+'FR-16(7)(v)-4 PROD Energy'!H411+'FR-16(7)(v)-5 PROD Cust'!H411+'FR-16(7)(v)-7 TRANS Demand'!H411+'FR-16(7)(v)-8 TRANS Energy'!H411+'FR-16(7)(v)-9 TRANS Cust'!H411+'FR-16(7)(v)-11 DIST Demand'!H411+'FR-16(7)(v)-12 DIST Energy'!H411+'FR-16(7)(v)-13 DIST Cust'!H411","v":0},{"$f":"'FR-16(7)(v)-3 PROD Demand'!I411+'FR-16(7)(v)-4 PROD Energy'!I411+'FR-16(7)(v)-5 PROD Cust'!I411+'FR-16(7)(v)-7 TRANS Demand'!I411+'FR-16(7)(v)-8 TRANS Energy'!I411+'FR-16(7)(v)-9 TRANS Cust'!I411+'FR-16(7)(v)-11 DIST Demand'!I411+'FR-16(7)(v)-12 DIST Energy'!I411+'FR-16(7)(v)-13 DIST Cust'!I411","v":0},{"$f":"'FR-16(7)(v)-3 PROD Demand'!J411+'FR-16(7)(v)-4 PROD Energy'!J411+'FR-16(7)(v)-5 PROD Cust'!J411+'FR-16(7)(v)-7 TRANS Demand'!J411+'FR-16(7)(v)-8 TRANS Energy'!J411+'FR-16(7)(v)-9 TRANS Cust'!J411+'FR-16(7)(v)-11 DIST Demand'!J411+'FR-16(7)(v)-12 DIST Energy'!J411+'FR-16(7)(v)-13 DIST Cust'!J411","v":0},{"$f":"'FR-16(7)(v)-3 PROD Demand'!K411+'FR-16(7)(v)-4 PROD Energy'!K411+'FR-16(7)(v)-5 PROD Cust'!K411+'FR-16(7)(v)-7 TRANS Demand'!K411+'FR-16(7)(v)-8 TRANS Energy'!K411+'FR-16(7)(v)-9 TRANS Cust'!K411+'FR-16(7)(v)-11 DIST Demand'!K411+'FR-16(7)(v)-12 DIST Energy'!K411+'FR-16(7)(v)-13 DIST Cust'!K411","v":0},{"$f":"'FR-16(7)(v)-3 PROD Demand'!L411+'FR-16(7)(v)-4 PROD Energy'!L411+'FR-16(7)(v)-5 PROD Cust'!L411+'FR-16(7)(v)-7 TRANS Demand'!L411+'FR-16(7)(v)-8 TRANS Energy'!L411+'FR-16(7)(v)-9 TRANS Cust'!L411+'FR-16(7)(v)-11 DIST Demand'!L411+'FR-16(7)(v)-12 DIST Energy'!L411+'FR-16(7)(v)-13 DIST Cust'!L411","v":0},{"$f":"'FR-16(7)(v)-3 PROD Demand'!M411+'FR-16(7)(v)-4 PROD Energy'!M411+'FR-16(7)(v)-5 PROD Cust'!M411+'FR-16(7)(v)-7 TRANS Demand'!M411+'FR-16(7)(v)-8 TRANS Energy'!M411+'FR-16(7)(v)-9 TRANS Cust'!M411+'FR-16(7)(v)-11 DIST Demand'!M411+'FR-16(7)(v)-12 DIST Energy'!M411+'FR-16(7)(v)-13 DIST Cust'!M411","v":0},{"$f":"'FR-16(7)(v)-3 PROD Demand'!N411+'FR-16(7)(v)-4 PROD Energy'!N411+'FR-16(7)(v)-5 PROD Cust'!N411+'FR-16(7)(v)-7 TRANS Demand'!N411+'FR-16(7)(v)-8 TRANS Energy'!N411+'FR-16(7)(v)-9 TRANS Cust'!N411+'FR-16(7)(v)-11 DIST Demand'!N411+'FR-16(7)(v)-12 DIST Energy'!N411+'FR-16(7)(v)-13 DIST Cust'!N411","v":0},{"$f":"'FR-16(7)(v)-3 PROD Demand'!O411+'FR-16(7)(v)-4 PROD Energy'!O411+'FR-16(7)(v)-5 PROD Cust'!O411+'FR-16(7)(v)-7 TRANS Demand'!O411+'FR-16(7)(v)-8 TRANS Energy'!O411+'FR-16(7)(v)-9 TRANS Cust'!O411+'FR-16(7)(v)-11 DIST Demand'!O411+'FR-16(7)(v)-12 DIST Energy'!O411+'FR-16(7)(v)-13 DIST Cust'!O411","v":0},{"$f":"'FR-16(7)(v)-3 PROD Demand'!P411+'FR-16(7)(v)-4 PROD Energy'!P411+'FR-16(7)(v)-5 PROD Cust'!P411+'FR-16(7)(v)-7 TRANS Demand'!P411+'FR-16(7)(v)-8 TRANS Energy'!P411+'FR-16(7)(v)-9 TRANS Cust'!P411+'FR-16(7)(v)-11 DIST Demand'!P411+'FR-16(7)(v)-12 DIST Energy'!P411+'FR-16(7)(v)-13 DIST Cust'!P411","v":0},{"$f":"'FR-16(7)(v)-3 PROD Demand'!Q411+'FR-16(7)(v)-4 PROD Energy'!Q411+'FR-16(7)(v)-5 PROD Cust'!Q411+'FR-16(7)(v)-7 TRANS Demand'!Q411+'FR-16(7)(v)-8 TRANS Energy'!Q411+'FR-16(7)(v)-9 TRANS Cust'!Q411+'FR-16(7)(v)-11 DIST Demand'!Q411+'FR-16(7)(v)-12 DIST Energy'!Q411+'FR-16(7)(v)-13 DIST Cust'!Q411","v":0},{"$f":"SUM(G411:Q411)","v":0},{"$f":"F411-R411","v":0}]
[23,null,{"$f":"'FR-16(7)(v)-1 Functional'!C412","v":"PIPP UNCOLLECTIBLES"},{"$f":"'FR-16(7)(v)-1 Functional'!D412","v":"A315"},null,{"$f":"'FR-16(7)(v)-1 Functional'!F412","v":0},{"$f":"'FR-16(7)(v)-3 PROD Demand'!G412+'FR-16(7)(v)-4 PROD Energy'!G412+'FR-16(7)(v)-5 PROD Cust'!G412+'FR-16(7)(v)-7 TRANS Demand'!G412+'FR-16(7)(v)-8 TRANS Energy'!G412+'FR-16(7)(v)-9 TRANS Cust'!G412+'FR-16(7)(v)-11 DIST Demand'!G412+'FR-16(7)(v)-12 DIST Energy'!G412+'FR-16(7)(v)-13 DIST Cust'!G412","v":0},{"$f":"'FR-16(7)(v)-3 PROD Demand'!H412+'FR-16(7)(v)-4 PROD Energy'!H412+'FR-16(7)(v)-5 PROD Cust'!H412+'FR-16(7)(v)-7 TRANS Demand'!H412+'FR-16(7)(v)-8 TRANS Energy'!H412+'FR-16(7)(v)-9 TRANS Cust'!H412+'FR-16(7)(v)-11 DIST Demand'!H412+'FR-16(7)(v)-12 DIST Energy'!H412+'FR-16(7)(v)-13 DIST Cust'!H412","v":0},{"$f":"'FR-16(7)(v)-3 PROD Demand'!I412+'FR-16(7)(v)-4 PROD Energy'!I412+'FR-16(7)(v)-5 PROD Cust'!I412+'FR-16(7)(v)-7 TRANS Demand'!I412+'FR-16(7)(v)-8 TRANS Energy'!I412+'FR-16(7)(v)-9 TRANS Cust'!I412+'FR-16(7)(v)-11 DIST Demand'!I412+'FR-16(7)(v)-12 DIST Energy'!I412+'FR-16(7)(v)-13 DIST Cust'!I412","v":0},{"$f":"'FR-16(7)(v)-3 PROD Demand'!J412+'FR-16(7)(v)-4 PROD Energy'!J412+'FR-16(7)(v)-5 PROD Cust'!J412+'FR-16(7)(v)-7 TRANS Demand'!J412+'FR-16(7)(v)-8 TRANS Energy'!J412+'FR-16(7)(v)-9 TRANS Cust'!J412+'FR-16(7)(v)-11 DIST Demand'!J412+'FR-16(7)(v)-12 DIST Energy'!J412+'FR-16(7)(v)-13 DIST Cust'!J412","v":0},{"$f":"'FR-16(7)(v)-3 PROD Demand'!K412+'FR-16(7)(v)-4 PROD Energy'!K412+'FR-16(7)(v)-5 PROD Cust'!K412+'FR-16(7)(v)-7 TRANS Demand'!K412+'FR-16(7)(v)-8 TRANS Energy'!K412+'FR-16(7)(v)-9 TRANS Cust'!K412+'FR-16(7)(v)-11 DIST Demand'!K412+'FR-16(7)(v)-12 DIST Energy'!K412+'FR-16(7)(v)-13 DIST Cust'!K412","v":0},{"$f":"'FR-16(7)(v)-3 PROD Demand'!L412+'FR-16(7)(v)-4 PROD Energy'!L412+'FR-16(7)(v)-5 PROD Cust'!L412+'FR-16(7)(v)-7 TRANS Demand'!L412+'FR-16(7)(v)-8 TRANS Energy'!L412+'FR-16(7)(v)-9 TRANS Cust'!L412+'FR-16(7)(v)-11 DIST Demand'!L412+'FR-16(7)(v)-12 DIST Energy'!L412+'FR-16(7)(v)-13 DIST Cust'!L412","v":0},{"$f":"'FR-16(7)(v)-3 PROD Demand'!M412+'FR-16(7)(v)-4 PROD Energy'!M412+'FR-16(7)(v)-5 PROD Cust'!M412+'FR-16(7)(v)-7 TRANS Demand'!M412+'FR-16(7)(v)-8 TRANS Energy'!M412+'FR-16(7)(v)-9 TRANS Cust'!M412+'FR-16(7)(v)-11 DIST Demand'!M412+'FR-16(7)(v)-12 DIST Energy'!M412+'FR-16(7)(v)-13 DIST Cust'!M412","v":0},{"$f":"'FR-16(7)(v)-3 PROD Demand'!N412+'FR-16(7)(v)-4 PROD Energy'!N412+'FR-16(7)(v)-5 PROD Cust'!N412+'FR-16(7)(v)-7 TRANS Demand'!N412+'FR-16(7)(v)-8 TRANS Energy'!N412+'FR-16(7)(v)-9 TRANS Cust'!N412+'FR-16(7)(v)-11 DIST Demand'!N412+'FR-16(7)(v)-12 DIST Energy'!N412+'FR-16(7)(v)-13 DIST Cust'!N412","v":0},{"$f":"'FR-16(7)(v)-3 PROD Demand'!O412+'FR-16(7)(v)-4 PROD Energy'!O412+'FR-16(7)(v)-5 PROD Cust'!O412+'FR-16(7)(v)-7 TRANS Demand'!O412+'FR-16(7)(v)-8 TRANS Energy'!O412+'FR-16(7)(v)-9 TRANS Cust'!O412+'FR-16(7)(v)-11 DIST Demand'!O412+'FR-16(7)(v)-12 DIST Energy'!O412+'FR-16(7)(v)-13 DIST Cust'!O412","v":0},{"$f":"'FR-16(7)(v)-3 PROD Demand'!P412+'FR-16(7)(v)-4 PROD Energy'!P412+'FR-16(7)(v)-5 PROD Cust'!P412+'FR-16(7)(v)-7 TRANS Demand'!P412+'FR-16(7)(v)-8 TRANS Energy'!P412+'FR-16(7)(v)-9 TRANS Cust'!P412+'FR-16(7)(v)-11 DIST Demand'!P412+'FR-16(7)(v)-12 DIST Energy'!P412+'FR-16(7)(v)-13 DIST Cust'!P412","v":0},{"$f":"'FR-16(7)(v)-3 PROD Demand'!Q412+'FR-16(7)(v)-4 PROD Energy'!Q412+'FR-16(7)(v)-5 PROD Cust'!Q412+'FR-16(7)(v)-7 TRANS Demand'!Q412+'FR-16(7)(v)-8 TRANS Energy'!Q412+'FR-16(7)(v)-9 TRANS Cust'!Q412+'FR-16(7)(v)-11 DIST Demand'!Q412+'FR-16(7)(v)-12 DIST Energy'!Q412+'FR-16(7)(v)-13 DIST Cust'!Q412","v":0},{"$f":"SUM(G412:Q412)","v":0},{"$f":"F412-R412","v":0}]
[24,null,{"$f":"'FR-16(7)(v)-1 Functional'!C413","v":"RESERVED FOR FUTURE USE"},{"$f":"'FR-16(7)(v)-1 Functional'!D413","v":"D249"},null,{"$f":"'FR-16(7)(v)-1 Functional'!F413","v":0},{"$f":"'FR-16(7)(v)-3 PROD Demand'!G413+'FR-16(7)(v)-4 PROD Energy'!G413+'FR-16(7)(v)-5 PROD Cust'!G413+'FR-16(7)(v)-7 TRANS Demand'!G413+'FR-16(7)(v)-8 TRANS Energy'!G413+'FR-16(7)(v)-9 TRANS Cust'!G413+'FR-16(7)(v)-11 DIST Demand'!G413+'FR-16(7)(v)-12 DIST Energy'!G413+'FR-16(7)(v)-13 DIST Cust'!G413","v":0},{"$f":"'FR-16(7)(v)-3 PROD Demand'!H413+'FR-16(7)(v)-4 PROD Energy'!H413+'FR-16(7)(v)-5 PROD Cust'!H413+'FR-16(7)(v)-7 TRANS Demand'!H413+'FR-16(7)(v)-8 TRANS Energy'!H413+'FR-16(7)(v)-9 TRANS Cust'!H413+'FR-16(7)(v)-11 DIST Demand'!H413+'FR-16(7)(v)-12 DIST Energy'!H413+'FR-16(7)(v)-13 DIST Cust'!H413","v":0},{"$f":"'FR-16(7)(v)-3 PROD Demand'!I413+'FR-16(7)(v)-4 PROD Energy'!I413+'FR-16(7)(v)-5 PROD Cust'!I413+'FR-16(7)(v)-7 TRANS Demand'!I413+'FR-16(7)(v)-8 TRANS Energy'!I413+'FR-16(7)(v)-9 TRANS Cust'!I413+'FR-16(7)(v)-11 DIST Demand'!I413+'FR-16(7)(v)-12 DIST Energy'!I413+'FR-16(7)(v)-13 DIST Cust'!I413","v":0},{"$f":"'FR-16(7)(v)-3 PROD Demand'!J413+'FR-16(7)(v)-4 PROD Energy'!J413+'FR-16(7)(v)-5 PROD Cust'!J413+'FR-16(7)(v)-7 TRANS Demand'!J413+'FR-16(7)(v)-8 TRANS Energy'!J413+'FR-16(7)(v)-9 TRANS Cust'!J413+'FR-16(7)(v)-11 DIST Demand'!J413+'FR-16(7)(v)-12 DIST Energy'!J413+'FR-16(7)(v)-13 DIST Cust'!J413","v":0},{"$f":"'FR-16(7)(v)-3 PROD Demand'!K413+'FR-16(7)(v)-4 PROD Energy'!K413+'FR-16(7)(v)-5 PROD Cust'!K413+'FR-16(7)(v)-7 TRANS Demand'!K413+'FR-16(7)(v)-8 TRANS Energy'!K413+'FR-16(7)(v)-9 TRANS Cust'!K413+'FR-16(7)(v)-11 DIST Demand'!K413+'FR-16(7)(v)-12 DIST Energy'!K413+'FR-16(7)(v)-13 DIST Cust'!K413","v":0},{"$f":"'FR-16(7)(v)-3 PROD Demand'!L413+'FR-16(7)(v)-4 PROD Energy'!L413+'FR-16(7)(v)-5 PROD Cust'!L413+'FR-16(7)(v)-7 TRANS Demand'!L413+'FR-16(7)(v)-8 TRANS Energy'!L413+'FR-16(7)(v)-9 TRANS Cust'!L413+'FR-16(7)(v)-11 DIST Demand'!L413+'FR-16(7)(v)-12 DIST Energy'!L413+'FR-16(7)(v)-13 DIST Cust'!L413","v":0},{"$f":"'FR-16(7)(v)-3 PROD Demand'!M413+'FR-16(7)(v)-4 PROD Energy'!M413+'FR-16(7)(v)-5 PROD Cust'!M413+'FR-16(7)(v)-7 TRANS Demand'!M413+'FR-16(7)(v)-8 TRANS Energy'!M413+'FR-16(7)(v)-9 TRANS Cust'!M413+'FR-16(7)(v)-11 DIST Demand'!M413+'FR-16(7)(v)-12 DIST Energy'!M413+'FR-16(7)(v)-13 DIST Cust'!M413","v":0},{"$f":"'FR-16(7)(v)-3 PROD Demand'!N413+'FR-16(7)(v)-4 PROD Energy'!N413+'FR-16(7)(v)-5 PROD Cust'!N413+'FR-16(7)(v)-7 TRANS Demand'!N413+'FR-16(7)(v)-8 TRANS Energy'!N413+'FR-16(7)(v)-9 TRANS Cust'!N413+'FR-16(7)(v)-11 DIST Demand'!N413+'FR-16(7)(v)-12 DIST Energy'!N413+'FR-16(7)(v)-13 DIST Cust'!N413","v":0},{"$f":"'FR-16(7)(v)-3 PROD Demand'!O413+'FR-16(7)(v)-4 PROD Energy'!O413+'FR-16(7)(v)-5 PROD Cust'!O413+'FR-16(7)(v)-7 TRANS Demand'!O413+'FR-16(7)(v)-8 TRANS Energy'!O413+'FR-16(7)(v)-9 TRANS Cust'!O413+'FR-16(7)(v)-11 DIST Demand'!O413+'FR-16(7)(v)-12 DIST Energy'!O413+'FR-16(7)(v)-13 DIST Cust'!O413","v":0},{"$f":"'FR-16(7)(v)-3 PROD Demand'!P413+'FR-16(7)(v)-4 PROD Energy'!P413+'FR-16(7)(v)-5 PROD Cust'!P413+'FR-16(7)(v)-7 TRANS Demand'!P413+'FR-16(7)(v)-8 TRANS Energy'!P413+'FR-16(7)(v)-9 TRANS Cust'!P413+'FR-16(7)(v)-11 DIST Demand'!P413+'FR-16(7)(v)-12 DIST Energy'!P413+'FR-16(7)(v)-13 DIST Cust'!P413","v":0},{"$f":"'FR-16(7)(v)-3 PROD Demand'!Q413+'FR-16(7)(v)-4 PROD Energy'!Q413+'FR-16(7)(v)-5 PROD Cust'!Q413+'FR-16(7)(v)-7 TRANS Demand'!Q413+'FR-16(7)(v)-8 TRANS Energy'!Q413+'FR-16(7)(v)-9 TRANS Cust'!Q413+'FR-16(7)(v)-11 DIST Demand'!Q413+'FR-16(7)(v)-12 DIST Energy'!Q413+'FR-16(7)(v)-13 DIST Cust'!Q413","v":0},{"$f":"SUM(G413:Q413)","v":0},{"$f":"F413-R413","v":0}]
[25,null,{"$f":"'FR-16(7)(v)-1 Functional'!C414","v":"  TOTAL MISC WORK CAPITAL"},null,null,{"$f":"SUM(F410:F413)","v":0},0,0,0,{"$f":"SUM(J410:J413)","v":0},0,0,0,0,0,0,0,0,0]
[26]
[27,"TOTAL WORKING CAPITAL",null,null,null,{"$f":"F399+F405+F408+F414","v":53478529},24563807,13745218,73308,{"$f":"J399+J405+J408+J414","v":230376},4329,7197926,4874815,232583,2395926,154245,5996,53478529,{"$f":"F416-R416","v":0}]
[28,"PRELIMINARY SUMMARY"]
[29,null,{"$f":"'FR-16(7)(v)-1 Functional'!C418","v":"TOTAL ACCUMULATED DEFERRED INCOME TAXES"},null,null,{"$f":"-F324","v":-281811215},-139532797,-71916897,-355549,{"$f":"-J324","v":-1389107},-21264,-35102837,-23210649,-1136817,-7639711,-1475154,-30433,-281811215,{"$f":"F418-R418","v":0}]
[30,null,{"$f":"'FR-16(7)(v)-1 Functional'!C419","v":"TOTAL OTHER ACCUMULATED DEFERRED INCOME TAXES"},null,null,{"$f":"F377","v":20837560},13014061,3865745,20157,{"$f":"J377","v":68340},1396,1886148,1265100,62200,491815,160654,1944,20837560,{"$f":"F419-R419","v":0}]
[31,null,{"$f":"'FR-16(7)(v)-1 Functional'!C420","v":"TOTAL WORKING CAPITAL"},null,null,{"$f":"F416","v":53478529},24563807,13745218,73308,{"$f":"J416","v":230376},4329,7197926,4874815,232583,2395926,154245,5996,53478529,{"$f":"F420-R420","v":0}]
[32,null,{"$f":"'FR-16(7)(v)-1 Functional'!C421","v":"  TOTAL RATE BASE ADJUSTMENTS"},null,null,{"$f":"SUM(F417:F420)","v":-207495126},-101954929,-54305934,-262084,{"$f":"SUM(J417:J420)","v":-1090391},-15539,-26018763,-17070734,-842034,-4751970,-1160255,-22493,-207495126,0]
[33]
[34,"RATE BASE CALCULATION"]
[35,null,{"$f":"'FR-16(7)(v)-1 Functional'!C424","v":"NET ELECTRIC PLANT IN SERVICE"},null,null,{"$f":"F277","v":1153922952},570543604,296627905,1459255,{"$f":"J277","v":5773004},87073,143648062,94749400,4647811,30385312,5876375,125151,1153922952,{"$f":"F424-R424","v":0}]
[36,null,{"$f":"'FR-16(7)(v)-1 Functional'!C425","v":"TOTAL RATE BASE ADJUSTMENTS"},null,null,{"$f":"F421","v":-207495126},-101954929,-54305934,-262084,{"$f":"J421","v":-1090391},-15539,-26018763,-17070734,-842034,-4751970,-1160255,-22493,-207495126,{"$f":"F425-R425","v":0}]
[37,null,{"$f":"'FR-16(7)(v)-1 Functional'!C426","v":"  TOTAL RATE BASE"},null,null,{"$f":"SUM(F423:F425)","v":946427826},468588675,242321971,1197171,{"$f":"SUM(J423:J425)","v":4682613},71534,117629299,77678666,3805777,25633342,4716120,102658,946427826,0]
[38]
[39,"TOTAL RATE OF RETURN ALLOWABLE",null,null,null,{"$f":"$F$811","v":6.7100000000000007E-2},{"$f":"$F$811","v":6.7100000000000007E-2},6.7100000000000007E-2,6.7100000000000007E-2,6.7100000000000007E-2,6.7100000000000007E-2,6.7100000000000007E-2,6.7100000000000007E-2,6.7100000000000007E-2,6.7100000000000007E-2,6.7100000000000007E-2,6.7100000000000007E-2,{"$f":"F811","v":6.7100000000000007E-2}]
[40,"RETURN ON RATE BASE",null,null,null,{"$f":"'FR-16(7)(v)-1 Functional'!F429","v":63514771},{"$f":"'FR-16(7)(v)-3 PROD Demand'!G429+'FR-16(7)(v)-4 PROD Energy'!G429+'FR-16(7)(v)-5 PROD Cust'!G429+'FR-16(7)(v)-7 TRANS Demand'!G429+'FR-16(7)(v)-8 TRANS Energy'!G429+'FR-16(7)(v)-9 TRANS Cust'!G429+'FR-16(7)(v)-11 DIST Demand'!G429+'FR-16(7)(v)-12 DIST Energy'!G429+'FR-16(7)(v)-13 DIST Cust'!G429","v":31442299},{"$f":"'FR-16(7)(v)-3 PROD Demand'!H429+'FR-16(7)(v)-4 PROD Energy'!H429+'FR-16(7)(v)-5 PROD Cust'!H429+'FR-16(7)(v)-7 TRANS Demand'!H429+'FR-16(7)(v)-8 TRANS Energy'!H429+'FR-16(7)(v)-9 TRANS Cust'!H429+'FR-16(7)(v)-11 DIST Demand'!H429+'FR-16(7)(v)-12 DIST Energy'!H429+'FR-16(7)(v)-13 DIST Cust'!H429","v":16259804},{"$f":"'FR-16(7)(v)-3 PROD Demand'!I429+'FR-16(7)(v)-4 PROD Energy'!I429+'FR-16(7)(v)-5 PROD Cust'!I429+'FR-16(7)(v)-7 TRANS Demand'!I429+'FR-16(7)(v)-8 TRANS Energy'!I429+'FR-16(7)(v)-9 TRANS Cust'!I429+'FR-16(7)(v)-11 DIST Demand'!I429+'FR-16(7)(v)-12 DIST Energy'!I429+'FR-16(7)(v)-13 DIST Cust'!I429","v":80330},{"$f":"'FR-16(7)(v)-3 PROD Demand'!J429+'FR-16(7)(v)-4 PROD Energy'!J429+'FR-16(7)(v)-5 PROD Cust'!J429+'FR-16(7)(v)-7 TRANS Demand'!J429+'FR-16(7)(v)-8 TRANS Energy'!J429+'FR-16(7)(v)-9 TRANS Cust'!J429+'FR-16(7)(v)-11 DIST Demand'!J429+'FR-16(7)(v)-12 DIST Energy'!J429+'FR-16(7)(v)-13 DIST Cust'!J429","v":314203},{"$f":"'FR-16(7)(v)-3 PROD Demand'!K429+'FR-16(7)(v)-4 PROD Energy'!K429+'FR-16(7)(v)-5 PROD Cust'!K429+'FR-16(7)(v)-7 TRANS Demand'!K429+'FR-16(7)(v)-8 TRANS Energy'!K429+'FR-16(7)(v)-9 TRANS Cust'!K429+'FR-16(7)(v)-11 DIST Demand'!K429+'FR-16(7)(v)-12 DIST Energy'!K429+'FR-16(7)(v)-13 DIST Cust'!K429","v":4801},{"$f":"'FR-16(7)(v)-3 PROD Demand'!L429+'FR-16(7)(v)-4 PROD Energy'!L429+'FR-16(7)(v)-5 PROD Cust'!L429+'FR-16(7)(v)-7 TRANS Demand'!L429+'FR-16(7)(v)-8 TRANS Energy'!L429+'FR-16(7)(v)-9 TRANS Cust'!L429+'FR-16(7)(v)-11 DIST Demand'!L429+'FR-16(7)(v)-12 DIST Energy'!L429+'FR-16(7)(v)-13 DIST Cust'!L429","v":7892926},{"$f":"'FR-16(7)(v)-3 PROD Demand'!M429+'FR-16(7)(v)-4 PROD Energy'!M429+'FR-16(7)(v)-5 PROD Cust'!M429+'FR-16(7)(v)-7 TRANS Demand'!M429+'FR-16(7)(v)-8 TRANS Energy'!M429+'FR-16(7)(v)-9 TRANS Cust'!M429+'FR-16(7)(v)-11 DIST Demand'!M429+'FR-16(7)(v)-12 DIST Energy'!M429+'FR-16(7)(v)-13 DIST Cust'!M429","v":5212238},{"$f":"'FR-16(7)(v)-3 PROD Demand'!N429+'FR-16(7)(v)-4 PROD Energy'!N429+'FR-16(7)(v)-5 PROD Cust'!N429+'FR-16(7)(v)-7 TRANS Demand'!N429+'FR-16(7)(v)-8 TRANS Energy'!N429+'FR-16(7)(v)-9 TRANS Cust'!N429+'FR-16(7)(v)-11 DIST Demand'!N429+'FR-16(7)(v)-12 DIST Energy'!N429+'FR-16(7)(v)-13 DIST Cust'!N429","v":255368},{"$f":"'FR-16(7)(v)-3 PROD Demand'!O429+'FR-16(7)(v)-4 PROD Energy'!O429+'FR-16(7)(v)-5 PROD Cust'!O429+'FR-16(7)(v)-7 TRANS Demand'!O429+'FR-16(7)(v)-8 TRANS Energy'!O429+'FR-16(7)(v)-9 TRANS Cust'!O429+'FR-16(7)(v)-11 DIST Demand'!O429+'FR-16(7)(v)-12 DIST Energy'!O429+'FR-16(7)(v)-13 DIST Cust'!O429","v":1719996},{"$f":"'FR-16(7)(v)-3 PROD Demand'!P429+'FR-16(7)(v)-4 PROD Energy'!P429+'FR-16(7)(v)-5 PROD Cust'!P429+'FR-16(7)(v)-7 TRANS Demand'!P429+'FR-16(7)(v)-8 TRANS Energy'!P429+'FR-16(7)(v)-9 TRANS Cust'!P429+'FR-16(7)(v)-11 DIST Demand'!P429+'FR-16(7)(v)-12 DIST Energy'!P429+'FR-16(7)(v)-13 DIST Cust'!P429","v":316452},{"$f":"'FR-16(7)(v)-3 PROD Demand'!Q429+'FR-16(7)(v)-4 PROD Energy'!Q429+'FR-16(7)(v)-5 PROD Cust'!Q429+'FR-16(7)(v)-7 TRANS Demand'!Q429+'FR-16(7)(v)-8 TRANS Energy'!Q429+'FR-16(7)(v)-9 TRANS Cust'!Q429+'FR-16(7)(v)-11 DIST Demand'!Q429+'FR-16(7)(v)-12 DIST Energy'!Q429+'FR-16(7)(v)-13 DIST Cust'!Q429","v":6889},{"$f":"SUM(G429:Q429)","v":63505306},{"$f":"F429-R429","v":9465}]
[41]
[42,{"$f":"'FR-16(7)(v)-1 Functional'!B431","v":"ELECTRIC RATE BASE"},null,{"$f":"'FR-16(7)(v)-1 Functional'!D431","v":"RB99"},null,{"$f":"'FR-16(7)(v)-1 Functional'!F431","v":946427826},{"$f":"'FR-16(7)(v)-3 PROD Demand'!G431+'FR-16(7)(v)-4 PROD Energy'!G431+'FR-16(7)(v)-5 PROD Cust'!G431+'FR-16(7)(v)-7 TRANS Demand'!G431+'FR-16(7)(v)-8 TRANS Energy'!G431+'FR-16(7)(v)-9 TRANS Cust'!G431+'FR-16(7)(v)-11 DIST Demand'!G431+'FR-16(7)(v)-12 DIST Energy'!G431+'FR-16(7)(v)-13 DIST Cust'!G431","v":468139197},{"$f":"'FR-16(7)(v)-3 PROD Demand'!H431+'FR-16(7)(v)-4 PROD Energy'!H431+'FR-16(7)(v)-5 PROD Cust'!H431+'FR-16(7)(v)-7 TRANS Demand'!H431+'FR-16(7)(v)-8 TRANS Energy'!H431+'FR-16(7)(v)-9 TRANS Cust'!H431+'FR-16(7)(v)-11 DIST Demand'!H431+'FR-16(7)(v)-12 DIST Energy'!H431+'FR-16(7)(v)-13 DIST Cust'!H431","v":242512699},{"$f":"'FR-16(7)(v)-3 PROD Demand'!I431+'FR-16(7)(v)-4 PROD Energy'!I431+'FR-16(7)(v)-5 PROD Cust'!I431+'FR-16(7)(v)-7 TRANS Demand'!I431+'FR-16(7)(v)-8 TRANS Energy'!I431+'FR-16(7)(v)-9 TRANS Cust'!I431+'FR-16(7)(v)-11 DIST Demand'!I431+'FR-16(7)(v)-12 DIST Energy'!I431+'FR-16(7)(v)-13 DIST Cust'!I431","v":1195755},{"$f":"'FR-16(7)(v)-3 PROD Demand'!J431+'FR-16(7)(v)-4 PROD Energy'!J431+'FR-16(7)(v)-5 PROD Cust'!J431+'FR-16(7)(v)-7 TRANS Demand'!J431+'FR-16(7)(v)-8 TRANS Energy'!J431+'FR-16(7)(v)-9 TRANS Cust'!J431+'FR-16(7)(v)-11 DIST Demand'!J431+'FR-16(7)(v)-12 DIST Energy'!J431+'FR-16(7)(v)-13 DIST Cust'!J431","v":4690079},{"$f":"'FR-16(7)(v)-3 PROD Demand'!K431+'FR-16(7)(v)-4 PROD Energy'!K431+'FR-16(7)(v)-5 PROD Cust'!K431+'FR-16(7)(v)-7 TRANS Demand'!K431+'FR-16(7)(v)-8 TRANS Energy'!K431+'FR-16(7)(v)-9 TRANS Cust'!K431+'FR-16(7)(v)-11 DIST Demand'!K431+'FR-16(7)(v)-12 DIST Energy'!K431+'FR-16(7)(v)-13 DIST Cust'!K431","v":71826},{"$f":"'FR-16(7)(v)-3 PROD Demand'!L431+'FR-16(7)(v)-4 PROD Energy'!L431+'FR-16(7)(v)-5 PROD Cust'!L431+'FR-16(7)(v)-7 TRANS Demand'!L431+'FR-16(7)(v)-8 TRANS Energy'!L431+'FR-16(7)(v)-9 TRANS Cust'!L431+'FR-16(7)(v)-11 DIST Demand'!L431+'FR-16(7)(v)-12 DIST Energy'!L431+'FR-16(7)(v)-13 DIST Cust'!L431","v":117789743},{"$f":"'FR-16(7)(v)-3 PROD Demand'!M431+'FR-16(7)(v)-4 PROD Energy'!M431+'FR-16(7)(v)-5 PROD Cust'!M431+'FR-16(7)(v)-7 TRANS Demand'!M431+'FR-16(7)(v)-8 TRANS Energy'!M431+'FR-16(7)(v)-9 TRANS Cust'!M431+'FR-16(7)(v)-11 DIST Demand'!M431+'FR-16(7)(v)-12 DIST Energy'!M431+'FR-16(7)(v)-13 DIST Cust'!M431","v":77785206},{"$f":"'FR-16(7)(v)-3 PROD Demand'!N431+'FR-16(7)(v)-4 PROD Energy'!N431+'FR-16(7)(v)-5 PROD Cust'!N431+'FR-16(7)(v)-7 TRANS Demand'!N431+'FR-16(7)(v)-8 TRANS Energy'!N431+'FR-16(7)(v)-9 TRANS Cust'!N431+'FR-16(7)(v)-11 DIST Demand'!N431+'FR-16(7)(v)-12 DIST Energy'!N431+'FR-16(7)(v)-13 DIST Cust'!N431","v":3811616},{"$f":"'FR-16(7)(v)-3 PROD Demand'!O431+'FR-16(7)(v)-4 PROD Energy'!O431+'FR-16(7)(v)-5 PROD Cust'!O431+'FR-16(7)(v)-7 TRANS Demand'!O431+'FR-16(7)(v)-8 TRANS Energy'!O431+'FR-16(7)(v)-9 TRANS Cust'!O431+'FR-16(7)(v)-11 DIST Demand'!O431+'FR-16(7)(v)-12 DIST Energy'!O431+'FR-16(7)(v)-13 DIST Cust'!O431","v":25635088},{"$f":"'FR-16(7)(v)-3 PROD Demand'!P431+'FR-16(7)(v)-4 PROD Energy'!P431+'FR-16(7)(v)-5 PROD Cust'!P431+'FR-16(7)(v)-7 TRANS Demand'!P431+'FR-16(7)(v)-8 TRANS Energy'!P431+'FR-16(7)(v)-9 TRANS Cust'!P431+'FR-16(7)(v)-11 DIST Demand'!P431+'FR-16(7)(v)-12 DIST Energy'!P431+'FR-16(7)(v)-13 DIST Cust'!P431","v":4693439},{"$f":"'FR-16(7)(v)-3 PROD Demand'!Q431+'FR-16(7)(v)-4 PROD Energy'!Q431+'FR-16(7)(v)-5 PROD Cust'!Q431+'FR-16(7)(v)-7 TRANS Demand'!Q431+'FR-16(7)(v)-8 TRANS Energy'!Q431+'FR-16(7)(v)-9 TRANS Cust'!Q431+'FR-16(7)(v)-11 DIST Demand'!Q431+'FR-16(7)(v)-12 DIST Energy'!Q431+'FR-16(7)(v)-13 DIST Cust'!Q431","v":103178},{"$f":"SUM(G431:Q431)","v":946427826},{"$f":"F431-R431","v":0}]
[43,{"$f":"'FR-16(7)(v)-1 Functional'!B432","v":"TOTAL RATE OF RETURN ALLOWABLE"},null,null,null,{"$f":"RofR","v":6.7110000000000003E-2},6.7110000000000003E-2,6.7110000000000003E-2,6.7110000000000003E-2,6.7110000000000003E-2,6.7110000000000003E-2,6.7110000000000003E-2,6.7110000000000003E-2,6.7110000000000003E-2,6.7110000000000003E-2,6.7110000000000003E-2,6.7110000000000003E-2,6.7110000000000003E-2]
[44,{"$f":"'FR-16(7)(v)-1 Functional'!B433","v":"RETURN ON RATE BASE"},null,null,null,{"$f":"'FR-16(7)(v)-1 Functional'!F433","v":63514771},{"$f":"'FR-16(7)(v)-3 PROD Demand'!G433+'FR-16(7)(v)-4 PROD Energy'!G433+'FR-16(7)(v)-5 PROD Cust'!G433+'FR-16(7)(v)-7 TRANS Demand'!G433+'FR-16(7)(v)-8 TRANS Energy'!G433+'FR-16(7)(v)-9 TRANS Cust'!G433+'FR-16(7)(v)-11 DIST Demand'!G433+'FR-16(7)(v)-12 DIST Energy'!G433+'FR-16(7)(v)-13 DIST Cust'!G433","v":31416824},{"$f":"'FR-16(7)(v)-3 PROD Demand'!H433+'FR-16(7)(v)-4 PROD Energy'!H433+'FR-16(7)(v)-5 PROD Cust'!H433+'FR-16(7)(v)-7 TRANS Demand'!H433+'FR-16(7)(v)-8 TRANS Energy'!H433+'FR-16(7)(v)-9 TRANS Cust'!H433+'FR-16(7)(v)-11 DIST Demand'!H433+'FR-16(7)(v)-12 DIST Energy'!H433+'FR-16(7)(v)-13 DIST Cust'!H433","v":16275026},{"$f":"'FR-16(7)(v)-3 PROD Demand'!I433+'FR-16(7)(v)-4 PROD Energy'!I433+'FR-16(7)(v)-5 PROD Cust'!I433+'FR-16(7)(v)-7 TRANS Demand'!I433+'FR-16(7)(v)-8 TRANS Energy'!I433+'FR-16(7)(v)-9 TRANS Cust'!I433+'FR-16(7)(v)-11 DIST Demand'!I433+'FR-16(7)(v)-12 DIST Energy'!I433+'FR-16(7)(v)-13 DIST Cust'!I433","v":80246},{"$f":"'FR-16(7)(v)-3 PROD Demand'!J433+'FR-16(7)(v)-4 PROD Energy'!J433+'FR-16(7)(v)-5 PROD Cust'!J433+'FR-16(7)(v)-7 TRANS Demand'!J433+'FR-16(7)(v)-8 TRANS Energy'!J433+'FR-16(7)(v)-9 TRANS Cust'!J433+'FR-16(7)(v)-11 DIST Demand'!J433+'FR-16(7)(v)-12 DIST Energy'!J433+'FR-16(7)(v)-13 DIST Cust'!J433","v":314751},{"$f":"'FR-16(7)(v)-3 PROD Demand'!K433+'FR-16(7)(v)-4 PROD Energy'!K433+'FR-16(7)(v)-5 PROD Cust'!K433+'FR-16(7)(v)-7 TRANS Demand'!K433+'FR-16(7)(v)-8 TRANS Energy'!K433+'FR-16(7)(v)-9 TRANS Cust'!K433+'FR-16(7)(v)-11 DIST Demand'!K433+'FR-16(7)(v)-12 DIST Energy'!K433+'FR-16(7)(v)-13 DIST Cust'!K433","v":4820},{"$f":"'FR-16(7)(v)-3 PROD Demand'!L433+'FR-16(7)(v)-4 PROD Energy'!L433+'FR-16(7)(v)-5 PROD Cust'!L433+'FR-16(7)(v)-7 TRANS Demand'!L433+'FR-16(7)(v)-8 TRANS Energy'!L433+'FR-16(7)(v)-9 TRANS Cust'!L433+'FR-16(7)(v)-11 DIST Demand'!L433+'FR-16(7)(v)-12 DIST Energy'!L433+'FR-16(7)(v)-13 DIST Cust'!L433","v":7904870},{"$f":"'FR-16(7)(v)-3 PROD Demand'!M433+'FR-16(7)(v)-4 PROD Energy'!M433+'FR-16(7)(v)-5 PROD Cust'!M433+'FR-16(7)(v)-7 TRANS Demand'!M433+'FR-16(7)(v)-8 TRANS Energy'!M433+'FR-16(7)(v)-9 TRANS Cust'!M433+'FR-16(7)(v)-11 DIST Demand'!M433+'FR-16(7)(v)-12 DIST Energy'!M433+'FR-16(7)(v)-13 DIST Cust'!M433","v":5220166},{"$f":"'FR-16(7)(v)-3 PROD Demand'!N433+'FR-16(7)(v)-4 PROD Energy'!N433+'FR-16(7)(v)-5 PROD Cust'!N433+'FR-16(7)(v)-7 TRANS Demand'!N433+'FR-16(7)(v)-8 TRANS Energy'!N433+'FR-16(7)(v)-9 TRANS Cust'!N433+'FR-16(7)(v)-11 DIST Demand'!N433+'FR-16(7)(v)-12 DIST Energy'!N433+'FR-16(7)(v)-13 DIST Cust'!N433","v":255798},{"$f":"'FR-16(7)(v)-3 PROD Demand'!O433+'FR-16(7)(v)-4 PROD Energy'!O433+'FR-16(7)(v)-5 PROD Cust'!O433+'FR-16(7)(v)-7 TRANS Demand'!O433+'FR-16(7)(v)-8 TRANS Energy'!O433+'FR-16(7)(v)-9 TRANS Cust'!O433+'FR-16(7)(v)-11 DIST Demand'!O433+'FR-16(7)(v)-12 DIST Energy'!O433+'FR-16(7)(v)-13 DIST Cust'!O433","v":1720370},{"$f":"'FR-16(7)(v)-3 PROD Demand'!P433+'FR-16(7)(v)-4 PROD Energy'!P433+'FR-16(7)(v)-5 PROD Cust'!P433+'FR-16(7)(v)-7 TRANS Demand'!P433+'FR-16(7)(v)-8 TRANS Energy'!P433+'FR-16(7)(v)-9 TRANS Cust'!P433+'FR-16(7)(v)-11 DIST Demand'!P433+'FR-16(7)(v)-12 DIST Energy'!P433+'FR-16(7)(v)-13 DIST Cust'!P433","v":314977},{"$f":"'FR-16(7)(v)-3 PROD Demand'!Q433+'FR-16(7)(v)-4 PROD Energy'!Q433+'FR-16(7)(v)-5 PROD Cust'!Q433+'FR-16(7)(v)-7 TRANS Demand'!Q433+'FR-16(7)(v)-8 TRANS Energy'!Q433+'FR-16(7)(v)-9 TRANS Cust'!Q433+'FR-16(7)(v)-11 DIST Demand'!Q433+'FR-16(7)(v)-12 DIST Energy'!Q433+'FR-16(7)(v)-13 DIST Cust'!Q433","v":6924},{"$f":"SUM(G433:Q433)","v":63514772},{"$f":"F433-R433","v":-1}]
[]
[{"$f":"co_name","v":"DUKE ENERGY KENTUCKY, INC."},null,null,null,null,null,null,null,null,null,null,null,null,null,null,null,null,{"$f":"R1","v":"FR-16(7)(v)-14"}]
[{"$f":"$A$2","v":"TOTAL CLASS ALLOCATED - ELECTRIC COST OF SERVICE"},null,null,null,null,null,null,null,null,null,null,null,null,null,null,null,null,{"$f":"R2","v":"WITNESS RESPONSIBLE:"}]
[{"$f":"case_name","v":"CASE NO: 2019-00271"},null,null,null,null,null,null,null,null,null,null,null,null,null,null,null,null,{"$f":"Witness","v":"JAMES E. ZIOLKOWSKI"}]
[{"$f":"data_filing","v":"DATA: 12 MONTHS ACTUAL  & 0 MONTHS ESTIMATED"},null,null,null,null,null,null,null,null,null,null,null,null,null,null,null,null,{"$f":"\"PAGE \"&Pages2-7&\" OF \"&Pages2","v":"PAGE 8 OF 15"}]
[{"$f":"type","v":"TYPE OF FILING: \"X\" ORIGINAL   UPDATED    REVISED  "}]
[]
[null,null,null,null,null,{"$f":"F$7","v":"TOTAL"},null,{"$f":"H$7","v":"DS"},{"$f":"I$7","v":"GSFL"},{"$f":"J$7","v":"EH"},{"$f":"K$7","v":"SP"},"DT SEC","DT PRI","DP","TT",null,"OTHER"]
["LINE",null,null,null,null,{"$f":"F$8","v":"CLASS"},{"$f":"G$8","v":"RS"},{"$f":"H$8","v":"SECONDARY"},{"$f":"I$8","v":"SECONDARY"},{"$f":"J$8","v":"SECONDARY"},{"$f":"K$8","v":"SECONDARY"},"SECONDARY","PRIMARY","PRIMARY","TRANSMISSION","LT","WATER",{"$f":"R8","v":"TOTAL"},"ALL"]
["NO.","O&M EXPENSES",null,"ALLO",null,{"$f":"F$9","v":"ALLOCATED"},{"$f":"G$9","v":"RESIDENTIAL"},{"$f":"H$9","v":"DISTRIBUTION"},{"$f":"I$9","v":"DISTRIBUTION"},{"$f":"J$9","v":"DISTRIBUTION"},{"$f":"K$9","v":"DISTRIBUTION"},"DISTRIBUTION","DISTRIBUTION","DISTRIBUTION","TIME OF DAY","LIGHTING","PUMPING",{"$f":"R9","v":"AT ISSUE"},"OTHER"]
[null,null,"Schedule 6",null,null,null,{"$f":"G$10","v":3},{"$f":"H$10","v":4},{"$f":"I$10","v":5},{"$f":"J$10","v":6},{"$f":"K$10","v":7},8,9,10,11,12,13,null," "]
[1,"PRODUCTION O&M"]
[2,{"$f":"'FR-16(7)(v)-1 Functional'!B446","v":"ENERGY RELATED PRODUCTION O&M"}]
[3,null,{"$f":"'FR-16(7)(v)-1 Functional'!C447","v":"FUEL"},{"$f":"'FR-16(7)(v)-1 Functional'!D447","v":"K302"},null,{"$f":"'FR-16(7)(v)-1 Functional'!F447","v":0},{"$f":"'FR-16(7)(v)-3 PROD Demand'!G447+'FR-16(7)(v)-4 PROD Energy'!G447+'FR-16(7)(v)-5 PROD Cust'!G447+'FR-16(7)(v)-7 TRANS Demand'!G447+'FR-16(7)(v)-8 TRANS Energy'!G447+'FR-16(7)(v)-9 TRANS Cust'!G447+'FR-16(7)(v)-11 DIST Demand'!G447+'FR-16(7)(v)-12 DIST Energy'!G447+'FR-16(7)(v)-13 DIST Cust'!G447","v":0},{"$f":"'FR-16(7)(v)-3 PROD Demand'!H447+'FR-16(7)(v)-4 PROD Energy'!H447+'FR-16(7)(v)-5 PROD Cust'!H447+'FR-16(7)(v)-7 TRANS Demand'!H447+'FR-16(7)(v)-8 TRANS Energy'!H447+'FR-16(7)(v)-9 TRANS Cust'!H447+'FR-16(7)(v)-11 DIST Demand'!H447+'FR-16(7)(v)-12 DIST Energy'!H447+'FR-16(7)(v)-13 DIST Cust'!H447","v":0},{"$f":"'FR-16(7)(v)-3 PROD Demand'!I447+'FR-16(7)(v)-4 PROD Energy'!I447+'FR-16(7)(v)-5 PROD Cust'!I447+'FR-16(7)(v)-7 TRANS Demand'!I447+'FR-16(7)(v)-8 TRANS Energy'!I447+'FR-16(7)(v)-9 TRANS Cust'!I447+'FR-16(7)(v)-11 DIST Demand'!I447+'FR-16(7)(v)-12 DIST Energy'!I447+'FR-16(7)(v)-13 DIST Cust'!I447","v":0},{"$f":"'FR-16(7)(v)-3 PROD Demand'!J447+'FR-16(7)(v)-4 PROD Energy'!J447+'FR-16(7)(v)-5 PROD Cust'!J447+'FR-16(7)(v)-7 TRANS Demand'!J447+'FR-16(7)(v)-8 TRANS Energy'!J447+'FR-16(7)(v)-9 TRANS Cust'!J447+'FR-16(7)(v)-11 DIST Demand'!J447+'FR-16(7)(v)-12 DIST Energy'!J447+'FR-16(7)(v)-13 DIST Cust'!J447","v":0},{"$f":"'FR-16(7)(v)-3 PROD Demand'!K447+'FR-16(7)(v)-4 PROD Energy'!K447+'FR-16(7)(v)-5 PROD Cust'!K447+'FR-16(7)(v)-7 TRANS Demand'!K447+'FR-16(7)(v)-8 TRANS Energy'!K447+'FR-16(7)(v)-9 TRANS Cust'!K447+'FR-16(7)(v)-11 DIST Demand'!K447+'FR-16(7)(v)-12 DIST Energy'!K447+'FR-16(7)(v)-13 DIST Cust'!K447","v":0},{"$f":"'FR-16(7)(v)-3 PROD Demand'!L447+'FR-16(7)(v)-4 PROD Energy'!L447+'FR-16(7)(v)-5 PROD Cust'!L447+'FR-16(7)(v)-7 TRANS Demand'!L447+'FR-16(7)(v)-8 TRANS Energy'!L447+'FR-16(7)(v)-9 TRANS Cust'!L447+'FR-16(7)(v)-11 DIST Demand'!L447+'FR-16(7)(v)-12 DIST Energy'!L447+'FR-16(7)(v)-13 DIST Cust'!L447","v":0},{"$f":"'FR-16(7)(v)-3 PROD Demand'!M447+'FR-16(7)(v)-4 PROD Energy'!M447+'FR-16(7)(v)-5 PROD Cust'!M447+'FR-16(7)(v)-7 TRANS Demand'!M447+'FR-16(7)(v)-8 TRANS Energy'!M447+'FR-16(7)(v)-9 TRANS Cust'!M447+'FR-16(7)(v)-11 DIST Demand'!M447+'FR-16(7)(v)-12 DIST Energy'!M447+'FR-16(7)(v)-13 DIST Cust'!M447","v":0},{"$f":"'FR-16(7)(v)-3 PROD Demand'!N447+'FR-16(7)(v)-4 PROD Energy'!N447+'FR-16(7)(v)-5 PROD Cust'!N447+'FR-16(7)(v)-7 TRANS Demand'!N447+'FR-16(7)(v)-8 TRANS Energy'!N447+'FR-16(7)(v)-9 TRANS Cust'!N447+'FR-16(7)(v)-11 DIST Demand'!N447+'FR-16(7)(v)-12 DIST Energy'!N447+'FR-16(7)(v)-13 DIST Cust'!N447","v":0},{"$f":"'FR-16(7)(v)-3 PROD Demand'!O447+'FR-16(7)(v)-4 PROD Energy'!O447+'FR-16(7)(v)-5 PROD Cust'!O447+'FR-16(7)(v)-7 TRANS Demand'!O447+'FR-16(7)(v)-8 TRANS Energy'!O447+'FR-16(7)(v)-9 TRANS Cust'!O447+'FR-16(7)(v)-11 DIST Demand'!O447+'FR-16(7)(v)-12 DIST Energy'!O447+'FR-16(7)(v)-13 DIST Cust'!O447","v":0},{"$f":"'FR-16(7)(v)-3 PROD Demand'!P447+'FR-16(7)(v)-4 PROD Energy'!P447+'FR-16(7)(v)-5 PROD Cust'!P447+'FR-16(7)(v)-7 TRANS Demand'!P447+'FR-16(7)(v)-8 TRANS Energy'!P447+'FR-16(7)(v)-9 TRANS Cust'!P447+'FR-16(7)(v)-11 DIST Demand'!P447+'FR-16(7)(v)-12 DIST Energy'!P447+'FR-16(7)(v)-13 DIST Cust'!P447","v":0},{"$f":"'FR-16(7)(v)-3 PROD Demand'!Q447+'FR-16(7)(v)-4 PROD Energy'!Q447+'FR-16(7)(v)-5 PROD Cust'!Q447+'FR-16(7)(v)-7 TRANS Demand'!Q447+'FR-16(7)(v)-8 TRANS Energy'!Q447+'FR-16(7)(v)-9 TRANS Cust'!Q447+'FR-16(7)(v)-11 DIST Demand'!Q447+'FR-16(7)(v)-12 DIST Energy'!Q447+'FR-16(7)(v)-13 DIST Cust'!Q447","v":0},{"$f":"SUM(G447:Q447)","v":0},{"$f":"F447-R447","v":0}]
[4,null,{"$f":"'FR-16(7)(v)-1 Functional'!C448","v":"FUEL AND PURCHASED POWER ADJUSTMENT"},{"$f":"'FR-16(7)(v)-1 Functional'!D448","v":"K302"},null,{"$f":"'FR-16(7)(v)-1 Functional'!F448","v":100379685},{"$f":"'FR-16(7)(v)-3 PROD Demand'!G448+'FR-16(7)(v)-4 PROD Energy'!G448+'FR-16(7)(v)-5 PROD Cust'!G448+'FR-16(7)(v)-7 TRANS Demand'!G448+'FR-16(7)(v)-8 TRANS Energy'!G448+'FR-16(7)(v)-9 TRANS Cust'!G448+'FR-16(7)(v)-11 DIST Demand'!G448+'FR-16(7)(v)-12 DIST Energy'!G448+'FR-16(7)(v)-13 DIST Cust'!G448","v":38048920},{"$f":"'FR-16(7)(v)-3 PROD Demand'!H448+'FR-16(7)(v)-4 PROD Energy'!H448+'FR-16(7)(v)-5 PROD Cust'!H448+'FR-16(7)(v)-7 TRANS Demand'!H448+'FR-16(7)(v)-8 TRANS Energy'!H448+'FR-16(7)(v)-9 TRANS Cust'!H448+'FR-16(7)(v)-11 DIST Demand'!H448+'FR-16(7)(v)-12 DIST Energy'!H448+'FR-16(7)(v)-13 DIST Cust'!H448","v":27126606},{"$f":"'FR-16(7)(v)-3 PROD Demand'!I448+'FR-16(7)(v)-4 PROD Energy'!I448+'FR-16(7)(v)-5 PROD Cust'!I448+'FR-16(7)(v)-7 TRANS Demand'!I448+'FR-16(7)(v)-8 TRANS Energy'!I448+'FR-16(7)(v)-9 TRANS Cust'!I448+'FR-16(7)(v)-11 DIST Demand'!I448+'FR-16(7)(v)-12 DIST Energy'!I448+'FR-16(7)(v)-13 DIST Cust'!I448","v":151573},{"$f":"'FR-16(7)(v)-3 PROD Demand'!J448+'FR-16(7)(v)-4 PROD Energy'!J448+'FR-16(7)(v)-5 PROD Cust'!J448+'FR-16(7)(v)-7 TRANS Demand'!J448+'FR-16(7)(v)-8 TRANS Energy'!J448+'FR-16(7)(v)-9 TRANS Cust'!J448+'FR-16(7)(v)-11 DIST Demand'!J448+'FR-16(7)(v)-12 DIST Energy'!J448+'FR-16(7)(v)-13 DIST Cust'!J448","v":430629},{"$f":"'FR-16(7)(v)-3 PROD Demand'!K448+'FR-16(7)(v)-4 PROD Energy'!K448+'FR-16(7)(v)-5 PROD Cust'!K448+'FR-16(7)(v)-7 TRANS Demand'!K448+'FR-16(7)(v)-8 TRANS Energy'!K448+'FR-16(7)(v)-9 TRANS Cust'!K448+'FR-16(7)(v)-11 DIST Demand'!K448+'FR-16(7)(v)-12 DIST Energy'!K448+'FR-16(7)(v)-13 DIST Cust'!K448","v":7027},{"$f":"'FR-16(7)(v)-3 PROD Demand'!L448+'FR-16(7)(v)-4 PROD Energy'!L448+'FR-16(7)(v)-5 PROD Cust'!L448+'FR-16(7)(v)-7 TRANS Demand'!L448+'FR-16(7)(v)-8 TRANS Energy'!L448+'FR-16(7)(v)-9 TRANS Cust'!L448+'FR-16(7)(v)-11 DIST Demand'!L448+'FR-16(7)(v)-12 DIST Energy'!L448+'FR-16(7)(v)-13 DIST Cust'!L448","v":16576701},{"$f":"'FR-16(7)(v)-3 PROD Demand'!M448+'FR-16(7)(v)-4 PROD Energy'!M448+'FR-16(7)(v)-5 PROD Cust'!M448+'FR-16(7)(v)-7 TRANS Demand'!M448+'FR-16(7)(v)-8 TRANS Energy'!M448+'FR-16(7)(v)-9 TRANS Cust'!M448+'FR-16(7)(v)-11 DIST Demand'!M448+'FR-16(7)(v)-12 DIST Energy'!M448+'FR-16(7)(v)-13 DIST Cust'!M448","v":11552698},{"$f":"'FR-16(7)(v)-3 PROD Demand'!N448+'FR-16(7)(v)-4 PROD Energy'!N448+'FR-16(7)(v)-5 PROD Cust'!N448+'FR-16(7)(v)-7 TRANS Demand'!N448+'FR-16(7)(v)-8 TRANS Energy'!N448+'FR-16(7)(v)-9 TRANS Cust'!N448+'FR-16(7)(v)-11 DIST Demand'!N448+'FR-16(7)(v)-12 DIST Energy'!N448+'FR-16(7)(v)-13 DIST Cust'!N448","v":542050},{"$f":"'FR-16(7)(v)-3 PROD Demand'!O448+'FR-16(7)(v)-4 PROD Energy'!O448+'FR-16(7)(v)-5 PROD Cust'!O448+'FR-16(7)(v)-7 TRANS Demand'!O448+'FR-16(7)(v)-8 TRANS Energy'!O448+'FR-16(7)(v)-9 TRANS Cust'!O448+'FR-16(7)(v)-11 DIST Demand'!O448+'FR-16(7)(v)-12 DIST Energy'!O448+'FR-16(7)(v)-13 DIST Cust'!O448","v":5492776},{"$f":"'FR-16(7)(v)-3 PROD Demand'!P448+'FR-16(7)(v)-4 PROD Energy'!P448+'FR-16(7)(v)-5 PROD Cust'!P448+'FR-16(7)(v)-7 TRANS Demand'!P448+'FR-16(7)(v)-8 TRANS Energy'!P448+'FR-16(7)(v)-9 TRANS Cust'!P448+'FR-16(7)(v)-11 DIST Demand'!P448+'FR-16(7)(v)-12 DIST Energy'!P448+'FR-16(7)(v)-13 DIST Cust'!P448","v":439663},{"$f":"'FR-16(7)(v)-3 PROD Demand'!Q448+'FR-16(7)(v)-4 PROD Energy'!Q448+'FR-16(7)(v)-5 PROD Cust'!Q448+'FR-16(7)(v)-7 TRANS Demand'!Q448+'FR-16(7)(v)-8 TRANS Energy'!Q448+'FR-16(7)(v)-9 TRANS Cust'!Q448+'FR-16(7)(v)-11 DIST Demand'!Q448+'FR-16(7)(v)-12 DIST Energy'!Q448+'FR-16(7)(v)-13 DIST Cust'!Q448","v":11042},100379685,0]
[5,null,{"$f":"'FR-16(7)(v)-1 Functional'!C449","v":"EMISSION ALLOWANCES"},{"$f":"'FR-16(7)(v)-1 Functional'!D449","v":"K301"},null,{"$f":"'FR-16(7)(v)-1 Functional'!F449","v":0},{"$f":"'FR-16(7)(v)-3 PROD Demand'!G449+'FR-16(7)(v)-4 PROD Energy'!G449+'FR-16(7)(v)-5 PROD Cust'!G449+'FR-16(7)(v)-7 TRANS Demand'!G449+'FR-16(7)(v)-8 TRANS Energy'!G449+'FR-16(7)(v)-9 TRANS Cust'!G449+'FR-16(7)(v)-11 DIST Demand'!G449+'FR-16(7)(v)-12 DIST Energy'!G449+'FR-16(7)(v)-13 DIST Cust'!G449","v":0},{"$f":"'FR-16(7)(v)-3 PROD Demand'!H449+'FR-16(7)(v)-4 PROD Energy'!H449+'FR-16(7)(v)-5 PROD Cust'!H449+'FR-16(7)(v)-7 TRANS Demand'!H449+'FR-16(7)(v)-8 TRANS Energy'!H449+'FR-16(7)(v)-9 TRANS Cust'!H449+'FR-16(7)(v)-11 DIST Demand'!H449+'FR-16(7)(v)-12 DIST Energy'!H449+'FR-16(7)(v)-13 DIST Cust'!H449","v":0},{"$f":"'FR-16(7)(v)-3 PROD Demand'!I449+'FR-16(7)(v)-4 PROD Energy'!I449+'FR-16(7)(v)-5 PROD Cust'!I449+'FR-16(7)(v)-7 TRANS Demand'!I449+'FR-16(7)(v)-8 TRANS Energy'!I449+'FR-16(7)(v)-9 TRANS Cust'!I449+'FR-16(7)(v)-11 DIST Demand'!I449+'FR-16(7)(v)-12 DIST Energy'!I449+'FR-16(7)(v)-13 DIST Cust'!I449","v":0},{"$f":"'FR-16(7)(v)-3 PROD Demand'!J449+'FR-16(7)(v)-4 PROD Energy'!J449+'FR-16(7)(v)-5 PROD Cust'!J449+'FR-16(7)(v)-7 TRANS Demand'!J449+'FR-16(7)(v)-8 TRANS Energy'!J449+'FR-16(7)(v)-9 TRANS Cust'!J449+'FR-16(7)(v)-11 DIST Demand'!J449+'FR-16(7)(v)-12 DIST Energy'!J449+'FR-16(7)(v)-13 DIST Cust'!J449","v":0},{"$f":"'FR-16(7)(v)-3 PROD Demand'!K449+'FR-16(7)(v)-4 PROD Energy'!K449+'FR-16(7)(v)-5 PROD Cust'!K449+'FR-16(7)(v)-7 TRANS Demand'!K449+'FR-16(7)(v)-8 TRANS Energy'!K449+'FR-16(7)(v)-9 TRANS Cust'!K449+'FR-16(7)(v)-11 DIST Demand'!K449+'FR-16(7)(v)-12 DIST Energy'!K449+'FR-16(7)(v)-13 DIST Cust'!K449","v":0},{"$f":"'FR-16(7)(v)-3 PROD Demand'!L449+'FR-16(7)(v)-4 PROD Energy'!L449+'FR-16(7)(v)-5 PROD Cust'!L449+'FR-16(7)(v)-7 TRANS Demand'!L449+'FR-16(7)(v)-8 TRANS Energy'!L449+'FR-16(7)(v)-9 TRANS Cust'!L449+'FR-16(7)(v)-11 DIST Demand'!L449+'FR-16(7)(v)-12 DIST Energy'!L449+'FR-16(7)(v)-13 DIST Cust'!L449","v":0},{"$f":"'FR-16(7)(v)-3 PROD Demand'!M449+'FR-16(7)(v)-4 PROD Energy'!M449+'FR-16(7)(v)-5 PROD Cust'!M449+'FR-16(7)(v)-7 TRANS Demand'!M449+'FR-16(7)(v)-8 TRANS Energy'!M449+'FR-16(7)(v)-9 TRANS Cust'!M449+'FR-16(7)(v)-11 DIST Demand'!M449+'FR-16(7)(v)-12 DIST Energy'!M449+'FR-16(7)(v)-13 DIST Cust'!M449","v":0},{"$f":"'FR-16(7)(v)-3 PROD Demand'!N449+'FR-16(7)(v)-4 PROD Energy'!N449+'FR-16(7)(v)-5 PROD Cust'!N449+'FR-16(7)(v)-7 TRANS Demand'!N449+'FR-16(7)(v)-8 TRANS Energy'!N449+'FR-16(7)(v)-9 TRANS Cust'!N449+'FR-16(7)(v)-11 DIST Demand'!N449+'FR-16(7)(v)-12 DIST Energy'!N449+'FR-16(7)(v)-13 DIST Cust'!N449","v":0},{"$f":"'FR-16(7)(v)-3 PROD Demand'!O449+'FR-16(7)(v)-4 PROD Energy'!O449+'FR-16(7)(v)-5 PROD Cust'!O449+'FR-16(7)(v)-7 TRANS Demand'!O449+'FR-16(7)(v)-8 TRANS Energy'!O449+'FR-16(7)(v)-9 TRANS Cust'!O449+'FR-16(7)(v)-11 DIST Demand'!O449+'FR-16(7)(v)-12 DIST Energy'!O449+'FR-16(7)(v)-13 DIST Cust'!O449","v":0},{"$f":"'FR-16(7)(v)-3 PROD Demand'!P449+'FR-16(7)(v)-4 PROD Energy'!P449+'FR-16(7)(v)-5 PROD Cust'!P449+'FR-16(7)(v)-7 TRANS Demand'!P449+'FR-16(7)(v)-8 TRANS Energy'!P449+'FR-16(7)(v)-9 TRANS Cust'!P449+'FR-16(7)(v)-11 DIST Demand'!P449+'FR-16(7)(v)-12 DIST Energy'!P449+'FR-16(7)(v)-13 DIST Cust'!P449","v":0},{"$f":"'FR-16(7)(v)-3 PROD Demand'!Q449+'FR-16(7)(v)-4 PROD Energy'!Q449+'FR-16(7)(v)-5 PROD Cust'!Q449+'FR-16(7)(v)-7 TRANS Demand'!Q449+'FR-16(7)(v)-8 TRANS Energy'!Q449+'FR-16(7)(v)-9 TRANS Cust'!Q449+'FR-16(7)(v)-11 DIST Demand'!Q449+'FR-16(7)(v)-12 DIST Energy'!Q449+'FR-16(7)(v)-13 DIST Cust'!Q449","v":0},0,0]
[6,null,{"$f":"'FR-16(7)(v)-1 Functional'!C450","v":"ELIMINATE EMISSION ALLOW & OTHER VAR COST"},{"$f":"'FR-16(7)(v)-1 Functional'!D450","v":"K301"},null,{"$f":"'FR-16(7)(v)-1 Functional'!F450","v":0},{"$f":"'FR-16(7)(v)-3 PROD Demand'!G450+'FR-16(7)(v)-4 PROD Energy'!G450+'FR-16(7)(v)-5 PROD Cust'!G450+'FR-16(7)(v)-7 TRANS Demand'!G450+'FR-16(7)(v)-8 TRANS Energy'!G450+'FR-16(7)(v)-9 TRANS Cust'!G450+'FR-16(7)(v)-11 DIST Demand'!G450+'FR-16(7)(v)-12 DIST Energy'!G450+'FR-16(7)(v)-13 DIST Cust'!G450","v":0},{"$f":"'FR-16(7)(v)-3 PROD Demand'!H450+'FR-16(7)(v)-4 PROD Energy'!H450+'FR-16(7)(v)-5 PROD Cust'!H450+'FR-16(7)(v)-7 TRANS Demand'!H450+'FR-16(7)(v)-8 TRANS Energy'!H450+'FR-16(7)(v)-9 TRANS Cust'!H450+'FR-16(7)(v)-11 DIST Demand'!H450+'FR-16(7)(v)-12 DIST Energy'!H450+'FR-16(7)(v)-13 DIST Cust'!H450","v":0},{"$f":"'FR-16(7)(v)-3 PROD Demand'!I450+'FR-16(7)(v)-4 PROD Energy'!I450+'FR-16(7)(v)-5 PROD Cust'!I450+'FR-16(7)(v)-7 TRANS Demand'!I450+'FR-16(7)(v)-8 TRANS Energy'!I450+'FR-16(7)(v)-9 TRANS Cust'!I450+'FR-16(7)(v)-11 DIST Demand'!I450+'FR-16(7)(v)-12 DIST Energy'!I450+'FR-16(7)(v)-13 DIST Cust'!I450","v":0},{"$f":"'FR-16(7)(v)-3 PROD Demand'!J450+'FR-16(7)(v)-4 PROD Energy'!J450+'FR-16(7)(v)-5 PROD Cust'!J450+'FR-16(7)(v)-7 TRANS Demand'!J450+'FR-16(7)(v)-8 TRANS Energy'!J450+'FR-16(7)(v)-9 TRANS Cust'!J450+'FR-16(7)(v)-11 DIST Demand'!J450+'FR-16(7)(v)-12 DIST Energy'!J450+'FR-16(7)(v)-13 DIST Cust'!J450","v":0},{"$f":"'FR-16(7)(v)-3 PROD Demand'!K450+'FR-16(7)(v)-4 PROD Energy'!K450+'FR-16(7)(v)-5 PROD Cust'!K450+'FR-16(7)(v)-7 TRANS Demand'!K450+'FR-16(7)(v)-8 TRANS Energy'!K450+'FR-16(7)(v)-9 TRANS Cust'!K450+'FR-16(7)(v)-11 DIST Demand'!K450+'FR-16(7)(v)-12 DIST Energy'!K450+'FR-16(7)(v)-13 DIST Cust'!K450","v":0},{"$f":"'FR-16(7)(v)-3 PROD Demand'!L450+'FR-16(7)(v)-4 PROD Energy'!L450+'FR-16(7)(v)-5 PROD Cust'!L450+'FR-16(7)(v)-7 TRANS Demand'!L450+'FR-16(7)(v)-8 TRANS Energy'!L450+'FR-16(7)(v)-9 TRANS Cust'!L450+'FR-16(7)(v)-11 DIST Demand'!L450+'FR-16(7)(v)-12 DIST Energy'!L450+'FR-16(7)(v)-13 DIST Cust'!L450","v":0},{"$f":"'FR-16(7)(v)-3 PROD Demand'!M450+'FR-16(7)(v)-4 PROD Energy'!M450+'FR-16(7)(v)-5 PROD Cust'!M450+'FR-16(7)(v)-7 TRANS Demand'!M450+'FR-16(7)(v)-8 TRANS Energy'!M450+'FR-16(7)(v)-9 TRANS Cust'!M450+'FR-16(7)(v)-11 DIST Demand'!M450+'FR-16(7)(v)-12 DIST Energy'!M450+'FR-16(7)(v)-13 DIST Cust'!M450","v":0},{"$f":"'FR-16(7)(v)-3 PROD Demand'!N450+'FR-16(7)(v)-4 PROD Energy'!N450+'FR-16(7)(v)-5 PROD Cust'!N450+'FR-16(7)(v)-7 TRANS Demand'!N450+'FR-16(7)(v)-8 TRANS Energy'!N450+'FR-16(7)(v)-9 TRANS Cust'!N450+'FR-16(7)(v)-11 DIST Demand'!N450+'FR-16(7)(v)-12 DIST Energy'!N450+'FR-16(7)(v)-13 DIST Cust'!N450","v":0},{"$f":"'FR-16(7)(v)-3 PROD Demand'!O450+'FR-16(7)(v)-4 PROD Energy'!O450+'FR-16(7)(v)-5 PROD Cust'!O450+'FR-16(7)(v)-7 TRANS Demand'!O450+'FR-16(7)(v)-8 TRANS Energy'!O450+'FR-16(7)(v)-9 TRANS Cust'!O450+'FR-16(7)(v)-11 DIST Demand'!O450+'FR-16(7)(v)-12 DIST Energy'!O450+'FR-16(7)(v)-13 DIST Cust'!O450","v":0},{"$f":"'FR-16(7)(v)-3 PROD Demand'!P450+'FR-16(7)(v)-4 PROD Energy'!P450+'FR-16(7)(v)-5 PROD Cust'!P450+'FR-16(7)(v)-7 TRANS Demand'!P450+'FR-16(7)(v)-8 TRANS Energy'!P450+'FR-16(7)(v)-9 TRANS Cust'!P450+'FR-16(7)(v)-11 DIST Demand'!P450+'FR-16(7)(v)-12 DIST Energy'!P450+'FR-16(7)(v)-13 DIST Cust'!P450","v":0},{"$f":"'FR-16(7)(v)-3 PROD Demand'!Q450+'FR-16(7)(v)-4 PROD Energy'!Q450+'FR-16(7)(v)-5 PROD Cust'!Q450+'FR-16(7)(v)-7 TRANS Demand'!Q450+'FR-16(7)(v)-8 TRANS Energy'!Q450+'FR-16(7)(v)-9 TRANS Cust'!Q450+'FR-16(7)(v)-11 DIST Demand'!Q450+'FR-16(7)(v)-12 DIST Energy'!Q450+'FR-16(7)(v)-13 DIST Cust'!Q450","v":0},0,0]
[7,null,{"$f":"'FR-16(7)(v)-1 Functional'!C451","v":"OTHER PRODUCTION EXPENSE - MAINTENANCE"},{"$f":"'FR-16(7)(v)-1 Functional'!D451","v":"K301"},null,{"$f":"'FR-16(7)(v)-1 Functional'!F451","v":40683654},{"$f":"'FR-16(7)(v)-3 PROD Demand'!G451+'FR-16(7)(v)-4 PROD Energy'!G451+'FR-16(7)(v)-5 PROD Cust'!G451+'FR-16(7)(v)-7 TRANS Demand'!G451+'FR-16(7)(v)-8 TRANS Energy'!G451+'FR-16(7)(v)-9 TRANS Cust'!G451+'FR-16(7)(v)-11 DIST Demand'!G451+'FR-16(7)(v)-12 DIST Energy'!G451+'FR-16(7)(v)-13 DIST Cust'!G451","v":15356451},{"$f":"'FR-16(7)(v)-3 PROD Demand'!H451+'FR-16(7)(v)-4 PROD Energy'!H451+'FR-16(7)(v)-5 PROD Cust'!H451+'FR-16(7)(v)-7 TRANS Demand'!H451+'FR-16(7)(v)-8 TRANS Energy'!H451+'FR-16(7)(v)-9 TRANS Cust'!H451+'FR-16(7)(v)-11 DIST Demand'!H451+'FR-16(7)(v)-12 DIST Energy'!H451+'FR-16(7)(v)-13 DIST Cust'!H451","v":10956922},{"$f":"'FR-16(7)(v)-3 PROD Demand'!I451+'FR-16(7)(v)-4 PROD Energy'!I451+'FR-16(7)(v)-5 PROD Cust'!I451+'FR-16(7)(v)-7 TRANS Demand'!I451+'FR-16(7)(v)-8 TRANS Energy'!I451+'FR-16(7)(v)-9 TRANS Cust'!I451+'FR-16(7)(v)-11 DIST Demand'!I451+'FR-16(7)(v)-12 DIST Energy'!I451+'FR-16(7)(v)-13 DIST Cust'!I451","v":61432},{"$f":"'FR-16(7)(v)-3 PROD Demand'!J451+'FR-16(7)(v)-4 PROD Energy'!J451+'FR-16(7)(v)-5 PROD Cust'!J451+'FR-16(7)(v)-7 TRANS Demand'!J451+'FR-16(7)(v)-8 TRANS Energy'!J451+'FR-16(7)(v)-9 TRANS Cust'!J451+'FR-16(7)(v)-11 DIST Demand'!J451+'FR-16(7)(v)-12 DIST Energy'!J451+'FR-16(7)(v)-13 DIST Cust'!J451","v":174126},{"$f":"'FR-16(7)(v)-3 PROD Demand'!K451+'FR-16(7)(v)-4 PROD Energy'!K451+'FR-16(7)(v)-5 PROD Cust'!K451+'FR-16(7)(v)-7 TRANS Demand'!K451+'FR-16(7)(v)-8 TRANS Energy'!K451+'FR-16(7)(v)-9 TRANS Cust'!K451+'FR-16(7)(v)-11 DIST Demand'!K451+'FR-16(7)(v)-12 DIST Energy'!K451+'FR-16(7)(v)-13 DIST Cust'!K451","v":2848},{"$f":"'FR-16(7)(v)-3 PROD Demand'!L451+'FR-16(7)(v)-4 PROD Energy'!L451+'FR-16(7)(v)-5 PROD Cust'!L451+'FR-16(7)(v)-7 TRANS Demand'!L451+'FR-16(7)(v)-8 TRANS Energy'!L451+'FR-16(7)(v)-9 TRANS Cust'!L451+'FR-16(7)(v)-11 DIST Demand'!L451+'FR-16(7)(v)-12 DIST Energy'!L451+'FR-16(7)(v)-13 DIST Cust'!L451","v":6713210},{"$f":"'FR-16(7)(v)-3 PROD Demand'!M451+'FR-16(7)(v)-4 PROD Energy'!M451+'FR-16(7)(v)-5 PROD Cust'!M451+'FR-16(7)(v)-7 TRANS Demand'!M451+'FR-16(7)(v)-8 TRANS Energy'!M451+'FR-16(7)(v)-9 TRANS Cust'!M451+'FR-16(7)(v)-11 DIST Demand'!M451+'FR-16(7)(v)-12 DIST Energy'!M451+'FR-16(7)(v)-13 DIST Cust'!M451","v":4662754},{"$f":"'FR-16(7)(v)-3 PROD Demand'!N451+'FR-16(7)(v)-4 PROD Energy'!N451+'FR-16(7)(v)-5 PROD Cust'!N451+'FR-16(7)(v)-7 TRANS Demand'!N451+'FR-16(7)(v)-8 TRANS Energy'!N451+'FR-16(7)(v)-9 TRANS Cust'!N451+'FR-16(7)(v)-11 DIST Demand'!N451+'FR-16(7)(v)-12 DIST Energy'!N451+'FR-16(7)(v)-13 DIST Cust'!N451","v":218471},{"$f":"'FR-16(7)(v)-3 PROD Demand'!O451+'FR-16(7)(v)-4 PROD Energy'!O451+'FR-16(7)(v)-5 PROD Cust'!O451+'FR-16(7)(v)-7 TRANS Demand'!O451+'FR-16(7)(v)-8 TRANS Energy'!O451+'FR-16(7)(v)-9 TRANS Cust'!O451+'FR-16(7)(v)-11 DIST Demand'!O451+'FR-16(7)(v)-12 DIST Energy'!O451+'FR-16(7)(v)-13 DIST Cust'!O451","v":2355584},{"$f":"'FR-16(7)(v)-3 PROD Demand'!P451+'FR-16(7)(v)-4 PROD Energy'!P451+'FR-16(7)(v)-5 PROD Cust'!P451+'FR-16(7)(v)-7 TRANS Demand'!P451+'FR-16(7)(v)-8 TRANS Energy'!P451+'FR-16(7)(v)-9 TRANS Cust'!P451+'FR-16(7)(v)-11 DIST Demand'!P451+'FR-16(7)(v)-12 DIST Energy'!P451+'FR-16(7)(v)-13 DIST Cust'!P451","v":177381},{"$f":"'FR-16(7)(v)-3 PROD Demand'!Q451+'FR-16(7)(v)-4 PROD Energy'!Q451+'FR-16(7)(v)-5 PROD Cust'!Q451+'FR-16(7)(v)-7 TRANS Demand'!Q451+'FR-16(7)(v)-8 TRANS Energy'!Q451+'FR-16(7)(v)-9 TRANS Cust'!Q451+'FR-16(7)(v)-11 DIST Demand'!Q451+'FR-16(7)(v)-12 DIST Energy'!Q451+'FR-16(7)(v)-13 DIST Cust'!Q451","v":4475},40683654,0]
[8,null,{"$f":"'FR-16(7)(v)-1 Functional'!C452","v":"MISO TRANSMISSION CHARGES - ACCT 555"},{"$f":"'FR-16(7)(v)-1 Functional'!D452","v":"K301"},null,{"$f":"'FR-16(7)(v)-1 Functional'!F452","v":0},{"$f":"'FR-16(7)(v)-3 PROD Demand'!G452+'FR-16(7)(v)-4 PROD Energy'!G452+'FR-16(7)(v)-5 PROD Cust'!G452+'FR-16(7)(v)-7 TRANS Demand'!G452+'FR-16(7)(v)-8 TRANS Energy'!G452+'FR-16(7)(v)-9 TRANS Cust'!G452+'FR-16(7)(v)-11 DIST Demand'!G452+'FR-16(7)(v)-12 DIST Energy'!G452+'FR-16(7)(v)-13 DIST Cust'!G452","v":0},{"$f":"'FR-16(7)(v)-3 PROD Demand'!H452+'FR-16(7)(v)-4 PROD Energy'!H452+'FR-16(7)(v)-5 PROD Cust'!H452+'FR-16(7)(v)-7 TRANS Demand'!H452+'FR-16(7)(v)-8 TRANS Energy'!H452+'FR-16(7)(v)-9 TRANS Cust'!H452+'FR-16(7)(v)-11 DIST Demand'!H452+'FR-16(7)(v)-12 DIST Energy'!H452+'FR-16(7)(v)-13 DIST Cust'!H452","v":0},{"$f":"'FR-16(7)(v)-3 PROD Demand'!I452+'FR-16(7)(v)-4 PROD Energy'!I452+'FR-16(7)(v)-5 PROD Cust'!I452+'FR-16(7)(v)-7 TRANS Demand'!I452+'FR-16(7)(v)-8 TRANS Energy'!I452+'FR-16(7)(v)-9 TRANS Cust'!I452+'FR-16(7)(v)-11 DIST Demand'!I452+'FR-16(7)(v)-12 DIST Energy'!I452+'FR-16(7)(v)-13 DIST Cust'!I452","v":0},{"$f":"'FR-16(7)(v)-3 PROD Demand'!J452+'FR-16(7)(v)-4 PROD Energy'!J452+'FR-16(7)(v)-5 PROD Cust'!J452+'FR-16(7)(v)-7 TRANS Demand'!J452+'FR-16(7)(v)-8 TRANS Energy'!J452+'FR-16(7)(v)-9 TRANS Cust'!J452+'FR-16(7)(v)-11 DIST Demand'!J452+'FR-16(7)(v)-12 DIST Energy'!J452+'FR-16(7)(v)-13 DIST Cust'!J452","v":0},{"$f":"'FR-16(7)(v)-3 PROD Demand'!K452+'FR-16(7)(v)-4 PROD Energy'!K452+'FR-16(7)(v)-5 PROD Cust'!K452+'FR-16(7)(v)-7 TRANS Demand'!K452+'FR-16(7)(v)-8 TRANS Energy'!K452+'FR-16(7)(v)-9 TRANS Cust'!K452+'FR-16(7)(v)-11 DIST Demand'!K452+'FR-16(7)(v)-12 DIST Energy'!K452+'FR-16(7)(v)-13 DIST Cust'!K452","v":0},{"$f":"'FR-16(7)(v)-3 PROD Demand'!L452+'FR-16(7)(v)-4 PROD Energy'!L452+'FR-16(7)(v)-5 PROD Cust'!L452+'FR-16(7)(v)-7 TRANS Demand'!L452+'FR-16(7)(v)-8 TRANS Energy'!L452+'FR-16(7)(v)-9 TRANS Cust'!L452+'FR-16(7)(v)-11 DIST Demand'!L452+'FR-16(7)(v)-12 DIST Energy'!L452+'FR-16(7)(v)-13 DIST Cust'!L452","v":0},{"$f":"'FR-16(7)(v)-3 PROD Demand'!M452+'FR-16(7)(v)-4 PROD Energy'!M452+'FR-16(7)(v)-5 PROD Cust'!M452+'FR-16(7)(v)-7 TRANS Demand'!M452+'FR-16(7)(v)-8 TRANS Energy'!M452+'FR-16(7)(v)-9 TRANS Cust'!M452+'FR-16(7)(v)-11 DIST Demand'!M452+'FR-16(7)(v)-12 DIST Energy'!M452+'FR-16(7)(v)-13 DIST Cust'!M452","v":0},{"$f":"'FR-16(7)(v)-3 PROD Demand'!N452+'FR-16(7)(v)-4 PROD Energy'!N452+'FR-16(7)(v)-5 PROD Cust'!N452+'FR-16(7)(v)-7 TRANS Demand'!N452+'FR-16(7)(v)-8 TRANS Energy'!N452+'FR-16(7)(v)-9 TRANS Cust'!N452+'FR-16(7)(v)-11 DIST Demand'!N452+'FR-16(7)(v)-12 DIST Energy'!N452+'FR-16(7)(v)-13 DIST Cust'!N452","v":0},{"$f":"'FR-16(7)(v)-3 PROD Demand'!O452+'FR-16(7)(v)-4 PROD Energy'!O452+'FR-16(7)(v)-5 PROD Cust'!O452+'FR-16(7)(v)-7 TRANS Demand'!O452+'FR-16(7)(v)-8 TRANS Energy'!O452+'FR-16(7)(v)-9 TRANS Cust'!O452+'FR-16(7)(v)-11 DIST Demand'!O452+'FR-16(7)(v)-12 DIST Energy'!O452+'FR-16(7)(v)-13 DIST Cust'!O452","v":0},{"$f":"'FR-16(7)(v)-3 PROD Demand'!P452+'FR-16(7)(v)-4 PROD Energy'!P452+'FR-16(7)(v)-5 PROD Cust'!P452+'FR-16(7)(v)-7 TRANS Demand'!P452+'FR-16(7)(v)-8 TRANS Energy'!P452+'FR-16(7)(v)-9 TRANS Cust'!P452+'FR-16(7)(v)-11 DIST Demand'!P452+'FR-16(7)(v)-12 DIST Energy'!P452+'FR-16(7)(v)-13 DIST Cust'!P452","v":0},{"$f":"'FR-16(7)(v)-3 PROD Demand'!Q452+'FR-16(7)(v)-4 PROD Energy'!Q452+'FR-16(7)(v)-5 PROD Cust'!Q452+'FR-16(7)(v)-7 TRANS Demand'!Q452+'FR-16(7)(v)-8 TRANS Energy'!Q452+'FR-16(7)(v)-9 TRANS Cust'!Q452+'FR-16(7)(v)-11 DIST Demand'!Q452+'FR-16(7)(v)-12 DIST Energy'!Q452+'FR-16(7)(v)-13 DIST Cust'!Q452","v":0},0,0]
[9,null,{"$f":"'FR-16(7)(v)-1 Functional'!C453","v":"  TOTAL ENERGY RELATED"},null,null,{"$f":"SUM(F447:F452)","v":141063339},53405371,38083528,213005,{"$f":"SUM(J447:J452)","v":604755},9875,23289911,16215452,760521,7848360,617044,15517,141063339,0]
[10]
[11,"DEMAND RELATED & OTHER PROD O&M"]
[12,null,{"$f":"'FR-16(7)(v)-1 Functional'!C456","v":"OTHER PRODUCTION EXPENSES - OPERATIONS"},{"$f":"'FR-16(7)(v)-1 Functional'!D456","v":"K201"},null,{"$f":"'FR-16(7)(v)-1 Functional'!F456","v":0},{"$f":"'FR-16(7)(v)-3 PROD Demand'!G456+'FR-16(7)(v)-4 PROD Energy'!G456+'FR-16(7)(v)-5 PROD Cust'!G456+'FR-16(7)(v)-7 TRANS Demand'!G456+'FR-16(7)(v)-8 TRANS Energy'!G456+'FR-16(7)(v)-9 TRANS Cust'!G456+'FR-16(7)(v)-11 DIST Demand'!G456+'FR-16(7)(v)-12 DIST Energy'!G456+'FR-16(7)(v)-13 DIST Cust'!G456","v":0},{"$f":"'FR-16(7)(v)-3 PROD Demand'!H456+'FR-16(7)(v)-4 PROD Energy'!H456+'FR-16(7)(v)-5 PROD Cust'!H456+'FR-16(7)(v)-7 TRANS Demand'!H456+'FR-16(7)(v)-8 TRANS Energy'!H456+'FR-16(7)(v)-9 TRANS Cust'!H456+'FR-16(7)(v)-11 DIST Demand'!H456+'FR-16(7)(v)-12 DIST Energy'!H456+'FR-16(7)(v)-13 DIST Cust'!H456","v":0},{"$f":"'FR-16(7)(v)-3 PROD Demand'!I456+'FR-16(7)(v)-4 PROD Energy'!I456+'FR-16(7)(v)-5 PROD Cust'!I456+'FR-16(7)(v)-7 TRANS Demand'!I456+'FR-16(7)(v)-8 TRANS Energy'!I456+'FR-16(7)(v)-9 TRANS Cust'!I456+'FR-16(7)(v)-11 DIST Demand'!I456+'FR-16(7)(v)-12 DIST Energy'!I456+'FR-16(7)(v)-13 DIST Cust'!I456","v":0},{"$f":"'FR-16(7)(v)-3 PROD Demand'!J456+'FR-16(7)(v)-4 PROD Energy'!J456+'FR-16(7)(v)-5 PROD Cust'!J456+'FR-16(7)(v)-7 TRANS Demand'!J456+'FR-16(7)(v)-8 TRANS Energy'!J456+'FR-16(7)(v)-9 TRANS Cust'!J456+'FR-16(7)(v)-11 DIST Demand'!J456+'FR-16(7)(v)-12 DIST Energy'!J456+'FR-16(7)(v)-13 DIST Cust'!J456","v":0},{"$f":"'FR-16(7)(v)-3 PROD Demand'!K456+'FR-16(7)(v)-4 PROD Energy'!K456+'FR-16(7)(v)-5 PROD Cust'!K456+'FR-16(7)(v)-7 TRANS Demand'!K456+'FR-16(7)(v)-8 TRANS Energy'!K456+'FR-16(7)(v)-9 TRANS Cust'!K456+'FR-16(7)(v)-11 DIST Demand'!K456+'FR-16(7)(v)-12 DIST Energy'!K456+'FR-16(7)(v)-13 DIST Cust'!K456","v":0},{"$f":"'FR-16(7)(v)-3 PROD Demand'!L456+'FR-16(7)(v)-4 PROD Energy'!L456+'FR-16(7)(v)-5 PROD Cust'!L456+'FR-16(7)(v)-7 TRANS Demand'!L456+'FR-16(7)(v)-8 TRANS Energy'!L456+'FR-16(7)(v)-9 TRANS Cust'!L456+'FR-16(7)(v)-11 DIST Demand'!L456+'FR-16(7)(v)-12 DIST Energy'!L456+'FR-16(7)(v)-13 DIST Cust'!L456","v":0},{"$f":"'FR-16(7)(v)-3 PROD Demand'!M456+'FR-16(7)(v)-4 PROD Energy'!M456+'FR-16(7)(v)-5 PROD Cust'!M456+'FR-16(7)(v)-7 TRANS Demand'!M456+'FR-16(7)(v)-8 TRANS Energy'!M456+'FR-16(7)(v)-9 TRANS Cust'!M456+'FR-16(7)(v)-11 DIST Demand'!M456+'FR-16(7)(v)-12 DIST Energy'!M456+'FR-16(7)(v)-13 DIST Cust'!M456","v":0},{"$f":"'FR-16(7)(v)-3 PROD Demand'!N456+'FR-16(7)(v)-4 PROD Energy'!N456+'FR-16(7)(v)-5 PROD Cust'!N456+'FR-16(7)(v)-7 TRANS Demand'!N456+'FR-16(7)(v)-8 TRANS Energy'!N456+'FR-16(7)(v)-9 TRANS Cust'!N456+'FR-16(7)(v)-11 DIST Demand'!N456+'FR-16(7)(v)-12 DIST Energy'!N456+'FR-16(7)(v)-13 DIST Cust'!N456","v":0},{"$f":"'FR-16(7)(v)-3 PROD Demand'!O456+'FR-16(7)(v)-4 PROD Energy'!O456+'FR-16(7)(v)-5 PROD Cust'!O456+'FR-16(7)(v)-7 TRANS Demand'!O456+'FR-16(7)(v)-8 TRANS Energy'!O456+'FR-16(7)(v)-9 TRANS Cust'!O456+'FR-16(7)(v)-11 DIST Demand'!O456+'FR-16(7)(v)-12 DIST Energy'!O456+'FR-16(7)(v)-13 DIST Cust'!O456","v":0},{"$f":"'FR-16(7)(v)-3 PROD Demand'!P456+'FR-16(7)(v)-4 PROD Energy'!P456+'FR-16(7)(v)-5 PROD Cust'!P456+'FR-16(7)(v)-7 TRANS Demand'!P456+'FR-16(7)(v)-8 TRANS Energy'!P456+'FR-16(7)(v)-9 TRANS Cust'!P456+'FR-16(7)(v)-11 DIST Demand'!P456+'FR-16(7)(v)-12 DIST Energy'!P456+'FR-16(7)(v)-13 DIST Cust'!P456","v":0},{"$f":"'FR-16(7)(v)-3 PROD Demand'!Q456+'FR-16(7)(v)-4 PROD Energy'!Q456+'FR-16(7)(v)-5 PROD Cust'!Q456+'FR-16(7)(v)-7 TRANS Demand'!Q456+'FR-16(7)(v)-8 TRANS Energy'!Q456+'FR-16(7)(v)-9 TRANS Cust'!Q456+'FR-16(7)(v)-11 DIST Demand'!Q456+'FR-16(7)(v)-12 DIST Energy'!Q456+'FR-16(7)(v)-13 DIST Cust'!Q456","v":0},{"$f":"SUM(G456:Q456)","v":0},{"$f":"F456-R456","v":0}]
[13,null,{"$f":"'FR-16(7)(v)-1 Functional'!C457","v":"  TOTAL DEMAND REL & OTH PROD O&M "},null,null,{"$f":"SUM(F455:F456)","v":0},0,0,0,{"$f":"SUM(J455:J456)","v":0},0,0,0,0,0,0,0,0,0]
[14]
[15,"TOTAL PRODUCTION O&M",null,null," ",{"$f":"F457+F453","v":141063339},{"$f":"G457+G453","v":53405371},38083528,213005,{"$f":"J457+J453","v":604755},9875,23289911,16215452,760521,7848360,617044,15517,141063339,0]
[16]
[17,"TRANSMISSION O & M"]
[18,null,{"$f":"'FR-16(7)(v)-1 Functional'!C462","v":"TRANSFORMER LEASE PAYMENTS"},{"$f":"'FR-16(7)(v)-1 Functional'!D462","v":"K202"},null,{"$f":"'FR-16(7)(v)-1 Functional'!F462","v":0},{"$f":"'FR-16(7)(v)-3 PROD Demand'!G462+'FR-16(7)(v)-4 PROD Energy'!G462+'FR-16(7)(v)-5 PROD Cust'!G462+'FR-16(7)(v)-7 TRANS Demand'!G462+'FR-16(7)(v)-8 TRANS Energy'!G462+'FR-16(7)(v)-9 TRANS Cust'!G462+'FR-16(7)(v)-11 DIST Demand'!G462+'FR-16(7)(v)-12 DIST Energy'!G462+'FR-16(7)(v)-13 DIST Cust'!G462","v":0},{"$f":"'FR-16(7)(v)-3 PROD Demand'!H462+'FR-16(7)(v)-4 PROD Energy'!H462+'FR-16(7)(v)-5 PROD Cust'!H462+'FR-16(7)(v)-7 TRANS Demand'!H462+'FR-16(7)(v)-8 TRANS Energy'!H462+'FR-16(7)(v)-9 TRANS Cust'!H462+'FR-16(7)(v)-11 DIST Demand'!H462+'FR-16(7)(v)-12 DIST Energy'!H462+'FR-16(7)(v)-13 DIST Cust'!H462","v":0},{"$f":"'FR-16(7)(v)-3 PROD Demand'!I462+'FR-16(7)(v)-4 PROD Energy'!I462+'FR-16(7)(v)-5 PROD Cust'!I462+'FR-16(7)(v)-7 TRANS Demand'!I462+'FR-16(7)(v)-8 TRANS Energy'!I462+'FR-16(7)(v)-9 TRANS Cust'!I462+'FR-16(7)(v)-11 DIST Demand'!I462+'FR-16(7)(v)-12 DIST Energy'!I462+'FR-16(7)(v)-13 DIST Cust'!I462","v":0},{"$f":"'FR-16(7)(v)-3 PROD Demand'!J462+'FR-16(7)(v)-4 PROD Energy'!J462+'FR-16(7)(v)-5 PROD Cust'!J462+'FR-16(7)(v)-7 TRANS Demand'!J462+'FR-16(7)(v)-8 TRANS Energy'!J462+'FR-16(7)(v)-9 TRANS Cust'!J462+'FR-16(7)(v)-11 DIST Demand'!J462+'FR-16(7)(v)-12 DIST Energy'!J462+'FR-16(7)(v)-13 DIST Cust'!J462","v":0},{"$f":"'FR-16(7)(v)-3 PROD Demand'!K462+'FR-16(7)(v)-4 PROD Energy'!K462+'FR-16(7)(v)-5 PROD Cust'!K462+'FR-16(7)(v)-7 TRANS Demand'!K462+'FR-16(7)(v)-8 TRANS Energy'!K462+'FR-16(7)(v)-9 TRANS Cust'!K462+'FR-16(7)(v)-11 DIST Demand'!K462+'FR-16(7)(v)-12 DIST Energy'!K462+'FR-16(7)(v)-13 DIST Cust'!K462","v":0},{"$f":"'FR-16(7)(v)-3 PROD Demand'!L462+'FR-16(7)(v)-4 PROD Energy'!L462+'FR-16(7)(v)-5 PROD Cust'!L462+'FR-16(7)(v)-7 TRANS Demand'!L462+'FR-16(7)(v)-8 TRANS Energy'!L462+'FR-16(7)(v)-9 TRANS Cust'!L462+'FR-16(7)(v)-11 DIST Demand'!L462+'FR-16(7)(v)-12 DIST Energy'!L462+'FR-16(7)(v)-13 DIST Cust'!L462","v":0},{"$f":"'FR-16(7)(v)-3 PROD Demand'!M462+'FR-16(7)(v)-4 PROD Energy'!M462+'FR-16(7)(v)-5 PROD Cust'!M462+'FR-16(7)(v)-7 TRANS Demand'!M462+'FR-16(7)(v)-8 TRANS Energy'!M462+'FR-16(7)(v)-9 TRANS Cust'!M462+'FR-16(7)(v)-11 DIST Demand'!M462+'FR-16(7)(v)-12 DIST Energy'!M462+'FR-16(7)(v)-13 DIST Cust'!M462","v":0},{"$f":"'FR-16(7)(v)-3 PROD Demand'!N462+'FR-16(7)(v)-4 PROD Energy'!N462+'FR-16(7)(v)-5 PROD Cust'!N462+'FR-16(7)(v)-7 TRANS Demand'!N462+'FR-16(7)(v)-8 TRANS Energy'!N462+'FR-16(7)(v)-9 TRANS Cust'!N462+'FR-16(7)(v)-11 DIST Demand'!N462+'FR-16(7)(v)-12 DIST Energy'!N462+'FR-16(7)(v)-13 DIST Cust'!N462","v":0},{"$f":"'FR-16(7)(v)-3 PROD Demand'!O462+'FR-16(7)(v)-4 PROD Energy'!O462+'FR-16(7)(v)-5 PROD Cust'!O462+'FR-16(7)(v)-7 TRANS Demand'!O462+'FR-16(7)(v)-8 TRANS Energy'!O462+'FR-16(7)(v)-9 TRANS Cust'!O462+'FR-16(7)(v)-11 DIST Demand'!O462+'FR-16(7)(v)-12 DIST Energy'!O462+'FR-16(7)(v)-13 DIST Cust'!O462","v":0},{"$f":"'FR-16(7)(v)-3 PROD Demand'!P462+'FR-16(7)(v)-4 PROD Energy'!P462+'FR-16(7)(v)-5 PROD Cust'!P462+'FR-16(7)(v)-7 TRANS Demand'!P462+'FR-16(7)(v)-8 TRANS Energy'!P462+'FR-16(7)(v)-9 TRANS Cust'!P462+'FR-16(7)(v)-11 DIST Demand'!P462+'FR-16(7)(v)-12 DIST Energy'!P462+'FR-16(7)(v)-13 DIST Cust'!P462","v":0},{"$f":"'FR-16(7)(v)-3 PROD Demand'!Q462+'FR-16(7)(v)-4 PROD Energy'!Q462+'FR-16(7)(v)-5 PROD Cust'!Q462+'FR-16(7)(v)-7 TRANS Demand'!Q462+'FR-16(7)(v)-8 TRANS Energy'!Q462+'FR-16(7)(v)-9 TRANS Cust'!Q462+'FR-16(7)(v)-11 DIST Demand'!Q462+'FR-16(7)(v)-12 DIST Energy'!Q462+'FR-16(7)(v)-13 DIST Cust'!Q462","v":0},{"$f":"SUM(G462:Q462)","v":0},{"$f":"F462-R462","v":0}]
[19,null,{"$f":"'FR-16(7)(v)-1 Functional'!C463","v":"OTHER TRANSMISSION"},{"$f":"'FR-16(7)(v)-1 Functional'!D463","v":"K202"},null,{"$f":"'FR-16(7)(v)-1 Functional'!F463","v":23151925},{"$f":"'FR-16(7)(v)-3 PROD Demand'!G463+'FR-16(7)(v)-4 PROD Energy'!G463+'FR-16(7)(v)-5 PROD Cust'!G463+'FR-16(7)(v)-7 TRANS Demand'!G463+'FR-16(7)(v)-8 TRANS Energy'!G463+'FR-16(7)(v)-9 TRANS Cust'!G463+'FR-16(7)(v)-11 DIST Demand'!G463+'FR-16(7)(v)-12 DIST Energy'!G463+'FR-16(7)(v)-13 DIST Cust'!G463","v":10436424},{"$f":"'FR-16(7)(v)-3 PROD Demand'!H463+'FR-16(7)(v)-4 PROD Energy'!H463+'FR-16(7)(v)-5 PROD Cust'!H463+'FR-16(7)(v)-7 TRANS Demand'!H463+'FR-16(7)(v)-8 TRANS Energy'!H463+'FR-16(7)(v)-9 TRANS Cust'!H463+'FR-16(7)(v)-11 DIST Demand'!H463+'FR-16(7)(v)-12 DIST Energy'!H463+'FR-16(7)(v)-13 DIST Cust'!H463","v":6265837},{"$f":"'FR-16(7)(v)-3 PROD Demand'!I463+'FR-16(7)(v)-4 PROD Energy'!I463+'FR-16(7)(v)-5 PROD Cust'!I463+'FR-16(7)(v)-7 TRANS Demand'!I463+'FR-16(7)(v)-8 TRANS Energy'!I463+'FR-16(7)(v)-9 TRANS Cust'!I463+'FR-16(7)(v)-11 DIST Demand'!I463+'FR-16(7)(v)-12 DIST Energy'!I463+'FR-16(7)(v)-13 DIST Cust'!I463","v":30098},{"$f":"'FR-16(7)(v)-3 PROD Demand'!J463+'FR-16(7)(v)-4 PROD Energy'!J463+'FR-16(7)(v)-5 PROD Cust'!J463+'FR-16(7)(v)-7 TRANS Demand'!J463+'FR-16(7)(v)-8 TRANS Energy'!J463+'FR-16(7)(v)-9 TRANS Cust'!J463+'FR-16(7)(v)-11 DIST Demand'!J463+'FR-16(7)(v)-12 DIST Energy'!J463+'FR-16(7)(v)-13 DIST Cust'!J463","v":118769},{"$f":"'FR-16(7)(v)-3 PROD Demand'!K463+'FR-16(7)(v)-4 PROD Energy'!K463+'FR-16(7)(v)-5 PROD Cust'!K463+'FR-16(7)(v)-7 TRANS Demand'!K463+'FR-16(7)(v)-8 TRANS Energy'!K463+'FR-16(7)(v)-9 TRANS Cust'!K463+'FR-16(7)(v)-11 DIST Demand'!K463+'FR-16(7)(v)-12 DIST Energy'!K463+'FR-16(7)(v)-13 DIST Cust'!K463","v":1621},{"$f":"'FR-16(7)(v)-3 PROD Demand'!L463+'FR-16(7)(v)-4 PROD Energy'!L463+'FR-16(7)(v)-5 PROD Cust'!L463+'FR-16(7)(v)-7 TRANS Demand'!L463+'FR-16(7)(v)-8 TRANS Energy'!L463+'FR-16(7)(v)-9 TRANS Cust'!L463+'FR-16(7)(v)-11 DIST Demand'!L463+'FR-16(7)(v)-12 DIST Energy'!L463+'FR-16(7)(v)-13 DIST Cust'!L463","v":3124121},{"$f":"'FR-16(7)(v)-3 PROD Demand'!M463+'FR-16(7)(v)-4 PROD Energy'!M463+'FR-16(7)(v)-5 PROD Cust'!M463+'FR-16(7)(v)-7 TRANS Demand'!M463+'FR-16(7)(v)-8 TRANS Energy'!M463+'FR-16(7)(v)-9 TRANS Cust'!M463+'FR-16(7)(v)-11 DIST Demand'!M463+'FR-16(7)(v)-12 DIST Energy'!M463+'FR-16(7)(v)-13 DIST Cust'!M463","v":2065383},{"$f":"'FR-16(7)(v)-3 PROD Demand'!N463+'FR-16(7)(v)-4 PROD Energy'!N463+'FR-16(7)(v)-5 PROD Cust'!N463+'FR-16(7)(v)-7 TRANS Demand'!N463+'FR-16(7)(v)-8 TRANS Energy'!N463+'FR-16(7)(v)-9 TRANS Cust'!N463+'FR-16(7)(v)-11 DIST Demand'!N463+'FR-16(7)(v)-12 DIST Energy'!N463+'FR-16(7)(v)-13 DIST Cust'!N463","v":99785},{"$f":"'FR-16(7)(v)-3 PROD Demand'!O463+'FR-16(7)(v)-4 PROD Energy'!O463+'FR-16(7)(v)-5 PROD Cust'!O463+'FR-16(7)(v)-7 TRANS Demand'!O463+'FR-16(7)(v)-8 TRANS Energy'!O463+'FR-16(7)(v)-9 TRANS Cust'!O463+'FR-16(7)(v)-11 DIST Demand'!O463+'FR-16(7)(v)-12 DIST Energy'!O463+'FR-16(7)(v)-13 DIST Cust'!O463","v":978632},{"$f":"'FR-16(7)(v)-3 PROD Demand'!P463+'FR-16(7)(v)-4 PROD Energy'!P463+'FR-16(7)(v)-5 PROD Cust'!P463+'FR-16(7)(v)-7 TRANS Demand'!P463+'FR-16(7)(v)-8 TRANS Energy'!P463+'FR-16(7)(v)-9 TRANS Cust'!P463+'FR-16(7)(v)-11 DIST Demand'!P463+'FR-16(7)(v)-12 DIST Energy'!P463+'FR-16(7)(v)-13 DIST Cust'!P463","v":28708},{"$f":"'FR-16(7)(v)-3 PROD Demand'!Q463+'FR-16(7)(v)-4 PROD Energy'!Q463+'FR-16(7)(v)-5 PROD Cust'!Q463+'FR-16(7)(v)-7 TRANS Demand'!Q463+'FR-16(7)(v)-8 TRANS Energy'!Q463+'FR-16(7)(v)-9 TRANS Cust'!Q463+'FR-16(7)(v)-11 DIST Demand'!Q463+'FR-16(7)(v)-12 DIST Energy'!Q463+'FR-16(7)(v)-13 DIST Cust'!Q463","v":2547},{"$f":"SUM(G463:Q463)","v":23151925},{"$f":"F463-R463","v":0}]
[20,null,{"$f":"'FR-16(7)(v)-1 Functional'!C464","v":"MISCELLANEOUS ADJUSTMENTS"},{"$f":"'FR-16(7)(v)-1 Functional'!D464","v":"K202"},null,{"$f":"'FR-16(7)(v)-1 Functional'!F464","v":0},{"$f":"'FR-16(7)(v)-3 PROD Demand'!G464+'FR-16(7)(v)-4 PROD Energy'!G464+'FR-16(7)(v)-5 PROD Cust'!G464+'FR-16(7)(v)-7 TRANS Demand'!G464+'FR-16(7)(v)-8 TRANS Energy'!G464+'FR-16(7)(v)-9 TRANS Cust'!G464+'FR-16(7)(v)-11 DIST Demand'!G464+'FR-16(7)(v)-12 DIST Energy'!G464+'FR-16(7)(v)-13 DIST Cust'!G464","v":0},{"$f":"'FR-16(7)(v)-3 PROD Demand'!H464+'FR-16(7)(v)-4 PROD Energy'!H464+'FR-16(7)(v)-5 PROD Cust'!H464+'FR-16(7)(v)-7 TRANS Demand'!H464+'FR-16(7)(v)-8 TRANS Energy'!H464+'FR-16(7)(v)-9 TRANS Cust'!H464+'FR-16(7)(v)-11 DIST Demand'!H464+'FR-16(7)(v)-12 DIST Energy'!H464+'FR-16(7)(v)-13 DIST Cust'!H464","v":0},{"$f":"'FR-16(7)(v)-3 PROD Demand'!I464+'FR-16(7)(v)-4 PROD Energy'!I464+'FR-16(7)(v)-5 PROD Cust'!I464+'FR-16(7)(v)-7 TRANS Demand'!I464+'FR-16(7)(v)-8 TRANS Energy'!I464+'FR-16(7)(v)-9 TRANS Cust'!I464+'FR-16(7)(v)-11 DIST Demand'!I464+'FR-16(7)(v)-12 DIST Energy'!I464+'FR-16(7)(v)-13 DIST Cust'!I464","v":0},{"$f":"'FR-16(7)(v)-3 PROD Demand'!J464+'FR-16(7)(v)-4 PROD Energy'!J464+'FR-16(7)(v)-5 PROD Cust'!J464+'FR-16(7)(v)-7 TRANS Demand'!J464+'FR-16(7)(v)-8 TRANS Energy'!J464+'FR-16(7)(v)-9 TRANS Cust'!J464+'FR-16(7)(v)-11 DIST Demand'!J464+'FR-16(7)(v)-12 DIST Energy'!J464+'FR-16(7)(v)-13 DIST Cust'!J464","v":0},{"$f":"'FR-16(7)(v)-3 PROD Demand'!K464+'FR-16(7)(v)-4 PROD Energy'!K464+'FR-16(7)(v)-5 PROD Cust'!K464+'FR-16(7)(v)-7 TRANS Demand'!K464+'FR-16(7)(v)-8 TRANS Energy'!K464+'FR-16(7)(v)-9 TRANS Cust'!K464+'FR-16(7)(v)-11 DIST Demand'!K464+'FR-16(7)(v)-12 DIST Energy'!K464+'FR-16(7)(v)-13 DIST Cust'!K464","v":0},{"$f":"'FR-16(7)(v)-3 PROD Demand'!L464+'FR-16(7)(v)-4 PROD Energy'!L464+'FR-16(7)(v)-5 PROD Cust'!L464+'FR-16(7)(v)-7 TRANS Demand'!L464+'FR-16(7)(v)-8 TRANS Energy'!L464+'FR-16(7)(v)-9 TRANS Cust'!L464+'FR-16(7)(v)-11 DIST Demand'!L464+'FR-16(7)(v)-12 DIST Energy'!L464+'FR-16(7)(v)-13 DIST Cust'!L464","v":0},{"$f":"'FR-16(7)(v)-3 PROD Demand'!M464+'FR-16(7)(v)-4 PROD Energy'!M464+'FR-16(7)(v)-5 PROD Cust'!M464+'FR-16(7)(v)-7 TRANS Demand'!M464+'FR-16(7)(v)-8 TRANS Energy'!M464+'FR-16(7)(v)-9 TRANS Cust'!M464+'FR-16(7)(v)-11 DIST Demand'!M464+'FR-16(7)(v)-12 DIST Energy'!M464+'FR-16(7)(v)-13 DIST Cust'!M464","v":0},{"$f":"'FR-16(7)(v)-3 PROD Demand'!N464+'FR-16(7)(v)-4 PROD Energy'!N464+'FR-16(7)(v)-5 PROD Cust'!N464+'FR-16(7)(v)-7 TRANS Demand'!N464+'FR-16(7)(v)-8 TRANS Energy'!N464+'FR-16(7)(v)-9 TRANS Cust'!N464+'FR-16(7)(v)-11 DIST Demand'!N464+'FR-16(7)(v)-12 DIST Energy'!N464+'FR-16(7)(v)-13 DIST Cust'!N464","v":0},{"$f":"'FR-16(7)(v)-3 PROD Demand'!O464+'FR-16(7)(v)-4 PROD Energy'!O464+'FR-16(7)(v)-5 PROD Cust'!O464+'FR-16(7)(v)-7 TRANS Demand'!O464+'FR-16(7)(v)-8 TRANS Energy'!O464+'FR-16(7)(v)-9 TRANS Cust'!O464+'FR-16(7)(v)-11 DIST Demand'!O464+'FR-16(7)(v)-12 DIST Energy'!O464+'FR-16(7)(v)-13 DIST Cust'!O464","v":0},{"$f":"'FR-16(7)(v)-3 PROD Demand'!P464+'FR-16(7)(v)-4 PROD Energy'!P464+'FR-16(7)(v)-5 PROD Cust'!P464+'FR-16(7)(v)-7 TRANS Demand'!P464+'FR-16(7)(v)-8 TRANS Energy'!P464+'FR-16(7)(v)-9 TRANS Cust'!P464+'FR-16(7)(v)-11 DIST Demand'!P464+'FR-16(7)(v)-12 DIST Energy'!P464+'FR-16(7)(v)-13 DIST Cust'!P464","v":0},{"$f":"'FR-16(7)(v)-3 PROD Demand'!Q464+'FR-16(7)(v)-4 PROD Energy'!Q464+'FR-16(7)(v)-5 PROD Cust'!Q464+'FR-16(7)(v)-7 TRANS Demand'!Q464+'FR-16(7)(v)-8 TRANS Energy'!Q464+'FR-16(7)(v)-9 TRANS Cust'!Q464+'FR-16(7)(v)-11 DIST Demand'!Q464+'FR-16(7)(v)-12 DIST Energy'!Q464+'FR-16(7)(v)-13 DIST Cust'!Q464","v":0},{"$f":"SUM(G464:Q464)","v":0},{"$f":"F464-R464","v":0}]
[21,null,{"$f":"'FR-16(7)(v)-1 Functional'!C465","v":"NETWORK SERVICE RATES ADJUSTMENT"},{"$f":"'FR-16(7)(v)-1 Functional'!D465","v":"K202"},null,{"$f":"'FR-16(7)(v)-1 Functional'!F465","v":0},{"$f":"'FR-16(7)(v)-3 PROD Demand'!G465+'FR-16(7)(v)-4 PROD Energy'!G465+'FR-16(7)(v)-5 PROD Cust'!G465+'FR-16(7)(v)-7 TRANS Demand'!G465+'FR-16(7)(v)-8 TRANS Energy'!G465+'FR-16(7)(v)-9 TRANS Cust'!G465+'FR-16(7)(v)-11 DIST Demand'!G465+'FR-16(7)(v)-12 DIST Energy'!G465+'FR-16(7)(v)-13 DIST Cust'!G465","v":0},{"$f":"'FR-16(7)(v)-3 PROD Demand'!H465+'FR-16(7)(v)-4 PROD Energy'!H465+'FR-16(7)(v)-5 PROD Cust'!H465+'FR-16(7)(v)-7 TRANS Demand'!H465+'FR-16(7)(v)-8 TRANS Energy'!H465+'FR-16(7)(v)-9 TRANS Cust'!H465+'FR-16(7)(v)-11 DIST Demand'!H465+'FR-16(7)(v)-12 DIST Energy'!H465+'FR-16(7)(v)-13 DIST Cust'!H465","v":0},{"$f":"'FR-16(7)(v)-3 PROD Demand'!I465+'FR-16(7)(v)-4 PROD Energy'!I465+'FR-16(7)(v)-5 PROD Cust'!I465+'FR-16(7)(v)-7 TRANS Demand'!I465+'FR-16(7)(v)-8 TRANS Energy'!I465+'FR-16(7)(v)-9 TRANS Cust'!I465+'FR-16(7)(v)-11 DIST Demand'!I465+'FR-16(7)(v)-12 DIST Energy'!I465+'FR-16(7)(v)-13 DIST Cust'!I465","v":0},{"$f":"'FR-16(7)(v)-3 PROD Demand'!J465+'FR-16(7)(v)-4 PROD Energy'!J465+'FR-16(7)(v)-5 PROD Cust'!J465+'FR-16(7)(v)-7 TRANS Demand'!J465+'FR-16(7)(v)-8 TRANS Energy'!J465+'FR-16(7)(v)-9 TRANS Cust'!J465+'FR-16(7)(v)-11 DIST Demand'!J465+'FR-16(7)(v)-12 DIST Energy'!J465+'FR-16(7)(v)-13 DIST Cust'!J465","v":0},{"$f":"'FR-16(7)(v)-3 PROD Demand'!K465+'FR-16(7)(v)-4 PROD Energy'!K465+'FR-16(7)(v)-5 PROD Cust'!K465+'FR-16(7)(v)-7 TRANS Demand'!K465+'FR-16(7)(v)-8 TRANS Energy'!K465+'FR-16(7)(v)-9 TRANS Cust'!K465+'FR-16(7)(v)-11 DIST Demand'!K465+'FR-16(7)(v)-12 DIST Energy'!K465+'FR-16(7)(v)-13 DIST Cust'!K465","v":0},{"$f":"'FR-16(7)(v)-3 PROD Demand'!L465+'FR-16(7)(v)-4 PROD Energy'!L465+'FR-16(7)(v)-5 PROD Cust'!L465+'FR-16(7)(v)-7 TRANS Demand'!L465+'FR-16(7)(v)-8 TRANS Energy'!L465+'FR-16(7)(v)-9 TRANS Cust'!L465+'FR-16(7)(v)-11 DIST Demand'!L465+'FR-16(7)(v)-12 DIST Energy'!L465+'FR-16(7)(v)-13 DIST Cust'!L465","v":0},{"$f":"'FR-16(7)(v)-3 PROD Demand'!M465+'FR-16(7)(v)-4 PROD Energy'!M465+'FR-16(7)(v)-5 PROD Cust'!M465+'FR-16(7)(v)-7 TRANS Demand'!M465+'FR-16(7)(v)-8 TRANS Energy'!M465+'FR-16(7)(v)-9 TRANS Cust'!M465+'FR-16(7)(v)-11 DIST Demand'!M465+'FR-16(7)(v)-12 DIST Energy'!M465+'FR-16(7)(v)-13 DIST Cust'!M465","v":0},{"$f":"'FR-16(7)(v)-3 PROD Demand'!N465+'FR-16(7)(v)-4 PROD Energy'!N465+'FR-16(7)(v)-5 PROD Cust'!N465+'FR-16(7)(v)-7 TRANS Demand'!N465+'FR-16(7)(v)-8 TRANS Energy'!N465+'FR-16(7)(v)-9 TRANS Cust'!N465+'FR-16(7)(v)-11 DIST Demand'!N465+'FR-16(7)(v)-12 DIST Energy'!N465+'FR-16(7)(v)-13 DIST Cust'!N465","v":0},{"$f":"'FR-16(7)(v)-3 PROD Demand'!O465+'FR-16(7)(v)-4 PROD Energy'!O465+'FR-16(7)(v)-5 PROD Cust'!O465+'FR-16(7)(v)-7 TRANS Demand'!O465+'FR-16(7)(v)-8 TRANS Energy'!O465+'FR-16(7)(v)-9 TRANS Cust'!O465+'FR-16(7)(v)-11 DIST Demand'!O465+'FR-16(7)(v)-12 DIST Energy'!O465+'FR-16(7)(v)-13 DIST Cust'!O465","v":0},{"$f":"'FR-16(7)(v)-3 PROD Demand'!P465+'FR-16(7)(v)-4 PROD Energy'!P465+'FR-16(7)(v)-5 PROD Cust'!P465+'FR-16(7)(v)-7 TRANS Demand'!P465+'FR-16(7)(v)-8 TRANS Energy'!P465+'FR-16(7)(v)-9 TRANS Cust'!P465+'FR-16(7)(v)-11 DIST Demand'!P465+'FR-16(7)(v)-12 DIST Energy'!P465+'FR-16(7)(v)-13 DIST Cust'!P465","v":0},{"$f":"'FR-16(7)(v)-3 PROD Demand'!Q465+'FR-16(7)(v)-4 PROD Energy'!Q465+'FR-16(7)(v)-5 PROD Cust'!Q465+'FR-16(7)(v)-7 TRANS Demand'!Q465+'FR-16(7)(v)-8 TRANS Energy'!Q465+'FR-16(7)(v)-9 TRANS Cust'!Q465+'FR-16(7)(v)-11 DIST Demand'!Q465+'FR-16(7)(v)-12 DIST Energy'!Q465+'FR-16(7)(v)-13 DIST Cust'!Q465","v":0},{"$f":"SUM(G465:Q465)","v":0},{"$f":"F465-R465","v":0}]
[22,null,{"$f":"'FR-16(7)(v)-1 Functional'!C466","v":"  TOTAL TRANSMISSION O & M"},null,null,{"$f":"SUM(F462:F465)","v":23151925},{"$f":"SUM(G462:G465)","v":10436424},6265837,30098,{"$f":"SUM(J462:J465)","v":118769},1621,3124121,2065383,99785,978632,28708,2547,23151925,0]
[23]
[24,"REGIONAL MARKET O&M"]
[25,null,{"$f":"'FR-16(7)(v)-1 Functional'!C469","v":"MARKET FACILITATION - MONITORING & COMPLIANCE"},{"$f":"'FR-16(7)(v)-1 Functional'!D469","v":"K202"},null,{"$f":"'FR-16(7)(v)-1 Functional'!F469","v":1826852},{"$f":"'FR-16(7)(v)-3 PROD Demand'!G469+'FR-16(7)(v)-4 PROD Energy'!G469+'FR-16(7)(v)-5 PROD Cust'!G469+'FR-16(7)(v)-7 TRANS Demand'!G469+'FR-16(7)(v)-8 TRANS Energy'!G469+'FR-16(7)(v)-9 TRANS Cust'!G469+'FR-16(7)(v)-11 DIST Demand'!G469+'FR-16(7)(v)-12 DIST Energy'!G469+'FR-16(7)(v)-13 DIST Cust'!G469","v":823509},{"$f":"'FR-16(7)(v)-3 PROD Demand'!H469+'FR-16(7)(v)-4 PROD Energy'!H469+'FR-16(7)(v)-5 PROD Cust'!H469+'FR-16(7)(v)-7 TRANS Demand'!H469+'FR-16(7)(v)-8 TRANS Energy'!H469+'FR-16(7)(v)-9 TRANS Cust'!H469+'FR-16(7)(v)-11 DIST Demand'!H469+'FR-16(7)(v)-12 DIST Energy'!H469+'FR-16(7)(v)-13 DIST Cust'!H469","v":494419},{"$f":"'FR-16(7)(v)-3 PROD Demand'!I469+'FR-16(7)(v)-4 PROD Energy'!I469+'FR-16(7)(v)-5 PROD Cust'!I469+'FR-16(7)(v)-7 TRANS Demand'!I469+'FR-16(7)(v)-8 TRANS Energy'!I469+'FR-16(7)(v)-9 TRANS Cust'!I469+'FR-16(7)(v)-11 DIST Demand'!I469+'FR-16(7)(v)-12 DIST Energy'!I469+'FR-16(7)(v)-13 DIST Cust'!I469","v":2375},{"$f":"'FR-16(7)(v)-3 PROD Demand'!J469+'FR-16(7)(v)-4 PROD Energy'!J469+'FR-16(7)(v)-5 PROD Cust'!J469+'FR-16(7)(v)-7 TRANS Demand'!J469+'FR-16(7)(v)-8 TRANS Energy'!J469+'FR-16(7)(v)-9 TRANS Cust'!J469+'FR-16(7)(v)-11 DIST Demand'!J469+'FR-16(7)(v)-12 DIST Energy'!J469+'FR-16(7)(v)-13 DIST Cust'!J469","v":9372},{"$f":"'FR-16(7)(v)-3 PROD Demand'!K469+'FR-16(7)(v)-4 PROD Energy'!K469+'FR-16(7)(v)-5 PROD Cust'!K469+'FR-16(7)(v)-7 TRANS Demand'!K469+'FR-16(7)(v)-8 TRANS Energy'!K469+'FR-16(7)(v)-9 TRANS Cust'!K469+'FR-16(7)(v)-11 DIST Demand'!K469+'FR-16(7)(v)-12 DIST Energy'!K469+'FR-16(7)(v)-13 DIST Cust'!K469","v":128},{"$f":"'FR-16(7)(v)-3 PROD Demand'!L469+'FR-16(7)(v)-4 PROD Energy'!L469+'FR-16(7)(v)-5 PROD Cust'!L469+'FR-16(7)(v)-7 TRANS Demand'!L469+'FR-16(7)(v)-8 TRANS Energy'!L469+'FR-16(7)(v)-9 TRANS Cust'!L469+'FR-16(7)(v)-11 DIST Demand'!L469+'FR-16(7)(v)-12 DIST Energy'!L469+'FR-16(7)(v)-13 DIST Cust'!L469","v":246515},{"$f":"'FR-16(7)(v)-3 PROD Demand'!M469+'FR-16(7)(v)-4 PROD Energy'!M469+'FR-16(7)(v)-5 PROD Cust'!M469+'FR-16(7)(v)-7 TRANS Demand'!M469+'FR-16(7)(v)-8 TRANS Energy'!M469+'FR-16(7)(v)-9 TRANS Cust'!M469+'FR-16(7)(v)-11 DIST Demand'!M469+'FR-16(7)(v)-12 DIST Energy'!M469+'FR-16(7)(v)-13 DIST Cust'!M469","v":162973},{"$f":"'FR-16(7)(v)-3 PROD Demand'!N469+'FR-16(7)(v)-4 PROD Energy'!N469+'FR-16(7)(v)-5 PROD Cust'!N469+'FR-16(7)(v)-7 TRANS Demand'!N469+'FR-16(7)(v)-8 TRANS Energy'!N469+'FR-16(7)(v)-9 TRANS Cust'!N469+'FR-16(7)(v)-11 DIST Demand'!N469+'FR-16(7)(v)-12 DIST Energy'!N469+'FR-16(7)(v)-13 DIST Cust'!N469","v":7874},{"$f":"'FR-16(7)(v)-3 PROD Demand'!O469+'FR-16(7)(v)-4 PROD Energy'!O469+'FR-16(7)(v)-5 PROD Cust'!O469+'FR-16(7)(v)-7 TRANS Demand'!O469+'FR-16(7)(v)-8 TRANS Energy'!O469+'FR-16(7)(v)-9 TRANS Cust'!O469+'FR-16(7)(v)-11 DIST Demand'!O469+'FR-16(7)(v)-12 DIST Energy'!O469+'FR-16(7)(v)-13 DIST Cust'!O469","v":77221},{"$f":"'FR-16(7)(v)-3 PROD Demand'!P469+'FR-16(7)(v)-4 PROD Energy'!P469+'FR-16(7)(v)-5 PROD Cust'!P469+'FR-16(7)(v)-7 TRANS Demand'!P469+'FR-16(7)(v)-8 TRANS Energy'!P469+'FR-16(7)(v)-9 TRANS Cust'!P469+'FR-16(7)(v)-11 DIST Demand'!P469+'FR-16(7)(v)-12 DIST Energy'!P469+'FR-16(7)(v)-13 DIST Cust'!P469","v":2265},{"$f":"'FR-16(7)(v)-3 PROD Demand'!Q469+'FR-16(7)(v)-4 PROD Energy'!Q469+'FR-16(7)(v)-5 PROD Cust'!Q469+'FR-16(7)(v)-7 TRANS Demand'!Q469+'FR-16(7)(v)-8 TRANS Energy'!Q469+'FR-16(7)(v)-9 TRANS Cust'!Q469+'FR-16(7)(v)-11 DIST Demand'!Q469+'FR-16(7)(v)-12 DIST Energy'!Q469+'FR-16(7)(v)-13 DIST Cust'!Q469","v":201},{"$f":"SUM(G469:Q469)","v":1826852},{"$f":"F469-R469","v":0}]
[26,null,{"$f":"'FR-16(7)(v)-1 Functional'!C470","v":"TOTAL REGIONAL MARKET O&M"},null,null,{"$f":"SUM(F468:F469)","v":1826852},823509,494419,2375,{"$f":"SUM(J468:J469)","v":9372},128,246515,162973,7874,77221,2265,201,1826852,0]
[27]
[28,"DISTRIBUTION O & M"]
[29,null,{"$f":"'FR-16(7)(v)-1 Functional'!C473","v":"SUBSTATIONS"},{"$f":"'FR-16(7)(v)-1 Functional'!D473","v":"K201"},null,{"$f":"'FR-16(7)(v)-1 Functional'!F473","v":621124},{"$f":"'FR-16(7)(v)-3 PROD Demand'!G473+'FR-16(7)(v)-4 PROD Energy'!G473+'FR-16(7)(v)-5 PROD Cust'!G473+'FR-16(7)(v)-7 TRANS Demand'!G473+'FR-16(7)(v)-8 TRANS Energy'!G473+'FR-16(7)(v)-9 TRANS Cust'!G473+'FR-16(7)(v)-11 DIST Demand'!G473+'FR-16(7)(v)-12 DIST Energy'!G473+'FR-16(7)(v)-13 DIST Cust'!G473","v":279993},{"$f":"'FR-16(7)(v)-3 PROD Demand'!H473+'FR-16(7)(v)-4 PROD Energy'!H473+'FR-16(7)(v)-5 PROD Cust'!H473+'FR-16(7)(v)-7 TRANS Demand'!H473+'FR-16(7)(v)-8 TRANS Energy'!H473+'FR-16(7)(v)-9 TRANS Cust'!H473+'FR-16(7)(v)-11 DIST Demand'!H473+'FR-16(7)(v)-12 DIST Energy'!H473+'FR-16(7)(v)-13 DIST Cust'!H473","v":168101},{"$f":"'FR-16(7)(v)-3 PROD Demand'!I473+'FR-16(7)(v)-4 PROD Energy'!I473+'FR-16(7)(v)-5 PROD Cust'!I473+'FR-16(7)(v)-7 TRANS Demand'!I473+'FR-16(7)(v)-8 TRANS Energy'!I473+'FR-16(7)(v)-9 TRANS Cust'!I473+'FR-16(7)(v)-11 DIST Demand'!I473+'FR-16(7)(v)-12 DIST Energy'!I473+'FR-16(7)(v)-13 DIST Cust'!I473","v":807},{"$f":"'FR-16(7)(v)-3 PROD Demand'!J473+'FR-16(7)(v)-4 PROD Energy'!J473+'FR-16(7)(v)-5 PROD Cust'!J473+'FR-16(7)(v)-7 TRANS Demand'!J473+'FR-16(7)(v)-8 TRANS Energy'!J473+'FR-16(7)(v)-9 TRANS Cust'!J473+'FR-16(7)(v)-11 DIST Demand'!J473+'FR-16(7)(v)-12 DIST Energy'!J473+'FR-16(7)(v)-13 DIST Cust'!J473","v":3186},{"$f":"'FR-16(7)(v)-3 PROD Demand'!K473+'FR-16(7)(v)-4 PROD Energy'!K473+'FR-16(7)(v)-5 PROD Cust'!K473+'FR-16(7)(v)-7 TRANS Demand'!K473+'FR-16(7)(v)-8 TRANS Energy'!K473+'FR-16(7)(v)-9 TRANS Cust'!K473+'FR-16(7)(v)-11 DIST Demand'!K473+'FR-16(7)(v)-12 DIST Energy'!K473+'FR-16(7)(v)-13 DIST Cust'!K473","v":43},{"$f":"'FR-16(7)(v)-3 PROD Demand'!L473+'FR-16(7)(v)-4 PROD Energy'!L473+'FR-16(7)(v)-5 PROD Cust'!L473+'FR-16(7)(v)-7 TRANS Demand'!L473+'FR-16(7)(v)-8 TRANS Energy'!L473+'FR-16(7)(v)-9 TRANS Cust'!L473+'FR-16(7)(v)-11 DIST Demand'!L473+'FR-16(7)(v)-12 DIST Energy'!L473+'FR-16(7)(v)-13 DIST Cust'!L473","v":83814},{"$f":"'FR-16(7)(v)-3 PROD Demand'!M473+'FR-16(7)(v)-4 PROD Energy'!M473+'FR-16(7)(v)-5 PROD Cust'!M473+'FR-16(7)(v)-7 TRANS Demand'!M473+'FR-16(7)(v)-8 TRANS Energy'!M473+'FR-16(7)(v)-9 TRANS Cust'!M473+'FR-16(7)(v)-11 DIST Demand'!M473+'FR-16(7)(v)-12 DIST Energy'!M473+'FR-16(7)(v)-13 DIST Cust'!M473","v":55410},{"$f":"'FR-16(7)(v)-3 PROD Demand'!N473+'FR-16(7)(v)-4 PROD Energy'!N473+'FR-16(7)(v)-5 PROD Cust'!N473+'FR-16(7)(v)-7 TRANS Demand'!N473+'FR-16(7)(v)-8 TRANS Energy'!N473+'FR-16(7)(v)-9 TRANS Cust'!N473+'FR-16(7)(v)-11 DIST Demand'!N473+'FR-16(7)(v)-12 DIST Energy'!N473+'FR-16(7)(v)-13 DIST Cust'!N473","v":2677},{"$f":"'FR-16(7)(v)-3 PROD Demand'!O473+'FR-16(7)(v)-4 PROD Energy'!O473+'FR-16(7)(v)-5 PROD Cust'!O473+'FR-16(7)(v)-7 TRANS Demand'!O473+'FR-16(7)(v)-8 TRANS Energy'!O473+'FR-16(7)(v)-9 TRANS Cust'!O473+'FR-16(7)(v)-11 DIST Demand'!O473+'FR-16(7)(v)-12 DIST Energy'!O473+'FR-16(7)(v)-13 DIST Cust'!O473","v":26255},{"$f":"'FR-16(7)(v)-3 PROD Demand'!P473+'FR-16(7)(v)-4 PROD Energy'!P473+'FR-16(7)(v)-5 PROD Cust'!P473+'FR-16(7)(v)-7 TRANS Demand'!P473+'FR-16(7)(v)-8 TRANS Energy'!P473+'FR-16(7)(v)-9 TRANS Cust'!P473+'FR-16(7)(v)-11 DIST Demand'!P473+'FR-16(7)(v)-12 DIST Energy'!P473+'FR-16(7)(v)-13 DIST Cust'!P473","v":770},{"$f":"'FR-16(7)(v)-3 PROD Demand'!Q473+'FR-16(7)(v)-4 PROD Energy'!Q473+'FR-16(7)(v)-5 PROD Cust'!Q473+'FR-16(7)(v)-7 TRANS Demand'!Q473+'FR-16(7)(v)-8 TRANS Energy'!Q473+'FR-16(7)(v)-9 TRANS Cust'!Q473+'FR-16(7)(v)-11 DIST Demand'!Q473+'FR-16(7)(v)-12 DIST Energy'!Q473+'FR-16(7)(v)-13 DIST Cust'!Q473","v":68},{"$f":"SUM(G473:Q473)","v":621124},{"$f":"F473-R473","v":0}]
[30,null,{"$f":"'FR-16(7)(v)-1 Functional'!C474","v":"POLES, TOWERS & FIXTURES"},{"$f":"'FR-16(7)(v)-1 Functional'!D474","v":"PL49"},null,{"$f":"'FR-16(7)(v)-1 Functional'!F474","v":0},{"$f":"'FR-16(7)(v)-3 PROD Demand'!G474+'FR-16(7)(v)-4 PROD Energy'!G474+'FR-16(7)(v)-5 PROD Cust'!G474+'FR-16(7)(v)-7 TRANS Demand'!G474+'FR-16(7)(v)-8 TRANS Energy'!G474+'FR-16(7)(v)-9 TRANS Cust'!G474+'FR-16(7)(v)-11 DIST Demand'!G474+'FR-16(7)(v)-12 DIST Energy'!G474+'FR-16(7)(v)-13 DIST Cust'!G474","v":0},{"$f":"'FR-16(7)(v)-3 PROD Demand'!H474+'FR-16(7)(v)-4 PROD Energy'!H474+'FR-16(7)(v)-5 PROD Cust'!H474+'FR-16(7)(v)-7 TRANS Demand'!H474+'FR-16(7)(v)-8 TRANS Energy'!H474+'FR-16(7)(v)-9 TRANS Cust'!H474+'FR-16(7)(v)-11 DIST Demand'!H474+'FR-16(7)(v)-12 DIST Energy'!H474+'FR-16(7)(v)-13 DIST Cust'!H474","v":0},{"$f":"'FR-16(7)(v)-3 PROD Demand'!I474+'FR-16(7)(v)-4 PROD Energy'!I474+'FR-16(7)(v)-5 PROD Cust'!I474+'FR-16(7)(v)-7 TRANS Demand'!I474+'FR-16(7)(v)-8 TRANS Energy'!I474+'FR-16(7)(v)-9 TRANS Cust'!I474+'FR-16(7)(v)-11 DIST Demand'!I474+'FR-16(7)(v)-12 DIST Energy'!I474+'FR-16(7)(v)-13 DIST Cust'!I474","v":0},{"$f":"'FR-16(7)(v)-3 PROD Demand'!J474+'FR-16(7)(v)-4 PROD Energy'!J474+'FR-16(7)(v)-5 PROD Cust'!J474+'FR-16(7)(v)-7 TRANS Demand'!J474+'FR-16(7)(v)-8 TRANS Energy'!J474+'FR-16(7)(v)-9 TRANS Cust'!J474+'FR-16(7)(v)-11 DIST Demand'!J474+'FR-16(7)(v)-12 DIST Energy'!J474+'FR-16(7)(v)-13 DIST Cust'!J474","v":0},{"$f":"'FR-16(7)(v)-3 PROD Demand'!K474+'FR-16(7)(v)-4 PROD Energy'!K474+'FR-16(7)(v)-5 PROD Cust'!K474+'FR-16(7)(v)-7 TRANS Demand'!K474+'FR-16(7)(v)-8 TRANS Energy'!K474+'FR-16(7)(v)-9 TRANS Cust'!K474+'FR-16(7)(v)-11 DIST Demand'!K474+'FR-16(7)(v)-12 DIST Energy'!K474+'FR-16(7)(v)-13 DIST Cust'!K474","v":0},{"$f":"'FR-16(7)(v)-3 PROD Demand'!L474+'FR-16(7)(v)-4 PROD Energy'!L474+'FR-16(7)(v)-5 PROD Cust'!L474+'FR-16(7)(v)-7 TRANS Demand'!L474+'FR-16(7)(v)-8 TRANS Energy'!L474+'FR-16(7)(v)-9 TRANS Cust'!L474+'FR-16(7)(v)-11 DIST Demand'!L474+'FR-16(7)(v)-12 DIST Energy'!L474+'FR-16(7)(v)-13 DIST Cust'!L474","v":0},{"$f":"'FR-16(7)(v)-3 PROD Demand'!M474+'FR-16(7)(v)-4 PROD Energy'!M474+'FR-16(7)(v)-5 PROD Cust'!M474+'FR-16(7)(v)-7 TRANS Demand'!M474+'FR-16(7)(v)-8 TRANS Energy'!M474+'FR-16(7)(v)-9 TRANS Cust'!M474+'FR-16(7)(v)-11 DIST Demand'!M474+'FR-16(7)(v)-12 DIST Energy'!M474+'FR-16(7)(v)-13 DIST Cust'!M474","v":0},{"$f":"'FR-16(7)(v)-3 PROD Demand'!N474+'FR-16(7)(v)-4 PROD Energy'!N474+'FR-16(7)(v)-5 PROD Cust'!N474+'FR-16(7)(v)-7 TRANS Demand'!N474+'FR-16(7)(v)-8 TRANS Energy'!N474+'FR-16(7)(v)-9 TRANS Cust'!N474+'FR-16(7)(v)-11 DIST Demand'!N474+'FR-16(7)(v)-12 DIST Energy'!N474+'FR-16(7)(v)-13 DIST Cust'!N474","v":0},{"$f":"'FR-16(7)(v)-3 PROD Demand'!O474+'FR-16(7)(v)-4 PROD Energy'!O474+'FR-16(7)(v)-5 PROD Cust'!O474+'FR-16(7)(v)-7 TRANS Demand'!O474+'FR-16(7)(v)-8 TRANS Energy'!O474+'FR-16(7)(v)-9 TRANS Cust'!O474+'FR-16(7)(v)-11 DIST Demand'!O474+'FR-16(7)(v)-12 DIST Energy'!O474+'FR-16(7)(v)-13 DIST Cust'!O474","v":0},{"$f":"'FR-16(7)(v)-3 PROD Demand'!P474+'FR-16(7)(v)-4 PROD Energy'!P474+'FR-16(7)(v)-5 PROD Cust'!P474+'FR-16(7)(v)-7 TRANS Demand'!P474+'FR-16(7)(v)-8 TRANS Energy'!P474+'FR-16(7)(v)-9 TRANS Cust'!P474+'FR-16(7)(v)-11 DIST Demand'!P474+'FR-16(7)(v)-12 DIST Energy'!P474+'FR-16(7)(v)-13 DIST Cust'!P474","v":0},{"$f":"'FR-16(7)(v)-3 PROD Demand'!Q474+'FR-16(7)(v)-4 PROD Energy'!Q474+'FR-16(7)(v)-5 PROD Cust'!Q474+'FR-16(7)(v)-7 TRANS Demand'!Q474+'FR-16(7)(v)-8 TRANS Energy'!Q474+'FR-16(7)(v)-9 TRANS Cust'!Q474+'FR-16(7)(v)-11 DIST Demand'!Q474+'FR-16(7)(v)-12 DIST Energy'!Q474+'FR-16(7)(v)-13 DIST Cust'!Q474","v":0},0,0]
[31,null,{"$f":"'FR-16(7)(v)-1 Functional'!C475","v":"OVERHEAD LINES - PRIMARY / DEMAND"},{"$f":"'FR-16(7)(v)-1 Functional'!D475","v":"K205"},null,{"$f":"'FR-16(7)(v)-1 Functional'!F475","v":5171363},{"$f":"'FR-16(7)(v)-3 PROD Demand'!G475+'FR-16(7)(v)-4 PROD Energy'!G475+'FR-16(7)(v)-5 PROD Cust'!G475+'FR-16(7)(v)-7 TRANS Demand'!G475+'FR-16(7)(v)-8 TRANS Energy'!G475+'FR-16(7)(v)-9 TRANS Cust'!G475+'FR-16(7)(v)-11 DIST Demand'!G475+'FR-16(7)(v)-12 DIST Energy'!G475+'FR-16(7)(v)-13 DIST Cust'!G475","v":2427592},{"$f":"'FR-16(7)(v)-3 PROD Demand'!H475+'FR-16(7)(v)-4 PROD Energy'!H475+'FR-16(7)(v)-5 PROD Cust'!H475+'FR-16(7)(v)-7 TRANS Demand'!H475+'FR-16(7)(v)-8 TRANS Energy'!H475+'FR-16(7)(v)-9 TRANS Cust'!H475+'FR-16(7)(v)-11 DIST Demand'!H475+'FR-16(7)(v)-12 DIST Energy'!H475+'FR-16(7)(v)-13 DIST Cust'!H475","v":1433657},{"$f":"'FR-16(7)(v)-3 PROD Demand'!I475+'FR-16(7)(v)-4 PROD Energy'!I475+'FR-16(7)(v)-5 PROD Cust'!I475+'FR-16(7)(v)-7 TRANS Demand'!I475+'FR-16(7)(v)-8 TRANS Energy'!I475+'FR-16(7)(v)-9 TRANS Cust'!I475+'FR-16(7)(v)-11 DIST Demand'!I475+'FR-16(7)(v)-12 DIST Energy'!I475+'FR-16(7)(v)-13 DIST Cust'!I475","v":6671},{"$f":"'FR-16(7)(v)-3 PROD Demand'!J475+'FR-16(7)(v)-4 PROD Energy'!J475+'FR-16(7)(v)-5 PROD Cust'!J475+'FR-16(7)(v)-7 TRANS Demand'!J475+'FR-16(7)(v)-8 TRANS Energy'!J475+'FR-16(7)(v)-9 TRANS Cust'!J475+'FR-16(7)(v)-11 DIST Demand'!J475+'FR-16(7)(v)-12 DIST Energy'!J475+'FR-16(7)(v)-13 DIST Cust'!J475","v":31442},{"$f":"'FR-16(7)(v)-3 PROD Demand'!K475+'FR-16(7)(v)-4 PROD Energy'!K475+'FR-16(7)(v)-5 PROD Cust'!K475+'FR-16(7)(v)-7 TRANS Demand'!K475+'FR-16(7)(v)-8 TRANS Energy'!K475+'FR-16(7)(v)-9 TRANS Cust'!K475+'FR-16(7)(v)-11 DIST Demand'!K475+'FR-16(7)(v)-12 DIST Energy'!K475+'FR-16(7)(v)-13 DIST Cust'!K475","v":362},{"$f":"'FR-16(7)(v)-3 PROD Demand'!L475+'FR-16(7)(v)-4 PROD Energy'!L475+'FR-16(7)(v)-5 PROD Cust'!L475+'FR-16(7)(v)-7 TRANS Demand'!L475+'FR-16(7)(v)-8 TRANS Energy'!L475+'FR-16(7)(v)-9 TRANS Cust'!L475+'FR-16(7)(v)-11 DIST Demand'!L475+'FR-16(7)(v)-12 DIST Energy'!L475+'FR-16(7)(v)-13 DIST Cust'!L475","v":732162},{"$f":"'FR-16(7)(v)-3 PROD Demand'!M475+'FR-16(7)(v)-4 PROD Energy'!M475+'FR-16(7)(v)-5 PROD Cust'!M475+'FR-16(7)(v)-7 TRANS Demand'!M475+'FR-16(7)(v)-8 TRANS Energy'!M475+'FR-16(7)(v)-9 TRANS Cust'!M475+'FR-16(7)(v)-11 DIST Demand'!M475+'FR-16(7)(v)-12 DIST Energy'!M475+'FR-16(7)(v)-13 DIST Cust'!M475","v":482230},{"$f":"'FR-16(7)(v)-3 PROD Demand'!N475+'FR-16(7)(v)-4 PROD Energy'!N475+'FR-16(7)(v)-5 PROD Cust'!N475+'FR-16(7)(v)-7 TRANS Demand'!N475+'FR-16(7)(v)-8 TRANS Energy'!N475+'FR-16(7)(v)-9 TRANS Cust'!N475+'FR-16(7)(v)-11 DIST Demand'!N475+'FR-16(7)(v)-12 DIST Energy'!N475+'FR-16(7)(v)-13 DIST Cust'!N475","v":24202},{"$f":"'FR-16(7)(v)-3 PROD Demand'!O475+'FR-16(7)(v)-4 PROD Energy'!O475+'FR-16(7)(v)-5 PROD Cust'!O475+'FR-16(7)(v)-7 TRANS Demand'!O475+'FR-16(7)(v)-8 TRANS Energy'!O475+'FR-16(7)(v)-9 TRANS Cust'!O475+'FR-16(7)(v)-11 DIST Demand'!O475+'FR-16(7)(v)-12 DIST Energy'!O475+'FR-16(7)(v)-13 DIST Cust'!O475","v":0},{"$f":"'FR-16(7)(v)-3 PROD Demand'!P475+'FR-16(7)(v)-4 PROD Energy'!P475+'FR-16(7)(v)-5 PROD Cust'!P475+'FR-16(7)(v)-7 TRANS Demand'!P475+'FR-16(7)(v)-8 TRANS Energy'!P475+'FR-16(7)(v)-9 TRANS Cust'!P475+'FR-16(7)(v)-11 DIST Demand'!P475+'FR-16(7)(v)-12 DIST Energy'!P475+'FR-16(7)(v)-13 DIST Cust'!P475","v":32476},{"$f":"'FR-16(7)(v)-3 PROD Demand'!Q475+'FR-16(7)(v)-4 PROD Energy'!Q475+'FR-16(7)(v)-5 PROD Cust'!Q475+'FR-16(7)(v)-7 TRANS Demand'!Q475+'FR-16(7)(v)-8 TRANS Energy'!Q475+'FR-16(7)(v)-9 TRANS Cust'!Q475+'FR-16(7)(v)-11 DIST Demand'!Q475+'FR-16(7)(v)-12 DIST Energy'!Q475+'FR-16(7)(v)-13 DIST Cust'!Q475","v":569},5171363,0]
[32,null,{"$f":"'FR-16(7)(v)-1 Functional'!C476","v":"OVERHEAD LINES - PRIMARY / CUSTOMER"},"K406",null,{"$f":"'FR-16(7)(v)-1 Functional'!F476","v":1129296},{"$f":"'FR-16(7)(v)-3 PROD Demand'!G476+'FR-16(7)(v)-4 PROD Energy'!G476+'FR-16(7)(v)-5 PROD Cust'!G476+'FR-16(7)(v)-7 TRANS Demand'!G476+'FR-16(7)(v)-8 TRANS Energy'!G476+'FR-16(7)(v)-9 TRANS Cust'!G476+'FR-16(7)(v)-11 DIST Demand'!G476+'FR-16(7)(v)-12 DIST Energy'!G476+'FR-16(7)(v)-13 DIST Cust'!G476","v":1018682},{"$f":"'FR-16(7)(v)-3 PROD Demand'!H476+'FR-16(7)(v)-4 PROD Energy'!H476+'FR-16(7)(v)-5 PROD Cust'!H476+'FR-16(7)(v)-7 TRANS Demand'!H476+'FR-16(7)(v)-8 TRANS Energy'!H476+'FR-16(7)(v)-9 TRANS Cust'!H476+'FR-16(7)(v)-11 DIST Demand'!H476+'FR-16(7)(v)-12 DIST Energy'!H476+'FR-16(7)(v)-13 DIST Cust'!H476","v":102879},{"$f":"'FR-16(7)(v)-3 PROD Demand'!I476+'FR-16(7)(v)-4 PROD Energy'!I476+'FR-16(7)(v)-5 PROD Cust'!I476+'FR-16(7)(v)-7 TRANS Demand'!I476+'FR-16(7)(v)-8 TRANS Energy'!I476+'FR-16(7)(v)-9 TRANS Cust'!I476+'FR-16(7)(v)-11 DIST Demand'!I476+'FR-16(7)(v)-12 DIST Energy'!I476+'FR-16(7)(v)-13 DIST Cust'!I476","v":1366},{"$f":"'FR-16(7)(v)-3 PROD Demand'!J476+'FR-16(7)(v)-4 PROD Energy'!J476+'FR-16(7)(v)-5 PROD Cust'!J476+'FR-16(7)(v)-7 TRANS Demand'!J476+'FR-16(7)(v)-8 TRANS Energy'!J476+'FR-16(7)(v)-9 TRANS Cust'!J476+'FR-16(7)(v)-11 DIST Demand'!J476+'FR-16(7)(v)-12 DIST Energy'!J476+'FR-16(7)(v)-13 DIST Cust'!J476","v":813},{"$f":"'FR-16(7)(v)-3 PROD Demand'!K476+'FR-16(7)(v)-4 PROD Energy'!K476+'FR-16(7)(v)-5 PROD Cust'!K476+'FR-16(7)(v)-7 TRANS Demand'!K476+'FR-16(7)(v)-8 TRANS Energy'!K476+'FR-16(7)(v)-9 TRANS Cust'!K476+'FR-16(7)(v)-11 DIST Demand'!K476+'FR-16(7)(v)-12 DIST Energy'!K476+'FR-16(7)(v)-13 DIST Cust'!K476","v":113},{"$f":"'FR-16(7)(v)-3 PROD Demand'!L476+'FR-16(7)(v)-4 PROD Energy'!L476+'FR-16(7)(v)-5 PROD Cust'!L476+'FR-16(7)(v)-7 TRANS Demand'!L476+'FR-16(7)(v)-8 TRANS Energy'!L476+'FR-16(7)(v)-9 TRANS Cust'!L476+'FR-16(7)(v)-11 DIST Demand'!L476+'FR-16(7)(v)-12 DIST Energy'!L476+'FR-16(7)(v)-13 DIST Cust'!L476","v":1265},{"$f":"'FR-16(7)(v)-3 PROD Demand'!M476+'FR-16(7)(v)-4 PROD Energy'!M476+'FR-16(7)(v)-5 PROD Cust'!M476+'FR-16(7)(v)-7 TRANS Demand'!M476+'FR-16(7)(v)-8 TRANS Energy'!M476+'FR-16(7)(v)-9 TRANS Cust'!M476+'FR-16(7)(v)-11 DIST Demand'!M476+'FR-16(7)(v)-12 DIST Energy'!M476+'FR-16(7)(v)-13 DIST Cust'!M476","v":294},{"$f":"'FR-16(7)(v)-3 PROD Demand'!N476+'FR-16(7)(v)-4 PROD Energy'!N476+'FR-16(7)(v)-5 PROD Cust'!N476+'FR-16(7)(v)-7 TRANS Demand'!N476+'FR-16(7)(v)-8 TRANS Energy'!N476+'FR-16(7)(v)-9 TRANS Cust'!N476+'FR-16(7)(v)-11 DIST Demand'!N476+'FR-16(7)(v)-12 DIST Energy'!N476+'FR-16(7)(v)-13 DIST Cust'!N476","v":79},{"$f":"'FR-16(7)(v)-3 PROD Demand'!O476+'FR-16(7)(v)-4 PROD Energy'!O476+'FR-16(7)(v)-5 PROD Cust'!O476+'FR-16(7)(v)-7 TRANS Demand'!O476+'FR-16(7)(v)-8 TRANS Energy'!O476+'FR-16(7)(v)-9 TRANS Cust'!O476+'FR-16(7)(v)-11 DIST Demand'!O476+'FR-16(7)(v)-12 DIST Energy'!O476+'FR-16(7)(v)-13 DIST Cust'!O476","v":0},{"$f":"'FR-16(7)(v)-3 PROD Demand'!P476+'FR-16(7)(v)-4 PROD Energy'!P476+'FR-16(7)(v)-5 PROD Cust'!P476+'FR-16(7)(v)-7 TRANS Demand'!P476+'FR-16(7)(v)-8 TRANS Energy'!P476+'FR-16(7)(v)-9 TRANS Cust'!P476+'FR-16(7)(v)-11 DIST Demand'!P476+'FR-16(7)(v)-12 DIST Energy'!P476+'FR-16(7)(v)-13 DIST Cust'!P476","v":3715},{"$f":"'FR-16(7)(v)-3 PROD Demand'!Q476+'FR-16(7)(v)-4 PROD Energy'!Q476+'FR-16(7)(v)-5 PROD Cust'!Q476+'FR-16(7)(v)-7 TRANS Demand'!Q476+'FR-16(7)(v)-8 TRANS Energy'!Q476+'FR-16(7)(v)-9 TRANS Cust'!Q476+'FR-16(7)(v)-11 DIST Demand'!Q476+'FR-16(7)(v)-12 DIST Energy'!Q476+'FR-16(7)(v)-13 DIST Cust'!Q476","v":90},1129296,0]
[33,null,{"$f":"'FR-16(7)(v)-1 Functional'!C477","v":"OVERHEAD LINES - SECONDARY / DEMAND"},{"$f":"'FR-16(7)(v)-1 Functional'!D477","v":"K206"},null,{"$f":"'FR-16(7)(v)-1 Functional'!F477","v":2105718},{"$f":"'FR-16(7)(v)-3 PROD Demand'!G477+'FR-16(7)(v)-4 PROD Energy'!G477+'FR-16(7)(v)-5 PROD Cust'!G477+'FR-16(7)(v)-7 TRANS Demand'!G477+'FR-16(7)(v)-8 TRANS Energy'!G477+'FR-16(7)(v)-9 TRANS Cust'!G477+'FR-16(7)(v)-11 DIST Demand'!G477+'FR-16(7)(v)-12 DIST Energy'!G477+'FR-16(7)(v)-13 DIST Cust'!G477","v":988487},{"$f":"'FR-16(7)(v)-3 PROD Demand'!H477+'FR-16(7)(v)-4 PROD Energy'!H477+'FR-16(7)(v)-5 PROD Cust'!H477+'FR-16(7)(v)-7 TRANS Demand'!H477+'FR-16(7)(v)-8 TRANS Energy'!H477+'FR-16(7)(v)-9 TRANS Cust'!H477+'FR-16(7)(v)-11 DIST Demand'!H477+'FR-16(7)(v)-12 DIST Energy'!H477+'FR-16(7)(v)-13 DIST Cust'!H477","v":583768},{"$f":"'FR-16(7)(v)-3 PROD Demand'!I477+'FR-16(7)(v)-4 PROD Energy'!I477+'FR-16(7)(v)-5 PROD Cust'!I477+'FR-16(7)(v)-7 TRANS Demand'!I477+'FR-16(7)(v)-8 TRANS Energy'!I477+'FR-16(7)(v)-9 TRANS Cust'!I477+'FR-16(7)(v)-11 DIST Demand'!I477+'FR-16(7)(v)-12 DIST Energy'!I477+'FR-16(7)(v)-13 DIST Cust'!I477","v":2716},{"$f":"'FR-16(7)(v)-3 PROD Demand'!J477+'FR-16(7)(v)-4 PROD Energy'!J477+'FR-16(7)(v)-5 PROD Cust'!J477+'FR-16(7)(v)-7 TRANS Demand'!J477+'FR-16(7)(v)-8 TRANS Energy'!J477+'FR-16(7)(v)-9 TRANS Cust'!J477+'FR-16(7)(v)-11 DIST Demand'!J477+'FR-16(7)(v)-12 DIST Energy'!J477+'FR-16(7)(v)-13 DIST Cust'!J477","v":12803},{"$f":"'FR-16(7)(v)-3 PROD Demand'!K477+'FR-16(7)(v)-4 PROD Energy'!K477+'FR-16(7)(v)-5 PROD Cust'!K477+'FR-16(7)(v)-7 TRANS Demand'!K477+'FR-16(7)(v)-8 TRANS Energy'!K477+'FR-16(7)(v)-9 TRANS Cust'!K477+'FR-16(7)(v)-11 DIST Demand'!K477+'FR-16(7)(v)-12 DIST Energy'!K477+'FR-16(7)(v)-13 DIST Cust'!K477","v":147},{"$f":"'FR-16(7)(v)-3 PROD Demand'!L477+'FR-16(7)(v)-4 PROD Energy'!L477+'FR-16(7)(v)-5 PROD Cust'!L477+'FR-16(7)(v)-7 TRANS Demand'!L477+'FR-16(7)(v)-8 TRANS Energy'!L477+'FR-16(7)(v)-9 TRANS Cust'!L477+'FR-16(7)(v)-11 DIST Demand'!L477+'FR-16(7)(v)-12 DIST Energy'!L477+'FR-16(7)(v)-13 DIST Cust'!L477","v":298128},{"$f":"'FR-16(7)(v)-3 PROD Demand'!M477+'FR-16(7)(v)-4 PROD Energy'!M477+'FR-16(7)(v)-5 PROD Cust'!M477+'FR-16(7)(v)-7 TRANS Demand'!M477+'FR-16(7)(v)-8 TRANS Energy'!M477+'FR-16(7)(v)-9 TRANS Cust'!M477+'FR-16(7)(v)-11 DIST Demand'!M477+'FR-16(7)(v)-12 DIST Energy'!M477+'FR-16(7)(v)-13 DIST Cust'!M477","v":196358},{"$f":"'FR-16(7)(v)-3 PROD Demand'!N477+'FR-16(7)(v)-4 PROD Energy'!N477+'FR-16(7)(v)-5 PROD Cust'!N477+'FR-16(7)(v)-7 TRANS Demand'!N477+'FR-16(7)(v)-8 TRANS Energy'!N477+'FR-16(7)(v)-9 TRANS Cust'!N477+'FR-16(7)(v)-11 DIST Demand'!N477+'FR-16(7)(v)-12 DIST Energy'!N477+'FR-16(7)(v)-13 DIST Cust'!N477","v":9855},{"$f":"'FR-16(7)(v)-3 PROD Demand'!O477+'FR-16(7)(v)-4 PROD Energy'!O477+'FR-16(7)(v)-5 PROD Cust'!O477+'FR-16(7)(v)-7 TRANS Demand'!O477+'FR-16(7)(v)-8 TRANS Energy'!O477+'FR-16(7)(v)-9 TRANS Cust'!O477+'FR-16(7)(v)-11 DIST Demand'!O477+'FR-16(7)(v)-12 DIST Energy'!O477+'FR-16(7)(v)-13 DIST Cust'!O477","v":0},{"$f":"'FR-16(7)(v)-3 PROD Demand'!P477+'FR-16(7)(v)-4 PROD Energy'!P477+'FR-16(7)(v)-5 PROD Cust'!P477+'FR-16(7)(v)-7 TRANS Demand'!P477+'FR-16(7)(v)-8 TRANS Energy'!P477+'FR-16(7)(v)-9 TRANS Cust'!P477+'FR-16(7)(v)-11 DIST Demand'!P477+'FR-16(7)(v)-12 DIST Energy'!P477+'FR-16(7)(v)-13 DIST Cust'!P477","v":13224},{"$f":"'FR-16(7)(v)-3 PROD Demand'!Q477+'FR-16(7)(v)-4 PROD Energy'!Q477+'FR-16(7)(v)-5 PROD Cust'!Q477+'FR-16(7)(v)-7 TRANS Demand'!Q477+'FR-16(7)(v)-8 TRANS Energy'!Q477+'FR-16(7)(v)-9 TRANS Cust'!Q477+'FR-16(7)(v)-11 DIST Demand'!Q477+'FR-16(7)(v)-12 DIST Energy'!Q477+'FR-16(7)(v)-13 DIST Cust'!Q477","v":232},2105718,0]
[34,null,{"$f":"'FR-16(7)(v)-1 Functional'!C478","v":"OVERHEAD LINES - SECONDARY / CUSTOMER"},"K406",null,{"$f":"'FR-16(7)(v)-1 Functional'!F478","v":467790},{"$f":"'FR-16(7)(v)-3 PROD Demand'!G478+'FR-16(7)(v)-4 PROD Energy'!G478+'FR-16(7)(v)-5 PROD Cust'!G478+'FR-16(7)(v)-7 TRANS Demand'!G478+'FR-16(7)(v)-8 TRANS Energy'!G478+'FR-16(7)(v)-9 TRANS Cust'!G478+'FR-16(7)(v)-11 DIST Demand'!G478+'FR-16(7)(v)-12 DIST Energy'!G478+'FR-16(7)(v)-13 DIST Cust'!G478","v":421969},{"$f":"'FR-16(7)(v)-3 PROD Demand'!H478+'FR-16(7)(v)-4 PROD Energy'!H478+'FR-16(7)(v)-5 PROD Cust'!H478+'FR-16(7)(v)-7 TRANS Demand'!H478+'FR-16(7)(v)-8 TRANS Energy'!H478+'FR-16(7)(v)-9 TRANS Cust'!H478+'FR-16(7)(v)-11 DIST Demand'!H478+'FR-16(7)(v)-12 DIST Energy'!H478+'FR-16(7)(v)-13 DIST Cust'!H478","v":42616},{"$f":"'FR-16(7)(v)-3 PROD Demand'!I478+'FR-16(7)(v)-4 PROD Energy'!I478+'FR-16(7)(v)-5 PROD Cust'!I478+'FR-16(7)(v)-7 TRANS Demand'!I478+'FR-16(7)(v)-8 TRANS Energy'!I478+'FR-16(7)(v)-9 TRANS Cust'!I478+'FR-16(7)(v)-11 DIST Demand'!I478+'FR-16(7)(v)-12 DIST Energy'!I478+'FR-16(7)(v)-13 DIST Cust'!I478","v":566},{"$f":"'FR-16(7)(v)-3 PROD Demand'!J478+'FR-16(7)(v)-4 PROD Energy'!J478+'FR-16(7)(v)-5 PROD Cust'!J478+'FR-16(7)(v)-7 TRANS Demand'!J478+'FR-16(7)(v)-8 TRANS Energy'!J478+'FR-16(7)(v)-9 TRANS Cust'!J478+'FR-16(7)(v)-11 DIST Demand'!J478+'FR-16(7)(v)-12 DIST Energy'!J478+'FR-16(7)(v)-13 DIST Cust'!J478","v":337},{"$f":"'FR-16(7)(v)-3 PROD Demand'!K478+'FR-16(7)(v)-4 PROD Energy'!K478+'FR-16(7)(v)-5 PROD Cust'!K478+'FR-16(7)(v)-7 TRANS Demand'!K478+'FR-16(7)(v)-8 TRANS Energy'!K478+'FR-16(7)(v)-9 TRANS Cust'!K478+'FR-16(7)(v)-11 DIST Demand'!K478+'FR-16(7)(v)-12 DIST Energy'!K478+'FR-16(7)(v)-13 DIST Cust'!K478","v":47},{"$f":"'FR-16(7)(v)-3 PROD Demand'!L478+'FR-16(7)(v)-4 PROD Energy'!L478+'FR-16(7)(v)-5 PROD Cust'!L478+'FR-16(7)(v)-7 TRANS Demand'!L478+'FR-16(7)(v)-8 TRANS Energy'!L478+'FR-16(7)(v)-9 TRANS Cust'!L478+'FR-16(7)(v)-11 DIST Demand'!L478+'FR-16(7)(v)-12 DIST Energy'!L478+'FR-16(7)(v)-13 DIST Cust'!L478","v":524},{"$f":"'FR-16(7)(v)-3 PROD Demand'!M478+'FR-16(7)(v)-4 PROD Energy'!M478+'FR-16(7)(v)-5 PROD Cust'!M478+'FR-16(7)(v)-7 TRANS Demand'!M478+'FR-16(7)(v)-8 TRANS Energy'!M478+'FR-16(7)(v)-9 TRANS Cust'!M478+'FR-16(7)(v)-11 DIST Demand'!M478+'FR-16(7)(v)-12 DIST Energy'!M478+'FR-16(7)(v)-13 DIST Cust'!M478","v":122},{"$f":"'FR-16(7)(v)-3 PROD Demand'!N478+'FR-16(7)(v)-4 PROD Energy'!N478+'FR-16(7)(v)-5 PROD Cust'!N478+'FR-16(7)(v)-7 TRANS Demand'!N478+'FR-16(7)(v)-8 TRANS Energy'!N478+'FR-16(7)(v)-9 TRANS Cust'!N478+'FR-16(7)(v)-11 DIST Demand'!N478+'FR-16(7)(v)-12 DIST Energy'!N478+'FR-16(7)(v)-13 DIST Cust'!N478","v":33},{"$f":"'FR-16(7)(v)-3 PROD Demand'!O478+'FR-16(7)(v)-4 PROD Energy'!O478+'FR-16(7)(v)-5 PROD Cust'!O478+'FR-16(7)(v)-7 TRANS Demand'!O478+'FR-16(7)(v)-8 TRANS Energy'!O478+'FR-16(7)(v)-9 TRANS Cust'!O478+'FR-16(7)(v)-11 DIST Demand'!O478+'FR-16(7)(v)-12 DIST Energy'!O478+'FR-16(7)(v)-13 DIST Cust'!O478","v":0},{"$f":"'FR-16(7)(v)-3 PROD Demand'!P478+'FR-16(7)(v)-4 PROD Energy'!P478+'FR-16(7)(v)-5 PROD Cust'!P478+'FR-16(7)(v)-7 TRANS Demand'!P478+'FR-16(7)(v)-8 TRANS Energy'!P478+'FR-16(7)(v)-9 TRANS Cust'!P478+'FR-16(7)(v)-11 DIST Demand'!P478+'FR-16(7)(v)-12 DIST Energy'!P478+'FR-16(7)(v)-13 DIST Cust'!P478","v":1539},{"$f":"'FR-16(7)(v)-3 PROD Demand'!Q478+'FR-16(7)(v)-4 PROD Energy'!Q478+'FR-16(7)(v)-5 PROD Cust'!Q478+'FR-16(7)(v)-7 TRANS Demand'!Q478+'FR-16(7)(v)-8 TRANS Energy'!Q478+'FR-16(7)(v)-9 TRANS Cust'!Q478+'FR-16(7)(v)-11 DIST Demand'!Q478+'FR-16(7)(v)-12 DIST Energy'!Q478+'FR-16(7)(v)-13 DIST Cust'!Q478","v":37},467790,0]
[35,null,{"$f":"'FR-16(7)(v)-1 Functional'!C479","v":"UNDERGROUND LINES - PRIMARY / DEMAND"},{"$f":"'FR-16(7)(v)-1 Functional'!D479","v":"K205"},null,{"$f":"'FR-16(7)(v)-1 Functional'!F479","v":674043},{"$f":"'FR-16(7)(v)-3 PROD Demand'!G479+'FR-16(7)(v)-4 PROD Energy'!G479+'FR-16(7)(v)-5 PROD Cust'!G479+'FR-16(7)(v)-7 TRANS Demand'!G479+'FR-16(7)(v)-8 TRANS Energy'!G479+'FR-16(7)(v)-9 TRANS Cust'!G479+'FR-16(7)(v)-11 DIST Demand'!G479+'FR-16(7)(v)-12 DIST Energy'!G479+'FR-16(7)(v)-13 DIST Cust'!G479","v":316415},{"$f":"'FR-16(7)(v)-3 PROD Demand'!H479+'FR-16(7)(v)-4 PROD Energy'!H479+'FR-16(7)(v)-5 PROD Cust'!H479+'FR-16(7)(v)-7 TRANS Demand'!H479+'FR-16(7)(v)-8 TRANS Energy'!H479+'FR-16(7)(v)-9 TRANS Cust'!H479+'FR-16(7)(v)-11 DIST Demand'!H479+'FR-16(7)(v)-12 DIST Energy'!H479+'FR-16(7)(v)-13 DIST Cust'!H479","v":186865},{"$f":"'FR-16(7)(v)-3 PROD Demand'!I479+'FR-16(7)(v)-4 PROD Energy'!I479+'FR-16(7)(v)-5 PROD Cust'!I479+'FR-16(7)(v)-7 TRANS Demand'!I479+'FR-16(7)(v)-8 TRANS Energy'!I479+'FR-16(7)(v)-9 TRANS Cust'!I479+'FR-16(7)(v)-11 DIST Demand'!I479+'FR-16(7)(v)-12 DIST Energy'!I479+'FR-16(7)(v)-13 DIST Cust'!I479","v":870},{"$f":"'FR-16(7)(v)-3 PROD Demand'!J479+'FR-16(7)(v)-4 PROD Energy'!J479+'FR-16(7)(v)-5 PROD Cust'!J479+'FR-16(7)(v)-7 TRANS Demand'!J479+'FR-16(7)(v)-8 TRANS Energy'!J479+'FR-16(7)(v)-9 TRANS Cust'!J479+'FR-16(7)(v)-11 DIST Demand'!J479+'FR-16(7)(v)-12 DIST Energy'!J479+'FR-16(7)(v)-13 DIST Cust'!J479","v":4098},{"$f":"'FR-16(7)(v)-3 PROD Demand'!K479+'FR-16(7)(v)-4 PROD Energy'!K479+'FR-16(7)(v)-5 PROD Cust'!K479+'FR-16(7)(v)-7 TRANS Demand'!K479+'FR-16(7)(v)-8 TRANS Energy'!K479+'FR-16(7)(v)-9 TRANS Cust'!K479+'FR-16(7)(v)-11 DIST Demand'!K479+'FR-16(7)(v)-12 DIST Energy'!K479+'FR-16(7)(v)-13 DIST Cust'!K479","v":47},{"$f":"'FR-16(7)(v)-3 PROD Demand'!L479+'FR-16(7)(v)-4 PROD Energy'!L479+'FR-16(7)(v)-5 PROD Cust'!L479+'FR-16(7)(v)-7 TRANS Demand'!L479+'FR-16(7)(v)-8 TRANS Energy'!L479+'FR-16(7)(v)-9 TRANS Cust'!L479+'FR-16(7)(v)-11 DIST Demand'!L479+'FR-16(7)(v)-12 DIST Energy'!L479+'FR-16(7)(v)-13 DIST Cust'!L479","v":95431},{"$f":"'FR-16(7)(v)-3 PROD Demand'!M479+'FR-16(7)(v)-4 PROD Energy'!M479+'FR-16(7)(v)-5 PROD Cust'!M479+'FR-16(7)(v)-7 TRANS Demand'!M479+'FR-16(7)(v)-8 TRANS Energy'!M479+'FR-16(7)(v)-9 TRANS Cust'!M479+'FR-16(7)(v)-11 DIST Demand'!M479+'FR-16(7)(v)-12 DIST Energy'!M479+'FR-16(7)(v)-13 DIST Cust'!M479","v":62855},{"$f":"'FR-16(7)(v)-3 PROD Demand'!N479+'FR-16(7)(v)-4 PROD Energy'!N479+'FR-16(7)(v)-5 PROD Cust'!N479+'FR-16(7)(v)-7 TRANS Demand'!N479+'FR-16(7)(v)-8 TRANS Energy'!N479+'FR-16(7)(v)-9 TRANS Cust'!N479+'FR-16(7)(v)-11 DIST Demand'!N479+'FR-16(7)(v)-12 DIST Energy'!N479+'FR-16(7)(v)-13 DIST Cust'!N479","v":3155},{"$f":"'FR-16(7)(v)-3 PROD Demand'!O479+'FR-16(7)(v)-4 PROD Energy'!O479+'FR-16(7)(v)-5 PROD Cust'!O479+'FR-16(7)(v)-7 TRANS Demand'!O479+'FR-16(7)(v)-8 TRANS Energy'!O479+'FR-16(7)(v)-9 TRANS Cust'!O479+'FR-16(7)(v)-11 DIST Demand'!O479+'FR-16(7)(v)-12 DIST Energy'!O479+'FR-16(7)(v)-13 DIST Cust'!O479","v":0},{"$f":"'FR-16(7)(v)-3 PROD Demand'!P479+'FR-16(7)(v)-4 PROD Energy'!P479+'FR-16(7)(v)-5 PROD Cust'!P479+'FR-16(7)(v)-7 TRANS Demand'!P479+'FR-16(7)(v)-8 TRANS Energy'!P479+'FR-16(7)(v)-9 TRANS Cust'!P479+'FR-16(7)(v)-11 DIST Demand'!P479+'FR-16(7)(v)-12 DIST Energy'!P479+'FR-16(7)(v)-13 DIST Cust'!P479","v":4233},{"$f":"'FR-16(7)(v)-3 PROD Demand'!Q479+'FR-16(7)(v)-4 PROD Energy'!Q479+'FR-16(7)(v)-5 PROD Cust'!Q479+'FR-16(7)(v)-7 TRANS Demand'!Q479+'FR-16(7)(v)-8 TRANS Energy'!Q479+'FR-16(7)(v)-9 TRANS Cust'!Q479+'FR-16(7)(v)-11 DIST Demand'!Q479+'FR-16(7)(v)-12 DIST Energy'!Q479+'FR-16(7)(v)-13 DIST Cust'!Q479","v":74},674043,0]
[36,null,{"$f":"'FR-16(7)(v)-1 Functional'!C480","v":"UNDERGROUND LINES - PRIMARY / CUSTOMER"},"K406",null,{"$f":"'FR-16(7)(v)-1 Functional'!F480","v":209317},{"$f":"'FR-16(7)(v)-3 PROD Demand'!G480+'FR-16(7)(v)-4 PROD Energy'!G480+'FR-16(7)(v)-5 PROD Cust'!G480+'FR-16(7)(v)-7 TRANS Demand'!G480+'FR-16(7)(v)-8 TRANS Energy'!G480+'FR-16(7)(v)-9 TRANS Cust'!G480+'FR-16(7)(v)-11 DIST Demand'!G480+'FR-16(7)(v)-12 DIST Energy'!G480+'FR-16(7)(v)-13 DIST Cust'!G480","v":188814},{"$f":"'FR-16(7)(v)-3 PROD Demand'!H480+'FR-16(7)(v)-4 PROD Energy'!H480+'FR-16(7)(v)-5 PROD Cust'!H480+'FR-16(7)(v)-7 TRANS Demand'!H480+'FR-16(7)(v)-8 TRANS Energy'!H480+'FR-16(7)(v)-9 TRANS Cust'!H480+'FR-16(7)(v)-11 DIST Demand'!H480+'FR-16(7)(v)-12 DIST Energy'!H480+'FR-16(7)(v)-13 DIST Cust'!H480","v":19069},{"$f":"'FR-16(7)(v)-3 PROD Demand'!I480+'FR-16(7)(v)-4 PROD Energy'!I480+'FR-16(7)(v)-5 PROD Cust'!I480+'FR-16(7)(v)-7 TRANS Demand'!I480+'FR-16(7)(v)-8 TRANS Energy'!I480+'FR-16(7)(v)-9 TRANS Cust'!I480+'FR-16(7)(v)-11 DIST Demand'!I480+'FR-16(7)(v)-12 DIST Energy'!I480+'FR-16(7)(v)-13 DIST Cust'!I480","v":253},{"$f":"'FR-16(7)(v)-3 PROD Demand'!J480+'FR-16(7)(v)-4 PROD Energy'!J480+'FR-16(7)(v)-5 PROD Cust'!J480+'FR-16(7)(v)-7 TRANS Demand'!J480+'FR-16(7)(v)-8 TRANS Energy'!J480+'FR-16(7)(v)-9 TRANS Cust'!J480+'FR-16(7)(v)-11 DIST Demand'!J480+'FR-16(7)(v)-12 DIST Energy'!J480+'FR-16(7)(v)-13 DIST Cust'!J480","v":151},{"$f":"'FR-16(7)(v)-3 PROD Demand'!K480+'FR-16(7)(v)-4 PROD Energy'!K480+'FR-16(7)(v)-5 PROD Cust'!K480+'FR-16(7)(v)-7 TRANS Demand'!K480+'FR-16(7)(v)-8 TRANS Energy'!K480+'FR-16(7)(v)-9 TRANS Cust'!K480+'FR-16(7)(v)-11 DIST Demand'!K480+'FR-16(7)(v)-12 DIST Energy'!K480+'FR-16(7)(v)-13 DIST Cust'!K480","v":21},{"$f":"'FR-16(7)(v)-3 PROD Demand'!L480+'FR-16(7)(v)-4 PROD Energy'!L480+'FR-16(7)(v)-5 PROD Cust'!L480+'FR-16(7)(v)-7 TRANS Demand'!L480+'FR-16(7)(v)-8 TRANS Energy'!L480+'FR-16(7)(v)-9 TRANS Cust'!L480+'FR-16(7)(v)-11 DIST Demand'!L480+'FR-16(7)(v)-12 DIST Energy'!L480+'FR-16(7)(v)-13 DIST Cust'!L480","v":234},{"$f":"'FR-16(7)(v)-3 PROD Demand'!M480+'FR-16(7)(v)-4 PROD Energy'!M480+'FR-16(7)(v)-5 PROD Cust'!M480+'FR-16(7)(v)-7 TRANS Demand'!M480+'FR-16(7)(v)-8 TRANS Energy'!M480+'FR-16(7)(v)-9 TRANS Cust'!M480+'FR-16(7)(v)-11 DIST Demand'!M480+'FR-16(7)(v)-12 DIST Energy'!M480+'FR-16(7)(v)-13 DIST Cust'!M480","v":54},{"$f":"'FR-16(7)(v)-3 PROD Demand'!N480+'FR-16(7)(v)-4 PROD Energy'!N480+'FR-16(7)(v)-5 PROD Cust'!N480+'FR-16(7)(v)-7 TRANS Demand'!N480+'FR-16(7)(v)-8 TRANS Energy'!N480+'FR-16(7)(v)-9 TRANS Cust'!N480+'FR-16(7)(v)-11 DIST Demand'!N480+'FR-16(7)(v)-12 DIST Energy'!N480+'FR-16(7)(v)-13 DIST Cust'!N480","v":15},{"$f":"'FR-16(7)(v)-3 PROD Demand'!O480+'FR-16(7)(v)-4 PROD Energy'!O480+'FR-16(7)(v)-5 PROD Cust'!O480+'FR-16(7)(v)-7 TRANS Demand'!O480+'FR-16(7)(v)-8 TRANS Energy'!O480+'FR-16(7)(v)-9 TRANS Cust'!O480+'FR-16(7)(v)-11 DIST Demand'!O480+'FR-16(7)(v)-12 DIST Energy'!O480+'FR-16(7)(v)-13 DIST Cust'!O480","v":0},{"$f":"'FR-16(7)(v)-3 PROD Demand'!P480+'FR-16(7)(v)-4 PROD Energy'!P480+'FR-16(7)(v)-5 PROD Cust'!P480+'FR-16(7)(v)-7 TRANS Demand'!P480+'FR-16(7)(v)-8 TRANS Energy'!P480+'FR-16(7)(v)-9 TRANS Cust'!P480+'FR-16(7)(v)-11 DIST Demand'!P480+'FR-16(7)(v)-12 DIST Energy'!P480+'FR-16(7)(v)-13 DIST Cust'!P480","v":689},{"$f":"'FR-16(7)(v)-3 PROD Demand'!Q480+'FR-16(7)(v)-4 PROD Energy'!Q480+'FR-16(7)(v)-5 PROD Cust'!Q480+'FR-16(7)(v)-7 TRANS Demand'!Q480+'FR-16(7)(v)-8 TRANS Energy'!Q480+'FR-16(7)(v)-9 TRANS Cust'!Q480+'FR-16(7)(v)-11 DIST Demand'!Q480+'FR-16(7)(v)-12 DIST Energy'!Q480+'FR-16(7)(v)-13 DIST Cust'!Q480","v":17},209317,0]
[37,null,{"$f":"'FR-16(7)(v)-1 Functional'!C481","v":"UNDERGROUND LINES - SECONDARY / DEMAND"},{"$f":"'FR-16(7)(v)-1 Functional'!D481","v":"K206"},null,{"$f":"'FR-16(7)(v)-1 Functional'!F481","v":115473},{"$f":"'FR-16(7)(v)-3 PROD Demand'!G481+'FR-16(7)(v)-4 PROD Energy'!G481+'FR-16(7)(v)-5 PROD Cust'!G481+'FR-16(7)(v)-7 TRANS Demand'!G481+'FR-16(7)(v)-8 TRANS Energy'!G481+'FR-16(7)(v)-9 TRANS Cust'!G481+'FR-16(7)(v)-11 DIST Demand'!G481+'FR-16(7)(v)-12 DIST Energy'!G481+'FR-16(7)(v)-13 DIST Cust'!G481","v":54206},{"$f":"'FR-16(7)(v)-3 PROD Demand'!H481+'FR-16(7)(v)-4 PROD Energy'!H481+'FR-16(7)(v)-5 PROD Cust'!H481+'FR-16(7)(v)-7 TRANS Demand'!H481+'FR-16(7)(v)-8 TRANS Energy'!H481+'FR-16(7)(v)-9 TRANS Cust'!H481+'FR-16(7)(v)-11 DIST Demand'!H481+'FR-16(7)(v)-12 DIST Energy'!H481+'FR-16(7)(v)-13 DIST Cust'!H481","v":32013},{"$f":"'FR-16(7)(v)-3 PROD Demand'!I481+'FR-16(7)(v)-4 PROD Energy'!I481+'FR-16(7)(v)-5 PROD Cust'!I481+'FR-16(7)(v)-7 TRANS Demand'!I481+'FR-16(7)(v)-8 TRANS Energy'!I481+'FR-16(7)(v)-9 TRANS Cust'!I481+'FR-16(7)(v)-11 DIST Demand'!I481+'FR-16(7)(v)-12 DIST Energy'!I481+'FR-16(7)(v)-13 DIST Cust'!I481","v":149},{"$f":"'FR-16(7)(v)-3 PROD Demand'!J481+'FR-16(7)(v)-4 PROD Energy'!J481+'FR-16(7)(v)-5 PROD Cust'!J481+'FR-16(7)(v)-7 TRANS Demand'!J481+'FR-16(7)(v)-8 TRANS Energy'!J481+'FR-16(7)(v)-9 TRANS Cust'!J481+'FR-16(7)(v)-11 DIST Demand'!J481+'FR-16(7)(v)-12 DIST Energy'!J481+'FR-16(7)(v)-13 DIST Cust'!J481","v":702},{"$f":"'FR-16(7)(v)-3 PROD Demand'!K481+'FR-16(7)(v)-4 PROD Energy'!K481+'FR-16(7)(v)-5 PROD Cust'!K481+'FR-16(7)(v)-7 TRANS Demand'!K481+'FR-16(7)(v)-8 TRANS Energy'!K481+'FR-16(7)(v)-9 TRANS Cust'!K481+'FR-16(7)(v)-11 DIST Demand'!K481+'FR-16(7)(v)-12 DIST Energy'!K481+'FR-16(7)(v)-13 DIST Cust'!K481","v":8},{"$f":"'FR-16(7)(v)-3 PROD Demand'!L481+'FR-16(7)(v)-4 PROD Energy'!L481+'FR-16(7)(v)-5 PROD Cust'!L481+'FR-16(7)(v)-7 TRANS Demand'!L481+'FR-16(7)(v)-8 TRANS Energy'!L481+'FR-16(7)(v)-9 TRANS Cust'!L481+'FR-16(7)(v)-11 DIST Demand'!L481+'FR-16(7)(v)-12 DIST Energy'!L481+'FR-16(7)(v)-13 DIST Cust'!L481","v":16349},{"$f":"'FR-16(7)(v)-3 PROD Demand'!M481+'FR-16(7)(v)-4 PROD Energy'!M481+'FR-16(7)(v)-5 PROD Cust'!M481+'FR-16(7)(v)-7 TRANS Demand'!M481+'FR-16(7)(v)-8 TRANS Energy'!M481+'FR-16(7)(v)-9 TRANS Cust'!M481+'FR-16(7)(v)-11 DIST Demand'!M481+'FR-16(7)(v)-12 DIST Energy'!M481+'FR-16(7)(v)-13 DIST Cust'!M481","v":10768},{"$f":"'FR-16(7)(v)-3 PROD Demand'!N481+'FR-16(7)(v)-4 PROD Energy'!N481+'FR-16(7)(v)-5 PROD Cust'!N481+'FR-16(7)(v)-7 TRANS Demand'!N481+'FR-16(7)(v)-8 TRANS Energy'!N481+'FR-16(7)(v)-9 TRANS Cust'!N481+'FR-16(7)(v)-11 DIST Demand'!N481+'FR-16(7)(v)-12 DIST Energy'!N481+'FR-16(7)(v)-13 DIST Cust'!N481","v":540},{"$f":"'FR-16(7)(v)-3 PROD Demand'!O481+'FR-16(7)(v)-4 PROD Energy'!O481+'FR-16(7)(v)-5 PROD Cust'!O481+'FR-16(7)(v)-7 TRANS Demand'!O481+'FR-16(7)(v)-8 TRANS Energy'!O481+'FR-16(7)(v)-9 TRANS Cust'!O481+'FR-16(7)(v)-11 DIST Demand'!O481+'FR-16(7)(v)-12 DIST Energy'!O481+'FR-16(7)(v)-13 DIST Cust'!O481","v":0},{"$f":"'FR-16(7)(v)-3 PROD Demand'!P481+'FR-16(7)(v)-4 PROD Energy'!P481+'FR-16(7)(v)-5 PROD Cust'!P481+'FR-16(7)(v)-7 TRANS Demand'!P481+'FR-16(7)(v)-8 TRANS Energy'!P481+'FR-16(7)(v)-9 TRANS Cust'!P481+'FR-16(7)(v)-11 DIST Demand'!P481+'FR-16(7)(v)-12 DIST Energy'!P481+'FR-16(7)(v)-13 DIST Cust'!P481","v":725},{"$f":"'FR-16(7)(v)-3 PROD Demand'!Q481+'FR-16(7)(v)-4 PROD Energy'!Q481+'FR-16(7)(v)-5 PROD Cust'!Q481+'FR-16(7)(v)-7 TRANS Demand'!Q481+'FR-16(7)(v)-8 TRANS Energy'!Q481+'FR-16(7)(v)-9 TRANS Cust'!Q481+'FR-16(7)(v)-11 DIST Demand'!Q481+'FR-16(7)(v)-12 DIST Energy'!Q481+'FR-16(7)(v)-13 DIST Cust'!Q481","v":13},115473,0]
[38,null,{"$f":"'FR-16(7)(v)-1 Functional'!C482","v":"UNDERGROUND LINES - SECONDARY / CUSTOMER"},"K406",null,{"$f":"'FR-16(7)(v)-1 Functional'!F482","v":65456},{"$f":"'FR-16(7)(v)-3 PROD Demand'!G482+'FR-16(7)(v)-4 PROD Energy'!G482+'FR-16(7)(v)-5 PROD Cust'!G482+'FR-16(7)(v)-7 TRANS Demand'!G482+'FR-16(7)(v)-8 TRANS Energy'!G482+'FR-16(7)(v)-9 TRANS Cust'!G482+'FR-16(7)(v)-11 DIST Demand'!G482+'FR-16(7)(v)-12 DIST Energy'!G482+'FR-16(7)(v)-13 DIST Cust'!G482","v":59045},{"$f":"'FR-16(7)(v)-3 PROD Demand'!H482+'FR-16(7)(v)-4 PROD Energy'!H482+'FR-16(7)(v)-5 PROD Cust'!H482+'FR-16(7)(v)-7 TRANS Demand'!H482+'FR-16(7)(v)-8 TRANS Energy'!H482+'FR-16(7)(v)-9 TRANS Cust'!H482+'FR-16(7)(v)-11 DIST Demand'!H482+'FR-16(7)(v)-12 DIST Energy'!H482+'FR-16(7)(v)-13 DIST Cust'!H482","v":5963},{"$f":"'FR-16(7)(v)-3 PROD Demand'!I482+'FR-16(7)(v)-4 PROD Energy'!I482+'FR-16(7)(v)-5 PROD Cust'!I482+'FR-16(7)(v)-7 TRANS Demand'!I482+'FR-16(7)(v)-8 TRANS Energy'!I482+'FR-16(7)(v)-9 TRANS Cust'!I482+'FR-16(7)(v)-11 DIST Demand'!I482+'FR-16(7)(v)-12 DIST Energy'!I482+'FR-16(7)(v)-13 DIST Cust'!I482","v":79},{"$f":"'FR-16(7)(v)-3 PROD Demand'!J482+'FR-16(7)(v)-4 PROD Energy'!J482+'FR-16(7)(v)-5 PROD Cust'!J482+'FR-16(7)(v)-7 TRANS Demand'!J482+'FR-16(7)(v)-8 TRANS Energy'!J482+'FR-16(7)(v)-9 TRANS Cust'!J482+'FR-16(7)(v)-11 DIST Demand'!J482+'FR-16(7)(v)-12 DIST Energy'!J482+'FR-16(7)(v)-13 DIST Cust'!J482","v":47},{"$f":"'FR-16(7)(v)-3 PROD Demand'!K482+'FR-16(7)(v)-4 PROD Energy'!K482+'FR-16(7)(v)-5 PROD Cust'!K482+'FR-16(7)(v)-7 TRANS Demand'!K482+'FR-16(7)(v)-8 TRANS Energy'!K482+'FR-16(7)(v)-9 TRANS Cust'!K482+'FR-16(7)(v)-11 DIST Demand'!K482+'FR-16(7)(v)-12 DIST Energy'!K482+'FR-16(7)(v)-13 DIST Cust'!K482","v":7},{"$f":"'FR-16(7)(v)-3 PROD Demand'!L482+'FR-16(7)(v)-4 PROD Energy'!L482+'FR-16(7)(v)-5 PROD Cust'!L482+'FR-16(7)(v)-7 TRANS Demand'!L482+'FR-16(7)(v)-8 TRANS Energy'!L482+'FR-16(7)(v)-9 TRANS Cust'!L482+'FR-16(7)(v)-11 DIST Demand'!L482+'FR-16(7)(v)-12 DIST Energy'!L482+'FR-16(7)(v)-13 DIST Cust'!L482","v":73},{"$f":"'FR-16(7)(v)-3 PROD Demand'!M482+'FR-16(7)(v)-4 PROD Energy'!M482+'FR-16(7)(v)-5 PROD Cust'!M482+'FR-16(7)(v)-7 TRANS Demand'!M482+'FR-16(7)(v)-8 TRANS Energy'!M482+'FR-16(7)(v)-9 TRANS Cust'!M482+'FR-16(7)(v)-11 DIST Demand'!M482+'FR-16(7)(v)-12 DIST Energy'!M482+'FR-16(7)(v)-13 DIST Cust'!M482","v":17},{"$f":"'FR-16(7)(v)-3 PROD Demand'!N482+'FR-16(7)(v)-4 PROD Energy'!N482+'FR-16(7)(v)-5 PROD Cust'!N482+'FR-16(7)(v)-7 TRANS Demand'!N482+'FR-16(7)(v)-8 TRANS Energy'!N482+'FR-16(7)(v)-9 TRANS Cust'!N482+'FR-16(7)(v)-11 DIST Demand'!N482+'FR-16(7)(v)-12 DIST Energy'!N482+'FR-16(7)(v)-13 DIST Cust'!N482","v":5},{"$f":"'FR-16(7)(v)-3 PROD Demand'!O482+'FR-16(7)(v)-4 PROD Energy'!O482+'FR-16(7)(v)-5 PROD Cust'!O482+'FR-16(7)(v)-7 TRANS Demand'!O482+'FR-16(7)(v)-8 TRANS Energy'!O482+'FR-16(7)(v)-9 TRANS Cust'!O482+'FR-16(7)(v)-11 DIST Demand'!O482+'FR-16(7)(v)-12 DIST Energy'!O482+'FR-16(7)(v)-13 DIST Cust'!O482","v":0},{"$f":"'FR-16(7)(v)-3 PROD Demand'!P482+'FR-16(7)(v)-4 PROD Energy'!P482+'FR-16(7)(v)-5 PROD Cust'!P482+'FR-16(7)(v)-7 TRANS Demand'!P482+'FR-16(7)(v)-8 TRANS Energy'!P482+'FR-16(7)(v)-9 TRANS Cust'!P482+'FR-16(7)(v)-11 DIST Demand'!P482+'FR-16(7)(v)-12 DIST Energy'!P482+'FR-16(7)(v)-13 DIST Cust'!P482","v":215},{"$f":"'FR-16(7)(v)-3 PROD Demand'!Q482+'FR-16(7)(v)-4 PROD Energy'!Q482+'FR-16(7)(v)-5 PROD Cust'!Q482+'FR-16(7)(v)-7 TRANS Demand'!Q482+'FR-16(7)(v)-8 TRANS Energy'!Q482+'FR-16(7)(v)-9 TRANS Cust'!Q482+'FR-16(7)(v)-11 DIST Demand'!Q482+'FR-16(7)(v)-12 DIST Energy'!Q482+'FR-16(7)(v)-13 DIST Cust'!Q482","v":5},65456,0]
[39,null,{"$f":"'FR-16(7)(v)-1 Functional'!C483","v":"TRANSFORMERS DEMAND RELATED"},{"$f":"'FR-16(7)(v)-1 Functional'!D483","v":"K203"},null,{"$f":"'FR-16(7)(v)-1 Functional'!F483","v":271379},{"$f":"'FR-16(7)(v)-3 PROD Demand'!G483+'FR-16(7)(v)-4 PROD Energy'!G483+'FR-16(7)(v)-5 PROD Cust'!G483+'FR-16(7)(v)-7 TRANS Demand'!G483+'FR-16(7)(v)-8 TRANS Energy'!G483+'FR-16(7)(v)-9 TRANS Cust'!G483+'FR-16(7)(v)-11 DIST Demand'!G483+'FR-16(7)(v)-12 DIST Energy'!G483+'FR-16(7)(v)-13 DIST Cust'!G483","v":161158},{"$f":"'FR-16(7)(v)-3 PROD Demand'!H483+'FR-16(7)(v)-4 PROD Energy'!H483+'FR-16(7)(v)-5 PROD Cust'!H483+'FR-16(7)(v)-7 TRANS Demand'!H483+'FR-16(7)(v)-8 TRANS Energy'!H483+'FR-16(7)(v)-9 TRANS Cust'!H483+'FR-16(7)(v)-11 DIST Demand'!H483+'FR-16(7)(v)-12 DIST Energy'!H483+'FR-16(7)(v)-13 DIST Cust'!H483","v":57668},{"$f":"'FR-16(7)(v)-3 PROD Demand'!I483+'FR-16(7)(v)-4 PROD Energy'!I483+'FR-16(7)(v)-5 PROD Cust'!I483+'FR-16(7)(v)-7 TRANS Demand'!I483+'FR-16(7)(v)-8 TRANS Energy'!I483+'FR-16(7)(v)-9 TRANS Cust'!I483+'FR-16(7)(v)-11 DIST Demand'!I483+'FR-16(7)(v)-12 DIST Energy'!I483+'FR-16(7)(v)-13 DIST Cust'!I483","v":206},{"$f":"'FR-16(7)(v)-3 PROD Demand'!J483+'FR-16(7)(v)-4 PROD Energy'!J483+'FR-16(7)(v)-5 PROD Cust'!J483+'FR-16(7)(v)-7 TRANS Demand'!J483+'FR-16(7)(v)-8 TRANS Energy'!J483+'FR-16(7)(v)-9 TRANS Cust'!J483+'FR-16(7)(v)-11 DIST Demand'!J483+'FR-16(7)(v)-12 DIST Energy'!J483+'FR-16(7)(v)-13 DIST Cust'!J483","v":1908},{"$f":"'FR-16(7)(v)-3 PROD Demand'!K483+'FR-16(7)(v)-4 PROD Energy'!K483+'FR-16(7)(v)-5 PROD Cust'!K483+'FR-16(7)(v)-7 TRANS Demand'!K483+'FR-16(7)(v)-8 TRANS Energy'!K483+'FR-16(7)(v)-9 TRANS Cust'!K483+'FR-16(7)(v)-11 DIST Demand'!K483+'FR-16(7)(v)-12 DIST Energy'!K483+'FR-16(7)(v)-13 DIST Cust'!K483","v":19},{"$f":"'FR-16(7)(v)-3 PROD Demand'!L483+'FR-16(7)(v)-4 PROD Energy'!L483+'FR-16(7)(v)-5 PROD Cust'!L483+'FR-16(7)(v)-7 TRANS Demand'!L483+'FR-16(7)(v)-8 TRANS Energy'!L483+'FR-16(7)(v)-9 TRANS Cust'!L483+'FR-16(7)(v)-11 DIST Demand'!L483+'FR-16(7)(v)-12 DIST Energy'!L483+'FR-16(7)(v)-13 DIST Cust'!L483","v":24733},{"$f":"'FR-16(7)(v)-3 PROD Demand'!M483+'FR-16(7)(v)-4 PROD Energy'!M483+'FR-16(7)(v)-5 PROD Cust'!M483+'FR-16(7)(v)-7 TRANS Demand'!M483+'FR-16(7)(v)-8 TRANS Energy'!M483+'FR-16(7)(v)-9 TRANS Cust'!M483+'FR-16(7)(v)-11 DIST Demand'!M483+'FR-16(7)(v)-12 DIST Energy'!M483+'FR-16(7)(v)-13 DIST Cust'!M483","v":15119},{"$f":"'FR-16(7)(v)-3 PROD Demand'!N483+'FR-16(7)(v)-4 PROD Energy'!N483+'FR-16(7)(v)-5 PROD Cust'!N483+'FR-16(7)(v)-7 TRANS Demand'!N483+'FR-16(7)(v)-8 TRANS Energy'!N483+'FR-16(7)(v)-9 TRANS Cust'!N483+'FR-16(7)(v)-11 DIST Demand'!N483+'FR-16(7)(v)-12 DIST Energy'!N483+'FR-16(7)(v)-13 DIST Cust'!N483","v":1018},{"$f":"'FR-16(7)(v)-3 PROD Demand'!O483+'FR-16(7)(v)-4 PROD Energy'!O483+'FR-16(7)(v)-5 PROD Cust'!O483+'FR-16(7)(v)-7 TRANS Demand'!O483+'FR-16(7)(v)-8 TRANS Energy'!O483+'FR-16(7)(v)-9 TRANS Cust'!O483+'FR-16(7)(v)-11 DIST Demand'!O483+'FR-16(7)(v)-12 DIST Energy'!O483+'FR-16(7)(v)-13 DIST Cust'!O483","v":8198},{"$f":"'FR-16(7)(v)-3 PROD Demand'!P483+'FR-16(7)(v)-4 PROD Energy'!P483+'FR-16(7)(v)-5 PROD Cust'!P483+'FR-16(7)(v)-7 TRANS Demand'!P483+'FR-16(7)(v)-8 TRANS Energy'!P483+'FR-16(7)(v)-9 TRANS Cust'!P483+'FR-16(7)(v)-11 DIST Demand'!P483+'FR-16(7)(v)-12 DIST Energy'!P483+'FR-16(7)(v)-13 DIST Cust'!P483","v":1273},{"$f":"'FR-16(7)(v)-3 PROD Demand'!Q483+'FR-16(7)(v)-4 PROD Energy'!Q483+'FR-16(7)(v)-5 PROD Cust'!Q483+'FR-16(7)(v)-7 TRANS Demand'!Q483+'FR-16(7)(v)-8 TRANS Energy'!Q483+'FR-16(7)(v)-9 TRANS Cust'!Q483+'FR-16(7)(v)-11 DIST Demand'!Q483+'FR-16(7)(v)-12 DIST Energy'!Q483+'FR-16(7)(v)-13 DIST Cust'!Q483","v":79},271379,0]
[40,null,{"$f":"'FR-16(7)(v)-1 Functional'!C484","v":"TRANSFORMERS CUSTOMER RELATED"},{"$f":"'FR-16(7)(v)-1 Functional'!D484","v":"K401"},null,{"$f":"'FR-16(7)(v)-1 Functional'!F484","v":88189},{"$f":"'FR-16(7)(v)-3 PROD Demand'!G484+'FR-16(7)(v)-4 PROD Energy'!G484+'FR-16(7)(v)-5 PROD Cust'!G484+'FR-16(7)(v)-7 TRANS Demand'!G484+'FR-16(7)(v)-8 TRANS Energy'!G484+'FR-16(7)(v)-9 TRANS Cust'!G484+'FR-16(7)(v)-11 DIST Demand'!G484+'FR-16(7)(v)-12 DIST Energy'!G484+'FR-16(7)(v)-13 DIST Cust'!G484","v":0},{"$f":"'FR-16(7)(v)-3 PROD Demand'!H484+'FR-16(7)(v)-4 PROD Energy'!H484+'FR-16(7)(v)-5 PROD Cust'!H484+'FR-16(7)(v)-7 TRANS Demand'!H484+'FR-16(7)(v)-8 TRANS Energy'!H484+'FR-16(7)(v)-9 TRANS Cust'!H484+'FR-16(7)(v)-11 DIST Demand'!H484+'FR-16(7)(v)-12 DIST Energy'!H484+'FR-16(7)(v)-13 DIST Cust'!H484","v":0},{"$f":"'FR-16(7)(v)-3 PROD Demand'!I484+'FR-16(7)(v)-4 PROD Energy'!I484+'FR-16(7)(v)-5 PROD Cust'!I484+'FR-16(7)(v)-7 TRANS Demand'!I484+'FR-16(7)(v)-8 TRANS Energy'!I484+'FR-16(7)(v)-9 TRANS Cust'!I484+'FR-16(7)(v)-11 DIST Demand'!I484+'FR-16(7)(v)-12 DIST Energy'!I484+'FR-16(7)(v)-13 DIST Cust'!I484","v":0},{"$f":"'FR-16(7)(v)-3 PROD Demand'!J484+'FR-16(7)(v)-4 PROD Energy'!J484+'FR-16(7)(v)-5 PROD Cust'!J484+'FR-16(7)(v)-7 TRANS Demand'!J484+'FR-16(7)(v)-8 TRANS Energy'!J484+'FR-16(7)(v)-9 TRANS Cust'!J484+'FR-16(7)(v)-11 DIST Demand'!J484+'FR-16(7)(v)-12 DIST Energy'!J484+'FR-16(7)(v)-13 DIST Cust'!J484","v":0},{"$f":"'FR-16(7)(v)-3 PROD Demand'!K484+'FR-16(7)(v)-4 PROD Energy'!K484+'FR-16(7)(v)-5 PROD Cust'!K484+'FR-16(7)(v)-7 TRANS Demand'!K484+'FR-16(7)(v)-8 TRANS Energy'!K484+'FR-16(7)(v)-9 TRANS Cust'!K484+'FR-16(7)(v)-11 DIST Demand'!K484+'FR-16(7)(v)-12 DIST Energy'!K484+'FR-16(7)(v)-13 DIST Cust'!K484","v":0},{"$f":"'FR-16(7)(v)-3 PROD Demand'!L484+'FR-16(7)(v)-4 PROD Energy'!L484+'FR-16(7)(v)-5 PROD Cust'!L484+'FR-16(7)(v)-7 TRANS Demand'!L484+'FR-16(7)(v)-8 TRANS Energy'!L484+'FR-16(7)(v)-9 TRANS Cust'!L484+'FR-16(7)(v)-11 DIST Demand'!L484+'FR-16(7)(v)-12 DIST Energy'!L484+'FR-16(7)(v)-13 DIST Cust'!L484","v":0},{"$f":"'FR-16(7)(v)-3 PROD Demand'!M484+'FR-16(7)(v)-4 PROD Energy'!M484+'FR-16(7)(v)-5 PROD Cust'!M484+'FR-16(7)(v)-7 TRANS Demand'!M484+'FR-16(7)(v)-8 TRANS Energy'!M484+'FR-16(7)(v)-9 TRANS Cust'!M484+'FR-16(7)(v)-11 DIST Demand'!M484+'FR-16(7)(v)-12 DIST Energy'!M484+'FR-16(7)(v)-13 DIST Cust'!M484","v":0},{"$f":"'FR-16(7)(v)-3 PROD Demand'!N484+'FR-16(7)(v)-4 PROD Energy'!N484+'FR-16(7)(v)-5 PROD Cust'!N484+'FR-16(7)(v)-7 TRANS Demand'!N484+'FR-16(7)(v)-8 TRANS Energy'!N484+'FR-16(7)(v)-9 TRANS Cust'!N484+'FR-16(7)(v)-11 DIST Demand'!N484+'FR-16(7)(v)-12 DIST Energy'!N484+'FR-16(7)(v)-13 DIST Cust'!N484","v":0},{"$f":"'FR-16(7)(v)-3 PROD Demand'!O484+'FR-16(7)(v)-4 PROD Energy'!O484+'FR-16(7)(v)-5 PROD Cust'!O484+'FR-16(7)(v)-7 TRANS Demand'!O484+'FR-16(7)(v)-8 TRANS Energy'!O484+'FR-16(7)(v)-9 TRANS Cust'!O484+'FR-16(7)(v)-11 DIST Demand'!O484+'FR-16(7)(v)-12 DIST Energy'!O484+'FR-16(7)(v)-13 DIST Cust'!O484","v":0},{"$f":"'FR-16(7)(v)-3 PROD Demand'!P484+'FR-16(7)(v)-4 PROD Energy'!P484+'FR-16(7)(v)-5 PROD Cust'!P484+'FR-16(7)(v)-7 TRANS Demand'!P484+'FR-16(7)(v)-8 TRANS Energy'!P484+'FR-16(7)(v)-9 TRANS Cust'!P484+'FR-16(7)(v)-11 DIST Demand'!P484+'FR-16(7)(v)-12 DIST Energy'!P484+'FR-16(7)(v)-13 DIST Cust'!P484","v":88189},{"$f":"'FR-16(7)(v)-3 PROD Demand'!Q484+'FR-16(7)(v)-4 PROD Energy'!Q484+'FR-16(7)(v)-5 PROD Cust'!Q484+'FR-16(7)(v)-7 TRANS Demand'!Q484+'FR-16(7)(v)-8 TRANS Energy'!Q484+'FR-16(7)(v)-9 TRANS Cust'!Q484+'FR-16(7)(v)-11 DIST Demand'!Q484+'FR-16(7)(v)-12 DIST Energy'!Q484+'FR-16(7)(v)-13 DIST Cust'!Q484","v":0},88189,0]
[41,null,{"$f":"'FR-16(7)(v)-1 Functional'!C485","v":"OTHER MAINTENANCE"},{"$f":"'FR-16(7)(v)-1 Functional'!D485","v":"K203"},null,{"$f":"'FR-16(7)(v)-1 Functional'!F485","v":1892935},{"$f":"'FR-16(7)(v)-3 PROD Demand'!G485+'FR-16(7)(v)-4 PROD Energy'!G485+'FR-16(7)(v)-5 PROD Cust'!G485+'FR-16(7)(v)-7 TRANS Demand'!G485+'FR-16(7)(v)-8 TRANS Energy'!G485+'FR-16(7)(v)-9 TRANS Cust'!G485+'FR-16(7)(v)-11 DIST Demand'!G485+'FR-16(7)(v)-12 DIST Energy'!G485+'FR-16(7)(v)-13 DIST Cust'!G485","v":1124118},{"$f":"'FR-16(7)(v)-3 PROD Demand'!H485+'FR-16(7)(v)-4 PROD Energy'!H485+'FR-16(7)(v)-5 PROD Cust'!H485+'FR-16(7)(v)-7 TRANS Demand'!H485+'FR-16(7)(v)-8 TRANS Energy'!H485+'FR-16(7)(v)-9 TRANS Cust'!H485+'FR-16(7)(v)-11 DIST Demand'!H485+'FR-16(7)(v)-12 DIST Energy'!H485+'FR-16(7)(v)-13 DIST Cust'!H485","v":402249},{"$f":"'FR-16(7)(v)-3 PROD Demand'!I485+'FR-16(7)(v)-4 PROD Energy'!I485+'FR-16(7)(v)-5 PROD Cust'!I485+'FR-16(7)(v)-7 TRANS Demand'!I485+'FR-16(7)(v)-8 TRANS Energy'!I485+'FR-16(7)(v)-9 TRANS Cust'!I485+'FR-16(7)(v)-11 DIST Demand'!I485+'FR-16(7)(v)-12 DIST Energy'!I485+'FR-16(7)(v)-13 DIST Cust'!I485","v":1439},{"$f":"'FR-16(7)(v)-3 PROD Demand'!J485+'FR-16(7)(v)-4 PROD Energy'!J485+'FR-16(7)(v)-5 PROD Cust'!J485+'FR-16(7)(v)-7 TRANS Demand'!J485+'FR-16(7)(v)-8 TRANS Energy'!J485+'FR-16(7)(v)-9 TRANS Cust'!J485+'FR-16(7)(v)-11 DIST Demand'!J485+'FR-16(7)(v)-12 DIST Energy'!J485+'FR-16(7)(v)-13 DIST Cust'!J485","v":13307},{"$f":"'FR-16(7)(v)-3 PROD Demand'!K485+'FR-16(7)(v)-4 PROD Energy'!K485+'FR-16(7)(v)-5 PROD Cust'!K485+'FR-16(7)(v)-7 TRANS Demand'!K485+'FR-16(7)(v)-8 TRANS Energy'!K485+'FR-16(7)(v)-9 TRANS Cust'!K485+'FR-16(7)(v)-11 DIST Demand'!K485+'FR-16(7)(v)-12 DIST Energy'!K485+'FR-16(7)(v)-13 DIST Cust'!K485","v":133},{"$f":"'FR-16(7)(v)-3 PROD Demand'!L485+'FR-16(7)(v)-4 PROD Energy'!L485+'FR-16(7)(v)-5 PROD Cust'!L485+'FR-16(7)(v)-7 TRANS Demand'!L485+'FR-16(7)(v)-8 TRANS Energy'!L485+'FR-16(7)(v)-9 TRANS Cust'!L485+'FR-16(7)(v)-11 DIST Demand'!L485+'FR-16(7)(v)-12 DIST Energy'!L485+'FR-16(7)(v)-13 DIST Cust'!L485","v":172522},{"$f":"'FR-16(7)(v)-3 PROD Demand'!M485+'FR-16(7)(v)-4 PROD Energy'!M485+'FR-16(7)(v)-5 PROD Cust'!M485+'FR-16(7)(v)-7 TRANS Demand'!M485+'FR-16(7)(v)-8 TRANS Energy'!M485+'FR-16(7)(v)-9 TRANS Cust'!M485+'FR-16(7)(v)-11 DIST Demand'!M485+'FR-16(7)(v)-12 DIST Energy'!M485+'FR-16(7)(v)-13 DIST Cust'!M485","v":105455},{"$f":"'FR-16(7)(v)-3 PROD Demand'!N485+'FR-16(7)(v)-4 PROD Energy'!N485+'FR-16(7)(v)-5 PROD Cust'!N485+'FR-16(7)(v)-7 TRANS Demand'!N485+'FR-16(7)(v)-8 TRANS Energy'!N485+'FR-16(7)(v)-9 TRANS Cust'!N485+'FR-16(7)(v)-11 DIST Demand'!N485+'FR-16(7)(v)-12 DIST Energy'!N485+'FR-16(7)(v)-13 DIST Cust'!N485","v":7099},{"$f":"'FR-16(7)(v)-3 PROD Demand'!O485+'FR-16(7)(v)-4 PROD Energy'!O485+'FR-16(7)(v)-5 PROD Cust'!O485+'FR-16(7)(v)-7 TRANS Demand'!O485+'FR-16(7)(v)-8 TRANS Energy'!O485+'FR-16(7)(v)-9 TRANS Cust'!O485+'FR-16(7)(v)-11 DIST Demand'!O485+'FR-16(7)(v)-12 DIST Energy'!O485+'FR-16(7)(v)-13 DIST Cust'!O485","v":57186},{"$f":"'FR-16(7)(v)-3 PROD Demand'!P485+'FR-16(7)(v)-4 PROD Energy'!P485+'FR-16(7)(v)-5 PROD Cust'!P485+'FR-16(7)(v)-7 TRANS Demand'!P485+'FR-16(7)(v)-8 TRANS Energy'!P485+'FR-16(7)(v)-9 TRANS Cust'!P485+'FR-16(7)(v)-11 DIST Demand'!P485+'FR-16(7)(v)-12 DIST Energy'!P485+'FR-16(7)(v)-13 DIST Cust'!P485","v":8878},{"$f":"'FR-16(7)(v)-3 PROD Demand'!Q485+'FR-16(7)(v)-4 PROD Energy'!Q485+'FR-16(7)(v)-5 PROD Cust'!Q485+'FR-16(7)(v)-7 TRANS Demand'!Q485+'FR-16(7)(v)-8 TRANS Energy'!Q485+'FR-16(7)(v)-9 TRANS Cust'!Q485+'FR-16(7)(v)-11 DIST Demand'!Q485+'FR-16(7)(v)-12 DIST Energy'!Q485+'FR-16(7)(v)-13 DIST Cust'!Q485","v":549},1892935,0]
[42,null,{"$f":"'FR-16(7)(v)-1 Functional'!C486","v":"LOAD DISPATCH"},{"$f":"'FR-16(7)(v)-1 Functional'!D486","v":"K215"},null,{"$f":"'FR-16(7)(v)-1 Functional'!F486","v":578857},{"$f":"'FR-16(7)(v)-3 PROD Demand'!G486+'FR-16(7)(v)-4 PROD Energy'!G486+'FR-16(7)(v)-5 PROD Cust'!G486+'FR-16(7)(v)-7 TRANS Demand'!G486+'FR-16(7)(v)-8 TRANS Energy'!G486+'FR-16(7)(v)-9 TRANS Cust'!G486+'FR-16(7)(v)-11 DIST Demand'!G486+'FR-16(7)(v)-12 DIST Energy'!G486+'FR-16(7)(v)-13 DIST Cust'!G486","v":271732},{"$f":"'FR-16(7)(v)-3 PROD Demand'!H486+'FR-16(7)(v)-4 PROD Energy'!H486+'FR-16(7)(v)-5 PROD Cust'!H486+'FR-16(7)(v)-7 TRANS Demand'!H486+'FR-16(7)(v)-8 TRANS Energy'!H486+'FR-16(7)(v)-9 TRANS Cust'!H486+'FR-16(7)(v)-11 DIST Demand'!H486+'FR-16(7)(v)-12 DIST Energy'!H486+'FR-16(7)(v)-13 DIST Cust'!H486","v":160477},{"$f":"'FR-16(7)(v)-3 PROD Demand'!I486+'FR-16(7)(v)-4 PROD Energy'!I486+'FR-16(7)(v)-5 PROD Cust'!I486+'FR-16(7)(v)-7 TRANS Demand'!I486+'FR-16(7)(v)-8 TRANS Energy'!I486+'FR-16(7)(v)-9 TRANS Cust'!I486+'FR-16(7)(v)-11 DIST Demand'!I486+'FR-16(7)(v)-12 DIST Energy'!I486+'FR-16(7)(v)-13 DIST Cust'!I486","v":747},{"$f":"'FR-16(7)(v)-3 PROD Demand'!J486+'FR-16(7)(v)-4 PROD Energy'!J486+'FR-16(7)(v)-5 PROD Cust'!J486+'FR-16(7)(v)-7 TRANS Demand'!J486+'FR-16(7)(v)-8 TRANS Energy'!J486+'FR-16(7)(v)-9 TRANS Cust'!J486+'FR-16(7)(v)-11 DIST Demand'!J486+'FR-16(7)(v)-12 DIST Energy'!J486+'FR-16(7)(v)-13 DIST Cust'!J486","v":3519},{"$f":"'FR-16(7)(v)-3 PROD Demand'!K486+'FR-16(7)(v)-4 PROD Energy'!K486+'FR-16(7)(v)-5 PROD Cust'!K486+'FR-16(7)(v)-7 TRANS Demand'!K486+'FR-16(7)(v)-8 TRANS Energy'!K486+'FR-16(7)(v)-9 TRANS Cust'!K486+'FR-16(7)(v)-11 DIST Demand'!K486+'FR-16(7)(v)-12 DIST Energy'!K486+'FR-16(7)(v)-13 DIST Cust'!K486","v":41},{"$f":"'FR-16(7)(v)-3 PROD Demand'!L486+'FR-16(7)(v)-4 PROD Energy'!L486+'FR-16(7)(v)-5 PROD Cust'!L486+'FR-16(7)(v)-7 TRANS Demand'!L486+'FR-16(7)(v)-8 TRANS Energy'!L486+'FR-16(7)(v)-9 TRANS Cust'!L486+'FR-16(7)(v)-11 DIST Demand'!L486+'FR-16(7)(v)-12 DIST Energy'!L486+'FR-16(7)(v)-13 DIST Cust'!L486","v":81955},{"$f":"'FR-16(7)(v)-3 PROD Demand'!M486+'FR-16(7)(v)-4 PROD Energy'!M486+'FR-16(7)(v)-5 PROD Cust'!M486+'FR-16(7)(v)-7 TRANS Demand'!M486+'FR-16(7)(v)-8 TRANS Energy'!M486+'FR-16(7)(v)-9 TRANS Cust'!M486+'FR-16(7)(v)-11 DIST Demand'!M486+'FR-16(7)(v)-12 DIST Energy'!M486+'FR-16(7)(v)-13 DIST Cust'!M486","v":53978},{"$f":"'FR-16(7)(v)-3 PROD Demand'!N486+'FR-16(7)(v)-4 PROD Energy'!N486+'FR-16(7)(v)-5 PROD Cust'!N486+'FR-16(7)(v)-7 TRANS Demand'!N486+'FR-16(7)(v)-8 TRANS Energy'!N486+'FR-16(7)(v)-9 TRANS Cust'!N486+'FR-16(7)(v)-11 DIST Demand'!N486+'FR-16(7)(v)-12 DIST Energy'!N486+'FR-16(7)(v)-13 DIST Cust'!N486","v":2709},{"$f":"'FR-16(7)(v)-3 PROD Demand'!O486+'FR-16(7)(v)-4 PROD Energy'!O486+'FR-16(7)(v)-5 PROD Cust'!O486+'FR-16(7)(v)-7 TRANS Demand'!O486+'FR-16(7)(v)-8 TRANS Energy'!O486+'FR-16(7)(v)-9 TRANS Cust'!O486+'FR-16(7)(v)-11 DIST Demand'!O486+'FR-16(7)(v)-12 DIST Energy'!O486+'FR-16(7)(v)-13 DIST Cust'!O486","v":0},{"$f":"'FR-16(7)(v)-3 PROD Demand'!P486+'FR-16(7)(v)-4 PROD Energy'!P486+'FR-16(7)(v)-5 PROD Cust'!P486+'FR-16(7)(v)-7 TRANS Demand'!P486+'FR-16(7)(v)-8 TRANS Energy'!P486+'FR-16(7)(v)-9 TRANS Cust'!P486+'FR-16(7)(v)-11 DIST Demand'!P486+'FR-16(7)(v)-12 DIST Energy'!P486+'FR-16(7)(v)-13 DIST Cust'!P486","v":3635},{"$f":"'FR-16(7)(v)-3 PROD Demand'!Q486+'FR-16(7)(v)-4 PROD Energy'!Q486+'FR-16(7)(v)-5 PROD Cust'!Q486+'FR-16(7)(v)-7 TRANS Demand'!Q486+'FR-16(7)(v)-8 TRANS Energy'!Q486+'FR-16(7)(v)-9 TRANS Cust'!Q486+'FR-16(7)(v)-11 DIST Demand'!Q486+'FR-16(7)(v)-12 DIST Energy'!Q486+'FR-16(7)(v)-13 DIST Cust'!Q486","v":64},578857,0]
[43,null,{"$f":"'FR-16(7)(v)-1 Functional'!C487","v":"METERS"},{"$f":"'FR-16(7)(v)-1 Functional'!D487","v":"K407"},null,{"$f":"'FR-16(7)(v)-1 Functional'!F487","v":1076097},{"$f":"'FR-16(7)(v)-3 PROD Demand'!G487+'FR-16(7)(v)-4 PROD Energy'!G487+'FR-16(7)(v)-5 PROD Cust'!G487+'FR-16(7)(v)-7 TRANS Demand'!G487+'FR-16(7)(v)-8 TRANS Energy'!G487+'FR-16(7)(v)-9 TRANS Cust'!G487+'FR-16(7)(v)-11 DIST Demand'!G487+'FR-16(7)(v)-12 DIST Energy'!G487+'FR-16(7)(v)-13 DIST Cust'!G487","v":869842},{"$f":"'FR-16(7)(v)-3 PROD Demand'!H487+'FR-16(7)(v)-4 PROD Energy'!H487+'FR-16(7)(v)-5 PROD Cust'!H487+'FR-16(7)(v)-7 TRANS Demand'!H487+'FR-16(7)(v)-8 TRANS Energy'!H487+'FR-16(7)(v)-9 TRANS Cust'!H487+'FR-16(7)(v)-11 DIST Demand'!H487+'FR-16(7)(v)-12 DIST Energy'!H487+'FR-16(7)(v)-13 DIST Cust'!H487","v":196850},{"$f":"'FR-16(7)(v)-3 PROD Demand'!I487+'FR-16(7)(v)-4 PROD Energy'!I487+'FR-16(7)(v)-5 PROD Cust'!I487+'FR-16(7)(v)-7 TRANS Demand'!I487+'FR-16(7)(v)-8 TRANS Energy'!I487+'FR-16(7)(v)-9 TRANS Cust'!I487+'FR-16(7)(v)-11 DIST Demand'!I487+'FR-16(7)(v)-12 DIST Energy'!I487+'FR-16(7)(v)-13 DIST Cust'!I487","v":0},{"$f":"'FR-16(7)(v)-3 PROD Demand'!J487+'FR-16(7)(v)-4 PROD Energy'!J487+'FR-16(7)(v)-5 PROD Cust'!J487+'FR-16(7)(v)-7 TRANS Demand'!J487+'FR-16(7)(v)-8 TRANS Energy'!J487+'FR-16(7)(v)-9 TRANS Cust'!J487+'FR-16(7)(v)-11 DIST Demand'!J487+'FR-16(7)(v)-12 DIST Energy'!J487+'FR-16(7)(v)-13 DIST Cust'!J487","v":1506},{"$f":"'FR-16(7)(v)-3 PROD Demand'!K487+'FR-16(7)(v)-4 PROD Energy'!K487+'FR-16(7)(v)-5 PROD Cust'!K487+'FR-16(7)(v)-7 TRANS Demand'!K487+'FR-16(7)(v)-8 TRANS Energy'!K487+'FR-16(7)(v)-9 TRANS Cust'!K487+'FR-16(7)(v)-11 DIST Demand'!K487+'FR-16(7)(v)-12 DIST Energy'!K487+'FR-16(7)(v)-13 DIST Cust'!K487","v":237},{"$f":"'FR-16(7)(v)-3 PROD Demand'!L487+'FR-16(7)(v)-4 PROD Energy'!L487+'FR-16(7)(v)-5 PROD Cust'!L487+'FR-16(7)(v)-7 TRANS Demand'!L487+'FR-16(7)(v)-8 TRANS Energy'!L487+'FR-16(7)(v)-9 TRANS Cust'!L487+'FR-16(7)(v)-11 DIST Demand'!L487+'FR-16(7)(v)-12 DIST Energy'!L487+'FR-16(7)(v)-13 DIST Cust'!L487","v":7006},{"$f":"'FR-16(7)(v)-3 PROD Demand'!M487+'FR-16(7)(v)-4 PROD Energy'!M487+'FR-16(7)(v)-5 PROD Cust'!M487+'FR-16(7)(v)-7 TRANS Demand'!M487+'FR-16(7)(v)-8 TRANS Energy'!M487+'FR-16(7)(v)-9 TRANS Cust'!M487+'FR-16(7)(v)-11 DIST Demand'!M487+'FR-16(7)(v)-12 DIST Energy'!M487+'FR-16(7)(v)-13 DIST Cust'!M487","v":0},{"$f":"'FR-16(7)(v)-3 PROD Demand'!N487+'FR-16(7)(v)-4 PROD Energy'!N487+'FR-16(7)(v)-5 PROD Cust'!N487+'FR-16(7)(v)-7 TRANS Demand'!N487+'FR-16(7)(v)-8 TRANS Energy'!N487+'FR-16(7)(v)-9 TRANS Cust'!N487+'FR-16(7)(v)-11 DIST Demand'!N487+'FR-16(7)(v)-12 DIST Energy'!N487+'FR-16(7)(v)-13 DIST Cust'!N487","v":258},{"$f":"'FR-16(7)(v)-3 PROD Demand'!O487+'FR-16(7)(v)-4 PROD Energy'!O487+'FR-16(7)(v)-5 PROD Cust'!O487+'FR-16(7)(v)-7 TRANS Demand'!O487+'FR-16(7)(v)-8 TRANS Energy'!O487+'FR-16(7)(v)-9 TRANS Cust'!O487+'FR-16(7)(v)-11 DIST Demand'!O487+'FR-16(7)(v)-12 DIST Energy'!O487+'FR-16(7)(v)-13 DIST Cust'!O487","v":247},{"$f":"'FR-16(7)(v)-3 PROD Demand'!P487+'FR-16(7)(v)-4 PROD Energy'!P487+'FR-16(7)(v)-5 PROD Cust'!P487+'FR-16(7)(v)-7 TRANS Demand'!P487+'FR-16(7)(v)-8 TRANS Energy'!P487+'FR-16(7)(v)-9 TRANS Cust'!P487+'FR-16(7)(v)-11 DIST Demand'!P487+'FR-16(7)(v)-12 DIST Energy'!P487+'FR-16(7)(v)-13 DIST Cust'!P487","v":0},{"$f":"'FR-16(7)(v)-3 PROD Demand'!Q487+'FR-16(7)(v)-4 PROD Energy'!Q487+'FR-16(7)(v)-5 PROD Cust'!Q487+'FR-16(7)(v)-7 TRANS Demand'!Q487+'FR-16(7)(v)-8 TRANS Energy'!Q487+'FR-16(7)(v)-9 TRANS Cust'!Q487+'FR-16(7)(v)-11 DIST Demand'!Q487+'FR-16(7)(v)-12 DIST Energy'!Q487+'FR-16(7)(v)-13 DIST Cust'!Q487","v":151},1076097,0]
[44,null,{"$f":"'FR-16(7)(v)-1 Functional'!C488","v":"STREET LIGHTING AND SIGNAL SYSTEMS"},{"$f":"'FR-16(7)(v)-1 Functional'!D488","v":"K401"},null,{"$f":"'FR-16(7)(v)-1 Functional'!F488","v":430143},{"$f":"'FR-16(7)(v)-3 PROD Demand'!G488+'FR-16(7)(v)-4 PROD Energy'!G488+'FR-16(7)(v)-5 PROD Cust'!G488+'FR-16(7)(v)-7 TRANS Demand'!G488+'FR-16(7)(v)-8 TRANS Energy'!G488+'FR-16(7)(v)-9 TRANS Cust'!G488+'FR-16(7)(v)-11 DIST Demand'!G488+'FR-16(7)(v)-12 DIST Energy'!G488+'FR-16(7)(v)-13 DIST Cust'!G488","v":0},{"$f":"'FR-16(7)(v)-3 PROD Demand'!H488+'FR-16(7)(v)-4 PROD Energy'!H488+'FR-16(7)(v)-5 PROD Cust'!H488+'FR-16(7)(v)-7 TRANS Demand'!H488+'FR-16(7)(v)-8 TRANS Energy'!H488+'FR-16(7)(v)-9 TRANS Cust'!H488+'FR-16(7)(v)-11 DIST Demand'!H488+'FR-16(7)(v)-12 DIST Energy'!H488+'FR-16(7)(v)-13 DIST Cust'!H488","v":0},{"$f":"'FR-16(7)(v)-3 PROD Demand'!I488+'FR-16(7)(v)-4 PROD Energy'!I488+'FR-16(7)(v)-5 PROD Cust'!I488+'FR-16(7)(v)-7 TRANS Demand'!I488+'FR-16(7)(v)-8 TRANS Energy'!I488+'FR-16(7)(v)-9 TRANS Cust'!I488+'FR-16(7)(v)-11 DIST Demand'!I488+'FR-16(7)(v)-12 DIST Energy'!I488+'FR-16(7)(v)-13 DIST Cust'!I488","v":0},{"$f":"'FR-16(7)(v)-3 PROD Demand'!J488+'FR-16(7)(v)-4 PROD Energy'!J488+'FR-16(7)(v)-5 PROD Cust'!J488+'FR-16(7)(v)-7 TRANS Demand'!J488+'FR-16(7)(v)-8 TRANS Energy'!J488+'FR-16(7)(v)-9 TRANS Cust'!J488+'FR-16(7)(v)-11 DIST Demand'!J488+'FR-16(7)(v)-12 DIST Energy'!J488+'FR-16(7)(v)-13 DIST Cust'!J488","v":0},{"$f":"'FR-16(7)(v)-3 PROD Demand'!K488+'FR-16(7)(v)-4 PROD Energy'!K488+'FR-16(7)(v)-5 PROD Cust'!K488+'FR-16(7)(v)-7 TRANS Demand'!K488+'FR-16(7)(v)-8 TRANS Energy'!K488+'FR-16(7)(v)-9 TRANS Cust'!K488+'FR-16(7)(v)-11 DIST Demand'!K488+'FR-16(7)(v)-12 DIST Energy'!K488+'FR-16(7)(v)-13 DIST Cust'!K488","v":0},{"$f":"'FR-16(7)(v)-3 PROD Demand'!L488+'FR-16(7)(v)-4 PROD Energy'!L488+'FR-16(7)(v)-5 PROD Cust'!L488+'FR-16(7)(v)-7 TRANS Demand'!L488+'FR-16(7)(v)-8 TRANS Energy'!L488+'FR-16(7)(v)-9 TRANS Cust'!L488+'FR-16(7)(v)-11 DIST Demand'!L488+'FR-16(7)(v)-12 DIST Energy'!L488+'FR-16(7)(v)-13 DIST Cust'!L488","v":0},{"$f":"'FR-16(7)(v)-3 PROD Demand'!M488+'FR-16(7)(v)-4 PROD Energy'!M488+'FR-16(7)(v)-5 PROD Cust'!M488+'FR-16(7)(v)-7 TRANS Demand'!M488+'FR-16(7)(v)-8 TRANS Energy'!M488+'FR-16(7)(v)-9 TRANS Cust'!M488+'FR-16(7)(v)-11 DIST Demand'!M488+'FR-16(7)(v)-12 DIST Energy'!M488+'FR-16(7)(v)-13 DIST Cust'!M488","v":0},{"$f":"'FR-16(7)(v)-3 PROD Demand'!N488+'FR-16(7)(v)-4 PROD Energy'!N488+'FR-16(7)(v)-5 PROD Cust'!N488+'FR-16(7)(v)-7 TRANS Demand'!N488+'FR-16(7)(v)-8 TRANS Energy'!N488+'FR-16(7)(v)-9 TRANS Cust'!N488+'FR-16(7)(v)-11 DIST Demand'!N488+'FR-16(7)(v)-12 DIST Energy'!N488+'FR-16(7)(v)-13 DIST Cust'!N488","v":0},{"$f":"'FR-16(7)(v)-3 PROD Demand'!O488+'FR-16(7)(v)-4 PROD Energy'!O488+'FR-16(7)(v)-5 PROD Cust'!O488+'FR-16(7)(v)-7 TRANS Demand'!O488+'FR-16(7)(v)-8 TRANS Energy'!O488+'FR-16(7)(v)-9 TRANS Cust'!O488+'FR-16(7)(v)-11 DIST Demand'!O488+'FR-16(7)(v)-12 DIST Energy'!O488+'FR-16(7)(v)-13 DIST Cust'!O488","v":0},{"$f":"'FR-16(7)(v)-3 PROD Demand'!P488+'FR-16(7)(v)-4 PROD Energy'!P488+'FR-16(7)(v)-5 PROD Cust'!P488+'FR-16(7)(v)-7 TRANS Demand'!P488+'FR-16(7)(v)-8 TRANS Energy'!P488+'FR-16(7)(v)-9 TRANS Cust'!P488+'FR-16(7)(v)-11 DIST Demand'!P488+'FR-16(7)(v)-12 DIST Energy'!P488+'FR-16(7)(v)-13 DIST Cust'!P488","v":430143},{"$f":"'FR-16(7)(v)-3 PROD Demand'!Q488+'FR-16(7)(v)-4 PROD Energy'!Q488+'FR-16(7)(v)-5 PROD Cust'!Q488+'FR-16(7)(v)-7 TRANS Demand'!Q488+'FR-16(7)(v)-8 TRANS Energy'!Q488+'FR-16(7)(v)-9 TRANS Cust'!Q488+'FR-16(7)(v)-11 DIST Demand'!Q488+'FR-16(7)(v)-12 DIST Energy'!Q488+'FR-16(7)(v)-13 DIST Cust'!Q488","v":0},430143,0]
[45,null,{"$f":"'FR-16(7)(v)-1 Functional'!C489","v":"OTHER OPERATIONS"},{"$f":"'FR-16(7)(v)-1 Functional'!D489","v":"K203"},null,{"$f":"'FR-16(7)(v)-1 Functional'!F489","v":722843},{"$f":"'FR-16(7)(v)-3 PROD Demand'!G489+'FR-16(7)(v)-4 PROD Energy'!G489+'FR-16(7)(v)-5 PROD Cust'!G489+'FR-16(7)(v)-7 TRANS Demand'!G489+'FR-16(7)(v)-8 TRANS Energy'!G489+'FR-16(7)(v)-9 TRANS Cust'!G489+'FR-16(7)(v)-11 DIST Demand'!G489+'FR-16(7)(v)-12 DIST Energy'!G489+'FR-16(7)(v)-13 DIST Cust'!G489","v":429259},{"$f":"'FR-16(7)(v)-3 PROD Demand'!H489+'FR-16(7)(v)-4 PROD Energy'!H489+'FR-16(7)(v)-5 PROD Cust'!H489+'FR-16(7)(v)-7 TRANS Demand'!H489+'FR-16(7)(v)-8 TRANS Energy'!H489+'FR-16(7)(v)-9 TRANS Cust'!H489+'FR-16(7)(v)-11 DIST Demand'!H489+'FR-16(7)(v)-12 DIST Energy'!H489+'FR-16(7)(v)-13 DIST Cust'!H489","v":153604},{"$f":"'FR-16(7)(v)-3 PROD Demand'!I489+'FR-16(7)(v)-4 PROD Energy'!I489+'FR-16(7)(v)-5 PROD Cust'!I489+'FR-16(7)(v)-7 TRANS Demand'!I489+'FR-16(7)(v)-8 TRANS Energy'!I489+'FR-16(7)(v)-9 TRANS Cust'!I489+'FR-16(7)(v)-11 DIST Demand'!I489+'FR-16(7)(v)-12 DIST Energy'!I489+'FR-16(7)(v)-13 DIST Cust'!I489","v":549},{"$f":"'FR-16(7)(v)-3 PROD Demand'!J489+'FR-16(7)(v)-4 PROD Energy'!J489+'FR-16(7)(v)-5 PROD Cust'!J489+'FR-16(7)(v)-7 TRANS Demand'!J489+'FR-16(7)(v)-8 TRANS Energy'!J489+'FR-16(7)(v)-9 TRANS Cust'!J489+'FR-16(7)(v)-11 DIST Demand'!J489+'FR-16(7)(v)-12 DIST Energy'!J489+'FR-16(7)(v)-13 DIST Cust'!J489","v":5082},{"$f":"'FR-16(7)(v)-3 PROD Demand'!K489+'FR-16(7)(v)-4 PROD Energy'!K489+'FR-16(7)(v)-5 PROD Cust'!K489+'FR-16(7)(v)-7 TRANS Demand'!K489+'FR-16(7)(v)-8 TRANS Energy'!K489+'FR-16(7)(v)-9 TRANS Cust'!K489+'FR-16(7)(v)-11 DIST Demand'!K489+'FR-16(7)(v)-12 DIST Energy'!K489+'FR-16(7)(v)-13 DIST Cust'!K489","v":51},{"$f":"'FR-16(7)(v)-3 PROD Demand'!L489+'FR-16(7)(v)-4 PROD Energy'!L489+'FR-16(7)(v)-5 PROD Cust'!L489+'FR-16(7)(v)-7 TRANS Demand'!L489+'FR-16(7)(v)-8 TRANS Energy'!L489+'FR-16(7)(v)-9 TRANS Cust'!L489+'FR-16(7)(v)-11 DIST Demand'!L489+'FR-16(7)(v)-12 DIST Energy'!L489+'FR-16(7)(v)-13 DIST Cust'!L489","v":65880},{"$f":"'FR-16(7)(v)-3 PROD Demand'!M489+'FR-16(7)(v)-4 PROD Energy'!M489+'FR-16(7)(v)-5 PROD Cust'!M489+'FR-16(7)(v)-7 TRANS Demand'!M489+'FR-16(7)(v)-8 TRANS Energy'!M489+'FR-16(7)(v)-9 TRANS Cust'!M489+'FR-16(7)(v)-11 DIST Demand'!M489+'FR-16(7)(v)-12 DIST Energy'!M489+'FR-16(7)(v)-13 DIST Cust'!M489","v":40270},{"$f":"'FR-16(7)(v)-3 PROD Demand'!N489+'FR-16(7)(v)-4 PROD Energy'!N489+'FR-16(7)(v)-5 PROD Cust'!N489+'FR-16(7)(v)-7 TRANS Demand'!N489+'FR-16(7)(v)-8 TRANS Energy'!N489+'FR-16(7)(v)-9 TRANS Cust'!N489+'FR-16(7)(v)-11 DIST Demand'!N489+'FR-16(7)(v)-12 DIST Energy'!N489+'FR-16(7)(v)-13 DIST Cust'!N489","v":2711},{"$f":"'FR-16(7)(v)-3 PROD Demand'!O489+'FR-16(7)(v)-4 PROD Energy'!O489+'FR-16(7)(v)-5 PROD Cust'!O489+'FR-16(7)(v)-7 TRANS Demand'!O489+'FR-16(7)(v)-8 TRANS Energy'!O489+'FR-16(7)(v)-9 TRANS Cust'!O489+'FR-16(7)(v)-11 DIST Demand'!O489+'FR-16(7)(v)-12 DIST Energy'!O489+'FR-16(7)(v)-13 DIST Cust'!O489","v":21837},{"$f":"'FR-16(7)(v)-3 PROD Demand'!P489+'FR-16(7)(v)-4 PROD Energy'!P489+'FR-16(7)(v)-5 PROD Cust'!P489+'FR-16(7)(v)-7 TRANS Demand'!P489+'FR-16(7)(v)-8 TRANS Energy'!P489+'FR-16(7)(v)-9 TRANS Cust'!P489+'FR-16(7)(v)-11 DIST Demand'!P489+'FR-16(7)(v)-12 DIST Energy'!P489+'FR-16(7)(v)-13 DIST Cust'!P489","v":3390},{"$f":"'FR-16(7)(v)-3 PROD Demand'!Q489+'FR-16(7)(v)-4 PROD Energy'!Q489+'FR-16(7)(v)-5 PROD Cust'!Q489+'FR-16(7)(v)-7 TRANS Demand'!Q489+'FR-16(7)(v)-8 TRANS Energy'!Q489+'FR-16(7)(v)-9 TRANS Cust'!Q489+'FR-16(7)(v)-11 DIST Demand'!Q489+'FR-16(7)(v)-12 DIST Energy'!Q489+'FR-16(7)(v)-13 DIST Cust'!Q489","v":210},722843,0]
[46,null,{"$f":"'FR-16(7)(v)-1 Functional'!C490","v":"MISCELLANEOUS EXPENSES ADJUSTMENT"},{"$f":"'FR-16(7)(v)-1 Functional'!D490","v":"K203"},null,{"$f":"'FR-16(7)(v)-1 Functional'!F490","v":2227726},{"$f":"'FR-16(7)(v)-3 PROD Demand'!G490+'FR-16(7)(v)-4 PROD Energy'!G490+'FR-16(7)(v)-5 PROD Cust'!G490+'FR-16(7)(v)-7 TRANS Demand'!G490+'FR-16(7)(v)-8 TRANS Energy'!G490+'FR-16(7)(v)-9 TRANS Cust'!G490+'FR-16(7)(v)-11 DIST Demand'!G490+'FR-16(7)(v)-12 DIST Energy'!G490+'FR-16(7)(v)-13 DIST Cust'!G490","v":1322934},{"$f":"'FR-16(7)(v)-3 PROD Demand'!H490+'FR-16(7)(v)-4 PROD Energy'!H490+'FR-16(7)(v)-5 PROD Cust'!H490+'FR-16(7)(v)-7 TRANS Demand'!H490+'FR-16(7)(v)-8 TRANS Energy'!H490+'FR-16(7)(v)-9 TRANS Cust'!H490+'FR-16(7)(v)-11 DIST Demand'!H490+'FR-16(7)(v)-12 DIST Energy'!H490+'FR-16(7)(v)-13 DIST Cust'!H490","v":473392},{"$f":"'FR-16(7)(v)-3 PROD Demand'!I490+'FR-16(7)(v)-4 PROD Energy'!I490+'FR-16(7)(v)-5 PROD Cust'!I490+'FR-16(7)(v)-7 TRANS Demand'!I490+'FR-16(7)(v)-8 TRANS Energy'!I490+'FR-16(7)(v)-9 TRANS Cust'!I490+'FR-16(7)(v)-11 DIST Demand'!I490+'FR-16(7)(v)-12 DIST Energy'!I490+'FR-16(7)(v)-13 DIST Cust'!I490","v":1693},{"$f":"'FR-16(7)(v)-3 PROD Demand'!J490+'FR-16(7)(v)-4 PROD Energy'!J490+'FR-16(7)(v)-5 PROD Cust'!J490+'FR-16(7)(v)-7 TRANS Demand'!J490+'FR-16(7)(v)-8 TRANS Energy'!J490+'FR-16(7)(v)-9 TRANS Cust'!J490+'FR-16(7)(v)-11 DIST Demand'!J490+'FR-16(7)(v)-12 DIST Energy'!J490+'FR-16(7)(v)-13 DIST Cust'!J490","v":15661},{"$f":"'FR-16(7)(v)-3 PROD Demand'!K490+'FR-16(7)(v)-4 PROD Energy'!K490+'FR-16(7)(v)-5 PROD Cust'!K490+'FR-16(7)(v)-7 TRANS Demand'!K490+'FR-16(7)(v)-8 TRANS Energy'!K490+'FR-16(7)(v)-9 TRANS Cust'!K490+'FR-16(7)(v)-11 DIST Demand'!K490+'FR-16(7)(v)-12 DIST Energy'!K490+'FR-16(7)(v)-13 DIST Cust'!K490","v":156},{"$f":"'FR-16(7)(v)-3 PROD Demand'!L490+'FR-16(7)(v)-4 PROD Energy'!L490+'FR-16(7)(v)-5 PROD Cust'!L490+'FR-16(7)(v)-7 TRANS Demand'!L490+'FR-16(7)(v)-8 TRANS Energy'!L490+'FR-16(7)(v)-9 TRANS Cust'!L490+'FR-16(7)(v)-11 DIST Demand'!L490+'FR-16(7)(v)-12 DIST Energy'!L490+'FR-16(7)(v)-13 DIST Cust'!L490","v":203035},{"$f":"'FR-16(7)(v)-3 PROD Demand'!M490+'FR-16(7)(v)-4 PROD Energy'!M490+'FR-16(7)(v)-5 PROD Cust'!M490+'FR-16(7)(v)-7 TRANS Demand'!M490+'FR-16(7)(v)-8 TRANS Energy'!M490+'FR-16(7)(v)-9 TRANS Cust'!M490+'FR-16(7)(v)-11 DIST Demand'!M490+'FR-16(7)(v)-12 DIST Energy'!M490+'FR-16(7)(v)-13 DIST Cust'!M490","v":124107},{"$f":"'FR-16(7)(v)-3 PROD Demand'!N490+'FR-16(7)(v)-4 PROD Energy'!N490+'FR-16(7)(v)-5 PROD Cust'!N490+'FR-16(7)(v)-7 TRANS Demand'!N490+'FR-16(7)(v)-8 TRANS Energy'!N490+'FR-16(7)(v)-9 TRANS Cust'!N490+'FR-16(7)(v)-11 DIST Demand'!N490+'FR-16(7)(v)-12 DIST Energy'!N490+'FR-16(7)(v)-13 DIST Cust'!N490","v":8354},{"$f":"'FR-16(7)(v)-3 PROD Demand'!O490+'FR-16(7)(v)-4 PROD Energy'!O490+'FR-16(7)(v)-5 PROD Cust'!O490+'FR-16(7)(v)-7 TRANS Demand'!O490+'FR-16(7)(v)-8 TRANS Energy'!O490+'FR-16(7)(v)-9 TRANS Cust'!O490+'FR-16(7)(v)-11 DIST Demand'!O490+'FR-16(7)(v)-12 DIST Energy'!O490+'FR-16(7)(v)-13 DIST Cust'!O490","v":67300},{"$f":"'FR-16(7)(v)-3 PROD Demand'!P490+'FR-16(7)(v)-4 PROD Energy'!P490+'FR-16(7)(v)-5 PROD Cust'!P490+'FR-16(7)(v)-7 TRANS Demand'!P490+'FR-16(7)(v)-8 TRANS Energy'!P490+'FR-16(7)(v)-9 TRANS Cust'!P490+'FR-16(7)(v)-11 DIST Demand'!P490+'FR-16(7)(v)-12 DIST Energy'!P490+'FR-16(7)(v)-13 DIST Cust'!P490","v":10448},{"$f":"'FR-16(7)(v)-3 PROD Demand'!Q490+'FR-16(7)(v)-4 PROD Energy'!Q490+'FR-16(7)(v)-5 PROD Cust'!Q490+'FR-16(7)(v)-7 TRANS Demand'!Q490+'FR-16(7)(v)-8 TRANS Energy'!Q490+'FR-16(7)(v)-9 TRANS Cust'!Q490+'FR-16(7)(v)-11 DIST Demand'!Q490+'FR-16(7)(v)-12 DIST Energy'!Q490+'FR-16(7)(v)-13 DIST Cust'!Q490","v":646},2227726,0]
[47,null,{"$f":"'FR-16(7)(v)-1 Functional'!C491","v":"AFFILIATED COMPANY RENTS ADJUSTMENT"},{"$f":"'FR-16(7)(v)-1 Functional'!D491","v":"D249"},null,{"$f":"'FR-16(7)(v)-1 Functional'!F491","v":0},{"$f":"'FR-16(7)(v)-3 PROD Demand'!G491+'FR-16(7)(v)-4 PROD Energy'!G491+'FR-16(7)(v)-5 PROD Cust'!G491+'FR-16(7)(v)-7 TRANS Demand'!G491+'FR-16(7)(v)-8 TRANS Energy'!G491+'FR-16(7)(v)-9 TRANS Cust'!G491+'FR-16(7)(v)-11 DIST Demand'!G491+'FR-16(7)(v)-12 DIST Energy'!G491+'FR-16(7)(v)-13 DIST Cust'!G491","v":0},{"$f":"'FR-16(7)(v)-3 PROD Demand'!H491+'FR-16(7)(v)-4 PROD Energy'!H491+'FR-16(7)(v)-5 PROD Cust'!H491+'FR-16(7)(v)-7 TRANS Demand'!H491+'FR-16(7)(v)-8 TRANS Energy'!H491+'FR-16(7)(v)-9 TRANS Cust'!H491+'FR-16(7)(v)-11 DIST Demand'!H491+'FR-16(7)(v)-12 DIST Energy'!H491+'FR-16(7)(v)-13 DIST Cust'!H491","v":0},{"$f":"'FR-16(7)(v)-3 PROD Demand'!I491+'FR-16(7)(v)-4 PROD Energy'!I491+'FR-16(7)(v)-5 PROD Cust'!I491+'FR-16(7)(v)-7 TRANS Demand'!I491+'FR-16(7)(v)-8 TRANS Energy'!I491+'FR-16(7)(v)-9 TRANS Cust'!I491+'FR-16(7)(v)-11 DIST Demand'!I491+'FR-16(7)(v)-12 DIST Energy'!I491+'FR-16(7)(v)-13 DIST Cust'!I491","v":0},{"$f":"'FR-16(7)(v)-3 PROD Demand'!J491+'FR-16(7)(v)-4 PROD Energy'!J491+'FR-16(7)(v)-5 PROD Cust'!J491+'FR-16(7)(v)-7 TRANS Demand'!J491+'FR-16(7)(v)-8 TRANS Energy'!J491+'FR-16(7)(v)-9 TRANS Cust'!J491+'FR-16(7)(v)-11 DIST Demand'!J491+'FR-16(7)(v)-12 DIST Energy'!J491+'FR-16(7)(v)-13 DIST Cust'!J491","v":0},{"$f":"'FR-16(7)(v)-3 PROD Demand'!K491+'FR-16(7)(v)-4 PROD Energy'!K491+'FR-16(7)(v)-5 PROD Cust'!K491+'FR-16(7)(v)-7 TRANS Demand'!K491+'FR-16(7)(v)-8 TRANS Energy'!K491+'FR-16(7)(v)-9 TRANS Cust'!K491+'FR-16(7)(v)-11 DIST Demand'!K491+'FR-16(7)(v)-12 DIST Energy'!K491+'FR-16(7)(v)-13 DIST Cust'!K491","v":0},{"$f":"'FR-16(7)(v)-3 PROD Demand'!L491+'FR-16(7)(v)-4 PROD Energy'!L491+'FR-16(7)(v)-5 PROD Cust'!L491+'FR-16(7)(v)-7 TRANS Demand'!L491+'FR-16(7)(v)-8 TRANS Energy'!L491+'FR-16(7)(v)-9 TRANS Cust'!L491+'FR-16(7)(v)-11 DIST Demand'!L491+'FR-16(7)(v)-12 DIST Energy'!L491+'FR-16(7)(v)-13 DIST Cust'!L491","v":0},{"$f":"'FR-16(7)(v)-3 PROD Demand'!M491+'FR-16(7)(v)-4 PROD Energy'!M491+'FR-16(7)(v)-5 PROD Cust'!M491+'FR-16(7)(v)-7 TRANS Demand'!M491+'FR-16(7)(v)-8 TRANS Energy'!M491+'FR-16(7)(v)-9 TRANS Cust'!M491+'FR-16(7)(v)-11 DIST Demand'!M491+'FR-16(7)(v)-12 DIST Energy'!M491+'FR-16(7)(v)-13 DIST Cust'!M491","v":0},{"$f":"'FR-16(7)(v)-3 PROD Demand'!N491+'FR-16(7)(v)-4 PROD Energy'!N491+'FR-16(7)(v)-5 PROD Cust'!N491+'FR-16(7)(v)-7 TRANS Demand'!N491+'FR-16(7)(v)-8 TRANS Energy'!N491+'FR-16(7)(v)-9 TRANS Cust'!N491+'FR-16(7)(v)-11 DIST Demand'!N491+'FR-16(7)(v)-12 DIST Energy'!N491+'FR-16(7)(v)-13 DIST Cust'!N491","v":0},{"$f":"'FR-16(7)(v)-3 PROD Demand'!O491+'FR-16(7)(v)-4 PROD Energy'!O491+'FR-16(7)(v)-5 PROD Cust'!O491+'FR-16(7)(v)-7 TRANS Demand'!O491+'FR-16(7)(v)-8 TRANS Energy'!O491+'FR-16(7)(v)-9 TRANS Cust'!O491+'FR-16(7)(v)-11 DIST Demand'!O491+'FR-16(7)(v)-12 DIST Energy'!O491+'FR-16(7)(v)-13 DIST Cust'!O491","v":0},{"$f":"'FR-16(7)(v)-3 PROD Demand'!P491+'FR-16(7)(v)-4 PROD Energy'!P491+'FR-16(7)(v)-5 PROD Cust'!P491+'FR-16(7)(v)-7 TRANS Demand'!P491+'FR-16(7)(v)-8 TRANS Energy'!P491+'FR-16(7)(v)-9 TRANS Cust'!P491+'FR-16(7)(v)-11 DIST Demand'!P491+'FR-16(7)(v)-12 DIST Energy'!P491+'FR-16(7)(v)-13 DIST Cust'!P491","v":0},{"$f":"'FR-16(7)(v)-3 PROD Demand'!Q491+'FR-16(7)(v)-4 PROD Energy'!Q491+'FR-16(7)(v)-5 PROD Cust'!Q491+'FR-16(7)(v)-7 TRANS Demand'!Q491+'FR-16(7)(v)-8 TRANS Energy'!Q491+'FR-16(7)(v)-9 TRANS Cust'!Q491+'FR-16(7)(v)-11 DIST Demand'!Q491+'FR-16(7)(v)-12 DIST Energy'!Q491+'FR-16(7)(v)-13 DIST Cust'!Q491","v":0},0,0]
[48,null,{"$f":"'FR-16(7)(v)-1 Functional'!C492","v":"  TOTAL DISTRIBUTION O & M"},null," ",{"$f":"SUM(F472:F491)","v":17847749},9934246,4019171,18111,{"$f":"SUM(J472:J491)","v":94562},1432,1783111,1147037,62710,181023,603542,2804,17847749,0]
[49,null," "]
[50,"CUSTOMER ACCOUNTING",null,null,null," "]
[51,null,{"$f":"'FR-16(7)(v)-1 Functional'!C495","v":"CUSTOMER ACCOUNTING EXPENSE"},{"$f":"'FR-16(7)(v)-1 Functional'!D495","v":"K409"},null,{"$f":"'FR-16(7)(v)-1 Functional'!F495","v":3880551},{"$f":"'FR-16(7)(v)-3 PROD Demand'!G495+'FR-16(7)(v)-4 PROD Energy'!G495+'FR-16(7)(v)-5 PROD Cust'!G495+'FR-16(7)(v)-7 TRANS Demand'!G495+'FR-16(7)(v)-8 TRANS Energy'!G495+'FR-16(7)(v)-9 TRANS Cust'!G495+'FR-16(7)(v)-11 DIST Demand'!G495+'FR-16(7)(v)-12 DIST Energy'!G495+'FR-16(7)(v)-13 DIST Cust'!G495","v":3185118},{"$f":"'FR-16(7)(v)-3 PROD Demand'!H495+'FR-16(7)(v)-4 PROD Energy'!H495+'FR-16(7)(v)-5 PROD Cust'!H495+'FR-16(7)(v)-7 TRANS Demand'!H495+'FR-16(7)(v)-8 TRANS Energy'!H495+'FR-16(7)(v)-9 TRANS Cust'!H495+'FR-16(7)(v)-11 DIST Demand'!H495+'FR-16(7)(v)-12 DIST Energy'!H495+'FR-16(7)(v)-13 DIST Cust'!H495","v":643318},{"$f":"'FR-16(7)(v)-3 PROD Demand'!I495+'FR-16(7)(v)-4 PROD Energy'!I495+'FR-16(7)(v)-5 PROD Cust'!I495+'FR-16(7)(v)-7 TRANS Demand'!I495+'FR-16(7)(v)-8 TRANS Energy'!I495+'FR-16(7)(v)-9 TRANS Cust'!I495+'FR-16(7)(v)-11 DIST Demand'!I495+'FR-16(7)(v)-12 DIST Energy'!I495+'FR-16(7)(v)-13 DIST Cust'!I495","v":4269},{"$f":"'FR-16(7)(v)-3 PROD Demand'!J495+'FR-16(7)(v)-4 PROD Energy'!J495+'FR-16(7)(v)-5 PROD Cust'!J495+'FR-16(7)(v)-7 TRANS Demand'!J495+'FR-16(7)(v)-8 TRANS Energy'!J495+'FR-16(7)(v)-9 TRANS Cust'!J495+'FR-16(7)(v)-11 DIST Demand'!J495+'FR-16(7)(v)-12 DIST Energy'!J495+'FR-16(7)(v)-13 DIST Cust'!J495","v":5122},{"$f":"'FR-16(7)(v)-3 PROD Demand'!K495+'FR-16(7)(v)-4 PROD Energy'!K495+'FR-16(7)(v)-5 PROD Cust'!K495+'FR-16(7)(v)-7 TRANS Demand'!K495+'FR-16(7)(v)-8 TRANS Energy'!K495+'FR-16(7)(v)-9 TRANS Cust'!K495+'FR-16(7)(v)-11 DIST Demand'!K495+'FR-16(7)(v)-12 DIST Energy'!K495+'FR-16(7)(v)-13 DIST Cust'!K495","v":698},{"$f":"'FR-16(7)(v)-3 PROD Demand'!L495+'FR-16(7)(v)-4 PROD Energy'!L495+'FR-16(7)(v)-5 PROD Cust'!L495+'FR-16(7)(v)-7 TRANS Demand'!L495+'FR-16(7)(v)-8 TRANS Energy'!L495+'FR-16(7)(v)-9 TRANS Cust'!L495+'FR-16(7)(v)-11 DIST Demand'!L495+'FR-16(7)(v)-12 DIST Energy'!L495+'FR-16(7)(v)-13 DIST Cust'!L495","v":27009},{"$f":"'FR-16(7)(v)-3 PROD Demand'!M495+'FR-16(7)(v)-4 PROD Energy'!M495+'FR-16(7)(v)-5 PROD Cust'!M495+'FR-16(7)(v)-7 TRANS Demand'!M495+'FR-16(7)(v)-8 TRANS Energy'!M495+'FR-16(7)(v)-9 TRANS Cust'!M495+'FR-16(7)(v)-11 DIST Demand'!M495+'FR-16(7)(v)-12 DIST Energy'!M495+'FR-16(7)(v)-13 DIST Cust'!M495","v":931},{"$f":"'FR-16(7)(v)-3 PROD Demand'!N495+'FR-16(7)(v)-4 PROD Energy'!N495+'FR-16(7)(v)-5 PROD Cust'!N495+'FR-16(7)(v)-7 TRANS Demand'!N495+'FR-16(7)(v)-8 TRANS Energy'!N495+'FR-16(7)(v)-9 TRANS Cust'!N495+'FR-16(7)(v)-11 DIST Demand'!N495+'FR-16(7)(v)-12 DIST Energy'!N495+'FR-16(7)(v)-13 DIST Cust'!N495","v":1009},{"$f":"'FR-16(7)(v)-3 PROD Demand'!O495+'FR-16(7)(v)-4 PROD Energy'!O495+'FR-16(7)(v)-5 PROD Cust'!O495+'FR-16(7)(v)-7 TRANS Demand'!O495+'FR-16(7)(v)-8 TRANS Energy'!O495+'FR-16(7)(v)-9 TRANS Cust'!O495+'FR-16(7)(v)-11 DIST Demand'!O495+'FR-16(7)(v)-12 DIST Energy'!O495+'FR-16(7)(v)-13 DIST Cust'!O495","v":931},{"$f":"'FR-16(7)(v)-3 PROD Demand'!P495+'FR-16(7)(v)-4 PROD Energy'!P495+'FR-16(7)(v)-5 PROD Cust'!P495+'FR-16(7)(v)-7 TRANS Demand'!P495+'FR-16(7)(v)-8 TRANS Energy'!P495+'FR-16(7)(v)-9 TRANS Cust'!P495+'FR-16(7)(v)-11 DIST Demand'!P495+'FR-16(7)(v)-12 DIST Energy'!P495+'FR-16(7)(v)-13 DIST Cust'!P495","v":11603},{"$f":"'FR-16(7)(v)-3 PROD Demand'!Q495+'FR-16(7)(v)-4 PROD Energy'!Q495+'FR-16(7)(v)-5 PROD Cust'!Q495+'FR-16(7)(v)-7 TRANS Demand'!Q495+'FR-16(7)(v)-8 TRANS Energy'!Q495+'FR-16(7)(v)-9 TRANS Cust'!Q495+'FR-16(7)(v)-11 DIST Demand'!Q495+'FR-16(7)(v)-12 DIST Energy'!Q495+'FR-16(7)(v)-13 DIST Cust'!Q495","v":543},{"$f":"SUM(G495:Q495)","v":3880551},{"$f":"F495-R495","v":0}]
[52,null,{"$f":"'FR-16(7)(v)-1 Functional'!C496","v":"UNCOLLECTIBLE EXP"},{"$f":"'FR-16(7)(v)-1 Functional'!D496","v":"K411"},null,{"$f":"'FR-16(7)(v)-1 Functional'!F496","v":1554931},{"$f":"'FR-16(7)(v)-3 PROD Demand'!G496+'FR-16(7)(v)-4 PROD Energy'!G496+'FR-16(7)(v)-5 PROD Cust'!G496+'FR-16(7)(v)-7 TRANS Demand'!G496+'FR-16(7)(v)-8 TRANS Energy'!G496+'FR-16(7)(v)-9 TRANS Cust'!G496+'FR-16(7)(v)-11 DIST Demand'!G496+'FR-16(7)(v)-12 DIST Energy'!G496+'FR-16(7)(v)-13 DIST Cust'!G496","v":1416778},{"$f":"'FR-16(7)(v)-3 PROD Demand'!H496+'FR-16(7)(v)-4 PROD Energy'!H496+'FR-16(7)(v)-5 PROD Cust'!H496+'FR-16(7)(v)-7 TRANS Demand'!H496+'FR-16(7)(v)-8 TRANS Energy'!H496+'FR-16(7)(v)-9 TRANS Cust'!H496+'FR-16(7)(v)-11 DIST Demand'!H496+'FR-16(7)(v)-12 DIST Energy'!H496+'FR-16(7)(v)-13 DIST Cust'!H496","v":67188},{"$f":"'FR-16(7)(v)-3 PROD Demand'!I496+'FR-16(7)(v)-4 PROD Energy'!I496+'FR-16(7)(v)-5 PROD Cust'!I496+'FR-16(7)(v)-7 TRANS Demand'!I496+'FR-16(7)(v)-8 TRANS Energy'!I496+'FR-16(7)(v)-9 TRANS Cust'!I496+'FR-16(7)(v)-11 DIST Demand'!I496+'FR-16(7)(v)-12 DIST Energy'!I496+'FR-16(7)(v)-13 DIST Cust'!I496","v":435},{"$f":"'FR-16(7)(v)-3 PROD Demand'!J496+'FR-16(7)(v)-4 PROD Energy'!J496+'FR-16(7)(v)-5 PROD Cust'!J496+'FR-16(7)(v)-7 TRANS Demand'!J496+'FR-16(7)(v)-8 TRANS Energy'!J496+'FR-16(7)(v)-9 TRANS Cust'!J496+'FR-16(7)(v)-11 DIST Demand'!J496+'FR-16(7)(v)-12 DIST Energy'!J496+'FR-16(7)(v)-13 DIST Cust'!J496","v":451},{"$f":"'FR-16(7)(v)-3 PROD Demand'!K496+'FR-16(7)(v)-4 PROD Energy'!K496+'FR-16(7)(v)-5 PROD Cust'!K496+'FR-16(7)(v)-7 TRANS Demand'!K496+'FR-16(7)(v)-8 TRANS Energy'!K496+'FR-16(7)(v)-9 TRANS Cust'!K496+'FR-16(7)(v)-11 DIST Demand'!K496+'FR-16(7)(v)-12 DIST Energy'!K496+'FR-16(7)(v)-13 DIST Cust'!K496","v":15},{"$f":"'FR-16(7)(v)-3 PROD Demand'!L496+'FR-16(7)(v)-4 PROD Energy'!L496+'FR-16(7)(v)-5 PROD Cust'!L496+'FR-16(7)(v)-7 TRANS Demand'!L496+'FR-16(7)(v)-8 TRANS Energy'!L496+'FR-16(7)(v)-9 TRANS Cust'!L496+'FR-16(7)(v)-11 DIST Demand'!L496+'FR-16(7)(v)-12 DIST Energy'!L496+'FR-16(7)(v)-13 DIST Cust'!L496","v":34893},{"$f":"'FR-16(7)(v)-3 PROD Demand'!M496+'FR-16(7)(v)-4 PROD Energy'!M496+'FR-16(7)(v)-5 PROD Cust'!M496+'FR-16(7)(v)-7 TRANS Demand'!M496+'FR-16(7)(v)-8 TRANS Energy'!M496+'FR-16(7)(v)-9 TRANS Cust'!M496+'FR-16(7)(v)-11 DIST Demand'!M496+'FR-16(7)(v)-12 DIST Energy'!M496+'FR-16(7)(v)-13 DIST Cust'!M496","v":22282},{"$f":"'FR-16(7)(v)-3 PROD Demand'!N496+'FR-16(7)(v)-4 PROD Energy'!N496+'FR-16(7)(v)-5 PROD Cust'!N496+'FR-16(7)(v)-7 TRANS Demand'!N496+'FR-16(7)(v)-8 TRANS Energy'!N496+'FR-16(7)(v)-9 TRANS Cust'!N496+'FR-16(7)(v)-11 DIST Demand'!N496+'FR-16(7)(v)-12 DIST Energy'!N496+'FR-16(7)(v)-13 DIST Cust'!N496","v":1011},{"$f":"'FR-16(7)(v)-3 PROD Demand'!O496+'FR-16(7)(v)-4 PROD Energy'!O496+'FR-16(7)(v)-5 PROD Cust'!O496+'FR-16(7)(v)-7 TRANS Demand'!O496+'FR-16(7)(v)-8 TRANS Energy'!O496+'FR-16(7)(v)-9 TRANS Cust'!O496+'FR-16(7)(v)-11 DIST Demand'!O496+'FR-16(7)(v)-12 DIST Energy'!O496+'FR-16(7)(v)-13 DIST Cust'!O496","v":10464},{"$f":"'FR-16(7)(v)-3 PROD Demand'!P496+'FR-16(7)(v)-4 PROD Energy'!P496+'FR-16(7)(v)-5 PROD Cust'!P496+'FR-16(7)(v)-7 TRANS Demand'!P496+'FR-16(7)(v)-8 TRANS Energy'!P496+'FR-16(7)(v)-9 TRANS Cust'!P496+'FR-16(7)(v)-11 DIST Demand'!P496+'FR-16(7)(v)-12 DIST Energy'!P496+'FR-16(7)(v)-13 DIST Cust'!P496","v":1399},{"$f":"'FR-16(7)(v)-3 PROD Demand'!Q496+'FR-16(7)(v)-4 PROD Energy'!Q496+'FR-16(7)(v)-5 PROD Cust'!Q496+'FR-16(7)(v)-7 TRANS Demand'!Q496+'FR-16(7)(v)-8 TRANS Energy'!Q496+'FR-16(7)(v)-9 TRANS Cust'!Q496+'FR-16(7)(v)-11 DIST Demand'!Q496+'FR-16(7)(v)-12 DIST Energy'!Q496+'FR-16(7)(v)-13 DIST Cust'!Q496","v":15},1554931,0]
[53,null,{"$f":"'FR-16(7)(v)-1 Functional'!C497","v":"METER READING"},{"$f":"'FR-16(7)(v)-1 Functional'!D497","v":"K407"},null,{"$f":"'FR-16(7)(v)-1 Functional'!F497","v":0},{"$f":"'FR-16(7)(v)-3 PROD Demand'!G497+'FR-16(7)(v)-4 PROD Energy'!G497+'FR-16(7)(v)-5 PROD Cust'!G497+'FR-16(7)(v)-7 TRANS Demand'!G497+'FR-16(7)(v)-8 TRANS Energy'!G497+'FR-16(7)(v)-9 TRANS Cust'!G497+'FR-16(7)(v)-11 DIST Demand'!G497+'FR-16(7)(v)-12 DIST Energy'!G497+'FR-16(7)(v)-13 DIST Cust'!G497","v":0},{"$f":"'FR-16(7)(v)-3 PROD Demand'!H497+'FR-16(7)(v)-4 PROD Energy'!H497+'FR-16(7)(v)-5 PROD Cust'!H497+'FR-16(7)(v)-7 TRANS Demand'!H497+'FR-16(7)(v)-8 TRANS Energy'!H497+'FR-16(7)(v)-9 TRANS Cust'!H497+'FR-16(7)(v)-11 DIST Demand'!H497+'FR-16(7)(v)-12 DIST Energy'!H497+'FR-16(7)(v)-13 DIST Cust'!H497","v":0},{"$f":"'FR-16(7)(v)-3 PROD Demand'!I497+'FR-16(7)(v)-4 PROD Energy'!I497+'FR-16(7)(v)-5 PROD Cust'!I497+'FR-16(7)(v)-7 TRANS Demand'!I497+'FR-16(7)(v)-8 TRANS Energy'!I497+'FR-16(7)(v)-9 TRANS Cust'!I497+'FR-16(7)(v)-11 DIST Demand'!I497+'FR-16(7)(v)-12 DIST Energy'!I497+'FR-16(7)(v)-13 DIST Cust'!I497","v":0},{"$f":"'FR-16(7)(v)-3 PROD Demand'!J497+'FR-16(7)(v)-4 PROD Energy'!J497+'FR-16(7)(v)-5 PROD Cust'!J497+'FR-16(7)(v)-7 TRANS Demand'!J497+'FR-16(7)(v)-8 TRANS Energy'!J497+'FR-16(7)(v)-9 TRANS Cust'!J497+'FR-16(7)(v)-11 DIST Demand'!J497+'FR-16(7)(v)-12 DIST Energy'!J497+'FR-16(7)(v)-13 DIST Cust'!J497","v":0},{"$f":"'FR-16(7)(v)-3 PROD Demand'!K497+'FR-16(7)(v)-4 PROD Energy'!K497+'FR-16(7)(v)-5 PROD Cust'!K497+'FR-16(7)(v)-7 TRANS Demand'!K497+'FR-16(7)(v)-8 TRANS Energy'!K497+'FR-16(7)(v)-9 TRANS Cust'!K497+'FR-16(7)(v)-11 DIST Demand'!K497+'FR-16(7)(v)-12 DIST Energy'!K497+'FR-16(7)(v)-13 DIST Cust'!K497","v":0},{"$f":"'FR-16(7)(v)-3 PROD Demand'!L497+'FR-16(7)(v)-4 PROD Energy'!L497+'FR-16(7)(v)-5 PROD Cust'!L497+'FR-16(7)(v)-7 TRANS Demand'!L497+'FR-16(7)(v)-8 TRANS Energy'!L497+'FR-16(7)(v)-9 TRANS Cust'!L497+'FR-16(7)(v)-11 DIST Demand'!L497+'FR-16(7)(v)-12 DIST Energy'!L497+'FR-16(7)(v)-13 DIST Cust'!L497","v":0},{"$f":"'FR-16(7)(v)-3 PROD Demand'!M497+'FR-16(7)(v)-4 PROD Energy'!M497+'FR-16(7)(v)-5 PROD Cust'!M497+'FR-16(7)(v)-7 TRANS Demand'!M497+'FR-16(7)(v)-8 TRANS Energy'!M497+'FR-16(7)(v)-9 TRANS Cust'!M497+'FR-16(7)(v)-11 DIST Demand'!M497+'FR-16(7)(v)-12 DIST Energy'!M497+'FR-16(7)(v)-13 DIST Cust'!M497","v":0},{"$f":"'FR-16(7)(v)-3 PROD Demand'!N497+'FR-16(7)(v)-4 PROD Energy'!N497+'FR-16(7)(v)-5 PROD Cust'!N497+'FR-16(7)(v)-7 TRANS Demand'!N497+'FR-16(7)(v)-8 TRANS Energy'!N497+'FR-16(7)(v)-9 TRANS Cust'!N497+'FR-16(7)(v)-11 DIST Demand'!N497+'FR-16(7)(v)-12 DIST Energy'!N497+'FR-16(7)(v)-13 DIST Cust'!N497","v":0},{"$f":"'FR-16(7)(v)-3 PROD Demand'!O497+'FR-16(7)(v)-4 PROD Energy'!O497+'FR-16(7)(v)-5 PROD Cust'!O497+'FR-16(7)(v)-7 TRANS Demand'!O497+'FR-16(7)(v)-8 TRANS Energy'!O497+'FR-16(7)(v)-9 TRANS Cust'!O497+'FR-16(7)(v)-11 DIST Demand'!O497+'FR-16(7)(v)-12 DIST Energy'!O497+'FR-16(7)(v)-13 DIST Cust'!O497","v":0},{"$f":"'FR-16(7)(v)-3 PROD Demand'!P497+'FR-16(7)(v)-4 PROD Energy'!P497+'FR-16(7)(v)-5 PROD Cust'!P497+'FR-16(7)(v)-7 TRANS Demand'!P497+'FR-16(7)(v)-8 TRANS Energy'!P497+'FR-16(7)(v)-9 TRANS Cust'!P497+'FR-16(7)(v)-11 DIST Demand'!P497+'FR-16(7)(v)-12 DIST Energy'!P497+'FR-16(7)(v)-13 DIST Cust'!P497","v":0},{"$f":"'FR-16(7)(v)-3 PROD Demand'!Q497+'FR-16(7)(v)-4 PROD Energy'!Q497+'FR-16(7)(v)-5 PROD Cust'!Q497+'FR-16(7)(v)-7 TRANS Demand'!Q497+'FR-16(7)(v)-8 TRANS Energy'!Q497+'FR-16(7)(v)-9 TRANS Cust'!Q497+'FR-16(7)(v)-11 DIST Demand'!Q497+'FR-16(7)(v)-12 DIST Energy'!Q497+'FR-16(7)(v)-13 DIST Cust'!Q497","v":0},0,0]
[54,null,{"$f":"'FR-16(7)(v)-1 Functional'!C498","v":"UNCOLLECTIBLE EXP ADJUSTMENT"},{"$f":"'FR-16(7)(v)-1 Functional'!D498","v":"K411"},null,{"$f":"'FR-16(7)(v)-1 Functional'!F498","v":-2199572},{"$f":"'FR-16(7)(v)-3 PROD Demand'!G498+'FR-16(7)(v)-4 PROD Energy'!G498+'FR-16(7)(v)-5 PROD Cust'!G498+'FR-16(7)(v)-7 TRANS Demand'!G498+'FR-16(7)(v)-8 TRANS Energy'!G498+'FR-16(7)(v)-9 TRANS Cust'!G498+'FR-16(7)(v)-11 DIST Demand'!G498+'FR-16(7)(v)-12 DIST Energy'!G498+'FR-16(7)(v)-13 DIST Cust'!G498","v":-2004140},{"$f":"'FR-16(7)(v)-3 PROD Demand'!H498+'FR-16(7)(v)-4 PROD Energy'!H498+'FR-16(7)(v)-5 PROD Cust'!H498+'FR-16(7)(v)-7 TRANS Demand'!H498+'FR-16(7)(v)-8 TRANS Energy'!H498+'FR-16(7)(v)-9 TRANS Cust'!H498+'FR-16(7)(v)-11 DIST Demand'!H498+'FR-16(7)(v)-12 DIST Energy'!H498+'FR-16(7)(v)-13 DIST Cust'!H498","v":-95044},{"$f":"'FR-16(7)(v)-3 PROD Demand'!I498+'FR-16(7)(v)-4 PROD Energy'!I498+'FR-16(7)(v)-5 PROD Cust'!I498+'FR-16(7)(v)-7 TRANS Demand'!I498+'FR-16(7)(v)-8 TRANS Energy'!I498+'FR-16(7)(v)-9 TRANS Cust'!I498+'FR-16(7)(v)-11 DIST Demand'!I498+'FR-16(7)(v)-12 DIST Energy'!I498+'FR-16(7)(v)-13 DIST Cust'!I498","v":-616},{"$f":"'FR-16(7)(v)-3 PROD Demand'!J498+'FR-16(7)(v)-4 PROD Energy'!J498+'FR-16(7)(v)-5 PROD Cust'!J498+'FR-16(7)(v)-7 TRANS Demand'!J498+'FR-16(7)(v)-8 TRANS Energy'!J498+'FR-16(7)(v)-9 TRANS Cust'!J498+'FR-16(7)(v)-11 DIST Demand'!J498+'FR-16(7)(v)-12 DIST Energy'!J498+'FR-16(7)(v)-13 DIST Cust'!J498","v":-638},{"$f":"'FR-16(7)(v)-3 PROD Demand'!K498+'FR-16(7)(v)-4 PROD Energy'!K498+'FR-16(7)(v)-5 PROD Cust'!K498+'FR-16(7)(v)-7 TRANS Demand'!K498+'FR-16(7)(v)-8 TRANS Energy'!K498+'FR-16(7)(v)-9 TRANS Cust'!K498+'FR-16(7)(v)-11 DIST Demand'!K498+'FR-16(7)(v)-12 DIST Energy'!K498+'FR-16(7)(v)-13 DIST Cust'!K498","v":-22},{"$f":"'FR-16(7)(v)-3 PROD Demand'!L498+'FR-16(7)(v)-4 PROD Energy'!L498+'FR-16(7)(v)-5 PROD Cust'!L498+'FR-16(7)(v)-7 TRANS Demand'!L498+'FR-16(7)(v)-8 TRANS Energy'!L498+'FR-16(7)(v)-9 TRANS Cust'!L498+'FR-16(7)(v)-11 DIST Demand'!L498+'FR-16(7)(v)-12 DIST Energy'!L498+'FR-16(7)(v)-13 DIST Cust'!L498","v":-49358},{"$f":"'FR-16(7)(v)-3 PROD Demand'!M498+'FR-16(7)(v)-4 PROD Energy'!M498+'FR-16(7)(v)-5 PROD Cust'!M498+'FR-16(7)(v)-7 TRANS Demand'!M498+'FR-16(7)(v)-8 TRANS Energy'!M498+'FR-16(7)(v)-9 TRANS Cust'!M498+'FR-16(7)(v)-11 DIST Demand'!M498+'FR-16(7)(v)-12 DIST Energy'!M498+'FR-16(7)(v)-13 DIST Cust'!M498","v":-31520},{"$f":"'FR-16(7)(v)-3 PROD Demand'!N498+'FR-16(7)(v)-4 PROD Energy'!N498+'FR-16(7)(v)-5 PROD Cust'!N498+'FR-16(7)(v)-7 TRANS Demand'!N498+'FR-16(7)(v)-8 TRANS Energy'!N498+'FR-16(7)(v)-9 TRANS Cust'!N498+'FR-16(7)(v)-11 DIST Demand'!N498+'FR-16(7)(v)-12 DIST Energy'!N498+'FR-16(7)(v)-13 DIST Cust'!N498","v":-1430},{"$f":"'FR-16(7)(v)-3 PROD Demand'!O498+'FR-16(7)(v)-4 PROD Energy'!O498+'FR-16(7)(v)-5 PROD Cust'!O498+'FR-16(7)(v)-7 TRANS Demand'!O498+'FR-16(7)(v)-8 TRANS Energy'!O498+'FR-16(7)(v)-9 TRANS Cust'!O498+'FR-16(7)(v)-11 DIST Demand'!O498+'FR-16(7)(v)-12 DIST Energy'!O498+'FR-16(7)(v)-13 DIST Cust'!O498","v":-14803},{"$f":"'FR-16(7)(v)-3 PROD Demand'!P498+'FR-16(7)(v)-4 PROD Energy'!P498+'FR-16(7)(v)-5 PROD Cust'!P498+'FR-16(7)(v)-7 TRANS Demand'!P498+'FR-16(7)(v)-8 TRANS Energy'!P498+'FR-16(7)(v)-9 TRANS Cust'!P498+'FR-16(7)(v)-11 DIST Demand'!P498+'FR-16(7)(v)-12 DIST Energy'!P498+'FR-16(7)(v)-13 DIST Cust'!P498","v":-1979},{"$f":"'FR-16(7)(v)-3 PROD Demand'!Q498+'FR-16(7)(v)-4 PROD Energy'!Q498+'FR-16(7)(v)-5 PROD Cust'!Q498+'FR-16(7)(v)-7 TRANS Demand'!Q498+'FR-16(7)(v)-8 TRANS Energy'!Q498+'FR-16(7)(v)-9 TRANS Cust'!Q498+'FR-16(7)(v)-11 DIST Demand'!Q498+'FR-16(7)(v)-12 DIST Energy'!Q498+'FR-16(7)(v)-13 DIST Cust'!Q498","v":-22},-2199572,0]
[55,null,{"$f":"'FR-16(7)(v)-1 Functional'!C499","v":"CREDIT CARD FEES"},{"$f":"'FR-16(7)(v)-1 Functional'!D499","v":"K407"},null,{"$f":"'FR-16(7)(v)-1 Functional'!F499","v":492981},{"$f":"'FR-16(7)(v)-3 PROD Demand'!G499+'FR-16(7)(v)-4 PROD Energy'!G499+'FR-16(7)(v)-5 PROD Cust'!G499+'FR-16(7)(v)-7 TRANS Demand'!G499+'FR-16(7)(v)-8 TRANS Energy'!G499+'FR-16(7)(v)-9 TRANS Cust'!G499+'FR-16(7)(v)-11 DIST Demand'!G499+'FR-16(7)(v)-12 DIST Energy'!G499+'FR-16(7)(v)-13 DIST Cust'!G499","v":398492},{"$f":"'FR-16(7)(v)-3 PROD Demand'!H499+'FR-16(7)(v)-4 PROD Energy'!H499+'FR-16(7)(v)-5 PROD Cust'!H499+'FR-16(7)(v)-7 TRANS Demand'!H499+'FR-16(7)(v)-8 TRANS Energy'!H499+'FR-16(7)(v)-9 TRANS Cust'!H499+'FR-16(7)(v)-11 DIST Demand'!H499+'FR-16(7)(v)-12 DIST Energy'!H499+'FR-16(7)(v)-13 DIST Cust'!H499","v":90181},{"$f":"'FR-16(7)(v)-3 PROD Demand'!I499+'FR-16(7)(v)-4 PROD Energy'!I499+'FR-16(7)(v)-5 PROD Cust'!I499+'FR-16(7)(v)-7 TRANS Demand'!I499+'FR-16(7)(v)-8 TRANS Energy'!I499+'FR-16(7)(v)-9 TRANS Cust'!I499+'FR-16(7)(v)-11 DIST Demand'!I499+'FR-16(7)(v)-12 DIST Energy'!I499+'FR-16(7)(v)-13 DIST Cust'!I499","v":0},{"$f":"'FR-16(7)(v)-3 PROD Demand'!J499+'FR-16(7)(v)-4 PROD Energy'!J499+'FR-16(7)(v)-5 PROD Cust'!J499+'FR-16(7)(v)-7 TRANS Demand'!J499+'FR-16(7)(v)-8 TRANS Energy'!J499+'FR-16(7)(v)-9 TRANS Cust'!J499+'FR-16(7)(v)-11 DIST Demand'!J499+'FR-16(7)(v)-12 DIST Energy'!J499+'FR-16(7)(v)-13 DIST Cust'!J499","v":690},{"$f":"'FR-16(7)(v)-3 PROD Demand'!K499+'FR-16(7)(v)-4 PROD Energy'!K499+'FR-16(7)(v)-5 PROD Cust'!K499+'FR-16(7)(v)-7 TRANS Demand'!K499+'FR-16(7)(v)-8 TRANS Energy'!K499+'FR-16(7)(v)-9 TRANS Cust'!K499+'FR-16(7)(v)-11 DIST Demand'!K499+'FR-16(7)(v)-12 DIST Energy'!K499+'FR-16(7)(v)-13 DIST Cust'!K499","v":108},{"$f":"'FR-16(7)(v)-3 PROD Demand'!L499+'FR-16(7)(v)-4 PROD Energy'!L499+'FR-16(7)(v)-5 PROD Cust'!L499+'FR-16(7)(v)-7 TRANS Demand'!L499+'FR-16(7)(v)-8 TRANS Energy'!L499+'FR-16(7)(v)-9 TRANS Cust'!L499+'FR-16(7)(v)-11 DIST Demand'!L499+'FR-16(7)(v)-12 DIST Energy'!L499+'FR-16(7)(v)-13 DIST Cust'!L499","v":3210},{"$f":"'FR-16(7)(v)-3 PROD Demand'!M499+'FR-16(7)(v)-4 PROD Energy'!M499+'FR-16(7)(v)-5 PROD Cust'!M499+'FR-16(7)(v)-7 TRANS Demand'!M499+'FR-16(7)(v)-8 TRANS Energy'!M499+'FR-16(7)(v)-9 TRANS Cust'!M499+'FR-16(7)(v)-11 DIST Demand'!M499+'FR-16(7)(v)-12 DIST Energy'!M499+'FR-16(7)(v)-13 DIST Cust'!M499","v":0},{"$f":"'FR-16(7)(v)-3 PROD Demand'!N499+'FR-16(7)(v)-4 PROD Energy'!N499+'FR-16(7)(v)-5 PROD Cust'!N499+'FR-16(7)(v)-7 TRANS Demand'!N499+'FR-16(7)(v)-8 TRANS Energy'!N499+'FR-16(7)(v)-9 TRANS Cust'!N499+'FR-16(7)(v)-11 DIST Demand'!N499+'FR-16(7)(v)-12 DIST Energy'!N499+'FR-16(7)(v)-13 DIST Cust'!N499","v":118},{"$f":"'FR-16(7)(v)-3 PROD Demand'!O499+'FR-16(7)(v)-4 PROD Energy'!O499+'FR-16(7)(v)-5 PROD Cust'!O499+'FR-16(7)(v)-7 TRANS Demand'!O499+'FR-16(7)(v)-8 TRANS Energy'!O499+'FR-16(7)(v)-9 TRANS Cust'!O499+'FR-16(7)(v)-11 DIST Demand'!O499+'FR-16(7)(v)-12 DIST Energy'!O499+'FR-16(7)(v)-13 DIST Cust'!O499","v":113},{"$f":"'FR-16(7)(v)-3 PROD Demand'!P499+'FR-16(7)(v)-4 PROD Energy'!P499+'FR-16(7)(v)-5 PROD Cust'!P499+'FR-16(7)(v)-7 TRANS Demand'!P499+'FR-16(7)(v)-8 TRANS Energy'!P499+'FR-16(7)(v)-9 TRANS Cust'!P499+'FR-16(7)(v)-11 DIST Demand'!P499+'FR-16(7)(v)-12 DIST Energy'!P499+'FR-16(7)(v)-13 DIST Cust'!P499","v":0},{"$f":"'FR-16(7)(v)-3 PROD Demand'!Q499+'FR-16(7)(v)-4 PROD Energy'!Q499+'FR-16(7)(v)-5 PROD Cust'!Q499+'FR-16(7)(v)-7 TRANS Demand'!Q499+'FR-16(7)(v)-8 TRANS Energy'!Q499+'FR-16(7)(v)-9 TRANS Cust'!Q499+'FR-16(7)(v)-11 DIST Demand'!Q499+'FR-16(7)(v)-12 DIST Energy'!Q499+'FR-16(7)(v)-13 DIST Cust'!Q499","v":69},492981,0]
[56,null,{"$f":"'FR-16(7)(v)-1 Functional'!C500","v":"ELIMINATE REV & EXP - DSM RIDER"},{"$f":"'FR-16(7)(v)-1 Functional'!D500","v":"K405"},null,{"$f":"'FR-16(7)(v)-1 Functional'!F500","v":0},{"$f":"'FR-16(7)(v)-3 PROD Demand'!G500+'FR-16(7)(v)-4 PROD Energy'!G500+'FR-16(7)(v)-5 PROD Cust'!G500+'FR-16(7)(v)-7 TRANS Demand'!G500+'FR-16(7)(v)-8 TRANS Energy'!G500+'FR-16(7)(v)-9 TRANS Cust'!G500+'FR-16(7)(v)-11 DIST Demand'!G500+'FR-16(7)(v)-12 DIST Energy'!G500+'FR-16(7)(v)-13 DIST Cust'!G500","v":0},{"$f":"'FR-16(7)(v)-3 PROD Demand'!H500+'FR-16(7)(v)-4 PROD Energy'!H500+'FR-16(7)(v)-5 PROD Cust'!H500+'FR-16(7)(v)-7 TRANS Demand'!H500+'FR-16(7)(v)-8 TRANS Energy'!H500+'FR-16(7)(v)-9 TRANS Cust'!H500+'FR-16(7)(v)-11 DIST Demand'!H500+'FR-16(7)(v)-12 DIST Energy'!H500+'FR-16(7)(v)-13 DIST Cust'!H500","v":0},{"$f":"'FR-16(7)(v)-3 PROD Demand'!I500+'FR-16(7)(v)-4 PROD Energy'!I500+'FR-16(7)(v)-5 PROD Cust'!I500+'FR-16(7)(v)-7 TRANS Demand'!I500+'FR-16(7)(v)-8 TRANS Energy'!I500+'FR-16(7)(v)-9 TRANS Cust'!I500+'FR-16(7)(v)-11 DIST Demand'!I500+'FR-16(7)(v)-12 DIST Energy'!I500+'FR-16(7)(v)-13 DIST Cust'!I500","v":0},{"$f":"'FR-16(7)(v)-3 PROD Demand'!J500+'FR-16(7)(v)-4 PROD Energy'!J500+'FR-16(7)(v)-5 PROD Cust'!J500+'FR-16(7)(v)-7 TRANS Demand'!J500+'FR-16(7)(v)-8 TRANS Energy'!J500+'FR-16(7)(v)-9 TRANS Cust'!J500+'FR-16(7)(v)-11 DIST Demand'!J500+'FR-16(7)(v)-12 DIST Energy'!J500+'FR-16(7)(v)-13 DIST Cust'!J500","v":0},{"$f":"'FR-16(7)(v)-3 PROD Demand'!K500+'FR-16(7)(v)-4 PROD Energy'!K500+'FR-16(7)(v)-5 PROD Cust'!K500+'FR-16(7)(v)-7 TRANS Demand'!K500+'FR-16(7)(v)-8 TRANS Energy'!K500+'FR-16(7)(v)-9 TRANS Cust'!K500+'FR-16(7)(v)-11 DIST Demand'!K500+'FR-16(7)(v)-12 DIST Energy'!K500+'FR-16(7)(v)-13 DIST Cust'!K500","v":0},{"$f":"'FR-16(7)(v)-3 PROD Demand'!L500+'FR-16(7)(v)-4 PROD Energy'!L500+'FR-16(7)(v)-5 PROD Cust'!L500+'FR-16(7)(v)-7 TRANS Demand'!L500+'FR-16(7)(v)-8 TRANS Energy'!L500+'FR-16(7)(v)-9 TRANS Cust'!L500+'FR-16(7)(v)-11 DIST Demand'!L500+'FR-16(7)(v)-12 DIST Energy'!L500+'FR-16(7)(v)-13 DIST Cust'!L500","v":0},{"$f":"'FR-16(7)(v)-3 PROD Demand'!M500+'FR-16(7)(v)-4 PROD Energy'!M500+'FR-16(7)(v)-5 PROD Cust'!M500+'FR-16(7)(v)-7 TRANS Demand'!M500+'FR-16(7)(v)-8 TRANS Energy'!M500+'FR-16(7)(v)-9 TRANS Cust'!M500+'FR-16(7)(v)-11 DIST Demand'!M500+'FR-16(7)(v)-12 DIST Energy'!M500+'FR-16(7)(v)-13 DIST Cust'!M500","v":0},{"$f":"'FR-16(7)(v)-3 PROD Demand'!N500+'FR-16(7)(v)-4 PROD Energy'!N500+'FR-16(7)(v)-5 PROD Cust'!N500+'FR-16(7)(v)-7 TRANS Demand'!N500+'FR-16(7)(v)-8 TRANS Energy'!N500+'FR-16(7)(v)-9 TRANS Cust'!N500+'FR-16(7)(v)-11 DIST Demand'!N500+'FR-16(7)(v)-12 DIST Energy'!N500+'FR-16(7)(v)-13 DIST Cust'!N500","v":0},{"$f":"'FR-16(7)(v)-3 PROD Demand'!O500+'FR-16(7)(v)-4 PROD Energy'!O500+'FR-16(7)(v)-5 PROD Cust'!O500+'FR-16(7)(v)-7 TRANS Demand'!O500+'FR-16(7)(v)-8 TRANS Energy'!O500+'FR-16(7)(v)-9 TRANS Cust'!O500+'FR-16(7)(v)-11 DIST Demand'!O500+'FR-16(7)(v)-12 DIST Energy'!O500+'FR-16(7)(v)-13 DIST Cust'!O500","v":0},{"$f":"'FR-16(7)(v)-3 PROD Demand'!P500+'FR-16(7)(v)-4 PROD Energy'!P500+'FR-16(7)(v)-5 PROD Cust'!P500+'FR-16(7)(v)-7 TRANS Demand'!P500+'FR-16(7)(v)-8 TRANS Energy'!P500+'FR-16(7)(v)-9 TRANS Cust'!P500+'FR-16(7)(v)-11 DIST Demand'!P500+'FR-16(7)(v)-12 DIST Energy'!P500+'FR-16(7)(v)-13 DIST Cust'!P500","v":0},{"$f":"'FR-16(7)(v)-3 PROD Demand'!Q500+'FR-16(7)(v)-4 PROD Energy'!Q500+'FR-16(7)(v)-5 PROD Cust'!Q500+'FR-16(7)(v)-7 TRANS Demand'!Q500+'FR-16(7)(v)-8 TRANS Energy'!Q500+'FR-16(7)(v)-9 TRANS Cust'!Q500+'FR-16(7)(v)-11 DIST Demand'!Q500+'FR-16(7)(v)-12 DIST Energy'!Q500+'FR-16(7)(v)-13 DIST Cust'!Q500","v":0},0,0]
[57,null,{"$f":"'FR-16(7)(v)-1 Functional'!C501","v":"SALE OF A/R"},{"$f":"'FR-16(7)(v)-1 Functional'!D501","v":"K411"},null,{"$f":"'FR-16(7)(v)-1 Functional'!F501","v":433029},{"$f":"'FR-16(7)(v)-3 PROD Demand'!G501+'FR-16(7)(v)-4 PROD Energy'!G501+'FR-16(7)(v)-5 PROD Cust'!G501+'FR-16(7)(v)-7 TRANS Demand'!G501+'FR-16(7)(v)-8 TRANS Energy'!G501+'FR-16(7)(v)-9 TRANS Cust'!G501+'FR-16(7)(v)-11 DIST Demand'!G501+'FR-16(7)(v)-12 DIST Energy'!G501+'FR-16(7)(v)-13 DIST Cust'!G501","v":394553},{"$f":"'FR-16(7)(v)-3 PROD Demand'!H501+'FR-16(7)(v)-4 PROD Energy'!H501+'FR-16(7)(v)-5 PROD Cust'!H501+'FR-16(7)(v)-7 TRANS Demand'!H501+'FR-16(7)(v)-8 TRANS Energy'!H501+'FR-16(7)(v)-9 TRANS Cust'!H501+'FR-16(7)(v)-11 DIST Demand'!H501+'FR-16(7)(v)-12 DIST Energy'!H501+'FR-16(7)(v)-13 DIST Cust'!H501","v":18711},{"$f":"'FR-16(7)(v)-3 PROD Demand'!I501+'FR-16(7)(v)-4 PROD Energy'!I501+'FR-16(7)(v)-5 PROD Cust'!I501+'FR-16(7)(v)-7 TRANS Demand'!I501+'FR-16(7)(v)-8 TRANS Energy'!I501+'FR-16(7)(v)-9 TRANS Cust'!I501+'FR-16(7)(v)-11 DIST Demand'!I501+'FR-16(7)(v)-12 DIST Energy'!I501+'FR-16(7)(v)-13 DIST Cust'!I501","v":121},{"$f":"'FR-16(7)(v)-3 PROD Demand'!J501+'FR-16(7)(v)-4 PROD Energy'!J501+'FR-16(7)(v)-5 PROD Cust'!J501+'FR-16(7)(v)-7 TRANS Demand'!J501+'FR-16(7)(v)-8 TRANS Energy'!J501+'FR-16(7)(v)-9 TRANS Cust'!J501+'FR-16(7)(v)-11 DIST Demand'!J501+'FR-16(7)(v)-12 DIST Energy'!J501+'FR-16(7)(v)-13 DIST Cust'!J501","v":126},{"$f":"'FR-16(7)(v)-3 PROD Demand'!K501+'FR-16(7)(v)-4 PROD Energy'!K501+'FR-16(7)(v)-5 PROD Cust'!K501+'FR-16(7)(v)-7 TRANS Demand'!K501+'FR-16(7)(v)-8 TRANS Energy'!K501+'FR-16(7)(v)-9 TRANS Cust'!K501+'FR-16(7)(v)-11 DIST Demand'!K501+'FR-16(7)(v)-12 DIST Energy'!K501+'FR-16(7)(v)-13 DIST Cust'!K501","v":4},{"$f":"'FR-16(7)(v)-3 PROD Demand'!L501+'FR-16(7)(v)-4 PROD Energy'!L501+'FR-16(7)(v)-5 PROD Cust'!L501+'FR-16(7)(v)-7 TRANS Demand'!L501+'FR-16(7)(v)-8 TRANS Energy'!L501+'FR-16(7)(v)-9 TRANS Cust'!L501+'FR-16(7)(v)-11 DIST Demand'!L501+'FR-16(7)(v)-12 DIST Energy'!L501+'FR-16(7)(v)-13 DIST Cust'!L501","v":9717},{"$f":"'FR-16(7)(v)-3 PROD Demand'!M501+'FR-16(7)(v)-4 PROD Energy'!M501+'FR-16(7)(v)-5 PROD Cust'!M501+'FR-16(7)(v)-7 TRANS Demand'!M501+'FR-16(7)(v)-8 TRANS Energy'!M501+'FR-16(7)(v)-9 TRANS Cust'!M501+'FR-16(7)(v)-11 DIST Demand'!M501+'FR-16(7)(v)-12 DIST Energy'!M501+'FR-16(7)(v)-13 DIST Cust'!M501","v":6206},{"$f":"'FR-16(7)(v)-3 PROD Demand'!N501+'FR-16(7)(v)-4 PROD Energy'!N501+'FR-16(7)(v)-5 PROD Cust'!N501+'FR-16(7)(v)-7 TRANS Demand'!N501+'FR-16(7)(v)-8 TRANS Energy'!N501+'FR-16(7)(v)-9 TRANS Cust'!N501+'FR-16(7)(v)-11 DIST Demand'!N501+'FR-16(7)(v)-12 DIST Energy'!N501+'FR-16(7)(v)-13 DIST Cust'!N501","v":282},{"$f":"'FR-16(7)(v)-3 PROD Demand'!O501+'FR-16(7)(v)-4 PROD Energy'!O501+'FR-16(7)(v)-5 PROD Cust'!O501+'FR-16(7)(v)-7 TRANS Demand'!O501+'FR-16(7)(v)-8 TRANS Energy'!O501+'FR-16(7)(v)-9 TRANS Cust'!O501+'FR-16(7)(v)-11 DIST Demand'!O501+'FR-16(7)(v)-12 DIST Energy'!O501+'FR-16(7)(v)-13 DIST Cust'!O501","v":2915},{"$f":"'FR-16(7)(v)-3 PROD Demand'!P501+'FR-16(7)(v)-4 PROD Energy'!P501+'FR-16(7)(v)-5 PROD Cust'!P501+'FR-16(7)(v)-7 TRANS Demand'!P501+'FR-16(7)(v)-8 TRANS Energy'!P501+'FR-16(7)(v)-9 TRANS Cust'!P501+'FR-16(7)(v)-11 DIST Demand'!P501+'FR-16(7)(v)-12 DIST Energy'!P501+'FR-16(7)(v)-13 DIST Cust'!P501","v":390},{"$f":"'FR-16(7)(v)-3 PROD Demand'!Q501+'FR-16(7)(v)-4 PROD Energy'!Q501+'FR-16(7)(v)-5 PROD Cust'!Q501+'FR-16(7)(v)-7 TRANS Demand'!Q501+'FR-16(7)(v)-8 TRANS Energy'!Q501+'FR-16(7)(v)-9 TRANS Cust'!Q501+'FR-16(7)(v)-11 DIST Demand'!Q501+'FR-16(7)(v)-12 DIST Energy'!Q501+'FR-16(7)(v)-13 DIST Cust'!Q501","v":4},433029,0]
[58,null,{"$f":"'FR-16(7)(v)-1 Functional'!C502","v":"ELIMINATE MISC EXPENSE"},{"$f":"'FR-16(7)(v)-1 Functional'!D502","v":"K405"},null,{"$f":"'FR-16(7)(v)-1 Functional'!F502","v":-1190},{"$f":"'FR-16(7)(v)-3 PROD Demand'!G502+'FR-16(7)(v)-4 PROD Energy'!G502+'FR-16(7)(v)-5 PROD Cust'!G502+'FR-16(7)(v)-7 TRANS Demand'!G502+'FR-16(7)(v)-8 TRANS Energy'!G502+'FR-16(7)(v)-9 TRANS Cust'!G502+'FR-16(7)(v)-11 DIST Demand'!G502+'FR-16(7)(v)-12 DIST Energy'!G502+'FR-16(7)(v)-13 DIST Cust'!G502","v":-1075},{"$f":"'FR-16(7)(v)-3 PROD Demand'!H502+'FR-16(7)(v)-4 PROD Energy'!H502+'FR-16(7)(v)-5 PROD Cust'!H502+'FR-16(7)(v)-7 TRANS Demand'!H502+'FR-16(7)(v)-8 TRANS Energy'!H502+'FR-16(7)(v)-9 TRANS Cust'!H502+'FR-16(7)(v)-11 DIST Demand'!H502+'FR-16(7)(v)-12 DIST Energy'!H502+'FR-16(7)(v)-13 DIST Cust'!H502","v":-108},{"$f":"'FR-16(7)(v)-3 PROD Demand'!I502+'FR-16(7)(v)-4 PROD Energy'!I502+'FR-16(7)(v)-5 PROD Cust'!I502+'FR-16(7)(v)-7 TRANS Demand'!I502+'FR-16(7)(v)-8 TRANS Energy'!I502+'FR-16(7)(v)-9 TRANS Cust'!I502+'FR-16(7)(v)-11 DIST Demand'!I502+'FR-16(7)(v)-12 DIST Energy'!I502+'FR-16(7)(v)-13 DIST Cust'!I502","v":-1},{"$f":"'FR-16(7)(v)-3 PROD Demand'!J502+'FR-16(7)(v)-4 PROD Energy'!J502+'FR-16(7)(v)-5 PROD Cust'!J502+'FR-16(7)(v)-7 TRANS Demand'!J502+'FR-16(7)(v)-8 TRANS Energy'!J502+'FR-16(7)(v)-9 TRANS Cust'!J502+'FR-16(7)(v)-11 DIST Demand'!J502+'FR-16(7)(v)-12 DIST Energy'!J502+'FR-16(7)(v)-13 DIST Cust'!J502","v":-1},{"$f":"'FR-16(7)(v)-3 PROD Demand'!K502+'FR-16(7)(v)-4 PROD Energy'!K502+'FR-16(7)(v)-5 PROD Cust'!K502+'FR-16(7)(v)-7 TRANS Demand'!K502+'FR-16(7)(v)-8 TRANS Energy'!K502+'FR-16(7)(v)-9 TRANS Cust'!K502+'FR-16(7)(v)-11 DIST Demand'!K502+'FR-16(7)(v)-12 DIST Energy'!K502+'FR-16(7)(v)-13 DIST Cust'!K502","v":0},{"$f":"'FR-16(7)(v)-3 PROD Demand'!L502+'FR-16(7)(v)-4 PROD Energy'!L502+'FR-16(7)(v)-5 PROD Cust'!L502+'FR-16(7)(v)-7 TRANS Demand'!L502+'FR-16(7)(v)-8 TRANS Energy'!L502+'FR-16(7)(v)-9 TRANS Cust'!L502+'FR-16(7)(v)-11 DIST Demand'!L502+'FR-16(7)(v)-12 DIST Energy'!L502+'FR-16(7)(v)-13 DIST Cust'!L502","v":-1},{"$f":"'FR-16(7)(v)-3 PROD Demand'!M502+'FR-16(7)(v)-4 PROD Energy'!M502+'FR-16(7)(v)-5 PROD Cust'!M502+'FR-16(7)(v)-7 TRANS Demand'!M502+'FR-16(7)(v)-8 TRANS Energy'!M502+'FR-16(7)(v)-9 TRANS Cust'!M502+'FR-16(7)(v)-11 DIST Demand'!M502+'FR-16(7)(v)-12 DIST Energy'!M502+'FR-16(7)(v)-13 DIST Cust'!M502","v":0},{"$f":"'FR-16(7)(v)-3 PROD Demand'!N502+'FR-16(7)(v)-4 PROD Energy'!N502+'FR-16(7)(v)-5 PROD Cust'!N502+'FR-16(7)(v)-7 TRANS Demand'!N502+'FR-16(7)(v)-8 TRANS Energy'!N502+'FR-16(7)(v)-9 TRANS Cust'!N502+'FR-16(7)(v)-11 DIST Demand'!N502+'FR-16(7)(v)-12 DIST Energy'!N502+'FR-16(7)(v)-13 DIST Cust'!N502","v":0},{"$f":"'FR-16(7)(v)-3 PROD Demand'!O502+'FR-16(7)(v)-4 PROD Energy'!O502+'FR-16(7)(v)-5 PROD Cust'!O502+'FR-16(7)(v)-7 TRANS Demand'!O502+'FR-16(7)(v)-8 TRANS Energy'!O502+'FR-16(7)(v)-9 TRANS Cust'!O502+'FR-16(7)(v)-11 DIST Demand'!O502+'FR-16(7)(v)-12 DIST Energy'!O502+'FR-16(7)(v)-13 DIST Cust'!O502","v":0},{"$f":"'FR-16(7)(v)-3 PROD Demand'!P502+'FR-16(7)(v)-4 PROD Energy'!P502+'FR-16(7)(v)-5 PROD Cust'!P502+'FR-16(7)(v)-7 TRANS Demand'!P502+'FR-16(7)(v)-8 TRANS Energy'!P502+'FR-16(7)(v)-9 TRANS Cust'!P502+'FR-16(7)(v)-11 DIST Demand'!P502+'FR-16(7)(v)-12 DIST Energy'!P502+'FR-16(7)(v)-13 DIST Cust'!P502","v":-4},{"$f":"'FR-16(7)(v)-3 PROD Demand'!Q502+'FR-16(7)(v)-4 PROD Energy'!Q502+'FR-16(7)(v)-5 PROD Cust'!Q502+'FR-16(7)(v)-7 TRANS Demand'!Q502+'FR-16(7)(v)-8 TRANS Energy'!Q502+'FR-16(7)(v)-9 TRANS Cust'!Q502+'FR-16(7)(v)-11 DIST Demand'!Q502+'FR-16(7)(v)-12 DIST Energy'!Q502+'FR-16(7)(v)-13 DIST Cust'!Q502","v":0},-1190,0]
[59,null,{"$f":"'FR-16(7)(v)-1 Functional'!C503","v":"  TOTAL CUSTOMER ACCT EXPENSE"},null," ",{"$f":"SUM(F494:F502)","v":4160730},3389726,724246,4208,{"$f":"SUM(J494:J502)","v":5750},803,25470,-2101,990,-380,11409,609,4160730,0]
[]
[{"$f":"co_name","v":"DUKE ENERGY KENTUCKY, INC."},null,null,null,null,null,null,null,null,null,null,null,null,null,null,null,null,{"$f":"R1","v":"FR-16(7)(v)-14"}]
[{"$f":"$A$2","v":"TOTAL CLASS ALLOCATED - ELECTRIC COST OF SERVICE"},null,null,null,null,null,null,null,null,null,null,null,null,null,null,null,null,{"$f":"R2","v":"WITNESS RESPONSIBLE:"}]
[{"$f":"case_name","v":"CASE NO: 2019-00271"},null,null,null,null,null,null,null,null,null,null,null,null,null,null,null,null,{"$f":"Witness","v":"JAMES E. ZIOLKOWSKI"}]
[{"$f":"data_filing","v":"DATA: 12 MONTHS ACTUAL  & 0 MONTHS ESTIMATED"},null,null,null,null,null,null,null,null,null,null,null,null,null,null,null,null,{"$f":"\"PAGE \"&Pages2-6&\" OF \"&Pages2","v":"PAGE 9 OF 15"}]
[{"$f":"type","v":"TYPE OF FILING: \"X\" ORIGINAL   UPDATED    REVISED  "}]
[]
[null,null,null,null,null,{"$f":"F$7","v":"TOTAL"},null,{"$f":"H$7","v":"DS"},{"$f":"I$7","v":"GSFL"},{"$f":"J$7","v":"EH"},{"$f":"K$7","v":"SP"},"DT SEC","DT PRI","DP","TT",null,"OTHER"]
["LINE",null,null,null,null,{"$f":"F$8","v":"CLASS"},{"$f":"G$8","v":"RS"},{"$f":"H$8","v":"SECONDARY"},{"$f":"I$8","v":"SECONDARY"},{"$f":"J$8","v":"SECONDARY"},{"$f":"K$8","v":"SECONDARY"},"SECONDARY","PRIMARY","PRIMARY","TRANSMISSION","LT","WATER",{"$f":"R8","v":"TOTAL"},"ALL"]
["NO.","O&M EXPENSES",null,"ALLO",null,{"$f":"F$9","v":"ALLOCATED"},{"$f":"G$9","v":"RESIDENTIAL"},{"$f":"H$9","v":"DISTRIBUTION"},{"$f":"I$9","v":"DISTRIBUTION"},{"$f":"J$9","v":"DISTRIBUTION"},{"$f":"K$9","v":"DISTRIBUTION"},"DISTRIBUTION","DISTRIBUTION","DISTRIBUTION","TIME OF DAY","LIGHTING","PUMPING",{"$f":"R9","v":"AT ISSUE"},"OTHER"]
[null,null,"Schedule 6.1",null,null,null,{"$f":"G$10","v":3},{"$f":"H$10","v":4},{"$f":"I$10","v":5},{"$f":"J$10","v":6},{"$f":"K$10","v":7},8,9,10,11,12,13,null," "]
[1,"CUSTOMER SERVICE & INFORMATION"]
[2,null,{"$f":"'FR-16(7)(v)-1 Functional'!C516","v":"TOTAL CUST SERVICE & INFO"},{"$f":"'FR-16(7)(v)-1 Functional'!D516","v":"K405"},null,{"$f":"'FR-16(7)(v)-1 Functional'!F516","v":604867},{"$f":"'FR-16(7)(v)-3 PROD Demand'!G516+'FR-16(7)(v)-4 PROD Energy'!G516+'FR-16(7)(v)-5 PROD Cust'!G516+'FR-16(7)(v)-7 TRANS Demand'!G516+'FR-16(7)(v)-8 TRANS Energy'!G516+'FR-16(7)(v)-9 TRANS Cust'!G516+'FR-16(7)(v)-11 DIST Demand'!G516+'FR-16(7)(v)-12 DIST Energy'!G516+'FR-16(7)(v)-13 DIST Cust'!G516","v":545555},{"$f":"'FR-16(7)(v)-3 PROD Demand'!H516+'FR-16(7)(v)-4 PROD Energy'!H516+'FR-16(7)(v)-5 PROD Cust'!H516+'FR-16(7)(v)-7 TRANS Demand'!H516+'FR-16(7)(v)-8 TRANS Energy'!H516+'FR-16(7)(v)-9 TRANS Cust'!H516+'FR-16(7)(v)-11 DIST Demand'!H516+'FR-16(7)(v)-12 DIST Energy'!H516+'FR-16(7)(v)-13 DIST Cust'!H516","v":55103},{"$f":"'FR-16(7)(v)-3 PROD Demand'!I516+'FR-16(7)(v)-4 PROD Energy'!I516+'FR-16(7)(v)-5 PROD Cust'!I516+'FR-16(7)(v)-7 TRANS Demand'!I516+'FR-16(7)(v)-8 TRANS Energy'!I516+'FR-16(7)(v)-9 TRANS Cust'!I516+'FR-16(7)(v)-11 DIST Demand'!I516+'FR-16(7)(v)-12 DIST Energy'!I516+'FR-16(7)(v)-13 DIST Cust'!I516","v":732},{"$f":"'FR-16(7)(v)-3 PROD Demand'!J516+'FR-16(7)(v)-4 PROD Energy'!J516+'FR-16(7)(v)-5 PROD Cust'!J516+'FR-16(7)(v)-7 TRANS Demand'!J516+'FR-16(7)(v)-8 TRANS Energy'!J516+'FR-16(7)(v)-9 TRANS Cust'!J516+'FR-16(7)(v)-11 DIST Demand'!J516+'FR-16(7)(v)-12 DIST Energy'!J516+'FR-16(7)(v)-13 DIST Cust'!J516","v":436},{"$f":"'FR-16(7)(v)-3 PROD Demand'!K516+'FR-16(7)(v)-4 PROD Energy'!K516+'FR-16(7)(v)-5 PROD Cust'!K516+'FR-16(7)(v)-7 TRANS Demand'!K516+'FR-16(7)(v)-8 TRANS Energy'!K516+'FR-16(7)(v)-9 TRANS Cust'!K516+'FR-16(7)(v)-11 DIST Demand'!K516+'FR-16(7)(v)-12 DIST Energy'!K516+'FR-16(7)(v)-13 DIST Cust'!K516","v":60},{"$f":"'FR-16(7)(v)-3 PROD Demand'!L516+'FR-16(7)(v)-4 PROD Energy'!L516+'FR-16(7)(v)-5 PROD Cust'!L516+'FR-16(7)(v)-7 TRANS Demand'!L516+'FR-16(7)(v)-8 TRANS Energy'!L516+'FR-16(7)(v)-9 TRANS Cust'!L516+'FR-16(7)(v)-11 DIST Demand'!L516+'FR-16(7)(v)-12 DIST Energy'!L516+'FR-16(7)(v)-13 DIST Cust'!L516","v":677},{"$f":"'FR-16(7)(v)-3 PROD Demand'!M516+'FR-16(7)(v)-4 PROD Energy'!M516+'FR-16(7)(v)-5 PROD Cust'!M516+'FR-16(7)(v)-7 TRANS Demand'!M516+'FR-16(7)(v)-8 TRANS Energy'!M516+'FR-16(7)(v)-9 TRANS Cust'!M516+'FR-16(7)(v)-11 DIST Demand'!M516+'FR-16(7)(v)-12 DIST Energy'!M516+'FR-16(7)(v)-13 DIST Cust'!M516","v":157},{"$f":"'FR-16(7)(v)-3 PROD Demand'!N516+'FR-16(7)(v)-4 PROD Energy'!N516+'FR-16(7)(v)-5 PROD Cust'!N516+'FR-16(7)(v)-7 TRANS Demand'!N516+'FR-16(7)(v)-8 TRANS Energy'!N516+'FR-16(7)(v)-9 TRANS Cust'!N516+'FR-16(7)(v)-11 DIST Demand'!N516+'FR-16(7)(v)-12 DIST Energy'!N516+'FR-16(7)(v)-13 DIST Cust'!N516","v":42},{"$f":"'FR-16(7)(v)-3 PROD Demand'!O516+'FR-16(7)(v)-4 PROD Energy'!O516+'FR-16(7)(v)-5 PROD Cust'!O516+'FR-16(7)(v)-7 TRANS Demand'!O516+'FR-16(7)(v)-8 TRANS Energy'!O516+'FR-16(7)(v)-9 TRANS Cust'!O516+'FR-16(7)(v)-11 DIST Demand'!O516+'FR-16(7)(v)-12 DIST Energy'!O516+'FR-16(7)(v)-13 DIST Cust'!O516","v":67},{"$f":"'FR-16(7)(v)-3 PROD Demand'!P516+'FR-16(7)(v)-4 PROD Energy'!P516+'FR-16(7)(v)-5 PROD Cust'!P516+'FR-16(7)(v)-7 TRANS Demand'!P516+'FR-16(7)(v)-8 TRANS Energy'!P516+'FR-16(7)(v)-9 TRANS Cust'!P516+'FR-16(7)(v)-11 DIST Demand'!P516+'FR-16(7)(v)-12 DIST Energy'!P516+'FR-16(7)(v)-13 DIST Cust'!P516","v":1990},{"$f":"'FR-16(7)(v)-3 PROD Demand'!Q516+'FR-16(7)(v)-4 PROD Energy'!Q516+'FR-16(7)(v)-5 PROD Cust'!Q516+'FR-16(7)(v)-7 TRANS Demand'!Q516+'FR-16(7)(v)-8 TRANS Energy'!Q516+'FR-16(7)(v)-9 TRANS Cust'!Q516+'FR-16(7)(v)-11 DIST Demand'!Q516+'FR-16(7)(v)-12 DIST Energy'!Q516+'FR-16(7)(v)-13 DIST Cust'!Q516","v":48},{"$f":"SUM(G516:Q516)","v":604867},{"$f":"F516-R516","v":0}]
[3,null,{"$f":"'FR-16(7)(v)-1 Functional'!C517","v":"INFORMATIONAL & INSTRUCTIONAL ADV"},{"$f":"'FR-16(7)(v)-1 Functional'!D517","v":"K405"},null,{"$f":"'FR-16(7)(v)-1 Functional'!F517","v":0},{"$f":"'FR-16(7)(v)-3 PROD Demand'!G517+'FR-16(7)(v)-4 PROD Energy'!G517+'FR-16(7)(v)-5 PROD Cust'!G517+'FR-16(7)(v)-7 TRANS Demand'!G517+'FR-16(7)(v)-8 TRANS Energy'!G517+'FR-16(7)(v)-9 TRANS Cust'!G517+'FR-16(7)(v)-11 DIST Demand'!G517+'FR-16(7)(v)-12 DIST Energy'!G517+'FR-16(7)(v)-13 DIST Cust'!G517","v":0},{"$f":"'FR-16(7)(v)-3 PROD Demand'!H517+'FR-16(7)(v)-4 PROD Energy'!H517+'FR-16(7)(v)-5 PROD Cust'!H517+'FR-16(7)(v)-7 TRANS Demand'!H517+'FR-16(7)(v)-8 TRANS Energy'!H517+'FR-16(7)(v)-9 TRANS Cust'!H517+'FR-16(7)(v)-11 DIST Demand'!H517+'FR-16(7)(v)-12 DIST Energy'!H517+'FR-16(7)(v)-13 DIST Cust'!H517","v":0},{"$f":"'FR-16(7)(v)-3 PROD Demand'!I517+'FR-16(7)(v)-4 PROD Energy'!I517+'FR-16(7)(v)-5 PROD Cust'!I517+'FR-16(7)(v)-7 TRANS Demand'!I517+'FR-16(7)(v)-8 TRANS Energy'!I517+'FR-16(7)(v)-9 TRANS Cust'!I517+'FR-16(7)(v)-11 DIST Demand'!I517+'FR-16(7)(v)-12 DIST Energy'!I517+'FR-16(7)(v)-13 DIST Cust'!I517","v":0},{"$f":"'FR-16(7)(v)-3 PROD Demand'!J517+'FR-16(7)(v)-4 PROD Energy'!J517+'FR-16(7)(v)-5 PROD Cust'!J517+'FR-16(7)(v)-7 TRANS Demand'!J517+'FR-16(7)(v)-8 TRANS Energy'!J517+'FR-16(7)(v)-9 TRANS Cust'!J517+'FR-16(7)(v)-11 DIST Demand'!J517+'FR-16(7)(v)-12 DIST Energy'!J517+'FR-16(7)(v)-13 DIST Cust'!J517","v":0},{"$f":"'FR-16(7)(v)-3 PROD Demand'!K517+'FR-16(7)(v)-4 PROD Energy'!K517+'FR-16(7)(v)-5 PROD Cust'!K517+'FR-16(7)(v)-7 TRANS Demand'!K517+'FR-16(7)(v)-8 TRANS Energy'!K517+'FR-16(7)(v)-9 TRANS Cust'!K517+'FR-16(7)(v)-11 DIST Demand'!K517+'FR-16(7)(v)-12 DIST Energy'!K517+'FR-16(7)(v)-13 DIST Cust'!K517","v":0},{"$f":"'FR-16(7)(v)-3 PROD Demand'!L517+'FR-16(7)(v)-4 PROD Energy'!L517+'FR-16(7)(v)-5 PROD Cust'!L517+'FR-16(7)(v)-7 TRANS Demand'!L517+'FR-16(7)(v)-8 TRANS Energy'!L517+'FR-16(7)(v)-9 TRANS Cust'!L517+'FR-16(7)(v)-11 DIST Demand'!L517+'FR-16(7)(v)-12 DIST Energy'!L517+'FR-16(7)(v)-13 DIST Cust'!L517","v":0},{"$f":"'FR-16(7)(v)-3 PROD Demand'!M517+'FR-16(7)(v)-4 PROD Energy'!M517+'FR-16(7)(v)-5 PROD Cust'!M517+'FR-16(7)(v)-7 TRANS Demand'!M517+'FR-16(7)(v)-8 TRANS Energy'!M517+'FR-16(7)(v)-9 TRANS Cust'!M517+'FR-16(7)(v)-11 DIST Demand'!M517+'FR-16(7)(v)-12 DIST Energy'!M517+'FR-16(7)(v)-13 DIST Cust'!M517","v":0},{"$f":"'FR-16(7)(v)-3 PROD Demand'!N517+'FR-16(7)(v)-4 PROD Energy'!N517+'FR-16(7)(v)-5 PROD Cust'!N517+'FR-16(7)(v)-7 TRANS Demand'!N517+'FR-16(7)(v)-8 TRANS Energy'!N517+'FR-16(7)(v)-9 TRANS Cust'!N517+'FR-16(7)(v)-11 DIST Demand'!N517+'FR-16(7)(v)-12 DIST Energy'!N517+'FR-16(7)(v)-13 DIST Cust'!N517","v":0},{"$f":"'FR-16(7)(v)-3 PROD Demand'!O517+'FR-16(7)(v)-4 PROD Energy'!O517+'FR-16(7)(v)-5 PROD Cust'!O517+'FR-16(7)(v)-7 TRANS Demand'!O517+'FR-16(7)(v)-8 TRANS Energy'!O517+'FR-16(7)(v)-9 TRANS Cust'!O517+'FR-16(7)(v)-11 DIST Demand'!O517+'FR-16(7)(v)-12 DIST Energy'!O517+'FR-16(7)(v)-13 DIST Cust'!O517","v":0},{"$f":"'FR-16(7)(v)-3 PROD Demand'!P517+'FR-16(7)(v)-4 PROD Energy'!P517+'FR-16(7)(v)-5 PROD Cust'!P517+'FR-16(7)(v)-7 TRANS Demand'!P517+'FR-16(7)(v)-8 TRANS Energy'!P517+'FR-16(7)(v)-9 TRANS Cust'!P517+'FR-16(7)(v)-11 DIST Demand'!P517+'FR-16(7)(v)-12 DIST Energy'!P517+'FR-16(7)(v)-13 DIST Cust'!P517","v":0},{"$f":"'FR-16(7)(v)-3 PROD Demand'!Q517+'FR-16(7)(v)-4 PROD Energy'!Q517+'FR-16(7)(v)-5 PROD Cust'!Q517+'FR-16(7)(v)-7 TRANS Demand'!Q517+'FR-16(7)(v)-8 TRANS Energy'!Q517+'FR-16(7)(v)-9 TRANS Cust'!Q517+'FR-16(7)(v)-11 DIST Demand'!Q517+'FR-16(7)(v)-12 DIST Energy'!Q517+'FR-16(7)(v)-13 DIST Cust'!Q517","v":0},{"$f":"SUM(G517:Q517)","v":0}]
[4,null,{"$f":"'FR-16(7)(v)-1 Functional'!C518","v":"TOTAL CUSTOMER SERV. & INFO."},null," ",{"$f":"SUM(F516:F517)","v":604867},{"$f":"SUM(G516:G517)","v":545555},55103,732,{"$f":"SUM(J516:J517)","v":436},60,677,157,42,67,1990,48,604867,0]
[5]
[6,"SALES"]
[7,null,{"$f":"'FR-16(7)(v)-1 Functional'!C521","v":"SALES EXPENSE"},{"$f":"'FR-16(7)(v)-1 Functional'!D521","v":"K405"}," ",{"$f":"'FR-16(7)(v)-1 Functional'!F521","v":1497140},{"$f":"'FR-16(7)(v)-3 PROD Demand'!G521+'FR-16(7)(v)-4 PROD Energy'!G521+'FR-16(7)(v)-5 PROD Cust'!G521+'FR-16(7)(v)-7 TRANS Demand'!G521+'FR-16(7)(v)-8 TRANS Energy'!G521+'FR-16(7)(v)-9 TRANS Cust'!G521+'FR-16(7)(v)-11 DIST Demand'!G521+'FR-16(7)(v)-12 DIST Energy'!G521+'FR-16(7)(v)-13 DIST Cust'!G521","v":1350329},{"$f":"'FR-16(7)(v)-3 PROD Demand'!H521+'FR-16(7)(v)-4 PROD Energy'!H521+'FR-16(7)(v)-5 PROD Cust'!H521+'FR-16(7)(v)-7 TRANS Demand'!H521+'FR-16(7)(v)-8 TRANS Energy'!H521+'FR-16(7)(v)-9 TRANS Cust'!H521+'FR-16(7)(v)-11 DIST Demand'!H521+'FR-16(7)(v)-12 DIST Energy'!H521+'FR-16(7)(v)-13 DIST Cust'!H521","v":136389},{"$f":"'FR-16(7)(v)-3 PROD Demand'!I521+'FR-16(7)(v)-4 PROD Energy'!I521+'FR-16(7)(v)-5 PROD Cust'!I521+'FR-16(7)(v)-7 TRANS Demand'!I521+'FR-16(7)(v)-8 TRANS Energy'!I521+'FR-16(7)(v)-9 TRANS Cust'!I521+'FR-16(7)(v)-11 DIST Demand'!I521+'FR-16(7)(v)-12 DIST Energy'!I521+'FR-16(7)(v)-13 DIST Cust'!I521","v":1812},{"$f":"'FR-16(7)(v)-3 PROD Demand'!J521+'FR-16(7)(v)-4 PROD Energy'!J521+'FR-16(7)(v)-5 PROD Cust'!J521+'FR-16(7)(v)-7 TRANS Demand'!J521+'FR-16(7)(v)-8 TRANS Energy'!J521+'FR-16(7)(v)-9 TRANS Cust'!J521+'FR-16(7)(v)-11 DIST Demand'!J521+'FR-16(7)(v)-12 DIST Energy'!J521+'FR-16(7)(v)-13 DIST Cust'!J521","v":1078},{"$f":"'FR-16(7)(v)-3 PROD Demand'!K521+'FR-16(7)(v)-4 PROD Energy'!K521+'FR-16(7)(v)-5 PROD Cust'!K521+'FR-16(7)(v)-7 TRANS Demand'!K521+'FR-16(7)(v)-8 TRANS Energy'!K521+'FR-16(7)(v)-9 TRANS Cust'!K521+'FR-16(7)(v)-11 DIST Demand'!K521+'FR-16(7)(v)-12 DIST Energy'!K521+'FR-16(7)(v)-13 DIST Cust'!K521","v":150},{"$f":"'FR-16(7)(v)-3 PROD Demand'!L521+'FR-16(7)(v)-4 PROD Energy'!L521+'FR-16(7)(v)-5 PROD Cust'!L521+'FR-16(7)(v)-7 TRANS Demand'!L521+'FR-16(7)(v)-8 TRANS Energy'!L521+'FR-16(7)(v)-9 TRANS Cust'!L521+'FR-16(7)(v)-11 DIST Demand'!L521+'FR-16(7)(v)-12 DIST Energy'!L521+'FR-16(7)(v)-13 DIST Cust'!L521","v":1677},{"$f":"'FR-16(7)(v)-3 PROD Demand'!M521+'FR-16(7)(v)-4 PROD Energy'!M521+'FR-16(7)(v)-5 PROD Cust'!M521+'FR-16(7)(v)-7 TRANS Demand'!M521+'FR-16(7)(v)-8 TRANS Energy'!M521+'FR-16(7)(v)-9 TRANS Cust'!M521+'FR-16(7)(v)-11 DIST Demand'!M521+'FR-16(7)(v)-12 DIST Energy'!M521+'FR-16(7)(v)-13 DIST Cust'!M521","v":389},{"$f":"'FR-16(7)(v)-3 PROD Demand'!N521+'FR-16(7)(v)-4 PROD Energy'!N521+'FR-16(7)(v)-5 PROD Cust'!N521+'FR-16(7)(v)-7 TRANS Demand'!N521+'FR-16(7)(v)-8 TRANS Energy'!N521+'FR-16(7)(v)-9 TRANS Cust'!N521+'FR-16(7)(v)-11 DIST Demand'!N521+'FR-16(7)(v)-12 DIST Energy'!N521+'FR-16(7)(v)-13 DIST Cust'!N521","v":105},{"$f":"'FR-16(7)(v)-3 PROD Demand'!O521+'FR-16(7)(v)-4 PROD Energy'!O521+'FR-16(7)(v)-5 PROD Cust'!O521+'FR-16(7)(v)-7 TRANS Demand'!O521+'FR-16(7)(v)-8 TRANS Energy'!O521+'FR-16(7)(v)-9 TRANS Cust'!O521+'FR-16(7)(v)-11 DIST Demand'!O521+'FR-16(7)(v)-12 DIST Energy'!O521+'FR-16(7)(v)-13 DIST Cust'!O521","v":165},{"$f":"'FR-16(7)(v)-3 PROD Demand'!P521+'FR-16(7)(v)-4 PROD Energy'!P521+'FR-16(7)(v)-5 PROD Cust'!P521+'FR-16(7)(v)-7 TRANS Demand'!P521+'FR-16(7)(v)-8 TRANS Energy'!P521+'FR-16(7)(v)-9 TRANS Cust'!P521+'FR-16(7)(v)-11 DIST Demand'!P521+'FR-16(7)(v)-12 DIST Energy'!P521+'FR-16(7)(v)-13 DIST Cust'!P521","v":4926},{"$f":"'FR-16(7)(v)-3 PROD Demand'!Q521+'FR-16(7)(v)-4 PROD Energy'!Q521+'FR-16(7)(v)-5 PROD Cust'!Q521+'FR-16(7)(v)-7 TRANS Demand'!Q521+'FR-16(7)(v)-8 TRANS Energy'!Q521+'FR-16(7)(v)-9 TRANS Cust'!Q521+'FR-16(7)(v)-11 DIST Demand'!Q521+'FR-16(7)(v)-12 DIST Energy'!Q521+'FR-16(7)(v)-13 DIST Cust'!Q521","v":120},{"$f":"SUM(G521:Q521)","v":1497140},{"$f":"F521-R521","v":0}]
[8,null,{"$f":"'FR-16(7)(v)-1 Functional'!C522","v":"TOTAL SALES EXPENSE"},null," ",{"$f":"SUM(F520:F521)","v":1497140},1350329,136389,1812,{"$f":"SUM(J520:J521)","v":1078},150,1677,389,105,165,4926,120,1497140,0]
[9]
[10,"ADMINISTRATIVE & GENERAL "]
[11,null,{"$f":"'FR-16(7)(v)-1 Functional'!C525","v":"PRODUCTION - DEMAND RELATED"},{"$f":"'FR-16(7)(v)-1 Functional'!D525","v":"P349"},null,{"$f":"'FR-16(7)(v)-1 Functional'!F525","v":9286338},{"$f":"'FR-16(7)(v)-3 PROD Demand'!G525+'FR-16(7)(v)-4 PROD Energy'!G525+'FR-16(7)(v)-5 PROD Cust'!G525+'FR-16(7)(v)-7 TRANS Demand'!G525+'FR-16(7)(v)-8 TRANS Energy'!G525+'FR-16(7)(v)-9 TRANS Cust'!G525+'FR-16(7)(v)-11 DIST Demand'!G525+'FR-16(7)(v)-12 DIST Energy'!G525+'FR-16(7)(v)-13 DIST Cust'!G525","v":9286338},{"$f":"'FR-16(7)(v)-3 PROD Demand'!H525+'FR-16(7)(v)-4 PROD Energy'!H525+'FR-16(7)(v)-5 PROD Cust'!H525+'FR-16(7)(v)-7 TRANS Demand'!H525+'FR-16(7)(v)-8 TRANS Energy'!H525+'FR-16(7)(v)-9 TRANS Cust'!H525+'FR-16(7)(v)-11 DIST Demand'!H525+'FR-16(7)(v)-12 DIST Energy'!H525+'FR-16(7)(v)-13 DIST Cust'!H525","v":0},{"$f":"'FR-16(7)(v)-3 PROD Demand'!I525+'FR-16(7)(v)-4 PROD Energy'!I525+'FR-16(7)(v)-5 PROD Cust'!I525+'FR-16(7)(v)-7 TRANS Demand'!I525+'FR-16(7)(v)-8 TRANS Energy'!I525+'FR-16(7)(v)-9 TRANS Cust'!I525+'FR-16(7)(v)-11 DIST Demand'!I525+'FR-16(7)(v)-12 DIST Energy'!I525+'FR-16(7)(v)-13 DIST Cust'!I525","v":0},{"$f":"'FR-16(7)(v)-3 PROD Demand'!J525+'FR-16(7)(v)-4 PROD Energy'!J525+'FR-16(7)(v)-5 PROD Cust'!J525+'FR-16(7)(v)-7 TRANS Demand'!J525+'FR-16(7)(v)-8 TRANS Energy'!J525+'FR-16(7)(v)-9 TRANS Cust'!J525+'FR-16(7)(v)-11 DIST Demand'!J525+'FR-16(7)(v)-12 DIST Energy'!J525+'FR-16(7)(v)-13 DIST Cust'!J525","v":0},{"$f":"'FR-16(7)(v)-3 PROD Demand'!K525+'FR-16(7)(v)-4 PROD Energy'!K525+'FR-16(7)(v)-5 PROD Cust'!K525+'FR-16(7)(v)-7 TRANS Demand'!K525+'FR-16(7)(v)-8 TRANS Energy'!K525+'FR-16(7)(v)-9 TRANS Cust'!K525+'FR-16(7)(v)-11 DIST Demand'!K525+'FR-16(7)(v)-12 DIST Energy'!K525+'FR-16(7)(v)-13 DIST Cust'!K525","v":0},{"$f":"'FR-16(7)(v)-3 PROD Demand'!L525+'FR-16(7)(v)-4 PROD Energy'!L525+'FR-16(7)(v)-5 PROD Cust'!L525+'FR-16(7)(v)-7 TRANS Demand'!L525+'FR-16(7)(v)-8 TRANS Energy'!L525+'FR-16(7)(v)-9 TRANS Cust'!L525+'FR-16(7)(v)-11 DIST Demand'!L525+'FR-16(7)(v)-12 DIST Energy'!L525+'FR-16(7)(v)-13 DIST Cust'!L525","v":0},{"$f":"'FR-16(7)(v)-3 PROD Demand'!M525+'FR-16(7)(v)-4 PROD Energy'!M525+'FR-16(7)(v)-5 PROD Cust'!M525+'FR-16(7)(v)-7 TRANS Demand'!M525+'FR-16(7)(v)-8 TRANS Energy'!M525+'FR-16(7)(v)-9 TRANS Cust'!M525+'FR-16(7)(v)-11 DIST Demand'!M525+'FR-16(7)(v)-12 DIST Energy'!M525+'FR-16(7)(v)-13 DIST Cust'!M525","v":0},{"$f":"'FR-16(7)(v)-3 PROD Demand'!N525+'FR-16(7)(v)-4 PROD Energy'!N525+'FR-16(7)(v)-5 PROD Cust'!N525+'FR-16(7)(v)-7 TRANS Demand'!N525+'FR-16(7)(v)-8 TRANS Energy'!N525+'FR-16(7)(v)-9 TRANS Cust'!N525+'FR-16(7)(v)-11 DIST Demand'!N525+'FR-16(7)(v)-12 DIST Energy'!N525+'FR-16(7)(v)-13 DIST Cust'!N525","v":0},{"$f":"'FR-16(7)(v)-3 PROD Demand'!O525+'FR-16(7)(v)-4 PROD Energy'!O525+'FR-16(7)(v)-5 PROD Cust'!O525+'FR-16(7)(v)-7 TRANS Demand'!O525+'FR-16(7)(v)-8 TRANS Energy'!O525+'FR-16(7)(v)-9 TRANS Cust'!O525+'FR-16(7)(v)-11 DIST Demand'!O525+'FR-16(7)(v)-12 DIST Energy'!O525+'FR-16(7)(v)-13 DIST Cust'!O525","v":0},{"$f":"'FR-16(7)(v)-3 PROD Demand'!P525+'FR-16(7)(v)-4 PROD Energy'!P525+'FR-16(7)(v)-5 PROD Cust'!P525+'FR-16(7)(v)-7 TRANS Demand'!P525+'FR-16(7)(v)-8 TRANS Energy'!P525+'FR-16(7)(v)-9 TRANS Cust'!P525+'FR-16(7)(v)-11 DIST Demand'!P525+'FR-16(7)(v)-12 DIST Energy'!P525+'FR-16(7)(v)-13 DIST Cust'!P525","v":0},{"$f":"'FR-16(7)(v)-3 PROD Demand'!Q525+'FR-16(7)(v)-4 PROD Energy'!Q525+'FR-16(7)(v)-5 PROD Cust'!Q525+'FR-16(7)(v)-7 TRANS Demand'!Q525+'FR-16(7)(v)-8 TRANS Energy'!Q525+'FR-16(7)(v)-9 TRANS Cust'!Q525+'FR-16(7)(v)-11 DIST Demand'!Q525+'FR-16(7)(v)-12 DIST Energy'!Q525+'FR-16(7)(v)-13 DIST Cust'!Q525","v":0},{"$f":"SUM(G525:Q525)","v":9286338},{"$f":"F525-R525","v":0}]
[12,null,{"$f":"'FR-16(7)(v)-1 Functional'!C526","v":"PRODUCTION - ENERGY RELATED"},{"$f":"'FR-16(7)(v)-1 Functional'!D526","v":"E349"},null,{"$f":"'FR-16(7)(v)-1 Functional'!F526","v":10850517},{"$f":"'FR-16(7)(v)-3 PROD Demand'!G526+'FR-16(7)(v)-4 PROD Energy'!G526+'FR-16(7)(v)-5 PROD Cust'!G526+'FR-16(7)(v)-7 TRANS Demand'!G526+'FR-16(7)(v)-8 TRANS Energy'!G526+'FR-16(7)(v)-9 TRANS Cust'!G526+'FR-16(7)(v)-11 DIST Demand'!G526+'FR-16(7)(v)-12 DIST Energy'!G526+'FR-16(7)(v)-13 DIST Cust'!G526","v":4108005},{"$f":"'FR-16(7)(v)-3 PROD Demand'!H526+'FR-16(7)(v)-4 PROD Energy'!H526+'FR-16(7)(v)-5 PROD Cust'!H526+'FR-16(7)(v)-7 TRANS Demand'!H526+'FR-16(7)(v)-8 TRANS Energy'!H526+'FR-16(7)(v)-9 TRANS Cust'!H526+'FR-16(7)(v)-11 DIST Demand'!H526+'FR-16(7)(v)-12 DIST Energy'!H526+'FR-16(7)(v)-13 DIST Cust'!H526","v":2929314},{"$f":"'FR-16(7)(v)-3 PROD Demand'!I526+'FR-16(7)(v)-4 PROD Energy'!I526+'FR-16(7)(v)-5 PROD Cust'!I526+'FR-16(7)(v)-7 TRANS Demand'!I526+'FR-16(7)(v)-8 TRANS Energy'!I526+'FR-16(7)(v)-9 TRANS Cust'!I526+'FR-16(7)(v)-11 DIST Demand'!I526+'FR-16(7)(v)-12 DIST Energy'!I526+'FR-16(7)(v)-13 DIST Cust'!I526","v":16384},{"$f":"'FR-16(7)(v)-3 PROD Demand'!J526+'FR-16(7)(v)-4 PROD Energy'!J526+'FR-16(7)(v)-5 PROD Cust'!J526+'FR-16(7)(v)-7 TRANS Demand'!J526+'FR-16(7)(v)-8 TRANS Energy'!J526+'FR-16(7)(v)-9 TRANS Cust'!J526+'FR-16(7)(v)-11 DIST Demand'!J526+'FR-16(7)(v)-12 DIST Energy'!J526+'FR-16(7)(v)-13 DIST Cust'!J526","v":46549},{"$f":"'FR-16(7)(v)-3 PROD Demand'!K526+'FR-16(7)(v)-4 PROD Energy'!K526+'FR-16(7)(v)-5 PROD Cust'!K526+'FR-16(7)(v)-7 TRANS Demand'!K526+'FR-16(7)(v)-8 TRANS Energy'!K526+'FR-16(7)(v)-9 TRANS Cust'!K526+'FR-16(7)(v)-11 DIST Demand'!K526+'FR-16(7)(v)-12 DIST Energy'!K526+'FR-16(7)(v)-13 DIST Cust'!K526","v":760},{"$f":"'FR-16(7)(v)-3 PROD Demand'!L526+'FR-16(7)(v)-4 PROD Energy'!L526+'FR-16(7)(v)-5 PROD Cust'!L526+'FR-16(7)(v)-7 TRANS Demand'!L526+'FR-16(7)(v)-8 TRANS Energy'!L526+'FR-16(7)(v)-9 TRANS Cust'!L526+'FR-16(7)(v)-11 DIST Demand'!L526+'FR-16(7)(v)-12 DIST Energy'!L526+'FR-16(7)(v)-13 DIST Cust'!L526","v":1791420},{"$f":"'FR-16(7)(v)-3 PROD Demand'!M526+'FR-16(7)(v)-4 PROD Energy'!M526+'FR-16(7)(v)-5 PROD Cust'!M526+'FR-16(7)(v)-7 TRANS Demand'!M526+'FR-16(7)(v)-8 TRANS Energy'!M526+'FR-16(7)(v)-9 TRANS Cust'!M526+'FR-16(7)(v)-11 DIST Demand'!M526+'FR-16(7)(v)-12 DIST Energy'!M526+'FR-16(7)(v)-13 DIST Cust'!M526","v":1247267},{"$f":"'FR-16(7)(v)-3 PROD Demand'!N526+'FR-16(7)(v)-4 PROD Energy'!N526+'FR-16(7)(v)-5 PROD Cust'!N526+'FR-16(7)(v)-7 TRANS Demand'!N526+'FR-16(7)(v)-8 TRANS Energy'!N526+'FR-16(7)(v)-9 TRANS Cust'!N526+'FR-16(7)(v)-11 DIST Demand'!N526+'FR-16(7)(v)-12 DIST Energy'!N526+'FR-16(7)(v)-13 DIST Cust'!N526","v":58484},{"$f":"'FR-16(7)(v)-3 PROD Demand'!O526+'FR-16(7)(v)-4 PROD Energy'!O526+'FR-16(7)(v)-5 PROD Cust'!O526+'FR-16(7)(v)-7 TRANS Demand'!O526+'FR-16(7)(v)-8 TRANS Energy'!O526+'FR-16(7)(v)-9 TRANS Cust'!O526+'FR-16(7)(v)-11 DIST Demand'!O526+'FR-16(7)(v)-12 DIST Energy'!O526+'FR-16(7)(v)-13 DIST Cust'!O526","v":603723},{"$f":"'FR-16(7)(v)-3 PROD Demand'!P526+'FR-16(7)(v)-4 PROD Energy'!P526+'FR-16(7)(v)-5 PROD Cust'!P526+'FR-16(7)(v)-7 TRANS Demand'!P526+'FR-16(7)(v)-8 TRANS Energy'!P526+'FR-16(7)(v)-9 TRANS Cust'!P526+'FR-16(7)(v)-11 DIST Demand'!P526+'FR-16(7)(v)-12 DIST Energy'!P526+'FR-16(7)(v)-13 DIST Cust'!P526","v":47417},{"$f":"'FR-16(7)(v)-3 PROD Demand'!Q526+'FR-16(7)(v)-4 PROD Energy'!Q526+'FR-16(7)(v)-5 PROD Cust'!Q526+'FR-16(7)(v)-7 TRANS Demand'!Q526+'FR-16(7)(v)-8 TRANS Energy'!Q526+'FR-16(7)(v)-9 TRANS Cust'!Q526+'FR-16(7)(v)-11 DIST Demand'!Q526+'FR-16(7)(v)-12 DIST Energy'!Q526+'FR-16(7)(v)-13 DIST Cust'!Q526","v":1194},10850517,0]
[13,null,"TRANSMISSION","T349",null,{"$f":"'FR-16(7)(v)-1 Functional'!F527","v":1467447},{"$f":"'FR-16(7)(v)-3 PROD Demand'!G527+'FR-16(7)(v)-4 PROD Energy'!G527+'FR-16(7)(v)-5 PROD Cust'!G527+'FR-16(7)(v)-7 TRANS Demand'!G527+'FR-16(7)(v)-8 TRANS Energy'!G527+'FR-16(7)(v)-9 TRANS Cust'!G527+'FR-16(7)(v)-11 DIST Demand'!G527+'FR-16(7)(v)-12 DIST Energy'!G527+'FR-16(7)(v)-13 DIST Cust'!G527","v":661495},{"$f":"'FR-16(7)(v)-3 PROD Demand'!H527+'FR-16(7)(v)-4 PROD Energy'!H527+'FR-16(7)(v)-5 PROD Cust'!H527+'FR-16(7)(v)-7 TRANS Demand'!H527+'FR-16(7)(v)-8 TRANS Energy'!H527+'FR-16(7)(v)-9 TRANS Cust'!H527+'FR-16(7)(v)-11 DIST Demand'!H527+'FR-16(7)(v)-12 DIST Energy'!H527+'FR-16(7)(v)-13 DIST Cust'!H527","v":397150},{"$f":"'FR-16(7)(v)-3 PROD Demand'!I527+'FR-16(7)(v)-4 PROD Energy'!I527+'FR-16(7)(v)-5 PROD Cust'!I527+'FR-16(7)(v)-7 TRANS Demand'!I527+'FR-16(7)(v)-8 TRANS Energy'!I527+'FR-16(7)(v)-9 TRANS Cust'!I527+'FR-16(7)(v)-11 DIST Demand'!I527+'FR-16(7)(v)-12 DIST Energy'!I527+'FR-16(7)(v)-13 DIST Cust'!I527","v":1908},{"$f":"'FR-16(7)(v)-3 PROD Demand'!J527+'FR-16(7)(v)-4 PROD Energy'!J527+'FR-16(7)(v)-5 PROD Cust'!J527+'FR-16(7)(v)-7 TRANS Demand'!J527+'FR-16(7)(v)-8 TRANS Energy'!J527+'FR-16(7)(v)-9 TRANS Cust'!J527+'FR-16(7)(v)-11 DIST Demand'!J527+'FR-16(7)(v)-12 DIST Energy'!J527+'FR-16(7)(v)-13 DIST Cust'!J527","v":7528},{"$f":"'FR-16(7)(v)-3 PROD Demand'!K527+'FR-16(7)(v)-4 PROD Energy'!K527+'FR-16(7)(v)-5 PROD Cust'!K527+'FR-16(7)(v)-7 TRANS Demand'!K527+'FR-16(7)(v)-8 TRANS Energy'!K527+'FR-16(7)(v)-9 TRANS Cust'!K527+'FR-16(7)(v)-11 DIST Demand'!K527+'FR-16(7)(v)-12 DIST Energy'!K527+'FR-16(7)(v)-13 DIST Cust'!K527","v":103},{"$f":"'FR-16(7)(v)-3 PROD Demand'!L527+'FR-16(7)(v)-4 PROD Energy'!L527+'FR-16(7)(v)-5 PROD Cust'!L527+'FR-16(7)(v)-7 TRANS Demand'!L527+'FR-16(7)(v)-8 TRANS Energy'!L527+'FR-16(7)(v)-9 TRANS Cust'!L527+'FR-16(7)(v)-11 DIST Demand'!L527+'FR-16(7)(v)-12 DIST Energy'!L527+'FR-16(7)(v)-13 DIST Cust'!L527","v":198017},{"$f":"'FR-16(7)(v)-3 PROD Demand'!M527+'FR-16(7)(v)-4 PROD Energy'!M527+'FR-16(7)(v)-5 PROD Cust'!M527+'FR-16(7)(v)-7 TRANS Demand'!M527+'FR-16(7)(v)-8 TRANS Energy'!M527+'FR-16(7)(v)-9 TRANS Cust'!M527+'FR-16(7)(v)-11 DIST Demand'!M527+'FR-16(7)(v)-12 DIST Energy'!M527+'FR-16(7)(v)-13 DIST Cust'!M527","v":130911},{"$f":"'FR-16(7)(v)-3 PROD Demand'!N527+'FR-16(7)(v)-4 PROD Energy'!N527+'FR-16(7)(v)-5 PROD Cust'!N527+'FR-16(7)(v)-7 TRANS Demand'!N527+'FR-16(7)(v)-8 TRANS Energy'!N527+'FR-16(7)(v)-9 TRANS Cust'!N527+'FR-16(7)(v)-11 DIST Demand'!N527+'FR-16(7)(v)-12 DIST Energy'!N527+'FR-16(7)(v)-13 DIST Cust'!N527","v":6325},{"$f":"'FR-16(7)(v)-3 PROD Demand'!O527+'FR-16(7)(v)-4 PROD Energy'!O527+'FR-16(7)(v)-5 PROD Cust'!O527+'FR-16(7)(v)-7 TRANS Demand'!O527+'FR-16(7)(v)-8 TRANS Energy'!O527+'FR-16(7)(v)-9 TRANS Cust'!O527+'FR-16(7)(v)-11 DIST Demand'!O527+'FR-16(7)(v)-12 DIST Energy'!O527+'FR-16(7)(v)-13 DIST Cust'!O527","v":62029},{"$f":"'FR-16(7)(v)-3 PROD Demand'!P527+'FR-16(7)(v)-4 PROD Energy'!P527+'FR-16(7)(v)-5 PROD Cust'!P527+'FR-16(7)(v)-7 TRANS Demand'!P527+'FR-16(7)(v)-8 TRANS Energy'!P527+'FR-16(7)(v)-9 TRANS Cust'!P527+'FR-16(7)(v)-11 DIST Demand'!P527+'FR-16(7)(v)-12 DIST Energy'!P527+'FR-16(7)(v)-13 DIST Cust'!P527","v":1820},{"$f":"'FR-16(7)(v)-3 PROD Demand'!Q527+'FR-16(7)(v)-4 PROD Energy'!Q527+'FR-16(7)(v)-5 PROD Cust'!Q527+'FR-16(7)(v)-7 TRANS Demand'!Q527+'FR-16(7)(v)-8 TRANS Energy'!Q527+'FR-16(7)(v)-9 TRANS Cust'!Q527+'FR-16(7)(v)-11 DIST Demand'!Q527+'FR-16(7)(v)-12 DIST Energy'!Q527+'FR-16(7)(v)-13 DIST Cust'!Q527","v":161},{"$f":"SUM(G527:Q527)","v":1467447},{"$f":"F527-R527","v":0}]
[14,null,{"$f":"'FR-16(7)(v)-1 Functional'!C528","v":"DISTRIBUTION"},{"$f":"'FR-16(7)(v)-1 Functional'!D528","v":"D349"},null,{"$f":"'FR-16(7)(v)-1 Functional'!F528","v":6010445},{"$f":"'FR-16(7)(v)-3 PROD Demand'!G528+'FR-16(7)(v)-4 PROD Energy'!G528+'FR-16(7)(v)-5 PROD Cust'!G528+'FR-16(7)(v)-7 TRANS Demand'!G528+'FR-16(7)(v)-8 TRANS Energy'!G528+'FR-16(7)(v)-9 TRANS Cust'!G528+'FR-16(7)(v)-11 DIST Demand'!G528+'FR-16(7)(v)-12 DIST Energy'!G528+'FR-16(7)(v)-13 DIST Cust'!G528","v":3345491},{"$f":"'FR-16(7)(v)-3 PROD Demand'!H528+'FR-16(7)(v)-4 PROD Energy'!H528+'FR-16(7)(v)-5 PROD Cust'!H528+'FR-16(7)(v)-7 TRANS Demand'!H528+'FR-16(7)(v)-8 TRANS Energy'!H528+'FR-16(7)(v)-9 TRANS Cust'!H528+'FR-16(7)(v)-11 DIST Demand'!H528+'FR-16(7)(v)-12 DIST Energy'!H528+'FR-16(7)(v)-13 DIST Cust'!H528","v":1353507},{"$f":"'FR-16(7)(v)-3 PROD Demand'!I528+'FR-16(7)(v)-4 PROD Energy'!I528+'FR-16(7)(v)-5 PROD Cust'!I528+'FR-16(7)(v)-7 TRANS Demand'!I528+'FR-16(7)(v)-8 TRANS Energy'!I528+'FR-16(7)(v)-9 TRANS Cust'!I528+'FR-16(7)(v)-11 DIST Demand'!I528+'FR-16(7)(v)-12 DIST Energy'!I528+'FR-16(7)(v)-13 DIST Cust'!I528","v":6082},{"$f":"'FR-16(7)(v)-3 PROD Demand'!J528+'FR-16(7)(v)-4 PROD Energy'!J528+'FR-16(7)(v)-5 PROD Cust'!J528+'FR-16(7)(v)-7 TRANS Demand'!J528+'FR-16(7)(v)-8 TRANS Energy'!J528+'FR-16(7)(v)-9 TRANS Cust'!J528+'FR-16(7)(v)-11 DIST Demand'!J528+'FR-16(7)(v)-12 DIST Energy'!J528+'FR-16(7)(v)-13 DIST Cust'!J528","v":31826},{"$f":"'FR-16(7)(v)-3 PROD Demand'!K528+'FR-16(7)(v)-4 PROD Energy'!K528+'FR-16(7)(v)-5 PROD Cust'!K528+'FR-16(7)(v)-7 TRANS Demand'!K528+'FR-16(7)(v)-8 TRANS Energy'!K528+'FR-16(7)(v)-9 TRANS Cust'!K528+'FR-16(7)(v)-11 DIST Demand'!K528+'FR-16(7)(v)-12 DIST Energy'!K528+'FR-16(7)(v)-13 DIST Cust'!K528","v":479},{"$f":"'FR-16(7)(v)-3 PROD Demand'!L528+'FR-16(7)(v)-4 PROD Energy'!L528+'FR-16(7)(v)-5 PROD Cust'!L528+'FR-16(7)(v)-7 TRANS Demand'!L528+'FR-16(7)(v)-8 TRANS Energy'!L528+'FR-16(7)(v)-9 TRANS Cust'!L528+'FR-16(7)(v)-11 DIST Demand'!L528+'FR-16(7)(v)-12 DIST Energy'!L528+'FR-16(7)(v)-13 DIST Cust'!L528","v":600486},{"$f":"'FR-16(7)(v)-3 PROD Demand'!M528+'FR-16(7)(v)-4 PROD Energy'!M528+'FR-16(7)(v)-5 PROD Cust'!M528+'FR-16(7)(v)-7 TRANS Demand'!M528+'FR-16(7)(v)-8 TRANS Energy'!M528+'FR-16(7)(v)-9 TRANS Cust'!M528+'FR-16(7)(v)-11 DIST Demand'!M528+'FR-16(7)(v)-12 DIST Energy'!M528+'FR-16(7)(v)-13 DIST Cust'!M528","v":386297},{"$f":"'FR-16(7)(v)-3 PROD Demand'!N528+'FR-16(7)(v)-4 PROD Energy'!N528+'FR-16(7)(v)-5 PROD Cust'!N528+'FR-16(7)(v)-7 TRANS Demand'!N528+'FR-16(7)(v)-8 TRANS Energy'!N528+'FR-16(7)(v)-9 TRANS Cust'!N528+'FR-16(7)(v)-11 DIST Demand'!N528+'FR-16(7)(v)-12 DIST Energy'!N528+'FR-16(7)(v)-13 DIST Cust'!N528","v":21095},{"$f":"'FR-16(7)(v)-3 PROD Demand'!O528+'FR-16(7)(v)-4 PROD Energy'!O528+'FR-16(7)(v)-5 PROD Cust'!O528+'FR-16(7)(v)-7 TRANS Demand'!O528+'FR-16(7)(v)-8 TRANS Energy'!O528+'FR-16(7)(v)-9 TRANS Cust'!O528+'FR-16(7)(v)-11 DIST Demand'!O528+'FR-16(7)(v)-12 DIST Energy'!O528+'FR-16(7)(v)-13 DIST Cust'!O528","v":60965},{"$f":"'FR-16(7)(v)-3 PROD Demand'!P528+'FR-16(7)(v)-4 PROD Energy'!P528+'FR-16(7)(v)-5 PROD Cust'!P528+'FR-16(7)(v)-7 TRANS Demand'!P528+'FR-16(7)(v)-8 TRANS Energy'!P528+'FR-16(7)(v)-9 TRANS Cust'!P528+'FR-16(7)(v)-11 DIST Demand'!P528+'FR-16(7)(v)-12 DIST Energy'!P528+'FR-16(7)(v)-13 DIST Cust'!P528","v":203255},{"$f":"'FR-16(7)(v)-3 PROD Demand'!Q528+'FR-16(7)(v)-4 PROD Energy'!Q528+'FR-16(7)(v)-5 PROD Cust'!Q528+'FR-16(7)(v)-7 TRANS Demand'!Q528+'FR-16(7)(v)-8 TRANS Energy'!Q528+'FR-16(7)(v)-9 TRANS Cust'!Q528+'FR-16(7)(v)-11 DIST Demand'!Q528+'FR-16(7)(v)-12 DIST Energy'!Q528+'FR-16(7)(v)-13 DIST Cust'!Q528","v":962},6010445,0]
[15,null,{"$f":"'FR-16(7)(v)-1 Functional'!C529","v":"CUSTOMER ACCOUNTING"},{"$f":"'FR-16(7)(v)-1 Functional'!D529","v":"C319"},null,{"$f":"'FR-16(7)(v)-1 Functional'!F529","v":3677568},{"$f":"'FR-16(7)(v)-3 PROD Demand'!G529+'FR-16(7)(v)-4 PROD Energy'!G529+'FR-16(7)(v)-5 PROD Cust'!G529+'FR-16(7)(v)-7 TRANS Demand'!G529+'FR-16(7)(v)-8 TRANS Energy'!G529+'FR-16(7)(v)-9 TRANS Cust'!G529+'FR-16(7)(v)-11 DIST Demand'!G529+'FR-16(7)(v)-12 DIST Energy'!G529+'FR-16(7)(v)-13 DIST Cust'!G529","v":2996099},{"$f":"'FR-16(7)(v)-3 PROD Demand'!H529+'FR-16(7)(v)-4 PROD Energy'!H529+'FR-16(7)(v)-5 PROD Cust'!H529+'FR-16(7)(v)-7 TRANS Demand'!H529+'FR-16(7)(v)-8 TRANS Energy'!H529+'FR-16(7)(v)-9 TRANS Cust'!H529+'FR-16(7)(v)-11 DIST Demand'!H529+'FR-16(7)(v)-12 DIST Energy'!H529+'FR-16(7)(v)-13 DIST Cust'!H529","v":640138},{"$f":"'FR-16(7)(v)-3 PROD Demand'!I529+'FR-16(7)(v)-4 PROD Energy'!I529+'FR-16(7)(v)-5 PROD Cust'!I529+'FR-16(7)(v)-7 TRANS Demand'!I529+'FR-16(7)(v)-8 TRANS Energy'!I529+'FR-16(7)(v)-9 TRANS Cust'!I529+'FR-16(7)(v)-11 DIST Demand'!I529+'FR-16(7)(v)-12 DIST Energy'!I529+'FR-16(7)(v)-13 DIST Cust'!I529","v":3716},{"$f":"'FR-16(7)(v)-3 PROD Demand'!J529+'FR-16(7)(v)-4 PROD Energy'!J529+'FR-16(7)(v)-5 PROD Cust'!J529+'FR-16(7)(v)-7 TRANS Demand'!J529+'FR-16(7)(v)-8 TRANS Energy'!J529+'FR-16(7)(v)-9 TRANS Cust'!J529+'FR-16(7)(v)-11 DIST Demand'!J529+'FR-16(7)(v)-12 DIST Energy'!J529+'FR-16(7)(v)-13 DIST Cust'!J529","v":5077},{"$f":"'FR-16(7)(v)-3 PROD Demand'!K529+'FR-16(7)(v)-4 PROD Energy'!K529+'FR-16(7)(v)-5 PROD Cust'!K529+'FR-16(7)(v)-7 TRANS Demand'!K529+'FR-16(7)(v)-8 TRANS Energy'!K529+'FR-16(7)(v)-9 TRANS Cust'!K529+'FR-16(7)(v)-11 DIST Demand'!K529+'FR-16(7)(v)-12 DIST Energy'!K529+'FR-16(7)(v)-13 DIST Cust'!K529","v":699},{"$f":"'FR-16(7)(v)-3 PROD Demand'!L529+'FR-16(7)(v)-4 PROD Energy'!L529+'FR-16(7)(v)-5 PROD Cust'!L529+'FR-16(7)(v)-7 TRANS Demand'!L529+'FR-16(7)(v)-8 TRANS Energy'!L529+'FR-16(7)(v)-9 TRANS Cust'!L529+'FR-16(7)(v)-11 DIST Demand'!L529+'FR-16(7)(v)-12 DIST Energy'!L529+'FR-16(7)(v)-13 DIST Cust'!L529","v":22523},{"$f":"'FR-16(7)(v)-3 PROD Demand'!M529+'FR-16(7)(v)-4 PROD Energy'!M529+'FR-16(7)(v)-5 PROD Cust'!M529+'FR-16(7)(v)-7 TRANS Demand'!M529+'FR-16(7)(v)-8 TRANS Energy'!M529+'FR-16(7)(v)-9 TRANS Cust'!M529+'FR-16(7)(v)-11 DIST Demand'!M529+'FR-16(7)(v)-12 DIST Energy'!M529+'FR-16(7)(v)-13 DIST Cust'!M529","v":-1857},{"$f":"'FR-16(7)(v)-3 PROD Demand'!N529+'FR-16(7)(v)-4 PROD Energy'!N529+'FR-16(7)(v)-5 PROD Cust'!N529+'FR-16(7)(v)-7 TRANS Demand'!N529+'FR-16(7)(v)-8 TRANS Energy'!N529+'FR-16(7)(v)-9 TRANS Cust'!N529+'FR-16(7)(v)-11 DIST Demand'!N529+'FR-16(7)(v)-12 DIST Energy'!N529+'FR-16(7)(v)-13 DIST Cust'!N529","v":882},{"$f":"'FR-16(7)(v)-3 PROD Demand'!O529+'FR-16(7)(v)-4 PROD Energy'!O529+'FR-16(7)(v)-5 PROD Cust'!O529+'FR-16(7)(v)-7 TRANS Demand'!O529+'FR-16(7)(v)-8 TRANS Energy'!O529+'FR-16(7)(v)-9 TRANS Cust'!O529+'FR-16(7)(v)-11 DIST Demand'!O529+'FR-16(7)(v)-12 DIST Energy'!O529+'FR-16(7)(v)-13 DIST Cust'!O529","v":-340},{"$f":"'FR-16(7)(v)-3 PROD Demand'!P529+'FR-16(7)(v)-4 PROD Energy'!P529+'FR-16(7)(v)-5 PROD Cust'!P529+'FR-16(7)(v)-7 TRANS Demand'!P529+'FR-16(7)(v)-8 TRANS Energy'!P529+'FR-16(7)(v)-9 TRANS Cust'!P529+'FR-16(7)(v)-11 DIST Demand'!P529+'FR-16(7)(v)-12 DIST Energy'!P529+'FR-16(7)(v)-13 DIST Cust'!P529","v":10079},{"$f":"'FR-16(7)(v)-3 PROD Demand'!Q529+'FR-16(7)(v)-4 PROD Energy'!Q529+'FR-16(7)(v)-5 PROD Cust'!Q529+'FR-16(7)(v)-7 TRANS Demand'!Q529+'FR-16(7)(v)-8 TRANS Energy'!Q529+'FR-16(7)(v)-9 TRANS Cust'!Q529+'FR-16(7)(v)-11 DIST Demand'!Q529+'FR-16(7)(v)-12 DIST Energy'!Q529+'FR-16(7)(v)-13 DIST Cust'!Q529","v":552},3677568,0]
[16,null,{"$f":"'FR-16(7)(v)-1 Functional'!C530","v":"CUSTOMER SERVICE & INFORMATION"},{"$f":"'FR-16(7)(v)-1 Functional'!D530","v":"C331"},null,{"$f":"'FR-16(7)(v)-1 Functional'!F530","v":240582},{"$f":"'FR-16(7)(v)-3 PROD Demand'!G530+'FR-16(7)(v)-4 PROD Energy'!G530+'FR-16(7)(v)-5 PROD Cust'!G530+'FR-16(7)(v)-7 TRANS Demand'!G530+'FR-16(7)(v)-8 TRANS Energy'!G530+'FR-16(7)(v)-9 TRANS Cust'!G530+'FR-16(7)(v)-11 DIST Demand'!G530+'FR-16(7)(v)-12 DIST Energy'!G530+'FR-16(7)(v)-13 DIST Cust'!G530","v":216991},{"$f":"'FR-16(7)(v)-3 PROD Demand'!H530+'FR-16(7)(v)-4 PROD Energy'!H530+'FR-16(7)(v)-5 PROD Cust'!H530+'FR-16(7)(v)-7 TRANS Demand'!H530+'FR-16(7)(v)-8 TRANS Energy'!H530+'FR-16(7)(v)-9 TRANS Cust'!H530+'FR-16(7)(v)-11 DIST Demand'!H530+'FR-16(7)(v)-12 DIST Energy'!H530+'FR-16(7)(v)-13 DIST Cust'!H530","v":21917},{"$f":"'FR-16(7)(v)-3 PROD Demand'!I530+'FR-16(7)(v)-4 PROD Energy'!I530+'FR-16(7)(v)-5 PROD Cust'!I530+'FR-16(7)(v)-7 TRANS Demand'!I530+'FR-16(7)(v)-8 TRANS Energy'!I530+'FR-16(7)(v)-9 TRANS Cust'!I530+'FR-16(7)(v)-11 DIST Demand'!I530+'FR-16(7)(v)-12 DIST Energy'!I530+'FR-16(7)(v)-13 DIST Cust'!I530","v":291},{"$f":"'FR-16(7)(v)-3 PROD Demand'!J530+'FR-16(7)(v)-4 PROD Energy'!J530+'FR-16(7)(v)-5 PROD Cust'!J530+'FR-16(7)(v)-7 TRANS Demand'!J530+'FR-16(7)(v)-8 TRANS Energy'!J530+'FR-16(7)(v)-9 TRANS Cust'!J530+'FR-16(7)(v)-11 DIST Demand'!J530+'FR-16(7)(v)-12 DIST Energy'!J530+'FR-16(7)(v)-13 DIST Cust'!J530","v":173},{"$f":"'FR-16(7)(v)-3 PROD Demand'!K530+'FR-16(7)(v)-4 PROD Energy'!K530+'FR-16(7)(v)-5 PROD Cust'!K530+'FR-16(7)(v)-7 TRANS Demand'!K530+'FR-16(7)(v)-8 TRANS Energy'!K530+'FR-16(7)(v)-9 TRANS Cust'!K530+'FR-16(7)(v)-11 DIST Demand'!K530+'FR-16(7)(v)-12 DIST Energy'!K530+'FR-16(7)(v)-13 DIST Cust'!K530","v":24},{"$f":"'FR-16(7)(v)-3 PROD Demand'!L530+'FR-16(7)(v)-4 PROD Energy'!L530+'FR-16(7)(v)-5 PROD Cust'!L530+'FR-16(7)(v)-7 TRANS Demand'!L530+'FR-16(7)(v)-8 TRANS Energy'!L530+'FR-16(7)(v)-9 TRANS Cust'!L530+'FR-16(7)(v)-11 DIST Demand'!L530+'FR-16(7)(v)-12 DIST Energy'!L530+'FR-16(7)(v)-13 DIST Cust'!L530","v":269},{"$f":"'FR-16(7)(v)-3 PROD Demand'!M530+'FR-16(7)(v)-4 PROD Energy'!M530+'FR-16(7)(v)-5 PROD Cust'!M530+'FR-16(7)(v)-7 TRANS Demand'!M530+'FR-16(7)(v)-8 TRANS Energy'!M530+'FR-16(7)(v)-9 TRANS Cust'!M530+'FR-16(7)(v)-11 DIST Demand'!M530+'FR-16(7)(v)-12 DIST Energy'!M530+'FR-16(7)(v)-13 DIST Cust'!M530","v":63},{"$f":"'FR-16(7)(v)-3 PROD Demand'!N530+'FR-16(7)(v)-4 PROD Energy'!N530+'FR-16(7)(v)-5 PROD Cust'!N530+'FR-16(7)(v)-7 TRANS Demand'!N530+'FR-16(7)(v)-8 TRANS Energy'!N530+'FR-16(7)(v)-9 TRANS Cust'!N530+'FR-16(7)(v)-11 DIST Demand'!N530+'FR-16(7)(v)-12 DIST Energy'!N530+'FR-16(7)(v)-13 DIST Cust'!N530","v":17},{"$f":"'FR-16(7)(v)-3 PROD Demand'!O530+'FR-16(7)(v)-4 PROD Energy'!O530+'FR-16(7)(v)-5 PROD Cust'!O530+'FR-16(7)(v)-7 TRANS Demand'!O530+'FR-16(7)(v)-8 TRANS Energy'!O530+'FR-16(7)(v)-9 TRANS Cust'!O530+'FR-16(7)(v)-11 DIST Demand'!O530+'FR-16(7)(v)-12 DIST Energy'!O530+'FR-16(7)(v)-13 DIST Cust'!O530","v":26},{"$f":"'FR-16(7)(v)-3 PROD Demand'!P530+'FR-16(7)(v)-4 PROD Energy'!P530+'FR-16(7)(v)-5 PROD Cust'!P530+'FR-16(7)(v)-7 TRANS Demand'!P530+'FR-16(7)(v)-8 TRANS Energy'!P530+'FR-16(7)(v)-9 TRANS Cust'!P530+'FR-16(7)(v)-11 DIST Demand'!P530+'FR-16(7)(v)-12 DIST Energy'!P530+'FR-16(7)(v)-13 DIST Cust'!P530","v":792},{"$f":"'FR-16(7)(v)-3 PROD Demand'!Q530+'FR-16(7)(v)-4 PROD Energy'!Q530+'FR-16(7)(v)-5 PROD Cust'!Q530+'FR-16(7)(v)-7 TRANS Demand'!Q530+'FR-16(7)(v)-8 TRANS Energy'!Q530+'FR-16(7)(v)-9 TRANS Cust'!Q530+'FR-16(7)(v)-11 DIST Demand'!Q530+'FR-16(7)(v)-12 DIST Energy'!Q530+'FR-16(7)(v)-13 DIST Cust'!Q530","v":19},240582,0]
[17,null,{"$f":"'FR-16(7)(v)-1 Functional'!C531","v":"SALES"},{"$f":"'FR-16(7)(v)-1 Functional'!D531","v":"S319"},null,{"$f":"'FR-16(7)(v)-1 Functional'!F531","v":0},{"$f":"'FR-16(7)(v)-3 PROD Demand'!G531+'FR-16(7)(v)-4 PROD Energy'!G531+'FR-16(7)(v)-5 PROD Cust'!G531+'FR-16(7)(v)-7 TRANS Demand'!G531+'FR-16(7)(v)-8 TRANS Energy'!G531+'FR-16(7)(v)-9 TRANS Cust'!G531+'FR-16(7)(v)-11 DIST Demand'!G531+'FR-16(7)(v)-12 DIST Energy'!G531+'FR-16(7)(v)-13 DIST Cust'!G531","v":0},{"$f":"'FR-16(7)(v)-3 PROD Demand'!H531+'FR-16(7)(v)-4 PROD Energy'!H531+'FR-16(7)(v)-5 PROD Cust'!H531+'FR-16(7)(v)-7 TRANS Demand'!H531+'FR-16(7)(v)-8 TRANS Energy'!H531+'FR-16(7)(v)-9 TRANS Cust'!H531+'FR-16(7)(v)-11 DIST Demand'!H531+'FR-16(7)(v)-12 DIST Energy'!H531+'FR-16(7)(v)-13 DIST Cust'!H531","v":0},{"$f":"'FR-16(7)(v)-3 PROD Demand'!I531+'FR-16(7)(v)-4 PROD Energy'!I531+'FR-16(7)(v)-5 PROD Cust'!I531+'FR-16(7)(v)-7 TRANS Demand'!I531+'FR-16(7)(v)-8 TRANS Energy'!I531+'FR-16(7)(v)-9 TRANS Cust'!I531+'FR-16(7)(v)-11 DIST Demand'!I531+'FR-16(7)(v)-12 DIST Energy'!I531+'FR-16(7)(v)-13 DIST Cust'!I531","v":0},{"$f":"'FR-16(7)(v)-3 PROD Demand'!J531+'FR-16(7)(v)-4 PROD Energy'!J531+'FR-16(7)(v)-5 PROD Cust'!J531+'FR-16(7)(v)-7 TRANS Demand'!J531+'FR-16(7)(v)-8 TRANS Energy'!J531+'FR-16(7)(v)-9 TRANS Cust'!J531+'FR-16(7)(v)-11 DIST Demand'!J531+'FR-16(7)(v)-12 DIST Energy'!J531+'FR-16(7)(v)-13 DIST Cust'!J531","v":0},{"$f":"'FR-16(7)(v)-3 PROD Demand'!K531+'FR-16(7)(v)-4 PROD Energy'!K531+'FR-16(7)(v)-5 PROD Cust'!K531+'FR-16(7)(v)-7 TRANS Demand'!K531+'FR-16(7)(v)-8 TRANS Energy'!K531+'FR-16(7)(v)-9 TRANS Cust'!K531+'FR-16(7)(v)-11 DIST Demand'!K531+'FR-16(7)(v)-12 DIST Energy'!K531+'FR-16(7)(v)-13 DIST Cust'!K531","v":0},{"$f":"'FR-16(7)(v)-3 PROD Demand'!L531+'FR-16(7)(v)-4 PROD Energy'!L531+'FR-16(7)(v)-5 PROD Cust'!L531+'FR-16(7)(v)-7 TRANS Demand'!L531+'FR-16(7)(v)-8 TRANS Energy'!L531+'FR-16(7)(v)-9 TRANS Cust'!L531+'FR-16(7)(v)-11 DIST Demand'!L531+'FR-16(7)(v)-12 DIST Energy'!L531+'FR-16(7)(v)-13 DIST Cust'!L531","v":0},{"$f":"'FR-16(7)(v)-3 PROD Demand'!M531+'FR-16(7)(v)-4 PROD Energy'!M531+'FR-16(7)(v)-5 PROD Cust'!M531+'FR-16(7)(v)-7 TRANS Demand'!M531+'FR-16(7)(v)-8 TRANS Energy'!M531+'FR-16(7)(v)-9 TRANS Cust'!M531+'FR-16(7)(v)-11 DIST Demand'!M531+'FR-16(7)(v)-12 DIST Energy'!M531+'FR-16(7)(v)-13 DIST Cust'!M531","v":0},{"$f":"'FR-16(7)(v)-3 PROD Demand'!N531+'FR-16(7)(v)-4 PROD Energy'!N531+'FR-16(7)(v)-5 PROD Cust'!N531+'FR-16(7)(v)-7 TRANS Demand'!N531+'FR-16(7)(v)-8 TRANS Energy'!N531+'FR-16(7)(v)-9 TRANS Cust'!N531+'FR-16(7)(v)-11 DIST Demand'!N531+'FR-16(7)(v)-12 DIST Energy'!N531+'FR-16(7)(v)-13 DIST Cust'!N531","v":0},{"$f":"'FR-16(7)(v)-3 PROD Demand'!O531+'FR-16(7)(v)-4 PROD Energy'!O531+'FR-16(7)(v)-5 PROD Cust'!O531+'FR-16(7)(v)-7 TRANS Demand'!O531+'FR-16(7)(v)-8 TRANS Energy'!O531+'FR-16(7)(v)-9 TRANS Cust'!O531+'FR-16(7)(v)-11 DIST Demand'!O531+'FR-16(7)(v)-12 DIST Energy'!O531+'FR-16(7)(v)-13 DIST Cust'!O531","v":0},{"$f":"'FR-16(7)(v)-3 PROD Demand'!P531+'FR-16(7)(v)-4 PROD Energy'!P531+'FR-16(7)(v)-5 PROD Cust'!P531+'FR-16(7)(v)-7 TRANS Demand'!P531+'FR-16(7)(v)-8 TRANS Energy'!P531+'FR-16(7)(v)-9 TRANS Cust'!P531+'FR-16(7)(v)-11 DIST Demand'!P531+'FR-16(7)(v)-12 DIST Energy'!P531+'FR-16(7)(v)-13 DIST Cust'!P531","v":0},{"$f":"'FR-16(7)(v)-3 PROD Demand'!Q531+'FR-16(7)(v)-4 PROD Energy'!Q531+'FR-16(7)(v)-5 PROD Cust'!Q531+'FR-16(7)(v)-7 TRANS Demand'!Q531+'FR-16(7)(v)-8 TRANS Energy'!Q531+'FR-16(7)(v)-9 TRANS Cust'!Q531+'FR-16(7)(v)-11 DIST Demand'!Q531+'FR-16(7)(v)-12 DIST Energy'!Q531+'FR-16(7)(v)-13 DIST Cust'!Q531","v":0},0,0]
[18,null,{"$f":"'FR-16(7)(v)-1 Functional'!C532","v":"TOT ADMIN & GEN LESS REG EXP"}," ",null,{"$f":"SUM(F525:F531)","v":31532897},20614419,5342026,28381,{"$f":"SUM(J525:J531)","v":91153},2065,2612715,1762681,86803,726403,263363,2888,31532897,0]
[19,null,{"$f":"'FR-16(7)(v)-1 Functional'!C533","v":"RATE CASE EXPENSE ADJUSTMENT"},{"$f":"'FR-16(7)(v)-1 Functional'!D533","v":"A315"},null,{"$f":"'FR-16(7)(v)-1 Functional'!F533","v":135335},{"$f":"'FR-16(7)(v)-3 PROD Demand'!G533+'FR-16(7)(v)-4 PROD Energy'!G533+'FR-16(7)(v)-5 PROD Cust'!G533+'FR-16(7)(v)-7 TRANS Demand'!G533+'FR-16(7)(v)-8 TRANS Energy'!G533+'FR-16(7)(v)-9 TRANS Cust'!G533+'FR-16(7)(v)-11 DIST Demand'!G533+'FR-16(7)(v)-12 DIST Energy'!G533+'FR-16(7)(v)-13 DIST Cust'!G533","v":88475},{"$f":"'FR-16(7)(v)-3 PROD Demand'!H533+'FR-16(7)(v)-4 PROD Energy'!H533+'FR-16(7)(v)-5 PROD Cust'!H533+'FR-16(7)(v)-7 TRANS Demand'!H533+'FR-16(7)(v)-8 TRANS Energy'!H533+'FR-16(7)(v)-9 TRANS Cust'!H533+'FR-16(7)(v)-11 DIST Demand'!H533+'FR-16(7)(v)-12 DIST Energy'!H533+'FR-16(7)(v)-13 DIST Cust'!H533","v":22927},{"$f":"'FR-16(7)(v)-3 PROD Demand'!I533+'FR-16(7)(v)-4 PROD Energy'!I533+'FR-16(7)(v)-5 PROD Cust'!I533+'FR-16(7)(v)-7 TRANS Demand'!I533+'FR-16(7)(v)-8 TRANS Energy'!I533+'FR-16(7)(v)-9 TRANS Cust'!I533+'FR-16(7)(v)-11 DIST Demand'!I533+'FR-16(7)(v)-12 DIST Energy'!I533+'FR-16(7)(v)-13 DIST Cust'!I533","v":122},{"$f":"'FR-16(7)(v)-3 PROD Demand'!J533+'FR-16(7)(v)-4 PROD Energy'!J533+'FR-16(7)(v)-5 PROD Cust'!J533+'FR-16(7)(v)-7 TRANS Demand'!J533+'FR-16(7)(v)-8 TRANS Energy'!J533+'FR-16(7)(v)-9 TRANS Cust'!J533+'FR-16(7)(v)-11 DIST Demand'!J533+'FR-16(7)(v)-12 DIST Energy'!J533+'FR-16(7)(v)-13 DIST Cust'!J533","v":391},{"$f":"'FR-16(7)(v)-3 PROD Demand'!K533+'FR-16(7)(v)-4 PROD Energy'!K533+'FR-16(7)(v)-5 PROD Cust'!K533+'FR-16(7)(v)-7 TRANS Demand'!K533+'FR-16(7)(v)-8 TRANS Energy'!K533+'FR-16(7)(v)-9 TRANS Cust'!K533+'FR-16(7)(v)-11 DIST Demand'!K533+'FR-16(7)(v)-12 DIST Energy'!K533+'FR-16(7)(v)-13 DIST Cust'!K533","v":8},{"$f":"'FR-16(7)(v)-3 PROD Demand'!L533+'FR-16(7)(v)-4 PROD Energy'!L533+'FR-16(7)(v)-5 PROD Cust'!L533+'FR-16(7)(v)-7 TRANS Demand'!L533+'FR-16(7)(v)-8 TRANS Energy'!L533+'FR-16(7)(v)-9 TRANS Cust'!L533+'FR-16(7)(v)-11 DIST Demand'!L533+'FR-16(7)(v)-12 DIST Energy'!L533+'FR-16(7)(v)-13 DIST Cust'!L533","v":11214},{"$f":"'FR-16(7)(v)-3 PROD Demand'!M533+'FR-16(7)(v)-4 PROD Energy'!M533+'FR-16(7)(v)-5 PROD Cust'!M533+'FR-16(7)(v)-7 TRANS Demand'!M533+'FR-16(7)(v)-8 TRANS Energy'!M533+'FR-16(7)(v)-9 TRANS Cust'!M533+'FR-16(7)(v)-11 DIST Demand'!M533+'FR-16(7)(v)-12 DIST Energy'!M533+'FR-16(7)(v)-13 DIST Cust'!M533","v":7565},{"$f":"'FR-16(7)(v)-3 PROD Demand'!N533+'FR-16(7)(v)-4 PROD Energy'!N533+'FR-16(7)(v)-5 PROD Cust'!N533+'FR-16(7)(v)-7 TRANS Demand'!N533+'FR-16(7)(v)-8 TRANS Energy'!N533+'FR-16(7)(v)-9 TRANS Cust'!N533+'FR-16(7)(v)-11 DIST Demand'!N533+'FR-16(7)(v)-12 DIST Energy'!N533+'FR-16(7)(v)-13 DIST Cust'!N533","v":372},{"$f":"'FR-16(7)(v)-3 PROD Demand'!O533+'FR-16(7)(v)-4 PROD Energy'!O533+'FR-16(7)(v)-5 PROD Cust'!O533+'FR-16(7)(v)-7 TRANS Demand'!O533+'FR-16(7)(v)-8 TRANS Energy'!O533+'FR-16(7)(v)-9 TRANS Cust'!O533+'FR-16(7)(v)-11 DIST Demand'!O533+'FR-16(7)(v)-12 DIST Energy'!O533+'FR-16(7)(v)-13 DIST Cust'!O533","v":3117},{"$f":"'FR-16(7)(v)-3 PROD Demand'!P533+'FR-16(7)(v)-4 PROD Energy'!P533+'FR-16(7)(v)-5 PROD Cust'!P533+'FR-16(7)(v)-7 TRANS Demand'!P533+'FR-16(7)(v)-8 TRANS Energy'!P533+'FR-16(7)(v)-9 TRANS Cust'!P533+'FR-16(7)(v)-11 DIST Demand'!P533+'FR-16(7)(v)-12 DIST Energy'!P533+'FR-16(7)(v)-13 DIST Cust'!P533","v":1131},{"$f":"'FR-16(7)(v)-3 PROD Demand'!Q533+'FR-16(7)(v)-4 PROD Energy'!Q533+'FR-16(7)(v)-5 PROD Cust'!Q533+'FR-16(7)(v)-7 TRANS Demand'!Q533+'FR-16(7)(v)-8 TRANS Energy'!Q533+'FR-16(7)(v)-9 TRANS Cust'!Q533+'FR-16(7)(v)-11 DIST Demand'!Q533+'FR-16(7)(v)-12 DIST Energy'!Q533+'FR-16(7)(v)-13 DIST Cust'!Q533","v":13},{"$f":"SUM(G533:Q533)","v":135335},{"$f":"F533-R533","v":0}]
[20,null,{"$f":"'FR-16(7)(v)-1 Functional'!C534","v":"ELIMINATE MISCELLANEOUS EXPENSES ADJUSTMENT"},{"$f":"'FR-16(7)(v)-1 Functional'!D534","v":"A315"},null,{"$f":"'FR-16(7)(v)-1 Functional'!F534","v":0},{"$f":"'FR-16(7)(v)-3 PROD Demand'!G534+'FR-16(7)(v)-4 PROD Energy'!G534+'FR-16(7)(v)-5 PROD Cust'!G534+'FR-16(7)(v)-7 TRANS Demand'!G534+'FR-16(7)(v)-8 TRANS Energy'!G534+'FR-16(7)(v)-9 TRANS Cust'!G534+'FR-16(7)(v)-11 DIST Demand'!G534+'FR-16(7)(v)-12 DIST Energy'!G534+'FR-16(7)(v)-13 DIST Cust'!G534","v":0},{"$f":"'FR-16(7)(v)-3 PROD Demand'!H534+'FR-16(7)(v)-4 PROD Energy'!H534+'FR-16(7)(v)-5 PROD Cust'!H534+'FR-16(7)(v)-7 TRANS Demand'!H534+'FR-16(7)(v)-8 TRANS Energy'!H534+'FR-16(7)(v)-9 TRANS Cust'!H534+'FR-16(7)(v)-11 DIST Demand'!H534+'FR-16(7)(v)-12 DIST Energy'!H534+'FR-16(7)(v)-13 DIST Cust'!H534","v":0},{"$f":"'FR-16(7)(v)-3 PROD Demand'!I534+'FR-16(7)(v)-4 PROD Energy'!I534+'FR-16(7)(v)-5 PROD Cust'!I534+'FR-16(7)(v)-7 TRANS Demand'!I534+'FR-16(7)(v)-8 TRANS Energy'!I534+'FR-16(7)(v)-9 TRANS Cust'!I534+'FR-16(7)(v)-11 DIST Demand'!I534+'FR-16(7)(v)-12 DIST Energy'!I534+'FR-16(7)(v)-13 DIST Cust'!I534","v":0},{"$f":"'FR-16(7)(v)-3 PROD Demand'!J534+'FR-16(7)(v)-4 PROD Energy'!J534+'FR-16(7)(v)-5 PROD Cust'!J534+'FR-16(7)(v)-7 TRANS Demand'!J534+'FR-16(7)(v)-8 TRANS Energy'!J534+'FR-16(7)(v)-9 TRANS Cust'!J534+'FR-16(7)(v)-11 DIST Demand'!J534+'FR-16(7)(v)-12 DIST Energy'!J534+'FR-16(7)(v)-13 DIST Cust'!J534","v":0},{"$f":"'FR-16(7)(v)-3 PROD Demand'!K534+'FR-16(7)(v)-4 PROD Energy'!K534+'FR-16(7)(v)-5 PROD Cust'!K534+'FR-16(7)(v)-7 TRANS Demand'!K534+'FR-16(7)(v)-8 TRANS Energy'!K534+'FR-16(7)(v)-9 TRANS Cust'!K534+'FR-16(7)(v)-11 DIST Demand'!K534+'FR-16(7)(v)-12 DIST Energy'!K534+'FR-16(7)(v)-13 DIST Cust'!K534","v":0},{"$f":"'FR-16(7)(v)-3 PROD Demand'!L534+'FR-16(7)(v)-4 PROD Energy'!L534+'FR-16(7)(v)-5 PROD Cust'!L534+'FR-16(7)(v)-7 TRANS Demand'!L534+'FR-16(7)(v)-8 TRANS Energy'!L534+'FR-16(7)(v)-9 TRANS Cust'!L534+'FR-16(7)(v)-11 DIST Demand'!L534+'FR-16(7)(v)-12 DIST Energy'!L534+'FR-16(7)(v)-13 DIST Cust'!L534","v":0},{"$f":"'FR-16(7)(v)-3 PROD Demand'!M534+'FR-16(7)(v)-4 PROD Energy'!M534+'FR-16(7)(v)-5 PROD Cust'!M534+'FR-16(7)(v)-7 TRANS Demand'!M534+'FR-16(7)(v)-8 TRANS Energy'!M534+'FR-16(7)(v)-9 TRANS Cust'!M534+'FR-16(7)(v)-11 DIST Demand'!M534+'FR-16(7)(v)-12 DIST Energy'!M534+'FR-16(7)(v)-13 DIST Cust'!M534","v":0},{"$f":"'FR-16(7)(v)-3 PROD Demand'!N534+'FR-16(7)(v)-4 PROD Energy'!N534+'FR-16(7)(v)-5 PROD Cust'!N534+'FR-16(7)(v)-7 TRANS Demand'!N534+'FR-16(7)(v)-8 TRANS Energy'!N534+'FR-16(7)(v)-9 TRANS Cust'!N534+'FR-16(7)(v)-11 DIST Demand'!N534+'FR-16(7)(v)-12 DIST Energy'!N534+'FR-16(7)(v)-13 DIST Cust'!N534","v":0},{"$f":"'FR-16(7)(v)-3 PROD Demand'!O534+'FR-16(7)(v)-4 PROD Energy'!O534+'FR-16(7)(v)-5 PROD Cust'!O534+'FR-16(7)(v)-7 TRANS Demand'!O534+'FR-16(7)(v)-8 TRANS Energy'!O534+'FR-16(7)(v)-9 TRANS Cust'!O534+'FR-16(7)(v)-11 DIST Demand'!O534+'FR-16(7)(v)-12 DIST Energy'!O534+'FR-16(7)(v)-13 DIST Cust'!O534","v":0},{"$f":"'FR-16(7)(v)-3 PROD Demand'!P534+'FR-16(7)(v)-4 PROD Energy'!P534+'FR-16(7)(v)-5 PROD Cust'!P534+'FR-16(7)(v)-7 TRANS Demand'!P534+'FR-16(7)(v)-8 TRANS Energy'!P534+'FR-16(7)(v)-9 TRANS Cust'!P534+'FR-16(7)(v)-11 DIST Demand'!P534+'FR-16(7)(v)-12 DIST Energy'!P534+'FR-16(7)(v)-13 DIST Cust'!P534","v":0},{"$f":"'FR-16(7)(v)-3 PROD Demand'!Q534+'FR-16(7)(v)-4 PROD Energy'!Q534+'FR-16(7)(v)-5 PROD Cust'!Q534+'FR-16(7)(v)-7 TRANS Demand'!Q534+'FR-16(7)(v)-8 TRANS Energy'!Q534+'FR-16(7)(v)-9 TRANS Cust'!Q534+'FR-16(7)(v)-11 DIST Demand'!Q534+'FR-16(7)(v)-12 DIST Energy'!Q534+'FR-16(7)(v)-13 DIST Cust'!Q534","v":0},0,0]
[21,null,{"$f":"'FR-16(7)(v)-1 Functional'!C535","v":"RIDER ESM ELIMINATION"},{"$f":"'FR-16(7)(v)-1 Functional'!D535","v":"A315"},null,{"$f":"'FR-16(7)(v)-1 Functional'!F535","v":-9302212},{"$f":"'FR-16(7)(v)-3 PROD Demand'!G535+'FR-16(7)(v)-4 PROD Energy'!G535+'FR-16(7)(v)-5 PROD Cust'!G535+'FR-16(7)(v)-7 TRANS Demand'!G535+'FR-16(7)(v)-8 TRANS Energy'!G535+'FR-16(7)(v)-9 TRANS Cust'!G535+'FR-16(7)(v)-11 DIST Demand'!G535+'FR-16(7)(v)-12 DIST Energy'!G535+'FR-16(7)(v)-13 DIST Cust'!G535","v":-6081293},{"$f":"'FR-16(7)(v)-3 PROD Demand'!H535+'FR-16(7)(v)-4 PROD Energy'!H535+'FR-16(7)(v)-5 PROD Cust'!H535+'FR-16(7)(v)-7 TRANS Demand'!H535+'FR-16(7)(v)-8 TRANS Energy'!H535+'FR-16(7)(v)-9 TRANS Cust'!H535+'FR-16(7)(v)-11 DIST Demand'!H535+'FR-16(7)(v)-12 DIST Energy'!H535+'FR-16(7)(v)-13 DIST Cust'!H535","v":-1575883},{"$f":"'FR-16(7)(v)-3 PROD Demand'!I535+'FR-16(7)(v)-4 PROD Energy'!I535+'FR-16(7)(v)-5 PROD Cust'!I535+'FR-16(7)(v)-7 TRANS Demand'!I535+'FR-16(7)(v)-8 TRANS Energy'!I535+'FR-16(7)(v)-9 TRANS Cust'!I535+'FR-16(7)(v)-11 DIST Demand'!I535+'FR-16(7)(v)-12 DIST Energy'!I535+'FR-16(7)(v)-13 DIST Cust'!I535","v":-8380},{"$f":"'FR-16(7)(v)-3 PROD Demand'!J535+'FR-16(7)(v)-4 PROD Energy'!J535+'FR-16(7)(v)-5 PROD Cust'!J535+'FR-16(7)(v)-7 TRANS Demand'!J535+'FR-16(7)(v)-8 TRANS Energy'!J535+'FR-16(7)(v)-9 TRANS Cust'!J535+'FR-16(7)(v)-11 DIST Demand'!J535+'FR-16(7)(v)-12 DIST Energy'!J535+'FR-16(7)(v)-13 DIST Cust'!J535","v":-26882},{"$f":"'FR-16(7)(v)-3 PROD Demand'!K535+'FR-16(7)(v)-4 PROD Energy'!K535+'FR-16(7)(v)-5 PROD Cust'!K535+'FR-16(7)(v)-7 TRANS Demand'!K535+'FR-16(7)(v)-8 TRANS Energy'!K535+'FR-16(7)(v)-9 TRANS Cust'!K535+'FR-16(7)(v)-11 DIST Demand'!K535+'FR-16(7)(v)-12 DIST Energy'!K535+'FR-16(7)(v)-13 DIST Cust'!K535","v":-605},{"$f":"'FR-16(7)(v)-3 PROD Demand'!L535+'FR-16(7)(v)-4 PROD Energy'!L535+'FR-16(7)(v)-5 PROD Cust'!L535+'FR-16(7)(v)-7 TRANS Demand'!L535+'FR-16(7)(v)-8 TRANS Energy'!L535+'FR-16(7)(v)-9 TRANS Cust'!L535+'FR-16(7)(v)-11 DIST Demand'!L535+'FR-16(7)(v)-12 DIST Energy'!L535+'FR-16(7)(v)-13 DIST Cust'!L535","v":-770748},{"$f":"'FR-16(7)(v)-3 PROD Demand'!M535+'FR-16(7)(v)-4 PROD Energy'!M535+'FR-16(7)(v)-5 PROD Cust'!M535+'FR-16(7)(v)-7 TRANS Demand'!M535+'FR-16(7)(v)-8 TRANS Energy'!M535+'FR-16(7)(v)-9 TRANS Cust'!M535+'FR-16(7)(v)-11 DIST Demand'!M535+'FR-16(7)(v)-12 DIST Energy'!M535+'FR-16(7)(v)-13 DIST Cust'!M535","v":-520002},{"$f":"'FR-16(7)(v)-3 PROD Demand'!N535+'FR-16(7)(v)-4 PROD Energy'!N535+'FR-16(7)(v)-5 PROD Cust'!N535+'FR-16(7)(v)-7 TRANS Demand'!N535+'FR-16(7)(v)-8 TRANS Energy'!N535+'FR-16(7)(v)-9 TRANS Cust'!N535+'FR-16(7)(v)-11 DIST Demand'!N535+'FR-16(7)(v)-12 DIST Energy'!N535+'FR-16(7)(v)-13 DIST Cust'!N535","v":-25590},{"$f":"'FR-16(7)(v)-3 PROD Demand'!O535+'FR-16(7)(v)-4 PROD Energy'!O535+'FR-16(7)(v)-5 PROD Cust'!O535+'FR-16(7)(v)-7 TRANS Demand'!O535+'FR-16(7)(v)-8 TRANS Energy'!O535+'FR-16(7)(v)-9 TRANS Cust'!O535+'FR-16(7)(v)-11 DIST Demand'!O535+'FR-16(7)(v)-12 DIST Energy'!O535+'FR-16(7)(v)-13 DIST Cust'!O535","v":-214292},{"$f":"'FR-16(7)(v)-3 PROD Demand'!P535+'FR-16(7)(v)-4 PROD Energy'!P535+'FR-16(7)(v)-5 PROD Cust'!P535+'FR-16(7)(v)-7 TRANS Demand'!P535+'FR-16(7)(v)-8 TRANS Energy'!P535+'FR-16(7)(v)-9 TRANS Cust'!P535+'FR-16(7)(v)-11 DIST Demand'!P535+'FR-16(7)(v)-12 DIST Energy'!P535+'FR-16(7)(v)-13 DIST Cust'!P535","v":-77696},{"$f":"'FR-16(7)(v)-3 PROD Demand'!Q535+'FR-16(7)(v)-4 PROD Energy'!Q535+'FR-16(7)(v)-5 PROD Cust'!Q535+'FR-16(7)(v)-7 TRANS Demand'!Q535+'FR-16(7)(v)-8 TRANS Energy'!Q535+'FR-16(7)(v)-9 TRANS Cust'!Q535+'FR-16(7)(v)-11 DIST Demand'!Q535+'FR-16(7)(v)-12 DIST Energy'!Q535+'FR-16(7)(v)-13 DIST Cust'!Q535","v":-841},-9302212,0]
[22,null,{"$f":"'FR-16(7)(v)-1 Functional'!C536","v":"ELIMINATE DSM"},{"$f":"'FR-16(7)(v)-1 Functional'!D536","v":"A315"},null,{"$f":"'FR-16(7)(v)-1 Functional'!F536","v":-130286},{"$f":"'FR-16(7)(v)-3 PROD Demand'!G536+'FR-16(7)(v)-4 PROD Energy'!G536+'FR-16(7)(v)-5 PROD Cust'!G536+'FR-16(7)(v)-7 TRANS Demand'!G536+'FR-16(7)(v)-8 TRANS Energy'!G536+'FR-16(7)(v)-9 TRANS Cust'!G536+'FR-16(7)(v)-11 DIST Demand'!G536+'FR-16(7)(v)-12 DIST Energy'!G536+'FR-16(7)(v)-13 DIST Cust'!G536","v":-85174},{"$f":"'FR-16(7)(v)-3 PROD Demand'!H536+'FR-16(7)(v)-4 PROD Energy'!H536+'FR-16(7)(v)-5 PROD Cust'!H536+'FR-16(7)(v)-7 TRANS Demand'!H536+'FR-16(7)(v)-8 TRANS Energy'!H536+'FR-16(7)(v)-9 TRANS Cust'!H536+'FR-16(7)(v)-11 DIST Demand'!H536+'FR-16(7)(v)-12 DIST Energy'!H536+'FR-16(7)(v)-13 DIST Cust'!H536","v":-22072},{"$f":"'FR-16(7)(v)-3 PROD Demand'!I536+'FR-16(7)(v)-4 PROD Energy'!I536+'FR-16(7)(v)-5 PROD Cust'!I536+'FR-16(7)(v)-7 TRANS Demand'!I536+'FR-16(7)(v)-8 TRANS Energy'!I536+'FR-16(7)(v)-9 TRANS Cust'!I536+'FR-16(7)(v)-11 DIST Demand'!I536+'FR-16(7)(v)-12 DIST Energy'!I536+'FR-16(7)(v)-13 DIST Cust'!I536","v":-118},{"$f":"'FR-16(7)(v)-3 PROD Demand'!J536+'FR-16(7)(v)-4 PROD Energy'!J536+'FR-16(7)(v)-5 PROD Cust'!J536+'FR-16(7)(v)-7 TRANS Demand'!J536+'FR-16(7)(v)-8 TRANS Energy'!J536+'FR-16(7)(v)-9 TRANS Cust'!J536+'FR-16(7)(v)-11 DIST Demand'!J536+'FR-16(7)(v)-12 DIST Energy'!J536+'FR-16(7)(v)-13 DIST Cust'!J536","v":-376},{"$f":"'FR-16(7)(v)-3 PROD Demand'!K536+'FR-16(7)(v)-4 PROD Energy'!K536+'FR-16(7)(v)-5 PROD Cust'!K536+'FR-16(7)(v)-7 TRANS Demand'!K536+'FR-16(7)(v)-8 TRANS Energy'!K536+'FR-16(7)(v)-9 TRANS Cust'!K536+'FR-16(7)(v)-11 DIST Demand'!K536+'FR-16(7)(v)-12 DIST Energy'!K536+'FR-16(7)(v)-13 DIST Cust'!K536","v":-8},{"$f":"'FR-16(7)(v)-3 PROD Demand'!L536+'FR-16(7)(v)-4 PROD Energy'!L536+'FR-16(7)(v)-5 PROD Cust'!L536+'FR-16(7)(v)-7 TRANS Demand'!L536+'FR-16(7)(v)-8 TRANS Energy'!L536+'FR-16(7)(v)-9 TRANS Cust'!L536+'FR-16(7)(v)-11 DIST Demand'!L536+'FR-16(7)(v)-12 DIST Energy'!L536+'FR-16(7)(v)-13 DIST Cust'!L536","v":-10796},{"$f":"'FR-16(7)(v)-3 PROD Demand'!M536+'FR-16(7)(v)-4 PROD Energy'!M536+'FR-16(7)(v)-5 PROD Cust'!M536+'FR-16(7)(v)-7 TRANS Demand'!M536+'FR-16(7)(v)-8 TRANS Energy'!M536+'FR-16(7)(v)-9 TRANS Cust'!M536+'FR-16(7)(v)-11 DIST Demand'!M536+'FR-16(7)(v)-12 DIST Energy'!M536+'FR-16(7)(v)-13 DIST Cust'!M536","v":-7282},{"$f":"'FR-16(7)(v)-3 PROD Demand'!N536+'FR-16(7)(v)-4 PROD Energy'!N536+'FR-16(7)(v)-5 PROD Cust'!N536+'FR-16(7)(v)-7 TRANS Demand'!N536+'FR-16(7)(v)-8 TRANS Energy'!N536+'FR-16(7)(v)-9 TRANS Cust'!N536+'FR-16(7)(v)-11 DIST Demand'!N536+'FR-16(7)(v)-12 DIST Energy'!N536+'FR-16(7)(v)-13 DIST Cust'!N536","v":-359},{"$f":"'FR-16(7)(v)-3 PROD Demand'!O536+'FR-16(7)(v)-4 PROD Energy'!O536+'FR-16(7)(v)-5 PROD Cust'!O536+'FR-16(7)(v)-7 TRANS Demand'!O536+'FR-16(7)(v)-8 TRANS Energy'!O536+'FR-16(7)(v)-9 TRANS Cust'!O536+'FR-16(7)(v)-11 DIST Demand'!O536+'FR-16(7)(v)-12 DIST Energy'!O536+'FR-16(7)(v)-13 DIST Cust'!O536","v":-3000},{"$f":"'FR-16(7)(v)-3 PROD Demand'!P536+'FR-16(7)(v)-4 PROD Energy'!P536+'FR-16(7)(v)-5 PROD Cust'!P536+'FR-16(7)(v)-7 TRANS Demand'!P536+'FR-16(7)(v)-8 TRANS Energy'!P536+'FR-16(7)(v)-9 TRANS Cust'!P536+'FR-16(7)(v)-11 DIST Demand'!P536+'FR-16(7)(v)-12 DIST Energy'!P536+'FR-16(7)(v)-13 DIST Cust'!P536","v":-1089},{"$f":"'FR-16(7)(v)-3 PROD Demand'!Q536+'FR-16(7)(v)-4 PROD Energy'!Q536+'FR-16(7)(v)-5 PROD Cust'!Q536+'FR-16(7)(v)-7 TRANS Demand'!Q536+'FR-16(7)(v)-8 TRANS Energy'!Q536+'FR-16(7)(v)-9 TRANS Cust'!Q536+'FR-16(7)(v)-11 DIST Demand'!Q536+'FR-16(7)(v)-12 DIST Energy'!Q536+'FR-16(7)(v)-13 DIST Cust'!Q536","v":-12},-130286,0]
[23,null,{"$f":"'FR-16(7)(v)-1 Functional'!C537","v":"DSM DEFERRAL - ELECTRIC"},{"$f":"'FR-16(7)(v)-1 Functional'!D537","v":"A315"},null,{"$f":"'FR-16(7)(v)-1 Functional'!F537","v":0},{"$f":"'FR-16(7)(v)-3 PROD Demand'!G537+'FR-16(7)(v)-4 PROD Energy'!G537+'FR-16(7)(v)-5 PROD Cust'!G537+'FR-16(7)(v)-7 TRANS Demand'!G537+'FR-16(7)(v)-8 TRANS Energy'!G537+'FR-16(7)(v)-9 TRANS Cust'!G537+'FR-16(7)(v)-11 DIST Demand'!G537+'FR-16(7)(v)-12 DIST Energy'!G537+'FR-16(7)(v)-13 DIST Cust'!G537","v":0},{"$f":"'FR-16(7)(v)-3 PROD Demand'!H537+'FR-16(7)(v)-4 PROD Energy'!H537+'FR-16(7)(v)-5 PROD Cust'!H537+'FR-16(7)(v)-7 TRANS Demand'!H537+'FR-16(7)(v)-8 TRANS Energy'!H537+'FR-16(7)(v)-9 TRANS Cust'!H537+'FR-16(7)(v)-11 DIST Demand'!H537+'FR-16(7)(v)-12 DIST Energy'!H537+'FR-16(7)(v)-13 DIST Cust'!H537","v":0},{"$f":"'FR-16(7)(v)-3 PROD Demand'!I537+'FR-16(7)(v)-4 PROD Energy'!I537+'FR-16(7)(v)-5 PROD Cust'!I537+'FR-16(7)(v)-7 TRANS Demand'!I537+'FR-16(7)(v)-8 TRANS Energy'!I537+'FR-16(7)(v)-9 TRANS Cust'!I537+'FR-16(7)(v)-11 DIST Demand'!I537+'FR-16(7)(v)-12 DIST Energy'!I537+'FR-16(7)(v)-13 DIST Cust'!I537","v":0},{"$f":"'FR-16(7)(v)-3 PROD Demand'!J537+'FR-16(7)(v)-4 PROD Energy'!J537+'FR-16(7)(v)-5 PROD Cust'!J537+'FR-16(7)(v)-7 TRANS Demand'!J537+'FR-16(7)(v)-8 TRANS Energy'!J537+'FR-16(7)(v)-9 TRANS Cust'!J537+'FR-16(7)(v)-11 DIST Demand'!J537+'FR-16(7)(v)-12 DIST Energy'!J537+'FR-16(7)(v)-13 DIST Cust'!J537","v":0},{"$f":"'FR-16(7)(v)-3 PROD Demand'!K537+'FR-16(7)(v)-4 PROD Energy'!K537+'FR-16(7)(v)-5 PROD Cust'!K537+'FR-16(7)(v)-7 TRANS Demand'!K537+'FR-16(7)(v)-8 TRANS Energy'!K537+'FR-16(7)(v)-9 TRANS Cust'!K537+'FR-16(7)(v)-11 DIST Demand'!K537+'FR-16(7)(v)-12 DIST Energy'!K537+'FR-16(7)(v)-13 DIST Cust'!K537","v":0},{"$f":"'FR-16(7)(v)-3 PROD Demand'!L537+'FR-16(7)(v)-4 PROD Energy'!L537+'FR-16(7)(v)-5 PROD Cust'!L537+'FR-16(7)(v)-7 TRANS Demand'!L537+'FR-16(7)(v)-8 TRANS Energy'!L537+'FR-16(7)(v)-9 TRANS Cust'!L537+'FR-16(7)(v)-11 DIST Demand'!L537+'FR-16(7)(v)-12 DIST Energy'!L537+'FR-16(7)(v)-13 DIST Cust'!L537","v":0},{"$f":"'FR-16(7)(v)-3 PROD Demand'!M537+'FR-16(7)(v)-4 PROD Energy'!M537+'FR-16(7)(v)-5 PROD Cust'!M537+'FR-16(7)(v)-7 TRANS Demand'!M537+'FR-16(7)(v)-8 TRANS Energy'!M537+'FR-16(7)(v)-9 TRANS Cust'!M537+'FR-16(7)(v)-11 DIST Demand'!M537+'FR-16(7)(v)-12 DIST Energy'!M537+'FR-16(7)(v)-13 DIST Cust'!M537","v":0},{"$f":"'FR-16(7)(v)-3 PROD Demand'!N537+'FR-16(7)(v)-4 PROD Energy'!N537+'FR-16(7)(v)-5 PROD Cust'!N537+'FR-16(7)(v)-7 TRANS Demand'!N537+'FR-16(7)(v)-8 TRANS Energy'!N537+'FR-16(7)(v)-9 TRANS Cust'!N537+'FR-16(7)(v)-11 DIST Demand'!N537+'FR-16(7)(v)-12 DIST Energy'!N537+'FR-16(7)(v)-13 DIST Cust'!N537","v":0},{"$f":"'FR-16(7)(v)-3 PROD Demand'!O537+'FR-16(7)(v)-4 PROD Energy'!O537+'FR-16(7)(v)-5 PROD Cust'!O537+'FR-16(7)(v)-7 TRANS Demand'!O537+'FR-16(7)(v)-8 TRANS Energy'!O537+'FR-16(7)(v)-9 TRANS Cust'!O537+'FR-16(7)(v)-11 DIST Demand'!O537+'FR-16(7)(v)-12 DIST Energy'!O537+'FR-16(7)(v)-13 DIST Cust'!O537","v":0},{"$f":"'FR-16(7)(v)-3 PROD Demand'!P537+'FR-16(7)(v)-4 PROD Energy'!P537+'FR-16(7)(v)-5 PROD Cust'!P537+'FR-16(7)(v)-7 TRANS Demand'!P537+'FR-16(7)(v)-8 TRANS Energy'!P537+'FR-16(7)(v)-9 TRANS Cust'!P537+'FR-16(7)(v)-11 DIST Demand'!P537+'FR-16(7)(v)-12 DIST Energy'!P537+'FR-16(7)(v)-13 DIST Cust'!P537","v":0},{"$f":"'FR-16(7)(v)-3 PROD Demand'!Q537+'FR-16(7)(v)-4 PROD Energy'!Q537+'FR-16(7)(v)-5 PROD Cust'!Q537+'FR-16(7)(v)-7 TRANS Demand'!Q537+'FR-16(7)(v)-8 TRANS Energy'!Q537+'FR-16(7)(v)-9 TRANS Cust'!Q537+'FR-16(7)(v)-11 DIST Demand'!Q537+'FR-16(7)(v)-12 DIST Energy'!Q537+'FR-16(7)(v)-13 DIST Cust'!Q537","v":0},0,0]
[24,null,{"$f":"'FR-16(7)(v)-1 Functional'!C538","v":"PENSION ADJUSTMENT"},{"$f":"'FR-16(7)(v)-1 Functional'!D538","v":"A315"},null,{"$f":"'FR-16(7)(v)-1 Functional'!F538","v":-567560},{"$f":"'FR-16(7)(v)-3 PROD Demand'!G538+'FR-16(7)(v)-4 PROD Energy'!G538+'FR-16(7)(v)-5 PROD Cust'!G538+'FR-16(7)(v)-7 TRANS Demand'!G538+'FR-16(7)(v)-8 TRANS Energy'!G538+'FR-16(7)(v)-9 TRANS Cust'!G538+'FR-16(7)(v)-11 DIST Demand'!G538+'FR-16(7)(v)-12 DIST Energy'!G538+'FR-16(7)(v)-13 DIST Cust'!G538","v":-371038},{"$f":"'FR-16(7)(v)-3 PROD Demand'!H538+'FR-16(7)(v)-4 PROD Energy'!H538+'FR-16(7)(v)-5 PROD Cust'!H538+'FR-16(7)(v)-7 TRANS Demand'!H538+'FR-16(7)(v)-8 TRANS Energy'!H538+'FR-16(7)(v)-9 TRANS Cust'!H538+'FR-16(7)(v)-11 DIST Demand'!H538+'FR-16(7)(v)-12 DIST Energy'!H538+'FR-16(7)(v)-13 DIST Cust'!H538","v":-96151},{"$f":"'FR-16(7)(v)-3 PROD Demand'!I538+'FR-16(7)(v)-4 PROD Energy'!I538+'FR-16(7)(v)-5 PROD Cust'!I538+'FR-16(7)(v)-7 TRANS Demand'!I538+'FR-16(7)(v)-8 TRANS Energy'!I538+'FR-16(7)(v)-9 TRANS Cust'!I538+'FR-16(7)(v)-11 DIST Demand'!I538+'FR-16(7)(v)-12 DIST Energy'!I538+'FR-16(7)(v)-13 DIST Cust'!I538","v":-511},{"$f":"'FR-16(7)(v)-3 PROD Demand'!J538+'FR-16(7)(v)-4 PROD Energy'!J538+'FR-16(7)(v)-5 PROD Cust'!J538+'FR-16(7)(v)-7 TRANS Demand'!J538+'FR-16(7)(v)-8 TRANS Energy'!J538+'FR-16(7)(v)-9 TRANS Cust'!J538+'FR-16(7)(v)-11 DIST Demand'!J538+'FR-16(7)(v)-12 DIST Energy'!J538+'FR-16(7)(v)-13 DIST Cust'!J538","v":-1640},{"$f":"'FR-16(7)(v)-3 PROD Demand'!K538+'FR-16(7)(v)-4 PROD Energy'!K538+'FR-16(7)(v)-5 PROD Cust'!K538+'FR-16(7)(v)-7 TRANS Demand'!K538+'FR-16(7)(v)-8 TRANS Energy'!K538+'FR-16(7)(v)-9 TRANS Cust'!K538+'FR-16(7)(v)-11 DIST Demand'!K538+'FR-16(7)(v)-12 DIST Energy'!K538+'FR-16(7)(v)-13 DIST Cust'!K538","v":-38},{"$f":"'FR-16(7)(v)-3 PROD Demand'!L538+'FR-16(7)(v)-4 PROD Energy'!L538+'FR-16(7)(v)-5 PROD Cust'!L538+'FR-16(7)(v)-7 TRANS Demand'!L538+'FR-16(7)(v)-8 TRANS Energy'!L538+'FR-16(7)(v)-9 TRANS Cust'!L538+'FR-16(7)(v)-11 DIST Demand'!L538+'FR-16(7)(v)-12 DIST Energy'!L538+'FR-16(7)(v)-13 DIST Cust'!L538","v":-47026},{"$f":"'FR-16(7)(v)-3 PROD Demand'!M538+'FR-16(7)(v)-4 PROD Energy'!M538+'FR-16(7)(v)-5 PROD Cust'!M538+'FR-16(7)(v)-7 TRANS Demand'!M538+'FR-16(7)(v)-8 TRANS Energy'!M538+'FR-16(7)(v)-9 TRANS Cust'!M538+'FR-16(7)(v)-11 DIST Demand'!M538+'FR-16(7)(v)-12 DIST Energy'!M538+'FR-16(7)(v)-13 DIST Cust'!M538","v":-31728},{"$f":"'FR-16(7)(v)-3 PROD Demand'!N538+'FR-16(7)(v)-4 PROD Energy'!N538+'FR-16(7)(v)-5 PROD Cust'!N538+'FR-16(7)(v)-7 TRANS Demand'!N538+'FR-16(7)(v)-8 TRANS Energy'!N538+'FR-16(7)(v)-9 TRANS Cust'!N538+'FR-16(7)(v)-11 DIST Demand'!N538+'FR-16(7)(v)-12 DIST Energy'!N538+'FR-16(7)(v)-13 DIST Cust'!N538","v":-1561},{"$f":"'FR-16(7)(v)-3 PROD Demand'!O538+'FR-16(7)(v)-4 PROD Energy'!O538+'FR-16(7)(v)-5 PROD Cust'!O538+'FR-16(7)(v)-7 TRANS Demand'!O538+'FR-16(7)(v)-8 TRANS Energy'!O538+'FR-16(7)(v)-9 TRANS Cust'!O538+'FR-16(7)(v)-11 DIST Demand'!O538+'FR-16(7)(v)-12 DIST Energy'!O538+'FR-16(7)(v)-13 DIST Cust'!O538","v":-13075},{"$f":"'FR-16(7)(v)-3 PROD Demand'!P538+'FR-16(7)(v)-4 PROD Energy'!P538+'FR-16(7)(v)-5 PROD Cust'!P538+'FR-16(7)(v)-7 TRANS Demand'!P538+'FR-16(7)(v)-8 TRANS Energy'!P538+'FR-16(7)(v)-9 TRANS Cust'!P538+'FR-16(7)(v)-11 DIST Demand'!P538+'FR-16(7)(v)-12 DIST Energy'!P538+'FR-16(7)(v)-13 DIST Cust'!P538","v":-4741},{"$f":"'FR-16(7)(v)-3 PROD Demand'!Q538+'FR-16(7)(v)-4 PROD Energy'!Q538+'FR-16(7)(v)-5 PROD Cust'!Q538+'FR-16(7)(v)-7 TRANS Demand'!Q538+'FR-16(7)(v)-8 TRANS Energy'!Q538+'FR-16(7)(v)-9 TRANS Cust'!Q538+'FR-16(7)(v)-11 DIST Demand'!Q538+'FR-16(7)(v)-12 DIST Energy'!Q538+'FR-16(7)(v)-13 DIST Cust'!Q538","v":-51},-567560,0]
[25,null,{"$f":"'FR-16(7)(v)-1 Functional'!C539","v":"ELIMINATE MISC EXPENSES"},{"$f":"'FR-16(7)(v)-1 Functional'!D539","v":"A315"},null,{"$f":"'FR-16(7)(v)-1 Functional'!F539","v":-547465},{"$f":"'FR-16(7)(v)-3 PROD Demand'!G539+'FR-16(7)(v)-4 PROD Energy'!G539+'FR-16(7)(v)-5 PROD Cust'!G539+'FR-16(7)(v)-7 TRANS Demand'!G539+'FR-16(7)(v)-8 TRANS Energy'!G539+'FR-16(7)(v)-9 TRANS Cust'!G539+'FR-16(7)(v)-11 DIST Demand'!G539+'FR-16(7)(v)-12 DIST Energy'!G539+'FR-16(7)(v)-13 DIST Cust'!G539","v":-357901},{"$f":"'FR-16(7)(v)-3 PROD Demand'!H539+'FR-16(7)(v)-4 PROD Energy'!H539+'FR-16(7)(v)-5 PROD Cust'!H539+'FR-16(7)(v)-7 TRANS Demand'!H539+'FR-16(7)(v)-8 TRANS Energy'!H539+'FR-16(7)(v)-9 TRANS Cust'!H539+'FR-16(7)(v)-11 DIST Demand'!H539+'FR-16(7)(v)-12 DIST Energy'!H539+'FR-16(7)(v)-13 DIST Cust'!H539","v":-92747},{"$f":"'FR-16(7)(v)-3 PROD Demand'!I539+'FR-16(7)(v)-4 PROD Energy'!I539+'FR-16(7)(v)-5 PROD Cust'!I539+'FR-16(7)(v)-7 TRANS Demand'!I539+'FR-16(7)(v)-8 TRANS Energy'!I539+'FR-16(7)(v)-9 TRANS Cust'!I539+'FR-16(7)(v)-11 DIST Demand'!I539+'FR-16(7)(v)-12 DIST Energy'!I539+'FR-16(7)(v)-13 DIST Cust'!I539","v":-493},{"$f":"'FR-16(7)(v)-3 PROD Demand'!J539+'FR-16(7)(v)-4 PROD Energy'!J539+'FR-16(7)(v)-5 PROD Cust'!J539+'FR-16(7)(v)-7 TRANS Demand'!J539+'FR-16(7)(v)-8 TRANS Energy'!J539+'FR-16(7)(v)-9 TRANS Cust'!J539+'FR-16(7)(v)-11 DIST Demand'!J539+'FR-16(7)(v)-12 DIST Energy'!J539+'FR-16(7)(v)-13 DIST Cust'!J539","v":-1582},{"$f":"'FR-16(7)(v)-3 PROD Demand'!K539+'FR-16(7)(v)-4 PROD Energy'!K539+'FR-16(7)(v)-5 PROD Cust'!K539+'FR-16(7)(v)-7 TRANS Demand'!K539+'FR-16(7)(v)-8 TRANS Energy'!K539+'FR-16(7)(v)-9 TRANS Cust'!K539+'FR-16(7)(v)-11 DIST Demand'!K539+'FR-16(7)(v)-12 DIST Energy'!K539+'FR-16(7)(v)-13 DIST Cust'!K539","v":-36},{"$f":"'FR-16(7)(v)-3 PROD Demand'!L539+'FR-16(7)(v)-4 PROD Energy'!L539+'FR-16(7)(v)-5 PROD Cust'!L539+'FR-16(7)(v)-7 TRANS Demand'!L539+'FR-16(7)(v)-8 TRANS Energy'!L539+'FR-16(7)(v)-9 TRANS Cust'!L539+'FR-16(7)(v)-11 DIST Demand'!L539+'FR-16(7)(v)-12 DIST Energy'!L539+'FR-16(7)(v)-13 DIST Cust'!L539","v":-45362},{"$f":"'FR-16(7)(v)-3 PROD Demand'!M539+'FR-16(7)(v)-4 PROD Energy'!M539+'FR-16(7)(v)-5 PROD Cust'!M539+'FR-16(7)(v)-7 TRANS Demand'!M539+'FR-16(7)(v)-8 TRANS Energy'!M539+'FR-16(7)(v)-9 TRANS Cust'!M539+'FR-16(7)(v)-11 DIST Demand'!M539+'FR-16(7)(v)-12 DIST Energy'!M539+'FR-16(7)(v)-13 DIST Cust'!M539","v":-30605},{"$f":"'FR-16(7)(v)-3 PROD Demand'!N539+'FR-16(7)(v)-4 PROD Energy'!N539+'FR-16(7)(v)-5 PROD Cust'!N539+'FR-16(7)(v)-7 TRANS Demand'!N539+'FR-16(7)(v)-8 TRANS Energy'!N539+'FR-16(7)(v)-9 TRANS Cust'!N539+'FR-16(7)(v)-11 DIST Demand'!N539+'FR-16(7)(v)-12 DIST Energy'!N539+'FR-16(7)(v)-13 DIST Cust'!N539","v":-1506},{"$f":"'FR-16(7)(v)-3 PROD Demand'!O539+'FR-16(7)(v)-4 PROD Energy'!O539+'FR-16(7)(v)-5 PROD Cust'!O539+'FR-16(7)(v)-7 TRANS Demand'!O539+'FR-16(7)(v)-8 TRANS Energy'!O539+'FR-16(7)(v)-9 TRANS Cust'!O539+'FR-16(7)(v)-11 DIST Demand'!O539+'FR-16(7)(v)-12 DIST Energy'!O539+'FR-16(7)(v)-13 DIST Cust'!O539","v":-12611},{"$f":"'FR-16(7)(v)-3 PROD Demand'!P539+'FR-16(7)(v)-4 PROD Energy'!P539+'FR-16(7)(v)-5 PROD Cust'!P539+'FR-16(7)(v)-7 TRANS Demand'!P539+'FR-16(7)(v)-8 TRANS Energy'!P539+'FR-16(7)(v)-9 TRANS Cust'!P539+'FR-16(7)(v)-11 DIST Demand'!P539+'FR-16(7)(v)-12 DIST Energy'!P539+'FR-16(7)(v)-13 DIST Cust'!P539","v":-4573},{"$f":"'FR-16(7)(v)-3 PROD Demand'!Q539+'FR-16(7)(v)-4 PROD Energy'!Q539+'FR-16(7)(v)-5 PROD Cust'!Q539+'FR-16(7)(v)-7 TRANS Demand'!Q539+'FR-16(7)(v)-8 TRANS Energy'!Q539+'FR-16(7)(v)-9 TRANS Cust'!Q539+'FR-16(7)(v)-11 DIST Demand'!Q539+'FR-16(7)(v)-12 DIST Energy'!Q539+'FR-16(7)(v)-13 DIST Cust'!Q539","v":-49},-547465,0]
[26,null,{"$f":"'FR-16(7)(v)-1 Functional'!C540","v":"ELIMINATE MERGER COSTS AND CREDITS"},{"$f":"'FR-16(7)(v)-1 Functional'!D540","v":"A315"},null,{"$f":"'FR-16(7)(v)-1 Functional'!F540","v":0},{"$f":"'FR-16(7)(v)-3 PROD Demand'!G540+'FR-16(7)(v)-4 PROD Energy'!G540+'FR-16(7)(v)-5 PROD Cust'!G540+'FR-16(7)(v)-7 TRANS Demand'!G540+'FR-16(7)(v)-8 TRANS Energy'!G540+'FR-16(7)(v)-9 TRANS Cust'!G540+'FR-16(7)(v)-11 DIST Demand'!G540+'FR-16(7)(v)-12 DIST Energy'!G540+'FR-16(7)(v)-13 DIST Cust'!G540","v":0},{"$f":"'FR-16(7)(v)-3 PROD Demand'!H540+'FR-16(7)(v)-4 PROD Energy'!H540+'FR-16(7)(v)-5 PROD Cust'!H540+'FR-16(7)(v)-7 TRANS Demand'!H540+'FR-16(7)(v)-8 TRANS Energy'!H540+'FR-16(7)(v)-9 TRANS Cust'!H540+'FR-16(7)(v)-11 DIST Demand'!H540+'FR-16(7)(v)-12 DIST Energy'!H540+'FR-16(7)(v)-13 DIST Cust'!H540","v":0},{"$f":"'FR-16(7)(v)-3 PROD Demand'!I540+'FR-16(7)(v)-4 PROD Energy'!I540+'FR-16(7)(v)-5 PROD Cust'!I540+'FR-16(7)(v)-7 TRANS Demand'!I540+'FR-16(7)(v)-8 TRANS Energy'!I540+'FR-16(7)(v)-9 TRANS Cust'!I540+'FR-16(7)(v)-11 DIST Demand'!I540+'FR-16(7)(v)-12 DIST Energy'!I540+'FR-16(7)(v)-13 DIST Cust'!I540","v":0},{"$f":"'FR-16(7)(v)-3 PROD Demand'!J540+'FR-16(7)(v)-4 PROD Energy'!J540+'FR-16(7)(v)-5 PROD Cust'!J540+'FR-16(7)(v)-7 TRANS Demand'!J540+'FR-16(7)(v)-8 TRANS Energy'!J540+'FR-16(7)(v)-9 TRANS Cust'!J540+'FR-16(7)(v)-11 DIST Demand'!J540+'FR-16(7)(v)-12 DIST Energy'!J540+'FR-16(7)(v)-13 DIST Cust'!J540","v":0},{"$f":"'FR-16(7)(v)-3 PROD Demand'!K540+'FR-16(7)(v)-4 PROD Energy'!K540+'FR-16(7)(v)-5 PROD Cust'!K540+'FR-16(7)(v)-7 TRANS Demand'!K540+'FR-16(7)(v)-8 TRANS Energy'!K540+'FR-16(7)(v)-9 TRANS Cust'!K540+'FR-16(7)(v)-11 DIST Demand'!K540+'FR-16(7)(v)-12 DIST Energy'!K540+'FR-16(7)(v)-13 DIST Cust'!K540","v":0},{"$f":"'FR-16(7)(v)-3 PROD Demand'!L540+'FR-16(7)(v)-4 PROD Energy'!L540+'FR-16(7)(v)-5 PROD Cust'!L540+'FR-16(7)(v)-7 TRANS Demand'!L540+'FR-16(7)(v)-8 TRANS Energy'!L540+'FR-16(7)(v)-9 TRANS Cust'!L540+'FR-16(7)(v)-11 DIST Demand'!L540+'FR-16(7)(v)-12 DIST Energy'!L540+'FR-16(7)(v)-13 DIST Cust'!L540","v":0},{"$f":"'FR-16(7)(v)-3 PROD Demand'!M540+'FR-16(7)(v)-4 PROD Energy'!M540+'FR-16(7)(v)-5 PROD Cust'!M540+'FR-16(7)(v)-7 TRANS Demand'!M540+'FR-16(7)(v)-8 TRANS Energy'!M540+'FR-16(7)(v)-9 TRANS Cust'!M540+'FR-16(7)(v)-11 DIST Demand'!M540+'FR-16(7)(v)-12 DIST Energy'!M540+'FR-16(7)(v)-13 DIST Cust'!M540","v":0},{"$f":"'FR-16(7)(v)-3 PROD Demand'!N540+'FR-16(7)(v)-4 PROD Energy'!N540+'FR-16(7)(v)-5 PROD Cust'!N540+'FR-16(7)(v)-7 TRANS Demand'!N540+'FR-16(7)(v)-8 TRANS Energy'!N540+'FR-16(7)(v)-9 TRANS Cust'!N540+'FR-16(7)(v)-11 DIST Demand'!N540+'FR-16(7)(v)-12 DIST Energy'!N540+'FR-16(7)(v)-13 DIST Cust'!N540","v":0},{"$f":"'FR-16(7)(v)-3 PROD Demand'!O540+'FR-16(7)(v)-4 PROD Energy'!O540+'FR-16(7)(v)-5 PROD Cust'!O540+'FR-16(7)(v)-7 TRANS Demand'!O540+'FR-16(7)(v)-8 TRANS Energy'!O540+'FR-16(7)(v)-9 TRANS Cust'!O540+'FR-16(7)(v)-11 DIST Demand'!O540+'FR-16(7)(v)-12 DIST Energy'!O540+'FR-16(7)(v)-13 DIST Cust'!O540","v":0},{"$f":"'FR-16(7)(v)-3 PROD Demand'!P540+'FR-16(7)(v)-4 PROD Energy'!P540+'FR-16(7)(v)-5 PROD Cust'!P540+'FR-16(7)(v)-7 TRANS Demand'!P540+'FR-16(7)(v)-8 TRANS Energy'!P540+'FR-16(7)(v)-9 TRANS Cust'!P540+'FR-16(7)(v)-11 DIST Demand'!P540+'FR-16(7)(v)-12 DIST Energy'!P540+'FR-16(7)(v)-13 DIST Cust'!P540","v":0},{"$f":"'FR-16(7)(v)-3 PROD Demand'!Q540+'FR-16(7)(v)-4 PROD Energy'!Q540+'FR-16(7)(v)-5 PROD Cust'!Q540+'FR-16(7)(v)-7 TRANS Demand'!Q540+'FR-16(7)(v)-8 TRANS Energy'!Q540+'FR-16(7)(v)-9 TRANS Cust'!Q540+'FR-16(7)(v)-11 DIST Demand'!Q540+'FR-16(7)(v)-12 DIST Energy'!Q540+'FR-16(7)(v)-13 DIST Cust'!Q540","v":0},{"$f":"SUM(G540:Q540)","v":0},0]
[27,null,{"$f":"'FR-16(7)(v)-1 Functional'!C541","v":"ANNUALIZE KYPSC MAINT TAX"},{"$f":"'FR-16(7)(v)-1 Functional'!D541","v":"A315"},null,{"$f":"'FR-16(7)(v)-1 Functional'!F541","v":0},{"$f":"'FR-16(7)(v)-3 PROD Demand'!G541+'FR-16(7)(v)-4 PROD Energy'!G541+'FR-16(7)(v)-5 PROD Cust'!G541+'FR-16(7)(v)-7 TRANS Demand'!G541+'FR-16(7)(v)-8 TRANS Energy'!G541+'FR-16(7)(v)-9 TRANS Cust'!G541+'FR-16(7)(v)-11 DIST Demand'!G541+'FR-16(7)(v)-12 DIST Energy'!G541+'FR-16(7)(v)-13 DIST Cust'!G541","v":0},{"$f":"'FR-16(7)(v)-3 PROD Demand'!H541+'FR-16(7)(v)-4 PROD Energy'!H541+'FR-16(7)(v)-5 PROD Cust'!H541+'FR-16(7)(v)-7 TRANS Demand'!H541+'FR-16(7)(v)-8 TRANS Energy'!H541+'FR-16(7)(v)-9 TRANS Cust'!H541+'FR-16(7)(v)-11 DIST Demand'!H541+'FR-16(7)(v)-12 DIST Energy'!H541+'FR-16(7)(v)-13 DIST Cust'!H541","v":0},{"$f":"'FR-16(7)(v)-3 PROD Demand'!I541+'FR-16(7)(v)-4 PROD Energy'!I541+'FR-16(7)(v)-5 PROD Cust'!I541+'FR-16(7)(v)-7 TRANS Demand'!I541+'FR-16(7)(v)-8 TRANS Energy'!I541+'FR-16(7)(v)-9 TRANS Cust'!I541+'FR-16(7)(v)-11 DIST Demand'!I541+'FR-16(7)(v)-12 DIST Energy'!I541+'FR-16(7)(v)-13 DIST Cust'!I541","v":0},{"$f":"'FR-16(7)(v)-3 PROD Demand'!J541+'FR-16(7)(v)-4 PROD Energy'!J541+'FR-16(7)(v)-5 PROD Cust'!J541+'FR-16(7)(v)-7 TRANS Demand'!J541+'FR-16(7)(v)-8 TRANS Energy'!J541+'FR-16(7)(v)-9 TRANS Cust'!J541+'FR-16(7)(v)-11 DIST Demand'!J541+'FR-16(7)(v)-12 DIST Energy'!J541+'FR-16(7)(v)-13 DIST Cust'!J541","v":0},{"$f":"'FR-16(7)(v)-3 PROD Demand'!K541+'FR-16(7)(v)-4 PROD Energy'!K541+'FR-16(7)(v)-5 PROD Cust'!K541+'FR-16(7)(v)-7 TRANS Demand'!K541+'FR-16(7)(v)-8 TRANS Energy'!K541+'FR-16(7)(v)-9 TRANS Cust'!K541+'FR-16(7)(v)-11 DIST Demand'!K541+'FR-16(7)(v)-12 DIST Energy'!K541+'FR-16(7)(v)-13 DIST Cust'!K541","v":0},{"$f":"'FR-16(7)(v)-3 PROD Demand'!L541+'FR-16(7)(v)-4 PROD Energy'!L541+'FR-16(7)(v)-5 PROD Cust'!L541+'FR-16(7)(v)-7 TRANS Demand'!L541+'FR-16(7)(v)-8 TRANS Energy'!L541+'FR-16(7)(v)-9 TRANS Cust'!L541+'FR-16(7)(v)-11 DIST Demand'!L541+'FR-16(7)(v)-12 DIST Energy'!L541+'FR-16(7)(v)-13 DIST Cust'!L541","v":0},{"$f":"'FR-16(7)(v)-3 PROD Demand'!M541+'FR-16(7)(v)-4 PROD Energy'!M541+'FR-16(7)(v)-5 PROD Cust'!M541+'FR-16(7)(v)-7 TRANS Demand'!M541+'FR-16(7)(v)-8 TRANS Energy'!M541+'FR-16(7)(v)-9 TRANS Cust'!M541+'FR-16(7)(v)-11 DIST Demand'!M541+'FR-16(7)(v)-12 DIST Energy'!M541+'FR-16(7)(v)-13 DIST Cust'!M541","v":0},{"$f":"'FR-16(7)(v)-3 PROD Demand'!N541+'FR-16(7)(v)-4 PROD Energy'!N541+'FR-16(7)(v)-5 PROD Cust'!N541+'FR-16(7)(v)-7 TRANS Demand'!N541+'FR-16(7)(v)-8 TRANS Energy'!N541+'FR-16(7)(v)-9 TRANS Cust'!N541+'FR-16(7)(v)-11 DIST Demand'!N541+'FR-16(7)(v)-12 DIST Energy'!N541+'FR-16(7)(v)-13 DIST Cust'!N541","v":0},{"$f":"'FR-16(7)(v)-3 PROD Demand'!O541+'FR-16(7)(v)-4 PROD Energy'!O541+'FR-16(7)(v)-5 PROD Cust'!O541+'FR-16(7)(v)-7 TRANS Demand'!O541+'FR-16(7)(v)-8 TRANS Energy'!O541+'FR-16(7)(v)-9 TRANS Cust'!O541+'FR-16(7)(v)-11 DIST Demand'!O541+'FR-16(7)(v)-12 DIST Energy'!O541+'FR-16(7)(v)-13 DIST Cust'!O541","v":0},{"$f":"'FR-16(7)(v)-3 PROD Demand'!P541+'FR-16(7)(v)-4 PROD Energy'!P541+'FR-16(7)(v)-5 PROD Cust'!P541+'FR-16(7)(v)-7 TRANS Demand'!P541+'FR-16(7)(v)-8 TRANS Energy'!P541+'FR-16(7)(v)-9 TRANS Cust'!P541+'FR-16(7)(v)-11 DIST Demand'!P541+'FR-16(7)(v)-12 DIST Energy'!P541+'FR-16(7)(v)-13 DIST Cust'!P541","v":0},{"$f":"'FR-16(7)(v)-3 PROD Demand'!Q541+'FR-16(7)(v)-4 PROD Energy'!Q541+'FR-16(7)(v)-5 PROD Cust'!Q541+'FR-16(7)(v)-7 TRANS Demand'!Q541+'FR-16(7)(v)-8 TRANS Energy'!Q541+'FR-16(7)(v)-9 TRANS Cust'!Q541+'FR-16(7)(v)-11 DIST Demand'!Q541+'FR-16(7)(v)-12 DIST Energy'!Q541+'FR-16(7)(v)-13 DIST Cust'!Q541","v":0},0,0]
[28,null,{"$f":"'FR-16(7)(v)-1 Functional'!C542","v":"REMOVE INCENTIVE COMP"},{"$f":"'FR-16(7)(v)-1 Functional'!D542","v":"A315"},null,{"$f":"'FR-16(7)(v)-1 Functional'!F542","v":-1580476},{"$f":"'FR-16(7)(v)-3 PROD Demand'!G542+'FR-16(7)(v)-4 PROD Energy'!G542+'FR-16(7)(v)-5 PROD Cust'!G542+'FR-16(7)(v)-7 TRANS Demand'!G542+'FR-16(7)(v)-8 TRANS Energy'!G542+'FR-16(7)(v)-9 TRANS Cust'!G542+'FR-16(7)(v)-11 DIST Demand'!G542+'FR-16(7)(v)-12 DIST Energy'!G542+'FR-16(7)(v)-13 DIST Cust'!G542","v":-1033229},{"$f":"'FR-16(7)(v)-3 PROD Demand'!H542+'FR-16(7)(v)-4 PROD Energy'!H542+'FR-16(7)(v)-5 PROD Cust'!H542+'FR-16(7)(v)-7 TRANS Demand'!H542+'FR-16(7)(v)-8 TRANS Energy'!H542+'FR-16(7)(v)-9 TRANS Cust'!H542+'FR-16(7)(v)-11 DIST Demand'!H542+'FR-16(7)(v)-12 DIST Energy'!H542+'FR-16(7)(v)-13 DIST Cust'!H542","v":-267749},{"$f":"'FR-16(7)(v)-3 PROD Demand'!I542+'FR-16(7)(v)-4 PROD Energy'!I542+'FR-16(7)(v)-5 PROD Cust'!I542+'FR-16(7)(v)-7 TRANS Demand'!I542+'FR-16(7)(v)-8 TRANS Energy'!I542+'FR-16(7)(v)-9 TRANS Cust'!I542+'FR-16(7)(v)-11 DIST Demand'!I542+'FR-16(7)(v)-12 DIST Energy'!I542+'FR-16(7)(v)-13 DIST Cust'!I542","v":-1424},{"$f":"'FR-16(7)(v)-3 PROD Demand'!J542+'FR-16(7)(v)-4 PROD Energy'!J542+'FR-16(7)(v)-5 PROD Cust'!J542+'FR-16(7)(v)-7 TRANS Demand'!J542+'FR-16(7)(v)-8 TRANS Energy'!J542+'FR-16(7)(v)-9 TRANS Cust'!J542+'FR-16(7)(v)-11 DIST Demand'!J542+'FR-16(7)(v)-12 DIST Energy'!J542+'FR-16(7)(v)-13 DIST Cust'!J542","v":-4566},{"$f":"'FR-16(7)(v)-3 PROD Demand'!K542+'FR-16(7)(v)-4 PROD Energy'!K542+'FR-16(7)(v)-5 PROD Cust'!K542+'FR-16(7)(v)-7 TRANS Demand'!K542+'FR-16(7)(v)-8 TRANS Energy'!K542+'FR-16(7)(v)-9 TRANS Cust'!K542+'FR-16(7)(v)-11 DIST Demand'!K542+'FR-16(7)(v)-12 DIST Energy'!K542+'FR-16(7)(v)-13 DIST Cust'!K542","v":-102},{"$f":"'FR-16(7)(v)-3 PROD Demand'!L542+'FR-16(7)(v)-4 PROD Energy'!L542+'FR-16(7)(v)-5 PROD Cust'!L542+'FR-16(7)(v)-7 TRANS Demand'!L542+'FR-16(7)(v)-8 TRANS Energy'!L542+'FR-16(7)(v)-9 TRANS Cust'!L542+'FR-16(7)(v)-11 DIST Demand'!L542+'FR-16(7)(v)-12 DIST Energy'!L542+'FR-16(7)(v)-13 DIST Cust'!L542","v":-130954},{"$f":"'FR-16(7)(v)-3 PROD Demand'!M542+'FR-16(7)(v)-4 PROD Energy'!M542+'FR-16(7)(v)-5 PROD Cust'!M542+'FR-16(7)(v)-7 TRANS Demand'!M542+'FR-16(7)(v)-8 TRANS Energy'!M542+'FR-16(7)(v)-9 TRANS Cust'!M542+'FR-16(7)(v)-11 DIST Demand'!M542+'FR-16(7)(v)-12 DIST Energy'!M542+'FR-16(7)(v)-13 DIST Cust'!M542","v":-88350},{"$f":"'FR-16(7)(v)-3 PROD Demand'!N542+'FR-16(7)(v)-4 PROD Energy'!N542+'FR-16(7)(v)-5 PROD Cust'!N542+'FR-16(7)(v)-7 TRANS Demand'!N542+'FR-16(7)(v)-8 TRANS Energy'!N542+'FR-16(7)(v)-9 TRANS Cust'!N542+'FR-16(7)(v)-11 DIST Demand'!N542+'FR-16(7)(v)-12 DIST Energy'!N542+'FR-16(7)(v)-13 DIST Cust'!N542","v":-4348},{"$f":"'FR-16(7)(v)-3 PROD Demand'!O542+'FR-16(7)(v)-4 PROD Energy'!O542+'FR-16(7)(v)-5 PROD Cust'!O542+'FR-16(7)(v)-7 TRANS Demand'!O542+'FR-16(7)(v)-8 TRANS Energy'!O542+'FR-16(7)(v)-9 TRANS Cust'!O542+'FR-16(7)(v)-11 DIST Demand'!O542+'FR-16(7)(v)-12 DIST Energy'!O542+'FR-16(7)(v)-13 DIST Cust'!O542","v":-36410},{"$f":"'FR-16(7)(v)-3 PROD Demand'!P542+'FR-16(7)(v)-4 PROD Energy'!P542+'FR-16(7)(v)-5 PROD Cust'!P542+'FR-16(7)(v)-7 TRANS Demand'!P542+'FR-16(7)(v)-8 TRANS Energy'!P542+'FR-16(7)(v)-9 TRANS Cust'!P542+'FR-16(7)(v)-11 DIST Demand'!P542+'FR-16(7)(v)-12 DIST Energy'!P542+'FR-16(7)(v)-13 DIST Cust'!P542","v":-13201},{"$f":"'FR-16(7)(v)-3 PROD Demand'!Q542+'FR-16(7)(v)-4 PROD Energy'!Q542+'FR-16(7)(v)-5 PROD Cust'!Q542+'FR-16(7)(v)-7 TRANS Demand'!Q542+'FR-16(7)(v)-8 TRANS Energy'!Q542+'FR-16(7)(v)-9 TRANS Cust'!Q542+'FR-16(7)(v)-11 DIST Demand'!Q542+'FR-16(7)(v)-12 DIST Energy'!Q542+'FR-16(7)(v)-13 DIST Cust'!Q542","v":-143},-1580476,0]
[29,null,{"$f":"'FR-16(7)(v)-1 Functional'!C543","v":"CREDIT CARD FEES"},{"$f":"'FR-16(7)(v)-1 Functional'!D543","v":"A315"},null,{"$f":"'FR-16(7)(v)-1 Functional'!F543","v":0},{"$f":"'FR-16(7)(v)-3 PROD Demand'!G543+'FR-16(7)(v)-4 PROD Energy'!G543+'FR-16(7)(v)-5 PROD Cust'!G543+'FR-16(7)(v)-7 TRANS Demand'!G543+'FR-16(7)(v)-8 TRANS Energy'!G543+'FR-16(7)(v)-9 TRANS Cust'!G543+'FR-16(7)(v)-11 DIST Demand'!G543+'FR-16(7)(v)-12 DIST Energy'!G543+'FR-16(7)(v)-13 DIST Cust'!G543","v":0},{"$f":"'FR-16(7)(v)-3 PROD Demand'!H543+'FR-16(7)(v)-4 PROD Energy'!H543+'FR-16(7)(v)-5 PROD Cust'!H543+'FR-16(7)(v)-7 TRANS Demand'!H543+'FR-16(7)(v)-8 TRANS Energy'!H543+'FR-16(7)(v)-9 TRANS Cust'!H543+'FR-16(7)(v)-11 DIST Demand'!H543+'FR-16(7)(v)-12 DIST Energy'!H543+'FR-16(7)(v)-13 DIST Cust'!H543","v":0},{"$f":"'FR-16(7)(v)-3 PROD Demand'!I543+'FR-16(7)(v)-4 PROD Energy'!I543+'FR-16(7)(v)-5 PROD Cust'!I543+'FR-16(7)(v)-7 TRANS Demand'!I543+'FR-16(7)(v)-8 TRANS Energy'!I543+'FR-16(7)(v)-9 TRANS Cust'!I543+'FR-16(7)(v)-11 DIST Demand'!I543+'FR-16(7)(v)-12 DIST Energy'!I543+'FR-16(7)(v)-13 DIST Cust'!I543","v":0},{"$f":"'FR-16(7)(v)-3 PROD Demand'!J543+'FR-16(7)(v)-4 PROD Energy'!J543+'FR-16(7)(v)-5 PROD Cust'!J543+'FR-16(7)(v)-7 TRANS Demand'!J543+'FR-16(7)(v)-8 TRANS Energy'!J543+'FR-16(7)(v)-9 TRANS Cust'!J543+'FR-16(7)(v)-11 DIST Demand'!J543+'FR-16(7)(v)-12 DIST Energy'!J543+'FR-16(7)(v)-13 DIST Cust'!J543","v":0},{"$f":"'FR-16(7)(v)-3 PROD Demand'!K543+'FR-16(7)(v)-4 PROD Energy'!K543+'FR-16(7)(v)-5 PROD Cust'!K543+'FR-16(7)(v)-7 TRANS Demand'!K543+'FR-16(7)(v)-8 TRANS Energy'!K543+'FR-16(7)(v)-9 TRANS Cust'!K543+'FR-16(7)(v)-11 DIST Demand'!K543+'FR-16(7)(v)-12 DIST Energy'!K543+'FR-16(7)(v)-13 DIST Cust'!K543","v":0},{"$f":"'FR-16(7)(v)-3 PROD Demand'!L543+'FR-16(7)(v)-4 PROD Energy'!L543+'FR-16(7)(v)-5 PROD Cust'!L543+'FR-16(7)(v)-7 TRANS Demand'!L543+'FR-16(7)(v)-8 TRANS Energy'!L543+'FR-16(7)(v)-9 TRANS Cust'!L543+'FR-16(7)(v)-11 DIST Demand'!L543+'FR-16(7)(v)-12 DIST Energy'!L543+'FR-16(7)(v)-13 DIST Cust'!L543","v":0},{"$f":"'FR-16(7)(v)-3 PROD Demand'!M543+'FR-16(7)(v)-4 PROD Energy'!M543+'FR-16(7)(v)-5 PROD Cust'!M543+'FR-16(7)(v)-7 TRANS Demand'!M543+'FR-16(7)(v)-8 TRANS Energy'!M543+'FR-16(7)(v)-9 TRANS Cust'!M543+'FR-16(7)(v)-11 DIST Demand'!M543+'FR-16(7)(v)-12 DIST Energy'!M543+'FR-16(7)(v)-13 DIST Cust'!M543","v":0},{"$f":"'FR-16(7)(v)-3 PROD Demand'!N543+'FR-16(7)(v)-4 PROD Energy'!N543+'FR-16(7)(v)-5 PROD Cust'!N543+'FR-16(7)(v)-7 TRANS Demand'!N543+'FR-16(7)(v)-8 TRANS Energy'!N543+'FR-16(7)(v)-9 TRANS Cust'!N543+'FR-16(7)(v)-11 DIST Demand'!N543+'FR-16(7)(v)-12 DIST Energy'!N543+'FR-16(7)(v)-13 DIST Cust'!N543","v":0},{"$f":"'FR-16(7)(v)-3 PROD Demand'!O543+'FR-16(7)(v)-4 PROD Energy'!O543+'FR-16(7)(v)-5 PROD Cust'!O543+'FR-16(7)(v)-7 TRANS Demand'!O543+'FR-16(7)(v)-8 TRANS Energy'!O543+'FR-16(7)(v)-9 TRANS Cust'!O543+'FR-16(7)(v)-11 DIST Demand'!O543+'FR-16(7)(v)-12 DIST Energy'!O543+'FR-16(7)(v)-13 DIST Cust'!O543","v":0},{"$f":"'FR-16(7)(v)-3 PROD Demand'!P543+'FR-16(7)(v)-4 PROD Energy'!P543+'FR-16(7)(v)-5 PROD Cust'!P543+'FR-16(7)(v)-7 TRANS Demand'!P543+'FR-16(7)(v)-8 TRANS Energy'!P543+'FR-16(7)(v)-9 TRANS Cust'!P543+'FR-16(7)(v)-11 DIST Demand'!P543+'FR-16(7)(v)-12 DIST Energy'!P543+'FR-16(7)(v)-13 DIST Cust'!P543","v":0},{"$f":"'FR-16(7)(v)-3 PROD Demand'!Q543+'FR-16(7)(v)-4 PROD Energy'!Q543+'FR-16(7)(v)-5 PROD Cust'!Q543+'FR-16(7)(v)-7 TRANS Demand'!Q543+'FR-16(7)(v)-8 TRANS Energy'!Q543+'FR-16(7)(v)-9 TRANS Cust'!Q543+'FR-16(7)(v)-11 DIST Demand'!Q543+'FR-16(7)(v)-12 DIST Energy'!Q543+'FR-16(7)(v)-13 DIST Cust'!Q543","v":0},0,0]
[30,null,{"$f":"'FR-16(7)(v)-1 Functional'!C544","v":"ELIMINATE INCENTIVE COMPENSATION ADJUSTMENT"},{"$f":"'FR-16(7)(v)-1 Functional'!D544","v":"A315"},null,{"$f":"'FR-16(7)(v)-1 Functional'!F544","v":0},{"$f":"'FR-16(7)(v)-3 PROD Demand'!G544+'FR-16(7)(v)-4 PROD Energy'!G544+'FR-16(7)(v)-5 PROD Cust'!G544+'FR-16(7)(v)-7 TRANS Demand'!G544+'FR-16(7)(v)-8 TRANS Energy'!G544+'FR-16(7)(v)-9 TRANS Cust'!G544+'FR-16(7)(v)-11 DIST Demand'!G544+'FR-16(7)(v)-12 DIST Energy'!G544+'FR-16(7)(v)-13 DIST Cust'!G544","v":0},{"$f":"'FR-16(7)(v)-3 PROD Demand'!H544+'FR-16(7)(v)-4 PROD Energy'!H544+'FR-16(7)(v)-5 PROD Cust'!H544+'FR-16(7)(v)-7 TRANS Demand'!H544+'FR-16(7)(v)-8 TRANS Energy'!H544+'FR-16(7)(v)-9 TRANS Cust'!H544+'FR-16(7)(v)-11 DIST Demand'!H544+'FR-16(7)(v)-12 DIST Energy'!H544+'FR-16(7)(v)-13 DIST Cust'!H544","v":0},{"$f":"'FR-16(7)(v)-3 PROD Demand'!I544+'FR-16(7)(v)-4 PROD Energy'!I544+'FR-16(7)(v)-5 PROD Cust'!I544+'FR-16(7)(v)-7 TRANS Demand'!I544+'FR-16(7)(v)-8 TRANS Energy'!I544+'FR-16(7)(v)-9 TRANS Cust'!I544+'FR-16(7)(v)-11 DIST Demand'!I544+'FR-16(7)(v)-12 DIST Energy'!I544+'FR-16(7)(v)-13 DIST Cust'!I544","v":0},{"$f":"'FR-16(7)(v)-3 PROD Demand'!J544+'FR-16(7)(v)-4 PROD Energy'!J544+'FR-16(7)(v)-5 PROD Cust'!J544+'FR-16(7)(v)-7 TRANS Demand'!J544+'FR-16(7)(v)-8 TRANS Energy'!J544+'FR-16(7)(v)-9 TRANS Cust'!J544+'FR-16(7)(v)-11 DIST Demand'!J544+'FR-16(7)(v)-12 DIST Energy'!J544+'FR-16(7)(v)-13 DIST Cust'!J544","v":0},{"$f":"'FR-16(7)(v)-3 PROD Demand'!K544+'FR-16(7)(v)-4 PROD Energy'!K544+'FR-16(7)(v)-5 PROD Cust'!K544+'FR-16(7)(v)-7 TRANS Demand'!K544+'FR-16(7)(v)-8 TRANS Energy'!K544+'FR-16(7)(v)-9 TRANS Cust'!K544+'FR-16(7)(v)-11 DIST Demand'!K544+'FR-16(7)(v)-12 DIST Energy'!K544+'FR-16(7)(v)-13 DIST Cust'!K544","v":0},{"$f":"'FR-16(7)(v)-3 PROD Demand'!L544+'FR-16(7)(v)-4 PROD Energy'!L544+'FR-16(7)(v)-5 PROD Cust'!L544+'FR-16(7)(v)-7 TRANS Demand'!L544+'FR-16(7)(v)-8 TRANS Energy'!L544+'FR-16(7)(v)-9 TRANS Cust'!L544+'FR-16(7)(v)-11 DIST Demand'!L544+'FR-16(7)(v)-12 DIST Energy'!L544+'FR-16(7)(v)-13 DIST Cust'!L544","v":0},{"$f":"'FR-16(7)(v)-3 PROD Demand'!M544+'FR-16(7)(v)-4 PROD Energy'!M544+'FR-16(7)(v)-5 PROD Cust'!M544+'FR-16(7)(v)-7 TRANS Demand'!M544+'FR-16(7)(v)-8 TRANS Energy'!M544+'FR-16(7)(v)-9 TRANS Cust'!M544+'FR-16(7)(v)-11 DIST Demand'!M544+'FR-16(7)(v)-12 DIST Energy'!M544+'FR-16(7)(v)-13 DIST Cust'!M544","v":0},{"$f":"'FR-16(7)(v)-3 PROD Demand'!N544+'FR-16(7)(v)-4 PROD Energy'!N544+'FR-16(7)(v)-5 PROD Cust'!N544+'FR-16(7)(v)-7 TRANS Demand'!N544+'FR-16(7)(v)-8 TRANS Energy'!N544+'FR-16(7)(v)-9 TRANS Cust'!N544+'FR-16(7)(v)-11 DIST Demand'!N544+'FR-16(7)(v)-12 DIST Energy'!N544+'FR-16(7)(v)-13 DIST Cust'!N544","v":0},{"$f":"'FR-16(7)(v)-3 PROD Demand'!O544+'FR-16(7)(v)-4 PROD Energy'!O544+'FR-16(7)(v)-5 PROD Cust'!O544+'FR-16(7)(v)-7 TRANS Demand'!O544+'FR-16(7)(v)-8 TRANS Energy'!O544+'FR-16(7)(v)-9 TRANS Cust'!O544+'FR-16(7)(v)-11 DIST Demand'!O544+'FR-16(7)(v)-12 DIST Energy'!O544+'FR-16(7)(v)-13 DIST Cust'!O544","v":0},{"$f":"'FR-16(7)(v)-3 PROD Demand'!P544+'FR-16(7)(v)-4 PROD Energy'!P544+'FR-16(7)(v)-5 PROD Cust'!P544+'FR-16(7)(v)-7 TRANS Demand'!P544+'FR-16(7)(v)-8 TRANS Energy'!P544+'FR-16(7)(v)-9 TRANS Cust'!P544+'FR-16(7)(v)-11 DIST Demand'!P544+'FR-16(7)(v)-12 DIST Energy'!P544+'FR-16(7)(v)-13 DIST Cust'!P544","v":0},{"$f":"'FR-16(7)(v)-3 PROD Demand'!Q544+'FR-16(7)(v)-4 PROD Energy'!Q544+'FR-16(7)(v)-5 PROD Cust'!Q544+'FR-16(7)(v)-7 TRANS Demand'!Q544+'FR-16(7)(v)-8 TRANS Energy'!Q544+'FR-16(7)(v)-9 TRANS Cust'!Q544+'FR-16(7)(v)-11 DIST Demand'!Q544+'FR-16(7)(v)-12 DIST Energy'!Q544+'FR-16(7)(v)-13 DIST Cust'!Q544","v":0},0,0]
[31,null,{"$f":"'FR-16(7)(v)-1 Functional'!C545","v":"AMORTIZATION OF DEFERRAL ASSET"},{"$f":"'FR-16(7)(v)-1 Functional'!D545","v":"A315"},null,{"$f":"'FR-16(7)(v)-1 Functional'!F545","v":0},{"$f":"'FR-16(7)(v)-3 PROD Demand'!G545+'FR-16(7)(v)-4 PROD Energy'!G545+'FR-16(7)(v)-5 PROD Cust'!G545+'FR-16(7)(v)-7 TRANS Demand'!G545+'FR-16(7)(v)-8 TRANS Energy'!G545+'FR-16(7)(v)-9 TRANS Cust'!G545+'FR-16(7)(v)-11 DIST Demand'!G545+'FR-16(7)(v)-12 DIST Energy'!G545+'FR-16(7)(v)-13 DIST Cust'!G545","v":0},{"$f":"'FR-16(7)(v)-3 PROD Demand'!H545+'FR-16(7)(v)-4 PROD Energy'!H545+'FR-16(7)(v)-5 PROD Cust'!H545+'FR-16(7)(v)-7 TRANS Demand'!H545+'FR-16(7)(v)-8 TRANS Energy'!H545+'FR-16(7)(v)-9 TRANS Cust'!H545+'FR-16(7)(v)-11 DIST Demand'!H545+'FR-16(7)(v)-12 DIST Energy'!H545+'FR-16(7)(v)-13 DIST Cust'!H545","v":0},{"$f":"'FR-16(7)(v)-3 PROD Demand'!I545+'FR-16(7)(v)-4 PROD Energy'!I545+'FR-16(7)(v)-5 PROD Cust'!I545+'FR-16(7)(v)-7 TRANS Demand'!I545+'FR-16(7)(v)-8 TRANS Energy'!I545+'FR-16(7)(v)-9 TRANS Cust'!I545+'FR-16(7)(v)-11 DIST Demand'!I545+'FR-16(7)(v)-12 DIST Energy'!I545+'FR-16(7)(v)-13 DIST Cust'!I545","v":0},{"$f":"'FR-16(7)(v)-3 PROD Demand'!J545+'FR-16(7)(v)-4 PROD Energy'!J545+'FR-16(7)(v)-5 PROD Cust'!J545+'FR-16(7)(v)-7 TRANS Demand'!J545+'FR-16(7)(v)-8 TRANS Energy'!J545+'FR-16(7)(v)-9 TRANS Cust'!J545+'FR-16(7)(v)-11 DIST Demand'!J545+'FR-16(7)(v)-12 DIST Energy'!J545+'FR-16(7)(v)-13 DIST Cust'!J545","v":0},{"$f":"'FR-16(7)(v)-3 PROD Demand'!K545+'FR-16(7)(v)-4 PROD Energy'!K545+'FR-16(7)(v)-5 PROD Cust'!K545+'FR-16(7)(v)-7 TRANS Demand'!K545+'FR-16(7)(v)-8 TRANS Energy'!K545+'FR-16(7)(v)-9 TRANS Cust'!K545+'FR-16(7)(v)-11 DIST Demand'!K545+'FR-16(7)(v)-12 DIST Energy'!K545+'FR-16(7)(v)-13 DIST Cust'!K545","v":0},{"$f":"'FR-16(7)(v)-3 PROD Demand'!L545+'FR-16(7)(v)-4 PROD Energy'!L545+'FR-16(7)(v)-5 PROD Cust'!L545+'FR-16(7)(v)-7 TRANS Demand'!L545+'FR-16(7)(v)-8 TRANS Energy'!L545+'FR-16(7)(v)-9 TRANS Cust'!L545+'FR-16(7)(v)-11 DIST Demand'!L545+'FR-16(7)(v)-12 DIST Energy'!L545+'FR-16(7)(v)-13 DIST Cust'!L545","v":0},{"$f":"'FR-16(7)(v)-3 PROD Demand'!M545+'FR-16(7)(v)-4 PROD Energy'!M545+'FR-16(7)(v)-5 PROD Cust'!M545+'FR-16(7)(v)-7 TRANS Demand'!M545+'FR-16(7)(v)-8 TRANS Energy'!M545+'FR-16(7)(v)-9 TRANS Cust'!M545+'FR-16(7)(v)-11 DIST Demand'!M545+'FR-16(7)(v)-12 DIST Energy'!M545+'FR-16(7)(v)-13 DIST Cust'!M545","v":0},{"$f":"'FR-16(7)(v)-3 PROD Demand'!N545+'FR-16(7)(v)-4 PROD Energy'!N545+'FR-16(7)(v)-5 PROD Cust'!N545+'FR-16(7)(v)-7 TRANS Demand'!N545+'FR-16(7)(v)-8 TRANS Energy'!N545+'FR-16(7)(v)-9 TRANS Cust'!N545+'FR-16(7)(v)-11 DIST Demand'!N545+'FR-16(7)(v)-12 DIST Energy'!N545+'FR-16(7)(v)-13 DIST Cust'!N545","v":0},{"$f":"'FR-16(7)(v)-3 PROD Demand'!O545+'FR-16(7)(v)-4 PROD Energy'!O545+'FR-16(7)(v)-5 PROD Cust'!O545+'FR-16(7)(v)-7 TRANS Demand'!O545+'FR-16(7)(v)-8 TRANS Energy'!O545+'FR-16(7)(v)-9 TRANS Cust'!O545+'FR-16(7)(v)-11 DIST Demand'!O545+'FR-16(7)(v)-12 DIST Energy'!O545+'FR-16(7)(v)-13 DIST Cust'!O545","v":0},{"$f":"'FR-16(7)(v)-3 PROD Demand'!P545+'FR-16(7)(v)-4 PROD Energy'!P545+'FR-16(7)(v)-5 PROD Cust'!P545+'FR-16(7)(v)-7 TRANS Demand'!P545+'FR-16(7)(v)-8 TRANS Energy'!P545+'FR-16(7)(v)-9 TRANS Cust'!P545+'FR-16(7)(v)-11 DIST Demand'!P545+'FR-16(7)(v)-12 DIST Energy'!P545+'FR-16(7)(v)-13 DIST Cust'!P545","v":0},{"$f":"'FR-16(7)(v)-3 PROD Demand'!Q545+'FR-16(7)(v)-4 PROD Energy'!Q545+'FR-16(7)(v)-5 PROD Cust'!Q545+'FR-16(7)(v)-7 TRANS Demand'!Q545+'FR-16(7)(v)-8 TRANS Energy'!Q545+'FR-16(7)(v)-9 TRANS Cust'!Q545+'FR-16(7)(v)-11 DIST Demand'!Q545+'FR-16(7)(v)-12 DIST Energy'!Q545+'FR-16(7)(v)-13 DIST Cust'!Q545","v":0},0,0]
[32,null,{"$f":"'FR-16(7)(v)-1 Functional'!C546","v":"AMORTIZATION OF DEFERRED EXPENSES"},{"$f":"'FR-16(7)(v)-1 Functional'!D546","v":"A315"},null,{"$f":"'FR-16(7)(v)-1 Functional'!F546","v":99449},{"$f":"'FR-16(7)(v)-3 PROD Demand'!G546+'FR-16(7)(v)-4 PROD Energy'!G546+'FR-16(7)(v)-5 PROD Cust'!G546+'FR-16(7)(v)-7 TRANS Demand'!G546+'FR-16(7)(v)-8 TRANS Energy'!G546+'FR-16(7)(v)-9 TRANS Cust'!G546+'FR-16(7)(v)-11 DIST Demand'!G546+'FR-16(7)(v)-12 DIST Energy'!G546+'FR-16(7)(v)-13 DIST Cust'!G546","v":65011},{"$f":"'FR-16(7)(v)-3 PROD Demand'!H546+'FR-16(7)(v)-4 PROD Energy'!H546+'FR-16(7)(v)-5 PROD Cust'!H546+'FR-16(7)(v)-7 TRANS Demand'!H546+'FR-16(7)(v)-8 TRANS Energy'!H546+'FR-16(7)(v)-9 TRANS Cust'!H546+'FR-16(7)(v)-11 DIST Demand'!H546+'FR-16(7)(v)-12 DIST Energy'!H546+'FR-16(7)(v)-13 DIST Cust'!H546","v":16848},{"$f":"'FR-16(7)(v)-3 PROD Demand'!I546+'FR-16(7)(v)-4 PROD Energy'!I546+'FR-16(7)(v)-5 PROD Cust'!I546+'FR-16(7)(v)-7 TRANS Demand'!I546+'FR-16(7)(v)-8 TRANS Energy'!I546+'FR-16(7)(v)-9 TRANS Cust'!I546+'FR-16(7)(v)-11 DIST Demand'!I546+'FR-16(7)(v)-12 DIST Energy'!I546+'FR-16(7)(v)-13 DIST Cust'!I546","v":90},{"$f":"'FR-16(7)(v)-3 PROD Demand'!J546+'FR-16(7)(v)-4 PROD Energy'!J546+'FR-16(7)(v)-5 PROD Cust'!J546+'FR-16(7)(v)-7 TRANS Demand'!J546+'FR-16(7)(v)-8 TRANS Energy'!J546+'FR-16(7)(v)-9 TRANS Cust'!J546+'FR-16(7)(v)-11 DIST Demand'!J546+'FR-16(7)(v)-12 DIST Energy'!J546+'FR-16(7)(v)-13 DIST Cust'!J546","v":288},{"$f":"'FR-16(7)(v)-3 PROD Demand'!K546+'FR-16(7)(v)-4 PROD Energy'!K546+'FR-16(7)(v)-5 PROD Cust'!K546+'FR-16(7)(v)-7 TRANS Demand'!K546+'FR-16(7)(v)-8 TRANS Energy'!K546+'FR-16(7)(v)-9 TRANS Cust'!K546+'FR-16(7)(v)-11 DIST Demand'!K546+'FR-16(7)(v)-12 DIST Energy'!K546+'FR-16(7)(v)-13 DIST Cust'!K546","v":6},{"$f":"'FR-16(7)(v)-3 PROD Demand'!L546+'FR-16(7)(v)-4 PROD Energy'!L546+'FR-16(7)(v)-5 PROD Cust'!L546+'FR-16(7)(v)-7 TRANS Demand'!L546+'FR-16(7)(v)-8 TRANS Energy'!L546+'FR-16(7)(v)-9 TRANS Cust'!L546+'FR-16(7)(v)-11 DIST Demand'!L546+'FR-16(7)(v)-12 DIST Energy'!L546+'FR-16(7)(v)-13 DIST Cust'!L546","v":8241},{"$f":"'FR-16(7)(v)-3 PROD Demand'!M546+'FR-16(7)(v)-4 PROD Energy'!M546+'FR-16(7)(v)-5 PROD Cust'!M546+'FR-16(7)(v)-7 TRANS Demand'!M546+'FR-16(7)(v)-8 TRANS Energy'!M546+'FR-16(7)(v)-9 TRANS Cust'!M546+'FR-16(7)(v)-11 DIST Demand'!M546+'FR-16(7)(v)-12 DIST Energy'!M546+'FR-16(7)(v)-13 DIST Cust'!M546","v":5560},{"$f":"'FR-16(7)(v)-3 PROD Demand'!N546+'FR-16(7)(v)-4 PROD Energy'!N546+'FR-16(7)(v)-5 PROD Cust'!N546+'FR-16(7)(v)-7 TRANS Demand'!N546+'FR-16(7)(v)-8 TRANS Energy'!N546+'FR-16(7)(v)-9 TRANS Cust'!N546+'FR-16(7)(v)-11 DIST Demand'!N546+'FR-16(7)(v)-12 DIST Energy'!N546+'FR-16(7)(v)-13 DIST Cust'!N546","v":273},{"$f":"'FR-16(7)(v)-3 PROD Demand'!O546+'FR-16(7)(v)-4 PROD Energy'!O546+'FR-16(7)(v)-5 PROD Cust'!O546+'FR-16(7)(v)-7 TRANS Demand'!O546+'FR-16(7)(v)-8 TRANS Energy'!O546+'FR-16(7)(v)-9 TRANS Cust'!O546+'FR-16(7)(v)-11 DIST Demand'!O546+'FR-16(7)(v)-12 DIST Energy'!O546+'FR-16(7)(v)-13 DIST Cust'!O546","v":2291},{"$f":"'FR-16(7)(v)-3 PROD Demand'!P546+'FR-16(7)(v)-4 PROD Energy'!P546+'FR-16(7)(v)-5 PROD Cust'!P546+'FR-16(7)(v)-7 TRANS Demand'!P546+'FR-16(7)(v)-8 TRANS Energy'!P546+'FR-16(7)(v)-9 TRANS Cust'!P546+'FR-16(7)(v)-11 DIST Demand'!P546+'FR-16(7)(v)-12 DIST Energy'!P546+'FR-16(7)(v)-13 DIST Cust'!P546","v":831},{"$f":"'FR-16(7)(v)-3 PROD Demand'!Q546+'FR-16(7)(v)-4 PROD Energy'!Q546+'FR-16(7)(v)-5 PROD Cust'!Q546+'FR-16(7)(v)-7 TRANS Demand'!Q546+'FR-16(7)(v)-8 TRANS Energy'!Q546+'FR-16(7)(v)-9 TRANS Cust'!Q546+'FR-16(7)(v)-11 DIST Demand'!Q546+'FR-16(7)(v)-12 DIST Energy'!Q546+'FR-16(7)(v)-13 DIST Cust'!Q546","v":10},99449,0]
[33,null,{"$f":"'FR-16(7)(v)-1 Functional'!C547","v":"TOTAL ADMIN. & GENERAL"},null," ",{"$f":"SUM(F532:F546)","v":19639682},12839270,3327199,17667,{"$f":"SUM(J532:J546)","v":56786},1290,1627284,1097839,54084,452423,164025,1815,19639682,0]
[34]
[35,null,{"$f":"'FR-16(7)(v)-1 Functional'!C549","v":"TOTAL O & M EXPENSE"},null,null,{"$f":"F547+F522+F518+F503+F492+F470+F466+F459","v":209792284},{"$f":"G547+G522+G518+G503+G492+G470+G466+G459","v":92724430},{"$f":"H547+H522+H518+H503+H492+H470+H466+H459","v":53105892},{"$f":"I547+I522+I518+I503+I492+I470+I466+I459","v":288008},{"$f":"J547+J522+J518+J503+J492+J470+J466+J459","v":891508},15359,30098766,20687129,986111,9537511,1433909,{"$f":"Q547+Q522+Q518+Q503+Q492+Q470+Q466+Q459","v":23661},{"$f":"R547+R522+R518+R503+R492+R470+R466+R459","v":209792284},{"$f":"S547+S522+S518+S503+S492+S466+S459","v":0}]
[]
[{"$f":"co_name","v":"DUKE ENERGY KENTUCKY, INC."},null,null,null,null,null,null,null,null,null,null,null,null,null,null,null,null,{"$f":"R1","v":"FR-16(7)(v)-14"}]
[{"$f":"$A$2","v":"TOTAL CLASS ALLOCATED - ELECTRIC COST OF SERVICE"},null,null,null,null,null,null,null,null,null,null,null,null,null,null,null,null,{"$f":"R2","v":"WITNESS RESPONSIBLE:"}]
[{"$f":"case_name","v":"CASE NO: 2019-00271"},null,null,null,null,null,null,null,null,null,null,null,null,null,null,null,null,{"$f":"Witness","v":"JAMES E. ZIOLKOWSKI"}]
[{"$f":"data_filing","v":"DATA: 12 MONTHS ACTUAL  & 0 MONTHS ESTIMATED"},null,null,null,null,null,null,null,null,null,null,null,null,null,null,null,null,{"$f":"\"PAGE \"&Pages2-5&\" OF \"&Pages2","v":"PAGE 10 OF 15"}]
[{"$f":"type","v":"TYPE OF FILING: \"X\" ORIGINAL   UPDATED    REVISED  "}]
[]
[null,null,null,null,null,{"$f":"F$7","v":"TOTAL"},null,{"$f":"H$7","v":"DS"},{"$f":"I$7","v":"GSFL"},{"$f":"J$7","v":"EH"},{"$f":"K$7","v":"SP"},"DT SEC","DT PRI","DP","TT",null,"OTHER"]
["LINE",null,null,null,null,{"$f":"F$8","v":"CLASS"},{"$f":"G$8","v":"RS"},{"$f":"H$8","v":"SECONDARY"},{"$f":"I$8","v":"SECONDARY"},{"$f":"J$8","v":"SECONDARY"},{"$f":"K$8","v":"SECONDARY"},"SECONDARY","PRIMARY","PRIMARY","TRANSMISSION","LT","WATER",{"$f":"R8","v":"TOTAL"},"ALL"]
["NO.","DEPRECIATION EXPENSE",null,"ALLO",null,{"$f":"F$9","v":"ALLOCATED"},{"$f":"G$9","v":"RESIDENTIAL"},{"$f":"H$9","v":"DISTRIBUTION"},{"$f":"I$9","v":"DISTRIBUTION"},{"$f":"J$9","v":"DISTRIBUTION"},{"$f":"K$9","v":"DISTRIBUTION"},"DISTRIBUTION","DISTRIBUTION","DISTRIBUTION","TIME OF DAY","LIGHTING","PUMPING",{"$f":"R9","v":"AT ISSUE"},"OTHER"]
[null,null,"Schedule 7",null,null,null,{"$f":"G$10","v":3},{"$f":"H$10","v":4},{"$f":"I$10","v":5},{"$f":"J$10","v":6},{"$f":"K$10","v":7},8,9,10,11,12,13,null," "]
[1,"PRODUCTION DEPRECIATION"]
[2,null,{"$f":"'FR-16(7)(v)-1 Functional'!C562","v":"PRODUCTION DEPRECIATION"},{"$f":"'FR-16(7)(v)-1 Functional'!D562","v":"P229"},null,{"$f":"'FR-16(7)(v)-1 Functional'!F562","v":37535245},{"$f":"'FR-16(7)(v)-3 PROD Demand'!G562+'FR-16(7)(v)-4 PROD Energy'!G562+'FR-16(7)(v)-5 PROD Cust'!G562+'FR-16(7)(v)-7 TRANS Demand'!G562+'FR-16(7)(v)-8 TRANS Energy'!G562+'FR-16(7)(v)-9 TRANS Cust'!G562+'FR-16(7)(v)-11 DIST Demand'!G562+'FR-16(7)(v)-12 DIST Energy'!G562+'FR-16(7)(v)-13 DIST Cust'!G562","v":16920137},{"$f":"'FR-16(7)(v)-3 PROD Demand'!H562+'FR-16(7)(v)-4 PROD Energy'!H562+'FR-16(7)(v)-5 PROD Cust'!H562+'FR-16(7)(v)-7 TRANS Demand'!H562+'FR-16(7)(v)-8 TRANS Energy'!H562+'FR-16(7)(v)-9 TRANS Cust'!H562+'FR-16(7)(v)-11 DIST Demand'!H562+'FR-16(7)(v)-12 DIST Energy'!H562+'FR-16(7)(v)-13 DIST Cust'!H562","v":10158539},{"$f":"'FR-16(7)(v)-3 PROD Demand'!I562+'FR-16(7)(v)-4 PROD Energy'!I562+'FR-16(7)(v)-5 PROD Cust'!I562+'FR-16(7)(v)-7 TRANS Demand'!I562+'FR-16(7)(v)-8 TRANS Energy'!I562+'FR-16(7)(v)-9 TRANS Cust'!I562+'FR-16(7)(v)-11 DIST Demand'!I562+'FR-16(7)(v)-12 DIST Energy'!I562+'FR-16(7)(v)-13 DIST Cust'!I562","v":48796},{"$f":"'FR-16(7)(v)-3 PROD Demand'!J562+'FR-16(7)(v)-4 PROD Energy'!J562+'FR-16(7)(v)-5 PROD Cust'!J562+'FR-16(7)(v)-7 TRANS Demand'!J562+'FR-16(7)(v)-8 TRANS Energy'!J562+'FR-16(7)(v)-9 TRANS Cust'!J562+'FR-16(7)(v)-11 DIST Demand'!J562+'FR-16(7)(v)-12 DIST Energy'!J562+'FR-16(7)(v)-13 DIST Cust'!J562","v":192556},{"$f":"'FR-16(7)(v)-3 PROD Demand'!K562+'FR-16(7)(v)-4 PROD Energy'!K562+'FR-16(7)(v)-5 PROD Cust'!K562+'FR-16(7)(v)-7 TRANS Demand'!K562+'FR-16(7)(v)-8 TRANS Energy'!K562+'FR-16(7)(v)-9 TRANS Cust'!K562+'FR-16(7)(v)-11 DIST Demand'!K562+'FR-16(7)(v)-12 DIST Energy'!K562+'FR-16(7)(v)-13 DIST Cust'!K562","v":2627},{"$f":"'FR-16(7)(v)-3 PROD Demand'!L562+'FR-16(7)(v)-4 PROD Energy'!L562+'FR-16(7)(v)-5 PROD Cust'!L562+'FR-16(7)(v)-7 TRANS Demand'!L562+'FR-16(7)(v)-8 TRANS Energy'!L562+'FR-16(7)(v)-9 TRANS Cust'!L562+'FR-16(7)(v)-11 DIST Demand'!L562+'FR-16(7)(v)-12 DIST Energy'!L562+'FR-16(7)(v)-13 DIST Cust'!L562","v":5065006},{"$f":"'FR-16(7)(v)-3 PROD Demand'!M562+'FR-16(7)(v)-4 PROD Energy'!M562+'FR-16(7)(v)-5 PROD Cust'!M562+'FR-16(7)(v)-7 TRANS Demand'!M562+'FR-16(7)(v)-8 TRANS Energy'!M562+'FR-16(7)(v)-9 TRANS Cust'!M562+'FR-16(7)(v)-11 DIST Demand'!M562+'FR-16(7)(v)-12 DIST Energy'!M562+'FR-16(7)(v)-13 DIST Cust'!M562","v":3348519},{"$f":"'FR-16(7)(v)-3 PROD Demand'!N562+'FR-16(7)(v)-4 PROD Energy'!N562+'FR-16(7)(v)-5 PROD Cust'!N562+'FR-16(7)(v)-7 TRANS Demand'!N562+'FR-16(7)(v)-8 TRANS Energy'!N562+'FR-16(7)(v)-9 TRANS Cust'!N562+'FR-16(7)(v)-11 DIST Demand'!N562+'FR-16(7)(v)-12 DIST Energy'!N562+'FR-16(7)(v)-13 DIST Cust'!N562","v":161777},{"$f":"'FR-16(7)(v)-3 PROD Demand'!O562+'FR-16(7)(v)-4 PROD Energy'!O562+'FR-16(7)(v)-5 PROD Cust'!O562+'FR-16(7)(v)-7 TRANS Demand'!O562+'FR-16(7)(v)-8 TRANS Energy'!O562+'FR-16(7)(v)-9 TRANS Cust'!O562+'FR-16(7)(v)-11 DIST Demand'!O562+'FR-16(7)(v)-12 DIST Energy'!O562+'FR-16(7)(v)-13 DIST Cust'!O562","v":1586615},{"$f":"'FR-16(7)(v)-3 PROD Demand'!P562+'FR-16(7)(v)-4 PROD Energy'!P562+'FR-16(7)(v)-5 PROD Cust'!P562+'FR-16(7)(v)-7 TRANS Demand'!P562+'FR-16(7)(v)-8 TRANS Energy'!P562+'FR-16(7)(v)-9 TRANS Cust'!P562+'FR-16(7)(v)-11 DIST Demand'!P562+'FR-16(7)(v)-12 DIST Energy'!P562+'FR-16(7)(v)-13 DIST Cust'!P562","v":46544},{"$f":"'FR-16(7)(v)-3 PROD Demand'!Q562+'FR-16(7)(v)-4 PROD Energy'!Q562+'FR-16(7)(v)-5 PROD Cust'!Q562+'FR-16(7)(v)-7 TRANS Demand'!Q562+'FR-16(7)(v)-8 TRANS Energy'!Q562+'FR-16(7)(v)-9 TRANS Cust'!Q562+'FR-16(7)(v)-11 DIST Demand'!Q562+'FR-16(7)(v)-12 DIST Energy'!Q562+'FR-16(7)(v)-13 DIST Cust'!Q562","v":4129},{"$f":"SUM(G562:Q562)","v":37535245},{"$f":"F562-R562","v":0}]
[3,null,{"$f":"'FR-16(7)(v)-1 Functional'!C563","v":"  TOTAL PRODUCTION DEPREC EXP."},null,null,{"$f":"SUM(F562:F562)","v":37535245},16920137,10158539,48796,{"$f":"SUM(J562:J562)","v":192556},2627,5065006,3348519,161777,1586615,46544,4129,37535245,0]
[4]
[5,"TRANSMISSION DEPRECIATION"]
[6,null,"TRANSMISSION DEPRECIATION","T229",null,{"$f":"'FR-16(7)(v)-1 Functional'!F566","v":1469491},{"$f":"'FR-16(7)(v)-3 PROD Demand'!G566+'FR-16(7)(v)-4 PROD Energy'!G566+'FR-16(7)(v)-5 PROD Cust'!G566+'FR-16(7)(v)-7 TRANS Demand'!G566+'FR-16(7)(v)-8 TRANS Energy'!G566+'FR-16(7)(v)-9 TRANS Cust'!G566+'FR-16(7)(v)-11 DIST Demand'!G566+'FR-16(7)(v)-12 DIST Energy'!G566+'FR-16(7)(v)-13 DIST Cust'!G566","v":662418},{"$f":"'FR-16(7)(v)-3 PROD Demand'!H566+'FR-16(7)(v)-4 PROD Energy'!H566+'FR-16(7)(v)-5 PROD Cust'!H566+'FR-16(7)(v)-7 TRANS Demand'!H566+'FR-16(7)(v)-8 TRANS Energy'!H566+'FR-16(7)(v)-9 TRANS Cust'!H566+'FR-16(7)(v)-11 DIST Demand'!H566+'FR-16(7)(v)-12 DIST Energy'!H566+'FR-16(7)(v)-13 DIST Cust'!H566","v":397703},{"$f":"'FR-16(7)(v)-3 PROD Demand'!I566+'FR-16(7)(v)-4 PROD Energy'!I566+'FR-16(7)(v)-5 PROD Cust'!I566+'FR-16(7)(v)-7 TRANS Demand'!I566+'FR-16(7)(v)-8 TRANS Energy'!I566+'FR-16(7)(v)-9 TRANS Cust'!I566+'FR-16(7)(v)-11 DIST Demand'!I566+'FR-16(7)(v)-12 DIST Energy'!I566+'FR-16(7)(v)-13 DIST Cust'!I566","v":1910},{"$f":"'FR-16(7)(v)-3 PROD Demand'!J566+'FR-16(7)(v)-4 PROD Energy'!J566+'FR-16(7)(v)-5 PROD Cust'!J566+'FR-16(7)(v)-7 TRANS Demand'!J566+'FR-16(7)(v)-8 TRANS Energy'!J566+'FR-16(7)(v)-9 TRANS Cust'!J566+'FR-16(7)(v)-11 DIST Demand'!J566+'FR-16(7)(v)-12 DIST Energy'!J566+'FR-16(7)(v)-13 DIST Cust'!J566","v":7538},{"$f":"'FR-16(7)(v)-3 PROD Demand'!K566+'FR-16(7)(v)-4 PROD Energy'!K566+'FR-16(7)(v)-5 PROD Cust'!K566+'FR-16(7)(v)-7 TRANS Demand'!K566+'FR-16(7)(v)-8 TRANS Energy'!K566+'FR-16(7)(v)-9 TRANS Cust'!K566+'FR-16(7)(v)-11 DIST Demand'!K566+'FR-16(7)(v)-12 DIST Energy'!K566+'FR-16(7)(v)-13 DIST Cust'!K566","v":103},{"$f":"'FR-16(7)(v)-3 PROD Demand'!L566+'FR-16(7)(v)-4 PROD Energy'!L566+'FR-16(7)(v)-5 PROD Cust'!L566+'FR-16(7)(v)-7 TRANS Demand'!L566+'FR-16(7)(v)-8 TRANS Energy'!L566+'FR-16(7)(v)-9 TRANS Cust'!L566+'FR-16(7)(v)-11 DIST Demand'!L566+'FR-16(7)(v)-12 DIST Energy'!L566+'FR-16(7)(v)-13 DIST Cust'!L566","v":198293},{"$f":"'FR-16(7)(v)-3 PROD Demand'!M566+'FR-16(7)(v)-4 PROD Energy'!M566+'FR-16(7)(v)-5 PROD Cust'!M566+'FR-16(7)(v)-7 TRANS Demand'!M566+'FR-16(7)(v)-8 TRANS Energy'!M566+'FR-16(7)(v)-9 TRANS Cust'!M566+'FR-16(7)(v)-11 DIST Demand'!M566+'FR-16(7)(v)-12 DIST Energy'!M566+'FR-16(7)(v)-13 DIST Cust'!M566","v":131093},{"$f":"'FR-16(7)(v)-3 PROD Demand'!N566+'FR-16(7)(v)-4 PROD Energy'!N566+'FR-16(7)(v)-5 PROD Cust'!N566+'FR-16(7)(v)-7 TRANS Demand'!N566+'FR-16(7)(v)-8 TRANS Energy'!N566+'FR-16(7)(v)-9 TRANS Cust'!N566+'FR-16(7)(v)-11 DIST Demand'!N566+'FR-16(7)(v)-12 DIST Energy'!N566+'FR-16(7)(v)-13 DIST Cust'!N566","v":6334},{"$f":"'FR-16(7)(v)-3 PROD Demand'!O566+'FR-16(7)(v)-4 PROD Energy'!O566+'FR-16(7)(v)-5 PROD Cust'!O566+'FR-16(7)(v)-7 TRANS Demand'!O566+'FR-16(7)(v)-8 TRANS Energy'!O566+'FR-16(7)(v)-9 TRANS Cust'!O566+'FR-16(7)(v)-11 DIST Demand'!O566+'FR-16(7)(v)-12 DIST Energy'!O566+'FR-16(7)(v)-13 DIST Cust'!O566","v":62115},{"$f":"'FR-16(7)(v)-3 PROD Demand'!P566+'FR-16(7)(v)-4 PROD Energy'!P566+'FR-16(7)(v)-5 PROD Cust'!P566+'FR-16(7)(v)-7 TRANS Demand'!P566+'FR-16(7)(v)-8 TRANS Energy'!P566+'FR-16(7)(v)-9 TRANS Cust'!P566+'FR-16(7)(v)-11 DIST Demand'!P566+'FR-16(7)(v)-12 DIST Energy'!P566+'FR-16(7)(v)-13 DIST Cust'!P566","v":1822},{"$f":"'FR-16(7)(v)-3 PROD Demand'!Q566+'FR-16(7)(v)-4 PROD Energy'!Q566+'FR-16(7)(v)-5 PROD Cust'!Q566+'FR-16(7)(v)-7 TRANS Demand'!Q566+'FR-16(7)(v)-8 TRANS Energy'!Q566+'FR-16(7)(v)-9 TRANS Cust'!Q566+'FR-16(7)(v)-11 DIST Demand'!Q566+'FR-16(7)(v)-12 DIST Energy'!Q566+'FR-16(7)(v)-13 DIST Cust'!Q566","v":162},{"$f":"SUM(G566:Q566)","v":1469491},{"$f":"F566-R566","v":0}]
[7,null,{"$f":"'FR-16(7)(v)-1 Functional'!C567","v":"  TOTAL TRANSMISSION DEP. EXP."},null,null,{"$f":"SUM(F566:F566)","v":1469491},662418,397703,1910,{"$f":"SUM(J566:J566)","v":7538},103,198293,131093,6334,62115,1822,162,1469491,0]
[8]
[9,"DISTRIBUTION DEPRECIATION"]
[10,null,{"$f":"'FR-16(7)(v)-1 Functional'!C570","v":"DISTRIBUTION DEPRECIATION"},{"$f":"'FR-16(7)(v)-1 Functional'!D570","v":"D249"},null,{"$f":"'FR-16(7)(v)-1 Functional'!F570","v":13767842},{"$f":"'FR-16(7)(v)-3 PROD Demand'!G570+'FR-16(7)(v)-4 PROD Energy'!G570+'FR-16(7)(v)-5 PROD Cust'!G570+'FR-16(7)(v)-7 TRANS Demand'!G570+'FR-16(7)(v)-8 TRANS Energy'!G570+'FR-16(7)(v)-9 TRANS Cust'!G570+'FR-16(7)(v)-11 DIST Demand'!G570+'FR-16(7)(v)-12 DIST Energy'!G570+'FR-16(7)(v)-13 DIST Cust'!G570","v":7754561},{"$f":"'FR-16(7)(v)-3 PROD Demand'!H570+'FR-16(7)(v)-4 PROD Energy'!H570+'FR-16(7)(v)-5 PROD Cust'!H570+'FR-16(7)(v)-7 TRANS Demand'!H570+'FR-16(7)(v)-8 TRANS Energy'!H570+'FR-16(7)(v)-9 TRANS Cust'!H570+'FR-16(7)(v)-11 DIST Demand'!H570+'FR-16(7)(v)-12 DIST Energy'!H570+'FR-16(7)(v)-13 DIST Cust'!H570","v":3255610},{"$f":"'FR-16(7)(v)-3 PROD Demand'!I570+'FR-16(7)(v)-4 PROD Energy'!I570+'FR-16(7)(v)-5 PROD Cust'!I570+'FR-16(7)(v)-7 TRANS Demand'!I570+'FR-16(7)(v)-8 TRANS Energy'!I570+'FR-16(7)(v)-9 TRANS Cust'!I570+'FR-16(7)(v)-11 DIST Demand'!I570+'FR-16(7)(v)-12 DIST Energy'!I570+'FR-16(7)(v)-13 DIST Cust'!I570","v":16534},{"$f":"'FR-16(7)(v)-3 PROD Demand'!J570+'FR-16(7)(v)-4 PROD Energy'!J570+'FR-16(7)(v)-5 PROD Cust'!J570+'FR-16(7)(v)-7 TRANS Demand'!J570+'FR-16(7)(v)-8 TRANS Energy'!J570+'FR-16(7)(v)-9 TRANS Cust'!J570+'FR-16(7)(v)-11 DIST Demand'!J570+'FR-16(7)(v)-12 DIST Energy'!J570+'FR-16(7)(v)-13 DIST Cust'!J570","v":67261},{"$f":"'FR-16(7)(v)-3 PROD Demand'!K570+'FR-16(7)(v)-4 PROD Energy'!K570+'FR-16(7)(v)-5 PROD Cust'!K570+'FR-16(7)(v)-7 TRANS Demand'!K570+'FR-16(7)(v)-8 TRANS Energy'!K570+'FR-16(7)(v)-9 TRANS Cust'!K570+'FR-16(7)(v)-11 DIST Demand'!K570+'FR-16(7)(v)-12 DIST Energy'!K570+'FR-16(7)(v)-13 DIST Cust'!K570","v":1130},{"$f":"'FR-16(7)(v)-3 PROD Demand'!L570+'FR-16(7)(v)-4 PROD Energy'!L570+'FR-16(7)(v)-5 PROD Cust'!L570+'FR-16(7)(v)-7 TRANS Demand'!L570+'FR-16(7)(v)-8 TRANS Energy'!L570+'FR-16(7)(v)-9 TRANS Cust'!L570+'FR-16(7)(v)-11 DIST Demand'!L570+'FR-16(7)(v)-12 DIST Energy'!L570+'FR-16(7)(v)-13 DIST Cust'!L570","v":1489462},{"$f":"'FR-16(7)(v)-3 PROD Demand'!M570+'FR-16(7)(v)-4 PROD Energy'!M570+'FR-16(7)(v)-5 PROD Cust'!M570+'FR-16(7)(v)-7 TRANS Demand'!M570+'FR-16(7)(v)-8 TRANS Energy'!M570+'FR-16(7)(v)-9 TRANS Cust'!M570+'FR-16(7)(v)-11 DIST Demand'!M570+'FR-16(7)(v)-12 DIST Energy'!M570+'FR-16(7)(v)-13 DIST Cust'!M570","v":975866},{"$f":"'FR-16(7)(v)-3 PROD Demand'!N570+'FR-16(7)(v)-4 PROD Energy'!N570+'FR-16(7)(v)-5 PROD Cust'!N570+'FR-16(7)(v)-7 TRANS Demand'!N570+'FR-16(7)(v)-8 TRANS Energy'!N570+'FR-16(7)(v)-9 TRANS Cust'!N570+'FR-16(7)(v)-11 DIST Demand'!N570+'FR-16(7)(v)-12 DIST Energy'!N570+'FR-16(7)(v)-13 DIST Cust'!N570","v":49412},{"$f":"'FR-16(7)(v)-3 PROD Demand'!O570+'FR-16(7)(v)-4 PROD Energy'!O570+'FR-16(7)(v)-5 PROD Cust'!O570+'FR-16(7)(v)-7 TRANS Demand'!O570+'FR-16(7)(v)-8 TRANS Energy'!O570+'FR-16(7)(v)-9 TRANS Cust'!O570+'FR-16(7)(v)-11 DIST Demand'!O570+'FR-16(7)(v)-12 DIST Energy'!O570+'FR-16(7)(v)-13 DIST Cust'!O570","v":365},{"$f":"'FR-16(7)(v)-3 PROD Demand'!P570+'FR-16(7)(v)-4 PROD Energy'!P570+'FR-16(7)(v)-5 PROD Cust'!P570+'FR-16(7)(v)-7 TRANS Demand'!P570+'FR-16(7)(v)-8 TRANS Energy'!P570+'FR-16(7)(v)-9 TRANS Cust'!P570+'FR-16(7)(v)-11 DIST Demand'!P570+'FR-16(7)(v)-12 DIST Energy'!P570+'FR-16(7)(v)-13 DIST Cust'!P570","v":156193},{"$f":"'FR-16(7)(v)-3 PROD Demand'!Q570+'FR-16(7)(v)-4 PROD Energy'!Q570+'FR-16(7)(v)-5 PROD Cust'!Q570+'FR-16(7)(v)-7 TRANS Demand'!Q570+'FR-16(7)(v)-8 TRANS Energy'!Q570+'FR-16(7)(v)-9 TRANS Cust'!Q570+'FR-16(7)(v)-11 DIST Demand'!Q570+'FR-16(7)(v)-12 DIST Energy'!Q570+'FR-16(7)(v)-13 DIST Cust'!Q570","v":1448},{"$f":"SUM(G570:Q570)","v":13767842},{"$f":"F570-R570","v":0}]
[11,null,{"$f":"'FR-16(7)(v)-1 Functional'!C571","v":"  TOTAL DIST. DEPREC EXP."},null,null,{"$f":"SUM(F570:F570)","v":13767842},7754561,3255610,16534,{"$f":"SUM(J570:J570)","v":67261},1130,1489462,975866,49412,365,156193,1448,13767842,0]
[12,null,null,null,null," "]
[13,"GENERAL DEPRECIATION"]
[14,null,{"$f":"'FR-16(7)(v)-1 Functional'!C574","v":"GENERAL DEPRECIATION"},{"$f":"'FR-16(7)(v)-1 Functional'!D574","v":"G229"},null,{"$f":"'FR-16(7)(v)-1 Functional'!F574","v":5388657},{"$f":"'FR-16(7)(v)-3 PROD Demand'!G574+'FR-16(7)(v)-4 PROD Energy'!G574+'FR-16(7)(v)-5 PROD Cust'!G574+'FR-16(7)(v)-7 TRANS Demand'!G574+'FR-16(7)(v)-8 TRANS Energy'!G574+'FR-16(7)(v)-9 TRANS Cust'!G574+'FR-16(7)(v)-11 DIST Demand'!G574+'FR-16(7)(v)-12 DIST Energy'!G574+'FR-16(7)(v)-13 DIST Cust'!G574","v":2612623},{"$f":"'FR-16(7)(v)-3 PROD Demand'!H574+'FR-16(7)(v)-4 PROD Energy'!H574+'FR-16(7)(v)-5 PROD Cust'!H574+'FR-16(7)(v)-7 TRANS Demand'!H574+'FR-16(7)(v)-8 TRANS Energy'!H574+'FR-16(7)(v)-9 TRANS Cust'!H574+'FR-16(7)(v)-11 DIST Demand'!H574+'FR-16(7)(v)-12 DIST Energy'!H574+'FR-16(7)(v)-13 DIST Cust'!H574","v":1360395},{"$f":"'FR-16(7)(v)-3 PROD Demand'!I574+'FR-16(7)(v)-4 PROD Energy'!I574+'FR-16(7)(v)-5 PROD Cust'!I574+'FR-16(7)(v)-7 TRANS Demand'!I574+'FR-16(7)(v)-8 TRANS Energy'!I574+'FR-16(7)(v)-9 TRANS Cust'!I574+'FR-16(7)(v)-11 DIST Demand'!I574+'FR-16(7)(v)-12 DIST Energy'!I574+'FR-16(7)(v)-13 DIST Cust'!I574","v":7225},{"$f":"'FR-16(7)(v)-3 PROD Demand'!J574+'FR-16(7)(v)-4 PROD Energy'!J574+'FR-16(7)(v)-5 PROD Cust'!J574+'FR-16(7)(v)-7 TRANS Demand'!J574+'FR-16(7)(v)-8 TRANS Energy'!J574+'FR-16(7)(v)-9 TRANS Cust'!J574+'FR-16(7)(v)-11 DIST Demand'!J574+'FR-16(7)(v)-12 DIST Energy'!J574+'FR-16(7)(v)-13 DIST Cust'!J574","v":22827},{"$f":"'FR-16(7)(v)-3 PROD Demand'!K574+'FR-16(7)(v)-4 PROD Energy'!K574+'FR-16(7)(v)-5 PROD Cust'!K574+'FR-16(7)(v)-7 TRANS Demand'!K574+'FR-16(7)(v)-8 TRANS Energy'!K574+'FR-16(7)(v)-9 TRANS Cust'!K574+'FR-16(7)(v)-11 DIST Demand'!K574+'FR-16(7)(v)-12 DIST Energy'!K574+'FR-16(7)(v)-13 DIST Cust'!K574","v":465},{"$f":"'FR-16(7)(v)-3 PROD Demand'!L574+'FR-16(7)(v)-4 PROD Energy'!L574+'FR-16(7)(v)-5 PROD Cust'!L574+'FR-16(7)(v)-7 TRANS Demand'!L574+'FR-16(7)(v)-8 TRANS Energy'!L574+'FR-16(7)(v)-9 TRANS Cust'!L574+'FR-16(7)(v)-11 DIST Demand'!L574+'FR-16(7)(v)-12 DIST Energy'!L574+'FR-16(7)(v)-13 DIST Cust'!L574","v":674441},{"$f":"'FR-16(7)(v)-3 PROD Demand'!M574+'FR-16(7)(v)-4 PROD Energy'!M574+'FR-16(7)(v)-5 PROD Cust'!M574+'FR-16(7)(v)-7 TRANS Demand'!M574+'FR-16(7)(v)-8 TRANS Energy'!M574+'FR-16(7)(v)-9 TRANS Cust'!M574+'FR-16(7)(v)-11 DIST Demand'!M574+'FR-16(7)(v)-12 DIST Energy'!M574+'FR-16(7)(v)-13 DIST Cust'!M574","v":453151},{"$f":"'FR-16(7)(v)-3 PROD Demand'!N574+'FR-16(7)(v)-4 PROD Energy'!N574+'FR-16(7)(v)-5 PROD Cust'!N574+'FR-16(7)(v)-7 TRANS Demand'!N574+'FR-16(7)(v)-8 TRANS Energy'!N574+'FR-16(7)(v)-9 TRANS Cust'!N574+'FR-16(7)(v)-11 DIST Demand'!N574+'FR-16(7)(v)-12 DIST Energy'!N574+'FR-16(7)(v)-13 DIST Cust'!N574","v":21748},{"$f":"'FR-16(7)(v)-3 PROD Demand'!O574+'FR-16(7)(v)-4 PROD Energy'!O574+'FR-16(7)(v)-5 PROD Cust'!O574+'FR-16(7)(v)-7 TRANS Demand'!O574+'FR-16(7)(v)-8 TRANS Energy'!O574+'FR-16(7)(v)-9 TRANS Cust'!O574+'FR-16(7)(v)-11 DIST Demand'!O574+'FR-16(7)(v)-12 DIST Energy'!O574+'FR-16(7)(v)-13 DIST Cust'!O574","v":221513},{"$f":"'FR-16(7)(v)-3 PROD Demand'!P574+'FR-16(7)(v)-4 PROD Energy'!P574+'FR-16(7)(v)-5 PROD Cust'!P574+'FR-16(7)(v)-7 TRANS Demand'!P574+'FR-16(7)(v)-8 TRANS Energy'!P574+'FR-16(7)(v)-9 TRANS Cust'!P574+'FR-16(7)(v)-11 DIST Demand'!P574+'FR-16(7)(v)-12 DIST Energy'!P574+'FR-16(7)(v)-13 DIST Cust'!P574","v":13658},{"$f":"'FR-16(7)(v)-3 PROD Demand'!Q574+'FR-16(7)(v)-4 PROD Energy'!Q574+'FR-16(7)(v)-5 PROD Cust'!Q574+'FR-16(7)(v)-7 TRANS Demand'!Q574+'FR-16(7)(v)-8 TRANS Energy'!Q574+'FR-16(7)(v)-9 TRANS Cust'!Q574+'FR-16(7)(v)-11 DIST Demand'!Q574+'FR-16(7)(v)-12 DIST Energy'!Q574+'FR-16(7)(v)-13 DIST Cust'!Q574","v":611},{"$f":"SUM(G574:Q574)","v":5388657},{"$f":"F574-R574","v":0}]
[15,null,{"$f":"'FR-16(7)(v)-1 Functional'!C575","v":"  TOTAL GENERAL DEPREC EXP."},null,null,{"$f":"SUM(F574:F574)","v":5388657},2612623,1360395,7225,{"$f":"SUM(J574:J574)","v":22827},465,674441,453151,21748,221513,13658,611,5388657,0]
[16]
[17,"COMMON AND OTHER DEPRECIATION"]
[18,null,{"$f":"'FR-16(7)(v)-1 Functional'!C578","v":"COMMON DEPRECIATION"},{"$f":"'FR-16(7)(v)-1 Functional'!D578","v":"C229"},null,{"$f":"'FR-16(7)(v)-1 Functional'!F578","v":36560},{"$f":"'FR-16(7)(v)-3 PROD Demand'!G578+'FR-16(7)(v)-4 PROD Energy'!G578+'FR-16(7)(v)-5 PROD Cust'!G578+'FR-16(7)(v)-7 TRANS Demand'!G578+'FR-16(7)(v)-8 TRANS Energy'!G578+'FR-16(7)(v)-9 TRANS Cust'!G578+'FR-16(7)(v)-11 DIST Demand'!G578+'FR-16(7)(v)-12 DIST Energy'!G578+'FR-16(7)(v)-13 DIST Cust'!G578","v":17781},{"$f":"'FR-16(7)(v)-3 PROD Demand'!H578+'FR-16(7)(v)-4 PROD Energy'!H578+'FR-16(7)(v)-5 PROD Cust'!H578+'FR-16(7)(v)-7 TRANS Demand'!H578+'FR-16(7)(v)-8 TRANS Energy'!H578+'FR-16(7)(v)-9 TRANS Cust'!H578+'FR-16(7)(v)-11 DIST Demand'!H578+'FR-16(7)(v)-12 DIST Energy'!H578+'FR-16(7)(v)-13 DIST Cust'!H578","v":9201},{"$f":"'FR-16(7)(v)-3 PROD Demand'!I578+'FR-16(7)(v)-4 PROD Energy'!I578+'FR-16(7)(v)-5 PROD Cust'!I578+'FR-16(7)(v)-7 TRANS Demand'!I578+'FR-16(7)(v)-8 TRANS Energy'!I578+'FR-16(7)(v)-9 TRANS Cust'!I578+'FR-16(7)(v)-11 DIST Demand'!I578+'FR-16(7)(v)-12 DIST Energy'!I578+'FR-16(7)(v)-13 DIST Cust'!I578","v":48},{"$f":"'FR-16(7)(v)-3 PROD Demand'!J578+'FR-16(7)(v)-4 PROD Energy'!J578+'FR-16(7)(v)-5 PROD Cust'!J578+'FR-16(7)(v)-7 TRANS Demand'!J578+'FR-16(7)(v)-8 TRANS Energy'!J578+'FR-16(7)(v)-9 TRANS Cust'!J578+'FR-16(7)(v)-11 DIST Demand'!J578+'FR-16(7)(v)-12 DIST Energy'!J578+'FR-16(7)(v)-13 DIST Cust'!J578","v":155},{"$f":"'FR-16(7)(v)-3 PROD Demand'!K578+'FR-16(7)(v)-4 PROD Energy'!K578+'FR-16(7)(v)-5 PROD Cust'!K578+'FR-16(7)(v)-7 TRANS Demand'!K578+'FR-16(7)(v)-8 TRANS Energy'!K578+'FR-16(7)(v)-9 TRANS Cust'!K578+'FR-16(7)(v)-11 DIST Demand'!K578+'FR-16(7)(v)-12 DIST Energy'!K578+'FR-16(7)(v)-13 DIST Cust'!K578","v":3},{"$f":"'FR-16(7)(v)-3 PROD Demand'!L578+'FR-16(7)(v)-4 PROD Energy'!L578+'FR-16(7)(v)-5 PROD Cust'!L578+'FR-16(7)(v)-7 TRANS Demand'!L578+'FR-16(7)(v)-8 TRANS Energy'!L578+'FR-16(7)(v)-9 TRANS Cust'!L578+'FR-16(7)(v)-11 DIST Demand'!L578+'FR-16(7)(v)-12 DIST Energy'!L578+'FR-16(7)(v)-13 DIST Cust'!L578","v":4563},{"$f":"'FR-16(7)(v)-3 PROD Demand'!M578+'FR-16(7)(v)-4 PROD Energy'!M578+'FR-16(7)(v)-5 PROD Cust'!M578+'FR-16(7)(v)-7 TRANS Demand'!M578+'FR-16(7)(v)-8 TRANS Energy'!M578+'FR-16(7)(v)-9 TRANS Cust'!M578+'FR-16(7)(v)-11 DIST Demand'!M578+'FR-16(7)(v)-12 DIST Energy'!M578+'FR-16(7)(v)-13 DIST Cust'!M578","v":3066},{"$f":"'FR-16(7)(v)-3 PROD Demand'!N578+'FR-16(7)(v)-4 PROD Energy'!N578+'FR-16(7)(v)-5 PROD Cust'!N578+'FR-16(7)(v)-7 TRANS Demand'!N578+'FR-16(7)(v)-8 TRANS Energy'!N578+'FR-16(7)(v)-9 TRANS Cust'!N578+'FR-16(7)(v)-11 DIST Demand'!N578+'FR-16(7)(v)-12 DIST Energy'!N578+'FR-16(7)(v)-13 DIST Cust'!N578","v":147},{"$f":"'FR-16(7)(v)-3 PROD Demand'!O578+'FR-16(7)(v)-4 PROD Energy'!O578+'FR-16(7)(v)-5 PROD Cust'!O578+'FR-16(7)(v)-7 TRANS Demand'!O578+'FR-16(7)(v)-8 TRANS Energy'!O578+'FR-16(7)(v)-9 TRANS Cust'!O578+'FR-16(7)(v)-11 DIST Demand'!O578+'FR-16(7)(v)-12 DIST Energy'!O578+'FR-16(7)(v)-13 DIST Cust'!O578","v":1499},{"$f":"'FR-16(7)(v)-3 PROD Demand'!P578+'FR-16(7)(v)-4 PROD Energy'!P578+'FR-16(7)(v)-5 PROD Cust'!P578+'FR-16(7)(v)-7 TRANS Demand'!P578+'FR-16(7)(v)-8 TRANS Energy'!P578+'FR-16(7)(v)-9 TRANS Cust'!P578+'FR-16(7)(v)-11 DIST Demand'!P578+'FR-16(7)(v)-12 DIST Energy'!P578+'FR-16(7)(v)-13 DIST Cust'!P578","v":93},{"$f":"'FR-16(7)(v)-3 PROD Demand'!Q578+'FR-16(7)(v)-4 PROD Energy'!Q578+'FR-16(7)(v)-5 PROD Cust'!Q578+'FR-16(7)(v)-7 TRANS Demand'!Q578+'FR-16(7)(v)-8 TRANS Energy'!Q578+'FR-16(7)(v)-9 TRANS Cust'!Q578+'FR-16(7)(v)-11 DIST Demand'!Q578+'FR-16(7)(v)-12 DIST Energy'!Q578+'FR-16(7)(v)-13 DIST Cust'!Q578","v":4},{"$f":"SUM(G578:Q578)","v":36560},{"$f":"F578-R578","v":0}]
[19,null,{"$f":"'FR-16(7)(v)-1 Functional'!C579","v":"  TOTAL COM & OTHER DEPREC EXP."},null,null,{"$f":"SUM(F578:F578)","v":36560},17781,9201,48,{"$f":"SUM(J578:J578)","v":155},3,4563,3066,147,1499,93,4,36560,0]
[20]
[21]
[22,"TOTAL DEPRECIATION EXPENSE",null,null," ",{"$f":"F579+F575+F571+F567+F563","v":58197795},27967520,15181448,74513,{"$f":"J579+J575+J571+J567+J563","v":290337},4328,7431765,4911695,239418,1872107,218310,6354,58197795,0]
[]
[{"$f":"co_name","v":"DUKE ENERGY KENTUCKY, INC."},null,null,null,null,null,null,null,null,null,null,null,null,null,null,null,null,{"$f":"R1","v":"FR-16(7)(v)-14"}]
[{"$f":"$A$2","v":"TOTAL CLASS ALLOCATED - ELECTRIC COST OF SERVICE"},null,null,null,null,null,null,null,null,null,null,null,null,null,null,null,null,{"$f":"R2","v":"WITNESS RESPONSIBLE:"}]
[{"$f":"case_name","v":"CASE NO: 2019-00271"},null,null,null,null,null,null,null,null,null,null,null,null,null,null,null,null,{"$f":"Witness","v":"JAMES E. ZIOLKOWSKI"}]
[{"$f":"data_filing","v":"DATA: 12 MONTHS ACTUAL  & 0 MONTHS ESTIMATED"},null,null,null,null,null,null,null,null,null,null,null,null,null,null,null,null,{"$f":"\"PAGE \"&Pages2-4&\" OF \"&Pages2","v":"PAGE 11 OF 15"}]
[{"$f":"type","v":"TYPE OF FILING: \"X\" ORIGINAL   UPDATED    REVISED  "}]
[]
[null,null,null,null,null,{"$f":"F$7","v":"TOTAL"},null,{"$f":"H$7","v":"DS"},{"$f":"I$7","v":"GSFL"},{"$f":"J$7","v":"EH"},{"$f":"K$7","v":"SP"},"DT SEC","DT PRI","DP","TT",null,"OTHER"]
["LINE",null,null,null,null,{"$f":"F$8","v":"CLASS"},{"$f":"G$8","v":"RS"},{"$f":"H$8","v":"SECONDARY"},{"$f":"I$8","v":"SECONDARY"},{"$f":"J$8","v":"SECONDARY"},{"$f":"K$8","v":"SECONDARY"},"SECONDARY","PRIMARY","PRIMARY","TRANSMISSION","LT","WATER",{"$f":"R8","v":"TOTAL"},"ALL"]
["NO.","OTHER TAXES & MISC EXPENSES",null,"ALLO",null,{"$f":"F$9","v":"ALLOCATED"},{"$f":"G$9","v":"RESIDENTIAL"},{"$f":"H$9","v":"DISTRIBUTION"},{"$f":"I$9","v":"DISTRIBUTION"},{"$f":"J$9","v":"DISTRIBUTION"},{"$f":"K$9","v":"DISTRIBUTION"},"DISTRIBUTION","DISTRIBUTION","DISTRIBUTION","TIME OF DAY","LIGHTING","PUMPING",{"$f":"R9","v":"AT ISSUE"},"OTHER"]
[null,null,"Schedule 8",null,null,null,{"$f":"G$10","v":3},{"$f":"H$10","v":4},{"$f":"I$10","v":5},{"$f":"J$10","v":6},{"$f":"K$10","v":7},8,9,10,11,12,13,null," "]
[1,"TAXES OTHER THAN INC & REV"]
[2," REAL ESTATE & PROPERTY TAX"]
[3,null,{"$f":"'FR-16(7)(v)-1 Functional'!C596","v":"REAL ESTATE & PROPERTY TAX"},{"$f":"'FR-16(7)(v)-1 Functional'!D596","v":"NP29"},null,{"$f":"'FR-16(7)(v)-1 Functional'!F596","v":13645092},{"$f":"'FR-16(7)(v)-3 PROD Demand'!G596+'FR-16(7)(v)-4 PROD Energy'!G596+'FR-16(7)(v)-5 PROD Cust'!G596+'FR-16(7)(v)-7 TRANS Demand'!G596+'FR-16(7)(v)-8 TRANS Energy'!G596+'FR-16(7)(v)-9 TRANS Cust'!G596+'FR-16(7)(v)-11 DIST Demand'!G596+'FR-16(7)(v)-12 DIST Energy'!G596+'FR-16(7)(v)-13 DIST Cust'!G596","v":6741340},{"$f":"'FR-16(7)(v)-3 PROD Demand'!H596+'FR-16(7)(v)-4 PROD Energy'!H596+'FR-16(7)(v)-5 PROD Cust'!H596+'FR-16(7)(v)-7 TRANS Demand'!H596+'FR-16(7)(v)-8 TRANS Energy'!H596+'FR-16(7)(v)-9 TRANS Cust'!H596+'FR-16(7)(v)-11 DIST Demand'!H596+'FR-16(7)(v)-12 DIST Energy'!H596+'FR-16(7)(v)-13 DIST Cust'!H596","v":3509903},{"$f":"'FR-16(7)(v)-3 PROD Demand'!I596+'FR-16(7)(v)-4 PROD Energy'!I596+'FR-16(7)(v)-5 PROD Cust'!I596+'FR-16(7)(v)-7 TRANS Demand'!I596+'FR-16(7)(v)-8 TRANS Energy'!I596+'FR-16(7)(v)-9 TRANS Cust'!I596+'FR-16(7)(v)-11 DIST Demand'!I596+'FR-16(7)(v)-12 DIST Energy'!I596+'FR-16(7)(v)-13 DIST Cust'!I596","v":17255},{"$f":"'FR-16(7)(v)-3 PROD Demand'!J596+'FR-16(7)(v)-4 PROD Energy'!J596+'FR-16(7)(v)-5 PROD Cust'!J596+'FR-16(7)(v)-7 TRANS Demand'!J596+'FR-16(7)(v)-8 TRANS Energy'!J596+'FR-16(7)(v)-9 TRANS Cust'!J596+'FR-16(7)(v)-11 DIST Demand'!J596+'FR-16(7)(v)-12 DIST Energy'!J596+'FR-16(7)(v)-13 DIST Cust'!J596","v":68326},{"$f":"'FR-16(7)(v)-3 PROD Demand'!K596+'FR-16(7)(v)-4 PROD Energy'!K596+'FR-16(7)(v)-5 PROD Cust'!K596+'FR-16(7)(v)-7 TRANS Demand'!K596+'FR-16(7)(v)-8 TRANS Energy'!K596+'FR-16(7)(v)-9 TRANS Cust'!K596+'FR-16(7)(v)-11 DIST Demand'!K596+'FR-16(7)(v)-12 DIST Energy'!K596+'FR-16(7)(v)-13 DIST Cust'!K596","v":1034},{"$f":"'FR-16(7)(v)-3 PROD Demand'!L596+'FR-16(7)(v)-4 PROD Energy'!L596+'FR-16(7)(v)-5 PROD Cust'!L596+'FR-16(7)(v)-7 TRANS Demand'!L596+'FR-16(7)(v)-8 TRANS Energy'!L596+'FR-16(7)(v)-9 TRANS Cust'!L596+'FR-16(7)(v)-11 DIST Demand'!L596+'FR-16(7)(v)-12 DIST Energy'!L596+'FR-16(7)(v)-13 DIST Cust'!L596","v":1700545},{"$f":"'FR-16(7)(v)-3 PROD Demand'!M596+'FR-16(7)(v)-4 PROD Energy'!M596+'FR-16(7)(v)-5 PROD Cust'!M596+'FR-16(7)(v)-7 TRANS Demand'!M596+'FR-16(7)(v)-8 TRANS Energy'!M596+'FR-16(7)(v)-9 TRANS Cust'!M596+'FR-16(7)(v)-11 DIST Demand'!M596+'FR-16(7)(v)-12 DIST Energy'!M596+'FR-16(7)(v)-13 DIST Cust'!M596","v":1121653},{"$f":"'FR-16(7)(v)-3 PROD Demand'!N596+'FR-16(7)(v)-4 PROD Energy'!N596+'FR-16(7)(v)-5 PROD Cust'!N596+'FR-16(7)(v)-7 TRANS Demand'!N596+'FR-16(7)(v)-8 TRANS Energy'!N596+'FR-16(7)(v)-9 TRANS Cust'!N596+'FR-16(7)(v)-11 DIST Demand'!N596+'FR-16(7)(v)-12 DIST Energy'!N596+'FR-16(7)(v)-13 DIST Cust'!N596","v":55014},{"$f":"'FR-16(7)(v)-3 PROD Demand'!O596+'FR-16(7)(v)-4 PROD Energy'!O596+'FR-16(7)(v)-5 PROD Cust'!O596+'FR-16(7)(v)-7 TRANS Demand'!O596+'FR-16(7)(v)-8 TRANS Energy'!O596+'FR-16(7)(v)-9 TRANS Cust'!O596+'FR-16(7)(v)-11 DIST Demand'!O596+'FR-16(7)(v)-12 DIST Energy'!O596+'FR-16(7)(v)-13 DIST Cust'!O596","v":359332},{"$f":"'FR-16(7)(v)-3 PROD Demand'!P596+'FR-16(7)(v)-4 PROD Energy'!P596+'FR-16(7)(v)-5 PROD Cust'!P596+'FR-16(7)(v)-7 TRANS Demand'!P596+'FR-16(7)(v)-8 TRANS Energy'!P596+'FR-16(7)(v)-9 TRANS Cust'!P596+'FR-16(7)(v)-11 DIST Demand'!P596+'FR-16(7)(v)-12 DIST Energy'!P596+'FR-16(7)(v)-13 DIST Cust'!P596","v":69215},{"$f":"'FR-16(7)(v)-3 PROD Demand'!Q596+'FR-16(7)(v)-4 PROD Energy'!Q596+'FR-16(7)(v)-5 PROD Cust'!Q596+'FR-16(7)(v)-7 TRANS Demand'!Q596+'FR-16(7)(v)-8 TRANS Energy'!Q596+'FR-16(7)(v)-9 TRANS Cust'!Q596+'FR-16(7)(v)-11 DIST Demand'!Q596+'FR-16(7)(v)-12 DIST Energy'!Q596+'FR-16(7)(v)-13 DIST Cust'!Q596","v":1475},{"$f":"SUM(G596:Q596)","v":13645092},{"$f":"F596-R596","v":0}]
[4,null,{"$f":"'FR-16(7)(v)-1 Functional'!C597","v":"ANNUALIZE PROPERTY TAX"},{"$f":"'FR-16(7)(v)-1 Functional'!D597","v":"NP29"}," ",{"$f":"'FR-16(7)(v)-1 Functional'!F597","v":0},{"$f":"'FR-16(7)(v)-3 PROD Demand'!G597+'FR-16(7)(v)-4 PROD Energy'!G597+'FR-16(7)(v)-5 PROD Cust'!G597+'FR-16(7)(v)-7 TRANS Demand'!G597+'FR-16(7)(v)-8 TRANS Energy'!G597+'FR-16(7)(v)-9 TRANS Cust'!G597+'FR-16(7)(v)-11 DIST Demand'!G597+'FR-16(7)(v)-12 DIST Energy'!G597+'FR-16(7)(v)-13 DIST Cust'!G597","v":0},{"$f":"'FR-16(7)(v)-3 PROD Demand'!H597+'FR-16(7)(v)-4 PROD Energy'!H597+'FR-16(7)(v)-5 PROD Cust'!H597+'FR-16(7)(v)-7 TRANS Demand'!H597+'FR-16(7)(v)-8 TRANS Energy'!H597+'FR-16(7)(v)-9 TRANS Cust'!H597+'FR-16(7)(v)-11 DIST Demand'!H597+'FR-16(7)(v)-12 DIST Energy'!H597+'FR-16(7)(v)-13 DIST Cust'!H597","v":0},{"$f":"'FR-16(7)(v)-3 PROD Demand'!I597+'FR-16(7)(v)-4 PROD Energy'!I597+'FR-16(7)(v)-5 PROD Cust'!I597+'FR-16(7)(v)-7 TRANS Demand'!I597+'FR-16(7)(v)-8 TRANS Energy'!I597+'FR-16(7)(v)-9 TRANS Cust'!I597+'FR-16(7)(v)-11 DIST Demand'!I597+'FR-16(7)(v)-12 DIST Energy'!I597+'FR-16(7)(v)-13 DIST Cust'!I597","v":0},{"$f":"'FR-16(7)(v)-3 PROD Demand'!J597+'FR-16(7)(v)-4 PROD Energy'!J597+'FR-16(7)(v)-5 PROD Cust'!J597+'FR-16(7)(v)-7 TRANS Demand'!J597+'FR-16(7)(v)-8 TRANS Energy'!J597+'FR-16(7)(v)-9 TRANS Cust'!J597+'FR-16(7)(v)-11 DIST Demand'!J597+'FR-16(7)(v)-12 DIST Energy'!J597+'FR-16(7)(v)-13 DIST Cust'!J597","v":0},{"$f":"'FR-16(7)(v)-3 PROD Demand'!K597+'FR-16(7)(v)-4 PROD Energy'!K597+'FR-16(7)(v)-5 PROD Cust'!K597+'FR-16(7)(v)-7 TRANS Demand'!K597+'FR-16(7)(v)-8 TRANS Energy'!K597+'FR-16(7)(v)-9 TRANS Cust'!K597+'FR-16(7)(v)-11 DIST Demand'!K597+'FR-16(7)(v)-12 DIST Energy'!K597+'FR-16(7)(v)-13 DIST Cust'!K597","v":0},{"$f":"'FR-16(7)(v)-3 PROD Demand'!L597+'FR-16(7)(v)-4 PROD Energy'!L597+'FR-16(7)(v)-5 PROD Cust'!L597+'FR-16(7)(v)-7 TRANS Demand'!L597+'FR-16(7)(v)-8 TRANS Energy'!L597+'FR-16(7)(v)-9 TRANS Cust'!L597+'FR-16(7)(v)-11 DIST Demand'!L597+'FR-16(7)(v)-12 DIST Energy'!L597+'FR-16(7)(v)-13 DIST Cust'!L597","v":0},{"$f":"'FR-16(7)(v)-3 PROD Demand'!M597+'FR-16(7)(v)-4 PROD Energy'!M597+'FR-16(7)(v)-5 PROD Cust'!M597+'FR-16(7)(v)-7 TRANS Demand'!M597+'FR-16(7)(v)-8 TRANS Energy'!M597+'FR-16(7)(v)-9 TRANS Cust'!M597+'FR-16(7)(v)-11 DIST Demand'!M597+'FR-16(7)(v)-12 DIST Energy'!M597+'FR-16(7)(v)-13 DIST Cust'!M597","v":0},{"$f":"'FR-16(7)(v)-3 PROD Demand'!N597+'FR-16(7)(v)-4 PROD Energy'!N597+'FR-16(7)(v)-5 PROD Cust'!N597+'FR-16(7)(v)-7 TRANS Demand'!N597+'FR-16(7)(v)-8 TRANS Energy'!N597+'FR-16(7)(v)-9 TRANS Cust'!N597+'FR-16(7)(v)-11 DIST Demand'!N597+'FR-16(7)(v)-12 DIST Energy'!N597+'FR-16(7)(v)-13 DIST Cust'!N597","v":0},{"$f":"'FR-16(7)(v)-3 PROD Demand'!O597+'FR-16(7)(v)-4 PROD Energy'!O597+'FR-16(7)(v)-5 PROD Cust'!O597+'FR-16(7)(v)-7 TRANS Demand'!O597+'FR-16(7)(v)-8 TRANS Energy'!O597+'FR-16(7)(v)-9 TRANS Cust'!O597+'FR-16(7)(v)-11 DIST Demand'!O597+'FR-16(7)(v)-12 DIST Energy'!O597+'FR-16(7)(v)-13 DIST Cust'!O597","v":0},{"$f":"'FR-16(7)(v)-3 PROD Demand'!P597+'FR-16(7)(v)-4 PROD Energy'!P597+'FR-16(7)(v)-5 PROD Cust'!P597+'FR-16(7)(v)-7 TRANS Demand'!P597+'FR-16(7)(v)-8 TRANS Energy'!P597+'FR-16(7)(v)-9 TRANS Cust'!P597+'FR-16(7)(v)-11 DIST Demand'!P597+'FR-16(7)(v)-12 DIST Energy'!P597+'FR-16(7)(v)-13 DIST Cust'!P597","v":0},{"$f":"'FR-16(7)(v)-3 PROD Demand'!Q597+'FR-16(7)(v)-4 PROD Energy'!Q597+'FR-16(7)(v)-5 PROD Cust'!Q597+'FR-16(7)(v)-7 TRANS Demand'!Q597+'FR-16(7)(v)-8 TRANS Energy'!Q597+'FR-16(7)(v)-9 TRANS Cust'!Q597+'FR-16(7)(v)-11 DIST Demand'!Q597+'FR-16(7)(v)-12 DIST Energy'!Q597+'FR-16(7)(v)-13 DIST Cust'!Q597","v":0},{"$f":"SUM(G597:Q597)","v":0},{"$f":"F597-R597","v":0}]
[5,null,{"$f":"'FR-16(7)(v)-1 Functional'!C598","v":"  TOTAL REAL ESTATE & PROPERTY TAX"},null,null,{"$f":"SUM(F596:F597)","v":13645092},{"$f":"SUM(G596:G597)","v":6741340},{"$f":"SUM(H596:H597)","v":3509903},{"$f":"SUM(I596:I597)","v":17255},{"$f":"SUM(J596:J597)","v":68326},1034,1700545,1121653,55014,359332,69215,{"$f":"SUM($Q$596:$Q$597)","v":1475},{"$f":"SUM(R596:R597)","v":13645092},{"$f":"SUM(S596:S597)","v":0}]
[6]
[7," MISCELLANEOUS TAXES"]
[8,null,{"$f":"'FR-16(7)(v)-1 Functional'!C601","v":"PAYROLL "},{"$f":"'FR-16(7)(v)-1 Functional'!D601","v":"A315"},null,{"$f":"'FR-16(7)(v)-1 Functional'!F601","v":1882313},{"$f":"'FR-16(7)(v)-3 PROD Demand'!G601+'FR-16(7)(v)-4 PROD Energy'!G601+'FR-16(7)(v)-5 PROD Cust'!G601+'FR-16(7)(v)-7 TRANS Demand'!G601+'FR-16(7)(v)-8 TRANS Energy'!G601+'FR-16(7)(v)-9 TRANS Cust'!G601+'FR-16(7)(v)-11 DIST Demand'!G601+'FR-16(7)(v)-12 DIST Energy'!G601+'FR-16(7)(v)-13 DIST Cust'!G601","v":1230557},{"$f":"'FR-16(7)(v)-3 PROD Demand'!H601+'FR-16(7)(v)-4 PROD Energy'!H601+'FR-16(7)(v)-5 PROD Cust'!H601+'FR-16(7)(v)-7 TRANS Demand'!H601+'FR-16(7)(v)-8 TRANS Energy'!H601+'FR-16(7)(v)-9 TRANS Cust'!H601+'FR-16(7)(v)-11 DIST Demand'!H601+'FR-16(7)(v)-12 DIST Energy'!H601+'FR-16(7)(v)-13 DIST Cust'!H601","v":318882},{"$f":"'FR-16(7)(v)-3 PROD Demand'!I601+'FR-16(7)(v)-4 PROD Energy'!I601+'FR-16(7)(v)-5 PROD Cust'!I601+'FR-16(7)(v)-7 TRANS Demand'!I601+'FR-16(7)(v)-8 TRANS Energy'!I601+'FR-16(7)(v)-9 TRANS Cust'!I601+'FR-16(7)(v)-11 DIST Demand'!I601+'FR-16(7)(v)-12 DIST Energy'!I601+'FR-16(7)(v)-13 DIST Cust'!I601","v":1696},{"$f":"'FR-16(7)(v)-3 PROD Demand'!J601+'FR-16(7)(v)-4 PROD Energy'!J601+'FR-16(7)(v)-5 PROD Cust'!J601+'FR-16(7)(v)-7 TRANS Demand'!J601+'FR-16(7)(v)-8 TRANS Energy'!J601+'FR-16(7)(v)-9 TRANS Cust'!J601+'FR-16(7)(v)-11 DIST Demand'!J601+'FR-16(7)(v)-12 DIST Energy'!J601+'FR-16(7)(v)-13 DIST Cust'!J601","v":5439},{"$f":"'FR-16(7)(v)-3 PROD Demand'!K601+'FR-16(7)(v)-4 PROD Energy'!K601+'FR-16(7)(v)-5 PROD Cust'!K601+'FR-16(7)(v)-7 TRANS Demand'!K601+'FR-16(7)(v)-8 TRANS Energy'!K601+'FR-16(7)(v)-9 TRANS Cust'!K601+'FR-16(7)(v)-11 DIST Demand'!K601+'FR-16(7)(v)-12 DIST Energy'!K601+'FR-16(7)(v)-13 DIST Cust'!K601","v":122},{"$f":"'FR-16(7)(v)-3 PROD Demand'!L601+'FR-16(7)(v)-4 PROD Energy'!L601+'FR-16(7)(v)-5 PROD Cust'!L601+'FR-16(7)(v)-7 TRANS Demand'!L601+'FR-16(7)(v)-8 TRANS Energy'!L601+'FR-16(7)(v)-9 TRANS Cust'!L601+'FR-16(7)(v)-11 DIST Demand'!L601+'FR-16(7)(v)-12 DIST Energy'!L601+'FR-16(7)(v)-13 DIST Cust'!L601","v":155960},{"$f":"'FR-16(7)(v)-3 PROD Demand'!M601+'FR-16(7)(v)-4 PROD Energy'!M601+'FR-16(7)(v)-5 PROD Cust'!M601+'FR-16(7)(v)-7 TRANS Demand'!M601+'FR-16(7)(v)-8 TRANS Energy'!M601+'FR-16(7)(v)-9 TRANS Cust'!M601+'FR-16(7)(v)-11 DIST Demand'!M601+'FR-16(7)(v)-12 DIST Energy'!M601+'FR-16(7)(v)-13 DIST Cust'!M601","v":105223},{"$f":"'FR-16(7)(v)-3 PROD Demand'!N601+'FR-16(7)(v)-4 PROD Energy'!N601+'FR-16(7)(v)-5 PROD Cust'!N601+'FR-16(7)(v)-7 TRANS Demand'!N601+'FR-16(7)(v)-8 TRANS Energy'!N601+'FR-16(7)(v)-9 TRANS Cust'!N601+'FR-16(7)(v)-11 DIST Demand'!N601+'FR-16(7)(v)-12 DIST Energy'!N601+'FR-16(7)(v)-13 DIST Cust'!N601","v":5179},{"$f":"'FR-16(7)(v)-3 PROD Demand'!O601+'FR-16(7)(v)-4 PROD Energy'!O601+'FR-16(7)(v)-5 PROD Cust'!O601+'FR-16(7)(v)-7 TRANS Demand'!O601+'FR-16(7)(v)-8 TRANS Energy'!O601+'FR-16(7)(v)-9 TRANS Cust'!O601+'FR-16(7)(v)-11 DIST Demand'!O601+'FR-16(7)(v)-12 DIST Energy'!O601+'FR-16(7)(v)-13 DIST Cust'!O601","v":43362},{"$f":"'FR-16(7)(v)-3 PROD Demand'!P601+'FR-16(7)(v)-4 PROD Energy'!P601+'FR-16(7)(v)-5 PROD Cust'!P601+'FR-16(7)(v)-7 TRANS Demand'!P601+'FR-16(7)(v)-8 TRANS Energy'!P601+'FR-16(7)(v)-9 TRANS Cust'!P601+'FR-16(7)(v)-11 DIST Demand'!P601+'FR-16(7)(v)-12 DIST Energy'!P601+'FR-16(7)(v)-13 DIST Cust'!P601","v":15723},{"$f":"'FR-16(7)(v)-3 PROD Demand'!Q601+'FR-16(7)(v)-4 PROD Energy'!Q601+'FR-16(7)(v)-5 PROD Cust'!Q601+'FR-16(7)(v)-7 TRANS Demand'!Q601+'FR-16(7)(v)-8 TRANS Energy'!Q601+'FR-16(7)(v)-9 TRANS Cust'!Q601+'FR-16(7)(v)-11 DIST Demand'!Q601+'FR-16(7)(v)-12 DIST Energy'!Q601+'FR-16(7)(v)-13 DIST Cust'!Q601","v":170},{"$f":"SUM(G601:Q601)","v":1882313},{"$f":"F601-R601","v":0}]
[9,null,{"$f":"'FR-16(7)(v)-1 Functional'!C602","v":"ELIMINATE DSM "},{"$f":"'FR-16(7)(v)-1 Functional'!D602","v":"A315"},null,{"$f":"'FR-16(7)(v)-1 Functional'!F602","v":-37033},{"$f":"'FR-16(7)(v)-3 PROD Demand'!G602+'FR-16(7)(v)-4 PROD Energy'!G602+'FR-16(7)(v)-5 PROD Cust'!G602+'FR-16(7)(v)-7 TRANS Demand'!G602+'FR-16(7)(v)-8 TRANS Energy'!G602+'FR-16(7)(v)-9 TRANS Cust'!G602+'FR-16(7)(v)-11 DIST Demand'!G602+'FR-16(7)(v)-12 DIST Energy'!G602+'FR-16(7)(v)-13 DIST Cust'!G602","v":-24212},{"$f":"'FR-16(7)(v)-3 PROD Demand'!H602+'FR-16(7)(v)-4 PROD Energy'!H602+'FR-16(7)(v)-5 PROD Cust'!H602+'FR-16(7)(v)-7 TRANS Demand'!H602+'FR-16(7)(v)-8 TRANS Energy'!H602+'FR-16(7)(v)-9 TRANS Cust'!H602+'FR-16(7)(v)-11 DIST Demand'!H602+'FR-16(7)(v)-12 DIST Energy'!H602+'FR-16(7)(v)-13 DIST Cust'!H602","v":-6273},{"$f":"'FR-16(7)(v)-3 PROD Demand'!I602+'FR-16(7)(v)-4 PROD Energy'!I602+'FR-16(7)(v)-5 PROD Cust'!I602+'FR-16(7)(v)-7 TRANS Demand'!I602+'FR-16(7)(v)-8 TRANS Energy'!I602+'FR-16(7)(v)-9 TRANS Cust'!I602+'FR-16(7)(v)-11 DIST Demand'!I602+'FR-16(7)(v)-12 DIST Energy'!I602+'FR-16(7)(v)-13 DIST Cust'!I602","v":-33},{"$f":"'FR-16(7)(v)-3 PROD Demand'!J602+'FR-16(7)(v)-4 PROD Energy'!J602+'FR-16(7)(v)-5 PROD Cust'!J602+'FR-16(7)(v)-7 TRANS Demand'!J602+'FR-16(7)(v)-8 TRANS Energy'!J602+'FR-16(7)(v)-9 TRANS Cust'!J602+'FR-16(7)(v)-11 DIST Demand'!J602+'FR-16(7)(v)-12 DIST Energy'!J602+'FR-16(7)(v)-13 DIST Cust'!J602","v":-107},{"$f":"'FR-16(7)(v)-3 PROD Demand'!K602+'FR-16(7)(v)-4 PROD Energy'!K602+'FR-16(7)(v)-5 PROD Cust'!K602+'FR-16(7)(v)-7 TRANS Demand'!K602+'FR-16(7)(v)-8 TRANS Energy'!K602+'FR-16(7)(v)-9 TRANS Cust'!K602+'FR-16(7)(v)-11 DIST Demand'!K602+'FR-16(7)(v)-12 DIST Energy'!K602+'FR-16(7)(v)-13 DIST Cust'!K602","v":-2},{"$f":"'FR-16(7)(v)-3 PROD Demand'!L602+'FR-16(7)(v)-4 PROD Energy'!L602+'FR-16(7)(v)-5 PROD Cust'!L602+'FR-16(7)(v)-7 TRANS Demand'!L602+'FR-16(7)(v)-8 TRANS Energy'!L602+'FR-16(7)(v)-9 TRANS Cust'!L602+'FR-16(7)(v)-11 DIST Demand'!L602+'FR-16(7)(v)-12 DIST Energy'!L602+'FR-16(7)(v)-13 DIST Cust'!L602","v":-3068},{"$f":"'FR-16(7)(v)-3 PROD Demand'!M602+'FR-16(7)(v)-4 PROD Energy'!M602+'FR-16(7)(v)-5 PROD Cust'!M602+'FR-16(7)(v)-7 TRANS Demand'!M602+'FR-16(7)(v)-8 TRANS Energy'!M602+'FR-16(7)(v)-9 TRANS Cust'!M602+'FR-16(7)(v)-11 DIST Demand'!M602+'FR-16(7)(v)-12 DIST Energy'!M602+'FR-16(7)(v)-13 DIST Cust'!M602","v":-2071},{"$f":"'FR-16(7)(v)-3 PROD Demand'!N602+'FR-16(7)(v)-4 PROD Energy'!N602+'FR-16(7)(v)-5 PROD Cust'!N602+'FR-16(7)(v)-7 TRANS Demand'!N602+'FR-16(7)(v)-8 TRANS Energy'!N602+'FR-16(7)(v)-9 TRANS Cust'!N602+'FR-16(7)(v)-11 DIST Demand'!N602+'FR-16(7)(v)-12 DIST Energy'!N602+'FR-16(7)(v)-13 DIST Cust'!N602","v":-102},{"$f":"'FR-16(7)(v)-3 PROD Demand'!O602+'FR-16(7)(v)-4 PROD Energy'!O602+'FR-16(7)(v)-5 PROD Cust'!O602+'FR-16(7)(v)-7 TRANS Demand'!O602+'FR-16(7)(v)-8 TRANS Energy'!O602+'FR-16(7)(v)-9 TRANS Cust'!O602+'FR-16(7)(v)-11 DIST Demand'!O602+'FR-16(7)(v)-12 DIST Energy'!O602+'FR-16(7)(v)-13 DIST Cust'!O602","v":-853},{"$f":"'FR-16(7)(v)-3 PROD Demand'!P602+'FR-16(7)(v)-4 PROD Energy'!P602+'FR-16(7)(v)-5 PROD Cust'!P602+'FR-16(7)(v)-7 TRANS Demand'!P602+'FR-16(7)(v)-8 TRANS Energy'!P602+'FR-16(7)(v)-9 TRANS Cust'!P602+'FR-16(7)(v)-11 DIST Demand'!P602+'FR-16(7)(v)-12 DIST Energy'!P602+'FR-16(7)(v)-13 DIST Cust'!P602","v":-309},{"$f":"'FR-16(7)(v)-3 PROD Demand'!Q602+'FR-16(7)(v)-4 PROD Energy'!Q602+'FR-16(7)(v)-5 PROD Cust'!Q602+'FR-16(7)(v)-7 TRANS Demand'!Q602+'FR-16(7)(v)-8 TRANS Energy'!Q602+'FR-16(7)(v)-9 TRANS Cust'!Q602+'FR-16(7)(v)-11 DIST Demand'!Q602+'FR-16(7)(v)-12 DIST Energy'!Q602+'FR-16(7)(v)-13 DIST Cust'!Q602","v":-3},{"$f":"SUM(G602:Q602)","v":-37033},{"$f":"F602-R602","v":0}]
[10,null,{"$f":"'FR-16(7)(v)-1 Functional'!C603","v":"FRANCHISE & LICENSE"},{"$f":"'FR-16(7)(v)-1 Functional'!D603","v":"A315"},null,{"$f":"'FR-16(7)(v)-1 Functional'!F603","v":0},{"$f":"'FR-16(7)(v)-3 PROD Demand'!G603+'FR-16(7)(v)-4 PROD Energy'!G603+'FR-16(7)(v)-5 PROD Cust'!G603+'FR-16(7)(v)-7 TRANS Demand'!G603+'FR-16(7)(v)-8 TRANS Energy'!G603+'FR-16(7)(v)-9 TRANS Cust'!G603+'FR-16(7)(v)-11 DIST Demand'!G603+'FR-16(7)(v)-12 DIST Energy'!G603+'FR-16(7)(v)-13 DIST Cust'!G603","v":0},{"$f":"'FR-16(7)(v)-3 PROD Demand'!H603+'FR-16(7)(v)-4 PROD Energy'!H603+'FR-16(7)(v)-5 PROD Cust'!H603+'FR-16(7)(v)-7 TRANS Demand'!H603+'FR-16(7)(v)-8 TRANS Energy'!H603+'FR-16(7)(v)-9 TRANS Cust'!H603+'FR-16(7)(v)-11 DIST Demand'!H603+'FR-16(7)(v)-12 DIST Energy'!H603+'FR-16(7)(v)-13 DIST Cust'!H603","v":0},{"$f":"'FR-16(7)(v)-3 PROD Demand'!I603+'FR-16(7)(v)-4 PROD Energy'!I603+'FR-16(7)(v)-5 PROD Cust'!I603+'FR-16(7)(v)-7 TRANS Demand'!I603+'FR-16(7)(v)-8 TRANS Energy'!I603+'FR-16(7)(v)-9 TRANS Cust'!I603+'FR-16(7)(v)-11 DIST Demand'!I603+'FR-16(7)(v)-12 DIST Energy'!I603+'FR-16(7)(v)-13 DIST Cust'!I603","v":0},{"$f":"'FR-16(7)(v)-3 PROD Demand'!J603+'FR-16(7)(v)-4 PROD Energy'!J603+'FR-16(7)(v)-5 PROD Cust'!J603+'FR-16(7)(v)-7 TRANS Demand'!J603+'FR-16(7)(v)-8 TRANS Energy'!J603+'FR-16(7)(v)-9 TRANS Cust'!J603+'FR-16(7)(v)-11 DIST Demand'!J603+'FR-16(7)(v)-12 DIST Energy'!J603+'FR-16(7)(v)-13 DIST Cust'!J603","v":0},{"$f":"'FR-16(7)(v)-3 PROD Demand'!K603+'FR-16(7)(v)-4 PROD Energy'!K603+'FR-16(7)(v)-5 PROD Cust'!K603+'FR-16(7)(v)-7 TRANS Demand'!K603+'FR-16(7)(v)-8 TRANS Energy'!K603+'FR-16(7)(v)-9 TRANS Cust'!K603+'FR-16(7)(v)-11 DIST Demand'!K603+'FR-16(7)(v)-12 DIST Energy'!K603+'FR-16(7)(v)-13 DIST Cust'!K603","v":0},{"$f":"'FR-16(7)(v)-3 PROD Demand'!L603+'FR-16(7)(v)-4 PROD Energy'!L603+'FR-16(7)(v)-5 PROD Cust'!L603+'FR-16(7)(v)-7 TRANS Demand'!L603+'FR-16(7)(v)-8 TRANS Energy'!L603+'FR-16(7)(v)-9 TRANS Cust'!L603+'FR-16(7)(v)-11 DIST Demand'!L603+'FR-16(7)(v)-12 DIST Energy'!L603+'FR-16(7)(v)-13 DIST Cust'!L603","v":0},{"$f":"'FR-16(7)(v)-3 PROD Demand'!M603+'FR-16(7)(v)-4 PROD Energy'!M603+'FR-16(7)(v)-5 PROD Cust'!M603+'FR-16(7)(v)-7 TRANS Demand'!M603+'FR-16(7)(v)-8 TRANS Energy'!M603+'FR-16(7)(v)-9 TRANS Cust'!M603+'FR-16(7)(v)-11 DIST Demand'!M603+'FR-16(7)(v)-12 DIST Energy'!M603+'FR-16(7)(v)-13 DIST Cust'!M603","v":0},{"$f":"'FR-16(7)(v)-3 PROD Demand'!N603+'FR-16(7)(v)-4 PROD Energy'!N603+'FR-16(7)(v)-5 PROD Cust'!N603+'FR-16(7)(v)-7 TRANS Demand'!N603+'FR-16(7)(v)-8 TRANS Energy'!N603+'FR-16(7)(v)-9 TRANS Cust'!N603+'FR-16(7)(v)-11 DIST Demand'!N603+'FR-16(7)(v)-12 DIST Energy'!N603+'FR-16(7)(v)-13 DIST Cust'!N603","v":0},{"$f":"'FR-16(7)(v)-3 PROD Demand'!O603+'FR-16(7)(v)-4 PROD Energy'!O603+'FR-16(7)(v)-5 PROD Cust'!O603+'FR-16(7)(v)-7 TRANS Demand'!O603+'FR-16(7)(v)-8 TRANS Energy'!O603+'FR-16(7)(v)-9 TRANS Cust'!O603+'FR-16(7)(v)-11 DIST Demand'!O603+'FR-16(7)(v)-12 DIST Energy'!O603+'FR-16(7)(v)-13 DIST Cust'!O603","v":0},{"$f":"'FR-16(7)(v)-3 PROD Demand'!P603+'FR-16(7)(v)-4 PROD Energy'!P603+'FR-16(7)(v)-5 PROD Cust'!P603+'FR-16(7)(v)-7 TRANS Demand'!P603+'FR-16(7)(v)-8 TRANS Energy'!P603+'FR-16(7)(v)-9 TRANS Cust'!P603+'FR-16(7)(v)-11 DIST Demand'!P603+'FR-16(7)(v)-12 DIST Energy'!P603+'FR-16(7)(v)-13 DIST Cust'!P603","v":0},{"$f":"'FR-16(7)(v)-3 PROD Demand'!Q603+'FR-16(7)(v)-4 PROD Energy'!Q603+'FR-16(7)(v)-5 PROD Cust'!Q603+'FR-16(7)(v)-7 TRANS Demand'!Q603+'FR-16(7)(v)-8 TRANS Energy'!Q603+'FR-16(7)(v)-9 TRANS Cust'!Q603+'FR-16(7)(v)-11 DIST Demand'!Q603+'FR-16(7)(v)-12 DIST Energy'!Q603+'FR-16(7)(v)-13 DIST Cust'!Q603","v":0},{"$f":"SUM(G603:Q603)","v":0},{"$f":"F603-R603","v":0}]
[11,null,{"$f":"'FR-16(7)(v)-1 Functional'!C604","v":"ELIMINATE ESM"},{"$f":"'FR-16(7)(v)-1 Functional'!D604","v":"A315"},null,{"$f":"'FR-16(7)(v)-1 Functional'!F604","v":-1001304},{"$f":"'FR-16(7)(v)-3 PROD Demand'!G604+'FR-16(7)(v)-4 PROD Energy'!G604+'FR-16(7)(v)-5 PROD Cust'!G604+'FR-16(7)(v)-7 TRANS Demand'!G604+'FR-16(7)(v)-8 TRANS Energy'!G604+'FR-16(7)(v)-9 TRANS Cust'!G604+'FR-16(7)(v)-11 DIST Demand'!G604+'FR-16(7)(v)-12 DIST Energy'!G604+'FR-16(7)(v)-13 DIST Cust'!G604","v":-654600},{"$f":"'FR-16(7)(v)-3 PROD Demand'!H604+'FR-16(7)(v)-4 PROD Energy'!H604+'FR-16(7)(v)-5 PROD Cust'!H604+'FR-16(7)(v)-7 TRANS Demand'!H604+'FR-16(7)(v)-8 TRANS Energy'!H604+'FR-16(7)(v)-9 TRANS Cust'!H604+'FR-16(7)(v)-11 DIST Demand'!H604+'FR-16(7)(v)-12 DIST Energy'!H604+'FR-16(7)(v)-13 DIST Cust'!H604","v":-169631},{"$f":"'FR-16(7)(v)-3 PROD Demand'!I604+'FR-16(7)(v)-4 PROD Energy'!I604+'FR-16(7)(v)-5 PROD Cust'!I604+'FR-16(7)(v)-7 TRANS Demand'!I604+'FR-16(7)(v)-8 TRANS Energy'!I604+'FR-16(7)(v)-9 TRANS Cust'!I604+'FR-16(7)(v)-11 DIST Demand'!I604+'FR-16(7)(v)-12 DIST Energy'!I604+'FR-16(7)(v)-13 DIST Cust'!I604","v":-902},{"$f":"'FR-16(7)(v)-3 PROD Demand'!J604+'FR-16(7)(v)-4 PROD Energy'!J604+'FR-16(7)(v)-5 PROD Cust'!J604+'FR-16(7)(v)-7 TRANS Demand'!J604+'FR-16(7)(v)-8 TRANS Energy'!J604+'FR-16(7)(v)-9 TRANS Cust'!J604+'FR-16(7)(v)-11 DIST Demand'!J604+'FR-16(7)(v)-12 DIST Energy'!J604+'FR-16(7)(v)-13 DIST Cust'!J604","v":-2893},{"$f":"'FR-16(7)(v)-3 PROD Demand'!K604+'FR-16(7)(v)-4 PROD Energy'!K604+'FR-16(7)(v)-5 PROD Cust'!K604+'FR-16(7)(v)-7 TRANS Demand'!K604+'FR-16(7)(v)-8 TRANS Energy'!K604+'FR-16(7)(v)-9 TRANS Cust'!K604+'FR-16(7)(v)-11 DIST Demand'!K604+'FR-16(7)(v)-12 DIST Energy'!K604+'FR-16(7)(v)-13 DIST Cust'!K604","v":-64},{"$f":"'FR-16(7)(v)-3 PROD Demand'!L604+'FR-16(7)(v)-4 PROD Energy'!L604+'FR-16(7)(v)-5 PROD Cust'!L604+'FR-16(7)(v)-7 TRANS Demand'!L604+'FR-16(7)(v)-8 TRANS Energy'!L604+'FR-16(7)(v)-9 TRANS Cust'!L604+'FR-16(7)(v)-11 DIST Demand'!L604+'FR-16(7)(v)-12 DIST Energy'!L604+'FR-16(7)(v)-13 DIST Cust'!L604","v":-82965},{"$f":"'FR-16(7)(v)-3 PROD Demand'!M604+'FR-16(7)(v)-4 PROD Energy'!M604+'FR-16(7)(v)-5 PROD Cust'!M604+'FR-16(7)(v)-7 TRANS Demand'!M604+'FR-16(7)(v)-8 TRANS Energy'!M604+'FR-16(7)(v)-9 TRANS Cust'!M604+'FR-16(7)(v)-11 DIST Demand'!M604+'FR-16(7)(v)-12 DIST Energy'!M604+'FR-16(7)(v)-13 DIST Cust'!M604","v":-55974},{"$f":"'FR-16(7)(v)-3 PROD Demand'!N604+'FR-16(7)(v)-4 PROD Energy'!N604+'FR-16(7)(v)-5 PROD Cust'!N604+'FR-16(7)(v)-7 TRANS Demand'!N604+'FR-16(7)(v)-8 TRANS Energy'!N604+'FR-16(7)(v)-9 TRANS Cust'!N604+'FR-16(7)(v)-11 DIST Demand'!N604+'FR-16(7)(v)-12 DIST Energy'!N604+'FR-16(7)(v)-13 DIST Cust'!N604","v":-2754},{"$f":"'FR-16(7)(v)-3 PROD Demand'!O604+'FR-16(7)(v)-4 PROD Energy'!O604+'FR-16(7)(v)-5 PROD Cust'!O604+'FR-16(7)(v)-7 TRANS Demand'!O604+'FR-16(7)(v)-8 TRANS Energy'!O604+'FR-16(7)(v)-9 TRANS Cust'!O604+'FR-16(7)(v)-11 DIST Demand'!O604+'FR-16(7)(v)-12 DIST Energy'!O604+'FR-16(7)(v)-13 DIST Cust'!O604","v":-23067},{"$f":"'FR-16(7)(v)-3 PROD Demand'!P604+'FR-16(7)(v)-4 PROD Energy'!P604+'FR-16(7)(v)-5 PROD Cust'!P604+'FR-16(7)(v)-7 TRANS Demand'!P604+'FR-16(7)(v)-8 TRANS Energy'!P604+'FR-16(7)(v)-9 TRANS Cust'!P604+'FR-16(7)(v)-11 DIST Demand'!P604+'FR-16(7)(v)-12 DIST Energy'!P604+'FR-16(7)(v)-13 DIST Cust'!P604","v":-8364},{"$f":"'FR-16(7)(v)-3 PROD Demand'!Q604+'FR-16(7)(v)-4 PROD Energy'!Q604+'FR-16(7)(v)-5 PROD Cust'!Q604+'FR-16(7)(v)-7 TRANS Demand'!Q604+'FR-16(7)(v)-8 TRANS Energy'!Q604+'FR-16(7)(v)-9 TRANS Cust'!Q604+'FR-16(7)(v)-11 DIST Demand'!Q604+'FR-16(7)(v)-12 DIST Energy'!Q604+'FR-16(7)(v)-13 DIST Cust'!Q604","v":-90},{"$f":"SUM(G604:Q604)","v":-1001304},{"$f":"F604-R604","v":0}]
[12,null,{"$f":"'FR-16(7)(v)-1 Functional'!C605","v":"  TOTAL MISCELLANEOUS TAXES"},null,null,{"$f":"SUM(F601:F604)","v":843976},{"$f":"SUM(G601:G604)","v":551745},{"$f":"SUM(H601:H604)","v":142978},{"$f":"SUM(I601:I604)","v":761},{"$f":"SUM(J601:J604)","v":2439},56,69927,47178,2323,19442,7050,{"$f":"SUM($Q$601:$Q$604)","v":77},{"$f":"SUM(R601:R604)","v":843976},{"$f":"SUM(S601:S604)","v":0}]
[13]
[14," MISCELLANEOUS EXPENSES"]
[15,null,{"$f":"'FR-16(7)(v)-1 Functional'!C608","v":"PSC MAINT. EXP ON INCREASE"},{"$f":"'FR-16(7)(v)-1 Functional'!D608","v":"K902"},null,{"$f":"'FR-16(7)(v)-1 Functional'!F608","v":89261},{"$f":"'FR-16(7)(v)-3 PROD Demand'!G608+'FR-16(7)(v)-4 PROD Energy'!G608+'FR-16(7)(v)-5 PROD Cust'!G608+'FR-16(7)(v)-7 TRANS Demand'!G608+'FR-16(7)(v)-8 TRANS Energy'!G608+'FR-16(7)(v)-9 TRANS Cust'!G608+'FR-16(7)(v)-11 DIST Demand'!G608+'FR-16(7)(v)-12 DIST Energy'!G608+'FR-16(7)(v)-13 DIST Cust'!G608","v":37001},{"$f":"'FR-16(7)(v)-3 PROD Demand'!H608+'FR-16(7)(v)-4 PROD Energy'!H608+'FR-16(7)(v)-5 PROD Cust'!H608+'FR-16(7)(v)-7 TRANS Demand'!H608+'FR-16(7)(v)-8 TRANS Energy'!H608+'FR-16(7)(v)-9 TRANS Cust'!H608+'FR-16(7)(v)-11 DIST Demand'!H608+'FR-16(7)(v)-12 DIST Energy'!H608+'FR-16(7)(v)-13 DIST Cust'!H608","v":25538},{"$f":"'FR-16(7)(v)-3 PROD Demand'!I608+'FR-16(7)(v)-4 PROD Energy'!I608+'FR-16(7)(v)-5 PROD Cust'!I608+'FR-16(7)(v)-7 TRANS Demand'!I608+'FR-16(7)(v)-8 TRANS Energy'!I608+'FR-16(7)(v)-9 TRANS Cust'!I608+'FR-16(7)(v)-11 DIST Demand'!I608+'FR-16(7)(v)-12 DIST Energy'!I608+'FR-16(7)(v)-13 DIST Cust'!I608","v":163},{"$f":"'FR-16(7)(v)-3 PROD Demand'!J608+'FR-16(7)(v)-4 PROD Energy'!J608+'FR-16(7)(v)-5 PROD Cust'!J608+'FR-16(7)(v)-7 TRANS Demand'!J608+'FR-16(7)(v)-8 TRANS Energy'!J608+'FR-16(7)(v)-9 TRANS Cust'!J608+'FR-16(7)(v)-11 DIST Demand'!J608+'FR-16(7)(v)-12 DIST Energy'!J608+'FR-16(7)(v)-13 DIST Cust'!J608","v":169},{"$f":"'FR-16(7)(v)-3 PROD Demand'!K608+'FR-16(7)(v)-4 PROD Energy'!K608+'FR-16(7)(v)-5 PROD Cust'!K608+'FR-16(7)(v)-7 TRANS Demand'!K608+'FR-16(7)(v)-8 TRANS Energy'!K608+'FR-16(7)(v)-9 TRANS Cust'!K608+'FR-16(7)(v)-11 DIST Demand'!K608+'FR-16(7)(v)-12 DIST Energy'!K608+'FR-16(7)(v)-13 DIST Cust'!K608","v":8},{"$f":"'FR-16(7)(v)-3 PROD Demand'!L608+'FR-16(7)(v)-4 PROD Energy'!L608+'FR-16(7)(v)-5 PROD Cust'!L608+'FR-16(7)(v)-7 TRANS Demand'!L608+'FR-16(7)(v)-8 TRANS Energy'!L608+'FR-16(7)(v)-9 TRANS Cust'!L608+'FR-16(7)(v)-11 DIST Demand'!L608+'FR-16(7)(v)-12 DIST Energy'!L608+'FR-16(7)(v)-13 DIST Cust'!L608","v":13202},{"$f":"'FR-16(7)(v)-3 PROD Demand'!M608+'FR-16(7)(v)-4 PROD Energy'!M608+'FR-16(7)(v)-5 PROD Cust'!M608+'FR-16(7)(v)-7 TRANS Demand'!M608+'FR-16(7)(v)-8 TRANS Energy'!M608+'FR-16(7)(v)-9 TRANS Cust'!M608+'FR-16(7)(v)-11 DIST Demand'!M608+'FR-16(7)(v)-12 DIST Energy'!M608+'FR-16(7)(v)-13 DIST Cust'!M608","v":8427},{"$f":"'FR-16(7)(v)-3 PROD Demand'!N608+'FR-16(7)(v)-4 PROD Energy'!N608+'FR-16(7)(v)-5 PROD Cust'!N608+'FR-16(7)(v)-7 TRANS Demand'!N608+'FR-16(7)(v)-8 TRANS Energy'!N608+'FR-16(7)(v)-9 TRANS Cust'!N608+'FR-16(7)(v)-11 DIST Demand'!N608+'FR-16(7)(v)-12 DIST Energy'!N608+'FR-16(7)(v)-13 DIST Cust'!N608","v":389},{"$f":"'FR-16(7)(v)-3 PROD Demand'!O608+'FR-16(7)(v)-4 PROD Energy'!O608+'FR-16(7)(v)-5 PROD Cust'!O608+'FR-16(7)(v)-7 TRANS Demand'!O608+'FR-16(7)(v)-8 TRANS Energy'!O608+'FR-16(7)(v)-9 TRANS Cust'!O608+'FR-16(7)(v)-11 DIST Demand'!O608+'FR-16(7)(v)-12 DIST Energy'!O608+'FR-16(7)(v)-13 DIST Cust'!O608","v":3830},{"$f":"'FR-16(7)(v)-3 PROD Demand'!P608+'FR-16(7)(v)-4 PROD Energy'!P608+'FR-16(7)(v)-5 PROD Cust'!P608+'FR-16(7)(v)-7 TRANS Demand'!P608+'FR-16(7)(v)-8 TRANS Energy'!P608+'FR-16(7)(v)-9 TRANS Cust'!P608+'FR-16(7)(v)-11 DIST Demand'!P608+'FR-16(7)(v)-12 DIST Energy'!P608+'FR-16(7)(v)-13 DIST Cust'!P608","v":529},{"$f":"'FR-16(7)(v)-3 PROD Demand'!Q608+'FR-16(7)(v)-4 PROD Energy'!Q608+'FR-16(7)(v)-5 PROD Cust'!Q608+'FR-16(7)(v)-7 TRANS Demand'!Q608+'FR-16(7)(v)-8 TRANS Energy'!Q608+'FR-16(7)(v)-9 TRANS Cust'!Q608+'FR-16(7)(v)-11 DIST Demand'!Q608+'FR-16(7)(v)-12 DIST Energy'!Q608+'FR-16(7)(v)-13 DIST Cust'!Q608","v":5},{"$f":"SUM(G608:Q608)","v":89261},{"$f":"F608-R608","v":0}]
[16,null,{"$f":"'FR-16(7)(v)-1 Functional'!C609","v":"RESERVED FOR FUTURE USE"},{"$f":"'FR-16(7)(v)-1 Functional'!D609","v":"K902"},null,{"$f":"'FR-16(7)(v)-1 Functional'!F609","v":0},{"$f":"'FR-16(7)(v)-3 PROD Demand'!G609+'FR-16(7)(v)-4 PROD Energy'!G609+'FR-16(7)(v)-5 PROD Cust'!G609+'FR-16(7)(v)-7 TRANS Demand'!G609+'FR-16(7)(v)-8 TRANS Energy'!G609+'FR-16(7)(v)-9 TRANS Cust'!G609+'FR-16(7)(v)-11 DIST Demand'!G609+'FR-16(7)(v)-12 DIST Energy'!G609+'FR-16(7)(v)-13 DIST Cust'!G609","v":0},{"$f":"'FR-16(7)(v)-3 PROD Demand'!H609+'FR-16(7)(v)-4 PROD Energy'!H609+'FR-16(7)(v)-5 PROD Cust'!H609+'FR-16(7)(v)-7 TRANS Demand'!H609+'FR-16(7)(v)-8 TRANS Energy'!H609+'FR-16(7)(v)-9 TRANS Cust'!H609+'FR-16(7)(v)-11 DIST Demand'!H609+'FR-16(7)(v)-12 DIST Energy'!H609+'FR-16(7)(v)-13 DIST Cust'!H609","v":0},{"$f":"'FR-16(7)(v)-3 PROD Demand'!I609+'FR-16(7)(v)-4 PROD Energy'!I609+'FR-16(7)(v)-5 PROD Cust'!I609+'FR-16(7)(v)-7 TRANS Demand'!I609+'FR-16(7)(v)-8 TRANS Energy'!I609+'FR-16(7)(v)-9 TRANS Cust'!I609+'FR-16(7)(v)-11 DIST Demand'!I609+'FR-16(7)(v)-12 DIST Energy'!I609+'FR-16(7)(v)-13 DIST Cust'!I609","v":0},{"$f":"'FR-16(7)(v)-3 PROD Demand'!J609+'FR-16(7)(v)-4 PROD Energy'!J609+'FR-16(7)(v)-5 PROD Cust'!J609+'FR-16(7)(v)-7 TRANS Demand'!J609+'FR-16(7)(v)-8 TRANS Energy'!J609+'FR-16(7)(v)-9 TRANS Cust'!J609+'FR-16(7)(v)-11 DIST Demand'!J609+'FR-16(7)(v)-12 DIST Energy'!J609+'FR-16(7)(v)-13 DIST Cust'!J609","v":0},{"$f":"'FR-16(7)(v)-3 PROD Demand'!K609+'FR-16(7)(v)-4 PROD Energy'!K609+'FR-16(7)(v)-5 PROD Cust'!K609+'FR-16(7)(v)-7 TRANS Demand'!K609+'FR-16(7)(v)-8 TRANS Energy'!K609+'FR-16(7)(v)-9 TRANS Cust'!K609+'FR-16(7)(v)-11 DIST Demand'!K609+'FR-16(7)(v)-12 DIST Energy'!K609+'FR-16(7)(v)-13 DIST Cust'!K609","v":0},{"$f":"'FR-16(7)(v)-3 PROD Demand'!L609+'FR-16(7)(v)-4 PROD Energy'!L609+'FR-16(7)(v)-5 PROD Cust'!L609+'FR-16(7)(v)-7 TRANS Demand'!L609+'FR-16(7)(v)-8 TRANS Energy'!L609+'FR-16(7)(v)-9 TRANS Cust'!L609+'FR-16(7)(v)-11 DIST Demand'!L609+'FR-16(7)(v)-12 DIST Energy'!L609+'FR-16(7)(v)-13 DIST Cust'!L609","v":0},{"$f":"'FR-16(7)(v)-3 PROD Demand'!M609+'FR-16(7)(v)-4 PROD Energy'!M609+'FR-16(7)(v)-5 PROD Cust'!M609+'FR-16(7)(v)-7 TRANS Demand'!M609+'FR-16(7)(v)-8 TRANS Energy'!M609+'FR-16(7)(v)-9 TRANS Cust'!M609+'FR-16(7)(v)-11 DIST Demand'!M609+'FR-16(7)(v)-12 DIST Energy'!M609+'FR-16(7)(v)-13 DIST Cust'!M609","v":0},{"$f":"'FR-16(7)(v)-3 PROD Demand'!N609+'FR-16(7)(v)-4 PROD Energy'!N609+'FR-16(7)(v)-5 PROD Cust'!N609+'FR-16(7)(v)-7 TRANS Demand'!N609+'FR-16(7)(v)-8 TRANS Energy'!N609+'FR-16(7)(v)-9 TRANS Cust'!N609+'FR-16(7)(v)-11 DIST Demand'!N609+'FR-16(7)(v)-12 DIST Energy'!N609+'FR-16(7)(v)-13 DIST Cust'!N609","v":0},{"$f":"'FR-16(7)(v)-3 PROD Demand'!O609+'FR-16(7)(v)-4 PROD Energy'!O609+'FR-16(7)(v)-5 PROD Cust'!O609+'FR-16(7)(v)-7 TRANS Demand'!O609+'FR-16(7)(v)-8 TRANS Energy'!O609+'FR-16(7)(v)-9 TRANS Cust'!O609+'FR-16(7)(v)-11 DIST Demand'!O609+'FR-16(7)(v)-12 DIST Energy'!O609+'FR-16(7)(v)-13 DIST Cust'!O609","v":0},{"$f":"'FR-16(7)(v)-3 PROD Demand'!P609+'FR-16(7)(v)-4 PROD Energy'!P609+'FR-16(7)(v)-5 PROD Cust'!P609+'FR-16(7)(v)-7 TRANS Demand'!P609+'FR-16(7)(v)-8 TRANS Energy'!P609+'FR-16(7)(v)-9 TRANS Cust'!P609+'FR-16(7)(v)-11 DIST Demand'!P609+'FR-16(7)(v)-12 DIST Energy'!P609+'FR-16(7)(v)-13 DIST Cust'!P609","v":0},{"$f":"'FR-16(7)(v)-3 PROD Demand'!Q609+'FR-16(7)(v)-4 PROD Energy'!Q609+'FR-16(7)(v)-5 PROD Cust'!Q609+'FR-16(7)(v)-7 TRANS Demand'!Q609+'FR-16(7)(v)-8 TRANS Energy'!Q609+'FR-16(7)(v)-9 TRANS Cust'!Q609+'FR-16(7)(v)-11 DIST Demand'!Q609+'FR-16(7)(v)-12 DIST Energy'!Q609+'FR-16(7)(v)-13 DIST Cust'!Q609","v":0},{"$f":"SUM(G609:Q609)","v":0},{"$f":"F609-R609","v":0}]
[17,null,{"$f":"'FR-16(7)(v)-1 Functional'!C610","v":"  TOTAL MISCELLANEOUS EXPENSES"},null,null,{"$f":"SUM(F608:F609)","v":89261},{"$f":"SUM(G608:G609)","v":37001},{"$f":"SUM(H608:H609)","v":25538},{"$f":"SUM(I608:I609)","v":163},{"$f":"SUM(J608:J609)","v":169},8,13202,8427,389,3830,529,{"$f":"SUM($Q$608:$Q$609)","v":5},{"$f":"SUM(R608:R609)","v":89261},{"$f":"SUM(S608:S609)","v":0}]
[18]
[19,"TOTAL OTHER TAX & MISC EXPENSE",null,null," ",{"$f":"F605+F598+F610","v":14578329},{"$f":"G605+G598+G610","v":7330086},{"$f":"H605+H598+H610","v":3678419},{"$f":"I605+I598+I610","v":18179},{"$f":"J605+J598+J610","v":70934},1098,1783674,1177258,57726,382604,76794,{"$f":"$Q$605+$Q$598+$Q$610","v":1557},{"$f":"R605+R598+R610","v":14578329},{"$f":"S605+S598+S610","v":0}]
[20]
[21,"PRELIMINARY SUMMARY"]
[22,null,{"$f":"'FR-16(7)(v)-1 Functional'!C615","v":"TOTAL O&M EXPENSE"},null,null,{"$f":"F549","v":209792284},92724430,53105892,288008,{"$f":"J549","v":891508},15359,30098766,20687129,986111,9537511,1433909,23661,209792284,0]
[23,null,{"$f":"'FR-16(7)(v)-1 Functional'!C616","v":"TOTAL DEPRECIATION EXPENSE"},null,null,{"$f":"F582","v":58197795},27967520,15181448,74513,{"$f":"J582","v":290337},4328,7431765,4911695,239418,1872107,218310,6354,58197795,0]
[24,null,{"$f":"'FR-16(7)(v)-1 Functional'!C617","v":"TOTAL OTHER TAX & MISC EXPENSE"},null,null,{"$f":"F612","v":14578329},{"$f":"G612","v":7330086},{"$f":"H612","v":3678419},{"$f":"I612","v":18179},{"$f":"J612","v":70934},1098,1783674,1177258,57726,382604,76794,{"$f":"$Q$612","v":1557},{"$f":"R612","v":14578329},{"$f":"S612","v":0}]
[25,null,{"$f":"'FR-16(7)(v)-1 Functional'!C618","v":"  TOTAL OPER EXP EXCL INCOME & REV TAX"},null,null,{"$f":"SUM(F615:F617)","v":282568408},{"$f":"SUM(G615:G617)","v":128022036},{"$f":"SUM(H615:H617)","v":71965759},{"$f":"SUM(I615:I617)","v":380700},{"$f":"SUM(J615:J617)","v":1252779},20785,39314205,26776082,1283255,11792222,1729013,{"$f":"SUM($Q$615:$Q$617)","v":31572},{"$f":"SUM(R615:R617)","v":282568408},{"$f":"SUM(S615:S617)","v":0}]
[]
[{"$f":"co_name","v":"DUKE ENERGY KENTUCKY, INC."},null,null,null,null,null,null,null,null,null,null,null,null,null,null,null,null,{"$f":"R1","v":"FR-16(7)(v)-14"}]
[{"$f":"$A$2","v":"TOTAL CLASS ALLOCATED - ELECTRIC COST OF SERVICE"},null,null,null,null,null,null,null,null,null,null,null,null,null,null,null,null,{"$f":"R2","v":"WITNESS RESPONSIBLE:"}]
[{"$f":"case_name","v":"CASE NO: 2019-00271"},null,null,null,null,null,null,null,null,null,null,null,null,null,null,null,null,{"$f":"Witness","v":"JAMES E. ZIOLKOWSKI"}]
[{"$f":"data_filing","v":"DATA: 12 MONTHS ACTUAL  & 0 MONTHS ESTIMATED"},null,null,null,null,null,null,null,null,null,null,null,null,null,null,null,null,{"$f":"\"PAGE \"&Pages2-3&\" OF \"&Pages2","v":"PAGE 12 OF 15"}]
[{"$f":"type","v":"TYPE OF FILING: \"X\" ORIGINAL   UPDATED    REVISED  "}]
[]
[null,null,null,null,null,{"$f":"F$7","v":"TOTAL"},null,{"$f":"H$7","v":"DS"},{"$f":"I$7","v":"GSFL"},{"$f":"J$7","v":"EH"},{"$f":"K$7","v":"SP"},"DT SEC","DT PRI","DP","TT",null,"OTHER"]
["LINE",null,null,null,null,{"$f":"F$8","v":"CLASS"},{"$f":"G$8","v":"RS"},{"$f":"H$8","v":"SECONDARY"},{"$f":"I$8","v":"SECONDARY"},{"$f":"J$8","v":"SECONDARY"},{"$f":"K$8","v":"SECONDARY"},"SECONDARY","PRIMARY","PRIMARY","TRANSMISSION","LT","WATER",{"$f":"R8","v":"TOTAL"},"ALL"]
["NO.","FEDERAL INCOME TAX BASED ON RETURN",null,"ALLO",null,{"$f":"F$9","v":"ALLOCATED"},{"$f":"G$9","v":"RESIDENTIAL"},{"$f":"H$9","v":"DISTRIBUTION"},{"$f":"I$9","v":"DISTRIBUTION"},{"$f":"J$9","v":"DISTRIBUTION"},{"$f":"K$9","v":"DISTRIBUTION"},"DISTRIBUTION","DISTRIBUTION","DISTRIBUTION","TIME OF DAY","LIGHTING","PUMPING",{"$f":"R9","v":"AT ISSUE"},"OTHER"]
[null,null,"Schedule 9",null,null,null,{"$f":"G$10","v":3},{"$f":"H$10","v":4},{"$f":"I$10","v":5},{"$f":"J$10","v":6},{"$f":"K$10","v":7},8,9,10,11,12,13,null," "]
[1,"FEDERAL INCOME TAX DEDUCTIONS"]
[2," AUTOMATIC INTEREST CALCULATION",null,null,null," "]
[3,null,{"$f":"'FR-16(7)(v)-1 Functional'!C632","v":"AUTO PROC INTEREST DED"},{"$f":"'FR-16(7)(v)-1 Functional'!D632","v":"RB99"},null,{"$f":"'FR-16(7)(v)-1 Functional'!F632","v":18775174},{"$f":"'FR-16(7)(v)-3 PROD Demand'!G632+'FR-16(7)(v)-4 PROD Energy'!G632+'FR-16(7)(v)-5 PROD Cust'!G632+'FR-16(7)(v)-7 TRANS Demand'!G632+'FR-16(7)(v)-8 TRANS Energy'!G632+'FR-16(7)(v)-9 TRANS Cust'!G632+'FR-16(7)(v)-11 DIST Demand'!G632+'FR-16(7)(v)-12 DIST Energy'!G632+'FR-16(7)(v)-13 DIST Cust'!G632","v":9286917},{"$f":"'FR-16(7)(v)-3 PROD Demand'!H632+'FR-16(7)(v)-4 PROD Energy'!H632+'FR-16(7)(v)-5 PROD Cust'!H632+'FR-16(7)(v)-7 TRANS Demand'!H632+'FR-16(7)(v)-8 TRANS Energy'!H632+'FR-16(7)(v)-9 TRANS Cust'!H632+'FR-16(7)(v)-11 DIST Demand'!H632+'FR-16(7)(v)-12 DIST Energy'!H632+'FR-16(7)(v)-13 DIST Cust'!H632","v":4810951},{"$f":"'FR-16(7)(v)-3 PROD Demand'!I632+'FR-16(7)(v)-4 PROD Energy'!I632+'FR-16(7)(v)-5 PROD Cust'!I632+'FR-16(7)(v)-7 TRANS Demand'!I632+'FR-16(7)(v)-8 TRANS Energy'!I632+'FR-16(7)(v)-9 TRANS Cust'!I632+'FR-16(7)(v)-11 DIST Demand'!I632+'FR-16(7)(v)-12 DIST Energy'!I632+'FR-16(7)(v)-13 DIST Cust'!I632","v":23721},{"$f":"'FR-16(7)(v)-3 PROD Demand'!J632+'FR-16(7)(v)-4 PROD Energy'!J632+'FR-16(7)(v)-5 PROD Cust'!J632+'FR-16(7)(v)-7 TRANS Demand'!J632+'FR-16(7)(v)-8 TRANS Energy'!J632+'FR-16(7)(v)-9 TRANS Cust'!J632+'FR-16(7)(v)-11 DIST Demand'!J632+'FR-16(7)(v)-12 DIST Energy'!J632+'FR-16(7)(v)-13 DIST Cust'!J632","v":93041},{"$f":"'FR-16(7)(v)-3 PROD Demand'!K632+'FR-16(7)(v)-4 PROD Energy'!K632+'FR-16(7)(v)-5 PROD Cust'!K632+'FR-16(7)(v)-7 TRANS Demand'!K632+'FR-16(7)(v)-8 TRANS Energy'!K632+'FR-16(7)(v)-9 TRANS Cust'!K632+'FR-16(7)(v)-11 DIST Demand'!K632+'FR-16(7)(v)-12 DIST Energy'!K632+'FR-16(7)(v)-13 DIST Cust'!K632","v":1425},{"$f":"'FR-16(7)(v)-3 PROD Demand'!L632+'FR-16(7)(v)-4 PROD Energy'!L632+'FR-16(7)(v)-5 PROD Cust'!L632+'FR-16(7)(v)-7 TRANS Demand'!L632+'FR-16(7)(v)-8 TRANS Energy'!L632+'FR-16(7)(v)-9 TRANS Cust'!L632+'FR-16(7)(v)-11 DIST Demand'!L632+'FR-16(7)(v)-12 DIST Energy'!L632+'FR-16(7)(v)-13 DIST Cust'!L632","v":2336706},{"$f":"'FR-16(7)(v)-3 PROD Demand'!M632+'FR-16(7)(v)-4 PROD Energy'!M632+'FR-16(7)(v)-5 PROD Cust'!M632+'FR-16(7)(v)-7 TRANS Demand'!M632+'FR-16(7)(v)-8 TRANS Energy'!M632+'FR-16(7)(v)-9 TRANS Cust'!M632+'FR-16(7)(v)-11 DIST Demand'!M632+'FR-16(7)(v)-12 DIST Energy'!M632+'FR-16(7)(v)-13 DIST Cust'!M632","v":1543098},{"$f":"'FR-16(7)(v)-3 PROD Demand'!N632+'FR-16(7)(v)-4 PROD Energy'!N632+'FR-16(7)(v)-5 PROD Cust'!N632+'FR-16(7)(v)-7 TRANS Demand'!N632+'FR-16(7)(v)-8 TRANS Energy'!N632+'FR-16(7)(v)-9 TRANS Cust'!N632+'FR-16(7)(v)-11 DIST Demand'!N632+'FR-16(7)(v)-12 DIST Energy'!N632+'FR-16(7)(v)-13 DIST Cust'!N632","v":75614},{"$f":"'FR-16(7)(v)-3 PROD Demand'!O632+'FR-16(7)(v)-4 PROD Energy'!O632+'FR-16(7)(v)-5 PROD Cust'!O632+'FR-16(7)(v)-7 TRANS Demand'!O632+'FR-16(7)(v)-8 TRANS Energy'!O632+'FR-16(7)(v)-9 TRANS Cust'!O632+'FR-16(7)(v)-11 DIST Demand'!O632+'FR-16(7)(v)-12 DIST Energy'!O632+'FR-16(7)(v)-13 DIST Cust'!O632","v":508547},{"$f":"'FR-16(7)(v)-3 PROD Demand'!P632+'FR-16(7)(v)-4 PROD Energy'!P632+'FR-16(7)(v)-5 PROD Cust'!P632+'FR-16(7)(v)-7 TRANS Demand'!P632+'FR-16(7)(v)-8 TRANS Energy'!P632+'FR-16(7)(v)-9 TRANS Cust'!P632+'FR-16(7)(v)-11 DIST Demand'!P632+'FR-16(7)(v)-12 DIST Energy'!P632+'FR-16(7)(v)-13 DIST Cust'!P632","v":93107},{"$f":"'FR-16(7)(v)-3 PROD Demand'!Q632+'FR-16(7)(v)-4 PROD Energy'!Q632+'FR-16(7)(v)-5 PROD Cust'!Q632+'FR-16(7)(v)-7 TRANS Demand'!Q632+'FR-16(7)(v)-8 TRANS Energy'!Q632+'FR-16(7)(v)-9 TRANS Cust'!Q632+'FR-16(7)(v)-11 DIST Demand'!Q632+'FR-16(7)(v)-12 DIST Energy'!Q632+'FR-16(7)(v)-13 DIST Cust'!Q632","v":2047},{"$f":"SUM(G632:Q632)","v":18775174},{"$f":"F632-R632","v":0}]
[4,null,{"$f":"'FR-16(7)(v)-1 Functional'!C633","v":"  TOTAL INTEREST EXPENSE"},null,null,{"$f":"F632","v":18775174},{"$f":"G632","v":9286917},{"$f":"H632","v":4810951},{"$f":"I632","v":23721},{"$f":"J632","v":93041},1425,2336706,1543098,75614,508547,93107,{"$f":"$Q$632","v":2047},{"$f":"R632","v":18775174},{"$f":"S632","v":0}]
[5]
[6," OTHER DEDUCTIONS"]
[7,null,{"$f":"'FR-16(7)(v)-1 Functional'!C636","v":"DEPREC EXCESS TAX-BOOK"},{"$f":"'FR-16(7)(v)-1 Functional'!D636","v":"DE49"},null,{"$f":"'FR-16(7)(v)-1 Functional'!F636","v":-13803383},{"$f":"'FR-16(7)(v)-3 PROD Demand'!G636+'FR-16(7)(v)-4 PROD Energy'!G636+'FR-16(7)(v)-5 PROD Cust'!G636+'FR-16(7)(v)-7 TRANS Demand'!G636+'FR-16(7)(v)-8 TRANS Energy'!G636+'FR-16(7)(v)-9 TRANS Cust'!G636+'FR-16(7)(v)-11 DIST Demand'!G636+'FR-16(7)(v)-12 DIST Energy'!G636+'FR-16(7)(v)-13 DIST Cust'!G636","v":-6633384},{"$f":"'FR-16(7)(v)-3 PROD Demand'!H636+'FR-16(7)(v)-4 PROD Energy'!H636+'FR-16(7)(v)-5 PROD Cust'!H636+'FR-16(7)(v)-7 TRANS Demand'!H636+'FR-16(7)(v)-8 TRANS Energy'!H636+'FR-16(7)(v)-9 TRANS Cust'!H636+'FR-16(7)(v)-11 DIST Demand'!H636+'FR-16(7)(v)-12 DIST Energy'!H636+'FR-16(7)(v)-13 DIST Cust'!H636","v":-3600737},{"$f":"'FR-16(7)(v)-3 PROD Demand'!I636+'FR-16(7)(v)-4 PROD Energy'!I636+'FR-16(7)(v)-5 PROD Cust'!I636+'FR-16(7)(v)-7 TRANS Demand'!I636+'FR-16(7)(v)-8 TRANS Energy'!I636+'FR-16(7)(v)-9 TRANS Cust'!I636+'FR-16(7)(v)-11 DIST Demand'!I636+'FR-16(7)(v)-12 DIST Energy'!I636+'FR-16(7)(v)-13 DIST Cust'!I636","v":-17666},{"$f":"'FR-16(7)(v)-3 PROD Demand'!J636+'FR-16(7)(v)-4 PROD Energy'!J636+'FR-16(7)(v)-5 PROD Cust'!J636+'FR-16(7)(v)-7 TRANS Demand'!J636+'FR-16(7)(v)-8 TRANS Energy'!J636+'FR-16(7)(v)-9 TRANS Cust'!J636+'FR-16(7)(v)-11 DIST Demand'!J636+'FR-16(7)(v)-12 DIST Energy'!J636+'FR-16(7)(v)-13 DIST Cust'!J636","v":-68835},{"$f":"'FR-16(7)(v)-3 PROD Demand'!K636+'FR-16(7)(v)-4 PROD Energy'!K636+'FR-16(7)(v)-5 PROD Cust'!K636+'FR-16(7)(v)-7 TRANS Demand'!K636+'FR-16(7)(v)-8 TRANS Energy'!K636+'FR-16(7)(v)-9 TRANS Cust'!K636+'FR-16(7)(v)-11 DIST Demand'!K636+'FR-16(7)(v)-12 DIST Energy'!K636+'FR-16(7)(v)-13 DIST Cust'!K636","v":-1026},{"$f":"'FR-16(7)(v)-3 PROD Demand'!L636+'FR-16(7)(v)-4 PROD Energy'!L636+'FR-16(7)(v)-5 PROD Cust'!L636+'FR-16(7)(v)-7 TRANS Demand'!L636+'FR-16(7)(v)-8 TRANS Energy'!L636+'FR-16(7)(v)-9 TRANS Cust'!L636+'FR-16(7)(v)-11 DIST Demand'!L636+'FR-16(7)(v)-12 DIST Energy'!L636+'FR-16(7)(v)-13 DIST Cust'!L636","v":-1762725},{"$f":"'FR-16(7)(v)-3 PROD Demand'!M636+'FR-16(7)(v)-4 PROD Energy'!M636+'FR-16(7)(v)-5 PROD Cust'!M636+'FR-16(7)(v)-7 TRANS Demand'!M636+'FR-16(7)(v)-8 TRANS Energy'!M636+'FR-16(7)(v)-9 TRANS Cust'!M636+'FR-16(7)(v)-11 DIST Demand'!M636+'FR-16(7)(v)-12 DIST Energy'!M636+'FR-16(7)(v)-13 DIST Cust'!M636","v":-1164962},{"$f":"'FR-16(7)(v)-3 PROD Demand'!N636+'FR-16(7)(v)-4 PROD Energy'!N636+'FR-16(7)(v)-5 PROD Cust'!N636+'FR-16(7)(v)-7 TRANS Demand'!N636+'FR-16(7)(v)-8 TRANS Energy'!N636+'FR-16(7)(v)-9 TRANS Cust'!N636+'FR-16(7)(v)-11 DIST Demand'!N636+'FR-16(7)(v)-12 DIST Energy'!N636+'FR-16(7)(v)-13 DIST Cust'!N636","v":-56767},{"$f":"'FR-16(7)(v)-3 PROD Demand'!O636+'FR-16(7)(v)-4 PROD Energy'!O636+'FR-16(7)(v)-5 PROD Cust'!O636+'FR-16(7)(v)-7 TRANS Demand'!O636+'FR-16(7)(v)-8 TRANS Energy'!O636+'FR-16(7)(v)-9 TRANS Cust'!O636+'FR-16(7)(v)-11 DIST Demand'!O636+'FR-16(7)(v)-12 DIST Energy'!O636+'FR-16(7)(v)-13 DIST Cust'!O636","v":-443987},{"$f":"'FR-16(7)(v)-3 PROD Demand'!P636+'FR-16(7)(v)-4 PROD Energy'!P636+'FR-16(7)(v)-5 PROD Cust'!P636+'FR-16(7)(v)-7 TRANS Demand'!P636+'FR-16(7)(v)-8 TRANS Energy'!P636+'FR-16(7)(v)-9 TRANS Cust'!P636+'FR-16(7)(v)-11 DIST Demand'!P636+'FR-16(7)(v)-12 DIST Energy'!P636+'FR-16(7)(v)-13 DIST Cust'!P636","v":-51786},{"$f":"'FR-16(7)(v)-3 PROD Demand'!Q636+'FR-16(7)(v)-4 PROD Energy'!Q636+'FR-16(7)(v)-5 PROD Cust'!Q636+'FR-16(7)(v)-7 TRANS Demand'!Q636+'FR-16(7)(v)-8 TRANS Energy'!Q636+'FR-16(7)(v)-9 TRANS Cust'!Q636+'FR-16(7)(v)-11 DIST Demand'!Q636+'FR-16(7)(v)-12 DIST Energy'!Q636+'FR-16(7)(v)-13 DIST Cust'!Q636","v":-1508},{"$f":"SUM(G636:Q636)","v":-13803383},{"$f":"F636-R636","v":0}]
[8,null,{"$f":"'FR-16(7)(v)-1 Functional'!C637","v":"PERMANENT DIFFERENCES"},{"$f":"'FR-16(7)(v)-1 Functional'!D637","v":"A357"},null,{"$f":"'FR-16(7)(v)-1 Functional'!F637","v":-421236.99999999965},{"$f":"'FR-16(7)(v)-3 PROD Demand'!G637+'FR-16(7)(v)-4 PROD Energy'!G637+'FR-16(7)(v)-5 PROD Cust'!G637+'FR-16(7)(v)-7 TRANS Demand'!G637+'FR-16(7)(v)-8 TRANS Energy'!G637+'FR-16(7)(v)-9 TRANS Cust'!G637+'FR-16(7)(v)-11 DIST Demand'!G637+'FR-16(7)(v)-12 DIST Energy'!G637+'FR-16(7)(v)-13 DIST Cust'!G637","v":-275379.99999999965},{"$f":"'FR-16(7)(v)-3 PROD Demand'!H637+'FR-16(7)(v)-4 PROD Energy'!H637+'FR-16(7)(v)-5 PROD Cust'!H637+'FR-16(7)(v)-7 TRANS Demand'!H637+'FR-16(7)(v)-8 TRANS Energy'!H637+'FR-16(7)(v)-9 TRANS Cust'!H637+'FR-16(7)(v)-11 DIST Demand'!H637+'FR-16(7)(v)-12 DIST Energy'!H637+'FR-16(7)(v)-13 DIST Cust'!H637","v":-71363},{"$f":"'FR-16(7)(v)-3 PROD Demand'!I637+'FR-16(7)(v)-4 PROD Energy'!I637+'FR-16(7)(v)-5 PROD Cust'!I637+'FR-16(7)(v)-7 TRANS Demand'!I637+'FR-16(7)(v)-8 TRANS Energy'!I637+'FR-16(7)(v)-9 TRANS Cust'!I637+'FR-16(7)(v)-11 DIST Demand'!I637+'FR-16(7)(v)-12 DIST Energy'!I637+'FR-16(7)(v)-13 DIST Cust'!I637","v":-379},{"$f":"'FR-16(7)(v)-3 PROD Demand'!J637+'FR-16(7)(v)-4 PROD Energy'!J637+'FR-16(7)(v)-5 PROD Cust'!J637+'FR-16(7)(v)-7 TRANS Demand'!J637+'FR-16(7)(v)-8 TRANS Energy'!J637+'FR-16(7)(v)-9 TRANS Cust'!J637+'FR-16(7)(v)-11 DIST Demand'!J637+'FR-16(7)(v)-12 DIST Energy'!J637+'FR-16(7)(v)-13 DIST Cust'!J637","v":-1218},{"$f":"'FR-16(7)(v)-3 PROD Demand'!K637+'FR-16(7)(v)-4 PROD Energy'!K637+'FR-16(7)(v)-5 PROD Cust'!K637+'FR-16(7)(v)-7 TRANS Demand'!K637+'FR-16(7)(v)-8 TRANS Energy'!K637+'FR-16(7)(v)-9 TRANS Cust'!K637+'FR-16(7)(v)-11 DIST Demand'!K637+'FR-16(7)(v)-12 DIST Energy'!K637+'FR-16(7)(v)-13 DIST Cust'!K637","v":-27},{"$f":"'FR-16(7)(v)-3 PROD Demand'!L637+'FR-16(7)(v)-4 PROD Energy'!L637+'FR-16(7)(v)-5 PROD Cust'!L637+'FR-16(7)(v)-7 TRANS Demand'!L637+'FR-16(7)(v)-8 TRANS Energy'!L637+'FR-16(7)(v)-9 TRANS Cust'!L637+'FR-16(7)(v)-11 DIST Demand'!L637+'FR-16(7)(v)-12 DIST Energy'!L637+'FR-16(7)(v)-13 DIST Cust'!L637","v":-34903},{"$f":"'FR-16(7)(v)-3 PROD Demand'!M637+'FR-16(7)(v)-4 PROD Energy'!M637+'FR-16(7)(v)-5 PROD Cust'!M637+'FR-16(7)(v)-7 TRANS Demand'!M637+'FR-16(7)(v)-8 TRANS Energy'!M637+'FR-16(7)(v)-9 TRANS Cust'!M637+'FR-16(7)(v)-11 DIST Demand'!M637+'FR-16(7)(v)-12 DIST Energy'!M637+'FR-16(7)(v)-13 DIST Cust'!M637","v":-23547},{"$f":"'FR-16(7)(v)-3 PROD Demand'!N637+'FR-16(7)(v)-4 PROD Energy'!N637+'FR-16(7)(v)-5 PROD Cust'!N637+'FR-16(7)(v)-7 TRANS Demand'!N637+'FR-16(7)(v)-8 TRANS Energy'!N637+'FR-16(7)(v)-9 TRANS Cust'!N637+'FR-16(7)(v)-11 DIST Demand'!N637+'FR-16(7)(v)-12 DIST Energy'!N637+'FR-16(7)(v)-13 DIST Cust'!N637","v":-1160},{"$f":"'FR-16(7)(v)-3 PROD Demand'!O637+'FR-16(7)(v)-4 PROD Energy'!O637+'FR-16(7)(v)-5 PROD Cust'!O637+'FR-16(7)(v)-7 TRANS Demand'!O637+'FR-16(7)(v)-8 TRANS Energy'!O637+'FR-16(7)(v)-9 TRANS Cust'!O637+'FR-16(7)(v)-11 DIST Demand'!O637+'FR-16(7)(v)-12 DIST Energy'!O637+'FR-16(7)(v)-13 DIST Cust'!O637","v":-9704},{"$f":"'FR-16(7)(v)-3 PROD Demand'!P637+'FR-16(7)(v)-4 PROD Energy'!P637+'FR-16(7)(v)-5 PROD Cust'!P637+'FR-16(7)(v)-7 TRANS Demand'!P637+'FR-16(7)(v)-8 TRANS Energy'!P637+'FR-16(7)(v)-9 TRANS Cust'!P637+'FR-16(7)(v)-11 DIST Demand'!P637+'FR-16(7)(v)-12 DIST Energy'!P637+'FR-16(7)(v)-13 DIST Cust'!P637","v":-3518},{"$f":"'FR-16(7)(v)-3 PROD Demand'!Q637+'FR-16(7)(v)-4 PROD Energy'!Q637+'FR-16(7)(v)-5 PROD Cust'!Q637+'FR-16(7)(v)-7 TRANS Demand'!Q637+'FR-16(7)(v)-8 TRANS Energy'!Q637+'FR-16(7)(v)-9 TRANS Cust'!Q637+'FR-16(7)(v)-11 DIST Demand'!Q637+'FR-16(7)(v)-12 DIST Energy'!Q637+'FR-16(7)(v)-13 DIST Cust'!Q637","v":-38},{"$f":"SUM(G637:Q637)","v":-421236.99999999965},{"$f":"F637-R637","v":0}]
[9,null,{"$f":"'FR-16(7)(v)-1 Functional'!C638","v":"TEMPORARY DIFFERENCES"},{"$f":"'FR-16(7)(v)-1 Functional'!D638","v":"DE49"},null,{"$f":"'FR-16(7)(v)-1 Functional'!F638","v":84226157},{"$f":"'FR-16(7)(v)-3 PROD Demand'!G638+'FR-16(7)(v)-4 PROD Energy'!G638+'FR-16(7)(v)-5 PROD Cust'!G638+'FR-16(7)(v)-7 TRANS Demand'!G638+'FR-16(7)(v)-8 TRANS Energy'!G638+'FR-16(7)(v)-9 TRANS Cust'!G638+'FR-16(7)(v)-11 DIST Demand'!G638+'FR-16(7)(v)-12 DIST Energy'!G638+'FR-16(7)(v)-13 DIST Cust'!G638","v":40475912},{"$f":"'FR-16(7)(v)-3 PROD Demand'!H638+'FR-16(7)(v)-4 PROD Energy'!H638+'FR-16(7)(v)-5 PROD Cust'!H638+'FR-16(7)(v)-7 TRANS Demand'!H638+'FR-16(7)(v)-8 TRANS Energy'!H638+'FR-16(7)(v)-9 TRANS Cust'!H638+'FR-16(7)(v)-11 DIST Demand'!H638+'FR-16(7)(v)-12 DIST Energy'!H638+'FR-16(7)(v)-13 DIST Cust'!H638","v":21971152},{"$f":"'FR-16(7)(v)-3 PROD Demand'!I638+'FR-16(7)(v)-4 PROD Energy'!I638+'FR-16(7)(v)-5 PROD Cust'!I638+'FR-16(7)(v)-7 TRANS Demand'!I638+'FR-16(7)(v)-8 TRANS Energy'!I638+'FR-16(7)(v)-9 TRANS Cust'!I638+'FR-16(7)(v)-11 DIST Demand'!I638+'FR-16(7)(v)-12 DIST Energy'!I638+'FR-16(7)(v)-13 DIST Cust'!I638","v":107794},{"$f":"'FR-16(7)(v)-3 PROD Demand'!J638+'FR-16(7)(v)-4 PROD Energy'!J638+'FR-16(7)(v)-5 PROD Cust'!J638+'FR-16(7)(v)-7 TRANS Demand'!J638+'FR-16(7)(v)-8 TRANS Energy'!J638+'FR-16(7)(v)-9 TRANS Cust'!J638+'FR-16(7)(v)-11 DIST Demand'!J638+'FR-16(7)(v)-12 DIST Energy'!J638+'FR-16(7)(v)-13 DIST Cust'!J638","v":420017},{"$f":"'FR-16(7)(v)-3 PROD Demand'!K638+'FR-16(7)(v)-4 PROD Energy'!K638+'FR-16(7)(v)-5 PROD Cust'!K638+'FR-16(7)(v)-7 TRANS Demand'!K638+'FR-16(7)(v)-8 TRANS Energy'!K638+'FR-16(7)(v)-9 TRANS Cust'!K638+'FR-16(7)(v)-11 DIST Demand'!K638+'FR-16(7)(v)-12 DIST Energy'!K638+'FR-16(7)(v)-13 DIST Cust'!K638","v":6258},{"$f":"'FR-16(7)(v)-3 PROD Demand'!L638+'FR-16(7)(v)-4 PROD Energy'!L638+'FR-16(7)(v)-5 PROD Cust'!L638+'FR-16(7)(v)-7 TRANS Demand'!L638+'FR-16(7)(v)-8 TRANS Energy'!L638+'FR-16(7)(v)-9 TRANS Cust'!L638+'FR-16(7)(v)-11 DIST Demand'!L638+'FR-16(7)(v)-12 DIST Energy'!L638+'FR-16(7)(v)-13 DIST Cust'!L638","v":10755881},{"$f":"'FR-16(7)(v)-3 PROD Demand'!M638+'FR-16(7)(v)-4 PROD Energy'!M638+'FR-16(7)(v)-5 PROD Cust'!M638+'FR-16(7)(v)-7 TRANS Demand'!M638+'FR-16(7)(v)-8 TRANS Energy'!M638+'FR-16(7)(v)-9 TRANS Cust'!M638+'FR-16(7)(v)-11 DIST Demand'!M638+'FR-16(7)(v)-12 DIST Energy'!M638+'FR-16(7)(v)-13 DIST Cust'!M638","v":7108426},{"$f":"'FR-16(7)(v)-3 PROD Demand'!N638+'FR-16(7)(v)-4 PROD Energy'!N638+'FR-16(7)(v)-5 PROD Cust'!N638+'FR-16(7)(v)-7 TRANS Demand'!N638+'FR-16(7)(v)-8 TRANS Energy'!N638+'FR-16(7)(v)-9 TRANS Cust'!N638+'FR-16(7)(v)-11 DIST Demand'!N638+'FR-16(7)(v)-12 DIST Energy'!N638+'FR-16(7)(v)-13 DIST Cust'!N638","v":346378},{"$f":"'FR-16(7)(v)-3 PROD Demand'!O638+'FR-16(7)(v)-4 PROD Energy'!O638+'FR-16(7)(v)-5 PROD Cust'!O638+'FR-16(7)(v)-7 TRANS Demand'!O638+'FR-16(7)(v)-8 TRANS Energy'!O638+'FR-16(7)(v)-9 TRANS Cust'!O638+'FR-16(7)(v)-11 DIST Demand'!O638+'FR-16(7)(v)-12 DIST Energy'!O638+'FR-16(7)(v)-13 DIST Cust'!O638","v":2709145},{"$f":"'FR-16(7)(v)-3 PROD Demand'!P638+'FR-16(7)(v)-4 PROD Energy'!P638+'FR-16(7)(v)-5 PROD Cust'!P638+'FR-16(7)(v)-7 TRANS Demand'!P638+'FR-16(7)(v)-8 TRANS Energy'!P638+'FR-16(7)(v)-9 TRANS Cust'!P638+'FR-16(7)(v)-11 DIST Demand'!P638+'FR-16(7)(v)-12 DIST Energy'!P638+'FR-16(7)(v)-13 DIST Cust'!P638","v":315990},{"$f":"'FR-16(7)(v)-3 PROD Demand'!Q638+'FR-16(7)(v)-4 PROD Energy'!Q638+'FR-16(7)(v)-5 PROD Cust'!Q638+'FR-16(7)(v)-7 TRANS Demand'!Q638+'FR-16(7)(v)-8 TRANS Energy'!Q638+'FR-16(7)(v)-9 TRANS Cust'!Q638+'FR-16(7)(v)-11 DIST Demand'!Q638+'FR-16(7)(v)-12 DIST Energy'!Q638+'FR-16(7)(v)-13 DIST Cust'!Q638","v":9204},{"$f":"SUM(G638:Q638)","v":84226157},{"$f":"F638-R638","v":0}]
[10,null,{"$f":"'FR-16(7)(v)-1 Functional'!C639","v":"  TOTAL OTHER DEDUCTIONS"},null,null,{"$f":"SUM(F636:F638)","v":70001537},{"$f":"SUM(G636:G638)","v":33567148},{"$f":"SUM(H636:H638)","v":18299052},{"$f":"SUM(I636:I638)","v":89749},{"$f":"SUM(J636:J638)","v":349964},5205,8958253,5919917,288451,2255454,260686,{"$f":"SUM($Q$636:$Q$638)","v":7658},{"$f":"SUM(R636:R638)","v":70001537},{"$f":"SUM(S636:S638)","v":0}]
[11]
[12,"NET DEDUCTIONS AND ADDITIONS",null,null,null,{"$f":"F639+F633","v":88776711},{"$f":"G639+G633","v":42854065},{"$f":"H639+H633","v":23110003},{"$f":"I639+I633","v":113470},{"$f":"J639+J633","v":443005},6630,11294959,7463015,364065,2764001,353793,{"$f":"$Q$639+$Q$633","v":9705},{"$f":"R639+R633","v":88776711},{"$f":"S639+S633","v":0}]
[13]
[14," FED DEFERRED INCOME TAX (410 & 411)"]
[15,null,{"$f":"'FR-16(7)(v)-1 Functional'!C644","v":"DEFERRED INCOME TAXES - NET"},{"$f":"'FR-16(7)(v)-1 Functional'!D644","v":"OM39"},null,{"$f":"'FR-16(7)(v)-1 Functional'!F644","v":13964732},{"$f":"'FR-16(7)(v)-3 PROD Demand'!G644+'FR-16(7)(v)-4 PROD Energy'!G644+'FR-16(7)(v)-5 PROD Cust'!G644+'FR-16(7)(v)-7 TRANS Demand'!G644+'FR-16(7)(v)-8 TRANS Energy'!G644+'FR-16(7)(v)-9 TRANS Cust'!G644+'FR-16(7)(v)-11 DIST Demand'!G644+'FR-16(7)(v)-12 DIST Energy'!G644+'FR-16(7)(v)-13 DIST Cust'!G644","v":6172188},{"$f":"'FR-16(7)(v)-3 PROD Demand'!H644+'FR-16(7)(v)-4 PROD Energy'!H644+'FR-16(7)(v)-5 PROD Cust'!H644+'FR-16(7)(v)-7 TRANS Demand'!H644+'FR-16(7)(v)-8 TRANS Energy'!H644+'FR-16(7)(v)-9 TRANS Cust'!H644+'FR-16(7)(v)-11 DIST Demand'!H644+'FR-16(7)(v)-12 DIST Energy'!H644+'FR-16(7)(v)-13 DIST Cust'!H644","v":3534889},{"$f":"'FR-16(7)(v)-3 PROD Demand'!I644+'FR-16(7)(v)-4 PROD Energy'!I644+'FR-16(7)(v)-5 PROD Cust'!I644+'FR-16(7)(v)-7 TRANS Demand'!I644+'FR-16(7)(v)-8 TRANS Energy'!I644+'FR-16(7)(v)-9 TRANS Cust'!I644+'FR-16(7)(v)-11 DIST Demand'!I644+'FR-16(7)(v)-12 DIST Energy'!I644+'FR-16(7)(v)-13 DIST Cust'!I644","v":19170},{"$f":"'FR-16(7)(v)-3 PROD Demand'!J644+'FR-16(7)(v)-4 PROD Energy'!J644+'FR-16(7)(v)-5 PROD Cust'!J644+'FR-16(7)(v)-7 TRANS Demand'!J644+'FR-16(7)(v)-8 TRANS Energy'!J644+'FR-16(7)(v)-9 TRANS Cust'!J644+'FR-16(7)(v)-11 DIST Demand'!J644+'FR-16(7)(v)-12 DIST Energy'!J644+'FR-16(7)(v)-13 DIST Cust'!J644","v":59363},{"$f":"'FR-16(7)(v)-3 PROD Demand'!K644+'FR-16(7)(v)-4 PROD Energy'!K644+'FR-16(7)(v)-5 PROD Cust'!K644+'FR-16(7)(v)-7 TRANS Demand'!K644+'FR-16(7)(v)-8 TRANS Energy'!K644+'FR-16(7)(v)-9 TRANS Cust'!K644+'FR-16(7)(v)-11 DIST Demand'!K644+'FR-16(7)(v)-12 DIST Energy'!K644+'FR-16(7)(v)-13 DIST Cust'!K644","v":1021},{"$f":"'FR-16(7)(v)-3 PROD Demand'!L644+'FR-16(7)(v)-4 PROD Energy'!L644+'FR-16(7)(v)-5 PROD Cust'!L644+'FR-16(7)(v)-7 TRANS Demand'!L644+'FR-16(7)(v)-8 TRANS Energy'!L644+'FR-16(7)(v)-9 TRANS Cust'!L644+'FR-16(7)(v)-11 DIST Demand'!L644+'FR-16(7)(v)-12 DIST Energy'!L644+'FR-16(7)(v)-13 DIST Cust'!L644","v":2003466},{"$f":"'FR-16(7)(v)-3 PROD Demand'!M644+'FR-16(7)(v)-4 PROD Energy'!M644+'FR-16(7)(v)-5 PROD Cust'!M644+'FR-16(7)(v)-7 TRANS Demand'!M644+'FR-16(7)(v)-8 TRANS Energy'!M644+'FR-16(7)(v)-9 TRANS Cust'!M644+'FR-16(7)(v)-11 DIST Demand'!M644+'FR-16(7)(v)-12 DIST Energy'!M644+'FR-16(7)(v)-13 DIST Cust'!M644","v":1377002},{"$f":"'FR-16(7)(v)-3 PROD Demand'!N644+'FR-16(7)(v)-4 PROD Energy'!N644+'FR-16(7)(v)-5 PROD Cust'!N644+'FR-16(7)(v)-7 TRANS Demand'!N644+'FR-16(7)(v)-8 TRANS Energy'!N644+'FR-16(7)(v)-9 TRANS Cust'!N644+'FR-16(7)(v)-11 DIST Demand'!N644+'FR-16(7)(v)-12 DIST Energy'!N644+'FR-16(7)(v)-13 DIST Cust'!N644","v":65625},{"$f":"'FR-16(7)(v)-3 PROD Demand'!O644+'FR-16(7)(v)-4 PROD Energy'!O644+'FR-16(7)(v)-5 PROD Cust'!O644+'FR-16(7)(v)-7 TRANS Demand'!O644+'FR-16(7)(v)-8 TRANS Energy'!O644+'FR-16(7)(v)-9 TRANS Cust'!O644+'FR-16(7)(v)-11 DIST Demand'!O644+'FR-16(7)(v)-12 DIST Energy'!O644+'FR-16(7)(v)-13 DIST Cust'!O644","v":634881},{"$f":"'FR-16(7)(v)-3 PROD Demand'!P644+'FR-16(7)(v)-4 PROD Energy'!P644+'FR-16(7)(v)-5 PROD Cust'!P644+'FR-16(7)(v)-7 TRANS Demand'!P644+'FR-16(7)(v)-8 TRANS Energy'!P644+'FR-16(7)(v)-9 TRANS Cust'!P644+'FR-16(7)(v)-11 DIST Demand'!P644+'FR-16(7)(v)-12 DIST Energy'!P644+'FR-16(7)(v)-13 DIST Cust'!P644","v":95410},{"$f":"'FR-16(7)(v)-3 PROD Demand'!Q644+'FR-16(7)(v)-4 PROD Energy'!Q644+'FR-16(7)(v)-5 PROD Cust'!Q644+'FR-16(7)(v)-7 TRANS Demand'!Q644+'FR-16(7)(v)-8 TRANS Energy'!Q644+'FR-16(7)(v)-9 TRANS Cust'!Q644+'FR-16(7)(v)-11 DIST Demand'!Q644+'FR-16(7)(v)-12 DIST Energy'!Q644+'FR-16(7)(v)-13 DIST Cust'!Q644","v":1578},{"$f":"SUM(G644:Q644)","v":13964593},{"$f":"F644-R644","v":139}]
[16,null,{"$f":"'FR-16(7)(v)-1 Functional'!C645","v":"AMORT OF DEFERRED MERGER COST"},{"$f":"'FR-16(7)(v)-1 Functional'!D645","v":"A357"},null,{"$f":"'FR-16(7)(v)-1 Functional'!F645","v":0},{"$f":"'FR-16(7)(v)-3 PROD Demand'!G645+'FR-16(7)(v)-4 PROD Energy'!G645+'FR-16(7)(v)-5 PROD Cust'!G645+'FR-16(7)(v)-7 TRANS Demand'!G645+'FR-16(7)(v)-8 TRANS Energy'!G645+'FR-16(7)(v)-9 TRANS Cust'!G645+'FR-16(7)(v)-11 DIST Demand'!G645+'FR-16(7)(v)-12 DIST Energy'!G645+'FR-16(7)(v)-13 DIST Cust'!G645","v":0},{"$f":"'FR-16(7)(v)-3 PROD Demand'!H645+'FR-16(7)(v)-4 PROD Energy'!H645+'FR-16(7)(v)-5 PROD Cust'!H645+'FR-16(7)(v)-7 TRANS Demand'!H645+'FR-16(7)(v)-8 TRANS Energy'!H645+'FR-16(7)(v)-9 TRANS Cust'!H645+'FR-16(7)(v)-11 DIST Demand'!H645+'FR-16(7)(v)-12 DIST Energy'!H645+'FR-16(7)(v)-13 DIST Cust'!H645","v":0},{"$f":"'FR-16(7)(v)-3 PROD Demand'!I645+'FR-16(7)(v)-4 PROD Energy'!I645+'FR-16(7)(v)-5 PROD Cust'!I645+'FR-16(7)(v)-7 TRANS Demand'!I645+'FR-16(7)(v)-8 TRANS Energy'!I645+'FR-16(7)(v)-9 TRANS Cust'!I645+'FR-16(7)(v)-11 DIST Demand'!I645+'FR-16(7)(v)-12 DIST Energy'!I645+'FR-16(7)(v)-13 DIST Cust'!I645","v":0},{"$f":"'FR-16(7)(v)-3 PROD Demand'!J645+'FR-16(7)(v)-4 PROD Energy'!J645+'FR-16(7)(v)-5 PROD Cust'!J645+'FR-16(7)(v)-7 TRANS Demand'!J645+'FR-16(7)(v)-8 TRANS Energy'!J645+'FR-16(7)(v)-9 TRANS Cust'!J645+'FR-16(7)(v)-11 DIST Demand'!J645+'FR-16(7)(v)-12 DIST Energy'!J645+'FR-16(7)(v)-13 DIST Cust'!J645","v":0},{"$f":"'FR-16(7)(v)-3 PROD Demand'!K645+'FR-16(7)(v)-4 PROD Energy'!K645+'FR-16(7)(v)-5 PROD Cust'!K645+'FR-16(7)(v)-7 TRANS Demand'!K645+'FR-16(7)(v)-8 TRANS Energy'!K645+'FR-16(7)(v)-9 TRANS Cust'!K645+'FR-16(7)(v)-11 DIST Demand'!K645+'FR-16(7)(v)-12 DIST Energy'!K645+'FR-16(7)(v)-13 DIST Cust'!K645","v":0},{"$f":"'FR-16(7)(v)-3 PROD Demand'!L645+'FR-16(7)(v)-4 PROD Energy'!L645+'FR-16(7)(v)-5 PROD Cust'!L645+'FR-16(7)(v)-7 TRANS Demand'!L645+'FR-16(7)(v)-8 TRANS Energy'!L645+'FR-16(7)(v)-9 TRANS Cust'!L645+'FR-16(7)(v)-11 DIST Demand'!L645+'FR-16(7)(v)-12 DIST Energy'!L645+'FR-16(7)(v)-13 DIST Cust'!L645","v":0},{"$f":"'FR-16(7)(v)-3 PROD Demand'!M645+'FR-16(7)(v)-4 PROD Energy'!M645+'FR-16(7)(v)-5 PROD Cust'!M645+'FR-16(7)(v)-7 TRANS Demand'!M645+'FR-16(7)(v)-8 TRANS Energy'!M645+'FR-16(7)(v)-9 TRANS Cust'!M645+'FR-16(7)(v)-11 DIST Demand'!M645+'FR-16(7)(v)-12 DIST Energy'!M645+'FR-16(7)(v)-13 DIST Cust'!M645","v":0},{"$f":"'FR-16(7)(v)-3 PROD Demand'!N645+'FR-16(7)(v)-4 PROD Energy'!N645+'FR-16(7)(v)-5 PROD Cust'!N645+'FR-16(7)(v)-7 TRANS Demand'!N645+'FR-16(7)(v)-8 TRANS Energy'!N645+'FR-16(7)(v)-9 TRANS Cust'!N645+'FR-16(7)(v)-11 DIST Demand'!N645+'FR-16(7)(v)-12 DIST Energy'!N645+'FR-16(7)(v)-13 DIST Cust'!N645","v":0},{"$f":"'FR-16(7)(v)-3 PROD Demand'!O645+'FR-16(7)(v)-4 PROD Energy'!O645+'FR-16(7)(v)-5 PROD Cust'!O645+'FR-16(7)(v)-7 TRANS Demand'!O645+'FR-16(7)(v)-8 TRANS Energy'!O645+'FR-16(7)(v)-9 TRANS Cust'!O645+'FR-16(7)(v)-11 DIST Demand'!O645+'FR-16(7)(v)-12 DIST Energy'!O645+'FR-16(7)(v)-13 DIST Cust'!O645","v":0},{"$f":"'FR-16(7)(v)-3 PROD Demand'!P645+'FR-16(7)(v)-4 PROD Energy'!P645+'FR-16(7)(v)-5 PROD Cust'!P645+'FR-16(7)(v)-7 TRANS Demand'!P645+'FR-16(7)(v)-8 TRANS Energy'!P645+'FR-16(7)(v)-9 TRANS Cust'!P645+'FR-16(7)(v)-11 DIST Demand'!P645+'FR-16(7)(v)-12 DIST Energy'!P645+'FR-16(7)(v)-13 DIST Cust'!P645","v":0},{"$f":"'FR-16(7)(v)-3 PROD Demand'!Q645+'FR-16(7)(v)-4 PROD Energy'!Q645+'FR-16(7)(v)-5 PROD Cust'!Q645+'FR-16(7)(v)-7 TRANS Demand'!Q645+'FR-16(7)(v)-8 TRANS Energy'!Q645+'FR-16(7)(v)-9 TRANS Cust'!Q645+'FR-16(7)(v)-11 DIST Demand'!Q645+'FR-16(7)(v)-12 DIST Energy'!Q645+'FR-16(7)(v)-13 DIST Cust'!Q645","v":0},{"$f":"SUM(G645:Q645)","v":0},{"$f":"F645-R645","v":0}]
[17,null,{"$f":"'FR-16(7)(v)-1 Functional'!C646","v":"DIT ADJUSTMENT - S/L DEPRECIATION"},{"$f":"'FR-16(7)(v)-1 Functional'!D646","v":"DE49"},null,{"$f":"'FR-16(7)(v)-1 Functional'!F646","v":0},{"$f":"'FR-16(7)(v)-3 PROD Demand'!G646+'FR-16(7)(v)-4 PROD Energy'!G646+'FR-16(7)(v)-5 PROD Cust'!G646+'FR-16(7)(v)-7 TRANS Demand'!G646+'FR-16(7)(v)-8 TRANS Energy'!G646+'FR-16(7)(v)-9 TRANS Cust'!G646+'FR-16(7)(v)-11 DIST Demand'!G646+'FR-16(7)(v)-12 DIST Energy'!G646+'FR-16(7)(v)-13 DIST Cust'!G646","v":0},{"$f":"'FR-16(7)(v)-3 PROD Demand'!H646+'FR-16(7)(v)-4 PROD Energy'!H646+'FR-16(7)(v)-5 PROD Cust'!H646+'FR-16(7)(v)-7 TRANS Demand'!H646+'FR-16(7)(v)-8 TRANS Energy'!H646+'FR-16(7)(v)-9 TRANS Cust'!H646+'FR-16(7)(v)-11 DIST Demand'!H646+'FR-16(7)(v)-12 DIST Energy'!H646+'FR-16(7)(v)-13 DIST Cust'!H646","v":0},{"$f":"'FR-16(7)(v)-3 PROD Demand'!I646+'FR-16(7)(v)-4 PROD Energy'!I646+'FR-16(7)(v)-5 PROD Cust'!I646+'FR-16(7)(v)-7 TRANS Demand'!I646+'FR-16(7)(v)-8 TRANS Energy'!I646+'FR-16(7)(v)-9 TRANS Cust'!I646+'FR-16(7)(v)-11 DIST Demand'!I646+'FR-16(7)(v)-12 DIST Energy'!I646+'FR-16(7)(v)-13 DIST Cust'!I646","v":0},{"$f":"'FR-16(7)(v)-3 PROD Demand'!J646+'FR-16(7)(v)-4 PROD Energy'!J646+'FR-16(7)(v)-5 PROD Cust'!J646+'FR-16(7)(v)-7 TRANS Demand'!J646+'FR-16(7)(v)-8 TRANS Energy'!J646+'FR-16(7)(v)-9 TRANS Cust'!J646+'FR-16(7)(v)-11 DIST Demand'!J646+'FR-16(7)(v)-12 DIST Energy'!J646+'FR-16(7)(v)-13 DIST Cust'!J646","v":0},{"$f":"'FR-16(7)(v)-3 PROD Demand'!K646+'FR-16(7)(v)-4 PROD Energy'!K646+'FR-16(7)(v)-5 PROD Cust'!K646+'FR-16(7)(v)-7 TRANS Demand'!K646+'FR-16(7)(v)-8 TRANS Energy'!K646+'FR-16(7)(v)-9 TRANS Cust'!K646+'FR-16(7)(v)-11 DIST Demand'!K646+'FR-16(7)(v)-12 DIST Energy'!K646+'FR-16(7)(v)-13 DIST Cust'!K646","v":0},{"$f":"'FR-16(7)(v)-3 PROD Demand'!L646+'FR-16(7)(v)-4 PROD Energy'!L646+'FR-16(7)(v)-5 PROD Cust'!L646+'FR-16(7)(v)-7 TRANS Demand'!L646+'FR-16(7)(v)-8 TRANS Energy'!L646+'FR-16(7)(v)-9 TRANS Cust'!L646+'FR-16(7)(v)-11 DIST Demand'!L646+'FR-16(7)(v)-12 DIST Energy'!L646+'FR-16(7)(v)-13 DIST Cust'!L646","v":0},{"$f":"'FR-16(7)(v)-3 PROD Demand'!M646+'FR-16(7)(v)-4 PROD Energy'!M646+'FR-16(7)(v)-5 PROD Cust'!M646+'FR-16(7)(v)-7 TRANS Demand'!M646+'FR-16(7)(v)-8 TRANS Energy'!M646+'FR-16(7)(v)-9 TRANS Cust'!M646+'FR-16(7)(v)-11 DIST Demand'!M646+'FR-16(7)(v)-12 DIST Energy'!M646+'FR-16(7)(v)-13 DIST Cust'!M646","v":0},{"$f":"'FR-16(7)(v)-3 PROD Demand'!N646+'FR-16(7)(v)-4 PROD Energy'!N646+'FR-16(7)(v)-5 PROD Cust'!N646+'FR-16(7)(v)-7 TRANS Demand'!N646+'FR-16(7)(v)-8 TRANS Energy'!N646+'FR-16(7)(v)-9 TRANS Cust'!N646+'FR-16(7)(v)-11 DIST Demand'!N646+'FR-16(7)(v)-12 DIST Energy'!N646+'FR-16(7)(v)-13 DIST Cust'!N646","v":0},{"$f":"'FR-16(7)(v)-3 PROD Demand'!O646+'FR-16(7)(v)-4 PROD Energy'!O646+'FR-16(7)(v)-5 PROD Cust'!O646+'FR-16(7)(v)-7 TRANS Demand'!O646+'FR-16(7)(v)-8 TRANS Energy'!O646+'FR-16(7)(v)-9 TRANS Cust'!O646+'FR-16(7)(v)-11 DIST Demand'!O646+'FR-16(7)(v)-12 DIST Energy'!O646+'FR-16(7)(v)-13 DIST Cust'!O646","v":0},{"$f":"'FR-16(7)(v)-3 PROD Demand'!P646+'FR-16(7)(v)-4 PROD Energy'!P646+'FR-16(7)(v)-5 PROD Cust'!P646+'FR-16(7)(v)-7 TRANS Demand'!P646+'FR-16(7)(v)-8 TRANS Energy'!P646+'FR-16(7)(v)-9 TRANS Cust'!P646+'FR-16(7)(v)-11 DIST Demand'!P646+'FR-16(7)(v)-12 DIST Energy'!P646+'FR-16(7)(v)-13 DIST Cust'!P646","v":0},{"$f":"'FR-16(7)(v)-3 PROD Demand'!Q646+'FR-16(7)(v)-4 PROD Energy'!Q646+'FR-16(7)(v)-5 PROD Cust'!Q646+'FR-16(7)(v)-7 TRANS Demand'!Q646+'FR-16(7)(v)-8 TRANS Energy'!Q646+'FR-16(7)(v)-9 TRANS Cust'!Q646+'FR-16(7)(v)-11 DIST Demand'!Q646+'FR-16(7)(v)-12 DIST Energy'!Q646+'FR-16(7)(v)-13 DIST Cust'!Q646","v":0},{"$f":"SUM(G646:Q646)","v":0},{"$f":"F646-R646","v":0}]
[18,null,{"$f":"'FR-16(7)(v)-1 Functional'!C647","v":"DIT ADJUSTMENT - ARAM"},{"$f":"'FR-16(7)(v)-1 Functional'!D647","v":"K201"},null,{"$f":"'FR-16(7)(v)-1 Functional'!F647","v":-107523},{"$f":"'FR-16(7)(v)-3 PROD Demand'!G647+'FR-16(7)(v)-4 PROD Energy'!G647+'FR-16(7)(v)-5 PROD Cust'!G647+'FR-16(7)(v)-7 TRANS Demand'!G647+'FR-16(7)(v)-8 TRANS Energy'!G647+'FR-16(7)(v)-9 TRANS Cust'!G647+'FR-16(7)(v)-11 DIST Demand'!G647+'FR-16(7)(v)-12 DIST Energy'!G647+'FR-16(7)(v)-13 DIST Cust'!G647","v":-48469},{"$f":"'FR-16(7)(v)-3 PROD Demand'!H647+'FR-16(7)(v)-4 PROD Energy'!H647+'FR-16(7)(v)-5 PROD Cust'!H647+'FR-16(7)(v)-7 TRANS Demand'!H647+'FR-16(7)(v)-8 TRANS Energy'!H647+'FR-16(7)(v)-9 TRANS Cust'!H647+'FR-16(7)(v)-11 DIST Demand'!H647+'FR-16(7)(v)-12 DIST Energy'!H647+'FR-16(7)(v)-13 DIST Cust'!H647","v":-29100},{"$f":"'FR-16(7)(v)-3 PROD Demand'!I647+'FR-16(7)(v)-4 PROD Energy'!I647+'FR-16(7)(v)-5 PROD Cust'!I647+'FR-16(7)(v)-7 TRANS Demand'!I647+'FR-16(7)(v)-8 TRANS Energy'!I647+'FR-16(7)(v)-9 TRANS Cust'!I647+'FR-16(7)(v)-11 DIST Demand'!I647+'FR-16(7)(v)-12 DIST Energy'!I647+'FR-16(7)(v)-13 DIST Cust'!I647","v":-140},{"$f":"'FR-16(7)(v)-3 PROD Demand'!J647+'FR-16(7)(v)-4 PROD Energy'!J647+'FR-16(7)(v)-5 PROD Cust'!J647+'FR-16(7)(v)-7 TRANS Demand'!J647+'FR-16(7)(v)-8 TRANS Energy'!J647+'FR-16(7)(v)-9 TRANS Cust'!J647+'FR-16(7)(v)-11 DIST Demand'!J647+'FR-16(7)(v)-12 DIST Energy'!J647+'FR-16(7)(v)-13 DIST Cust'!J647","v":-552},{"$f":"'FR-16(7)(v)-3 PROD Demand'!K647+'FR-16(7)(v)-4 PROD Energy'!K647+'FR-16(7)(v)-5 PROD Cust'!K647+'FR-16(7)(v)-7 TRANS Demand'!K647+'FR-16(7)(v)-8 TRANS Energy'!K647+'FR-16(7)(v)-9 TRANS Cust'!K647+'FR-16(7)(v)-11 DIST Demand'!K647+'FR-16(7)(v)-12 DIST Energy'!K647+'FR-16(7)(v)-13 DIST Cust'!K647","v":-8},{"$f":"'FR-16(7)(v)-3 PROD Demand'!L647+'FR-16(7)(v)-4 PROD Energy'!L647+'FR-16(7)(v)-5 PROD Cust'!L647+'FR-16(7)(v)-7 TRANS Demand'!L647+'FR-16(7)(v)-8 TRANS Energy'!L647+'FR-16(7)(v)-9 TRANS Cust'!L647+'FR-16(7)(v)-11 DIST Demand'!L647+'FR-16(7)(v)-12 DIST Energy'!L647+'FR-16(7)(v)-13 DIST Cust'!L647","v":-14509},{"$f":"'FR-16(7)(v)-3 PROD Demand'!M647+'FR-16(7)(v)-4 PROD Energy'!M647+'FR-16(7)(v)-5 PROD Cust'!M647+'FR-16(7)(v)-7 TRANS Demand'!M647+'FR-16(7)(v)-8 TRANS Energy'!M647+'FR-16(7)(v)-9 TRANS Cust'!M647+'FR-16(7)(v)-11 DIST Demand'!M647+'FR-16(7)(v)-12 DIST Energy'!M647+'FR-16(7)(v)-13 DIST Cust'!M647","v":-9592},{"$f":"'FR-16(7)(v)-3 PROD Demand'!N647+'FR-16(7)(v)-4 PROD Energy'!N647+'FR-16(7)(v)-5 PROD Cust'!N647+'FR-16(7)(v)-7 TRANS Demand'!N647+'FR-16(7)(v)-8 TRANS Energy'!N647+'FR-16(7)(v)-9 TRANS Cust'!N647+'FR-16(7)(v)-11 DIST Demand'!N647+'FR-16(7)(v)-12 DIST Energy'!N647+'FR-16(7)(v)-13 DIST Cust'!N647","v":-463},{"$f":"'FR-16(7)(v)-3 PROD Demand'!O647+'FR-16(7)(v)-4 PROD Energy'!O647+'FR-16(7)(v)-5 PROD Cust'!O647+'FR-16(7)(v)-7 TRANS Demand'!O647+'FR-16(7)(v)-8 TRANS Energy'!O647+'FR-16(7)(v)-9 TRANS Cust'!O647+'FR-16(7)(v)-11 DIST Demand'!O647+'FR-16(7)(v)-12 DIST Energy'!O647+'FR-16(7)(v)-13 DIST Cust'!O647","v":-4545},{"$f":"'FR-16(7)(v)-3 PROD Demand'!P647+'FR-16(7)(v)-4 PROD Energy'!P647+'FR-16(7)(v)-5 PROD Cust'!P647+'FR-16(7)(v)-7 TRANS Demand'!P647+'FR-16(7)(v)-8 TRANS Energy'!P647+'FR-16(7)(v)-9 TRANS Cust'!P647+'FR-16(7)(v)-11 DIST Demand'!P647+'FR-16(7)(v)-12 DIST Energy'!P647+'FR-16(7)(v)-13 DIST Cust'!P647","v":-133},{"$f":"'FR-16(7)(v)-3 PROD Demand'!Q647+'FR-16(7)(v)-4 PROD Energy'!Q647+'FR-16(7)(v)-5 PROD Cust'!Q647+'FR-16(7)(v)-7 TRANS Demand'!Q647+'FR-16(7)(v)-8 TRANS Energy'!Q647+'FR-16(7)(v)-9 TRANS Cust'!Q647+'FR-16(7)(v)-11 DIST Demand'!Q647+'FR-16(7)(v)-12 DIST Energy'!Q647+'FR-16(7)(v)-13 DIST Cust'!Q647","v":-12},{"$f":"SUM(G647:Q647)","v":-107523},{"$f":"F647-R647","v":0}]
[19,null,{"$f":"'FR-16(7)(v)-1 Functional'!C648","v":"DIT ADJUSTMENT - AMORT OF EXCESS DEF TAXES"},{"$f":"'FR-16(7)(v)-1 Functional'!D648","v":"A357"},null,{"$f":"'FR-16(7)(v)-1 Functional'!F648","v":-3693881},{"$f":"'FR-16(7)(v)-3 PROD Demand'!G648+'FR-16(7)(v)-4 PROD Energy'!G648+'FR-16(7)(v)-5 PROD Cust'!G648+'FR-16(7)(v)-7 TRANS Demand'!G648+'FR-16(7)(v)-8 TRANS Energy'!G648+'FR-16(7)(v)-9 TRANS Cust'!G648+'FR-16(7)(v)-11 DIST Demand'!G648+'FR-16(7)(v)-12 DIST Energy'!G648+'FR-16(7)(v)-13 DIST Cust'!G648","v":-2414869},{"$f":"'FR-16(7)(v)-3 PROD Demand'!H648+'FR-16(7)(v)-4 PROD Energy'!H648+'FR-16(7)(v)-5 PROD Cust'!H648+'FR-16(7)(v)-7 TRANS Demand'!H648+'FR-16(7)(v)-8 TRANS Energy'!H648+'FR-16(7)(v)-9 TRANS Cust'!H648+'FR-16(7)(v)-11 DIST Demand'!H648+'FR-16(7)(v)-12 DIST Energy'!H648+'FR-16(7)(v)-13 DIST Cust'!H648","v":-625786},{"$f":"'FR-16(7)(v)-3 PROD Demand'!I648+'FR-16(7)(v)-4 PROD Energy'!I648+'FR-16(7)(v)-5 PROD Cust'!I648+'FR-16(7)(v)-7 TRANS Demand'!I648+'FR-16(7)(v)-8 TRANS Energy'!I648+'FR-16(7)(v)-9 TRANS Cust'!I648+'FR-16(7)(v)-11 DIST Demand'!I648+'FR-16(7)(v)-12 DIST Energy'!I648+'FR-16(7)(v)-13 DIST Cust'!I648","v":-3327},{"$f":"'FR-16(7)(v)-3 PROD Demand'!J648+'FR-16(7)(v)-4 PROD Energy'!J648+'FR-16(7)(v)-5 PROD Cust'!J648+'FR-16(7)(v)-7 TRANS Demand'!J648+'FR-16(7)(v)-8 TRANS Energy'!J648+'FR-16(7)(v)-9 TRANS Cust'!J648+'FR-16(7)(v)-11 DIST Demand'!J648+'FR-16(7)(v)-12 DIST Energy'!J648+'FR-16(7)(v)-13 DIST Cust'!J648","v":-10674},{"$f":"'FR-16(7)(v)-3 PROD Demand'!K648+'FR-16(7)(v)-4 PROD Energy'!K648+'FR-16(7)(v)-5 PROD Cust'!K648+'FR-16(7)(v)-7 TRANS Demand'!K648+'FR-16(7)(v)-8 TRANS Energy'!K648+'FR-16(7)(v)-9 TRANS Cust'!K648+'FR-16(7)(v)-11 DIST Demand'!K648+'FR-16(7)(v)-12 DIST Energy'!K648+'FR-16(7)(v)-13 DIST Cust'!K648","v":-240},{"$f":"'FR-16(7)(v)-3 PROD Demand'!L648+'FR-16(7)(v)-4 PROD Energy'!L648+'FR-16(7)(v)-5 PROD Cust'!L648+'FR-16(7)(v)-7 TRANS Demand'!L648+'FR-16(7)(v)-8 TRANS Energy'!L648+'FR-16(7)(v)-9 TRANS Cust'!L648+'FR-16(7)(v)-11 DIST Demand'!L648+'FR-16(7)(v)-12 DIST Energy'!L648+'FR-16(7)(v)-13 DIST Cust'!L648","v":-306060},{"$f":"'FR-16(7)(v)-3 PROD Demand'!M648+'FR-16(7)(v)-4 PROD Energy'!M648+'FR-16(7)(v)-5 PROD Cust'!M648+'FR-16(7)(v)-7 TRANS Demand'!M648+'FR-16(7)(v)-8 TRANS Energy'!M648+'FR-16(7)(v)-9 TRANS Cust'!M648+'FR-16(7)(v)-11 DIST Demand'!M648+'FR-16(7)(v)-12 DIST Energy'!M648+'FR-16(7)(v)-13 DIST Cust'!M648","v":-206478},{"$f":"'FR-16(7)(v)-3 PROD Demand'!N648+'FR-16(7)(v)-4 PROD Energy'!N648+'FR-16(7)(v)-5 PROD Cust'!N648+'FR-16(7)(v)-7 TRANS Demand'!N648+'FR-16(7)(v)-8 TRANS Energy'!N648+'FR-16(7)(v)-9 TRANS Cust'!N648+'FR-16(7)(v)-11 DIST Demand'!N648+'FR-16(7)(v)-12 DIST Energy'!N648+'FR-16(7)(v)-13 DIST Cust'!N648","v":-10172},{"$f":"'FR-16(7)(v)-3 PROD Demand'!O648+'FR-16(7)(v)-4 PROD Energy'!O648+'FR-16(7)(v)-5 PROD Cust'!O648+'FR-16(7)(v)-7 TRANS Demand'!O648+'FR-16(7)(v)-8 TRANS Energy'!O648+'FR-16(7)(v)-9 TRANS Cust'!O648+'FR-16(7)(v)-11 DIST Demand'!O648+'FR-16(7)(v)-12 DIST Energy'!O648+'FR-16(7)(v)-13 DIST Cust'!O648","v":-85087},{"$f":"'FR-16(7)(v)-3 PROD Demand'!P648+'FR-16(7)(v)-4 PROD Energy'!P648+'FR-16(7)(v)-5 PROD Cust'!P648+'FR-16(7)(v)-7 TRANS Demand'!P648+'FR-16(7)(v)-8 TRANS Energy'!P648+'FR-16(7)(v)-9 TRANS Cust'!P648+'FR-16(7)(v)-11 DIST Demand'!P648+'FR-16(7)(v)-12 DIST Energy'!P648+'FR-16(7)(v)-13 DIST Cust'!P648","v":-30854},{"$f":"'FR-16(7)(v)-3 PROD Demand'!Q648+'FR-16(7)(v)-4 PROD Energy'!Q648+'FR-16(7)(v)-5 PROD Cust'!Q648+'FR-16(7)(v)-7 TRANS Demand'!Q648+'FR-16(7)(v)-8 TRANS Energy'!Q648+'FR-16(7)(v)-9 TRANS Cust'!Q648+'FR-16(7)(v)-11 DIST Demand'!Q648+'FR-16(7)(v)-12 DIST Energy'!Q648+'FR-16(7)(v)-13 DIST Cust'!Q648","v":-334},{"$f":"SUM(G648:Q648)","v":-3693881},{"$f":"F648-R648","v":0}]
[20,null,{"$f":"'FR-16(7)(v)-1 Functional'!C649","v":"  TOTAL FED DEF IT (410 & 411)"},null,null,{"$f":"SUM(F644:F648)","v":10163328},{"$f":"SUM(G644:G648)","v":3708850},{"$f":"SUM(H644:H648)","v":2880003},{"$f":"SUM(I644:I648)","v":15703},{"$f":"SUM(J644:J648)","v":48137},773,1682897,1160932,54990,545249,64423,{"$f":"SUM($Q$644:$Q$648)","v":1232},{"$f":"SUM(R644:R648)","v":10163189},{"$f":"SUM(S644:S648)","v":139}]
[21]
[22," AMORT INV TAX CREDIT"]
[23,null,{"$f":"'FR-16(7)(v)-1 Functional'!C652","v":"AMORTIZE ITC"},{"$f":"'FR-16(7)(v)-1 Functional'!D652","v":"NP29"},null,{"$f":"'FR-16(7)(v)-1 Functional'!F652","v":428},{"$f":"'FR-16(7)(v)-3 PROD Demand'!G652+'FR-16(7)(v)-4 PROD Energy'!G652+'FR-16(7)(v)-5 PROD Cust'!G652+'FR-16(7)(v)-7 TRANS Demand'!G652+'FR-16(7)(v)-8 TRANS Energy'!G652+'FR-16(7)(v)-9 TRANS Cust'!G652+'FR-16(7)(v)-11 DIST Demand'!G652+'FR-16(7)(v)-12 DIST Energy'!G652+'FR-16(7)(v)-13 DIST Cust'!G652","v":213},{"$f":"'FR-16(7)(v)-3 PROD Demand'!H652+'FR-16(7)(v)-4 PROD Energy'!H652+'FR-16(7)(v)-5 PROD Cust'!H652+'FR-16(7)(v)-7 TRANS Demand'!H652+'FR-16(7)(v)-8 TRANS Energy'!H652+'FR-16(7)(v)-9 TRANS Cust'!H652+'FR-16(7)(v)-11 DIST Demand'!H652+'FR-16(7)(v)-12 DIST Energy'!H652+'FR-16(7)(v)-13 DIST Cust'!H652","v":110},{"$f":"'FR-16(7)(v)-3 PROD Demand'!I652+'FR-16(7)(v)-4 PROD Energy'!I652+'FR-16(7)(v)-5 PROD Cust'!I652+'FR-16(7)(v)-7 TRANS Demand'!I652+'FR-16(7)(v)-8 TRANS Energy'!I652+'FR-16(7)(v)-9 TRANS Cust'!I652+'FR-16(7)(v)-11 DIST Demand'!I652+'FR-16(7)(v)-12 DIST Energy'!I652+'FR-16(7)(v)-13 DIST Cust'!I652","v":0},{"$f":"'FR-16(7)(v)-3 PROD Demand'!J652+'FR-16(7)(v)-4 PROD Energy'!J652+'FR-16(7)(v)-5 PROD Cust'!J652+'FR-16(7)(v)-7 TRANS Demand'!J652+'FR-16(7)(v)-8 TRANS Energy'!J652+'FR-16(7)(v)-9 TRANS Cust'!J652+'FR-16(7)(v)-11 DIST Demand'!J652+'FR-16(7)(v)-12 DIST Energy'!J652+'FR-16(7)(v)-13 DIST Cust'!J652","v":2},{"$f":"'FR-16(7)(v)-3 PROD Demand'!K652+'FR-16(7)(v)-4 PROD Energy'!K652+'FR-16(7)(v)-5 PROD Cust'!K652+'FR-16(7)(v)-7 TRANS Demand'!K652+'FR-16(7)(v)-8 TRANS Energy'!K652+'FR-16(7)(v)-9 TRANS Cust'!K652+'FR-16(7)(v)-11 DIST Demand'!K652+'FR-16(7)(v)-12 DIST Energy'!K652+'FR-16(7)(v)-13 DIST Cust'!K652","v":0},{"$f":"'FR-16(7)(v)-3 PROD Demand'!L652+'FR-16(7)(v)-4 PROD Energy'!L652+'FR-16(7)(v)-5 PROD Cust'!L652+'FR-16(7)(v)-7 TRANS Demand'!L652+'FR-16(7)(v)-8 TRANS Energy'!L652+'FR-16(7)(v)-9 TRANS Cust'!L652+'FR-16(7)(v)-11 DIST Demand'!L652+'FR-16(7)(v)-12 DIST Energy'!L652+'FR-16(7)(v)-13 DIST Cust'!L652","v":53},{"$f":"'FR-16(7)(v)-3 PROD Demand'!M652+'FR-16(7)(v)-4 PROD Energy'!M652+'FR-16(7)(v)-5 PROD Cust'!M652+'FR-16(7)(v)-7 TRANS Demand'!M652+'FR-16(7)(v)-8 TRANS Energy'!M652+'FR-16(7)(v)-9 TRANS Cust'!M652+'FR-16(7)(v)-11 DIST Demand'!M652+'FR-16(7)(v)-12 DIST Energy'!M652+'FR-16(7)(v)-13 DIST Cust'!M652","v":35},{"$f":"'FR-16(7)(v)-3 PROD Demand'!N652+'FR-16(7)(v)-4 PROD Energy'!N652+'FR-16(7)(v)-5 PROD Cust'!N652+'FR-16(7)(v)-7 TRANS Demand'!N652+'FR-16(7)(v)-8 TRANS Energy'!N652+'FR-16(7)(v)-9 TRANS Cust'!N652+'FR-16(7)(v)-11 DIST Demand'!N652+'FR-16(7)(v)-12 DIST Energy'!N652+'FR-16(7)(v)-13 DIST Cust'!N652","v":2},{"$f":"'FR-16(7)(v)-3 PROD Demand'!O652+'FR-16(7)(v)-4 PROD Energy'!O652+'FR-16(7)(v)-5 PROD Cust'!O652+'FR-16(7)(v)-7 TRANS Demand'!O652+'FR-16(7)(v)-8 TRANS Energy'!O652+'FR-16(7)(v)-9 TRANS Cust'!O652+'FR-16(7)(v)-11 DIST Demand'!O652+'FR-16(7)(v)-12 DIST Energy'!O652+'FR-16(7)(v)-13 DIST Cust'!O652","v":11},{"$f":"'FR-16(7)(v)-3 PROD Demand'!P652+'FR-16(7)(v)-4 PROD Energy'!P652+'FR-16(7)(v)-5 PROD Cust'!P652+'FR-16(7)(v)-7 TRANS Demand'!P652+'FR-16(7)(v)-8 TRANS Energy'!P652+'FR-16(7)(v)-9 TRANS Cust'!P652+'FR-16(7)(v)-11 DIST Demand'!P652+'FR-16(7)(v)-12 DIST Energy'!P652+'FR-16(7)(v)-13 DIST Cust'!P652","v":2},{"$f":"'FR-16(7)(v)-3 PROD Demand'!Q652+'FR-16(7)(v)-4 PROD Energy'!Q652+'FR-16(7)(v)-5 PROD Cust'!Q652+'FR-16(7)(v)-7 TRANS Demand'!Q652+'FR-16(7)(v)-8 TRANS Energy'!Q652+'FR-16(7)(v)-9 TRANS Cust'!Q652+'FR-16(7)(v)-11 DIST Demand'!Q652+'FR-16(7)(v)-12 DIST Energy'!Q652+'FR-16(7)(v)-13 DIST Cust'!Q652","v":0},{"$f":"SUM(G652:Q652)","v":428},{"$f":"F652-R652","v":0}]
[24,null,{"$f":"'FR-16(7)(v)-1 Functional'!C653","v":"  TOTAL AMORTIZED ITC"},null,null,{"$f":"SUM(F652:F652)","v":428},{"$f":"SUM(G652:G652)","v":213},{"$f":"SUM(H652:H652)","v":110},{"$f":"SUM(I652:I652)","v":0},{"$f":"SUM(J652:J652)","v":2},0,53,35,2,11,2,{"$f":"SUM($Q$652:$Q$652)","v":0},{"$f":"SUM(R652:R652)","v":428},{"$f":"SUM(S652:S652)","v":0}]
[25]
[26," OTHER FEDERAL TAX CREDITS"]
[27,null,{"$f":"'FR-16(7)(v)-1 Functional'!C656","v":"FUEL TAX CREDIT"},"K301",null,{"$f":"'FR-16(7)(v)-1 Functional'!F656","v":0},{"$f":"'FR-16(7)(v)-3 PROD Demand'!G656+'FR-16(7)(v)-4 PROD Energy'!G656+'FR-16(7)(v)-5 PROD Cust'!G656+'FR-16(7)(v)-7 TRANS Demand'!G656+'FR-16(7)(v)-8 TRANS Energy'!G656+'FR-16(7)(v)-9 TRANS Cust'!G656+'FR-16(7)(v)-11 DIST Demand'!G656+'FR-16(7)(v)-12 DIST Energy'!G656+'FR-16(7)(v)-13 DIST Cust'!G656","v":0},{"$f":"'FR-16(7)(v)-3 PROD Demand'!H656+'FR-16(7)(v)-4 PROD Energy'!H656+'FR-16(7)(v)-5 PROD Cust'!H656+'FR-16(7)(v)-7 TRANS Demand'!H656+'FR-16(7)(v)-8 TRANS Energy'!H656+'FR-16(7)(v)-9 TRANS Cust'!H656+'FR-16(7)(v)-11 DIST Demand'!H656+'FR-16(7)(v)-12 DIST Energy'!H656+'FR-16(7)(v)-13 DIST Cust'!H656","v":0},{"$f":"'FR-16(7)(v)-3 PROD Demand'!I656+'FR-16(7)(v)-4 PROD Energy'!I656+'FR-16(7)(v)-5 PROD Cust'!I656+'FR-16(7)(v)-7 TRANS Demand'!I656+'FR-16(7)(v)-8 TRANS Energy'!I656+'FR-16(7)(v)-9 TRANS Cust'!I656+'FR-16(7)(v)-11 DIST Demand'!I656+'FR-16(7)(v)-12 DIST Energy'!I656+'FR-16(7)(v)-13 DIST Cust'!I656","v":0},{"$f":"'FR-16(7)(v)-3 PROD Demand'!J656+'FR-16(7)(v)-4 PROD Energy'!J656+'FR-16(7)(v)-5 PROD Cust'!J656+'FR-16(7)(v)-7 TRANS Demand'!J656+'FR-16(7)(v)-8 TRANS Energy'!J656+'FR-16(7)(v)-9 TRANS Cust'!J656+'FR-16(7)(v)-11 DIST Demand'!J656+'FR-16(7)(v)-12 DIST Energy'!J656+'FR-16(7)(v)-13 DIST Cust'!J656","v":0},{"$f":"'FR-16(7)(v)-3 PROD Demand'!K656+'FR-16(7)(v)-4 PROD Energy'!K656+'FR-16(7)(v)-5 PROD Cust'!K656+'FR-16(7)(v)-7 TRANS Demand'!K656+'FR-16(7)(v)-8 TRANS Energy'!K656+'FR-16(7)(v)-9 TRANS Cust'!K656+'FR-16(7)(v)-11 DIST Demand'!K656+'FR-16(7)(v)-12 DIST Energy'!K656+'FR-16(7)(v)-13 DIST Cust'!K656","v":0},{"$f":"'FR-16(7)(v)-3 PROD Demand'!L656+'FR-16(7)(v)-4 PROD Energy'!L656+'FR-16(7)(v)-5 PROD Cust'!L656+'FR-16(7)(v)-7 TRANS Demand'!L656+'FR-16(7)(v)-8 TRANS Energy'!L656+'FR-16(7)(v)-9 TRANS Cust'!L656+'FR-16(7)(v)-11 DIST Demand'!L656+'FR-16(7)(v)-12 DIST Energy'!L656+'FR-16(7)(v)-13 DIST Cust'!L656","v":0},{"$f":"'FR-16(7)(v)-3 PROD Demand'!M656+'FR-16(7)(v)-4 PROD Energy'!M656+'FR-16(7)(v)-5 PROD Cust'!M656+'FR-16(7)(v)-7 TRANS Demand'!M656+'FR-16(7)(v)-8 TRANS Energy'!M656+'FR-16(7)(v)-9 TRANS Cust'!M656+'FR-16(7)(v)-11 DIST Demand'!M656+'FR-16(7)(v)-12 DIST Energy'!M656+'FR-16(7)(v)-13 DIST Cust'!M656","v":0},{"$f":"'FR-16(7)(v)-3 PROD Demand'!N656+'FR-16(7)(v)-4 PROD Energy'!N656+'FR-16(7)(v)-5 PROD Cust'!N656+'FR-16(7)(v)-7 TRANS Demand'!N656+'FR-16(7)(v)-8 TRANS Energy'!N656+'FR-16(7)(v)-9 TRANS Cust'!N656+'FR-16(7)(v)-11 DIST Demand'!N656+'FR-16(7)(v)-12 DIST Energy'!N656+'FR-16(7)(v)-13 DIST Cust'!N656","v":0},{"$f":"'FR-16(7)(v)-3 PROD Demand'!O656+'FR-16(7)(v)-4 PROD Energy'!O656+'FR-16(7)(v)-5 PROD Cust'!O656+'FR-16(7)(v)-7 TRANS Demand'!O656+'FR-16(7)(v)-8 TRANS Energy'!O656+'FR-16(7)(v)-9 TRANS Cust'!O656+'FR-16(7)(v)-11 DIST Demand'!O656+'FR-16(7)(v)-12 DIST Energy'!O656+'FR-16(7)(v)-13 DIST Cust'!O656","v":0},{"$f":"'FR-16(7)(v)-3 PROD Demand'!P656+'FR-16(7)(v)-4 PROD Energy'!P656+'FR-16(7)(v)-5 PROD Cust'!P656+'FR-16(7)(v)-7 TRANS Demand'!P656+'FR-16(7)(v)-8 TRANS Energy'!P656+'FR-16(7)(v)-9 TRANS Cust'!P656+'FR-16(7)(v)-11 DIST Demand'!P656+'FR-16(7)(v)-12 DIST Energy'!P656+'FR-16(7)(v)-13 DIST Cust'!P656","v":0},{"$f":"'FR-16(7)(v)-3 PROD Demand'!Q656+'FR-16(7)(v)-4 PROD Energy'!Q656+'FR-16(7)(v)-5 PROD Cust'!Q656+'FR-16(7)(v)-7 TRANS Demand'!Q656+'FR-16(7)(v)-8 TRANS Energy'!Q656+'FR-16(7)(v)-9 TRANS Cust'!Q656+'FR-16(7)(v)-11 DIST Demand'!Q656+'FR-16(7)(v)-12 DIST Energy'!Q656+'FR-16(7)(v)-13 DIST Cust'!Q656","v":0},{"$f":"SUM(G656:Q656)","v":0},{"$f":"F656-R656","v":0}]
[28,null,{"$f":"'FR-16(7)(v)-1 Functional'!C657","v":"R&D CREDIT - SECTION 41"},"A315",null,{"$f":"'FR-16(7)(v)-1 Functional'!F657","v":0},{"$f":"'FR-16(7)(v)-3 PROD Demand'!G657+'FR-16(7)(v)-4 PROD Energy'!G657+'FR-16(7)(v)-5 PROD Cust'!G657+'FR-16(7)(v)-7 TRANS Demand'!G657+'FR-16(7)(v)-8 TRANS Energy'!G657+'FR-16(7)(v)-9 TRANS Cust'!G657+'FR-16(7)(v)-11 DIST Demand'!G657+'FR-16(7)(v)-12 DIST Energy'!G657+'FR-16(7)(v)-13 DIST Cust'!G657","v":0},{"$f":"'FR-16(7)(v)-3 PROD Demand'!H657+'FR-16(7)(v)-4 PROD Energy'!H657+'FR-16(7)(v)-5 PROD Cust'!H657+'FR-16(7)(v)-7 TRANS Demand'!H657+'FR-16(7)(v)-8 TRANS Energy'!H657+'FR-16(7)(v)-9 TRANS Cust'!H657+'FR-16(7)(v)-11 DIST Demand'!H657+'FR-16(7)(v)-12 DIST Energy'!H657+'FR-16(7)(v)-13 DIST Cust'!H657","v":0},{"$f":"'FR-16(7)(v)-3 PROD Demand'!I657+'FR-16(7)(v)-4 PROD Energy'!I657+'FR-16(7)(v)-5 PROD Cust'!I657+'FR-16(7)(v)-7 TRANS Demand'!I657+'FR-16(7)(v)-8 TRANS Energy'!I657+'FR-16(7)(v)-9 TRANS Cust'!I657+'FR-16(7)(v)-11 DIST Demand'!I657+'FR-16(7)(v)-12 DIST Energy'!I657+'FR-16(7)(v)-13 DIST Cust'!I657","v":0},{"$f":"'FR-16(7)(v)-3 PROD Demand'!J657+'FR-16(7)(v)-4 PROD Energy'!J657+'FR-16(7)(v)-5 PROD Cust'!J657+'FR-16(7)(v)-7 TRANS Demand'!J657+'FR-16(7)(v)-8 TRANS Energy'!J657+'FR-16(7)(v)-9 TRANS Cust'!J657+'FR-16(7)(v)-11 DIST Demand'!J657+'FR-16(7)(v)-12 DIST Energy'!J657+'FR-16(7)(v)-13 DIST Cust'!J657","v":0},{"$f":"'FR-16(7)(v)-3 PROD Demand'!K657+'FR-16(7)(v)-4 PROD Energy'!K657+'FR-16(7)(v)-5 PROD Cust'!K657+'FR-16(7)(v)-7 TRANS Demand'!K657+'FR-16(7)(v)-8 TRANS Energy'!K657+'FR-16(7)(v)-9 TRANS Cust'!K657+'FR-16(7)(v)-11 DIST Demand'!K657+'FR-16(7)(v)-12 DIST Energy'!K657+'FR-16(7)(v)-13 DIST Cust'!K657","v":0},{"$f":"'FR-16(7)(v)-3 PROD Demand'!L657+'FR-16(7)(v)-4 PROD Energy'!L657+'FR-16(7)(v)-5 PROD Cust'!L657+'FR-16(7)(v)-7 TRANS Demand'!L657+'FR-16(7)(v)-8 TRANS Energy'!L657+'FR-16(7)(v)-9 TRANS Cust'!L657+'FR-16(7)(v)-11 DIST Demand'!L657+'FR-16(7)(v)-12 DIST Energy'!L657+'FR-16(7)(v)-13 DIST Cust'!L657","v":0},{"$f":"'FR-16(7)(v)-3 PROD Demand'!M657+'FR-16(7)(v)-4 PROD Energy'!M657+'FR-16(7)(v)-5 PROD Cust'!M657+'FR-16(7)(v)-7 TRANS Demand'!M657+'FR-16(7)(v)-8 TRANS Energy'!M657+'FR-16(7)(v)-9 TRANS Cust'!M657+'FR-16(7)(v)-11 DIST Demand'!M657+'FR-16(7)(v)-12 DIST Energy'!M657+'FR-16(7)(v)-13 DIST Cust'!M657","v":0},{"$f":"'FR-16(7)(v)-3 PROD Demand'!N657+'FR-16(7)(v)-4 PROD Energy'!N657+'FR-16(7)(v)-5 PROD Cust'!N657+'FR-16(7)(v)-7 TRANS Demand'!N657+'FR-16(7)(v)-8 TRANS Energy'!N657+'FR-16(7)(v)-9 TRANS Cust'!N657+'FR-16(7)(v)-11 DIST Demand'!N657+'FR-16(7)(v)-12 DIST Energy'!N657+'FR-16(7)(v)-13 DIST Cust'!N657","v":0},{"$f":"'FR-16(7)(v)-3 PROD Demand'!O657+'FR-16(7)(v)-4 PROD Energy'!O657+'FR-16(7)(v)-5 PROD Cust'!O657+'FR-16(7)(v)-7 TRANS Demand'!O657+'FR-16(7)(v)-8 TRANS Energy'!O657+'FR-16(7)(v)-9 TRANS Cust'!O657+'FR-16(7)(v)-11 DIST Demand'!O657+'FR-16(7)(v)-12 DIST Energy'!O657+'FR-16(7)(v)-13 DIST Cust'!O657","v":0},{"$f":"'FR-16(7)(v)-3 PROD Demand'!P657+'FR-16(7)(v)-4 PROD Energy'!P657+'FR-16(7)(v)-5 PROD Cust'!P657+'FR-16(7)(v)-7 TRANS Demand'!P657+'FR-16(7)(v)-8 TRANS Energy'!P657+'FR-16(7)(v)-9 TRANS Cust'!P657+'FR-16(7)(v)-11 DIST Demand'!P657+'FR-16(7)(v)-12 DIST Energy'!P657+'FR-16(7)(v)-13 DIST Cust'!P657","v":0},{"$f":"'FR-16(7)(v)-3 PROD Demand'!Q657+'FR-16(7)(v)-4 PROD Energy'!Q657+'FR-16(7)(v)-5 PROD Cust'!Q657+'FR-16(7)(v)-7 TRANS Demand'!Q657+'FR-16(7)(v)-8 TRANS Energy'!Q657+'FR-16(7)(v)-9 TRANS Cust'!Q657+'FR-16(7)(v)-11 DIST Demand'!Q657+'FR-16(7)(v)-12 DIST Energy'!Q657+'FR-16(7)(v)-13 DIST Cust'!Q657","v":0},{"$f":"SUM(G657:Q657)","v":0},{"$f":"F657-R657","v":0}]
[29,null,{"$f":"'FR-16(7)(v)-1 Functional'!C658","v":"  TOTAL OTHER FEDERAL TAX CREDITS"},null,null,{"$f":"SUM(F656:F657)","v":0},{"$f":"SUM(G656:G657)","v":0},{"$f":"SUM(H656:H657)","v":0},{"$f":"SUM(I656:I657)","v":0},{"$f":"SUM(J656:J657)","v":0},0,0,0,0,0,0,{"$f":"SUM($Q$656:$Q$657)","v":0},{"$f":"SUM(R656:R657)","v":0},{"$f":"SUM(S656:S657)","v":0}]
[30]
[31,"PRELIMINARY SUMMARY"]
[32,null,{"$f":"'FR-16(7)(v)-1 Functional'!C661","v":"TOTAL FED DEF IT (410 & 411)"},null,null,{"$f":"F649","v":10163328},{"$f":"G649","v":3708850},{"$f":"H649","v":2880003},{"$f":"I649","v":15703},{"$f":"J649","v":48137},773,1682897,1160932,54990,545249,64423,{"$f":"$Q$649","v":1232},{"$f":"R649","v":10163189},{"$f":"S649","v":139}]
[33,null,{"$f":"'FR-16(7)(v)-1 Functional'!C662","v":"TOTAL AMORTIZED ITC & OTHER FEDERAL TAX CREDITS"},null,null,{"$f":"-F653-F658","v":-428},{"$f":"-G653-G658","v":-213},-110,0,{"$f":"-J653-J658","v":-2},0,-53,-35,-2,-11,-2,0,-428,0]
[34,null,{"$f":"'FR-16(7)(v)-1 Functional'!C663","v":"  TOTAL FEDERAL TAX ADJUSTMENTS"},null,null,{"$f":"SUM(F661:F662)","v":10162900},{"$f":"SUM(G661:G662)","v":3708637},{"$f":"SUM(H661:H662)","v":2879893},{"$f":"SUM(I661:I662)","v":15703},{"$f":"SUM(J661:J662)","v":48135},773,1682844,1160897,54988,545238,64421,{"$f":"SUM($Q$661:$Q$662)","v":1232},{"$f":"SUM(R661:R662)","v":10162761},{"$f":"SUM(S661:S662)","v":139}]
[35]
[36,"FEDERAL INCOME TAX COMPUTATION"]
[37,null,"RETURN ON RATE BASE",null,null,{"$f":"F433","v":63514771},{"$f":"G433","v":31416824},{"$f":"H433","v":16275026},{"$f":"I433","v":80246},{"$f":"J433","v":314751},4820,7904870,5220166,255798,1720370,314977,{"$f":"Q433","v":6924},{"$f":"R433","v":63514772},{"$f":"F666-R666","v":-1}]
[38,null,{"$f":"'FR-16(7)(v)-1 Functional'!C667","v":"NET DEDUCTIONS AND ADDITIONS"},null,null,{"$f":"-F641","v":-88776711},{"$f":"-G641","v":-42854065},{"$f":"-H641","v":-23110003},{"$f":"-I641","v":-113470},{"$f":"-J641","v":-443005},-6630,-11294959,-7463015,-364065,-2764001,-353793,{"$f":"-$Q$641","v":-9705},{"$f":"-R641","v":-88776711},{"$f":"F667-R667","v":0}]
[39,null,{"$f":"'FR-16(7)(v)-1 Functional'!C668","v":"TOTAL FEDERAL TAX ADJUSTMENTS"},null,null,{"$f":"F663","v":10162900},{"$f":"G663","v":3708637},{"$f":"H663","v":2879893},{"$f":"I663","v":15703},{"$f":"J663","v":48135},773,1682844,1160897,54988,545238,64421,{"$f":"$Q$663","v":1232},{"$f":"R663","v":10162761},{"$f":"F668-R668","v":139}]
[40,null,"TOTAL STATE PROV DEF IT (410 & 411)",null,null,{"$f":"F707","v":3665560},{"$f":"G707","v":2396352},{"$f":"H707","v":620988},{"$f":"I707","v":3303},{"$f":"J707","v":10592},239,303712,204895,10094,84435,30618,{"$f":"Q707","v":332},{"$f":"R707","v":3665560},{"$f":"F669-R669","v":0}]
[41,null,"RESERVED",null,null,{"$f":"F24","v":0},{"$f":"G24","v":0},{"$f":"H24","v":0},{"$f":"I24","v":0},{"$f":"J24","v":0},0,0,0,0,0,0,{"$f":"Q24","v":0},{"$f":"R24","v":0},{"$f":"F670-R670","v":0}]
[42,null,{"$f":"'FR-16(7)(v)-1 Functional'!C671","v":"  BASE FOR FIT COMPUATION"},null,null,{"$f":"SUM(F666:F670)","v":-11433480},{"$f":"SUM(G666:G670)","v":-5332252},{"$f":"SUM(H666:H670)","v":-3334096},{"$f":"SUM(I666:I670)","v":-14218},{"$f":"SUM(J666:J670)","v":-69527},-798,-1403533,-877057,-43185,-413958,56223,{"$f":"SUM($Q$666:$Q$670)","v":-1217},{"$f":"SUM(R666:R670)","v":-11433618},{"$f":"SUM(S666:S670)","v":138}]
[43]
[44,null,{"$f":"'FR-16(7)(v)-1 Functional'!C673","v":"FIT FACTOR K190/(1-K190)"},null,null,{"$f":"ROUND(FIT/(1-FIT),9)","v":0.26582278500000001},0.26582278500000001,0.26582278500000001,0.26582278500000001,0.26582278500000001,0.26582278500000001,0.26582278500000001,0.26582278500000001,0.26582278500000001,0.26582278500000001,0.26582278500000001,0.26582278500000001,null,{"$f":"ROUND(R815/(1-R815),9)","v":0.26582278500000001}]
[45,null,{"$f":"'FR-16(7)(v)-1 Functional'!C674","v":"PRELIM FED INCOME TAX"},null,null,{"$f":"'FR-16(7)(v)-1 Functional'!F674","v":-3039279},{"$f":"'FR-16(7)(v)-3 PROD Demand'!G674+'FR-16(7)(v)-4 PROD Energy'!G674+'FR-16(7)(v)-5 PROD Cust'!G674+'FR-16(7)(v)-7 TRANS Demand'!G674+'FR-16(7)(v)-8 TRANS Energy'!G674+'FR-16(7)(v)-9 TRANS Cust'!G674+'FR-16(7)(v)-11 DIST Demand'!G674+'FR-16(7)(v)-12 DIST Energy'!G674+'FR-16(7)(v)-13 DIST Cust'!G674","v":-1417430},{"$f":"'FR-16(7)(v)-3 PROD Demand'!H674+'FR-16(7)(v)-4 PROD Energy'!H674+'FR-16(7)(v)-5 PROD Cust'!H674+'FR-16(7)(v)-7 TRANS Demand'!H674+'FR-16(7)(v)-8 TRANS Energy'!H674+'FR-16(7)(v)-9 TRANS Cust'!H674+'FR-16(7)(v)-11 DIST Demand'!H674+'FR-16(7)(v)-12 DIST Energy'!H674+'FR-16(7)(v)-13 DIST Cust'!H674","v":-886279},{"$f":"'FR-16(7)(v)-3 PROD Demand'!I674+'FR-16(7)(v)-4 PROD Energy'!I674+'FR-16(7)(v)-5 PROD Cust'!I674+'FR-16(7)(v)-7 TRANS Demand'!I674+'FR-16(7)(v)-8 TRANS Energy'!I674+'FR-16(7)(v)-9 TRANS Cust'!I674+'FR-16(7)(v)-11 DIST Demand'!I674+'FR-16(7)(v)-12 DIST Energy'!I674+'FR-16(7)(v)-13 DIST Cust'!I674","v":-3780},{"$f":"'FR-16(7)(v)-3 PROD Demand'!J674+'FR-16(7)(v)-4 PROD Energy'!J674+'FR-16(7)(v)-5 PROD Cust'!J674+'FR-16(7)(v)-7 TRANS Demand'!J674+'FR-16(7)(v)-8 TRANS Energy'!J674+'FR-16(7)(v)-9 TRANS Cust'!J674+'FR-16(7)(v)-11 DIST Demand'!J674+'FR-16(7)(v)-12 DIST Energy'!J674+'FR-16(7)(v)-13 DIST Cust'!J674","v":-18482},{"$f":"'FR-16(7)(v)-3 PROD Demand'!K674+'FR-16(7)(v)-4 PROD Energy'!K674+'FR-16(7)(v)-5 PROD Cust'!K674+'FR-16(7)(v)-7 TRANS Demand'!K674+'FR-16(7)(v)-8 TRANS Energy'!K674+'FR-16(7)(v)-9 TRANS Cust'!K674+'FR-16(7)(v)-11 DIST Demand'!K674+'FR-16(7)(v)-12 DIST Energy'!K674+'FR-16(7)(v)-13 DIST Cust'!K674","v":-213},{"$f":"'FR-16(7)(v)-3 PROD Demand'!L674+'FR-16(7)(v)-4 PROD Energy'!L674+'FR-16(7)(v)-5 PROD Cust'!L674+'FR-16(7)(v)-7 TRANS Demand'!L674+'FR-16(7)(v)-8 TRANS Energy'!L674+'FR-16(7)(v)-9 TRANS Cust'!L674+'FR-16(7)(v)-11 DIST Demand'!L674+'FR-16(7)(v)-12 DIST Energy'!L674+'FR-16(7)(v)-13 DIST Cust'!L674","v":-373091},{"$f":"'FR-16(7)(v)-3 PROD Demand'!M674+'FR-16(7)(v)-4 PROD Energy'!M674+'FR-16(7)(v)-5 PROD Cust'!M674+'FR-16(7)(v)-7 TRANS Demand'!M674+'FR-16(7)(v)-8 TRANS Energy'!M674+'FR-16(7)(v)-9 TRANS Cust'!M674+'FR-16(7)(v)-11 DIST Demand'!M674+'FR-16(7)(v)-12 DIST Energy'!M674+'FR-16(7)(v)-13 DIST Cust'!M674","v":-233143},{"$f":"'FR-16(7)(v)-3 PROD Demand'!N674+'FR-16(7)(v)-4 PROD Energy'!N674+'FR-16(7)(v)-5 PROD Cust'!N674+'FR-16(7)(v)-7 TRANS Demand'!N674+'FR-16(7)(v)-8 TRANS Energy'!N674+'FR-16(7)(v)-9 TRANS Cust'!N674+'FR-16(7)(v)-11 DIST Demand'!N674+'FR-16(7)(v)-12 DIST Energy'!N674+'FR-16(7)(v)-13 DIST Cust'!N674","v":-11481},{"$f":"'FR-16(7)(v)-3 PROD Demand'!O674+'FR-16(7)(v)-4 PROD Energy'!O674+'FR-16(7)(v)-5 PROD Cust'!O674+'FR-16(7)(v)-7 TRANS Demand'!O674+'FR-16(7)(v)-8 TRANS Energy'!O674+'FR-16(7)(v)-9 TRANS Cust'!O674+'FR-16(7)(v)-11 DIST Demand'!O674+'FR-16(7)(v)-12 DIST Energy'!O674+'FR-16(7)(v)-13 DIST Cust'!O674","v":-110039},{"$f":"'FR-16(7)(v)-3 PROD Demand'!P674+'FR-16(7)(v)-4 PROD Energy'!P674+'FR-16(7)(v)-5 PROD Cust'!P674+'FR-16(7)(v)-7 TRANS Demand'!P674+'FR-16(7)(v)-8 TRANS Energy'!P674+'FR-16(7)(v)-9 TRANS Cust'!P674+'FR-16(7)(v)-11 DIST Demand'!P674+'FR-16(7)(v)-12 DIST Energy'!P674+'FR-16(7)(v)-13 DIST Cust'!P674","v":14946},{"$f":"'FR-16(7)(v)-3 PROD Demand'!Q674+'FR-16(7)(v)-4 PROD Energy'!Q674+'FR-16(7)(v)-5 PROD Cust'!Q674+'FR-16(7)(v)-7 TRANS Demand'!Q674+'FR-16(7)(v)-8 TRANS Energy'!Q674+'FR-16(7)(v)-9 TRANS Cust'!Q674+'FR-16(7)(v)-11 DIST Demand'!Q674+'FR-16(7)(v)-12 DIST Energy'!Q674+'FR-16(7)(v)-13 DIST Cust'!Q674","v":-324},{"$f":"SUM(G674:Q674)","v":-3039316},{"$f":"F674-R674","v":37}]
[46,null,{"$f":"'FR-16(7)(v)-1 Functional'!C675","v":"TOTAL FEDERAL TAX ADJUSTMENTS"},null,null,{"$f":"F663","v":10162900},{"$f":"G663","v":3708637},{"$f":"H663","v":2879893},{"$f":"I663","v":15703},{"$f":"J663","v":48135},773,1682844,1160897,54988,545238,64421,{"$f":"$Q$663","v":1232},{"$f":"R663","v":10162761},{"$f":"F675-R675","v":139}]
[47,null,{"$f":"'FR-16(7)(v)-1 Functional'!C676","v":"  NET FED INCOME TAX ALLOWABLE"},null,null,{"$f":"SUM(F674:F675)","v":7123621},{"$f":"SUM(G674:G675)","v":2291207},{"$f":"SUM(H674:H675)","v":1993614},{"$f":"SUM(I674:I675)","v":11923},{"$f":"SUM(J674:J675)","v":29653},560,1309753,927754,43507,435199,79367,{"$f":"SUM($Q$674:$Q$675)","v":908},{"$f":"SUM(R674:R675)","v":7123445},{"$f":"SUM(S674:S675)","v":176}]
[48]
[49,"INCOME TAX BASED ON RETURN"]
[50,"FEDERAL INCOME TAX PAYABLE"]
[51,null,{"$f":"'FR-16(7)(v)-1 Functional'!C680","v":"PRELIM FEDERAL INCOME TAX"},null,null,{"$f":"F674","v":-3039279},{"$f":"G674","v":-1417430},{"$f":"H674","v":-886279},{"$f":"I674","v":-3780},{"$f":"J674","v":-18482},-213,-373091,-233143,-11481,-110039,14946,{"$f":"$Q$674","v":-324},{"$f":"R674","v":-3039316},{"$f":"S674","v":37}]
[53,null,{"$f":"'FR-16(7)(v)-1 Functional'!C681","v":"  NET FED INCOME TAX PAYABLE"},null,null,{"$f":"SUM(F680:F680)","v":-3039279},{"$f":"SUM(G680:G680)","v":-1417430},{"$f":"SUM(H680:H680)","v":-886279},{"$f":"SUM(I680:I680)","v":-3780},{"$f":"SUM(J680:J680)","v":-18482},-213,-373091,-233143,-11481,-110039,14946,{"$f":"SUM($Q$680:$Q$680)","v":-324},{"$f":"SUM(R680:R680)","v":-3039316},{"$f":"SUM(S680:S680)","v":37}]
[]
[{"$f":"co_name","v":"DUKE ENERGY KENTUCKY, INC."},null,null,null,null,null,null,null,null,null,null,null,null,null,null,null,null,{"$f":"R1","v":"FR-16(7)(v)-14"}]
[{"$f":"$A$2","v":"TOTAL CLASS ALLOCATED - ELECTRIC COST OF SERVICE"},null,null,null,null,null,null,null,null,null,null,null,null,null,null,null,null,{"$f":"R2","v":"WITNESS RESPONSIBLE:"}]
[{"$f":"case_name","v":"CASE NO: 2019-00271"},null,null,null,null,null,null,null,null,null,null,null,null,null,null,null,null,{"$f":"Witness","v":"JAMES E. ZIOLKOWSKI"}]
[{"$f":"data_filing","v":"DATA: 12 MONTHS ACTUAL  & 0 MONTHS ESTIMATED"},null,null,null,null,null,null,null,null,null,null,null,null,null,null,null,null,{"$f":"\"PAGE \"&Pages2-2&\" OF \"&Pages2","v":"PAGE 13 OF 15"}]
[{"$f":"type","v":"TYPE OF FILING: \"X\" ORIGINAL   UPDATED    REVISED  "}]
[]
[null,null,null,null,null,{"$f":"F$7","v":"TOTAL"},null,{"$f":"H$7","v":"DS"},{"$f":"I$7","v":"GSFL"},{"$f":"J$7","v":"EH"},{"$f":"K$7","v":"SP"},"DT SEC","DT PRI","DP","TT",null,"OTHER"]
["LINE",null,null,null,null,{"$f":"F$8","v":"CLASS"},{"$f":"G$8","v":"RS"},{"$f":"H$8","v":"SECONDARY"},{"$f":"I$8","v":"SECONDARY"},{"$f":"J$8","v":"SECONDARY"},{"$f":"K$8","v":"SECONDARY"},"SECONDARY","PRIMARY","PRIMARY","TRANSMISSION","LT","WATER",{"$f":"R8","v":"TOTAL"},"ALL"]
["NO.","STATE INCOME TAX BASED ON RETURN",null,"Allo",null,{"$f":"F$9","v":"ALLOCATED"},{"$f":"G$9","v":"RESIDENTIAL"},{"$f":"H$9","v":"DISTRIBUTION"},{"$f":"I$9","v":"DISTRIBUTION"},{"$f":"J$9","v":"DISTRIBUTION"},{"$f":"K$9","v":"DISTRIBUTION"},"DISTRIBUTION","DISTRIBUTION","DISTRIBUTION","TIME OF DAY","LIGHTING","PUMPING",{"$f":"R9","v":"AT ISSUE"},"OTHER"]
[null,null,"Schedule 9.1",null,null,null,{"$f":"G$10","v":3},{"$f":"H$10","v":4},{"$f":"I$10","v":5},{"$f":"J$10","v":6},{"$f":"K$10","v":7},8,9,10,11,12,13,null," "]
[1,"DEDUCTIONS IN ADDITION TO Y871"]
[2,"KY TAXABLE INCOME ADJUSTMENT",null,"NP29",null,{"$f":"'FR-16(7)(v)-1 Functional'!F694","v":8555793},{"$f":"'FR-16(7)(v)-3 PROD Demand'!G694+'FR-16(7)(v)-4 PROD Energy'!G694+'FR-16(7)(v)-5 PROD Cust'!G694+'FR-16(7)(v)-7 TRANS Demand'!G694+'FR-16(7)(v)-8 TRANS Energy'!G694+'FR-16(7)(v)-9 TRANS Cust'!G694+'FR-16(7)(v)-11 DIST Demand'!G694+'FR-16(7)(v)-12 DIST Energy'!G694+'FR-16(7)(v)-13 DIST Cust'!G694","v":4226979},{"$f":"'FR-16(7)(v)-3 PROD Demand'!H694+'FR-16(7)(v)-4 PROD Energy'!H694+'FR-16(7)(v)-5 PROD Cust'!H694+'FR-16(7)(v)-7 TRANS Demand'!H694+'FR-16(7)(v)-8 TRANS Energy'!H694+'FR-16(7)(v)-9 TRANS Cust'!H694+'FR-16(7)(v)-11 DIST Demand'!H694+'FR-16(7)(v)-12 DIST Energy'!H694+'FR-16(7)(v)-13 DIST Cust'!H694","v":2200792},{"$f":"'FR-16(7)(v)-3 PROD Demand'!I694+'FR-16(7)(v)-4 PROD Energy'!I694+'FR-16(7)(v)-5 PROD Cust'!I694+'FR-16(7)(v)-7 TRANS Demand'!I694+'FR-16(7)(v)-8 TRANS Energy'!I694+'FR-16(7)(v)-9 TRANS Cust'!I694+'FR-16(7)(v)-11 DIST Demand'!I694+'FR-16(7)(v)-12 DIST Energy'!I694+'FR-16(7)(v)-13 DIST Cust'!I694","v":10819},{"$f":"'FR-16(7)(v)-3 PROD Demand'!J694+'FR-16(7)(v)-4 PROD Energy'!J694+'FR-16(7)(v)-5 PROD Cust'!J694+'FR-16(7)(v)-7 TRANS Demand'!J694+'FR-16(7)(v)-8 TRANS Energy'!J694+'FR-16(7)(v)-9 TRANS Cust'!J694+'FR-16(7)(v)-11 DIST Demand'!J694+'FR-16(7)(v)-12 DIST Energy'!J694+'FR-16(7)(v)-13 DIST Cust'!J694","v":42843},{"$f":"'FR-16(7)(v)-3 PROD Demand'!K694+'FR-16(7)(v)-4 PROD Energy'!K694+'FR-16(7)(v)-5 PROD Cust'!K694+'FR-16(7)(v)-7 TRANS Demand'!K694+'FR-16(7)(v)-8 TRANS Energy'!K694+'FR-16(7)(v)-9 TRANS Cust'!K694+'FR-16(7)(v)-11 DIST Demand'!K694+'FR-16(7)(v)-12 DIST Energy'!K694+'FR-16(7)(v)-13 DIST Cust'!K694","v":648},{"$f":"'FR-16(7)(v)-3 PROD Demand'!L694+'FR-16(7)(v)-4 PROD Energy'!L694+'FR-16(7)(v)-5 PROD Cust'!L694+'FR-16(7)(v)-7 TRANS Demand'!L694+'FR-16(7)(v)-8 TRANS Energy'!L694+'FR-16(7)(v)-9 TRANS Cust'!L694+'FR-16(7)(v)-11 DIST Demand'!L694+'FR-16(7)(v)-12 DIST Energy'!L694+'FR-16(7)(v)-13 DIST Cust'!L694","v":1066282},{"$f":"'FR-16(7)(v)-3 PROD Demand'!M694+'FR-16(7)(v)-4 PROD Energy'!M694+'FR-16(7)(v)-5 PROD Cust'!M694+'FR-16(7)(v)-7 TRANS Demand'!M694+'FR-16(7)(v)-8 TRANS Energy'!M694+'FR-16(7)(v)-9 TRANS Cust'!M694+'FR-16(7)(v)-11 DIST Demand'!M694+'FR-16(7)(v)-12 DIST Energy'!M694+'FR-16(7)(v)-13 DIST Cust'!M694","v":703302},{"$f":"'FR-16(7)(v)-3 PROD Demand'!N694+'FR-16(7)(v)-4 PROD Energy'!N694+'FR-16(7)(v)-5 PROD Cust'!N694+'FR-16(7)(v)-7 TRANS Demand'!N694+'FR-16(7)(v)-8 TRANS Energy'!N694+'FR-16(7)(v)-9 TRANS Cust'!N694+'FR-16(7)(v)-11 DIST Demand'!N694+'FR-16(7)(v)-12 DIST Energy'!N694+'FR-16(7)(v)-13 DIST Cust'!N694","v":34495},{"$f":"'FR-16(7)(v)-3 PROD Demand'!O694+'FR-16(7)(v)-4 PROD Energy'!O694+'FR-16(7)(v)-5 PROD Cust'!O694+'FR-16(7)(v)-7 TRANS Demand'!O694+'FR-16(7)(v)-8 TRANS Energy'!O694+'FR-16(7)(v)-9 TRANS Cust'!O694+'FR-16(7)(v)-11 DIST Demand'!O694+'FR-16(7)(v)-12 DIST Energy'!O694+'FR-16(7)(v)-13 DIST Cust'!O694","v":225309},{"$f":"'FR-16(7)(v)-3 PROD Demand'!P694+'FR-16(7)(v)-4 PROD Energy'!P694+'FR-16(7)(v)-5 PROD Cust'!P694+'FR-16(7)(v)-7 TRANS Demand'!P694+'FR-16(7)(v)-8 TRANS Energy'!P694+'FR-16(7)(v)-9 TRANS Cust'!P694+'FR-16(7)(v)-11 DIST Demand'!P694+'FR-16(7)(v)-12 DIST Energy'!P694+'FR-16(7)(v)-13 DIST Cust'!P694","v":43398},{"$f":"'FR-16(7)(v)-3 PROD Demand'!Q694+'FR-16(7)(v)-4 PROD Energy'!Q694+'FR-16(7)(v)-5 PROD Cust'!Q694+'FR-16(7)(v)-7 TRANS Demand'!Q694+'FR-16(7)(v)-8 TRANS Energy'!Q694+'FR-16(7)(v)-9 TRANS Cust'!Q694+'FR-16(7)(v)-11 DIST Demand'!Q694+'FR-16(7)(v)-12 DIST Energy'!Q694+'FR-16(7)(v)-13 DIST Cust'!Q694","v":926},{"$f":"SUM(G694:Q694)","v":8555793},{"$f":"F694-R694","v":0}]
[3,"RESERVED FOR FUTURE USE",null,"NP29",null,{"$f":"'FR-16(7)(v)-1 Functional'!F695","v":0},{"$f":"'FR-16(7)(v)-3 PROD Demand'!G695+'FR-16(7)(v)-4 PROD Energy'!G695+'FR-16(7)(v)-5 PROD Cust'!G695+'FR-16(7)(v)-7 TRANS Demand'!G695+'FR-16(7)(v)-8 TRANS Energy'!G695+'FR-16(7)(v)-9 TRANS Cust'!G695+'FR-16(7)(v)-11 DIST Demand'!G695+'FR-16(7)(v)-12 DIST Energy'!G695+'FR-16(7)(v)-13 DIST Cust'!G695","v":0},{"$f":"'FR-16(7)(v)-3 PROD Demand'!H695+'FR-16(7)(v)-4 PROD Energy'!H695+'FR-16(7)(v)-5 PROD Cust'!H695+'FR-16(7)(v)-7 TRANS Demand'!H695+'FR-16(7)(v)-8 TRANS Energy'!H695+'FR-16(7)(v)-9 TRANS Cust'!H695+'FR-16(7)(v)-11 DIST Demand'!H695+'FR-16(7)(v)-12 DIST Energy'!H695+'FR-16(7)(v)-13 DIST Cust'!H695","v":0},{"$f":"'FR-16(7)(v)-3 PROD Demand'!I695+'FR-16(7)(v)-4 PROD Energy'!I695+'FR-16(7)(v)-5 PROD Cust'!I695+'FR-16(7)(v)-7 TRANS Demand'!I695+'FR-16(7)(v)-8 TRANS Energy'!I695+'FR-16(7)(v)-9 TRANS Cust'!I695+'FR-16(7)(v)-11 DIST Demand'!I695+'FR-16(7)(v)-12 DIST Energy'!I695+'FR-16(7)(v)-13 DIST Cust'!I695","v":0},{"$f":"'FR-16(7)(v)-3 PROD Demand'!J695+'FR-16(7)(v)-4 PROD Energy'!J695+'FR-16(7)(v)-5 PROD Cust'!J695+'FR-16(7)(v)-7 TRANS Demand'!J695+'FR-16(7)(v)-8 TRANS Energy'!J695+'FR-16(7)(v)-9 TRANS Cust'!J695+'FR-16(7)(v)-11 DIST Demand'!J695+'FR-16(7)(v)-12 DIST Energy'!J695+'FR-16(7)(v)-13 DIST Cust'!J695","v":0},{"$f":"'FR-16(7)(v)-3 PROD Demand'!K695+'FR-16(7)(v)-4 PROD Energy'!K695+'FR-16(7)(v)-5 PROD Cust'!K695+'FR-16(7)(v)-7 TRANS Demand'!K695+'FR-16(7)(v)-8 TRANS Energy'!K695+'FR-16(7)(v)-9 TRANS Cust'!K695+'FR-16(7)(v)-11 DIST Demand'!K695+'FR-16(7)(v)-12 DIST Energy'!K695+'FR-16(7)(v)-13 DIST Cust'!K695","v":0},{"$f":"'FR-16(7)(v)-3 PROD Demand'!L695+'FR-16(7)(v)-4 PROD Energy'!L695+'FR-16(7)(v)-5 PROD Cust'!L695+'FR-16(7)(v)-7 TRANS Demand'!L695+'FR-16(7)(v)-8 TRANS Energy'!L695+'FR-16(7)(v)-9 TRANS Cust'!L695+'FR-16(7)(v)-11 DIST Demand'!L695+'FR-16(7)(v)-12 DIST Energy'!L695+'FR-16(7)(v)-13 DIST Cust'!L695","v":0},{"$f":"'FR-16(7)(v)-3 PROD Demand'!M695+'FR-16(7)(v)-4 PROD Energy'!M695+'FR-16(7)(v)-5 PROD Cust'!M695+'FR-16(7)(v)-7 TRANS Demand'!M695+'FR-16(7)(v)-8 TRANS Energy'!M695+'FR-16(7)(v)-9 TRANS Cust'!M695+'FR-16(7)(v)-11 DIST Demand'!M695+'FR-16(7)(v)-12 DIST Energy'!M695+'FR-16(7)(v)-13 DIST Cust'!M695","v":0},{"$f":"'FR-16(7)(v)-3 PROD Demand'!N695+'FR-16(7)(v)-4 PROD Energy'!N695+'FR-16(7)(v)-5 PROD Cust'!N695+'FR-16(7)(v)-7 TRANS Demand'!N695+'FR-16(7)(v)-8 TRANS Energy'!N695+'FR-16(7)(v)-9 TRANS Cust'!N695+'FR-16(7)(v)-11 DIST Demand'!N695+'FR-16(7)(v)-12 DIST Energy'!N695+'FR-16(7)(v)-13 DIST Cust'!N695","v":0},{"$f":"'FR-16(7)(v)-3 PROD Demand'!O695+'FR-16(7)(v)-4 PROD Energy'!O695+'FR-16(7)(v)-5 PROD Cust'!O695+'FR-16(7)(v)-7 TRANS Demand'!O695+'FR-16(7)(v)-8 TRANS Energy'!O695+'FR-16(7)(v)-9 TRANS Cust'!O695+'FR-16(7)(v)-11 DIST Demand'!O695+'FR-16(7)(v)-12 DIST Energy'!O695+'FR-16(7)(v)-13 DIST Cust'!O695","v":0},{"$f":"'FR-16(7)(v)-3 PROD Demand'!P695+'FR-16(7)(v)-4 PROD Energy'!P695+'FR-16(7)(v)-5 PROD Cust'!P695+'FR-16(7)(v)-7 TRANS Demand'!P695+'FR-16(7)(v)-8 TRANS Energy'!P695+'FR-16(7)(v)-9 TRANS Cust'!P695+'FR-16(7)(v)-11 DIST Demand'!P695+'FR-16(7)(v)-12 DIST Energy'!P695+'FR-16(7)(v)-13 DIST Cust'!P695","v":0},{"$f":"'FR-16(7)(v)-3 PROD Demand'!Q695+'FR-16(7)(v)-4 PROD Energy'!Q695+'FR-16(7)(v)-5 PROD Cust'!Q695+'FR-16(7)(v)-7 TRANS Demand'!Q695+'FR-16(7)(v)-8 TRANS Energy'!Q695+'FR-16(7)(v)-9 TRANS Cust'!Q695+'FR-16(7)(v)-11 DIST Demand'!Q695+'FR-16(7)(v)-12 DIST Energy'!Q695+'FR-16(7)(v)-13 DIST Cust'!Q695","v":0},{"$f":"SUM(G695:Q695)","v":0},{"$f":"F695-R695","v":0}]
[4,"  DEDUCTIONS IN ADD TO Y871",null,null,null,{"$f":"SUM(F694:F695)","v":8555793},{"$f":"SUM(G694:G695)","v":4226979},2200792,10819,{"$f":"SUM(J694:J695)","v":42843},648,1066282,703302,34495,225309,43398,926,8555793,0]
[5]
[6,"STATE INCOME TAX ADJUSTMENTS"]
[7,"STATE PROV DEF INC TAX (410 & 411)"]
[8,"OTHER DEFERRED INCOME TAXES - NET",null,"AG39",null,{"$f":"'FR-16(7)(v)-1 Functional'!F700","v":3665560},{"$f":"'FR-16(7)(v)-3 PROD Demand'!G700+'FR-16(7)(v)-4 PROD Energy'!G700+'FR-16(7)(v)-5 PROD Cust'!G700+'FR-16(7)(v)-7 TRANS Demand'!G700+'FR-16(7)(v)-8 TRANS Energy'!G700+'FR-16(7)(v)-9 TRANS Cust'!G700+'FR-16(7)(v)-11 DIST Demand'!G700+'FR-16(7)(v)-12 DIST Energy'!G700+'FR-16(7)(v)-13 DIST Cust'!G700","v":2396352},{"$f":"'FR-16(7)(v)-3 PROD Demand'!H700+'FR-16(7)(v)-4 PROD Energy'!H700+'FR-16(7)(v)-5 PROD Cust'!H700+'FR-16(7)(v)-7 TRANS Demand'!H700+'FR-16(7)(v)-8 TRANS Energy'!H700+'FR-16(7)(v)-9 TRANS Cust'!H700+'FR-16(7)(v)-11 DIST Demand'!H700+'FR-16(7)(v)-12 DIST Energy'!H700+'FR-16(7)(v)-13 DIST Cust'!H700","v":620988},{"$f":"'FR-16(7)(v)-3 PROD Demand'!I700+'FR-16(7)(v)-4 PROD Energy'!I700+'FR-16(7)(v)-5 PROD Cust'!I700+'FR-16(7)(v)-7 TRANS Demand'!I700+'FR-16(7)(v)-8 TRANS Energy'!I700+'FR-16(7)(v)-9 TRANS Cust'!I700+'FR-16(7)(v)-11 DIST Demand'!I700+'FR-16(7)(v)-12 DIST Energy'!I700+'FR-16(7)(v)-13 DIST Cust'!I700","v":3303},{"$f":"'FR-16(7)(v)-3 PROD Demand'!J700+'FR-16(7)(v)-4 PROD Energy'!J700+'FR-16(7)(v)-5 PROD Cust'!J700+'FR-16(7)(v)-7 TRANS Demand'!J700+'FR-16(7)(v)-8 TRANS Energy'!J700+'FR-16(7)(v)-9 TRANS Cust'!J700+'FR-16(7)(v)-11 DIST Demand'!J700+'FR-16(7)(v)-12 DIST Energy'!J700+'FR-16(7)(v)-13 DIST Cust'!J700","v":10592},{"$f":"'FR-16(7)(v)-3 PROD Demand'!K700+'FR-16(7)(v)-4 PROD Energy'!K700+'FR-16(7)(v)-5 PROD Cust'!K700+'FR-16(7)(v)-7 TRANS Demand'!K700+'FR-16(7)(v)-8 TRANS Energy'!K700+'FR-16(7)(v)-9 TRANS Cust'!K700+'FR-16(7)(v)-11 DIST Demand'!K700+'FR-16(7)(v)-12 DIST Energy'!K700+'FR-16(7)(v)-13 DIST Cust'!K700","v":239},{"$f":"'FR-16(7)(v)-3 PROD Demand'!L700+'FR-16(7)(v)-4 PROD Energy'!L700+'FR-16(7)(v)-5 PROD Cust'!L700+'FR-16(7)(v)-7 TRANS Demand'!L700+'FR-16(7)(v)-8 TRANS Energy'!L700+'FR-16(7)(v)-9 TRANS Cust'!L700+'FR-16(7)(v)-11 DIST Demand'!L700+'FR-16(7)(v)-12 DIST Energy'!L700+'FR-16(7)(v)-13 DIST Cust'!L700","v":303712},{"$f":"'FR-16(7)(v)-3 PROD Demand'!M700+'FR-16(7)(v)-4 PROD Energy'!M700+'FR-16(7)(v)-5 PROD Cust'!M700+'FR-16(7)(v)-7 TRANS Demand'!M700+'FR-16(7)(v)-8 TRANS Energy'!M700+'FR-16(7)(v)-9 TRANS Cust'!M700+'FR-16(7)(v)-11 DIST Demand'!M700+'FR-16(7)(v)-12 DIST Energy'!M700+'FR-16(7)(v)-13 DIST Cust'!M700","v":204895},{"$f":"'FR-16(7)(v)-3 PROD Demand'!N700+'FR-16(7)(v)-4 PROD Energy'!N700+'FR-16(7)(v)-5 PROD Cust'!N700+'FR-16(7)(v)-7 TRANS Demand'!N700+'FR-16(7)(v)-8 TRANS Energy'!N700+'FR-16(7)(v)-9 TRANS Cust'!N700+'FR-16(7)(v)-11 DIST Demand'!N700+'FR-16(7)(v)-12 DIST Energy'!N700+'FR-16(7)(v)-13 DIST Cust'!N700","v":10094},{"$f":"'FR-16(7)(v)-3 PROD Demand'!O700+'FR-16(7)(v)-4 PROD Energy'!O700+'FR-16(7)(v)-5 PROD Cust'!O700+'FR-16(7)(v)-7 TRANS Demand'!O700+'FR-16(7)(v)-8 TRANS Energy'!O700+'FR-16(7)(v)-9 TRANS Cust'!O700+'FR-16(7)(v)-11 DIST Demand'!O700+'FR-16(7)(v)-12 DIST Energy'!O700+'FR-16(7)(v)-13 DIST Cust'!O700","v":84435},{"$f":"'FR-16(7)(v)-3 PROD Demand'!P700+'FR-16(7)(v)-4 PROD Energy'!P700+'FR-16(7)(v)-5 PROD Cust'!P700+'FR-16(7)(v)-7 TRANS Demand'!P700+'FR-16(7)(v)-8 TRANS Energy'!P700+'FR-16(7)(v)-9 TRANS Cust'!P700+'FR-16(7)(v)-11 DIST Demand'!P700+'FR-16(7)(v)-12 DIST Energy'!P700+'FR-16(7)(v)-13 DIST Cust'!P700","v":30618},{"$f":"'FR-16(7)(v)-3 PROD Demand'!Q700+'FR-16(7)(v)-4 PROD Energy'!Q700+'FR-16(7)(v)-5 PROD Cust'!Q700+'FR-16(7)(v)-7 TRANS Demand'!Q700+'FR-16(7)(v)-8 TRANS Energy'!Q700+'FR-16(7)(v)-9 TRANS Cust'!Q700+'FR-16(7)(v)-11 DIST Demand'!Q700+'FR-16(7)(v)-12 DIST Energy'!Q700+'FR-16(7)(v)-13 DIST Cust'!Q700","v":332},{"$f":"SUM(G700:Q700)","v":3665560},{"$f":"F700-R700","v":0}]
[9,"  TOT STATE PROV DEF IT (410 & 411)",null,null,null,{"$f":"SUM(F700)","v":3665560},{"$f":"SUM(G700)","v":2396352},620988,3303,{"$f":"SUM(J700)","v":10592},239,303712,204895,10094,84435,30618,332,3665560,0]
[10]
[11,"OTHER SIT ADJUSTMENTS"]
[12,"CURRENT YEAR PAYABLE ADJUSTMENT",null,"NP29",null,{"$f":"'FR-16(7)(v)-1 Functional'!F704","v":0},{"$f":"'FR-16(7)(v)-3 PROD Demand'!G704+'FR-16(7)(v)-4 PROD Energy'!G704+'FR-16(7)(v)-5 PROD Cust'!G704+'FR-16(7)(v)-7 TRANS Demand'!G704+'FR-16(7)(v)-8 TRANS Energy'!G704+'FR-16(7)(v)-9 TRANS Cust'!G704+'FR-16(7)(v)-11 DIST Demand'!G704+'FR-16(7)(v)-12 DIST Energy'!G704+'FR-16(7)(v)-13 DIST Cust'!G704","v":0},{"$f":"'FR-16(7)(v)-3 PROD Demand'!H704+'FR-16(7)(v)-4 PROD Energy'!H704+'FR-16(7)(v)-5 PROD Cust'!H704+'FR-16(7)(v)-7 TRANS Demand'!H704+'FR-16(7)(v)-8 TRANS Energy'!H704+'FR-16(7)(v)-9 TRANS Cust'!H704+'FR-16(7)(v)-11 DIST Demand'!H704+'FR-16(7)(v)-12 DIST Energy'!H704+'FR-16(7)(v)-13 DIST Cust'!H704","v":0},{"$f":"'FR-16(7)(v)-3 PROD Demand'!I704+'FR-16(7)(v)-4 PROD Energy'!I704+'FR-16(7)(v)-5 PROD Cust'!I704+'FR-16(7)(v)-7 TRANS Demand'!I704+'FR-16(7)(v)-8 TRANS Energy'!I704+'FR-16(7)(v)-9 TRANS Cust'!I704+'FR-16(7)(v)-11 DIST Demand'!I704+'FR-16(7)(v)-12 DIST Energy'!I704+'FR-16(7)(v)-13 DIST Cust'!I704","v":0},{"$f":"'FR-16(7)(v)-3 PROD Demand'!J704+'FR-16(7)(v)-4 PROD Energy'!J704+'FR-16(7)(v)-5 PROD Cust'!J704+'FR-16(7)(v)-7 TRANS Demand'!J704+'FR-16(7)(v)-8 TRANS Energy'!J704+'FR-16(7)(v)-9 TRANS Cust'!J704+'FR-16(7)(v)-11 DIST Demand'!J704+'FR-16(7)(v)-12 DIST Energy'!J704+'FR-16(7)(v)-13 DIST Cust'!J704","v":0},{"$f":"'FR-16(7)(v)-3 PROD Demand'!K704+'FR-16(7)(v)-4 PROD Energy'!K704+'FR-16(7)(v)-5 PROD Cust'!K704+'FR-16(7)(v)-7 TRANS Demand'!K704+'FR-16(7)(v)-8 TRANS Energy'!K704+'FR-16(7)(v)-9 TRANS Cust'!K704+'FR-16(7)(v)-11 DIST Demand'!K704+'FR-16(7)(v)-12 DIST Energy'!K704+'FR-16(7)(v)-13 DIST Cust'!K704","v":0},{"$f":"'FR-16(7)(v)-3 PROD Demand'!L704+'FR-16(7)(v)-4 PROD Energy'!L704+'FR-16(7)(v)-5 PROD Cust'!L704+'FR-16(7)(v)-7 TRANS Demand'!L704+'FR-16(7)(v)-8 TRANS Energy'!L704+'FR-16(7)(v)-9 TRANS Cust'!L704+'FR-16(7)(v)-11 DIST Demand'!L704+'FR-16(7)(v)-12 DIST Energy'!L704+'FR-16(7)(v)-13 DIST Cust'!L704","v":0},{"$f":"'FR-16(7)(v)-3 PROD Demand'!M704+'FR-16(7)(v)-4 PROD Energy'!M704+'FR-16(7)(v)-5 PROD Cust'!M704+'FR-16(7)(v)-7 TRANS Demand'!M704+'FR-16(7)(v)-8 TRANS Energy'!M704+'FR-16(7)(v)-9 TRANS Cust'!M704+'FR-16(7)(v)-11 DIST Demand'!M704+'FR-16(7)(v)-12 DIST Energy'!M704+'FR-16(7)(v)-13 DIST Cust'!M704","v":0},{"$f":"'FR-16(7)(v)-3 PROD Demand'!N704+'FR-16(7)(v)-4 PROD Energy'!N704+'FR-16(7)(v)-5 PROD Cust'!N704+'FR-16(7)(v)-7 TRANS Demand'!N704+'FR-16(7)(v)-8 TRANS Energy'!N704+'FR-16(7)(v)-9 TRANS Cust'!N704+'FR-16(7)(v)-11 DIST Demand'!N704+'FR-16(7)(v)-12 DIST Energy'!N704+'FR-16(7)(v)-13 DIST Cust'!N704","v":0},{"$f":"'FR-16(7)(v)-3 PROD Demand'!O704+'FR-16(7)(v)-4 PROD Energy'!O704+'FR-16(7)(v)-5 PROD Cust'!O704+'FR-16(7)(v)-7 TRANS Demand'!O704+'FR-16(7)(v)-8 TRANS Energy'!O704+'FR-16(7)(v)-9 TRANS Cust'!O704+'FR-16(7)(v)-11 DIST Demand'!O704+'FR-16(7)(v)-12 DIST Energy'!O704+'FR-16(7)(v)-13 DIST Cust'!O704","v":0},{"$f":"'FR-16(7)(v)-3 PROD Demand'!P704+'FR-16(7)(v)-4 PROD Energy'!P704+'FR-16(7)(v)-5 PROD Cust'!P704+'FR-16(7)(v)-7 TRANS Demand'!P704+'FR-16(7)(v)-8 TRANS Energy'!P704+'FR-16(7)(v)-9 TRANS Cust'!P704+'FR-16(7)(v)-11 DIST Demand'!P704+'FR-16(7)(v)-12 DIST Energy'!P704+'FR-16(7)(v)-13 DIST Cust'!P704","v":0},{"$f":"'FR-16(7)(v)-3 PROD Demand'!Q704+'FR-16(7)(v)-4 PROD Energy'!Q704+'FR-16(7)(v)-5 PROD Cust'!Q704+'FR-16(7)(v)-7 TRANS Demand'!Q704+'FR-16(7)(v)-8 TRANS Energy'!Q704+'FR-16(7)(v)-9 TRANS Cust'!Q704+'FR-16(7)(v)-11 DIST Demand'!Q704+'FR-16(7)(v)-12 DIST Energy'!Q704+'FR-16(7)(v)-13 DIST Cust'!Q704","v":0},{"$f":"SUM(G704:Q704)","v":0},{"$f":"F704-R704","v":0}]
[13,"  OTHER SIT ADJUSMENTS",null,null,null,{"$f":"SUM(F704)","v":0},{"$f":"SUM(G704)","v":0},{"$f":"SUM(H704)","v":0},{"$f":"SUM(I704)","v":0},{"$f":"SUM(J704)","v":0},0,0,0,0,0,0,{"$f":"SUM(Q704)","v":0},{"$f":"SUM(R704)","v":0},{"$f":"SUM(S704)","v":0}]
[14]
[15,"TOTAL STATE INC TAX ADJUSTMENT",null,null,null,{"$f":"F705+F701","v":3665560},{"$f":"G705+G701","v":2396352},{"$f":"H705+H701","v":620988},{"$f":"I705+I701","v":3303},{"$f":"J705+J701","v":10592},239,303712,204895,10094,84435,30618,{"$f":"Q705+Q701","v":332},{"$f":"R705+R701","v":3665560},{"$f":"S705+S701","v":0}]
[16]
[17,"INCOME TAX BASED ON RETURN"]
[18,"SUMMARY OF SIT CALCULATION"]
[19,"RETURN ON RATE BASE",null,null,null,{"$f":"F433","v":63514771},{"$f":"G433","v":31416824},{"$f":"H433","v":16275026},{"$f":"I433","v":80246},{"$f":"J433","v":314751},4820,7904870,5220166,255798,1720370,314977,{"$f":"Q433","v":6924},{"$f":"R433","v":63514772},{"$f":"S433","v":-1}]
[20,"NET FED INCOME TAX ALLOWABLE",null,null,null,{"$f":"F676","v":7123621},{"$f":"G676","v":2291207},1993614,11923,29653,560,1309753,927754,43507,435199,79367,908,{"$f":"R676","v":7123445},{"$f":"S676","v":176}]
[21,"NET FED. DED. AND ADDITIONS",null,null,null,{"$f":"-F641","v":-88776711},{"$f":"-G641","v":-42854065},{"$f":"-H641","v":-23110003},{"$f":"-I641","v":-113470},{"$f":"-J641","v":-443005},-6630,-11294959,-7463015,-364065,-2764001,-353793,{"$f":"-Q641","v":-9705},{"$f":"-R641","v":-88776711},{"$f":"-S641","v":0}]
[22,"DEDUCTIONS IN ADD TO Y871",null,null,null,{"$f":"-F696","v":-8555793},{"$f":"-G696","v":-4226979},{"$f":"-H696","v":-2200792},{"$f":"-I696","v":-10819},{"$f":"-J696","v":-42843},-648,-1066282,-703302,-34495,-225309,-43398,{"$f":"-Q696","v":-926},{"$f":"-R696","v":-8555793},{"$f":"-S696","v":0}]
[23,"RESERVED",null,null,null,{"$f":"F24","v":0},{"$f":"G24","v":0},{"$f":"H24","v":0},{"$f":"I24","v":0},{"$f":"J24","v":0},0,0,0,0,0,0,{"$f":"Q24","v":0},{"$f":"R24","v":0},{"$f":"S24","v":0}]
[24,"TOTAL STATE INC TAX ADJ",null,null,null,{"$f":"F707","v":3665560},{"$f":"G707","v":2396352},{"$f":"H707","v":620988},{"$f":"I707","v":3303},{"$f":"J707","v":10592},239,303712,204895,10094,84435,30618,{"$f":"Q707","v":332},{"$f":"R707","v":3665560},{"$f":"S707","v":0}]
[25,"  BASE FOR SIT COMPUTATION",null,null,null,{"$f":"SUM(F711:F716)","v":-23028552},{"$f":"SUM(G711:G716)","v":-10976661},{"$f":"SUM(H711:H716)","v":-6421167},{"$f":"SUM(I711:I716)","v":-28817},{"$f":"SUM(J711:J716)","v":-130852},-1659,-2842906,-1813502,-89161,-749306,27771,{"$f":"SUM(Q711:Q716)","v":-2467},{"$f":"SUM(R711:R716)","v":-23028727},{"$f":"SUM(S711:S716)","v":175}]
[26]
[27,"SIT FACTOR K192/(1-K192)",null,null,null,{"$f":"ROUND(SIT/(1-SIT),8)","v":5.2282660000000002E-2},5.2282660000000002E-2,5.2282660000000002E-2,5.2282660000000002E-2,5.2282660000000002E-2,5.2282660000000002E-2,5.2282660000000002E-2,5.2282660000000002E-2,5.2282660000000002E-2,5.2282660000000002E-2,5.2282660000000002E-2,5.2282660000000002E-2,5.2282660000000002E-2,5.2282660000000002E-2]
[28,"PRELIMINARY STATE INCOME TAX",null,null,null,{"$f":"'FR-16(7)(v)-1 Functional'!F720","v":-1203994},{"$f":"'FR-16(7)(v)-3 PROD Demand'!G720+'FR-16(7)(v)-4 PROD Energy'!G720+'FR-16(7)(v)-5 PROD Cust'!G720+'FR-16(7)(v)-7 TRANS Demand'!G720+'FR-16(7)(v)-8 TRANS Energy'!G720+'FR-16(7)(v)-9 TRANS Cust'!G720+'FR-16(7)(v)-11 DIST Demand'!G720+'FR-16(7)(v)-12 DIST Energy'!G720+'FR-16(7)(v)-13 DIST Cust'!G720","v":-573888},{"$f":"'FR-16(7)(v)-3 PROD Demand'!H720+'FR-16(7)(v)-4 PROD Energy'!H720+'FR-16(7)(v)-5 PROD Cust'!H720+'FR-16(7)(v)-7 TRANS Demand'!H720+'FR-16(7)(v)-8 TRANS Energy'!H720+'FR-16(7)(v)-9 TRANS Cust'!H720+'FR-16(7)(v)-11 DIST Demand'!H720+'FR-16(7)(v)-12 DIST Energy'!H720+'FR-16(7)(v)-13 DIST Cust'!H720","v":-335717},{"$f":"'FR-16(7)(v)-3 PROD Demand'!I720+'FR-16(7)(v)-4 PROD Energy'!I720+'FR-16(7)(v)-5 PROD Cust'!I720+'FR-16(7)(v)-7 TRANS Demand'!I720+'FR-16(7)(v)-8 TRANS Energy'!I720+'FR-16(7)(v)-9 TRANS Cust'!I720+'FR-16(7)(v)-11 DIST Demand'!I720+'FR-16(7)(v)-12 DIST Energy'!I720+'FR-16(7)(v)-13 DIST Cust'!I720","v":-1507},{"$f":"'FR-16(7)(v)-3 PROD Demand'!J720+'FR-16(7)(v)-4 PROD Energy'!J720+'FR-16(7)(v)-5 PROD Cust'!J720+'FR-16(7)(v)-7 TRANS Demand'!J720+'FR-16(7)(v)-8 TRANS Energy'!J720+'FR-16(7)(v)-9 TRANS Cust'!J720+'FR-16(7)(v)-11 DIST Demand'!J720+'FR-16(7)(v)-12 DIST Energy'!J720+'FR-16(7)(v)-13 DIST Cust'!J720","v":-6842},{"$f":"'FR-16(7)(v)-3 PROD Demand'!K720+'FR-16(7)(v)-4 PROD Energy'!K720+'FR-16(7)(v)-5 PROD Cust'!K720+'FR-16(7)(v)-7 TRANS Demand'!K720+'FR-16(7)(v)-8 TRANS Energy'!K720+'FR-16(7)(v)-9 TRANS Cust'!K720+'FR-16(7)(v)-11 DIST Demand'!K720+'FR-16(7)(v)-12 DIST Energy'!K720+'FR-16(7)(v)-13 DIST Cust'!K720","v":-87},{"$f":"'FR-16(7)(v)-3 PROD Demand'!L720+'FR-16(7)(v)-4 PROD Energy'!L720+'FR-16(7)(v)-5 PROD Cust'!L720+'FR-16(7)(v)-7 TRANS Demand'!L720+'FR-16(7)(v)-8 TRANS Energy'!L720+'FR-16(7)(v)-9 TRANS Cust'!L720+'FR-16(7)(v)-11 DIST Demand'!L720+'FR-16(7)(v)-12 DIST Energy'!L720+'FR-16(7)(v)-13 DIST Cust'!L720","v":-148635},{"$f":"'FR-16(7)(v)-3 PROD Demand'!M720+'FR-16(7)(v)-4 PROD Energy'!M720+'FR-16(7)(v)-5 PROD Cust'!M720+'FR-16(7)(v)-7 TRANS Demand'!M720+'FR-16(7)(v)-8 TRANS Energy'!M720+'FR-16(7)(v)-9 TRANS Cust'!M720+'FR-16(7)(v)-11 DIST Demand'!M720+'FR-16(7)(v)-12 DIST Energy'!M720+'FR-16(7)(v)-13 DIST Cust'!M720","v":-94814},{"$f":"'FR-16(7)(v)-3 PROD Demand'!N720+'FR-16(7)(v)-4 PROD Energy'!N720+'FR-16(7)(v)-5 PROD Cust'!N720+'FR-16(7)(v)-7 TRANS Demand'!N720+'FR-16(7)(v)-8 TRANS Energy'!N720+'FR-16(7)(v)-9 TRANS Cust'!N720+'FR-16(7)(v)-11 DIST Demand'!N720+'FR-16(7)(v)-12 DIST Energy'!N720+'FR-16(7)(v)-13 DIST Cust'!N720","v":-4662},{"$f":"'FR-16(7)(v)-3 PROD Demand'!O720+'FR-16(7)(v)-4 PROD Energy'!O720+'FR-16(7)(v)-5 PROD Cust'!O720+'FR-16(7)(v)-7 TRANS Demand'!O720+'FR-16(7)(v)-8 TRANS Energy'!O720+'FR-16(7)(v)-9 TRANS Cust'!O720+'FR-16(7)(v)-11 DIST Demand'!O720+'FR-16(7)(v)-12 DIST Energy'!O720+'FR-16(7)(v)-13 DIST Cust'!O720","v":-39175},{"$f":"'FR-16(7)(v)-3 PROD Demand'!P720+'FR-16(7)(v)-4 PROD Energy'!P720+'FR-16(7)(v)-5 PROD Cust'!P720+'FR-16(7)(v)-7 TRANS Demand'!P720+'FR-16(7)(v)-8 TRANS Energy'!P720+'FR-16(7)(v)-9 TRANS Cust'!P720+'FR-16(7)(v)-11 DIST Demand'!P720+'FR-16(7)(v)-12 DIST Energy'!P720+'FR-16(7)(v)-13 DIST Cust'!P720","v":1453},{"$f":"'FR-16(7)(v)-3 PROD Demand'!Q720+'FR-16(7)(v)-4 PROD Energy'!Q720+'FR-16(7)(v)-5 PROD Cust'!Q720+'FR-16(7)(v)-7 TRANS Demand'!Q720+'FR-16(7)(v)-8 TRANS Energy'!Q720+'FR-16(7)(v)-9 TRANS Cust'!Q720+'FR-16(7)(v)-11 DIST Demand'!Q720+'FR-16(7)(v)-12 DIST Energy'!Q720+'FR-16(7)(v)-13 DIST Cust'!Q720","v":-129},{"$f":"ROUND(R717*R719,0)","v":-1204003},{"$f":"ROUND(S717*S719,0)","v":9}]
[29,"TOTAL STATE INCOME TAX ADJ.",null,null,null,{"$f":"F707","v":3665560},2396352,620988,3303,{"$f":"J707","v":10592},239,303712,204895,10094,84435,30618,332,3665560,{"$f":"S707","v":0}]
[30,"  NET STATE INC TAX ALLOWABLE",null,null,null,{"$f":"F721+F720","v":2461566},1822464,285271,1796,{"$f":"J721+J720","v":3750},152,155077,110081,5432,45260,32071,203,2461557,{"$f":"S721+S720","v":9}]
[31]
[32,"STATE INCOME TAX PAYABLE"]
[33,"PRELIMINARY STATE INCOME TAX",null,null,null,{"$f":"F720","v":-1203994},{"$f":"G720","v":-573888},{"$f":"H720","v":-335717},{"$f":"I720","v":-1507},{"$f":"J720","v":-6842},-87,-148635,-94814,-4662,-39175,1453,{"$f":"Q720","v":-129},{"$f":"R720","v":-1204003},{"$f":"S720","v":9}]
[34,"OTHER SIT ADJUSTMENTS",null,null,null,{"$f":"F705","v":0},{"$f":"G705","v":0},{"$f":"H705","v":0},{"$f":"I705","v":0},{"$f":"J705","v":0},0,0,0,0,0,0,{"$f":"Q705","v":0},{"$f":"R705","v":0},{"$f":"S705","v":0}]
[35,"  NET STATE INCOME TAX PAYABLE",null,null,null,{"$f":"F725+F726","v":-1203994},-573888,-335717,-1507,{"$f":"J725+J726","v":-6842},-87,-148635,-94814,-4662,-39175,1453,-129,-1204003,{"$f":"S725+S726","v":9}]
[36]
[37,"COMPOSITE TAX RATE",null,null,null,{"$f":"(SIT*(1-FIT))+((1-SIT)*(1-FIT)*RevTax)+FIT","v":0.24925115},0.24925115,0.24925115,0.24925115,0.24925115,0.24925115,0.24925115,0.24925115,0.24925115,0.24925115,0.24925115,0.24925115,0.24925115,0.24925115]
[]
[{"$f":"co_name","v":"DUKE ENERGY KENTUCKY, INC."},null,null,null,null,null,null,null,null,null,null,null,null,null,null,null,null,{"$f":"R1","v":"FR-16(7)(v)-14"}]
[{"$f":"$A$2","v":"TOTAL CLASS ALLOCATED - ELECTRIC COST OF SERVICE"},null,null,null,null,null,null,null,null,null,null,null,null,null,null,null,null,{"$f":"R2","v":"WITNESS RESPONSIBLE:"}]
[{"$f":"case_name","v":"CASE NO: 2019-00271"},null,null,null,null,null,null,null,null,null,null,null,null,null,null,null,null,{"$f":"Witness","v":"JAMES E. ZIOLKOWSKI"}]
[{"$f":"data_filing","v":"DATA: 12 MONTHS ACTUAL  & 0 MONTHS ESTIMATED"},null,null,null,null,null,null,null,null,null,null,null,null,null,null,null,null,{"$f":"\"PAGE \"&Pages2-1&\" OF \"&Pages2","v":"PAGE 14 OF 15"}]
[{"$f":"type","v":"TYPE OF FILING: \"X\" ORIGINAL   UPDATED    REVISED  "}]
[]
[null,null,null,null,null,{"$f":"F$7","v":"TOTAL"},null,{"$f":"H$7","v":"DS"},{"$f":"I$7","v":"GSFL"},{"$f":"J$7","v":"EH"},{"$f":"K$7","v":"SP"},"DT SEC","DT PRI","DP","TT",null,"OTHER"]
["LINE",null,null,null,null,{"$f":"F$8","v":"CLASS"},{"$f":"G$8","v":"RS"},{"$f":"H$8","v":"SECONDARY"},{"$f":"I$8","v":"SECONDARY"},{"$f":"J$8","v":"SECONDARY"},{"$f":"K$8","v":"SECONDARY"},"SECONDARY","PRIMARY","PRIMARY","TRANSMISSION","LT","WATER",{"$f":"R8","v":"TOTAL"},"ALL"]
["NO.","COST OF SERVICE COMPUTATION",null,"ALLO",null,{"$f":"F$9","v":"ALLOCATED"},{"$f":"G$9","v":"RESIDENTIAL"},{"$f":"H$9","v":"DISTRIBUTION"},{"$f":"I$9","v":"DISTRIBUTION"},{"$f":"J$9","v":"DISTRIBUTION"},{"$f":"K$9","v":"DISTRIBUTION"},"DISTRIBUTION","DISTRIBUTION","DISTRIBUTION","TIME OF DAY","LIGHTING","PUMPING",{"$f":"R9","v":"AT ISSUE"},"OTHER"]
[null,null,"Schedule 10",null,null,null,{"$f":"G$10","v":3},{"$f":"H$10","v":4},{"$f":"I$10","v":5},{"$f":"J$10","v":6},{"$f":"K$10","v":7},8,9,10,11,12,13,null," "]
[1,"OTHER OPERATING REVENUES"]
[2,null,{"$f":"'FR-16(7)(v)-1 Functional'!C742","v":"MISC SERVICE REVENUE"},{"$f":"'FR-16(7)(v)-1 Functional'!D742","v":"D249"},null,{"$f":"'FR-16(7)(v)-1 Functional'!F742","v":252512},{"$f":"'FR-16(7)(v)-3 PROD Demand'!G742+'FR-16(7)(v)-4 PROD Energy'!G742+'FR-16(7)(v)-5 PROD Cust'!G742+'FR-16(7)(v)-7 TRANS Demand'!G742+'FR-16(7)(v)-8 TRANS Energy'!G742+'FR-16(7)(v)-9 TRANS Cust'!G742+'FR-16(7)(v)-11 DIST Demand'!G742+'FR-16(7)(v)-12 DIST Energy'!G742+'FR-16(7)(v)-13 DIST Cust'!G742","v":142223},{"$f":"'FR-16(7)(v)-3 PROD Demand'!H742+'FR-16(7)(v)-4 PROD Energy'!H742+'FR-16(7)(v)-5 PROD Cust'!H742+'FR-16(7)(v)-7 TRANS Demand'!H742+'FR-16(7)(v)-8 TRANS Energy'!H742+'FR-16(7)(v)-9 TRANS Cust'!H742+'FR-16(7)(v)-11 DIST Demand'!H742+'FR-16(7)(v)-12 DIST Energy'!H742+'FR-16(7)(v)-13 DIST Cust'!H742","v":59711},{"$f":"'FR-16(7)(v)-3 PROD Demand'!I742+'FR-16(7)(v)-4 PROD Energy'!I742+'FR-16(7)(v)-5 PROD Cust'!I742+'FR-16(7)(v)-7 TRANS Demand'!I742+'FR-16(7)(v)-8 TRANS Energy'!I742+'FR-16(7)(v)-9 TRANS Cust'!I742+'FR-16(7)(v)-11 DIST Demand'!I742+'FR-16(7)(v)-12 DIST Energy'!I742+'FR-16(7)(v)-13 DIST Cust'!I742","v":303},{"$f":"'FR-16(7)(v)-3 PROD Demand'!J742+'FR-16(7)(v)-4 PROD Energy'!J742+'FR-16(7)(v)-5 PROD Cust'!J742+'FR-16(7)(v)-7 TRANS Demand'!J742+'FR-16(7)(v)-8 TRANS Energy'!J742+'FR-16(7)(v)-9 TRANS Cust'!J742+'FR-16(7)(v)-11 DIST Demand'!J742+'FR-16(7)(v)-12 DIST Energy'!J742+'FR-16(7)(v)-13 DIST Cust'!J742","v":1234},{"$f":"'FR-16(7)(v)-3 PROD Demand'!K742+'FR-16(7)(v)-4 PROD Energy'!K742+'FR-16(7)(v)-5 PROD Cust'!K742+'FR-16(7)(v)-7 TRANS Demand'!K742+'FR-16(7)(v)-8 TRANS Energy'!K742+'FR-16(7)(v)-9 TRANS Cust'!K742+'FR-16(7)(v)-11 DIST Demand'!K742+'FR-16(7)(v)-12 DIST Energy'!K742+'FR-16(7)(v)-13 DIST Cust'!K742","v":20},{"$f":"'FR-16(7)(v)-3 PROD Demand'!L742+'FR-16(7)(v)-4 PROD Energy'!L742+'FR-16(7)(v)-5 PROD Cust'!L742+'FR-16(7)(v)-7 TRANS Demand'!L742+'FR-16(7)(v)-8 TRANS Energy'!L742+'FR-16(7)(v)-9 TRANS Cust'!L742+'FR-16(7)(v)-11 DIST Demand'!L742+'FR-16(7)(v)-12 DIST Energy'!L742+'FR-16(7)(v)-13 DIST Cust'!L742","v":27318},{"$f":"'FR-16(7)(v)-3 PROD Demand'!M742+'FR-16(7)(v)-4 PROD Energy'!M742+'FR-16(7)(v)-5 PROD Cust'!M742+'FR-16(7)(v)-7 TRANS Demand'!M742+'FR-16(7)(v)-8 TRANS Energy'!M742+'FR-16(7)(v)-9 TRANS Cust'!M742+'FR-16(7)(v)-11 DIST Demand'!M742+'FR-16(7)(v)-12 DIST Energy'!M742+'FR-16(7)(v)-13 DIST Cust'!M742","v":17899},{"$f":"'FR-16(7)(v)-3 PROD Demand'!N742+'FR-16(7)(v)-4 PROD Energy'!N742+'FR-16(7)(v)-5 PROD Cust'!N742+'FR-16(7)(v)-7 TRANS Demand'!N742+'FR-16(7)(v)-8 TRANS Energy'!N742+'FR-16(7)(v)-9 TRANS Cust'!N742+'FR-16(7)(v)-11 DIST Demand'!N742+'FR-16(7)(v)-12 DIST Energy'!N742+'FR-16(7)(v)-13 DIST Cust'!N742","v":906},{"$f":"'FR-16(7)(v)-3 PROD Demand'!O742+'FR-16(7)(v)-4 PROD Energy'!O742+'FR-16(7)(v)-5 PROD Cust'!O742+'FR-16(7)(v)-7 TRANS Demand'!O742+'FR-16(7)(v)-8 TRANS Energy'!O742+'FR-16(7)(v)-9 TRANS Cust'!O742+'FR-16(7)(v)-11 DIST Demand'!O742+'FR-16(7)(v)-12 DIST Energy'!O742+'FR-16(7)(v)-13 DIST Cust'!O742","v":7},{"$f":"'FR-16(7)(v)-3 PROD Demand'!P742+'FR-16(7)(v)-4 PROD Energy'!P742+'FR-16(7)(v)-5 PROD Cust'!P742+'FR-16(7)(v)-7 TRANS Demand'!P742+'FR-16(7)(v)-8 TRANS Energy'!P742+'FR-16(7)(v)-9 TRANS Cust'!P742+'FR-16(7)(v)-11 DIST Demand'!P742+'FR-16(7)(v)-12 DIST Energy'!P742+'FR-16(7)(v)-13 DIST Cust'!P742","v":2865},{"$f":"'FR-16(7)(v)-3 PROD Demand'!Q742+'FR-16(7)(v)-4 PROD Energy'!Q742+'FR-16(7)(v)-5 PROD Cust'!Q742+'FR-16(7)(v)-7 TRANS Demand'!Q742+'FR-16(7)(v)-8 TRANS Energy'!Q742+'FR-16(7)(v)-9 TRANS Cust'!Q742+'FR-16(7)(v)-11 DIST Demand'!Q742+'FR-16(7)(v)-12 DIST Energy'!Q742+'FR-16(7)(v)-13 DIST Cust'!Q742","v":26},{"$f":"SUM(G742:Q742)","v":252512},{"$f":"F742-R742","v":0}]
[3,null,{"$f":"'FR-16(7)(v)-1 Functional'!C743","v":"INTERDEPARTMENTAL"},{"$f":"'FR-16(7)(v)-1 Functional'!D743","v":"K902"},null,{"$f":"'FR-16(7)(v)-1 Functional'!F743","v":0},{"$f":"'FR-16(7)(v)-3 PROD Demand'!G743+'FR-16(7)(v)-4 PROD Energy'!G743+'FR-16(7)(v)-5 PROD Cust'!G743+'FR-16(7)(v)-7 TRANS Demand'!G743+'FR-16(7)(v)-8 TRANS Energy'!G743+'FR-16(7)(v)-9 TRANS Cust'!G743+'FR-16(7)(v)-11 DIST Demand'!G743+'FR-16(7)(v)-12 DIST Energy'!G743+'FR-16(7)(v)-13 DIST Cust'!G743","v":0},{"$f":"'FR-16(7)(v)-3 PROD Demand'!H743+'FR-16(7)(v)-4 PROD Energy'!H743+'FR-16(7)(v)-5 PROD Cust'!H743+'FR-16(7)(v)-7 TRANS Demand'!H743+'FR-16(7)(v)-8 TRANS Energy'!H743+'FR-16(7)(v)-9 TRANS Cust'!H743+'FR-16(7)(v)-11 DIST Demand'!H743+'FR-16(7)(v)-12 DIST Energy'!H743+'FR-16(7)(v)-13 DIST Cust'!H743","v":0},{"$f":"'FR-16(7)(v)-3 PROD Demand'!I743+'FR-16(7)(v)-4 PROD Energy'!I743+'FR-16(7)(v)-5 PROD Cust'!I743+'FR-16(7)(v)-7 TRANS Demand'!I743+'FR-16(7)(v)-8 TRANS Energy'!I743+'FR-16(7)(v)-9 TRANS Cust'!I743+'FR-16(7)(v)-11 DIST Demand'!I743+'FR-16(7)(v)-12 DIST Energy'!I743+'FR-16(7)(v)-13 DIST Cust'!I743","v":0},{"$f":"'FR-16(7)(v)-3 PROD Demand'!J743+'FR-16(7)(v)-4 PROD Energy'!J743+'FR-16(7)(v)-5 PROD Cust'!J743+'FR-16(7)(v)-7 TRANS Demand'!J743+'FR-16(7)(v)-8 TRANS Energy'!J743+'FR-16(7)(v)-9 TRANS Cust'!J743+'FR-16(7)(v)-11 DIST Demand'!J743+'FR-16(7)(v)-12 DIST Energy'!J743+'FR-16(7)(v)-13 DIST Cust'!J743","v":0},{"$f":"'FR-16(7)(v)-3 PROD Demand'!K743+'FR-16(7)(v)-4 PROD Energy'!K743+'FR-16(7)(v)-5 PROD Cust'!K743+'FR-16(7)(v)-7 TRANS Demand'!K743+'FR-16(7)(v)-8 TRANS Energy'!K743+'FR-16(7)(v)-9 TRANS Cust'!K743+'FR-16(7)(v)-11 DIST Demand'!K743+'FR-16(7)(v)-12 DIST Energy'!K743+'FR-16(7)(v)-13 DIST Cust'!K743","v":0},{"$f":"'FR-16(7)(v)-3 PROD Demand'!L743+'FR-16(7)(v)-4 PROD Energy'!L743+'FR-16(7)(v)-5 PROD Cust'!L743+'FR-16(7)(v)-7 TRANS Demand'!L743+'FR-16(7)(v)-8 TRANS Energy'!L743+'FR-16(7)(v)-9 TRANS Cust'!L743+'FR-16(7)(v)-11 DIST Demand'!L743+'FR-16(7)(v)-12 DIST Energy'!L743+'FR-16(7)(v)-13 DIST Cust'!L743","v":0},{"$f":"'FR-16(7)(v)-3 PROD Demand'!M743+'FR-16(7)(v)-4 PROD Energy'!M743+'FR-16(7)(v)-5 PROD Cust'!M743+'FR-16(7)(v)-7 TRANS Demand'!M743+'FR-16(7)(v)-8 TRANS Energy'!M743+'FR-16(7)(v)-9 TRANS Cust'!M743+'FR-16(7)(v)-11 DIST Demand'!M743+'FR-16(7)(v)-12 DIST Energy'!M743+'FR-16(7)(v)-13 DIST Cust'!M743","v":0},{"$f":"'FR-16(7)(v)-3 PROD Demand'!N743+'FR-16(7)(v)-4 PROD Energy'!N743+'FR-16(7)(v)-5 PROD Cust'!N743+'FR-16(7)(v)-7 TRANS Demand'!N743+'FR-16(7)(v)-8 TRANS Energy'!N743+'FR-16(7)(v)-9 TRANS Cust'!N743+'FR-16(7)(v)-11 DIST Demand'!N743+'FR-16(7)(v)-12 DIST Energy'!N743+'FR-16(7)(v)-13 DIST Cust'!N743","v":0},{"$f":"'FR-16(7)(v)-3 PROD Demand'!O743+'FR-16(7)(v)-4 PROD Energy'!O743+'FR-16(7)(v)-5 PROD Cust'!O743+'FR-16(7)(v)-7 TRANS Demand'!O743+'FR-16(7)(v)-8 TRANS Energy'!O743+'FR-16(7)(v)-9 TRANS Cust'!O743+'FR-16(7)(v)-11 DIST Demand'!O743+'FR-16(7)(v)-12 DIST Energy'!O743+'FR-16(7)(v)-13 DIST Cust'!O743","v":0},{"$f":"'FR-16(7)(v)-3 PROD Demand'!P743+'FR-16(7)(v)-4 PROD Energy'!P743+'FR-16(7)(v)-5 PROD Cust'!P743+'FR-16(7)(v)-7 TRANS Demand'!P743+'FR-16(7)(v)-8 TRANS Energy'!P743+'FR-16(7)(v)-9 TRANS Cust'!P743+'FR-16(7)(v)-11 DIST Demand'!P743+'FR-16(7)(v)-12 DIST Energy'!P743+'FR-16(7)(v)-13 DIST Cust'!P743","v":0},{"$f":"'FR-16(7)(v)-3 PROD Demand'!Q743+'FR-16(7)(v)-4 PROD Energy'!Q743+'FR-16(7)(v)-5 PROD Cust'!Q743+'FR-16(7)(v)-7 TRANS Demand'!Q743+'FR-16(7)(v)-8 TRANS Energy'!Q743+'FR-16(7)(v)-9 TRANS Cust'!Q743+'FR-16(7)(v)-11 DIST Demand'!Q743+'FR-16(7)(v)-12 DIST Energy'!Q743+'FR-16(7)(v)-13 DIST Cust'!Q743","v":0},0,0]
[4,null,{"$f":"'FR-16(7)(v)-1 Functional'!C744","v":"POLE & LINE ATTACHMENTS"},{"$f":"'FR-16(7)(v)-1 Functional'!D744","v":"D249"},null,{"$f":"'FR-16(7)(v)-1 Functional'!F744","v":215037},{"$f":"'FR-16(7)(v)-3 PROD Demand'!G744+'FR-16(7)(v)-4 PROD Energy'!G744+'FR-16(7)(v)-5 PROD Cust'!G744+'FR-16(7)(v)-7 TRANS Demand'!G744+'FR-16(7)(v)-8 TRANS Energy'!G744+'FR-16(7)(v)-9 TRANS Cust'!G744+'FR-16(7)(v)-11 DIST Demand'!G744+'FR-16(7)(v)-12 DIST Energy'!G744+'FR-16(7)(v)-13 DIST Cust'!G744","v":121116},{"$f":"'FR-16(7)(v)-3 PROD Demand'!H744+'FR-16(7)(v)-4 PROD Energy'!H744+'FR-16(7)(v)-5 PROD Cust'!H744+'FR-16(7)(v)-7 TRANS Demand'!H744+'FR-16(7)(v)-8 TRANS Energy'!H744+'FR-16(7)(v)-9 TRANS Cust'!H744+'FR-16(7)(v)-11 DIST Demand'!H744+'FR-16(7)(v)-12 DIST Energy'!H744+'FR-16(7)(v)-13 DIST Cust'!H744","v":50849},{"$f":"'FR-16(7)(v)-3 PROD Demand'!I744+'FR-16(7)(v)-4 PROD Energy'!I744+'FR-16(7)(v)-5 PROD Cust'!I744+'FR-16(7)(v)-7 TRANS Demand'!I744+'FR-16(7)(v)-8 TRANS Energy'!I744+'FR-16(7)(v)-9 TRANS Cust'!I744+'FR-16(7)(v)-11 DIST Demand'!I744+'FR-16(7)(v)-12 DIST Energy'!I744+'FR-16(7)(v)-13 DIST Cust'!I744","v":259},{"$f":"'FR-16(7)(v)-3 PROD Demand'!J744+'FR-16(7)(v)-4 PROD Energy'!J744+'FR-16(7)(v)-5 PROD Cust'!J744+'FR-16(7)(v)-7 TRANS Demand'!J744+'FR-16(7)(v)-8 TRANS Energy'!J744+'FR-16(7)(v)-9 TRANS Cust'!J744+'FR-16(7)(v)-11 DIST Demand'!J744+'FR-16(7)(v)-12 DIST Energy'!J744+'FR-16(7)(v)-13 DIST Cust'!J744","v":1051},{"$f":"'FR-16(7)(v)-3 PROD Demand'!K744+'FR-16(7)(v)-4 PROD Energy'!K744+'FR-16(7)(v)-5 PROD Cust'!K744+'FR-16(7)(v)-7 TRANS Demand'!K744+'FR-16(7)(v)-8 TRANS Energy'!K744+'FR-16(7)(v)-9 TRANS Cust'!K744+'FR-16(7)(v)-11 DIST Demand'!K744+'FR-16(7)(v)-12 DIST Energy'!K744+'FR-16(7)(v)-13 DIST Cust'!K744","v":17},{"$f":"'FR-16(7)(v)-3 PROD Demand'!L744+'FR-16(7)(v)-4 PROD Energy'!L744+'FR-16(7)(v)-5 PROD Cust'!L744+'FR-16(7)(v)-7 TRANS Demand'!L744+'FR-16(7)(v)-8 TRANS Energy'!L744+'FR-16(7)(v)-9 TRANS Cust'!L744+'FR-16(7)(v)-11 DIST Demand'!L744+'FR-16(7)(v)-12 DIST Energy'!L744+'FR-16(7)(v)-13 DIST Cust'!L744","v":23263},{"$f":"'FR-16(7)(v)-3 PROD Demand'!M744+'FR-16(7)(v)-4 PROD Energy'!M744+'FR-16(7)(v)-5 PROD Cust'!M744+'FR-16(7)(v)-7 TRANS Demand'!M744+'FR-16(7)(v)-8 TRANS Energy'!M744+'FR-16(7)(v)-9 TRANS Cust'!M744+'FR-16(7)(v)-11 DIST Demand'!M744+'FR-16(7)(v)-12 DIST Energy'!M744+'FR-16(7)(v)-13 DIST Cust'!M744","v":15242},{"$f":"'FR-16(7)(v)-3 PROD Demand'!N744+'FR-16(7)(v)-4 PROD Energy'!N744+'FR-16(7)(v)-5 PROD Cust'!N744+'FR-16(7)(v)-7 TRANS Demand'!N744+'FR-16(7)(v)-8 TRANS Energy'!N744+'FR-16(7)(v)-9 TRANS Cust'!N744+'FR-16(7)(v)-11 DIST Demand'!N744+'FR-16(7)(v)-12 DIST Energy'!N744+'FR-16(7)(v)-13 DIST Cust'!N744","v":772},{"$f":"'FR-16(7)(v)-3 PROD Demand'!O744+'FR-16(7)(v)-4 PROD Energy'!O744+'FR-16(7)(v)-5 PROD Cust'!O744+'FR-16(7)(v)-7 TRANS Demand'!O744+'FR-16(7)(v)-8 TRANS Energy'!O744+'FR-16(7)(v)-9 TRANS Cust'!O744+'FR-16(7)(v)-11 DIST Demand'!O744+'FR-16(7)(v)-12 DIST Energy'!O744+'FR-16(7)(v)-13 DIST Cust'!O744","v":6},{"$f":"'FR-16(7)(v)-3 PROD Demand'!P744+'FR-16(7)(v)-4 PROD Energy'!P744+'FR-16(7)(v)-5 PROD Cust'!P744+'FR-16(7)(v)-7 TRANS Demand'!P744+'FR-16(7)(v)-8 TRANS Energy'!P744+'FR-16(7)(v)-9 TRANS Cust'!P744+'FR-16(7)(v)-11 DIST Demand'!P744+'FR-16(7)(v)-12 DIST Energy'!P744+'FR-16(7)(v)-13 DIST Cust'!P744","v":2439},{"$f":"'FR-16(7)(v)-3 PROD Demand'!Q744+'FR-16(7)(v)-4 PROD Energy'!Q744+'FR-16(7)(v)-5 PROD Cust'!Q744+'FR-16(7)(v)-7 TRANS Demand'!Q744+'FR-16(7)(v)-8 TRANS Energy'!Q744+'FR-16(7)(v)-9 TRANS Cust'!Q744+'FR-16(7)(v)-11 DIST Demand'!Q744+'FR-16(7)(v)-12 DIST Energy'!Q744+'FR-16(7)(v)-13 DIST Cust'!Q744","v":23},215037,0]
[5,null,{"$f":"'FR-16(7)(v)-1 Functional'!C745","v":"RENTS"},{"$f":"'FR-16(7)(v)-1 Functional'!D745","v":"D249"},null,{"$f":"'FR-16(7)(v)-1 Functional'!F745","v":1058004},{"$f":"'FR-16(7)(v)-3 PROD Demand'!G745+'FR-16(7)(v)-4 PROD Energy'!G745+'FR-16(7)(v)-5 PROD Cust'!G745+'FR-16(7)(v)-7 TRANS Demand'!G745+'FR-16(7)(v)-8 TRANS Energy'!G745+'FR-16(7)(v)-9 TRANS Cust'!G745+'FR-16(7)(v)-11 DIST Demand'!G745+'FR-16(7)(v)-12 DIST Energy'!G745+'FR-16(7)(v)-13 DIST Cust'!G745","v":595909},{"$f":"'FR-16(7)(v)-3 PROD Demand'!H745+'FR-16(7)(v)-4 PROD Energy'!H745+'FR-16(7)(v)-5 PROD Cust'!H745+'FR-16(7)(v)-7 TRANS Demand'!H745+'FR-16(7)(v)-8 TRANS Energy'!H745+'FR-16(7)(v)-9 TRANS Cust'!H745+'FR-16(7)(v)-11 DIST Demand'!H745+'FR-16(7)(v)-12 DIST Energy'!H745+'FR-16(7)(v)-13 DIST Cust'!H745","v":250181},{"$f":"'FR-16(7)(v)-3 PROD Demand'!I745+'FR-16(7)(v)-4 PROD Energy'!I745+'FR-16(7)(v)-5 PROD Cust'!I745+'FR-16(7)(v)-7 TRANS Demand'!I745+'FR-16(7)(v)-8 TRANS Energy'!I745+'FR-16(7)(v)-9 TRANS Cust'!I745+'FR-16(7)(v)-11 DIST Demand'!I745+'FR-16(7)(v)-12 DIST Energy'!I745+'FR-16(7)(v)-13 DIST Cust'!I745","v":1270},{"$f":"'FR-16(7)(v)-3 PROD Demand'!J745+'FR-16(7)(v)-4 PROD Energy'!J745+'FR-16(7)(v)-5 PROD Cust'!J745+'FR-16(7)(v)-7 TRANS Demand'!J745+'FR-16(7)(v)-8 TRANS Energy'!J745+'FR-16(7)(v)-9 TRANS Cust'!J745+'FR-16(7)(v)-11 DIST Demand'!J745+'FR-16(7)(v)-12 DIST Energy'!J745+'FR-16(7)(v)-13 DIST Cust'!J745","v":5168},{"$f":"'FR-16(7)(v)-3 PROD Demand'!K745+'FR-16(7)(v)-4 PROD Energy'!K745+'FR-16(7)(v)-5 PROD Cust'!K745+'FR-16(7)(v)-7 TRANS Demand'!K745+'FR-16(7)(v)-8 TRANS Energy'!K745+'FR-16(7)(v)-9 TRANS Cust'!K745+'FR-16(7)(v)-11 DIST Demand'!K745+'FR-16(7)(v)-12 DIST Energy'!K745+'FR-16(7)(v)-13 DIST Cust'!K745","v":87},{"$f":"'FR-16(7)(v)-3 PROD Demand'!L745+'FR-16(7)(v)-4 PROD Energy'!L745+'FR-16(7)(v)-5 PROD Cust'!L745+'FR-16(7)(v)-7 TRANS Demand'!L745+'FR-16(7)(v)-8 TRANS Energy'!L745+'FR-16(7)(v)-9 TRANS Cust'!L745+'FR-16(7)(v)-11 DIST Demand'!L745+'FR-16(7)(v)-12 DIST Energy'!L745+'FR-16(7)(v)-13 DIST Cust'!L745","v":114459},{"$f":"'FR-16(7)(v)-3 PROD Demand'!M745+'FR-16(7)(v)-4 PROD Energy'!M745+'FR-16(7)(v)-5 PROD Cust'!M745+'FR-16(7)(v)-7 TRANS Demand'!M745+'FR-16(7)(v)-8 TRANS Energy'!M745+'FR-16(7)(v)-9 TRANS Cust'!M745+'FR-16(7)(v)-11 DIST Demand'!M745+'FR-16(7)(v)-12 DIST Energy'!M745+'FR-16(7)(v)-13 DIST Cust'!M745","v":74991},{"$f":"'FR-16(7)(v)-3 PROD Demand'!N745+'FR-16(7)(v)-4 PROD Energy'!N745+'FR-16(7)(v)-5 PROD Cust'!N745+'FR-16(7)(v)-7 TRANS Demand'!N745+'FR-16(7)(v)-8 TRANS Energy'!N745+'FR-16(7)(v)-9 TRANS Cust'!N745+'FR-16(7)(v)-11 DIST Demand'!N745+'FR-16(7)(v)-12 DIST Energy'!N745+'FR-16(7)(v)-13 DIST Cust'!N745","v":3797},{"$f":"'FR-16(7)(v)-3 PROD Demand'!O745+'FR-16(7)(v)-4 PROD Energy'!O745+'FR-16(7)(v)-5 PROD Cust'!O745+'FR-16(7)(v)-7 TRANS Demand'!O745+'FR-16(7)(v)-8 TRANS Energy'!O745+'FR-16(7)(v)-9 TRANS Cust'!O745+'FR-16(7)(v)-11 DIST Demand'!O745+'FR-16(7)(v)-12 DIST Energy'!O745+'FR-16(7)(v)-13 DIST Cust'!O745","v":28},{"$f":"'FR-16(7)(v)-3 PROD Demand'!P745+'FR-16(7)(v)-4 PROD Energy'!P745+'FR-16(7)(v)-5 PROD Cust'!P745+'FR-16(7)(v)-7 TRANS Demand'!P745+'FR-16(7)(v)-8 TRANS Energy'!P745+'FR-16(7)(v)-9 TRANS Cust'!P745+'FR-16(7)(v)-11 DIST Demand'!P745+'FR-16(7)(v)-12 DIST Energy'!P745+'FR-16(7)(v)-13 DIST Cust'!P745","v":12003},{"$f":"'FR-16(7)(v)-3 PROD Demand'!Q745+'FR-16(7)(v)-4 PROD Energy'!Q745+'FR-16(7)(v)-5 PROD Cust'!Q745+'FR-16(7)(v)-7 TRANS Demand'!Q745+'FR-16(7)(v)-8 TRANS Energy'!Q745+'FR-16(7)(v)-9 TRANS Cust'!Q745+'FR-16(7)(v)-11 DIST Demand'!Q745+'FR-16(7)(v)-12 DIST Energy'!Q745+'FR-16(7)(v)-13 DIST Cust'!Q745","v":111},1058004,0]
[6,null,{"$f":"'FR-16(7)(v)-1 Functional'!C746","v":"TRANSMISSION CHARGE PTP"},{"$f":"'FR-16(7)(v)-1 Functional'!D746","v":"T229"},null,{"$f":"'FR-16(7)(v)-1 Functional'!F746","v":144996},{"$f":"'FR-16(7)(v)-3 PROD Demand'!G746+'FR-16(7)(v)-4 PROD Energy'!G746+'FR-16(7)(v)-5 PROD Cust'!G746+'FR-16(7)(v)-7 TRANS Demand'!G746+'FR-16(7)(v)-8 TRANS Energy'!G746+'FR-16(7)(v)-9 TRANS Cust'!G746+'FR-16(7)(v)-11 DIST Demand'!G746+'FR-16(7)(v)-12 DIST Energy'!G746+'FR-16(7)(v)-13 DIST Cust'!G746","v":65361},{"$f":"'FR-16(7)(v)-3 PROD Demand'!H746+'FR-16(7)(v)-4 PROD Energy'!H746+'FR-16(7)(v)-5 PROD Cust'!H746+'FR-16(7)(v)-7 TRANS Demand'!H746+'FR-16(7)(v)-8 TRANS Energy'!H746+'FR-16(7)(v)-9 TRANS Cust'!H746+'FR-16(7)(v)-11 DIST Demand'!H746+'FR-16(7)(v)-12 DIST Energy'!H746+'FR-16(7)(v)-13 DIST Cust'!H746","v":39242},{"$f":"'FR-16(7)(v)-3 PROD Demand'!I746+'FR-16(7)(v)-4 PROD Energy'!I746+'FR-16(7)(v)-5 PROD Cust'!I746+'FR-16(7)(v)-7 TRANS Demand'!I746+'FR-16(7)(v)-8 TRANS Energy'!I746+'FR-16(7)(v)-9 TRANS Cust'!I746+'FR-16(7)(v)-11 DIST Demand'!I746+'FR-16(7)(v)-12 DIST Energy'!I746+'FR-16(7)(v)-13 DIST Cust'!I746","v":188},{"$f":"'FR-16(7)(v)-3 PROD Demand'!J746+'FR-16(7)(v)-4 PROD Energy'!J746+'FR-16(7)(v)-5 PROD Cust'!J746+'FR-16(7)(v)-7 TRANS Demand'!J746+'FR-16(7)(v)-8 TRANS Energy'!J746+'FR-16(7)(v)-9 TRANS Cust'!J746+'FR-16(7)(v)-11 DIST Demand'!J746+'FR-16(7)(v)-12 DIST Energy'!J746+'FR-16(7)(v)-13 DIST Cust'!J746","v":744},{"$f":"'FR-16(7)(v)-3 PROD Demand'!K746+'FR-16(7)(v)-4 PROD Energy'!K746+'FR-16(7)(v)-5 PROD Cust'!K746+'FR-16(7)(v)-7 TRANS Demand'!K746+'FR-16(7)(v)-8 TRANS Energy'!K746+'FR-16(7)(v)-9 TRANS Cust'!K746+'FR-16(7)(v)-11 DIST Demand'!K746+'FR-16(7)(v)-12 DIST Energy'!K746+'FR-16(7)(v)-13 DIST Cust'!K746","v":10},{"$f":"'FR-16(7)(v)-3 PROD Demand'!L746+'FR-16(7)(v)-4 PROD Energy'!L746+'FR-16(7)(v)-5 PROD Cust'!L746+'FR-16(7)(v)-7 TRANS Demand'!L746+'FR-16(7)(v)-8 TRANS Energy'!L746+'FR-16(7)(v)-9 TRANS Cust'!L746+'FR-16(7)(v)-11 DIST Demand'!L746+'FR-16(7)(v)-12 DIST Energy'!L746+'FR-16(7)(v)-13 DIST Cust'!L746","v":19566},{"$f":"'FR-16(7)(v)-3 PROD Demand'!M746+'FR-16(7)(v)-4 PROD Energy'!M746+'FR-16(7)(v)-5 PROD Cust'!M746+'FR-16(7)(v)-7 TRANS Demand'!M746+'FR-16(7)(v)-8 TRANS Energy'!M746+'FR-16(7)(v)-9 TRANS Cust'!M746+'FR-16(7)(v)-11 DIST Demand'!M746+'FR-16(7)(v)-12 DIST Energy'!M746+'FR-16(7)(v)-13 DIST Cust'!M746","v":12935},{"$f":"'FR-16(7)(v)-3 PROD Demand'!N746+'FR-16(7)(v)-4 PROD Energy'!N746+'FR-16(7)(v)-5 PROD Cust'!N746+'FR-16(7)(v)-7 TRANS Demand'!N746+'FR-16(7)(v)-8 TRANS Energy'!N746+'FR-16(7)(v)-9 TRANS Cust'!N746+'FR-16(7)(v)-11 DIST Demand'!N746+'FR-16(7)(v)-12 DIST Energy'!N746+'FR-16(7)(v)-13 DIST Cust'!N746","v":625},{"$f":"'FR-16(7)(v)-3 PROD Demand'!O746+'FR-16(7)(v)-4 PROD Energy'!O746+'FR-16(7)(v)-5 PROD Cust'!O746+'FR-16(7)(v)-7 TRANS Demand'!O746+'FR-16(7)(v)-8 TRANS Energy'!O746+'FR-16(7)(v)-9 TRANS Cust'!O746+'FR-16(7)(v)-11 DIST Demand'!O746+'FR-16(7)(v)-12 DIST Energy'!O746+'FR-16(7)(v)-13 DIST Cust'!O746","v":6129},{"$f":"'FR-16(7)(v)-3 PROD Demand'!P746+'FR-16(7)(v)-4 PROD Energy'!P746+'FR-16(7)(v)-5 PROD Cust'!P746+'FR-16(7)(v)-7 TRANS Demand'!P746+'FR-16(7)(v)-8 TRANS Energy'!P746+'FR-16(7)(v)-9 TRANS Cust'!P746+'FR-16(7)(v)-11 DIST Demand'!P746+'FR-16(7)(v)-12 DIST Energy'!P746+'FR-16(7)(v)-13 DIST Cust'!P746","v":180},{"$f":"'FR-16(7)(v)-3 PROD Demand'!Q746+'FR-16(7)(v)-4 PROD Energy'!Q746+'FR-16(7)(v)-5 PROD Cust'!Q746+'FR-16(7)(v)-7 TRANS Demand'!Q746+'FR-16(7)(v)-8 TRANS Energy'!Q746+'FR-16(7)(v)-9 TRANS Cust'!Q746+'FR-16(7)(v)-11 DIST Demand'!Q746+'FR-16(7)(v)-12 DIST Energy'!Q746+'FR-16(7)(v)-13 DIST Cust'!Q746","v":16},144996,0]
[7,null,{"$f":"'FR-16(7)(v)-1 Functional'!C747","v":"PJM REACTIVE REVENUE"},{"$f":"'FR-16(7)(v)-1 Functional'!D747","v":"K401"},null,{"$f":"'FR-16(7)(v)-1 Functional'!F747","v":0},{"$f":"'FR-16(7)(v)-3 PROD Demand'!G747+'FR-16(7)(v)-4 PROD Energy'!G747+'FR-16(7)(v)-5 PROD Cust'!G747+'FR-16(7)(v)-7 TRANS Demand'!G747+'FR-16(7)(v)-8 TRANS Energy'!G747+'FR-16(7)(v)-9 TRANS Cust'!G747+'FR-16(7)(v)-11 DIST Demand'!G747+'FR-16(7)(v)-12 DIST Energy'!G747+'FR-16(7)(v)-13 DIST Cust'!G747","v":0},{"$f":"'FR-16(7)(v)-3 PROD Demand'!H747+'FR-16(7)(v)-4 PROD Energy'!H747+'FR-16(7)(v)-5 PROD Cust'!H747+'FR-16(7)(v)-7 TRANS Demand'!H747+'FR-16(7)(v)-8 TRANS Energy'!H747+'FR-16(7)(v)-9 TRANS Cust'!H747+'FR-16(7)(v)-11 DIST Demand'!H747+'FR-16(7)(v)-12 DIST Energy'!H747+'FR-16(7)(v)-13 DIST Cust'!H747","v":0},{"$f":"'FR-16(7)(v)-3 PROD Demand'!I747+'FR-16(7)(v)-4 PROD Energy'!I747+'FR-16(7)(v)-5 PROD Cust'!I747+'FR-16(7)(v)-7 TRANS Demand'!I747+'FR-16(7)(v)-8 TRANS Energy'!I747+'FR-16(7)(v)-9 TRANS Cust'!I747+'FR-16(7)(v)-11 DIST Demand'!I747+'FR-16(7)(v)-12 DIST Energy'!I747+'FR-16(7)(v)-13 DIST Cust'!I747","v":0},{"$f":"'FR-16(7)(v)-3 PROD Demand'!J747+'FR-16(7)(v)-4 PROD Energy'!J747+'FR-16(7)(v)-5 PROD Cust'!J747+'FR-16(7)(v)-7 TRANS Demand'!J747+'FR-16(7)(v)-8 TRANS Energy'!J747+'FR-16(7)(v)-9 TRANS Cust'!J747+'FR-16(7)(v)-11 DIST Demand'!J747+'FR-16(7)(v)-12 DIST Energy'!J747+'FR-16(7)(v)-13 DIST Cust'!J747","v":0},{"$f":"'FR-16(7)(v)-3 PROD Demand'!K747+'FR-16(7)(v)-4 PROD Energy'!K747+'FR-16(7)(v)-5 PROD Cust'!K747+'FR-16(7)(v)-7 TRANS Demand'!K747+'FR-16(7)(v)-8 TRANS Energy'!K747+'FR-16(7)(v)-9 TRANS Cust'!K747+'FR-16(7)(v)-11 DIST Demand'!K747+'FR-16(7)(v)-12 DIST Energy'!K747+'FR-16(7)(v)-13 DIST Cust'!K747","v":0},{"$f":"'FR-16(7)(v)-3 PROD Demand'!L747+'FR-16(7)(v)-4 PROD Energy'!L747+'FR-16(7)(v)-5 PROD Cust'!L747+'FR-16(7)(v)-7 TRANS Demand'!L747+'FR-16(7)(v)-8 TRANS Energy'!L747+'FR-16(7)(v)-9 TRANS Cust'!L747+'FR-16(7)(v)-11 DIST Demand'!L747+'FR-16(7)(v)-12 DIST Energy'!L747+'FR-16(7)(v)-13 DIST Cust'!L747","v":0},{"$f":"'FR-16(7)(v)-3 PROD Demand'!M747+'FR-16(7)(v)-4 PROD Energy'!M747+'FR-16(7)(v)-5 PROD Cust'!M747+'FR-16(7)(v)-7 TRANS Demand'!M747+'FR-16(7)(v)-8 TRANS Energy'!M747+'FR-16(7)(v)-9 TRANS Cust'!M747+'FR-16(7)(v)-11 DIST Demand'!M747+'FR-16(7)(v)-12 DIST Energy'!M747+'FR-16(7)(v)-13 DIST Cust'!M747","v":0},{"$f":"'FR-16(7)(v)-3 PROD Demand'!N747+'FR-16(7)(v)-4 PROD Energy'!N747+'FR-16(7)(v)-5 PROD Cust'!N747+'FR-16(7)(v)-7 TRANS Demand'!N747+'FR-16(7)(v)-8 TRANS Energy'!N747+'FR-16(7)(v)-9 TRANS Cust'!N747+'FR-16(7)(v)-11 DIST Demand'!N747+'FR-16(7)(v)-12 DIST Energy'!N747+'FR-16(7)(v)-13 DIST Cust'!N747","v":0},{"$f":"'FR-16(7)(v)-3 PROD Demand'!O747+'FR-16(7)(v)-4 PROD Energy'!O747+'FR-16(7)(v)-5 PROD Cust'!O747+'FR-16(7)(v)-7 TRANS Demand'!O747+'FR-16(7)(v)-8 TRANS Energy'!O747+'FR-16(7)(v)-9 TRANS Cust'!O747+'FR-16(7)(v)-11 DIST Demand'!O747+'FR-16(7)(v)-12 DIST Energy'!O747+'FR-16(7)(v)-13 DIST Cust'!O747","v":0},{"$f":"'FR-16(7)(v)-3 PROD Demand'!P747+'FR-16(7)(v)-4 PROD Energy'!P747+'FR-16(7)(v)-5 PROD Cust'!P747+'FR-16(7)(v)-7 TRANS Demand'!P747+'FR-16(7)(v)-8 TRANS Energy'!P747+'FR-16(7)(v)-9 TRANS Cust'!P747+'FR-16(7)(v)-11 DIST Demand'!P747+'FR-16(7)(v)-12 DIST Energy'!P747+'FR-16(7)(v)-13 DIST Cust'!P747","v":0},{"$f":"'FR-16(7)(v)-3 PROD Demand'!Q747+'FR-16(7)(v)-4 PROD Energy'!Q747+'FR-16(7)(v)-5 PROD Cust'!Q747+'FR-16(7)(v)-7 TRANS Demand'!Q747+'FR-16(7)(v)-8 TRANS Energy'!Q747+'FR-16(7)(v)-9 TRANS Cust'!Q747+'FR-16(7)(v)-11 DIST Demand'!Q747+'FR-16(7)(v)-12 DIST Energy'!Q747+'FR-16(7)(v)-13 DIST Cust'!Q747","v":0},0,0]
[8,null,{"$f":"'FR-16(7)(v)-1 Functional'!C748","v":"OTHER TRANSMISSION REVENUES"},{"$f":"'FR-16(7)(v)-1 Functional'!D748","v":"T229"},null,{"$f":"'FR-16(7)(v)-1 Functional'!F748","v":24504},{"$f":"'FR-16(7)(v)-3 PROD Demand'!G748+'FR-16(7)(v)-4 PROD Energy'!G748+'FR-16(7)(v)-5 PROD Cust'!G748+'FR-16(7)(v)-7 TRANS Demand'!G748+'FR-16(7)(v)-8 TRANS Energy'!G748+'FR-16(7)(v)-9 TRANS Cust'!G748+'FR-16(7)(v)-11 DIST Demand'!G748+'FR-16(7)(v)-12 DIST Energy'!G748+'FR-16(7)(v)-13 DIST Cust'!G748","v":11044},{"$f":"'FR-16(7)(v)-3 PROD Demand'!H748+'FR-16(7)(v)-4 PROD Energy'!H748+'FR-16(7)(v)-5 PROD Cust'!H748+'FR-16(7)(v)-7 TRANS Demand'!H748+'FR-16(7)(v)-8 TRANS Energy'!H748+'FR-16(7)(v)-9 TRANS Cust'!H748+'FR-16(7)(v)-11 DIST Demand'!H748+'FR-16(7)(v)-12 DIST Energy'!H748+'FR-16(7)(v)-13 DIST Cust'!H748","v":6632},{"$f":"'FR-16(7)(v)-3 PROD Demand'!I748+'FR-16(7)(v)-4 PROD Energy'!I748+'FR-16(7)(v)-5 PROD Cust'!I748+'FR-16(7)(v)-7 TRANS Demand'!I748+'FR-16(7)(v)-8 TRANS Energy'!I748+'FR-16(7)(v)-9 TRANS Cust'!I748+'FR-16(7)(v)-11 DIST Demand'!I748+'FR-16(7)(v)-12 DIST Energy'!I748+'FR-16(7)(v)-13 DIST Cust'!I748","v":32},{"$f":"'FR-16(7)(v)-3 PROD Demand'!J748+'FR-16(7)(v)-4 PROD Energy'!J748+'FR-16(7)(v)-5 PROD Cust'!J748+'FR-16(7)(v)-7 TRANS Demand'!J748+'FR-16(7)(v)-8 TRANS Energy'!J748+'FR-16(7)(v)-9 TRANS Cust'!J748+'FR-16(7)(v)-11 DIST Demand'!J748+'FR-16(7)(v)-12 DIST Energy'!J748+'FR-16(7)(v)-13 DIST Cust'!J748","v":126},{"$f":"'FR-16(7)(v)-3 PROD Demand'!K748+'FR-16(7)(v)-4 PROD Energy'!K748+'FR-16(7)(v)-5 PROD Cust'!K748+'FR-16(7)(v)-7 TRANS Demand'!K748+'FR-16(7)(v)-8 TRANS Energy'!K748+'FR-16(7)(v)-9 TRANS Cust'!K748+'FR-16(7)(v)-11 DIST Demand'!K748+'FR-16(7)(v)-12 DIST Energy'!K748+'FR-16(7)(v)-13 DIST Cust'!K748","v":2},{"$f":"'FR-16(7)(v)-3 PROD Demand'!L748+'FR-16(7)(v)-4 PROD Energy'!L748+'FR-16(7)(v)-5 PROD Cust'!L748+'FR-16(7)(v)-7 TRANS Demand'!L748+'FR-16(7)(v)-8 TRANS Energy'!L748+'FR-16(7)(v)-9 TRANS Cust'!L748+'FR-16(7)(v)-11 DIST Demand'!L748+'FR-16(7)(v)-12 DIST Energy'!L748+'FR-16(7)(v)-13 DIST Cust'!L748","v":3307},{"$f":"'FR-16(7)(v)-3 PROD Demand'!M748+'FR-16(7)(v)-4 PROD Energy'!M748+'FR-16(7)(v)-5 PROD Cust'!M748+'FR-16(7)(v)-7 TRANS Demand'!M748+'FR-16(7)(v)-8 TRANS Energy'!M748+'FR-16(7)(v)-9 TRANS Cust'!M748+'FR-16(7)(v)-11 DIST Demand'!M748+'FR-16(7)(v)-12 DIST Energy'!M748+'FR-16(7)(v)-13 DIST Cust'!M748","v":2186},{"$f":"'FR-16(7)(v)-3 PROD Demand'!N748+'FR-16(7)(v)-4 PROD Energy'!N748+'FR-16(7)(v)-5 PROD Cust'!N748+'FR-16(7)(v)-7 TRANS Demand'!N748+'FR-16(7)(v)-8 TRANS Energy'!N748+'FR-16(7)(v)-9 TRANS Cust'!N748+'FR-16(7)(v)-11 DIST Demand'!N748+'FR-16(7)(v)-12 DIST Energy'!N748+'FR-16(7)(v)-13 DIST Cust'!N748","v":106},{"$f":"'FR-16(7)(v)-3 PROD Demand'!O748+'FR-16(7)(v)-4 PROD Energy'!O748+'FR-16(7)(v)-5 PROD Cust'!O748+'FR-16(7)(v)-7 TRANS Demand'!O748+'FR-16(7)(v)-8 TRANS Energy'!O748+'FR-16(7)(v)-9 TRANS Cust'!O748+'FR-16(7)(v)-11 DIST Demand'!O748+'FR-16(7)(v)-12 DIST Energy'!O748+'FR-16(7)(v)-13 DIST Cust'!O748","v":1036},{"$f":"'FR-16(7)(v)-3 PROD Demand'!P748+'FR-16(7)(v)-4 PROD Energy'!P748+'FR-16(7)(v)-5 PROD Cust'!P748+'FR-16(7)(v)-7 TRANS Demand'!P748+'FR-16(7)(v)-8 TRANS Energy'!P748+'FR-16(7)(v)-9 TRANS Cust'!P748+'FR-16(7)(v)-11 DIST Demand'!P748+'FR-16(7)(v)-12 DIST Energy'!P748+'FR-16(7)(v)-13 DIST Cust'!P748","v":30},{"$f":"'FR-16(7)(v)-3 PROD Demand'!Q748+'FR-16(7)(v)-4 PROD Energy'!Q748+'FR-16(7)(v)-5 PROD Cust'!Q748+'FR-16(7)(v)-7 TRANS Demand'!Q748+'FR-16(7)(v)-8 TRANS Energy'!Q748+'FR-16(7)(v)-9 TRANS Cust'!Q748+'FR-16(7)(v)-11 DIST Demand'!Q748+'FR-16(7)(v)-12 DIST Energy'!Q748+'FR-16(7)(v)-13 DIST Cust'!Q748","v":3},24504,0]
[9,null,{"$f":"'FR-16(7)(v)-1 Functional'!C749","v":"FIXED BILL PREMIUM"},{"$f":"'FR-16(7)(v)-1 Functional'!D749","v":"K902"},null,{"$f":"'FR-16(7)(v)-1 Functional'!F749","v":0},{"$f":"'FR-16(7)(v)-3 PROD Demand'!G749+'FR-16(7)(v)-4 PROD Energy'!G749+'FR-16(7)(v)-5 PROD Cust'!G749+'FR-16(7)(v)-7 TRANS Demand'!G749+'FR-16(7)(v)-8 TRANS Energy'!G749+'FR-16(7)(v)-9 TRANS Cust'!G749+'FR-16(7)(v)-11 DIST Demand'!G749+'FR-16(7)(v)-12 DIST Energy'!G749+'FR-16(7)(v)-13 DIST Cust'!G749","v":0},{"$f":"'FR-16(7)(v)-3 PROD Demand'!H749+'FR-16(7)(v)-4 PROD Energy'!H749+'FR-16(7)(v)-5 PROD Cust'!H749+'FR-16(7)(v)-7 TRANS Demand'!H749+'FR-16(7)(v)-8 TRANS Energy'!H749+'FR-16(7)(v)-9 TRANS Cust'!H749+'FR-16(7)(v)-11 DIST Demand'!H749+'FR-16(7)(v)-12 DIST Energy'!H749+'FR-16(7)(v)-13 DIST Cust'!H749","v":0},{"$f":"'FR-16(7)(v)-3 PROD Demand'!I749+'FR-16(7)(v)-4 PROD Energy'!I749+'FR-16(7)(v)-5 PROD Cust'!I749+'FR-16(7)(v)-7 TRANS Demand'!I749+'FR-16(7)(v)-8 TRANS Energy'!I749+'FR-16(7)(v)-9 TRANS Cust'!I749+'FR-16(7)(v)-11 DIST Demand'!I749+'FR-16(7)(v)-12 DIST Energy'!I749+'FR-16(7)(v)-13 DIST Cust'!I749","v":0},{"$f":"'FR-16(7)(v)-3 PROD Demand'!J749+'FR-16(7)(v)-4 PROD Energy'!J749+'FR-16(7)(v)-5 PROD Cust'!J749+'FR-16(7)(v)-7 TRANS Demand'!J749+'FR-16(7)(v)-8 TRANS Energy'!J749+'FR-16(7)(v)-9 TRANS Cust'!J749+'FR-16(7)(v)-11 DIST Demand'!J749+'FR-16(7)(v)-12 DIST Energy'!J749+'FR-16(7)(v)-13 DIST Cust'!J749","v":0},{"$f":"'FR-16(7)(v)-3 PROD Demand'!K749+'FR-16(7)(v)-4 PROD Energy'!K749+'FR-16(7)(v)-5 PROD Cust'!K749+'FR-16(7)(v)-7 TRANS Demand'!K749+'FR-16(7)(v)-8 TRANS Energy'!K749+'FR-16(7)(v)-9 TRANS Cust'!K749+'FR-16(7)(v)-11 DIST Demand'!K749+'FR-16(7)(v)-12 DIST Energy'!K749+'FR-16(7)(v)-13 DIST Cust'!K749","v":0},{"$f":"'FR-16(7)(v)-3 PROD Demand'!L749+'FR-16(7)(v)-4 PROD Energy'!L749+'FR-16(7)(v)-5 PROD Cust'!L749+'FR-16(7)(v)-7 TRANS Demand'!L749+'FR-16(7)(v)-8 TRANS Energy'!L749+'FR-16(7)(v)-9 TRANS Cust'!L749+'FR-16(7)(v)-11 DIST Demand'!L749+'FR-16(7)(v)-12 DIST Energy'!L749+'FR-16(7)(v)-13 DIST Cust'!L749","v":0},{"$f":"'FR-16(7)(v)-3 PROD Demand'!M749+'FR-16(7)(v)-4 PROD Energy'!M749+'FR-16(7)(v)-5 PROD Cust'!M749+'FR-16(7)(v)-7 TRANS Demand'!M749+'FR-16(7)(v)-8 TRANS Energy'!M749+'FR-16(7)(v)-9 TRANS Cust'!M749+'FR-16(7)(v)-11 DIST Demand'!M749+'FR-16(7)(v)-12 DIST Energy'!M749+'FR-16(7)(v)-13 DIST Cust'!M749","v":0},{"$f":"'FR-16(7)(v)-3 PROD Demand'!N749+'FR-16(7)(v)-4 PROD Energy'!N749+'FR-16(7)(v)-5 PROD Cust'!N749+'FR-16(7)(v)-7 TRANS Demand'!N749+'FR-16(7)(v)-8 TRANS Energy'!N749+'FR-16(7)(v)-9 TRANS Cust'!N749+'FR-16(7)(v)-11 DIST Demand'!N749+'FR-16(7)(v)-12 DIST Energy'!N749+'FR-16(7)(v)-13 DIST Cust'!N749","v":0},{"$f":"'FR-16(7)(v)-3 PROD Demand'!O749+'FR-16(7)(v)-4 PROD Energy'!O749+'FR-16(7)(v)-5 PROD Cust'!O749+'FR-16(7)(v)-7 TRANS Demand'!O749+'FR-16(7)(v)-8 TRANS Energy'!O749+'FR-16(7)(v)-9 TRANS Cust'!O749+'FR-16(7)(v)-11 DIST Demand'!O749+'FR-16(7)(v)-12 DIST Energy'!O749+'FR-16(7)(v)-13 DIST Cust'!O749","v":0},{"$f":"'FR-16(7)(v)-3 PROD Demand'!P749+'FR-16(7)(v)-4 PROD Energy'!P749+'FR-16(7)(v)-5 PROD Cust'!P749+'FR-16(7)(v)-7 TRANS Demand'!P749+'FR-16(7)(v)-8 TRANS Energy'!P749+'FR-16(7)(v)-9 TRANS Cust'!P749+'FR-16(7)(v)-11 DIST Demand'!P749+'FR-16(7)(v)-12 DIST Energy'!P749+'FR-16(7)(v)-13 DIST Cust'!P749","v":0},{"$f":"'FR-16(7)(v)-3 PROD Demand'!Q749+'FR-16(7)(v)-4 PROD Energy'!Q749+'FR-16(7)(v)-5 PROD Cust'!Q749+'FR-16(7)(v)-7 TRANS Demand'!Q749+'FR-16(7)(v)-8 TRANS Energy'!Q749+'FR-16(7)(v)-9 TRANS Cust'!Q749+'FR-16(7)(v)-11 DIST Demand'!Q749+'FR-16(7)(v)-12 DIST Energy'!Q749+'FR-16(7)(v)-13 DIST Cust'!Q749","v":0},0,0]
[10,null,{"$f":"'FR-16(7)(v)-1 Functional'!C750","v":"  TOTAL OTHER OPERATING REVS"},null,null,{"$f":"SUM(F742:F749)","v":1695053},{"$f":"SUM(G742:G749)","v":935653},{"$f":"SUM(H742:H749)","v":406615},{"$f":"SUM(I742:I749)","v":2052},{"$f":"SUM(J742:J749)","v":8323},136,187913,123253,6206,7206,17517,{"$f":"SUM($Q$742:$Q$749)","v":179},{"$f":"SUM(R742:R749)","v":1695053},{"$f":"SUM(S742:S749)","v":0}]
[11]
[12,"COST OF SERVICE COMPUTATION"]
[13,null,{"$f":"'FR-16(7)(v)-1 Functional'!C753","v":"TOTAL OP EXP EXC INC & REV TAX"},null,null,{"$f":"F618","v":282568408},{"$f":"G618","v":128022036},{"$f":"H618","v":71965759},{"$f":"I618","v":380700},{"$f":"J618","v":1252779},20785,39314205,26776082,1283255,11792222,1729013,{"$f":"$Q$618","v":31572},{"$f":"R618","v":282568408},{"$f":"S618","v":0}]
[14,null,"RETURN ON RATE BASE",null,null,{"$f":"F433","v":63514771},{"$f":"G433","v":31416824},{"$f":"H433","v":16275026},{"$f":"I433","v":80246},{"$f":"J433","v":314751},4820,7904870,5220166,255798,1720370,314977,{"$f":"Q433","v":6924},{"$f":"R433","v":63514772},{"$f":"S433","v":-1}]
[15,null,{"$f":"'FR-16(7)(v)-1 Functional'!C755","v":"NET FED INCOME TAX ALLOWABLE"},null,null,{"$f":"F676","v":7123621},{"$f":"G676","v":2291207},{"$f":"H676","v":1993614},{"$f":"I676","v":11923},{"$f":"J676","v":29653},560,1309753,927754,43507,435199,79367,{"$f":"$Q$676","v":908},{"$f":"R676","v":7123445},{"$f":"S676","v":176}]
[16,null,{"$f":"'FR-16(7)(v)-1 Functional'!C756","v":"NET STATE INCOME TAX ALLOWABLE"},null,null,{"$f":"F722","v":2461566},{"$f":"G722","v":1822464},285271,1796,{"$f":"J722","v":3750},152,155077,110081,5432,45260,32071,203,2461557,9]
[17,null,{"$f":"'FR-16(7)(v)-1 Functional'!C757","v":"TOTAL OTHER OPERATING REVENUES"},null,null,{"$f":"-F750","v":-1695053},{"$f":"-G750","v":-935653},{"$f":"-H750","v":-406615},{"$f":"-I750","v":-2052},{"$f":"-J750","v":-8323},-136,-187913,-123253,-6206,-7206,-17517,{"$f":"-$Q$750","v":-179},{"$f":"-R750","v":-1695053},{"$f":"-S750","v":0}]
[18,null,{"$f":"'FR-16(7)(v)-1 Functional'!C758","v":"  SUBTOTAL B"},null,null,{"$f":"SUM(F752:F757)","v":353973313},{"$f":"SUM(G752:G757)","v":162616878},{"$f":"SUM(H752:H757)","v":90113055},{"$f":"SUM(I752:I757)","v":472613},{"$f":"SUM(J752:J757)","v":1592610},26181,48495992,32910830,1581786,13985845,2137911,{"$f":"SUM($Q$752:$Q$757)","v":39428},{"$f":"SUM(R752:R757)","v":353973129},{"$f":"R758-F758","v":-184}]
[19]
[20,null,{"$f":"'FR-16(7)(v)-1 Functional'!C760","v":"TOTAL OTHER OPERATING REVENUES"},null,null,{"$f":"-F757","v":1695053},{"$f":"-G757","v":935653},{"$f":"-H757","v":406615},{"$f":"-I757","v":2052},{"$f":"-J757","v":8323},136,187913,123253,6206,7206,17517,{"$f":"-$Q$757","v":179},{"$f":"-R757","v":1695053},{"$f":"-S757","v":0}]
[21,null,{"$f":"'FR-16(7)(v)-1 Functional'!C761","v":"LESS: REVS EXCL FROM REV TAX CALC"},null,null,{"$f":"SUM(G761:Q761)","v":0},{"$f":"'FR-16(7)(v)-13 DIST Cust'!G761+'FR-16(7)(v)-11 DIST Demand'!G761+'FR-16(7)(v)-4 PROD Energy'!G761","v":0},{"$f":"'FR-16(7)(v)-13 DIST Cust'!H761+'FR-16(7)(v)-11 DIST Demand'!H761+'FR-16(7)(v)-4 PROD Energy'!H761","v":0},{"$f":"'FR-16(7)(v)-13 DIST Cust'!I761+'FR-16(7)(v)-11 DIST Demand'!I761+'FR-16(7)(v)-4 PROD Energy'!I761","v":0},{"$f":"'FR-16(7)(v)-13 DIST Cust'!J761+'FR-16(7)(v)-11 DIST Demand'!J761+'FR-16(7)(v)-4 PROD Energy'!J761","v":0},{"$f":"'FR-16(7)(v)-13 DIST Cust'!K761+'FR-16(7)(v)-11 DIST Demand'!K761+'FR-16(7)(v)-4 PROD Energy'!K761","v":0},{"$f":"'FR-16(7)(v)-13 DIST Cust'!L761+'FR-16(7)(v)-11 DIST Demand'!L761+'FR-16(7)(v)-4 PROD Energy'!L761","v":0},{"$f":"'FR-16(7)(v)-13 DIST Cust'!M761+'FR-16(7)(v)-11 DIST Demand'!M761+'FR-16(7)(v)-4 PROD Energy'!M761","v":0},{"$f":"'FR-16(7)(v)-13 DIST Cust'!N761+'FR-16(7)(v)-11 DIST Demand'!N761+'FR-16(7)(v)-4 PROD Energy'!N761","v":0},{"$f":"'FR-16(7)(v)-13 DIST Cust'!O761+'FR-16(7)(v)-11 DIST Demand'!O761+'FR-16(7)(v)-4 PROD Energy'!O761","v":0},{"$f":"'FR-16(7)(v)-13 DIST Cust'!P761+'FR-16(7)(v)-11 DIST Demand'!P761+'FR-16(7)(v)-4 PROD Energy'!P761","v":0},{"$f":"'FR-16(7)(v)-13 DIST Cust'!Q761+'FR-16(7)(v)-11 DIST Demand'!Q761+'FR-16(7)(v)-4 PROD Energy'!Q761","v":0},{"$f":"SUM(G761:Q761)","v":0},{"$f":"F761-R761","v":0}]
[22,null,{"$f":"'FR-16(7)(v)-1 Functional'!C762","v":"OTHER OPERATING REVS TO BE TAXED"},null,null,{"$f":"F760-F761","v":1695053},{"$f":"G760-G761","v":935653},{"$f":"H760-H761","v":406615},{"$f":"I760-I761","v":2052},{"$f":"J760-J761","v":8323},136,187913,123253,6206,7206,17517,{"$f":"$Q$760-Q761","v":179},{"$f":"R760-R761","v":1695053},{"$f":"S760-S761","v":0}]
[23]
[24,null,{"$f":"'FR-16(7)(v)-1 Functional'!C764","v":"REVENUE TAX FACTOR"},null,null,{"$f":"ROUND(F817/(1-F817),8)","v":0},0,0,0,{"$f":"ROUND(J817/(1-J817),8)","v":0},0,0,0,0,0,0,0,0,0]
[25,null,{"$f":"'FR-16(7)(v)-1 Functional'!C765","v":"REVENUE TAX ON OTHER OPER. REVS"},null,null,{"$f":"ROUND(F764*F762,0)","v":0},{"$f":"F765-SUM(H765:Q765)","v":0},{"$f":"ROUND(H764*H762,0)","v":0},{"$f":"ROUND(I764*I762,0)","v":0},{"$f":"ROUND(J764*J762,0)","v":0},0,0,0,0,0,0,{"$f":"ROUND(Q764*Q762,0)","v":0},{"$f":"SUM(G765:Q765)","v":0},{"$f":"ROUND(S764*S762,0)","v":0}]
[26,null,{"$f":"'FR-16(7)(v)-1 Functional'!C766","v":"REVENUE TAX ON COST OF SERVICE"},null,null,{"$f":"ROUND(F764*F758,0)","v":0},{"$f":"F766-SUM(H766:Q766)","v":0},{"$f":"ROUND(H764*H758,0)","v":0},{"$f":"ROUND(I764*I758,0)","v":0},{"$f":"ROUND(J764*J758,0)","v":0},0,0,0,0,0,0,{"$f":"ROUND(Q764*$Q$758,0)","v":0},{"$f":"SUM(G766:Q766)","v":0},{"$f":"ROUND(S764*S758,0)","v":0}]
[27,null,{"$f":"'FR-16(7)(v)-1 Functional'!C767","v":"TOTAL REVENUE TAX"},null,null,{"$f":"F766+F765","v":0},{"$f":"G766+G765","v":0},{"$f":"H766+H765","v":0},{"$f":"I766+I765","v":0},{"$f":"J766+J765","v":0},0,0,0,0,0,0,{"$f":"Q766+Q765","v":0},{"$f":"R766+R765","v":0},{"$f":"S766+S765","v":0}]
[28]
[29,null,"RESERVED",null,null,{"$f":"F24","v":0},{"$f":"G24","v":0},{"$f":"H24","v":0},{"$f":"I24","v":0},{"$f":"J24","v":0},0,0,0,0,0,0,{"$f":"Q24","v":0},{"$f":"R24","v":0}]
[30,null,{"$f":"'FR-16(7)(v)-1 Functional'!C770","v":"  TOTAL ELECTRIC COST OF SERVICE"},null,null,{"$f":"F769+F767+F758","v":353973313},162616878,90113055,472613,1592610,26181,48495992,32910830,1581786,13985845,2137911,39428,353973129,{"$f":"S767+S758","v":-184}]
[31]
[32,"PROPOSED REVENUES ",null,null,null,{"$f":"'FR-16(7)(v)-1 Functional'!F772","v":355094168},{"$f":"'FR-16(7)(v)-3 PROD Demand'!G772+'FR-16(7)(v)-4 PROD Energy'!G772+'FR-16(7)(v)-5 PROD Cust'!G772+'FR-16(7)(v)-7 TRANS Demand'!G772+'FR-16(7)(v)-8 TRANS Energy'!G772+'FR-16(7)(v)-9 TRANS Cust'!G772+'FR-16(7)(v)-11 DIST Demand'!G772+'FR-16(7)(v)-12 DIST Energy'!G772+'FR-16(7)(v)-13 DIST Cust'!G772","v":232142122},{"$f":"'FR-16(7)(v)-3 PROD Demand'!H772+'FR-16(7)(v)-4 PROD Energy'!H772+'FR-16(7)(v)-5 PROD Cust'!H772+'FR-16(7)(v)-7 TRANS Demand'!H772+'FR-16(7)(v)-8 TRANS Energy'!H772+'FR-16(7)(v)-9 TRANS Cust'!H772+'FR-16(7)(v)-11 DIST Demand'!H772+'FR-16(7)(v)-12 DIST Energy'!H772+'FR-16(7)(v)-13 DIST Cust'!H772","v":60156989},{"$f":"'FR-16(7)(v)-3 PROD Demand'!I772+'FR-16(7)(v)-4 PROD Energy'!I772+'FR-16(7)(v)-5 PROD Cust'!I772+'FR-16(7)(v)-7 TRANS Demand'!I772+'FR-16(7)(v)-8 TRANS Energy'!I772+'FR-16(7)(v)-9 TRANS Cust'!I772+'FR-16(7)(v)-11 DIST Demand'!I772+'FR-16(7)(v)-12 DIST Energy'!I772+'FR-16(7)(v)-13 DIST Cust'!I772","v":319918},{"$f":"'FR-16(7)(v)-3 PROD Demand'!J772+'FR-16(7)(v)-4 PROD Energy'!J772+'FR-16(7)(v)-5 PROD Cust'!J772+'FR-16(7)(v)-7 TRANS Demand'!J772+'FR-16(7)(v)-8 TRANS Energy'!J772+'FR-16(7)(v)-9 TRANS Cust'!J772+'FR-16(7)(v)-11 DIST Demand'!J772+'FR-16(7)(v)-12 DIST Energy'!J772+'FR-16(7)(v)-13 DIST Cust'!J772","v":1026141},{"$f":"'FR-16(7)(v)-3 PROD Demand'!K772+'FR-16(7)(v)-4 PROD Energy'!K772+'FR-16(7)(v)-5 PROD Cust'!K772+'FR-16(7)(v)-7 TRANS Demand'!K772+'FR-16(7)(v)-8 TRANS Energy'!K772+'FR-16(7)(v)-9 TRANS Cust'!K772+'FR-16(7)(v)-11 DIST Demand'!K772+'FR-16(7)(v)-12 DIST Energy'!K772+'FR-16(7)(v)-13 DIST Cust'!K772","v":23101},{"$f":"'FR-16(7)(v)-3 PROD Demand'!L772+'FR-16(7)(v)-4 PROD Energy'!L772+'FR-16(7)(v)-5 PROD Cust'!L772+'FR-16(7)(v)-7 TRANS Demand'!L772+'FR-16(7)(v)-8 TRANS Energy'!L772+'FR-16(7)(v)-9 TRANS Cust'!L772+'FR-16(7)(v)-11 DIST Demand'!L772+'FR-16(7)(v)-12 DIST Energy'!L772+'FR-16(7)(v)-13 DIST Cust'!L772","v":29421555},{"$f":"'FR-16(7)(v)-3 PROD Demand'!M772+'FR-16(7)(v)-4 PROD Energy'!M772+'FR-16(7)(v)-5 PROD Cust'!M772+'FR-16(7)(v)-7 TRANS Demand'!M772+'FR-16(7)(v)-8 TRANS Energy'!M772+'FR-16(7)(v)-9 TRANS Cust'!M772+'FR-16(7)(v)-11 DIST Demand'!M772+'FR-16(7)(v)-12 DIST Energy'!M772+'FR-16(7)(v)-13 DIST Cust'!M772","v":19848838},{"$f":"'FR-16(7)(v)-3 PROD Demand'!N772+'FR-16(7)(v)-4 PROD Energy'!N772+'FR-16(7)(v)-5 PROD Cust'!N772+'FR-16(7)(v)-7 TRANS Demand'!N772+'FR-16(7)(v)-8 TRANS Energy'!N772+'FR-16(7)(v)-9 TRANS Cust'!N772+'FR-16(7)(v)-11 DIST Demand'!N772+'FR-16(7)(v)-12 DIST Energy'!N772+'FR-16(7)(v)-13 DIST Cust'!N772","v":977898},{"$f":"'FR-16(7)(v)-3 PROD Demand'!O772+'FR-16(7)(v)-4 PROD Energy'!O772+'FR-16(7)(v)-5 PROD Cust'!O772+'FR-16(7)(v)-7 TRANS Demand'!O772+'FR-16(7)(v)-8 TRANS Energy'!O772+'FR-16(7)(v)-9 TRANS Cust'!O772+'FR-16(7)(v)-11 DIST Demand'!O772+'FR-16(7)(v)-12 DIST Energy'!O772+'FR-16(7)(v)-13 DIST Cust'!O772","v":8179533},{"$f":"'FR-16(7)(v)-3 PROD Demand'!P772+'FR-16(7)(v)-4 PROD Energy'!P772+'FR-16(7)(v)-5 PROD Cust'!P772+'FR-16(7)(v)-7 TRANS Demand'!P772+'FR-16(7)(v)-8 TRANS Energy'!P772+'FR-16(7)(v)-9 TRANS Cust'!P772+'FR-16(7)(v)-11 DIST Demand'!P772+'FR-16(7)(v)-12 DIST Energy'!P772+'FR-16(7)(v)-13 DIST Cust'!P772","v":2965974},{"$f":"'FR-16(7)(v)-3 PROD Demand'!Q772+'FR-16(7)(v)-4 PROD Energy'!Q772+'FR-16(7)(v)-5 PROD Cust'!Q772+'FR-16(7)(v)-7 TRANS Demand'!Q772+'FR-16(7)(v)-8 TRANS Energy'!Q772+'FR-16(7)(v)-9 TRANS Cust'!Q772+'FR-16(7)(v)-11 DIST Demand'!Q772+'FR-16(7)(v)-12 DIST Energy'!Q772+'FR-16(7)(v)-13 DIST Cust'!Q772","v":32099},{"$f":"SUM(G772:Q772)","v":355094168},{"$f":"F772-R772","v":0}]
[33,"TOTAL ELECTRIC COST OF SERVICE",null,null,null,{"$f":"-F770","v":-353973313},-162616878,-90113055,-472613,{"$f":"-J770","v":-1592610},-26181,-48495992,-32910830,-1581786,-13985845,-2137911,-39428,-353973129,184]
[34,"EXCESS REVENUES",null,null,null,{"$f":"F773+F772","v":1120855},{"$f":"G773+G772","v":69525244},{"$f":"H773+H772","v":-29956066},{"$f":"I773+I772","v":-152695},{"$f":"J773+J772","v":-566469},-3080,-19074437,-13061992,-603888,-5806312,828063,{"$f":"Q773+Q772","v":-7329},{"$f":"SUM(G774:Q774)","v":1121039},{"$f":"F774-R774","v":-184}]
[35,"COMPOSITE TAX RATE",null,null,null,{"$f":"F729","v":0.24925115},{"$f":"G729","v":0.24925115},0.24925115,0.24925115,{"$f":"J729","v":0.24925115},0.24925115,0.24925115,0.24925115,0.24925115,0.24925115,0.24925115,0.24925115,0.24925115,0.24925115]
[36,"EXCESS TAX",null,null,null,{"$f":"'FR-16(7)(v)-3 PROD Demand'!F776+'FR-16(7)(v)-4 PROD Energy'!F776+'FR-16(7)(v)-5 PROD Cust'!F776+'FR-16(7)(v)-7 TRANS Demand'!F776+'FR-16(7)(v)-8 TRANS Energy'!F776+'FR-16(7)(v)-9 TRANS Cust'!F776+'FR-16(7)(v)-11 DIST Demand'!F776+'FR-16(7)(v)-12 DIST Energy'!F776+'FR-16(7)(v)-13 DIST Cust'!F776","v":279420},{"$f":"'FR-16(7)(v)-3 PROD Demand'!G776+'FR-16(7)(v)-4 PROD Energy'!G776+'FR-16(7)(v)-5 PROD Cust'!G776+'FR-16(7)(v)-7 TRANS Demand'!G776+'FR-16(7)(v)-8 TRANS Energy'!G776+'FR-16(7)(v)-9 TRANS Cust'!G776+'FR-16(7)(v)-11 DIST Demand'!G776+'FR-16(7)(v)-12 DIST Energy'!G776+'FR-16(7)(v)-13 DIST Cust'!G776","v":17329251},{"$f":"'FR-16(7)(v)-3 PROD Demand'!H776+'FR-16(7)(v)-4 PROD Energy'!H776+'FR-16(7)(v)-5 PROD Cust'!H776+'FR-16(7)(v)-7 TRANS Demand'!H776+'FR-16(7)(v)-8 TRANS Energy'!H776+'FR-16(7)(v)-9 TRANS Cust'!H776+'FR-16(7)(v)-11 DIST Demand'!H776+'FR-16(7)(v)-12 DIST Energy'!H776+'FR-16(7)(v)-13 DIST Cust'!H776","v":-7466584},{"$f":"'FR-16(7)(v)-3 PROD Demand'!I776+'FR-16(7)(v)-4 PROD Energy'!I776+'FR-16(7)(v)-5 PROD Cust'!I776+'FR-16(7)(v)-7 TRANS Demand'!I776+'FR-16(7)(v)-8 TRANS Energy'!I776+'FR-16(7)(v)-9 TRANS Cust'!I776+'FR-16(7)(v)-11 DIST Demand'!I776+'FR-16(7)(v)-12 DIST Energy'!I776+'FR-16(7)(v)-13 DIST Cust'!I776","v":-38060},{"$f":"'FR-16(7)(v)-3 PROD Demand'!J776+'FR-16(7)(v)-4 PROD Energy'!J776+'FR-16(7)(v)-5 PROD Cust'!J776+'FR-16(7)(v)-7 TRANS Demand'!J776+'FR-16(7)(v)-8 TRANS Energy'!J776+'FR-16(7)(v)-9 TRANS Cust'!J776+'FR-16(7)(v)-11 DIST Demand'!J776+'FR-16(7)(v)-12 DIST Energy'!J776+'FR-16(7)(v)-13 DIST Cust'!J776","v":-141193},{"$f":"'FR-16(7)(v)-3 PROD Demand'!K776+'FR-16(7)(v)-4 PROD Energy'!K776+'FR-16(7)(v)-5 PROD Cust'!K776+'FR-16(7)(v)-7 TRANS Demand'!K776+'FR-16(7)(v)-8 TRANS Energy'!K776+'FR-16(7)(v)-9 TRANS Cust'!K776+'FR-16(7)(v)-11 DIST Demand'!K776+'FR-16(7)(v)-12 DIST Energy'!K776+'FR-16(7)(v)-13 DIST Cust'!K776","v":-768},{"$f":"'FR-16(7)(v)-3 PROD Demand'!L776+'FR-16(7)(v)-4 PROD Energy'!L776+'FR-16(7)(v)-5 PROD Cust'!L776+'FR-16(7)(v)-7 TRANS Demand'!L776+'FR-16(7)(v)-8 TRANS Energy'!L776+'FR-16(7)(v)-9 TRANS Cust'!L776+'FR-16(7)(v)-11 DIST Demand'!L776+'FR-16(7)(v)-12 DIST Energy'!L776+'FR-16(7)(v)-13 DIST Cust'!L776","v":-4754325},{"$f":"'FR-16(7)(v)-3 PROD Demand'!M776+'FR-16(7)(v)-4 PROD Energy'!M776+'FR-16(7)(v)-5 PROD Cust'!M776+'FR-16(7)(v)-7 TRANS Demand'!M776+'FR-16(7)(v)-8 TRANS Energy'!M776+'FR-16(7)(v)-9 TRANS Cust'!M776+'FR-16(7)(v)-11 DIST Demand'!M776+'FR-16(7)(v)-12 DIST Energy'!M776+'FR-16(7)(v)-13 DIST Cust'!M776","v":-3255717},{"$f":"'FR-16(7)(v)-3 PROD Demand'!N776+'FR-16(7)(v)-4 PROD Energy'!N776+'FR-16(7)(v)-5 PROD Cust'!N776+'FR-16(7)(v)-7 TRANS Demand'!N776+'FR-16(7)(v)-8 TRANS Energy'!N776+'FR-16(7)(v)-9 TRANS Cust'!N776+'FR-16(7)(v)-11 DIST Demand'!N776+'FR-16(7)(v)-12 DIST Energy'!N776+'FR-16(7)(v)-13 DIST Cust'!N776","v":-150520},{"$f":"'FR-16(7)(v)-3 PROD Demand'!O776+'FR-16(7)(v)-4 PROD Energy'!O776+'FR-16(7)(v)-5 PROD Cust'!O776+'FR-16(7)(v)-7 TRANS Demand'!O776+'FR-16(7)(v)-8 TRANS Energy'!O776+'FR-16(7)(v)-9 TRANS Cust'!O776+'FR-16(7)(v)-11 DIST Demand'!O776+'FR-16(7)(v)-12 DIST Energy'!O776+'FR-16(7)(v)-13 DIST Cust'!O776","v":-1447232},{"$f":"'FR-16(7)(v)-3 PROD Demand'!P776+'FR-16(7)(v)-4 PROD Energy'!P776+'FR-16(7)(v)-5 PROD Cust'!P776+'FR-16(7)(v)-7 TRANS Demand'!P776+'FR-16(7)(v)-8 TRANS Energy'!P776+'FR-16(7)(v)-9 TRANS Cust'!P776+'FR-16(7)(v)-11 DIST Demand'!P776+'FR-16(7)(v)-12 DIST Energy'!P776+'FR-16(7)(v)-13 DIST Cust'!P776","v":206395},{"$f":"'FR-16(7)(v)-3 PROD Demand'!Q776+'FR-16(7)(v)-4 PROD Energy'!Q776+'FR-16(7)(v)-5 PROD Cust'!Q776+'FR-16(7)(v)-7 TRANS Demand'!Q776+'FR-16(7)(v)-8 TRANS Energy'!Q776+'FR-16(7)(v)-9 TRANS Cust'!Q776+'FR-16(7)(v)-11 DIST Demand'!Q776+'FR-16(7)(v)-12 DIST Energy'!Q776+'FR-16(7)(v)-13 DIST Cust'!Q776","v":-1827},{"$f":"SUM(G776:Q776)","v":279420},{"$f":"F776-R776","v":0}]
[37,"EXCESS RETURN",null,null,null,{"$f":"F774-F776","v":841435},{"$f":"G774-G776","v":52195993},{"$f":"H774-H776","v":-22489482},{"$f":"I774-I776","v":-114635},{"$f":"J774-J776","v":-425276},-2312,-14320112,-9806275,-453368,-4359080,621668,{"$f":"Q774-Q776","v":-5502},{"$f":"SUM(G777:Q777)","v":841619},{"$f":"F777-R777","v":-184}]
[]
[{"$f":"co_name","v":"DUKE ENERGY KENTUCKY, INC."},null,null,null,null,null,null,null,null,null,null,null,null,null,null,null,null,{"$f":"R1","v":"FR-16(7)(v)-14"}]
[{"$f":"$A$2","v":"TOTAL CLASS ALLOCATED - ELECTRIC COST OF SERVICE"},null,null,null,null,null,null,null,null,null,null,null,null,null,null,null,null,{"$f":"R2","v":"WITNESS RESPONSIBLE:"}]
[{"$f":"case_name","v":"CASE NO: 2019-00271"},null,null,null,null,null,null,null,null,null,null,null,null,null,null,null,null,{"$f":"Witness","v":"JAMES E. ZIOLKOWSKI"}]
[{"$f":"data_filing","v":"DATA: 12 MONTHS ACTUAL  & 0 MONTHS ESTIMATED"},null,null,null,null,null,null,null,null,null,null,null,null,null,null,null,null,{"$f":"\"PAGE \"&Pages2&\" OF \"&Pages2","v":"PAGE 15 OF 15"}]
[{"$f":"type","v":"TYPE OF FILING: \"X\" ORIGINAL   UPDATED    REVISED  "}]
[]
[null,null,null,null,null,{"$f":"F$7","v":"TOTAL"},null,{"$f":"H$7","v":"DS"},{"$f":"I$7","v":"GSFL"},{"$f":"J$7","v":"EH"},{"$f":"K$7","v":"SP"},"DT SEC","DT PRI","DP","TT",null,"OTHER"]
["LINE",null,null,null,null,{"$f":"F$8","v":"CLASS"},{"$f":"G$8","v":"RS"},{"$f":"H$8","v":"SECONDARY"},{"$f":"I$8","v":"SECONDARY"},{"$f":"J$8","v":"SECONDARY"},{"$f":"K$8","v":"SECONDARY"},"SECONDARY","PRIMARY","PRIMARY","TRANSMISSION","LT","WATER",{"$f":"R8","v":"TOTAL"},"ALL"]
["NO.","ROR, TAX RATES & SPEC FACTORS",null,"ALLO",null,{"$f":"F$9","v":"ALLOCATED"},{"$f":"G$9","v":"RESIDENTIAL"},{"$f":"H$9","v":"DISTRIBUTION"},{"$f":"I$9","v":"DISTRIBUTION"},{"$f":"J$9","v":"DISTRIBUTION"},{"$f":"K$9","v":"DISTRIBUTION"},"DISTRIBUTION","DISTRIBUTION","DISTRIBUTION","TIME OF DAY","LIGHTING","PUMPING",{"$f":"R9","v":"AT ISSUE"},"OTHER"]
[null,null,"Schedule 11",null,null,null,{"$f":"G$10","v":3},{"$f":"H$10","v":4},{"$f":"I$10","v":5},{"$f":"J$10","v":6},{"$f":"K$10","v":7},8,9,10,11,12,13,null," "]
[1,"RATE OF RETURN"]
[2," CAPITALIZATION AMOUNTS",null,null,null,null,"RATIO"]
[3,null,{"$f":"'FR-16(7)(v)-1 Functional'!C791","v":"LONG TERM DEBT"},null,null,{"$f":"'FR-16(7)(v)-2 PROD Classified'!$F$791","v":665948506},{"$f":"IF(TotalCap=0,0,ROUND(F791/TotalCap,4))","v":0.45929999999999999}]
[4,null,{"$f":"'FR-16(7)(v)-1 Functional'!C792","v":"PREFERRED STOCK"},null,null,{"$f":"'FR-16(7)(v)-2 PROD Classified'!$F$792","v":0},{"$f":"IF(TotalCap=0,0,ROUND(F792/TotalCap,4))","v":0}]
[5,null,{"$f":"'FR-16(7)(v)-1 Functional'!C793","v":"COMMON STOCK"},null,null,{"$f":"[0]!Equity","v":699348680},{"$f":"1-G791-G792-G794-G795","v":0.48239999999999994}]
[6,null,{"$f":"'FR-16(7)(v)-1 Functional'!C794","v":"SHORT TERM DEBT"},null,null,{"$f":"'FR-16(7)(v)-2 PROD Classified'!$F$794","v":84600060},{"$f":"IF(TotalCap=0,0,ROUND(F794/TotalCap,4))","v":5.8299999999999998E-2}]
[7,null,{"$f":"'FR-16(7)(v)-1 Functional'!C795","v":"UNAMORTIZED DISCOUNT"},null,null,{"$f":"'FR-16(7)(v)-2 PROD Classified'!$F$795","v":0},{"$f":"IF(TotalCap=0,0,ROUND(F795/TotalCap,4))","v":0}]
[8,null,{"$f":"'FR-16(7)(v)-1 Functional'!C796","v":"  TOTAL"},null,null,{"$f":"SUM(F790:F795)","v":1449897246},{"$f":"SUM(G791:G795)","v":1}]
[9]
[10," COST OF CAPITAL"]
[11,null,{"$f":"'FR-16(7)(v)-1 Functional'!C799","v":"LONG TERM DEBT"},null,null,{"$f":"'FR-16(7)(v)-2 PROD Classified'!$F$799","v":4.0730000000000002E-2}]
[12,null,{"$f":"'FR-16(7)(v)-1 Functional'!C800","v":"PREFERRED STOCK"},null,null,{"$f":"'FR-16(7)(v)-2 PROD Classified'!$F$800","v":0}]
[13,null,{"$f":"'FR-16(7)(v)-1 Functional'!C801","v":"COMMON STOCK"},null,null,{"$f":"'FR-16(7)(v)-2 PROD Classified'!$F$801","v":9.8000000000000004E-2}]
[14,null,{"$f":"'FR-16(7)(v)-1 Functional'!C802","v":"SHORT TERM DEBT"},null,null,{"$f":"'FR-16(7)(v)-2 PROD Classified'!$F$802","v":1.9369999999999998E-2}]
[15,null,{"$f":"'FR-16(7)(v)-1 Functional'!C803","v":"UNAMORTIZED DISCOUNT"},null,null,{"$f":"'FR-16(7)(v)-2 PROD Classified'!$F$803","v":0}]
[16]
[17," WEIGHTED COST OF CAPITAL"]
[18,null,{"$f":"'FR-16(7)(v)-1 Functional'!C806","v":"LONG TERM DEBT"},null,null,{"$f":"ROUND(G791*F799,4)","v":1.8700000000000001E-2}]
[19,null,{"$f":"'FR-16(7)(v)-1 Functional'!C807","v":"PREFERRED STOCK"},null,null,{"$f":"ROUND(G792*F800,4)","v":0}]
[20,null,{"$f":"'FR-16(7)(v)-1 Functional'!C808","v":"COMMON STOCK"},null,null,{"$f":"ROUND(G793*F801,4)","v":4.7300000000000002E-2}]
[21,null,{"$f":"'FR-16(7)(v)-1 Functional'!C809","v":"SHORT TERM DEBT"},null,null,{"$f":"ROUND(G794*F802,4)","v":1.1000000000000001E-3}]
[22,null,{"$f":"'FR-16(7)(v)-1 Functional'!C810","v":"UNAMORTIZED DISCOUNT"},null,null,{"$f":"ROUND(G795*F803,4)","v":0}]
[23,null,{"$f":"'FR-16(7)(v)-1 Functional'!C811","v":"  TOT RATE OF RETURN ALLOWABLE"},null,null,{"$f":"SUM(F806:F810)","v":6.7100000000000007E-2}]
[24]
[25,"TAX RATES AND SPECIAL FACTORS"]
[26,null,{"$f":"'FR-16(7)(v)-1 Functional'!C814","v":"SHORT TERM DEBT COST"},null,null,0,{"$f":"F814","v":0},{"$f":"F814","v":0},{"$f":"F814","v":0},{"$f":"G814","v":0},0,0,0,0,0,0,{"$f":"$F$814","v":0},{"$f":"F814","v":0},{"$f":"F814","v":0}]
[27,null,{"$f":"'FR-16(7)(v)-1 Functional'!C815","v":"FEDERAL INCOME TAX RATE"},null,null,0.35,{"$f":"FIT","v":0.21},0.21,0.21,0.21,0.21,0.21,0.21,0.21,0.21,0.21,0.21,0.21,0.21]
[28,null,{"$f":"'FR-16(7)(v)-1 Functional'!C816","v":"STATE INCOME TAX RATE"},null,null,{"$f":"SIT","v":4.9685000000000007E-2},{"$f":"SIT","v":4.9685000000000007E-2},4.9685000000000007E-2,4.9685000000000007E-2,4.9685000000000007E-2,4.9685000000000007E-2,4.9685000000000007E-2,4.9685000000000007E-2,4.9685000000000007E-2,4.9685000000000007E-2,4.9685000000000007E-2,4.9685000000000007E-2,4.9685000000000007E-2,4.9685000000000007E-2]
[29,null,{"$f":"'FR-16(7)(v)-1 Functional'!C817","v":"REVENUE TAX RATE"},null,null,0,{"$f":"RevTax","v":0},0,0,0,0,0,0,0,0,0,0,0,0]
[]
[]
[]
[]
[]
[]
[]
[]
[]
[]
[]
[]
[]
[]
[]
[]
[]
[]
[]
[]
[]
[]
[]
[]
[]
[]
[]
[]
[]
[]
[]
[]
[]
[]
[]
[]
[]
[]
[]
[]
[]
[]
[]
[]
[]
[]
[]
[]
[]
[]
[]
[]
[]
[]
[]
[]
[]
[]
[]
[]
[]
[]
[]
[]
[]
[]
[]
[]
[]
[]
[]
[]
[]
[]
[]
[]
[]
[]
[]
[]
[]
[]
[]
[]
[]
[]
[]
[]
[]
[]
[]
[]
[]
[]
[]
[]
[]
[]
[]
[]
[]
[]
[]
[]
[]
[]
[]
[]
[]
[]
[]
[]
[]
[]
[]
[]
[]
[]
[]
[]
[]
[]
[]
[]
[]
[]
[]
[]
[]
[]
[]
[]
[]
[]
[]
[]
[]
[]
[]
[]
[]
[]
[]
[]
[]
[]
[]
[]
[]
[]
[]
[]
[]
[]
[]
[]
[]
[]
[]
[]
[]
[]
[]
[]
[]
[]
["DO NOT FILE THIS PAGE"]
[]
[{"$f":"co_name","v":"DUKE ENERGY KENTUCKY, INC."},null,null,null,null,null,null,null,null,null,null,null,null,null,null,null,null,{"$f":"R1","v":"FR-16(7)(v)-14"}]
[{"$f":"$A$2","v":"TOTAL CLASS ALLOCATED - ELECTRIC COST OF SERVICE"},null,null,null,null,null,null,null,null,null,null,null,null,null,null,null,null,{"$f":"R2","v":"WITNESS RESPONSIBLE:"}]
[{"$f":"case_name","v":"CASE NO: 2019-00271"},null,null,null,null,null,null,null,null,null,null,null,null,null,null,null,null,{"$f":"Witness","v":"JAMES E. ZIOLKOWSKI"}]
[{"$f":"data_filing","v":"DATA: 12 MONTHS ACTUAL  & 0 MONTHS ESTIMATED"},null,null,null,null,null,null,null,null,null,null,null,null,null,null,null,null,{"$f":"\"PAGE \"&Pages2&\" OF \"&Pages2","v":"PAGE 15 OF 15"}]
[{"$f":"type","v":"TYPE OF FILING: \"X\" ORIGINAL   UPDATED    REVISED  "}]
[]
[null,null,null,null,null,{"$f":"F$7","v":"TOTAL"},null,{"$f":"H$7","v":"DS"},{"$f":"I$7","v":"GSFL"},{"$f":"J$7","v":"EH"},{"$f":"K$7","v":"SP"},"DT SEC","DT PRI","DP","TT",null,"OTHER"]
["LINE",null,null,null,null,{"$f":"F$8","v":"CLASS"},{"$f":"G$8","v":"RS"},{"$f":"H$8","v":"SECONDARY"},{"$f":"I$8","v":"SECONDARY"},{"$f":"J$8","v":"SECONDARY"},{"$f":"K$8","v":"SECONDARY"},"SECONDARY","PRIMARY","PRIMARY","TRANSMISSION","LT","WATER",{"$f":"R8","v":"TOTAL"},"ALL"]
["NO.","INCOME TAX BASED ON REVENUES",null,"ALLO",null,{"$f":"F$9","v":"ALLOCATED"},{"$f":"G$9","v":"RESIDENTIAL"},{"$f":"H$9","v":"DISTRIBUTION"},{"$f":"I$9","v":"DISTRIBUTION"},{"$f":"J$9","v":"DISTRIBUTION"},{"$f":"K$9","v":"DISTRIBUTION"},"DISTRIBUTION","DISTRIBUTION","DISTRIBUTION","TIME OF DAY","LIGHTING","PUMPING",{"$f":"R9","v":"AT ISSUE"},"OTHER"]
[null,null,"Schedule 13",null,null,null,{"$f":"G$10","v":3},{"$f":"H$10","v":4},{"$f":"I$10","v":5},{"$f":"J$10","v":6},{"$f":"K$10","v":7},8,9,10,11,12,13,null," "]
[1,"NET INCOME COMPUTATION"]
[2,null,{"$f":"'FR-16(7)(v)-1 Functional'!C1008","v":"TOTAL ELECTRIC COST OF SERVICE"},null,null,{"$f":"F770","v":353973313},162616878,90113055,472613,{"$f":"J770","v":1592610},26181,48495992,32910830,1581786,13985845,2137911,39428,353973129,-184]
[3,null,{"$f":"'FR-16(7)(v)-1 Functional'!C1009","v":"TOTAL OTHER OPERATING REVENUES"},null,null,{"$f":"F750","v":1695053},{"$f":"G750","v":935653},{"$f":"H750","v":406615},{"$f":"I750","v":2052},{"$f":"J750","v":8323},136,187913,123253,6206,7206,17517,{"$f":"$Q$750","v":179},{"$f":"R750","v":1695053},{"$f":"S750","v":0}]
[4,null,{"$f":"'FR-16(7)(v)-1 Functional'!C1010","v":"  TOTAL ELECTRIC REVENUE"},null,null,{"$f":"SUM(F996:F998)","v":355668366},163552531,90519670,474665,{"$f":"SUM(J996:J998)","v":1600933},26317,48683905,33034083,1587992,13993051,2155428,39607,355668182,-184]
[5,null,{"$f":"'FR-16(7)(v)-1 Functional'!C1011","v":"TOTAL OP EXP EX INC & REV TAX"},null,null,{"$f":"-F618","v":-282568408},{"$f":"-G618","v":-128022036},{"$f":"-H618","v":-71965759},{"$f":"-I618","v":-380700},{"$f":"-J618","v":-1252779},-20785,-39314205,-26776082,-1283255,-11792222,-1729013,{"$f":"-$Q$618","v":-31572},{"$f":"-R618","v":-282568408},{"$f":"-S618","v":0}]
[6,null,{"$f":"'FR-16(7)(v)-1 Functional'!C1012","v":"FIRM SERVICE REVENUE TAX"},null,null,{"$f":"-ROUND(F817*F997,0)","v":0},{"$f":"F1001-SUM(H1001:Q1001)","v":0},{"$f":"-ROUND(H817*H997,0)","v":0},{"$f":"-ROUND(I817*I997,0)","v":0},{"$f":"-ROUND(J817*J997,0)","v":0},0,0,0,0,0,0,{"$f":"-ROUND(Q817*Q997,0)","v":0},{"$f":"SUM(G1001:Q1001)","v":0},{"$f":"-ROUND('FR-16(7)(v)-1 Functional'!K817*S997,0)","v":0}]
[7,null,{"$f":"'FR-16(7)(v)-1 Functional'!C1013","v":"  NET INCOME"},null,null,{"$f":"SUM(F999:F1001)","v":73099958},{"$f":"SUM(G999:G1001)","v":35530495},{"$f":"SUM(H999:H1001)","v":18553911},{"$f":"SUM(I999:I1001)","v":93965},{"$f":"SUM(J999:J1001)","v":348154},5532,9369700,6258001,304737,2200829,426415,{"$f":"SUM(Q999:Q1001)","v":8035},{"$f":"SUM(G1002:Q1002)","v":73099774},{"$f":"SUM(S999:S1001)","v":-184}]
[8]
[9,"ADJUSTMENTS TO NET INCOME"]
[10,null,{"$f":"'FR-16(7)(v)-1 Functional'!C1016","v":"TOTAL INTEREST EXPENSE"},null,null,{"$f":"-F633","v":-18775174},{"$f":"-G633","v":-9286917},{"$f":"-H633","v":-4810951},{"$f":"-I633","v":-23721},{"$f":"-J633","v":-93041},-1425,-2336706,-1543098,-75614,-508547,-93107,{"$f":"-$Q$633","v":-2047},{"$f":"-R633","v":-18775174},{"$f":"-S633","v":0}]
[11,null,{"$f":"'FR-16(7)(v)-1 Functional'!C1017","v":"TOTAL OTHER DEDUCTIONS"},null,null,{"$f":"-F639","v":-70001537},{"$f":"-G639","v":-33567148},{"$f":"-H639","v":-18299052},{"$f":"-I639","v":-89749},{"$f":"-J639","v":-349964},-5205,-8958253,-5919917,-288451,-2255454,-260686,{"$f":"-$Q$639","v":-7658},{"$f":"-R639","v":-70001537},{"$f":"-S639","v":0}]
[12,null,{"$f":"'FR-16(7)(v)-1 Functional'!C1018","v":"  PRELIMINARY TAXABLE INCOME"},null,null,{"$f":"SUM(F1004:F1006)+F1002","v":-15676753},{"$f":"SUM(G1004:G1006)+G1002","v":-7323570},{"$f":"SUM(H1004:H1006)+H1002","v":-4556092},{"$f":"SUM(I1004:I1006)+I1002","v":-19505},{"$f":"SUM(J1004:J1006)+J1002","v":-94851},-1098,-1925259,-1205014,-59328,-563172,72622,{"$f":"SUM(Q1004:Q1006)+Q1002","v":-1670},{"$f":"SUM(G1007:Q1007)","v":-15676937},{"$f":"SUM(S1004:S1006)+S1002","v":-184}]
[13]
[14,"INCOME TAX BASED ON REVENUES"]
[15,"FEDERAL INCOME TAX COMPUTATION"]
[16,null,{"$f":"'FR-16(7)(v)-1 Functional'!C1022","v":"PRELIMINARY TAXABLE INCOME"},null,null,{"$f":"F1007","v":-15676753},-7323570,-4556092,-19505,{"$f":"J1007","v":-94851},-1098,-1925259,-1205014,-59328,-563172,72622,-1670,-15676937,-184]
[17,null,{"$f":"'FR-16(7)(v)-1 Functional'!C1023","v":"  NET FEDERAL TAXABLE INCOME"},null,null,{"$f":"SUM(F1011:F1011)","v":-15676753},-7323570,-4556092,-19505,{"$f":"SUM(J1011:J1011)","v":-94851},-1098,-1925259,-1205014,-59328,-563172,72622,-1670,-15676937,-184]
[18,null,{"$f":"'FR-16(7)(v)-1 Functional'!C1024","v":"  FEDERAL INCOME TAX RATE"},null,null,{"$f":"F815","v":0.35},{"$f":"G815","v":0.21},{"$f":"H815","v":0.21},{"$f":"I815","v":0.21},{"$f":"J815","v":0.21},0.21,0.21,0.21,0.21,0.21,0.21,{"$f":"Q815","v":0.21},null,{"$f":"'FR-16(7)(v)-1 Functional'!K815","v":0.21}]
[19,null,{"$f":"'FR-16(7)(v)-1 Functional'!C1025","v":"PRELIMINARY FIT = FI01 * K190"},null,null,{"$f":"ROUND(F1013*F1012,0)","v":-5486864},{"$f":"F1014-SUM(H1014:Q1014)","v":-3732657},{"$f":"ROUND(H1013*H1012,0)","v":-956779},{"$f":"ROUND(I1013*I1012,0)","v":-4096},{"$f":"ROUND(J1013*J1012,0)","v":-19919},-231,-404304,-253053,-12459,-118266,15251,{"$f":"ROUND(Q1013*Q1012,0)","v":-351},{"$f":"SUM(G1014:Q1014)","v":-5486864},{"$f":"ROUND(S1013*S1012,0)","v":-39}]
[20,null,{"$f":"'FR-16(7)(v)-1 Functional'!C1026","v":"TOTAL FED DEF IT (410 & 411)"},null,null,{"$f":"F649","v":10163328},{"$f":"G649","v":3708850},{"$f":"H649","v":2880003},{"$f":"I649","v":15703},{"$f":"J649","v":48137},773,1682897,1160932,54990,545249,64423,{"$f":"$Q$649","v":1232},{"$f":"R649","v":10163189},{"$f":"S649","v":139}]
[21,null,{"$f":"'FR-16(7)(v)-1 Functional'!C1027","v":"TOTAL AMORTIZED ITC"},null,null,{"$f":"-F653","v":-428},{"$f":"-G653","v":-213},{"$f":"-H653","v":-110},{"$f":"-I653","v":0},{"$f":"-J653","v":-2},0,-53,-35,-2,-11,-2,{"$f":"-$Q$653","v":0},{"$f":"-R653","v":-428},{"$f":"-S653","v":0}]
[22,null,{"$f":"'FR-16(7)(v)-1 Functional'!C1028","v":"  NET FED INC TAX ALLOWABLE"},null,null,{"$f":"SUM(F1014:F1016)","v":4676036},-24020,1923114,11607,{"$f":"SUM(J1014:J1016)","v":28216},542,1278540,907844,42529,426972,79672,881,4675897,100]
[23]
[24,"FEDERAL INCOME TAX PAYABLE"]
[25,null,{"$f":"'FR-16(7)(v)-1 Functional'!C1031","v":"PRELIM FIT"},null,null,{"$f":"F1014","v":-5486864},-3732657,-956779,-4096,{"$f":"J1014","v":-19919},-231,-404304,-253053,-12459,-118266,15251,-351,-5486864,-39]
[26,null,{"$f":"'FR-16(7)(v)-1 Functional'!C1032","v":"TEST YEAR INV TAX CREDIT"},null,null,{"$f":"-F658","v":0},{"$f":"-G658","v":0},{"$f":"-H658","v":0},{"$f":"-I658","v":0},{"$f":"-J658","v":0},0,0,0,0,0,0,{"$f":"-$Q$658","v":0},{"$f":"-R658","v":0},{"$f":"-S658","v":0}]
[27,null,{"$f":"'FR-16(7)(v)-1 Functional'!C1033","v":"  FED INC TAX PAYABLE"},null,null,{"$f":"SUM(F1019:F1021)","v":-5486864},-3732657,-956779,-4096,{"$f":"SUM(J1019:J1021)","v":-19919},-231,-404304,-253053,-12459,-118266,15251,-351,-5486864,-39]
[28]
[29,"PRELIMINARY SUMMARY"]
[30,null,{"$f":"'FR-16(7)(v)-1 Functional'!C1036","v":"NET INCOME"},null,null,{"$f":"F1002","v":73099958},35530495,18553911,93965,{"$f":"J1002","v":348154},5532,9369700,6258001,304737,2200829,426415,8035,73099774,-184]
[31,null,{"$f":"'FR-16(7)(v)-1 Functional'!C1037","v":"NET FED INC TAX ALLOWABLE"},null,null,{"$f":"-F1017","v":-4676036},24020,-1923114,-11607,{"$f":"-J1017","v":-28216},-542,-1278540,-907844,-42529,-426972,-79672,-881,-4675897,-100]
[32,null,{"$f":"'FR-16(7)(v)-1 Functional'!C1038","v":"  OVERALL RETURN EARNED"},null,null,{"$f":"SUM(F1024:F1026)","v":68423922},35554515,16630797,82358,{"$f":"SUM(J1024:J1026)","v":319938},4990,8091160,5350157,262208,1773857,346743,7154,68423877,-284]
[33]
[34,null,{"$f":"'FR-16(7)(v)-1 Functional'!C1040","v":"  RATE OF RETURN EARNED"},null,null,{"$f":"IF(F426=0,0,ROUND(F1027/F426,5))","v":7.2300000000000003E-2},{"$f":"IF(G426=0,0,ROUND(G1027/G426,5))","v":7.5880000000000003E-2},{"$f":"IF(H426=0,0,ROUND(H1027/H426,5))","v":6.8629999999999997E-2},{"$f":"IF(I426=0,0,ROUND(I1027/I426,5))","v":6.8790000000000004E-2},{"$f":"IF(J426=0,0,ROUND(J1027/J426,5))","v":6.8320000000000006E-2},6.9760000000000003E-2,6.8790000000000004E-2,6.8879999999999997E-2,6.8900000000000003E-2,6.9199999999999998E-2,7.3520000000000002E-2,{"$f":"IF(Q426=0,0,ROUND(Q1027/Q426,5))","v":6.9690000000000002E-2},{"$f":"IF(R426=0,0,ROUND(R1027/R426,5))","v":7.2300000000000003E-2},{"$f":"IF(S426=0,0,ROUND(S1027/S426,5))","v":0}]

{"sheet":"FR-16(7)(v)-15 RES Classified","index":19,"n_rows":1029,"n_cols":14,"rows_kept":1029,"cut":false,"hidden":false,"merged":[]}
[{"$f":"co_name","v":"DUKE ENERGY KENTUCKY, INC."},null,null,null,null,null,null,null,null,"FR-16(7)(v)-15"]
[{"$f":"F9&\" \"&\"CLASSIFIED - ELECTRIC COST OF SERVICE\"","v":"RESIDENTIAL CLASSIFIED - ELECTRIC COST OF SERVICE"},null,null,null,null,null,null,null,null,"WITNESS RESPONSIBLE:"]
[{"$f":"case_name","v":"CASE NO: 2019-00271"},null,null,null,null,null,null,null,null,{"$f":"Witness","v":"JAMES E. ZIOLKOWSKI"}]
[{"$f":"data_filing","v":"DATA: 12 MONTHS ACTUAL  & 0 MONTHS ESTIMATED"},null,null,null,null,null,null,null,null,{"$f":"\"PAGE \"&Pages2-14&\" OF \"&Pages2","v":"PAGE 1 OF 15"}]
[{"$f":"type","v":"TYPE OF FILING: \"X\" ORIGINAL   UPDATED    REVISED  "}]
[]
[]
["LINE",null,null,null,null,"TOTAL","CLASSIFIED",null,null,"TOTAL","ALL"]
["NO.","SUMMARY OF RESULTS",null,"ALLO",null,"RESIDENTIAL","DEMAND","ENERGY","CUSTOMER","AT ISSUE","OTHER"]
[null,null,"Schedule 1",null,null,null,3,4,5]
[1,"NET INCOME COMPUTATION"]
[2,null,{"$f":"'FR-16(7)(v)-1 Functional'!C12","v":"GROSS ELECTRIC PLANT IN SERVICE"},null,null,{"$f":"F123","v":950855827},{"$f":"G123","v":796830080},{"$f":"H123","v":11536800},{"$f":"I123","v":142488947},{"$f":"SUM(G12:I12)","v":950855827},{"$f":"F12-J12","v":0}]
[3,null,{"$f":"'FR-16(7)(v)-1 Functional'!C13","v":"TOTAL DEPRECIATION RESERVE"},null,null,{"$f":"-F200","v":-380312223},{"$f":"-G200","v":-328040716},{"$f":"-H200","v":-5626812},{"$f":"-I200","v":-46644695},{"$f":"SUM(G13:I13)","v":-380312223},{"$f":"F13-J13","v":0}]
[4,null,{"$f":"'FR-16(7)(v)-1 Functional'!C14","v":"TOTAL RATE BASE ADJUSTMENTS"},null,null,{"$f":"F421","v":-101954929},{"$f":"G421","v":-92721260},{"$f":"H421","v":6055355},{"$f":"I421","v":-15289024},{"$f":"SUM(G14:I14)","v":-101954929},{"$f":"F14-J14","v":0}]
[5,null,{"$f":"'FR-16(7)(v)-1 Functional'!C15","v":"  TOTAL RATE BASE"},null,null,{"$f":"SUM(F12:F14)","v":468588675},376068104,11965343,80555228,468588675,0]
[6]
[7,"OPERATING EXPENSES"]
[8,null,{"$f":"'FR-16(7)(v)-1 Functional'!C18","v":"TOTAL O&M EXPENSE"},null,null,{"$f":"F549","v":92724430},{"$f":"G549","v":26378678},{"$f":"H549","v":55963941},{"$f":"I549","v":10381811},{"$f":"SUM(G18:I18)","v":92724430},{"$f":"F18-J18","v":0}]
[9,null,{"$f":"'FR-16(7)(v)-1 Functional'!C19","v":"TOTAL DEPRECIATION EXPENSE"},null,null,{"$f":"F582","v":27967520},{"$f":"G582","v":23692309},{"$f":"H582","v":704631},{"$f":"I582","v":3570580},{"$f":"SUM(G19:I19)","v":27967520},{"$f":"F19-J19","v":0}]
[10,null,{"$f":"'FR-16(7)(v)-1 Functional'!C20","v":"TOTAL OTHER TAX & MISC EXPENSE"},null,null,{"$f":"F612","v":7330086},{"$f":"G612","v":5901085},{"$f":"H612","v":192559},{"$f":"I612","v":1236442},{"$f":"SUM(G20:I20)","v":7330086},{"$f":"F20-J20","v":0}]
[11,null,{"$f":"'FR-16(7)(v)-1 Functional'!C21","v":"  TOTAL OP EXP EXCLUDING INC & REV TAX"},null,null,{"$f":"SUM(F17:F20)","v":128022036},55972072,56861131,15188833,128022036,0]
[12,null,{"$f":"'FR-16(7)(v)-1 Functional'!C22","v":"NET FED INCOME TAX EXP ALLOWABLE"},null,null,{"$f":"F676","v":2291207},{"$f":"G676","v":-2142603},{"$f":"H676","v":4171600},{"$f":"I676","v":262210},{"$f":"SUM(G22:I22)","v":2291207},{"$f":"F22-J22","v":0}]
[13,null,"NET STATE INCOME TAX EXP ALLOWABLE",null,null,{"$f":"F722","v":1822463},{"$f":"G722","v":667288},{"$f":"H722","v":706183},{"$f":"I722","v":448993},{"$f":"SUM(G23:I23)","v":1822464},{"$f":"F23-J23","v":-1}]
[14,null,"RESERVED",{"$f":"'FR-16(7)(v)-1 Functional'!D24","v":"CW29"},null,{"$f":"'FR-16(7)(v)-14 TOTAL CLASS'!G24","v":0},{"$f":"'FR-16(7)(v)-3 PROD Demand'!G24+'FR-16(7)(v)-7 TRANS Demand'!G24+'FR-16(7)(v)-11 DIST Demand'!G24","v":0},{"$f":"'FR-16(7)(v)-4 PROD Energy'!G24+'FR-16(7)(v)-8 TRANS Energy'!G24+'FR-16(7)(v)-12 DIST Energy'!G24","v":0},{"$f":"'FR-16(7)(v)-5 PROD Cust'!G24+'FR-16(7)(v)-9 TRANS Cust'!G24+'FR-16(7)(v)-13 DIST Cust'!G24","v":0},{"$f":"SUM(G24:I24)","v":0},{"$f":"F24-J24","v":0}]
[15,null,{"$f":"'FR-16(7)(v)-1 Functional'!C25","v":"REVENUE TAX"},null,null,{"$f":"F767","v":0},{"$f":"G767","v":0},{"$f":"H767","v":0},{"$f":"I767","v":0},{"$f":"SUM(G25:I25)","v":0},{"$f":"F25-J25","v":0}]
[16,null,{"$f":"'FR-16(7)(v)-1 Functional'!C26","v":"  TOTAL OPERATING EXPENSE"},null,null,{"$f":"SUM(F21:F25)","v":132135706},54496757,61738914,15900036,132135707,-1]
[17]
[18,"RETURN ON RATE BASE",null,null,null,{"$f":"F433","v":31416822},{"$f":"G433","v":25274130},{"$f":"H433","v":803039},{"$f":"I433","v":5339653},{"$f":"SUM(G28:I28)","v":31416822},{"$f":"F28-J28","v":0}]
[19,"TOTAL OTHER OPERATING REVENUES",null,null,null,{"$f":"-F750","v":-935653},{"$f":"-G750","v":-620065},{"$f":"-H750","v":0},{"$f":"-I750","v":-315588},{"$f":"SUM(G29:I29)","v":-935653},0]
[20,null,{"$f":"'FR-16(7)(v)-1 Functional'!C30","v":"TOTAL ELECTRIC COST OF SERVICE"},null,null,{"$f":"SUM(F26:F29)","v":162616875},{"$f":"SUM(G26:G29)","v":79150822},{"$f":"SUM(H26:H29)","v":62541953},{"$f":"SUM(I26:I29)","v":20924101},{"$f":"SUM(J26:J29)","v":162616876},-1]
[21,"ADJUSTMENT FOR INTERCLASS SUBSIDIZATION",null,{"$f":"1-'WP FR-16(7)(v) Rate Incr'!I11","v":0.95},null,{"$f":"SUM(G31:I31)","v":-15936250},{"$f":"'WP FR-16(7)(v) Rate Incr'!T15","v":-11703103},{"$f":"'WP FR-16(7)(v) Rate Incr'!U15","v":0},{"$f":"'WP FR-16(7)(v) Rate Incr'!V15","v":-4233147},{"$f":"SUM(G31:I31)","v":-15936250},0]
[22,{"$f":"'FR-16(7)(v)-1 Functional'!$B$32","v":"REQUESTED REVENUES (COST OF SERVICE ADJUSTED FOR SUBSIDIES)"},null,null,null,{"$f":"F30+F31","v":146680625},{"$f":"G30+G31","v":67447719},{"$f":"H30+H31","v":62541953},{"$f":"I30+I31","v":16690954},{"$f":"SUM(G32:I32)","v":146680626},-1]
[23,"PROPOSED REVENUES",null,null,null,{"$f":"'FR-16(7)(v)-14 TOTAL CLASS'!G33","v":147195469},{"$f":"'FR-16(7)(v)-3 PROD Demand'!G33+'FR-16(7)(v)-7 TRANS Demand'!G33+'FR-16(7)(v)-11 DIST Demand'!G33","v":139994936},{"$f":"'FR-16(7)(v)-4 PROD Energy'!G33+'FR-16(7)(v)-8 TRANS Energy'!G33+'FR-16(7)(v)-12 DIST Energy'!G33","v":46260496},{"$f":"'FR-16(7)(v)-5 PROD Cust'!G33+'FR-16(7)(v)-9 TRANS Cust'!G33+'FR-16(7)(v)-13 DIST Cust'!G33","v":45886690},{"$f":"SUM(G33:I33)","v":232142122},-84946653]
[24,"DIFFERENCE (REQUESTED LESS PROPOSED)",null,null,null,{"$f":"F32-F33","v":-514844},-72547217,16281457,-29195736,-85461496,84946652]
[25]
[26,"TOTAL RETURN EARNED",null,null,null,{"$f":"F777+F28","v":83612821},{"$f":"G777+G28","v":70952778},{"$f":"H777+H28","v":-11420246},{"$f":"I777+I28","v":24080288},{"$f":"J777+J28","v":83612820},{"$f":"F36-J36","v":1}]
[27,"RATE OF RETURN EARNED",null,null,null,{"$f":"IF(F431=0,0,ROUND(F36/F431,5))","v":0.17860999999999999},0.18840000000000001,-0.95438999999999996,0.30264999999999997,0.17860999999999999,0]
[28,"TOTAL RATE OF RETURN ALLOWABLE",null,null,null,{"$f":"$F$811","v":6.7100000000000007E-2},{"$f":"F811","v":6.7100000000000007E-2},{"$f":"F811","v":6.7100000000000007E-2},{"$f":"F811","v":6.7100000000000007E-2},{"$f":"F811","v":6.7100000000000007E-2},{"$f":"IF(K37=0,0,F811)","v":0},null,null,"Not Part of print range"]
[29,"RETURN EARNED ON COMMON EQUITY",null,null,null,{"$f":"IF(Equity=0,0,(F37-$F$806-$F$807-$F$809)*TotalCap/Equity)","v":0.32924660934122307},{"$f":"IF(Equity=0,0,(G37-$F$806-$F$807-$F$809)*TotalCap/Equity)","v":0.3495433432084265},{"$f":"IF(Equity=0,0,(H37-F806-F807-F809)*TotalCap/Equity)","v":-2.0197012427059131},{"$f":"IF(Equity=0,0,(I37-F806-F807-F809)*TotalCap/Equity)","v":0.58640767868625987},{"$f":"IF(Equity=0,0,(J37-F806-F807-F809)*TotalCap/Equity)","v":0.32924660934122307},{"$f":"IF(OR(E793=0,K37=0)=TRUE,0,(K37-E806-E807-E809)*E796/E793)","v":0},null,null,"Not Filed"]
[30,"ALLOWED RETURN ON COMMON EQUITY",null,null,null,{"$f":"IF(Equity=0,0,(F38-$F$806-$F$807-$F$809)*TotalCap/Equity)","v":9.8062871493229981E-2},{"$f":"IF(Equity=0,0,(G38-F806-F807-F809)*TotalCap/Equity)","v":9.8062871493229981E-2},{"$f":"IF(Equity=0,0,(H38-F806-F807-F809)*TotalCap/Equity)","v":9.8062871493229981E-2},{"$f":"IF(Equity=0,0,(I38-F806-F807-F809)*TotalCap/Equity)","v":9.8062871493229981E-2},{"$f":"IF(Equity=0,0,(J38-F806-F807-F809)*TotalCap/Equity)","v":9.8062871493229981E-2},{"$f":"IF(OR(Equity=0,K38=0)=TRUE,0,(K38-F806-F807-F809)*TotalCap/Equity)","v":0}]
[31,null,null,null,null," "]
[32,"PRESENT REVENUES",null,null,null,{"$f":"'FR-16(7)(v)-14 TOTAL CLASS'!G42","v":123883637},{"$f":"F42-SUM(H42:I42)","v":50883874},{"$f":"'FR-16(7)(v)-4 PROD Energy'!G42","v":54698455},{"$f":"'FR-16(7)(v)-13 DIST Cust'!G42","v":18301308},{"$f":"SUM(G42:I42)","v":123883637},{"$f":"F42-J42","v":0}]
[33,"REVENUE INCREASE JUSTIFIED",null,null,null,{"$f":"F30-F42","v":38733238},28266948,7843498,2622793,38733239,-1]
[34,null,"PER UNIT PRES REV",null,null,{"$f":"IF(F42=0,0,ROUND(F43/F42,5))","v":0.31265999999999999},0.55552000000000001,0.1434,0.14330999999999999,0.31265999999999999,0]
[35,"REVENUE INCREASE REQUESTED",null,null,null,{"$f":"F33-F42","v":23311832},89111062,-8437959,27585382,108258485,-84946653]
[36,null,"PER UNIT PRES REV",null,null,{"$f":"IF(F42=0,0,ROUND(F45/F42,5))","v":0.18817999999999999},1.75126,-0.15426000000000001,1.50729,0.87387000000000004,0]
[]
[{"$f":"co_name","v":"DUKE ENERGY KENTUCKY, INC."},null,null,null,null,null,null,null,null,{"$f":"J1","v":"FR-16(7)(v)-15"}]
[{"$f":"$A$2","v":"RESIDENTIAL CLASSIFIED - ELECTRIC COST OF SERVICE"},null,null,null,null,null,null,null,null,{"$f":"J2","v":"WITNESS RESPONSIBLE:"}]
[{"$f":"case_name","v":"CASE NO: 2019-00271"},null,null,null,null,null,null,null,null,{"$f":"Witness","v":"JAMES E. ZIOLKOWSKI"}]
[{"$f":"data_filing","v":"DATA: 12 MONTHS ACTUAL  & 0 MONTHS ESTIMATED"},null,null,null,null,null,null,null,null,{"$f":"\"PAGE \"&Pages2-13&\" OF \"&Pages2","v":"PAGE 2 OF 15"}]
[{"$f":"type","v":"TYPE OF FILING: \"X\" ORIGINAL   UPDATED    REVISED  "}]
[]
[]
["LINE",null,null,null,null,"TOTAL","CLASSIFIED",null,null,"TOTAL","ALL"]
["NO.","GROSS ELECTRIC PLANT IN SERVICE",null,"ALLO",null,{"$f":"$F$9","v":"RESIDENTIAL"},{"$f":"G9","v":"DEMAND"},"ENERGY","CUSTOMER","AT ISSUE","OTHER"]
[null,null,"Schedule 2",null,null,null,3,4,5,null," "]
[1,"PRODUCTION PLANT"]
[2,null,"PRODUCTION STEAM",{"$f":"'FR-16(7)(v)-1 Functional'!D59","v":"K201"},null,{"$f":"'FR-16(7)(v)-14 TOTAL CLASS'!G59","v":376554815},{"$f":"'FR-16(7)(v)-3 PROD Demand'!G59+'FR-16(7)(v)-7 TRANS Demand'!G59+'FR-16(7)(v)-11 DIST Demand'!G59","v":376554815},{"$f":"'FR-16(7)(v)-4 PROD Energy'!G59+'FR-16(7)(v)-8 TRANS Energy'!G59+'FR-16(7)(v)-12 DIST Energy'!G59","v":0},{"$f":"'FR-16(7)(v)-5 PROD Cust'!G59+'FR-16(7)(v)-9 TRANS Cust'!G59+'FR-16(7)(v)-13 DIST Cust'!G59","v":0},{"$f":"SUM(G59:I59)","v":376554815},{"$f":"F59-J59","v":0}]
[3,null,"PRODUCTION OTHER",{"$f":"'FR-16(7)(v)-1 Functional'!D60","v":"K201"},null,{"$f":"'FR-16(7)(v)-14 TOTAL CLASS'!G60","v":168344685},{"$f":"'FR-16(7)(v)-3 PROD Demand'!G60+'FR-16(7)(v)-7 TRANS Demand'!G60+'FR-16(7)(v)-11 DIST Demand'!G60","v":168344685},{"$f":"'FR-16(7)(v)-4 PROD Energy'!G60+'FR-16(7)(v)-8 TRANS Energy'!G60+'FR-16(7)(v)-12 DIST Energy'!G60","v":0},{"$f":"'FR-16(7)(v)-5 PROD Cust'!G60+'FR-16(7)(v)-9 TRANS Cust'!G60+'FR-16(7)(v)-13 DIST Cust'!G60","v":0},{"$f":"SUM(G60:I60)","v":168344685},{"$f":"F60-J60","v":0}]
[4,null,{"$f":"'FR-16(7)(v)-1 Functional'!C61","v":"ADJUSTMENT"},{"$f":"'FR-16(7)(v)-1 Functional'!D61","v":"K201"},null,{"$f":"'FR-16(7)(v)-14 TOTAL CLASS'!G61","v":0},{"$f":"'FR-16(7)(v)-3 PROD Demand'!G61+'FR-16(7)(v)-7 TRANS Demand'!G61+'FR-16(7)(v)-11 DIST Demand'!G61","v":0},{"$f":"'FR-16(7)(v)-4 PROD Energy'!G61+'FR-16(7)(v)-8 TRANS Energy'!G61+'FR-16(7)(v)-12 DIST Energy'!G61","v":0},{"$f":"'FR-16(7)(v)-5 PROD Cust'!G61+'FR-16(7)(v)-9 TRANS Cust'!G61+'FR-16(7)(v)-13 DIST Cust'!G61","v":0},{"$f":"SUM(G61:I61)","v":0},{"$f":"F61-J61","v":0}]
[5,null,{"$f":"'FR-16(7)(v)-1 Functional'!C62","v":"  PRODUCTION PLANT IN SERVICE"},null,null,{"$f":"SUM(F59:F61)","v":544899500},544899500,0,0,544899500,0]
[6]
[7,"TRANSMISSION PLANT"]
[8,null,"MAIN STEP-UP TRANSFORMERS",{"$f":"'FR-16(7)(v)-1 Functional'!D65","v":"K202"},null,{"$f":"'FR-16(7)(v)-14 TOTAL CLASS'!G65","v":0},{"$f":"'FR-16(7)(v)-3 PROD Demand'!G65+'FR-16(7)(v)-7 TRANS Demand'!G65+'FR-16(7)(v)-11 DIST Demand'!G65","v":0},{"$f":"'FR-16(7)(v)-4 PROD Energy'!G65+'FR-16(7)(v)-8 TRANS Energy'!G65+'FR-16(7)(v)-12 DIST Energy'!G65","v":0},{"$f":"'FR-16(7)(v)-5 PROD Cust'!G65+'FR-16(7)(v)-9 TRANS Cust'!G65+'FR-16(7)(v)-13 DIST Cust'!G65","v":0},{"$f":"SUM(G65:I65)","v":0},{"$f":"F65-J65","v":0}]
[9,null,"OTHER TRANSMISSION",{"$f":"'FR-16(7)(v)-1 Functional'!D66","v":"K202"},null,{"$f":"'FR-16(7)(v)-14 TOTAL CLASS'!G66","v":32623716},{"$f":"'FR-16(7)(v)-3 PROD Demand'!G66+'FR-16(7)(v)-7 TRANS Demand'!G66+'FR-16(7)(v)-11 DIST Demand'!G66","v":32623716},{"$f":"'FR-16(7)(v)-4 PROD Energy'!G66+'FR-16(7)(v)-8 TRANS Energy'!G66+'FR-16(7)(v)-12 DIST Energy'!G66","v":0},{"$f":"'FR-16(7)(v)-5 PROD Cust'!G66+'FR-16(7)(v)-9 TRANS Cust'!G66+'FR-16(7)(v)-13 DIST Cust'!G66","v":0},{"$f":"SUM(G66:I66)","v":32623716},{"$f":"F66-J66","v":0}]
[10,null,"ADJUSTMENT",{"$f":"'FR-16(7)(v)-1 Functional'!D67","v":"K202"},null,{"$f":"'FR-16(7)(v)-14 TOTAL CLASS'!G67","v":0},{"$f":"'FR-16(7)(v)-3 PROD Demand'!G67+'FR-16(7)(v)-7 TRANS Demand'!G67+'FR-16(7)(v)-11 DIST Demand'!G67","v":0},{"$f":"'FR-16(7)(v)-4 PROD Energy'!G67+'FR-16(7)(v)-8 TRANS Energy'!G67+'FR-16(7)(v)-12 DIST Energy'!G67","v":0},{"$f":"'FR-16(7)(v)-5 PROD Cust'!G67+'FR-16(7)(v)-9 TRANS Cust'!G67+'FR-16(7)(v)-13 DIST Cust'!G67","v":0},{"$f":"SUM(G67:I67)","v":0},{"$f":"F67-J67","v":0}]
[11,null,{"$f":"'FR-16(7)(v)-1 Functional'!C68","v":"  TRANSMISSION PLANT IN SERVICE"},null,null,{"$f":"SUM(F65:F67)","v":32623716},32623716,0,0,32623716,0]
[12]
[13,"TOTAL PROD & TRANS PLANT",null,null,null,{"$f":"F68+F62","v":577523216},577523216,0,0,577523216,0]
[14]
[15,"DISTRIBUTION PLANT"]
[16,null,{"$f":"'FR-16(7)(v)-1 Functional'!C73","v":"SUBSTATIONS"},{"$f":"'FR-16(7)(v)-1 Functional'!D73","v":"K215"},null,{"$f":"'FR-16(7)(v)-14 TOTAL CLASS'!G73","v":42707041},{"$f":"'FR-16(7)(v)-3 PROD Demand'!G73+'FR-16(7)(v)-7 TRANS Demand'!G73+'FR-16(7)(v)-11 DIST Demand'!G73","v":42707041},{"$f":"'FR-16(7)(v)-4 PROD Energy'!G73+'FR-16(7)(v)-8 TRANS Energy'!G73+'FR-16(7)(v)-12 DIST Energy'!G73","v":0},{"$f":"'FR-16(7)(v)-5 PROD Cust'!G73+'FR-16(7)(v)-9 TRANS Cust'!G73+'FR-16(7)(v)-13 DIST Cust'!G73","v":0},{"$f":"SUM(G73:I73)","v":42707041},{"$f":"F73-J73","v":0}]
[17,null,{"$f":"'FR-16(7)(v)-1 Functional'!C74","v":"POLES, TOWERS  & FIXTURES - PRIMARY - DEMAND"},{"$f":"'FR-16(7)(v)-1 Functional'!D74","v":"K205"},null,{"$f":"'FR-16(7)(v)-14 TOTAL CLASS'!G74","v":15495872},{"$f":"'FR-16(7)(v)-3 PROD Demand'!G74+'FR-16(7)(v)-7 TRANS Demand'!G74+'FR-16(7)(v)-11 DIST Demand'!G74","v":15495872},{"$f":"'FR-16(7)(v)-4 PROD Energy'!G74+'FR-16(7)(v)-8 TRANS Energy'!G74+'FR-16(7)(v)-12 DIST Energy'!G74","v":0},{"$f":"'FR-16(7)(v)-5 PROD Cust'!G74+'FR-16(7)(v)-9 TRANS Cust'!G74+'FR-16(7)(v)-13 DIST Cust'!G74","v":0},{"$f":"SUM(G74:I74)","v":15495872},{"$f":"F74-J74","v":0}]
[18,null,{"$f":"'FR-16(7)(v)-1 Functional'!C75","v":"POLES, TOWERS  & FIXTURES - PRIMARY - CUSTOMER"},{"$f":"'FR-16(7)(v)-1 Functional'!D75","v":"K405"},null,{"$f":"'FR-16(7)(v)-14 TOTAL CLASS'!G75","v":13626963},{"$f":"'FR-16(7)(v)-3 PROD Demand'!G75+'FR-16(7)(v)-7 TRANS Demand'!G75+'FR-16(7)(v)-11 DIST Demand'!G75","v":0},{"$f":"'FR-16(7)(v)-4 PROD Energy'!G75+'FR-16(7)(v)-8 TRANS Energy'!G75+'FR-16(7)(v)-12 DIST Energy'!G75","v":0},{"$f":"'FR-16(7)(v)-5 PROD Cust'!G75+'FR-16(7)(v)-9 TRANS Cust'!G75+'FR-16(7)(v)-13 DIST Cust'!G75","v":13626963},{"$f":"SUM(G75:I75)","v":13626963},{"$f":"F75-J75","v":0}]
[19,null,{"$f":"'FR-16(7)(v)-1 Functional'!C76","v":"POLES, TOWERS  & FIXTURES - SECONDARY - DEMAND"},{"$f":"'FR-16(7)(v)-1 Functional'!D76","v":"K206"},null,{"$f":"'FR-16(7)(v)-14 TOTAL CLASS'!G76","v":5926138},{"$f":"'FR-16(7)(v)-3 PROD Demand'!G76+'FR-16(7)(v)-7 TRANS Demand'!G76+'FR-16(7)(v)-11 DIST Demand'!G76","v":5926138},{"$f":"'FR-16(7)(v)-4 PROD Energy'!G76+'FR-16(7)(v)-8 TRANS Energy'!G76+'FR-16(7)(v)-12 DIST Energy'!G76","v":0},{"$f":"'FR-16(7)(v)-5 PROD Cust'!G76+'FR-16(7)(v)-9 TRANS Cust'!G76+'FR-16(7)(v)-13 DIST Cust'!G76","v":0},5926138,0]
[20,null,{"$f":"'FR-16(7)(v)-1 Functional'!C77","v":"POLES, TOWERS  & FIXTURES - SECONDARY - CUSTOMER"},{"$f":"'FR-16(7)(v)-1 Functional'!D77","v":"K405"},null,{"$f":"'FR-16(7)(v)-14 TOTAL CLASS'!G77","v":3080287},{"$f":"'FR-16(7)(v)-3 PROD Demand'!G77+'FR-16(7)(v)-7 TRANS Demand'!G77+'FR-16(7)(v)-11 DIST Demand'!G77","v":0},{"$f":"'FR-16(7)(v)-4 PROD Energy'!G77+'FR-16(7)(v)-8 TRANS Energy'!G77+'FR-16(7)(v)-12 DIST Energy'!G77","v":0},{"$f":"'FR-16(7)(v)-5 PROD Cust'!G77+'FR-16(7)(v)-9 TRANS Cust'!G77+'FR-16(7)(v)-13 DIST Cust'!G77","v":3080287},3080287,0]
[21,null,{"$f":"'FR-16(7)(v)-1 Functional'!C78","v":"CONDUCTORS - OVERHEAD / PRIMARY - DEMAND"},{"$f":"'FR-16(7)(v)-1 Functional'!D78","v":"K205"},null,{"$f":"'FR-16(7)(v)-14 TOTAL CLASS'!G78","v":35311849},{"$f":"'FR-16(7)(v)-3 PROD Demand'!G78+'FR-16(7)(v)-7 TRANS Demand'!G78+'FR-16(7)(v)-11 DIST Demand'!G78","v":35311849},{"$f":"'FR-16(7)(v)-4 PROD Energy'!G78+'FR-16(7)(v)-8 TRANS Energy'!G78+'FR-16(7)(v)-12 DIST Energy'!G78","v":0},{"$f":"'FR-16(7)(v)-5 PROD Cust'!G78+'FR-16(7)(v)-9 TRANS Cust'!G78+'FR-16(7)(v)-13 DIST Cust'!G78","v":0},35311849,0]
[22,null,{"$f":"'FR-16(7)(v)-1 Functional'!C79","v":"CONDUCTORS - OVERHEAD / PRIMARY - CUSTOMER"},{"$f":"'FR-16(7)(v)-1 Functional'!D79","v":"K405"},null,{"$f":"'FR-16(7)(v)-14 TOTAL CLASS'!G79","v":14817778},{"$f":"'FR-16(7)(v)-3 PROD Demand'!G79+'FR-16(7)(v)-7 TRANS Demand'!G79+'FR-16(7)(v)-11 DIST Demand'!G79","v":0},{"$f":"'FR-16(7)(v)-4 PROD Energy'!G79+'FR-16(7)(v)-8 TRANS Energy'!G79+'FR-16(7)(v)-12 DIST Energy'!G79","v":0},{"$f":"'FR-16(7)(v)-5 PROD Cust'!G79+'FR-16(7)(v)-9 TRANS Cust'!G79+'FR-16(7)(v)-13 DIST Cust'!G79","v":14817778},14817778,0]
[23,null,{"$f":"'FR-16(7)(v)-1 Functional'!C80","v":"CONDUCTORS - OVERHEAD / SECONDARY - DEMAND"},{"$f":"'FR-16(7)(v)-1 Functional'!D80","v":"K206"},null,{"$f":"'FR-16(7)(v)-14 TOTAL CLASS'!G80","v":14378571},{"$f":"'FR-16(7)(v)-3 PROD Demand'!G80+'FR-16(7)(v)-7 TRANS Demand'!G80+'FR-16(7)(v)-11 DIST Demand'!G80","v":14378571},{"$f":"'FR-16(7)(v)-4 PROD Energy'!G80+'FR-16(7)(v)-8 TRANS Energy'!G80+'FR-16(7)(v)-12 DIST Energy'!G80","v":0},{"$f":"'FR-16(7)(v)-5 PROD Cust'!G80+'FR-16(7)(v)-9 TRANS Cust'!G80+'FR-16(7)(v)-13 DIST Cust'!G80","v":0},14378571,0]
[24,null,{"$f":"'FR-16(7)(v)-1 Functional'!C81","v":"CONDUCTORS - OVERHEAD / SECONDARY - CUSTOMER"},{"$f":"'FR-16(7)(v)-1 Functional'!D81","v":"K405"},null,{"$f":"'FR-16(7)(v)-14 TOTAL CLASS'!G81","v":6137995},{"$f":"'FR-16(7)(v)-3 PROD Demand'!G81+'FR-16(7)(v)-7 TRANS Demand'!G81+'FR-16(7)(v)-11 DIST Demand'!G81","v":0},{"$f":"'FR-16(7)(v)-4 PROD Energy'!G81+'FR-16(7)(v)-8 TRANS Energy'!G81+'FR-16(7)(v)-12 DIST Energy'!G81","v":0},{"$f":"'FR-16(7)(v)-5 PROD Cust'!G81+'FR-16(7)(v)-9 TRANS Cust'!G81+'FR-16(7)(v)-13 DIST Cust'!G81","v":6137995},6137995,0]
[25,null,{"$f":"'FR-16(7)(v)-1 Functional'!C82","v":"CONDUCTORS - UNDERGROUND / PRIMARY - DEMAND"},{"$f":"'FR-16(7)(v)-1 Functional'!D82","v":"K205"},null,{"$f":"'FR-16(7)(v)-14 TOTAL CLASS'!G82","v":26354414},{"$f":"'FR-16(7)(v)-3 PROD Demand'!G82+'FR-16(7)(v)-7 TRANS Demand'!G82+'FR-16(7)(v)-11 DIST Demand'!G82","v":26354414},{"$f":"'FR-16(7)(v)-4 PROD Energy'!G82+'FR-16(7)(v)-8 TRANS Energy'!G82+'FR-16(7)(v)-12 DIST Energy'!G82","v":0},{"$f":"'FR-16(7)(v)-5 PROD Cust'!G82+'FR-16(7)(v)-9 TRANS Cust'!G82+'FR-16(7)(v)-13 DIST Cust'!G82","v":0},26354414,0]
[26,null,{"$f":"'FR-16(7)(v)-1 Functional'!C83","v":"CONDUCTORS - UNDERGROUND / PRIMARY - CUSTOMER"},{"$f":"'FR-16(7)(v)-1 Functional'!D83","v":"K405"},null,{"$f":"'FR-16(7)(v)-14 TOTAL CLASS'!G83","v":15726400},{"$f":"'FR-16(7)(v)-3 PROD Demand'!G83+'FR-16(7)(v)-7 TRANS Demand'!G83+'FR-16(7)(v)-11 DIST Demand'!G83","v":0},{"$f":"'FR-16(7)(v)-4 PROD Energy'!G83+'FR-16(7)(v)-8 TRANS Energy'!G83+'FR-16(7)(v)-12 DIST Energy'!G83","v":0},{"$f":"'FR-16(7)(v)-5 PROD Cust'!G83+'FR-16(7)(v)-9 TRANS Cust'!G83+'FR-16(7)(v)-13 DIST Cust'!G83","v":15726400},15726400,0]
[27,null,{"$f":"'FR-16(7)(v)-1 Functional'!C84","v":"CONDUCTORS - UNDERGROUND / SECONDARY - DEMAND"},{"$f":"'FR-16(7)(v)-1 Functional'!D84","v":"K206"},null,{"$f":"'FR-16(7)(v)-14 TOTAL CLASS'!G84","v":4514888},{"$f":"'FR-16(7)(v)-3 PROD Demand'!G84+'FR-16(7)(v)-7 TRANS Demand'!G84+'FR-16(7)(v)-11 DIST Demand'!G84","v":4514888},{"$f":"'FR-16(7)(v)-4 PROD Energy'!G84+'FR-16(7)(v)-8 TRANS Energy'!G84+'FR-16(7)(v)-12 DIST Energy'!G84","v":0},{"$f":"'FR-16(7)(v)-5 PROD Cust'!G84+'FR-16(7)(v)-9 TRANS Cust'!G84+'FR-16(7)(v)-13 DIST Cust'!G84","v":0},4514888,0]
[28,null,{"$f":"'FR-16(7)(v)-1 Functional'!C85","v":"CONDUCTORS - UNDERGROUND / SECONDARY - CUSTOMER"},{"$f":"'FR-16(7)(v)-1 Functional'!D85","v":"K405"},null,{"$f":"'FR-16(7)(v)-14 TOTAL CLASS'!G85","v":4917839},{"$f":"'FR-16(7)(v)-3 PROD Demand'!G85+'FR-16(7)(v)-7 TRANS Demand'!G85+'FR-16(7)(v)-11 DIST Demand'!G85","v":0},{"$f":"'FR-16(7)(v)-4 PROD Energy'!G85+'FR-16(7)(v)-8 TRANS Energy'!G85+'FR-16(7)(v)-12 DIST Energy'!G85","v":0},{"$f":"'FR-16(7)(v)-5 PROD Cust'!G85+'FR-16(7)(v)-9 TRANS Cust'!G85+'FR-16(7)(v)-13 DIST Cust'!G85","v":4917839},4917839,0]
[29,null,{"$f":"'FR-16(7)(v)-1 Functional'!C86","v":"TRANSFORMERS DEMAND RELATED"},{"$f":"'FR-16(7)(v)-1 Functional'!D86","v":"K215"},null,{"$f":"'FR-16(7)(v)-14 TOTAL CLASS'!G86","v":22117707},{"$f":"'FR-16(7)(v)-3 PROD Demand'!G86+'FR-16(7)(v)-7 TRANS Demand'!G86+'FR-16(7)(v)-11 DIST Demand'!G86","v":22117707},{"$f":"'FR-16(7)(v)-4 PROD Energy'!G86+'FR-16(7)(v)-8 TRANS Energy'!G86+'FR-16(7)(v)-12 DIST Energy'!G86","v":0},{"$f":"'FR-16(7)(v)-5 PROD Cust'!G86+'FR-16(7)(v)-9 TRANS Cust'!G86+'FR-16(7)(v)-13 DIST Cust'!G86","v":0},{"$f":"SUM(G86:I86)","v":22117707},{"$f":"F86-J86","v":0}]
[30,null,{"$f":"'FR-16(7)(v)-1 Functional'!C87","v":"TRANSFORMERS CUSTOMER RELATED"},{"$f":"'FR-16(7)(v)-1 Functional'!D87","v":"K405"},null,{"$f":"'FR-16(7)(v)-14 TOTAL CLASS'!G87","v":13811309},{"$f":"'FR-16(7)(v)-3 PROD Demand'!G87+'FR-16(7)(v)-7 TRANS Demand'!G87+'FR-16(7)(v)-11 DIST Demand'!G87","v":0},{"$f":"'FR-16(7)(v)-4 PROD Energy'!G87+'FR-16(7)(v)-8 TRANS Energy'!G87+'FR-16(7)(v)-12 DIST Energy'!G87","v":0},{"$f":"'FR-16(7)(v)-5 PROD Cust'!G87+'FR-16(7)(v)-9 TRANS Cust'!G87+'FR-16(7)(v)-13 DIST Cust'!G87","v":13811309},13811309,0]
[31,null,{"$f":"'FR-16(7)(v)-1 Functional'!C88","v":"SERVICES"},{"$f":"'FR-16(7)(v)-1 Functional'!D88","v":"K217"},null,{"$f":"'FR-16(7)(v)-14 TOTAL CLASS'!G88","v":18964823},{"$f":"'FR-16(7)(v)-3 PROD Demand'!G88+'FR-16(7)(v)-7 TRANS Demand'!G88+'FR-16(7)(v)-11 DIST Demand'!G88","v":0},{"$f":"'FR-16(7)(v)-4 PROD Energy'!G88+'FR-16(7)(v)-8 TRANS Energy'!G88+'FR-16(7)(v)-12 DIST Energy'!G88","v":0},{"$f":"'FR-16(7)(v)-5 PROD Cust'!G88+'FR-16(7)(v)-9 TRANS Cust'!G88+'FR-16(7)(v)-13 DIST Cust'!G88","v":18964823},18964823,0]
[32,null,{"$f":"'FR-16(7)(v)-1 Functional'!C89","v":"METERS"},{"$f":"'FR-16(7)(v)-1 Functional'!D89","v":"K407"},null,{"$f":"'FR-16(7)(v)-14 TOTAL CLASS'!G89","v":18247177},{"$f":"'FR-16(7)(v)-3 PROD Demand'!G89+'FR-16(7)(v)-7 TRANS Demand'!G89+'FR-16(7)(v)-11 DIST Demand'!G89","v":0},{"$f":"'FR-16(7)(v)-4 PROD Energy'!G89+'FR-16(7)(v)-8 TRANS Energy'!G89+'FR-16(7)(v)-12 DIST Energy'!G89","v":0},{"$f":"'FR-16(7)(v)-5 PROD Cust'!G89+'FR-16(7)(v)-9 TRANS Cust'!G89+'FR-16(7)(v)-13 DIST Cust'!G89","v":18247177},18247177,0]
[33,null,{"$f":"'FR-16(7)(v)-1 Functional'!C90","v":"STREET LIGHTS"},{"$f":"'FR-16(7)(v)-1 Functional'!D90","v":"K401"},null,{"$f":"'FR-16(7)(v)-14 TOTAL CLASS'!G90","v":0},{"$f":"'FR-16(7)(v)-3 PROD Demand'!G90+'FR-16(7)(v)-7 TRANS Demand'!G90+'FR-16(7)(v)-11 DIST Demand'!G90","v":0},{"$f":"'FR-16(7)(v)-4 PROD Energy'!G90+'FR-16(7)(v)-8 TRANS Energy'!G90+'FR-16(7)(v)-12 DIST Energy'!G90","v":0},{"$f":"'FR-16(7)(v)-5 PROD Cust'!G90+'FR-16(7)(v)-9 TRANS Cust'!G90+'FR-16(7)(v)-13 DIST Cust'!G90","v":0},0,0]
[34,null,{"$f":"'FR-16(7)(v)-1 Functional'!C91","v":"ADJUSTMENT  "},{"$f":"'FR-16(7)(v)-1 Functional'!D91","v":"K209"},null,{"$f":"'FR-16(7)(v)-14 TOTAL CLASS'!G91","v":0},{"$f":"'FR-16(7)(v)-3 PROD Demand'!G91+'FR-16(7)(v)-7 TRANS Demand'!G91+'FR-16(7)(v)-11 DIST Demand'!G91","v":0},{"$f":"'FR-16(7)(v)-4 PROD Energy'!G91+'FR-16(7)(v)-8 TRANS Energy'!G91+'FR-16(7)(v)-12 DIST Energy'!G91","v":0},{"$f":"'FR-16(7)(v)-5 PROD Cust'!G91+'FR-16(7)(v)-9 TRANS Cust'!G91+'FR-16(7)(v)-13 DIST Cust'!G91","v":0},0,0]
[35,null,{"$f":"'FR-16(7)(v)-1 Functional'!C92","v":"CONSTRUCTION NOT CLASSIFIED"},{"$f":"'FR-16(7)(v)-1 Functional'!D92","v":"K209"},null,{"$f":"'FR-16(7)(v)-14 TOTAL CLASS'!G92","v":53946157},{"$f":"'FR-16(7)(v)-3 PROD Demand'!G92+'FR-16(7)(v)-7 TRANS Demand'!G92+'FR-16(7)(v)-11 DIST Demand'!G92","v":32587240},{"$f":"'FR-16(7)(v)-4 PROD Energy'!G92+'FR-16(7)(v)-8 TRANS Energy'!G92+'FR-16(7)(v)-12 DIST Energy'!G92","v":0},{"$f":"'FR-16(7)(v)-5 PROD Cust'!G92+'FR-16(7)(v)-9 TRANS Cust'!G92+'FR-16(7)(v)-13 DIST Cust'!G92","v":21358917},53946157,0]
[36,null,{"$f":"'FR-16(7)(v)-1 Functional'!C93","v":"RWIP"},{"$f":"'FR-16(7)(v)-1 Functional'!D93","v":"K215"},null,{"$f":"'FR-16(7)(v)-14 TOTAL CLASS'!G93","v":0},{"$f":"'FR-16(7)(v)-3 PROD Demand'!G93+'FR-16(7)(v)-7 TRANS Demand'!G93+'FR-16(7)(v)-11 DIST Demand'!G93","v":0},{"$f":"'FR-16(7)(v)-4 PROD Energy'!G93+'FR-16(7)(v)-8 TRANS Energy'!G93+'FR-16(7)(v)-12 DIST Energy'!G93","v":0},{"$f":"'FR-16(7)(v)-5 PROD Cust'!G93+'FR-16(7)(v)-9 TRANS Cust'!G93+'FR-16(7)(v)-13 DIST Cust'!G93","v":0},{"$f":"SUM(G93:I93)","v":0},{"$f":"F93-J93","v":0}]
[37,null,{"$f":"'FR-16(7)(v)-1 Functional'!C94","v":"  DISTRIBUTION PLANT IN SERVICE"},null,null,{"$f":"SUM(F73:F93)","v":330083208},{"$f":"SUM(G73:G93)","v":199393720},0,130689488,330083208,0]
[38]
[39,"TOTAL TRANS & DIST PLANT",null,null,null,{"$f":"F94+F68","v":362706924},232017436,0,130689488,362706924,0]
[40,"TOTAL GROSS PTD PLANT",null,null,null,{"$f":"F94+F70","v":907606424},776916936,0,130689488,907606424,0]
[41]
[42,"GENERAL & INTANGIBLE PLANT"]
[43,null,{"$f":"'FR-16(7)(v)-1 Functional'!C100","v":"PRODUCTION - DEMAND"},{"$f":"'FR-16(7)(v)-1 Functional'!D100","v":"K201"},null,{"$f":"'FR-16(7)(v)-14 TOTAL CLASS'!G100","v":7529852},{"$f":"'FR-16(7)(v)-3 PROD Demand'!G100+'FR-16(7)(v)-7 TRANS Demand'!G100+'FR-16(7)(v)-11 DIST Demand'!G100","v":7529852},{"$f":"'FR-16(7)(v)-4 PROD Energy'!G100+'FR-16(7)(v)-8 TRANS Energy'!G100+'FR-16(7)(v)-12 DIST Energy'!G100","v":0},{"$f":"'FR-16(7)(v)-5 PROD Cust'!G100+'FR-16(7)(v)-9 TRANS Cust'!G100+'FR-16(7)(v)-13 DIST Cust'!G100","v":0},{"$f":"SUM(G100:I100)","v":7529852},{"$f":"F100-J100","v":0}]
[44,null,{"$f":"'FR-16(7)(v)-1 Functional'!C101","v":"PRODUCTION - ENERGY"},{"$f":"'FR-16(7)(v)-1 Functional'!D101","v":"K301"},null,{"$f":"'FR-16(7)(v)-14 TOTAL CLASS'!G101","v":7367133},{"$f":"'FR-16(7)(v)-3 PROD Demand'!G101+'FR-16(7)(v)-7 TRANS Demand'!G101+'FR-16(7)(v)-11 DIST Demand'!G101","v":0},{"$f":"'FR-16(7)(v)-4 PROD Energy'!G101+'FR-16(7)(v)-8 TRANS Energy'!G101+'FR-16(7)(v)-12 DIST Energy'!G101","v":7367133},{"$f":"'FR-16(7)(v)-5 PROD Cust'!G101+'FR-16(7)(v)-9 TRANS Cust'!G101+'FR-16(7)(v)-13 DIST Cust'!G101","v":0},{"$f":"SUM(G101:I101)","v":7367133},{"$f":"F101-J101","v":0}]
[45,null,{"$f":"'FR-16(7)(v)-1 Functional'!C102","v":"TRANSMISSION"},{"$f":"'FR-16(7)(v)-1 Functional'!D102","v":"K202"},null,{"$f":"'FR-16(7)(v)-14 TOTAL CLASS'!G102","v":1189883},{"$f":"'FR-16(7)(v)-3 PROD Demand'!G102+'FR-16(7)(v)-7 TRANS Demand'!G102+'FR-16(7)(v)-11 DIST Demand'!G102","v":1189883},{"$f":"'FR-16(7)(v)-4 PROD Energy'!G102+'FR-16(7)(v)-8 TRANS Energy'!G102+'FR-16(7)(v)-12 DIST Energy'!G102","v":0},{"$f":"'FR-16(7)(v)-5 PROD Cust'!G102+'FR-16(7)(v)-9 TRANS Cust'!G102+'FR-16(7)(v)-13 DIST Cust'!G102","v":0},1189883,0]
[46,null,{"$f":"'FR-16(7)(v)-1 Functional'!C103","v":"DISTRIBUTION - DEMAND"},{"$f":"'FR-16(7)(v)-1 Functional'!D103","v":"K201"},null,{"$f":"'FR-16(7)(v)-14 TOTAL CLASS'!G103","v":3996340},{"$f":"'FR-16(7)(v)-3 PROD Demand'!G103+'FR-16(7)(v)-7 TRANS Demand'!G103+'FR-16(7)(v)-11 DIST Demand'!G103","v":3996340},{"$f":"'FR-16(7)(v)-4 PROD Energy'!G103+'FR-16(7)(v)-8 TRANS Energy'!G103+'FR-16(7)(v)-12 DIST Energy'!G103","v":0},{"$f":"'FR-16(7)(v)-5 PROD Cust'!G103+'FR-16(7)(v)-9 TRANS Cust'!G103+'FR-16(7)(v)-13 DIST Cust'!G103","v":0},3996340,0]
[47,null,{"$f":"'FR-16(7)(v)-1 Functional'!C104","v":"DISTRIBUTION - CUSTOMER"},{"$f":"'FR-16(7)(v)-1 Functional'!D104","v":"K405"},null,{"$f":"'FR-16(7)(v)-14 TOTAL CLASS'!G104","v":1755229},{"$f":"'FR-16(7)(v)-3 PROD Demand'!G104+'FR-16(7)(v)-7 TRANS Demand'!G104+'FR-16(7)(v)-11 DIST Demand'!G104","v":0},{"$f":"'FR-16(7)(v)-4 PROD Energy'!G104+'FR-16(7)(v)-8 TRANS Energy'!G104+'FR-16(7)(v)-12 DIST Energy'!G104","v":0},{"$f":"'FR-16(7)(v)-5 PROD Cust'!G104+'FR-16(7)(v)-9 TRANS Cust'!G104+'FR-16(7)(v)-13 DIST Cust'!G104","v":1755229},1755229,0]
[48,null,{"$f":"'FR-16(7)(v)-1 Functional'!C105","v":"CUSTOMER ACCOUNTING"},{"$f":"'FR-16(7)(v)-1 Functional'!D105","v":"A308"},null,{"$f":"'FR-16(7)(v)-14 TOTAL CLASS'!G105","v":5389317},{"$f":"'FR-16(7)(v)-3 PROD Demand'!G105+'FR-16(7)(v)-7 TRANS Demand'!G105+'FR-16(7)(v)-11 DIST Demand'!G105","v":0},{"$f":"'FR-16(7)(v)-4 PROD Energy'!G105+'FR-16(7)(v)-8 TRANS Energy'!G105+'FR-16(7)(v)-12 DIST Energy'!G105","v":0},{"$f":"'FR-16(7)(v)-5 PROD Cust'!G105+'FR-16(7)(v)-9 TRANS Cust'!G105+'FR-16(7)(v)-13 DIST Cust'!G105","v":5389317},5389317,0]
[49,null,{"$f":"'FR-16(7)(v)-1 Functional'!C106","v":"CUSTOMER SERVICE & INFORMATION"},{"$f":"'FR-16(7)(v)-1 Functional'!D106","v":"A310"},null,{"$f":"'FR-16(7)(v)-14 TOTAL CLASS'!G106","v":390315},{"$f":"'FR-16(7)(v)-3 PROD Demand'!G106+'FR-16(7)(v)-7 TRANS Demand'!G106+'FR-16(7)(v)-11 DIST Demand'!G106","v":0},{"$f":"'FR-16(7)(v)-4 PROD Energy'!G106+'FR-16(7)(v)-8 TRANS Energy'!G106+'FR-16(7)(v)-12 DIST Energy'!G106","v":0},{"$f":"'FR-16(7)(v)-5 PROD Cust'!G106+'FR-16(7)(v)-9 TRANS Cust'!G106+'FR-16(7)(v)-13 DIST Cust'!G106","v":390315},390315,0]
[50,null,{"$f":"'FR-16(7)(v)-1 Functional'!C107","v":"SALES"},{"$f":"'FR-16(7)(v)-1 Functional'!D107","v":"A312"},null,{"$f":"'FR-16(7)(v)-14 TOTAL CLASS'!G107","v":0},{"$f":"'FR-16(7)(v)-3 PROD Demand'!G107+'FR-16(7)(v)-7 TRANS Demand'!G107+'FR-16(7)(v)-11 DIST Demand'!G107","v":0},{"$f":"'FR-16(7)(v)-4 PROD Energy'!G107+'FR-16(7)(v)-8 TRANS Energy'!G107+'FR-16(7)(v)-12 DIST Energy'!G107","v":0},{"$f":"'FR-16(7)(v)-5 PROD Cust'!G107+'FR-16(7)(v)-9 TRANS Cust'!G107+'FR-16(7)(v)-13 DIST Cust'!G107","v":0},0,0]
[51,null,{"$f":"'FR-16(7)(v)-1 Functional'!C108","v":"ADJUSTMENT"},{"$f":"'FR-16(7)(v)-1 Functional'!D108","v":"A315"},null,{"$f":"'FR-16(7)(v)-14 TOTAL CLASS'!G108","v":0},{"$f":"'FR-16(7)(v)-3 PROD Demand'!G108+'FR-16(7)(v)-7 TRANS Demand'!G108+'FR-16(7)(v)-11 DIST Demand'!G108","v":0},{"$f":"'FR-16(7)(v)-4 PROD Energy'!G108+'FR-16(7)(v)-8 TRANS Energy'!G108+'FR-16(7)(v)-12 DIST Energy'!G108","v":0},{"$f":"'FR-16(7)(v)-5 PROD Cust'!G108+'FR-16(7)(v)-9 TRANS Cust'!G108+'FR-16(7)(v)-13 DIST Cust'!G108","v":0},0,0]
[52,null,{"$f":"'FR-16(7)(v)-1 Functional'!C109","v":"  GEN & INTANG PLANT IN SERVICE"},null,null,{"$f":"SUM(F100:F108)","v":27618069},12716075,7367133,7534861,27618069,0]
[53]
[54,"COMMON & OTHER PLANT"]
[55,null,{"$f":"'FR-16(7)(v)-1 Functional'!C112","v":"PRODUCTION - DEMAND"},{"$f":"'FR-16(7)(v)-1 Functional'!D112","v":"K201"},null,{"$f":"'FR-16(7)(v)-14 TOTAL CLASS'!G112","v":4261760},{"$f":"'FR-16(7)(v)-3 PROD Demand'!G112+'FR-16(7)(v)-7 TRANS Demand'!G112+'FR-16(7)(v)-11 DIST Demand'!G112","v":4261760},{"$f":"'FR-16(7)(v)-4 PROD Energy'!G112+'FR-16(7)(v)-8 TRANS Energy'!G112+'FR-16(7)(v)-12 DIST Energy'!G112","v":0},{"$f":"'FR-16(7)(v)-5 PROD Cust'!G112+'FR-16(7)(v)-9 TRANS Cust'!G112+'FR-16(7)(v)-13 DIST Cust'!G112","v":0},{"$f":"SUM(G112:I112)","v":4261760},{"$f":"F112-J112","v":0}]
[56,null,{"$f":"'FR-16(7)(v)-1 Functional'!C113","v":"PRODUCTION - ENERGY"},{"$f":"'FR-16(7)(v)-1 Functional'!D113","v":"K301"},null,{"$f":"'FR-16(7)(v)-14 TOTAL CLASS'!G113","v":4169667},{"$f":"'FR-16(7)(v)-3 PROD Demand'!G113+'FR-16(7)(v)-7 TRANS Demand'!G113+'FR-16(7)(v)-11 DIST Demand'!G113","v":0},{"$f":"'FR-16(7)(v)-4 PROD Energy'!G113+'FR-16(7)(v)-8 TRANS Energy'!G113+'FR-16(7)(v)-12 DIST Energy'!G113","v":4169667},{"$f":"'FR-16(7)(v)-5 PROD Cust'!G113+'FR-16(7)(v)-9 TRANS Cust'!G113+'FR-16(7)(v)-13 DIST Cust'!G113","v":0},{"$f":"SUM(G113:I113)","v":4169667},{"$f":"F113-J113","v":0}]
[57,null,{"$f":"'FR-16(7)(v)-1 Functional'!C114","v":"TRANSMISSION"},{"$f":"'FR-16(7)(v)-1 Functional'!D114","v":"K202"},null,{"$f":"'FR-16(7)(v)-14 TOTAL CLASS'!G114","v":673453},{"$f":"'FR-16(7)(v)-3 PROD Demand'!G114+'FR-16(7)(v)-7 TRANS Demand'!G114+'FR-16(7)(v)-11 DIST Demand'!G114","v":673453},{"$f":"'FR-16(7)(v)-4 PROD Energy'!G114+'FR-16(7)(v)-8 TRANS Energy'!G114+'FR-16(7)(v)-12 DIST Energy'!G114","v":0},{"$f":"'FR-16(7)(v)-5 PROD Cust'!G114+'FR-16(7)(v)-9 TRANS Cust'!G114+'FR-16(7)(v)-13 DIST Cust'!G114","v":0},673453,0]
[58,null,{"$f":"'FR-16(7)(v)-1 Functional'!C115","v":"DISTRIBUTION - DEMAND"},{"$f":"'FR-16(7)(v)-1 Functional'!D115","v":"K201"},null,{"$f":"'FR-16(7)(v)-14 TOTAL CLASS'!G115","v":2261856},{"$f":"'FR-16(7)(v)-3 PROD Demand'!G115+'FR-16(7)(v)-7 TRANS Demand'!G115+'FR-16(7)(v)-11 DIST Demand'!G115","v":2261856},{"$f":"'FR-16(7)(v)-4 PROD Energy'!G115+'FR-16(7)(v)-8 TRANS Energy'!G115+'FR-16(7)(v)-12 DIST Energy'!G115","v":0},{"$f":"'FR-16(7)(v)-5 PROD Cust'!G115+'FR-16(7)(v)-9 TRANS Cust'!G115+'FR-16(7)(v)-13 DIST Cust'!G115","v":0},2261856,0]
[59,null,{"$f":"'FR-16(7)(v)-1 Functional'!C116","v":"DISTRIBUTION - CUSTOMER"},{"$f":"'FR-16(7)(v)-1 Functional'!D116","v":"K405"},null,{"$f":"'FR-16(7)(v)-14 TOTAL CLASS'!G116","v":993428},{"$f":"'FR-16(7)(v)-3 PROD Demand'!G116+'FR-16(7)(v)-7 TRANS Demand'!G116+'FR-16(7)(v)-11 DIST Demand'!G116","v":0},{"$f":"'FR-16(7)(v)-4 PROD Energy'!G116+'FR-16(7)(v)-8 TRANS Energy'!G116+'FR-16(7)(v)-12 DIST Energy'!G116","v":0},{"$f":"'FR-16(7)(v)-5 PROD Cust'!G116+'FR-16(7)(v)-9 TRANS Cust'!G116+'FR-16(7)(v)-13 DIST Cust'!G116","v":993428},993428,0]
[60,null,{"$f":"'FR-16(7)(v)-1 Functional'!C117","v":"CUSTOMER ACCOUNTING"},{"$f":"'FR-16(7)(v)-1 Functional'!D117","v":"A308"},null,{"$f":"'FR-16(7)(v)-14 TOTAL CLASS'!G117","v":3050257},{"$f":"'FR-16(7)(v)-3 PROD Demand'!G117+'FR-16(7)(v)-7 TRANS Demand'!G117+'FR-16(7)(v)-11 DIST Demand'!G117","v":0},{"$f":"'FR-16(7)(v)-4 PROD Energy'!G117+'FR-16(7)(v)-8 TRANS Energy'!G117+'FR-16(7)(v)-12 DIST Energy'!G117","v":0},{"$f":"'FR-16(7)(v)-5 PROD Cust'!G117+'FR-16(7)(v)-9 TRANS Cust'!G117+'FR-16(7)(v)-13 DIST Cust'!G117","v":3050257},3050257,0]
[61,null,{"$f":"'FR-16(7)(v)-1 Functional'!C118","v":"CUSTOMER SERVICE & INFORMATION"},{"$f":"'FR-16(7)(v)-1 Functional'!D118","v":"A310"},null,{"$f":"'FR-16(7)(v)-14 TOTAL CLASS'!G118","v":220913},{"$f":"'FR-16(7)(v)-3 PROD Demand'!G118+'FR-16(7)(v)-7 TRANS Demand'!G118+'FR-16(7)(v)-11 DIST Demand'!G118","v":0},{"$f":"'FR-16(7)(v)-4 PROD Energy'!G118+'FR-16(7)(v)-8 TRANS Energy'!G118+'FR-16(7)(v)-12 DIST Energy'!G118","v":0},{"$f":"'FR-16(7)(v)-5 PROD Cust'!G118+'FR-16(7)(v)-9 TRANS Cust'!G118+'FR-16(7)(v)-13 DIST Cust'!G118","v":220913},220913,0]
[62,null,{"$f":"'FR-16(7)(v)-1 Functional'!C119","v":"SALES"},{"$f":"'FR-16(7)(v)-1 Functional'!D119","v":"A312"},null,{"$f":"'FR-16(7)(v)-14 TOTAL CLASS'!G119","v":0},{"$f":"'FR-16(7)(v)-3 PROD Demand'!G119+'FR-16(7)(v)-7 TRANS Demand'!G119+'FR-16(7)(v)-11 DIST Demand'!G119","v":0},{"$f":"'FR-16(7)(v)-4 PROD Energy'!G119+'FR-16(7)(v)-8 TRANS Energy'!G119+'FR-16(7)(v)-12 DIST Energy'!G119","v":0},{"$f":"'FR-16(7)(v)-5 PROD Cust'!G119+'FR-16(7)(v)-9 TRANS Cust'!G119+'FR-16(7)(v)-13 DIST Cust'!G119","v":0},0,0]
[63,null,{"$f":"'FR-16(7)(v)-1 Functional'!C120","v":"ADJUSTMENT"},{"$f":"'FR-16(7)(v)-1 Functional'!D120","v":"A315"},null,{"$f":"'FR-16(7)(v)-14 TOTAL CLASS'!G120","v":0},{"$f":"'FR-16(7)(v)-3 PROD Demand'!G120+'FR-16(7)(v)-7 TRANS Demand'!G120+'FR-16(7)(v)-11 DIST Demand'!G120","v":0},{"$f":"'FR-16(7)(v)-4 PROD Energy'!G120+'FR-16(7)(v)-8 TRANS Energy'!G120+'FR-16(7)(v)-12 DIST Energy'!G120","v":0},{"$f":"'FR-16(7)(v)-5 PROD Cust'!G120+'FR-16(7)(v)-9 TRANS Cust'!G120+'FR-16(7)(v)-13 DIST Cust'!G120","v":0},0,0]
[64,null,{"$f":"'FR-16(7)(v)-1 Functional'!C121","v":"  COMMON & OTHER PLANT IN SERVICE"},null,null,{"$f":"SUM(F112:F120)","v":15631334},7197069,4169667,4264598,15631334,0]
[65]
[66,"GROSS ELECTRIC PLANT IN SERVICE",null,null,null,{"$f":"F97+F109+F121","v":950855827},796830080,11536800,142488947,950855827,0]
[]
[{"$f":"co_name","v":"DUKE ENERGY KENTUCKY, INC."},null,null,null,null,null,null,null,null,{"$f":"J1","v":"FR-16(7)(v)-15"}]
[{"$f":"$A$2","v":"RESIDENTIAL CLASSIFIED - ELECTRIC COST OF SERVICE"},null,null,null,null,null,null,null,null,{"$f":"J2","v":"WITNESS RESPONSIBLE:"}]
[{"$f":"case_name","v":"CASE NO: 2019-00271"},null,null,null,null,null,null,null,null,{"$f":"Witness","v":"JAMES E. ZIOLKOWSKI"}]
[{"$f":"data_filing","v":"DATA: 12 MONTHS ACTUAL  & 0 MONTHS ESTIMATED"},null,null,null,null,null,null,null,null,{"$f":"\"PAGE \"&Pages2-12&\" OF \"&Pages2","v":"PAGE 3 OF 15"}]
[{"$f":"type","v":"TYPE OF FILING: \"X\" ORIGINAL   UPDATED    REVISED  "}]
[]
[]
["LINE",null,null,null,null,"TOTAL","CLASSIFIED",null,null,"TOTAL","ALL"]
["NO.","DEPRECIATION RESERVE",null,"ALLO",null,{"$f":"$F$9","v":"RESIDENTIAL"},{"$f":"G9","v":"DEMAND"},"ENERGY","CUSTOMER","AT ISSUE","OTHER"]
[null,null,"Schedule 3",null,null,null,3,4,5]
[1,"PRODUCTION PLANT"]
[2,null,{"$f":"'FR-16(7)(v)-1 Functional'!C136","v":"PRODUCTION STEAM"},{"$f":"'FR-16(7)(v)-1 Functional'!D136","v":"K201"},null,{"$f":"'FR-16(7)(v)-14 TOTAL CLASS'!G136","v":180835042},{"$f":"'FR-16(7)(v)-3 PROD Demand'!G136+'FR-16(7)(v)-7 TRANS Demand'!G136+'FR-16(7)(v)-11 DIST Demand'!G136","v":180835042},{"$f":"'FR-16(7)(v)-4 PROD Energy'!G136+'FR-16(7)(v)-8 TRANS Energy'!G136+'FR-16(7)(v)-12 DIST Energy'!G136","v":0},{"$f":"'FR-16(7)(v)-5 PROD Cust'!G136+'FR-16(7)(v)-9 TRANS Cust'!G136+'FR-16(7)(v)-13 DIST Cust'!G136","v":0},{"$f":"SUM(G136:I136)","v":180835042},{"$f":"F136-J136","v":0}]
[3,null,{"$f":"'FR-16(7)(v)-1 Functional'!C137","v":"PRODUCTION OTHER"},{"$f":"'FR-16(7)(v)-1 Functional'!D137","v":"K201"},null,{"$f":"'FR-16(7)(v)-14 TOTAL CLASS'!G137","v":83043497},{"$f":"'FR-16(7)(v)-3 PROD Demand'!G137+'FR-16(7)(v)-7 TRANS Demand'!G137+'FR-16(7)(v)-11 DIST Demand'!G137","v":83043497},{"$f":"'FR-16(7)(v)-4 PROD Energy'!G137+'FR-16(7)(v)-8 TRANS Energy'!G137+'FR-16(7)(v)-12 DIST Energy'!G137","v":0},{"$f":"'FR-16(7)(v)-5 PROD Cust'!G137+'FR-16(7)(v)-9 TRANS Cust'!G137+'FR-16(7)(v)-13 DIST Cust'!G137","v":0},{"$f":"SUM(G137:I137)","v":83043497},{"$f":"F137-J137","v":0}]
[4,null,{"$f":"'FR-16(7)(v)-1 Functional'!C138","v":"ADJUSTMENT"},{"$f":"'FR-16(7)(v)-1 Functional'!D138","v":"K201"},null,{"$f":"'FR-16(7)(v)-14 TOTAL CLASS'!G138","v":700226},{"$f":"'FR-16(7)(v)-3 PROD Demand'!G138+'FR-16(7)(v)-7 TRANS Demand'!G138+'FR-16(7)(v)-11 DIST Demand'!G138","v":700226},{"$f":"'FR-16(7)(v)-4 PROD Energy'!G138+'FR-16(7)(v)-8 TRANS Energy'!G138+'FR-16(7)(v)-12 DIST Energy'!G138","v":0},{"$f":"'FR-16(7)(v)-5 PROD Cust'!G138+'FR-16(7)(v)-9 TRANS Cust'!G138+'FR-16(7)(v)-13 DIST Cust'!G138","v":0},{"$f":"SUM(G138:I138)","v":700226},{"$f":"F138-J138","v":0}]
[5,null,{"$f":"'FR-16(7)(v)-1 Functional'!C139","v":"  TOTAL PROD DEPREC RESERVE"},null,null,{"$f":"SUM(F136:F138)","v":264578765},264578765,0,0,264578765,0]
[6]
[7,"TRANSMISSION PLANT"]
[8,null,{"$f":"'FR-16(7)(v)-1 Functional'!C142","v":"MAIN STEP-UP TRANSFORMERS"},{"$f":"'FR-16(7)(v)-1 Functional'!D142","v":"K202"},null,{"$f":"'FR-16(7)(v)-14 TOTAL CLASS'!G142","v":0},{"$f":"'FR-16(7)(v)-3 PROD Demand'!G142+'FR-16(7)(v)-7 TRANS Demand'!G142+'FR-16(7)(v)-11 DIST Demand'!G142","v":0},{"$f":"'FR-16(7)(v)-4 PROD Energy'!G142+'FR-16(7)(v)-8 TRANS Energy'!G142+'FR-16(7)(v)-12 DIST Energy'!G142","v":0},{"$f":"'FR-16(7)(v)-5 PROD Cust'!G142+'FR-16(7)(v)-9 TRANS Cust'!G142+'FR-16(7)(v)-13 DIST Cust'!G142","v":0},{"$f":"SUM(G142:I142)","v":0},{"$f":"F142-J142","v":0}]
[9,null,{"$f":"'FR-16(7)(v)-1 Functional'!C143","v":"OTHER TRANSMISSION"},{"$f":"'FR-16(7)(v)-1 Functional'!D143","v":"K202"},null,{"$f":"'FR-16(7)(v)-14 TOTAL CLASS'!G143","v":8997129},{"$f":"'FR-16(7)(v)-3 PROD Demand'!G143+'FR-16(7)(v)-7 TRANS Demand'!G143+'FR-16(7)(v)-11 DIST Demand'!G143","v":8997129},{"$f":"'FR-16(7)(v)-4 PROD Energy'!G143+'FR-16(7)(v)-8 TRANS Energy'!G143+'FR-16(7)(v)-12 DIST Energy'!G143","v":0},{"$f":"'FR-16(7)(v)-5 PROD Cust'!G143+'FR-16(7)(v)-9 TRANS Cust'!G143+'FR-16(7)(v)-13 DIST Cust'!G143","v":0},{"$f":"SUM(G143:I143)","v":8997129},{"$f":"F143-J143","v":0}]
[10,null,{"$f":"'FR-16(7)(v)-1 Functional'!C144","v":"ADJUSTMENT"},{"$f":"'FR-16(7)(v)-1 Functional'!D144","v":"K202"},null,{"$f":"'FR-16(7)(v)-14 TOTAL CLASS'!G144","v":-31635},{"$f":"'FR-16(7)(v)-3 PROD Demand'!G144+'FR-16(7)(v)-7 TRANS Demand'!G144+'FR-16(7)(v)-11 DIST Demand'!G144","v":-31635},{"$f":"'FR-16(7)(v)-4 PROD Energy'!G144+'FR-16(7)(v)-8 TRANS Energy'!G144+'FR-16(7)(v)-12 DIST Energy'!G144","v":0},{"$f":"'FR-16(7)(v)-5 PROD Cust'!G144+'FR-16(7)(v)-9 TRANS Cust'!G144+'FR-16(7)(v)-13 DIST Cust'!G144","v":0},{"$f":"SUM(G144:I144)","v":-31635},{"$f":"F144-J144","v":0}]
[11,null,{"$f":"'FR-16(7)(v)-1 Functional'!C145","v":"  TOTAL TRANS DEPREC RESERVE"},null,null,{"$f":"SUM(F142:F144)","v":8965494},8965494,0,0,8965494,0]
[12]
[13,null,{"$f":"'FR-16(7)(v)-1 Functional'!C147","v":"TOTAL PROD & TRANS DEPREC RESERVE"},null,null,{"$f":"F145+F139","v":273544259},{"$f":"G145+G139","v":273544259},{"$f":"H145+H139","v":0},{"$f":"I145+I139","v":0},{"$f":"J145+J139","v":273544259},{"$f":"F147-J147","v":0}]
[14]
[15,"DISTRIBUTION PLANT"]
[16,null,{"$f":"'FR-16(7)(v)-1 Functional'!C150","v":"SUBSTATIONS"},{"$f":"'FR-16(7)(v)-1 Functional'!D150","v":"K215"},null,{"$f":"'FR-16(7)(v)-14 TOTAL CLASS'!G150","v":8676867},{"$f":"'FR-16(7)(v)-3 PROD Demand'!G150+'FR-16(7)(v)-7 TRANS Demand'!G150+'FR-16(7)(v)-11 DIST Demand'!G150","v":8676867},{"$f":"'FR-16(7)(v)-4 PROD Energy'!G150+'FR-16(7)(v)-8 TRANS Energy'!G150+'FR-16(7)(v)-12 DIST Energy'!G150","v":0},{"$f":"'FR-16(7)(v)-5 PROD Cust'!G150+'FR-16(7)(v)-9 TRANS Cust'!G150+'FR-16(7)(v)-13 DIST Cust'!G150","v":0},{"$f":"SUM(G150:I150)","v":8676867},{"$f":"F150-J150","v":0}]
[17,null,{"$f":"'FR-16(7)(v)-1 Functional'!C151","v":"POLES, TOWERS  & FIXTURES - PRIMARY - DEMAND"},{"$f":"'FR-16(7)(v)-1 Functional'!D151","v":"K205"},null,{"$f":"'FR-16(7)(v)-14 TOTAL CLASS'!G151","v":7090021},{"$f":"'FR-16(7)(v)-3 PROD Demand'!G151+'FR-16(7)(v)-7 TRANS Demand'!G151+'FR-16(7)(v)-11 DIST Demand'!G151","v":7090021},{"$f":"'FR-16(7)(v)-4 PROD Energy'!G151+'FR-16(7)(v)-8 TRANS Energy'!G151+'FR-16(7)(v)-12 DIST Energy'!G151","v":0},{"$f":"'FR-16(7)(v)-5 PROD Cust'!G151+'FR-16(7)(v)-9 TRANS Cust'!G151+'FR-16(7)(v)-13 DIST Cust'!G151","v":0},{"$f":"SUM(G151:I151)","v":7090021},{"$f":"F151-J151","v":0}]
[18,null,{"$f":"'FR-16(7)(v)-1 Functional'!C152","v":"POLES, TOWERS  & FIXTURES - PRIMARY - CUSTOMER"},{"$f":"'FR-16(7)(v)-1 Functional'!D152","v":"K405"},null,{"$f":"'FR-16(7)(v)-14 TOTAL CLASS'!G152","v":6234915},{"$f":"'FR-16(7)(v)-3 PROD Demand'!G152+'FR-16(7)(v)-7 TRANS Demand'!G152+'FR-16(7)(v)-11 DIST Demand'!G152","v":0},{"$f":"'FR-16(7)(v)-4 PROD Energy'!G152+'FR-16(7)(v)-8 TRANS Energy'!G152+'FR-16(7)(v)-12 DIST Energy'!G152","v":0},{"$f":"'FR-16(7)(v)-5 PROD Cust'!G152+'FR-16(7)(v)-9 TRANS Cust'!G152+'FR-16(7)(v)-13 DIST Cust'!G152","v":6234915},{"$f":"SUM(G152:I152)","v":6234915},{"$f":"F152-J152","v":0}]
[19,null,{"$f":"'FR-16(7)(v)-1 Functional'!C153","v":"POLES, TOWERS  & FIXTURES - SECONDARY - DEMAND"},{"$f":"'FR-16(7)(v)-1 Functional'!D153","v":"K206"},null,{"$f":"'FR-16(7)(v)-14 TOTAL CLASS'!G153","v":2711461},{"$f":"'FR-16(7)(v)-3 PROD Demand'!G153+'FR-16(7)(v)-7 TRANS Demand'!G153+'FR-16(7)(v)-11 DIST Demand'!G153","v":2711461},{"$f":"'FR-16(7)(v)-4 PROD Energy'!G153+'FR-16(7)(v)-8 TRANS Energy'!G153+'FR-16(7)(v)-12 DIST Energy'!G153","v":0},{"$f":"'FR-16(7)(v)-5 PROD Cust'!G153+'FR-16(7)(v)-9 TRANS Cust'!G153+'FR-16(7)(v)-13 DIST Cust'!G153","v":0},2711461,0]
[20,null,{"$f":"'FR-16(7)(v)-1 Functional'!C154","v":"POLES, TOWERS  & FIXTURES - SECONDARY - CUSTOMER"},{"$f":"'FR-16(7)(v)-1 Functional'!D154","v":"K405"},null,{"$f":"'FR-16(7)(v)-14 TOTAL CLASS'!G154","v":1409363},{"$f":"'FR-16(7)(v)-3 PROD Demand'!G154+'FR-16(7)(v)-7 TRANS Demand'!G154+'FR-16(7)(v)-11 DIST Demand'!G154","v":0},{"$f":"'FR-16(7)(v)-4 PROD Energy'!G154+'FR-16(7)(v)-8 TRANS Energy'!G154+'FR-16(7)(v)-12 DIST Energy'!G154","v":0},{"$f":"'FR-16(7)(v)-5 PROD Cust'!G154+'FR-16(7)(v)-9 TRANS Cust'!G154+'FR-16(7)(v)-13 DIST Cust'!G154","v":1409363},1409363,0]
[21,null,{"$f":"'FR-16(7)(v)-1 Functional'!C155","v":"CONDUCTORS - OVERHEAD / PRIMARY - DEMAND"},{"$f":"'FR-16(7)(v)-1 Functional'!D155","v":"K205"},null,{"$f":"'FR-16(7)(v)-14 TOTAL CLASS'!G155","v":10529571},{"$f":"'FR-16(7)(v)-3 PROD Demand'!G155+'FR-16(7)(v)-7 TRANS Demand'!G155+'FR-16(7)(v)-11 DIST Demand'!G155","v":10529571},{"$f":"'FR-16(7)(v)-4 PROD Energy'!G155+'FR-16(7)(v)-8 TRANS Energy'!G155+'FR-16(7)(v)-12 DIST Energy'!G155","v":0},{"$f":"'FR-16(7)(v)-5 PROD Cust'!G155+'FR-16(7)(v)-9 TRANS Cust'!G155+'FR-16(7)(v)-13 DIST Cust'!G155","v":0},10529571,0]
[22,null,{"$f":"'FR-16(7)(v)-1 Functional'!C156","v":"CONDUCTORS - OVERHEAD / PRIMARY - CUSTOMER"},{"$f":"'FR-16(7)(v)-1 Functional'!D156","v":"K405"},null,{"$f":"'FR-16(7)(v)-14 TOTAL CLASS'!G156","v":4418484},{"$f":"'FR-16(7)(v)-3 PROD Demand'!G156+'FR-16(7)(v)-7 TRANS Demand'!G156+'FR-16(7)(v)-11 DIST Demand'!G156","v":0},{"$f":"'FR-16(7)(v)-4 PROD Energy'!G156+'FR-16(7)(v)-8 TRANS Energy'!G156+'FR-16(7)(v)-12 DIST Energy'!G156","v":0},{"$f":"'FR-16(7)(v)-5 PROD Cust'!G156+'FR-16(7)(v)-9 TRANS Cust'!G156+'FR-16(7)(v)-13 DIST Cust'!G156","v":4418484},4418484,0]
[23,null,{"$f":"'FR-16(7)(v)-1 Functional'!C157","v":"CONDUCTORS - OVERHEAD / SECONDARY - DEMAND"},{"$f":"'FR-16(7)(v)-1 Functional'!D157","v":"K206"},null,{"$f":"'FR-16(7)(v)-14 TOTAL CLASS'!G157","v":4287519},{"$f":"'FR-16(7)(v)-3 PROD Demand'!G157+'FR-16(7)(v)-7 TRANS Demand'!G157+'FR-16(7)(v)-11 DIST Demand'!G157","v":4287519},{"$f":"'FR-16(7)(v)-4 PROD Energy'!G157+'FR-16(7)(v)-8 TRANS Energy'!G157+'FR-16(7)(v)-12 DIST Energy'!G157","v":0},{"$f":"'FR-16(7)(v)-5 PROD Cust'!G157+'FR-16(7)(v)-9 TRANS Cust'!G157+'FR-16(7)(v)-13 DIST Cust'!G157","v":0},4287519,0]
[24,null,{"$f":"'FR-16(7)(v)-1 Functional'!C158","v":"CONDUCTORS - OVERHEAD / SECONDARY - CUSTOMER"},{"$f":"'FR-16(7)(v)-1 Functional'!D158","v":"K405"},null,{"$f":"'FR-16(7)(v)-14 TOTAL CLASS'!G158","v":1830275},{"$f":"'FR-16(7)(v)-3 PROD Demand'!G158+'FR-16(7)(v)-7 TRANS Demand'!G158+'FR-16(7)(v)-11 DIST Demand'!G158","v":0},{"$f":"'FR-16(7)(v)-4 PROD Energy'!G158+'FR-16(7)(v)-8 TRANS Energy'!G158+'FR-16(7)(v)-12 DIST Energy'!G158","v":0},{"$f":"'FR-16(7)(v)-5 PROD Cust'!G158+'FR-16(7)(v)-9 TRANS Cust'!G158+'FR-16(7)(v)-13 DIST Cust'!G158","v":1830275},1830275,0]
[25,null,{"$f":"'FR-16(7)(v)-1 Functional'!C159","v":"CONDUCTORS - UNDERGROUND / PRIMARY - DEMAND"},{"$f":"'FR-16(7)(v)-1 Functional'!D159","v":"K205"},null,{"$f":"'FR-16(7)(v)-14 TOTAL CLASS'!G159","v":7795508},{"$f":"'FR-16(7)(v)-3 PROD Demand'!G159+'FR-16(7)(v)-7 TRANS Demand'!G159+'FR-16(7)(v)-11 DIST Demand'!G159","v":7795508},{"$f":"'FR-16(7)(v)-4 PROD Energy'!G159+'FR-16(7)(v)-8 TRANS Energy'!G159+'FR-16(7)(v)-12 DIST Energy'!G159","v":0},{"$f":"'FR-16(7)(v)-5 PROD Cust'!G159+'FR-16(7)(v)-9 TRANS Cust'!G159+'FR-16(7)(v)-13 DIST Cust'!G159","v":0},7795508,0]
[26,null,{"$f":"'FR-16(7)(v)-1 Functional'!C160","v":"CONDUCTORS - UNDERGROUND / PRIMARY - CUSTOMER"},{"$f":"'FR-16(7)(v)-1 Functional'!D160","v":"K405"},null,{"$f":"'FR-16(7)(v)-14 TOTAL CLASS'!G160","v":4651791},{"$f":"'FR-16(7)(v)-3 PROD Demand'!G160+'FR-16(7)(v)-7 TRANS Demand'!G160+'FR-16(7)(v)-11 DIST Demand'!G160","v":0},{"$f":"'FR-16(7)(v)-4 PROD Energy'!G160+'FR-16(7)(v)-8 TRANS Energy'!G160+'FR-16(7)(v)-12 DIST Energy'!G160","v":0},{"$f":"'FR-16(7)(v)-5 PROD Cust'!G160+'FR-16(7)(v)-9 TRANS Cust'!G160+'FR-16(7)(v)-13 DIST Cust'!G160","v":4651791},4651791,0]
[27,null,{"$f":"'FR-16(7)(v)-1 Functional'!C161","v":"CONDUCTORS - UNDERGROUND / SECONDARY - DEMAND"},{"$f":"'FR-16(7)(v)-1 Functional'!D161","v":"K206"},null,{"$f":"'FR-16(7)(v)-14 TOTAL CLASS'!G161","v":1335481},{"$f":"'FR-16(7)(v)-3 PROD Demand'!G161+'FR-16(7)(v)-7 TRANS Demand'!G161+'FR-16(7)(v)-11 DIST Demand'!G161","v":1335481},{"$f":"'FR-16(7)(v)-4 PROD Energy'!G161+'FR-16(7)(v)-8 TRANS Energy'!G161+'FR-16(7)(v)-12 DIST Energy'!G161","v":0},{"$f":"'FR-16(7)(v)-5 PROD Cust'!G161+'FR-16(7)(v)-9 TRANS Cust'!G161+'FR-16(7)(v)-13 DIST Cust'!G161","v":0},1335481,0]
[28,null,{"$f":"'FR-16(7)(v)-1 Functional'!C162","v":"CONDUCTORS - UNDERGROUND / SECONDARY - CUSTOMER"},{"$f":"'FR-16(7)(v)-1 Functional'!D162","v":"K405"},null,{"$f":"'FR-16(7)(v)-14 TOTAL CLASS'!G162","v":1454673},{"$f":"'FR-16(7)(v)-3 PROD Demand'!G162+'FR-16(7)(v)-7 TRANS Demand'!G162+'FR-16(7)(v)-11 DIST Demand'!G162","v":0},{"$f":"'FR-16(7)(v)-4 PROD Energy'!G162+'FR-16(7)(v)-8 TRANS Energy'!G162+'FR-16(7)(v)-12 DIST Energy'!G162","v":0},{"$f":"'FR-16(7)(v)-5 PROD Cust'!G162+'FR-16(7)(v)-9 TRANS Cust'!G162+'FR-16(7)(v)-13 DIST Cust'!G162","v":1454673},1454673,0]
[29,null,{"$f":"'FR-16(7)(v)-1 Functional'!C163","v":"TRANSFORMERS DEMAND RELATED"},{"$f":"'FR-16(7)(v)-1 Functional'!D163","v":"K215"},null,{"$f":"'FR-16(7)(v)-14 TOTAL CLASS'!G163","v":9626197},{"$f":"'FR-16(7)(v)-3 PROD Demand'!G163+'FR-16(7)(v)-7 TRANS Demand'!G163+'FR-16(7)(v)-11 DIST Demand'!G163","v":9626197},{"$f":"'FR-16(7)(v)-4 PROD Energy'!G163+'FR-16(7)(v)-8 TRANS Energy'!G163+'FR-16(7)(v)-12 DIST Energy'!G163","v":0},{"$f":"'FR-16(7)(v)-5 PROD Cust'!G163+'FR-16(7)(v)-9 TRANS Cust'!G163+'FR-16(7)(v)-13 DIST Cust'!G163","v":0},{"$f":"SUM(G163:I163)","v":9626197},{"$f":"F163-J163","v":0}]
[30,null,{"$f":"'FR-16(7)(v)-1 Functional'!C164","v":"TRANSFORMERS CUSTOMER RELATED"},{"$f":"'FR-16(7)(v)-1 Functional'!D164","v":"K405"},null,{"$f":"'FR-16(7)(v)-14 TOTAL CLASS'!G164","v":6011039},{"$f":"'FR-16(7)(v)-3 PROD Demand'!G164+'FR-16(7)(v)-7 TRANS Demand'!G164+'FR-16(7)(v)-11 DIST Demand'!G164","v":0},{"$f":"'FR-16(7)(v)-4 PROD Energy'!G164+'FR-16(7)(v)-8 TRANS Energy'!G164+'FR-16(7)(v)-12 DIST Energy'!G164","v":0},{"$f":"'FR-16(7)(v)-5 PROD Cust'!G164+'FR-16(7)(v)-9 TRANS Cust'!G164+'FR-16(7)(v)-13 DIST Cust'!G164","v":6011039},6011039,0]
[31,null,{"$f":"'FR-16(7)(v)-1 Functional'!C165","v":"SERVICES"},{"$f":"'FR-16(7)(v)-1 Functional'!D165","v":"K217"},null,{"$f":"'FR-16(7)(v)-14 TOTAL CLASS'!G165","v":10417084},{"$f":"'FR-16(7)(v)-3 PROD Demand'!G165+'FR-16(7)(v)-7 TRANS Demand'!G165+'FR-16(7)(v)-11 DIST Demand'!G165","v":0},{"$f":"'FR-16(7)(v)-4 PROD Energy'!G165+'FR-16(7)(v)-8 TRANS Energy'!G165+'FR-16(7)(v)-12 DIST Energy'!G165","v":0},{"$f":"'FR-16(7)(v)-5 PROD Cust'!G165+'FR-16(7)(v)-9 TRANS Cust'!G165+'FR-16(7)(v)-13 DIST Cust'!G165","v":10417084},10417084,0]
[32,null,{"$f":"'FR-16(7)(v)-1 Functional'!C166","v":"METERS"},{"$f":"'FR-16(7)(v)-1 Functional'!D166","v":"K407"},null,{"$f":"'FR-16(7)(v)-14 TOTAL CLASS'!G166","v":4014009},{"$f":"'FR-16(7)(v)-3 PROD Demand'!G166+'FR-16(7)(v)-7 TRANS Demand'!G166+'FR-16(7)(v)-11 DIST Demand'!G166","v":0},{"$f":"'FR-16(7)(v)-4 PROD Energy'!G166+'FR-16(7)(v)-8 TRANS Energy'!G166+'FR-16(7)(v)-12 DIST Energy'!G166","v":0},{"$f":"'FR-16(7)(v)-5 PROD Cust'!G166+'FR-16(7)(v)-9 TRANS Cust'!G166+'FR-16(7)(v)-13 DIST Cust'!G166","v":4014009},4014009,0]
[33,null,{"$f":"'FR-16(7)(v)-1 Functional'!C167","v":"STREET LIGHTS"},{"$f":"'FR-16(7)(v)-1 Functional'!D167","v":"K401"},null,{"$f":"'FR-16(7)(v)-14 TOTAL CLASS'!G167","v":0},{"$f":"'FR-16(7)(v)-3 PROD Demand'!G167+'FR-16(7)(v)-7 TRANS Demand'!G167+'FR-16(7)(v)-11 DIST Demand'!G167","v":0},{"$f":"'FR-16(7)(v)-4 PROD Energy'!G167+'FR-16(7)(v)-8 TRANS Energy'!G167+'FR-16(7)(v)-12 DIST Energy'!G167","v":0},{"$f":"'FR-16(7)(v)-5 PROD Cust'!G167+'FR-16(7)(v)-9 TRANS Cust'!G167+'FR-16(7)(v)-13 DIST Cust'!G167","v":0},0,0]
[34,null,{"$f":"'FR-16(7)(v)-1 Functional'!C168","v":"ADJUSTMENT  "},{"$f":"'FR-16(7)(v)-1 Functional'!D168","v":"K209"},null,{"$f":"'FR-16(7)(v)-14 TOTAL CLASS'!G168","v":266136},{"$f":"'FR-16(7)(v)-3 PROD Demand'!G168+'FR-16(7)(v)-7 TRANS Demand'!G168+'FR-16(7)(v)-11 DIST Demand'!G168","v":160764},{"$f":"'FR-16(7)(v)-4 PROD Energy'!G168+'FR-16(7)(v)-8 TRANS Energy'!G168+'FR-16(7)(v)-12 DIST Energy'!G168","v":0},{"$f":"'FR-16(7)(v)-5 PROD Cust'!G168+'FR-16(7)(v)-9 TRANS Cust'!G168+'FR-16(7)(v)-13 DIST Cust'!G168","v":105372},266136,0]
[35,null,{"$f":"'FR-16(7)(v)-1 Functional'!C169","v":"CONSTRUCTION NOT CLASSIFIED"},{"$f":"'FR-16(7)(v)-1 Functional'!D169","v":"K209"},null,{"$f":"'FR-16(7)(v)-14 TOTAL CLASS'!G169","v":869245},{"$f":"'FR-16(7)(v)-3 PROD Demand'!G169+'FR-16(7)(v)-7 TRANS Demand'!G169+'FR-16(7)(v)-11 DIST Demand'!G169","v":525085},{"$f":"'FR-16(7)(v)-4 PROD Energy'!G169+'FR-16(7)(v)-8 TRANS Energy'!G169+'FR-16(7)(v)-12 DIST Energy'!G169","v":0},{"$f":"'FR-16(7)(v)-5 PROD Cust'!G169+'FR-16(7)(v)-9 TRANS Cust'!G169+'FR-16(7)(v)-13 DIST Cust'!G169","v":344160},869245,0]
[36,null,{"$f":"'FR-16(7)(v)-1 Functional'!C170","v":"RWIP"},{"$f":"'FR-16(7)(v)-1 Functional'!D170","v":"K215"},null,{"$f":"'FR-16(7)(v)-14 TOTAL CLASS'!G170","v":-8036273},{"$f":"'FR-16(7)(v)-3 PROD Demand'!G170+'FR-16(7)(v)-7 TRANS Demand'!G170+'FR-16(7)(v)-11 DIST Demand'!G170","v":-8036273},{"$f":"'FR-16(7)(v)-4 PROD Energy'!G170+'FR-16(7)(v)-8 TRANS Energy'!G170+'FR-16(7)(v)-12 DIST Energy'!G170","v":0},{"$f":"'FR-16(7)(v)-5 PROD Cust'!G170+'FR-16(7)(v)-9 TRANS Cust'!G170+'FR-16(7)(v)-13 DIST Cust'!G170","v":0},{"$f":"SUM(G170:I170)","v":-8036273},{"$f":"F170-J170","v":0}]
[37,null,{"$f":"'FR-16(7)(v)-1 Functional'!C171","v":"  TOTAL DIST DEPREC RESERVE"},null,null,{"$f":"SUM(F149:F170)","v":85593366},{"$f":"SUM(G149:G170)","v":44702201},0,40891165,85593366,0]
[38]
[39,null,"TOTAL TRANS & DIST DEPREC RESERVE",null,null,{"$f":"F171+F145","v":94558860},{"$f":"G171+G145","v":53667695},{"$f":"H171+H145","v":0},{"$f":"I171+I145","v":40891165},{"$f":"J171+J145","v":94558860},{"$f":"F173-J173","v":0}]
[40,null,"TOTAL GROSS PTD PLANT DEPREC RESERVE",null,null,{"$f":"F147+F171","v":359137625},{"$f":"G147+G171","v":318246460},{"$f":"H147+H171","v":0},{"$f":"I147+I171","v":40891165},{"$f":"J147+J171","v":359137625},{"$f":"F174-J174","v":0}]
[41]
[42,"GENERAL & INTANGIBLE PLANT"]
[43,null,{"$f":"'FR-16(7)(v)-1 Functional'!C177","v":"PRODUCTION - DEMAND"},{"$f":"'FR-16(7)(v)-1 Functional'!D177","v":"K201"},null,{"$f":"'FR-16(7)(v)-14 TOTAL CLASS'!G177","v":2426577},{"$f":"'FR-16(7)(v)-3 PROD Demand'!G177+'FR-16(7)(v)-7 TRANS Demand'!G177+'FR-16(7)(v)-11 DIST Demand'!G177","v":2426577},{"$f":"'FR-16(7)(v)-4 PROD Energy'!G177+'FR-16(7)(v)-8 TRANS Energy'!G177+'FR-16(7)(v)-12 DIST Energy'!G177","v":0},{"$f":"'FR-16(7)(v)-5 PROD Cust'!G177+'FR-16(7)(v)-9 TRANS Cust'!G177+'FR-16(7)(v)-13 DIST Cust'!G177","v":0},{"$f":"SUM(G177:I177)","v":2426577},{"$f":"F177-J177","v":0}]
[44,null,{"$f":"'FR-16(7)(v)-1 Functional'!C178","v":"PRODUCTION - ENERGY"},{"$f":"'FR-16(7)(v)-1 Functional'!D178","v":"K301"},null,{"$f":"'FR-16(7)(v)-14 TOTAL CLASS'!G178","v":2374140},{"$f":"'FR-16(7)(v)-3 PROD Demand'!G178+'FR-16(7)(v)-7 TRANS Demand'!G178+'FR-16(7)(v)-11 DIST Demand'!G178","v":0},{"$f":"'FR-16(7)(v)-4 PROD Energy'!G178+'FR-16(7)(v)-8 TRANS Energy'!G178+'FR-16(7)(v)-12 DIST Energy'!G178","v":2374140},{"$f":"'FR-16(7)(v)-5 PROD Cust'!G178+'FR-16(7)(v)-9 TRANS Cust'!G178+'FR-16(7)(v)-13 DIST Cust'!G178","v":0},{"$f":"SUM(G178:I178)","v":2374140},{"$f":"F178-J178","v":0}]
[45,null,{"$f":"'FR-16(7)(v)-1 Functional'!C179","v":"TRANSMISSION"},{"$f":"'FR-16(7)(v)-1 Functional'!D179","v":"K202"},null,{"$f":"'FR-16(7)(v)-14 TOTAL CLASS'!G179","v":383451},{"$f":"'FR-16(7)(v)-3 PROD Demand'!G179+'FR-16(7)(v)-7 TRANS Demand'!G179+'FR-16(7)(v)-11 DIST Demand'!G179","v":383451},{"$f":"'FR-16(7)(v)-4 PROD Energy'!G179+'FR-16(7)(v)-8 TRANS Energy'!G179+'FR-16(7)(v)-12 DIST Energy'!G179","v":0},{"$f":"'FR-16(7)(v)-5 PROD Cust'!G179+'FR-16(7)(v)-9 TRANS Cust'!G179+'FR-16(7)(v)-13 DIST Cust'!G179","v":0},383451,0]
[46,null,{"$f":"'FR-16(7)(v)-1 Functional'!C180","v":"DISTRIBUTION - DEMAND"},{"$f":"'FR-16(7)(v)-1 Functional'!D180","v":"K201"},null,{"$f":"'FR-16(7)(v)-14 TOTAL CLASS'!G180","v":1287865},{"$f":"'FR-16(7)(v)-3 PROD Demand'!G180+'FR-16(7)(v)-7 TRANS Demand'!G180+'FR-16(7)(v)-11 DIST Demand'!G180","v":1287865},{"$f":"'FR-16(7)(v)-4 PROD Energy'!G180+'FR-16(7)(v)-8 TRANS Energy'!G180+'FR-16(7)(v)-12 DIST Energy'!G180","v":0},{"$f":"'FR-16(7)(v)-5 PROD Cust'!G180+'FR-16(7)(v)-9 TRANS Cust'!G180+'FR-16(7)(v)-13 DIST Cust'!G180","v":0},1287865,0]
[47,null,{"$f":"'FR-16(7)(v)-1 Functional'!C181","v":"DISTRIBUTION - CUSTOMER"},{"$f":"'FR-16(7)(v)-1 Functional'!D181","v":"K405"},null,{"$f":"'FR-16(7)(v)-14 TOTAL CLASS'!G181","v":565642},{"$f":"'FR-16(7)(v)-3 PROD Demand'!G181+'FR-16(7)(v)-7 TRANS Demand'!G181+'FR-16(7)(v)-11 DIST Demand'!G181","v":0},{"$f":"'FR-16(7)(v)-4 PROD Energy'!G181+'FR-16(7)(v)-8 TRANS Energy'!G181+'FR-16(7)(v)-12 DIST Energy'!G181","v":0},{"$f":"'FR-16(7)(v)-5 PROD Cust'!G181+'FR-16(7)(v)-9 TRANS Cust'!G181+'FR-16(7)(v)-13 DIST Cust'!G181","v":565642},565642,0]
[48,null,{"$f":"'FR-16(7)(v)-1 Functional'!C182","v":"CUSTOMER ACCOUNTING"},{"$f":"'FR-16(7)(v)-1 Functional'!D182","v":"A308"},null,{"$f":"'FR-16(7)(v)-14 TOTAL CLASS'!G182","v":1736766},{"$f":"'FR-16(7)(v)-3 PROD Demand'!G182+'FR-16(7)(v)-7 TRANS Demand'!G182+'FR-16(7)(v)-11 DIST Demand'!G182","v":0},{"$f":"'FR-16(7)(v)-4 PROD Energy'!G182+'FR-16(7)(v)-8 TRANS Energy'!G182+'FR-16(7)(v)-12 DIST Energy'!G182","v":0},{"$f":"'FR-16(7)(v)-5 PROD Cust'!G182+'FR-16(7)(v)-9 TRANS Cust'!G182+'FR-16(7)(v)-13 DIST Cust'!G182","v":1736766},1736766,0]
[49,null,{"$f":"'FR-16(7)(v)-1 Functional'!C183","v":"CUSTOMER SERVICE & INFORMATION"},{"$f":"'FR-16(7)(v)-1 Functional'!D183","v":"A310"},null,{"$f":"'FR-16(7)(v)-14 TOTAL CLASS'!G183","v":125784},{"$f":"'FR-16(7)(v)-3 PROD Demand'!G183+'FR-16(7)(v)-7 TRANS Demand'!G183+'FR-16(7)(v)-11 DIST Demand'!G183","v":0},{"$f":"'FR-16(7)(v)-4 PROD Energy'!G183+'FR-16(7)(v)-8 TRANS Energy'!G183+'FR-16(7)(v)-12 DIST Energy'!G183","v":0},{"$f":"'FR-16(7)(v)-5 PROD Cust'!G183+'FR-16(7)(v)-9 TRANS Cust'!G183+'FR-16(7)(v)-13 DIST Cust'!G183","v":125784},125784,0]
[50,null,{"$f":"'FR-16(7)(v)-1 Functional'!C184","v":"SALES"},{"$f":"'FR-16(7)(v)-1 Functional'!D184","v":"A312"},null,{"$f":"'FR-16(7)(v)-14 TOTAL CLASS'!G184","v":0},{"$f":"'FR-16(7)(v)-3 PROD Demand'!G184+'FR-16(7)(v)-7 TRANS Demand'!G184+'FR-16(7)(v)-11 DIST Demand'!G184","v":0},{"$f":"'FR-16(7)(v)-4 PROD Energy'!G184+'FR-16(7)(v)-8 TRANS Energy'!G184+'FR-16(7)(v)-12 DIST Energy'!G184","v":0},{"$f":"'FR-16(7)(v)-5 PROD Cust'!G184+'FR-16(7)(v)-9 TRANS Cust'!G184+'FR-16(7)(v)-13 DIST Cust'!G184","v":0},0,0]
[51,null,{"$f":"'FR-16(7)(v)-1 Functional'!C185","v":"ADJUSTMENT"},{"$f":"'FR-16(7)(v)-1 Functional'!D185","v":"A315"},null,{"$f":"'FR-16(7)(v)-14 TOTAL CLASS'!G185","v":235345},{"$f":"'FR-16(7)(v)-3 PROD Demand'!G185+'FR-16(7)(v)-7 TRANS Demand'!G185+'FR-16(7)(v)-11 DIST Demand'!G185","v":150893},{"$f":"'FR-16(7)(v)-4 PROD Energy'!G185+'FR-16(7)(v)-8 TRANS Energy'!G185+'FR-16(7)(v)-12 DIST Energy'!G185","v":42400},{"$f":"'FR-16(7)(v)-5 PROD Cust'!G185+'FR-16(7)(v)-9 TRANS Cust'!G185+'FR-16(7)(v)-13 DIST Cust'!G185","v":42052},235345,0]
[52,null,{"$f":"'FR-16(7)(v)-1 Functional'!C186","v":"  GENERAL & INTANG PLANT"},null,null,{"$f":"SUM(F176:F185)","v":9135570},4248786,2416540,2470244,9135570,0]
[53]
[54,"COMMON & OTHER PLANT"]
[55,null,{"$f":"'FR-16(7)(v)-1 Functional'!C189","v":"PRODUCTION - DEMAND"},{"$f":"'FR-16(7)(v)-1 Functional'!D189","v":"K201"},null,{"$f":"'FR-16(7)(v)-14 TOTAL CLASS'!G189","v":3278741},{"$f":"'FR-16(7)(v)-3 PROD Demand'!G189+'FR-16(7)(v)-7 TRANS Demand'!G189+'FR-16(7)(v)-11 DIST Demand'!G189","v":3278741},{"$f":"'FR-16(7)(v)-4 PROD Energy'!G189+'FR-16(7)(v)-8 TRANS Energy'!G189+'FR-16(7)(v)-12 DIST Energy'!G189","v":0},{"$f":"'FR-16(7)(v)-5 PROD Cust'!G189+'FR-16(7)(v)-9 TRANS Cust'!G189+'FR-16(7)(v)-13 DIST Cust'!G189","v":0},{"$f":"SUM(G189:I189)","v":3278741},{"$f":"F189-J189","v":0}]
[56,null,{"$f":"'FR-16(7)(v)-1 Functional'!C190","v":"PRODUCTION - ENERGY"},{"$f":"'FR-16(7)(v)-1 Functional'!D190","v":"K301"},null,{"$f":"'FR-16(7)(v)-14 TOTAL CLASS'!G190","v":3207889},{"$f":"'FR-16(7)(v)-3 PROD Demand'!G190+'FR-16(7)(v)-7 TRANS Demand'!G190+'FR-16(7)(v)-11 DIST Demand'!G190","v":0},{"$f":"'FR-16(7)(v)-4 PROD Energy'!G190+'FR-16(7)(v)-8 TRANS Energy'!G190+'FR-16(7)(v)-12 DIST Energy'!G190","v":3207889},{"$f":"'FR-16(7)(v)-5 PROD Cust'!G190+'FR-16(7)(v)-9 TRANS Cust'!G190+'FR-16(7)(v)-13 DIST Cust'!G190","v":0},{"$f":"SUM(G190:I190)","v":3207889},{"$f":"F190-J190","v":0}]
[57,null,{"$f":"'FR-16(7)(v)-1 Functional'!C191","v":"TRANSMISSION"},{"$f":"'FR-16(7)(v)-1 Functional'!D191","v":"K202"},null,{"$f":"'FR-16(7)(v)-14 TOTAL CLASS'!G191","v":518115},{"$f":"'FR-16(7)(v)-3 PROD Demand'!G191+'FR-16(7)(v)-7 TRANS Demand'!G191+'FR-16(7)(v)-11 DIST Demand'!G191","v":518115},{"$f":"'FR-16(7)(v)-4 PROD Energy'!G191+'FR-16(7)(v)-8 TRANS Energy'!G191+'FR-16(7)(v)-12 DIST Energy'!G191","v":0},{"$f":"'FR-16(7)(v)-5 PROD Cust'!G191+'FR-16(7)(v)-9 TRANS Cust'!G191+'FR-16(7)(v)-13 DIST Cust'!G191","v":0},518115,0]
[58,null,{"$f":"'FR-16(7)(v)-1 Functional'!C192","v":"DISTRIBUTION - DEMAND"},{"$f":"'FR-16(7)(v)-1 Functional'!D192","v":"K201"},null,{"$f":"'FR-16(7)(v)-14 TOTAL CLASS'!G192","v":1740136},{"$f":"'FR-16(7)(v)-3 PROD Demand'!G192+'FR-16(7)(v)-7 TRANS Demand'!G192+'FR-16(7)(v)-11 DIST Demand'!G192","v":1740136},{"$f":"'FR-16(7)(v)-4 PROD Energy'!G192+'FR-16(7)(v)-8 TRANS Energy'!G192+'FR-16(7)(v)-12 DIST Energy'!G192","v":0},{"$f":"'FR-16(7)(v)-5 PROD Cust'!G192+'FR-16(7)(v)-9 TRANS Cust'!G192+'FR-16(7)(v)-13 DIST Cust'!G192","v":0},1740136,0]
[59,null,{"$f":"'FR-16(7)(v)-1 Functional'!C193","v":"DISTRIBUTION - CUSTOMER"},{"$f":"'FR-16(7)(v)-1 Functional'!D193","v":"K405"},null,{"$f":"'FR-16(7)(v)-14 TOTAL CLASS'!G193","v":764285},{"$f":"'FR-16(7)(v)-3 PROD Demand'!G193+'FR-16(7)(v)-7 TRANS Demand'!G193+'FR-16(7)(v)-11 DIST Demand'!G193","v":0},{"$f":"'FR-16(7)(v)-4 PROD Energy'!G193+'FR-16(7)(v)-8 TRANS Energy'!G193+'FR-16(7)(v)-12 DIST Energy'!G193","v":0},{"$f":"'FR-16(7)(v)-5 PROD Cust'!G193+'FR-16(7)(v)-9 TRANS Cust'!G193+'FR-16(7)(v)-13 DIST Cust'!G193","v":764285},764285,0]
[60,null,{"$f":"'FR-16(7)(v)-1 Functional'!C194","v":"CUSTOMER ACCOUNTING"},{"$f":"'FR-16(7)(v)-1 Functional'!D194","v":"A308"},null,{"$f":"'FR-16(7)(v)-14 TOTAL CLASS'!G194","v":2346684},{"$f":"'FR-16(7)(v)-3 PROD Demand'!G194+'FR-16(7)(v)-7 TRANS Demand'!G194+'FR-16(7)(v)-11 DIST Demand'!G194","v":0},{"$f":"'FR-16(7)(v)-4 PROD Energy'!G194+'FR-16(7)(v)-8 TRANS Energy'!G194+'FR-16(7)(v)-12 DIST Energy'!G194","v":0},{"$f":"'FR-16(7)(v)-5 PROD Cust'!G194+'FR-16(7)(v)-9 TRANS Cust'!G194+'FR-16(7)(v)-13 DIST Cust'!G194","v":2346684},2346684,0]
[61,null,{"$f":"'FR-16(7)(v)-1 Functional'!C195","v":"CUSTOMER SERVICE & INFORMATION"},{"$f":"'FR-16(7)(v)-1 Functional'!D195","v":"A310"},null,{"$f":"'FR-16(7)(v)-14 TOTAL CLASS'!G195","v":169957},{"$f":"'FR-16(7)(v)-3 PROD Demand'!G195+'FR-16(7)(v)-7 TRANS Demand'!G195+'FR-16(7)(v)-11 DIST Demand'!G195","v":0},{"$f":"'FR-16(7)(v)-4 PROD Energy'!G195+'FR-16(7)(v)-8 TRANS Energy'!G195+'FR-16(7)(v)-12 DIST Energy'!G195","v":0},{"$f":"'FR-16(7)(v)-5 PROD Cust'!G195+'FR-16(7)(v)-9 TRANS Cust'!G195+'FR-16(7)(v)-13 DIST Cust'!G195","v":169957},169957,0]
[62,null,{"$f":"'FR-16(7)(v)-1 Functional'!C196","v":"SALES"},{"$f":"'FR-16(7)(v)-1 Functional'!D196","v":"A312"},null,{"$f":"'FR-16(7)(v)-14 TOTAL CLASS'!G196","v":0},{"$f":"'FR-16(7)(v)-3 PROD Demand'!G196+'FR-16(7)(v)-7 TRANS Demand'!G196+'FR-16(7)(v)-11 DIST Demand'!G196","v":0},{"$f":"'FR-16(7)(v)-4 PROD Energy'!G196+'FR-16(7)(v)-8 TRANS Energy'!G196+'FR-16(7)(v)-12 DIST Energy'!G196","v":0},{"$f":"'FR-16(7)(v)-5 PROD Cust'!G196+'FR-16(7)(v)-9 TRANS Cust'!G196+'FR-16(7)(v)-13 DIST Cust'!G196","v":0},0,0]
[63,null,{"$f":"'FR-16(7)(v)-1 Functional'!C197","v":"ADJUSTMENT"},{"$f":"'FR-16(7)(v)-1 Functional'!D197","v":"A315"},null,{"$f":"'FR-16(7)(v)-14 TOTAL CLASS'!G197","v":13221},{"$f":"'FR-16(7)(v)-3 PROD Demand'!G197+'FR-16(7)(v)-7 TRANS Demand'!G197+'FR-16(7)(v)-11 DIST Demand'!G197","v":8478},{"$f":"'FR-16(7)(v)-4 PROD Energy'!G197+'FR-16(7)(v)-8 TRANS Energy'!G197+'FR-16(7)(v)-12 DIST Energy'!G197","v":2383},{"$f":"'FR-16(7)(v)-5 PROD Cust'!G197+'FR-16(7)(v)-9 TRANS Cust'!G197+'FR-16(7)(v)-13 DIST Cust'!G197","v":2360},13221,0]
[64,null,{"$f":"'FR-16(7)(v)-1 Functional'!C198","v":"  COMMON & OTHER PLANT IN SERVICE"},null,null,{"$f":"SUM(F189:F197)","v":12039028},{"$f":"SUM(G188:G197)","v":5545470},{"$f":"SUM(H188:H197)","v":3210272},{"$f":"SUM(I188:I197)","v":3283286},{"$f":"SUM(J188:J197)","v":12039028},{"$f":"SUM(K188:K197)","v":0}]
[65]
[66,"TOTAL DEPRECIATION RESERVE",null,null,null,{"$f":"F198+F186+F171+F145+F139","v":380312223},328040716,5626812,46644695,380312223,0]
[]
[{"$f":"co_name","v":"DUKE ENERGY KENTUCKY, INC."},null,null,null,null,null,null,null,null,{"$f":"J1","v":"FR-16(7)(v)-15"}]
[{"$f":"$A$2","v":"RESIDENTIAL CLASSIFIED - ELECTRIC COST OF SERVICE"},null,null,null,null,null,null,null,null,{"$f":"J2","v":"WITNESS RESPONSIBLE:"}]
[{"$f":"case_name","v":"CASE NO: 2019-00271"},null,null,null,null,null,null,null,null,{"$f":"Witness","v":"JAMES E. ZIOLKOWSKI"}]
[{"$f":"data_filing","v":"DATA: 12 MONTHS ACTUAL  & 0 MONTHS ESTIMATED"},null,null,null,null,null,null,null,null,{"$f":"\"PAGE \"&Pages2-11&\" OF \"&Pages2","v":"PAGE 4 OF 15"}]
[{"$f":"type","v":"TYPE OF FILING: \"X\" ORIGINAL   UPDATED    REVISED  "}]
[]
[]
["LINE",null,null,null,null,"TOTAL","CLASSIFIED",null,null,"TOTAL","ALL"]
["NO.",{"$f":"\"NET ELECTRIC PLANT\"","v":"NET ELECTRIC PLANT"},null,"ALLO",null,{"$f":"$F$9","v":"RESIDENTIAL"},{"$f":"G9","v":"DEMAND"},"ENERGY","CUSTOMER","AT ISSUE","OTHER"]
[null,null,"Schedule 4",null,null,null,3,4,5]
[1,"PRODUCTION PLANT"]
[2,null,{"$f":"'FR-16(7)(v)-1 Functional'!C213","v":"PRODUCTION STEAM"},null,null,{"$f":"F59-F136","v":195719773},195719773,0,0,195719773,0]
[3,null,{"$f":"'FR-16(7)(v)-1 Functional'!C214","v":"PRODUCTION OTHER"},null,null,{"$f":"F60-F137","v":85301188},85301188,0,0,85301188,0]
[4,null,{"$f":"'FR-16(7)(v)-1 Functional'!C215","v":"ADJUSTMENT"},null,null,{"$f":"F61-F138","v":-700226},-700226,0,0,-700226,0]
[5,null,{"$f":"'FR-16(7)(v)-1 Functional'!C216","v":"  NET PRODUCTION PLANT"},null,null,{"$f":"SUM(F213:F215)","v":280320735},280320735,0,0,280320735,0]
[6]
[7,"TRANSMISSION PLANT"]
[8,null,{"$f":"'FR-16(7)(v)-1 Functional'!C219","v":"MAIN STEP-UP TRANSFORMERS"},null,null,{"$f":"F65-F142","v":0},0,0,0,0,0]
[9,null,{"$f":"'FR-16(7)(v)-1 Functional'!C220","v":"OTHER TRANSMISSION"},null,null,{"$f":"F66-F143","v":23626587},23626587,0,0,23626587,0]
[10,null,{"$f":"'FR-16(7)(v)-1 Functional'!C221","v":"ADJUSTMENT"},null,null,{"$f":"F67-F144","v":31635},31635,0,0,31635,0]
[11,null,{"$f":"'FR-16(7)(v)-1 Functional'!C222","v":"    NET TRANSMISSION PLANT"},null,null,{"$f":"SUM(F218:F221)","v":23658222},23658222,0,0,23658222,0]
[12]
[13,"NET PROD & TRANS PLANT",null,null,null,{"$f":"F70-F147","v":303978957},303978957,0,0,303978957,0]
[14]
[15,"DISTRIBUTION PLANT"]
[16,null,{"$f":"'FR-16(7)(v)-1 Functional'!C227","v":"SUBSTATIONS"},null,null,{"$f":"F73-F150","v":34030174},34030174,0,0,34030174,0]
[17,null,{"$f":"'FR-16(7)(v)-1 Functional'!C228","v":"POLES, TOWERS  & FIXTURES - PRIMARY - DEMAND"},null,null,{"$f":"F74-F151","v":8405851},8405851,0,0,8405851,0]
[18,null,{"$f":"'FR-16(7)(v)-1 Functional'!C229","v":"POLES, TOWERS  & FIXTURES - PRIMARY - CUSTOMER"},null,null,7392048,0,0,7392048,7392048,0]
[19,null,{"$f":"'FR-16(7)(v)-1 Functional'!C230","v":"POLES, TOWERS  & FIXTURES - SECONDARY - DEMAND"},null,null,3214677,3214677,0,0,3214677,0]
[20,null,{"$f":"'FR-16(7)(v)-1 Functional'!C231","v":"POLES, TOWERS  & FIXTURES - SECONDARY - CUSTOMER"},null,null,1670924,0,0,1670924,1670924,0]
[21,null,{"$f":"'FR-16(7)(v)-1 Functional'!C232","v":"CONDUCTORS - OVERHEAD / PRIMARY - DEMAND"},null,null,24782278,24782278,0,0,24782278,0]
[22,null,{"$f":"'FR-16(7)(v)-1 Functional'!C233","v":"CONDUCTORS - OVERHEAD / PRIMARY - CUSTOMER"},null,null,10399294,0,0,10399294,10399294,0]
[23,null,{"$f":"'FR-16(7)(v)-1 Functional'!C234","v":"CONDUCTORS - OVERHEAD / SECONDARY - DEMAND"},null,null,10091052,10091052,0,0,10091052,0]
[24,null,{"$f":"'FR-16(7)(v)-1 Functional'!C235","v":"CONDUCTORS - OVERHEAD / SECONDARY - CUSTOMER"},null,null,4307720,0,0,4307720,4307720,0]
[25,null,{"$f":"'FR-16(7)(v)-1 Functional'!C236","v":"CONDUCTORS - UNDERGROUND / PRIMARY - DEMAND"},null,null,18558906,18558906,0,0,18558906,0]
[26,null,{"$f":"'FR-16(7)(v)-1 Functional'!C237","v":"CONDUCTORS - UNDERGROUND / PRIMARY - CUSTOMER"},null,null,11074609,0,0,11074609,11074609,0]
[27,null,{"$f":"'FR-16(7)(v)-1 Functional'!C238","v":"CONDUCTORS - UNDERGROUND / SECONDARY - DEMAND"},null,null,3179407,3179407,0,0,3179407,0]
[28,null,{"$f":"'FR-16(7)(v)-1 Functional'!C239","v":"CONDUCTORS - UNDERGROUND / SECONDARY - CUSTOMER"},null,null,3463166,0,0,3463166,3463166,0]
[29,null,{"$f":"'FR-16(7)(v)-1 Functional'!C240","v":"TRANSFORMERS DEMAND RELATED"},null,null,12491510,12491510,0,0,12491510,0]
[30,null,{"$f":"'FR-16(7)(v)-1 Functional'!C241","v":"TRANSFORMERS CUSTOMER RELATED"},null,null,7800270,0,0,7800270,7800270,0]
[31,null,{"$f":"'FR-16(7)(v)-1 Functional'!C242","v":"SERVICES"},null,null,{"$f":"F88-F165","v":8547739},0,0,8547739,8547739,0]
[32,null,{"$f":"'FR-16(7)(v)-1 Functional'!C243","v":"METERS"},null,null,{"$f":"F89-F166","v":14233168},0,0,14233168,14233168,0]
[33,null,{"$f":"'FR-16(7)(v)-1 Functional'!C244","v":"STREET LIGHTS"},null,null,{"$f":"F90-F167","v":0},0,0,0,0,0]
[34,null,{"$f":"'FR-16(7)(v)-1 Functional'!C245","v":"ADJUSTMENT  "},null,null,{"$f":"F91-F168","v":-266136},-160764,0,-105372,-266136,0]
[35,null,{"$f":"'FR-16(7)(v)-1 Functional'!C246","v":"CONSTRUCTION NOT CLASSIFIED"},null,null,{"$f":"F92-F169","v":53076912},32062155,0,21014757,53076912,0]
[36,null,{"$f":"'FR-16(7)(v)-1 Functional'!C247","v":"RWIP"},null,null,8036273,8036273,0,0,8036273,0]
[37,null,{"$f":"'FR-16(7)(v)-1 Functional'!C248","v":"  NET DISTRIBUTION PLANT"},null,null,{"$f":"SUM(F226:F247)","v":244489842},{"$f":"SUM(G226:G247)","v":154691519},0,89798323,244489842,0]
[38]
[39,"NET PTD PLANT",null,null,null,{"$f":"F96-F173","v":268148064},178349741,0,89798323,268148064,0]
[40,"NET TRANS & DIST PLANT",null,null,null,{"$f":"F97-F174","v":548468799},458670476,0,89798323,548468799,0]
[41]
[42,"GENERAL & INTANGIBLE PLANT"]
[43,null,{"$f":"'FR-16(7)(v)-1 Functional'!C254","v":"PRODUCTION - DEMAND"},null,null,{"$f":"F100-F177","v":5103275},5103275,0,0,5103275,0]
[44,null,{"$f":"'FR-16(7)(v)-1 Functional'!C255","v":"PRODUCTION - ENERGY"},null,null,{"$f":"F101-F178","v":4992993},0,4992993,0,4992993,0]
[45,null,{"$f":"'FR-16(7)(v)-1 Functional'!C256","v":"TRANSMISSION"},null,null,{"$f":"F102-F179","v":806432},806432,0,0,806432,0]
[46,null,{"$f":"'FR-16(7)(v)-1 Functional'!C257","v":"DISTRIBUTION - DEMAND"},null,null,{"$f":"F103-F180","v":2708475},2708475,0,0,2708475,0]
[47,null,{"$f":"'FR-16(7)(v)-1 Functional'!C258","v":"DISTRIBUTION - CUSTOMER"}]
[48,null,{"$f":"'FR-16(7)(v)-1 Functional'!C259","v":"CUSTOMER ACCOUNTING"},null,null,{"$f":"F105-F182","v":3652551},0,0,3652551,3652551,0]
[49,null,{"$f":"'FR-16(7)(v)-1 Functional'!C260","v":"CUSTOMER SERVICE & INFORMATION"},null,null,{"$f":"F106-F183","v":264531},0,0,264531,264531,0]
[50,null,{"$f":"'FR-16(7)(v)-1 Functional'!C261","v":"SALES"},null,null,0,0,0,0,0,0]
[51,null,{"$f":"'FR-16(7)(v)-1 Functional'!C262","v":"ADJUSTMENT"},null,null,{"$f":"F108-F185","v":-235345},-150893,-42400,-42052,-235345,0]
[52,null,{"$f":"'FR-16(7)(v)-1 Functional'!C263","v":"  NET GENERAL & INTANG PLANT"},null,null,{"$f":"SUM(F253:F262)","v":17292912},8467289,4950593,3875030,17292912,0]
[53]
[54,"COMMON & OTHER PLANT"]
[55,null,{"$f":"'FR-16(7)(v)-1 Functional'!C266","v":"PRODUCTION - DEMAND"},null,null,{"$f":"F112-F189","v":983019},983019,0,0,983019,0]
[56,null,{"$f":"'FR-16(7)(v)-1 Functional'!C267","v":"PRODUCTION - ENERGY"},null,null,{"$f":"F113-F190","v":961778},0,961778,0,961778,0]
[57,null,{"$f":"'FR-16(7)(v)-1 Functional'!C268","v":"TRANSMISSION"},null,null,{"$f":"F114-F191","v":155338},155338,0,0,155338,0]
[58,null,{"$f":"'FR-16(7)(v)-1 Functional'!C269","v":"DISTRIBUTION - DEMAND"},null,null,{"$f":"F115-F192","v":521720},521720,0,0,521720,0]
[59,null,{"$f":"'FR-16(7)(v)-1 Functional'!C270","v":"DISTRIBUTION - CUSTOMER"}]
[60,null,{"$f":"'FR-16(7)(v)-1 Functional'!C271","v":"CUSTOMER ACCOUNTING"},null,null,{"$f":"F117-F194","v":703573},0,0,703573,703573,0]
[61,null,{"$f":"'FR-16(7)(v)-1 Functional'!C272","v":"CUSTOMER SERVICE & INFORMATION"},null,null,{"$f":"F118-F195","v":50956},0,0,50956,50956,0]
[62,null,{"$f":"'FR-16(7)(v)-1 Functional'!C273","v":"SALES"},null,null,0,0,0,0,0,0]
[63,null,{"$f":"'FR-16(7)(v)-1 Functional'!C274","v":"ADJUSTMENT"},null,null,{"$f":"F120-F197","v":-13221},-8478,-2383,-2360,-13221,0]
[64,null,{"$f":"'FR-16(7)(v)-1 Functional'!C275","v":"  COMMON & OTHER PLANT IN SERVICE"},null,null,{"$f":"SUM(F265:F274)","v":3363163},1651599,959395,752169,3363163,0]
[65]
[66,null,{"$f":"'FR-16(7)(v)-1 Functional'!C277","v":"NET ELECTRIC PLANT IN SERVICE"},null,null,{"$f":"F275+F263+F248+F222+F216","v":569124874},468789364,5909988,94425522,569124874,0]
[]
[{"$f":"co_name","v":"DUKE ENERGY KENTUCKY, INC."},null,null,null,null,null,null,null,null,{"$f":"J1","v":"FR-16(7)(v)-15"}]
[{"$f":"$A$2","v":"RESIDENTIAL CLASSIFIED - ELECTRIC COST OF SERVICE"},null,null,null,null,null,null,null,null,{"$f":"J2","v":"WITNESS RESPONSIBLE:"}]
[{"$f":"case_name","v":"CASE NO: 2019-00271"},null,null,null,null,null,null,null,null,{"$f":"Witness","v":"JAMES E. ZIOLKOWSKI"}]
[{"$f":"data_filing","v":"DATA: 12 MONTHS ACTUAL  & 0 MONTHS ESTIMATED"},null,null,null,null,null,null,null,null,{"$f":"\"PAGE \"&Pages2-10&\" OF \"&Pages2","v":"PAGE 5 OF 15"}]
[{"$f":"type","v":"TYPE OF FILING: \"X\" ORIGINAL   UPDATED    REVISED  "}]
[]
[]
["LINE",null,null,null,null,"TOTAL","CLASSIFIED",null,null,"TOTAL","ALL"]
["NO.","SUBTRACTIVE RATE BASE ADJUSTMENTS",null,"ALLO",null,{"$f":"$F$9","v":"RESIDENTIAL"},{"$f":"G9","v":"DEMAND"},"ENERGY","CUSTOMER","AT ISSUE","OTHER"]
[null,null,"Schedule 5",null,null,null,3,4,5]
[1,"RATE BASE ADJUSTMENTS"]
[2,"ACCUMULATED DEFERRED INCOME TAXES"]
[3," ACCUM DEF INC TAXES (282)"]
[4,null,{"$f":"'FR-16(7)(v)-1 Functional'!C292","v":"LIBERALIZED DEPRECIATION"},{"$f":"'FR-16(7)(v)-1 Functional'!D292","v":"NP29"}," ",{"$f":"'FR-16(7)(v)-14 TOTAL CLASS'!G292","v":33758992},{"$f":"'FR-16(7)(v)-3 PROD Demand'!G292+'FR-16(7)(v)-7 TRANS Demand'!G292+'FR-16(7)(v)-11 DIST Demand'!G292","v":27793278},{"$f":"'FR-16(7)(v)-4 PROD Energy'!G292+'FR-16(7)(v)-8 TRANS Energy'!G292+'FR-16(7)(v)-12 DIST Energy'!G292","v":349918},{"$f":"'FR-16(7)(v)-5 PROD Cust'!G292+'FR-16(7)(v)-9 TRANS Cust'!G292+'FR-16(7)(v)-13 DIST Cust'!G292","v":5615796},{"$f":"SUM(G292:I292)","v":33758992},{"$f":"F292-J292","v":0}]
[5,null,{"$f":"'FR-16(7)(v)-1 Functional'!C293","v":"LEASED METERS"},{"$f":"'FR-16(7)(v)-1 Functional'!D293","v":"NP29"}," ",{"$f":"'FR-16(7)(v)-14 TOTAL CLASS'!G293","v":765734},{"$f":"'FR-16(7)(v)-3 PROD Demand'!G293+'FR-16(7)(v)-7 TRANS Demand'!G293+'FR-16(7)(v)-11 DIST Demand'!G293","v":630418},{"$f":"'FR-16(7)(v)-4 PROD Energy'!G293+'FR-16(7)(v)-8 TRANS Energy'!G293+'FR-16(7)(v)-12 DIST Energy'!G293","v":7937},{"$f":"'FR-16(7)(v)-5 PROD Cust'!G293+'FR-16(7)(v)-9 TRANS Cust'!G293+'FR-16(7)(v)-13 DIST Cust'!G293","v":127379},765734,0]
[6,null,{"$f":"'FR-16(7)(v)-1 Functional'!C294","v":"CONTRIB AID CONSTR"},{"$f":"'FR-16(7)(v)-1 Functional'!D294","v":"D249"}," ",{"$f":"'FR-16(7)(v)-14 TOTAL CLASS'!G294","v":0},{"$f":"'FR-16(7)(v)-3 PROD Demand'!G294+'FR-16(7)(v)-7 TRANS Demand'!G294+'FR-16(7)(v)-11 DIST Demand'!G294","v":0},{"$f":"'FR-16(7)(v)-4 PROD Energy'!G294+'FR-16(7)(v)-8 TRANS Energy'!G294+'FR-16(7)(v)-12 DIST Energy'!G294","v":0},{"$f":"'FR-16(7)(v)-5 PROD Cust'!G294+'FR-16(7)(v)-9 TRANS Cust'!G294+'FR-16(7)(v)-13 DIST Cust'!G294","v":0},0,0]
[7,null,{"$f":"'FR-16(7)(v)-1 Functional'!C295","v":"TAX INTEREST, EXPENSING, DEPR."},{"$f":"'FR-16(7)(v)-1 Functional'!D295","v":"NP29"}," ",{"$f":"'FR-16(7)(v)-14 TOTAL CLASS'!G295","v":33707655},{"$f":"'FR-16(7)(v)-3 PROD Demand'!G295+'FR-16(7)(v)-7 TRANS Demand'!G295+'FR-16(7)(v)-11 DIST Demand'!G295","v":27751014},{"$f":"'FR-16(7)(v)-4 PROD Energy'!G295+'FR-16(7)(v)-8 TRANS Energy'!G295+'FR-16(7)(v)-12 DIST Energy'!G295","v":349384},{"$f":"'FR-16(7)(v)-5 PROD Cust'!G295+'FR-16(7)(v)-9 TRANS Cust'!G295+'FR-16(7)(v)-13 DIST Cust'!G295","v":5607257},33707655,0]
[8,null,{"$f":"'FR-16(7)(v)-1 Functional'!C296","v":"AFUDC IN DEBT"},{"$f":"'FR-16(7)(v)-1 Functional'!D296","v":"NP29"}," ",{"$f":"'FR-16(7)(v)-14 TOTAL CLASS'!G296","v":0},{"$f":"'FR-16(7)(v)-3 PROD Demand'!G296+'FR-16(7)(v)-7 TRANS Demand'!G296+'FR-16(7)(v)-11 DIST Demand'!G296","v":0},{"$f":"'FR-16(7)(v)-4 PROD Energy'!G296+'FR-16(7)(v)-8 TRANS Energy'!G296+'FR-16(7)(v)-12 DIST Energy'!G296","v":0},{"$f":"'FR-16(7)(v)-5 PROD Cust'!G296+'FR-16(7)(v)-9 TRANS Cust'!G296+'FR-16(7)(v)-13 DIST Cust'!G296","v":0},0,0]
[9,null,{"$f":"'FR-16(7)(v)-1 Functional'!C297","v":"CASUALTY LOSS"},{"$f":"'FR-16(7)(v)-1 Functional'!D297","v":"K411"}," ",{"$f":"'FR-16(7)(v)-14 TOTAL CLASS'!G297","v":-347779},{"$f":"'FR-16(7)(v)-3 PROD Demand'!G297+'FR-16(7)(v)-7 TRANS Demand'!G297+'FR-16(7)(v)-11 DIST Demand'!G297","v":0},{"$f":"'FR-16(7)(v)-4 PROD Energy'!G297+'FR-16(7)(v)-8 TRANS Energy'!G297+'FR-16(7)(v)-12 DIST Energy'!G297","v":0},{"$f":"'FR-16(7)(v)-5 PROD Cust'!G297+'FR-16(7)(v)-9 TRANS Cust'!G297+'FR-16(7)(v)-13 DIST Cust'!G297","v":-347779},-347779,0]
[10,null,{"$f":"'FR-16(7)(v)-1 Functional'!C298","v":"NON-CASH OVERHEADS"},{"$f":"'FR-16(7)(v)-1 Functional'!D298","v":"G229"}," ",{"$f":"'FR-16(7)(v)-14 TOTAL CLASS'!G298","v":0},{"$f":"'FR-16(7)(v)-3 PROD Demand'!G298+'FR-16(7)(v)-7 TRANS Demand'!G298+'FR-16(7)(v)-11 DIST Demand'!G298","v":0},{"$f":"'FR-16(7)(v)-4 PROD Energy'!G298+'FR-16(7)(v)-8 TRANS Energy'!G298+'FR-16(7)(v)-12 DIST Energy'!G298","v":0},{"$f":"'FR-16(7)(v)-5 PROD Cust'!G298+'FR-16(7)(v)-9 TRANS Cust'!G298+'FR-16(7)(v)-13 DIST Cust'!G298","v":0},0,0]
[11,null,{"$f":"'FR-16(7)(v)-1 Functional'!C299","v":"PLANT FAS 109"},{"$f":"'FR-16(7)(v)-1 Functional'!D299","v":"NP29"}," ",{"$f":"'FR-16(7)(v)-14 TOTAL CLASS'!G299","v":0},{"$f":"'FR-16(7)(v)-3 PROD Demand'!G299+'FR-16(7)(v)-7 TRANS Demand'!G299+'FR-16(7)(v)-11 DIST Demand'!G299","v":0},{"$f":"'FR-16(7)(v)-4 PROD Energy'!G299+'FR-16(7)(v)-8 TRANS Energy'!G299+'FR-16(7)(v)-12 DIST Energy'!G299","v":0},{"$f":"'FR-16(7)(v)-5 PROD Cust'!G299+'FR-16(7)(v)-9 TRANS Cust'!G299+'FR-16(7)(v)-13 DIST Cust'!G299","v":0},0,0]
[12,null,{"$f":"'FR-16(7)(v)-1 Functional'!C300","v":"MISCELLANEOUS"},{"$f":"'FR-16(7)(v)-1 Functional'!D300","v":"NP29"},null,{"$f":"'FR-16(7)(v)-14 TOTAL CLASS'!G300","v":31807674},{"$f":"'FR-16(7)(v)-3 PROD Demand'!G300+'FR-16(7)(v)-7 TRANS Demand'!G300+'FR-16(7)(v)-11 DIST Demand'!G300","v":26186787},{"$f":"'FR-16(7)(v)-4 PROD Energy'!G300+'FR-16(7)(v)-8 TRANS Energy'!G300+'FR-16(7)(v)-12 DIST Energy'!G300","v":329692},{"$f":"'FR-16(7)(v)-5 PROD Cust'!G300+'FR-16(7)(v)-9 TRANS Cust'!G300+'FR-16(7)(v)-13 DIST Cust'!G300","v":5291195},31807674,0]
[13,null,{"$f":"'FR-16(7)(v)-1 Functional'!C301","v":"  TOTAL ACCOUNT 282"},null,null,{"$f":"SUM(F292:F300)","v":99692276},82361497,1036931,16293848,99692276,0]
[14]
[15," ACCUM DEF INC TAXES (283)"]
[16,null,{"$f":"'FR-16(7)(v)-1 Functional'!C304","v":"TRANSITION FROM MISO TO PJM"},{"$f":"'FR-16(7)(v)-1 Functional'!D304","v":"NP29"},null,{"$f":"'FR-16(7)(v)-14 TOTAL CLASS'!G304","v":-1811421},{"$f":"'FR-16(7)(v)-3 PROD Demand'!G304+'FR-16(7)(v)-7 TRANS Demand'!G304+'FR-16(7)(v)-11 DIST Demand'!G304","v":-1491315},{"$f":"'FR-16(7)(v)-4 PROD Energy'!G304+'FR-16(7)(v)-8 TRANS Energy'!G304+'FR-16(7)(v)-12 DIST Energy'!G304","v":-18778},{"$f":"'FR-16(7)(v)-5 PROD Cust'!G304+'FR-16(7)(v)-9 TRANS Cust'!G304+'FR-16(7)(v)-13 DIST Cust'!G304","v":-301328},{"$f":"SUM(G304:I304)","v":-1811421},{"$f":"F304-J304","v":0}]
[17,null,{"$f":"'FR-16(7)(v)-1 Functional'!C305","v":"DEFERRED PLANT COSTS"},{"$f":"'FR-16(7)(v)-1 Functional'!D305","v":"NP29"},null,{"$f":"'FR-16(7)(v)-14 TOTAL CLASS'!G305","v":352892},{"$f":"'FR-16(7)(v)-3 PROD Demand'!G305+'FR-16(7)(v)-7 TRANS Demand'!G305+'FR-16(7)(v)-11 DIST Demand'!G305","v":290531},{"$f":"'FR-16(7)(v)-4 PROD Energy'!G305+'FR-16(7)(v)-8 TRANS Energy'!G305+'FR-16(7)(v)-12 DIST Energy'!G305","v":3658},{"$f":"'FR-16(7)(v)-5 PROD Cust'!G305+'FR-16(7)(v)-9 TRANS Cust'!G305+'FR-16(7)(v)-13 DIST Cust'!G305","v":58703},352892,0]
[18,null,{"$f":"'FR-16(7)(v)-1 Functional'!C306","v":"MISCELLANEOUS"},{"$f":"'FR-16(7)(v)-1 Functional'!D306","v":"OM39"},null,{"$f":"'FR-16(7)(v)-14 TOTAL CLASS'!G306","v":4820555},{"$f":"'FR-16(7)(v)-3 PROD Demand'!G306+'FR-16(7)(v)-7 TRANS Demand'!G306+'FR-16(7)(v)-11 DIST Demand'!G306","v":1371357},{"$f":"'FR-16(7)(v)-4 PROD Energy'!G306+'FR-16(7)(v)-8 TRANS Energy'!G306+'FR-16(7)(v)-12 DIST Energy'!G306","v":2909474},{"$f":"'FR-16(7)(v)-5 PROD Cust'!G306+'FR-16(7)(v)-9 TRANS Cust'!G306+'FR-16(7)(v)-13 DIST Cust'!G306","v":539724},4820555,0]
[19,null,{"$f":"'FR-16(7)(v)-1 Functional'!C307","v":"ENVIRONMENTAL RESERVE"},{"$f":"'FR-16(7)(v)-1 Functional'!D307","v":"NP29"},null,{"$f":"'FR-16(7)(v)-14 TOTAL CLASS'!G307","v":0},{"$f":"'FR-16(7)(v)-3 PROD Demand'!G307+'FR-16(7)(v)-7 TRANS Demand'!G307+'FR-16(7)(v)-11 DIST Demand'!G307","v":0},{"$f":"'FR-16(7)(v)-4 PROD Energy'!G307+'FR-16(7)(v)-8 TRANS Energy'!G307+'FR-16(7)(v)-12 DIST Energy'!G307","v":0},{"$f":"'FR-16(7)(v)-5 PROD Cust'!G307+'FR-16(7)(v)-9 TRANS Cust'!G307+'FR-16(7)(v)-13 DIST Cust'!G307","v":0},0,0]
[20,null,{"$f":"'FR-16(7)(v)-1 Functional'!C308","v":"POST IN-SERVICE CARRYING COSTS"},{"$f":"'FR-16(7)(v)-1 Functional'!D308","v":"NP29"},null,{"$f":"'FR-16(7)(v)-14 TOTAL CLASS'!G308","v":0},{"$f":"'FR-16(7)(v)-3 PROD Demand'!G308+'FR-16(7)(v)-7 TRANS Demand'!G308+'FR-16(7)(v)-11 DIST Demand'!G308","v":0},{"$f":"'FR-16(7)(v)-4 PROD Energy'!G308+'FR-16(7)(v)-8 TRANS Energy'!G308+'FR-16(7)(v)-12 DIST Energy'!G308","v":0},{"$f":"'FR-16(7)(v)-5 PROD Cust'!G308+'FR-16(7)(v)-9 TRANS Cust'!G308+'FR-16(7)(v)-13 DIST Cust'!G308","v":0},0,0]
[21,null,{"$f":"'FR-16(7)(v)-1 Functional'!C309","v":"ARO CUMULATIVE EFFECT"},{"$f":"'FR-16(7)(v)-1 Functional'!D309","v":"NP29"},null,{"$f":"'FR-16(7)(v)-14 TOTAL CLASS'!G309","v":0},{"$f":"'FR-16(7)(v)-3 PROD Demand'!G309+'FR-16(7)(v)-7 TRANS Demand'!G309+'FR-16(7)(v)-11 DIST Demand'!G309","v":0},{"$f":"'FR-16(7)(v)-4 PROD Energy'!G309+'FR-16(7)(v)-8 TRANS Energy'!G309+'FR-16(7)(v)-12 DIST Energy'!G309","v":0},{"$f":"'FR-16(7)(v)-5 PROD Cust'!G309+'FR-16(7)(v)-9 TRANS Cust'!G309+'FR-16(7)(v)-13 DIST Cust'!G309","v":0},0,0]
[22,null,{"$f":"'FR-16(7)(v)-1 Functional'!C310","v":"LOSS ON REACQUIRED DEBT"},{"$f":"'FR-16(7)(v)-1 Functional'!D310","v":"D249"},null,{"$f":"'FR-16(7)(v)-14 TOTAL CLASS'!G310","v":0},{"$f":"'FR-16(7)(v)-3 PROD Demand'!G310+'FR-16(7)(v)-7 TRANS Demand'!G310+'FR-16(7)(v)-11 DIST Demand'!G310","v":0},{"$f":"'FR-16(7)(v)-4 PROD Energy'!G310+'FR-16(7)(v)-8 TRANS Energy'!G310+'FR-16(7)(v)-12 DIST Energy'!G310","v":0},{"$f":"'FR-16(7)(v)-5 PROD Cust'!G310+'FR-16(7)(v)-9 TRANS Cust'!G310+'FR-16(7)(v)-13 DIST Cust'!G310","v":0},0,0]
[23,null,{"$f":"'FR-16(7)(v)-1 Functional'!C311","v":"VACATION PAY ACCRUAL"},{"$f":"'FR-16(7)(v)-1 Functional'!D311","v":"A315"},null,{"$f":"'FR-16(7)(v)-14 TOTAL CLASS'!G311","v":0},{"$f":"'FR-16(7)(v)-3 PROD Demand'!G311+'FR-16(7)(v)-7 TRANS Demand'!G311+'FR-16(7)(v)-11 DIST Demand'!G311","v":0},{"$f":"'FR-16(7)(v)-4 PROD Energy'!G311+'FR-16(7)(v)-8 TRANS Energy'!G311+'FR-16(7)(v)-12 DIST Energy'!G311","v":0},{"$f":"'FR-16(7)(v)-5 PROD Cust'!G311+'FR-16(7)(v)-9 TRANS Cust'!G311+'FR-16(7)(v)-13 DIST Cust'!G311","v":0},0,0]
[24,null,{"$f":"'FR-16(7)(v)-1 Functional'!C312","v":"NON-AMI METERS RETIRED EARLY"},{"$f":"'FR-16(7)(v)-1 Functional'!D312","v":"OM39"},null,{"$f":"'FR-16(7)(v)-14 TOTAL CLASS'!G312","v":578395},{"$f":"'FR-16(7)(v)-3 PROD Demand'!G312+'FR-16(7)(v)-7 TRANS Demand'!G312+'FR-16(7)(v)-11 DIST Demand'!G312","v":164542},{"$f":"'FR-16(7)(v)-4 PROD Energy'!G312+'FR-16(7)(v)-8 TRANS Energy'!G312+'FR-16(7)(v)-12 DIST Energy'!G312","v":349095},{"$f":"'FR-16(7)(v)-5 PROD Cust'!G312+'FR-16(7)(v)-9 TRANS Cust'!G312+'FR-16(7)(v)-13 DIST Cust'!G312","v":64758},{"$f":"SUM(G312:I312)","v":578395},{"$f":"F312-J312","v":0}]
[25,null,{"$f":"'FR-16(7)(v)-1 Functional'!C313","v":"PENSION EXPENSE"},{"$f":"'FR-16(7)(v)-1 Functional'!D313","v":"A315"},null,{"$f":"'FR-16(7)(v)-14 TOTAL CLASS'!G313","v":4500601},{"$f":"'FR-16(7)(v)-3 PROD Demand'!G313+'FR-16(7)(v)-7 TRANS Demand'!G313+'FR-16(7)(v)-11 DIST Demand'!G313","v":2714150},{"$f":"'FR-16(7)(v)-4 PROD Energy'!G313+'FR-16(7)(v)-8 TRANS Energy'!G313+'FR-16(7)(v)-12 DIST Energy'!G313","v":896879},{"$f":"'FR-16(7)(v)-5 PROD Cust'!G313+'FR-16(7)(v)-9 TRANS Cust'!G313+'FR-16(7)(v)-13 DIST Cust'!G313","v":889572},{"$f":"SUM(G313:I313)","v":4500601},{"$f":"F313-J313","v":0}]
[26,null,{"$f":"'FR-16(7)(v)-1 Functional'!C314","v":"UNCOLLECTIBLE ACCOUNTS"},{"$f":"'FR-16(7)(v)-1 Functional'!D314","v":"K411"},null,{"$f":"'FR-16(7)(v)-14 TOTAL CLASS'!G314","v":0},{"$f":"'FR-16(7)(v)-3 PROD Demand'!G314+'FR-16(7)(v)-7 TRANS Demand'!G314+'FR-16(7)(v)-11 DIST Demand'!G314","v":0},{"$f":"'FR-16(7)(v)-4 PROD Energy'!G314+'FR-16(7)(v)-8 TRANS Energy'!G314+'FR-16(7)(v)-12 DIST Energy'!G314","v":0},{"$f":"'FR-16(7)(v)-5 PROD Cust'!G314+'FR-16(7)(v)-9 TRANS Cust'!G314+'FR-16(7)(v)-13 DIST Cust'!G314","v":0},0,0]
[27,null,{"$f":"'FR-16(7)(v)-1 Functional'!C315","v":"  TOTAL ACCOUNT 283"},null,null,{"$f":"SUM(F303:F314)","v":8441022},3049265,4140328,1251429,8441022,0]
[28]
[29," OTHER ACCUMULATED DEFERRED INCOME TAXES"]
[30,null,{"$f":"'FR-16(7)(v)-1 Functional'!C318","v":"EXCESS ADIT"},{"$f":"'FR-16(7)(v)-1 Functional'!D318","v":"NP29"},null,{"$f":"'FR-16(7)(v)-14 TOTAL CLASS'!G318","v":31399499},{"$f":"'FR-16(7)(v)-3 PROD Demand'!G318+'FR-16(7)(v)-7 TRANS Demand'!G318+'FR-16(7)(v)-11 DIST Demand'!G318","v":25850745},{"$f":"'FR-16(7)(v)-4 PROD Energy'!G318+'FR-16(7)(v)-8 TRANS Energy'!G318+'FR-16(7)(v)-12 DIST Energy'!G318","v":325460},{"$f":"'FR-16(7)(v)-5 PROD Cust'!G318+'FR-16(7)(v)-9 TRANS Cust'!G318+'FR-16(7)(v)-13 DIST Cust'!G318","v":5223294},{"$f":"SUM(G318:I318)","v":31399499},{"$f":"F318-J318","v":0}]
[31,null,{"$f":"'FR-16(7)(v)-1 Functional'!C319","v":"CUSTOMER SERVICE DEPOSITS"},{"$f":"'FR-16(7)(v)-1 Functional'!D319","v":"NP29"},null,{"$f":"'FR-16(7)(v)-14 TOTAL CLASS'!G319","v":0},{"$f":"'FR-16(7)(v)-3 PROD Demand'!G319+'FR-16(7)(v)-7 TRANS Demand'!G319+'FR-16(7)(v)-11 DIST Demand'!G319","v":0},{"$f":"'FR-16(7)(v)-4 PROD Energy'!G319+'FR-16(7)(v)-8 TRANS Energy'!G319+'FR-16(7)(v)-12 DIST Energy'!G319","v":0},{"$f":"'FR-16(7)(v)-5 PROD Cust'!G319+'FR-16(7)(v)-9 TRANS Cust'!G319+'FR-16(7)(v)-13 DIST Cust'!G319","v":0},{"$f":"SUM(G319:I319)","v":0},{"$f":"F319-J319","v":0}]
[32,null,{"$f":"'FR-16(7)(v)-1 Functional'!C320","v":"POST RETIREMENT BENEFITS"},{"$f":"'FR-16(7)(v)-1 Functional'!D320","v":"NP29"},null,{"$f":"'FR-16(7)(v)-14 TOTAL CLASS'!G320","v":0},{"$f":"'FR-16(7)(v)-3 PROD Demand'!G320+'FR-16(7)(v)-7 TRANS Demand'!G320+'FR-16(7)(v)-11 DIST Demand'!G320","v":0},{"$f":"'FR-16(7)(v)-4 PROD Energy'!G320+'FR-16(7)(v)-8 TRANS Energy'!G320+'FR-16(7)(v)-12 DIST Energy'!G320","v":0},{"$f":"'FR-16(7)(v)-5 PROD Cust'!G320+'FR-16(7)(v)-9 TRANS Cust'!G320+'FR-16(7)(v)-13 DIST Cust'!G320","v":0},{"$f":"SUM(G320:I320)","v":0},{"$f":"F320-J320","v":0}]
[33,null,{"$f":"'FR-16(7)(v)-1 Functional'!C321","v":"INVESTMENT TAX CREDIT"},{"$f":"'FR-16(7)(v)-1 Functional'!D321","v":"NP29"},null,{"$f":"'FR-16(7)(v)-14 TOTAL CLASS'!G321","v":0},{"$f":"'FR-16(7)(v)-3 PROD Demand'!G321+'FR-16(7)(v)-7 TRANS Demand'!G321+'FR-16(7)(v)-11 DIST Demand'!G321","v":0},{"$f":"'FR-16(7)(v)-4 PROD Energy'!G321+'FR-16(7)(v)-8 TRANS Energy'!G321+'FR-16(7)(v)-12 DIST Energy'!G321","v":0},{"$f":"'FR-16(7)(v)-5 PROD Cust'!G321+'FR-16(7)(v)-9 TRANS Cust'!G321+'FR-16(7)(v)-13 DIST Cust'!G321","v":0},{"$f":"SUM(G321:I321)","v":0},{"$f":"F321-J321","v":0}]
[34,null,{"$f":"'FR-16(7)(v)-1 Functional'!C322","v":"  TOTAL OTHER SUBTRACTIVE ADJUSTMENTS"},null,null,{"$f":"SUM(F317:F321)","v":31399499},25850745,325460,5223294,31399499,0]
[35]
[36,{"$f":"'FR-16(7)(v)-1 Functional'!B324","v":"TOTAL SUBTRACTIVE RATE BASE ADJUSTMENTS"},null,null,null,{"$f":"F322+F315+F301","v":139532797},111261507,5502719,22768571,139532797,0]
[]
[{"$f":"co_name","v":"DUKE ENERGY KENTUCKY, INC."},null,null,null,null,null,null,null,null,{"$f":"J1","v":"FR-16(7)(v)-15"}]
[{"$f":"$A$2","v":"RESIDENTIAL CLASSIFIED - ELECTRIC COST OF SERVICE"},null,null,null,null,null,null,null,null,{"$f":"J2","v":"WITNESS RESPONSIBLE:"}]
[{"$f":"case_name","v":"CASE NO: 2019-00271"},null,null,null,null,null,null,null,null,{"$f":"Witness","v":"JAMES E. ZIOLKOWSKI"}]
[{"$f":"data_filing","v":"DATA: 12 MONTHS ACTUAL  & 0 MONTHS ESTIMATED"},null,null,null,null,null,null,null,null,{"$f":"\"PAGE \"&Pages2-9&\" OF \"&Pages2","v":"PAGE 6 OF 15"}]
[{"$f":"type","v":"TYPE OF FILING: \"X\" ORIGINAL   UPDATED    REVISED  "}]
[]
[]
["LINE",null,null,null,null,"TOTAL","CLASSIFIED",null,null,"TOTAL","ALL"]
["NO.","ADDITIVE RATE BASE ADJUSTMENTS",null,"ALLO",null,{"$f":"$F$9","v":"RESIDENTIAL"},{"$f":"G9","v":"DEMAND"},"ENERGY","CUSTOMER","AT ISSUE","OTHER"]
[null,null,"Schedule 5.1",null,null,null,3,4,5]
[1,"OTHER ACCUMULATED DEFERRED INCOME TAXES"]
[2," ACCUM DEF INC TAXES (190)"]
[3,null,{"$f":"'FR-16(7)(v)-1 Functional'!C338","v":"UNCOLLECTIBLE ACCTS"},{"$f":"'FR-16(7)(v)-1 Functional'!D338","v":"K411"},null,{"$f":"'FR-16(7)(v)-14 TOTAL CLASS'!G338","v":64031},{"$f":"'FR-16(7)(v)-3 PROD Demand'!G338+'FR-16(7)(v)-7 TRANS Demand'!G338+'FR-16(7)(v)-11 DIST Demand'!G338","v":0},{"$f":"'FR-16(7)(v)-4 PROD Energy'!G338+'FR-16(7)(v)-8 TRANS Energy'!G338+'FR-16(7)(v)-12 DIST Energy'!G338","v":0},{"$f":"'FR-16(7)(v)-5 PROD Cust'!G338+'FR-16(7)(v)-9 TRANS Cust'!G338+'FR-16(7)(v)-13 DIST Cust'!G338","v":64031},{"$f":"SUM(G338:I338)","v":64031},{"$f":"F338-J338","v":0}]
[4,null,{"$f":"'FR-16(7)(v)-1 Functional'!C339","v":"CASH FLOW HEDGE"},{"$f":"'FR-16(7)(v)-1 Functional'!D339","v":"A315"},null,{"$f":"'FR-16(7)(v)-14 TOTAL CLASS'!G339","v":180838},{"$f":"'FR-16(7)(v)-3 PROD Demand'!G339+'FR-16(7)(v)-7 TRANS Demand'!G339+'FR-16(7)(v)-11 DIST Demand'!G339","v":109060},{"$f":"'FR-16(7)(v)-4 PROD Energy'!G339+'FR-16(7)(v)-8 TRANS Energy'!G339+'FR-16(7)(v)-12 DIST Energy'!G339","v":36037},{"$f":"'FR-16(7)(v)-5 PROD Cust'!G339+'FR-16(7)(v)-9 TRANS Cust'!G339+'FR-16(7)(v)-13 DIST Cust'!G339","v":35741},180838,0]
[5,null,{"$f":"'FR-16(7)(v)-1 Functional'!C340","v":"RESERVED FOR FUTURE USE"},{"$f":"'FR-16(7)(v)-1 Functional'!D340","v":"NP29"},null,{"$f":"'FR-16(7)(v)-14 TOTAL CLASS'!G340","v":0},{"$f":"'FR-16(7)(v)-3 PROD Demand'!G340+'FR-16(7)(v)-7 TRANS Demand'!G340+'FR-16(7)(v)-11 DIST Demand'!G340","v":0},{"$f":"'FR-16(7)(v)-4 PROD Energy'!G340+'FR-16(7)(v)-8 TRANS Energy'!G340+'FR-16(7)(v)-12 DIST Energy'!G340","v":0},{"$f":"'FR-16(7)(v)-5 PROD Cust'!G340+'FR-16(7)(v)-9 TRANS Cust'!G340+'FR-16(7)(v)-13 DIST Cust'!G340","v":0},0,0]
[6,null,{"$f":"'FR-16(7)(v)-1 Functional'!C341","v":"RESERVED FOR FUTURE USE"},{"$f":"'FR-16(7)(v)-1 Functional'!D341","v":"NP29"},null,{"$f":"'FR-16(7)(v)-14 TOTAL CLASS'!G341","v":0},{"$f":"'FR-16(7)(v)-3 PROD Demand'!G341+'FR-16(7)(v)-7 TRANS Demand'!G341+'FR-16(7)(v)-11 DIST Demand'!G341","v":0},{"$f":"'FR-16(7)(v)-4 PROD Energy'!G341+'FR-16(7)(v)-8 TRANS Energy'!G341+'FR-16(7)(v)-12 DIST Energy'!G341","v":0},{"$f":"'FR-16(7)(v)-5 PROD Cust'!G341+'FR-16(7)(v)-9 TRANS Cust'!G341+'FR-16(7)(v)-13 DIST Cust'!G341","v":0},0,0]
[7,null,{"$f":"'FR-16(7)(v)-1 Functional'!C342","v":"ELECTRIC METERS"},{"$f":"'FR-16(7)(v)-1 Functional'!D342","v":"K407"},null,{"$f":"'FR-16(7)(v)-14 TOTAL CLASS'!G342","v":0},{"$f":"'FR-16(7)(v)-3 PROD Demand'!G342+'FR-16(7)(v)-7 TRANS Demand'!G342+'FR-16(7)(v)-11 DIST Demand'!G342","v":0},{"$f":"'FR-16(7)(v)-4 PROD Energy'!G342+'FR-16(7)(v)-8 TRANS Energy'!G342+'FR-16(7)(v)-12 DIST Energy'!G342","v":0},{"$f":"'FR-16(7)(v)-5 PROD Cust'!G342+'FR-16(7)(v)-9 TRANS Cust'!G342+'FR-16(7)(v)-13 DIST Cust'!G342","v":0},0,0]
[8,null,{"$f":"'FR-16(7)(v)-1 Functional'!C343","v":"UNAMORTIZED DEBT PREMIUM"},{"$f":"'FR-16(7)(v)-1 Functional'!D343","v":"D249"},null,{"$f":"'FR-16(7)(v)-14 TOTAL CLASS'!G343","v":0},{"$f":"'FR-16(7)(v)-3 PROD Demand'!G343+'FR-16(7)(v)-7 TRANS Demand'!G343+'FR-16(7)(v)-11 DIST Demand'!G343","v":0},{"$f":"'FR-16(7)(v)-4 PROD Energy'!G343+'FR-16(7)(v)-8 TRANS Energy'!G343+'FR-16(7)(v)-12 DIST Energy'!G343","v":0},{"$f":"'FR-16(7)(v)-5 PROD Cust'!G343+'FR-16(7)(v)-9 TRANS Cust'!G343+'FR-16(7)(v)-13 DIST Cust'!G343","v":0},0,0]
[9,null,{"$f":"'FR-16(7)(v)-1 Functional'!C344","v":"ARO CUMULATIVE EFFECT"},{"$f":"'FR-16(7)(v)-1 Functional'!D344","v":"NP29"},null,{"$f":"'FR-16(7)(v)-14 TOTAL CLASS'!G344","v":0},{"$f":"'FR-16(7)(v)-3 PROD Demand'!G344+'FR-16(7)(v)-7 TRANS Demand'!G344+'FR-16(7)(v)-11 DIST Demand'!G344","v":0},{"$f":"'FR-16(7)(v)-4 PROD Energy'!G344+'FR-16(7)(v)-8 TRANS Energy'!G344+'FR-16(7)(v)-12 DIST Energy'!G344","v":0},{"$f":"'FR-16(7)(v)-5 PROD Cust'!G344+'FR-16(7)(v)-9 TRANS Cust'!G344+'FR-16(7)(v)-13 DIST Cust'!G344","v":0},0,0]
[10,null,{"$f":"'FR-16(7)(v)-1 Functional'!C345","v":"RETIREMENT PLAN"},{"$f":"'FR-16(7)(v)-1 Functional'!D345","v":"A315"},null,{"$f":"'FR-16(7)(v)-14 TOTAL CLASS'!G345","v":1857511},{"$f":"'FR-16(7)(v)-3 PROD Demand'!G345+'FR-16(7)(v)-7 TRANS Demand'!G345+'FR-16(7)(v)-11 DIST Demand'!G345","v":1120196},{"$f":"'FR-16(7)(v)-4 PROD Energy'!G345+'FR-16(7)(v)-8 TRANS Energy'!G345+'FR-16(7)(v)-12 DIST Energy'!G345","v":370166},{"$f":"'FR-16(7)(v)-5 PROD Cust'!G345+'FR-16(7)(v)-9 TRANS Cust'!G345+'FR-16(7)(v)-13 DIST Cust'!G345","v":367149},1857511,0]
[11,null,{"$f":"'FR-16(7)(v)-1 Functional'!C346","v":"POST RETIREMENT BENEFITS "},{"$f":"'FR-16(7)(v)-1 Functional'!D346","v":"A315"},null,{"$f":"'FR-16(7)(v)-14 TOTAL CLASS'!G346","v":0},{"$f":"'FR-16(7)(v)-3 PROD Demand'!G346+'FR-16(7)(v)-7 TRANS Demand'!G346+'FR-16(7)(v)-11 DIST Demand'!G346","v":0},{"$f":"'FR-16(7)(v)-4 PROD Energy'!G346+'FR-16(7)(v)-8 TRANS Energy'!G346+'FR-16(7)(v)-12 DIST Energy'!G346","v":0},{"$f":"'FR-16(7)(v)-5 PROD Cust'!G346+'FR-16(7)(v)-9 TRANS Cust'!G346+'FR-16(7)(v)-13 DIST Cust'!G346","v":0},0,0]
[12,null,{"$f":"'FR-16(7)(v)-1 Functional'!C347","v":"POST RETIREMENT BENEFITS - HEALTH CARE"},{"$f":"'FR-16(7)(v)-1 Functional'!D347","v":"A315"},null,{"$f":"'FR-16(7)(v)-14 TOTAL CLASS'!G347","v":0},{"$f":"'FR-16(7)(v)-3 PROD Demand'!G347+'FR-16(7)(v)-7 TRANS Demand'!G347+'FR-16(7)(v)-11 DIST Demand'!G347","v":0},{"$f":"'FR-16(7)(v)-4 PROD Energy'!G347+'FR-16(7)(v)-8 TRANS Energy'!G347+'FR-16(7)(v)-12 DIST Energy'!G347","v":0},{"$f":"'FR-16(7)(v)-5 PROD Cust'!G347+'FR-16(7)(v)-9 TRANS Cust'!G347+'FR-16(7)(v)-13 DIST Cust'!G347","v":0},0,0]
[13,null,{"$f":"'FR-16(7)(v)-1 Functional'!C348","v":"POST EMPLOYMENT BENEFITS - SFAS 112"},{"$f":"'FR-16(7)(v)-1 Functional'!D348","v":"A315"},null,{"$f":"'FR-16(7)(v)-14 TOTAL CLASS'!G348","v":0},{"$f":"'FR-16(7)(v)-3 PROD Demand'!G348+'FR-16(7)(v)-7 TRANS Demand'!G348+'FR-16(7)(v)-11 DIST Demand'!G348","v":0},{"$f":"'FR-16(7)(v)-4 PROD Energy'!G348+'FR-16(7)(v)-8 TRANS Energy'!G348+'FR-16(7)(v)-12 DIST Energy'!G348","v":0},{"$f":"'FR-16(7)(v)-5 PROD Cust'!G348+'FR-16(7)(v)-9 TRANS Cust'!G348+'FR-16(7)(v)-13 DIST Cust'!G348","v":0},0,0]
[14,null,{"$f":"'FR-16(7)(v)-1 Functional'!C349","v":"SUPPLEMENTAL PENSION PLAN"},{"$f":"'FR-16(7)(v)-1 Functional'!D349","v":"A315"},null,{"$f":"'FR-16(7)(v)-14 TOTAL CLASS'!G349","v":0},{"$f":"'FR-16(7)(v)-3 PROD Demand'!G349+'FR-16(7)(v)-7 TRANS Demand'!G349+'FR-16(7)(v)-11 DIST Demand'!G349","v":0},{"$f":"'FR-16(7)(v)-4 PROD Energy'!G349+'FR-16(7)(v)-8 TRANS Energy'!G349+'FR-16(7)(v)-12 DIST Energy'!G349","v":0},{"$f":"'FR-16(7)(v)-5 PROD Cust'!G349+'FR-16(7)(v)-9 TRANS Cust'!G349+'FR-16(7)(v)-13 DIST Cust'!G349","v":0},0,0]
[15,null,{"$f":"'FR-16(7)(v)-1 Functional'!C350","v":"INCENTIVE PLAN"},{"$f":"'FR-16(7)(v)-1 Functional'!D350","v":"A315"},null,{"$f":"'FR-16(7)(v)-14 TOTAL CLASS'!G350","v":0},{"$f":"'FR-16(7)(v)-3 PROD Demand'!G350+'FR-16(7)(v)-7 TRANS Demand'!G350+'FR-16(7)(v)-11 DIST Demand'!G350","v":0},{"$f":"'FR-16(7)(v)-4 PROD Energy'!G350+'FR-16(7)(v)-8 TRANS Energy'!G350+'FR-16(7)(v)-12 DIST Energy'!G350","v":0},{"$f":"'FR-16(7)(v)-5 PROD Cust'!G350+'FR-16(7)(v)-9 TRANS Cust'!G350+'FR-16(7)(v)-13 DIST Cust'!G350","v":0},0,0]
[16,null,{"$f":"'FR-16(7)(v)-1 Functional'!C351","v":"FEDERAL DEFERRED TAX RECEIVEABLE"},{"$f":"'FR-16(7)(v)-1 Functional'!D351","v":"A315"},null,{"$f":"'FR-16(7)(v)-14 TOTAL CLASS'!G351","v":0},{"$f":"'FR-16(7)(v)-3 PROD Demand'!G351+'FR-16(7)(v)-7 TRANS Demand'!G351+'FR-16(7)(v)-11 DIST Demand'!G351","v":0},{"$f":"'FR-16(7)(v)-4 PROD Energy'!G351+'FR-16(7)(v)-8 TRANS Energy'!G351+'FR-16(7)(v)-12 DIST Energy'!G351","v":0},{"$f":"'FR-16(7)(v)-5 PROD Cust'!G351+'FR-16(7)(v)-9 TRANS Cust'!G351+'FR-16(7)(v)-13 DIST Cust'!G351","v":0},0,0]
[17,null,{"$f":"'FR-16(7)(v)-1 Functional'!C352","v":"MISCELLANEOUS"},{"$f":"'FR-16(7)(v)-1 Functional'!D352","v":"A315"},null,{"$f":"'FR-16(7)(v)-14 TOTAL CLASS'!G352","v":5962068},{"$f":"'FR-16(7)(v)-3 PROD Demand'!G352+'FR-16(7)(v)-7 TRANS Demand'!G352+'FR-16(7)(v)-11 DIST Demand'!G352","v":3595509},{"$f":"'FR-16(7)(v)-4 PROD Energy'!G352+'FR-16(7)(v)-8 TRANS Energy'!G352+'FR-16(7)(v)-12 DIST Energy'!G352","v":1188119},{"$f":"'FR-16(7)(v)-5 PROD Cust'!G352+'FR-16(7)(v)-9 TRANS Cust'!G352+'FR-16(7)(v)-13 DIST Cust'!G352","v":1178440},5962068,0]
[18,null,{"$f":"'FR-16(7)(v)-1 Functional'!C353","v":"DEFERRED TAX"},{"$f":"'FR-16(7)(v)-1 Functional'!D353","v":"A315"},null,{"$f":"'FR-16(7)(v)-14 TOTAL CLASS'!G353","v":2716864},{"$f":"'FR-16(7)(v)-3 PROD Demand'!G353+'FR-16(7)(v)-7 TRANS Demand'!G353+'FR-16(7)(v)-11 DIST Demand'!G353","v":1638441},{"$f":"'FR-16(7)(v)-4 PROD Energy'!G353+'FR-16(7)(v)-8 TRANS Energy'!G353+'FR-16(7)(v)-12 DIST Energy'!G353","v":541419},{"$f":"'FR-16(7)(v)-5 PROD Cust'!G353+'FR-16(7)(v)-9 TRANS Cust'!G353+'FR-16(7)(v)-13 DIST Cust'!G353","v":537004},2716864,0]
[19,null,{"$f":"'FR-16(7)(v)-1 Functional'!C354","v":"NET OPERATING LOSS"},{"$f":"'FR-16(7)(v)-1 Functional'!D354","v":"NP29"},null,{"$f":"'FR-16(7)(v)-14 TOTAL CLASS'!G354","v":0},{"$f":"'FR-16(7)(v)-3 PROD Demand'!G354+'FR-16(7)(v)-7 TRANS Demand'!G354+'FR-16(7)(v)-11 DIST Demand'!G354","v":0},{"$f":"'FR-16(7)(v)-4 PROD Energy'!G354+'FR-16(7)(v)-8 TRANS Energy'!G354+'FR-16(7)(v)-12 DIST Energy'!G354","v":0},{"$f":"'FR-16(7)(v)-5 PROD Cust'!G354+'FR-16(7)(v)-9 TRANS Cust'!G354+'FR-16(7)(v)-13 DIST Cust'!G354","v":0},0,0]
[20,null,{"$f":"'FR-16(7)(v)-1 Functional'!C355","v":"401K INCENTIVE PLAN"},{"$f":"'FR-16(7)(v)-1 Functional'!D355","v":"A315"},null,{"$f":"'FR-16(7)(v)-14 TOTAL CLASS'!G355","v":0},{"$f":"'FR-16(7)(v)-3 PROD Demand'!G355+'FR-16(7)(v)-7 TRANS Demand'!G355+'FR-16(7)(v)-11 DIST Demand'!G355","v":0},{"$f":"'FR-16(7)(v)-4 PROD Energy'!G355+'FR-16(7)(v)-8 TRANS Energy'!G355+'FR-16(7)(v)-12 DIST Energy'!G355","v":0},{"$f":"'FR-16(7)(v)-5 PROD Cust'!G355+'FR-16(7)(v)-9 TRANS Cust'!G355+'FR-16(7)(v)-13 DIST Cust'!G355","v":0},0,0]
[21,null,{"$f":"'FR-16(7)(v)-1 Functional'!C356","v":"ENVIRONMENTAL RESERVE"},{"$f":"'FR-16(7)(v)-1 Functional'!D356","v":"NP29"},null,{"$f":"'FR-16(7)(v)-14 TOTAL CLASS'!G356","v":0},{"$f":"'FR-16(7)(v)-3 PROD Demand'!G356+'FR-16(7)(v)-7 TRANS Demand'!G356+'FR-16(7)(v)-11 DIST Demand'!G356","v":0},{"$f":"'FR-16(7)(v)-4 PROD Energy'!G356+'FR-16(7)(v)-8 TRANS Energy'!G356+'FR-16(7)(v)-12 DIST Energy'!G356","v":0},{"$f":"'FR-16(7)(v)-5 PROD Cust'!G356+'FR-16(7)(v)-9 TRANS Cust'!G356+'FR-16(7)(v)-13 DIST Cust'!G356","v":0},0,0]
[22,null,{"$f":"'FR-16(7)(v)-1 Functional'!C357","v":"VACATION PAY ACCRUALS"},{"$f":"'FR-16(7)(v)-1 Functional'!D357","v":"A315"},null,{"$f":"'FR-16(7)(v)-14 TOTAL CLASS'!G357","v":294509},{"$f":"'FR-16(7)(v)-3 PROD Demand'!G357+'FR-16(7)(v)-7 TRANS Demand'!G357+'FR-16(7)(v)-11 DIST Demand'!G357","v":177608},{"$f":"'FR-16(7)(v)-4 PROD Energy'!G357+'FR-16(7)(v)-8 TRANS Energy'!G357+'FR-16(7)(v)-12 DIST Energy'!G357","v":58691},{"$f":"'FR-16(7)(v)-5 PROD Cust'!G357+'FR-16(7)(v)-9 TRANS Cust'!G357+'FR-16(7)(v)-13 DIST Cust'!G357","v":58210},294509,0]
[23,null,{"$f":"'FR-16(7)(v)-1 Functional'!C358","v":"DEMAND SIDE MANAGEMENT DEFERRAL"},{"$f":"'FR-16(7)(v)-1 Functional'!D358","v":"NP29"},null,{"$f":"'FR-16(7)(v)-14 TOTAL CLASS'!G358","v":312637},{"$f":"'FR-16(7)(v)-3 PROD Demand'!G358+'FR-16(7)(v)-7 TRANS Demand'!G358+'FR-16(7)(v)-11 DIST Demand'!G358","v":257388},{"$f":"'FR-16(7)(v)-4 PROD Energy'!G358+'FR-16(7)(v)-8 TRANS Energy'!G358+'FR-16(7)(v)-12 DIST Energy'!G358","v":3241},{"$f":"'FR-16(7)(v)-5 PROD Cust'!G358+'FR-16(7)(v)-9 TRANS Cust'!G358+'FR-16(7)(v)-13 DIST Cust'!G358","v":52008},312637,0]
[24,null,{"$f":"'FR-16(7)(v)-1 Functional'!C359","v":"OPERATING LEASE OBLIGATION"},{"$f":"'FR-16(7)(v)-1 Functional'!D359","v":"NP29"},null,{"$f":"'FR-16(7)(v)-14 TOTAL CLASS'!G359","v":1156901},{"$f":"'FR-16(7)(v)-3 PROD Demand'!G359+'FR-16(7)(v)-7 TRANS Demand'!G359+'FR-16(7)(v)-11 DIST Demand'!G359","v":952460},{"$f":"'FR-16(7)(v)-4 PROD Energy'!G359+'FR-16(7)(v)-8 TRANS Energy'!G359+'FR-16(7)(v)-12 DIST Energy'!G359","v":11991},{"$f":"'FR-16(7)(v)-5 PROD Cust'!G359+'FR-16(7)(v)-9 TRANS Cust'!G359+'FR-16(7)(v)-13 DIST Cust'!G359","v":192450},1156901,0]
[25,null,{"$f":"'FR-16(7)(v)-1 Functional'!C360","v":"INJURIES & DAMAGES"},{"$f":"'FR-16(7)(v)-1 Functional'!D360","v":"NP29"},null,{"$f":"'FR-16(7)(v)-14 TOTAL CLASS'!G360","v":0},{"$f":"'FR-16(7)(v)-3 PROD Demand'!G360+'FR-16(7)(v)-7 TRANS Demand'!G360+'FR-16(7)(v)-11 DIST Demand'!G360","v":0},{"$f":"'FR-16(7)(v)-4 PROD Energy'!G360+'FR-16(7)(v)-8 TRANS Energy'!G360+'FR-16(7)(v)-12 DIST Energy'!G360","v":0},{"$f":"'FR-16(7)(v)-5 PROD Cust'!G360+'FR-16(7)(v)-9 TRANS Cust'!G360+'FR-16(7)(v)-13 DIST Cust'!G360","v":0},0,0]
[26,null,{"$f":"'FR-16(7)(v)-1 Functional'!C361","v":"  TOTAL ACCOUNT 190"},null,null,{"$f":"SUM(F337:F360)","v":12545359},7850662,2209664,2485033,12545359,0]
[27]
[28," OTHER"]
[29,null,{"$f":"'FR-16(7)(v)-1 Functional'!C364","v":"RESERVED FOR FUTURE USE"},{"$f":"'FR-16(7)(v)-1 Functional'!D364","v":"NP29"},null,{"$f":"'FR-16(7)(v)-14 TOTAL CLASS'!G364","v":0},{"$f":"'FR-16(7)(v)-3 PROD Demand'!G364+'FR-16(7)(v)-7 TRANS Demand'!G364+'FR-16(7)(v)-11 DIST Demand'!G364","v":0},{"$f":"'FR-16(7)(v)-4 PROD Energy'!G364+'FR-16(7)(v)-8 TRANS Energy'!G364+'FR-16(7)(v)-12 DIST Energy'!G364","v":0},{"$f":"'FR-16(7)(v)-5 PROD Cust'!G364+'FR-16(7)(v)-9 TRANS Cust'!G364+'FR-16(7)(v)-13 DIST Cust'!G364","v":0},{"$f":"SUM(G364:I364)","v":0},{"$f":"F364-J364","v":0}]
[30,null,{"$f":"'FR-16(7)(v)-1 Functional'!C365","v":"RATE CASE EXPENSE REGULATORY ASSET"},{"$f":"'FR-16(7)(v)-1 Functional'!D365","v":"NP29"},null,{"$f":"'FR-16(7)(v)-14 TOTAL CLASS'!G365","v":468702},{"$f":"'FR-16(7)(v)-3 PROD Demand'!G365+'FR-16(7)(v)-7 TRANS Demand'!G365+'FR-16(7)(v)-11 DIST Demand'!G365","v":385874},{"$f":"'FR-16(7)(v)-4 PROD Energy'!G365+'FR-16(7)(v)-8 TRANS Energy'!G365+'FR-16(7)(v)-12 DIST Energy'!G365","v":4860},{"$f":"'FR-16(7)(v)-5 PROD Cust'!G365+'FR-16(7)(v)-9 TRANS Cust'!G365+'FR-16(7)(v)-13 DIST Cust'!G365","v":77968},{"$f":"SUM(G365:I365)","v":468702},{"$f":"F365-J365","v":0}]
[31,null,{"$f":"'FR-16(7)(v)-1 Functional'!C366","v":"RESERVED FOR FUTURE USE"},{"$f":"'FR-16(7)(v)-1 Functional'!D366","v":"NP29"},null,{"$f":"'FR-16(7)(v)-14 TOTAL CLASS'!G366","v":0},{"$f":"'FR-16(7)(v)-3 PROD Demand'!G366+'FR-16(7)(v)-7 TRANS Demand'!G366+'FR-16(7)(v)-11 DIST Demand'!G366","v":0},{"$f":"'FR-16(7)(v)-4 PROD Energy'!G366+'FR-16(7)(v)-8 TRANS Energy'!G366+'FR-16(7)(v)-12 DIST Energy'!G366","v":0},{"$f":"'FR-16(7)(v)-5 PROD Cust'!G366+'FR-16(7)(v)-9 TRANS Cust'!G366+'FR-16(7)(v)-13 DIST Cust'!G366","v":0},{"$f":"SUM(G366:I366)","v":0},{"$f":"F366-J366","v":0}]
[32,null,{"$f":"'FR-16(7)(v)-1 Functional'!C367","v":"  OTHER"},null,null,{"$f":"SUM(F364:F366)","v":468702},{"$f":"SUM(G363:G366)","v":385874},{"$f":"SUM(H363:H366)","v":4860},{"$f":"SUM(I363:I366)","v":77968},{"$f":"SUM(J363:J366)","v":468702},{"$f":"SUM(K363:K366)","v":0}]
[33,null,null,null,null," "]
[34,"CONSTRUCTION WORK IN PROGRESS"]
[35,null,{"$f":"'FR-16(7)(v)-1 Functional'!C370","v":"PRODUCTION"},{"$f":"'FR-16(7)(v)-1 Functional'!D370","v":"P129"},null,{"$f":"'FR-16(7)(v)-14 TOTAL CLASS'!G370","v":0},{"$f":"'FR-16(7)(v)-3 PROD Demand'!G370+'FR-16(7)(v)-7 TRANS Demand'!G370+'FR-16(7)(v)-11 DIST Demand'!G370","v":0},{"$f":"'FR-16(7)(v)-4 PROD Energy'!G370+'FR-16(7)(v)-8 TRANS Energy'!G370+'FR-16(7)(v)-12 DIST Energy'!G370","v":0},{"$f":"'FR-16(7)(v)-5 PROD Cust'!G370+'FR-16(7)(v)-9 TRANS Cust'!G370+'FR-16(7)(v)-13 DIST Cust'!G370","v":0},{"$f":"SUM(G370:I370)","v":0},{"$f":"F370-J370","v":0}]
[36,null,{"$f":"'FR-16(7)(v)-1 Functional'!C371","v":"TRANSMISSION"},{"$f":"'FR-16(7)(v)-1 Functional'!D371","v":"T129"},null,{"$f":"'FR-16(7)(v)-14 TOTAL CLASS'!G371","v":0},{"$f":"'FR-16(7)(v)-3 PROD Demand'!G371+'FR-16(7)(v)-7 TRANS Demand'!G371+'FR-16(7)(v)-11 DIST Demand'!G371","v":0},{"$f":"'FR-16(7)(v)-4 PROD Energy'!G371+'FR-16(7)(v)-8 TRANS Energy'!G371+'FR-16(7)(v)-12 DIST Energy'!G371","v":0},{"$f":"'FR-16(7)(v)-5 PROD Cust'!G371+'FR-16(7)(v)-9 TRANS Cust'!G371+'FR-16(7)(v)-13 DIST Cust'!G371","v":0},{"$f":"SUM(G371:I371)","v":0},{"$f":"F371-J371","v":0}]
[37,null,{"$f":"'FR-16(7)(v)-1 Functional'!C372","v":"DISTRIBUTION"},{"$f":"'FR-16(7)(v)-1 Functional'!D372","v":"D149"},null,{"$f":"'FR-16(7)(v)-14 TOTAL CLASS'!G372","v":0},{"$f":"'FR-16(7)(v)-3 PROD Demand'!G372+'FR-16(7)(v)-7 TRANS Demand'!G372+'FR-16(7)(v)-11 DIST Demand'!G372","v":0},{"$f":"'FR-16(7)(v)-4 PROD Energy'!G372+'FR-16(7)(v)-8 TRANS Energy'!G372+'FR-16(7)(v)-12 DIST Energy'!G372","v":0},{"$f":"'FR-16(7)(v)-5 PROD Cust'!G372+'FR-16(7)(v)-9 TRANS Cust'!G372+'FR-16(7)(v)-13 DIST Cust'!G372","v":0},{"$f":"SUM(G372:I372)","v":0},{"$f":"F372-J372","v":0}]
[38,null,{"$f":"'FR-16(7)(v)-1 Functional'!C373","v":"COMMON"},{"$f":"'FR-16(7)(v)-1 Functional'!D373","v":"C129"},null,{"$f":"'FR-16(7)(v)-14 TOTAL CLASS'!G373","v":0},{"$f":"'FR-16(7)(v)-3 PROD Demand'!G373+'FR-16(7)(v)-7 TRANS Demand'!G373+'FR-16(7)(v)-11 DIST Demand'!G373","v":0},{"$f":"'FR-16(7)(v)-4 PROD Energy'!G373+'FR-16(7)(v)-8 TRANS Energy'!G373+'FR-16(7)(v)-12 DIST Energy'!G373","v":0},{"$f":"'FR-16(7)(v)-5 PROD Cust'!G373+'FR-16(7)(v)-9 TRANS Cust'!G373+'FR-16(7)(v)-13 DIST Cust'!G373","v":0},{"$f":"SUM(G373:I373)","v":0},{"$f":"F373-J373","v":0}]
[39,null,{"$f":"'FR-16(7)(v)-1 Functional'!C374","v":"GENERAL"},{"$f":"'FR-16(7)(v)-1 Functional'!D374","v":"G129"},null,{"$f":"'FR-16(7)(v)-14 TOTAL CLASS'!G374","v":0},{"$f":"'FR-16(7)(v)-3 PROD Demand'!G374+'FR-16(7)(v)-7 TRANS Demand'!G374+'FR-16(7)(v)-11 DIST Demand'!G374","v":0},{"$f":"'FR-16(7)(v)-4 PROD Energy'!G374+'FR-16(7)(v)-8 TRANS Energy'!G374+'FR-16(7)(v)-12 DIST Energy'!G374","v":0},{"$f":"'FR-16(7)(v)-5 PROD Cust'!G374+'FR-16(7)(v)-9 TRANS Cust'!G374+'FR-16(7)(v)-13 DIST Cust'!G374","v":0},{"$f":"SUM(G374:I374)","v":0},{"$f":"F374-J374","v":0}]
[40,null,{"$f":"'FR-16(7)(v)-1 Functional'!C375","v":"TOTAL CONSTRUCTION WORK IN PROGRESS"},null,null,{"$f":"SUM(F370:F374)","v":0},0,0,0,0,0]
[41]
[42,{"$f":"'FR-16(7)(v)-1 Functional'!B377","v":"TOTAL ADDITIVE RATE BASE ADJUSTMENTS"},null,null,null,{"$f":"F361+F367+F375","v":13014061},8236536,2214524,2563001,13014061,0]
[]
[{"$f":"co_name","v":"DUKE ENERGY KENTUCKY, INC."},null,null,null,null,null,null,null,null,{"$f":"J1","v":"FR-16(7)(v)-15"}]
[{"$f":"$A$2","v":"RESIDENTIAL CLASSIFIED - ELECTRIC COST OF SERVICE"},null,null,null,null,null,null,null,null,{"$f":"J2","v":"WITNESS RESPONSIBLE:"}]
[{"$f":"case_name","v":"CASE NO: 2019-00271"},null,null,null,null,null,null,null,null,{"$f":"Witness","v":"JAMES E. ZIOLKOWSKI"}]
[{"$f":"data_filing","v":"DATA: 12 MONTHS ACTUAL  & 0 MONTHS ESTIMATED"},null,null,null,null,null,null,null,null,{"$f":"\"PAGE \"&Pages2-8&\" OF \"&Pages2","v":"PAGE 7 OF 15"}]
[{"$f":"type","v":"TYPE OF FILING: \"X\" ORIGINAL   UPDATED    REVISED  "}]
[]
[]
["LINE",null,null,null,null,"TOTAL","CLASSIFIED",null,null,"TOTAL","ALL"]
["NO.","WORKING CAPITAL",null,"ALLO",null,{"$f":"$F$9","v":"RESIDENTIAL"},{"$f":"G9","v":"DEMAND"},"ENERGY","CUSTOMER","AT ISSUE","OTHER"]
[null,null,"Schedule 5.2",null,null,null,3,4,5]
[]
[1,"NET ORIGINAL COST RATE BASE",null,null,null,{"$f":"F277-F324+F377","v":442606138},365764393,2621793,74219952,442606138,0]
[2]
[3,"WORKING CAPITAL"]
[4]
[5,"PLANT MATERIALS & SUPPLIES"]
[6,null,{"$f":"'FR-16(7)(v)-1 Functional'!C395","v":"OTHER MATERIALS & SUPPLIES"},{"$f":"'FR-16(7)(v)-1 Functional'!D395","v":"PD29"},null,{"$f":"'FR-16(7)(v)-14 TOTAL CLASS'!G395","v":10329953},{"$f":"'FR-16(7)(v)-3 PROD Demand'!G395+'FR-16(7)(v)-7 TRANS Demand'!G395+'FR-16(7)(v)-11 DIST Demand'!G395","v":3444945},{"$f":"'FR-16(7)(v)-4 PROD Energy'!G395+'FR-16(7)(v)-8 TRANS Energy'!G395+'FR-16(7)(v)-12 DIST Energy'!G395","v":1991485},{"$f":"'FR-16(7)(v)-5 PROD Cust'!G395+'FR-16(7)(v)-9 TRANS Cust'!G395+'FR-16(7)(v)-13 DIST Cust'!G395","v":4893523},{"$f":"SUM(G395:I395)","v":10329953},{"$f":"F395-J395","v":0}]
[7,null,{"$f":"'FR-16(7)(v)-1 Functional'!C396","v":"FUEL"},{"$f":"'FR-16(7)(v)-1 Functional'!D396","v":"K301"},null,{"$f":"'FR-16(7)(v)-14 TOTAL CLASS'!G396","v":7367269},{"$f":"'FR-16(7)(v)-3 PROD Demand'!G396+'FR-16(7)(v)-7 TRANS Demand'!G396+'FR-16(7)(v)-11 DIST Demand'!G396","v":0},{"$f":"'FR-16(7)(v)-4 PROD Energy'!G396+'FR-16(7)(v)-8 TRANS Energy'!G396+'FR-16(7)(v)-12 DIST Energy'!G396","v":7367269},{"$f":"'FR-16(7)(v)-5 PROD Cust'!G396+'FR-16(7)(v)-9 TRANS Cust'!G396+'FR-16(7)(v)-13 DIST Cust'!G396","v":0},{"$f":"SUM(G396:I396)","v":7367269},{"$f":"F396-J396","v":0}]
[8,null,{"$f":"'FR-16(7)(v)-1 Functional'!C397","v":"EMISSION ALLOWANCES"},{"$f":"'FR-16(7)(v)-1 Functional'!D397","v":"K301"},null,{"$f":"'FR-16(7)(v)-14 TOTAL CLASS'!G397","v":0},{"$f":"'FR-16(7)(v)-3 PROD Demand'!G397+'FR-16(7)(v)-7 TRANS Demand'!G397+'FR-16(7)(v)-11 DIST Demand'!G397","v":0},{"$f":"'FR-16(7)(v)-4 PROD Energy'!G397+'FR-16(7)(v)-8 TRANS Energy'!G397+'FR-16(7)(v)-12 DIST Energy'!G397","v":0},{"$f":"'FR-16(7)(v)-5 PROD Cust'!G397+'FR-16(7)(v)-9 TRANS Cust'!G397+'FR-16(7)(v)-13 DIST Cust'!G397","v":0},{"$f":"SUM(G397:I397)","v":0},{"$f":"F397-J397","v":0}]
[9,null,{"$f":"'FR-16(7)(v)-1 Functional'!C398","v":"  TOTAL PLANT MATS. & SUPPLIES"},null,null,{"$f":"SUM(F394:F397)","v":17697222},3444945,9358754,4893523,17697222,0]
[10,"TOTAL MATERIALS & SUPPLIES",null,null,null,{"$f":"F398","v":17697222},3444945,9358754,4893523,17697222,0]
[11]
[12,"PREPAYMENTS"]
[13,null,{"$f":"'FR-16(7)(v)-1 Functional'!C402","v":"INSURANCE GENERAL"},{"$f":"'FR-16(7)(v)-1 Functional'!D402","v":"NP29"},null,{"$f":"'FR-16(7)(v)-14 TOTAL CLASS'!G402","v":138397},{"$f":"'FR-16(7)(v)-3 PROD Demand'!G402+'FR-16(7)(v)-7 TRANS Demand'!G402+'FR-16(7)(v)-11 DIST Demand'!G402","v":113939},{"$f":"'FR-16(7)(v)-4 PROD Energy'!G402+'FR-16(7)(v)-8 TRANS Energy'!G402+'FR-16(7)(v)-12 DIST Energy'!G402","v":1435},{"$f":"'FR-16(7)(v)-5 PROD Cust'!G402+'FR-16(7)(v)-9 TRANS Cust'!G402+'FR-16(7)(v)-13 DIST Cust'!G402","v":23023},{"$f":"SUM(G402:I402)","v":138397},{"$f":"F402-J402","v":0}]
[14,null,{"$f":"'FR-16(7)(v)-1 Functional'!C403","v":"EXCISE TAX"},{"$f":"'FR-16(7)(v)-1 Functional'!D403","v":"NP29"},null,{"$f":"'FR-16(7)(v)-14 TOTAL CLASS'!G403","v":0},{"$f":"'FR-16(7)(v)-3 PROD Demand'!G403+'FR-16(7)(v)-7 TRANS Demand'!G403+'FR-16(7)(v)-11 DIST Demand'!G403","v":0},{"$f":"'FR-16(7)(v)-4 PROD Energy'!G403+'FR-16(7)(v)-8 TRANS Energy'!G403+'FR-16(7)(v)-12 DIST Energy'!G403","v":0},{"$f":"'FR-16(7)(v)-5 PROD Cust'!G403+'FR-16(7)(v)-9 TRANS Cust'!G403+'FR-16(7)(v)-13 DIST Cust'!G403","v":0},{"$f":"SUM(G403:I403)","v":0},{"$f":"F403-J403","v":0}]
[15,null,{"$f":"'FR-16(7)(v)-1 Functional'!C404","v":"COLLATERAL ASSET"},{"$f":"'FR-16(7)(v)-1 Functional'!D404","v":"K301"},null,{"$f":"'FR-16(7)(v)-14 TOTAL CLASS'!G404","v":-16639},{"$f":"'FR-16(7)(v)-3 PROD Demand'!G404+'FR-16(7)(v)-7 TRANS Demand'!G404+'FR-16(7)(v)-11 DIST Demand'!G404","v":0},{"$f":"'FR-16(7)(v)-4 PROD Energy'!G404+'FR-16(7)(v)-8 TRANS Energy'!G404+'FR-16(7)(v)-12 DIST Energy'!G404","v":-16639},{"$f":"'FR-16(7)(v)-5 PROD Cust'!G404+'FR-16(7)(v)-9 TRANS Cust'!G404+'FR-16(7)(v)-13 DIST Cust'!G404","v":0},{"$f":"SUM(G404:I404)","v":-16639},{"$f":"F404-J404","v":0}]
[16,null,{"$f":"'FR-16(7)(v)-1 Functional'!C405","v":"  TOTAL PREPAYMENTS"},null,null,{"$f":"SUM(F401:F404)","v":121758},113939,-15204,23023,121758,0]
[17]
[18,"AUTO CALC (O&M-ELECTRIC FUEL COST)/8",null,null,null,{"$f":"'FR-16(7)(v)-14 TOTAL CLASS'!G407","v":6744827},{"$f":"'FR-16(7)(v)-3 PROD Demand'!G407+'FR-16(7)(v)-7 TRANS Demand'!G407+'FR-16(7)(v)-11 DIST Demand'!G407","v":6744827},{"$f":"'FR-16(7)(v)-4 PROD Energy'!G407+'FR-16(7)(v)-8 TRANS Energy'!G407+'FR-16(7)(v)-12 DIST Energy'!G407","v":0},{"$f":"'FR-16(7)(v)-5 PROD Cust'!G407+'FR-16(7)(v)-9 TRANS Cust'!G407+'FR-16(7)(v)-13 DIST Cust'!G407","v":0},{"$f":"SUM(G407:I407)","v":6744827},{"$f":"F407-J407","v":0}]
[19,"  TOTAL WORKING CASH",null,null,null,{"$f":"F407","v":6744827},6744827,0,0,6744827,0]
[20]
[21,"MISCELLANEOUS WORKING CAPITAL"]
[22,null,{"$f":"'FR-16(7)(v)-1 Functional'!C411","v":"RESERVED FOR FUTURE USE"},{"$f":"'FR-16(7)(v)-1 Functional'!D411","v":"K301"},null,{"$f":"'FR-16(7)(v)-14 TOTAL CLASS'!G411","v":0},{"$f":"'FR-16(7)(v)-3 PROD Demand'!G411+'FR-16(7)(v)-7 TRANS Demand'!G411+'FR-16(7)(v)-11 DIST Demand'!G411","v":0},{"$f":"'FR-16(7)(v)-4 PROD Energy'!G411+'FR-16(7)(v)-8 TRANS Energy'!G411+'FR-16(7)(v)-12 DIST Energy'!G411","v":0},{"$f":"'FR-16(7)(v)-5 PROD Cust'!G411+'FR-16(7)(v)-9 TRANS Cust'!G411+'FR-16(7)(v)-13 DIST Cust'!G411","v":0},{"$f":"SUM(G411:I411)","v":0},{"$f":"F411-J411","v":0}]
[23,null,{"$f":"'FR-16(7)(v)-1 Functional'!C412","v":"PIPP UNCOLLECTIBLES"},{"$f":"'FR-16(7)(v)-1 Functional'!D412","v":"A315"},null,{"$f":"'FR-16(7)(v)-14 TOTAL CLASS'!G412","v":0},{"$f":"'FR-16(7)(v)-3 PROD Demand'!G412+'FR-16(7)(v)-7 TRANS Demand'!G412+'FR-16(7)(v)-11 DIST Demand'!G412","v":0},{"$f":"'FR-16(7)(v)-4 PROD Energy'!G412+'FR-16(7)(v)-8 TRANS Energy'!G412+'FR-16(7)(v)-12 DIST Energy'!G412","v":0},{"$f":"'FR-16(7)(v)-5 PROD Cust'!G412+'FR-16(7)(v)-9 TRANS Cust'!G412+'FR-16(7)(v)-13 DIST Cust'!G412","v":0},{"$f":"SUM(G412:I412)","v":0},{"$f":"F412-J412","v":0}]
[24,null,{"$f":"'FR-16(7)(v)-1 Functional'!C413","v":"RESERVED FOR FUTURE USE"},{"$f":"'FR-16(7)(v)-1 Functional'!D413","v":"D249"},null,{"$f":"'FR-16(7)(v)-14 TOTAL CLASS'!G413","v":0},{"$f":"'FR-16(7)(v)-3 PROD Demand'!G413+'FR-16(7)(v)-7 TRANS Demand'!G413+'FR-16(7)(v)-11 DIST Demand'!G413","v":0},{"$f":"'FR-16(7)(v)-4 PROD Energy'!G413+'FR-16(7)(v)-8 TRANS Energy'!G413+'FR-16(7)(v)-12 DIST Energy'!G413","v":0},{"$f":"'FR-16(7)(v)-5 PROD Cust'!G413+'FR-16(7)(v)-9 TRANS Cust'!G413+'FR-16(7)(v)-13 DIST Cust'!G413","v":0},{"$f":"SUM(G413:I413)","v":0},{"$f":"F413-J413","v":0}]
[25,null,{"$f":"'FR-16(7)(v)-1 Functional'!C414","v":"  TOTAL MISC WORK CAPITAL"},null,null,{"$f":"SUM(F410:F413)","v":0},0,0,0,0,0]
[26]
[27,"TOTAL WORKING CAPITAL",null,null,null,{"$f":"F399+F405+F408+F414","v":24563807},10303711,9343550,4916546,24563807,0]
[28,"PRELIMINARY SUMMARY"]
[29,null,{"$f":"'FR-16(7)(v)-1 Functional'!C418","v":"TOTAL ACCUMULATED DEFERRED INCOME TAXES"},null,null,{"$f":"-F324","v":-139532797},-111261507,-5502719,-22768571,-139532797,0]
[30,null,{"$f":"'FR-16(7)(v)-1 Functional'!C419","v":"TOTAL OTHER ACCUMULATED DEFERRED INCOME TAXES"},null,null,{"$f":"F377","v":13014061},8236536,2214524,2563001,13014061,0]
[31,null,{"$f":"'FR-16(7)(v)-1 Functional'!C420","v":"TOTAL WORKING CAPITAL"},null,null,{"$f":"F416","v":24563807},10303711,9343550,4916546,24563807,0]
[32,null,{"$f":"'FR-16(7)(v)-1 Functional'!C421","v":"  TOTAL RATE BASE ADJUSTMENTS"},null,null,{"$f":"SUM(F417:F420)","v":-101954929},-92721260,6055355,-15289024,{"$f":"SUM(J417:J420)","v":-101954929},0]
[33]
[34,"RATE BASE CALCULATION"]
[35,null,{"$f":"'FR-16(7)(v)-1 Functional'!C424","v":"NET ELECTRIC PLANT IN SERVICE"},null,null,{"$f":"F277","v":569124874},468789364,5909988,94425522,569124874,0]
[36,null,{"$f":"'FR-16(7)(v)-1 Functional'!C425","v":"TOTAL RATE BASE ADJUSTMENTS"},null,null,{"$f":"F421","v":-101954929},-92721260,6055355,-15289024,-101954929,0]
[37,null,{"$f":"'FR-16(7)(v)-1 Functional'!C426","v":"  TOTAL RATE BASE"},null,null,{"$f":"SUM(F423:F425)","v":467169945},376068104,11965343,79136498,467169945,0]
[38]
[39,"TOTAL RATE OF RETURN ALLOWABLE",null,null,null,{"$f":"$F$811","v":6.7100000000000007E-2},{"$f":"F811","v":6.7100000000000007E-2},{"$f":"F811","v":6.7100000000000007E-2},{"$f":"F811","v":6.7100000000000007E-2},{"$f":"F811","v":6.7100000000000007E-2}]
[40,"RETURN ON RATE BASE",null,null,null,{"$f":"ROUND(F428*F426,0)","v":31347103},{"$f":"F429-SUM(H429:I429)","v":25234169},{"$f":"ROUND(H426*H428,0)","v":802875},{"$f":"ROUND(I426*I428,0)","v":5310059},{"$f":"SUM(G429:I429)","v":31347103},{"$f":"ROUND(K426*K428,0)","v":0}]
[41]
[42,{"$f":"'FR-16(7)(v)-1 Functional'!B431","v":"ELECTRIC RATE BASE"},null,{"$f":"'FR-16(7)(v)-1 Functional'!D431","v":"RB99"},null,{"$f":"'FR-16(7)(v)-14 TOTAL CLASS'!G431","v":468139197},{"$f":"'FR-16(7)(v)-3 PROD Demand'!G431+'FR-16(7)(v)-7 TRANS Demand'!G431+'FR-16(7)(v)-11 DIST Demand'!G431","v":376607492},{"$f":"'FR-16(7)(v)-4 PROD Energy'!G431+'FR-16(7)(v)-8 TRANS Energy'!G431+'FR-16(7)(v)-12 DIST Energy'!G431","v":11966018},{"$f":"'FR-16(7)(v)-5 PROD Cust'!G431+'FR-16(7)(v)-9 TRANS Cust'!G431+'FR-16(7)(v)-13 DIST Cust'!G431","v":79565687},{"$f":"SUM(G431:I431)","v":468139197},{"$f":"F431-J431","v":0}]
[43,{"$f":"'FR-16(7)(v)-1 Functional'!B432","v":"TOTAL RATE OF RETURN ALLOWABLE"},null,null,null,{"$f":"RofR","v":6.7110000000000003E-2},{"$f":"RofR","v":6.7110000000000003E-2},{"$f":"RofR","v":6.7110000000000003E-2},{"$f":"RofR","v":6.7110000000000003E-2},{"$f":"RofR","v":6.7110000000000003E-2}]
[44,{"$f":"'FR-16(7)(v)-1 Functional'!B433","v":"RETURN ON RATE BASE"},null,null,null,{"$f":"ROUND(F431*F432,0)","v":31416822},{"$f":"F433-H433-I433","v":25274130},{"$f":"ROUND(H431*H432,0)","v":803039},{"$f":"ROUND(I431*I432,0)","v":5339653},{"$f":"ROUND(J431*J432,0)","v":31416822},{"$f":"F433-J433","v":0}]
[]
[{"$f":"co_name","v":"DUKE ENERGY KENTUCKY, INC."},null,null,null,null,null,null,null,null,{"$f":"J1","v":"FR-16(7)(v)-15"}]
[{"$f":"$A$2","v":"RESIDENTIAL CLASSIFIED - ELECTRIC COST OF SERVICE"},null,null,null,null,null,null,null,null,{"$f":"J2","v":"WITNESS RESPONSIBLE:"}]
[{"$f":"case_name","v":"CASE NO: 2019-00271"},null,null,null,null,null,null,null,null,{"$f":"Witness","v":"JAMES E. ZIOLKOWSKI"}]
[{"$f":"data_filing","v":"DATA: 12 MONTHS ACTUAL  & 0 MONTHS ESTIMATED"},null,null,null,null,null,null,null,null,{"$f":"\"PAGE \"&Pages2-7&\" OF \"&Pages2","v":"PAGE 8 OF 15"}]
[{"$f":"type","v":"TYPE OF FILING: \"X\" ORIGINAL   UPDATED    REVISED  "}]
[]
[]
["LINE",null,null,null,null,"TOTAL","CLASSIFIED",null,null,"TOTAL","ALL"]
["NO.","O&M EXPENSES",null,"ALLO",null,{"$f":"$F$9","v":"RESIDENTIAL"},{"$f":"G9","v":"DEMAND"},"ENERGY","CUSTOMER","AT ISSUE","OTHER"]
[null,null,"Schedule 6",null,null,null,3,4,5]
[1,"PRODUCTION O&M"]
[2,{"$f":"'FR-16(7)(v)-1 Functional'!B446","v":"ENERGY RELATED PRODUCTION O&M"}]
[3,null,{"$f":"'FR-16(7)(v)-1 Functional'!C447","v":"FUEL"},{"$f":"'FR-16(7)(v)-1 Functional'!D447","v":"K302"},null,{"$f":"'FR-16(7)(v)-14 TOTAL CLASS'!G447","v":0},{"$f":"'FR-16(7)(v)-3 PROD Demand'!G447+'FR-16(7)(v)-7 TRANS Demand'!G447+'FR-16(7)(v)-11 DIST Demand'!G447","v":0},{"$f":"'FR-16(7)(v)-4 PROD Energy'!G447+'FR-16(7)(v)-8 TRANS Energy'!G447+'FR-16(7)(v)-12 DIST Energy'!G447","v":0},{"$f":"'FR-16(7)(v)-5 PROD Cust'!G447+'FR-16(7)(v)-9 TRANS Cust'!G447+'FR-16(7)(v)-13 DIST Cust'!G447","v":0},{"$f":"SUM(G447:I447)","v":0},{"$f":"F447-J447","v":0}]
[4,null,{"$f":"'FR-16(7)(v)-1 Functional'!C448","v":"FUEL AND PURCHASED POWER ADJUSTMENT"},{"$f":"'FR-16(7)(v)-1 Functional'!D448","v":"K302"},null,{"$f":"'FR-16(7)(v)-14 TOTAL CLASS'!G448","v":38048920},{"$f":"'FR-16(7)(v)-3 PROD Demand'!G448+'FR-16(7)(v)-7 TRANS Demand'!G448+'FR-16(7)(v)-11 DIST Demand'!G448","v":0},{"$f":"'FR-16(7)(v)-4 PROD Energy'!G448+'FR-16(7)(v)-8 TRANS Energy'!G448+'FR-16(7)(v)-12 DIST Energy'!G448","v":38048920},{"$f":"'FR-16(7)(v)-5 PROD Cust'!G448+'FR-16(7)(v)-9 TRANS Cust'!G448+'FR-16(7)(v)-13 DIST Cust'!G448","v":0},38048920,0]
[5,null,{"$f":"'FR-16(7)(v)-1 Functional'!C449","v":"EMISSION ALLOWANCES"},{"$f":"'FR-16(7)(v)-1 Functional'!D449","v":"K301"},null,{"$f":"'FR-16(7)(v)-14 TOTAL CLASS'!G449","v":0},{"$f":"'FR-16(7)(v)-3 PROD Demand'!G449+'FR-16(7)(v)-7 TRANS Demand'!G449+'FR-16(7)(v)-11 DIST Demand'!G449","v":0},{"$f":"'FR-16(7)(v)-4 PROD Energy'!G449+'FR-16(7)(v)-8 TRANS Energy'!G449+'FR-16(7)(v)-12 DIST Energy'!G449","v":0},{"$f":"'FR-16(7)(v)-5 PROD Cust'!G449+'FR-16(7)(v)-9 TRANS Cust'!G449+'FR-16(7)(v)-13 DIST Cust'!G449","v":0},0,0]
[6,null,{"$f":"'FR-16(7)(v)-1 Functional'!C450","v":"ELIMINATE EMISSION ALLOW & OTHER VAR COST"},{"$f":"'FR-16(7)(v)-1 Functional'!D450","v":"K301"},null,{"$f":"'FR-16(7)(v)-14 TOTAL CLASS'!G450","v":0},{"$f":"'FR-16(7)(v)-3 PROD Demand'!G450+'FR-16(7)(v)-7 TRANS Demand'!G450+'FR-16(7)(v)-11 DIST Demand'!G450","v":0},{"$f":"'FR-16(7)(v)-4 PROD Energy'!G450+'FR-16(7)(v)-8 TRANS Energy'!G450+'FR-16(7)(v)-12 DIST Energy'!G450","v":0},{"$f":"'FR-16(7)(v)-5 PROD Cust'!G450+'FR-16(7)(v)-9 TRANS Cust'!G450+'FR-16(7)(v)-13 DIST Cust'!G450","v":0},0,0]
[7,null,{"$f":"'FR-16(7)(v)-1 Functional'!C451","v":"OTHER PRODUCTION EXPENSE - MAINTENANCE"},{"$f":"'FR-16(7)(v)-1 Functional'!D451","v":"K301"},null,{"$f":"'FR-16(7)(v)-14 TOTAL CLASS'!G451","v":15356451},{"$f":"'FR-16(7)(v)-3 PROD Demand'!G451+'FR-16(7)(v)-7 TRANS Demand'!G451+'FR-16(7)(v)-11 DIST Demand'!G451","v":0},{"$f":"'FR-16(7)(v)-4 PROD Energy'!G451+'FR-16(7)(v)-8 TRANS Energy'!G451+'FR-16(7)(v)-12 DIST Energy'!G451","v":15356451},{"$f":"'FR-16(7)(v)-5 PROD Cust'!G451+'FR-16(7)(v)-9 TRANS Cust'!G451+'FR-16(7)(v)-13 DIST Cust'!G451","v":0},15356451,0]
[8,null,{"$f":"'FR-16(7)(v)-1 Functional'!C452","v":"MISO TRANSMISSION CHARGES - ACCT 555"},{"$f":"'FR-16(7)(v)-1 Functional'!D452","v":"K301"},null,{"$f":"'FR-16(7)(v)-14 TOTAL CLASS'!G452","v":0},{"$f":"'FR-16(7)(v)-3 PROD Demand'!G452+'FR-16(7)(v)-7 TRANS Demand'!G452+'FR-16(7)(v)-11 DIST Demand'!G452","v":0},{"$f":"'FR-16(7)(v)-4 PROD Energy'!G452+'FR-16(7)(v)-8 TRANS Energy'!G452+'FR-16(7)(v)-12 DIST Energy'!G452","v":0},{"$f":"'FR-16(7)(v)-5 PROD Cust'!G452+'FR-16(7)(v)-9 TRANS Cust'!G452+'FR-16(7)(v)-13 DIST Cust'!G452","v":0},0,0]
[9,null,{"$f":"'FR-16(7)(v)-1 Functional'!C453","v":"  TOTAL ENERGY RELATED"},null,null,{"$f":"SUM(F447:F452)","v":53405371},0,53405371,0,53405371,0]
[10]
[11,"DEMAND RELATED & OTHER PROD O&M"]
[12,null,{"$f":"'FR-16(7)(v)-1 Functional'!C456","v":"OTHER PRODUCTION EXPENSES - OPERATIONS"},{"$f":"'FR-16(7)(v)-1 Functional'!D456","v":"K201"},null,{"$f":"'FR-16(7)(v)-14 TOTAL CLASS'!G456","v":0},{"$f":"'FR-16(7)(v)-3 PROD Demand'!G456+'FR-16(7)(v)-7 TRANS Demand'!G456+'FR-16(7)(v)-11 DIST Demand'!G456","v":0},{"$f":"'FR-16(7)(v)-4 PROD Energy'!G456+'FR-16(7)(v)-8 TRANS Energy'!G456+'FR-16(7)(v)-12 DIST Energy'!G456","v":0},{"$f":"'FR-16(7)(v)-5 PROD Cust'!G456+'FR-16(7)(v)-9 TRANS Cust'!G456+'FR-16(7)(v)-13 DIST Cust'!G456","v":0},{"$f":"SUM(G456:I456)","v":0},{"$f":"F456-J456","v":0}]
[13,null,{"$f":"'FR-16(7)(v)-1 Functional'!C457","v":"  TOTAL DEMAND REL & OTH PROD O&M "},null,null,{"$f":"SUM(F455:F456)","v":0},0,0,0,0,0]
[14]
[15,"TOTAL PRODUCTION O&M",null,null," ",{"$f":"F457+F453","v":53405371},0,53405371,0,53405371,0]
[16]
[17,"TRANSMISSION O & M"]
[18,null,{"$f":"'FR-16(7)(v)-1 Functional'!C462","v":"TRANSFORMER LEASE PAYMENTS"},{"$f":"'FR-16(7)(v)-1 Functional'!D462","v":"K202"},null,{"$f":"'FR-16(7)(v)-14 TOTAL CLASS'!G462","v":0},{"$f":"'FR-16(7)(v)-3 PROD Demand'!G462+'FR-16(7)(v)-7 TRANS Demand'!G462+'FR-16(7)(v)-11 DIST Demand'!G462","v":0},{"$f":"'FR-16(7)(v)-4 PROD Energy'!G462+'FR-16(7)(v)-8 TRANS Energy'!G462+'FR-16(7)(v)-12 DIST Energy'!G462","v":0},{"$f":"'FR-16(7)(v)-5 PROD Cust'!G462+'FR-16(7)(v)-9 TRANS Cust'!G462+'FR-16(7)(v)-13 DIST Cust'!G462","v":0},{"$f":"SUM(G462:I462)","v":0},{"$f":"F462-J462","v":0}]
[19,null,{"$f":"'FR-16(7)(v)-1 Functional'!C463","v":"OTHER TRANSMISSION"},{"$f":"'FR-16(7)(v)-1 Functional'!D463","v":"K202"},null,{"$f":"'FR-16(7)(v)-14 TOTAL CLASS'!G463","v":10436424},{"$f":"'FR-16(7)(v)-3 PROD Demand'!G463+'FR-16(7)(v)-7 TRANS Demand'!G463+'FR-16(7)(v)-11 DIST Demand'!G463","v":10436424},{"$f":"'FR-16(7)(v)-4 PROD Energy'!G463+'FR-16(7)(v)-8 TRANS Energy'!G463+'FR-16(7)(v)-12 DIST Energy'!G463","v":0},{"$f":"'FR-16(7)(v)-5 PROD Cust'!G463+'FR-16(7)(v)-9 TRANS Cust'!G463+'FR-16(7)(v)-13 DIST Cust'!G463","v":0},{"$f":"SUM(G463:I463)","v":10436424},{"$f":"F463-J463","v":0}]
[20,null,{"$f":"'FR-16(7)(v)-1 Functional'!C464","v":"MISCELLANEOUS ADJUSTMENTS"},{"$f":"'FR-16(7)(v)-1 Functional'!D464","v":"K202"},null,{"$f":"'FR-16(7)(v)-14 TOTAL CLASS'!G464","v":0},{"$f":"'FR-16(7)(v)-3 PROD Demand'!G464+'FR-16(7)(v)-7 TRANS Demand'!G464+'FR-16(7)(v)-11 DIST Demand'!G464","v":0},{"$f":"'FR-16(7)(v)-4 PROD Energy'!G464+'FR-16(7)(v)-8 TRANS Energy'!G464+'FR-16(7)(v)-12 DIST Energy'!G464","v":0},{"$f":"'FR-16(7)(v)-5 PROD Cust'!G464+'FR-16(7)(v)-9 TRANS Cust'!G464+'FR-16(7)(v)-13 DIST Cust'!G464","v":0},{"$f":"SUM(G464:I464)","v":0},{"$f":"F464-J464","v":0}]
[21,null,{"$f":"'FR-16(7)(v)-1 Functional'!C465","v":"NETWORK SERVICE RATES ADJUSTMENT"},{"$f":"'FR-16(7)(v)-1 Functional'!D465","v":"K202"},null,{"$f":"'FR-16(7)(v)-14 TOTAL CLASS'!G465","v":0},{"$f":"'FR-16(7)(v)-3 PROD Demand'!G465+'FR-16(7)(v)-7 TRANS Demand'!G465+'FR-16(7)(v)-11 DIST Demand'!G465","v":0},{"$f":"'FR-16(7)(v)-4 PROD Energy'!G465+'FR-16(7)(v)-8 TRANS Energy'!G465+'FR-16(7)(v)-12 DIST Energy'!G465","v":0},{"$f":"'FR-16(7)(v)-5 PROD Cust'!G465+'FR-16(7)(v)-9 TRANS Cust'!G465+'FR-16(7)(v)-13 DIST Cust'!G465","v":0},{"$f":"SUM(G465:I465)","v":0},{"$f":"F465-J465","v":0}]
[22,null,{"$f":"'FR-16(7)(v)-1 Functional'!C466","v":"  TOTAL TRANSMISSION O & M"},null,null,{"$f":"SUM(F462:F465)","v":10436424},10436424,0,0,10436424,0]
[23]
[24,"REGIONAL MARKET O&M"]
[25,null,{"$f":"'FR-16(7)(v)-1 Functional'!C469","v":"MARKET FACILITATION - MONITORING & COMPLIANCE"},{"$f":"'FR-16(7)(v)-1 Functional'!D469","v":"K202"},null,{"$f":"'FR-16(7)(v)-14 TOTAL CLASS'!G469","v":823509},{"$f":"'FR-16(7)(v)-3 PROD Demand'!G469+'FR-16(7)(v)-7 TRANS Demand'!G469+'FR-16(7)(v)-11 DIST Demand'!G469","v":823509},{"$f":"'FR-16(7)(v)-4 PROD Energy'!G469+'FR-16(7)(v)-8 TRANS Energy'!G469+'FR-16(7)(v)-12 DIST Energy'!G469","v":0},{"$f":"'FR-16(7)(v)-5 PROD Cust'!G469+'FR-16(7)(v)-9 TRANS Cust'!G469+'FR-16(7)(v)-13 DIST Cust'!G469","v":0},{"$f":"SUM(G469:I469)","v":823509},{"$f":"F469-J469","v":0}]
[26,null,{"$f":"'FR-16(7)(v)-1 Functional'!C470","v":"TOTAL REGIONAL MARKET O&M"},null,null,{"$f":"SUM(F468:F469)","v":823509},823509,0,0,823509,0]
[27]
[28,"DISTRIBUTION O & M"]
[29,null,{"$f":"'FR-16(7)(v)-1 Functional'!C473","v":"SUBSTATIONS"},{"$f":"'FR-16(7)(v)-1 Functional'!D473","v":"K201"},null,{"$f":"'FR-16(7)(v)-14 TOTAL CLASS'!G473","v":279993},{"$f":"'FR-16(7)(v)-3 PROD Demand'!G473+'FR-16(7)(v)-7 TRANS Demand'!G473+'FR-16(7)(v)-11 DIST Demand'!G473","v":279993},{"$f":"'FR-16(7)(v)-4 PROD Energy'!G473+'FR-16(7)(v)-8 TRANS Energy'!G473+'FR-16(7)(v)-12 DIST Energy'!G473","v":0},{"$f":"'FR-16(7)(v)-5 PROD Cust'!G473+'FR-16(7)(v)-9 TRANS Cust'!G473+'FR-16(7)(v)-13 DIST Cust'!G473","v":0},{"$f":"SUM(G473:I473)","v":279993},{"$f":"F473-J473","v":0}]
[30,null,{"$f":"'FR-16(7)(v)-1 Functional'!C474","v":"POLES, TOWERS & FIXTURES"},{"$f":"'FR-16(7)(v)-1 Functional'!D474","v":"PL49"},null,{"$f":"'FR-16(7)(v)-14 TOTAL CLASS'!G474","v":0},{"$f":"'FR-16(7)(v)-3 PROD Demand'!G474+'FR-16(7)(v)-7 TRANS Demand'!G474+'FR-16(7)(v)-11 DIST Demand'!G474","v":0},{"$f":"'FR-16(7)(v)-4 PROD Energy'!G474+'FR-16(7)(v)-8 TRANS Energy'!G474+'FR-16(7)(v)-12 DIST Energy'!G474","v":0},{"$f":"'FR-16(7)(v)-5 PROD Cust'!G474+'FR-16(7)(v)-9 TRANS Cust'!G474+'FR-16(7)(v)-13 DIST Cust'!G474","v":0},0,0]
[31,null,{"$f":"'FR-16(7)(v)-1 Functional'!C475","v":"OVERHEAD LINES - PRIMARY / DEMAND"},{"$f":"'FR-16(7)(v)-1 Functional'!D475","v":"K205"},null,{"$f":"'FR-16(7)(v)-14 TOTAL CLASS'!G475","v":2427592},{"$f":"'FR-16(7)(v)-3 PROD Demand'!G475+'FR-16(7)(v)-7 TRANS Demand'!G475+'FR-16(7)(v)-11 DIST Demand'!G475","v":2427592},{"$f":"'FR-16(7)(v)-4 PROD Energy'!G475+'FR-16(7)(v)-8 TRANS Energy'!G475+'FR-16(7)(v)-12 DIST Energy'!G475","v":0},{"$f":"'FR-16(7)(v)-5 PROD Cust'!G475+'FR-16(7)(v)-9 TRANS Cust'!G475+'FR-16(7)(v)-13 DIST Cust'!G475","v":0},2427592,0]
[32,null,{"$f":"'FR-16(7)(v)-1 Functional'!C476","v":"OVERHEAD LINES - PRIMARY / CUSTOMER"},{"$f":"'FR-16(7)(v)-1 Functional'!D476","v":"K405"},null,{"$f":"'FR-16(7)(v)-14 TOTAL CLASS'!G476","v":1018682},{"$f":"'FR-16(7)(v)-3 PROD Demand'!G476+'FR-16(7)(v)-7 TRANS Demand'!G476+'FR-16(7)(v)-11 DIST Demand'!G476","v":0},{"$f":"'FR-16(7)(v)-4 PROD Energy'!G476+'FR-16(7)(v)-8 TRANS Energy'!G476+'FR-16(7)(v)-12 DIST Energy'!G476","v":0},{"$f":"'FR-16(7)(v)-5 PROD Cust'!G476+'FR-16(7)(v)-9 TRANS Cust'!G476+'FR-16(7)(v)-13 DIST Cust'!G476","v":1018682},{"$f":"SUM(G476:I476)","v":1018682},{"$f":"F476-J476","v":0}]
[33,null,{"$f":"'FR-16(7)(v)-1 Functional'!C477","v":"OVERHEAD LINES - SECONDARY / DEMAND"},{"$f":"'FR-16(7)(v)-1 Functional'!D477","v":"K206"},null,{"$f":"'FR-16(7)(v)-14 TOTAL CLASS'!G477","v":988487},{"$f":"'FR-16(7)(v)-3 PROD Demand'!G477+'FR-16(7)(v)-7 TRANS Demand'!G477+'FR-16(7)(v)-11 DIST Demand'!G477","v":988487},{"$f":"'FR-16(7)(v)-4 PROD Energy'!G477+'FR-16(7)(v)-8 TRANS Energy'!G477+'FR-16(7)(v)-12 DIST Energy'!G477","v":0},{"$f":"'FR-16(7)(v)-5 PROD Cust'!G477+'FR-16(7)(v)-9 TRANS Cust'!G477+'FR-16(7)(v)-13 DIST Cust'!G477","v":0},988487,0]
[34,null,{"$f":"'FR-16(7)(v)-1 Functional'!C478","v":"OVERHEAD LINES - SECONDARY / CUSTOMER"},{"$f":"'FR-16(7)(v)-1 Functional'!D478","v":"K405"},null,{"$f":"'FR-16(7)(v)-14 TOTAL CLASS'!G478","v":421969},{"$f":"'FR-16(7)(v)-3 PROD Demand'!G478+'FR-16(7)(v)-7 TRANS Demand'!G478+'FR-16(7)(v)-11 DIST Demand'!G478","v":0},{"$f":"'FR-16(7)(v)-4 PROD Energy'!G478+'FR-16(7)(v)-8 TRANS Energy'!G478+'FR-16(7)(v)-12 DIST Energy'!G478","v":0},{"$f":"'FR-16(7)(v)-5 PROD Cust'!G478+'FR-16(7)(v)-9 TRANS Cust'!G478+'FR-16(7)(v)-13 DIST Cust'!G478","v":421969},421969,0]
[35,null,{"$f":"'FR-16(7)(v)-1 Functional'!C479","v":"UNDERGROUND LINES - PRIMARY / DEMAND"},{"$f":"'FR-16(7)(v)-1 Functional'!D479","v":"K205"},null,{"$f":"'FR-16(7)(v)-14 TOTAL CLASS'!G479","v":316415},{"$f":"'FR-16(7)(v)-3 PROD Demand'!G479+'FR-16(7)(v)-7 TRANS Demand'!G479+'FR-16(7)(v)-11 DIST Demand'!G479","v":316415},{"$f":"'FR-16(7)(v)-4 PROD Energy'!G479+'FR-16(7)(v)-8 TRANS Energy'!G479+'FR-16(7)(v)-12 DIST Energy'!G479","v":0},{"$f":"'FR-16(7)(v)-5 PROD Cust'!G479+'FR-16(7)(v)-9 TRANS Cust'!G479+'FR-16(7)(v)-13 DIST Cust'!G479","v":0},316415,0]
[36,null,{"$f":"'FR-16(7)(v)-1 Functional'!C480","v":"UNDERGROUND LINES - PRIMARY / CUSTOMER"},{"$f":"'FR-16(7)(v)-1 Functional'!D480","v":"K405"},null,{"$f":"'FR-16(7)(v)-14 TOTAL CLASS'!G480","v":188814},{"$f":"'FR-16(7)(v)-3 PROD Demand'!G480+'FR-16(7)(v)-7 TRANS Demand'!G480+'FR-16(7)(v)-11 DIST Demand'!G480","v":0},{"$f":"'FR-16(7)(v)-4 PROD Energy'!G480+'FR-16(7)(v)-8 TRANS Energy'!G480+'FR-16(7)(v)-12 DIST Energy'!G480","v":0},{"$f":"'FR-16(7)(v)-5 PROD Cust'!G480+'FR-16(7)(v)-9 TRANS Cust'!G480+'FR-16(7)(v)-13 DIST Cust'!G480","v":188814},188814,0]
[37,null,{"$f":"'FR-16(7)(v)-1 Functional'!C481","v":"UNDERGROUND LINES - SECONDARY / DEMAND"},{"$f":"'FR-16(7)(v)-1 Functional'!D481","v":"K206"},null,{"$f":"'FR-16(7)(v)-14 TOTAL CLASS'!G481","v":54206},{"$f":"'FR-16(7)(v)-3 PROD Demand'!G481+'FR-16(7)(v)-7 TRANS Demand'!G481+'FR-16(7)(v)-11 DIST Demand'!G481","v":54206},{"$f":"'FR-16(7)(v)-4 PROD Energy'!G481+'FR-16(7)(v)-8 TRANS Energy'!G481+'FR-16(7)(v)-12 DIST Energy'!G481","v":0},{"$f":"'FR-16(7)(v)-5 PROD Cust'!G481+'FR-16(7)(v)-9 TRANS Cust'!G481+'FR-16(7)(v)-13 DIST Cust'!G481","v":0},54206,0]
[38,null,{"$f":"'FR-16(7)(v)-1 Functional'!C482","v":"UNDERGROUND LINES - SECONDARY / CUSTOMER"},{"$f":"'FR-16(7)(v)-1 Functional'!D482","v":"K405"},null,{"$f":"'FR-16(7)(v)-14 TOTAL CLASS'!G482","v":59045},{"$f":"'FR-16(7)(v)-3 PROD Demand'!G482+'FR-16(7)(v)-7 TRANS Demand'!G482+'FR-16(7)(v)-11 DIST Demand'!G482","v":0},{"$f":"'FR-16(7)(v)-4 PROD Energy'!G482+'FR-16(7)(v)-8 TRANS Energy'!G482+'FR-16(7)(v)-12 DIST Energy'!G482","v":0},{"$f":"'FR-16(7)(v)-5 PROD Cust'!G482+'FR-16(7)(v)-9 TRANS Cust'!G482+'FR-16(7)(v)-13 DIST Cust'!G482","v":59045},59045,0]
[39,null,{"$f":"'FR-16(7)(v)-1 Functional'!C483","v":"TRANSFORMERS DEMAND RELATED"},{"$f":"'FR-16(7)(v)-1 Functional'!D483","v":"K203"},null,{"$f":"'FR-16(7)(v)-14 TOTAL CLASS'!G483","v":161158},{"$f":"'FR-16(7)(v)-3 PROD Demand'!G483+'FR-16(7)(v)-7 TRANS Demand'!G483+'FR-16(7)(v)-11 DIST Demand'!G483","v":161158},{"$f":"'FR-16(7)(v)-4 PROD Energy'!G483+'FR-16(7)(v)-8 TRANS Energy'!G483+'FR-16(7)(v)-12 DIST Energy'!G483","v":0},{"$f":"'FR-16(7)(v)-5 PROD Cust'!G483+'FR-16(7)(v)-9 TRANS Cust'!G483+'FR-16(7)(v)-13 DIST Cust'!G483","v":0},161158,0]
[40,null,{"$f":"'FR-16(7)(v)-1 Functional'!C484","v":"TRANSFORMERS CUSTOMER RELATED"},{"$f":"'FR-16(7)(v)-1 Functional'!D484","v":"K401"},null,{"$f":"'FR-16(7)(v)-14 TOTAL CLASS'!G484","v":0},{"$f":"'FR-16(7)(v)-3 PROD Demand'!G484+'FR-16(7)(v)-7 TRANS Demand'!G484+'FR-16(7)(v)-11 DIST Demand'!G484","v":0},{"$f":"'FR-16(7)(v)-4 PROD Energy'!G484+'FR-16(7)(v)-8 TRANS Energy'!G484+'FR-16(7)(v)-12 DIST Energy'!G484","v":0},{"$f":"'FR-16(7)(v)-5 PROD Cust'!G484+'FR-16(7)(v)-9 TRANS Cust'!G484+'FR-16(7)(v)-13 DIST Cust'!G484","v":0},{"$f":"SUM(G484:I484)","v":0},{"$f":"F484-J484","v":0}]
[41,null,{"$f":"'FR-16(7)(v)-1 Functional'!C485","v":"OTHER MAINTENANCE"},{"$f":"'FR-16(7)(v)-1 Functional'!D485","v":"K203"},null,{"$f":"'FR-16(7)(v)-14 TOTAL CLASS'!G485","v":1124118},{"$f":"'FR-16(7)(v)-3 PROD Demand'!G485+'FR-16(7)(v)-7 TRANS Demand'!G485+'FR-16(7)(v)-11 DIST Demand'!G485","v":1124118},{"$f":"'FR-16(7)(v)-4 PROD Energy'!G485+'FR-16(7)(v)-8 TRANS Energy'!G485+'FR-16(7)(v)-12 DIST Energy'!G485","v":0},{"$f":"'FR-16(7)(v)-5 PROD Cust'!G485+'FR-16(7)(v)-9 TRANS Cust'!G485+'FR-16(7)(v)-13 DIST Cust'!G485","v":0},1124118,0]
[42,null,{"$f":"'FR-16(7)(v)-1 Functional'!C486","v":"LOAD DISPATCH"},{"$f":"'FR-16(7)(v)-1 Functional'!D486","v":"K215"},null,{"$f":"'FR-16(7)(v)-14 TOTAL CLASS'!G486","v":271732},{"$f":"'FR-16(7)(v)-3 PROD Demand'!G486+'FR-16(7)(v)-7 TRANS Demand'!G486+'FR-16(7)(v)-11 DIST Demand'!G486","v":271732},{"$f":"'FR-16(7)(v)-4 PROD Energy'!G486+'FR-16(7)(v)-8 TRANS Energy'!G486+'FR-16(7)(v)-12 DIST Energy'!G486","v":0},{"$f":"'FR-16(7)(v)-5 PROD Cust'!G486+'FR-16(7)(v)-9 TRANS Cust'!G486+'FR-16(7)(v)-13 DIST Cust'!G486","v":0},271732,0]
[43,null,{"$f":"'FR-16(7)(v)-1 Functional'!C487","v":"METERS"},{"$f":"'FR-16(7)(v)-1 Functional'!D487","v":"K407"},null,{"$f":"'FR-16(7)(v)-14 TOTAL CLASS'!G487","v":869842},{"$f":"'FR-16(7)(v)-3 PROD Demand'!G487+'FR-16(7)(v)-7 TRANS Demand'!G487+'FR-16(7)(v)-11 DIST Demand'!G487","v":0},{"$f":"'FR-16(7)(v)-4 PROD Energy'!G487+'FR-16(7)(v)-8 TRANS Energy'!G487+'FR-16(7)(v)-12 DIST Energy'!G487","v":0},{"$f":"'FR-16(7)(v)-5 PROD Cust'!G487+'FR-16(7)(v)-9 TRANS Cust'!G487+'FR-16(7)(v)-13 DIST Cust'!G487","v":869842},869842,0]
[44,null,{"$f":"'FR-16(7)(v)-1 Functional'!C488","v":"STREET LIGHTING AND SIGNAL SYSTEMS"},{"$f":"'FR-16(7)(v)-1 Functional'!D488","v":"K401"},null,{"$f":"'FR-16(7)(v)-14 TOTAL CLASS'!G488","v":0},{"$f":"'FR-16(7)(v)-3 PROD Demand'!G488+'FR-16(7)(v)-7 TRANS Demand'!G488+'FR-16(7)(v)-11 DIST Demand'!G488","v":0},{"$f":"'FR-16(7)(v)-4 PROD Energy'!G488+'FR-16(7)(v)-8 TRANS Energy'!G488+'FR-16(7)(v)-12 DIST Energy'!G488","v":0},{"$f":"'FR-16(7)(v)-5 PROD Cust'!G488+'FR-16(7)(v)-9 TRANS Cust'!G488+'FR-16(7)(v)-13 DIST Cust'!G488","v":0},0,0]
[45,null,{"$f":"'FR-16(7)(v)-1 Functional'!C489","v":"OTHER OPERATIONS"},{"$f":"'FR-16(7)(v)-1 Functional'!D489","v":"K203"},null,{"$f":"'FR-16(7)(v)-14 TOTAL CLASS'!G489","v":429259},{"$f":"'FR-16(7)(v)-3 PROD Demand'!G489+'FR-16(7)(v)-7 TRANS Demand'!G489+'FR-16(7)(v)-11 DIST Demand'!G489","v":429259},{"$f":"'FR-16(7)(v)-4 PROD Energy'!G489+'FR-16(7)(v)-8 TRANS Energy'!G489+'FR-16(7)(v)-12 DIST Energy'!G489","v":0},{"$f":"'FR-16(7)(v)-5 PROD Cust'!G489+'FR-16(7)(v)-9 TRANS Cust'!G489+'FR-16(7)(v)-13 DIST Cust'!G489","v":0},429259,0]
[46,null,{"$f":"'FR-16(7)(v)-1 Functional'!C490","v":"MISCELLANEOUS EXPENSES ADJUSTMENT"},{"$f":"'FR-16(7)(v)-1 Functional'!D490","v":"K203"},null,{"$f":"'FR-16(7)(v)-14 TOTAL CLASS'!G490","v":1322934},{"$f":"'FR-16(7)(v)-3 PROD Demand'!G490+'FR-16(7)(v)-7 TRANS Demand'!G490+'FR-16(7)(v)-11 DIST Demand'!G490","v":1322934},{"$f":"'FR-16(7)(v)-4 PROD Energy'!G490+'FR-16(7)(v)-8 TRANS Energy'!G490+'FR-16(7)(v)-12 DIST Energy'!G490","v":0},{"$f":"'FR-16(7)(v)-5 PROD Cust'!G490+'FR-16(7)(v)-9 TRANS Cust'!G490+'FR-16(7)(v)-13 DIST Cust'!G490","v":0},1322934,0]
[47,null,{"$f":"'FR-16(7)(v)-1 Functional'!C491","v":"AFFILIATED COMPANY RENTS ADJUSTMENT"},{"$f":"'FR-16(7)(v)-1 Functional'!D491","v":"D249"},null,{"$f":"'FR-16(7)(v)-14 TOTAL CLASS'!G491","v":0},{"$f":"'FR-16(7)(v)-3 PROD Demand'!G491+'FR-16(7)(v)-7 TRANS Demand'!G491+'FR-16(7)(v)-11 DIST Demand'!G491","v":0},{"$f":"'FR-16(7)(v)-4 PROD Energy'!G491+'FR-16(7)(v)-8 TRANS Energy'!G491+'FR-16(7)(v)-12 DIST Energy'!G491","v":0},{"$f":"'FR-16(7)(v)-5 PROD Cust'!G491+'FR-16(7)(v)-9 TRANS Cust'!G491+'FR-16(7)(v)-13 DIST Cust'!G491","v":0},0,0]
[48,null,{"$f":"'FR-16(7)(v)-1 Functional'!C492","v":"  TOTAL DISTRIBUTION O & M"},null," ",{"$f":"SUM(F472:F491)","v":9934246},7375894,0,2558352,9934246,0]
[49,null," "]
[50,"CUSTOMER ACCOUNTING",null,null,null," "]
[51,null,{"$f":"'FR-16(7)(v)-1 Functional'!C495","v":"CUSTOMER ACCOUNTING EXPENSE"},{"$f":"'FR-16(7)(v)-1 Functional'!D495","v":"K409"},null,{"$f":"'FR-16(7)(v)-14 TOTAL CLASS'!G495","v":3185118},{"$f":"'FR-16(7)(v)-3 PROD Demand'!G495+'FR-16(7)(v)-7 TRANS Demand'!G495+'FR-16(7)(v)-11 DIST Demand'!G495","v":0},{"$f":"'FR-16(7)(v)-4 PROD Energy'!G495+'FR-16(7)(v)-8 TRANS Energy'!G495+'FR-16(7)(v)-12 DIST Energy'!G495","v":0},{"$f":"'FR-16(7)(v)-5 PROD Cust'!G495+'FR-16(7)(v)-9 TRANS Cust'!G495+'FR-16(7)(v)-13 DIST Cust'!G495","v":3185118},{"$f":"SUM(G495:I495)","v":3185118},{"$f":"F495-J495","v":0}]
[52,null,{"$f":"'FR-16(7)(v)-1 Functional'!C496","v":"UNCOLLECTIBLE EXP"},{"$f":"'FR-16(7)(v)-1 Functional'!D496","v":"K411"},null,{"$f":"'FR-16(7)(v)-14 TOTAL CLASS'!G496","v":1416778},{"$f":"'FR-16(7)(v)-3 PROD Demand'!G496+'FR-16(7)(v)-7 TRANS Demand'!G496+'FR-16(7)(v)-11 DIST Demand'!G496","v":0},{"$f":"'FR-16(7)(v)-4 PROD Energy'!G496+'FR-16(7)(v)-8 TRANS Energy'!G496+'FR-16(7)(v)-12 DIST Energy'!G496","v":0},{"$f":"'FR-16(7)(v)-5 PROD Cust'!G496+'FR-16(7)(v)-9 TRANS Cust'!G496+'FR-16(7)(v)-13 DIST Cust'!G496","v":1416778},1416778,0]
[53,null,{"$f":"'FR-16(7)(v)-1 Functional'!C497","v":"METER READING"},{"$f":"'FR-16(7)(v)-1 Functional'!D497","v":"K407"},null,{"$f":"'FR-16(7)(v)-14 TOTAL CLASS'!G497","v":0},{"$f":"'FR-16(7)(v)-3 PROD Demand'!G497+'FR-16(7)(v)-7 TRANS Demand'!G497+'FR-16(7)(v)-11 DIST Demand'!G497","v":0},{"$f":"'FR-16(7)(v)-4 PROD Energy'!G497+'FR-16(7)(v)-8 TRANS Energy'!G497+'FR-16(7)(v)-12 DIST Energy'!G497","v":0},{"$f":"'FR-16(7)(v)-5 PROD Cust'!G497+'FR-16(7)(v)-9 TRANS Cust'!G497+'FR-16(7)(v)-13 DIST Cust'!G497","v":0},0,0]
[54,null,{"$f":"'FR-16(7)(v)-1 Functional'!C498","v":"UNCOLLECTIBLE EXP ADJUSTMENT"},{"$f":"'FR-16(7)(v)-1 Functional'!D498","v":"K411"},null,{"$f":"'FR-16(7)(v)-14 TOTAL CLASS'!G498","v":-2004140},{"$f":"'FR-16(7)(v)-3 PROD Demand'!G498+'FR-16(7)(v)-7 TRANS Demand'!G498+'FR-16(7)(v)-11 DIST Demand'!G498","v":0},{"$f":"'FR-16(7)(v)-4 PROD Energy'!G498+'FR-16(7)(v)-8 TRANS Energy'!G498+'FR-16(7)(v)-12 DIST Energy'!G498","v":0},{"$f":"'FR-16(7)(v)-5 PROD Cust'!G498+'FR-16(7)(v)-9 TRANS Cust'!G498+'FR-16(7)(v)-13 DIST Cust'!G498","v":-2004140},-2004140,0]
[55,null,{"$f":"'FR-16(7)(v)-1 Functional'!C499","v":"CREDIT CARD FEES"},{"$f":"'FR-16(7)(v)-1 Functional'!D499","v":"K407"},null,{"$f":"'FR-16(7)(v)-14 TOTAL CLASS'!G499","v":398492},{"$f":"'FR-16(7)(v)-3 PROD Demand'!G499+'FR-16(7)(v)-7 TRANS Demand'!G499+'FR-16(7)(v)-11 DIST Demand'!G499","v":0},{"$f":"'FR-16(7)(v)-4 PROD Energy'!G499+'FR-16(7)(v)-8 TRANS Energy'!G499+'FR-16(7)(v)-12 DIST Energy'!G499","v":0},{"$f":"'FR-16(7)(v)-5 PROD Cust'!G499+'FR-16(7)(v)-9 TRANS Cust'!G499+'FR-16(7)(v)-13 DIST Cust'!G499","v":398492},398492,0]
[56,null,{"$f":"'FR-16(7)(v)-1 Functional'!C500","v":"ELIMINATE REV & EXP - DSM RIDER"},{"$f":"'FR-16(7)(v)-1 Functional'!D500","v":"K405"},null,{"$f":"'FR-16(7)(v)-14 TOTAL CLASS'!G500","v":0},{"$f":"'FR-16(7)(v)-3 PROD Demand'!G500+'FR-16(7)(v)-7 TRANS Demand'!G500+'FR-16(7)(v)-11 DIST Demand'!G500","v":0},{"$f":"'FR-16(7)(v)-4 PROD Energy'!G500+'FR-16(7)(v)-8 TRANS Energy'!G500+'FR-16(7)(v)-12 DIST Energy'!G500","v":0},{"$f":"'FR-16(7)(v)-5 PROD Cust'!G500+'FR-16(7)(v)-9 TRANS Cust'!G500+'FR-16(7)(v)-13 DIST Cust'!G500","v":0},0,0]
[57,null,{"$f":"'FR-16(7)(v)-1 Functional'!C501","v":"SALE OF A/R"},{"$f":"'FR-16(7)(v)-1 Functional'!D501","v":"K411"},null,{"$f":"'FR-16(7)(v)-14 TOTAL CLASS'!G501","v":394553},{"$f":"'FR-16(7)(v)-3 PROD Demand'!G501+'FR-16(7)(v)-7 TRANS Demand'!G501+'FR-16(7)(v)-11 DIST Demand'!G501","v":0},{"$f":"'FR-16(7)(v)-4 PROD Energy'!G501+'FR-16(7)(v)-8 TRANS Energy'!G501+'FR-16(7)(v)-12 DIST Energy'!G501","v":0},{"$f":"'FR-16(7)(v)-5 PROD Cust'!G501+'FR-16(7)(v)-9 TRANS Cust'!G501+'FR-16(7)(v)-13 DIST Cust'!G501","v":394553},394553,0]
[58,null,{"$f":"'FR-16(7)(v)-1 Functional'!C502","v":"ELIMINATE MISC EXPENSE"},{"$f":"'FR-16(7)(v)-1 Functional'!D502","v":"K405"},null,{"$f":"'FR-16(7)(v)-14 TOTAL CLASS'!G502","v":-1075},{"$f":"'FR-16(7)(v)-3 PROD Demand'!G502+'FR-16(7)(v)-7 TRANS Demand'!G502+'FR-16(7)(v)-11 DIST Demand'!G502","v":0},{"$f":"'FR-16(7)(v)-4 PROD Energy'!G502+'FR-16(7)(v)-8 TRANS Energy'!G502+'FR-16(7)(v)-12 DIST Energy'!G502","v":0},{"$f":"'FR-16(7)(v)-5 PROD Cust'!G502+'FR-16(7)(v)-9 TRANS Cust'!G502+'FR-16(7)(v)-13 DIST Cust'!G502","v":-1075},-1075,0]
[59,null,{"$f":"'FR-16(7)(v)-1 Functional'!C503","v":"  TOTAL CUSTOMER ACCT EXPENSE"},null," ",{"$f":"SUM(F494:F502)","v":3389726},0,0,3389726,3389726,0]
[]
[{"$f":"co_name","v":"DUKE ENERGY KENTUCKY, INC."},null,null,null,null,null,null,null,null,{"$f":"J1","v":"FR-16(7)(v)-15"}]
[{"$f":"$A$2","v":"RESIDENTIAL CLASSIFIED - ELECTRIC COST OF SERVICE"},null,null,null,null,null,null,null,null,{"$f":"J2","v":"WITNESS RESPONSIBLE:"}]
[{"$f":"case_name","v":"CASE NO: 2019-00271"},null,null,null,null,null,null,null,null,{"$f":"Witness","v":"JAMES E. ZIOLKOWSKI"}]
[{"$f":"data_filing","v":"DATA: 12 MONTHS ACTUAL  & 0 MONTHS ESTIMATED"},null,null,null,null,null,null,null,null,{"$f":"\"PAGE \"&Pages2-6&\" OF \"&Pages2","v":"PAGE 9 OF 15"}]
[{"$f":"type","v":"TYPE OF FILING: \"X\" ORIGINAL   UPDATED    REVISED  "}]
[]
[]
["LINE",null,null,null,null,"TOTAL","CLASSIFIED",null,null,"TOTAL","ALL"]
["NO.","O&M EXPENSES",null,"ALLO",null,{"$f":"$F$9","v":"RESIDENTIAL"},{"$f":"G9","v":"DEMAND"},"ENERGY","CUSTOMER","AT ISSUE","OTHER"]
[null,null,"Schedule 6.1",null,null,null,3,4,5]
[1,"CUSTOMER SERVICE & INFORMATION"]
[2,null,{"$f":"'FR-16(7)(v)-1 Functional'!C516","v":"TOTAL CUST SERVICE & INFO"},{"$f":"'FR-16(7)(v)-1 Functional'!D516","v":"K405"},null,{"$f":"'FR-16(7)(v)-14 TOTAL CLASS'!G516","v":545555},{"$f":"'FR-16(7)(v)-3 PROD Demand'!G516+'FR-16(7)(v)-7 TRANS Demand'!G516+'FR-16(7)(v)-11 DIST Demand'!G516","v":0},{"$f":"'FR-16(7)(v)-4 PROD Energy'!G516+'FR-16(7)(v)-8 TRANS Energy'!G516+'FR-16(7)(v)-12 DIST Energy'!G516","v":0},{"$f":"'FR-16(7)(v)-5 PROD Cust'!G516+'FR-16(7)(v)-9 TRANS Cust'!G516+'FR-16(7)(v)-13 DIST Cust'!G516","v":545555},{"$f":"SUM(G516:I516)","v":545555},{"$f":"F516-J516","v":0}]
[3,null,{"$f":"'FR-16(7)(v)-1 Functional'!C517","v":"INFORMATIONAL & INSTRUCTIONAL ADV"},{"$f":"'FR-16(7)(v)-1 Functional'!D517","v":"K405"},null,{"$f":"'FR-16(7)(v)-14 TOTAL CLASS'!G517","v":0},{"$f":"'FR-16(7)(v)-3 PROD Demand'!G517+'FR-16(7)(v)-7 TRANS Demand'!G517+'FR-16(7)(v)-11 DIST Demand'!G517","v":0},{"$f":"'FR-16(7)(v)-4 PROD Energy'!G517+'FR-16(7)(v)-8 TRANS Energy'!G517+'FR-16(7)(v)-12 DIST Energy'!G517","v":0},{"$f":"'FR-16(7)(v)-5 PROD Cust'!G517+'FR-16(7)(v)-9 TRANS Cust'!G517+'FR-16(7)(v)-13 DIST Cust'!G517","v":0},{"$f":"SUM(G517:I517)","v":0},{"$f":"F517-J517","v":0}]
[4,null,{"$f":"'FR-16(7)(v)-1 Functional'!C518","v":"TOTAL CUSTOMER SERV. & INFO."},null," ",{"$f":"SUM(F516:F517)","v":545555},0,0,545555,545555,0]
[5]
[6,"SALES"]
[7,null,{"$f":"'FR-16(7)(v)-1 Functional'!C521","v":"SALES EXPENSE"},{"$f":"'FR-16(7)(v)-1 Functional'!D521","v":"K405"}," ",{"$f":"'FR-16(7)(v)-14 TOTAL CLASS'!G521","v":1350329},{"$f":"'FR-16(7)(v)-3 PROD Demand'!G521+'FR-16(7)(v)-7 TRANS Demand'!G521+'FR-16(7)(v)-11 DIST Demand'!G521","v":0},{"$f":"'FR-16(7)(v)-4 PROD Energy'!G521+'FR-16(7)(v)-8 TRANS Energy'!G521+'FR-16(7)(v)-12 DIST Energy'!G521","v":0},{"$f":"'FR-16(7)(v)-5 PROD Cust'!G521+'FR-16(7)(v)-9 TRANS Cust'!G521+'FR-16(7)(v)-13 DIST Cust'!G521","v":1350329},{"$f":"SUM(G521:I521)","v":1350329},{"$f":"F521-J521","v":0}]
[8,null,{"$f":"'FR-16(7)(v)-1 Functional'!C522","v":"TOTAL SALES EXPENSE"},null," ",{"$f":"SUM(F520:F521)","v":1350329},0,0,1350329,1350329,0]
[9]
[10,"ADMINISTRATIVE & GENERAL "]
[11,null,{"$f":"'FR-16(7)(v)-1 Functional'!C525","v":"PRODUCTION - DEMAND RELATED"},{"$f":"'FR-16(7)(v)-1 Functional'!D525","v":"P349"},null,{"$f":"'FR-16(7)(v)-14 TOTAL CLASS'!G525","v":9286338},{"$f":"'FR-16(7)(v)-3 PROD Demand'!G525+'FR-16(7)(v)-7 TRANS Demand'!G525+'FR-16(7)(v)-11 DIST Demand'!G525","v":9286338},{"$f":"'FR-16(7)(v)-4 PROD Energy'!G525+'FR-16(7)(v)-8 TRANS Energy'!G525+'FR-16(7)(v)-12 DIST Energy'!G525","v":0},{"$f":"'FR-16(7)(v)-5 PROD Cust'!G525+'FR-16(7)(v)-9 TRANS Cust'!G525+'FR-16(7)(v)-13 DIST Cust'!G525","v":0},{"$f":"SUM(G525:I525)","v":9286338},{"$f":"F525-J525","v":0}]
[12,null,{"$f":"'FR-16(7)(v)-1 Functional'!C526","v":"PRODUCTION - ENERGY RELATED"},{"$f":"'FR-16(7)(v)-1 Functional'!D526","v":"E349"},null,{"$f":"'FR-16(7)(v)-14 TOTAL CLASS'!G526","v":4108005},{"$f":"'FR-16(7)(v)-3 PROD Demand'!G526+'FR-16(7)(v)-7 TRANS Demand'!G526+'FR-16(7)(v)-11 DIST Demand'!G526","v":0},{"$f":"'FR-16(7)(v)-4 PROD Energy'!G526+'FR-16(7)(v)-8 TRANS Energy'!G526+'FR-16(7)(v)-12 DIST Energy'!G526","v":4108005},{"$f":"'FR-16(7)(v)-5 PROD Cust'!G526+'FR-16(7)(v)-9 TRANS Cust'!G526+'FR-16(7)(v)-13 DIST Cust'!G526","v":0},4108005,0]
[13,null,"TRANSMISSION",{"$f":"'FR-16(7)(v)-1 Functional'!D527","v":"T349"},null,{"$f":"'FR-16(7)(v)-14 TOTAL CLASS'!G527","v":661495},{"$f":"'FR-16(7)(v)-3 PROD Demand'!G527+'FR-16(7)(v)-7 TRANS Demand'!G527+'FR-16(7)(v)-11 DIST Demand'!G527","v":661495},{"$f":"'FR-16(7)(v)-4 PROD Energy'!G527+'FR-16(7)(v)-8 TRANS Energy'!G527+'FR-16(7)(v)-12 DIST Energy'!G527","v":0},{"$f":"'FR-16(7)(v)-5 PROD Cust'!G527+'FR-16(7)(v)-9 TRANS Cust'!G527+'FR-16(7)(v)-13 DIST Cust'!G527","v":0},{"$f":"SUM(G527:I527)","v":661495},{"$f":"F527-J527","v":0}]
[14,null,{"$f":"'FR-16(7)(v)-1 Functional'!C528","v":"DISTRIBUTION"},{"$f":"'FR-16(7)(v)-1 Functional'!D528","v":"D349"},null,{"$f":"'FR-16(7)(v)-14 TOTAL CLASS'!G528","v":3345491},{"$f":"'FR-16(7)(v)-3 PROD Demand'!G528+'FR-16(7)(v)-7 TRANS Demand'!G528+'FR-16(7)(v)-11 DIST Demand'!G528","v":2483928},{"$f":"'FR-16(7)(v)-4 PROD Energy'!G528+'FR-16(7)(v)-8 TRANS Energy'!G528+'FR-16(7)(v)-12 DIST Energy'!G528","v":0},{"$f":"'FR-16(7)(v)-5 PROD Cust'!G528+'FR-16(7)(v)-9 TRANS Cust'!G528+'FR-16(7)(v)-13 DIST Cust'!G528","v":861563},3345491,0]
[15,null,{"$f":"'FR-16(7)(v)-1 Functional'!C529","v":"CUSTOMER ACCOUNTING"},{"$f":"'FR-16(7)(v)-1 Functional'!D529","v":"C319"},null,{"$f":"'FR-16(7)(v)-14 TOTAL CLASS'!G529","v":2996099},{"$f":"'FR-16(7)(v)-3 PROD Demand'!G529+'FR-16(7)(v)-7 TRANS Demand'!G529+'FR-16(7)(v)-11 DIST Demand'!G529","v":0},{"$f":"'FR-16(7)(v)-4 PROD Energy'!G529+'FR-16(7)(v)-8 TRANS Energy'!G529+'FR-16(7)(v)-12 DIST Energy'!G529","v":0},{"$f":"'FR-16(7)(v)-5 PROD Cust'!G529+'FR-16(7)(v)-9 TRANS Cust'!G529+'FR-16(7)(v)-13 DIST Cust'!G529","v":2996099},2996099,0]
[16,null,{"$f":"'FR-16(7)(v)-1 Functional'!C530","v":"CUSTOMER SERVICE & INFORMATION"},{"$f":"'FR-16(7)(v)-1 Functional'!D530","v":"C331"},null,{"$f":"'FR-16(7)(v)-14 TOTAL CLASS'!G530","v":216991},{"$f":"'FR-16(7)(v)-3 PROD Demand'!G530+'FR-16(7)(v)-7 TRANS Demand'!G530+'FR-16(7)(v)-11 DIST Demand'!G530","v":0},{"$f":"'FR-16(7)(v)-4 PROD Energy'!G530+'FR-16(7)(v)-8 TRANS Energy'!G530+'FR-16(7)(v)-12 DIST Energy'!G530","v":0},{"$f":"'FR-16(7)(v)-5 PROD Cust'!G530+'FR-16(7)(v)-9 TRANS Cust'!G530+'FR-16(7)(v)-13 DIST Cust'!G530","v":216991},216991,0]
[17,null,{"$f":"'FR-16(7)(v)-1 Functional'!C531","v":"SALES"},{"$f":"'FR-16(7)(v)-1 Functional'!D531","v":"S319"},null,{"$f":"'FR-16(7)(v)-14 TOTAL CLASS'!G531","v":0},{"$f":"'FR-16(7)(v)-3 PROD Demand'!G531+'FR-16(7)(v)-7 TRANS Demand'!G531+'FR-16(7)(v)-11 DIST Demand'!G531","v":0},{"$f":"'FR-16(7)(v)-4 PROD Energy'!G531+'FR-16(7)(v)-8 TRANS Energy'!G531+'FR-16(7)(v)-12 DIST Energy'!G531","v":0},{"$f":"'FR-16(7)(v)-5 PROD Cust'!G531+'FR-16(7)(v)-9 TRANS Cust'!G531+'FR-16(7)(v)-13 DIST Cust'!G531","v":0},0,0]
[18,null,{"$f":"'FR-16(7)(v)-1 Functional'!C532","v":"TOT ADMIN & GEN LESS REG EXP"}," ",null,{"$f":"SUM(F525:F531)","v":20614419},12431761,4108005,4074653,20614419,0]
[19,null,{"$f":"'FR-16(7)(v)-1 Functional'!C533","v":"RATE CASE EXPENSE ADJUSTMENT"},{"$f":"'FR-16(7)(v)-1 Functional'!D533","v":"A315"},null,{"$f":"'FR-16(7)(v)-14 TOTAL CLASS'!G533","v":88475},{"$f":"'FR-16(7)(v)-3 PROD Demand'!G533+'FR-16(7)(v)-7 TRANS Demand'!G533+'FR-16(7)(v)-11 DIST Demand'!G533","v":53358},{"$f":"'FR-16(7)(v)-4 PROD Energy'!G533+'FR-16(7)(v)-8 TRANS Energy'!G533+'FR-16(7)(v)-12 DIST Energy'!G533","v":17631},{"$f":"'FR-16(7)(v)-5 PROD Cust'!G533+'FR-16(7)(v)-9 TRANS Cust'!G533+'FR-16(7)(v)-13 DIST Cust'!G533","v":17486},{"$f":"SUM(G533:I533)","v":88475},{"$f":"F533-J533","v":0}]
[20,null,{"$f":"'FR-16(7)(v)-1 Functional'!C534","v":"ELIMINATE MISCELLANEOUS EXPENSES ADJUSTMENT"},{"$f":"'FR-16(7)(v)-1 Functional'!D534","v":"A315"},null,{"$f":"'FR-16(7)(v)-14 TOTAL CLASS'!G534","v":0},{"$f":"'FR-16(7)(v)-3 PROD Demand'!G534+'FR-16(7)(v)-7 TRANS Demand'!G534+'FR-16(7)(v)-11 DIST Demand'!G534","v":0},{"$f":"'FR-16(7)(v)-4 PROD Energy'!G534+'FR-16(7)(v)-8 TRANS Energy'!G534+'FR-16(7)(v)-12 DIST Energy'!G534","v":0},{"$f":"'FR-16(7)(v)-5 PROD Cust'!G534+'FR-16(7)(v)-9 TRANS Cust'!G534+'FR-16(7)(v)-13 DIST Cust'!G534","v":0},0,0]
[21,null,{"$f":"'FR-16(7)(v)-1 Functional'!C535","v":"RIDER ESM ELIMINATION"},{"$f":"'FR-16(7)(v)-1 Functional'!D535","v":"A315"},null,{"$f":"'FR-16(7)(v)-14 TOTAL CLASS'!G535","v":-6081293},{"$f":"'FR-16(7)(v)-3 PROD Demand'!G535+'FR-16(7)(v)-7 TRANS Demand'!G535+'FR-16(7)(v)-11 DIST Demand'!G535","v":-3667408},{"$f":"'FR-16(7)(v)-4 PROD Energy'!G535+'FR-16(7)(v)-8 TRANS Energy'!G535+'FR-16(7)(v)-12 DIST Energy'!G535","v":-1211881},{"$f":"'FR-16(7)(v)-5 PROD Cust'!G535+'FR-16(7)(v)-9 TRANS Cust'!G535+'FR-16(7)(v)-13 DIST Cust'!G535","v":-1202004},-6081293,0]
[22,null,{"$f":"'FR-16(7)(v)-1 Functional'!C536","v":"ELIMINATE DSM"},{"$f":"'FR-16(7)(v)-1 Functional'!D536","v":"A315"},null,{"$f":"'FR-16(7)(v)-14 TOTAL CLASS'!G536","v":-85174},{"$f":"'FR-16(7)(v)-3 PROD Demand'!G536+'FR-16(7)(v)-7 TRANS Demand'!G536+'FR-16(7)(v)-11 DIST Demand'!G536","v":-51367},{"$f":"'FR-16(7)(v)-4 PROD Energy'!G536+'FR-16(7)(v)-8 TRANS Energy'!G536+'FR-16(7)(v)-12 DIST Energy'!G536","v":-16974},{"$f":"'FR-16(7)(v)-5 PROD Cust'!G536+'FR-16(7)(v)-9 TRANS Cust'!G536+'FR-16(7)(v)-13 DIST Cust'!G536","v":-16833},-85174,0]
[23,null,{"$f":"'FR-16(7)(v)-1 Functional'!C537","v":"DSM DEFERRAL - ELECTRIC"},{"$f":"'FR-16(7)(v)-1 Functional'!D537","v":"A315"},null,{"$f":"'FR-16(7)(v)-14 TOTAL CLASS'!G537","v":0},{"$f":"'FR-16(7)(v)-3 PROD Demand'!G537+'FR-16(7)(v)-7 TRANS Demand'!G537+'FR-16(7)(v)-11 DIST Demand'!G537","v":0},{"$f":"'FR-16(7)(v)-4 PROD Energy'!G537+'FR-16(7)(v)-8 TRANS Energy'!G537+'FR-16(7)(v)-12 DIST Energy'!G537","v":0},{"$f":"'FR-16(7)(v)-5 PROD Cust'!G537+'FR-16(7)(v)-9 TRANS Cust'!G537+'FR-16(7)(v)-13 DIST Cust'!G537","v":0},0,0]
[24,null,{"$f":"'FR-16(7)(v)-1 Functional'!C538","v":"PENSION ADJUSTMENT"},{"$f":"'FR-16(7)(v)-1 Functional'!D538","v":"A315"},null,{"$f":"'FR-16(7)(v)-14 TOTAL CLASS'!G538","v":-371038},{"$f":"'FR-16(7)(v)-3 PROD Demand'!G538+'FR-16(7)(v)-7 TRANS Demand'!G538+'FR-16(7)(v)-11 DIST Demand'!G538","v":-223760},{"$f":"'FR-16(7)(v)-4 PROD Energy'!G538+'FR-16(7)(v)-8 TRANS Energy'!G538+'FR-16(7)(v)-12 DIST Energy'!G538","v":-73941},{"$f":"'FR-16(7)(v)-5 PROD Cust'!G538+'FR-16(7)(v)-9 TRANS Cust'!G538+'FR-16(7)(v)-13 DIST Cust'!G538","v":-73337},-371038,0]
[25,null,{"$f":"'FR-16(7)(v)-1 Functional'!C539","v":"ELIMINATE MISC EXPENSES"},{"$f":"'FR-16(7)(v)-1 Functional'!D539","v":"A315"},null,{"$f":"'FR-16(7)(v)-14 TOTAL CLASS'!G539","v":-357901},{"$f":"'FR-16(7)(v)-3 PROD Demand'!G539+'FR-16(7)(v)-7 TRANS Demand'!G539+'FR-16(7)(v)-11 DIST Demand'!G539","v":-215836},{"$f":"'FR-16(7)(v)-4 PROD Energy'!G539+'FR-16(7)(v)-8 TRANS Energy'!G539+'FR-16(7)(v)-12 DIST Energy'!G539","v":-71323},{"$f":"'FR-16(7)(v)-5 PROD Cust'!G539+'FR-16(7)(v)-9 TRANS Cust'!G539+'FR-16(7)(v)-13 DIST Cust'!G539","v":-70742},-357901,0]
[26,null,{"$f":"'FR-16(7)(v)-1 Functional'!C540","v":"ELIMINATE MERGER COSTS AND CREDITS"},{"$f":"'FR-16(7)(v)-1 Functional'!D540","v":"A315"},null,{"$f":"'FR-16(7)(v)-14 TOTAL CLASS'!G540","v":0},{"$f":"'FR-16(7)(v)-3 PROD Demand'!G540+'FR-16(7)(v)-7 TRANS Demand'!G540+'FR-16(7)(v)-11 DIST Demand'!G540","v":0},{"$f":"'FR-16(7)(v)-4 PROD Energy'!G540+'FR-16(7)(v)-8 TRANS Energy'!G540+'FR-16(7)(v)-12 DIST Energy'!G540","v":0},{"$f":"'FR-16(7)(v)-5 PROD Cust'!G540+'FR-16(7)(v)-9 TRANS Cust'!G540+'FR-16(7)(v)-13 DIST Cust'!G540","v":0},{"$f":"SUM(G540:I540)","v":0},{"$f":"F540-J540","v":0}]
[27,null,{"$f":"'FR-16(7)(v)-1 Functional'!C541","v":"ANNUALIZE KYPSC MAINT TAX"},{"$f":"'FR-16(7)(v)-1 Functional'!D541","v":"A315"},null,{"$f":"'FR-16(7)(v)-14 TOTAL CLASS'!G541","v":0},{"$f":"'FR-16(7)(v)-3 PROD Demand'!G541+'FR-16(7)(v)-7 TRANS Demand'!G541+'FR-16(7)(v)-11 DIST Demand'!G541","v":0},{"$f":"'FR-16(7)(v)-4 PROD Energy'!G541+'FR-16(7)(v)-8 TRANS Energy'!G541+'FR-16(7)(v)-12 DIST Energy'!G541","v":0},{"$f":"'FR-16(7)(v)-5 PROD Cust'!G541+'FR-16(7)(v)-9 TRANS Cust'!G541+'FR-16(7)(v)-13 DIST Cust'!G541","v":0},0,0]
[28,null,{"$f":"'FR-16(7)(v)-1 Functional'!C542","v":"REMOVE INCENTIVE COMP"},{"$f":"'FR-16(7)(v)-1 Functional'!D542","v":"A315"},null,{"$f":"'FR-16(7)(v)-14 TOTAL CLASS'!G542","v":-1033229},{"$f":"'FR-16(7)(v)-3 PROD Demand'!G542+'FR-16(7)(v)-7 TRANS Demand'!G542+'FR-16(7)(v)-11 DIST Demand'!G542","v":-623103},{"$f":"'FR-16(7)(v)-4 PROD Energy'!G542+'FR-16(7)(v)-8 TRANS Energy'!G542+'FR-16(7)(v)-12 DIST Energy'!G542","v":-205902},{"$f":"'FR-16(7)(v)-5 PROD Cust'!G542+'FR-16(7)(v)-9 TRANS Cust'!G542+'FR-16(7)(v)-13 DIST Cust'!G542","v":-204224},-1033229,0]
[29,null,{"$f":"'FR-16(7)(v)-1 Functional'!C543","v":"CREDIT CARD FEES"},{"$f":"'FR-16(7)(v)-1 Functional'!D543","v":"A315"},null,{"$f":"'FR-16(7)(v)-14 TOTAL CLASS'!G543","v":0},{"$f":"'FR-16(7)(v)-3 PROD Demand'!G543+'FR-16(7)(v)-7 TRANS Demand'!G543+'FR-16(7)(v)-11 DIST Demand'!G543","v":0},{"$f":"'FR-16(7)(v)-4 PROD Energy'!G543+'FR-16(7)(v)-8 TRANS Energy'!G543+'FR-16(7)(v)-12 DIST Energy'!G543","v":0},{"$f":"'FR-16(7)(v)-5 PROD Cust'!G543+'FR-16(7)(v)-9 TRANS Cust'!G543+'FR-16(7)(v)-13 DIST Cust'!G543","v":0},0,0]
[30,null,{"$f":"'FR-16(7)(v)-1 Functional'!C544","v":"ELIMINATE INCENTIVE COMPENSATION ADJUSTMENT"},{"$f":"'FR-16(7)(v)-1 Functional'!D544","v":"A315"},null,{"$f":"'FR-16(7)(v)-14 TOTAL CLASS'!G544","v":0},{"$f":"'FR-16(7)(v)-3 PROD Demand'!G544+'FR-16(7)(v)-7 TRANS Demand'!G544+'FR-16(7)(v)-11 DIST Demand'!G544","v":0},{"$f":"'FR-16(7)(v)-4 PROD Energy'!G544+'FR-16(7)(v)-8 TRANS Energy'!G544+'FR-16(7)(v)-12 DIST Energy'!G544","v":0},{"$f":"'FR-16(7)(v)-5 PROD Cust'!G544+'FR-16(7)(v)-9 TRANS Cust'!G544+'FR-16(7)(v)-13 DIST Cust'!G544","v":0},0,0]
[31,null,{"$f":"'FR-16(7)(v)-1 Functional'!C545","v":"AMORTIZATION OF DEFERRAL ASSET"},{"$f":"'FR-16(7)(v)-1 Functional'!D545","v":"A315"},null,{"$f":"'FR-16(7)(v)-14 TOTAL CLASS'!G545","v":0},{"$f":"'FR-16(7)(v)-3 PROD Demand'!G545+'FR-16(7)(v)-7 TRANS Demand'!G545+'FR-16(7)(v)-11 DIST Demand'!G545","v":0},{"$f":"'FR-16(7)(v)-4 PROD Energy'!G545+'FR-16(7)(v)-8 TRANS Energy'!G545+'FR-16(7)(v)-12 DIST Energy'!G545","v":0},{"$f":"'FR-16(7)(v)-5 PROD Cust'!G545+'FR-16(7)(v)-9 TRANS Cust'!G545+'FR-16(7)(v)-13 DIST Cust'!G545","v":0},0,0]
[32,null,{"$f":"'FR-16(7)(v)-1 Functional'!C546","v":"AMORTIZATION OF DEFERRED EXPENSES"},{"$f":"'FR-16(7)(v)-1 Functional'!D546","v":"A315"},null,{"$f":"'FR-16(7)(v)-14 TOTAL CLASS'!G546","v":65011},{"$f":"'FR-16(7)(v)-3 PROD Demand'!G546+'FR-16(7)(v)-7 TRANS Demand'!G546+'FR-16(7)(v)-11 DIST Demand'!G546","v":39206},{"$f":"'FR-16(7)(v)-4 PROD Energy'!G546+'FR-16(7)(v)-8 TRANS Energy'!G546+'FR-16(7)(v)-12 DIST Energy'!G546","v":12955},{"$f":"'FR-16(7)(v)-5 PROD Cust'!G546+'FR-16(7)(v)-9 TRANS Cust'!G546+'FR-16(7)(v)-13 DIST Cust'!G546","v":12850},65011,0]
[33,null,{"$f":"'FR-16(7)(v)-1 Functional'!C547","v":"TOTAL ADMIN. & GENERAL"},null," ",{"$f":"SUM(F532:F546)","v":12839270},7742851,2558570,2537849,12839270,0]
[34]
[35,null,{"$f":"'FR-16(7)(v)-1 Functional'!C549","v":"TOTAL O & M EXPENSE"},null,null,{"$f":"F547+F522+F518+F503+F492+F470+F466+F459","v":92724430},26378678,55963941,10381811,92724430,0]
[]
[{"$f":"co_name","v":"DUKE ENERGY KENTUCKY, INC."},null,null,null,null,null,null,null,null,{"$f":"J1","v":"FR-16(7)(v)-15"}]
[{"$f":"$A$2","v":"RESIDENTIAL CLASSIFIED - ELECTRIC COST OF SERVICE"},null,null,null,null,null,null,null,null,{"$f":"J2","v":"WITNESS RESPONSIBLE:"}]
[{"$f":"case_name","v":"CASE NO: 2019-00271"},null,null,null,null,null,null,null,null,{"$f":"Witness","v":"JAMES E. ZIOLKOWSKI"}]
[{"$f":"data_filing","v":"DATA: 12 MONTHS ACTUAL  & 0 MONTHS ESTIMATED"},null,null,null,null,null,null,null,null,{"$f":"\"PAGE \"&Pages2-5&\" OF \"&Pages2","v":"PAGE 10 OF 15"}]
[{"$f":"type","v":"TYPE OF FILING: \"X\" ORIGINAL   UPDATED    REVISED  "}]
[]
[]
["LINE",null,null,null,null,"TOTAL","CLASSIFIED",null,null,"TOTAL","ALL"]
["NO.","DEPRECIATION EXPENSE",null,"ALLO",null,{"$f":"$F$9","v":"RESIDENTIAL"},{"$f":"G9","v":"DEMAND"},"ENERGY","CUSTOMER","AT ISSUE","OTHER"]
[null,null,"Schedule 7",null,null,null,3,4,5]
[1,"PRODUCTION DEPRECIATION"]
[2,null,{"$f":"'FR-16(7)(v)-1 Functional'!C562","v":"PRODUCTION DEPRECIATION"},{"$f":"'FR-16(7)(v)-1 Functional'!D562","v":"P229"},null,{"$f":"'FR-16(7)(v)-14 TOTAL CLASS'!G562","v":16920137},{"$f":"'FR-16(7)(v)-3 PROD Demand'!G562+'FR-16(7)(v)-7 TRANS Demand'!G562+'FR-16(7)(v)-11 DIST Demand'!G562","v":16920137},{"$f":"'FR-16(7)(v)-4 PROD Energy'!G562+'FR-16(7)(v)-8 TRANS Energy'!G562+'FR-16(7)(v)-12 DIST Energy'!G562","v":0},{"$f":"'FR-16(7)(v)-5 PROD Cust'!G562+'FR-16(7)(v)-9 TRANS Cust'!G562+'FR-16(7)(v)-13 DIST Cust'!G562","v":0},{"$f":"SUM(G562:I562)","v":16920137},{"$f":"F562-J562","v":0}]
[3,null,{"$f":"'FR-16(7)(v)-1 Functional'!C563","v":"  TOTAL PRODUCTION DEPREC EXP."},null,null,{"$f":"SUM(F562:F562)","v":16920137},16920137,0,0,16920137,0]
[4]
[5,"TRANSMISSION DEPRECIATION"]
[6,null,"TRANSMISSION DEPRECIATION",{"$f":"'FR-16(7)(v)-1 Functional'!D566","v":"T229"},null,{"$f":"'FR-16(7)(v)-14 TOTAL CLASS'!G566","v":662418},{"$f":"'FR-16(7)(v)-3 PROD Demand'!G566+'FR-16(7)(v)-7 TRANS Demand'!G566+'FR-16(7)(v)-11 DIST Demand'!G566","v":662418},{"$f":"'FR-16(7)(v)-4 PROD Energy'!G566+'FR-16(7)(v)-8 TRANS Energy'!G566+'FR-16(7)(v)-12 DIST Energy'!G566","v":0},{"$f":"'FR-16(7)(v)-5 PROD Cust'!G566+'FR-16(7)(v)-9 TRANS Cust'!G566+'FR-16(7)(v)-13 DIST Cust'!G566","v":0},{"$f":"SUM(G566:I566)","v":662418},{"$f":"F566-J566","v":0}]
[7,null,{"$f":"'FR-16(7)(v)-1 Functional'!C567","v":"  TOTAL TRANSMISSION DEP. EXP."},null,null,{"$f":"SUM(F566:F566)","v":662418},662418,0,0,662418,0]
[8]
[9,"DISTRIBUTION DEPRECIATION"]
[10,null,{"$f":"'FR-16(7)(v)-1 Functional'!C570","v":"DISTRIBUTION DEPRECIATION"},{"$f":"'FR-16(7)(v)-1 Functional'!D570","v":"D249"},null,{"$f":"'FR-16(7)(v)-14 TOTAL CLASS'!G570","v":7754561},{"$f":"'FR-16(7)(v)-3 PROD Demand'!G570+'FR-16(7)(v)-7 TRANS Demand'!G570+'FR-16(7)(v)-11 DIST Demand'!G570","v":4906430},{"$f":"'FR-16(7)(v)-4 PROD Energy'!G570+'FR-16(7)(v)-8 TRANS Energy'!G570+'FR-16(7)(v)-12 DIST Energy'!G570","v":0},{"$f":"'FR-16(7)(v)-5 PROD Cust'!G570+'FR-16(7)(v)-9 TRANS Cust'!G570+'FR-16(7)(v)-13 DIST Cust'!G570","v":2848131},{"$f":"SUM(G570:I570)","v":7754561},{"$f":"F570-J570","v":0}]
[11,null,{"$f":"'FR-16(7)(v)-1 Functional'!C571","v":"  TOTAL DIST. DEPREC EXP."},null,null,{"$f":"SUM(F570:F570)","v":7754561},4906430,0,2848131,7754561,0]
[12,null,null,null,null," "]
[13,"GENERAL DEPRECIATION"]
[14,null,{"$f":"'FR-16(7)(v)-1 Functional'!C574","v":"GENERAL DEPRECIATION"},{"$f":"'FR-16(7)(v)-1 Functional'!D574","v":"G229"},null,{"$f":"'FR-16(7)(v)-14 TOTAL CLASS'!G574","v":2612623},{"$f":"'FR-16(7)(v)-3 PROD Demand'!G574+'FR-16(7)(v)-7 TRANS Demand'!G574+'FR-16(7)(v)-11 DIST Demand'!G574","v":1195151},{"$f":"'FR-16(7)(v)-4 PROD Energy'!G574+'FR-16(7)(v)-8 TRANS Energy'!G574+'FR-16(7)(v)-12 DIST Energy'!G574","v":699884},{"$f":"'FR-16(7)(v)-5 PROD Cust'!G574+'FR-16(7)(v)-9 TRANS Cust'!G574+'FR-16(7)(v)-13 DIST Cust'!G574","v":717588},{"$f":"SUM(G574:I574)","v":2612623},{"$f":"F574-J574","v":0}]
[15,null,{"$f":"'FR-16(7)(v)-1 Functional'!C575","v":"  TOTAL GENERAL DEPREC EXP."},null,null,{"$f":"SUM(F574:F574)","v":2612623},1195151,699884,717588,2612623,0]
[16]
[17,"COMMON AND OTHER DEPRECIATION"]
[18,null,{"$f":"'FR-16(7)(v)-1 Functional'!C578","v":"COMMON DEPRECIATION"},{"$f":"'FR-16(7)(v)-1 Functional'!D578","v":"C229"},null,{"$f":"'FR-16(7)(v)-14 TOTAL CLASS'!G578","v":17781},{"$f":"'FR-16(7)(v)-3 PROD Demand'!G578+'FR-16(7)(v)-7 TRANS Demand'!G578+'FR-16(7)(v)-11 DIST Demand'!G578","v":8173},{"$f":"'FR-16(7)(v)-4 PROD Energy'!G578+'FR-16(7)(v)-8 TRANS Energy'!G578+'FR-16(7)(v)-12 DIST Energy'!G578","v":4747},{"$f":"'FR-16(7)(v)-5 PROD Cust'!G578+'FR-16(7)(v)-9 TRANS Cust'!G578+'FR-16(7)(v)-13 DIST Cust'!G578","v":4861},{"$f":"SUM(G578:I578)","v":17781},{"$f":"F578-J578","v":0}]
[19,null,{"$f":"'FR-16(7)(v)-1 Functional'!C579","v":"  TOTAL COM & OTHER DEPREC EXP."},null,null,{"$f":"SUM(F578:F578)","v":17781},8173,4747,4861,17781,0]
[20]
[21]
[22,"TOTAL DEPRECIATION EXPENSE",null,null," ",{"$f":"F579+F575+F571+F567+F563","v":27967520},23692309,704631,3570580,27967520,0]
[]
[{"$f":"co_name","v":"DUKE ENERGY KENTUCKY, INC."},null,null,null,null,null,null,null,null,{"$f":"J1","v":"FR-16(7)(v)-15"}]
[{"$f":"$A$2","v":"RESIDENTIAL CLASSIFIED - ELECTRIC COST OF SERVICE"},null,null,null,null,null,null,null,null,{"$f":"J2","v":"WITNESS RESPONSIBLE:"}]
[{"$f":"case_name","v":"CASE NO: 2019-00271"},null,null,null,null,null,null,null,null,{"$f":"Witness","v":"JAMES E. ZIOLKOWSKI"}]
[{"$f":"data_filing","v":"DATA: 12 MONTHS ACTUAL  & 0 MONTHS ESTIMATED"},null,null,null,null,null,null,null,null,{"$f":"\"PAGE \"&Pages2-4&\" OF \"&Pages2","v":"PAGE 11 OF 15"}]
[{"$f":"type","v":"TYPE OF FILING: \"X\" ORIGINAL   UPDATED    REVISED  "}]
[]
[]
["LINE",null,null,null,null,"TOTAL","CLASSIFIED",null,null,"TOTAL","ALL"]
["NO.","OTHER TAXES & MISC EXPENSES",null,"ALLO",null,{"$f":"$F$9","v":"RESIDENTIAL"},{"$f":"G9","v":"DEMAND"},"ENERGY","CUSTOMER","AT ISSUE","OTHER"]
[null,null,"Schedule 8",null,null,null,3,4,5]
[1,"TAXES OTHER THAN INC & REV"]
[2," REAL ESTATE & PROPERTY TAX"]
[3,null,{"$f":"'FR-16(7)(v)-1 Functional'!C596","v":"REAL ESTATE & PROPERTY TAX"},{"$f":"'FR-16(7)(v)-1 Functional'!D596","v":"NP29"},null,{"$f":"'FR-16(7)(v)-14 TOTAL CLASS'!G596","v":6741340},{"$f":"'FR-16(7)(v)-3 PROD Demand'!G596+'FR-16(7)(v)-7 TRANS Demand'!G596+'FR-16(7)(v)-11 DIST Demand'!G596","v":5550045},{"$f":"'FR-16(7)(v)-4 PROD Energy'!G596+'FR-16(7)(v)-8 TRANS Energy'!G596+'FR-16(7)(v)-12 DIST Energy'!G596","v":69875},{"$f":"'FR-16(7)(v)-5 PROD Cust'!G596+'FR-16(7)(v)-9 TRANS Cust'!G596+'FR-16(7)(v)-13 DIST Cust'!G596","v":1121420},{"$f":"SUM(G596:I596)","v":6741340},{"$f":"F596-J596","v":0}]
[4,null,{"$f":"'FR-16(7)(v)-1 Functional'!C597","v":"ANNUALIZE PROPERTY TAX"},{"$f":"'FR-16(7)(v)-1 Functional'!D597","v":"NP29"}," ",{"$f":"'FR-16(7)(v)-14 TOTAL CLASS'!G597","v":0},{"$f":"'FR-16(7)(v)-3 PROD Demand'!G597+'FR-16(7)(v)-7 TRANS Demand'!G597+'FR-16(7)(v)-11 DIST Demand'!G597","v":0},{"$f":"'FR-16(7)(v)-4 PROD Energy'!G597+'FR-16(7)(v)-8 TRANS Energy'!G597+'FR-16(7)(v)-12 DIST Energy'!G597","v":0},{"$f":"'FR-16(7)(v)-5 PROD Cust'!G597+'FR-16(7)(v)-9 TRANS Cust'!G597+'FR-16(7)(v)-13 DIST Cust'!G597","v":0},{"$f":"SUM(G597:I597)","v":0},{"$f":"F597-J597","v":0}]
[5,null,{"$f":"'FR-16(7)(v)-1 Functional'!C598","v":"  TOTAL REAL ESTATE & PROPERTY TAX"},null,null,{"$f":"SUM(F596:F597)","v":6741340},5550045,69875,1121420,6741340,0]
[6]
[7," MISCELLANEOUS TAXES"]
[8,null,{"$f":"'FR-16(7)(v)-1 Functional'!C601","v":"PAYROLL "},{"$f":"'FR-16(7)(v)-1 Functional'!D601","v":"A315"},null,{"$f":"'FR-16(7)(v)-14 TOTAL CLASS'!G601","v":1230557},{"$f":"'FR-16(7)(v)-3 PROD Demand'!G601+'FR-16(7)(v)-7 TRANS Demand'!G601+'FR-16(7)(v)-11 DIST Demand'!G601","v":742104},{"$f":"'FR-16(7)(v)-4 PROD Energy'!G601+'FR-16(7)(v)-8 TRANS Energy'!G601+'FR-16(7)(v)-12 DIST Energy'!G601","v":245225},{"$f":"'FR-16(7)(v)-5 PROD Cust'!G601+'FR-16(7)(v)-9 TRANS Cust'!G601+'FR-16(7)(v)-13 DIST Cust'!G601","v":243228},{"$f":"SUM(G601:I601)","v":1230557},{"$f":"F601-J601","v":0}]
[9,null,{"$f":"'FR-16(7)(v)-1 Functional'!C602","v":"ELIMINATE DSM "},{"$f":"'FR-16(7)(v)-1 Functional'!D602","v":"A315"},null,{"$f":"'FR-16(7)(v)-14 TOTAL CLASS'!G602","v":-24212},{"$f":"'FR-16(7)(v)-3 PROD Demand'!G602+'FR-16(7)(v)-7 TRANS Demand'!G602+'FR-16(7)(v)-11 DIST Demand'!G602","v":-14602},{"$f":"'FR-16(7)(v)-4 PROD Energy'!G602+'FR-16(7)(v)-8 TRANS Energy'!G602+'FR-16(7)(v)-12 DIST Energy'!G602","v":-4824},{"$f":"'FR-16(7)(v)-5 PROD Cust'!G602+'FR-16(7)(v)-9 TRANS Cust'!G602+'FR-16(7)(v)-13 DIST Cust'!G602","v":-4786},{"$f":"SUM(G602:I602)","v":-24212},{"$f":"F602-J602","v":0}]
[10,null,{"$f":"'FR-16(7)(v)-1 Functional'!C603","v":"FRANCHISE & LICENSE"},{"$f":"'FR-16(7)(v)-1 Functional'!D603","v":"A315"},null,{"$f":"'FR-16(7)(v)-14 TOTAL CLASS'!G603","v":0},{"$f":"'FR-16(7)(v)-3 PROD Demand'!G603+'FR-16(7)(v)-7 TRANS Demand'!G603+'FR-16(7)(v)-11 DIST Demand'!G603","v":0},{"$f":"'FR-16(7)(v)-4 PROD Energy'!G603+'FR-16(7)(v)-8 TRANS Energy'!G603+'FR-16(7)(v)-12 DIST Energy'!G603","v":0},{"$f":"'FR-16(7)(v)-5 PROD Cust'!G603+'FR-16(7)(v)-9 TRANS Cust'!G603+'FR-16(7)(v)-13 DIST Cust'!G603","v":0},{"$f":"SUM(G603:I603)","v":0},{"$f":"F603-J603","v":0}]
[11,null,{"$f":"'FR-16(7)(v)-1 Functional'!C604","v":"ELIMINATE ESM"},{"$f":"'FR-16(7)(v)-1 Functional'!D604","v":"A315"},null,{"$f":"'FR-16(7)(v)-14 TOTAL CLASS'!G604","v":-654600},{"$f":"'FR-16(7)(v)-3 PROD Demand'!G604+'FR-16(7)(v)-7 TRANS Demand'!G604+'FR-16(7)(v)-11 DIST Demand'!G604","v":-394765},{"$f":"'FR-16(7)(v)-4 PROD Energy'!G604+'FR-16(7)(v)-8 TRANS Energy'!G604+'FR-16(7)(v)-12 DIST Energy'!G604","v":-130448},{"$f":"'FR-16(7)(v)-5 PROD Cust'!G604+'FR-16(7)(v)-9 TRANS Cust'!G604+'FR-16(7)(v)-13 DIST Cust'!G604","v":-129387},{"$f":"SUM(G604:I604)","v":-654600},{"$f":"F604-J604","v":0}]
[12,null,{"$f":"'FR-16(7)(v)-1 Functional'!C605","v":"  TOTAL MISCELLANEOUS TAXES"},null,null,{"$f":"SUM(F601:F604)","v":551745},332737,109953,109055,551745,0]
[13]
[14," MISCELLANEOUS EXPENSES"]
[15,null,{"$f":"'FR-16(7)(v)-1 Functional'!C608","v":"PSC MAINT. EXP ON INCREASE"},{"$f":"'FR-16(7)(v)-1 Functional'!D608","v":"K902"},null,{"$f":"'FR-16(7)(v)-14 TOTAL CLASS'!G608","v":37001},{"$f":"'FR-16(7)(v)-3 PROD Demand'!G608+'FR-16(7)(v)-7 TRANS Demand'!G608+'FR-16(7)(v)-11 DIST Demand'!G608","v":18303},{"$f":"'FR-16(7)(v)-4 PROD Energy'!G608+'FR-16(7)(v)-8 TRANS Energy'!G608+'FR-16(7)(v)-12 DIST Energy'!G608","v":12731},{"$f":"'FR-16(7)(v)-5 PROD Cust'!G608+'FR-16(7)(v)-9 TRANS Cust'!G608+'FR-16(7)(v)-13 DIST Cust'!G608","v":5967},{"$f":"SUM(G608:I608)","v":37001},{"$f":"F608-J608","v":0}]
[16,null,{"$f":"'FR-16(7)(v)-1 Functional'!C609","v":"RESERVED FOR FUTURE USE"},{"$f":"'FR-16(7)(v)-1 Functional'!D609","v":"K902"},null,{"$f":"'FR-16(7)(v)-14 TOTAL CLASS'!G609","v":0},{"$f":"'FR-16(7)(v)-3 PROD Demand'!G609+'FR-16(7)(v)-7 TRANS Demand'!G609+'FR-16(7)(v)-11 DIST Demand'!G609","v":0},{"$f":"'FR-16(7)(v)-4 PROD Energy'!G609+'FR-16(7)(v)-8 TRANS Energy'!G609+'FR-16(7)(v)-12 DIST Energy'!G609","v":0},{"$f":"'FR-16(7)(v)-5 PROD Cust'!G609+'FR-16(7)(v)-9 TRANS Cust'!G609+'FR-16(7)(v)-13 DIST Cust'!G609","v":0},{"$f":"SUM(G609:I609)","v":0},{"$f":"F609-J609","v":0}]
[17,null,{"$f":"'FR-16(7)(v)-1 Functional'!C610","v":"  TOTAL MISCELLANEOUS EXPENSES"},null,null,{"$f":"SUM(F608:F609)","v":37001},18303,12731,5967,37001,0]
[18]
[19,"TOTAL OTHER TAX & MISC EXPENSE",null,null," ",{"$f":"F605+F598+F610","v":7330086},5901085,192559,1236442,7330086,0]
[20]
[21,"PRELIMINARY SUMMARY"]
[22,null,{"$f":"'FR-16(7)(v)-1 Functional'!C615","v":"TOTAL O&M EXPENSE"},null,null,{"$f":"F549","v":92724430},26378678,55963941,10381811,92724430,0]
[23,null,{"$f":"'FR-16(7)(v)-1 Functional'!C616","v":"TOTAL DEPRECIATION EXPENSE"},null,null,{"$f":"F582","v":27967520},23692309,704631,3570580,27967520,0]
[24,null,{"$f":"'FR-16(7)(v)-1 Functional'!C617","v":"TOTAL OTHER TAX & MISC EXPENSE"},null,null,{"$f":"F612","v":7330086},5901085,192559,1236442,7330086,0]
[25,null,{"$f":"'FR-16(7)(v)-1 Functional'!C618","v":"  TOTAL OPER EXP EXCL INCOME & REV TAX"},null,null,{"$f":"SUM(F615:F617)","v":128022036},55972072,56861131,15188833,128022036,0]
[]
[{"$f":"co_name","v":"DUKE ENERGY KENTUCKY, INC."},null,null,null,null,null,null,null,null,{"$f":"J1","v":"FR-16(7)(v)-15"}]
[{"$f":"$A$2","v":"RESIDENTIAL CLASSIFIED - ELECTRIC COST OF SERVICE"},null,null,null,null,null,null,null,null,{"$f":"J2","v":"WITNESS RESPONSIBLE:"}]
[{"$f":"case_name","v":"CASE NO: 2019-00271"},null,null,null,null,null,null,null,null,{"$f":"Witness","v":"JAMES E. ZIOLKOWSKI"}]
[{"$f":"data_filing","v":"DATA: 12 MONTHS ACTUAL  & 0 MONTHS ESTIMATED"},null,null,null,null,null,null,null,null,{"$f":"\"PAGE \"&Pages2-3&\" OF \"&Pages2","v":"PAGE 12 OF 15"}]
[{"$f":"type","v":"TYPE OF FILING: \"X\" ORIGINAL   UPDATED    REVISED  "}]
[]
[]
["LINE",null,null,null,null,"TOTAL","CLASSIFIED",null,null,"TOTAL","ALL"]
["NO.","FEDERAL INCOME TAX BASED ON RETURN",null,"ALLO",null,{"$f":"$F$9","v":"RESIDENTIAL"},{"$f":"$G$9","v":"DEMAND"},{"$f":"$H$9","v":"ENERGY"},{"$f":"$I$9","v":"CUSTOMER"},"AT ISSUE","OTHER"]
[null,null,"Schedule 9",null,null,null,{"$f":"G10","v":3},{"$f":"H10","v":4},{"$f":"I10","v":5}]
[1,"FEDERAL INCOME TAX DEDUCTIONS"]
[2," AUTOMATIC INTEREST CALCULATION",null,null,null," "]
[3,null,{"$f":"'FR-16(7)(v)-1 Functional'!C632","v":"AUTO PROC INTEREST DED"},{"$f":"'FR-16(7)(v)-1 Functional'!D632","v":"RB99"},null,{"$f":"'FR-16(7)(v)-14 TOTAL CLASS'!G632","v":9286917},{"$f":"'FR-16(7)(v)-3 PROD Demand'!G632+'FR-16(7)(v)-7 TRANS Demand'!G632+'FR-16(7)(v)-11 DIST Demand'!G632","v":7471116},{"$f":"'FR-16(7)(v)-4 PROD Energy'!G632+'FR-16(7)(v)-8 TRANS Energy'!G632+'FR-16(7)(v)-12 DIST Energy'!G632","v":237381},{"$f":"'FR-16(7)(v)-5 PROD Cust'!G632+'FR-16(7)(v)-9 TRANS Cust'!G632+'FR-16(7)(v)-13 DIST Cust'!G632","v":1578420},{"$f":"SUM(G632:I632)","v":9286917},{"$f":"F632-J632","v":0}]
[4,null,{"$f":"'FR-16(7)(v)-1 Functional'!C633","v":"  TOTAL INTEREST EXPENSE"},null,null,{"$f":"F632","v":9286917},7471116,237381,1578420,9286917,0]
[5]
[6," OTHER DEDUCTIONS"]
[7,null,{"$f":"'FR-16(7)(v)-1 Functional'!C636","v":"DEPREC EXCESS TAX-BOOK"},{"$f":"'FR-16(7)(v)-1 Functional'!D636","v":"DE49"},null,{"$f":"'FR-16(7)(v)-14 TOTAL CLASS'!G636","v":-6633384},{"$f":"'FR-16(7)(v)-3 PROD Demand'!G636+'FR-16(7)(v)-7 TRANS Demand'!G636+'FR-16(7)(v)-11 DIST Demand'!G636","v":-5619418},{"$f":"'FR-16(7)(v)-4 PROD Energy'!G636+'FR-16(7)(v)-8 TRANS Energy'!G636+'FR-16(7)(v)-12 DIST Energy'!G636","v":-167115},{"$f":"'FR-16(7)(v)-5 PROD Cust'!G636+'FR-16(7)(v)-9 TRANS Cust'!G636+'FR-16(7)(v)-13 DIST Cust'!G636","v":-846851},{"$f":"SUM(G636:I636)","v":-6633384},{"$f":"F636-J636","v":0}]
[8,null,{"$f":"'FR-16(7)(v)-1 Functional'!C637","v":"PERMANENT DIFFERENCES"},{"$f":"'FR-16(7)(v)-1 Functional'!D637","v":"A357"},null,{"$f":"'FR-16(7)(v)-14 TOTAL CLASS'!G637","v":-275379.99999999965},{"$f":"'FR-16(7)(v)-3 PROD Demand'!G637+'FR-16(7)(v)-7 TRANS Demand'!G637+'FR-16(7)(v)-11 DIST Demand'!G637","v":-166071.99999999965},{"$f":"'FR-16(7)(v)-4 PROD Energy'!G637+'FR-16(7)(v)-8 TRANS Energy'!G637+'FR-16(7)(v)-12 DIST Energy'!G637","v":-54877},{"$f":"'FR-16(7)(v)-5 PROD Cust'!G637+'FR-16(7)(v)-9 TRANS Cust'!G637+'FR-16(7)(v)-13 DIST Cust'!G637","v":-54431},{"$f":"SUM(G637:I637)","v":-275379.99999999965},{"$f":"F637-J637","v":0}]
[9,null,{"$f":"'FR-16(7)(v)-1 Functional'!C638","v":"TEMPORARY DIFFERENCES"},{"$f":"'FR-16(7)(v)-1 Functional'!D638","v":"DE49"},null,{"$f":"'FR-16(7)(v)-14 TOTAL CLASS'!G638","v":40475912},{"$f":"'FR-16(7)(v)-3 PROD Demand'!G638+'FR-16(7)(v)-7 TRANS Demand'!G638+'FR-16(7)(v)-11 DIST Demand'!G638","v":34288845},{"$f":"'FR-16(7)(v)-4 PROD Energy'!G638+'FR-16(7)(v)-8 TRANS Energy'!G638+'FR-16(7)(v)-12 DIST Energy'!G638","v":1019716},{"$f":"'FR-16(7)(v)-5 PROD Cust'!G638+'FR-16(7)(v)-9 TRANS Cust'!G638+'FR-16(7)(v)-13 DIST Cust'!G638","v":5167351},{"$f":"SUM(G638:I638)","v":40475912},{"$f":"F638-J638","v":0}]
[10,null,{"$f":"'FR-16(7)(v)-1 Functional'!C639","v":"  TOTAL OTHER DEDUCTIONS"},null,null,{"$f":"SUM(F636:F638)","v":33567148},28503355,797724,4266069,33567148,0]
[11]
[12,"NET DEDUCTIONS AND ADDITIONS",null,null,null,{"$f":"F639+F633","v":42854065},35974471,1035105,5844489,42854065,0]
[13]
[14," FED DEFERRED INCOME TAX (410 & 411)"]
[15,null,{"$f":"'FR-16(7)(v)-1 Functional'!C644","v":"DEFERRED INCOME TAXES - NET"},{"$f":"'FR-16(7)(v)-1 Functional'!D644","v":"OM39"},null,{"$f":"'FR-16(7)(v)-14 TOTAL CLASS'!G644","v":6172188},{"$f":"'FR-16(7)(v)-3 PROD Demand'!G644+'FR-16(7)(v)-7 TRANS Demand'!G644+'FR-16(7)(v)-11 DIST Demand'!G644","v":1755882},{"$f":"'FR-16(7)(v)-4 PROD Energy'!G644+'FR-16(7)(v)-8 TRANS Energy'!G644+'FR-16(7)(v)-12 DIST Energy'!G644","v":3725244},{"$f":"'FR-16(7)(v)-5 PROD Cust'!G644+'FR-16(7)(v)-9 TRANS Cust'!G644+'FR-16(7)(v)-13 DIST Cust'!G644","v":691062},{"$f":"SUM(G644:I644)","v":6172188},{"$f":"F644-J644","v":0}]
[16,null,{"$f":"'FR-16(7)(v)-1 Functional'!C645","v":"AMORT OF DEFERRED MERGER COST"},{"$f":"'FR-16(7)(v)-1 Functional'!D645","v":"A357"},null,{"$f":"'FR-16(7)(v)-14 TOTAL CLASS'!G645","v":0},{"$f":"'FR-16(7)(v)-3 PROD Demand'!G645+'FR-16(7)(v)-7 TRANS Demand'!G645+'FR-16(7)(v)-11 DIST Demand'!G645","v":0},{"$f":"'FR-16(7)(v)-4 PROD Energy'!G645+'FR-16(7)(v)-8 TRANS Energy'!G645+'FR-16(7)(v)-12 DIST Energy'!G645","v":0},{"$f":"'FR-16(7)(v)-5 PROD Cust'!G645+'FR-16(7)(v)-9 TRANS Cust'!G645+'FR-16(7)(v)-13 DIST Cust'!G645","v":0},{"$f":"SUM(G645:I645)","v":0},{"$f":"F645-J645","v":0}]
[17,null,{"$f":"'FR-16(7)(v)-1 Functional'!C646","v":"DIT ADJUSTMENT - S/L DEPRECIATION"},{"$f":"'FR-16(7)(v)-1 Functional'!D646","v":"DE49"},null,{"$f":"'FR-16(7)(v)-14 TOTAL CLASS'!G646","v":0},{"$f":"'FR-16(7)(v)-3 PROD Demand'!G646+'FR-16(7)(v)-7 TRANS Demand'!G646+'FR-16(7)(v)-11 DIST Demand'!G646","v":0},{"$f":"'FR-16(7)(v)-4 PROD Energy'!G646+'FR-16(7)(v)-8 TRANS Energy'!G646+'FR-16(7)(v)-12 DIST Energy'!G646","v":0},{"$f":"'FR-16(7)(v)-5 PROD Cust'!G646+'FR-16(7)(v)-9 TRANS Cust'!G646+'FR-16(7)(v)-13 DIST Cust'!G646","v":0},{"$f":"SUM(G646:I646)","v":0},{"$f":"F646-J646","v":0}]
[18,null,{"$f":"'FR-16(7)(v)-1 Functional'!C647","v":"DIT ADJUSTMENT - ARAM"},{"$f":"'FR-16(7)(v)-1 Functional'!D647","v":"K201"},null,{"$f":"'FR-16(7)(v)-14 TOTAL CLASS'!G647","v":-48469},{"$f":"'FR-16(7)(v)-3 PROD Demand'!G647+'FR-16(7)(v)-7 TRANS Demand'!G647+'FR-16(7)(v)-11 DIST Demand'!G647","v":-48469},{"$f":"'FR-16(7)(v)-4 PROD Energy'!G647+'FR-16(7)(v)-8 TRANS Energy'!G647+'FR-16(7)(v)-12 DIST Energy'!G647","v":0},{"$f":"'FR-16(7)(v)-5 PROD Cust'!G647+'FR-16(7)(v)-9 TRANS Cust'!G647+'FR-16(7)(v)-13 DIST Cust'!G647","v":0},{"$f":"SUM(G647:I647)","v":-48469},{"$f":"F647-J647","v":0}]
[19,null,{"$f":"'FR-16(7)(v)-1 Functional'!C648","v":"DIT ADJUSTMENT - AMORT OF EXCESS DEF TAXES"},{"$f":"'FR-16(7)(v)-1 Functional'!D648","v":"A357"},null,{"$f":"'FR-16(7)(v)-14 TOTAL CLASS'!G648","v":-2414869},{"$f":"'FR-16(7)(v)-3 PROD Demand'!G648+'FR-16(7)(v)-7 TRANS Demand'!G648+'FR-16(7)(v)-11 DIST Demand'!G648","v":-1456303},{"$f":"'FR-16(7)(v)-4 PROD Energy'!G648+'FR-16(7)(v)-8 TRANS Energy'!G648+'FR-16(7)(v)-12 DIST Energy'!G648","v":-481228},{"$f":"'FR-16(7)(v)-5 PROD Cust'!G648+'FR-16(7)(v)-9 TRANS Cust'!G648+'FR-16(7)(v)-13 DIST Cust'!G648","v":-477338},{"$f":"SUM(G648:I648)","v":-2414869},{"$f":"F648-J648","v":0}]
[20,null,{"$f":"'FR-16(7)(v)-1 Functional'!C649","v":"  TOTAL FED DEF IT (410 & 411)"},null,null,{"$f":"SUM(F644:F648)","v":3708850},251110,3244016,213724,3708850,0]
[21]
[22," AMORT INV TAX CREDIT"]
[23,null,{"$f":"'FR-16(7)(v)-1 Functional'!C652","v":"AMORTIZE ITC"},{"$f":"'FR-16(7)(v)-1 Functional'!D652","v":"NP29"},null,{"$f":"'FR-16(7)(v)-14 TOTAL CLASS'!G652","v":213},{"$f":"'FR-16(7)(v)-3 PROD Demand'!G652+'FR-16(7)(v)-7 TRANS Demand'!G652+'FR-16(7)(v)-11 DIST Demand'!G652","v":176},{"$f":"'FR-16(7)(v)-4 PROD Energy'!G652+'FR-16(7)(v)-8 TRANS Energy'!G652+'FR-16(7)(v)-12 DIST Energy'!G652","v":2},{"$f":"'FR-16(7)(v)-5 PROD Cust'!G652+'FR-16(7)(v)-9 TRANS Cust'!G652+'FR-16(7)(v)-13 DIST Cust'!G652","v":35},{"$f":"SUM(G652:I652)","v":213},{"$f":"F652-J652","v":0}]
[24,null,{"$f":"'FR-16(7)(v)-1 Functional'!C653","v":"  TOTAL AMORTIZED ITC"},null,null,{"$f":"SUM(F652:F652)","v":213},176,2,35,213,0]
[25]
[26," OTHER FEDERAL TAX CREDITS"]
[27,null,{"$f":"'FR-16(7)(v)-1 Functional'!C656","v":"FUEL TAX CREDIT"},{"$f":"'FR-16(7)(v)-1 Functional'!D656","v":"K301"},null,{"$f":"'FR-16(7)(v)-14 TOTAL CLASS'!G656","v":0},{"$f":"'FR-16(7)(v)-3 PROD Demand'!G656+'FR-16(7)(v)-7 TRANS Demand'!G656+'FR-16(7)(v)-11 DIST Demand'!G656","v":0},{"$f":"'FR-16(7)(v)-4 PROD Energy'!G656+'FR-16(7)(v)-8 TRANS Energy'!G656+'FR-16(7)(v)-12 DIST Energy'!G656","v":0},{"$f":"'FR-16(7)(v)-5 PROD Cust'!G656+'FR-16(7)(v)-9 TRANS Cust'!G656+'FR-16(7)(v)-13 DIST Cust'!G656","v":0},{"$f":"SUM(G656:I656)","v":0},{"$f":"F656-J656","v":0}]
[28,null,{"$f":"'FR-16(7)(v)-1 Functional'!C657","v":"R&D CREDIT - SECTION 41"},{"$f":"'FR-16(7)(v)-1 Functional'!D657","v":"A315"},null,{"$f":"'FR-16(7)(v)-14 TOTAL CLASS'!G657","v":0},{"$f":"'FR-16(7)(v)-3 PROD Demand'!G657+'FR-16(7)(v)-7 TRANS Demand'!G657+'FR-16(7)(v)-11 DIST Demand'!G657","v":0},{"$f":"'FR-16(7)(v)-4 PROD Energy'!G657+'FR-16(7)(v)-8 TRANS Energy'!G657+'FR-16(7)(v)-12 DIST Energy'!G657","v":0},{"$f":"'FR-16(7)(v)-5 PROD Cust'!G657+'FR-16(7)(v)-9 TRANS Cust'!G657+'FR-16(7)(v)-13 DIST Cust'!G657","v":0},{"$f":"SUM(G657:I657)","v":0},{"$f":"F657-J657","v":0}]
[29,null,{"$f":"'FR-16(7)(v)-1 Functional'!C658","v":"  TOTAL OTHER FEDERAL TAX CREDITS"},null,null,{"$f":"SUM(F656:F657)","v":0},0,0,0,0,0]
[30]
[31,"PRELIMINARY SUMMARY"]
[32,null,{"$f":"'FR-16(7)(v)-1 Functional'!C661","v":"TOTAL FED DEF IT (410 & 411)"},null,null,{"$f":"F649","v":3708850},251110,3244016,213724,3708850,0]
[33,null,{"$f":"'FR-16(7)(v)-1 Functional'!C662","v":"TOTAL AMORTIZED ITC & OTHER FEDERAL TAX CREDITS"},null,null,{"$f":"-F653-F658","v":-213},-176,-2,-35,-213,0]
[34,null,{"$f":"'FR-16(7)(v)-1 Functional'!C663","v":"  TOTAL FEDERAL TAX ADJUSTMENTS"},null,null,{"$f":"SUM(F661:F662)","v":3708637},250934,3244014,213689,3708637,0]
[35]
[36,"FEDERAL INCOME TAX COMPUTATION"]
[37,null,"RETURN ON RATE BASE",null,null,{"$f":"F433","v":31416822},{"$f":"G433","v":25274130},{"$f":"H433","v":803039},{"$f":"I433","v":5339653},{"$f":"J433","v":31416822},{"$f":"F666-J666","v":0}]
[38,null,{"$f":"'FR-16(7)(v)-1 Functional'!C667","v":"NET DEDUCTIONS AND ADDITIONS"},null,null,{"$f":"-F641","v":-42854065},{"$f":"-G641","v":-35974471},{"$f":"-H641","v":-1035105},{"$f":"-I641","v":-5844489},{"$f":"-J641","v":-42854065},{"$f":"F667-J667","v":0}]
[39,null,{"$f":"'FR-16(7)(v)-1 Functional'!C668","v":"TOTAL FEDERAL TAX ADJUSTMENTS"},null,null,{"$f":"F663","v":3708637},{"$f":"G663","v":250934},{"$f":"H663","v":3244014},{"$f":"I663","v":213689},{"$f":"J663","v":3708637},{"$f":"F668-J668","v":0}]
[40,null,"TOTAL STATE PROV DEF IT (410 & 411)",null,null,{"$f":"F707","v":2396352},{"$f":"G707","v":1445139},{"$f":"H707","v":477537},{"$f":"I707","v":473676},{"$f":"J707","v":2396352},{"$f":"F669-J669","v":0}]
[41,null,"RESERVED",null,null,{"$f":"F24","v":0},{"$f":"G24","v":0},{"$f":"H24","v":0},{"$f":"I24","v":0},{"$f":"J24","v":0},{"$f":"F670-J670","v":0}]
[42,null,{"$f":"'FR-16(7)(v)-1 Functional'!C671","v":"  BASE FOR FIT COMPUATION"},null,null,{"$f":"SUM(F666:F670)","v":-5332254},-9004268,3489485,182529,-5332254,0]
[43]
[44,null,{"$f":"'FR-16(7)(v)-1 Functional'!C673","v":"FIT FACTOR K190/(1-K190)"},null,null,{"$f":"ROUND(FIT/(1-FIT),9)","v":0.26582278500000001},{"$f":"ROUND(FIT/(1-FIT),9)","v":0.26582278500000001},{"$f":"ROUND(FIT/(1-FIT),9)","v":0.26582278500000001},{"$f":"ROUND(FIT/(1-FIT),9)","v":0.26582278500000001},null,{"$f":"ROUND(FIT/(1-FIT),9)","v":0.26582278500000001}]
[45,null,{"$f":"'FR-16(7)(v)-1 Functional'!C674","v":"PRELIM FED INCOME TAX"},null,null,{"$f":"'FR-16(7)(v)-14 TOTAL CLASS'!G674","v":-1417430},{"$f":"F674-SUM(H674:I674)","v":-2393537},{"$f":"'FR-16(7)(v)-4 PROD Energy'!G674+'FR-16(7)(v)-8 TRANS Energy'!G674+'FR-16(7)(v)-12 DIST Energy'!G674","v":927586},{"$f":"'FR-16(7)(v)-5 PROD Cust'!G674+'FR-16(7)(v)-9 TRANS Cust'!G674+'FR-16(7)(v)-13 DIST Cust'!G674","v":48521},{"$f":"SUM(G674:I674)","v":-1417430},{"$f":"F674-J674","v":0}]
[46,null,{"$f":"'FR-16(7)(v)-1 Functional'!C675","v":"TOTAL FEDERAL TAX ADJUSTMENTS"},null,null,{"$f":"F663","v":3708637},{"$f":"G663","v":250934},{"$f":"H663","v":3244014},{"$f":"I663","v":213689},{"$f":"J663","v":3708637},{"$f":"F675-J675","v":0}]
[47,null,{"$f":"'FR-16(7)(v)-1 Functional'!C676","v":"  NET FED INCOME TAX ALLOWABLE"},null,null,{"$f":"SUM(F674:F675)","v":2291207},-2142603,4171600,262210,2291207,0]
[48]
[49,"INCOME TAX BASED ON RETURN"]
[50,"FEDERAL INCOME TAX PAYABLE"]
[51,null,{"$f":"'FR-16(7)(v)-1 Functional'!C680","v":"PRELIM FEDERAL INCOME TAX"},null,null,{"$f":"F674","v":-1417430},-2393537,927586,48521,-1417430,0]
[53,null,{"$f":"'FR-16(7)(v)-1 Functional'!C681","v":"  NET FED INCOME TAX PAYABLE"},null,null,{"$f":"SUM(F680:F680)","v":-1417430},-2393537,927586,48521,-1417430,0]
[]
[{"$f":"co_name","v":"DUKE ENERGY KENTUCKY, INC."},null,null,null,null,null,null,null,null,{"$f":"J1","v":"FR-16(7)(v)-15"}]
[{"$f":"$A$2","v":"RESIDENTIAL CLASSIFIED - ELECTRIC COST OF SERVICE"},null,null,null,null,null,null,null,null,{"$f":"J2","v":"WITNESS RESPONSIBLE:"}]
[{"$f":"case_name","v":"CASE NO: 2019-00271"},null,null,null,null,null,null,null,null,{"$f":"Witness","v":"JAMES E. ZIOLKOWSKI"}]
[{"$f":"data_filing","v":"DATA: 12 MONTHS ACTUAL  & 0 MONTHS ESTIMATED"},null,null,null,null,null,null,null,null,{"$f":"\"PAGE \"&Pages2-2&\" OF \"&Pages2","v":"PAGE 13 OF 15"}]
[{"$f":"type","v":"TYPE OF FILING: \"X\" ORIGINAL   UPDATED    REVISED  "}]
[]
[]
["LINE",null,null,null,null,"TOTAL","CLASSIFIED",null,null,"TOTAL","ALL"]
["NO.","STATE INCOME TAX BASED ON RETURN",null,"Allo",null,"GAS",{"$f":"$G$9","v":"DEMAND"},{"$f":"$H$9","v":"ENERGY"},{"$f":"$I$9","v":"CUSTOMER"},"AT ISSUE","OTHER"]
[null,null,"Schedule 9.1",null,null,null,{"$f":"$G$10","v":3},{"$f":"$H$10","v":4},{"$f":"$I$10","v":5}]
[1,"DEDUCTIONS IN ADDITION TO Y871"]
[2,"KY TAXABLE INCOME ADJUSTMENT",null,{"$f":"'FR-16(7)(v)-1 Functional'!D694","v":"NP29"},null,{"$f":"'FR-16(7)(v)-14 TOTAL CLASS'!G694","v":4226979},{"$f":"'FR-16(7)(v)-3 PROD Demand'!G694+'FR-16(7)(v)-7 TRANS Demand'!G694+'FR-16(7)(v)-11 DIST Demand'!G694","v":3480010},{"$f":"'FR-16(7)(v)-4 PROD Energy'!G694+'FR-16(7)(v)-8 TRANS Energy'!G694+'FR-16(7)(v)-12 DIST Energy'!G694","v":43814},{"$f":"'FR-16(7)(v)-5 PROD Cust'!G694+'FR-16(7)(v)-9 TRANS Cust'!G694+'FR-16(7)(v)-13 DIST Cust'!G694","v":703155},{"$f":"SUM(G694:I694)","v":4226979},{"$f":"F694-J694","v":0}]
[3,"RESERVED FOR FUTURE USE",null,{"$f":"'FR-16(7)(v)-1 Functional'!D695","v":"NP29"},null,{"$f":"'FR-16(7)(v)-14 TOTAL CLASS'!G695","v":0},{"$f":"'FR-16(7)(v)-3 PROD Demand'!G695+'FR-16(7)(v)-7 TRANS Demand'!G695+'FR-16(7)(v)-11 DIST Demand'!G695","v":0},{"$f":"'FR-16(7)(v)-4 PROD Energy'!G695+'FR-16(7)(v)-8 TRANS Energy'!G695+'FR-16(7)(v)-12 DIST Energy'!G695","v":0},{"$f":"'FR-16(7)(v)-5 PROD Cust'!G695+'FR-16(7)(v)-9 TRANS Cust'!G695+'FR-16(7)(v)-13 DIST Cust'!G695","v":0},{"$f":"SUM(G695:I695)","v":0},{"$f":"F695-J695","v":0}]
[4,"  DEDUCTIONS IN ADD TO Y871",null,null,null,{"$f":"SUM(F694:F695)","v":4226979},3480010,43814,703155,4226979,0]
[5]
[6,"STATE INCOME TAX ADJUSTMENTS"]
[7,"STATE PROV DEF INC TAX (410 & 411)"]
[8,"OTHER DEFERRED INCOME TAXES - NET",null,{"$f":"'FR-16(7)(v)-1 Functional'!D700","v":"A357"},null,{"$f":"'FR-16(7)(v)-14 TOTAL CLASS'!G700","v":2396352},{"$f":"'FR-16(7)(v)-3 PROD Demand'!G700+'FR-16(7)(v)-7 TRANS Demand'!G700+'FR-16(7)(v)-11 DIST Demand'!G700","v":1445139},{"$f":"'FR-16(7)(v)-4 PROD Energy'!G700+'FR-16(7)(v)-8 TRANS Energy'!G700+'FR-16(7)(v)-12 DIST Energy'!G700","v":477537},{"$f":"'FR-16(7)(v)-5 PROD Cust'!G700+'FR-16(7)(v)-9 TRANS Cust'!G700+'FR-16(7)(v)-13 DIST Cust'!G700","v":473676},{"$f":"SUM(G700:I700)","v":2396352},{"$f":"F700-J700","v":0}]
[9,"  TOT STATE PROV DEF IT (410 & 411)",null,null,null,{"$f":"SUM(F700)","v":2396352},1445139,477537,473676,2396352,0]
[10]
[11,"OTHER SIT ADJUSTMENTS"]
[12,"CURRENT YEAR PAYABLE ADJUSTMENT",null,{"$f":"'FR-16(7)(v)-1 Functional'!D704","v":"NP29"},null,{"$f":"'FR-16(7)(v)-14 TOTAL CLASS'!G704","v":0},{"$f":"'FR-16(7)(v)-3 PROD Demand'!G704+'FR-16(7)(v)-7 TRANS Demand'!G704+'FR-16(7)(v)-11 DIST Demand'!G704","v":0},{"$f":"'FR-16(7)(v)-4 PROD Energy'!G704+'FR-16(7)(v)-8 TRANS Energy'!G704+'FR-16(7)(v)-12 DIST Energy'!G704","v":0},{"$f":"'FR-16(7)(v)-5 PROD Cust'!G704+'FR-16(7)(v)-9 TRANS Cust'!G704+'FR-16(7)(v)-13 DIST Cust'!G704","v":0},{"$f":"SUM(G704:I704)","v":0},{"$f":"F704-J704","v":0}]
[13,"  OTHER SIT ADJUSMENTS",null,null,null,{"$f":"SUM(F704)","v":0},0,0,0,0,0]
[14]
[15,"TOTAL STATE INC TAX ADJUSTMENT",null,null,null,{"$f":"F705+F701","v":2396352},1445139,477537,473676,2396352,0]
[16]
[17,"INCOME TAX BASED ON RETURN"]
[18,"SUMMARY OF SIT CALCULATION"]
[19,"RETURN ON RATE BASE",null,null,null,{"$f":"F433","v":31416822},25274130,803039,5339653,31416822,0]
[20,"NET FED INCOME TAX ALLOWABLE",null,null,null,{"$f":"F676","v":2291207},-2142603,4171600,262210,2291207,0]
[21,"NET FED. DED. AND ADDITIONS",null,null,null,{"$f":"-F641","v":-42854065},-35974471,-1035105,-5844489,-42854065,0]
[22,"DEDUCTIONS IN ADD TO Y871",null,null,null,{"$f":"-F696","v":-4226979},-3480010,-43814,-703155,-4226979,0]
[23,"RESERVED",null,null,null,{"$f":"F24","v":0},0,0,0,0,0]
[24,"TOTAL STATE INC TAX ADJ",null,null,null,{"$f":"F707","v":2396352},1445139,477537,473676,2396352,0]
[25,"  BASE FOR SIT COMPUTATION",null,null,null,{"$f":"SUM(F711:F716)","v":-10976663},-14877815,4373257,-472105,-10976663,0]
[26]
[27,"SIT FACTOR K192/(1-K192)",null,null,null,{"$f":"ROUND(SIT/(1-SIT),8)","v":5.2282660000000002E-2},{"$f":"ROUND(SIT/(1-SIT),8)","v":5.2282660000000002E-2},{"$f":"ROUND(SIT/(1-SIT),8)","v":5.2282660000000002E-2},{"$f":"ROUND(SIT/(1-SIT),8)","v":5.2282660000000002E-2},null,{"$f":"ROUND(SIT/(1-SIT),8)","v":5.2282660000000002E-2}]
[28,"PRELIMINARY STATE INCOME TAX",null,null,null,{"$f":"ROUND(F717*F719,0)","v":-573889},{"$f":"'FR-16(7)(v)-3 PROD Demand'!G720+'FR-16(7)(v)-7 TRANS Demand'!G720+'FR-16(7)(v)-11 DIST Demand'!G720","v":-777851},{"$f":"ROUND(H717*H719,0)","v":228646},{"$f":"ROUND(I717*I719,0)","v":-24683},{"$f":"SUM(G720:I720)","v":-573888},{"$f":"F720-J720","v":-1}]
[29,"TOTAL STATE INCOME TAX ADJ.",null,null,null,{"$f":"F707","v":2396352},{"$f":"G707","v":1445139},{"$f":"H707","v":477537},{"$f":"I707","v":473676},{"$f":"J707","v":2396352},{"$f":"F721-J721","v":0}]
[30,"  NET STATE INC TAX ALLOWABLE",null,null,null,{"$f":"F721+F720","v":1822463},667288,706183,448993,1822464,-1]
[31]
[32,"STATE INCOME TAX PAYABLE"]
[33,"PRELIMINARY STATE INCOME TAX",null,null,null,{"$f":"F720","v":-573889},{"$f":"G720","v":-777851},{"$f":"H720","v":228646},{"$f":"I720","v":-24683},{"$f":"J720","v":-573888},{"$f":"F725-J725","v":-1}]
[34,"OTHER SIT ADJUSTMENTS",null,null,null,{"$f":"F705","v":0},{"$f":"G705","v":0},{"$f":"H705","v":0},{"$f":"I705","v":0},{"$f":"J705","v":0},{"$f":"F726-J726","v":0}]
[35,"  NET STATE INCOME TAX PAYABLE",null,null,null,{"$f":"F725+F726","v":-573889},-777851,228646,-24683,-573888,-1]
[36]
[37,"COMPOSITE TAX RATE",null,null,null,{"$f":"(SIT*(1-FIT))+((1-SIT)*(1-FIT)*RevTax)+FIT","v":0.24925115},0.24925115,0.24925115,0.24925115,0.24925115,0.24925115]
[]
[{"$f":"co_name","v":"DUKE ENERGY KENTUCKY, INC."},null,null,null,null,null,null,null,null,{"$f":"J1","v":"FR-16(7)(v)-15"}]
[{"$f":"$A$2","v":"RESIDENTIAL CLASSIFIED - ELECTRIC COST OF SERVICE"},null,null,null,null,null,null,null,null,{"$f":"J2","v":"WITNESS RESPONSIBLE:"}]
[{"$f":"case_name","v":"CASE NO: 2019-00271"},null,null,null,null,null,null,null,null,{"$f":"Witness","v":"JAMES E. ZIOLKOWSKI"}]
[{"$f":"data_filing","v":"DATA: 12 MONTHS ACTUAL  & 0 MONTHS ESTIMATED"},null,null,null,null,null,null,null,null,{"$f":"\"PAGE \"&Pages2-1&\" OF \"&Pages2","v":"PAGE 14 OF 15"}]
[{"$f":"type","v":"TYPE OF FILING: \"X\" ORIGINAL   UPDATED    REVISED  "}]
[]
[]
["LINE",null,null,null,null,"TOTAL","CLASSIFIED",null,null,"TOTAL","ALL"]
["NO.","COST OF SERVICE COMPUTATION",null,"ALLO",null,{"$f":"$F$9","v":"RESIDENTIAL"},{"$f":"G9","v":"DEMAND"},"ENERGY","CUSTOMER","AT ISSUE","OTHER"]
[null,null,"Schedule 10",null,null,null,3,4,5]
[1,"OTHER OPERATING REVENUES"]
[2,null,{"$f":"'FR-16(7)(v)-1 Functional'!C742","v":"MISC SERVICE REVENUE"},{"$f":"'FR-16(7)(v)-1 Functional'!D742","v":"D249"},null,{"$f":"'FR-16(7)(v)-14 TOTAL CLASS'!G742","v":142223},{"$f":"'FR-16(7)(v)-3 PROD Demand'!G742+'FR-16(7)(v)-7 TRANS Demand'!G742+'FR-16(7)(v)-11 DIST Demand'!G742","v":89987},{"$f":"'FR-16(7)(v)-4 PROD Energy'!G742+'FR-16(7)(v)-8 TRANS Energy'!G742+'FR-16(7)(v)-12 DIST Energy'!G742","v":0},{"$f":"'FR-16(7)(v)-5 PROD Cust'!G742+'FR-16(7)(v)-9 TRANS Cust'!G742+'FR-16(7)(v)-13 DIST Cust'!G742","v":52236},{"$f":"SUM(G742:I742)","v":142223},{"$f":"F742-J742","v":0}]
[3,null,{"$f":"'FR-16(7)(v)-1 Functional'!C743","v":"INTERDEPARTMENTAL"},{"$f":"'FR-16(7)(v)-1 Functional'!D743","v":"K902"},null,{"$f":"'FR-16(7)(v)-14 TOTAL CLASS'!G743","v":0},{"$f":"'FR-16(7)(v)-3 PROD Demand'!G743+'FR-16(7)(v)-7 TRANS Demand'!G743+'FR-16(7)(v)-11 DIST Demand'!G743","v":0},{"$f":"'FR-16(7)(v)-4 PROD Energy'!G743+'FR-16(7)(v)-8 TRANS Energy'!G743+'FR-16(7)(v)-12 DIST Energy'!G743","v":0},{"$f":"'FR-16(7)(v)-5 PROD Cust'!G743+'FR-16(7)(v)-9 TRANS Cust'!G743+'FR-16(7)(v)-13 DIST Cust'!G743","v":0},0,{"$f":"F743-J743","v":0}]
[4,null,{"$f":"'FR-16(7)(v)-1 Functional'!C744","v":"POLE & LINE ATTACHMENTS"},{"$f":"'FR-16(7)(v)-1 Functional'!D744","v":"D249"},null,{"$f":"'FR-16(7)(v)-14 TOTAL CLASS'!G744","v":121116},{"$f":"'FR-16(7)(v)-3 PROD Demand'!G744+'FR-16(7)(v)-7 TRANS Demand'!G744+'FR-16(7)(v)-11 DIST Demand'!G744","v":76632},{"$f":"'FR-16(7)(v)-4 PROD Energy'!G744+'FR-16(7)(v)-8 TRANS Energy'!G744+'FR-16(7)(v)-12 DIST Energy'!G744","v":0},{"$f":"'FR-16(7)(v)-5 PROD Cust'!G744+'FR-16(7)(v)-9 TRANS Cust'!G744+'FR-16(7)(v)-13 DIST Cust'!G744","v":44484},121116,0]
[5,null,{"$f":"'FR-16(7)(v)-1 Functional'!C745","v":"RENTS"},{"$f":"'FR-16(7)(v)-1 Functional'!D745","v":"D249"},null,{"$f":"'FR-16(7)(v)-14 TOTAL CLASS'!G745","v":595909},{"$f":"'FR-16(7)(v)-3 PROD Demand'!G745+'FR-16(7)(v)-7 TRANS Demand'!G745+'FR-16(7)(v)-11 DIST Demand'!G745","v":377041},{"$f":"'FR-16(7)(v)-4 PROD Energy'!G745+'FR-16(7)(v)-8 TRANS Energy'!G745+'FR-16(7)(v)-12 DIST Energy'!G745","v":0},{"$f":"'FR-16(7)(v)-5 PROD Cust'!G745+'FR-16(7)(v)-9 TRANS Cust'!G745+'FR-16(7)(v)-13 DIST Cust'!G745","v":218868},595909,0]
[6,null,{"$f":"'FR-16(7)(v)-1 Functional'!C746","v":"TRANSMISSION CHARGE PTP"},{"$f":"'FR-16(7)(v)-1 Functional'!D746","v":"T229"},null,{"$f":"'FR-16(7)(v)-14 TOTAL CLASS'!G746","v":65361},{"$f":"'FR-16(7)(v)-3 PROD Demand'!G746+'FR-16(7)(v)-7 TRANS Demand'!G746+'FR-16(7)(v)-11 DIST Demand'!G746","v":65361},{"$f":"'FR-16(7)(v)-4 PROD Energy'!G746+'FR-16(7)(v)-8 TRANS Energy'!G746+'FR-16(7)(v)-12 DIST Energy'!G746","v":0},{"$f":"'FR-16(7)(v)-5 PROD Cust'!G746+'FR-16(7)(v)-9 TRANS Cust'!G746+'FR-16(7)(v)-13 DIST Cust'!G746","v":0},65361,{"$f":"F746-J746","v":0}]
[7,null,{"$f":"'FR-16(7)(v)-1 Functional'!C747","v":"PJM REACTIVE REVENUE"},{"$f":"'FR-16(7)(v)-1 Functional'!D747","v":"K401"},null,{"$f":"'FR-16(7)(v)-14 TOTAL CLASS'!G747","v":0},{"$f":"'FR-16(7)(v)-3 PROD Demand'!G747+'FR-16(7)(v)-7 TRANS Demand'!G747+'FR-16(7)(v)-11 DIST Demand'!G747","v":0},{"$f":"'FR-16(7)(v)-4 PROD Energy'!G747+'FR-16(7)(v)-8 TRANS Energy'!G747+'FR-16(7)(v)-12 DIST Energy'!G747","v":0},{"$f":"'FR-16(7)(v)-5 PROD Cust'!G747+'FR-16(7)(v)-9 TRANS Cust'!G747+'FR-16(7)(v)-13 DIST Cust'!G747","v":0},0,{"$f":"F747-J747","v":0}]
[8,null,{"$f":"'FR-16(7)(v)-1 Functional'!C748","v":"OTHER TRANSMISSION REVENUES"},{"$f":"'FR-16(7)(v)-1 Functional'!D748","v":"T229"},null,{"$f":"'FR-16(7)(v)-14 TOTAL CLASS'!G748","v":11044},{"$f":"'FR-16(7)(v)-3 PROD Demand'!G748+'FR-16(7)(v)-7 TRANS Demand'!G748+'FR-16(7)(v)-11 DIST Demand'!G748","v":11044},{"$f":"'FR-16(7)(v)-4 PROD Energy'!G748+'FR-16(7)(v)-8 TRANS Energy'!G748+'FR-16(7)(v)-12 DIST Energy'!G748","v":0},{"$f":"'FR-16(7)(v)-5 PROD Cust'!G748+'FR-16(7)(v)-9 TRANS Cust'!G748+'FR-16(7)(v)-13 DIST Cust'!G748","v":0},11044,{"$f":"F748-J748","v":0}]
[9,null,{"$f":"'FR-16(7)(v)-1 Functional'!C749","v":"FIXED BILL PREMIUM"},{"$f":"'FR-16(7)(v)-1 Functional'!D749","v":"K902"},null,{"$f":"'FR-16(7)(v)-14 TOTAL CLASS'!G749","v":0},{"$f":"'FR-16(7)(v)-3 PROD Demand'!G749+'FR-16(7)(v)-7 TRANS Demand'!G749+'FR-16(7)(v)-11 DIST Demand'!G749","v":0},{"$f":"'FR-16(7)(v)-4 PROD Energy'!G749+'FR-16(7)(v)-8 TRANS Energy'!G749+'FR-16(7)(v)-12 DIST Energy'!G749","v":0},{"$f":"'FR-16(7)(v)-5 PROD Cust'!G749+'FR-16(7)(v)-9 TRANS Cust'!G749+'FR-16(7)(v)-13 DIST Cust'!G749","v":0},0,0]
[10,null,{"$f":"'FR-16(7)(v)-1 Functional'!C750","v":"  TOTAL OTHER OPERATING REVS"},null,null,{"$f":"SUM(F742:F749)","v":935653},620065,0,315588,935653,0]
[11]
[12,"COST OF SERVICE COMPUTATION"]
[13,null,{"$f":"'FR-16(7)(v)-1 Functional'!C753","v":"TOTAL OP EXP EXC INC & REV TAX"},null,null,{"$f":"F618","v":128022036},{"$f":"G618","v":55972072},{"$f":"H618","v":56861131},{"$f":"I618","v":15188833},{"$f":"J618","v":128022036},{"$f":"F753-J753","v":0}]
[14,null,"RETURN ON RATE BASE",null,null,{"$f":"F433","v":31416822},{"$f":"G433","v":25274130},{"$f":"H433","v":803039},{"$f":"I433","v":5339653},{"$f":"J433","v":31416822},{"$f":"F754-J754","v":0}]
[15,null,{"$f":"'FR-16(7)(v)-1 Functional'!C755","v":"NET FED INCOME TAX ALLOWABLE"},null,null,{"$f":"F676","v":2291207},{"$f":"G676","v":-2142603},{"$f":"H676","v":4171600},{"$f":"I676","v":262210},{"$f":"J676","v":2291207},{"$f":"F755-J755","v":0}]
[16,null,{"$f":"'FR-16(7)(v)-1 Functional'!C756","v":"NET STATE INCOME TAX ALLOWABLE"},null,null,{"$f":"F722","v":1822463},{"$f":"G722","v":667288},{"$f":"H722","v":706183},{"$f":"I722","v":448993},{"$f":"J722","v":1822464},{"$f":"F756-J756","v":-1}]
[17,null,{"$f":"'FR-16(7)(v)-1 Functional'!C757","v":"TOTAL OTHER OPERATING REVENUES"},null,null,{"$f":"-F750","v":-935653},{"$f":"-G750","v":-620065},{"$f":"-H750","v":0},{"$f":"-I750","v":-315588},{"$f":"-J750","v":-935653},{"$f":"F757-J757","v":0}]
[18,null,{"$f":"'FR-16(7)(v)-1 Functional'!C758","v":"  SUBTOTAL B"},null,null,{"$f":"SUM(F752:F757)","v":162616875},{"$f":"SUM(G752:G757)","v":79150822},{"$f":"SUM(H752:H757)","v":62541953},{"$f":"SUM(I752:I757)","v":20924101},{"$f":"SUM(J752:J757)","v":162616876},{"$f":"J758-F758","v":1}]
[19]
[20,null,{"$f":"'FR-16(7)(v)-1 Functional'!C760","v":"TOTAL OTHER OPERATING REVENUES"},null,null,{"$f":"-F757","v":935653},{"$f":"-G757","v":620065},{"$f":"-H757","v":0},{"$f":"-I757","v":315588},{"$f":"-J757","v":935653},{"$f":"F760-J760","v":0}]
[21,null,{"$f":"'FR-16(7)(v)-1 Functional'!C761","v":"LESS: REVS EXCL FROM REV TAX CALC"},null,null,{"$f":"'FR-16(7)(v)-14 TOTAL CLASS'!G761","v":0},{"$f":"'FR-16(7)(v)-3 PROD Demand'!G761+'FR-16(7)(v)-7 TRANS Demand'!G761+'FR-16(7)(v)-11 DIST Demand'!G761","v":0},{"$f":"'FR-16(7)(v)-4 PROD Energy'!G761+'FR-16(7)(v)-8 TRANS Energy'!G761+'FR-16(7)(v)-12 DIST Energy'!G761","v":0},{"$f":"'FR-16(7)(v)-5 PROD Cust'!G761+'FR-16(7)(v)-9 TRANS Cust'!G761+'FR-16(7)(v)-13 DIST Cust'!G761","v":0},{"$f":"SUM(G761:I761)","v":0},{"$f":"F761-J761","v":0}]
[22,null,{"$f":"'FR-16(7)(v)-1 Functional'!C762","v":"OTHER OPERATING REVS TO BE TAXED"},null,null,{"$f":"F760-F761","v":935653},620065,0,315588,935653,0]
[23]
[24,null,{"$f":"'FR-16(7)(v)-1 Functional'!C764","v":"REVENUE TAX FACTOR"},null,null,{"$f":"ROUND(F817/(1-F817),8)","v":0},0,0,0,0,0]
[25,null,{"$f":"'FR-16(7)(v)-1 Functional'!C765","v":"REVENUE TAX ON OTHER OPER. REVS"},null,null,{"$f":"ROUND(F764*F762,0)","v":0},{"$f":"ROUND(G764*G762,0)","v":0},{"$f":"ROUND(H764*H762,0)","v":0},{"$f":"ROUND(I764*I762,0)","v":0},{"$f":"SUM(G765:I765)","v":0},{"$f":"F765-J765","v":0}]
[26,null,{"$f":"'FR-16(7)(v)-1 Functional'!C766","v":"REVENUE TAX ON COST OF SERVICE"},null,null,{"$f":"ROUND(F764*F758,0)","v":0},{"$f":"ROUND(G764*G758,0)","v":0},{"$f":"ROUND(H764*H758,0)","v":0},{"$f":"ROUND(I764*I758,0)","v":0},{"$f":"SUM(G766:I766)","v":0},{"$f":"F766-J766","v":0}]
[27,null,{"$f":"'FR-16(7)(v)-1 Functional'!C767","v":"TOTAL REVENUE TAX"},null,null,{"$f":"F766+F765","v":0},0,0,0,0,0]
[28]
[29,null,"RESERVED",null,null,{"$f":"F24","v":0},{"$f":"G24","v":0},{"$f":"H24","v":0},{"$f":"I24","v":0},{"$f":"J24","v":0},{"$f":"F769-J769","v":0}]
[30,null,{"$f":"'FR-16(7)(v)-1 Functional'!C770","v":"  TOTAL ELECTRIC COST OF SERVICE"},null,null,{"$f":"F769+F767+F758","v":162616875},79150822,62541953,20924101,162616876,1]
[31]
[32,"PROPOSED REVENUES ",null,null,null,{"$f":"'FR-16(7)(v)-14 TOTAL CLASS'!G772","v":232142122},{"$f":"'FR-16(7)(v)-3 PROD Demand'!G772+'FR-16(7)(v)-7 TRANS Demand'!G772+'FR-16(7)(v)-11 DIST Demand'!G772","v":139994936},{"$f":"'FR-16(7)(v)-4 PROD Energy'!G772+'FR-16(7)(v)-8 TRANS Energy'!G772+'FR-16(7)(v)-12 DIST Energy'!G772","v":46260496},{"$f":"'FR-16(7)(v)-5 PROD Cust'!G772+'FR-16(7)(v)-9 TRANS Cust'!G772+'FR-16(7)(v)-13 DIST Cust'!G772","v":45886690},{"$f":"SUM(G772:I772)","v":232142122},{"$f":"F772-J772","v":0}]
[33,"TOTAL ELECTRIC COST OF SERVICE",null,null,null,{"$f":"-F770","v":-162616875},{"$f":"-G770","v":-79150822},{"$f":"-H770","v":-62541953},{"$f":"-I770","v":-20924101},{"$f":"SUM(G773:I773)","v":-162616876},{"$f":"F773-J773","v":1}]
[34,"EXCESS REVENUES",null,null,null,{"$f":"F773+F772","v":69525247},{"$f":"G773+G772","v":60844114},{"$f":"H773+H772","v":-16281457},{"$f":"I773+I772","v":24962589},{"$f":"SUM(G774:I774)","v":69525246},{"$f":"F774-J774","v":1}]
[35,"COMPOSITE TAX RATE",null,null,null,{"$f":"F729","v":0.24925115},0.24925115,0.24925115,0.24925115,0.24925115,0.24925115]
[36,"EXCESS TAX",null,null,null,{"$f":"ROUND(F775*F774,0)","v":17329248},{"$f":"'FR-16(7)(v)-3 PROD Demand'!G776+'FR-16(7)(v)-7 TRANS Demand'!G776+'FR-16(7)(v)-11 DIST Demand'!G776","v":15165466},{"$f":"ROUND(H775*H774,0)","v":-4058172},{"$f":"ROUND(I775*I774,0)","v":6221954},{"$f":"SUM(G776:I776)","v":17329248},{"$f":"F776-J776","v":0}]
[37,"EXCESS RETURN",null,null,null,{"$f":"F774-F776","v":52195999},{"$f":"'FR-16(7)(v)-3 PROD Demand'!G777+'FR-16(7)(v)-7 TRANS Demand'!G777+'FR-16(7)(v)-11 DIST Demand'!G777","v":45678648},{"$f":"H774-H776","v":-12223285},{"$f":"I774-I776","v":18740635},{"$f":"SUM(G777:I777)","v":52195998},{"$f":"F777-J777","v":1}]
[]
[{"$f":"co_name","v":"DUKE ENERGY KENTUCKY, INC."},null,null,null,null,null,null,null,null,{"$f":"J1","v":"FR-16(7)(v)-15"}]
[{"$f":"$A$2","v":"RESIDENTIAL CLASSIFIED - ELECTRIC COST OF SERVICE"},null,null,null,null,null,null,null,null,{"$f":"J2","v":"WITNESS RESPONSIBLE:"}]
[{"$f":"case_name","v":"CASE NO: 2019-00271"},null,null,null,null,null,null,null,null,{"$f":"Witness","v":"JAMES E. ZIOLKOWSKI"}]
[{"$f":"data_filing","v":"DATA: 12 MONTHS ACTUAL  & 0 MONTHS ESTIMATED"},null,null,null,null,null,null,null,null,{"$f":"\"PAGE \"&Pages2&\" OF \"&Pages2","v":"PAGE 15 OF 15"}]
[{"$f":"type","v":"TYPE OF FILING: \"X\" ORIGINAL   UPDATED    REVISED  "}]
[]
[]
["LINE",null,null,null,null,"TOTAL","CLASSIFIED",null,null,"TOTAL","ALL"]
["NO.","ROR, TAX RATES & SPEC FACTORS",null,"ALLO",null,{"$f":"$F$9","v":"RESIDENTIAL"},{"$f":"G9","v":"DEMAND"},"ENERGY","CUSTOMER","AT ISSUE","OTHER"]
[null,null,"Schedule 11",null,null,null,3,4,5]
[1,"RATE OF RETURN"]
[2," CAPITALIZATION AMOUNTS",null,null,null,null,"RATIO"]
[3,null,{"$f":"'FR-16(7)(v)-1 Functional'!C791","v":"LONG TERM DEBT"},null,null,{"$f":"'FR-16(7)(v)-1 Functional'!$F$791","v":665948506},{"$f":"IF(TotalCap=0,0,ROUND(F791/TotalCap,4))","v":0.45929999999999999}]
[4,null,{"$f":"'FR-16(7)(v)-1 Functional'!C792","v":"PREFERRED STOCK"},null,null,{"$f":"'FR-16(7)(v)-1 Functional'!$F$792","v":0},{"$f":"IF(TotalCap=0,0,ROUND(F792/TotalCap,4))","v":0}]
[5,null,{"$f":"'FR-16(7)(v)-1 Functional'!C793","v":"COMMON STOCK"},null,null,{"$f":"[0]!Equity","v":699348680},{"$f":"1-G791-G792-G794-G795","v":0.48239999999999994}]
[6,null,{"$f":"'FR-16(7)(v)-1 Functional'!C794","v":"SHORT TERM DEBT"},null,null,{"$f":"'FR-16(7)(v)-1 Functional'!$F$794","v":84600060},{"$f":"IF(TotalCap=0,0,ROUND(F794/TotalCap,4))","v":5.8299999999999998E-2}]
[7,null,{"$f":"'FR-16(7)(v)-1 Functional'!C795","v":"UNAMORTIZED DISCOUNT"},null,null,{"$f":"'FR-16(7)(v)-1 Functional'!$F$795","v":0},{"$f":"IF(TotalCap=0,0,ROUND(F795/TotalCap,4))","v":0}]
[8,null,{"$f":"'FR-16(7)(v)-1 Functional'!C796","v":"  TOTAL"},null,null,{"$f":"SUM(F790:F795)","v":1449897246},{"$f":"SUM(G791:G795)","v":1}]
[9]
[10," COST OF CAPITAL"]
[11,null,{"$f":"'FR-16(7)(v)-1 Functional'!C799","v":"LONG TERM DEBT"},null,null,{"$f":"'FR-16(7)(v)-1 Functional'!$F$799","v":4.0730000000000002E-2}]
[12,null,{"$f":"'FR-16(7)(v)-1 Functional'!C800","v":"PREFERRED STOCK"},null,null,{"$f":"'FR-16(7)(v)-1 Functional'!$F$800","v":0}]
[13,null,{"$f":"'FR-16(7)(v)-1 Functional'!C801","v":"COMMON STOCK"},null,null,{"$f":"'FR-16(7)(v)-1 Functional'!$F$801","v":9.8000000000000004E-2}]
[14,null,{"$f":"'FR-16(7)(v)-1 Functional'!C802","v":"SHORT TERM DEBT"},null,null,{"$f":"'FR-16(7)(v)-1 Functional'!$F$802","v":1.9369999999999998E-2}]
[15,null,{"$f":"'FR-16(7)(v)-1 Functional'!C803","v":"UNAMORTIZED DISCOUNT"},null,null,{"$f":"'FR-16(7)(v)-1 Functional'!$F$803","v":0}]
[16]
[17," WEIGHTED COST OF CAPITAL"]
[18,null,{"$f":"'FR-16(7)(v)-1 Functional'!C806","v":"LONG TERM DEBT"},null,null,{"$f":"ROUND(G791*F799,4)","v":1.8700000000000001E-2}]
[19,null,{"$f":"'FR-16(7)(v)-1 Functional'!C807","v":"PREFERRED STOCK"},null,null,{"$f":"ROUND(G792*F800,4)","v":0}]
[20,null,{"$f":"'FR-16(7)(v)-1 Functional'!C808","v":"COMMON STOCK"},null,null,{"$f":"ROUND(G793*F801,4)","v":4.7300000000000002E-2}]
[21,null,{"$f":"'FR-16(7)(v)-1 Functional'!C809","v":"SHORT TERM DEBT"},null,null,{"$f":"ROUND(G794*F802,4)","v":1.1000000000000001E-3}]
[22,null,{"$f":"'FR-16(7)(v)-1 Functional'!C810","v":"UNAMORTIZED DISCOUNT"},null,null,{"$f":"ROUND(G795*F803,4)","v":0}]
[23,null,{"$f":"'FR-16(7)(v)-1 Functional'!C811","v":"  TOT RATE OF RETURN ALLOWABLE"},null,null,{"$f":"SUM(F806:F810)","v":6.7100000000000007E-2}]
[24]
[25,"TAX RATES AND SPECIAL FACTORS"]
[26,null,{"$f":"'FR-16(7)(v)-1 Functional'!C814","v":"SHORT TERM DEBT COST"},null,null,0,{"$f":"F814","v":0},{"$f":"F814","v":0},{"$f":"F814","v":0},{"$f":"F814","v":0},{"$f":"F814","v":0}]
[27,null,{"$f":"'FR-16(7)(v)-1 Functional'!C815","v":"FEDERAL INCOME TAX RATE"},null,null,0.35,{"$f":"FIT","v":0.21},{"$f":"FIT","v":0.21},{"$f":"FIT","v":0.21},{"$f":"FIT","v":0.21},{"$f":"FIT","v":0.21}]
[28,null,{"$f":"'FR-16(7)(v)-1 Functional'!C816","v":"STATE INCOME TAX RATE"},null,null,{"$f":"SIT","v":4.9685000000000007E-2},4.9685000000000007E-2,4.9685000000000007E-2,4.9685000000000007E-2,4.9685000000000007E-2,4.9685000000000007E-2]
[29,null,{"$f":"'FR-16(7)(v)-1 Functional'!C817","v":"REVENUE TAX RATE"},null,null,0,{"$f":"RevTax","v":0},{"$f":"RevTax","v":0},{"$f":"RevTax","v":0},{"$f":"RevTax","v":0},{"$f":"RevTax","v":0}]
[]
[]
[]
[]
[]
[]
[]
[]
[]
[]
[]
[]
[]
[]
[]
[]
[]
[]
[]
[]
[]
[]
[]
[]
[]
[]
[]
[]
[]
[]
[]
[]
[]
[]
[]
[]
[]
[]
[]
[]
[]
[]
[]
[]
[]
[]
[]
[]
[]
[]
[]
[]
[]
[]
[]
[]
[]
[]
[]
[]
[]
[]
[]
[]
[]
[]
[]
[]
[]
[]
[]
[]
[]
[]
[]
[]
[]
[]
[]
[]
[]
[]
[]
[]
[]
[]
[]
[]
[]
[]
[]
[]
[]
[]
[]
[]
[]
[]
[]
[]
[]
[]
[]
[]
[]
[]
[]
[]
[]
[]
[]
[]
[]
[]
[]
[]
[]
[]
[]
[]
[]
[]
[]
[]
[]
[]
[]
[]
[]
[]
[]
[]
[]
[]
[]
[]
[]
[]
[]
[]
[]
[]
[]
[]
[]
[]
[]
[]
[]
[]
[]
[]
[]
[]
[]
[]
[]
[]
[]
[]
[]
[]
[]
[]
[]
[]
["DO NOT FILE THIS PAGE"]
[]
[{"$f":"co_name","v":"DUKE ENERGY KENTUCKY, INC."},null,null,null,null,null,null,null,null,{"$f":"J1","v":"FR-16(7)(v)-15"}]
[{"$f":"$A$2","v":"RESIDENTIAL CLASSIFIED - ELECTRIC COST OF SERVICE"},null,null,null,null,null,null,null,null,{"$f":"J2","v":"WITNESS RESPONSIBLE:"}]
[{"$f":"case_name","v":"CASE NO: 2019-00271"},null,null,null,null,null,null,null,null,{"$f":"Witness","v":"JAMES E. ZIOLKOWSKI"}]
[{"$f":"data_filing","v":"DATA: 12 MONTHS ACTUAL  & 0 MONTHS ESTIMATED"},null,null,null,null,null,null,null,null,{"$f":"\"PAGE \"&Pages2&\" OF \"&Pages2","v":"PAGE 15 OF 15"}]
[{"$f":"type","v":"TYPE OF FILING: \"X\" ORIGINAL   UPDATED    REVISED  "}]
[]
[]
["LINE",null,null,null,null,"TOTAL","CLASSIFIED",null,null,"TOTAL","ALL"]
["NO.","INCOME TAX BASED ON REVENUES",null,"ALLO",null,{"$f":"$F$9","v":"RESIDENTIAL"},"DEMAND","COMMODITY","CUSTOMER","AT ISSUE","OTHER"]
[null,null,"Schedule 13",null,null,null,{"$f":"G10","v":3},{"$f":"H10","v":4},{"$f":"I10","v":5}]
[1,"NET INCOME COMPUTATION"]
[2,null,{"$f":"'FR-16(7)(v)-1 Functional'!C1008","v":"TOTAL ELECTRIC COST OF SERVICE"},null,null,{"$f":"F770","v":162616875},79150822,62541953,20924101,162616876,1]
[3,null,{"$f":"'FR-16(7)(v)-1 Functional'!C1009","v":"TOTAL OTHER OPERATING REVENUES"},null,null,{"$f":"F750","v":935653},620065,0,315588,935653,0]
[4,null,{"$f":"'FR-16(7)(v)-1 Functional'!C1010","v":"  TOTAL ELECTRIC REVENUE"},null,null,{"$f":"SUM(F996:F998)","v":163552528},79770887,62541953,21239689,163552529,1]
[5,null,{"$f":"'FR-16(7)(v)-1 Functional'!C1011","v":"TOTAL OP EXP EX INC & REV TAX"},null,null,{"$f":"-F618","v":-128022036},-55972072,-56861131,-15188833,-128022036,0]
[6,null,{"$f":"'FR-16(7)(v)-1 Functional'!C1012","v":"FIRM SERVICE REVENUE TAX"},null,null,{"$f":"-ROUND(F817*F997,0)","v":0},{"$f":"-ROUND(G817*G997,0)","v":0},{"$f":"-ROUND(H817*H997,0)","v":0},{"$f":"-ROUND(I817*I997,0)","v":0},{"$f":"SUM(G1001:I1001)","v":0},{"$f":"-ROUND('FR-16(7)(v)-1 Functional'!K817*K997,0)","v":0}]
[7,null,{"$f":"'FR-16(7)(v)-1 Functional'!C1013","v":"  NET INCOME"},null,null,{"$f":"SUM(F999:F1001)","v":35530492},{"$f":"SUM(G999:G1001)","v":23798815},{"$f":"SUM(H999:H1001)","v":5680822},{"$f":"SUM(I999:I1001)","v":6050856},{"$f":"SUM(G1002:I1002)","v":35530493},{"$f":"SUM(K999:K1001)","v":1}]
[8]
[9,"ADJUSTMENTS TO NET INCOME"]
[10,null,{"$f":"'FR-16(7)(v)-1 Functional'!C1016","v":"TOTAL INTEREST EXPENSE"},null,null,{"$f":"-F633","v":-9286917},-7471116,-237381,-1578420,-9286917,0]
[11,null,{"$f":"'FR-16(7)(v)-1 Functional'!C1017","v":"TOTAL OTHER DEDUCTIONS"},null,null,{"$f":"-F639","v":-33567148},-28503355,-797724,-4266069,-33567148,0]
[12,null,{"$f":"'FR-16(7)(v)-1 Functional'!C1018","v":"  PRELIMINARY TAXABLE INCOME"},null,null,{"$f":"SUM(F1004:F1006)+F1002","v":-7323573},{"$f":"SUM(G1004:G1006)+G1002","v":-12175656},{"$f":"SUM(H1004:H1006)+H1002","v":4645717},{"$f":"SUM(I1004:I1006)+I1002","v":206367},{"$f":"SUM(G1007:I1007)","v":-7323572},{"$f":"SUM(K1004:K1006)+K1002","v":1}]
[13]
[14,"INCOME TAX BASED ON REVENUES"]
[15,"FEDERAL INCOME TAX COMPUTATION"]
[16,null,{"$f":"'FR-16(7)(v)-1 Functional'!C1022","v":"PRELIMINARY TAXABLE INCOME"},null,null,{"$f":"F1007","v":-7323573},-12175656,4645717,206367,-7323572,1]
[17,null,{"$f":"'FR-16(7)(v)-1 Functional'!C1023","v":"  NET FEDERAL TAXABLE INCOME"},null,null,{"$f":"SUM(F1011:F1011)","v":-7323573},-12175656,4645717,206367,-7323572,1]
[18,null,{"$f":"'FR-16(7)(v)-1 Functional'!C1024","v":"  FEDERAL INCOME TAX RATE"},null,null,{"$f":"F815","v":0.35},{"$f":"G815","v":0.21},{"$f":"H815","v":0.21},{"$f":"I815","v":0.21},null,{"$f":"'FR-16(7)(v)-1 Functional'!K815","v":0.21}]
[19,null,{"$f":"'FR-16(7)(v)-1 Functional'!C1025","v":"PRELIMINARY FIT = FI01 * K190"},null,null,{"$f":"ROUND(F1013*F1012,0)","v":-2563251},{"$f":"ROUND(G1013*G1012,0)","v":-2556888},{"$f":"ROUND(H1013*H1012,0)","v":975601},{"$f":"ROUND(I1013*I1012,0)","v":43337},{"$f":"SUM(G1014:I1014)","v":-1537950},{"$f":"ROUND(K1013*K1012,0)","v":0}]
[20,null,{"$f":"'FR-16(7)(v)-1 Functional'!C1026","v":"TOTAL FED DEF IT (410 & 411)"},null,null,{"$f":"F649","v":3708850},251110,3244016,213724,3708850,0]
[21,null,{"$f":"'FR-16(7)(v)-1 Functional'!C1027","v":"TOTAL AMORTIZED ITC"},null,null,{"$f":"-F653","v":-213},-176,-2,-35,-213,0]
[22,null,{"$f":"'FR-16(7)(v)-1 Functional'!C1028","v":"  NET FED INC TAX ALLOWABLE"},null,null,{"$f":"SUM(F1014:F1016)","v":1145386},-2305954,4219615,257026,2170687,0]
[23]
[24,"FEDERAL INCOME TAX PAYABLE"]
[25,null,{"$f":"'FR-16(7)(v)-1 Functional'!C1031","v":"PRELIM FIT"},null,null,{"$f":"F1014","v":-2563251},-2556888,975601,43337,-1537950,0]
[26,null,{"$f":"'FR-16(7)(v)-1 Functional'!C1032","v":"TEST YEAR INV TAX CREDIT"},null,null,{"$f":"-F658","v":0},0,0,0,0,0]
[27,null,{"$f":"'FR-16(7)(v)-1 Functional'!C1033","v":"  FED INC TAX PAYABLE"},null,null,{"$f":"SUM(F1019:F1021)","v":-2563251},-2556888,975601,43337,-1537950,0]
[28]
[29,"PRELIMINARY SUMMARY"]
[30,null,{"$f":"'FR-16(7)(v)-1 Functional'!C1036","v":"NET INCOME"},null,null,{"$f":"F1002","v":35530492},23798815,5680822,6050856,35530493,1]
[31,null,{"$f":"'FR-16(7)(v)-1 Functional'!C1037","v":"NET FED INC TAX ALLOWABLE"},null,null,{"$f":"-F1017","v":-1145386},2305954,-4219615,-257026,-2170687,0]
[32,null,{"$f":"'FR-16(7)(v)-1 Functional'!C1038","v":"  OVERALL RETURN EARNED"},null,null,{"$f":"SUM(F1024:F1026)","v":34385106},26104769,1461207,5793830,33359806,1]
[33]
[34,null,{"$f":"'FR-16(7)(v)-1 Functional'!C1040","v":"  RATE OF RETURN EARNED"},null,null,{"$f":"IF(F426=0,0,ROUND(F1027/F426,5))","v":7.3599999999999999E-2},6.9419999999999996E-2,0.12212000000000001,7.3209999999999997E-2,7.1410000000000001E-2,0]

{"sheet":"FR-16(7)(v)-16 DS Classified","index":20,"n_rows":1029,"n_cols":14,"rows_kept":1029,"cut":false,"hidden":false,"merged":[]}
[{"$f":"co_name","v":"DUKE ENERGY KENTUCKY, INC."},null,null,null,null,null,null,null,null,"FR-16(7)(v)-16"]
[{"$f":"F9&\" \"&\"CLASSIFIED - ELECTRIC COST OF SERVICE\"","v":"DISTR. SEC. CLASSIFIED - ELECTRIC COST OF SERVICE"},null,null,null,null,null,null,null,null,"WITNESS RESPONSIBLE:"]
[{"$f":"case_name","v":"CASE NO: 2019-00271"},null,null,null,null,null,null,null,null,{"$f":"Witness","v":"JAMES E. ZIOLKOWSKI"}]
[{"$f":"data_filing","v":"DATA: 12 MONTHS ACTUAL  & 0 MONTHS ESTIMATED"},null,null,null,null,null,null,null,null,{"$f":"\"PAGE \"&Pages2-14&\" OF \"&Pages2","v":"PAGE 1 OF 15"}]
[{"$f":"type","v":"TYPE OF FILING: \"X\" ORIGINAL   UPDATED    REVISED  "}]
[]
[]
["LINE",null,null,null,null,"TOTAL","CLASSIFIED",null,null,"TOTAL","ALL"]
["NO.","SUMMARY OF RESULTS",null,"ALLO",null,"DISTR. SEC.","DEMAND","ENERGY","CUSTOMER","AT ISSUE","OTHER"]
[null,null,"Schedule 1",null,null,null,3,4,5]
[1,"NET INCOME COMPUTATION"]
[2,null,{"$f":"'FR-16(7)(v)-1 Functional'!C12","v":"GROSS ELECTRIC PLANT IN SERVICE"},null,null,{"$f":"F123","v":502749698},{"$f":"G123","v":476445181},{"$f":"H123","v":8231577},{"$f":"I123","v":18072940},{"$f":"SUM(G12:I12)","v":502749698},{"$f":"F12-J12","v":0}]
[3,null,{"$f":"'FR-16(7)(v)-1 Functional'!C13","v":"TOTAL DEPRECIATION RESERVE"},null,null,{"$f":"-F200","v":-206121793},{"$f":"-G200","v":-196420443},{"$f":"-H200","v":-4014744},{"$f":"-I200","v":-5686606},{"$f":"SUM(G13:I13)","v":-206121793},{"$f":"F13-J13","v":0}]
[4,null,{"$f":"'FR-16(7)(v)-1 Functional'!C14","v":"TOTAL RATE BASE ADJUSTMENTS"},null,null,{"$f":"F421","v":-54305934},{"$f":"G421","v":-56930555},{"$f":"H421","v":4321323},{"$f":"I421","v":-1696702},{"$f":"SUM(G14:I14)","v":-54305934},{"$f":"F14-J14","v":0}]
[5,null,{"$f":"'FR-16(7)(v)-1 Functional'!C15","v":"  TOTAL RATE BASE"},null,null,{"$f":"SUM(F12:F14)","v":242321971},223094183,8538156,10689632,242321971,0]
[6]
[7,"OPERATING EXPENSES"]
[8,null,{"$f":"'FR-16(7)(v)-1 Functional'!C18","v":"TOTAL O&M EXPENSE"},null,null,{"$f":"F549","v":53105892},{"$f":"G549","v":11425378},{"$f":"H549","v":39907982},{"$f":"I549","v":1772532},{"$f":"SUM(G18:I18)","v":53105892},{"$f":"F18-J18","v":0}]
[9,null,{"$f":"'FR-16(7)(v)-1 Functional'!C19","v":"TOTAL DEPRECIATION EXPENSE"},null,null,{"$f":"F582","v":15181448},{"$f":"G582","v":14189551},{"$f":"H582","v":502754},{"$f":"I582","v":489143},{"$f":"SUM(G19:I19)","v":15181448},{"$f":"F19-J19","v":0}]
[10,null,{"$f":"'FR-16(7)(v)-1 Functional'!C20","v":"TOTAL OTHER TAX & MISC EXPENSE"},null,null,{"$f":"F612","v":3678419},{"$f":"G612","v":3371297},{"$f":"H612","v":137051},{"$f":"I612","v":170071},{"$f":"SUM(G20:I20)","v":3678419},{"$f":"F20-J20","v":0}]
[11,null,{"$f":"'FR-16(7)(v)-1 Functional'!C21","v":"  TOTAL OP EXP EXCLUDING INC & REV TAX"},null,null,{"$f":"SUM(F17:F20)","v":71965759},28986226,40547787,2431746,71965759,0]
[12,null,{"$f":"'FR-16(7)(v)-1 Functional'!C22","v":"NET FED INCOME TAX EXP ALLOWABLE"},null,null,{"$f":"F676","v":1993614},{"$f":"G676","v":-1016264},{"$f":"H676","v":2974642},{"$f":"I676","v":35236},{"$f":"SUM(G22:I22)","v":1993614},{"$f":"F22-J22","v":0}]
[13,null,"NET STATE INCOME TAX EXP ALLOWABLE",null,null,{"$f":"F722","v":285272},{"$f":"G722","v":-307196},{"$f":"H722","v":503554},{"$f":"I722","v":88913},{"$f":"SUM(G23:I23)","v":285271},{"$f":"F23-J23","v":1}]
[14,null,"RESERVED",{"$f":"'FR-16(7)(v)-1 Functional'!D24","v":"CW29"},null,{"$f":"'FR-16(7)(v)-14 TOTAL CLASS'!H24","v":0},{"$f":"'FR-16(7)(v)-3 PROD Demand'!H24+'FR-16(7)(v)-7 TRANS Demand'!H24+'FR-16(7)(v)-11 DIST Demand'!H24","v":0},{"$f":"'FR-16(7)(v)-4 PROD Energy'!H24+'FR-16(7)(v)-8 TRANS Energy'!H24+'FR-16(7)(v)-12 DIST Energy'!H24","v":0},{"$f":"'FR-16(7)(v)-5 PROD Cust'!H24+'FR-16(7)(v)-9 TRANS Cust'!H24+'FR-16(7)(v)-13 DIST Cust'!H24","v":0},{"$f":"SUM(G24:I24)","v":0},{"$f":"F24-J24","v":0}]
[15,null,{"$f":"'FR-16(7)(v)-1 Functional'!C25","v":"REVENUE TAX"},null,null,{"$f":"F767","v":0},{"$f":"G767","v":0},{"$f":"H767","v":0},{"$f":"I767","v":0},{"$f":"SUM(G25:I25)","v":0},{"$f":"F25-J25","v":0}]
[16,null,{"$f":"'FR-16(7)(v)-1 Functional'!C26","v":"  TOTAL OPERATING EXPENSE"},null,null,{"$f":"SUM(F21:F25)","v":74244645},27662766,44025983,2555895,74244644,1]
[17]
[18,"RETURN ON RATE BASE",null,null,null,{"$f":"F433","v":16275027},{"$f":"G433","v":14993459},{"$f":"H433","v":573028},{"$f":"I433","v":708540},{"$f":"SUM(G28:I28)","v":16275027},{"$f":"F28-J28","v":0}]
[19,"TOTAL OTHER OPERATING REVENUES",null,null,null,{"$f":"-F750","v":-406615},{"$f":"-G750","v":-366942},{"$f":"-H750","v":0},{"$f":"-I750","v":-39673},{"$f":"SUM(G29:I29)","v":-406615},{"$f":"F29-J29","v":0}]
[20,null,{"$f":"'FR-16(7)(v)-1 Functional'!C30","v":"TOTAL ELECTRIC COST OF SERVICE"},null,null,{"$f":"SUM(F26:F29)","v":90113057},{"$f":"SUM(G26:G29)","v":42289283},{"$f":"SUM(H26:H29)","v":44599011},{"$f":"SUM(I26:I29)","v":3224762},{"$f":"SUM(J26:J29)","v":90113056},{"$f":"F30-J30","v":1}]
[21,"ADJUSTMENT FOR INTERCLASS SUBSIDIZATION",null,{"$f":"1-'WP FR-16(7)(v) Rate Incr'!I11","v":0.95},null,{"$f":"SUM(G31:I31)","v":11001266},{"$f":"'WP FR-16(7)(v) Rate Incr'!T16","v":8079000},{"$f":"'WP FR-16(7)(v) Rate Incr'!U15","v":0},{"$f":"'WP FR-16(7)(v) Rate Incr'!V16","v":2922266},{"$f":"SUM(G31:I31)","v":11001266},{"$f":"F31-J31","v":0}]
[22,{"$f":"'FR-16(7)(v)-1 Functional'!$B$32","v":"REQUESTED REVENUES (COST OF SERVICE ADJUSTED FOR SUBSIDIES)"},null,null,null,{"$f":"F30+F31","v":101114323},50368283,44599011,6147028,101114322,1]
[23,"PROPOSED REVENUES",null,null,null,{"$f":"'FR-16(7)(v)-14 TOTAL CLASS'!H33","v":101595371},{"$f":"'FR-16(7)(v)-3 PROD Demand'!H33+'FR-16(7)(v)-7 TRANS Demand'!H33+'FR-16(7)(v)-11 DIST Demand'!H33","v":18320639},{"$f":"'FR-16(7)(v)-4 PROD Energy'!H33+'FR-16(7)(v)-8 TRANS Energy'!H33+'FR-16(7)(v)-12 DIST Energy'!H33","v":32987179},{"$f":"'FR-16(7)(v)-5 PROD Cust'!H33+'FR-16(7)(v)-9 TRANS Cust'!H33+'FR-16(7)(v)-13 DIST Cust'!H33","v":8849171},{"$f":"SUM(G33:I33)","v":60156989},{"$f":"F33-J33","v":41438382}]
[24,"DIFFERENCE (REQUESTED LESS PROPOSED)",null,null,null,{"$f":"F32-F33","v":-481048},32047644,11611832,-2702143,40957333,-41438381]
[25]
[26,"TOTAL RETURN EARNED",null,null,null,{"$f":"F777+F28","v":-6214457},{"$f":"G777+G28","v":-3000973},{"$f":"H777+H28","v":-8144542},{"$f":"I777+I28","v":4931059},{"$f":"J777+J28","v":-6214456},{"$f":"F36-J36","v":-1}]
[27,"RATE OF RETURN EARNED",null,null,null,{"$f":"IF(F431=0,0,ROUND(F36/F431,5))","v":-2.563E-2},-1.3429999999999999E-2,-0.95384999999999998,0.46705000000000002,-2.563E-2,0]
[28,"TOTAL RATE OF RETURN ALLOWABLE",null,null,null,{"$f":"$F$811","v":6.7100000000000007E-2},{"$f":"F811","v":6.7100000000000007E-2},{"$f":"F811","v":6.7100000000000007E-2},{"$f":"F811","v":6.7100000000000007E-2},{"$f":"F811","v":6.7100000000000007E-2},{"$f":"IF(K37=0,0,F811)","v":0},null,null,"Not Part of print range"]
[29,"RETURN EARNED ON COMMON EQUITY",null,null,null,{"$f":"IF(Equity=0,0,(F37-$F$806-$F$807-$F$809)*TotalCap/Equity)","v":-9.4185967271404589E-2},{"$f":"IF(Equity=0,0,(G37-$F$806-$F$807-$F$809)*TotalCap/Equity)","v":-6.8892795342918201E-2},{"$f":"IF(Equity=0,0,(H37-F806-F807-F809)*TotalCap/Equity)","v":-2.0185817088664555},{"$f":"IF(Equity=0,0,(I37-F806-F807-F809)*TotalCap/Equity)","v":0.92724353647668301},{"$f":"IF(Equity=0,0,(J37-F806-F807-F809)*TotalCap/Equity)","v":-9.4185967271404589E-2},{"$f":"IF(OR(E793=0,K37=0)=TRUE,0,(K37-E806-E807-E809)*E796/E793)","v":0},null,null,"Not Filed"]
[30,"ALLOWED RETURN ON COMMON EQUITY",null,null,null,{"$f":"IF(Equity=0,0,(F38-$F$806-$F$807-$F$809)*TotalCap/Equity)","v":9.8062871493229981E-2},{"$f":"IF(Equity=0,0,(G38-F806-F807-F809)*TotalCap/Equity)","v":9.8062871493229981E-2},{"$f":"IF(Equity=0,0,(H38-F806-F807-F809)*TotalCap/Equity)","v":9.8062871493229981E-2},{"$f":"IF(Equity=0,0,(I38-F806-F807-F809)*TotalCap/Equity)","v":9.8062871493229981E-2},{"$f":"IF(Equity=0,0,(J38-F806-F807-F809)*TotalCap/Equity)","v":9.8062871493229981E-2},{"$f":"IF(OR(Equity=0,K38=0)=TRUE,0,(K38-F806-F807-F809)*TotalCap/Equity)","v":0}]
[31,null,null,null,null," "]
[32,"PRESENT REVENUES",null,null,null,{"$f":"'FR-16(7)(v)-14 TOTAL CLASS'!H42","v":90318223},{"$f":"F42-SUM(H42:I42)","v":48492172},{"$f":"'FR-16(7)(v)-4 PROD Energy'!H42","v":39005769},{"$f":"'FR-16(7)(v)-13 DIST Cust'!H42","v":2820282},{"$f":"SUM(G42:I42)","v":90318223},{"$f":"F42-J42","v":0}]
[33,"REVENUE INCREASE JUSTIFIED",null,null,null,{"$f":"F30-F42","v":-205166},-6202889,5593242,404480,-205167,1]
[34,null,"PER UNIT PRES REV",null,null,{"$f":"IF(F42=0,0,ROUND(F43/F42,5))","v":-2.2699999999999999E-3},-0.12792000000000001,0.1434,0.14341999999999999,-2.2699999999999999E-3,0]
[35,"REVENUE INCREASE REQUESTED",null,null,null,{"$f":"F33-F42","v":11277148},-30171533,-6018590,6028889,-30161234,41438382]
[36,null,"PER UNIT PRES REV",null,null,{"$f":"IF(F42=0,0,ROUND(F45/F42,5))","v":0.12486},-0.62219000000000002,-0.15429999999999999,2.1376900000000001,-0.33394000000000001,0]
[]
[{"$f":"co_name","v":"DUKE ENERGY KENTUCKY, INC."},null,null,null,null,null,null,null,null,{"$f":"J1","v":"FR-16(7)(v)-16"}]
[{"$f":"$A$2","v":"DISTR. SEC. CLASSIFIED - ELECTRIC COST OF SERVICE"},null,null,null,null,null,null,null,null,{"$f":"J2","v":"WITNESS RESPONSIBLE:"}]
[{"$f":"case_name","v":"CASE NO: 2019-00271"},null,null,null,null,null,null,null,null,{"$f":"Witness","v":"JAMES E. ZIOLKOWSKI"}]
[{"$f":"data_filing","v":"DATA: 12 MONTHS ACTUAL  & 0 MONTHS ESTIMATED"},null,null,null,null,null,null,null,null,{"$f":"\"PAGE \"&Pages2-13&\" OF \"&Pages2","v":"PAGE 2 OF 15"}]
[{"$f":"type","v":"TYPE OF FILING: \"X\" ORIGINAL   UPDATED    REVISED  "}]
[]
[]
["LINE",null,null,null,null,"TOTAL","CLASSIFIED",null,null,"TOTAL","ALL"]
["NO.","GROSS ELECTRIC PLANT IN SERVICE",null,"ALLO",null,{"$f":"$F$9","v":"DISTR. SEC."},{"$f":"G9","v":"DEMAND"},"ENERGY","CUSTOMER","AT ISSUE","OTHER"]
[null,null,"Schedule 2",null,null,null,3,4,5,null," "]
[1,"PRODUCTION PLANT"]
[2,null,"PRODUCTION STEAM",{"$f":"'FR-16(7)(v)-1 Functional'!D59","v":"K201"},null,{"$f":"'FR-16(7)(v)-14 TOTAL CLASS'!H59","v":226076568},{"$f":"'FR-16(7)(v)-3 PROD Demand'!H59+'FR-16(7)(v)-7 TRANS Demand'!H59+'FR-16(7)(v)-11 DIST Demand'!H59","v":226076568},{"$f":"'FR-16(7)(v)-4 PROD Energy'!H59+'FR-16(7)(v)-8 TRANS Energy'!H59+'FR-16(7)(v)-12 DIST Energy'!H59","v":0},{"$f":"'FR-16(7)(v)-5 PROD Cust'!H59+'FR-16(7)(v)-9 TRANS Cust'!H59+'FR-16(7)(v)-13 DIST Cust'!H59","v":0},{"$f":"SUM(G59:I59)","v":226076568},{"$f":"F59-J59","v":0}]
[3,null,"PRODUCTION OTHER",{"$f":"'FR-16(7)(v)-1 Functional'!D60","v":"K201"},null,{"$f":"'FR-16(7)(v)-14 TOTAL CLASS'!H60","v":101071045},{"$f":"'FR-16(7)(v)-3 PROD Demand'!H60+'FR-16(7)(v)-7 TRANS Demand'!H60+'FR-16(7)(v)-11 DIST Demand'!H60","v":101071045},{"$f":"'FR-16(7)(v)-4 PROD Energy'!H60+'FR-16(7)(v)-8 TRANS Energy'!H60+'FR-16(7)(v)-12 DIST Energy'!H60","v":0},{"$f":"'FR-16(7)(v)-5 PROD Cust'!H60+'FR-16(7)(v)-9 TRANS Cust'!H60+'FR-16(7)(v)-13 DIST Cust'!H60","v":0},{"$f":"SUM(G60:I60)","v":101071045},{"$f":"F60-J60","v":0}]
[4,null,{"$f":"'FR-16(7)(v)-1 Functional'!C61","v":"ADJUSTMENT"},{"$f":"'FR-16(7)(v)-1 Functional'!D61","v":"K201"},null,{"$f":"'FR-16(7)(v)-14 TOTAL CLASS'!H61","v":0},{"$f":"'FR-16(7)(v)-3 PROD Demand'!H61+'FR-16(7)(v)-7 TRANS Demand'!H61+'FR-16(7)(v)-11 DIST Demand'!H61","v":0},{"$f":"'FR-16(7)(v)-4 PROD Energy'!H61+'FR-16(7)(v)-8 TRANS Energy'!H61+'FR-16(7)(v)-12 DIST Energy'!H61","v":0},{"$f":"'FR-16(7)(v)-5 PROD Cust'!H61+'FR-16(7)(v)-9 TRANS Cust'!H61+'FR-16(7)(v)-13 DIST Cust'!H61","v":0},{"$f":"SUM(G61:I61)","v":0},{"$f":"F61-J61","v":0}]
[5,null,{"$f":"'FR-16(7)(v)-1 Functional'!C62","v":"  PRODUCTION PLANT IN SERVICE"},null,null,{"$f":"SUM(F59:F61)","v":327147613},327147613,0,0,327147613,0]
[6]
[7,"TRANSMISSION PLANT"]
[8,null,"MAIN STEP-UP TRANSFORMERS",{"$f":"'FR-16(7)(v)-1 Functional'!D65","v":"K202"},null,{"$f":"'FR-16(7)(v)-14 TOTAL CLASS'!H65","v":0},{"$f":"'FR-16(7)(v)-3 PROD Demand'!H65+'FR-16(7)(v)-7 TRANS Demand'!H65+'FR-16(7)(v)-11 DIST Demand'!H65","v":0},{"$f":"'FR-16(7)(v)-4 PROD Energy'!H65+'FR-16(7)(v)-8 TRANS Energy'!H65+'FR-16(7)(v)-12 DIST Energy'!H65","v":0},{"$f":"'FR-16(7)(v)-5 PROD Cust'!H65+'FR-16(7)(v)-9 TRANS Cust'!H65+'FR-16(7)(v)-13 DIST Cust'!H65","v":0},{"$f":"SUM(G65:I65)","v":0},{"$f":"F65-J65","v":0}]
[9,null,"OTHER TRANSMISSION",{"$f":"'FR-16(7)(v)-1 Functional'!D66","v":"K202"},null,{"$f":"'FR-16(7)(v)-14 TOTAL CLASS'!H66","v":19586677},{"$f":"'FR-16(7)(v)-3 PROD Demand'!H66+'FR-16(7)(v)-7 TRANS Demand'!H66+'FR-16(7)(v)-11 DIST Demand'!H66","v":19586677},{"$f":"'FR-16(7)(v)-4 PROD Energy'!H66+'FR-16(7)(v)-8 TRANS Energy'!H66+'FR-16(7)(v)-12 DIST Energy'!H66","v":0},{"$f":"'FR-16(7)(v)-5 PROD Cust'!H66+'FR-16(7)(v)-9 TRANS Cust'!H66+'FR-16(7)(v)-13 DIST Cust'!H66","v":0},{"$f":"SUM(G66:I66)","v":19586677},{"$f":"F66-J66","v":0}]
[10,null,"ADJUSTMENT",{"$f":"'FR-16(7)(v)-1 Functional'!D67","v":"K202"},null,{"$f":"'FR-16(7)(v)-14 TOTAL CLASS'!H67","v":0},{"$f":"'FR-16(7)(v)-3 PROD Demand'!H67+'FR-16(7)(v)-7 TRANS Demand'!H67+'FR-16(7)(v)-11 DIST Demand'!H67","v":0},{"$f":"'FR-16(7)(v)-4 PROD Energy'!H67+'FR-16(7)(v)-8 TRANS Energy'!H67+'FR-16(7)(v)-12 DIST Energy'!H67","v":0},{"$f":"'FR-16(7)(v)-5 PROD Cust'!H67+'FR-16(7)(v)-9 TRANS Cust'!H67+'FR-16(7)(v)-13 DIST Cust'!H67","v":0},{"$f":"SUM(G67:I67)","v":0},{"$f":"F67-J67","v":0}]
[11,null,{"$f":"'FR-16(7)(v)-1 Functional'!C68","v":"  TRANSMISSION PLANT IN SERVICE"},null,null,{"$f":"SUM(F65:F67)","v":19586677},19586677,0,0,19586677,0]
[12]
[13,"TOTAL PROD & TRANS PLANT",null,null,null,{"$f":"F68+F62","v":346734290},346734290,0,0,346734290,0]
[14]
[15,"DISTRIBUTION PLANT"]
[16,null,{"$f":"'FR-16(7)(v)-1 Functional'!C73","v":"SUBSTATIONS"},{"$f":"'FR-16(7)(v)-1 Functional'!D73","v":"K215"},null,{"$f":"'FR-16(7)(v)-14 TOTAL CLASS'!H73","v":25221381},{"$f":"'FR-16(7)(v)-3 PROD Demand'!H73+'FR-16(7)(v)-7 TRANS Demand'!H73+'FR-16(7)(v)-11 DIST Demand'!H73","v":25221381},{"$f":"'FR-16(7)(v)-4 PROD Energy'!H73+'FR-16(7)(v)-8 TRANS Energy'!H73+'FR-16(7)(v)-12 DIST Energy'!H73","v":0},{"$f":"'FR-16(7)(v)-5 PROD Cust'!H73+'FR-16(7)(v)-9 TRANS Cust'!H73+'FR-16(7)(v)-13 DIST Cust'!H73","v":0},{"$f":"SUM(G73:I73)","v":25221381},{"$f":"F73-J73","v":0}]
[17,null,{"$f":"'FR-16(7)(v)-1 Functional'!C74","v":"POLES, TOWERS  & FIXTURES - PRIMARY - DEMAND"},{"$f":"'FR-16(7)(v)-1 Functional'!D74","v":"K205"},null,{"$f":"'FR-16(7)(v)-14 TOTAL CLASS'!H74","v":9151355},{"$f":"'FR-16(7)(v)-3 PROD Demand'!H74+'FR-16(7)(v)-7 TRANS Demand'!H74+'FR-16(7)(v)-11 DIST Demand'!H74","v":9151355},{"$f":"'FR-16(7)(v)-4 PROD Energy'!H74+'FR-16(7)(v)-8 TRANS Energy'!H74+'FR-16(7)(v)-12 DIST Energy'!H74","v":0},{"$f":"'FR-16(7)(v)-5 PROD Cust'!H74+'FR-16(7)(v)-9 TRANS Cust'!H74+'FR-16(7)(v)-13 DIST Cust'!H74","v":0},{"$f":"SUM(G74:I74)","v":9151355},{"$f":"F74-J74","v":0}]
[18,null,{"$f":"'FR-16(7)(v)-1 Functional'!C75","v":"POLES, TOWERS  & FIXTURES - PRIMARY - CUSTOMER"},{"$f":"'FR-16(7)(v)-1 Functional'!D75","v":"K405"},null,{"$f":"'FR-16(7)(v)-14 TOTAL CLASS'!H75","v":1376217},{"$f":"'FR-16(7)(v)-3 PROD Demand'!H75+'FR-16(7)(v)-7 TRANS Demand'!H75+'FR-16(7)(v)-11 DIST Demand'!H75","v":0},{"$f":"'FR-16(7)(v)-4 PROD Energy'!H75+'FR-16(7)(v)-8 TRANS Energy'!H75+'FR-16(7)(v)-12 DIST Energy'!H75","v":0},{"$f":"'FR-16(7)(v)-5 PROD Cust'!H75+'FR-16(7)(v)-9 TRANS Cust'!H75+'FR-16(7)(v)-13 DIST Cust'!H75","v":1376217},{"$f":"SUM(G75:I75)","v":1376217},{"$f":"F75-J75","v":0}]
[19,null,{"$f":"'FR-16(7)(v)-1 Functional'!C76","v":"POLES, TOWERS  & FIXTURES - SECONDARY - DEMAND"},{"$f":"'FR-16(7)(v)-1 Functional'!D76","v":"K206"},null,{"$f":"'FR-16(7)(v)-14 TOTAL CLASS'!H76","v":3499783},{"$f":"'FR-16(7)(v)-3 PROD Demand'!H76+'FR-16(7)(v)-7 TRANS Demand'!H76+'FR-16(7)(v)-11 DIST Demand'!H76","v":3499783},{"$f":"'FR-16(7)(v)-4 PROD Energy'!H76+'FR-16(7)(v)-8 TRANS Energy'!H76+'FR-16(7)(v)-12 DIST Energy'!H76","v":0},{"$f":"'FR-16(7)(v)-5 PROD Cust'!H76+'FR-16(7)(v)-9 TRANS Cust'!H76+'FR-16(7)(v)-13 DIST Cust'!H76","v":0},3499783,0]
[20,null,{"$f":"'FR-16(7)(v)-1 Functional'!C77","v":"POLES, TOWERS  & FIXTURES - SECONDARY - CUSTOMER"},{"$f":"'FR-16(7)(v)-1 Functional'!D77","v":"K405"},null,{"$f":"'FR-16(7)(v)-14 TOTAL CLASS'!H77","v":311085},{"$f":"'FR-16(7)(v)-3 PROD Demand'!H77+'FR-16(7)(v)-7 TRANS Demand'!H77+'FR-16(7)(v)-11 DIST Demand'!H77","v":0},{"$f":"'FR-16(7)(v)-4 PROD Energy'!H77+'FR-16(7)(v)-8 TRANS Energy'!H77+'FR-16(7)(v)-12 DIST Energy'!H77","v":0},{"$f":"'FR-16(7)(v)-5 PROD Cust'!H77+'FR-16(7)(v)-9 TRANS Cust'!H77+'FR-16(7)(v)-13 DIST Cust'!H77","v":311085},311085,0]
[21,null,{"$f":"'FR-16(7)(v)-1 Functional'!C78","v":"CONDUCTORS - OVERHEAD / PRIMARY - DEMAND"},{"$f":"'FR-16(7)(v)-1 Functional'!D78","v":"K205"},null,{"$f":"'FR-16(7)(v)-14 TOTAL CLASS'!H78","v":20854023},{"$f":"'FR-16(7)(v)-3 PROD Demand'!H78+'FR-16(7)(v)-7 TRANS Demand'!H78+'FR-16(7)(v)-11 DIST Demand'!H78","v":20854023},{"$f":"'FR-16(7)(v)-4 PROD Energy'!H78+'FR-16(7)(v)-8 TRANS Energy'!H78+'FR-16(7)(v)-12 DIST Energy'!H78","v":0},{"$f":"'FR-16(7)(v)-5 PROD Cust'!H78+'FR-16(7)(v)-9 TRANS Cust'!H78+'FR-16(7)(v)-13 DIST Cust'!H78","v":0},20854023,0]
[22,null,{"$f":"'FR-16(7)(v)-1 Functional'!C79","v":"CONDUCTORS - OVERHEAD / PRIMARY - CUSTOMER"},{"$f":"'FR-16(7)(v)-1 Functional'!D79","v":"K405"},null,{"$f":"'FR-16(7)(v)-14 TOTAL CLASS'!H79","v":1496480},{"$f":"'FR-16(7)(v)-3 PROD Demand'!H79+'FR-16(7)(v)-7 TRANS Demand'!H79+'FR-16(7)(v)-11 DIST Demand'!H79","v":0},{"$f":"'FR-16(7)(v)-4 PROD Energy'!H79+'FR-16(7)(v)-8 TRANS Energy'!H79+'FR-16(7)(v)-12 DIST Energy'!H79","v":0},{"$f":"'FR-16(7)(v)-5 PROD Cust'!H79+'FR-16(7)(v)-9 TRANS Cust'!H79+'FR-16(7)(v)-13 DIST Cust'!H79","v":1496480},1496480,0]
[23,null,{"$f":"'FR-16(7)(v)-1 Functional'!C80","v":"CONDUCTORS - OVERHEAD / SECONDARY - DEMAND"},{"$f":"'FR-16(7)(v)-1 Functional'!D80","v":"K206"},null,{"$f":"'FR-16(7)(v)-14 TOTAL CLASS'!H80","v":8491514},{"$f":"'FR-16(7)(v)-3 PROD Demand'!H80+'FR-16(7)(v)-7 TRANS Demand'!H80+'FR-16(7)(v)-11 DIST Demand'!H80","v":8491514},{"$f":"'FR-16(7)(v)-4 PROD Energy'!H80+'FR-16(7)(v)-8 TRANS Energy'!H80+'FR-16(7)(v)-12 DIST Energy'!H80","v":0},{"$f":"'FR-16(7)(v)-5 PROD Cust'!H80+'FR-16(7)(v)-9 TRANS Cust'!H80+'FR-16(7)(v)-13 DIST Cust'!H80","v":0},8491514,0]
[24,null,{"$f":"'FR-16(7)(v)-1 Functional'!C81","v":"CONDUCTORS - OVERHEAD / SECONDARY - CUSTOMER"},{"$f":"'FR-16(7)(v)-1 Functional'!D81","v":"K405"},null,{"$f":"'FR-16(7)(v)-14 TOTAL CLASS'!H81","v":619889},{"$f":"'FR-16(7)(v)-3 PROD Demand'!H81+'FR-16(7)(v)-7 TRANS Demand'!H81+'FR-16(7)(v)-11 DIST Demand'!H81","v":0},{"$f":"'FR-16(7)(v)-4 PROD Energy'!H81+'FR-16(7)(v)-8 TRANS Energy'!H81+'FR-16(7)(v)-12 DIST Energy'!H81","v":0},{"$f":"'FR-16(7)(v)-5 PROD Cust'!H81+'FR-16(7)(v)-9 TRANS Cust'!H81+'FR-16(7)(v)-13 DIST Cust'!H81","v":619889},619889,0]
[25,null,{"$f":"'FR-16(7)(v)-1 Functional'!C82","v":"CONDUCTORS - UNDERGROUND / PRIMARY - DEMAND"},{"$f":"'FR-16(7)(v)-1 Functional'!D82","v":"K205"},null,{"$f":"'FR-16(7)(v)-14 TOTAL CLASS'!H82","v":15564055},{"$f":"'FR-16(7)(v)-3 PROD Demand'!H82+'FR-16(7)(v)-7 TRANS Demand'!H82+'FR-16(7)(v)-11 DIST Demand'!H82","v":15564055},{"$f":"'FR-16(7)(v)-4 PROD Energy'!H82+'FR-16(7)(v)-8 TRANS Energy'!H82+'FR-16(7)(v)-12 DIST Energy'!H82","v":0},{"$f":"'FR-16(7)(v)-5 PROD Cust'!H82+'FR-16(7)(v)-9 TRANS Cust'!H82+'FR-16(7)(v)-13 DIST Cust'!H82","v":0},15564055,0]
[26,null,{"$f":"'FR-16(7)(v)-1 Functional'!C83","v":"CONDUCTORS - UNDERGROUND / PRIMARY - CUSTOMER"},{"$f":"'FR-16(7)(v)-1 Functional'!D83","v":"K405"},null,{"$f":"'FR-16(7)(v)-14 TOTAL CLASS'!H83","v":1588243},{"$f":"'FR-16(7)(v)-3 PROD Demand'!H83+'FR-16(7)(v)-7 TRANS Demand'!H83+'FR-16(7)(v)-11 DIST Demand'!H83","v":0},{"$f":"'FR-16(7)(v)-4 PROD Energy'!H83+'FR-16(7)(v)-8 TRANS Energy'!H83+'FR-16(7)(v)-12 DIST Energy'!H83","v":0},{"$f":"'FR-16(7)(v)-5 PROD Cust'!H83+'FR-16(7)(v)-9 TRANS Cust'!H83+'FR-16(7)(v)-13 DIST Cust'!H83","v":1588243},1588243,0]
[27,null,{"$f":"'FR-16(7)(v)-1 Functional'!C84","v":"CONDUCTORS - UNDERGROUND / SECONDARY - DEMAND"},{"$f":"'FR-16(7)(v)-1 Functional'!D84","v":"K206"},null,{"$f":"'FR-16(7)(v)-14 TOTAL CLASS'!H84","v":2666345},{"$f":"'FR-16(7)(v)-3 PROD Demand'!H84+'FR-16(7)(v)-7 TRANS Demand'!H84+'FR-16(7)(v)-11 DIST Demand'!H84","v":2666345},{"$f":"'FR-16(7)(v)-4 PROD Energy'!H84+'FR-16(7)(v)-8 TRANS Energy'!H84+'FR-16(7)(v)-12 DIST Energy'!H84","v":0},{"$f":"'FR-16(7)(v)-5 PROD Cust'!H84+'FR-16(7)(v)-9 TRANS Cust'!H84+'FR-16(7)(v)-13 DIST Cust'!H84","v":0},2666345,0]
[28,null,{"$f":"'FR-16(7)(v)-1 Functional'!C85","v":"CONDUCTORS - UNDERGROUND / SECONDARY - CUSTOMER"},{"$f":"'FR-16(7)(v)-1 Functional'!D85","v":"K405"},null,{"$f":"'FR-16(7)(v)-14 TOTAL CLASS'!H85","v":496663},{"$f":"'FR-16(7)(v)-3 PROD Demand'!H85+'FR-16(7)(v)-7 TRANS Demand'!H85+'FR-16(7)(v)-11 DIST Demand'!H85","v":0},{"$f":"'FR-16(7)(v)-4 PROD Energy'!H85+'FR-16(7)(v)-8 TRANS Energy'!H85+'FR-16(7)(v)-12 DIST Energy'!H85","v":0},{"$f":"'FR-16(7)(v)-5 PROD Cust'!H85+'FR-16(7)(v)-9 TRANS Cust'!H85+'FR-16(7)(v)-13 DIST Cust'!H85","v":496663},496663,0]
[29,null,{"$f":"'FR-16(7)(v)-1 Functional'!C86","v":"TRANSFORMERS DEMAND RELATED"},{"$f":"'FR-16(7)(v)-1 Functional'!D86","v":"K215"},null,{"$f":"'FR-16(7)(v)-14 TOTAL CLASS'!H86","v":13061994},{"$f":"'FR-16(7)(v)-3 PROD Demand'!H86+'FR-16(7)(v)-7 TRANS Demand'!H86+'FR-16(7)(v)-11 DIST Demand'!H86","v":13061994},{"$f":"'FR-16(7)(v)-4 PROD Energy'!H86+'FR-16(7)(v)-8 TRANS Energy'!H86+'FR-16(7)(v)-12 DIST Energy'!H86","v":0},{"$f":"'FR-16(7)(v)-5 PROD Cust'!H86+'FR-16(7)(v)-9 TRANS Cust'!H86+'FR-16(7)(v)-13 DIST Cust'!H86","v":0},{"$f":"SUM(G86:I86)","v":13061994},{"$f":"F86-J86","v":0}]
[30,null,{"$f":"'FR-16(7)(v)-1 Functional'!C87","v":"TRANSFORMERS CUSTOMER RELATED"},{"$f":"'FR-16(7)(v)-1 Functional'!D87","v":"K405"},null,{"$f":"'FR-16(7)(v)-14 TOTAL CLASS'!H87","v":1394834},{"$f":"'FR-16(7)(v)-3 PROD Demand'!H87+'FR-16(7)(v)-7 TRANS Demand'!H87+'FR-16(7)(v)-11 DIST Demand'!H87","v":0},{"$f":"'FR-16(7)(v)-4 PROD Energy'!H87+'FR-16(7)(v)-8 TRANS Energy'!H87+'FR-16(7)(v)-12 DIST Energy'!H87","v":0},{"$f":"'FR-16(7)(v)-5 PROD Cust'!H87+'FR-16(7)(v)-9 TRANS Cust'!H87+'FR-16(7)(v)-13 DIST Cust'!H87","v":1394834},1394834,0]
[31,null,{"$f":"'FR-16(7)(v)-1 Functional'!C88","v":"SERVICES"},{"$f":"'FR-16(7)(v)-1 Functional'!D88","v":"K217"},null,{"$f":"'FR-16(7)(v)-14 TOTAL CLASS'!H88","v":1913994},{"$f":"'FR-16(7)(v)-3 PROD Demand'!H88+'FR-16(7)(v)-7 TRANS Demand'!H88+'FR-16(7)(v)-11 DIST Demand'!H88","v":0},{"$f":"'FR-16(7)(v)-4 PROD Energy'!H88+'FR-16(7)(v)-8 TRANS Energy'!H88+'FR-16(7)(v)-12 DIST Energy'!H88","v":0},{"$f":"'FR-16(7)(v)-5 PROD Cust'!H88+'FR-16(7)(v)-9 TRANS Cust'!H88+'FR-16(7)(v)-13 DIST Cust'!H88","v":1913994},1913994,0]
[32,null,{"$f":"'FR-16(7)(v)-1 Functional'!C89","v":"METERS"},{"$f":"'FR-16(7)(v)-1 Functional'!D89","v":"K407"},null,{"$f":"'FR-16(7)(v)-14 TOTAL CLASS'!H89","v":4129447},{"$f":"'FR-16(7)(v)-3 PROD Demand'!H89+'FR-16(7)(v)-7 TRANS Demand'!H89+'FR-16(7)(v)-11 DIST Demand'!H89","v":0},{"$f":"'FR-16(7)(v)-4 PROD Energy'!H89+'FR-16(7)(v)-8 TRANS Energy'!H89+'FR-16(7)(v)-12 DIST Energy'!H89","v":0},{"$f":"'FR-16(7)(v)-5 PROD Cust'!H89+'FR-16(7)(v)-9 TRANS Cust'!H89+'FR-16(7)(v)-13 DIST Cust'!H89","v":4129447},4129447,0]
[33,null,{"$f":"'FR-16(7)(v)-1 Functional'!C90","v":"STREET LIGHTS"},{"$f":"'FR-16(7)(v)-1 Functional'!D90","v":"K401"},null,{"$f":"'FR-16(7)(v)-14 TOTAL CLASS'!H90","v":0},{"$f":"'FR-16(7)(v)-3 PROD Demand'!H90+'FR-16(7)(v)-7 TRANS Demand'!H90+'FR-16(7)(v)-11 DIST Demand'!H90","v":0},{"$f":"'FR-16(7)(v)-4 PROD Energy'!H90+'FR-16(7)(v)-8 TRANS Energy'!H90+'FR-16(7)(v)-12 DIST Energy'!H90","v":0},{"$f":"'FR-16(7)(v)-5 PROD Cust'!H90+'FR-16(7)(v)-9 TRANS Cust'!H90+'FR-16(7)(v)-13 DIST Cust'!H90","v":0},0,0]
[34,null,{"$f":"'FR-16(7)(v)-1 Functional'!C91","v":"ADJUSTMENT  "},{"$f":"'FR-16(7)(v)-1 Functional'!D91","v":"K209"},null,{"$f":"'FR-16(7)(v)-14 TOTAL CLASS'!H91","v":0},{"$f":"'FR-16(7)(v)-3 PROD Demand'!H91+'FR-16(7)(v)-7 TRANS Demand'!H91+'FR-16(7)(v)-11 DIST Demand'!H91","v":0},{"$f":"'FR-16(7)(v)-4 PROD Energy'!H91+'FR-16(7)(v)-8 TRANS Energy'!H91+'FR-16(7)(v)-12 DIST Energy'!H91","v":0},{"$f":"'FR-16(7)(v)-5 PROD Cust'!H91+'FR-16(7)(v)-9 TRANS Cust'!H91+'FR-16(7)(v)-13 DIST Cust'!H91","v":0},0,0]
[35,null,{"$f":"'FR-16(7)(v)-1 Functional'!C92","v":"CONSTRUCTION NOT CLASSIFIED"},{"$f":"'FR-16(7)(v)-1 Functional'!D92","v":"K209"},null,{"$f":"'FR-16(7)(v)-14 TOTAL CLASS'!H92","v":21848508},{"$f":"'FR-16(7)(v)-3 PROD Demand'!H92+'FR-16(7)(v)-7 TRANS Demand'!H92+'FR-16(7)(v)-11 DIST Demand'!H92","v":19244958},{"$f":"'FR-16(7)(v)-4 PROD Energy'!H92+'FR-16(7)(v)-8 TRANS Energy'!H92+'FR-16(7)(v)-12 DIST Energy'!H92","v":0},{"$f":"'FR-16(7)(v)-5 PROD Cust'!H92+'FR-16(7)(v)-9 TRANS Cust'!H92+'FR-16(7)(v)-13 DIST Cust'!H92","v":2603550},21848508,0]
[36,null,{"$f":"'FR-16(7)(v)-1 Functional'!C93","v":"RWIP"},{"$f":"'FR-16(7)(v)-1 Functional'!D93","v":"K215"},null,{"$f":"'FR-16(7)(v)-14 TOTAL CLASS'!H93","v":0},{"$f":"'FR-16(7)(v)-3 PROD Demand'!H93+'FR-16(7)(v)-7 TRANS Demand'!H93+'FR-16(7)(v)-11 DIST Demand'!H93","v":0},{"$f":"'FR-16(7)(v)-4 PROD Energy'!H93+'FR-16(7)(v)-8 TRANS Energy'!H93+'FR-16(7)(v)-12 DIST Energy'!H93","v":0},{"$f":"'FR-16(7)(v)-5 PROD Cust'!H93+'FR-16(7)(v)-9 TRANS Cust'!H93+'FR-16(7)(v)-13 DIST Cust'!H93","v":0},{"$f":"SUM(G93:I93)","v":0},{"$f":"F93-J93","v":0}]
[37,null,{"$f":"'FR-16(7)(v)-1 Functional'!C94","v":"  DISTRIBUTION PLANT IN SERVICE"},null,null,{"$f":"SUM(F73:F93)","v":133685810},{"$f":"SUM(G73:G92)","v":117755408},0,15930402,133685810,0]
[38]
[39,"TOTAL TRANS & DIST PLANT",null,null,null,{"$f":"F94+F68","v":153272487},137342085,0,15930402,153272487,0]
[40,"TOTAL GROSS PTD PLANT",null,null,null,{"$f":"F94+F70","v":480420100},464489698,0,15930402,480420100,0]
[41]
[42,"GENERAL & INTANGIBLE PLANT"]
[43,null,{"$f":"'FR-16(7)(v)-1 Functional'!C100","v":"PRODUCTION - DEMAND"},{"$f":"'FR-16(7)(v)-1 Functional'!D100","v":"K201"},null,{"$f":"'FR-16(7)(v)-14 TOTAL CLASS'!H100","v":4520783},{"$f":"'FR-16(7)(v)-3 PROD Demand'!H100+'FR-16(7)(v)-7 TRANS Demand'!H100+'FR-16(7)(v)-11 DIST Demand'!H100","v":4520783},{"$f":"'FR-16(7)(v)-4 PROD Energy'!H100+'FR-16(7)(v)-8 TRANS Energy'!H100+'FR-16(7)(v)-12 DIST Energy'!H100","v":0},{"$f":"'FR-16(7)(v)-5 PROD Cust'!H100+'FR-16(7)(v)-9 TRANS Cust'!H100+'FR-16(7)(v)-13 DIST Cust'!H100","v":0},{"$f":"SUM(G100:I100)","v":4520783},{"$f":"F100-J100","v":0}]
[44,null,{"$f":"'FR-16(7)(v)-1 Functional'!C101","v":"PRODUCTION - ENERGY"},{"$f":"'FR-16(7)(v)-1 Functional'!D101","v":"K301"},null,{"$f":"'FR-16(7)(v)-14 TOTAL CLASS'!H101","v":5256495},{"$f":"'FR-16(7)(v)-3 PROD Demand'!H101+'FR-16(7)(v)-7 TRANS Demand'!H101+'FR-16(7)(v)-11 DIST Demand'!H101","v":0},{"$f":"'FR-16(7)(v)-4 PROD Energy'!H101+'FR-16(7)(v)-8 TRANS Energy'!H101+'FR-16(7)(v)-12 DIST Energy'!H101","v":5256495},{"$f":"'FR-16(7)(v)-5 PROD Cust'!H101+'FR-16(7)(v)-9 TRANS Cust'!H101+'FR-16(7)(v)-13 DIST Cust'!H101","v":0},{"$f":"SUM(G101:I101)","v":5256495},{"$f":"F101-J101","v":0}]
[45,null,{"$f":"'FR-16(7)(v)-1 Functional'!C102","v":"TRANSMISSION"},{"$f":"'FR-16(7)(v)-1 Functional'!D102","v":"K202"},null,{"$f":"'FR-16(7)(v)-14 TOTAL CLASS'!H102","v":714384},{"$f":"'FR-16(7)(v)-3 PROD Demand'!H102+'FR-16(7)(v)-7 TRANS Demand'!H102+'FR-16(7)(v)-11 DIST Demand'!H102","v":714384},{"$f":"'FR-16(7)(v)-4 PROD Energy'!H102+'FR-16(7)(v)-8 TRANS Energy'!H102+'FR-16(7)(v)-12 DIST Energy'!H102","v":0},{"$f":"'FR-16(7)(v)-5 PROD Cust'!H102+'FR-16(7)(v)-9 TRANS Cust'!H102+'FR-16(7)(v)-13 DIST Cust'!H102","v":0},714384,0]
[46,null,{"$f":"'FR-16(7)(v)-1 Functional'!C103","v":"DISTRIBUTION - DEMAND"},{"$f":"'FR-16(7)(v)-1 Functional'!D103","v":"K201"},null,{"$f":"'FR-16(7)(v)-14 TOTAL CLASS'!H103","v":2399328},{"$f":"'FR-16(7)(v)-3 PROD Demand'!H103+'FR-16(7)(v)-7 TRANS Demand'!H103+'FR-16(7)(v)-11 DIST Demand'!H103","v":2399328},{"$f":"'FR-16(7)(v)-4 PROD Energy'!H103+'FR-16(7)(v)-8 TRANS Energy'!H103+'FR-16(7)(v)-12 DIST Energy'!H103","v":0},{"$f":"'FR-16(7)(v)-5 PROD Cust'!H103+'FR-16(7)(v)-9 TRANS Cust'!H103+'FR-16(7)(v)-13 DIST Cust'!H103","v":0},2399328,0]
[47,null,{"$f":"'FR-16(7)(v)-1 Functional'!C104","v":"DISTRIBUTION - CUSTOMER"},{"$f":"'FR-16(7)(v)-1 Functional'!D104","v":"K405"},null,{"$f":"'FR-16(7)(v)-14 TOTAL CLASS'!H104","v":177286},{"$f":"'FR-16(7)(v)-3 PROD Demand'!H104+'FR-16(7)(v)-7 TRANS Demand'!H104+'FR-16(7)(v)-11 DIST Demand'!H104","v":0},{"$f":"'FR-16(7)(v)-4 PROD Energy'!H104+'FR-16(7)(v)-8 TRANS Energy'!H104+'FR-16(7)(v)-12 DIST Energy'!H104","v":0},{"$f":"'FR-16(7)(v)-5 PROD Cust'!H104+'FR-16(7)(v)-9 TRANS Cust'!H104+'FR-16(7)(v)-13 DIST Cust'!H104","v":177286},177286,0]
[48,null,{"$f":"'FR-16(7)(v)-1 Functional'!C105","v":"CUSTOMER ACCOUNTING"},{"$f":"'FR-16(7)(v)-1 Functional'!D105","v":"A308"},null,{"$f":"'FR-16(7)(v)-14 TOTAL CLASS'!H105","v":1151465},{"$f":"'FR-16(7)(v)-3 PROD Demand'!H105+'FR-16(7)(v)-7 TRANS Demand'!H105+'FR-16(7)(v)-11 DIST Demand'!H105","v":0},{"$f":"'FR-16(7)(v)-4 PROD Energy'!H105+'FR-16(7)(v)-8 TRANS Energy'!H105+'FR-16(7)(v)-12 DIST Energy'!H105","v":0},{"$f":"'FR-16(7)(v)-5 PROD Cust'!H105+'FR-16(7)(v)-9 TRANS Cust'!H105+'FR-16(7)(v)-13 DIST Cust'!H105","v":1151465},1151465,0]
[49,null,{"$f":"'FR-16(7)(v)-1 Functional'!C106","v":"CUSTOMER SERVICE & INFORMATION"},{"$f":"'FR-16(7)(v)-1 Functional'!D106","v":"A310"},null,{"$f":"'FR-16(7)(v)-14 TOTAL CLASS'!H106","v":39424},{"$f":"'FR-16(7)(v)-3 PROD Demand'!H106+'FR-16(7)(v)-7 TRANS Demand'!H106+'FR-16(7)(v)-11 DIST Demand'!H106","v":0},{"$f":"'FR-16(7)(v)-4 PROD Energy'!H106+'FR-16(7)(v)-8 TRANS Energy'!H106+'FR-16(7)(v)-12 DIST Energy'!H106","v":0},{"$f":"'FR-16(7)(v)-5 PROD Cust'!H106+'FR-16(7)(v)-9 TRANS Cust'!H106+'FR-16(7)(v)-13 DIST Cust'!H106","v":39424},39424,0]
[50,null,{"$f":"'FR-16(7)(v)-1 Functional'!C107","v":"SALES"},{"$f":"'FR-16(7)(v)-1 Functional'!D107","v":"A312"},null,{"$f":"'FR-16(7)(v)-14 TOTAL CLASS'!H107","v":0},{"$f":"'FR-16(7)(v)-3 PROD Demand'!H107+'FR-16(7)(v)-7 TRANS Demand'!H107+'FR-16(7)(v)-11 DIST Demand'!H107","v":0},{"$f":"'FR-16(7)(v)-4 PROD Energy'!H107+'FR-16(7)(v)-8 TRANS Energy'!H107+'FR-16(7)(v)-12 DIST Energy'!H107","v":0},{"$f":"'FR-16(7)(v)-5 PROD Cust'!H107+'FR-16(7)(v)-9 TRANS Cust'!H107+'FR-16(7)(v)-13 DIST Cust'!H107","v":0},0,0]
[51,null,{"$f":"'FR-16(7)(v)-1 Functional'!C108","v":"ADJUSTMENT"},{"$f":"'FR-16(7)(v)-1 Functional'!D108","v":"A315"},null,{"$f":"'FR-16(7)(v)-14 TOTAL CLASS'!H108","v":0},{"$f":"'FR-16(7)(v)-3 PROD Demand'!H108+'FR-16(7)(v)-7 TRANS Demand'!H108+'FR-16(7)(v)-11 DIST Demand'!H108","v":0},{"$f":"'FR-16(7)(v)-4 PROD Energy'!H108+'FR-16(7)(v)-8 TRANS Energy'!H108+'FR-16(7)(v)-12 DIST Energy'!H108","v":0},{"$f":"'FR-16(7)(v)-5 PROD Cust'!H108+'FR-16(7)(v)-9 TRANS Cust'!H108+'FR-16(7)(v)-13 DIST Cust'!H108","v":0},0,0]
[52,null,{"$f":"'FR-16(7)(v)-1 Functional'!C109","v":"  GEN & INTANG PLANT IN SERVICE"},null,null,{"$f":"SUM(F100:F108)","v":14259165},7634495,5256495,1368175,14259165,0]
[53]
[54,"COMMON & OTHER PLANT"]
[55,null,{"$f":"'FR-16(7)(v)-1 Functional'!C112","v":"PRODUCTION - DEMAND"},{"$f":"'FR-16(7)(v)-1 Functional'!D112","v":"K201"},null,{"$f":"'FR-16(7)(v)-14 TOTAL CLASS'!H112","v":2558683},{"$f":"'FR-16(7)(v)-3 PROD Demand'!H112+'FR-16(7)(v)-7 TRANS Demand'!H112+'FR-16(7)(v)-11 DIST Demand'!H112","v":2558683},{"$f":"'FR-16(7)(v)-4 PROD Energy'!H112+'FR-16(7)(v)-8 TRANS Energy'!H112+'FR-16(7)(v)-12 DIST Energy'!H112","v":0},{"$f":"'FR-16(7)(v)-5 PROD Cust'!H112+'FR-16(7)(v)-9 TRANS Cust'!H112+'FR-16(7)(v)-13 DIST Cust'!H112","v":0},{"$f":"SUM(G112:I112)","v":2558683},{"$f":"F112-J112","v":0}]
[56,null,{"$f":"'FR-16(7)(v)-1 Functional'!C113","v":"PRODUCTION - ENERGY"},{"$f":"'FR-16(7)(v)-1 Functional'!D113","v":"K301"},null,{"$f":"'FR-16(7)(v)-14 TOTAL CLASS'!H113","v":2975082},{"$f":"'FR-16(7)(v)-3 PROD Demand'!H113+'FR-16(7)(v)-7 TRANS Demand'!H113+'FR-16(7)(v)-11 DIST Demand'!H113","v":0},{"$f":"'FR-16(7)(v)-4 PROD Energy'!H113+'FR-16(7)(v)-8 TRANS Energy'!H113+'FR-16(7)(v)-12 DIST Energy'!H113","v":2975082},{"$f":"'FR-16(7)(v)-5 PROD Cust'!H113+'FR-16(7)(v)-9 TRANS Cust'!H113+'FR-16(7)(v)-13 DIST Cust'!H113","v":0},{"$f":"SUM(G113:I113)","v":2975082},{"$f":"F113-J113","v":0}]
[57,null,{"$f":"'FR-16(7)(v)-1 Functional'!C114","v":"TRANSMISSION"},{"$f":"'FR-16(7)(v)-1 Functional'!D114","v":"K202"},null,{"$f":"'FR-16(7)(v)-14 TOTAL CLASS'!H114","v":404328},{"$f":"'FR-16(7)(v)-3 PROD Demand'!H114+'FR-16(7)(v)-7 TRANS Demand'!H114+'FR-16(7)(v)-11 DIST Demand'!H114","v":404328},{"$f":"'FR-16(7)(v)-4 PROD Energy'!H114+'FR-16(7)(v)-8 TRANS Energy'!H114+'FR-16(7)(v)-12 DIST Energy'!H114","v":0},{"$f":"'FR-16(7)(v)-5 PROD Cust'!H114+'FR-16(7)(v)-9 TRANS Cust'!H114+'FR-16(7)(v)-13 DIST Cust'!H114","v":0},404328,0]
[58,null,{"$f":"'FR-16(7)(v)-1 Functional'!C115","v":"DISTRIBUTION - DEMAND"},{"$f":"'FR-16(7)(v)-1 Functional'!D115","v":"K201"},null,{"$f":"'FR-16(7)(v)-14 TOTAL CLASS'!H115","v":1357977},{"$f":"'FR-16(7)(v)-3 PROD Demand'!H115+'FR-16(7)(v)-7 TRANS Demand'!H115+'FR-16(7)(v)-11 DIST Demand'!H115","v":1357977},{"$f":"'FR-16(7)(v)-4 PROD Energy'!H115+'FR-16(7)(v)-8 TRANS Energy'!H115+'FR-16(7)(v)-12 DIST Energy'!H115","v":0},{"$f":"'FR-16(7)(v)-5 PROD Cust'!H115+'FR-16(7)(v)-9 TRANS Cust'!H115+'FR-16(7)(v)-13 DIST Cust'!H115","v":0},1357977,0]
[59,null,{"$f":"'FR-16(7)(v)-1 Functional'!C116","v":"DISTRIBUTION - CUSTOMER"},{"$f":"'FR-16(7)(v)-1 Functional'!D116","v":"K405"},null,{"$f":"'FR-16(7)(v)-14 TOTAL CLASS'!H116","v":100341},{"$f":"'FR-16(7)(v)-3 PROD Demand'!H116+'FR-16(7)(v)-7 TRANS Demand'!H116+'FR-16(7)(v)-11 DIST Demand'!H116","v":0},{"$f":"'FR-16(7)(v)-4 PROD Energy'!H116+'FR-16(7)(v)-8 TRANS Energy'!H116+'FR-16(7)(v)-12 DIST Energy'!H116","v":0},{"$f":"'FR-16(7)(v)-5 PROD Cust'!H116+'FR-16(7)(v)-9 TRANS Cust'!H116+'FR-16(7)(v)-13 DIST Cust'!H116","v":100341},100341,0]
[60,null,{"$f":"'FR-16(7)(v)-1 Functional'!C117","v":"CUSTOMER ACCOUNTING"},{"$f":"'FR-16(7)(v)-1 Functional'!D117","v":"A308"},null,{"$f":"'FR-16(7)(v)-14 TOTAL CLASS'!H117","v":651709},{"$f":"'FR-16(7)(v)-3 PROD Demand'!H117+'FR-16(7)(v)-7 TRANS Demand'!H117+'FR-16(7)(v)-11 DIST Demand'!H117","v":0},{"$f":"'FR-16(7)(v)-4 PROD Energy'!H117+'FR-16(7)(v)-8 TRANS Energy'!H117+'FR-16(7)(v)-12 DIST Energy'!H117","v":0},{"$f":"'FR-16(7)(v)-5 PROD Cust'!H117+'FR-16(7)(v)-9 TRANS Cust'!H117+'FR-16(7)(v)-13 DIST Cust'!H117","v":651709},651709,0]
[61,null,{"$f":"'FR-16(7)(v)-1 Functional'!C118","v":"CUSTOMER SERVICE & INFORMATION"},{"$f":"'FR-16(7)(v)-1 Functional'!D118","v":"A310"},null,{"$f":"'FR-16(7)(v)-14 TOTAL CLASS'!H118","v":22313},{"$f":"'FR-16(7)(v)-3 PROD Demand'!H118+'FR-16(7)(v)-7 TRANS Demand'!H118+'FR-16(7)(v)-11 DIST Demand'!H118","v":0},{"$f":"'FR-16(7)(v)-4 PROD Energy'!H118+'FR-16(7)(v)-8 TRANS Energy'!H118+'FR-16(7)(v)-12 DIST Energy'!H118","v":0},{"$f":"'FR-16(7)(v)-5 PROD Cust'!H118+'FR-16(7)(v)-9 TRANS Cust'!H118+'FR-16(7)(v)-13 DIST Cust'!H118","v":22313},22313,0]
[62,null,{"$f":"'FR-16(7)(v)-1 Functional'!C119","v":"SALES"},{"$f":"'FR-16(7)(v)-1 Functional'!D119","v":"A312"},null,{"$f":"'FR-16(7)(v)-14 TOTAL CLASS'!H119","v":0},{"$f":"'FR-16(7)(v)-3 PROD Demand'!H119+'FR-16(7)(v)-7 TRANS Demand'!H119+'FR-16(7)(v)-11 DIST Demand'!H119","v":0},{"$f":"'FR-16(7)(v)-4 PROD Energy'!H119+'FR-16(7)(v)-8 TRANS Energy'!H119+'FR-16(7)(v)-12 DIST Energy'!H119","v":0},{"$f":"'FR-16(7)(v)-5 PROD Cust'!H119+'FR-16(7)(v)-9 TRANS Cust'!H119+'FR-16(7)(v)-13 DIST Cust'!H119","v":0},0,0]
[63,null,{"$f":"'FR-16(7)(v)-1 Functional'!C120","v":"ADJUSTMENT"},{"$f":"'FR-16(7)(v)-1 Functional'!D120","v":"A315"},null,{"$f":"'FR-16(7)(v)-14 TOTAL CLASS'!H120","v":0},{"$f":"'FR-16(7)(v)-3 PROD Demand'!H120+'FR-16(7)(v)-7 TRANS Demand'!H120+'FR-16(7)(v)-11 DIST Demand'!H120","v":0},{"$f":"'FR-16(7)(v)-4 PROD Energy'!H120+'FR-16(7)(v)-8 TRANS Energy'!H120+'FR-16(7)(v)-12 DIST Energy'!H120","v":0},{"$f":"'FR-16(7)(v)-5 PROD Cust'!H120+'FR-16(7)(v)-9 TRANS Cust'!H120+'FR-16(7)(v)-13 DIST Cust'!H120","v":0},0,0]
[64,null,{"$f":"'FR-16(7)(v)-1 Functional'!C121","v":"  COMMON & OTHER PLANT IN SERVICE"},null,null,{"$f":"SUM(F112:F120)","v":8070433},4320988,2975082,774363,8070433,0]
[65]
[66,"GROSS ELECTRIC PLANT IN SERVICE",null,null,null,{"$f":"F97+F109+F121","v":502749698},476445181,8231577,18072940,502749698,0]
[]
[{"$f":"co_name","v":"DUKE ENERGY KENTUCKY, INC."},null,null,null,null,null,null,null,null,{"$f":"J1","v":"FR-16(7)(v)-16"}]
[{"$f":"$A$2","v":"DISTR. SEC. CLASSIFIED - ELECTRIC COST OF SERVICE"},null,null,null,null,null,null,null,null,{"$f":"J2","v":"WITNESS RESPONSIBLE:"}]
[{"$f":"case_name","v":"CASE NO: 2019-00271"},null,null,null,null,null,null,null,null,{"$f":"Witness","v":"JAMES E. ZIOLKOWSKI"}]
[{"$f":"data_filing","v":"DATA: 12 MONTHS ACTUAL  & 0 MONTHS ESTIMATED"},null,null,null,null,null,null,null,null,{"$f":"\"PAGE \"&Pages2-12&\" OF \"&Pages2","v":"PAGE 3 OF 15"}]
[{"$f":"type","v":"TYPE OF FILING: \"X\" ORIGINAL   UPDATED    REVISED  "}]
[]
[]
["LINE",null,null,null,null,"TOTAL","CLASSIFIED",null,null,"TOTAL","ALL"]
["NO.","DEPRECIATION RESERVE",null,"ALLO",null,{"$f":"$F$9","v":"DISTR. SEC."},{"$f":"G9","v":"DEMAND"},"ENERGY","CUSTOMER","AT ISSUE","OTHER"]
[null,null,"Schedule 3",null,null,null,3,4,5]
[1,"PRODUCTION PLANT"]
[2,null,{"$f":"'FR-16(7)(v)-1 Functional'!C136","v":"PRODUCTION STEAM"},{"$f":"'FR-16(7)(v)-1 Functional'!D136","v":"K201"},null,{"$f":"'FR-16(7)(v)-14 TOTAL CLASS'!H136","v":108570025},{"$f":"'FR-16(7)(v)-3 PROD Demand'!H136+'FR-16(7)(v)-7 TRANS Demand'!H136+'FR-16(7)(v)-11 DIST Demand'!H136","v":108570025},{"$f":"'FR-16(7)(v)-4 PROD Energy'!H136+'FR-16(7)(v)-8 TRANS Energy'!H136+'FR-16(7)(v)-12 DIST Energy'!H136","v":0},{"$f":"'FR-16(7)(v)-5 PROD Cust'!H136+'FR-16(7)(v)-9 TRANS Cust'!H136+'FR-16(7)(v)-13 DIST Cust'!H136","v":0},{"$f":"SUM(G136:I136)","v":108570025},{"$f":"F136-J136","v":0}]
[3,null,{"$f":"'FR-16(7)(v)-1 Functional'!C137","v":"PRODUCTION OTHER"},{"$f":"'FR-16(7)(v)-1 Functional'!D137","v":"K201"},null,{"$f":"'FR-16(7)(v)-14 TOTAL CLASS'!H137","v":49857785},{"$f":"'FR-16(7)(v)-3 PROD Demand'!H137+'FR-16(7)(v)-7 TRANS Demand'!H137+'FR-16(7)(v)-11 DIST Demand'!H137","v":49857785},{"$f":"'FR-16(7)(v)-4 PROD Energy'!H137+'FR-16(7)(v)-8 TRANS Energy'!H137+'FR-16(7)(v)-12 DIST Energy'!H137","v":0},{"$f":"'FR-16(7)(v)-5 PROD Cust'!H137+'FR-16(7)(v)-9 TRANS Cust'!H137+'FR-16(7)(v)-13 DIST Cust'!H137","v":0},{"$f":"SUM(G137:I137)","v":49857785},{"$f":"F137-J137","v":0}]
[4,null,{"$f":"'FR-16(7)(v)-1 Functional'!C138","v":"ADJUSTMENT"},{"$f":"'FR-16(7)(v)-1 Functional'!D138","v":"K201"},null,{"$f":"'FR-16(7)(v)-14 TOTAL CLASS'!H138","v":420403},{"$f":"'FR-16(7)(v)-3 PROD Demand'!H138+'FR-16(7)(v)-7 TRANS Demand'!H138+'FR-16(7)(v)-11 DIST Demand'!H138","v":420403},{"$f":"'FR-16(7)(v)-4 PROD Energy'!H138+'FR-16(7)(v)-8 TRANS Energy'!H138+'FR-16(7)(v)-12 DIST Energy'!H138","v":0},{"$f":"'FR-16(7)(v)-5 PROD Cust'!H138+'FR-16(7)(v)-9 TRANS Cust'!H138+'FR-16(7)(v)-13 DIST Cust'!H138","v":0},{"$f":"SUM(G138:I138)","v":420403},{"$f":"F138-J138","v":0}]
[5,null,{"$f":"'FR-16(7)(v)-1 Functional'!C139","v":"  TOTAL PROD DEPREC RESERVE"},null,null,{"$f":"SUM(F136:F138)","v":158848213},158848213,0,0,158848213,0]
[6]
[7,"TRANSMISSION PLANT"]
[8,null,{"$f":"'FR-16(7)(v)-1 Functional'!C142","v":"MAIN STEP-UP TRANSFORMERS"},{"$f":"'FR-16(7)(v)-1 Functional'!D142","v":"K202"},null,{"$f":"'FR-16(7)(v)-14 TOTAL CLASS'!H142","v":0},{"$f":"'FR-16(7)(v)-3 PROD Demand'!H142+'FR-16(7)(v)-7 TRANS Demand'!H142+'FR-16(7)(v)-11 DIST Demand'!H142","v":0},{"$f":"'FR-16(7)(v)-4 PROD Energy'!H142+'FR-16(7)(v)-8 TRANS Energy'!H142+'FR-16(7)(v)-12 DIST Energy'!H142","v":0},{"$f":"'FR-16(7)(v)-5 PROD Cust'!H142+'FR-16(7)(v)-9 TRANS Cust'!H142+'FR-16(7)(v)-13 DIST Cust'!H142","v":0},{"$f":"SUM(G142:I142)","v":0},{"$f":"F142-J142","v":0}]
[9,null,{"$f":"'FR-16(7)(v)-1 Functional'!C143","v":"OTHER TRANSMISSION"},{"$f":"'FR-16(7)(v)-1 Functional'!D143","v":"K202"},null,{"$f":"'FR-16(7)(v)-14 TOTAL CLASS'!H143","v":5401711},{"$f":"'FR-16(7)(v)-3 PROD Demand'!H143+'FR-16(7)(v)-7 TRANS Demand'!H143+'FR-16(7)(v)-11 DIST Demand'!H143","v":5401711},{"$f":"'FR-16(7)(v)-4 PROD Energy'!H143+'FR-16(7)(v)-8 TRANS Energy'!H143+'FR-16(7)(v)-12 DIST Energy'!H143","v":0},{"$f":"'FR-16(7)(v)-5 PROD Cust'!H143+'FR-16(7)(v)-9 TRANS Cust'!H143+'FR-16(7)(v)-13 DIST Cust'!H143","v":0},{"$f":"SUM(G143:I143)","v":5401711},{"$f":"F143-J143","v":0}]
[10,null,{"$f":"'FR-16(7)(v)-1 Functional'!C144","v":"ADJUSTMENT"},{"$f":"'FR-16(7)(v)-1 Functional'!D144","v":"K202"},null,{"$f":"'FR-16(7)(v)-14 TOTAL CLASS'!H144","v":-18992},{"$f":"'FR-16(7)(v)-3 PROD Demand'!H144+'FR-16(7)(v)-7 TRANS Demand'!H144+'FR-16(7)(v)-11 DIST Demand'!H144","v":-18992},{"$f":"'FR-16(7)(v)-4 PROD Energy'!H144+'FR-16(7)(v)-8 TRANS Energy'!H144+'FR-16(7)(v)-12 DIST Energy'!H144","v":0},{"$f":"'FR-16(7)(v)-5 PROD Cust'!H144+'FR-16(7)(v)-9 TRANS Cust'!H144+'FR-16(7)(v)-13 DIST Cust'!H144","v":0},{"$f":"SUM(G144:I144)","v":-18992},{"$f":"F144-J144","v":0}]
[11,null,{"$f":"'FR-16(7)(v)-1 Functional'!C145","v":"  TOTAL TRANS DEPREC RESERVE"},null,null,{"$f":"SUM(F142:F144)","v":5382719},5382719,0,0,5382719,0]
[12]
[13,null,{"$f":"'FR-16(7)(v)-1 Functional'!C147","v":"TOTAL PROD & TRANS DEPREC RESERVE"},null,null,{"$f":"F145+F139","v":164230932},{"$f":"G145+G139","v":164230932},{"$f":"H145+H139","v":0},{"$f":"I145+I139","v":0},{"$f":"J145+J139","v":164230932},{"$f":"F147-J147","v":0}]
[14]
[15,"DISTRIBUTION PLANT"]
[16,null,{"$f":"'FR-16(7)(v)-1 Functional'!C150","v":"SUBSTATIONS"},{"$f":"'FR-16(7)(v)-1 Functional'!D150","v":"K215"},null,{"$f":"'FR-16(7)(v)-14 TOTAL CLASS'!H150","v":5124274},{"$f":"'FR-16(7)(v)-3 PROD Demand'!H150+'FR-16(7)(v)-7 TRANS Demand'!H150+'FR-16(7)(v)-11 DIST Demand'!H150","v":5124274},{"$f":"'FR-16(7)(v)-4 PROD Energy'!H150+'FR-16(7)(v)-8 TRANS Energy'!H150+'FR-16(7)(v)-12 DIST Energy'!H150","v":0},{"$f":"'FR-16(7)(v)-5 PROD Cust'!H150+'FR-16(7)(v)-9 TRANS Cust'!H150+'FR-16(7)(v)-13 DIST Cust'!H150","v":0},{"$f":"SUM(G150:I150)","v":5124274},{"$f":"F150-J150","v":0}]
[17,null,{"$f":"'FR-16(7)(v)-1 Functional'!C151","v":"POLES, TOWERS  & FIXTURES - PRIMARY - DEMAND"},{"$f":"'FR-16(7)(v)-1 Functional'!D151","v":"K205"},null,{"$f":"'FR-16(7)(v)-14 TOTAL CLASS'!H151","v":4187133},{"$f":"'FR-16(7)(v)-3 PROD Demand'!H151+'FR-16(7)(v)-7 TRANS Demand'!H151+'FR-16(7)(v)-11 DIST Demand'!H151","v":4187133},{"$f":"'FR-16(7)(v)-4 PROD Energy'!H151+'FR-16(7)(v)-8 TRANS Energy'!H151+'FR-16(7)(v)-12 DIST Energy'!H151","v":0},{"$f":"'FR-16(7)(v)-5 PROD Cust'!H151+'FR-16(7)(v)-9 TRANS Cust'!H151+'FR-16(7)(v)-13 DIST Cust'!H151","v":0},{"$f":"SUM(G151:I151)","v":4187133},{"$f":"F151-J151","v":0}]
[18,null,{"$f":"'FR-16(7)(v)-1 Functional'!C152","v":"POLES, TOWERS  & FIXTURES - PRIMARY - CUSTOMER"},{"$f":"'FR-16(7)(v)-1 Functional'!D152","v":"K405"},null,{"$f":"'FR-16(7)(v)-14 TOTAL CLASS'!H152","v":629678},{"$f":"'FR-16(7)(v)-3 PROD Demand'!H152+'FR-16(7)(v)-7 TRANS Demand'!H152+'FR-16(7)(v)-11 DIST Demand'!H152","v":0},{"$f":"'FR-16(7)(v)-4 PROD Energy'!H152+'FR-16(7)(v)-8 TRANS Energy'!H152+'FR-16(7)(v)-12 DIST Energy'!H152","v":0},{"$f":"'FR-16(7)(v)-5 PROD Cust'!H152+'FR-16(7)(v)-9 TRANS Cust'!H152+'FR-16(7)(v)-13 DIST Cust'!H152","v":629678},{"$f":"SUM(G152:I152)","v":629678},{"$f":"F152-J152","v":0}]
[19,null,{"$f":"'FR-16(7)(v)-1 Functional'!C153","v":"POLES, TOWERS  & FIXTURES - SECONDARY - DEMAND"},{"$f":"'FR-16(7)(v)-1 Functional'!D153","v":"K206"},null,{"$f":"'FR-16(7)(v)-14 TOTAL CLASS'!H153","v":1601299},{"$f":"'FR-16(7)(v)-3 PROD Demand'!H153+'FR-16(7)(v)-7 TRANS Demand'!H153+'FR-16(7)(v)-11 DIST Demand'!H153","v":1601299},{"$f":"'FR-16(7)(v)-4 PROD Energy'!H153+'FR-16(7)(v)-8 TRANS Energy'!H153+'FR-16(7)(v)-12 DIST Energy'!H153","v":0},{"$f":"'FR-16(7)(v)-5 PROD Cust'!H153+'FR-16(7)(v)-9 TRANS Cust'!H153+'FR-16(7)(v)-13 DIST Cust'!H153","v":0},1601299,0]
[20,null,{"$f":"'FR-16(7)(v)-1 Functional'!C154","v":"POLES, TOWERS  & FIXTURES - SECONDARY - CUSTOMER"},{"$f":"'FR-16(7)(v)-1 Functional'!D154","v":"K405"},null,{"$f":"'FR-16(7)(v)-14 TOTAL CLASS'!H154","v":142335},{"$f":"'FR-16(7)(v)-3 PROD Demand'!H154+'FR-16(7)(v)-7 TRANS Demand'!H154+'FR-16(7)(v)-11 DIST Demand'!H154","v":0},{"$f":"'FR-16(7)(v)-4 PROD Energy'!H154+'FR-16(7)(v)-8 TRANS Energy'!H154+'FR-16(7)(v)-12 DIST Energy'!H154","v":0},{"$f":"'FR-16(7)(v)-5 PROD Cust'!H154+'FR-16(7)(v)-9 TRANS Cust'!H154+'FR-16(7)(v)-13 DIST Cust'!H154","v":142335},142335,0]
[21,null,{"$f":"'FR-16(7)(v)-1 Functional'!C155","v":"CONDUCTORS - OVERHEAD / PRIMARY - DEMAND"},{"$f":"'FR-16(7)(v)-1 Functional'!D155","v":"K205"},null,{"$f":"'FR-16(7)(v)-14 TOTAL CLASS'!H155","v":6218421},{"$f":"'FR-16(7)(v)-3 PROD Demand'!H155+'FR-16(7)(v)-7 TRANS Demand'!H155+'FR-16(7)(v)-11 DIST Demand'!H155","v":6218421},{"$f":"'FR-16(7)(v)-4 PROD Energy'!H155+'FR-16(7)(v)-8 TRANS Energy'!H155+'FR-16(7)(v)-12 DIST Energy'!H155","v":0},{"$f":"'FR-16(7)(v)-5 PROD Cust'!H155+'FR-16(7)(v)-9 TRANS Cust'!H155+'FR-16(7)(v)-13 DIST Cust'!H155","v":0},6218421,0]
[22,null,{"$f":"'FR-16(7)(v)-1 Functional'!C156","v":"CONDUCTORS - OVERHEAD / PRIMARY - CUSTOMER"},{"$f":"'FR-16(7)(v)-1 Functional'!D156","v":"K405"},null,{"$f":"'FR-16(7)(v)-14 TOTAL CLASS'!H156","v":446232},{"$f":"'FR-16(7)(v)-3 PROD Demand'!H156+'FR-16(7)(v)-7 TRANS Demand'!H156+'FR-16(7)(v)-11 DIST Demand'!H156","v":0},{"$f":"'FR-16(7)(v)-4 PROD Energy'!H156+'FR-16(7)(v)-8 TRANS Energy'!H156+'FR-16(7)(v)-12 DIST Energy'!H156","v":0},{"$f":"'FR-16(7)(v)-5 PROD Cust'!H156+'FR-16(7)(v)-9 TRANS Cust'!H156+'FR-16(7)(v)-13 DIST Cust'!H156","v":446232},446232,0]
[23,null,{"$f":"'FR-16(7)(v)-1 Functional'!C157","v":"CONDUCTORS - OVERHEAD / SECONDARY - DEMAND"},{"$f":"'FR-16(7)(v)-1 Functional'!D157","v":"K206"},null,{"$f":"'FR-16(7)(v)-14 TOTAL CLASS'!H157","v":2532068},{"$f":"'FR-16(7)(v)-3 PROD Demand'!H157+'FR-16(7)(v)-7 TRANS Demand'!H157+'FR-16(7)(v)-11 DIST Demand'!H157","v":2532068},{"$f":"'FR-16(7)(v)-4 PROD Energy'!H157+'FR-16(7)(v)-8 TRANS Energy'!H157+'FR-16(7)(v)-12 DIST Energy'!H157","v":0},{"$f":"'FR-16(7)(v)-5 PROD Cust'!H157+'FR-16(7)(v)-9 TRANS Cust'!H157+'FR-16(7)(v)-13 DIST Cust'!H157","v":0},2532068,0]
[24,null,{"$f":"'FR-16(7)(v)-1 Functional'!C158","v":"CONDUCTORS - OVERHEAD / SECONDARY - CUSTOMER"},{"$f":"'FR-16(7)(v)-1 Functional'!D158","v":"K405"},null,{"$f":"'FR-16(7)(v)-14 TOTAL CLASS'!H158","v":184844},{"$f":"'FR-16(7)(v)-3 PROD Demand'!H158+'FR-16(7)(v)-7 TRANS Demand'!H158+'FR-16(7)(v)-11 DIST Demand'!H158","v":0},{"$f":"'FR-16(7)(v)-4 PROD Energy'!H158+'FR-16(7)(v)-8 TRANS Energy'!H158+'FR-16(7)(v)-12 DIST Energy'!H158","v":0},{"$f":"'FR-16(7)(v)-5 PROD Cust'!H158+'FR-16(7)(v)-9 TRANS Cust'!H158+'FR-16(7)(v)-13 DIST Cust'!H158","v":184844},184844,0]
[25,null,{"$f":"'FR-16(7)(v)-1 Functional'!C159","v":"CONDUCTORS - UNDERGROUND / PRIMARY - DEMAND"},{"$f":"'FR-16(7)(v)-1 Functional'!D159","v":"K205"},null,{"$f":"'FR-16(7)(v)-14 TOTAL CLASS'!H159","v":4603771},{"$f":"'FR-16(7)(v)-3 PROD Demand'!H159+'FR-16(7)(v)-7 TRANS Demand'!H159+'FR-16(7)(v)-11 DIST Demand'!H159","v":4603771},{"$f":"'FR-16(7)(v)-4 PROD Energy'!H159+'FR-16(7)(v)-8 TRANS Energy'!H159+'FR-16(7)(v)-12 DIST Energy'!H159","v":0},{"$f":"'FR-16(7)(v)-5 PROD Cust'!H159+'FR-16(7)(v)-9 TRANS Cust'!H159+'FR-16(7)(v)-13 DIST Cust'!H159","v":0},4603771,0]
[26,null,{"$f":"'FR-16(7)(v)-1 Functional'!C160","v":"CONDUCTORS - UNDERGROUND / PRIMARY - CUSTOMER"},{"$f":"'FR-16(7)(v)-1 Functional'!D160","v":"K405"},null,{"$f":"'FR-16(7)(v)-14 TOTAL CLASS'!H160","v":469795},{"$f":"'FR-16(7)(v)-3 PROD Demand'!H160+'FR-16(7)(v)-7 TRANS Demand'!H160+'FR-16(7)(v)-11 DIST Demand'!H160","v":0},{"$f":"'FR-16(7)(v)-4 PROD Energy'!H160+'FR-16(7)(v)-8 TRANS Energy'!H160+'FR-16(7)(v)-12 DIST Energy'!H160","v":0},{"$f":"'FR-16(7)(v)-5 PROD Cust'!H160+'FR-16(7)(v)-9 TRANS Cust'!H160+'FR-16(7)(v)-13 DIST Cust'!H160","v":469795},469795,0]
[27,null,{"$f":"'FR-16(7)(v)-1 Functional'!C161","v":"CONDUCTORS - UNDERGROUND / SECONDARY - DEMAND"},{"$f":"'FR-16(7)(v)-1 Functional'!D161","v":"K206"},null,{"$f":"'FR-16(7)(v)-14 TOTAL CLASS'!H161","v":788692},{"$f":"'FR-16(7)(v)-3 PROD Demand'!H161+'FR-16(7)(v)-7 TRANS Demand'!H161+'FR-16(7)(v)-11 DIST Demand'!H161","v":788692},{"$f":"'FR-16(7)(v)-4 PROD Energy'!H161+'FR-16(7)(v)-8 TRANS Energy'!H161+'FR-16(7)(v)-12 DIST Energy'!H161","v":0},{"$f":"'FR-16(7)(v)-5 PROD Cust'!H161+'FR-16(7)(v)-9 TRANS Cust'!H161+'FR-16(7)(v)-13 DIST Cust'!H161","v":0},788692,0]
[28,null,{"$f":"'FR-16(7)(v)-1 Functional'!C162","v":"CONDUCTORS - UNDERGROUND / SECONDARY - CUSTOMER"},{"$f":"'FR-16(7)(v)-1 Functional'!D162","v":"K405"},null,{"$f":"'FR-16(7)(v)-14 TOTAL CLASS'!H162","v":146911},{"$f":"'FR-16(7)(v)-3 PROD Demand'!H162+'FR-16(7)(v)-7 TRANS Demand'!H162+'FR-16(7)(v)-11 DIST Demand'!H162","v":0},{"$f":"'FR-16(7)(v)-4 PROD Energy'!H162+'FR-16(7)(v)-8 TRANS Energy'!H162+'FR-16(7)(v)-12 DIST Energy'!H162","v":0},{"$f":"'FR-16(7)(v)-5 PROD Cust'!H162+'FR-16(7)(v)-9 TRANS Cust'!H162+'FR-16(7)(v)-13 DIST Cust'!H162","v":146911},146911,0]
[29,null,{"$f":"'FR-16(7)(v)-1 Functional'!C163","v":"TRANSFORMERS DEMAND RELATED"},{"$f":"'FR-16(7)(v)-1 Functional'!D163","v":"K215"},null,{"$f":"'FR-16(7)(v)-14 TOTAL CLASS'!H163","v":5684918},{"$f":"'FR-16(7)(v)-3 PROD Demand'!H163+'FR-16(7)(v)-7 TRANS Demand'!H163+'FR-16(7)(v)-11 DIST Demand'!H163","v":5684918},{"$f":"'FR-16(7)(v)-4 PROD Energy'!H163+'FR-16(7)(v)-8 TRANS Energy'!H163+'FR-16(7)(v)-12 DIST Energy'!H163","v":0},{"$f":"'FR-16(7)(v)-5 PROD Cust'!H163+'FR-16(7)(v)-9 TRANS Cust'!H163+'FR-16(7)(v)-13 DIST Cust'!H163","v":0},{"$f":"SUM(G163:I163)","v":5684918},{"$f":"F163-J163","v":0}]
[30,null,{"$f":"'FR-16(7)(v)-1 Functional'!C164","v":"TRANSFORMERS CUSTOMER RELATED"},{"$f":"'FR-16(7)(v)-1 Functional'!D164","v":"K405"},null,{"$f":"'FR-16(7)(v)-14 TOTAL CLASS'!H164","v":607068},{"$f":"'FR-16(7)(v)-3 PROD Demand'!H164+'FR-16(7)(v)-7 TRANS Demand'!H164+'FR-16(7)(v)-11 DIST Demand'!H164","v":0},{"$f":"'FR-16(7)(v)-4 PROD Energy'!H164+'FR-16(7)(v)-8 TRANS Energy'!H164+'FR-16(7)(v)-12 DIST Energy'!H164","v":0},{"$f":"'FR-16(7)(v)-5 PROD Cust'!H164+'FR-16(7)(v)-9 TRANS Cust'!H164+'FR-16(7)(v)-13 DIST Cust'!H164","v":607068},607068,0]
[31,null,{"$f":"'FR-16(7)(v)-1 Functional'!C165","v":"SERVICES"},{"$f":"'FR-16(7)(v)-1 Functional'!D165","v":"K217"},null,{"$f":"'FR-16(7)(v)-14 TOTAL CLASS'!H165","v":1051327},{"$f":"'FR-16(7)(v)-3 PROD Demand'!H165+'FR-16(7)(v)-7 TRANS Demand'!H165+'FR-16(7)(v)-11 DIST Demand'!H165","v":0},{"$f":"'FR-16(7)(v)-4 PROD Energy'!H165+'FR-16(7)(v)-8 TRANS Energy'!H165+'FR-16(7)(v)-12 DIST Energy'!H165","v":0},{"$f":"'FR-16(7)(v)-5 PROD Cust'!H165+'FR-16(7)(v)-9 TRANS Cust'!H165+'FR-16(7)(v)-13 DIST Cust'!H165","v":1051327},1051327,0]
[32,null,{"$f":"'FR-16(7)(v)-1 Functional'!C166","v":"METERS"},{"$f":"'FR-16(7)(v)-1 Functional'!D166","v":"K407"},null,{"$f":"'FR-16(7)(v)-14 TOTAL CLASS'!H166","v":908395},{"$f":"'FR-16(7)(v)-3 PROD Demand'!H166+'FR-16(7)(v)-7 TRANS Demand'!H166+'FR-16(7)(v)-11 DIST Demand'!H166","v":0},{"$f":"'FR-16(7)(v)-4 PROD Energy'!H166+'FR-16(7)(v)-8 TRANS Energy'!H166+'FR-16(7)(v)-12 DIST Energy'!H166","v":0},{"$f":"'FR-16(7)(v)-5 PROD Cust'!H166+'FR-16(7)(v)-9 TRANS Cust'!H166+'FR-16(7)(v)-13 DIST Cust'!H166","v":908395},908395,0]
[33,null,{"$f":"'FR-16(7)(v)-1 Functional'!C167","v":"STREET LIGHTS"},{"$f":"'FR-16(7)(v)-1 Functional'!D167","v":"K401"},null,{"$f":"'FR-16(7)(v)-14 TOTAL CLASS'!H167","v":0},{"$f":"'FR-16(7)(v)-3 PROD Demand'!H167+'FR-16(7)(v)-7 TRANS Demand'!H167+'FR-16(7)(v)-11 DIST Demand'!H167","v":0},{"$f":"'FR-16(7)(v)-4 PROD Energy'!H167+'FR-16(7)(v)-8 TRANS Energy'!H167+'FR-16(7)(v)-12 DIST Energy'!H167","v":0},{"$f":"'FR-16(7)(v)-5 PROD Cust'!H167+'FR-16(7)(v)-9 TRANS Cust'!H167+'FR-16(7)(v)-13 DIST Cust'!H167","v":0},0,0]
[34,null,{"$f":"'FR-16(7)(v)-1 Functional'!C168","v":"ADJUSTMENT  "},{"$f":"'FR-16(7)(v)-1 Functional'!D168","v":"K209"},null,{"$f":"'FR-16(7)(v)-14 TOTAL CLASS'!H168","v":107788},{"$f":"'FR-16(7)(v)-3 PROD Demand'!H168+'FR-16(7)(v)-7 TRANS Demand'!H168+'FR-16(7)(v)-11 DIST Demand'!H168","v":94943},{"$f":"'FR-16(7)(v)-4 PROD Energy'!H168+'FR-16(7)(v)-8 TRANS Energy'!H168+'FR-16(7)(v)-12 DIST Energy'!H168","v":0},{"$f":"'FR-16(7)(v)-5 PROD Cust'!H168+'FR-16(7)(v)-9 TRANS Cust'!H168+'FR-16(7)(v)-13 DIST Cust'!H168","v":12845},107788,0]
[35,null,{"$f":"'FR-16(7)(v)-1 Functional'!C169","v":"CONSTRUCTION NOT CLASSIFIED"},{"$f":"'FR-16(7)(v)-1 Functional'!D169","v":"K209"},null,{"$f":"'FR-16(7)(v)-14 TOTAL CLASS'!H169","v":352050},{"$f":"'FR-16(7)(v)-3 PROD Demand'!H169+'FR-16(7)(v)-7 TRANS Demand'!H169+'FR-16(7)(v)-11 DIST Demand'!H169","v":310098},{"$f":"'FR-16(7)(v)-4 PROD Energy'!H169+'FR-16(7)(v)-8 TRANS Energy'!H169+'FR-16(7)(v)-12 DIST Energy'!H169","v":0},{"$f":"'FR-16(7)(v)-5 PROD Cust'!H169+'FR-16(7)(v)-9 TRANS Cust'!H169+'FR-16(7)(v)-13 DIST Cust'!H169","v":41952},352050,0]
[36,null,{"$f":"'FR-16(7)(v)-1 Functional'!C170","v":"RWIP"},{"$f":"'FR-16(7)(v)-1 Functional'!D170","v":"K215"},null,{"$f":"'FR-16(7)(v)-14 TOTAL CLASS'!H170","v":-4745961},{"$f":"'FR-16(7)(v)-3 PROD Demand'!H170+'FR-16(7)(v)-7 TRANS Demand'!H170+'FR-16(7)(v)-11 DIST Demand'!H170","v":-4745961},{"$f":"'FR-16(7)(v)-4 PROD Energy'!H170+'FR-16(7)(v)-8 TRANS Energy'!H170+'FR-16(7)(v)-12 DIST Energy'!H170","v":0},{"$f":"'FR-16(7)(v)-5 PROD Cust'!H170+'FR-16(7)(v)-9 TRANS Cust'!H170+'FR-16(7)(v)-13 DIST Cust'!H170","v":0},{"$f":"SUM(G170:I170)","v":-4745961},{"$f":"F170-J170","v":0}]
[37,null,{"$f":"'FR-16(7)(v)-1 Functional'!C171","v":"  TOTAL DIST DEPREC RESERVE"},null,null,{"$f":"SUM(F149:F170)","v":31041038},{"$f":"SUM(G149:G170)","v":26399656},0,4641382,31041038,0]
[38]
[39,null,"TOTAL TRANS & DIST DEPREC RESERVE",null,null,{"$f":"F171+F145","v":36423757},{"$f":"G171+G145","v":31782375},{"$f":"H171+H145","v":0},{"$f":"I171+I145","v":4641382},{"$f":"J171+J145","v":36423757},{"$f":"F173-J173","v":0}]
[40,null,"TOTAL GROSS PTD PLANT DEPREC RESERVE",null,null,{"$f":"F147+F171","v":195271970},{"$f":"G147+G171","v":190630588},{"$f":"H147+H171","v":0},{"$f":"I147+I171","v":4641382},{"$f":"J147+J171","v":195271970},{"$f":"F174-J174","v":0}]
[41]
[42,"GENERAL & INTANGIBLE PLANT"]
[43,null,{"$f":"'FR-16(7)(v)-1 Functional'!C177","v":"PRODUCTION - DEMAND"},{"$f":"'FR-16(7)(v)-1 Functional'!D177","v":"K201"},null,{"$f":"'FR-16(7)(v)-14 TOTAL CLASS'!H177","v":1456872},{"$f":"'FR-16(7)(v)-3 PROD Demand'!H177+'FR-16(7)(v)-7 TRANS Demand'!H177+'FR-16(7)(v)-11 DIST Demand'!H177","v":1456872},{"$f":"'FR-16(7)(v)-4 PROD Energy'!H177+'FR-16(7)(v)-8 TRANS Energy'!H177+'FR-16(7)(v)-12 DIST Energy'!H177","v":0},{"$f":"'FR-16(7)(v)-5 PROD Cust'!H177+'FR-16(7)(v)-9 TRANS Cust'!H177+'FR-16(7)(v)-13 DIST Cust'!H177","v":0},{"$f":"SUM(G177:I177)","v":1456872},{"$f":"F177-J177","v":0}]
[44,null,{"$f":"'FR-16(7)(v)-1 Functional'!C178","v":"PRODUCTION - ENERGY"},{"$f":"'FR-16(7)(v)-1 Functional'!D178","v":"K301"},null,{"$f":"'FR-16(7)(v)-14 TOTAL CLASS'!H178","v":1693964},{"$f":"'FR-16(7)(v)-3 PROD Demand'!H178+'FR-16(7)(v)-7 TRANS Demand'!H178+'FR-16(7)(v)-11 DIST Demand'!H178","v":0},{"$f":"'FR-16(7)(v)-4 PROD Energy'!H178+'FR-16(7)(v)-8 TRANS Energy'!H178+'FR-16(7)(v)-12 DIST Energy'!H178","v":1693964},{"$f":"'FR-16(7)(v)-5 PROD Cust'!H178+'FR-16(7)(v)-9 TRANS Cust'!H178+'FR-16(7)(v)-13 DIST Cust'!H178","v":0},{"$f":"SUM(G178:I178)","v":1693964},{"$f":"F178-J178","v":0}]
[45,null,{"$f":"'FR-16(7)(v)-1 Functional'!C179","v":"TRANSMISSION"},{"$f":"'FR-16(7)(v)-1 Functional'!D179","v":"K202"},null,{"$f":"'FR-16(7)(v)-14 TOTAL CLASS'!H179","v":230218},{"$f":"'FR-16(7)(v)-3 PROD Demand'!H179+'FR-16(7)(v)-7 TRANS Demand'!H179+'FR-16(7)(v)-11 DIST Demand'!H179","v":230218},{"$f":"'FR-16(7)(v)-4 PROD Energy'!H179+'FR-16(7)(v)-8 TRANS Energy'!H179+'FR-16(7)(v)-12 DIST Energy'!H179","v":0},{"$f":"'FR-16(7)(v)-5 PROD Cust'!H179+'FR-16(7)(v)-9 TRANS Cust'!H179+'FR-16(7)(v)-13 DIST Cust'!H179","v":0},230218,0]
[46,null,{"$f":"'FR-16(7)(v)-1 Functional'!C180","v":"DISTRIBUTION - DEMAND"},{"$f":"'FR-16(7)(v)-1 Functional'!D180","v":"K201"},null,{"$f":"'FR-16(7)(v)-14 TOTAL CLASS'!H180","v":773210},{"$f":"'FR-16(7)(v)-3 PROD Demand'!H180+'FR-16(7)(v)-7 TRANS Demand'!H180+'FR-16(7)(v)-11 DIST Demand'!H180","v":773210},{"$f":"'FR-16(7)(v)-4 PROD Energy'!H180+'FR-16(7)(v)-8 TRANS Energy'!H180+'FR-16(7)(v)-12 DIST Energy'!H180","v":0},{"$f":"'FR-16(7)(v)-5 PROD Cust'!H180+'FR-16(7)(v)-9 TRANS Cust'!H180+'FR-16(7)(v)-13 DIST Cust'!H180","v":0},773210,0]
[47,null,{"$f":"'FR-16(7)(v)-1 Functional'!C181","v":"DISTRIBUTION - CUSTOMER"},{"$f":"'FR-16(7)(v)-1 Functional'!D181","v":"K405"},null,{"$f":"'FR-16(7)(v)-14 TOTAL CLASS'!H181","v":57132},{"$f":"'FR-16(7)(v)-3 PROD Demand'!H181+'FR-16(7)(v)-7 TRANS Demand'!H181+'FR-16(7)(v)-11 DIST Demand'!H181","v":0},{"$f":"'FR-16(7)(v)-4 PROD Energy'!H181+'FR-16(7)(v)-8 TRANS Energy'!H181+'FR-16(7)(v)-12 DIST Energy'!H181","v":0},{"$f":"'FR-16(7)(v)-5 PROD Cust'!H181+'FR-16(7)(v)-9 TRANS Cust'!H181+'FR-16(7)(v)-13 DIST Cust'!H181","v":57132},57132,0]
[48,null,{"$f":"'FR-16(7)(v)-1 Functional'!C182","v":"CUSTOMER ACCOUNTING"},{"$f":"'FR-16(7)(v)-1 Functional'!D182","v":"A308"},null,{"$f":"'FR-16(7)(v)-14 TOTAL CLASS'!H182","v":371073},{"$f":"'FR-16(7)(v)-3 PROD Demand'!H182+'FR-16(7)(v)-7 TRANS Demand'!H182+'FR-16(7)(v)-11 DIST Demand'!H182","v":0},{"$f":"'FR-16(7)(v)-4 PROD Energy'!H182+'FR-16(7)(v)-8 TRANS Energy'!H182+'FR-16(7)(v)-12 DIST Energy'!H182","v":0},{"$f":"'FR-16(7)(v)-5 PROD Cust'!H182+'FR-16(7)(v)-9 TRANS Cust'!H182+'FR-16(7)(v)-13 DIST Cust'!H182","v":371073},371073,0]
[49,null,{"$f":"'FR-16(7)(v)-1 Functional'!C183","v":"CUSTOMER SERVICE & INFORMATION"},{"$f":"'FR-16(7)(v)-1 Functional'!D183","v":"A310"},null,{"$f":"'FR-16(7)(v)-14 TOTAL CLASS'!H183","v":12705},{"$f":"'FR-16(7)(v)-3 PROD Demand'!H183+'FR-16(7)(v)-7 TRANS Demand'!H183+'FR-16(7)(v)-11 DIST Demand'!H183","v":0},{"$f":"'FR-16(7)(v)-4 PROD Energy'!H183+'FR-16(7)(v)-8 TRANS Energy'!H183+'FR-16(7)(v)-12 DIST Energy'!H183","v":0},{"$f":"'FR-16(7)(v)-5 PROD Cust'!H183+'FR-16(7)(v)-9 TRANS Cust'!H183+'FR-16(7)(v)-13 DIST Cust'!H183","v":12705},12705,0]
[50,null,{"$f":"'FR-16(7)(v)-1 Functional'!C184","v":"SALES"},{"$f":"'FR-16(7)(v)-1 Functional'!D184","v":"A312"},null,{"$f":"'FR-16(7)(v)-14 TOTAL CLASS'!H184","v":0},{"$f":"'FR-16(7)(v)-3 PROD Demand'!H184+'FR-16(7)(v)-7 TRANS Demand'!H184+'FR-16(7)(v)-11 DIST Demand'!H184","v":0},{"$f":"'FR-16(7)(v)-4 PROD Energy'!H184+'FR-16(7)(v)-8 TRANS Energy'!H184+'FR-16(7)(v)-12 DIST Energy'!H184","v":0},{"$f":"'FR-16(7)(v)-5 PROD Cust'!H184+'FR-16(7)(v)-9 TRANS Cust'!H184+'FR-16(7)(v)-13 DIST Cust'!H184","v":0},0,0]
[51,null,{"$f":"'FR-16(7)(v)-1 Functional'!C185","v":"ADJUSTMENT"},{"$f":"'FR-16(7)(v)-1 Functional'!D185","v":"A315"},null,{"$f":"'FR-16(7)(v)-14 TOTAL CLASS'!H185","v":43311},{"$f":"'FR-16(7)(v)-3 PROD Demand'!H185+'FR-16(7)(v)-7 TRANS Demand'!H185+'FR-16(7)(v)-11 DIST Demand'!H185","v":4968},{"$f":"'FR-16(7)(v)-4 PROD Energy'!H185+'FR-16(7)(v)-8 TRANS Energy'!H185+'FR-16(7)(v)-12 DIST Energy'!H185","v":30233},{"$f":"'FR-16(7)(v)-5 PROD Cust'!H185+'FR-16(7)(v)-9 TRANS Cust'!H185+'FR-16(7)(v)-13 DIST Cust'!H185","v":8110},43311,0]
[52,null,{"$f":"'FR-16(7)(v)-1 Functional'!C186","v":"  GENERAL & INTANG PLANT"},null,null,{"$f":"SUM(F176:F185)","v":4638485},2465268,1724197,449020,4638485,0]
[53]
[54,"COMMON & OTHER PLANT"]
[55,null,{"$f":"'FR-16(7)(v)-1 Functional'!C189","v":"PRODUCTION - DEMAND"},{"$f":"'FR-16(7)(v)-1 Functional'!D189","v":"K201"},null,{"$f":"'FR-16(7)(v)-14 TOTAL CLASS'!H189","v":1968496},{"$f":"'FR-16(7)(v)-3 PROD Demand'!H189+'FR-16(7)(v)-7 TRANS Demand'!H189+'FR-16(7)(v)-11 DIST Demand'!H189","v":1968496},{"$f":"'FR-16(7)(v)-4 PROD Energy'!H189+'FR-16(7)(v)-8 TRANS Energy'!H189+'FR-16(7)(v)-12 DIST Energy'!H189","v":0},{"$f":"'FR-16(7)(v)-5 PROD Cust'!H189+'FR-16(7)(v)-9 TRANS Cust'!H189+'FR-16(7)(v)-13 DIST Cust'!H189","v":0},{"$f":"SUM(G189:I189)","v":1968496},{"$f":"F189-J189","v":0}]
[56,null,{"$f":"'FR-16(7)(v)-1 Functional'!C190","v":"PRODUCTION - ENERGY"},{"$f":"'FR-16(7)(v)-1 Functional'!D190","v":"K301"},null,{"$f":"'FR-16(7)(v)-14 TOTAL CLASS'!H190","v":2288849},{"$f":"'FR-16(7)(v)-3 PROD Demand'!H190+'FR-16(7)(v)-7 TRANS Demand'!H190+'FR-16(7)(v)-11 DIST Demand'!H190","v":0},{"$f":"'FR-16(7)(v)-4 PROD Energy'!H190+'FR-16(7)(v)-8 TRANS Energy'!H190+'FR-16(7)(v)-12 DIST Energy'!H190","v":2288849},{"$f":"'FR-16(7)(v)-5 PROD Cust'!H190+'FR-16(7)(v)-9 TRANS Cust'!H190+'FR-16(7)(v)-13 DIST Cust'!H190","v":0},{"$f":"SUM(G190:I190)","v":2288849},{"$f":"F190-J190","v":0}]
[57,null,{"$f":"'FR-16(7)(v)-1 Functional'!C191","v":"TRANSMISSION"},{"$f":"'FR-16(7)(v)-1 Functional'!D191","v":"K202"},null,{"$f":"'FR-16(7)(v)-14 TOTAL CLASS'!H191","v":311066},{"$f":"'FR-16(7)(v)-3 PROD Demand'!H191+'FR-16(7)(v)-7 TRANS Demand'!H191+'FR-16(7)(v)-11 DIST Demand'!H191","v":311066},{"$f":"'FR-16(7)(v)-4 PROD Energy'!H191+'FR-16(7)(v)-8 TRANS Energy'!H191+'FR-16(7)(v)-12 DIST Energy'!H191","v":0},{"$f":"'FR-16(7)(v)-5 PROD Cust'!H191+'FR-16(7)(v)-9 TRANS Cust'!H191+'FR-16(7)(v)-13 DIST Cust'!H191","v":0},311066,0]
[58,null,{"$f":"'FR-16(7)(v)-1 Functional'!C192","v":"DISTRIBUTION - DEMAND"},{"$f":"'FR-16(7)(v)-1 Functional'!D192","v":"K201"},null,{"$f":"'FR-16(7)(v)-14 TOTAL CLASS'!H192","v":1044746},{"$f":"'FR-16(7)(v)-3 PROD Demand'!H192+'FR-16(7)(v)-7 TRANS Demand'!H192+'FR-16(7)(v)-11 DIST Demand'!H192","v":1044746},{"$f":"'FR-16(7)(v)-4 PROD Energy'!H192+'FR-16(7)(v)-8 TRANS Energy'!H192+'FR-16(7)(v)-12 DIST Energy'!H192","v":0},{"$f":"'FR-16(7)(v)-5 PROD Cust'!H192+'FR-16(7)(v)-9 TRANS Cust'!H192+'FR-16(7)(v)-13 DIST Cust'!H192","v":0},1044746,0]
[59,null,{"$f":"'FR-16(7)(v)-1 Functional'!C193","v":"DISTRIBUTION - CUSTOMER"},{"$f":"'FR-16(7)(v)-1 Functional'!D193","v":"K405"},null,{"$f":"'FR-16(7)(v)-14 TOTAL CLASS'!H193","v":77196},{"$f":"'FR-16(7)(v)-3 PROD Demand'!H193+'FR-16(7)(v)-7 TRANS Demand'!H193+'FR-16(7)(v)-11 DIST Demand'!H193","v":0},{"$f":"'FR-16(7)(v)-4 PROD Energy'!H193+'FR-16(7)(v)-8 TRANS Energy'!H193+'FR-16(7)(v)-12 DIST Energy'!H193","v":0},{"$f":"'FR-16(7)(v)-5 PROD Cust'!H193+'FR-16(7)(v)-9 TRANS Cust'!H193+'FR-16(7)(v)-13 DIST Cust'!H193","v":77196},77196,0]
[60,null,{"$f":"'FR-16(7)(v)-1 Functional'!C194","v":"CUSTOMER ACCOUNTING"},{"$f":"'FR-16(7)(v)-1 Functional'!D194","v":"A308"},null,{"$f":"'FR-16(7)(v)-14 TOTAL CLASS'!H194","v":501386},{"$f":"'FR-16(7)(v)-3 PROD Demand'!H194+'FR-16(7)(v)-7 TRANS Demand'!H194+'FR-16(7)(v)-11 DIST Demand'!H194","v":0},{"$f":"'FR-16(7)(v)-4 PROD Energy'!H194+'FR-16(7)(v)-8 TRANS Energy'!H194+'FR-16(7)(v)-12 DIST Energy'!H194","v":0},{"$f":"'FR-16(7)(v)-5 PROD Cust'!H194+'FR-16(7)(v)-9 TRANS Cust'!H194+'FR-16(7)(v)-13 DIST Cust'!H194","v":501386},501386,0]
[61,null,{"$f":"'FR-16(7)(v)-1 Functional'!C195","v":"CUSTOMER SERVICE & INFORMATION"},{"$f":"'FR-16(7)(v)-1 Functional'!D195","v":"A310"},null,{"$f":"'FR-16(7)(v)-14 TOTAL CLASS'!H195","v":17166},{"$f":"'FR-16(7)(v)-3 PROD Demand'!H195+'FR-16(7)(v)-7 TRANS Demand'!H195+'FR-16(7)(v)-11 DIST Demand'!H195","v":0},{"$f":"'FR-16(7)(v)-4 PROD Energy'!H195+'FR-16(7)(v)-8 TRANS Energy'!H195+'FR-16(7)(v)-12 DIST Energy'!H195","v":0},{"$f":"'FR-16(7)(v)-5 PROD Cust'!H195+'FR-16(7)(v)-9 TRANS Cust'!H195+'FR-16(7)(v)-13 DIST Cust'!H195","v":17166},17166,0]
[62,null,{"$f":"'FR-16(7)(v)-1 Functional'!C196","v":"SALES"},{"$f":"'FR-16(7)(v)-1 Functional'!D196","v":"A312"},null,{"$f":"'FR-16(7)(v)-14 TOTAL CLASS'!H196","v":0},{"$f":"'FR-16(7)(v)-3 PROD Demand'!H196+'FR-16(7)(v)-7 TRANS Demand'!H196+'FR-16(7)(v)-11 DIST Demand'!H196","v":0},{"$f":"'FR-16(7)(v)-4 PROD Energy'!H196+'FR-16(7)(v)-8 TRANS Energy'!H196+'FR-16(7)(v)-12 DIST Energy'!H196","v":0},{"$f":"'FR-16(7)(v)-5 PROD Cust'!H196+'FR-16(7)(v)-9 TRANS Cust'!H196+'FR-16(7)(v)-13 DIST Cust'!H196","v":0},0,0]
[63,null,{"$f":"'FR-16(7)(v)-1 Functional'!C197","v":"ADJUSTMENT"},{"$f":"'FR-16(7)(v)-1 Functional'!D197","v":"A315"},null,{"$f":"'FR-16(7)(v)-14 TOTAL CLASS'!H197","v":2433},{"$f":"'FR-16(7)(v)-3 PROD Demand'!H197+'FR-16(7)(v)-7 TRANS Demand'!H197+'FR-16(7)(v)-11 DIST Demand'!H197","v":279},{"$f":"'FR-16(7)(v)-4 PROD Energy'!H197+'FR-16(7)(v)-8 TRANS Energy'!H197+'FR-16(7)(v)-12 DIST Energy'!H197","v":1698},{"$f":"'FR-16(7)(v)-5 PROD Cust'!H197+'FR-16(7)(v)-9 TRANS Cust'!H197+'FR-16(7)(v)-13 DIST Cust'!H197","v":456},2433,0]
[64,null,{"$f":"'FR-16(7)(v)-1 Functional'!C198","v":"  COMMON & OTHER PLANT IN SERVICE"},null,null,{"$f":"SUM(F189:F197)","v":6211338},{"$f":"SUM(G188:G197)","v":3324587},{"$f":"SUM(H188:H197)","v":2290547},{"$f":"SUM(I188:I197)","v":596204},{"$f":"SUM(J188:J197)","v":6211338},{"$f":"SUM(K188:K197)","v":0}]
[65]
[66,"TOTAL DEPRECIATION RESERVE",null,null,null,{"$f":"F198+F186+F171+F145+F139","v":206121793},196420443,4014744,5686606,206121793,0]
[]
[{"$f":"co_name","v":"DUKE ENERGY KENTUCKY, INC."},null,null,null,null,null,null,null,null,{"$f":"J1","v":"FR-16(7)(v)-16"}]
[{"$f":"$A$2","v":"DISTR. SEC. CLASSIFIED - ELECTRIC COST OF SERVICE"},null,null,null,null,null,null,null,null,{"$f":"J2","v":"WITNESS RESPONSIBLE:"}]
[{"$f":"case_name","v":"CASE NO: 2019-00271"},null,null,null,null,null,null,null,null,{"$f":"Witness","v":"JAMES E. ZIOLKOWSKI"}]
[{"$f":"data_filing","v":"DATA: 12 MONTHS ACTUAL  & 0 MONTHS ESTIMATED"},null,null,null,null,null,null,null,null,{"$f":"\"PAGE \"&Pages2-11&\" OF \"&Pages2","v":"PAGE 4 OF 15"}]
[{"$f":"type","v":"TYPE OF FILING: \"X\" ORIGINAL   UPDATED    REVISED  "}]
[]
[]
["LINE",null,null,null,null,"TOTAL","CLASSIFIED",null,null,"TOTAL","ALL"]
["NO.",{"$f":"\"NET ELECTRIC PLANT\"","v":"NET ELECTRIC PLANT"},null,"ALLO",null,{"$f":"$F$9","v":"DISTR. SEC."},{"$f":"G9","v":"DEMAND"},"ENERGY","CUSTOMER","AT ISSUE","OTHER"]
[null,null,"Schedule 4",null,null,null,3,4,5]
[1,"PRODUCTION PLANT"]
[2,null,{"$f":"'FR-16(7)(v)-1 Functional'!C213","v":"PRODUCTION STEAM"},null,null,{"$f":"F59-F136","v":117506543},117506543,0,0,117506543,0]
[3,null,{"$f":"'FR-16(7)(v)-1 Functional'!C214","v":"PRODUCTION OTHER"},null,null,{"$f":"F60-F137","v":51213260},51213260,0,0,51213260,0]
[4,null,{"$f":"'FR-16(7)(v)-1 Functional'!C215","v":"ADJUSTMENT"},null,null,-420403,-420403,0,0,-420403,0]
[5,null,{"$f":"'FR-16(7)(v)-1 Functional'!C216","v":"  NET PRODUCTION PLANT"},null,null,{"$f":"SUM(F213:F215)","v":168299400},168299400,0,0,168299400,0]
[6]
[7,"TRANSMISSION PLANT"]
[8,null,{"$f":"'FR-16(7)(v)-1 Functional'!C219","v":"MAIN STEP-UP TRANSFORMERS"},null,null,{"$f":"F65-F142","v":0},0,0,0,0,0]
[9,null,{"$f":"'FR-16(7)(v)-1 Functional'!C220","v":"OTHER TRANSMISSION"},null,null,14184966,14184966,0,0,14184966,0]
[10,null,{"$f":"'FR-16(7)(v)-1 Functional'!C221","v":"ADJUSTMENT"},null,null,18992,18992,0,0,18992,0]
[11,null,{"$f":"'FR-16(7)(v)-1 Functional'!C222","v":"    NET TRANSMISSION PLANT"},null,null,{"$f":"SUM(F218:F221)","v":14203958},14203958,0,0,14203958,0]
[12]
[13,"NET PROD & TRANS PLANT",null,null,null,{"$f":"F70-F147","v":182503358},182503358,0,0,182503358,0]
[14]
[15,"DISTRIBUTION PLANT"]
[16,null,{"$f":"'FR-16(7)(v)-1 Functional'!C227","v":"SUBSTATIONS"},null,null,{"$f":"F73-F150","v":20097107},20097107,0,0,20097107,0]
[17,null,{"$f":"'FR-16(7)(v)-1 Functional'!C228","v":"POLES, TOWERS  & FIXTURES - PRIMARY - DEMAND"},null,null,4964222,4964222,0,0,4964222,0]
[18,null,{"$f":"'FR-16(7)(v)-1 Functional'!C229","v":"POLES, TOWERS  & FIXTURES - PRIMARY - CUSTOMER"},null,null,{"$f":"F75-F152","v":746539},0,0,746539,746539,0]
[19,null,{"$f":"'FR-16(7)(v)-1 Functional'!C230","v":"POLES, TOWERS  & FIXTURES - SECONDARY - DEMAND"},null,null,{"$f":"F76-F153","v":1898484},1898484,0,0,1898484,0]
[20,null,{"$f":"'FR-16(7)(v)-1 Functional'!C231","v":"POLES, TOWERS  & FIXTURES - SECONDARY - CUSTOMER"},null,null,{"$f":"F77-F154","v":168750},0,0,168750,168750,0]
[21,null,{"$f":"'FR-16(7)(v)-1 Functional'!C232","v":"CONDUCTORS - OVERHEAD / PRIMARY - DEMAND"},null,null,{"$f":"F78-F155","v":14635602},14635602,0,0,14635602,0]
[22,null,{"$f":"'FR-16(7)(v)-1 Functional'!C233","v":"CONDUCTORS - OVERHEAD / PRIMARY - CUSTOMER"},null,null,{"$f":"F79-F156","v":1050248},0,0,1050248,1050248,0]
[23,null,{"$f":"'FR-16(7)(v)-1 Functional'!C234","v":"CONDUCTORS - OVERHEAD / SECONDARY - DEMAND"},null,null,{"$f":"F80-F157","v":5959446},5959446,0,0,5959446,0]
[24,null,{"$f":"'FR-16(7)(v)-1 Functional'!C235","v":"CONDUCTORS - OVERHEAD / SECONDARY - CUSTOMER"},null,null,{"$f":"F81-F158","v":435045},0,0,435045,435045,0]
[25,null,{"$f":"'FR-16(7)(v)-1 Functional'!C236","v":"CONDUCTORS - UNDERGROUND / PRIMARY - DEMAND"},null,null,{"$f":"F82-F159","v":10960284},10960284,0,0,10960284,0]
[26,null,{"$f":"'FR-16(7)(v)-1 Functional'!C237","v":"CONDUCTORS - UNDERGROUND / PRIMARY - CUSTOMER"},null,null,{"$f":"F83-F160","v":1118448},0,0,1118448,1118448,0]
[27,null,{"$f":"'FR-16(7)(v)-1 Functional'!C238","v":"CONDUCTORS - UNDERGROUND / SECONDARY - DEMAND"},null,null,{"$f":"F84-F161","v":1877653},1877653,0,0,1877653,0]
[28,null,{"$f":"'FR-16(7)(v)-1 Functional'!C239","v":"CONDUCTORS - UNDERGROUND / SECONDARY - CUSTOMER"},null,null,{"$f":"F85-F162","v":349752},0,0,349752,349752,0]
[29,null,{"$f":"'FR-16(7)(v)-1 Functional'!C240","v":"TRANSFORMERS DEMAND RELATED"},null,null,{"$f":"F86-F163","v":7377076},7377076,0,0,7377076,0]
[30,null,{"$f":"'FR-16(7)(v)-1 Functional'!C241","v":"TRANSFORMERS CUSTOMER RELATED"},null,null,787766,0,0,787766,787766,0]
[31,null,{"$f":"'FR-16(7)(v)-1 Functional'!C242","v":"SERVICES"},null,null,862667,0,0,862667,862667,0]
[32,null,{"$f":"'FR-16(7)(v)-1 Functional'!C243","v":"METERS"},null,null,3221052,0,0,3221052,3221052,0]
[33,null,{"$f":"'FR-16(7)(v)-1 Functional'!C244","v":"STREET LIGHTS"},null,null,0,0,0,0,0,0]
[34,null,{"$f":"'FR-16(7)(v)-1 Functional'!C245","v":"ADJUSTMENT  "},null,null,-107788,-94943,0,-12845,-107788,0]
[35,null,{"$f":"'FR-16(7)(v)-1 Functional'!C246","v":"CONSTRUCTION NOT CLASSIFIED"},null,null,21496458,18934860,0,2561598,21496458,0]
[36,null,{"$f":"'FR-16(7)(v)-1 Functional'!C247","v":"RWIP"},null,null,4745961,4745961,0,0,4745961,0]
[37,null,{"$f":"'FR-16(7)(v)-1 Functional'!C248","v":"  NET DISTRIBUTION PLANT"},null,null,{"$f":"SUM(F226:F247)","v":102644772},{"$f":"SUM(G226:G247)","v":91355752},0,11289020,102644772,0]
[38]
[39,"NET PTD PLANT",null,null,null,{"$f":"F96-F173","v":116848730},105559710,0,11289020,116848730,0]
[40,"NET TRANS & DIST PLANT",null,null,null,285148130,273859110,0,11289020,285148130,0]
[41]
[42,"GENERAL & INTANGIBLE PLANT"]
[43,null,{"$f":"'FR-16(7)(v)-1 Functional'!C254","v":"PRODUCTION - DEMAND"},null,null,{"$f":"F100-F177","v":3063911},3063911,0,0,3063911,0]
[44,null,{"$f":"'FR-16(7)(v)-1 Functional'!C255","v":"PRODUCTION - ENERGY"},null,null,3562531,0,3562531,0,3562531,0]
[45,null,{"$f":"'FR-16(7)(v)-1 Functional'!C256","v":"TRANSMISSION"},null,null,484166,484166,0,0,484166,0]
[46,null,{"$f":"'FR-16(7)(v)-1 Functional'!C257","v":"DISTRIBUTION - DEMAND"},null,null,1626118,1626118,0,0,1626118,0]
[47,null,{"$f":"'FR-16(7)(v)-1 Functional'!C258","v":"DISTRIBUTION - CUSTOMER"}]
[48,null,{"$f":"'FR-16(7)(v)-1 Functional'!C259","v":"CUSTOMER ACCOUNTING"},null,null,{"$f":"F105-F182","v":780392},0,0,780392,780392,0]
[49,null,{"$f":"'FR-16(7)(v)-1 Functional'!C260","v":"CUSTOMER SERVICE & INFORMATION"},null,null,26719,0,0,26719,26719,0]
[50,null,{"$f":"'FR-16(7)(v)-1 Functional'!C261","v":"SALES"},null,null,0,0,0,0,0,0]
[51,null,{"$f":"'FR-16(7)(v)-1 Functional'!C262","v":"ADJUSTMENT"},null,null,-43311,-4968,-30233,-8110,-43311,0]
[52,null,{"$f":"'FR-16(7)(v)-1 Functional'!C263","v":"  NET GENERAL & INTANG PLANT"},null,null,{"$f":"SUM(F253:F262)","v":9500526},5169227,3532298,799001,9500526,0]
[53]
[54,"COMMON & OTHER PLANT"]
[55,null,{"$f":"'FR-16(7)(v)-1 Functional'!C266","v":"PRODUCTION - DEMAND"},null,null,{"$f":"F112-F189","v":590187},590187,0,0,590187,0]
[56,null,{"$f":"'FR-16(7)(v)-1 Functional'!C267","v":"PRODUCTION - ENERGY"},null,null,686233,0,686233,0,686233,0]
[57,null,{"$f":"'FR-16(7)(v)-1 Functional'!C268","v":"TRANSMISSION"},null,null,93262,93262,0,0,93262,0]
[58,null,{"$f":"'FR-16(7)(v)-1 Functional'!C269","v":"DISTRIBUTION - DEMAND"},null,null,313231,313231,0,0,313231,0]
[59,null,{"$f":"'FR-16(7)(v)-1 Functional'!C270","v":"DISTRIBUTION - CUSTOMER"}]
[60,null,{"$f":"'FR-16(7)(v)-1 Functional'!C271","v":"CUSTOMER ACCOUNTING"},null,null,{"$f":"F117-F194","v":150323},0,0,150323,150323,0]
[61,null,{"$f":"'FR-16(7)(v)-1 Functional'!C272","v":"CUSTOMER SERVICE & INFORMATION"},null,null,5147,0,0,5147,5147,0]
[62,null,{"$f":"'FR-16(7)(v)-1 Functional'!C273","v":"SALES"},null,null,0,0,0,0,0,0]
[63,null,{"$f":"'FR-16(7)(v)-1 Functional'!C274","v":"ADJUSTMENT"},null,null,-2433,-279,-1698,-456,-2433,0]
[64,null,{"$f":"'FR-16(7)(v)-1 Functional'!C275","v":"  COMMON & OTHER PLANT IN SERVICE"},null,null,{"$f":"SUM(F265:F274)","v":1835950},996401,684535,155014,1835950,0]
[65]
[66,null,{"$f":"'FR-16(7)(v)-1 Functional'!C277","v":"NET ELECTRIC PLANT IN SERVICE"},null,null,{"$f":"F275+F263+F248+F222+F216","v":296484606},280024738,4216833,12243035,296484606,0]
[]
[{"$f":"co_name","v":"DUKE ENERGY KENTUCKY, INC."},null,null,null,null,null,null,null,null,{"$f":"J1","v":"FR-16(7)(v)-16"}]
[{"$f":"$A$2","v":"DISTR. SEC. CLASSIFIED - ELECTRIC COST OF SERVICE"},null,null,null,null,null,null,null,null,{"$f":"J2","v":"WITNESS RESPONSIBLE:"}]
[{"$f":"case_name","v":"CASE NO: 2019-00271"},null,null,null,null,null,null,null,null,{"$f":"Witness","v":"JAMES E. ZIOLKOWSKI"}]
[{"$f":"data_filing","v":"DATA: 12 MONTHS ACTUAL  & 0 MONTHS ESTIMATED"},null,null,null,null,null,null,null,null,{"$f":"\"PAGE \"&Pages2-10&\" OF \"&Pages2","v":"PAGE 5 OF 15"}]
[{"$f":"type","v":"TYPE OF FILING: \"X\" ORIGINAL   UPDATED    REVISED  "}]
[]
[]
["LINE",null,null,null,null,"TOTAL","CLASSIFIED",null,null,"TOTAL","ALL"]
["NO.","SUBTRACTIVE RATE BASE ADJUSTMENTS",null,"ALLO",null,{"$f":"$F$9","v":"DISTR. SEC."},{"$f":"G9","v":"DEMAND"},"ENERGY","CUSTOMER","AT ISSUE","OTHER"]
[null,null,"Schedule 5",null,null,null,3,4,5]
[1,"RATE BASE ADJUSTMENTS"]
[2,"ACCUMULATED DEFERRED INCOME TAXES"]
[3," ACCUM DEF INC TAXES (282)"]
[4,null,{"$f":"'FR-16(7)(v)-1 Functional'!C292","v":"LIBERALIZED DEPRECIATION"},{"$f":"'FR-16(7)(v)-1 Functional'!D292","v":"NP29"}," ",{"$f":"'FR-16(7)(v)-14 TOTAL CLASS'!H292","v":17576737},{"$f":"'FR-16(7)(v)-3 PROD Demand'!H292+'FR-16(7)(v)-7 TRANS Demand'!H292+'FR-16(7)(v)-11 DIST Demand'!H292","v":16601319},{"$f":"'FR-16(7)(v)-4 PROD Energy'!H292+'FR-16(7)(v)-8 TRANS Energy'!H292+'FR-16(7)(v)-12 DIST Energy'!H292","v":249681},{"$f":"'FR-16(7)(v)-5 PROD Cust'!H292+'FR-16(7)(v)-9 TRANS Cust'!H292+'FR-16(7)(v)-13 DIST Cust'!H292","v":725737},{"$f":"SUM(G292:I292)","v":17576737},{"$f":"F292-J292","v":0}]
[5,null,{"$f":"'FR-16(7)(v)-1 Functional'!C293","v":"LEASED METERS"},{"$f":"'FR-16(7)(v)-1 Functional'!D293","v":"NP29"}," ",{"$f":"'FR-16(7)(v)-14 TOTAL CLASS'!H293","v":398680},{"$f":"'FR-16(7)(v)-3 PROD Demand'!H293+'FR-16(7)(v)-7 TRANS Demand'!H293+'FR-16(7)(v)-11 DIST Demand'!H293","v":376556},{"$f":"'FR-16(7)(v)-4 PROD Energy'!H293+'FR-16(7)(v)-8 TRANS Energy'!H293+'FR-16(7)(v)-12 DIST Energy'!H293","v":5663},{"$f":"'FR-16(7)(v)-5 PROD Cust'!H293+'FR-16(7)(v)-9 TRANS Cust'!H293+'FR-16(7)(v)-13 DIST Cust'!H293","v":16461},398680,0]
[6,null,{"$f":"'FR-16(7)(v)-1 Functional'!C294","v":"CONTRIB AID CONSTR"},{"$f":"'FR-16(7)(v)-1 Functional'!D294","v":"D249"}," ",{"$f":"'FR-16(7)(v)-14 TOTAL CLASS'!H294","v":0},{"$f":"'FR-16(7)(v)-3 PROD Demand'!H294+'FR-16(7)(v)-7 TRANS Demand'!H294+'FR-16(7)(v)-11 DIST Demand'!H294","v":0},{"$f":"'FR-16(7)(v)-4 PROD Energy'!H294+'FR-16(7)(v)-8 TRANS Energy'!H294+'FR-16(7)(v)-12 DIST Energy'!H294","v":0},{"$f":"'FR-16(7)(v)-5 PROD Cust'!H294+'FR-16(7)(v)-9 TRANS Cust'!H294+'FR-16(7)(v)-13 DIST Cust'!H294","v":0},0,0]
[7,null,{"$f":"'FR-16(7)(v)-1 Functional'!C295","v":"TAX INTEREST, EXPENSING, DEPR."},{"$f":"'FR-16(7)(v)-1 Functional'!D295","v":"NP29"}," ",{"$f":"'FR-16(7)(v)-14 TOTAL CLASS'!H295","v":17550008},{"$f":"'FR-16(7)(v)-3 PROD Demand'!H295+'FR-16(7)(v)-7 TRANS Demand'!H295+'FR-16(7)(v)-11 DIST Demand'!H295","v":16576073},{"$f":"'FR-16(7)(v)-4 PROD Energy'!H295+'FR-16(7)(v)-8 TRANS Energy'!H295+'FR-16(7)(v)-12 DIST Energy'!H295","v":249302},{"$f":"'FR-16(7)(v)-5 PROD Cust'!H295+'FR-16(7)(v)-9 TRANS Cust'!H295+'FR-16(7)(v)-13 DIST Cust'!H295","v":724633},17550008,0]
[8,null,{"$f":"'FR-16(7)(v)-1 Functional'!C296","v":"AFUDC IN DEBT"},{"$f":"'FR-16(7)(v)-1 Functional'!D296","v":"NP29"}," ",{"$f":"'FR-16(7)(v)-14 TOTAL CLASS'!H296","v":0},{"$f":"'FR-16(7)(v)-3 PROD Demand'!H296+'FR-16(7)(v)-7 TRANS Demand'!H296+'FR-16(7)(v)-11 DIST Demand'!H296","v":0},{"$f":"'FR-16(7)(v)-4 PROD Energy'!H296+'FR-16(7)(v)-8 TRANS Energy'!H296+'FR-16(7)(v)-12 DIST Energy'!H296","v":0},{"$f":"'FR-16(7)(v)-5 PROD Cust'!H296+'FR-16(7)(v)-9 TRANS Cust'!H296+'FR-16(7)(v)-13 DIST Cust'!H296","v":0},0,0]
[9,null,{"$f":"'FR-16(7)(v)-1 Functional'!C297","v":"CASUALTY LOSS"},{"$f":"'FR-16(7)(v)-1 Functional'!D297","v":"K411"}," ",{"$f":"'FR-16(7)(v)-14 TOTAL CLASS'!H297","v":-16493},{"$f":"'FR-16(7)(v)-3 PROD Demand'!H297+'FR-16(7)(v)-7 TRANS Demand'!H297+'FR-16(7)(v)-11 DIST Demand'!H297","v":0},{"$f":"'FR-16(7)(v)-4 PROD Energy'!H297+'FR-16(7)(v)-8 TRANS Energy'!H297+'FR-16(7)(v)-12 DIST Energy'!H297","v":0},{"$f":"'FR-16(7)(v)-5 PROD Cust'!H297+'FR-16(7)(v)-9 TRANS Cust'!H297+'FR-16(7)(v)-13 DIST Cust'!H297","v":-16493},-16493,0]
[10,null,{"$f":"'FR-16(7)(v)-1 Functional'!C298","v":"NON-CASH OVERHEADS"},{"$f":"'FR-16(7)(v)-1 Functional'!D298","v":"G229"}," ",{"$f":"'FR-16(7)(v)-14 TOTAL CLASS'!H298","v":0},{"$f":"'FR-16(7)(v)-3 PROD Demand'!H298+'FR-16(7)(v)-7 TRANS Demand'!H298+'FR-16(7)(v)-11 DIST Demand'!H298","v":0},{"$f":"'FR-16(7)(v)-4 PROD Energy'!H298+'FR-16(7)(v)-8 TRANS Energy'!H298+'FR-16(7)(v)-12 DIST Energy'!H298","v":0},{"$f":"'FR-16(7)(v)-5 PROD Cust'!H298+'FR-16(7)(v)-9 TRANS Cust'!H298+'FR-16(7)(v)-13 DIST Cust'!H298","v":0},0,0]
[11,null,{"$f":"'FR-16(7)(v)-1 Functional'!C299","v":"PLANT FAS 109"},{"$f":"'FR-16(7)(v)-1 Functional'!D299","v":"NP29"}," ",{"$f":"'FR-16(7)(v)-14 TOTAL CLASS'!H299","v":0},{"$f":"'FR-16(7)(v)-3 PROD Demand'!H299+'FR-16(7)(v)-7 TRANS Demand'!H299+'FR-16(7)(v)-11 DIST Demand'!H299","v":0},{"$f":"'FR-16(7)(v)-4 PROD Energy'!H299+'FR-16(7)(v)-8 TRANS Energy'!H299+'FR-16(7)(v)-12 DIST Energy'!H299","v":0},{"$f":"'FR-16(7)(v)-5 PROD Cust'!H299+'FR-16(7)(v)-9 TRANS Cust'!H299+'FR-16(7)(v)-13 DIST Cust'!H299","v":0},0,0]
[12,null,{"$f":"'FR-16(7)(v)-1 Functional'!C300","v":"MISCELLANEOUS"},{"$f":"'FR-16(7)(v)-1 Functional'!D300","v":"NP29"},null,{"$f":"'FR-16(7)(v)-14 TOTAL CLASS'!H300","v":16560775},{"$f":"'FR-16(7)(v)-3 PROD Demand'!H300+'FR-16(7)(v)-7 TRANS Demand'!H300+'FR-16(7)(v)-11 DIST Demand'!H300","v":15641738},{"$f":"'FR-16(7)(v)-4 PROD Energy'!H300+'FR-16(7)(v)-8 TRANS Energy'!H300+'FR-16(7)(v)-12 DIST Energy'!H300","v":235249},{"$f":"'FR-16(7)(v)-5 PROD Cust'!H300+'FR-16(7)(v)-9 TRANS Cust'!H300+'FR-16(7)(v)-13 DIST Cust'!H300","v":683788},16560775,0]
[13,null,{"$f":"'FR-16(7)(v)-1 Functional'!C301","v":"  TOTAL ACCOUNT 282"},null,null,{"$f":"SUM(F292:F300)","v":52069707},49195686,739895,2134126,52069707,0]
[14]
[15," ACCUM DEF INC TAXES (283)"]
[16,null,{"$f":"'FR-16(7)(v)-1 Functional'!C304","v":"TRANSITION FROM MISO TO PJM"},{"$f":"'FR-16(7)(v)-1 Functional'!D304","v":"NP29"},null,{"$f":"'FR-16(7)(v)-14 TOTAL CLASS'!H304","v":-943123},{"$f":"'FR-16(7)(v)-3 PROD Demand'!H304+'FR-16(7)(v)-7 TRANS Demand'!H304+'FR-16(7)(v)-11 DIST Demand'!H304","v":-890785},{"$f":"'FR-16(7)(v)-4 PROD Energy'!H304+'FR-16(7)(v)-8 TRANS Energy'!H304+'FR-16(7)(v)-12 DIST Energy'!H304","v":-13397},{"$f":"'FR-16(7)(v)-5 PROD Cust'!H304+'FR-16(7)(v)-9 TRANS Cust'!H304+'FR-16(7)(v)-13 DIST Cust'!H304","v":-38941},{"$f":"SUM(G304:I304)","v":-943123},{"$f":"F304-J304","v":0}]
[17,null,{"$f":"'FR-16(7)(v)-1 Functional'!C305","v":"DEFERRED PLANT COSTS"},{"$f":"'FR-16(7)(v)-1 Functional'!D305","v":"NP29"},null,{"$f":"'FR-16(7)(v)-14 TOTAL CLASS'!H305","v":183736},{"$f":"'FR-16(7)(v)-3 PROD Demand'!H305+'FR-16(7)(v)-7 TRANS Demand'!H305+'FR-16(7)(v)-11 DIST Demand'!H305","v":173539},{"$f":"'FR-16(7)(v)-4 PROD Energy'!H305+'FR-16(7)(v)-8 TRANS Energy'!H305+'FR-16(7)(v)-12 DIST Energy'!H305","v":2610},{"$f":"'FR-16(7)(v)-5 PROD Cust'!H305+'FR-16(7)(v)-9 TRANS Cust'!H305+'FR-16(7)(v)-13 DIST Cust'!H305","v":7587},183736,0]
[18,null,{"$f":"'FR-16(7)(v)-1 Functional'!C306","v":"MISCELLANEOUS"},{"$f":"'FR-16(7)(v)-1 Functional'!D306","v":"OM39"},null,{"$f":"'FR-16(7)(v)-14 TOTAL CLASS'!H306","v":2760795},{"$f":"'FR-16(7)(v)-3 PROD Demand'!H306+'FR-16(7)(v)-7 TRANS Demand'!H306+'FR-16(7)(v)-11 DIST Demand'!H306","v":593969},{"$f":"'FR-16(7)(v)-4 PROD Energy'!H306+'FR-16(7)(v)-8 TRANS Energy'!H306+'FR-16(7)(v)-12 DIST Energy'!H306","v":2074672},{"$f":"'FR-16(7)(v)-5 PROD Cust'!H306+'FR-16(7)(v)-9 TRANS Cust'!H306+'FR-16(7)(v)-13 DIST Cust'!H306","v":92154},2760795,0]
[19,null,{"$f":"'FR-16(7)(v)-1 Functional'!C307","v":"ENVIRONMENTAL RESERVE"},{"$f":"'FR-16(7)(v)-1 Functional'!D307","v":"NP29"},null,{"$f":"'FR-16(7)(v)-14 TOTAL CLASS'!H307","v":0},{"$f":"'FR-16(7)(v)-3 PROD Demand'!H307+'FR-16(7)(v)-7 TRANS Demand'!H307+'FR-16(7)(v)-11 DIST Demand'!H307","v":0},{"$f":"'FR-16(7)(v)-4 PROD Energy'!H307+'FR-16(7)(v)-8 TRANS Energy'!H307+'FR-16(7)(v)-12 DIST Energy'!H307","v":0},{"$f":"'FR-16(7)(v)-5 PROD Cust'!H307+'FR-16(7)(v)-9 TRANS Cust'!H307+'FR-16(7)(v)-13 DIST Cust'!H307","v":0},0,0]
[20,null,{"$f":"'FR-16(7)(v)-1 Functional'!C308","v":"POST IN-SERVICE CARRYING COSTS"},{"$f":"'FR-16(7)(v)-1 Functional'!D308","v":"NP29"},null,{"$f":"'FR-16(7)(v)-14 TOTAL CLASS'!H308","v":0},{"$f":"'FR-16(7)(v)-3 PROD Demand'!H308+'FR-16(7)(v)-7 TRANS Demand'!H308+'FR-16(7)(v)-11 DIST Demand'!H308","v":0},{"$f":"'FR-16(7)(v)-4 PROD Energy'!H308+'FR-16(7)(v)-8 TRANS Energy'!H308+'FR-16(7)(v)-12 DIST Energy'!H308","v":0},{"$f":"'FR-16(7)(v)-5 PROD Cust'!H308+'FR-16(7)(v)-9 TRANS Cust'!H308+'FR-16(7)(v)-13 DIST Cust'!H308","v":0},0,0]
[21,null,{"$f":"'FR-16(7)(v)-1 Functional'!C309","v":"ARO CUMULATIVE EFFECT"},{"$f":"'FR-16(7)(v)-1 Functional'!D309","v":"NP29"},null,{"$f":"'FR-16(7)(v)-14 TOTAL CLASS'!H309","v":0},{"$f":"'FR-16(7)(v)-3 PROD Demand'!H309+'FR-16(7)(v)-7 TRANS Demand'!H309+'FR-16(7)(v)-11 DIST Demand'!H309","v":0},{"$f":"'FR-16(7)(v)-4 PROD Energy'!H309+'FR-16(7)(v)-8 TRANS Energy'!H309+'FR-16(7)(v)-12 DIST Energy'!H309","v":0},{"$f":"'FR-16(7)(v)-5 PROD Cust'!H309+'FR-16(7)(v)-9 TRANS Cust'!H309+'FR-16(7)(v)-13 DIST Cust'!H309","v":0},0,0]
[22,null,{"$f":"'FR-16(7)(v)-1 Functional'!C310","v":"LOSS ON REACQUIRED DEBT"},{"$f":"'FR-16(7)(v)-1 Functional'!D310","v":"D249"},null,{"$f":"'FR-16(7)(v)-14 TOTAL CLASS'!H310","v":0},{"$f":"'FR-16(7)(v)-3 PROD Demand'!H310+'FR-16(7)(v)-7 TRANS Demand'!H310+'FR-16(7)(v)-11 DIST Demand'!H310","v":0},{"$f":"'FR-16(7)(v)-4 PROD Energy'!H310+'FR-16(7)(v)-8 TRANS Energy'!H310+'FR-16(7)(v)-12 DIST Energy'!H310","v":0},{"$f":"'FR-16(7)(v)-5 PROD Cust'!H310+'FR-16(7)(v)-9 TRANS Cust'!H310+'FR-16(7)(v)-13 DIST Cust'!H310","v":0},0,0]
[23,null,{"$f":"'FR-16(7)(v)-1 Functional'!C311","v":"VACATION PAY ACCRUAL"},{"$f":"'FR-16(7)(v)-1 Functional'!D311","v":"A315"},null,{"$f":"'FR-16(7)(v)-14 TOTAL CLASS'!H311","v":0},{"$f":"'FR-16(7)(v)-3 PROD Demand'!H311+'FR-16(7)(v)-7 TRANS Demand'!H311+'FR-16(7)(v)-11 DIST Demand'!H311","v":0},{"$f":"'FR-16(7)(v)-4 PROD Energy'!H311+'FR-16(7)(v)-8 TRANS Energy'!H311+'FR-16(7)(v)-12 DIST Energy'!H311","v":0},{"$f":"'FR-16(7)(v)-5 PROD Cust'!H311+'FR-16(7)(v)-9 TRANS Cust'!H311+'FR-16(7)(v)-13 DIST Cust'!H311","v":0},0,0]
[24,null,{"$f":"'FR-16(7)(v)-1 Functional'!C312","v":"NON-AMI METERS RETIRED EARLY"},{"$f":"'FR-16(7)(v)-1 Functional'!D312","v":"OM39"},null,{"$f":"'FR-16(7)(v)-14 TOTAL CLASS'!H312","v":331255},{"$f":"'FR-16(7)(v)-3 PROD Demand'!H312+'FR-16(7)(v)-7 TRANS Demand'!H312+'FR-16(7)(v)-11 DIST Demand'!H312","v":71268},{"$f":"'FR-16(7)(v)-4 PROD Energy'!H312+'FR-16(7)(v)-8 TRANS Energy'!H312+'FR-16(7)(v)-12 DIST Energy'!H312","v":248930},{"$f":"'FR-16(7)(v)-5 PROD Cust'!H312+'FR-16(7)(v)-9 TRANS Cust'!H312+'FR-16(7)(v)-13 DIST Cust'!H312","v":11057},{"$f":"SUM(G312:I312)","v":331255},{"$f":"F312-J312","v":0}]
[25,null,{"$f":"'FR-16(7)(v)-1 Functional'!C313","v":"PENSION EXPENSE"},{"$f":"'FR-16(7)(v)-1 Functional'!D313","v":"A315"},null,{"$f":"'FR-16(7)(v)-14 TOTAL CLASS'!H313","v":1166269},{"$f":"'FR-16(7)(v)-3 PROD Demand'!H313+'FR-16(7)(v)-7 TRANS Demand'!H313+'FR-16(7)(v)-11 DIST Demand'!H313","v":355185},{"$f":"'FR-16(7)(v)-4 PROD Energy'!H313+'FR-16(7)(v)-8 TRANS Energy'!H313+'FR-16(7)(v)-12 DIST Energy'!H313","v":639542},{"$f":"'FR-16(7)(v)-5 PROD Cust'!H313+'FR-16(7)(v)-9 TRANS Cust'!H313+'FR-16(7)(v)-13 DIST Cust'!H313","v":171542},{"$f":"SUM(G313:I313)","v":1166269},{"$f":"F313-J313","v":0}]
[26,null,{"$f":"'FR-16(7)(v)-1 Functional'!C314","v":"UNCOLLECTIBLE ACCOUNTS"},{"$f":"'FR-16(7)(v)-1 Functional'!D314","v":"K411"},null,{"$f":"'FR-16(7)(v)-14 TOTAL CLASS'!H314","v":0},{"$f":"'FR-16(7)(v)-3 PROD Demand'!H314+'FR-16(7)(v)-7 TRANS Demand'!H314+'FR-16(7)(v)-11 DIST Demand'!H314","v":0},{"$f":"'FR-16(7)(v)-4 PROD Energy'!H314+'FR-16(7)(v)-8 TRANS Energy'!H314+'FR-16(7)(v)-12 DIST Energy'!H314","v":0},{"$f":"'FR-16(7)(v)-5 PROD Cust'!H314+'FR-16(7)(v)-9 TRANS Cust'!H314+'FR-16(7)(v)-13 DIST Cust'!H314","v":0},0,0]
[27,null,{"$f":"'FR-16(7)(v)-1 Functional'!C315","v":"  TOTAL ACCOUNT 283"},null,null,{"$f":"SUM(F303:F314)","v":3498932},303176,2952357,243399,3498932,0]
[28]
[29," OTHER ACCUMULATED DEFERRED INCOME TAXES"]
[30,null,{"$f":"'FR-16(7)(v)-1 Functional'!C318","v":"EXCESS ADIT"},{"$f":"'FR-16(7)(v)-1 Functional'!D318","v":"NP29"},null,{"$f":"'FR-16(7)(v)-14 TOTAL CLASS'!H318","v":16348258},{"$f":"'FR-16(7)(v)-3 PROD Demand'!H318+'FR-16(7)(v)-7 TRANS Demand'!H318+'FR-16(7)(v)-11 DIST Demand'!H318","v":15441014},{"$f":"'FR-16(7)(v)-4 PROD Energy'!H318+'FR-16(7)(v)-8 TRANS Energy'!H318+'FR-16(7)(v)-12 DIST Energy'!H318","v":232231},{"$f":"'FR-16(7)(v)-5 PROD Cust'!H318+'FR-16(7)(v)-9 TRANS Cust'!H318+'FR-16(7)(v)-13 DIST Cust'!H318","v":675013},{"$f":"SUM(G318:I318)","v":16348258},{"$f":"F318-J318","v":0}]
[31,null,{"$f":"'FR-16(7)(v)-1 Functional'!C319","v":"CUSTOMER SERVICE DEPOSITS"},{"$f":"'FR-16(7)(v)-1 Functional'!D319","v":"NP29"},null,{"$f":"'FR-16(7)(v)-14 TOTAL CLASS'!H319","v":0},{"$f":"'FR-16(7)(v)-3 PROD Demand'!H319+'FR-16(7)(v)-7 TRANS Demand'!H319+'FR-16(7)(v)-11 DIST Demand'!H319","v":0},{"$f":"'FR-16(7)(v)-4 PROD Energy'!H319+'FR-16(7)(v)-8 TRANS Energy'!H319+'FR-16(7)(v)-12 DIST Energy'!H319","v":0},{"$f":"'FR-16(7)(v)-5 PROD Cust'!H319+'FR-16(7)(v)-9 TRANS Cust'!H319+'FR-16(7)(v)-13 DIST Cust'!H319","v":0},{"$f":"SUM(G319:I319)","v":0},{"$f":"F319-J319","v":0}]
[32,null,{"$f":"'FR-16(7)(v)-1 Functional'!C320","v":"POST RETIREMENT BENEFITS"},{"$f":"'FR-16(7)(v)-1 Functional'!D320","v":"NP29"},null,{"$f":"'FR-16(7)(v)-14 TOTAL CLASS'!H320","v":0},{"$f":"'FR-16(7)(v)-3 PROD Demand'!H320+'FR-16(7)(v)-7 TRANS Demand'!H320+'FR-16(7)(v)-11 DIST Demand'!H320","v":0},{"$f":"'FR-16(7)(v)-4 PROD Energy'!H320+'FR-16(7)(v)-8 TRANS Energy'!H320+'FR-16(7)(v)-12 DIST Energy'!H320","v":0},{"$f":"'FR-16(7)(v)-5 PROD Cust'!H320+'FR-16(7)(v)-9 TRANS Cust'!H320+'FR-16(7)(v)-13 DIST Cust'!H320","v":0},{"$f":"SUM(G320:I320)","v":0},{"$f":"F320-J320","v":0}]
[33,null,{"$f":"'FR-16(7)(v)-1 Functional'!C321","v":"INVESTMENT TAX CREDIT"},{"$f":"'FR-16(7)(v)-1 Functional'!D321","v":"NP29"},null,{"$f":"'FR-16(7)(v)-14 TOTAL CLASS'!H321","v":0},{"$f":"'FR-16(7)(v)-3 PROD Demand'!H321+'FR-16(7)(v)-7 TRANS Demand'!H321+'FR-16(7)(v)-11 DIST Demand'!H321","v":0},{"$f":"'FR-16(7)(v)-4 PROD Energy'!H321+'FR-16(7)(v)-8 TRANS Energy'!H321+'FR-16(7)(v)-12 DIST Energy'!H321","v":0},{"$f":"'FR-16(7)(v)-5 PROD Cust'!H321+'FR-16(7)(v)-9 TRANS Cust'!H321+'FR-16(7)(v)-13 DIST Cust'!H321","v":0},{"$f":"SUM(G321:I321)","v":0},{"$f":"F321-J321","v":0}]
[34,null,{"$f":"'FR-16(7)(v)-1 Functional'!C322","v":"  TOTAL OTHER SUBTRACTIVE ADJUSTMENTS"},null,null,{"$f":"SUM(F317:F321)","v":16348258},15441014,232231,675013,16348258,0]
[35]
[36,{"$f":"'FR-16(7)(v)-1 Functional'!B324","v":"TOTAL SUBTRACTIVE RATE BASE ADJUSTMENTS"},null,null,null,{"$f":"F322+F315+F301","v":71916897},64939876,3924483,3052538,71916897,0]
[]
[{"$f":"co_name","v":"DUKE ENERGY KENTUCKY, INC."},null,null,null,null,null,null,null,null,{"$f":"J1","v":"FR-16(7)(v)-16"}]
[{"$f":"$A$2","v":"DISTR. SEC. CLASSIFIED - ELECTRIC COST OF SERVICE"},null,null,null,null,null,null,null,null,{"$f":"J2","v":"WITNESS RESPONSIBLE:"}]
[{"$f":"case_name","v":"CASE NO: 2019-00271"},null,null,null,null,null,null,null,null,{"$f":"Witness","v":"JAMES E. ZIOLKOWSKI"}]
[{"$f":"data_filing","v":"DATA: 12 MONTHS ACTUAL  & 0 MONTHS ESTIMATED"},null,null,null,null,null,null,null,null,{"$f":"\"PAGE \"&Pages2-9&\" OF \"&Pages2","v":"PAGE 6 OF 15"}]
[{"$f":"type","v":"TYPE OF FILING: \"X\" ORIGINAL   UPDATED    REVISED  "}]
[]
[]
["LINE",null,null,null,null,"TOTAL","CLASSIFIED",null,null,"TOTAL","ALL"]
["NO.","ADDITIVE RATE BASE ADJUSTMENTS",null,"ALLO",null,{"$f":"$F$9","v":"DISTR. SEC."},{"$f":"G9","v":"DEMAND"},"ENERGY","CUSTOMER","AT ISSUE","OTHER"]
[null,null,"Schedule 5.1",null,null,null,3,4,5]
[1,"OTHER ACCUMULATED DEFERRED INCOME TAXES"]
[2," ACCUM DEF INC TAXES (190)"]
[3,null,{"$f":"'FR-16(7)(v)-1 Functional'!C338","v":"UNCOLLECTIBLE ACCTS"},{"$f":"'FR-16(7)(v)-1 Functional'!D338","v":"K411"},null,{"$f":"'FR-16(7)(v)-14 TOTAL CLASS'!H338","v":3036},{"$f":"'FR-16(7)(v)-3 PROD Demand'!H338+'FR-16(7)(v)-7 TRANS Demand'!H338+'FR-16(7)(v)-11 DIST Demand'!H338","v":0},{"$f":"'FR-16(7)(v)-4 PROD Energy'!H338+'FR-16(7)(v)-8 TRANS Energy'!H338+'FR-16(7)(v)-12 DIST Energy'!H338","v":0},{"$f":"'FR-16(7)(v)-5 PROD Cust'!H338+'FR-16(7)(v)-9 TRANS Cust'!H338+'FR-16(7)(v)-13 DIST Cust'!H338","v":3036},{"$f":"SUM(G338:I338)","v":3036},{"$f":"F338-J338","v":0}]
[4,null,{"$f":"'FR-16(7)(v)-1 Functional'!C339","v":"CASH FLOW HEDGE"},{"$f":"'FR-16(7)(v)-1 Functional'!D339","v":"A315"},null,{"$f":"'FR-16(7)(v)-14 TOTAL CLASS'!H339","v":46861},{"$f":"'FR-16(7)(v)-3 PROD Demand'!H339+'FR-16(7)(v)-7 TRANS Demand'!H339+'FR-16(7)(v)-11 DIST Demand'!H339","v":14271},{"$f":"'FR-16(7)(v)-4 PROD Energy'!H339+'FR-16(7)(v)-8 TRANS Energy'!H339+'FR-16(7)(v)-12 DIST Energy'!H339","v":25697},{"$f":"'FR-16(7)(v)-5 PROD Cust'!H339+'FR-16(7)(v)-9 TRANS Cust'!H339+'FR-16(7)(v)-13 DIST Cust'!H339","v":6893},46861,0]
[5,null,{"$f":"'FR-16(7)(v)-1 Functional'!C340","v":"RESERVED FOR FUTURE USE"},{"$f":"'FR-16(7)(v)-1 Functional'!D340","v":"NP29"},null,{"$f":"'FR-16(7)(v)-14 TOTAL CLASS'!H340","v":0},{"$f":"'FR-16(7)(v)-3 PROD Demand'!H340+'FR-16(7)(v)-7 TRANS Demand'!H340+'FR-16(7)(v)-11 DIST Demand'!H340","v":0},{"$f":"'FR-16(7)(v)-4 PROD Energy'!H340+'FR-16(7)(v)-8 TRANS Energy'!H340+'FR-16(7)(v)-12 DIST Energy'!H340","v":0},{"$f":"'FR-16(7)(v)-5 PROD Cust'!H340+'FR-16(7)(v)-9 TRANS Cust'!H340+'FR-16(7)(v)-13 DIST Cust'!H340","v":0},0,0]
[6,null,{"$f":"'FR-16(7)(v)-1 Functional'!C341","v":"RESERVED FOR FUTURE USE"},{"$f":"'FR-16(7)(v)-1 Functional'!D341","v":"NP29"},null,{"$f":"'FR-16(7)(v)-14 TOTAL CLASS'!H341","v":0},{"$f":"'FR-16(7)(v)-3 PROD Demand'!H341+'FR-16(7)(v)-7 TRANS Demand'!H341+'FR-16(7)(v)-11 DIST Demand'!H341","v":0},{"$f":"'FR-16(7)(v)-4 PROD Energy'!H341+'FR-16(7)(v)-8 TRANS Energy'!H341+'FR-16(7)(v)-12 DIST Energy'!H341","v":0},{"$f":"'FR-16(7)(v)-5 PROD Cust'!H341+'FR-16(7)(v)-9 TRANS Cust'!H341+'FR-16(7)(v)-13 DIST Cust'!H341","v":0},0,0]
[7,null,{"$f":"'FR-16(7)(v)-1 Functional'!C342","v":"ELECTRIC METERS"},{"$f":"'FR-16(7)(v)-1 Functional'!D342","v":"K407"},null,{"$f":"'FR-16(7)(v)-14 TOTAL CLASS'!H342","v":0},{"$f":"'FR-16(7)(v)-3 PROD Demand'!H342+'FR-16(7)(v)-7 TRANS Demand'!H342+'FR-16(7)(v)-11 DIST Demand'!H342","v":0},{"$f":"'FR-16(7)(v)-4 PROD Energy'!H342+'FR-16(7)(v)-8 TRANS Energy'!H342+'FR-16(7)(v)-12 DIST Energy'!H342","v":0},{"$f":"'FR-16(7)(v)-5 PROD Cust'!H342+'FR-16(7)(v)-9 TRANS Cust'!H342+'FR-16(7)(v)-13 DIST Cust'!H342","v":0},0,0]
[8,null,{"$f":"'FR-16(7)(v)-1 Functional'!C343","v":"UNAMORTIZED DEBT PREMIUM"},{"$f":"'FR-16(7)(v)-1 Functional'!D343","v":"D249"},null,{"$f":"'FR-16(7)(v)-14 TOTAL CLASS'!H343","v":0},{"$f":"'FR-16(7)(v)-3 PROD Demand'!H343+'FR-16(7)(v)-7 TRANS Demand'!H343+'FR-16(7)(v)-11 DIST Demand'!H343","v":0},{"$f":"'FR-16(7)(v)-4 PROD Energy'!H343+'FR-16(7)(v)-8 TRANS Energy'!H343+'FR-16(7)(v)-12 DIST Energy'!H343","v":0},{"$f":"'FR-16(7)(v)-5 PROD Cust'!H343+'FR-16(7)(v)-9 TRANS Cust'!H343+'FR-16(7)(v)-13 DIST Cust'!H343","v":0},0,0]
[9,null,{"$f":"'FR-16(7)(v)-1 Functional'!C344","v":"ARO CUMULATIVE EFFECT"},{"$f":"'FR-16(7)(v)-1 Functional'!D344","v":"NP29"},null,{"$f":"'FR-16(7)(v)-14 TOTAL CLASS'!H344","v":0},{"$f":"'FR-16(7)(v)-3 PROD Demand'!H344+'FR-16(7)(v)-7 TRANS Demand'!H344+'FR-16(7)(v)-11 DIST Demand'!H344","v":0},{"$f":"'FR-16(7)(v)-4 PROD Energy'!H344+'FR-16(7)(v)-8 TRANS Energy'!H344+'FR-16(7)(v)-12 DIST Energy'!H344","v":0},{"$f":"'FR-16(7)(v)-5 PROD Cust'!H344+'FR-16(7)(v)-9 TRANS Cust'!H344+'FR-16(7)(v)-13 DIST Cust'!H344","v":0},0,0]
[10,null,{"$f":"'FR-16(7)(v)-1 Functional'!C345","v":"RETIREMENT PLAN"},{"$f":"'FR-16(7)(v)-1 Functional'!D345","v":"A315"},null,{"$f":"'FR-16(7)(v)-14 TOTAL CLASS'!H345","v":481349},{"$f":"'FR-16(7)(v)-3 PROD Demand'!H345+'FR-16(7)(v)-7 TRANS Demand'!H345+'FR-16(7)(v)-11 DIST Demand'!H345","v":146594},{"$f":"'FR-16(7)(v)-4 PROD Energy'!H345+'FR-16(7)(v)-8 TRANS Energy'!H345+'FR-16(7)(v)-12 DIST Energy'!H345","v":263955},{"$f":"'FR-16(7)(v)-5 PROD Cust'!H345+'FR-16(7)(v)-9 TRANS Cust'!H345+'FR-16(7)(v)-13 DIST Cust'!H345","v":70800},481349,0]
[11,null,{"$f":"'FR-16(7)(v)-1 Functional'!C346","v":"POST RETIREMENT BENEFITS "},{"$f":"'FR-16(7)(v)-1 Functional'!D346","v":"A315"},null,{"$f":"'FR-16(7)(v)-14 TOTAL CLASS'!H346","v":0},{"$f":"'FR-16(7)(v)-3 PROD Demand'!H346+'FR-16(7)(v)-7 TRANS Demand'!H346+'FR-16(7)(v)-11 DIST Demand'!H346","v":0},{"$f":"'FR-16(7)(v)-4 PROD Energy'!H346+'FR-16(7)(v)-8 TRANS Energy'!H346+'FR-16(7)(v)-12 DIST Energy'!H346","v":0},{"$f":"'FR-16(7)(v)-5 PROD Cust'!H346+'FR-16(7)(v)-9 TRANS Cust'!H346+'FR-16(7)(v)-13 DIST Cust'!H346","v":0},0,0]
[12,null,{"$f":"'FR-16(7)(v)-1 Functional'!C347","v":"POST RETIREMENT BENEFITS - HEALTH CARE"},{"$f":"'FR-16(7)(v)-1 Functional'!D347","v":"A315"},null,{"$f":"'FR-16(7)(v)-14 TOTAL CLASS'!H347","v":0},{"$f":"'FR-16(7)(v)-3 PROD Demand'!H347+'FR-16(7)(v)-7 TRANS Demand'!H347+'FR-16(7)(v)-11 DIST Demand'!H347","v":0},{"$f":"'FR-16(7)(v)-4 PROD Energy'!H347+'FR-16(7)(v)-8 TRANS Energy'!H347+'FR-16(7)(v)-12 DIST Energy'!H347","v":0},{"$f":"'FR-16(7)(v)-5 PROD Cust'!H347+'FR-16(7)(v)-9 TRANS Cust'!H347+'FR-16(7)(v)-13 DIST Cust'!H347","v":0},0,0]
[13,null,{"$f":"'FR-16(7)(v)-1 Functional'!C348","v":"POST EMPLOYMENT BENEFITS - SFAS 112"},{"$f":"'FR-16(7)(v)-1 Functional'!D348","v":"A315"},null,{"$f":"'FR-16(7)(v)-14 TOTAL CLASS'!H348","v":0},{"$f":"'FR-16(7)(v)-3 PROD Demand'!H348+'FR-16(7)(v)-7 TRANS Demand'!H348+'FR-16(7)(v)-11 DIST Demand'!H348","v":0},{"$f":"'FR-16(7)(v)-4 PROD Energy'!H348+'FR-16(7)(v)-8 TRANS Energy'!H348+'FR-16(7)(v)-12 DIST Energy'!H348","v":0},{"$f":"'FR-16(7)(v)-5 PROD Cust'!H348+'FR-16(7)(v)-9 TRANS Cust'!H348+'FR-16(7)(v)-13 DIST Cust'!H348","v":0},0,0]
[14,null,{"$f":"'FR-16(7)(v)-1 Functional'!C349","v":"SUPPLEMENTAL PENSION PLAN"},{"$f":"'FR-16(7)(v)-1 Functional'!D349","v":"A315"},null,{"$f":"'FR-16(7)(v)-14 TOTAL CLASS'!H349","v":0},{"$f":"'FR-16(7)(v)-3 PROD Demand'!H349+'FR-16(7)(v)-7 TRANS Demand'!H349+'FR-16(7)(v)-11 DIST Demand'!H349","v":0},{"$f":"'FR-16(7)(v)-4 PROD Energy'!H349+'FR-16(7)(v)-8 TRANS Energy'!H349+'FR-16(7)(v)-12 DIST Energy'!H349","v":0},{"$f":"'FR-16(7)(v)-5 PROD Cust'!H349+'FR-16(7)(v)-9 TRANS Cust'!H349+'FR-16(7)(v)-13 DIST Cust'!H349","v":0},0,0]
[15,null,{"$f":"'FR-16(7)(v)-1 Functional'!C350","v":"INCENTIVE PLAN"},{"$f":"'FR-16(7)(v)-1 Functional'!D350","v":"A315"},null,{"$f":"'FR-16(7)(v)-14 TOTAL CLASS'!H350","v":0},{"$f":"'FR-16(7)(v)-3 PROD Demand'!H350+'FR-16(7)(v)-7 TRANS Demand'!H350+'FR-16(7)(v)-11 DIST Demand'!H350","v":0},{"$f":"'FR-16(7)(v)-4 PROD Energy'!H350+'FR-16(7)(v)-8 TRANS Energy'!H350+'FR-16(7)(v)-12 DIST Energy'!H350","v":0},{"$f":"'FR-16(7)(v)-5 PROD Cust'!H350+'FR-16(7)(v)-9 TRANS Cust'!H350+'FR-16(7)(v)-13 DIST Cust'!H350","v":0},0,0]
[16,null,{"$f":"'FR-16(7)(v)-1 Functional'!C351","v":"FEDERAL DEFERRED TAX RECEIVEABLE"},{"$f":"'FR-16(7)(v)-1 Functional'!D351","v":"A315"},null,{"$f":"'FR-16(7)(v)-14 TOTAL CLASS'!H351","v":0},{"$f":"'FR-16(7)(v)-3 PROD Demand'!H351+'FR-16(7)(v)-7 TRANS Demand'!H351+'FR-16(7)(v)-11 DIST Demand'!H351","v":0},{"$f":"'FR-16(7)(v)-4 PROD Energy'!H351+'FR-16(7)(v)-8 TRANS Energy'!H351+'FR-16(7)(v)-12 DIST Energy'!H351","v":0},{"$f":"'FR-16(7)(v)-5 PROD Cust'!H351+'FR-16(7)(v)-9 TRANS Cust'!H351+'FR-16(7)(v)-13 DIST Cust'!H351","v":0},0,0]
[17,null,{"$f":"'FR-16(7)(v)-1 Functional'!C352","v":"MISCELLANEOUS"},{"$f":"'FR-16(7)(v)-1 Functional'!D352","v":"A315"},null,{"$f":"'FR-16(7)(v)-14 TOTAL CLASS'!H352","v":1544989},{"$f":"'FR-16(7)(v)-3 PROD Demand'!H352+'FR-16(7)(v)-7 TRANS Demand'!H352+'FR-16(7)(v)-11 DIST Demand'!H352","v":470523},{"$f":"'FR-16(7)(v)-4 PROD Energy'!H352+'FR-16(7)(v)-8 TRANS Energy'!H352+'FR-16(7)(v)-12 DIST Energy'!H352","v":847219},{"$f":"'FR-16(7)(v)-5 PROD Cust'!H352+'FR-16(7)(v)-9 TRANS Cust'!H352+'FR-16(7)(v)-13 DIST Cust'!H352","v":227247},1544989,0]
[18,null,{"$f":"'FR-16(7)(v)-1 Functional'!C353","v":"DEFERRED TAX"},{"$f":"'FR-16(7)(v)-1 Functional'!D353","v":"A315"},null,{"$f":"'FR-16(7)(v)-14 TOTAL CLASS'!H353","v":704040},{"$f":"'FR-16(7)(v)-3 PROD Demand'!H353+'FR-16(7)(v)-7 TRANS Demand'!H353+'FR-16(7)(v)-11 DIST Demand'!H353","v":214414},{"$f":"'FR-16(7)(v)-4 PROD Energy'!H353+'FR-16(7)(v)-8 TRANS Energy'!H353+'FR-16(7)(v)-12 DIST Energy'!H353","v":386071},{"$f":"'FR-16(7)(v)-5 PROD Cust'!H353+'FR-16(7)(v)-9 TRANS Cust'!H353+'FR-16(7)(v)-13 DIST Cust'!H353","v":103555},704040,0]
[19,null,{"$f":"'FR-16(7)(v)-1 Functional'!C354","v":"NET OPERATING LOSS"},{"$f":"'FR-16(7)(v)-1 Functional'!D354","v":"NP29"},null,{"$f":"'FR-16(7)(v)-14 TOTAL CLASS'!H354","v":0},{"$f":"'FR-16(7)(v)-3 PROD Demand'!H354+'FR-16(7)(v)-7 TRANS Demand'!H354+'FR-16(7)(v)-11 DIST Demand'!H354","v":0},{"$f":"'FR-16(7)(v)-4 PROD Energy'!H354+'FR-16(7)(v)-8 TRANS Energy'!H354+'FR-16(7)(v)-12 DIST Energy'!H354","v":0},{"$f":"'FR-16(7)(v)-5 PROD Cust'!H354+'FR-16(7)(v)-9 TRANS Cust'!H354+'FR-16(7)(v)-13 DIST Cust'!H354","v":0},0,0]
[20,null,{"$f":"'FR-16(7)(v)-1 Functional'!C355","v":"401K INCENTIVE PLAN"},{"$f":"'FR-16(7)(v)-1 Functional'!D355","v":"A315"},null,{"$f":"'FR-16(7)(v)-14 TOTAL CLASS'!H355","v":0},{"$f":"'FR-16(7)(v)-3 PROD Demand'!H355+'FR-16(7)(v)-7 TRANS Demand'!H355+'FR-16(7)(v)-11 DIST Demand'!H355","v":0},{"$f":"'FR-16(7)(v)-4 PROD Energy'!H355+'FR-16(7)(v)-8 TRANS Energy'!H355+'FR-16(7)(v)-12 DIST Energy'!H355","v":0},{"$f":"'FR-16(7)(v)-5 PROD Cust'!H355+'FR-16(7)(v)-9 TRANS Cust'!H355+'FR-16(7)(v)-13 DIST Cust'!H355","v":0},0,0]
[21,null,{"$f":"'FR-16(7)(v)-1 Functional'!C356","v":"ENVIRONMENTAL RESERVE"},{"$f":"'FR-16(7)(v)-1 Functional'!D356","v":"NP29"},null,{"$f":"'FR-16(7)(v)-14 TOTAL CLASS'!H356","v":0},{"$f":"'FR-16(7)(v)-3 PROD Demand'!H356+'FR-16(7)(v)-7 TRANS Demand'!H356+'FR-16(7)(v)-11 DIST Demand'!H356","v":0},{"$f":"'FR-16(7)(v)-4 PROD Energy'!H356+'FR-16(7)(v)-8 TRANS Energy'!H356+'FR-16(7)(v)-12 DIST Energy'!H356","v":0},{"$f":"'FR-16(7)(v)-5 PROD Cust'!H356+'FR-16(7)(v)-9 TRANS Cust'!H356+'FR-16(7)(v)-13 DIST Cust'!H356","v":0},0,0]
[22,null,{"$f":"'FR-16(7)(v)-1 Functional'!C357","v":"VACATION PAY ACCRUALS"},{"$f":"'FR-16(7)(v)-1 Functional'!D357","v":"A315"},null,{"$f":"'FR-16(7)(v)-14 TOTAL CLASS'!H357","v":76319},{"$f":"'FR-16(7)(v)-3 PROD Demand'!H357+'FR-16(7)(v)-7 TRANS Demand'!H357+'FR-16(7)(v)-11 DIST Demand'!H357","v":23243},{"$f":"'FR-16(7)(v)-4 PROD Energy'!H357+'FR-16(7)(v)-8 TRANS Energy'!H357+'FR-16(7)(v)-12 DIST Energy'!H357","v":41850},{"$f":"'FR-16(7)(v)-5 PROD Cust'!H357+'FR-16(7)(v)-9 TRANS Cust'!H357+'FR-16(7)(v)-13 DIST Cust'!H357","v":11226},76319,0]
[23,null,{"$f":"'FR-16(7)(v)-1 Functional'!C358","v":"DEMAND SIDE MANAGEMENT DEFERRAL"},{"$f":"'FR-16(7)(v)-1 Functional'!D358","v":"NP29"},null,{"$f":"'FR-16(7)(v)-14 TOTAL CLASS'!H358","v":162776},{"$f":"'FR-16(7)(v)-3 PROD Demand'!H358+'FR-16(7)(v)-7 TRANS Demand'!H358+'FR-16(7)(v)-11 DIST Demand'!H358","v":153743},{"$f":"'FR-16(7)(v)-4 PROD Energy'!H358+'FR-16(7)(v)-8 TRANS Energy'!H358+'FR-16(7)(v)-12 DIST Energy'!H358","v":2312},{"$f":"'FR-16(7)(v)-5 PROD Cust'!H358+'FR-16(7)(v)-9 TRANS Cust'!H358+'FR-16(7)(v)-13 DIST Cust'!H358","v":6721},162776,0]
[24,null,{"$f":"'FR-16(7)(v)-1 Functional'!C359","v":"OPERATING LEASE OBLIGATION"},{"$f":"'FR-16(7)(v)-1 Functional'!D359","v":"NP29"},null,{"$f":"'FR-16(7)(v)-14 TOTAL CLASS'!H359","v":602346},{"$f":"'FR-16(7)(v)-3 PROD Demand'!H359+'FR-16(7)(v)-7 TRANS Demand'!H359+'FR-16(7)(v)-11 DIST Demand'!H359","v":568918},{"$f":"'FR-16(7)(v)-4 PROD Energy'!H359+'FR-16(7)(v)-8 TRANS Energy'!H359+'FR-16(7)(v)-12 DIST Energy'!H359","v":8557},{"$f":"'FR-16(7)(v)-5 PROD Cust'!H359+'FR-16(7)(v)-9 TRANS Cust'!H359+'FR-16(7)(v)-13 DIST Cust'!H359","v":24871},602346,0]
[25,null,{"$f":"'FR-16(7)(v)-1 Functional'!C360","v":"INJURIES & DAMAGES"},{"$f":"'FR-16(7)(v)-1 Functional'!D360","v":"NP29"},null,{"$f":"'FR-16(7)(v)-14 TOTAL CLASS'!H360","v":0},{"$f":"'FR-16(7)(v)-3 PROD Demand'!H360+'FR-16(7)(v)-7 TRANS Demand'!H360+'FR-16(7)(v)-11 DIST Demand'!H360","v":0},{"$f":"'FR-16(7)(v)-4 PROD Energy'!H360+'FR-16(7)(v)-8 TRANS Energy'!H360+'FR-16(7)(v)-12 DIST Energy'!H360","v":0},{"$f":"'FR-16(7)(v)-5 PROD Cust'!H360+'FR-16(7)(v)-9 TRANS Cust'!H360+'FR-16(7)(v)-13 DIST Cust'!H360","v":0},0,0]
[26,null,{"$f":"'FR-16(7)(v)-1 Functional'!C361","v":"  TOTAL ACCOUNT 190"},null,null,{"$f":"SUM(F337:F360)","v":3621716},1591706,1575661,454349,3621716,0]
[27]
[28," OTHER"]
[29,null,{"$f":"'FR-16(7)(v)-1 Functional'!C364","v":"RESERVED FOR FUTURE USE"},{"$f":"'FR-16(7)(v)-1 Functional'!D364","v":"NP29"},null,{"$f":"'FR-16(7)(v)-14 TOTAL CLASS'!H364","v":0},{"$f":"'FR-16(7)(v)-3 PROD Demand'!H364+'FR-16(7)(v)-7 TRANS Demand'!H364+'FR-16(7)(v)-11 DIST Demand'!H364","v":0},{"$f":"'FR-16(7)(v)-4 PROD Energy'!H364+'FR-16(7)(v)-8 TRANS Energy'!H364+'FR-16(7)(v)-12 DIST Energy'!H364","v":0},{"$f":"'FR-16(7)(v)-5 PROD Cust'!H364+'FR-16(7)(v)-9 TRANS Cust'!H364+'FR-16(7)(v)-13 DIST Cust'!H364","v":0},{"$f":"SUM(G364:I364)","v":0},{"$f":"F364-J364","v":0}]
[30,null,{"$f":"'FR-16(7)(v)-1 Functional'!C365","v":"RATE CASE EXPENSE REGULATORY ASSET"},{"$f":"'FR-16(7)(v)-1 Functional'!D365","v":"NP29"},null,{"$f":"'FR-16(7)(v)-14 TOTAL CLASS'!H365","v":244029},{"$f":"'FR-16(7)(v)-3 PROD Demand'!H365+'FR-16(7)(v)-7 TRANS Demand'!H365+'FR-16(7)(v)-11 DIST Demand'!H365","v":230487},{"$f":"'FR-16(7)(v)-4 PROD Energy'!H365+'FR-16(7)(v)-8 TRANS Energy'!H365+'FR-16(7)(v)-12 DIST Energy'!H365","v":3466},{"$f":"'FR-16(7)(v)-5 PROD Cust'!H365+'FR-16(7)(v)-9 TRANS Cust'!H365+'FR-16(7)(v)-13 DIST Cust'!H365","v":10076},{"$f":"SUM(G365:I365)","v":244029},{"$f":"F365-J365","v":0}]
[31,null,{"$f":"'FR-16(7)(v)-1 Functional'!C366","v":"RESERVED FOR FUTURE USE"},{"$f":"'FR-16(7)(v)-1 Functional'!D366","v":"NP29"},null,{"$f":"'FR-16(7)(v)-14 TOTAL CLASS'!H366","v":0},{"$f":"'FR-16(7)(v)-3 PROD Demand'!H366+'FR-16(7)(v)-7 TRANS Demand'!H366+'FR-16(7)(v)-11 DIST Demand'!H366","v":0},{"$f":"'FR-16(7)(v)-4 PROD Energy'!H366+'FR-16(7)(v)-8 TRANS Energy'!H366+'FR-16(7)(v)-12 DIST Energy'!H366","v":0},{"$f":"'FR-16(7)(v)-5 PROD Cust'!H366+'FR-16(7)(v)-9 TRANS Cust'!H366+'FR-16(7)(v)-13 DIST Cust'!H366","v":0},{"$f":"SUM(G366:I366)","v":0},{"$f":"F366-J366","v":0}]
[32,null,{"$f":"'FR-16(7)(v)-1 Functional'!C367","v":"  OTHER"},null,null,{"$f":"SUM(F364:F366)","v":244029},{"$f":"SUM(G363:G366)","v":230487},{"$f":"SUM(H363:H366)","v":3466},{"$f":"SUM(I363:I366)","v":10076},{"$f":"SUM(J363:J366)","v":244029},{"$f":"SUM(K363:K366)","v":0}]
[33,null,null,null,null," "]
[34,"CONSTRUCTION WORK IN PROGRESS"]
[35,null,{"$f":"'FR-16(7)(v)-1 Functional'!C370","v":"PRODUCTION"},{"$f":"'FR-16(7)(v)-1 Functional'!D370","v":"P129"},null,{"$f":"'FR-16(7)(v)-14 TOTAL CLASS'!H370","v":0},{"$f":"'FR-16(7)(v)-3 PROD Demand'!H370+'FR-16(7)(v)-7 TRANS Demand'!H370+'FR-16(7)(v)-11 DIST Demand'!H370","v":0},{"$f":"'FR-16(7)(v)-4 PROD Energy'!H370+'FR-16(7)(v)-8 TRANS Energy'!H370+'FR-16(7)(v)-12 DIST Energy'!H370","v":0},{"$f":"'FR-16(7)(v)-5 PROD Cust'!H370+'FR-16(7)(v)-9 TRANS Cust'!H370+'FR-16(7)(v)-13 DIST Cust'!H370","v":0},{"$f":"SUM(G370:I370)","v":0},{"$f":"F370-J370","v":0}]
[36,null,{"$f":"'FR-16(7)(v)-1 Functional'!C371","v":"TRANSMISSION"},{"$f":"'FR-16(7)(v)-1 Functional'!D371","v":"T129"},null,{"$f":"'FR-16(7)(v)-14 TOTAL CLASS'!H371","v":0},{"$f":"'FR-16(7)(v)-3 PROD Demand'!H371+'FR-16(7)(v)-7 TRANS Demand'!H371+'FR-16(7)(v)-11 DIST Demand'!H371","v":0},{"$f":"'FR-16(7)(v)-4 PROD Energy'!H371+'FR-16(7)(v)-8 TRANS Energy'!H371+'FR-16(7)(v)-12 DIST Energy'!H371","v":0},{"$f":"'FR-16(7)(v)-5 PROD Cust'!H371+'FR-16(7)(v)-9 TRANS Cust'!H371+'FR-16(7)(v)-13 DIST Cust'!H371","v":0},{"$f":"SUM(G371:I371)","v":0},{"$f":"F371-J371","v":0}]
[37,null,{"$f":"'FR-16(7)(v)-1 Functional'!C372","v":"DISTRIBUTION"},{"$f":"'FR-16(7)(v)-1 Functional'!D372","v":"D149"},null,{"$f":"'FR-16(7)(v)-14 TOTAL CLASS'!H372","v":0},{"$f":"'FR-16(7)(v)-3 PROD Demand'!H372+'FR-16(7)(v)-7 TRANS Demand'!H372+'FR-16(7)(v)-11 DIST Demand'!H372","v":0},{"$f":"'FR-16(7)(v)-4 PROD Energy'!H372+'FR-16(7)(v)-8 TRANS Energy'!H372+'FR-16(7)(v)-12 DIST Energy'!H372","v":0},{"$f":"'FR-16(7)(v)-5 PROD Cust'!H372+'FR-16(7)(v)-9 TRANS Cust'!H372+'FR-16(7)(v)-13 DIST Cust'!H372","v":0},{"$f":"SUM(G372:I372)","v":0},{"$f":"F372-J372","v":0}]
[38,null,{"$f":"'FR-16(7)(v)-1 Functional'!C373","v":"COMMON"},{"$f":"'FR-16(7)(v)-1 Functional'!D373","v":"C129"},null,{"$f":"'FR-16(7)(v)-14 TOTAL CLASS'!H373","v":0},{"$f":"'FR-16(7)(v)-3 PROD Demand'!H373+'FR-16(7)(v)-7 TRANS Demand'!H373+'FR-16(7)(v)-11 DIST Demand'!H373","v":0},{"$f":"'FR-16(7)(v)-4 PROD Energy'!H373+'FR-16(7)(v)-8 TRANS Energy'!H373+'FR-16(7)(v)-12 DIST Energy'!H373","v":0},{"$f":"'FR-16(7)(v)-5 PROD Cust'!H373+'FR-16(7)(v)-9 TRANS Cust'!H373+'FR-16(7)(v)-13 DIST Cust'!H373","v":0},{"$f":"SUM(G373:I373)","v":0},{"$f":"F373-J373","v":0}]
[39,null,{"$f":"'FR-16(7)(v)-1 Functional'!C374","v":"GENERAL"},{"$f":"'FR-16(7)(v)-1 Functional'!D374","v":"G129"},null,{"$f":"'FR-16(7)(v)-14 TOTAL CLASS'!H374","v":0},{"$f":"'FR-16(7)(v)-3 PROD Demand'!H374+'FR-16(7)(v)-7 TRANS Demand'!H374+'FR-16(7)(v)-11 DIST Demand'!H374","v":0},{"$f":"'FR-16(7)(v)-4 PROD Energy'!H374+'FR-16(7)(v)-8 TRANS Energy'!H374+'FR-16(7)(v)-12 DIST Energy'!H374","v":0},{"$f":"'FR-16(7)(v)-5 PROD Cust'!H374+'FR-16(7)(v)-9 TRANS Cust'!H374+'FR-16(7)(v)-13 DIST Cust'!H374","v":0},{"$f":"SUM(G374:I374)","v":0},{"$f":"F374-J374","v":0}]
[40,null,{"$f":"'FR-16(7)(v)-1 Functional'!C375","v":"TOTAL CONSTRUCTION WORK IN PROGRESS"},null,null,{"$f":"SUM(F370:F374)","v":0},0,0,0,0,0]
[41]
[42,{"$f":"'FR-16(7)(v)-1 Functional'!B377","v":"TOTAL ADDITIVE RATE BASE ADJUSTMENTS"},null,null,null,{"$f":"F361+F367+F375","v":3865745},1822193,1579127,464425,3865745,0]
[]
[{"$f":"co_name","v":"DUKE ENERGY KENTUCKY, INC."},null,null,null,null,null,null,null,null,{"$f":"J1","v":"FR-16(7)(v)-16"}]
[{"$f":"$A$2","v":"DISTR. SEC. CLASSIFIED - ELECTRIC COST OF SERVICE"},null,null,null,null,null,null,null,null,{"$f":"J2","v":"WITNESS RESPONSIBLE:"}]
[{"$f":"case_name","v":"CASE NO: 2019-00271"},null,null,null,null,null,null,null,null,{"$f":"Witness","v":"JAMES E. ZIOLKOWSKI"}]
[{"$f":"data_filing","v":"DATA: 12 MONTHS ACTUAL  & 0 MONTHS ESTIMATED"},null,null,null,null,null,null,null,null,{"$f":"\"PAGE \"&Pages2-8&\" OF \"&Pages2","v":"PAGE 7 OF 15"}]
[{"$f":"type","v":"TYPE OF FILING: \"X\" ORIGINAL   UPDATED    REVISED  "}]
[]
[]
["LINE",null,null,null,null,"TOTAL","CLASSIFIED",null,null,"TOTAL","ALL"]
["NO.","WORKING CAPITAL",null,"ALLO",null,{"$f":"$F$9","v":"DISTR. SEC."},{"$f":"G9","v":"DEMAND"},"ENERGY","CUSTOMER","AT ISSUE","OTHER"]
[null,null,"Schedule 5.2",null,null,null,3,4,5]
[]
[1,"NET ORIGINAL COST RATE BASE",null,null,null,{"$f":"F277-F324+F377","v":228433454},216907055,1871477,9654922,228433454,0]
[2]
[3,"WORKING CAPITAL"]
[4]
[5,"PLANT MATERIALS & SUPPLIES"]
[6,null,{"$f":"'FR-16(7)(v)-1 Functional'!C395","v":"OTHER MATERIALS & SUPPLIES"},{"$f":"'FR-16(7)(v)-1 Functional'!D395","v":"PD29"},null,{"$f":"'FR-16(7)(v)-14 TOTAL CLASS'!H395","v":4377655},{"$f":"'FR-16(7)(v)-3 PROD Demand'!H395+'FR-16(7)(v)-7 TRANS Demand'!H395+'FR-16(7)(v)-11 DIST Demand'!H395","v":2068283},{"$f":"'FR-16(7)(v)-4 PROD Energy'!H395+'FR-16(7)(v)-8 TRANS Energy'!H395+'FR-16(7)(v)-12 DIST Energy'!H395","v":1420936},{"$f":"'FR-16(7)(v)-5 PROD Cust'!H395+'FR-16(7)(v)-9 TRANS Cust'!H395+'FR-16(7)(v)-13 DIST Cust'!H395","v":888436},{"$f":"SUM(G395:I395)","v":4377655},{"$f":"F395-J395","v":0}]
[7,null,{"$f":"'FR-16(7)(v)-1 Functional'!C396","v":"FUEL"},{"$f":"'FR-16(7)(v)-1 Functional'!D396","v":"K301"},null,{"$f":"'FR-16(7)(v)-14 TOTAL CLASS'!H396","v":5256592},{"$f":"'FR-16(7)(v)-3 PROD Demand'!H396+'FR-16(7)(v)-7 TRANS Demand'!H396+'FR-16(7)(v)-11 DIST Demand'!H396","v":0},{"$f":"'FR-16(7)(v)-4 PROD Energy'!H396+'FR-16(7)(v)-8 TRANS Energy'!H396+'FR-16(7)(v)-12 DIST Energy'!H396","v":5256592},{"$f":"'FR-16(7)(v)-5 PROD Cust'!H396+'FR-16(7)(v)-9 TRANS Cust'!H396+'FR-16(7)(v)-13 DIST Cust'!H396","v":0},{"$f":"SUM(G396:I396)","v":5256592},{"$f":"F396-J396","v":0}]
[8,null,{"$f":"'FR-16(7)(v)-1 Functional'!C397","v":"EMISSION ALLOWANCES"},{"$f":"'FR-16(7)(v)-1 Functional'!D397","v":"K301"},null,{"$f":"'FR-16(7)(v)-14 TOTAL CLASS'!H397","v":0},{"$f":"'FR-16(7)(v)-3 PROD Demand'!H397+'FR-16(7)(v)-7 TRANS Demand'!H397+'FR-16(7)(v)-11 DIST Demand'!H397","v":0},{"$f":"'FR-16(7)(v)-4 PROD Energy'!H397+'FR-16(7)(v)-8 TRANS Energy'!H397+'FR-16(7)(v)-12 DIST Energy'!H397","v":0},{"$f":"'FR-16(7)(v)-5 PROD Cust'!H397+'FR-16(7)(v)-9 TRANS Cust'!H397+'FR-16(7)(v)-13 DIST Cust'!H397","v":0},{"$f":"SUM(G397:I397)","v":0},{"$f":"F397-J397","v":0}]
[9,null,{"$f":"'FR-16(7)(v)-1 Functional'!C398","v":"  TOTAL PLANT MATS. & SUPPLIES"},null,null,{"$f":"SUM(F394:F397)","v":9634247},2068283,6677528,888436,9634247,0]
[10,"TOTAL MATERIALS & SUPPLIES",null,null,null,{"$f":"F398","v":9634247},2068283,6677528,888436,9634247,0]
[11]
[12,"PREPAYMENTS"]
[13,null,{"$f":"'FR-16(7)(v)-1 Functional'!C402","v":"INSURANCE GENERAL"},{"$f":"'FR-16(7)(v)-1 Functional'!D402","v":"NP29"},null,{"$f":"'FR-16(7)(v)-14 TOTAL CLASS'!H402","v":72056},{"$f":"'FR-16(7)(v)-3 PROD Demand'!H402+'FR-16(7)(v)-7 TRANS Demand'!H402+'FR-16(7)(v)-11 DIST Demand'!H402","v":68057},{"$f":"'FR-16(7)(v)-4 PROD Energy'!H402+'FR-16(7)(v)-8 TRANS Energy'!H402+'FR-16(7)(v)-12 DIST Energy'!H402","v":1024},{"$f":"'FR-16(7)(v)-5 PROD Cust'!H402+'FR-16(7)(v)-9 TRANS Cust'!H402+'FR-16(7)(v)-13 DIST Cust'!H402","v":2975},{"$f":"SUM(G402:I402)","v":72056},{"$f":"F402-J402","v":0}]
[14,null,{"$f":"'FR-16(7)(v)-1 Functional'!C403","v":"EXCISE TAX"},{"$f":"'FR-16(7)(v)-1 Functional'!D403","v":"NP29"},null,{"$f":"'FR-16(7)(v)-14 TOTAL CLASS'!H403","v":0},{"$f":"'FR-16(7)(v)-3 PROD Demand'!H403+'FR-16(7)(v)-7 TRANS Demand'!H403+'FR-16(7)(v)-11 DIST Demand'!H403","v":0},{"$f":"'FR-16(7)(v)-4 PROD Energy'!H403+'FR-16(7)(v)-8 TRANS Energy'!H403+'FR-16(7)(v)-12 DIST Energy'!H403","v":0},{"$f":"'FR-16(7)(v)-5 PROD Cust'!H403+'FR-16(7)(v)-9 TRANS Cust'!H403+'FR-16(7)(v)-13 DIST Cust'!H403","v":0},{"$f":"SUM(G403:I403)","v":0},{"$f":"F403-J403","v":0}]
[15,null,{"$f":"'FR-16(7)(v)-1 Functional'!C404","v":"COLLATERAL ASSET"},{"$f":"'FR-16(7)(v)-1 Functional'!D404","v":"K301"},null,{"$f":"'FR-16(7)(v)-14 TOTAL CLASS'!H404","v":-11873},{"$f":"'FR-16(7)(v)-3 PROD Demand'!H404+'FR-16(7)(v)-7 TRANS Demand'!H404+'FR-16(7)(v)-11 DIST Demand'!H404","v":0},{"$f":"'FR-16(7)(v)-4 PROD Energy'!H404+'FR-16(7)(v)-8 TRANS Energy'!H404+'FR-16(7)(v)-12 DIST Energy'!H404","v":-11873},{"$f":"'FR-16(7)(v)-5 PROD Cust'!H404+'FR-16(7)(v)-9 TRANS Cust'!H404+'FR-16(7)(v)-13 DIST Cust'!H404","v":0},{"$f":"SUM(G404:I404)","v":-11873},{"$f":"F404-J404","v":0}]
[16,null,{"$f":"'FR-16(7)(v)-1 Functional'!C405","v":"  TOTAL PREPAYMENTS"},null,null,{"$f":"SUM(F401:F404)","v":60183},68057,-10849,2975,60183,0]
[17]
[18,"AUTO CALC (O&M-ELECTRIC FUEL COST)/8",null,null,null,{"$f":"'FR-16(7)(v)-14 TOTAL CLASS'!H407","v":4050788},{"$f":"'FR-16(7)(v)-3 PROD Demand'!H407+'FR-16(7)(v)-7 TRANS Demand'!H407+'FR-16(7)(v)-11 DIST Demand'!H407","v":4050788},{"$f":"'FR-16(7)(v)-4 PROD Energy'!H407+'FR-16(7)(v)-8 TRANS Energy'!H407+'FR-16(7)(v)-12 DIST Energy'!H407","v":0},{"$f":"'FR-16(7)(v)-5 PROD Cust'!H407+'FR-16(7)(v)-9 TRANS Cust'!H407+'FR-16(7)(v)-13 DIST Cust'!H407","v":0},{"$f":"SUM(G407:I407)","v":4050788},{"$f":"F407-J407","v":0}]
[19,"  TOTAL WORKING CASH",null,null,null,{"$f":"F407","v":4050788},4050788,0,0,4050788,0]
[20]
[21,"MISCELLANEOUS WORKING CAPITAL"]
[22,null,{"$f":"'FR-16(7)(v)-1 Functional'!C411","v":"RESERVED FOR FUTURE USE"},{"$f":"'FR-16(7)(v)-1 Functional'!D411","v":"K301"},null,{"$f":"'FR-16(7)(v)-14 TOTAL CLASS'!H411","v":0},{"$f":"'FR-16(7)(v)-3 PROD Demand'!H411+'FR-16(7)(v)-7 TRANS Demand'!H411+'FR-16(7)(v)-11 DIST Demand'!H411","v":0},{"$f":"'FR-16(7)(v)-4 PROD Energy'!H411+'FR-16(7)(v)-8 TRANS Energy'!H411+'FR-16(7)(v)-12 DIST Energy'!H411","v":0},{"$f":"'FR-16(7)(v)-5 PROD Cust'!H411+'FR-16(7)(v)-9 TRANS Cust'!H411+'FR-16(7)(v)-13 DIST Cust'!H411","v":0},{"$f":"SUM(G411:I411)","v":0},{"$f":"F411-J411","v":0}]
[23,null,{"$f":"'FR-16(7)(v)-1 Functional'!C412","v":"PIPP UNCOLLECTIBLES"},{"$f":"'FR-16(7)(v)-1 Functional'!D412","v":"A315"},null,{"$f":"'FR-16(7)(v)-14 TOTAL CLASS'!H412","v":0},{"$f":"'FR-16(7)(v)-3 PROD Demand'!H412+'FR-16(7)(v)-7 TRANS Demand'!H412+'FR-16(7)(v)-11 DIST Demand'!H412","v":0},{"$f":"'FR-16(7)(v)-4 PROD Energy'!H412+'FR-16(7)(v)-8 TRANS Energy'!H412+'FR-16(7)(v)-12 DIST Energy'!H412","v":0},{"$f":"'FR-16(7)(v)-5 PROD Cust'!H412+'FR-16(7)(v)-9 TRANS Cust'!H412+'FR-16(7)(v)-13 DIST Cust'!H412","v":0},{"$f":"SUM(G412:I412)","v":0},{"$f":"F412-J412","v":0}]
[24,null,{"$f":"'FR-16(7)(v)-1 Functional'!C413","v":"RESERVED FOR FUTURE USE"},{"$f":"'FR-16(7)(v)-1 Functional'!D413","v":"D249"},null,{"$f":"'FR-16(7)(v)-14 TOTAL CLASS'!H413","v":0},{"$f":"'FR-16(7)(v)-3 PROD Demand'!H413+'FR-16(7)(v)-7 TRANS Demand'!H413+'FR-16(7)(v)-11 DIST Demand'!H413","v":0},{"$f":"'FR-16(7)(v)-4 PROD Energy'!H413+'FR-16(7)(v)-8 TRANS Energy'!H413+'FR-16(7)(v)-12 DIST Energy'!H413","v":0},{"$f":"'FR-16(7)(v)-5 PROD Cust'!H413+'FR-16(7)(v)-9 TRANS Cust'!H413+'FR-16(7)(v)-13 DIST Cust'!H413","v":0},{"$f":"SUM(G413:I413)","v":0},{"$f":"F413-J413","v":0}]
[25,null,{"$f":"'FR-16(7)(v)-1 Functional'!C414","v":"  TOTAL MISC WORK CAPITAL"},null,null,{"$f":"SUM(F410:F413)","v":0},0,0,0,0,0]
[26]
[27,"TOTAL WORKING CAPITAL",null,null,null,{"$f":"F399+F405+F408+F414","v":13745218},6187128,6666679,891411,13745218,0]
[28,"PRELIMINARY SUMMARY"]
[29,null,{"$f":"'FR-16(7)(v)-1 Functional'!C418","v":"TOTAL ACCUMULATED DEFERRED INCOME TAXES"},null,null,{"$f":"-F324","v":-71916897},-64939876,-3924483,-3052538,-71916897,0]
[30,null,{"$f":"'FR-16(7)(v)-1 Functional'!C419","v":"TOTAL OTHER ACCUMULATED DEFERRED INCOME TAXES"},null,null,{"$f":"F377","v":3865745},1822193,1579127,464425,3865745,0]
[31,null,{"$f":"'FR-16(7)(v)-1 Functional'!C420","v":"TOTAL WORKING CAPITAL"},null,null,{"$f":"F416","v":13745218},6187128,6666679,891411,13745218,0]
[32,null,{"$f":"'FR-16(7)(v)-1 Functional'!C421","v":"  TOTAL RATE BASE ADJUSTMENTS"},null,null,{"$f":"SUM(F417:F420)","v":-54305934},-56930555,4321323,-1696702,-54305934,0]
[33]
[34,"RATE BASE CALCULATION"]
[35,null,{"$f":"'FR-16(7)(v)-1 Functional'!C424","v":"NET ELECTRIC PLANT IN SERVICE"},null,null,{"$f":"F277","v":296484606},280024738,4216833,12243035,296484606,0]
[36,null,{"$f":"'FR-16(7)(v)-1 Functional'!C425","v":"TOTAL RATE BASE ADJUSTMENTS"},null,null,{"$f":"F421","v":-54305934},-56930555,4321323,-1696702,-54305934,0]
[37,null,{"$f":"'FR-16(7)(v)-1 Functional'!C426","v":"  TOTAL RATE BASE"},null,null,{"$f":"SUM(F423:F425)","v":242178672},223094183,8538156,10546333,242178672,0]
[38]
[39,"TOTAL RATE OF RETURN ALLOWABLE",null,null,null,{"$f":"$F$811","v":6.7100000000000007E-2},{"$f":"F811","v":6.7100000000000007E-2},{"$f":"F811","v":6.7100000000000007E-2},{"$f":"F811","v":6.7100000000000007E-2},{"$f":"F811","v":6.7100000000000007E-2}]
[40,"RETURN ON RATE BASE",null,null,null,{"$f":"ROUND(F428*F426,0)","v":16250189},{"$f":"F429-SUM(H429:I429)","v":14969620},{"$f":"ROUND(H426*H428,0)","v":572910},{"$f":"ROUND(I426*I428,0)","v":707659},{"$f":"SUM(G429:I429)","v":16250189},{"$f":"ROUND(K426*K428,0)","v":0}]
[41]
[42,{"$f":"'FR-16(7)(v)-1 Functional'!B431","v":"ELECTRIC RATE BASE"},null,{"$f":"'FR-16(7)(v)-1 Functional'!D431","v":"RB99"},null,{"$f":"'FR-16(7)(v)-14 TOTAL CLASS'!H431","v":242512699},{"$f":"'FR-16(7)(v)-3 PROD Demand'!H431+'FR-16(7)(v)-7 TRANS Demand'!H431+'FR-16(7)(v)-11 DIST Demand'!H431","v":223416178},{"$f":"'FR-16(7)(v)-4 PROD Energy'!H431+'FR-16(7)(v)-8 TRANS Energy'!H431+'FR-16(7)(v)-12 DIST Energy'!H431","v":8538637},{"$f":"'FR-16(7)(v)-5 PROD Cust'!H431+'FR-16(7)(v)-9 TRANS Cust'!H431+'FR-16(7)(v)-13 DIST Cust'!H431","v":10557884},{"$f":"SUM(G431:I431)","v":242512699},{"$f":"F431-J431","v":0}]
[43,{"$f":"'FR-16(7)(v)-1 Functional'!B432","v":"TOTAL RATE OF RETURN ALLOWABLE"},null,null,null,{"$f":"RofR","v":6.7110000000000003E-2},{"$f":"RofR","v":6.7110000000000003E-2},{"$f":"RofR","v":6.7110000000000003E-2},{"$f":"RofR","v":6.7110000000000003E-2},{"$f":"RofR","v":6.7110000000000003E-2}]
[44,{"$f":"'FR-16(7)(v)-1 Functional'!B433","v":"RETURN ON RATE BASE"},null,null,null,{"$f":"ROUND(F431*F432,0)","v":16275027},{"$f":"F433-H433-I433","v":14993459},{"$f":"ROUND(H431*H432,0)","v":573028},{"$f":"ROUND(I431*I432,0)","v":708540},{"$f":"ROUND(J431*J432,0)","v":16275027},{"$f":"F433-J433","v":0}]
[]
[{"$f":"co_name","v":"DUKE ENERGY KENTUCKY, INC."},null,null,null,null,null,null,null,null,{"$f":"J1","v":"FR-16(7)(v)-16"}]
[{"$f":"$A$2","v":"DISTR. SEC. CLASSIFIED - ELECTRIC COST OF SERVICE"},null,null,null,null,null,null,null,null,{"$f":"J2","v":"WITNESS RESPONSIBLE:"}]
[{"$f":"case_name","v":"CASE NO: 2019-00271"},null,null,null,null,null,null,null,null,{"$f":"Witness","v":"JAMES E. ZIOLKOWSKI"}]
[{"$f":"data_filing","v":"DATA: 12 MONTHS ACTUAL  & 0 MONTHS ESTIMATED"},null,null,null,null,null,null,null,null,{"$f":"\"PAGE \"&Pages2-7&\" OF \"&Pages2","v":"PAGE 8 OF 15"}]
[{"$f":"type","v":"TYPE OF FILING: \"X\" ORIGINAL   UPDATED    REVISED  "}]
[]
[]
["LINE",null,null,null,null,"TOTAL","CLASSIFIED",null,null,"TOTAL","ALL"]
["NO.","O&M EXPENSES",null,"ALLO",null,{"$f":"$F$9","v":"DISTR. SEC."},{"$f":"G9","v":"DEMAND"},"ENERGY","CUSTOMER","AT ISSUE","OTHER"]
[null,null,"Schedule 6",null,null,null,3,4,5]
[1,"PRODUCTION O&M"]
[2,{"$f":"'FR-16(7)(v)-1 Functional'!B446","v":"ENERGY RELATED PRODUCTION O&M"}]
[3,null,{"$f":"'FR-16(7)(v)-1 Functional'!C447","v":"FUEL"},{"$f":"'FR-16(7)(v)-1 Functional'!D447","v":"K302"},null,{"$f":"'FR-16(7)(v)-14 TOTAL CLASS'!H447","v":0},{"$f":"'FR-16(7)(v)-3 PROD Demand'!H447+'FR-16(7)(v)-7 TRANS Demand'!H447+'FR-16(7)(v)-11 DIST Demand'!H447","v":0},{"$f":"'FR-16(7)(v)-4 PROD Energy'!H447+'FR-16(7)(v)-8 TRANS Energy'!H447+'FR-16(7)(v)-12 DIST Energy'!H447","v":0},{"$f":"'FR-16(7)(v)-5 PROD Cust'!H447+'FR-16(7)(v)-9 TRANS Cust'!H447+'FR-16(7)(v)-13 DIST Cust'!H447","v":0},{"$f":"SUM(G447:I447)","v":0},{"$f":"F447-J447","v":0}]
[4,null,{"$f":"'FR-16(7)(v)-1 Functional'!C448","v":"FUEL AND PURCHASED POWER ADJUSTMENT"},{"$f":"'FR-16(7)(v)-1 Functional'!D448","v":"K302"},null,{"$f":"'FR-16(7)(v)-14 TOTAL CLASS'!H448","v":27126606},{"$f":"'FR-16(7)(v)-3 PROD Demand'!H448+'FR-16(7)(v)-7 TRANS Demand'!H448+'FR-16(7)(v)-11 DIST Demand'!H448","v":0},{"$f":"'FR-16(7)(v)-4 PROD Energy'!H448+'FR-16(7)(v)-8 TRANS Energy'!H448+'FR-16(7)(v)-12 DIST Energy'!H448","v":27126606},{"$f":"'FR-16(7)(v)-5 PROD Cust'!H448+'FR-16(7)(v)-9 TRANS Cust'!H448+'FR-16(7)(v)-13 DIST Cust'!H448","v":0},27126606,0]
[5,null,{"$f":"'FR-16(7)(v)-1 Functional'!C449","v":"EMISSION ALLOWANCES"},{"$f":"'FR-16(7)(v)-1 Functional'!D449","v":"K301"},null,{"$f":"'FR-16(7)(v)-14 TOTAL CLASS'!H449","v":0},{"$f":"'FR-16(7)(v)-3 PROD Demand'!H449+'FR-16(7)(v)-7 TRANS Demand'!H449+'FR-16(7)(v)-11 DIST Demand'!H449","v":0},{"$f":"'FR-16(7)(v)-4 PROD Energy'!H449+'FR-16(7)(v)-8 TRANS Energy'!H449+'FR-16(7)(v)-12 DIST Energy'!H449","v":0},{"$f":"'FR-16(7)(v)-5 PROD Cust'!H449+'FR-16(7)(v)-9 TRANS Cust'!H449+'FR-16(7)(v)-13 DIST Cust'!H449","v":0},0,0]
[6,null,{"$f":"'FR-16(7)(v)-1 Functional'!C450","v":"ELIMINATE EMISSION ALLOW & OTHER VAR COST"},{"$f":"'FR-16(7)(v)-1 Functional'!D450","v":"K301"},null,{"$f":"'FR-16(7)(v)-14 TOTAL CLASS'!H450","v":0},{"$f":"'FR-16(7)(v)-3 PROD Demand'!H450+'FR-16(7)(v)-7 TRANS Demand'!H450+'FR-16(7)(v)-11 DIST Demand'!H450","v":0},{"$f":"'FR-16(7)(v)-4 PROD Energy'!H450+'FR-16(7)(v)-8 TRANS Energy'!H450+'FR-16(7)(v)-12 DIST Energy'!H450","v":0},{"$f":"'FR-16(7)(v)-5 PROD Cust'!H450+'FR-16(7)(v)-9 TRANS Cust'!H450+'FR-16(7)(v)-13 DIST Cust'!H450","v":0},0,0]
[7,null,{"$f":"'FR-16(7)(v)-1 Functional'!C451","v":"OTHER PRODUCTION EXPENSE - MAINTENANCE"},{"$f":"'FR-16(7)(v)-1 Functional'!D451","v":"K301"},null,{"$f":"'FR-16(7)(v)-14 TOTAL CLASS'!H451","v":10956922},{"$f":"'FR-16(7)(v)-3 PROD Demand'!H451+'FR-16(7)(v)-7 TRANS Demand'!H451+'FR-16(7)(v)-11 DIST Demand'!H451","v":0},{"$f":"'FR-16(7)(v)-4 PROD Energy'!H451+'FR-16(7)(v)-8 TRANS Energy'!H451+'FR-16(7)(v)-12 DIST Energy'!H451","v":10956922},{"$f":"'FR-16(7)(v)-5 PROD Cust'!H451+'FR-16(7)(v)-9 TRANS Cust'!H451+'FR-16(7)(v)-13 DIST Cust'!H451","v":0},10956922,0]
[8,null,{"$f":"'FR-16(7)(v)-1 Functional'!C452","v":"MISO TRANSMISSION CHARGES - ACCT 555"},{"$f":"'FR-16(7)(v)-1 Functional'!D452","v":"K301"},null,{"$f":"'FR-16(7)(v)-14 TOTAL CLASS'!H452","v":0},{"$f":"'FR-16(7)(v)-3 PROD Demand'!H452+'FR-16(7)(v)-7 TRANS Demand'!H452+'FR-16(7)(v)-11 DIST Demand'!H452","v":0},{"$f":"'FR-16(7)(v)-4 PROD Energy'!H452+'FR-16(7)(v)-8 TRANS Energy'!H452+'FR-16(7)(v)-12 DIST Energy'!H452","v":0},{"$f":"'FR-16(7)(v)-5 PROD Cust'!H452+'FR-16(7)(v)-9 TRANS Cust'!H452+'FR-16(7)(v)-13 DIST Cust'!H452","v":0},0,0]
[9,null,{"$f":"'FR-16(7)(v)-1 Functional'!C453","v":"  TOTAL ENERGY RELATED"},null,null,{"$f":"SUM(F447:F452)","v":38083528},0,38083528,0,38083528,0]
[10]
[11,"DEMAND RELATED & OTHER PROD O&M"]
[12,null,{"$f":"'FR-16(7)(v)-1 Functional'!C456","v":"OTHER PRODUCTION EXPENSES - OPERATIONS"},{"$f":"'FR-16(7)(v)-1 Functional'!D456","v":"K201"},null,{"$f":"'FR-16(7)(v)-14 TOTAL CLASS'!H456","v":0},{"$f":"'FR-16(7)(v)-3 PROD Demand'!H456+'FR-16(7)(v)-7 TRANS Demand'!H456+'FR-16(7)(v)-11 DIST Demand'!H456","v":0},{"$f":"'FR-16(7)(v)-4 PROD Energy'!H456+'FR-16(7)(v)-8 TRANS Energy'!H456+'FR-16(7)(v)-12 DIST Energy'!H456","v":0},{"$f":"'FR-16(7)(v)-5 PROD Cust'!H456+'FR-16(7)(v)-9 TRANS Cust'!H456+'FR-16(7)(v)-13 DIST Cust'!H456","v":0},{"$f":"SUM(G456:I456)","v":0},{"$f":"F456-J456","v":0}]
[13,null,{"$f":"'FR-16(7)(v)-1 Functional'!C457","v":"  TOTAL DEMAND REL & OTH PROD O&M "},null,null,{"$f":"SUM(F455:F456)","v":0},0,0,0,0,0]
[14]
[15,"TOTAL PRODUCTION O&M",null,null," ",{"$f":"F457+F453","v":38083528},0,38083528,0,38083528,0]
[16]
[17,"TRANSMISSION O & M"]
[18,null,{"$f":"'FR-16(7)(v)-1 Functional'!C462","v":"TRANSFORMER LEASE PAYMENTS"},{"$f":"'FR-16(7)(v)-1 Functional'!D462","v":"K202"},null,{"$f":"'FR-16(7)(v)-14 TOTAL CLASS'!H462","v":0},{"$f":"'FR-16(7)(v)-3 PROD Demand'!H462+'FR-16(7)(v)-7 TRANS Demand'!H462+'FR-16(7)(v)-11 DIST Demand'!H462","v":0},{"$f":"'FR-16(7)(v)-4 PROD Energy'!H462+'FR-16(7)(v)-8 TRANS Energy'!H462+'FR-16(7)(v)-12 DIST Energy'!H462","v":0},{"$f":"'FR-16(7)(v)-5 PROD Cust'!H462+'FR-16(7)(v)-9 TRANS Cust'!H462+'FR-16(7)(v)-13 DIST Cust'!H462","v":0},{"$f":"SUM(G462:I462)","v":0},{"$f":"F462-J462","v":0}]
[19,null,{"$f":"'FR-16(7)(v)-1 Functional'!C463","v":"OTHER TRANSMISSION"},{"$f":"'FR-16(7)(v)-1 Functional'!D463","v":"K202"},null,{"$f":"'FR-16(7)(v)-14 TOTAL CLASS'!H463","v":6265837},{"$f":"'FR-16(7)(v)-3 PROD Demand'!H463+'FR-16(7)(v)-7 TRANS Demand'!H463+'FR-16(7)(v)-11 DIST Demand'!H463","v":6265837},{"$f":"'FR-16(7)(v)-4 PROD Energy'!H463+'FR-16(7)(v)-8 TRANS Energy'!H463+'FR-16(7)(v)-12 DIST Energy'!H463","v":0},{"$f":"'FR-16(7)(v)-5 PROD Cust'!H463+'FR-16(7)(v)-9 TRANS Cust'!H463+'FR-16(7)(v)-13 DIST Cust'!H463","v":0},{"$f":"SUM(G463:I463)","v":6265837},{"$f":"F463-J463","v":0}]
[20,null,{"$f":"'FR-16(7)(v)-1 Functional'!C464","v":"MISCELLANEOUS ADJUSTMENTS"},{"$f":"'FR-16(7)(v)-1 Functional'!D464","v":"K202"},null,{"$f":"'FR-16(7)(v)-14 TOTAL CLASS'!H464","v":0},{"$f":"'FR-16(7)(v)-3 PROD Demand'!H464+'FR-16(7)(v)-7 TRANS Demand'!H464+'FR-16(7)(v)-11 DIST Demand'!H464","v":0},{"$f":"'FR-16(7)(v)-4 PROD Energy'!H464+'FR-16(7)(v)-8 TRANS Energy'!H464+'FR-16(7)(v)-12 DIST Energy'!H464","v":0},{"$f":"'FR-16(7)(v)-5 PROD Cust'!H464+'FR-16(7)(v)-9 TRANS Cust'!H464+'FR-16(7)(v)-13 DIST Cust'!H464","v":0},{"$f":"SUM(G464:I464)","v":0},{"$f":"F464-J464","v":0}]
[21,null,{"$f":"'FR-16(7)(v)-1 Functional'!C465","v":"NETWORK SERVICE RATES ADJUSTMENT"},{"$f":"'FR-16(7)(v)-1 Functional'!D465","v":"K202"},null,{"$f":"'FR-16(7)(v)-14 TOTAL CLASS'!H465","v":0},{"$f":"'FR-16(7)(v)-3 PROD Demand'!H465+'FR-16(7)(v)-7 TRANS Demand'!H465+'FR-16(7)(v)-11 DIST Demand'!H465","v":0},{"$f":"'FR-16(7)(v)-4 PROD Energy'!H465+'FR-16(7)(v)-8 TRANS Energy'!H465+'FR-16(7)(v)-12 DIST Energy'!H465","v":0},{"$f":"'FR-16(7)(v)-5 PROD Cust'!H465+'FR-16(7)(v)-9 TRANS Cust'!H465+'FR-16(7)(v)-13 DIST Cust'!H465","v":0},{"$f":"SUM(G465:I465)","v":0},{"$f":"F465-J465","v":0}]
[22,null,{"$f":"'FR-16(7)(v)-1 Functional'!C466","v":"  TOTAL TRANSMISSION O & M"},null,null,{"$f":"SUM(F462:F465)","v":6265837},6265837,0,0,6265837,0]
[23]
[24,"REGIONAL MARKET O&M"]
[25,null,{"$f":"'FR-16(7)(v)-1 Functional'!C469","v":"MARKET FACILITATION - MONITORING & COMPLIANCE"},{"$f":"'FR-16(7)(v)-1 Functional'!D469","v":"K202"},null,{"$f":"'FR-16(7)(v)-14 TOTAL CLASS'!H469","v":494419},{"$f":"'FR-16(7)(v)-3 PROD Demand'!H469+'FR-16(7)(v)-7 TRANS Demand'!H469+'FR-16(7)(v)-11 DIST Demand'!H469","v":494419},{"$f":"'FR-16(7)(v)-4 PROD Energy'!H469+'FR-16(7)(v)-8 TRANS Energy'!H469+'FR-16(7)(v)-12 DIST Energy'!H469","v":0},{"$f":"'FR-16(7)(v)-5 PROD Cust'!H469+'FR-16(7)(v)-9 TRANS Cust'!H469+'FR-16(7)(v)-13 DIST Cust'!H469","v":0},{"$f":"SUM(G469:I469)","v":494419},{"$f":"F469-J469","v":0}]
[26,null,{"$f":"'FR-16(7)(v)-1 Functional'!C470","v":"TOTAL REGIONAL MARKET O&M"},null,null,{"$f":"SUM(F468:F469)","v":494419},494419,0,0,494419,0]
[27]
[28,"DISTRIBUTION O & M"]
[29,null,{"$f":"'FR-16(7)(v)-1 Functional'!C473","v":"SUBSTATIONS"},{"$f":"'FR-16(7)(v)-1 Functional'!D473","v":"K201"},null,{"$f":"'FR-16(7)(v)-14 TOTAL CLASS'!H473","v":168101},{"$f":"'FR-16(7)(v)-3 PROD Demand'!H473+'FR-16(7)(v)-7 TRANS Demand'!H473+'FR-16(7)(v)-11 DIST Demand'!H473","v":168101},{"$f":"'FR-16(7)(v)-4 PROD Energy'!H473+'FR-16(7)(v)-8 TRANS Energy'!H473+'FR-16(7)(v)-12 DIST Energy'!H473","v":0},{"$f":"'FR-16(7)(v)-5 PROD Cust'!H473+'FR-16(7)(v)-9 TRANS Cust'!H473+'FR-16(7)(v)-13 DIST Cust'!H473","v":0},{"$f":"SUM(G473:I473)","v":168101},{"$f":"F473-J473","v":0}]
[30,null,{"$f":"'FR-16(7)(v)-1 Functional'!C474","v":"POLES, TOWERS & FIXTURES"},{"$f":"'FR-16(7)(v)-1 Functional'!D474","v":"PL49"},null,{"$f":"'FR-16(7)(v)-14 TOTAL CLASS'!H474","v":0},{"$f":"'FR-16(7)(v)-3 PROD Demand'!H474+'FR-16(7)(v)-7 TRANS Demand'!H474+'FR-16(7)(v)-11 DIST Demand'!H474","v":0},{"$f":"'FR-16(7)(v)-4 PROD Energy'!H474+'FR-16(7)(v)-8 TRANS Energy'!H474+'FR-16(7)(v)-12 DIST Energy'!H474","v":0},{"$f":"'FR-16(7)(v)-5 PROD Cust'!H474+'FR-16(7)(v)-9 TRANS Cust'!H474+'FR-16(7)(v)-13 DIST Cust'!H474","v":0},0,0]
[31,null,{"$f":"'FR-16(7)(v)-1 Functional'!C475","v":"OVERHEAD LINES - PRIMARY / DEMAND"},{"$f":"'FR-16(7)(v)-1 Functional'!D475","v":"K205"},null,{"$f":"'FR-16(7)(v)-14 TOTAL CLASS'!H475","v":1433657},{"$f":"'FR-16(7)(v)-3 PROD Demand'!H475+'FR-16(7)(v)-7 TRANS Demand'!H475+'FR-16(7)(v)-11 DIST Demand'!H475","v":1433657},{"$f":"'FR-16(7)(v)-4 PROD Energy'!H475+'FR-16(7)(v)-8 TRANS Energy'!H475+'FR-16(7)(v)-12 DIST Energy'!H475","v":0},{"$f":"'FR-16(7)(v)-5 PROD Cust'!H475+'FR-16(7)(v)-9 TRANS Cust'!H475+'FR-16(7)(v)-13 DIST Cust'!H475","v":0},1433657,0]
[32,null,{"$f":"'FR-16(7)(v)-1 Functional'!C476","v":"OVERHEAD LINES - PRIMARY / CUSTOMER"},{"$f":"'FR-16(7)(v)-1 Functional'!D476","v":"K405"},null,{"$f":"'FR-16(7)(v)-14 TOTAL CLASS'!H476","v":102879},{"$f":"'FR-16(7)(v)-3 PROD Demand'!H476+'FR-16(7)(v)-7 TRANS Demand'!H476+'FR-16(7)(v)-11 DIST Demand'!H476","v":0},{"$f":"'FR-16(7)(v)-4 PROD Energy'!H476+'FR-16(7)(v)-8 TRANS Energy'!H476+'FR-16(7)(v)-12 DIST Energy'!H476","v":0},{"$f":"'FR-16(7)(v)-5 PROD Cust'!H476+'FR-16(7)(v)-9 TRANS Cust'!H476+'FR-16(7)(v)-13 DIST Cust'!H476","v":102879},{"$f":"SUM(G476:I476)","v":102879},{"$f":"F476-J476","v":0}]
[33,null,{"$f":"'FR-16(7)(v)-1 Functional'!C477","v":"OVERHEAD LINES - SECONDARY / DEMAND"},{"$f":"'FR-16(7)(v)-1 Functional'!D477","v":"K206"},null,{"$f":"'FR-16(7)(v)-14 TOTAL CLASS'!H477","v":583768},{"$f":"'FR-16(7)(v)-3 PROD Demand'!H477+'FR-16(7)(v)-7 TRANS Demand'!H477+'FR-16(7)(v)-11 DIST Demand'!H477","v":583768},{"$f":"'FR-16(7)(v)-4 PROD Energy'!H477+'FR-16(7)(v)-8 TRANS Energy'!H477+'FR-16(7)(v)-12 DIST Energy'!H477","v":0},{"$f":"'FR-16(7)(v)-5 PROD Cust'!H477+'FR-16(7)(v)-9 TRANS Cust'!H477+'FR-16(7)(v)-13 DIST Cust'!H477","v":0},583768,0]
[34,null,{"$f":"'FR-16(7)(v)-1 Functional'!C478","v":"OVERHEAD LINES - SECONDARY / CUSTOMER"},{"$f":"'FR-16(7)(v)-1 Functional'!D478","v":"K405"},null,{"$f":"'FR-16(7)(v)-14 TOTAL CLASS'!H478","v":42616},{"$f":"'FR-16(7)(v)-3 PROD Demand'!H478+'FR-16(7)(v)-7 TRANS Demand'!H478+'FR-16(7)(v)-11 DIST Demand'!H478","v":0},{"$f":"'FR-16(7)(v)-4 PROD Energy'!H478+'FR-16(7)(v)-8 TRANS Energy'!H478+'FR-16(7)(v)-12 DIST Energy'!H478","v":0},{"$f":"'FR-16(7)(v)-5 PROD Cust'!H478+'FR-16(7)(v)-9 TRANS Cust'!H478+'FR-16(7)(v)-13 DIST Cust'!H478","v":42616},42616,0]
[35,null,{"$f":"'FR-16(7)(v)-1 Functional'!C479","v":"UNDERGROUND LINES - PRIMARY / DEMAND"},{"$f":"'FR-16(7)(v)-1 Functional'!D479","v":"K205"},null,{"$f":"'FR-16(7)(v)-14 TOTAL CLASS'!H479","v":186865},{"$f":"'FR-16(7)(v)-3 PROD Demand'!H479+'FR-16(7)(v)-7 TRANS Demand'!H479+'FR-16(7)(v)-11 DIST Demand'!H479","v":186865},{"$f":"'FR-16(7)(v)-4 PROD Energy'!H479+'FR-16(7)(v)-8 TRANS Energy'!H479+'FR-16(7)(v)-12 DIST Energy'!H479","v":0},{"$f":"'FR-16(7)(v)-5 PROD Cust'!H479+'FR-16(7)(v)-9 TRANS Cust'!H479+'FR-16(7)(v)-13 DIST Cust'!H479","v":0},186865,0]
[36,null,{"$f":"'FR-16(7)(v)-1 Functional'!C480","v":"UNDERGROUND LINES - PRIMARY / CUSTOMER"},{"$f":"'FR-16(7)(v)-1 Functional'!D480","v":"K405"},null,{"$f":"'FR-16(7)(v)-14 TOTAL CLASS'!H480","v":19069},{"$f":"'FR-16(7)(v)-3 PROD Demand'!H480+'FR-16(7)(v)-7 TRANS Demand'!H480+'FR-16(7)(v)-11 DIST Demand'!H480","v":0},{"$f":"'FR-16(7)(v)-4 PROD Energy'!H480+'FR-16(7)(v)-8 TRANS Energy'!H480+'FR-16(7)(v)-12 DIST Energy'!H480","v":0},{"$f":"'FR-16(7)(v)-5 PROD Cust'!H480+'FR-16(7)(v)-9 TRANS Cust'!H480+'FR-16(7)(v)-13 DIST Cust'!H480","v":19069},19069,0]
[37,null,{"$f":"'FR-16(7)(v)-1 Functional'!C481","v":"UNDERGROUND LINES - SECONDARY / DEMAND"},{"$f":"'FR-16(7)(v)-1 Functional'!D481","v":"K206"},null,{"$f":"'FR-16(7)(v)-14 TOTAL CLASS'!H481","v":32013},{"$f":"'FR-16(7)(v)-3 PROD Demand'!H481+'FR-16(7)(v)-7 TRANS Demand'!H481+'FR-16(7)(v)-11 DIST Demand'!H481","v":32013},{"$f":"'FR-16(7)(v)-4 PROD Energy'!H481+'FR-16(7)(v)-8 TRANS Energy'!H481+'FR-16(7)(v)-12 DIST Energy'!H481","v":0},{"$f":"'FR-16(7)(v)-5 PROD Cust'!H481+'FR-16(7)(v)-9 TRANS Cust'!H481+'FR-16(7)(v)-13 DIST Cust'!H481","v":0},32013,0]
[38,null,{"$f":"'FR-16(7)(v)-1 Functional'!C482","v":"UNDERGROUND LINES - SECONDARY / CUSTOMER"},{"$f":"'FR-16(7)(v)-1 Functional'!D482","v":"K405"},null,{"$f":"'FR-16(7)(v)-14 TOTAL CLASS'!H482","v":5963},{"$f":"'FR-16(7)(v)-3 PROD Demand'!H482+'FR-16(7)(v)-7 TRANS Demand'!H482+'FR-16(7)(v)-11 DIST Demand'!H482","v":0},{"$f":"'FR-16(7)(v)-4 PROD Energy'!H482+'FR-16(7)(v)-8 TRANS Energy'!H482+'FR-16(7)(v)-12 DIST Energy'!H482","v":0},{"$f":"'FR-16(7)(v)-5 PROD Cust'!H482+'FR-16(7)(v)-9 TRANS Cust'!H482+'FR-16(7)(v)-13 DIST Cust'!H482","v":5963},5963,0]
[39,null,{"$f":"'FR-16(7)(v)-1 Functional'!C483","v":"TRANSFORMERS DEMAND RELATED"},{"$f":"'FR-16(7)(v)-1 Functional'!D483","v":"K203"},null,{"$f":"'FR-16(7)(v)-14 TOTAL CLASS'!H483","v":57668},{"$f":"'FR-16(7)(v)-3 PROD Demand'!H483+'FR-16(7)(v)-7 TRANS Demand'!H483+'FR-16(7)(v)-11 DIST Demand'!H483","v":57668},{"$f":"'FR-16(7)(v)-4 PROD Energy'!H483+'FR-16(7)(v)-8 TRANS Energy'!H483+'FR-16(7)(v)-12 DIST Energy'!H483","v":0},{"$f":"'FR-16(7)(v)-5 PROD Cust'!H483+'FR-16(7)(v)-9 TRANS Cust'!H483+'FR-16(7)(v)-13 DIST Cust'!H483","v":0},57668,0]
[40,null,{"$f":"'FR-16(7)(v)-1 Functional'!C484","v":"TRANSFORMERS CUSTOMER RELATED"},{"$f":"'FR-16(7)(v)-1 Functional'!D484","v":"K401"},null,{"$f":"'FR-16(7)(v)-14 TOTAL CLASS'!H484","v":0},{"$f":"'FR-16(7)(v)-3 PROD Demand'!H484+'FR-16(7)(v)-7 TRANS Demand'!H484+'FR-16(7)(v)-11 DIST Demand'!H484","v":0},{"$f":"'FR-16(7)(v)-4 PROD Energy'!H484+'FR-16(7)(v)-8 TRANS Energy'!H484+'FR-16(7)(v)-12 DIST Energy'!H484","v":0},{"$f":"'FR-16(7)(v)-5 PROD Cust'!H484+'FR-16(7)(v)-9 TRANS Cust'!H484+'FR-16(7)(v)-13 DIST Cust'!H484","v":0},{"$f":"SUM(G484:I484)","v":0},{"$f":"F484-J484","v":0}]
[41,null,{"$f":"'FR-16(7)(v)-1 Functional'!C485","v":"OTHER MAINTENANCE"},{"$f":"'FR-16(7)(v)-1 Functional'!D485","v":"K203"},null,{"$f":"'FR-16(7)(v)-14 TOTAL CLASS'!H485","v":402249},{"$f":"'FR-16(7)(v)-3 PROD Demand'!H485+'FR-16(7)(v)-7 TRANS Demand'!H485+'FR-16(7)(v)-11 DIST Demand'!H485","v":402249},{"$f":"'FR-16(7)(v)-4 PROD Energy'!H485+'FR-16(7)(v)-8 TRANS Energy'!H485+'FR-16(7)(v)-12 DIST Energy'!H485","v":0},{"$f":"'FR-16(7)(v)-5 PROD Cust'!H485+'FR-16(7)(v)-9 TRANS Cust'!H485+'FR-16(7)(v)-13 DIST Cust'!H485","v":0},402249,0]
[42,null,{"$f":"'FR-16(7)(v)-1 Functional'!C486","v":"LOAD DISPATCH"},{"$f":"'FR-16(7)(v)-1 Functional'!D486","v":"K215"},null,{"$f":"'FR-16(7)(v)-14 TOTAL CLASS'!H486","v":160477},{"$f":"'FR-16(7)(v)-3 PROD Demand'!H486+'FR-16(7)(v)-7 TRANS Demand'!H486+'FR-16(7)(v)-11 DIST Demand'!H486","v":160477},{"$f":"'FR-16(7)(v)-4 PROD Energy'!H486+'FR-16(7)(v)-8 TRANS Energy'!H486+'FR-16(7)(v)-12 DIST Energy'!H486","v":0},{"$f":"'FR-16(7)(v)-5 PROD Cust'!H486+'FR-16(7)(v)-9 TRANS Cust'!H486+'FR-16(7)(v)-13 DIST Cust'!H486","v":0},160477,0]
[43,null,{"$f":"'FR-16(7)(v)-1 Functional'!C487","v":"METERS"},{"$f":"'FR-16(7)(v)-1 Functional'!D487","v":"K407"},null,{"$f":"'FR-16(7)(v)-14 TOTAL CLASS'!H487","v":196850},{"$f":"'FR-16(7)(v)-3 PROD Demand'!H487+'FR-16(7)(v)-7 TRANS Demand'!H487+'FR-16(7)(v)-11 DIST Demand'!H487","v":0},{"$f":"'FR-16(7)(v)-4 PROD Energy'!H487+'FR-16(7)(v)-8 TRANS Energy'!H487+'FR-16(7)(v)-12 DIST Energy'!H487","v":0},{"$f":"'FR-16(7)(v)-5 PROD Cust'!H487+'FR-16(7)(v)-9 TRANS Cust'!H487+'FR-16(7)(v)-13 DIST Cust'!H487","v":196850},196850,0]
[44,null,{"$f":"'FR-16(7)(v)-1 Functional'!C488","v":"STREET LIGHTING AND SIGNAL SYSTEMS"},{"$f":"'FR-16(7)(v)-1 Functional'!D488","v":"K401"},null,{"$f":"'FR-16(7)(v)-14 TOTAL CLASS'!H488","v":0},{"$f":"'FR-16(7)(v)-3 PROD Demand'!H488+'FR-16(7)(v)-7 TRANS Demand'!H488+'FR-16(7)(v)-11 DIST Demand'!H488","v":0},{"$f":"'FR-16(7)(v)-4 PROD Energy'!H488+'FR-16(7)(v)-8 TRANS Energy'!H488+'FR-16(7)(v)-12 DIST Energy'!H488","v":0},{"$f":"'FR-16(7)(v)-5 PROD Cust'!H488+'FR-16(7)(v)-9 TRANS Cust'!H488+'FR-16(7)(v)-13 DIST Cust'!H488","v":0},0,0]
[45,null,{"$f":"'FR-16(7)(v)-1 Functional'!C489","v":"OTHER OPERATIONS"},{"$f":"'FR-16(7)(v)-1 Functional'!D489","v":"K203"},null,{"$f":"'FR-16(7)(v)-14 TOTAL CLASS'!H489","v":153604},{"$f":"'FR-16(7)(v)-3 PROD Demand'!H489+'FR-16(7)(v)-7 TRANS Demand'!H489+'FR-16(7)(v)-11 DIST Demand'!H489","v":153604},{"$f":"'FR-16(7)(v)-4 PROD Energy'!H489+'FR-16(7)(v)-8 TRANS Energy'!H489+'FR-16(7)(v)-12 DIST Energy'!H489","v":0},{"$f":"'FR-16(7)(v)-5 PROD Cust'!H489+'FR-16(7)(v)-9 TRANS Cust'!H489+'FR-16(7)(v)-13 DIST Cust'!H489","v":0},153604,0]
[46,null,{"$f":"'FR-16(7)(v)-1 Functional'!C490","v":"MISCELLANEOUS EXPENSES ADJUSTMENT"},{"$f":"'FR-16(7)(v)-1 Functional'!D490","v":"K203"},null,{"$f":"'FR-16(7)(v)-14 TOTAL CLASS'!H490","v":473392},{"$f":"'FR-16(7)(v)-3 PROD Demand'!H490+'FR-16(7)(v)-7 TRANS Demand'!H490+'FR-16(7)(v)-11 DIST Demand'!H490","v":473392},{"$f":"'FR-16(7)(v)-4 PROD Energy'!H490+'FR-16(7)(v)-8 TRANS Energy'!H490+'FR-16(7)(v)-12 DIST Energy'!H490","v":0},{"$f":"'FR-16(7)(v)-5 PROD Cust'!H490+'FR-16(7)(v)-9 TRANS Cust'!H490+'FR-16(7)(v)-13 DIST Cust'!H490","v":0},473392,0]
[47,null,{"$f":"'FR-16(7)(v)-1 Functional'!C491","v":"AFFILIATED COMPANY RENTS ADJUSTMENT"},{"$f":"'FR-16(7)(v)-1 Functional'!D491","v":"D249"},null,{"$f":"'FR-16(7)(v)-14 TOTAL CLASS'!H491","v":0},{"$f":"'FR-16(7)(v)-3 PROD Demand'!H491+'FR-16(7)(v)-7 TRANS Demand'!H491+'FR-16(7)(v)-11 DIST Demand'!H491","v":0},{"$f":"'FR-16(7)(v)-4 PROD Energy'!H491+'FR-16(7)(v)-8 TRANS Energy'!H491+'FR-16(7)(v)-12 DIST Energy'!H491","v":0},{"$f":"'FR-16(7)(v)-5 PROD Cust'!H491+'FR-16(7)(v)-9 TRANS Cust'!H491+'FR-16(7)(v)-13 DIST Cust'!H491","v":0},0,0]
[48,null,{"$f":"'FR-16(7)(v)-1 Functional'!C492","v":"  TOTAL DISTRIBUTION O & M"},null," ",{"$f":"SUM(F472:F491)","v":4019171},3651794,0,367377,4019171,0]
[49,null," "]
[50,"CUSTOMER ACCOUNTING",null,null,null," "]
[51,null,{"$f":"'FR-16(7)(v)-1 Functional'!C495","v":"CUSTOMER ACCOUNTING EXPENSE"},{"$f":"'FR-16(7)(v)-1 Functional'!D495","v":"K409"},null,{"$f":"'FR-16(7)(v)-14 TOTAL CLASS'!H495","v":643318},{"$f":"'FR-16(7)(v)-3 PROD Demand'!H495+'FR-16(7)(v)-7 TRANS Demand'!H495+'FR-16(7)(v)-11 DIST Demand'!H495","v":0},{"$f":"'FR-16(7)(v)-4 PROD Energy'!H495+'FR-16(7)(v)-8 TRANS Energy'!H495+'FR-16(7)(v)-12 DIST Energy'!H495","v":0},{"$f":"'FR-16(7)(v)-5 PROD Cust'!H495+'FR-16(7)(v)-9 TRANS Cust'!H495+'FR-16(7)(v)-13 DIST Cust'!H495","v":643318},{"$f":"SUM(G495:I495)","v":643318},{"$f":"F495-J495","v":0}]
[52,null,{"$f":"'FR-16(7)(v)-1 Functional'!C496","v":"UNCOLLECTIBLE EXP"},{"$f":"'FR-16(7)(v)-1 Functional'!D496","v":"K411"},null,{"$f":"'FR-16(7)(v)-14 TOTAL CLASS'!H496","v":67188},{"$f":"'FR-16(7)(v)-3 PROD Demand'!H496+'FR-16(7)(v)-7 TRANS Demand'!H496+'FR-16(7)(v)-11 DIST Demand'!H496","v":0},{"$f":"'FR-16(7)(v)-4 PROD Energy'!H496+'FR-16(7)(v)-8 TRANS Energy'!H496+'FR-16(7)(v)-12 DIST Energy'!H496","v":0},{"$f":"'FR-16(7)(v)-5 PROD Cust'!H496+'FR-16(7)(v)-9 TRANS Cust'!H496+'FR-16(7)(v)-13 DIST Cust'!H496","v":67188},67188,0]
[53,null,{"$f":"'FR-16(7)(v)-1 Functional'!C497","v":"METER READING"},{"$f":"'FR-16(7)(v)-1 Functional'!D497","v":"K407"},null,{"$f":"'FR-16(7)(v)-14 TOTAL CLASS'!H497","v":0},{"$f":"'FR-16(7)(v)-3 PROD Demand'!H497+'FR-16(7)(v)-7 TRANS Demand'!H497+'FR-16(7)(v)-11 DIST Demand'!H497","v":0},{"$f":"'FR-16(7)(v)-4 PROD Energy'!H497+'FR-16(7)(v)-8 TRANS Energy'!H497+'FR-16(7)(v)-12 DIST Energy'!H497","v":0},{"$f":"'FR-16(7)(v)-5 PROD Cust'!H497+'FR-16(7)(v)-9 TRANS Cust'!H497+'FR-16(7)(v)-13 DIST Cust'!H497","v":0},0,0]
[54,null,{"$f":"'FR-16(7)(v)-1 Functional'!C498","v":"UNCOLLECTIBLE EXP ADJUSTMENT"},{"$f":"'FR-16(7)(v)-1 Functional'!D498","v":"K411"},null,{"$f":"'FR-16(7)(v)-14 TOTAL CLASS'!H498","v":-95044},{"$f":"'FR-16(7)(v)-3 PROD Demand'!H498+'FR-16(7)(v)-7 TRANS Demand'!H498+'FR-16(7)(v)-11 DIST Demand'!H498","v":0},{"$f":"'FR-16(7)(v)-4 PROD Energy'!H498+'FR-16(7)(v)-8 TRANS Energy'!H498+'FR-16(7)(v)-12 DIST Energy'!H498","v":0},{"$f":"'FR-16(7)(v)-5 PROD Cust'!H498+'FR-16(7)(v)-9 TRANS Cust'!H498+'FR-16(7)(v)-13 DIST Cust'!H498","v":-95044},-95044,0]
[55,null,{"$f":"'FR-16(7)(v)-1 Functional'!C499","v":"CREDIT CARD FEES"},{"$f":"'FR-16(7)(v)-1 Functional'!D499","v":"K407"},null,{"$f":"'FR-16(7)(v)-14 TOTAL CLASS'!H499","v":90181},{"$f":"'FR-16(7)(v)-3 PROD Demand'!H499+'FR-16(7)(v)-7 TRANS Demand'!H499+'FR-16(7)(v)-11 DIST Demand'!H499","v":0},{"$f":"'FR-16(7)(v)-4 PROD Energy'!H499+'FR-16(7)(v)-8 TRANS Energy'!H499+'FR-16(7)(v)-12 DIST Energy'!H499","v":0},{"$f":"'FR-16(7)(v)-5 PROD Cust'!H499+'FR-16(7)(v)-9 TRANS Cust'!H499+'FR-16(7)(v)-13 DIST Cust'!H499","v":90181},90181,0]
[56,null,{"$f":"'FR-16(7)(v)-1 Functional'!C500","v":"ELIMINATE REV & EXP - DSM RIDER"},{"$f":"'FR-16(7)(v)-1 Functional'!D500","v":"K405"},null,{"$f":"'FR-16(7)(v)-14 TOTAL CLASS'!H500","v":0},{"$f":"'FR-16(7)(v)-3 PROD Demand'!H500+'FR-16(7)(v)-7 TRANS Demand'!H500+'FR-16(7)(v)-11 DIST Demand'!H500","v":0},{"$f":"'FR-16(7)(v)-4 PROD Energy'!H500+'FR-16(7)(v)-8 TRANS Energy'!H500+'FR-16(7)(v)-12 DIST Energy'!H500","v":0},{"$f":"'FR-16(7)(v)-5 PROD Cust'!H500+'FR-16(7)(v)-9 TRANS Cust'!H500+'FR-16(7)(v)-13 DIST Cust'!H500","v":0},0,0]
[57,null,{"$f":"'FR-16(7)(v)-1 Functional'!C501","v":"SALE OF A/R"},{"$f":"'FR-16(7)(v)-1 Functional'!D501","v":"K411"},null,{"$f":"'FR-16(7)(v)-14 TOTAL CLASS'!H501","v":18711},{"$f":"'FR-16(7)(v)-3 PROD Demand'!H501+'FR-16(7)(v)-7 TRANS Demand'!H501+'FR-16(7)(v)-11 DIST Demand'!H501","v":0},{"$f":"'FR-16(7)(v)-4 PROD Energy'!H501+'FR-16(7)(v)-8 TRANS Energy'!H501+'FR-16(7)(v)-12 DIST Energy'!H501","v":0},{"$f":"'FR-16(7)(v)-5 PROD Cust'!H501+'FR-16(7)(v)-9 TRANS Cust'!H501+'FR-16(7)(v)-13 DIST Cust'!H501","v":18711},18711,0]
[58,null,{"$f":"'FR-16(7)(v)-1 Functional'!C502","v":"ELIMINATE MISC EXPENSE"},{"$f":"'FR-16(7)(v)-1 Functional'!D502","v":"K405"},null,{"$f":"'FR-16(7)(v)-14 TOTAL CLASS'!H502","v":-108},{"$f":"'FR-16(7)(v)-3 PROD Demand'!H502+'FR-16(7)(v)-7 TRANS Demand'!H502+'FR-16(7)(v)-11 DIST Demand'!H502","v":0},{"$f":"'FR-16(7)(v)-4 PROD Energy'!H502+'FR-16(7)(v)-8 TRANS Energy'!H502+'FR-16(7)(v)-12 DIST Energy'!H502","v":0},{"$f":"'FR-16(7)(v)-5 PROD Cust'!H502+'FR-16(7)(v)-9 TRANS Cust'!H502+'FR-16(7)(v)-13 DIST Cust'!H502","v":-108},-108,0]
[59,null,{"$f":"'FR-16(7)(v)-1 Functional'!C503","v":"  TOTAL CUSTOMER ACCT EXPENSE"},null," ",{"$f":"SUM(F494:F502)","v":724246},0,0,724246,724246,0]
[]
[{"$f":"co_name","v":"DUKE ENERGY KENTUCKY, INC."},null,null,null,null,null,null,null,null,{"$f":"J1","v":"FR-16(7)(v)-16"}]
[{"$f":"$A$2","v":"DISTR. SEC. CLASSIFIED - ELECTRIC COST OF SERVICE"},null,null,null,null,null,null,null,null,{"$f":"J2","v":"WITNESS RESPONSIBLE:"}]
[{"$f":"case_name","v":"CASE NO: 2019-00271"},null,null,null,null,null,null,null,null,{"$f":"Witness","v":"JAMES E. ZIOLKOWSKI"}]
[{"$f":"data_filing","v":"DATA: 12 MONTHS ACTUAL  & 0 MONTHS ESTIMATED"},null,null,null,null,null,null,null,null,{"$f":"\"PAGE \"&Pages2-6&\" OF \"&Pages2","v":"PAGE 9 OF 15"}]
[{"$f":"type","v":"TYPE OF FILING: \"X\" ORIGINAL   UPDATED    REVISED  "}]
[]
[]
["LINE",null,null,null,null,"TOTAL","CLASSIFIED",null,null,"TOTAL","ALL"]
["NO.","O&M EXPENSES",null,"ALLO",null,{"$f":"$F$9","v":"DISTR. SEC."},{"$f":"G9","v":"DEMAND"},"ENERGY","CUSTOMER","AT ISSUE","OTHER"]
[null,null,"Schedule 6.1",null,null,null,3,4,5]
[1,"CUSTOMER SERVICE & INFORMATION"]
[2,null,{"$f":"'FR-16(7)(v)-1 Functional'!C516","v":"TOTAL CUST SERVICE & INFO"},{"$f":"'FR-16(7)(v)-1 Functional'!D516","v":"K405"},null,{"$f":"'FR-16(7)(v)-14 TOTAL CLASS'!H516","v":55103},{"$f":"'FR-16(7)(v)-3 PROD Demand'!H516+'FR-16(7)(v)-7 TRANS Demand'!H516+'FR-16(7)(v)-11 DIST Demand'!H516","v":0},{"$f":"'FR-16(7)(v)-4 PROD Energy'!H516+'FR-16(7)(v)-8 TRANS Energy'!H516+'FR-16(7)(v)-12 DIST Energy'!H516","v":0},{"$f":"'FR-16(7)(v)-5 PROD Cust'!H516+'FR-16(7)(v)-9 TRANS Cust'!H516+'FR-16(7)(v)-13 DIST Cust'!H516","v":55103},{"$f":"SUM(G516:I516)","v":55103},{"$f":"F516-J516","v":0}]
[3,null,{"$f":"'FR-16(7)(v)-1 Functional'!C517","v":"INFORMATIONAL & INSTRUCTIONAL ADV"},{"$f":"'FR-16(7)(v)-1 Functional'!D517","v":"K405"},null,{"$f":"'FR-16(7)(v)-14 TOTAL CLASS'!H517","v":0},{"$f":"'FR-16(7)(v)-3 PROD Demand'!H517+'FR-16(7)(v)-7 TRANS Demand'!H517+'FR-16(7)(v)-11 DIST Demand'!H517","v":0},{"$f":"'FR-16(7)(v)-4 PROD Energy'!H517+'FR-16(7)(v)-8 TRANS Energy'!H517+'FR-16(7)(v)-12 DIST Energy'!H517","v":0},{"$f":"'FR-16(7)(v)-5 PROD Cust'!H517+'FR-16(7)(v)-9 TRANS Cust'!H517+'FR-16(7)(v)-13 DIST Cust'!H517","v":0},{"$f":"SUM(G517:I517)","v":0},{"$f":"F517-J517","v":0}]
[4,null,{"$f":"'FR-16(7)(v)-1 Functional'!C518","v":"TOTAL CUSTOMER SERV. & INFO."},null," ",{"$f":"SUM(F516:F517)","v":55103},0,0,55103,55103,0]
[5]
[6,"SALES"]
[7,null,{"$f":"'FR-16(7)(v)-1 Functional'!C521","v":"SALES EXPENSE"},{"$f":"'FR-16(7)(v)-1 Functional'!D521","v":"K405"}," ",{"$f":"'FR-16(7)(v)-14 TOTAL CLASS'!H521","v":136389},{"$f":"'FR-16(7)(v)-3 PROD Demand'!H521+'FR-16(7)(v)-7 TRANS Demand'!H521+'FR-16(7)(v)-11 DIST Demand'!H521","v":0},{"$f":"'FR-16(7)(v)-4 PROD Energy'!H521+'FR-16(7)(v)-8 TRANS Energy'!H521+'FR-16(7)(v)-12 DIST Energy'!H521","v":0},{"$f":"'FR-16(7)(v)-5 PROD Cust'!H521+'FR-16(7)(v)-9 TRANS Cust'!H521+'FR-16(7)(v)-13 DIST Cust'!H521","v":136389},{"$f":"SUM(G521:I521)","v":136389},{"$f":"F521-J521","v":0}]
[8,null,{"$f":"'FR-16(7)(v)-1 Functional'!C522","v":"TOTAL SALES EXPENSE"},null," ",{"$f":"SUM(F520:F521)","v":136389},0,0,136389,136389,0]
[9]
[10,"ADMINISTRATIVE & GENERAL "]
[11,null,{"$f":"'FR-16(7)(v)-1 Functional'!C525","v":"PRODUCTION - DEMAND RELATED"},{"$f":"'FR-16(7)(v)-1 Functional'!D525","v":"P349"},null,{"$f":"'FR-16(7)(v)-14 TOTAL CLASS'!H525","v":0},{"$f":"'FR-16(7)(v)-3 PROD Demand'!H525+'FR-16(7)(v)-7 TRANS Demand'!H525+'FR-16(7)(v)-11 DIST Demand'!H525","v":0},{"$f":"'FR-16(7)(v)-4 PROD Energy'!H525+'FR-16(7)(v)-8 TRANS Energy'!H525+'FR-16(7)(v)-12 DIST Energy'!H525","v":0},{"$f":"'FR-16(7)(v)-5 PROD Cust'!H525+'FR-16(7)(v)-9 TRANS Cust'!H525+'FR-16(7)(v)-13 DIST Cust'!H525","v":0},{"$f":"SUM(G525:I525)","v":0},{"$f":"F525-J525","v":0}]
[12,null,{"$f":"'FR-16(7)(v)-1 Functional'!C526","v":"PRODUCTION - ENERGY RELATED"},{"$f":"'FR-16(7)(v)-1 Functional'!D526","v":"E349"},null,{"$f":"'FR-16(7)(v)-14 TOTAL CLASS'!H526","v":2929314},{"$f":"'FR-16(7)(v)-3 PROD Demand'!H526+'FR-16(7)(v)-7 TRANS Demand'!H526+'FR-16(7)(v)-11 DIST Demand'!H526","v":0},{"$f":"'FR-16(7)(v)-4 PROD Energy'!H526+'FR-16(7)(v)-8 TRANS Energy'!H526+'FR-16(7)(v)-12 DIST Energy'!H526","v":2929314},{"$f":"'FR-16(7)(v)-5 PROD Cust'!H526+'FR-16(7)(v)-9 TRANS Cust'!H526+'FR-16(7)(v)-13 DIST Cust'!H526","v":0},2929314,0]
[13,null,"TRANSMISSION",{"$f":"'FR-16(7)(v)-1 Functional'!D527","v":"T349"},null,{"$f":"'FR-16(7)(v)-14 TOTAL CLASS'!H527","v":397150},{"$f":"'FR-16(7)(v)-3 PROD Demand'!H527+'FR-16(7)(v)-7 TRANS Demand'!H527+'FR-16(7)(v)-11 DIST Demand'!H527","v":397150},{"$f":"'FR-16(7)(v)-4 PROD Energy'!H527+'FR-16(7)(v)-8 TRANS Energy'!H527+'FR-16(7)(v)-12 DIST Energy'!H527","v":0},{"$f":"'FR-16(7)(v)-5 PROD Cust'!H527+'FR-16(7)(v)-9 TRANS Cust'!H527+'FR-16(7)(v)-13 DIST Cust'!H527","v":0},{"$f":"SUM(G527:I527)","v":397150},{"$f":"F527-J527","v":0}]
[14,null,{"$f":"'FR-16(7)(v)-1 Functional'!C528","v":"DISTRIBUTION"},{"$f":"'FR-16(7)(v)-1 Functional'!D528","v":"D349"},null,{"$f":"'FR-16(7)(v)-14 TOTAL CLASS'!H528","v":1353507},{"$f":"'FR-16(7)(v)-3 PROD Demand'!H528+'FR-16(7)(v)-7 TRANS Demand'!H528+'FR-16(7)(v)-11 DIST Demand'!H528","v":1229791},{"$f":"'FR-16(7)(v)-4 PROD Energy'!H528+'FR-16(7)(v)-8 TRANS Energy'!H528+'FR-16(7)(v)-12 DIST Energy'!H528","v":0},{"$f":"'FR-16(7)(v)-5 PROD Cust'!H528+'FR-16(7)(v)-9 TRANS Cust'!H528+'FR-16(7)(v)-13 DIST Cust'!H528","v":123716},1353507,0]
[15,null,{"$f":"'FR-16(7)(v)-1 Functional'!C529","v":"CUSTOMER ACCOUNTING"},{"$f":"'FR-16(7)(v)-1 Functional'!D529","v":"C319"},null,{"$f":"'FR-16(7)(v)-14 TOTAL CLASS'!H529","v":640138},{"$f":"'FR-16(7)(v)-3 PROD Demand'!H529+'FR-16(7)(v)-7 TRANS Demand'!H529+'FR-16(7)(v)-11 DIST Demand'!H529","v":0},{"$f":"'FR-16(7)(v)-4 PROD Energy'!H529+'FR-16(7)(v)-8 TRANS Energy'!H529+'FR-16(7)(v)-12 DIST Energy'!H529","v":0},{"$f":"'FR-16(7)(v)-5 PROD Cust'!H529+'FR-16(7)(v)-9 TRANS Cust'!H529+'FR-16(7)(v)-13 DIST Cust'!H529","v":640138},640138,0]
[16,null,{"$f":"'FR-16(7)(v)-1 Functional'!C530","v":"CUSTOMER SERVICE & INFORMATION"},{"$f":"'FR-16(7)(v)-1 Functional'!D530","v":"C331"},null,{"$f":"'FR-16(7)(v)-14 TOTAL CLASS'!H530","v":21917},{"$f":"'FR-16(7)(v)-3 PROD Demand'!H530+'FR-16(7)(v)-7 TRANS Demand'!H530+'FR-16(7)(v)-11 DIST Demand'!H530","v":0},{"$f":"'FR-16(7)(v)-4 PROD Energy'!H530+'FR-16(7)(v)-8 TRANS Energy'!H530+'FR-16(7)(v)-12 DIST Energy'!H530","v":0},{"$f":"'FR-16(7)(v)-5 PROD Cust'!H530+'FR-16(7)(v)-9 TRANS Cust'!H530+'FR-16(7)(v)-13 DIST Cust'!H530","v":21917},21917,0]
[17,null,{"$f":"'FR-16(7)(v)-1 Functional'!C531","v":"SALES"},{"$f":"'FR-16(7)(v)-1 Functional'!D531","v":"S319"},null,{"$f":"'FR-16(7)(v)-14 TOTAL CLASS'!H531","v":0},{"$f":"'FR-16(7)(v)-3 PROD Demand'!H531+'FR-16(7)(v)-7 TRANS Demand'!H531+'FR-16(7)(v)-11 DIST Demand'!H531","v":0},{"$f":"'FR-16(7)(v)-4 PROD Energy'!H531+'FR-16(7)(v)-8 TRANS Energy'!H531+'FR-16(7)(v)-12 DIST Energy'!H531","v":0},{"$f":"'FR-16(7)(v)-5 PROD Cust'!H531+'FR-16(7)(v)-9 TRANS Cust'!H531+'FR-16(7)(v)-13 DIST Cust'!H531","v":0},0,0]
[18,null,{"$f":"'FR-16(7)(v)-1 Functional'!C532","v":"TOT ADMIN & GEN LESS REG EXP"}," ",null,{"$f":"SUM(F525:F531)","v":5342026},1626941,2929314,785771,5342026,0]
[19,null,{"$f":"'FR-16(7)(v)-1 Functional'!C533","v":"RATE CASE EXPENSE ADJUSTMENT"},{"$f":"'FR-16(7)(v)-1 Functional'!D533","v":"A315"},null,{"$f":"'FR-16(7)(v)-14 TOTAL CLASS'!H533","v":22927},{"$f":"'FR-16(7)(v)-3 PROD Demand'!H533+'FR-16(7)(v)-7 TRANS Demand'!H533+'FR-16(7)(v)-11 DIST Demand'!H533","v":6982},{"$f":"'FR-16(7)(v)-4 PROD Energy'!H533+'FR-16(7)(v)-8 TRANS Energy'!H533+'FR-16(7)(v)-12 DIST Energy'!H533","v":12573},{"$f":"'FR-16(7)(v)-5 PROD Cust'!H533+'FR-16(7)(v)-9 TRANS Cust'!H533+'FR-16(7)(v)-13 DIST Cust'!H533","v":3372},{"$f":"SUM(G533:I533)","v":22927},{"$f":"F533-J533","v":0}]
[20,null,{"$f":"'FR-16(7)(v)-1 Functional'!C534","v":"ELIMINATE MISCELLANEOUS EXPENSES ADJUSTMENT"},{"$f":"'FR-16(7)(v)-1 Functional'!D534","v":"A315"},null,{"$f":"'FR-16(7)(v)-14 TOTAL CLASS'!H534","v":0},{"$f":"'FR-16(7)(v)-3 PROD Demand'!H534+'FR-16(7)(v)-7 TRANS Demand'!H534+'FR-16(7)(v)-11 DIST Demand'!H534","v":0},{"$f":"'FR-16(7)(v)-4 PROD Energy'!H534+'FR-16(7)(v)-8 TRANS Energy'!H534+'FR-16(7)(v)-12 DIST Energy'!H534","v":0},{"$f":"'FR-16(7)(v)-5 PROD Cust'!H534+'FR-16(7)(v)-9 TRANS Cust'!H534+'FR-16(7)(v)-13 DIST Cust'!H534","v":0},0,0]
[21,null,{"$f":"'FR-16(7)(v)-1 Functional'!C535","v":"RIDER ESM ELIMINATION"},{"$f":"'FR-16(7)(v)-1 Functional'!D535","v":"A315"},null,{"$f":"'FR-16(7)(v)-14 TOTAL CLASS'!H535","v":-1575883},{"$f":"'FR-16(7)(v)-3 PROD Demand'!H535+'FR-16(7)(v)-7 TRANS Demand'!H535+'FR-16(7)(v)-11 DIST Demand'!H535","v":-479932},{"$f":"'FR-16(7)(v)-4 PROD Energy'!H535+'FR-16(7)(v)-8 TRANS Energy'!H535+'FR-16(7)(v)-12 DIST Energy'!H535","v":-864161},{"$f":"'FR-16(7)(v)-5 PROD Cust'!H535+'FR-16(7)(v)-9 TRANS Cust'!H535+'FR-16(7)(v)-13 DIST Cust'!H535","v":-231790},-1575883,0]
[22,null,{"$f":"'FR-16(7)(v)-1 Functional'!C536","v":"ELIMINATE DSM"},{"$f":"'FR-16(7)(v)-1 Functional'!D536","v":"A315"},null,{"$f":"'FR-16(7)(v)-14 TOTAL CLASS'!H536","v":-22072},{"$f":"'FR-16(7)(v)-3 PROD Demand'!H536+'FR-16(7)(v)-7 TRANS Demand'!H536+'FR-16(7)(v)-11 DIST Demand'!H536","v":-6722},{"$f":"'FR-16(7)(v)-4 PROD Energy'!H536+'FR-16(7)(v)-8 TRANS Energy'!H536+'FR-16(7)(v)-12 DIST Energy'!H536","v":-12103},{"$f":"'FR-16(7)(v)-5 PROD Cust'!H536+'FR-16(7)(v)-9 TRANS Cust'!H536+'FR-16(7)(v)-13 DIST Cust'!H536","v":-3247},-22072,0]
[23,null,{"$f":"'FR-16(7)(v)-1 Functional'!C537","v":"DSM DEFERRAL - ELECTRIC"},{"$f":"'FR-16(7)(v)-1 Functional'!D537","v":"A315"},null,{"$f":"'FR-16(7)(v)-14 TOTAL CLASS'!H537","v":0},{"$f":"'FR-16(7)(v)-3 PROD Demand'!H537+'FR-16(7)(v)-7 TRANS Demand'!H537+'FR-16(7)(v)-11 DIST Demand'!H537","v":0},{"$f":"'FR-16(7)(v)-4 PROD Energy'!H537+'FR-16(7)(v)-8 TRANS Energy'!H537+'FR-16(7)(v)-12 DIST Energy'!H537","v":0},{"$f":"'FR-16(7)(v)-5 PROD Cust'!H537+'FR-16(7)(v)-9 TRANS Cust'!H537+'FR-16(7)(v)-13 DIST Cust'!H537","v":0},0,0]
[24,null,{"$f":"'FR-16(7)(v)-1 Functional'!C538","v":"PENSION ADJUSTMENT"},{"$f":"'FR-16(7)(v)-1 Functional'!D538","v":"A315"},null,{"$f":"'FR-16(7)(v)-14 TOTAL CLASS'!H538","v":-96151},{"$f":"'FR-16(7)(v)-3 PROD Demand'!H538+'FR-16(7)(v)-7 TRANS Demand'!H538+'FR-16(7)(v)-11 DIST Demand'!H538","v":-29283},{"$f":"'FR-16(7)(v)-4 PROD Energy'!H538+'FR-16(7)(v)-8 TRANS Energy'!H538+'FR-16(7)(v)-12 DIST Energy'!H538","v":-52725},{"$f":"'FR-16(7)(v)-5 PROD Cust'!H538+'FR-16(7)(v)-9 TRANS Cust'!H538+'FR-16(7)(v)-13 DIST Cust'!H538","v":-14143},-96151,0]
[25,null,{"$f":"'FR-16(7)(v)-1 Functional'!C539","v":"ELIMINATE MISC EXPENSES"},{"$f":"'FR-16(7)(v)-1 Functional'!D539","v":"A315"},null,{"$f":"'FR-16(7)(v)-14 TOTAL CLASS'!H539","v":-92747},{"$f":"'FR-16(7)(v)-3 PROD Demand'!H539+'FR-16(7)(v)-7 TRANS Demand'!H539+'FR-16(7)(v)-11 DIST Demand'!H539","v":-28246},{"$f":"'FR-16(7)(v)-4 PROD Energy'!H539+'FR-16(7)(v)-8 TRANS Energy'!H539+'FR-16(7)(v)-12 DIST Energy'!H539","v":-50859},{"$f":"'FR-16(7)(v)-5 PROD Cust'!H539+'FR-16(7)(v)-9 TRANS Cust'!H539+'FR-16(7)(v)-13 DIST Cust'!H539","v":-13642},-92747,0]
[26,null,{"$f":"'FR-16(7)(v)-1 Functional'!C540","v":"ELIMINATE MERGER COSTS AND CREDITS"},{"$f":"'FR-16(7)(v)-1 Functional'!D540","v":"A315"},null,{"$f":"'FR-16(7)(v)-14 TOTAL CLASS'!H540","v":0},{"$f":"'FR-16(7)(v)-3 PROD Demand'!H540+'FR-16(7)(v)-7 TRANS Demand'!H540+'FR-16(7)(v)-11 DIST Demand'!H540","v":0},{"$f":"'FR-16(7)(v)-4 PROD Energy'!H540+'FR-16(7)(v)-8 TRANS Energy'!H540+'FR-16(7)(v)-12 DIST Energy'!H540","v":0},{"$f":"'FR-16(7)(v)-5 PROD Cust'!H540+'FR-16(7)(v)-9 TRANS Cust'!H540+'FR-16(7)(v)-13 DIST Cust'!H540","v":0},{"$f":"SUM(G540:I540)","v":0},{"$f":"F540-J540","v":0}]
[27,null,{"$f":"'FR-16(7)(v)-1 Functional'!C541","v":"ANNUALIZE KYPSC MAINT TAX"},{"$f":"'FR-16(7)(v)-1 Functional'!D541","v":"A315"},null,{"$f":"'FR-16(7)(v)-14 TOTAL CLASS'!H541","v":0},{"$f":"'FR-16(7)(v)-3 PROD Demand'!H541+'FR-16(7)(v)-7 TRANS Demand'!H541+'FR-16(7)(v)-11 DIST Demand'!H541","v":0},{"$f":"'FR-16(7)(v)-4 PROD Energy'!H541+'FR-16(7)(v)-8 TRANS Energy'!H541+'FR-16(7)(v)-12 DIST Energy'!H541","v":0},{"$f":"'FR-16(7)(v)-5 PROD Cust'!H541+'FR-16(7)(v)-9 TRANS Cust'!H541+'FR-16(7)(v)-13 DIST Cust'!H541","v":0},0,0]
[28,null,{"$f":"'FR-16(7)(v)-1 Functional'!C542","v":"REMOVE INCENTIVE COMP"},{"$f":"'FR-16(7)(v)-1 Functional'!D542","v":"A315"},null,{"$f":"'FR-16(7)(v)-14 TOTAL CLASS'!H542","v":-267749},{"$f":"'FR-16(7)(v)-3 PROD Demand'!H542+'FR-16(7)(v)-7 TRANS Demand'!H542+'FR-16(7)(v)-11 DIST Demand'!H542","v":-81543},{"$f":"'FR-16(7)(v)-4 PROD Energy'!H542+'FR-16(7)(v)-8 TRANS Energy'!H542+'FR-16(7)(v)-12 DIST Energy'!H542","v":-146824},{"$f":"'FR-16(7)(v)-5 PROD Cust'!H542+'FR-16(7)(v)-9 TRANS Cust'!H542+'FR-16(7)(v)-13 DIST Cust'!H542","v":-39382},-267749,0]
[29,null,{"$f":"'FR-16(7)(v)-1 Functional'!C543","v":"CREDIT CARD FEES"},{"$f":"'FR-16(7)(v)-1 Functional'!D543","v":"A315"},null,{"$f":"'FR-16(7)(v)-14 TOTAL CLASS'!H543","v":0},{"$f":"'FR-16(7)(v)-3 PROD Demand'!H543+'FR-16(7)(v)-7 TRANS Demand'!H543+'FR-16(7)(v)-11 DIST Demand'!H543","v":0},{"$f":"'FR-16(7)(v)-4 PROD Energy'!H543+'FR-16(7)(v)-8 TRANS Energy'!H543+'FR-16(7)(v)-12 DIST Energy'!H543","v":0},{"$f":"'FR-16(7)(v)-5 PROD Cust'!H543+'FR-16(7)(v)-9 TRANS Cust'!H543+'FR-16(7)(v)-13 DIST Cust'!H543","v":0},0,0]
[30,null,{"$f":"'FR-16(7)(v)-1 Functional'!C544","v":"ELIMINATE INCENTIVE COMPENSATION ADJUSTMENT"},{"$f":"'FR-16(7)(v)-1 Functional'!D544","v":"A315"},null,{"$f":"'FR-16(7)(v)-14 TOTAL CLASS'!H544","v":0},{"$f":"'FR-16(7)(v)-3 PROD Demand'!H544+'FR-16(7)(v)-7 TRANS Demand'!H544+'FR-16(7)(v)-11 DIST Demand'!H544","v":0},{"$f":"'FR-16(7)(v)-4 PROD Energy'!H544+'FR-16(7)(v)-8 TRANS Energy'!H544+'FR-16(7)(v)-12 DIST Energy'!H544","v":0},{"$f":"'FR-16(7)(v)-5 PROD Cust'!H544+'FR-16(7)(v)-9 TRANS Cust'!H544+'FR-16(7)(v)-13 DIST Cust'!H544","v":0},0,0]
[31,null,{"$f":"'FR-16(7)(v)-1 Functional'!C545","v":"AMORTIZATION OF DEFERRAL ASSET"},{"$f":"'FR-16(7)(v)-1 Functional'!D545","v":"A315"},null,{"$f":"'FR-16(7)(v)-14 TOTAL CLASS'!H545","v":0},{"$f":"'FR-16(7)(v)-3 PROD Demand'!H545+'FR-16(7)(v)-7 TRANS Demand'!H545+'FR-16(7)(v)-11 DIST Demand'!H545","v":0},{"$f":"'FR-16(7)(v)-4 PROD Energy'!H545+'FR-16(7)(v)-8 TRANS Energy'!H545+'FR-16(7)(v)-12 DIST Energy'!H545","v":0},{"$f":"'FR-16(7)(v)-5 PROD Cust'!H545+'FR-16(7)(v)-9 TRANS Cust'!H545+'FR-16(7)(v)-13 DIST Cust'!H545","v":0},0,0]
[32,null,{"$f":"'FR-16(7)(v)-1 Functional'!C546","v":"AMORTIZATION OF DEFERRED EXPENSES"},{"$f":"'FR-16(7)(v)-1 Functional'!D546","v":"A315"},null,{"$f":"'FR-16(7)(v)-14 TOTAL CLASS'!H546","v":16848},{"$f":"'FR-16(7)(v)-3 PROD Demand'!H546+'FR-16(7)(v)-7 TRANS Demand'!H546+'FR-16(7)(v)-11 DIST Demand'!H546","v":5131},{"$f":"'FR-16(7)(v)-4 PROD Energy'!H546+'FR-16(7)(v)-8 TRANS Energy'!H546+'FR-16(7)(v)-12 DIST Energy'!H546","v":9239},{"$f":"'FR-16(7)(v)-5 PROD Cust'!H546+'FR-16(7)(v)-9 TRANS Cust'!H546+'FR-16(7)(v)-13 DIST Cust'!H546","v":2478},16848,0]
[33,null,{"$f":"'FR-16(7)(v)-1 Functional'!C547","v":"TOTAL ADMIN. & GENERAL"},null," ",{"$f":"SUM(F532:F546)","v":3327199},1013328,1824454,489417,3327199,0]
[34]
[35,null,{"$f":"'FR-16(7)(v)-1 Functional'!C549","v":"TOTAL O & M EXPENSE"},null,null,{"$f":"F547+F522+F518+F503+F492+F470+F466+F459","v":53105892},11425378,39907982,1772532,53105892,0]
[]
[{"$f":"co_name","v":"DUKE ENERGY KENTUCKY, INC."},null,null,null,null,null,null,null,null,{"$f":"J1","v":"FR-16(7)(v)-16"}]
[{"$f":"$A$2","v":"DISTR. SEC. CLASSIFIED - ELECTRIC COST OF SERVICE"},null,null,null,null,null,null,null,null,{"$f":"J2","v":"WITNESS RESPONSIBLE:"}]
[{"$f":"case_name","v":"CASE NO: 2019-00271"},null,null,null,null,null,null,null,null,{"$f":"Witness","v":"JAMES E. ZIOLKOWSKI"}]
[{"$f":"data_filing","v":"DATA: 12 MONTHS ACTUAL  & 0 MONTHS ESTIMATED"},null,null,null,null,null,null,null,null,{"$f":"\"PAGE \"&Pages2-5&\" OF \"&Pages2","v":"PAGE 10 OF 15"}]
[{"$f":"type","v":"TYPE OF FILING: \"X\" ORIGINAL   UPDATED    REVISED  "}]
[]
[]
["LINE",null,null,null,null,"TOTAL","CLASSIFIED",null,null,"TOTAL","ALL"]
["NO.","DEPRECIATION EXPENSE",null,"ALLO",null,{"$f":"$F$9","v":"DISTR. SEC."},{"$f":"G9","v":"DEMAND"},"ENERGY","CUSTOMER","AT ISSUE","OTHER"]
[null,null,"Schedule 7",null,null,null,3,4,5]
[1,"PRODUCTION DEPRECIATION"]
[2,null,{"$f":"'FR-16(7)(v)-1 Functional'!C562","v":"PRODUCTION DEPRECIATION"},{"$f":"'FR-16(7)(v)-1 Functional'!D562","v":"P229"},null,{"$f":"'FR-16(7)(v)-14 TOTAL CLASS'!H562","v":10158539},{"$f":"'FR-16(7)(v)-3 PROD Demand'!H562+'FR-16(7)(v)-7 TRANS Demand'!H562+'FR-16(7)(v)-11 DIST Demand'!H562","v":10158539},{"$f":"'FR-16(7)(v)-4 PROD Energy'!H562+'FR-16(7)(v)-8 TRANS Energy'!H562+'FR-16(7)(v)-12 DIST Energy'!H562","v":0},{"$f":"'FR-16(7)(v)-5 PROD Cust'!H562+'FR-16(7)(v)-9 TRANS Cust'!H562+'FR-16(7)(v)-13 DIST Cust'!H562","v":0},{"$f":"SUM(G562:I562)","v":10158539},{"$f":"F562-J562","v":0}]
[3,null,{"$f":"'FR-16(7)(v)-1 Functional'!C563","v":"  TOTAL PRODUCTION DEPREC EXP."},null,null,{"$f":"SUM(F562:F562)","v":10158539},10158539,0,0,10158539,0]
[4]
[5,"TRANSMISSION DEPRECIATION"]
[6,null,"TRANSMISSION DEPRECIATION",{"$f":"'FR-16(7)(v)-1 Functional'!D566","v":"T229"},null,{"$f":"'FR-16(7)(v)-14 TOTAL CLASS'!H566","v":397703},{"$f":"'FR-16(7)(v)-3 PROD Demand'!H566+'FR-16(7)(v)-7 TRANS Demand'!H566+'FR-16(7)(v)-11 DIST Demand'!H566","v":397703},{"$f":"'FR-16(7)(v)-4 PROD Energy'!H566+'FR-16(7)(v)-8 TRANS Energy'!H566+'FR-16(7)(v)-12 DIST Energy'!H566","v":0},{"$f":"'FR-16(7)(v)-5 PROD Cust'!H566+'FR-16(7)(v)-9 TRANS Cust'!H566+'FR-16(7)(v)-13 DIST Cust'!H566","v":0},{"$f":"SUM(G566:I566)","v":397703},{"$f":"F566-J566","v":0}]
[7,null,{"$f":"'FR-16(7)(v)-1 Functional'!C567","v":"  TOTAL TRANSMISSION DEP. EXP."},null,null,{"$f":"SUM(F566:F566)","v":397703},397703,0,0,397703,0]
[8]
[9,"DISTRIBUTION DEPRECIATION"]
[10,null,{"$f":"'FR-16(7)(v)-1 Functional'!C570","v":"DISTRIBUTION DEPRECIATION"},{"$f":"'FR-16(7)(v)-1 Functional'!D570","v":"D249"},null,{"$f":"'FR-16(7)(v)-14 TOTAL CLASS'!H570","v":3255610},{"$f":"'FR-16(7)(v)-3 PROD Demand'!H570+'FR-16(7)(v)-7 TRANS Demand'!H570+'FR-16(7)(v)-11 DIST Demand'!H570","v":2897577},{"$f":"'FR-16(7)(v)-4 PROD Energy'!H570+'FR-16(7)(v)-8 TRANS Energy'!H570+'FR-16(7)(v)-12 DIST Energy'!H570","v":0},{"$f":"'FR-16(7)(v)-5 PROD Cust'!H570+'FR-16(7)(v)-9 TRANS Cust'!H570+'FR-16(7)(v)-13 DIST Cust'!H570","v":358033},{"$f":"SUM(G570:I570)","v":3255610},{"$f":"F570-J570","v":0}]
[11,null,{"$f":"'FR-16(7)(v)-1 Functional'!C571","v":"  TOTAL DIST. DEPREC EXP."},null,null,{"$f":"SUM(F570:F570)","v":3255610},2897577,0,358033,3255610,0]
[12,null,null,null,null," "]
[13,"GENERAL DEPRECIATION"]
[14,null,{"$f":"'FR-16(7)(v)-1 Functional'!C574","v":"GENERAL DEPRECIATION"},{"$f":"'FR-16(7)(v)-1 Functional'!D574","v":"G229"},null,{"$f":"'FR-16(7)(v)-14 TOTAL CLASS'!H574","v":1360395},{"$f":"'FR-16(7)(v)-3 PROD Demand'!H574+'FR-16(7)(v)-7 TRANS Demand'!H574+'FR-16(7)(v)-11 DIST Demand'!H574","v":730801},{"$f":"'FR-16(7)(v)-4 PROD Energy'!H574+'FR-16(7)(v)-8 TRANS Energy'!H574+'FR-16(7)(v)-12 DIST Energy'!H574","v":499366},{"$f":"'FR-16(7)(v)-5 PROD Cust'!H574+'FR-16(7)(v)-9 TRANS Cust'!H574+'FR-16(7)(v)-13 DIST Cust'!H574","v":130228},{"$f":"SUM(G574:I574)","v":1360395},{"$f":"F574-J574","v":0}]
[15,null,{"$f":"'FR-16(7)(v)-1 Functional'!C575","v":"  TOTAL GENERAL DEPREC EXP."},null,null,{"$f":"SUM(F574:F574)","v":1360395},730801,499366,130228,1360395,0]
[16]
[17,"COMMON AND OTHER DEPRECIATION"]
[18,null,{"$f":"'FR-16(7)(v)-1 Functional'!C578","v":"COMMON DEPRECIATION"},{"$f":"'FR-16(7)(v)-1 Functional'!D578","v":"C229"},null,{"$f":"'FR-16(7)(v)-14 TOTAL CLASS'!H578","v":9201},{"$f":"'FR-16(7)(v)-3 PROD Demand'!H578+'FR-16(7)(v)-7 TRANS Demand'!H578+'FR-16(7)(v)-11 DIST Demand'!H578","v":4931},{"$f":"'FR-16(7)(v)-4 PROD Energy'!H578+'FR-16(7)(v)-8 TRANS Energy'!H578+'FR-16(7)(v)-12 DIST Energy'!H578","v":3388},{"$f":"'FR-16(7)(v)-5 PROD Cust'!H578+'FR-16(7)(v)-9 TRANS Cust'!H578+'FR-16(7)(v)-13 DIST Cust'!H578","v":882},{"$f":"SUM(G578:I578)","v":9201},{"$f":"F578-J578","v":0}]
[19,null,{"$f":"'FR-16(7)(v)-1 Functional'!C579","v":"  TOTAL COM & OTHER DEPREC EXP."},null,null,{"$f":"SUM(F578:F578)","v":9201},4931,3388,882,9201,0]
[20]
[21]
[22,"TOTAL DEPRECIATION EXPENSE",null,null," ",{"$f":"F579+F575+F571+F567+F563","v":15181448},14189551,502754,489143,15181448,0]
[]
[{"$f":"co_name","v":"DUKE ENERGY KENTUCKY, INC."},null,null,null,null,null,null,null,null,{"$f":"J1","v":"FR-16(7)(v)-16"}]
[{"$f":"$A$2","v":"DISTR. SEC. CLASSIFIED - ELECTRIC COST OF SERVICE"},null,null,null,null,null,null,null,null,{"$f":"J2","v":"WITNESS RESPONSIBLE:"}]
[{"$f":"case_name","v":"CASE NO: 2019-00271"},null,null,null,null,null,null,null,null,{"$f":"Witness","v":"JAMES E. ZIOLKOWSKI"}]
[{"$f":"data_filing","v":"DATA: 12 MONTHS ACTUAL  & 0 MONTHS ESTIMATED"},null,null,null,null,null,null,null,null,{"$f":"\"PAGE \"&Pages2-4&\" OF \"&Pages2","v":"PAGE 11 OF 15"}]
[{"$f":"type","v":"TYPE OF FILING: \"X\" ORIGINAL   UPDATED    REVISED  "}]
[]
[]
["LINE",null,null,null,null,"TOTAL","CLASSIFIED",null,null,"TOTAL","ALL"]
["NO.","OTHER TAXES & MISC EXPENSES",null,"ALLO",null,{"$f":"$F$9","v":"DISTR. SEC."},{"$f":"G9","v":"DEMAND"},"ENERGY","CUSTOMER","AT ISSUE","OTHER"]
[null,null,"Schedule 8",null,null,null,3,4,5]
[1,"TAXES OTHER THAN INC & REV"]
[2," REAL ESTATE & PROPERTY TAX"]
[3,null,{"$f":"'FR-16(7)(v)-1 Functional'!C596","v":"REAL ESTATE & PROPERTY TAX"},{"$f":"'FR-16(7)(v)-1 Functional'!D596","v":"NP29"},null,{"$f":"'FR-16(7)(v)-14 TOTAL CLASS'!H596","v":3509903},{"$f":"'FR-16(7)(v)-3 PROD Demand'!H596+'FR-16(7)(v)-7 TRANS Demand'!H596+'FR-16(7)(v)-11 DIST Demand'!H596","v":3315122},{"$f":"'FR-16(7)(v)-4 PROD Energy'!H596+'FR-16(7)(v)-8 TRANS Energy'!H596+'FR-16(7)(v)-12 DIST Energy'!H596","v":49859},{"$f":"'FR-16(7)(v)-5 PROD Cust'!H596+'FR-16(7)(v)-9 TRANS Cust'!H596+'FR-16(7)(v)-13 DIST Cust'!H596","v":144922},{"$f":"SUM(G596:I596)","v":3509903},{"$f":"F596-J596","v":0}]
[4,null,{"$f":"'FR-16(7)(v)-1 Functional'!C597","v":"ANNUALIZE PROPERTY TAX"},{"$f":"'FR-16(7)(v)-1 Functional'!D597","v":"NP29"}," ",{"$f":"'FR-16(7)(v)-14 TOTAL CLASS'!H597","v":0},{"$f":"'FR-16(7)(v)-3 PROD Demand'!H597+'FR-16(7)(v)-7 TRANS Demand'!H597+'FR-16(7)(v)-11 DIST Demand'!H597","v":0},{"$f":"'FR-16(7)(v)-4 PROD Energy'!H597+'FR-16(7)(v)-8 TRANS Energy'!H597+'FR-16(7)(v)-12 DIST Energy'!H597","v":0},{"$f":"'FR-16(7)(v)-5 PROD Cust'!H597+'FR-16(7)(v)-9 TRANS Cust'!H597+'FR-16(7)(v)-13 DIST Cust'!H597","v":0},{"$f":"SUM(G597:I597)","v":0},{"$f":"F597-J597","v":0}]
[5,null,{"$f":"'FR-16(7)(v)-1 Functional'!C598","v":"  TOTAL REAL ESTATE & PROPERTY TAX"},null,null,{"$f":"SUM(F596:F597)","v":3509903},3315122,49859,144922,3509903,0]
[6]
[7," MISCELLANEOUS TAXES"]
[8,null,{"$f":"'FR-16(7)(v)-1 Functional'!C601","v":"PAYROLL "},{"$f":"'FR-16(7)(v)-1 Functional'!D601","v":"A315"},null,{"$f":"'FR-16(7)(v)-14 TOTAL CLASS'!H601","v":318882},{"$f":"'FR-16(7)(v)-3 PROD Demand'!H601+'FR-16(7)(v)-7 TRANS Demand'!H601+'FR-16(7)(v)-11 DIST Demand'!H601","v":97115},{"$f":"'FR-16(7)(v)-4 PROD Energy'!H601+'FR-16(7)(v)-8 TRANS Energy'!H601+'FR-16(7)(v)-12 DIST Energy'!H601","v":174864},{"$f":"'FR-16(7)(v)-5 PROD Cust'!H601+'FR-16(7)(v)-9 TRANS Cust'!H601+'FR-16(7)(v)-13 DIST Cust'!H601","v":46903},{"$f":"SUM(G601:I601)","v":318882},{"$f":"F601-J601","v":0}]
[9,null,{"$f":"'FR-16(7)(v)-1 Functional'!C602","v":"ELIMINATE DSM "},{"$f":"'FR-16(7)(v)-1 Functional'!D602","v":"A315"},null,{"$f":"'FR-16(7)(v)-14 TOTAL CLASS'!H602","v":-6273},{"$f":"'FR-16(7)(v)-3 PROD Demand'!H602+'FR-16(7)(v)-7 TRANS Demand'!H602+'FR-16(7)(v)-11 DIST Demand'!H602","v":-1910},{"$f":"'FR-16(7)(v)-4 PROD Energy'!H602+'FR-16(7)(v)-8 TRANS Energy'!H602+'FR-16(7)(v)-12 DIST Energy'!H602","v":-3440},{"$f":"'FR-16(7)(v)-5 PROD Cust'!H602+'FR-16(7)(v)-9 TRANS Cust'!H602+'FR-16(7)(v)-13 DIST Cust'!H602","v":-923},{"$f":"SUM(G602:I602)","v":-6273},{"$f":"F602-J602","v":0}]
[10,null,{"$f":"'FR-16(7)(v)-1 Functional'!C603","v":"FRANCHISE & LICENSE"},{"$f":"'FR-16(7)(v)-1 Functional'!D603","v":"A315"},null,{"$f":"'FR-16(7)(v)-14 TOTAL CLASS'!H603","v":0},{"$f":"'FR-16(7)(v)-3 PROD Demand'!H603+'FR-16(7)(v)-7 TRANS Demand'!H603+'FR-16(7)(v)-11 DIST Demand'!H603","v":0},{"$f":"'FR-16(7)(v)-4 PROD Energy'!H603+'FR-16(7)(v)-8 TRANS Energy'!H603+'FR-16(7)(v)-12 DIST Energy'!H603","v":0},{"$f":"'FR-16(7)(v)-5 PROD Cust'!H603+'FR-16(7)(v)-9 TRANS Cust'!H603+'FR-16(7)(v)-13 DIST Cust'!H603","v":0},{"$f":"SUM(G603:I603)","v":0},{"$f":"F603-J603","v":0}]
[11,null,{"$f":"'FR-16(7)(v)-1 Functional'!C604","v":"ELIMINATE ESM"},{"$f":"'FR-16(7)(v)-1 Functional'!D604","v":"A315"},null,{"$f":"'FR-16(7)(v)-14 TOTAL CLASS'!H604","v":-169631},{"$f":"'FR-16(7)(v)-3 PROD Demand'!H604+'FR-16(7)(v)-7 TRANS Demand'!H604+'FR-16(7)(v)-11 DIST Demand'!H604","v":-51661},{"$f":"'FR-16(7)(v)-4 PROD Energy'!H604+'FR-16(7)(v)-8 TRANS Energy'!H604+'FR-16(7)(v)-12 DIST Energy'!H604","v":-93020},{"$f":"'FR-16(7)(v)-5 PROD Cust'!H604+'FR-16(7)(v)-9 TRANS Cust'!H604+'FR-16(7)(v)-13 DIST Cust'!H604","v":-24950},{"$f":"SUM(G604:I604)","v":-169631},{"$f":"F604-J604","v":0}]
[12,null,{"$f":"'FR-16(7)(v)-1 Functional'!C605","v":"  TOTAL MISCELLANEOUS TAXES"},null,null,{"$f":"SUM(F601:F604)","v":142978},43544,78404,21030,142978,0]
[13]
[14," MISCELLANEOUS EXPENSES"]
[15,null,{"$f":"'FR-16(7)(v)-1 Functional'!C608","v":"PSC MAINT. EXP ON INCREASE"},{"$f":"'FR-16(7)(v)-1 Functional'!D608","v":"K902"},null,{"$f":"'FR-16(7)(v)-14 TOTAL CLASS'!H608","v":25538},{"$f":"'FR-16(7)(v)-3 PROD Demand'!H608+'FR-16(7)(v)-7 TRANS Demand'!H608+'FR-16(7)(v)-11 DIST Demand'!H608","v":12631},{"$f":"'FR-16(7)(v)-4 PROD Energy'!H608+'FR-16(7)(v)-8 TRANS Energy'!H608+'FR-16(7)(v)-12 DIST Energy'!H608","v":8788},{"$f":"'FR-16(7)(v)-5 PROD Cust'!H608+'FR-16(7)(v)-9 TRANS Cust'!H608+'FR-16(7)(v)-13 DIST Cust'!H608","v":4119},{"$f":"SUM(G608:I608)","v":25538},{"$f":"F608-J608","v":0}]
[16,null,{"$f":"'FR-16(7)(v)-1 Functional'!C609","v":"RESERVED FOR FUTURE USE"},{"$f":"'FR-16(7)(v)-1 Functional'!D609","v":"K902"},null,{"$f":"'FR-16(7)(v)-14 TOTAL CLASS'!H609","v":0},{"$f":"'FR-16(7)(v)-3 PROD Demand'!H609+'FR-16(7)(v)-7 TRANS Demand'!H609+'FR-16(7)(v)-11 DIST Demand'!H609","v":0},{"$f":"'FR-16(7)(v)-4 PROD Energy'!H609+'FR-16(7)(v)-8 TRANS Energy'!H609+'FR-16(7)(v)-12 DIST Energy'!H609","v":0},{"$f":"'FR-16(7)(v)-5 PROD Cust'!H609+'FR-16(7)(v)-9 TRANS Cust'!H609+'FR-16(7)(v)-13 DIST Cust'!H609","v":0},{"$f":"SUM(G609:I609)","v":0},{"$f":"F609-J609","v":0}]
[17,null,{"$f":"'FR-16(7)(v)-1 Functional'!C610","v":"  TOTAL MISCELLANEOUS EXPENSES"},null,null,{"$f":"SUM(F608:F609)","v":25538},12631,8788,4119,25538,0]
[18]
[19,"TOTAL OTHER TAX & MISC EXPENSE",null,null," ",{"$f":"F605+F598+F610","v":3678419},3371297,137051,170071,3678419,0]
[20]
[21,"PRELIMINARY SUMMARY"]
[22,null,{"$f":"'FR-16(7)(v)-1 Functional'!C615","v":"TOTAL O&M EXPENSE"},null,null,{"$f":"F549","v":53105892},11425378,39907982,1772532,53105892,0]
[23,null,{"$f":"'FR-16(7)(v)-1 Functional'!C616","v":"TOTAL DEPRECIATION EXPENSE"},null,null,{"$f":"F582","v":15181448},14189551,502754,489143,15181448,0]
[24,null,{"$f":"'FR-16(7)(v)-1 Functional'!C617","v":"TOTAL OTHER TAX & MISC EXPENSE"},null,null,{"$f":"F612","v":3678419},3371297,137051,170071,3678419,0]
[25,null,{"$f":"'FR-16(7)(v)-1 Functional'!C618","v":"  TOTAL OPER EXP EXCL INCOME & REV TAX"},null,null,{"$f":"SUM(F615:F617)","v":71965759},28986226,40547787,2431746,71965759,0]
[]
[{"$f":"co_name","v":"DUKE ENERGY KENTUCKY, INC."},null,null,null,null,null,null,null,null,{"$f":"J1","v":"FR-16(7)(v)-16"}]
[{"$f":"$A$2","v":"DISTR. SEC. CLASSIFIED - ELECTRIC COST OF SERVICE"},null,null,null,null,null,null,null,null,{"$f":"J2","v":"WITNESS RESPONSIBLE:"}]
[{"$f":"case_name","v":"CASE NO: 2019-00271"},null,null,null,null,null,null,null,null,{"$f":"Witness","v":"JAMES E. ZIOLKOWSKI"}]
[{"$f":"data_filing","v":"DATA: 12 MONTHS ACTUAL  & 0 MONTHS ESTIMATED"},null,null,null,null,null,null,null,null,{"$f":"\"PAGE \"&Pages2-3&\" OF \"&Pages2","v":"PAGE 12 OF 15"}]
[{"$f":"type","v":"TYPE OF FILING: \"X\" ORIGINAL   UPDATED    REVISED  "}]
[]
[]
["LINE",null,null,null,null,"TOTAL","CLASSIFIED",null,null,"TOTAL","ALL"]
["NO.","FEDERAL INCOME TAX BASED ON RETURN",null,"ALLO",null,{"$f":"$F$9","v":"DISTR. SEC."},{"$f":"$G$9","v":"DEMAND"},{"$f":"$H$9","v":"ENERGY"},{"$f":"$I$9","v":"CUSTOMER"},"AT ISSUE","OTHER"]
[null,null,"Schedule 9",null,null,null,{"$f":"G10","v":3},{"$f":"H10","v":4},{"$f":"I10","v":5}]
[1,"FEDERAL INCOME TAX DEDUCTIONS"]
[2," AUTOMATIC INTEREST CALCULATION",null,null,null," "]
[3,null,{"$f":"'FR-16(7)(v)-1 Functional'!C632","v":"AUTO PROC INTEREST DED"},{"$f":"'FR-16(7)(v)-1 Functional'!D632","v":"RB99"},null,{"$f":"'FR-16(7)(v)-14 TOTAL CLASS'!H632","v":4810951},{"$f":"'FR-16(7)(v)-3 PROD Demand'!H632+'FR-16(7)(v)-7 TRANS Demand'!H632+'FR-16(7)(v)-11 DIST Demand'!H632","v":4432115},{"$f":"'FR-16(7)(v)-4 PROD Energy'!H632+'FR-16(7)(v)-8 TRANS Energy'!H632+'FR-16(7)(v)-12 DIST Energy'!H632","v":169389},{"$f":"'FR-16(7)(v)-5 PROD Cust'!H632+'FR-16(7)(v)-9 TRANS Cust'!H632+'FR-16(7)(v)-13 DIST Cust'!H632","v":209447},{"$f":"SUM(G632:I632)","v":4810951},{"$f":"F632-J632","v":0}]
[4,null,{"$f":"'FR-16(7)(v)-1 Functional'!C633","v":"  TOTAL INTEREST EXPENSE"},null,null,{"$f":"F632","v":4810951},4432115,169389,209447,4810951,0]
[5]
[6," OTHER DEDUCTIONS"]
[7,null,{"$f":"'FR-16(7)(v)-1 Functional'!C636","v":"DEPREC EXCESS TAX-BOOK"},{"$f":"'FR-16(7)(v)-1 Functional'!D636","v":"DE49"},null,{"$f":"'FR-16(7)(v)-14 TOTAL CLASS'!H636","v":-3600737},{"$f":"'FR-16(7)(v)-3 PROD Demand'!H636+'FR-16(7)(v)-7 TRANS Demand'!H636+'FR-16(7)(v)-11 DIST Demand'!H636","v":-3365487},{"$f":"'FR-16(7)(v)-4 PROD Energy'!H636+'FR-16(7)(v)-8 TRANS Energy'!H636+'FR-16(7)(v)-12 DIST Energy'!H636","v":-119237},{"$f":"'FR-16(7)(v)-5 PROD Cust'!H636+'FR-16(7)(v)-9 TRANS Cust'!H636+'FR-16(7)(v)-13 DIST Cust'!H636","v":-116013},{"$f":"SUM(G636:I636)","v":-3600737},{"$f":"F636-J636","v":0}]
[8,null,{"$f":"'FR-16(7)(v)-1 Functional'!C637","v":"PERMANENT DIFFERENCES"},{"$f":"'FR-16(7)(v)-1 Functional'!D637","v":"A357"},null,{"$f":"'FR-16(7)(v)-14 TOTAL CLASS'!H637","v":-71363},{"$f":"'FR-16(7)(v)-3 PROD Demand'!H637+'FR-16(7)(v)-7 TRANS Demand'!H637+'FR-16(7)(v)-11 DIST Demand'!H637","v":-21733},{"$f":"'FR-16(7)(v)-4 PROD Energy'!H637+'FR-16(7)(v)-8 TRANS Energy'!H637+'FR-16(7)(v)-12 DIST Energy'!H637","v":-39132},{"$f":"'FR-16(7)(v)-5 PROD Cust'!H637+'FR-16(7)(v)-9 TRANS Cust'!H637+'FR-16(7)(v)-13 DIST Cust'!H637","v":-10498},{"$f":"SUM(G637:I637)","v":-71363},{"$f":"F637-J637","v":0}]
[9,null,{"$f":"'FR-16(7)(v)-1 Functional'!C638","v":"TEMPORARY DIFFERENCES"},{"$f":"'FR-16(7)(v)-1 Functional'!D638","v":"DE49"},null,{"$f":"'FR-16(7)(v)-14 TOTAL CLASS'!H638","v":21971152},{"$f":"'FR-16(7)(v)-3 PROD Demand'!H638+'FR-16(7)(v)-7 TRANS Demand'!H638+'FR-16(7)(v)-11 DIST Demand'!H638","v":20535692},{"$f":"'FR-16(7)(v)-4 PROD Energy'!H638+'FR-16(7)(v)-8 TRANS Energy'!H638+'FR-16(7)(v)-12 DIST Energy'!H638","v":727565},{"$f":"'FR-16(7)(v)-5 PROD Cust'!H638+'FR-16(7)(v)-9 TRANS Cust'!H638+'FR-16(7)(v)-13 DIST Cust'!H638","v":707895},{"$f":"SUM(G638:I638)","v":21971152},{"$f":"F638-J638","v":0}]
[10,null,{"$f":"'FR-16(7)(v)-1 Functional'!C639","v":"  TOTAL OTHER DEDUCTIONS"},null,null,{"$f":"SUM(F636:F638)","v":18299052},17148472,569196,581384,18299052,0]
[11]
[12,"NET DEDUCTIONS AND ADDITIONS",null,null,null,{"$f":"F639+F633","v":23110003},21580587,738585,790831,23110003,0]
[13]
[14," FED DEFERRED INCOME TAX (410 & 411)"]
[15,null,{"$f":"'FR-16(7)(v)-1 Functional'!C644","v":"DEFERRED INCOME TAXES - NET"},{"$f":"'FR-16(7)(v)-1 Functional'!D644","v":"OM39"},null,{"$f":"'FR-16(7)(v)-14 TOTAL CLASS'!H644","v":3534889},{"$f":"'FR-16(7)(v)-3 PROD Demand'!H644+'FR-16(7)(v)-7 TRANS Demand'!H644+'FR-16(7)(v)-11 DIST Demand'!H644","v":760518},{"$f":"'FR-16(7)(v)-4 PROD Energy'!H644+'FR-16(7)(v)-8 TRANS Energy'!H644+'FR-16(7)(v)-12 DIST Energy'!H644","v":2656377},{"$f":"'FR-16(7)(v)-5 PROD Cust'!H644+'FR-16(7)(v)-9 TRANS Cust'!H644+'FR-16(7)(v)-13 DIST Cust'!H644","v":117994},{"$f":"SUM(G644:I644)","v":3534889},{"$f":"F644-J644","v":0}]
[16,null,{"$f":"'FR-16(7)(v)-1 Functional'!C645","v":"AMORT OF DEFERRED MERGER COST"},{"$f":"'FR-16(7)(v)-1 Functional'!D645","v":"A357"},null,{"$f":"'FR-16(7)(v)-14 TOTAL CLASS'!H645","v":0},{"$f":"'FR-16(7)(v)-3 PROD Demand'!H645+'FR-16(7)(v)-7 TRANS Demand'!H645+'FR-16(7)(v)-11 DIST Demand'!H645","v":0},{"$f":"'FR-16(7)(v)-4 PROD Energy'!H645+'FR-16(7)(v)-8 TRANS Energy'!H645+'FR-16(7)(v)-12 DIST Energy'!H645","v":0},{"$f":"'FR-16(7)(v)-5 PROD Cust'!H645+'FR-16(7)(v)-9 TRANS Cust'!H645+'FR-16(7)(v)-13 DIST Cust'!H645","v":0},{"$f":"SUM(G645:I645)","v":0},{"$f":"F645-J645","v":0}]
[17,null,{"$f":"'FR-16(7)(v)-1 Functional'!C646","v":"DIT ADJUSTMENT - S/L DEPRECIATION"},{"$f":"'FR-16(7)(v)-1 Functional'!D646","v":"DE49"},null,{"$f":"'FR-16(7)(v)-14 TOTAL CLASS'!H646","v":0},{"$f":"'FR-16(7)(v)-3 PROD Demand'!H646+'FR-16(7)(v)-7 TRANS Demand'!H646+'FR-16(7)(v)-11 DIST Demand'!H646","v":0},{"$f":"'FR-16(7)(v)-4 PROD Energy'!H646+'FR-16(7)(v)-8 TRANS Energy'!H646+'FR-16(7)(v)-12 DIST Energy'!H646","v":0},{"$f":"'FR-16(7)(v)-5 PROD Cust'!H646+'FR-16(7)(v)-9 TRANS Cust'!H646+'FR-16(7)(v)-13 DIST Cust'!H646","v":0},{"$f":"SUM(G646:I646)","v":0},{"$f":"F646-J646","v":0}]
[18,null,{"$f":"'FR-16(7)(v)-1 Functional'!C647","v":"DIT ADJUSTMENT - ARAM"},{"$f":"'FR-16(7)(v)-1 Functional'!D647","v":"K201"},null,{"$f":"'FR-16(7)(v)-14 TOTAL CLASS'!H647","v":-29100},{"$f":"'FR-16(7)(v)-3 PROD Demand'!H647+'FR-16(7)(v)-7 TRANS Demand'!H647+'FR-16(7)(v)-11 DIST Demand'!H647","v":-29100},{"$f":"'FR-16(7)(v)-4 PROD Energy'!H647+'FR-16(7)(v)-8 TRANS Energy'!H647+'FR-16(7)(v)-12 DIST Energy'!H647","v":0},{"$f":"'FR-16(7)(v)-5 PROD Cust'!H647+'FR-16(7)(v)-9 TRANS Cust'!H647+'FR-16(7)(v)-13 DIST Cust'!H647","v":0},{"$f":"SUM(G647:I647)","v":-29100},{"$f":"F647-J647","v":0}]
[19,null,{"$f":"'FR-16(7)(v)-1 Functional'!C648","v":"DIT ADJUSTMENT - AMORT OF EXCESS DEF TAXES"},{"$f":"'FR-16(7)(v)-1 Functional'!D648","v":"A357"},null,{"$f":"'FR-16(7)(v)-14 TOTAL CLASS'!H648","v":-625786},{"$f":"'FR-16(7)(v)-3 PROD Demand'!H648+'FR-16(7)(v)-7 TRANS Demand'!H648+'FR-16(7)(v)-11 DIST Demand'!H648","v":-190582},{"$f":"'FR-16(7)(v)-4 PROD Energy'!H648+'FR-16(7)(v)-8 TRANS Energy'!H648+'FR-16(7)(v)-12 DIST Energy'!H648","v":-343150},{"$f":"'FR-16(7)(v)-5 PROD Cust'!H648+'FR-16(7)(v)-9 TRANS Cust'!H648+'FR-16(7)(v)-13 DIST Cust'!H648","v":-92054},{"$f":"SUM(G648:I648)","v":-625786},{"$f":"F648-J648","v":0}]
[20,null,{"$f":"'FR-16(7)(v)-1 Functional'!C649","v":"  TOTAL FED DEF IT (410 & 411)"},null,null,{"$f":"SUM(F644:F648)","v":2880003},540836,2313227,25940,2880003,0]
[21]
[22," AMORT INV TAX CREDIT"]
[23,null,{"$f":"'FR-16(7)(v)-1 Functional'!C652","v":"AMORTIZE ITC"},{"$f":"'FR-16(7)(v)-1 Functional'!D652","v":"NP29"},null,{"$f":"'FR-16(7)(v)-14 TOTAL CLASS'!H652","v":110},{"$f":"'FR-16(7)(v)-3 PROD Demand'!H652+'FR-16(7)(v)-7 TRANS Demand'!H652+'FR-16(7)(v)-11 DIST Demand'!H652","v":103},{"$f":"'FR-16(7)(v)-4 PROD Energy'!H652+'FR-16(7)(v)-8 TRANS Energy'!H652+'FR-16(7)(v)-12 DIST Energy'!H652","v":2},{"$f":"'FR-16(7)(v)-5 PROD Cust'!H652+'FR-16(7)(v)-9 TRANS Cust'!H652+'FR-16(7)(v)-13 DIST Cust'!H652","v":5},{"$f":"SUM(G652:I652)","v":110},{"$f":"F652-J652","v":0}]
[24,null,{"$f":"'FR-16(7)(v)-1 Functional'!C653","v":"  TOTAL AMORTIZED ITC"},null,null,{"$f":"SUM(F652:F652)","v":110},103,2,5,110,0]
[25]
[26," OTHER FEDERAL TAX CREDITS"]
[27,null,{"$f":"'FR-16(7)(v)-1 Functional'!C656","v":"FUEL TAX CREDIT"},{"$f":"'FR-16(7)(v)-1 Functional'!D656","v":"K301"},null,{"$f":"'FR-16(7)(v)-14 TOTAL CLASS'!H656","v":0},{"$f":"'FR-16(7)(v)-3 PROD Demand'!H656+'FR-16(7)(v)-7 TRANS Demand'!H656+'FR-16(7)(v)-11 DIST Demand'!H656","v":0},{"$f":"'FR-16(7)(v)-4 PROD Energy'!H656+'FR-16(7)(v)-8 TRANS Energy'!H656+'FR-16(7)(v)-12 DIST Energy'!H656","v":0},{"$f":"'FR-16(7)(v)-5 PROD Cust'!H656+'FR-16(7)(v)-9 TRANS Cust'!H656+'FR-16(7)(v)-13 DIST Cust'!H656","v":0},{"$f":"SUM(G656:I656)","v":0},{"$f":"F656-J656","v":0}]
[28,null,{"$f":"'FR-16(7)(v)-1 Functional'!C657","v":"R&D CREDIT - SECTION 41"},{"$f":"'FR-16(7)(v)-1 Functional'!D657","v":"A315"},null,{"$f":"'FR-16(7)(v)-14 TOTAL CLASS'!H657","v":0},{"$f":"'FR-16(7)(v)-3 PROD Demand'!H657+'FR-16(7)(v)-7 TRANS Demand'!H657+'FR-16(7)(v)-11 DIST Demand'!H657","v":0},{"$f":"'FR-16(7)(v)-4 PROD Energy'!H657+'FR-16(7)(v)-8 TRANS Energy'!H657+'FR-16(7)(v)-12 DIST Energy'!H657","v":0},{"$f":"'FR-16(7)(v)-5 PROD Cust'!H657+'FR-16(7)(v)-9 TRANS Cust'!H657+'FR-16(7)(v)-13 DIST Cust'!H657","v":0},{"$f":"SUM(G657:I657)","v":0},{"$f":"F657-J657","v":0}]
[29,null,{"$f":"'FR-16(7)(v)-1 Functional'!C658","v":"  TOTAL OTHER FEDERAL TAX CREDITS"},null,null,{"$f":"SUM(F656:F657)","v":0},0,0,0,0,0]
[30]
[31,"PRELIMINARY SUMMARY"]
[32,null,{"$f":"'FR-16(7)(v)-1 Functional'!C661","v":"TOTAL FED DEF IT (410 & 411)"},null,null,{"$f":"F649","v":2880003},540836,2313227,25940,2880003,0]
[33,null,{"$f":"'FR-16(7)(v)-1 Functional'!C662","v":"TOTAL AMORTIZED ITC & OTHER FEDERAL TAX CREDITS"},null,null,{"$f":"-F653-F658","v":-110},-103,-2,-5,-110,0]
[34,null,{"$f":"'FR-16(7)(v)-1 Functional'!C663","v":"  TOTAL FEDERAL TAX ADJUSTMENTS"},null,null,{"$f":"SUM(F661:F662)","v":2879893},540733,2313225,25935,2879893,0]
[35]
[36,"FEDERAL INCOME TAX COMPUTATION"]
[37,null,"RETURN ON RATE BASE",null,null,{"$f":"F433","v":16275027},{"$f":"G433","v":14993459},{"$f":"H433","v":573028},{"$f":"I433","v":708540},{"$f":"J433","v":16275027},{"$f":"F666-J666","v":0}]
[38,null,{"$f":"'FR-16(7)(v)-1 Functional'!C667","v":"NET DEDUCTIONS AND ADDITIONS"},null,null,{"$f":"-F641","v":-23110003},{"$f":"-G641","v":-21580587},{"$f":"-H641","v":-738585},{"$f":"-I641","v":-790831},{"$f":"-J641","v":-23110003},{"$f":"F667-J667","v":0}]
[39,null,{"$f":"'FR-16(7)(v)-1 Functional'!C668","v":"TOTAL FEDERAL TAX ADJUSTMENTS"},null,null,{"$f":"F663","v":2879893},{"$f":"G663","v":540733},{"$f":"H663","v":2313225},{"$f":"I663","v":25935},{"$f":"J663","v":2879893},{"$f":"F668-J668","v":0}]
[40,null,"TOTAL STATE PROV DEF IT (410 & 411)",null,null,{"$f":"F707","v":620988},{"$f":"G707","v":189121},{"$f":"H707","v":340519},{"$f":"I707","v":91348},{"$f":"J707","v":620988},{"$f":"F669-J669","v":0}]
[41,null,"RESERVED",null,null,{"$f":"F24","v":0},{"$f":"G24","v":0},{"$f":"H24","v":0},{"$f":"I24","v":0},{"$f":"J24","v":0},{"$f":"F670-J670","v":0}]
[42,null,{"$f":"'FR-16(7)(v)-1 Functional'!C671","v":"  BASE FOR FIT COMPUATION"},null,null,{"$f":"SUM(F666:F670)","v":-3334095},-5857274,2488187,34992,-3334095,0]
[43]
[44,null,{"$f":"'FR-16(7)(v)-1 Functional'!C673","v":"FIT FACTOR K190/(1-K190)"},null,null,{"$f":"ROUND(FIT/(1-FIT),9)","v":0.26582278500000001},{"$f":"ROUND(FIT/(1-FIT),9)","v":0.26582278500000001},{"$f":"ROUND(FIT/(1-FIT),9)","v":0.26582278500000001},{"$f":"ROUND(FIT/(1-FIT),9)","v":0.26582278500000001},null,{"$f":"ROUND(FIT/(1-FIT),9)","v":0.26582278500000001}]
[45,null,{"$f":"'FR-16(7)(v)-1 Functional'!C674","v":"PRELIM FED INCOME TAX"},null,null,{"$f":"'FR-16(7)(v)-14 TOTAL CLASS'!H674","v":-886279},{"$f":"F674-SUM(H674:I674)","v":-1556997},{"$f":"'FR-16(7)(v)-4 PROD Energy'!H674+'FR-16(7)(v)-8 TRANS Energy'!H674+'FR-16(7)(v)-12 DIST Energy'!H674","v":661417},{"$f":"'FR-16(7)(v)-5 PROD Cust'!H674+'FR-16(7)(v)-9 TRANS Cust'!H674+'FR-16(7)(v)-13 DIST Cust'!H674","v":9301},{"$f":"SUM(G674:I674)","v":-886279},{"$f":"F674-J674","v":0}]
[46,null,{"$f":"'FR-16(7)(v)-1 Functional'!C675","v":"TOTAL FEDERAL TAX ADJUSTMENTS"},null,null,{"$f":"F663","v":2879893},{"$f":"G663","v":540733},{"$f":"H663","v":2313225},{"$f":"I663","v":25935},{"$f":"J663","v":2879893},{"$f":"F675-J675","v":0}]
[47,null,{"$f":"'FR-16(7)(v)-1 Functional'!C676","v":"  NET FED INCOME TAX ALLOWABLE"},null,null,{"$f":"SUM(F674:F675)","v":1993614},-1016264,2974642,35236,1993614,0]
[48]
[49,"INCOME TAX BASED ON RETURN"]
[50,"FEDERAL INCOME TAX PAYABLE"]
[51,null,{"$f":"'FR-16(7)(v)-1 Functional'!C680","v":"PRELIM FEDERAL INCOME TAX"},null,null,{"$f":"F674","v":-886279},-1556997,661417,9301,-886279,0]
[53,null,{"$f":"'FR-16(7)(v)-1 Functional'!C681","v":"  NET FED INCOME TAX PAYABLE"},null,null,{"$f":"SUM(F680:F680)","v":-886279},-1556997,661417,9301,-886279,0]
[]
[{"$f":"co_name","v":"DUKE ENERGY KENTUCKY, INC."},null,null,null,null,null,null,null,null,{"$f":"J1","v":"FR-16(7)(v)-16"}]
[{"$f":"$A$2","v":"DISTR. SEC. CLASSIFIED - ELECTRIC COST OF SERVICE"},null,null,null,null,null,null,null,null,{"$f":"J2","v":"WITNESS RESPONSIBLE:"}]
[{"$f":"case_name","v":"CASE NO: 2019-00271"},null,null,null,null,null,null,null,null,{"$f":"Witness","v":"JAMES E. ZIOLKOWSKI"}]
[{"$f":"data_filing","v":"DATA: 12 MONTHS ACTUAL  & 0 MONTHS ESTIMATED"},null,null,null,null,null,null,null,null,{"$f":"\"PAGE \"&Pages2-2&\" OF \"&Pages2","v":"PAGE 13 OF 15"}]
[{"$f":"type","v":"TYPE OF FILING: \"X\" ORIGINAL   UPDATED    REVISED  "}]
[]
[]
["LINE",null,null,null,null,"TOTAL","CLASSIFIED",null,null,"TOTAL","ALL"]
["NO.","STATE INCOME TAX BASED ON RETURN",null,"Allo",null,"GAS",{"$f":"$G$9","v":"DEMAND"},{"$f":"$H$9","v":"ENERGY"},{"$f":"$I$9","v":"CUSTOMER"},"AT ISSUE","OTHER"]
[null,null,"Schedule 9.1",null,null,null,{"$f":"$G$10","v":3},{"$f":"$H$10","v":4},{"$f":"$I$10","v":5}]
[1,"DEDUCTIONS IN ADDITION TO Y871"]
[2,"KY TAXABLE INCOME ADJUSTMENT",null,{"$f":"'FR-16(7)(v)-1 Functional'!D694","v":"NP29"},null,{"$f":"'FR-16(7)(v)-14 TOTAL CLASS'!H694","v":2200792},{"$f":"'FR-16(7)(v)-3 PROD Demand'!H694+'FR-16(7)(v)-7 TRANS Demand'!H694+'FR-16(7)(v)-11 DIST Demand'!H694","v":2078660},{"$f":"'FR-16(7)(v)-4 PROD Energy'!H694+'FR-16(7)(v)-8 TRANS Energy'!H694+'FR-16(7)(v)-12 DIST Energy'!H694","v":31263},{"$f":"'FR-16(7)(v)-5 PROD Cust'!H694+'FR-16(7)(v)-9 TRANS Cust'!H694+'FR-16(7)(v)-13 DIST Cust'!H694","v":90869},{"$f":"SUM(G694:I694)","v":2200792},{"$f":"F694-J694","v":0}]
[3,"RESERVED FOR FUTURE USE",null,{"$f":"'FR-16(7)(v)-1 Functional'!D695","v":"NP29"},null,{"$f":"'FR-16(7)(v)-14 TOTAL CLASS'!H695","v":0},{"$f":"'FR-16(7)(v)-3 PROD Demand'!H695+'FR-16(7)(v)-7 TRANS Demand'!H695+'FR-16(7)(v)-11 DIST Demand'!H695","v":0},{"$f":"'FR-16(7)(v)-4 PROD Energy'!H695+'FR-16(7)(v)-8 TRANS Energy'!H695+'FR-16(7)(v)-12 DIST Energy'!H695","v":0},{"$f":"'FR-16(7)(v)-5 PROD Cust'!H695+'FR-16(7)(v)-9 TRANS Cust'!H695+'FR-16(7)(v)-13 DIST Cust'!H695","v":0},{"$f":"SUM(G695:I695)","v":0},{"$f":"F695-J695","v":0}]
[4,"  DEDUCTIONS IN ADD TO Y871",null,null,null,{"$f":"SUM(F694:F695)","v":2200792},2078660,31263,90869,2200792,0]
[5]
[6,"STATE INCOME TAX ADJUSTMENTS"]
[7,"STATE PROV DEF INC TAX (410 & 411)"]
[8,"OTHER DEFERRED INCOME TAXES - NET",null,{"$f":"'FR-16(7)(v)-1 Functional'!D700","v":"A357"},null,{"$f":"'FR-16(7)(v)-14 TOTAL CLASS'!H700","v":620988},{"$f":"'FR-16(7)(v)-3 PROD Demand'!H700+'FR-16(7)(v)-7 TRANS Demand'!H700+'FR-16(7)(v)-11 DIST Demand'!H700","v":189121},{"$f":"'FR-16(7)(v)-4 PROD Energy'!H700+'FR-16(7)(v)-8 TRANS Energy'!H700+'FR-16(7)(v)-12 DIST Energy'!H700","v":340519},{"$f":"'FR-16(7)(v)-5 PROD Cust'!H700+'FR-16(7)(v)-9 TRANS Cust'!H700+'FR-16(7)(v)-13 DIST Cust'!H700","v":91348},{"$f":"SUM(G700:I700)","v":620988},{"$f":"F700-J700","v":0}]
[9,"  TOT STATE PROV DEF IT (410 & 411)",null,null,null,{"$f":"SUM(F700)","v":620988},189121,340519,91348,620988,0]
[10]
[11,"OTHER SIT ADJUSTMENTS"]
[12,"CURRENT YEAR PAYABLE ADJUSTMENT",null,{"$f":"'FR-16(7)(v)-1 Functional'!D704","v":"NP29"},null,{"$f":"'FR-16(7)(v)-14 TOTAL CLASS'!H704","v":0},{"$f":"'FR-16(7)(v)-3 PROD Demand'!H704+'FR-16(7)(v)-7 TRANS Demand'!H704+'FR-16(7)(v)-11 DIST Demand'!H704","v":0},{"$f":"'FR-16(7)(v)-4 PROD Energy'!H704+'FR-16(7)(v)-8 TRANS Energy'!H704+'FR-16(7)(v)-12 DIST Energy'!H704","v":0},{"$f":"'FR-16(7)(v)-5 PROD Cust'!H704+'FR-16(7)(v)-9 TRANS Cust'!H704+'FR-16(7)(v)-13 DIST Cust'!H704","v":0},{"$f":"SUM(G704:I704)","v":0},{"$f":"F704-J704","v":0}]
[13,"  OTHER SIT ADJUSMENTS",null,null,null,{"$f":"SUM(F704)","v":0},0,0,0,0,0]
[14]
[15,"TOTAL STATE INC TAX ADJUSTMENT",null,null,null,{"$f":"F705+F701","v":620988},189121,340519,91348,620988,0]
[16]
[17,"INCOME TAX BASED ON RETURN"]
[18,"SUMMARY OF SIT CALCULATION"]
[19,"RETURN ON RATE BASE",null,null,null,{"$f":"F433","v":16275027},{"$f":"G433","v":14993459},{"$f":"H433","v":573028},{"$f":"I433","v":708540},{"$f":"J433","v":16275027},{"$f":"F711-J711","v":0}]
[20,"NET FED INCOME TAX ALLOWABLE",null,null,null,{"$f":"F676","v":1993614},{"$f":"G676","v":-1016264},{"$f":"H676","v":2974642},{"$f":"I676","v":35236},{"$f":"J676","v":1993614},0]
[21,"NET FED. DED. AND ADDITIONS",null,null,null,{"$f":"-F641","v":-23110003},{"$f":"-G641","v":-21580587},{"$f":"-H641","v":-738585},{"$f":"-I641","v":-790831},{"$f":"-J641","v":-23110003},0]
[22,"DEDUCTIONS IN ADD TO Y871",null,null,null,{"$f":"-F696","v":-2200792},{"$f":"-G696","v":-2078660},{"$f":"-H696","v":-31263},{"$f":"-I696","v":-90869},{"$f":"-J696","v":-2200792},0]
[23,"RESERVED",null,null,null,{"$f":"F24","v":0},{"$f":"G24","v":0},{"$f":"H24","v":0},{"$f":"I24","v":0},{"$f":"J24","v":0},0]
[24,"TOTAL STATE INC TAX ADJ",null,null,null,{"$f":"F707","v":620988},{"$f":"G707","v":189121},{"$f":"H707","v":340519},{"$f":"I707","v":91348},{"$f":"J707","v":620988},0]
[25,"  BASE FOR SIT COMPUTATION",null,null,null,{"$f":"SUM(F711:F716)","v":-6421166},-9492931,3118341,-46576,-6421166,0]
[26]
[27,"SIT FACTOR K192/(1-K192)",null,null,null,{"$f":"ROUND(SIT/(1-SIT),8)","v":5.2282660000000002E-2},{"$f":"ROUND(SIT/(1-SIT),8)","v":5.2282660000000002E-2},{"$f":"ROUND(SIT/(1-SIT),8)","v":5.2282660000000002E-2},{"$f":"ROUND(SIT/(1-SIT),8)","v":5.2282660000000002E-2},null,{"$f":"ROUND(SIT/(1-SIT),8)","v":5.2282660000000002E-2}]
[28,"PRELIMINARY STATE INCOME TAX",null,null,null,{"$f":"ROUND(F717*F719,0)","v":-335716},{"$f":"'FR-16(7)(v)-3 PROD Demand'!H720+'FR-16(7)(v)-7 TRANS Demand'!H720+'FR-16(7)(v)-11 DIST Demand'!H720","v":-496317},{"$f":"ROUND(H717*H719,0)","v":163035},{"$f":"ROUND(I717*I719,0)","v":-2435},{"$f":"SUM(G720:I720)","v":-335717},{"$f":"F720-J720","v":1}]
[29,"TOTAL STATE INCOME TAX ADJ.",null,null,null,{"$f":"F707","v":620988},{"$f":"G707","v":189121},{"$f":"H707","v":340519},{"$f":"I707","v":91348},{"$f":"J707","v":620988},{"$f":"F721-J721","v":0}]
[30,"  NET STATE INC TAX ALLOWABLE",null,null,null,{"$f":"F721+F720","v":285272},-307196,503554,88913,285271,1]
[31]
[32,"STATE INCOME TAX PAYABLE"]
[33,"PRELIMINARY STATE INCOME TAX",null,null,null,{"$f":"F720","v":-335716},{"$f":"G720","v":-496317},{"$f":"H720","v":163035},{"$f":"I720","v":-2435},{"$f":"J720","v":-335717},{"$f":"F725-J725","v":1}]
[34,"OTHER SIT ADJUSTMENTS",null,null,null,{"$f":"F705","v":0},{"$f":"G705","v":0},{"$f":"H705","v":0},{"$f":"I705","v":0},{"$f":"J705","v":0},{"$f":"F726-J726","v":0}]
[35,"  NET STATE INCOME TAX PAYABLE",null,null,null,{"$f":"F725+F726","v":-335716},-496317,163035,-2435,-335717,1]
[36]
[37,"COMPOSITE TAX RATE",null,null,null,{"$f":"(SIT*(1-FIT))+((1-SIT)*(1-FIT)*RevTax)+FIT","v":0.24925115},0.24925115,0.24925115,0.24925115,0.24925115,0.24925115]
[]
[{"$f":"co_name","v":"DUKE ENERGY KENTUCKY, INC."},null,null,null,null,null,null,null,null,{"$f":"J1","v":"FR-16(7)(v)-16"}]
[{"$f":"$A$2","v":"DISTR. SEC. CLASSIFIED - ELECTRIC COST OF SERVICE"},null,null,null,null,null,null,null,null,{"$f":"J2","v":"WITNESS RESPONSIBLE:"}]
[{"$f":"case_name","v":"CASE NO: 2019-00271"},null,null,null,null,null,null,null,null,{"$f":"Witness","v":"JAMES E. ZIOLKOWSKI"}]
[{"$f":"data_filing","v":"DATA: 12 MONTHS ACTUAL  & 0 MONTHS ESTIMATED"},null,null,null,null,null,null,null,null,{"$f":"\"PAGE \"&Pages2-1&\" OF \"&Pages2","v":"PAGE 14 OF 15"}]
[{"$f":"type","v":"TYPE OF FILING: \"X\" ORIGINAL   UPDATED    REVISED  "}]
[]
[]
["LINE",null,null,null,null,"TOTAL","CLASSIFIED",null,null,"TOTAL","ALL"]
["NO.","COST OF SERVICE COMPUTATION",null,"ALLO",null,{"$f":"$F$9","v":"DISTR. SEC."},{"$f":"G9","v":"DEMAND"},"ENERGY","CUSTOMER","AT ISSUE","OTHER"]
[null,null,"Schedule 10",null,null,null,3,4,5]
[1,"OTHER OPERATING REVENUES"]
[2,null,{"$f":"'FR-16(7)(v)-1 Functional'!C742","v":"MISC SERVICE REVENUE"},{"$f":"'FR-16(7)(v)-1 Functional'!D742","v":"D249"},null,{"$f":"'FR-16(7)(v)-14 TOTAL CLASS'!H742","v":59711},{"$f":"'FR-16(7)(v)-3 PROD Demand'!H742+'FR-16(7)(v)-7 TRANS Demand'!H742+'FR-16(7)(v)-11 DIST Demand'!H742","v":53144},{"$f":"'FR-16(7)(v)-4 PROD Energy'!H742+'FR-16(7)(v)-8 TRANS Energy'!H742+'FR-16(7)(v)-12 DIST Energy'!H742","v":0},{"$f":"'FR-16(7)(v)-5 PROD Cust'!H742+'FR-16(7)(v)-9 TRANS Cust'!H742+'FR-16(7)(v)-13 DIST Cust'!H742","v":6567},{"$f":"SUM(G742:I742)","v":59711},{"$f":"F742-J742","v":0}]
[3,null,{"$f":"'FR-16(7)(v)-1 Functional'!C743","v":"INTERDEPARTMENTAL"},{"$f":"'FR-16(7)(v)-1 Functional'!D743","v":"K902"},null,{"$f":"'FR-16(7)(v)-14 TOTAL CLASS'!H743","v":0},{"$f":"'FR-16(7)(v)-3 PROD Demand'!H743+'FR-16(7)(v)-7 TRANS Demand'!H743+'FR-16(7)(v)-11 DIST Demand'!H743","v":0},{"$f":"'FR-16(7)(v)-4 PROD Energy'!H743+'FR-16(7)(v)-8 TRANS Energy'!H743+'FR-16(7)(v)-12 DIST Energy'!H743","v":0},{"$f":"'FR-16(7)(v)-5 PROD Cust'!H743+'FR-16(7)(v)-9 TRANS Cust'!H743+'FR-16(7)(v)-13 DIST Cust'!H743","v":0},0,{"$f":"F743-J743","v":0}]
[4,null,{"$f":"'FR-16(7)(v)-1 Functional'!C744","v":"POLE & LINE ATTACHMENTS"},{"$f":"'FR-16(7)(v)-1 Functional'!D744","v":"D249"},null,{"$f":"'FR-16(7)(v)-14 TOTAL CLASS'!H744","v":50849},{"$f":"'FR-16(7)(v)-3 PROD Demand'!H744+'FR-16(7)(v)-7 TRANS Demand'!H744+'FR-16(7)(v)-11 DIST Demand'!H744","v":45257},{"$f":"'FR-16(7)(v)-4 PROD Energy'!H744+'FR-16(7)(v)-8 TRANS Energy'!H744+'FR-16(7)(v)-12 DIST Energy'!H744","v":0},{"$f":"'FR-16(7)(v)-5 PROD Cust'!H744+'FR-16(7)(v)-9 TRANS Cust'!H744+'FR-16(7)(v)-13 DIST Cust'!H744","v":5592},50849,0]
[5,null,{"$f":"'FR-16(7)(v)-1 Functional'!C745","v":"RENTS"},{"$f":"'FR-16(7)(v)-1 Functional'!D745","v":"D249"},null,{"$f":"'FR-16(7)(v)-14 TOTAL CLASS'!H745","v":250181},{"$f":"'FR-16(7)(v)-3 PROD Demand'!H745+'FR-16(7)(v)-7 TRANS Demand'!H745+'FR-16(7)(v)-11 DIST Demand'!H745","v":222667},{"$f":"'FR-16(7)(v)-4 PROD Energy'!H745+'FR-16(7)(v)-8 TRANS Energy'!H745+'FR-16(7)(v)-12 DIST Energy'!H745","v":0},{"$f":"'FR-16(7)(v)-5 PROD Cust'!H745+'FR-16(7)(v)-9 TRANS Cust'!H745+'FR-16(7)(v)-13 DIST Cust'!H745","v":27514},250181,0]
[6,null,{"$f":"'FR-16(7)(v)-1 Functional'!C746","v":"TRANSMISSION CHARGE PTP"},{"$f":"'FR-16(7)(v)-1 Functional'!D746","v":"T229"},null,{"$f":"'FR-16(7)(v)-14 TOTAL CLASS'!H746","v":39242},{"$f":"'FR-16(7)(v)-3 PROD Demand'!H746+'FR-16(7)(v)-7 TRANS Demand'!H746+'FR-16(7)(v)-11 DIST Demand'!H746","v":39242},{"$f":"'FR-16(7)(v)-4 PROD Energy'!H746+'FR-16(7)(v)-8 TRANS Energy'!H746+'FR-16(7)(v)-12 DIST Energy'!H746","v":0},{"$f":"'FR-16(7)(v)-5 PROD Cust'!H746+'FR-16(7)(v)-9 TRANS Cust'!H746+'FR-16(7)(v)-13 DIST Cust'!H746","v":0},39242,{"$f":"F746-J746","v":0}]
[7,null,{"$f":"'FR-16(7)(v)-1 Functional'!C747","v":"PJM REACTIVE REVENUE"},{"$f":"'FR-16(7)(v)-1 Functional'!D747","v":"K401"},null,{"$f":"'FR-16(7)(v)-14 TOTAL CLASS'!H747","v":0},{"$f":"'FR-16(7)(v)-3 PROD Demand'!H747+'FR-16(7)(v)-7 TRANS Demand'!H747+'FR-16(7)(v)-11 DIST Demand'!H747","v":0},{"$f":"'FR-16(7)(v)-4 PROD Energy'!H747+'FR-16(7)(v)-8 TRANS Energy'!H747+'FR-16(7)(v)-12 DIST Energy'!H747","v":0},{"$f":"'FR-16(7)(v)-5 PROD Cust'!H747+'FR-16(7)(v)-9 TRANS Cust'!H747+'FR-16(7)(v)-13 DIST Cust'!H747","v":0},0,{"$f":"F747-J747","v":0}]
[8,null,{"$f":"'FR-16(7)(v)-1 Functional'!C748","v":"OTHER TRANSMISSION REVENUES"},{"$f":"'FR-16(7)(v)-1 Functional'!D748","v":"T229"},null,{"$f":"'FR-16(7)(v)-14 TOTAL CLASS'!H748","v":6632},{"$f":"'FR-16(7)(v)-3 PROD Demand'!H748+'FR-16(7)(v)-7 TRANS Demand'!H748+'FR-16(7)(v)-11 DIST Demand'!H748","v":6632},{"$f":"'FR-16(7)(v)-4 PROD Energy'!H748+'FR-16(7)(v)-8 TRANS Energy'!H748+'FR-16(7)(v)-12 DIST Energy'!H748","v":0},{"$f":"'FR-16(7)(v)-5 PROD Cust'!H748+'FR-16(7)(v)-9 TRANS Cust'!H748+'FR-16(7)(v)-13 DIST Cust'!H748","v":0},6632,{"$f":"F748-J748","v":0}]
[9,null,{"$f":"'FR-16(7)(v)-1 Functional'!C749","v":"FIXED BILL PREMIUM"},{"$f":"'FR-16(7)(v)-1 Functional'!D749","v":"K902"},null,{"$f":"'FR-16(7)(v)-14 TOTAL CLASS'!H749","v":0},{"$f":"'FR-16(7)(v)-3 PROD Demand'!H749+'FR-16(7)(v)-7 TRANS Demand'!H749+'FR-16(7)(v)-11 DIST Demand'!H749","v":0},{"$f":"'FR-16(7)(v)-4 PROD Energy'!H749+'FR-16(7)(v)-8 TRANS Energy'!H749+'FR-16(7)(v)-12 DIST Energy'!H749","v":0},{"$f":"'FR-16(7)(v)-5 PROD Cust'!H749+'FR-16(7)(v)-9 TRANS Cust'!H749+'FR-16(7)(v)-13 DIST Cust'!H749","v":0},0,0]
[10,null,{"$f":"'FR-16(7)(v)-1 Functional'!C750","v":"  TOTAL OTHER OPERATING REVS"},null,null,{"$f":"SUM(F742:F749)","v":406615},366942,0,39673,406615,0]
[11]
[12,"COST OF SERVICE COMPUTATION"]
[13,null,{"$f":"'FR-16(7)(v)-1 Functional'!C753","v":"TOTAL OP EXP EXC INC & REV TAX"},null,null,{"$f":"F618","v":71965759},{"$f":"G618","v":28986226},{"$f":"H618","v":40547787},{"$f":"I618","v":2431746},{"$f":"J618","v":71965759},{"$f":"F753-J753","v":0}]
[14,null,"RETURN ON RATE BASE",null,null,{"$f":"F433","v":16275027},{"$f":"G433","v":14993459},{"$f":"H433","v":573028},{"$f":"I433","v":708540},{"$f":"J433","v":16275027},0]
[15,null,{"$f":"'FR-16(7)(v)-1 Functional'!C755","v":"NET FED INCOME TAX ALLOWABLE"},null,null,{"$f":"F676","v":1993614},{"$f":"G676","v":-1016264},{"$f":"H676","v":2974642},{"$f":"I676","v":35236},{"$f":"J676","v":1993614},0]
[16,null,{"$f":"'FR-16(7)(v)-1 Functional'!C756","v":"NET STATE INCOME TAX ALLOWABLE"},null,null,{"$f":"F722","v":285272},{"$f":"G722","v":-307196},{"$f":"H722","v":503554},{"$f":"I722","v":88913},{"$f":"J722","v":285271},1]
[17,null,{"$f":"'FR-16(7)(v)-1 Functional'!C757","v":"TOTAL OTHER OPERATING REVENUES"},null,null,{"$f":"-F750","v":-406615},{"$f":"-G750","v":-366942},{"$f":"-H750","v":0},{"$f":"-I750","v":-39673},{"$f":"-J750","v":-406615},0]
[18,null,{"$f":"'FR-16(7)(v)-1 Functional'!C758","v":"  SUBTOTAL B"},null,null,{"$f":"SUM(F752:F757)","v":90113057},{"$f":"SUM(G752:G757)","v":42289283},{"$f":"SUM(H752:H757)","v":44599011},{"$f":"SUM(I752:I757)","v":3224762},{"$f":"SUM(J752:J757)","v":90113056},1]
[19]
[20,null,{"$f":"'FR-16(7)(v)-1 Functional'!C760","v":"TOTAL OTHER OPERATING REVENUES"},null,null,{"$f":"-F757","v":406615},{"$f":"-G757","v":366942},{"$f":"-H757","v":0},{"$f":"-I757","v":39673},{"$f":"-J757","v":406615},{"$f":"F760-J760","v":0}]
[21,null,{"$f":"'FR-16(7)(v)-1 Functional'!C761","v":"LESS: REVS EXCL FROM REV TAX CALC"},null,null,{"$f":"'FR-16(7)(v)-14 TOTAL CLASS'!H761","v":0},{"$f":"'FR-16(7)(v)-3 PROD Demand'!H761+'FR-16(7)(v)-7 TRANS Demand'!H761+'FR-16(7)(v)-11 DIST Demand'!H761","v":0},{"$f":"'FR-16(7)(v)-4 PROD Energy'!H761+'FR-16(7)(v)-8 TRANS Energy'!H761+'FR-16(7)(v)-12 DIST Energy'!H761","v":0},{"$f":"'FR-16(7)(v)-5 PROD Cust'!H761+'FR-16(7)(v)-9 TRANS Cust'!H761+'FR-16(7)(v)-13 DIST Cust'!H761","v":0},{"$f":"SUM(G761:I761)","v":0},{"$f":"F761-J761","v":0}]
[22,null,{"$f":"'FR-16(7)(v)-1 Functional'!C762","v":"OTHER OPERATING REVS TO BE TAXED"},null,null,{"$f":"F760-F761","v":406615},366942,0,39673,406615,0]
[23]
[24,null,{"$f":"'FR-16(7)(v)-1 Functional'!C764","v":"REVENUE TAX FACTOR"},null,null,{"$f":"ROUND(F817/(1-F817),8)","v":0},0,0,0,0,0]
[25,null,{"$f":"'FR-16(7)(v)-1 Functional'!C765","v":"REVENUE TAX ON OTHER OPER. REVS"},null,null,{"$f":"ROUND(F764*F762,0)","v":0},{"$f":"ROUND(G764*G762,0)","v":0},{"$f":"ROUND(H764*H762,0)","v":0},{"$f":"ROUND(I764*I762,0)","v":0},{"$f":"SUM(G765:I765)","v":0},{"$f":"F765-J765","v":0}]
[26,null,{"$f":"'FR-16(7)(v)-1 Functional'!C766","v":"REVENUE TAX ON COST OF SERVICE"},null,null,{"$f":"ROUND(F764*F758,0)","v":0},{"$f":"ROUND(G764*G758,0)","v":0},{"$f":"ROUND(H764*H758,0)","v":0},{"$f":"ROUND(I764*I758,0)","v":0},{"$f":"SUM(G766:I766)","v":0},{"$f":"F766-J766","v":0}]
[27,null,{"$f":"'FR-16(7)(v)-1 Functional'!C767","v":"TOTAL REVENUE TAX"},null,null,{"$f":"F766+F765","v":0},{"$f":"G766+G765","v":0},{"$f":"H766+H765","v":0},{"$f":"I766+I765","v":0},{"$f":"J766+J765","v":0},{"$f":"F767-J767","v":0}]
[28]
[29,null,"RESERVED",null,null,{"$f":"F24","v":0},{"$f":"G24","v":0},{"$f":"H24","v":0},{"$f":"I24","v":0},{"$f":"J24","v":0},{"$f":"F769-J769","v":0}]
[30,null,{"$f":"'FR-16(7)(v)-1 Functional'!C770","v":"  TOTAL ELECTRIC COST OF SERVICE"},null,null,{"$f":"F769+F767+F758","v":90113057},42289283,44599011,3224762,90113056,1]
[31]
[32,"PROPOSED REVENUES ",null,null,null,{"$f":"'FR-16(7)(v)-14 TOTAL CLASS'!H772","v":60156989},{"$f":"'FR-16(7)(v)-3 PROD Demand'!H772+'FR-16(7)(v)-7 TRANS Demand'!H772+'FR-16(7)(v)-11 DIST Demand'!H772","v":18320639},{"$f":"'FR-16(7)(v)-4 PROD Energy'!H772+'FR-16(7)(v)-8 TRANS Energy'!H772+'FR-16(7)(v)-12 DIST Energy'!H772","v":32987179},{"$f":"'FR-16(7)(v)-5 PROD Cust'!H772+'FR-16(7)(v)-9 TRANS Cust'!H772+'FR-16(7)(v)-13 DIST Cust'!H772","v":8849171},{"$f":"SUM(G772:I772)","v":60156989},{"$f":"F772-J772","v":0}]
[33,"TOTAL ELECTRIC COST OF SERVICE",null,null,null,{"$f":"-F770","v":-90113057},{"$f":"-G770","v":-42289283},{"$f":"-H770","v":-44599011},{"$f":"-I770","v":-3224762},{"$f":"SUM(G773:I773)","v":-90113056},{"$f":"F773-J773","v":-1}]
[34,"EXCESS REVENUES",null,null,null,{"$f":"F773+F772","v":-29956068},{"$f":"G773+G772","v":-23968644},{"$f":"H773+H772","v":-11611832},{"$f":"I773+I772","v":5624409},{"$f":"SUM(G774:I774)","v":-29956067},{"$f":"F774-J774","v":-1}]
[35,"COMPOSITE TAX RATE",null,null,null,{"$f":"F729","v":0.24925115},0.24925115,0.24925115,0.24925115,0.24925115,0.24925115]
[36,"EXCESS TAX",null,null,null,{"$f":"ROUND(F775*F774,0)","v":-7466584},{"$f":"'FR-16(7)(v)-3 PROD Demand'!H776+'FR-16(7)(v)-7 TRANS Demand'!H776+'FR-16(7)(v)-11 DIST Demand'!H776","v":-5974212},{"$f":"ROUND(H775*H774,0)","v":-2894262},{"$f":"ROUND(I775*I774,0)","v":1401890},{"$f":"SUM(G776:I776)","v":-7466584},{"$f":"F776-J776","v":0}]
[37,"EXCESS RETURN",null,null,null,{"$f":"F774-F776","v":-22489484},{"$f":"'FR-16(7)(v)-3 PROD Demand'!H777+'FR-16(7)(v)-7 TRANS Demand'!H777+'FR-16(7)(v)-11 DIST Demand'!H777","v":-17994432},{"$f":"H774-H776","v":-8717570},{"$f":"I774-I776","v":4222519},{"$f":"SUM(G777:I777)","v":-22489483},{"$f":"F777-J777","v":-1}]
[]
[{"$f":"co_name","v":"DUKE ENERGY KENTUCKY, INC."},null,null,null,null,null,null,null,null,{"$f":"J1","v":"FR-16(7)(v)-16"}]
[{"$f":"$A$2","v":"DISTR. SEC. CLASSIFIED - ELECTRIC COST OF SERVICE"},null,null,null,null,null,null,null,null,{"$f":"J2","v":"WITNESS RESPONSIBLE:"}]
[{"$f":"case_name","v":"CASE NO: 2019-00271"},null,null,null,null,null,null,null,null,{"$f":"Witness","v":"JAMES E. ZIOLKOWSKI"}]
[{"$f":"data_filing","v":"DATA: 12 MONTHS ACTUAL  & 0 MONTHS ESTIMATED"},null,null,null,null,null,null,null,null,{"$f":"\"PAGE \"&Pages2&\" OF \"&Pages2","v":"PAGE 15 OF 15"}]
[{"$f":"type","v":"TYPE OF FILING: \"X\" ORIGINAL   UPDATED    REVISED  "}]
[]
[]
["LINE",null,null,null,null,"TOTAL","CLASSIFIED",null,null,"TOTAL","ALL"]
["NO.","ROR, TAX RATES & SPEC FACTORS",null,"ALLO",null,{"$f":"$F$9","v":"DISTR. SEC."},{"$f":"G9","v":"DEMAND"},"ENERGY","CUSTOMER","AT ISSUE","OTHER"]
[null,null,"Schedule 11",null,null,null,3,4,5]
[1,"RATE OF RETURN"]
[2," CAPITALIZATION AMOUNTS",null,null,null,null,"RATIO"]
[3,null,{"$f":"'FR-16(7)(v)-1 Functional'!C791","v":"LONG TERM DEBT"},null,null,{"$f":"'FR-16(7)(v)-1 Functional'!$F$791","v":665948506},{"$f":"IF(TotalCap=0,0,ROUND(F791/TotalCap,4))","v":0.45929999999999999}]
[4,null,{"$f":"'FR-16(7)(v)-1 Functional'!C792","v":"PREFERRED STOCK"},null,null,{"$f":"'FR-16(7)(v)-1 Functional'!$F$792","v":0},{"$f":"IF(TotalCap=0,0,ROUND(F792/TotalCap,4))","v":0}]
[5,null,{"$f":"'FR-16(7)(v)-1 Functional'!C793","v":"COMMON STOCK"},null,null,{"$f":"[0]!Equity","v":699348680},{"$f":"1-G791-G792-G794-G795","v":0.48239999999999994}]
[6,null,{"$f":"'FR-16(7)(v)-1 Functional'!C794","v":"SHORT TERM DEBT"},null,null,{"$f":"'FR-16(7)(v)-1 Functional'!$F$794","v":84600060},{"$f":"IF(TotalCap=0,0,ROUND(F794/TotalCap,4))","v":5.8299999999999998E-2}]
[7,null,{"$f":"'FR-16(7)(v)-1 Functional'!C795","v":"UNAMORTIZED DISCOUNT"},null,null,{"$f":"'FR-16(7)(v)-1 Functional'!$F$795","v":0},{"$f":"IF(TotalCap=0,0,ROUND(F795/TotalCap,4))","v":0}]
[8,null,{"$f":"'FR-16(7)(v)-1 Functional'!C796","v":"  TOTAL"},null,null,{"$f":"SUM(F790:F795)","v":1449897246},{"$f":"SUM(G791:G795)","v":1}]
[9]
[10," COST OF CAPITAL"]
[11,null,{"$f":"'FR-16(7)(v)-1 Functional'!C799","v":"LONG TERM DEBT"},null,null,{"$f":"'FR-16(7)(v)-1 Functional'!$F$799","v":4.0730000000000002E-2}]
[12,null,{"$f":"'FR-16(7)(v)-1 Functional'!C800","v":"PREFERRED STOCK"},null,null,{"$f":"'FR-16(7)(v)-1 Functional'!$F$800","v":0}]
[13,null,{"$f":"'FR-16(7)(v)-1 Functional'!C801","v":"COMMON STOCK"},null,null,{"$f":"'FR-16(7)(v)-1 Functional'!$F$801","v":9.8000000000000004E-2}]
[14,null,{"$f":"'FR-16(7)(v)-1 Functional'!C802","v":"SHORT TERM DEBT"},null,null,{"$f":"'FR-16(7)(v)-1 Functional'!$F$802","v":1.9369999999999998E-2}]
[15,null,{"$f":"'FR-16(7)(v)-1 Functional'!C803","v":"UNAMORTIZED DISCOUNT"},null,null,{"$f":"'FR-16(7)(v)-1 Functional'!$F$803","v":0}]
[16]
[17," WEIGHTED COST OF CAPITAL"]
[18,null,{"$f":"'FR-16(7)(v)-1 Functional'!C806","v":"LONG TERM DEBT"},null,null,{"$f":"ROUND(G791*F799,4)","v":1.8700000000000001E-2}]
[19,null,{"$f":"'FR-16(7)(v)-1 Functional'!C807","v":"PREFERRED STOCK"},null,null,{"$f":"ROUND(G792*F800,4)","v":0}]
[20,null,{"$f":"'FR-16(7)(v)-1 Functional'!C808","v":"COMMON STOCK"},null,null,{"$f":"ROUND(G793*F801,4)","v":4.7300000000000002E-2}]
[21,null,{"$f":"'FR-16(7)(v)-1 Functional'!C809","v":"SHORT TERM DEBT"},null,null,{"$f":"ROUND(G794*F802,4)","v":1.1000000000000001E-3}]
[22,null,{"$f":"'FR-16(7)(v)-1 Functional'!C810","v":"UNAMORTIZED DISCOUNT"},null,null,{"$f":"ROUND(G795*F803,4)","v":0}]
[23,null,{"$f":"'FR-16(7)(v)-1 Functional'!C811","v":"  TOT RATE OF RETURN ALLOWABLE"},null,null,{"$f":"SUM(F806:F810)","v":6.7100000000000007E-2}]
[24]
[25,"TAX RATES AND SPECIAL FACTORS"]
[26,null,{"$f":"'FR-16(7)(v)-1 Functional'!C814","v":"SHORT TERM DEBT COST"},null,null,0,{"$f":"F814","v":0},{"$f":"F814","v":0},{"$f":"F814","v":0},{"$f":"F814","v":0},{"$f":"F814","v":0}]
[27,null,{"$f":"'FR-16(7)(v)-1 Functional'!C815","v":"FEDERAL INCOME TAX RATE"},null,null,0.35,{"$f":"FIT","v":0.21},{"$f":"FIT","v":0.21},{"$f":"FIT","v":0.21},{"$f":"FIT","v":0.21},{"$f":"FIT","v":0.21}]
[28,null,{"$f":"'FR-16(7)(v)-1 Functional'!C816","v":"STATE INCOME TAX RATE"},null,null,{"$f":"SIT","v":4.9685000000000007E-2},4.9685000000000007E-2,4.9685000000000007E-2,4.9685000000000007E-2,4.9685000000000007E-2,4.9685000000000007E-2]
[29,null,{"$f":"'FR-16(7)(v)-1 Functional'!C817","v":"REVENUE TAX RATE"},null,null,0,{"$f":"RevTax","v":0},{"$f":"RevTax","v":0},{"$f":"RevTax","v":0},{"$f":"RevTax","v":0},{"$f":"RevTax","v":0}]
[]
[]
[]
[]
[]
[]
[]
[]
[]
[]
[]
[]
[]
[]
[]
[]
[]
[]
[]
[]
[]
[]
[]
[]
[]
[]
[]
[]
[]
[]
[]
[]
[]
[]
[]
[]
[]
[]
[]
[]
[]
[]
[]
[]
[]
[]
[]
[]
[]
[]
[]
[]
[]
[]
[]
[]
[]
[]
[]
[]
[]
[]
[]
[]
[]
[]
[]
[]
[]
[]
[]
[]
[]
[]
[]
[]
[]
[]
[]
[]
[]
[]
[]
[]
[]
[]
[]
[]
[]
[]
[]
[]
[]
[]
[]
[]
[]
[]
[]
[]
[]
[]
[]
[]
[]
[]
[]
[]
[]
[]
[]
[]
[]
[]
[]
[]
[]
[]
[]
[]
[]
[]
[]
[]
[]
[]
[]
[]
[]
[]
[]
[]
[]
[]
[]
[]
[]
[]
[]
[]
[]
[]
[]
[]
[]
[]
[]
[]
[]
[]
[]
[]
[]
[]
[]
[]
[]
[]
[]
[]
[]
[]
[]
[]
[]
[]
["DO NOT FILE THIS PAGE"]
[]
[{"$f":"co_name","v":"DUKE ENERGY KENTUCKY, INC."},null,null,null,null,null,null,null,null,{"$f":"J1","v":"FR-16(7)(v)-16"}]
[{"$f":"$A$2","v":"DISTR. SEC. CLASSIFIED - ELECTRIC COST OF SERVICE"},null,null,null,null,null,null,null,null,{"$f":"J2","v":"WITNESS RESPONSIBLE:"}]
[{"$f":"case_name","v":"CASE NO: 2019-00271"},null,null,null,null,null,null,null,null,{"$f":"Witness","v":"JAMES E. ZIOLKOWSKI"}]
[{"$f":"data_filing","v":"DATA: 12 MONTHS ACTUAL  & 0 MONTHS ESTIMATED"},null,null,null,null,null,null,null,null,{"$f":"\"PAGE \"&Pages2&\" OF \"&Pages2","v":"PAGE 15 OF 15"}]
[{"$f":"type","v":"TYPE OF FILING: \"X\" ORIGINAL   UPDATED    REVISED  "}]
[]
[]
["LINE",null,null,null,null,"TOTAL","CLASSIFIED",null,null,"TOTAL","ALL"]
["NO.","INCOME TAX BASED ON REVENUES",null,"ALLO",null,{"$f":"$F$9","v":"DISTR. SEC."},"DEMAND","COMMODITY","CUSTOMER","AT ISSUE","OTHER"]
[null,null,"Schedule 13",null,null,null,{"$f":"G10","v":3},{"$f":"H10","v":4},{"$f":"I10","v":5}]
[1,"NET INCOME COMPUTATION"]
[2,null,{"$f":"'FR-16(7)(v)-1 Functional'!C1008","v":"TOTAL ELECTRIC COST OF SERVICE"},null,null,{"$f":"F770","v":90113057},42289283,44599011,3224762,90113056,1]
[3,null,{"$f":"'FR-16(7)(v)-1 Functional'!C1009","v":"TOTAL OTHER OPERATING REVENUES"},null,null,{"$f":"F750","v":406615},366942,0,39673,406615,0]
[4,null,{"$f":"'FR-16(7)(v)-1 Functional'!C1010","v":"  TOTAL ELECTRIC REVENUE"},null,null,{"$f":"SUM(F996:F998)","v":90519672},42656225,44599011,3264435,90519671,1]
[5,null,{"$f":"'FR-16(7)(v)-1 Functional'!C1011","v":"TOTAL OP EXP EX INC & REV TAX"},null,null,{"$f":"-F618","v":-71965759},-28986226,-40547787,-2431746,-71965759,0]
[6,null,{"$f":"'FR-16(7)(v)-1 Functional'!C1012","v":"FIRM SERVICE REVENUE TAX"},null,null,{"$f":"-ROUND(F817*F997,0)","v":0},{"$f":"-ROUND(G817*G997,0)","v":0},{"$f":"-ROUND(H817*H997,0)","v":0},{"$f":"-ROUND(I817*I997,0)","v":0},{"$f":"SUM(G1001:I1001)","v":0},{"$f":"-ROUND('FR-16(7)(v)-1 Functional'!K817*K997,0)","v":0}]
[7,null,{"$f":"'FR-16(7)(v)-1 Functional'!C1013","v":"  NET INCOME"},null,null,{"$f":"SUM(F999:F1001)","v":18553913},{"$f":"SUM(G999:G1001)","v":13669999},{"$f":"SUM(H999:H1001)","v":4051224},{"$f":"SUM(I999:I1001)","v":832689},{"$f":"SUM(G1002:I1002)","v":18553912},{"$f":"SUM(K999:K1001)","v":1}]
[8]
[9,"ADJUSTMENTS TO NET INCOME"]
[10,null,{"$f":"'FR-16(7)(v)-1 Functional'!C1016","v":"TOTAL INTEREST EXPENSE"},null,null,{"$f":"-F633","v":-4810951},-4432115,-169389,-209447,-4810951,0]
[11,null,{"$f":"'FR-16(7)(v)-1 Functional'!C1017","v":"TOTAL OTHER DEDUCTIONS"},null,null,{"$f":"-F639","v":-18299052},-17148472,-569196,-581384,-18299052,0]
[12,null,{"$f":"'FR-16(7)(v)-1 Functional'!C1018","v":"  PRELIMINARY TAXABLE INCOME"},null,null,{"$f":"SUM(F1004:F1006)+F1002","v":-4556090},{"$f":"SUM(G1004:G1006)+G1002","v":-7910588},{"$f":"SUM(H1004:H1006)+H1002","v":3312639},{"$f":"SUM(I1004:I1006)+I1002","v":41858},{"$f":"SUM(G1007:I1007)","v":-4556091},{"$f":"SUM(K1004:K1006)+K1002","v":1}]
[13]
[14,"INCOME TAX BASED ON REVENUES"]
[15,"FEDERAL INCOME TAX COMPUTATION"]
[16,null,{"$f":"'FR-16(7)(v)-1 Functional'!C1022","v":"PRELIMINARY TAXABLE INCOME"},null,null,{"$f":"F1007","v":-4556090},-7910588,3312639,41858,-4556091,1]
[17,null,{"$f":"'FR-16(7)(v)-1 Functional'!C1023","v":"  NET FEDERAL TAXABLE INCOME"},null,null,{"$f":"SUM(F1011:F1011)","v":-4556090},-7910588,3312639,41858,-4556091,1]
[18,null,{"$f":"'FR-16(7)(v)-1 Functional'!C1024","v":"  FEDERAL INCOME TAX RATE"},null,null,{"$f":"F815","v":0.35},{"$f":"G815","v":0.21},{"$f":"H815","v":0.21},{"$f":"I815","v":0.21},null,{"$f":"'FR-16(7)(v)-1 Functional'!K815","v":0.21}]
[19,null,{"$f":"'FR-16(7)(v)-1 Functional'!C1025","v":"PRELIMINARY FIT = FI01 * K190"},null,null,{"$f":"ROUND(F1013*F1012,0)","v":-1594632},{"$f":"ROUND(G1013*G1012,0)","v":-1661223},{"$f":"ROUND(H1013*H1012,0)","v":695654},{"$f":"ROUND(I1013*I1012,0)","v":8790},{"$f":"SUM(G1014:I1014)","v":-956779},{"$f":"ROUND(K1013*K1012,0)","v":0}]
[20,null,{"$f":"'FR-16(7)(v)-1 Functional'!C1026","v":"TOTAL FED DEF IT (410 & 411)"},null,null,{"$f":"F649","v":2880003},540836,2313227,25940,2880003,0]
[21,null,{"$f":"'FR-16(7)(v)-1 Functional'!C1027","v":"TOTAL AMORTIZED ITC"},null,null,{"$f":"-F653","v":-110},-103,-2,-5,-110,0]
[22,null,{"$f":"'FR-16(7)(v)-1 Functional'!C1028","v":"  NET FED INC TAX ALLOWABLE"},null,null,{"$f":"SUM(F1014:F1016)","v":1285261},-1120490,3008879,34725,1923114,0]
[23]
[24,"FEDERAL INCOME TAX PAYABLE"]
[25,null,{"$f":"'FR-16(7)(v)-1 Functional'!C1031","v":"PRELIM FIT"},null,null,{"$f":"F1014","v":-1594632},-1661223,695654,8790,-956779,0]
[26,null,{"$f":"'FR-16(7)(v)-1 Functional'!C1032","v":"TEST YEAR INV TAX CREDIT"},null,null,{"$f":"-F658","v":0},0,0,0,0,0]
[27,null,{"$f":"'FR-16(7)(v)-1 Functional'!C1033","v":"  FED INC TAX PAYABLE"},null,null,{"$f":"SUM(F1019:F1021)","v":-1594632},-1661223,695654,8790,-956779,0]
[28]
[29,"PRELIMINARY SUMMARY"]
[30,null,{"$f":"'FR-16(7)(v)-1 Functional'!C1036","v":"NET INCOME"},null,null,{"$f":"F1002","v":18553913},13669999,4051224,832689,18553912,1]
[31,null,{"$f":"'FR-16(7)(v)-1 Functional'!C1037","v":"NET FED INC TAX ALLOWABLE"},null,null,{"$f":"-F1017","v":-1285261},1120490,-3008879,-34725,-1923114,0]
[32,null,{"$f":"'FR-16(7)(v)-1 Functional'!C1038","v":"  OVERALL RETURN EARNED"},null,null,{"$f":"SUM(F1024:F1026)","v":17268652},14790489,1042345,797964,16630798,1]
[33]
[34,null,{"$f":"'FR-16(7)(v)-1 Functional'!C1040","v":"  RATE OF RETURN EARNED"},null,null,{"$f":"IF(F426=0,0,ROUND(F1027/F426,5))","v":7.1309999999999998E-2},6.6299999999999998E-2,0.12207999999999999,7.5660000000000005E-2,6.8669999999999995E-2,0]

{"sheet":"FR-16(7)(v)-17 GSFL Classified","index":21,"n_rows":1029,"n_cols":14,"rows_kept":1029,"cut":false,"hidden":false,"merged":[]}
[{"$f":"co_name","v":"DUKE ENERGY KENTUCKY, INC."},null,null,null,null,null,null,null,null,"FR-16(7)(v)-17"]
[{"$f":"F9&\" \"&\"CLASSIFIED - ELECTRIC COST OF SERVICE\"","v":"GSFL SECONDARY CLASSIFIED - ELECTRIC COST OF SERVICE"},null,null,null,null,null,null,null,null,"WITNESS RESPONSIBLE:"]
[{"$f":"case_name","v":"CASE NO: 2019-00271"},null,null,null,null,null,null,null,null,{"$f":"Witness","v":"JAMES E. ZIOLKOWSKI"}]
[{"$f":"data_filing","v":"DATA: 12 MONTHS ACTUAL  & 0 MONTHS ESTIMATED"},null,null,null,null,null,null,null,null,{"$f":"\"PAGE \"&Pages2-14&\" OF \"&Pages2","v":"PAGE 1 OF 15"}]
[{"$f":"type","v":"TYPE OF FILING: \"X\" ORIGINAL   UPDATED    REVISED  "}]
[]
[]
["LINE",null,null,null,null,"TOTAL","CLASSIFIED",null,null,"TOTAL","ALL"]
["NO.","SUMMARY OF RESULTS",null,"ALLO",null,"GSFL SECONDARY","DEMAND","ENERGY","CUSTOMER","AT ISSUE","OTHER"]
[null,null,"Schedule 1",null,null,null,3,4,5]
[1,"NET INCOME COMPUTATION"]
[2,null,{"$f":"'FR-16(7)(v)-1 Functional'!C12","v":"GROSS ELECTRIC PLANT IN SERVICE"},null,null,{"$f":"F123","v":2477965},{"$f":"G123","v":2270877},{"$f":"H123","v":46152},{"$f":"I123","v":160936},{"$f":"SUM(G12:I12)","v":2477965},{"$f":"F12-J12","v":0}]
[3,null,{"$f":"'FR-16(7)(v)-1 Functional'!C13","v":"TOTAL DEPRECIATION RESERVE"},null,null,{"$f":"-F200","v":-1018710},{"$f":"-G200","v":-939523},{"$f":"-H200","v":-22509},{"$f":"-I200","v":-56678},{"$f":"SUM(G13:I13)","v":-1018710},{"$f":"F13-J13","v":0}]
[4,null,{"$f":"'FR-16(7)(v)-1 Functional'!C14","v":"TOTAL RATE BASE ADJUSTMENTS"},null,null,{"$f":"F421","v":-262084},{"$f":"G421","v":-270387},{"$f":"H421","v":24246},{"$f":"I421","v":-15943},{"$f":"SUM(G14:I14)","v":-262084},{"$f":"F14-J14","v":0}]
[5,null,{"$f":"'FR-16(7)(v)-1 Functional'!C15","v":"  TOTAL RATE BASE"},null,null,{"$f":"SUM(F12:F14)","v":1197171},1060967,47889,88315,1197171,0]
[6]
[7,"OPERATING EXPENSES"]
[8,null,{"$f":"'FR-16(7)(v)-1 Functional'!C18","v":"TOTAL O&M EXPENSE"},null,null,{"$f":"F549","v":288008},{"$f":"G549","v":52819},{"$f":"H549","v":223210},{"$f":"I549","v":11979},{"$f":"SUM(G18:I18)","v":288008},{"$f":"F18-J18","v":0}]
[9,null,{"$f":"'FR-16(7)(v)-1 Functional'!C19","v":"TOTAL DEPRECIATION EXPENSE"},null,null,{"$f":"F582","v":74513},{"$f":"G582","v":67729},{"$f":"H582","v":2819},{"$f":"I582","v":3965},{"$f":"SUM(G19:I19)","v":74513},{"$f":"F19-J19","v":0}]
[10,null,{"$f":"'FR-16(7)(v)-1 Functional'!C20","v":"TOTAL OTHER TAX & MISC EXPENSE"},null,null,{"$f":"F612","v":18179},{"$f":"G612","v":16035},{"$f":"H612","v":775},{"$f":"I612","v":1369},{"$f":"SUM(G20:I20)","v":18179},{"$f":"F20-J20","v":0}]
[11,null,{"$f":"'FR-16(7)(v)-1 Functional'!C21","v":"  TOTAL OP EXP EXCLUDING INC & REV TAX"},null,null,{"$f":"SUM(F17:F20)","v":380700},136583,226804,17313,380700,0]
[12,null,{"$f":"'FR-16(7)(v)-1 Functional'!C22","v":"NET FED INCOME TAX EXP ALLOWABLE"},null,null,{"$f":"F676","v":11923},{"$f":"G676","v":-5002},{"$f":"H676","v":16638},{"$f":"I676","v":287},{"$f":"SUM(G22:I22)","v":11923},{"$f":"F22-J22","v":0}]
[13,null,"NET STATE INCOME TAX EXP ALLOWABLE",null,null,{"$f":"F722","v":1796},{"$f":"G722","v":-1549},{"$f":"H722","v":2817},{"$f":"I722","v":528},{"$f":"SUM(G23:I23)","v":1796},{"$f":"F23-J23","v":0}]
[14,null,"RESERVED",{"$f":"'FR-16(7)(v)-1 Functional'!D24","v":"CW29"},null,{"$f":"'FR-16(7)(v)-14 TOTAL CLASS'!I24","v":0},{"$f":"'FR-16(7)(v)-3 PROD Demand'!I24+'FR-16(7)(v)-7 TRANS Demand'!I24+'FR-16(7)(v)-11 DIST Demand'!I24","v":0},{"$f":"'FR-16(7)(v)-4 PROD Energy'!I24+'FR-16(7)(v)-8 TRANS Energy'!I24+'FR-16(7)(v)-12 DIST Energy'!I24","v":0},{"$f":"'FR-16(7)(v)-5 PROD Cust'!I24+'FR-16(7)(v)-9 TRANS Cust'!I24+'FR-16(7)(v)-13 DIST Cust'!I24","v":0},{"$f":"SUM(G24:I24)","v":0},{"$f":"F24-J24","v":0}]
[15,null,{"$f":"'FR-16(7)(v)-1 Functional'!C25","v":"REVENUE TAX"},null,null,{"$f":"F767","v":0},{"$f":"G767","v":0},{"$f":"H767","v":0},{"$f":"I767","v":0},{"$f":"SUM(G25:I25)","v":0},{"$f":"F25-J25","v":0}]
[16,null,{"$f":"'FR-16(7)(v)-1 Functional'!C26","v":"  TOTAL OPERATING EXPENSE"},null,null,{"$f":"SUM(F21:F25)","v":394419},130032,246259,18128,394419,0]
[17]
[18,"RETURN ON RATE BASE",null,null,null,{"$f":"F433","v":80247},{"$f":"G433","v":71170},{"$f":"H433","v":3214},{"$f":"I433","v":5863},{"$f":"SUM(G28:I28)","v":80247},{"$f":"F28-J28","v":0}]
[19,"TOTAL OTHER OPERATING REVENUES",null,null,null,{"$f":"-F750","v":-2052},{"$f":"-G750","v":-1714},{"$f":"-H750","v":0},{"$f":"-I750","v":-338},{"$f":"SUM(G29:I29)","v":-2052},{"$f":"F29-J29","v":0}]
[20,null,{"$f":"'FR-16(7)(v)-1 Functional'!C30","v":"TOTAL ELECTRIC COST OF SERVICE"},null,null,{"$f":"SUM(F26:F29)","v":472614},{"$f":"SUM(G26:G29)","v":199488},{"$f":"SUM(H26:H29)","v":249473},{"$f":"SUM(I26:I29)","v":23653},{"$f":"SUM(J26:J29)","v":472614},{"$f":"F30-J30","v":0}]
[21,"ADJUSTMENT FOR INTERCLASS SUBSIDIZATION",null,{"$f":"1-'WP FR-16(7)(v) Rate Incr'!I11","v":0.95},null,{"$f":"SUM(G31:I31)","v":152493},{"$f":"'WP FR-16(7)(v) Rate Incr'!T17","v":111986},{"$f":"'WP FR-16(7)(v) Rate Incr'!U15","v":0},{"$f":"'WP FR-16(7)(v) Rate Incr'!V17","v":40507},null,{"$f":"F31-J31","v":152493}]
[22,{"$f":"'FR-16(7)(v)-1 Functional'!$B$32","v":"REQUESTED REVENUES (COST OF SERVICE ADJUSTED FOR SUBSIDIES)"},null,null,null,{"$f":"F30+F31","v":625107},311474,249473,64160,472614,152493]
[23,"PROPOSED REVENUES",null,null,null,{"$f":"'FR-16(7)(v)-14 TOTAL CLASS'!I33","v":649414},{"$f":"'FR-16(7)(v)-3 PROD Demand'!I33+'FR-16(7)(v)-7 TRANS Demand'!I33+'FR-16(7)(v)-11 DIST Demand'!I33","v":81569},{"$f":"'FR-16(7)(v)-4 PROD Energy'!I33+'FR-16(7)(v)-8 TRANS Energy'!I33+'FR-16(7)(v)-12 DIST Energy'!I33","v":184504},{"$f":"'FR-16(7)(v)-5 PROD Cust'!I33+'FR-16(7)(v)-9 TRANS Cust'!I33+'FR-16(7)(v)-13 DIST Cust'!I33","v":53845},{"$f":"SUM(G33:I33)","v":319918},{"$f":"F33-J33","v":329496}]
[24,"DIFFERENCE (REQUESTED LESS PROPOSED)",null,null,null,{"$f":"F32-F33","v":-24307},229905,64969,10315,152696,-177003]
[25]
[26,"TOTAL RETURN EARNED",null,null,null,{"$f":"F777+F28","v":-34389},{"$f":"G777+G28","v":-17357},{"$f":"H777+H28","v":-45561},{"$f":"I777+I28","v":28530},{"$f":"J777+J28","v":-34388},{"$f":"F36-J36","v":-1}]
[27,"RATE OF RETURN EARNED",null,null,null,{"$f":"IF(F431=0,0,ROUND(F36/F431,5))","v":-2.8760000000000001E-2},-1.6369999999999999E-2,-0.95130999999999999,0.32656000000000002,-2.8760000000000001E-2,0]
[28,"TOTAL RATE OF RETURN ALLOWABLE",null,null,null,{"$f":"$F$811","v":6.7100000000000007E-2},{"$f":"F811","v":6.7100000000000007E-2},{"$f":"F811","v":6.7100000000000007E-2},{"$f":"F811","v":6.7100000000000007E-2},{"$f":"F811","v":6.7100000000000007E-2},{"$f":"IF(K37=0,0,F811)","v":0},null,null,"Not Part of print range"]
[29,"RETURN EARNED ON COMMON EQUITY",null,null,null,{"$f":"IF(Equity=0,0,(F37-$F$806-$F$807-$F$809)*TotalCap/Equity)","v":-0.10067511711863102},{"$f":"IF(Equity=0,0,(G37-$F$806-$F$807-$F$809)*TotalCap/Equity)","v":-7.4988035135520659E-2},{"$f":"IF(Equity=0,0,(H37-F806-F807-F809)*TotalCap/Equity)","v":-2.0133157533993775},{"$f":"IF(Equity=0,0,(I37-F806-F807-F809)*TotalCap/Equity)","v":0.63597814924446561},{"$f":"IF(Equity=0,0,(J37-F806-F807-F809)*TotalCap/Equity)","v":-0.10067511711863102},{"$f":"IF(OR(E793=0,K37=0)=TRUE,0,(K37-E806-E807-E809)*E796/E793)","v":0},null,null,"Not Filed"]
[30,"ALLOWED RETURN ON COMMON EQUITY",null,null,null,{"$f":"IF(Equity=0,0,(F38-$F$806-$F$807-$F$809)*TotalCap/Equity)","v":9.8062871493229981E-2},{"$f":"IF(Equity=0,0,(G38-F806-F807-F809)*TotalCap/Equity)","v":9.8062871493229981E-2},{"$f":"IF(Equity=0,0,(H38-F806-F807-F809)*TotalCap/Equity)","v":9.8062871493229981E-2},{"$f":"IF(Equity=0,0,(I38-F806-F807-F809)*TotalCap/Equity)","v":9.8062871493229981E-2},{"$f":"IF(Equity=0,0,(J38-F806-F807-F809)*TotalCap/Equity)","v":9.8062871493229981E-2},{"$f":"IF(OR(Equity=0,K38=0)=TRUE,0,(K38-F806-F807-F809)*TotalCap/Equity)","v":0}]
[31,null,null,null,null," "]
[32,"PRESENT REVENUES",null,null,null,{"$f":"'FR-16(7)(v)-14 TOTAL CLASS'!I42","v":577046},{"$f":"F42-SUM(H42:I42)","v":338173},{"$f":"'FR-16(7)(v)-4 PROD Energy'!I42","v":218186},{"$f":"'FR-16(7)(v)-13 DIST Cust'!I42","v":20687},{"$f":"SUM(G42:I42)","v":577046},{"$f":"F42-J42","v":0}]
[33,"REVENUE INCREASE JUSTIFIED",null,null,null,{"$f":"F30-F42","v":-104432},-138685,31287,2966,-104432,0]
[34,null,"PER UNIT PRES REV",null,null,{"$f":"IF(F42=0,0,ROUND(F43/F42,5))","v":-0.18098},-0.41010000000000002,0.1434,0.14338000000000001,-0.18098,0]
[35,"REVENUE INCREASE REQUESTED",null,null,null,{"$f":"F33-F42","v":72368},-256604,-33682,33158,-257128,329496]
[36,null,"PER UNIT PRES REV",null,null,{"$f":"IF(F42=0,0,ROUND(F45/F42,5))","v":0.12540999999999999},-0.75880000000000003,-0.15437000000000001,1.60284,-0.44558999999999999,0]
[]
[{"$f":"co_name","v":"DUKE ENERGY KENTUCKY, INC."},null,null,null,null,null,null,null,null,{"$f":"J1","v":"FR-16(7)(v)-17"}]
[{"$f":"$A$2","v":"GSFL SECONDARY CLASSIFIED - ELECTRIC COST OF SERVICE"},null,null,null,null,null,null,null,null,{"$f":"J2","v":"WITNESS RESPONSIBLE:"}]
[{"$f":"case_name","v":"CASE NO: 2019-00271"},null,null,null,null,null,null,null,null,{"$f":"Witness","v":"JAMES E. ZIOLKOWSKI"}]
[{"$f":"data_filing","v":"DATA: 12 MONTHS ACTUAL  & 0 MONTHS ESTIMATED"},null,null,null,null,null,null,null,null,{"$f":"\"PAGE \"&Pages2-13&\" OF \"&Pages2","v":"PAGE 2 OF 15"}]
[{"$f":"type","v":"TYPE OF FILING: \"X\" ORIGINAL   UPDATED    REVISED  "}]
[]
[]
["LINE",null,null,null,null,"TOTAL","CLASSIFIED",null,null,"TOTAL","ALL"]
["NO.","GROSS ELECTRIC PLANT IN SERVICE",null,"ALLO",null,{"$f":"$F$9","v":"GSFL SECONDARY"},{"$f":"G9","v":"DEMAND"},"ENERGY","CUSTOMER","AT ISSUE","OTHER"]
[null,null,"Schedule 2",null,null,null,3,4,5,null," "]
[1,"PRODUCTION PLANT"]
[2,null,"PRODUCTION STEAM",{"$f":"'FR-16(7)(v)-1 Functional'!D59","v":"K201"},null,{"$f":"'FR-16(7)(v)-14 TOTAL CLASS'!I59","v":1085943},{"$f":"'FR-16(7)(v)-3 PROD Demand'!I59+'FR-16(7)(v)-7 TRANS Demand'!I59+'FR-16(7)(v)-11 DIST Demand'!I59","v":1085943},{"$f":"'FR-16(7)(v)-4 PROD Energy'!I59+'FR-16(7)(v)-8 TRANS Energy'!I59+'FR-16(7)(v)-12 DIST Energy'!I59","v":0},{"$f":"'FR-16(7)(v)-5 PROD Cust'!I59+'FR-16(7)(v)-9 TRANS Cust'!I59+'FR-16(7)(v)-13 DIST Cust'!I59","v":0},{"$f":"SUM(G59:I59)","v":1085943},{"$f":"F59-J59","v":0}]
[3,null,"PRODUCTION OTHER",{"$f":"'FR-16(7)(v)-1 Functional'!D60","v":"K201"},null,{"$f":"'FR-16(7)(v)-14 TOTAL CLASS'!I60","v":485488},{"$f":"'FR-16(7)(v)-3 PROD Demand'!I60+'FR-16(7)(v)-7 TRANS Demand'!I60+'FR-16(7)(v)-11 DIST Demand'!I60","v":485488},{"$f":"'FR-16(7)(v)-4 PROD Energy'!I60+'FR-16(7)(v)-8 TRANS Energy'!I60+'FR-16(7)(v)-12 DIST Energy'!I60","v":0},{"$f":"'FR-16(7)(v)-5 PROD Cust'!I60+'FR-16(7)(v)-9 TRANS Cust'!I60+'FR-16(7)(v)-13 DIST Cust'!I60","v":0},{"$f":"SUM(G60:I60)","v":485488},{"$f":"F60-J60","v":0}]
[4,null,{"$f":"'FR-16(7)(v)-1 Functional'!C61","v":"ADJUSTMENT"},{"$f":"'FR-16(7)(v)-1 Functional'!D61","v":"K201"},null,{"$f":"'FR-16(7)(v)-14 TOTAL CLASS'!I61","v":0},{"$f":"'FR-16(7)(v)-3 PROD Demand'!I61+'FR-16(7)(v)-7 TRANS Demand'!I61+'FR-16(7)(v)-11 DIST Demand'!I61","v":0},{"$f":"'FR-16(7)(v)-4 PROD Energy'!I61+'FR-16(7)(v)-8 TRANS Energy'!I61+'FR-16(7)(v)-12 DIST Energy'!I61","v":0},{"$f":"'FR-16(7)(v)-5 PROD Cust'!I61+'FR-16(7)(v)-9 TRANS Cust'!I61+'FR-16(7)(v)-13 DIST Cust'!I61","v":0},{"$f":"SUM(G61:I61)","v":0},{"$f":"F61-J61","v":0}]
[5,null,{"$f":"'FR-16(7)(v)-1 Functional'!C62","v":"  PRODUCTION PLANT IN SERVICE"},null,null,{"$f":"SUM(F59:F61)","v":1571431},1571431,0,0,1571431,0]
[6]
[7,"TRANSMISSION PLANT"]
[8,null,"MAIN STEP-UP TRANSFORMERS",{"$f":"'FR-16(7)(v)-1 Functional'!D65","v":"K202"},null,{"$f":"'FR-16(7)(v)-14 TOTAL CLASS'!I65","v":0},{"$f":"'FR-16(7)(v)-3 PROD Demand'!I65+'FR-16(7)(v)-7 TRANS Demand'!I65+'FR-16(7)(v)-11 DIST Demand'!I65","v":0},{"$f":"'FR-16(7)(v)-4 PROD Energy'!I65+'FR-16(7)(v)-8 TRANS Energy'!I65+'FR-16(7)(v)-12 DIST Energy'!I65","v":0},{"$f":"'FR-16(7)(v)-5 PROD Cust'!I65+'FR-16(7)(v)-9 TRANS Cust'!I65+'FR-16(7)(v)-13 DIST Cust'!I65","v":0},{"$f":"SUM(G65:I65)","v":0},{"$f":"F65-J65","v":0}]
[9,null,"OTHER TRANSMISSION",{"$f":"'FR-16(7)(v)-1 Functional'!D66","v":"K202"},null,{"$f":"'FR-16(7)(v)-14 TOTAL CLASS'!I66","v":94083},{"$f":"'FR-16(7)(v)-3 PROD Demand'!I66+'FR-16(7)(v)-7 TRANS Demand'!I66+'FR-16(7)(v)-11 DIST Demand'!I66","v":94083},{"$f":"'FR-16(7)(v)-4 PROD Energy'!I66+'FR-16(7)(v)-8 TRANS Energy'!I66+'FR-16(7)(v)-12 DIST Energy'!I66","v":0},{"$f":"'FR-16(7)(v)-5 PROD Cust'!I66+'FR-16(7)(v)-9 TRANS Cust'!I66+'FR-16(7)(v)-13 DIST Cust'!I66","v":0},{"$f":"SUM(G66:I66)","v":94083},{"$f":"F66-J66","v":0}]
[10,null,"ADJUSTMENT",{"$f":"'FR-16(7)(v)-1 Functional'!D67","v":"K202"},null,{"$f":"'FR-16(7)(v)-14 TOTAL CLASS'!I67","v":0},{"$f":"'FR-16(7)(v)-3 PROD Demand'!I67+'FR-16(7)(v)-7 TRANS Demand'!I67+'FR-16(7)(v)-11 DIST Demand'!I67","v":0},{"$f":"'FR-16(7)(v)-4 PROD Energy'!I67+'FR-16(7)(v)-8 TRANS Energy'!I67+'FR-16(7)(v)-12 DIST Energy'!I67","v":0},{"$f":"'FR-16(7)(v)-5 PROD Cust'!I67+'FR-16(7)(v)-9 TRANS Cust'!I67+'FR-16(7)(v)-13 DIST Cust'!I67","v":0},{"$f":"SUM(G67:I67)","v":0},{"$f":"F67-J67","v":0}]
[11,null,{"$f":"'FR-16(7)(v)-1 Functional'!C68","v":"  TRANSMISSION PLANT IN SERVICE"},null,null,{"$f":"SUM(F65:F67)","v":94083},94083,0,0,94083,0]
[12]
[13,"TOTAL PROD & TRANS PLANT",null,null,null,{"$f":"F68+F62","v":1665514},1665514,0,0,1665514,0]
[14]
[15,"DISTRIBUTION PLANT"]
[16,null,{"$f":"'FR-16(7)(v)-1 Functional'!C73","v":"SUBSTATIONS"},{"$f":"'FR-16(7)(v)-1 Functional'!D73","v":"K215"},null,{"$f":"'FR-16(7)(v)-14 TOTAL CLASS'!I73","v":117360},{"$f":"'FR-16(7)(v)-3 PROD Demand'!I73+'FR-16(7)(v)-7 TRANS Demand'!I73+'FR-16(7)(v)-11 DIST Demand'!I73","v":117360},{"$f":"'FR-16(7)(v)-4 PROD Energy'!I73+'FR-16(7)(v)-8 TRANS Energy'!I73+'FR-16(7)(v)-12 DIST Energy'!I73","v":0},{"$f":"'FR-16(7)(v)-5 PROD Cust'!I73+'FR-16(7)(v)-9 TRANS Cust'!I73+'FR-16(7)(v)-13 DIST Cust'!I73","v":0},{"$f":"SUM(G73:I73)","v":117360},{"$f":"F73-J73","v":0}]
[17,null,{"$f":"'FR-16(7)(v)-1 Functional'!C74","v":"POLES, TOWERS  & FIXTURES - PRIMARY - DEMAND"},{"$f":"'FR-16(7)(v)-1 Functional'!D74","v":"K205"},null,{"$f":"'FR-16(7)(v)-14 TOTAL CLASS'!I74","v":42583},{"$f":"'FR-16(7)(v)-3 PROD Demand'!I74+'FR-16(7)(v)-7 TRANS Demand'!I74+'FR-16(7)(v)-11 DIST Demand'!I74","v":42583},{"$f":"'FR-16(7)(v)-4 PROD Energy'!I74+'FR-16(7)(v)-8 TRANS Energy'!I74+'FR-16(7)(v)-12 DIST Energy'!I74","v":0},{"$f":"'FR-16(7)(v)-5 PROD Cust'!I74+'FR-16(7)(v)-9 TRANS Cust'!I74+'FR-16(7)(v)-13 DIST Cust'!I74","v":0},{"$f":"SUM(G74:I74)","v":42583},{"$f":"F74-J74","v":0}]
[18,null,{"$f":"'FR-16(7)(v)-1 Functional'!C75","v":"POLES, TOWERS  & FIXTURES - PRIMARY - CUSTOMER"},{"$f":"'FR-16(7)(v)-1 Functional'!D75","v":"K405"},null,{"$f":"'FR-16(7)(v)-14 TOTAL CLASS'!I75","v":18279},{"$f":"'FR-16(7)(v)-3 PROD Demand'!I75+'FR-16(7)(v)-7 TRANS Demand'!I75+'FR-16(7)(v)-11 DIST Demand'!I75","v":0},{"$f":"'FR-16(7)(v)-4 PROD Energy'!I75+'FR-16(7)(v)-8 TRANS Energy'!I75+'FR-16(7)(v)-12 DIST Energy'!I75","v":0},{"$f":"'FR-16(7)(v)-5 PROD Cust'!I75+'FR-16(7)(v)-9 TRANS Cust'!I75+'FR-16(7)(v)-13 DIST Cust'!I75","v":18279},{"$f":"SUM(G75:I75)","v":18279},{"$f":"F75-J75","v":0}]
[19,null,{"$f":"'FR-16(7)(v)-1 Functional'!C76","v":"POLES, TOWERS  & FIXTURES - SECONDARY - DEMAND"},{"$f":"'FR-16(7)(v)-1 Functional'!D76","v":"K206"},null,{"$f":"'FR-16(7)(v)-14 TOTAL CLASS'!I76","v":16285},{"$f":"'FR-16(7)(v)-3 PROD Demand'!I76+'FR-16(7)(v)-7 TRANS Demand'!I76+'FR-16(7)(v)-11 DIST Demand'!I76","v":16285},{"$f":"'FR-16(7)(v)-4 PROD Energy'!I76+'FR-16(7)(v)-8 TRANS Energy'!I76+'FR-16(7)(v)-12 DIST Energy'!I76","v":0},{"$f":"'FR-16(7)(v)-5 PROD Cust'!I76+'FR-16(7)(v)-9 TRANS Cust'!I76+'FR-16(7)(v)-13 DIST Cust'!I76","v":0},16285,0]
[20,null,{"$f":"'FR-16(7)(v)-1 Functional'!C77","v":"POLES, TOWERS  & FIXTURES - SECONDARY - CUSTOMER"},{"$f":"'FR-16(7)(v)-1 Functional'!D77","v":"K405"},null,{"$f":"'FR-16(7)(v)-14 TOTAL CLASS'!I77","v":4132},{"$f":"'FR-16(7)(v)-3 PROD Demand'!I77+'FR-16(7)(v)-7 TRANS Demand'!I77+'FR-16(7)(v)-11 DIST Demand'!I77","v":0},{"$f":"'FR-16(7)(v)-4 PROD Energy'!I77+'FR-16(7)(v)-8 TRANS Energy'!I77+'FR-16(7)(v)-12 DIST Energy'!I77","v":0},{"$f":"'FR-16(7)(v)-5 PROD Cust'!I77+'FR-16(7)(v)-9 TRANS Cust'!I77+'FR-16(7)(v)-13 DIST Cust'!I77","v":4132},4132,0]
[21,null,{"$f":"'FR-16(7)(v)-1 Functional'!C78","v":"CONDUCTORS - OVERHEAD / PRIMARY - DEMAND"},{"$f":"'FR-16(7)(v)-1 Functional'!D78","v":"K205"},null,{"$f":"'FR-16(7)(v)-14 TOTAL CLASS'!I78","v":97037},{"$f":"'FR-16(7)(v)-3 PROD Demand'!I78+'FR-16(7)(v)-7 TRANS Demand'!I78+'FR-16(7)(v)-11 DIST Demand'!I78","v":97037},{"$f":"'FR-16(7)(v)-4 PROD Energy'!I78+'FR-16(7)(v)-8 TRANS Energy'!I78+'FR-16(7)(v)-12 DIST Energy'!I78","v":0},{"$f":"'FR-16(7)(v)-5 PROD Cust'!I78+'FR-16(7)(v)-9 TRANS Cust'!I78+'FR-16(7)(v)-13 DIST Cust'!I78","v":0},97037,0]
[22,null,{"$f":"'FR-16(7)(v)-1 Functional'!C79","v":"CONDUCTORS - OVERHEAD / PRIMARY - CUSTOMER"},{"$f":"'FR-16(7)(v)-1 Functional'!D79","v":"K405"},null,{"$f":"'FR-16(7)(v)-14 TOTAL CLASS'!I79","v":19876},{"$f":"'FR-16(7)(v)-3 PROD Demand'!I79+'FR-16(7)(v)-7 TRANS Demand'!I79+'FR-16(7)(v)-11 DIST Demand'!I79","v":0},{"$f":"'FR-16(7)(v)-4 PROD Energy'!I79+'FR-16(7)(v)-8 TRANS Energy'!I79+'FR-16(7)(v)-12 DIST Energy'!I79","v":0},{"$f":"'FR-16(7)(v)-5 PROD Cust'!I79+'FR-16(7)(v)-9 TRANS Cust'!I79+'FR-16(7)(v)-13 DIST Cust'!I79","v":19876},19876,0]
[23,null,{"$f":"'FR-16(7)(v)-1 Functional'!C80","v":"CONDUCTORS - OVERHEAD / SECONDARY - DEMAND"},{"$f":"'FR-16(7)(v)-1 Functional'!D80","v":"K206"},null,{"$f":"'FR-16(7)(v)-14 TOTAL CLASS'!I80","v":39513},{"$f":"'FR-16(7)(v)-3 PROD Demand'!I80+'FR-16(7)(v)-7 TRANS Demand'!I80+'FR-16(7)(v)-11 DIST Demand'!I80","v":39513},{"$f":"'FR-16(7)(v)-4 PROD Energy'!I80+'FR-16(7)(v)-8 TRANS Energy'!I80+'FR-16(7)(v)-12 DIST Energy'!I80","v":0},{"$f":"'FR-16(7)(v)-5 PROD Cust'!I80+'FR-16(7)(v)-9 TRANS Cust'!I80+'FR-16(7)(v)-13 DIST Cust'!I80","v":0},39513,0]
[24,null,{"$f":"'FR-16(7)(v)-1 Functional'!C81","v":"CONDUCTORS - OVERHEAD / SECONDARY - CUSTOMER"},{"$f":"'FR-16(7)(v)-1 Functional'!D81","v":"K405"},null,{"$f":"'FR-16(7)(v)-14 TOTAL CLASS'!I81","v":8233},{"$f":"'FR-16(7)(v)-3 PROD Demand'!I81+'FR-16(7)(v)-7 TRANS Demand'!I81+'FR-16(7)(v)-11 DIST Demand'!I81","v":0},{"$f":"'FR-16(7)(v)-4 PROD Energy'!I81+'FR-16(7)(v)-8 TRANS Energy'!I81+'FR-16(7)(v)-12 DIST Energy'!I81","v":0},{"$f":"'FR-16(7)(v)-5 PROD Cust'!I81+'FR-16(7)(v)-9 TRANS Cust'!I81+'FR-16(7)(v)-13 DIST Cust'!I81","v":8233},8233,0]
[25,null,{"$f":"'FR-16(7)(v)-1 Functional'!C82","v":"CONDUCTORS - UNDERGROUND / PRIMARY - DEMAND"},{"$f":"'FR-16(7)(v)-1 Functional'!D82","v":"K205"},null,{"$f":"'FR-16(7)(v)-14 TOTAL CLASS'!I82","v":72422},{"$f":"'FR-16(7)(v)-3 PROD Demand'!I82+'FR-16(7)(v)-7 TRANS Demand'!I82+'FR-16(7)(v)-11 DIST Demand'!I82","v":72422},{"$f":"'FR-16(7)(v)-4 PROD Energy'!I82+'FR-16(7)(v)-8 TRANS Energy'!I82+'FR-16(7)(v)-12 DIST Energy'!I82","v":0},{"$f":"'FR-16(7)(v)-5 PROD Cust'!I82+'FR-16(7)(v)-9 TRANS Cust'!I82+'FR-16(7)(v)-13 DIST Cust'!I82","v":0},72422,0]
[26,null,{"$f":"'FR-16(7)(v)-1 Functional'!C83","v":"CONDUCTORS - UNDERGROUND / PRIMARY - CUSTOMER"},{"$f":"'FR-16(7)(v)-1 Functional'!D83","v":"K405"},null,{"$f":"'FR-16(7)(v)-14 TOTAL CLASS'!I83","v":21095},{"$f":"'FR-16(7)(v)-3 PROD Demand'!I83+'FR-16(7)(v)-7 TRANS Demand'!I83+'FR-16(7)(v)-11 DIST Demand'!I83","v":0},{"$f":"'FR-16(7)(v)-4 PROD Energy'!I83+'FR-16(7)(v)-8 TRANS Energy'!I83+'FR-16(7)(v)-12 DIST Energy'!I83","v":0},{"$f":"'FR-16(7)(v)-5 PROD Cust'!I83+'FR-16(7)(v)-9 TRANS Cust'!I83+'FR-16(7)(v)-13 DIST Cust'!I83","v":21095},21095,0]
[27,null,{"$f":"'FR-16(7)(v)-1 Functional'!C84","v":"CONDUCTORS - UNDERGROUND / SECONDARY - DEMAND"},{"$f":"'FR-16(7)(v)-1 Functional'!D84","v":"K206"},null,{"$f":"'FR-16(7)(v)-14 TOTAL CLASS'!I84","v":12407},{"$f":"'FR-16(7)(v)-3 PROD Demand'!I84+'FR-16(7)(v)-7 TRANS Demand'!I84+'FR-16(7)(v)-11 DIST Demand'!I84","v":12407},{"$f":"'FR-16(7)(v)-4 PROD Energy'!I84+'FR-16(7)(v)-8 TRANS Energy'!I84+'FR-16(7)(v)-12 DIST Energy'!I84","v":0},{"$f":"'FR-16(7)(v)-5 PROD Cust'!I84+'FR-16(7)(v)-9 TRANS Cust'!I84+'FR-16(7)(v)-13 DIST Cust'!I84","v":0},12407,0]
[28,null,{"$f":"'FR-16(7)(v)-1 Functional'!C85","v":"CONDUCTORS - UNDERGROUND / SECONDARY - CUSTOMER"},{"$f":"'FR-16(7)(v)-1 Functional'!D85","v":"K405"},null,{"$f":"'FR-16(7)(v)-14 TOTAL CLASS'!I85","v":6597},{"$f":"'FR-16(7)(v)-3 PROD Demand'!I85+'FR-16(7)(v)-7 TRANS Demand'!I85+'FR-16(7)(v)-11 DIST Demand'!I85","v":0},{"$f":"'FR-16(7)(v)-4 PROD Energy'!I85+'FR-16(7)(v)-8 TRANS Energy'!I85+'FR-16(7)(v)-12 DIST Energy'!I85","v":0},{"$f":"'FR-16(7)(v)-5 PROD Cust'!I85+'FR-16(7)(v)-9 TRANS Cust'!I85+'FR-16(7)(v)-13 DIST Cust'!I85","v":6597},6597,0]
[29,null,{"$f":"'FR-16(7)(v)-1 Functional'!C86","v":"TRANSFORMERS DEMAND RELATED"},{"$f":"'FR-16(7)(v)-1 Functional'!D86","v":"K215"},null,{"$f":"'FR-16(7)(v)-14 TOTAL CLASS'!I86","v":60780},{"$f":"'FR-16(7)(v)-3 PROD Demand'!I86+'FR-16(7)(v)-7 TRANS Demand'!I86+'FR-16(7)(v)-11 DIST Demand'!I86","v":60780},{"$f":"'FR-16(7)(v)-4 PROD Energy'!I86+'FR-16(7)(v)-8 TRANS Energy'!I86+'FR-16(7)(v)-12 DIST Energy'!I86","v":0},{"$f":"'FR-16(7)(v)-5 PROD Cust'!I86+'FR-16(7)(v)-9 TRANS Cust'!I86+'FR-16(7)(v)-13 DIST Cust'!I86","v":0},{"$f":"SUM(G86:I86)","v":60780},{"$f":"F86-J86","v":0}]
[30,null,{"$f":"'FR-16(7)(v)-1 Functional'!C87","v":"TRANSFORMERS CUSTOMER RELATED"},{"$f":"'FR-16(7)(v)-1 Functional'!D87","v":"K405"},null,{"$f":"'FR-16(7)(v)-14 TOTAL CLASS'!I87","v":18526},{"$f":"'FR-16(7)(v)-3 PROD Demand'!I87+'FR-16(7)(v)-7 TRANS Demand'!I87+'FR-16(7)(v)-11 DIST Demand'!I87","v":0},{"$f":"'FR-16(7)(v)-4 PROD Energy'!I87+'FR-16(7)(v)-8 TRANS Energy'!I87+'FR-16(7)(v)-12 DIST Energy'!I87","v":0},{"$f":"'FR-16(7)(v)-5 PROD Cust'!I87+'FR-16(7)(v)-9 TRANS Cust'!I87+'FR-16(7)(v)-13 DIST Cust'!I87","v":18526},18526,0]
[31,null,{"$f":"'FR-16(7)(v)-1 Functional'!C88","v":"SERVICES"},{"$f":"'FR-16(7)(v)-1 Functional'!D88","v":"K217"},null,{"$f":"'FR-16(7)(v)-14 TOTAL CLASS'!I88","v":25472},{"$f":"'FR-16(7)(v)-3 PROD Demand'!I88+'FR-16(7)(v)-7 TRANS Demand'!I88+'FR-16(7)(v)-11 DIST Demand'!I88","v":0},{"$f":"'FR-16(7)(v)-4 PROD Energy'!I88+'FR-16(7)(v)-8 TRANS Energy'!I88+'FR-16(7)(v)-12 DIST Energy'!I88","v":0},{"$f":"'FR-16(7)(v)-5 PROD Cust'!I88+'FR-16(7)(v)-9 TRANS Cust'!I88+'FR-16(7)(v)-13 DIST Cust'!I88","v":25472},25472,0]
[32,null,{"$f":"'FR-16(7)(v)-1 Functional'!C89","v":"METERS"},{"$f":"'FR-16(7)(v)-1 Functional'!D89","v":"K407"},null,{"$f":"'FR-16(7)(v)-14 TOTAL CLASS'!I89","v":0},{"$f":"'FR-16(7)(v)-3 PROD Demand'!I89+'FR-16(7)(v)-7 TRANS Demand'!I89+'FR-16(7)(v)-11 DIST Demand'!I89","v":0},{"$f":"'FR-16(7)(v)-4 PROD Energy'!I89+'FR-16(7)(v)-8 TRANS Energy'!I89+'FR-16(7)(v)-12 DIST Energy'!I89","v":0},{"$f":"'FR-16(7)(v)-5 PROD Cust'!I89+'FR-16(7)(v)-9 TRANS Cust'!I89+'FR-16(7)(v)-13 DIST Cust'!I89","v":0},0,0]
[33,null,{"$f":"'FR-16(7)(v)-1 Functional'!C90","v":"STREET LIGHTS"},{"$f":"'FR-16(7)(v)-1 Functional'!D90","v":"K401"},null,{"$f":"'FR-16(7)(v)-14 TOTAL CLASS'!I90","v":0},{"$f":"'FR-16(7)(v)-3 PROD Demand'!I90+'FR-16(7)(v)-7 TRANS Demand'!I90+'FR-16(7)(v)-11 DIST Demand'!I90","v":0},{"$f":"'FR-16(7)(v)-4 PROD Energy'!I90+'FR-16(7)(v)-8 TRANS Energy'!I90+'FR-16(7)(v)-12 DIST Energy'!I90","v":0},{"$f":"'FR-16(7)(v)-5 PROD Cust'!I90+'FR-16(7)(v)-9 TRANS Cust'!I90+'FR-16(7)(v)-13 DIST Cust'!I90","v":0},0,0]
[34,null,{"$f":"'FR-16(7)(v)-1 Functional'!C91","v":"ADJUSTMENT  "},{"$f":"'FR-16(7)(v)-1 Functional'!D91","v":"K209"},null,{"$f":"'FR-16(7)(v)-14 TOTAL CLASS'!I91","v":0},{"$f":"'FR-16(7)(v)-3 PROD Demand'!I91+'FR-16(7)(v)-7 TRANS Demand'!I91+'FR-16(7)(v)-11 DIST Demand'!I91","v":0},{"$f":"'FR-16(7)(v)-4 PROD Energy'!I91+'FR-16(7)(v)-8 TRANS Energy'!I91+'FR-16(7)(v)-12 DIST Energy'!I91","v":0},{"$f":"'FR-16(7)(v)-5 PROD Cust'!I91+'FR-16(7)(v)-9 TRANS Cust'!I91+'FR-16(7)(v)-13 DIST Cust'!I91","v":0},0,0]
[35,null,{"$f":"'FR-16(7)(v)-1 Functional'!C92","v":"CONSTRUCTION NOT CLASSIFIED"},{"$f":"'FR-16(7)(v)-1 Functional'!D92","v":"K209"},null,{"$f":"'FR-16(7)(v)-14 TOTAL CLASS'!I92","v":113302},{"$f":"'FR-16(7)(v)-3 PROD Demand'!I92+'FR-16(7)(v)-7 TRANS Demand'!I92+'FR-16(7)(v)-11 DIST Demand'!I92","v":89550},{"$f":"'FR-16(7)(v)-4 PROD Energy'!I92+'FR-16(7)(v)-8 TRANS Energy'!I92+'FR-16(7)(v)-12 DIST Energy'!I92","v":0},{"$f":"'FR-16(7)(v)-5 PROD Cust'!I92+'FR-16(7)(v)-9 TRANS Cust'!I92+'FR-16(7)(v)-13 DIST Cust'!I92","v":23752},113302,0]
[36,null,{"$f":"'FR-16(7)(v)-1 Functional'!C93","v":"RWIP"},{"$f":"'FR-16(7)(v)-1 Functional'!D93","v":"K215"},null,{"$f":"'FR-16(7)(v)-14 TOTAL CLASS'!I93","v":0},{"$f":"'FR-16(7)(v)-3 PROD Demand'!I93+'FR-16(7)(v)-7 TRANS Demand'!I93+'FR-16(7)(v)-11 DIST Demand'!I93","v":0},{"$f":"'FR-16(7)(v)-4 PROD Energy'!I93+'FR-16(7)(v)-8 TRANS Energy'!I93+'FR-16(7)(v)-12 DIST Energy'!I93","v":0},{"$f":"'FR-16(7)(v)-5 PROD Cust'!I93+'FR-16(7)(v)-9 TRANS Cust'!I93+'FR-16(7)(v)-13 DIST Cust'!I93","v":0},{"$f":"SUM(G93:I93)","v":0},{"$f":"F93-J93","v":0}]
[37,null,{"$f":"'FR-16(7)(v)-1 Functional'!C94","v":"  DISTRIBUTION PLANT IN SERVICE"},null,null,{"$f":"SUM(F73:F93)","v":693899},{"$f":"SUM(G73:G92)","v":547937},0,145962,693899,0]
[38]
[39,"TOTAL TRANS & DIST PLANT",null,null,null,{"$f":"F94+F68","v":787982},642020,0,145962,787982,0]
[40,"TOTAL GROSS PTD PLANT",null,null,null,{"$f":"F94+F70","v":2359413},2213451,0,145962,2359413,0]
[41]
[42,"GENERAL & INTANGIBLE PLANT"]
[43,null,{"$f":"'FR-16(7)(v)-1 Functional'!C100","v":"PRODUCTION - DEMAND"},{"$f":"'FR-16(7)(v)-1 Functional'!D100","v":"K201"},null,{"$f":"'FR-16(7)(v)-14 TOTAL CLASS'!I100","v":21715},{"$f":"'FR-16(7)(v)-3 PROD Demand'!I100+'FR-16(7)(v)-7 TRANS Demand'!I100+'FR-16(7)(v)-11 DIST Demand'!I100","v":21715},{"$f":"'FR-16(7)(v)-4 PROD Energy'!I100+'FR-16(7)(v)-8 TRANS Energy'!I100+'FR-16(7)(v)-12 DIST Energy'!I100","v":0},{"$f":"'FR-16(7)(v)-5 PROD Cust'!I100+'FR-16(7)(v)-9 TRANS Cust'!I100+'FR-16(7)(v)-13 DIST Cust'!I100","v":0},{"$f":"SUM(G100:I100)","v":21715},{"$f":"F100-J100","v":0}]
[44,null,{"$f":"'FR-16(7)(v)-1 Functional'!C101","v":"PRODUCTION - ENERGY"},{"$f":"'FR-16(7)(v)-1 Functional'!D101","v":"K301"},null,{"$f":"'FR-16(7)(v)-14 TOTAL CLASS'!I101","v":29472},{"$f":"'FR-16(7)(v)-3 PROD Demand'!I101+'FR-16(7)(v)-7 TRANS Demand'!I101+'FR-16(7)(v)-11 DIST Demand'!I101","v":0},{"$f":"'FR-16(7)(v)-4 PROD Energy'!I101+'FR-16(7)(v)-8 TRANS Energy'!I101+'FR-16(7)(v)-12 DIST Energy'!I101","v":29472},{"$f":"'FR-16(7)(v)-5 PROD Cust'!I101+'FR-16(7)(v)-9 TRANS Cust'!I101+'FR-16(7)(v)-13 DIST Cust'!I101","v":0},{"$f":"SUM(G101:I101)","v":29472},{"$f":"F101-J101","v":0}]
[45,null,{"$f":"'FR-16(7)(v)-1 Functional'!C102","v":"TRANSMISSION"},{"$f":"'FR-16(7)(v)-1 Functional'!D102","v":"K202"},null,{"$f":"'FR-16(7)(v)-14 TOTAL CLASS'!I102","v":3431},{"$f":"'FR-16(7)(v)-3 PROD Demand'!I102+'FR-16(7)(v)-7 TRANS Demand'!I102+'FR-16(7)(v)-11 DIST Demand'!I102","v":3431},{"$f":"'FR-16(7)(v)-4 PROD Energy'!I102+'FR-16(7)(v)-8 TRANS Energy'!I102+'FR-16(7)(v)-12 DIST Energy'!I102","v":0},{"$f":"'FR-16(7)(v)-5 PROD Cust'!I102+'FR-16(7)(v)-9 TRANS Cust'!I102+'FR-16(7)(v)-13 DIST Cust'!I102","v":0},3431,0]
[46,null,{"$f":"'FR-16(7)(v)-1 Functional'!C103","v":"DISTRIBUTION - DEMAND"},{"$f":"'FR-16(7)(v)-1 Functional'!D103","v":"K201"},null,{"$f":"'FR-16(7)(v)-14 TOTAL CLASS'!I103","v":11525},{"$f":"'FR-16(7)(v)-3 PROD Demand'!I103+'FR-16(7)(v)-7 TRANS Demand'!I103+'FR-16(7)(v)-11 DIST Demand'!I103","v":11525},{"$f":"'FR-16(7)(v)-4 PROD Energy'!I103+'FR-16(7)(v)-8 TRANS Energy'!I103+'FR-16(7)(v)-12 DIST Energy'!I103","v":0},{"$f":"'FR-16(7)(v)-5 PROD Cust'!I103+'FR-16(7)(v)-9 TRANS Cust'!I103+'FR-16(7)(v)-13 DIST Cust'!I103","v":0},11525,0]
[47,null,{"$f":"'FR-16(7)(v)-1 Functional'!C104","v":"DISTRIBUTION - CUSTOMER"},{"$f":"'FR-16(7)(v)-1 Functional'!D104","v":"K405"},null,{"$f":"'FR-16(7)(v)-14 TOTAL CLASS'!I104","v":2355},{"$f":"'FR-16(7)(v)-3 PROD Demand'!I104+'FR-16(7)(v)-7 TRANS Demand'!I104+'FR-16(7)(v)-11 DIST Demand'!I104","v":0},{"$f":"'FR-16(7)(v)-4 PROD Energy'!I104+'FR-16(7)(v)-8 TRANS Energy'!I104+'FR-16(7)(v)-12 DIST Energy'!I104","v":0},{"$f":"'FR-16(7)(v)-5 PROD Cust'!I104+'FR-16(7)(v)-9 TRANS Cust'!I104+'FR-16(7)(v)-13 DIST Cust'!I104","v":2355},2355,0]
[48,null,{"$f":"'FR-16(7)(v)-1 Functional'!C105","v":"CUSTOMER ACCOUNTING"},{"$f":"'FR-16(7)(v)-1 Functional'!D105","v":"A308"},null,{"$f":"'FR-16(7)(v)-14 TOTAL CLASS'!I105","v":6683},{"$f":"'FR-16(7)(v)-3 PROD Demand'!I105+'FR-16(7)(v)-7 TRANS Demand'!I105+'FR-16(7)(v)-11 DIST Demand'!I105","v":0},{"$f":"'FR-16(7)(v)-4 PROD Energy'!I105+'FR-16(7)(v)-8 TRANS Energy'!I105+'FR-16(7)(v)-12 DIST Energy'!I105","v":0},{"$f":"'FR-16(7)(v)-5 PROD Cust'!I105+'FR-16(7)(v)-9 TRANS Cust'!I105+'FR-16(7)(v)-13 DIST Cust'!I105","v":6683},6683,0]
[49,null,{"$f":"'FR-16(7)(v)-1 Functional'!C106","v":"CUSTOMER SERVICE & INFORMATION"},{"$f":"'FR-16(7)(v)-1 Functional'!D106","v":"A310"},null,{"$f":"'FR-16(7)(v)-14 TOTAL CLASS'!I106","v":524},{"$f":"'FR-16(7)(v)-3 PROD Demand'!I106+'FR-16(7)(v)-7 TRANS Demand'!I106+'FR-16(7)(v)-11 DIST Demand'!I106","v":0},{"$f":"'FR-16(7)(v)-4 PROD Energy'!I106+'FR-16(7)(v)-8 TRANS Energy'!I106+'FR-16(7)(v)-12 DIST Energy'!I106","v":0},{"$f":"'FR-16(7)(v)-5 PROD Cust'!I106+'FR-16(7)(v)-9 TRANS Cust'!I106+'FR-16(7)(v)-13 DIST Cust'!I106","v":524},524,0]
[50,null,{"$f":"'FR-16(7)(v)-1 Functional'!C107","v":"SALES"},{"$f":"'FR-16(7)(v)-1 Functional'!D107","v":"A312"},null,{"$f":"'FR-16(7)(v)-14 TOTAL CLASS'!I107","v":0},{"$f":"'FR-16(7)(v)-3 PROD Demand'!I107+'FR-16(7)(v)-7 TRANS Demand'!I107+'FR-16(7)(v)-11 DIST Demand'!I107","v":0},{"$f":"'FR-16(7)(v)-4 PROD Energy'!I107+'FR-16(7)(v)-8 TRANS Energy'!I107+'FR-16(7)(v)-12 DIST Energy'!I107","v":0},{"$f":"'FR-16(7)(v)-5 PROD Cust'!I107+'FR-16(7)(v)-9 TRANS Cust'!I107+'FR-16(7)(v)-13 DIST Cust'!I107","v":0},0,0]
[51,null,{"$f":"'FR-16(7)(v)-1 Functional'!C108","v":"ADJUSTMENT"},{"$f":"'FR-16(7)(v)-1 Functional'!D108","v":"A315"},null,{"$f":"'FR-16(7)(v)-14 TOTAL CLASS'!I108","v":0},{"$f":"'FR-16(7)(v)-3 PROD Demand'!I108+'FR-16(7)(v)-7 TRANS Demand'!I108+'FR-16(7)(v)-11 DIST Demand'!I108","v":0},{"$f":"'FR-16(7)(v)-4 PROD Energy'!I108+'FR-16(7)(v)-8 TRANS Energy'!I108+'FR-16(7)(v)-12 DIST Energy'!I108","v":0},{"$f":"'FR-16(7)(v)-5 PROD Cust'!I108+'FR-16(7)(v)-9 TRANS Cust'!I108+'FR-16(7)(v)-13 DIST Cust'!I108","v":0},0,0]
[52,null,{"$f":"'FR-16(7)(v)-1 Functional'!C109","v":"  GEN & INTANG PLANT IN SERVICE"},null,null,{"$f":"SUM(F100:F108)","v":75705},36671,29472,9562,75705,0]
[53]
[54,"COMMON & OTHER PLANT"]
[55,null,{"$f":"'FR-16(7)(v)-1 Functional'!C112","v":"PRODUCTION - DEMAND"},{"$f":"'FR-16(7)(v)-1 Functional'!D112","v":"K201"},null,{"$f":"'FR-16(7)(v)-14 TOTAL CLASS'!I112","v":12290},{"$f":"'FR-16(7)(v)-3 PROD Demand'!I112+'FR-16(7)(v)-7 TRANS Demand'!I112+'FR-16(7)(v)-11 DIST Demand'!I112","v":12290},{"$f":"'FR-16(7)(v)-4 PROD Energy'!I112+'FR-16(7)(v)-8 TRANS Energy'!I112+'FR-16(7)(v)-12 DIST Energy'!I112","v":0},{"$f":"'FR-16(7)(v)-5 PROD Cust'!I112+'FR-16(7)(v)-9 TRANS Cust'!I112+'FR-16(7)(v)-13 DIST Cust'!I112","v":0},{"$f":"SUM(G112:I112)","v":12290},{"$f":"F112-J112","v":0}]
[56,null,{"$f":"'FR-16(7)(v)-1 Functional'!C113","v":"PRODUCTION - ENERGY"},{"$f":"'FR-16(7)(v)-1 Functional'!D113","v":"K301"},null,{"$f":"'FR-16(7)(v)-14 TOTAL CLASS'!I113","v":16680},{"$f":"'FR-16(7)(v)-3 PROD Demand'!I113+'FR-16(7)(v)-7 TRANS Demand'!I113+'FR-16(7)(v)-11 DIST Demand'!I113","v":0},{"$f":"'FR-16(7)(v)-4 PROD Energy'!I113+'FR-16(7)(v)-8 TRANS Energy'!I113+'FR-16(7)(v)-12 DIST Energy'!I113","v":16680},{"$f":"'FR-16(7)(v)-5 PROD Cust'!I113+'FR-16(7)(v)-9 TRANS Cust'!I113+'FR-16(7)(v)-13 DIST Cust'!I113","v":0},{"$f":"SUM(G113:I113)","v":16680},{"$f":"F113-J113","v":0}]
[57,null,{"$f":"'FR-16(7)(v)-1 Functional'!C114","v":"TRANSMISSION"},{"$f":"'FR-16(7)(v)-1 Functional'!D114","v":"K202"},null,{"$f":"'FR-16(7)(v)-14 TOTAL CLASS'!I114","v":1942},{"$f":"'FR-16(7)(v)-3 PROD Demand'!I114+'FR-16(7)(v)-7 TRANS Demand'!I114+'FR-16(7)(v)-11 DIST Demand'!I114","v":1942},{"$f":"'FR-16(7)(v)-4 PROD Energy'!I114+'FR-16(7)(v)-8 TRANS Energy'!I114+'FR-16(7)(v)-12 DIST Energy'!I114","v":0},{"$f":"'FR-16(7)(v)-5 PROD Cust'!I114+'FR-16(7)(v)-9 TRANS Cust'!I114+'FR-16(7)(v)-13 DIST Cust'!I114","v":0},1942,0]
[58,null,{"$f":"'FR-16(7)(v)-1 Functional'!C115","v":"DISTRIBUTION - DEMAND"},{"$f":"'FR-16(7)(v)-1 Functional'!D115","v":"K201"},null,{"$f":"'FR-16(7)(v)-14 TOTAL CLASS'!I115","v":6523},{"$f":"'FR-16(7)(v)-3 PROD Demand'!I115+'FR-16(7)(v)-7 TRANS Demand'!I115+'FR-16(7)(v)-11 DIST Demand'!I115","v":6523},{"$f":"'FR-16(7)(v)-4 PROD Energy'!I115+'FR-16(7)(v)-8 TRANS Energy'!I115+'FR-16(7)(v)-12 DIST Energy'!I115","v":0},{"$f":"'FR-16(7)(v)-5 PROD Cust'!I115+'FR-16(7)(v)-9 TRANS Cust'!I115+'FR-16(7)(v)-13 DIST Cust'!I115","v":0},6523,0]
[59,null,{"$f":"'FR-16(7)(v)-1 Functional'!C116","v":"DISTRIBUTION - CUSTOMER"},{"$f":"'FR-16(7)(v)-1 Functional'!D116","v":"K405"},null,{"$f":"'FR-16(7)(v)-14 TOTAL CLASS'!I116","v":1333},{"$f":"'FR-16(7)(v)-3 PROD Demand'!I116+'FR-16(7)(v)-7 TRANS Demand'!I116+'FR-16(7)(v)-11 DIST Demand'!I116","v":0},{"$f":"'FR-16(7)(v)-4 PROD Energy'!I116+'FR-16(7)(v)-8 TRANS Energy'!I116+'FR-16(7)(v)-12 DIST Energy'!I116","v":0},{"$f":"'FR-16(7)(v)-5 PROD Cust'!I116+'FR-16(7)(v)-9 TRANS Cust'!I116+'FR-16(7)(v)-13 DIST Cust'!I116","v":1333},1333,0]
[60,null,{"$f":"'FR-16(7)(v)-1 Functional'!C117","v":"CUSTOMER ACCOUNTING"},{"$f":"'FR-16(7)(v)-1 Functional'!D117","v":"A308"},null,{"$f":"'FR-16(7)(v)-14 TOTAL CLASS'!I117","v":3783},{"$f":"'FR-16(7)(v)-3 PROD Demand'!I117+'FR-16(7)(v)-7 TRANS Demand'!I117+'FR-16(7)(v)-11 DIST Demand'!I117","v":0},{"$f":"'FR-16(7)(v)-4 PROD Energy'!I117+'FR-16(7)(v)-8 TRANS Energy'!I117+'FR-16(7)(v)-12 DIST Energy'!I117","v":0},{"$f":"'FR-16(7)(v)-5 PROD Cust'!I117+'FR-16(7)(v)-9 TRANS Cust'!I117+'FR-16(7)(v)-13 DIST Cust'!I117","v":3783},3783,0]
[61,null,{"$f":"'FR-16(7)(v)-1 Functional'!C118","v":"CUSTOMER SERVICE & INFORMATION"},{"$f":"'FR-16(7)(v)-1 Functional'!D118","v":"A310"},null,{"$f":"'FR-16(7)(v)-14 TOTAL CLASS'!I118","v":296},{"$f":"'FR-16(7)(v)-3 PROD Demand'!I118+'FR-16(7)(v)-7 TRANS Demand'!I118+'FR-16(7)(v)-11 DIST Demand'!I118","v":0},{"$f":"'FR-16(7)(v)-4 PROD Energy'!I118+'FR-16(7)(v)-8 TRANS Energy'!I118+'FR-16(7)(v)-12 DIST Energy'!I118","v":0},{"$f":"'FR-16(7)(v)-5 PROD Cust'!I118+'FR-16(7)(v)-9 TRANS Cust'!I118+'FR-16(7)(v)-13 DIST Cust'!I118","v":296},296,0]
[62,null,{"$f":"'FR-16(7)(v)-1 Functional'!C119","v":"SALES"},{"$f":"'FR-16(7)(v)-1 Functional'!D119","v":"A312"},null,{"$f":"'FR-16(7)(v)-14 TOTAL CLASS'!I119","v":0},{"$f":"'FR-16(7)(v)-3 PROD Demand'!I119+'FR-16(7)(v)-7 TRANS Demand'!I119+'FR-16(7)(v)-11 DIST Demand'!I119","v":0},{"$f":"'FR-16(7)(v)-4 PROD Energy'!I119+'FR-16(7)(v)-8 TRANS Energy'!I119+'FR-16(7)(v)-12 DIST Energy'!I119","v":0},{"$f":"'FR-16(7)(v)-5 PROD Cust'!I119+'FR-16(7)(v)-9 TRANS Cust'!I119+'FR-16(7)(v)-13 DIST Cust'!I119","v":0},0,0]
[63,null,{"$f":"'FR-16(7)(v)-1 Functional'!C120","v":"ADJUSTMENT"},{"$f":"'FR-16(7)(v)-1 Functional'!D120","v":"A315"},null,{"$f":"'FR-16(7)(v)-14 TOTAL CLASS'!I120","v":0},{"$f":"'FR-16(7)(v)-3 PROD Demand'!I120+'FR-16(7)(v)-7 TRANS Demand'!I120+'FR-16(7)(v)-11 DIST Demand'!I120","v":0},{"$f":"'FR-16(7)(v)-4 PROD Energy'!I120+'FR-16(7)(v)-8 TRANS Energy'!I120+'FR-16(7)(v)-12 DIST Energy'!I120","v":0},{"$f":"'FR-16(7)(v)-5 PROD Cust'!I120+'FR-16(7)(v)-9 TRANS Cust'!I120+'FR-16(7)(v)-13 DIST Cust'!I120","v":0},0,0]
[64,null,{"$f":"'FR-16(7)(v)-1 Functional'!C121","v":"  COMMON & OTHER PLANT IN SERVICE"},null,null,{"$f":"SUM(F112:F120)","v":42847},20755,16680,5412,42847,0]
[65]
[66,"GROSS ELECTRIC PLANT IN SERVICE",null,null,null,{"$f":"F97+F109+F121","v":2477965},2270877,46152,160936,2477965,0]
[]
[{"$f":"co_name","v":"DUKE ENERGY KENTUCKY, INC."},null,null,null,null,null,null,null,null,{"$f":"J1","v":"FR-16(7)(v)-17"}]
[{"$f":"$A$2","v":"GSFL SECONDARY CLASSIFIED - ELECTRIC COST OF SERVICE"},null,null,null,null,null,null,null,null,{"$f":"J2","v":"WITNESS RESPONSIBLE:"}]
[{"$f":"case_name","v":"CASE NO: 2019-00271"},null,null,null,null,null,null,null,null,{"$f":"Witness","v":"JAMES E. ZIOLKOWSKI"}]
[{"$f":"data_filing","v":"DATA: 12 MONTHS ACTUAL  & 0 MONTHS ESTIMATED"},null,null,null,null,null,null,null,null,{"$f":"\"PAGE \"&Pages2-12&\" OF \"&Pages2","v":"PAGE 3 OF 15"}]
[{"$f":"type","v":"TYPE OF FILING: \"X\" ORIGINAL   UPDATED    REVISED  "}]
[]
[]
["LINE",null,null,null,null,"TOTAL","CLASSIFIED",null,null,"TOTAL","ALL"]
["NO.","DEPRECIATION RESERVE",null,"ALLO",null,{"$f":"$F$9","v":"GSFL SECONDARY"},{"$f":"G9","v":"DEMAND"},"ENERGY","CUSTOMER","AT ISSUE","OTHER"]
[null,null,"Schedule 3",null,null,null,3,4,5]
[1,"PRODUCTION PLANT"]
[2,null,{"$f":"'FR-16(7)(v)-1 Functional'!C136","v":"PRODUCTION STEAM"},{"$f":"'FR-16(7)(v)-1 Functional'!D136","v":"K201"},null,{"$f":"'FR-16(7)(v)-14 TOTAL CLASS'!I136","v":521508},{"$f":"'FR-16(7)(v)-3 PROD Demand'!I136+'FR-16(7)(v)-7 TRANS Demand'!I136+'FR-16(7)(v)-11 DIST Demand'!I136","v":521508},{"$f":"'FR-16(7)(v)-4 PROD Energy'!I136+'FR-16(7)(v)-8 TRANS Energy'!I136+'FR-16(7)(v)-12 DIST Energy'!I136","v":0},{"$f":"'FR-16(7)(v)-5 PROD Cust'!I136+'FR-16(7)(v)-9 TRANS Cust'!I136+'FR-16(7)(v)-13 DIST Cust'!I136","v":0},{"$f":"SUM(G136:I136)","v":521508},{"$f":"F136-J136","v":0}]
[3,null,{"$f":"'FR-16(7)(v)-1 Functional'!C137","v":"PRODUCTION OTHER"},{"$f":"'FR-16(7)(v)-1 Functional'!D137","v":"K201"},null,{"$f":"'FR-16(7)(v)-14 TOTAL CLASS'!I137","v":239488},{"$f":"'FR-16(7)(v)-3 PROD Demand'!I137+'FR-16(7)(v)-7 TRANS Demand'!I137+'FR-16(7)(v)-11 DIST Demand'!I137","v":239488},{"$f":"'FR-16(7)(v)-4 PROD Energy'!I137+'FR-16(7)(v)-8 TRANS Energy'!I137+'FR-16(7)(v)-12 DIST Energy'!I137","v":0},{"$f":"'FR-16(7)(v)-5 PROD Cust'!I137+'FR-16(7)(v)-9 TRANS Cust'!I137+'FR-16(7)(v)-13 DIST Cust'!I137","v":0},{"$f":"SUM(G137:I137)","v":239488},{"$f":"F137-J137","v":0}]
[4,null,{"$f":"'FR-16(7)(v)-1 Functional'!C138","v":"ADJUSTMENT"},{"$f":"'FR-16(7)(v)-1 Functional'!D138","v":"K201"},null,{"$f":"'FR-16(7)(v)-14 TOTAL CLASS'!I138","v":2019},{"$f":"'FR-16(7)(v)-3 PROD Demand'!I138+'FR-16(7)(v)-7 TRANS Demand'!I138+'FR-16(7)(v)-11 DIST Demand'!I138","v":2019},{"$f":"'FR-16(7)(v)-4 PROD Energy'!I138+'FR-16(7)(v)-8 TRANS Energy'!I138+'FR-16(7)(v)-12 DIST Energy'!I138","v":0},{"$f":"'FR-16(7)(v)-5 PROD Cust'!I138+'FR-16(7)(v)-9 TRANS Cust'!I138+'FR-16(7)(v)-13 DIST Cust'!I138","v":0},{"$f":"SUM(G138:I138)","v":2019},{"$f":"F138-J138","v":0}]
[5,null,{"$f":"'FR-16(7)(v)-1 Functional'!C139","v":"  TOTAL PROD DEPREC RESERVE"},null,null,{"$f":"SUM(F136:F138)","v":763015},763015,0,0,763015,0]
[6]
[7,"TRANSMISSION PLANT"]
[8,null,{"$f":"'FR-16(7)(v)-1 Functional'!C142","v":"MAIN STEP-UP TRANSFORMERS"},{"$f":"'FR-16(7)(v)-1 Functional'!D142","v":"K202"},null,{"$f":"'FR-16(7)(v)-14 TOTAL CLASS'!I142","v":0},{"$f":"'FR-16(7)(v)-3 PROD Demand'!I142+'FR-16(7)(v)-7 TRANS Demand'!I142+'FR-16(7)(v)-11 DIST Demand'!I142","v":0},{"$f":"'FR-16(7)(v)-4 PROD Energy'!I142+'FR-16(7)(v)-8 TRANS Energy'!I142+'FR-16(7)(v)-12 DIST Energy'!I142","v":0},{"$f":"'FR-16(7)(v)-5 PROD Cust'!I142+'FR-16(7)(v)-9 TRANS Cust'!I142+'FR-16(7)(v)-13 DIST Cust'!I142","v":0},{"$f":"SUM(G142:I142)","v":0},{"$f":"F142-J142","v":0}]
[9,null,{"$f":"'FR-16(7)(v)-1 Functional'!C143","v":"OTHER TRANSMISSION"},{"$f":"'FR-16(7)(v)-1 Functional'!D143","v":"K202"},null,{"$f":"'FR-16(7)(v)-14 TOTAL CLASS'!I143","v":25947},{"$f":"'FR-16(7)(v)-3 PROD Demand'!I143+'FR-16(7)(v)-7 TRANS Demand'!I143+'FR-16(7)(v)-11 DIST Demand'!I143","v":25947},{"$f":"'FR-16(7)(v)-4 PROD Energy'!I143+'FR-16(7)(v)-8 TRANS Energy'!I143+'FR-16(7)(v)-12 DIST Energy'!I143","v":0},{"$f":"'FR-16(7)(v)-5 PROD Cust'!I143+'FR-16(7)(v)-9 TRANS Cust'!I143+'FR-16(7)(v)-13 DIST Cust'!I143","v":0},{"$f":"SUM(G143:I143)","v":25947},{"$f":"F143-J143","v":0}]
[10,null,{"$f":"'FR-16(7)(v)-1 Functional'!C144","v":"ADJUSTMENT"},{"$f":"'FR-16(7)(v)-1 Functional'!D144","v":"K202"},null,{"$f":"'FR-16(7)(v)-14 TOTAL CLASS'!I144","v":-91},{"$f":"'FR-16(7)(v)-3 PROD Demand'!I144+'FR-16(7)(v)-7 TRANS Demand'!I144+'FR-16(7)(v)-11 DIST Demand'!I144","v":-91},{"$f":"'FR-16(7)(v)-4 PROD Energy'!I144+'FR-16(7)(v)-8 TRANS Energy'!I144+'FR-16(7)(v)-12 DIST Energy'!I144","v":0},{"$f":"'FR-16(7)(v)-5 PROD Cust'!I144+'FR-16(7)(v)-9 TRANS Cust'!I144+'FR-16(7)(v)-13 DIST Cust'!I144","v":0},{"$f":"SUM(G144:I144)","v":-91},{"$f":"F144-J144","v":0}]
[11,null,{"$f":"'FR-16(7)(v)-1 Functional'!C145","v":"  TOTAL TRANS DEPREC RESERVE"},null,null,{"$f":"SUM(F142:F144)","v":25856},25856,0,0,25856,0]
[12]
[13,null,{"$f":"'FR-16(7)(v)-1 Functional'!C147","v":"TOTAL PROD & TRANS DEPREC RESERVE"},null,null,{"$f":"F145+F139","v":788871},{"$f":"G145+G139","v":788871},{"$f":"H145+H139","v":0},{"$f":"I145+I139","v":0},{"$f":"J145+J139","v":788871},{"$f":"F147-J147","v":0}]
[14]
[15,"DISTRIBUTION PLANT"]
[16,null,{"$f":"'FR-16(7)(v)-1 Functional'!C150","v":"SUBSTATIONS"},{"$f":"'FR-16(7)(v)-1 Functional'!D150","v":"K215"},null,{"$f":"'FR-16(7)(v)-14 TOTAL CLASS'!I150","v":23844},{"$f":"'FR-16(7)(v)-3 PROD Demand'!I150+'FR-16(7)(v)-7 TRANS Demand'!I150+'FR-16(7)(v)-11 DIST Demand'!I150","v":23844},{"$f":"'FR-16(7)(v)-4 PROD Energy'!I150+'FR-16(7)(v)-8 TRANS Energy'!I150+'FR-16(7)(v)-12 DIST Energy'!I150","v":0},{"$f":"'FR-16(7)(v)-5 PROD Cust'!I150+'FR-16(7)(v)-9 TRANS Cust'!I150+'FR-16(7)(v)-13 DIST Cust'!I150","v":0},{"$f":"SUM(G150:I150)","v":23844},{"$f":"F150-J150","v":0}]
[17,null,{"$f":"'FR-16(7)(v)-1 Functional'!C151","v":"POLES, TOWERS  & FIXTURES - PRIMARY - DEMAND"},{"$f":"'FR-16(7)(v)-1 Functional'!D151","v":"K205"},null,{"$f":"'FR-16(7)(v)-14 TOTAL CLASS'!I151","v":19483},{"$f":"'FR-16(7)(v)-3 PROD Demand'!I151+'FR-16(7)(v)-7 TRANS Demand'!I151+'FR-16(7)(v)-11 DIST Demand'!I151","v":19483},{"$f":"'FR-16(7)(v)-4 PROD Energy'!I151+'FR-16(7)(v)-8 TRANS Energy'!I151+'FR-16(7)(v)-12 DIST Energy'!I151","v":0},{"$f":"'FR-16(7)(v)-5 PROD Cust'!I151+'FR-16(7)(v)-9 TRANS Cust'!I151+'FR-16(7)(v)-13 DIST Cust'!I151","v":0},{"$f":"SUM(G151:I151)","v":19483},{"$f":"F151-J151","v":0}]
[18,null,{"$f":"'FR-16(7)(v)-1 Functional'!C152","v":"POLES, TOWERS  & FIXTURES - PRIMARY - CUSTOMER"},{"$f":"'FR-16(7)(v)-1 Functional'!D152","v":"K405"},null,{"$f":"'FR-16(7)(v)-14 TOTAL CLASS'!I152","v":8363},{"$f":"'FR-16(7)(v)-3 PROD Demand'!I152+'FR-16(7)(v)-7 TRANS Demand'!I152+'FR-16(7)(v)-11 DIST Demand'!I152","v":0},{"$f":"'FR-16(7)(v)-4 PROD Energy'!I152+'FR-16(7)(v)-8 TRANS Energy'!I152+'FR-16(7)(v)-12 DIST Energy'!I152","v":0},{"$f":"'FR-16(7)(v)-5 PROD Cust'!I152+'FR-16(7)(v)-9 TRANS Cust'!I152+'FR-16(7)(v)-13 DIST Cust'!I152","v":8363},{"$f":"SUM(G152:I152)","v":8363},{"$f":"F152-J152","v":0}]
[19,null,{"$f":"'FR-16(7)(v)-1 Functional'!C153","v":"POLES, TOWERS  & FIXTURES - SECONDARY - DEMAND"},{"$f":"'FR-16(7)(v)-1 Functional'!D153","v":"K206"},null,{"$f":"'FR-16(7)(v)-14 TOTAL CLASS'!I153","v":7451},{"$f":"'FR-16(7)(v)-3 PROD Demand'!I153+'FR-16(7)(v)-7 TRANS Demand'!I153+'FR-16(7)(v)-11 DIST Demand'!I153","v":7451},{"$f":"'FR-16(7)(v)-4 PROD Energy'!I153+'FR-16(7)(v)-8 TRANS Energy'!I153+'FR-16(7)(v)-12 DIST Energy'!I153","v":0},{"$f":"'FR-16(7)(v)-5 PROD Cust'!I153+'FR-16(7)(v)-9 TRANS Cust'!I153+'FR-16(7)(v)-13 DIST Cust'!I153","v":0},7451,0]
[20,null,{"$f":"'FR-16(7)(v)-1 Functional'!C154","v":"POLES, TOWERS  & FIXTURES - SECONDARY - CUSTOMER"},{"$f":"'FR-16(7)(v)-1 Functional'!D154","v":"K405"},null,{"$f":"'FR-16(7)(v)-14 TOTAL CLASS'!I154","v":1891},{"$f":"'FR-16(7)(v)-3 PROD Demand'!I154+'FR-16(7)(v)-7 TRANS Demand'!I154+'FR-16(7)(v)-11 DIST Demand'!I154","v":0},{"$f":"'FR-16(7)(v)-4 PROD Energy'!I154+'FR-16(7)(v)-8 TRANS Energy'!I154+'FR-16(7)(v)-12 DIST Energy'!I154","v":0},{"$f":"'FR-16(7)(v)-5 PROD Cust'!I154+'FR-16(7)(v)-9 TRANS Cust'!I154+'FR-16(7)(v)-13 DIST Cust'!I154","v":1891},1891,0]
[21,null,{"$f":"'FR-16(7)(v)-1 Functional'!C155","v":"CONDUCTORS - OVERHEAD / PRIMARY - DEMAND"},{"$f":"'FR-16(7)(v)-1 Functional'!D155","v":"K205"},null,{"$f":"'FR-16(7)(v)-14 TOTAL CLASS'!I155","v":28935},{"$f":"'FR-16(7)(v)-3 PROD Demand'!I155+'FR-16(7)(v)-7 TRANS Demand'!I155+'FR-16(7)(v)-11 DIST Demand'!I155","v":28935},{"$f":"'FR-16(7)(v)-4 PROD Energy'!I155+'FR-16(7)(v)-8 TRANS Energy'!I155+'FR-16(7)(v)-12 DIST Energy'!I155","v":0},{"$f":"'FR-16(7)(v)-5 PROD Cust'!I155+'FR-16(7)(v)-9 TRANS Cust'!I155+'FR-16(7)(v)-13 DIST Cust'!I155","v":0},28935,0]
[22,null,{"$f":"'FR-16(7)(v)-1 Functional'!C156","v":"CONDUCTORS - OVERHEAD / PRIMARY - CUSTOMER"},{"$f":"'FR-16(7)(v)-1 Functional'!D156","v":"K405"},null,{"$f":"'FR-16(7)(v)-14 TOTAL CLASS'!I156","v":5927},{"$f":"'FR-16(7)(v)-3 PROD Demand'!I156+'FR-16(7)(v)-7 TRANS Demand'!I156+'FR-16(7)(v)-11 DIST Demand'!I156","v":0},{"$f":"'FR-16(7)(v)-4 PROD Energy'!I156+'FR-16(7)(v)-8 TRANS Energy'!I156+'FR-16(7)(v)-12 DIST Energy'!I156","v":0},{"$f":"'FR-16(7)(v)-5 PROD Cust'!I156+'FR-16(7)(v)-9 TRANS Cust'!I156+'FR-16(7)(v)-13 DIST Cust'!I156","v":5927},5927,0]
[23,null,{"$f":"'FR-16(7)(v)-1 Functional'!C157","v":"CONDUCTORS - OVERHEAD / SECONDARY - DEMAND"},{"$f":"'FR-16(7)(v)-1 Functional'!D157","v":"K206"},null,{"$f":"'FR-16(7)(v)-14 TOTAL CLASS'!I157","v":11782},{"$f":"'FR-16(7)(v)-3 PROD Demand'!I157+'FR-16(7)(v)-7 TRANS Demand'!I157+'FR-16(7)(v)-11 DIST Demand'!I157","v":11782},{"$f":"'FR-16(7)(v)-4 PROD Energy'!I157+'FR-16(7)(v)-8 TRANS Energy'!I157+'FR-16(7)(v)-12 DIST Energy'!I157","v":0},{"$f":"'FR-16(7)(v)-5 PROD Cust'!I157+'FR-16(7)(v)-9 TRANS Cust'!I157+'FR-16(7)(v)-13 DIST Cust'!I157","v":0},11782,0]
[24,null,{"$f":"'FR-16(7)(v)-1 Functional'!C158","v":"CONDUCTORS - OVERHEAD / SECONDARY - CUSTOMER"},{"$f":"'FR-16(7)(v)-1 Functional'!D158","v":"K405"},null,{"$f":"'FR-16(7)(v)-14 TOTAL CLASS'!I158","v":2455},{"$f":"'FR-16(7)(v)-3 PROD Demand'!I158+'FR-16(7)(v)-7 TRANS Demand'!I158+'FR-16(7)(v)-11 DIST Demand'!I158","v":0},{"$f":"'FR-16(7)(v)-4 PROD Energy'!I158+'FR-16(7)(v)-8 TRANS Energy'!I158+'FR-16(7)(v)-12 DIST Energy'!I158","v":0},{"$f":"'FR-16(7)(v)-5 PROD Cust'!I158+'FR-16(7)(v)-9 TRANS Cust'!I158+'FR-16(7)(v)-13 DIST Cust'!I158","v":2455},2455,0]
[25,null,{"$f":"'FR-16(7)(v)-1 Functional'!C159","v":"CONDUCTORS - UNDERGROUND / PRIMARY - DEMAND"},{"$f":"'FR-16(7)(v)-1 Functional'!D159","v":"K205"},null,{"$f":"'FR-16(7)(v)-14 TOTAL CLASS'!I159","v":21422},{"$f":"'FR-16(7)(v)-3 PROD Demand'!I159+'FR-16(7)(v)-7 TRANS Demand'!I159+'FR-16(7)(v)-11 DIST Demand'!I159","v":21422},{"$f":"'FR-16(7)(v)-4 PROD Energy'!I159+'FR-16(7)(v)-8 TRANS Energy'!I159+'FR-16(7)(v)-12 DIST Energy'!I159","v":0},{"$f":"'FR-16(7)(v)-5 PROD Cust'!I159+'FR-16(7)(v)-9 TRANS Cust'!I159+'FR-16(7)(v)-13 DIST Cust'!I159","v":0},21422,0]
[26,null,{"$f":"'FR-16(7)(v)-1 Functional'!C160","v":"CONDUCTORS - UNDERGROUND / PRIMARY - CUSTOMER"},{"$f":"'FR-16(7)(v)-1 Functional'!D160","v":"K405"},null,{"$f":"'FR-16(7)(v)-14 TOTAL CLASS'!I160","v":6240},{"$f":"'FR-16(7)(v)-3 PROD Demand'!I160+'FR-16(7)(v)-7 TRANS Demand'!I160+'FR-16(7)(v)-11 DIST Demand'!I160","v":0},{"$f":"'FR-16(7)(v)-4 PROD Energy'!I160+'FR-16(7)(v)-8 TRANS Energy'!I160+'FR-16(7)(v)-12 DIST Energy'!I160","v":0},{"$f":"'FR-16(7)(v)-5 PROD Cust'!I160+'FR-16(7)(v)-9 TRANS Cust'!I160+'FR-16(7)(v)-13 DIST Cust'!I160","v":6240},6240,0]
[27,null,{"$f":"'FR-16(7)(v)-1 Functional'!C161","v":"CONDUCTORS - UNDERGROUND / SECONDARY - DEMAND"},{"$f":"'FR-16(7)(v)-1 Functional'!D161","v":"K206"},null,{"$f":"'FR-16(7)(v)-14 TOTAL CLASS'!I161","v":3670},{"$f":"'FR-16(7)(v)-3 PROD Demand'!I161+'FR-16(7)(v)-7 TRANS Demand'!I161+'FR-16(7)(v)-11 DIST Demand'!I161","v":3670},{"$f":"'FR-16(7)(v)-4 PROD Energy'!I161+'FR-16(7)(v)-8 TRANS Energy'!I161+'FR-16(7)(v)-12 DIST Energy'!I161","v":0},{"$f":"'FR-16(7)(v)-5 PROD Cust'!I161+'FR-16(7)(v)-9 TRANS Cust'!I161+'FR-16(7)(v)-13 DIST Cust'!I161","v":0},3670,0]
[28,null,{"$f":"'FR-16(7)(v)-1 Functional'!C162","v":"CONDUCTORS - UNDERGROUND / SECONDARY - CUSTOMER"},{"$f":"'FR-16(7)(v)-1 Functional'!D162","v":"K405"},null,{"$f":"'FR-16(7)(v)-14 TOTAL CLASS'!I162","v":1951},{"$f":"'FR-16(7)(v)-3 PROD Demand'!I162+'FR-16(7)(v)-7 TRANS Demand'!I162+'FR-16(7)(v)-11 DIST Demand'!I162","v":0},{"$f":"'FR-16(7)(v)-4 PROD Energy'!I162+'FR-16(7)(v)-8 TRANS Energy'!I162+'FR-16(7)(v)-12 DIST Energy'!I162","v":0},{"$f":"'FR-16(7)(v)-5 PROD Cust'!I162+'FR-16(7)(v)-9 TRANS Cust'!I162+'FR-16(7)(v)-13 DIST Cust'!I162","v":1951},1951,0]
[29,null,{"$f":"'FR-16(7)(v)-1 Functional'!C163","v":"TRANSFORMERS DEMAND RELATED"},{"$f":"'FR-16(7)(v)-1 Functional'!D163","v":"K215"},null,{"$f":"'FR-16(7)(v)-14 TOTAL CLASS'!I163","v":26453},{"$f":"'FR-16(7)(v)-3 PROD Demand'!I163+'FR-16(7)(v)-7 TRANS Demand'!I163+'FR-16(7)(v)-11 DIST Demand'!I163","v":26453},{"$f":"'FR-16(7)(v)-4 PROD Energy'!I163+'FR-16(7)(v)-8 TRANS Energy'!I163+'FR-16(7)(v)-12 DIST Energy'!I163","v":0},{"$f":"'FR-16(7)(v)-5 PROD Cust'!I163+'FR-16(7)(v)-9 TRANS Cust'!I163+'FR-16(7)(v)-13 DIST Cust'!I163","v":0},{"$f":"SUM(G163:I163)","v":26453},{"$f":"F163-J163","v":0}]
[30,null,{"$f":"'FR-16(7)(v)-1 Functional'!C164","v":"TRANSFORMERS CUSTOMER RELATED"},{"$f":"'FR-16(7)(v)-1 Functional'!D164","v":"K405"},null,{"$f":"'FR-16(7)(v)-14 TOTAL CLASS'!I164","v":8063},{"$f":"'FR-16(7)(v)-3 PROD Demand'!I164+'FR-16(7)(v)-7 TRANS Demand'!I164+'FR-16(7)(v)-11 DIST Demand'!I164","v":0},{"$f":"'FR-16(7)(v)-4 PROD Energy'!I164+'FR-16(7)(v)-8 TRANS Energy'!I164+'FR-16(7)(v)-12 DIST Energy'!I164","v":0},{"$f":"'FR-16(7)(v)-5 PROD Cust'!I164+'FR-16(7)(v)-9 TRANS Cust'!I164+'FR-16(7)(v)-13 DIST Cust'!I164","v":8063},8063,0]
[31,null,{"$f":"'FR-16(7)(v)-1 Functional'!C165","v":"SERVICES"},{"$f":"'FR-16(7)(v)-1 Functional'!D165","v":"K217"},null,{"$f":"'FR-16(7)(v)-14 TOTAL CLASS'!I165","v":13991},{"$f":"'FR-16(7)(v)-3 PROD Demand'!I165+'FR-16(7)(v)-7 TRANS Demand'!I165+'FR-16(7)(v)-11 DIST Demand'!I165","v":0},{"$f":"'FR-16(7)(v)-4 PROD Energy'!I165+'FR-16(7)(v)-8 TRANS Energy'!I165+'FR-16(7)(v)-12 DIST Energy'!I165","v":0},{"$f":"'FR-16(7)(v)-5 PROD Cust'!I165+'FR-16(7)(v)-9 TRANS Cust'!I165+'FR-16(7)(v)-13 DIST Cust'!I165","v":13991},13991,0]
[32,null,{"$f":"'FR-16(7)(v)-1 Functional'!C166","v":"METERS"},{"$f":"'FR-16(7)(v)-1 Functional'!D166","v":"K407"},null,{"$f":"'FR-16(7)(v)-14 TOTAL CLASS'!I166","v":0},{"$f":"'FR-16(7)(v)-3 PROD Demand'!I166+'FR-16(7)(v)-7 TRANS Demand'!I166+'FR-16(7)(v)-11 DIST Demand'!I166","v":0},{"$f":"'FR-16(7)(v)-4 PROD Energy'!I166+'FR-16(7)(v)-8 TRANS Energy'!I166+'FR-16(7)(v)-12 DIST Energy'!I166","v":0},{"$f":"'FR-16(7)(v)-5 PROD Cust'!I166+'FR-16(7)(v)-9 TRANS Cust'!I166+'FR-16(7)(v)-13 DIST Cust'!I166","v":0},0,0]
[33,null,{"$f":"'FR-16(7)(v)-1 Functional'!C167","v":"STREET LIGHTS"},{"$f":"'FR-16(7)(v)-1 Functional'!D167","v":"K401"},null,{"$f":"'FR-16(7)(v)-14 TOTAL CLASS'!I167","v":0},{"$f":"'FR-16(7)(v)-3 PROD Demand'!I167+'FR-16(7)(v)-7 TRANS Demand'!I167+'FR-16(7)(v)-11 DIST Demand'!I167","v":0},{"$f":"'FR-16(7)(v)-4 PROD Energy'!I167+'FR-16(7)(v)-8 TRANS Energy'!I167+'FR-16(7)(v)-12 DIST Energy'!I167","v":0},{"$f":"'FR-16(7)(v)-5 PROD Cust'!I167+'FR-16(7)(v)-9 TRANS Cust'!I167+'FR-16(7)(v)-13 DIST Cust'!I167","v":0},0,0]
[34,null,{"$f":"'FR-16(7)(v)-1 Functional'!C168","v":"ADJUSTMENT  "},{"$f":"'FR-16(7)(v)-1 Functional'!D168","v":"K209"},null,{"$f":"'FR-16(7)(v)-14 TOTAL CLASS'!I168","v":559},{"$f":"'FR-16(7)(v)-3 PROD Demand'!I168+'FR-16(7)(v)-7 TRANS Demand'!I168+'FR-16(7)(v)-11 DIST Demand'!I168","v":442},{"$f":"'FR-16(7)(v)-4 PROD Energy'!I168+'FR-16(7)(v)-8 TRANS Energy'!I168+'FR-16(7)(v)-12 DIST Energy'!I168","v":0},{"$f":"'FR-16(7)(v)-5 PROD Cust'!I168+'FR-16(7)(v)-9 TRANS Cust'!I168+'FR-16(7)(v)-13 DIST Cust'!I168","v":117},559,0]
[35,null,{"$f":"'FR-16(7)(v)-1 Functional'!C169","v":"CONSTRUCTION NOT CLASSIFIED"},{"$f":"'FR-16(7)(v)-1 Functional'!D169","v":"K209"},null,{"$f":"'FR-16(7)(v)-14 TOTAL CLASS'!I169","v":1826},{"$f":"'FR-16(7)(v)-3 PROD Demand'!I169+'FR-16(7)(v)-7 TRANS Demand'!I169+'FR-16(7)(v)-11 DIST Demand'!I169","v":1443},{"$f":"'FR-16(7)(v)-4 PROD Energy'!I169+'FR-16(7)(v)-8 TRANS Energy'!I169+'FR-16(7)(v)-12 DIST Energy'!I169","v":0},{"$f":"'FR-16(7)(v)-5 PROD Cust'!I169+'FR-16(7)(v)-9 TRANS Cust'!I169+'FR-16(7)(v)-13 DIST Cust'!I169","v":383},1826,0]
[36,null,{"$f":"'FR-16(7)(v)-1 Functional'!C170","v":"RWIP"},{"$f":"'FR-16(7)(v)-1 Functional'!D170","v":"K215"},null,{"$f":"'FR-16(7)(v)-14 TOTAL CLASS'!I170","v":-22084},{"$f":"'FR-16(7)(v)-3 PROD Demand'!I170+'FR-16(7)(v)-7 TRANS Demand'!I170+'FR-16(7)(v)-11 DIST Demand'!I170","v":-22084},{"$f":"'FR-16(7)(v)-4 PROD Energy'!I170+'FR-16(7)(v)-8 TRANS Energy'!I170+'FR-16(7)(v)-12 DIST Energy'!I170","v":0},{"$f":"'FR-16(7)(v)-5 PROD Cust'!I170+'FR-16(7)(v)-9 TRANS Cust'!I170+'FR-16(7)(v)-13 DIST Cust'!I170","v":0},{"$f":"SUM(G170:I170)","v":-22084},{"$f":"F170-J170","v":0}]
[37,null,{"$f":"'FR-16(7)(v)-1 Functional'!C171","v":"  TOTAL DIST DEPREC RESERVE"},null,null,{"$f":"SUM(F149:F170)","v":172222},{"$f":"SUM(G149:G170)","v":122841},0,49381,172222,0]
[38]
[39,null,"TOTAL TRANS & DIST DEPREC RESERVE",null,null,{"$f":"F171+F145","v":198078},{"$f":"G171+G145","v":148697},{"$f":"H171+H145","v":0},{"$f":"I171+I145","v":49381},{"$f":"J171+J145","v":198078},{"$f":"F173-J173","v":0}]
[40,null,"TOTAL GROSS PTD PLANT DEPREC RESERVE",null,null,{"$f":"F147+F171","v":961093},{"$f":"G147+G171","v":911712},{"$f":"H147+H171","v":0},{"$f":"I147+I171","v":49381},{"$f":"J147+J171","v":961093},{"$f":"F174-J174","v":0}]
[41]
[42,"GENERAL & INTANGIBLE PLANT"]
[43,null,{"$f":"'FR-16(7)(v)-1 Functional'!C177","v":"PRODUCTION - DEMAND"},{"$f":"'FR-16(7)(v)-1 Functional'!D177","v":"K201"},null,{"$f":"'FR-16(7)(v)-14 TOTAL CLASS'!I177","v":6998},{"$f":"'FR-16(7)(v)-3 PROD Demand'!I177+'FR-16(7)(v)-7 TRANS Demand'!I177+'FR-16(7)(v)-11 DIST Demand'!I177","v":6998},{"$f":"'FR-16(7)(v)-4 PROD Energy'!I177+'FR-16(7)(v)-8 TRANS Energy'!I177+'FR-16(7)(v)-12 DIST Energy'!I177","v":0},{"$f":"'FR-16(7)(v)-5 PROD Cust'!I177+'FR-16(7)(v)-9 TRANS Cust'!I177+'FR-16(7)(v)-13 DIST Cust'!I177","v":0},{"$f":"SUM(G177:I177)","v":6998},{"$f":"F177-J177","v":0}]
[44,null,{"$f":"'FR-16(7)(v)-1 Functional'!C178","v":"PRODUCTION - ENERGY"},{"$f":"'FR-16(7)(v)-1 Functional'!D178","v":"K301"},null,{"$f":"'FR-16(7)(v)-14 TOTAL CLASS'!I178","v":9498},{"$f":"'FR-16(7)(v)-3 PROD Demand'!I178+'FR-16(7)(v)-7 TRANS Demand'!I178+'FR-16(7)(v)-11 DIST Demand'!I178","v":0},{"$f":"'FR-16(7)(v)-4 PROD Energy'!I178+'FR-16(7)(v)-8 TRANS Energy'!I178+'FR-16(7)(v)-12 DIST Energy'!I178","v":9498},{"$f":"'FR-16(7)(v)-5 PROD Cust'!I178+'FR-16(7)(v)-9 TRANS Cust'!I178+'FR-16(7)(v)-13 DIST Cust'!I178","v":0},{"$f":"SUM(G178:I178)","v":9498},{"$f":"F178-J178","v":0}]
[45,null,{"$f":"'FR-16(7)(v)-1 Functional'!C179","v":"TRANSMISSION"},{"$f":"'FR-16(7)(v)-1 Functional'!D179","v":"K202"},null,{"$f":"'FR-16(7)(v)-14 TOTAL CLASS'!I179","v":1106},{"$f":"'FR-16(7)(v)-3 PROD Demand'!I179+'FR-16(7)(v)-7 TRANS Demand'!I179+'FR-16(7)(v)-11 DIST Demand'!I179","v":1106},{"$f":"'FR-16(7)(v)-4 PROD Energy'!I179+'FR-16(7)(v)-8 TRANS Energy'!I179+'FR-16(7)(v)-12 DIST Energy'!I179","v":0},{"$f":"'FR-16(7)(v)-5 PROD Cust'!I179+'FR-16(7)(v)-9 TRANS Cust'!I179+'FR-16(7)(v)-13 DIST Cust'!I179","v":0},1106,0]
[46,null,{"$f":"'FR-16(7)(v)-1 Functional'!C180","v":"DISTRIBUTION - DEMAND"},{"$f":"'FR-16(7)(v)-1 Functional'!D180","v":"K201"},null,{"$f":"'FR-16(7)(v)-14 TOTAL CLASS'!I180","v":3714},{"$f":"'FR-16(7)(v)-3 PROD Demand'!I180+'FR-16(7)(v)-7 TRANS Demand'!I180+'FR-16(7)(v)-11 DIST Demand'!I180","v":3714},{"$f":"'FR-16(7)(v)-4 PROD Energy'!I180+'FR-16(7)(v)-8 TRANS Energy'!I180+'FR-16(7)(v)-12 DIST Energy'!I180","v":0},{"$f":"'FR-16(7)(v)-5 PROD Cust'!I180+'FR-16(7)(v)-9 TRANS Cust'!I180+'FR-16(7)(v)-13 DIST Cust'!I180","v":0},3714,0]
[47,null,{"$f":"'FR-16(7)(v)-1 Functional'!C181","v":"DISTRIBUTION - CUSTOMER"},{"$f":"'FR-16(7)(v)-1 Functional'!D181","v":"K405"},null,{"$f":"'FR-16(7)(v)-14 TOTAL CLASS'!I181","v":759},{"$f":"'FR-16(7)(v)-3 PROD Demand'!I181+'FR-16(7)(v)-7 TRANS Demand'!I181+'FR-16(7)(v)-11 DIST Demand'!I181","v":0},{"$f":"'FR-16(7)(v)-4 PROD Energy'!I181+'FR-16(7)(v)-8 TRANS Energy'!I181+'FR-16(7)(v)-12 DIST Energy'!I181","v":0},{"$f":"'FR-16(7)(v)-5 PROD Cust'!I181+'FR-16(7)(v)-9 TRANS Cust'!I181+'FR-16(7)(v)-13 DIST Cust'!I181","v":759},759,0]
[48,null,{"$f":"'FR-16(7)(v)-1 Functional'!C182","v":"CUSTOMER ACCOUNTING"},{"$f":"'FR-16(7)(v)-1 Functional'!D182","v":"A308"},null,{"$f":"'FR-16(7)(v)-14 TOTAL CLASS'!I182","v":2154},{"$f":"'FR-16(7)(v)-3 PROD Demand'!I182+'FR-16(7)(v)-7 TRANS Demand'!I182+'FR-16(7)(v)-11 DIST Demand'!I182","v":0},{"$f":"'FR-16(7)(v)-4 PROD Energy'!I182+'FR-16(7)(v)-8 TRANS Energy'!I182+'FR-16(7)(v)-12 DIST Energy'!I182","v":0},{"$f":"'FR-16(7)(v)-5 PROD Cust'!I182+'FR-16(7)(v)-9 TRANS Cust'!I182+'FR-16(7)(v)-13 DIST Cust'!I182","v":2154},2154,0]
[49,null,{"$f":"'FR-16(7)(v)-1 Functional'!C183","v":"CUSTOMER SERVICE & INFORMATION"},{"$f":"'FR-16(7)(v)-1 Functional'!D183","v":"A310"},null,{"$f":"'FR-16(7)(v)-14 TOTAL CLASS'!I183","v":169},{"$f":"'FR-16(7)(v)-3 PROD Demand'!I183+'FR-16(7)(v)-7 TRANS Demand'!I183+'FR-16(7)(v)-11 DIST Demand'!I183","v":0},{"$f":"'FR-16(7)(v)-4 PROD Energy'!I183+'FR-16(7)(v)-8 TRANS Energy'!I183+'FR-16(7)(v)-12 DIST Energy'!I183","v":0},{"$f":"'FR-16(7)(v)-5 PROD Cust'!I183+'FR-16(7)(v)-9 TRANS Cust'!I183+'FR-16(7)(v)-13 DIST Cust'!I183","v":169},169,0]
[50,null,{"$f":"'FR-16(7)(v)-1 Functional'!C184","v":"SALES"},{"$f":"'FR-16(7)(v)-1 Functional'!D184","v":"A312"},null,{"$f":"'FR-16(7)(v)-14 TOTAL CLASS'!I184","v":0},{"$f":"'FR-16(7)(v)-3 PROD Demand'!I184+'FR-16(7)(v)-7 TRANS Demand'!I184+'FR-16(7)(v)-11 DIST Demand'!I184","v":0},{"$f":"'FR-16(7)(v)-4 PROD Energy'!I184+'FR-16(7)(v)-8 TRANS Energy'!I184+'FR-16(7)(v)-12 DIST Energy'!I184","v":0},{"$f":"'FR-16(7)(v)-5 PROD Cust'!I184+'FR-16(7)(v)-9 TRANS Cust'!I184+'FR-16(7)(v)-13 DIST Cust'!I184","v":0},0,0]
[51,null,{"$f":"'FR-16(7)(v)-1 Functional'!C185","v":"ADJUSTMENT"},{"$f":"'FR-16(7)(v)-1 Functional'!D185","v":"A315"},null,{"$f":"'FR-16(7)(v)-14 TOTAL CLASS'!I185","v":242},{"$f":"'FR-16(7)(v)-3 PROD Demand'!I185+'FR-16(7)(v)-7 TRANS Demand'!I185+'FR-16(7)(v)-11 DIST Demand'!I185","v":24},{"$f":"'FR-16(7)(v)-4 PROD Energy'!I185+'FR-16(7)(v)-8 TRANS Energy'!I185+'FR-16(7)(v)-12 DIST Energy'!I185","v":169},{"$f":"'FR-16(7)(v)-5 PROD Cust'!I185+'FR-16(7)(v)-9 TRANS Cust'!I185+'FR-16(7)(v)-13 DIST Cust'!I185","v":49},242,0]
[52,null,{"$f":"'FR-16(7)(v)-1 Functional'!C186","v":"  GENERAL & INTANG PLANT"},null,null,{"$f":"SUM(F176:F185)","v":24640},11842,9667,3131,24640,0]
[53]
[54,"COMMON & OTHER PLANT"]
[55,null,{"$f":"'FR-16(7)(v)-1 Functional'!C189","v":"PRODUCTION - DEMAND"},{"$f":"'FR-16(7)(v)-1 Functional'!D189","v":"K201"},null,{"$f":"'FR-16(7)(v)-14 TOTAL CLASS'!I189","v":9456},{"$f":"'FR-16(7)(v)-3 PROD Demand'!I189+'FR-16(7)(v)-7 TRANS Demand'!I189+'FR-16(7)(v)-11 DIST Demand'!I189","v":9456},{"$f":"'FR-16(7)(v)-4 PROD Energy'!I189+'FR-16(7)(v)-8 TRANS Energy'!I189+'FR-16(7)(v)-12 DIST Energy'!I189","v":0},{"$f":"'FR-16(7)(v)-5 PROD Cust'!I189+'FR-16(7)(v)-9 TRANS Cust'!I189+'FR-16(7)(v)-13 DIST Cust'!I189","v":0},{"$f":"SUM(G189:I189)","v":9456},{"$f":"F189-J189","v":0}]
[56,null,{"$f":"'FR-16(7)(v)-1 Functional'!C190","v":"PRODUCTION - ENERGY"},{"$f":"'FR-16(7)(v)-1 Functional'!D190","v":"K301"},null,{"$f":"'FR-16(7)(v)-14 TOTAL CLASS'!I190","v":12833},{"$f":"'FR-16(7)(v)-3 PROD Demand'!I190+'FR-16(7)(v)-7 TRANS Demand'!I190+'FR-16(7)(v)-11 DIST Demand'!I190","v":0},{"$f":"'FR-16(7)(v)-4 PROD Energy'!I190+'FR-16(7)(v)-8 TRANS Energy'!I190+'FR-16(7)(v)-12 DIST Energy'!I190","v":12833},{"$f":"'FR-16(7)(v)-5 PROD Cust'!I190+'FR-16(7)(v)-9 TRANS Cust'!I190+'FR-16(7)(v)-13 DIST Cust'!I190","v":0},{"$f":"SUM(G190:I190)","v":12833},{"$f":"F190-J190","v":0}]
[57,null,{"$f":"'FR-16(7)(v)-1 Functional'!C191","v":"TRANSMISSION"},{"$f":"'FR-16(7)(v)-1 Functional'!D191","v":"K202"},null,{"$f":"'FR-16(7)(v)-14 TOTAL CLASS'!I191","v":1494},{"$f":"'FR-16(7)(v)-3 PROD Demand'!I191+'FR-16(7)(v)-7 TRANS Demand'!I191+'FR-16(7)(v)-11 DIST Demand'!I191","v":1494},{"$f":"'FR-16(7)(v)-4 PROD Energy'!I191+'FR-16(7)(v)-8 TRANS Energy'!I191+'FR-16(7)(v)-12 DIST Energy'!I191","v":0},{"$f":"'FR-16(7)(v)-5 PROD Cust'!I191+'FR-16(7)(v)-9 TRANS Cust'!I191+'FR-16(7)(v)-13 DIST Cust'!I191","v":0},1494,0]
[58,null,{"$f":"'FR-16(7)(v)-1 Functional'!C192","v":"DISTRIBUTION - DEMAND"},{"$f":"'FR-16(7)(v)-1 Functional'!D192","v":"K201"},null,{"$f":"'FR-16(7)(v)-14 TOTAL CLASS'!I192","v":5018},{"$f":"'FR-16(7)(v)-3 PROD Demand'!I192+'FR-16(7)(v)-7 TRANS Demand'!I192+'FR-16(7)(v)-11 DIST Demand'!I192","v":5018},{"$f":"'FR-16(7)(v)-4 PROD Energy'!I192+'FR-16(7)(v)-8 TRANS Energy'!I192+'FR-16(7)(v)-12 DIST Energy'!I192","v":0},{"$f":"'FR-16(7)(v)-5 PROD Cust'!I192+'FR-16(7)(v)-9 TRANS Cust'!I192+'FR-16(7)(v)-13 DIST Cust'!I192","v":0},5018,0]
[59,null,{"$f":"'FR-16(7)(v)-1 Functional'!C193","v":"DISTRIBUTION - CUSTOMER"},{"$f":"'FR-16(7)(v)-1 Functional'!D193","v":"K405"},null,{"$f":"'FR-16(7)(v)-14 TOTAL CLASS'!I193","v":1025},{"$f":"'FR-16(7)(v)-3 PROD Demand'!I193+'FR-16(7)(v)-7 TRANS Demand'!I193+'FR-16(7)(v)-11 DIST Demand'!I193","v":0},{"$f":"'FR-16(7)(v)-4 PROD Energy'!I193+'FR-16(7)(v)-8 TRANS Energy'!I193+'FR-16(7)(v)-12 DIST Energy'!I193","v":0},{"$f":"'FR-16(7)(v)-5 PROD Cust'!I193+'FR-16(7)(v)-9 TRANS Cust'!I193+'FR-16(7)(v)-13 DIST Cust'!I193","v":1025},1025,0]
[60,null,{"$f":"'FR-16(7)(v)-1 Functional'!C194","v":"CUSTOMER ACCOUNTING"},{"$f":"'FR-16(7)(v)-1 Functional'!D194","v":"A308"},null,{"$f":"'FR-16(7)(v)-14 TOTAL CLASS'!I194","v":2910},{"$f":"'FR-16(7)(v)-3 PROD Demand'!I194+'FR-16(7)(v)-7 TRANS Demand'!I194+'FR-16(7)(v)-11 DIST Demand'!I194","v":0},{"$f":"'FR-16(7)(v)-4 PROD Energy'!I194+'FR-16(7)(v)-8 TRANS Energy'!I194+'FR-16(7)(v)-12 DIST Energy'!I194","v":0},{"$f":"'FR-16(7)(v)-5 PROD Cust'!I194+'FR-16(7)(v)-9 TRANS Cust'!I194+'FR-16(7)(v)-13 DIST Cust'!I194","v":2910},2910,0]
[61,null,{"$f":"'FR-16(7)(v)-1 Functional'!C195","v":"CUSTOMER SERVICE & INFORMATION"},{"$f":"'FR-16(7)(v)-1 Functional'!D195","v":"A310"},null,{"$f":"'FR-16(7)(v)-14 TOTAL CLASS'!I195","v":228},{"$f":"'FR-16(7)(v)-3 PROD Demand'!I195+'FR-16(7)(v)-7 TRANS Demand'!I195+'FR-16(7)(v)-11 DIST Demand'!I195","v":0},{"$f":"'FR-16(7)(v)-4 PROD Energy'!I195+'FR-16(7)(v)-8 TRANS Energy'!I195+'FR-16(7)(v)-12 DIST Energy'!I195","v":0},{"$f":"'FR-16(7)(v)-5 PROD Cust'!I195+'FR-16(7)(v)-9 TRANS Cust'!I195+'FR-16(7)(v)-13 DIST Cust'!I195","v":228},228,0]
[62,null,{"$f":"'FR-16(7)(v)-1 Functional'!C196","v":"SALES"},{"$f":"'FR-16(7)(v)-1 Functional'!D196","v":"A312"},null,{"$f":"'FR-16(7)(v)-14 TOTAL CLASS'!I196","v":0},{"$f":"'FR-16(7)(v)-3 PROD Demand'!I196+'FR-16(7)(v)-7 TRANS Demand'!I196+'FR-16(7)(v)-11 DIST Demand'!I196","v":0},{"$f":"'FR-16(7)(v)-4 PROD Energy'!I196+'FR-16(7)(v)-8 TRANS Energy'!I196+'FR-16(7)(v)-12 DIST Energy'!I196","v":0},{"$f":"'FR-16(7)(v)-5 PROD Cust'!I196+'FR-16(7)(v)-9 TRANS Cust'!I196+'FR-16(7)(v)-13 DIST Cust'!I196","v":0},0,0]
[63,null,{"$f":"'FR-16(7)(v)-1 Functional'!C197","v":"ADJUSTMENT"},{"$f":"'FR-16(7)(v)-1 Functional'!D197","v":"A315"},null,{"$f":"'FR-16(7)(v)-14 TOTAL CLASS'!I197","v":13},{"$f":"'FR-16(7)(v)-3 PROD Demand'!I197+'FR-16(7)(v)-7 TRANS Demand'!I197+'FR-16(7)(v)-11 DIST Demand'!I197","v":1},{"$f":"'FR-16(7)(v)-4 PROD Energy'!I197+'FR-16(7)(v)-8 TRANS Energy'!I197+'FR-16(7)(v)-12 DIST Energy'!I197","v":9},{"$f":"'FR-16(7)(v)-5 PROD Cust'!I197+'FR-16(7)(v)-9 TRANS Cust'!I197+'FR-16(7)(v)-13 DIST Cust'!I197","v":3},13,0]
[64,null,{"$f":"'FR-16(7)(v)-1 Functional'!C198","v":"  COMMON & OTHER PLANT IN SERVICE"},null,null,{"$f":"SUM(F189:F197)","v":32977},{"$f":"SUM(G188:G197)","v":15969},{"$f":"SUM(H188:H197)","v":12842},{"$f":"SUM(I188:I197)","v":4166},{"$f":"SUM(J188:J197)","v":32977},{"$f":"SUM(K188:K197)","v":0}]
[65]
[66,"TOTAL DEPRECIATION RESERVE",null,null,null,{"$f":"F198+F186+F171+F145+F139","v":1018710},939523,22509,56678,1018710,0]
[]
[{"$f":"co_name","v":"DUKE ENERGY KENTUCKY, INC."},null,null,null,null,null,null,null,null,{"$f":"J1","v":"FR-16(7)(v)-17"}]
[{"$f":"$A$2","v":"GSFL SECONDARY CLASSIFIED - ELECTRIC COST OF SERVICE"},null,null,null,null,null,null,null,null,{"$f":"J2","v":"WITNESS RESPONSIBLE:"}]
[{"$f":"case_name","v":"CASE NO: 2019-00271"},null,null,null,null,null,null,null,null,{"$f":"Witness","v":"JAMES E. ZIOLKOWSKI"}]
[{"$f":"data_filing","v":"DATA: 12 MONTHS ACTUAL  & 0 MONTHS ESTIMATED"},null,null,null,null,null,null,null,null,{"$f":"\"PAGE \"&Pages2-11&\" OF \"&Pages2","v":"PAGE 4 OF 15"}]
[{"$f":"type","v":"TYPE OF FILING: \"X\" ORIGINAL   UPDATED    REVISED  "}]
[]
[]
["LINE",null,null,null,null,"TOTAL","CLASSIFIED",null,null,"TOTAL","ALL"]
["NO.",{"$f":"\"NET ELECTRIC PLANT\"","v":"NET ELECTRIC PLANT"},null,"ALLO",null,{"$f":"$F$9","v":"GSFL SECONDARY"},{"$f":"G9","v":"DEMAND"},"ENERGY","CUSTOMER","AT ISSUE","OTHER"]
[null,null,"Schedule 4",null,null,null,3,4,5]
[1,"PRODUCTION PLANT"]
[2,null,{"$f":"'FR-16(7)(v)-1 Functional'!C213","v":"PRODUCTION STEAM"},null,null,{"$f":"F59-F136","v":564435},564435,0,0,564435,0]
[3,null,{"$f":"'FR-16(7)(v)-1 Functional'!C214","v":"PRODUCTION OTHER"},null,null,{"$f":"F60-F137","v":246000},246000,0,0,246000,0]
[4,null,{"$f":"'FR-16(7)(v)-1 Functional'!C215","v":"ADJUSTMENT"},null,null,-2019,-2019,0,0,-2019,0]
[5,null,{"$f":"'FR-16(7)(v)-1 Functional'!C216","v":"  NET PRODUCTION PLANT"},null,null,{"$f":"SUM(F213:F215)","v":808416},808416,0,0,808416,0]
[6]
[7,"TRANSMISSION PLANT"]
[8,null,{"$f":"'FR-16(7)(v)-1 Functional'!C219","v":"MAIN STEP-UP TRANSFORMERS"},null,null,{"$f":"F65-F142","v":0},0,0,0,0,0]
[9,null,{"$f":"'FR-16(7)(v)-1 Functional'!C220","v":"OTHER TRANSMISSION"},null,null,68136,68136,0,0,68136,0]
[10,null,{"$f":"'FR-16(7)(v)-1 Functional'!C221","v":"ADJUSTMENT"},null,null,91,91,0,0,91,0]
[11,null,{"$f":"'FR-16(7)(v)-1 Functional'!C222","v":"    NET TRANSMISSION PLANT"},null,null,{"$f":"SUM(F218:F221)","v":68227},68227,0,0,68227,0]
[12]
[13,"NET PROD & TRANS PLANT",null,null,null,{"$f":"F70-F147","v":876643},876643,0,0,876643,0]
[14]
[15,"DISTRIBUTION PLANT"]
[16,null,{"$f":"'FR-16(7)(v)-1 Functional'!C227","v":"SUBSTATIONS"},null,null,{"$f":"F73-F150","v":93516},93516,0,0,93516,0]
[17,null,{"$f":"'FR-16(7)(v)-1 Functional'!C228","v":"POLES, TOWERS  & FIXTURES - PRIMARY - DEMAND"},null,null,23100,23100,0,0,23100,0]
[18,null,{"$f":"'FR-16(7)(v)-1 Functional'!C229","v":"POLES, TOWERS  & FIXTURES - PRIMARY - CUSTOMER"},null,null,{"$f":"F75-F152","v":9916},0,0,9916,9916,0]
[19,null,{"$f":"'FR-16(7)(v)-1 Functional'!C230","v":"POLES, TOWERS  & FIXTURES - SECONDARY - DEMAND"},null,null,{"$f":"F76-F153","v":8834},8834,0,0,8834,0]
[20,null,{"$f":"'FR-16(7)(v)-1 Functional'!C231","v":"POLES, TOWERS  & FIXTURES - SECONDARY - CUSTOMER"},null,null,{"$f":"F77-F154","v":2241},0,0,2241,2241,0]
[21,null,{"$f":"'FR-16(7)(v)-1 Functional'!C232","v":"CONDUCTORS - OVERHEAD / PRIMARY - DEMAND"},null,null,{"$f":"F78-F155","v":68102},68102,0,0,68102,0]
[22,null,{"$f":"'FR-16(7)(v)-1 Functional'!C233","v":"CONDUCTORS - OVERHEAD / PRIMARY - CUSTOMER"},null,null,{"$f":"F79-F156","v":13949},0,0,13949,13949,0]
[23,null,{"$f":"'FR-16(7)(v)-1 Functional'!C234","v":"CONDUCTORS - OVERHEAD / SECONDARY - DEMAND"},null,null,{"$f":"F80-F157","v":27731},27731,0,0,27731,0]
[24,null,{"$f":"'FR-16(7)(v)-1 Functional'!C235","v":"CONDUCTORS - OVERHEAD / SECONDARY - CUSTOMER"},null,null,{"$f":"F81-F158","v":5778},0,0,5778,5778,0]
[25,null,{"$f":"'FR-16(7)(v)-1 Functional'!C236","v":"CONDUCTORS - UNDERGROUND / PRIMARY - DEMAND"},null,null,{"$f":"F82-F159","v":51000},51000,0,0,51000,0]
[26,null,{"$f":"'FR-16(7)(v)-1 Functional'!C237","v":"CONDUCTORS - UNDERGROUND / PRIMARY - CUSTOMER"},null,null,{"$f":"F83-F160","v":14855},0,0,14855,14855,0]
[27,null,{"$f":"'FR-16(7)(v)-1 Functional'!C238","v":"CONDUCTORS - UNDERGROUND / SECONDARY - DEMAND"},null,null,{"$f":"F84-F161","v":8737},8737,0,0,8737,0]
[28,null,{"$f":"'FR-16(7)(v)-1 Functional'!C239","v":"CONDUCTORS - UNDERGROUND / SECONDARY - CUSTOMER"},null,null,{"$f":"F85-F162","v":4646},0,0,4646,4646,0]
[29,null,{"$f":"'FR-16(7)(v)-1 Functional'!C240","v":"TRANSFORMERS DEMAND RELATED"},null,null,{"$f":"F86-F163","v":34327},34327,0,0,34327,0]
[30,null,{"$f":"'FR-16(7)(v)-1 Functional'!C241","v":"TRANSFORMERS CUSTOMER RELATED"},null,null,10463,0,0,10463,10463,0]
[31,null,{"$f":"'FR-16(7)(v)-1 Functional'!C242","v":"SERVICES"},null,null,11481,0,0,11481,11481,0]
[32,null,{"$f":"'FR-16(7)(v)-1 Functional'!C243","v":"METERS"},null,null,0,0,0,0,0,0]
[33,null,{"$f":"'FR-16(7)(v)-1 Functional'!C244","v":"STREET LIGHTS"},null,null,0,0,0,0,0,0]
[34,null,{"$f":"'FR-16(7)(v)-1 Functional'!C245","v":"ADJUSTMENT  "},null,null,-559,-442,0,-117,-559,0]
[35,null,{"$f":"'FR-16(7)(v)-1 Functional'!C246","v":"CONSTRUCTION NOT CLASSIFIED"},null,null,111476,88107,0,23369,111476,0]
[36,null,{"$f":"'FR-16(7)(v)-1 Functional'!C247","v":"RWIP"},null,null,22084,22084,0,0,22084,0]
[37,null,{"$f":"'FR-16(7)(v)-1 Functional'!C248","v":"  NET DISTRIBUTION PLANT"},null,null,{"$f":"SUM(F226:F247)","v":521677},{"$f":"SUM(G226:G247)","v":425096},0,96581,521677,0]
[38]
[39,"NET PTD PLANT",null,null,null,{"$f":"F96-F173","v":589904},493323,0,96581,589904,0]
[40,"NET TRANS & DIST PLANT",null,null,null,1398320,1301739,0,96581,1398320,0]
[41]
[42,"GENERAL & INTANGIBLE PLANT"]
[43,null,{"$f":"'FR-16(7)(v)-1 Functional'!C254","v":"PRODUCTION - DEMAND"},null,null,{"$f":"F100-F177","v":14717},14717,0,0,14717,0]
[44,null,{"$f":"'FR-16(7)(v)-1 Functional'!C255","v":"PRODUCTION - ENERGY"},null,null,19974,0,19974,0,19974,0]
[45,null,{"$f":"'FR-16(7)(v)-1 Functional'!C256","v":"TRANSMISSION"},null,null,2325,2325,0,0,2325,0]
[46,null,{"$f":"'FR-16(7)(v)-1 Functional'!C257","v":"DISTRIBUTION - DEMAND"},null,null,7811,7811,0,0,7811,0]
[47,null,{"$f":"'FR-16(7)(v)-1 Functional'!C258","v":"DISTRIBUTION - CUSTOMER"}]
[48,null,{"$f":"'FR-16(7)(v)-1 Functional'!C259","v":"CUSTOMER ACCOUNTING"},null,null,{"$f":"F105-F182","v":4529},0,0,4529,4529,0]
[49,null,{"$f":"'FR-16(7)(v)-1 Functional'!C260","v":"CUSTOMER SERVICE & INFORMATION"},null,null,355,0,0,355,355,0]
[50,null,{"$f":"'FR-16(7)(v)-1 Functional'!C261","v":"SALES"},null,null,0,0,0,0,0,0]
[51,null,{"$f":"'FR-16(7)(v)-1 Functional'!C262","v":"ADJUSTMENT"},null,null,-242,-24,-169,-49,-242,0]
[52,null,{"$f":"'FR-16(7)(v)-1 Functional'!C263","v":"  NET GENERAL & INTANG PLANT"},null,null,{"$f":"SUM(F253:F262)","v":49469},24829,19805,4835,49469,0]
[53]
[54,"COMMON & OTHER PLANT"]
[55,null,{"$f":"'FR-16(7)(v)-1 Functional'!C266","v":"PRODUCTION - DEMAND"},null,null,{"$f":"F112-F189","v":2834},2834,0,0,2834,0]
[56,null,{"$f":"'FR-16(7)(v)-1 Functional'!C267","v":"PRODUCTION - ENERGY"},null,null,3847,0,3847,0,3847,0]
[57,null,{"$f":"'FR-16(7)(v)-1 Functional'!C268","v":"TRANSMISSION"},null,null,448,448,0,0,448,0]
[58,null,{"$f":"'FR-16(7)(v)-1 Functional'!C269","v":"DISTRIBUTION - DEMAND"},null,null,1505,1505,0,0,1505,0]
[59,null,{"$f":"'FR-16(7)(v)-1 Functional'!C270","v":"DISTRIBUTION - CUSTOMER"}]
[60,null,{"$f":"'FR-16(7)(v)-1 Functional'!C271","v":"CUSTOMER ACCOUNTING"},null,null,{"$f":"F117-F194","v":873},0,0,873,873,0]
[61,null,{"$f":"'FR-16(7)(v)-1 Functional'!C272","v":"CUSTOMER SERVICE & INFORMATION"},null,null,68,0,0,68,68,0]
[62,null,{"$f":"'FR-16(7)(v)-1 Functional'!C273","v":"SALES"},null,null,0,0,0,0,0,0]
[63,null,{"$f":"'FR-16(7)(v)-1 Functional'!C274","v":"ADJUSTMENT"},null,null,-13,-1,-9,-3,-13,0]
[64,null,{"$f":"'FR-16(7)(v)-1 Functional'!C275","v":"  COMMON & OTHER PLANT IN SERVICE"},null,null,{"$f":"SUM(F265:F274)","v":9562},4786,3838,938,9562,0]
[65]
[66,null,{"$f":"'FR-16(7)(v)-1 Functional'!C277","v":"NET ELECTRIC PLANT IN SERVICE"},null,null,{"$f":"F275+F263+F248+F222+F216","v":1457351},1331354,23643,102354,1457351,0]
[]
[{"$f":"co_name","v":"DUKE ENERGY KENTUCKY, INC."},null,null,null,null,null,null,null,null,{"$f":"J1","v":"FR-16(7)(v)-17"}]
[{"$f":"$A$2","v":"GSFL SECONDARY CLASSIFIED - ELECTRIC COST OF SERVICE"},null,null,null,null,null,null,null,null,{"$f":"J2","v":"WITNESS RESPONSIBLE:"}]
[{"$f":"case_name","v":"CASE NO: 2019-00271"},null,null,null,null,null,null,null,null,{"$f":"Witness","v":"JAMES E. ZIOLKOWSKI"}]
[{"$f":"data_filing","v":"DATA: 12 MONTHS ACTUAL  & 0 MONTHS ESTIMATED"},null,null,null,null,null,null,null,null,{"$f":"\"PAGE \"&Pages2-10&\" OF \"&Pages2","v":"PAGE 5 OF 15"}]
[{"$f":"type","v":"TYPE OF FILING: \"X\" ORIGINAL   UPDATED    REVISED  "}]
[]
[]
["LINE",null,null,null,null,"TOTAL","CLASSIFIED",null,null,"TOTAL","ALL"]
["NO.","SUBTRACTIVE RATE BASE ADJUSTMENTS",null,"ALLO",null,{"$f":"$F$9","v":"GSFL SECONDARY"},{"$f":"G9","v":"DEMAND"},"ENERGY","CUSTOMER","AT ISSUE","OTHER"]
[null,null,"Schedule 5",null,null,null,3,4,5]
[1,"RATE BASE ADJUSTMENTS"]
[2,"ACCUMULATED DEFERRED INCOME TAXES"]
[3," ACCUM DEF INC TAXES (282)"]
[4,null,{"$f":"'FR-16(7)(v)-1 Functional'!C292","v":"LIBERALIZED DEPRECIATION"},{"$f":"'FR-16(7)(v)-1 Functional'!D292","v":"NP29"}," ",{"$f":"'FR-16(7)(v)-14 TOTAL CLASS'!I292","v":86406},{"$f":"'FR-16(7)(v)-3 PROD Demand'!I292+'FR-16(7)(v)-7 TRANS Demand'!I292+'FR-16(7)(v)-11 DIST Demand'!I292","v":78916},{"$f":"'FR-16(7)(v)-4 PROD Energy'!I292+'FR-16(7)(v)-8 TRANS Energy'!I292+'FR-16(7)(v)-12 DIST Energy'!I292","v":1400},{"$f":"'FR-16(7)(v)-5 PROD Cust'!I292+'FR-16(7)(v)-9 TRANS Cust'!I292+'FR-16(7)(v)-13 DIST Cust'!I292","v":6090},{"$f":"SUM(G292:I292)","v":86406},{"$f":"F292-J292","v":0}]
[5,null,{"$f":"'FR-16(7)(v)-1 Functional'!C293","v":"LEASED METERS"},{"$f":"'FR-16(7)(v)-1 Functional'!D293","v":"NP29"}," ",{"$f":"'FR-16(7)(v)-14 TOTAL CLASS'!I293","v":1960},{"$f":"'FR-16(7)(v)-3 PROD Demand'!I293+'FR-16(7)(v)-7 TRANS Demand'!I293+'FR-16(7)(v)-11 DIST Demand'!I293","v":1790},{"$f":"'FR-16(7)(v)-4 PROD Energy'!I293+'FR-16(7)(v)-8 TRANS Energy'!I293+'FR-16(7)(v)-12 DIST Energy'!I293","v":32},{"$f":"'FR-16(7)(v)-5 PROD Cust'!I293+'FR-16(7)(v)-9 TRANS Cust'!I293+'FR-16(7)(v)-13 DIST Cust'!I293","v":138},1960,0]
[6,null,{"$f":"'FR-16(7)(v)-1 Functional'!C294","v":"CONTRIB AID CONSTR"},{"$f":"'FR-16(7)(v)-1 Functional'!D294","v":"D249"}," ",{"$f":"'FR-16(7)(v)-14 TOTAL CLASS'!I294","v":0},{"$f":"'FR-16(7)(v)-3 PROD Demand'!I294+'FR-16(7)(v)-7 TRANS Demand'!I294+'FR-16(7)(v)-11 DIST Demand'!I294","v":0},{"$f":"'FR-16(7)(v)-4 PROD Energy'!I294+'FR-16(7)(v)-8 TRANS Energy'!I294+'FR-16(7)(v)-12 DIST Energy'!I294","v":0},{"$f":"'FR-16(7)(v)-5 PROD Cust'!I294+'FR-16(7)(v)-9 TRANS Cust'!I294+'FR-16(7)(v)-13 DIST Cust'!I294","v":0},0,0]
[7,null,{"$f":"'FR-16(7)(v)-1 Functional'!C295","v":"TAX INTEREST, EXPENSING, DEPR."},{"$f":"'FR-16(7)(v)-1 Functional'!D295","v":"NP29"}," ",{"$f":"'FR-16(7)(v)-14 TOTAL CLASS'!I295","v":86276},{"$f":"'FR-16(7)(v)-3 PROD Demand'!I295+'FR-16(7)(v)-7 TRANS Demand'!I295+'FR-16(7)(v)-11 DIST Demand'!I295","v":78797},{"$f":"'FR-16(7)(v)-4 PROD Energy'!I295+'FR-16(7)(v)-8 TRANS Energy'!I295+'FR-16(7)(v)-12 DIST Energy'!I295","v":1398},{"$f":"'FR-16(7)(v)-5 PROD Cust'!I295+'FR-16(7)(v)-9 TRANS Cust'!I295+'FR-16(7)(v)-13 DIST Cust'!I295","v":6081},86276,0]
[8,null,{"$f":"'FR-16(7)(v)-1 Functional'!C296","v":"AFUDC IN DEBT"},{"$f":"'FR-16(7)(v)-1 Functional'!D296","v":"NP29"}," ",{"$f":"'FR-16(7)(v)-14 TOTAL CLASS'!I296","v":0},{"$f":"'FR-16(7)(v)-3 PROD Demand'!I296+'FR-16(7)(v)-7 TRANS Demand'!I296+'FR-16(7)(v)-11 DIST Demand'!I296","v":0},{"$f":"'FR-16(7)(v)-4 PROD Energy'!I296+'FR-16(7)(v)-8 TRANS Energy'!I296+'FR-16(7)(v)-12 DIST Energy'!I296","v":0},{"$f":"'FR-16(7)(v)-5 PROD Cust'!I296+'FR-16(7)(v)-9 TRANS Cust'!I296+'FR-16(7)(v)-13 DIST Cust'!I296","v":0},0,0]
[9,null,{"$f":"'FR-16(7)(v)-1 Functional'!C297","v":"CASUALTY LOSS"},{"$f":"'FR-16(7)(v)-1 Functional'!D297","v":"K411"}," ",{"$f":"'FR-16(7)(v)-14 TOTAL CLASS'!I297","v":-107},{"$f":"'FR-16(7)(v)-3 PROD Demand'!I297+'FR-16(7)(v)-7 TRANS Demand'!I297+'FR-16(7)(v)-11 DIST Demand'!I297","v":0},{"$f":"'FR-16(7)(v)-4 PROD Energy'!I297+'FR-16(7)(v)-8 TRANS Energy'!I297+'FR-16(7)(v)-12 DIST Energy'!I297","v":0},{"$f":"'FR-16(7)(v)-5 PROD Cust'!I297+'FR-16(7)(v)-9 TRANS Cust'!I297+'FR-16(7)(v)-13 DIST Cust'!I297","v":-107},-107,0]
[10,null,{"$f":"'FR-16(7)(v)-1 Functional'!C298","v":"NON-CASH OVERHEADS"},{"$f":"'FR-16(7)(v)-1 Functional'!D298","v":"G229"}," ",{"$f":"'FR-16(7)(v)-14 TOTAL CLASS'!I298","v":0},{"$f":"'FR-16(7)(v)-3 PROD Demand'!I298+'FR-16(7)(v)-7 TRANS Demand'!I298+'FR-16(7)(v)-11 DIST Demand'!I298","v":0},{"$f":"'FR-16(7)(v)-4 PROD Energy'!I298+'FR-16(7)(v)-8 TRANS Energy'!I298+'FR-16(7)(v)-12 DIST Energy'!I298","v":0},{"$f":"'FR-16(7)(v)-5 PROD Cust'!I298+'FR-16(7)(v)-9 TRANS Cust'!I298+'FR-16(7)(v)-13 DIST Cust'!I298","v":0},0,0]
[11,null,{"$f":"'FR-16(7)(v)-1 Functional'!C299","v":"PLANT FAS 109"},{"$f":"'FR-16(7)(v)-1 Functional'!D299","v":"NP29"}," ",{"$f":"'FR-16(7)(v)-14 TOTAL CLASS'!I299","v":0},{"$f":"'FR-16(7)(v)-3 PROD Demand'!I299+'FR-16(7)(v)-7 TRANS Demand'!I299+'FR-16(7)(v)-11 DIST Demand'!I299","v":0},{"$f":"'FR-16(7)(v)-4 PROD Energy'!I299+'FR-16(7)(v)-8 TRANS Energy'!I299+'FR-16(7)(v)-12 DIST Energy'!I299","v":0},{"$f":"'FR-16(7)(v)-5 PROD Cust'!I299+'FR-16(7)(v)-9 TRANS Cust'!I299+'FR-16(7)(v)-13 DIST Cust'!I299","v":0},0,0]
[12,null,{"$f":"'FR-16(7)(v)-1 Functional'!C300","v":"MISCELLANEOUS"},{"$f":"'FR-16(7)(v)-1 Functional'!D300","v":"NP29"},null,{"$f":"'FR-16(7)(v)-14 TOTAL CLASS'!I300","v":81411},{"$f":"'FR-16(7)(v)-3 PROD Demand'!I300+'FR-16(7)(v)-7 TRANS Demand'!I300+'FR-16(7)(v)-11 DIST Demand'!I300","v":74354},{"$f":"'FR-16(7)(v)-4 PROD Energy'!I300+'FR-16(7)(v)-8 TRANS Energy'!I300+'FR-16(7)(v)-12 DIST Energy'!I300","v":1319},{"$f":"'FR-16(7)(v)-5 PROD Cust'!I300+'FR-16(7)(v)-9 TRANS Cust'!I300+'FR-16(7)(v)-13 DIST Cust'!I300","v":5738},81411,0]
[13,null,{"$f":"'FR-16(7)(v)-1 Functional'!C301","v":"  TOTAL ACCOUNT 282"},null,null,{"$f":"SUM(F292:F300)","v":255946},233857,4149,17940,255946,0]
[14]
[15," ACCUM DEF INC TAXES (283)"]
[16,null,{"$f":"'FR-16(7)(v)-1 Functional'!C304","v":"TRANSITION FROM MISO TO PJM"},{"$f":"'FR-16(7)(v)-1 Functional'!D304","v":"NP29"},null,{"$f":"'FR-16(7)(v)-14 TOTAL CLASS'!I304","v":-4637},{"$f":"'FR-16(7)(v)-3 PROD Demand'!I304+'FR-16(7)(v)-7 TRANS Demand'!I304+'FR-16(7)(v)-11 DIST Demand'!I304","v":-4235},{"$f":"'FR-16(7)(v)-4 PROD Energy'!I304+'FR-16(7)(v)-8 TRANS Energy'!I304+'FR-16(7)(v)-12 DIST Energy'!I304","v":-75},{"$f":"'FR-16(7)(v)-5 PROD Cust'!I304+'FR-16(7)(v)-9 TRANS Cust'!I304+'FR-16(7)(v)-13 DIST Cust'!I304","v":-327},{"$f":"SUM(G304:I304)","v":-4637},{"$f":"F304-J304","v":0}]
[17,null,{"$f":"'FR-16(7)(v)-1 Functional'!C305","v":"DEFERRED PLANT COSTS"},{"$f":"'FR-16(7)(v)-1 Functional'!D305","v":"NP29"},null,{"$f":"'FR-16(7)(v)-14 TOTAL CLASS'!I305","v":904},{"$f":"'FR-16(7)(v)-3 PROD Demand'!I305+'FR-16(7)(v)-7 TRANS Demand'!I305+'FR-16(7)(v)-11 DIST Demand'!I305","v":825},{"$f":"'FR-16(7)(v)-4 PROD Energy'!I305+'FR-16(7)(v)-8 TRANS Energy'!I305+'FR-16(7)(v)-12 DIST Energy'!I305","v":15},{"$f":"'FR-16(7)(v)-5 PROD Cust'!I305+'FR-16(7)(v)-9 TRANS Cust'!I305+'FR-16(7)(v)-13 DIST Cust'!I305","v":64},904,0]
[18,null,{"$f":"'FR-16(7)(v)-1 Functional'!C306","v":"MISCELLANEOUS"},{"$f":"'FR-16(7)(v)-1 Functional'!D306","v":"OM39"},null,{"$f":"'FR-16(7)(v)-14 TOTAL CLASS'!I306","v":14972},{"$f":"'FR-16(7)(v)-3 PROD Demand'!I306+'FR-16(7)(v)-7 TRANS Demand'!I306+'FR-16(7)(v)-11 DIST Demand'!I306","v":2744},{"$f":"'FR-16(7)(v)-4 PROD Energy'!I306+'FR-16(7)(v)-8 TRANS Energy'!I306+'FR-16(7)(v)-12 DIST Energy'!I306","v":11604},{"$f":"'FR-16(7)(v)-5 PROD Cust'!I306+'FR-16(7)(v)-9 TRANS Cust'!I306+'FR-16(7)(v)-13 DIST Cust'!I306","v":624},14972,0]
[19,null,{"$f":"'FR-16(7)(v)-1 Functional'!C307","v":"ENVIRONMENTAL RESERVE"},{"$f":"'FR-16(7)(v)-1 Functional'!D307","v":"NP29"},null,{"$f":"'FR-16(7)(v)-14 TOTAL CLASS'!I307","v":0},{"$f":"'FR-16(7)(v)-3 PROD Demand'!I307+'FR-16(7)(v)-7 TRANS Demand'!I307+'FR-16(7)(v)-11 DIST Demand'!I307","v":0},{"$f":"'FR-16(7)(v)-4 PROD Energy'!I307+'FR-16(7)(v)-8 TRANS Energy'!I307+'FR-16(7)(v)-12 DIST Energy'!I307","v":0},{"$f":"'FR-16(7)(v)-5 PROD Cust'!I307+'FR-16(7)(v)-9 TRANS Cust'!I307+'FR-16(7)(v)-13 DIST Cust'!I307","v":0},0,0]
[20,null,{"$f":"'FR-16(7)(v)-1 Functional'!C308","v":"POST IN-SERVICE CARRYING COSTS"},{"$f":"'FR-16(7)(v)-1 Functional'!D308","v":"NP29"},null,{"$f":"'FR-16(7)(v)-14 TOTAL CLASS'!I308","v":0},{"$f":"'FR-16(7)(v)-3 PROD Demand'!I308+'FR-16(7)(v)-7 TRANS Demand'!I308+'FR-16(7)(v)-11 DIST Demand'!I308","v":0},{"$f":"'FR-16(7)(v)-4 PROD Energy'!I308+'FR-16(7)(v)-8 TRANS Energy'!I308+'FR-16(7)(v)-12 DIST Energy'!I308","v":0},{"$f":"'FR-16(7)(v)-5 PROD Cust'!I308+'FR-16(7)(v)-9 TRANS Cust'!I308+'FR-16(7)(v)-13 DIST Cust'!I308","v":0},0,0]
[21,null,{"$f":"'FR-16(7)(v)-1 Functional'!C309","v":"ARO CUMULATIVE EFFECT"},{"$f":"'FR-16(7)(v)-1 Functional'!D309","v":"NP29"},null,{"$f":"'FR-16(7)(v)-14 TOTAL CLASS'!I309","v":0},{"$f":"'FR-16(7)(v)-3 PROD Demand'!I309+'FR-16(7)(v)-7 TRANS Demand'!I309+'FR-16(7)(v)-11 DIST Demand'!I309","v":0},{"$f":"'FR-16(7)(v)-4 PROD Energy'!I309+'FR-16(7)(v)-8 TRANS Energy'!I309+'FR-16(7)(v)-12 DIST Energy'!I309","v":0},{"$f":"'FR-16(7)(v)-5 PROD Cust'!I309+'FR-16(7)(v)-9 TRANS Cust'!I309+'FR-16(7)(v)-13 DIST Cust'!I309","v":0},0,0]
[22,null,{"$f":"'FR-16(7)(v)-1 Functional'!C310","v":"LOSS ON REACQUIRED DEBT"},{"$f":"'FR-16(7)(v)-1 Functional'!D310","v":"D249"},null,{"$f":"'FR-16(7)(v)-14 TOTAL CLASS'!I310","v":0},{"$f":"'FR-16(7)(v)-3 PROD Demand'!I310+'FR-16(7)(v)-7 TRANS Demand'!I310+'FR-16(7)(v)-11 DIST Demand'!I310","v":0},{"$f":"'FR-16(7)(v)-4 PROD Energy'!I310+'FR-16(7)(v)-8 TRANS Energy'!I310+'FR-16(7)(v)-12 DIST Energy'!I310","v":0},{"$f":"'FR-16(7)(v)-5 PROD Cust'!I310+'FR-16(7)(v)-9 TRANS Cust'!I310+'FR-16(7)(v)-13 DIST Cust'!I310","v":0},0,0]
[23,null,{"$f":"'FR-16(7)(v)-1 Functional'!C311","v":"VACATION PAY ACCRUAL"},{"$f":"'FR-16(7)(v)-1 Functional'!D311","v":"A315"},null,{"$f":"'FR-16(7)(v)-14 TOTAL CLASS'!I311","v":0},{"$f":"'FR-16(7)(v)-3 PROD Demand'!I311+'FR-16(7)(v)-7 TRANS Demand'!I311+'FR-16(7)(v)-11 DIST Demand'!I311","v":0},{"$f":"'FR-16(7)(v)-4 PROD Energy'!I311+'FR-16(7)(v)-8 TRANS Energy'!I311+'FR-16(7)(v)-12 DIST Energy'!I311","v":0},{"$f":"'FR-16(7)(v)-5 PROD Cust'!I311+'FR-16(7)(v)-9 TRANS Cust'!I311+'FR-16(7)(v)-13 DIST Cust'!I311","v":0},0,0]
[24,null,{"$f":"'FR-16(7)(v)-1 Functional'!C312","v":"NON-AMI METERS RETIRED EARLY"},{"$f":"'FR-16(7)(v)-1 Functional'!D312","v":"OM39"},null,{"$f":"'FR-16(7)(v)-14 TOTAL CLASS'!I312","v":1796},{"$f":"'FR-16(7)(v)-3 PROD Demand'!I312+'FR-16(7)(v)-7 TRANS Demand'!I312+'FR-16(7)(v)-11 DIST Demand'!I312","v":329},{"$f":"'FR-16(7)(v)-4 PROD Energy'!I312+'FR-16(7)(v)-8 TRANS Energy'!I312+'FR-16(7)(v)-12 DIST Energy'!I312","v":1392},{"$f":"'FR-16(7)(v)-5 PROD Cust'!I312+'FR-16(7)(v)-9 TRANS Cust'!I312+'FR-16(7)(v)-13 DIST Cust'!I312","v":75},{"$f":"SUM(G312:I312)","v":1796},{"$f":"F312-J312","v":0}]
[25,null,{"$f":"'FR-16(7)(v)-1 Functional'!C313","v":"PENSION EXPENSE"},{"$f":"'FR-16(7)(v)-1 Functional'!D313","v":"A315"},null,{"$f":"'FR-16(7)(v)-14 TOTAL CLASS'!I313","v":6202},{"$f":"'FR-16(7)(v)-3 PROD Demand'!I313+'FR-16(7)(v)-7 TRANS Demand'!I313+'FR-16(7)(v)-11 DIST Demand'!I313","v":1581},{"$f":"'FR-16(7)(v)-4 PROD Energy'!I313+'FR-16(7)(v)-8 TRANS Energy'!I313+'FR-16(7)(v)-12 DIST Energy'!I313","v":3577},{"$f":"'FR-16(7)(v)-5 PROD Cust'!I313+'FR-16(7)(v)-9 TRANS Cust'!I313+'FR-16(7)(v)-13 DIST Cust'!I313","v":1044},{"$f":"SUM(G313:I313)","v":6202},{"$f":"F313-J313","v":0}]
[26,null,{"$f":"'FR-16(7)(v)-1 Functional'!C314","v":"UNCOLLECTIBLE ACCOUNTS"},{"$f":"'FR-16(7)(v)-1 Functional'!D314","v":"K411"},null,{"$f":"'FR-16(7)(v)-14 TOTAL CLASS'!I314","v":0},{"$f":"'FR-16(7)(v)-3 PROD Demand'!I314+'FR-16(7)(v)-7 TRANS Demand'!I314+'FR-16(7)(v)-11 DIST Demand'!I314","v":0},{"$f":"'FR-16(7)(v)-4 PROD Energy'!I314+'FR-16(7)(v)-8 TRANS Energy'!I314+'FR-16(7)(v)-12 DIST Energy'!I314","v":0},{"$f":"'FR-16(7)(v)-5 PROD Cust'!I314+'FR-16(7)(v)-9 TRANS Cust'!I314+'FR-16(7)(v)-13 DIST Cust'!I314","v":0},0,0]
[27,null,{"$f":"'FR-16(7)(v)-1 Functional'!C315","v":"  TOTAL ACCOUNT 283"},null,null,{"$f":"SUM(F303:F314)","v":19237},1244,16513,1480,19237,0]
[28]
[29," OTHER ACCUMULATED DEFERRED INCOME TAXES"]
[30,null,{"$f":"'FR-16(7)(v)-1 Functional'!C318","v":"EXCESS ADIT"},{"$f":"'FR-16(7)(v)-1 Functional'!D318","v":"NP29"},null,{"$f":"'FR-16(7)(v)-14 TOTAL CLASS'!I318","v":80366},{"$f":"'FR-16(7)(v)-3 PROD Demand'!I318+'FR-16(7)(v)-7 TRANS Demand'!I318+'FR-16(7)(v)-11 DIST Demand'!I318","v":73400},{"$f":"'FR-16(7)(v)-4 PROD Energy'!I318+'FR-16(7)(v)-8 TRANS Energy'!I318+'FR-16(7)(v)-12 DIST Energy'!I318","v":1302},{"$f":"'FR-16(7)(v)-5 PROD Cust'!I318+'FR-16(7)(v)-9 TRANS Cust'!I318+'FR-16(7)(v)-13 DIST Cust'!I318","v":5664},{"$f":"SUM(G318:I318)","v":80366},{"$f":"F318-J318","v":0}]
[31,null,{"$f":"'FR-16(7)(v)-1 Functional'!C319","v":"CUSTOMER SERVICE DEPOSITS"},{"$f":"'FR-16(7)(v)-1 Functional'!D319","v":"NP29"},null,{"$f":"'FR-16(7)(v)-14 TOTAL CLASS'!I319","v":0},{"$f":"'FR-16(7)(v)-3 PROD Demand'!I319+'FR-16(7)(v)-7 TRANS Demand'!I319+'FR-16(7)(v)-11 DIST Demand'!I319","v":0},{"$f":"'FR-16(7)(v)-4 PROD Energy'!I319+'FR-16(7)(v)-8 TRANS Energy'!I319+'FR-16(7)(v)-12 DIST Energy'!I319","v":0},{"$f":"'FR-16(7)(v)-5 PROD Cust'!I319+'FR-16(7)(v)-9 TRANS Cust'!I319+'FR-16(7)(v)-13 DIST Cust'!I319","v":0},{"$f":"SUM(G319:I319)","v":0},{"$f":"F319-J319","v":0}]
[32,null,{"$f":"'FR-16(7)(v)-1 Functional'!C320","v":"POST RETIREMENT BENEFITS"},{"$f":"'FR-16(7)(v)-1 Functional'!D320","v":"NP29"},null,{"$f":"'FR-16(7)(v)-14 TOTAL CLASS'!I320","v":0},{"$f":"'FR-16(7)(v)-3 PROD Demand'!I320+'FR-16(7)(v)-7 TRANS Demand'!I320+'FR-16(7)(v)-11 DIST Demand'!I320","v":0},{"$f":"'FR-16(7)(v)-4 PROD Energy'!I320+'FR-16(7)(v)-8 TRANS Energy'!I320+'FR-16(7)(v)-12 DIST Energy'!I320","v":0},{"$f":"'FR-16(7)(v)-5 PROD Cust'!I320+'FR-16(7)(v)-9 TRANS Cust'!I320+'FR-16(7)(v)-13 DIST Cust'!I320","v":0},{"$f":"SUM(G320:I320)","v":0},{"$f":"F320-J320","v":0}]
[33,null,{"$f":"'FR-16(7)(v)-1 Functional'!C321","v":"INVESTMENT TAX CREDIT"},{"$f":"'FR-16(7)(v)-1 Functional'!D321","v":"NP29"},null,{"$f":"'FR-16(7)(v)-14 TOTAL CLASS'!I321","v":0},{"$f":"'FR-16(7)(v)-3 PROD Demand'!I321+'FR-16(7)(v)-7 TRANS Demand'!I321+'FR-16(7)(v)-11 DIST Demand'!I321","v":0},{"$f":"'FR-16(7)(v)-4 PROD Energy'!I321+'FR-16(7)(v)-8 TRANS Energy'!I321+'FR-16(7)(v)-12 DIST Energy'!I321","v":0},{"$f":"'FR-16(7)(v)-5 PROD Cust'!I321+'FR-16(7)(v)-9 TRANS Cust'!I321+'FR-16(7)(v)-13 DIST Cust'!I321","v":0},{"$f":"SUM(G321:I321)","v":0},{"$f":"F321-J321","v":0}]
[34,null,{"$f":"'FR-16(7)(v)-1 Functional'!C322","v":"  TOTAL OTHER SUBTRACTIVE ADJUSTMENTS"},null,null,{"$f":"SUM(F317:F321)","v":80366},73400,1302,5664,80366,0]
[35]
[36,{"$f":"'FR-16(7)(v)-1 Functional'!B324","v":"TOTAL SUBTRACTIVE RATE BASE ADJUSTMENTS"},null,null,null,{"$f":"F322+F315+F301","v":355549},308501,21964,25084,355549,0]
[]
[{"$f":"co_name","v":"DUKE ENERGY KENTUCKY, INC."},null,null,null,null,null,null,null,null,{"$f":"J1","v":"FR-16(7)(v)-17"}]
[{"$f":"$A$2","v":"GSFL SECONDARY CLASSIFIED - ELECTRIC COST OF SERVICE"},null,null,null,null,null,null,null,null,{"$f":"J2","v":"WITNESS RESPONSIBLE:"}]
[{"$f":"case_name","v":"CASE NO: 2019-00271"},null,null,null,null,null,null,null,null,{"$f":"Witness","v":"JAMES E. ZIOLKOWSKI"}]
[{"$f":"data_filing","v":"DATA: 12 MONTHS ACTUAL  & 0 MONTHS ESTIMATED"},null,null,null,null,null,null,null,null,{"$f":"\"PAGE \"&Pages2-9&\" OF \"&Pages2","v":"PAGE 6 OF 15"}]
[{"$f":"type","v":"TYPE OF FILING: \"X\" ORIGINAL   UPDATED    REVISED  "}]
[]
[]
["LINE",null,null,null,null,"TOTAL","CLASSIFIED",null,null,"TOTAL","ALL"]
["NO.","ADDITIVE RATE BASE ADJUSTMENTS",null,"ALLO",null,{"$f":"$F$9","v":"GSFL SECONDARY"},{"$f":"G9","v":"DEMAND"},"ENERGY","CUSTOMER","AT ISSUE","OTHER"]
[null,null,"Schedule 5.1",null,null,null,3,4,5]
[1,"OTHER ACCUMULATED DEFERRED INCOME TAXES"]
[2," ACCUM DEF INC TAXES (190)"]
[3,null,{"$f":"'FR-16(7)(v)-1 Functional'!C338","v":"UNCOLLECTIBLE ACCTS"},{"$f":"'FR-16(7)(v)-1 Functional'!D338","v":"K411"},null,{"$f":"'FR-16(7)(v)-14 TOTAL CLASS'!I338","v":20},{"$f":"'FR-16(7)(v)-3 PROD Demand'!I338+'FR-16(7)(v)-7 TRANS Demand'!I338+'FR-16(7)(v)-11 DIST Demand'!I338","v":0},{"$f":"'FR-16(7)(v)-4 PROD Energy'!I338+'FR-16(7)(v)-8 TRANS Energy'!I338+'FR-16(7)(v)-12 DIST Energy'!I338","v":0},{"$f":"'FR-16(7)(v)-5 PROD Cust'!I338+'FR-16(7)(v)-9 TRANS Cust'!I338+'FR-16(7)(v)-13 DIST Cust'!I338","v":20},{"$f":"SUM(G338:I338)","v":20},{"$f":"F338-J338","v":0}]
[4,null,{"$f":"'FR-16(7)(v)-1 Functional'!C339","v":"CASH FLOW HEDGE"},{"$f":"'FR-16(7)(v)-1 Functional'!D339","v":"A315"},null,{"$f":"'FR-16(7)(v)-14 TOTAL CLASS'!I339","v":249},{"$f":"'FR-16(7)(v)-3 PROD Demand'!I339+'FR-16(7)(v)-7 TRANS Demand'!I339+'FR-16(7)(v)-11 DIST Demand'!I339","v":63},{"$f":"'FR-16(7)(v)-4 PROD Energy'!I339+'FR-16(7)(v)-8 TRANS Energy'!I339+'FR-16(7)(v)-12 DIST Energy'!I339","v":144},{"$f":"'FR-16(7)(v)-5 PROD Cust'!I339+'FR-16(7)(v)-9 TRANS Cust'!I339+'FR-16(7)(v)-13 DIST Cust'!I339","v":42},249,0]
[5,null,{"$f":"'FR-16(7)(v)-1 Functional'!C340","v":"RESERVED FOR FUTURE USE"},{"$f":"'FR-16(7)(v)-1 Functional'!D340","v":"NP29"},null,{"$f":"'FR-16(7)(v)-14 TOTAL CLASS'!I340","v":0},{"$f":"'FR-16(7)(v)-3 PROD Demand'!I340+'FR-16(7)(v)-7 TRANS Demand'!I340+'FR-16(7)(v)-11 DIST Demand'!I340","v":0},{"$f":"'FR-16(7)(v)-4 PROD Energy'!I340+'FR-16(7)(v)-8 TRANS Energy'!I340+'FR-16(7)(v)-12 DIST Energy'!I340","v":0},{"$f":"'FR-16(7)(v)-5 PROD Cust'!I340+'FR-16(7)(v)-9 TRANS Cust'!I340+'FR-16(7)(v)-13 DIST Cust'!I340","v":0},0,0]
[6,null,{"$f":"'FR-16(7)(v)-1 Functional'!C341","v":"RESERVED FOR FUTURE USE"},{"$f":"'FR-16(7)(v)-1 Functional'!D341","v":"NP29"},null,{"$f":"'FR-16(7)(v)-14 TOTAL CLASS'!I341","v":0},{"$f":"'FR-16(7)(v)-3 PROD Demand'!I341+'FR-16(7)(v)-7 TRANS Demand'!I341+'FR-16(7)(v)-11 DIST Demand'!I341","v":0},{"$f":"'FR-16(7)(v)-4 PROD Energy'!I341+'FR-16(7)(v)-8 TRANS Energy'!I341+'FR-16(7)(v)-12 DIST Energy'!I341","v":0},{"$f":"'FR-16(7)(v)-5 PROD Cust'!I341+'FR-16(7)(v)-9 TRANS Cust'!I341+'FR-16(7)(v)-13 DIST Cust'!I341","v":0},0,0]
[7,null,{"$f":"'FR-16(7)(v)-1 Functional'!C342","v":"ELECTRIC METERS"},{"$f":"'FR-16(7)(v)-1 Functional'!D342","v":"K407"},null,{"$f":"'FR-16(7)(v)-14 TOTAL CLASS'!I342","v":0},{"$f":"'FR-16(7)(v)-3 PROD Demand'!I342+'FR-16(7)(v)-7 TRANS Demand'!I342+'FR-16(7)(v)-11 DIST Demand'!I342","v":0},{"$f":"'FR-16(7)(v)-4 PROD Energy'!I342+'FR-16(7)(v)-8 TRANS Energy'!I342+'FR-16(7)(v)-12 DIST Energy'!I342","v":0},{"$f":"'FR-16(7)(v)-5 PROD Cust'!I342+'FR-16(7)(v)-9 TRANS Cust'!I342+'FR-16(7)(v)-13 DIST Cust'!I342","v":0},0,0]
[8,null,{"$f":"'FR-16(7)(v)-1 Functional'!C343","v":"UNAMORTIZED DEBT PREMIUM"},{"$f":"'FR-16(7)(v)-1 Functional'!D343","v":"D249"},null,{"$f":"'FR-16(7)(v)-14 TOTAL CLASS'!I343","v":0},{"$f":"'FR-16(7)(v)-3 PROD Demand'!I343+'FR-16(7)(v)-7 TRANS Demand'!I343+'FR-16(7)(v)-11 DIST Demand'!I343","v":0},{"$f":"'FR-16(7)(v)-4 PROD Energy'!I343+'FR-16(7)(v)-8 TRANS Energy'!I343+'FR-16(7)(v)-12 DIST Energy'!I343","v":0},{"$f":"'FR-16(7)(v)-5 PROD Cust'!I343+'FR-16(7)(v)-9 TRANS Cust'!I343+'FR-16(7)(v)-13 DIST Cust'!I343","v":0},0,0]
[9,null,{"$f":"'FR-16(7)(v)-1 Functional'!C344","v":"ARO CUMULATIVE EFFECT"},{"$f":"'FR-16(7)(v)-1 Functional'!D344","v":"NP29"},null,{"$f":"'FR-16(7)(v)-14 TOTAL CLASS'!I344","v":0},{"$f":"'FR-16(7)(v)-3 PROD Demand'!I344+'FR-16(7)(v)-7 TRANS Demand'!I344+'FR-16(7)(v)-11 DIST Demand'!I344","v":0},{"$f":"'FR-16(7)(v)-4 PROD Energy'!I344+'FR-16(7)(v)-8 TRANS Energy'!I344+'FR-16(7)(v)-12 DIST Energy'!I344","v":0},{"$f":"'FR-16(7)(v)-5 PROD Cust'!I344+'FR-16(7)(v)-9 TRANS Cust'!I344+'FR-16(7)(v)-13 DIST Cust'!I344","v":0},0,0]
[10,null,{"$f":"'FR-16(7)(v)-1 Functional'!C345","v":"RETIREMENT PLAN"},{"$f":"'FR-16(7)(v)-1 Functional'!D345","v":"A315"},null,{"$f":"'FR-16(7)(v)-14 TOTAL CLASS'!I345","v":2560},{"$f":"'FR-16(7)(v)-3 PROD Demand'!I345+'FR-16(7)(v)-7 TRANS Demand'!I345+'FR-16(7)(v)-11 DIST Demand'!I345","v":653},{"$f":"'FR-16(7)(v)-4 PROD Energy'!I345+'FR-16(7)(v)-8 TRANS Energy'!I345+'FR-16(7)(v)-12 DIST Energy'!I345","v":1476},{"$f":"'FR-16(7)(v)-5 PROD Cust'!I345+'FR-16(7)(v)-9 TRANS Cust'!I345+'FR-16(7)(v)-13 DIST Cust'!I345","v":431},2560,0]
[11,null,{"$f":"'FR-16(7)(v)-1 Functional'!C346","v":"POST RETIREMENT BENEFITS "},{"$f":"'FR-16(7)(v)-1 Functional'!D346","v":"A315"},null,{"$f":"'FR-16(7)(v)-14 TOTAL CLASS'!I346","v":0},{"$f":"'FR-16(7)(v)-3 PROD Demand'!I346+'FR-16(7)(v)-7 TRANS Demand'!I346+'FR-16(7)(v)-11 DIST Demand'!I346","v":0},{"$f":"'FR-16(7)(v)-4 PROD Energy'!I346+'FR-16(7)(v)-8 TRANS Energy'!I346+'FR-16(7)(v)-12 DIST Energy'!I346","v":0},{"$f":"'FR-16(7)(v)-5 PROD Cust'!I346+'FR-16(7)(v)-9 TRANS Cust'!I346+'FR-16(7)(v)-13 DIST Cust'!I346","v":0},0,0]
[12,null,{"$f":"'FR-16(7)(v)-1 Functional'!C347","v":"POST RETIREMENT BENEFITS - HEALTH CARE"},{"$f":"'FR-16(7)(v)-1 Functional'!D347","v":"A315"},null,{"$f":"'FR-16(7)(v)-14 TOTAL CLASS'!I347","v":0},{"$f":"'FR-16(7)(v)-3 PROD Demand'!I347+'FR-16(7)(v)-7 TRANS Demand'!I347+'FR-16(7)(v)-11 DIST Demand'!I347","v":0},{"$f":"'FR-16(7)(v)-4 PROD Energy'!I347+'FR-16(7)(v)-8 TRANS Energy'!I347+'FR-16(7)(v)-12 DIST Energy'!I347","v":0},{"$f":"'FR-16(7)(v)-5 PROD Cust'!I347+'FR-16(7)(v)-9 TRANS Cust'!I347+'FR-16(7)(v)-13 DIST Cust'!I347","v":0},0,0]
[13,null,{"$f":"'FR-16(7)(v)-1 Functional'!C348","v":"POST EMPLOYMENT BENEFITS - SFAS 112"},{"$f":"'FR-16(7)(v)-1 Functional'!D348","v":"A315"},null,{"$f":"'FR-16(7)(v)-14 TOTAL CLASS'!I348","v":0},{"$f":"'FR-16(7)(v)-3 PROD Demand'!I348+'FR-16(7)(v)-7 TRANS Demand'!I348+'FR-16(7)(v)-11 DIST Demand'!I348","v":0},{"$f":"'FR-16(7)(v)-4 PROD Energy'!I348+'FR-16(7)(v)-8 TRANS Energy'!I348+'FR-16(7)(v)-12 DIST Energy'!I348","v":0},{"$f":"'FR-16(7)(v)-5 PROD Cust'!I348+'FR-16(7)(v)-9 TRANS Cust'!I348+'FR-16(7)(v)-13 DIST Cust'!I348","v":0},0,0]
[14,null,{"$f":"'FR-16(7)(v)-1 Functional'!C349","v":"SUPPLEMENTAL PENSION PLAN"},{"$f":"'FR-16(7)(v)-1 Functional'!D349","v":"A315"},null,{"$f":"'FR-16(7)(v)-14 TOTAL CLASS'!I349","v":0},{"$f":"'FR-16(7)(v)-3 PROD Demand'!I349+'FR-16(7)(v)-7 TRANS Demand'!I349+'FR-16(7)(v)-11 DIST Demand'!I349","v":0},{"$f":"'FR-16(7)(v)-4 PROD Energy'!I349+'FR-16(7)(v)-8 TRANS Energy'!I349+'FR-16(7)(v)-12 DIST Energy'!I349","v":0},{"$f":"'FR-16(7)(v)-5 PROD Cust'!I349+'FR-16(7)(v)-9 TRANS Cust'!I349+'FR-16(7)(v)-13 DIST Cust'!I349","v":0},0,0]
[15,null,{"$f":"'FR-16(7)(v)-1 Functional'!C350","v":"INCENTIVE PLAN"},{"$f":"'FR-16(7)(v)-1 Functional'!D350","v":"A315"},null,{"$f":"'FR-16(7)(v)-14 TOTAL CLASS'!I350","v":0},{"$f":"'FR-16(7)(v)-3 PROD Demand'!I350+'FR-16(7)(v)-7 TRANS Demand'!I350+'FR-16(7)(v)-11 DIST Demand'!I350","v":0},{"$f":"'FR-16(7)(v)-4 PROD Energy'!I350+'FR-16(7)(v)-8 TRANS Energy'!I350+'FR-16(7)(v)-12 DIST Energy'!I350","v":0},{"$f":"'FR-16(7)(v)-5 PROD Cust'!I350+'FR-16(7)(v)-9 TRANS Cust'!I350+'FR-16(7)(v)-13 DIST Cust'!I350","v":0},0,0]
[16,null,{"$f":"'FR-16(7)(v)-1 Functional'!C351","v":"FEDERAL DEFERRED TAX RECEIVEABLE"},{"$f":"'FR-16(7)(v)-1 Functional'!D351","v":"A315"},null,{"$f":"'FR-16(7)(v)-14 TOTAL CLASS'!I351","v":0},{"$f":"'FR-16(7)(v)-3 PROD Demand'!I351+'FR-16(7)(v)-7 TRANS Demand'!I351+'FR-16(7)(v)-11 DIST Demand'!I351","v":0},{"$f":"'FR-16(7)(v)-4 PROD Energy'!I351+'FR-16(7)(v)-8 TRANS Energy'!I351+'FR-16(7)(v)-12 DIST Energy'!I351","v":0},{"$f":"'FR-16(7)(v)-5 PROD Cust'!I351+'FR-16(7)(v)-9 TRANS Cust'!I351+'FR-16(7)(v)-13 DIST Cust'!I351","v":0},0,0]
[17,null,{"$f":"'FR-16(7)(v)-1 Functional'!C352","v":"MISCELLANEOUS"},{"$f":"'FR-16(7)(v)-1 Functional'!D352","v":"A315"},null,{"$f":"'FR-16(7)(v)-14 TOTAL CLASS'!I352","v":8217},{"$f":"'FR-16(7)(v)-3 PROD Demand'!I352+'FR-16(7)(v)-7 TRANS Demand'!I352+'FR-16(7)(v)-11 DIST Demand'!I352","v":2095},{"$f":"'FR-16(7)(v)-4 PROD Energy'!I352+'FR-16(7)(v)-8 TRANS Energy'!I352+'FR-16(7)(v)-12 DIST Energy'!I352","v":4739},{"$f":"'FR-16(7)(v)-5 PROD Cust'!I352+'FR-16(7)(v)-9 TRANS Cust'!I352+'FR-16(7)(v)-13 DIST Cust'!I352","v":1383},8217,0]
[18,null,{"$f":"'FR-16(7)(v)-1 Functional'!C353","v":"DEFERRED TAX"},{"$f":"'FR-16(7)(v)-1 Functional'!D353","v":"A315"},null,{"$f":"'FR-16(7)(v)-14 TOTAL CLASS'!I353","v":3744},{"$f":"'FR-16(7)(v)-3 PROD Demand'!I353+'FR-16(7)(v)-7 TRANS Demand'!I353+'FR-16(7)(v)-11 DIST Demand'!I353","v":955},{"$f":"'FR-16(7)(v)-4 PROD Energy'!I353+'FR-16(7)(v)-8 TRANS Energy'!I353+'FR-16(7)(v)-12 DIST Energy'!I353","v":2159},{"$f":"'FR-16(7)(v)-5 PROD Cust'!I353+'FR-16(7)(v)-9 TRANS Cust'!I353+'FR-16(7)(v)-13 DIST Cust'!I353","v":630},3744,0]
[19,null,{"$f":"'FR-16(7)(v)-1 Functional'!C354","v":"NET OPERATING LOSS"},{"$f":"'FR-16(7)(v)-1 Functional'!D354","v":"NP29"},null,{"$f":"'FR-16(7)(v)-14 TOTAL CLASS'!I354","v":0},{"$f":"'FR-16(7)(v)-3 PROD Demand'!I354+'FR-16(7)(v)-7 TRANS Demand'!I354+'FR-16(7)(v)-11 DIST Demand'!I354","v":0},{"$f":"'FR-16(7)(v)-4 PROD Energy'!I354+'FR-16(7)(v)-8 TRANS Energy'!I354+'FR-16(7)(v)-12 DIST Energy'!I354","v":0},{"$f":"'FR-16(7)(v)-5 PROD Cust'!I354+'FR-16(7)(v)-9 TRANS Cust'!I354+'FR-16(7)(v)-13 DIST Cust'!I354","v":0},0,0]
[20,null,{"$f":"'FR-16(7)(v)-1 Functional'!C355","v":"401K INCENTIVE PLAN"},{"$f":"'FR-16(7)(v)-1 Functional'!D355","v":"A315"},null,{"$f":"'FR-16(7)(v)-14 TOTAL CLASS'!I355","v":0},{"$f":"'FR-16(7)(v)-3 PROD Demand'!I355+'FR-16(7)(v)-7 TRANS Demand'!I355+'FR-16(7)(v)-11 DIST Demand'!I355","v":0},{"$f":"'FR-16(7)(v)-4 PROD Energy'!I355+'FR-16(7)(v)-8 TRANS Energy'!I355+'FR-16(7)(v)-12 DIST Energy'!I355","v":0},{"$f":"'FR-16(7)(v)-5 PROD Cust'!I355+'FR-16(7)(v)-9 TRANS Cust'!I355+'FR-16(7)(v)-13 DIST Cust'!I355","v":0},0,0]
[21,null,{"$f":"'FR-16(7)(v)-1 Functional'!C356","v":"ENVIRONMENTAL RESERVE"},{"$f":"'FR-16(7)(v)-1 Functional'!D356","v":"NP29"},null,{"$f":"'FR-16(7)(v)-14 TOTAL CLASS'!I356","v":0},{"$f":"'FR-16(7)(v)-3 PROD Demand'!I356+'FR-16(7)(v)-7 TRANS Demand'!I356+'FR-16(7)(v)-11 DIST Demand'!I356","v":0},{"$f":"'FR-16(7)(v)-4 PROD Energy'!I356+'FR-16(7)(v)-8 TRANS Energy'!I356+'FR-16(7)(v)-12 DIST Energy'!I356","v":0},{"$f":"'FR-16(7)(v)-5 PROD Cust'!I356+'FR-16(7)(v)-9 TRANS Cust'!I356+'FR-16(7)(v)-13 DIST Cust'!I356","v":0},0,0]
[22,null,{"$f":"'FR-16(7)(v)-1 Functional'!C357","v":"VACATION PAY ACCRUALS"},{"$f":"'FR-16(7)(v)-1 Functional'!D357","v":"A315"},null,{"$f":"'FR-16(7)(v)-14 TOTAL CLASS'!I357","v":405},{"$f":"'FR-16(7)(v)-3 PROD Demand'!I357+'FR-16(7)(v)-7 TRANS Demand'!I357+'FR-16(7)(v)-11 DIST Demand'!I357","v":103},{"$f":"'FR-16(7)(v)-4 PROD Energy'!I357+'FR-16(7)(v)-8 TRANS Energy'!I357+'FR-16(7)(v)-12 DIST Energy'!I357","v":234},{"$f":"'FR-16(7)(v)-5 PROD Cust'!I357+'FR-16(7)(v)-9 TRANS Cust'!I357+'FR-16(7)(v)-13 DIST Cust'!I357","v":68},405,0]
[23,null,{"$f":"'FR-16(7)(v)-1 Functional'!C358","v":"DEMAND SIDE MANAGEMENT DEFERRAL"},{"$f":"'FR-16(7)(v)-1 Functional'!D358","v":"NP29"},null,{"$f":"'FR-16(7)(v)-14 TOTAL CLASS'!I358","v":800},{"$f":"'FR-16(7)(v)-3 PROD Demand'!I358+'FR-16(7)(v)-7 TRANS Demand'!I358+'FR-16(7)(v)-11 DIST Demand'!I358","v":731},{"$f":"'FR-16(7)(v)-4 PROD Energy'!I358+'FR-16(7)(v)-8 TRANS Energy'!I358+'FR-16(7)(v)-12 DIST Energy'!I358","v":13},{"$f":"'FR-16(7)(v)-5 PROD Cust'!I358+'FR-16(7)(v)-9 TRANS Cust'!I358+'FR-16(7)(v)-13 DIST Cust'!I358","v":56},800,0]
[24,null,{"$f":"'FR-16(7)(v)-1 Functional'!C359","v":"OPERATING LEASE OBLIGATION"},{"$f":"'FR-16(7)(v)-1 Functional'!D359","v":"NP29"},null,{"$f":"'FR-16(7)(v)-14 TOTAL CLASS'!I359","v":2962},{"$f":"'FR-16(7)(v)-3 PROD Demand'!I359+'FR-16(7)(v)-7 TRANS Demand'!I359+'FR-16(7)(v)-11 DIST Demand'!I359","v":2705},{"$f":"'FR-16(7)(v)-4 PROD Energy'!I359+'FR-16(7)(v)-8 TRANS Energy'!I359+'FR-16(7)(v)-12 DIST Energy'!I359","v":48},{"$f":"'FR-16(7)(v)-5 PROD Cust'!I359+'FR-16(7)(v)-9 TRANS Cust'!I359+'FR-16(7)(v)-13 DIST Cust'!I359","v":209},2962,0]
[25,null,{"$f":"'FR-16(7)(v)-1 Functional'!C360","v":"INJURIES & DAMAGES"},{"$f":"'FR-16(7)(v)-1 Functional'!D360","v":"NP29"},null,{"$f":"'FR-16(7)(v)-14 TOTAL CLASS'!I360","v":0},{"$f":"'FR-16(7)(v)-3 PROD Demand'!I360+'FR-16(7)(v)-7 TRANS Demand'!I360+'FR-16(7)(v)-11 DIST Demand'!I360","v":0},{"$f":"'FR-16(7)(v)-4 PROD Energy'!I360+'FR-16(7)(v)-8 TRANS Energy'!I360+'FR-16(7)(v)-12 DIST Energy'!I360","v":0},{"$f":"'FR-16(7)(v)-5 PROD Cust'!I360+'FR-16(7)(v)-9 TRANS Cust'!I360+'FR-16(7)(v)-13 DIST Cust'!I360","v":0},0,0]
[26,null,{"$f":"'FR-16(7)(v)-1 Functional'!C361","v":"  TOTAL ACCOUNT 190"},null,null,{"$f":"SUM(F337:F360)","v":18957},7305,8813,2839,18957,0]
[27]
[28," OTHER"]
[29,null,{"$f":"'FR-16(7)(v)-1 Functional'!C364","v":"RESERVED FOR FUTURE USE"},{"$f":"'FR-16(7)(v)-1 Functional'!D364","v":"NP29"},null,{"$f":"'FR-16(7)(v)-14 TOTAL CLASS'!I364","v":0},{"$f":"'FR-16(7)(v)-3 PROD Demand'!I364+'FR-16(7)(v)-7 TRANS Demand'!I364+'FR-16(7)(v)-11 DIST Demand'!I364","v":0},{"$f":"'FR-16(7)(v)-4 PROD Energy'!I364+'FR-16(7)(v)-8 TRANS Energy'!I364+'FR-16(7)(v)-12 DIST Energy'!I364","v":0},{"$f":"'FR-16(7)(v)-5 PROD Cust'!I364+'FR-16(7)(v)-9 TRANS Cust'!I364+'FR-16(7)(v)-13 DIST Cust'!I364","v":0},{"$f":"SUM(G364:I364)","v":0},{"$f":"F364-J364","v":0}]
[30,null,{"$f":"'FR-16(7)(v)-1 Functional'!C365","v":"RATE CASE EXPENSE REGULATORY ASSET"},{"$f":"'FR-16(7)(v)-1 Functional'!D365","v":"NP29"},null,{"$f":"'FR-16(7)(v)-14 TOTAL CLASS'!I365","v":1200},{"$f":"'FR-16(7)(v)-3 PROD Demand'!I365+'FR-16(7)(v)-7 TRANS Demand'!I365+'FR-16(7)(v)-11 DIST Demand'!I365","v":1096},{"$f":"'FR-16(7)(v)-4 PROD Energy'!I365+'FR-16(7)(v)-8 TRANS Energy'!I365+'FR-16(7)(v)-12 DIST Energy'!I365","v":19},{"$f":"'FR-16(7)(v)-5 PROD Cust'!I365+'FR-16(7)(v)-9 TRANS Cust'!I365+'FR-16(7)(v)-13 DIST Cust'!I365","v":85},{"$f":"SUM(G365:I365)","v":1200},{"$f":"F365-J365","v":0}]
[31,null,{"$f":"'FR-16(7)(v)-1 Functional'!C366","v":"RESERVED FOR FUTURE USE"},{"$f":"'FR-16(7)(v)-1 Functional'!D366","v":"NP29"},null,{"$f":"'FR-16(7)(v)-14 TOTAL CLASS'!I366","v":0},{"$f":"'FR-16(7)(v)-3 PROD Demand'!I366+'FR-16(7)(v)-7 TRANS Demand'!I366+'FR-16(7)(v)-11 DIST Demand'!I366","v":0},{"$f":"'FR-16(7)(v)-4 PROD Energy'!I366+'FR-16(7)(v)-8 TRANS Energy'!I366+'FR-16(7)(v)-12 DIST Energy'!I366","v":0},{"$f":"'FR-16(7)(v)-5 PROD Cust'!I366+'FR-16(7)(v)-9 TRANS Cust'!I366+'FR-16(7)(v)-13 DIST Cust'!I366","v":0},{"$f":"SUM(G366:I366)","v":0},{"$f":"F366-J366","v":0}]
[32,null,{"$f":"'FR-16(7)(v)-1 Functional'!C367","v":"  OTHER"},null,null,{"$f":"SUM(F364:F366)","v":1200},{"$f":"SUM(G363:G366)","v":1096},{"$f":"SUM(H363:H366)","v":19},{"$f":"SUM(I363:I366)","v":85},{"$f":"SUM(J363:J366)","v":1200},{"$f":"SUM(K363:K366)","v":0}]
[33,null,null,null,null," "]
[34,"CONSTRUCTION WORK IN PROGRESS"]
[35,null,{"$f":"'FR-16(7)(v)-1 Functional'!C370","v":"PRODUCTION"},{"$f":"'FR-16(7)(v)-1 Functional'!D370","v":"P129"},null,{"$f":"'FR-16(7)(v)-14 TOTAL CLASS'!I370","v":0},{"$f":"'FR-16(7)(v)-3 PROD Demand'!I370+'FR-16(7)(v)-7 TRANS Demand'!I370+'FR-16(7)(v)-11 DIST Demand'!I370","v":0},{"$f":"'FR-16(7)(v)-4 PROD Energy'!I370+'FR-16(7)(v)-8 TRANS Energy'!I370+'FR-16(7)(v)-12 DIST Energy'!I370","v":0},{"$f":"'FR-16(7)(v)-5 PROD Cust'!I370+'FR-16(7)(v)-9 TRANS Cust'!I370+'FR-16(7)(v)-13 DIST Cust'!I370","v":0},{"$f":"SUM(G370:I370)","v":0},{"$f":"F370-J370","v":0}]
[36,null,{"$f":"'FR-16(7)(v)-1 Functional'!C371","v":"TRANSMISSION"},{"$f":"'FR-16(7)(v)-1 Functional'!D371","v":"T129"},null,{"$f":"'FR-16(7)(v)-14 TOTAL CLASS'!I371","v":0},{"$f":"'FR-16(7)(v)-3 PROD Demand'!I371+'FR-16(7)(v)-7 TRANS Demand'!I371+'FR-16(7)(v)-11 DIST Demand'!I371","v":0},{"$f":"'FR-16(7)(v)-4 PROD Energy'!I371+'FR-16(7)(v)-8 TRANS Energy'!I371+'FR-16(7)(v)-12 DIST Energy'!I371","v":0},{"$f":"'FR-16(7)(v)-5 PROD Cust'!I371+'FR-16(7)(v)-9 TRANS Cust'!I371+'FR-16(7)(v)-13 DIST Cust'!I371","v":0},{"$f":"SUM(G371:I371)","v":0},{"$f":"F371-J371","v":0}]
[37,null,{"$f":"'FR-16(7)(v)-1 Functional'!C372","v":"DISTRIBUTION"},{"$f":"'FR-16(7)(v)-1 Functional'!D372","v":"D149"},null,{"$f":"'FR-16(7)(v)-14 TOTAL CLASS'!I372","v":0},{"$f":"'FR-16(7)(v)-3 PROD Demand'!I372+'FR-16(7)(v)-7 TRANS Demand'!I372+'FR-16(7)(v)-11 DIST Demand'!I372","v":0},{"$f":"'FR-16(7)(v)-4 PROD Energy'!I372+'FR-16(7)(v)-8 TRANS Energy'!I372+'FR-16(7)(v)-12 DIST Energy'!I372","v":0},{"$f":"'FR-16(7)(v)-5 PROD Cust'!I372+'FR-16(7)(v)-9 TRANS Cust'!I372+'FR-16(7)(v)-13 DIST Cust'!I372","v":0},{"$f":"SUM(G372:I372)","v":0},{"$f":"F372-J372","v":0}]
[38,null,{"$f":"'FR-16(7)(v)-1 Functional'!C373","v":"COMMON"},{"$f":"'FR-16(7)(v)-1 Functional'!D373","v":"C129"},null,{"$f":"'FR-16(7)(v)-14 TOTAL CLASS'!I373","v":0},{"$f":"'FR-16(7)(v)-3 PROD Demand'!I373+'FR-16(7)(v)-7 TRANS Demand'!I373+'FR-16(7)(v)-11 DIST Demand'!I373","v":0},{"$f":"'FR-16(7)(v)-4 PROD Energy'!I373+'FR-16(7)(v)-8 TRANS Energy'!I373+'FR-16(7)(v)-12 DIST Energy'!I373","v":0},{"$f":"'FR-16(7)(v)-5 PROD Cust'!I373+'FR-16(7)(v)-9 TRANS Cust'!I373+'FR-16(7)(v)-13 DIST Cust'!I373","v":0},{"$f":"SUM(G373:I373)","v":0},{"$f":"F373-J373","v":0}]
[39,null,{"$f":"'FR-16(7)(v)-1 Functional'!C374","v":"GENERAL"},{"$f":"'FR-16(7)(v)-1 Functional'!D374","v":"G129"},null,{"$f":"'FR-16(7)(v)-14 TOTAL CLASS'!I374","v":0},{"$f":"'FR-16(7)(v)-3 PROD Demand'!I374+'FR-16(7)(v)-7 TRANS Demand'!I374+'FR-16(7)(v)-11 DIST Demand'!I374","v":0},{"$f":"'FR-16(7)(v)-4 PROD Energy'!I374+'FR-16(7)(v)-8 TRANS Energy'!I374+'FR-16(7)(v)-12 DIST Energy'!I374","v":0},{"$f":"'FR-16(7)(v)-5 PROD Cust'!I374+'FR-16(7)(v)-9 TRANS Cust'!I374+'FR-16(7)(v)-13 DIST Cust'!I374","v":0},{"$f":"SUM(G374:I374)","v":0},{"$f":"F374-J374","v":0}]
[40,null,{"$f":"'FR-16(7)(v)-1 Functional'!C375","v":"TOTAL CONSTRUCTION WORK IN PROGRESS"},null,null,{"$f":"SUM(F370:F374)","v":0},0,0,0,0,0]
[41]
[42,{"$f":"'FR-16(7)(v)-1 Functional'!B377","v":"TOTAL ADDITIVE RATE BASE ADJUSTMENTS"},null,null,null,{"$f":"F361+F367+F375","v":20157},8401,8832,2924,20157,0]
[]
[{"$f":"co_name","v":"DUKE ENERGY KENTUCKY, INC."},null,null,null,null,null,null,null,null,{"$f":"J1","v":"FR-16(7)(v)-17"}]
[{"$f":"$A$2","v":"GSFL SECONDARY CLASSIFIED - ELECTRIC COST OF SERVICE"},null,null,null,null,null,null,null,null,{"$f":"J2","v":"WITNESS RESPONSIBLE:"}]
[{"$f":"case_name","v":"CASE NO: 2019-00271"},null,null,null,null,null,null,null,null,{"$f":"Witness","v":"JAMES E. ZIOLKOWSKI"}]
[{"$f":"data_filing","v":"DATA: 12 MONTHS ACTUAL  & 0 MONTHS ESTIMATED"},null,null,null,null,null,null,null,null,{"$f":"\"PAGE \"&Pages2-8&\" OF \"&Pages2","v":"PAGE 7 OF 15"}]
[{"$f":"type","v":"TYPE OF FILING: \"X\" ORIGINAL   UPDATED    REVISED  "}]
[]
[]
["LINE",null,null,null,null,"TOTAL","CLASSIFIED",null,null,"TOTAL","ALL"]
["NO.","WORKING CAPITAL",null,"ALLO",null,{"$f":"$F$9","v":"GSFL SECONDARY"},{"$f":"G9","v":"DEMAND"},"ENERGY","CUSTOMER","AT ISSUE","OTHER"]
[null,null,"Schedule 5.2",null,null,null,3,4,5]
[]
[1,"NET ORIGINAL COST RATE BASE",null,null,null,{"$f":"F277-F324+F377","v":1121959},1031254,10511,80194,1121959,0]
[2]
[3,"WORKING CAPITAL"]
[4]
[5,"PLANT MATERIALS & SUPPLIES"]
[6,null,{"$f":"'FR-16(7)(v)-1 Functional'!C395","v":"OTHER MATERIALS & SUPPLIES"},{"$f":"'FR-16(7)(v)-1 Functional'!D395","v":"PD29"},null,{"$f":"'FR-16(7)(v)-14 TOTAL CLASS'!I395","v":24093},{"$f":"'FR-16(7)(v)-3 PROD Demand'!I395+'FR-16(7)(v)-7 TRANS Demand'!I395+'FR-16(7)(v)-11 DIST Demand'!I395","v":9934},{"$f":"'FR-16(7)(v)-4 PROD Energy'!I395+'FR-16(7)(v)-8 TRANS Energy'!I395+'FR-16(7)(v)-12 DIST Energy'!I395","v":7967},{"$f":"'FR-16(7)(v)-5 PROD Cust'!I395+'FR-16(7)(v)-9 TRANS Cust'!I395+'FR-16(7)(v)-13 DIST Cust'!I395","v":6192},{"$f":"SUM(G395:I395)","v":24093},{"$f":"F395-J395","v":0}]
[7,null,{"$f":"'FR-16(7)(v)-1 Functional'!C396","v":"FUEL"},{"$f":"'FR-16(7)(v)-1 Functional'!D396","v":"K301"},null,{"$f":"'FR-16(7)(v)-14 TOTAL CLASS'!I396","v":29472},{"$f":"'FR-16(7)(v)-3 PROD Demand'!I396+'FR-16(7)(v)-7 TRANS Demand'!I396+'FR-16(7)(v)-11 DIST Demand'!I396","v":0},{"$f":"'FR-16(7)(v)-4 PROD Energy'!I396+'FR-16(7)(v)-8 TRANS Energy'!I396+'FR-16(7)(v)-12 DIST Energy'!I396","v":29472},{"$f":"'FR-16(7)(v)-5 PROD Cust'!I396+'FR-16(7)(v)-9 TRANS Cust'!I396+'FR-16(7)(v)-13 DIST Cust'!I396","v":0},{"$f":"SUM(G396:I396)","v":29472},{"$f":"F396-J396","v":0}]
[8,null,{"$f":"'FR-16(7)(v)-1 Functional'!C397","v":"EMISSION ALLOWANCES"},{"$f":"'FR-16(7)(v)-1 Functional'!D397","v":"K301"},null,{"$f":"'FR-16(7)(v)-14 TOTAL CLASS'!I397","v":0},{"$f":"'FR-16(7)(v)-3 PROD Demand'!I397+'FR-16(7)(v)-7 TRANS Demand'!I397+'FR-16(7)(v)-11 DIST Demand'!I397","v":0},{"$f":"'FR-16(7)(v)-4 PROD Energy'!I397+'FR-16(7)(v)-8 TRANS Energy'!I397+'FR-16(7)(v)-12 DIST Energy'!I397","v":0},{"$f":"'FR-16(7)(v)-5 PROD Cust'!I397+'FR-16(7)(v)-9 TRANS Cust'!I397+'FR-16(7)(v)-13 DIST Cust'!I397","v":0},{"$f":"SUM(G397:I397)","v":0},{"$f":"F397-J397","v":0}]
[9,null,{"$f":"'FR-16(7)(v)-1 Functional'!C398","v":"  TOTAL PLANT MATS. & SUPPLIES"},null,null,{"$f":"SUM(F394:F397)","v":53565},9934,37439,6192,53565,0]
[10,"TOTAL MATERIALS & SUPPLIES",null,null,null,{"$f":"F398","v":53565},9934,37439,6192,53565,0]
[11]
[12,"PREPAYMENTS"]
[13,null,{"$f":"'FR-16(7)(v)-1 Functional'!C402","v":"INSURANCE GENERAL"},{"$f":"'FR-16(7)(v)-1 Functional'!D402","v":"NP29"},null,{"$f":"'FR-16(7)(v)-14 TOTAL CLASS'!I402","v":355},{"$f":"'FR-16(7)(v)-3 PROD Demand'!I402+'FR-16(7)(v)-7 TRANS Demand'!I402+'FR-16(7)(v)-11 DIST Demand'!I402","v":324},{"$f":"'FR-16(7)(v)-4 PROD Energy'!I402+'FR-16(7)(v)-8 TRANS Energy'!I402+'FR-16(7)(v)-12 DIST Energy'!I402","v":6},{"$f":"'FR-16(7)(v)-5 PROD Cust'!I402+'FR-16(7)(v)-9 TRANS Cust'!I402+'FR-16(7)(v)-13 DIST Cust'!I402","v":25},{"$f":"SUM(G402:I402)","v":355},{"$f":"F402-J402","v":0}]
[14,null,{"$f":"'FR-16(7)(v)-1 Functional'!C403","v":"EXCISE TAX"},{"$f":"'FR-16(7)(v)-1 Functional'!D403","v":"NP29"},null,{"$f":"'FR-16(7)(v)-14 TOTAL CLASS'!I403","v":0},{"$f":"'FR-16(7)(v)-3 PROD Demand'!I403+'FR-16(7)(v)-7 TRANS Demand'!I403+'FR-16(7)(v)-11 DIST Demand'!I403","v":0},{"$f":"'FR-16(7)(v)-4 PROD Energy'!I403+'FR-16(7)(v)-8 TRANS Energy'!I403+'FR-16(7)(v)-12 DIST Energy'!I403","v":0},{"$f":"'FR-16(7)(v)-5 PROD Cust'!I403+'FR-16(7)(v)-9 TRANS Cust'!I403+'FR-16(7)(v)-13 DIST Cust'!I403","v":0},{"$f":"SUM(G403:I403)","v":0},{"$f":"F403-J403","v":0}]
[15,null,{"$f":"'FR-16(7)(v)-1 Functional'!C404","v":"COLLATERAL ASSET"},{"$f":"'FR-16(7)(v)-1 Functional'!D404","v":"K301"},null,{"$f":"'FR-16(7)(v)-14 TOTAL CLASS'!I404","v":-67},{"$f":"'FR-16(7)(v)-3 PROD Demand'!I404+'FR-16(7)(v)-7 TRANS Demand'!I404+'FR-16(7)(v)-11 DIST Demand'!I404","v":0},{"$f":"'FR-16(7)(v)-4 PROD Energy'!I404+'FR-16(7)(v)-8 TRANS Energy'!I404+'FR-16(7)(v)-12 DIST Energy'!I404","v":-67},{"$f":"'FR-16(7)(v)-5 PROD Cust'!I404+'FR-16(7)(v)-9 TRANS Cust'!I404+'FR-16(7)(v)-13 DIST Cust'!I404","v":0},{"$f":"SUM(G404:I404)","v":-67},{"$f":"F404-J404","v":0}]
[16,null,{"$f":"'FR-16(7)(v)-1 Functional'!C405","v":"  TOTAL PREPAYMENTS"},null,null,{"$f":"SUM(F401:F404)","v":288},324,-61,25,288,0]
[17]
[18,"AUTO CALC (O&M-ELECTRIC FUEL COST)/8",null,null,null,{"$f":"'FR-16(7)(v)-14 TOTAL CLASS'!I407","v":19455},{"$f":"'FR-16(7)(v)-3 PROD Demand'!I407+'FR-16(7)(v)-7 TRANS Demand'!I407+'FR-16(7)(v)-11 DIST Demand'!I407","v":19455},{"$f":"'FR-16(7)(v)-4 PROD Energy'!I407+'FR-16(7)(v)-8 TRANS Energy'!I407+'FR-16(7)(v)-12 DIST Energy'!I407","v":0},{"$f":"'FR-16(7)(v)-5 PROD Cust'!I407+'FR-16(7)(v)-9 TRANS Cust'!I407+'FR-16(7)(v)-13 DIST Cust'!I407","v":0},{"$f":"SUM(G407:I407)","v":19455},{"$f":"F407-J407","v":0}]
[19,"  TOTAL WORKING CASH",null,null,null,{"$f":"F407","v":19455},19455,0,0,19455,0]
[20]
[21,"MISCELLANEOUS WORKING CAPITAL"]
[22,null,{"$f":"'FR-16(7)(v)-1 Functional'!C411","v":"RESERVED FOR FUTURE USE"},{"$f":"'FR-16(7)(v)-1 Functional'!D411","v":"K301"},null,{"$f":"'FR-16(7)(v)-14 TOTAL CLASS'!I411","v":0},{"$f":"'FR-16(7)(v)-3 PROD Demand'!I411+'FR-16(7)(v)-7 TRANS Demand'!I411+'FR-16(7)(v)-11 DIST Demand'!I411","v":0},{"$f":"'FR-16(7)(v)-4 PROD Energy'!I411+'FR-16(7)(v)-8 TRANS Energy'!I411+'FR-16(7)(v)-12 DIST Energy'!I411","v":0},{"$f":"'FR-16(7)(v)-5 PROD Cust'!I411+'FR-16(7)(v)-9 TRANS Cust'!I411+'FR-16(7)(v)-13 DIST Cust'!I411","v":0},{"$f":"SUM(G411:I411)","v":0},{"$f":"F411-J411","v":0}]
[23,null,{"$f":"'FR-16(7)(v)-1 Functional'!C412","v":"PIPP UNCOLLECTIBLES"},{"$f":"'FR-16(7)(v)-1 Functional'!D412","v":"A315"},null,{"$f":"'FR-16(7)(v)-14 TOTAL CLASS'!I412","v":0},{"$f":"'FR-16(7)(v)-3 PROD Demand'!I412+'FR-16(7)(v)-7 TRANS Demand'!I412+'FR-16(7)(v)-11 DIST Demand'!I412","v":0},{"$f":"'FR-16(7)(v)-4 PROD Energy'!I412+'FR-16(7)(v)-8 TRANS Energy'!I412+'FR-16(7)(v)-12 DIST Energy'!I412","v":0},{"$f":"'FR-16(7)(v)-5 PROD Cust'!I412+'FR-16(7)(v)-9 TRANS Cust'!I412+'FR-16(7)(v)-13 DIST Cust'!I412","v":0},{"$f":"SUM(G412:I412)","v":0},{"$f":"F412-J412","v":0}]
[24,null,{"$f":"'FR-16(7)(v)-1 Functional'!C413","v":"RESERVED FOR FUTURE USE"},{"$f":"'FR-16(7)(v)-1 Functional'!D413","v":"D249"},null,{"$f":"'FR-16(7)(v)-14 TOTAL CLASS'!I413","v":0},{"$f":"'FR-16(7)(v)-3 PROD Demand'!I413+'FR-16(7)(v)-7 TRANS Demand'!I413+'FR-16(7)(v)-11 DIST Demand'!I413","v":0},{"$f":"'FR-16(7)(v)-4 PROD Energy'!I413+'FR-16(7)(v)-8 TRANS Energy'!I413+'FR-16(7)(v)-12 DIST Energy'!I413","v":0},{"$f":"'FR-16(7)(v)-5 PROD Cust'!I413+'FR-16(7)(v)-9 TRANS Cust'!I413+'FR-16(7)(v)-13 DIST Cust'!I413","v":0},{"$f":"SUM(G413:I413)","v":0},{"$f":"F413-J413","v":0}]
[25,null,{"$f":"'FR-16(7)(v)-1 Functional'!C414","v":"  TOTAL MISC WORK CAPITAL"},null,null,{"$f":"SUM(F410:F413)","v":0},0,0,0,0,0]
[26]
[27,"TOTAL WORKING CAPITAL",null,null,null,{"$f":"F399+F405+F408+F414","v":73308},29713,37378,6217,73308,0]
[28,"PRELIMINARY SUMMARY"]
[29,null,{"$f":"'FR-16(7)(v)-1 Functional'!C418","v":"TOTAL ACCUMULATED DEFERRED INCOME TAXES"},null,null,{"$f":"-F324","v":-355549},-308501,-21964,-25084,-355549,0]
[30,null,{"$f":"'FR-16(7)(v)-1 Functional'!C419","v":"TOTAL OTHER ACCUMULATED DEFERRED INCOME TAXES"},null,null,{"$f":"F377","v":20157},8401,8832,2924,20157,0]
[31,null,{"$f":"'FR-16(7)(v)-1 Functional'!C420","v":"TOTAL WORKING CAPITAL"},null,null,{"$f":"F416","v":73308},29713,37378,6217,73308,0]
[32,null,{"$f":"'FR-16(7)(v)-1 Functional'!C421","v":"  TOTAL RATE BASE ADJUSTMENTS"},null,null,{"$f":"SUM(F417:F420)","v":-262084},-270387,24246,-15943,-262084,0]
[33]
[34,"RATE BASE CALCULATION"]
[35,null,{"$f":"'FR-16(7)(v)-1 Functional'!C424","v":"NET ELECTRIC PLANT IN SERVICE"},null,null,{"$f":"F277","v":1457351},1331354,23643,102354,1457351,0]
[36,null,{"$f":"'FR-16(7)(v)-1 Functional'!C425","v":"TOTAL RATE BASE ADJUSTMENTS"},null,null,{"$f":"F421","v":-262084},-270387,24246,-15943,-262084,0]
[37,null,{"$f":"'FR-16(7)(v)-1 Functional'!C426","v":"  TOTAL RATE BASE"},null,null,{"$f":"SUM(F423:F425)","v":1195267},1060967,47889,86411,1195267,0]
[38]
[39,"TOTAL RATE OF RETURN ALLOWABLE",null,null,null,{"$f":"$F$811","v":6.7100000000000007E-2},{"$f":"F811","v":6.7100000000000007E-2},{"$f":"F811","v":6.7100000000000007E-2},{"$f":"F811","v":6.7100000000000007E-2},{"$f":"F811","v":6.7100000000000007E-2}]
[40,"RETURN ON RATE BASE",null,null,null,{"$f":"ROUND(F428*F426,0)","v":80202},{"$f":"F429-SUM(H429:I429)","v":71191},{"$f":"ROUND(H426*H428,0)","v":3213},{"$f":"ROUND(I426*I428,0)","v":5798},{"$f":"SUM(G429:I429)","v":80202},{"$f":"ROUND(K426*K428,0)","v":0}]
[41]
[42,{"$f":"'FR-16(7)(v)-1 Functional'!B431","v":"ELECTRIC RATE BASE"},null,{"$f":"'FR-16(7)(v)-1 Functional'!D431","v":"RB99"},null,{"$f":"'FR-16(7)(v)-14 TOTAL CLASS'!I431","v":1195755},{"$f":"'FR-16(7)(v)-3 PROD Demand'!I431+'FR-16(7)(v)-7 TRANS Demand'!I431+'FR-16(7)(v)-11 DIST Demand'!I431","v":1060497},{"$f":"'FR-16(7)(v)-4 PROD Energy'!I431+'FR-16(7)(v)-8 TRANS Energy'!I431+'FR-16(7)(v)-12 DIST Energy'!I431","v":47893},{"$f":"'FR-16(7)(v)-5 PROD Cust'!I431+'FR-16(7)(v)-9 TRANS Cust'!I431+'FR-16(7)(v)-13 DIST Cust'!I431","v":87365},{"$f":"SUM(G431:I431)","v":1195755},{"$f":"F431-J431","v":0}]
[43,{"$f":"'FR-16(7)(v)-1 Functional'!B432","v":"TOTAL RATE OF RETURN ALLOWABLE"},null,null,null,{"$f":"RofR","v":6.7110000000000003E-2},{"$f":"RofR","v":6.7110000000000003E-2},{"$f":"RofR","v":6.7110000000000003E-2},{"$f":"RofR","v":6.7110000000000003E-2},{"$f":"RofR","v":6.7110000000000003E-2}]
[44,{"$f":"'FR-16(7)(v)-1 Functional'!B433","v":"RETURN ON RATE BASE"},null,null,null,{"$f":"ROUND(F431*F432,0)","v":80247},{"$f":"F433-H433-I433","v":71170},{"$f":"ROUND(H431*H432,0)","v":3214},{"$f":"ROUND(I431*I432,0)","v":5863},{"$f":"ROUND(J431*J432,0)","v":80247},{"$f":"F433-J433","v":0}]
[]
[{"$f":"co_name","v":"DUKE ENERGY KENTUCKY, INC."},null,null,null,null,null,null,null,null,{"$f":"J1","v":"FR-16(7)(v)-17"}]
[{"$f":"$A$2","v":"GSFL SECONDARY CLASSIFIED - ELECTRIC COST OF SERVICE"},null,null,null,null,null,null,null,null,{"$f":"J2","v":"WITNESS RESPONSIBLE:"}]
[{"$f":"case_name","v":"CASE NO: 2019-00271"},null,null,null,null,null,null,null,null,{"$f":"Witness","v":"JAMES E. ZIOLKOWSKI"}]
[{"$f":"data_filing","v":"DATA: 12 MONTHS ACTUAL  & 0 MONTHS ESTIMATED"},null,null,null,null,null,null,null,null,{"$f":"\"PAGE \"&Pages2-7&\" OF \"&Pages2","v":"PAGE 8 OF 15"}]
[{"$f":"type","v":"TYPE OF FILING: \"X\" ORIGINAL   UPDATED    REVISED  "}]
[]
[]
["LINE",null,null,null,null,"TOTAL","CLASSIFIED",null,null,"TOTAL","ALL"]
["NO.","O&M EXPENSES",null,"ALLO",null,{"$f":"$F$9","v":"GSFL SECONDARY"},{"$f":"G9","v":"DEMAND"},"ENERGY","CUSTOMER","AT ISSUE","OTHER"]
[null,null,"Schedule 6",null,null,null,3,4,5]
[1,"PRODUCTION O&M"]
[2,{"$f":"'FR-16(7)(v)-1 Functional'!B446","v":"ENERGY RELATED PRODUCTION O&M"}]
[3,null,{"$f":"'FR-16(7)(v)-1 Functional'!C447","v":"FUEL"},{"$f":"'FR-16(7)(v)-1 Functional'!D447","v":"K302"},null,{"$f":"'FR-16(7)(v)-14 TOTAL CLASS'!I447","v":0},{"$f":"'FR-16(7)(v)-3 PROD Demand'!I447+'FR-16(7)(v)-7 TRANS Demand'!I447+'FR-16(7)(v)-11 DIST Demand'!I447","v":0},{"$f":"'FR-16(7)(v)-4 PROD Energy'!I447+'FR-16(7)(v)-8 TRANS Energy'!I447+'FR-16(7)(v)-12 DIST Energy'!I447","v":0},{"$f":"'FR-16(7)(v)-5 PROD Cust'!I447+'FR-16(7)(v)-9 TRANS Cust'!I447+'FR-16(7)(v)-13 DIST Cust'!I447","v":0},{"$f":"SUM(G447:I447)","v":0},{"$f":"F447-J447","v":0}]
[4,null,{"$f":"'FR-16(7)(v)-1 Functional'!C448","v":"FUEL AND PURCHASED POWER ADJUSTMENT"},{"$f":"'FR-16(7)(v)-1 Functional'!D448","v":"K302"},null,{"$f":"'FR-16(7)(v)-14 TOTAL CLASS'!I448","v":151573},{"$f":"'FR-16(7)(v)-3 PROD Demand'!I448+'FR-16(7)(v)-7 TRANS Demand'!I448+'FR-16(7)(v)-11 DIST Demand'!I448","v":0},{"$f":"'FR-16(7)(v)-4 PROD Energy'!I448+'FR-16(7)(v)-8 TRANS Energy'!I448+'FR-16(7)(v)-12 DIST Energy'!I448","v":151573},{"$f":"'FR-16(7)(v)-5 PROD Cust'!I448+'FR-16(7)(v)-9 TRANS Cust'!I448+'FR-16(7)(v)-13 DIST Cust'!I448","v":0},151573,0]
[5,null,{"$f":"'FR-16(7)(v)-1 Functional'!C449","v":"EMISSION ALLOWANCES"},{"$f":"'FR-16(7)(v)-1 Functional'!D449","v":"K301"},null,{"$f":"'FR-16(7)(v)-14 TOTAL CLASS'!I449","v":0},{"$f":"'FR-16(7)(v)-3 PROD Demand'!I449+'FR-16(7)(v)-7 TRANS Demand'!I449+'FR-16(7)(v)-11 DIST Demand'!I449","v":0},{"$f":"'FR-16(7)(v)-4 PROD Energy'!I449+'FR-16(7)(v)-8 TRANS Energy'!I449+'FR-16(7)(v)-12 DIST Energy'!I449","v":0},{"$f":"'FR-16(7)(v)-5 PROD Cust'!I449+'FR-16(7)(v)-9 TRANS Cust'!I449+'FR-16(7)(v)-13 DIST Cust'!I449","v":0},0,0]
[6,null,{"$f":"'FR-16(7)(v)-1 Functional'!C450","v":"ELIMINATE EMISSION ALLOW & OTHER VAR COST"},{"$f":"'FR-16(7)(v)-1 Functional'!D450","v":"K301"},null,{"$f":"'FR-16(7)(v)-14 TOTAL CLASS'!I450","v":0},{"$f":"'FR-16(7)(v)-3 PROD Demand'!I450+'FR-16(7)(v)-7 TRANS Demand'!I450+'FR-16(7)(v)-11 DIST Demand'!I450","v":0},{"$f":"'FR-16(7)(v)-4 PROD Energy'!I450+'FR-16(7)(v)-8 TRANS Energy'!I450+'FR-16(7)(v)-12 DIST Energy'!I450","v":0},{"$f":"'FR-16(7)(v)-5 PROD Cust'!I450+'FR-16(7)(v)-9 TRANS Cust'!I450+'FR-16(7)(v)-13 DIST Cust'!I450","v":0},0,0]
[7,null,{"$f":"'FR-16(7)(v)-1 Functional'!C451","v":"OTHER PRODUCTION EXPENSE - MAINTENANCE"},{"$f":"'FR-16(7)(v)-1 Functional'!D451","v":"K301"},null,{"$f":"'FR-16(7)(v)-14 TOTAL CLASS'!I451","v":61432},{"$f":"'FR-16(7)(v)-3 PROD Demand'!I451+'FR-16(7)(v)-7 TRANS Demand'!I451+'FR-16(7)(v)-11 DIST Demand'!I451","v":0},{"$f":"'FR-16(7)(v)-4 PROD Energy'!I451+'FR-16(7)(v)-8 TRANS Energy'!I451+'FR-16(7)(v)-12 DIST Energy'!I451","v":61432},{"$f":"'FR-16(7)(v)-5 PROD Cust'!I451+'FR-16(7)(v)-9 TRANS Cust'!I451+'FR-16(7)(v)-13 DIST Cust'!I451","v":0},61432,0]
[8,null,{"$f":"'FR-16(7)(v)-1 Functional'!C452","v":"MISO TRANSMISSION CHARGES - ACCT 555"},{"$f":"'FR-16(7)(v)-1 Functional'!D452","v":"K301"},null,{"$f":"'FR-16(7)(v)-14 TOTAL CLASS'!I452","v":0},{"$f":"'FR-16(7)(v)-3 PROD Demand'!I452+'FR-16(7)(v)-7 TRANS Demand'!I452+'FR-16(7)(v)-11 DIST Demand'!I452","v":0},{"$f":"'FR-16(7)(v)-4 PROD Energy'!I452+'FR-16(7)(v)-8 TRANS Energy'!I452+'FR-16(7)(v)-12 DIST Energy'!I452","v":0},{"$f":"'FR-16(7)(v)-5 PROD Cust'!I452+'FR-16(7)(v)-9 TRANS Cust'!I452+'FR-16(7)(v)-13 DIST Cust'!I452","v":0},0,0]
[9,null,{"$f":"'FR-16(7)(v)-1 Functional'!C453","v":"  TOTAL ENERGY RELATED"},null,null,{"$f":"SUM(F447:F452)","v":213005},0,213005,0,213005,0]
[10]
[11,"DEMAND RELATED & OTHER PROD O&M"]
[12,null,{"$f":"'FR-16(7)(v)-1 Functional'!C456","v":"OTHER PRODUCTION EXPENSES - OPERATIONS"},{"$f":"'FR-16(7)(v)-1 Functional'!D456","v":"K201"},null,{"$f":"'FR-16(7)(v)-14 TOTAL CLASS'!I456","v":0},{"$f":"'FR-16(7)(v)-3 PROD Demand'!I456+'FR-16(7)(v)-7 TRANS Demand'!I456+'FR-16(7)(v)-11 DIST Demand'!I456","v":0},{"$f":"'FR-16(7)(v)-4 PROD Energy'!I456+'FR-16(7)(v)-8 TRANS Energy'!I456+'FR-16(7)(v)-12 DIST Energy'!I456","v":0},{"$f":"'FR-16(7)(v)-5 PROD Cust'!I456+'FR-16(7)(v)-9 TRANS Cust'!I456+'FR-16(7)(v)-13 DIST Cust'!I456","v":0},{"$f":"SUM(G456:I456)","v":0},{"$f":"F456-J456","v":0}]
[13,null,{"$f":"'FR-16(7)(v)-1 Functional'!C457","v":"  TOTAL DEMAND REL & OTH PROD O&M "},null,null,{"$f":"SUM(F455:F456)","v":0},0,0,0,0,0]
[14]
[15,"TOTAL PRODUCTION O&M",null,null," ",{"$f":"F457+F453","v":213005},0,213005,0,213005,0]
[16]
[17,"TRANSMISSION O & M"]
[18,null,{"$f":"'FR-16(7)(v)-1 Functional'!C462","v":"TRANSFORMER LEASE PAYMENTS"},{"$f":"'FR-16(7)(v)-1 Functional'!D462","v":"K202"},null,{"$f":"'FR-16(7)(v)-14 TOTAL CLASS'!I462","v":0},{"$f":"'FR-16(7)(v)-3 PROD Demand'!I462+'FR-16(7)(v)-7 TRANS Demand'!I462+'FR-16(7)(v)-11 DIST Demand'!I462","v":0},{"$f":"'FR-16(7)(v)-4 PROD Energy'!I462+'FR-16(7)(v)-8 TRANS Energy'!I462+'FR-16(7)(v)-12 DIST Energy'!I462","v":0},{"$f":"'FR-16(7)(v)-5 PROD Cust'!I462+'FR-16(7)(v)-9 TRANS Cust'!I462+'FR-16(7)(v)-13 DIST Cust'!I462","v":0},{"$f":"SUM(G462:I462)","v":0},{"$f":"F462-J462","v":0}]
[19,null,{"$f":"'FR-16(7)(v)-1 Functional'!C463","v":"OTHER TRANSMISSION"},{"$f":"'FR-16(7)(v)-1 Functional'!D463","v":"K202"},null,{"$f":"'FR-16(7)(v)-14 TOTAL CLASS'!I463","v":30098},{"$f":"'FR-16(7)(v)-3 PROD Demand'!I463+'FR-16(7)(v)-7 TRANS Demand'!I463+'FR-16(7)(v)-11 DIST Demand'!I463","v":30098},{"$f":"'FR-16(7)(v)-4 PROD Energy'!I463+'FR-16(7)(v)-8 TRANS Energy'!I463+'FR-16(7)(v)-12 DIST Energy'!I463","v":0},{"$f":"'FR-16(7)(v)-5 PROD Cust'!I463+'FR-16(7)(v)-9 TRANS Cust'!I463+'FR-16(7)(v)-13 DIST Cust'!I463","v":0},{"$f":"SUM(G463:I463)","v":30098},{"$f":"F463-J463","v":0}]
[20,null,{"$f":"'FR-16(7)(v)-1 Functional'!C464","v":"MISCELLANEOUS ADJUSTMENTS"},{"$f":"'FR-16(7)(v)-1 Functional'!D464","v":"K202"},null,{"$f":"'FR-16(7)(v)-14 TOTAL CLASS'!I464","v":0},{"$f":"'FR-16(7)(v)-3 PROD Demand'!I464+'FR-16(7)(v)-7 TRANS Demand'!I464+'FR-16(7)(v)-11 DIST Demand'!I464","v":0},{"$f":"'FR-16(7)(v)-4 PROD Energy'!I464+'FR-16(7)(v)-8 TRANS Energy'!I464+'FR-16(7)(v)-12 DIST Energy'!I464","v":0},{"$f":"'FR-16(7)(v)-5 PROD Cust'!I464+'FR-16(7)(v)-9 TRANS Cust'!I464+'FR-16(7)(v)-13 DIST Cust'!I464","v":0},{"$f":"SUM(G464:I464)","v":0},{"$f":"F464-J464","v":0}]
[21,null,{"$f":"'FR-16(7)(v)-1 Functional'!C465","v":"NETWORK SERVICE RATES ADJUSTMENT"},{"$f":"'FR-16(7)(v)-1 Functional'!D465","v":"K202"},null,{"$f":"'FR-16(7)(v)-14 TOTAL CLASS'!I465","v":0},{"$f":"'FR-16(7)(v)-3 PROD Demand'!I465+'FR-16(7)(v)-7 TRANS Demand'!I465+'FR-16(7)(v)-11 DIST Demand'!I465","v":0},{"$f":"'FR-16(7)(v)-4 PROD Energy'!I465+'FR-16(7)(v)-8 TRANS Energy'!I465+'FR-16(7)(v)-12 DIST Energy'!I465","v":0},{"$f":"'FR-16(7)(v)-5 PROD Cust'!I465+'FR-16(7)(v)-9 TRANS Cust'!I465+'FR-16(7)(v)-13 DIST Cust'!I465","v":0},{"$f":"SUM(G465:I465)","v":0},{"$f":"F465-J465","v":0}]
[22,null,{"$f":"'FR-16(7)(v)-1 Functional'!C466","v":"  TOTAL TRANSMISSION O & M"},null,null,{"$f":"SUM(F462:F465)","v":30098},30098,0,0,30098,0]
[23]
[24,"REGIONAL MARKET O&M"]
[25,null,{"$f":"'FR-16(7)(v)-1 Functional'!C469","v":"MARKET FACILITATION - MONITORING & COMPLIANCE"},{"$f":"'FR-16(7)(v)-1 Functional'!D469","v":"K202"},null,{"$f":"'FR-16(7)(v)-14 TOTAL CLASS'!I469","v":2375},{"$f":"'FR-16(7)(v)-3 PROD Demand'!I469+'FR-16(7)(v)-7 TRANS Demand'!I469+'FR-16(7)(v)-11 DIST Demand'!I469","v":2375},{"$f":"'FR-16(7)(v)-4 PROD Energy'!I469+'FR-16(7)(v)-8 TRANS Energy'!I469+'FR-16(7)(v)-12 DIST Energy'!I469","v":0},{"$f":"'FR-16(7)(v)-5 PROD Cust'!I469+'FR-16(7)(v)-9 TRANS Cust'!I469+'FR-16(7)(v)-13 DIST Cust'!I469","v":0},{"$f":"SUM(G469:I469)","v":2375},{"$f":"F469-J469","v":0}]
[26,null,{"$f":"'FR-16(7)(v)-1 Functional'!C470","v":"TOTAL REGIONAL MARKET O&M"},null,null,{"$f":"SUM(F468:F469)","v":2375},2375,0,0,2375,0]
[27]
[28,"DISTRIBUTION O & M"]
[29,null,{"$f":"'FR-16(7)(v)-1 Functional'!C473","v":"SUBSTATIONS"},{"$f":"'FR-16(7)(v)-1 Functional'!D473","v":"K201"},null,{"$f":"'FR-16(7)(v)-14 TOTAL CLASS'!I473","v":807},{"$f":"'FR-16(7)(v)-3 PROD Demand'!I473+'FR-16(7)(v)-7 TRANS Demand'!I473+'FR-16(7)(v)-11 DIST Demand'!I473","v":807},{"$f":"'FR-16(7)(v)-4 PROD Energy'!I473+'FR-16(7)(v)-8 TRANS Energy'!I473+'FR-16(7)(v)-12 DIST Energy'!I473","v":0},{"$f":"'FR-16(7)(v)-5 PROD Cust'!I473+'FR-16(7)(v)-9 TRANS Cust'!I473+'FR-16(7)(v)-13 DIST Cust'!I473","v":0},{"$f":"SUM(G473:I473)","v":807},{"$f":"F473-J473","v":0}]
[30,null,{"$f":"'FR-16(7)(v)-1 Functional'!C474","v":"POLES, TOWERS & FIXTURES"},{"$f":"'FR-16(7)(v)-1 Functional'!D474","v":"PL49"},null,{"$f":"'FR-16(7)(v)-14 TOTAL CLASS'!I474","v":0},{"$f":"'FR-16(7)(v)-3 PROD Demand'!I474+'FR-16(7)(v)-7 TRANS Demand'!I474+'FR-16(7)(v)-11 DIST Demand'!I474","v":0},{"$f":"'FR-16(7)(v)-4 PROD Energy'!I474+'FR-16(7)(v)-8 TRANS Energy'!I474+'FR-16(7)(v)-12 DIST Energy'!I474","v":0},{"$f":"'FR-16(7)(v)-5 PROD Cust'!I474+'FR-16(7)(v)-9 TRANS Cust'!I474+'FR-16(7)(v)-13 DIST Cust'!I474","v":0},0,0]
[31,null,{"$f":"'FR-16(7)(v)-1 Functional'!C475","v":"OVERHEAD LINES - PRIMARY / DEMAND"},{"$f":"'FR-16(7)(v)-1 Functional'!D475","v":"K205"},null,{"$f":"'FR-16(7)(v)-14 TOTAL CLASS'!I475","v":6671},{"$f":"'FR-16(7)(v)-3 PROD Demand'!I475+'FR-16(7)(v)-7 TRANS Demand'!I475+'FR-16(7)(v)-11 DIST Demand'!I475","v":6671},{"$f":"'FR-16(7)(v)-4 PROD Energy'!I475+'FR-16(7)(v)-8 TRANS Energy'!I475+'FR-16(7)(v)-12 DIST Energy'!I475","v":0},{"$f":"'FR-16(7)(v)-5 PROD Cust'!I475+'FR-16(7)(v)-9 TRANS Cust'!I475+'FR-16(7)(v)-13 DIST Cust'!I475","v":0},6671,0]
[32,null,{"$f":"'FR-16(7)(v)-1 Functional'!C476","v":"OVERHEAD LINES - PRIMARY / CUSTOMER"},{"$f":"'FR-16(7)(v)-1 Functional'!D476","v":"K405"},null,{"$f":"'FR-16(7)(v)-14 TOTAL CLASS'!I476","v":1366},{"$f":"'FR-16(7)(v)-3 PROD Demand'!I476+'FR-16(7)(v)-7 TRANS Demand'!I476+'FR-16(7)(v)-11 DIST Demand'!I476","v":0},{"$f":"'FR-16(7)(v)-4 PROD Energy'!I476+'FR-16(7)(v)-8 TRANS Energy'!I476+'FR-16(7)(v)-12 DIST Energy'!I476","v":0},{"$f":"'FR-16(7)(v)-5 PROD Cust'!I476+'FR-16(7)(v)-9 TRANS Cust'!I476+'FR-16(7)(v)-13 DIST Cust'!I476","v":1366},{"$f":"SUM(G476:I476)","v":1366},{"$f":"F476-J476","v":0}]
[33,null,{"$f":"'FR-16(7)(v)-1 Functional'!C477","v":"OVERHEAD LINES - SECONDARY / DEMAND"},{"$f":"'FR-16(7)(v)-1 Functional'!D477","v":"K206"},null,{"$f":"'FR-16(7)(v)-14 TOTAL CLASS'!I477","v":2716},{"$f":"'FR-16(7)(v)-3 PROD Demand'!I477+'FR-16(7)(v)-7 TRANS Demand'!I477+'FR-16(7)(v)-11 DIST Demand'!I477","v":2716},{"$f":"'FR-16(7)(v)-4 PROD Energy'!I477+'FR-16(7)(v)-8 TRANS Energy'!I477+'FR-16(7)(v)-12 DIST Energy'!I477","v":0},{"$f":"'FR-16(7)(v)-5 PROD Cust'!I477+'FR-16(7)(v)-9 TRANS Cust'!I477+'FR-16(7)(v)-13 DIST Cust'!I477","v":0},2716,0]
[34,null,{"$f":"'FR-16(7)(v)-1 Functional'!C478","v":"OVERHEAD LINES - SECONDARY / CUSTOMER"},{"$f":"'FR-16(7)(v)-1 Functional'!D478","v":"K405"},null,{"$f":"'FR-16(7)(v)-14 TOTAL CLASS'!I478","v":566},{"$f":"'FR-16(7)(v)-3 PROD Demand'!I478+'FR-16(7)(v)-7 TRANS Demand'!I478+'FR-16(7)(v)-11 DIST Demand'!I478","v":0},{"$f":"'FR-16(7)(v)-4 PROD Energy'!I478+'FR-16(7)(v)-8 TRANS Energy'!I478+'FR-16(7)(v)-12 DIST Energy'!I478","v":0},{"$f":"'FR-16(7)(v)-5 PROD Cust'!I478+'FR-16(7)(v)-9 TRANS Cust'!I478+'FR-16(7)(v)-13 DIST Cust'!I478","v":566},566,0]
[35,null,{"$f":"'FR-16(7)(v)-1 Functional'!C479","v":"UNDERGROUND LINES - PRIMARY / DEMAND"},{"$f":"'FR-16(7)(v)-1 Functional'!D479","v":"K205"},null,{"$f":"'FR-16(7)(v)-14 TOTAL CLASS'!I479","v":870},{"$f":"'FR-16(7)(v)-3 PROD Demand'!I479+'FR-16(7)(v)-7 TRANS Demand'!I479+'FR-16(7)(v)-11 DIST Demand'!I479","v":870},{"$f":"'FR-16(7)(v)-4 PROD Energy'!I479+'FR-16(7)(v)-8 TRANS Energy'!I479+'FR-16(7)(v)-12 DIST Energy'!I479","v":0},{"$f":"'FR-16(7)(v)-5 PROD Cust'!I479+'FR-16(7)(v)-9 TRANS Cust'!I479+'FR-16(7)(v)-13 DIST Cust'!I479","v":0},870,0]
[36,null,{"$f":"'FR-16(7)(v)-1 Functional'!C480","v":"UNDERGROUND LINES - PRIMARY / CUSTOMER"},{"$f":"'FR-16(7)(v)-1 Functional'!D480","v":"K405"},null,{"$f":"'FR-16(7)(v)-14 TOTAL CLASS'!I480","v":253},{"$f":"'FR-16(7)(v)-3 PROD Demand'!I480+'FR-16(7)(v)-7 TRANS Demand'!I480+'FR-16(7)(v)-11 DIST Demand'!I480","v":0},{"$f":"'FR-16(7)(v)-4 PROD Energy'!I480+'FR-16(7)(v)-8 TRANS Energy'!I480+'FR-16(7)(v)-12 DIST Energy'!I480","v":0},{"$f":"'FR-16(7)(v)-5 PROD Cust'!I480+'FR-16(7)(v)-9 TRANS Cust'!I480+'FR-16(7)(v)-13 DIST Cust'!I480","v":253},253,0]
[37,null,{"$f":"'FR-16(7)(v)-1 Functional'!C481","v":"UNDERGROUND LINES - SECONDARY / DEMAND"},{"$f":"'FR-16(7)(v)-1 Functional'!D481","v":"K206"},null,{"$f":"'FR-16(7)(v)-14 TOTAL CLASS'!I481","v":149},{"$f":"'FR-16(7)(v)-3 PROD Demand'!I481+'FR-16(7)(v)-7 TRANS Demand'!I481+'FR-16(7)(v)-11 DIST Demand'!I481","v":149},{"$f":"'FR-16(7)(v)-4 PROD Energy'!I481+'FR-16(7)(v)-8 TRANS Energy'!I481+'FR-16(7)(v)-12 DIST Energy'!I481","v":0},{"$f":"'FR-16(7)(v)-5 PROD Cust'!I481+'FR-16(7)(v)-9 TRANS Cust'!I481+'FR-16(7)(v)-13 DIST Cust'!I481","v":0},149,0]
[38,null,{"$f":"'FR-16(7)(v)-1 Functional'!C482","v":"UNDERGROUND LINES - SECONDARY / CUSTOMER"},{"$f":"'FR-16(7)(v)-1 Functional'!D482","v":"K405"},null,{"$f":"'FR-16(7)(v)-14 TOTAL CLASS'!I482","v":79},{"$f":"'FR-16(7)(v)-3 PROD Demand'!I482+'FR-16(7)(v)-7 TRANS Demand'!I482+'FR-16(7)(v)-11 DIST Demand'!I482","v":0},{"$f":"'FR-16(7)(v)-4 PROD Energy'!I482+'FR-16(7)(v)-8 TRANS Energy'!I482+'FR-16(7)(v)-12 DIST Energy'!I482","v":0},{"$f":"'FR-16(7)(v)-5 PROD Cust'!I482+'FR-16(7)(v)-9 TRANS Cust'!I482+'FR-16(7)(v)-13 DIST Cust'!I482","v":79},79,0]
[39,null,{"$f":"'FR-16(7)(v)-1 Functional'!C483","v":"TRANSFORMERS DEMAND RELATED"},{"$f":"'FR-16(7)(v)-1 Functional'!D483","v":"K203"},null,{"$f":"'FR-16(7)(v)-14 TOTAL CLASS'!I483","v":206},{"$f":"'FR-16(7)(v)-3 PROD Demand'!I483+'FR-16(7)(v)-7 TRANS Demand'!I483+'FR-16(7)(v)-11 DIST Demand'!I483","v":206},{"$f":"'FR-16(7)(v)-4 PROD Energy'!I483+'FR-16(7)(v)-8 TRANS Energy'!I483+'FR-16(7)(v)-12 DIST Energy'!I483","v":0},{"$f":"'FR-16(7)(v)-5 PROD Cust'!I483+'FR-16(7)(v)-9 TRANS Cust'!I483+'FR-16(7)(v)-13 DIST Cust'!I483","v":0},206,0]
[40,null,{"$f":"'FR-16(7)(v)-1 Functional'!C484","v":"TRANSFORMERS CUSTOMER RELATED"},{"$f":"'FR-16(7)(v)-1 Functional'!D484","v":"K401"},null,{"$f":"'FR-16(7)(v)-14 TOTAL CLASS'!I484","v":0},{"$f":"'FR-16(7)(v)-3 PROD Demand'!I484+'FR-16(7)(v)-7 TRANS Demand'!I484+'FR-16(7)(v)-11 DIST Demand'!I484","v":0},{"$f":"'FR-16(7)(v)-4 PROD Energy'!I484+'FR-16(7)(v)-8 TRANS Energy'!I484+'FR-16(7)(v)-12 DIST Energy'!I484","v":0},{"$f":"'FR-16(7)(v)-5 PROD Cust'!I484+'FR-16(7)(v)-9 TRANS Cust'!I484+'FR-16(7)(v)-13 DIST Cust'!I484","v":0},{"$f":"SUM(G484:I484)","v":0},{"$f":"F484-J484","v":0}]
[41,null,{"$f":"'FR-16(7)(v)-1 Functional'!C485","v":"OTHER MAINTENANCE"},{"$f":"'FR-16(7)(v)-1 Functional'!D485","v":"K203"},null,{"$f":"'FR-16(7)(v)-14 TOTAL CLASS'!I485","v":1439},{"$f":"'FR-16(7)(v)-3 PROD Demand'!I485+'FR-16(7)(v)-7 TRANS Demand'!I485+'FR-16(7)(v)-11 DIST Demand'!I485","v":1439},{"$f":"'FR-16(7)(v)-4 PROD Energy'!I485+'FR-16(7)(v)-8 TRANS Energy'!I485+'FR-16(7)(v)-12 DIST Energy'!I485","v":0},{"$f":"'FR-16(7)(v)-5 PROD Cust'!I485+'FR-16(7)(v)-9 TRANS Cust'!I485+'FR-16(7)(v)-13 DIST Cust'!I485","v":0},1439,0]
[42,null,{"$f":"'FR-16(7)(v)-1 Functional'!C486","v":"LOAD DISPATCH"},{"$f":"'FR-16(7)(v)-1 Functional'!D486","v":"K215"},null,{"$f":"'FR-16(7)(v)-14 TOTAL CLASS'!I486","v":747},{"$f":"'FR-16(7)(v)-3 PROD Demand'!I486+'FR-16(7)(v)-7 TRANS Demand'!I486+'FR-16(7)(v)-11 DIST Demand'!I486","v":747},{"$f":"'FR-16(7)(v)-4 PROD Energy'!I486+'FR-16(7)(v)-8 TRANS Energy'!I486+'FR-16(7)(v)-12 DIST Energy'!I486","v":0},{"$f":"'FR-16(7)(v)-5 PROD Cust'!I486+'FR-16(7)(v)-9 TRANS Cust'!I486+'FR-16(7)(v)-13 DIST Cust'!I486","v":0},747,0]
[43,null,{"$f":"'FR-16(7)(v)-1 Functional'!C487","v":"METERS"},{"$f":"'FR-16(7)(v)-1 Functional'!D487","v":"K407"},null,{"$f":"'FR-16(7)(v)-14 TOTAL CLASS'!I487","v":0},{"$f":"'FR-16(7)(v)-3 PROD Demand'!I487+'FR-16(7)(v)-7 TRANS Demand'!I487+'FR-16(7)(v)-11 DIST Demand'!I487","v":0},{"$f":"'FR-16(7)(v)-4 PROD Energy'!I487+'FR-16(7)(v)-8 TRANS Energy'!I487+'FR-16(7)(v)-12 DIST Energy'!I487","v":0},{"$f":"'FR-16(7)(v)-5 PROD Cust'!I487+'FR-16(7)(v)-9 TRANS Cust'!I487+'FR-16(7)(v)-13 DIST Cust'!I487","v":0},0,0]
[44,null,{"$f":"'FR-16(7)(v)-1 Functional'!C488","v":"STREET LIGHTING AND SIGNAL SYSTEMS"},{"$f":"'FR-16(7)(v)-1 Functional'!D488","v":"K401"},null,{"$f":"'FR-16(7)(v)-14 TOTAL CLASS'!I488","v":0},{"$f":"'FR-16(7)(v)-3 PROD Demand'!I488+'FR-16(7)(v)-7 TRANS Demand'!I488+'FR-16(7)(v)-11 DIST Demand'!I488","v":0},{"$f":"'FR-16(7)(v)-4 PROD Energy'!I488+'FR-16(7)(v)-8 TRANS Energy'!I488+'FR-16(7)(v)-12 DIST Energy'!I488","v":0},{"$f":"'FR-16(7)(v)-5 PROD Cust'!I488+'FR-16(7)(v)-9 TRANS Cust'!I488+'FR-16(7)(v)-13 DIST Cust'!I488","v":0},0,0]
[45,null,{"$f":"'FR-16(7)(v)-1 Functional'!C489","v":"OTHER OPERATIONS"},{"$f":"'FR-16(7)(v)-1 Functional'!D489","v":"K203"},null,{"$f":"'FR-16(7)(v)-14 TOTAL CLASS'!I489","v":549},{"$f":"'FR-16(7)(v)-3 PROD Demand'!I489+'FR-16(7)(v)-7 TRANS Demand'!I489+'FR-16(7)(v)-11 DIST Demand'!I489","v":549},{"$f":"'FR-16(7)(v)-4 PROD Energy'!I489+'FR-16(7)(v)-8 TRANS Energy'!I489+'FR-16(7)(v)-12 DIST Energy'!I489","v":0},{"$f":"'FR-16(7)(v)-5 PROD Cust'!I489+'FR-16(7)(v)-9 TRANS Cust'!I489+'FR-16(7)(v)-13 DIST Cust'!I489","v":0},549,0]
[46,null,{"$f":"'FR-16(7)(v)-1 Functional'!C490","v":"MISCELLANEOUS EXPENSES ADJUSTMENT"},{"$f":"'FR-16(7)(v)-1 Functional'!D490","v":"K203"},null,{"$f":"'FR-16(7)(v)-14 TOTAL CLASS'!I490","v":1693},{"$f":"'FR-16(7)(v)-3 PROD Demand'!I490+'FR-16(7)(v)-7 TRANS Demand'!I490+'FR-16(7)(v)-11 DIST Demand'!I490","v":1693},{"$f":"'FR-16(7)(v)-4 PROD Energy'!I490+'FR-16(7)(v)-8 TRANS Energy'!I490+'FR-16(7)(v)-12 DIST Energy'!I490","v":0},{"$f":"'FR-16(7)(v)-5 PROD Cust'!I490+'FR-16(7)(v)-9 TRANS Cust'!I490+'FR-16(7)(v)-13 DIST Cust'!I490","v":0},1693,0]
[47,null,{"$f":"'FR-16(7)(v)-1 Functional'!C491","v":"AFFILIATED COMPANY RENTS ADJUSTMENT"},{"$f":"'FR-16(7)(v)-1 Functional'!D491","v":"D249"},null,{"$f":"'FR-16(7)(v)-14 TOTAL CLASS'!I491","v":0},{"$f":"'FR-16(7)(v)-3 PROD Demand'!I491+'FR-16(7)(v)-7 TRANS Demand'!I491+'FR-16(7)(v)-11 DIST Demand'!I491","v":0},{"$f":"'FR-16(7)(v)-4 PROD Energy'!I491+'FR-16(7)(v)-8 TRANS Energy'!I491+'FR-16(7)(v)-12 DIST Energy'!I491","v":0},{"$f":"'FR-16(7)(v)-5 PROD Cust'!I491+'FR-16(7)(v)-9 TRANS Cust'!I491+'FR-16(7)(v)-13 DIST Cust'!I491","v":0},0,0]
[48,null,{"$f":"'FR-16(7)(v)-1 Functional'!C492","v":"  TOTAL DISTRIBUTION O & M"},null," ",{"$f":"SUM(F472:F491)","v":18111},15847,0,2264,18111,0]
[49,null," "]
[50,"CUSTOMER ACCOUNTING",null,null,null," "]
[51,null,{"$f":"'FR-16(7)(v)-1 Functional'!C495","v":"CUSTOMER ACCOUNTING EXPENSE"},{"$f":"'FR-16(7)(v)-1 Functional'!D495","v":"K409"},null,{"$f":"'FR-16(7)(v)-14 TOTAL CLASS'!I495","v":4269},{"$f":"'FR-16(7)(v)-3 PROD Demand'!I495+'FR-16(7)(v)-7 TRANS Demand'!I495+'FR-16(7)(v)-11 DIST Demand'!I495","v":0},{"$f":"'FR-16(7)(v)-4 PROD Energy'!I495+'FR-16(7)(v)-8 TRANS Energy'!I495+'FR-16(7)(v)-12 DIST Energy'!I495","v":0},{"$f":"'FR-16(7)(v)-5 PROD Cust'!I495+'FR-16(7)(v)-9 TRANS Cust'!I495+'FR-16(7)(v)-13 DIST Cust'!I495","v":4269},{"$f":"SUM(G495:I495)","v":4269},{"$f":"F495-J495","v":0}]
[52,null,{"$f":"'FR-16(7)(v)-1 Functional'!C496","v":"UNCOLLECTIBLE EXP"},{"$f":"'FR-16(7)(v)-1 Functional'!D496","v":"K411"},null,{"$f":"'FR-16(7)(v)-14 TOTAL CLASS'!I496","v":435},{"$f":"'FR-16(7)(v)-3 PROD Demand'!I496+'FR-16(7)(v)-7 TRANS Demand'!I496+'FR-16(7)(v)-11 DIST Demand'!I496","v":0},{"$f":"'FR-16(7)(v)-4 PROD Energy'!I496+'FR-16(7)(v)-8 TRANS Energy'!I496+'FR-16(7)(v)-12 DIST Energy'!I496","v":0},{"$f":"'FR-16(7)(v)-5 PROD Cust'!I496+'FR-16(7)(v)-9 TRANS Cust'!I496+'FR-16(7)(v)-13 DIST Cust'!I496","v":435},435,0]
[53,null,{"$f":"'FR-16(7)(v)-1 Functional'!C497","v":"METER READING"},{"$f":"'FR-16(7)(v)-1 Functional'!D497","v":"K407"},null,{"$f":"'FR-16(7)(v)-14 TOTAL CLASS'!I497","v":0},{"$f":"'FR-16(7)(v)-3 PROD Demand'!I497+'FR-16(7)(v)-7 TRANS Demand'!I497+'FR-16(7)(v)-11 DIST Demand'!I497","v":0},{"$f":"'FR-16(7)(v)-4 PROD Energy'!I497+'FR-16(7)(v)-8 TRANS Energy'!I497+'FR-16(7)(v)-12 DIST Energy'!I497","v":0},{"$f":"'FR-16(7)(v)-5 PROD Cust'!I497+'FR-16(7)(v)-9 TRANS Cust'!I497+'FR-16(7)(v)-13 DIST Cust'!I497","v":0},0,0]
[54,null,{"$f":"'FR-16(7)(v)-1 Functional'!C498","v":"UNCOLLECTIBLE EXP ADJUSTMENT"},{"$f":"'FR-16(7)(v)-1 Functional'!D498","v":"K411"},null,{"$f":"'FR-16(7)(v)-14 TOTAL CLASS'!I498","v":-616},{"$f":"'FR-16(7)(v)-3 PROD Demand'!I498+'FR-16(7)(v)-7 TRANS Demand'!I498+'FR-16(7)(v)-11 DIST Demand'!I498","v":0},{"$f":"'FR-16(7)(v)-4 PROD Energy'!I498+'FR-16(7)(v)-8 TRANS Energy'!I498+'FR-16(7)(v)-12 DIST Energy'!I498","v":0},{"$f":"'FR-16(7)(v)-5 PROD Cust'!I498+'FR-16(7)(v)-9 TRANS Cust'!I498+'FR-16(7)(v)-13 DIST Cust'!I498","v":-616},-616,0]
[55,null,{"$f":"'FR-16(7)(v)-1 Functional'!C499","v":"CREDIT CARD FEES"},{"$f":"'FR-16(7)(v)-1 Functional'!D499","v":"K407"},null,{"$f":"'FR-16(7)(v)-14 TOTAL CLASS'!I499","v":0},{"$f":"'FR-16(7)(v)-3 PROD Demand'!I499+'FR-16(7)(v)-7 TRANS Demand'!I499+'FR-16(7)(v)-11 DIST Demand'!I499","v":0},{"$f":"'FR-16(7)(v)-4 PROD Energy'!I499+'FR-16(7)(v)-8 TRANS Energy'!I499+'FR-16(7)(v)-12 DIST Energy'!I499","v":0},{"$f":"'FR-16(7)(v)-5 PROD Cust'!I499+'FR-16(7)(v)-9 TRANS Cust'!I499+'FR-16(7)(v)-13 DIST Cust'!I499","v":0},0,0]
[56,null,{"$f":"'FR-16(7)(v)-1 Functional'!C500","v":"ELIMINATE REV & EXP - DSM RIDER"},{"$f":"'FR-16(7)(v)-1 Functional'!D500","v":"K405"},null,{"$f":"'FR-16(7)(v)-14 TOTAL CLASS'!I500","v":0},{"$f":"'FR-16(7)(v)-3 PROD Demand'!I500+'FR-16(7)(v)-7 TRANS Demand'!I500+'FR-16(7)(v)-11 DIST Demand'!I500","v":0},{"$f":"'FR-16(7)(v)-4 PROD Energy'!I500+'FR-16(7)(v)-8 TRANS Energy'!I500+'FR-16(7)(v)-12 DIST Energy'!I500","v":0},{"$f":"'FR-16(7)(v)-5 PROD Cust'!I500+'FR-16(7)(v)-9 TRANS Cust'!I500+'FR-16(7)(v)-13 DIST Cust'!I500","v":0},0,0]
[57,null,{"$f":"'FR-16(7)(v)-1 Functional'!C501","v":"SALE OF A/R"},{"$f":"'FR-16(7)(v)-1 Functional'!D501","v":"K411"},null,{"$f":"'FR-16(7)(v)-14 TOTAL CLASS'!I501","v":121},{"$f":"'FR-16(7)(v)-3 PROD Demand'!I501+'FR-16(7)(v)-7 TRANS Demand'!I501+'FR-16(7)(v)-11 DIST Demand'!I501","v":0},{"$f":"'FR-16(7)(v)-4 PROD Energy'!I501+'FR-16(7)(v)-8 TRANS Energy'!I501+'FR-16(7)(v)-12 DIST Energy'!I501","v":0},{"$f":"'FR-16(7)(v)-5 PROD Cust'!I501+'FR-16(7)(v)-9 TRANS Cust'!I501+'FR-16(7)(v)-13 DIST Cust'!I501","v":121},121,0]
[58,null,{"$f":"'FR-16(7)(v)-1 Functional'!C502","v":"ELIMINATE MISC EXPENSE"},{"$f":"'FR-16(7)(v)-1 Functional'!D502","v":"K405"},null,{"$f":"'FR-16(7)(v)-14 TOTAL CLASS'!I502","v":-1},{"$f":"'FR-16(7)(v)-3 PROD Demand'!I502+'FR-16(7)(v)-7 TRANS Demand'!I502+'FR-16(7)(v)-11 DIST Demand'!I502","v":0},{"$f":"'FR-16(7)(v)-4 PROD Energy'!I502+'FR-16(7)(v)-8 TRANS Energy'!I502+'FR-16(7)(v)-12 DIST Energy'!I502","v":0},{"$f":"'FR-16(7)(v)-5 PROD Cust'!I502+'FR-16(7)(v)-9 TRANS Cust'!I502+'FR-16(7)(v)-13 DIST Cust'!I502","v":-1},-1,0]
[59,null,{"$f":"'FR-16(7)(v)-1 Functional'!C503","v":"  TOTAL CUSTOMER ACCT EXPENSE"},null," ",{"$f":"SUM(F494:F502)","v":4208},0,0,4208,4208,0]
[]
[{"$f":"co_name","v":"DUKE ENERGY KENTUCKY, INC."},null,null,null,null,null,null,null,null,{"$f":"J1","v":"FR-16(7)(v)-17"}]
[{"$f":"$A$2","v":"GSFL SECONDARY CLASSIFIED - ELECTRIC COST OF SERVICE"},null,null,null,null,null,null,null,null,{"$f":"J2","v":"WITNESS RESPONSIBLE:"}]
[{"$f":"case_name","v":"CASE NO: 2019-00271"},null,null,null,null,null,null,null,null,{"$f":"Witness","v":"JAMES E. ZIOLKOWSKI"}]
[{"$f":"data_filing","v":"DATA: 12 MONTHS ACTUAL  & 0 MONTHS ESTIMATED"},null,null,null,null,null,null,null,null,{"$f":"\"PAGE \"&Pages2-6&\" OF \"&Pages2","v":"PAGE 9 OF 15"}]
[{"$f":"type","v":"TYPE OF FILING: \"X\" ORIGINAL   UPDATED    REVISED  "}]
[]
[]
["LINE",null,null,null,null,"TOTAL","CLASSIFIED",null,null,"TOTAL","ALL"]
["NO.","O&M EXPENSES",null,"ALLO",null,{"$f":"$F$9","v":"GSFL SECONDARY"},{"$f":"G9","v":"DEMAND"},"ENERGY","CUSTOMER","AT ISSUE","OTHER"]
[null,null,"Schedule 6.1",null,null,null,3,4,5]
[1,"CUSTOMER SERVICE & INFORMATION"]
[2,null,{"$f":"'FR-16(7)(v)-1 Functional'!C516","v":"TOTAL CUST SERVICE & INFO"},{"$f":"'FR-16(7)(v)-1 Functional'!D516","v":"K405"},null,{"$f":"'FR-16(7)(v)-14 TOTAL CLASS'!I516","v":732},{"$f":"'FR-16(7)(v)-3 PROD Demand'!I516+'FR-16(7)(v)-7 TRANS Demand'!I516+'FR-16(7)(v)-11 DIST Demand'!I516","v":0},{"$f":"'FR-16(7)(v)-4 PROD Energy'!I516+'FR-16(7)(v)-8 TRANS Energy'!I516+'FR-16(7)(v)-12 DIST Energy'!I516","v":0},{"$f":"'FR-16(7)(v)-5 PROD Cust'!I516+'FR-16(7)(v)-9 TRANS Cust'!I516+'FR-16(7)(v)-13 DIST Cust'!I516","v":732},{"$f":"SUM(G516:I516)","v":732},{"$f":"F516-J516","v":0}]
[3,null,{"$f":"'FR-16(7)(v)-1 Functional'!C517","v":"INFORMATIONAL & INSTRUCTIONAL ADV"},{"$f":"'FR-16(7)(v)-1 Functional'!D517","v":"K405"},null,{"$f":"'FR-16(7)(v)-14 TOTAL CLASS'!I517","v":0},{"$f":"'FR-16(7)(v)-3 PROD Demand'!I517+'FR-16(7)(v)-7 TRANS Demand'!I517+'FR-16(7)(v)-11 DIST Demand'!I517","v":0},{"$f":"'FR-16(7)(v)-4 PROD Energy'!I517+'FR-16(7)(v)-8 TRANS Energy'!I517+'FR-16(7)(v)-12 DIST Energy'!I517","v":0},{"$f":"'FR-16(7)(v)-5 PROD Cust'!I517+'FR-16(7)(v)-9 TRANS Cust'!I517+'FR-16(7)(v)-13 DIST Cust'!I517","v":0},{"$f":"SUM(G517:I517)","v":0},{"$f":"F517-J517","v":0}]
[4,null,{"$f":"'FR-16(7)(v)-1 Functional'!C518","v":"TOTAL CUSTOMER SERV. & INFO."},null," ",{"$f":"SUM(F516:F517)","v":732},0,0,732,732,0]
[5]
[6,"SALES"]
[7,null,{"$f":"'FR-16(7)(v)-1 Functional'!C521","v":"SALES EXPENSE"},{"$f":"'FR-16(7)(v)-1 Functional'!D521","v":"K405"}," ",{"$f":"'FR-16(7)(v)-14 TOTAL CLASS'!I521","v":1812},{"$f":"'FR-16(7)(v)-3 PROD Demand'!I521+'FR-16(7)(v)-7 TRANS Demand'!I521+'FR-16(7)(v)-11 DIST Demand'!I521","v":0},{"$f":"'FR-16(7)(v)-4 PROD Energy'!I521+'FR-16(7)(v)-8 TRANS Energy'!I521+'FR-16(7)(v)-12 DIST Energy'!I521","v":0},{"$f":"'FR-16(7)(v)-5 PROD Cust'!I521+'FR-16(7)(v)-9 TRANS Cust'!I521+'FR-16(7)(v)-13 DIST Cust'!I521","v":1812},{"$f":"SUM(G521:I521)","v":1812},{"$f":"F521-J521","v":0}]
[8,null,{"$f":"'FR-16(7)(v)-1 Functional'!C522","v":"TOTAL SALES EXPENSE"},null," ",{"$f":"SUM(F520:F521)","v":1812},0,0,1812,1812,0]
[9]
[10,"ADMINISTRATIVE & GENERAL "]
[11,null,{"$f":"'FR-16(7)(v)-1 Functional'!C525","v":"PRODUCTION - DEMAND RELATED"},{"$f":"'FR-16(7)(v)-1 Functional'!D525","v":"P349"},null,{"$f":"'FR-16(7)(v)-14 TOTAL CLASS'!I525","v":0},{"$f":"'FR-16(7)(v)-3 PROD Demand'!I525+'FR-16(7)(v)-7 TRANS Demand'!I525+'FR-16(7)(v)-11 DIST Demand'!I525","v":0},{"$f":"'FR-16(7)(v)-4 PROD Energy'!I525+'FR-16(7)(v)-8 TRANS Energy'!I525+'FR-16(7)(v)-12 DIST Energy'!I525","v":0},{"$f":"'FR-16(7)(v)-5 PROD Cust'!I525+'FR-16(7)(v)-9 TRANS Cust'!I525+'FR-16(7)(v)-13 DIST Cust'!I525","v":0},{"$f":"SUM(G525:I525)","v":0},{"$f":"F525-J525","v":0}]
[12,null,{"$f":"'FR-16(7)(v)-1 Functional'!C526","v":"PRODUCTION - ENERGY RELATED"},{"$f":"'FR-16(7)(v)-1 Functional'!D526","v":"E349"},null,{"$f":"'FR-16(7)(v)-14 TOTAL CLASS'!I526","v":16384},{"$f":"'FR-16(7)(v)-3 PROD Demand'!I526+'FR-16(7)(v)-7 TRANS Demand'!I526+'FR-16(7)(v)-11 DIST Demand'!I526","v":0},{"$f":"'FR-16(7)(v)-4 PROD Energy'!I526+'FR-16(7)(v)-8 TRANS Energy'!I526+'FR-16(7)(v)-12 DIST Energy'!I526","v":16384},{"$f":"'FR-16(7)(v)-5 PROD Cust'!I526+'FR-16(7)(v)-9 TRANS Cust'!I526+'FR-16(7)(v)-13 DIST Cust'!I526","v":0},16384,0]
[13,null,"TRANSMISSION",{"$f":"'FR-16(7)(v)-1 Functional'!D527","v":"T349"},null,{"$f":"'FR-16(7)(v)-14 TOTAL CLASS'!I527","v":1908},{"$f":"'FR-16(7)(v)-3 PROD Demand'!I527+'FR-16(7)(v)-7 TRANS Demand'!I527+'FR-16(7)(v)-11 DIST Demand'!I527","v":1908},{"$f":"'FR-16(7)(v)-4 PROD Energy'!I527+'FR-16(7)(v)-8 TRANS Energy'!I527+'FR-16(7)(v)-12 DIST Energy'!I527","v":0},{"$f":"'FR-16(7)(v)-5 PROD Cust'!I527+'FR-16(7)(v)-9 TRANS Cust'!I527+'FR-16(7)(v)-13 DIST Cust'!I527","v":0},{"$f":"SUM(G527:I527)","v":1908},{"$f":"F527-J527","v":0}]
[14,null,{"$f":"'FR-16(7)(v)-1 Functional'!C528","v":"DISTRIBUTION"},{"$f":"'FR-16(7)(v)-1 Functional'!D528","v":"D349"},null,{"$f":"'FR-16(7)(v)-14 TOTAL CLASS'!I528","v":6082},{"$f":"'FR-16(7)(v)-3 PROD Demand'!I528+'FR-16(7)(v)-7 TRANS Demand'!I528+'FR-16(7)(v)-11 DIST Demand'!I528","v":5323},{"$f":"'FR-16(7)(v)-4 PROD Energy'!I528+'FR-16(7)(v)-8 TRANS Energy'!I528+'FR-16(7)(v)-12 DIST Energy'!I528","v":0},{"$f":"'FR-16(7)(v)-5 PROD Cust'!I528+'FR-16(7)(v)-9 TRANS Cust'!I528+'FR-16(7)(v)-13 DIST Cust'!I528","v":759},6082,0]
[15,null,{"$f":"'FR-16(7)(v)-1 Functional'!C529","v":"CUSTOMER ACCOUNTING"},{"$f":"'FR-16(7)(v)-1 Functional'!D529","v":"C319"},null,{"$f":"'FR-16(7)(v)-14 TOTAL CLASS'!I529","v":3716},{"$f":"'FR-16(7)(v)-3 PROD Demand'!I529+'FR-16(7)(v)-7 TRANS Demand'!I529+'FR-16(7)(v)-11 DIST Demand'!I529","v":0},{"$f":"'FR-16(7)(v)-4 PROD Energy'!I529+'FR-16(7)(v)-8 TRANS Energy'!I529+'FR-16(7)(v)-12 DIST Energy'!I529","v":0},{"$f":"'FR-16(7)(v)-5 PROD Cust'!I529+'FR-16(7)(v)-9 TRANS Cust'!I529+'FR-16(7)(v)-13 DIST Cust'!I529","v":3716},3716,0]
[16,null,{"$f":"'FR-16(7)(v)-1 Functional'!C530","v":"CUSTOMER SERVICE & INFORMATION"},{"$f":"'FR-16(7)(v)-1 Functional'!D530","v":"C331"},null,{"$f":"'FR-16(7)(v)-14 TOTAL CLASS'!I530","v":291},{"$f":"'FR-16(7)(v)-3 PROD Demand'!I530+'FR-16(7)(v)-7 TRANS Demand'!I530+'FR-16(7)(v)-11 DIST Demand'!I530","v":0},{"$f":"'FR-16(7)(v)-4 PROD Energy'!I530+'FR-16(7)(v)-8 TRANS Energy'!I530+'FR-16(7)(v)-12 DIST Energy'!I530","v":0},{"$f":"'FR-16(7)(v)-5 PROD Cust'!I530+'FR-16(7)(v)-9 TRANS Cust'!I530+'FR-16(7)(v)-13 DIST Cust'!I530","v":291},291,0]
[17,null,{"$f":"'FR-16(7)(v)-1 Functional'!C531","v":"SALES"},{"$f":"'FR-16(7)(v)-1 Functional'!D531","v":"S319"},null,{"$f":"'FR-16(7)(v)-14 TOTAL CLASS'!I531","v":0},{"$f":"'FR-16(7)(v)-3 PROD Demand'!I531+'FR-16(7)(v)-7 TRANS Demand'!I531+'FR-16(7)(v)-11 DIST Demand'!I531","v":0},{"$f":"'FR-16(7)(v)-4 PROD Energy'!I531+'FR-16(7)(v)-8 TRANS Energy'!I531+'FR-16(7)(v)-12 DIST Energy'!I531","v":0},{"$f":"'FR-16(7)(v)-5 PROD Cust'!I531+'FR-16(7)(v)-9 TRANS Cust'!I531+'FR-16(7)(v)-13 DIST Cust'!I531","v":0},0,0]
[18,null,{"$f":"'FR-16(7)(v)-1 Functional'!C532","v":"TOT ADMIN & GEN LESS REG EXP"}," ",null,{"$f":"SUM(F525:F531)","v":28381},7231,16384,4766,28381,0]
[19,null,{"$f":"'FR-16(7)(v)-1 Functional'!C533","v":"RATE CASE EXPENSE ADJUSTMENT"},{"$f":"'FR-16(7)(v)-1 Functional'!D533","v":"A315"},null,{"$f":"'FR-16(7)(v)-14 TOTAL CLASS'!I533","v":122},{"$f":"'FR-16(7)(v)-3 PROD Demand'!I533+'FR-16(7)(v)-7 TRANS Demand'!I533+'FR-16(7)(v)-11 DIST Demand'!I533","v":31},{"$f":"'FR-16(7)(v)-4 PROD Energy'!I533+'FR-16(7)(v)-8 TRANS Energy'!I533+'FR-16(7)(v)-12 DIST Energy'!I533","v":70},{"$f":"'FR-16(7)(v)-5 PROD Cust'!I533+'FR-16(7)(v)-9 TRANS Cust'!I533+'FR-16(7)(v)-13 DIST Cust'!I533","v":21},{"$f":"SUM(G533:I533)","v":122},{"$f":"F533-J533","v":0}]
[20,null,{"$f":"'FR-16(7)(v)-1 Functional'!C534","v":"ELIMINATE MISCELLANEOUS EXPENSES ADJUSTMENT"},{"$f":"'FR-16(7)(v)-1 Functional'!D534","v":"A315"},null,{"$f":"'FR-16(7)(v)-14 TOTAL CLASS'!I534","v":0},{"$f":"'FR-16(7)(v)-3 PROD Demand'!I534+'FR-16(7)(v)-7 TRANS Demand'!I534+'FR-16(7)(v)-11 DIST Demand'!I534","v":0},{"$f":"'FR-16(7)(v)-4 PROD Energy'!I534+'FR-16(7)(v)-8 TRANS Energy'!I534+'FR-16(7)(v)-12 DIST Energy'!I534","v":0},{"$f":"'FR-16(7)(v)-5 PROD Cust'!I534+'FR-16(7)(v)-9 TRANS Cust'!I534+'FR-16(7)(v)-13 DIST Cust'!I534","v":0},0,0]
[21,null,{"$f":"'FR-16(7)(v)-1 Functional'!C535","v":"RIDER ESM ELIMINATION"},{"$f":"'FR-16(7)(v)-1 Functional'!D535","v":"A315"},null,{"$f":"'FR-16(7)(v)-14 TOTAL CLASS'!I535","v":-8380},{"$f":"'FR-16(7)(v)-3 PROD Demand'!I535+'FR-16(7)(v)-7 TRANS Demand'!I535+'FR-16(7)(v)-11 DIST Demand'!I535","v":-2137},{"$f":"'FR-16(7)(v)-4 PROD Energy'!I535+'FR-16(7)(v)-8 TRANS Energy'!I535+'FR-16(7)(v)-12 DIST Energy'!I535","v":-4833},{"$f":"'FR-16(7)(v)-5 PROD Cust'!I535+'FR-16(7)(v)-9 TRANS Cust'!I535+'FR-16(7)(v)-13 DIST Cust'!I535","v":-1410},-8380,0]
[22,null,{"$f":"'FR-16(7)(v)-1 Functional'!C536","v":"ELIMINATE DSM"},{"$f":"'FR-16(7)(v)-1 Functional'!D536","v":"A315"},null,{"$f":"'FR-16(7)(v)-14 TOTAL CLASS'!I536","v":-118},{"$f":"'FR-16(7)(v)-3 PROD Demand'!I536+'FR-16(7)(v)-7 TRANS Demand'!I536+'FR-16(7)(v)-11 DIST Demand'!I536","v":-30},{"$f":"'FR-16(7)(v)-4 PROD Energy'!I536+'FR-16(7)(v)-8 TRANS Energy'!I536+'FR-16(7)(v)-12 DIST Energy'!I536","v":-68},{"$f":"'FR-16(7)(v)-5 PROD Cust'!I536+'FR-16(7)(v)-9 TRANS Cust'!I536+'FR-16(7)(v)-13 DIST Cust'!I536","v":-20},-118,0]
[23,null,{"$f":"'FR-16(7)(v)-1 Functional'!C537","v":"DSM DEFERRAL - ELECTRIC"},{"$f":"'FR-16(7)(v)-1 Functional'!D537","v":"A315"},null,{"$f":"'FR-16(7)(v)-14 TOTAL CLASS'!I537","v":0},{"$f":"'FR-16(7)(v)-3 PROD Demand'!I537+'FR-16(7)(v)-7 TRANS Demand'!I537+'FR-16(7)(v)-11 DIST Demand'!I537","v":0},{"$f":"'FR-16(7)(v)-4 PROD Energy'!I537+'FR-16(7)(v)-8 TRANS Energy'!I537+'FR-16(7)(v)-12 DIST Energy'!I537","v":0},{"$f":"'FR-16(7)(v)-5 PROD Cust'!I537+'FR-16(7)(v)-9 TRANS Cust'!I537+'FR-16(7)(v)-13 DIST Cust'!I537","v":0},0,0]
[24,null,{"$f":"'FR-16(7)(v)-1 Functional'!C538","v":"PENSION ADJUSTMENT"},{"$f":"'FR-16(7)(v)-1 Functional'!D538","v":"A315"},null,{"$f":"'FR-16(7)(v)-14 TOTAL CLASS'!I538","v":-511},{"$f":"'FR-16(7)(v)-3 PROD Demand'!I538+'FR-16(7)(v)-7 TRANS Demand'!I538+'FR-16(7)(v)-11 DIST Demand'!I538","v":-130},{"$f":"'FR-16(7)(v)-4 PROD Energy'!I538+'FR-16(7)(v)-8 TRANS Energy'!I538+'FR-16(7)(v)-12 DIST Energy'!I538","v":-295},{"$f":"'FR-16(7)(v)-5 PROD Cust'!I538+'FR-16(7)(v)-9 TRANS Cust'!I538+'FR-16(7)(v)-13 DIST Cust'!I538","v":-86},-511,0]
[25,null,{"$f":"'FR-16(7)(v)-1 Functional'!C539","v":"ELIMINATE MISC EXPENSES"},{"$f":"'FR-16(7)(v)-1 Functional'!D539","v":"A315"},null,{"$f":"'FR-16(7)(v)-14 TOTAL CLASS'!I539","v":-493},{"$f":"'FR-16(7)(v)-3 PROD Demand'!I539+'FR-16(7)(v)-7 TRANS Demand'!I539+'FR-16(7)(v)-11 DIST Demand'!I539","v":-126},{"$f":"'FR-16(7)(v)-4 PROD Energy'!I539+'FR-16(7)(v)-8 TRANS Energy'!I539+'FR-16(7)(v)-12 DIST Energy'!I539","v":-284},{"$f":"'FR-16(7)(v)-5 PROD Cust'!I539+'FR-16(7)(v)-9 TRANS Cust'!I539+'FR-16(7)(v)-13 DIST Cust'!I539","v":-83},-493,0]
[26,null,{"$f":"'FR-16(7)(v)-1 Functional'!C540","v":"ELIMINATE MERGER COSTS AND CREDITS"},{"$f":"'FR-16(7)(v)-1 Functional'!D540","v":"A315"},null,{"$f":"'FR-16(7)(v)-14 TOTAL CLASS'!I540","v":0},{"$f":"'FR-16(7)(v)-3 PROD Demand'!I540+'FR-16(7)(v)-7 TRANS Demand'!I540+'FR-16(7)(v)-11 DIST Demand'!I540","v":0},{"$f":"'FR-16(7)(v)-4 PROD Energy'!I540+'FR-16(7)(v)-8 TRANS Energy'!I540+'FR-16(7)(v)-12 DIST Energy'!I540","v":0},{"$f":"'FR-16(7)(v)-5 PROD Cust'!I540+'FR-16(7)(v)-9 TRANS Cust'!I540+'FR-16(7)(v)-13 DIST Cust'!I540","v":0},{"$f":"SUM(G540:I540)","v":0},{"$f":"F540-J540","v":0}]
[27,null,{"$f":"'FR-16(7)(v)-1 Functional'!C541","v":"ANNUALIZE KYPSC MAINT TAX"},{"$f":"'FR-16(7)(v)-1 Functional'!D541","v":"A315"},null,{"$f":"'FR-16(7)(v)-14 TOTAL CLASS'!I541","v":0},{"$f":"'FR-16(7)(v)-3 PROD Demand'!I541+'FR-16(7)(v)-7 TRANS Demand'!I541+'FR-16(7)(v)-11 DIST Demand'!I541","v":0},{"$f":"'FR-16(7)(v)-4 PROD Energy'!I541+'FR-16(7)(v)-8 TRANS Energy'!I541+'FR-16(7)(v)-12 DIST Energy'!I541","v":0},{"$f":"'FR-16(7)(v)-5 PROD Cust'!I541+'FR-16(7)(v)-9 TRANS Cust'!I541+'FR-16(7)(v)-13 DIST Cust'!I541","v":0},0,0]
[28,null,{"$f":"'FR-16(7)(v)-1 Functional'!C542","v":"REMOVE INCENTIVE COMP"},{"$f":"'FR-16(7)(v)-1 Functional'!D542","v":"A315"},null,{"$f":"'FR-16(7)(v)-14 TOTAL CLASS'!I542","v":-1424},{"$f":"'FR-16(7)(v)-3 PROD Demand'!I542+'FR-16(7)(v)-7 TRANS Demand'!I542+'FR-16(7)(v)-11 DIST Demand'!I542","v":-363},{"$f":"'FR-16(7)(v)-4 PROD Energy'!I542+'FR-16(7)(v)-8 TRANS Energy'!I542+'FR-16(7)(v)-12 DIST Energy'!I542","v":-821},{"$f":"'FR-16(7)(v)-5 PROD Cust'!I542+'FR-16(7)(v)-9 TRANS Cust'!I542+'FR-16(7)(v)-13 DIST Cust'!I542","v":-240},-1424,0]
[29,null,{"$f":"'FR-16(7)(v)-1 Functional'!C543","v":"CREDIT CARD FEES"},{"$f":"'FR-16(7)(v)-1 Functional'!D543","v":"A315"},null,{"$f":"'FR-16(7)(v)-14 TOTAL CLASS'!I543","v":0},{"$f":"'FR-16(7)(v)-3 PROD Demand'!I543+'FR-16(7)(v)-7 TRANS Demand'!I543+'FR-16(7)(v)-11 DIST Demand'!I543","v":0},{"$f":"'FR-16(7)(v)-4 PROD Energy'!I543+'FR-16(7)(v)-8 TRANS Energy'!I543+'FR-16(7)(v)-12 DIST Energy'!I543","v":0},{"$f":"'FR-16(7)(v)-5 PROD Cust'!I543+'FR-16(7)(v)-9 TRANS Cust'!I543+'FR-16(7)(v)-13 DIST Cust'!I543","v":0},0,0]
[30,null,{"$f":"'FR-16(7)(v)-1 Functional'!C544","v":"ELIMINATE INCENTIVE COMPENSATION ADJUSTMENT"},{"$f":"'FR-16(7)(v)-1 Functional'!D544","v":"A315"},null,{"$f":"'FR-16(7)(v)-14 TOTAL CLASS'!I544","v":0},{"$f":"'FR-16(7)(v)-3 PROD Demand'!I544+'FR-16(7)(v)-7 TRANS Demand'!I544+'FR-16(7)(v)-11 DIST Demand'!I544","v":0},{"$f":"'FR-16(7)(v)-4 PROD Energy'!I544+'FR-16(7)(v)-8 TRANS Energy'!I544+'FR-16(7)(v)-12 DIST Energy'!I544","v":0},{"$f":"'FR-16(7)(v)-5 PROD Cust'!I544+'FR-16(7)(v)-9 TRANS Cust'!I544+'FR-16(7)(v)-13 DIST Cust'!I544","v":0},0,0]
[31,null,{"$f":"'FR-16(7)(v)-1 Functional'!C545","v":"AMORTIZATION OF DEFERRAL ASSET"},{"$f":"'FR-16(7)(v)-1 Functional'!D545","v":"A315"},null,{"$f":"'FR-16(7)(v)-14 TOTAL CLASS'!I545","v":0},{"$f":"'FR-16(7)(v)-3 PROD Demand'!I545+'FR-16(7)(v)-7 TRANS Demand'!I545+'FR-16(7)(v)-11 DIST Demand'!I545","v":0},{"$f":"'FR-16(7)(v)-4 PROD Energy'!I545+'FR-16(7)(v)-8 TRANS Energy'!I545+'FR-16(7)(v)-12 DIST Energy'!I545","v":0},{"$f":"'FR-16(7)(v)-5 PROD Cust'!I545+'FR-16(7)(v)-9 TRANS Cust'!I545+'FR-16(7)(v)-13 DIST Cust'!I545","v":0},0,0]
[32,null,{"$f":"'FR-16(7)(v)-1 Functional'!C546","v":"AMORTIZATION OF DEFERRED EXPENSES"},{"$f":"'FR-16(7)(v)-1 Functional'!D546","v":"A315"},null,{"$f":"'FR-16(7)(v)-14 TOTAL CLASS'!I546","v":90},{"$f":"'FR-16(7)(v)-3 PROD Demand'!I546+'FR-16(7)(v)-7 TRANS Demand'!I546+'FR-16(7)(v)-11 DIST Demand'!I546","v":23},{"$f":"'FR-16(7)(v)-4 PROD Energy'!I546+'FR-16(7)(v)-8 TRANS Energy'!I546+'FR-16(7)(v)-12 DIST Energy'!I546","v":52},{"$f":"'FR-16(7)(v)-5 PROD Cust'!I546+'FR-16(7)(v)-9 TRANS Cust'!I546+'FR-16(7)(v)-13 DIST Cust'!I546","v":15},90,0]
[33,null,{"$f":"'FR-16(7)(v)-1 Functional'!C547","v":"TOTAL ADMIN. & GENERAL"},null," ",{"$f":"SUM(F532:F546)","v":17667},4499,10205,2963,17667,0]
[34]
[35,null,{"$f":"'FR-16(7)(v)-1 Functional'!C549","v":"TOTAL O & M EXPENSE"},null,null,{"$f":"F547+F522+F518+F503+F492+F470+F466+F459","v":288008},52819,223210,11979,288008,0]
[]
[{"$f":"co_name","v":"DUKE ENERGY KENTUCKY, INC."},null,null,null,null,null,null,null,null,{"$f":"J1","v":"FR-16(7)(v)-17"}]
[{"$f":"$A$2","v":"GSFL SECONDARY CLASSIFIED - ELECTRIC COST OF SERVICE"},null,null,null,null,null,null,null,null,{"$f":"J2","v":"WITNESS RESPONSIBLE:"}]
[{"$f":"case_name","v":"CASE NO: 2019-00271"},null,null,null,null,null,null,null,null,{"$f":"Witness","v":"JAMES E. ZIOLKOWSKI"}]
[{"$f":"data_filing","v":"DATA: 12 MONTHS ACTUAL  & 0 MONTHS ESTIMATED"},null,null,null,null,null,null,null,null,{"$f":"\"PAGE \"&Pages2-5&\" OF \"&Pages2","v":"PAGE 10 OF 15"}]
[{"$f":"type","v":"TYPE OF FILING: \"X\" ORIGINAL   UPDATED    REVISED  "}]
[]
[]
["LINE",null,null,null,null,"TOTAL","CLASSIFIED",null,null,"TOTAL","ALL"]
["NO.","DEPRECIATION EXPENSE",null,"ALLO",null,{"$f":"$F$9","v":"GSFL SECONDARY"},{"$f":"G9","v":"DEMAND"},"ENERGY","CUSTOMER","AT ISSUE","OTHER"]
[null,null,"Schedule 7",null,null,null,3,4,5]
[1,"PRODUCTION DEPRECIATION"]
[2,null,{"$f":"'FR-16(7)(v)-1 Functional'!C562","v":"PRODUCTION DEPRECIATION"},{"$f":"'FR-16(7)(v)-1 Functional'!D562","v":"P229"},null,{"$f":"'FR-16(7)(v)-14 TOTAL CLASS'!I562","v":48796},{"$f":"'FR-16(7)(v)-3 PROD Demand'!I562+'FR-16(7)(v)-7 TRANS Demand'!I562+'FR-16(7)(v)-11 DIST Demand'!I562","v":48796},{"$f":"'FR-16(7)(v)-4 PROD Energy'!I562+'FR-16(7)(v)-8 TRANS Energy'!I562+'FR-16(7)(v)-12 DIST Energy'!I562","v":0},{"$f":"'FR-16(7)(v)-5 PROD Cust'!I562+'FR-16(7)(v)-9 TRANS Cust'!I562+'FR-16(7)(v)-13 DIST Cust'!I562","v":0},{"$f":"SUM(G562:I562)","v":48796},{"$f":"F562-J562","v":0}]
[3,null,{"$f":"'FR-16(7)(v)-1 Functional'!C563","v":"  TOTAL PRODUCTION DEPREC EXP."},null,null,{"$f":"SUM(F562:F562)","v":48796},48796,0,0,48796,0]
[4]
[5,"TRANSMISSION DEPRECIATION"]
[6,null,"TRANSMISSION DEPRECIATION",{"$f":"'FR-16(7)(v)-1 Functional'!D566","v":"T229"},null,{"$f":"'FR-16(7)(v)-14 TOTAL CLASS'!I566","v":1910},{"$f":"'FR-16(7)(v)-3 PROD Demand'!I566+'FR-16(7)(v)-7 TRANS Demand'!I566+'FR-16(7)(v)-11 DIST Demand'!I566","v":1910},{"$f":"'FR-16(7)(v)-4 PROD Energy'!I566+'FR-16(7)(v)-8 TRANS Energy'!I566+'FR-16(7)(v)-12 DIST Energy'!I566","v":0},{"$f":"'FR-16(7)(v)-5 PROD Cust'!I566+'FR-16(7)(v)-9 TRANS Cust'!I566+'FR-16(7)(v)-13 DIST Cust'!I566","v":0},{"$f":"SUM(G566:I566)","v":1910},{"$f":"F566-J566","v":0}]
[7,null,{"$f":"'FR-16(7)(v)-1 Functional'!C567","v":"  TOTAL TRANSMISSION DEP. EXP."},null,null,{"$f":"SUM(F566:F566)","v":1910},1910,0,0,1910,0]
[8]
[9,"DISTRIBUTION DEPRECIATION"]
[10,null,{"$f":"'FR-16(7)(v)-1 Functional'!C570","v":"DISTRIBUTION DEPRECIATION"},{"$f":"'FR-16(7)(v)-1 Functional'!D570","v":"D249"},null,{"$f":"'FR-16(7)(v)-14 TOTAL CLASS'!I570","v":16534},{"$f":"'FR-16(7)(v)-3 PROD Demand'!I570+'FR-16(7)(v)-7 TRANS Demand'!I570+'FR-16(7)(v)-11 DIST Demand'!I570","v":13483},{"$f":"'FR-16(7)(v)-4 PROD Energy'!I570+'FR-16(7)(v)-8 TRANS Energy'!I570+'FR-16(7)(v)-12 DIST Energy'!I570","v":0},{"$f":"'FR-16(7)(v)-5 PROD Cust'!I570+'FR-16(7)(v)-9 TRANS Cust'!I570+'FR-16(7)(v)-13 DIST Cust'!I570","v":3051},{"$f":"SUM(G570:I570)","v":16534},{"$f":"F570-J570","v":0}]
[11,null,{"$f":"'FR-16(7)(v)-1 Functional'!C571","v":"  TOTAL DIST. DEPREC EXP."},null,null,{"$f":"SUM(F570:F570)","v":16534},13483,0,3051,16534,0]
[12,null,null,null,null," "]
[13,"GENERAL DEPRECIATION"]
[14,null,{"$f":"'FR-16(7)(v)-1 Functional'!C574","v":"GENERAL DEPRECIATION"},{"$f":"'FR-16(7)(v)-1 Functional'!D574","v":"G229"},null,{"$f":"'FR-16(7)(v)-14 TOTAL CLASS'!I574","v":7225},{"$f":"'FR-16(7)(v)-3 PROD Demand'!I574+'FR-16(7)(v)-7 TRANS Demand'!I574+'FR-16(7)(v)-11 DIST Demand'!I574","v":3517},{"$f":"'FR-16(7)(v)-4 PROD Energy'!I574+'FR-16(7)(v)-8 TRANS Energy'!I574+'FR-16(7)(v)-12 DIST Energy'!I574","v":2800},{"$f":"'FR-16(7)(v)-5 PROD Cust'!I574+'FR-16(7)(v)-9 TRANS Cust'!I574+'FR-16(7)(v)-13 DIST Cust'!I574","v":908},{"$f":"SUM(G574:I574)","v":7225},{"$f":"F574-J574","v":0}]
[15,null,{"$f":"'FR-16(7)(v)-1 Functional'!C575","v":"  TOTAL GENERAL DEPREC EXP."},null,null,{"$f":"SUM(F574:F574)","v":7225},3517,2800,908,7225,0]
[16]
[17,"COMMON AND OTHER DEPRECIATION"]
[18,null,{"$f":"'FR-16(7)(v)-1 Functional'!C578","v":"COMMON DEPRECIATION"},{"$f":"'FR-16(7)(v)-1 Functional'!D578","v":"C229"},null,{"$f":"'FR-16(7)(v)-14 TOTAL CLASS'!I578","v":48},{"$f":"'FR-16(7)(v)-3 PROD Demand'!I578+'FR-16(7)(v)-7 TRANS Demand'!I578+'FR-16(7)(v)-11 DIST Demand'!I578","v":23},{"$f":"'FR-16(7)(v)-4 PROD Energy'!I578+'FR-16(7)(v)-8 TRANS Energy'!I578+'FR-16(7)(v)-12 DIST Energy'!I578","v":19},{"$f":"'FR-16(7)(v)-5 PROD Cust'!I578+'FR-16(7)(v)-9 TRANS Cust'!I578+'FR-16(7)(v)-13 DIST Cust'!I578","v":6},{"$f":"SUM(G578:I578)","v":48},{"$f":"F578-J578","v":0}]
[19,null,{"$f":"'FR-16(7)(v)-1 Functional'!C579","v":"  TOTAL COM & OTHER DEPREC EXP."},null,null,{"$f":"SUM(F578:F578)","v":48},23,19,6,48,0]
[20]
[21]
[22,"TOTAL DEPRECIATION EXPENSE",null,null," ",{"$f":"F579+F575+F571+F567+F563","v":74513},67729,2819,3965,74513,0]
[]
[{"$f":"co_name","v":"DUKE ENERGY KENTUCKY, INC."},null,null,null,null,null,null,null,null,{"$f":"J1","v":"FR-16(7)(v)-17"}]
[{"$f":"$A$2","v":"GSFL SECONDARY CLASSIFIED - ELECTRIC COST OF SERVICE"},null,null,null,null,null,null,null,null,{"$f":"J2","v":"WITNESS RESPONSIBLE:"}]
[{"$f":"case_name","v":"CASE NO: 2019-00271"},null,null,null,null,null,null,null,null,{"$f":"Witness","v":"JAMES E. ZIOLKOWSKI"}]
[{"$f":"data_filing","v":"DATA: 12 MONTHS ACTUAL  & 0 MONTHS ESTIMATED"},null,null,null,null,null,null,null,null,{"$f":"\"PAGE \"&Pages2-4&\" OF \"&Pages2","v":"PAGE 11 OF 15"}]
[{"$f":"type","v":"TYPE OF FILING: \"X\" ORIGINAL   UPDATED    REVISED  "}]
[]
[]
["LINE",null,null,null,null,"TOTAL","CLASSIFIED",null,null,"TOTAL","ALL"]
["NO.","OTHER TAXES & MISC EXPENSES",null,"ALLO",null,{"$f":"$F$9","v":"GSFL SECONDARY"},{"$f":"G9","v":"DEMAND"},"ENERGY","CUSTOMER","AT ISSUE","OTHER"]
[null,null,"Schedule 8",null,null,null,3,4,5]
[1,"TAXES OTHER THAN INC & REV"]
[2," REAL ESTATE & PROPERTY TAX"]
[3,null,{"$f":"'FR-16(7)(v)-1 Functional'!C596","v":"REAL ESTATE & PROPERTY TAX"},{"$f":"'FR-16(7)(v)-1 Functional'!D596","v":"NP29"},null,{"$f":"'FR-16(7)(v)-14 TOTAL CLASS'!I596","v":17255},{"$f":"'FR-16(7)(v)-3 PROD Demand'!I596+'FR-16(7)(v)-7 TRANS Demand'!I596+'FR-16(7)(v)-11 DIST Demand'!I596","v":15759},{"$f":"'FR-16(7)(v)-4 PROD Energy'!I596+'FR-16(7)(v)-8 TRANS Energy'!I596+'FR-16(7)(v)-12 DIST Energy'!I596","v":280},{"$f":"'FR-16(7)(v)-5 PROD Cust'!I596+'FR-16(7)(v)-9 TRANS Cust'!I596+'FR-16(7)(v)-13 DIST Cust'!I596","v":1216},{"$f":"SUM(G596:I596)","v":17255},{"$f":"F596-J596","v":0}]
[4,null,{"$f":"'FR-16(7)(v)-1 Functional'!C597","v":"ANNUALIZE PROPERTY TAX"},{"$f":"'FR-16(7)(v)-1 Functional'!D597","v":"NP29"}," ",{"$f":"'FR-16(7)(v)-14 TOTAL CLASS'!I597","v":0},{"$f":"'FR-16(7)(v)-3 PROD Demand'!I597+'FR-16(7)(v)-7 TRANS Demand'!I597+'FR-16(7)(v)-11 DIST Demand'!I597","v":0},{"$f":"'FR-16(7)(v)-4 PROD Energy'!I597+'FR-16(7)(v)-8 TRANS Energy'!I597+'FR-16(7)(v)-12 DIST Energy'!I597","v":0},{"$f":"'FR-16(7)(v)-5 PROD Cust'!I597+'FR-16(7)(v)-9 TRANS Cust'!I597+'FR-16(7)(v)-13 DIST Cust'!I597","v":0},{"$f":"SUM(G597:I597)","v":0},{"$f":"F597-J597","v":0}]
[5,null,{"$f":"'FR-16(7)(v)-1 Functional'!C598","v":"  TOTAL REAL ESTATE & PROPERTY TAX"},null,null,{"$f":"SUM(F596:F597)","v":17255},15759,280,1216,17255,0]
[6]
[7," MISCELLANEOUS TAXES"]
[8,null,{"$f":"'FR-16(7)(v)-1 Functional'!C601","v":"PAYROLL "},{"$f":"'FR-16(7)(v)-1 Functional'!D601","v":"A315"},null,{"$f":"'FR-16(7)(v)-14 TOTAL CLASS'!I601","v":1696},{"$f":"'FR-16(7)(v)-3 PROD Demand'!I601+'FR-16(7)(v)-7 TRANS Demand'!I601+'FR-16(7)(v)-11 DIST Demand'!I601","v":433},{"$f":"'FR-16(7)(v)-4 PROD Energy'!I601+'FR-16(7)(v)-8 TRANS Energy'!I601+'FR-16(7)(v)-12 DIST Energy'!I601","v":978},{"$f":"'FR-16(7)(v)-5 PROD Cust'!I601+'FR-16(7)(v)-9 TRANS Cust'!I601+'FR-16(7)(v)-13 DIST Cust'!I601","v":285},{"$f":"SUM(G601:I601)","v":1696},{"$f":"F601-J601","v":0}]
[9,null,{"$f":"'FR-16(7)(v)-1 Functional'!C602","v":"ELIMINATE DSM "},{"$f":"'FR-16(7)(v)-1 Functional'!D602","v":"A315"},null,{"$f":"'FR-16(7)(v)-14 TOTAL CLASS'!I602","v":-33},{"$f":"'FR-16(7)(v)-3 PROD Demand'!I602+'FR-16(7)(v)-7 TRANS Demand'!I602+'FR-16(7)(v)-11 DIST Demand'!I602","v":-8},{"$f":"'FR-16(7)(v)-4 PROD Energy'!I602+'FR-16(7)(v)-8 TRANS Energy'!I602+'FR-16(7)(v)-12 DIST Energy'!I602","v":-19},{"$f":"'FR-16(7)(v)-5 PROD Cust'!I602+'FR-16(7)(v)-9 TRANS Cust'!I602+'FR-16(7)(v)-13 DIST Cust'!I602","v":-6},{"$f":"SUM(G602:I602)","v":-33},{"$f":"F602-J602","v":0}]
[10,null,{"$f":"'FR-16(7)(v)-1 Functional'!C603","v":"FRANCHISE & LICENSE"},{"$f":"'FR-16(7)(v)-1 Functional'!D603","v":"A315"},null,{"$f":"'FR-16(7)(v)-14 TOTAL CLASS'!I603","v":0},{"$f":"'FR-16(7)(v)-3 PROD Demand'!I603+'FR-16(7)(v)-7 TRANS Demand'!I603+'FR-16(7)(v)-11 DIST Demand'!I603","v":0},{"$f":"'FR-16(7)(v)-4 PROD Energy'!I603+'FR-16(7)(v)-8 TRANS Energy'!I603+'FR-16(7)(v)-12 DIST Energy'!I603","v":0},{"$f":"'FR-16(7)(v)-5 PROD Cust'!I603+'FR-16(7)(v)-9 TRANS Cust'!I603+'FR-16(7)(v)-13 DIST Cust'!I603","v":0},{"$f":"SUM(G603:I603)","v":0},{"$f":"F603-J603","v":0}]
[11,null,{"$f":"'FR-16(7)(v)-1 Functional'!C604","v":"ELIMINATE ESM"},{"$f":"'FR-16(7)(v)-1 Functional'!D604","v":"A315"},null,{"$f":"'FR-16(7)(v)-14 TOTAL CLASS'!I604","v":-902},{"$f":"'FR-16(7)(v)-3 PROD Demand'!I604+'FR-16(7)(v)-7 TRANS Demand'!I604+'FR-16(7)(v)-11 DIST Demand'!I604","v":-230},{"$f":"'FR-16(7)(v)-4 PROD Energy'!I604+'FR-16(7)(v)-8 TRANS Energy'!I604+'FR-16(7)(v)-12 DIST Energy'!I604","v":-520},{"$f":"'FR-16(7)(v)-5 PROD Cust'!I604+'FR-16(7)(v)-9 TRANS Cust'!I604+'FR-16(7)(v)-13 DIST Cust'!I604","v":-152},{"$f":"SUM(G604:I604)","v":-902},{"$f":"F604-J604","v":0}]
[12,null,{"$f":"'FR-16(7)(v)-1 Functional'!C605","v":"  TOTAL MISCELLANEOUS TAXES"},null,null,{"$f":"SUM(F601:F604)","v":761},195,439,127,761,0]
[13]
[14," MISCELLANEOUS EXPENSES"]
[15,null,{"$f":"'FR-16(7)(v)-1 Functional'!C608","v":"PSC MAINT. EXP ON INCREASE"},{"$f":"'FR-16(7)(v)-1 Functional'!D608","v":"K902"},null,{"$f":"'FR-16(7)(v)-14 TOTAL CLASS'!I608","v":163},{"$f":"'FR-16(7)(v)-3 PROD Demand'!I608+'FR-16(7)(v)-7 TRANS Demand'!I608+'FR-16(7)(v)-11 DIST Demand'!I608","v":81},{"$f":"'FR-16(7)(v)-4 PROD Energy'!I608+'FR-16(7)(v)-8 TRANS Energy'!I608+'FR-16(7)(v)-12 DIST Energy'!I608","v":56},{"$f":"'FR-16(7)(v)-5 PROD Cust'!I608+'FR-16(7)(v)-9 TRANS Cust'!I608+'FR-16(7)(v)-13 DIST Cust'!I608","v":26},{"$f":"SUM(G608:I608)","v":163},{"$f":"F608-J608","v":0}]
[16,null,{"$f":"'FR-16(7)(v)-1 Functional'!C609","v":"RESERVED FOR FUTURE USE"},{"$f":"'FR-16(7)(v)-1 Functional'!D609","v":"K902"},null,{"$f":"'FR-16(7)(v)-14 TOTAL CLASS'!I609","v":0},{"$f":"'FR-16(7)(v)-3 PROD Demand'!I609+'FR-16(7)(v)-7 TRANS Demand'!I609+'FR-16(7)(v)-11 DIST Demand'!I609","v":0},{"$f":"'FR-16(7)(v)-4 PROD Energy'!I609+'FR-16(7)(v)-8 TRANS Energy'!I609+'FR-16(7)(v)-12 DIST Energy'!I609","v":0},{"$f":"'FR-16(7)(v)-5 PROD Cust'!I609+'FR-16(7)(v)-9 TRANS Cust'!I609+'FR-16(7)(v)-13 DIST Cust'!I609","v":0},{"$f":"SUM(G609:I609)","v":0},{"$f":"F609-J609","v":0}]
[17,null,{"$f":"'FR-16(7)(v)-1 Functional'!C610","v":"  TOTAL MISCELLANEOUS EXPENSES"},null,null,{"$f":"SUM(F608:F609)","v":163},81,56,26,163,0]
[18]
[19,"TOTAL OTHER TAX & MISC EXPENSE",null,null," ",{"$f":"F605+F598+F610","v":18179},16035,775,1369,18179,0]
[20]
[21,"PRELIMINARY SUMMARY"]
[22,null,{"$f":"'FR-16(7)(v)-1 Functional'!C615","v":"TOTAL O&M EXPENSE"},null,null,{"$f":"F549","v":288008},52819,223210,11979,288008,0]
[23,null,{"$f":"'FR-16(7)(v)-1 Functional'!C616","v":"TOTAL DEPRECIATION EXPENSE"},null,null,{"$f":"F582","v":74513},67729,2819,3965,74513,0]
[24,null,{"$f":"'FR-16(7)(v)-1 Functional'!C617","v":"TOTAL OTHER TAX & MISC EXPENSE"},null,null,{"$f":"F612","v":18179},16035,775,1369,18179,0]
[25,null,{"$f":"'FR-16(7)(v)-1 Functional'!C618","v":"  TOTAL OPER EXP EXCL INCOME & REV TAX"},null,null,{"$f":"SUM(F615:F617)","v":380700},136583,226804,17313,380700,0]
[]
[{"$f":"co_name","v":"DUKE ENERGY KENTUCKY, INC."},null,null,null,null,null,null,null,null,{"$f":"J1","v":"FR-16(7)(v)-17"}]
[{"$f":"$A$2","v":"GSFL SECONDARY CLASSIFIED - ELECTRIC COST OF SERVICE"},null,null,null,null,null,null,null,null,{"$f":"J2","v":"WITNESS RESPONSIBLE:"}]
[{"$f":"case_name","v":"CASE NO: 2019-00271"},null,null,null,null,null,null,null,null,{"$f":"Witness","v":"JAMES E. ZIOLKOWSKI"}]
[{"$f":"data_filing","v":"DATA: 12 MONTHS ACTUAL  & 0 MONTHS ESTIMATED"},null,null,null,null,null,null,null,null,{"$f":"\"PAGE \"&Pages2-3&\" OF \"&Pages2","v":"PAGE 12 OF 15"}]
[{"$f":"type","v":"TYPE OF FILING: \"X\" ORIGINAL   UPDATED    REVISED  "}]
[]
[]
["LINE",null,null,null,null,"TOTAL","CLASSIFIED",null,null,"TOTAL","ALL"]
["NO.","FEDERAL INCOME TAX BASED ON RETURN",null,"ALLO",null,{"$f":"$F$9","v":"GSFL SECONDARY"},{"$f":"$G$9","v":"DEMAND"},{"$f":"$H$9","v":"ENERGY"},{"$f":"$I$9","v":"CUSTOMER"},"AT ISSUE","OTHER"]
[null,null,"Schedule 9",null,null,null,{"$f":"G10","v":3},{"$f":"H10","v":4},{"$f":"I10","v":5}]
[1,"FEDERAL INCOME TAX DEDUCTIONS"]
[2," AUTOMATIC INTEREST CALCULATION",null,null,null," "]
[3,null,{"$f":"'FR-16(7)(v)-1 Functional'!C632","v":"AUTO PROC INTEREST DED"},{"$f":"'FR-16(7)(v)-1 Functional'!D632","v":"RB99"},null,{"$f":"'FR-16(7)(v)-14 TOTAL CLASS'!I632","v":23721},{"$f":"'FR-16(7)(v)-3 PROD Demand'!I632+'FR-16(7)(v)-7 TRANS Demand'!I632+'FR-16(7)(v)-11 DIST Demand'!I632","v":21038},{"$f":"'FR-16(7)(v)-4 PROD Energy'!I632+'FR-16(7)(v)-8 TRANS Energy'!I632+'FR-16(7)(v)-12 DIST Energy'!I632","v":950},{"$f":"'FR-16(7)(v)-5 PROD Cust'!I632+'FR-16(7)(v)-9 TRANS Cust'!I632+'FR-16(7)(v)-13 DIST Cust'!I632","v":1733},{"$f":"SUM(G632:I632)","v":23721},{"$f":"F632-J632","v":0}]
[4,null,{"$f":"'FR-16(7)(v)-1 Functional'!C633","v":"  TOTAL INTEREST EXPENSE"},null,null,{"$f":"F632","v":23721},21038,950,1733,23721,0]
[5]
[6," OTHER DEDUCTIONS"]
[7,null,{"$f":"'FR-16(7)(v)-1 Functional'!C636","v":"DEPREC EXCESS TAX-BOOK"},{"$f":"'FR-16(7)(v)-1 Functional'!D636","v":"DE49"},null,{"$f":"'FR-16(7)(v)-14 TOTAL CLASS'!I636","v":-17666},{"$f":"'FR-16(7)(v)-3 PROD Demand'!I636+'FR-16(7)(v)-7 TRANS Demand'!I636+'FR-16(7)(v)-11 DIST Demand'!I636","v":-16056},{"$f":"'FR-16(7)(v)-4 PROD Energy'!I636+'FR-16(7)(v)-8 TRANS Energy'!I636+'FR-16(7)(v)-12 DIST Energy'!I636","v":-669},{"$f":"'FR-16(7)(v)-5 PROD Cust'!I636+'FR-16(7)(v)-9 TRANS Cust'!I636+'FR-16(7)(v)-13 DIST Cust'!I636","v":-941},{"$f":"SUM(G636:I636)","v":-17666},{"$f":"F636-J636","v":0}]
[8,null,{"$f":"'FR-16(7)(v)-1 Functional'!C637","v":"PERMANENT DIFFERENCES"},{"$f":"'FR-16(7)(v)-1 Functional'!D637","v":"A357"},null,{"$f":"'FR-16(7)(v)-14 TOTAL CLASS'!I637","v":-379},{"$f":"'FR-16(7)(v)-3 PROD Demand'!I637+'FR-16(7)(v)-7 TRANS Demand'!I637+'FR-16(7)(v)-11 DIST Demand'!I637","v":-96},{"$f":"'FR-16(7)(v)-4 PROD Energy'!I637+'FR-16(7)(v)-8 TRANS Energy'!I637+'FR-16(7)(v)-12 DIST Energy'!I637","v":-219},{"$f":"'FR-16(7)(v)-5 PROD Cust'!I637+'FR-16(7)(v)-9 TRANS Cust'!I637+'FR-16(7)(v)-13 DIST Cust'!I637","v":-64},{"$f":"SUM(G637:I637)","v":-379},{"$f":"F637-J637","v":0}]
[9,null,{"$f":"'FR-16(7)(v)-1 Functional'!C638","v":"TEMPORARY DIFFERENCES"},{"$f":"'FR-16(7)(v)-1 Functional'!D638","v":"DE49"},null,{"$f":"'FR-16(7)(v)-14 TOTAL CLASS'!I638","v":107794},{"$f":"'FR-16(7)(v)-3 PROD Demand'!I638+'FR-16(7)(v)-7 TRANS Demand'!I638+'FR-16(7)(v)-11 DIST Demand'!I638","v":97971},{"$f":"'FR-16(7)(v)-4 PROD Energy'!I638+'FR-16(7)(v)-8 TRANS Energy'!I638+'FR-16(7)(v)-12 DIST Energy'!I638","v":4079},{"$f":"'FR-16(7)(v)-5 PROD Cust'!I638+'FR-16(7)(v)-9 TRANS Cust'!I638+'FR-16(7)(v)-13 DIST Cust'!I638","v":5744},{"$f":"SUM(G638:I638)","v":107794},{"$f":"F638-J638","v":0}]
[10,null,{"$f":"'FR-16(7)(v)-1 Functional'!C639","v":"  TOTAL OTHER DEDUCTIONS"},null,null,{"$f":"SUM(F636:F638)","v":89749},81819,3191,4739,89749,0]
[11]
[12,"NET DEDUCTIONS AND ADDITIONS",null,null,null,{"$f":"F639+F633","v":113470},102857,4141,6472,113470,0]
[13]
[14," FED DEFERRED INCOME TAX (410 & 411)"]
[15,null,{"$f":"'FR-16(7)(v)-1 Functional'!C644","v":"DEFERRED INCOME TAXES - NET"},{"$f":"'FR-16(7)(v)-1 Functional'!D644","v":"OM39"},null,{"$f":"'FR-16(7)(v)-14 TOTAL CLASS'!I644","v":19170},{"$f":"'FR-16(7)(v)-3 PROD Demand'!I644+'FR-16(7)(v)-7 TRANS Demand'!I644+'FR-16(7)(v)-11 DIST Demand'!I644","v":3514},{"$f":"'FR-16(7)(v)-4 PROD Energy'!I644+'FR-16(7)(v)-8 TRANS Energy'!I644+'FR-16(7)(v)-12 DIST Energy'!I644","v":14858},{"$f":"'FR-16(7)(v)-5 PROD Cust'!I644+'FR-16(7)(v)-9 TRANS Cust'!I644+'FR-16(7)(v)-13 DIST Cust'!I644","v":798},{"$f":"SUM(G644:I644)","v":19170},{"$f":"F644-J644","v":0}]
[16,null,{"$f":"'FR-16(7)(v)-1 Functional'!C645","v":"AMORT OF DEFERRED MERGER COST"},{"$f":"'FR-16(7)(v)-1 Functional'!D645","v":"A357"},null,{"$f":"'FR-16(7)(v)-14 TOTAL CLASS'!I645","v":0},{"$f":"'FR-16(7)(v)-3 PROD Demand'!I645+'FR-16(7)(v)-7 TRANS Demand'!I645+'FR-16(7)(v)-11 DIST Demand'!I645","v":0},{"$f":"'FR-16(7)(v)-4 PROD Energy'!I645+'FR-16(7)(v)-8 TRANS Energy'!I645+'FR-16(7)(v)-12 DIST Energy'!I645","v":0},{"$f":"'FR-16(7)(v)-5 PROD Cust'!I645+'FR-16(7)(v)-9 TRANS Cust'!I645+'FR-16(7)(v)-13 DIST Cust'!I645","v":0},{"$f":"SUM(G645:I645)","v":0},{"$f":"F645-J645","v":0}]
[17,null,{"$f":"'FR-16(7)(v)-1 Functional'!C646","v":"DIT ADJUSTMENT - S/L DEPRECIATION"},{"$f":"'FR-16(7)(v)-1 Functional'!D646","v":"DE49"},null,{"$f":"'FR-16(7)(v)-14 TOTAL CLASS'!I646","v":0},{"$f":"'FR-16(7)(v)-3 PROD Demand'!I646+'FR-16(7)(v)-7 TRANS Demand'!I646+'FR-16(7)(v)-11 DIST Demand'!I646","v":0},{"$f":"'FR-16(7)(v)-4 PROD Energy'!I646+'FR-16(7)(v)-8 TRANS Energy'!I646+'FR-16(7)(v)-12 DIST Energy'!I646","v":0},{"$f":"'FR-16(7)(v)-5 PROD Cust'!I646+'FR-16(7)(v)-9 TRANS Cust'!I646+'FR-16(7)(v)-13 DIST Cust'!I646","v":0},{"$f":"SUM(G646:I646)","v":0},{"$f":"F646-J646","v":0}]
[18,null,{"$f":"'FR-16(7)(v)-1 Functional'!C647","v":"DIT ADJUSTMENT - ARAM"},{"$f":"'FR-16(7)(v)-1 Functional'!D647","v":"K201"},null,{"$f":"'FR-16(7)(v)-14 TOTAL CLASS'!I647","v":-140},{"$f":"'FR-16(7)(v)-3 PROD Demand'!I647+'FR-16(7)(v)-7 TRANS Demand'!I647+'FR-16(7)(v)-11 DIST Demand'!I647","v":-140},{"$f":"'FR-16(7)(v)-4 PROD Energy'!I647+'FR-16(7)(v)-8 TRANS Energy'!I647+'FR-16(7)(v)-12 DIST Energy'!I647","v":0},{"$f":"'FR-16(7)(v)-5 PROD Cust'!I647+'FR-16(7)(v)-9 TRANS Cust'!I647+'FR-16(7)(v)-13 DIST Cust'!I647","v":0},{"$f":"SUM(G647:I647)","v":-140},{"$f":"F647-J647","v":0}]
[19,null,{"$f":"'FR-16(7)(v)-1 Functional'!C648","v":"DIT ADJUSTMENT - AMORT OF EXCESS DEF TAXES"},{"$f":"'FR-16(7)(v)-1 Functional'!D648","v":"A357"},null,{"$f":"'FR-16(7)(v)-14 TOTAL CLASS'!I648","v":-3327},{"$f":"'FR-16(7)(v)-3 PROD Demand'!I648+'FR-16(7)(v)-7 TRANS Demand'!I648+'FR-16(7)(v)-11 DIST Demand'!I648","v":-848},{"$f":"'FR-16(7)(v)-4 PROD Energy'!I648+'FR-16(7)(v)-8 TRANS Energy'!I648+'FR-16(7)(v)-12 DIST Energy'!I648","v":-1919},{"$f":"'FR-16(7)(v)-5 PROD Cust'!I648+'FR-16(7)(v)-9 TRANS Cust'!I648+'FR-16(7)(v)-13 DIST Cust'!I648","v":-560},{"$f":"SUM(G648:I648)","v":-3327},{"$f":"F648-J648","v":0}]
[20,null,{"$f":"'FR-16(7)(v)-1 Functional'!C649","v":"  TOTAL FED DEF IT (410 & 411)"},null,null,{"$f":"SUM(F644:F648)","v":15703},2526,12939,238,15703,0]
[21]
[22," AMORT INV TAX CREDIT"]
[23,null,{"$f":"'FR-16(7)(v)-1 Functional'!C652","v":"AMORTIZE ITC"},{"$f":"'FR-16(7)(v)-1 Functional'!D652","v":"NP29"},null,{"$f":"'FR-16(7)(v)-14 TOTAL CLASS'!I652","v":0},{"$f":"'FR-16(7)(v)-3 PROD Demand'!I652+'FR-16(7)(v)-7 TRANS Demand'!I652+'FR-16(7)(v)-11 DIST Demand'!I652","v":0},{"$f":"'FR-16(7)(v)-4 PROD Energy'!I652+'FR-16(7)(v)-8 TRANS Energy'!I652+'FR-16(7)(v)-12 DIST Energy'!I652","v":0},{"$f":"'FR-16(7)(v)-5 PROD Cust'!I652+'FR-16(7)(v)-9 TRANS Cust'!I652+'FR-16(7)(v)-13 DIST Cust'!I652","v":0},{"$f":"SUM(G652:I652)","v":0},{"$f":"F652-J652","v":0}]
[24,null,{"$f":"'FR-16(7)(v)-1 Functional'!C653","v":"  TOTAL AMORTIZED ITC"},null,null,{"$f":"SUM(F652:F652)","v":0},0,0,0,0,0]
[25]
[26," OTHER FEDERAL TAX CREDITS"]
[27,null,{"$f":"'FR-16(7)(v)-1 Functional'!C656","v":"FUEL TAX CREDIT"},{"$f":"'FR-16(7)(v)-1 Functional'!D656","v":"K301"},null,{"$f":"'FR-16(7)(v)-14 TOTAL CLASS'!I656","v":0},{"$f":"'FR-16(7)(v)-3 PROD Demand'!I656+'FR-16(7)(v)-7 TRANS Demand'!I656+'FR-16(7)(v)-11 DIST Demand'!I656","v":0},{"$f":"'FR-16(7)(v)-4 PROD Energy'!I656+'FR-16(7)(v)-8 TRANS Energy'!I656+'FR-16(7)(v)-12 DIST Energy'!I656","v":0},{"$f":"'FR-16(7)(v)-5 PROD Cust'!I656+'FR-16(7)(v)-9 TRANS Cust'!I656+'FR-16(7)(v)-13 DIST Cust'!I656","v":0},{"$f":"SUM(G656:I656)","v":0},{"$f":"F656-J656","v":0}]
[28,null,{"$f":"'FR-16(7)(v)-1 Functional'!C657","v":"R&D CREDIT - SECTION 41"},{"$f":"'FR-16(7)(v)-1 Functional'!D657","v":"A315"},null,{"$f":"'FR-16(7)(v)-14 TOTAL CLASS'!I657","v":0},{"$f":"'FR-16(7)(v)-3 PROD Demand'!I657+'FR-16(7)(v)-7 TRANS Demand'!I657+'FR-16(7)(v)-11 DIST Demand'!I657","v":0},{"$f":"'FR-16(7)(v)-4 PROD Energy'!I657+'FR-16(7)(v)-8 TRANS Energy'!I657+'FR-16(7)(v)-12 DIST Energy'!I657","v":0},{"$f":"'FR-16(7)(v)-5 PROD Cust'!I657+'FR-16(7)(v)-9 TRANS Cust'!I657+'FR-16(7)(v)-13 DIST Cust'!I657","v":0},{"$f":"SUM(G657:I657)","v":0},{"$f":"F657-J657","v":0}]
[29,null,{"$f":"'FR-16(7)(v)-1 Functional'!C658","v":"  TOTAL OTHER FEDERAL TAX CREDITS"},null,null,{"$f":"SUM(F656:F657)","v":0},0,0,0,0,0]
[30]
[31,"PRELIMINARY SUMMARY"]
[32,null,{"$f":"'FR-16(7)(v)-1 Functional'!C661","v":"TOTAL FED DEF IT (410 & 411)"},null,null,{"$f":"F649","v":15703},2526,12939,238,15703,0]
[33,null,{"$f":"'FR-16(7)(v)-1 Functional'!C662","v":"TOTAL AMORTIZED ITC & OTHER FEDERAL TAX CREDITS"},null,null,{"$f":"-F653-F658","v":0},0,0,0,0,0]
[34,null,{"$f":"'FR-16(7)(v)-1 Functional'!C663","v":"  TOTAL FEDERAL TAX ADJUSTMENTS"},null,null,{"$f":"SUM(F661:F662)","v":15703},2526,12939,238,15703,0]
[35]
[36,"FEDERAL INCOME TAX COMPUTATION"]
[37,null,"RETURN ON RATE BASE",null,null,{"$f":"F433","v":80247},{"$f":"G433","v":71170},{"$f":"H433","v":3214},{"$f":"I433","v":5863},{"$f":"J433","v":80247},{"$f":"F666-J666","v":0}]
[38,null,{"$f":"'FR-16(7)(v)-1 Functional'!C667","v":"NET DEDUCTIONS AND ADDITIONS"},null,null,{"$f":"-F641","v":-113470},{"$f":"-G641","v":-102857},{"$f":"-H641","v":-4141},{"$f":"-I641","v":-6472},{"$f":"-J641","v":-113470},{"$f":"F667-J667","v":0}]
[39,null,{"$f":"'FR-16(7)(v)-1 Functional'!C668","v":"TOTAL FEDERAL TAX ADJUSTMENTS"},null,null,{"$f":"F663","v":15703},{"$f":"G663","v":2526},{"$f":"H663","v":12939},{"$f":"I663","v":238},{"$f":"J663","v":15703},{"$f":"F668-J668","v":0}]
[40,null,"TOTAL STATE PROV DEF IT (410 & 411)",null,null,{"$f":"F707","v":3303},{"$f":"G707","v":842},{"$f":"H707","v":1905},{"$f":"I707","v":556},{"$f":"J707","v":3303},{"$f":"F669-J669","v":0}]
[41,null,"RESERVED",null,null,{"$f":"F24","v":0},{"$f":"G24","v":0},{"$f":"H24","v":0},{"$f":"I24","v":0},{"$f":"J24","v":0},{"$f":"F670-J670","v":0}]
[42,null,{"$f":"'FR-16(7)(v)-1 Functional'!C671","v":"  BASE FOR FIT COMPUATION"},null,null,{"$f":"SUM(F666:F670)","v":-14217},-28319,13917,185,-14217,0]
[43]
[44,null,{"$f":"'FR-16(7)(v)-1 Functional'!C673","v":"FIT FACTOR K190/(1-K190)"},null,null,{"$f":"ROUND(FIT/(1-FIT),9)","v":0.26582278500000001},{"$f":"ROUND(FIT/(1-FIT),9)","v":0.26582278500000001},{"$f":"ROUND(FIT/(1-FIT),9)","v":0.26582278500000001},{"$f":"ROUND(FIT/(1-FIT),9)","v":0.26582278500000001},null,{"$f":"ROUND(FIT/(1-FIT),9)","v":0.26582278500000001}]
[45,null,{"$f":"'FR-16(7)(v)-1 Functional'!C674","v":"PRELIM FED INCOME TAX"},null,null,{"$f":"'FR-16(7)(v)-14 TOTAL CLASS'!I674","v":-3780},{"$f":"F674-SUM(H674:I674)","v":-7528},{"$f":"'FR-16(7)(v)-4 PROD Energy'!I674+'FR-16(7)(v)-8 TRANS Energy'!I674+'FR-16(7)(v)-12 DIST Energy'!I674","v":3699},{"$f":"'FR-16(7)(v)-5 PROD Cust'!I674+'FR-16(7)(v)-9 TRANS Cust'!I674+'FR-16(7)(v)-13 DIST Cust'!I674","v":49},{"$f":"SUM(G674:I674)","v":-3780},{"$f":"F674-J674","v":0}]
[46,null,{"$f":"'FR-16(7)(v)-1 Functional'!C675","v":"TOTAL FEDERAL TAX ADJUSTMENTS"},null,null,{"$f":"F663","v":15703},{"$f":"G663","v":2526},{"$f":"H663","v":12939},{"$f":"I663","v":238},{"$f":"J663","v":15703},{"$f":"F675-J675","v":0}]
[47,null,{"$f":"'FR-16(7)(v)-1 Functional'!C676","v":"  NET FED INCOME TAX ALLOWABLE"},null,null,{"$f":"SUM(F674:F675)","v":11923},-5002,16638,287,11923,0]
[48]
[49,"INCOME TAX BASED ON RETURN"]
[50,"FEDERAL INCOME TAX PAYABLE"]
[51,null,{"$f":"'FR-16(7)(v)-1 Functional'!C680","v":"PRELIM FEDERAL INCOME TAX"},null,null,{"$f":"F674","v":-3780},-7528,3699,49,-3780,0]
[53,null,{"$f":"'FR-16(7)(v)-1 Functional'!C681","v":"  NET FED INCOME TAX PAYABLE"},null,null,{"$f":"SUM(F680:F680)","v":-3780},-7528,3699,49,-3780,0]
[]
[{"$f":"co_name","v":"DUKE ENERGY KENTUCKY, INC."},null,null,null,null,null,null,null,null,{"$f":"J1","v":"FR-16(7)(v)-17"}]
[{"$f":"$A$2","v":"GSFL SECONDARY CLASSIFIED - ELECTRIC COST OF SERVICE"},null,null,null,null,null,null,null,null,{"$f":"J2","v":"WITNESS RESPONSIBLE:"}]
[{"$f":"case_name","v":"CASE NO: 2019-00271"},null,null,null,null,null,null,null,null,{"$f":"Witness","v":"JAMES E. ZIOLKOWSKI"}]
[{"$f":"data_filing","v":"DATA: 12 MONTHS ACTUAL  & 0 MONTHS ESTIMATED"},null,null,null,null,null,null,null,null,{"$f":"\"PAGE \"&Pages2-2&\" OF \"&Pages2","v":"PAGE 13 OF 15"}]
[{"$f":"type","v":"TYPE OF FILING: \"X\" ORIGINAL   UPDATED    REVISED  "}]
[]
[]
["LINE",null,null,null,null,"TOTAL","CLASSIFIED",null,null,"TOTAL","ALL"]
["NO.","STATE INCOME TAX BASED ON RETURN",null,"Allo",null,"GAS",{"$f":"$G$9","v":"DEMAND"},{"$f":"$H$9","v":"ENERGY"},{"$f":"$I$9","v":"CUSTOMER"},"AT ISSUE","OTHER"]
[null,null,"Schedule 9.1",null,null,null,{"$f":"$G$10","v":3},{"$f":"$H$10","v":4},{"$f":"$I$10","v":5}]
[1,"DEDUCTIONS IN ADDITION TO Y871"]
[2,"KY TAXABLE INCOME ADJUSTMENT",null,{"$f":"'FR-16(7)(v)-1 Functional'!D694","v":"NP29"},null,{"$f":"'FR-16(7)(v)-14 TOTAL CLASS'!I694","v":10819},{"$f":"'FR-16(7)(v)-3 PROD Demand'!I694+'FR-16(7)(v)-7 TRANS Demand'!I694+'FR-16(7)(v)-11 DIST Demand'!I694","v":9881},{"$f":"'FR-16(7)(v)-4 PROD Energy'!I694+'FR-16(7)(v)-8 TRANS Energy'!I694+'FR-16(7)(v)-12 DIST Energy'!I694","v":175},{"$f":"'FR-16(7)(v)-5 PROD Cust'!I694+'FR-16(7)(v)-9 TRANS Cust'!I694+'FR-16(7)(v)-13 DIST Cust'!I694","v":763},{"$f":"SUM(G694:I694)","v":10819},{"$f":"F694-J694","v":0}]
[3,"RESERVED FOR FUTURE USE",null,{"$f":"'FR-16(7)(v)-1 Functional'!D695","v":"NP29"},null,{"$f":"'FR-16(7)(v)-14 TOTAL CLASS'!I695","v":0},{"$f":"'FR-16(7)(v)-3 PROD Demand'!I695+'FR-16(7)(v)-7 TRANS Demand'!I695+'FR-16(7)(v)-11 DIST Demand'!I695","v":0},{"$f":"'FR-16(7)(v)-4 PROD Energy'!I695+'FR-16(7)(v)-8 TRANS Energy'!I695+'FR-16(7)(v)-12 DIST Energy'!I695","v":0},{"$f":"'FR-16(7)(v)-5 PROD Cust'!I695+'FR-16(7)(v)-9 TRANS Cust'!I695+'FR-16(7)(v)-13 DIST Cust'!I695","v":0},{"$f":"SUM(G695:I695)","v":0},{"$f":"F695-J695","v":0}]
[4,"  DEDUCTIONS IN ADD TO Y871",null,null,null,{"$f":"SUM(F694:F695)","v":10819},9881,175,763,10819,0]
[5]
[6,"STATE INCOME TAX ADJUSTMENTS"]
[7,"STATE PROV DEF INC TAX (410 & 411)"]
[8,"OTHER DEFERRED INCOME TAXES - NET",null,{"$f":"'FR-16(7)(v)-1 Functional'!D700","v":"A357"},null,{"$f":"'FR-16(7)(v)-14 TOTAL CLASS'!I700","v":3303},{"$f":"'FR-16(7)(v)-3 PROD Demand'!I700+'FR-16(7)(v)-7 TRANS Demand'!I700+'FR-16(7)(v)-11 DIST Demand'!I700","v":842},{"$f":"'FR-16(7)(v)-4 PROD Energy'!I700+'FR-16(7)(v)-8 TRANS Energy'!I700+'FR-16(7)(v)-12 DIST Energy'!I700","v":1905},{"$f":"'FR-16(7)(v)-5 PROD Cust'!I700+'FR-16(7)(v)-9 TRANS Cust'!I700+'FR-16(7)(v)-13 DIST Cust'!I700","v":556},{"$f":"SUM(G700:I700)","v":3303},{"$f":"F700-J700","v":0}]
[9,"  TOT STATE PROV DEF IT (410 & 411)",null,null,null,{"$f":"SUM(F700)","v":3303},842,1905,556,3303,0]
[10]
[11,"OTHER SIT ADJUSTMENTS"]
[12,"CURRENT YEAR PAYABLE ADJUSTMENT",null,{"$f":"'FR-16(7)(v)-1 Functional'!D704","v":"NP29"},null,{"$f":"'FR-16(7)(v)-14 TOTAL CLASS'!I704","v":0},{"$f":"'FR-16(7)(v)-3 PROD Demand'!I704+'FR-16(7)(v)-7 TRANS Demand'!I704+'FR-16(7)(v)-11 DIST Demand'!I704","v":0},{"$f":"'FR-16(7)(v)-4 PROD Energy'!I704+'FR-16(7)(v)-8 TRANS Energy'!I704+'FR-16(7)(v)-12 DIST Energy'!I704","v":0},{"$f":"'FR-16(7)(v)-5 PROD Cust'!I704+'FR-16(7)(v)-9 TRANS Cust'!I704+'FR-16(7)(v)-13 DIST Cust'!I704","v":0},{"$f":"SUM(G704:I704)","v":0},{"$f":"F704-J704","v":0}]
[13,"  OTHER SIT ADJUSMENTS",null,null,null,{"$f":"SUM(F704)","v":0},0,0,0,0,0]
[14]
[15,"TOTAL STATE INC TAX ADJUSTMENT",null,null,null,{"$f":"F705+F701","v":3303},842,1905,556,3303,0]
[16]
[17,"INCOME TAX BASED ON RETURN"]
[18,"SUMMARY OF SIT CALCULATION"]
[19,"RETURN ON RATE BASE",null,null,null,{"$f":"F433","v":80247},{"$f":"G433","v":71170},{"$f":"H433","v":3214},{"$f":"I433","v":5863},{"$f":"J433","v":80247},{"$f":"F711-J711","v":0}]
[20,"NET FED INCOME TAX ALLOWABLE",null,null,null,{"$f":"F676","v":11923},{"$f":"G676","v":-5002},{"$f":"H676","v":16638},{"$f":"I676","v":287},{"$f":"J676","v":11923},0]
[21,"NET FED. DED. AND ADDITIONS",null,null,null,{"$f":"-F641","v":-113470},{"$f":"-G641","v":-102857},{"$f":"-H641","v":-4141},{"$f":"-I641","v":-6472},{"$f":"-J641","v":-113470},0]
[22,"DEDUCTIONS IN ADD TO Y871",null,null,null,{"$f":"-F696","v":-10819},{"$f":"-G696","v":-9881},{"$f":"-H696","v":-175},{"$f":"-I696","v":-763},{"$f":"-J696","v":-10819},0]
[23,"RESERVED",null,null,null,{"$f":"F24","v":0},{"$f":"G24","v":0},{"$f":"H24","v":0},{"$f":"I24","v":0},{"$f":"J24","v":0},0]
[24,"TOTAL STATE INC TAX ADJ",null,null,null,{"$f":"F707","v":3303},{"$f":"G707","v":842},{"$f":"H707","v":1905},{"$f":"I707","v":556},{"$f":"J707","v":3303},0]
[25,"  BASE FOR SIT COMPUTATION",null,null,null,{"$f":"SUM(F711:F716)","v":-28816},-45728,17441,-529,-28816,0]
[26]
[27,"SIT FACTOR K192/(1-K192)",null,null,null,{"$f":"ROUND(SIT/(1-SIT),8)","v":5.2282660000000002E-2},{"$f":"ROUND(SIT/(1-SIT),8)","v":5.2282660000000002E-2},{"$f":"ROUND(SIT/(1-SIT),8)","v":5.2282660000000002E-2},{"$f":"ROUND(SIT/(1-SIT),8)","v":5.2282660000000002E-2},null,{"$f":"ROUND(SIT/(1-SIT),8)","v":5.2282660000000002E-2}]
[28,"PRELIMINARY STATE INCOME TAX",null,null,null,{"$f":"ROUND(F717*F719,0)","v":-1507},{"$f":"'FR-16(7)(v)-3 PROD Demand'!I720+'FR-16(7)(v)-7 TRANS Demand'!I720+'FR-16(7)(v)-11 DIST Demand'!I720","v":-2391},{"$f":"ROUND(H717*H719,0)","v":912},{"$f":"ROUND(I717*I719,0)","v":-28},{"$f":"SUM(G720:I720)","v":-1507},{"$f":"F720-J720","v":0}]
[29,"TOTAL STATE INCOME TAX ADJ.",null,null,null,{"$f":"F707","v":3303},{"$f":"G707","v":842},{"$f":"H707","v":1905},{"$f":"I707","v":556},{"$f":"J707","v":3303},{"$f":"F721-J721","v":0}]
[30,"  NET STATE INC TAX ALLOWABLE",null,null,null,{"$f":"F721+F720","v":1796},-1549,2817,528,1796,0]
[31]
[32,"STATE INCOME TAX PAYABLE"]
[33,"PRELIMINARY STATE INCOME TAX",null,null,null,{"$f":"F720","v":-1507},{"$f":"G720","v":-2391},{"$f":"H720","v":912},{"$f":"I720","v":-28},{"$f":"J720","v":-1507},{"$f":"F725-J725","v":0}]
[34,"OTHER SIT ADJUSTMENTS",null,null,null,{"$f":"F705","v":0},{"$f":"G705","v":0},{"$f":"H705","v":0},{"$f":"I705","v":0},{"$f":"J705","v":0},{"$f":"F726-J726","v":0}]
[35,"  NET STATE INCOME TAX PAYABLE",null,null,null,{"$f":"F725+F726","v":-1507},-2391,912,-28,-1507,0]
[36]
[37,"COMPOSITE TAX RATE",null,null,null,{"$f":"(SIT*(1-FIT))+((1-SIT)*(1-FIT)*RevTax)+FIT","v":0.24925115},0.24925115,0.24925115,0.24925115,0.24925115,0.24925115]
[]
[{"$f":"co_name","v":"DUKE ENERGY KENTUCKY, INC."},null,null,null,null,null,null,null,null,{"$f":"J1","v":"FR-16(7)(v)-17"}]
[{"$f":"$A$2","v":"GSFL SECONDARY CLASSIFIED - ELECTRIC COST OF SERVICE"},null,null,null,null,null,null,null,null,{"$f":"J2","v":"WITNESS RESPONSIBLE:"}]
[{"$f":"case_name","v":"CASE NO: 2019-00271"},null,null,null,null,null,null,null,null,{"$f":"Witness","v":"JAMES E. ZIOLKOWSKI"}]
[{"$f":"data_filing","v":"DATA: 12 MONTHS ACTUAL  & 0 MONTHS ESTIMATED"},null,null,null,null,null,null,null,null,{"$f":"\"PAGE \"&Pages2-1&\" OF \"&Pages2","v":"PAGE 14 OF 15"}]
[{"$f":"type","v":"TYPE OF FILING: \"X\" ORIGINAL   UPDATED    REVISED  "}]
[]
[]
["LINE",null,null,null,null,"TOTAL","CLASSIFIED",null,null,"TOTAL","ALL"]
["NO.","COST OF SERVICE COMPUTATION",null,"ALLO",null,{"$f":"$F$9","v":"GSFL SECONDARY"},{"$f":"G9","v":"DEMAND"},"ENERGY","CUSTOMER","AT ISSUE","OTHER"]
[null,null,"Schedule 10",null,null,null,3,4,5]
[1,"OTHER OPERATING REVENUES"]
[2,null,{"$f":"'FR-16(7)(v)-1 Functional'!C742","v":"MISC SERVICE REVENUE"},{"$f":"'FR-16(7)(v)-1 Functional'!D742","v":"D249"},null,{"$f":"'FR-16(7)(v)-14 TOTAL CLASS'!I742","v":303},{"$f":"'FR-16(7)(v)-3 PROD Demand'!I742+'FR-16(7)(v)-7 TRANS Demand'!I742+'FR-16(7)(v)-11 DIST Demand'!I742","v":247},{"$f":"'FR-16(7)(v)-4 PROD Energy'!I742+'FR-16(7)(v)-8 TRANS Energy'!I742+'FR-16(7)(v)-12 DIST Energy'!I742","v":0},{"$f":"'FR-16(7)(v)-5 PROD Cust'!I742+'FR-16(7)(v)-9 TRANS Cust'!I742+'FR-16(7)(v)-13 DIST Cust'!I742","v":56},{"$f":"SUM(G742:I742)","v":303},{"$f":"F742-J742","v":0}]
[3,null,{"$f":"'FR-16(7)(v)-1 Functional'!C743","v":"INTERDEPARTMENTAL"},{"$f":"'FR-16(7)(v)-1 Functional'!D743","v":"K902"},null,{"$f":"'FR-16(7)(v)-14 TOTAL CLASS'!I743","v":0},{"$f":"'FR-16(7)(v)-3 PROD Demand'!I743+'FR-16(7)(v)-7 TRANS Demand'!I743+'FR-16(7)(v)-11 DIST Demand'!I743","v":0},{"$f":"'FR-16(7)(v)-4 PROD Energy'!I743+'FR-16(7)(v)-8 TRANS Energy'!I743+'FR-16(7)(v)-12 DIST Energy'!I743","v":0},{"$f":"'FR-16(7)(v)-5 PROD Cust'!I743+'FR-16(7)(v)-9 TRANS Cust'!I743+'FR-16(7)(v)-13 DIST Cust'!I743","v":0},0,{"$f":"F743-J743","v":0}]
[4,null,{"$f":"'FR-16(7)(v)-1 Functional'!C744","v":"POLE & LINE ATTACHMENTS"},{"$f":"'FR-16(7)(v)-1 Functional'!D744","v":"D249"},null,{"$f":"'FR-16(7)(v)-14 TOTAL CLASS'!I744","v":259},{"$f":"'FR-16(7)(v)-3 PROD Demand'!I744+'FR-16(7)(v)-7 TRANS Demand'!I744+'FR-16(7)(v)-11 DIST Demand'!I744","v":211},{"$f":"'FR-16(7)(v)-4 PROD Energy'!I744+'FR-16(7)(v)-8 TRANS Energy'!I744+'FR-16(7)(v)-12 DIST Energy'!I744","v":0},{"$f":"'FR-16(7)(v)-5 PROD Cust'!I744+'FR-16(7)(v)-9 TRANS Cust'!I744+'FR-16(7)(v)-13 DIST Cust'!I744","v":48},259,0]
[5,null,{"$f":"'FR-16(7)(v)-1 Functional'!C745","v":"RENTS"},{"$f":"'FR-16(7)(v)-1 Functional'!D745","v":"D249"},null,{"$f":"'FR-16(7)(v)-14 TOTAL CLASS'!I745","v":1270},{"$f":"'FR-16(7)(v)-3 PROD Demand'!I745+'FR-16(7)(v)-7 TRANS Demand'!I745+'FR-16(7)(v)-11 DIST Demand'!I745","v":1036},{"$f":"'FR-16(7)(v)-4 PROD Energy'!I745+'FR-16(7)(v)-8 TRANS Energy'!I745+'FR-16(7)(v)-12 DIST Energy'!I745","v":0},{"$f":"'FR-16(7)(v)-5 PROD Cust'!I745+'FR-16(7)(v)-9 TRANS Cust'!I745+'FR-16(7)(v)-13 DIST Cust'!I745","v":234},1270,0]
[6,null,{"$f":"'FR-16(7)(v)-1 Functional'!C746","v":"TRANSMISSION CHARGE PTP"},{"$f":"'FR-16(7)(v)-1 Functional'!D746","v":"T229"},null,{"$f":"'FR-16(7)(v)-14 TOTAL CLASS'!I746","v":188},{"$f":"'FR-16(7)(v)-3 PROD Demand'!I746+'FR-16(7)(v)-7 TRANS Demand'!I746+'FR-16(7)(v)-11 DIST Demand'!I746","v":188},{"$f":"'FR-16(7)(v)-4 PROD Energy'!I746+'FR-16(7)(v)-8 TRANS Energy'!I746+'FR-16(7)(v)-12 DIST Energy'!I746","v":0},{"$f":"'FR-16(7)(v)-5 PROD Cust'!I746+'FR-16(7)(v)-9 TRANS Cust'!I746+'FR-16(7)(v)-13 DIST Cust'!I746","v":0},188,{"$f":"F746-J746","v":0}]
[7,null,{"$f":"'FR-16(7)(v)-1 Functional'!C747","v":"PJM REACTIVE REVENUE"},{"$f":"'FR-16(7)(v)-1 Functional'!D747","v":"K401"},null,{"$f":"'FR-16(7)(v)-14 TOTAL CLASS'!I747","v":0},{"$f":"'FR-16(7)(v)-3 PROD Demand'!I747+'FR-16(7)(v)-7 TRANS Demand'!I747+'FR-16(7)(v)-11 DIST Demand'!I747","v":0},{"$f":"'FR-16(7)(v)-4 PROD Energy'!I747+'FR-16(7)(v)-8 TRANS Energy'!I747+'FR-16(7)(v)-12 DIST Energy'!I747","v":0},{"$f":"'FR-16(7)(v)-5 PROD Cust'!I747+'FR-16(7)(v)-9 TRANS Cust'!I747+'FR-16(7)(v)-13 DIST Cust'!I747","v":0},0,{"$f":"F747-J747","v":0}]
[8,null,{"$f":"'FR-16(7)(v)-1 Functional'!C748","v":"OTHER TRANSMISSION REVENUES"},{"$f":"'FR-16(7)(v)-1 Functional'!D748","v":"T229"},null,{"$f":"'FR-16(7)(v)-14 TOTAL CLASS'!I748","v":32},{"$f":"'FR-16(7)(v)-3 PROD Demand'!I748+'FR-16(7)(v)-7 TRANS Demand'!I748+'FR-16(7)(v)-11 DIST Demand'!I748","v":32},{"$f":"'FR-16(7)(v)-4 PROD Energy'!I748+'FR-16(7)(v)-8 TRANS Energy'!I748+'FR-16(7)(v)-12 DIST Energy'!I748","v":0},{"$f":"'FR-16(7)(v)-5 PROD Cust'!I748+'FR-16(7)(v)-9 TRANS Cust'!I748+'FR-16(7)(v)-13 DIST Cust'!I748","v":0},32,{"$f":"F748-J748","v":0}]
[9,null,{"$f":"'FR-16(7)(v)-1 Functional'!C749","v":"FIXED BILL PREMIUM"},{"$f":"'FR-16(7)(v)-1 Functional'!D749","v":"K902"},null,{"$f":"'FR-16(7)(v)-14 TOTAL CLASS'!I749","v":0},{"$f":"'FR-16(7)(v)-3 PROD Demand'!I749+'FR-16(7)(v)-7 TRANS Demand'!I749+'FR-16(7)(v)-11 DIST Demand'!I749","v":0},{"$f":"'FR-16(7)(v)-4 PROD Energy'!I749+'FR-16(7)(v)-8 TRANS Energy'!I749+'FR-16(7)(v)-12 DIST Energy'!I749","v":0},{"$f":"'FR-16(7)(v)-5 PROD Cust'!I749+'FR-16(7)(v)-9 TRANS Cust'!I749+'FR-16(7)(v)-13 DIST Cust'!I749","v":0},0,0]
[10,null,{"$f":"'FR-16(7)(v)-1 Functional'!C750","v":"  TOTAL OTHER OPERATING REVS"},null,null,{"$f":"SUM(F742:F749)","v":2052},1714,0,338,2052,0]
[11]
[12,"COST OF SERVICE COMPUTATION"]
[13,null,{"$f":"'FR-16(7)(v)-1 Functional'!C753","v":"TOTAL OP EXP EXC INC & REV TAX"},null,null,{"$f":"F618","v":380700},{"$f":"G618","v":136583},{"$f":"H618","v":226804},{"$f":"I618","v":17313},{"$f":"J618","v":380700},{"$f":"F753-J753","v":0}]
[14,null,"RETURN ON RATE BASE",null,null,{"$f":"F433","v":80247},{"$f":"G433","v":71170},{"$f":"H433","v":3214},{"$f":"I433","v":5863},{"$f":"J433","v":80247},{"$f":"F754-J754","v":0}]
[15,null,{"$f":"'FR-16(7)(v)-1 Functional'!C755","v":"NET FED INCOME TAX ALLOWABLE"},null,null,{"$f":"F676","v":11923},{"$f":"G676","v":-5002},{"$f":"H676","v":16638},{"$f":"I676","v":287},{"$f":"J676","v":11923},{"$f":"F755-J755","v":0}]
[16,null,{"$f":"'FR-16(7)(v)-1 Functional'!C756","v":"NET STATE INCOME TAX ALLOWABLE"},null,null,{"$f":"F722","v":1796},{"$f":"G722","v":-1549},{"$f":"H722","v":2817},{"$f":"I722","v":528},{"$f":"J722","v":1796},{"$f":"F756-J756","v":0}]
[17,null,{"$f":"'FR-16(7)(v)-1 Functional'!C757","v":"TOTAL OTHER OPERATING REVENUES"},null,null,{"$f":"-F750","v":-2052},{"$f":"-G750","v":-1714},{"$f":"-H750","v":0},{"$f":"-I750","v":-338},{"$f":"-J750","v":-2052},{"$f":"F757-J757","v":0}]
[18,null,{"$f":"'FR-16(7)(v)-1 Functional'!C758","v":"  SUBTOTAL B"},null,null,{"$f":"SUM(F752:F757)","v":472614},{"$f":"SUM(G752:G757)","v":199488},{"$f":"SUM(H752:H757)","v":249473},{"$f":"SUM(I752:I757)","v":23653},{"$f":"SUM(J752:J757)","v":472614},{"$f":"J758-F758","v":0}]
[19]
[20,null,{"$f":"'FR-16(7)(v)-1 Functional'!C760","v":"TOTAL OTHER OPERATING REVENUES"},null,null,{"$f":"-F757","v":2052},{"$f":"-G757","v":1714},{"$f":"-H757","v":0},{"$f":"-I757","v":338},{"$f":"-J757","v":2052},{"$f":"F760-J760","v":0}]
[21,null,{"$f":"'FR-16(7)(v)-1 Functional'!C761","v":"LESS: REVS EXCL FROM REV TAX CALC"},null,null,{"$f":"'FR-16(7)(v)-14 TOTAL CLASS'!I761","v":0},{"$f":"'FR-16(7)(v)-3 PROD Demand'!I761+'FR-16(7)(v)-7 TRANS Demand'!I761+'FR-16(7)(v)-11 DIST Demand'!I761","v":0},{"$f":"'FR-16(7)(v)-4 PROD Energy'!I761+'FR-16(7)(v)-8 TRANS Energy'!I761+'FR-16(7)(v)-12 DIST Energy'!I761","v":0},{"$f":"'FR-16(7)(v)-5 PROD Cust'!I761+'FR-16(7)(v)-9 TRANS Cust'!I761+'FR-16(7)(v)-13 DIST Cust'!I761","v":0},{"$f":"SUM(G761:I761)","v":0},{"$f":"F761-J761","v":0}]
[22,null,{"$f":"'FR-16(7)(v)-1 Functional'!C762","v":"OTHER OPERATING REVS TO BE TAXED"},null,null,{"$f":"F760-F761","v":2052},1714,0,338,2052,0]
[23]
[24,null,{"$f":"'FR-16(7)(v)-1 Functional'!C764","v":"REVENUE TAX FACTOR"},null,null,{"$f":"ROUND(F817/(1-F817),8)","v":0},0,0,0,0,0]
[25,null,{"$f":"'FR-16(7)(v)-1 Functional'!C765","v":"REVENUE TAX ON OTHER OPER. REVS"},null,null,{"$f":"ROUND(F764*F762,0)","v":0},{"$f":"ROUND(G764*G762,0)","v":0},{"$f":"ROUND(H764*H762,0)","v":0},{"$f":"ROUND(I764*I762,0)","v":0},{"$f":"SUM(G765:I765)","v":0},{"$f":"F765-J765","v":0}]
[26,null,{"$f":"'FR-16(7)(v)-1 Functional'!C766","v":"REVENUE TAX ON COST OF SERVICE"},null,null,{"$f":"ROUND(F764*F758,0)","v":0},{"$f":"ROUND(G764*G758,0)","v":0},{"$f":"ROUND(H764*H758,0)","v":0},{"$f":"ROUND(I764*I758,0)","v":0},{"$f":"SUM(G766:I766)","v":0},{"$f":"F766-J766","v":0}]
[27,null,{"$f":"'FR-16(7)(v)-1 Functional'!C767","v":"TOTAL REVENUE TAX"},null,null,{"$f":"F766+F765","v":0},0,0,0,0,0]
[28]
[29,null,"RESERVED",null,null,{"$f":"F24","v":0},{"$f":"G24","v":0},{"$f":"H24","v":0},{"$f":"I24","v":0},{"$f":"J24","v":0},{"$f":"F769-J769","v":0}]
[30,null,{"$f":"'FR-16(7)(v)-1 Functional'!C770","v":"  TOTAL ELECTRIC COST OF SERVICE"},null,null,{"$f":"F769+F767+F758","v":472614},199488,249473,23653,472614,0]
[31]
[32,"PROPOSED REVENUES ",null,null,null,{"$f":"'FR-16(7)(v)-14 TOTAL CLASS'!I772","v":319918},{"$f":"'FR-16(7)(v)-3 PROD Demand'!I772+'FR-16(7)(v)-7 TRANS Demand'!I772+'FR-16(7)(v)-11 DIST Demand'!I772","v":81569},{"$f":"'FR-16(7)(v)-4 PROD Energy'!I772+'FR-16(7)(v)-8 TRANS Energy'!I772+'FR-16(7)(v)-12 DIST Energy'!I772","v":184504},{"$f":"'FR-16(7)(v)-5 PROD Cust'!I772+'FR-16(7)(v)-9 TRANS Cust'!I772+'FR-16(7)(v)-13 DIST Cust'!I772","v":53845},{"$f":"SUM(G772:I772)","v":319918},{"$f":"F772-J772","v":0}]
[33,"TOTAL ELECTRIC COST OF SERVICE",null,null,null,{"$f":"-F770","v":-472614},{"$f":"-G770","v":-199488},{"$f":"-H770","v":-249473},{"$f":"-I770","v":-23653},{"$f":"SUM(G773:I773)","v":-472614},{"$f":"F773-J773","v":0}]
[34,"EXCESS REVENUES",null,null,null,{"$f":"F773+F772","v":-152696},{"$f":"G773+G772","v":-117919},{"$f":"H773+H772","v":-64969},{"$f":"I773+I772","v":30192},{"$f":"SUM(G774:I774)","v":-152696},{"$f":"F774-J774","v":0}]
[35,"COMPOSITE TAX RATE",null,null,null,{"$f":"F729","v":0.24925115},0.24925115,0.24925115,0.24925115,0.24925115,0.24925115]
[36,"EXCESS TAX",null,null,null,{"$f":"ROUND(F775*F774,0)","v":-38060},{"$f":"'FR-16(7)(v)-3 PROD Demand'!I776+'FR-16(7)(v)-7 TRANS Demand'!I776+'FR-16(7)(v)-11 DIST Demand'!I776","v":-29391},{"$f":"ROUND(H775*H774,0)","v":-16194},{"$f":"ROUND(I775*I774,0)","v":7525},{"$f":"SUM(G776:I776)","v":-38060},{"$f":"F776-J776","v":0}]
[37,"EXCESS RETURN",null,null,null,{"$f":"F774-F776","v":-114636},{"$f":"'FR-16(7)(v)-3 PROD Demand'!I777+'FR-16(7)(v)-7 TRANS Demand'!I777+'FR-16(7)(v)-11 DIST Demand'!I777","v":-88527},{"$f":"H774-H776","v":-48775},{"$f":"I774-I776","v":22667},{"$f":"SUM(G777:I777)","v":-114635},{"$f":"F777-J777","v":-1}]
[]
[{"$f":"co_name","v":"DUKE ENERGY KENTUCKY, INC."},null,null,null,null,null,null,null,null,{"$f":"J1","v":"FR-16(7)(v)-17"}]
[{"$f":"$A$2","v":"GSFL SECONDARY CLASSIFIED - ELECTRIC COST OF SERVICE"},null,null,null,null,null,null,null,null,{"$f":"J2","v":"WITNESS RESPONSIBLE:"}]
[{"$f":"case_name","v":"CASE NO: 2019-00271"},null,null,null,null,null,null,null,null,{"$f":"Witness","v":"JAMES E. ZIOLKOWSKI"}]
[{"$f":"data_filing","v":"DATA: 12 MONTHS ACTUAL  & 0 MONTHS ESTIMATED"},null,null,null,null,null,null,null,null,{"$f":"\"PAGE \"&Pages2&\" OF \"&Pages2","v":"PAGE 15 OF 15"}]
[{"$f":"type","v":"TYPE OF FILING: \"X\" ORIGINAL   UPDATED    REVISED  "}]
[]
[]
["LINE",null,null,null,null,"TOTAL","CLASSIFIED",null,null,"TOTAL","ALL"]
["NO.","ROR, TAX RATES & SPEC FACTORS",null,"ALLO",null,{"$f":"$F$9","v":"GSFL SECONDARY"},{"$f":"G9","v":"DEMAND"},"ENERGY","CUSTOMER","AT ISSUE","OTHER"]
[null,null,"Schedule 11",null,null,null,3,4,5]
[1,"RATE OF RETURN"]
[2," CAPITALIZATION AMOUNTS",null,null,null,null,"RATIO"]
[3,null,{"$f":"'FR-16(7)(v)-1 Functional'!C791","v":"LONG TERM DEBT"},null,null,{"$f":"'FR-16(7)(v)-1 Functional'!$F$791","v":665948506},{"$f":"IF(TotalCap=0,0,ROUND(F791/TotalCap,4))","v":0.45929999999999999}]
[4,null,{"$f":"'FR-16(7)(v)-1 Functional'!C792","v":"PREFERRED STOCK"},null,null,{"$f":"'FR-16(7)(v)-1 Functional'!$F$792","v":0},{"$f":"IF(TotalCap=0,0,ROUND(F792/TotalCap,4))","v":0}]
[5,null,{"$f":"'FR-16(7)(v)-1 Functional'!C793","v":"COMMON STOCK"},null,null,{"$f":"[0]!Equity","v":699348680},{"$f":"1-G791-G792-G794-G795","v":0.48239999999999994}]
[6,null,{"$f":"'FR-16(7)(v)-1 Functional'!C794","v":"SHORT TERM DEBT"},null,null,{"$f":"'FR-16(7)(v)-1 Functional'!$F$794","v":84600060},{"$f":"IF(TotalCap=0,0,ROUND(F794/TotalCap,4))","v":5.8299999999999998E-2}]
[7,null,{"$f":"'FR-16(7)(v)-1 Functional'!C795","v":"UNAMORTIZED DISCOUNT"},null,null,{"$f":"'FR-16(7)(v)-1 Functional'!$F$795","v":0},{"$f":"IF(TotalCap=0,0,ROUND(F795/TotalCap,4))","v":0}]
[8,null,{"$f":"'FR-16(7)(v)-1 Functional'!C796","v":"  TOTAL"},null,null,{"$f":"SUM(F790:F795)","v":1449897246},{"$f":"SUM(G791:G795)","v":1}]
[9]
[10," COST OF CAPITAL"]
[11,null,{"$f":"'FR-16(7)(v)-1 Functional'!C799","v":"LONG TERM DEBT"},null,null,{"$f":"'FR-16(7)(v)-1 Functional'!$F$799","v":4.0730000000000002E-2}]
[12,null,{"$f":"'FR-16(7)(v)-1 Functional'!C800","v":"PREFERRED STOCK"},null,null,{"$f":"'FR-16(7)(v)-1 Functional'!$F$800","v":0}]
[13,null,{"$f":"'FR-16(7)(v)-1 Functional'!C801","v":"COMMON STOCK"},null,null,{"$f":"'FR-16(7)(v)-1 Functional'!$F$801","v":9.8000000000000004E-2}]
[14,null,{"$f":"'FR-16(7)(v)-1 Functional'!C802","v":"SHORT TERM DEBT"},null,null,{"$f":"'FR-16(7)(v)-1 Functional'!$F$802","v":1.9369999999999998E-2}]
[15,null,{"$f":"'FR-16(7)(v)-1 Functional'!C803","v":"UNAMORTIZED DISCOUNT"},null,null,{"$f":"'FR-16(7)(v)-1 Functional'!$F$803","v":0}]
[16]
[17," WEIGHTED COST OF CAPITAL"]
[18,null,{"$f":"'FR-16(7)(v)-1 Functional'!C806","v":"LONG TERM DEBT"},null,null,{"$f":"ROUND(G791*F799,4)","v":1.8700000000000001E-2}]
[19,null,{"$f":"'FR-16(7)(v)-1 Functional'!C807","v":"PREFERRED STOCK"},null,null,{"$f":"ROUND(G792*F800,4)","v":0}]
[20,null,{"$f":"'FR-16(7)(v)-1 Functional'!C808","v":"COMMON STOCK"},null,null,{"$f":"ROUND(G793*F801,4)","v":4.7300000000000002E-2}]
[21,null,{"$f":"'FR-16(7)(v)-1 Functional'!C809","v":"SHORT TERM DEBT"},null,null,{"$f":"ROUND(G794*F802,4)","v":1.1000000000000001E-3}]
[22,null,{"$f":"'FR-16(7)(v)-1 Functional'!C810","v":"UNAMORTIZED DISCOUNT"},null,null,{"$f":"ROUND(G795*F803,4)","v":0}]
[23,null,{"$f":"'FR-16(7)(v)-1 Functional'!C811","v":"  TOT RATE OF RETURN ALLOWABLE"},null,null,{"$f":"SUM(F806:F810)","v":6.7100000000000007E-2}]
[24]
[25,"TAX RATES AND SPECIAL FACTORS"]
[26,null,{"$f":"'FR-16(7)(v)-1 Functional'!C814","v":"SHORT TERM DEBT COST"},null,null,0,{"$f":"F814","v":0},{"$f":"F814","v":0},{"$f":"F814","v":0},{"$f":"F814","v":0},{"$f":"F814","v":0}]
[27,null,{"$f":"'FR-16(7)(v)-1 Functional'!C815","v":"FEDERAL INCOME TAX RATE"},null,null,0.35,{"$f":"FIT","v":0.21},{"$f":"FIT","v":0.21},{"$f":"FIT","v":0.21},{"$f":"FIT","v":0.21},{"$f":"FIT","v":0.21}]
[28,null,{"$f":"'FR-16(7)(v)-1 Functional'!C816","v":"STATE INCOME TAX RATE"},null,null,{"$f":"SIT","v":4.9685000000000007E-2},4.9685000000000007E-2,4.9685000000000007E-2,4.9685000000000007E-2,4.9685000000000007E-2,4.9685000000000007E-2]
[29,null,{"$f":"'FR-16(7)(v)-1 Functional'!C817","v":"REVENUE TAX RATE"},null,null,0,{"$f":"RevTax","v":0},{"$f":"RevTax","v":0},{"$f":"RevTax","v":0},{"$f":"RevTax","v":0},{"$f":"RevTax","v":0}]
[]
[]
[]
[]
[]
[]
[]
[]
[]
[]
[]
[]
[]
[]
[]
[]
[]
[]
[]
[]
[]
[]
[]
[]
[]
[]
[]
[]
[]
[]
[]
[]
[]
[]
[]
[]
[]
[]
[]
[]
[]
[]
[]
[]
[]
[]
[]
[]
[]
[]
[]
[]
[]
[]
[]
[]
[]
[]
[]
[]
[]
[]
[]
[]
[]
[]
[]
[]
[]
[]
[]
[]
[]
[]
[]
[]
[]
[]
[]
[]
[]
[]
[]
[]
[]
[]
[]
[]
[]
[]
[]
[]
[]
[]
[]
[]
[]
[]
[]
[]
[]
[]
[]
[]
[]
[]
[]
[]
[]
[]
[]
[]
[]
[]
[]
[]
[]
[]
[]
[]
[]
[]
[]
[]
[]
[]
[]
[]
[]
[]
[]
[]
[]
[]
[]
[]
[]
[]
[]
[]
[]
[]
[]
[]
[]
[]
[]
[]
[]
[]
[]
[]
[]
[]
[]
[]
[]
[]
[]
[]
[]
[]
[]
[]
[]
[]
["DO NOT FILE THIS PAGE"]
[]
[{"$f":"co_name","v":"DUKE ENERGY KENTUCKY, INC."},null,null,null,null,null,null,null,null,{"$f":"J1","v":"FR-16(7)(v)-17"}]
[{"$f":"$A$2","v":"GSFL SECONDARY CLASSIFIED - ELECTRIC COST OF SERVICE"},null,null,null,null,null,null,null,null,{"$f":"J2","v":"WITNESS RESPONSIBLE:"}]
[{"$f":"case_name","v":"CASE NO: 2019-00271"},null,null,null,null,null,null,null,null,{"$f":"Witness","v":"JAMES E. ZIOLKOWSKI"}]
[{"$f":"data_filing","v":"DATA: 12 MONTHS ACTUAL  & 0 MONTHS ESTIMATED"},null,null,null,null,null,null,null,null,{"$f":"\"PAGE \"&Pages2&\" OF \"&Pages2","v":"PAGE 15 OF 15"}]
[{"$f":"type","v":"TYPE OF FILING: \"X\" ORIGINAL   UPDATED    REVISED  "}]
[]
[]
["LINE",null,null,null,null,"TOTAL","CLASSIFIED",null,null,"TOTAL","ALL"]
["NO.","INCOME TAX BASED ON REVENUES",null,"ALLO",null,{"$f":"$F$9","v":"GSFL SECONDARY"},"DEMAND","COMMODITY","CUSTOMER","AT ISSUE","OTHER"]
[null,null,"Schedule 13",null,null,null,{"$f":"G10","v":3},{"$f":"H10","v":4},{"$f":"I10","v":5}]
[1,"NET INCOME COMPUTATION"]
[2,null,{"$f":"'FR-16(7)(v)-1 Functional'!C1008","v":"TOTAL ELECTRIC COST OF SERVICE"},null,null,{"$f":"F770","v":472614},199488,249473,23653,472614,0]
[3,null,{"$f":"'FR-16(7)(v)-1 Functional'!C1009","v":"TOTAL OTHER OPERATING REVENUES"},null,null,{"$f":"F750","v":2052},1714,0,338,2052,0]
[4,null,{"$f":"'FR-16(7)(v)-1 Functional'!C1010","v":"  TOTAL ELECTRIC REVENUE"},null,null,{"$f":"SUM(F996:F998)","v":474666},201202,249473,23991,474666,0]
[5,null,{"$f":"'FR-16(7)(v)-1 Functional'!C1011","v":"TOTAL OP EXP EX INC & REV TAX"},null,null,{"$f":"-F618","v":-380700},-136583,-226804,-17313,-380700,0]
[6,null,{"$f":"'FR-16(7)(v)-1 Functional'!C1012","v":"FIRM SERVICE REVENUE TAX"},null,null,{"$f":"-ROUND(F817*F997,0)","v":0},{"$f":"-ROUND(G817*G997,0)","v":0},{"$f":"-ROUND(H817*H997,0)","v":0},{"$f":"-ROUND(I817*I997,0)","v":0},{"$f":"SUM(G1001:I1001)","v":0},{"$f":"-ROUND('FR-16(7)(v)-1 Functional'!K817*K997,0)","v":0}]
[7,null,{"$f":"'FR-16(7)(v)-1 Functional'!C1013","v":"  NET INCOME"},null,null,{"$f":"SUM(F999:F1001)","v":93966},{"$f":"SUM(G999:G1001)","v":64619},{"$f":"SUM(H999:H1001)","v":22669},{"$f":"SUM(I999:I1001)","v":6678},{"$f":"SUM(G1002:I1002)","v":93966},{"$f":"SUM(K999:K1001)","v":0}]
[8]
[9,"ADJUSTMENTS TO NET INCOME"]
[10,null,{"$f":"'FR-16(7)(v)-1 Functional'!C1016","v":"TOTAL INTEREST EXPENSE"},null,null,{"$f":"-F633","v":-23721},-21038,-950,-1733,-23721,0]
[11,null,{"$f":"'FR-16(7)(v)-1 Functional'!C1017","v":"TOTAL OTHER DEDUCTIONS"},null,null,{"$f":"-F639","v":-89749},-81819,-3191,-4739,-89749,0]
[12,null,{"$f":"'FR-16(7)(v)-1 Functional'!C1018","v":"  PRELIMINARY TAXABLE INCOME"},null,null,{"$f":"SUM(F1004:F1006)+F1002","v":-19504},{"$f":"SUM(G1004:G1006)+G1002","v":-38238},{"$f":"SUM(H1004:H1006)+H1002","v":18528},{"$f":"SUM(I1004:I1006)+I1002","v":206},{"$f":"SUM(G1007:I1007)","v":-19504},{"$f":"SUM(K1004:K1006)+K1002","v":0}]
[13]
[14,"INCOME TAX BASED ON REVENUES"]
[15,"FEDERAL INCOME TAX COMPUTATION"]
[16,null,{"$f":"'FR-16(7)(v)-1 Functional'!C1022","v":"PRELIMINARY TAXABLE INCOME"},null,null,{"$f":"F1007","v":-19504},-38238,18528,206,-19504,0]
[17,null,{"$f":"'FR-16(7)(v)-1 Functional'!C1023","v":"  NET FEDERAL TAXABLE INCOME"},null,null,{"$f":"SUM(F1011:F1011)","v":-19504},-38238,18528,206,-19504,0]
[18,null,{"$f":"'FR-16(7)(v)-1 Functional'!C1024","v":"  FEDERAL INCOME TAX RATE"},null,null,{"$f":"F815","v":0.35},{"$f":"G815","v":0.21},{"$f":"H815","v":0.21},{"$f":"I815","v":0.21},null,{"$f":"'FR-16(7)(v)-1 Functional'!K815","v":0.21}]
[19,null,{"$f":"'FR-16(7)(v)-1 Functional'!C1025","v":"PRELIMINARY FIT = FI01 * K190"},null,null,{"$f":"ROUND(F1013*F1012,0)","v":-6826},{"$f":"ROUND(G1013*G1012,0)","v":-8030},{"$f":"ROUND(H1013*H1012,0)","v":3891},{"$f":"ROUND(I1013*I1012,0)","v":43},{"$f":"SUM(G1014:I1014)","v":-4096},{"$f":"ROUND(K1013*K1012,0)","v":0}]
[20,null,{"$f":"'FR-16(7)(v)-1 Functional'!C1026","v":"TOTAL FED DEF IT (410 & 411)"},null,null,{"$f":"F649","v":15703},2526,12939,238,15703,0]
[21,null,{"$f":"'FR-16(7)(v)-1 Functional'!C1027","v":"TOTAL AMORTIZED ITC"},null,null,{"$f":"-F653","v":0},0,0,0,0,0]
[22,null,{"$f":"'FR-16(7)(v)-1 Functional'!C1028","v":"  NET FED INC TAX ALLOWABLE"},null,null,{"$f":"SUM(F1014:F1016)","v":8877},-5504,16830,281,11607,0]
[23]
[24,"FEDERAL INCOME TAX PAYABLE"]
[25,null,{"$f":"'FR-16(7)(v)-1 Functional'!C1031","v":"PRELIM FIT"},null,null,{"$f":"F1014","v":-6826},-8030,3891,43,-4096,0]
[26,null,{"$f":"'FR-16(7)(v)-1 Functional'!C1032","v":"TEST YEAR INV TAX CREDIT"},null,null,{"$f":"-F658","v":0},0,0,0,0,0]
[27,null,{"$f":"'FR-16(7)(v)-1 Functional'!C1033","v":"  FED INC TAX PAYABLE"},null,null,{"$f":"SUM(F1019:F1021)","v":-6826},-8030,3891,43,-4096,0]
[28]
[29,"PRELIMINARY SUMMARY"]
[30,null,{"$f":"'FR-16(7)(v)-1 Functional'!C1036","v":"NET INCOME"},null,null,{"$f":"F1002","v":93966},64619,22669,6678,93966,0]
[31,null,{"$f":"'FR-16(7)(v)-1 Functional'!C1037","v":"NET FED INC TAX ALLOWABLE"},null,null,{"$f":"-F1017","v":-8877},5504,-16830,-281,-11607,0]
[32,null,{"$f":"'FR-16(7)(v)-1 Functional'!C1038","v":"  OVERALL RETURN EARNED"},null,null,{"$f":"SUM(F1024:F1026)","v":85089},70123,5839,6397,82359,0]
[33]
[34,null,{"$f":"'FR-16(7)(v)-1 Functional'!C1040","v":"  RATE OF RETURN EARNED"},null,null,{"$f":"IF(F426=0,0,ROUND(F1027/F426,5))","v":7.1190000000000003E-2},6.6089999999999996E-2,0.12193,7.4029999999999999E-2,6.8900000000000003E-2,0]

{"sheet":"FR-16(7)(v)-18 EH Classified","index":22,"n_rows":1029,"n_cols":14,"rows_kept":1029,"cut":false,"hidden":false,"merged":[]}
[{"$f":"co_name","v":"DUKE ENERGY KENTUCKY, INC."},null,null,null,null,null,null,null,null,"FR-16(7)(v)-18"]
[{"$f":"F9&\" \"&\"CLASSIFIED - ELECTRIC COST OF SERVICE\"","v":"EH SECONDARY CLASSIFIED - ELECTRIC COST OF SERVICE"},null,null,null,null,null,null,null,null,"WITNESS RESPONSIBLE:"]
[{"$f":"case_name","v":"CASE NO: 2019-00271"},null,null,null,null,null,null,null,null,{"$f":"Witness","v":"JAMES E. ZIOLKOWSKI"}]
[{"$f":"data_filing","v":"DATA: 12 MONTHS ACTUAL  & 0 MONTHS ESTIMATED"},null,null,null,null,null,null,null,null,{"$f":"\"PAGE \"&Pages2-14&\" OF \"&Pages2","v":"PAGE 1 OF 15"}]
[{"$f":"type","v":"TYPE OF FILING: \"X\" ORIGINAL   UPDATED    REVISED  "}]
[]
[]
["LINE",null,null,null,null,"TOTAL","CLASSIFIED",null,null,"TOTAL","ALL"]
["NO.","SUMMARY OF RESULTS",null,"ALLO",null,"EH SECONDARY","DEMAND","ENERGY","CUSTOMER","AT ISSUE","OTHER"]
[null,null,"Schedule 1",null,null,null,3,4,5]
[1,"NET INCOME COMPUTATION"]
[2,null,{"$f":"'FR-16(7)(v)-1 Functional'!C12","v":"GROSS ELECTRIC PLANT IN SERVICE"},null,null,{"$f":"F123","v":9708499},{"$f":"G123","v":9381514},{"$f":"H123","v":130816},{"$f":"I123","v":196169},{"$f":"SUM(G12:I12)","v":9708499},{"$f":"F12-J12","v":0}]
[3,null,{"$f":"'FR-16(7)(v)-1 Functional'!C13","v":"TOTAL DEPRECIATION RESERVE"},null,null,{"$f":"-F200","v":-3935495},{"$f":"-G200","v":-3801731},{"$f":"-H200","v":-63801},{"$f":"-I200","v":-69963},{"$f":"SUM(G13:I13)","v":-3935495},{"$f":"F13-J13","v":0}]
[4,null,{"$f":"'FR-16(7)(v)-1 Functional'!C14","v":"TOTAL RATE BASE ADJUSTMENTS"},null,null,{"$f":"F421","v":-1090391},{"$f":"G421","v":-1139378},{"$f":"H421","v":68673},{"$f":"I421","v":-19686},{"$f":"SUM(G14:I14)","v":-1090391},{"$f":"F14-J14","v":0}]
[5,null,{"$f":"'FR-16(7)(v)-1 Functional'!C15","v":"  TOTAL RATE BASE"},null,null,{"$f":"SUM(F12:F14)","v":4682613},4440405,135688,106520,4682613,0]
[6]
[7,"OPERATING EXPENSES"]
[8,null,{"$f":"'FR-16(7)(v)-1 Functional'!C18","v":"TOTAL O&M EXPENSE"},null,null,{"$f":"F549","v":891508},{"$f":"G549","v":243776},{"$f":"H549","v":633748},{"$f":"I549","v":13984},{"$f":"SUM(G18:I18)","v":891508},{"$f":"F18-J18","v":0}]
[9,null,{"$f":"'FR-16(7)(v)-1 Functional'!C19","v":"TOTAL DEPRECIATION EXPENSE"},null,null,{"$f":"F582","v":290337},{"$f":"G582","v":277590},{"$f":"H582","v":7990},{"$f":"I582","v":4757},{"$f":"SUM(G19:I19)","v":290337},{"$f":"F19-J19","v":0}]
[10,null,{"$f":"'FR-16(7)(v)-1 Functional'!C20","v":"TOTAL OTHER TAX & MISC EXPENSE"},null,null,{"$f":"F612","v":70934},{"$f":"G612","v":67167},{"$f":"H612","v":2096},{"$f":"I612","v":1671},{"$f":"SUM(G20:I20)","v":70934},{"$f":"F20-J20","v":0}]
[11,null,{"$f":"'FR-16(7)(v)-1 Functional'!C21","v":"  TOTAL OP EXP EXCLUDING INC & REV TAX"},null,null,{"$f":"SUM(F17:F20)","v":1252779},588533,643834,20412,1252779,0]
[12,null,{"$f":"'FR-16(7)(v)-1 Functional'!C22","v":"NET FED INCOME TAX EXP ALLOWABLE"},null,null,{"$f":"F676","v":29653},{"$f":"G676","v":-17872},{"$f":"H676","v":47270},{"$f":"I676","v":255},{"$f":"SUM(G22:I22)","v":29653},{"$f":"F22-J22","v":0}]
[13,null,"NET STATE INCOME TAX EXP ALLOWABLE",null,null,{"$f":"F722","v":3751},{"$f":"G722","v":-4938},{"$f":"H722","v":8002},{"$f":"I722","v":686},{"$f":"SUM(G23:I23)","v":3750},{"$f":"F23-J23","v":1}]
[14,null,"RESERVED",{"$f":"'FR-16(7)(v)-1 Functional'!D24","v":"CW29"},null,{"$f":"'FR-16(7)(v)-14 TOTAL CLASS'!J24","v":0},{"$f":"'FR-16(7)(v)-3 PROD Demand'!J24+'FR-16(7)(v)-7 TRANS Demand'!J24+'FR-16(7)(v)-11 DIST Demand'!J24","v":0},{"$f":"'FR-16(7)(v)-4 PROD Energy'!J24+'FR-16(7)(v)-8 TRANS Energy'!J24+'FR-16(7)(v)-12 DIST Energy'!J24","v":0},{"$f":"'FR-16(7)(v)-5 PROD Cust'!J24+'FR-16(7)(v)-9 TRANS Cust'!J24+'FR-16(7)(v)-13 DIST Cust'!J24","v":0},{"$f":"SUM(G24:I24)","v":0},{"$f":"F24-J24","v":0}]
[15,null,{"$f":"'FR-16(7)(v)-1 Functional'!C25","v":"REVENUE TAX"},null,null,{"$f":"F767","v":0},{"$f":"G767","v":0},{"$f":"H767","v":0},{"$f":"I767","v":0},{"$f":"SUM(G25:I25)","v":0},{"$f":"F25-J25","v":0}]
[16,null,{"$f":"'FR-16(7)(v)-1 Functional'!C26","v":"  TOTAL OPERATING EXPENSE"},null,null,{"$f":"SUM(F21:F25)","v":1286183},565723,699106,21353,1286182,1]
[17]
[18,"RETURN ON RATE BASE",null,null,null,{"$f":"F433","v":314751},{"$f":"G433","v":298592},{"$f":"H433","v":9110},{"$f":"I433","v":7049},{"$f":"SUM(G28:I28)","v":314751},{"$f":"F28-J28","v":0}]
[19,"TOTAL OTHER OPERATING REVENUES",null,null,null,{"$f":"-F750","v":-8323},{"$f":"-G750","v":-7912},{"$f":"-H750","v":0},{"$f":"-I750","v":-411},{"$f":"SUM(G29:I29)","v":-8323},{"$f":"F29-J29","v":0}]
[20,null,{"$f":"'FR-16(7)(v)-1 Functional'!C30","v":"TOTAL ELECTRIC COST OF SERVICE"},null,null,{"$f":"SUM(F26:F29)","v":1592611},{"$f":"SUM(G26:G29)","v":856403},{"$f":"SUM(H26:H29)","v":708216},{"$f":"SUM(I26:I29)","v":27991},{"$f":"SUM(J26:J29)","v":1592610},{"$f":"F30-J30","v":1}]
[21,"ADJUSTMENT FOR INTERCLASS SUBSIDIZATION",null,{"$f":"1-'WP FR-16(7)(v) Rate Incr'!I11","v":0.95},null,{"$f":"SUM(G31:I31)","v":-733100},{"$f":"'WP FR-16(7)(v) Rate Incr'!T18","v":-538367},{"$f":"'WP FR-16(7)(v) Rate Incr'!U15","v":0},{"$f":"'WP FR-16(7)(v) Rate Incr'!V18","v":-194733},null,{"$f":"F31-J31","v":-733100}]
[22,{"$f":"'FR-16(7)(v)-1 Functional'!$B$32","v":"REQUESTED REVENUES (COST OF SERVICE ADJUSTED FOR SUBSIDIES)"},null,null,null,{"$f":"F30+F31","v":859511},318036,708216,-166742,1592610,-733099]
[23,"PROPOSED REVENUES",null,null,null,{"$f":"'FR-16(7)(v)-14 TOTAL CLASS'!J33","v":676300},{"$f":"'FR-16(7)(v)-3 PROD Demand'!J33+'FR-16(7)(v)-7 TRANS Demand'!J33+'FR-16(7)(v)-11 DIST Demand'!J33","v":432069},{"$f":"'FR-16(7)(v)-4 PROD Energy'!J33+'FR-16(7)(v)-8 TRANS Energy'!J33+'FR-16(7)(v)-12 DIST Energy'!J33","v":524188},{"$f":"'FR-16(7)(v)-5 PROD Cust'!J33+'FR-16(7)(v)-9 TRANS Cust'!J33+'FR-16(7)(v)-13 DIST Cust'!J33","v":69884},{"$f":"SUM(G33:I33)","v":1026141},{"$f":"F33-J33","v":-349841}]
[24,"DIFFERENCE (REQUESTED LESS PROPOSED)",null,null,null,{"$f":"F32-F33","v":183211},-114033,184028,-236626,566469,-383258]
[25]
[26,"TOTAL RETURN EARNED",null,null,null,{"$f":"F777+F28","v":-110526},{"$f":"G777+G28","v":-19977},{"$f":"H777+H28","v":-129049},{"$f":"I777+I28","v":38500},{"$f":"J777+J28","v":-110526},{"$f":"F36-J36","v":0}]
[27,"RATE OF RETURN EARNED",null,null,null,{"$f":"IF(F431=0,0,ROUND(F36/F431,5))","v":-2.3570000000000001E-2},-4.4900000000000001E-3,-0.95064000000000004,0.36656,-2.3570000000000001E-2,0]
[28,"TOTAL RATE OF RETURN ALLOWABLE",null,null,null,{"$f":"$F$811","v":6.7100000000000007E-2},{"$f":"F811","v":6.7100000000000007E-2},{"$f":"F811","v":6.7100000000000007E-2},{"$f":"F811","v":6.7100000000000007E-2},{"$f":"F811","v":6.7100000000000007E-2},{"$f":"IF(K37=0,0,F811)","v":0},null,null,"Not Part of print range"]
[29,"RETURN EARNED ON COMMON EQUITY",null,null,null,{"$f":"IF(Equity=0,0,(F37-$F$806-$F$807-$F$809)*TotalCap/Equity)","v":-8.9915152994955241E-2},{"$f":"IF(Equity=0,0,(G37-$F$806-$F$807-$F$809)*TotalCap/Equity)","v":-5.0358290667453613E-2},{"$f":"IF(Equity=0,0,(H37-F806-F807-F809)*TotalCap/Equity)","v":-2.0119267021541245},{"$f":"IF(Equity=0,0,(I37-F806-F807-F809)*TotalCap/Equity)","v":0.71890658179687994},{"$f":"IF(Equity=0,0,(J37-F806-F807-F809)*TotalCap/Equity)","v":-8.9915152994955241E-2},{"$f":"IF(OR(E793=0,K37=0)=TRUE,0,(K37-E806-E807-E809)*E796/E793)","v":0},null,null,"Not Filed"]
[30,"ALLOWED RETURN ON COMMON EQUITY",null,null,null,{"$f":"IF(Equity=0,0,(F38-$F$806-$F$807-$F$809)*TotalCap/Equity)","v":9.8062871493229981E-2},{"$f":"IF(Equity=0,0,(G38-F806-F807-F809)*TotalCap/Equity)","v":9.8062871493229981E-2},{"$f":"IF(Equity=0,0,(H38-F806-F807-F809)*TotalCap/Equity)","v":9.8062871493229981E-2},{"$f":"IF(Equity=0,0,(I38-F806-F807-F809)*TotalCap/Equity)","v":9.8062871493229981E-2},{"$f":"IF(Equity=0,0,(J38-F806-F807-F809)*TotalCap/Equity)","v":9.8062871493229981E-2},{"$f":"IF(OR(Equity=0,K38=0)=TRUE,0,(K38-F806-F807-F809)*TotalCap/Equity)","v":0}]
[31,null,null,null,null," "]
[32,"PRESENT REVENUES",null,null,null,{"$f":"'FR-16(7)(v)-14 TOTAL CLASS'!J42","v":600937},{"$f":"F42-SUM(H42:I42)","v":-42940},{"$f":"'FR-16(7)(v)-4 PROD Energy'!J42","v":619397},{"$f":"'FR-16(7)(v)-13 DIST Cust'!J42","v":24480},{"$f":"SUM(G42:I42)","v":600937},{"$f":"F42-J42","v":0}]
[33,"REVENUE INCREASE JUSTIFIED",null,null,null,{"$f":"F30-F42","v":991674},899343,88819,3511,991673,1]
[34,null,"PER UNIT PRES REV",null,null,{"$f":"IF(F42=0,0,ROUND(F43/F42,5))","v":1.65021},-20.944179999999999,0.1434,0.14341999999999999,1.65021,0]
[35,"REVENUE INCREASE REQUESTED",null,null,null,{"$f":"F33-F42","v":75363},475009,-95209,45404,425204,-349841]
[36,null,"PER UNIT PRES REV",null,null,{"$f":"IF(F42=0,0,ROUND(F45/F42,5))","v":0.12540999999999999},-11.06216,-0.15371000000000001,1.8547400000000001,0.70757000000000003,0]
[]
[{"$f":"co_name","v":"DUKE ENERGY KENTUCKY, INC."},null,null,null,null,null,null,null,null,{"$f":"J1","v":"FR-16(7)(v)-18"}]
[{"$f":"$A$2","v":"EH SECONDARY CLASSIFIED - ELECTRIC COST OF SERVICE"},null,null,null,null,null,null,null,null,{"$f":"J2","v":"WITNESS RESPONSIBLE:"}]
[{"$f":"case_name","v":"CASE NO: 2019-00271"},null,null,null,null,null,null,null,null,{"$f":"Witness","v":"JAMES E. ZIOLKOWSKI"}]
[{"$f":"data_filing","v":"DATA: 12 MONTHS ACTUAL  & 0 MONTHS ESTIMATED"},null,null,null,null,null,null,null,null,{"$f":"\"PAGE \"&Pages2-13&\" OF \"&Pages2","v":"PAGE 2 OF 15"}]
[{"$f":"type","v":"TYPE OF FILING: \"X\" ORIGINAL   UPDATED    REVISED  "}]
[]
[]
["LINE",null,null,null,null,"TOTAL","CLASSIFIED",null,null,"TOTAL","ALL"]
["NO.","GROSS ELECTRIC PLANT IN SERVICE",null,"ALLO",null,{"$f":"$F$9","v":"EH SECONDARY"},{"$f":"G9","v":"DEMAND"},"ENERGY","CUSTOMER","AT ISSUE","OTHER"]
[null,null,"Schedule 2",null,null,null,3,4,5,null," "]
[1,"PRODUCTION PLANT"]
[2,null,"PRODUCTION STEAM",{"$f":"'FR-16(7)(v)-1 Functional'!D59","v":"K201"},null,{"$f":"'FR-16(7)(v)-14 TOTAL CLASS'!J59","v":4285297},{"$f":"'FR-16(7)(v)-3 PROD Demand'!J59+'FR-16(7)(v)-7 TRANS Demand'!J59+'FR-16(7)(v)-11 DIST Demand'!J59","v":4285297},{"$f":"'FR-16(7)(v)-4 PROD Energy'!J59+'FR-16(7)(v)-8 TRANS Energy'!J59+'FR-16(7)(v)-12 DIST Energy'!J59","v":0},{"$f":"'FR-16(7)(v)-5 PROD Cust'!J59+'FR-16(7)(v)-9 TRANS Cust'!J59+'FR-16(7)(v)-13 DIST Cust'!J59","v":0},{"$f":"SUM(G59:I59)","v":4285297},{"$f":"F59-J59","v":0}]
[3,null,"PRODUCTION OTHER",{"$f":"'FR-16(7)(v)-1 Functional'!D60","v":"K201"},null,{"$f":"'FR-16(7)(v)-14 TOTAL CLASS'!J60","v":1915809},{"$f":"'FR-16(7)(v)-3 PROD Demand'!J60+'FR-16(7)(v)-7 TRANS Demand'!J60+'FR-16(7)(v)-11 DIST Demand'!J60","v":1915809},{"$f":"'FR-16(7)(v)-4 PROD Energy'!J60+'FR-16(7)(v)-8 TRANS Energy'!J60+'FR-16(7)(v)-12 DIST Energy'!J60","v":0},{"$f":"'FR-16(7)(v)-5 PROD Cust'!J60+'FR-16(7)(v)-9 TRANS Cust'!J60+'FR-16(7)(v)-13 DIST Cust'!J60","v":0},{"$f":"SUM(G60:I60)","v":1915809},{"$f":"F60-J60","v":0}]
[4,null,{"$f":"'FR-16(7)(v)-1 Functional'!C61","v":"ADJUSTMENT"},{"$f":"'FR-16(7)(v)-1 Functional'!D61","v":"K201"},null,{"$f":"'FR-16(7)(v)-14 TOTAL CLASS'!J61","v":0},{"$f":"'FR-16(7)(v)-3 PROD Demand'!J61+'FR-16(7)(v)-7 TRANS Demand'!J61+'FR-16(7)(v)-11 DIST Demand'!J61","v":0},{"$f":"'FR-16(7)(v)-4 PROD Energy'!J61+'FR-16(7)(v)-8 TRANS Energy'!J61+'FR-16(7)(v)-12 DIST Energy'!J61","v":0},{"$f":"'FR-16(7)(v)-5 PROD Cust'!J61+'FR-16(7)(v)-9 TRANS Cust'!J61+'FR-16(7)(v)-13 DIST Cust'!J61","v":0},{"$f":"SUM(G61:I61)","v":0},{"$f":"F61-J61","v":0}]
[5,null,{"$f":"'FR-16(7)(v)-1 Functional'!C62","v":"  PRODUCTION PLANT IN SERVICE"},null,null,{"$f":"SUM(F59:F61)","v":6201106},6201106,0,0,6201106,0]
[6]
[7,"TRANSMISSION PLANT"]
[8,null,"MAIN STEP-UP TRANSFORMERS",{"$f":"'FR-16(7)(v)-1 Functional'!D65","v":"K202"},null,{"$f":"'FR-16(7)(v)-14 TOTAL CLASS'!J65","v":0},{"$f":"'FR-16(7)(v)-3 PROD Demand'!J65+'FR-16(7)(v)-7 TRANS Demand'!J65+'FR-16(7)(v)-11 DIST Demand'!J65","v":0},{"$f":"'FR-16(7)(v)-4 PROD Energy'!J65+'FR-16(7)(v)-8 TRANS Energy'!J65+'FR-16(7)(v)-12 DIST Energy'!J65","v":0},{"$f":"'FR-16(7)(v)-5 PROD Cust'!J65+'FR-16(7)(v)-9 TRANS Cust'!J65+'FR-16(7)(v)-13 DIST Cust'!J65","v":0},{"$f":"SUM(G65:I65)","v":0},{"$f":"F65-J65","v":0}]
[9,null,"OTHER TRANSMISSION",{"$f":"'FR-16(7)(v)-1 Functional'!D66","v":"K202"},null,{"$f":"'FR-16(7)(v)-14 TOTAL CLASS'!J66","v":371267},{"$f":"'FR-16(7)(v)-3 PROD Demand'!J66+'FR-16(7)(v)-7 TRANS Demand'!J66+'FR-16(7)(v)-11 DIST Demand'!J66","v":371267},{"$f":"'FR-16(7)(v)-4 PROD Energy'!J66+'FR-16(7)(v)-8 TRANS Energy'!J66+'FR-16(7)(v)-12 DIST Energy'!J66","v":0},{"$f":"'FR-16(7)(v)-5 PROD Cust'!J66+'FR-16(7)(v)-9 TRANS Cust'!J66+'FR-16(7)(v)-13 DIST Cust'!J66","v":0},{"$f":"SUM(G66:I66)","v":371267},{"$f":"F66-J66","v":0}]
[10,null,"ADJUSTMENT",{"$f":"'FR-16(7)(v)-1 Functional'!D67","v":"K202"},null,{"$f":"'FR-16(7)(v)-14 TOTAL CLASS'!J67","v":0},{"$f":"'FR-16(7)(v)-3 PROD Demand'!J67+'FR-16(7)(v)-7 TRANS Demand'!J67+'FR-16(7)(v)-11 DIST Demand'!J67","v":0},{"$f":"'FR-16(7)(v)-4 PROD Energy'!J67+'FR-16(7)(v)-8 TRANS Energy'!J67+'FR-16(7)(v)-12 DIST Energy'!J67","v":0},{"$f":"'FR-16(7)(v)-5 PROD Cust'!J67+'FR-16(7)(v)-9 TRANS Cust'!J67+'FR-16(7)(v)-13 DIST Cust'!J67","v":0},{"$f":"SUM(G67:I67)","v":0},{"$f":"F67-J67","v":0}]
[11,null,{"$f":"'FR-16(7)(v)-1 Functional'!C68","v":"  TRANSMISSION PLANT IN SERVICE"},null,null,{"$f":"SUM(F65:F67)","v":371267},371267,0,0,371267,0]
[12]
[13,"TOTAL PROD & TRANS PLANT",null,null,null,{"$f":"F68+F62","v":6572373},6572373,0,0,6572373,0]
[14]
[15,"DISTRIBUTION PLANT"]
[16,null,{"$f":"'FR-16(7)(v)-1 Functional'!C73","v":"SUBSTATIONS"},{"$f":"'FR-16(7)(v)-1 Functional'!D73","v":"K215"},null,{"$f":"'FR-16(7)(v)-14 TOTAL CLASS'!J73","v":553136},{"$f":"'FR-16(7)(v)-3 PROD Demand'!J73+'FR-16(7)(v)-7 TRANS Demand'!J73+'FR-16(7)(v)-11 DIST Demand'!J73","v":553136},{"$f":"'FR-16(7)(v)-4 PROD Energy'!J73+'FR-16(7)(v)-8 TRANS Energy'!J73+'FR-16(7)(v)-12 DIST Energy'!J73","v":0},{"$f":"'FR-16(7)(v)-5 PROD Cust'!J73+'FR-16(7)(v)-9 TRANS Cust'!J73+'FR-16(7)(v)-13 DIST Cust'!J73","v":0},{"$f":"SUM(G73:I73)","v":553136},{"$f":"F73-J73","v":0}]
[17,null,{"$f":"'FR-16(7)(v)-1 Functional'!C74","v":"POLES, TOWERS  & FIXTURES - PRIMARY - DEMAND"},{"$f":"'FR-16(7)(v)-1 Functional'!D74","v":"K205"},null,{"$f":"'FR-16(7)(v)-14 TOTAL CLASS'!J74","v":200701},{"$f":"'FR-16(7)(v)-3 PROD Demand'!J74+'FR-16(7)(v)-7 TRANS Demand'!J74+'FR-16(7)(v)-11 DIST Demand'!J74","v":200701},{"$f":"'FR-16(7)(v)-4 PROD Energy'!J74+'FR-16(7)(v)-8 TRANS Energy'!J74+'FR-16(7)(v)-12 DIST Energy'!J74","v":0},{"$f":"'FR-16(7)(v)-5 PROD Cust'!J74+'FR-16(7)(v)-9 TRANS Cust'!J74+'FR-16(7)(v)-13 DIST Cust'!J74","v":0},{"$f":"SUM(G74:I74)","v":200701},{"$f":"F74-J74","v":0}]
[18,null,{"$f":"'FR-16(7)(v)-1 Functional'!C75","v":"POLES, TOWERS  & FIXTURES - PRIMARY - CUSTOMER"},{"$f":"'FR-16(7)(v)-1 Functional'!D75","v":"K405"},null,{"$f":"'FR-16(7)(v)-14 TOTAL CLASS'!J75","v":10877},{"$f":"'FR-16(7)(v)-3 PROD Demand'!J75+'FR-16(7)(v)-7 TRANS Demand'!J75+'FR-16(7)(v)-11 DIST Demand'!J75","v":0},{"$f":"'FR-16(7)(v)-4 PROD Energy'!J75+'FR-16(7)(v)-8 TRANS Energy'!J75+'FR-16(7)(v)-12 DIST Energy'!J75","v":0},{"$f":"'FR-16(7)(v)-5 PROD Cust'!J75+'FR-16(7)(v)-9 TRANS Cust'!J75+'FR-16(7)(v)-13 DIST Cust'!J75","v":10877},{"$f":"SUM(G75:I75)","v":10877},{"$f":"F75-J75","v":0}]
[19,null,{"$f":"'FR-16(7)(v)-1 Functional'!C76","v":"POLES, TOWERS  & FIXTURES - SECONDARY - DEMAND"},{"$f":"'FR-16(7)(v)-1 Functional'!D76","v":"K206"},null,{"$f":"'FR-16(7)(v)-14 TOTAL CLASS'!J76","v":76755},{"$f":"'FR-16(7)(v)-3 PROD Demand'!J76+'FR-16(7)(v)-7 TRANS Demand'!J76+'FR-16(7)(v)-11 DIST Demand'!J76","v":76755},{"$f":"'FR-16(7)(v)-4 PROD Energy'!J76+'FR-16(7)(v)-8 TRANS Energy'!J76+'FR-16(7)(v)-12 DIST Energy'!J76","v":0},{"$f":"'FR-16(7)(v)-5 PROD Cust'!J76+'FR-16(7)(v)-9 TRANS Cust'!J76+'FR-16(7)(v)-13 DIST Cust'!J76","v":0},76755,0]
[20,null,{"$f":"'FR-16(7)(v)-1 Functional'!C77","v":"POLES, TOWERS  & FIXTURES - SECONDARY - CUSTOMER"},{"$f":"'FR-16(7)(v)-1 Functional'!D77","v":"K405"},null,{"$f":"'FR-16(7)(v)-14 TOTAL CLASS'!J77","v":2459},{"$f":"'FR-16(7)(v)-3 PROD Demand'!J77+'FR-16(7)(v)-7 TRANS Demand'!J77+'FR-16(7)(v)-11 DIST Demand'!J77","v":0},{"$f":"'FR-16(7)(v)-4 PROD Energy'!J77+'FR-16(7)(v)-8 TRANS Energy'!J77+'FR-16(7)(v)-12 DIST Energy'!J77","v":0},{"$f":"'FR-16(7)(v)-5 PROD Cust'!J77+'FR-16(7)(v)-9 TRANS Cust'!J77+'FR-16(7)(v)-13 DIST Cust'!J77","v":2459},2459,0]
[21,null,{"$f":"'FR-16(7)(v)-1 Functional'!C78","v":"CONDUCTORS - OVERHEAD / PRIMARY - DEMAND"},{"$f":"'FR-16(7)(v)-1 Functional'!D78","v":"K205"},null,{"$f":"'FR-16(7)(v)-14 TOTAL CLASS'!J78","v":457355},{"$f":"'FR-16(7)(v)-3 PROD Demand'!J78+'FR-16(7)(v)-7 TRANS Demand'!J78+'FR-16(7)(v)-11 DIST Demand'!J78","v":457355},{"$f":"'FR-16(7)(v)-4 PROD Energy'!J78+'FR-16(7)(v)-8 TRANS Energy'!J78+'FR-16(7)(v)-12 DIST Energy'!J78","v":0},{"$f":"'FR-16(7)(v)-5 PROD Cust'!J78+'FR-16(7)(v)-9 TRANS Cust'!J78+'FR-16(7)(v)-13 DIST Cust'!J78","v":0},457355,0]
[22,null,{"$f":"'FR-16(7)(v)-1 Functional'!C79","v":"CONDUCTORS - OVERHEAD / PRIMARY - CUSTOMER"},{"$f":"'FR-16(7)(v)-1 Functional'!D79","v":"K405"},null,{"$f":"'FR-16(7)(v)-14 TOTAL CLASS'!J79","v":11827},{"$f":"'FR-16(7)(v)-3 PROD Demand'!J79+'FR-16(7)(v)-7 TRANS Demand'!J79+'FR-16(7)(v)-11 DIST Demand'!J79","v":0},{"$f":"'FR-16(7)(v)-4 PROD Energy'!J79+'FR-16(7)(v)-8 TRANS Energy'!J79+'FR-16(7)(v)-12 DIST Energy'!J79","v":0},{"$f":"'FR-16(7)(v)-5 PROD Cust'!J79+'FR-16(7)(v)-9 TRANS Cust'!J79+'FR-16(7)(v)-13 DIST Cust'!J79","v":11827},11827,0]
[23,null,{"$f":"'FR-16(7)(v)-1 Functional'!C80","v":"CONDUCTORS - OVERHEAD / SECONDARY - DEMAND"},{"$f":"'FR-16(7)(v)-1 Functional'!D80","v":"K206"},null,{"$f":"'FR-16(7)(v)-14 TOTAL CLASS'!J80","v":186230},{"$f":"'FR-16(7)(v)-3 PROD Demand'!J80+'FR-16(7)(v)-7 TRANS Demand'!J80+'FR-16(7)(v)-11 DIST Demand'!J80","v":186230},{"$f":"'FR-16(7)(v)-4 PROD Energy'!J80+'FR-16(7)(v)-8 TRANS Energy'!J80+'FR-16(7)(v)-12 DIST Energy'!J80","v":0},{"$f":"'FR-16(7)(v)-5 PROD Cust'!J80+'FR-16(7)(v)-9 TRANS Cust'!J80+'FR-16(7)(v)-13 DIST Cust'!J80","v":0},186230,0]
[24,null,{"$f":"'FR-16(7)(v)-1 Functional'!C81","v":"CONDUCTORS - OVERHEAD / SECONDARY - CUSTOMER"},{"$f":"'FR-16(7)(v)-1 Functional'!D81","v":"K405"},null,{"$f":"'FR-16(7)(v)-14 TOTAL CLASS'!J81","v":4899},{"$f":"'FR-16(7)(v)-3 PROD Demand'!J81+'FR-16(7)(v)-7 TRANS Demand'!J81+'FR-16(7)(v)-11 DIST Demand'!J81","v":0},{"$f":"'FR-16(7)(v)-4 PROD Energy'!J81+'FR-16(7)(v)-8 TRANS Energy'!J81+'FR-16(7)(v)-12 DIST Energy'!J81","v":0},{"$f":"'FR-16(7)(v)-5 PROD Cust'!J81+'FR-16(7)(v)-9 TRANS Cust'!J81+'FR-16(7)(v)-13 DIST Cust'!J81","v":4899},4899,0]
[25,null,{"$f":"'FR-16(7)(v)-1 Functional'!C82","v":"CONDUCTORS - UNDERGROUND / PRIMARY - DEMAND"},{"$f":"'FR-16(7)(v)-1 Functional'!D82","v":"K205"},null,{"$f":"'FR-16(7)(v)-14 TOTAL CLASS'!J82","v":341339},{"$f":"'FR-16(7)(v)-3 PROD Demand'!J82+'FR-16(7)(v)-7 TRANS Demand'!J82+'FR-16(7)(v)-11 DIST Demand'!J82","v":341339},{"$f":"'FR-16(7)(v)-4 PROD Energy'!J82+'FR-16(7)(v)-8 TRANS Energy'!J82+'FR-16(7)(v)-12 DIST Energy'!J82","v":0},{"$f":"'FR-16(7)(v)-5 PROD Cust'!J82+'FR-16(7)(v)-9 TRANS Cust'!J82+'FR-16(7)(v)-13 DIST Cust'!J82","v":0},341339,0]
[26,null,{"$f":"'FR-16(7)(v)-1 Functional'!C83","v":"CONDUCTORS - UNDERGROUND / PRIMARY - CUSTOMER"},{"$f":"'FR-16(7)(v)-1 Functional'!D83","v":"K405"},null,{"$f":"'FR-16(7)(v)-14 TOTAL CLASS'!J83","v":12553},{"$f":"'FR-16(7)(v)-3 PROD Demand'!J83+'FR-16(7)(v)-7 TRANS Demand'!J83+'FR-16(7)(v)-11 DIST Demand'!J83","v":0},{"$f":"'FR-16(7)(v)-4 PROD Energy'!J83+'FR-16(7)(v)-8 TRANS Energy'!J83+'FR-16(7)(v)-12 DIST Energy'!J83","v":0},{"$f":"'FR-16(7)(v)-5 PROD Cust'!J83+'FR-16(7)(v)-9 TRANS Cust'!J83+'FR-16(7)(v)-13 DIST Cust'!J83","v":12553},12553,0]
[27,null,{"$f":"'FR-16(7)(v)-1 Functional'!C84","v":"CONDUCTORS - UNDERGROUND / SECONDARY - DEMAND"},{"$f":"'FR-16(7)(v)-1 Functional'!D84","v":"K206"},null,{"$f":"'FR-16(7)(v)-14 TOTAL CLASS'!J84","v":58476},{"$f":"'FR-16(7)(v)-3 PROD Demand'!J84+'FR-16(7)(v)-7 TRANS Demand'!J84+'FR-16(7)(v)-11 DIST Demand'!J84","v":58476},{"$f":"'FR-16(7)(v)-4 PROD Energy'!J84+'FR-16(7)(v)-8 TRANS Energy'!J84+'FR-16(7)(v)-12 DIST Energy'!J84","v":0},{"$f":"'FR-16(7)(v)-5 PROD Cust'!J84+'FR-16(7)(v)-9 TRANS Cust'!J84+'FR-16(7)(v)-13 DIST Cust'!J84","v":0},58476,0]
[28,null,{"$f":"'FR-16(7)(v)-1 Functional'!C85","v":"CONDUCTORS - UNDERGROUND / SECONDARY - CUSTOMER"},{"$f":"'FR-16(7)(v)-1 Functional'!D85","v":"K405"},null,{"$f":"'FR-16(7)(v)-14 TOTAL CLASS'!J85","v":3925},{"$f":"'FR-16(7)(v)-3 PROD Demand'!J85+'FR-16(7)(v)-7 TRANS Demand'!J85+'FR-16(7)(v)-11 DIST Demand'!J85","v":0},{"$f":"'FR-16(7)(v)-4 PROD Energy'!J85+'FR-16(7)(v)-8 TRANS Energy'!J85+'FR-16(7)(v)-12 DIST Energy'!J85","v":0},{"$f":"'FR-16(7)(v)-5 PROD Cust'!J85+'FR-16(7)(v)-9 TRANS Cust'!J85+'FR-16(7)(v)-13 DIST Cust'!J85","v":3925},3925,0]
[29,null,{"$f":"'FR-16(7)(v)-1 Functional'!C86","v":"TRANSFORMERS DEMAND RELATED"},{"$f":"'FR-16(7)(v)-1 Functional'!D86","v":"K215"},null,{"$f":"'FR-16(7)(v)-14 TOTAL CLASS'!J86","v":286466},{"$f":"'FR-16(7)(v)-3 PROD Demand'!J86+'FR-16(7)(v)-7 TRANS Demand'!J86+'FR-16(7)(v)-11 DIST Demand'!J86","v":286466},{"$f":"'FR-16(7)(v)-4 PROD Energy'!J86+'FR-16(7)(v)-8 TRANS Energy'!J86+'FR-16(7)(v)-12 DIST Energy'!J86","v":0},{"$f":"'FR-16(7)(v)-5 PROD Cust'!J86+'FR-16(7)(v)-9 TRANS Cust'!J86+'FR-16(7)(v)-13 DIST Cust'!J86","v":0},{"$f":"SUM(G86:I86)","v":286466},{"$f":"F86-J86","v":0}]
[30,null,{"$f":"'FR-16(7)(v)-1 Functional'!C87","v":"TRANSFORMERS CUSTOMER RELATED"},{"$f":"'FR-16(7)(v)-1 Functional'!D87","v":"K405"},null,{"$f":"'FR-16(7)(v)-14 TOTAL CLASS'!J87","v":11024},{"$f":"'FR-16(7)(v)-3 PROD Demand'!J87+'FR-16(7)(v)-7 TRANS Demand'!J87+'FR-16(7)(v)-11 DIST Demand'!J87","v":0},{"$f":"'FR-16(7)(v)-4 PROD Energy'!J87+'FR-16(7)(v)-8 TRANS Energy'!J87+'FR-16(7)(v)-12 DIST Energy'!J87","v":0},{"$f":"'FR-16(7)(v)-5 PROD Cust'!J87+'FR-16(7)(v)-9 TRANS Cust'!J87+'FR-16(7)(v)-13 DIST Cust'!J87","v":11024},11024,0]
[31,null,{"$f":"'FR-16(7)(v)-1 Functional'!C88","v":"SERVICES"},{"$f":"'FR-16(7)(v)-1 Functional'!D88","v":"K217"},null,{"$f":"'FR-16(7)(v)-14 TOTAL CLASS'!J88","v":60708},{"$f":"'FR-16(7)(v)-3 PROD Demand'!J88+'FR-16(7)(v)-7 TRANS Demand'!J88+'FR-16(7)(v)-11 DIST Demand'!J88","v":0},{"$f":"'FR-16(7)(v)-4 PROD Energy'!J88+'FR-16(7)(v)-8 TRANS Energy'!J88+'FR-16(7)(v)-12 DIST Energy'!J88","v":0},{"$f":"'FR-16(7)(v)-5 PROD Cust'!J88+'FR-16(7)(v)-9 TRANS Cust'!J88+'FR-16(7)(v)-13 DIST Cust'!J88","v":60708},60708,0]
[32,null,{"$f":"'FR-16(7)(v)-1 Functional'!C89","v":"METERS"},{"$f":"'FR-16(7)(v)-1 Functional'!D89","v":"K407"},null,{"$f":"'FR-16(7)(v)-14 TOTAL CLASS'!J89","v":31603},{"$f":"'FR-16(7)(v)-3 PROD Demand'!J89+'FR-16(7)(v)-7 TRANS Demand'!J89+'FR-16(7)(v)-11 DIST Demand'!J89","v":0},{"$f":"'FR-16(7)(v)-4 PROD Energy'!J89+'FR-16(7)(v)-8 TRANS Energy'!J89+'FR-16(7)(v)-12 DIST Energy'!J89","v":0},{"$f":"'FR-16(7)(v)-5 PROD Cust'!J89+'FR-16(7)(v)-9 TRANS Cust'!J89+'FR-16(7)(v)-13 DIST Cust'!J89","v":31603},31603,0]
[33,null,{"$f":"'FR-16(7)(v)-1 Functional'!C90","v":"STREET LIGHTS"},{"$f":"'FR-16(7)(v)-1 Functional'!D90","v":"K401"},null,{"$f":"'FR-16(7)(v)-14 TOTAL CLASS'!J90","v":0},{"$f":"'FR-16(7)(v)-3 PROD Demand'!J90+'FR-16(7)(v)-7 TRANS Demand'!J90+'FR-16(7)(v)-11 DIST Demand'!J90","v":0},{"$f":"'FR-16(7)(v)-4 PROD Energy'!J90+'FR-16(7)(v)-8 TRANS Energy'!J90+'FR-16(7)(v)-12 DIST Energy'!J90","v":0},{"$f":"'FR-16(7)(v)-5 PROD Cust'!J90+'FR-16(7)(v)-9 TRANS Cust'!J90+'FR-16(7)(v)-13 DIST Cust'!J90","v":0},0,0]
[34,null,{"$f":"'FR-16(7)(v)-1 Functional'!C91","v":"ADJUSTMENT  "},{"$f":"'FR-16(7)(v)-1 Functional'!D91","v":"K209"},null,{"$f":"'FR-16(7)(v)-14 TOTAL CLASS'!J91","v":0},{"$f":"'FR-16(7)(v)-3 PROD Demand'!J91+'FR-16(7)(v)-7 TRANS Demand'!J91+'FR-16(7)(v)-11 DIST Demand'!J91","v":0},{"$f":"'FR-16(7)(v)-4 PROD Energy'!J91+'FR-16(7)(v)-8 TRANS Energy'!J91+'FR-16(7)(v)-12 DIST Energy'!J91","v":0},{"$f":"'FR-16(7)(v)-5 PROD Cust'!J91+'FR-16(7)(v)-9 TRANS Cust'!J91+'FR-16(7)(v)-13 DIST Cust'!J91","v":0},0,0]
[35,null,{"$f":"'FR-16(7)(v)-1 Functional'!C92","v":"CONSTRUCTION NOT CLASSIFIED"},{"$f":"'FR-16(7)(v)-1 Functional'!D92","v":"K209"},null,{"$f":"'FR-16(7)(v)-14 TOTAL CLASS'!J92","v":451378},{"$f":"'FR-16(7)(v)-3 PROD Demand'!J92+'FR-16(7)(v)-7 TRANS Demand'!J92+'FR-16(7)(v)-11 DIST Demand'!J92","v":422066},{"$f":"'FR-16(7)(v)-4 PROD Energy'!J92+'FR-16(7)(v)-8 TRANS Energy'!J92+'FR-16(7)(v)-12 DIST Energy'!J92","v":0},{"$f":"'FR-16(7)(v)-5 PROD Cust'!J92+'FR-16(7)(v)-9 TRANS Cust'!J92+'FR-16(7)(v)-13 DIST Cust'!J92","v":29312},451378,0]
[36,null,{"$f":"'FR-16(7)(v)-1 Functional'!C93","v":"RWIP"},{"$f":"'FR-16(7)(v)-1 Functional'!D93","v":"K215"},null,{"$f":"'FR-16(7)(v)-14 TOTAL CLASS'!J93","v":0},{"$f":"'FR-16(7)(v)-3 PROD Demand'!J93+'FR-16(7)(v)-7 TRANS Demand'!J93+'FR-16(7)(v)-11 DIST Demand'!J93","v":0},{"$f":"'FR-16(7)(v)-4 PROD Energy'!J93+'FR-16(7)(v)-8 TRANS Energy'!J93+'FR-16(7)(v)-12 DIST Energy'!J93","v":0},{"$f":"'FR-16(7)(v)-5 PROD Cust'!J93+'FR-16(7)(v)-9 TRANS Cust'!J93+'FR-16(7)(v)-13 DIST Cust'!J93","v":0},{"$f":"SUM(G93:I93)","v":0},{"$f":"F93-J93","v":0}]
[37,null,{"$f":"'FR-16(7)(v)-1 Functional'!C94","v":"  DISTRIBUTION PLANT IN SERVICE"},null,null,{"$f":"SUM(F73:F93)","v":2761711},{"$f":"SUM(G73:G92)","v":2582524},0,179187,2761711,0]
[38]
[39,"TOTAL TRANS & DIST PLANT",null,null,null,{"$f":"F94+F68","v":3132978},2953791,0,179187,3132978,0]
[40,"TOTAL GROSS PTD PLANT",null,null,null,{"$f":"F94+F70","v":9334084},9154897,0,179187,9334084,0]
[41]
[42,"GENERAL & INTANGIBLE PLANT"]
[43,null,{"$f":"'FR-16(7)(v)-1 Functional'!C100","v":"PRODUCTION - DEMAND"},{"$f":"'FR-16(7)(v)-1 Functional'!D100","v":"K201"},null,{"$f":"'FR-16(7)(v)-14 TOTAL CLASS'!J100","v":85692},{"$f":"'FR-16(7)(v)-3 PROD Demand'!J100+'FR-16(7)(v)-7 TRANS Demand'!J100+'FR-16(7)(v)-11 DIST Demand'!J100","v":85692},{"$f":"'FR-16(7)(v)-4 PROD Energy'!J100+'FR-16(7)(v)-8 TRANS Energy'!J100+'FR-16(7)(v)-12 DIST Energy'!J100","v":0},{"$f":"'FR-16(7)(v)-5 PROD Cust'!J100+'FR-16(7)(v)-9 TRANS Cust'!J100+'FR-16(7)(v)-13 DIST Cust'!J100","v":0},{"$f":"SUM(G100:I100)","v":85692},{"$f":"F100-J100","v":0}]
[44,null,{"$f":"'FR-16(7)(v)-1 Functional'!C101","v":"PRODUCTION - ENERGY"},{"$f":"'FR-16(7)(v)-1 Functional'!D101","v":"K301"},null,{"$f":"'FR-16(7)(v)-14 TOTAL CLASS'!J101","v":83536},{"$f":"'FR-16(7)(v)-3 PROD Demand'!J101+'FR-16(7)(v)-7 TRANS Demand'!J101+'FR-16(7)(v)-11 DIST Demand'!J101","v":0},{"$f":"'FR-16(7)(v)-4 PROD Energy'!J101+'FR-16(7)(v)-8 TRANS Energy'!J101+'FR-16(7)(v)-12 DIST Energy'!J101","v":83536},{"$f":"'FR-16(7)(v)-5 PROD Cust'!J101+'FR-16(7)(v)-9 TRANS Cust'!J101+'FR-16(7)(v)-13 DIST Cust'!J101","v":0},{"$f":"SUM(G101:I101)","v":83536},{"$f":"F101-J101","v":0}]
[45,null,{"$f":"'FR-16(7)(v)-1 Functional'!C102","v":"TRANSMISSION"},{"$f":"'FR-16(7)(v)-1 Functional'!D102","v":"K202"},null,{"$f":"'FR-16(7)(v)-14 TOTAL CLASS'!J102","v":13541},{"$f":"'FR-16(7)(v)-3 PROD Demand'!J102+'FR-16(7)(v)-7 TRANS Demand'!J102+'FR-16(7)(v)-11 DIST Demand'!J102","v":13541},{"$f":"'FR-16(7)(v)-4 PROD Energy'!J102+'FR-16(7)(v)-8 TRANS Energy'!J102+'FR-16(7)(v)-12 DIST Energy'!J102","v":0},{"$f":"'FR-16(7)(v)-5 PROD Cust'!J102+'FR-16(7)(v)-9 TRANS Cust'!J102+'FR-16(7)(v)-13 DIST Cust'!J102","v":0},13541,0]
[46,null,{"$f":"'FR-16(7)(v)-1 Functional'!C103","v":"DISTRIBUTION - DEMAND"},{"$f":"'FR-16(7)(v)-1 Functional'!D103","v":"K201"},null,{"$f":"'FR-16(7)(v)-14 TOTAL CLASS'!J103","v":45479},{"$f":"'FR-16(7)(v)-3 PROD Demand'!J103+'FR-16(7)(v)-7 TRANS Demand'!J103+'FR-16(7)(v)-11 DIST Demand'!J103","v":45479},{"$f":"'FR-16(7)(v)-4 PROD Energy'!J103+'FR-16(7)(v)-8 TRANS Energy'!J103+'FR-16(7)(v)-12 DIST Energy'!J103","v":0},{"$f":"'FR-16(7)(v)-5 PROD Cust'!J103+'FR-16(7)(v)-9 TRANS Cust'!J103+'FR-16(7)(v)-13 DIST Cust'!J103","v":0},45479,0]
[47,null,{"$f":"'FR-16(7)(v)-1 Functional'!C104","v":"DISTRIBUTION - CUSTOMER"},{"$f":"'FR-16(7)(v)-1 Functional'!D104","v":"K405"},null,{"$f":"'FR-16(7)(v)-14 TOTAL CLASS'!J104","v":1401},{"$f":"'FR-16(7)(v)-3 PROD Demand'!J104+'FR-16(7)(v)-7 TRANS Demand'!J104+'FR-16(7)(v)-11 DIST Demand'!J104","v":0},{"$f":"'FR-16(7)(v)-4 PROD Energy'!J104+'FR-16(7)(v)-8 TRANS Energy'!J104+'FR-16(7)(v)-12 DIST Energy'!J104","v":0},{"$f":"'FR-16(7)(v)-5 PROD Cust'!J104+'FR-16(7)(v)-9 TRANS Cust'!J104+'FR-16(7)(v)-13 DIST Cust'!J104","v":1401},1401,0]
[48,null,{"$f":"'FR-16(7)(v)-1 Functional'!C105","v":"CUSTOMER ACCOUNTING"},{"$f":"'FR-16(7)(v)-1 Functional'!D105","v":"A308"},null,{"$f":"'FR-16(7)(v)-14 TOTAL CLASS'!J105","v":9132},{"$f":"'FR-16(7)(v)-3 PROD Demand'!J105+'FR-16(7)(v)-7 TRANS Demand'!J105+'FR-16(7)(v)-11 DIST Demand'!J105","v":0},{"$f":"'FR-16(7)(v)-4 PROD Energy'!J105+'FR-16(7)(v)-8 TRANS Energy'!J105+'FR-16(7)(v)-12 DIST Energy'!J105","v":0},{"$f":"'FR-16(7)(v)-5 PROD Cust'!J105+'FR-16(7)(v)-9 TRANS Cust'!J105+'FR-16(7)(v)-13 DIST Cust'!J105","v":9132},9132,0]
[49,null,{"$f":"'FR-16(7)(v)-1 Functional'!C106","v":"CUSTOMER SERVICE & INFORMATION"},{"$f":"'FR-16(7)(v)-1 Functional'!D106","v":"A310"},null,{"$f":"'FR-16(7)(v)-14 TOTAL CLASS'!J106","v":312},{"$f":"'FR-16(7)(v)-3 PROD Demand'!J106+'FR-16(7)(v)-7 TRANS Demand'!J106+'FR-16(7)(v)-11 DIST Demand'!J106","v":0},{"$f":"'FR-16(7)(v)-4 PROD Energy'!J106+'FR-16(7)(v)-8 TRANS Energy'!J106+'FR-16(7)(v)-12 DIST Energy'!J106","v":0},{"$f":"'FR-16(7)(v)-5 PROD Cust'!J106+'FR-16(7)(v)-9 TRANS Cust'!J106+'FR-16(7)(v)-13 DIST Cust'!J106","v":312},312,0]
[50,null,{"$f":"'FR-16(7)(v)-1 Functional'!C107","v":"SALES"},{"$f":"'FR-16(7)(v)-1 Functional'!D107","v":"A312"},null,{"$f":"'FR-16(7)(v)-14 TOTAL CLASS'!J107","v":0},{"$f":"'FR-16(7)(v)-3 PROD Demand'!J107+'FR-16(7)(v)-7 TRANS Demand'!J107+'FR-16(7)(v)-11 DIST Demand'!J107","v":0},{"$f":"'FR-16(7)(v)-4 PROD Energy'!J107+'FR-16(7)(v)-8 TRANS Energy'!J107+'FR-16(7)(v)-12 DIST Energy'!J107","v":0},{"$f":"'FR-16(7)(v)-5 PROD Cust'!J107+'FR-16(7)(v)-9 TRANS Cust'!J107+'FR-16(7)(v)-13 DIST Cust'!J107","v":0},0,0]
[51,null,{"$f":"'FR-16(7)(v)-1 Functional'!C108","v":"ADJUSTMENT"},{"$f":"'FR-16(7)(v)-1 Functional'!D108","v":"A315"},null,{"$f":"'FR-16(7)(v)-14 TOTAL CLASS'!J108","v":0},{"$f":"'FR-16(7)(v)-3 PROD Demand'!J108+'FR-16(7)(v)-7 TRANS Demand'!J108+'FR-16(7)(v)-11 DIST Demand'!J108","v":0},{"$f":"'FR-16(7)(v)-4 PROD Energy'!J108+'FR-16(7)(v)-8 TRANS Energy'!J108+'FR-16(7)(v)-12 DIST Energy'!J108","v":0},{"$f":"'FR-16(7)(v)-5 PROD Cust'!J108+'FR-16(7)(v)-9 TRANS Cust'!J108+'FR-16(7)(v)-13 DIST Cust'!J108","v":0},0,0]
[52,null,{"$f":"'FR-16(7)(v)-1 Functional'!C109","v":"  GEN & INTANG PLANT IN SERVICE"},null,null,{"$f":"SUM(F100:F108)","v":239093},144712,83536,10845,239093,0]
[53]
[54,"COMMON & OTHER PLANT"]
[55,null,{"$f":"'FR-16(7)(v)-1 Functional'!C112","v":"PRODUCTION - DEMAND"},{"$f":"'FR-16(7)(v)-1 Functional'!D112","v":"K201"},null,{"$f":"'FR-16(7)(v)-14 TOTAL CLASS'!J112","v":48500},{"$f":"'FR-16(7)(v)-3 PROD Demand'!J112+'FR-16(7)(v)-7 TRANS Demand'!J112+'FR-16(7)(v)-11 DIST Demand'!J112","v":48500},{"$f":"'FR-16(7)(v)-4 PROD Energy'!J112+'FR-16(7)(v)-8 TRANS Energy'!J112+'FR-16(7)(v)-12 DIST Energy'!J112","v":0},{"$f":"'FR-16(7)(v)-5 PROD Cust'!J112+'FR-16(7)(v)-9 TRANS Cust'!J112+'FR-16(7)(v)-13 DIST Cust'!J112","v":0},{"$f":"SUM(G112:I112)","v":48500},{"$f":"F112-J112","v":0}]
[56,null,{"$f":"'FR-16(7)(v)-1 Functional'!C113","v":"PRODUCTION - ENERGY"},{"$f":"'FR-16(7)(v)-1 Functional'!D113","v":"K301"},null,{"$f":"'FR-16(7)(v)-14 TOTAL CLASS'!J113","v":47280},{"$f":"'FR-16(7)(v)-3 PROD Demand'!J113+'FR-16(7)(v)-7 TRANS Demand'!J113+'FR-16(7)(v)-11 DIST Demand'!J113","v":0},{"$f":"'FR-16(7)(v)-4 PROD Energy'!J113+'FR-16(7)(v)-8 TRANS Energy'!J113+'FR-16(7)(v)-12 DIST Energy'!J113","v":47280},{"$f":"'FR-16(7)(v)-5 PROD Cust'!J113+'FR-16(7)(v)-9 TRANS Cust'!J113+'FR-16(7)(v)-13 DIST Cust'!J113","v":0},{"$f":"SUM(G113:I113)","v":47280},{"$f":"F113-J113","v":0}]
[57,null,{"$f":"'FR-16(7)(v)-1 Functional'!C114","v":"TRANSMISSION"},{"$f":"'FR-16(7)(v)-1 Functional'!D114","v":"K202"},null,{"$f":"'FR-16(7)(v)-14 TOTAL CLASS'!J114","v":7664},{"$f":"'FR-16(7)(v)-3 PROD Demand'!J114+'FR-16(7)(v)-7 TRANS Demand'!J114+'FR-16(7)(v)-11 DIST Demand'!J114","v":7664},{"$f":"'FR-16(7)(v)-4 PROD Energy'!J114+'FR-16(7)(v)-8 TRANS Energy'!J114+'FR-16(7)(v)-12 DIST Energy'!J114","v":0},{"$f":"'FR-16(7)(v)-5 PROD Cust'!J114+'FR-16(7)(v)-9 TRANS Cust'!J114+'FR-16(7)(v)-13 DIST Cust'!J114","v":0},7664,0]
[58,null,{"$f":"'FR-16(7)(v)-1 Functional'!C115","v":"DISTRIBUTION - DEMAND"},{"$f":"'FR-16(7)(v)-1 Functional'!D115","v":"K201"},null,{"$f":"'FR-16(7)(v)-14 TOTAL CLASS'!J115","v":25741},{"$f":"'FR-16(7)(v)-3 PROD Demand'!J115+'FR-16(7)(v)-7 TRANS Demand'!J115+'FR-16(7)(v)-11 DIST Demand'!J115","v":25741},{"$f":"'FR-16(7)(v)-4 PROD Energy'!J115+'FR-16(7)(v)-8 TRANS Energy'!J115+'FR-16(7)(v)-12 DIST Energy'!J115","v":0},{"$f":"'FR-16(7)(v)-5 PROD Cust'!J115+'FR-16(7)(v)-9 TRANS Cust'!J115+'FR-16(7)(v)-13 DIST Cust'!J115","v":0},25741,0]
[59,null,{"$f":"'FR-16(7)(v)-1 Functional'!C116","v":"DISTRIBUTION - CUSTOMER"},{"$f":"'FR-16(7)(v)-1 Functional'!D116","v":"K405"},null,{"$f":"'FR-16(7)(v)-14 TOTAL CLASS'!J116","v":793},{"$f":"'FR-16(7)(v)-3 PROD Demand'!J116+'FR-16(7)(v)-7 TRANS Demand'!J116+'FR-16(7)(v)-11 DIST Demand'!J116","v":0},{"$f":"'FR-16(7)(v)-4 PROD Energy'!J116+'FR-16(7)(v)-8 TRANS Energy'!J116+'FR-16(7)(v)-12 DIST Energy'!J116","v":0},{"$f":"'FR-16(7)(v)-5 PROD Cust'!J116+'FR-16(7)(v)-9 TRANS Cust'!J116+'FR-16(7)(v)-13 DIST Cust'!J116","v":793},793,0]
[60,null,{"$f":"'FR-16(7)(v)-1 Functional'!C117","v":"CUSTOMER ACCOUNTING"},{"$f":"'FR-16(7)(v)-1 Functional'!D117","v":"A308"},null,{"$f":"'FR-16(7)(v)-14 TOTAL CLASS'!J117","v":5168},{"$f":"'FR-16(7)(v)-3 PROD Demand'!J117+'FR-16(7)(v)-7 TRANS Demand'!J117+'FR-16(7)(v)-11 DIST Demand'!J117","v":0},{"$f":"'FR-16(7)(v)-4 PROD Energy'!J117+'FR-16(7)(v)-8 TRANS Energy'!J117+'FR-16(7)(v)-12 DIST Energy'!J117","v":0},{"$f":"'FR-16(7)(v)-5 PROD Cust'!J117+'FR-16(7)(v)-9 TRANS Cust'!J117+'FR-16(7)(v)-13 DIST Cust'!J117","v":5168},5168,0]
[61,null,{"$f":"'FR-16(7)(v)-1 Functional'!C118","v":"CUSTOMER SERVICE & INFORMATION"},{"$f":"'FR-16(7)(v)-1 Functional'!D118","v":"A310"},null,{"$f":"'FR-16(7)(v)-14 TOTAL CLASS'!J118","v":176},{"$f":"'FR-16(7)(v)-3 PROD Demand'!J118+'FR-16(7)(v)-7 TRANS Demand'!J118+'FR-16(7)(v)-11 DIST Demand'!J118","v":0},{"$f":"'FR-16(7)(v)-4 PROD Energy'!J118+'FR-16(7)(v)-8 TRANS Energy'!J118+'FR-16(7)(v)-12 DIST Energy'!J118","v":0},{"$f":"'FR-16(7)(v)-5 PROD Cust'!J118+'FR-16(7)(v)-9 TRANS Cust'!J118+'FR-16(7)(v)-13 DIST Cust'!J118","v":176},176,0]
[62,null,{"$f":"'FR-16(7)(v)-1 Functional'!C119","v":"SALES"},{"$f":"'FR-16(7)(v)-1 Functional'!D119","v":"A312"},null,{"$f":"'FR-16(7)(v)-14 TOTAL CLASS'!J119","v":0},{"$f":"'FR-16(7)(v)-3 PROD Demand'!J119+'FR-16(7)(v)-7 TRANS Demand'!J119+'FR-16(7)(v)-11 DIST Demand'!J119","v":0},{"$f":"'FR-16(7)(v)-4 PROD Energy'!J119+'FR-16(7)(v)-8 TRANS Energy'!J119+'FR-16(7)(v)-12 DIST Energy'!J119","v":0},{"$f":"'FR-16(7)(v)-5 PROD Cust'!J119+'FR-16(7)(v)-9 TRANS Cust'!J119+'FR-16(7)(v)-13 DIST Cust'!J119","v":0},0,0]
[63,null,{"$f":"'FR-16(7)(v)-1 Functional'!C120","v":"ADJUSTMENT"},{"$f":"'FR-16(7)(v)-1 Functional'!D120","v":"A315"},null,{"$f":"'FR-16(7)(v)-14 TOTAL CLASS'!J120","v":0},{"$f":"'FR-16(7)(v)-3 PROD Demand'!J120+'FR-16(7)(v)-7 TRANS Demand'!J120+'FR-16(7)(v)-11 DIST Demand'!J120","v":0},{"$f":"'FR-16(7)(v)-4 PROD Energy'!J120+'FR-16(7)(v)-8 TRANS Energy'!J120+'FR-16(7)(v)-12 DIST Energy'!J120","v":0},{"$f":"'FR-16(7)(v)-5 PROD Cust'!J120+'FR-16(7)(v)-9 TRANS Cust'!J120+'FR-16(7)(v)-13 DIST Cust'!J120","v":0},0,0]
[64,null,{"$f":"'FR-16(7)(v)-1 Functional'!C121","v":"  COMMON & OTHER PLANT IN SERVICE"},null,null,{"$f":"SUM(F112:F120)","v":135322},81905,47280,6137,135322,0]
[65]
[66,"GROSS ELECTRIC PLANT IN SERVICE",null,null,null,{"$f":"F97+F109+F121","v":9708499},9381514,130816,196169,9708499,0]
[]
[{"$f":"co_name","v":"DUKE ENERGY KENTUCKY, INC."},null,null,null,null,null,null,null,null,{"$f":"J1","v":"FR-16(7)(v)-18"}]
[{"$f":"$A$2","v":"EH SECONDARY CLASSIFIED - ELECTRIC COST OF SERVICE"},null,null,null,null,null,null,null,null,{"$f":"J2","v":"WITNESS RESPONSIBLE:"}]
[{"$f":"case_name","v":"CASE NO: 2019-00271"},null,null,null,null,null,null,null,null,{"$f":"Witness","v":"JAMES E. ZIOLKOWSKI"}]
[{"$f":"data_filing","v":"DATA: 12 MONTHS ACTUAL  & 0 MONTHS ESTIMATED"},null,null,null,null,null,null,null,null,{"$f":"\"PAGE \"&Pages2-12&\" OF \"&Pages2","v":"PAGE 3 OF 15"}]
[{"$f":"type","v":"TYPE OF FILING: \"X\" ORIGINAL   UPDATED    REVISED  "}]
[]
[]
["LINE",null,null,null,null,"TOTAL","CLASSIFIED",null,null,"TOTAL","ALL"]
["NO.","DEPRECIATION RESERVE",null,"ALLO",null,{"$f":"$F$9","v":"EH SECONDARY"},{"$f":"G9","v":"DEMAND"},"ENERGY","CUSTOMER","AT ISSUE","OTHER"]
[null,null,"Schedule 3",null,null,null,3,4,5]
[1,"PRODUCTION PLANT"]
[2,null,{"$f":"'FR-16(7)(v)-1 Functional'!C136","v":"PRODUCTION STEAM"},{"$f":"'FR-16(7)(v)-1 Functional'!D136","v":"K201"},null,{"$f":"'FR-16(7)(v)-14 TOTAL CLASS'!J136","v":2057952},{"$f":"'FR-16(7)(v)-3 PROD Demand'!J136+'FR-16(7)(v)-7 TRANS Demand'!J136+'FR-16(7)(v)-11 DIST Demand'!J136","v":2057952},{"$f":"'FR-16(7)(v)-4 PROD Energy'!J136+'FR-16(7)(v)-8 TRANS Energy'!J136+'FR-16(7)(v)-12 DIST Energy'!J136","v":0},{"$f":"'FR-16(7)(v)-5 PROD Cust'!J136+'FR-16(7)(v)-9 TRANS Cust'!J136+'FR-16(7)(v)-13 DIST Cust'!J136","v":0},{"$f":"SUM(G136:I136)","v":2057952},{"$f":"F136-J136","v":0}]
[3,null,{"$f":"'FR-16(7)(v)-1 Functional'!C137","v":"PRODUCTION OTHER"},{"$f":"'FR-16(7)(v)-1 Functional'!D137","v":"K201"},null,{"$f":"'FR-16(7)(v)-14 TOTAL CLASS'!J137","v":945058},{"$f":"'FR-16(7)(v)-3 PROD Demand'!J137+'FR-16(7)(v)-7 TRANS Demand'!J137+'FR-16(7)(v)-11 DIST Demand'!J137","v":945058},{"$f":"'FR-16(7)(v)-4 PROD Energy'!J137+'FR-16(7)(v)-8 TRANS Energy'!J137+'FR-16(7)(v)-12 DIST Energy'!J137","v":0},{"$f":"'FR-16(7)(v)-5 PROD Cust'!J137+'FR-16(7)(v)-9 TRANS Cust'!J137+'FR-16(7)(v)-13 DIST Cust'!J137","v":0},{"$f":"SUM(G137:I137)","v":945058},{"$f":"F137-J137","v":0}]
[4,null,{"$f":"'FR-16(7)(v)-1 Functional'!C138","v":"ADJUSTMENT"},{"$f":"'FR-16(7)(v)-1 Functional'!D138","v":"K201"},null,{"$f":"'FR-16(7)(v)-14 TOTAL CLASS'!J138","v":7969},{"$f":"'FR-16(7)(v)-3 PROD Demand'!J138+'FR-16(7)(v)-7 TRANS Demand'!J138+'FR-16(7)(v)-11 DIST Demand'!J138","v":7969},{"$f":"'FR-16(7)(v)-4 PROD Energy'!J138+'FR-16(7)(v)-8 TRANS Energy'!J138+'FR-16(7)(v)-12 DIST Energy'!J138","v":0},{"$f":"'FR-16(7)(v)-5 PROD Cust'!J138+'FR-16(7)(v)-9 TRANS Cust'!J138+'FR-16(7)(v)-13 DIST Cust'!J138","v":0},{"$f":"SUM(G138:I138)","v":7969},{"$f":"F138-J138","v":0}]
[5,null,{"$f":"'FR-16(7)(v)-1 Functional'!C139","v":"  TOTAL PROD DEPREC RESERVE"},null,null,{"$f":"SUM(F136:F138)","v":3010979},3010979,0,0,3010979,0]
[6]
[7,"TRANSMISSION PLANT"]
[8,null,{"$f":"'FR-16(7)(v)-1 Functional'!C142","v":"MAIN STEP-UP TRANSFORMERS"},{"$f":"'FR-16(7)(v)-1 Functional'!D142","v":"K202"},null,{"$f":"'FR-16(7)(v)-14 TOTAL CLASS'!J142","v":0},{"$f":"'FR-16(7)(v)-3 PROD Demand'!J142+'FR-16(7)(v)-7 TRANS Demand'!J142+'FR-16(7)(v)-11 DIST Demand'!J142","v":0},{"$f":"'FR-16(7)(v)-4 PROD Energy'!J142+'FR-16(7)(v)-8 TRANS Energy'!J142+'FR-16(7)(v)-12 DIST Energy'!J142","v":0},{"$f":"'FR-16(7)(v)-5 PROD Cust'!J142+'FR-16(7)(v)-9 TRANS Cust'!J142+'FR-16(7)(v)-13 DIST Cust'!J142","v":0},{"$f":"SUM(G142:I142)","v":0},{"$f":"F142-J142","v":0}]
[9,null,{"$f":"'FR-16(7)(v)-1 Functional'!C143","v":"OTHER TRANSMISSION"},{"$f":"'FR-16(7)(v)-1 Functional'!D143","v":"K202"},null,{"$f":"'FR-16(7)(v)-14 TOTAL CLASS'!J143","v":102390},{"$f":"'FR-16(7)(v)-3 PROD Demand'!J143+'FR-16(7)(v)-7 TRANS Demand'!J143+'FR-16(7)(v)-11 DIST Demand'!J143","v":102390},{"$f":"'FR-16(7)(v)-4 PROD Energy'!J143+'FR-16(7)(v)-8 TRANS Energy'!J143+'FR-16(7)(v)-12 DIST Energy'!J143","v":0},{"$f":"'FR-16(7)(v)-5 PROD Cust'!J143+'FR-16(7)(v)-9 TRANS Cust'!J143+'FR-16(7)(v)-13 DIST Cust'!J143","v":0},{"$f":"SUM(G143:I143)","v":102390},{"$f":"F143-J143","v":0}]
[10,null,{"$f":"'FR-16(7)(v)-1 Functional'!C144","v":"ADJUSTMENT"},{"$f":"'FR-16(7)(v)-1 Functional'!D144","v":"K202"},null,{"$f":"'FR-16(7)(v)-14 TOTAL CLASS'!J144","v":-360},{"$f":"'FR-16(7)(v)-3 PROD Demand'!J144+'FR-16(7)(v)-7 TRANS Demand'!J144+'FR-16(7)(v)-11 DIST Demand'!J144","v":-360},{"$f":"'FR-16(7)(v)-4 PROD Energy'!J144+'FR-16(7)(v)-8 TRANS Energy'!J144+'FR-16(7)(v)-12 DIST Energy'!J144","v":0},{"$f":"'FR-16(7)(v)-5 PROD Cust'!J144+'FR-16(7)(v)-9 TRANS Cust'!J144+'FR-16(7)(v)-13 DIST Cust'!J144","v":0},{"$f":"SUM(G144:I144)","v":-360},{"$f":"F144-J144","v":0}]
[11,null,{"$f":"'FR-16(7)(v)-1 Functional'!C145","v":"  TOTAL TRANS DEPREC RESERVE"},null,null,{"$f":"SUM(F142:F144)","v":102030},102030,0,0,102030,0]
[12]
[13,null,{"$f":"'FR-16(7)(v)-1 Functional'!C147","v":"TOTAL PROD & TRANS DEPREC RESERVE"},null,null,{"$f":"F145+F139","v":3113009},{"$f":"G145+G139","v":3113009},{"$f":"H145+H139","v":0},{"$f":"I145+I139","v":0},{"$f":"J145+J139","v":3113009},{"$f":"F147-J147","v":0}]
[14]
[15,"DISTRIBUTION PLANT"]
[16,null,{"$f":"'FR-16(7)(v)-1 Functional'!C150","v":"SUBSTATIONS"},{"$f":"'FR-16(7)(v)-1 Functional'!D150","v":"K215"},null,{"$f":"'FR-16(7)(v)-14 TOTAL CLASS'!J150","v":112382},{"$f":"'FR-16(7)(v)-3 PROD Demand'!J150+'FR-16(7)(v)-7 TRANS Demand'!J150+'FR-16(7)(v)-11 DIST Demand'!J150","v":112382},{"$f":"'FR-16(7)(v)-4 PROD Energy'!J150+'FR-16(7)(v)-8 TRANS Energy'!J150+'FR-16(7)(v)-12 DIST Energy'!J150","v":0},{"$f":"'FR-16(7)(v)-5 PROD Cust'!J150+'FR-16(7)(v)-9 TRANS Cust'!J150+'FR-16(7)(v)-13 DIST Cust'!J150","v":0},{"$f":"SUM(G150:I150)","v":112382},{"$f":"F150-J150","v":0}]
[17,null,{"$f":"'FR-16(7)(v)-1 Functional'!C151","v":"POLES, TOWERS  & FIXTURES - PRIMARY - DEMAND"},{"$f":"'FR-16(7)(v)-1 Functional'!D151","v":"K205"},null,{"$f":"'FR-16(7)(v)-14 TOTAL CLASS'!J151","v":91829},{"$f":"'FR-16(7)(v)-3 PROD Demand'!J151+'FR-16(7)(v)-7 TRANS Demand'!J151+'FR-16(7)(v)-11 DIST Demand'!J151","v":91829},{"$f":"'FR-16(7)(v)-4 PROD Energy'!J151+'FR-16(7)(v)-8 TRANS Energy'!J151+'FR-16(7)(v)-12 DIST Energy'!J151","v":0},{"$f":"'FR-16(7)(v)-5 PROD Cust'!J151+'FR-16(7)(v)-9 TRANS Cust'!J151+'FR-16(7)(v)-13 DIST Cust'!J151","v":0},{"$f":"SUM(G151:I151)","v":91829},{"$f":"F151-J151","v":0}]
[18,null,{"$f":"'FR-16(7)(v)-1 Functional'!C152","v":"POLES, TOWERS  & FIXTURES - PRIMARY - CUSTOMER"},{"$f":"'FR-16(7)(v)-1 Functional'!D152","v":"K405"},null,{"$f":"'FR-16(7)(v)-14 TOTAL CLASS'!J152","v":4977},{"$f":"'FR-16(7)(v)-3 PROD Demand'!J152+'FR-16(7)(v)-7 TRANS Demand'!J152+'FR-16(7)(v)-11 DIST Demand'!J152","v":0},{"$f":"'FR-16(7)(v)-4 PROD Energy'!J152+'FR-16(7)(v)-8 TRANS Energy'!J152+'FR-16(7)(v)-12 DIST Energy'!J152","v":0},{"$f":"'FR-16(7)(v)-5 PROD Cust'!J152+'FR-16(7)(v)-9 TRANS Cust'!J152+'FR-16(7)(v)-13 DIST Cust'!J152","v":4977},{"$f":"SUM(G152:I152)","v":4977},{"$f":"F152-J152","v":0}]
[19,null,{"$f":"'FR-16(7)(v)-1 Functional'!C153","v":"POLES, TOWERS  & FIXTURES - SECONDARY - DEMAND"},{"$f":"'FR-16(7)(v)-1 Functional'!D153","v":"K206"},null,{"$f":"'FR-16(7)(v)-14 TOTAL CLASS'!J153","v":35118},{"$f":"'FR-16(7)(v)-3 PROD Demand'!J153+'FR-16(7)(v)-7 TRANS Demand'!J153+'FR-16(7)(v)-11 DIST Demand'!J153","v":35118},{"$f":"'FR-16(7)(v)-4 PROD Energy'!J153+'FR-16(7)(v)-8 TRANS Energy'!J153+'FR-16(7)(v)-12 DIST Energy'!J153","v":0},{"$f":"'FR-16(7)(v)-5 PROD Cust'!J153+'FR-16(7)(v)-9 TRANS Cust'!J153+'FR-16(7)(v)-13 DIST Cust'!J153","v":0},35118,0]
[20,null,{"$f":"'FR-16(7)(v)-1 Functional'!C154","v":"POLES, TOWERS  & FIXTURES - SECONDARY - CUSTOMER"},{"$f":"'FR-16(7)(v)-1 Functional'!D154","v":"K405"},null,{"$f":"'FR-16(7)(v)-14 TOTAL CLASS'!J154","v":1125},{"$f":"'FR-16(7)(v)-3 PROD Demand'!J154+'FR-16(7)(v)-7 TRANS Demand'!J154+'FR-16(7)(v)-11 DIST Demand'!J154","v":0},{"$f":"'FR-16(7)(v)-4 PROD Energy'!J154+'FR-16(7)(v)-8 TRANS Energy'!J154+'FR-16(7)(v)-12 DIST Energy'!J154","v":0},{"$f":"'FR-16(7)(v)-5 PROD Cust'!J154+'FR-16(7)(v)-9 TRANS Cust'!J154+'FR-16(7)(v)-13 DIST Cust'!J154","v":1125},1125,0]
[21,null,{"$f":"'FR-16(7)(v)-1 Functional'!C155","v":"CONDUCTORS - OVERHEAD / PRIMARY - DEMAND"},{"$f":"'FR-16(7)(v)-1 Functional'!D155","v":"K205"},null,{"$f":"'FR-16(7)(v)-14 TOTAL CLASS'!J155","v":136378},{"$f":"'FR-16(7)(v)-3 PROD Demand'!J155+'FR-16(7)(v)-7 TRANS Demand'!J155+'FR-16(7)(v)-11 DIST Demand'!J155","v":136378},{"$f":"'FR-16(7)(v)-4 PROD Energy'!J155+'FR-16(7)(v)-8 TRANS Energy'!J155+'FR-16(7)(v)-12 DIST Energy'!J155","v":0},{"$f":"'FR-16(7)(v)-5 PROD Cust'!J155+'FR-16(7)(v)-9 TRANS Cust'!J155+'FR-16(7)(v)-13 DIST Cust'!J155","v":0},136378,0]
[22,null,{"$f":"'FR-16(7)(v)-1 Functional'!C156","v":"CONDUCTORS - OVERHEAD / PRIMARY - CUSTOMER"},{"$f":"'FR-16(7)(v)-1 Functional'!D156","v":"K405"},null,{"$f":"'FR-16(7)(v)-14 TOTAL CLASS'!J156","v":3527},{"$f":"'FR-16(7)(v)-3 PROD Demand'!J156+'FR-16(7)(v)-7 TRANS Demand'!J156+'FR-16(7)(v)-11 DIST Demand'!J156","v":0},{"$f":"'FR-16(7)(v)-4 PROD Energy'!J156+'FR-16(7)(v)-8 TRANS Energy'!J156+'FR-16(7)(v)-12 DIST Energy'!J156","v":0},{"$f":"'FR-16(7)(v)-5 PROD Cust'!J156+'FR-16(7)(v)-9 TRANS Cust'!J156+'FR-16(7)(v)-13 DIST Cust'!J156","v":3527},3527,0]
[23,null,{"$f":"'FR-16(7)(v)-1 Functional'!C157","v":"CONDUCTORS - OVERHEAD / SECONDARY - DEMAND"},{"$f":"'FR-16(7)(v)-1 Functional'!D157","v":"K206"},null,{"$f":"'FR-16(7)(v)-14 TOTAL CLASS'!J157","v":55531},{"$f":"'FR-16(7)(v)-3 PROD Demand'!J157+'FR-16(7)(v)-7 TRANS Demand'!J157+'FR-16(7)(v)-11 DIST Demand'!J157","v":55531},{"$f":"'FR-16(7)(v)-4 PROD Energy'!J157+'FR-16(7)(v)-8 TRANS Energy'!J157+'FR-16(7)(v)-12 DIST Energy'!J157","v":0},{"$f":"'FR-16(7)(v)-5 PROD Cust'!J157+'FR-16(7)(v)-9 TRANS Cust'!J157+'FR-16(7)(v)-13 DIST Cust'!J157","v":0},55531,0]
[24,null,{"$f":"'FR-16(7)(v)-1 Functional'!C158","v":"CONDUCTORS - OVERHEAD / SECONDARY - CUSTOMER"},{"$f":"'FR-16(7)(v)-1 Functional'!D158","v":"K405"},null,{"$f":"'FR-16(7)(v)-14 TOTAL CLASS'!J158","v":1461},{"$f":"'FR-16(7)(v)-3 PROD Demand'!J158+'FR-16(7)(v)-7 TRANS Demand'!J158+'FR-16(7)(v)-11 DIST Demand'!J158","v":0},{"$f":"'FR-16(7)(v)-4 PROD Energy'!J158+'FR-16(7)(v)-8 TRANS Energy'!J158+'FR-16(7)(v)-12 DIST Energy'!J158","v":0},{"$f":"'FR-16(7)(v)-5 PROD Cust'!J158+'FR-16(7)(v)-9 TRANS Cust'!J158+'FR-16(7)(v)-13 DIST Cust'!J158","v":1461},1461,0]
[25,null,{"$f":"'FR-16(7)(v)-1 Functional'!C159","v":"CONDUCTORS - UNDERGROUND / PRIMARY - DEMAND"},{"$f":"'FR-16(7)(v)-1 Functional'!D159","v":"K205"},null,{"$f":"'FR-16(7)(v)-14 TOTAL CLASS'!J159","v":100966},{"$f":"'FR-16(7)(v)-3 PROD Demand'!J159+'FR-16(7)(v)-7 TRANS Demand'!J159+'FR-16(7)(v)-11 DIST Demand'!J159","v":100966},{"$f":"'FR-16(7)(v)-4 PROD Energy'!J159+'FR-16(7)(v)-8 TRANS Energy'!J159+'FR-16(7)(v)-12 DIST Energy'!J159","v":0},{"$f":"'FR-16(7)(v)-5 PROD Cust'!J159+'FR-16(7)(v)-9 TRANS Cust'!J159+'FR-16(7)(v)-13 DIST Cust'!J159","v":0},100966,0]
[26,null,{"$f":"'FR-16(7)(v)-1 Functional'!C160","v":"CONDUCTORS - UNDERGROUND / PRIMARY - CUSTOMER"},{"$f":"'FR-16(7)(v)-1 Functional'!D160","v":"K405"},null,{"$f":"'FR-16(7)(v)-14 TOTAL CLASS'!J160","v":3713},{"$f":"'FR-16(7)(v)-3 PROD Demand'!J160+'FR-16(7)(v)-7 TRANS Demand'!J160+'FR-16(7)(v)-11 DIST Demand'!J160","v":0},{"$f":"'FR-16(7)(v)-4 PROD Energy'!J160+'FR-16(7)(v)-8 TRANS Energy'!J160+'FR-16(7)(v)-12 DIST Energy'!J160","v":0},{"$f":"'FR-16(7)(v)-5 PROD Cust'!J160+'FR-16(7)(v)-9 TRANS Cust'!J160+'FR-16(7)(v)-13 DIST Cust'!J160","v":3713},3713,0]
[27,null,{"$f":"'FR-16(7)(v)-1 Functional'!C161","v":"CONDUCTORS - UNDERGROUND / SECONDARY - DEMAND"},{"$f":"'FR-16(7)(v)-1 Functional'!D161","v":"K206"},null,{"$f":"'FR-16(7)(v)-14 TOTAL CLASS'!J161","v":17297},{"$f":"'FR-16(7)(v)-3 PROD Demand'!J161+'FR-16(7)(v)-7 TRANS Demand'!J161+'FR-16(7)(v)-11 DIST Demand'!J161","v":17297},{"$f":"'FR-16(7)(v)-4 PROD Energy'!J161+'FR-16(7)(v)-8 TRANS Energy'!J161+'FR-16(7)(v)-12 DIST Energy'!J161","v":0},{"$f":"'FR-16(7)(v)-5 PROD Cust'!J161+'FR-16(7)(v)-9 TRANS Cust'!J161+'FR-16(7)(v)-13 DIST Cust'!J161","v":0},17297,0]
[28,null,{"$f":"'FR-16(7)(v)-1 Functional'!C162","v":"CONDUCTORS - UNDERGROUND / SECONDARY - CUSTOMER"},{"$f":"'FR-16(7)(v)-1 Functional'!D162","v":"K405"},null,{"$f":"'FR-16(7)(v)-14 TOTAL CLASS'!J162","v":1161},{"$f":"'FR-16(7)(v)-3 PROD Demand'!J162+'FR-16(7)(v)-7 TRANS Demand'!J162+'FR-16(7)(v)-11 DIST Demand'!J162","v":0},{"$f":"'FR-16(7)(v)-4 PROD Energy'!J162+'FR-16(7)(v)-8 TRANS Energy'!J162+'FR-16(7)(v)-12 DIST Energy'!J162","v":0},{"$f":"'FR-16(7)(v)-5 PROD Cust'!J162+'FR-16(7)(v)-9 TRANS Cust'!J162+'FR-16(7)(v)-13 DIST Cust'!J162","v":1161},1161,0]
[29,null,{"$f":"'FR-16(7)(v)-1 Functional'!C163","v":"TRANSFORMERS DEMAND RELATED"},{"$f":"'FR-16(7)(v)-1 Functional'!D163","v":"K215"},null,{"$f":"'FR-16(7)(v)-14 TOTAL CLASS'!J163","v":124677},{"$f":"'FR-16(7)(v)-3 PROD Demand'!J163+'FR-16(7)(v)-7 TRANS Demand'!J163+'FR-16(7)(v)-11 DIST Demand'!J163","v":124677},{"$f":"'FR-16(7)(v)-4 PROD Energy'!J163+'FR-16(7)(v)-8 TRANS Energy'!J163+'FR-16(7)(v)-12 DIST Energy'!J163","v":0},{"$f":"'FR-16(7)(v)-5 PROD Cust'!J163+'FR-16(7)(v)-9 TRANS Cust'!J163+'FR-16(7)(v)-13 DIST Cust'!J163","v":0},{"$f":"SUM(G163:I163)","v":124677},{"$f":"F163-J163","v":0}]
[30,null,{"$f":"'FR-16(7)(v)-1 Functional'!C164","v":"TRANSFORMERS CUSTOMER RELATED"},{"$f":"'FR-16(7)(v)-1 Functional'!D164","v":"K405"},null,{"$f":"'FR-16(7)(v)-14 TOTAL CLASS'!J164","v":4798},{"$f":"'FR-16(7)(v)-3 PROD Demand'!J164+'FR-16(7)(v)-7 TRANS Demand'!J164+'FR-16(7)(v)-11 DIST Demand'!J164","v":0},{"$f":"'FR-16(7)(v)-4 PROD Energy'!J164+'FR-16(7)(v)-8 TRANS Energy'!J164+'FR-16(7)(v)-12 DIST Energy'!J164","v":0},{"$f":"'FR-16(7)(v)-5 PROD Cust'!J164+'FR-16(7)(v)-9 TRANS Cust'!J164+'FR-16(7)(v)-13 DIST Cust'!J164","v":4798},4798,0]
[31,null,{"$f":"'FR-16(7)(v)-1 Functional'!C165","v":"SERVICES"},{"$f":"'FR-16(7)(v)-1 Functional'!D165","v":"K217"},null,{"$f":"'FR-16(7)(v)-14 TOTAL CLASS'!J165","v":33346},{"$f":"'FR-16(7)(v)-3 PROD Demand'!J165+'FR-16(7)(v)-7 TRANS Demand'!J165+'FR-16(7)(v)-11 DIST Demand'!J165","v":0},{"$f":"'FR-16(7)(v)-4 PROD Energy'!J165+'FR-16(7)(v)-8 TRANS Energy'!J165+'FR-16(7)(v)-12 DIST Energy'!J165","v":0},{"$f":"'FR-16(7)(v)-5 PROD Cust'!J165+'FR-16(7)(v)-9 TRANS Cust'!J165+'FR-16(7)(v)-13 DIST Cust'!J165","v":33346},33346,0]
[32,null,{"$f":"'FR-16(7)(v)-1 Functional'!C166","v":"METERS"},{"$f":"'FR-16(7)(v)-1 Functional'!D166","v":"K407"},null,{"$f":"'FR-16(7)(v)-14 TOTAL CLASS'!J166","v":6953},{"$f":"'FR-16(7)(v)-3 PROD Demand'!J166+'FR-16(7)(v)-7 TRANS Demand'!J166+'FR-16(7)(v)-11 DIST Demand'!J166","v":0},{"$f":"'FR-16(7)(v)-4 PROD Energy'!J166+'FR-16(7)(v)-8 TRANS Energy'!J166+'FR-16(7)(v)-12 DIST Energy'!J166","v":0},{"$f":"'FR-16(7)(v)-5 PROD Cust'!J166+'FR-16(7)(v)-9 TRANS Cust'!J166+'FR-16(7)(v)-13 DIST Cust'!J166","v":6953},6953,0]
[33,null,{"$f":"'FR-16(7)(v)-1 Functional'!C167","v":"STREET LIGHTS"},{"$f":"'FR-16(7)(v)-1 Functional'!D167","v":"K401"},null,{"$f":"'FR-16(7)(v)-14 TOTAL CLASS'!J167","v":0},{"$f":"'FR-16(7)(v)-3 PROD Demand'!J167+'FR-16(7)(v)-7 TRANS Demand'!J167+'FR-16(7)(v)-11 DIST Demand'!J167","v":0},{"$f":"'FR-16(7)(v)-4 PROD Energy'!J167+'FR-16(7)(v)-8 TRANS Energy'!J167+'FR-16(7)(v)-12 DIST Energy'!J167","v":0},{"$f":"'FR-16(7)(v)-5 PROD Cust'!J167+'FR-16(7)(v)-9 TRANS Cust'!J167+'FR-16(7)(v)-13 DIST Cust'!J167","v":0},0,0]
[34,null,{"$f":"'FR-16(7)(v)-1 Functional'!C168","v":"ADJUSTMENT  "},{"$f":"'FR-16(7)(v)-1 Functional'!D168","v":"K209"},null,{"$f":"'FR-16(7)(v)-14 TOTAL CLASS'!J168","v":2227},{"$f":"'FR-16(7)(v)-3 PROD Demand'!J168+'FR-16(7)(v)-7 TRANS Demand'!J168+'FR-16(7)(v)-11 DIST Demand'!J168","v":2082},{"$f":"'FR-16(7)(v)-4 PROD Energy'!J168+'FR-16(7)(v)-8 TRANS Energy'!J168+'FR-16(7)(v)-12 DIST Energy'!J168","v":0},{"$f":"'FR-16(7)(v)-5 PROD Cust'!J168+'FR-16(7)(v)-9 TRANS Cust'!J168+'FR-16(7)(v)-13 DIST Cust'!J168","v":145},2227,0]
[35,null,{"$f":"'FR-16(7)(v)-1 Functional'!C169","v":"CONSTRUCTION NOT CLASSIFIED"},{"$f":"'FR-16(7)(v)-1 Functional'!D169","v":"K209"},null,{"$f":"'FR-16(7)(v)-14 TOTAL CLASS'!J169","v":7273},{"$f":"'FR-16(7)(v)-3 PROD Demand'!J169+'FR-16(7)(v)-7 TRANS Demand'!J169+'FR-16(7)(v)-11 DIST Demand'!J169","v":6801},{"$f":"'FR-16(7)(v)-4 PROD Energy'!J169+'FR-16(7)(v)-8 TRANS Energy'!J169+'FR-16(7)(v)-12 DIST Energy'!J169","v":0},{"$f":"'FR-16(7)(v)-5 PROD Cust'!J169+'FR-16(7)(v)-9 TRANS Cust'!J169+'FR-16(7)(v)-13 DIST Cust'!J169","v":472},7273,0]
[36,null,{"$f":"'FR-16(7)(v)-1 Functional'!C170","v":"RWIP"},{"$f":"'FR-16(7)(v)-1 Functional'!D170","v":"K215"},null,{"$f":"'FR-16(7)(v)-14 TOTAL CLASS'!J170","v":-104085},{"$f":"'FR-16(7)(v)-3 PROD Demand'!J170+'FR-16(7)(v)-7 TRANS Demand'!J170+'FR-16(7)(v)-11 DIST Demand'!J170","v":-104085},{"$f":"'FR-16(7)(v)-4 PROD Energy'!J170+'FR-16(7)(v)-8 TRANS Energy'!J170+'FR-16(7)(v)-12 DIST Energy'!J170","v":0},{"$f":"'FR-16(7)(v)-5 PROD Cust'!J170+'FR-16(7)(v)-9 TRANS Cust'!J170+'FR-16(7)(v)-13 DIST Cust'!J170","v":0},{"$f":"SUM(G170:I170)","v":-104085},{"$f":"F170-J170","v":0}]
[37,null,{"$f":"'FR-16(7)(v)-1 Functional'!C171","v":"  TOTAL DIST DEPREC RESERVE"},null,null,{"$f":"SUM(F149:F170)","v":640654},{"$f":"SUM(G149:G170)","v":578976},0,61678,640654,0]
[38]
[39,null,"TOTAL TRANS & DIST DEPREC RESERVE",null,null,{"$f":"F171+F145","v":742684},{"$f":"G171+G145","v":681006},{"$f":"H171+H145","v":0},{"$f":"I171+I145","v":61678},{"$f":"J171+J145","v":742684},{"$f":"F173-J173","v":0}]
[40,null,"TOTAL GROSS PTD PLANT DEPREC RESERVE",null,null,{"$f":"F147+F171","v":3753663},{"$f":"G147+G171","v":3691985},{"$f":"H147+H171","v":0},{"$f":"I147+I171","v":61678},{"$f":"J147+J171","v":3753663},{"$f":"F174-J174","v":0}]
[41]
[42,"GENERAL & INTANGIBLE PLANT"]
[43,null,{"$f":"'FR-16(7)(v)-1 Functional'!C177","v":"PRODUCTION - DEMAND"},{"$f":"'FR-16(7)(v)-1 Functional'!D177","v":"K201"},null,{"$f":"'FR-16(7)(v)-14 TOTAL CLASS'!J177","v":27615},{"$f":"'FR-16(7)(v)-3 PROD Demand'!J177+'FR-16(7)(v)-7 TRANS Demand'!J177+'FR-16(7)(v)-11 DIST Demand'!J177","v":27615},{"$f":"'FR-16(7)(v)-4 PROD Energy'!J177+'FR-16(7)(v)-8 TRANS Energy'!J177+'FR-16(7)(v)-12 DIST Energy'!J177","v":0},{"$f":"'FR-16(7)(v)-5 PROD Cust'!J177+'FR-16(7)(v)-9 TRANS Cust'!J177+'FR-16(7)(v)-13 DIST Cust'!J177","v":0},{"$f":"SUM(G177:I177)","v":27615},{"$f":"F177-J177","v":0}]
[44,null,{"$f":"'FR-16(7)(v)-1 Functional'!C178","v":"PRODUCTION - ENERGY"},{"$f":"'FR-16(7)(v)-1 Functional'!D178","v":"K301"},null,{"$f":"'FR-16(7)(v)-14 TOTAL CLASS'!J178","v":26920},{"$f":"'FR-16(7)(v)-3 PROD Demand'!J178+'FR-16(7)(v)-7 TRANS Demand'!J178+'FR-16(7)(v)-11 DIST Demand'!J178","v":0},{"$f":"'FR-16(7)(v)-4 PROD Energy'!J178+'FR-16(7)(v)-8 TRANS Energy'!J178+'FR-16(7)(v)-12 DIST Energy'!J178","v":26920},{"$f":"'FR-16(7)(v)-5 PROD Cust'!J178+'FR-16(7)(v)-9 TRANS Cust'!J178+'FR-16(7)(v)-13 DIST Cust'!J178","v":0},{"$f":"SUM(G178:I178)","v":26920},{"$f":"F178-J178","v":0}]
[45,null,{"$f":"'FR-16(7)(v)-1 Functional'!C179","v":"TRANSMISSION"},{"$f":"'FR-16(7)(v)-1 Functional'!D179","v":"K202"},null,{"$f":"'FR-16(7)(v)-14 TOTAL CLASS'!J179","v":4364},{"$f":"'FR-16(7)(v)-3 PROD Demand'!J179+'FR-16(7)(v)-7 TRANS Demand'!J179+'FR-16(7)(v)-11 DIST Demand'!J179","v":4364},{"$f":"'FR-16(7)(v)-4 PROD Energy'!J179+'FR-16(7)(v)-8 TRANS Energy'!J179+'FR-16(7)(v)-12 DIST Energy'!J179","v":0},{"$f":"'FR-16(7)(v)-5 PROD Cust'!J179+'FR-16(7)(v)-9 TRANS Cust'!J179+'FR-16(7)(v)-13 DIST Cust'!J179","v":0},4364,0]
[46,null,{"$f":"'FR-16(7)(v)-1 Functional'!C180","v":"DISTRIBUTION - DEMAND"},{"$f":"'FR-16(7)(v)-1 Functional'!D180","v":"K201"},null,{"$f":"'FR-16(7)(v)-14 TOTAL CLASS'!J180","v":14656},{"$f":"'FR-16(7)(v)-3 PROD Demand'!J180+'FR-16(7)(v)-7 TRANS Demand'!J180+'FR-16(7)(v)-11 DIST Demand'!J180","v":14656},{"$f":"'FR-16(7)(v)-4 PROD Energy'!J180+'FR-16(7)(v)-8 TRANS Energy'!J180+'FR-16(7)(v)-12 DIST Energy'!J180","v":0},{"$f":"'FR-16(7)(v)-5 PROD Cust'!J180+'FR-16(7)(v)-9 TRANS Cust'!J180+'FR-16(7)(v)-13 DIST Cust'!J180","v":0},14656,0]
[47,null,{"$f":"'FR-16(7)(v)-1 Functional'!C181","v":"DISTRIBUTION - CUSTOMER"},{"$f":"'FR-16(7)(v)-1 Functional'!D181","v":"K405"},null,{"$f":"'FR-16(7)(v)-14 TOTAL CLASS'!J181","v":452},{"$f":"'FR-16(7)(v)-3 PROD Demand'!J181+'FR-16(7)(v)-7 TRANS Demand'!J181+'FR-16(7)(v)-11 DIST Demand'!J181","v":0},{"$f":"'FR-16(7)(v)-4 PROD Energy'!J181+'FR-16(7)(v)-8 TRANS Energy'!J181+'FR-16(7)(v)-12 DIST Energy'!J181","v":0},{"$f":"'FR-16(7)(v)-5 PROD Cust'!J181+'FR-16(7)(v)-9 TRANS Cust'!J181+'FR-16(7)(v)-13 DIST Cust'!J181","v":452},452,0]
[48,null,{"$f":"'FR-16(7)(v)-1 Functional'!C182","v":"CUSTOMER ACCOUNTING"},{"$f":"'FR-16(7)(v)-1 Functional'!D182","v":"A308"},null,{"$f":"'FR-16(7)(v)-14 TOTAL CLASS'!J182","v":2943},{"$f":"'FR-16(7)(v)-3 PROD Demand'!J182+'FR-16(7)(v)-7 TRANS Demand'!J182+'FR-16(7)(v)-11 DIST Demand'!J182","v":0},{"$f":"'FR-16(7)(v)-4 PROD Energy'!J182+'FR-16(7)(v)-8 TRANS Energy'!J182+'FR-16(7)(v)-12 DIST Energy'!J182","v":0},{"$f":"'FR-16(7)(v)-5 PROD Cust'!J182+'FR-16(7)(v)-9 TRANS Cust'!J182+'FR-16(7)(v)-13 DIST Cust'!J182","v":2943},2943,0]
[49,null,{"$f":"'FR-16(7)(v)-1 Functional'!C183","v":"CUSTOMER SERVICE & INFORMATION"},{"$f":"'FR-16(7)(v)-1 Functional'!D183","v":"A310"},null,{"$f":"'FR-16(7)(v)-14 TOTAL CLASS'!J183","v":100},{"$f":"'FR-16(7)(v)-3 PROD Demand'!J183+'FR-16(7)(v)-7 TRANS Demand'!J183+'FR-16(7)(v)-11 DIST Demand'!J183","v":0},{"$f":"'FR-16(7)(v)-4 PROD Energy'!J183+'FR-16(7)(v)-8 TRANS Energy'!J183+'FR-16(7)(v)-12 DIST Energy'!J183","v":0},{"$f":"'FR-16(7)(v)-5 PROD Cust'!J183+'FR-16(7)(v)-9 TRANS Cust'!J183+'FR-16(7)(v)-13 DIST Cust'!J183","v":100},100,0]
[50,null,{"$f":"'FR-16(7)(v)-1 Functional'!C184","v":"SALES"},{"$f":"'FR-16(7)(v)-1 Functional'!D184","v":"A312"},null,{"$f":"'FR-16(7)(v)-14 TOTAL CLASS'!J184","v":0},{"$f":"'FR-16(7)(v)-3 PROD Demand'!J184+'FR-16(7)(v)-7 TRANS Demand'!J184+'FR-16(7)(v)-11 DIST Demand'!J184","v":0},{"$f":"'FR-16(7)(v)-4 PROD Energy'!J184+'FR-16(7)(v)-8 TRANS Energy'!J184+'FR-16(7)(v)-12 DIST Energy'!J184","v":0},{"$f":"'FR-16(7)(v)-5 PROD Cust'!J184+'FR-16(7)(v)-9 TRANS Cust'!J184+'FR-16(7)(v)-13 DIST Cust'!J184","v":0},0,0]
[51,null,{"$f":"'FR-16(7)(v)-1 Functional'!C185","v":"ADJUSTMENT"},{"$f":"'FR-16(7)(v)-1 Functional'!D185","v":"A315"},null,{"$f":"'FR-16(7)(v)-14 TOTAL CLASS'!J185","v":638},{"$f":"'FR-16(7)(v)-3 PROD Demand'!J185+'FR-16(7)(v)-7 TRANS Demand'!J185+'FR-16(7)(v)-11 DIST Demand'!J185","v":94},{"$f":"'FR-16(7)(v)-4 PROD Energy'!J185+'FR-16(7)(v)-8 TRANS Energy'!J185+'FR-16(7)(v)-12 DIST Energy'!J185","v":480},{"$f":"'FR-16(7)(v)-5 PROD Cust'!J185+'FR-16(7)(v)-9 TRANS Cust'!J185+'FR-16(7)(v)-13 DIST Cust'!J185","v":64},638,0]
[52,null,{"$f":"'FR-16(7)(v)-1 Functional'!C186","v":"  GENERAL & INTANG PLANT"},null,null,{"$f":"SUM(F176:F185)","v":77688},46729,27400,3559,77688,0]
[53]
[54,"COMMON & OTHER PLANT"]
[55,null,{"$f":"'FR-16(7)(v)-1 Functional'!C189","v":"PRODUCTION - DEMAND"},{"$f":"'FR-16(7)(v)-1 Functional'!D189","v":"K201"},null,{"$f":"'FR-16(7)(v)-14 TOTAL CLASS'!J189","v":37313},{"$f":"'FR-16(7)(v)-3 PROD Demand'!J189+'FR-16(7)(v)-7 TRANS Demand'!J189+'FR-16(7)(v)-11 DIST Demand'!J189","v":37313},{"$f":"'FR-16(7)(v)-4 PROD Energy'!J189+'FR-16(7)(v)-8 TRANS Energy'!J189+'FR-16(7)(v)-12 DIST Energy'!J189","v":0},{"$f":"'FR-16(7)(v)-5 PROD Cust'!J189+'FR-16(7)(v)-9 TRANS Cust'!J189+'FR-16(7)(v)-13 DIST Cust'!J189","v":0},{"$f":"SUM(G189:I189)","v":37313},{"$f":"F189-J189","v":0}]
[56,null,{"$f":"'FR-16(7)(v)-1 Functional'!C190","v":"PRODUCTION - ENERGY"},{"$f":"'FR-16(7)(v)-1 Functional'!D190","v":"K301"},null,{"$f":"'FR-16(7)(v)-14 TOTAL CLASS'!J190","v":36374},{"$f":"'FR-16(7)(v)-3 PROD Demand'!J190+'FR-16(7)(v)-7 TRANS Demand'!J190+'FR-16(7)(v)-11 DIST Demand'!J190","v":0},{"$f":"'FR-16(7)(v)-4 PROD Energy'!J190+'FR-16(7)(v)-8 TRANS Energy'!J190+'FR-16(7)(v)-12 DIST Energy'!J190","v":36374},{"$f":"'FR-16(7)(v)-5 PROD Cust'!J190+'FR-16(7)(v)-9 TRANS Cust'!J190+'FR-16(7)(v)-13 DIST Cust'!J190","v":0},{"$f":"SUM(G190:I190)","v":36374},{"$f":"F190-J190","v":0}]
[57,null,{"$f":"'FR-16(7)(v)-1 Functional'!C191","v":"TRANSMISSION"},{"$f":"'FR-16(7)(v)-1 Functional'!D191","v":"K202"},null,{"$f":"'FR-16(7)(v)-14 TOTAL CLASS'!J191","v":5896},{"$f":"'FR-16(7)(v)-3 PROD Demand'!J191+'FR-16(7)(v)-7 TRANS Demand'!J191+'FR-16(7)(v)-11 DIST Demand'!J191","v":5896},{"$f":"'FR-16(7)(v)-4 PROD Energy'!J191+'FR-16(7)(v)-8 TRANS Energy'!J191+'FR-16(7)(v)-12 DIST Energy'!J191","v":0},{"$f":"'FR-16(7)(v)-5 PROD Cust'!J191+'FR-16(7)(v)-9 TRANS Cust'!J191+'FR-16(7)(v)-13 DIST Cust'!J191","v":0},5896,0]
[58,null,{"$f":"'FR-16(7)(v)-1 Functional'!C192","v":"DISTRIBUTION - DEMAND"},{"$f":"'FR-16(7)(v)-1 Functional'!D192","v":"K201"},null,{"$f":"'FR-16(7)(v)-14 TOTAL CLASS'!J192","v":19803},{"$f":"'FR-16(7)(v)-3 PROD Demand'!J192+'FR-16(7)(v)-7 TRANS Demand'!J192+'FR-16(7)(v)-11 DIST Demand'!J192","v":19803},{"$f":"'FR-16(7)(v)-4 PROD Energy'!J192+'FR-16(7)(v)-8 TRANS Energy'!J192+'FR-16(7)(v)-12 DIST Energy'!J192","v":0},{"$f":"'FR-16(7)(v)-5 PROD Cust'!J192+'FR-16(7)(v)-9 TRANS Cust'!J192+'FR-16(7)(v)-13 DIST Cust'!J192","v":0},19803,0]
[59,null,{"$f":"'FR-16(7)(v)-1 Functional'!C193","v":"DISTRIBUTION - CUSTOMER"},{"$f":"'FR-16(7)(v)-1 Functional'!D193","v":"K405"},null,{"$f":"'FR-16(7)(v)-14 TOTAL CLASS'!J193","v":610},{"$f":"'FR-16(7)(v)-3 PROD Demand'!J193+'FR-16(7)(v)-7 TRANS Demand'!J193+'FR-16(7)(v)-11 DIST Demand'!J193","v":0},{"$f":"'FR-16(7)(v)-4 PROD Energy'!J193+'FR-16(7)(v)-8 TRANS Energy'!J193+'FR-16(7)(v)-12 DIST Energy'!J193","v":0},{"$f":"'FR-16(7)(v)-5 PROD Cust'!J193+'FR-16(7)(v)-9 TRANS Cust'!J193+'FR-16(7)(v)-13 DIST Cust'!J193","v":610},610,0]
[60,null,{"$f":"'FR-16(7)(v)-1 Functional'!C194","v":"CUSTOMER ACCOUNTING"},{"$f":"'FR-16(7)(v)-1 Functional'!D194","v":"A308"},null,{"$f":"'FR-16(7)(v)-14 TOTAL CLASS'!J194","v":3976},{"$f":"'FR-16(7)(v)-3 PROD Demand'!J194+'FR-16(7)(v)-7 TRANS Demand'!J194+'FR-16(7)(v)-11 DIST Demand'!J194","v":0},{"$f":"'FR-16(7)(v)-4 PROD Energy'!J194+'FR-16(7)(v)-8 TRANS Energy'!J194+'FR-16(7)(v)-12 DIST Energy'!J194","v":0},{"$f":"'FR-16(7)(v)-5 PROD Cust'!J194+'FR-16(7)(v)-9 TRANS Cust'!J194+'FR-16(7)(v)-13 DIST Cust'!J194","v":3976},3976,0]
[61,null,{"$f":"'FR-16(7)(v)-1 Functional'!C195","v":"CUSTOMER SERVICE & INFORMATION"},{"$f":"'FR-16(7)(v)-1 Functional'!D195","v":"A310"},null,{"$f":"'FR-16(7)(v)-14 TOTAL CLASS'!J195","v":136},{"$f":"'FR-16(7)(v)-3 PROD Demand'!J195+'FR-16(7)(v)-7 TRANS Demand'!J195+'FR-16(7)(v)-11 DIST Demand'!J195","v":0},{"$f":"'FR-16(7)(v)-4 PROD Energy'!J195+'FR-16(7)(v)-8 TRANS Energy'!J195+'FR-16(7)(v)-12 DIST Energy'!J195","v":0},{"$f":"'FR-16(7)(v)-5 PROD Cust'!J195+'FR-16(7)(v)-9 TRANS Cust'!J195+'FR-16(7)(v)-13 DIST Cust'!J195","v":136},136,0]
[62,null,{"$f":"'FR-16(7)(v)-1 Functional'!C196","v":"SALES"},{"$f":"'FR-16(7)(v)-1 Functional'!D196","v":"A312"},null,{"$f":"'FR-16(7)(v)-14 TOTAL CLASS'!J196","v":0},{"$f":"'FR-16(7)(v)-3 PROD Demand'!J196+'FR-16(7)(v)-7 TRANS Demand'!J196+'FR-16(7)(v)-11 DIST Demand'!J196","v":0},{"$f":"'FR-16(7)(v)-4 PROD Energy'!J196+'FR-16(7)(v)-8 TRANS Energy'!J196+'FR-16(7)(v)-12 DIST Energy'!J196","v":0},{"$f":"'FR-16(7)(v)-5 PROD Cust'!J196+'FR-16(7)(v)-9 TRANS Cust'!J196+'FR-16(7)(v)-13 DIST Cust'!J196","v":0},0,0]
[63,null,{"$f":"'FR-16(7)(v)-1 Functional'!C197","v":"ADJUSTMENT"},{"$f":"'FR-16(7)(v)-1 Functional'!D197","v":"A315"},null,{"$f":"'FR-16(7)(v)-14 TOTAL CLASS'!J197","v":36},{"$f":"'FR-16(7)(v)-3 PROD Demand'!J197+'FR-16(7)(v)-7 TRANS Demand'!J197+'FR-16(7)(v)-11 DIST Demand'!J197","v":5},{"$f":"'FR-16(7)(v)-4 PROD Energy'!J197+'FR-16(7)(v)-8 TRANS Energy'!J197+'FR-16(7)(v)-12 DIST Energy'!J197","v":27},{"$f":"'FR-16(7)(v)-5 PROD Cust'!J197+'FR-16(7)(v)-9 TRANS Cust'!J197+'FR-16(7)(v)-13 DIST Cust'!J197","v":4},36,0]
[64,null,{"$f":"'FR-16(7)(v)-1 Functional'!C198","v":"  COMMON & OTHER PLANT IN SERVICE"},null,null,{"$f":"SUM(F189:F197)","v":104144},{"$f":"SUM(G188:G197)","v":63017},{"$f":"SUM(H188:H197)","v":36401},{"$f":"SUM(I188:I197)","v":4726},{"$f":"SUM(J188:J197)","v":104144},{"$f":"SUM(K188:K197)","v":0}]
[65]
[66,"TOTAL DEPRECIATION RESERVE",null,null,null,{"$f":"F198+F186+F171+F145+F139","v":3935495},3801731,63801,69963,3935495,0]
[]
[{"$f":"co_name","v":"DUKE ENERGY KENTUCKY, INC."},null,null,null,null,null,null,null,null,{"$f":"J1","v":"FR-16(7)(v)-18"}]
[{"$f":"$A$2","v":"EH SECONDARY CLASSIFIED - ELECTRIC COST OF SERVICE"},null,null,null,null,null,null,null,null,{"$f":"J2","v":"WITNESS RESPONSIBLE:"}]
[{"$f":"case_name","v":"CASE NO: 2019-00271"},null,null,null,null,null,null,null,null,{"$f":"Witness","v":"JAMES E. ZIOLKOWSKI"}]
[{"$f":"data_filing","v":"DATA: 12 MONTHS ACTUAL  & 0 MONTHS ESTIMATED"},null,null,null,null,null,null,null,null,{"$f":"\"PAGE \"&Pages2-11&\" OF \"&Pages2","v":"PAGE 4 OF 15"}]
[{"$f":"type","v":"TYPE OF FILING: \"X\" ORIGINAL   UPDATED    REVISED  "}]
[]
[]
["LINE",null,null,null,null,"TOTAL","CLASSIFIED",null,null,"TOTAL","ALL"]
["NO.",{"$f":"\"NET ELECTRIC PLANT\"","v":"NET ELECTRIC PLANT"},null,"ALLO",null,{"$f":"$F$9","v":"EH SECONDARY"},{"$f":"G9","v":"DEMAND"},"ENERGY","CUSTOMER","AT ISSUE","OTHER"]
[null,null,"Schedule 4",null,null,null,3,4,5]
[1,"PRODUCTION PLANT"]
[2,null,{"$f":"'FR-16(7)(v)-1 Functional'!C213","v":"PRODUCTION STEAM"},null,null,{"$f":"F59-F136","v":2227345},2227345,0,0,2227345,0]
[3,null,{"$f":"'FR-16(7)(v)-1 Functional'!C214","v":"PRODUCTION OTHER"},null,null,{"$f":"F60-F137","v":970751},970751,0,0,970751,0]
[4,null,{"$f":"'FR-16(7)(v)-1 Functional'!C215","v":"ADJUSTMENT"},null,null,-7969,-7969,0,0,-7969,0]
[5,null,{"$f":"'FR-16(7)(v)-1 Functional'!C216","v":"  NET PRODUCTION PLANT"},null,null,{"$f":"SUM(F213:F215)","v":3190127},3190127,0,0,3190127,0]
[6]
[7,"TRANSMISSION PLANT"]
[8,null,{"$f":"'FR-16(7)(v)-1 Functional'!C219","v":"MAIN STEP-UP TRANSFORMERS"},null,null,{"$f":"F65-F142","v":0},0,0,0,0,0]
[9,null,{"$f":"'FR-16(7)(v)-1 Functional'!C220","v":"OTHER TRANSMISSION"},null,null,268877,268877,0,0,268877,0]
[10,null,{"$f":"'FR-16(7)(v)-1 Functional'!C221","v":"ADJUSTMENT"},null,null,360,360,0,0,360,0]
[11,null,{"$f":"'FR-16(7)(v)-1 Functional'!C222","v":"    NET TRANSMISSION PLANT"},null,null,{"$f":"SUM(F218:F221)","v":269237},269237,0,0,269237,0]
[12]
[13,"NET PROD & TRANS PLANT",null,null,null,{"$f":"F70-F147","v":3459364},3459364,0,0,3459364,0]
[14]
[15,"DISTRIBUTION PLANT"]
[16,null,{"$f":"'FR-16(7)(v)-1 Functional'!C227","v":"SUBSTATIONS"},null,null,{"$f":"F73-F150","v":440754},440754,0,0,440754,0]
[17,null,{"$f":"'FR-16(7)(v)-1 Functional'!C228","v":"POLES, TOWERS  & FIXTURES - PRIMARY - DEMAND"},null,null,108872,108872,0,0,108872,0]
[18,null,{"$f":"'FR-16(7)(v)-1 Functional'!C229","v":"POLES, TOWERS  & FIXTURES - PRIMARY - CUSTOMER"},null,null,{"$f":"F75-F152","v":5900},0,0,5900,5900,0]
[19,null,{"$f":"'FR-16(7)(v)-1 Functional'!C230","v":"POLES, TOWERS  & FIXTURES - SECONDARY - DEMAND"},null,null,{"$f":"F76-F153","v":41637},41637,0,0,41637,0]
[20,null,{"$f":"'FR-16(7)(v)-1 Functional'!C231","v":"POLES, TOWERS  & FIXTURES - SECONDARY - CUSTOMER"},null,null,{"$f":"F77-F154","v":1334},0,0,1334,1334,0]
[21,null,{"$f":"'FR-16(7)(v)-1 Functional'!C232","v":"CONDUCTORS - OVERHEAD / PRIMARY - DEMAND"},null,null,{"$f":"F78-F155","v":320977},320977,0,0,320977,0]
[22,null,{"$f":"'FR-16(7)(v)-1 Functional'!C233","v":"CONDUCTORS - OVERHEAD / PRIMARY - CUSTOMER"},null,null,{"$f":"F79-F156","v":8300},0,0,8300,8300,0]
[23,null,{"$f":"'FR-16(7)(v)-1 Functional'!C234","v":"CONDUCTORS - OVERHEAD / SECONDARY - DEMAND"},null,null,{"$f":"F80-F157","v":130699},130699,0,0,130699,0]
[24,null,{"$f":"'FR-16(7)(v)-1 Functional'!C235","v":"CONDUCTORS - OVERHEAD / SECONDARY - CUSTOMER"},null,null,{"$f":"F81-F158","v":3438},0,0,3438,3438,0]
[25,null,{"$f":"'FR-16(7)(v)-1 Functional'!C236","v":"CONDUCTORS - UNDERGROUND / PRIMARY - DEMAND"},null,null,{"$f":"F82-F159","v":240373},240373,0,0,240373,0]
[26,null,{"$f":"'FR-16(7)(v)-1 Functional'!C237","v":"CONDUCTORS - UNDERGROUND / PRIMARY - CUSTOMER"},null,null,{"$f":"F83-F160","v":8840},0,0,8840,8840,0]
[27,null,{"$f":"'FR-16(7)(v)-1 Functional'!C238","v":"CONDUCTORS - UNDERGROUND / SECONDARY - DEMAND"},null,null,{"$f":"F84-F161","v":41179},41179,0,0,41179,0]
[28,null,{"$f":"'FR-16(7)(v)-1 Functional'!C239","v":"CONDUCTORS - UNDERGROUND / SECONDARY - CUSTOMER"},null,null,{"$f":"F85-F162","v":2764},0,0,2764,2764,0]
[29,null,{"$f":"'FR-16(7)(v)-1 Functional'!C240","v":"TRANSFORMERS DEMAND RELATED"},null,null,{"$f":"F86-F163","v":161789},161789,0,0,161789,0]
[30,null,{"$f":"'FR-16(7)(v)-1 Functional'!C241","v":"TRANSFORMERS CUSTOMER RELATED"},null,null,6226,0,0,6226,6226,0]
[31,null,{"$f":"'FR-16(7)(v)-1 Functional'!C242","v":"SERVICES"},null,null,27362,0,0,27362,27362,0]
[32,null,{"$f":"'FR-16(7)(v)-1 Functional'!C243","v":"METERS"},null,null,24650,0,0,24650,24650,0]
[33,null,{"$f":"'FR-16(7)(v)-1 Functional'!C244","v":"STREET LIGHTS"},null,null,0,0,0,0,0,0]
[34,null,{"$f":"'FR-16(7)(v)-1 Functional'!C245","v":"ADJUSTMENT  "},null,null,-2227,-2082,0,-145,-2227,0]
[35,null,{"$f":"'FR-16(7)(v)-1 Functional'!C246","v":"CONSTRUCTION NOT CLASSIFIED"},null,null,444105,415265,0,28840,444105,0]
[36,null,{"$f":"'FR-16(7)(v)-1 Functional'!C247","v":"RWIP"},null,null,104085,104085,0,0,104085,0]
[37,null,{"$f":"'FR-16(7)(v)-1 Functional'!C248","v":"  NET DISTRIBUTION PLANT"},null,null,{"$f":"SUM(F226:F247)","v":2121057},{"$f":"SUM(G226:G247)","v":2003548},0,117509,2121057,0]
[38]
[39,"NET PTD PLANT",null,null,null,{"$f":"F96-F173","v":2390294},2272785,0,117509,2390294,0]
[40,"NET TRANS & DIST PLANT",null,null,null,5580421,5462912,0,117509,5580421,0]
[41]
[42,"GENERAL & INTANGIBLE PLANT"]
[43,null,{"$f":"'FR-16(7)(v)-1 Functional'!C254","v":"PRODUCTION - DEMAND"},null,null,{"$f":"F100-F177","v":58077},58077,0,0,58077,0]
[44,null,{"$f":"'FR-16(7)(v)-1 Functional'!C255","v":"PRODUCTION - ENERGY"},null,null,56616,0,56616,0,56616,0]
[45,null,{"$f":"'FR-16(7)(v)-1 Functional'!C256","v":"TRANSMISSION"},null,null,9177,9177,0,0,9177,0]
[46,null,{"$f":"'FR-16(7)(v)-1 Functional'!C257","v":"DISTRIBUTION - DEMAND"},null,null,30823,30823,0,0,30823,0]
[47,null,{"$f":"'FR-16(7)(v)-1 Functional'!C258","v":"DISTRIBUTION - CUSTOMER"}]
[48,null,{"$f":"'FR-16(7)(v)-1 Functional'!C259","v":"CUSTOMER ACCOUNTING"},null,null,{"$f":"F105-F182","v":6189},0,0,6189,6189,0]
[49,null,{"$f":"'FR-16(7)(v)-1 Functional'!C260","v":"CUSTOMER SERVICE & INFORMATION"},null,null,212,0,0,212,212,0]
[50,null,{"$f":"'FR-16(7)(v)-1 Functional'!C261","v":"SALES"},null,null,0,0,0,0,0,0]
[51,null,{"$f":"'FR-16(7)(v)-1 Functional'!C262","v":"ADJUSTMENT"},null,null,-638,-94,-480,-64,-638,0]
[52,null,{"$f":"'FR-16(7)(v)-1 Functional'!C263","v":"  NET GENERAL & INTANG PLANT"},null,null,{"$f":"SUM(F253:F262)","v":160456},97983,56136,6337,160456,0]
[53]
[54,"COMMON & OTHER PLANT"]
[55,null,{"$f":"'FR-16(7)(v)-1 Functional'!C266","v":"PRODUCTION - DEMAND"},null,null,{"$f":"F112-F189","v":11187},11187,0,0,11187,0]
[56,null,{"$f":"'FR-16(7)(v)-1 Functional'!C267","v":"PRODUCTION - ENERGY"},null,null,10906,0,10906,0,10906,0]
[57,null,{"$f":"'FR-16(7)(v)-1 Functional'!C268","v":"TRANSMISSION"},null,null,1768,1768,0,0,1768,0]
[58,null,{"$f":"'FR-16(7)(v)-1 Functional'!C269","v":"DISTRIBUTION - DEMAND"},null,null,5938,5938,0,0,5938,0]
[59,null,{"$f":"'FR-16(7)(v)-1 Functional'!C270","v":"DISTRIBUTION - CUSTOMER"}]
[60,null,{"$f":"'FR-16(7)(v)-1 Functional'!C271","v":"CUSTOMER ACCOUNTING"},null,null,{"$f":"F117-F194","v":1192},0,0,1192,1192,0]
[61,null,{"$f":"'FR-16(7)(v)-1 Functional'!C272","v":"CUSTOMER SERVICE & INFORMATION"},null,null,40,0,0,40,40,0]
[62,null,{"$f":"'FR-16(7)(v)-1 Functional'!C273","v":"SALES"},null,null,0,0,0,0,0,0]
[63,null,{"$f":"'FR-16(7)(v)-1 Functional'!C274","v":"ADJUSTMENT"},null,null,-36,-5,-27,-4,-36,0]
[64,null,{"$f":"'FR-16(7)(v)-1 Functional'!C275","v":"  COMMON & OTHER PLANT IN SERVICE"},null,null,{"$f":"SUM(F265:F274)","v":30995},18888,10879,1228,30995,0]
[65]
[66,null,{"$f":"'FR-16(7)(v)-1 Functional'!C277","v":"NET ELECTRIC PLANT IN SERVICE"},null,null,{"$f":"F275+F263+F248+F222+F216","v":5771872},5579783,67015,125074,5771872,0]
[]
[{"$f":"co_name","v":"DUKE ENERGY KENTUCKY, INC."},null,null,null,null,null,null,null,null,{"$f":"J1","v":"FR-16(7)(v)-18"}]
[{"$f":"$A$2","v":"EH SECONDARY CLASSIFIED - ELECTRIC COST OF SERVICE"},null,null,null,null,null,null,null,null,{"$f":"J2","v":"WITNESS RESPONSIBLE:"}]
[{"$f":"case_name","v":"CASE NO: 2019-00271"},null,null,null,null,null,null,null,null,{"$f":"Witness","v":"JAMES E. ZIOLKOWSKI"}]
[{"$f":"data_filing","v":"DATA: 12 MONTHS ACTUAL  & 0 MONTHS ESTIMATED"},null,null,null,null,null,null,null,null,{"$f":"\"PAGE \"&Pages2-10&\" OF \"&Pages2","v":"PAGE 5 OF 15"}]
[{"$f":"type","v":"TYPE OF FILING: \"X\" ORIGINAL   UPDATED    REVISED  "}]
[]
[]
["LINE",null,null,null,null,"TOTAL","CLASSIFIED",null,null,"TOTAL","ALL"]
["NO.","SUBTRACTIVE RATE BASE ADJUSTMENTS",null,"ALLO",null,{"$f":"$F$9","v":"EH SECONDARY"},{"$f":"G9","v":"DEMAND"},"ENERGY","CUSTOMER","AT ISSUE","OTHER"]
[null,null,"Schedule 5",null,null,null,3,4,5]
[1,"RATE BASE ADJUSTMENTS"]
[2,"ACCUMULATED DEFERRED INCOME TAXES"]
[3," ACCUM DEF INC TAXES (282)"]
[4,null,{"$f":"'FR-16(7)(v)-1 Functional'!C292","v":"LIBERALIZED DEPRECIATION"},{"$f":"'FR-16(7)(v)-1 Functional'!D292","v":"NP29"}," ",{"$f":"'FR-16(7)(v)-14 TOTAL CLASS'!J292","v":342160},{"$f":"'FR-16(7)(v)-3 PROD Demand'!J292+'FR-16(7)(v)-7 TRANS Demand'!J292+'FR-16(7)(v)-11 DIST Demand'!J292","v":330792},{"$f":"'FR-16(7)(v)-4 PROD Energy'!J292+'FR-16(7)(v)-8 TRANS Energy'!J292+'FR-16(7)(v)-12 DIST Energy'!J292","v":3968},{"$f":"'FR-16(7)(v)-5 PROD Cust'!J292+'FR-16(7)(v)-9 TRANS Cust'!J292+'FR-16(7)(v)-13 DIST Cust'!J292","v":7400},{"$f":"SUM(G292:I292)","v":342160},{"$f":"F292-J292","v":0}]
[5,null,{"$f":"'FR-16(7)(v)-1 Functional'!C293","v":"LEASED METERS"},{"$f":"'FR-16(7)(v)-1 Functional'!D293","v":"NP29"}," ",{"$f":"'FR-16(7)(v)-14 TOTAL CLASS'!J293","v":7761},{"$f":"'FR-16(7)(v)-3 PROD Demand'!J293+'FR-16(7)(v)-7 TRANS Demand'!J293+'FR-16(7)(v)-11 DIST Demand'!J293","v":7503},{"$f":"'FR-16(7)(v)-4 PROD Energy'!J293+'FR-16(7)(v)-8 TRANS Energy'!J293+'FR-16(7)(v)-12 DIST Energy'!J293","v":90},{"$f":"'FR-16(7)(v)-5 PROD Cust'!J293+'FR-16(7)(v)-9 TRANS Cust'!J293+'FR-16(7)(v)-13 DIST Cust'!J293","v":168},7761,0]
[6,null,{"$f":"'FR-16(7)(v)-1 Functional'!C294","v":"CONTRIB AID CONSTR"},{"$f":"'FR-16(7)(v)-1 Functional'!D294","v":"D249"}," ",{"$f":"'FR-16(7)(v)-14 TOTAL CLASS'!J294","v":0},{"$f":"'FR-16(7)(v)-3 PROD Demand'!J294+'FR-16(7)(v)-7 TRANS Demand'!J294+'FR-16(7)(v)-11 DIST Demand'!J294","v":0},{"$f":"'FR-16(7)(v)-4 PROD Energy'!J294+'FR-16(7)(v)-8 TRANS Energy'!J294+'FR-16(7)(v)-12 DIST Energy'!J294","v":0},{"$f":"'FR-16(7)(v)-5 PROD Cust'!J294+'FR-16(7)(v)-9 TRANS Cust'!J294+'FR-16(7)(v)-13 DIST Cust'!J294","v":0},0,0]
[7,null,{"$f":"'FR-16(7)(v)-1 Functional'!C295","v":"TAX INTEREST, EXPENSING, DEPR."},{"$f":"'FR-16(7)(v)-1 Functional'!D295","v":"NP29"}," ",{"$f":"'FR-16(7)(v)-14 TOTAL CLASS'!J295","v":341637},{"$f":"'FR-16(7)(v)-3 PROD Demand'!J295+'FR-16(7)(v)-7 TRANS Demand'!J295+'FR-16(7)(v)-11 DIST Demand'!J295","v":330287},{"$f":"'FR-16(7)(v)-4 PROD Energy'!J295+'FR-16(7)(v)-8 TRANS Energy'!J295+'FR-16(7)(v)-12 DIST Energy'!J295","v":3962},{"$f":"'FR-16(7)(v)-5 PROD Cust'!J295+'FR-16(7)(v)-9 TRANS Cust'!J295+'FR-16(7)(v)-13 DIST Cust'!J295","v":7388},341637,0]
[8,null,{"$f":"'FR-16(7)(v)-1 Functional'!C296","v":"AFUDC IN DEBT"},{"$f":"'FR-16(7)(v)-1 Functional'!D296","v":"NP29"}," ",{"$f":"'FR-16(7)(v)-14 TOTAL CLASS'!J296","v":0},{"$f":"'FR-16(7)(v)-3 PROD Demand'!J296+'FR-16(7)(v)-7 TRANS Demand'!J296+'FR-16(7)(v)-11 DIST Demand'!J296","v":0},{"$f":"'FR-16(7)(v)-4 PROD Energy'!J296+'FR-16(7)(v)-8 TRANS Energy'!J296+'FR-16(7)(v)-12 DIST Energy'!J296","v":0},{"$f":"'FR-16(7)(v)-5 PROD Cust'!J296+'FR-16(7)(v)-9 TRANS Cust'!J296+'FR-16(7)(v)-13 DIST Cust'!J296","v":0},0,0]
[9,null,{"$f":"'FR-16(7)(v)-1 Functional'!C297","v":"CASUALTY LOSS"},{"$f":"'FR-16(7)(v)-1 Functional'!D297","v":"K411"}," ",{"$f":"'FR-16(7)(v)-14 TOTAL CLASS'!J297","v":-111},{"$f":"'FR-16(7)(v)-3 PROD Demand'!J297+'FR-16(7)(v)-7 TRANS Demand'!J297+'FR-16(7)(v)-11 DIST Demand'!J297","v":0},{"$f":"'FR-16(7)(v)-4 PROD Energy'!J297+'FR-16(7)(v)-8 TRANS Energy'!J297+'FR-16(7)(v)-12 DIST Energy'!J297","v":0},{"$f":"'FR-16(7)(v)-5 PROD Cust'!J297+'FR-16(7)(v)-9 TRANS Cust'!J297+'FR-16(7)(v)-13 DIST Cust'!J297","v":-111},-111,0]
[10,null,{"$f":"'FR-16(7)(v)-1 Functional'!C298","v":"NON-CASH OVERHEADS"},{"$f":"'FR-16(7)(v)-1 Functional'!D298","v":"G229"}," ",{"$f":"'FR-16(7)(v)-14 TOTAL CLASS'!J298","v":0},{"$f":"'FR-16(7)(v)-3 PROD Demand'!J298+'FR-16(7)(v)-7 TRANS Demand'!J298+'FR-16(7)(v)-11 DIST Demand'!J298","v":0},{"$f":"'FR-16(7)(v)-4 PROD Energy'!J298+'FR-16(7)(v)-8 TRANS Energy'!J298+'FR-16(7)(v)-12 DIST Energy'!J298","v":0},{"$f":"'FR-16(7)(v)-5 PROD Cust'!J298+'FR-16(7)(v)-9 TRANS Cust'!J298+'FR-16(7)(v)-13 DIST Cust'!J298","v":0},0,0]
[11,null,{"$f":"'FR-16(7)(v)-1 Functional'!C299","v":"PLANT FAS 109"},{"$f":"'FR-16(7)(v)-1 Functional'!D299","v":"NP29"}," ",{"$f":"'FR-16(7)(v)-14 TOTAL CLASS'!J299","v":0},{"$f":"'FR-16(7)(v)-3 PROD Demand'!J299+'FR-16(7)(v)-7 TRANS Demand'!J299+'FR-16(7)(v)-11 DIST Demand'!J299","v":0},{"$f":"'FR-16(7)(v)-4 PROD Energy'!J299+'FR-16(7)(v)-8 TRANS Energy'!J299+'FR-16(7)(v)-12 DIST Energy'!J299","v":0},{"$f":"'FR-16(7)(v)-5 PROD Cust'!J299+'FR-16(7)(v)-9 TRANS Cust'!J299+'FR-16(7)(v)-13 DIST Cust'!J299","v":0},0,0]
[12,null,{"$f":"'FR-16(7)(v)-1 Functional'!C300","v":"MISCELLANEOUS"},{"$f":"'FR-16(7)(v)-1 Functional'!D300","v":"NP29"},null,{"$f":"'FR-16(7)(v)-14 TOTAL CLASS'!J300","v":322381},{"$f":"'FR-16(7)(v)-3 PROD Demand'!J300+'FR-16(7)(v)-7 TRANS Demand'!J300+'FR-16(7)(v)-11 DIST Demand'!J300","v":311670},{"$f":"'FR-16(7)(v)-4 PROD Energy'!J300+'FR-16(7)(v)-8 TRANS Energy'!J300+'FR-16(7)(v)-12 DIST Energy'!J300","v":3739},{"$f":"'FR-16(7)(v)-5 PROD Cust'!J300+'FR-16(7)(v)-9 TRANS Cust'!J300+'FR-16(7)(v)-13 DIST Cust'!J300","v":6972},322381,0]
[13,null,{"$f":"'FR-16(7)(v)-1 Functional'!C301","v":"  TOTAL ACCOUNT 282"},null,null,{"$f":"SUM(F292:F300)","v":1013828},980252,11759,21817,1013828,0]
[14]
[15," ACCUM DEF INC TAXES (283)"]
[16,null,{"$f":"'FR-16(7)(v)-1 Functional'!C304","v":"TRANSITION FROM MISO TO PJM"},{"$f":"'FR-16(7)(v)-1 Functional'!D304","v":"NP29"},null,{"$f":"'FR-16(7)(v)-14 TOTAL CLASS'!J304","v":-18360},{"$f":"'FR-16(7)(v)-3 PROD Demand'!J304+'FR-16(7)(v)-7 TRANS Demand'!J304+'FR-16(7)(v)-11 DIST Demand'!J304","v":-17750},{"$f":"'FR-16(7)(v)-4 PROD Energy'!J304+'FR-16(7)(v)-8 TRANS Energy'!J304+'FR-16(7)(v)-12 DIST Energy'!J304","v":-213},{"$f":"'FR-16(7)(v)-5 PROD Cust'!J304+'FR-16(7)(v)-9 TRANS Cust'!J304+'FR-16(7)(v)-13 DIST Cust'!J304","v":-397},{"$f":"SUM(G304:I304)","v":-18360},{"$f":"F304-J304","v":0}]
[17,null,{"$f":"'FR-16(7)(v)-1 Functional'!C305","v":"DEFERRED PLANT COSTS"},{"$f":"'FR-16(7)(v)-1 Functional'!D305","v":"NP29"},null,{"$f":"'FR-16(7)(v)-14 TOTAL CLASS'!J305","v":3575},{"$f":"'FR-16(7)(v)-3 PROD Demand'!J305+'FR-16(7)(v)-7 TRANS Demand'!J305+'FR-16(7)(v)-11 DIST Demand'!J305","v":3457},{"$f":"'FR-16(7)(v)-4 PROD Energy'!J305+'FR-16(7)(v)-8 TRANS Energy'!J305+'FR-16(7)(v)-12 DIST Energy'!J305","v":41},{"$f":"'FR-16(7)(v)-5 PROD Cust'!J305+'FR-16(7)(v)-9 TRANS Cust'!J305+'FR-16(7)(v)-13 DIST Cust'!J305","v":77},3575,0]
[18,null,{"$f":"'FR-16(7)(v)-1 Functional'!C306","v":"MISCELLANEOUS"},{"$f":"'FR-16(7)(v)-1 Functional'!D306","v":"OM39"},null,{"$f":"'FR-16(7)(v)-14 TOTAL CLASS'!J306","v":46362},{"$f":"'FR-16(7)(v)-3 PROD Demand'!J306+'FR-16(7)(v)-7 TRANS Demand'!J306+'FR-16(7)(v)-11 DIST Demand'!J306","v":12670},{"$f":"'FR-16(7)(v)-4 PROD Energy'!J306+'FR-16(7)(v)-8 TRANS Energy'!J306+'FR-16(7)(v)-12 DIST Energy'!J306","v":32968},{"$f":"'FR-16(7)(v)-5 PROD Cust'!J306+'FR-16(7)(v)-9 TRANS Cust'!J306+'FR-16(7)(v)-13 DIST Cust'!J306","v":724},46362,0]
[19,null,{"$f":"'FR-16(7)(v)-1 Functional'!C307","v":"ENVIRONMENTAL RESERVE"},{"$f":"'FR-16(7)(v)-1 Functional'!D307","v":"NP29"},null,{"$f":"'FR-16(7)(v)-14 TOTAL CLASS'!J307","v":0},{"$f":"'FR-16(7)(v)-3 PROD Demand'!J307+'FR-16(7)(v)-7 TRANS Demand'!J307+'FR-16(7)(v)-11 DIST Demand'!J307","v":0},{"$f":"'FR-16(7)(v)-4 PROD Energy'!J307+'FR-16(7)(v)-8 TRANS Energy'!J307+'FR-16(7)(v)-12 DIST Energy'!J307","v":0},{"$f":"'FR-16(7)(v)-5 PROD Cust'!J307+'FR-16(7)(v)-9 TRANS Cust'!J307+'FR-16(7)(v)-13 DIST Cust'!J307","v":0},0,0]
[20,null,{"$f":"'FR-16(7)(v)-1 Functional'!C308","v":"POST IN-SERVICE CARRYING COSTS"},{"$f":"'FR-16(7)(v)-1 Functional'!D308","v":"NP29"},null,{"$f":"'FR-16(7)(v)-14 TOTAL CLASS'!J308","v":0},{"$f":"'FR-16(7)(v)-3 PROD Demand'!J308+'FR-16(7)(v)-7 TRANS Demand'!J308+'FR-16(7)(v)-11 DIST Demand'!J308","v":0},{"$f":"'FR-16(7)(v)-4 PROD Energy'!J308+'FR-16(7)(v)-8 TRANS Energy'!J308+'FR-16(7)(v)-12 DIST Energy'!J308","v":0},{"$f":"'FR-16(7)(v)-5 PROD Cust'!J308+'FR-16(7)(v)-9 TRANS Cust'!J308+'FR-16(7)(v)-13 DIST Cust'!J308","v":0},0,0]
[21,null,{"$f":"'FR-16(7)(v)-1 Functional'!C309","v":"ARO CUMULATIVE EFFECT"},{"$f":"'FR-16(7)(v)-1 Functional'!D309","v":"NP29"},null,{"$f":"'FR-16(7)(v)-14 TOTAL CLASS'!J309","v":0},{"$f":"'FR-16(7)(v)-3 PROD Demand'!J309+'FR-16(7)(v)-7 TRANS Demand'!J309+'FR-16(7)(v)-11 DIST Demand'!J309","v":0},{"$f":"'FR-16(7)(v)-4 PROD Energy'!J309+'FR-16(7)(v)-8 TRANS Energy'!J309+'FR-16(7)(v)-12 DIST Energy'!J309","v":0},{"$f":"'FR-16(7)(v)-5 PROD Cust'!J309+'FR-16(7)(v)-9 TRANS Cust'!J309+'FR-16(7)(v)-13 DIST Cust'!J309","v":0},0,0]
[22,null,{"$f":"'FR-16(7)(v)-1 Functional'!C310","v":"LOSS ON REACQUIRED DEBT"},{"$f":"'FR-16(7)(v)-1 Functional'!D310","v":"D249"},null,{"$f":"'FR-16(7)(v)-14 TOTAL CLASS'!J310","v":0},{"$f":"'FR-16(7)(v)-3 PROD Demand'!J310+'FR-16(7)(v)-7 TRANS Demand'!J310+'FR-16(7)(v)-11 DIST Demand'!J310","v":0},{"$f":"'FR-16(7)(v)-4 PROD Energy'!J310+'FR-16(7)(v)-8 TRANS Energy'!J310+'FR-16(7)(v)-12 DIST Energy'!J310","v":0},{"$f":"'FR-16(7)(v)-5 PROD Cust'!J310+'FR-16(7)(v)-9 TRANS Cust'!J310+'FR-16(7)(v)-13 DIST Cust'!J310","v":0},0,0]
[23,null,{"$f":"'FR-16(7)(v)-1 Functional'!C311","v":"VACATION PAY ACCRUAL"},{"$f":"'FR-16(7)(v)-1 Functional'!D311","v":"A315"},null,{"$f":"'FR-16(7)(v)-14 TOTAL CLASS'!J311","v":0},{"$f":"'FR-16(7)(v)-3 PROD Demand'!J311+'FR-16(7)(v)-7 TRANS Demand'!J311+'FR-16(7)(v)-11 DIST Demand'!J311","v":0},{"$f":"'FR-16(7)(v)-4 PROD Energy'!J311+'FR-16(7)(v)-8 TRANS Energy'!J311+'FR-16(7)(v)-12 DIST Energy'!J311","v":0},{"$f":"'FR-16(7)(v)-5 PROD Cust'!J311+'FR-16(7)(v)-9 TRANS Cust'!J311+'FR-16(7)(v)-13 DIST Cust'!J311","v":0},0,0]
[24,null,{"$f":"'FR-16(7)(v)-1 Functional'!C312","v":"NON-AMI METERS RETIRED EARLY"},{"$f":"'FR-16(7)(v)-1 Functional'!D312","v":"OM39"},null,{"$f":"'FR-16(7)(v)-14 TOTAL CLASS'!J312","v":5564},{"$f":"'FR-16(7)(v)-3 PROD Demand'!J312+'FR-16(7)(v)-7 TRANS Demand'!J312+'FR-16(7)(v)-11 DIST Demand'!J312","v":1521},{"$f":"'FR-16(7)(v)-4 PROD Energy'!J312+'FR-16(7)(v)-8 TRANS Energy'!J312+'FR-16(7)(v)-12 DIST Energy'!J312","v":3956},{"$f":"'FR-16(7)(v)-5 PROD Cust'!J312+'FR-16(7)(v)-9 TRANS Cust'!J312+'FR-16(7)(v)-13 DIST Cust'!J312","v":87},{"$f":"SUM(G312:I312)","v":5564},{"$f":"F312-J312","v":0}]
[25,null,{"$f":"'FR-16(7)(v)-1 Functional'!C313","v":"PENSION EXPENSE"},{"$f":"'FR-16(7)(v)-1 Functional'!D313","v":"A315"},null,{"$f":"'FR-16(7)(v)-14 TOTAL CLASS'!J313","v":19894},{"$f":"'FR-16(7)(v)-3 PROD Demand'!J313+'FR-16(7)(v)-7 TRANS Demand'!J313+'FR-16(7)(v)-11 DIST Demand'!J313","v":8376},{"$f":"'FR-16(7)(v)-4 PROD Energy'!J313+'FR-16(7)(v)-8 TRANS Energy'!J313+'FR-16(7)(v)-12 DIST Energy'!J313","v":10163},{"$f":"'FR-16(7)(v)-5 PROD Cust'!J313+'FR-16(7)(v)-9 TRANS Cust'!J313+'FR-16(7)(v)-13 DIST Cust'!J313","v":1355},{"$f":"SUM(G313:I313)","v":19894},{"$f":"F313-J313","v":0}]
[26,null,{"$f":"'FR-16(7)(v)-1 Functional'!C314","v":"UNCOLLECTIBLE ACCOUNTS"},{"$f":"'FR-16(7)(v)-1 Functional'!D314","v":"K411"},null,{"$f":"'FR-16(7)(v)-14 TOTAL CLASS'!J314","v":0},{"$f":"'FR-16(7)(v)-3 PROD Demand'!J314+'FR-16(7)(v)-7 TRANS Demand'!J314+'FR-16(7)(v)-11 DIST Demand'!J314","v":0},{"$f":"'FR-16(7)(v)-4 PROD Energy'!J314+'FR-16(7)(v)-8 TRANS Energy'!J314+'FR-16(7)(v)-12 DIST Energy'!J314","v":0},{"$f":"'FR-16(7)(v)-5 PROD Cust'!J314+'FR-16(7)(v)-9 TRANS Cust'!J314+'FR-16(7)(v)-13 DIST Cust'!J314","v":0},0,0]
[27,null,{"$f":"'FR-16(7)(v)-1 Functional'!C315","v":"  TOTAL ACCOUNT 283"},null,null,{"$f":"SUM(F303:F314)","v":57035},8274,46915,1846,57035,0]
[28]
[29," OTHER ACCUMULATED DEFERRED INCOME TAXES"]
[30,null,{"$f":"'FR-16(7)(v)-1 Functional'!C318","v":"EXCESS ADIT"},{"$f":"'FR-16(7)(v)-1 Functional'!D318","v":"NP29"},null,{"$f":"'FR-16(7)(v)-14 TOTAL CLASS'!J318","v":318244},{"$f":"'FR-16(7)(v)-3 PROD Demand'!J318+'FR-16(7)(v)-7 TRANS Demand'!J318+'FR-16(7)(v)-11 DIST Demand'!J318","v":307671},{"$f":"'FR-16(7)(v)-4 PROD Energy'!J318+'FR-16(7)(v)-8 TRANS Energy'!J318+'FR-16(7)(v)-12 DIST Energy'!J318","v":3691},{"$f":"'FR-16(7)(v)-5 PROD Cust'!J318+'FR-16(7)(v)-9 TRANS Cust'!J318+'FR-16(7)(v)-13 DIST Cust'!J318","v":6882},{"$f":"SUM(G318:I318)","v":318244},{"$f":"F318-J318","v":0}]
[31,null,{"$f":"'FR-16(7)(v)-1 Functional'!C319","v":"CUSTOMER SERVICE DEPOSITS"},{"$f":"'FR-16(7)(v)-1 Functional'!D319","v":"NP29"},null,{"$f":"'FR-16(7)(v)-14 TOTAL CLASS'!J319","v":0},{"$f":"'FR-16(7)(v)-3 PROD Demand'!J319+'FR-16(7)(v)-7 TRANS Demand'!J319+'FR-16(7)(v)-11 DIST Demand'!J319","v":0},{"$f":"'FR-16(7)(v)-4 PROD Energy'!J319+'FR-16(7)(v)-8 TRANS Energy'!J319+'FR-16(7)(v)-12 DIST Energy'!J319","v":0},{"$f":"'FR-16(7)(v)-5 PROD Cust'!J319+'FR-16(7)(v)-9 TRANS Cust'!J319+'FR-16(7)(v)-13 DIST Cust'!J319","v":0},{"$f":"SUM(G319:I319)","v":0},{"$f":"F319-J319","v":0}]
[32,null,{"$f":"'FR-16(7)(v)-1 Functional'!C320","v":"POST RETIREMENT BENEFITS"},{"$f":"'FR-16(7)(v)-1 Functional'!D320","v":"NP29"},null,{"$f":"'FR-16(7)(v)-14 TOTAL CLASS'!J320","v":0},{"$f":"'FR-16(7)(v)-3 PROD Demand'!J320+'FR-16(7)(v)-7 TRANS Demand'!J320+'FR-16(7)(v)-11 DIST Demand'!J320","v":0},{"$f":"'FR-16(7)(v)-4 PROD Energy'!J320+'FR-16(7)(v)-8 TRANS Energy'!J320+'FR-16(7)(v)-12 DIST Energy'!J320","v":0},{"$f":"'FR-16(7)(v)-5 PROD Cust'!J320+'FR-16(7)(v)-9 TRANS Cust'!J320+'FR-16(7)(v)-13 DIST Cust'!J320","v":0},{"$f":"SUM(G320:I320)","v":0},{"$f":"F320-J320","v":0}]
[33,null,{"$f":"'FR-16(7)(v)-1 Functional'!C321","v":"INVESTMENT TAX CREDIT"},{"$f":"'FR-16(7)(v)-1 Functional'!D321","v":"NP29"},null,{"$f":"'FR-16(7)(v)-14 TOTAL CLASS'!J321","v":0},{"$f":"'FR-16(7)(v)-3 PROD Demand'!J321+'FR-16(7)(v)-7 TRANS Demand'!J321+'FR-16(7)(v)-11 DIST Demand'!J321","v":0},{"$f":"'FR-16(7)(v)-4 PROD Energy'!J321+'FR-16(7)(v)-8 TRANS Energy'!J321+'FR-16(7)(v)-12 DIST Energy'!J321","v":0},{"$f":"'FR-16(7)(v)-5 PROD Cust'!J321+'FR-16(7)(v)-9 TRANS Cust'!J321+'FR-16(7)(v)-13 DIST Cust'!J321","v":0},{"$f":"SUM(G321:I321)","v":0},{"$f":"F321-J321","v":0}]
[34,null,{"$f":"'FR-16(7)(v)-1 Functional'!C322","v":"  TOTAL OTHER SUBTRACTIVE ADJUSTMENTS"},null,null,{"$f":"SUM(F317:F321)","v":318244},307671,3691,6882,318244,0]
[35]
[36,{"$f":"'FR-16(7)(v)-1 Functional'!B324","v":"TOTAL SUBTRACTIVE RATE BASE ADJUSTMENTS"},null,null,null,{"$f":"F322+F315+F301","v":1389107},1296197,62365,30545,1389107,0]
[]
[{"$f":"co_name","v":"DUKE ENERGY KENTUCKY, INC."},null,null,null,null,null,null,null,null,{"$f":"J1","v":"FR-16(7)(v)-18"}]
[{"$f":"$A$2","v":"EH SECONDARY CLASSIFIED - ELECTRIC COST OF SERVICE"},null,null,null,null,null,null,null,null,{"$f":"J2","v":"WITNESS RESPONSIBLE:"}]
[{"$f":"case_name","v":"CASE NO: 2019-00271"},null,null,null,null,null,null,null,null,{"$f":"Witness","v":"JAMES E. ZIOLKOWSKI"}]
[{"$f":"data_filing","v":"DATA: 12 MONTHS ACTUAL  & 0 MONTHS ESTIMATED"},null,null,null,null,null,null,null,null,{"$f":"\"PAGE \"&Pages2-9&\" OF \"&Pages2","v":"PAGE 6 OF 15"}]
[{"$f":"type","v":"TYPE OF FILING: \"X\" ORIGINAL   UPDATED    REVISED  "}]
[]
[]
["LINE",null,null,null,null,"TOTAL","CLASSIFIED",null,null,"TOTAL","ALL"]
["NO.","ADDITIVE RATE BASE ADJUSTMENTS",null,"ALLO",null,{"$f":"$F$9","v":"EH SECONDARY"},{"$f":"G9","v":"DEMAND"},"ENERGY","CUSTOMER","AT ISSUE","OTHER"]
[null,null,"Schedule 5.1",null,null,null,3,4,5]
[1,"OTHER ACCUMULATED DEFERRED INCOME TAXES"]
[2," ACCUM DEF INC TAXES (190)"]
[3,null,{"$f":"'FR-16(7)(v)-1 Functional'!C338","v":"UNCOLLECTIBLE ACCTS"},{"$f":"'FR-16(7)(v)-1 Functional'!D338","v":"K411"},null,{"$f":"'FR-16(7)(v)-14 TOTAL CLASS'!J338","v":20},{"$f":"'FR-16(7)(v)-3 PROD Demand'!J338+'FR-16(7)(v)-7 TRANS Demand'!J338+'FR-16(7)(v)-11 DIST Demand'!J338","v":0},{"$f":"'FR-16(7)(v)-4 PROD Energy'!J338+'FR-16(7)(v)-8 TRANS Energy'!J338+'FR-16(7)(v)-12 DIST Energy'!J338","v":0},{"$f":"'FR-16(7)(v)-5 PROD Cust'!J338+'FR-16(7)(v)-9 TRANS Cust'!J338+'FR-16(7)(v)-13 DIST Cust'!J338","v":20},{"$f":"SUM(G338:I338)","v":20},{"$f":"F338-J338","v":0}]
[4,null,{"$f":"'FR-16(7)(v)-1 Functional'!C339","v":"CASH FLOW HEDGE"},{"$f":"'FR-16(7)(v)-1 Functional'!D339","v":"A315"},null,{"$f":"'FR-16(7)(v)-14 TOTAL CLASS'!J339","v":798},{"$f":"'FR-16(7)(v)-3 PROD Demand'!J339+'FR-16(7)(v)-7 TRANS Demand'!J339+'FR-16(7)(v)-11 DIST Demand'!J339","v":336},{"$f":"'FR-16(7)(v)-4 PROD Energy'!J339+'FR-16(7)(v)-8 TRANS Energy'!J339+'FR-16(7)(v)-12 DIST Energy'!J339","v":408},{"$f":"'FR-16(7)(v)-5 PROD Cust'!J339+'FR-16(7)(v)-9 TRANS Cust'!J339+'FR-16(7)(v)-13 DIST Cust'!J339","v":54},798,0]
[5,null,{"$f":"'FR-16(7)(v)-1 Functional'!C340","v":"RESERVED FOR FUTURE USE"},{"$f":"'FR-16(7)(v)-1 Functional'!D340","v":"NP29"},null,{"$f":"'FR-16(7)(v)-14 TOTAL CLASS'!J340","v":0},{"$f":"'FR-16(7)(v)-3 PROD Demand'!J340+'FR-16(7)(v)-7 TRANS Demand'!J340+'FR-16(7)(v)-11 DIST Demand'!J340","v":0},{"$f":"'FR-16(7)(v)-4 PROD Energy'!J340+'FR-16(7)(v)-8 TRANS Energy'!J340+'FR-16(7)(v)-12 DIST Energy'!J340","v":0},{"$f":"'FR-16(7)(v)-5 PROD Cust'!J340+'FR-16(7)(v)-9 TRANS Cust'!J340+'FR-16(7)(v)-13 DIST Cust'!J340","v":0},0,0]
[6,null,{"$f":"'FR-16(7)(v)-1 Functional'!C341","v":"RESERVED FOR FUTURE USE"},{"$f":"'FR-16(7)(v)-1 Functional'!D341","v":"NP29"},null,{"$f":"'FR-16(7)(v)-14 TOTAL CLASS'!J341","v":0},{"$f":"'FR-16(7)(v)-3 PROD Demand'!J341+'FR-16(7)(v)-7 TRANS Demand'!J341+'FR-16(7)(v)-11 DIST Demand'!J341","v":0},{"$f":"'FR-16(7)(v)-4 PROD Energy'!J341+'FR-16(7)(v)-8 TRANS Energy'!J341+'FR-16(7)(v)-12 DIST Energy'!J341","v":0},{"$f":"'FR-16(7)(v)-5 PROD Cust'!J341+'FR-16(7)(v)-9 TRANS Cust'!J341+'FR-16(7)(v)-13 DIST Cust'!J341","v":0},0,0]
[7,null,{"$f":"'FR-16(7)(v)-1 Functional'!C342","v":"ELECTRIC METERS"},{"$f":"'FR-16(7)(v)-1 Functional'!D342","v":"K407"},null,{"$f":"'FR-16(7)(v)-14 TOTAL CLASS'!J342","v":0},{"$f":"'FR-16(7)(v)-3 PROD Demand'!J342+'FR-16(7)(v)-7 TRANS Demand'!J342+'FR-16(7)(v)-11 DIST Demand'!J342","v":0},{"$f":"'FR-16(7)(v)-4 PROD Energy'!J342+'FR-16(7)(v)-8 TRANS Energy'!J342+'FR-16(7)(v)-12 DIST Energy'!J342","v":0},{"$f":"'FR-16(7)(v)-5 PROD Cust'!J342+'FR-16(7)(v)-9 TRANS Cust'!J342+'FR-16(7)(v)-13 DIST Cust'!J342","v":0},0,0]
[8,null,{"$f":"'FR-16(7)(v)-1 Functional'!C343","v":"UNAMORTIZED DEBT PREMIUM"},{"$f":"'FR-16(7)(v)-1 Functional'!D343","v":"D249"},null,{"$f":"'FR-16(7)(v)-14 TOTAL CLASS'!J343","v":0},{"$f":"'FR-16(7)(v)-3 PROD Demand'!J343+'FR-16(7)(v)-7 TRANS Demand'!J343+'FR-16(7)(v)-11 DIST Demand'!J343","v":0},{"$f":"'FR-16(7)(v)-4 PROD Energy'!J343+'FR-16(7)(v)-8 TRANS Energy'!J343+'FR-16(7)(v)-12 DIST Energy'!J343","v":0},{"$f":"'FR-16(7)(v)-5 PROD Cust'!J343+'FR-16(7)(v)-9 TRANS Cust'!J343+'FR-16(7)(v)-13 DIST Cust'!J343","v":0},0,0]
[9,null,{"$f":"'FR-16(7)(v)-1 Functional'!C344","v":"ARO CUMULATIVE EFFECT"},{"$f":"'FR-16(7)(v)-1 Functional'!D344","v":"NP29"},null,{"$f":"'FR-16(7)(v)-14 TOTAL CLASS'!J344","v":0},{"$f":"'FR-16(7)(v)-3 PROD Demand'!J344+'FR-16(7)(v)-7 TRANS Demand'!J344+'FR-16(7)(v)-11 DIST Demand'!J344","v":0},{"$f":"'FR-16(7)(v)-4 PROD Energy'!J344+'FR-16(7)(v)-8 TRANS Energy'!J344+'FR-16(7)(v)-12 DIST Energy'!J344","v":0},{"$f":"'FR-16(7)(v)-5 PROD Cust'!J344+'FR-16(7)(v)-9 TRANS Cust'!J344+'FR-16(7)(v)-13 DIST Cust'!J344","v":0},0,0]
[10,null,{"$f":"'FR-16(7)(v)-1 Functional'!C345","v":"RETIREMENT PLAN"},{"$f":"'FR-16(7)(v)-1 Functional'!D345","v":"A315"},null,{"$f":"'FR-16(7)(v)-14 TOTAL CLASS'!J345","v":8210},{"$f":"'FR-16(7)(v)-3 PROD Demand'!J345+'FR-16(7)(v)-7 TRANS Demand'!J345+'FR-16(7)(v)-11 DIST Demand'!J345","v":3457},{"$f":"'FR-16(7)(v)-4 PROD Energy'!J345+'FR-16(7)(v)-8 TRANS Energy'!J345+'FR-16(7)(v)-12 DIST Energy'!J345","v":4194},{"$f":"'FR-16(7)(v)-5 PROD Cust'!J345+'FR-16(7)(v)-9 TRANS Cust'!J345+'FR-16(7)(v)-13 DIST Cust'!J345","v":559},8210,0]
[11,null,{"$f":"'FR-16(7)(v)-1 Functional'!C346","v":"POST RETIREMENT BENEFITS "},{"$f":"'FR-16(7)(v)-1 Functional'!D346","v":"A315"},null,{"$f":"'FR-16(7)(v)-14 TOTAL CLASS'!J346","v":0},{"$f":"'FR-16(7)(v)-3 PROD Demand'!J346+'FR-16(7)(v)-7 TRANS Demand'!J346+'FR-16(7)(v)-11 DIST Demand'!J346","v":0},{"$f":"'FR-16(7)(v)-4 PROD Energy'!J346+'FR-16(7)(v)-8 TRANS Energy'!J346+'FR-16(7)(v)-12 DIST Energy'!J346","v":0},{"$f":"'FR-16(7)(v)-5 PROD Cust'!J346+'FR-16(7)(v)-9 TRANS Cust'!J346+'FR-16(7)(v)-13 DIST Cust'!J346","v":0},0,0]
[12,null,{"$f":"'FR-16(7)(v)-1 Functional'!C347","v":"POST RETIREMENT BENEFITS - HEALTH CARE"},{"$f":"'FR-16(7)(v)-1 Functional'!D347","v":"A315"},null,{"$f":"'FR-16(7)(v)-14 TOTAL CLASS'!J347","v":0},{"$f":"'FR-16(7)(v)-3 PROD Demand'!J347+'FR-16(7)(v)-7 TRANS Demand'!J347+'FR-16(7)(v)-11 DIST Demand'!J347","v":0},{"$f":"'FR-16(7)(v)-4 PROD Energy'!J347+'FR-16(7)(v)-8 TRANS Energy'!J347+'FR-16(7)(v)-12 DIST Energy'!J347","v":0},{"$f":"'FR-16(7)(v)-5 PROD Cust'!J347+'FR-16(7)(v)-9 TRANS Cust'!J347+'FR-16(7)(v)-13 DIST Cust'!J347","v":0},0,0]
[13,null,{"$f":"'FR-16(7)(v)-1 Functional'!C348","v":"POST EMPLOYMENT BENEFITS - SFAS 112"},{"$f":"'FR-16(7)(v)-1 Functional'!D348","v":"A315"},null,{"$f":"'FR-16(7)(v)-14 TOTAL CLASS'!J348","v":0},{"$f":"'FR-16(7)(v)-3 PROD Demand'!J348+'FR-16(7)(v)-7 TRANS Demand'!J348+'FR-16(7)(v)-11 DIST Demand'!J348","v":0},{"$f":"'FR-16(7)(v)-4 PROD Energy'!J348+'FR-16(7)(v)-8 TRANS Energy'!J348+'FR-16(7)(v)-12 DIST Energy'!J348","v":0},{"$f":"'FR-16(7)(v)-5 PROD Cust'!J348+'FR-16(7)(v)-9 TRANS Cust'!J348+'FR-16(7)(v)-13 DIST Cust'!J348","v":0},0,0]
[14,null,{"$f":"'FR-16(7)(v)-1 Functional'!C349","v":"SUPPLEMENTAL PENSION PLAN"},{"$f":"'FR-16(7)(v)-1 Functional'!D349","v":"A315"},null,{"$f":"'FR-16(7)(v)-14 TOTAL CLASS'!J349","v":0},{"$f":"'FR-16(7)(v)-3 PROD Demand'!J349+'FR-16(7)(v)-7 TRANS Demand'!J349+'FR-16(7)(v)-11 DIST Demand'!J349","v":0},{"$f":"'FR-16(7)(v)-4 PROD Energy'!J349+'FR-16(7)(v)-8 TRANS Energy'!J349+'FR-16(7)(v)-12 DIST Energy'!J349","v":0},{"$f":"'FR-16(7)(v)-5 PROD Cust'!J349+'FR-16(7)(v)-9 TRANS Cust'!J349+'FR-16(7)(v)-13 DIST Cust'!J349","v":0},0,0]
[15,null,{"$f":"'FR-16(7)(v)-1 Functional'!C350","v":"INCENTIVE PLAN"},{"$f":"'FR-16(7)(v)-1 Functional'!D350","v":"A315"},null,{"$f":"'FR-16(7)(v)-14 TOTAL CLASS'!J350","v":0},{"$f":"'FR-16(7)(v)-3 PROD Demand'!J350+'FR-16(7)(v)-7 TRANS Demand'!J350+'FR-16(7)(v)-11 DIST Demand'!J350","v":0},{"$f":"'FR-16(7)(v)-4 PROD Energy'!J350+'FR-16(7)(v)-8 TRANS Energy'!J350+'FR-16(7)(v)-12 DIST Energy'!J350","v":0},{"$f":"'FR-16(7)(v)-5 PROD Cust'!J350+'FR-16(7)(v)-9 TRANS Cust'!J350+'FR-16(7)(v)-13 DIST Cust'!J350","v":0},0,0]
[16,null,{"$f":"'FR-16(7)(v)-1 Functional'!C351","v":"FEDERAL DEFERRED TAX RECEIVEABLE"},{"$f":"'FR-16(7)(v)-1 Functional'!D351","v":"A315"},null,{"$f":"'FR-16(7)(v)-14 TOTAL CLASS'!J351","v":0},{"$f":"'FR-16(7)(v)-3 PROD Demand'!J351+'FR-16(7)(v)-7 TRANS Demand'!J351+'FR-16(7)(v)-11 DIST Demand'!J351","v":0},{"$f":"'FR-16(7)(v)-4 PROD Energy'!J351+'FR-16(7)(v)-8 TRANS Energy'!J351+'FR-16(7)(v)-12 DIST Energy'!J351","v":0},{"$f":"'FR-16(7)(v)-5 PROD Cust'!J351+'FR-16(7)(v)-9 TRANS Cust'!J351+'FR-16(7)(v)-13 DIST Cust'!J351","v":0},0,0]
[17,null,{"$f":"'FR-16(7)(v)-1 Functional'!C352","v":"MISCELLANEOUS"},{"$f":"'FR-16(7)(v)-1 Functional'!D352","v":"A315"},null,{"$f":"'FR-16(7)(v)-14 TOTAL CLASS'!J352","v":26354},{"$f":"'FR-16(7)(v)-3 PROD Demand'!J352+'FR-16(7)(v)-7 TRANS Demand'!J352+'FR-16(7)(v)-11 DIST Demand'!J352","v":11096},{"$f":"'FR-16(7)(v)-4 PROD Energy'!J352+'FR-16(7)(v)-8 TRANS Energy'!J352+'FR-16(7)(v)-12 DIST Energy'!J352","v":13463},{"$f":"'FR-16(7)(v)-5 PROD Cust'!J352+'FR-16(7)(v)-9 TRANS Cust'!J352+'FR-16(7)(v)-13 DIST Cust'!J352","v":1795},26354,0]
[18,null,{"$f":"'FR-16(7)(v)-1 Functional'!C353","v":"DEFERRED TAX"},{"$f":"'FR-16(7)(v)-1 Functional'!D353","v":"A315"},null,{"$f":"'FR-16(7)(v)-14 TOTAL CLASS'!J353","v":12010},{"$f":"'FR-16(7)(v)-3 PROD Demand'!J353+'FR-16(7)(v)-7 TRANS Demand'!J353+'FR-16(7)(v)-11 DIST Demand'!J353","v":5057},{"$f":"'FR-16(7)(v)-4 PROD Energy'!J353+'FR-16(7)(v)-8 TRANS Energy'!J353+'FR-16(7)(v)-12 DIST Energy'!J353","v":6135},{"$f":"'FR-16(7)(v)-5 PROD Cust'!J353+'FR-16(7)(v)-9 TRANS Cust'!J353+'FR-16(7)(v)-13 DIST Cust'!J353","v":818},12010,0]
[19,null,{"$f":"'FR-16(7)(v)-1 Functional'!C354","v":"NET OPERATING LOSS"},{"$f":"'FR-16(7)(v)-1 Functional'!D354","v":"NP29"},null,{"$f":"'FR-16(7)(v)-14 TOTAL CLASS'!J354","v":0},{"$f":"'FR-16(7)(v)-3 PROD Demand'!J354+'FR-16(7)(v)-7 TRANS Demand'!J354+'FR-16(7)(v)-11 DIST Demand'!J354","v":0},{"$f":"'FR-16(7)(v)-4 PROD Energy'!J354+'FR-16(7)(v)-8 TRANS Energy'!J354+'FR-16(7)(v)-12 DIST Energy'!J354","v":0},{"$f":"'FR-16(7)(v)-5 PROD Cust'!J354+'FR-16(7)(v)-9 TRANS Cust'!J354+'FR-16(7)(v)-13 DIST Cust'!J354","v":0},0,0]
[20,null,{"$f":"'FR-16(7)(v)-1 Functional'!C355","v":"401K INCENTIVE PLAN"},{"$f":"'FR-16(7)(v)-1 Functional'!D355","v":"A315"},null,{"$f":"'FR-16(7)(v)-14 TOTAL CLASS'!J355","v":0},{"$f":"'FR-16(7)(v)-3 PROD Demand'!J355+'FR-16(7)(v)-7 TRANS Demand'!J355+'FR-16(7)(v)-11 DIST Demand'!J355","v":0},{"$f":"'FR-16(7)(v)-4 PROD Energy'!J355+'FR-16(7)(v)-8 TRANS Energy'!J355+'FR-16(7)(v)-12 DIST Energy'!J355","v":0},{"$f":"'FR-16(7)(v)-5 PROD Cust'!J355+'FR-16(7)(v)-9 TRANS Cust'!J355+'FR-16(7)(v)-13 DIST Cust'!J355","v":0},0,0]
[21,null,{"$f":"'FR-16(7)(v)-1 Functional'!C356","v":"ENVIRONMENTAL RESERVE"},{"$f":"'FR-16(7)(v)-1 Functional'!D356","v":"NP29"},null,{"$f":"'FR-16(7)(v)-14 TOTAL CLASS'!J356","v":0},{"$f":"'FR-16(7)(v)-3 PROD Demand'!J356+'FR-16(7)(v)-7 TRANS Demand'!J356+'FR-16(7)(v)-11 DIST Demand'!J356","v":0},{"$f":"'FR-16(7)(v)-4 PROD Energy'!J356+'FR-16(7)(v)-8 TRANS Energy'!J356+'FR-16(7)(v)-12 DIST Energy'!J356","v":0},{"$f":"'FR-16(7)(v)-5 PROD Cust'!J356+'FR-16(7)(v)-9 TRANS Cust'!J356+'FR-16(7)(v)-13 DIST Cust'!J356","v":0},0,0]
[22,null,{"$f":"'FR-16(7)(v)-1 Functional'!C357","v":"VACATION PAY ACCRUALS"},{"$f":"'FR-16(7)(v)-1 Functional'!D357","v":"A315"},null,{"$f":"'FR-16(7)(v)-14 TOTAL CLASS'!J357","v":1303},{"$f":"'FR-16(7)(v)-3 PROD Demand'!J357+'FR-16(7)(v)-7 TRANS Demand'!J357+'FR-16(7)(v)-11 DIST Demand'!J357","v":549},{"$f":"'FR-16(7)(v)-4 PROD Energy'!J357+'FR-16(7)(v)-8 TRANS Energy'!J357+'FR-16(7)(v)-12 DIST Energy'!J357","v":665},{"$f":"'FR-16(7)(v)-5 PROD Cust'!J357+'FR-16(7)(v)-9 TRANS Cust'!J357+'FR-16(7)(v)-13 DIST Cust'!J357","v":89},1303,0]
[23,null,{"$f":"'FR-16(7)(v)-1 Functional'!C358","v":"DEMAND SIDE MANAGEMENT DEFERRAL"},{"$f":"'FR-16(7)(v)-1 Functional'!D358","v":"NP29"},null,{"$f":"'FR-16(7)(v)-14 TOTAL CLASS'!J358","v":3169},{"$f":"'FR-16(7)(v)-3 PROD Demand'!J358+'FR-16(7)(v)-7 TRANS Demand'!J358+'FR-16(7)(v)-11 DIST Demand'!J358","v":3063},{"$f":"'FR-16(7)(v)-4 PROD Energy'!J358+'FR-16(7)(v)-8 TRANS Energy'!J358+'FR-16(7)(v)-12 DIST Energy'!J358","v":37},{"$f":"'FR-16(7)(v)-5 PROD Cust'!J358+'FR-16(7)(v)-9 TRANS Cust'!J358+'FR-16(7)(v)-13 DIST Cust'!J358","v":69},3169,0]
[24,null,{"$f":"'FR-16(7)(v)-1 Functional'!C359","v":"OPERATING LEASE OBLIGATION"},{"$f":"'FR-16(7)(v)-1 Functional'!D359","v":"NP29"},null,{"$f":"'FR-16(7)(v)-14 TOTAL CLASS'!J359","v":11726},{"$f":"'FR-16(7)(v)-3 PROD Demand'!J359+'FR-16(7)(v)-7 TRANS Demand'!J359+'FR-16(7)(v)-11 DIST Demand'!J359","v":11336},{"$f":"'FR-16(7)(v)-4 PROD Energy'!J359+'FR-16(7)(v)-8 TRANS Energy'!J359+'FR-16(7)(v)-12 DIST Energy'!J359","v":136},{"$f":"'FR-16(7)(v)-5 PROD Cust'!J359+'FR-16(7)(v)-9 TRANS Cust'!J359+'FR-16(7)(v)-13 DIST Cust'!J359","v":254},11726,0]
[25,null,{"$f":"'FR-16(7)(v)-1 Functional'!C360","v":"INJURIES & DAMAGES"},{"$f":"'FR-16(7)(v)-1 Functional'!D360","v":"NP29"},null,{"$f":"'FR-16(7)(v)-14 TOTAL CLASS'!J360","v":0},{"$f":"'FR-16(7)(v)-3 PROD Demand'!J360+'FR-16(7)(v)-7 TRANS Demand'!J360+'FR-16(7)(v)-11 DIST Demand'!J360","v":0},{"$f":"'FR-16(7)(v)-4 PROD Energy'!J360+'FR-16(7)(v)-8 TRANS Energy'!J360+'FR-16(7)(v)-12 DIST Energy'!J360","v":0},{"$f":"'FR-16(7)(v)-5 PROD Cust'!J360+'FR-16(7)(v)-9 TRANS Cust'!J360+'FR-16(7)(v)-13 DIST Cust'!J360","v":0},0,0]
[26,null,{"$f":"'FR-16(7)(v)-1 Functional'!C361","v":"  TOTAL ACCOUNT 190"},null,null,{"$f":"SUM(F337:F360)","v":63590},34894,25038,3658,63590,0]
[27]
[28," OTHER"]
[29,null,{"$f":"'FR-16(7)(v)-1 Functional'!C364","v":"RESERVED FOR FUTURE USE"},{"$f":"'FR-16(7)(v)-1 Functional'!D364","v":"NP29"},null,{"$f":"'FR-16(7)(v)-14 TOTAL CLASS'!J364","v":0},{"$f":"'FR-16(7)(v)-3 PROD Demand'!J364+'FR-16(7)(v)-7 TRANS Demand'!J364+'FR-16(7)(v)-11 DIST Demand'!J364","v":0},{"$f":"'FR-16(7)(v)-4 PROD Energy'!J364+'FR-16(7)(v)-8 TRANS Energy'!J364+'FR-16(7)(v)-12 DIST Energy'!J364","v":0},{"$f":"'FR-16(7)(v)-5 PROD Cust'!J364+'FR-16(7)(v)-9 TRANS Cust'!J364+'FR-16(7)(v)-13 DIST Cust'!J364","v":0},{"$f":"SUM(G364:I364)","v":0},{"$f":"F364-J364","v":0}]
[30,null,{"$f":"'FR-16(7)(v)-1 Functional'!C365","v":"RATE CASE EXPENSE REGULATORY ASSET"},{"$f":"'FR-16(7)(v)-1 Functional'!D365","v":"NP29"},null,{"$f":"'FR-16(7)(v)-14 TOTAL CLASS'!J365","v":4750},{"$f":"'FR-16(7)(v)-3 PROD Demand'!J365+'FR-16(7)(v)-7 TRANS Demand'!J365+'FR-16(7)(v)-11 DIST Demand'!J365","v":4592},{"$f":"'FR-16(7)(v)-4 PROD Energy'!J365+'FR-16(7)(v)-8 TRANS Energy'!J365+'FR-16(7)(v)-12 DIST Energy'!J365","v":55},{"$f":"'FR-16(7)(v)-5 PROD Cust'!J365+'FR-16(7)(v)-9 TRANS Cust'!J365+'FR-16(7)(v)-13 DIST Cust'!J365","v":103},{"$f":"SUM(G365:I365)","v":4750},{"$f":"F365-J365","v":0}]
[31,null,{"$f":"'FR-16(7)(v)-1 Functional'!C366","v":"RESERVED FOR FUTURE USE"},{"$f":"'FR-16(7)(v)-1 Functional'!D366","v":"NP29"},null,{"$f":"'FR-16(7)(v)-14 TOTAL CLASS'!J366","v":0},{"$f":"'FR-16(7)(v)-3 PROD Demand'!J366+'FR-16(7)(v)-7 TRANS Demand'!J366+'FR-16(7)(v)-11 DIST Demand'!J366","v":0},{"$f":"'FR-16(7)(v)-4 PROD Energy'!J366+'FR-16(7)(v)-8 TRANS Energy'!J366+'FR-16(7)(v)-12 DIST Energy'!J366","v":0},{"$f":"'FR-16(7)(v)-5 PROD Cust'!J366+'FR-16(7)(v)-9 TRANS Cust'!J366+'FR-16(7)(v)-13 DIST Cust'!J366","v":0},{"$f":"SUM(G366:I366)","v":0},{"$f":"F366-J366","v":0}]
[32,null,{"$f":"'FR-16(7)(v)-1 Functional'!C367","v":"  OTHER"},null,null,{"$f":"SUM(F364:F366)","v":4750},{"$f":"SUM(G363:G366)","v":4592},{"$f":"SUM(H363:H366)","v":55},{"$f":"SUM(I363:I366)","v":103},{"$f":"SUM(J363:J366)","v":4750},{"$f":"SUM(K363:K366)","v":0}]
[33,null,null,null,null," "]
[34,"CONSTRUCTION WORK IN PROGRESS"]
[35,null,{"$f":"'FR-16(7)(v)-1 Functional'!C370","v":"PRODUCTION"},{"$f":"'FR-16(7)(v)-1 Functional'!D370","v":"P129"},null,{"$f":"'FR-16(7)(v)-14 TOTAL CLASS'!J370","v":0},{"$f":"'FR-16(7)(v)-3 PROD Demand'!J370+'FR-16(7)(v)-7 TRANS Demand'!J370+'FR-16(7)(v)-11 DIST Demand'!J370","v":0},{"$f":"'FR-16(7)(v)-4 PROD Energy'!J370+'FR-16(7)(v)-8 TRANS Energy'!J370+'FR-16(7)(v)-12 DIST Energy'!J370","v":0},{"$f":"'FR-16(7)(v)-5 PROD Cust'!J370+'FR-16(7)(v)-9 TRANS Cust'!J370+'FR-16(7)(v)-13 DIST Cust'!J370","v":0},{"$f":"SUM(G370:I370)","v":0},{"$f":"F370-J370","v":0}]
[36,null,{"$f":"'FR-16(7)(v)-1 Functional'!C371","v":"TRANSMISSION"},{"$f":"'FR-16(7)(v)-1 Functional'!D371","v":"T129"},null,{"$f":"'FR-16(7)(v)-14 TOTAL CLASS'!J371","v":0},{"$f":"'FR-16(7)(v)-3 PROD Demand'!J371+'FR-16(7)(v)-7 TRANS Demand'!J371+'FR-16(7)(v)-11 DIST Demand'!J371","v":0},{"$f":"'FR-16(7)(v)-4 PROD Energy'!J371+'FR-16(7)(v)-8 TRANS Energy'!J371+'FR-16(7)(v)-12 DIST Energy'!J371","v":0},{"$f":"'FR-16(7)(v)-5 PROD Cust'!J371+'FR-16(7)(v)-9 TRANS Cust'!J371+'FR-16(7)(v)-13 DIST Cust'!J371","v":0},{"$f":"SUM(G371:I371)","v":0},{"$f":"F371-J371","v":0}]
[37,null,{"$f":"'FR-16(7)(v)-1 Functional'!C372","v":"DISTRIBUTION"},{"$f":"'FR-16(7)(v)-1 Functional'!D372","v":"D149"},null,{"$f":"'FR-16(7)(v)-14 TOTAL CLASS'!J372","v":0},{"$f":"'FR-16(7)(v)-3 PROD Demand'!J372+'FR-16(7)(v)-7 TRANS Demand'!J372+'FR-16(7)(v)-11 DIST Demand'!J372","v":0},{"$f":"'FR-16(7)(v)-4 PROD Energy'!J372+'FR-16(7)(v)-8 TRANS Energy'!J372+'FR-16(7)(v)-12 DIST Energy'!J372","v":0},{"$f":"'FR-16(7)(v)-5 PROD Cust'!J372+'FR-16(7)(v)-9 TRANS Cust'!J372+'FR-16(7)(v)-13 DIST Cust'!J372","v":0},{"$f":"SUM(G372:I372)","v":0},{"$f":"F372-J372","v":0}]
[38,null,{"$f":"'FR-16(7)(v)-1 Functional'!C373","v":"COMMON"},{"$f":"'FR-16(7)(v)-1 Functional'!D373","v":"C129"},null,{"$f":"'FR-16(7)(v)-14 TOTAL CLASS'!J373","v":0},{"$f":"'FR-16(7)(v)-3 PROD Demand'!J373+'FR-16(7)(v)-7 TRANS Demand'!J373+'FR-16(7)(v)-11 DIST Demand'!J373","v":0},{"$f":"'FR-16(7)(v)-4 PROD Energy'!J373+'FR-16(7)(v)-8 TRANS Energy'!J373+'FR-16(7)(v)-12 DIST Energy'!J373","v":0},{"$f":"'FR-16(7)(v)-5 PROD Cust'!J373+'FR-16(7)(v)-9 TRANS Cust'!J373+'FR-16(7)(v)-13 DIST Cust'!J373","v":0},{"$f":"SUM(G373:I373)","v":0},{"$f":"F373-J373","v":0}]
[39,null,{"$f":"'FR-16(7)(v)-1 Functional'!C374","v":"GENERAL"},{"$f":"'FR-16(7)(v)-1 Functional'!D374","v":"G129"},null,{"$f":"'FR-16(7)(v)-14 TOTAL CLASS'!J374","v":0},{"$f":"'FR-16(7)(v)-3 PROD Demand'!J374+'FR-16(7)(v)-7 TRANS Demand'!J374+'FR-16(7)(v)-11 DIST Demand'!J374","v":0},{"$f":"'FR-16(7)(v)-4 PROD Energy'!J374+'FR-16(7)(v)-8 TRANS Energy'!J374+'FR-16(7)(v)-12 DIST Energy'!J374","v":0},{"$f":"'FR-16(7)(v)-5 PROD Cust'!J374+'FR-16(7)(v)-9 TRANS Cust'!J374+'FR-16(7)(v)-13 DIST Cust'!J374","v":0},{"$f":"SUM(G374:I374)","v":0},{"$f":"F374-J374","v":0}]
[40,null,{"$f":"'FR-16(7)(v)-1 Functional'!C375","v":"TOTAL CONSTRUCTION WORK IN PROGRESS"},null,null,{"$f":"SUM(F370:F374)","v":0},0,0,0,0,0]
[41]
[42,{"$f":"'FR-16(7)(v)-1 Functional'!B377","v":"TOTAL ADDITIVE RATE BASE ADJUSTMENTS"},null,null,null,{"$f":"F361+F367+F375","v":68340},39486,25093,3761,68340,0]
[]
[{"$f":"co_name","v":"DUKE ENERGY KENTUCKY, INC."},null,null,null,null,null,null,null,null,{"$f":"J1","v":"FR-16(7)(v)-18"}]
[{"$f":"$A$2","v":"EH SECONDARY CLASSIFIED - ELECTRIC COST OF SERVICE"},null,null,null,null,null,null,null,null,{"$f":"J2","v":"WITNESS RESPONSIBLE:"}]
[{"$f":"case_name","v":"CASE NO: 2019-00271"},null,null,null,null,null,null,null,null,{"$f":"Witness","v":"JAMES E. ZIOLKOWSKI"}]
[{"$f":"data_filing","v":"DATA: 12 MONTHS ACTUAL  & 0 MONTHS ESTIMATED"},null,null,null,null,null,null,null,null,{"$f":"\"PAGE \"&Pages2-8&\" OF \"&Pages2","v":"PAGE 7 OF 15"}]
[{"$f":"type","v":"TYPE OF FILING: \"X\" ORIGINAL   UPDATED    REVISED  "}]
[]
[]
["LINE",null,null,null,null,"TOTAL","CLASSIFIED",null,null,"TOTAL","ALL"]
["NO.","WORKING CAPITAL",null,"ALLO",null,{"$f":"$F$9","v":"EH SECONDARY"},{"$f":"G9","v":"DEMAND"},"ENERGY","CUSTOMER","AT ISSUE","OTHER"]
[null,null,"Schedule 5.2",null,null,null,3,4,5]
[]
[1,"NET ORIGINAL COST RATE BASE",null,null,null,{"$f":"F277-F324+F377","v":4451105},4323072,29743,98290,4451105,0]
[2]
[3,"WORKING CAPITAL"]
[4]
[5,"PLANT MATERIALS & SUPPLIES"]
[6,null,{"$f":"'FR-16(7)(v)-1 Functional'!C395","v":"OTHER MATERIALS & SUPPLIES"},{"$f":"'FR-16(7)(v)-1 Functional'!D395","v":"PD29"},null,{"$f":"'FR-16(7)(v)-14 TOTAL CLASS'!J395","v":68854},{"$f":"'FR-16(7)(v)-3 PROD Demand'!J395+'FR-16(7)(v)-7 TRANS Demand'!J395+'FR-16(7)(v)-11 DIST Demand'!J395","v":39205},{"$f":"'FR-16(7)(v)-4 PROD Energy'!J395+'FR-16(7)(v)-8 TRANS Energy'!J395+'FR-16(7)(v)-12 DIST Energy'!J395","v":22581},{"$f":"'FR-16(7)(v)-5 PROD Cust'!J395+'FR-16(7)(v)-9 TRANS Cust'!J395+'FR-16(7)(v)-13 DIST Cust'!J395","v":7068},{"$f":"SUM(G395:I395)","v":68854},{"$f":"F395-J395","v":0}]
[7,null,{"$f":"'FR-16(7)(v)-1 Functional'!C396","v":"FUEL"},{"$f":"'FR-16(7)(v)-1 Functional'!D396","v":"K301"},null,{"$f":"'FR-16(7)(v)-14 TOTAL CLASS'!J396","v":83537},{"$f":"'FR-16(7)(v)-3 PROD Demand'!J396+'FR-16(7)(v)-7 TRANS Demand'!J396+'FR-16(7)(v)-11 DIST Demand'!J396","v":0},{"$f":"'FR-16(7)(v)-4 PROD Energy'!J396+'FR-16(7)(v)-8 TRANS Energy'!J396+'FR-16(7)(v)-12 DIST Energy'!J396","v":83537},{"$f":"'FR-16(7)(v)-5 PROD Cust'!J396+'FR-16(7)(v)-9 TRANS Cust'!J396+'FR-16(7)(v)-13 DIST Cust'!J396","v":0},{"$f":"SUM(G396:I396)","v":83537},{"$f":"F396-J396","v":0}]
[8,null,{"$f":"'FR-16(7)(v)-1 Functional'!C397","v":"EMISSION ALLOWANCES"},{"$f":"'FR-16(7)(v)-1 Functional'!D397","v":"K301"},null,{"$f":"'FR-16(7)(v)-14 TOTAL CLASS'!J397","v":0},{"$f":"'FR-16(7)(v)-3 PROD Demand'!J397+'FR-16(7)(v)-7 TRANS Demand'!J397+'FR-16(7)(v)-11 DIST Demand'!J397","v":0},{"$f":"'FR-16(7)(v)-4 PROD Energy'!J397+'FR-16(7)(v)-8 TRANS Energy'!J397+'FR-16(7)(v)-12 DIST Energy'!J397","v":0},{"$f":"'FR-16(7)(v)-5 PROD Cust'!J397+'FR-16(7)(v)-9 TRANS Cust'!J397+'FR-16(7)(v)-13 DIST Cust'!J397","v":0},{"$f":"SUM(G397:I397)","v":0},{"$f":"F397-J397","v":0}]
[9,null,{"$f":"'FR-16(7)(v)-1 Functional'!C398","v":"  TOTAL PLANT MATS. & SUPPLIES"},null,null,{"$f":"SUM(F394:F397)","v":152391},39205,106118,7068,152391,0]
[10,"TOTAL MATERIALS & SUPPLIES",null,null,null,{"$f":"F398","v":152391},39205,106118,7068,152391,0]
[11]
[12,"PREPAYMENTS"]
[13,null,{"$f":"'FR-16(7)(v)-1 Functional'!C402","v":"INSURANCE GENERAL"},{"$f":"'FR-16(7)(v)-1 Functional'!D402","v":"NP29"},null,{"$f":"'FR-16(7)(v)-14 TOTAL CLASS'!J402","v":1402},{"$f":"'FR-16(7)(v)-3 PROD Demand'!J402+'FR-16(7)(v)-7 TRANS Demand'!J402+'FR-16(7)(v)-11 DIST Demand'!J402","v":1356},{"$f":"'FR-16(7)(v)-4 PROD Energy'!J402+'FR-16(7)(v)-8 TRANS Energy'!J402+'FR-16(7)(v)-12 DIST Energy'!J402","v":16},{"$f":"'FR-16(7)(v)-5 PROD Cust'!J402+'FR-16(7)(v)-9 TRANS Cust'!J402+'FR-16(7)(v)-13 DIST Cust'!J402","v":30},{"$f":"SUM(G402:I402)","v":1402},{"$f":"F402-J402","v":0}]
[14,null,{"$f":"'FR-16(7)(v)-1 Functional'!C403","v":"EXCISE TAX"},{"$f":"'FR-16(7)(v)-1 Functional'!D403","v":"NP29"},null,{"$f":"'FR-16(7)(v)-14 TOTAL CLASS'!J403","v":0},{"$f":"'FR-16(7)(v)-3 PROD Demand'!J403+'FR-16(7)(v)-7 TRANS Demand'!J403+'FR-16(7)(v)-11 DIST Demand'!J403","v":0},{"$f":"'FR-16(7)(v)-4 PROD Energy'!J403+'FR-16(7)(v)-8 TRANS Energy'!J403+'FR-16(7)(v)-12 DIST Energy'!J403","v":0},{"$f":"'FR-16(7)(v)-5 PROD Cust'!J403+'FR-16(7)(v)-9 TRANS Cust'!J403+'FR-16(7)(v)-13 DIST Cust'!J403","v":0},{"$f":"SUM(G403:I403)","v":0},{"$f":"F403-J403","v":0}]
[15,null,{"$f":"'FR-16(7)(v)-1 Functional'!C404","v":"COLLATERAL ASSET"},{"$f":"'FR-16(7)(v)-1 Functional'!D404","v":"K301"},null,{"$f":"'FR-16(7)(v)-14 TOTAL CLASS'!J404","v":-189},{"$f":"'FR-16(7)(v)-3 PROD Demand'!J404+'FR-16(7)(v)-7 TRANS Demand'!J404+'FR-16(7)(v)-11 DIST Demand'!J404","v":0},{"$f":"'FR-16(7)(v)-4 PROD Energy'!J404+'FR-16(7)(v)-8 TRANS Energy'!J404+'FR-16(7)(v)-12 DIST Energy'!J404","v":-189},{"$f":"'FR-16(7)(v)-5 PROD Cust'!J404+'FR-16(7)(v)-9 TRANS Cust'!J404+'FR-16(7)(v)-13 DIST Cust'!J404","v":0},{"$f":"SUM(G404:I404)","v":-189},{"$f":"F404-J404","v":0}]
[16,null,{"$f":"'FR-16(7)(v)-1 Functional'!C405","v":"  TOTAL PREPAYMENTS"},null,null,{"$f":"SUM(F401:F404)","v":1213},1356,-173,30,1213,0]
[17]
[18,"AUTO CALC (O&M-ELECTRIC FUEL COST)/8",null,null,null,{"$f":"'FR-16(7)(v)-14 TOTAL CLASS'!J407","v":76772},{"$f":"'FR-16(7)(v)-3 PROD Demand'!J407+'FR-16(7)(v)-7 TRANS Demand'!J407+'FR-16(7)(v)-11 DIST Demand'!J407","v":76772},{"$f":"'FR-16(7)(v)-4 PROD Energy'!J407+'FR-16(7)(v)-8 TRANS Energy'!J407+'FR-16(7)(v)-12 DIST Energy'!J407","v":0},{"$f":"'FR-16(7)(v)-5 PROD Cust'!J407+'FR-16(7)(v)-9 TRANS Cust'!J407+'FR-16(7)(v)-13 DIST Cust'!J407","v":0},{"$f":"SUM(G407:I407)","v":76772},{"$f":"F407-J407","v":0}]
[19,"  TOTAL WORKING CASH",null,null,null,{"$f":"F407","v":76772},76772,0,0,76772,0]
[20]
[21,"MISCELLANEOUS WORKING CAPITAL"]
[22,null,{"$f":"'FR-16(7)(v)-1 Functional'!C411","v":"RESERVED FOR FUTURE USE"},{"$f":"'FR-16(7)(v)-1 Functional'!D411","v":"K301"},null,{"$f":"'FR-16(7)(v)-14 TOTAL CLASS'!J411","v":0},{"$f":"'FR-16(7)(v)-3 PROD Demand'!J411+'FR-16(7)(v)-7 TRANS Demand'!J411+'FR-16(7)(v)-11 DIST Demand'!J411","v":0},{"$f":"'FR-16(7)(v)-4 PROD Energy'!J411+'FR-16(7)(v)-8 TRANS Energy'!J411+'FR-16(7)(v)-12 DIST Energy'!J411","v":0},{"$f":"'FR-16(7)(v)-5 PROD Cust'!J411+'FR-16(7)(v)-9 TRANS Cust'!J411+'FR-16(7)(v)-13 DIST Cust'!J411","v":0},{"$f":"SUM(G411:I411)","v":0},{"$f":"F411-J411","v":0}]
[23,null,{"$f":"'FR-16(7)(v)-1 Functional'!C412","v":"PIPP UNCOLLECTIBLES"},{"$f":"'FR-16(7)(v)-1 Functional'!D412","v":"A315"},null,{"$f":"'FR-16(7)(v)-14 TOTAL CLASS'!J412","v":0},{"$f":"'FR-16(7)(v)-3 PROD Demand'!J412+'FR-16(7)(v)-7 TRANS Demand'!J412+'FR-16(7)(v)-11 DIST Demand'!J412","v":0},{"$f":"'FR-16(7)(v)-4 PROD Energy'!J412+'FR-16(7)(v)-8 TRANS Energy'!J412+'FR-16(7)(v)-12 DIST Energy'!J412","v":0},{"$f":"'FR-16(7)(v)-5 PROD Cust'!J412+'FR-16(7)(v)-9 TRANS Cust'!J412+'FR-16(7)(v)-13 DIST Cust'!J412","v":0},{"$f":"SUM(G412:I412)","v":0},{"$f":"F412-J412","v":0}]
[24,null,{"$f":"'FR-16(7)(v)-1 Functional'!C413","v":"RESERVED FOR FUTURE USE"},{"$f":"'FR-16(7)(v)-1 Functional'!D413","v":"D249"},null,{"$f":"'FR-16(7)(v)-14 TOTAL CLASS'!J413","v":0},{"$f":"'FR-16(7)(v)-3 PROD Demand'!J413+'FR-16(7)(v)-7 TRANS Demand'!J413+'FR-16(7)(v)-11 DIST Demand'!J413","v":0},{"$f":"'FR-16(7)(v)-4 PROD Energy'!J413+'FR-16(7)(v)-8 TRANS Energy'!J413+'FR-16(7)(v)-12 DIST Energy'!J413","v":0},{"$f":"'FR-16(7)(v)-5 PROD Cust'!J413+'FR-16(7)(v)-9 TRANS Cust'!J413+'FR-16(7)(v)-13 DIST Cust'!J413","v":0},{"$f":"SUM(G413:I413)","v":0},{"$f":"F413-J413","v":0}]
[25,null,{"$f":"'FR-16(7)(v)-1 Functional'!C414","v":"  TOTAL MISC WORK CAPITAL"},null,null,{"$f":"SUM(F410:F413)","v":0},0,0,0,0,0]
[26]
[27,"TOTAL WORKING CAPITAL",null,null,null,{"$f":"F399+F405+F408+F414","v":230376},117333,105945,7098,230376,0]
[28,"PRELIMINARY SUMMARY"]
[29,null,{"$f":"'FR-16(7)(v)-1 Functional'!C418","v":"TOTAL ACCUMULATED DEFERRED INCOME TAXES"},null,null,{"$f":"-F324","v":-1389107},-1296197,-62365,-30545,-1389107,0]
[30,null,{"$f":"'FR-16(7)(v)-1 Functional'!C419","v":"TOTAL OTHER ACCUMULATED DEFERRED INCOME TAXES"},null,null,{"$f":"F377","v":68340},39486,25093,3761,68340,0]
[31,null,{"$f":"'FR-16(7)(v)-1 Functional'!C420","v":"TOTAL WORKING CAPITAL"},null,null,{"$f":"F416","v":230376},117333,105945,7098,230376,0]
[32,null,{"$f":"'FR-16(7)(v)-1 Functional'!C421","v":"  TOTAL RATE BASE ADJUSTMENTS"},null,null,{"$f":"SUM(F417:F420)","v":-1090391},-1139378,68673,-19686,-1090391,0]
[33]
[34,"RATE BASE CALCULATION"]
[35,null,{"$f":"'FR-16(7)(v)-1 Functional'!C424","v":"NET ELECTRIC PLANT IN SERVICE"},null,null,{"$f":"F277","v":5771872},5579783,67015,125074,5771872,0]
[36,null,{"$f":"'FR-16(7)(v)-1 Functional'!C425","v":"TOTAL RATE BASE ADJUSTMENTS"},null,null,{"$f":"F421","v":-1090391},-1139378,68673,-19686,-1090391,0]
[37,null,{"$f":"'FR-16(7)(v)-1 Functional'!C426","v":"  TOTAL RATE BASE"},null,null,{"$f":"SUM(F423:F425)","v":4681481},4440405,135688,105388,4681481,0]
[38]
[39,"TOTAL RATE OF RETURN ALLOWABLE",null,null,null,{"$f":"$F$811","v":6.7100000000000007E-2},{"$f":"F811","v":6.7100000000000007E-2},{"$f":"F811","v":6.7100000000000007E-2},{"$f":"F811","v":6.7100000000000007E-2},{"$f":"F811","v":6.7100000000000007E-2}]
[40,"RETURN ON RATE BASE",null,null,null,{"$f":"ROUND(F428*F426,0)","v":314127},{"$f":"F429-SUM(H429:I429)","v":297950},{"$f":"ROUND(H426*H428,0)","v":9105},{"$f":"ROUND(I426*I428,0)","v":7072},{"$f":"SUM(G429:I429)","v":314127},{"$f":"ROUND(K426*K428,0)","v":0}]
[41]
[42,{"$f":"'FR-16(7)(v)-1 Functional'!B431","v":"ELECTRIC RATE BASE"},null,{"$f":"'FR-16(7)(v)-1 Functional'!D431","v":"RB99"},null,{"$f":"'FR-16(7)(v)-14 TOTAL CLASS'!J431","v":4690079},{"$f":"'FR-16(7)(v)-3 PROD Demand'!J431+'FR-16(7)(v)-7 TRANS Demand'!J431+'FR-16(7)(v)-11 DIST Demand'!J431","v":4449299},{"$f":"'FR-16(7)(v)-4 PROD Energy'!J431+'FR-16(7)(v)-8 TRANS Energy'!J431+'FR-16(7)(v)-12 DIST Energy'!J431","v":135750},{"$f":"'FR-16(7)(v)-5 PROD Cust'!J431+'FR-16(7)(v)-9 TRANS Cust'!J431+'FR-16(7)(v)-13 DIST Cust'!J431","v":105030},{"$f":"SUM(G431:I431)","v":4690079},{"$f":"F431-J431","v":0}]
[43,{"$f":"'FR-16(7)(v)-1 Functional'!B432","v":"TOTAL RATE OF RETURN ALLOWABLE"},null,null,null,{"$f":"RofR","v":6.7110000000000003E-2},{"$f":"RofR","v":6.7110000000000003E-2},{"$f":"RofR","v":6.7110000000000003E-2},{"$f":"RofR","v":6.7110000000000003E-2},{"$f":"RofR","v":6.7110000000000003E-2}]
[44,{"$f":"'FR-16(7)(v)-1 Functional'!B433","v":"RETURN ON RATE BASE"},null,null,null,{"$f":"ROUND(F431*F432,0)","v":314751},{"$f":"F433-H433-I433","v":298592},{"$f":"ROUND(H431*H432,0)","v":9110},{"$f":"ROUND(I431*I432,0)","v":7049},{"$f":"ROUND(J431*J432,0)","v":314751},{"$f":"F433-J433","v":0}]
[]
[{"$f":"co_name","v":"DUKE ENERGY KENTUCKY, INC."},null,null,null,null,null,null,null,null,{"$f":"J1","v":"FR-16(7)(v)-18"}]
[{"$f":"$A$2","v":"EH SECONDARY CLASSIFIED - ELECTRIC COST OF SERVICE"},null,null,null,null,null,null,null,null,{"$f":"J2","v":"WITNESS RESPONSIBLE:"}]
[{"$f":"case_name","v":"CASE NO: 2019-00271"},null,null,null,null,null,null,null,null,{"$f":"Witness","v":"JAMES E. ZIOLKOWSKI"}]
[{"$f":"data_filing","v":"DATA: 12 MONTHS ACTUAL  & 0 MONTHS ESTIMATED"},null,null,null,null,null,null,null,null,{"$f":"\"PAGE \"&Pages2-7&\" OF \"&Pages2","v":"PAGE 8 OF 15"}]
[{"$f":"type","v":"TYPE OF FILING: \"X\" ORIGINAL   UPDATED    REVISED  "}]
[]
[]
["LINE",null,null,null,null,"TOTAL","CLASSIFIED",null,null,"TOTAL","ALL"]
["NO.","O&M EXPENSES",null,"ALLO",null,{"$f":"$F$9","v":"EH SECONDARY"},{"$f":"G9","v":"DEMAND"},"ENERGY","CUSTOMER","AT ISSUE","OTHER"]
[null,null,"Schedule 6",null,null,null,3,4,5]
[1,"PRODUCTION O&M"]
[2,{"$f":"'FR-16(7)(v)-1 Functional'!B446","v":"ENERGY RELATED PRODUCTION O&M"}]
[3,null,{"$f":"'FR-16(7)(v)-1 Functional'!C447","v":"FUEL"},{"$f":"'FR-16(7)(v)-1 Functional'!D447","v":"K302"},null,{"$f":"'FR-16(7)(v)-14 TOTAL CLASS'!J447","v":0},{"$f":"'FR-16(7)(v)-3 PROD Demand'!J447+'FR-16(7)(v)-7 TRANS Demand'!J447+'FR-16(7)(v)-11 DIST Demand'!J447","v":0},{"$f":"'FR-16(7)(v)-4 PROD Energy'!J447+'FR-16(7)(v)-8 TRANS Energy'!J447+'FR-16(7)(v)-12 DIST Energy'!J447","v":0},{"$f":"'FR-16(7)(v)-5 PROD Cust'!J447+'FR-16(7)(v)-9 TRANS Cust'!J447+'FR-16(7)(v)-13 DIST Cust'!J447","v":0},{"$f":"SUM(G447:I447)","v":0},{"$f":"F447-J447","v":0}]
[4,null,{"$f":"'FR-16(7)(v)-1 Functional'!C448","v":"FUEL AND PURCHASED POWER ADJUSTMENT"},{"$f":"'FR-16(7)(v)-1 Functional'!D448","v":"K302"},null,{"$f":"'FR-16(7)(v)-14 TOTAL CLASS'!J448","v":430629},{"$f":"'FR-16(7)(v)-3 PROD Demand'!J448+'FR-16(7)(v)-7 TRANS Demand'!J448+'FR-16(7)(v)-11 DIST Demand'!J448","v":0},{"$f":"'FR-16(7)(v)-4 PROD Energy'!J448+'FR-16(7)(v)-8 TRANS Energy'!J448+'FR-16(7)(v)-12 DIST Energy'!J448","v":430629},{"$f":"'FR-16(7)(v)-5 PROD Cust'!J448+'FR-16(7)(v)-9 TRANS Cust'!J448+'FR-16(7)(v)-13 DIST Cust'!J448","v":0},430629,0]
[5,null,{"$f":"'FR-16(7)(v)-1 Functional'!C449","v":"EMISSION ALLOWANCES"},{"$f":"'FR-16(7)(v)-1 Functional'!D449","v":"K301"},null,{"$f":"'FR-16(7)(v)-14 TOTAL CLASS'!J449","v":0},{"$f":"'FR-16(7)(v)-3 PROD Demand'!J449+'FR-16(7)(v)-7 TRANS Demand'!J449+'FR-16(7)(v)-11 DIST Demand'!J449","v":0},{"$f":"'FR-16(7)(v)-4 PROD Energy'!J449+'FR-16(7)(v)-8 TRANS Energy'!J449+'FR-16(7)(v)-12 DIST Energy'!J449","v":0},{"$f":"'FR-16(7)(v)-5 PROD Cust'!J449+'FR-16(7)(v)-9 TRANS Cust'!J449+'FR-16(7)(v)-13 DIST Cust'!J449","v":0},0,0]
[6,null,{"$f":"'FR-16(7)(v)-1 Functional'!C450","v":"ELIMINATE EMISSION ALLOW & OTHER VAR COST"},{"$f":"'FR-16(7)(v)-1 Functional'!D450","v":"K301"},null,{"$f":"'FR-16(7)(v)-14 TOTAL CLASS'!J450","v":0},{"$f":"'FR-16(7)(v)-3 PROD Demand'!J450+'FR-16(7)(v)-7 TRANS Demand'!J450+'FR-16(7)(v)-11 DIST Demand'!J450","v":0},{"$f":"'FR-16(7)(v)-4 PROD Energy'!J450+'FR-16(7)(v)-8 TRANS Energy'!J450+'FR-16(7)(v)-12 DIST Energy'!J450","v":0},{"$f":"'FR-16(7)(v)-5 PROD Cust'!J450+'FR-16(7)(v)-9 TRANS Cust'!J450+'FR-16(7)(v)-13 DIST Cust'!J450","v":0},0,0]
[7,null,{"$f":"'FR-16(7)(v)-1 Functional'!C451","v":"OTHER PRODUCTION EXPENSE - MAINTENANCE"},{"$f":"'FR-16(7)(v)-1 Functional'!D451","v":"K301"},null,{"$f":"'FR-16(7)(v)-14 TOTAL CLASS'!J451","v":174126},{"$f":"'FR-16(7)(v)-3 PROD Demand'!J451+'FR-16(7)(v)-7 TRANS Demand'!J451+'FR-16(7)(v)-11 DIST Demand'!J451","v":0},{"$f":"'FR-16(7)(v)-4 PROD Energy'!J451+'FR-16(7)(v)-8 TRANS Energy'!J451+'FR-16(7)(v)-12 DIST Energy'!J451","v":174126},{"$f":"'FR-16(7)(v)-5 PROD Cust'!J451+'FR-16(7)(v)-9 TRANS Cust'!J451+'FR-16(7)(v)-13 DIST Cust'!J451","v":0},174126,0]
[8,null,{"$f":"'FR-16(7)(v)-1 Functional'!C452","v":"MISO TRANSMISSION CHARGES - ACCT 555"},{"$f":"'FR-16(7)(v)-1 Functional'!D452","v":"K301"},null,{"$f":"'FR-16(7)(v)-14 TOTAL CLASS'!J452","v":0},{"$f":"'FR-16(7)(v)-3 PROD Demand'!J452+'FR-16(7)(v)-7 TRANS Demand'!J452+'FR-16(7)(v)-11 DIST Demand'!J452","v":0},{"$f":"'FR-16(7)(v)-4 PROD Energy'!J452+'FR-16(7)(v)-8 TRANS Energy'!J452+'FR-16(7)(v)-12 DIST Energy'!J452","v":0},{"$f":"'FR-16(7)(v)-5 PROD Cust'!J452+'FR-16(7)(v)-9 TRANS Cust'!J452+'FR-16(7)(v)-13 DIST Cust'!J452","v":0},0,0]
[9,null,{"$f":"'FR-16(7)(v)-1 Functional'!C453","v":"  TOTAL ENERGY RELATED"},null,null,{"$f":"SUM(F447:F452)","v":604755},0,604755,0,604755,0]
[10]
[11,"DEMAND RELATED & OTHER PROD O&M"]
[12,null,{"$f":"'FR-16(7)(v)-1 Functional'!C456","v":"OTHER PRODUCTION EXPENSES - OPERATIONS"},{"$f":"'FR-16(7)(v)-1 Functional'!D456","v":"K201"},null,{"$f":"'FR-16(7)(v)-14 TOTAL CLASS'!J456","v":0},{"$f":"'FR-16(7)(v)-3 PROD Demand'!J456+'FR-16(7)(v)-7 TRANS Demand'!J456+'FR-16(7)(v)-11 DIST Demand'!J456","v":0},{"$f":"'FR-16(7)(v)-4 PROD Energy'!J456+'FR-16(7)(v)-8 TRANS Energy'!J456+'FR-16(7)(v)-12 DIST Energy'!J456","v":0},{"$f":"'FR-16(7)(v)-5 PROD Cust'!J456+'FR-16(7)(v)-9 TRANS Cust'!J456+'FR-16(7)(v)-13 DIST Cust'!J456","v":0},{"$f":"SUM(G456:I456)","v":0},{"$f":"F456-J456","v":0}]
[13,null,{"$f":"'FR-16(7)(v)-1 Functional'!C457","v":"  TOTAL DEMAND REL & OTH PROD O&M "},null,null,{"$f":"SUM(F455:F456)","v":0},0,0,0,0,0]
[14]
[15,"TOTAL PRODUCTION O&M",null,null," ",{"$f":"F457+F453","v":604755},0,604755,0,604755,0]
[16]
[17,"TRANSMISSION O & M"]
[18,null,{"$f":"'FR-16(7)(v)-1 Functional'!C462","v":"TRANSFORMER LEASE PAYMENTS"},{"$f":"'FR-16(7)(v)-1 Functional'!D462","v":"K202"},null,{"$f":"'FR-16(7)(v)-14 TOTAL CLASS'!J462","v":0},{"$f":"'FR-16(7)(v)-3 PROD Demand'!J462+'FR-16(7)(v)-7 TRANS Demand'!J462+'FR-16(7)(v)-11 DIST Demand'!J462","v":0},{"$f":"'FR-16(7)(v)-4 PROD Energy'!J462+'FR-16(7)(v)-8 TRANS Energy'!J462+'FR-16(7)(v)-12 DIST Energy'!J462","v":0},{"$f":"'FR-16(7)(v)-5 PROD Cust'!J462+'FR-16(7)(v)-9 TRANS Cust'!J462+'FR-16(7)(v)-13 DIST Cust'!J462","v":0},{"$f":"SUM(G462:I462)","v":0},{"$f":"F462-J462","v":0}]
[19,null,{"$f":"'FR-16(7)(v)-1 Functional'!C463","v":"OTHER TRANSMISSION"},{"$f":"'FR-16(7)(v)-1 Functional'!D463","v":"K202"},null,{"$f":"'FR-16(7)(v)-14 TOTAL CLASS'!J463","v":118769},{"$f":"'FR-16(7)(v)-3 PROD Demand'!J463+'FR-16(7)(v)-7 TRANS Demand'!J463+'FR-16(7)(v)-11 DIST Demand'!J463","v":118769},{"$f":"'FR-16(7)(v)-4 PROD Energy'!J463+'FR-16(7)(v)-8 TRANS Energy'!J463+'FR-16(7)(v)-12 DIST Energy'!J463","v":0},{"$f":"'FR-16(7)(v)-5 PROD Cust'!J463+'FR-16(7)(v)-9 TRANS Cust'!J463+'FR-16(7)(v)-13 DIST Cust'!J463","v":0},{"$f":"SUM(G463:I463)","v":118769},{"$f":"F463-J463","v":0}]
[20,null,{"$f":"'FR-16(7)(v)-1 Functional'!C464","v":"MISCELLANEOUS ADJUSTMENTS"},{"$f":"'FR-16(7)(v)-1 Functional'!D464","v":"K202"},null,{"$f":"'FR-16(7)(v)-14 TOTAL CLASS'!J464","v":0},{"$f":"'FR-16(7)(v)-3 PROD Demand'!J464+'FR-16(7)(v)-7 TRANS Demand'!J464+'FR-16(7)(v)-11 DIST Demand'!J464","v":0},{"$f":"'FR-16(7)(v)-4 PROD Energy'!J464+'FR-16(7)(v)-8 TRANS Energy'!J464+'FR-16(7)(v)-12 DIST Energy'!J464","v":0},{"$f":"'FR-16(7)(v)-5 PROD Cust'!J464+'FR-16(7)(v)-9 TRANS Cust'!J464+'FR-16(7)(v)-13 DIST Cust'!J464","v":0},{"$f":"SUM(G464:I464)","v":0},{"$f":"F464-J464","v":0}]
[21,null,{"$f":"'FR-16(7)(v)-1 Functional'!C465","v":"NETWORK SERVICE RATES ADJUSTMENT"},{"$f":"'FR-16(7)(v)-1 Functional'!D465","v":"K202"},null,{"$f":"'FR-16(7)(v)-14 TOTAL CLASS'!J465","v":0},{"$f":"'FR-16(7)(v)-3 PROD Demand'!J465+'FR-16(7)(v)-7 TRANS Demand'!J465+'FR-16(7)(v)-11 DIST Demand'!J465","v":0},{"$f":"'FR-16(7)(v)-4 PROD Energy'!J465+'FR-16(7)(v)-8 TRANS Energy'!J465+'FR-16(7)(v)-12 DIST Energy'!J465","v":0},{"$f":"'FR-16(7)(v)-5 PROD Cust'!J465+'FR-16(7)(v)-9 TRANS Cust'!J465+'FR-16(7)(v)-13 DIST Cust'!J465","v":0},{"$f":"SUM(G465:I465)","v":0},{"$f":"F465-J465","v":0}]
[22,null,{"$f":"'FR-16(7)(v)-1 Functional'!C466","v":"  TOTAL TRANSMISSION O & M"},null,null,{"$f":"SUM(F462:F465)","v":118769},118769,0,0,118769,0]
[23]
[24,"REGIONAL MARKET O&M"]
[25,null,{"$f":"'FR-16(7)(v)-1 Functional'!C469","v":"MARKET FACILITATION - MONITORING & COMPLIANCE"},{"$f":"'FR-16(7)(v)-1 Functional'!D469","v":"K202"},null,{"$f":"'FR-16(7)(v)-14 TOTAL CLASS'!J469","v":9372},{"$f":"'FR-16(7)(v)-3 PROD Demand'!J469+'FR-16(7)(v)-7 TRANS Demand'!J469+'FR-16(7)(v)-11 DIST Demand'!J469","v":9372},{"$f":"'FR-16(7)(v)-4 PROD Energy'!J469+'FR-16(7)(v)-8 TRANS Energy'!J469+'FR-16(7)(v)-12 DIST Energy'!J469","v":0},{"$f":"'FR-16(7)(v)-5 PROD Cust'!J469+'FR-16(7)(v)-9 TRANS Cust'!J469+'FR-16(7)(v)-13 DIST Cust'!J469","v":0},{"$f":"SUM(G469:I469)","v":9372},{"$f":"F469-J469","v":0}]
[26,null,{"$f":"'FR-16(7)(v)-1 Functional'!C470","v":"TOTAL REGIONAL MARKET O&M"},null,null,{"$f":"SUM(F468:F469)","v":9372},9372,0,0,9372,0]
[27]
[28,"DISTRIBUTION O & M"]
[29,null,{"$f":"'FR-16(7)(v)-1 Functional'!C473","v":"SUBSTATIONS"},{"$f":"'FR-16(7)(v)-1 Functional'!D473","v":"K201"},null,{"$f":"'FR-16(7)(v)-14 TOTAL CLASS'!J473","v":3186},{"$f":"'FR-16(7)(v)-3 PROD Demand'!J473+'FR-16(7)(v)-7 TRANS Demand'!J473+'FR-16(7)(v)-11 DIST Demand'!J473","v":3186},{"$f":"'FR-16(7)(v)-4 PROD Energy'!J473+'FR-16(7)(v)-8 TRANS Energy'!J473+'FR-16(7)(v)-12 DIST Energy'!J473","v":0},{"$f":"'FR-16(7)(v)-5 PROD Cust'!J473+'FR-16(7)(v)-9 TRANS Cust'!J473+'FR-16(7)(v)-13 DIST Cust'!J473","v":0},{"$f":"SUM(G473:I473)","v":3186},{"$f":"F473-J473","v":0}]
[30,null,{"$f":"'FR-16(7)(v)-1 Functional'!C474","v":"POLES, TOWERS & FIXTURES"},{"$f":"'FR-16(7)(v)-1 Functional'!D474","v":"PL49"},null,{"$f":"'FR-16(7)(v)-14 TOTAL CLASS'!J474","v":0},{"$f":"'FR-16(7)(v)-3 PROD Demand'!J474+'FR-16(7)(v)-7 TRANS Demand'!J474+'FR-16(7)(v)-11 DIST Demand'!J474","v":0},{"$f":"'FR-16(7)(v)-4 PROD Energy'!J474+'FR-16(7)(v)-8 TRANS Energy'!J474+'FR-16(7)(v)-12 DIST Energy'!J474","v":0},{"$f":"'FR-16(7)(v)-5 PROD Cust'!J474+'FR-16(7)(v)-9 TRANS Cust'!J474+'FR-16(7)(v)-13 DIST Cust'!J474","v":0},0,0]
[31,null,{"$f":"'FR-16(7)(v)-1 Functional'!C475","v":"OVERHEAD LINES - PRIMARY / DEMAND"},{"$f":"'FR-16(7)(v)-1 Functional'!D475","v":"K205"},null,{"$f":"'FR-16(7)(v)-14 TOTAL CLASS'!J475","v":31442},{"$f":"'FR-16(7)(v)-3 PROD Demand'!J475+'FR-16(7)(v)-7 TRANS Demand'!J475+'FR-16(7)(v)-11 DIST Demand'!J475","v":31442},{"$f":"'FR-16(7)(v)-4 PROD Energy'!J475+'FR-16(7)(v)-8 TRANS Energy'!J475+'FR-16(7)(v)-12 DIST Energy'!J475","v":0},{"$f":"'FR-16(7)(v)-5 PROD Cust'!J475+'FR-16(7)(v)-9 TRANS Cust'!J475+'FR-16(7)(v)-13 DIST Cust'!J475","v":0},31442,0]
[32,null,{"$f":"'FR-16(7)(v)-1 Functional'!C476","v":"OVERHEAD LINES - PRIMARY / CUSTOMER"},{"$f":"'FR-16(7)(v)-1 Functional'!D476","v":"K405"},null,{"$f":"'FR-16(7)(v)-14 TOTAL CLASS'!J476","v":813},{"$f":"'FR-16(7)(v)-3 PROD Demand'!J476+'FR-16(7)(v)-7 TRANS Demand'!J476+'FR-16(7)(v)-11 DIST Demand'!J476","v":0},{"$f":"'FR-16(7)(v)-4 PROD Energy'!J476+'FR-16(7)(v)-8 TRANS Energy'!J476+'FR-16(7)(v)-12 DIST Energy'!J476","v":0},{"$f":"'FR-16(7)(v)-5 PROD Cust'!J476+'FR-16(7)(v)-9 TRANS Cust'!J476+'FR-16(7)(v)-13 DIST Cust'!J476","v":813},{"$f":"SUM(G476:I476)","v":813},{"$f":"F476-J476","v":0}]
[33,null,{"$f":"'FR-16(7)(v)-1 Functional'!C477","v":"OVERHEAD LINES - SECONDARY / DEMAND"},{"$f":"'FR-16(7)(v)-1 Functional'!D477","v":"K206"},null,{"$f":"'FR-16(7)(v)-14 TOTAL CLASS'!J477","v":12803},{"$f":"'FR-16(7)(v)-3 PROD Demand'!J477+'FR-16(7)(v)-7 TRANS Demand'!J477+'FR-16(7)(v)-11 DIST Demand'!J477","v":12803},{"$f":"'FR-16(7)(v)-4 PROD Energy'!J477+'FR-16(7)(v)-8 TRANS Energy'!J477+'FR-16(7)(v)-12 DIST Energy'!J477","v":0},{"$f":"'FR-16(7)(v)-5 PROD Cust'!J477+'FR-16(7)(v)-9 TRANS Cust'!J477+'FR-16(7)(v)-13 DIST Cust'!J477","v":0},12803,0]
[34,null,{"$f":"'FR-16(7)(v)-1 Functional'!C478","v":"OVERHEAD LINES - SECONDARY / CUSTOMER"},{"$f":"'FR-16(7)(v)-1 Functional'!D478","v":"K405"},null,{"$f":"'FR-16(7)(v)-14 TOTAL CLASS'!J478","v":337},{"$f":"'FR-16(7)(v)-3 PROD Demand'!J478+'FR-16(7)(v)-7 TRANS Demand'!J478+'FR-16(7)(v)-11 DIST Demand'!J478","v":0},{"$f":"'FR-16(7)(v)-4 PROD Energy'!J478+'FR-16(7)(v)-8 TRANS Energy'!J478+'FR-16(7)(v)-12 DIST Energy'!J478","v":0},{"$f":"'FR-16(7)(v)-5 PROD Cust'!J478+'FR-16(7)(v)-9 TRANS Cust'!J478+'FR-16(7)(v)-13 DIST Cust'!J478","v":337},337,0]
[35,null,{"$f":"'FR-16(7)(v)-1 Functional'!C479","v":"UNDERGROUND LINES - PRIMARY / DEMAND"},{"$f":"'FR-16(7)(v)-1 Functional'!D479","v":"K205"},null,{"$f":"'FR-16(7)(v)-14 TOTAL CLASS'!J479","v":4098},{"$f":"'FR-16(7)(v)-3 PROD Demand'!J479+'FR-16(7)(v)-7 TRANS Demand'!J479+'FR-16(7)(v)-11 DIST Demand'!J479","v":4098},{"$f":"'FR-16(7)(v)-4 PROD Energy'!J479+'FR-16(7)(v)-8 TRANS Energy'!J479+'FR-16(7)(v)-12 DIST Energy'!J479","v":0},{"$f":"'FR-16(7)(v)-5 PROD Cust'!J479+'FR-16(7)(v)-9 TRANS Cust'!J479+'FR-16(7)(v)-13 DIST Cust'!J479","v":0},4098,0]
[36,null,{"$f":"'FR-16(7)(v)-1 Functional'!C480","v":"UNDERGROUND LINES - PRIMARY / CUSTOMER"},{"$f":"'FR-16(7)(v)-1 Functional'!D480","v":"K405"},null,{"$f":"'FR-16(7)(v)-14 TOTAL CLASS'!J480","v":151},{"$f":"'FR-16(7)(v)-3 PROD Demand'!J480+'FR-16(7)(v)-7 TRANS Demand'!J480+'FR-16(7)(v)-11 DIST Demand'!J480","v":0},{"$f":"'FR-16(7)(v)-4 PROD Energy'!J480+'FR-16(7)(v)-8 TRANS Energy'!J480+'FR-16(7)(v)-12 DIST Energy'!J480","v":0},{"$f":"'FR-16(7)(v)-5 PROD Cust'!J480+'FR-16(7)(v)-9 TRANS Cust'!J480+'FR-16(7)(v)-13 DIST Cust'!J480","v":151},151,0]
[37,null,{"$f":"'FR-16(7)(v)-1 Functional'!C481","v":"UNDERGROUND LINES - SECONDARY / DEMAND"},{"$f":"'FR-16(7)(v)-1 Functional'!D481","v":"K206"},null,{"$f":"'FR-16(7)(v)-14 TOTAL CLASS'!J481","v":702},{"$f":"'FR-16(7)(v)-3 PROD Demand'!J481+'FR-16(7)(v)-7 TRANS Demand'!J481+'FR-16(7)(v)-11 DIST Demand'!J481","v":702},{"$f":"'FR-16(7)(v)-4 PROD Energy'!J481+'FR-16(7)(v)-8 TRANS Energy'!J481+'FR-16(7)(v)-12 DIST Energy'!J481","v":0},{"$f":"'FR-16(7)(v)-5 PROD Cust'!J481+'FR-16(7)(v)-9 TRANS Cust'!J481+'FR-16(7)(v)-13 DIST Cust'!J481","v":0},702,0]
[38,null,{"$f":"'FR-16(7)(v)-1 Functional'!C482","v":"UNDERGROUND LINES - SECONDARY / CUSTOMER"},{"$f":"'FR-16(7)(v)-1 Functional'!D482","v":"K405"},null,{"$f":"'FR-16(7)(v)-14 TOTAL CLASS'!J482","v":47},{"$f":"'FR-16(7)(v)-3 PROD Demand'!J482+'FR-16(7)(v)-7 TRANS Demand'!J482+'FR-16(7)(v)-11 DIST Demand'!J482","v":0},{"$f":"'FR-16(7)(v)-4 PROD Energy'!J482+'FR-16(7)(v)-8 TRANS Energy'!J482+'FR-16(7)(v)-12 DIST Energy'!J482","v":0},{"$f":"'FR-16(7)(v)-5 PROD Cust'!J482+'FR-16(7)(v)-9 TRANS Cust'!J482+'FR-16(7)(v)-13 DIST Cust'!J482","v":47},47,0]
[39,null,{"$f":"'FR-16(7)(v)-1 Functional'!C483","v":"TRANSFORMERS DEMAND RELATED"},{"$f":"'FR-16(7)(v)-1 Functional'!D483","v":"K203"},null,{"$f":"'FR-16(7)(v)-14 TOTAL CLASS'!J483","v":1908},{"$f":"'FR-16(7)(v)-3 PROD Demand'!J483+'FR-16(7)(v)-7 TRANS Demand'!J483+'FR-16(7)(v)-11 DIST Demand'!J483","v":1908},{"$f":"'FR-16(7)(v)-4 PROD Energy'!J483+'FR-16(7)(v)-8 TRANS Energy'!J483+'FR-16(7)(v)-12 DIST Energy'!J483","v":0},{"$f":"'FR-16(7)(v)-5 PROD Cust'!J483+'FR-16(7)(v)-9 TRANS Cust'!J483+'FR-16(7)(v)-13 DIST Cust'!J483","v":0},1908,0]
[40,null,{"$f":"'FR-16(7)(v)-1 Functional'!C484","v":"TRANSFORMERS CUSTOMER RELATED"},{"$f":"'FR-16(7)(v)-1 Functional'!D484","v":"K401"},null,{"$f":"'FR-16(7)(v)-14 TOTAL CLASS'!J484","v":0},{"$f":"'FR-16(7)(v)-3 PROD Demand'!J484+'FR-16(7)(v)-7 TRANS Demand'!J484+'FR-16(7)(v)-11 DIST Demand'!J484","v":0},{"$f":"'FR-16(7)(v)-4 PROD Energy'!J484+'FR-16(7)(v)-8 TRANS Energy'!J484+'FR-16(7)(v)-12 DIST Energy'!J484","v":0},{"$f":"'FR-16(7)(v)-5 PROD Cust'!J484+'FR-16(7)(v)-9 TRANS Cust'!J484+'FR-16(7)(v)-13 DIST Cust'!J484","v":0},{"$f":"SUM(G484:I484)","v":0},{"$f":"F484-J484","v":0}]
[41,null,{"$f":"'FR-16(7)(v)-1 Functional'!C485","v":"OTHER MAINTENANCE"},{"$f":"'FR-16(7)(v)-1 Functional'!D485","v":"K203"},null,{"$f":"'FR-16(7)(v)-14 TOTAL CLASS'!J485","v":13307},{"$f":"'FR-16(7)(v)-3 PROD Demand'!J485+'FR-16(7)(v)-7 TRANS Demand'!J485+'FR-16(7)(v)-11 DIST Demand'!J485","v":13307},{"$f":"'FR-16(7)(v)-4 PROD Energy'!J485+'FR-16(7)(v)-8 TRANS Energy'!J485+'FR-16(7)(v)-12 DIST Energy'!J485","v":0},{"$f":"'FR-16(7)(v)-5 PROD Cust'!J485+'FR-16(7)(v)-9 TRANS Cust'!J485+'FR-16(7)(v)-13 DIST Cust'!J485","v":0},13307,0]
[42,null,{"$f":"'FR-16(7)(v)-1 Functional'!C486","v":"LOAD DISPATCH"},{"$f":"'FR-16(7)(v)-1 Functional'!D486","v":"K215"},null,{"$f":"'FR-16(7)(v)-14 TOTAL CLASS'!J486","v":3519},{"$f":"'FR-16(7)(v)-3 PROD Demand'!J486+'FR-16(7)(v)-7 TRANS Demand'!J486+'FR-16(7)(v)-11 DIST Demand'!J486","v":3519},{"$f":"'FR-16(7)(v)-4 PROD Energy'!J486+'FR-16(7)(v)-8 TRANS Energy'!J486+'FR-16(7)(v)-12 DIST Energy'!J486","v":0},{"$f":"'FR-16(7)(v)-5 PROD Cust'!J486+'FR-16(7)(v)-9 TRANS Cust'!J486+'FR-16(7)(v)-13 DIST Cust'!J486","v":0},3519,0]
[43,null,{"$f":"'FR-16(7)(v)-1 Functional'!C487","v":"METERS"},{"$f":"'FR-16(7)(v)-1 Functional'!D487","v":"K407"},null,{"$f":"'FR-16(7)(v)-14 TOTAL CLASS'!J487","v":1506},{"$f":"'FR-16(7)(v)-3 PROD Demand'!J487+'FR-16(7)(v)-7 TRANS Demand'!J487+'FR-16(7)(v)-11 DIST Demand'!J487","v":0},{"$f":"'FR-16(7)(v)-4 PROD Energy'!J487+'FR-16(7)(v)-8 TRANS Energy'!J487+'FR-16(7)(v)-12 DIST Energy'!J487","v":0},{"$f":"'FR-16(7)(v)-5 PROD Cust'!J487+'FR-16(7)(v)-9 TRANS Cust'!J487+'FR-16(7)(v)-13 DIST Cust'!J487","v":1506},1506,0]
[44,null,{"$f":"'FR-16(7)(v)-1 Functional'!C488","v":"STREET LIGHTING AND SIGNAL SYSTEMS"},{"$f":"'FR-16(7)(v)-1 Functional'!D488","v":"K401"},null,{"$f":"'FR-16(7)(v)-14 TOTAL CLASS'!J488","v":0},{"$f":"'FR-16(7)(v)-3 PROD Demand'!J488+'FR-16(7)(v)-7 TRANS Demand'!J488+'FR-16(7)(v)-11 DIST Demand'!J488","v":0},{"$f":"'FR-16(7)(v)-4 PROD Energy'!J488+'FR-16(7)(v)-8 TRANS Energy'!J488+'FR-16(7)(v)-12 DIST Energy'!J488","v":0},{"$f":"'FR-16(7)(v)-5 PROD Cust'!J488+'FR-16(7)(v)-9 TRANS Cust'!J488+'FR-16(7)(v)-13 DIST Cust'!J488","v":0},0,0]
[45,null,{"$f":"'FR-16(7)(v)-1 Functional'!C489","v":"OTHER OPERATIONS"},{"$f":"'FR-16(7)(v)-1 Functional'!D489","v":"K203"},null,{"$f":"'FR-16(7)(v)-14 TOTAL CLASS'!J489","v":5082},{"$f":"'FR-16(7)(v)-3 PROD Demand'!J489+'FR-16(7)(v)-7 TRANS Demand'!J489+'FR-16(7)(v)-11 DIST Demand'!J489","v":5082},{"$f":"'FR-16(7)(v)-4 PROD Energy'!J489+'FR-16(7)(v)-8 TRANS Energy'!J489+'FR-16(7)(v)-12 DIST Energy'!J489","v":0},{"$f":"'FR-16(7)(v)-5 PROD Cust'!J489+'FR-16(7)(v)-9 TRANS Cust'!J489+'FR-16(7)(v)-13 DIST Cust'!J489","v":0},5082,0]
[46,null,{"$f":"'FR-16(7)(v)-1 Functional'!C490","v":"MISCELLANEOUS EXPENSES ADJUSTMENT"},{"$f":"'FR-16(7)(v)-1 Functional'!D490","v":"K203"},null,{"$f":"'FR-16(7)(v)-14 TOTAL CLASS'!J490","v":15661},{"$f":"'FR-16(7)(v)-3 PROD Demand'!J490+'FR-16(7)(v)-7 TRANS Demand'!J490+'FR-16(7)(v)-11 DIST Demand'!J490","v":15661},{"$f":"'FR-16(7)(v)-4 PROD Energy'!J490+'FR-16(7)(v)-8 TRANS Energy'!J490+'FR-16(7)(v)-12 DIST Energy'!J490","v":0},{"$f":"'FR-16(7)(v)-5 PROD Cust'!J490+'FR-16(7)(v)-9 TRANS Cust'!J490+'FR-16(7)(v)-13 DIST Cust'!J490","v":0},15661,0]
[47,null,{"$f":"'FR-16(7)(v)-1 Functional'!C491","v":"AFFILIATED COMPANY RENTS ADJUSTMENT"},{"$f":"'FR-16(7)(v)-1 Functional'!D491","v":"D249"},null,{"$f":"'FR-16(7)(v)-14 TOTAL CLASS'!J491","v":0},{"$f":"'FR-16(7)(v)-3 PROD Demand'!J491+'FR-16(7)(v)-7 TRANS Demand'!J491+'FR-16(7)(v)-11 DIST Demand'!J491","v":0},{"$f":"'FR-16(7)(v)-4 PROD Energy'!J491+'FR-16(7)(v)-8 TRANS Energy'!J491+'FR-16(7)(v)-12 DIST Energy'!J491","v":0},{"$f":"'FR-16(7)(v)-5 PROD Cust'!J491+'FR-16(7)(v)-9 TRANS Cust'!J491+'FR-16(7)(v)-13 DIST Cust'!J491","v":0},0,0]
[48,null,{"$f":"'FR-16(7)(v)-1 Functional'!C492","v":"  TOTAL DISTRIBUTION O & M"},null," ",{"$f":"SUM(F472:F491)","v":94562},91708,0,2854,94562,0]
[49,null," "]
[50,"CUSTOMER ACCOUNTING",null,null,null," "]
[51,null,{"$f":"'FR-16(7)(v)-1 Functional'!C495","v":"CUSTOMER ACCOUNTING EXPENSE"},{"$f":"'FR-16(7)(v)-1 Functional'!D495","v":"K409"},null,{"$f":"'FR-16(7)(v)-14 TOTAL CLASS'!J495","v":5122},{"$f":"'FR-16(7)(v)-3 PROD Demand'!J495+'FR-16(7)(v)-7 TRANS Demand'!J495+'FR-16(7)(v)-11 DIST Demand'!J495","v":0},{"$f":"'FR-16(7)(v)-4 PROD Energy'!J495+'FR-16(7)(v)-8 TRANS Energy'!J495+'FR-16(7)(v)-12 DIST Energy'!J495","v":0},{"$f":"'FR-16(7)(v)-5 PROD Cust'!J495+'FR-16(7)(v)-9 TRANS Cust'!J495+'FR-16(7)(v)-13 DIST Cust'!J495","v":5122},{"$f":"SUM(G495:I495)","v":5122},{"$f":"F495-J495","v":0}]
[52,null,{"$f":"'FR-16(7)(v)-1 Functional'!C496","v":"UNCOLLECTIBLE EXP"},{"$f":"'FR-16(7)(v)-1 Functional'!D496","v":"K411"},null,{"$f":"'FR-16(7)(v)-14 TOTAL CLASS'!J496","v":451},{"$f":"'FR-16(7)(v)-3 PROD Demand'!J496+'FR-16(7)(v)-7 TRANS Demand'!J496+'FR-16(7)(v)-11 DIST Demand'!J496","v":0},{"$f":"'FR-16(7)(v)-4 PROD Energy'!J496+'FR-16(7)(v)-8 TRANS Energy'!J496+'FR-16(7)(v)-12 DIST Energy'!J496","v":0},{"$f":"'FR-16(7)(v)-5 PROD Cust'!J496+'FR-16(7)(v)-9 TRANS Cust'!J496+'FR-16(7)(v)-13 DIST Cust'!J496","v":451},451,0]
[53,null,{"$f":"'FR-16(7)(v)-1 Functional'!C497","v":"METER READING"},{"$f":"'FR-16(7)(v)-1 Functional'!D497","v":"K407"},null,{"$f":"'FR-16(7)(v)-14 TOTAL CLASS'!J497","v":0},{"$f":"'FR-16(7)(v)-3 PROD Demand'!J497+'FR-16(7)(v)-7 TRANS Demand'!J497+'FR-16(7)(v)-11 DIST Demand'!J497","v":0},{"$f":"'FR-16(7)(v)-4 PROD Energy'!J497+'FR-16(7)(v)-8 TRANS Energy'!J497+'FR-16(7)(v)-12 DIST Energy'!J497","v":0},{"$f":"'FR-16(7)(v)-5 PROD Cust'!J497+'FR-16(7)(v)-9 TRANS Cust'!J497+'FR-16(7)(v)-13 DIST Cust'!J497","v":0},0,0]
[54,null,{"$f":"'FR-16(7)(v)-1 Functional'!C498","v":"UNCOLLECTIBLE EXP ADJUSTMENT"},{"$f":"'FR-16(7)(v)-1 Functional'!D498","v":"K411"},null,{"$f":"'FR-16(7)(v)-14 TOTAL CLASS'!J498","v":-638},{"$f":"'FR-16(7)(v)-3 PROD Demand'!J498+'FR-16(7)(v)-7 TRANS Demand'!J498+'FR-16(7)(v)-11 DIST Demand'!J498","v":0},{"$f":"'FR-16(7)(v)-4 PROD Energy'!J498+'FR-16(7)(v)-8 TRANS Energy'!J498+'FR-16(7)(v)-12 DIST Energy'!J498","v":0},{"$f":"'FR-16(7)(v)-5 PROD Cust'!J498+'FR-16(7)(v)-9 TRANS Cust'!J498+'FR-16(7)(v)-13 DIST Cust'!J498","v":-638},-638,0]
[55,null,{"$f":"'FR-16(7)(v)-1 Functional'!C499","v":"CREDIT CARD FEES"},{"$f":"'FR-16(7)(v)-1 Functional'!D499","v":"K407"},null,{"$f":"'FR-16(7)(v)-14 TOTAL CLASS'!J499","v":690},{"$f":"'FR-16(7)(v)-3 PROD Demand'!J499+'FR-16(7)(v)-7 TRANS Demand'!J499+'FR-16(7)(v)-11 DIST Demand'!J499","v":0},{"$f":"'FR-16(7)(v)-4 PROD Energy'!J499+'FR-16(7)(v)-8 TRANS Energy'!J499+'FR-16(7)(v)-12 DIST Energy'!J499","v":0},{"$f":"'FR-16(7)(v)-5 PROD Cust'!J499+'FR-16(7)(v)-9 TRANS Cust'!J499+'FR-16(7)(v)-13 DIST Cust'!J499","v":690},690,0]
[56,null,{"$f":"'FR-16(7)(v)-1 Functional'!C500","v":"ELIMINATE REV & EXP - DSM RIDER"},{"$f":"'FR-16(7)(v)-1 Functional'!D500","v":"K405"},null,{"$f":"'FR-16(7)(v)-14 TOTAL CLASS'!J500","v":0},{"$f":"'FR-16(7)(v)-3 PROD Demand'!J500+'FR-16(7)(v)-7 TRANS Demand'!J500+'FR-16(7)(v)-11 DIST Demand'!J500","v":0},{"$f":"'FR-16(7)(v)-4 PROD Energy'!J500+'FR-16(7)(v)-8 TRANS Energy'!J500+'FR-16(7)(v)-12 DIST Energy'!J500","v":0},{"$f":"'FR-16(7)(v)-5 PROD Cust'!J500+'FR-16(7)(v)-9 TRANS Cust'!J500+'FR-16(7)(v)-13 DIST Cust'!J500","v":0},0,0]
[57,null,{"$f":"'FR-16(7)(v)-1 Functional'!C501","v":"SALE OF A/R"},{"$f":"'FR-16(7)(v)-1 Functional'!D501","v":"K411"},null,{"$f":"'FR-16(7)(v)-14 TOTAL CLASS'!J501","v":126},{"$f":"'FR-16(7)(v)-3 PROD Demand'!J501+'FR-16(7)(v)-7 TRANS Demand'!J501+'FR-16(7)(v)-11 DIST Demand'!J501","v":0},{"$f":"'FR-16(7)(v)-4 PROD Energy'!J501+'FR-16(7)(v)-8 TRANS Energy'!J501+'FR-16(7)(v)-12 DIST Energy'!J501","v":0},{"$f":"'FR-16(7)(v)-5 PROD Cust'!J501+'FR-16(7)(v)-9 TRANS Cust'!J501+'FR-16(7)(v)-13 DIST Cust'!J501","v":126},126,0]
[58,null,{"$f":"'FR-16(7)(v)-1 Functional'!C502","v":"ELIMINATE MISC EXPENSE"},{"$f":"'FR-16(7)(v)-1 Functional'!D502","v":"K405"},null,{"$f":"'FR-16(7)(v)-14 TOTAL CLASS'!J502","v":-1},{"$f":"'FR-16(7)(v)-3 PROD Demand'!J502+'FR-16(7)(v)-7 TRANS Demand'!J502+'FR-16(7)(v)-11 DIST Demand'!J502","v":0},{"$f":"'FR-16(7)(v)-4 PROD Energy'!J502+'FR-16(7)(v)-8 TRANS Energy'!J502+'FR-16(7)(v)-12 DIST Energy'!J502","v":0},{"$f":"'FR-16(7)(v)-5 PROD Cust'!J502+'FR-16(7)(v)-9 TRANS Cust'!J502+'FR-16(7)(v)-13 DIST Cust'!J502","v":-1},-1,0]
[59,null,{"$f":"'FR-16(7)(v)-1 Functional'!C503","v":"  TOTAL CUSTOMER ACCT EXPENSE"},null," ",{"$f":"SUM(F494:F502)","v":5750},0,0,5750,5750,0]
[]
[{"$f":"co_name","v":"DUKE ENERGY KENTUCKY, INC."},null,null,null,null,null,null,null,null,{"$f":"J1","v":"FR-16(7)(v)-18"}]
[{"$f":"$A$2","v":"EH SECONDARY CLASSIFIED - ELECTRIC COST OF SERVICE"},null,null,null,null,null,null,null,null,{"$f":"J2","v":"WITNESS RESPONSIBLE:"}]
[{"$f":"case_name","v":"CASE NO: 2019-00271"},null,null,null,null,null,null,null,null,{"$f":"Witness","v":"JAMES E. ZIOLKOWSKI"}]
[{"$f":"data_filing","v":"DATA: 12 MONTHS ACTUAL  & 0 MONTHS ESTIMATED"},null,null,null,null,null,null,null,null,{"$f":"\"PAGE \"&Pages2-6&\" OF \"&Pages2","v":"PAGE 9 OF 15"}]
[{"$f":"type","v":"TYPE OF FILING: \"X\" ORIGINAL   UPDATED    REVISED  "}]
[]
[]
["LINE",null,null,null,null,"TOTAL","CLASSIFIED",null,null,"TOTAL","ALL"]
["NO.","O&M EXPENSES",null,"ALLO",null,{"$f":"$F$9","v":"EH SECONDARY"},{"$f":"G9","v":"DEMAND"},"ENERGY","CUSTOMER","AT ISSUE","OTHER"]
[null,null,"Schedule 6.1",null,null,null,3,4,5]
[1,"CUSTOMER SERVICE & INFORMATION"]
[2,null,{"$f":"'FR-16(7)(v)-1 Functional'!C516","v":"TOTAL CUST SERVICE & INFO"},{"$f":"'FR-16(7)(v)-1 Functional'!D516","v":"K405"},null,{"$f":"'FR-16(7)(v)-14 TOTAL CLASS'!J516","v":436},{"$f":"'FR-16(7)(v)-3 PROD Demand'!J516+'FR-16(7)(v)-7 TRANS Demand'!J516+'FR-16(7)(v)-11 DIST Demand'!J516","v":0},{"$f":"'FR-16(7)(v)-4 PROD Energy'!J516+'FR-16(7)(v)-8 TRANS Energy'!J516+'FR-16(7)(v)-12 DIST Energy'!J516","v":0},{"$f":"'FR-16(7)(v)-5 PROD Cust'!J516+'FR-16(7)(v)-9 TRANS Cust'!J516+'FR-16(7)(v)-13 DIST Cust'!J516","v":436},{"$f":"SUM(G516:I516)","v":436},{"$f":"F516-J516","v":0}]
[3,null,{"$f":"'FR-16(7)(v)-1 Functional'!C517","v":"INFORMATIONAL & INSTRUCTIONAL ADV"},{"$f":"'FR-16(7)(v)-1 Functional'!D517","v":"K405"},null,{"$f":"'FR-16(7)(v)-14 TOTAL CLASS'!J517","v":0},{"$f":"'FR-16(7)(v)-3 PROD Demand'!J517+'FR-16(7)(v)-7 TRANS Demand'!J517+'FR-16(7)(v)-11 DIST Demand'!J517","v":0},{"$f":"'FR-16(7)(v)-4 PROD Energy'!J517+'FR-16(7)(v)-8 TRANS Energy'!J517+'FR-16(7)(v)-12 DIST Energy'!J517","v":0},{"$f":"'FR-16(7)(v)-5 PROD Cust'!J517+'FR-16(7)(v)-9 TRANS Cust'!J517+'FR-16(7)(v)-13 DIST Cust'!J517","v":0},{"$f":"SUM(G517:I517)","v":0},{"$f":"F517-J517","v":0}]
[4,null,{"$f":"'FR-16(7)(v)-1 Functional'!C518","v":"TOTAL CUSTOMER SERV. & INFO."},null," ",{"$f":"SUM(F516:F517)","v":436},0,0,436,436,0]
[5]
[6,"SALES"]
[7,null,{"$f":"'FR-16(7)(v)-1 Functional'!C521","v":"SALES EXPENSE"},{"$f":"'FR-16(7)(v)-1 Functional'!D521","v":"K405"}," ",{"$f":"'FR-16(7)(v)-14 TOTAL CLASS'!J521","v":1078},{"$f":"'FR-16(7)(v)-3 PROD Demand'!J521+'FR-16(7)(v)-7 TRANS Demand'!J521+'FR-16(7)(v)-11 DIST Demand'!J521","v":0},{"$f":"'FR-16(7)(v)-4 PROD Energy'!J521+'FR-16(7)(v)-8 TRANS Energy'!J521+'FR-16(7)(v)-12 DIST Energy'!J521","v":0},{"$f":"'FR-16(7)(v)-5 PROD Cust'!J521+'FR-16(7)(v)-9 TRANS Cust'!J521+'FR-16(7)(v)-13 DIST Cust'!J521","v":1078},{"$f":"SUM(G521:I521)","v":1078},{"$f":"F521-J521","v":0}]
[8,null,{"$f":"'FR-16(7)(v)-1 Functional'!C522","v":"TOTAL SALES EXPENSE"},null," ",{"$f":"SUM(F520:F521)","v":1078},0,0,1078,1078,0]
[9]
[10,"ADMINISTRATIVE & GENERAL "]
[11,null,{"$f":"'FR-16(7)(v)-1 Functional'!C525","v":"PRODUCTION - DEMAND RELATED"},{"$f":"'FR-16(7)(v)-1 Functional'!D525","v":"P349"},null,{"$f":"'FR-16(7)(v)-14 TOTAL CLASS'!J525","v":0},{"$f":"'FR-16(7)(v)-3 PROD Demand'!J525+'FR-16(7)(v)-7 TRANS Demand'!J525+'FR-16(7)(v)-11 DIST Demand'!J525","v":0},{"$f":"'FR-16(7)(v)-4 PROD Energy'!J525+'FR-16(7)(v)-8 TRANS Energy'!J525+'FR-16(7)(v)-12 DIST Energy'!J525","v":0},{"$f":"'FR-16(7)(v)-5 PROD Cust'!J525+'FR-16(7)(v)-9 TRANS Cust'!J525+'FR-16(7)(v)-13 DIST Cust'!J525","v":0},{"$f":"SUM(G525:I525)","v":0},{"$f":"F525-J525","v":0}]
[12,null,{"$f":"'FR-16(7)(v)-1 Functional'!C526","v":"PRODUCTION - ENERGY RELATED"},{"$f":"'FR-16(7)(v)-1 Functional'!D526","v":"E349"},null,{"$f":"'FR-16(7)(v)-14 TOTAL CLASS'!J526","v":46549},{"$f":"'FR-16(7)(v)-3 PROD Demand'!J526+'FR-16(7)(v)-7 TRANS Demand'!J526+'FR-16(7)(v)-11 DIST Demand'!J526","v":0},{"$f":"'FR-16(7)(v)-4 PROD Energy'!J526+'FR-16(7)(v)-8 TRANS Energy'!J526+'FR-16(7)(v)-12 DIST Energy'!J526","v":46549},{"$f":"'FR-16(7)(v)-5 PROD Cust'!J526+'FR-16(7)(v)-9 TRANS Cust'!J526+'FR-16(7)(v)-13 DIST Cust'!J526","v":0},46549,0]
[13,null,"TRANSMISSION",{"$f":"'FR-16(7)(v)-1 Functional'!D527","v":"T349"},null,{"$f":"'FR-16(7)(v)-14 TOTAL CLASS'!J527","v":7528},{"$f":"'FR-16(7)(v)-3 PROD Demand'!J527+'FR-16(7)(v)-7 TRANS Demand'!J527+'FR-16(7)(v)-11 DIST Demand'!J527","v":7528},{"$f":"'FR-16(7)(v)-4 PROD Energy'!J527+'FR-16(7)(v)-8 TRANS Energy'!J527+'FR-16(7)(v)-12 DIST Energy'!J527","v":0},{"$f":"'FR-16(7)(v)-5 PROD Cust'!J527+'FR-16(7)(v)-9 TRANS Cust'!J527+'FR-16(7)(v)-13 DIST Cust'!J527","v":0},{"$f":"SUM(G527:I527)","v":7528},{"$f":"F527-J527","v":0}]
[14,null,{"$f":"'FR-16(7)(v)-1 Functional'!C528","v":"DISTRIBUTION"},{"$f":"'FR-16(7)(v)-1 Functional'!D528","v":"D349"},null,{"$f":"'FR-16(7)(v)-14 TOTAL CLASS'!J528","v":31826},{"$f":"'FR-16(7)(v)-3 PROD Demand'!J528+'FR-16(7)(v)-7 TRANS Demand'!J528+'FR-16(7)(v)-11 DIST Demand'!J528","v":30869},{"$f":"'FR-16(7)(v)-4 PROD Energy'!J528+'FR-16(7)(v)-8 TRANS Energy'!J528+'FR-16(7)(v)-12 DIST Energy'!J528","v":0},{"$f":"'FR-16(7)(v)-5 PROD Cust'!J528+'FR-16(7)(v)-9 TRANS Cust'!J528+'FR-16(7)(v)-13 DIST Cust'!J528","v":957},31826,0]
[15,null,{"$f":"'FR-16(7)(v)-1 Functional'!C529","v":"CUSTOMER ACCOUNTING"},{"$f":"'FR-16(7)(v)-1 Functional'!D529","v":"C319"},null,{"$f":"'FR-16(7)(v)-14 TOTAL CLASS'!J529","v":5077},{"$f":"'FR-16(7)(v)-3 PROD Demand'!J529+'FR-16(7)(v)-7 TRANS Demand'!J529+'FR-16(7)(v)-11 DIST Demand'!J529","v":0},{"$f":"'FR-16(7)(v)-4 PROD Energy'!J529+'FR-16(7)(v)-8 TRANS Energy'!J529+'FR-16(7)(v)-12 DIST Energy'!J529","v":0},{"$f":"'FR-16(7)(v)-5 PROD Cust'!J529+'FR-16(7)(v)-9 TRANS Cust'!J529+'FR-16(7)(v)-13 DIST Cust'!J529","v":5077},5077,0]
[16,null,{"$f":"'FR-16(7)(v)-1 Functional'!C530","v":"CUSTOMER SERVICE & INFORMATION"},{"$f":"'FR-16(7)(v)-1 Functional'!D530","v":"C331"},null,{"$f":"'FR-16(7)(v)-14 TOTAL CLASS'!J530","v":173},{"$f":"'FR-16(7)(v)-3 PROD Demand'!J530+'FR-16(7)(v)-7 TRANS Demand'!J530+'FR-16(7)(v)-11 DIST Demand'!J530","v":0},{"$f":"'FR-16(7)(v)-4 PROD Energy'!J530+'FR-16(7)(v)-8 TRANS Energy'!J530+'FR-16(7)(v)-12 DIST Energy'!J530","v":0},{"$f":"'FR-16(7)(v)-5 PROD Cust'!J530+'FR-16(7)(v)-9 TRANS Cust'!J530+'FR-16(7)(v)-13 DIST Cust'!J530","v":173},173,0]
[17,null,{"$f":"'FR-16(7)(v)-1 Functional'!C531","v":"SALES"},{"$f":"'FR-16(7)(v)-1 Functional'!D531","v":"S319"},null,{"$f":"'FR-16(7)(v)-14 TOTAL CLASS'!J531","v":0},{"$f":"'FR-16(7)(v)-3 PROD Demand'!J531+'FR-16(7)(v)-7 TRANS Demand'!J531+'FR-16(7)(v)-11 DIST Demand'!J531","v":0},{"$f":"'FR-16(7)(v)-4 PROD Energy'!J531+'FR-16(7)(v)-8 TRANS Energy'!J531+'FR-16(7)(v)-12 DIST Energy'!J531","v":0},{"$f":"'FR-16(7)(v)-5 PROD Cust'!J531+'FR-16(7)(v)-9 TRANS Cust'!J531+'FR-16(7)(v)-13 DIST Cust'!J531","v":0},0,0]
[18,null,{"$f":"'FR-16(7)(v)-1 Functional'!C532","v":"TOT ADMIN & GEN LESS REG EXP"}," ",null,{"$f":"SUM(F525:F531)","v":91153},38397,46549,6207,91153,0]
[19,null,{"$f":"'FR-16(7)(v)-1 Functional'!C533","v":"RATE CASE EXPENSE ADJUSTMENT"},{"$f":"'FR-16(7)(v)-1 Functional'!D533","v":"A315"},null,{"$f":"'FR-16(7)(v)-14 TOTAL CLASS'!J533","v":391},{"$f":"'FR-16(7)(v)-3 PROD Demand'!J533+'FR-16(7)(v)-7 TRANS Demand'!J533+'FR-16(7)(v)-11 DIST Demand'!J533","v":164},{"$f":"'FR-16(7)(v)-4 PROD Energy'!J533+'FR-16(7)(v)-8 TRANS Energy'!J533+'FR-16(7)(v)-12 DIST Energy'!J533","v":200},{"$f":"'FR-16(7)(v)-5 PROD Cust'!J533+'FR-16(7)(v)-9 TRANS Cust'!J533+'FR-16(7)(v)-13 DIST Cust'!J533","v":27},{"$f":"SUM(G533:I533)","v":391},{"$f":"F533-J533","v":0}]
[20,null,{"$f":"'FR-16(7)(v)-1 Functional'!C534","v":"ELIMINATE MISCELLANEOUS EXPENSES ADJUSTMENT"},{"$f":"'FR-16(7)(v)-1 Functional'!D534","v":"A315"},null,{"$f":"'FR-16(7)(v)-14 TOTAL CLASS'!J534","v":0},{"$f":"'FR-16(7)(v)-3 PROD Demand'!J534+'FR-16(7)(v)-7 TRANS Demand'!J534+'FR-16(7)(v)-11 DIST Demand'!J534","v":0},{"$f":"'FR-16(7)(v)-4 PROD Energy'!J534+'FR-16(7)(v)-8 TRANS Energy'!J534+'FR-16(7)(v)-12 DIST Energy'!J534","v":0},{"$f":"'FR-16(7)(v)-5 PROD Cust'!J534+'FR-16(7)(v)-9 TRANS Cust'!J534+'FR-16(7)(v)-13 DIST Cust'!J534","v":0},0,0]
[21,null,{"$f":"'FR-16(7)(v)-1 Functional'!C535","v":"RIDER ESM ELIMINATION"},{"$f":"'FR-16(7)(v)-1 Functional'!D535","v":"A315"},null,{"$f":"'FR-16(7)(v)-14 TOTAL CLASS'!J535","v":-26882},{"$f":"'FR-16(7)(v)-3 PROD Demand'!J535+'FR-16(7)(v)-7 TRANS Demand'!J535+'FR-16(7)(v)-11 DIST Demand'!J535","v":-11319},{"$f":"'FR-16(7)(v)-4 PROD Energy'!J535+'FR-16(7)(v)-8 TRANS Energy'!J535+'FR-16(7)(v)-12 DIST Energy'!J535","v":-13732},{"$f":"'FR-16(7)(v)-5 PROD Cust'!J535+'FR-16(7)(v)-9 TRANS Cust'!J535+'FR-16(7)(v)-13 DIST Cust'!J535","v":-1831},-26882,0]
[22,null,{"$f":"'FR-16(7)(v)-1 Functional'!C536","v":"ELIMINATE DSM"},{"$f":"'FR-16(7)(v)-1 Functional'!D536","v":"A315"},null,{"$f":"'FR-16(7)(v)-14 TOTAL CLASS'!J536","v":-376},{"$f":"'FR-16(7)(v)-3 PROD Demand'!J536+'FR-16(7)(v)-7 TRANS Demand'!J536+'FR-16(7)(v)-11 DIST Demand'!J536","v":-158},{"$f":"'FR-16(7)(v)-4 PROD Energy'!J536+'FR-16(7)(v)-8 TRANS Energy'!J536+'FR-16(7)(v)-12 DIST Energy'!J536","v":-192},{"$f":"'FR-16(7)(v)-5 PROD Cust'!J536+'FR-16(7)(v)-9 TRANS Cust'!J536+'FR-16(7)(v)-13 DIST Cust'!J536","v":-26},-376,0]
[23,null,{"$f":"'FR-16(7)(v)-1 Functional'!C537","v":"DSM DEFERRAL - ELECTRIC"},{"$f":"'FR-16(7)(v)-1 Functional'!D537","v":"A315"},null,{"$f":"'FR-16(7)(v)-14 TOTAL CLASS'!J537","v":0},{"$f":"'FR-16(7)(v)-3 PROD Demand'!J537+'FR-16(7)(v)-7 TRANS Demand'!J537+'FR-16(7)(v)-11 DIST Demand'!J537","v":0},{"$f":"'FR-16(7)(v)-4 PROD Energy'!J537+'FR-16(7)(v)-8 TRANS Energy'!J537+'FR-16(7)(v)-12 DIST Energy'!J537","v":0},{"$f":"'FR-16(7)(v)-5 PROD Cust'!J537+'FR-16(7)(v)-9 TRANS Cust'!J537+'FR-16(7)(v)-13 DIST Cust'!J537","v":0},0,0]
[24,null,{"$f":"'FR-16(7)(v)-1 Functional'!C538","v":"PENSION ADJUSTMENT"},{"$f":"'FR-16(7)(v)-1 Functional'!D538","v":"A315"},null,{"$f":"'FR-16(7)(v)-14 TOTAL CLASS'!J538","v":-1640},{"$f":"'FR-16(7)(v)-3 PROD Demand'!J538+'FR-16(7)(v)-7 TRANS Demand'!J538+'FR-16(7)(v)-11 DIST Demand'!J538","v":-690},{"$f":"'FR-16(7)(v)-4 PROD Energy'!J538+'FR-16(7)(v)-8 TRANS Energy'!J538+'FR-16(7)(v)-12 DIST Energy'!J538","v":-838},{"$f":"'FR-16(7)(v)-5 PROD Cust'!J538+'FR-16(7)(v)-9 TRANS Cust'!J538+'FR-16(7)(v)-13 DIST Cust'!J538","v":-112},-1640,0]
[25,null,{"$f":"'FR-16(7)(v)-1 Functional'!C539","v":"ELIMINATE MISC EXPENSES"},{"$f":"'FR-16(7)(v)-1 Functional'!D539","v":"A315"},null,{"$f":"'FR-16(7)(v)-14 TOTAL CLASS'!J539","v":-1582},{"$f":"'FR-16(7)(v)-3 PROD Demand'!J539+'FR-16(7)(v)-7 TRANS Demand'!J539+'FR-16(7)(v)-11 DIST Demand'!J539","v":-666},{"$f":"'FR-16(7)(v)-4 PROD Energy'!J539+'FR-16(7)(v)-8 TRANS Energy'!J539+'FR-16(7)(v)-12 DIST Energy'!J539","v":-808},{"$f":"'FR-16(7)(v)-5 PROD Cust'!J539+'FR-16(7)(v)-9 TRANS Cust'!J539+'FR-16(7)(v)-13 DIST Cust'!J539","v":-108},-1582,0]
[26,null,{"$f":"'FR-16(7)(v)-1 Functional'!C540","v":"ELIMINATE MERGER COSTS AND CREDITS"},{"$f":"'FR-16(7)(v)-1 Functional'!D540","v":"A315"},null,{"$f":"'FR-16(7)(v)-14 TOTAL CLASS'!J540","v":0},{"$f":"'FR-16(7)(v)-3 PROD Demand'!J540+'FR-16(7)(v)-7 TRANS Demand'!J540+'FR-16(7)(v)-11 DIST Demand'!J540","v":0},{"$f":"'FR-16(7)(v)-4 PROD Energy'!J540+'FR-16(7)(v)-8 TRANS Energy'!J540+'FR-16(7)(v)-12 DIST Energy'!J540","v":0},{"$f":"'FR-16(7)(v)-5 PROD Cust'!J540+'FR-16(7)(v)-9 TRANS Cust'!J540+'FR-16(7)(v)-13 DIST Cust'!J540","v":0},{"$f":"SUM(G540:I540)","v":0},{"$f":"F540-J540","v":0}]
[27,null,{"$f":"'FR-16(7)(v)-1 Functional'!C541","v":"ANNUALIZE KYPSC MAINT TAX"},{"$f":"'FR-16(7)(v)-1 Functional'!D541","v":"A315"},null,{"$f":"'FR-16(7)(v)-14 TOTAL CLASS'!J541","v":0},{"$f":"'FR-16(7)(v)-3 PROD Demand'!J541+'FR-16(7)(v)-7 TRANS Demand'!J541+'FR-16(7)(v)-11 DIST Demand'!J541","v":0},{"$f":"'FR-16(7)(v)-4 PROD Energy'!J541+'FR-16(7)(v)-8 TRANS Energy'!J541+'FR-16(7)(v)-12 DIST Energy'!J541","v":0},{"$f":"'FR-16(7)(v)-5 PROD Cust'!J541+'FR-16(7)(v)-9 TRANS Cust'!J541+'FR-16(7)(v)-13 DIST Cust'!J541","v":0},0,0]
[28,null,{"$f":"'FR-16(7)(v)-1 Functional'!C542","v":"REMOVE INCENTIVE COMP"},{"$f":"'FR-16(7)(v)-1 Functional'!D542","v":"A315"},null,{"$f":"'FR-16(7)(v)-14 TOTAL CLASS'!J542","v":-4566},{"$f":"'FR-16(7)(v)-3 PROD Demand'!J542+'FR-16(7)(v)-7 TRANS Demand'!J542+'FR-16(7)(v)-11 DIST Demand'!J542","v":-1922},{"$f":"'FR-16(7)(v)-4 PROD Energy'!J542+'FR-16(7)(v)-8 TRANS Energy'!J542+'FR-16(7)(v)-12 DIST Energy'!J542","v":-2333},{"$f":"'FR-16(7)(v)-5 PROD Cust'!J542+'FR-16(7)(v)-9 TRANS Cust'!J542+'FR-16(7)(v)-13 DIST Cust'!J542","v":-311},-4566,0]
[29,null,{"$f":"'FR-16(7)(v)-1 Functional'!C543","v":"CREDIT CARD FEES"},{"$f":"'FR-16(7)(v)-1 Functional'!D543","v":"A315"},null,{"$f":"'FR-16(7)(v)-14 TOTAL CLASS'!J543","v":0},{"$f":"'FR-16(7)(v)-3 PROD Demand'!J543+'FR-16(7)(v)-7 TRANS Demand'!J543+'FR-16(7)(v)-11 DIST Demand'!J543","v":0},{"$f":"'FR-16(7)(v)-4 PROD Energy'!J543+'FR-16(7)(v)-8 TRANS Energy'!J543+'FR-16(7)(v)-12 DIST Energy'!J543","v":0},{"$f":"'FR-16(7)(v)-5 PROD Cust'!J543+'FR-16(7)(v)-9 TRANS Cust'!J543+'FR-16(7)(v)-13 DIST Cust'!J543","v":0},0,0]
[30,null,{"$f":"'FR-16(7)(v)-1 Functional'!C544","v":"ELIMINATE INCENTIVE COMPENSATION ADJUSTMENT"},{"$f":"'FR-16(7)(v)-1 Functional'!D544","v":"A315"},null,{"$f":"'FR-16(7)(v)-14 TOTAL CLASS'!J544","v":0},{"$f":"'FR-16(7)(v)-3 PROD Demand'!J544+'FR-16(7)(v)-7 TRANS Demand'!J544+'FR-16(7)(v)-11 DIST Demand'!J544","v":0},{"$f":"'FR-16(7)(v)-4 PROD Energy'!J544+'FR-16(7)(v)-8 TRANS Energy'!J544+'FR-16(7)(v)-12 DIST Energy'!J544","v":0},{"$f":"'FR-16(7)(v)-5 PROD Cust'!J544+'FR-16(7)(v)-9 TRANS Cust'!J544+'FR-16(7)(v)-13 DIST Cust'!J544","v":0},0,0]
[31,null,{"$f":"'FR-16(7)(v)-1 Functional'!C545","v":"AMORTIZATION OF DEFERRAL ASSET"},{"$f":"'FR-16(7)(v)-1 Functional'!D545","v":"A315"},null,{"$f":"'FR-16(7)(v)-14 TOTAL CLASS'!J545","v":0},{"$f":"'FR-16(7)(v)-3 PROD Demand'!J545+'FR-16(7)(v)-7 TRANS Demand'!J545+'FR-16(7)(v)-11 DIST Demand'!J545","v":0},{"$f":"'FR-16(7)(v)-4 PROD Energy'!J545+'FR-16(7)(v)-8 TRANS Energy'!J545+'FR-16(7)(v)-12 DIST Energy'!J545","v":0},{"$f":"'FR-16(7)(v)-5 PROD Cust'!J545+'FR-16(7)(v)-9 TRANS Cust'!J545+'FR-16(7)(v)-13 DIST Cust'!J545","v":0},0,0]
[32,null,{"$f":"'FR-16(7)(v)-1 Functional'!C546","v":"AMORTIZATION OF DEFERRED EXPENSES"},{"$f":"'FR-16(7)(v)-1 Functional'!D546","v":"A315"},null,{"$f":"'FR-16(7)(v)-14 TOTAL CLASS'!J546","v":288},{"$f":"'FR-16(7)(v)-3 PROD Demand'!J546+'FR-16(7)(v)-7 TRANS Demand'!J546+'FR-16(7)(v)-11 DIST Demand'!J546","v":121},{"$f":"'FR-16(7)(v)-4 PROD Energy'!J546+'FR-16(7)(v)-8 TRANS Energy'!J546+'FR-16(7)(v)-12 DIST Energy'!J546","v":147},{"$f":"'FR-16(7)(v)-5 PROD Cust'!J546+'FR-16(7)(v)-9 TRANS Cust'!J546+'FR-16(7)(v)-13 DIST Cust'!J546","v":20},288,0]
[33,null,{"$f":"'FR-16(7)(v)-1 Functional'!C547","v":"TOTAL ADMIN. & GENERAL"},null," ",{"$f":"SUM(F532:F546)","v":56786},23927,28993,3866,56786,0]
[34]
[35,null,{"$f":"'FR-16(7)(v)-1 Functional'!C549","v":"TOTAL O & M EXPENSE"},null,null,{"$f":"F547+F522+F518+F503+F492+F470+F466+F459","v":891508},243776,633748,13984,891508,0]
[]
[{"$f":"co_name","v":"DUKE ENERGY KENTUCKY, INC."},null,null,null,null,null,null,null,null,{"$f":"J1","v":"FR-16(7)(v)-18"}]
[{"$f":"$A$2","v":"EH SECONDARY CLASSIFIED - ELECTRIC COST OF SERVICE"},null,null,null,null,null,null,null,null,{"$f":"J2","v":"WITNESS RESPONSIBLE:"}]
[{"$f":"case_name","v":"CASE NO: 2019-00271"},null,null,null,null,null,null,null,null,{"$f":"Witness","v":"JAMES E. ZIOLKOWSKI"}]
[{"$f":"data_filing","v":"DATA: 12 MONTHS ACTUAL  & 0 MONTHS ESTIMATED"},null,null,null,null,null,null,null,null,{"$f":"\"PAGE \"&Pages2-5&\" OF \"&Pages2","v":"PAGE 10 OF 15"}]
[{"$f":"type","v":"TYPE OF FILING: \"X\" ORIGINAL   UPDATED    REVISED  "}]
[]
[]
["LINE",null,null,null,null,"TOTAL","CLASSIFIED",null,null,"TOTAL","ALL"]
["NO.","DEPRECIATION EXPENSE",null,"ALLO",null,{"$f":"$F$9","v":"EH SECONDARY"},{"$f":"G9","v":"DEMAND"},"ENERGY","CUSTOMER","AT ISSUE","OTHER"]
[null,null,"Schedule 7",null,null,null,3,4,5]
[1,"PRODUCTION DEPRECIATION"]
[2,null,{"$f":"'FR-16(7)(v)-1 Functional'!C562","v":"PRODUCTION DEPRECIATION"},{"$f":"'FR-16(7)(v)-1 Functional'!D562","v":"P229"},null,{"$f":"'FR-16(7)(v)-14 TOTAL CLASS'!J562","v":192556},{"$f":"'FR-16(7)(v)-3 PROD Demand'!J562+'FR-16(7)(v)-7 TRANS Demand'!J562+'FR-16(7)(v)-11 DIST Demand'!J562","v":192556},{"$f":"'FR-16(7)(v)-4 PROD Energy'!J562+'FR-16(7)(v)-8 TRANS Energy'!J562+'FR-16(7)(v)-12 DIST Energy'!J562","v":0},{"$f":"'FR-16(7)(v)-5 PROD Cust'!J562+'FR-16(7)(v)-9 TRANS Cust'!J562+'FR-16(7)(v)-13 DIST Cust'!J562","v":0},{"$f":"SUM(G562:I562)","v":192556},{"$f":"F562-J562","v":0}]
[3,null,{"$f":"'FR-16(7)(v)-1 Functional'!C563","v":"  TOTAL PRODUCTION DEPREC EXP."},null,null,{"$f":"SUM(F562:F562)","v":192556},192556,0,0,192556,0]
[4]
[5,"TRANSMISSION DEPRECIATION"]
[6,null,"TRANSMISSION DEPRECIATION",{"$f":"'FR-16(7)(v)-1 Functional'!D566","v":"T229"},null,{"$f":"'FR-16(7)(v)-14 TOTAL CLASS'!J566","v":7538},{"$f":"'FR-16(7)(v)-3 PROD Demand'!J566+'FR-16(7)(v)-7 TRANS Demand'!J566+'FR-16(7)(v)-11 DIST Demand'!J566","v":7538},{"$f":"'FR-16(7)(v)-4 PROD Energy'!J566+'FR-16(7)(v)-8 TRANS Energy'!J566+'FR-16(7)(v)-12 DIST Energy'!J566","v":0},{"$f":"'FR-16(7)(v)-5 PROD Cust'!J566+'FR-16(7)(v)-9 TRANS Cust'!J566+'FR-16(7)(v)-13 DIST Cust'!J566","v":0},{"$f":"SUM(G566:I566)","v":7538},{"$f":"F566-J566","v":0}]
[7,null,{"$f":"'FR-16(7)(v)-1 Functional'!C567","v":"  TOTAL TRANSMISSION DEP. EXP."},null,null,{"$f":"SUM(F566:F566)","v":7538},7538,0,0,7538,0]
[8]
[9,"DISTRIBUTION DEPRECIATION"]
[10,null,{"$f":"'FR-16(7)(v)-1 Functional'!C570","v":"DISTRIBUTION DEPRECIATION"},{"$f":"'FR-16(7)(v)-1 Functional'!D570","v":"D249"},null,{"$f":"'FR-16(7)(v)-14 TOTAL CLASS'!J570","v":67261},{"$f":"'FR-16(7)(v)-3 PROD Demand'!J570+'FR-16(7)(v)-7 TRANS Demand'!J570+'FR-16(7)(v)-11 DIST Demand'!J570","v":63547},{"$f":"'FR-16(7)(v)-4 PROD Energy'!J570+'FR-16(7)(v)-8 TRANS Energy'!J570+'FR-16(7)(v)-12 DIST Energy'!J570","v":0},{"$f":"'FR-16(7)(v)-5 PROD Cust'!J570+'FR-16(7)(v)-9 TRANS Cust'!J570+'FR-16(7)(v)-13 DIST Cust'!J570","v":3714},{"$f":"SUM(G570:I570)","v":67261},{"$f":"F570-J570","v":0}]
[11,null,{"$f":"'FR-16(7)(v)-1 Functional'!C571","v":"  TOTAL DIST. DEPREC EXP."},null,null,{"$f":"SUM(F570:F570)","v":67261},63547,0,3714,67261,0]
[12,null,null,null,null," "]
[13,"GENERAL DEPRECIATION"]
[14,null,{"$f":"'FR-16(7)(v)-1 Functional'!C574","v":"GENERAL DEPRECIATION"},{"$f":"'FR-16(7)(v)-1 Functional'!D574","v":"G229"},null,{"$f":"'FR-16(7)(v)-14 TOTAL CLASS'!J574","v":22827},{"$f":"'FR-16(7)(v)-3 PROD Demand'!J574+'FR-16(7)(v)-7 TRANS Demand'!J574+'FR-16(7)(v)-11 DIST Demand'!J574","v":13855},{"$f":"'FR-16(7)(v)-4 PROD Energy'!J574+'FR-16(7)(v)-8 TRANS Energy'!J574+'FR-16(7)(v)-12 DIST Energy'!J574","v":7936},{"$f":"'FR-16(7)(v)-5 PROD Cust'!J574+'FR-16(7)(v)-9 TRANS Cust'!J574+'FR-16(7)(v)-13 DIST Cust'!J574","v":1036},{"$f":"SUM(G574:I574)","v":22827},{"$f":"F574-J574","v":0}]
[15,null,{"$f":"'FR-16(7)(v)-1 Functional'!C575","v":"  TOTAL GENERAL DEPREC EXP."},null,null,{"$f":"SUM(F574:F574)","v":22827},13855,7936,1036,22827,0]
[16]
[17,"COMMON AND OTHER DEPRECIATION"]
[18,null,{"$f":"'FR-16(7)(v)-1 Functional'!C578","v":"COMMON DEPRECIATION"},{"$f":"'FR-16(7)(v)-1 Functional'!D578","v":"C229"},null,{"$f":"'FR-16(7)(v)-14 TOTAL CLASS'!J578","v":155},{"$f":"'FR-16(7)(v)-3 PROD Demand'!J578+'FR-16(7)(v)-7 TRANS Demand'!J578+'FR-16(7)(v)-11 DIST Demand'!J578","v":94},{"$f":"'FR-16(7)(v)-4 PROD Energy'!J578+'FR-16(7)(v)-8 TRANS Energy'!J578+'FR-16(7)(v)-12 DIST Energy'!J578","v":54},{"$f":"'FR-16(7)(v)-5 PROD Cust'!J578+'FR-16(7)(v)-9 TRANS Cust'!J578+'FR-16(7)(v)-13 DIST Cust'!J578","v":7},{"$f":"SUM(G578:I578)","v":155},{"$f":"F578-J578","v":0}]
[19,null,{"$f":"'FR-16(7)(v)-1 Functional'!C579","v":"  TOTAL COM & OTHER DEPREC EXP."},null,null,{"$f":"SUM(F578:F578)","v":155},94,54,7,155,0]
[20]
[21]
[22,"TOTAL DEPRECIATION EXPENSE",null,null," ",{"$f":"F579+F575+F571+F567+F563","v":290337},277590,7990,4757,290337,0]
[]
[{"$f":"co_name","v":"DUKE ENERGY KENTUCKY, INC."},null,null,null,null,null,null,null,null,{"$f":"J1","v":"FR-16(7)(v)-18"}]
[{"$f":"$A$2","v":"EH SECONDARY CLASSIFIED - ELECTRIC COST OF SERVICE"},null,null,null,null,null,null,null,null,{"$f":"J2","v":"WITNESS RESPONSIBLE:"}]
[{"$f":"case_name","v":"CASE NO: 2019-00271"},null,null,null,null,null,null,null,null,{"$f":"Witness","v":"JAMES E. ZIOLKOWSKI"}]
[{"$f":"data_filing","v":"DATA: 12 MONTHS ACTUAL  & 0 MONTHS ESTIMATED"},null,null,null,null,null,null,null,null,{"$f":"\"PAGE \"&Pages2-4&\" OF \"&Pages2","v":"PAGE 11 OF 15"}]
[{"$f":"type","v":"TYPE OF FILING: \"X\" ORIGINAL   UPDATED    REVISED  "}]
[]
[]
["LINE",null,null,null,null,"TOTAL","CLASSIFIED",null,null,"TOTAL","ALL"]
["NO.","OTHER TAXES & MISC EXPENSES",null,"ALLO",null,{"$f":"$F$9","v":"EH SECONDARY"},{"$f":"G9","v":"DEMAND"},"ENERGY","CUSTOMER","AT ISSUE","OTHER"]
[null,null,"Schedule 8",null,null,null,3,4,5]
[1,"TAXES OTHER THAN INC & REV"]
[2," REAL ESTATE & PROPERTY TAX"]
[3,null,{"$f":"'FR-16(7)(v)-1 Functional'!C596","v":"REAL ESTATE & PROPERTY TAX"},{"$f":"'FR-16(7)(v)-1 Functional'!D596","v":"NP29"},null,{"$f":"'FR-16(7)(v)-14 TOTAL CLASS'!J596","v":68326},{"$f":"'FR-16(7)(v)-3 PROD Demand'!J596+'FR-16(7)(v)-7 TRANS Demand'!J596+'FR-16(7)(v)-11 DIST Demand'!J596","v":66056},{"$f":"'FR-16(7)(v)-4 PROD Energy'!J596+'FR-16(7)(v)-8 TRANS Energy'!J596+'FR-16(7)(v)-12 DIST Energy'!J596","v":792},{"$f":"'FR-16(7)(v)-5 PROD Cust'!J596+'FR-16(7)(v)-9 TRANS Cust'!J596+'FR-16(7)(v)-13 DIST Cust'!J596","v":1478},{"$f":"SUM(G596:I596)","v":68326},{"$f":"F596-J596","v":0}]
[4,null,{"$f":"'FR-16(7)(v)-1 Functional'!C597","v":"ANNUALIZE PROPERTY TAX"},{"$f":"'FR-16(7)(v)-1 Functional'!D597","v":"NP29"}," ",{"$f":"'FR-16(7)(v)-14 TOTAL CLASS'!J597","v":0},{"$f":"'FR-16(7)(v)-3 PROD Demand'!J597+'FR-16(7)(v)-7 TRANS Demand'!J597+'FR-16(7)(v)-11 DIST Demand'!J597","v":0},{"$f":"'FR-16(7)(v)-4 PROD Energy'!J597+'FR-16(7)(v)-8 TRANS Energy'!J597+'FR-16(7)(v)-12 DIST Energy'!J597","v":0},{"$f":"'FR-16(7)(v)-5 PROD Cust'!J597+'FR-16(7)(v)-9 TRANS Cust'!J597+'FR-16(7)(v)-13 DIST Cust'!J597","v":0},{"$f":"SUM(G597:I597)","v":0},{"$f":"F597-J597","v":0}]
[5,null,{"$f":"'FR-16(7)(v)-1 Functional'!C598","v":"  TOTAL REAL ESTATE & PROPERTY TAX"},null,null,{"$f":"SUM(F596:F597)","v":68326},66056,792,1478,68326,0]
[6]
[7," MISCELLANEOUS TAXES"]
[8,null,{"$f":"'FR-16(7)(v)-1 Functional'!C601","v":"PAYROLL "},{"$f":"'FR-16(7)(v)-1 Functional'!D601","v":"A315"},null,{"$f":"'FR-16(7)(v)-14 TOTAL CLASS'!J601","v":5439},{"$f":"'FR-16(7)(v)-3 PROD Demand'!J601+'FR-16(7)(v)-7 TRANS Demand'!J601+'FR-16(7)(v)-11 DIST Demand'!J601","v":2290},{"$f":"'FR-16(7)(v)-4 PROD Energy'!J601+'FR-16(7)(v)-8 TRANS Energy'!J601+'FR-16(7)(v)-12 DIST Energy'!J601","v":2779},{"$f":"'FR-16(7)(v)-5 PROD Cust'!J601+'FR-16(7)(v)-9 TRANS Cust'!J601+'FR-16(7)(v)-13 DIST Cust'!J601","v":370},{"$f":"SUM(G601:I601)","v":5439},{"$f":"F601-J601","v":0}]
[9,null,{"$f":"'FR-16(7)(v)-1 Functional'!C602","v":"ELIMINATE DSM "},{"$f":"'FR-16(7)(v)-1 Functional'!D602","v":"A315"},null,{"$f":"'FR-16(7)(v)-14 TOTAL CLASS'!J602","v":-107},{"$f":"'FR-16(7)(v)-3 PROD Demand'!J602+'FR-16(7)(v)-7 TRANS Demand'!J602+'FR-16(7)(v)-11 DIST Demand'!J602","v":-45},{"$f":"'FR-16(7)(v)-4 PROD Energy'!J602+'FR-16(7)(v)-8 TRANS Energy'!J602+'FR-16(7)(v)-12 DIST Energy'!J602","v":-55},{"$f":"'FR-16(7)(v)-5 PROD Cust'!J602+'FR-16(7)(v)-9 TRANS Cust'!J602+'FR-16(7)(v)-13 DIST Cust'!J602","v":-7},{"$f":"SUM(G602:I602)","v":-107},{"$f":"F602-J602","v":0}]
[10,null,{"$f":"'FR-16(7)(v)-1 Functional'!C603","v":"FRANCHISE & LICENSE"},{"$f":"'FR-16(7)(v)-1 Functional'!D603","v":"A315"},null,{"$f":"'FR-16(7)(v)-14 TOTAL CLASS'!J603","v":0},{"$f":"'FR-16(7)(v)-3 PROD Demand'!J603+'FR-16(7)(v)-7 TRANS Demand'!J603+'FR-16(7)(v)-11 DIST Demand'!J603","v":0},{"$f":"'FR-16(7)(v)-4 PROD Energy'!J603+'FR-16(7)(v)-8 TRANS Energy'!J603+'FR-16(7)(v)-12 DIST Energy'!J603","v":0},{"$f":"'FR-16(7)(v)-5 PROD Cust'!J603+'FR-16(7)(v)-9 TRANS Cust'!J603+'FR-16(7)(v)-13 DIST Cust'!J603","v":0},{"$f":"SUM(G603:I603)","v":0},{"$f":"F603-J603","v":0}]
[11,null,{"$f":"'FR-16(7)(v)-1 Functional'!C604","v":"ELIMINATE ESM"},{"$f":"'FR-16(7)(v)-1 Functional'!D604","v":"A315"},null,{"$f":"'FR-16(7)(v)-14 TOTAL CLASS'!J604","v":-2893},{"$f":"'FR-16(7)(v)-3 PROD Demand'!J604+'FR-16(7)(v)-7 TRANS Demand'!J604+'FR-16(7)(v)-11 DIST Demand'!J604","v":-1218},{"$f":"'FR-16(7)(v)-4 PROD Energy'!J604+'FR-16(7)(v)-8 TRANS Energy'!J604+'FR-16(7)(v)-12 DIST Energy'!J604","v":-1478},{"$f":"'FR-16(7)(v)-5 PROD Cust'!J604+'FR-16(7)(v)-9 TRANS Cust'!J604+'FR-16(7)(v)-13 DIST Cust'!J604","v":-197},{"$f":"SUM(G604:I604)","v":-2893},{"$f":"F604-J604","v":0}]
[12,null,{"$f":"'FR-16(7)(v)-1 Functional'!C605","v":"  TOTAL MISCELLANEOUS TAXES"},null,null,{"$f":"SUM(F601:F604)","v":2439},1027,1246,166,2439,0]
[13]
[14," MISCELLANEOUS EXPENSES"]
[15,null,{"$f":"'FR-16(7)(v)-1 Functional'!C608","v":"PSC MAINT. EXP ON INCREASE"},{"$f":"'FR-16(7)(v)-1 Functional'!D608","v":"K902"},null,{"$f":"'FR-16(7)(v)-14 TOTAL CLASS'!J608","v":169},{"$f":"'FR-16(7)(v)-3 PROD Demand'!J608+'FR-16(7)(v)-7 TRANS Demand'!J608+'FR-16(7)(v)-11 DIST Demand'!J608","v":84},{"$f":"'FR-16(7)(v)-4 PROD Energy'!J608+'FR-16(7)(v)-8 TRANS Energy'!J608+'FR-16(7)(v)-12 DIST Energy'!J608","v":58},{"$f":"'FR-16(7)(v)-5 PROD Cust'!J608+'FR-16(7)(v)-9 TRANS Cust'!J608+'FR-16(7)(v)-13 DIST Cust'!J608","v":27},{"$f":"SUM(G608:I608)","v":169},{"$f":"F608-J608","v":0}]
[16,null,{"$f":"'FR-16(7)(v)-1 Functional'!C609","v":"RESERVED FOR FUTURE USE"},{"$f":"'FR-16(7)(v)-1 Functional'!D609","v":"K902"},null,{"$f":"'FR-16(7)(v)-14 TOTAL CLASS'!J609","v":0},{"$f":"'FR-16(7)(v)-3 PROD Demand'!J609+'FR-16(7)(v)-7 TRANS Demand'!J609+'FR-16(7)(v)-11 DIST Demand'!J609","v":0},{"$f":"'FR-16(7)(v)-4 PROD Energy'!J609+'FR-16(7)(v)-8 TRANS Energy'!J609+'FR-16(7)(v)-12 DIST Energy'!J609","v":0},{"$f":"'FR-16(7)(v)-5 PROD Cust'!J609+'FR-16(7)(v)-9 TRANS Cust'!J609+'FR-16(7)(v)-13 DIST Cust'!J609","v":0},{"$f":"SUM(G609:I609)","v":0},{"$f":"F609-J609","v":0}]
[17,null,{"$f":"'FR-16(7)(v)-1 Functional'!C610","v":"  TOTAL MISCELLANEOUS EXPENSES"},null,null,{"$f":"SUM(F608:F609)","v":169},84,58,27,169,0]
[18]
[19,"TOTAL OTHER TAX & MISC EXPENSE",null,null," ",{"$f":"F605+F598+F610","v":70934},67167,2096,1671,70934,0]
[20]
[21,"PRELIMINARY SUMMARY"]
[22,null,{"$f":"'FR-16(7)(v)-1 Functional'!C615","v":"TOTAL O&M EXPENSE"},null,null,{"$f":"F549","v":891508},243776,633748,13984,891508,0]
[23,null,{"$f":"'FR-16(7)(v)-1 Functional'!C616","v":"TOTAL DEPRECIATION EXPENSE"},null,null,{"$f":"F582","v":290337},277590,7990,4757,290337,0]
[24,null,{"$f":"'FR-16(7)(v)-1 Functional'!C617","v":"TOTAL OTHER TAX & MISC EXPENSE"},null,null,{"$f":"F612","v":70934},67167,2096,1671,70934,0]
[25,null,{"$f":"'FR-16(7)(v)-1 Functional'!C618","v":"  TOTAL OPER EXP EXCL INCOME & REV TAX"},null,null,{"$f":"SUM(F615:F617)","v":1252779},588533,643834,20412,1252779,0]
[]
[{"$f":"co_name","v":"DUKE ENERGY KENTUCKY, INC."},null,null,null,null,null,null,null,null,{"$f":"J1","v":"FR-16(7)(v)-18"}]
[{"$f":"$A$2","v":"EH SECONDARY CLASSIFIED - ELECTRIC COST OF SERVICE"},null,null,null,null,null,null,null,null,{"$f":"J2","v":"WITNESS RESPONSIBLE:"}]
[{"$f":"case_name","v":"CASE NO: 2019-00271"},null,null,null,null,null,null,null,null,{"$f":"Witness","v":"JAMES E. ZIOLKOWSKI"}]
[{"$f":"data_filing","v":"DATA: 12 MONTHS ACTUAL  & 0 MONTHS ESTIMATED"},null,null,null,null,null,null,null,null,{"$f":"\"PAGE \"&Pages2-3&\" OF \"&Pages2","v":"PAGE 12 OF 15"}]
[{"$f":"type","v":"TYPE OF FILING: \"X\" ORIGINAL   UPDATED    REVISED  "}]
[]
[]
["LINE",null,null,null,null,"TOTAL","CLASSIFIED",null,null,"TOTAL","ALL"]
["NO.","FEDERAL INCOME TAX BASED ON RETURN",null,"ALLO",null,{"$f":"$F$9","v":"EH SECONDARY"},{"$f":"$G$9","v":"DEMAND"},{"$f":"$H$9","v":"ENERGY"},{"$f":"$I$9","v":"CUSTOMER"},"AT ISSUE","OTHER"]
[null,null,"Schedule 9",null,null,null,{"$f":"G10","v":3},{"$f":"H10","v":4},{"$f":"I10","v":5}]
[1,"FEDERAL INCOME TAX DEDUCTIONS"]
[2," AUTOMATIC INTEREST CALCULATION",null,null,null," "]
[3,null,{"$f":"'FR-16(7)(v)-1 Functional'!C632","v":"AUTO PROC INTEREST DED"},{"$f":"'FR-16(7)(v)-1 Functional'!D632","v":"RB99"},null,{"$f":"'FR-16(7)(v)-14 TOTAL CLASS'!J632","v":93041},{"$f":"'FR-16(7)(v)-3 PROD Demand'!J632+'FR-16(7)(v)-7 TRANS Demand'!J632+'FR-16(7)(v)-11 DIST Demand'!J632","v":88265},{"$f":"'FR-16(7)(v)-4 PROD Energy'!J632+'FR-16(7)(v)-8 TRANS Energy'!J632+'FR-16(7)(v)-12 DIST Energy'!J632","v":2693},{"$f":"'FR-16(7)(v)-5 PROD Cust'!J632+'FR-16(7)(v)-9 TRANS Cust'!J632+'FR-16(7)(v)-13 DIST Cust'!J632","v":2083},{"$f":"SUM(G632:I632)","v":93041},{"$f":"F632-J632","v":0}]
[4,null,{"$f":"'FR-16(7)(v)-1 Functional'!C633","v":"  TOTAL INTEREST EXPENSE"},null,null,{"$f":"F632","v":93041},88265,2693,2083,93041,0]
[5]
[6," OTHER DEDUCTIONS"]
[7,null,{"$f":"'FR-16(7)(v)-1 Functional'!C636","v":"DEPREC EXCESS TAX-BOOK"},{"$f":"'FR-16(7)(v)-1 Functional'!D636","v":"DE49"},null,{"$f":"'FR-16(7)(v)-14 TOTAL CLASS'!J636","v":-68835},{"$f":"'FR-16(7)(v)-3 PROD Demand'!J636+'FR-16(7)(v)-7 TRANS Demand'!J636+'FR-16(7)(v)-11 DIST Demand'!J636","v":-65810},{"$f":"'FR-16(7)(v)-4 PROD Energy'!J636+'FR-16(7)(v)-8 TRANS Energy'!J636+'FR-16(7)(v)-12 DIST Energy'!J636","v":-1895},{"$f":"'FR-16(7)(v)-5 PROD Cust'!J636+'FR-16(7)(v)-9 TRANS Cust'!J636+'FR-16(7)(v)-13 DIST Cust'!J636","v":-1130},{"$f":"SUM(G636:I636)","v":-68835},{"$f":"F636-J636","v":0}]
[8,null,{"$f":"'FR-16(7)(v)-1 Functional'!C637","v":"PERMANENT DIFFERENCES"},{"$f":"'FR-16(7)(v)-1 Functional'!D637","v":"A357"},null,{"$f":"'FR-16(7)(v)-14 TOTAL CLASS'!J637","v":-1218},{"$f":"'FR-16(7)(v)-3 PROD Demand'!J637+'FR-16(7)(v)-7 TRANS Demand'!J637+'FR-16(7)(v)-11 DIST Demand'!J637","v":-513},{"$f":"'FR-16(7)(v)-4 PROD Energy'!J637+'FR-16(7)(v)-8 TRANS Energy'!J637+'FR-16(7)(v)-12 DIST Energy'!J637","v":-622},{"$f":"'FR-16(7)(v)-5 PROD Cust'!J637+'FR-16(7)(v)-9 TRANS Cust'!J637+'FR-16(7)(v)-13 DIST Cust'!J637","v":-83},{"$f":"SUM(G637:I637)","v":-1218},{"$f":"F637-J637","v":0}]
[9,null,{"$f":"'FR-16(7)(v)-1 Functional'!C638","v":"TEMPORARY DIFFERENCES"},{"$f":"'FR-16(7)(v)-1 Functional'!D638","v":"DE49"},null,{"$f":"'FR-16(7)(v)-14 TOTAL CLASS'!J638","v":420017},{"$f":"'FR-16(7)(v)-3 PROD Demand'!J638+'FR-16(7)(v)-7 TRANS Demand'!J638+'FR-16(7)(v)-11 DIST Demand'!J638","v":401561},{"$f":"'FR-16(7)(v)-4 PROD Energy'!J638+'FR-16(7)(v)-8 TRANS Energy'!J638+'FR-16(7)(v)-12 DIST Energy'!J638","v":11563},{"$f":"'FR-16(7)(v)-5 PROD Cust'!J638+'FR-16(7)(v)-9 TRANS Cust'!J638+'FR-16(7)(v)-13 DIST Cust'!J638","v":6893},{"$f":"SUM(G638:I638)","v":420017},{"$f":"F638-J638","v":0}]
[10,null,{"$f":"'FR-16(7)(v)-1 Functional'!C639","v":"  TOTAL OTHER DEDUCTIONS"},null,null,{"$f":"SUM(F636:F638)","v":349964},335238,9046,5680,349964,0]
[11]
[12,"NET DEDUCTIONS AND ADDITIONS",null,null,null,{"$f":"F639+F633","v":443005},423503,11739,7763,443005,0]
[13]
[14," FED DEFERRED INCOME TAX (410 & 411)"]
[15,null,{"$f":"'FR-16(7)(v)-1 Functional'!C644","v":"DEFERRED INCOME TAXES - NET"},{"$f":"'FR-16(7)(v)-1 Functional'!D644","v":"OM39"},null,{"$f":"'FR-16(7)(v)-14 TOTAL CLASS'!J644","v":59363},{"$f":"'FR-16(7)(v)-3 PROD Demand'!J644+'FR-16(7)(v)-7 TRANS Demand'!J644+'FR-16(7)(v)-11 DIST Demand'!J644","v":16224},{"$f":"'FR-16(7)(v)-4 PROD Energy'!J644+'FR-16(7)(v)-8 TRANS Energy'!J644+'FR-16(7)(v)-12 DIST Energy'!J644","v":42212},{"$f":"'FR-16(7)(v)-5 PROD Cust'!J644+'FR-16(7)(v)-9 TRANS Cust'!J644+'FR-16(7)(v)-13 DIST Cust'!J644","v":927},{"$f":"SUM(G644:I644)","v":59363},{"$f":"F644-J644","v":0}]
[16,null,{"$f":"'FR-16(7)(v)-1 Functional'!C645","v":"AMORT OF DEFERRED MERGER COST"},{"$f":"'FR-16(7)(v)-1 Functional'!D645","v":"A357"},null,{"$f":"'FR-16(7)(v)-14 TOTAL CLASS'!J645","v":0},{"$f":"'FR-16(7)(v)-3 PROD Demand'!J645+'FR-16(7)(v)-7 TRANS Demand'!J645+'FR-16(7)(v)-11 DIST Demand'!J645","v":0},{"$f":"'FR-16(7)(v)-4 PROD Energy'!J645+'FR-16(7)(v)-8 TRANS Energy'!J645+'FR-16(7)(v)-12 DIST Energy'!J645","v":0},{"$f":"'FR-16(7)(v)-5 PROD Cust'!J645+'FR-16(7)(v)-9 TRANS Cust'!J645+'FR-16(7)(v)-13 DIST Cust'!J645","v":0},{"$f":"SUM(G645:I645)","v":0},{"$f":"F645-J645","v":0}]
[17,null,{"$f":"'FR-16(7)(v)-1 Functional'!C646","v":"DIT ADJUSTMENT - S/L DEPRECIATION"},{"$f":"'FR-16(7)(v)-1 Functional'!D646","v":"DE49"},null,{"$f":"'FR-16(7)(v)-14 TOTAL CLASS'!J646","v":0},{"$f":"'FR-16(7)(v)-3 PROD Demand'!J646+'FR-16(7)(v)-7 TRANS Demand'!J646+'FR-16(7)(v)-11 DIST Demand'!J646","v":0},{"$f":"'FR-16(7)(v)-4 PROD Energy'!J646+'FR-16(7)(v)-8 TRANS Energy'!J646+'FR-16(7)(v)-12 DIST Energy'!J646","v":0},{"$f":"'FR-16(7)(v)-5 PROD Cust'!J646+'FR-16(7)(v)-9 TRANS Cust'!J646+'FR-16(7)(v)-13 DIST Cust'!J646","v":0},{"$f":"SUM(G646:I646)","v":0},{"$f":"F646-J646","v":0}]
[18,null,{"$f":"'FR-16(7)(v)-1 Functional'!C647","v":"DIT ADJUSTMENT - ARAM"},{"$f":"'FR-16(7)(v)-1 Functional'!D647","v":"K201"},null,{"$f":"'FR-16(7)(v)-14 TOTAL CLASS'!J647","v":-552},{"$f":"'FR-16(7)(v)-3 PROD Demand'!J647+'FR-16(7)(v)-7 TRANS Demand'!J647+'FR-16(7)(v)-11 DIST Demand'!J647","v":-552},{"$f":"'FR-16(7)(v)-4 PROD Energy'!J647+'FR-16(7)(v)-8 TRANS Energy'!J647+'FR-16(7)(v)-12 DIST Energy'!J647","v":0},{"$f":"'FR-16(7)(v)-5 PROD Cust'!J647+'FR-16(7)(v)-9 TRANS Cust'!J647+'FR-16(7)(v)-13 DIST Cust'!J647","v":0},{"$f":"SUM(G647:I647)","v":-552},{"$f":"F647-J647","v":0}]
[19,null,{"$f":"'FR-16(7)(v)-1 Functional'!C648","v":"DIT ADJUSTMENT - AMORT OF EXCESS DEF TAXES"},{"$f":"'FR-16(7)(v)-1 Functional'!D648","v":"A357"},null,{"$f":"'FR-16(7)(v)-14 TOTAL CLASS'!J648","v":-10674},{"$f":"'FR-16(7)(v)-3 PROD Demand'!J648+'FR-16(7)(v)-7 TRANS Demand'!J648+'FR-16(7)(v)-11 DIST Demand'!J648","v":-4494},{"$f":"'FR-16(7)(v)-4 PROD Energy'!J648+'FR-16(7)(v)-8 TRANS Energy'!J648+'FR-16(7)(v)-12 DIST Energy'!J648","v":-5453},{"$f":"'FR-16(7)(v)-5 PROD Cust'!J648+'FR-16(7)(v)-9 TRANS Cust'!J648+'FR-16(7)(v)-13 DIST Cust'!J648","v":-727},{"$f":"SUM(G648:I648)","v":-10674},{"$f":"F648-J648","v":0}]
[20,null,{"$f":"'FR-16(7)(v)-1 Functional'!C649","v":"  TOTAL FED DEF IT (410 & 411)"},null,null,{"$f":"SUM(F644:F648)","v":48137},11178,36759,200,48137,0]
[21]
[22," AMORT INV TAX CREDIT"]
[23,null,{"$f":"'FR-16(7)(v)-1 Functional'!C652","v":"AMORTIZE ITC"},{"$f":"'FR-16(7)(v)-1 Functional'!D652","v":"NP29"},null,{"$f":"'FR-16(7)(v)-14 TOTAL CLASS'!J652","v":2},{"$f":"'FR-16(7)(v)-3 PROD Demand'!J652+'FR-16(7)(v)-7 TRANS Demand'!J652+'FR-16(7)(v)-11 DIST Demand'!J652","v":2},{"$f":"'FR-16(7)(v)-4 PROD Energy'!J652+'FR-16(7)(v)-8 TRANS Energy'!J652+'FR-16(7)(v)-12 DIST Energy'!J652","v":0},{"$f":"'FR-16(7)(v)-5 PROD Cust'!J652+'FR-16(7)(v)-9 TRANS Cust'!J652+'FR-16(7)(v)-13 DIST Cust'!J652","v":0},{"$f":"SUM(G652:I652)","v":2},{"$f":"F652-J652","v":0}]
[24,null,{"$f":"'FR-16(7)(v)-1 Functional'!C653","v":"  TOTAL AMORTIZED ITC"},null,null,{"$f":"SUM(F652:F652)","v":2},2,0,0,2,0]
[25]
[26," OTHER FEDERAL TAX CREDITS"]
[27,null,{"$f":"'FR-16(7)(v)-1 Functional'!C656","v":"FUEL TAX CREDIT"},{"$f":"'FR-16(7)(v)-1 Functional'!D656","v":"K301"},null,{"$f":"'FR-16(7)(v)-14 TOTAL CLASS'!J656","v":0},{"$f":"'FR-16(7)(v)-3 PROD Demand'!J656+'FR-16(7)(v)-7 TRANS Demand'!J656+'FR-16(7)(v)-11 DIST Demand'!J656","v":0},{"$f":"'FR-16(7)(v)-4 PROD Energy'!J656+'FR-16(7)(v)-8 TRANS Energy'!J656+'FR-16(7)(v)-12 DIST Energy'!J656","v":0},{"$f":"'FR-16(7)(v)-5 PROD Cust'!J656+'FR-16(7)(v)-9 TRANS Cust'!J656+'FR-16(7)(v)-13 DIST Cust'!J656","v":0},{"$f":"SUM(G656:I656)","v":0},{"$f":"F656-J656","v":0}]
[28,null,{"$f":"'FR-16(7)(v)-1 Functional'!C657","v":"R&D CREDIT - SECTION 41"},{"$f":"'FR-16(7)(v)-1 Functional'!D657","v":"A315"},null,{"$f":"'FR-16(7)(v)-14 TOTAL CLASS'!J657","v":0},{"$f":"'FR-16(7)(v)-3 PROD Demand'!J657+'FR-16(7)(v)-7 TRANS Demand'!J657+'FR-16(7)(v)-11 DIST Demand'!J657","v":0},{"$f":"'FR-16(7)(v)-4 PROD Energy'!J657+'FR-16(7)(v)-8 TRANS Energy'!J657+'FR-16(7)(v)-12 DIST Energy'!J657","v":0},{"$f":"'FR-16(7)(v)-5 PROD Cust'!J657+'FR-16(7)(v)-9 TRANS Cust'!J657+'FR-16(7)(v)-13 DIST Cust'!J657","v":0},{"$f":"SUM(G657:I657)","v":0},{"$f":"F657-J657","v":0}]
[29,null,{"$f":"'FR-16(7)(v)-1 Functional'!C658","v":"  TOTAL OTHER FEDERAL TAX CREDITS"},null,null,{"$f":"SUM(F656:F657)","v":0},0,0,0,0,0]
[30]
[31,"PRELIMINARY SUMMARY"]
[32,null,{"$f":"'FR-16(7)(v)-1 Functional'!C661","v":"TOTAL FED DEF IT (410 & 411)"},null,null,{"$f":"F649","v":48137},11178,36759,200,48137,0]
[33,null,{"$f":"'FR-16(7)(v)-1 Functional'!C662","v":"TOTAL AMORTIZED ITC & OTHER FEDERAL TAX CREDITS"},null,null,{"$f":"-F653-F658","v":-2},-2,0,0,-2,0]
[34,null,{"$f":"'FR-16(7)(v)-1 Functional'!C663","v":"  TOTAL FEDERAL TAX ADJUSTMENTS"},null,null,{"$f":"SUM(F661:F662)","v":48135},11176,36759,200,48135,0]
[35]
[36,"FEDERAL INCOME TAX COMPUTATION"]
[37,null,"RETURN ON RATE BASE",null,null,{"$f":"F433","v":314751},{"$f":"G433","v":298592},{"$f":"H433","v":9110},{"$f":"I433","v":7049},{"$f":"J433","v":314751},{"$f":"F666-J666","v":0}]
[38,null,{"$f":"'FR-16(7)(v)-1 Functional'!C667","v":"NET DEDUCTIONS AND ADDITIONS"},null,null,{"$f":"-F641","v":-443005},{"$f":"-G641","v":-423503},{"$f":"-H641","v":-11739},{"$f":"-I641","v":-7763},{"$f":"-J641","v":-443005},{"$f":"F667-J667","v":0}]
[39,null,{"$f":"'FR-16(7)(v)-1 Functional'!C668","v":"TOTAL FEDERAL TAX ADJUSTMENTS"},null,null,{"$f":"F663","v":48135},{"$f":"G663","v":11176},{"$f":"H663","v":36759},{"$f":"I663","v":200},{"$f":"J663","v":48135},{"$f":"F668-J668","v":0}]
[40,null,"TOTAL STATE PROV DEF IT (410 & 411)",null,null,{"$f":"F707","v":10592},{"$f":"G707","v":4460},{"$f":"H707","v":5411},{"$f":"I707","v":721},{"$f":"J707","v":10592},{"$f":"F669-J669","v":0}]
[41,null,"RESERVED",null,null,{"$f":"F24","v":0},{"$f":"G24","v":0},{"$f":"H24","v":0},{"$f":"I24","v":0},{"$f":"J24","v":0},{"$f":"F670-J670","v":0}]
[42,null,{"$f":"'FR-16(7)(v)-1 Functional'!C671","v":"  BASE FOR FIT COMPUATION"},null,null,{"$f":"SUM(F666:F670)","v":-69527},-109275,39541,207,-69527,0]
[43]
[44,null,{"$f":"'FR-16(7)(v)-1 Functional'!C673","v":"FIT FACTOR K190/(1-K190)"},null,null,{"$f":"ROUND(FIT/(1-FIT),9)","v":0.26582278500000001},{"$f":"ROUND(FIT/(1-FIT),9)","v":0.26582278500000001},{"$f":"ROUND(FIT/(1-FIT),9)","v":0.26582278500000001},{"$f":"ROUND(FIT/(1-FIT),9)","v":0.26582278500000001},null,{"$f":"ROUND(FIT/(1-FIT),9)","v":0.26582278500000001}]
[45,null,{"$f":"'FR-16(7)(v)-1 Functional'!C674","v":"PRELIM FED INCOME TAX"},null,null,{"$f":"'FR-16(7)(v)-14 TOTAL CLASS'!J674","v":-18482},{"$f":"F674-SUM(H674:I674)","v":-29048},{"$f":"'FR-16(7)(v)-4 PROD Energy'!J674+'FR-16(7)(v)-8 TRANS Energy'!J674+'FR-16(7)(v)-12 DIST Energy'!J674","v":10511},{"$f":"'FR-16(7)(v)-5 PROD Cust'!J674+'FR-16(7)(v)-9 TRANS Cust'!J674+'FR-16(7)(v)-13 DIST Cust'!J674","v":55},{"$f":"SUM(G674:I674)","v":-18482},{"$f":"F674-J674","v":0}]
[46,null,{"$f":"'FR-16(7)(v)-1 Functional'!C675","v":"TOTAL FEDERAL TAX ADJUSTMENTS"},null,null,{"$f":"F663","v":48135},{"$f":"G663","v":11176},{"$f":"H663","v":36759},{"$f":"I663","v":200},{"$f":"J663","v":48135},{"$f":"F675-J675","v":0}]
[47,null,{"$f":"'FR-16(7)(v)-1 Functional'!C676","v":"  NET FED INCOME TAX ALLOWABLE"},null,null,{"$f":"SUM(F674:F675)","v":29653},-17872,47270,255,29653,0]
[48]
[49,"INCOME TAX BASED ON RETURN"]
[50,"FEDERAL INCOME TAX PAYABLE"]
[51,null,{"$f":"'FR-16(7)(v)-1 Functional'!C680","v":"PRELIM FEDERAL INCOME TAX"},null,null,{"$f":"F674","v":-18482},-29048,10511,55,-18482,0]
[53,null,{"$f":"'FR-16(7)(v)-1 Functional'!C681","v":"  NET FED INCOME TAX PAYABLE"},null,null,{"$f":"SUM(F680:F680)","v":-18482},-29048,10511,55,-18482,0]
[]
[{"$f":"co_name","v":"DUKE ENERGY KENTUCKY, INC."},null,null,null,null,null,null,null,null,{"$f":"J1","v":"FR-16(7)(v)-18"}]
[{"$f":"$A$2","v":"EH SECONDARY CLASSIFIED - ELECTRIC COST OF SERVICE"},null,null,null,null,null,null,null,null,{"$f":"J2","v":"WITNESS RESPONSIBLE:"}]
[{"$f":"case_name","v":"CASE NO: 2019-00271"},null,null,null,null,null,null,null,null,{"$f":"Witness","v":"JAMES E. ZIOLKOWSKI"}]
[{"$f":"data_filing","v":"DATA: 12 MONTHS ACTUAL  & 0 MONTHS ESTIMATED"},null,null,null,null,null,null,null,null,{"$f":"\"PAGE \"&Pages2-2&\" OF \"&Pages2","v":"PAGE 13 OF 15"}]
[{"$f":"type","v":"TYPE OF FILING: \"X\" ORIGINAL   UPDATED    REVISED  "}]
[]
[]
["LINE",null,null,null,null,"TOTAL","CLASSIFIED",null,null,"TOTAL","ALL"]
["NO.","STATE INCOME TAX BASED ON RETURN",null,"Allo",null,"GAS",{"$f":"$G$9","v":"DEMAND"},{"$f":"$H$9","v":"ENERGY"},{"$f":"$I$9","v":"CUSTOMER"},"AT ISSUE","OTHER"]
[null,null,"Schedule 9.1",null,null,null,{"$f":"$G$10","v":3},{"$f":"$H$10","v":4},{"$f":"$I$10","v":5}]
[1,"DEDUCTIONS IN ADDITION TO Y871"]
[2,"KY TAXABLE INCOME ADJUSTMENT",null,{"$f":"'FR-16(7)(v)-1 Functional'!D694","v":"NP29"},null,{"$f":"'FR-16(7)(v)-14 TOTAL CLASS'!J694","v":42843},{"$f":"'FR-16(7)(v)-3 PROD Demand'!J694+'FR-16(7)(v)-7 TRANS Demand'!J694+'FR-16(7)(v)-11 DIST Demand'!J694","v":41419},{"$f":"'FR-16(7)(v)-4 PROD Energy'!J694+'FR-16(7)(v)-8 TRANS Energy'!J694+'FR-16(7)(v)-12 DIST Energy'!J694","v":497},{"$f":"'FR-16(7)(v)-5 PROD Cust'!J694+'FR-16(7)(v)-9 TRANS Cust'!J694+'FR-16(7)(v)-13 DIST Cust'!J694","v":927},{"$f":"SUM(G694:I694)","v":42843},{"$f":"F694-J694","v":0}]
[3,"RESERVED FOR FUTURE USE",null,{"$f":"'FR-16(7)(v)-1 Functional'!D695","v":"NP29"},null,{"$f":"'FR-16(7)(v)-14 TOTAL CLASS'!J695","v":0},{"$f":"'FR-16(7)(v)-3 PROD Demand'!J695+'FR-16(7)(v)-7 TRANS Demand'!J695+'FR-16(7)(v)-11 DIST Demand'!J695","v":0},{"$f":"'FR-16(7)(v)-4 PROD Energy'!J695+'FR-16(7)(v)-8 TRANS Energy'!J695+'FR-16(7)(v)-12 DIST Energy'!J695","v":0},{"$f":"'FR-16(7)(v)-5 PROD Cust'!J695+'FR-16(7)(v)-9 TRANS Cust'!J695+'FR-16(7)(v)-13 DIST Cust'!J695","v":0},{"$f":"SUM(G695:I695)","v":0},{"$f":"F695-J695","v":0}]
[4,"  DEDUCTIONS IN ADD TO Y871",null,null,null,{"$f":"SUM(F694:F695)","v":42843},41419,497,927,42843,0]
[5]
[6,"STATE INCOME TAX ADJUSTMENTS"]
[7,"STATE PROV DEF INC TAX (410 & 411)"]
[8,"OTHER DEFERRED INCOME TAXES - NET",null,{"$f":"'FR-16(7)(v)-1 Functional'!D700","v":"A357"},null,{"$f":"'FR-16(7)(v)-14 TOTAL CLASS'!J700","v":10592},{"$f":"'FR-16(7)(v)-3 PROD Demand'!J700+'FR-16(7)(v)-7 TRANS Demand'!J700+'FR-16(7)(v)-11 DIST Demand'!J700","v":4460},{"$f":"'FR-16(7)(v)-4 PROD Energy'!J700+'FR-16(7)(v)-8 TRANS Energy'!J700+'FR-16(7)(v)-12 DIST Energy'!J700","v":5411},{"$f":"'FR-16(7)(v)-5 PROD Cust'!J700+'FR-16(7)(v)-9 TRANS Cust'!J700+'FR-16(7)(v)-13 DIST Cust'!J700","v":721},{"$f":"SUM(G700:I700)","v":10592},{"$f":"F700-J700","v":0}]
[9,"  TOT STATE PROV DEF IT (410 & 411)",null,null,null,{"$f":"SUM(F700)","v":10592},4460,5411,721,10592,0]
[10]
[11,"OTHER SIT ADJUSTMENTS"]
[12,"CURRENT YEAR PAYABLE ADJUSTMENT",null,{"$f":"'FR-16(7)(v)-1 Functional'!D704","v":"NP29"},null,{"$f":"'FR-16(7)(v)-14 TOTAL CLASS'!J704","v":0},{"$f":"'FR-16(7)(v)-3 PROD Demand'!J704+'FR-16(7)(v)-7 TRANS Demand'!J704+'FR-16(7)(v)-11 DIST Demand'!J704","v":0},{"$f":"'FR-16(7)(v)-4 PROD Energy'!J704+'FR-16(7)(v)-8 TRANS Energy'!J704+'FR-16(7)(v)-12 DIST Energy'!J704","v":0},{"$f":"'FR-16(7)(v)-5 PROD Cust'!J704+'FR-16(7)(v)-9 TRANS Cust'!J704+'FR-16(7)(v)-13 DIST Cust'!J704","v":0},{"$f":"SUM(G704:I704)","v":0},{"$f":"F704-J704","v":0}]
[13,"  OTHER SIT ADJUSMENTS",null,null,null,{"$f":"SUM(F704)","v":0},0,0,0,0,0]
[14]
[15,"TOTAL STATE INC TAX ADJUSTMENT",null,null,null,{"$f":"F705+F701","v":10592},4460,5411,721,10592,0]
[16]
[17,"INCOME TAX BASED ON RETURN"]
[18,"SUMMARY OF SIT CALCULATION"]
[19,"RETURN ON RATE BASE",null,null,null,{"$f":"F433","v":314751},{"$f":"G433","v":298592},{"$f":"H433","v":9110},{"$f":"I433","v":7049},{"$f":"J433","v":314751},{"$f":"F711-J711","v":0}]
[20,"NET FED INCOME TAX ALLOWABLE",null,null,null,{"$f":"F676","v":29653},{"$f":"G676","v":-17872},{"$f":"H676","v":47270},{"$f":"I676","v":255},{"$f":"J676","v":29653},0]
[21,"NET FED. DED. AND ADDITIONS",null,null,null,{"$f":"-F641","v":-443005},{"$f":"-G641","v":-423503},{"$f":"-H641","v":-11739},{"$f":"-I641","v":-7763},{"$f":"-J641","v":-443005},0]
[22,"DEDUCTIONS IN ADD TO Y871",null,null,null,{"$f":"-F696","v":-42843},{"$f":"-G696","v":-41419},{"$f":"-H696","v":-497},{"$f":"-I696","v":-927},{"$f":"-J696","v":-42843},0]
[23,"RESERVED",null,null,null,{"$f":"F24","v":0},{"$f":"G24","v":0},{"$f":"H24","v":0},{"$f":"I24","v":0},{"$f":"J24","v":0},0]
[24,"TOTAL STATE INC TAX ADJ",null,null,null,{"$f":"F707","v":10592},{"$f":"G707","v":4460},{"$f":"H707","v":5411},{"$f":"I707","v":721},{"$f":"J707","v":10592},0]
[25,"  BASE FOR SIT COMPUTATION",null,null,null,{"$f":"SUM(F711:F716)","v":-130852},-179742,49555,-665,-130852,0]
[26]
[27,"SIT FACTOR K192/(1-K192)",null,null,null,{"$f":"ROUND(SIT/(1-SIT),8)","v":5.2282660000000002E-2},{"$f":"ROUND(SIT/(1-SIT),8)","v":5.2282660000000002E-2},{"$f":"ROUND(SIT/(1-SIT),8)","v":5.2282660000000002E-2},{"$f":"ROUND(SIT/(1-SIT),8)","v":5.2282660000000002E-2},null,{"$f":"ROUND(SIT/(1-SIT),8)","v":5.2282660000000002E-2}]
[28,"PRELIMINARY STATE INCOME TAX",null,null,null,{"$f":"ROUND(F717*F719,0)","v":-6841},{"$f":"'FR-16(7)(v)-3 PROD Demand'!J720+'FR-16(7)(v)-7 TRANS Demand'!J720+'FR-16(7)(v)-11 DIST Demand'!J720","v":-9398},{"$f":"ROUND(H717*H719,0)","v":2591},{"$f":"ROUND(I717*I719,0)","v":-35},{"$f":"SUM(G720:I720)","v":-6842},{"$f":"F720-J720","v":1}]
[29,"TOTAL STATE INCOME TAX ADJ.",null,null,null,{"$f":"F707","v":10592},{"$f":"G707","v":4460},{"$f":"H707","v":5411},{"$f":"I707","v":721},{"$f":"J707","v":10592},{"$f":"F721-J721","v":0}]
[30,"  NET STATE INC TAX ALLOWABLE",null,null,null,{"$f":"F721+F720","v":3751},-4938,8002,686,3750,1]
[31]
[32,"STATE INCOME TAX PAYABLE"]
[33,"PRELIMINARY STATE INCOME TAX",null,null,null,{"$f":"F720","v":-6841},{"$f":"G720","v":-9398},{"$f":"H720","v":2591},{"$f":"I720","v":-35},{"$f":"J720","v":-6842},{"$f":"F725-J725","v":1}]
[34,"OTHER SIT ADJUSTMENTS",null,null,null,{"$f":"F705","v":0},{"$f":"G705","v":0},{"$f":"H705","v":0},{"$f":"I705","v":0},{"$f":"J705","v":0},{"$f":"F726-J726","v":0}]
[35,"  NET STATE INCOME TAX PAYABLE",null,null,null,{"$f":"F725+F726","v":-6841},-9398,2591,-35,-6842,1]
[36]
[37,"COMPOSITE TAX RATE",null,null,null,{"$f":"(SIT*(1-FIT))+((1-SIT)*(1-FIT)*RevTax)+FIT","v":0.24925115},0.24925115,0.24925115,0.24925115,0.24925115,0.24925115]
[]
[{"$f":"co_name","v":"DUKE ENERGY KENTUCKY, INC."},null,null,null,null,null,null,null,null,{"$f":"J1","v":"FR-16(7)(v)-18"}]
[{"$f":"$A$2","v":"EH SECONDARY CLASSIFIED - ELECTRIC COST OF SERVICE"},null,null,null,null,null,null,null,null,{"$f":"J2","v":"WITNESS RESPONSIBLE:"}]
[{"$f":"case_name","v":"CASE NO: 2019-00271"},null,null,null,null,null,null,null,null,{"$f":"Witness","v":"JAMES E. ZIOLKOWSKI"}]
[{"$f":"data_filing","v":"DATA: 12 MONTHS ACTUAL  & 0 MONTHS ESTIMATED"},null,null,null,null,null,null,null,null,{"$f":"\"PAGE \"&Pages2-1&\" OF \"&Pages2","v":"PAGE 14 OF 15"}]
[{"$f":"type","v":"TYPE OF FILING: \"X\" ORIGINAL   UPDATED    REVISED  "}]
[]
[]
["LINE",null,null,null,null,"TOTAL","CLASSIFIED",null,null,"TOTAL","ALL"]
["NO.","COST OF SERVICE COMPUTATION",null,"ALLO",null,{"$f":"$F$9","v":"EH SECONDARY"},{"$f":"G9","v":"DEMAND"},"ENERGY","CUSTOMER","AT ISSUE","OTHER"]
[null,null,"Schedule 10",null,null,null,3,4,5]
[1,"OTHER OPERATING REVENUES"]
[2,null,{"$f":"'FR-16(7)(v)-1 Functional'!C742","v":"MISC SERVICE REVENUE"},{"$f":"'FR-16(7)(v)-1 Functional'!D742","v":"D249"},null,{"$f":"'FR-16(7)(v)-14 TOTAL CLASS'!J742","v":1234},{"$f":"'FR-16(7)(v)-3 PROD Demand'!J742+'FR-16(7)(v)-7 TRANS Demand'!J742+'FR-16(7)(v)-11 DIST Demand'!J742","v":1166},{"$f":"'FR-16(7)(v)-4 PROD Energy'!J742+'FR-16(7)(v)-8 TRANS Energy'!J742+'FR-16(7)(v)-12 DIST Energy'!J742","v":0},{"$f":"'FR-16(7)(v)-5 PROD Cust'!J742+'FR-16(7)(v)-9 TRANS Cust'!J742+'FR-16(7)(v)-13 DIST Cust'!J742","v":68},{"$f":"SUM(G742:I742)","v":1234},{"$f":"F742-J742","v":0}]
[3,null,{"$f":"'FR-16(7)(v)-1 Functional'!C743","v":"INTERDEPARTMENTAL"},{"$f":"'FR-16(7)(v)-1 Functional'!D743","v":"K902"},null,{"$f":"'FR-16(7)(v)-14 TOTAL CLASS'!J743","v":0},{"$f":"'FR-16(7)(v)-3 PROD Demand'!J743+'FR-16(7)(v)-7 TRANS Demand'!J743+'FR-16(7)(v)-11 DIST Demand'!J743","v":0},{"$f":"'FR-16(7)(v)-4 PROD Energy'!J743+'FR-16(7)(v)-8 TRANS Energy'!J743+'FR-16(7)(v)-12 DIST Energy'!J743","v":0},{"$f":"'FR-16(7)(v)-5 PROD Cust'!J743+'FR-16(7)(v)-9 TRANS Cust'!J743+'FR-16(7)(v)-13 DIST Cust'!J743","v":0},0,{"$f":"F743-J743","v":0}]
[4,null,{"$f":"'FR-16(7)(v)-1 Functional'!C744","v":"POLE & LINE ATTACHMENTS"},{"$f":"'FR-16(7)(v)-1 Functional'!D744","v":"D249"},null,{"$f":"'FR-16(7)(v)-14 TOTAL CLASS'!J744","v":1051},{"$f":"'FR-16(7)(v)-3 PROD Demand'!J744+'FR-16(7)(v)-7 TRANS Demand'!J744+'FR-16(7)(v)-11 DIST Demand'!J744","v":993},{"$f":"'FR-16(7)(v)-4 PROD Energy'!J744+'FR-16(7)(v)-8 TRANS Energy'!J744+'FR-16(7)(v)-12 DIST Energy'!J744","v":0},{"$f":"'FR-16(7)(v)-5 PROD Cust'!J744+'FR-16(7)(v)-9 TRANS Cust'!J744+'FR-16(7)(v)-13 DIST Cust'!J744","v":58},1051,0]
[5,null,{"$f":"'FR-16(7)(v)-1 Functional'!C745","v":"RENTS"},{"$f":"'FR-16(7)(v)-1 Functional'!D745","v":"D249"},null,{"$f":"'FR-16(7)(v)-14 TOTAL CLASS'!J745","v":5168},{"$f":"'FR-16(7)(v)-3 PROD Demand'!J745+'FR-16(7)(v)-7 TRANS Demand'!J745+'FR-16(7)(v)-11 DIST Demand'!J745","v":4883},{"$f":"'FR-16(7)(v)-4 PROD Energy'!J745+'FR-16(7)(v)-8 TRANS Energy'!J745+'FR-16(7)(v)-12 DIST Energy'!J745","v":0},{"$f":"'FR-16(7)(v)-5 PROD Cust'!J745+'FR-16(7)(v)-9 TRANS Cust'!J745+'FR-16(7)(v)-13 DIST Cust'!J745","v":285},5168,0]
[6,null,{"$f":"'FR-16(7)(v)-1 Functional'!C746","v":"TRANSMISSION CHARGE PTP"},{"$f":"'FR-16(7)(v)-1 Functional'!D746","v":"T229"},null,{"$f":"'FR-16(7)(v)-14 TOTAL CLASS'!J746","v":744},{"$f":"'FR-16(7)(v)-3 PROD Demand'!J746+'FR-16(7)(v)-7 TRANS Demand'!J746+'FR-16(7)(v)-11 DIST Demand'!J746","v":744},{"$f":"'FR-16(7)(v)-4 PROD Energy'!J746+'FR-16(7)(v)-8 TRANS Energy'!J746+'FR-16(7)(v)-12 DIST Energy'!J746","v":0},{"$f":"'FR-16(7)(v)-5 PROD Cust'!J746+'FR-16(7)(v)-9 TRANS Cust'!J746+'FR-16(7)(v)-13 DIST Cust'!J746","v":0},744,{"$f":"F746-J746","v":0}]
[7,null,{"$f":"'FR-16(7)(v)-1 Functional'!C747","v":"PJM REACTIVE REVENUE"},{"$f":"'FR-16(7)(v)-1 Functional'!D747","v":"K401"},null,{"$f":"'FR-16(7)(v)-14 TOTAL CLASS'!J747","v":0},{"$f":"'FR-16(7)(v)-3 PROD Demand'!J747+'FR-16(7)(v)-7 TRANS Demand'!J747+'FR-16(7)(v)-11 DIST Demand'!J747","v":0},{"$f":"'FR-16(7)(v)-4 PROD Energy'!J747+'FR-16(7)(v)-8 TRANS Energy'!J747+'FR-16(7)(v)-12 DIST Energy'!J747","v":0},{"$f":"'FR-16(7)(v)-5 PROD Cust'!J747+'FR-16(7)(v)-9 TRANS Cust'!J747+'FR-16(7)(v)-13 DIST Cust'!J747","v":0},0,{"$f":"F747-J747","v":0}]
[8,null,{"$f":"'FR-16(7)(v)-1 Functional'!C748","v":"OTHER TRANSMISSION REVENUES"},{"$f":"'FR-16(7)(v)-1 Functional'!D748","v":"T229"},null,{"$f":"'FR-16(7)(v)-14 TOTAL CLASS'!J748","v":126},{"$f":"'FR-16(7)(v)-3 PROD Demand'!J748+'FR-16(7)(v)-7 TRANS Demand'!J748+'FR-16(7)(v)-11 DIST Demand'!J748","v":126},{"$f":"'FR-16(7)(v)-4 PROD Energy'!J748+'FR-16(7)(v)-8 TRANS Energy'!J748+'FR-16(7)(v)-12 DIST Energy'!J748","v":0},{"$f":"'FR-16(7)(v)-5 PROD Cust'!J748+'FR-16(7)(v)-9 TRANS Cust'!J748+'FR-16(7)(v)-13 DIST Cust'!J748","v":0},126,{"$f":"F748-J748","v":0}]
[9,null,{"$f":"'FR-16(7)(v)-1 Functional'!C749","v":"FIXED BILL PREMIUM"},{"$f":"'FR-16(7)(v)-1 Functional'!D749","v":"K902"},null,{"$f":"'FR-16(7)(v)-14 TOTAL CLASS'!J749","v":0},{"$f":"'FR-16(7)(v)-3 PROD Demand'!J749+'FR-16(7)(v)-7 TRANS Demand'!J749+'FR-16(7)(v)-11 DIST Demand'!J749","v":0},{"$f":"'FR-16(7)(v)-4 PROD Energy'!J749+'FR-16(7)(v)-8 TRANS Energy'!J749+'FR-16(7)(v)-12 DIST Energy'!J749","v":0},{"$f":"'FR-16(7)(v)-5 PROD Cust'!J749+'FR-16(7)(v)-9 TRANS Cust'!J749+'FR-16(7)(v)-13 DIST Cust'!J749","v":0},0,0]
[10,null,{"$f":"'FR-16(7)(v)-1 Functional'!C750","v":"  TOTAL OTHER OPERATING REVS"},null,null,{"$f":"SUM(F742:F749)","v":8323},7912,0,411,8323,0]
[11]
[12,"COST OF SERVICE COMPUTATION"]
[13,null,{"$f":"'FR-16(7)(v)-1 Functional'!C753","v":"TOTAL OP EXP EXC INC & REV TAX"},null,null,{"$f":"F618","v":1252779},{"$f":"G618","v":588533},{"$f":"H618","v":643834},{"$f":"I618","v":20412},{"$f":"J618","v":1252779},{"$f":"F753-J753","v":0}]
[14,null,"RETURN ON RATE BASE",null,null,{"$f":"F433","v":314751},{"$f":"G433","v":298592},{"$f":"H433","v":9110},{"$f":"I433","v":7049},{"$f":"J433","v":314751},{"$f":"F754-J754","v":0}]
[15,null,{"$f":"'FR-16(7)(v)-1 Functional'!C755","v":"NET FED INCOME TAX ALLOWABLE"},null,null,{"$f":"F676","v":29653},{"$f":"G676","v":-17872},{"$f":"H676","v":47270},{"$f":"I676","v":255},{"$f":"J676","v":29653},{"$f":"F755-J755","v":0}]
[16,null,{"$f":"'FR-16(7)(v)-1 Functional'!C756","v":"NET STATE INCOME TAX ALLOWABLE"},null,null,{"$f":"F722","v":3751},{"$f":"G722","v":-4938},{"$f":"H722","v":8002},{"$f":"I722","v":686},{"$f":"J722","v":3750},{"$f":"F756-J756","v":1}]
[17,null,{"$f":"'FR-16(7)(v)-1 Functional'!C757","v":"TOTAL OTHER OPERATING REVENUES"},null,null,{"$f":"-F750","v":-8323},{"$f":"-G750","v":-7912},{"$f":"-H750","v":0},{"$f":"-I750","v":-411},{"$f":"-J750","v":-8323},{"$f":"F757-J757","v":0}]
[18,null,{"$f":"'FR-16(7)(v)-1 Functional'!C758","v":"  SUBTOTAL B"},null,null,{"$f":"SUM(F752:F757)","v":1592611},{"$f":"SUM(G752:G757)","v":856403},{"$f":"SUM(H752:H757)","v":708216},{"$f":"SUM(I752:I757)","v":27991},{"$f":"SUM(J752:J757)","v":1592610},{"$f":"J758-F758","v":-1}]
[19]
[20,null,{"$f":"'FR-16(7)(v)-1 Functional'!C760","v":"TOTAL OTHER OPERATING REVENUES"},null,null,{"$f":"-F757","v":8323},{"$f":"-G757","v":7912},{"$f":"-H757","v":0},{"$f":"-I757","v":411},{"$f":"-J757","v":8323},{"$f":"F760-J760","v":0}]
[21,null,{"$f":"'FR-16(7)(v)-1 Functional'!C761","v":"LESS: REVS EXCL FROM REV TAX CALC"},null,null,{"$f":"'FR-16(7)(v)-14 TOTAL CLASS'!J761","v":0},{"$f":"'FR-16(7)(v)-3 PROD Demand'!J761+'FR-16(7)(v)-7 TRANS Demand'!J761+'FR-16(7)(v)-11 DIST Demand'!J761","v":0},{"$f":"'FR-16(7)(v)-4 PROD Energy'!J761+'FR-16(7)(v)-8 TRANS Energy'!J761+'FR-16(7)(v)-12 DIST Energy'!J761","v":0},{"$f":"'FR-16(7)(v)-5 PROD Cust'!J761+'FR-16(7)(v)-9 TRANS Cust'!J761+'FR-16(7)(v)-13 DIST Cust'!J761","v":0},{"$f":"SUM(G761:I761)","v":0},{"$f":"F761-J761","v":0}]
[22,null,{"$f":"'FR-16(7)(v)-1 Functional'!C762","v":"OTHER OPERATING REVS TO BE TAXED"},null,null,{"$f":"F760-F761","v":8323},7912,0,411,8323,0]
[23]
[24,null,{"$f":"'FR-16(7)(v)-1 Functional'!C764","v":"REVENUE TAX FACTOR"},null,null,{"$f":"ROUND(F817/(1-F817),8)","v":0},0,0,0,0,0]
[25,null,{"$f":"'FR-16(7)(v)-1 Functional'!C765","v":"REVENUE TAX ON OTHER OPER. REVS"},null,null,{"$f":"ROUND(F764*F762,0)","v":0},{"$f":"ROUND(G764*G762,0)","v":0},{"$f":"ROUND(H764*H762,0)","v":0},{"$f":"ROUND(I764*I762,0)","v":0},{"$f":"SUM(G765:I765)","v":0},{"$f":"F765-J765","v":0}]
[26,null,{"$f":"'FR-16(7)(v)-1 Functional'!C766","v":"REVENUE TAX ON COST OF SERVICE"},null,null,{"$f":"ROUND(F764*F758,0)","v":0},{"$f":"ROUND(G764*G758,0)","v":0},{"$f":"ROUND(H764*H758,0)","v":0},{"$f":"ROUND(I764*I758,0)","v":0},{"$f":"SUM(G766:I766)","v":0},{"$f":"F766-J766","v":0}]
[27,null,{"$f":"'FR-16(7)(v)-1 Functional'!C767","v":"TOTAL REVENUE TAX"},null,null,{"$f":"F766+F765","v":0},0,0,0,0,0]
[28]
[29,null,"RESERVED",null,null,{"$f":"F24","v":0},{"$f":"G24","v":0},{"$f":"H24","v":0},{"$f":"I24","v":0},{"$f":"J24","v":0},{"$f":"F769-J769","v":0}]
[30,null,{"$f":"'FR-16(7)(v)-1 Functional'!C770","v":"  TOTAL ELECTRIC COST OF SERVICE"},null,null,{"$f":"F769+F767+F758","v":1592611},856403,708216,27991,1592610,-1]
[31]
[32,"PROPOSED REVENUES ",null,null,null,{"$f":"'FR-16(7)(v)-14 TOTAL CLASS'!J772","v":1026141},{"$f":"'FR-16(7)(v)-3 PROD Demand'!J772+'FR-16(7)(v)-7 TRANS Demand'!J772+'FR-16(7)(v)-11 DIST Demand'!J772","v":432069},{"$f":"'FR-16(7)(v)-4 PROD Energy'!J772+'FR-16(7)(v)-8 TRANS Energy'!J772+'FR-16(7)(v)-12 DIST Energy'!J772","v":524188},{"$f":"'FR-16(7)(v)-5 PROD Cust'!J772+'FR-16(7)(v)-9 TRANS Cust'!J772+'FR-16(7)(v)-13 DIST Cust'!J772","v":69884},{"$f":"SUM(G772:I772)","v":1026141},{"$f":"F772-J772","v":0}]
[33,"TOTAL ELECTRIC COST OF SERVICE",null,null,null,{"$f":"-F770","v":-1592611},{"$f":"-G770","v":-856403},{"$f":"-H770","v":-708216},{"$f":"-I770","v":-27991},{"$f":"SUM(G773:I773)","v":-1592610},{"$f":"F773-J773","v":-1}]
[34,"EXCESS REVENUES",null,null,null,{"$f":"F773+F772","v":-566470},{"$f":"G773+G772","v":-424334},{"$f":"H773+H772","v":-184028},{"$f":"I773+I772","v":41893},{"$f":"SUM(G774:I774)","v":-566469},{"$f":"F774-J774","v":-1}]
[35,"COMPOSITE TAX RATE",null,null,null,{"$f":"F729","v":0.24925115},0.24925115,0.24925115,0.24925115,0.24925115,0.24925115]
[36,"EXCESS TAX",null,null,null,{"$f":"ROUND(F775*F774,0)","v":-141193},{"$f":"'FR-16(7)(v)-3 PROD Demand'!J776+'FR-16(7)(v)-7 TRANS Demand'!J776+'FR-16(7)(v)-11 DIST Demand'!J776","v":-105766},{"$f":"ROUND(H775*H774,0)","v":-45869},{"$f":"ROUND(I775*I774,0)","v":10442},{"$f":"SUM(G776:I776)","v":-141193},{"$f":"F776-J776","v":0}]
[37,"EXCESS RETURN",null,null,null,{"$f":"F774-F776","v":-425277},{"$f":"'FR-16(7)(v)-3 PROD Demand'!J777+'FR-16(7)(v)-7 TRANS Demand'!J777+'FR-16(7)(v)-11 DIST Demand'!J777","v":-318569},{"$f":"H774-H776","v":-138159},{"$f":"I774-I776","v":31451},{"$f":"SUM(G777:I777)","v":-425277},{"$f":"F777-J777","v":0}]
[]
[{"$f":"co_name","v":"DUKE ENERGY KENTUCKY, INC."},null,null,null,null,null,null,null,null,{"$f":"J1","v":"FR-16(7)(v)-18"}]
[{"$f":"$A$2","v":"EH SECONDARY CLASSIFIED - ELECTRIC COST OF SERVICE"},null,null,null,null,null,null,null,null,{"$f":"J2","v":"WITNESS RESPONSIBLE:"}]
[{"$f":"case_name","v":"CASE NO: 2019-00271"},null,null,null,null,null,null,null,null,{"$f":"Witness","v":"JAMES E. ZIOLKOWSKI"}]
[{"$f":"data_filing","v":"DATA: 12 MONTHS ACTUAL  & 0 MONTHS ESTIMATED"},null,null,null,null,null,null,null,null,{"$f":"\"PAGE \"&Pages2&\" OF \"&Pages2","v":"PAGE 15 OF 15"}]
[{"$f":"type","v":"TYPE OF FILING: \"X\" ORIGINAL   UPDATED    REVISED  "}]
[]
[]
["LINE",null,null,null,null,"TOTAL","CLASSIFIED",null,null,"TOTAL","ALL"]
["NO.","ROR, TAX RATES & SPEC FACTORS",null,"ALLO",null,{"$f":"$F$9","v":"EH SECONDARY"},{"$f":"G9","v":"DEMAND"},"ENERGY","CUSTOMER","AT ISSUE","OTHER"]
[null,null,"Schedule 11",null,null,null,3,4,5]
[1,"RATE OF RETURN"]
[2," CAPITALIZATION AMOUNTS",null,null,null,null,"RATIO"]
[3,null,{"$f":"'FR-16(7)(v)-1 Functional'!C791","v":"LONG TERM DEBT"},null,null,{"$f":"'FR-16(7)(v)-1 Functional'!$F$791","v":665948506},{"$f":"IF(TotalCap=0,0,ROUND(F791/TotalCap,4))","v":0.45929999999999999}]
[4,null,{"$f":"'FR-16(7)(v)-1 Functional'!C792","v":"PREFERRED STOCK"},null,null,{"$f":"'FR-16(7)(v)-1 Functional'!$F$792","v":0},{"$f":"IF(TotalCap=0,0,ROUND(F792/TotalCap,4))","v":0}]
[5,null,{"$f":"'FR-16(7)(v)-1 Functional'!C793","v":"COMMON STOCK"},null,null,{"$f":"[0]!Equity","v":699348680},{"$f":"1-G791-G792-G794-G795","v":0.48239999999999994}]
[6,null,{"$f":"'FR-16(7)(v)-1 Functional'!C794","v":"SHORT TERM DEBT"},null,null,{"$f":"'FR-16(7)(v)-1 Functional'!$F$794","v":84600060},{"$f":"IF(TotalCap=0,0,ROUND(F794/TotalCap,4))","v":5.8299999999999998E-2}]
[7,null,{"$f":"'FR-16(7)(v)-1 Functional'!C795","v":"UNAMORTIZED DISCOUNT"},null,null,{"$f":"'FR-16(7)(v)-1 Functional'!$F$795","v":0},{"$f":"IF(TotalCap=0,0,ROUND(F795/TotalCap,4))","v":0}]
[8,null,{"$f":"'FR-16(7)(v)-1 Functional'!C796","v":"  TOTAL"},null,null,{"$f":"SUM(F790:F795)","v":1449897246},{"$f":"SUM(G791:G795)","v":1}]
[9]
[10," COST OF CAPITAL"]
[11,null,{"$f":"'FR-16(7)(v)-1 Functional'!C799","v":"LONG TERM DEBT"},null,null,{"$f":"'FR-16(7)(v)-1 Functional'!$F$799","v":4.0730000000000002E-2}]
[12,null,{"$f":"'FR-16(7)(v)-1 Functional'!C800","v":"PREFERRED STOCK"},null,null,{"$f":"'FR-16(7)(v)-1 Functional'!$F$800","v":0}]
[13,null,{"$f":"'FR-16(7)(v)-1 Functional'!C801","v":"COMMON STOCK"},null,null,{"$f":"'FR-16(7)(v)-1 Functional'!$F$801","v":9.8000000000000004E-2}]
[14,null,{"$f":"'FR-16(7)(v)-1 Functional'!C802","v":"SHORT TERM DEBT"},null,null,{"$f":"'FR-16(7)(v)-1 Functional'!$F$802","v":1.9369999999999998E-2}]
[15,null,{"$f":"'FR-16(7)(v)-1 Functional'!C803","v":"UNAMORTIZED DISCOUNT"},null,null,{"$f":"'FR-16(7)(v)-1 Functional'!$F$803","v":0}]
[16]
[17," WEIGHTED COST OF CAPITAL"]
[18,null,{"$f":"'FR-16(7)(v)-1 Functional'!C806","v":"LONG TERM DEBT"},null,null,{"$f":"ROUND(G791*F799,4)","v":1.8700000000000001E-2}]
[19,null,{"$f":"'FR-16(7)(v)-1 Functional'!C807","v":"PREFERRED STOCK"},null,null,{"$f":"ROUND(G792*F800,4)","v":0}]
[20,null,{"$f":"'FR-16(7)(v)-1 Functional'!C808","v":"COMMON STOCK"},null,null,{"$f":"ROUND(G793*F801,4)","v":4.7300000000000002E-2}]
[21,null,{"$f":"'FR-16(7)(v)-1 Functional'!C809","v":"SHORT TERM DEBT"},null,null,{"$f":"ROUND(G794*F802,4)","v":1.1000000000000001E-3}]
[22,null,{"$f":"'FR-16(7)(v)-1 Functional'!C810","v":"UNAMORTIZED DISCOUNT"},null,null,{"$f":"ROUND(G795*F803,4)","v":0}]
[23,null,{"$f":"'FR-16(7)(v)-1 Functional'!C811","v":"  TOT RATE OF RETURN ALLOWABLE"},null,null,{"$f":"SUM(F806:F810)","v":6.7100000000000007E-2}]
[24]
[25,"TAX RATES AND SPECIAL FACTORS"]
[26,null,{"$f":"'FR-16(7)(v)-1 Functional'!C814","v":"SHORT TERM DEBT COST"},null,null,0,{"$f":"F814","v":0},{"$f":"F814","v":0},{"$f":"F814","v":0},{"$f":"F814","v":0},{"$f":"F814","v":0}]
[27,null,{"$f":"'FR-16(7)(v)-1 Functional'!C815","v":"FEDERAL INCOME TAX RATE"},null,null,0.35,{"$f":"FIT","v":0.21},{"$f":"FIT","v":0.21},{"$f":"FIT","v":0.21},{"$f":"FIT","v":0.21},{"$f":"FIT","v":0.21}]
[28,null,{"$f":"'FR-16(7)(v)-1 Functional'!C816","v":"STATE INCOME TAX RATE"},null,null,{"$f":"SIT","v":4.9685000000000007E-2},4.9685000000000007E-2,4.9685000000000007E-2,4.9685000000000007E-2,4.9685000000000007E-2,4.9685000000000007E-2]
[29,null,{"$f":"'FR-16(7)(v)-1 Functional'!C817","v":"REVENUE TAX RATE"},null,null,0,{"$f":"RevTax","v":0},{"$f":"RevTax","v":0},{"$f":"RevTax","v":0},{"$f":"RevTax","v":0},{"$f":"RevTax","v":0}]
[]
[]
[]
[]
[]
[]
[]
[]
[]
[]
[]
[]
[]
[]
[]
[]
[]
[]
[]
[]
[]
[]
[]
[]
[]
[]
[]
[]
[]
[]
[]
[]
[]
[]
[]
[]
[]
[]
[]
[]
[]
[]
[]
[]
[]
[]
[]
[]
[]
[]
[]
[]
[]
[]
[]
[]
[]
[]
[]
[]
[]
[]
[]
[]
[]
[]
[]
[]
[]
[]
[]
[]
[]
[]
[]
[]
[]
[]
[]
[]
[]
[]
[]
[]
[]
[]
[]
[]
[]
[]
[]
[]
[]
[]
[]
[]
[]
[]
[]
[]
[]
[]
[]
[]
[]
[]
[]
[]
[]
[]
[]
[]
[]
[]
[]
[]
[]
[]
[]
[]
[]
[]
[]
[]
[]
[]
[]
[]
[]
[]
[]
[]
[]
[]
[]
[]
[]
[]
[]
[]
[]
[]
[]
[]
[]
[]
[]
[]
[]
[]
[]
[]
[]
[]
[]
[]
[]
[]
[]
[]
[]
[]
[]
[]
[]
[]
["DO NOT FILE THIS PAGE"]
[]
[{"$f":"co_name","v":"DUKE ENERGY KENTUCKY, INC."},null,null,null,null,null,null,null,null,{"$f":"J1","v":"FR-16(7)(v)-18"}]
[{"$f":"$A$2","v":"EH SECONDARY CLASSIFIED - ELECTRIC COST OF SERVICE"},null,null,null,null,null,null,null,null,{"$f":"J2","v":"WITNESS RESPONSIBLE:"}]
[{"$f":"case_name","v":"CASE NO: 2019-00271"},null,null,null,null,null,null,null,null,{"$f":"Witness","v":"JAMES E. ZIOLKOWSKI"}]
[{"$f":"data_filing","v":"DATA: 12 MONTHS ACTUAL  & 0 MONTHS ESTIMATED"},null,null,null,null,null,null,null,null,{"$f":"\"PAGE \"&Pages2&\" OF \"&Pages2","v":"PAGE 15 OF 15"}]
[{"$f":"type","v":"TYPE OF FILING: \"X\" ORIGINAL   UPDATED    REVISED  "}]
[]
[]
["LINE",null,null,null,null,"TOTAL","CLASSIFIED",null,null,"TOTAL","ALL"]
["NO.","INCOME TAX BASED ON REVENUES",null,"ALLO",null,{"$f":"$F$9","v":"EH SECONDARY"},"DEMAND","COMMODITY","CUSTOMER","AT ISSUE","OTHER"]
[null,null,"Schedule 13",null,null,null,{"$f":"G10","v":3},{"$f":"H10","v":4},{"$f":"I10","v":5}]
[1,"NET INCOME COMPUTATION"]
[2,null,{"$f":"'FR-16(7)(v)-1 Functional'!C1008","v":"TOTAL ELECTRIC COST OF SERVICE"},null,null,{"$f":"F770","v":1592611},856403,708216,27991,1592610,-1]
[3,null,{"$f":"'FR-16(7)(v)-1 Functional'!C1009","v":"TOTAL OTHER OPERATING REVENUES"},null,null,{"$f":"F750","v":8323},7912,0,411,8323,0]
[4,null,{"$f":"'FR-16(7)(v)-1 Functional'!C1010","v":"  TOTAL ELECTRIC REVENUE"},null,null,{"$f":"SUM(F996:F998)","v":1600934},864315,708216,28402,1600933,-1]
[5,null,{"$f":"'FR-16(7)(v)-1 Functional'!C1011","v":"TOTAL OP EXP EX INC & REV TAX"},null,null,{"$f":"-F618","v":-1252779},-588533,-643834,-20412,-1252779,0]
[6,null,{"$f":"'FR-16(7)(v)-1 Functional'!C1012","v":"FIRM SERVICE REVENUE TAX"},null,null,{"$f":"-ROUND(F817*F997,0)","v":0},{"$f":"-ROUND(G817*G997,0)","v":0},{"$f":"-ROUND(H817*H997,0)","v":0},{"$f":"-ROUND(I817*I997,0)","v":0},{"$f":"SUM(G1001:I1001)","v":0},{"$f":"-ROUND('FR-16(7)(v)-1 Functional'!K817*K997,0)","v":0}]
[7,null,{"$f":"'FR-16(7)(v)-1 Functional'!C1013","v":"  NET INCOME"},null,null,{"$f":"SUM(F999:F1001)","v":348155},{"$f":"SUM(G999:G1001)","v":275782},{"$f":"SUM(H999:H1001)","v":64382},{"$f":"SUM(I999:I1001)","v":7990},{"$f":"SUM(G1002:I1002)","v":348154},{"$f":"SUM(K999:K1001)","v":-1}]
[8]
[9,"ADJUSTMENTS TO NET INCOME"]
[10,null,{"$f":"'FR-16(7)(v)-1 Functional'!C1016","v":"TOTAL INTEREST EXPENSE"},null,null,{"$f":"-F633","v":-93041},-88265,-2693,-2083,-93041,0]
[11,null,{"$f":"'FR-16(7)(v)-1 Functional'!C1017","v":"TOTAL OTHER DEDUCTIONS"},null,null,{"$f":"-F639","v":-349964},-335238,-9046,-5680,-349964,0]
[12,null,{"$f":"'FR-16(7)(v)-1 Functional'!C1018","v":"  PRELIMINARY TAXABLE INCOME"},null,null,{"$f":"SUM(F1004:F1006)+F1002","v":-94850},{"$f":"SUM(G1004:G1006)+G1002","v":-147721},{"$f":"SUM(H1004:H1006)+H1002","v":52643},{"$f":"SUM(I1004:I1006)+I1002","v":227},{"$f":"SUM(G1007:I1007)","v":-94851},{"$f":"SUM(K1004:K1006)+K1002","v":-1}]
[13]
[14,"INCOME TAX BASED ON REVENUES"]
[15,"FEDERAL INCOME TAX COMPUTATION"]
[16,null,{"$f":"'FR-16(7)(v)-1 Functional'!C1022","v":"PRELIMINARY TAXABLE INCOME"},null,null,{"$f":"F1007","v":-94850},-147721,52643,227,-94851,-1]
[17,null,{"$f":"'FR-16(7)(v)-1 Functional'!C1023","v":"  NET FEDERAL TAXABLE INCOME"},null,null,{"$f":"SUM(F1011:F1011)","v":-94850},-147721,52643,227,-94851,-1]
[18,null,{"$f":"'FR-16(7)(v)-1 Functional'!C1024","v":"  FEDERAL INCOME TAX RATE"},null,null,{"$f":"F815","v":0.35},{"$f":"G815","v":0.21},{"$f":"H815","v":0.21},{"$f":"I815","v":0.21},null,{"$f":"'FR-16(7)(v)-1 Functional'!K815","v":0.21}]
[19,null,{"$f":"'FR-16(7)(v)-1 Functional'!C1025","v":"PRELIMINARY FIT = FI01 * K190"},null,null,{"$f":"ROUND(F1013*F1012,0)","v":-33198},{"$f":"ROUND(G1013*G1012,0)","v":-31021},{"$f":"ROUND(H1013*H1012,0)","v":11055},{"$f":"ROUND(I1013*I1012,0)","v":48},{"$f":"SUM(G1014:I1014)","v":-19918},{"$f":"ROUND(K1013*K1012,0)","v":0}]
[20,null,{"$f":"'FR-16(7)(v)-1 Functional'!C1026","v":"TOTAL FED DEF IT (410 & 411)"},null,null,{"$f":"F649","v":48137},11178,36759,200,48137,0]
[21,null,{"$f":"'FR-16(7)(v)-1 Functional'!C1027","v":"TOTAL AMORTIZED ITC"},null,null,{"$f":"-F653","v":-2},-2,0,0,-2,0]
[22,null,{"$f":"'FR-16(7)(v)-1 Functional'!C1028","v":"  NET FED INC TAX ALLOWABLE"},null,null,{"$f":"SUM(F1014:F1016)","v":14937},-19845,47814,248,28217,0]
[23]
[24,"FEDERAL INCOME TAX PAYABLE"]
[25,null,{"$f":"'FR-16(7)(v)-1 Functional'!C1031","v":"PRELIM FIT"},null,null,{"$f":"F1014","v":-33198},-31021,11055,48,-19918,0]
[26,null,{"$f":"'FR-16(7)(v)-1 Functional'!C1032","v":"TEST YEAR INV TAX CREDIT"},null,null,{"$f":"-F658","v":0},0,0,0,0,0]
[27,null,{"$f":"'FR-16(7)(v)-1 Functional'!C1033","v":"  FED INC TAX PAYABLE"},null,null,{"$f":"SUM(F1019:F1021)","v":-33198},-31021,11055,48,-19918,0]
[28]
[29,"PRELIMINARY SUMMARY"]
[30,null,{"$f":"'FR-16(7)(v)-1 Functional'!C1036","v":"NET INCOME"},null,null,{"$f":"F1002","v":348155},275782,64382,7990,348154,-1]
[31,null,{"$f":"'FR-16(7)(v)-1 Functional'!C1037","v":"NET FED INC TAX ALLOWABLE"},null,null,{"$f":"-F1017","v":-14937},19845,-47814,-248,-28217,0]
[32,null,{"$f":"'FR-16(7)(v)-1 Functional'!C1038","v":"  OVERALL RETURN EARNED"},null,null,{"$f":"SUM(F1024:F1026)","v":333218},295627,16568,7742,319937,-1]
[33]
[34,null,{"$f":"'FR-16(7)(v)-1 Functional'!C1040","v":"  RATE OF RETURN EARNED"},null,null,{"$f":"IF(F426=0,0,ROUND(F1027/F426,5))","v":7.1179999999999993E-2},6.658E-2,0.1221,7.3459999999999998E-2,6.8339999999999998E-2,0]

{"sheet":"FR-16(7)(v)-19 SP Classified","index":23,"n_rows":1029,"n_cols":14,"rows_kept":1029,"cut":false,"hidden":false,"merged":[]}
[{"$f":"co_name","v":"DUKE ENERGY KENTUCKY, INC."},null,null,null,null,null,null,null,null,"FR-16(7)(v)-19"]
[{"$f":"F9&\" \"&\"CLASSIFIED - ELECTRIC COST OF SERVICE\"","v":"SP SECONDARY CLASSIFIED - ELECTRIC COST OF SERVICE"},null,null,null,null,null,null,null,null,"WITNESS RESPONSIBLE:"]
[{"$f":"case_name","v":"CASE NO: 2019-00271"},null,null,null,null,null,null,null,null,{"$f":"Witness","v":"JAMES E. ZIOLKOWSKI"}]
[{"$f":"data_filing","v":"DATA: 12 MONTHS ACTUAL  & 0 MONTHS ESTIMATED"},null,null,null,null,null,null,null,null,{"$f":"\"PAGE \"&Pages2-14&\" OF \"&Pages2","v":"PAGE 1 OF 15"}]
[{"$f":"type","v":"TYPE OF FILING: \"X\" ORIGINAL   UPDATED    REVISED  "}]
[]
[]
["LINE",null,null,null,null,"TOTAL","CLASSIFIED",null,null,"TOTAL","ALL"]
["NO.","SUMMARY OF RESULTS",null,"ALLO",null,"SP SECONDARY","DEMAND","ENERGY","CUSTOMER","AT ISSUE","OTHER"]
[null,null,"Schedule 1",null,null,null,3,4,5]
[1,"NET INCOME COMPUTATION"]
[2,null,{"$f":"'FR-16(7)(v)-1 Functional'!C12","v":"GROSS ELECTRIC PLANT IN SERVICE"},null,null,{"$f":"F123","v":145103},{"$f":"G123","v":122508},{"$f":"H123","v":2139},{"$f":"I123","v":20456},{"$f":"SUM(G12:I12)","v":145103},{"$f":"F12-J12","v":0}]
[3,null,{"$f":"'FR-16(7)(v)-1 Functional'!C13","v":"TOTAL DEPRECIATION RESERVE"},null,null,{"$f":"-F200","v":-58030},{"$f":"-G200","v":-50639},{"$f":"-H200","v":-1043},{"$f":"-I200","v":-6348},{"$f":"SUM(G13:I13)","v":-58030},{"$f":"F13-J13","v":0}]
[4,null,{"$f":"'FR-16(7)(v)-1 Functional'!C14","v":"TOTAL RATE BASE ADJUSTMENTS"},null,null,{"$f":"F421","v":-15539},{"$f":"G421","v":-14595},{"$f":"H421","v":1123},{"$f":"I421","v":-2067},{"$f":"SUM(G14:I14)","v":-15539},{"$f":"F14-J14","v":0}]
[5,null,{"$f":"'FR-16(7)(v)-1 Functional'!C15","v":"  TOTAL RATE BASE"},null,null,{"$f":"SUM(F12:F14)","v":71534},57274,2219,12041,71534,0]
[6]
[7,"OPERATING EXPENSES"]
[8,null,{"$f":"'FR-16(7)(v)-1 Functional'!C18","v":"TOTAL O&M EXPENSE"},null,null,{"$f":"F549","v":15359},{"$f":"G549","v":3036},{"$f":"H549","v":10348},{"$f":"I549","v":1975},{"$f":"SUM(G18:I18)","v":15359},{"$f":"F18-J18","v":0}]
[9,null,{"$f":"'FR-16(7)(v)-1 Functional'!C19","v":"TOTAL DEPRECIATION EXPENSE"},null,null,{"$f":"F582","v":4328},{"$f":"G582","v":3652},{"$f":"H582","v":131},{"$f":"I582","v":545},{"$f":"SUM(G19:I19)","v":4328},{"$f":"F19-J19","v":0}]
[10,null,{"$f":"'FR-16(7)(v)-1 Functional'!C20","v":"TOTAL OTHER TAX & MISC EXPENSE"},null,null,{"$f":"F612","v":1098},{"$f":"G612","v":867},{"$f":"H612","v":36},{"$f":"I612","v":195},{"$f":"SUM(G20:I20)","v":1098},{"$f":"F20-J20","v":0}]
[11,null,{"$f":"'FR-16(7)(v)-1 Functional'!C21","v":"  TOTAL OP EXP EXCLUDING INC & REV TAX"},null,null,{"$f":"SUM(F17:F20)","v":20785},7555,10515,2715,20785,0]
[12,null,{"$f":"'FR-16(7)(v)-1 Functional'!C22","v":"NET FED INCOME TAX EXP ALLOWABLE"},null,null,{"$f":"F676","v":560},{"$f":"G676","v":-254},{"$f":"H676","v":771},{"$f":"I676","v":43},{"$f":"SUM(G22:I22)","v":560},{"$f":"F22-J22","v":0}]
[13,null,"NET STATE INCOME TAX EXP ALLOWABLE",null,null,{"$f":"F722","v":152},{"$f":"G722","v":-77},{"$f":"H722","v":130},{"$f":"I722","v":99},{"$f":"SUM(G23:I23)","v":152},{"$f":"F23-J23","v":0}]
[14,null,"RESERVED",{"$f":"'FR-16(7)(v)-1 Functional'!D24","v":"CW29"},null,{"$f":"'FR-16(7)(v)-14 TOTAL CLASS'!K24","v":0},{"$f":"'FR-16(7)(v)-3 PROD Demand'!K24+'FR-16(7)(v)-7 TRANS Demand'!K24+'FR-16(7)(v)-11 DIST Demand'!K24","v":0},{"$f":"'FR-16(7)(v)-4 PROD Energy'!K24+'FR-16(7)(v)-8 TRANS Energy'!K24+'FR-16(7)(v)-12 DIST Energy'!K24","v":0},{"$f":"'FR-16(7)(v)-5 PROD Cust'!K24+'FR-16(7)(v)-9 TRANS Cust'!K24+'FR-16(7)(v)-13 DIST Cust'!K24","v":0},{"$f":"SUM(G24:I24)","v":0},{"$f":"F24-J24","v":0}]
[15,null,{"$f":"'FR-16(7)(v)-1 Functional'!C25","v":"REVENUE TAX"},null,null,{"$f":"F767","v":0},{"$f":"G767","v":0},{"$f":"H767","v":0},{"$f":"I767","v":0},{"$f":"SUM(G25:I25)","v":0},{"$f":"F25-J25","v":0}]
[16,null,{"$f":"'FR-16(7)(v)-1 Functional'!C26","v":"  TOTAL OPERATING EXPENSE"},null,null,{"$f":"SUM(F21:F25)","v":21497},7224,11416,2857,21497,0]
[17]
[18,"RETURN ON RATE BASE",null,null,null,{"$f":"F433","v":4820},{"$f":"G433","v":3860},{"$f":"H433","v":149},{"$f":"I433","v":811},{"$f":"SUM(G28:I28)","v":4820},{"$f":"F28-J28","v":0}]
[19,"TOTAL OTHER OPERATING REVENUES",null,null,null,{"$f":"-F750","v":-136},{"$f":"-G750","v":-92},{"$f":"-H750","v":0},{"$f":"-I750","v":-44},{"$f":"SUM(G29:I29)","v":-136},{"$f":"F29-J29","v":0}]
[20,null,{"$f":"'FR-16(7)(v)-1 Functional'!C30","v":"TOTAL ELECTRIC COST OF SERVICE"},null,null,{"$f":"SUM(F26:F29)","v":26181},{"$f":"SUM(G26:G29)","v":10992},{"$f":"SUM(H26:H29)","v":11565},{"$f":"SUM(I26:I29)","v":3624},{"$f":"SUM(J26:J29)","v":26181},{"$f":"F30-J30","v":0}]
[21,"ADJUSTMENT FOR INTERCLASS SUBSIDIZATION",null,{"$f":"1-'WP FR-16(7)(v) Rate Incr'!I11","v":0.95},null,{"$f":"SUM(G31:I31)","v":6791},{"$f":"'WP FR-16(7)(v) Rate Incr'!T19","v":4987},{"$f":"'WP FR-16(7)(v) Rate Incr'!U15","v":0},{"$f":"'WP FR-16(7)(v) Rate Incr'!V19","v":1804},null,{"$f":"F31-J31","v":6791}]
[22,{"$f":"'FR-16(7)(v)-1 Functional'!$B$32","v":"REQUESTED REVENUES (COST OF SERVICE ADJUSTED FOR SUBSIDIES)"},null,null,null,{"$f":"F30+F31","v":32972},15979,11565,5428,26181,6791]
[23,"PROPOSED REVENUES",null,null,null,{"$f":"'FR-16(7)(v)-14 TOTAL CLASS'!K33","v":33717},{"$f":"'FR-16(7)(v)-3 PROD Demand'!K33+'FR-16(7)(v)-7 TRANS Demand'!K33+'FR-16(7)(v)-11 DIST Demand'!K33","v":4810},{"$f":"'FR-16(7)(v)-4 PROD Energy'!K33+'FR-16(7)(v)-8 TRANS Energy'!K33+'FR-16(7)(v)-12 DIST Energy'!K33","v":8553},{"$f":"'FR-16(7)(v)-5 PROD Cust'!K33+'FR-16(7)(v)-9 TRANS Cust'!K33+'FR-16(7)(v)-13 DIST Cust'!K33","v":9738},{"$f":"SUM(G33:I33)","v":23101},{"$f":"F33-J33","v":10616}]
[24,"DIFFERENCE (REQUESTED LESS PROPOSED)",null,null,null,{"$f":"F32-F33","v":-745},11169,3012,-4310,3080,-3825]
[25]
[26,"TOTAL RETURN EARNED",null,null,null,{"$f":"F777+F28","v":2508},{"$f":"G777+G28","v":-781},{"$f":"H777+H28","v":-2112},{"$f":"I777+I28","v":5401},{"$f":"J777+J28","v":2508},{"$f":"F36-J36","v":0}]
[27,"RATE OF RETURN EARNED",null,null,null,{"$f":"IF(F431=0,0,ROUND(F36/F431,5))","v":3.492E-2},-1.358E-2,-0.95135000000000003,0.44699,3.492E-2,0]
[28,"TOTAL RATE OF RETURN ALLOWABLE",null,null,null,{"$f":"$F$811","v":6.7100000000000007E-2},{"$f":"F811","v":6.7100000000000007E-2},{"$f":"F811","v":6.7100000000000007E-2},{"$f":"F811","v":6.7100000000000007E-2},{"$f":"F811","v":6.7100000000000007E-2},{"$f":"IF(K37=0,0,F811)","v":0},null,null,"Not Part of print range"]
[29,"RETURN EARNED ON COMMON EQUITY",null,null,null,{"$f":"IF(Equity=0,0,(F37-$F$806-$F$807-$F$809)*TotalCap/Equity)","v":3.1346947504812615E-2},{"$f":"IF(Equity=0,0,(G37-$F$806-$F$807-$F$809)*TotalCap/Equity)","v":-6.9203776964989763E-2},{"$f":"IF(Equity=0,0,(H37-F806-F807-F809)*TotalCap/Equity)","v":-2.01339868183193},{"$f":"IF(Equity=0,0,(I37-F806-F807-F809)*TotalCap/Equity)","v":0.8856549275516471},{"$f":"IF(Equity=0,0,(J37-F806-F807-F809)*TotalCap/Equity)","v":3.1346947504812615E-2},{"$f":"IF(OR(E793=0,K37=0)=TRUE,0,(K37-E806-E807-E809)*E796/E793)","v":0},null,null,"Not Filed"]
[30,"ALLOWED RETURN ON COMMON EQUITY",null,null,null,{"$f":"IF(Equity=0,0,(F38-$F$806-$F$807-$F$809)*TotalCap/Equity)","v":9.8062871493229981E-2},{"$f":"IF(Equity=0,0,(G38-F806-F807-F809)*TotalCap/Equity)","v":9.8062871493229981E-2},{"$f":"IF(Equity=0,0,(H38-F806-F807-F809)*TotalCap/Equity)","v":9.8062871493229981E-2},{"$f":"IF(Equity=0,0,(I38-F806-F807-F809)*TotalCap/Equity)","v":9.8062871493229981E-2},{"$f":"IF(Equity=0,0,(J38-F806-F807-F809)*TotalCap/Equity)","v":9.8062871493229981E-2},{"$f":"IF(OR(Equity=0,K38=0)=TRUE,0,(K38-F806-F807-F809)*TotalCap/Equity)","v":0}]
[31,null,null,null,null," "]
[32,"PRESENT REVENUES",null,null,null,{"$f":"'FR-16(7)(v)-14 TOTAL CLASS'!K42","v":29960},{"$f":"F42-SUM(H42:I42)","v":16675},{"$f":"'FR-16(7)(v)-4 PROD Energy'!K42","v":10115},{"$f":"'FR-16(7)(v)-13 DIST Cust'!K42","v":3170},{"$f":"SUM(G42:I42)","v":29960},{"$f":"F42-J42","v":0}]
[33,"REVENUE INCREASE JUSTIFIED",null,null,null,{"$f":"F30-F42","v":-3779},-5683,1450,454,-3779,0]
[34,null,"PER UNIT PRES REV",null,null,{"$f":"IF(F42=0,0,ROUND(F43/F42,5))","v":-0.12612999999999999},-0.34081,0.14335000000000001,0.14321999999999999,-0.12612999999999999,0]
[35,"REVENUE INCREASE REQUESTED",null,null,null,{"$f":"F33-F42","v":3757},-11865,-1562,6568,-6859,10616]
[36,null,"PER UNIT PRES REV",null,null,{"$f":"IF(F42=0,0,ROUND(F45/F42,5))","v":0.12540000000000001},-0.71153999999999995,-0.15442,2.07192,-0.22894,0]
[]
[{"$f":"co_name","v":"DUKE ENERGY KENTUCKY, INC."},null,null,null,null,null,null,null,null,{"$f":"J1","v":"FR-16(7)(v)-19"}]
[{"$f":"$A$2","v":"SP SECONDARY CLASSIFIED - ELECTRIC COST OF SERVICE"},null,null,null,null,null,null,null,null,{"$f":"J2","v":"WITNESS RESPONSIBLE:"}]
[{"$f":"case_name","v":"CASE NO: 2019-00271"},null,null,null,null,null,null,null,null,{"$f":"Witness","v":"JAMES E. ZIOLKOWSKI"}]
[{"$f":"data_filing","v":"DATA: 12 MONTHS ACTUAL  & 0 MONTHS ESTIMATED"},null,null,null,null,null,null,null,null,{"$f":"\"PAGE \"&Pages2-13&\" OF \"&Pages2","v":"PAGE 2 OF 15"}]
[{"$f":"type","v":"TYPE OF FILING: \"X\" ORIGINAL   UPDATED    REVISED  "}]
[]
[]
["LINE",null,null,null,null,"TOTAL","CLASSIFIED",null,null,"TOTAL","ALL"]
["NO.","GROSS ELECTRIC PLANT IN SERVICE",null,"ALLO",null,{"$f":"$F$9","v":"SP SECONDARY"},{"$f":"G9","v":"DEMAND"},"ENERGY","CUSTOMER","AT ISSUE","OTHER"]
[null,null,"Schedule 2",null,null,null,3,4,5,null," "]
[1,"PRODUCTION PLANT"]
[2,null,"PRODUCTION STEAM",{"$f":"'FR-16(7)(v)-1 Functional'!D59","v":"K201"},null,{"$f":"'FR-16(7)(v)-14 TOTAL CLASS'!K59","v":58474},{"$f":"'FR-16(7)(v)-3 PROD Demand'!K59+'FR-16(7)(v)-7 TRANS Demand'!K59+'FR-16(7)(v)-11 DIST Demand'!K59","v":58474},{"$f":"'FR-16(7)(v)-4 PROD Energy'!K59+'FR-16(7)(v)-8 TRANS Energy'!K59+'FR-16(7)(v)-12 DIST Energy'!K59","v":0},{"$f":"'FR-16(7)(v)-5 PROD Cust'!K59+'FR-16(7)(v)-9 TRANS Cust'!K59+'FR-16(7)(v)-13 DIST Cust'!K59","v":0},{"$f":"SUM(G59:I59)","v":58474},{"$f":"F59-J59","v":0}]
[3,null,"PRODUCTION OTHER",{"$f":"'FR-16(7)(v)-1 Functional'!D60","v":"K201"},null,{"$f":"'FR-16(7)(v)-14 TOTAL CLASS'!K60","v":26142},{"$f":"'FR-16(7)(v)-3 PROD Demand'!K60+'FR-16(7)(v)-7 TRANS Demand'!K60+'FR-16(7)(v)-11 DIST Demand'!K60","v":26142},{"$f":"'FR-16(7)(v)-4 PROD Energy'!K60+'FR-16(7)(v)-8 TRANS Energy'!K60+'FR-16(7)(v)-12 DIST Energy'!K60","v":0},{"$f":"'FR-16(7)(v)-5 PROD Cust'!K60+'FR-16(7)(v)-9 TRANS Cust'!K60+'FR-16(7)(v)-13 DIST Cust'!K60","v":0},{"$f":"SUM(G60:I60)","v":26142},{"$f":"F60-J60","v":0}]
[4,null,{"$f":"'FR-16(7)(v)-1 Functional'!C61","v":"ADJUSTMENT"},{"$f":"'FR-16(7)(v)-1 Functional'!D61","v":"K201"},null,{"$f":"'FR-16(7)(v)-14 TOTAL CLASS'!K61","v":0},{"$f":"'FR-16(7)(v)-3 PROD Demand'!K61+'FR-16(7)(v)-7 TRANS Demand'!K61+'FR-16(7)(v)-11 DIST Demand'!K61","v":0},{"$f":"'FR-16(7)(v)-4 PROD Energy'!K61+'FR-16(7)(v)-8 TRANS Energy'!K61+'FR-16(7)(v)-12 DIST Energy'!K61","v":0},{"$f":"'FR-16(7)(v)-5 PROD Cust'!K61+'FR-16(7)(v)-9 TRANS Cust'!K61+'FR-16(7)(v)-13 DIST Cust'!K61","v":0},{"$f":"SUM(G61:I61)","v":0},{"$f":"F61-J61","v":0}]
[5,null,{"$f":"'FR-16(7)(v)-1 Functional'!C62","v":"  PRODUCTION PLANT IN SERVICE"},null,null,{"$f":"SUM(F59:F61)","v":84616},84616,0,0,84616,0]
[6]
[7,"TRANSMISSION PLANT"]
[8,null,"MAIN STEP-UP TRANSFORMERS",{"$f":"'FR-16(7)(v)-1 Functional'!D65","v":"K202"},null,{"$f":"'FR-16(7)(v)-14 TOTAL CLASS'!K65","v":0},{"$f":"'FR-16(7)(v)-3 PROD Demand'!K65+'FR-16(7)(v)-7 TRANS Demand'!K65+'FR-16(7)(v)-11 DIST Demand'!K65","v":0},{"$f":"'FR-16(7)(v)-4 PROD Energy'!K65+'FR-16(7)(v)-8 TRANS Energy'!K65+'FR-16(7)(v)-12 DIST Energy'!K65","v":0},{"$f":"'FR-16(7)(v)-5 PROD Cust'!K65+'FR-16(7)(v)-9 TRANS Cust'!K65+'FR-16(7)(v)-13 DIST Cust'!K65","v":0},{"$f":"SUM(G65:I65)","v":0},{"$f":"F65-J65","v":0}]
[9,null,"OTHER TRANSMISSION",{"$f":"'FR-16(7)(v)-1 Functional'!D66","v":"K202"},null,{"$f":"'FR-16(7)(v)-14 TOTAL CLASS'!K66","v":5066},{"$f":"'FR-16(7)(v)-3 PROD Demand'!K66+'FR-16(7)(v)-7 TRANS Demand'!K66+'FR-16(7)(v)-11 DIST Demand'!K66","v":5066},{"$f":"'FR-16(7)(v)-4 PROD Energy'!K66+'FR-16(7)(v)-8 TRANS Energy'!K66+'FR-16(7)(v)-12 DIST Energy'!K66","v":0},{"$f":"'FR-16(7)(v)-5 PROD Cust'!K66+'FR-16(7)(v)-9 TRANS Cust'!K66+'FR-16(7)(v)-13 DIST Cust'!K66","v":0},{"$f":"SUM(G66:I66)","v":5066},{"$f":"F66-J66","v":0}]
[10,null,"ADJUSTMENT",{"$f":"'FR-16(7)(v)-1 Functional'!D67","v":"K202"},null,{"$f":"'FR-16(7)(v)-14 TOTAL CLASS'!K67","v":0},{"$f":"'FR-16(7)(v)-3 PROD Demand'!K67+'FR-16(7)(v)-7 TRANS Demand'!K67+'FR-16(7)(v)-11 DIST Demand'!K67","v":0},{"$f":"'FR-16(7)(v)-4 PROD Energy'!K67+'FR-16(7)(v)-8 TRANS Energy'!K67+'FR-16(7)(v)-12 DIST Energy'!K67","v":0},{"$f":"'FR-16(7)(v)-5 PROD Cust'!K67+'FR-16(7)(v)-9 TRANS Cust'!K67+'FR-16(7)(v)-13 DIST Cust'!K67","v":0},{"$f":"SUM(G67:I67)","v":0},{"$f":"F67-J67","v":0}]
[11,null,{"$f":"'FR-16(7)(v)-1 Functional'!C68","v":"  TRANSMISSION PLANT IN SERVICE"},null,null,{"$f":"SUM(F65:F67)","v":5066},5066,0,0,5066,0]
[12]
[13,"TOTAL PROD & TRANS PLANT",null,null,null,{"$f":"F68+F62","v":89682},89682,0,0,89682,0]
[14]
[15,"DISTRIBUTION PLANT"]
[16,null,{"$f":"'FR-16(7)(v)-1 Functional'!C73","v":"SUBSTATIONS"},{"$f":"'FR-16(7)(v)-1 Functional'!D73","v":"K215"},null,{"$f":"'FR-16(7)(v)-14 TOTAL CLASS'!K73","v":6368},{"$f":"'FR-16(7)(v)-3 PROD Demand'!K73+'FR-16(7)(v)-7 TRANS Demand'!K73+'FR-16(7)(v)-11 DIST Demand'!K73","v":6368},{"$f":"'FR-16(7)(v)-4 PROD Energy'!K73+'FR-16(7)(v)-8 TRANS Energy'!K73+'FR-16(7)(v)-12 DIST Energy'!K73","v":0},{"$f":"'FR-16(7)(v)-5 PROD Cust'!K73+'FR-16(7)(v)-9 TRANS Cust'!K73+'FR-16(7)(v)-13 DIST Cust'!K73","v":0},{"$f":"SUM(G73:I73)","v":6368},{"$f":"F73-J73","v":0}]
[17,null,{"$f":"'FR-16(7)(v)-1 Functional'!C74","v":"POLES, TOWERS  & FIXTURES - PRIMARY - DEMAND"},{"$f":"'FR-16(7)(v)-1 Functional'!D74","v":"K205"},null,{"$f":"'FR-16(7)(v)-14 TOTAL CLASS'!K74","v":2311},{"$f":"'FR-16(7)(v)-3 PROD Demand'!K74+'FR-16(7)(v)-7 TRANS Demand'!K74+'FR-16(7)(v)-11 DIST Demand'!K74","v":2311},{"$f":"'FR-16(7)(v)-4 PROD Energy'!K74+'FR-16(7)(v)-8 TRANS Energy'!K74+'FR-16(7)(v)-12 DIST Energy'!K74","v":0},{"$f":"'FR-16(7)(v)-5 PROD Cust'!K74+'FR-16(7)(v)-9 TRANS Cust'!K74+'FR-16(7)(v)-13 DIST Cust'!K74","v":0},{"$f":"SUM(G74:I74)","v":2311},{"$f":"F74-J74","v":0}]
[18,null,{"$f":"'FR-16(7)(v)-1 Functional'!C75","v":"POLES, TOWERS  & FIXTURES - PRIMARY - CUSTOMER"},{"$f":"'FR-16(7)(v)-1 Functional'!D75","v":"K405"},null,{"$f":"'FR-16(7)(v)-14 TOTAL CLASS'!K75","v":1511},{"$f":"'FR-16(7)(v)-3 PROD Demand'!K75+'FR-16(7)(v)-7 TRANS Demand'!K75+'FR-16(7)(v)-11 DIST Demand'!K75","v":0},{"$f":"'FR-16(7)(v)-4 PROD Energy'!K75+'FR-16(7)(v)-8 TRANS Energy'!K75+'FR-16(7)(v)-12 DIST Energy'!K75","v":0},{"$f":"'FR-16(7)(v)-5 PROD Cust'!K75+'FR-16(7)(v)-9 TRANS Cust'!K75+'FR-16(7)(v)-13 DIST Cust'!K75","v":1511},{"$f":"SUM(G75:I75)","v":1511},{"$f":"F75-J75","v":0}]
[19,null,{"$f":"'FR-16(7)(v)-1 Functional'!C76","v":"POLES, TOWERS  & FIXTURES - SECONDARY - DEMAND"},{"$f":"'FR-16(7)(v)-1 Functional'!D76","v":"K206"},null,{"$f":"'FR-16(7)(v)-14 TOTAL CLASS'!K76","v":884},{"$f":"'FR-16(7)(v)-3 PROD Demand'!K76+'FR-16(7)(v)-7 TRANS Demand'!K76+'FR-16(7)(v)-11 DIST Demand'!K76","v":884},{"$f":"'FR-16(7)(v)-4 PROD Energy'!K76+'FR-16(7)(v)-8 TRANS Energy'!K76+'FR-16(7)(v)-12 DIST Energy'!K76","v":0},{"$f":"'FR-16(7)(v)-5 PROD Cust'!K76+'FR-16(7)(v)-9 TRANS Cust'!K76+'FR-16(7)(v)-13 DIST Cust'!K76","v":0},884,0]
[20,null,{"$f":"'FR-16(7)(v)-1 Functional'!C77","v":"POLES, TOWERS  & FIXTURES - SECONDARY - CUSTOMER"},{"$f":"'FR-16(7)(v)-1 Functional'!D77","v":"K405"},null,{"$f":"'FR-16(7)(v)-14 TOTAL CLASS'!K77","v":341},{"$f":"'FR-16(7)(v)-3 PROD Demand'!K77+'FR-16(7)(v)-7 TRANS Demand'!K77+'FR-16(7)(v)-11 DIST Demand'!K77","v":0},{"$f":"'FR-16(7)(v)-4 PROD Energy'!K77+'FR-16(7)(v)-8 TRANS Energy'!K77+'FR-16(7)(v)-12 DIST Energy'!K77","v":0},{"$f":"'FR-16(7)(v)-5 PROD Cust'!K77+'FR-16(7)(v)-9 TRANS Cust'!K77+'FR-16(7)(v)-13 DIST Cust'!K77","v":341},341,0]
[21,null,{"$f":"'FR-16(7)(v)-1 Functional'!C78","v":"CONDUCTORS - OVERHEAD / PRIMARY - DEMAND"},{"$f":"'FR-16(7)(v)-1 Functional'!D78","v":"K205"},null,{"$f":"'FR-16(7)(v)-14 TOTAL CLASS'!K78","v":5266},{"$f":"'FR-16(7)(v)-3 PROD Demand'!K78+'FR-16(7)(v)-7 TRANS Demand'!K78+'FR-16(7)(v)-11 DIST Demand'!K78","v":5266},{"$f":"'FR-16(7)(v)-4 PROD Energy'!K78+'FR-16(7)(v)-8 TRANS Energy'!K78+'FR-16(7)(v)-12 DIST Energy'!K78","v":0},{"$f":"'FR-16(7)(v)-5 PROD Cust'!K78+'FR-16(7)(v)-9 TRANS Cust'!K78+'FR-16(7)(v)-13 DIST Cust'!K78","v":0},5266,0]
[22,null,{"$f":"'FR-16(7)(v)-1 Functional'!C79","v":"CONDUCTORS - OVERHEAD / PRIMARY - CUSTOMER"},{"$f":"'FR-16(7)(v)-1 Functional'!D79","v":"K405"},null,{"$f":"'FR-16(7)(v)-14 TOTAL CLASS'!K79","v":1643},{"$f":"'FR-16(7)(v)-3 PROD Demand'!K79+'FR-16(7)(v)-7 TRANS Demand'!K79+'FR-16(7)(v)-11 DIST Demand'!K79","v":0},{"$f":"'FR-16(7)(v)-4 PROD Energy'!K79+'FR-16(7)(v)-8 TRANS Energy'!K79+'FR-16(7)(v)-12 DIST Energy'!K79","v":0},{"$f":"'FR-16(7)(v)-5 PROD Cust'!K79+'FR-16(7)(v)-9 TRANS Cust'!K79+'FR-16(7)(v)-13 DIST Cust'!K79","v":1643},1643,0]
[23,null,{"$f":"'FR-16(7)(v)-1 Functional'!C80","v":"CONDUCTORS - OVERHEAD / SECONDARY - DEMAND"},{"$f":"'FR-16(7)(v)-1 Functional'!D80","v":"K206"},null,{"$f":"'FR-16(7)(v)-14 TOTAL CLASS'!K80","v":2144},{"$f":"'FR-16(7)(v)-3 PROD Demand'!K80+'FR-16(7)(v)-7 TRANS Demand'!K80+'FR-16(7)(v)-11 DIST Demand'!K80","v":2144},{"$f":"'FR-16(7)(v)-4 PROD Energy'!K80+'FR-16(7)(v)-8 TRANS Energy'!K80+'FR-16(7)(v)-12 DIST Energy'!K80","v":0},{"$f":"'FR-16(7)(v)-5 PROD Cust'!K80+'FR-16(7)(v)-9 TRANS Cust'!K80+'FR-16(7)(v)-13 DIST Cust'!K80","v":0},2144,0]
[24,null,{"$f":"'FR-16(7)(v)-1 Functional'!C81","v":"CONDUCTORS - OVERHEAD / SECONDARY - CUSTOMER"},{"$f":"'FR-16(7)(v)-1 Functional'!D81","v":"K405"},null,{"$f":"'FR-16(7)(v)-14 TOTAL CLASS'!K81","v":680},{"$f":"'FR-16(7)(v)-3 PROD Demand'!K81+'FR-16(7)(v)-7 TRANS Demand'!K81+'FR-16(7)(v)-11 DIST Demand'!K81","v":0},{"$f":"'FR-16(7)(v)-4 PROD Energy'!K81+'FR-16(7)(v)-8 TRANS Energy'!K81+'FR-16(7)(v)-12 DIST Energy'!K81","v":0},{"$f":"'FR-16(7)(v)-5 PROD Cust'!K81+'FR-16(7)(v)-9 TRANS Cust'!K81+'FR-16(7)(v)-13 DIST Cust'!K81","v":680},680,0]
[25,null,{"$f":"'FR-16(7)(v)-1 Functional'!C82","v":"CONDUCTORS - UNDERGROUND / PRIMARY - DEMAND"},{"$f":"'FR-16(7)(v)-1 Functional'!D82","v":"K205"},null,{"$f":"'FR-16(7)(v)-14 TOTAL CLASS'!K82","v":3930},{"$f":"'FR-16(7)(v)-3 PROD Demand'!K82+'FR-16(7)(v)-7 TRANS Demand'!K82+'FR-16(7)(v)-11 DIST Demand'!K82","v":3930},{"$f":"'FR-16(7)(v)-4 PROD Energy'!K82+'FR-16(7)(v)-8 TRANS Energy'!K82+'FR-16(7)(v)-12 DIST Energy'!K82","v":0},{"$f":"'FR-16(7)(v)-5 PROD Cust'!K82+'FR-16(7)(v)-9 TRANS Cust'!K82+'FR-16(7)(v)-13 DIST Cust'!K82","v":0},3930,0]
[26,null,{"$f":"'FR-16(7)(v)-1 Functional'!C83","v":"CONDUCTORS - UNDERGROUND / PRIMARY - CUSTOMER"},{"$f":"'FR-16(7)(v)-1 Functional'!D83","v":"K405"},null,{"$f":"'FR-16(7)(v)-14 TOTAL CLASS'!K83","v":1743},{"$f":"'FR-16(7)(v)-3 PROD Demand'!K83+'FR-16(7)(v)-7 TRANS Demand'!K83+'FR-16(7)(v)-11 DIST Demand'!K83","v":0},{"$f":"'FR-16(7)(v)-4 PROD Energy'!K83+'FR-16(7)(v)-8 TRANS Energy'!K83+'FR-16(7)(v)-12 DIST Energy'!K83","v":0},{"$f":"'FR-16(7)(v)-5 PROD Cust'!K83+'FR-16(7)(v)-9 TRANS Cust'!K83+'FR-16(7)(v)-13 DIST Cust'!K83","v":1743},1743,0]
[27,null,{"$f":"'FR-16(7)(v)-1 Functional'!C84","v":"CONDUCTORS - UNDERGROUND / SECONDARY - DEMAND"},{"$f":"'FR-16(7)(v)-1 Functional'!D84","v":"K206"},null,{"$f":"'FR-16(7)(v)-14 TOTAL CLASS'!K84","v":673},{"$f":"'FR-16(7)(v)-3 PROD Demand'!K84+'FR-16(7)(v)-7 TRANS Demand'!K84+'FR-16(7)(v)-11 DIST Demand'!K84","v":673},{"$f":"'FR-16(7)(v)-4 PROD Energy'!K84+'FR-16(7)(v)-8 TRANS Energy'!K84+'FR-16(7)(v)-12 DIST Energy'!K84","v":0},{"$f":"'FR-16(7)(v)-5 PROD Cust'!K84+'FR-16(7)(v)-9 TRANS Cust'!K84+'FR-16(7)(v)-13 DIST Cust'!K84","v":0},673,0]
[28,null,{"$f":"'FR-16(7)(v)-1 Functional'!C85","v":"CONDUCTORS - UNDERGROUND / SECONDARY - CUSTOMER"},{"$f":"'FR-16(7)(v)-1 Functional'!D85","v":"K405"},null,{"$f":"'FR-16(7)(v)-14 TOTAL CLASS'!K85","v":545},{"$f":"'FR-16(7)(v)-3 PROD Demand'!K85+'FR-16(7)(v)-7 TRANS Demand'!K85+'FR-16(7)(v)-11 DIST Demand'!K85","v":0},{"$f":"'FR-16(7)(v)-4 PROD Energy'!K85+'FR-16(7)(v)-8 TRANS Energy'!K85+'FR-16(7)(v)-12 DIST Energy'!K85","v":0},{"$f":"'FR-16(7)(v)-5 PROD Cust'!K85+'FR-16(7)(v)-9 TRANS Cust'!K85+'FR-16(7)(v)-13 DIST Cust'!K85","v":545},545,0]
[29,null,{"$f":"'FR-16(7)(v)-1 Functional'!C86","v":"TRANSFORMERS DEMAND RELATED"},{"$f":"'FR-16(7)(v)-1 Functional'!D86","v":"K215"},null,{"$f":"'FR-16(7)(v)-14 TOTAL CLASS'!K86","v":3298},{"$f":"'FR-16(7)(v)-3 PROD Demand'!K86+'FR-16(7)(v)-7 TRANS Demand'!K86+'FR-16(7)(v)-11 DIST Demand'!K86","v":3298},{"$f":"'FR-16(7)(v)-4 PROD Energy'!K86+'FR-16(7)(v)-8 TRANS Energy'!K86+'FR-16(7)(v)-12 DIST Energy'!K86","v":0},{"$f":"'FR-16(7)(v)-5 PROD Cust'!K86+'FR-16(7)(v)-9 TRANS Cust'!K86+'FR-16(7)(v)-13 DIST Cust'!K86","v":0},{"$f":"SUM(G86:I86)","v":3298},{"$f":"F86-J86","v":0}]
[30,null,{"$f":"'FR-16(7)(v)-1 Functional'!C87","v":"TRANSFORMERS CUSTOMER RELATED"},{"$f":"'FR-16(7)(v)-1 Functional'!D87","v":"K405"},null,{"$f":"'FR-16(7)(v)-14 TOTAL CLASS'!K87","v":1531},{"$f":"'FR-16(7)(v)-3 PROD Demand'!K87+'FR-16(7)(v)-7 TRANS Demand'!K87+'FR-16(7)(v)-11 DIST Demand'!K87","v":0},{"$f":"'FR-16(7)(v)-4 PROD Energy'!K87+'FR-16(7)(v)-8 TRANS Energy'!K87+'FR-16(7)(v)-12 DIST Energy'!K87","v":0},{"$f":"'FR-16(7)(v)-5 PROD Cust'!K87+'FR-16(7)(v)-9 TRANS Cust'!K87+'FR-16(7)(v)-13 DIST Cust'!K87","v":1531},1531,0]
[31,null,{"$f":"'FR-16(7)(v)-1 Functional'!C88","v":"SERVICES"},{"$f":"'FR-16(7)(v)-1 Functional'!D88","v":"K217"},null,{"$f":"'FR-16(7)(v)-14 TOTAL CLASS'!K88","v":2123},{"$f":"'FR-16(7)(v)-3 PROD Demand'!K88+'FR-16(7)(v)-7 TRANS Demand'!K88+'FR-16(7)(v)-11 DIST Demand'!K88","v":0},{"$f":"'FR-16(7)(v)-4 PROD Energy'!K88+'FR-16(7)(v)-8 TRANS Energy'!K88+'FR-16(7)(v)-12 DIST Energy'!K88","v":0},{"$f":"'FR-16(7)(v)-5 PROD Cust'!K88+'FR-16(7)(v)-9 TRANS Cust'!K88+'FR-16(7)(v)-13 DIST Cust'!K88","v":2123},2123,0]
[32,null,{"$f":"'FR-16(7)(v)-1 Functional'!C89","v":"METERS"},{"$f":"'FR-16(7)(v)-1 Functional'!D89","v":"K407"},null,{"$f":"'FR-16(7)(v)-14 TOTAL CLASS'!K89","v":4966},{"$f":"'FR-16(7)(v)-3 PROD Demand'!K89+'FR-16(7)(v)-7 TRANS Demand'!K89+'FR-16(7)(v)-11 DIST Demand'!K89","v":0},{"$f":"'FR-16(7)(v)-4 PROD Energy'!K89+'FR-16(7)(v)-8 TRANS Energy'!K89+'FR-16(7)(v)-12 DIST Energy'!K89","v":0},{"$f":"'FR-16(7)(v)-5 PROD Cust'!K89+'FR-16(7)(v)-9 TRANS Cust'!K89+'FR-16(7)(v)-13 DIST Cust'!K89","v":4966},4966,0]
[33,null,{"$f":"'FR-16(7)(v)-1 Functional'!C90","v":"STREET LIGHTS"},{"$f":"'FR-16(7)(v)-1 Functional'!D90","v":"K401"},null,{"$f":"'FR-16(7)(v)-14 TOTAL CLASS'!K90","v":0},{"$f":"'FR-16(7)(v)-3 PROD Demand'!K90+'FR-16(7)(v)-7 TRANS Demand'!K90+'FR-16(7)(v)-11 DIST Demand'!K90","v":0},{"$f":"'FR-16(7)(v)-4 PROD Energy'!K90+'FR-16(7)(v)-8 TRANS Energy'!K90+'FR-16(7)(v)-12 DIST Energy'!K90","v":0},{"$f":"'FR-16(7)(v)-5 PROD Cust'!K90+'FR-16(7)(v)-9 TRANS Cust'!K90+'FR-16(7)(v)-13 DIST Cust'!K90","v":0},0,0]
[34,null,{"$f":"'FR-16(7)(v)-1 Functional'!C91","v":"ADJUSTMENT  "},{"$f":"'FR-16(7)(v)-1 Functional'!D91","v":"K209"},null,{"$f":"'FR-16(7)(v)-14 TOTAL CLASS'!K91","v":0},{"$f":"'FR-16(7)(v)-3 PROD Demand'!K91+'FR-16(7)(v)-7 TRANS Demand'!K91+'FR-16(7)(v)-11 DIST Demand'!K91","v":0},{"$f":"'FR-16(7)(v)-4 PROD Energy'!K91+'FR-16(7)(v)-8 TRANS Energy'!K91+'FR-16(7)(v)-12 DIST Energy'!K91","v":0},{"$f":"'FR-16(7)(v)-5 PROD Cust'!K91+'FR-16(7)(v)-9 TRANS Cust'!K91+'FR-16(7)(v)-13 DIST Cust'!K91","v":0},0,0]
[35,null,{"$f":"'FR-16(7)(v)-1 Functional'!C92","v":"CONSTRUCTION NOT CLASSIFIED"},{"$f":"'FR-16(7)(v)-1 Functional'!D92","v":"K209"},null,{"$f":"'FR-16(7)(v)-14 TOTAL CLASS'!K92","v":7891},{"$f":"'FR-16(7)(v)-3 PROD Demand'!K92+'FR-16(7)(v)-7 TRANS Demand'!K92+'FR-16(7)(v)-11 DIST Demand'!K92","v":4859},{"$f":"'FR-16(7)(v)-4 PROD Energy'!K92+'FR-16(7)(v)-8 TRANS Energy'!K92+'FR-16(7)(v)-12 DIST Energy'!K92","v":0},{"$f":"'FR-16(7)(v)-5 PROD Cust'!K92+'FR-16(7)(v)-9 TRANS Cust'!K92+'FR-16(7)(v)-13 DIST Cust'!K92","v":3032},7891,0]
[36,null,{"$f":"'FR-16(7)(v)-1 Functional'!C93","v":"RWIP"},{"$f":"'FR-16(7)(v)-1 Functional'!D93","v":"K215"},null,{"$f":"'FR-16(7)(v)-14 TOTAL CLASS'!K93","v":0},{"$f":"'FR-16(7)(v)-3 PROD Demand'!K93+'FR-16(7)(v)-7 TRANS Demand'!K93+'FR-16(7)(v)-11 DIST Demand'!K93","v":0},{"$f":"'FR-16(7)(v)-4 PROD Energy'!K93+'FR-16(7)(v)-8 TRANS Energy'!K93+'FR-16(7)(v)-12 DIST Energy'!K93","v":0},{"$f":"'FR-16(7)(v)-5 PROD Cust'!K93+'FR-16(7)(v)-9 TRANS Cust'!K93+'FR-16(7)(v)-13 DIST Cust'!K93","v":0},{"$f":"SUM(G93:I93)","v":0},{"$f":"F93-J93","v":0}]
[37,null,{"$f":"'FR-16(7)(v)-1 Functional'!C94","v":"  DISTRIBUTION PLANT IN SERVICE"},null,null,{"$f":"SUM(F73:F93)","v":47848},{"$f":"SUM(G73:G92)","v":29733},0,18115,47848,0]
[38]
[39,"TOTAL TRANS & DIST PLANT",null,null,null,{"$f":"F94+F68","v":52914},34799,0,18115,52914,0]
[40,"TOTAL GROSS PTD PLANT",null,null,null,{"$f":"F94+F70","v":137530},119415,0,18115,137530,0]
[41]
[42,"GENERAL & INTANGIBLE PLANT"]
[43,null,{"$f":"'FR-16(7)(v)-1 Functional'!C100","v":"PRODUCTION - DEMAND"},{"$f":"'FR-16(7)(v)-1 Functional'!D100","v":"K201"},null,{"$f":"'FR-16(7)(v)-14 TOTAL CLASS'!K100","v":1169},{"$f":"'FR-16(7)(v)-3 PROD Demand'!K100+'FR-16(7)(v)-7 TRANS Demand'!K100+'FR-16(7)(v)-11 DIST Demand'!K100","v":1169},{"$f":"'FR-16(7)(v)-4 PROD Energy'!K100+'FR-16(7)(v)-8 TRANS Energy'!K100+'FR-16(7)(v)-12 DIST Energy'!K100","v":0},{"$f":"'FR-16(7)(v)-5 PROD Cust'!K100+'FR-16(7)(v)-9 TRANS Cust'!K100+'FR-16(7)(v)-13 DIST Cust'!K100","v":0},{"$f":"SUM(G100:I100)","v":1169},{"$f":"F100-J100","v":0}]
[44,null,{"$f":"'FR-16(7)(v)-1 Functional'!C101","v":"PRODUCTION - ENERGY"},{"$f":"'FR-16(7)(v)-1 Functional'!D101","v":"K301"},null,{"$f":"'FR-16(7)(v)-14 TOTAL CLASS'!K101","v":1366},{"$f":"'FR-16(7)(v)-3 PROD Demand'!K101+'FR-16(7)(v)-7 TRANS Demand'!K101+'FR-16(7)(v)-11 DIST Demand'!K101","v":0},{"$f":"'FR-16(7)(v)-4 PROD Energy'!K101+'FR-16(7)(v)-8 TRANS Energy'!K101+'FR-16(7)(v)-12 DIST Energy'!K101","v":1366},{"$f":"'FR-16(7)(v)-5 PROD Cust'!K101+'FR-16(7)(v)-9 TRANS Cust'!K101+'FR-16(7)(v)-13 DIST Cust'!K101","v":0},{"$f":"SUM(G101:I101)","v":1366},{"$f":"F101-J101","v":0}]
[45,null,{"$f":"'FR-16(7)(v)-1 Functional'!C102","v":"TRANSMISSION"},{"$f":"'FR-16(7)(v)-1 Functional'!D102","v":"K202"},null,{"$f":"'FR-16(7)(v)-14 TOTAL CLASS'!K102","v":185},{"$f":"'FR-16(7)(v)-3 PROD Demand'!K102+'FR-16(7)(v)-7 TRANS Demand'!K102+'FR-16(7)(v)-11 DIST Demand'!K102","v":185},{"$f":"'FR-16(7)(v)-4 PROD Energy'!K102+'FR-16(7)(v)-8 TRANS Energy'!K102+'FR-16(7)(v)-12 DIST Energy'!K102","v":0},{"$f":"'FR-16(7)(v)-5 PROD Cust'!K102+'FR-16(7)(v)-9 TRANS Cust'!K102+'FR-16(7)(v)-13 DIST Cust'!K102","v":0},185,0]
[46,null,{"$f":"'FR-16(7)(v)-1 Functional'!C103","v":"DISTRIBUTION - DEMAND"},{"$f":"'FR-16(7)(v)-1 Functional'!D103","v":"K201"},null,{"$f":"'FR-16(7)(v)-14 TOTAL CLASS'!K103","v":621},{"$f":"'FR-16(7)(v)-3 PROD Demand'!K103+'FR-16(7)(v)-7 TRANS Demand'!K103+'FR-16(7)(v)-11 DIST Demand'!K103","v":621},{"$f":"'FR-16(7)(v)-4 PROD Energy'!K103+'FR-16(7)(v)-8 TRANS Energy'!K103+'FR-16(7)(v)-12 DIST Energy'!K103","v":0},{"$f":"'FR-16(7)(v)-5 PROD Cust'!K103+'FR-16(7)(v)-9 TRANS Cust'!K103+'FR-16(7)(v)-13 DIST Cust'!K103","v":0},621,0]
[47,null,{"$f":"'FR-16(7)(v)-1 Functional'!C104","v":"DISTRIBUTION - CUSTOMER"},{"$f":"'FR-16(7)(v)-1 Functional'!D104","v":"K405"},null,{"$f":"'FR-16(7)(v)-14 TOTAL CLASS'!K104","v":195},{"$f":"'FR-16(7)(v)-3 PROD Demand'!K104+'FR-16(7)(v)-7 TRANS Demand'!K104+'FR-16(7)(v)-11 DIST Demand'!K104","v":0},{"$f":"'FR-16(7)(v)-4 PROD Energy'!K104+'FR-16(7)(v)-8 TRANS Energy'!K104+'FR-16(7)(v)-12 DIST Energy'!K104","v":0},{"$f":"'FR-16(7)(v)-5 PROD Cust'!K104+'FR-16(7)(v)-9 TRANS Cust'!K104+'FR-16(7)(v)-13 DIST Cust'!K104","v":195},195,0]
[48,null,{"$f":"'FR-16(7)(v)-1 Functional'!C105","v":"CUSTOMER ACCOUNTING"},{"$f":"'FR-16(7)(v)-1 Functional'!D105","v":"A308"},null,{"$f":"'FR-16(7)(v)-14 TOTAL CLASS'!K105","v":1257},{"$f":"'FR-16(7)(v)-3 PROD Demand'!K105+'FR-16(7)(v)-7 TRANS Demand'!K105+'FR-16(7)(v)-11 DIST Demand'!K105","v":0},{"$f":"'FR-16(7)(v)-4 PROD Energy'!K105+'FR-16(7)(v)-8 TRANS Energy'!K105+'FR-16(7)(v)-12 DIST Energy'!K105","v":0},{"$f":"'FR-16(7)(v)-5 PROD Cust'!K105+'FR-16(7)(v)-9 TRANS Cust'!K105+'FR-16(7)(v)-13 DIST Cust'!K105","v":1257},1257,0]
[49,null,{"$f":"'FR-16(7)(v)-1 Functional'!C106","v":"CUSTOMER SERVICE & INFORMATION"},{"$f":"'FR-16(7)(v)-1 Functional'!D106","v":"A310"},null,{"$f":"'FR-16(7)(v)-14 TOTAL CLASS'!K106","v":43},{"$f":"'FR-16(7)(v)-3 PROD Demand'!K106+'FR-16(7)(v)-7 TRANS Demand'!K106+'FR-16(7)(v)-11 DIST Demand'!K106","v":0},{"$f":"'FR-16(7)(v)-4 PROD Energy'!K106+'FR-16(7)(v)-8 TRANS Energy'!K106+'FR-16(7)(v)-12 DIST Energy'!K106","v":0},{"$f":"'FR-16(7)(v)-5 PROD Cust'!K106+'FR-16(7)(v)-9 TRANS Cust'!K106+'FR-16(7)(v)-13 DIST Cust'!K106","v":43},43,0]
[50,null,{"$f":"'FR-16(7)(v)-1 Functional'!C107","v":"SALES"},{"$f":"'FR-16(7)(v)-1 Functional'!D107","v":"A312"},null,{"$f":"'FR-16(7)(v)-14 TOTAL CLASS'!K107","v":0},{"$f":"'FR-16(7)(v)-3 PROD Demand'!K107+'FR-16(7)(v)-7 TRANS Demand'!K107+'FR-16(7)(v)-11 DIST Demand'!K107","v":0},{"$f":"'FR-16(7)(v)-4 PROD Energy'!K107+'FR-16(7)(v)-8 TRANS Energy'!K107+'FR-16(7)(v)-12 DIST Energy'!K107","v":0},{"$f":"'FR-16(7)(v)-5 PROD Cust'!K107+'FR-16(7)(v)-9 TRANS Cust'!K107+'FR-16(7)(v)-13 DIST Cust'!K107","v":0},0,0]
[51,null,{"$f":"'FR-16(7)(v)-1 Functional'!C108","v":"ADJUSTMENT"},{"$f":"'FR-16(7)(v)-1 Functional'!D108","v":"A315"},null,{"$f":"'FR-16(7)(v)-14 TOTAL CLASS'!K108","v":0},{"$f":"'FR-16(7)(v)-3 PROD Demand'!K108+'FR-16(7)(v)-7 TRANS Demand'!K108+'FR-16(7)(v)-11 DIST Demand'!K108","v":0},{"$f":"'FR-16(7)(v)-4 PROD Energy'!K108+'FR-16(7)(v)-8 TRANS Energy'!K108+'FR-16(7)(v)-12 DIST Energy'!K108","v":0},{"$f":"'FR-16(7)(v)-5 PROD Cust'!K108+'FR-16(7)(v)-9 TRANS Cust'!K108+'FR-16(7)(v)-13 DIST Cust'!K108","v":0},0,0]
[52,null,{"$f":"'FR-16(7)(v)-1 Functional'!C109","v":"  GEN & INTANG PLANT IN SERVICE"},null,null,{"$f":"SUM(F100:F108)","v":4836},1975,1366,1495,4836,0]
[53]
[54,"COMMON & OTHER PLANT"]
[55,null,{"$f":"'FR-16(7)(v)-1 Functional'!C112","v":"PRODUCTION - DEMAND"},{"$f":"'FR-16(7)(v)-1 Functional'!D112","v":"K201"},null,{"$f":"'FR-16(7)(v)-14 TOTAL CLASS'!K112","v":662},{"$f":"'FR-16(7)(v)-3 PROD Demand'!K112+'FR-16(7)(v)-7 TRANS Demand'!K112+'FR-16(7)(v)-11 DIST Demand'!K112","v":662},{"$f":"'FR-16(7)(v)-4 PROD Energy'!K112+'FR-16(7)(v)-8 TRANS Energy'!K112+'FR-16(7)(v)-12 DIST Energy'!K112","v":0},{"$f":"'FR-16(7)(v)-5 PROD Cust'!K112+'FR-16(7)(v)-9 TRANS Cust'!K112+'FR-16(7)(v)-13 DIST Cust'!K112","v":0},{"$f":"SUM(G112:I112)","v":662},{"$f":"F112-J112","v":0}]
[56,null,{"$f":"'FR-16(7)(v)-1 Functional'!C113","v":"PRODUCTION - ENERGY"},{"$f":"'FR-16(7)(v)-1 Functional'!D113","v":"K301"},null,{"$f":"'FR-16(7)(v)-14 TOTAL CLASS'!K113","v":773},{"$f":"'FR-16(7)(v)-3 PROD Demand'!K113+'FR-16(7)(v)-7 TRANS Demand'!K113+'FR-16(7)(v)-11 DIST Demand'!K113","v":0},{"$f":"'FR-16(7)(v)-4 PROD Energy'!K113+'FR-16(7)(v)-8 TRANS Energy'!K113+'FR-16(7)(v)-12 DIST Energy'!K113","v":773},{"$f":"'FR-16(7)(v)-5 PROD Cust'!K113+'FR-16(7)(v)-9 TRANS Cust'!K113+'FR-16(7)(v)-13 DIST Cust'!K113","v":0},{"$f":"SUM(G113:I113)","v":773},{"$f":"F113-J113","v":0}]
[57,null,{"$f":"'FR-16(7)(v)-1 Functional'!C114","v":"TRANSMISSION"},{"$f":"'FR-16(7)(v)-1 Functional'!D114","v":"K202"},null,{"$f":"'FR-16(7)(v)-14 TOTAL CLASS'!K114","v":105},{"$f":"'FR-16(7)(v)-3 PROD Demand'!K114+'FR-16(7)(v)-7 TRANS Demand'!K114+'FR-16(7)(v)-11 DIST Demand'!K114","v":105},{"$f":"'FR-16(7)(v)-4 PROD Energy'!K114+'FR-16(7)(v)-8 TRANS Energy'!K114+'FR-16(7)(v)-12 DIST Energy'!K114","v":0},{"$f":"'FR-16(7)(v)-5 PROD Cust'!K114+'FR-16(7)(v)-9 TRANS Cust'!K114+'FR-16(7)(v)-13 DIST Cust'!K114","v":0},105,0]
[58,null,{"$f":"'FR-16(7)(v)-1 Functional'!C115","v":"DISTRIBUTION - DEMAND"},{"$f":"'FR-16(7)(v)-1 Functional'!D115","v":"K201"},null,{"$f":"'FR-16(7)(v)-14 TOTAL CLASS'!K115","v":351},{"$f":"'FR-16(7)(v)-3 PROD Demand'!K115+'FR-16(7)(v)-7 TRANS Demand'!K115+'FR-16(7)(v)-11 DIST Demand'!K115","v":351},{"$f":"'FR-16(7)(v)-4 PROD Energy'!K115+'FR-16(7)(v)-8 TRANS Energy'!K115+'FR-16(7)(v)-12 DIST Energy'!K115","v":0},{"$f":"'FR-16(7)(v)-5 PROD Cust'!K115+'FR-16(7)(v)-9 TRANS Cust'!K115+'FR-16(7)(v)-13 DIST Cust'!K115","v":0},351,0]
[59,null,{"$f":"'FR-16(7)(v)-1 Functional'!C116","v":"DISTRIBUTION - CUSTOMER"},{"$f":"'FR-16(7)(v)-1 Functional'!D116","v":"K405"},null,{"$f":"'FR-16(7)(v)-14 TOTAL CLASS'!K116","v":110},{"$f":"'FR-16(7)(v)-3 PROD Demand'!K116+'FR-16(7)(v)-7 TRANS Demand'!K116+'FR-16(7)(v)-11 DIST Demand'!K116","v":0},{"$f":"'FR-16(7)(v)-4 PROD Energy'!K116+'FR-16(7)(v)-8 TRANS Energy'!K116+'FR-16(7)(v)-12 DIST Energy'!K116","v":0},{"$f":"'FR-16(7)(v)-5 PROD Cust'!K116+'FR-16(7)(v)-9 TRANS Cust'!K116+'FR-16(7)(v)-13 DIST Cust'!K116","v":110},110,0]
[60,null,{"$f":"'FR-16(7)(v)-1 Functional'!C117","v":"CUSTOMER ACCOUNTING"},{"$f":"'FR-16(7)(v)-1 Functional'!D117","v":"A308"},null,{"$f":"'FR-16(7)(v)-14 TOTAL CLASS'!K117","v":712},{"$f":"'FR-16(7)(v)-3 PROD Demand'!K117+'FR-16(7)(v)-7 TRANS Demand'!K117+'FR-16(7)(v)-11 DIST Demand'!K117","v":0},{"$f":"'FR-16(7)(v)-4 PROD Energy'!K117+'FR-16(7)(v)-8 TRANS Energy'!K117+'FR-16(7)(v)-12 DIST Energy'!K117","v":0},{"$f":"'FR-16(7)(v)-5 PROD Cust'!K117+'FR-16(7)(v)-9 TRANS Cust'!K117+'FR-16(7)(v)-13 DIST Cust'!K117","v":712},712,0]
[61,null,{"$f":"'FR-16(7)(v)-1 Functional'!C118","v":"CUSTOMER SERVICE & INFORMATION"},{"$f":"'FR-16(7)(v)-1 Functional'!D118","v":"A310"},null,{"$f":"'FR-16(7)(v)-14 TOTAL CLASS'!K118","v":24},{"$f":"'FR-16(7)(v)-3 PROD Demand'!K118+'FR-16(7)(v)-7 TRANS Demand'!K118+'FR-16(7)(v)-11 DIST Demand'!K118","v":0},{"$f":"'FR-16(7)(v)-4 PROD Energy'!K118+'FR-16(7)(v)-8 TRANS Energy'!K118+'FR-16(7)(v)-12 DIST Energy'!K118","v":0},{"$f":"'FR-16(7)(v)-5 PROD Cust'!K118+'FR-16(7)(v)-9 TRANS Cust'!K118+'FR-16(7)(v)-13 DIST Cust'!K118","v":24},24,0]
[62,null,{"$f":"'FR-16(7)(v)-1 Functional'!C119","v":"SALES"},{"$f":"'FR-16(7)(v)-1 Functional'!D119","v":"A312"},null,{"$f":"'FR-16(7)(v)-14 TOTAL CLASS'!K119","v":0},{"$f":"'FR-16(7)(v)-3 PROD Demand'!K119+'FR-16(7)(v)-7 TRANS Demand'!K119+'FR-16(7)(v)-11 DIST Demand'!K119","v":0},{"$f":"'FR-16(7)(v)-4 PROD Energy'!K119+'FR-16(7)(v)-8 TRANS Energy'!K119+'FR-16(7)(v)-12 DIST Energy'!K119","v":0},{"$f":"'FR-16(7)(v)-5 PROD Cust'!K119+'FR-16(7)(v)-9 TRANS Cust'!K119+'FR-16(7)(v)-13 DIST Cust'!K119","v":0},0,0]
[63,null,{"$f":"'FR-16(7)(v)-1 Functional'!C120","v":"ADJUSTMENT"},{"$f":"'FR-16(7)(v)-1 Functional'!D120","v":"A315"},null,{"$f":"'FR-16(7)(v)-14 TOTAL CLASS'!K120","v":0},{"$f":"'FR-16(7)(v)-3 PROD Demand'!K120+'FR-16(7)(v)-7 TRANS Demand'!K120+'FR-16(7)(v)-11 DIST Demand'!K120","v":0},{"$f":"'FR-16(7)(v)-4 PROD Energy'!K120+'FR-16(7)(v)-8 TRANS Energy'!K120+'FR-16(7)(v)-12 DIST Energy'!K120","v":0},{"$f":"'FR-16(7)(v)-5 PROD Cust'!K120+'FR-16(7)(v)-9 TRANS Cust'!K120+'FR-16(7)(v)-13 DIST Cust'!K120","v":0},0,0]
[64,null,{"$f":"'FR-16(7)(v)-1 Functional'!C121","v":"  COMMON & OTHER PLANT IN SERVICE"},null,null,{"$f":"SUM(F112:F120)","v":2737},1118,773,846,2737,0]
[65]
[66,"GROSS ELECTRIC PLANT IN SERVICE",null,null,null,{"$f":"F97+F109+F121","v":145103},122508,2139,20456,145103,0]
[]
[{"$f":"co_name","v":"DUKE ENERGY KENTUCKY, INC."},null,null,null,null,null,null,null,null,{"$f":"J1","v":"FR-16(7)(v)-19"}]
[{"$f":"$A$2","v":"SP SECONDARY CLASSIFIED - ELECTRIC COST OF SERVICE"},null,null,null,null,null,null,null,null,{"$f":"J2","v":"WITNESS RESPONSIBLE:"}]
[{"$f":"case_name","v":"CASE NO: 2019-00271"},null,null,null,null,null,null,null,null,{"$f":"Witness","v":"JAMES E. ZIOLKOWSKI"}]
[{"$f":"data_filing","v":"DATA: 12 MONTHS ACTUAL  & 0 MONTHS ESTIMATED"},null,null,null,null,null,null,null,null,{"$f":"\"PAGE \"&Pages2-12&\" OF \"&Pages2","v":"PAGE 3 OF 15"}]
[{"$f":"type","v":"TYPE OF FILING: \"X\" ORIGINAL   UPDATED    REVISED  "}]
[]
[]
["LINE",null,null,null,null,"TOTAL","CLASSIFIED",null,null,"TOTAL","ALL"]
["NO.","DEPRECIATION RESERVE",null,"ALLO",null,{"$f":"$F$9","v":"SP SECONDARY"},{"$f":"G9","v":"DEMAND"},"ENERGY","CUSTOMER","AT ISSUE","OTHER"]
[null,null,"Schedule 3",null,null,null,3,4,5]
[1,"PRODUCTION PLANT"]
[2,null,{"$f":"'FR-16(7)(v)-1 Functional'!C136","v":"PRODUCTION STEAM"},{"$f":"'FR-16(7)(v)-1 Functional'!D136","v":"K201"},null,{"$f":"'FR-16(7)(v)-14 TOTAL CLASS'!K136","v":28081},{"$f":"'FR-16(7)(v)-3 PROD Demand'!K136+'FR-16(7)(v)-7 TRANS Demand'!K136+'FR-16(7)(v)-11 DIST Demand'!K136","v":28081},{"$f":"'FR-16(7)(v)-4 PROD Energy'!K136+'FR-16(7)(v)-8 TRANS Energy'!K136+'FR-16(7)(v)-12 DIST Energy'!K136","v":0},{"$f":"'FR-16(7)(v)-5 PROD Cust'!K136+'FR-16(7)(v)-9 TRANS Cust'!K136+'FR-16(7)(v)-13 DIST Cust'!K136","v":0},{"$f":"SUM(G136:I136)","v":28081},{"$f":"F136-J136","v":0}]
[3,null,{"$f":"'FR-16(7)(v)-1 Functional'!C137","v":"PRODUCTION OTHER"},{"$f":"'FR-16(7)(v)-1 Functional'!D137","v":"K201"},null,{"$f":"'FR-16(7)(v)-14 TOTAL CLASS'!K137","v":12896},{"$f":"'FR-16(7)(v)-3 PROD Demand'!K137+'FR-16(7)(v)-7 TRANS Demand'!K137+'FR-16(7)(v)-11 DIST Demand'!K137","v":12896},{"$f":"'FR-16(7)(v)-4 PROD Energy'!K137+'FR-16(7)(v)-8 TRANS Energy'!K137+'FR-16(7)(v)-12 DIST Energy'!K137","v":0},{"$f":"'FR-16(7)(v)-5 PROD Cust'!K137+'FR-16(7)(v)-9 TRANS Cust'!K137+'FR-16(7)(v)-13 DIST Cust'!K137","v":0},{"$f":"SUM(G137:I137)","v":12896},{"$f":"F137-J137","v":0}]
[4,null,{"$f":"'FR-16(7)(v)-1 Functional'!C138","v":"ADJUSTMENT"},{"$f":"'FR-16(7)(v)-1 Functional'!D138","v":"K201"},null,{"$f":"'FR-16(7)(v)-14 TOTAL CLASS'!K138","v":109},{"$f":"'FR-16(7)(v)-3 PROD Demand'!K138+'FR-16(7)(v)-7 TRANS Demand'!K138+'FR-16(7)(v)-11 DIST Demand'!K138","v":109},{"$f":"'FR-16(7)(v)-4 PROD Energy'!K138+'FR-16(7)(v)-8 TRANS Energy'!K138+'FR-16(7)(v)-12 DIST Energy'!K138","v":0},{"$f":"'FR-16(7)(v)-5 PROD Cust'!K138+'FR-16(7)(v)-9 TRANS Cust'!K138+'FR-16(7)(v)-13 DIST Cust'!K138","v":0},{"$f":"SUM(G138:I138)","v":109},{"$f":"F138-J138","v":0}]
[5,null,{"$f":"'FR-16(7)(v)-1 Functional'!C139","v":"  TOTAL PROD DEPREC RESERVE"},null,null,{"$f":"SUM(F136:F138)","v":41086},41086,0,0,41086,0]
[6]
[7,"TRANSMISSION PLANT"]
[8,null,{"$f":"'FR-16(7)(v)-1 Functional'!C142","v":"MAIN STEP-UP TRANSFORMERS"},{"$f":"'FR-16(7)(v)-1 Functional'!D142","v":"K202"},null,{"$f":"'FR-16(7)(v)-14 TOTAL CLASS'!K142","v":0},{"$f":"'FR-16(7)(v)-3 PROD Demand'!K142+'FR-16(7)(v)-7 TRANS Demand'!K142+'FR-16(7)(v)-11 DIST Demand'!K142","v":0},{"$f":"'FR-16(7)(v)-4 PROD Energy'!K142+'FR-16(7)(v)-8 TRANS Energy'!K142+'FR-16(7)(v)-12 DIST Energy'!K142","v":0},{"$f":"'FR-16(7)(v)-5 PROD Cust'!K142+'FR-16(7)(v)-9 TRANS Cust'!K142+'FR-16(7)(v)-13 DIST Cust'!K142","v":0},{"$f":"SUM(G142:I142)","v":0},{"$f":"F142-J142","v":0}]
[9,null,{"$f":"'FR-16(7)(v)-1 Functional'!C143","v":"OTHER TRANSMISSION"},{"$f":"'FR-16(7)(v)-1 Functional'!D143","v":"K202"},null,{"$f":"'FR-16(7)(v)-14 TOTAL CLASS'!K143","v":1397},{"$f":"'FR-16(7)(v)-3 PROD Demand'!K143+'FR-16(7)(v)-7 TRANS Demand'!K143+'FR-16(7)(v)-11 DIST Demand'!K143","v":1397},{"$f":"'FR-16(7)(v)-4 PROD Energy'!K143+'FR-16(7)(v)-8 TRANS Energy'!K143+'FR-16(7)(v)-12 DIST Energy'!K143","v":0},{"$f":"'FR-16(7)(v)-5 PROD Cust'!K143+'FR-16(7)(v)-9 TRANS Cust'!K143+'FR-16(7)(v)-13 DIST Cust'!K143","v":0},{"$f":"SUM(G143:I143)","v":1397},{"$f":"F143-J143","v":0}]
[10,null,{"$f":"'FR-16(7)(v)-1 Functional'!C144","v":"ADJUSTMENT"},{"$f":"'FR-16(7)(v)-1 Functional'!D144","v":"K202"},null,{"$f":"'FR-16(7)(v)-14 TOTAL CLASS'!K144","v":-5},{"$f":"'FR-16(7)(v)-3 PROD Demand'!K144+'FR-16(7)(v)-7 TRANS Demand'!K144+'FR-16(7)(v)-11 DIST Demand'!K144","v":-5},{"$f":"'FR-16(7)(v)-4 PROD Energy'!K144+'FR-16(7)(v)-8 TRANS Energy'!K144+'FR-16(7)(v)-12 DIST Energy'!K144","v":0},{"$f":"'FR-16(7)(v)-5 PROD Cust'!K144+'FR-16(7)(v)-9 TRANS Cust'!K144+'FR-16(7)(v)-13 DIST Cust'!K144","v":0},{"$f":"SUM(G144:I144)","v":-5},{"$f":"F144-J144","v":0}]
[11,null,{"$f":"'FR-16(7)(v)-1 Functional'!C145","v":"  TOTAL TRANS DEPREC RESERVE"},null,null,{"$f":"SUM(F142:F144)","v":1392},1392,0,0,1392,0]
[12]
[13,null,{"$f":"'FR-16(7)(v)-1 Functional'!C147","v":"TOTAL PROD & TRANS DEPREC RESERVE"},null,null,{"$f":"F145+F139","v":42478},{"$f":"G145+G139","v":42478},{"$f":"H145+H139","v":0},{"$f":"I145+I139","v":0},{"$f":"J145+J139","v":42478},{"$f":"F147-J147","v":0}]
[14]
[15,"DISTRIBUTION PLANT"]
[16,null,{"$f":"'FR-16(7)(v)-1 Functional'!C150","v":"SUBSTATIONS"},{"$f":"'FR-16(7)(v)-1 Functional'!D150","v":"K215"},null,{"$f":"'FR-16(7)(v)-14 TOTAL CLASS'!K150","v":1294},{"$f":"'FR-16(7)(v)-3 PROD Demand'!K150+'FR-16(7)(v)-7 TRANS Demand'!K150+'FR-16(7)(v)-11 DIST Demand'!K150","v":1294},{"$f":"'FR-16(7)(v)-4 PROD Energy'!K150+'FR-16(7)(v)-8 TRANS Energy'!K150+'FR-16(7)(v)-12 DIST Energy'!K150","v":0},{"$f":"'FR-16(7)(v)-5 PROD Cust'!K150+'FR-16(7)(v)-9 TRANS Cust'!K150+'FR-16(7)(v)-13 DIST Cust'!K150","v":0},{"$f":"SUM(G150:I150)","v":1294},{"$f":"F150-J150","v":0}]
[17,null,{"$f":"'FR-16(7)(v)-1 Functional'!C151","v":"POLES, TOWERS  & FIXTURES - PRIMARY - DEMAND"},{"$f":"'FR-16(7)(v)-1 Functional'!D151","v":"K205"},null,{"$f":"'FR-16(7)(v)-14 TOTAL CLASS'!K151","v":1057},{"$f":"'FR-16(7)(v)-3 PROD Demand'!K151+'FR-16(7)(v)-7 TRANS Demand'!K151+'FR-16(7)(v)-11 DIST Demand'!K151","v":1057},{"$f":"'FR-16(7)(v)-4 PROD Energy'!K151+'FR-16(7)(v)-8 TRANS Energy'!K151+'FR-16(7)(v)-12 DIST Energy'!K151","v":0},{"$f":"'FR-16(7)(v)-5 PROD Cust'!K151+'FR-16(7)(v)-9 TRANS Cust'!K151+'FR-16(7)(v)-13 DIST Cust'!K151","v":0},{"$f":"SUM(G151:I151)","v":1057},{"$f":"F151-J151","v":0}]
[18,null,{"$f":"'FR-16(7)(v)-1 Functional'!C152","v":"POLES, TOWERS  & FIXTURES - PRIMARY - CUSTOMER"},{"$f":"'FR-16(7)(v)-1 Functional'!D152","v":"K405"},null,{"$f":"'FR-16(7)(v)-14 TOTAL CLASS'!K152","v":691},{"$f":"'FR-16(7)(v)-3 PROD Demand'!K152+'FR-16(7)(v)-7 TRANS Demand'!K152+'FR-16(7)(v)-11 DIST Demand'!K152","v":0},{"$f":"'FR-16(7)(v)-4 PROD Energy'!K152+'FR-16(7)(v)-8 TRANS Energy'!K152+'FR-16(7)(v)-12 DIST Energy'!K152","v":0},{"$f":"'FR-16(7)(v)-5 PROD Cust'!K152+'FR-16(7)(v)-9 TRANS Cust'!K152+'FR-16(7)(v)-13 DIST Cust'!K152","v":691},{"$f":"SUM(G152:I152)","v":691},{"$f":"F152-J152","v":0}]
[19,null,{"$f":"'FR-16(7)(v)-1 Functional'!C153","v":"POLES, TOWERS  & FIXTURES - SECONDARY - DEMAND"},{"$f":"'FR-16(7)(v)-1 Functional'!D153","v":"K206"},null,{"$f":"'FR-16(7)(v)-14 TOTAL CLASS'!K153","v":404},{"$f":"'FR-16(7)(v)-3 PROD Demand'!K153+'FR-16(7)(v)-7 TRANS Demand'!K153+'FR-16(7)(v)-11 DIST Demand'!K153","v":404},{"$f":"'FR-16(7)(v)-4 PROD Energy'!K153+'FR-16(7)(v)-8 TRANS Energy'!K153+'FR-16(7)(v)-12 DIST Energy'!K153","v":0},{"$f":"'FR-16(7)(v)-5 PROD Cust'!K153+'FR-16(7)(v)-9 TRANS Cust'!K153+'FR-16(7)(v)-13 DIST Cust'!K153","v":0},404,0]
[20,null,{"$f":"'FR-16(7)(v)-1 Functional'!C154","v":"POLES, TOWERS  & FIXTURES - SECONDARY - CUSTOMER"},{"$f":"'FR-16(7)(v)-1 Functional'!D154","v":"K405"},null,{"$f":"'FR-16(7)(v)-14 TOTAL CLASS'!K154","v":156},{"$f":"'FR-16(7)(v)-3 PROD Demand'!K154+'FR-16(7)(v)-7 TRANS Demand'!K154+'FR-16(7)(v)-11 DIST Demand'!K154","v":0},{"$f":"'FR-16(7)(v)-4 PROD Energy'!K154+'FR-16(7)(v)-8 TRANS Energy'!K154+'FR-16(7)(v)-12 DIST Energy'!K154","v":0},{"$f":"'FR-16(7)(v)-5 PROD Cust'!K154+'FR-16(7)(v)-9 TRANS Cust'!K154+'FR-16(7)(v)-13 DIST Cust'!K154","v":156},156,0]
[21,null,{"$f":"'FR-16(7)(v)-1 Functional'!C155","v":"CONDUCTORS - OVERHEAD / PRIMARY - DEMAND"},{"$f":"'FR-16(7)(v)-1 Functional'!D155","v":"K205"},null,{"$f":"'FR-16(7)(v)-14 TOTAL CLASS'!K155","v":1570},{"$f":"'FR-16(7)(v)-3 PROD Demand'!K155+'FR-16(7)(v)-7 TRANS Demand'!K155+'FR-16(7)(v)-11 DIST Demand'!K155","v":1570},{"$f":"'FR-16(7)(v)-4 PROD Energy'!K155+'FR-16(7)(v)-8 TRANS Energy'!K155+'FR-16(7)(v)-12 DIST Energy'!K155","v":0},{"$f":"'FR-16(7)(v)-5 PROD Cust'!K155+'FR-16(7)(v)-9 TRANS Cust'!K155+'FR-16(7)(v)-13 DIST Cust'!K155","v":0},1570,0]
[22,null,{"$f":"'FR-16(7)(v)-1 Functional'!C156","v":"CONDUCTORS - OVERHEAD / PRIMARY - CUSTOMER"},{"$f":"'FR-16(7)(v)-1 Functional'!D156","v":"K405"},null,{"$f":"'FR-16(7)(v)-14 TOTAL CLASS'!K156","v":490},{"$f":"'FR-16(7)(v)-3 PROD Demand'!K156+'FR-16(7)(v)-7 TRANS Demand'!K156+'FR-16(7)(v)-11 DIST Demand'!K156","v":0},{"$f":"'FR-16(7)(v)-4 PROD Energy'!K156+'FR-16(7)(v)-8 TRANS Energy'!K156+'FR-16(7)(v)-12 DIST Energy'!K156","v":0},{"$f":"'FR-16(7)(v)-5 PROD Cust'!K156+'FR-16(7)(v)-9 TRANS Cust'!K156+'FR-16(7)(v)-13 DIST Cust'!K156","v":490},490,0]
[23,null,{"$f":"'FR-16(7)(v)-1 Functional'!C157","v":"CONDUCTORS - OVERHEAD / SECONDARY - DEMAND"},{"$f":"'FR-16(7)(v)-1 Functional'!D157","v":"K206"},null,{"$f":"'FR-16(7)(v)-14 TOTAL CLASS'!K157","v":639},{"$f":"'FR-16(7)(v)-3 PROD Demand'!K157+'FR-16(7)(v)-7 TRANS Demand'!K157+'FR-16(7)(v)-11 DIST Demand'!K157","v":639},{"$f":"'FR-16(7)(v)-4 PROD Energy'!K157+'FR-16(7)(v)-8 TRANS Energy'!K157+'FR-16(7)(v)-12 DIST Energy'!K157","v":0},{"$f":"'FR-16(7)(v)-5 PROD Cust'!K157+'FR-16(7)(v)-9 TRANS Cust'!K157+'FR-16(7)(v)-13 DIST Cust'!K157","v":0},639,0]
[24,null,{"$f":"'FR-16(7)(v)-1 Functional'!C158","v":"CONDUCTORS - OVERHEAD / SECONDARY - CUSTOMER"},{"$f":"'FR-16(7)(v)-1 Functional'!D158","v":"K405"},null,{"$f":"'FR-16(7)(v)-14 TOTAL CLASS'!K158","v":203},{"$f":"'FR-16(7)(v)-3 PROD Demand'!K158+'FR-16(7)(v)-7 TRANS Demand'!K158+'FR-16(7)(v)-11 DIST Demand'!K158","v":0},{"$f":"'FR-16(7)(v)-4 PROD Energy'!K158+'FR-16(7)(v)-8 TRANS Energy'!K158+'FR-16(7)(v)-12 DIST Energy'!K158","v":0},{"$f":"'FR-16(7)(v)-5 PROD Cust'!K158+'FR-16(7)(v)-9 TRANS Cust'!K158+'FR-16(7)(v)-13 DIST Cust'!K158","v":203},203,0]
[25,null,{"$f":"'FR-16(7)(v)-1 Functional'!C159","v":"CONDUCTORS - UNDERGROUND / PRIMARY - DEMAND"},{"$f":"'FR-16(7)(v)-1 Functional'!D159","v":"K205"},null,{"$f":"'FR-16(7)(v)-14 TOTAL CLASS'!K159","v":1162},{"$f":"'FR-16(7)(v)-3 PROD Demand'!K159+'FR-16(7)(v)-7 TRANS Demand'!K159+'FR-16(7)(v)-11 DIST Demand'!K159","v":1162},{"$f":"'FR-16(7)(v)-4 PROD Energy'!K159+'FR-16(7)(v)-8 TRANS Energy'!K159+'FR-16(7)(v)-12 DIST Energy'!K159","v":0},{"$f":"'FR-16(7)(v)-5 PROD Cust'!K159+'FR-16(7)(v)-9 TRANS Cust'!K159+'FR-16(7)(v)-13 DIST Cust'!K159","v":0},1162,0]
[26,null,{"$f":"'FR-16(7)(v)-1 Functional'!C160","v":"CONDUCTORS - UNDERGROUND / PRIMARY - CUSTOMER"},{"$f":"'FR-16(7)(v)-1 Functional'!D160","v":"K405"},null,{"$f":"'FR-16(7)(v)-14 TOTAL CLASS'!K160","v":516},{"$f":"'FR-16(7)(v)-3 PROD Demand'!K160+'FR-16(7)(v)-7 TRANS Demand'!K160+'FR-16(7)(v)-11 DIST Demand'!K160","v":0},{"$f":"'FR-16(7)(v)-4 PROD Energy'!K160+'FR-16(7)(v)-8 TRANS Energy'!K160+'FR-16(7)(v)-12 DIST Energy'!K160","v":0},{"$f":"'FR-16(7)(v)-5 PROD Cust'!K160+'FR-16(7)(v)-9 TRANS Cust'!K160+'FR-16(7)(v)-13 DIST Cust'!K160","v":516},516,0]
[27,null,{"$f":"'FR-16(7)(v)-1 Functional'!C161","v":"CONDUCTORS - UNDERGROUND / SECONDARY - DEMAND"},{"$f":"'FR-16(7)(v)-1 Functional'!D161","v":"K206"},null,{"$f":"'FR-16(7)(v)-14 TOTAL CLASS'!K161","v":199},{"$f":"'FR-16(7)(v)-3 PROD Demand'!K161+'FR-16(7)(v)-7 TRANS Demand'!K161+'FR-16(7)(v)-11 DIST Demand'!K161","v":199},{"$f":"'FR-16(7)(v)-4 PROD Energy'!K161+'FR-16(7)(v)-8 TRANS Energy'!K161+'FR-16(7)(v)-12 DIST Energy'!K161","v":0},{"$f":"'FR-16(7)(v)-5 PROD Cust'!K161+'FR-16(7)(v)-9 TRANS Cust'!K161+'FR-16(7)(v)-13 DIST Cust'!K161","v":0},199,0]
[28,null,{"$f":"'FR-16(7)(v)-1 Functional'!C162","v":"CONDUCTORS - UNDERGROUND / SECONDARY - CUSTOMER"},{"$f":"'FR-16(7)(v)-1 Functional'!D162","v":"K405"},null,{"$f":"'FR-16(7)(v)-14 TOTAL CLASS'!K162","v":161},{"$f":"'FR-16(7)(v)-3 PROD Demand'!K162+'FR-16(7)(v)-7 TRANS Demand'!K162+'FR-16(7)(v)-11 DIST Demand'!K162","v":0},{"$f":"'FR-16(7)(v)-4 PROD Energy'!K162+'FR-16(7)(v)-8 TRANS Energy'!K162+'FR-16(7)(v)-12 DIST Energy'!K162","v":0},{"$f":"'FR-16(7)(v)-5 PROD Cust'!K162+'FR-16(7)(v)-9 TRANS Cust'!K162+'FR-16(7)(v)-13 DIST Cust'!K162","v":161},161,0]
[29,null,{"$f":"'FR-16(7)(v)-1 Functional'!C163","v":"TRANSFORMERS DEMAND RELATED"},{"$f":"'FR-16(7)(v)-1 Functional'!D163","v":"K215"},null,{"$f":"'FR-16(7)(v)-14 TOTAL CLASS'!K163","v":1435},{"$f":"'FR-16(7)(v)-3 PROD Demand'!K163+'FR-16(7)(v)-7 TRANS Demand'!K163+'FR-16(7)(v)-11 DIST Demand'!K163","v":1435},{"$f":"'FR-16(7)(v)-4 PROD Energy'!K163+'FR-16(7)(v)-8 TRANS Energy'!K163+'FR-16(7)(v)-12 DIST Energy'!K163","v":0},{"$f":"'FR-16(7)(v)-5 PROD Cust'!K163+'FR-16(7)(v)-9 TRANS Cust'!K163+'FR-16(7)(v)-13 DIST Cust'!K163","v":0},{"$f":"SUM(G163:I163)","v":1435},{"$f":"F163-J163","v":0}]
[30,null,{"$f":"'FR-16(7)(v)-1 Functional'!C164","v":"TRANSFORMERS CUSTOMER RELATED"},{"$f":"'FR-16(7)(v)-1 Functional'!D164","v":"K405"},null,{"$f":"'FR-16(7)(v)-14 TOTAL CLASS'!K164","v":666},{"$f":"'FR-16(7)(v)-3 PROD Demand'!K164+'FR-16(7)(v)-7 TRANS Demand'!K164+'FR-16(7)(v)-11 DIST Demand'!K164","v":0},{"$f":"'FR-16(7)(v)-4 PROD Energy'!K164+'FR-16(7)(v)-8 TRANS Energy'!K164+'FR-16(7)(v)-12 DIST Energy'!K164","v":0},{"$f":"'FR-16(7)(v)-5 PROD Cust'!K164+'FR-16(7)(v)-9 TRANS Cust'!K164+'FR-16(7)(v)-13 DIST Cust'!K164","v":666},666,0]
[31,null,{"$f":"'FR-16(7)(v)-1 Functional'!C165","v":"SERVICES"},{"$f":"'FR-16(7)(v)-1 Functional'!D165","v":"K217"},null,{"$f":"'FR-16(7)(v)-14 TOTAL CLASS'!K165","v":1166},{"$f":"'FR-16(7)(v)-3 PROD Demand'!K165+'FR-16(7)(v)-7 TRANS Demand'!K165+'FR-16(7)(v)-11 DIST Demand'!K165","v":0},{"$f":"'FR-16(7)(v)-4 PROD Energy'!K165+'FR-16(7)(v)-8 TRANS Energy'!K165+'FR-16(7)(v)-12 DIST Energy'!K165","v":0},{"$f":"'FR-16(7)(v)-5 PROD Cust'!K165+'FR-16(7)(v)-9 TRANS Cust'!K165+'FR-16(7)(v)-13 DIST Cust'!K165","v":1166},1166,0]
[32,null,{"$f":"'FR-16(7)(v)-1 Functional'!C166","v":"METERS"},{"$f":"'FR-16(7)(v)-1 Functional'!D166","v":"K407"},null,{"$f":"'FR-16(7)(v)-14 TOTAL CLASS'!K166","v":1092},{"$f":"'FR-16(7)(v)-3 PROD Demand'!K166+'FR-16(7)(v)-7 TRANS Demand'!K166+'FR-16(7)(v)-11 DIST Demand'!K166","v":0},{"$f":"'FR-16(7)(v)-4 PROD Energy'!K166+'FR-16(7)(v)-8 TRANS Energy'!K166+'FR-16(7)(v)-12 DIST Energy'!K166","v":0},{"$f":"'FR-16(7)(v)-5 PROD Cust'!K166+'FR-16(7)(v)-9 TRANS Cust'!K166+'FR-16(7)(v)-13 DIST Cust'!K166","v":1092},1092,0]
[33,null,{"$f":"'FR-16(7)(v)-1 Functional'!C167","v":"STREET LIGHTS"},{"$f":"'FR-16(7)(v)-1 Functional'!D167","v":"K401"},null,{"$f":"'FR-16(7)(v)-14 TOTAL CLASS'!K167","v":0},{"$f":"'FR-16(7)(v)-3 PROD Demand'!K167+'FR-16(7)(v)-7 TRANS Demand'!K167+'FR-16(7)(v)-11 DIST Demand'!K167","v":0},{"$f":"'FR-16(7)(v)-4 PROD Energy'!K167+'FR-16(7)(v)-8 TRANS Energy'!K167+'FR-16(7)(v)-12 DIST Energy'!K167","v":0},{"$f":"'FR-16(7)(v)-5 PROD Cust'!K167+'FR-16(7)(v)-9 TRANS Cust'!K167+'FR-16(7)(v)-13 DIST Cust'!K167","v":0},0,0]
[34,null,{"$f":"'FR-16(7)(v)-1 Functional'!C168","v":"ADJUSTMENT  "},{"$f":"'FR-16(7)(v)-1 Functional'!D168","v":"K209"},null,{"$f":"'FR-16(7)(v)-14 TOTAL CLASS'!K168","v":39},{"$f":"'FR-16(7)(v)-3 PROD Demand'!K168+'FR-16(7)(v)-7 TRANS Demand'!K168+'FR-16(7)(v)-11 DIST Demand'!K168","v":24},{"$f":"'FR-16(7)(v)-4 PROD Energy'!K168+'FR-16(7)(v)-8 TRANS Energy'!K168+'FR-16(7)(v)-12 DIST Energy'!K168","v":0},{"$f":"'FR-16(7)(v)-5 PROD Cust'!K168+'FR-16(7)(v)-9 TRANS Cust'!K168+'FR-16(7)(v)-13 DIST Cust'!K168","v":15},39,0]
[35,null,{"$f":"'FR-16(7)(v)-1 Functional'!C169","v":"CONSTRUCTION NOT CLASSIFIED"},{"$f":"'FR-16(7)(v)-1 Functional'!D169","v":"K209"},null,{"$f":"'FR-16(7)(v)-14 TOTAL CLASS'!K169","v":127},{"$f":"'FR-16(7)(v)-3 PROD Demand'!K169+'FR-16(7)(v)-7 TRANS Demand'!K169+'FR-16(7)(v)-11 DIST Demand'!K169","v":78},{"$f":"'FR-16(7)(v)-4 PROD Energy'!K169+'FR-16(7)(v)-8 TRANS Energy'!K169+'FR-16(7)(v)-12 DIST Energy'!K169","v":0},{"$f":"'FR-16(7)(v)-5 PROD Cust'!K169+'FR-16(7)(v)-9 TRANS Cust'!K169+'FR-16(7)(v)-13 DIST Cust'!K169","v":49},127,0]
[36,null,{"$f":"'FR-16(7)(v)-1 Functional'!C170","v":"RWIP"},{"$f":"'FR-16(7)(v)-1 Functional'!D170","v":"K215"},null,{"$f":"'FR-16(7)(v)-14 TOTAL CLASS'!K170","v":-1198},{"$f":"'FR-16(7)(v)-3 PROD Demand'!K170+'FR-16(7)(v)-7 TRANS Demand'!K170+'FR-16(7)(v)-11 DIST Demand'!K170","v":-1198},{"$f":"'FR-16(7)(v)-4 PROD Energy'!K170+'FR-16(7)(v)-8 TRANS Energy'!K170+'FR-16(7)(v)-12 DIST Energy'!K170","v":0},{"$f":"'FR-16(7)(v)-5 PROD Cust'!K170+'FR-16(7)(v)-9 TRANS Cust'!K170+'FR-16(7)(v)-13 DIST Cust'!K170","v":0},{"$f":"SUM(G170:I170)","v":-1198},{"$f":"F170-J170","v":0}]
[37,null,{"$f":"'FR-16(7)(v)-1 Functional'!C171","v":"  TOTAL DIST DEPREC RESERVE"},null,null,{"$f":"SUM(F149:F170)","v":11869},{"$f":"SUM(G149:G170)","v":6664},0,5205,11869,0]
[38]
[39,null,"TOTAL TRANS & DIST DEPREC RESERVE",null,null,{"$f":"F171+F145","v":13261},{"$f":"G171+G145","v":8056},{"$f":"H171+H145","v":0},{"$f":"I171+I145","v":5205},{"$f":"J171+J145","v":13261},{"$f":"F173-J173","v":0}]
[40,null,"TOTAL GROSS PTD PLANT DEPREC RESERVE",null,null,{"$f":"F147+F171","v":54347},{"$f":"G147+G171","v":49142},{"$f":"H147+H171","v":0},{"$f":"I147+I171","v":5205},{"$f":"J147+J171","v":54347},{"$f":"F174-J174","v":0}]
[41]
[42,"GENERAL & INTANGIBLE PLANT"]
[43,null,{"$f":"'FR-16(7)(v)-1 Functional'!C177","v":"PRODUCTION - DEMAND"},{"$f":"'FR-16(7)(v)-1 Functional'!D177","v":"K201"},null,{"$f":"'FR-16(7)(v)-14 TOTAL CLASS'!K177","v":377},{"$f":"'FR-16(7)(v)-3 PROD Demand'!K177+'FR-16(7)(v)-7 TRANS Demand'!K177+'FR-16(7)(v)-11 DIST Demand'!K177","v":377},{"$f":"'FR-16(7)(v)-4 PROD Energy'!K177+'FR-16(7)(v)-8 TRANS Energy'!K177+'FR-16(7)(v)-12 DIST Energy'!K177","v":0},{"$f":"'FR-16(7)(v)-5 PROD Cust'!K177+'FR-16(7)(v)-9 TRANS Cust'!K177+'FR-16(7)(v)-13 DIST Cust'!K177","v":0},{"$f":"SUM(G177:I177)","v":377},{"$f":"F177-J177","v":0}]
[44,null,{"$f":"'FR-16(7)(v)-1 Functional'!C178","v":"PRODUCTION - ENERGY"},{"$f":"'FR-16(7)(v)-1 Functional'!D178","v":"K301"},null,{"$f":"'FR-16(7)(v)-14 TOTAL CLASS'!K178","v":440},{"$f":"'FR-16(7)(v)-3 PROD Demand'!K178+'FR-16(7)(v)-7 TRANS Demand'!K178+'FR-16(7)(v)-11 DIST Demand'!K178","v":0},{"$f":"'FR-16(7)(v)-4 PROD Energy'!K178+'FR-16(7)(v)-8 TRANS Energy'!K178+'FR-16(7)(v)-12 DIST Energy'!K178","v":440},{"$f":"'FR-16(7)(v)-5 PROD Cust'!K178+'FR-16(7)(v)-9 TRANS Cust'!K178+'FR-16(7)(v)-13 DIST Cust'!K178","v":0},{"$f":"SUM(G178:I178)","v":440},{"$f":"F178-J178","v":0}]
[45,null,{"$f":"'FR-16(7)(v)-1 Functional'!C179","v":"TRANSMISSION"},{"$f":"'FR-16(7)(v)-1 Functional'!D179","v":"K202"},null,{"$f":"'FR-16(7)(v)-14 TOTAL CLASS'!K179","v":60},{"$f":"'FR-16(7)(v)-3 PROD Demand'!K179+'FR-16(7)(v)-7 TRANS Demand'!K179+'FR-16(7)(v)-11 DIST Demand'!K179","v":60},{"$f":"'FR-16(7)(v)-4 PROD Energy'!K179+'FR-16(7)(v)-8 TRANS Energy'!K179+'FR-16(7)(v)-12 DIST Energy'!K179","v":0},{"$f":"'FR-16(7)(v)-5 PROD Cust'!K179+'FR-16(7)(v)-9 TRANS Cust'!K179+'FR-16(7)(v)-13 DIST Cust'!K179","v":0},60,0]
[46,null,{"$f":"'FR-16(7)(v)-1 Functional'!C180","v":"DISTRIBUTION - DEMAND"},{"$f":"'FR-16(7)(v)-1 Functional'!D180","v":"K201"},null,{"$f":"'FR-16(7)(v)-14 TOTAL CLASS'!K180","v":200},{"$f":"'FR-16(7)(v)-3 PROD Demand'!K180+'FR-16(7)(v)-7 TRANS Demand'!K180+'FR-16(7)(v)-11 DIST Demand'!K180","v":200},{"$f":"'FR-16(7)(v)-4 PROD Energy'!K180+'FR-16(7)(v)-8 TRANS Energy'!K180+'FR-16(7)(v)-12 DIST Energy'!K180","v":0},{"$f":"'FR-16(7)(v)-5 PROD Cust'!K180+'FR-16(7)(v)-9 TRANS Cust'!K180+'FR-16(7)(v)-13 DIST Cust'!K180","v":0},200,0]
[47,null,{"$f":"'FR-16(7)(v)-1 Functional'!C181","v":"DISTRIBUTION - CUSTOMER"},{"$f":"'FR-16(7)(v)-1 Functional'!D181","v":"K405"},null,{"$f":"'FR-16(7)(v)-14 TOTAL CLASS'!K181","v":63},{"$f":"'FR-16(7)(v)-3 PROD Demand'!K181+'FR-16(7)(v)-7 TRANS Demand'!K181+'FR-16(7)(v)-11 DIST Demand'!K181","v":0},{"$f":"'FR-16(7)(v)-4 PROD Energy'!K181+'FR-16(7)(v)-8 TRANS Energy'!K181+'FR-16(7)(v)-12 DIST Energy'!K181","v":0},{"$f":"'FR-16(7)(v)-5 PROD Cust'!K181+'FR-16(7)(v)-9 TRANS Cust'!K181+'FR-16(7)(v)-13 DIST Cust'!K181","v":63},63,0]
[48,null,{"$f":"'FR-16(7)(v)-1 Functional'!C182","v":"CUSTOMER ACCOUNTING"},{"$f":"'FR-16(7)(v)-1 Functional'!D182","v":"A308"},null,{"$f":"'FR-16(7)(v)-14 TOTAL CLASS'!K182","v":405},{"$f":"'FR-16(7)(v)-3 PROD Demand'!K182+'FR-16(7)(v)-7 TRANS Demand'!K182+'FR-16(7)(v)-11 DIST Demand'!K182","v":0},{"$f":"'FR-16(7)(v)-4 PROD Energy'!K182+'FR-16(7)(v)-8 TRANS Energy'!K182+'FR-16(7)(v)-12 DIST Energy'!K182","v":0},{"$f":"'FR-16(7)(v)-5 PROD Cust'!K182+'FR-16(7)(v)-9 TRANS Cust'!K182+'FR-16(7)(v)-13 DIST Cust'!K182","v":405},405,0]
[49,null,{"$f":"'FR-16(7)(v)-1 Functional'!C183","v":"CUSTOMER SERVICE & INFORMATION"},{"$f":"'FR-16(7)(v)-1 Functional'!D183","v":"A310"},null,{"$f":"'FR-16(7)(v)-14 TOTAL CLASS'!K183","v":14},{"$f":"'FR-16(7)(v)-3 PROD Demand'!K183+'FR-16(7)(v)-7 TRANS Demand'!K183+'FR-16(7)(v)-11 DIST Demand'!K183","v":0},{"$f":"'FR-16(7)(v)-4 PROD Energy'!K183+'FR-16(7)(v)-8 TRANS Energy'!K183+'FR-16(7)(v)-12 DIST Energy'!K183","v":0},{"$f":"'FR-16(7)(v)-5 PROD Cust'!K183+'FR-16(7)(v)-9 TRANS Cust'!K183+'FR-16(7)(v)-13 DIST Cust'!K183","v":14},14,0]
[50,null,{"$f":"'FR-16(7)(v)-1 Functional'!C184","v":"SALES"},{"$f":"'FR-16(7)(v)-1 Functional'!D184","v":"A312"},null,{"$f":"'FR-16(7)(v)-14 TOTAL CLASS'!K184","v":0},{"$f":"'FR-16(7)(v)-3 PROD Demand'!K184+'FR-16(7)(v)-7 TRANS Demand'!K184+'FR-16(7)(v)-11 DIST Demand'!K184","v":0},{"$f":"'FR-16(7)(v)-4 PROD Energy'!K184+'FR-16(7)(v)-8 TRANS Energy'!K184+'FR-16(7)(v)-12 DIST Energy'!K184","v":0},{"$f":"'FR-16(7)(v)-5 PROD Cust'!K184+'FR-16(7)(v)-9 TRANS Cust'!K184+'FR-16(7)(v)-13 DIST Cust'!K184","v":0},0,0]
[51,null,{"$f":"'FR-16(7)(v)-1 Functional'!C185","v":"ADJUSTMENT"},{"$f":"'FR-16(7)(v)-1 Functional'!D185","v":"A315"},null,{"$f":"'FR-16(7)(v)-14 TOTAL CLASS'!K185","v":18},{"$f":"'FR-16(7)(v)-3 PROD Demand'!K185+'FR-16(7)(v)-7 TRANS Demand'!K185+'FR-16(7)(v)-11 DIST Demand'!K185","v":1},{"$f":"'FR-16(7)(v)-4 PROD Energy'!K185+'FR-16(7)(v)-8 TRANS Energy'!K185+'FR-16(7)(v)-12 DIST Energy'!K185","v":8},{"$f":"'FR-16(7)(v)-5 PROD Cust'!K185+'FR-16(7)(v)-9 TRANS Cust'!K185+'FR-16(7)(v)-13 DIST Cust'!K185","v":9},18,0]
[52,null,{"$f":"'FR-16(7)(v)-1 Functional'!C186","v":"  GENERAL & INTANG PLANT"},null,null,{"$f":"SUM(F176:F185)","v":1577},638,448,491,1577,0]
[53]
[54,"COMMON & OTHER PLANT"]
[55,null,{"$f":"'FR-16(7)(v)-1 Functional'!C189","v":"PRODUCTION - DEMAND"},{"$f":"'FR-16(7)(v)-1 Functional'!D189","v":"K201"},null,{"$f":"'FR-16(7)(v)-14 TOTAL CLASS'!K189","v":509},{"$f":"'FR-16(7)(v)-3 PROD Demand'!K189+'FR-16(7)(v)-7 TRANS Demand'!K189+'FR-16(7)(v)-11 DIST Demand'!K189","v":509},{"$f":"'FR-16(7)(v)-4 PROD Energy'!K189+'FR-16(7)(v)-8 TRANS Energy'!K189+'FR-16(7)(v)-12 DIST Energy'!K189","v":0},{"$f":"'FR-16(7)(v)-5 PROD Cust'!K189+'FR-16(7)(v)-9 TRANS Cust'!K189+'FR-16(7)(v)-13 DIST Cust'!K189","v":0},{"$f":"SUM(G189:I189)","v":509},{"$f":"F189-J189","v":0}]
[56,null,{"$f":"'FR-16(7)(v)-1 Functional'!C190","v":"PRODUCTION - ENERGY"},{"$f":"'FR-16(7)(v)-1 Functional'!D190","v":"K301"},null,{"$f":"'FR-16(7)(v)-14 TOTAL CLASS'!K190","v":595},{"$f":"'FR-16(7)(v)-3 PROD Demand'!K190+'FR-16(7)(v)-7 TRANS Demand'!K190+'FR-16(7)(v)-11 DIST Demand'!K190","v":0},{"$f":"'FR-16(7)(v)-4 PROD Energy'!K190+'FR-16(7)(v)-8 TRANS Energy'!K190+'FR-16(7)(v)-12 DIST Energy'!K190","v":595},{"$f":"'FR-16(7)(v)-5 PROD Cust'!K190+'FR-16(7)(v)-9 TRANS Cust'!K190+'FR-16(7)(v)-13 DIST Cust'!K190","v":0},{"$f":"SUM(G190:I190)","v":595},{"$f":"F190-J190","v":0}]
[57,null,{"$f":"'FR-16(7)(v)-1 Functional'!C191","v":"TRANSMISSION"},{"$f":"'FR-16(7)(v)-1 Functional'!D191","v":"K202"},null,{"$f":"'FR-16(7)(v)-14 TOTAL CLASS'!K191","v":80},{"$f":"'FR-16(7)(v)-3 PROD Demand'!K191+'FR-16(7)(v)-7 TRANS Demand'!K191+'FR-16(7)(v)-11 DIST Demand'!K191","v":80},{"$f":"'FR-16(7)(v)-4 PROD Energy'!K191+'FR-16(7)(v)-8 TRANS Energy'!K191+'FR-16(7)(v)-12 DIST Energy'!K191","v":0},{"$f":"'FR-16(7)(v)-5 PROD Cust'!K191+'FR-16(7)(v)-9 TRANS Cust'!K191+'FR-16(7)(v)-13 DIST Cust'!K191","v":0},80,0]
[58,null,{"$f":"'FR-16(7)(v)-1 Functional'!C192","v":"DISTRIBUTION - DEMAND"},{"$f":"'FR-16(7)(v)-1 Functional'!D192","v":"K201"},null,{"$f":"'FR-16(7)(v)-14 TOTAL CLASS'!K192","v":270},{"$f":"'FR-16(7)(v)-3 PROD Demand'!K192+'FR-16(7)(v)-7 TRANS Demand'!K192+'FR-16(7)(v)-11 DIST Demand'!K192","v":270},{"$f":"'FR-16(7)(v)-4 PROD Energy'!K192+'FR-16(7)(v)-8 TRANS Energy'!K192+'FR-16(7)(v)-12 DIST Energy'!K192","v":0},{"$f":"'FR-16(7)(v)-5 PROD Cust'!K192+'FR-16(7)(v)-9 TRANS Cust'!K192+'FR-16(7)(v)-13 DIST Cust'!K192","v":0},270,0]
[59,null,{"$f":"'FR-16(7)(v)-1 Functional'!C193","v":"DISTRIBUTION - CUSTOMER"},{"$f":"'FR-16(7)(v)-1 Functional'!D193","v":"K405"},null,{"$f":"'FR-16(7)(v)-14 TOTAL CLASS'!K193","v":85},{"$f":"'FR-16(7)(v)-3 PROD Demand'!K193+'FR-16(7)(v)-7 TRANS Demand'!K193+'FR-16(7)(v)-11 DIST Demand'!K193","v":0},{"$f":"'FR-16(7)(v)-4 PROD Energy'!K193+'FR-16(7)(v)-8 TRANS Energy'!K193+'FR-16(7)(v)-12 DIST Energy'!K193","v":0},{"$f":"'FR-16(7)(v)-5 PROD Cust'!K193+'FR-16(7)(v)-9 TRANS Cust'!K193+'FR-16(7)(v)-13 DIST Cust'!K193","v":85},85,0]
[60,null,{"$f":"'FR-16(7)(v)-1 Functional'!C194","v":"CUSTOMER ACCOUNTING"},{"$f":"'FR-16(7)(v)-1 Functional'!D194","v":"A308"},null,{"$f":"'FR-16(7)(v)-14 TOTAL CLASS'!K194","v":547},{"$f":"'FR-16(7)(v)-3 PROD Demand'!K194+'FR-16(7)(v)-7 TRANS Demand'!K194+'FR-16(7)(v)-11 DIST Demand'!K194","v":0},{"$f":"'FR-16(7)(v)-4 PROD Energy'!K194+'FR-16(7)(v)-8 TRANS Energy'!K194+'FR-16(7)(v)-12 DIST Energy'!K194","v":0},{"$f":"'FR-16(7)(v)-5 PROD Cust'!K194+'FR-16(7)(v)-9 TRANS Cust'!K194+'FR-16(7)(v)-13 DIST Cust'!K194","v":547},547,0]
[61,null,{"$f":"'FR-16(7)(v)-1 Functional'!C195","v":"CUSTOMER SERVICE & INFORMATION"},{"$f":"'FR-16(7)(v)-1 Functional'!D195","v":"A310"},null,{"$f":"'FR-16(7)(v)-14 TOTAL CLASS'!K195","v":19},{"$f":"'FR-16(7)(v)-3 PROD Demand'!K195+'FR-16(7)(v)-7 TRANS Demand'!K195+'FR-16(7)(v)-11 DIST Demand'!K195","v":0},{"$f":"'FR-16(7)(v)-4 PROD Energy'!K195+'FR-16(7)(v)-8 TRANS Energy'!K195+'FR-16(7)(v)-12 DIST Energy'!K195","v":0},{"$f":"'FR-16(7)(v)-5 PROD Cust'!K195+'FR-16(7)(v)-9 TRANS Cust'!K195+'FR-16(7)(v)-13 DIST Cust'!K195","v":19},19,0]
[62,null,{"$f":"'FR-16(7)(v)-1 Functional'!C196","v":"SALES"},{"$f":"'FR-16(7)(v)-1 Functional'!D196","v":"A312"},null,{"$f":"'FR-16(7)(v)-14 TOTAL CLASS'!K196","v":0},{"$f":"'FR-16(7)(v)-3 PROD Demand'!K196+'FR-16(7)(v)-7 TRANS Demand'!K196+'FR-16(7)(v)-11 DIST Demand'!K196","v":0},{"$f":"'FR-16(7)(v)-4 PROD Energy'!K196+'FR-16(7)(v)-8 TRANS Energy'!K196+'FR-16(7)(v)-12 DIST Energy'!K196","v":0},{"$f":"'FR-16(7)(v)-5 PROD Cust'!K196+'FR-16(7)(v)-9 TRANS Cust'!K196+'FR-16(7)(v)-13 DIST Cust'!K196","v":0},0,0]
[63,null,{"$f":"'FR-16(7)(v)-1 Functional'!C197","v":"ADJUSTMENT"},{"$f":"'FR-16(7)(v)-1 Functional'!D197","v":"A315"},null,{"$f":"'FR-16(7)(v)-14 TOTAL CLASS'!K197","v":1},{"$f":"'FR-16(7)(v)-3 PROD Demand'!K197+'FR-16(7)(v)-7 TRANS Demand'!K197+'FR-16(7)(v)-11 DIST Demand'!K197","v":0},{"$f":"'FR-16(7)(v)-4 PROD Energy'!K197+'FR-16(7)(v)-8 TRANS Energy'!K197+'FR-16(7)(v)-12 DIST Energy'!K197","v":0},{"$f":"'FR-16(7)(v)-5 PROD Cust'!K197+'FR-16(7)(v)-9 TRANS Cust'!K197+'FR-16(7)(v)-13 DIST Cust'!K197","v":1},1,0]
[64,null,{"$f":"'FR-16(7)(v)-1 Functional'!C198","v":"  COMMON & OTHER PLANT IN SERVICE"},null,null,{"$f":"SUM(F189:F197)","v":2106},{"$f":"SUM(G188:G197)","v":859},{"$f":"SUM(H188:H197)","v":595},{"$f":"SUM(I188:I197)","v":652},{"$f":"SUM(J188:J197)","v":2106},{"$f":"SUM(K188:K197)","v":0}]
[65]
[66,"TOTAL DEPRECIATION RESERVE",null,null,null,{"$f":"F198+F186+F171+F145+F139","v":58030},50639,1043,6348,58030,0]
[]
[{"$f":"co_name","v":"DUKE ENERGY KENTUCKY, INC."},null,null,null,null,null,null,null,null,{"$f":"J1","v":"FR-16(7)(v)-19"}]
[{"$f":"$A$2","v":"SP SECONDARY CLASSIFIED - ELECTRIC COST OF SERVICE"},null,null,null,null,null,null,null,null,{"$f":"J2","v":"WITNESS RESPONSIBLE:"}]
[{"$f":"case_name","v":"CASE NO: 2019-00271"},null,null,null,null,null,null,null,null,{"$f":"Witness","v":"JAMES E. ZIOLKOWSKI"}]
[{"$f":"data_filing","v":"DATA: 12 MONTHS ACTUAL  & 0 MONTHS ESTIMATED"},null,null,null,null,null,null,null,null,{"$f":"\"PAGE \"&Pages2-11&\" OF \"&Pages2","v":"PAGE 4 OF 15"}]
[{"$f":"type","v":"TYPE OF FILING: \"X\" ORIGINAL   UPDATED    REVISED  "}]
[]
[]
["LINE",null,null,null,null,"TOTAL","CLASSIFIED",null,null,"TOTAL","ALL"]
["NO.",{"$f":"\"NET ELECTRIC PLANT\"","v":"NET ELECTRIC PLANT"},null,"ALLO",null,{"$f":"$F$9","v":"SP SECONDARY"},{"$f":"G9","v":"DEMAND"},"ENERGY","CUSTOMER","AT ISSUE","OTHER"]
[null,null,"Schedule 4",null,null,null,3,4,5]
[1,"PRODUCTION PLANT"]
[2,null,{"$f":"'FR-16(7)(v)-1 Functional'!C213","v":"PRODUCTION STEAM"},null,null,{"$f":"F59-F136","v":30393},30393,0,0,30393,0]
[3,null,{"$f":"'FR-16(7)(v)-1 Functional'!C214","v":"PRODUCTION OTHER"},null,null,13246,13246,0,0,13246,0]
[4,null,{"$f":"'FR-16(7)(v)-1 Functional'!C215","v":"ADJUSTMENT"},null,null,-109,-109,0,0,-109,0]
[5,null,{"$f":"'FR-16(7)(v)-1 Functional'!C216","v":"  NET PRODUCTION PLANT"},null,null,{"$f":"SUM(F213:F215)","v":43530},43530,0,0,43530,0]
[6]
[7,"TRANSMISSION PLANT"]
[8,null,{"$f":"'FR-16(7)(v)-1 Functional'!C219","v":"MAIN STEP-UP TRANSFORMERS"},null,null,{"$f":"F65-F142","v":0},0,0,0,0,0]
[9,null,{"$f":"'FR-16(7)(v)-1 Functional'!C220","v":"OTHER TRANSMISSION"},null,null,3669,3669,0,0,3669,0]
[10,null,{"$f":"'FR-16(7)(v)-1 Functional'!C221","v":"ADJUSTMENT"},null,null,5,5,0,0,5,0]
[11,null,{"$f":"'FR-16(7)(v)-1 Functional'!C222","v":"    NET TRANSMISSION PLANT"},null,null,{"$f":"SUM(F218:F221)","v":3674},3674,0,0,3674,0]
[12]
[13,"NET PROD & TRANS PLANT",null,null,null,{"$f":"F70-F147","v":47204},47204,0,0,47204,0]
[14]
[15,"DISTRIBUTION PLANT"]
[16,null,{"$f":"'FR-16(7)(v)-1 Functional'!C227","v":"SUBSTATIONS"},null,null,{"$f":"F73-F150","v":5074},5074,0,0,5074,0]
[17,null,{"$f":"'FR-16(7)(v)-1 Functional'!C228","v":"POLES, TOWERS  & FIXTURES - PRIMARY - DEMAND"},null,null,1254,1254,0,0,1254,0]
[18,null,{"$f":"'FR-16(7)(v)-1 Functional'!C229","v":"POLES, TOWERS  & FIXTURES - PRIMARY - CUSTOMER"},null,null,{"$f":"F75-F152","v":820},0,0,820,820,0]
[19,null,{"$f":"'FR-16(7)(v)-1 Functional'!C230","v":"POLES, TOWERS  & FIXTURES - SECONDARY - DEMAND"},null,null,{"$f":"F76-F153","v":480},480,0,0,480,0]
[20,null,{"$f":"'FR-16(7)(v)-1 Functional'!C231","v":"POLES, TOWERS  & FIXTURES - SECONDARY - CUSTOMER"},null,null,{"$f":"F77-F154","v":185},0,0,185,185,0]
[21,null,{"$f":"'FR-16(7)(v)-1 Functional'!C232","v":"CONDUCTORS - OVERHEAD / PRIMARY - DEMAND"},null,null,{"$f":"F78-F155","v":3696},3696,0,0,3696,0]
[22,null,{"$f":"'FR-16(7)(v)-1 Functional'!C233","v":"CONDUCTORS - OVERHEAD / PRIMARY - CUSTOMER"},null,null,{"$f":"F79-F156","v":1153},0,0,1153,1153,0]
[23,null,{"$f":"'FR-16(7)(v)-1 Functional'!C234","v":"CONDUCTORS - OVERHEAD / SECONDARY - DEMAND"},null,null,{"$f":"F80-F157","v":1505},1505,0,0,1505,0]
[24,null,{"$f":"'FR-16(7)(v)-1 Functional'!C235","v":"CONDUCTORS - OVERHEAD / SECONDARY - CUSTOMER"},null,null,{"$f":"F81-F158","v":477},0,0,477,477,0]
[25,null,{"$f":"'FR-16(7)(v)-1 Functional'!C236","v":"CONDUCTORS - UNDERGROUND / PRIMARY - DEMAND"},null,null,{"$f":"F82-F159","v":2768},2768,0,0,2768,0]
[26,null,{"$f":"'FR-16(7)(v)-1 Functional'!C237","v":"CONDUCTORS - UNDERGROUND / PRIMARY - CUSTOMER"},null,null,{"$f":"F83-F160","v":1227},0,0,1227,1227,0]
[27,null,{"$f":"'FR-16(7)(v)-1 Functional'!C238","v":"CONDUCTORS - UNDERGROUND / SECONDARY - DEMAND"},null,null,{"$f":"F84-F161","v":474},474,0,0,474,0]
[28,null,{"$f":"'FR-16(7)(v)-1 Functional'!C239","v":"CONDUCTORS - UNDERGROUND / SECONDARY - CUSTOMER"},null,null,{"$f":"F85-F162","v":384},0,0,384,384,0]
[29,null,{"$f":"'FR-16(7)(v)-1 Functional'!C240","v":"TRANSFORMERS DEMAND RELATED"},null,null,{"$f":"F86-F163","v":1863},1863,0,0,1863,0]
[30,null,{"$f":"'FR-16(7)(v)-1 Functional'!C241","v":"TRANSFORMERS CUSTOMER RELATED"},null,null,865,0,0,865,865,0]
[31,null,{"$f":"'FR-16(7)(v)-1 Functional'!C242","v":"SERVICES"},null,null,957,0,0,957,957,0]
[32,null,{"$f":"'FR-16(7)(v)-1 Functional'!C243","v":"METERS"},null,null,3874,0,0,3874,3874,0]
[33,null,{"$f":"'FR-16(7)(v)-1 Functional'!C244","v":"STREET LIGHTS"},null,null,0,0,0,0,0,0]
[34,null,{"$f":"'FR-16(7)(v)-1 Functional'!C245","v":"ADJUSTMENT  "},null,null,-39,-24,0,-15,-39,0]
[35,null,{"$f":"'FR-16(7)(v)-1 Functional'!C246","v":"CONSTRUCTION NOT CLASSIFIED"},null,null,7764,4781,0,2983,7764,0]
[36,null,{"$f":"'FR-16(7)(v)-1 Functional'!C247","v":"RWIP"},null,null,1198,1198,0,0,1198,0]
[37,null,{"$f":"'FR-16(7)(v)-1 Functional'!C248","v":"  NET DISTRIBUTION PLANT"},null,null,{"$f":"SUM(F226:F247)","v":35979},{"$f":"SUM(G226:G247)","v":23069},0,12910,35979,0]
[38]
[39,"NET PTD PLANT",null,null,null,{"$f":"F96-F173","v":39653},26743,0,12910,39653,0]
[40,"NET TRANS & DIST PLANT",null,null,null,83183,70273,0,12910,83183,0]
[41]
[42,"GENERAL & INTANGIBLE PLANT"]
[43,null,{"$f":"'FR-16(7)(v)-1 Functional'!C254","v":"PRODUCTION - DEMAND"},null,null,{"$f":"F100-F177","v":792},792,0,0,792,0]
[44,null,{"$f":"'FR-16(7)(v)-1 Functional'!C255","v":"PRODUCTION - ENERGY"},null,null,926,0,926,0,926,0]
[45,null,{"$f":"'FR-16(7)(v)-1 Functional'!C256","v":"TRANSMISSION"},null,null,125,125,0,0,125,0]
[46,null,{"$f":"'FR-16(7)(v)-1 Functional'!C257","v":"DISTRIBUTION - DEMAND"},null,null,421,421,0,0,421,0]
[47,null,{"$f":"'FR-16(7)(v)-1 Functional'!C258","v":"DISTRIBUTION - CUSTOMER"}]
[48,null,{"$f":"'FR-16(7)(v)-1 Functional'!C259","v":"CUSTOMER ACCOUNTING"},null,null,{"$f":"F105-F182","v":852},0,0,852,852,0]
[49,null,{"$f":"'FR-16(7)(v)-1 Functional'!C260","v":"CUSTOMER SERVICE & INFORMATION"},null,null,29,0,0,29,29,0]
[50,null,{"$f":"'FR-16(7)(v)-1 Functional'!C261","v":"SALES"},null,null,0,0,0,0,0,0]
[51,null,{"$f":"'FR-16(7)(v)-1 Functional'!C262","v":"ADJUSTMENT"},null,null,-18,-1,-8,-9,-18,0]
[52,null,{"$f":"'FR-16(7)(v)-1 Functional'!C263","v":"  NET GENERAL & INTANG PLANT"},null,null,{"$f":"SUM(F253:F262)","v":3127},1337,918,872,3127,0]
[53]
[54,"COMMON & OTHER PLANT"]
[55,null,{"$f":"'FR-16(7)(v)-1 Functional'!C266","v":"PRODUCTION - DEMAND"},null,null,{"$f":"F112-F189","v":153},153,0,0,153,0]
[56,null,{"$f":"'FR-16(7)(v)-1 Functional'!C267","v":"PRODUCTION - ENERGY"},null,null,178,0,178,0,178,0]
[57,null,{"$f":"'FR-16(7)(v)-1 Functional'!C268","v":"TRANSMISSION"},null,null,25,25,0,0,25,0]
[58,null,{"$f":"'FR-16(7)(v)-1 Functional'!C269","v":"DISTRIBUTION - DEMAND"},null,null,81,81,0,0,81,0]
[59,null,{"$f":"'FR-16(7)(v)-1 Functional'!C270","v":"DISTRIBUTION - CUSTOMER"}]
[60,null,{"$f":"'FR-16(7)(v)-1 Functional'!C271","v":"CUSTOMER ACCOUNTING"},null,null,{"$f":"F117-F194","v":165},0,0,165,165,0]
[61,null,{"$f":"'FR-16(7)(v)-1 Functional'!C272","v":"CUSTOMER SERVICE & INFORMATION"},null,null,5,0,0,5,5,0]
[62,null,{"$f":"'FR-16(7)(v)-1 Functional'!C273","v":"SALES"},null,null,0,0,0,0,0,0]
[63,null,{"$f":"'FR-16(7)(v)-1 Functional'!C274","v":"ADJUSTMENT"},null,null,-1,0,0,-1,-1,0]
[64,null,{"$f":"'FR-16(7)(v)-1 Functional'!C275","v":"  COMMON & OTHER PLANT IN SERVICE"},null,null,{"$f":"SUM(F265:F274)","v":606},259,178,169,606,0]
[65]
[66,null,{"$f":"'FR-16(7)(v)-1 Functional'!C277","v":"NET ELECTRIC PLANT IN SERVICE"},null,null,{"$f":"F275+F263+F248+F222+F216","v":86916},71869,1096,13951,86916,0]
[]
[{"$f":"co_name","v":"DUKE ENERGY KENTUCKY, INC."},null,null,null,null,null,null,null,null,{"$f":"J1","v":"FR-16(7)(v)-19"}]
[{"$f":"$A$2","v":"SP SECONDARY CLASSIFIED - ELECTRIC COST OF SERVICE"},null,null,null,null,null,null,null,null,{"$f":"J2","v":"WITNESS RESPONSIBLE:"}]
[{"$f":"case_name","v":"CASE NO: 2019-00271"},null,null,null,null,null,null,null,null,{"$f":"Witness","v":"JAMES E. ZIOLKOWSKI"}]
[{"$f":"data_filing","v":"DATA: 12 MONTHS ACTUAL  & 0 MONTHS ESTIMATED"},null,null,null,null,null,null,null,null,{"$f":"\"PAGE \"&Pages2-10&\" OF \"&Pages2","v":"PAGE 5 OF 15"}]
[{"$f":"type","v":"TYPE OF FILING: \"X\" ORIGINAL   UPDATED    REVISED  "}]
[]
[]
["LINE",null,null,null,null,"TOTAL","CLASSIFIED",null,null,"TOTAL","ALL"]
["NO.","SUBTRACTIVE RATE BASE ADJUSTMENTS",null,"ALLO",null,{"$f":"$F$9","v":"SP SECONDARY"},{"$f":"G9","v":"DEMAND"},"ENERGY","CUSTOMER","AT ISSUE","OTHER"]
[null,null,"Schedule 5",null,null,null,3,4,5]
[1,"RATE BASE ADJUSTMENTS"]
[2,"ACCUMULATED DEFERRED INCOME TAXES"]
[3," ACCUM DEF INC TAXES (282)"]
[4,null,{"$f":"'FR-16(7)(v)-1 Functional'!C292","v":"LIBERALIZED DEPRECIATION"},{"$f":"'FR-16(7)(v)-1 Functional'!D292","v":"NP29"}," ",{"$f":"'FR-16(7)(v)-14 TOTAL CLASS'!K292","v":5176},{"$f":"'FR-16(7)(v)-3 PROD Demand'!K292+'FR-16(7)(v)-7 TRANS Demand'!K292+'FR-16(7)(v)-11 DIST Demand'!K292","v":4260},{"$f":"'FR-16(7)(v)-4 PROD Energy'!K292+'FR-16(7)(v)-8 TRANS Energy'!K292+'FR-16(7)(v)-12 DIST Energy'!K292","v":65},{"$f":"'FR-16(7)(v)-5 PROD Cust'!K292+'FR-16(7)(v)-9 TRANS Cust'!K292+'FR-16(7)(v)-13 DIST Cust'!K292","v":851},{"$f":"SUM(G292:I292)","v":5176},{"$f":"F292-J292","v":0}]
[5,null,{"$f":"'FR-16(7)(v)-1 Functional'!C293","v":"LEASED METERS"},{"$f":"'FR-16(7)(v)-1 Functional'!D293","v":"NP29"}," ",{"$f":"'FR-16(7)(v)-14 TOTAL CLASS'!K293","v":116},{"$f":"'FR-16(7)(v)-3 PROD Demand'!K293+'FR-16(7)(v)-7 TRANS Demand'!K293+'FR-16(7)(v)-11 DIST Demand'!K293","v":96},{"$f":"'FR-16(7)(v)-4 PROD Energy'!K293+'FR-16(7)(v)-8 TRANS Energy'!K293+'FR-16(7)(v)-12 DIST Energy'!K293","v":1},{"$f":"'FR-16(7)(v)-5 PROD Cust'!K293+'FR-16(7)(v)-9 TRANS Cust'!K293+'FR-16(7)(v)-13 DIST Cust'!K293","v":19},116,0]
[6,null,{"$f":"'FR-16(7)(v)-1 Functional'!C294","v":"CONTRIB AID CONSTR"},{"$f":"'FR-16(7)(v)-1 Functional'!D294","v":"D249"}," ",{"$f":"'FR-16(7)(v)-14 TOTAL CLASS'!K294","v":0},{"$f":"'FR-16(7)(v)-3 PROD Demand'!K294+'FR-16(7)(v)-7 TRANS Demand'!K294+'FR-16(7)(v)-11 DIST Demand'!K294","v":0},{"$f":"'FR-16(7)(v)-4 PROD Energy'!K294+'FR-16(7)(v)-8 TRANS Energy'!K294+'FR-16(7)(v)-12 DIST Energy'!K294","v":0},{"$f":"'FR-16(7)(v)-5 PROD Cust'!K294+'FR-16(7)(v)-9 TRANS Cust'!K294+'FR-16(7)(v)-13 DIST Cust'!K294","v":0},0,0]
[7,null,{"$f":"'FR-16(7)(v)-1 Functional'!C295","v":"TAX INTEREST, EXPENSING, DEPR."},{"$f":"'FR-16(7)(v)-1 Functional'!D295","v":"NP29"}," ",{"$f":"'FR-16(7)(v)-14 TOTAL CLASS'!K295","v":5169},{"$f":"'FR-16(7)(v)-3 PROD Demand'!K295+'FR-16(7)(v)-7 TRANS Demand'!K295+'FR-16(7)(v)-11 DIST Demand'!K295","v":4254},{"$f":"'FR-16(7)(v)-4 PROD Energy'!K295+'FR-16(7)(v)-8 TRANS Energy'!K295+'FR-16(7)(v)-12 DIST Energy'!K295","v":65},{"$f":"'FR-16(7)(v)-5 PROD Cust'!K295+'FR-16(7)(v)-9 TRANS Cust'!K295+'FR-16(7)(v)-13 DIST Cust'!K295","v":850},5169,0]
[8,null,{"$f":"'FR-16(7)(v)-1 Functional'!C296","v":"AFUDC IN DEBT"},{"$f":"'FR-16(7)(v)-1 Functional'!D296","v":"NP29"}," ",{"$f":"'FR-16(7)(v)-14 TOTAL CLASS'!K296","v":0},{"$f":"'FR-16(7)(v)-3 PROD Demand'!K296+'FR-16(7)(v)-7 TRANS Demand'!K296+'FR-16(7)(v)-11 DIST Demand'!K296","v":0},{"$f":"'FR-16(7)(v)-4 PROD Energy'!K296+'FR-16(7)(v)-8 TRANS Energy'!K296+'FR-16(7)(v)-12 DIST Energy'!K296","v":0},{"$f":"'FR-16(7)(v)-5 PROD Cust'!K296+'FR-16(7)(v)-9 TRANS Cust'!K296+'FR-16(7)(v)-13 DIST Cust'!K296","v":0},0,0]
[9,null,{"$f":"'FR-16(7)(v)-1 Functional'!C297","v":"CASUALTY LOSS"},{"$f":"'FR-16(7)(v)-1 Functional'!D297","v":"K411"}," ",{"$f":"'FR-16(7)(v)-14 TOTAL CLASS'!K297","v":-4},{"$f":"'FR-16(7)(v)-3 PROD Demand'!K297+'FR-16(7)(v)-7 TRANS Demand'!K297+'FR-16(7)(v)-11 DIST Demand'!K297","v":0},{"$f":"'FR-16(7)(v)-4 PROD Energy'!K297+'FR-16(7)(v)-8 TRANS Energy'!K297+'FR-16(7)(v)-12 DIST Energy'!K297","v":0},{"$f":"'FR-16(7)(v)-5 PROD Cust'!K297+'FR-16(7)(v)-9 TRANS Cust'!K297+'FR-16(7)(v)-13 DIST Cust'!K297","v":-4},-4,0]
[10,null,{"$f":"'FR-16(7)(v)-1 Functional'!C298","v":"NON-CASH OVERHEADS"},{"$f":"'FR-16(7)(v)-1 Functional'!D298","v":"G229"}," ",{"$f":"'FR-16(7)(v)-14 TOTAL CLASS'!K298","v":0},{"$f":"'FR-16(7)(v)-3 PROD Demand'!K298+'FR-16(7)(v)-7 TRANS Demand'!K298+'FR-16(7)(v)-11 DIST Demand'!K298","v":0},{"$f":"'FR-16(7)(v)-4 PROD Energy'!K298+'FR-16(7)(v)-8 TRANS Energy'!K298+'FR-16(7)(v)-12 DIST Energy'!K298","v":0},{"$f":"'FR-16(7)(v)-5 PROD Cust'!K298+'FR-16(7)(v)-9 TRANS Cust'!K298+'FR-16(7)(v)-13 DIST Cust'!K298","v":0},0,0]
[11,null,{"$f":"'FR-16(7)(v)-1 Functional'!C299","v":"PLANT FAS 109"},{"$f":"'FR-16(7)(v)-1 Functional'!D299","v":"NP29"}," ",{"$f":"'FR-16(7)(v)-14 TOTAL CLASS'!K299","v":0},{"$f":"'FR-16(7)(v)-3 PROD Demand'!K299+'FR-16(7)(v)-7 TRANS Demand'!K299+'FR-16(7)(v)-11 DIST Demand'!K299","v":0},{"$f":"'FR-16(7)(v)-4 PROD Energy'!K299+'FR-16(7)(v)-8 TRANS Energy'!K299+'FR-16(7)(v)-12 DIST Energy'!K299","v":0},{"$f":"'FR-16(7)(v)-5 PROD Cust'!K299+'FR-16(7)(v)-9 TRANS Cust'!K299+'FR-16(7)(v)-13 DIST Cust'!K299","v":0},0,0]
[12,null,{"$f":"'FR-16(7)(v)-1 Functional'!C300","v":"MISCELLANEOUS"},{"$f":"'FR-16(7)(v)-1 Functional'!D300","v":"NP29"},null,{"$f":"'FR-16(7)(v)-14 TOTAL CLASS'!K300","v":4876},{"$f":"'FR-16(7)(v)-3 PROD Demand'!K300+'FR-16(7)(v)-7 TRANS Demand'!K300+'FR-16(7)(v)-11 DIST Demand'!K300","v":4013},{"$f":"'FR-16(7)(v)-4 PROD Energy'!K300+'FR-16(7)(v)-8 TRANS Energy'!K300+'FR-16(7)(v)-12 DIST Energy'!K300","v":61},{"$f":"'FR-16(7)(v)-5 PROD Cust'!K300+'FR-16(7)(v)-9 TRANS Cust'!K300+'FR-16(7)(v)-13 DIST Cust'!K300","v":802},4876,0]
[13,null,{"$f":"'FR-16(7)(v)-1 Functional'!C301","v":"  TOTAL ACCOUNT 282"},null,null,{"$f":"SUM(F292:F300)","v":15333},12623,192,2518,15333,0]
[14]
[15," ACCUM DEF INC TAXES (283)"]
[16,null,{"$f":"'FR-16(7)(v)-1 Functional'!C304","v":"TRANSITION FROM MISO TO PJM"},{"$f":"'FR-16(7)(v)-1 Functional'!D304","v":"NP29"},null,{"$f":"'FR-16(7)(v)-14 TOTAL CLASS'!K304","v":-278},{"$f":"'FR-16(7)(v)-3 PROD Demand'!K304+'FR-16(7)(v)-7 TRANS Demand'!K304+'FR-16(7)(v)-11 DIST Demand'!K304","v":-229},{"$f":"'FR-16(7)(v)-4 PROD Energy'!K304+'FR-16(7)(v)-8 TRANS Energy'!K304+'FR-16(7)(v)-12 DIST Energy'!K304","v":-3},{"$f":"'FR-16(7)(v)-5 PROD Cust'!K304+'FR-16(7)(v)-9 TRANS Cust'!K304+'FR-16(7)(v)-13 DIST Cust'!K304","v":-46},{"$f":"SUM(G304:I304)","v":-278},{"$f":"F304-J304","v":0}]
[17,null,{"$f":"'FR-16(7)(v)-1 Functional'!C305","v":"DEFERRED PLANT COSTS"},{"$f":"'FR-16(7)(v)-1 Functional'!D305","v":"NP29"},null,{"$f":"'FR-16(7)(v)-14 TOTAL CLASS'!K305","v":54},{"$f":"'FR-16(7)(v)-3 PROD Demand'!K305+'FR-16(7)(v)-7 TRANS Demand'!K305+'FR-16(7)(v)-11 DIST Demand'!K305","v":44},{"$f":"'FR-16(7)(v)-4 PROD Energy'!K305+'FR-16(7)(v)-8 TRANS Energy'!K305+'FR-16(7)(v)-12 DIST Energy'!K305","v":1},{"$f":"'FR-16(7)(v)-5 PROD Cust'!K305+'FR-16(7)(v)-9 TRANS Cust'!K305+'FR-16(7)(v)-13 DIST Cust'!K305","v":9},54,0]
[18,null,{"$f":"'FR-16(7)(v)-1 Functional'!C306","v":"MISCELLANEOUS"},{"$f":"'FR-16(7)(v)-1 Functional'!D306","v":"OM39"},null,{"$f":"'FR-16(7)(v)-14 TOTAL CLASS'!K306","v":797},{"$f":"'FR-16(7)(v)-3 PROD Demand'!K306+'FR-16(7)(v)-7 TRANS Demand'!K306+'FR-16(7)(v)-11 DIST Demand'!K306","v":158},{"$f":"'FR-16(7)(v)-4 PROD Energy'!K306+'FR-16(7)(v)-8 TRANS Energy'!K306+'FR-16(7)(v)-12 DIST Energy'!K306","v":538},{"$f":"'FR-16(7)(v)-5 PROD Cust'!K306+'FR-16(7)(v)-9 TRANS Cust'!K306+'FR-16(7)(v)-13 DIST Cust'!K306","v":101},797,0]
[19,null,{"$f":"'FR-16(7)(v)-1 Functional'!C307","v":"ENVIRONMENTAL RESERVE"},{"$f":"'FR-16(7)(v)-1 Functional'!D307","v":"NP29"},null,{"$f":"'FR-16(7)(v)-14 TOTAL CLASS'!K307","v":0},{"$f":"'FR-16(7)(v)-3 PROD Demand'!K307+'FR-16(7)(v)-7 TRANS Demand'!K307+'FR-16(7)(v)-11 DIST Demand'!K307","v":0},{"$f":"'FR-16(7)(v)-4 PROD Energy'!K307+'FR-16(7)(v)-8 TRANS Energy'!K307+'FR-16(7)(v)-12 DIST Energy'!K307","v":0},{"$f":"'FR-16(7)(v)-5 PROD Cust'!K307+'FR-16(7)(v)-9 TRANS Cust'!K307+'FR-16(7)(v)-13 DIST Cust'!K307","v":0},0,0]
[20,null,{"$f":"'FR-16(7)(v)-1 Functional'!C308","v":"POST IN-SERVICE CARRYING COSTS"},{"$f":"'FR-16(7)(v)-1 Functional'!D308","v":"NP29"},null,{"$f":"'FR-16(7)(v)-14 TOTAL CLASS'!K308","v":0},{"$f":"'FR-16(7)(v)-3 PROD Demand'!K308+'FR-16(7)(v)-7 TRANS Demand'!K308+'FR-16(7)(v)-11 DIST Demand'!K308","v":0},{"$f":"'FR-16(7)(v)-4 PROD Energy'!K308+'FR-16(7)(v)-8 TRANS Energy'!K308+'FR-16(7)(v)-12 DIST Energy'!K308","v":0},{"$f":"'FR-16(7)(v)-5 PROD Cust'!K308+'FR-16(7)(v)-9 TRANS Cust'!K308+'FR-16(7)(v)-13 DIST Cust'!K308","v":0},0,0]
[21,null,{"$f":"'FR-16(7)(v)-1 Functional'!C309","v":"ARO CUMULATIVE EFFECT"},{"$f":"'FR-16(7)(v)-1 Functional'!D309","v":"NP29"},null,{"$f":"'FR-16(7)(v)-14 TOTAL CLASS'!K309","v":0},{"$f":"'FR-16(7)(v)-3 PROD Demand'!K309+'FR-16(7)(v)-7 TRANS Demand'!K309+'FR-16(7)(v)-11 DIST Demand'!K309","v":0},{"$f":"'FR-16(7)(v)-4 PROD Energy'!K309+'FR-16(7)(v)-8 TRANS Energy'!K309+'FR-16(7)(v)-12 DIST Energy'!K309","v":0},{"$f":"'FR-16(7)(v)-5 PROD Cust'!K309+'FR-16(7)(v)-9 TRANS Cust'!K309+'FR-16(7)(v)-13 DIST Cust'!K309","v":0},0,0]
[22,null,{"$f":"'FR-16(7)(v)-1 Functional'!C310","v":"LOSS ON REACQUIRED DEBT"},{"$f":"'FR-16(7)(v)-1 Functional'!D310","v":"D249"},null,{"$f":"'FR-16(7)(v)-14 TOTAL CLASS'!K310","v":0},{"$f":"'FR-16(7)(v)-3 PROD Demand'!K310+'FR-16(7)(v)-7 TRANS Demand'!K310+'FR-16(7)(v)-11 DIST Demand'!K310","v":0},{"$f":"'FR-16(7)(v)-4 PROD Energy'!K310+'FR-16(7)(v)-8 TRANS Energy'!K310+'FR-16(7)(v)-12 DIST Energy'!K310","v":0},{"$f":"'FR-16(7)(v)-5 PROD Cust'!K310+'FR-16(7)(v)-9 TRANS Cust'!K310+'FR-16(7)(v)-13 DIST Cust'!K310","v":0},0,0]
[23,null,{"$f":"'FR-16(7)(v)-1 Functional'!C311","v":"VACATION PAY ACCRUAL"},{"$f":"'FR-16(7)(v)-1 Functional'!D311","v":"A315"},null,{"$f":"'FR-16(7)(v)-14 TOTAL CLASS'!K311","v":0},{"$f":"'FR-16(7)(v)-3 PROD Demand'!K311+'FR-16(7)(v)-7 TRANS Demand'!K311+'FR-16(7)(v)-11 DIST Demand'!K311","v":0},{"$f":"'FR-16(7)(v)-4 PROD Energy'!K311+'FR-16(7)(v)-8 TRANS Energy'!K311+'FR-16(7)(v)-12 DIST Energy'!K311","v":0},{"$f":"'FR-16(7)(v)-5 PROD Cust'!K311+'FR-16(7)(v)-9 TRANS Cust'!K311+'FR-16(7)(v)-13 DIST Cust'!K311","v":0},0,0]
[24,null,{"$f":"'FR-16(7)(v)-1 Functional'!C312","v":"NON-AMI METERS RETIRED EARLY"},{"$f":"'FR-16(7)(v)-1 Functional'!D312","v":"OM39"},null,{"$f":"'FR-16(7)(v)-14 TOTAL CLASS'!K312","v":95},{"$f":"'FR-16(7)(v)-3 PROD Demand'!K312+'FR-16(7)(v)-7 TRANS Demand'!K312+'FR-16(7)(v)-11 DIST Demand'!K312","v":18},{"$f":"'FR-16(7)(v)-4 PROD Energy'!K312+'FR-16(7)(v)-8 TRANS Energy'!K312+'FR-16(7)(v)-12 DIST Energy'!K312","v":65},{"$f":"'FR-16(7)(v)-5 PROD Cust'!K312+'FR-16(7)(v)-9 TRANS Cust'!K312+'FR-16(7)(v)-13 DIST Cust'!K312","v":12},{"$f":"SUM(G312:I312)","v":95},{"$f":"F312-J312","v":0}]
[25,null,{"$f":"'FR-16(7)(v)-1 Functional'!C313","v":"PENSION EXPENSE"},{"$f":"'FR-16(7)(v)-1 Functional'!D313","v":"A315"},null,{"$f":"'FR-16(7)(v)-14 TOTAL CLASS'!K313","v":448},{"$f":"'FR-16(7)(v)-3 PROD Demand'!K313+'FR-16(7)(v)-7 TRANS Demand'!K313+'FR-16(7)(v)-11 DIST Demand'!K313","v":93},{"$f":"'FR-16(7)(v)-4 PROD Energy'!K313+'FR-16(7)(v)-8 TRANS Energy'!K313+'FR-16(7)(v)-12 DIST Energy'!K313","v":166},{"$f":"'FR-16(7)(v)-5 PROD Cust'!K313+'FR-16(7)(v)-9 TRANS Cust'!K313+'FR-16(7)(v)-13 DIST Cust'!K313","v":189},{"$f":"SUM(G313:I313)","v":448},{"$f":"F313-J313","v":0}]
[26,null,{"$f":"'FR-16(7)(v)-1 Functional'!C314","v":"UNCOLLECTIBLE ACCOUNTS"},{"$f":"'FR-16(7)(v)-1 Functional'!D314","v":"K411"},null,{"$f":"'FR-16(7)(v)-14 TOTAL CLASS'!K314","v":0},{"$f":"'FR-16(7)(v)-3 PROD Demand'!K314+'FR-16(7)(v)-7 TRANS Demand'!K314+'FR-16(7)(v)-11 DIST Demand'!K314","v":0},{"$f":"'FR-16(7)(v)-4 PROD Energy'!K314+'FR-16(7)(v)-8 TRANS Energy'!K314+'FR-16(7)(v)-12 DIST Energy'!K314","v":0},{"$f":"'FR-16(7)(v)-5 PROD Cust'!K314+'FR-16(7)(v)-9 TRANS Cust'!K314+'FR-16(7)(v)-13 DIST Cust'!K314","v":0},0,0]
[27,null,{"$f":"'FR-16(7)(v)-1 Functional'!C315","v":"  TOTAL ACCOUNT 283"},null,null,{"$f":"SUM(F303:F314)","v":1116},84,767,265,1116,0]
[28]
[29," OTHER ACCUMULATED DEFERRED INCOME TAXES"]
[30,null,{"$f":"'FR-16(7)(v)-1 Functional'!C318","v":"EXCESS ADIT"},{"$f":"'FR-16(7)(v)-1 Functional'!D318","v":"NP29"},null,{"$f":"'FR-16(7)(v)-14 TOTAL CLASS'!K318","v":4815},{"$f":"'FR-16(7)(v)-3 PROD Demand'!K318+'FR-16(7)(v)-7 TRANS Demand'!K318+'FR-16(7)(v)-11 DIST Demand'!K318","v":3963},{"$f":"'FR-16(7)(v)-4 PROD Energy'!K318+'FR-16(7)(v)-8 TRANS Energy'!K318+'FR-16(7)(v)-12 DIST Energy'!K318","v":60},{"$f":"'FR-16(7)(v)-5 PROD Cust'!K318+'FR-16(7)(v)-9 TRANS Cust'!K318+'FR-16(7)(v)-13 DIST Cust'!K318","v":792},{"$f":"SUM(G318:I318)","v":4815},{"$f":"F318-J318","v":0}]
[31,null,{"$f":"'FR-16(7)(v)-1 Functional'!C319","v":"CUSTOMER SERVICE DEPOSITS"},{"$f":"'FR-16(7)(v)-1 Functional'!D319","v":"NP29"},null,{"$f":"'FR-16(7)(v)-14 TOTAL CLASS'!K319","v":0},{"$f":"'FR-16(7)(v)-3 PROD Demand'!K319+'FR-16(7)(v)-7 TRANS Demand'!K319+'FR-16(7)(v)-11 DIST Demand'!K319","v":0},{"$f":"'FR-16(7)(v)-4 PROD Energy'!K319+'FR-16(7)(v)-8 TRANS Energy'!K319+'FR-16(7)(v)-12 DIST Energy'!K319","v":0},{"$f":"'FR-16(7)(v)-5 PROD Cust'!K319+'FR-16(7)(v)-9 TRANS Cust'!K319+'FR-16(7)(v)-13 DIST Cust'!K319","v":0},{"$f":"SUM(G319:I319)","v":0},{"$f":"F319-J319","v":0}]
[32,null,{"$f":"'FR-16(7)(v)-1 Functional'!C320","v":"POST RETIREMENT BENEFITS"},{"$f":"'FR-16(7)(v)-1 Functional'!D320","v":"NP29"},null,{"$f":"'FR-16(7)(v)-14 TOTAL CLASS'!K320","v":0},{"$f":"'FR-16(7)(v)-3 PROD Demand'!K320+'FR-16(7)(v)-7 TRANS Demand'!K320+'FR-16(7)(v)-11 DIST Demand'!K320","v":0},{"$f":"'FR-16(7)(v)-4 PROD Energy'!K320+'FR-16(7)(v)-8 TRANS Energy'!K320+'FR-16(7)(v)-12 DIST Energy'!K320","v":0},{"$f":"'FR-16(7)(v)-5 PROD Cust'!K320+'FR-16(7)(v)-9 TRANS Cust'!K320+'FR-16(7)(v)-13 DIST Cust'!K320","v":0},{"$f":"SUM(G320:I320)","v":0},{"$f":"F320-J320","v":0}]
[33,null,{"$f":"'FR-16(7)(v)-1 Functional'!C321","v":"INVESTMENT TAX CREDIT"},{"$f":"'FR-16(7)(v)-1 Functional'!D321","v":"NP29"},null,{"$f":"'FR-16(7)(v)-14 TOTAL CLASS'!K321","v":0},{"$f":"'FR-16(7)(v)-3 PROD Demand'!K321+'FR-16(7)(v)-7 TRANS Demand'!K321+'FR-16(7)(v)-11 DIST Demand'!K321","v":0},{"$f":"'FR-16(7)(v)-4 PROD Energy'!K321+'FR-16(7)(v)-8 TRANS Energy'!K321+'FR-16(7)(v)-12 DIST Energy'!K321","v":0},{"$f":"'FR-16(7)(v)-5 PROD Cust'!K321+'FR-16(7)(v)-9 TRANS Cust'!K321+'FR-16(7)(v)-13 DIST Cust'!K321","v":0},{"$f":"SUM(G321:I321)","v":0},{"$f":"F321-J321","v":0}]
[34,null,{"$f":"'FR-16(7)(v)-1 Functional'!C322","v":"  TOTAL OTHER SUBTRACTIVE ADJUSTMENTS"},null,null,{"$f":"SUM(F317:F321)","v":4815},3963,60,792,4815,0]
[35]
[36,{"$f":"'FR-16(7)(v)-1 Functional'!B324","v":"TOTAL SUBTRACTIVE RATE BASE ADJUSTMENTS"},null,null,null,{"$f":"F322+F315+F301","v":21264},16670,1019,3575,21264,0]
[]
[{"$f":"co_name","v":"DUKE ENERGY KENTUCKY, INC."},null,null,null,null,null,null,null,null,{"$f":"J1","v":"FR-16(7)(v)-19"}]
[{"$f":"$A$2","v":"SP SECONDARY CLASSIFIED - ELECTRIC COST OF SERVICE"},null,null,null,null,null,null,null,null,{"$f":"J2","v":"WITNESS RESPONSIBLE:"}]
[{"$f":"case_name","v":"CASE NO: 2019-00271"},null,null,null,null,null,null,null,null,{"$f":"Witness","v":"JAMES E. ZIOLKOWSKI"}]
[{"$f":"data_filing","v":"DATA: 12 MONTHS ACTUAL  & 0 MONTHS ESTIMATED"},null,null,null,null,null,null,null,null,{"$f":"\"PAGE \"&Pages2-9&\" OF \"&Pages2","v":"PAGE 6 OF 15"}]
[{"$f":"type","v":"TYPE OF FILING: \"X\" ORIGINAL   UPDATED    REVISED  "}]
[]
[]
["LINE",null,null,null,null,"TOTAL","CLASSIFIED",null,null,"TOTAL","ALL"]
["NO.","ADDITIVE RATE BASE ADJUSTMENTS",null,"ALLO",null,{"$f":"$F$9","v":"SP SECONDARY"},{"$f":"G9","v":"DEMAND"},"ENERGY","CUSTOMER","AT ISSUE","OTHER"]
[null,null,"Schedule 5.1",null,null,null,3,4,5]
[1,"OTHER ACCUMULATED DEFERRED INCOME TAXES"]
[2," ACCUM DEF INC TAXES (190)"]
[3,null,{"$f":"'FR-16(7)(v)-1 Functional'!C338","v":"UNCOLLECTIBLE ACCTS"},{"$f":"'FR-16(7)(v)-1 Functional'!D338","v":"K411"},null,{"$f":"'FR-16(7)(v)-14 TOTAL CLASS'!K338","v":1},{"$f":"'FR-16(7)(v)-3 PROD Demand'!K338+'FR-16(7)(v)-7 TRANS Demand'!K338+'FR-16(7)(v)-11 DIST Demand'!K338","v":0},{"$f":"'FR-16(7)(v)-4 PROD Energy'!K338+'FR-16(7)(v)-8 TRANS Energy'!K338+'FR-16(7)(v)-12 DIST Energy'!K338","v":0},{"$f":"'FR-16(7)(v)-5 PROD Cust'!K338+'FR-16(7)(v)-9 TRANS Cust'!K338+'FR-16(7)(v)-13 DIST Cust'!K338","v":1},{"$f":"SUM(G338:I338)","v":1},{"$f":"F338-J338","v":0}]
[4,null,{"$f":"'FR-16(7)(v)-1 Functional'!C339","v":"CASH FLOW HEDGE"},{"$f":"'FR-16(7)(v)-1 Functional'!D339","v":"A315"},null,{"$f":"'FR-16(7)(v)-14 TOTAL CLASS'!K339","v":19},{"$f":"'FR-16(7)(v)-3 PROD Demand'!K339+'FR-16(7)(v)-7 TRANS Demand'!K339+'FR-16(7)(v)-11 DIST Demand'!K339","v":4},{"$f":"'FR-16(7)(v)-4 PROD Energy'!K339+'FR-16(7)(v)-8 TRANS Energy'!K339+'FR-16(7)(v)-12 DIST Energy'!K339","v":7},{"$f":"'FR-16(7)(v)-5 PROD Cust'!K339+'FR-16(7)(v)-9 TRANS Cust'!K339+'FR-16(7)(v)-13 DIST Cust'!K339","v":8},19,0]
[5,null,{"$f":"'FR-16(7)(v)-1 Functional'!C340","v":"RESERVED FOR FUTURE USE"},{"$f":"'FR-16(7)(v)-1 Functional'!D340","v":"NP29"},null,{"$f":"'FR-16(7)(v)-14 TOTAL CLASS'!K340","v":0},{"$f":"'FR-16(7)(v)-3 PROD Demand'!K340+'FR-16(7)(v)-7 TRANS Demand'!K340+'FR-16(7)(v)-11 DIST Demand'!K340","v":0},{"$f":"'FR-16(7)(v)-4 PROD Energy'!K340+'FR-16(7)(v)-8 TRANS Energy'!K340+'FR-16(7)(v)-12 DIST Energy'!K340","v":0},{"$f":"'FR-16(7)(v)-5 PROD Cust'!K340+'FR-16(7)(v)-9 TRANS Cust'!K340+'FR-16(7)(v)-13 DIST Cust'!K340","v":0},0,0]
[6,null,{"$f":"'FR-16(7)(v)-1 Functional'!C341","v":"RESERVED FOR FUTURE USE"},{"$f":"'FR-16(7)(v)-1 Functional'!D341","v":"NP29"},null,{"$f":"'FR-16(7)(v)-14 TOTAL CLASS'!K341","v":0},{"$f":"'FR-16(7)(v)-3 PROD Demand'!K341+'FR-16(7)(v)-7 TRANS Demand'!K341+'FR-16(7)(v)-11 DIST Demand'!K341","v":0},{"$f":"'FR-16(7)(v)-4 PROD Energy'!K341+'FR-16(7)(v)-8 TRANS Energy'!K341+'FR-16(7)(v)-12 DIST Energy'!K341","v":0},{"$f":"'FR-16(7)(v)-5 PROD Cust'!K341+'FR-16(7)(v)-9 TRANS Cust'!K341+'FR-16(7)(v)-13 DIST Cust'!K341","v":0},0,0]
[7,null,{"$f":"'FR-16(7)(v)-1 Functional'!C342","v":"ELECTRIC METERS"},{"$f":"'FR-16(7)(v)-1 Functional'!D342","v":"K407"},null,{"$f":"'FR-16(7)(v)-14 TOTAL CLASS'!K342","v":0},{"$f":"'FR-16(7)(v)-3 PROD Demand'!K342+'FR-16(7)(v)-7 TRANS Demand'!K342+'FR-16(7)(v)-11 DIST Demand'!K342","v":0},{"$f":"'FR-16(7)(v)-4 PROD Energy'!K342+'FR-16(7)(v)-8 TRANS Energy'!K342+'FR-16(7)(v)-12 DIST Energy'!K342","v":0},{"$f":"'FR-16(7)(v)-5 PROD Cust'!K342+'FR-16(7)(v)-9 TRANS Cust'!K342+'FR-16(7)(v)-13 DIST Cust'!K342","v":0},0,0]
[8,null,{"$f":"'FR-16(7)(v)-1 Functional'!C343","v":"UNAMORTIZED DEBT PREMIUM"},{"$f":"'FR-16(7)(v)-1 Functional'!D343","v":"D249"},null,{"$f":"'FR-16(7)(v)-14 TOTAL CLASS'!K343","v":0},{"$f":"'FR-16(7)(v)-3 PROD Demand'!K343+'FR-16(7)(v)-7 TRANS Demand'!K343+'FR-16(7)(v)-11 DIST Demand'!K343","v":0},{"$f":"'FR-16(7)(v)-4 PROD Energy'!K343+'FR-16(7)(v)-8 TRANS Energy'!K343+'FR-16(7)(v)-12 DIST Energy'!K343","v":0},{"$f":"'FR-16(7)(v)-5 PROD Cust'!K343+'FR-16(7)(v)-9 TRANS Cust'!K343+'FR-16(7)(v)-13 DIST Cust'!K343","v":0},0,0]
[9,null,{"$f":"'FR-16(7)(v)-1 Functional'!C344","v":"ARO CUMULATIVE EFFECT"},{"$f":"'FR-16(7)(v)-1 Functional'!D344","v":"NP29"},null,{"$f":"'FR-16(7)(v)-14 TOTAL CLASS'!K344","v":0},{"$f":"'FR-16(7)(v)-3 PROD Demand'!K344+'FR-16(7)(v)-7 TRANS Demand'!K344+'FR-16(7)(v)-11 DIST Demand'!K344","v":0},{"$f":"'FR-16(7)(v)-4 PROD Energy'!K344+'FR-16(7)(v)-8 TRANS Energy'!K344+'FR-16(7)(v)-12 DIST Energy'!K344","v":0},{"$f":"'FR-16(7)(v)-5 PROD Cust'!K344+'FR-16(7)(v)-9 TRANS Cust'!K344+'FR-16(7)(v)-13 DIST Cust'!K344","v":0},0,0]
[10,null,{"$f":"'FR-16(7)(v)-1 Functional'!C345","v":"RETIREMENT PLAN"},{"$f":"'FR-16(7)(v)-1 Functional'!D345","v":"A315"},null,{"$f":"'FR-16(7)(v)-14 TOTAL CLASS'!K345","v":184},{"$f":"'FR-16(7)(v)-3 PROD Demand'!K345+'FR-16(7)(v)-7 TRANS Demand'!K345+'FR-16(7)(v)-11 DIST Demand'!K345","v":38},{"$f":"'FR-16(7)(v)-4 PROD Energy'!K345+'FR-16(7)(v)-8 TRANS Energy'!K345+'FR-16(7)(v)-12 DIST Energy'!K345","v":68},{"$f":"'FR-16(7)(v)-5 PROD Cust'!K345+'FR-16(7)(v)-9 TRANS Cust'!K345+'FR-16(7)(v)-13 DIST Cust'!K345","v":78},184,0]
[11,null,{"$f":"'FR-16(7)(v)-1 Functional'!C346","v":"POST RETIREMENT BENEFITS "},{"$f":"'FR-16(7)(v)-1 Functional'!D346","v":"A315"},null,{"$f":"'FR-16(7)(v)-14 TOTAL CLASS'!K346","v":0},{"$f":"'FR-16(7)(v)-3 PROD Demand'!K346+'FR-16(7)(v)-7 TRANS Demand'!K346+'FR-16(7)(v)-11 DIST Demand'!K346","v":0},{"$f":"'FR-16(7)(v)-4 PROD Energy'!K346+'FR-16(7)(v)-8 TRANS Energy'!K346+'FR-16(7)(v)-12 DIST Energy'!K346","v":0},{"$f":"'FR-16(7)(v)-5 PROD Cust'!K346+'FR-16(7)(v)-9 TRANS Cust'!K346+'FR-16(7)(v)-13 DIST Cust'!K346","v":0},0,0]
[12,null,{"$f":"'FR-16(7)(v)-1 Functional'!C347","v":"POST RETIREMENT BENEFITS - HEALTH CARE"},{"$f":"'FR-16(7)(v)-1 Functional'!D347","v":"A315"},null,{"$f":"'FR-16(7)(v)-14 TOTAL CLASS'!K347","v":0},{"$f":"'FR-16(7)(v)-3 PROD Demand'!K347+'FR-16(7)(v)-7 TRANS Demand'!K347+'FR-16(7)(v)-11 DIST Demand'!K347","v":0},{"$f":"'FR-16(7)(v)-4 PROD Energy'!K347+'FR-16(7)(v)-8 TRANS Energy'!K347+'FR-16(7)(v)-12 DIST Energy'!K347","v":0},{"$f":"'FR-16(7)(v)-5 PROD Cust'!K347+'FR-16(7)(v)-9 TRANS Cust'!K347+'FR-16(7)(v)-13 DIST Cust'!K347","v":0},0,0]
[13,null,{"$f":"'FR-16(7)(v)-1 Functional'!C348","v":"POST EMPLOYMENT BENEFITS - SFAS 112"},{"$f":"'FR-16(7)(v)-1 Functional'!D348","v":"A315"},null,{"$f":"'FR-16(7)(v)-14 TOTAL CLASS'!K348","v":0},{"$f":"'FR-16(7)(v)-3 PROD Demand'!K348+'FR-16(7)(v)-7 TRANS Demand'!K348+'FR-16(7)(v)-11 DIST Demand'!K348","v":0},{"$f":"'FR-16(7)(v)-4 PROD Energy'!K348+'FR-16(7)(v)-8 TRANS Energy'!K348+'FR-16(7)(v)-12 DIST Energy'!K348","v":0},{"$f":"'FR-16(7)(v)-5 PROD Cust'!K348+'FR-16(7)(v)-9 TRANS Cust'!K348+'FR-16(7)(v)-13 DIST Cust'!K348","v":0},0,0]
[14,null,{"$f":"'FR-16(7)(v)-1 Functional'!C349","v":"SUPPLEMENTAL PENSION PLAN"},{"$f":"'FR-16(7)(v)-1 Functional'!D349","v":"A315"},null,{"$f":"'FR-16(7)(v)-14 TOTAL CLASS'!K349","v":0},{"$f":"'FR-16(7)(v)-3 PROD Demand'!K349+'FR-16(7)(v)-7 TRANS Demand'!K349+'FR-16(7)(v)-11 DIST Demand'!K349","v":0},{"$f":"'FR-16(7)(v)-4 PROD Energy'!K349+'FR-16(7)(v)-8 TRANS Energy'!K349+'FR-16(7)(v)-12 DIST Energy'!K349","v":0},{"$f":"'FR-16(7)(v)-5 PROD Cust'!K349+'FR-16(7)(v)-9 TRANS Cust'!K349+'FR-16(7)(v)-13 DIST Cust'!K349","v":0},0,0]
[15,null,{"$f":"'FR-16(7)(v)-1 Functional'!C350","v":"INCENTIVE PLAN"},{"$f":"'FR-16(7)(v)-1 Functional'!D350","v":"A315"},null,{"$f":"'FR-16(7)(v)-14 TOTAL CLASS'!K350","v":0},{"$f":"'FR-16(7)(v)-3 PROD Demand'!K350+'FR-16(7)(v)-7 TRANS Demand'!K350+'FR-16(7)(v)-11 DIST Demand'!K350","v":0},{"$f":"'FR-16(7)(v)-4 PROD Energy'!K350+'FR-16(7)(v)-8 TRANS Energy'!K350+'FR-16(7)(v)-12 DIST Energy'!K350","v":0},{"$f":"'FR-16(7)(v)-5 PROD Cust'!K350+'FR-16(7)(v)-9 TRANS Cust'!K350+'FR-16(7)(v)-13 DIST Cust'!K350","v":0},0,0]
[16,null,{"$f":"'FR-16(7)(v)-1 Functional'!C351","v":"FEDERAL DEFERRED TAX RECEIVEABLE"},{"$f":"'FR-16(7)(v)-1 Functional'!D351","v":"A315"},null,{"$f":"'FR-16(7)(v)-14 TOTAL CLASS'!K351","v":0},{"$f":"'FR-16(7)(v)-3 PROD Demand'!K351+'FR-16(7)(v)-7 TRANS Demand'!K351+'FR-16(7)(v)-11 DIST Demand'!K351","v":0},{"$f":"'FR-16(7)(v)-4 PROD Energy'!K351+'FR-16(7)(v)-8 TRANS Energy'!K351+'FR-16(7)(v)-12 DIST Energy'!K351","v":0},{"$f":"'FR-16(7)(v)-5 PROD Cust'!K351+'FR-16(7)(v)-9 TRANS Cust'!K351+'FR-16(7)(v)-13 DIST Cust'!K351","v":0},0,0]
[17,null,{"$f":"'FR-16(7)(v)-1 Functional'!C352","v":"MISCELLANEOUS"},{"$f":"'FR-16(7)(v)-1 Functional'!D352","v":"A315"},null,{"$f":"'FR-16(7)(v)-14 TOTAL CLASS'!K352","v":594},{"$f":"'FR-16(7)(v)-3 PROD Demand'!K352+'FR-16(7)(v)-7 TRANS Demand'!K352+'FR-16(7)(v)-11 DIST Demand'!K352","v":124},{"$f":"'FR-16(7)(v)-4 PROD Energy'!K352+'FR-16(7)(v)-8 TRANS Energy'!K352+'FR-16(7)(v)-12 DIST Energy'!K352","v":220},{"$f":"'FR-16(7)(v)-5 PROD Cust'!K352+'FR-16(7)(v)-9 TRANS Cust'!K352+'FR-16(7)(v)-13 DIST Cust'!K352","v":250},594,0]
[18,null,{"$f":"'FR-16(7)(v)-1 Functional'!C353","v":"DEFERRED TAX"},{"$f":"'FR-16(7)(v)-1 Functional'!D353","v":"A315"},null,{"$f":"'FR-16(7)(v)-14 TOTAL CLASS'!K353","v":271},{"$f":"'FR-16(7)(v)-3 PROD Demand'!K353+'FR-16(7)(v)-7 TRANS Demand'!K353+'FR-16(7)(v)-11 DIST Demand'!K353","v":57},{"$f":"'FR-16(7)(v)-4 PROD Energy'!K353+'FR-16(7)(v)-8 TRANS Energy'!K353+'FR-16(7)(v)-12 DIST Energy'!K353","v":100},{"$f":"'FR-16(7)(v)-5 PROD Cust'!K353+'FR-16(7)(v)-9 TRANS Cust'!K353+'FR-16(7)(v)-13 DIST Cust'!K353","v":114},271,0]
[19,null,{"$f":"'FR-16(7)(v)-1 Functional'!C354","v":"NET OPERATING LOSS"},{"$f":"'FR-16(7)(v)-1 Functional'!D354","v":"NP29"},null,{"$f":"'FR-16(7)(v)-14 TOTAL CLASS'!K354","v":0},{"$f":"'FR-16(7)(v)-3 PROD Demand'!K354+'FR-16(7)(v)-7 TRANS Demand'!K354+'FR-16(7)(v)-11 DIST Demand'!K354","v":0},{"$f":"'FR-16(7)(v)-4 PROD Energy'!K354+'FR-16(7)(v)-8 TRANS Energy'!K354+'FR-16(7)(v)-12 DIST Energy'!K354","v":0},{"$f":"'FR-16(7)(v)-5 PROD Cust'!K354+'FR-16(7)(v)-9 TRANS Cust'!K354+'FR-16(7)(v)-13 DIST Cust'!K354","v":0},0,0]
[20,null,{"$f":"'FR-16(7)(v)-1 Functional'!C355","v":"401K INCENTIVE PLAN"},{"$f":"'FR-16(7)(v)-1 Functional'!D355","v":"A315"},null,{"$f":"'FR-16(7)(v)-14 TOTAL CLASS'!K355","v":0},{"$f":"'FR-16(7)(v)-3 PROD Demand'!K355+'FR-16(7)(v)-7 TRANS Demand'!K355+'FR-16(7)(v)-11 DIST Demand'!K355","v":0},{"$f":"'FR-16(7)(v)-4 PROD Energy'!K355+'FR-16(7)(v)-8 TRANS Energy'!K355+'FR-16(7)(v)-12 DIST Energy'!K355","v":0},{"$f":"'FR-16(7)(v)-5 PROD Cust'!K355+'FR-16(7)(v)-9 TRANS Cust'!K355+'FR-16(7)(v)-13 DIST Cust'!K355","v":0},0,0]
[21,null,{"$f":"'FR-16(7)(v)-1 Functional'!C356","v":"ENVIRONMENTAL RESERVE"},{"$f":"'FR-16(7)(v)-1 Functional'!D356","v":"NP29"},null,{"$f":"'FR-16(7)(v)-14 TOTAL CLASS'!K356","v":0},{"$f":"'FR-16(7)(v)-3 PROD Demand'!K356+'FR-16(7)(v)-7 TRANS Demand'!K356+'FR-16(7)(v)-11 DIST Demand'!K356","v":0},{"$f":"'FR-16(7)(v)-4 PROD Energy'!K356+'FR-16(7)(v)-8 TRANS Energy'!K356+'FR-16(7)(v)-12 DIST Energy'!K356","v":0},{"$f":"'FR-16(7)(v)-5 PROD Cust'!K356+'FR-16(7)(v)-9 TRANS Cust'!K356+'FR-16(7)(v)-13 DIST Cust'!K356","v":0},0,0]
[22,null,{"$f":"'FR-16(7)(v)-1 Functional'!C357","v":"VACATION PAY ACCRUALS"},{"$f":"'FR-16(7)(v)-1 Functional'!D357","v":"A315"},null,{"$f":"'FR-16(7)(v)-14 TOTAL CLASS'!K357","v":29},{"$f":"'FR-16(7)(v)-3 PROD Demand'!K357+'FR-16(7)(v)-7 TRANS Demand'!K357+'FR-16(7)(v)-11 DIST Demand'!K357","v":6},{"$f":"'FR-16(7)(v)-4 PROD Energy'!K357+'FR-16(7)(v)-8 TRANS Energy'!K357+'FR-16(7)(v)-12 DIST Energy'!K357","v":11},{"$f":"'FR-16(7)(v)-5 PROD Cust'!K357+'FR-16(7)(v)-9 TRANS Cust'!K357+'FR-16(7)(v)-13 DIST Cust'!K357","v":12},29,0]
[23,null,{"$f":"'FR-16(7)(v)-1 Functional'!C358","v":"DEMAND SIDE MANAGEMENT DEFERRAL"},{"$f":"'FR-16(7)(v)-1 Functional'!D358","v":"NP29"},null,{"$f":"'FR-16(7)(v)-14 TOTAL CLASS'!K358","v":49},{"$f":"'FR-16(7)(v)-3 PROD Demand'!K358+'FR-16(7)(v)-7 TRANS Demand'!K358+'FR-16(7)(v)-11 DIST Demand'!K358","v":40},{"$f":"'FR-16(7)(v)-4 PROD Energy'!K358+'FR-16(7)(v)-8 TRANS Energy'!K358+'FR-16(7)(v)-12 DIST Energy'!K358","v":1},{"$f":"'FR-16(7)(v)-5 PROD Cust'!K358+'FR-16(7)(v)-9 TRANS Cust'!K358+'FR-16(7)(v)-13 DIST Cust'!K358","v":8},49,0]
[24,null,{"$f":"'FR-16(7)(v)-1 Functional'!C359","v":"OPERATING LEASE OBLIGATION"},{"$f":"'FR-16(7)(v)-1 Functional'!D359","v":"NP29"},null,{"$f":"'FR-16(7)(v)-14 TOTAL CLASS'!K359","v":177},{"$f":"'FR-16(7)(v)-3 PROD Demand'!K359+'FR-16(7)(v)-7 TRANS Demand'!K359+'FR-16(7)(v)-11 DIST Demand'!K359","v":146},{"$f":"'FR-16(7)(v)-4 PROD Energy'!K359+'FR-16(7)(v)-8 TRANS Energy'!K359+'FR-16(7)(v)-12 DIST Energy'!K359","v":2},{"$f":"'FR-16(7)(v)-5 PROD Cust'!K359+'FR-16(7)(v)-9 TRANS Cust'!K359+'FR-16(7)(v)-13 DIST Cust'!K359","v":29},177,0]
[25,null,{"$f":"'FR-16(7)(v)-1 Functional'!C360","v":"INJURIES & DAMAGES"},{"$f":"'FR-16(7)(v)-1 Functional'!D360","v":"NP29"},null,{"$f":"'FR-16(7)(v)-14 TOTAL CLASS'!K360","v":0},{"$f":"'FR-16(7)(v)-3 PROD Demand'!K360+'FR-16(7)(v)-7 TRANS Demand'!K360+'FR-16(7)(v)-11 DIST Demand'!K360","v":0},{"$f":"'FR-16(7)(v)-4 PROD Energy'!K360+'FR-16(7)(v)-8 TRANS Energy'!K360+'FR-16(7)(v)-12 DIST Energy'!K360","v":0},{"$f":"'FR-16(7)(v)-5 PROD Cust'!K360+'FR-16(7)(v)-9 TRANS Cust'!K360+'FR-16(7)(v)-13 DIST Cust'!K360","v":0},0,0]
[26,null,{"$f":"'FR-16(7)(v)-1 Functional'!C361","v":"  TOTAL ACCOUNT 190"},null,null,{"$f":"SUM(F337:F360)","v":1324},415,409,500,1324,0]
[27]
[28," OTHER"]
[29,null,{"$f":"'FR-16(7)(v)-1 Functional'!C364","v":"RESERVED FOR FUTURE USE"},{"$f":"'FR-16(7)(v)-1 Functional'!D364","v":"NP29"},null,{"$f":"'FR-16(7)(v)-14 TOTAL CLASS'!K364","v":0},{"$f":"'FR-16(7)(v)-3 PROD Demand'!K364+'FR-16(7)(v)-7 TRANS Demand'!K364+'FR-16(7)(v)-11 DIST Demand'!K364","v":0},{"$f":"'FR-16(7)(v)-4 PROD Energy'!K364+'FR-16(7)(v)-8 TRANS Energy'!K364+'FR-16(7)(v)-12 DIST Energy'!K364","v":0},{"$f":"'FR-16(7)(v)-5 PROD Cust'!K364+'FR-16(7)(v)-9 TRANS Cust'!K364+'FR-16(7)(v)-13 DIST Cust'!K364","v":0},{"$f":"SUM(G364:I364)","v":0},{"$f":"F364-J364","v":0}]
[30,null,{"$f":"'FR-16(7)(v)-1 Functional'!C365","v":"RATE CASE EXPENSE REGULATORY ASSET"},{"$f":"'FR-16(7)(v)-1 Functional'!D365","v":"NP29"},null,{"$f":"'FR-16(7)(v)-14 TOTAL CLASS'!K365","v":72},{"$f":"'FR-16(7)(v)-3 PROD Demand'!K365+'FR-16(7)(v)-7 TRANS Demand'!K365+'FR-16(7)(v)-11 DIST Demand'!K365","v":59},{"$f":"'FR-16(7)(v)-4 PROD Energy'!K365+'FR-16(7)(v)-8 TRANS Energy'!K365+'FR-16(7)(v)-12 DIST Energy'!K365","v":1},{"$f":"'FR-16(7)(v)-5 PROD Cust'!K365+'FR-16(7)(v)-9 TRANS Cust'!K365+'FR-16(7)(v)-13 DIST Cust'!K365","v":12},{"$f":"SUM(G365:I365)","v":72},{"$f":"F365-J365","v":0}]
[31,null,{"$f":"'FR-16(7)(v)-1 Functional'!C366","v":"RESERVED FOR FUTURE USE"},{"$f":"'FR-16(7)(v)-1 Functional'!D366","v":"NP29"},null,{"$f":"'FR-16(7)(v)-14 TOTAL CLASS'!K366","v":0},{"$f":"'FR-16(7)(v)-3 PROD Demand'!K366+'FR-16(7)(v)-7 TRANS Demand'!K366+'FR-16(7)(v)-11 DIST Demand'!K366","v":0},{"$f":"'FR-16(7)(v)-4 PROD Energy'!K366+'FR-16(7)(v)-8 TRANS Energy'!K366+'FR-16(7)(v)-12 DIST Energy'!K366","v":0},{"$f":"'FR-16(7)(v)-5 PROD Cust'!K366+'FR-16(7)(v)-9 TRANS Cust'!K366+'FR-16(7)(v)-13 DIST Cust'!K366","v":0},{"$f":"SUM(G366:I366)","v":0},{"$f":"F366-J366","v":0}]
[32,null,{"$f":"'FR-16(7)(v)-1 Functional'!C367","v":"  OTHER"},null,null,{"$f":"SUM(F364:F366)","v":72},{"$f":"SUM(G363:G366)","v":59},{"$f":"SUM(H363:H366)","v":1},{"$f":"SUM(I363:I366)","v":12},{"$f":"SUM(J363:J366)","v":72},{"$f":"SUM(K363:K366)","v":0}]
[33,null,null,null,null," "]
[34,"CONSTRUCTION WORK IN PROGRESS"]
[35,null,{"$f":"'FR-16(7)(v)-1 Functional'!C370","v":"PRODUCTION"},{"$f":"'FR-16(7)(v)-1 Functional'!D370","v":"P129"},null,{"$f":"'FR-16(7)(v)-14 TOTAL CLASS'!K370","v":0},{"$f":"'FR-16(7)(v)-3 PROD Demand'!K370+'FR-16(7)(v)-7 TRANS Demand'!K370+'FR-16(7)(v)-11 DIST Demand'!K370","v":0},{"$f":"'FR-16(7)(v)-4 PROD Energy'!K370+'FR-16(7)(v)-8 TRANS Energy'!K370+'FR-16(7)(v)-12 DIST Energy'!K370","v":0},{"$f":"'FR-16(7)(v)-5 PROD Cust'!K370+'FR-16(7)(v)-9 TRANS Cust'!K370+'FR-16(7)(v)-13 DIST Cust'!K370","v":0},{"$f":"SUM(G370:I370)","v":0},{"$f":"F370-J370","v":0}]
[36,null,{"$f":"'FR-16(7)(v)-1 Functional'!C371","v":"TRANSMISSION"},{"$f":"'FR-16(7)(v)-1 Functional'!D371","v":"T129"},null,{"$f":"'FR-16(7)(v)-14 TOTAL CLASS'!K371","v":0},{"$f":"'FR-16(7)(v)-3 PROD Demand'!K371+'FR-16(7)(v)-7 TRANS Demand'!K371+'FR-16(7)(v)-11 DIST Demand'!K371","v":0},{"$f":"'FR-16(7)(v)-4 PROD Energy'!K371+'FR-16(7)(v)-8 TRANS Energy'!K371+'FR-16(7)(v)-12 DIST Energy'!K371","v":0},{"$f":"'FR-16(7)(v)-5 PROD Cust'!K371+'FR-16(7)(v)-9 TRANS Cust'!K371+'FR-16(7)(v)-13 DIST Cust'!K371","v":0},{"$f":"SUM(G371:I371)","v":0},{"$f":"F371-J371","v":0}]
[37,null,{"$f":"'FR-16(7)(v)-1 Functional'!C372","v":"DISTRIBUTION"},{"$f":"'FR-16(7)(v)-1 Functional'!D372","v":"D149"},null,{"$f":"'FR-16(7)(v)-14 TOTAL CLASS'!K372","v":0},{"$f":"'FR-16(7)(v)-3 PROD Demand'!K372+'FR-16(7)(v)-7 TRANS Demand'!K372+'FR-16(7)(v)-11 DIST Demand'!K372","v":0},{"$f":"'FR-16(7)(v)-4 PROD Energy'!K372+'FR-16(7)(v)-8 TRANS Energy'!K372+'FR-16(7)(v)-12 DIST Energy'!K372","v":0},{"$f":"'FR-16(7)(v)-5 PROD Cust'!K372+'FR-16(7)(v)-9 TRANS Cust'!K372+'FR-16(7)(v)-13 DIST Cust'!K372","v":0},{"$f":"SUM(G372:I372)","v":0},{"$f":"F372-J372","v":0}]
[38,null,{"$f":"'FR-16(7)(v)-1 Functional'!C373","v":"COMMON"},{"$f":"'FR-16(7)(v)-1 Functional'!D373","v":"C129"},null,{"$f":"'FR-16(7)(v)-14 TOTAL CLASS'!K373","v":0},{"$f":"'FR-16(7)(v)-3 PROD Demand'!K373+'FR-16(7)(v)-7 TRANS Demand'!K373+'FR-16(7)(v)-11 DIST Demand'!K373","v":0},{"$f":"'FR-16(7)(v)-4 PROD Energy'!K373+'FR-16(7)(v)-8 TRANS Energy'!K373+'FR-16(7)(v)-12 DIST Energy'!K373","v":0},{"$f":"'FR-16(7)(v)-5 PROD Cust'!K373+'FR-16(7)(v)-9 TRANS Cust'!K373+'FR-16(7)(v)-13 DIST Cust'!K373","v":0},{"$f":"SUM(G373:I373)","v":0},{"$f":"F373-J373","v":0}]
[39,null,{"$f":"'FR-16(7)(v)-1 Functional'!C374","v":"GENERAL"},{"$f":"'FR-16(7)(v)-1 Functional'!D374","v":"G129"},null,{"$f":"'FR-16(7)(v)-14 TOTAL CLASS'!K374","v":0},{"$f":"'FR-16(7)(v)-3 PROD Demand'!K374+'FR-16(7)(v)-7 TRANS Demand'!K374+'FR-16(7)(v)-11 DIST Demand'!K374","v":0},{"$f":"'FR-16(7)(v)-4 PROD Energy'!K374+'FR-16(7)(v)-8 TRANS Energy'!K374+'FR-16(7)(v)-12 DIST Energy'!K374","v":0},{"$f":"'FR-16(7)(v)-5 PROD Cust'!K374+'FR-16(7)(v)-9 TRANS Cust'!K374+'FR-16(7)(v)-13 DIST Cust'!K374","v":0},{"$f":"SUM(G374:I374)","v":0},{"$f":"F374-J374","v":0}]
[40,null,{"$f":"'FR-16(7)(v)-1 Functional'!C375","v":"TOTAL CONSTRUCTION WORK IN PROGRESS"},null,null,{"$f":"SUM(F370:F374)","v":0},0,0,0,0,0]
[41]
[42,{"$f":"'FR-16(7)(v)-1 Functional'!B377","v":"TOTAL ADDITIVE RATE BASE ADJUSTMENTS"},null,null,null,{"$f":"F361+F367+F375","v":1396},474,410,512,1396,0]
[]
[{"$f":"co_name","v":"DUKE ENERGY KENTUCKY, INC."},null,null,null,null,null,null,null,null,{"$f":"J1","v":"FR-16(7)(v)-19"}]
[{"$f":"$A$2","v":"SP SECONDARY CLASSIFIED - ELECTRIC COST OF SERVICE"},null,null,null,null,null,null,null,null,{"$f":"J2","v":"WITNESS RESPONSIBLE:"}]
[{"$f":"case_name","v":"CASE NO: 2019-00271"},null,null,null,null,null,null,null,null,{"$f":"Witness","v":"JAMES E. ZIOLKOWSKI"}]
[{"$f":"data_filing","v":"DATA: 12 MONTHS ACTUAL  & 0 MONTHS ESTIMATED"},null,null,null,null,null,null,null,null,{"$f":"\"PAGE \"&Pages2-8&\" OF \"&Pages2","v":"PAGE 7 OF 15"}]
[{"$f":"type","v":"TYPE OF FILING: \"X\" ORIGINAL   UPDATED    REVISED  "}]
[]
[]
["LINE",null,null,null,null,"TOTAL","CLASSIFIED",null,null,"TOTAL","ALL"]
["NO.","WORKING CAPITAL",null,"ALLO",null,{"$f":"$F$9","v":"SP SECONDARY"},{"$f":"G9","v":"DEMAND"},"ENERGY","CUSTOMER","AT ISSUE","OTHER"]
[null,null,"Schedule 5.2",null,null,null,3,4,5]
[]
[1,"NET ORIGINAL COST RATE BASE",null,null,null,{"$f":"F277-F324+F377","v":67048},55673,487,10888,67048,0]
[2]
[3,"WORKING CAPITAL"]
[4]
[5,"PLANT MATERIALS & SUPPLIES"]
[6,null,{"$f":"'FR-16(7)(v)-1 Functional'!C395","v":"OTHER MATERIALS & SUPPLIES"},{"$f":"'FR-16(7)(v)-1 Functional'!D395","v":"PD29"},null,{"$f":"'FR-16(7)(v)-14 TOTAL CLASS'!K395","v":1897},{"$f":"'FR-16(7)(v)-3 PROD Demand'!K395+'FR-16(7)(v)-7 TRANS Demand'!K395+'FR-16(7)(v)-11 DIST Demand'!K395","v":535},{"$f":"'FR-16(7)(v)-4 PROD Energy'!K395+'FR-16(7)(v)-8 TRANS Energy'!K395+'FR-16(7)(v)-12 DIST Energy'!K395","v":369},{"$f":"'FR-16(7)(v)-5 PROD Cust'!K395+'FR-16(7)(v)-9 TRANS Cust'!K395+'FR-16(7)(v)-13 DIST Cust'!K395","v":993},{"$f":"SUM(G395:I395)","v":1897},{"$f":"F395-J395","v":0}]
[7,null,{"$f":"'FR-16(7)(v)-1 Functional'!C396","v":"FUEL"},{"$f":"'FR-16(7)(v)-1 Functional'!D396","v":"K301"},null,{"$f":"'FR-16(7)(v)-14 TOTAL CLASS'!K396","v":1366},{"$f":"'FR-16(7)(v)-3 PROD Demand'!K396+'FR-16(7)(v)-7 TRANS Demand'!K396+'FR-16(7)(v)-11 DIST Demand'!K396","v":0},{"$f":"'FR-16(7)(v)-4 PROD Energy'!K396+'FR-16(7)(v)-8 TRANS Energy'!K396+'FR-16(7)(v)-12 DIST Energy'!K396","v":1366},{"$f":"'FR-16(7)(v)-5 PROD Cust'!K396+'FR-16(7)(v)-9 TRANS Cust'!K396+'FR-16(7)(v)-13 DIST Cust'!K396","v":0},{"$f":"SUM(G396:I396)","v":1366},{"$f":"F396-J396","v":0}]
[8,null,{"$f":"'FR-16(7)(v)-1 Functional'!C397","v":"EMISSION ALLOWANCES"},{"$f":"'FR-16(7)(v)-1 Functional'!D397","v":"K301"},null,{"$f":"'FR-16(7)(v)-14 TOTAL CLASS'!K397","v":0},{"$f":"'FR-16(7)(v)-3 PROD Demand'!K397+'FR-16(7)(v)-7 TRANS Demand'!K397+'FR-16(7)(v)-11 DIST Demand'!K397","v":0},{"$f":"'FR-16(7)(v)-4 PROD Energy'!K397+'FR-16(7)(v)-8 TRANS Energy'!K397+'FR-16(7)(v)-12 DIST Energy'!K397","v":0},{"$f":"'FR-16(7)(v)-5 PROD Cust'!K397+'FR-16(7)(v)-9 TRANS Cust'!K397+'FR-16(7)(v)-13 DIST Cust'!K397","v":0},{"$f":"SUM(G397:I397)","v":0},{"$f":"F397-J397","v":0}]
[9,null,{"$f":"'FR-16(7)(v)-1 Functional'!C398","v":"  TOTAL PLANT MATS. & SUPPLIES"},null,null,{"$f":"SUM(F394:F397)","v":3263},535,1735,993,3263,0]
[10,"TOTAL MATERIALS & SUPPLIES",null,null,null,{"$f":"F398","v":3263},535,1735,993,3263,0]
[11]
[12,"PREPAYMENTS"]
[13,null,{"$f":"'FR-16(7)(v)-1 Functional'!C402","v":"INSURANCE GENERAL"},{"$f":"'FR-16(7)(v)-1 Functional'!D402","v":"NP29"},null,{"$f":"'FR-16(7)(v)-14 TOTAL CLASS'!K402","v":21},{"$f":"'FR-16(7)(v)-3 PROD Demand'!K402+'FR-16(7)(v)-7 TRANS Demand'!K402+'FR-16(7)(v)-11 DIST Demand'!K402","v":18},{"$f":"'FR-16(7)(v)-4 PROD Energy'!K402+'FR-16(7)(v)-8 TRANS Energy'!K402+'FR-16(7)(v)-12 DIST Energy'!K402","v":0},{"$f":"'FR-16(7)(v)-5 PROD Cust'!K402+'FR-16(7)(v)-9 TRANS Cust'!K402+'FR-16(7)(v)-13 DIST Cust'!K402","v":3},{"$f":"SUM(G402:I402)","v":21},{"$f":"F402-J402","v":0}]
[14,null,{"$f":"'FR-16(7)(v)-1 Functional'!C403","v":"EXCISE TAX"},{"$f":"'FR-16(7)(v)-1 Functional'!D403","v":"NP29"},null,{"$f":"'FR-16(7)(v)-14 TOTAL CLASS'!K403","v":0},{"$f":"'FR-16(7)(v)-3 PROD Demand'!K403+'FR-16(7)(v)-7 TRANS Demand'!K403+'FR-16(7)(v)-11 DIST Demand'!K403","v":0},{"$f":"'FR-16(7)(v)-4 PROD Energy'!K403+'FR-16(7)(v)-8 TRANS Energy'!K403+'FR-16(7)(v)-12 DIST Energy'!K403","v":0},{"$f":"'FR-16(7)(v)-5 PROD Cust'!K403+'FR-16(7)(v)-9 TRANS Cust'!K403+'FR-16(7)(v)-13 DIST Cust'!K403","v":0},{"$f":"SUM(G403:I403)","v":0},{"$f":"F403-J403","v":0}]
[15,null,{"$f":"'FR-16(7)(v)-1 Functional'!C404","v":"COLLATERAL ASSET"},{"$f":"'FR-16(7)(v)-1 Functional'!D404","v":"K301"},null,{"$f":"'FR-16(7)(v)-14 TOTAL CLASS'!K404","v":-3},{"$f":"'FR-16(7)(v)-3 PROD Demand'!K404+'FR-16(7)(v)-7 TRANS Demand'!K404+'FR-16(7)(v)-11 DIST Demand'!K404","v":0},{"$f":"'FR-16(7)(v)-4 PROD Energy'!K404+'FR-16(7)(v)-8 TRANS Energy'!K404+'FR-16(7)(v)-12 DIST Energy'!K404","v":-3},{"$f":"'FR-16(7)(v)-5 PROD Cust'!K404+'FR-16(7)(v)-9 TRANS Cust'!K404+'FR-16(7)(v)-13 DIST Cust'!K404","v":0},{"$f":"SUM(G404:I404)","v":-3},{"$f":"F404-J404","v":0}]
[16,null,{"$f":"'FR-16(7)(v)-1 Functional'!C405","v":"  TOTAL PREPAYMENTS"},null,null,{"$f":"SUM(F401:F404)","v":18},18,-3,3,18,0]
[17]
[18,"AUTO CALC (O&M-ELECTRIC FUEL COST)/8",null,null,null,{"$f":"'FR-16(7)(v)-14 TOTAL CLASS'!K407","v":1048},{"$f":"'FR-16(7)(v)-3 PROD Demand'!K407+'FR-16(7)(v)-7 TRANS Demand'!K407+'FR-16(7)(v)-11 DIST Demand'!K407","v":1048},{"$f":"'FR-16(7)(v)-4 PROD Energy'!K407+'FR-16(7)(v)-8 TRANS Energy'!K407+'FR-16(7)(v)-12 DIST Energy'!K407","v":0},{"$f":"'FR-16(7)(v)-5 PROD Cust'!K407+'FR-16(7)(v)-9 TRANS Cust'!K407+'FR-16(7)(v)-13 DIST Cust'!K407","v":0},{"$f":"SUM(G407:I407)","v":1048},{"$f":"F407-J407","v":0}]
[19,"  TOTAL WORKING CASH",null,null,null,{"$f":"F407","v":1048},1048,0,0,1048,0]
[20]
[21,"MISCELLANEOUS WORKING CAPITAL"]
[22,null,{"$f":"'FR-16(7)(v)-1 Functional'!C411","v":"RESERVED FOR FUTURE USE"},{"$f":"'FR-16(7)(v)-1 Functional'!D411","v":"K301"},null,{"$f":"'FR-16(7)(v)-14 TOTAL CLASS'!K411","v":0},{"$f":"'FR-16(7)(v)-3 PROD Demand'!K411+'FR-16(7)(v)-7 TRANS Demand'!K411+'FR-16(7)(v)-11 DIST Demand'!K411","v":0},{"$f":"'FR-16(7)(v)-4 PROD Energy'!K411+'FR-16(7)(v)-8 TRANS Energy'!K411+'FR-16(7)(v)-12 DIST Energy'!K411","v":0},{"$f":"'FR-16(7)(v)-5 PROD Cust'!K411+'FR-16(7)(v)-9 TRANS Cust'!K411+'FR-16(7)(v)-13 DIST Cust'!K411","v":0},{"$f":"SUM(G411:I411)","v":0},{"$f":"F411-J411","v":0}]
[23,null,{"$f":"'FR-16(7)(v)-1 Functional'!C412","v":"PIPP UNCOLLECTIBLES"},{"$f":"'FR-16(7)(v)-1 Functional'!D412","v":"A315"},null,{"$f":"'FR-16(7)(v)-14 TOTAL CLASS'!K412","v":0},{"$f":"'FR-16(7)(v)-3 PROD Demand'!K412+'FR-16(7)(v)-7 TRANS Demand'!K412+'FR-16(7)(v)-11 DIST Demand'!K412","v":0},{"$f":"'FR-16(7)(v)-4 PROD Energy'!K412+'FR-16(7)(v)-8 TRANS Energy'!K412+'FR-16(7)(v)-12 DIST Energy'!K412","v":0},{"$f":"'FR-16(7)(v)-5 PROD Cust'!K412+'FR-16(7)(v)-9 TRANS Cust'!K412+'FR-16(7)(v)-13 DIST Cust'!K412","v":0},{"$f":"SUM(G412:I412)","v":0},{"$f":"F412-J412","v":0}]
[24,null,{"$f":"'FR-16(7)(v)-1 Functional'!C413","v":"RESERVED FOR FUTURE USE"},{"$f":"'FR-16(7)(v)-1 Functional'!D413","v":"D249"},null,{"$f":"'FR-16(7)(v)-14 TOTAL CLASS'!K413","v":0},{"$f":"'FR-16(7)(v)-3 PROD Demand'!K413+'FR-16(7)(v)-7 TRANS Demand'!K413+'FR-16(7)(v)-11 DIST Demand'!K413","v":0},{"$f":"'FR-16(7)(v)-4 PROD Energy'!K413+'FR-16(7)(v)-8 TRANS Energy'!K413+'FR-16(7)(v)-12 DIST Energy'!K413","v":0},{"$f":"'FR-16(7)(v)-5 PROD Cust'!K413+'FR-16(7)(v)-9 TRANS Cust'!K413+'FR-16(7)(v)-13 DIST Cust'!K413","v":0},{"$f":"SUM(G413:I413)","v":0},{"$f":"F413-J413","v":0}]
[25,null,{"$f":"'FR-16(7)(v)-1 Functional'!C414","v":"  TOTAL MISC WORK CAPITAL"},null,null,{"$f":"SUM(F410:F413)","v":0},0,0,0,0,0]
[26]
[27,"TOTAL WORKING CAPITAL",null,null,null,{"$f":"F399+F405+F408+F414","v":4329},1601,1732,996,4329,0]
[28,"PRELIMINARY SUMMARY"]
[29,null,{"$f":"'FR-16(7)(v)-1 Functional'!C418","v":"TOTAL ACCUMULATED DEFERRED INCOME TAXES"},null,null,{"$f":"-F324","v":-21264},-16670,-1019,-3575,-21264,0]
[30,null,{"$f":"'FR-16(7)(v)-1 Functional'!C419","v":"TOTAL OTHER ACCUMULATED DEFERRED INCOME TAXES"},null,null,{"$f":"F377","v":1396},474,410,512,1396,0]
[31,null,{"$f":"'FR-16(7)(v)-1 Functional'!C420","v":"TOTAL WORKING CAPITAL"},null,null,{"$f":"F416","v":4329},1601,1732,996,4329,0]
[32,null,{"$f":"'FR-16(7)(v)-1 Functional'!C421","v":"  TOTAL RATE BASE ADJUSTMENTS"},null,null,{"$f":"SUM(F417:F420)","v":-15539},-14595,1123,-2067,-15539,0]
[33]
[34,"RATE BASE CALCULATION"]
[35,null,{"$f":"'FR-16(7)(v)-1 Functional'!C424","v":"NET ELECTRIC PLANT IN SERVICE"},null,null,{"$f":"F277","v":86916},71869,1096,13951,86916,0]
[36,null,{"$f":"'FR-16(7)(v)-1 Functional'!C425","v":"TOTAL RATE BASE ADJUSTMENTS"},null,null,{"$f":"F421","v":-15539},-14595,1123,-2067,-15539,0]
[37,null,{"$f":"'FR-16(7)(v)-1 Functional'!C426","v":"  TOTAL RATE BASE"},null,null,{"$f":"SUM(F423:F425)","v":71377},57274,2219,11884,71377,0]
[38]
[39,"TOTAL RATE OF RETURN ALLOWABLE",null,null,null,{"$f":"$F$811","v":6.7100000000000007E-2},{"$f":"F811","v":6.7100000000000007E-2},{"$f":"F811","v":6.7100000000000007E-2},{"$f":"F811","v":6.7100000000000007E-2},{"$f":"F811","v":6.7100000000000007E-2}]
[40,"RETURN ON RATE BASE",null,null,null,{"$f":"ROUND(F428*F426,0)","v":4789},{"$f":"F429-SUM(H429:I429)","v":3843},{"$f":"ROUND(H426*H428,0)","v":149},{"$f":"ROUND(I426*I428,0)","v":797},{"$f":"SUM(G429:I429)","v":4789},{"$f":"ROUND(K426*K428,0)","v":0}]
[41]
[42,{"$f":"'FR-16(7)(v)-1 Functional'!B431","v":"ELECTRIC RATE BASE"},null,{"$f":"'FR-16(7)(v)-1 Functional'!D431","v":"RB99"},null,{"$f":"'FR-16(7)(v)-14 TOTAL CLASS'!K431","v":71826},{"$f":"'FR-16(7)(v)-3 PROD Demand'!K431+'FR-16(7)(v)-7 TRANS Demand'!K431+'FR-16(7)(v)-11 DIST Demand'!K431","v":57523},{"$f":"'FR-16(7)(v)-4 PROD Energy'!K431+'FR-16(7)(v)-8 TRANS Energy'!K431+'FR-16(7)(v)-12 DIST Energy'!K431","v":2220},{"$f":"'FR-16(7)(v)-5 PROD Cust'!K431+'FR-16(7)(v)-9 TRANS Cust'!K431+'FR-16(7)(v)-13 DIST Cust'!K431","v":12083},{"$f":"SUM(G431:I431)","v":71826},{"$f":"F431-J431","v":0}]
[43,{"$f":"'FR-16(7)(v)-1 Functional'!B432","v":"TOTAL RATE OF RETURN ALLOWABLE"},null,null,null,{"$f":"RofR","v":6.7110000000000003E-2},{"$f":"RofR","v":6.7110000000000003E-2},{"$f":"RofR","v":6.7110000000000003E-2},{"$f":"RofR","v":6.7110000000000003E-2},{"$f":"RofR","v":6.7110000000000003E-2}]
[44,{"$f":"'FR-16(7)(v)-1 Functional'!B433","v":"RETURN ON RATE BASE"},null,null,null,{"$f":"ROUND(F431*F432,0)","v":4820},{"$f":"F433-H433-I433","v":3860},{"$f":"ROUND(H431*H432,0)","v":149},{"$f":"ROUND(I431*I432,0)","v":811},{"$f":"ROUND(J431*J432,0)","v":4820},{"$f":"F433-J433","v":0}]
[]
[{"$f":"co_name","v":"DUKE ENERGY KENTUCKY, INC."},null,null,null,null,null,null,null,null,{"$f":"J1","v":"FR-16(7)(v)-19"}]
[{"$f":"$A$2","v":"SP SECONDARY CLASSIFIED - ELECTRIC COST OF SERVICE"},null,null,null,null,null,null,null,null,{"$f":"J2","v":"WITNESS RESPONSIBLE:"}]
[{"$f":"case_name","v":"CASE NO: 2019-00271"},null,null,null,null,null,null,null,null,{"$f":"Witness","v":"JAMES E. ZIOLKOWSKI"}]
[{"$f":"data_filing","v":"DATA: 12 MONTHS ACTUAL  & 0 MONTHS ESTIMATED"},null,null,null,null,null,null,null,null,{"$f":"\"PAGE \"&Pages2-7&\" OF \"&Pages2","v":"PAGE 8 OF 15"}]
[{"$f":"type","v":"TYPE OF FILING: \"X\" ORIGINAL   UPDATED    REVISED  "}]
[]
[]
["LINE",null,null,null,null,"TOTAL","CLASSIFIED",null,null,"TOTAL","ALL"]
["NO.","O&M EXPENSES",null,"ALLO",null,{"$f":"$F$9","v":"SP SECONDARY"},{"$f":"G9","v":"DEMAND"},"ENERGY","CUSTOMER","AT ISSUE","OTHER"]
[null,null,"Schedule 6",null,null,null,3,4,5]
[1,"PRODUCTION O&M"]
[2,{"$f":"'FR-16(7)(v)-1 Functional'!B446","v":"ENERGY RELATED PRODUCTION O&M"}]
[3,null,{"$f":"'FR-16(7)(v)-1 Functional'!C447","v":"FUEL"},{"$f":"'FR-16(7)(v)-1 Functional'!D447","v":"K302"},null,{"$f":"'FR-16(7)(v)-14 TOTAL CLASS'!K447","v":0},{"$f":"'FR-16(7)(v)-3 PROD Demand'!K447+'FR-16(7)(v)-7 TRANS Demand'!K447+'FR-16(7)(v)-11 DIST Demand'!K447","v":0},{"$f":"'FR-16(7)(v)-4 PROD Energy'!K447+'FR-16(7)(v)-8 TRANS Energy'!K447+'FR-16(7)(v)-12 DIST Energy'!K447","v":0},{"$f":"'FR-16(7)(v)-5 PROD Cust'!K447+'FR-16(7)(v)-9 TRANS Cust'!K447+'FR-16(7)(v)-13 DIST Cust'!K447","v":0},{"$f":"SUM(G447:I447)","v":0},{"$f":"F447-J447","v":0}]
[4,null,{"$f":"'FR-16(7)(v)-1 Functional'!C448","v":"FUEL AND PURCHASED POWER ADJUSTMENT"},{"$f":"'FR-16(7)(v)-1 Functional'!D448","v":"K302"},null,{"$f":"'FR-16(7)(v)-14 TOTAL CLASS'!K448","v":7027},{"$f":"'FR-16(7)(v)-3 PROD Demand'!K448+'FR-16(7)(v)-7 TRANS Demand'!K448+'FR-16(7)(v)-11 DIST Demand'!K448","v":0},{"$f":"'FR-16(7)(v)-4 PROD Energy'!K448+'FR-16(7)(v)-8 TRANS Energy'!K448+'FR-16(7)(v)-12 DIST Energy'!K448","v":7027},{"$f":"'FR-16(7)(v)-5 PROD Cust'!K448+'FR-16(7)(v)-9 TRANS Cust'!K448+'FR-16(7)(v)-13 DIST Cust'!K448","v":0},7027,0]
[5,null,{"$f":"'FR-16(7)(v)-1 Functional'!C449","v":"EMISSION ALLOWANCES"},{"$f":"'FR-16(7)(v)-1 Functional'!D449","v":"K301"},null,{"$f":"'FR-16(7)(v)-14 TOTAL CLASS'!K449","v":0},{"$f":"'FR-16(7)(v)-3 PROD Demand'!K449+'FR-16(7)(v)-7 TRANS Demand'!K449+'FR-16(7)(v)-11 DIST Demand'!K449","v":0},{"$f":"'FR-16(7)(v)-4 PROD Energy'!K449+'FR-16(7)(v)-8 TRANS Energy'!K449+'FR-16(7)(v)-12 DIST Energy'!K449","v":0},{"$f":"'FR-16(7)(v)-5 PROD Cust'!K449+'FR-16(7)(v)-9 TRANS Cust'!K449+'FR-16(7)(v)-13 DIST Cust'!K449","v":0},0,0]
[6,null,{"$f":"'FR-16(7)(v)-1 Functional'!C450","v":"ELIMINATE EMISSION ALLOW & OTHER VAR COST"},{"$f":"'FR-16(7)(v)-1 Functional'!D450","v":"K301"},null,{"$f":"'FR-16(7)(v)-14 TOTAL CLASS'!K450","v":0},{"$f":"'FR-16(7)(v)-3 PROD Demand'!K450+'FR-16(7)(v)-7 TRANS Demand'!K450+'FR-16(7)(v)-11 DIST Demand'!K450","v":0},{"$f":"'FR-16(7)(v)-4 PROD Energy'!K450+'FR-16(7)(v)-8 TRANS Energy'!K450+'FR-16(7)(v)-12 DIST Energy'!K450","v":0},{"$f":"'FR-16(7)(v)-5 PROD Cust'!K450+'FR-16(7)(v)-9 TRANS Cust'!K450+'FR-16(7)(v)-13 DIST Cust'!K450","v":0},0,0]
[7,null,{"$f":"'FR-16(7)(v)-1 Functional'!C451","v":"OTHER PRODUCTION EXPENSE - MAINTENANCE"},{"$f":"'FR-16(7)(v)-1 Functional'!D451","v":"K301"},null,{"$f":"'FR-16(7)(v)-14 TOTAL CLASS'!K451","v":2848},{"$f":"'FR-16(7)(v)-3 PROD Demand'!K451+'FR-16(7)(v)-7 TRANS Demand'!K451+'FR-16(7)(v)-11 DIST Demand'!K451","v":0},{"$f":"'FR-16(7)(v)-4 PROD Energy'!K451+'FR-16(7)(v)-8 TRANS Energy'!K451+'FR-16(7)(v)-12 DIST Energy'!K451","v":2848},{"$f":"'FR-16(7)(v)-5 PROD Cust'!K451+'FR-16(7)(v)-9 TRANS Cust'!K451+'FR-16(7)(v)-13 DIST Cust'!K451","v":0},2848,0]
[8,null,{"$f":"'FR-16(7)(v)-1 Functional'!C452","v":"MISO TRANSMISSION CHARGES - ACCT 555"},{"$f":"'FR-16(7)(v)-1 Functional'!D452","v":"K301"},null,{"$f":"'FR-16(7)(v)-14 TOTAL CLASS'!K452","v":0},{"$f":"'FR-16(7)(v)-3 PROD Demand'!K452+'FR-16(7)(v)-7 TRANS Demand'!K452+'FR-16(7)(v)-11 DIST Demand'!K452","v":0},{"$f":"'FR-16(7)(v)-4 PROD Energy'!K452+'FR-16(7)(v)-8 TRANS Energy'!K452+'FR-16(7)(v)-12 DIST Energy'!K452","v":0},{"$f":"'FR-16(7)(v)-5 PROD Cust'!K452+'FR-16(7)(v)-9 TRANS Cust'!K452+'FR-16(7)(v)-13 DIST Cust'!K452","v":0},0,0]
[9,null,{"$f":"'FR-16(7)(v)-1 Functional'!C453","v":"  TOTAL ENERGY RELATED"},null,null,{"$f":"SUM(F447:F452)","v":9875},0,9875,0,9875,0]
[10]
[11,"DEMAND RELATED & OTHER PROD O&M"]
[12,null,{"$f":"'FR-16(7)(v)-1 Functional'!C456","v":"OTHER PRODUCTION EXPENSES - OPERATIONS"},{"$f":"'FR-16(7)(v)-1 Functional'!D456","v":"K201"},null,{"$f":"'FR-16(7)(v)-14 TOTAL CLASS'!K456","v":0},{"$f":"'FR-16(7)(v)-3 PROD Demand'!K456+'FR-16(7)(v)-7 TRANS Demand'!K456+'FR-16(7)(v)-11 DIST Demand'!K456","v":0},{"$f":"'FR-16(7)(v)-4 PROD Energy'!K456+'FR-16(7)(v)-8 TRANS Energy'!K456+'FR-16(7)(v)-12 DIST Energy'!K456","v":0},{"$f":"'FR-16(7)(v)-5 PROD Cust'!K456+'FR-16(7)(v)-9 TRANS Cust'!K456+'FR-16(7)(v)-13 DIST Cust'!K456","v":0},{"$f":"SUM(G456:I456)","v":0},{"$f":"F456-J456","v":0}]
[13,null,{"$f":"'FR-16(7)(v)-1 Functional'!C457","v":"  TOTAL DEMAND REL & OTH PROD O&M "},null,null,{"$f":"SUM(F455:F456)","v":0},0,0,0,0,0]
[14]
[15,"TOTAL PRODUCTION O&M",null,null," ",{"$f":"F457+F453","v":9875},0,9875,0,9875,0]
[16]
[17,"TRANSMISSION O & M"]
[18,null,{"$f":"'FR-16(7)(v)-1 Functional'!C462","v":"TRANSFORMER LEASE PAYMENTS"},{"$f":"'FR-16(7)(v)-1 Functional'!D462","v":"K202"},null,{"$f":"'FR-16(7)(v)-14 TOTAL CLASS'!K462","v":0},{"$f":"'FR-16(7)(v)-3 PROD Demand'!K462+'FR-16(7)(v)-7 TRANS Demand'!K462+'FR-16(7)(v)-11 DIST Demand'!K462","v":0},{"$f":"'FR-16(7)(v)-4 PROD Energy'!K462+'FR-16(7)(v)-8 TRANS Energy'!K462+'FR-16(7)(v)-12 DIST Energy'!K462","v":0},{"$f":"'FR-16(7)(v)-5 PROD Cust'!K462+'FR-16(7)(v)-9 TRANS Cust'!K462+'FR-16(7)(v)-13 DIST Cust'!K462","v":0},{"$f":"SUM(G462:I462)","v":0},{"$f":"F462-J462","v":0}]
[19,null,{"$f":"'FR-16(7)(v)-1 Functional'!C463","v":"OTHER TRANSMISSION"},{"$f":"'FR-16(7)(v)-1 Functional'!D463","v":"K202"},null,{"$f":"'FR-16(7)(v)-14 TOTAL CLASS'!K463","v":1621},{"$f":"'FR-16(7)(v)-3 PROD Demand'!K463+'FR-16(7)(v)-7 TRANS Demand'!K463+'FR-16(7)(v)-11 DIST Demand'!K463","v":1621},{"$f":"'FR-16(7)(v)-4 PROD Energy'!K463+'FR-16(7)(v)-8 TRANS Energy'!K463+'FR-16(7)(v)-12 DIST Energy'!K463","v":0},{"$f":"'FR-16(7)(v)-5 PROD Cust'!K463+'FR-16(7)(v)-9 TRANS Cust'!K463+'FR-16(7)(v)-13 DIST Cust'!K463","v":0},{"$f":"SUM(G463:I463)","v":1621},{"$f":"F463-J463","v":0}]
[20,null,{"$f":"'FR-16(7)(v)-1 Functional'!C464","v":"MISCELLANEOUS ADJUSTMENTS"},{"$f":"'FR-16(7)(v)-1 Functional'!D464","v":"K202"},null,{"$f":"'FR-16(7)(v)-14 TOTAL CLASS'!K464","v":0},{"$f":"'FR-16(7)(v)-3 PROD Demand'!K464+'FR-16(7)(v)-7 TRANS Demand'!K464+'FR-16(7)(v)-11 DIST Demand'!K464","v":0},{"$f":"'FR-16(7)(v)-4 PROD Energy'!K464+'FR-16(7)(v)-8 TRANS Energy'!K464+'FR-16(7)(v)-12 DIST Energy'!K464","v":0},{"$f":"'FR-16(7)(v)-5 PROD Cust'!K464+'FR-16(7)(v)-9 TRANS Cust'!K464+'FR-16(7)(v)-13 DIST Cust'!K464","v":0},{"$f":"SUM(G464:I464)","v":0},{"$f":"F464-J464","v":0}]
[21,null,{"$f":"'FR-16(7)(v)-1 Functional'!C465","v":"NETWORK SERVICE RATES ADJUSTMENT"},{"$f":"'FR-16(7)(v)-1 Functional'!D465","v":"K202"},null,{"$f":"'FR-16(7)(v)-14 TOTAL CLASS'!K465","v":0},{"$f":"'FR-16(7)(v)-3 PROD Demand'!K465+'FR-16(7)(v)-7 TRANS Demand'!K465+'FR-16(7)(v)-11 DIST Demand'!K465","v":0},{"$f":"'FR-16(7)(v)-4 PROD Energy'!K465+'FR-16(7)(v)-8 TRANS Energy'!K465+'FR-16(7)(v)-12 DIST Energy'!K465","v":0},{"$f":"'FR-16(7)(v)-5 PROD Cust'!K465+'FR-16(7)(v)-9 TRANS Cust'!K465+'FR-16(7)(v)-13 DIST Cust'!K465","v":0},{"$f":"SUM(G465:I465)","v":0},{"$f":"F465-J465","v":0}]
[22,null,{"$f":"'FR-16(7)(v)-1 Functional'!C466","v":"  TOTAL TRANSMISSION O & M"},null,null,{"$f":"SUM(F462:F465)","v":1621},1621,0,0,1621,0]
[23]
[24,"REGIONAL MARKET O&M"]
[25,null,{"$f":"'FR-16(7)(v)-1 Functional'!C469","v":"MARKET FACILITATION - MONITORING & COMPLIANCE"},{"$f":"'FR-16(7)(v)-1 Functional'!D469","v":"K202"},null,{"$f":"'FR-16(7)(v)-14 TOTAL CLASS'!K469","v":128},{"$f":"'FR-16(7)(v)-3 PROD Demand'!K469+'FR-16(7)(v)-7 TRANS Demand'!K469+'FR-16(7)(v)-11 DIST Demand'!K469","v":128},{"$f":"'FR-16(7)(v)-4 PROD Energy'!K469+'FR-16(7)(v)-8 TRANS Energy'!K469+'FR-16(7)(v)-12 DIST Energy'!K469","v":0},{"$f":"'FR-16(7)(v)-5 PROD Cust'!K469+'FR-16(7)(v)-9 TRANS Cust'!K469+'FR-16(7)(v)-13 DIST Cust'!K469","v":0},{"$f":"SUM(G469:I469)","v":128},{"$f":"F469-J469","v":0}]
[26,null,{"$f":"'FR-16(7)(v)-1 Functional'!C470","v":"TOTAL REGIONAL MARKET O&M"},null,null,{"$f":"SUM(F468:F469)","v":128},128,0,0,128,0]
[27]
[28,"DISTRIBUTION O & M"]
[29,null,{"$f":"'FR-16(7)(v)-1 Functional'!C473","v":"SUBSTATIONS"},{"$f":"'FR-16(7)(v)-1 Functional'!D473","v":"K201"},null,{"$f":"'FR-16(7)(v)-14 TOTAL CLASS'!K473","v":43},{"$f":"'FR-16(7)(v)-3 PROD Demand'!K473+'FR-16(7)(v)-7 TRANS Demand'!K473+'FR-16(7)(v)-11 DIST Demand'!K473","v":43},{"$f":"'FR-16(7)(v)-4 PROD Energy'!K473+'FR-16(7)(v)-8 TRANS Energy'!K473+'FR-16(7)(v)-12 DIST Energy'!K473","v":0},{"$f":"'FR-16(7)(v)-5 PROD Cust'!K473+'FR-16(7)(v)-9 TRANS Cust'!K473+'FR-16(7)(v)-13 DIST Cust'!K473","v":0},{"$f":"SUM(G473:I473)","v":43},{"$f":"F473-J473","v":0}]
[30,null,{"$f":"'FR-16(7)(v)-1 Functional'!C474","v":"POLES, TOWERS & FIXTURES"},{"$f":"'FR-16(7)(v)-1 Functional'!D474","v":"PL49"},null,{"$f":"'FR-16(7)(v)-14 TOTAL CLASS'!K474","v":0},{"$f":"'FR-16(7)(v)-3 PROD Demand'!K474+'FR-16(7)(v)-7 TRANS Demand'!K474+'FR-16(7)(v)-11 DIST Demand'!K474","v":0},{"$f":"'FR-16(7)(v)-4 PROD Energy'!K474+'FR-16(7)(v)-8 TRANS Energy'!K474+'FR-16(7)(v)-12 DIST Energy'!K474","v":0},{"$f":"'FR-16(7)(v)-5 PROD Cust'!K474+'FR-16(7)(v)-9 TRANS Cust'!K474+'FR-16(7)(v)-13 DIST Cust'!K474","v":0},0,0]
[31,null,{"$f":"'FR-16(7)(v)-1 Functional'!C475","v":"OVERHEAD LINES - PRIMARY / DEMAND"},{"$f":"'FR-16(7)(v)-1 Functional'!D475","v":"K205"},null,{"$f":"'FR-16(7)(v)-14 TOTAL CLASS'!K475","v":362},{"$f":"'FR-16(7)(v)-3 PROD Demand'!K475+'FR-16(7)(v)-7 TRANS Demand'!K475+'FR-16(7)(v)-11 DIST Demand'!K475","v":362},{"$f":"'FR-16(7)(v)-4 PROD Energy'!K475+'FR-16(7)(v)-8 TRANS Energy'!K475+'FR-16(7)(v)-12 DIST Energy'!K475","v":0},{"$f":"'FR-16(7)(v)-5 PROD Cust'!K475+'FR-16(7)(v)-9 TRANS Cust'!K475+'FR-16(7)(v)-13 DIST Cust'!K475","v":0},362,0]
[32,null,{"$f":"'FR-16(7)(v)-1 Functional'!C476","v":"OVERHEAD LINES - PRIMARY / CUSTOMER"},{"$f":"'FR-16(7)(v)-1 Functional'!D476","v":"K405"},null,{"$f":"'FR-16(7)(v)-14 TOTAL CLASS'!K476","v":113},{"$f":"'FR-16(7)(v)-3 PROD Demand'!K476+'FR-16(7)(v)-7 TRANS Demand'!K476+'FR-16(7)(v)-11 DIST Demand'!K476","v":0},{"$f":"'FR-16(7)(v)-4 PROD Energy'!K476+'FR-16(7)(v)-8 TRANS Energy'!K476+'FR-16(7)(v)-12 DIST Energy'!K476","v":0},{"$f":"'FR-16(7)(v)-5 PROD Cust'!K476+'FR-16(7)(v)-9 TRANS Cust'!K476+'FR-16(7)(v)-13 DIST Cust'!K476","v":113},{"$f":"SUM(G476:I476)","v":113},{"$f":"F476-J476","v":0}]
[33,null,{"$f":"'FR-16(7)(v)-1 Functional'!C477","v":"OVERHEAD LINES - SECONDARY / DEMAND"},{"$f":"'FR-16(7)(v)-1 Functional'!D477","v":"K206"},null,{"$f":"'FR-16(7)(v)-14 TOTAL CLASS'!K477","v":147},{"$f":"'FR-16(7)(v)-3 PROD Demand'!K477+'FR-16(7)(v)-7 TRANS Demand'!K477+'FR-16(7)(v)-11 DIST Demand'!K477","v":147},{"$f":"'FR-16(7)(v)-4 PROD Energy'!K477+'FR-16(7)(v)-8 TRANS Energy'!K477+'FR-16(7)(v)-12 DIST Energy'!K477","v":0},{"$f":"'FR-16(7)(v)-5 PROD Cust'!K477+'FR-16(7)(v)-9 TRANS Cust'!K477+'FR-16(7)(v)-13 DIST Cust'!K477","v":0},147,0]
[34,null,{"$f":"'FR-16(7)(v)-1 Functional'!C478","v":"OVERHEAD LINES - SECONDARY / CUSTOMER"},{"$f":"'FR-16(7)(v)-1 Functional'!D478","v":"K405"},null,{"$f":"'FR-16(7)(v)-14 TOTAL CLASS'!K478","v":47},{"$f":"'FR-16(7)(v)-3 PROD Demand'!K478+'FR-16(7)(v)-7 TRANS Demand'!K478+'FR-16(7)(v)-11 DIST Demand'!K478","v":0},{"$f":"'FR-16(7)(v)-4 PROD Energy'!K478+'FR-16(7)(v)-8 TRANS Energy'!K478+'FR-16(7)(v)-12 DIST Energy'!K478","v":0},{"$f":"'FR-16(7)(v)-5 PROD Cust'!K478+'FR-16(7)(v)-9 TRANS Cust'!K478+'FR-16(7)(v)-13 DIST Cust'!K478","v":47},47,0]
[35,null,{"$f":"'FR-16(7)(v)-1 Functional'!C479","v":"UNDERGROUND LINES - PRIMARY / DEMAND"},{"$f":"'FR-16(7)(v)-1 Functional'!D479","v":"K205"},null,{"$f":"'FR-16(7)(v)-14 TOTAL CLASS'!K479","v":47},{"$f":"'FR-16(7)(v)-3 PROD Demand'!K479+'FR-16(7)(v)-7 TRANS Demand'!K479+'FR-16(7)(v)-11 DIST Demand'!K479","v":47},{"$f":"'FR-16(7)(v)-4 PROD Energy'!K479+'FR-16(7)(v)-8 TRANS Energy'!K479+'FR-16(7)(v)-12 DIST Energy'!K479","v":0},{"$f":"'FR-16(7)(v)-5 PROD Cust'!K479+'FR-16(7)(v)-9 TRANS Cust'!K479+'FR-16(7)(v)-13 DIST Cust'!K479","v":0},47,0]
[36,null,{"$f":"'FR-16(7)(v)-1 Functional'!C480","v":"UNDERGROUND LINES - PRIMARY / CUSTOMER"},{"$f":"'FR-16(7)(v)-1 Functional'!D480","v":"K405"},null,{"$f":"'FR-16(7)(v)-14 TOTAL CLASS'!K480","v":21},{"$f":"'FR-16(7)(v)-3 PROD Demand'!K480+'FR-16(7)(v)-7 TRANS Demand'!K480+'FR-16(7)(v)-11 DIST Demand'!K480","v":0},{"$f":"'FR-16(7)(v)-4 PROD Energy'!K480+'FR-16(7)(v)-8 TRANS Energy'!K480+'FR-16(7)(v)-12 DIST Energy'!K480","v":0},{"$f":"'FR-16(7)(v)-5 PROD Cust'!K480+'FR-16(7)(v)-9 TRANS Cust'!K480+'FR-16(7)(v)-13 DIST Cust'!K480","v":21},21,0]
[37,null,{"$f":"'FR-16(7)(v)-1 Functional'!C481","v":"UNDERGROUND LINES - SECONDARY / DEMAND"},{"$f":"'FR-16(7)(v)-1 Functional'!D481","v":"K206"},null,{"$f":"'FR-16(7)(v)-14 TOTAL CLASS'!K481","v":8},{"$f":"'FR-16(7)(v)-3 PROD Demand'!K481+'FR-16(7)(v)-7 TRANS Demand'!K481+'FR-16(7)(v)-11 DIST Demand'!K481","v":8},{"$f":"'FR-16(7)(v)-4 PROD Energy'!K481+'FR-16(7)(v)-8 TRANS Energy'!K481+'FR-16(7)(v)-12 DIST Energy'!K481","v":0},{"$f":"'FR-16(7)(v)-5 PROD Cust'!K481+'FR-16(7)(v)-9 TRANS Cust'!K481+'FR-16(7)(v)-13 DIST Cust'!K481","v":0},8,0]
[38,null,{"$f":"'FR-16(7)(v)-1 Functional'!C482","v":"UNDERGROUND LINES - SECONDARY / CUSTOMER"},{"$f":"'FR-16(7)(v)-1 Functional'!D482","v":"K405"},null,{"$f":"'FR-16(7)(v)-14 TOTAL CLASS'!K482","v":7},{"$f":"'FR-16(7)(v)-3 PROD Demand'!K482+'FR-16(7)(v)-7 TRANS Demand'!K482+'FR-16(7)(v)-11 DIST Demand'!K482","v":0},{"$f":"'FR-16(7)(v)-4 PROD Energy'!K482+'FR-16(7)(v)-8 TRANS Energy'!K482+'FR-16(7)(v)-12 DIST Energy'!K482","v":0},{"$f":"'FR-16(7)(v)-5 PROD Cust'!K482+'FR-16(7)(v)-9 TRANS Cust'!K482+'FR-16(7)(v)-13 DIST Cust'!K482","v":7},7,0]
[39,null,{"$f":"'FR-16(7)(v)-1 Functional'!C483","v":"TRANSFORMERS DEMAND RELATED"},{"$f":"'FR-16(7)(v)-1 Functional'!D483","v":"K203"},null,{"$f":"'FR-16(7)(v)-14 TOTAL CLASS'!K483","v":19},{"$f":"'FR-16(7)(v)-3 PROD Demand'!K483+'FR-16(7)(v)-7 TRANS Demand'!K483+'FR-16(7)(v)-11 DIST Demand'!K483","v":19},{"$f":"'FR-16(7)(v)-4 PROD Energy'!K483+'FR-16(7)(v)-8 TRANS Energy'!K483+'FR-16(7)(v)-12 DIST Energy'!K483","v":0},{"$f":"'FR-16(7)(v)-5 PROD Cust'!K483+'FR-16(7)(v)-9 TRANS Cust'!K483+'FR-16(7)(v)-13 DIST Cust'!K483","v":0},19,0]
[40,null,{"$f":"'FR-16(7)(v)-1 Functional'!C484","v":"TRANSFORMERS CUSTOMER RELATED"},{"$f":"'FR-16(7)(v)-1 Functional'!D484","v":"K401"},null,{"$f":"'FR-16(7)(v)-14 TOTAL CLASS'!K484","v":0},{"$f":"'FR-16(7)(v)-3 PROD Demand'!K484+'FR-16(7)(v)-7 TRANS Demand'!K484+'FR-16(7)(v)-11 DIST Demand'!K484","v":0},{"$f":"'FR-16(7)(v)-4 PROD Energy'!K484+'FR-16(7)(v)-8 TRANS Energy'!K484+'FR-16(7)(v)-12 DIST Energy'!K484","v":0},{"$f":"'FR-16(7)(v)-5 PROD Cust'!K484+'FR-16(7)(v)-9 TRANS Cust'!K484+'FR-16(7)(v)-13 DIST Cust'!K484","v":0},{"$f":"SUM(G484:I484)","v":0},{"$f":"F484-J484","v":0}]
[41,null,{"$f":"'FR-16(7)(v)-1 Functional'!C485","v":"OTHER MAINTENANCE"},{"$f":"'FR-16(7)(v)-1 Functional'!D485","v":"K203"},null,{"$f":"'FR-16(7)(v)-14 TOTAL CLASS'!K485","v":133},{"$f":"'FR-16(7)(v)-3 PROD Demand'!K485+'FR-16(7)(v)-7 TRANS Demand'!K485+'FR-16(7)(v)-11 DIST Demand'!K485","v":133},{"$f":"'FR-16(7)(v)-4 PROD Energy'!K485+'FR-16(7)(v)-8 TRANS Energy'!K485+'FR-16(7)(v)-12 DIST Energy'!K485","v":0},{"$f":"'FR-16(7)(v)-5 PROD Cust'!K485+'FR-16(7)(v)-9 TRANS Cust'!K485+'FR-16(7)(v)-13 DIST Cust'!K485","v":0},133,0]
[42,null,{"$f":"'FR-16(7)(v)-1 Functional'!C486","v":"LOAD DISPATCH"},{"$f":"'FR-16(7)(v)-1 Functional'!D486","v":"K215"},null,{"$f":"'FR-16(7)(v)-14 TOTAL CLASS'!K486","v":41},{"$f":"'FR-16(7)(v)-3 PROD Demand'!K486+'FR-16(7)(v)-7 TRANS Demand'!K486+'FR-16(7)(v)-11 DIST Demand'!K486","v":41},{"$f":"'FR-16(7)(v)-4 PROD Energy'!K486+'FR-16(7)(v)-8 TRANS Energy'!K486+'FR-16(7)(v)-12 DIST Energy'!K486","v":0},{"$f":"'FR-16(7)(v)-5 PROD Cust'!K486+'FR-16(7)(v)-9 TRANS Cust'!K486+'FR-16(7)(v)-13 DIST Cust'!K486","v":0},41,0]
[43,null,{"$f":"'FR-16(7)(v)-1 Functional'!C487","v":"METERS"},{"$f":"'FR-16(7)(v)-1 Functional'!D487","v":"K407"},null,{"$f":"'FR-16(7)(v)-14 TOTAL CLASS'!K487","v":237},{"$f":"'FR-16(7)(v)-3 PROD Demand'!K487+'FR-16(7)(v)-7 TRANS Demand'!K487+'FR-16(7)(v)-11 DIST Demand'!K487","v":0},{"$f":"'FR-16(7)(v)-4 PROD Energy'!K487+'FR-16(7)(v)-8 TRANS Energy'!K487+'FR-16(7)(v)-12 DIST Energy'!K487","v":0},{"$f":"'FR-16(7)(v)-5 PROD Cust'!K487+'FR-16(7)(v)-9 TRANS Cust'!K487+'FR-16(7)(v)-13 DIST Cust'!K487","v":237},237,0]
[44,null,{"$f":"'FR-16(7)(v)-1 Functional'!C488","v":"STREET LIGHTING AND SIGNAL SYSTEMS"},{"$f":"'FR-16(7)(v)-1 Functional'!D488","v":"K401"},null,{"$f":"'FR-16(7)(v)-14 TOTAL CLASS'!K488","v":0},{"$f":"'FR-16(7)(v)-3 PROD Demand'!K488+'FR-16(7)(v)-7 TRANS Demand'!K488+'FR-16(7)(v)-11 DIST Demand'!K488","v":0},{"$f":"'FR-16(7)(v)-4 PROD Energy'!K488+'FR-16(7)(v)-8 TRANS Energy'!K488+'FR-16(7)(v)-12 DIST Energy'!K488","v":0},{"$f":"'FR-16(7)(v)-5 PROD Cust'!K488+'FR-16(7)(v)-9 TRANS Cust'!K488+'FR-16(7)(v)-13 DIST Cust'!K488","v":0},0,0]
[45,null,{"$f":"'FR-16(7)(v)-1 Functional'!C489","v":"OTHER OPERATIONS"},{"$f":"'FR-16(7)(v)-1 Functional'!D489","v":"K203"},null,{"$f":"'FR-16(7)(v)-14 TOTAL CLASS'!K489","v":51},{"$f":"'FR-16(7)(v)-3 PROD Demand'!K489+'FR-16(7)(v)-7 TRANS Demand'!K489+'FR-16(7)(v)-11 DIST Demand'!K489","v":51},{"$f":"'FR-16(7)(v)-4 PROD Energy'!K489+'FR-16(7)(v)-8 TRANS Energy'!K489+'FR-16(7)(v)-12 DIST Energy'!K489","v":0},{"$f":"'FR-16(7)(v)-5 PROD Cust'!K489+'FR-16(7)(v)-9 TRANS Cust'!K489+'FR-16(7)(v)-13 DIST Cust'!K489","v":0},51,0]
[46,null,{"$f":"'FR-16(7)(v)-1 Functional'!C490","v":"MISCELLANEOUS EXPENSES ADJUSTMENT"},{"$f":"'FR-16(7)(v)-1 Functional'!D490","v":"K203"},null,{"$f":"'FR-16(7)(v)-14 TOTAL CLASS'!K490","v":156},{"$f":"'FR-16(7)(v)-3 PROD Demand'!K490+'FR-16(7)(v)-7 TRANS Demand'!K490+'FR-16(7)(v)-11 DIST Demand'!K490","v":156},{"$f":"'FR-16(7)(v)-4 PROD Energy'!K490+'FR-16(7)(v)-8 TRANS Energy'!K490+'FR-16(7)(v)-12 DIST Energy'!K490","v":0},{"$f":"'FR-16(7)(v)-5 PROD Cust'!K490+'FR-16(7)(v)-9 TRANS Cust'!K490+'FR-16(7)(v)-13 DIST Cust'!K490","v":0},156,0]
[47,null,{"$f":"'FR-16(7)(v)-1 Functional'!C491","v":"AFFILIATED COMPANY RENTS ADJUSTMENT"},{"$f":"'FR-16(7)(v)-1 Functional'!D491","v":"D249"},null,{"$f":"'FR-16(7)(v)-14 TOTAL CLASS'!K491","v":0},{"$f":"'FR-16(7)(v)-3 PROD Demand'!K491+'FR-16(7)(v)-7 TRANS Demand'!K491+'FR-16(7)(v)-11 DIST Demand'!K491","v":0},{"$f":"'FR-16(7)(v)-4 PROD Energy'!K491+'FR-16(7)(v)-8 TRANS Energy'!K491+'FR-16(7)(v)-12 DIST Energy'!K491","v":0},{"$f":"'FR-16(7)(v)-5 PROD Cust'!K491+'FR-16(7)(v)-9 TRANS Cust'!K491+'FR-16(7)(v)-13 DIST Cust'!K491","v":0},0,0]
[48,null,{"$f":"'FR-16(7)(v)-1 Functional'!C492","v":"  TOTAL DISTRIBUTION O & M"},null," ",{"$f":"SUM(F472:F491)","v":1432},1007,0,425,1432,0]
[49,null," "]
[50,"CUSTOMER ACCOUNTING",null,null,null," "]
[51,null,{"$f":"'FR-16(7)(v)-1 Functional'!C495","v":"CUSTOMER ACCOUNTING EXPENSE"},{"$f":"'FR-16(7)(v)-1 Functional'!D495","v":"K409"},null,{"$f":"'FR-16(7)(v)-14 TOTAL CLASS'!K495","v":698},{"$f":"'FR-16(7)(v)-3 PROD Demand'!K495+'FR-16(7)(v)-7 TRANS Demand'!K495+'FR-16(7)(v)-11 DIST Demand'!K495","v":0},{"$f":"'FR-16(7)(v)-4 PROD Energy'!K495+'FR-16(7)(v)-8 TRANS Energy'!K495+'FR-16(7)(v)-12 DIST Energy'!K495","v":0},{"$f":"'FR-16(7)(v)-5 PROD Cust'!K495+'FR-16(7)(v)-9 TRANS Cust'!K495+'FR-16(7)(v)-13 DIST Cust'!K495","v":698},{"$f":"SUM(G495:I495)","v":698},{"$f":"F495-J495","v":0}]
[52,null,{"$f":"'FR-16(7)(v)-1 Functional'!C496","v":"UNCOLLECTIBLE EXP"},{"$f":"'FR-16(7)(v)-1 Functional'!D496","v":"K411"},null,{"$f":"'FR-16(7)(v)-14 TOTAL CLASS'!K496","v":15},{"$f":"'FR-16(7)(v)-3 PROD Demand'!K496+'FR-16(7)(v)-7 TRANS Demand'!K496+'FR-16(7)(v)-11 DIST Demand'!K496","v":0},{"$f":"'FR-16(7)(v)-4 PROD Energy'!K496+'FR-16(7)(v)-8 TRANS Energy'!K496+'FR-16(7)(v)-12 DIST Energy'!K496","v":0},{"$f":"'FR-16(7)(v)-5 PROD Cust'!K496+'FR-16(7)(v)-9 TRANS Cust'!K496+'FR-16(7)(v)-13 DIST Cust'!K496","v":15},15,0]
[53,null,{"$f":"'FR-16(7)(v)-1 Functional'!C497","v":"METER READING"},{"$f":"'FR-16(7)(v)-1 Functional'!D497","v":"K407"},null,{"$f":"'FR-16(7)(v)-14 TOTAL CLASS'!K497","v":0},{"$f":"'FR-16(7)(v)-3 PROD Demand'!K497+'FR-16(7)(v)-7 TRANS Demand'!K497+'FR-16(7)(v)-11 DIST Demand'!K497","v":0},{"$f":"'FR-16(7)(v)-4 PROD Energy'!K497+'FR-16(7)(v)-8 TRANS Energy'!K497+'FR-16(7)(v)-12 DIST Energy'!K497","v":0},{"$f":"'FR-16(7)(v)-5 PROD Cust'!K497+'FR-16(7)(v)-9 TRANS Cust'!K497+'FR-16(7)(v)-13 DIST Cust'!K497","v":0},0,0]
[54,null,{"$f":"'FR-16(7)(v)-1 Functional'!C498","v":"UNCOLLECTIBLE EXP ADJUSTMENT"},{"$f":"'FR-16(7)(v)-1 Functional'!D498","v":"K411"},null,{"$f":"'FR-16(7)(v)-14 TOTAL CLASS'!K498","v":-22},{"$f":"'FR-16(7)(v)-3 PROD Demand'!K498+'FR-16(7)(v)-7 TRANS Demand'!K498+'FR-16(7)(v)-11 DIST Demand'!K498","v":0},{"$f":"'FR-16(7)(v)-4 PROD Energy'!K498+'FR-16(7)(v)-8 TRANS Energy'!K498+'FR-16(7)(v)-12 DIST Energy'!K498","v":0},{"$f":"'FR-16(7)(v)-5 PROD Cust'!K498+'FR-16(7)(v)-9 TRANS Cust'!K498+'FR-16(7)(v)-13 DIST Cust'!K498","v":-22},-22,0]
[55,null,{"$f":"'FR-16(7)(v)-1 Functional'!C499","v":"CREDIT CARD FEES"},{"$f":"'FR-16(7)(v)-1 Functional'!D499","v":"K407"},null,{"$f":"'FR-16(7)(v)-14 TOTAL CLASS'!K499","v":108},{"$f":"'FR-16(7)(v)-3 PROD Demand'!K499+'FR-16(7)(v)-7 TRANS Demand'!K499+'FR-16(7)(v)-11 DIST Demand'!K499","v":0},{"$f":"'FR-16(7)(v)-4 PROD Energy'!K499+'FR-16(7)(v)-8 TRANS Energy'!K499+'FR-16(7)(v)-12 DIST Energy'!K499","v":0},{"$f":"'FR-16(7)(v)-5 PROD Cust'!K499+'FR-16(7)(v)-9 TRANS Cust'!K499+'FR-16(7)(v)-13 DIST Cust'!K499","v":108},108,0]
[56,null,{"$f":"'FR-16(7)(v)-1 Functional'!C500","v":"ELIMINATE REV & EXP - DSM RIDER"},{"$f":"'FR-16(7)(v)-1 Functional'!D500","v":"K405"},null,{"$f":"'FR-16(7)(v)-14 TOTAL CLASS'!K500","v":0},{"$f":"'FR-16(7)(v)-3 PROD Demand'!K500+'FR-16(7)(v)-7 TRANS Demand'!K500+'FR-16(7)(v)-11 DIST Demand'!K500","v":0},{"$f":"'FR-16(7)(v)-4 PROD Energy'!K500+'FR-16(7)(v)-8 TRANS Energy'!K500+'FR-16(7)(v)-12 DIST Energy'!K500","v":0},{"$f":"'FR-16(7)(v)-5 PROD Cust'!K500+'FR-16(7)(v)-9 TRANS Cust'!K500+'FR-16(7)(v)-13 DIST Cust'!K500","v":0},0,0]
[57,null,{"$f":"'FR-16(7)(v)-1 Functional'!C501","v":"SALE OF A/R"},{"$f":"'FR-16(7)(v)-1 Functional'!D501","v":"K411"},null,{"$f":"'FR-16(7)(v)-14 TOTAL CLASS'!K501","v":4},{"$f":"'FR-16(7)(v)-3 PROD Demand'!K501+'FR-16(7)(v)-7 TRANS Demand'!K501+'FR-16(7)(v)-11 DIST Demand'!K501","v":0},{"$f":"'FR-16(7)(v)-4 PROD Energy'!K501+'FR-16(7)(v)-8 TRANS Energy'!K501+'FR-16(7)(v)-12 DIST Energy'!K501","v":0},{"$f":"'FR-16(7)(v)-5 PROD Cust'!K501+'FR-16(7)(v)-9 TRANS Cust'!K501+'FR-16(7)(v)-13 DIST Cust'!K501","v":4},4,0]
[58,null,{"$f":"'FR-16(7)(v)-1 Functional'!C502","v":"ELIMINATE MISC EXPENSE"},{"$f":"'FR-16(7)(v)-1 Functional'!D502","v":"K405"},null,{"$f":"'FR-16(7)(v)-14 TOTAL CLASS'!K502","v":0},{"$f":"'FR-16(7)(v)-3 PROD Demand'!K502+'FR-16(7)(v)-7 TRANS Demand'!K502+'FR-16(7)(v)-11 DIST Demand'!K502","v":0},{"$f":"'FR-16(7)(v)-4 PROD Energy'!K502+'FR-16(7)(v)-8 TRANS Energy'!K502+'FR-16(7)(v)-12 DIST Energy'!K502","v":0},{"$f":"'FR-16(7)(v)-5 PROD Cust'!K502+'FR-16(7)(v)-9 TRANS Cust'!K502+'FR-16(7)(v)-13 DIST Cust'!K502","v":0},0,0]
[59,null,{"$f":"'FR-16(7)(v)-1 Functional'!C503","v":"  TOTAL CUSTOMER ACCT EXPENSE"},null," ",{"$f":"SUM(F494:F502)","v":803},0,0,803,803,0]
[]
[{"$f":"co_name","v":"DUKE ENERGY KENTUCKY, INC."},null,null,null,null,null,null,null,null,{"$f":"J1","v":"FR-16(7)(v)-19"}]
[{"$f":"$A$2","v":"SP SECONDARY CLASSIFIED - ELECTRIC COST OF SERVICE"},null,null,null,null,null,null,null,null,{"$f":"J2","v":"WITNESS RESPONSIBLE:"}]
[{"$f":"case_name","v":"CASE NO: 2019-00271"},null,null,null,null,null,null,null,null,{"$f":"Witness","v":"JAMES E. ZIOLKOWSKI"}]
[{"$f":"data_filing","v":"DATA: 12 MONTHS ACTUAL  & 0 MONTHS ESTIMATED"},null,null,null,null,null,null,null,null,{"$f":"\"PAGE \"&Pages2-6&\" OF \"&Pages2","v":"PAGE 9 OF 15"}]
[{"$f":"type","v":"TYPE OF FILING: \"X\" ORIGINAL   UPDATED    REVISED  "}]
[]
[]
["LINE",null,null,null,null,"TOTAL","CLASSIFIED",null,null,"TOTAL","ALL"]
["NO.","O&M EXPENSES",null,"ALLO",null,{"$f":"$F$9","v":"SP SECONDARY"},{"$f":"G9","v":"DEMAND"},"ENERGY","CUSTOMER","AT ISSUE","OTHER"]
[null,null,"Schedule 6.1",null,null,null,3,4,5]
[1,"CUSTOMER SERVICE & INFORMATION"]
[2,null,{"$f":"'FR-16(7)(v)-1 Functional'!C516","v":"TOTAL CUST SERVICE & INFO"},{"$f":"'FR-16(7)(v)-1 Functional'!D516","v":"K405"},null,{"$f":"'FR-16(7)(v)-14 TOTAL CLASS'!K516","v":60},{"$f":"'FR-16(7)(v)-3 PROD Demand'!K516+'FR-16(7)(v)-7 TRANS Demand'!K516+'FR-16(7)(v)-11 DIST Demand'!K516","v":0},{"$f":"'FR-16(7)(v)-4 PROD Energy'!K516+'FR-16(7)(v)-8 TRANS Energy'!K516+'FR-16(7)(v)-12 DIST Energy'!K516","v":0},{"$f":"'FR-16(7)(v)-5 PROD Cust'!K516+'FR-16(7)(v)-9 TRANS Cust'!K516+'FR-16(7)(v)-13 DIST Cust'!K516","v":60},{"$f":"SUM(G516:I516)","v":60},{"$f":"F516-J516","v":0}]
[3,null,{"$f":"'FR-16(7)(v)-1 Functional'!C517","v":"INFORMATIONAL & INSTRUCTIONAL ADV"},{"$f":"'FR-16(7)(v)-1 Functional'!D517","v":"K405"},null,{"$f":"'FR-16(7)(v)-14 TOTAL CLASS'!K517","v":0},{"$f":"'FR-16(7)(v)-3 PROD Demand'!K517+'FR-16(7)(v)-7 TRANS Demand'!K517+'FR-16(7)(v)-11 DIST Demand'!K517","v":0},{"$f":"'FR-16(7)(v)-4 PROD Energy'!K517+'FR-16(7)(v)-8 TRANS Energy'!K517+'FR-16(7)(v)-12 DIST Energy'!K517","v":0},{"$f":"'FR-16(7)(v)-5 PROD Cust'!K517+'FR-16(7)(v)-9 TRANS Cust'!K517+'FR-16(7)(v)-13 DIST Cust'!K517","v":0},{"$f":"SUM(G517:I517)","v":0},{"$f":"F517-J517","v":0}]
[4,null,{"$f":"'FR-16(7)(v)-1 Functional'!C518","v":"TOTAL CUSTOMER SERV. & INFO."},null," ",{"$f":"SUM(F516:F517)","v":60},0,0,60,60,0]
[5]
[6,"SALES"]
[7,null,{"$f":"'FR-16(7)(v)-1 Functional'!C521","v":"SALES EXPENSE"},{"$f":"'FR-16(7)(v)-1 Functional'!D521","v":"K405"}," ",{"$f":"'FR-16(7)(v)-14 TOTAL CLASS'!K521","v":150},{"$f":"'FR-16(7)(v)-3 PROD Demand'!K521+'FR-16(7)(v)-7 TRANS Demand'!K521+'FR-16(7)(v)-11 DIST Demand'!K521","v":0},{"$f":"'FR-16(7)(v)-4 PROD Energy'!K521+'FR-16(7)(v)-8 TRANS Energy'!K521+'FR-16(7)(v)-12 DIST Energy'!K521","v":0},{"$f":"'FR-16(7)(v)-5 PROD Cust'!K521+'FR-16(7)(v)-9 TRANS Cust'!K521+'FR-16(7)(v)-13 DIST Cust'!K521","v":150},{"$f":"SUM(G521:I521)","v":150},{"$f":"F521-J521","v":0}]
[8,null,{"$f":"'FR-16(7)(v)-1 Functional'!C522","v":"TOTAL SALES EXPENSE"},null," ",{"$f":"SUM(F520:F521)","v":150},0,0,150,150,0]
[9]
[10,"ADMINISTRATIVE & GENERAL "]
[11,null,{"$f":"'FR-16(7)(v)-1 Functional'!C525","v":"PRODUCTION - DEMAND RELATED"},{"$f":"'FR-16(7)(v)-1 Functional'!D525","v":"P349"},null,{"$f":"'FR-16(7)(v)-14 TOTAL CLASS'!K525","v":0},{"$f":"'FR-16(7)(v)-3 PROD Demand'!K525+'FR-16(7)(v)-7 TRANS Demand'!K525+'FR-16(7)(v)-11 DIST Demand'!K525","v":0},{"$f":"'FR-16(7)(v)-4 PROD Energy'!K525+'FR-16(7)(v)-8 TRANS Energy'!K525+'FR-16(7)(v)-12 DIST Energy'!K525","v":0},{"$f":"'FR-16(7)(v)-5 PROD Cust'!K525+'FR-16(7)(v)-9 TRANS Cust'!K525+'FR-16(7)(v)-13 DIST Cust'!K525","v":0},{"$f":"SUM(G525:I525)","v":0},{"$f":"F525-J525","v":0}]
[12,null,{"$f":"'FR-16(7)(v)-1 Functional'!C526","v":"PRODUCTION - ENERGY RELATED"},{"$f":"'FR-16(7)(v)-1 Functional'!D526","v":"E349"},null,{"$f":"'FR-16(7)(v)-14 TOTAL CLASS'!K526","v":760},{"$f":"'FR-16(7)(v)-3 PROD Demand'!K526+'FR-16(7)(v)-7 TRANS Demand'!K526+'FR-16(7)(v)-11 DIST Demand'!K526","v":0},{"$f":"'FR-16(7)(v)-4 PROD Energy'!K526+'FR-16(7)(v)-8 TRANS Energy'!K526+'FR-16(7)(v)-12 DIST Energy'!K526","v":760},{"$f":"'FR-16(7)(v)-5 PROD Cust'!K526+'FR-16(7)(v)-9 TRANS Cust'!K526+'FR-16(7)(v)-13 DIST Cust'!K526","v":0},760,0]
[13,null,"TRANSMISSION",{"$f":"'FR-16(7)(v)-1 Functional'!D527","v":"T349"},null,{"$f":"'FR-16(7)(v)-14 TOTAL CLASS'!K527","v":103},{"$f":"'FR-16(7)(v)-3 PROD Demand'!K527+'FR-16(7)(v)-7 TRANS Demand'!K527+'FR-16(7)(v)-11 DIST Demand'!K527","v":103},{"$f":"'FR-16(7)(v)-4 PROD Energy'!K527+'FR-16(7)(v)-8 TRANS Energy'!K527+'FR-16(7)(v)-12 DIST Energy'!K527","v":0},{"$f":"'FR-16(7)(v)-5 PROD Cust'!K527+'FR-16(7)(v)-9 TRANS Cust'!K527+'FR-16(7)(v)-13 DIST Cust'!K527","v":0},103,0]
[14,null,{"$f":"'FR-16(7)(v)-1 Functional'!C528","v":"DISTRIBUTION"},{"$f":"'FR-16(7)(v)-1 Functional'!D528","v":"D349"},null,{"$f":"'FR-16(7)(v)-14 TOTAL CLASS'!K528","v":479},{"$f":"'FR-16(7)(v)-3 PROD Demand'!K528+'FR-16(7)(v)-7 TRANS Demand'!K528+'FR-16(7)(v)-11 DIST Demand'!K528","v":339},{"$f":"'FR-16(7)(v)-4 PROD Energy'!K528+'FR-16(7)(v)-8 TRANS Energy'!K528+'FR-16(7)(v)-12 DIST Energy'!K528","v":0},{"$f":"'FR-16(7)(v)-5 PROD Cust'!K528+'FR-16(7)(v)-9 TRANS Cust'!K528+'FR-16(7)(v)-13 DIST Cust'!K528","v":140},479,0]
[15,null,{"$f":"'FR-16(7)(v)-1 Functional'!C529","v":"CUSTOMER ACCOUNTING"},{"$f":"'FR-16(7)(v)-1 Functional'!D529","v":"C319"},null,{"$f":"'FR-16(7)(v)-14 TOTAL CLASS'!K529","v":699},{"$f":"'FR-16(7)(v)-3 PROD Demand'!K529+'FR-16(7)(v)-7 TRANS Demand'!K529+'FR-16(7)(v)-11 DIST Demand'!K529","v":0},{"$f":"'FR-16(7)(v)-4 PROD Energy'!K529+'FR-16(7)(v)-8 TRANS Energy'!K529+'FR-16(7)(v)-12 DIST Energy'!K529","v":0},{"$f":"'FR-16(7)(v)-5 PROD Cust'!K529+'FR-16(7)(v)-9 TRANS Cust'!K529+'FR-16(7)(v)-13 DIST Cust'!K529","v":699},699,0]
[16,null,{"$f":"'FR-16(7)(v)-1 Functional'!C530","v":"CUSTOMER SERVICE & INFORMATION"},{"$f":"'FR-16(7)(v)-1 Functional'!D530","v":"C331"},null,{"$f":"'FR-16(7)(v)-14 TOTAL CLASS'!K530","v":24},{"$f":"'FR-16(7)(v)-3 PROD Demand'!K530+'FR-16(7)(v)-7 TRANS Demand'!K530+'FR-16(7)(v)-11 DIST Demand'!K530","v":0},{"$f":"'FR-16(7)(v)-4 PROD Energy'!K530+'FR-16(7)(v)-8 TRANS Energy'!K530+'FR-16(7)(v)-12 DIST Energy'!K530","v":0},{"$f":"'FR-16(7)(v)-5 PROD Cust'!K530+'FR-16(7)(v)-9 TRANS Cust'!K530+'FR-16(7)(v)-13 DIST Cust'!K530","v":24},24,0]
[17,null,{"$f":"'FR-16(7)(v)-1 Functional'!C531","v":"SALES"},{"$f":"'FR-16(7)(v)-1 Functional'!D531","v":"S319"},null,{"$f":"'FR-16(7)(v)-14 TOTAL CLASS'!K531","v":0},{"$f":"'FR-16(7)(v)-3 PROD Demand'!K531+'FR-16(7)(v)-7 TRANS Demand'!K531+'FR-16(7)(v)-11 DIST Demand'!K531","v":0},{"$f":"'FR-16(7)(v)-4 PROD Energy'!K531+'FR-16(7)(v)-8 TRANS Energy'!K531+'FR-16(7)(v)-12 DIST Energy'!K531","v":0},{"$f":"'FR-16(7)(v)-5 PROD Cust'!K531+'FR-16(7)(v)-9 TRANS Cust'!K531+'FR-16(7)(v)-13 DIST Cust'!K531","v":0},0,0]
[18,null,{"$f":"'FR-16(7)(v)-1 Functional'!C532","v":"TOT ADMIN & GEN LESS REG EXP"}," ",null,{"$f":"SUM(F525:F531)","v":2065},442,760,863,2065,0]
[19,null,{"$f":"'FR-16(7)(v)-1 Functional'!C533","v":"RATE CASE EXPENSE ADJUSTMENT"},{"$f":"'FR-16(7)(v)-1 Functional'!D533","v":"A315"},null,{"$f":"'FR-16(7)(v)-14 TOTAL CLASS'!K533","v":8},{"$f":"'FR-16(7)(v)-3 PROD Demand'!K533+'FR-16(7)(v)-7 TRANS Demand'!K533+'FR-16(7)(v)-11 DIST Demand'!K533","v":1},{"$f":"'FR-16(7)(v)-4 PROD Energy'!K533+'FR-16(7)(v)-8 TRANS Energy'!K533+'FR-16(7)(v)-12 DIST Energy'!K533","v":3},{"$f":"'FR-16(7)(v)-5 PROD Cust'!K533+'FR-16(7)(v)-9 TRANS Cust'!K533+'FR-16(7)(v)-13 DIST Cust'!K533","v":4},{"$f":"SUM(G533:I533)","v":8},{"$f":"F533-J533","v":0}]
[20,null,{"$f":"'FR-16(7)(v)-1 Functional'!C534","v":"ELIMINATE MISCELLANEOUS EXPENSES ADJUSTMENT"},{"$f":"'FR-16(7)(v)-1 Functional'!D534","v":"A315"},null,{"$f":"'FR-16(7)(v)-14 TOTAL CLASS'!K534","v":0},{"$f":"'FR-16(7)(v)-3 PROD Demand'!K534+'FR-16(7)(v)-7 TRANS Demand'!K534+'FR-16(7)(v)-11 DIST Demand'!K534","v":0},{"$f":"'FR-16(7)(v)-4 PROD Energy'!K534+'FR-16(7)(v)-8 TRANS Energy'!K534+'FR-16(7)(v)-12 DIST Energy'!K534","v":0},{"$f":"'FR-16(7)(v)-5 PROD Cust'!K534+'FR-16(7)(v)-9 TRANS Cust'!K534+'FR-16(7)(v)-13 DIST Cust'!K534","v":0},0,0]
[21,null,{"$f":"'FR-16(7)(v)-1 Functional'!C535","v":"RIDER ESM ELIMINATION"},{"$f":"'FR-16(7)(v)-1 Functional'!D535","v":"A315"},null,{"$f":"'FR-16(7)(v)-14 TOTAL CLASS'!K535","v":-605},{"$f":"'FR-16(7)(v)-3 PROD Demand'!K535+'FR-16(7)(v)-7 TRANS Demand'!K535+'FR-16(7)(v)-11 DIST Demand'!K535","v":-126},{"$f":"'FR-16(7)(v)-4 PROD Energy'!K535+'FR-16(7)(v)-8 TRANS Energy'!K535+'FR-16(7)(v)-12 DIST Energy'!K535","v":-224},{"$f":"'FR-16(7)(v)-5 PROD Cust'!K535+'FR-16(7)(v)-9 TRANS Cust'!K535+'FR-16(7)(v)-13 DIST Cust'!K535","v":-255},-605,0]
[22,null,{"$f":"'FR-16(7)(v)-1 Functional'!C536","v":"ELIMINATE DSM"},{"$f":"'FR-16(7)(v)-1 Functional'!D536","v":"A315"},null,{"$f":"'FR-16(7)(v)-14 TOTAL CLASS'!K536","v":-8},{"$f":"'FR-16(7)(v)-3 PROD Demand'!K536+'FR-16(7)(v)-7 TRANS Demand'!K536+'FR-16(7)(v)-11 DIST Demand'!K536","v":-1},{"$f":"'FR-16(7)(v)-4 PROD Energy'!K536+'FR-16(7)(v)-8 TRANS Energy'!K536+'FR-16(7)(v)-12 DIST Energy'!K536","v":-3},{"$f":"'FR-16(7)(v)-5 PROD Cust'!K536+'FR-16(7)(v)-9 TRANS Cust'!K536+'FR-16(7)(v)-13 DIST Cust'!K536","v":-4},-8,0]
[23,null,{"$f":"'FR-16(7)(v)-1 Functional'!C537","v":"DSM DEFERRAL - ELECTRIC"},{"$f":"'FR-16(7)(v)-1 Functional'!D537","v":"A315"},null,{"$f":"'FR-16(7)(v)-14 TOTAL CLASS'!K537","v":0},{"$f":"'FR-16(7)(v)-3 PROD Demand'!K537+'FR-16(7)(v)-7 TRANS Demand'!K537+'FR-16(7)(v)-11 DIST Demand'!K537","v":0},{"$f":"'FR-16(7)(v)-4 PROD Energy'!K537+'FR-16(7)(v)-8 TRANS Energy'!K537+'FR-16(7)(v)-12 DIST Energy'!K537","v":0},{"$f":"'FR-16(7)(v)-5 PROD Cust'!K537+'FR-16(7)(v)-9 TRANS Cust'!K537+'FR-16(7)(v)-13 DIST Cust'!K537","v":0},0,0]
[24,null,{"$f":"'FR-16(7)(v)-1 Functional'!C538","v":"PENSION ADJUSTMENT"},{"$f":"'FR-16(7)(v)-1 Functional'!D538","v":"A315"},null,{"$f":"'FR-16(7)(v)-14 TOTAL CLASS'!K538","v":-38},{"$f":"'FR-16(7)(v)-3 PROD Demand'!K538+'FR-16(7)(v)-7 TRANS Demand'!K538+'FR-16(7)(v)-11 DIST Demand'!K538","v":-8},{"$f":"'FR-16(7)(v)-4 PROD Energy'!K538+'FR-16(7)(v)-8 TRANS Energy'!K538+'FR-16(7)(v)-12 DIST Energy'!K538","v":-14},{"$f":"'FR-16(7)(v)-5 PROD Cust'!K538+'FR-16(7)(v)-9 TRANS Cust'!K538+'FR-16(7)(v)-13 DIST Cust'!K538","v":-16},-38,0]
[25,null,{"$f":"'FR-16(7)(v)-1 Functional'!C539","v":"ELIMINATE MISC EXPENSES"},{"$f":"'FR-16(7)(v)-1 Functional'!D539","v":"A315"},null,{"$f":"'FR-16(7)(v)-14 TOTAL CLASS'!K539","v":-36},{"$f":"'FR-16(7)(v)-3 PROD Demand'!K539+'FR-16(7)(v)-7 TRANS Demand'!K539+'FR-16(7)(v)-11 DIST Demand'!K539","v":-8},{"$f":"'FR-16(7)(v)-4 PROD Energy'!K539+'FR-16(7)(v)-8 TRANS Energy'!K539+'FR-16(7)(v)-12 DIST Energy'!K539","v":-13},{"$f":"'FR-16(7)(v)-5 PROD Cust'!K539+'FR-16(7)(v)-9 TRANS Cust'!K539+'FR-16(7)(v)-13 DIST Cust'!K539","v":-15},-36,0]
[26,null,{"$f":"'FR-16(7)(v)-1 Functional'!C540","v":"ELIMINATE MERGER COSTS AND CREDITS"},{"$f":"'FR-16(7)(v)-1 Functional'!D540","v":"A315"},null,{"$f":"'FR-16(7)(v)-14 TOTAL CLASS'!K540","v":0},{"$f":"'FR-16(7)(v)-3 PROD Demand'!K540+'FR-16(7)(v)-7 TRANS Demand'!K540+'FR-16(7)(v)-11 DIST Demand'!K540","v":0},{"$f":"'FR-16(7)(v)-4 PROD Energy'!K540+'FR-16(7)(v)-8 TRANS Energy'!K540+'FR-16(7)(v)-12 DIST Energy'!K540","v":0},{"$f":"'FR-16(7)(v)-5 PROD Cust'!K540+'FR-16(7)(v)-9 TRANS Cust'!K540+'FR-16(7)(v)-13 DIST Cust'!K540","v":0},0,0]
[27,null,{"$f":"'FR-16(7)(v)-1 Functional'!C541","v":"ANNUALIZE KYPSC MAINT TAX"},{"$f":"'FR-16(7)(v)-1 Functional'!D541","v":"A315"},null,{"$f":"'FR-16(7)(v)-14 TOTAL CLASS'!K541","v":0},{"$f":"'FR-16(7)(v)-3 PROD Demand'!K541+'FR-16(7)(v)-7 TRANS Demand'!K541+'FR-16(7)(v)-11 DIST Demand'!K541","v":0},{"$f":"'FR-16(7)(v)-4 PROD Energy'!K541+'FR-16(7)(v)-8 TRANS Energy'!K541+'FR-16(7)(v)-12 DIST Energy'!K541","v":0},{"$f":"'FR-16(7)(v)-5 PROD Cust'!K541+'FR-16(7)(v)-9 TRANS Cust'!K541+'FR-16(7)(v)-13 DIST Cust'!K541","v":0},0,0]
[28,null,{"$f":"'FR-16(7)(v)-1 Functional'!C542","v":"REMOVE INCENTIVE COMP"},{"$f":"'FR-16(7)(v)-1 Functional'!D542","v":"A315"},null,{"$f":"'FR-16(7)(v)-14 TOTAL CLASS'!K542","v":-102},{"$f":"'FR-16(7)(v)-3 PROD Demand'!K542+'FR-16(7)(v)-7 TRANS Demand'!K542+'FR-16(7)(v)-11 DIST Demand'!K542","v":-21},{"$f":"'FR-16(7)(v)-4 PROD Energy'!K542+'FR-16(7)(v)-8 TRANS Energy'!K542+'FR-16(7)(v)-12 DIST Energy'!K542","v":-38},{"$f":"'FR-16(7)(v)-5 PROD Cust'!K542+'FR-16(7)(v)-9 TRANS Cust'!K542+'FR-16(7)(v)-13 DIST Cust'!K542","v":-43},-102,0]
[29,null,{"$f":"'FR-16(7)(v)-1 Functional'!C543","v":"CREDIT CARD FEES"},{"$f":"'FR-16(7)(v)-1 Functional'!D543","v":"A315"},null,{"$f":"'FR-16(7)(v)-14 TOTAL CLASS'!K543","v":0},{"$f":"'FR-16(7)(v)-3 PROD Demand'!K543+'FR-16(7)(v)-7 TRANS Demand'!K543+'FR-16(7)(v)-11 DIST Demand'!K543","v":0},{"$f":"'FR-16(7)(v)-4 PROD Energy'!K543+'FR-16(7)(v)-8 TRANS Energy'!K543+'FR-16(7)(v)-12 DIST Energy'!K543","v":0},{"$f":"'FR-16(7)(v)-5 PROD Cust'!K543+'FR-16(7)(v)-9 TRANS Cust'!K543+'FR-16(7)(v)-13 DIST Cust'!K543","v":0},0,0]
[30,null,{"$f":"'FR-16(7)(v)-1 Functional'!C544","v":"ELIMINATE INCENTIVE COMPENSATION ADJUSTMENT"},{"$f":"'FR-16(7)(v)-1 Functional'!D544","v":"A315"},null,{"$f":"'FR-16(7)(v)-14 TOTAL CLASS'!K544","v":0},{"$f":"'FR-16(7)(v)-3 PROD Demand'!K544+'FR-16(7)(v)-7 TRANS Demand'!K544+'FR-16(7)(v)-11 DIST Demand'!K544","v":0},{"$f":"'FR-16(7)(v)-4 PROD Energy'!K544+'FR-16(7)(v)-8 TRANS Energy'!K544+'FR-16(7)(v)-12 DIST Energy'!K544","v":0},{"$f":"'FR-16(7)(v)-5 PROD Cust'!K544+'FR-16(7)(v)-9 TRANS Cust'!K544+'FR-16(7)(v)-13 DIST Cust'!K544","v":0},0,0]
[31,null,{"$f":"'FR-16(7)(v)-1 Functional'!C545","v":"AMORTIZATION OF DEFERRAL ASSET"},{"$f":"'FR-16(7)(v)-1 Functional'!D545","v":"A315"},null,{"$f":"'FR-16(7)(v)-14 TOTAL CLASS'!K545","v":0},{"$f":"'FR-16(7)(v)-3 PROD Demand'!K545+'FR-16(7)(v)-7 TRANS Demand'!K545+'FR-16(7)(v)-11 DIST Demand'!K545","v":0},{"$f":"'FR-16(7)(v)-4 PROD Energy'!K545+'FR-16(7)(v)-8 TRANS Energy'!K545+'FR-16(7)(v)-12 DIST Energy'!K545","v":0},{"$f":"'FR-16(7)(v)-5 PROD Cust'!K545+'FR-16(7)(v)-9 TRANS Cust'!K545+'FR-16(7)(v)-13 DIST Cust'!K545","v":0},0,0]
[32,null,{"$f":"'FR-16(7)(v)-1 Functional'!C546","v":"AMORTIZATION OF DEFERRED EXPENSES"},{"$f":"'FR-16(7)(v)-1 Functional'!D546","v":"A315"},null,{"$f":"'FR-16(7)(v)-14 TOTAL CLASS'!K546","v":6},{"$f":"'FR-16(7)(v)-3 PROD Demand'!K546+'FR-16(7)(v)-7 TRANS Demand'!K546+'FR-16(7)(v)-11 DIST Demand'!K546","v":1},{"$f":"'FR-16(7)(v)-4 PROD Energy'!K546+'FR-16(7)(v)-8 TRANS Energy'!K546+'FR-16(7)(v)-12 DIST Energy'!K546","v":2},{"$f":"'FR-16(7)(v)-5 PROD Cust'!K546+'FR-16(7)(v)-9 TRANS Cust'!K546+'FR-16(7)(v)-13 DIST Cust'!K546","v":3},6,0]
[33,null,{"$f":"'FR-16(7)(v)-1 Functional'!C547","v":"TOTAL ADMIN. & GENERAL"},null," ",{"$f":"SUM(F532:F546)","v":1290},280,473,537,1290,0]
[34]
[35,null,{"$f":"'FR-16(7)(v)-1 Functional'!C549","v":"TOTAL O & M EXPENSE"},null,null,{"$f":"F547+F522+F518+F503+F492+F470+F466+F459","v":15359},3036,10348,1975,15359,0]
[]
[{"$f":"co_name","v":"DUKE ENERGY KENTUCKY, INC."},null,null,null,null,null,null,null,null,{"$f":"J1","v":"FR-16(7)(v)-19"}]
[{"$f":"$A$2","v":"SP SECONDARY CLASSIFIED - ELECTRIC COST OF SERVICE"},null,null,null,null,null,null,null,null,{"$f":"J2","v":"WITNESS RESPONSIBLE:"}]
[{"$f":"case_name","v":"CASE NO: 2019-00271"},null,null,null,null,null,null,null,null,{"$f":"Witness","v":"JAMES E. ZIOLKOWSKI"}]
[{"$f":"data_filing","v":"DATA: 12 MONTHS ACTUAL  & 0 MONTHS ESTIMATED"},null,null,null,null,null,null,null,null,{"$f":"\"PAGE \"&Pages2-5&\" OF \"&Pages2","v":"PAGE 10 OF 15"}]
[{"$f":"type","v":"TYPE OF FILING: \"X\" ORIGINAL   UPDATED    REVISED  "}]
[]
[]
["LINE",null,null,null,null,"TOTAL","CLASSIFIED",null,null,"TOTAL","ALL"]
["NO.","DEPRECIATION EXPENSE",null,"ALLO",null,{"$f":"$F$9","v":"SP SECONDARY"},{"$f":"G9","v":"DEMAND"},"ENERGY","CUSTOMER","AT ISSUE","OTHER"]
[null,null,"Schedule 7",null,null,null,3,4,5]
[1,"PRODUCTION DEPRECIATION"]
[2,null,{"$f":"'FR-16(7)(v)-1 Functional'!C562","v":"PRODUCTION DEPRECIATION"},{"$f":"'FR-16(7)(v)-1 Functional'!D562","v":"P229"},null,{"$f":"'FR-16(7)(v)-14 TOTAL CLASS'!K562","v":2627},{"$f":"'FR-16(7)(v)-3 PROD Demand'!K562+'FR-16(7)(v)-7 TRANS Demand'!K562+'FR-16(7)(v)-11 DIST Demand'!K562","v":2627},{"$f":"'FR-16(7)(v)-4 PROD Energy'!K562+'FR-16(7)(v)-8 TRANS Energy'!K562+'FR-16(7)(v)-12 DIST Energy'!K562","v":0},{"$f":"'FR-16(7)(v)-5 PROD Cust'!K562+'FR-16(7)(v)-9 TRANS Cust'!K562+'FR-16(7)(v)-13 DIST Cust'!K562","v":0},{"$f":"SUM(G562:I562)","v":2627},{"$f":"F562-J562","v":0}]
[3,null,{"$f":"'FR-16(7)(v)-1 Functional'!C563","v":"  TOTAL PRODUCTION DEPREC EXP."},null,null,{"$f":"SUM(F562:F562)","v":2627},2627,0,0,2627,0]
[4]
[5,"TRANSMISSION DEPRECIATION"]
[6,null,"TRANSMISSION DEPRECIATION",{"$f":"'FR-16(7)(v)-1 Functional'!D566","v":"T229"},null,{"$f":"'FR-16(7)(v)-14 TOTAL CLASS'!K566","v":103},{"$f":"'FR-16(7)(v)-3 PROD Demand'!K566+'FR-16(7)(v)-7 TRANS Demand'!K566+'FR-16(7)(v)-11 DIST Demand'!K566","v":103},{"$f":"'FR-16(7)(v)-4 PROD Energy'!K566+'FR-16(7)(v)-8 TRANS Energy'!K566+'FR-16(7)(v)-12 DIST Energy'!K566","v":0},{"$f":"'FR-16(7)(v)-5 PROD Cust'!K566+'FR-16(7)(v)-9 TRANS Cust'!K566+'FR-16(7)(v)-13 DIST Cust'!K566","v":0},{"$f":"SUM(G566:I566)","v":103},{"$f":"F566-J566","v":0}]
[7,null,{"$f":"'FR-16(7)(v)-1 Functional'!C567","v":"  TOTAL TRANSMISSION DEP. EXP."},null,null,{"$f":"SUM(F566:F566)","v":103},103,0,0,103,0]
[8]
[9,"DISTRIBUTION DEPRECIATION"]
[10,null,{"$f":"'FR-16(7)(v)-1 Functional'!C570","v":"DISTRIBUTION DEPRECIATION"},{"$f":"'FR-16(7)(v)-1 Functional'!D570","v":"D249"},null,{"$f":"'FR-16(7)(v)-14 TOTAL CLASS'!K570","v":1130},{"$f":"'FR-16(7)(v)-3 PROD Demand'!K570+'FR-16(7)(v)-7 TRANS Demand'!K570+'FR-16(7)(v)-11 DIST Demand'!K570","v":732},{"$f":"'FR-16(7)(v)-4 PROD Energy'!K570+'FR-16(7)(v)-8 TRANS Energy'!K570+'FR-16(7)(v)-12 DIST Energy'!K570","v":0},{"$f":"'FR-16(7)(v)-5 PROD Cust'!K570+'FR-16(7)(v)-9 TRANS Cust'!K570+'FR-16(7)(v)-13 DIST Cust'!K570","v":398},{"$f":"SUM(G570:I570)","v":1130},{"$f":"F570-J570","v":0}]
[11,null,{"$f":"'FR-16(7)(v)-1 Functional'!C571","v":"  TOTAL DIST. DEPREC EXP."},null,null,{"$f":"SUM(F570:F570)","v":1130},732,0,398,1130,0]
[12,null,null,null,null," "]
[13,"GENERAL DEPRECIATION"]
[14,null,{"$f":"'FR-16(7)(v)-1 Functional'!C574","v":"GENERAL DEPRECIATION"},{"$f":"'FR-16(7)(v)-1 Functional'!D574","v":"G229"},null,{"$f":"'FR-16(7)(v)-14 TOTAL CLASS'!K574","v":465},{"$f":"'FR-16(7)(v)-3 PROD Demand'!K574+'FR-16(7)(v)-7 TRANS Demand'!K574+'FR-16(7)(v)-11 DIST Demand'!K574","v":189},{"$f":"'FR-16(7)(v)-4 PROD Energy'!K574+'FR-16(7)(v)-8 TRANS Energy'!K574+'FR-16(7)(v)-12 DIST Energy'!K574","v":130},{"$f":"'FR-16(7)(v)-5 PROD Cust'!K574+'FR-16(7)(v)-9 TRANS Cust'!K574+'FR-16(7)(v)-13 DIST Cust'!K574","v":146},{"$f":"SUM(G574:I574)","v":465},{"$f":"F574-J574","v":0}]
[15,null,{"$f":"'FR-16(7)(v)-1 Functional'!C575","v":"  TOTAL GENERAL DEPREC EXP."},null,null,{"$f":"SUM(F574:F574)","v":465},189,130,146,465,0]
[16]
[17,"COMMON AND OTHER DEPRECIATION"]
[18,null,{"$f":"'FR-16(7)(v)-1 Functional'!C578","v":"COMMON DEPRECIATION"},{"$f":"'FR-16(7)(v)-1 Functional'!D578","v":"C229"},null,{"$f":"'FR-16(7)(v)-14 TOTAL CLASS'!K578","v":3},{"$f":"'FR-16(7)(v)-3 PROD Demand'!K578+'FR-16(7)(v)-7 TRANS Demand'!K578+'FR-16(7)(v)-11 DIST Demand'!K578","v":1},{"$f":"'FR-16(7)(v)-4 PROD Energy'!K578+'FR-16(7)(v)-8 TRANS Energy'!K578+'FR-16(7)(v)-12 DIST Energy'!K578","v":1},{"$f":"'FR-16(7)(v)-5 PROD Cust'!K578+'FR-16(7)(v)-9 TRANS Cust'!K578+'FR-16(7)(v)-13 DIST Cust'!K578","v":1},{"$f":"SUM(G578:I578)","v":3},{"$f":"F578-J578","v":0}]
[19,null,{"$f":"'FR-16(7)(v)-1 Functional'!C579","v":"  TOTAL COM & OTHER DEPREC EXP."},null,null,{"$f":"SUM(F578:F578)","v":3},1,1,1,3,0]
[20]
[21]
[22,"TOTAL DEPRECIATION EXPENSE",null,null," ",{"$f":"F579+F575+F571+F567+F563","v":4328},3652,131,545,4328,0]
[]
[{"$f":"co_name","v":"DUKE ENERGY KENTUCKY, INC."},null,null,null,null,null,null,null,null,{"$f":"J1","v":"FR-16(7)(v)-19"}]
[{"$f":"$A$2","v":"SP SECONDARY CLASSIFIED - ELECTRIC COST OF SERVICE"},null,null,null,null,null,null,null,null,{"$f":"J2","v":"WITNESS RESPONSIBLE:"}]
[{"$f":"case_name","v":"CASE NO: 2019-00271"},null,null,null,null,null,null,null,null,{"$f":"Witness","v":"JAMES E. ZIOLKOWSKI"}]
[{"$f":"data_filing","v":"DATA: 12 MONTHS ACTUAL  & 0 MONTHS ESTIMATED"},null,null,null,null,null,null,null,null,{"$f":"\"PAGE \"&Pages2-4&\" OF \"&Pages2","v":"PAGE 11 OF 15"}]
[{"$f":"type","v":"TYPE OF FILING: \"X\" ORIGINAL   UPDATED    REVISED  "}]
[]
[]
["LINE",null,null,null,null,"TOTAL","CLASSIFIED",null,null,"TOTAL","ALL"]
["NO.","OTHER TAXES & MISC EXPENSES",null,"ALLO",null,{"$f":"$F$9","v":"SP SECONDARY"},{"$f":"G9","v":"DEMAND"},"ENERGY","CUSTOMER","AT ISSUE","OTHER"]
[null,null,"Schedule 8",null,null,null,3,4,5]
[1,"TAXES OTHER THAN INC & REV"]
[2," REAL ESTATE & PROPERTY TAX"]
[3,null,{"$f":"'FR-16(7)(v)-1 Functional'!C596","v":"REAL ESTATE & PROPERTY TAX"},{"$f":"'FR-16(7)(v)-1 Functional'!D596","v":"NP29"},null,{"$f":"'FR-16(7)(v)-14 TOTAL CLASS'!K596","v":1034},{"$f":"'FR-16(7)(v)-3 PROD Demand'!K596+'FR-16(7)(v)-7 TRANS Demand'!K596+'FR-16(7)(v)-11 DIST Demand'!K596","v":851},{"$f":"'FR-16(7)(v)-4 PROD Energy'!K596+'FR-16(7)(v)-8 TRANS Energy'!K596+'FR-16(7)(v)-12 DIST Energy'!K596","v":13},{"$f":"'FR-16(7)(v)-5 PROD Cust'!K596+'FR-16(7)(v)-9 TRANS Cust'!K596+'FR-16(7)(v)-13 DIST Cust'!K596","v":170},{"$f":"SUM(G596:I596)","v":1034},{"$f":"F596-J596","v":0}]
[4,null,{"$f":"'FR-16(7)(v)-1 Functional'!C597","v":"ANNUALIZE PROPERTY TAX"},{"$f":"'FR-16(7)(v)-1 Functional'!D597","v":"NP29"}," ",{"$f":"'FR-16(7)(v)-14 TOTAL CLASS'!K597","v":0},{"$f":"'FR-16(7)(v)-3 PROD Demand'!K597+'FR-16(7)(v)-7 TRANS Demand'!K597+'FR-16(7)(v)-11 DIST Demand'!K597","v":0},{"$f":"'FR-16(7)(v)-4 PROD Energy'!K597+'FR-16(7)(v)-8 TRANS Energy'!K597+'FR-16(7)(v)-12 DIST Energy'!K597","v":0},{"$f":"'FR-16(7)(v)-5 PROD Cust'!K597+'FR-16(7)(v)-9 TRANS Cust'!K597+'FR-16(7)(v)-13 DIST Cust'!K597","v":0},{"$f":"SUM(G597:I597)","v":0},{"$f":"F597-J597","v":0}]
[5,null,{"$f":"'FR-16(7)(v)-1 Functional'!C598","v":"  TOTAL REAL ESTATE & PROPERTY TAX"},null,null,{"$f":"SUM(F596:F597)","v":1034},851,13,170,1034,0]
[6]
[7," MISCELLANEOUS TAXES"]
[8,null,{"$f":"'FR-16(7)(v)-1 Functional'!C601","v":"PAYROLL "},{"$f":"'FR-16(7)(v)-1 Functional'!D601","v":"A315"},null,{"$f":"'FR-16(7)(v)-14 TOTAL CLASS'!K601","v":122},{"$f":"'FR-16(7)(v)-3 PROD Demand'!K601+'FR-16(7)(v)-7 TRANS Demand'!K601+'FR-16(7)(v)-11 DIST Demand'!K601","v":25},{"$f":"'FR-16(7)(v)-4 PROD Energy'!K601+'FR-16(7)(v)-8 TRANS Energy'!K601+'FR-16(7)(v)-12 DIST Energy'!K601","v":45},{"$f":"'FR-16(7)(v)-5 PROD Cust'!K601+'FR-16(7)(v)-9 TRANS Cust'!K601+'FR-16(7)(v)-13 DIST Cust'!K601","v":52},{"$f":"SUM(G601:I601)","v":122},{"$f":"F601-J601","v":0}]
[9,null,{"$f":"'FR-16(7)(v)-1 Functional'!C602","v":"ELIMINATE DSM "},{"$f":"'FR-16(7)(v)-1 Functional'!D602","v":"A315"},null,{"$f":"'FR-16(7)(v)-14 TOTAL CLASS'!K602","v":-2},{"$f":"'FR-16(7)(v)-3 PROD Demand'!K602+'FR-16(7)(v)-7 TRANS Demand'!K602+'FR-16(7)(v)-11 DIST Demand'!K602","v":0},{"$f":"'FR-16(7)(v)-4 PROD Energy'!K602+'FR-16(7)(v)-8 TRANS Energy'!K602+'FR-16(7)(v)-12 DIST Energy'!K602","v":-1},{"$f":"'FR-16(7)(v)-5 PROD Cust'!K602+'FR-16(7)(v)-9 TRANS Cust'!K602+'FR-16(7)(v)-13 DIST Cust'!K602","v":-1},{"$f":"SUM(G602:I602)","v":-2},{"$f":"F602-J602","v":0}]
[10,null,{"$f":"'FR-16(7)(v)-1 Functional'!C603","v":"FRANCHISE & LICENSE"},{"$f":"'FR-16(7)(v)-1 Functional'!D603","v":"A315"},null,{"$f":"'FR-16(7)(v)-14 TOTAL CLASS'!K603","v":0},{"$f":"'FR-16(7)(v)-3 PROD Demand'!K603+'FR-16(7)(v)-7 TRANS Demand'!K603+'FR-16(7)(v)-11 DIST Demand'!K603","v":0},{"$f":"'FR-16(7)(v)-4 PROD Energy'!K603+'FR-16(7)(v)-8 TRANS Energy'!K603+'FR-16(7)(v)-12 DIST Energy'!K603","v":0},{"$f":"'FR-16(7)(v)-5 PROD Cust'!K603+'FR-16(7)(v)-9 TRANS Cust'!K603+'FR-16(7)(v)-13 DIST Cust'!K603","v":0},{"$f":"SUM(G603:I603)","v":0},{"$f":"F603-J603","v":0}]
[11,null,{"$f":"'FR-16(7)(v)-1 Functional'!C604","v":"ELIMINATE ESM"},{"$f":"'FR-16(7)(v)-1 Functional'!D604","v":"A315"},null,{"$f":"'FR-16(7)(v)-14 TOTAL CLASS'!K604","v":-64},{"$f":"'FR-16(7)(v)-3 PROD Demand'!K604+'FR-16(7)(v)-7 TRANS Demand'!K604+'FR-16(7)(v)-11 DIST Demand'!K604","v":-13},{"$f":"'FR-16(7)(v)-4 PROD Energy'!K604+'FR-16(7)(v)-8 TRANS Energy'!K604+'FR-16(7)(v)-12 DIST Energy'!K604","v":-24},{"$f":"'FR-16(7)(v)-5 PROD Cust'!K604+'FR-16(7)(v)-9 TRANS Cust'!K604+'FR-16(7)(v)-13 DIST Cust'!K604","v":-27},{"$f":"SUM(G604:I604)","v":-64},{"$f":"F604-J604","v":0}]
[12,null,{"$f":"'FR-16(7)(v)-1 Functional'!C605","v":"  TOTAL MISCELLANEOUS TAXES"},null,null,{"$f":"SUM(F601:F604)","v":56},12,20,24,56,0]
[13]
[14," MISCELLANEOUS EXPENSES"]
[15,null,{"$f":"'FR-16(7)(v)-1 Functional'!C608","v":"PSC MAINT. EXP ON INCREASE"},{"$f":"'FR-16(7)(v)-1 Functional'!D608","v":"K902"},null,{"$f":"'FR-16(7)(v)-14 TOTAL CLASS'!K608","v":8},{"$f":"'FR-16(7)(v)-3 PROD Demand'!K608+'FR-16(7)(v)-7 TRANS Demand'!K608+'FR-16(7)(v)-11 DIST Demand'!K608","v":4},{"$f":"'FR-16(7)(v)-4 PROD Energy'!K608+'FR-16(7)(v)-8 TRANS Energy'!K608+'FR-16(7)(v)-12 DIST Energy'!K608","v":3},{"$f":"'FR-16(7)(v)-5 PROD Cust'!K608+'FR-16(7)(v)-9 TRANS Cust'!K608+'FR-16(7)(v)-13 DIST Cust'!K608","v":1},{"$f":"SUM(G608:I608)","v":8},{"$f":"F608-J608","v":0}]
[16,null,{"$f":"'FR-16(7)(v)-1 Functional'!C609","v":"RESERVED FOR FUTURE USE"},{"$f":"'FR-16(7)(v)-1 Functional'!D609","v":"K902"},null,{"$f":"'FR-16(7)(v)-14 TOTAL CLASS'!K609","v":0},{"$f":"'FR-16(7)(v)-3 PROD Demand'!K609+'FR-16(7)(v)-7 TRANS Demand'!K609+'FR-16(7)(v)-11 DIST Demand'!K609","v":0},{"$f":"'FR-16(7)(v)-4 PROD Energy'!K609+'FR-16(7)(v)-8 TRANS Energy'!K609+'FR-16(7)(v)-12 DIST Energy'!K609","v":0},{"$f":"'FR-16(7)(v)-5 PROD Cust'!K609+'FR-16(7)(v)-9 TRANS Cust'!K609+'FR-16(7)(v)-13 DIST Cust'!K609","v":0},{"$f":"SUM(G609:I609)","v":0},{"$f":"F609-J609","v":0}]
[17,null,{"$f":"'FR-16(7)(v)-1 Functional'!C610","v":"  TOTAL MISCELLANEOUS EXPENSES"},null,null,{"$f":"SUM(F608:F609)","v":8},4,3,1,8,0]
[18]
[19,"TOTAL OTHER TAX & MISC EXPENSE",null,null," ",{"$f":"F605+F598+F610","v":1098},867,36,195,1098,0]
[20]
[21,"PRELIMINARY SUMMARY"]
[22,null,{"$f":"'FR-16(7)(v)-1 Functional'!C615","v":"TOTAL O&M EXPENSE"},null,null,{"$f":"F549","v":15359},3036,10348,1975,15359,0]
[23,null,{"$f":"'FR-16(7)(v)-1 Functional'!C616","v":"TOTAL DEPRECIATION EXPENSE"},null,null,{"$f":"F582","v":4328},3652,131,545,4328,0]
[24,null,{"$f":"'FR-16(7)(v)-1 Functional'!C617","v":"TOTAL OTHER TAX & MISC EXPENSE"},null,null,{"$f":"F612","v":1098},867,36,195,1098,0]
[25,null,{"$f":"'FR-16(7)(v)-1 Functional'!C618","v":"  TOTAL OPER EXP EXCL INCOME & REV TAX"},null,null,{"$f":"SUM(F615:F617)","v":20785},7555,10515,2715,20785,0]
[]
[{"$f":"co_name","v":"DUKE ENERGY KENTUCKY, INC."},null,null,null,null,null,null,null,null,{"$f":"J1","v":"FR-16(7)(v)-19"}]
[{"$f":"$A$2","v":"SP SECONDARY CLASSIFIED - ELECTRIC COST OF SERVICE"},null,null,null,null,null,null,null,null,{"$f":"J2","v":"WITNESS RESPONSIBLE:"}]
[{"$f":"case_name","v":"CASE NO: 2019-00271"},null,null,null,null,null,null,null,null,{"$f":"Witness","v":"JAMES E. ZIOLKOWSKI"}]
[{"$f":"data_filing","v":"DATA: 12 MONTHS ACTUAL  & 0 MONTHS ESTIMATED"},null,null,null,null,null,null,null,null,{"$f":"\"PAGE \"&Pages2-3&\" OF \"&Pages2","v":"PAGE 12 OF 15"}]
[{"$f":"type","v":"TYPE OF FILING: \"X\" ORIGINAL   UPDATED    REVISED  "}]
[]
[]
["LINE",null,null,null,null,"TOTAL","CLASSIFIED",null,null,"TOTAL","ALL"]
["NO.","FEDERAL INCOME TAX BASED ON RETURN",null,"ALLO",null,{"$f":"$F$9","v":"SP SECONDARY"},{"$f":"$G$9","v":"DEMAND"},{"$f":"$H$9","v":"ENERGY"},{"$f":"$I$9","v":"CUSTOMER"},"AT ISSUE","OTHER"]
[null,null,"Schedule 9",null,null,null,{"$f":"G10","v":3},{"$f":"H10","v":4},{"$f":"I10","v":5}]
[1,"FEDERAL INCOME TAX DEDUCTIONS"]
[2," AUTOMATIC INTEREST CALCULATION",null,null,null," "]
[3,null,{"$f":"'FR-16(7)(v)-1 Functional'!C632","v":"AUTO PROC INTEREST DED"},{"$f":"'FR-16(7)(v)-1 Functional'!D632","v":"RB99"},null,{"$f":"'FR-16(7)(v)-14 TOTAL CLASS'!K632","v":1425},{"$f":"'FR-16(7)(v)-3 PROD Demand'!K632+'FR-16(7)(v)-7 TRANS Demand'!K632+'FR-16(7)(v)-11 DIST Demand'!K632","v":1141},{"$f":"'FR-16(7)(v)-4 PROD Energy'!K632+'FR-16(7)(v)-8 TRANS Energy'!K632+'FR-16(7)(v)-12 DIST Energy'!K632","v":44},{"$f":"'FR-16(7)(v)-5 PROD Cust'!K632+'FR-16(7)(v)-9 TRANS Cust'!K632+'FR-16(7)(v)-13 DIST Cust'!K632","v":240},{"$f":"SUM(G632:I632)","v":1425},{"$f":"F632-J632","v":0}]
[4,null,{"$f":"'FR-16(7)(v)-1 Functional'!C633","v":"  TOTAL INTEREST EXPENSE"},null,null,{"$f":"F632","v":1425},1141,44,240,1425,0]
[5]
[6," OTHER DEDUCTIONS"]
[7,null,{"$f":"'FR-16(7)(v)-1 Functional'!C636","v":"DEPREC EXCESS TAX-BOOK"},{"$f":"'FR-16(7)(v)-1 Functional'!D636","v":"DE49"},null,{"$f":"'FR-16(7)(v)-14 TOTAL CLASS'!K636","v":-1026},{"$f":"'FR-16(7)(v)-3 PROD Demand'!K636+'FR-16(7)(v)-7 TRANS Demand'!K636+'FR-16(7)(v)-11 DIST Demand'!K636","v":-866},{"$f":"'FR-16(7)(v)-4 PROD Energy'!K636+'FR-16(7)(v)-8 TRANS Energy'!K636+'FR-16(7)(v)-12 DIST Energy'!K636","v":-31},{"$f":"'FR-16(7)(v)-5 PROD Cust'!K636+'FR-16(7)(v)-9 TRANS Cust'!K636+'FR-16(7)(v)-13 DIST Cust'!K636","v":-129},{"$f":"SUM(G636:I636)","v":-1026},{"$f":"F636-J636","v":0}]
[8,null,{"$f":"'FR-16(7)(v)-1 Functional'!C637","v":"PERMANENT DIFFERENCES"},{"$f":"'FR-16(7)(v)-1 Functional'!D637","v":"A357"},null,{"$f":"'FR-16(7)(v)-14 TOTAL CLASS'!K637","v":-27},{"$f":"'FR-16(7)(v)-3 PROD Demand'!K637+'FR-16(7)(v)-7 TRANS Demand'!K637+'FR-16(7)(v)-11 DIST Demand'!K637","v":-5},{"$f":"'FR-16(7)(v)-4 PROD Energy'!K637+'FR-16(7)(v)-8 TRANS Energy'!K637+'FR-16(7)(v)-12 DIST Energy'!K637","v":-10},{"$f":"'FR-16(7)(v)-5 PROD Cust'!K637+'FR-16(7)(v)-9 TRANS Cust'!K637+'FR-16(7)(v)-13 DIST Cust'!K637","v":-12},{"$f":"SUM(G637:I637)","v":-27},{"$f":"F637-J637","v":0}]
[9,null,{"$f":"'FR-16(7)(v)-1 Functional'!C638","v":"TEMPORARY DIFFERENCES"},{"$f":"'FR-16(7)(v)-1 Functional'!D638","v":"DE49"},null,{"$f":"'FR-16(7)(v)-14 TOTAL CLASS'!K638","v":6258},{"$f":"'FR-16(7)(v)-3 PROD Demand'!K638+'FR-16(7)(v)-7 TRANS Demand'!K638+'FR-16(7)(v)-11 DIST Demand'!K638","v":5283},{"$f":"'FR-16(7)(v)-4 PROD Energy'!K638+'FR-16(7)(v)-8 TRANS Energy'!K638+'FR-16(7)(v)-12 DIST Energy'!K638","v":189},{"$f":"'FR-16(7)(v)-5 PROD Cust'!K638+'FR-16(7)(v)-9 TRANS Cust'!K638+'FR-16(7)(v)-13 DIST Cust'!K638","v":786},{"$f":"SUM(G638:I638)","v":6258},{"$f":"F638-J638","v":0}]
[10,null,{"$f":"'FR-16(7)(v)-1 Functional'!C639","v":"  TOTAL OTHER DEDUCTIONS"},null,null,{"$f":"SUM(F636:F638)","v":5205},4412,148,645,5205,0]
[11]
[12,"NET DEDUCTIONS AND ADDITIONS",null,null,null,{"$f":"F639+F633","v":6630},5553,192,885,6630,0]
[13]
[14," FED DEFERRED INCOME TAX (410 & 411)"]
[15,null,{"$f":"'FR-16(7)(v)-1 Functional'!C644","v":"DEFERRED INCOME TAXES - NET"},{"$f":"'FR-16(7)(v)-1 Functional'!D644","v":"OM39"},null,{"$f":"'FR-16(7)(v)-14 TOTAL CLASS'!K644","v":1021},{"$f":"'FR-16(7)(v)-3 PROD Demand'!K644+'FR-16(7)(v)-7 TRANS Demand'!K644+'FR-16(7)(v)-11 DIST Demand'!K644","v":203},{"$f":"'FR-16(7)(v)-4 PROD Energy'!K644+'FR-16(7)(v)-8 TRANS Energy'!K644+'FR-16(7)(v)-12 DIST Energy'!K644","v":689},{"$f":"'FR-16(7)(v)-5 PROD Cust'!K644+'FR-16(7)(v)-9 TRANS Cust'!K644+'FR-16(7)(v)-13 DIST Cust'!K644","v":129},{"$f":"SUM(G644:I644)","v":1021},{"$f":"F644-J644","v":0}]
[16,null,{"$f":"'FR-16(7)(v)-1 Functional'!C645","v":"AMORT OF DEFERRED MERGER COST"},{"$f":"'FR-16(7)(v)-1 Functional'!D645","v":"A357"},null,{"$f":"'FR-16(7)(v)-14 TOTAL CLASS'!K645","v":0},{"$f":"'FR-16(7)(v)-3 PROD Demand'!K645+'FR-16(7)(v)-7 TRANS Demand'!K645+'FR-16(7)(v)-11 DIST Demand'!K645","v":0},{"$f":"'FR-16(7)(v)-4 PROD Energy'!K645+'FR-16(7)(v)-8 TRANS Energy'!K645+'FR-16(7)(v)-12 DIST Energy'!K645","v":0},{"$f":"'FR-16(7)(v)-5 PROD Cust'!K645+'FR-16(7)(v)-9 TRANS Cust'!K645+'FR-16(7)(v)-13 DIST Cust'!K645","v":0},{"$f":"SUM(G645:I645)","v":0},{"$f":"F645-J645","v":0}]
[17,null,{"$f":"'FR-16(7)(v)-1 Functional'!C646","v":"DIT ADJUSTMENT - S/L DEPRECIATION"},{"$f":"'FR-16(7)(v)-1 Functional'!D646","v":"DE49"},null,{"$f":"'FR-16(7)(v)-14 TOTAL CLASS'!K646","v":0},{"$f":"'FR-16(7)(v)-3 PROD Demand'!K646+'FR-16(7)(v)-7 TRANS Demand'!K646+'FR-16(7)(v)-11 DIST Demand'!K646","v":0},{"$f":"'FR-16(7)(v)-4 PROD Energy'!K646+'FR-16(7)(v)-8 TRANS Energy'!K646+'FR-16(7)(v)-12 DIST Energy'!K646","v":0},{"$f":"'FR-16(7)(v)-5 PROD Cust'!K646+'FR-16(7)(v)-9 TRANS Cust'!K646+'FR-16(7)(v)-13 DIST Cust'!K646","v":0},{"$f":"SUM(G646:I646)","v":0},{"$f":"F646-J646","v":0}]
[18,null,{"$f":"'FR-16(7)(v)-1 Functional'!C647","v":"DIT ADJUSTMENT - ARAM"},{"$f":"'FR-16(7)(v)-1 Functional'!D647","v":"K201"},null,{"$f":"'FR-16(7)(v)-14 TOTAL CLASS'!K647","v":-8},{"$f":"'FR-16(7)(v)-3 PROD Demand'!K647+'FR-16(7)(v)-7 TRANS Demand'!K647+'FR-16(7)(v)-11 DIST Demand'!K647","v":-8},{"$f":"'FR-16(7)(v)-4 PROD Energy'!K647+'FR-16(7)(v)-8 TRANS Energy'!K647+'FR-16(7)(v)-12 DIST Energy'!K647","v":0},{"$f":"'FR-16(7)(v)-5 PROD Cust'!K647+'FR-16(7)(v)-9 TRANS Cust'!K647+'FR-16(7)(v)-13 DIST Cust'!K647","v":0},{"$f":"SUM(G647:I647)","v":-8},{"$f":"F647-J647","v":0}]
[19,null,{"$f":"'FR-16(7)(v)-1 Functional'!C648","v":"DIT ADJUSTMENT - AMORT OF EXCESS DEF TAXES"},{"$f":"'FR-16(7)(v)-1 Functional'!D648","v":"A357"},null,{"$f":"'FR-16(7)(v)-14 TOTAL CLASS'!K648","v":-240},{"$f":"'FR-16(7)(v)-3 PROD Demand'!K648+'FR-16(7)(v)-7 TRANS Demand'!K648+'FR-16(7)(v)-11 DIST Demand'!K648","v":-50},{"$f":"'FR-16(7)(v)-4 PROD Energy'!K648+'FR-16(7)(v)-8 TRANS Energy'!K648+'FR-16(7)(v)-12 DIST Energy'!K648","v":-89},{"$f":"'FR-16(7)(v)-5 PROD Cust'!K648+'FR-16(7)(v)-9 TRANS Cust'!K648+'FR-16(7)(v)-13 DIST Cust'!K648","v":-101},{"$f":"SUM(G648:I648)","v":-240},{"$f":"F648-J648","v":0}]
[20,null,{"$f":"'FR-16(7)(v)-1 Functional'!C649","v":"  TOTAL FED DEF IT (410 & 411)"},null,null,{"$f":"SUM(F644:F648)","v":773},145,600,28,773,0]
[21]
[22," AMORT INV TAX CREDIT"]
[23,null,{"$f":"'FR-16(7)(v)-1 Functional'!C652","v":"AMORTIZE ITC"},{"$f":"'FR-16(7)(v)-1 Functional'!D652","v":"NP29"},null,{"$f":"'FR-16(7)(v)-14 TOTAL CLASS'!K652","v":0},{"$f":"'FR-16(7)(v)-3 PROD Demand'!K652+'FR-16(7)(v)-7 TRANS Demand'!K652+'FR-16(7)(v)-11 DIST Demand'!K652","v":0},{"$f":"'FR-16(7)(v)-4 PROD Energy'!K652+'FR-16(7)(v)-8 TRANS Energy'!K652+'FR-16(7)(v)-12 DIST Energy'!K652","v":0},{"$f":"'FR-16(7)(v)-5 PROD Cust'!K652+'FR-16(7)(v)-9 TRANS Cust'!K652+'FR-16(7)(v)-13 DIST Cust'!K652","v":0},{"$f":"SUM(G652:I652)","v":0},{"$f":"F652-J652","v":0}]
[24,null,{"$f":"'FR-16(7)(v)-1 Functional'!C653","v":"  TOTAL AMORTIZED ITC"},null,null,{"$f":"SUM(F652:F652)","v":0},0,0,0,0,0]
[25]
[26," OTHER FEDERAL TAX CREDITS"]
[27,null,{"$f":"'FR-16(7)(v)-1 Functional'!C656","v":"FUEL TAX CREDIT"},{"$f":"'FR-16(7)(v)-1 Functional'!D656","v":"K301"},null,{"$f":"'FR-16(7)(v)-14 TOTAL CLASS'!K656","v":0},{"$f":"'FR-16(7)(v)-3 PROD Demand'!K656+'FR-16(7)(v)-7 TRANS Demand'!K656+'FR-16(7)(v)-11 DIST Demand'!K656","v":0},{"$f":"'FR-16(7)(v)-4 PROD Energy'!K656+'FR-16(7)(v)-8 TRANS Energy'!K656+'FR-16(7)(v)-12 DIST Energy'!K656","v":0},{"$f":"'FR-16(7)(v)-5 PROD Cust'!K656+'FR-16(7)(v)-9 TRANS Cust'!K656+'FR-16(7)(v)-13 DIST Cust'!K656","v":0},{"$f":"SUM(G656:I656)","v":0},{"$f":"F656-J656","v":0}]
[28,null,{"$f":"'FR-16(7)(v)-1 Functional'!C657","v":"R&D CREDIT - SECTION 41"},{"$f":"'FR-16(7)(v)-1 Functional'!D657","v":"A315"},null,{"$f":"'FR-16(7)(v)-14 TOTAL CLASS'!K657","v":0},{"$f":"'FR-16(7)(v)-3 PROD Demand'!K657+'FR-16(7)(v)-7 TRANS Demand'!K657+'FR-16(7)(v)-11 DIST Demand'!K657","v":0},{"$f":"'FR-16(7)(v)-4 PROD Energy'!K657+'FR-16(7)(v)-8 TRANS Energy'!K657+'FR-16(7)(v)-12 DIST Energy'!K657","v":0},{"$f":"'FR-16(7)(v)-5 PROD Cust'!K657+'FR-16(7)(v)-9 TRANS Cust'!K657+'FR-16(7)(v)-13 DIST Cust'!K657","v":0},{"$f":"SUM(G657:I657)","v":0},{"$f":"F657-J657","v":0}]
[29,null,{"$f":"'FR-16(7)(v)-1 Functional'!C658","v":"  TOTAL OTHER FEDERAL TAX CREDITS"},null,null,{"$f":"SUM(F656:F657)","v":0},0,0,0,0,0]
[30]
[31,"PRELIMINARY SUMMARY"]
[32,null,{"$f":"'FR-16(7)(v)-1 Functional'!C661","v":"TOTAL FED DEF IT (410 & 411)"},null,null,{"$f":"F649","v":773},145,600,28,773,0]
[33,null,{"$f":"'FR-16(7)(v)-1 Functional'!C662","v":"TOTAL AMORTIZED ITC & OTHER FEDERAL TAX CREDITS"},null,null,{"$f":"-F653-F658","v":0},0,0,0,0,0]
[34,null,{"$f":"'FR-16(7)(v)-1 Functional'!C663","v":"  TOTAL FEDERAL TAX ADJUSTMENTS"},null,null,{"$f":"SUM(F661:F662)","v":773},145,600,28,773,0]
[35]
[36,"FEDERAL INCOME TAX COMPUTATION"]
[37,null,"RETURN ON RATE BASE",null,null,{"$f":"F433","v":4820},{"$f":"G433","v":3860},{"$f":"H433","v":149},{"$f":"I433","v":811},{"$f":"J433","v":4820},{"$f":"F666-J666","v":0}]
[38,null,{"$f":"'FR-16(7)(v)-1 Functional'!C667","v":"NET DEDUCTIONS AND ADDITIONS"},null,null,{"$f":"-F641","v":-6630},{"$f":"-G641","v":-5553},{"$f":"-H641","v":-192},{"$f":"-I641","v":-885},{"$f":"-J641","v":-6630},{"$f":"F667-J667","v":0}]
[39,null,{"$f":"'FR-16(7)(v)-1 Functional'!C668","v":"TOTAL FEDERAL TAX ADJUSTMENTS"},null,null,{"$f":"F663","v":773},{"$f":"G663","v":145},{"$f":"H663","v":600},{"$f":"I663","v":28},{"$f":"J663","v":773},{"$f":"F668-J668","v":0}]
[40,null,"TOTAL STATE PROV DEF IT (410 & 411)",null,null,{"$f":"F707","v":239},{"$f":"G707","v":50},{"$f":"H707","v":88},{"$f":"I707","v":101},{"$f":"J707","v":239},{"$f":"F669-J669","v":0}]
[41,null,"RESERVED",null,null,{"$f":"F24","v":0},{"$f":"G24","v":0},{"$f":"H24","v":0},{"$f":"I24","v":0},{"$f":"J24","v":0},{"$f":"F670-J670","v":0}]
[42,null,{"$f":"'FR-16(7)(v)-1 Functional'!C671","v":"  BASE FOR FIT COMPUATION"},null,null,{"$f":"SUM(F666:F670)","v":-798},-1498,645,55,-798,0]
[43]
[44,null,{"$f":"'FR-16(7)(v)-1 Functional'!C673","v":"FIT FACTOR K190/(1-K190)"},null,null,{"$f":"ROUND(FIT/(1-FIT),9)","v":0.26582278500000001},{"$f":"ROUND(FIT/(1-FIT),9)","v":0.26582278500000001},{"$f":"ROUND(FIT/(1-FIT),9)","v":0.26582278500000001},{"$f":"ROUND(FIT/(1-FIT),9)","v":0.26582278500000001},null,{"$f":"ROUND(FIT/(1-FIT),9)","v":0.26582278500000001}]
[45,null,{"$f":"'FR-16(7)(v)-1 Functional'!C674","v":"PRELIM FED INCOME TAX"},null,null,{"$f":"'FR-16(7)(v)-14 TOTAL CLASS'!K674","v":-213},{"$f":"F674-SUM(H674:I674)","v":-399},{"$f":"'FR-16(7)(v)-4 PROD Energy'!K674+'FR-16(7)(v)-8 TRANS Energy'!K674+'FR-16(7)(v)-12 DIST Energy'!K674","v":171},{"$f":"'FR-16(7)(v)-5 PROD Cust'!K674+'FR-16(7)(v)-9 TRANS Cust'!K674+'FR-16(7)(v)-13 DIST Cust'!K674","v":15},{"$f":"SUM(G674:I674)","v":-213},{"$f":"F674-J674","v":0}]
[46,null,{"$f":"'FR-16(7)(v)-1 Functional'!C675","v":"TOTAL FEDERAL TAX ADJUSTMENTS"},null,null,{"$f":"F663","v":773},{"$f":"G663","v":145},{"$f":"H663","v":600},{"$f":"I663","v":28},{"$f":"J663","v":773},{"$f":"F675-J675","v":0}]
[47,null,{"$f":"'FR-16(7)(v)-1 Functional'!C676","v":"  NET FED INCOME TAX ALLOWABLE"},null,null,{"$f":"SUM(F674:F675)","v":560},-254,771,43,560,0]
[48]
[49,"INCOME TAX BASED ON RETURN"]
[50,"FEDERAL INCOME TAX PAYABLE"]
[51,null,{"$f":"'FR-16(7)(v)-1 Functional'!C680","v":"PRELIM FEDERAL INCOME TAX"},null,null,{"$f":"F674","v":-213},-399,171,15,-213,0]
[53,null,{"$f":"'FR-16(7)(v)-1 Functional'!C681","v":"  NET FED INCOME TAX PAYABLE"},null,null,{"$f":"SUM(F680:F680)","v":-213},-399,171,15,-213,0]
[]
[{"$f":"co_name","v":"DUKE ENERGY KENTUCKY, INC."},null,null,null,null,null,null,null,null,{"$f":"J1","v":"FR-16(7)(v)-19"}]
[{"$f":"$A$2","v":"SP SECONDARY CLASSIFIED - ELECTRIC COST OF SERVICE"},null,null,null,null,null,null,null,null,{"$f":"J2","v":"WITNESS RESPONSIBLE:"}]
[{"$f":"case_name","v":"CASE NO: 2019-00271"},null,null,null,null,null,null,null,null,{"$f":"Witness","v":"JAMES E. ZIOLKOWSKI"}]
[{"$f":"data_filing","v":"DATA: 12 MONTHS ACTUAL  & 0 MONTHS ESTIMATED"},null,null,null,null,null,null,null,null,{"$f":"\"PAGE \"&Pages2-2&\" OF \"&Pages2","v":"PAGE 13 OF 15"}]
[{"$f":"type","v":"TYPE OF FILING: \"X\" ORIGINAL   UPDATED    REVISED  "}]
[]
[]
["LINE",null,null,null,null,"TOTAL","CLASSIFIED",null,null,"TOTAL","ALL"]
["NO.","STATE INCOME TAX BASED ON RETURN",null,"Allo",null,"GAS",{"$f":"$G$9","v":"DEMAND"},{"$f":"$H$9","v":"ENERGY"},{"$f":"$I$9","v":"CUSTOMER"},"AT ISSUE","OTHER"]
[null,null,"Schedule 9.1",null,null,null,{"$f":"$G$10","v":3},{"$f":"$H$10","v":4},{"$f":"$I$10","v":5}]
[1,"DEDUCTIONS IN ADDITION TO Y871"]
[2,"KY TAXABLE INCOME ADJUSTMENT",null,{"$f":"'FR-16(7)(v)-1 Functional'!D694","v":"NP29"},null,{"$f":"'FR-16(7)(v)-14 TOTAL CLASS'!K694","v":648},{"$f":"'FR-16(7)(v)-3 PROD Demand'!K694+'FR-16(7)(v)-7 TRANS Demand'!K694+'FR-16(7)(v)-11 DIST Demand'!K694","v":533},{"$f":"'FR-16(7)(v)-4 PROD Energy'!K694+'FR-16(7)(v)-8 TRANS Energy'!K694+'FR-16(7)(v)-12 DIST Energy'!K694","v":8},{"$f":"'FR-16(7)(v)-5 PROD Cust'!K694+'FR-16(7)(v)-9 TRANS Cust'!K694+'FR-16(7)(v)-13 DIST Cust'!K694","v":107},{"$f":"SUM(G694:I694)","v":648},{"$f":"F694-J694","v":0}]
[3,"RESERVED FOR FUTURE USE",null,{"$f":"'FR-16(7)(v)-1 Functional'!D695","v":"NP29"},null,{"$f":"'FR-16(7)(v)-14 TOTAL CLASS'!K695","v":0},{"$f":"'FR-16(7)(v)-3 PROD Demand'!K695+'FR-16(7)(v)-7 TRANS Demand'!K695+'FR-16(7)(v)-11 DIST Demand'!K695","v":0},{"$f":"'FR-16(7)(v)-4 PROD Energy'!K695+'FR-16(7)(v)-8 TRANS Energy'!K695+'FR-16(7)(v)-12 DIST Energy'!K695","v":0},{"$f":"'FR-16(7)(v)-5 PROD Cust'!K695+'FR-16(7)(v)-9 TRANS Cust'!K695+'FR-16(7)(v)-13 DIST Cust'!K695","v":0},{"$f":"SUM(G695:I695)","v":0},{"$f":"F695-J695","v":0}]
[4,"  DEDUCTIONS IN ADD TO Y871",null,null,null,{"$f":"SUM(F694:F695)","v":648},533,8,107,648,0]
[5]
[6,"STATE INCOME TAX ADJUSTMENTS"]
[7,"STATE PROV DEF INC TAX (410 & 411)"]
[8,"OTHER DEFERRED INCOME TAXES - NET",null,{"$f":"'FR-16(7)(v)-1 Functional'!D700","v":"A357"},null,{"$f":"'FR-16(7)(v)-14 TOTAL CLASS'!K700","v":239},{"$f":"'FR-16(7)(v)-3 PROD Demand'!K700+'FR-16(7)(v)-7 TRANS Demand'!K700+'FR-16(7)(v)-11 DIST Demand'!K700","v":50},{"$f":"'FR-16(7)(v)-4 PROD Energy'!K700+'FR-16(7)(v)-8 TRANS Energy'!K700+'FR-16(7)(v)-12 DIST Energy'!K700","v":88},{"$f":"'FR-16(7)(v)-5 PROD Cust'!K700+'FR-16(7)(v)-9 TRANS Cust'!K700+'FR-16(7)(v)-13 DIST Cust'!K700","v":101},{"$f":"SUM(G700:I700)","v":239},{"$f":"F700-J700","v":0}]
[9,"  TOT STATE PROV DEF IT (410 & 411)",null,null,null,{"$f":"SUM(F700)","v":239},50,88,101,239,0]
[10]
[11,"OTHER SIT ADJUSTMENTS"]
[12,"CURRENT YEAR PAYABLE ADJUSTMENT",null,{"$f":"'FR-16(7)(v)-1 Functional'!D704","v":"NP29"},null,{"$f":"'FR-16(7)(v)-14 TOTAL CLASS'!K704","v":0},{"$f":"'FR-16(7)(v)-3 PROD Demand'!K704+'FR-16(7)(v)-7 TRANS Demand'!K704+'FR-16(7)(v)-11 DIST Demand'!K704","v":0},{"$f":"'FR-16(7)(v)-4 PROD Energy'!K704+'FR-16(7)(v)-8 TRANS Energy'!K704+'FR-16(7)(v)-12 DIST Energy'!K704","v":0},{"$f":"'FR-16(7)(v)-5 PROD Cust'!K704+'FR-16(7)(v)-9 TRANS Cust'!K704+'FR-16(7)(v)-13 DIST Cust'!K704","v":0},{"$f":"SUM(G704:I704)","v":0},{"$f":"F704-J704","v":0}]
[13,"  OTHER SIT ADJUSMENTS",null,null,null,{"$f":"SUM(F704)","v":0},0,0,0,0,0]
[14]
[15,"TOTAL STATE INC TAX ADJUSTMENT",null,null,null,{"$f":"F705+F701","v":239},50,88,101,239,0]
[16]
[17,"INCOME TAX BASED ON RETURN"]
[18,"SUMMARY OF SIT CALCULATION"]
[19,"RETURN ON RATE BASE",null,null,null,{"$f":"F433","v":4820},{"$f":"G433","v":3860},{"$f":"H433","v":149},{"$f":"I433","v":811},{"$f":"J433","v":4820},{"$f":"F711-J711","v":0}]
[20,"NET FED INCOME TAX ALLOWABLE",null,null,null,{"$f":"F676","v":560},{"$f":"G676","v":-254},{"$f":"H676","v":771},{"$f":"I676","v":43},{"$f":"J676","v":560},0]
[21,"NET FED. DED. AND ADDITIONS",null,null,null,{"$f":"-F641","v":-6630},{"$f":"-G641","v":-5553},{"$f":"-H641","v":-192},{"$f":"-I641","v":-885},{"$f":"-J641","v":-6630},0]
[22,"DEDUCTIONS IN ADD TO Y871",null,null,null,{"$f":"-F696","v":-648},{"$f":"-G696","v":-533},{"$f":"-H696","v":-8},{"$f":"-I696","v":-107},{"$f":"-J696","v":-648},0]
[23,"RESERVED",null,null,null,{"$f":"F24","v":0},{"$f":"G24","v":0},{"$f":"H24","v":0},{"$f":"I24","v":0},{"$f":"J24","v":0},0]
[24,"TOTAL STATE INC TAX ADJ",null,null,null,{"$f":"F707","v":239},{"$f":"G707","v":50},{"$f":"H707","v":88},{"$f":"I707","v":101},{"$f":"J707","v":239},0]
[25,"  BASE FOR SIT COMPUTATION",null,null,null,{"$f":"SUM(F711:F716)","v":-1659},-2430,808,-37,-1659,0]
[26]
[27,"SIT FACTOR K192/(1-K192)",null,null,null,{"$f":"ROUND(SIT/(1-SIT),8)","v":5.2282660000000002E-2},{"$f":"ROUND(SIT/(1-SIT),8)","v":5.2282660000000002E-2},{"$f":"ROUND(SIT/(1-SIT),8)","v":5.2282660000000002E-2},{"$f":"ROUND(SIT/(1-SIT),8)","v":5.2282660000000002E-2},null,{"$f":"ROUND(SIT/(1-SIT),8)","v":5.2282660000000002E-2}]
[28,"PRELIMINARY STATE INCOME TAX",null,null,null,{"$f":"ROUND(F717*F719,0)","v":-87},{"$f":"'FR-16(7)(v)-3 PROD Demand'!K720+'FR-16(7)(v)-7 TRANS Demand'!K720+'FR-16(7)(v)-11 DIST Demand'!K720","v":-127},{"$f":"ROUND(H717*H719,0)","v":42},{"$f":"ROUND(I717*I719,0)","v":-2},{"$f":"SUM(G720:I720)","v":-87},{"$f":"F720-J720","v":0}]
[29,"TOTAL STATE INCOME TAX ADJ.",null,null,null,{"$f":"F707","v":239},{"$f":"G707","v":50},{"$f":"H707","v":88},{"$f":"I707","v":101},{"$f":"J707","v":239},{"$f":"F721-J721","v":0}]
[30,"  NET STATE INC TAX ALLOWABLE",null,null,null,{"$f":"F721+F720","v":152},-77,130,99,152,0]
[31]
[32,"STATE INCOME TAX PAYABLE"]
[33,"PRELIMINARY STATE INCOME TAX",null,null,null,{"$f":"F720","v":-87},{"$f":"G720","v":-127},{"$f":"H720","v":42},{"$f":"I720","v":-2},{"$f":"J720","v":-87},{"$f":"F725-J725","v":0}]
[34,"OTHER SIT ADJUSTMENTS",null,null,null,{"$f":"F705","v":0},{"$f":"G705","v":0},{"$f":"H705","v":0},{"$f":"I705","v":0},{"$f":"J705","v":0},{"$f":"F726-J726","v":0}]
[35,"  NET STATE INCOME TAX PAYABLE",null,null,null,{"$f":"F725+F726","v":-87},-127,42,-2,-87,0]
[36]
[37,"COMPOSITE TAX RATE",null,null,null,{"$f":"(SIT*(1-FIT))+((1-SIT)*(1-FIT)*RevTax)+FIT","v":0.24925115},0.24925115,0.24925115,0.24925115,0.24925115,0.24925115]
[]
[{"$f":"co_name","v":"DUKE ENERGY KENTUCKY, INC."},null,null,null,null,null,null,null,null,{"$f":"J1","v":"FR-16(7)(v)-19"}]
[{"$f":"$A$2","v":"SP SECONDARY CLASSIFIED - ELECTRIC COST OF SERVICE"},null,null,null,null,null,null,null,null,{"$f":"J2","v":"WITNESS RESPONSIBLE:"}]
[{"$f":"case_name","v":"CASE NO: 2019-00271"},null,null,null,null,null,null,null,null,{"$f":"Witness","v":"JAMES E. ZIOLKOWSKI"}]
[{"$f":"data_filing","v":"DATA: 12 MONTHS ACTUAL  & 0 MONTHS ESTIMATED"},null,null,null,null,null,null,null,null,{"$f":"\"PAGE \"&Pages2-1&\" OF \"&Pages2","v":"PAGE 14 OF 15"}]
[{"$f":"type","v":"TYPE OF FILING: \"X\" ORIGINAL   UPDATED    REVISED  "}]
[]
[]
["LINE",null,null,null,null,"TOTAL","CLASSIFIED",null,null,"TOTAL","ALL"]
["NO.","COST OF SERVICE COMPUTATION",null,"ALLO",null,{"$f":"$F$9","v":"SP SECONDARY"},{"$f":"G9","v":"DEMAND"},"ENERGY","CUSTOMER","AT ISSUE","OTHER"]
[null,null,"Schedule 10",null,null,null,3,4,5]
[1,"OTHER OPERATING REVENUES"]
[2,null,{"$f":"'FR-16(7)(v)-1 Functional'!C742","v":"MISC SERVICE REVENUE"},{"$f":"'FR-16(7)(v)-1 Functional'!D742","v":"D249"},null,{"$f":"'FR-16(7)(v)-14 TOTAL CLASS'!K742","v":20},{"$f":"'FR-16(7)(v)-3 PROD Demand'!K742+'FR-16(7)(v)-7 TRANS Demand'!K742+'FR-16(7)(v)-11 DIST Demand'!K742","v":13},{"$f":"'FR-16(7)(v)-4 PROD Energy'!K742+'FR-16(7)(v)-8 TRANS Energy'!K742+'FR-16(7)(v)-12 DIST Energy'!K742","v":0},{"$f":"'FR-16(7)(v)-5 PROD Cust'!K742+'FR-16(7)(v)-9 TRANS Cust'!K742+'FR-16(7)(v)-13 DIST Cust'!K742","v":7},{"$f":"SUM(G742:I742)","v":20},{"$f":"F742-J742","v":0}]
[3,null,{"$f":"'FR-16(7)(v)-1 Functional'!C743","v":"INTERDEPARTMENTAL"},{"$f":"'FR-16(7)(v)-1 Functional'!D743","v":"K902"},null,{"$f":"'FR-16(7)(v)-14 TOTAL CLASS'!K743","v":0},{"$f":"'FR-16(7)(v)-3 PROD Demand'!K743+'FR-16(7)(v)-7 TRANS Demand'!K743+'FR-16(7)(v)-11 DIST Demand'!K743","v":0},{"$f":"'FR-16(7)(v)-4 PROD Energy'!K743+'FR-16(7)(v)-8 TRANS Energy'!K743+'FR-16(7)(v)-12 DIST Energy'!K743","v":0},{"$f":"'FR-16(7)(v)-5 PROD Cust'!K743+'FR-16(7)(v)-9 TRANS Cust'!K743+'FR-16(7)(v)-13 DIST Cust'!K743","v":0},0,{"$f":"F743-J743","v":0}]
[4,null,{"$f":"'FR-16(7)(v)-1 Functional'!C744","v":"POLE & LINE ATTACHMENTS"},{"$f":"'FR-16(7)(v)-1 Functional'!D744","v":"D249"},null,{"$f":"'FR-16(7)(v)-14 TOTAL CLASS'!K744","v":17},{"$f":"'FR-16(7)(v)-3 PROD Demand'!K744+'FR-16(7)(v)-7 TRANS Demand'!K744+'FR-16(7)(v)-11 DIST Demand'!K744","v":11},{"$f":"'FR-16(7)(v)-4 PROD Energy'!K744+'FR-16(7)(v)-8 TRANS Energy'!K744+'FR-16(7)(v)-12 DIST Energy'!K744","v":0},{"$f":"'FR-16(7)(v)-5 PROD Cust'!K744+'FR-16(7)(v)-9 TRANS Cust'!K744+'FR-16(7)(v)-13 DIST Cust'!K744","v":6},17,0]
[5,null,{"$f":"'FR-16(7)(v)-1 Functional'!C745","v":"RENTS"},{"$f":"'FR-16(7)(v)-1 Functional'!D745","v":"D249"},null,{"$f":"'FR-16(7)(v)-14 TOTAL CLASS'!K745","v":87},{"$f":"'FR-16(7)(v)-3 PROD Demand'!K745+'FR-16(7)(v)-7 TRANS Demand'!K745+'FR-16(7)(v)-11 DIST Demand'!K745","v":56},{"$f":"'FR-16(7)(v)-4 PROD Energy'!K745+'FR-16(7)(v)-8 TRANS Energy'!K745+'FR-16(7)(v)-12 DIST Energy'!K745","v":0},{"$f":"'FR-16(7)(v)-5 PROD Cust'!K745+'FR-16(7)(v)-9 TRANS Cust'!K745+'FR-16(7)(v)-13 DIST Cust'!K745","v":31},87,0]
[6,null,{"$f":"'FR-16(7)(v)-1 Functional'!C746","v":"TRANSMISSION CHARGE PTP"},{"$f":"'FR-16(7)(v)-1 Functional'!D746","v":"T229"},null,{"$f":"'FR-16(7)(v)-14 TOTAL CLASS'!K746","v":10},{"$f":"'FR-16(7)(v)-3 PROD Demand'!K746+'FR-16(7)(v)-7 TRANS Demand'!K746+'FR-16(7)(v)-11 DIST Demand'!K746","v":10},{"$f":"'FR-16(7)(v)-4 PROD Energy'!K746+'FR-16(7)(v)-8 TRANS Energy'!K746+'FR-16(7)(v)-12 DIST Energy'!K746","v":0},{"$f":"'FR-16(7)(v)-5 PROD Cust'!K746+'FR-16(7)(v)-9 TRANS Cust'!K746+'FR-16(7)(v)-13 DIST Cust'!K746","v":0},10,{"$f":"F746-J746","v":0}]
[7,null,{"$f":"'FR-16(7)(v)-1 Functional'!C747","v":"PJM REACTIVE REVENUE"},{"$f":"'FR-16(7)(v)-1 Functional'!D747","v":"K401"},null,{"$f":"'FR-16(7)(v)-14 TOTAL CLASS'!K747","v":0},{"$f":"'FR-16(7)(v)-3 PROD Demand'!K747+'FR-16(7)(v)-7 TRANS Demand'!K747+'FR-16(7)(v)-11 DIST Demand'!K747","v":0},{"$f":"'FR-16(7)(v)-4 PROD Energy'!K747+'FR-16(7)(v)-8 TRANS Energy'!K747+'FR-16(7)(v)-12 DIST Energy'!K747","v":0},{"$f":"'FR-16(7)(v)-5 PROD Cust'!K747+'FR-16(7)(v)-9 TRANS Cust'!K747+'FR-16(7)(v)-13 DIST Cust'!K747","v":0},0,{"$f":"F747-J747","v":0}]
[8,null,{"$f":"'FR-16(7)(v)-1 Functional'!C748","v":"OTHER TRANSMISSION REVENUES"},{"$f":"'FR-16(7)(v)-1 Functional'!D748","v":"T229"},null,{"$f":"'FR-16(7)(v)-14 TOTAL CLASS'!K748","v":2},{"$f":"'FR-16(7)(v)-3 PROD Demand'!K748+'FR-16(7)(v)-7 TRANS Demand'!K748+'FR-16(7)(v)-11 DIST Demand'!K748","v":2},{"$f":"'FR-16(7)(v)-4 PROD Energy'!K748+'FR-16(7)(v)-8 TRANS Energy'!K748+'FR-16(7)(v)-12 DIST Energy'!K748","v":0},{"$f":"'FR-16(7)(v)-5 PROD Cust'!K748+'FR-16(7)(v)-9 TRANS Cust'!K748+'FR-16(7)(v)-13 DIST Cust'!K748","v":0},2,{"$f":"F748-J748","v":0}]
[9,null,{"$f":"'FR-16(7)(v)-1 Functional'!C749","v":"FIXED BILL PREMIUM"},{"$f":"'FR-16(7)(v)-1 Functional'!D749","v":"K902"},null,{"$f":"'FR-16(7)(v)-14 TOTAL CLASS'!K749","v":0},{"$f":"'FR-16(7)(v)-3 PROD Demand'!K749+'FR-16(7)(v)-7 TRANS Demand'!K749+'FR-16(7)(v)-11 DIST Demand'!K749","v":0},{"$f":"'FR-16(7)(v)-4 PROD Energy'!K749+'FR-16(7)(v)-8 TRANS Energy'!K749+'FR-16(7)(v)-12 DIST Energy'!K749","v":0},{"$f":"'FR-16(7)(v)-5 PROD Cust'!K749+'FR-16(7)(v)-9 TRANS Cust'!K749+'FR-16(7)(v)-13 DIST Cust'!K749","v":0},0,0]
[10,null,{"$f":"'FR-16(7)(v)-1 Functional'!C750","v":"  TOTAL OTHER OPERATING REVS"},null,null,{"$f":"SUM(F742:F749)","v":136},92,0,44,136,0]
[11]
[12,"COST OF SERVICE COMPUTATION"]
[13,null,{"$f":"'FR-16(7)(v)-1 Functional'!C753","v":"TOTAL OP EXP EXC INC & REV TAX"},null,null,{"$f":"F618","v":20785},{"$f":"G618","v":7555},{"$f":"H618","v":10515},{"$f":"I618","v":2715},{"$f":"J618","v":20785},{"$f":"F753-J753","v":0}]
[14,null,"RETURN ON RATE BASE",null,null,{"$f":"F433","v":4820},{"$f":"G433","v":3860},{"$f":"H433","v":149},{"$f":"I433","v":811},{"$f":"J433","v":4820},{"$f":"F754-J754","v":0}]
[15,null,{"$f":"'FR-16(7)(v)-1 Functional'!C755","v":"NET FED INCOME TAX ALLOWABLE"},null,null,{"$f":"F676","v":560},{"$f":"G676","v":-254},{"$f":"H676","v":771},{"$f":"I676","v":43},{"$f":"J676","v":560},{"$f":"F755-J755","v":0}]
[16,null,{"$f":"'FR-16(7)(v)-1 Functional'!C756","v":"NET STATE INCOME TAX ALLOWABLE"},null,null,{"$f":"F722","v":152},{"$f":"G722","v":-77},{"$f":"H722","v":130},{"$f":"I722","v":99},{"$f":"J722","v":152},{"$f":"F756-J756","v":0}]
[17,null,{"$f":"'FR-16(7)(v)-1 Functional'!C757","v":"TOTAL OTHER OPERATING REVENUES"},null,null,{"$f":"-F750","v":-136},{"$f":"-G750","v":-92},{"$f":"-H750","v":0},{"$f":"-I750","v":-44},{"$f":"-J750","v":-136},{"$f":"F757-J757","v":0}]
[18,null,{"$f":"'FR-16(7)(v)-1 Functional'!C758","v":"  SUBTOTAL B"},null,null,{"$f":"SUM(F752:F757)","v":26181},{"$f":"SUM(G752:G757)","v":10992},{"$f":"SUM(H752:H757)","v":11565},{"$f":"SUM(I752:I757)","v":3624},{"$f":"SUM(J752:J757)","v":26181},{"$f":"J758-F758","v":0}]
[19]
[20,null,{"$f":"'FR-16(7)(v)-1 Functional'!C760","v":"TOTAL OTHER OPERATING REVENUES"},null,null,{"$f":"-F757","v":136},{"$f":"-G757","v":92},{"$f":"-H757","v":0},{"$f":"-I757","v":44},{"$f":"-J757","v":136},{"$f":"F760-J760","v":0}]
[21,null,{"$f":"'FR-16(7)(v)-1 Functional'!C761","v":"LESS: REVS EXCL FROM REV TAX CALC"},null,null,{"$f":"'FR-16(7)(v)-14 TOTAL CLASS'!K761","v":0},{"$f":"'FR-16(7)(v)-3 PROD Demand'!K761+'FR-16(7)(v)-7 TRANS Demand'!K761+'FR-16(7)(v)-11 DIST Demand'!K761","v":0},{"$f":"'FR-16(7)(v)-4 PROD Energy'!K761+'FR-16(7)(v)-8 TRANS Energy'!K761+'FR-16(7)(v)-12 DIST Energy'!K761","v":0},{"$f":"'FR-16(7)(v)-5 PROD Cust'!K761+'FR-16(7)(v)-9 TRANS Cust'!K761+'FR-16(7)(v)-13 DIST Cust'!K761","v":0},{"$f":"SUM(G761:I761)","v":0},{"$f":"F761-J761","v":0}]
[22,null,{"$f":"'FR-16(7)(v)-1 Functional'!C762","v":"OTHER OPERATING REVS TO BE TAXED"},null,null,{"$f":"F760-F761","v":136},92,0,44,136,0]
[23]
[24,null,{"$f":"'FR-16(7)(v)-1 Functional'!C764","v":"REVENUE TAX FACTOR"},null,null,{"$f":"ROUND(F817/(1-F817),8)","v":0},0,0,0,0,0]
[25,null,{"$f":"'FR-16(7)(v)-1 Functional'!C765","v":"REVENUE TAX ON OTHER OPER. REVS"},null,null,{"$f":"ROUND(F764*F762,0)","v":0},{"$f":"ROUND(G764*G762,0)","v":0},{"$f":"ROUND(H764*H762,0)","v":0},{"$f":"ROUND(I764*I762,0)","v":0},{"$f":"SUM(G765:I765)","v":0},{"$f":"F765-J765","v":0}]
[26,null,{"$f":"'FR-16(7)(v)-1 Functional'!C766","v":"REVENUE TAX ON COST OF SERVICE"},null,null,{"$f":"ROUND(F764*F758,0)","v":0},{"$f":"ROUND(G764*G758,0)","v":0},{"$f":"ROUND(H764*H758,0)","v":0},{"$f":"ROUND(I764*I758,0)","v":0},{"$f":"SUM(G766:I766)","v":0},{"$f":"F766-J766","v":0}]
[27,null,{"$f":"'FR-16(7)(v)-1 Functional'!C767","v":"TOTAL REVENUE TAX"},null,null,{"$f":"F766+F765","v":0},0,0,0,0,0]
[28]
[29,null,"RESERVED",null,null,{"$f":"F24","v":0},{"$f":"G24","v":0},{"$f":"H24","v":0},{"$f":"I24","v":0},{"$f":"J24","v":0},{"$f":"F769-J769","v":0}]
[30,null,{"$f":"'FR-16(7)(v)-1 Functional'!C770","v":"  TOTAL ELECTRIC COST OF SERVICE"},null,null,{"$f":"F769+F767+F758","v":26181},10992,11565,3624,26181,0]
[31]
[32,"PROPOSED REVENUES ",null,null,null,{"$f":"'FR-16(7)(v)-14 TOTAL CLASS'!K772","v":23101},{"$f":"'FR-16(7)(v)-3 PROD Demand'!K772+'FR-16(7)(v)-7 TRANS Demand'!K772+'FR-16(7)(v)-11 DIST Demand'!K772","v":4810},{"$f":"'FR-16(7)(v)-4 PROD Energy'!K772+'FR-16(7)(v)-8 TRANS Energy'!K772+'FR-16(7)(v)-12 DIST Energy'!K772","v":8553},{"$f":"'FR-16(7)(v)-5 PROD Cust'!K772+'FR-16(7)(v)-9 TRANS Cust'!K772+'FR-16(7)(v)-13 DIST Cust'!K772","v":9738},{"$f":"SUM(G772:I772)","v":23101},{"$f":"F772-J772","v":0}]
[33,"TOTAL ELECTRIC COST OF SERVICE",null,null,null,{"$f":"-F770","v":-26181},{"$f":"-G770","v":-10992},{"$f":"-H770","v":-11565},{"$f":"-I770","v":-3624},{"$f":"SUM(G773:I773)","v":-26181},{"$f":"F773-J773","v":0}]
[34,"EXCESS REVENUES",null,null,null,{"$f":"F773+F772","v":-3080},{"$f":"G773+G772","v":-6182},{"$f":"H773+H772","v":-3012},{"$f":"I773+I772","v":6114},{"$f":"SUM(G774:I774)","v":-3080},{"$f":"F774-J774","v":0}]
[35,"COMPOSITE TAX RATE",null,null,null,{"$f":"F729","v":0.24925115},0.24925115,0.24925115,0.24925115,0.24925115,0.24925115]
[36,"EXCESS TAX",null,null,null,{"$f":"ROUND(F775*F774,0)","v":-768},{"$f":"'FR-16(7)(v)-3 PROD Demand'!K776+'FR-16(7)(v)-7 TRANS Demand'!K776+'FR-16(7)(v)-11 DIST Demand'!K776","v":-1541},{"$f":"ROUND(H775*H774,0)","v":-751},{"$f":"ROUND(I775*I774,0)","v":1524},{"$f":"SUM(G776:I776)","v":-768},{"$f":"F776-J776","v":0}]
[37,"EXCESS RETURN",null,null,null,{"$f":"F774-F776","v":-2312},{"$f":"'FR-16(7)(v)-3 PROD Demand'!K777+'FR-16(7)(v)-7 TRANS Demand'!K777+'FR-16(7)(v)-11 DIST Demand'!K777","v":-4641},{"$f":"H774-H776","v":-2261},{"$f":"I774-I776","v":4590},{"$f":"SUM(G777:I777)","v":-2312},{"$f":"F777-J777","v":0}]
[]
[{"$f":"co_name","v":"DUKE ENERGY KENTUCKY, INC."},null,null,null,null,null,null,null,null,{"$f":"J1","v":"FR-16(7)(v)-19"}]
[{"$f":"$A$2","v":"SP SECONDARY CLASSIFIED - ELECTRIC COST OF SERVICE"},null,null,null,null,null,null,null,null,{"$f":"J2","v":"WITNESS RESPONSIBLE:"}]
[{"$f":"case_name","v":"CASE NO: 2019-00271"},null,null,null,null,null,null,null,null,{"$f":"Witness","v":"JAMES E. ZIOLKOWSKI"}]
[{"$f":"data_filing","v":"DATA: 12 MONTHS ACTUAL  & 0 MONTHS ESTIMATED"},null,null,null,null,null,null,null,null,{"$f":"\"PAGE \"&Pages2&\" OF \"&Pages2","v":"PAGE 15 OF 15"}]
[{"$f":"type","v":"TYPE OF FILING: \"X\" ORIGINAL   UPDATED    REVISED  "}]
[]
[]
["LINE",null,null,null,null,"TOTAL","CLASSIFIED",null,null,"TOTAL","ALL"]
["NO.","ROR, TAX RATES & SPEC FACTORS",null,"ALLO",null,{"$f":"$F$9","v":"SP SECONDARY"},{"$f":"G9","v":"DEMAND"},"ENERGY","CUSTOMER","AT ISSUE","OTHER"]
[null,null,"Schedule 11",null,null,null,3,4,5]
[1,"RATE OF RETURN"]
[2," CAPITALIZATION AMOUNTS",null,null,null,null,"RATIO"]
[3,null,{"$f":"'FR-16(7)(v)-1 Functional'!C791","v":"LONG TERM DEBT"},null,null,{"$f":"'FR-16(7)(v)-1 Functional'!$F$791","v":665948506},{"$f":"IF(TotalCap=0,0,ROUND(F791/TotalCap,4))","v":0.45929999999999999}]
[4,null,{"$f":"'FR-16(7)(v)-1 Functional'!C792","v":"PREFERRED STOCK"},null,null,{"$f":"'FR-16(7)(v)-1 Functional'!$F$792","v":0},{"$f":"IF(TotalCap=0,0,ROUND(F792/TotalCap,4))","v":0}]
[5,null,{"$f":"'FR-16(7)(v)-1 Functional'!C793","v":"COMMON STOCK"},null,null,{"$f":"[0]!Equity","v":699348680},{"$f":"1-G791-G792-G794-G795","v":0.48239999999999994}]
[6,null,{"$f":"'FR-16(7)(v)-1 Functional'!C794","v":"SHORT TERM DEBT"},null,null,{"$f":"'FR-16(7)(v)-1 Functional'!$F$794","v":84600060},{"$f":"IF(TotalCap=0,0,ROUND(F794/TotalCap,4))","v":5.8299999999999998E-2}]
[7,null,{"$f":"'FR-16(7)(v)-1 Functional'!C795","v":"UNAMORTIZED DISCOUNT"},null,null,{"$f":"'FR-16(7)(v)-1 Functional'!$F$795","v":0},{"$f":"IF(TotalCap=0,0,ROUND(F795/TotalCap,4))","v":0}]
[8,null,{"$f":"'FR-16(7)(v)-1 Functional'!C796","v":"  TOTAL"},null,null,{"$f":"SUM(F790:F795)","v":1449897246},{"$f":"SUM(G791:G795)","v":1}]
[9]
[10," COST OF CAPITAL"]
[11,null,{"$f":"'FR-16(7)(v)-1 Functional'!C799","v":"LONG TERM DEBT"},null,null,{"$f":"'FR-16(7)(v)-1 Functional'!$F$799","v":4.0730000000000002E-2}]
[12,null,{"$f":"'FR-16(7)(v)-1 Functional'!C800","v":"PREFERRED STOCK"},null,null,{"$f":"'FR-16(7)(v)-1 Functional'!$F$800","v":0}]
[13,null,{"$f":"'FR-16(7)(v)-1 Functional'!C801","v":"COMMON STOCK"},null,null,{"$f":"'FR-16(7)(v)-1 Functional'!$F$801","v":9.8000000000000004E-2}]
[14,null,{"$f":"'FR-16(7)(v)-1 Functional'!C802","v":"SHORT TERM DEBT"},null,null,{"$f":"'FR-16(7)(v)-1 Functional'!$F$802","v":1.9369999999999998E-2}]
[15,null,{"$f":"'FR-16(7)(v)-1 Functional'!C803","v":"UNAMORTIZED DISCOUNT"},null,null,{"$f":"'FR-16(7)(v)-1 Functional'!$F$803","v":0}]
[16]
[17," WEIGHTED COST OF CAPITAL"]
[18,null,{"$f":"'FR-16(7)(v)-1 Functional'!C806","v":"LONG TERM DEBT"},null,null,{"$f":"ROUND(G791*F799,4)","v":1.8700000000000001E-2}]
[19,null,{"$f":"'FR-16(7)(v)-1 Functional'!C807","v":"PREFERRED STOCK"},null,null,{"$f":"ROUND(G792*F800,4)","v":0}]
[20,null,{"$f":"'FR-16(7)(v)-1 Functional'!C808","v":"COMMON STOCK"},null,null,{"$f":"ROUND(G793*F801,4)","v":4.7300000000000002E-2}]
[21,null,{"$f":"'FR-16(7)(v)-1 Functional'!C809","v":"SHORT TERM DEBT"},null,null,{"$f":"ROUND(G794*F802,4)","v":1.1000000000000001E-3}]
[22,null,{"$f":"'FR-16(7)(v)-1 Functional'!C810","v":"UNAMORTIZED DISCOUNT"},null,null,{"$f":"ROUND(G795*F803,4)","v":0}]
[23,null,{"$f":"'FR-16(7)(v)-1 Functional'!C811","v":"  TOT RATE OF RETURN ALLOWABLE"},null,null,{"$f":"SUM(F806:F810)","v":6.7100000000000007E-2}]
[24]
[25,"TAX RATES AND SPECIAL FACTORS"]
[26,null,{"$f":"'FR-16(7)(v)-1 Functional'!C814","v":"SHORT TERM DEBT COST"},null,null,0,{"$f":"F814","v":0},{"$f":"F814","v":0},{"$f":"F814","v":0},{"$f":"F814","v":0},{"$f":"F814","v":0}]
[27,null,{"$f":"'FR-16(7)(v)-1 Functional'!C815","v":"FEDERAL INCOME TAX RATE"},null,null,0.35,{"$f":"FIT","v":0.21},{"$f":"FIT","v":0.21},{"$f":"FIT","v":0.21},{"$f":"FIT","v":0.21},{"$f":"FIT","v":0.21}]
[28,null,{"$f":"'FR-16(7)(v)-1 Functional'!C816","v":"STATE INCOME TAX RATE"},null,null,{"$f":"SIT","v":4.9685000000000007E-2},4.9685000000000007E-2,4.9685000000000007E-2,4.9685000000000007E-2,4.9685000000000007E-2,4.9685000000000007E-2]
[29,null,{"$f":"'FR-16(7)(v)-1 Functional'!C817","v":"REVENUE TAX RATE"},null,null,0,{"$f":"RevTax","v":0},{"$f":"RevTax","v":0},{"$f":"RevTax","v":0},{"$f":"RevTax","v":0},{"$f":"RevTax","v":0}]
[]
[]
[]
[]
[]
[]
[]
[]
[]
[]
[]
[]
[]
[]
[]
[]
[]
[]
[]
[]
[]
[]
[]
[]
[]
[]
[]
[]
[]
[]
[]
[]
[]
[]
[]
[]
[]
[]
[]
[]
[]
[]
[]
[]
[]
[]
[]
[]
[]
[]
[]
[]
[]
[]
[]
[]
[]
[]
[]
[]
[]
[]
[]
[]
[]
[]
[]
[]
[]
[]
[]
[]
[]
[]
[]
[]
[]
[]
[]
[]
[]
[]
[]
[]
[]
[]
[]
[]
[]
[]
[]
[]
[]
[]
[]
[]
[]
[]
[]
[]
[]
[]
[]
[]
[]
[]
[]
[]
[]
[]
[]
[]
[]
[]
[]
[]
[]
[]
[]
[]
[]
[]
[]
[]
[]
[]
[]
[]
[]
[]
[]
[]
[]
[]
[]
[]
[]
[]
[]
[]
[]
[]
[]
[]
[]
[]
[]
[]
[]
[]
[]
[]
[]
[]
[]
[]
[]
[]
[]
[]
[]
[]
[]
[]
[]
[]
["DO NOT FILE THIS PAGE"]
[]
[{"$f":"co_name","v":"DUKE ENERGY KENTUCKY, INC."},null,null,null,null,null,null,null,null,{"$f":"J1","v":"FR-16(7)(v)-19"}]
[{"$f":"$A$2","v":"SP SECONDARY CLASSIFIED - ELECTRIC COST OF SERVICE"},null,null,null,null,null,null,null,null,{"$f":"J2","v":"WITNESS RESPONSIBLE:"}]
[{"$f":"case_name","v":"CASE NO: 2019-00271"},null,null,null,null,null,null,null,null,{"$f":"Witness","v":"JAMES E. ZIOLKOWSKI"}]
[{"$f":"data_filing","v":"DATA: 12 MONTHS ACTUAL  & 0 MONTHS ESTIMATED"},null,null,null,null,null,null,null,null,{"$f":"\"PAGE \"&Pages2&\" OF \"&Pages2","v":"PAGE 15 OF 15"}]
[{"$f":"type","v":"TYPE OF FILING: \"X\" ORIGINAL   UPDATED    REVISED  "}]
[]
[]
["LINE",null,null,null,null,"TOTAL","CLASSIFIED",null,null,"TOTAL","ALL"]
["NO.","INCOME TAX BASED ON REVENUES",null,"ALLO",null,{"$f":"$F$9","v":"SP SECONDARY"},"DEMAND","COMMODITY","CUSTOMER","AT ISSUE","OTHER"]
[null,null,"Schedule 13",null,null,null,{"$f":"G10","v":3},{"$f":"H10","v":4},{"$f":"I10","v":5}]
[1,"NET INCOME COMPUTATION"]
[2,null,{"$f":"'FR-16(7)(v)-1 Functional'!C1008","v":"TOTAL ELECTRIC COST OF SERVICE"},null,null,{"$f":"F770","v":26181},10992,11565,3624,26181,0]
[3,null,{"$f":"'FR-16(7)(v)-1 Functional'!C1009","v":"TOTAL OTHER OPERATING REVENUES"},null,null,{"$f":"F750","v":136},92,0,44,136,0]
[4,null,{"$f":"'FR-16(7)(v)-1 Functional'!C1010","v":"  TOTAL ELECTRIC REVENUE"},null,null,{"$f":"SUM(F996:F998)","v":26317},11084,11565,3668,26317,0]
[5,null,{"$f":"'FR-16(7)(v)-1 Functional'!C1011","v":"TOTAL OP EXP EX INC & REV TAX"},null,null,{"$f":"-F618","v":-20785},-7555,-10515,-2715,-20785,0]
[6,null,{"$f":"'FR-16(7)(v)-1 Functional'!C1012","v":"FIRM SERVICE REVENUE TAX"},null,null,{"$f":"-ROUND(F817*F997,0)","v":0},{"$f":"-ROUND(G817*G997,0)","v":0},{"$f":"-ROUND(H817*H997,0)","v":0},{"$f":"-ROUND(I817*I997,0)","v":0},{"$f":"SUM(G1001:I1001)","v":0},{"$f":"-ROUND('FR-16(7)(v)-1 Functional'!K817*K997,0)","v":0}]
[7,null,{"$f":"'FR-16(7)(v)-1 Functional'!C1013","v":"  NET INCOME"},null,null,{"$f":"SUM(F999:F1001)","v":5532},{"$f":"SUM(G999:G1001)","v":3529},{"$f":"SUM(H999:H1001)","v":1050},{"$f":"SUM(I999:I1001)","v":953},{"$f":"SUM(G1002:I1002)","v":5532},{"$f":"SUM(K999:K1001)","v":0}]
[8]
[9,"ADJUSTMENTS TO NET INCOME"]
[10,null,{"$f":"'FR-16(7)(v)-1 Functional'!C1016","v":"TOTAL INTEREST EXPENSE"},null,null,{"$f":"-F633","v":-1425},-1141,-44,-240,-1425,0]
[11,null,{"$f":"'FR-16(7)(v)-1 Functional'!C1017","v":"TOTAL OTHER DEDUCTIONS"},null,null,{"$f":"-F639","v":-5205},-4412,-148,-645,-5205,0]
[12,null,{"$f":"'FR-16(7)(v)-1 Functional'!C1018","v":"  PRELIMINARY TAXABLE INCOME"},null,null,{"$f":"SUM(F1004:F1006)+F1002","v":-1098},{"$f":"SUM(G1004:G1006)+G1002","v":-2024},{"$f":"SUM(H1004:H1006)+H1002","v":858},{"$f":"SUM(I1004:I1006)+I1002","v":68},{"$f":"SUM(G1007:I1007)","v":-1098},{"$f":"SUM(K1004:K1006)+K1002","v":0}]
[13]
[14,"INCOME TAX BASED ON REVENUES"]
[15,"FEDERAL INCOME TAX COMPUTATION"]
[16,null,{"$f":"'FR-16(7)(v)-1 Functional'!C1022","v":"PRELIMINARY TAXABLE INCOME"},null,null,{"$f":"F1007","v":-1098},-2024,858,68,-1098,0]
[17,null,{"$f":"'FR-16(7)(v)-1 Functional'!C1023","v":"  NET FEDERAL TAXABLE INCOME"},null,null,{"$f":"SUM(F1011:F1011)","v":-1098},-2024,858,68,-1098,0]
[18,null,{"$f":"'FR-16(7)(v)-1 Functional'!C1024","v":"  FEDERAL INCOME TAX RATE"},null,null,{"$f":"F815","v":0.35},{"$f":"G815","v":0.21},{"$f":"H815","v":0.21},{"$f":"I815","v":0.21},null,{"$f":"'FR-16(7)(v)-1 Functional'!K815","v":0.21}]
[19,null,{"$f":"'FR-16(7)(v)-1 Functional'!C1025","v":"PRELIMINARY FIT = FI01 * K190"},null,null,{"$f":"ROUND(F1013*F1012,0)","v":-384},{"$f":"ROUND(G1013*G1012,0)","v":-425},{"$f":"ROUND(H1013*H1012,0)","v":180},{"$f":"ROUND(I1013*I1012,0)","v":14},{"$f":"SUM(G1014:I1014)","v":-231},{"$f":"ROUND(K1013*K1012,0)","v":0}]
[20,null,{"$f":"'FR-16(7)(v)-1 Functional'!C1026","v":"TOTAL FED DEF IT (410 & 411)"},null,null,{"$f":"F649","v":773},145,600,28,773,0]
[21,null,{"$f":"'FR-16(7)(v)-1 Functional'!C1027","v":"TOTAL AMORTIZED ITC"},null,null,{"$f":"-F653","v":0},0,0,0,0,0]
[22,null,{"$f":"'FR-16(7)(v)-1 Functional'!C1028","v":"  NET FED INC TAX ALLOWABLE"},null,null,{"$f":"SUM(F1014:F1016)","v":389},-280,780,42,542,0]
[23]
[24,"FEDERAL INCOME TAX PAYABLE"]
[25,null,{"$f":"'FR-16(7)(v)-1 Functional'!C1031","v":"PRELIM FIT"},null,null,{"$f":"F1014","v":-384},-425,180,14,-231,0]
[26,null,{"$f":"'FR-16(7)(v)-1 Functional'!C1032","v":"TEST YEAR INV TAX CREDIT"},null,null,{"$f":"-F658","v":0},0,0,0,0,0]
[27,null,{"$f":"'FR-16(7)(v)-1 Functional'!C1033","v":"  FED INC TAX PAYABLE"},null,null,{"$f":"SUM(F1019:F1021)","v":-384},-425,180,14,-231,0]
[28]
[29,"PRELIMINARY SUMMARY"]
[30,null,{"$f":"'FR-16(7)(v)-1 Functional'!C1036","v":"NET INCOME"},null,null,{"$f":"F1002","v":5532},3529,1050,953,5532,0]
[31,null,{"$f":"'FR-16(7)(v)-1 Functional'!C1037","v":"NET FED INC TAX ALLOWABLE"},null,null,{"$f":"-F1017","v":-389},280,-780,-42,-542,0]
[32,null,{"$f":"'FR-16(7)(v)-1 Functional'!C1038","v":"  OVERALL RETURN EARNED"},null,null,{"$f":"SUM(F1024:F1026)","v":5143},3809,270,911,4990,0]
[33]
[34,null,{"$f":"'FR-16(7)(v)-1 Functional'!C1040","v":"  RATE OF RETURN EARNED"},null,null,{"$f":"IF(F426=0,0,ROUND(F1027/F426,5))","v":7.2050000000000003E-2},6.6500000000000004E-2,0.12168,7.6660000000000006E-2,6.991E-2,0]

{"sheet":"FR-16(7)(v)-20 DTS Classified","index":24,"n_rows":1029,"n_cols":14,"rows_kept":1029,"cut":false,"hidden":false,"merged":[]}
[{"$f":"co_name","v":"DUKE ENERGY KENTUCKY, INC."},null,null,null,null,null,null,null,null,"FR-16(7)(v)-20"]
[{"$f":"F9&\" \"&\"CLASSIFIED - ELECTRIC COST OF SERVICE\"","v":"DT SECONDARY CLASSIFIED - ELECTRIC COST OF SERVICE"},null,null,null,null,null,null,null,null,"WITNESS RESPONSIBLE:"]
[{"$f":"case_name","v":"CASE NO: 2019-00271"},null,null,null,null,null,null,null,null,{"$f":"Witness","v":"JAMES E. ZIOLKOWSKI"}]
[{"$f":"data_filing","v":"DATA: 12 MONTHS ACTUAL  & 0 MONTHS ESTIMATED"},null,null,null,null,null,null,null,null,{"$f":"\"PAGE \"&Pages2-14&\" OF \"&Pages2","v":"PAGE 1 OF 15"}]
[{"$f":"type","v":"TYPE OF FILING: \"X\" ORIGINAL   UPDATED    REVISED  "}]
[]
[]
["LINE",null,null,null,null,"TOTAL","CLASSIFIED",null,null,"TOTAL","ALL"]
["NO.","SUMMARY OF RESULTS",null,"ALLO",null,"DT SECONDARY","DEMAND","ENERGY","CUSTOMER","AT ISSUE","OTHER"]
[null,null,"Schedule 1",null,null,null,3,4,5]
[1,"NET INCOME COMPUTATION"]
[2,null,{"$f":"'FR-16(7)(v)-1 Functional'!C12","v":"GROSS ELECTRIC PLANT IN SERVICE"},null,null,{"$f":"F123","v":244536260},{"$f":"G123","v":238978363},{"$f":"H123","v":5043415},{"$f":"I123","v":514482},{"$f":"SUM(G12:I12)","v":244536260},{"$f":"F12-J12","v":0}]
[3,null,{"$f":"'FR-16(7)(v)-1 Functional'!C13","v":"TOTAL DEPRECIATION RESERVE"},null,null,{"$f":"-F200","v":-100888198},{"$f":"-G200","v":-98253844},{"$f":"-H200","v":-2459762},{"$f":"-I200","v":-174592},{"$f":"SUM(G13:I13)","v":-100888198},{"$f":"F13-J13","v":0}]
[4,null,{"$f":"'FR-16(7)(v)-1 Functional'!C14","v":"TOTAL RATE BASE ADJUSTMENTS"},null,null,{"$f":"F421","v":-26018763},{"$f":"G421","v":-28635876},{"$f":"H421","v":2649232},{"$f":"I421","v":-32119},{"$f":"SUM(G14:I14)","v":-26018763},{"$f":"F14-J14","v":0}]
[5,null,{"$f":"'FR-16(7)(v)-1 Functional'!C15","v":"  TOTAL RATE BASE"},null,null,{"$f":"SUM(F12:F14)","v":117629299},112088643,5232885,307771,117629299,0]
[6]
[7,"OPERATING EXPENSES"]
[8,null,{"$f":"'FR-16(7)(v)-1 Functional'!C18","v":"TOTAL O&M EXPENSE"},null,null,{"$f":"F549","v":30098766},{"$f":"G549","v":5640079},{"$f":"H549","v":24405654},{"$f":"I549","v":53033},{"$f":"SUM(G18:I18)","v":30098766},{"$f":"F18-J18","v":0}]
[9,null,{"$f":"'FR-16(7)(v)-1 Functional'!C19","v":"TOTAL DEPRECIATION EXPENSE"},null,null,{"$f":"F582","v":7431765},{"$f":"G582","v":7109904},{"$f":"H582","v":308044},{"$f":"I582","v":13817},{"$f":"SUM(G19:I19)","v":7431765},{"$f":"F19-J19","v":0}]
[10,null,{"$f":"'FR-16(7)(v)-1 Functional'!C20","v":"TOTAL OTHER TAX & MISC EXPENSE"},null,null,{"$f":"F612","v":1783674},{"$f":"G612","v":1693838},{"$f":"H612","v":83039},{"$f":"I612","v":6797},{"$f":"SUM(G20:I20)","v":1783674},{"$f":"F20-J20","v":0}]
[11,null,{"$f":"'FR-16(7)(v)-1 Functional'!C21","v":"  TOTAL OP EXP EXCLUDING INC & REV TAX"},null,null,{"$f":"SUM(F17:F20)","v":39314205},14443821,24796737,73647,39314205,0]
[12,null,{"$f":"'FR-16(7)(v)-1 Functional'!C22","v":"NET FED INCOME TAX EXP ALLOWABLE"},null,null,{"$f":"F676","v":1309753},{"$f":"G676","v":-510243},{"$f":"H676","v":1819094},{"$f":"I676","v":902},{"$f":"SUM(G22:I22)","v":1309753},{"$f":"F22-J22","v":0}]
[13,null,"NET STATE INCOME TAX EXP ALLOWABLE",null,null,{"$f":"F722","v":155077},{"$f":"G722","v":-155833},{"$f":"H722","v":307935},{"$f":"I722","v":2976},{"$f":"SUM(G23:I23)","v":155078},{"$f":"F23-J23","v":-1}]
[14,null,"RESERVED",{"$f":"'FR-16(7)(v)-1 Functional'!D24","v":"CW29"},null,{"$f":"'FR-16(7)(v)-14 TOTAL CLASS'!L24","v":0},{"$f":"'FR-16(7)(v)-3 PROD Demand'!L24+'FR-16(7)(v)-7 TRANS Demand'!L24+'FR-16(7)(v)-11 DIST Demand'!L24","v":0},{"$f":"'FR-16(7)(v)-4 PROD Energy'!L24+'FR-16(7)(v)-8 TRANS Energy'!L24+'FR-16(7)(v)-12 DIST Energy'!L24","v":0},{"$f":"'FR-16(7)(v)-5 PROD Cust'!L24+'FR-16(7)(v)-9 TRANS Cust'!L24+'FR-16(7)(v)-13 DIST Cust'!L24","v":0},{"$f":"SUM(G24:I24)","v":0},{"$f":"F24-J24","v":0}]
[15,null,{"$f":"'FR-16(7)(v)-1 Functional'!C25","v":"REVENUE TAX"},null,null,{"$f":"F767","v":0},{"$f":"G767","v":0},{"$f":"H767","v":0},{"$f":"I767","v":0},{"$f":"SUM(G25:I25)","v":0},{"$f":"F25-J25","v":0}]
[16,null,{"$f":"'FR-16(7)(v)-1 Functional'!C26","v":"  TOTAL OPERATING EXPENSE"},null,null,{"$f":"SUM(F21:F25)","v":40779035},13777745,26923766,77525,40779036,-1]
[17]
[18,"RETURN ON RATE BASE",null,null,null,{"$f":"F433","v":7904870},{"$f":"G433","v":7533282},{"$f":"H433","v":351190},{"$f":"I433","v":20398},{"$f":"SUM(G28:I28)","v":7904870},{"$f":"F28-J28","v":0}]
[19,"TOTAL OTHER OPERATING REVENUES",null,null,null,{"$f":"-F750","v":-187913},{"$f":"-G750","v":-186840},{"$f":"-H750","v":0},{"$f":"-I750","v":-1073},{"$f":"SUM(G29:I29)","v":-187913},{"$f":"F29-J29","v":0}]
[20,null,{"$f":"'FR-16(7)(v)-1 Functional'!C30","v":"TOTAL ELECTRIC COST OF SERVICE"},null,null,{"$f":"SUM(F26:F29)","v":48495992},{"$f":"SUM(G26:G29)","v":21124187},{"$f":"SUM(H26:H29)","v":27274956},{"$f":"SUM(I26:I29)","v":96850},{"$f":"SUM(J26:J29)","v":48495993},{"$f":"F30-J30","v":-1}]
[21,"ADJUSTMENT FOR INTERCLASS SUBSIDIZATION",null,{"$f":"1-'WP FR-16(7)(v) Rate Incr'!I11","v":0.95},null,{"$f":"SUM(G31:I31)","v":3742125},{"$f":"'WP FR-16(7)(v) Rate Incr'!T20","v":2748104},{"$f":"'WP FR-16(7)(v) Rate Incr'!U15","v":0},{"$f":"'WP FR-16(7)(v) Rate Incr'!V20","v":994021},null,{"$f":"F31-J31","v":3742125}]
[22,{"$f":"'FR-16(7)(v)-1 Functional'!$B$32","v":"REQUESTED REVENUES (COST OF SERVICE ADJUSTED FOR SUBSIDIES)"},null,null,null,{"$f":"F30+F31","v":52238117},23872291,27274956,1090871,48495993,3742124]
[23,"PROPOSED REVENUES",null,null,null,{"$f":"'FR-16(7)(v)-14 TOTAL CLASS'!L33","v":52518255},{"$f":"'FR-16(7)(v)-3 PROD Demand'!L33+'FR-16(7)(v)-7 TRANS Demand'!L33+'FR-16(7)(v)-11 DIST Demand'!L33","v":8957023},{"$f":"'FR-16(7)(v)-4 PROD Energy'!L33+'FR-16(7)(v)-8 TRANS Energy'!L33+'FR-16(7)(v)-12 DIST Energy'!L33","v":20173291},{"$f":"'FR-16(7)(v)-5 PROD Cust'!L33+'FR-16(7)(v)-9 TRANS Cust'!L33+'FR-16(7)(v)-13 DIST Cust'!L33","v":291241},{"$f":"SUM(G33:I33)","v":29421555},{"$f":"F33-J33","v":23096700}]
[24,"DIFFERENCE (REQUESTED LESS PROPOSED)",null,null,null,{"$f":"F32-F33","v":-280138},14915268,7101665,799630,19074438,-19354576]
[25]
[26,"TOTAL RETURN EARNED",null,null,null,{"$f":"F777+F28","v":-6415242},{"$f":"G777+G28","v":-1601202},{"$f":"H777+H28","v":-4980377},{"$f":"I777+I28","v":166337},{"$f":"J777+J28","v":-6415242},{"$f":"F36-J36","v":0}]
[27,"RATE OF RETURN EARNED",null,null,null,{"$f":"IF(F431=0,0,ROUND(F36/F431,5))","v":-5.4460000000000001E-2},-1.426E-2,-0.95172000000000001,0.54723999999999995,-5.4460000000000001E-2,0]
[28,"TOTAL RATE OF RETURN ALLOWABLE",null,null,null,{"$f":"$F$811","v":6.7100000000000007E-2},{"$f":"F811","v":6.7100000000000007E-2},{"$f":"F811","v":6.7100000000000007E-2},{"$f":"F811","v":6.7100000000000007E-2},{"$f":"F811","v":6.7100000000000007E-2},{"$f":"IF(K37=0,0,F811)","v":0},null,null,"Not Part of print range"]
[29,"RETURN EARNED ON COMMON EQUITY",null,null,null,{"$f":"IF(Equity=0,0,(F37-$F$806-$F$807-$F$809)*TotalCap/Equity)","v":-0.15395663503355725},{"$f":"IF(Equity=0,0,(G37-$F$806-$F$807-$F$809)*TotalCap/Equity)","v":-7.0613560318380814E-2},{"$f":"IF(Equity=0,0,(H37-F806-F807-F809)*TotalCap/Equity)","v":-2.0141657698330397},{"$f":"IF(Equity=0,0,(I37-F806-F807-F809)*TotalCap/Equity)","v":1.0934943116361353},{"$f":"IF(Equity=0,0,(J37-F806-F807-F809)*TotalCap/Equity)","v":-0.15395663503355725},{"$f":"IF(OR(E793=0,K37=0)=TRUE,0,(K37-E806-E807-E809)*E796/E793)","v":0},null,null,"Not Filed"]
[30,"ALLOWED RETURN ON COMMON EQUITY",null,null,null,{"$f":"IF(Equity=0,0,(F38-$F$806-$F$807-$F$809)*TotalCap/Equity)","v":9.8062871493229981E-2},{"$f":"IF(Equity=0,0,(G38-F806-F807-F809)*TotalCap/Equity)","v":9.8062871493229981E-2},{"$f":"IF(Equity=0,0,(H38-F806-F807-F809)*TotalCap/Equity)","v":9.8062871493229981E-2},{"$f":"IF(Equity=0,0,(I38-F806-F807-F809)*TotalCap/Equity)","v":9.8062871493229981E-2},{"$f":"IF(Equity=0,0,(J38-F806-F807-F809)*TotalCap/Equity)","v":9.8062871493229981E-2},{"$f":"IF(OR(Equity=0,K38=0)=TRUE,0,(K38-F806-F807-F809)*TotalCap/Equity)","v":0}]
[31,null,null,null,null," "]
[32,"PRESENT REVENUES",null,null,null,{"$f":"'FR-16(7)(v)-14 TOTAL CLASS'!L42","v":46910116},{"$f":"F42-SUM(H42:I42)","v":22971013},{"$f":"'FR-16(7)(v)-4 PROD Energy'!L42","v":23854355},{"$f":"'FR-16(7)(v)-13 DIST Cust'!L42","v":84748},{"$f":"SUM(G42:I42)","v":46910116},{"$f":"F42-J42","v":0}]
[33,"REVENUE INCREASE JUSTIFIED",null,null,null,{"$f":"F30-F42","v":1585876},-1846826,3420601,12102,1585877,-1]
[34,null,"PER UNIT PRES REV",null,null,{"$f":"IF(F42=0,0,ROUND(F43/F42,5))","v":3.381E-2},-8.0399999999999999E-2,0.1434,0.14280000000000001,3.381E-2,0]
[35,"REVENUE INCREASE REQUESTED",null,null,null,{"$f":"F33-F42","v":5608139},-14013990,-3681064,206493,-17488561,23096700]
[36,null,"PER UNIT PRES REV",null,null,{"$f":"IF(F42=0,0,ROUND(F45/F42,5))","v":0.11955},-0.61007,-0.15431,2.43655,-0.37280999999999997,0]
[]
[{"$f":"co_name","v":"DUKE ENERGY KENTUCKY, INC."},null,null,null,null,null,null,null,null,{"$f":"J1","v":"FR-16(7)(v)-20"}]
[{"$f":"$A$2","v":"DT SECONDARY CLASSIFIED - ELECTRIC COST OF SERVICE"},null,null,null,null,null,null,null,null,{"$f":"J2","v":"WITNESS RESPONSIBLE:"}]
[{"$f":"case_name","v":"CASE NO: 2019-00271"},null,null,null,null,null,null,null,null,{"$f":"Witness","v":"JAMES E. ZIOLKOWSKI"}]
[{"$f":"data_filing","v":"DATA: 12 MONTHS ACTUAL  & 0 MONTHS ESTIMATED"},null,null,null,null,null,null,null,null,{"$f":"\"PAGE \"&Pages2-13&\" OF \"&Pages2","v":"PAGE 2 OF 15"}]
[{"$f":"type","v":"TYPE OF FILING: \"X\" ORIGINAL   UPDATED    REVISED  "}]
[]
[]
["LINE",null,null,null,null,"TOTAL","CLASSIFIED",null,null,"TOTAL","ALL"]
["NO.","GROSS ELECTRIC PLANT IN SERVICE",null,"ALLO",null,{"$f":"$F$9","v":"DT SECONDARY"},{"$f":"G9","v":"DEMAND"},"ENERGY","CUSTOMER","AT ISSUE","OTHER"]
[null,null,"Schedule 2",null,null,null,3,4,5,null," "]
[1,"PRODUCTION PLANT"]
[2,null,"PRODUCTION STEAM",{"$f":"'FR-16(7)(v)-1 Functional'!D59","v":"K201"},null,{"$f":"'FR-16(7)(v)-14 TOTAL CLASS'!L59","v":112720854},{"$f":"'FR-16(7)(v)-3 PROD Demand'!L59+'FR-16(7)(v)-7 TRANS Demand'!L59+'FR-16(7)(v)-11 DIST Demand'!L59","v":112720854},{"$f":"'FR-16(7)(v)-4 PROD Energy'!L59+'FR-16(7)(v)-8 TRANS Energy'!L59+'FR-16(7)(v)-12 DIST Energy'!L59","v":0},{"$f":"'FR-16(7)(v)-5 PROD Cust'!L59+'FR-16(7)(v)-9 TRANS Cust'!L59+'FR-16(7)(v)-13 DIST Cust'!L59","v":0},{"$f":"SUM(G59:I59)","v":112720854},{"$f":"F59-J59","v":0}]
[3,null,"PRODUCTION OTHER",{"$f":"'FR-16(7)(v)-1 Functional'!D60","v":"K201"},null,{"$f":"'FR-16(7)(v)-14 TOTAL CLASS'!L60","v":50393611},{"$f":"'FR-16(7)(v)-3 PROD Demand'!L60+'FR-16(7)(v)-7 TRANS Demand'!L60+'FR-16(7)(v)-11 DIST Demand'!L60","v":50393611},{"$f":"'FR-16(7)(v)-4 PROD Energy'!L60+'FR-16(7)(v)-8 TRANS Energy'!L60+'FR-16(7)(v)-12 DIST Energy'!L60","v":0},{"$f":"'FR-16(7)(v)-5 PROD Cust'!L60+'FR-16(7)(v)-9 TRANS Cust'!L60+'FR-16(7)(v)-13 DIST Cust'!L60","v":0},{"$f":"SUM(G60:I60)","v":50393611},{"$f":"F60-J60","v":0}]
[4,null,{"$f":"'FR-16(7)(v)-1 Functional'!C61","v":"ADJUSTMENT"},{"$f":"'FR-16(7)(v)-1 Functional'!D61","v":"K201"},null,{"$f":"'FR-16(7)(v)-14 TOTAL CLASS'!L61","v":0},{"$f":"'FR-16(7)(v)-3 PROD Demand'!L61+'FR-16(7)(v)-7 TRANS Demand'!L61+'FR-16(7)(v)-11 DIST Demand'!L61","v":0},{"$f":"'FR-16(7)(v)-4 PROD Energy'!L61+'FR-16(7)(v)-8 TRANS Energy'!L61+'FR-16(7)(v)-12 DIST Energy'!L61","v":0},{"$f":"'FR-16(7)(v)-5 PROD Cust'!L61+'FR-16(7)(v)-9 TRANS Cust'!L61+'FR-16(7)(v)-13 DIST Cust'!L61","v":0},{"$f":"SUM(G61:I61)","v":0},{"$f":"F61-J61","v":0}]
[5,null,{"$f":"'FR-16(7)(v)-1 Functional'!C62","v":"  PRODUCTION PLANT IN SERVICE"},null,null,{"$f":"SUM(F59:F61)","v":163114465},163114465,0,0,163114465,0]
[6]
[7,"TRANSMISSION PLANT"]
[8,null,"MAIN STEP-UP TRANSFORMERS",{"$f":"'FR-16(7)(v)-1 Functional'!D65","v":"K202"},null,{"$f":"'FR-16(7)(v)-14 TOTAL CLASS'!L65","v":0},{"$f":"'FR-16(7)(v)-3 PROD Demand'!L65+'FR-16(7)(v)-7 TRANS Demand'!L65+'FR-16(7)(v)-11 DIST Demand'!L65","v":0},{"$f":"'FR-16(7)(v)-4 PROD Energy'!L65+'FR-16(7)(v)-8 TRANS Energy'!L65+'FR-16(7)(v)-12 DIST Energy'!L65","v":0},{"$f":"'FR-16(7)(v)-5 PROD Cust'!L65+'FR-16(7)(v)-9 TRANS Cust'!L65+'FR-16(7)(v)-13 DIST Cust'!L65","v":0},{"$f":"SUM(G65:I65)","v":0},{"$f":"F65-J65","v":0}]
[9,null,"OTHER TRANSMISSION",{"$f":"'FR-16(7)(v)-1 Functional'!D66","v":"K202"},null,{"$f":"'FR-16(7)(v)-14 TOTAL CLASS'!L66","v":9765837},{"$f":"'FR-16(7)(v)-3 PROD Demand'!L66+'FR-16(7)(v)-7 TRANS Demand'!L66+'FR-16(7)(v)-11 DIST Demand'!L66","v":9765837},{"$f":"'FR-16(7)(v)-4 PROD Energy'!L66+'FR-16(7)(v)-8 TRANS Energy'!L66+'FR-16(7)(v)-12 DIST Energy'!L66","v":0},{"$f":"'FR-16(7)(v)-5 PROD Cust'!L66+'FR-16(7)(v)-9 TRANS Cust'!L66+'FR-16(7)(v)-13 DIST Cust'!L66","v":0},{"$f":"SUM(G66:I66)","v":9765837},{"$f":"F66-J66","v":0}]
[10,null,"ADJUSTMENT",{"$f":"'FR-16(7)(v)-1 Functional'!D67","v":"K202"},null,{"$f":"'FR-16(7)(v)-14 TOTAL CLASS'!L67","v":0},{"$f":"'FR-16(7)(v)-3 PROD Demand'!L67+'FR-16(7)(v)-7 TRANS Demand'!L67+'FR-16(7)(v)-11 DIST Demand'!L67","v":0},{"$f":"'FR-16(7)(v)-4 PROD Energy'!L67+'FR-16(7)(v)-8 TRANS Energy'!L67+'FR-16(7)(v)-12 DIST Energy'!L67","v":0},{"$f":"'FR-16(7)(v)-5 PROD Cust'!L67+'FR-16(7)(v)-9 TRANS Cust'!L67+'FR-16(7)(v)-13 DIST Cust'!L67","v":0},{"$f":"SUM(G67:I67)","v":0},{"$f":"F67-J67","v":0}]
[11,null,{"$f":"'FR-16(7)(v)-1 Functional'!C68","v":"  TRANSMISSION PLANT IN SERVICE"},null,null,{"$f":"SUM(F65:F67)","v":9765837},9765837,0,0,9765837,0]
[12]
[13,"TOTAL PROD & TRANS PLANT",null,null,null,{"$f":"F68+F62","v":172880302},172880302,0,0,172880302,0]
[14]
[15,"DISTRIBUTION PLANT"]
[16,null,{"$f":"'FR-16(7)(v)-1 Functional'!C73","v":"SUBSTATIONS"},{"$f":"'FR-16(7)(v)-1 Functional'!D73","v":"K215"},null,{"$f":"'FR-16(7)(v)-14 TOTAL CLASS'!L73","v":12880435},{"$f":"'FR-16(7)(v)-3 PROD Demand'!L73+'FR-16(7)(v)-7 TRANS Demand'!L73+'FR-16(7)(v)-11 DIST Demand'!L73","v":12880435},{"$f":"'FR-16(7)(v)-4 PROD Energy'!L73+'FR-16(7)(v)-8 TRANS Energy'!L73+'FR-16(7)(v)-12 DIST Energy'!L73","v":0},{"$f":"'FR-16(7)(v)-5 PROD Cust'!L73+'FR-16(7)(v)-9 TRANS Cust'!L73+'FR-16(7)(v)-13 DIST Cust'!L73","v":0},{"$f":"SUM(G73:I73)","v":12880435},{"$f":"F73-J73","v":0}]
[17,null,{"$f":"'FR-16(7)(v)-1 Functional'!C74","v":"POLES, TOWERS  & FIXTURES - PRIMARY - DEMAND"},{"$f":"'FR-16(7)(v)-1 Functional'!D74","v":"K205"},null,{"$f":"'FR-16(7)(v)-14 TOTAL CLASS'!L74","v":4673552},{"$f":"'FR-16(7)(v)-3 PROD Demand'!L74+'FR-16(7)(v)-7 TRANS Demand'!L74+'FR-16(7)(v)-11 DIST Demand'!L74","v":4673552},{"$f":"'FR-16(7)(v)-4 PROD Energy'!L74+'FR-16(7)(v)-8 TRANS Energy'!L74+'FR-16(7)(v)-12 DIST Energy'!L74","v":0},{"$f":"'FR-16(7)(v)-5 PROD Cust'!L74+'FR-16(7)(v)-9 TRANS Cust'!L74+'FR-16(7)(v)-13 DIST Cust'!L74","v":0},{"$f":"SUM(G74:I74)","v":4673552},{"$f":"F74-J74","v":0}]
[18,null,{"$f":"'FR-16(7)(v)-1 Functional'!C75","v":"POLES, TOWERS  & FIXTURES - PRIMARY - CUSTOMER"},{"$f":"'FR-16(7)(v)-1 Functional'!D75","v":"K405"},null,{"$f":"'FR-16(7)(v)-14 TOTAL CLASS'!L75","v":16919},{"$f":"'FR-16(7)(v)-3 PROD Demand'!L75+'FR-16(7)(v)-7 TRANS Demand'!L75+'FR-16(7)(v)-11 DIST Demand'!L75","v":0},{"$f":"'FR-16(7)(v)-4 PROD Energy'!L75+'FR-16(7)(v)-8 TRANS Energy'!L75+'FR-16(7)(v)-12 DIST Energy'!L75","v":0},{"$f":"'FR-16(7)(v)-5 PROD Cust'!L75+'FR-16(7)(v)-9 TRANS Cust'!L75+'FR-16(7)(v)-13 DIST Cust'!L75","v":16919},{"$f":"SUM(G75:I75)","v":16919},{"$f":"F75-J75","v":0}]
[19,null,{"$f":"'FR-16(7)(v)-1 Functional'!C76","v":"POLES, TOWERS  & FIXTURES - SECONDARY - DEMAND"},{"$f":"'FR-16(7)(v)-1 Functional'!D76","v":"K206"},null,{"$f":"'FR-16(7)(v)-14 TOTAL CLASS'!L76","v":1787322},{"$f":"'FR-16(7)(v)-3 PROD Demand'!L76+'FR-16(7)(v)-7 TRANS Demand'!L76+'FR-16(7)(v)-11 DIST Demand'!L76","v":1787322},{"$f":"'FR-16(7)(v)-4 PROD Energy'!L76+'FR-16(7)(v)-8 TRANS Energy'!L76+'FR-16(7)(v)-12 DIST Energy'!L76","v":0},{"$f":"'FR-16(7)(v)-5 PROD Cust'!L76+'FR-16(7)(v)-9 TRANS Cust'!L76+'FR-16(7)(v)-13 DIST Cust'!L76","v":0},1787322,0]
[20,null,{"$f":"'FR-16(7)(v)-1 Functional'!C77","v":"POLES, TOWERS  & FIXTURES - SECONDARY - CUSTOMER"},{"$f":"'FR-16(7)(v)-1 Functional'!D77","v":"K405"},null,{"$f":"'FR-16(7)(v)-14 TOTAL CLASS'!L77","v":3825},{"$f":"'FR-16(7)(v)-3 PROD Demand'!L77+'FR-16(7)(v)-7 TRANS Demand'!L77+'FR-16(7)(v)-11 DIST Demand'!L77","v":0},{"$f":"'FR-16(7)(v)-4 PROD Energy'!L77+'FR-16(7)(v)-8 TRANS Energy'!L77+'FR-16(7)(v)-12 DIST Energy'!L77","v":0},{"$f":"'FR-16(7)(v)-5 PROD Cust'!L77+'FR-16(7)(v)-9 TRANS Cust'!L77+'FR-16(7)(v)-13 DIST Cust'!L77","v":3825},3825,0]
[21,null,{"$f":"'FR-16(7)(v)-1 Functional'!C78","v":"CONDUCTORS - OVERHEAD / PRIMARY - DEMAND"},{"$f":"'FR-16(7)(v)-1 Functional'!D78","v":"K205"},null,{"$f":"'FR-16(7)(v)-14 TOTAL CLASS'!L78","v":10650047},{"$f":"'FR-16(7)(v)-3 PROD Demand'!L78+'FR-16(7)(v)-7 TRANS Demand'!L78+'FR-16(7)(v)-11 DIST Demand'!L78","v":10650047},{"$f":"'FR-16(7)(v)-4 PROD Energy'!L78+'FR-16(7)(v)-8 TRANS Energy'!L78+'FR-16(7)(v)-12 DIST Energy'!L78","v":0},{"$f":"'FR-16(7)(v)-5 PROD Cust'!L78+'FR-16(7)(v)-9 TRANS Cust'!L78+'FR-16(7)(v)-13 DIST Cust'!L78","v":0},10650047,0]
[22,null,{"$f":"'FR-16(7)(v)-1 Functional'!C79","v":"CONDUCTORS - OVERHEAD / PRIMARY - CUSTOMER"},{"$f":"'FR-16(7)(v)-1 Functional'!D79","v":"K405"},null,{"$f":"'FR-16(7)(v)-14 TOTAL CLASS'!L79","v":18398},{"$f":"'FR-16(7)(v)-3 PROD Demand'!L79+'FR-16(7)(v)-7 TRANS Demand'!L79+'FR-16(7)(v)-11 DIST Demand'!L79","v":0},{"$f":"'FR-16(7)(v)-4 PROD Energy'!L79+'FR-16(7)(v)-8 TRANS Energy'!L79+'FR-16(7)(v)-12 DIST Energy'!L79","v":0},{"$f":"'FR-16(7)(v)-5 PROD Cust'!L79+'FR-16(7)(v)-9 TRANS Cust'!L79+'FR-16(7)(v)-13 DIST Cust'!L79","v":18398},18398,0]
[23,null,{"$f":"'FR-16(7)(v)-1 Functional'!C80","v":"CONDUCTORS - OVERHEAD / SECONDARY - DEMAND"},{"$f":"'FR-16(7)(v)-1 Functional'!D80","v":"K206"},null,{"$f":"'FR-16(7)(v)-14 TOTAL CLASS'!L80","v":4336574},{"$f":"'FR-16(7)(v)-3 PROD Demand'!L80+'FR-16(7)(v)-7 TRANS Demand'!L80+'FR-16(7)(v)-11 DIST Demand'!L80","v":4336574},{"$f":"'FR-16(7)(v)-4 PROD Energy'!L80+'FR-16(7)(v)-8 TRANS Energy'!L80+'FR-16(7)(v)-12 DIST Energy'!L80","v":0},{"$f":"'FR-16(7)(v)-5 PROD Cust'!L80+'FR-16(7)(v)-9 TRANS Cust'!L80+'FR-16(7)(v)-13 DIST Cust'!L80","v":0},4336574,0]
[24,null,{"$f":"'FR-16(7)(v)-1 Functional'!C81","v":"CONDUCTORS - OVERHEAD / SECONDARY - CUSTOMER"},{"$f":"'FR-16(7)(v)-1 Functional'!D81","v":"K405"},null,{"$f":"'FR-16(7)(v)-14 TOTAL CLASS'!L81","v":7621},{"$f":"'FR-16(7)(v)-3 PROD Demand'!L81+'FR-16(7)(v)-7 TRANS Demand'!L81+'FR-16(7)(v)-11 DIST Demand'!L81","v":0},{"$f":"'FR-16(7)(v)-4 PROD Energy'!L81+'FR-16(7)(v)-8 TRANS Energy'!L81+'FR-16(7)(v)-12 DIST Energy'!L81","v":0},{"$f":"'FR-16(7)(v)-5 PROD Cust'!L81+'FR-16(7)(v)-9 TRANS Cust'!L81+'FR-16(7)(v)-13 DIST Cust'!L81","v":7621},7621,0]
[25,null,{"$f":"'FR-16(7)(v)-1 Functional'!C82","v":"CONDUCTORS - UNDERGROUND / PRIMARY - DEMAND"},{"$f":"'FR-16(7)(v)-1 Functional'!D82","v":"K205"},null,{"$f":"'FR-16(7)(v)-14 TOTAL CLASS'!L82","v":7948486},{"$f":"'FR-16(7)(v)-3 PROD Demand'!L82+'FR-16(7)(v)-7 TRANS Demand'!L82+'FR-16(7)(v)-11 DIST Demand'!L82","v":7948486},{"$f":"'FR-16(7)(v)-4 PROD Energy'!L82+'FR-16(7)(v)-8 TRANS Energy'!L82+'FR-16(7)(v)-12 DIST Energy'!L82","v":0},{"$f":"'FR-16(7)(v)-5 PROD Cust'!L82+'FR-16(7)(v)-9 TRANS Cust'!L82+'FR-16(7)(v)-13 DIST Cust'!L82","v":0},7948486,0]
[26,null,{"$f":"'FR-16(7)(v)-1 Functional'!C83","v":"CONDUCTORS - UNDERGROUND / PRIMARY - CUSTOMER"},{"$f":"'FR-16(7)(v)-1 Functional'!D83","v":"K405"},null,{"$f":"'FR-16(7)(v)-14 TOTAL CLASS'!L83","v":19526},{"$f":"'FR-16(7)(v)-3 PROD Demand'!L83+'FR-16(7)(v)-7 TRANS Demand'!L83+'FR-16(7)(v)-11 DIST Demand'!L83","v":0},{"$f":"'FR-16(7)(v)-4 PROD Energy'!L83+'FR-16(7)(v)-8 TRANS Energy'!L83+'FR-16(7)(v)-12 DIST Energy'!L83","v":0},{"$f":"'FR-16(7)(v)-5 PROD Cust'!L83+'FR-16(7)(v)-9 TRANS Cust'!L83+'FR-16(7)(v)-13 DIST Cust'!L83","v":19526},19526,0]
[27,null,{"$f":"'FR-16(7)(v)-1 Functional'!C84","v":"CONDUCTORS - UNDERGROUND / SECONDARY - DEMAND"},{"$f":"'FR-16(7)(v)-1 Functional'!D84","v":"K206"},null,{"$f":"'FR-16(7)(v)-14 TOTAL CLASS'!L84","v":1361689},{"$f":"'FR-16(7)(v)-3 PROD Demand'!L84+'FR-16(7)(v)-7 TRANS Demand'!L84+'FR-16(7)(v)-11 DIST Demand'!L84","v":1361689},{"$f":"'FR-16(7)(v)-4 PROD Energy'!L84+'FR-16(7)(v)-8 TRANS Energy'!L84+'FR-16(7)(v)-12 DIST Energy'!L84","v":0},{"$f":"'FR-16(7)(v)-5 PROD Cust'!L84+'FR-16(7)(v)-9 TRANS Cust'!L84+'FR-16(7)(v)-13 DIST Cust'!L84","v":0},1361689,0]
[28,null,{"$f":"'FR-16(7)(v)-1 Functional'!C85","v":"CONDUCTORS - UNDERGROUND / SECONDARY - CUSTOMER"},{"$f":"'FR-16(7)(v)-1 Functional'!D85","v":"K405"},null,{"$f":"'FR-16(7)(v)-14 TOTAL CLASS'!L85","v":6106},{"$f":"'FR-16(7)(v)-3 PROD Demand'!L85+'FR-16(7)(v)-7 TRANS Demand'!L85+'FR-16(7)(v)-11 DIST Demand'!L85","v":0},{"$f":"'FR-16(7)(v)-4 PROD Energy'!L85+'FR-16(7)(v)-8 TRANS Energy'!L85+'FR-16(7)(v)-12 DIST Energy'!L85","v":0},{"$f":"'FR-16(7)(v)-5 PROD Cust'!L85+'FR-16(7)(v)-9 TRANS Cust'!L85+'FR-16(7)(v)-13 DIST Cust'!L85","v":6106},6106,0]
[29,null,{"$f":"'FR-16(7)(v)-1 Functional'!C86","v":"TRANSFORMERS DEMAND RELATED"},{"$f":"'FR-16(7)(v)-1 Functional'!D86","v":"K215"},null,{"$f":"'FR-16(7)(v)-14 TOTAL CLASS'!L86","v":6670696},{"$f":"'FR-16(7)(v)-3 PROD Demand'!L86+'FR-16(7)(v)-7 TRANS Demand'!L86+'FR-16(7)(v)-11 DIST Demand'!L86","v":6670696},{"$f":"'FR-16(7)(v)-4 PROD Energy'!L86+'FR-16(7)(v)-8 TRANS Energy'!L86+'FR-16(7)(v)-12 DIST Energy'!L86","v":0},{"$f":"'FR-16(7)(v)-5 PROD Cust'!L86+'FR-16(7)(v)-9 TRANS Cust'!L86+'FR-16(7)(v)-13 DIST Cust'!L86","v":0},{"$f":"SUM(G86:I86)","v":6670696},{"$f":"F86-J86","v":0}]
[30,null,{"$f":"'FR-16(7)(v)-1 Functional'!C87","v":"TRANSFORMERS CUSTOMER RELATED"},{"$f":"'FR-16(7)(v)-1 Functional'!D87","v":"K405"},null,{"$f":"'FR-16(7)(v)-14 TOTAL CLASS'!L87","v":17148},{"$f":"'FR-16(7)(v)-3 PROD Demand'!L87+'FR-16(7)(v)-7 TRANS Demand'!L87+'FR-16(7)(v)-11 DIST Demand'!L87","v":0},{"$f":"'FR-16(7)(v)-4 PROD Energy'!L87+'FR-16(7)(v)-8 TRANS Energy'!L87+'FR-16(7)(v)-12 DIST Energy'!L87","v":0},{"$f":"'FR-16(7)(v)-5 PROD Cust'!L87+'FR-16(7)(v)-9 TRANS Cust'!L87+'FR-16(7)(v)-13 DIST Cust'!L87","v":17148},17148,0]
[31,null,{"$f":"'FR-16(7)(v)-1 Functional'!C88","v":"SERVICES"},{"$f":"'FR-16(7)(v)-1 Functional'!D88","v":"K217"},null,{"$f":"'FR-16(7)(v)-14 TOTAL CLASS'!L88","v":137336},{"$f":"'FR-16(7)(v)-3 PROD Demand'!L88+'FR-16(7)(v)-7 TRANS Demand'!L88+'FR-16(7)(v)-11 DIST Demand'!L88","v":0},{"$f":"'FR-16(7)(v)-4 PROD Energy'!L88+'FR-16(7)(v)-8 TRANS Energy'!L88+'FR-16(7)(v)-12 DIST Energy'!L88","v":0},{"$f":"'FR-16(7)(v)-5 PROD Cust'!L88+'FR-16(7)(v)-9 TRANS Cust'!L88+'FR-16(7)(v)-13 DIST Cust'!L88","v":137336},137336,0]
[32,null,{"$f":"'FR-16(7)(v)-1 Functional'!C89","v":"METERS"},{"$f":"'FR-16(7)(v)-1 Functional'!D89","v":"K407"},null,{"$f":"'FR-16(7)(v)-14 TOTAL CLASS'!L89","v":146956},{"$f":"'FR-16(7)(v)-3 PROD Demand'!L89+'FR-16(7)(v)-7 TRANS Demand'!L89+'FR-16(7)(v)-11 DIST Demand'!L89","v":0},{"$f":"'FR-16(7)(v)-4 PROD Energy'!L89+'FR-16(7)(v)-8 TRANS Energy'!L89+'FR-16(7)(v)-12 DIST Energy'!L89","v":0},{"$f":"'FR-16(7)(v)-5 PROD Cust'!L89+'FR-16(7)(v)-9 TRANS Cust'!L89+'FR-16(7)(v)-13 DIST Cust'!L89","v":146956},146956,0]
[33,null,{"$f":"'FR-16(7)(v)-1 Functional'!C90","v":"STREET LIGHTS"},{"$f":"'FR-16(7)(v)-1 Functional'!D90","v":"K401"},null,{"$f":"'FR-16(7)(v)-14 TOTAL CLASS'!L90","v":0},{"$f":"'FR-16(7)(v)-3 PROD Demand'!L90+'FR-16(7)(v)-7 TRANS Demand'!L90+'FR-16(7)(v)-11 DIST Demand'!L90","v":0},{"$f":"'FR-16(7)(v)-4 PROD Energy'!L90+'FR-16(7)(v)-8 TRANS Energy'!L90+'FR-16(7)(v)-12 DIST Energy'!L90","v":0},{"$f":"'FR-16(7)(v)-5 PROD Cust'!L90+'FR-16(7)(v)-9 TRANS Cust'!L90+'FR-16(7)(v)-13 DIST Cust'!L90","v":0},0,0]
[34,null,{"$f":"'FR-16(7)(v)-1 Functional'!C91","v":"ADJUSTMENT  "},{"$f":"'FR-16(7)(v)-1 Functional'!D91","v":"K209"},null,{"$f":"'FR-16(7)(v)-14 TOTAL CLASS'!L91","v":0},{"$f":"'FR-16(7)(v)-3 PROD Demand'!L91+'FR-16(7)(v)-7 TRANS Demand'!L91+'FR-16(7)(v)-11 DIST Demand'!L91","v":0},{"$f":"'FR-16(7)(v)-4 PROD Energy'!L91+'FR-16(7)(v)-8 TRANS Energy'!L91+'FR-16(7)(v)-12 DIST Energy'!L91","v":0},{"$f":"'FR-16(7)(v)-5 PROD Cust'!L91+'FR-16(7)(v)-9 TRANS Cust'!L91+'FR-16(7)(v)-13 DIST Cust'!L91","v":0},0,0]
[35,null,{"$f":"'FR-16(7)(v)-1 Functional'!C92","v":"CONSTRUCTION NOT CLASSIFIED"},{"$f":"'FR-16(7)(v)-1 Functional'!D92","v":"K209"},null,{"$f":"'FR-16(7)(v)-14 TOTAL CLASS'!L92","v":9901336},{"$f":"'FR-16(7)(v)-3 PROD Demand'!L92+'FR-16(7)(v)-7 TRANS Demand'!L92+'FR-16(7)(v)-11 DIST Demand'!L92","v":9828305},{"$f":"'FR-16(7)(v)-4 PROD Energy'!L92+'FR-16(7)(v)-8 TRANS Energy'!L92+'FR-16(7)(v)-12 DIST Energy'!L92","v":0},{"$f":"'FR-16(7)(v)-5 PROD Cust'!L92+'FR-16(7)(v)-9 TRANS Cust'!L92+'FR-16(7)(v)-13 DIST Cust'!L92","v":73031},9901336,0]
[36,null,{"$f":"'FR-16(7)(v)-1 Functional'!C93","v":"RWIP"},{"$f":"'FR-16(7)(v)-1 Functional'!D93","v":"K215"},null,{"$f":"'FR-16(7)(v)-14 TOTAL CLASS'!L93","v":0},{"$f":"'FR-16(7)(v)-3 PROD Demand'!L93+'FR-16(7)(v)-7 TRANS Demand'!L93+'FR-16(7)(v)-11 DIST Demand'!L93","v":0},{"$f":"'FR-16(7)(v)-4 PROD Energy'!L93+'FR-16(7)(v)-8 TRANS Energy'!L93+'FR-16(7)(v)-12 DIST Energy'!L93","v":0},{"$f":"'FR-16(7)(v)-5 PROD Cust'!L93+'FR-16(7)(v)-9 TRANS Cust'!L93+'FR-16(7)(v)-13 DIST Cust'!L93","v":0},{"$f":"SUM(G93:I93)","v":0},{"$f":"F93-J93","v":0}]
[37,null,{"$f":"'FR-16(7)(v)-1 Functional'!C94","v":"  DISTRIBUTION PLANT IN SERVICE"},null,null,{"$f":"SUM(F73:F93)","v":60583972},{"$f":"SUM(G73:G92)","v":60137106},0,446866,60583972,0]
[38]
[39,"TOTAL TRANS & DIST PLANT",null,null,null,{"$f":"F94+F68","v":70349809},69902943,0,446866,70349809,0]
[40,"TOTAL GROSS PTD PLANT",null,null,null,{"$f":"F94+F70","v":233464274},233017408,0,446866,233464274,0]
[41]
[42,"GENERAL & INTANGIBLE PLANT"]
[43,null,{"$f":"'FR-16(7)(v)-1 Functional'!C100","v":"PRODUCTION - DEMAND"},{"$f":"'FR-16(7)(v)-1 Functional'!D100","v":"K201"},null,{"$f":"'FR-16(7)(v)-14 TOTAL CLASS'!L100","v":2254044},{"$f":"'FR-16(7)(v)-3 PROD Demand'!L100+'FR-16(7)(v)-7 TRANS Demand'!L100+'FR-16(7)(v)-11 DIST Demand'!L100","v":2254044},{"$f":"'FR-16(7)(v)-4 PROD Energy'!L100+'FR-16(7)(v)-8 TRANS Energy'!L100+'FR-16(7)(v)-12 DIST Energy'!L100","v":0},{"$f":"'FR-16(7)(v)-5 PROD Cust'!L100+'FR-16(7)(v)-9 TRANS Cust'!L100+'FR-16(7)(v)-13 DIST Cust'!L100","v":0},{"$f":"SUM(G100:I100)","v":2254044},{"$f":"F100-J100","v":0}]
[44,null,{"$f":"'FR-16(7)(v)-1 Functional'!C101","v":"PRODUCTION - ENERGY"},{"$f":"'FR-16(7)(v)-1 Functional'!D101","v":"K301"},null,{"$f":"'FR-16(7)(v)-14 TOTAL CLASS'!L101","v":3220608},{"$f":"'FR-16(7)(v)-3 PROD Demand'!L101+'FR-16(7)(v)-7 TRANS Demand'!L101+'FR-16(7)(v)-11 DIST Demand'!L101","v":0},{"$f":"'FR-16(7)(v)-4 PROD Energy'!L101+'FR-16(7)(v)-8 TRANS Energy'!L101+'FR-16(7)(v)-12 DIST Energy'!L101","v":3220608},{"$f":"'FR-16(7)(v)-5 PROD Cust'!L101+'FR-16(7)(v)-9 TRANS Cust'!L101+'FR-16(7)(v)-13 DIST Cust'!L101","v":0},{"$f":"SUM(G101:I101)","v":3220608},{"$f":"F101-J101","v":0}]
[45,null,{"$f":"'FR-16(7)(v)-1 Functional'!C102","v":"TRANSMISSION"},{"$f":"'FR-16(7)(v)-1 Functional'!D102","v":"K202"},null,{"$f":"'FR-16(7)(v)-14 TOTAL CLASS'!L102","v":356189},{"$f":"'FR-16(7)(v)-3 PROD Demand'!L102+'FR-16(7)(v)-7 TRANS Demand'!L102+'FR-16(7)(v)-11 DIST Demand'!L102","v":356189},{"$f":"'FR-16(7)(v)-4 PROD Energy'!L102+'FR-16(7)(v)-8 TRANS Energy'!L102+'FR-16(7)(v)-12 DIST Energy'!L102","v":0},{"$f":"'FR-16(7)(v)-5 PROD Cust'!L102+'FR-16(7)(v)-9 TRANS Cust'!L102+'FR-16(7)(v)-13 DIST Cust'!L102","v":0},356189,0]
[46,null,{"$f":"'FR-16(7)(v)-1 Functional'!C103","v":"DISTRIBUTION - DEMAND"},{"$f":"'FR-16(7)(v)-1 Functional'!D103","v":"K201"},null,{"$f":"'FR-16(7)(v)-14 TOTAL CLASS'!L103","v":1196295},{"$f":"'FR-16(7)(v)-3 PROD Demand'!L103+'FR-16(7)(v)-7 TRANS Demand'!L103+'FR-16(7)(v)-11 DIST Demand'!L103","v":1196295},{"$f":"'FR-16(7)(v)-4 PROD Energy'!L103+'FR-16(7)(v)-8 TRANS Energy'!L103+'FR-16(7)(v)-12 DIST Energy'!L103","v":0},{"$f":"'FR-16(7)(v)-5 PROD Cust'!L103+'FR-16(7)(v)-9 TRANS Cust'!L103+'FR-16(7)(v)-13 DIST Cust'!L103","v":0},1196295,0]
[47,null,{"$f":"'FR-16(7)(v)-1 Functional'!C104","v":"DISTRIBUTION - CUSTOMER"},{"$f":"'FR-16(7)(v)-1 Functional'!D104","v":"K405"},null,{"$f":"'FR-16(7)(v)-14 TOTAL CLASS'!L104","v":2180},{"$f":"'FR-16(7)(v)-3 PROD Demand'!L104+'FR-16(7)(v)-7 TRANS Demand'!L104+'FR-16(7)(v)-11 DIST Demand'!L104","v":0},{"$f":"'FR-16(7)(v)-4 PROD Energy'!L104+'FR-16(7)(v)-8 TRANS Energy'!L104+'FR-16(7)(v)-12 DIST Energy'!L104","v":0},{"$f":"'FR-16(7)(v)-5 PROD Cust'!L104+'FR-16(7)(v)-9 TRANS Cust'!L104+'FR-16(7)(v)-13 DIST Cust'!L104","v":2180},2180,0]
[48,null,{"$f":"'FR-16(7)(v)-1 Functional'!C105","v":"CUSTOMER ACCOUNTING"},{"$f":"'FR-16(7)(v)-1 Functional'!D105","v":"A308"},null,{"$f":"'FR-16(7)(v)-14 TOTAL CLASS'!L105","v":40514},{"$f":"'FR-16(7)(v)-3 PROD Demand'!L105+'FR-16(7)(v)-7 TRANS Demand'!L105+'FR-16(7)(v)-11 DIST Demand'!L105","v":0},{"$f":"'FR-16(7)(v)-4 PROD Energy'!L105+'FR-16(7)(v)-8 TRANS Energy'!L105+'FR-16(7)(v)-12 DIST Energy'!L105","v":0},{"$f":"'FR-16(7)(v)-5 PROD Cust'!L105+'FR-16(7)(v)-9 TRANS Cust'!L105+'FR-16(7)(v)-13 DIST Cust'!L105","v":40514},40514,0]
[49,null,{"$f":"'FR-16(7)(v)-1 Functional'!C106","v":"CUSTOMER SERVICE & INFORMATION"},{"$f":"'FR-16(7)(v)-1 Functional'!D106","v":"A310"},null,{"$f":"'FR-16(7)(v)-14 TOTAL CLASS'!L106","v":485},{"$f":"'FR-16(7)(v)-3 PROD Demand'!L106+'FR-16(7)(v)-7 TRANS Demand'!L106+'FR-16(7)(v)-11 DIST Demand'!L106","v":0},{"$f":"'FR-16(7)(v)-4 PROD Energy'!L106+'FR-16(7)(v)-8 TRANS Energy'!L106+'FR-16(7)(v)-12 DIST Energy'!L106","v":0},{"$f":"'FR-16(7)(v)-5 PROD Cust'!L106+'FR-16(7)(v)-9 TRANS Cust'!L106+'FR-16(7)(v)-13 DIST Cust'!L106","v":485},485,0]
[50,null,{"$f":"'FR-16(7)(v)-1 Functional'!C107","v":"SALES"},{"$f":"'FR-16(7)(v)-1 Functional'!D107","v":"A312"},null,{"$f":"'FR-16(7)(v)-14 TOTAL CLASS'!L107","v":0},{"$f":"'FR-16(7)(v)-3 PROD Demand'!L107+'FR-16(7)(v)-7 TRANS Demand'!L107+'FR-16(7)(v)-11 DIST Demand'!L107","v":0},{"$f":"'FR-16(7)(v)-4 PROD Energy'!L107+'FR-16(7)(v)-8 TRANS Energy'!L107+'FR-16(7)(v)-12 DIST Energy'!L107","v":0},{"$f":"'FR-16(7)(v)-5 PROD Cust'!L107+'FR-16(7)(v)-9 TRANS Cust'!L107+'FR-16(7)(v)-13 DIST Cust'!L107","v":0},0,0]
[51,null,{"$f":"'FR-16(7)(v)-1 Functional'!C108","v":"ADJUSTMENT"},{"$f":"'FR-16(7)(v)-1 Functional'!D108","v":"A315"},null,{"$f":"'FR-16(7)(v)-14 TOTAL CLASS'!L108","v":0},{"$f":"'FR-16(7)(v)-3 PROD Demand'!L108+'FR-16(7)(v)-7 TRANS Demand'!L108+'FR-16(7)(v)-11 DIST Demand'!L108","v":0},{"$f":"'FR-16(7)(v)-4 PROD Energy'!L108+'FR-16(7)(v)-8 TRANS Energy'!L108+'FR-16(7)(v)-12 DIST Energy'!L108","v":0},{"$f":"'FR-16(7)(v)-5 PROD Cust'!L108+'FR-16(7)(v)-9 TRANS Cust'!L108+'FR-16(7)(v)-13 DIST Cust'!L108","v":0},0,0]
[52,null,{"$f":"'FR-16(7)(v)-1 Functional'!C109","v":"  GEN & INTANG PLANT IN SERVICE"},null,null,{"$f":"SUM(F100:F108)","v":7070315},3806528,3220608,43179,7070315,0]
[53]
[54,"COMMON & OTHER PLANT"]
[55,null,{"$f":"'FR-16(7)(v)-1 Functional'!C112","v":"PRODUCTION - DEMAND"},{"$f":"'FR-16(7)(v)-1 Functional'!D112","v":"K201"},null,{"$f":"'FR-16(7)(v)-14 TOTAL CLASS'!L112","v":1275749},{"$f":"'FR-16(7)(v)-3 PROD Demand'!L112+'FR-16(7)(v)-7 TRANS Demand'!L112+'FR-16(7)(v)-11 DIST Demand'!L112","v":1275749},{"$f":"'FR-16(7)(v)-4 PROD Energy'!L112+'FR-16(7)(v)-8 TRANS Energy'!L112+'FR-16(7)(v)-12 DIST Energy'!L112","v":0},{"$f":"'FR-16(7)(v)-5 PROD Cust'!L112+'FR-16(7)(v)-9 TRANS Cust'!L112+'FR-16(7)(v)-13 DIST Cust'!L112","v":0},{"$f":"SUM(G112:I112)","v":1275749},{"$f":"F112-J112","v":0}]
[56,null,{"$f":"'FR-16(7)(v)-1 Functional'!C113","v":"PRODUCTION - ENERGY"},{"$f":"'FR-16(7)(v)-1 Functional'!D113","v":"K301"},null,{"$f":"'FR-16(7)(v)-14 TOTAL CLASS'!L113","v":1822807},{"$f":"'FR-16(7)(v)-3 PROD Demand'!L113+'FR-16(7)(v)-7 TRANS Demand'!L113+'FR-16(7)(v)-11 DIST Demand'!L113","v":0},{"$f":"'FR-16(7)(v)-4 PROD Energy'!L113+'FR-16(7)(v)-8 TRANS Energy'!L113+'FR-16(7)(v)-12 DIST Energy'!L113","v":1822807},{"$f":"'FR-16(7)(v)-5 PROD Cust'!L113+'FR-16(7)(v)-9 TRANS Cust'!L113+'FR-16(7)(v)-13 DIST Cust'!L113","v":0},{"$f":"SUM(G113:I113)","v":1822807},{"$f":"F113-J113","v":0}]
[57,null,{"$f":"'FR-16(7)(v)-1 Functional'!C114","v":"TRANSMISSION"},{"$f":"'FR-16(7)(v)-1 Functional'!D114","v":"K202"},null,{"$f":"'FR-16(7)(v)-14 TOTAL CLASS'!L114","v":201596},{"$f":"'FR-16(7)(v)-3 PROD Demand'!L114+'FR-16(7)(v)-7 TRANS Demand'!L114+'FR-16(7)(v)-11 DIST Demand'!L114","v":201596},{"$f":"'FR-16(7)(v)-4 PROD Energy'!L114+'FR-16(7)(v)-8 TRANS Energy'!L114+'FR-16(7)(v)-12 DIST Energy'!L114","v":0},{"$f":"'FR-16(7)(v)-5 PROD Cust'!L114+'FR-16(7)(v)-9 TRANS Cust'!L114+'FR-16(7)(v)-13 DIST Cust'!L114","v":0},201596,0]
[58,null,{"$f":"'FR-16(7)(v)-1 Functional'!C115","v":"DISTRIBUTION - DEMAND"},{"$f":"'FR-16(7)(v)-1 Functional'!D115","v":"K201"},null,{"$f":"'FR-16(7)(v)-14 TOTAL CLASS'!L115","v":677082},{"$f":"'FR-16(7)(v)-3 PROD Demand'!L115+'FR-16(7)(v)-7 TRANS Demand'!L115+'FR-16(7)(v)-11 DIST Demand'!L115","v":677082},{"$f":"'FR-16(7)(v)-4 PROD Energy'!L115+'FR-16(7)(v)-8 TRANS Energy'!L115+'FR-16(7)(v)-12 DIST Energy'!L115","v":0},{"$f":"'FR-16(7)(v)-5 PROD Cust'!L115+'FR-16(7)(v)-9 TRANS Cust'!L115+'FR-16(7)(v)-13 DIST Cust'!L115","v":0},677082,0]
[59,null,{"$f":"'FR-16(7)(v)-1 Functional'!C116","v":"DISTRIBUTION - CUSTOMER"},{"$f":"'FR-16(7)(v)-1 Functional'!D116","v":"K405"},null,{"$f":"'FR-16(7)(v)-14 TOTAL CLASS'!L116","v":1234},{"$f":"'FR-16(7)(v)-3 PROD Demand'!L116+'FR-16(7)(v)-7 TRANS Demand'!L116+'FR-16(7)(v)-11 DIST Demand'!L116","v":0},{"$f":"'FR-16(7)(v)-4 PROD Energy'!L116+'FR-16(7)(v)-8 TRANS Energy'!L116+'FR-16(7)(v)-12 DIST Energy'!L116","v":0},{"$f":"'FR-16(7)(v)-5 PROD Cust'!L116+'FR-16(7)(v)-9 TRANS Cust'!L116+'FR-16(7)(v)-13 DIST Cust'!L116","v":1234},1234,0]
[60,null,{"$f":"'FR-16(7)(v)-1 Functional'!C117","v":"CUSTOMER ACCOUNTING"},{"$f":"'FR-16(7)(v)-1 Functional'!D117","v":"A308"},null,{"$f":"'FR-16(7)(v)-14 TOTAL CLASS'!L117","v":22929},{"$f":"'FR-16(7)(v)-3 PROD Demand'!L117+'FR-16(7)(v)-7 TRANS Demand'!L117+'FR-16(7)(v)-11 DIST Demand'!L117","v":0},{"$f":"'FR-16(7)(v)-4 PROD Energy'!L117+'FR-16(7)(v)-8 TRANS Energy'!L117+'FR-16(7)(v)-12 DIST Energy'!L117","v":0},{"$f":"'FR-16(7)(v)-5 PROD Cust'!L117+'FR-16(7)(v)-9 TRANS Cust'!L117+'FR-16(7)(v)-13 DIST Cust'!L117","v":22929},22929,0]
[61,null,{"$f":"'FR-16(7)(v)-1 Functional'!C118","v":"CUSTOMER SERVICE & INFORMATION"},{"$f":"'FR-16(7)(v)-1 Functional'!D118","v":"A310"},null,{"$f":"'FR-16(7)(v)-14 TOTAL CLASS'!L118","v":274},{"$f":"'FR-16(7)(v)-3 PROD Demand'!L118+'FR-16(7)(v)-7 TRANS Demand'!L118+'FR-16(7)(v)-11 DIST Demand'!L118","v":0},{"$f":"'FR-16(7)(v)-4 PROD Energy'!L118+'FR-16(7)(v)-8 TRANS Energy'!L118+'FR-16(7)(v)-12 DIST Energy'!L118","v":0},{"$f":"'FR-16(7)(v)-5 PROD Cust'!L118+'FR-16(7)(v)-9 TRANS Cust'!L118+'FR-16(7)(v)-13 DIST Cust'!L118","v":274},274,0]
[62,null,{"$f":"'FR-16(7)(v)-1 Functional'!C119","v":"SALES"},{"$f":"'FR-16(7)(v)-1 Functional'!D119","v":"A312"},null,{"$f":"'FR-16(7)(v)-14 TOTAL CLASS'!L119","v":0},{"$f":"'FR-16(7)(v)-3 PROD Demand'!L119+'FR-16(7)(v)-7 TRANS Demand'!L119+'FR-16(7)(v)-11 DIST Demand'!L119","v":0},{"$f":"'FR-16(7)(v)-4 PROD Energy'!L119+'FR-16(7)(v)-8 TRANS Energy'!L119+'FR-16(7)(v)-12 DIST Energy'!L119","v":0},{"$f":"'FR-16(7)(v)-5 PROD Cust'!L119+'FR-16(7)(v)-9 TRANS Cust'!L119+'FR-16(7)(v)-13 DIST Cust'!L119","v":0},0,0]
[63,null,{"$f":"'FR-16(7)(v)-1 Functional'!C120","v":"ADJUSTMENT"},{"$f":"'FR-16(7)(v)-1 Functional'!D120","v":"A315"},null,{"$f":"'FR-16(7)(v)-14 TOTAL CLASS'!L120","v":0},{"$f":"'FR-16(7)(v)-3 PROD Demand'!L120+'FR-16(7)(v)-7 TRANS Demand'!L120+'FR-16(7)(v)-11 DIST Demand'!L120","v":0},{"$f":"'FR-16(7)(v)-4 PROD Energy'!L120+'FR-16(7)(v)-8 TRANS Energy'!L120+'FR-16(7)(v)-12 DIST Energy'!L120","v":0},{"$f":"'FR-16(7)(v)-5 PROD Cust'!L120+'FR-16(7)(v)-9 TRANS Cust'!L120+'FR-16(7)(v)-13 DIST Cust'!L120","v":0},0,0]
[64,null,{"$f":"'FR-16(7)(v)-1 Functional'!C121","v":"  COMMON & OTHER PLANT IN SERVICE"},null,null,{"$f":"SUM(F112:F120)","v":4001671},2154427,1822807,24437,4001671,0]
[65]
[66,"GROSS ELECTRIC PLANT IN SERVICE",null,null,null,{"$f":"F97+F109+F121","v":244536260},238978363,5043415,514482,244536260,0]
[]
[{"$f":"co_name","v":"DUKE ENERGY KENTUCKY, INC."},null,null,null,null,null,null,null,null,{"$f":"J1","v":"FR-16(7)(v)-20"}]
[{"$f":"$A$2","v":"DT SECONDARY CLASSIFIED - ELECTRIC COST OF SERVICE"},null,null,null,null,null,null,null,null,{"$f":"J2","v":"WITNESS RESPONSIBLE:"}]
[{"$f":"case_name","v":"CASE NO: 2019-00271"},null,null,null,null,null,null,null,null,{"$f":"Witness","v":"JAMES E. ZIOLKOWSKI"}]
[{"$f":"data_filing","v":"DATA: 12 MONTHS ACTUAL  & 0 MONTHS ESTIMATED"},null,null,null,null,null,null,null,null,{"$f":"\"PAGE \"&Pages2-12&\" OF \"&Pages2","v":"PAGE 3 OF 15"}]
[{"$f":"type","v":"TYPE OF FILING: \"X\" ORIGINAL   UPDATED    REVISED  "}]
[]
[]
["LINE",null,null,null,null,"TOTAL","CLASSIFIED",null,null,"TOTAL","ALL"]
["NO.","DEPRECIATION RESERVE",null,"ALLO",null,{"$f":"$F$9","v":"DT SECONDARY"},{"$f":"G9","v":"DEMAND"},"ENERGY","CUSTOMER","AT ISSUE","OTHER"]
[null,null,"Schedule 3",null,null,null,3,4,5]
[1,"PRODUCTION PLANT"]
[2,null,{"$f":"'FR-16(7)(v)-1 Functional'!C136","v":"PRODUCTION STEAM"},{"$f":"'FR-16(7)(v)-1 Functional'!D136","v":"K201"},null,{"$f":"'FR-16(7)(v)-14 TOTAL CLASS'!L136","v":54132571},{"$f":"'FR-16(7)(v)-3 PROD Demand'!L136+'FR-16(7)(v)-7 TRANS Demand'!L136+'FR-16(7)(v)-11 DIST Demand'!L136","v":54132571},{"$f":"'FR-16(7)(v)-4 PROD Energy'!L136+'FR-16(7)(v)-8 TRANS Energy'!L136+'FR-16(7)(v)-12 DIST Energy'!L136","v":0},{"$f":"'FR-16(7)(v)-5 PROD Cust'!L136+'FR-16(7)(v)-9 TRANS Cust'!L136+'FR-16(7)(v)-13 DIST Cust'!L136","v":0},{"$f":"SUM(G136:I136)","v":54132571},{"$f":"F136-J136","v":0}]
[3,null,{"$f":"'FR-16(7)(v)-1 Functional'!C137","v":"PRODUCTION OTHER"},{"$f":"'FR-16(7)(v)-1 Functional'!D137","v":"K201"},null,{"$f":"'FR-16(7)(v)-14 TOTAL CLASS'!L137","v":24858888},{"$f":"'FR-16(7)(v)-3 PROD Demand'!L137+'FR-16(7)(v)-7 TRANS Demand'!L137+'FR-16(7)(v)-11 DIST Demand'!L137","v":24858888},{"$f":"'FR-16(7)(v)-4 PROD Energy'!L137+'FR-16(7)(v)-8 TRANS Energy'!L137+'FR-16(7)(v)-12 DIST Energy'!L137","v":0},{"$f":"'FR-16(7)(v)-5 PROD Cust'!L137+'FR-16(7)(v)-9 TRANS Cust'!L137+'FR-16(7)(v)-13 DIST Cust'!L137","v":0},{"$f":"SUM(G137:I137)","v":24858888},{"$f":"F137-J137","v":0}]
[4,null,{"$f":"'FR-16(7)(v)-1 Functional'!C138","v":"ADJUSTMENT"},{"$f":"'FR-16(7)(v)-1 Functional'!D138","v":"K201"},null,{"$f":"'FR-16(7)(v)-14 TOTAL CLASS'!L138","v":209611},{"$f":"'FR-16(7)(v)-3 PROD Demand'!L138+'FR-16(7)(v)-7 TRANS Demand'!L138+'FR-16(7)(v)-11 DIST Demand'!L138","v":209611},{"$f":"'FR-16(7)(v)-4 PROD Energy'!L138+'FR-16(7)(v)-8 TRANS Energy'!L138+'FR-16(7)(v)-12 DIST Energy'!L138","v":0},{"$f":"'FR-16(7)(v)-5 PROD Cust'!L138+'FR-16(7)(v)-9 TRANS Cust'!L138+'FR-16(7)(v)-13 DIST Cust'!L138","v":0},{"$f":"SUM(G138:I138)","v":209611},{"$f":"F138-J138","v":0}]
[5,null,{"$f":"'FR-16(7)(v)-1 Functional'!C139","v":"  TOTAL PROD DEPREC RESERVE"},null,null,{"$f":"SUM(F136:F138)","v":79201070},79201070,0,0,79201070,0]
[6]
[7,"TRANSMISSION PLANT"]
[8,null,{"$f":"'FR-16(7)(v)-1 Functional'!C142","v":"MAIN STEP-UP TRANSFORMERS"},{"$f":"'FR-16(7)(v)-1 Functional'!D142","v":"K202"},null,{"$f":"'FR-16(7)(v)-14 TOTAL CLASS'!L142","v":0},{"$f":"'FR-16(7)(v)-3 PROD Demand'!L142+'FR-16(7)(v)-7 TRANS Demand'!L142+'FR-16(7)(v)-11 DIST Demand'!L142","v":0},{"$f":"'FR-16(7)(v)-4 PROD Energy'!L142+'FR-16(7)(v)-8 TRANS Energy'!L142+'FR-16(7)(v)-12 DIST Energy'!L142","v":0},{"$f":"'FR-16(7)(v)-5 PROD Cust'!L142+'FR-16(7)(v)-9 TRANS Cust'!L142+'FR-16(7)(v)-13 DIST Cust'!L142","v":0},{"$f":"SUM(G142:I142)","v":0},{"$f":"F142-J142","v":0}]
[9,null,{"$f":"'FR-16(7)(v)-1 Functional'!C143","v":"OTHER TRANSMISSION"},{"$f":"'FR-16(7)(v)-1 Functional'!D143","v":"K202"},null,{"$f":"'FR-16(7)(v)-14 TOTAL CLASS'!L143","v":2693271},{"$f":"'FR-16(7)(v)-3 PROD Demand'!L143+'FR-16(7)(v)-7 TRANS Demand'!L143+'FR-16(7)(v)-11 DIST Demand'!L143","v":2693271},{"$f":"'FR-16(7)(v)-4 PROD Energy'!L143+'FR-16(7)(v)-8 TRANS Energy'!L143+'FR-16(7)(v)-12 DIST Energy'!L143","v":0},{"$f":"'FR-16(7)(v)-5 PROD Cust'!L143+'FR-16(7)(v)-9 TRANS Cust'!L143+'FR-16(7)(v)-13 DIST Cust'!L143","v":0},{"$f":"SUM(G143:I143)","v":2693271},{"$f":"F143-J143","v":0}]
[10,null,{"$f":"'FR-16(7)(v)-1 Functional'!C144","v":"ADJUSTMENT"},{"$f":"'FR-16(7)(v)-1 Functional'!D144","v":"K202"},null,{"$f":"'FR-16(7)(v)-14 TOTAL CLASS'!L144","v":-9470},{"$f":"'FR-16(7)(v)-3 PROD Demand'!L144+'FR-16(7)(v)-7 TRANS Demand'!L144+'FR-16(7)(v)-11 DIST Demand'!L144","v":-9470},{"$f":"'FR-16(7)(v)-4 PROD Energy'!L144+'FR-16(7)(v)-8 TRANS Energy'!L144+'FR-16(7)(v)-12 DIST Energy'!L144","v":0},{"$f":"'FR-16(7)(v)-5 PROD Cust'!L144+'FR-16(7)(v)-9 TRANS Cust'!L144+'FR-16(7)(v)-13 DIST Cust'!L144","v":0},{"$f":"SUM(G144:I144)","v":-9470},{"$f":"F144-J144","v":0}]
[11,null,{"$f":"'FR-16(7)(v)-1 Functional'!C145","v":"  TOTAL TRANS DEPREC RESERVE"},null,null,{"$f":"SUM(F142:F144)","v":2683801},2683801,0,0,2683801,0]
[12]
[13,null,{"$f":"'FR-16(7)(v)-1 Functional'!C147","v":"TOTAL PROD & TRANS DEPREC RESERVE"},null,null,{"$f":"F145+F139","v":81884871},{"$f":"G145+G139","v":81884871},{"$f":"H145+H139","v":0},{"$f":"I145+I139","v":0},{"$f":"J145+J139","v":81884871},{"$f":"F147-J147","v":0}]
[14]
[15,"DISTRIBUTION PLANT"]
[16,null,{"$f":"'FR-16(7)(v)-1 Functional'!C150","v":"SUBSTATIONS"},{"$f":"'FR-16(7)(v)-1 Functional'!D150","v":"K215"},null,{"$f":"'FR-16(7)(v)-14 TOTAL CLASS'!L150","v":2616941},{"$f":"'FR-16(7)(v)-3 PROD Demand'!L150+'FR-16(7)(v)-7 TRANS Demand'!L150+'FR-16(7)(v)-11 DIST Demand'!L150","v":2616941},{"$f":"'FR-16(7)(v)-4 PROD Energy'!L150+'FR-16(7)(v)-8 TRANS Energy'!L150+'FR-16(7)(v)-12 DIST Energy'!L150","v":0},{"$f":"'FR-16(7)(v)-5 PROD Cust'!L150+'FR-16(7)(v)-9 TRANS Cust'!L150+'FR-16(7)(v)-13 DIST Cust'!L150","v":0},{"$f":"SUM(G150:I150)","v":2616941},{"$f":"F150-J150","v":0}]
[17,null,{"$f":"'FR-16(7)(v)-1 Functional'!C151","v":"POLES, TOWERS  & FIXTURES - PRIMARY - DEMAND"},{"$f":"'FR-16(7)(v)-1 Functional'!D151","v":"K205"},null,{"$f":"'FR-16(7)(v)-14 TOTAL CLASS'!L151","v":2138348},{"$f":"'FR-16(7)(v)-3 PROD Demand'!L151+'FR-16(7)(v)-7 TRANS Demand'!L151+'FR-16(7)(v)-11 DIST Demand'!L151","v":2138348},{"$f":"'FR-16(7)(v)-4 PROD Energy'!L151+'FR-16(7)(v)-8 TRANS Energy'!L151+'FR-16(7)(v)-12 DIST Energy'!L151","v":0},{"$f":"'FR-16(7)(v)-5 PROD Cust'!L151+'FR-16(7)(v)-9 TRANS Cust'!L151+'FR-16(7)(v)-13 DIST Cust'!L151","v":0},{"$f":"SUM(G151:I151)","v":2138348},{"$f":"F151-J151","v":0}]
[18,null,{"$f":"'FR-16(7)(v)-1 Functional'!C152","v":"POLES, TOWERS  & FIXTURES - PRIMARY - CUSTOMER"},{"$f":"'FR-16(7)(v)-1 Functional'!D152","v":"K405"},null,{"$f":"'FR-16(7)(v)-14 TOTAL CLASS'!L152","v":7741},{"$f":"'FR-16(7)(v)-3 PROD Demand'!L152+'FR-16(7)(v)-7 TRANS Demand'!L152+'FR-16(7)(v)-11 DIST Demand'!L152","v":0},{"$f":"'FR-16(7)(v)-4 PROD Energy'!L152+'FR-16(7)(v)-8 TRANS Energy'!L152+'FR-16(7)(v)-12 DIST Energy'!L152","v":0},{"$f":"'FR-16(7)(v)-5 PROD Cust'!L152+'FR-16(7)(v)-9 TRANS Cust'!L152+'FR-16(7)(v)-13 DIST Cust'!L152","v":7741},{"$f":"SUM(G152:I152)","v":7741},{"$f":"F152-J152","v":0}]
[19,null,{"$f":"'FR-16(7)(v)-1 Functional'!C153","v":"POLES, TOWERS  & FIXTURES - SECONDARY - DEMAND"},{"$f":"'FR-16(7)(v)-1 Functional'!D153","v":"K206"},null,{"$f":"'FR-16(7)(v)-14 TOTAL CLASS'!L153","v":817776},{"$f":"'FR-16(7)(v)-3 PROD Demand'!L153+'FR-16(7)(v)-7 TRANS Demand'!L153+'FR-16(7)(v)-11 DIST Demand'!L153","v":817776},{"$f":"'FR-16(7)(v)-4 PROD Energy'!L153+'FR-16(7)(v)-8 TRANS Energy'!L153+'FR-16(7)(v)-12 DIST Energy'!L153","v":0},{"$f":"'FR-16(7)(v)-5 PROD Cust'!L153+'FR-16(7)(v)-9 TRANS Cust'!L153+'FR-16(7)(v)-13 DIST Cust'!L153","v":0},817776,0]
[20,null,{"$f":"'FR-16(7)(v)-1 Functional'!C154","v":"POLES, TOWERS  & FIXTURES - SECONDARY - CUSTOMER"},{"$f":"'FR-16(7)(v)-1 Functional'!D154","v":"K405"},null,{"$f":"'FR-16(7)(v)-14 TOTAL CLASS'!L154","v":1750},{"$f":"'FR-16(7)(v)-3 PROD Demand'!L154+'FR-16(7)(v)-7 TRANS Demand'!L154+'FR-16(7)(v)-11 DIST Demand'!L154","v":0},{"$f":"'FR-16(7)(v)-4 PROD Energy'!L154+'FR-16(7)(v)-8 TRANS Energy'!L154+'FR-16(7)(v)-12 DIST Energy'!L154","v":0},{"$f":"'FR-16(7)(v)-5 PROD Cust'!L154+'FR-16(7)(v)-9 TRANS Cust'!L154+'FR-16(7)(v)-13 DIST Cust'!L154","v":1750},1750,0]
[21,null,{"$f":"'FR-16(7)(v)-1 Functional'!C155","v":"CONDUCTORS - OVERHEAD / PRIMARY - DEMAND"},{"$f":"'FR-16(7)(v)-1 Functional'!D155","v":"K205"},null,{"$f":"'FR-16(7)(v)-14 TOTAL CLASS'!L155","v":3175717},{"$f":"'FR-16(7)(v)-3 PROD Demand'!L155+'FR-16(7)(v)-7 TRANS Demand'!L155+'FR-16(7)(v)-11 DIST Demand'!L155","v":3175717},{"$f":"'FR-16(7)(v)-4 PROD Energy'!L155+'FR-16(7)(v)-8 TRANS Energy'!L155+'FR-16(7)(v)-12 DIST Energy'!L155","v":0},{"$f":"'FR-16(7)(v)-5 PROD Cust'!L155+'FR-16(7)(v)-9 TRANS Cust'!L155+'FR-16(7)(v)-13 DIST Cust'!L155","v":0},3175717,0]
[22,null,{"$f":"'FR-16(7)(v)-1 Functional'!C156","v":"CONDUCTORS - OVERHEAD / PRIMARY - CUSTOMER"},{"$f":"'FR-16(7)(v)-1 Functional'!D156","v":"K405"},null,{"$f":"'FR-16(7)(v)-14 TOTAL CLASS'!L156","v":5486},{"$f":"'FR-16(7)(v)-3 PROD Demand'!L156+'FR-16(7)(v)-7 TRANS Demand'!L156+'FR-16(7)(v)-11 DIST Demand'!L156","v":0},{"$f":"'FR-16(7)(v)-4 PROD Energy'!L156+'FR-16(7)(v)-8 TRANS Energy'!L156+'FR-16(7)(v)-12 DIST Energy'!L156","v":0},{"$f":"'FR-16(7)(v)-5 PROD Cust'!L156+'FR-16(7)(v)-9 TRANS Cust'!L156+'FR-16(7)(v)-13 DIST Cust'!L156","v":5486},5486,0]
[23,null,{"$f":"'FR-16(7)(v)-1 Functional'!C157","v":"CONDUCTORS - OVERHEAD / SECONDARY - DEMAND"},{"$f":"'FR-16(7)(v)-1 Functional'!D157","v":"K206"},null,{"$f":"'FR-16(7)(v)-14 TOTAL CLASS'!L157","v":1293115},{"$f":"'FR-16(7)(v)-3 PROD Demand'!L157+'FR-16(7)(v)-7 TRANS Demand'!L157+'FR-16(7)(v)-11 DIST Demand'!L157","v":1293115},{"$f":"'FR-16(7)(v)-4 PROD Energy'!L157+'FR-16(7)(v)-8 TRANS Energy'!L157+'FR-16(7)(v)-12 DIST Energy'!L157","v":0},{"$f":"'FR-16(7)(v)-5 PROD Cust'!L157+'FR-16(7)(v)-9 TRANS Cust'!L157+'FR-16(7)(v)-13 DIST Cust'!L157","v":0},1293115,0]
[24,null,{"$f":"'FR-16(7)(v)-1 Functional'!C158","v":"CONDUCTORS - OVERHEAD / SECONDARY - CUSTOMER"},{"$f":"'FR-16(7)(v)-1 Functional'!D158","v":"K405"},null,{"$f":"'FR-16(7)(v)-14 TOTAL CLASS'!L158","v":2273},{"$f":"'FR-16(7)(v)-3 PROD Demand'!L158+'FR-16(7)(v)-7 TRANS Demand'!L158+'FR-16(7)(v)-11 DIST Demand'!L158","v":0},{"$f":"'FR-16(7)(v)-4 PROD Energy'!L158+'FR-16(7)(v)-8 TRANS Energy'!L158+'FR-16(7)(v)-12 DIST Energy'!L158","v":0},{"$f":"'FR-16(7)(v)-5 PROD Cust'!L158+'FR-16(7)(v)-9 TRANS Cust'!L158+'FR-16(7)(v)-13 DIST Cust'!L158","v":2273},2273,0]
[25,null,{"$f":"'FR-16(7)(v)-1 Functional'!C159","v":"CONDUCTORS - UNDERGROUND / PRIMARY - DEMAND"},{"$f":"'FR-16(7)(v)-1 Functional'!D159","v":"K205"},null,{"$f":"'FR-16(7)(v)-14 TOTAL CLASS'!L159","v":2351123},{"$f":"'FR-16(7)(v)-3 PROD Demand'!L159+'FR-16(7)(v)-7 TRANS Demand'!L159+'FR-16(7)(v)-11 DIST Demand'!L159","v":2351123},{"$f":"'FR-16(7)(v)-4 PROD Energy'!L159+'FR-16(7)(v)-8 TRANS Energy'!L159+'FR-16(7)(v)-12 DIST Energy'!L159","v":0},{"$f":"'FR-16(7)(v)-5 PROD Cust'!L159+'FR-16(7)(v)-9 TRANS Cust'!L159+'FR-16(7)(v)-13 DIST Cust'!L159","v":0},2351123,0]
[26,null,{"$f":"'FR-16(7)(v)-1 Functional'!C160","v":"CONDUCTORS - UNDERGROUND / PRIMARY - CUSTOMER"},{"$f":"'FR-16(7)(v)-1 Functional'!D160","v":"K405"},null,{"$f":"'FR-16(7)(v)-14 TOTAL CLASS'!L160","v":5776},{"$f":"'FR-16(7)(v)-3 PROD Demand'!L160+'FR-16(7)(v)-7 TRANS Demand'!L160+'FR-16(7)(v)-11 DIST Demand'!L160","v":0},{"$f":"'FR-16(7)(v)-4 PROD Energy'!L160+'FR-16(7)(v)-8 TRANS Energy'!L160+'FR-16(7)(v)-12 DIST Energy'!L160","v":0},{"$f":"'FR-16(7)(v)-5 PROD Cust'!L160+'FR-16(7)(v)-9 TRANS Cust'!L160+'FR-16(7)(v)-13 DIST Cust'!L160","v":5776},5776,0]
[27,null,{"$f":"'FR-16(7)(v)-1 Functional'!C161","v":"CONDUCTORS - UNDERGROUND / SECONDARY - DEMAND"},{"$f":"'FR-16(7)(v)-1 Functional'!D161","v":"K206"},null,{"$f":"'FR-16(7)(v)-14 TOTAL CLASS'!L161","v":402781},{"$f":"'FR-16(7)(v)-3 PROD Demand'!L161+'FR-16(7)(v)-7 TRANS Demand'!L161+'FR-16(7)(v)-11 DIST Demand'!L161","v":402781},{"$f":"'FR-16(7)(v)-4 PROD Energy'!L161+'FR-16(7)(v)-8 TRANS Energy'!L161+'FR-16(7)(v)-12 DIST Energy'!L161","v":0},{"$f":"'FR-16(7)(v)-5 PROD Cust'!L161+'FR-16(7)(v)-9 TRANS Cust'!L161+'FR-16(7)(v)-13 DIST Cust'!L161","v":0},402781,0]
[28,null,{"$f":"'FR-16(7)(v)-1 Functional'!C162","v":"CONDUCTORS - UNDERGROUND / SECONDARY - CUSTOMER"},{"$f":"'FR-16(7)(v)-1 Functional'!D162","v":"K405"},null,{"$f":"'FR-16(7)(v)-14 TOTAL CLASS'!L162","v":1806},{"$f":"'FR-16(7)(v)-3 PROD Demand'!L162+'FR-16(7)(v)-7 TRANS Demand'!L162+'FR-16(7)(v)-11 DIST Demand'!L162","v":0},{"$f":"'FR-16(7)(v)-4 PROD Energy'!L162+'FR-16(7)(v)-8 TRANS Energy'!L162+'FR-16(7)(v)-12 DIST Energy'!L162","v":0},{"$f":"'FR-16(7)(v)-5 PROD Cust'!L162+'FR-16(7)(v)-9 TRANS Cust'!L162+'FR-16(7)(v)-13 DIST Cust'!L162","v":1806},1806,0]
[29,null,{"$f":"'FR-16(7)(v)-1 Functional'!C163","v":"TRANSFORMERS DEMAND RELATED"},{"$f":"'FR-16(7)(v)-1 Functional'!D163","v":"K215"},null,{"$f":"'FR-16(7)(v)-14 TOTAL CLASS'!L163","v":2903260},{"$f":"'FR-16(7)(v)-3 PROD Demand'!L163+'FR-16(7)(v)-7 TRANS Demand'!L163+'FR-16(7)(v)-11 DIST Demand'!L163","v":2903260},{"$f":"'FR-16(7)(v)-4 PROD Energy'!L163+'FR-16(7)(v)-8 TRANS Energy'!L163+'FR-16(7)(v)-12 DIST Energy'!L163","v":0},{"$f":"'FR-16(7)(v)-5 PROD Cust'!L163+'FR-16(7)(v)-9 TRANS Cust'!L163+'FR-16(7)(v)-13 DIST Cust'!L163","v":0},{"$f":"SUM(G163:I163)","v":2903260},{"$f":"F163-J163","v":0}]
[30,null,{"$f":"'FR-16(7)(v)-1 Functional'!C164","v":"TRANSFORMERS CUSTOMER RELATED"},{"$f":"'FR-16(7)(v)-1 Functional'!D164","v":"K405"},null,{"$f":"'FR-16(7)(v)-14 TOTAL CLASS'!L164","v":7463},{"$f":"'FR-16(7)(v)-3 PROD Demand'!L164+'FR-16(7)(v)-7 TRANS Demand'!L164+'FR-16(7)(v)-11 DIST Demand'!L164","v":0},{"$f":"'FR-16(7)(v)-4 PROD Energy'!L164+'FR-16(7)(v)-8 TRANS Energy'!L164+'FR-16(7)(v)-12 DIST Energy'!L164","v":0},{"$f":"'FR-16(7)(v)-5 PROD Cust'!L164+'FR-16(7)(v)-9 TRANS Cust'!L164+'FR-16(7)(v)-13 DIST Cust'!L164","v":7463},7463,0]
[31,null,{"$f":"'FR-16(7)(v)-1 Functional'!C165","v":"SERVICES"},{"$f":"'FR-16(7)(v)-1 Functional'!D165","v":"K217"},null,{"$f":"'FR-16(7)(v)-14 TOTAL CLASS'!L165","v":75436},{"$f":"'FR-16(7)(v)-3 PROD Demand'!L165+'FR-16(7)(v)-7 TRANS Demand'!L165+'FR-16(7)(v)-11 DIST Demand'!L165","v":0},{"$f":"'FR-16(7)(v)-4 PROD Energy'!L165+'FR-16(7)(v)-8 TRANS Energy'!L165+'FR-16(7)(v)-12 DIST Energy'!L165","v":0},{"$f":"'FR-16(7)(v)-5 PROD Cust'!L165+'FR-16(7)(v)-9 TRANS Cust'!L165+'FR-16(7)(v)-13 DIST Cust'!L165","v":75436},75436,0]
[32,null,{"$f":"'FR-16(7)(v)-1 Functional'!C166","v":"METERS"},{"$f":"'FR-16(7)(v)-1 Functional'!D166","v":"K407"},null,{"$f":"'FR-16(7)(v)-14 TOTAL CLASS'!L166","v":32327},{"$f":"'FR-16(7)(v)-3 PROD Demand'!L166+'FR-16(7)(v)-7 TRANS Demand'!L166+'FR-16(7)(v)-11 DIST Demand'!L166","v":0},{"$f":"'FR-16(7)(v)-4 PROD Energy'!L166+'FR-16(7)(v)-8 TRANS Energy'!L166+'FR-16(7)(v)-12 DIST Energy'!L166","v":0},{"$f":"'FR-16(7)(v)-5 PROD Cust'!L166+'FR-16(7)(v)-9 TRANS Cust'!L166+'FR-16(7)(v)-13 DIST Cust'!L166","v":32327},32327,0]
[33,null,{"$f":"'FR-16(7)(v)-1 Functional'!C167","v":"STREET LIGHTS"},{"$f":"'FR-16(7)(v)-1 Functional'!D167","v":"K401"},null,{"$f":"'FR-16(7)(v)-14 TOTAL CLASS'!L167","v":0},{"$f":"'FR-16(7)(v)-3 PROD Demand'!L167+'FR-16(7)(v)-7 TRANS Demand'!L167+'FR-16(7)(v)-11 DIST Demand'!L167","v":0},{"$f":"'FR-16(7)(v)-4 PROD Energy'!L167+'FR-16(7)(v)-8 TRANS Energy'!L167+'FR-16(7)(v)-12 DIST Energy'!L167","v":0},{"$f":"'FR-16(7)(v)-5 PROD Cust'!L167+'FR-16(7)(v)-9 TRANS Cust'!L167+'FR-16(7)(v)-13 DIST Cust'!L167","v":0},0,0]
[34,null,{"$f":"'FR-16(7)(v)-1 Functional'!C168","v":"ADJUSTMENT  "},{"$f":"'FR-16(7)(v)-1 Functional'!D168","v":"K209"},null,{"$f":"'FR-16(7)(v)-14 TOTAL CLASS'!L168","v":48847},{"$f":"'FR-16(7)(v)-3 PROD Demand'!L168+'FR-16(7)(v)-7 TRANS Demand'!L168+'FR-16(7)(v)-11 DIST Demand'!L168","v":48487},{"$f":"'FR-16(7)(v)-4 PROD Energy'!L168+'FR-16(7)(v)-8 TRANS Energy'!L168+'FR-16(7)(v)-12 DIST Energy'!L168","v":0},{"$f":"'FR-16(7)(v)-5 PROD Cust'!L168+'FR-16(7)(v)-9 TRANS Cust'!L168+'FR-16(7)(v)-13 DIST Cust'!L168","v":360},48847,0]
[35,null,{"$f":"'FR-16(7)(v)-1 Functional'!C169","v":"CONSTRUCTION NOT CLASSIFIED"},{"$f":"'FR-16(7)(v)-1 Functional'!D169","v":"K209"},null,{"$f":"'FR-16(7)(v)-14 TOTAL CLASS'!L169","v":159543},{"$f":"'FR-16(7)(v)-3 PROD Demand'!L169+'FR-16(7)(v)-7 TRANS Demand'!L169+'FR-16(7)(v)-11 DIST Demand'!L169","v":158366},{"$f":"'FR-16(7)(v)-4 PROD Energy'!L169+'FR-16(7)(v)-8 TRANS Energy'!L169+'FR-16(7)(v)-12 DIST Energy'!L169","v":0},{"$f":"'FR-16(7)(v)-5 PROD Cust'!L169+'FR-16(7)(v)-9 TRANS Cust'!L169+'FR-16(7)(v)-13 DIST Cust'!L169","v":1177},159543,0]
[36,null,{"$f":"'FR-16(7)(v)-1 Functional'!C170","v":"RWIP"},{"$f":"'FR-16(7)(v)-1 Functional'!D170","v":"K215"},null,{"$f":"'FR-16(7)(v)-14 TOTAL CLASS'!L170","v":-2423739},{"$f":"'FR-16(7)(v)-3 PROD Demand'!L170+'FR-16(7)(v)-7 TRANS Demand'!L170+'FR-16(7)(v)-11 DIST Demand'!L170","v":-2423739},{"$f":"'FR-16(7)(v)-4 PROD Energy'!L170+'FR-16(7)(v)-8 TRANS Energy'!L170+'FR-16(7)(v)-12 DIST Energy'!L170","v":0},{"$f":"'FR-16(7)(v)-5 PROD Cust'!L170+'FR-16(7)(v)-9 TRANS Cust'!L170+'FR-16(7)(v)-13 DIST Cust'!L170","v":0},{"$f":"SUM(G170:I170)","v":-2423739},{"$f":"F170-J170","v":0}]
[37,null,{"$f":"'FR-16(7)(v)-1 Functional'!C171","v":"  TOTAL DIST DEPREC RESERVE"},null,null,{"$f":"SUM(F149:F170)","v":13623770},{"$f":"SUM(G149:G170)","v":13482175},0,141595,13623770,0]
[38]
[39,null,"TOTAL TRANS & DIST DEPREC RESERVE",null,null,{"$f":"F171+F145","v":16307571},{"$f":"G171+G145","v":16165976},{"$f":"H171+H145","v":0},{"$f":"I171+I145","v":141595},{"$f":"J171+J145","v":16307571},{"$f":"F173-J173","v":0}]
[40,null,"TOTAL GROSS PTD PLANT DEPREC RESERVE",null,null,{"$f":"F147+F171","v":95508641},{"$f":"G147+G171","v":95367046},{"$f":"H147+H171","v":0},{"$f":"I147+I171","v":141595},{"$f":"J147+J171","v":95508641},{"$f":"F174-J174","v":0}]
[41]
[42,"GENERAL & INTANGIBLE PLANT"]
[43,null,{"$f":"'FR-16(7)(v)-1 Functional'!C177","v":"PRODUCTION - DEMAND"},{"$f":"'FR-16(7)(v)-1 Functional'!D177","v":"K201"},null,{"$f":"'FR-16(7)(v)-14 TOTAL CLASS'!L177","v":726391},{"$f":"'FR-16(7)(v)-3 PROD Demand'!L177+'FR-16(7)(v)-7 TRANS Demand'!L177+'FR-16(7)(v)-11 DIST Demand'!L177","v":726391},{"$f":"'FR-16(7)(v)-4 PROD Energy'!L177+'FR-16(7)(v)-8 TRANS Energy'!L177+'FR-16(7)(v)-12 DIST Energy'!L177","v":0},{"$f":"'FR-16(7)(v)-5 PROD Cust'!L177+'FR-16(7)(v)-9 TRANS Cust'!L177+'FR-16(7)(v)-13 DIST Cust'!L177","v":0},{"$f":"SUM(G177:I177)","v":726391},{"$f":"F177-J177","v":0}]
[44,null,{"$f":"'FR-16(7)(v)-1 Functional'!C178","v":"PRODUCTION - ENERGY"},{"$f":"'FR-16(7)(v)-1 Functional'!D178","v":"K301"},null,{"$f":"'FR-16(7)(v)-14 TOTAL CLASS'!L178","v":1037877},{"$f":"'FR-16(7)(v)-3 PROD Demand'!L178+'FR-16(7)(v)-7 TRANS Demand'!L178+'FR-16(7)(v)-11 DIST Demand'!L178","v":0},{"$f":"'FR-16(7)(v)-4 PROD Energy'!L178+'FR-16(7)(v)-8 TRANS Energy'!L178+'FR-16(7)(v)-12 DIST Energy'!L178","v":1037877},{"$f":"'FR-16(7)(v)-5 PROD Cust'!L178+'FR-16(7)(v)-9 TRANS Cust'!L178+'FR-16(7)(v)-13 DIST Cust'!L178","v":0},{"$f":"SUM(G178:I178)","v":1037877},{"$f":"F178-J178","v":0}]
[45,null,{"$f":"'FR-16(7)(v)-1 Functional'!C179","v":"TRANSMISSION"},{"$f":"'FR-16(7)(v)-1 Functional'!D179","v":"K202"},null,{"$f":"'FR-16(7)(v)-14 TOTAL CLASS'!L179","v":114786},{"$f":"'FR-16(7)(v)-3 PROD Demand'!L179+'FR-16(7)(v)-7 TRANS Demand'!L179+'FR-16(7)(v)-11 DIST Demand'!L179","v":114786},{"$f":"'FR-16(7)(v)-4 PROD Energy'!L179+'FR-16(7)(v)-8 TRANS Energy'!L179+'FR-16(7)(v)-12 DIST Energy'!L179","v":0},{"$f":"'FR-16(7)(v)-5 PROD Cust'!L179+'FR-16(7)(v)-9 TRANS Cust'!L179+'FR-16(7)(v)-13 DIST Cust'!L179","v":0},114786,0]
[46,null,{"$f":"'FR-16(7)(v)-1 Functional'!C180","v":"DISTRIBUTION - DEMAND"},{"$f":"'FR-16(7)(v)-1 Functional'!D180","v":"K201"},null,{"$f":"'FR-16(7)(v)-14 TOTAL CLASS'!L180","v":385519},{"$f":"'FR-16(7)(v)-3 PROD Demand'!L180+'FR-16(7)(v)-7 TRANS Demand'!L180+'FR-16(7)(v)-11 DIST Demand'!L180","v":385519},{"$f":"'FR-16(7)(v)-4 PROD Energy'!L180+'FR-16(7)(v)-8 TRANS Energy'!L180+'FR-16(7)(v)-12 DIST Energy'!L180","v":0},{"$f":"'FR-16(7)(v)-5 PROD Cust'!L180+'FR-16(7)(v)-9 TRANS Cust'!L180+'FR-16(7)(v)-13 DIST Cust'!L180","v":0},385519,0]
[47,null,{"$f":"'FR-16(7)(v)-1 Functional'!C181","v":"DISTRIBUTION - CUSTOMER"},{"$f":"'FR-16(7)(v)-1 Functional'!D181","v":"K405"},null,{"$f":"'FR-16(7)(v)-14 TOTAL CLASS'!L181","v":702},{"$f":"'FR-16(7)(v)-3 PROD Demand'!L181+'FR-16(7)(v)-7 TRANS Demand'!L181+'FR-16(7)(v)-11 DIST Demand'!L181","v":0},{"$f":"'FR-16(7)(v)-4 PROD Energy'!L181+'FR-16(7)(v)-8 TRANS Energy'!L181+'FR-16(7)(v)-12 DIST Energy'!L181","v":0},{"$f":"'FR-16(7)(v)-5 PROD Cust'!L181+'FR-16(7)(v)-9 TRANS Cust'!L181+'FR-16(7)(v)-13 DIST Cust'!L181","v":702},702,0]
[48,null,{"$f":"'FR-16(7)(v)-1 Functional'!C182","v":"CUSTOMER ACCOUNTING"},{"$f":"'FR-16(7)(v)-1 Functional'!D182","v":"A308"},null,{"$f":"'FR-16(7)(v)-14 TOTAL CLASS'!L182","v":13056},{"$f":"'FR-16(7)(v)-3 PROD Demand'!L182+'FR-16(7)(v)-7 TRANS Demand'!L182+'FR-16(7)(v)-11 DIST Demand'!L182","v":0},{"$f":"'FR-16(7)(v)-4 PROD Energy'!L182+'FR-16(7)(v)-8 TRANS Energy'!L182+'FR-16(7)(v)-12 DIST Energy'!L182","v":0},{"$f":"'FR-16(7)(v)-5 PROD Cust'!L182+'FR-16(7)(v)-9 TRANS Cust'!L182+'FR-16(7)(v)-13 DIST Cust'!L182","v":13056},13056,0]
[49,null,{"$f":"'FR-16(7)(v)-1 Functional'!C183","v":"CUSTOMER SERVICE & INFORMATION"},{"$f":"'FR-16(7)(v)-1 Functional'!D183","v":"A310"},null,{"$f":"'FR-16(7)(v)-14 TOTAL CLASS'!L183","v":156},{"$f":"'FR-16(7)(v)-3 PROD Demand'!L183+'FR-16(7)(v)-7 TRANS Demand'!L183+'FR-16(7)(v)-11 DIST Demand'!L183","v":0},{"$f":"'FR-16(7)(v)-4 PROD Energy'!L183+'FR-16(7)(v)-8 TRANS Energy'!L183+'FR-16(7)(v)-12 DIST Energy'!L183","v":0},{"$f":"'FR-16(7)(v)-5 PROD Cust'!L183+'FR-16(7)(v)-9 TRANS Cust'!L183+'FR-16(7)(v)-13 DIST Cust'!L183","v":156},156,0]
[50,null,{"$f":"'FR-16(7)(v)-1 Functional'!C184","v":"SALES"},{"$f":"'FR-16(7)(v)-1 Functional'!D184","v":"A312"},null,{"$f":"'FR-16(7)(v)-14 TOTAL CLASS'!L184","v":0},{"$f":"'FR-16(7)(v)-3 PROD Demand'!L184+'FR-16(7)(v)-7 TRANS Demand'!L184+'FR-16(7)(v)-11 DIST Demand'!L184","v":0},{"$f":"'FR-16(7)(v)-4 PROD Energy'!L184+'FR-16(7)(v)-8 TRANS Energy'!L184+'FR-16(7)(v)-12 DIST Energy'!L184","v":0},{"$f":"'FR-16(7)(v)-5 PROD Cust'!L184+'FR-16(7)(v)-9 TRANS Cust'!L184+'FR-16(7)(v)-13 DIST Cust'!L184","v":0},0,0]
[51,null,{"$f":"'FR-16(7)(v)-1 Functional'!C185","v":"ADJUSTMENT"},{"$f":"'FR-16(7)(v)-1 Functional'!D185","v":"A315"},null,{"$f":"'FR-16(7)(v)-14 TOTAL CLASS'!L185","v":21233},{"$f":"'FR-16(7)(v)-3 PROD Demand'!L185+'FR-16(7)(v)-7 TRANS Demand'!L185+'FR-16(7)(v)-11 DIST Demand'!L185","v":2477},{"$f":"'FR-16(7)(v)-4 PROD Energy'!L185+'FR-16(7)(v)-8 TRANS Energy'!L185+'FR-16(7)(v)-12 DIST Energy'!L185","v":18489},{"$f":"'FR-16(7)(v)-5 PROD Cust'!L185+'FR-16(7)(v)-9 TRANS Cust'!L185+'FR-16(7)(v)-13 DIST Cust'!L185","v":267},21233,0]
[52,null,{"$f":"'FR-16(7)(v)-1 Functional'!C186","v":"  GENERAL & INTANG PLANT"},null,null,{"$f":"SUM(F176:F185)","v":2299720},1229173,1056366,14181,2299720,0]
[53]
[54,"COMMON & OTHER PLANT"]
[55,null,{"$f":"'FR-16(7)(v)-1 Functional'!C189","v":"PRODUCTION - DEMAND"},{"$f":"'FR-16(7)(v)-1 Functional'!D189","v":"K201"},null,{"$f":"'FR-16(7)(v)-14 TOTAL CLASS'!L189","v":981484},{"$f":"'FR-16(7)(v)-3 PROD Demand'!L189+'FR-16(7)(v)-7 TRANS Demand'!L189+'FR-16(7)(v)-11 DIST Demand'!L189","v":981484},{"$f":"'FR-16(7)(v)-4 PROD Energy'!L189+'FR-16(7)(v)-8 TRANS Energy'!L189+'FR-16(7)(v)-12 DIST Energy'!L189","v":0},{"$f":"'FR-16(7)(v)-5 PROD Cust'!L189+'FR-16(7)(v)-9 TRANS Cust'!L189+'FR-16(7)(v)-13 DIST Cust'!L189","v":0},{"$f":"SUM(G189:I189)","v":981484},{"$f":"F189-J189","v":0}]
[56,null,{"$f":"'FR-16(7)(v)-1 Functional'!C190","v":"PRODUCTION - ENERGY"},{"$f":"'FR-16(7)(v)-1 Functional'!D190","v":"K301"},null,{"$f":"'FR-16(7)(v)-14 TOTAL CLASS'!L190","v":1402358},{"$f":"'FR-16(7)(v)-3 PROD Demand'!L190+'FR-16(7)(v)-7 TRANS Demand'!L190+'FR-16(7)(v)-11 DIST Demand'!L190","v":0},{"$f":"'FR-16(7)(v)-4 PROD Energy'!L190+'FR-16(7)(v)-8 TRANS Energy'!L190+'FR-16(7)(v)-12 DIST Energy'!L190","v":1402358},{"$f":"'FR-16(7)(v)-5 PROD Cust'!L190+'FR-16(7)(v)-9 TRANS Cust'!L190+'FR-16(7)(v)-13 DIST Cust'!L190","v":0},{"$f":"SUM(G190:I190)","v":1402358},{"$f":"F190-J190","v":0}]
[57,null,{"$f":"'FR-16(7)(v)-1 Functional'!C191","v":"TRANSMISSION"},{"$f":"'FR-16(7)(v)-1 Functional'!D191","v":"K202"},null,{"$f":"'FR-16(7)(v)-14 TOTAL CLASS'!L191","v":155096},{"$f":"'FR-16(7)(v)-3 PROD Demand'!L191+'FR-16(7)(v)-7 TRANS Demand'!L191+'FR-16(7)(v)-11 DIST Demand'!L191","v":155096},{"$f":"'FR-16(7)(v)-4 PROD Energy'!L191+'FR-16(7)(v)-8 TRANS Energy'!L191+'FR-16(7)(v)-12 DIST Energy'!L191","v":0},{"$f":"'FR-16(7)(v)-5 PROD Cust'!L191+'FR-16(7)(v)-9 TRANS Cust'!L191+'FR-16(7)(v)-13 DIST Cust'!L191","v":0},155096,0]
[58,null,{"$f":"'FR-16(7)(v)-1 Functional'!C192","v":"DISTRIBUTION - DEMAND"},{"$f":"'FR-16(7)(v)-1 Functional'!D192","v":"K201"},null,{"$f":"'FR-16(7)(v)-14 TOTAL CLASS'!L192","v":520906},{"$f":"'FR-16(7)(v)-3 PROD Demand'!L192+'FR-16(7)(v)-7 TRANS Demand'!L192+'FR-16(7)(v)-11 DIST Demand'!L192","v":520906},{"$f":"'FR-16(7)(v)-4 PROD Energy'!L192+'FR-16(7)(v)-8 TRANS Energy'!L192+'FR-16(7)(v)-12 DIST Energy'!L192","v":0},{"$f":"'FR-16(7)(v)-5 PROD Cust'!L192+'FR-16(7)(v)-9 TRANS Cust'!L192+'FR-16(7)(v)-13 DIST Cust'!L192","v":0},520906,0]
[59,null,{"$f":"'FR-16(7)(v)-1 Functional'!C193","v":"DISTRIBUTION - CUSTOMER"},{"$f":"'FR-16(7)(v)-1 Functional'!D193","v":"K405"},null,{"$f":"'FR-16(7)(v)-14 TOTAL CLASS'!L193","v":949},{"$f":"'FR-16(7)(v)-3 PROD Demand'!L193+'FR-16(7)(v)-7 TRANS Demand'!L193+'FR-16(7)(v)-11 DIST Demand'!L193","v":0},{"$f":"'FR-16(7)(v)-4 PROD Energy'!L193+'FR-16(7)(v)-8 TRANS Energy'!L193+'FR-16(7)(v)-12 DIST Energy'!L193","v":0},{"$f":"'FR-16(7)(v)-5 PROD Cust'!L193+'FR-16(7)(v)-9 TRANS Cust'!L193+'FR-16(7)(v)-13 DIST Cust'!L193","v":949},949,0]
[60,null,{"$f":"'FR-16(7)(v)-1 Functional'!C194","v":"CUSTOMER ACCOUNTING"},{"$f":"'FR-16(7)(v)-1 Functional'!D194","v":"A308"},null,{"$f":"'FR-16(7)(v)-14 TOTAL CLASS'!L194","v":17641},{"$f":"'FR-16(7)(v)-3 PROD Demand'!L194+'FR-16(7)(v)-7 TRANS Demand'!L194+'FR-16(7)(v)-11 DIST Demand'!L194","v":0},{"$f":"'FR-16(7)(v)-4 PROD Energy'!L194+'FR-16(7)(v)-8 TRANS Energy'!L194+'FR-16(7)(v)-12 DIST Energy'!L194","v":0},{"$f":"'FR-16(7)(v)-5 PROD Cust'!L194+'FR-16(7)(v)-9 TRANS Cust'!L194+'FR-16(7)(v)-13 DIST Cust'!L194","v":17641},17641,0]
[61,null,{"$f":"'FR-16(7)(v)-1 Functional'!C195","v":"CUSTOMER SERVICE & INFORMATION"},{"$f":"'FR-16(7)(v)-1 Functional'!D195","v":"A310"},null,{"$f":"'FR-16(7)(v)-14 TOTAL CLASS'!L195","v":211},{"$f":"'FR-16(7)(v)-3 PROD Demand'!L195+'FR-16(7)(v)-7 TRANS Demand'!L195+'FR-16(7)(v)-11 DIST Demand'!L195","v":0},{"$f":"'FR-16(7)(v)-4 PROD Energy'!L195+'FR-16(7)(v)-8 TRANS Energy'!L195+'FR-16(7)(v)-12 DIST Energy'!L195","v":0},{"$f":"'FR-16(7)(v)-5 PROD Cust'!L195+'FR-16(7)(v)-9 TRANS Cust'!L195+'FR-16(7)(v)-13 DIST Cust'!L195","v":211},211,0]
[62,null,{"$f":"'FR-16(7)(v)-1 Functional'!C196","v":"SALES"},{"$f":"'FR-16(7)(v)-1 Functional'!D196","v":"A312"},null,{"$f":"'FR-16(7)(v)-14 TOTAL CLASS'!L196","v":0},{"$f":"'FR-16(7)(v)-3 PROD Demand'!L196+'FR-16(7)(v)-7 TRANS Demand'!L196+'FR-16(7)(v)-11 DIST Demand'!L196","v":0},{"$f":"'FR-16(7)(v)-4 PROD Energy'!L196+'FR-16(7)(v)-8 TRANS Energy'!L196+'FR-16(7)(v)-12 DIST Energy'!L196","v":0},{"$f":"'FR-16(7)(v)-5 PROD Cust'!L196+'FR-16(7)(v)-9 TRANS Cust'!L196+'FR-16(7)(v)-13 DIST Cust'!L196","v":0},0,0]
[63,null,{"$f":"'FR-16(7)(v)-1 Functional'!C197","v":"ADJUSTMENT"},{"$f":"'FR-16(7)(v)-1 Functional'!D197","v":"A315"},null,{"$f":"'FR-16(7)(v)-14 TOTAL CLASS'!L197","v":1192},{"$f":"'FR-16(7)(v)-3 PROD Demand'!L197+'FR-16(7)(v)-7 TRANS Demand'!L197+'FR-16(7)(v)-11 DIST Demand'!L197","v":139},{"$f":"'FR-16(7)(v)-4 PROD Energy'!L197+'FR-16(7)(v)-8 TRANS Energy'!L197+'FR-16(7)(v)-12 DIST Energy'!L197","v":1038},{"$f":"'FR-16(7)(v)-5 PROD Cust'!L197+'FR-16(7)(v)-9 TRANS Cust'!L197+'FR-16(7)(v)-13 DIST Cust'!L197","v":15},1192,0]
[64,null,{"$f":"'FR-16(7)(v)-1 Functional'!C198","v":"  COMMON & OTHER PLANT IN SERVICE"},null,null,{"$f":"SUM(F189:F197)","v":3079837},{"$f":"SUM(G188:G197)","v":1657625},{"$f":"SUM(H188:H197)","v":1403396},{"$f":"SUM(I188:I197)","v":18816},{"$f":"SUM(J188:J197)","v":3079837},{"$f":"SUM(K188:K197)","v":0}]
[65]
[66,"TOTAL DEPRECIATION RESERVE",null,null,null,{"$f":"F198+F186+F171+F145+F139","v":100888198},98253844,2459762,174592,100888198,0]
[]
[{"$f":"co_name","v":"DUKE ENERGY KENTUCKY, INC."},null,null,null,null,null,null,null,null,{"$f":"J1","v":"FR-16(7)(v)-20"}]
[{"$f":"$A$2","v":"DT SECONDARY CLASSIFIED - ELECTRIC COST OF SERVICE"},null,null,null,null,null,null,null,null,{"$f":"J2","v":"WITNESS RESPONSIBLE:"}]
[{"$f":"case_name","v":"CASE NO: 2019-00271"},null,null,null,null,null,null,null,null,{"$f":"Witness","v":"JAMES E. ZIOLKOWSKI"}]
[{"$f":"data_filing","v":"DATA: 12 MONTHS ACTUAL  & 0 MONTHS ESTIMATED"},null,null,null,null,null,null,null,null,{"$f":"\"PAGE \"&Pages2-11&\" OF \"&Pages2","v":"PAGE 4 OF 15"}]
[{"$f":"type","v":"TYPE OF FILING: \"X\" ORIGINAL   UPDATED    REVISED  "}]
[]
[]
["LINE",null,null,null,null,"TOTAL","CLASSIFIED",null,null,"TOTAL","ALL"]
["NO.",{"$f":"\"NET ELECTRIC PLANT\"","v":"NET ELECTRIC PLANT"},null,"ALLO",null,{"$f":"$F$9","v":"DT SECONDARY"},{"$f":"G9","v":"DEMAND"},"ENERGY","CUSTOMER","AT ISSUE","OTHER"]
[null,null,"Schedule 4",null,null,null,3,4,5]
[1,"PRODUCTION PLANT"]
[2,null,{"$f":"'FR-16(7)(v)-1 Functional'!C213","v":"PRODUCTION STEAM"},null,null,{"$f":"F59-F136","v":58588283},58588283,0,0,58588283,0]
[3,null,{"$f":"'FR-16(7)(v)-1 Functional'!C214","v":"PRODUCTION OTHER"},null,null,25534723,25534723,0,0,25534723,0]
[4,null,{"$f":"'FR-16(7)(v)-1 Functional'!C215","v":"ADJUSTMENT"},null,null,-209611,-209611,0,0,-209611,0]
[5,null,{"$f":"'FR-16(7)(v)-1 Functional'!C216","v":"  NET PRODUCTION PLANT"},null,null,{"$f":"SUM(F213:F215)","v":83913395},83913395,0,0,83913395,0]
[6]
[7,"TRANSMISSION PLANT"]
[8,null,{"$f":"'FR-16(7)(v)-1 Functional'!C219","v":"MAIN STEP-UP TRANSFORMERS"},null,null,{"$f":"F65-F142","v":0},0,0,0,0,0]
[9,null,{"$f":"'FR-16(7)(v)-1 Functional'!C220","v":"OTHER TRANSMISSION"},null,null,7072566,7072566,0,0,7072566,0]
[10,null,{"$f":"'FR-16(7)(v)-1 Functional'!C221","v":"ADJUSTMENT"},null,null,9470,9470,0,0,9470,0]
[11,null,{"$f":"'FR-16(7)(v)-1 Functional'!C222","v":"    NET TRANSMISSION PLANT"},null,null,{"$f":"SUM(F218:F221)","v":7082036},7082036,0,0,7082036,0]
[12]
[13,"NET PROD & TRANS PLANT",null,null,null,{"$f":"F70-F147","v":90995431},90995431,0,0,90995431,0]
[14]
[15,"DISTRIBUTION PLANT"]
[16,null,{"$f":"'FR-16(7)(v)-1 Functional'!C227","v":"SUBSTATIONS"},null,null,{"$f":"F73-F150","v":10263494},10263494,0,0,10263494,0]
[17,null,{"$f":"'FR-16(7)(v)-1 Functional'!C228","v":"POLES, TOWERS  & FIXTURES - PRIMARY - DEMAND"},null,null,2535204,2535204,0,0,2535204,0]
[18,null,{"$f":"'FR-16(7)(v)-1 Functional'!C229","v":"POLES, TOWERS  & FIXTURES - PRIMARY - CUSTOMER"},null,null,{"$f":"F75-F152","v":9178},0,0,9178,9178,0]
[19,null,{"$f":"'FR-16(7)(v)-1 Functional'!C230","v":"POLES, TOWERS  & FIXTURES - SECONDARY - DEMAND"},null,null,{"$f":"F76-F153","v":969546},969546,0,0,969546,0]
[20,null,{"$f":"'FR-16(7)(v)-1 Functional'!C231","v":"POLES, TOWERS  & FIXTURES - SECONDARY - CUSTOMER"},null,null,{"$f":"F77-F154","v":2075},0,0,2075,2075,0]
[21,null,{"$f":"'FR-16(7)(v)-1 Functional'!C232","v":"CONDUCTORS - OVERHEAD / PRIMARY - DEMAND"},null,null,{"$f":"F78-F155","v":7474330},7474330,0,0,7474330,0]
[22,null,{"$f":"'FR-16(7)(v)-1 Functional'!C233","v":"CONDUCTORS - OVERHEAD / PRIMARY - CUSTOMER"},null,null,{"$f":"F79-F156","v":12912},0,0,12912,12912,0]
[23,null,{"$f":"'FR-16(7)(v)-1 Functional'!C234","v":"CONDUCTORS - OVERHEAD / SECONDARY - DEMAND"},null,null,{"$f":"F80-F157","v":3043459},3043459,0,0,3043459,0]
[24,null,{"$f":"'FR-16(7)(v)-1 Functional'!C235","v":"CONDUCTORS - OVERHEAD / SECONDARY - CUSTOMER"},null,null,{"$f":"F81-F158","v":5348},0,0,5348,5348,0]
[25,null,{"$f":"'FR-16(7)(v)-1 Functional'!C236","v":"CONDUCTORS - UNDERGROUND / PRIMARY - DEMAND"},null,null,{"$f":"F82-F159","v":5597363},5597363,0,0,5597363,0]
[26,null,{"$f":"'FR-16(7)(v)-1 Functional'!C237","v":"CONDUCTORS - UNDERGROUND / PRIMARY - CUSTOMER"},null,null,{"$f":"F83-F160","v":13750},0,0,13750,13750,0]
[27,null,{"$f":"'FR-16(7)(v)-1 Functional'!C238","v":"CONDUCTORS - UNDERGROUND / SECONDARY - DEMAND"},null,null,{"$f":"F84-F161","v":958908},958908,0,0,958908,0]
[28,null,{"$f":"'FR-16(7)(v)-1 Functional'!C239","v":"CONDUCTORS - UNDERGROUND / SECONDARY - CUSTOMER"},null,null,{"$f":"F85-F162","v":4300},0,0,4300,4300,0]
[29,null,{"$f":"'FR-16(7)(v)-1 Functional'!C240","v":"TRANSFORMERS DEMAND RELATED"},null,null,{"$f":"F86-F163","v":3767436},3767436,0,0,3767436,0]
[30,null,{"$f":"'FR-16(7)(v)-1 Functional'!C241","v":"TRANSFORMERS CUSTOMER RELATED"},null,null,9685,0,0,9685,9685,0]
[31,null,{"$f":"'FR-16(7)(v)-1 Functional'!C242","v":"SERVICES"},null,null,61900,0,0,61900,61900,0]
[32,null,{"$f":"'FR-16(7)(v)-1 Functional'!C243","v":"METERS"},null,null,114629,0,0,114629,114629,0]
[33,null,{"$f":"'FR-16(7)(v)-1 Functional'!C244","v":"STREET LIGHTS"},null,null,0,0,0,0,0,0]
[34,null,{"$f":"'FR-16(7)(v)-1 Functional'!C245","v":"ADJUSTMENT  "},null,null,-48847,-48487,0,-360,-48847,0]
[35,null,{"$f":"'FR-16(7)(v)-1 Functional'!C246","v":"CONSTRUCTION NOT CLASSIFIED"},null,null,9741793,9669939,0,71854,9741793,0]
[36,null,{"$f":"'FR-16(7)(v)-1 Functional'!C247","v":"RWIP"},null,null,2423739,2423739,0,0,2423739,0]
[37,null,{"$f":"'FR-16(7)(v)-1 Functional'!C248","v":"  NET DISTRIBUTION PLANT"},null,null,{"$f":"SUM(F226:F247)","v":46960202},{"$f":"SUM(G226:G247)","v":46654931},0,305271,46960202,0]
[38]
[39,"NET PTD PLANT",null,null,null,{"$f":"F96-F173","v":54042238},53736967,0,305271,54042238,0]
[40,"NET TRANS & DIST PLANT",null,null,null,137955633,137650362,0,305271,137955633,0]
[41]
[42,"GENERAL & INTANGIBLE PLANT"]
[43,null,{"$f":"'FR-16(7)(v)-1 Functional'!C254","v":"PRODUCTION - DEMAND"},null,null,{"$f":"F100-F177","v":1527653},1527653,0,0,1527653,0]
[44,null,{"$f":"'FR-16(7)(v)-1 Functional'!C255","v":"PRODUCTION - ENERGY"},null,null,2182731,0,2182731,0,2182731,0]
[45,null,{"$f":"'FR-16(7)(v)-1 Functional'!C256","v":"TRANSMISSION"},null,null,241403,241403,0,0,241403,0]
[46,null,{"$f":"'FR-16(7)(v)-1 Functional'!C257","v":"DISTRIBUTION - DEMAND"},null,null,810776,810776,0,0,810776,0]
[47,null,{"$f":"'FR-16(7)(v)-1 Functional'!C258","v":"DISTRIBUTION - CUSTOMER"}]
[48,null,{"$f":"'FR-16(7)(v)-1 Functional'!C259","v":"CUSTOMER ACCOUNTING"},null,null,{"$f":"F105-F182","v":27458},0,0,27458,27458,0]
[49,null,{"$f":"'FR-16(7)(v)-1 Functional'!C260","v":"CUSTOMER SERVICE & INFORMATION"},null,null,329,0,0,329,329,0]
[50,null,{"$f":"'FR-16(7)(v)-1 Functional'!C261","v":"SALES"},null,null,0,0,0,0,0,0]
[51,null,{"$f":"'FR-16(7)(v)-1 Functional'!C262","v":"ADJUSTMENT"},null,null,-21233,-2477,-18489,-267,-21233,0]
[52,null,{"$f":"'FR-16(7)(v)-1 Functional'!C263","v":"  NET GENERAL & INTANG PLANT"},null,null,{"$f":"SUM(F253:F262)","v":4769117},2577355,2164242,27520,4769117,0]
[53]
[54,"COMMON & OTHER PLANT"]
[55,null,{"$f":"'FR-16(7)(v)-1 Functional'!C266","v":"PRODUCTION - DEMAND"},null,null,{"$f":"F112-F189","v":294265},294265,0,0,294265,0]
[56,null,{"$f":"'FR-16(7)(v)-1 Functional'!C267","v":"PRODUCTION - ENERGY"},null,null,420449,0,420449,0,420449,0]
[57,null,{"$f":"'FR-16(7)(v)-1 Functional'!C268","v":"TRANSMISSION"},null,null,46500,46500,0,0,46500,0]
[58,null,{"$f":"'FR-16(7)(v)-1 Functional'!C269","v":"DISTRIBUTION - DEMAND"},null,null,156176,156176,0,0,156176,0]
[59,null,{"$f":"'FR-16(7)(v)-1 Functional'!C270","v":"DISTRIBUTION - CUSTOMER"}]
[60,null,{"$f":"'FR-16(7)(v)-1 Functional'!C271","v":"CUSTOMER ACCOUNTING"},null,null,{"$f":"F117-F194","v":5288},0,0,5288,5288,0]
[61,null,{"$f":"'FR-16(7)(v)-1 Functional'!C272","v":"CUSTOMER SERVICE & INFORMATION"},null,null,63,0,0,63,63,0]
[62,null,{"$f":"'FR-16(7)(v)-1 Functional'!C273","v":"SALES"},null,null,0,0,0,0,0,0]
[63,null,{"$f":"'FR-16(7)(v)-1 Functional'!C274","v":"ADJUSTMENT"},null,null,-1192,-139,-1038,-15,-1192,0]
[64,null,{"$f":"'FR-16(7)(v)-1 Functional'!C275","v":"  COMMON & OTHER PLANT IN SERVICE"},null,null,{"$f":"SUM(F265:F274)","v":921549},496802,419411,5336,921549,0]
[65]
[66,null,{"$f":"'FR-16(7)(v)-1 Functional'!C277","v":"NET ELECTRIC PLANT IN SERVICE"},null,null,{"$f":"F275+F263+F248+F222+F216","v":143646299},140724519,2583653,338127,143646299,0]
[]
[{"$f":"co_name","v":"DUKE ENERGY KENTUCKY, INC."},null,null,null,null,null,null,null,null,{"$f":"J1","v":"FR-16(7)(v)-20"}]
[{"$f":"$A$2","v":"DT SECONDARY CLASSIFIED - ELECTRIC COST OF SERVICE"},null,null,null,null,null,null,null,null,{"$f":"J2","v":"WITNESS RESPONSIBLE:"}]
[{"$f":"case_name","v":"CASE NO: 2019-00271"},null,null,null,null,null,null,null,null,{"$f":"Witness","v":"JAMES E. ZIOLKOWSKI"}]
[{"$f":"data_filing","v":"DATA: 12 MONTHS ACTUAL  & 0 MONTHS ESTIMATED"},null,null,null,null,null,null,null,null,{"$f":"\"PAGE \"&Pages2-10&\" OF \"&Pages2","v":"PAGE 5 OF 15"}]
[{"$f":"type","v":"TYPE OF FILING: \"X\" ORIGINAL   UPDATED    REVISED  "}]
[]
[]
["LINE",null,null,null,null,"TOTAL","CLASSIFIED",null,null,"TOTAL","ALL"]
["NO.","SUBTRACTIVE RATE BASE ADJUSTMENTS",null,"ALLO",null,{"$f":"$F$9","v":"DT SECONDARY"},{"$f":"G9","v":"DEMAND"},"ENERGY","CUSTOMER","AT ISSUE","OTHER"]
[null,null,"Schedule 5",null,null,null,3,4,5]
[1,"RATE BASE ADJUSTMENTS"]
[2,"ACCUMULATED DEFERRED INCOME TAXES"]
[3," ACCUM DEF INC TAXES (282)"]
[4,null,{"$f":"'FR-16(7)(v)-1 Functional'!C292","v":"LIBERALIZED DEPRECIATION"},{"$f":"'FR-16(7)(v)-1 Functional'!D292","v":"NP29"}," ",{"$f":"'FR-16(7)(v)-14 TOTAL CLASS'!L292","v":8515914},{"$f":"'FR-16(7)(v)-3 PROD Demand'!L292+'FR-16(7)(v)-7 TRANS Demand'!L292+'FR-16(7)(v)-11 DIST Demand'!L292","v":8343030},{"$f":"'FR-16(7)(v)-4 PROD Energy'!L292+'FR-16(7)(v)-8 TRANS Energy'!L292+'FR-16(7)(v)-12 DIST Energy'!L292","v":152977},{"$f":"'FR-16(7)(v)-5 PROD Cust'!L292+'FR-16(7)(v)-9 TRANS Cust'!L292+'FR-16(7)(v)-13 DIST Cust'!L292","v":19907},{"$f":"SUM(G292:I292)","v":8515914},{"$f":"F292-J292","v":0}]
[5,null,{"$f":"'FR-16(7)(v)-1 Functional'!C293","v":"LEASED METERS"},{"$f":"'FR-16(7)(v)-1 Functional'!D293","v":"NP29"}," ",{"$f":"'FR-16(7)(v)-14 TOTAL CLASS'!L293","v":193161},{"$f":"'FR-16(7)(v)-3 PROD Demand'!L293+'FR-16(7)(v)-7 TRANS Demand'!L293+'FR-16(7)(v)-11 DIST Demand'!L293","v":189239},{"$f":"'FR-16(7)(v)-4 PROD Energy'!L293+'FR-16(7)(v)-8 TRANS Energy'!L293+'FR-16(7)(v)-12 DIST Energy'!L293","v":3470},{"$f":"'FR-16(7)(v)-5 PROD Cust'!L293+'FR-16(7)(v)-9 TRANS Cust'!L293+'FR-16(7)(v)-13 DIST Cust'!L293","v":452},193161,0]
[6,null,{"$f":"'FR-16(7)(v)-1 Functional'!C294","v":"CONTRIB AID CONSTR"},{"$f":"'FR-16(7)(v)-1 Functional'!D294","v":"D249"}," ",{"$f":"'FR-16(7)(v)-14 TOTAL CLASS'!L294","v":0},{"$f":"'FR-16(7)(v)-3 PROD Demand'!L294+'FR-16(7)(v)-7 TRANS Demand'!L294+'FR-16(7)(v)-11 DIST Demand'!L294","v":0},{"$f":"'FR-16(7)(v)-4 PROD Energy'!L294+'FR-16(7)(v)-8 TRANS Energy'!L294+'FR-16(7)(v)-12 DIST Energy'!L294","v":0},{"$f":"'FR-16(7)(v)-5 PROD Cust'!L294+'FR-16(7)(v)-9 TRANS Cust'!L294+'FR-16(7)(v)-13 DIST Cust'!L294","v":0},0,0]
[7,null,{"$f":"'FR-16(7)(v)-1 Functional'!C295","v":"TAX INTEREST, EXPENSING, DEPR."},{"$f":"'FR-16(7)(v)-1 Functional'!D295","v":"NP29"}," ",{"$f":"'FR-16(7)(v)-14 TOTAL CLASS'!L295","v":8502964},{"$f":"'FR-16(7)(v)-3 PROD Demand'!L295+'FR-16(7)(v)-7 TRANS Demand'!L295+'FR-16(7)(v)-11 DIST Demand'!L295","v":8330342},{"$f":"'FR-16(7)(v)-4 PROD Energy'!L295+'FR-16(7)(v)-8 TRANS Energy'!L295+'FR-16(7)(v)-12 DIST Energy'!L295","v":152745},{"$f":"'FR-16(7)(v)-5 PROD Cust'!L295+'FR-16(7)(v)-9 TRANS Cust'!L295+'FR-16(7)(v)-13 DIST Cust'!L295","v":19877},8502964,0]
[8,null,{"$f":"'FR-16(7)(v)-1 Functional'!C296","v":"AFUDC IN DEBT"},{"$f":"'FR-16(7)(v)-1 Functional'!D296","v":"NP29"}," ",{"$f":"'FR-16(7)(v)-14 TOTAL CLASS'!L296","v":0},{"$f":"'FR-16(7)(v)-3 PROD Demand'!L296+'FR-16(7)(v)-7 TRANS Demand'!L296+'FR-16(7)(v)-11 DIST Demand'!L296","v":0},{"$f":"'FR-16(7)(v)-4 PROD Energy'!L296+'FR-16(7)(v)-8 TRANS Energy'!L296+'FR-16(7)(v)-12 DIST Energy'!L296","v":0},{"$f":"'FR-16(7)(v)-5 PROD Cust'!L296+'FR-16(7)(v)-9 TRANS Cust'!L296+'FR-16(7)(v)-13 DIST Cust'!L296","v":0},0,0]
[9,null,{"$f":"'FR-16(7)(v)-1 Functional'!C297","v":"CASUALTY LOSS"},{"$f":"'FR-16(7)(v)-1 Functional'!D297","v":"K411"}," ",{"$f":"'FR-16(7)(v)-14 TOTAL CLASS'!L297","v":-8566},{"$f":"'FR-16(7)(v)-3 PROD Demand'!L297+'FR-16(7)(v)-7 TRANS Demand'!L297+'FR-16(7)(v)-11 DIST Demand'!L297","v":0},{"$f":"'FR-16(7)(v)-4 PROD Energy'!L297+'FR-16(7)(v)-8 TRANS Energy'!L297+'FR-16(7)(v)-12 DIST Energy'!L297","v":0},{"$f":"'FR-16(7)(v)-5 PROD Cust'!L297+'FR-16(7)(v)-9 TRANS Cust'!L297+'FR-16(7)(v)-13 DIST Cust'!L297","v":-8566},-8566,0]
[10,null,{"$f":"'FR-16(7)(v)-1 Functional'!C298","v":"NON-CASH OVERHEADS"},{"$f":"'FR-16(7)(v)-1 Functional'!D298","v":"G229"}," ",{"$f":"'FR-16(7)(v)-14 TOTAL CLASS'!L298","v":0},{"$f":"'FR-16(7)(v)-3 PROD Demand'!L298+'FR-16(7)(v)-7 TRANS Demand'!L298+'FR-16(7)(v)-11 DIST Demand'!L298","v":0},{"$f":"'FR-16(7)(v)-4 PROD Energy'!L298+'FR-16(7)(v)-8 TRANS Energy'!L298+'FR-16(7)(v)-12 DIST Energy'!L298","v":0},{"$f":"'FR-16(7)(v)-5 PROD Cust'!L298+'FR-16(7)(v)-9 TRANS Cust'!L298+'FR-16(7)(v)-13 DIST Cust'!L298","v":0},0,0]
[11,null,{"$f":"'FR-16(7)(v)-1 Functional'!C299","v":"PLANT FAS 109"},{"$f":"'FR-16(7)(v)-1 Functional'!D299","v":"NP29"}," ",{"$f":"'FR-16(7)(v)-14 TOTAL CLASS'!L299","v":0},{"$f":"'FR-16(7)(v)-3 PROD Demand'!L299+'FR-16(7)(v)-7 TRANS Demand'!L299+'FR-16(7)(v)-11 DIST Demand'!L299","v":0},{"$f":"'FR-16(7)(v)-4 PROD Energy'!L299+'FR-16(7)(v)-8 TRANS Energy'!L299+'FR-16(7)(v)-12 DIST Energy'!L299","v":0},{"$f":"'FR-16(7)(v)-5 PROD Cust'!L299+'FR-16(7)(v)-9 TRANS Cust'!L299+'FR-16(7)(v)-13 DIST Cust'!L299","v":0},0,0]
[12,null,{"$f":"'FR-16(7)(v)-1 Functional'!C300","v":"MISCELLANEOUS"},{"$f":"'FR-16(7)(v)-1 Functional'!D300","v":"NP29"},null,{"$f":"'FR-16(7)(v)-14 TOTAL CLASS'!L300","v":8023681},{"$f":"'FR-16(7)(v)-3 PROD Demand'!L300+'FR-16(7)(v)-7 TRANS Demand'!L300+'FR-16(7)(v)-11 DIST Demand'!L300","v":7860790},{"$f":"'FR-16(7)(v)-4 PROD Energy'!L300+'FR-16(7)(v)-8 TRANS Energy'!L300+'FR-16(7)(v)-12 DIST Energy'!L300","v":144135},{"$f":"'FR-16(7)(v)-5 PROD Cust'!L300+'FR-16(7)(v)-9 TRANS Cust'!L300+'FR-16(7)(v)-13 DIST Cust'!L300","v":18756},8023681,0]
[13,null,{"$f":"'FR-16(7)(v)-1 Functional'!C301","v":"  TOTAL ACCOUNT 282"},null,null,{"$f":"SUM(F292:F300)","v":25227154},24723401,453327,50426,25227154,0]
[14]
[15," ACCUM DEF INC TAXES (283)"]
[16,null,{"$f":"'FR-16(7)(v)-1 Functional'!C304","v":"TRANSITION FROM MISO TO PJM"},{"$f":"'FR-16(7)(v)-1 Functional'!D304","v":"NP29"},null,{"$f":"'FR-16(7)(v)-14 TOTAL CLASS'!L304","v":-456941},{"$f":"'FR-16(7)(v)-3 PROD Demand'!L304+'FR-16(7)(v)-7 TRANS Demand'!L304+'FR-16(7)(v)-11 DIST Demand'!L304","v":-447665},{"$f":"'FR-16(7)(v)-4 PROD Energy'!L304+'FR-16(7)(v)-8 TRANS Energy'!L304+'FR-16(7)(v)-12 DIST Energy'!L304","v":-8208},{"$f":"'FR-16(7)(v)-5 PROD Cust'!L304+'FR-16(7)(v)-9 TRANS Cust'!L304+'FR-16(7)(v)-13 DIST Cust'!L304","v":-1068},{"$f":"SUM(G304:I304)","v":-456941},{"$f":"F304-J304","v":0}]
[17,null,{"$f":"'FR-16(7)(v)-1 Functional'!C305","v":"DEFERRED PLANT COSTS"},{"$f":"'FR-16(7)(v)-1 Functional'!D305","v":"NP29"},null,{"$f":"'FR-16(7)(v)-14 TOTAL CLASS'!L305","v":89019},{"$f":"'FR-16(7)(v)-3 PROD Demand'!L305+'FR-16(7)(v)-7 TRANS Demand'!L305+'FR-16(7)(v)-11 DIST Demand'!L305","v":87212},{"$f":"'FR-16(7)(v)-4 PROD Energy'!L305+'FR-16(7)(v)-8 TRANS Energy'!L305+'FR-16(7)(v)-12 DIST Energy'!L305","v":1599},{"$f":"'FR-16(7)(v)-5 PROD Cust'!L305+'FR-16(7)(v)-9 TRANS Cust'!L305+'FR-16(7)(v)-13 DIST Cust'!L305","v":208},89019,0]
[18,null,{"$f":"'FR-16(7)(v)-1 Functional'!C306","v":"MISCELLANEOUS"},{"$f":"'FR-16(7)(v)-1 Functional'!D306","v":"OM39"},null,{"$f":"'FR-16(7)(v)-14 TOTAL CLASS'!L306","v":1564733},{"$f":"'FR-16(7)(v)-3 PROD Demand'!L306+'FR-16(7)(v)-7 TRANS Demand'!L306+'FR-16(7)(v)-11 DIST Demand'!L306","v":293209},{"$f":"'FR-16(7)(v)-4 PROD Energy'!L306+'FR-16(7)(v)-8 TRANS Energy'!L306+'FR-16(7)(v)-12 DIST Energy'!L306","v":1268764},{"$f":"'FR-16(7)(v)-5 PROD Cust'!L306+'FR-16(7)(v)-9 TRANS Cust'!L306+'FR-16(7)(v)-13 DIST Cust'!L306","v":2760},1564733,0]
[19,null,{"$f":"'FR-16(7)(v)-1 Functional'!C307","v":"ENVIRONMENTAL RESERVE"},{"$f":"'FR-16(7)(v)-1 Functional'!D307","v":"NP29"},null,{"$f":"'FR-16(7)(v)-14 TOTAL CLASS'!L307","v":0},{"$f":"'FR-16(7)(v)-3 PROD Demand'!L307+'FR-16(7)(v)-7 TRANS Demand'!L307+'FR-16(7)(v)-11 DIST Demand'!L307","v":0},{"$f":"'FR-16(7)(v)-4 PROD Energy'!L307+'FR-16(7)(v)-8 TRANS Energy'!L307+'FR-16(7)(v)-12 DIST Energy'!L307","v":0},{"$f":"'FR-16(7)(v)-5 PROD Cust'!L307+'FR-16(7)(v)-9 TRANS Cust'!L307+'FR-16(7)(v)-13 DIST Cust'!L307","v":0},0,0]
[20,null,{"$f":"'FR-16(7)(v)-1 Functional'!C308","v":"POST IN-SERVICE CARRYING COSTS"},{"$f":"'FR-16(7)(v)-1 Functional'!D308","v":"NP29"},null,{"$f":"'FR-16(7)(v)-14 TOTAL CLASS'!L308","v":0},{"$f":"'FR-16(7)(v)-3 PROD Demand'!L308+'FR-16(7)(v)-7 TRANS Demand'!L308+'FR-16(7)(v)-11 DIST Demand'!L308","v":0},{"$f":"'FR-16(7)(v)-4 PROD Energy'!L308+'FR-16(7)(v)-8 TRANS Energy'!L308+'FR-16(7)(v)-12 DIST Energy'!L308","v":0},{"$f":"'FR-16(7)(v)-5 PROD Cust'!L308+'FR-16(7)(v)-9 TRANS Cust'!L308+'FR-16(7)(v)-13 DIST Cust'!L308","v":0},0,0]
[21,null,{"$f":"'FR-16(7)(v)-1 Functional'!C309","v":"ARO CUMULATIVE EFFECT"},{"$f":"'FR-16(7)(v)-1 Functional'!D309","v":"NP29"},null,{"$f":"'FR-16(7)(v)-14 TOTAL CLASS'!L309","v":0},{"$f":"'FR-16(7)(v)-3 PROD Demand'!L309+'FR-16(7)(v)-7 TRANS Demand'!L309+'FR-16(7)(v)-11 DIST Demand'!L309","v":0},{"$f":"'FR-16(7)(v)-4 PROD Energy'!L309+'FR-16(7)(v)-8 TRANS Energy'!L309+'FR-16(7)(v)-12 DIST Energy'!L309","v":0},{"$f":"'FR-16(7)(v)-5 PROD Cust'!L309+'FR-16(7)(v)-9 TRANS Cust'!L309+'FR-16(7)(v)-13 DIST Cust'!L309","v":0},0,0]
[22,null,{"$f":"'FR-16(7)(v)-1 Functional'!C310","v":"LOSS ON REACQUIRED DEBT"},{"$f":"'FR-16(7)(v)-1 Functional'!D310","v":"D249"},null,{"$f":"'FR-16(7)(v)-14 TOTAL CLASS'!L310","v":0},{"$f":"'FR-16(7)(v)-3 PROD Demand'!L310+'FR-16(7)(v)-7 TRANS Demand'!L310+'FR-16(7)(v)-11 DIST Demand'!L310","v":0},{"$f":"'FR-16(7)(v)-4 PROD Energy'!L310+'FR-16(7)(v)-8 TRANS Energy'!L310+'FR-16(7)(v)-12 DIST Energy'!L310","v":0},{"$f":"'FR-16(7)(v)-5 PROD Cust'!L310+'FR-16(7)(v)-9 TRANS Cust'!L310+'FR-16(7)(v)-13 DIST Cust'!L310","v":0},0,0]
[23,null,{"$f":"'FR-16(7)(v)-1 Functional'!C311","v":"VACATION PAY ACCRUAL"},{"$f":"'FR-16(7)(v)-1 Functional'!D311","v":"A315"},null,{"$f":"'FR-16(7)(v)-14 TOTAL CLASS'!L311","v":0},{"$f":"'FR-16(7)(v)-3 PROD Demand'!L311+'FR-16(7)(v)-7 TRANS Demand'!L311+'FR-16(7)(v)-11 DIST Demand'!L311","v":0},{"$f":"'FR-16(7)(v)-4 PROD Energy'!L311+'FR-16(7)(v)-8 TRANS Energy'!L311+'FR-16(7)(v)-12 DIST Energy'!L311","v":0},{"$f":"'FR-16(7)(v)-5 PROD Cust'!L311+'FR-16(7)(v)-9 TRANS Cust'!L311+'FR-16(7)(v)-13 DIST Cust'!L311","v":0},0,0]
[24,null,{"$f":"'FR-16(7)(v)-1 Functional'!C312","v":"NON-AMI METERS RETIRED EARLY"},{"$f":"'FR-16(7)(v)-1 Functional'!D312","v":"OM39"},null,{"$f":"'FR-16(7)(v)-14 TOTAL CLASS'!L312","v":187745},{"$f":"'FR-16(7)(v)-3 PROD Demand'!L312+'FR-16(7)(v)-7 TRANS Demand'!L312+'FR-16(7)(v)-11 DIST Demand'!L312","v":35181},{"$f":"'FR-16(7)(v)-4 PROD Energy'!L312+'FR-16(7)(v)-8 TRANS Energy'!L312+'FR-16(7)(v)-12 DIST Energy'!L312","v":152233},{"$f":"'FR-16(7)(v)-5 PROD Cust'!L312+'FR-16(7)(v)-9 TRANS Cust'!L312+'FR-16(7)(v)-13 DIST Cust'!L312","v":331},{"$f":"SUM(G312:I312)","v":187745},{"$f":"F312-J312","v":0}]
[25,null,{"$f":"'FR-16(7)(v)-1 Functional'!C313","v":"PENSION EXPENSE"},{"$f":"'FR-16(7)(v)-1 Functional'!D313","v":"A315"},null,{"$f":"'FR-16(7)(v)-14 TOTAL CLASS'!L313","v":570409},{"$f":"'FR-16(7)(v)-3 PROD Demand'!L313+'FR-16(7)(v)-7 TRANS Demand'!L313+'FR-16(7)(v)-11 DIST Demand'!L313","v":173651},{"$f":"'FR-16(7)(v)-4 PROD Energy'!L313+'FR-16(7)(v)-8 TRANS Energy'!L313+'FR-16(7)(v)-12 DIST Energy'!L313","v":391112},{"$f":"'FR-16(7)(v)-5 PROD Cust'!L313+'FR-16(7)(v)-9 TRANS Cust'!L313+'FR-16(7)(v)-13 DIST Cust'!L313","v":5646},{"$f":"SUM(G313:I313)","v":570409},{"$f":"F313-J313","v":0}]
[26,null,{"$f":"'FR-16(7)(v)-1 Functional'!C314","v":"UNCOLLECTIBLE ACCOUNTS"},{"$f":"'FR-16(7)(v)-1 Functional'!D314","v":"K411"},null,{"$f":"'FR-16(7)(v)-14 TOTAL CLASS'!L314","v":0},{"$f":"'FR-16(7)(v)-3 PROD Demand'!L314+'FR-16(7)(v)-7 TRANS Demand'!L314+'FR-16(7)(v)-11 DIST Demand'!L314","v":0},{"$f":"'FR-16(7)(v)-4 PROD Energy'!L314+'FR-16(7)(v)-8 TRANS Energy'!L314+'FR-16(7)(v)-12 DIST Energy'!L314","v":0},{"$f":"'FR-16(7)(v)-5 PROD Cust'!L314+'FR-16(7)(v)-9 TRANS Cust'!L314+'FR-16(7)(v)-13 DIST Cust'!L314","v":0},0,0]
[27,null,{"$f":"'FR-16(7)(v)-1 Functional'!C315","v":"  TOTAL ACCOUNT 283"},null,null,{"$f":"SUM(F303:F314)","v":1954965},141588,1805500,7877,1954965,0]
[28]
[29," OTHER ACCUMULATED DEFERRED INCOME TAXES"]
[30,null,{"$f":"'FR-16(7)(v)-1 Functional'!C318","v":"EXCESS ADIT"},{"$f":"'FR-16(7)(v)-1 Functional'!D318","v":"NP29"},null,{"$f":"'FR-16(7)(v)-14 TOTAL CLASS'!L318","v":7920718},{"$f":"'FR-16(7)(v)-3 PROD Demand'!L318+'FR-16(7)(v)-7 TRANS Demand'!L318+'FR-16(7)(v)-11 DIST Demand'!L318","v":7759916},{"$f":"'FR-16(7)(v)-4 PROD Energy'!L318+'FR-16(7)(v)-8 TRANS Energy'!L318+'FR-16(7)(v)-12 DIST Energy'!L318","v":142286},{"$f":"'FR-16(7)(v)-5 PROD Cust'!L318+'FR-16(7)(v)-9 TRANS Cust'!L318+'FR-16(7)(v)-13 DIST Cust'!L318","v":18516},{"$f":"SUM(G318:I318)","v":7920718},{"$f":"F318-J318","v":0}]
[31,null,{"$f":"'FR-16(7)(v)-1 Functional'!C319","v":"CUSTOMER SERVICE DEPOSITS"},{"$f":"'FR-16(7)(v)-1 Functional'!D319","v":"NP29"},null,{"$f":"'FR-16(7)(v)-14 TOTAL CLASS'!L319","v":0},{"$f":"'FR-16(7)(v)-3 PROD Demand'!L319+'FR-16(7)(v)-7 TRANS Demand'!L319+'FR-16(7)(v)-11 DIST Demand'!L319","v":0},{"$f":"'FR-16(7)(v)-4 PROD Energy'!L319+'FR-16(7)(v)-8 TRANS Energy'!L319+'FR-16(7)(v)-12 DIST Energy'!L319","v":0},{"$f":"'FR-16(7)(v)-5 PROD Cust'!L319+'FR-16(7)(v)-9 TRANS Cust'!L319+'FR-16(7)(v)-13 DIST Cust'!L319","v":0},{"$f":"SUM(G319:I319)","v":0},{"$f":"F319-J319","v":0}]
[32,null,{"$f":"'FR-16(7)(v)-1 Functional'!C320","v":"POST RETIREMENT BENEFITS"},{"$f":"'FR-16(7)(v)-1 Functional'!D320","v":"NP29"},null,{"$f":"'FR-16(7)(v)-14 TOTAL CLASS'!L320","v":0},{"$f":"'FR-16(7)(v)-3 PROD Demand'!L320+'FR-16(7)(v)-7 TRANS Demand'!L320+'FR-16(7)(v)-11 DIST Demand'!L320","v":0},{"$f":"'FR-16(7)(v)-4 PROD Energy'!L320+'FR-16(7)(v)-8 TRANS Energy'!L320+'FR-16(7)(v)-12 DIST Energy'!L320","v":0},{"$f":"'FR-16(7)(v)-5 PROD Cust'!L320+'FR-16(7)(v)-9 TRANS Cust'!L320+'FR-16(7)(v)-13 DIST Cust'!L320","v":0},{"$f":"SUM(G320:I320)","v":0},{"$f":"F320-J320","v":0}]
[33,null,{"$f":"'FR-16(7)(v)-1 Functional'!C321","v":"INVESTMENT TAX CREDIT"},{"$f":"'FR-16(7)(v)-1 Functional'!D321","v":"NP29"},null,{"$f":"'FR-16(7)(v)-14 TOTAL CLASS'!L321","v":0},{"$f":"'FR-16(7)(v)-3 PROD Demand'!L321+'FR-16(7)(v)-7 TRANS Demand'!L321+'FR-16(7)(v)-11 DIST Demand'!L321","v":0},{"$f":"'FR-16(7)(v)-4 PROD Energy'!L321+'FR-16(7)(v)-8 TRANS Energy'!L321+'FR-16(7)(v)-12 DIST Energy'!L321","v":0},{"$f":"'FR-16(7)(v)-5 PROD Cust'!L321+'FR-16(7)(v)-9 TRANS Cust'!L321+'FR-16(7)(v)-13 DIST Cust'!L321","v":0},{"$f":"SUM(G321:I321)","v":0},{"$f":"F321-J321","v":0}]
[34,null,{"$f":"'FR-16(7)(v)-1 Functional'!C322","v":"  TOTAL OTHER SUBTRACTIVE ADJUSTMENTS"},null,null,{"$f":"SUM(F317:F321)","v":7920718},7759916,142286,18516,7920718,0]
[35]
[36,{"$f":"'FR-16(7)(v)-1 Functional'!B324","v":"TOTAL SUBTRACTIVE RATE BASE ADJUSTMENTS"},null,null,null,{"$f":"F322+F315+F301","v":35102837},32624905,2401113,76819,35102837,0]
[]
[{"$f":"co_name","v":"DUKE ENERGY KENTUCKY, INC."},null,null,null,null,null,null,null,null,{"$f":"J1","v":"FR-16(7)(v)-20"}]
[{"$f":"$A$2","v":"DT SECONDARY CLASSIFIED - ELECTRIC COST OF SERVICE"},null,null,null,null,null,null,null,null,{"$f":"J2","v":"WITNESS RESPONSIBLE:"}]
[{"$f":"case_name","v":"CASE NO: 2019-00271"},null,null,null,null,null,null,null,null,{"$f":"Witness","v":"JAMES E. ZIOLKOWSKI"}]
[{"$f":"data_filing","v":"DATA: 12 MONTHS ACTUAL  & 0 MONTHS ESTIMATED"},null,null,null,null,null,null,null,null,{"$f":"\"PAGE \"&Pages2-9&\" OF \"&Pages2","v":"PAGE 6 OF 15"}]
[{"$f":"type","v":"TYPE OF FILING: \"X\" ORIGINAL   UPDATED    REVISED  "}]
[]
[]
["LINE",null,null,null,null,"TOTAL","CLASSIFIED",null,null,"TOTAL","ALL"]
["NO.","ADDITIVE RATE BASE ADJUSTMENTS",null,"ALLO",null,{"$f":"$F$9","v":"DT SECONDARY"},{"$f":"G9","v":"DEMAND"},"ENERGY","CUSTOMER","AT ISSUE","OTHER"]
[null,null,"Schedule 5.1",null,null,null,3,4,5]
[1,"OTHER ACCUMULATED DEFERRED INCOME TAXES"]
[2," ACCUM DEF INC TAXES (190)"]
[3,null,{"$f":"'FR-16(7)(v)-1 Functional'!C338","v":"UNCOLLECTIBLE ACCTS"},{"$f":"'FR-16(7)(v)-1 Functional'!D338","v":"K411"},null,{"$f":"'FR-16(7)(v)-14 TOTAL CLASS'!L338","v":1577},{"$f":"'FR-16(7)(v)-3 PROD Demand'!L338+'FR-16(7)(v)-7 TRANS Demand'!L338+'FR-16(7)(v)-11 DIST Demand'!L338","v":0},{"$f":"'FR-16(7)(v)-4 PROD Energy'!L338+'FR-16(7)(v)-8 TRANS Energy'!L338+'FR-16(7)(v)-12 DIST Energy'!L338","v":0},{"$f":"'FR-16(7)(v)-5 PROD Cust'!L338+'FR-16(7)(v)-9 TRANS Cust'!L338+'FR-16(7)(v)-13 DIST Cust'!L338","v":1577},{"$f":"SUM(G338:I338)","v":1577},{"$f":"F338-J338","v":0}]
[4,null,{"$f":"'FR-16(7)(v)-1 Functional'!C339","v":"CASH FLOW HEDGE"},{"$f":"'FR-16(7)(v)-1 Functional'!D339","v":"A315"},null,{"$f":"'FR-16(7)(v)-14 TOTAL CLASS'!L339","v":22919},{"$f":"'FR-16(7)(v)-3 PROD Demand'!L339+'FR-16(7)(v)-7 TRANS Demand'!L339+'FR-16(7)(v)-11 DIST Demand'!L339","v":6977},{"$f":"'FR-16(7)(v)-4 PROD Energy'!L339+'FR-16(7)(v)-8 TRANS Energy'!L339+'FR-16(7)(v)-12 DIST Energy'!L339","v":15715},{"$f":"'FR-16(7)(v)-5 PROD Cust'!L339+'FR-16(7)(v)-9 TRANS Cust'!L339+'FR-16(7)(v)-13 DIST Cust'!L339","v":227},22919,0]
[5,null,{"$f":"'FR-16(7)(v)-1 Functional'!C340","v":"RESERVED FOR FUTURE USE"},{"$f":"'FR-16(7)(v)-1 Functional'!D340","v":"NP29"},null,{"$f":"'FR-16(7)(v)-14 TOTAL CLASS'!L340","v":0},{"$f":"'FR-16(7)(v)-3 PROD Demand'!L340+'FR-16(7)(v)-7 TRANS Demand'!L340+'FR-16(7)(v)-11 DIST Demand'!L340","v":0},{"$f":"'FR-16(7)(v)-4 PROD Energy'!L340+'FR-16(7)(v)-8 TRANS Energy'!L340+'FR-16(7)(v)-12 DIST Energy'!L340","v":0},{"$f":"'FR-16(7)(v)-5 PROD Cust'!L340+'FR-16(7)(v)-9 TRANS Cust'!L340+'FR-16(7)(v)-13 DIST Cust'!L340","v":0},0,0]
[6,null,{"$f":"'FR-16(7)(v)-1 Functional'!C341","v":"RESERVED FOR FUTURE USE"},{"$f":"'FR-16(7)(v)-1 Functional'!D341","v":"NP29"},null,{"$f":"'FR-16(7)(v)-14 TOTAL CLASS'!L341","v":0},{"$f":"'FR-16(7)(v)-3 PROD Demand'!L341+'FR-16(7)(v)-7 TRANS Demand'!L341+'FR-16(7)(v)-11 DIST Demand'!L341","v":0},{"$f":"'FR-16(7)(v)-4 PROD Energy'!L341+'FR-16(7)(v)-8 TRANS Energy'!L341+'FR-16(7)(v)-12 DIST Energy'!L341","v":0},{"$f":"'FR-16(7)(v)-5 PROD Cust'!L341+'FR-16(7)(v)-9 TRANS Cust'!L341+'FR-16(7)(v)-13 DIST Cust'!L341","v":0},0,0]
[7,null,{"$f":"'FR-16(7)(v)-1 Functional'!C342","v":"ELECTRIC METERS"},{"$f":"'FR-16(7)(v)-1 Functional'!D342","v":"K407"},null,{"$f":"'FR-16(7)(v)-14 TOTAL CLASS'!L342","v":0},{"$f":"'FR-16(7)(v)-3 PROD Demand'!L342+'FR-16(7)(v)-7 TRANS Demand'!L342+'FR-16(7)(v)-11 DIST Demand'!L342","v":0},{"$f":"'FR-16(7)(v)-4 PROD Energy'!L342+'FR-16(7)(v)-8 TRANS Energy'!L342+'FR-16(7)(v)-12 DIST Energy'!L342","v":0},{"$f":"'FR-16(7)(v)-5 PROD Cust'!L342+'FR-16(7)(v)-9 TRANS Cust'!L342+'FR-16(7)(v)-13 DIST Cust'!L342","v":0},0,0]
[8,null,{"$f":"'FR-16(7)(v)-1 Functional'!C343","v":"UNAMORTIZED DEBT PREMIUM"},{"$f":"'FR-16(7)(v)-1 Functional'!D343","v":"D249"},null,{"$f":"'FR-16(7)(v)-14 TOTAL CLASS'!L343","v":0},{"$f":"'FR-16(7)(v)-3 PROD Demand'!L343+'FR-16(7)(v)-7 TRANS Demand'!L343+'FR-16(7)(v)-11 DIST Demand'!L343","v":0},{"$f":"'FR-16(7)(v)-4 PROD Energy'!L343+'FR-16(7)(v)-8 TRANS Energy'!L343+'FR-16(7)(v)-12 DIST Energy'!L343","v":0},{"$f":"'FR-16(7)(v)-5 PROD Cust'!L343+'FR-16(7)(v)-9 TRANS Cust'!L343+'FR-16(7)(v)-13 DIST Cust'!L343","v":0},0,0]
[9,null,{"$f":"'FR-16(7)(v)-1 Functional'!C344","v":"ARO CUMULATIVE EFFECT"},{"$f":"'FR-16(7)(v)-1 Functional'!D344","v":"NP29"},null,{"$f":"'FR-16(7)(v)-14 TOTAL CLASS'!L344","v":0},{"$f":"'FR-16(7)(v)-3 PROD Demand'!L344+'FR-16(7)(v)-7 TRANS Demand'!L344+'FR-16(7)(v)-11 DIST Demand'!L344","v":0},{"$f":"'FR-16(7)(v)-4 PROD Energy'!L344+'FR-16(7)(v)-8 TRANS Energy'!L344+'FR-16(7)(v)-12 DIST Energy'!L344","v":0},{"$f":"'FR-16(7)(v)-5 PROD Cust'!L344+'FR-16(7)(v)-9 TRANS Cust'!L344+'FR-16(7)(v)-13 DIST Cust'!L344","v":0},0,0]
[10,null,{"$f":"'FR-16(7)(v)-1 Functional'!C345","v":"RETIREMENT PLAN"},{"$f":"'FR-16(7)(v)-1 Functional'!D345","v":"A315"},null,{"$f":"'FR-16(7)(v)-14 TOTAL CLASS'!L345","v":235422},{"$f":"'FR-16(7)(v)-3 PROD Demand'!L345+'FR-16(7)(v)-7 TRANS Demand'!L345+'FR-16(7)(v)-11 DIST Demand'!L345","v":71670},{"$f":"'FR-16(7)(v)-4 PROD Energy'!L345+'FR-16(7)(v)-8 TRANS Energy'!L345+'FR-16(7)(v)-12 DIST Energy'!L345","v":161422},{"$f":"'FR-16(7)(v)-5 PROD Cust'!L345+'FR-16(7)(v)-9 TRANS Cust'!L345+'FR-16(7)(v)-13 DIST Cust'!L345","v":2330},235422,0]
[11,null,{"$f":"'FR-16(7)(v)-1 Functional'!C346","v":"POST RETIREMENT BENEFITS "},{"$f":"'FR-16(7)(v)-1 Functional'!D346","v":"A315"},null,{"$f":"'FR-16(7)(v)-14 TOTAL CLASS'!L346","v":0},{"$f":"'FR-16(7)(v)-3 PROD Demand'!L346+'FR-16(7)(v)-7 TRANS Demand'!L346+'FR-16(7)(v)-11 DIST Demand'!L346","v":0},{"$f":"'FR-16(7)(v)-4 PROD Energy'!L346+'FR-16(7)(v)-8 TRANS Energy'!L346+'FR-16(7)(v)-12 DIST Energy'!L346","v":0},{"$f":"'FR-16(7)(v)-5 PROD Cust'!L346+'FR-16(7)(v)-9 TRANS Cust'!L346+'FR-16(7)(v)-13 DIST Cust'!L346","v":0},0,0]
[12,null,{"$f":"'FR-16(7)(v)-1 Functional'!C347","v":"POST RETIREMENT BENEFITS - HEALTH CARE"},{"$f":"'FR-16(7)(v)-1 Functional'!D347","v":"A315"},null,{"$f":"'FR-16(7)(v)-14 TOTAL CLASS'!L347","v":0},{"$f":"'FR-16(7)(v)-3 PROD Demand'!L347+'FR-16(7)(v)-7 TRANS Demand'!L347+'FR-16(7)(v)-11 DIST Demand'!L347","v":0},{"$f":"'FR-16(7)(v)-4 PROD Energy'!L347+'FR-16(7)(v)-8 TRANS Energy'!L347+'FR-16(7)(v)-12 DIST Energy'!L347","v":0},{"$f":"'FR-16(7)(v)-5 PROD Cust'!L347+'FR-16(7)(v)-9 TRANS Cust'!L347+'FR-16(7)(v)-13 DIST Cust'!L347","v":0},0,0]
[13,null,{"$f":"'FR-16(7)(v)-1 Functional'!C348","v":"POST EMPLOYMENT BENEFITS - SFAS 112"},{"$f":"'FR-16(7)(v)-1 Functional'!D348","v":"A315"},null,{"$f":"'FR-16(7)(v)-14 TOTAL CLASS'!L348","v":0},{"$f":"'FR-16(7)(v)-3 PROD Demand'!L348+'FR-16(7)(v)-7 TRANS Demand'!L348+'FR-16(7)(v)-11 DIST Demand'!L348","v":0},{"$f":"'FR-16(7)(v)-4 PROD Energy'!L348+'FR-16(7)(v)-8 TRANS Energy'!L348+'FR-16(7)(v)-12 DIST Energy'!L348","v":0},{"$f":"'FR-16(7)(v)-5 PROD Cust'!L348+'FR-16(7)(v)-9 TRANS Cust'!L348+'FR-16(7)(v)-13 DIST Cust'!L348","v":0},0,0]
[14,null,{"$f":"'FR-16(7)(v)-1 Functional'!C349","v":"SUPPLEMENTAL PENSION PLAN"},{"$f":"'FR-16(7)(v)-1 Functional'!D349","v":"A315"},null,{"$f":"'FR-16(7)(v)-14 TOTAL CLASS'!L349","v":0},{"$f":"'FR-16(7)(v)-3 PROD Demand'!L349+'FR-16(7)(v)-7 TRANS Demand'!L349+'FR-16(7)(v)-11 DIST Demand'!L349","v":0},{"$f":"'FR-16(7)(v)-4 PROD Energy'!L349+'FR-16(7)(v)-8 TRANS Energy'!L349+'FR-16(7)(v)-12 DIST Energy'!L349","v":0},{"$f":"'FR-16(7)(v)-5 PROD Cust'!L349+'FR-16(7)(v)-9 TRANS Cust'!L349+'FR-16(7)(v)-13 DIST Cust'!L349","v":0},0,0]
[15,null,{"$f":"'FR-16(7)(v)-1 Functional'!C350","v":"INCENTIVE PLAN"},{"$f":"'FR-16(7)(v)-1 Functional'!D350","v":"A315"},null,{"$f":"'FR-16(7)(v)-14 TOTAL CLASS'!L350","v":0},{"$f":"'FR-16(7)(v)-3 PROD Demand'!L350+'FR-16(7)(v)-7 TRANS Demand'!L350+'FR-16(7)(v)-11 DIST Demand'!L350","v":0},{"$f":"'FR-16(7)(v)-4 PROD Energy'!L350+'FR-16(7)(v)-8 TRANS Energy'!L350+'FR-16(7)(v)-12 DIST Energy'!L350","v":0},{"$f":"'FR-16(7)(v)-5 PROD Cust'!L350+'FR-16(7)(v)-9 TRANS Cust'!L350+'FR-16(7)(v)-13 DIST Cust'!L350","v":0},0,0]
[16,null,{"$f":"'FR-16(7)(v)-1 Functional'!C351","v":"FEDERAL DEFERRED TAX RECEIVEABLE"},{"$f":"'FR-16(7)(v)-1 Functional'!D351","v":"A315"},null,{"$f":"'FR-16(7)(v)-14 TOTAL CLASS'!L351","v":0},{"$f":"'FR-16(7)(v)-3 PROD Demand'!L351+'FR-16(7)(v)-7 TRANS Demand'!L351+'FR-16(7)(v)-11 DIST Demand'!L351","v":0},{"$f":"'FR-16(7)(v)-4 PROD Energy'!L351+'FR-16(7)(v)-8 TRANS Energy'!L351+'FR-16(7)(v)-12 DIST Energy'!L351","v":0},{"$f":"'FR-16(7)(v)-5 PROD Cust'!L351+'FR-16(7)(v)-9 TRANS Cust'!L351+'FR-16(7)(v)-13 DIST Cust'!L351","v":0},0,0]
[17,null,{"$f":"'FR-16(7)(v)-1 Functional'!C352","v":"MISCELLANEOUS"},{"$f":"'FR-16(7)(v)-1 Functional'!D352","v":"A315"},null,{"$f":"'FR-16(7)(v)-14 TOTAL CLASS'!L352","v":755636},{"$f":"'FR-16(7)(v)-3 PROD Demand'!L352+'FR-16(7)(v)-7 TRANS Demand'!L352+'FR-16(7)(v)-11 DIST Demand'!L352","v":230040},{"$f":"'FR-16(7)(v)-4 PROD Energy'!L352+'FR-16(7)(v)-8 TRANS Energy'!L352+'FR-16(7)(v)-12 DIST Energy'!L352","v":518116},{"$f":"'FR-16(7)(v)-5 PROD Cust'!L352+'FR-16(7)(v)-9 TRANS Cust'!L352+'FR-16(7)(v)-13 DIST Cust'!L352","v":7480},755636,0]
[18,null,{"$f":"'FR-16(7)(v)-1 Functional'!C353","v":"DEFERRED TAX"},{"$f":"'FR-16(7)(v)-1 Functional'!D353","v":"A315"},null,{"$f":"'FR-16(7)(v)-14 TOTAL CLASS'!L353","v":344336},{"$f":"'FR-16(7)(v)-3 PROD Demand'!L353+'FR-16(7)(v)-7 TRANS Demand'!L353+'FR-16(7)(v)-11 DIST Demand'!L353","v":104827},{"$f":"'FR-16(7)(v)-4 PROD Energy'!L353+'FR-16(7)(v)-8 TRANS Energy'!L353+'FR-16(7)(v)-12 DIST Energy'!L353","v":236101},{"$f":"'FR-16(7)(v)-5 PROD Cust'!L353+'FR-16(7)(v)-9 TRANS Cust'!L353+'FR-16(7)(v)-13 DIST Cust'!L353","v":3408},344336,0]
[19,null,{"$f":"'FR-16(7)(v)-1 Functional'!C354","v":"NET OPERATING LOSS"},{"$f":"'FR-16(7)(v)-1 Functional'!D354","v":"NP29"},null,{"$f":"'FR-16(7)(v)-14 TOTAL CLASS'!L354","v":0},{"$f":"'FR-16(7)(v)-3 PROD Demand'!L354+'FR-16(7)(v)-7 TRANS Demand'!L354+'FR-16(7)(v)-11 DIST Demand'!L354","v":0},{"$f":"'FR-16(7)(v)-4 PROD Energy'!L354+'FR-16(7)(v)-8 TRANS Energy'!L354+'FR-16(7)(v)-12 DIST Energy'!L354","v":0},{"$f":"'FR-16(7)(v)-5 PROD Cust'!L354+'FR-16(7)(v)-9 TRANS Cust'!L354+'FR-16(7)(v)-13 DIST Cust'!L354","v":0},0,0]
[20,null,{"$f":"'FR-16(7)(v)-1 Functional'!C355","v":"401K INCENTIVE PLAN"},{"$f":"'FR-16(7)(v)-1 Functional'!D355","v":"A315"},null,{"$f":"'FR-16(7)(v)-14 TOTAL CLASS'!L355","v":0},{"$f":"'FR-16(7)(v)-3 PROD Demand'!L355+'FR-16(7)(v)-7 TRANS Demand'!L355+'FR-16(7)(v)-11 DIST Demand'!L355","v":0},{"$f":"'FR-16(7)(v)-4 PROD Energy'!L355+'FR-16(7)(v)-8 TRANS Energy'!L355+'FR-16(7)(v)-12 DIST Energy'!L355","v":0},{"$f":"'FR-16(7)(v)-5 PROD Cust'!L355+'FR-16(7)(v)-9 TRANS Cust'!L355+'FR-16(7)(v)-13 DIST Cust'!L355","v":0},0,0]
[21,null,{"$f":"'FR-16(7)(v)-1 Functional'!C356","v":"ENVIRONMENTAL RESERVE"},{"$f":"'FR-16(7)(v)-1 Functional'!D356","v":"NP29"},null,{"$f":"'FR-16(7)(v)-14 TOTAL CLASS'!L356","v":0},{"$f":"'FR-16(7)(v)-3 PROD Demand'!L356+'FR-16(7)(v)-7 TRANS Demand'!L356+'FR-16(7)(v)-11 DIST Demand'!L356","v":0},{"$f":"'FR-16(7)(v)-4 PROD Energy'!L356+'FR-16(7)(v)-8 TRANS Energy'!L356+'FR-16(7)(v)-12 DIST Energy'!L356","v":0},{"$f":"'FR-16(7)(v)-5 PROD Cust'!L356+'FR-16(7)(v)-9 TRANS Cust'!L356+'FR-16(7)(v)-13 DIST Cust'!L356","v":0},0,0]
[22,null,{"$f":"'FR-16(7)(v)-1 Functional'!C357","v":"VACATION PAY ACCRUALS"},{"$f":"'FR-16(7)(v)-1 Functional'!D357","v":"A315"},null,{"$f":"'FR-16(7)(v)-14 TOTAL CLASS'!L357","v":37327},{"$f":"'FR-16(7)(v)-3 PROD Demand'!L357+'FR-16(7)(v)-7 TRANS Demand'!L357+'FR-16(7)(v)-11 DIST Demand'!L357","v":11364},{"$f":"'FR-16(7)(v)-4 PROD Energy'!L357+'FR-16(7)(v)-8 TRANS Energy'!L357+'FR-16(7)(v)-12 DIST Energy'!L357","v":25593},{"$f":"'FR-16(7)(v)-5 PROD Cust'!L357+'FR-16(7)(v)-9 TRANS Cust'!L357+'FR-16(7)(v)-13 DIST Cust'!L357","v":370},37327,0]
[23,null,{"$f":"'FR-16(7)(v)-1 Functional'!C358","v":"DEMAND SIDE MANAGEMENT DEFERRAL"},{"$f":"'FR-16(7)(v)-1 Functional'!D358","v":"NP29"},null,{"$f":"'FR-16(7)(v)-14 TOTAL CLASS'!L358","v":78864},{"$f":"'FR-16(7)(v)-3 PROD Demand'!L358+'FR-16(7)(v)-7 TRANS Demand'!L358+'FR-16(7)(v)-11 DIST Demand'!L358","v":77263},{"$f":"'FR-16(7)(v)-4 PROD Energy'!L358+'FR-16(7)(v)-8 TRANS Energy'!L358+'FR-16(7)(v)-12 DIST Energy'!L358","v":1417},{"$f":"'FR-16(7)(v)-5 PROD Cust'!L358+'FR-16(7)(v)-9 TRANS Cust'!L358+'FR-16(7)(v)-13 DIST Cust'!L358","v":184},78864,0]
[24,null,{"$f":"'FR-16(7)(v)-1 Functional'!C359","v":"OPERATING LEASE OBLIGATION"},{"$f":"'FR-16(7)(v)-1 Functional'!D359","v":"NP29"},null,{"$f":"'FR-16(7)(v)-14 TOTAL CLASS'!L359","v":291836},{"$f":"'FR-16(7)(v)-3 PROD Demand'!L359+'FR-16(7)(v)-7 TRANS Demand'!L359+'FR-16(7)(v)-11 DIST Demand'!L359","v":285911},{"$f":"'FR-16(7)(v)-4 PROD Energy'!L359+'FR-16(7)(v)-8 TRANS Energy'!L359+'FR-16(7)(v)-12 DIST Energy'!L359","v":5243},{"$f":"'FR-16(7)(v)-5 PROD Cust'!L359+'FR-16(7)(v)-9 TRANS Cust'!L359+'FR-16(7)(v)-13 DIST Cust'!L359","v":682},291836,0]
[25,null,{"$f":"'FR-16(7)(v)-1 Functional'!C360","v":"INJURIES & DAMAGES"},{"$f":"'FR-16(7)(v)-1 Functional'!D360","v":"NP29"},null,{"$f":"'FR-16(7)(v)-14 TOTAL CLASS'!L360","v":0},{"$f":"'FR-16(7)(v)-3 PROD Demand'!L360+'FR-16(7)(v)-7 TRANS Demand'!L360+'FR-16(7)(v)-11 DIST Demand'!L360","v":0},{"$f":"'FR-16(7)(v)-4 PROD Energy'!L360+'FR-16(7)(v)-8 TRANS Energy'!L360+'FR-16(7)(v)-12 DIST Energy'!L360","v":0},{"$f":"'FR-16(7)(v)-5 PROD Cust'!L360+'FR-16(7)(v)-9 TRANS Cust'!L360+'FR-16(7)(v)-13 DIST Cust'!L360","v":0},0,0]
[26,null,{"$f":"'FR-16(7)(v)-1 Functional'!C361","v":"  TOTAL ACCOUNT 190"},null,null,{"$f":"SUM(F337:F360)","v":1767917},788052,963607,16258,1767917,0]
[27]
[28," OTHER"]
[29,null,{"$f":"'FR-16(7)(v)-1 Functional'!C364","v":"RESERVED FOR FUTURE USE"},{"$f":"'FR-16(7)(v)-1 Functional'!D364","v":"NP29"},null,{"$f":"'FR-16(7)(v)-14 TOTAL CLASS'!L364","v":0},{"$f":"'FR-16(7)(v)-3 PROD Demand'!L364+'FR-16(7)(v)-7 TRANS Demand'!L364+'FR-16(7)(v)-11 DIST Demand'!L364","v":0},{"$f":"'FR-16(7)(v)-4 PROD Energy'!L364+'FR-16(7)(v)-8 TRANS Energy'!L364+'FR-16(7)(v)-12 DIST Energy'!L364","v":0},{"$f":"'FR-16(7)(v)-5 PROD Cust'!L364+'FR-16(7)(v)-9 TRANS Cust'!L364+'FR-16(7)(v)-13 DIST Cust'!L364","v":0},{"$f":"SUM(G364:I364)","v":0},{"$f":"F364-J364","v":0}]
[30,null,{"$f":"'FR-16(7)(v)-1 Functional'!C365","v":"RATE CASE EXPENSE REGULATORY ASSET"},{"$f":"'FR-16(7)(v)-1 Functional'!D365","v":"NP29"},null,{"$f":"'FR-16(7)(v)-14 TOTAL CLASS'!L365","v":118231},{"$f":"'FR-16(7)(v)-3 PROD Demand'!L365+'FR-16(7)(v)-7 TRANS Demand'!L365+'FR-16(7)(v)-11 DIST Demand'!L365","v":115831},{"$f":"'FR-16(7)(v)-4 PROD Energy'!L365+'FR-16(7)(v)-8 TRANS Energy'!L365+'FR-16(7)(v)-12 DIST Energy'!L365","v":2124},{"$f":"'FR-16(7)(v)-5 PROD Cust'!L365+'FR-16(7)(v)-9 TRANS Cust'!L365+'FR-16(7)(v)-13 DIST Cust'!L365","v":276},{"$f":"SUM(G365:I365)","v":118231},{"$f":"F365-J365","v":0}]
[31,null,{"$f":"'FR-16(7)(v)-1 Functional'!C366","v":"RESERVED FOR FUTURE USE"},{"$f":"'FR-16(7)(v)-1 Functional'!D366","v":"NP29"},null,{"$f":"'FR-16(7)(v)-14 TOTAL CLASS'!L366","v":0},{"$f":"'FR-16(7)(v)-3 PROD Demand'!L366+'FR-16(7)(v)-7 TRANS Demand'!L366+'FR-16(7)(v)-11 DIST Demand'!L366","v":0},{"$f":"'FR-16(7)(v)-4 PROD Energy'!L366+'FR-16(7)(v)-8 TRANS Energy'!L366+'FR-16(7)(v)-12 DIST Energy'!L366","v":0},{"$f":"'FR-16(7)(v)-5 PROD Cust'!L366+'FR-16(7)(v)-9 TRANS Cust'!L366+'FR-16(7)(v)-13 DIST Cust'!L366","v":0},{"$f":"SUM(G366:I366)","v":0},{"$f":"F366-J366","v":0}]
[32,null,{"$f":"'FR-16(7)(v)-1 Functional'!C367","v":"  OTHER"},null,null,{"$f":"SUM(F364:F366)","v":118231},{"$f":"SUM(G363:G366)","v":115831},{"$f":"SUM(H363:H366)","v":2124},{"$f":"SUM(I363:I366)","v":276},{"$f":"SUM(J363:J366)","v":118231},{"$f":"SUM(K363:K366)","v":0}]
[33,null,null,null,null," "]
[34,"CONSTRUCTION WORK IN PROGRESS"]
[35,null,{"$f":"'FR-16(7)(v)-1 Functional'!C370","v":"PRODUCTION"},{"$f":"'FR-16(7)(v)-1 Functional'!D370","v":"P129"},null,{"$f":"'FR-16(7)(v)-14 TOTAL CLASS'!L370","v":0},{"$f":"'FR-16(7)(v)-3 PROD Demand'!L370+'FR-16(7)(v)-7 TRANS Demand'!L370+'FR-16(7)(v)-11 DIST Demand'!L370","v":0},{"$f":"'FR-16(7)(v)-4 PROD Energy'!L370+'FR-16(7)(v)-8 TRANS Energy'!L370+'FR-16(7)(v)-12 DIST Energy'!L370","v":0},{"$f":"'FR-16(7)(v)-5 PROD Cust'!L370+'FR-16(7)(v)-9 TRANS Cust'!L370+'FR-16(7)(v)-13 DIST Cust'!L370","v":0},{"$f":"SUM(G370:I370)","v":0},{"$f":"F370-J370","v":0}]
[36,null,{"$f":"'FR-16(7)(v)-1 Functional'!C371","v":"TRANSMISSION"},{"$f":"'FR-16(7)(v)-1 Functional'!D371","v":"T129"},null,{"$f":"'FR-16(7)(v)-14 TOTAL CLASS'!L371","v":0},{"$f":"'FR-16(7)(v)-3 PROD Demand'!L371+'FR-16(7)(v)-7 TRANS Demand'!L371+'FR-16(7)(v)-11 DIST Demand'!L371","v":0},{"$f":"'FR-16(7)(v)-4 PROD Energy'!L371+'FR-16(7)(v)-8 TRANS Energy'!L371+'FR-16(7)(v)-12 DIST Energy'!L371","v":0},{"$f":"'FR-16(7)(v)-5 PROD Cust'!L371+'FR-16(7)(v)-9 TRANS Cust'!L371+'FR-16(7)(v)-13 DIST Cust'!L371","v":0},{"$f":"SUM(G371:I371)","v":0},{"$f":"F371-J371","v":0}]
[37,null,{"$f":"'FR-16(7)(v)-1 Functional'!C372","v":"DISTRIBUTION"},{"$f":"'FR-16(7)(v)-1 Functional'!D372","v":"D149"},null,{"$f":"'FR-16(7)(v)-14 TOTAL CLASS'!L372","v":0},{"$f":"'FR-16(7)(v)-3 PROD Demand'!L372+'FR-16(7)(v)-7 TRANS Demand'!L372+'FR-16(7)(v)-11 DIST Demand'!L372","v":0},{"$f":"'FR-16(7)(v)-4 PROD Energy'!L372+'FR-16(7)(v)-8 TRANS Energy'!L372+'FR-16(7)(v)-12 DIST Energy'!L372","v":0},{"$f":"'FR-16(7)(v)-5 PROD Cust'!L372+'FR-16(7)(v)-9 TRANS Cust'!L372+'FR-16(7)(v)-13 DIST Cust'!L372","v":0},{"$f":"SUM(G372:I372)","v":0},{"$f":"F372-J372","v":0}]
[38,null,{"$f":"'FR-16(7)(v)-1 Functional'!C373","v":"COMMON"},{"$f":"'FR-16(7)(v)-1 Functional'!D373","v":"C129"},null,{"$f":"'FR-16(7)(v)-14 TOTAL CLASS'!L373","v":0},{"$f":"'FR-16(7)(v)-3 PROD Demand'!L373+'FR-16(7)(v)-7 TRANS Demand'!L373+'FR-16(7)(v)-11 DIST Demand'!L373","v":0},{"$f":"'FR-16(7)(v)-4 PROD Energy'!L373+'FR-16(7)(v)-8 TRANS Energy'!L373+'FR-16(7)(v)-12 DIST Energy'!L373","v":0},{"$f":"'FR-16(7)(v)-5 PROD Cust'!L373+'FR-16(7)(v)-9 TRANS Cust'!L373+'FR-16(7)(v)-13 DIST Cust'!L373","v":0},{"$f":"SUM(G373:I373)","v":0},{"$f":"F373-J373","v":0}]
[39,null,{"$f":"'FR-16(7)(v)-1 Functional'!C374","v":"GENERAL"},{"$f":"'FR-16(7)(v)-1 Functional'!D374","v":"G129"},null,{"$f":"'FR-16(7)(v)-14 TOTAL CLASS'!L374","v":0},{"$f":"'FR-16(7)(v)-3 PROD Demand'!L374+'FR-16(7)(v)-7 TRANS Demand'!L374+'FR-16(7)(v)-11 DIST Demand'!L374","v":0},{"$f":"'FR-16(7)(v)-4 PROD Energy'!L374+'FR-16(7)(v)-8 TRANS Energy'!L374+'FR-16(7)(v)-12 DIST Energy'!L374","v":0},{"$f":"'FR-16(7)(v)-5 PROD Cust'!L374+'FR-16(7)(v)-9 TRANS Cust'!L374+'FR-16(7)(v)-13 DIST Cust'!L374","v":0},{"$f":"SUM(G374:I374)","v":0},{"$f":"F374-J374","v":0}]
[40,null,{"$f":"'FR-16(7)(v)-1 Functional'!C375","v":"TOTAL CONSTRUCTION WORK IN PROGRESS"},null,null,{"$f":"SUM(F370:F374)","v":0},0,0,0,0,0]
[41]
[42,{"$f":"'FR-16(7)(v)-1 Functional'!B377","v":"TOTAL ADDITIVE RATE BASE ADJUSTMENTS"},null,null,null,{"$f":"F361+F367+F375","v":1886148},903883,965731,16534,1886148,0]
[]
[{"$f":"co_name","v":"DUKE ENERGY KENTUCKY, INC."},null,null,null,null,null,null,null,null,{"$f":"J1","v":"FR-16(7)(v)-20"}]
[{"$f":"$A$2","v":"DT SECONDARY CLASSIFIED - ELECTRIC COST OF SERVICE"},null,null,null,null,null,null,null,null,{"$f":"J2","v":"WITNESS RESPONSIBLE:"}]
[{"$f":"case_name","v":"CASE NO: 2019-00271"},null,null,null,null,null,null,null,null,{"$f":"Witness","v":"JAMES E. ZIOLKOWSKI"}]
[{"$f":"data_filing","v":"DATA: 12 MONTHS ACTUAL  & 0 MONTHS ESTIMATED"},null,null,null,null,null,null,null,null,{"$f":"\"PAGE \"&Pages2-8&\" OF \"&Pages2","v":"PAGE 7 OF 15"}]
[{"$f":"type","v":"TYPE OF FILING: \"X\" ORIGINAL   UPDATED    REVISED  "}]
[]
[]
["LINE",null,null,null,null,"TOTAL","CLASSIFIED",null,null,"TOTAL","ALL"]
["NO.","WORKING CAPITAL",null,"ALLO",null,{"$f":"$F$9","v":"DT SECONDARY"},{"$f":"G9","v":"DEMAND"},"ENERGY","CUSTOMER","AT ISSUE","OTHER"]
[null,null,"Schedule 5.2",null,null,null,3,4,5]
[]
[1,"NET ORIGINAL COST RATE BASE",null,null,null,{"$f":"F277-F324+F377","v":110429610},109003497,1148271,277842,110429610,0]
[2]
[3,"WORKING CAPITAL"]
[4]
[5,"PLANT MATERIALS & SUPPLIES"]
[6,null,{"$f":"'FR-16(7)(v)-1 Functional'!C395","v":"OTHER MATERIALS & SUPPLIES"},{"$f":"'FR-16(7)(v)-1 Functional'!D395","v":"PD29"},null,{"$f":"'FR-16(7)(v)-14 TOTAL CLASS'!L395","v":1929916},{"$f":"'FR-16(7)(v)-3 PROD Demand'!L395+'FR-16(7)(v)-7 TRANS Demand'!L395+'FR-16(7)(v)-11 DIST Demand'!L395","v":1031237},{"$f":"'FR-16(7)(v)-4 PROD Energy'!L395+'FR-16(7)(v)-8 TRANS Energy'!L395+'FR-16(7)(v)-12 DIST Energy'!L395","v":870595},{"$f":"'FR-16(7)(v)-5 PROD Cust'!L395+'FR-16(7)(v)-9 TRANS Cust'!L395+'FR-16(7)(v)-13 DIST Cust'!L395","v":28084},{"$f":"SUM(G395:I395)","v":1929916},{"$f":"F395-J395","v":0}]
[7,null,{"$f":"'FR-16(7)(v)-1 Functional'!C396","v":"FUEL"},{"$f":"'FR-16(7)(v)-1 Functional'!D396","v":"K301"},null,{"$f":"'FR-16(7)(v)-14 TOTAL CLASS'!L396","v":3220667},{"$f":"'FR-16(7)(v)-3 PROD Demand'!L396+'FR-16(7)(v)-7 TRANS Demand'!L396+'FR-16(7)(v)-11 DIST Demand'!L396","v":0},{"$f":"'FR-16(7)(v)-4 PROD Energy'!L396+'FR-16(7)(v)-8 TRANS Energy'!L396+'FR-16(7)(v)-12 DIST Energy'!L396","v":3220667},{"$f":"'FR-16(7)(v)-5 PROD Cust'!L396+'FR-16(7)(v)-9 TRANS Cust'!L396+'FR-16(7)(v)-13 DIST Cust'!L396","v":0},{"$f":"SUM(G396:I396)","v":3220667},{"$f":"F396-J396","v":0}]
[8,null,{"$f":"'FR-16(7)(v)-1 Functional'!C397","v":"EMISSION ALLOWANCES"},{"$f":"'FR-16(7)(v)-1 Functional'!D397","v":"K301"},null,{"$f":"'FR-16(7)(v)-14 TOTAL CLASS'!L397","v":0},{"$f":"'FR-16(7)(v)-3 PROD Demand'!L397+'FR-16(7)(v)-7 TRANS Demand'!L397+'FR-16(7)(v)-11 DIST Demand'!L397","v":0},{"$f":"'FR-16(7)(v)-4 PROD Energy'!L397+'FR-16(7)(v)-8 TRANS Energy'!L397+'FR-16(7)(v)-12 DIST Energy'!L397","v":0},{"$f":"'FR-16(7)(v)-5 PROD Cust'!L397+'FR-16(7)(v)-9 TRANS Cust'!L397+'FR-16(7)(v)-13 DIST Cust'!L397","v":0},{"$f":"SUM(G397:I397)","v":0},{"$f":"F397-J397","v":0}]
[9,null,{"$f":"'FR-16(7)(v)-1 Functional'!C398","v":"  TOTAL PLANT MATS. & SUPPLIES"},null,null,{"$f":"SUM(F394:F397)","v":5150583},1031237,4091262,28084,5150583,0]
[10,"TOTAL MATERIALS & SUPPLIES",null,null,null,{"$f":"F398","v":5150583},1031237,4091262,28084,5150583,0]
[11]
[12,"PREPAYMENTS"]
[13,null,{"$f":"'FR-16(7)(v)-1 Functional'!C402","v":"INSURANCE GENERAL"},{"$f":"'FR-16(7)(v)-1 Functional'!D402","v":"NP29"},null,{"$f":"'FR-16(7)(v)-14 TOTAL CLASS'!L402","v":34911},{"$f":"'FR-16(7)(v)-3 PROD Demand'!L402+'FR-16(7)(v)-7 TRANS Demand'!L402+'FR-16(7)(v)-11 DIST Demand'!L402","v":34202},{"$f":"'FR-16(7)(v)-4 PROD Energy'!L402+'FR-16(7)(v)-8 TRANS Energy'!L402+'FR-16(7)(v)-12 DIST Energy'!L402","v":627},{"$f":"'FR-16(7)(v)-5 PROD Cust'!L402+'FR-16(7)(v)-9 TRANS Cust'!L402+'FR-16(7)(v)-13 DIST Cust'!L402","v":82},{"$f":"SUM(G402:I402)","v":34911},{"$f":"F402-J402","v":0}]
[14,null,{"$f":"'FR-16(7)(v)-1 Functional'!C403","v":"EXCISE TAX"},{"$f":"'FR-16(7)(v)-1 Functional'!D403","v":"NP29"},null,{"$f":"'FR-16(7)(v)-14 TOTAL CLASS'!L403","v":0},{"$f":"'FR-16(7)(v)-3 PROD Demand'!L403+'FR-16(7)(v)-7 TRANS Demand'!L403+'FR-16(7)(v)-11 DIST Demand'!L403","v":0},{"$f":"'FR-16(7)(v)-4 PROD Energy'!L403+'FR-16(7)(v)-8 TRANS Energy'!L403+'FR-16(7)(v)-12 DIST Energy'!L403","v":0},{"$f":"'FR-16(7)(v)-5 PROD Cust'!L403+'FR-16(7)(v)-9 TRANS Cust'!L403+'FR-16(7)(v)-13 DIST Cust'!L403","v":0},{"$f":"SUM(G403:I403)","v":0},{"$f":"F403-J403","v":0}]
[15,null,{"$f":"'FR-16(7)(v)-1 Functional'!C404","v":"COLLATERAL ASSET"},{"$f":"'FR-16(7)(v)-1 Functional'!D404","v":"K301"},null,{"$f":"'FR-16(7)(v)-14 TOTAL CLASS'!L404","v":-7275},{"$f":"'FR-16(7)(v)-3 PROD Demand'!L404+'FR-16(7)(v)-7 TRANS Demand'!L404+'FR-16(7)(v)-11 DIST Demand'!L404","v":0},{"$f":"'FR-16(7)(v)-4 PROD Energy'!L404+'FR-16(7)(v)-8 TRANS Energy'!L404+'FR-16(7)(v)-12 DIST Energy'!L404","v":-7275},{"$f":"'FR-16(7)(v)-5 PROD Cust'!L404+'FR-16(7)(v)-9 TRANS Cust'!L404+'FR-16(7)(v)-13 DIST Cust'!L404","v":0},{"$f":"SUM(G404:I404)","v":-7275},{"$f":"F404-J404","v":0}]
[16,null,{"$f":"'FR-16(7)(v)-1 Functional'!C405","v":"  TOTAL PREPAYMENTS"},null,null,{"$f":"SUM(F401:F404)","v":27636},34202,-6648,82,27636,0]
[17]
[18,"AUTO CALC (O&M-ELECTRIC FUEL COST)/8",null,null,null,{"$f":"'FR-16(7)(v)-14 TOTAL CLASS'!L407","v":2019707},{"$f":"'FR-16(7)(v)-3 PROD Demand'!L407+'FR-16(7)(v)-7 TRANS Demand'!L407+'FR-16(7)(v)-11 DIST Demand'!L407","v":2019707},{"$f":"'FR-16(7)(v)-4 PROD Energy'!L407+'FR-16(7)(v)-8 TRANS Energy'!L407+'FR-16(7)(v)-12 DIST Energy'!L407","v":0},{"$f":"'FR-16(7)(v)-5 PROD Cust'!L407+'FR-16(7)(v)-9 TRANS Cust'!L407+'FR-16(7)(v)-13 DIST Cust'!L407","v":0},{"$f":"SUM(G407:I407)","v":2019707},{"$f":"F407-J407","v":0}]
[19,"  TOTAL WORKING CASH",null,null,null,{"$f":"F407","v":2019707},2019707,0,0,2019707,0]
[20]
[21,"MISCELLANEOUS WORKING CAPITAL"]
[22,null,{"$f":"'FR-16(7)(v)-1 Functional'!C411","v":"RESERVED FOR FUTURE USE"},{"$f":"'FR-16(7)(v)-1 Functional'!D411","v":"K301"},null,{"$f":"'FR-16(7)(v)-14 TOTAL CLASS'!L411","v":0},{"$f":"'FR-16(7)(v)-3 PROD Demand'!L411+'FR-16(7)(v)-7 TRANS Demand'!L411+'FR-16(7)(v)-11 DIST Demand'!L411","v":0},{"$f":"'FR-16(7)(v)-4 PROD Energy'!L411+'FR-16(7)(v)-8 TRANS Energy'!L411+'FR-16(7)(v)-12 DIST Energy'!L411","v":0},{"$f":"'FR-16(7)(v)-5 PROD Cust'!L411+'FR-16(7)(v)-9 TRANS Cust'!L411+'FR-16(7)(v)-13 DIST Cust'!L411","v":0},{"$f":"SUM(G411:I411)","v":0},{"$f":"F411-J411","v":0}]
[23,null,{"$f":"'FR-16(7)(v)-1 Functional'!C412","v":"PIPP UNCOLLECTIBLES"},{"$f":"'FR-16(7)(v)-1 Functional'!D412","v":"A315"},null,{"$f":"'FR-16(7)(v)-14 TOTAL CLASS'!L412","v":0},{"$f":"'FR-16(7)(v)-3 PROD Demand'!L412+'FR-16(7)(v)-7 TRANS Demand'!L412+'FR-16(7)(v)-11 DIST Demand'!L412","v":0},{"$f":"'FR-16(7)(v)-4 PROD Energy'!L412+'FR-16(7)(v)-8 TRANS Energy'!L412+'FR-16(7)(v)-12 DIST Energy'!L412","v":0},{"$f":"'FR-16(7)(v)-5 PROD Cust'!L412+'FR-16(7)(v)-9 TRANS Cust'!L412+'FR-16(7)(v)-13 DIST Cust'!L412","v":0},{"$f":"SUM(G412:I412)","v":0},{"$f":"F412-J412","v":0}]
[24,null,{"$f":"'FR-16(7)(v)-1 Functional'!C413","v":"RESERVED FOR FUTURE USE"},{"$f":"'FR-16(7)(v)-1 Functional'!D413","v":"D249"},null,{"$f":"'FR-16(7)(v)-14 TOTAL CLASS'!L413","v":0},{"$f":"'FR-16(7)(v)-3 PROD Demand'!L413+'FR-16(7)(v)-7 TRANS Demand'!L413+'FR-16(7)(v)-11 DIST Demand'!L413","v":0},{"$f":"'FR-16(7)(v)-4 PROD Energy'!L413+'FR-16(7)(v)-8 TRANS Energy'!L413+'FR-16(7)(v)-12 DIST Energy'!L413","v":0},{"$f":"'FR-16(7)(v)-5 PROD Cust'!L413+'FR-16(7)(v)-9 TRANS Cust'!L413+'FR-16(7)(v)-13 DIST Cust'!L413","v":0},{"$f":"SUM(G413:I413)","v":0},{"$f":"F413-J413","v":0}]
[25,null,{"$f":"'FR-16(7)(v)-1 Functional'!C414","v":"  TOTAL MISC WORK CAPITAL"},null,null,{"$f":"SUM(F410:F413)","v":0},0,0,0,0,0]
[26]
[27,"TOTAL WORKING CAPITAL",null,null,null,{"$f":"F399+F405+F408+F414","v":7197926},3085146,4084614,28166,7197926,0]
[28,"PRELIMINARY SUMMARY"]
[29,null,{"$f":"'FR-16(7)(v)-1 Functional'!C418","v":"TOTAL ACCUMULATED DEFERRED INCOME TAXES"},null,null,{"$f":"-F324","v":-35102837},-32624905,-2401113,-76819,-35102837,0]
[30,null,{"$f":"'FR-16(7)(v)-1 Functional'!C419","v":"TOTAL OTHER ACCUMULATED DEFERRED INCOME TAXES"},null,null,{"$f":"F377","v":1886148},903883,965731,16534,1886148,0]
[31,null,{"$f":"'FR-16(7)(v)-1 Functional'!C420","v":"TOTAL WORKING CAPITAL"},null,null,{"$f":"F416","v":7197926},3085146,4084614,28166,7197926,0]
[32,null,{"$f":"'FR-16(7)(v)-1 Functional'!C421","v":"  TOTAL RATE BASE ADJUSTMENTS"},null,null,{"$f":"SUM(F417:F420)","v":-26018763},-28635876,2649232,-32119,-26018763,0]
[33]
[34,"RATE BASE CALCULATION"]
[35,null,{"$f":"'FR-16(7)(v)-1 Functional'!C424","v":"NET ELECTRIC PLANT IN SERVICE"},null,null,{"$f":"F277","v":143646299},140724519,2583653,338127,143646299,0]
[36,null,{"$f":"'FR-16(7)(v)-1 Functional'!C425","v":"TOTAL RATE BASE ADJUSTMENTS"},null,null,{"$f":"F421","v":-26018763},-28635876,2649232,-32119,-26018763,0]
[37,null,{"$f":"'FR-16(7)(v)-1 Functional'!C426","v":"  TOTAL RATE BASE"},null,null,{"$f":"SUM(F423:F425)","v":117627536},112088643,5232885,306008,117627536,0]
[38]
[39,"TOTAL RATE OF RETURN ALLOWABLE",null,null,null,{"$f":"$F$811","v":6.7100000000000007E-2},{"$f":"F811","v":6.7100000000000007E-2},{"$f":"F811","v":6.7100000000000007E-2},{"$f":"F811","v":6.7100000000000007E-2},{"$f":"F811","v":6.7100000000000007E-2}]
[40,"RETURN ON RATE BASE",null,null,null,{"$f":"ROUND(F428*F426,0)","v":7892808},{"$f":"F429-SUM(H429:I429)","v":7521148},{"$f":"ROUND(H426*H428,0)","v":351127},{"$f":"ROUND(I426*I428,0)","v":20533},{"$f":"SUM(G429:I429)","v":7892808},{"$f":"ROUND(K426*K428,0)","v":0}]
[41]
[42,{"$f":"'FR-16(7)(v)-1 Functional'!B431","v":"ELECTRIC RATE BASE"},null,{"$f":"'FR-16(7)(v)-1 Functional'!D431","v":"RB99"},null,{"$f":"'FR-16(7)(v)-14 TOTAL CLASS'!L431","v":117789743},{"$f":"'FR-16(7)(v)-3 PROD Demand'!L431+'FR-16(7)(v)-7 TRANS Demand'!L431+'FR-16(7)(v)-11 DIST Demand'!L431","v":112252736},{"$f":"'FR-16(7)(v)-4 PROD Energy'!L431+'FR-16(7)(v)-8 TRANS Energy'!L431+'FR-16(7)(v)-12 DIST Energy'!L431","v":5233051},{"$f":"'FR-16(7)(v)-5 PROD Cust'!L431+'FR-16(7)(v)-9 TRANS Cust'!L431+'FR-16(7)(v)-13 DIST Cust'!L431","v":303956},{"$f":"SUM(G431:I431)","v":117789743},{"$f":"F431-J431","v":0}]
[43,{"$f":"'FR-16(7)(v)-1 Functional'!B432","v":"TOTAL RATE OF RETURN ALLOWABLE"},null,null,null,{"$f":"RofR","v":6.7110000000000003E-2},{"$f":"RofR","v":6.7110000000000003E-2},{"$f":"RofR","v":6.7110000000000003E-2},{"$f":"RofR","v":6.7110000000000003E-2},{"$f":"RofR","v":6.7110000000000003E-2}]
[44,{"$f":"'FR-16(7)(v)-1 Functional'!B433","v":"RETURN ON RATE BASE"},null,null,null,{"$f":"ROUND(F431*F432,0)","v":7904870},{"$f":"F433-H433-I433","v":7533282},{"$f":"ROUND(H431*H432,0)","v":351190},{"$f":"ROUND(I431*I432,0)","v":20398},{"$f":"ROUND(J431*J432,0)","v":7904870},{"$f":"F433-J433","v":0}]
[]
[{"$f":"co_name","v":"DUKE ENERGY KENTUCKY, INC."},null,null,null,null,null,null,null,null,{"$f":"J1","v":"FR-16(7)(v)-20"}]
[{"$f":"$A$2","v":"DT SECONDARY CLASSIFIED - ELECTRIC COST OF SERVICE"},null,null,null,null,null,null,null,null,{"$f":"J2","v":"WITNESS RESPONSIBLE:"}]
[{"$f":"case_name","v":"CASE NO: 2019-00271"},null,null,null,null,null,null,null,null,{"$f":"Witness","v":"JAMES E. ZIOLKOWSKI"}]
[{"$f":"data_filing","v":"DATA: 12 MONTHS ACTUAL  & 0 MONTHS ESTIMATED"},null,null,null,null,null,null,null,null,{"$f":"\"PAGE \"&Pages2-7&\" OF \"&Pages2","v":"PAGE 8 OF 15"}]
[{"$f":"type","v":"TYPE OF FILING: \"X\" ORIGINAL   UPDATED    REVISED  "}]
[]
[]
["LINE",null,null,null,null,"TOTAL","CLASSIFIED",null,null,"TOTAL","ALL"]
["NO.","O&M EXPENSES",null,"ALLO",null,{"$f":"$F$9","v":"DT SECONDARY"},{"$f":"G9","v":"DEMAND"},"ENERGY","CUSTOMER","AT ISSUE","OTHER"]
[null,null,"Schedule 6",null,null,null,3,4,5]
[1,"PRODUCTION O&M"]
[2,{"$f":"'FR-16(7)(v)-1 Functional'!B446","v":"ENERGY RELATED PRODUCTION O&M"}]
[3,null,{"$f":"'FR-16(7)(v)-1 Functional'!C447","v":"FUEL"},{"$f":"'FR-16(7)(v)-1 Functional'!D447","v":"K302"},null,{"$f":"'FR-16(7)(v)-14 TOTAL CLASS'!L447","v":0},{"$f":"'FR-16(7)(v)-3 PROD Demand'!L447+'FR-16(7)(v)-7 TRANS Demand'!L447+'FR-16(7)(v)-11 DIST Demand'!L447","v":0},{"$f":"'FR-16(7)(v)-4 PROD Energy'!L447+'FR-16(7)(v)-8 TRANS Energy'!L447+'FR-16(7)(v)-12 DIST Energy'!L447","v":0},{"$f":"'FR-16(7)(v)-5 PROD Cust'!L447+'FR-16(7)(v)-9 TRANS Cust'!L447+'FR-16(7)(v)-13 DIST Cust'!L447","v":0},{"$f":"SUM(G447:I447)","v":0},{"$f":"F447-J447","v":0}]
[4,null,{"$f":"'FR-16(7)(v)-1 Functional'!C448","v":"FUEL AND PURCHASED POWER ADJUSTMENT"},{"$f":"'FR-16(7)(v)-1 Functional'!D448","v":"K302"},null,{"$f":"'FR-16(7)(v)-14 TOTAL CLASS'!L448","v":16576701},{"$f":"'FR-16(7)(v)-3 PROD Demand'!L448+'FR-16(7)(v)-7 TRANS Demand'!L448+'FR-16(7)(v)-11 DIST Demand'!L448","v":0},{"$f":"'FR-16(7)(v)-4 PROD Energy'!L448+'FR-16(7)(v)-8 TRANS Energy'!L448+'FR-16(7)(v)-12 DIST Energy'!L448","v":16576701},{"$f":"'FR-16(7)(v)-5 PROD Cust'!L448+'FR-16(7)(v)-9 TRANS Cust'!L448+'FR-16(7)(v)-13 DIST Cust'!L448","v":0},16576701,0]
[5,null,{"$f":"'FR-16(7)(v)-1 Functional'!C449","v":"EMISSION ALLOWANCES"},{"$f":"'FR-16(7)(v)-1 Functional'!D449","v":"K301"},null,{"$f":"'FR-16(7)(v)-14 TOTAL CLASS'!L449","v":0},{"$f":"'FR-16(7)(v)-3 PROD Demand'!L449+'FR-16(7)(v)-7 TRANS Demand'!L449+'FR-16(7)(v)-11 DIST Demand'!L449","v":0},{"$f":"'FR-16(7)(v)-4 PROD Energy'!L449+'FR-16(7)(v)-8 TRANS Energy'!L449+'FR-16(7)(v)-12 DIST Energy'!L449","v":0},{"$f":"'FR-16(7)(v)-5 PROD Cust'!L449+'FR-16(7)(v)-9 TRANS Cust'!L449+'FR-16(7)(v)-13 DIST Cust'!L449","v":0},0,0]
[6,null,{"$f":"'FR-16(7)(v)-1 Functional'!C450","v":"ELIMINATE EMISSION ALLOW & OTHER VAR COST"},{"$f":"'FR-16(7)(v)-1 Functional'!D450","v":"K301"},null,{"$f":"'FR-16(7)(v)-14 TOTAL CLASS'!L450","v":0},{"$f":"'FR-16(7)(v)-3 PROD Demand'!L450+'FR-16(7)(v)-7 TRANS Demand'!L450+'FR-16(7)(v)-11 DIST Demand'!L450","v":0},{"$f":"'FR-16(7)(v)-4 PROD Energy'!L450+'FR-16(7)(v)-8 TRANS Energy'!L450+'FR-16(7)(v)-12 DIST Energy'!L450","v":0},{"$f":"'FR-16(7)(v)-5 PROD Cust'!L450+'FR-16(7)(v)-9 TRANS Cust'!L450+'FR-16(7)(v)-13 DIST Cust'!L450","v":0},0,0]
[7,null,{"$f":"'FR-16(7)(v)-1 Functional'!C451","v":"OTHER PRODUCTION EXPENSE - MAINTENANCE"},{"$f":"'FR-16(7)(v)-1 Functional'!D451","v":"K301"},null,{"$f":"'FR-16(7)(v)-14 TOTAL CLASS'!L451","v":6713210},{"$f":"'FR-16(7)(v)-3 PROD Demand'!L451+'FR-16(7)(v)-7 TRANS Demand'!L451+'FR-16(7)(v)-11 DIST Demand'!L451","v":0},{"$f":"'FR-16(7)(v)-4 PROD Energy'!L451+'FR-16(7)(v)-8 TRANS Energy'!L451+'FR-16(7)(v)-12 DIST Energy'!L451","v":6713210},{"$f":"'FR-16(7)(v)-5 PROD Cust'!L451+'FR-16(7)(v)-9 TRANS Cust'!L451+'FR-16(7)(v)-13 DIST Cust'!L451","v":0},6713210,0]
[8,null,{"$f":"'FR-16(7)(v)-1 Functional'!C452","v":"MISO TRANSMISSION CHARGES - ACCT 555"},{"$f":"'FR-16(7)(v)-1 Functional'!D452","v":"K301"},null,{"$f":"'FR-16(7)(v)-14 TOTAL CLASS'!L452","v":0},{"$f":"'FR-16(7)(v)-3 PROD Demand'!L452+'FR-16(7)(v)-7 TRANS Demand'!L452+'FR-16(7)(v)-11 DIST Demand'!L452","v":0},{"$f":"'FR-16(7)(v)-4 PROD Energy'!L452+'FR-16(7)(v)-8 TRANS Energy'!L452+'FR-16(7)(v)-12 DIST Energy'!L452","v":0},{"$f":"'FR-16(7)(v)-5 PROD Cust'!L452+'FR-16(7)(v)-9 TRANS Cust'!L452+'FR-16(7)(v)-13 DIST Cust'!L452","v":0},0,0]
[9,null,{"$f":"'FR-16(7)(v)-1 Functional'!C453","v":"  TOTAL ENERGY RELATED"},null,null,{"$f":"SUM(F447:F452)","v":23289911},0,23289911,0,23289911,0]
[10]
[11,"DEMAND RELATED & OTHER PROD O&M"]
[12,null,{"$f":"'FR-16(7)(v)-1 Functional'!C456","v":"OTHER PRODUCTION EXPENSES - OPERATIONS"},{"$f":"'FR-16(7)(v)-1 Functional'!D456","v":"K201"},null,{"$f":"'FR-16(7)(v)-14 TOTAL CLASS'!L456","v":0},{"$f":"'FR-16(7)(v)-3 PROD Demand'!L456+'FR-16(7)(v)-7 TRANS Demand'!L456+'FR-16(7)(v)-11 DIST Demand'!L456","v":0},{"$f":"'FR-16(7)(v)-4 PROD Energy'!L456+'FR-16(7)(v)-8 TRANS Energy'!L456+'FR-16(7)(v)-12 DIST Energy'!L456","v":0},{"$f":"'FR-16(7)(v)-5 PROD Cust'!L456+'FR-16(7)(v)-9 TRANS Cust'!L456+'FR-16(7)(v)-13 DIST Cust'!L456","v":0},{"$f":"SUM(G456:I456)","v":0},{"$f":"F456-J456","v":0}]
[13,null,{"$f":"'FR-16(7)(v)-1 Functional'!C457","v":"  TOTAL DEMAND REL & OTH PROD O&M "},null,null,{"$f":"SUM(F455:F456)","v":0},0,0,0,0,0]
[14]
[15,"TOTAL PRODUCTION O&M",null,null," ",{"$f":"F457+F453","v":23289911},0,23289911,0,23289911,0]
[16]
[17,"TRANSMISSION O & M"]
[18,null,{"$f":"'FR-16(7)(v)-1 Functional'!C462","v":"TRANSFORMER LEASE PAYMENTS"},{"$f":"'FR-16(7)(v)-1 Functional'!D462","v":"K202"},null,{"$f":"'FR-16(7)(v)-14 TOTAL CLASS'!L462","v":0},{"$f":"'FR-16(7)(v)-3 PROD Demand'!L462+'FR-16(7)(v)-7 TRANS Demand'!L462+'FR-16(7)(v)-11 DIST Demand'!L462","v":0},{"$f":"'FR-16(7)(v)-4 PROD Energy'!L462+'FR-16(7)(v)-8 TRANS Energy'!L462+'FR-16(7)(v)-12 DIST Energy'!L462","v":0},{"$f":"'FR-16(7)(v)-5 PROD Cust'!L462+'FR-16(7)(v)-9 TRANS Cust'!L462+'FR-16(7)(v)-13 DIST Cust'!L462","v":0},{"$f":"SUM(G462:I462)","v":0},{"$f":"F462-J462","v":0}]
[19,null,{"$f":"'FR-16(7)(v)-1 Functional'!C463","v":"OTHER TRANSMISSION"},{"$f":"'FR-16(7)(v)-1 Functional'!D463","v":"K202"},null,{"$f":"'FR-16(7)(v)-14 TOTAL CLASS'!L463","v":3124121},{"$f":"'FR-16(7)(v)-3 PROD Demand'!L463+'FR-16(7)(v)-7 TRANS Demand'!L463+'FR-16(7)(v)-11 DIST Demand'!L463","v":3124121},{"$f":"'FR-16(7)(v)-4 PROD Energy'!L463+'FR-16(7)(v)-8 TRANS Energy'!L463+'FR-16(7)(v)-12 DIST Energy'!L463","v":0},{"$f":"'FR-16(7)(v)-5 PROD Cust'!L463+'FR-16(7)(v)-9 TRANS Cust'!L463+'FR-16(7)(v)-13 DIST Cust'!L463","v":0},{"$f":"SUM(G463:I463)","v":3124121},{"$f":"F463-J463","v":0}]
[20,null,{"$f":"'FR-16(7)(v)-1 Functional'!C464","v":"MISCELLANEOUS ADJUSTMENTS"},{"$f":"'FR-16(7)(v)-1 Functional'!D464","v":"K202"},null,{"$f":"'FR-16(7)(v)-14 TOTAL CLASS'!L464","v":0},{"$f":"'FR-16(7)(v)-3 PROD Demand'!L464+'FR-16(7)(v)-7 TRANS Demand'!L464+'FR-16(7)(v)-11 DIST Demand'!L464","v":0},{"$f":"'FR-16(7)(v)-4 PROD Energy'!L464+'FR-16(7)(v)-8 TRANS Energy'!L464+'FR-16(7)(v)-12 DIST Energy'!L464","v":0},{"$f":"'FR-16(7)(v)-5 PROD Cust'!L464+'FR-16(7)(v)-9 TRANS Cust'!L464+'FR-16(7)(v)-13 DIST Cust'!L464","v":0},{"$f":"SUM(G464:I464)","v":0},{"$f":"F464-J464","v":0}]
[21,null,{"$f":"'FR-16(7)(v)-1 Functional'!C465","v":"NETWORK SERVICE RATES ADJUSTMENT"},{"$f":"'FR-16(7)(v)-1 Functional'!D465","v":"K202"},null,{"$f":"'FR-16(7)(v)-14 TOTAL CLASS'!L465","v":0},{"$f":"'FR-16(7)(v)-3 PROD Demand'!L465+'FR-16(7)(v)-7 TRANS Demand'!L465+'FR-16(7)(v)-11 DIST Demand'!L465","v":0},{"$f":"'FR-16(7)(v)-4 PROD Energy'!L465+'FR-16(7)(v)-8 TRANS Energy'!L465+'FR-16(7)(v)-12 DIST Energy'!L465","v":0},{"$f":"'FR-16(7)(v)-5 PROD Cust'!L465+'FR-16(7)(v)-9 TRANS Cust'!L465+'FR-16(7)(v)-13 DIST Cust'!L465","v":0},{"$f":"SUM(G465:I465)","v":0},{"$f":"F465-J465","v":0}]
[22,null,{"$f":"'FR-16(7)(v)-1 Functional'!C466","v":"  TOTAL TRANSMISSION O & M"},null,null,{"$f":"SUM(F462:F465)","v":3124121},3124121,0,0,3124121,0]
[23]
[24,"REGIONAL MARKET O&M"]
[25,null,{"$f":"'FR-16(7)(v)-1 Functional'!C469","v":"MARKET FACILITATION - MONITORING & COMPLIANCE"},{"$f":"'FR-16(7)(v)-1 Functional'!D469","v":"K202"},null,{"$f":"'FR-16(7)(v)-14 TOTAL CLASS'!L469","v":246515},{"$f":"'FR-16(7)(v)-3 PROD Demand'!L469+'FR-16(7)(v)-7 TRANS Demand'!L469+'FR-16(7)(v)-11 DIST Demand'!L469","v":246515},{"$f":"'FR-16(7)(v)-4 PROD Energy'!L469+'FR-16(7)(v)-8 TRANS Energy'!L469+'FR-16(7)(v)-12 DIST Energy'!L469","v":0},{"$f":"'FR-16(7)(v)-5 PROD Cust'!L469+'FR-16(7)(v)-9 TRANS Cust'!L469+'FR-16(7)(v)-13 DIST Cust'!L469","v":0},{"$f":"SUM(G469:I469)","v":246515},{"$f":"F469-J469","v":0}]
[26,null,{"$f":"'FR-16(7)(v)-1 Functional'!C470","v":"TOTAL REGIONAL MARKET O&M"},null,null,{"$f":"SUM(F468:F469)","v":246515},246515,0,0,246515,0]
[27]
[28,"DISTRIBUTION O & M"]
[29,null,{"$f":"'FR-16(7)(v)-1 Functional'!C473","v":"SUBSTATIONS"},{"$f":"'FR-16(7)(v)-1 Functional'!D473","v":"K201"},null,{"$f":"'FR-16(7)(v)-14 TOTAL CLASS'!L473","v":83814},{"$f":"'FR-16(7)(v)-3 PROD Demand'!L473+'FR-16(7)(v)-7 TRANS Demand'!L473+'FR-16(7)(v)-11 DIST Demand'!L473","v":83814},{"$f":"'FR-16(7)(v)-4 PROD Energy'!L473+'FR-16(7)(v)-8 TRANS Energy'!L473+'FR-16(7)(v)-12 DIST Energy'!L473","v":0},{"$f":"'FR-16(7)(v)-5 PROD Cust'!L473+'FR-16(7)(v)-9 TRANS Cust'!L473+'FR-16(7)(v)-13 DIST Cust'!L473","v":0},{"$f":"SUM(G473:I473)","v":83814},{"$f":"F473-J473","v":0}]
[30,null,{"$f":"'FR-16(7)(v)-1 Functional'!C474","v":"POLES, TOWERS & FIXTURES"},{"$f":"'FR-16(7)(v)-1 Functional'!D474","v":"PL49"},null,{"$f":"'FR-16(7)(v)-14 TOTAL CLASS'!L474","v":0},{"$f":"'FR-16(7)(v)-3 PROD Demand'!L474+'FR-16(7)(v)-7 TRANS Demand'!L474+'FR-16(7)(v)-11 DIST Demand'!L474","v":0},{"$f":"'FR-16(7)(v)-4 PROD Energy'!L474+'FR-16(7)(v)-8 TRANS Energy'!L474+'FR-16(7)(v)-12 DIST Energy'!L474","v":0},{"$f":"'FR-16(7)(v)-5 PROD Cust'!L474+'FR-16(7)(v)-9 TRANS Cust'!L474+'FR-16(7)(v)-13 DIST Cust'!L474","v":0},0,0]
[31,null,{"$f":"'FR-16(7)(v)-1 Functional'!C475","v":"OVERHEAD LINES - PRIMARY / DEMAND"},{"$f":"'FR-16(7)(v)-1 Functional'!D475","v":"K205"},null,{"$f":"'FR-16(7)(v)-14 TOTAL CLASS'!L475","v":732162},{"$f":"'FR-16(7)(v)-3 PROD Demand'!L475+'FR-16(7)(v)-7 TRANS Demand'!L475+'FR-16(7)(v)-11 DIST Demand'!L475","v":732162},{"$f":"'FR-16(7)(v)-4 PROD Energy'!L475+'FR-16(7)(v)-8 TRANS Energy'!L475+'FR-16(7)(v)-12 DIST Energy'!L475","v":0},{"$f":"'FR-16(7)(v)-5 PROD Cust'!L475+'FR-16(7)(v)-9 TRANS Cust'!L475+'FR-16(7)(v)-13 DIST Cust'!L475","v":0},732162,0]
[32,null,{"$f":"'FR-16(7)(v)-1 Functional'!C476","v":"OVERHEAD LINES - PRIMARY / CUSTOMER"},{"$f":"'FR-16(7)(v)-1 Functional'!D476","v":"K405"},null,{"$f":"'FR-16(7)(v)-14 TOTAL CLASS'!L476","v":1265},{"$f":"'FR-16(7)(v)-3 PROD Demand'!L476+'FR-16(7)(v)-7 TRANS Demand'!L476+'FR-16(7)(v)-11 DIST Demand'!L476","v":0},{"$f":"'FR-16(7)(v)-4 PROD Energy'!L476+'FR-16(7)(v)-8 TRANS Energy'!L476+'FR-16(7)(v)-12 DIST Energy'!L476","v":0},{"$f":"'FR-16(7)(v)-5 PROD Cust'!L476+'FR-16(7)(v)-9 TRANS Cust'!L476+'FR-16(7)(v)-13 DIST Cust'!L476","v":1265},{"$f":"SUM(G476:I476)","v":1265},{"$f":"F476-J476","v":0}]
[33,null,{"$f":"'FR-16(7)(v)-1 Functional'!C477","v":"OVERHEAD LINES - SECONDARY / DEMAND"},{"$f":"'FR-16(7)(v)-1 Functional'!D477","v":"K206"},null,{"$f":"'FR-16(7)(v)-14 TOTAL CLASS'!L477","v":298128},{"$f":"'FR-16(7)(v)-3 PROD Demand'!L477+'FR-16(7)(v)-7 TRANS Demand'!L477+'FR-16(7)(v)-11 DIST Demand'!L477","v":298128},{"$f":"'FR-16(7)(v)-4 PROD Energy'!L477+'FR-16(7)(v)-8 TRANS Energy'!L477+'FR-16(7)(v)-12 DIST Energy'!L477","v":0},{"$f":"'FR-16(7)(v)-5 PROD Cust'!L477+'FR-16(7)(v)-9 TRANS Cust'!L477+'FR-16(7)(v)-13 DIST Cust'!L477","v":0},298128,0]
[34,null,{"$f":"'FR-16(7)(v)-1 Functional'!C478","v":"OVERHEAD LINES - SECONDARY / CUSTOMER"},{"$f":"'FR-16(7)(v)-1 Functional'!D478","v":"K405"},null,{"$f":"'FR-16(7)(v)-14 TOTAL CLASS'!L478","v":524},{"$f":"'FR-16(7)(v)-3 PROD Demand'!L478+'FR-16(7)(v)-7 TRANS Demand'!L478+'FR-16(7)(v)-11 DIST Demand'!L478","v":0},{"$f":"'FR-16(7)(v)-4 PROD Energy'!L478+'FR-16(7)(v)-8 TRANS Energy'!L478+'FR-16(7)(v)-12 DIST Energy'!L478","v":0},{"$f":"'FR-16(7)(v)-5 PROD Cust'!L478+'FR-16(7)(v)-9 TRANS Cust'!L478+'FR-16(7)(v)-13 DIST Cust'!L478","v":524},524,0]
[35,null,{"$f":"'FR-16(7)(v)-1 Functional'!C479","v":"UNDERGROUND LINES - PRIMARY / DEMAND"},{"$f":"'FR-16(7)(v)-1 Functional'!D479","v":"K205"},null,{"$f":"'FR-16(7)(v)-14 TOTAL CLASS'!L479","v":95431},{"$f":"'FR-16(7)(v)-3 PROD Demand'!L479+'FR-16(7)(v)-7 TRANS Demand'!L479+'FR-16(7)(v)-11 DIST Demand'!L479","v":95431},{"$f":"'FR-16(7)(v)-4 PROD Energy'!L479+'FR-16(7)(v)-8 TRANS Energy'!L479+'FR-16(7)(v)-12 DIST Energy'!L479","v":0},{"$f":"'FR-16(7)(v)-5 PROD Cust'!L479+'FR-16(7)(v)-9 TRANS Cust'!L479+'FR-16(7)(v)-13 DIST Cust'!L479","v":0},95431,0]
[36,null,{"$f":"'FR-16(7)(v)-1 Functional'!C480","v":"UNDERGROUND LINES - PRIMARY / CUSTOMER"},{"$f":"'FR-16(7)(v)-1 Functional'!D480","v":"K405"},null,{"$f":"'FR-16(7)(v)-14 TOTAL CLASS'!L480","v":234},{"$f":"'FR-16(7)(v)-3 PROD Demand'!L480+'FR-16(7)(v)-7 TRANS Demand'!L480+'FR-16(7)(v)-11 DIST Demand'!L480","v":0},{"$f":"'FR-16(7)(v)-4 PROD Energy'!L480+'FR-16(7)(v)-8 TRANS Energy'!L480+'FR-16(7)(v)-12 DIST Energy'!L480","v":0},{"$f":"'FR-16(7)(v)-5 PROD Cust'!L480+'FR-16(7)(v)-9 TRANS Cust'!L480+'FR-16(7)(v)-13 DIST Cust'!L480","v":234},234,0]
[37,null,{"$f":"'FR-16(7)(v)-1 Functional'!C481","v":"UNDERGROUND LINES - SECONDARY / DEMAND"},{"$f":"'FR-16(7)(v)-1 Functional'!D481","v":"K206"},null,{"$f":"'FR-16(7)(v)-14 TOTAL CLASS'!L481","v":16349},{"$f":"'FR-16(7)(v)-3 PROD Demand'!L481+'FR-16(7)(v)-7 TRANS Demand'!L481+'FR-16(7)(v)-11 DIST Demand'!L481","v":16349},{"$f":"'FR-16(7)(v)-4 PROD Energy'!L481+'FR-16(7)(v)-8 TRANS Energy'!L481+'FR-16(7)(v)-12 DIST Energy'!L481","v":0},{"$f":"'FR-16(7)(v)-5 PROD Cust'!L481+'FR-16(7)(v)-9 TRANS Cust'!L481+'FR-16(7)(v)-13 DIST Cust'!L481","v":0},16349,0]
[38,null,{"$f":"'FR-16(7)(v)-1 Functional'!C482","v":"UNDERGROUND LINES - SECONDARY / CUSTOMER"},{"$f":"'FR-16(7)(v)-1 Functional'!D482","v":"K405"},null,{"$f":"'FR-16(7)(v)-14 TOTAL CLASS'!L482","v":73},{"$f":"'FR-16(7)(v)-3 PROD Demand'!L482+'FR-16(7)(v)-7 TRANS Demand'!L482+'FR-16(7)(v)-11 DIST Demand'!L482","v":0},{"$f":"'FR-16(7)(v)-4 PROD Energy'!L482+'FR-16(7)(v)-8 TRANS Energy'!L482+'FR-16(7)(v)-12 DIST Energy'!L482","v":0},{"$f":"'FR-16(7)(v)-5 PROD Cust'!L482+'FR-16(7)(v)-9 TRANS Cust'!L482+'FR-16(7)(v)-13 DIST Cust'!L482","v":73},73,0]
[39,null,{"$f":"'FR-16(7)(v)-1 Functional'!C483","v":"TRANSFORMERS DEMAND RELATED"},{"$f":"'FR-16(7)(v)-1 Functional'!D483","v":"K203"},null,{"$f":"'FR-16(7)(v)-14 TOTAL CLASS'!L483","v":24733},{"$f":"'FR-16(7)(v)-3 PROD Demand'!L483+'FR-16(7)(v)-7 TRANS Demand'!L483+'FR-16(7)(v)-11 DIST Demand'!L483","v":24733},{"$f":"'FR-16(7)(v)-4 PROD Energy'!L483+'FR-16(7)(v)-8 TRANS Energy'!L483+'FR-16(7)(v)-12 DIST Energy'!L483","v":0},{"$f":"'FR-16(7)(v)-5 PROD Cust'!L483+'FR-16(7)(v)-9 TRANS Cust'!L483+'FR-16(7)(v)-13 DIST Cust'!L483","v":0},24733,0]
[40,null,{"$f":"'FR-16(7)(v)-1 Functional'!C484","v":"TRANSFORMERS CUSTOMER RELATED"},{"$f":"'FR-16(7)(v)-1 Functional'!D484","v":"K401"},null,{"$f":"'FR-16(7)(v)-14 TOTAL CLASS'!L484","v":0},{"$f":"'FR-16(7)(v)-3 PROD Demand'!L484+'FR-16(7)(v)-7 TRANS Demand'!L484+'FR-16(7)(v)-11 DIST Demand'!L484","v":0},{"$f":"'FR-16(7)(v)-4 PROD Energy'!L484+'FR-16(7)(v)-8 TRANS Energy'!L484+'FR-16(7)(v)-12 DIST Energy'!L484","v":0},{"$f":"'FR-16(7)(v)-5 PROD Cust'!L484+'FR-16(7)(v)-9 TRANS Cust'!L484+'FR-16(7)(v)-13 DIST Cust'!L484","v":0},{"$f":"SUM(G484:I484)","v":0},{"$f":"F484-J484","v":0}]
[41,null,{"$f":"'FR-16(7)(v)-1 Functional'!C485","v":"OTHER MAINTENANCE"},{"$f":"'FR-16(7)(v)-1 Functional'!D485","v":"K203"},null,{"$f":"'FR-16(7)(v)-14 TOTAL CLASS'!L485","v":172522},{"$f":"'FR-16(7)(v)-3 PROD Demand'!L485+'FR-16(7)(v)-7 TRANS Demand'!L485+'FR-16(7)(v)-11 DIST Demand'!L485","v":172522},{"$f":"'FR-16(7)(v)-4 PROD Energy'!L485+'FR-16(7)(v)-8 TRANS Energy'!L485+'FR-16(7)(v)-12 DIST Energy'!L485","v":0},{"$f":"'FR-16(7)(v)-5 PROD Cust'!L485+'FR-16(7)(v)-9 TRANS Cust'!L485+'FR-16(7)(v)-13 DIST Cust'!L485","v":0},172522,0]
[42,null,{"$f":"'FR-16(7)(v)-1 Functional'!C486","v":"LOAD DISPATCH"},{"$f":"'FR-16(7)(v)-1 Functional'!D486","v":"K215"},null,{"$f":"'FR-16(7)(v)-14 TOTAL CLASS'!L486","v":81955},{"$f":"'FR-16(7)(v)-3 PROD Demand'!L486+'FR-16(7)(v)-7 TRANS Demand'!L486+'FR-16(7)(v)-11 DIST Demand'!L486","v":81955},{"$f":"'FR-16(7)(v)-4 PROD Energy'!L486+'FR-16(7)(v)-8 TRANS Energy'!L486+'FR-16(7)(v)-12 DIST Energy'!L486","v":0},{"$f":"'FR-16(7)(v)-5 PROD Cust'!L486+'FR-16(7)(v)-9 TRANS Cust'!L486+'FR-16(7)(v)-13 DIST Cust'!L486","v":0},81955,0]
[43,null,{"$f":"'FR-16(7)(v)-1 Functional'!C487","v":"METERS"},{"$f":"'FR-16(7)(v)-1 Functional'!D487","v":"K407"},null,{"$f":"'FR-16(7)(v)-14 TOTAL CLASS'!L487","v":7006},{"$f":"'FR-16(7)(v)-3 PROD Demand'!L487+'FR-16(7)(v)-7 TRANS Demand'!L487+'FR-16(7)(v)-11 DIST Demand'!L487","v":0},{"$f":"'FR-16(7)(v)-4 PROD Energy'!L487+'FR-16(7)(v)-8 TRANS Energy'!L487+'FR-16(7)(v)-12 DIST Energy'!L487","v":0},{"$f":"'FR-16(7)(v)-5 PROD Cust'!L487+'FR-16(7)(v)-9 TRANS Cust'!L487+'FR-16(7)(v)-13 DIST Cust'!L487","v":7006},7006,0]
[44,null,{"$f":"'FR-16(7)(v)-1 Functional'!C488","v":"STREET LIGHTING AND SIGNAL SYSTEMS"},{"$f":"'FR-16(7)(v)-1 Functional'!D488","v":"K401"},null,{"$f":"'FR-16(7)(v)-14 TOTAL CLASS'!L488","v":0},{"$f":"'FR-16(7)(v)-3 PROD Demand'!L488+'FR-16(7)(v)-7 TRANS Demand'!L488+'FR-16(7)(v)-11 DIST Demand'!L488","v":0},{"$f":"'FR-16(7)(v)-4 PROD Energy'!L488+'FR-16(7)(v)-8 TRANS Energy'!L488+'FR-16(7)(v)-12 DIST Energy'!L488","v":0},{"$f":"'FR-16(7)(v)-5 PROD Cust'!L488+'FR-16(7)(v)-9 TRANS Cust'!L488+'FR-16(7)(v)-13 DIST Cust'!L488","v":0},0,0]
[45,null,{"$f":"'FR-16(7)(v)-1 Functional'!C489","v":"OTHER OPERATIONS"},{"$f":"'FR-16(7)(v)-1 Functional'!D489","v":"K203"},null,{"$f":"'FR-16(7)(v)-14 TOTAL CLASS'!L489","v":65880},{"$f":"'FR-16(7)(v)-3 PROD Demand'!L489+'FR-16(7)(v)-7 TRANS Demand'!L489+'FR-16(7)(v)-11 DIST Demand'!L489","v":65880},{"$f":"'FR-16(7)(v)-4 PROD Energy'!L489+'FR-16(7)(v)-8 TRANS Energy'!L489+'FR-16(7)(v)-12 DIST Energy'!L489","v":0},{"$f":"'FR-16(7)(v)-5 PROD Cust'!L489+'FR-16(7)(v)-9 TRANS Cust'!L489+'FR-16(7)(v)-13 DIST Cust'!L489","v":0},65880,0]
[46,null,{"$f":"'FR-16(7)(v)-1 Functional'!C490","v":"MISCELLANEOUS EXPENSES ADJUSTMENT"},{"$f":"'FR-16(7)(v)-1 Functional'!D490","v":"K203"},null,{"$f":"'FR-16(7)(v)-14 TOTAL CLASS'!L490","v":203035},{"$f":"'FR-16(7)(v)-3 PROD Demand'!L490+'FR-16(7)(v)-7 TRANS Demand'!L490+'FR-16(7)(v)-11 DIST Demand'!L490","v":203035},{"$f":"'FR-16(7)(v)-4 PROD Energy'!L490+'FR-16(7)(v)-8 TRANS Energy'!L490+'FR-16(7)(v)-12 DIST Energy'!L490","v":0},{"$f":"'FR-16(7)(v)-5 PROD Cust'!L490+'FR-16(7)(v)-9 TRANS Cust'!L490+'FR-16(7)(v)-13 DIST Cust'!L490","v":0},203035,0]
[47,null,{"$f":"'FR-16(7)(v)-1 Functional'!C491","v":"AFFILIATED COMPANY RENTS ADJUSTMENT"},{"$f":"'FR-16(7)(v)-1 Functional'!D491","v":"D249"},null,{"$f":"'FR-16(7)(v)-14 TOTAL CLASS'!L491","v":0},{"$f":"'FR-16(7)(v)-3 PROD Demand'!L491+'FR-16(7)(v)-7 TRANS Demand'!L491+'FR-16(7)(v)-11 DIST Demand'!L491","v":0},{"$f":"'FR-16(7)(v)-4 PROD Energy'!L491+'FR-16(7)(v)-8 TRANS Energy'!L491+'FR-16(7)(v)-12 DIST Energy'!L491","v":0},{"$f":"'FR-16(7)(v)-5 PROD Cust'!L491+'FR-16(7)(v)-9 TRANS Cust'!L491+'FR-16(7)(v)-13 DIST Cust'!L491","v":0},0,0]
[48,null,{"$f":"'FR-16(7)(v)-1 Functional'!C492","v":"  TOTAL DISTRIBUTION O & M"},null," ",{"$f":"SUM(F472:F491)","v":1783111},1774009,0,9102,1783111,0]
[49,null," "]
[50,"CUSTOMER ACCOUNTING",null,null,null," "]
[51,null,{"$f":"'FR-16(7)(v)-1 Functional'!C495","v":"CUSTOMER ACCOUNTING EXPENSE"},{"$f":"'FR-16(7)(v)-1 Functional'!D495","v":"K409"},null,{"$f":"'FR-16(7)(v)-14 TOTAL CLASS'!L495","v":27009},{"$f":"'FR-16(7)(v)-3 PROD Demand'!L495+'FR-16(7)(v)-7 TRANS Demand'!L495+'FR-16(7)(v)-11 DIST Demand'!L495","v":0},{"$f":"'FR-16(7)(v)-4 PROD Energy'!L495+'FR-16(7)(v)-8 TRANS Energy'!L495+'FR-16(7)(v)-12 DIST Energy'!L495","v":0},{"$f":"'FR-16(7)(v)-5 PROD Cust'!L495+'FR-16(7)(v)-9 TRANS Cust'!L495+'FR-16(7)(v)-13 DIST Cust'!L495","v":27009},{"$f":"SUM(G495:I495)","v":27009},{"$f":"F495-J495","v":0}]
[52,null,{"$f":"'FR-16(7)(v)-1 Functional'!C496","v":"UNCOLLECTIBLE EXP"},{"$f":"'FR-16(7)(v)-1 Functional'!D496","v":"K411"},null,{"$f":"'FR-16(7)(v)-14 TOTAL CLASS'!L496","v":34893},{"$f":"'FR-16(7)(v)-3 PROD Demand'!L496+'FR-16(7)(v)-7 TRANS Demand'!L496+'FR-16(7)(v)-11 DIST Demand'!L496","v":0},{"$f":"'FR-16(7)(v)-4 PROD Energy'!L496+'FR-16(7)(v)-8 TRANS Energy'!L496+'FR-16(7)(v)-12 DIST Energy'!L496","v":0},{"$f":"'FR-16(7)(v)-5 PROD Cust'!L496+'FR-16(7)(v)-9 TRANS Cust'!L496+'FR-16(7)(v)-13 DIST Cust'!L496","v":34893},34893,0]
[53,null,{"$f":"'FR-16(7)(v)-1 Functional'!C497","v":"METER READING"},{"$f":"'FR-16(7)(v)-1 Functional'!D497","v":"K407"},null,{"$f":"'FR-16(7)(v)-14 TOTAL CLASS'!L497","v":0},{"$f":"'FR-16(7)(v)-3 PROD Demand'!L497+'FR-16(7)(v)-7 TRANS Demand'!L497+'FR-16(7)(v)-11 DIST Demand'!L497","v":0},{"$f":"'FR-16(7)(v)-4 PROD Energy'!L497+'FR-16(7)(v)-8 TRANS Energy'!L497+'FR-16(7)(v)-12 DIST Energy'!L497","v":0},{"$f":"'FR-16(7)(v)-5 PROD Cust'!L497+'FR-16(7)(v)-9 TRANS Cust'!L497+'FR-16(7)(v)-13 DIST Cust'!L497","v":0},0,0]
[54,null,{"$f":"'FR-16(7)(v)-1 Functional'!C498","v":"UNCOLLECTIBLE EXP ADJUSTMENT"},{"$f":"'FR-16(7)(v)-1 Functional'!D498","v":"K411"},null,{"$f":"'FR-16(7)(v)-14 TOTAL CLASS'!L498","v":-49358},{"$f":"'FR-16(7)(v)-3 PROD Demand'!L498+'FR-16(7)(v)-7 TRANS Demand'!L498+'FR-16(7)(v)-11 DIST Demand'!L498","v":0},{"$f":"'FR-16(7)(v)-4 PROD Energy'!L498+'FR-16(7)(v)-8 TRANS Energy'!L498+'FR-16(7)(v)-12 DIST Energy'!L498","v":0},{"$f":"'FR-16(7)(v)-5 PROD Cust'!L498+'FR-16(7)(v)-9 TRANS Cust'!L498+'FR-16(7)(v)-13 DIST Cust'!L498","v":-49358},-49358,0]
[55,null,{"$f":"'FR-16(7)(v)-1 Functional'!C499","v":"CREDIT CARD FEES"},{"$f":"'FR-16(7)(v)-1 Functional'!D499","v":"K407"},null,{"$f":"'FR-16(7)(v)-14 TOTAL CLASS'!L499","v":3210},{"$f":"'FR-16(7)(v)-3 PROD Demand'!L499+'FR-16(7)(v)-7 TRANS Demand'!L499+'FR-16(7)(v)-11 DIST Demand'!L499","v":0},{"$f":"'FR-16(7)(v)-4 PROD Energy'!L499+'FR-16(7)(v)-8 TRANS Energy'!L499+'FR-16(7)(v)-12 DIST Energy'!L499","v":0},{"$f":"'FR-16(7)(v)-5 PROD Cust'!L499+'FR-16(7)(v)-9 TRANS Cust'!L499+'FR-16(7)(v)-13 DIST Cust'!L499","v":3210},3210,0]
[56,null,{"$f":"'FR-16(7)(v)-1 Functional'!C500","v":"ELIMINATE REV & EXP - DSM RIDER"},{"$f":"'FR-16(7)(v)-1 Functional'!D500","v":"K405"},null,{"$f":"'FR-16(7)(v)-14 TOTAL CLASS'!L500","v":0},{"$f":"'FR-16(7)(v)-3 PROD Demand'!L500+'FR-16(7)(v)-7 TRANS Demand'!L500+'FR-16(7)(v)-11 DIST Demand'!L500","v":0},{"$f":"'FR-16(7)(v)-4 PROD Energy'!L500+'FR-16(7)(v)-8 TRANS Energy'!L500+'FR-16(7)(v)-12 DIST Energy'!L500","v":0},{"$f":"'FR-16(7)(v)-5 PROD Cust'!L500+'FR-16(7)(v)-9 TRANS Cust'!L500+'FR-16(7)(v)-13 DIST Cust'!L500","v":0},0,0]
[57,null,{"$f":"'FR-16(7)(v)-1 Functional'!C501","v":"SALE OF A/R"},{"$f":"'FR-16(7)(v)-1 Functional'!D501","v":"K411"},null,{"$f":"'FR-16(7)(v)-14 TOTAL CLASS'!L501","v":9717},{"$f":"'FR-16(7)(v)-3 PROD Demand'!L501+'FR-16(7)(v)-7 TRANS Demand'!L501+'FR-16(7)(v)-11 DIST Demand'!L501","v":0},{"$f":"'FR-16(7)(v)-4 PROD Energy'!L501+'FR-16(7)(v)-8 TRANS Energy'!L501+'FR-16(7)(v)-12 DIST Energy'!L501","v":0},{"$f":"'FR-16(7)(v)-5 PROD Cust'!L501+'FR-16(7)(v)-9 TRANS Cust'!L501+'FR-16(7)(v)-13 DIST Cust'!L501","v":9717},9717,0]
[58,null,{"$f":"'FR-16(7)(v)-1 Functional'!C502","v":"ELIMINATE MISC EXPENSE"},{"$f":"'FR-16(7)(v)-1 Functional'!D502","v":"K405"},null,{"$f":"'FR-16(7)(v)-14 TOTAL CLASS'!L502","v":-1},{"$f":"'FR-16(7)(v)-3 PROD Demand'!L502+'FR-16(7)(v)-7 TRANS Demand'!L502+'FR-16(7)(v)-11 DIST Demand'!L502","v":0},{"$f":"'FR-16(7)(v)-4 PROD Energy'!L502+'FR-16(7)(v)-8 TRANS Energy'!L502+'FR-16(7)(v)-12 DIST Energy'!L502","v":0},{"$f":"'FR-16(7)(v)-5 PROD Cust'!L502+'FR-16(7)(v)-9 TRANS Cust'!L502+'FR-16(7)(v)-13 DIST Cust'!L502","v":-1},-1,0]
[59,null,{"$f":"'FR-16(7)(v)-1 Functional'!C503","v":"  TOTAL CUSTOMER ACCT EXPENSE"},null," ",{"$f":"SUM(F494:F502)","v":25470},0,0,25470,25470,0]
[]
[{"$f":"co_name","v":"DUKE ENERGY KENTUCKY, INC."},null,null,null,null,null,null,null,null,{"$f":"J1","v":"FR-16(7)(v)-20"}]
[{"$f":"$A$2","v":"DT SECONDARY CLASSIFIED - ELECTRIC COST OF SERVICE"},null,null,null,null,null,null,null,null,{"$f":"J2","v":"WITNESS RESPONSIBLE:"}]
[{"$f":"case_name","v":"CASE NO: 2019-00271"},null,null,null,null,null,null,null,null,{"$f":"Witness","v":"JAMES E. ZIOLKOWSKI"}]
[{"$f":"data_filing","v":"DATA: 12 MONTHS ACTUAL  & 0 MONTHS ESTIMATED"},null,null,null,null,null,null,null,null,{"$f":"\"PAGE \"&Pages2-6&\" OF \"&Pages2","v":"PAGE 9 OF 15"}]
[{"$f":"type","v":"TYPE OF FILING: \"X\" ORIGINAL   UPDATED    REVISED  "}]
[]
[]
["LINE",null,null,null,null,"TOTAL","CLASSIFIED",null,null,"TOTAL","ALL"]
["NO.","O&M EXPENSES",null,"ALLO",null,{"$f":"$F$9","v":"DT SECONDARY"},{"$f":"G9","v":"DEMAND"},"ENERGY","CUSTOMER","AT ISSUE","OTHER"]
[null,null,"Schedule 6.1",null,null,null,3,4,5]
[1,"CUSTOMER SERVICE & INFORMATION"]
[2,null,{"$f":"'FR-16(7)(v)-1 Functional'!C516","v":"TOTAL CUST SERVICE & INFO"},{"$f":"'FR-16(7)(v)-1 Functional'!D516","v":"K405"},null,{"$f":"'FR-16(7)(v)-14 TOTAL CLASS'!L516","v":677},{"$f":"'FR-16(7)(v)-3 PROD Demand'!L516+'FR-16(7)(v)-7 TRANS Demand'!L516+'FR-16(7)(v)-11 DIST Demand'!L516","v":0},{"$f":"'FR-16(7)(v)-4 PROD Energy'!L516+'FR-16(7)(v)-8 TRANS Energy'!L516+'FR-16(7)(v)-12 DIST Energy'!L516","v":0},{"$f":"'FR-16(7)(v)-5 PROD Cust'!L516+'FR-16(7)(v)-9 TRANS Cust'!L516+'FR-16(7)(v)-13 DIST Cust'!L516","v":677},{"$f":"SUM(G516:I516)","v":677},{"$f":"F516-J516","v":0}]
[3,null,{"$f":"'FR-16(7)(v)-1 Functional'!C517","v":"INFORMATIONAL & INSTRUCTIONAL ADV"},{"$f":"'FR-16(7)(v)-1 Functional'!D517","v":"K405"},null,{"$f":"'FR-16(7)(v)-14 TOTAL CLASS'!L517","v":0},{"$f":"'FR-16(7)(v)-3 PROD Demand'!L517+'FR-16(7)(v)-7 TRANS Demand'!L517+'FR-16(7)(v)-11 DIST Demand'!L517","v":0},{"$f":"'FR-16(7)(v)-4 PROD Energy'!L517+'FR-16(7)(v)-8 TRANS Energy'!L517+'FR-16(7)(v)-12 DIST Energy'!L517","v":0},{"$f":"'FR-16(7)(v)-5 PROD Cust'!L517+'FR-16(7)(v)-9 TRANS Cust'!L517+'FR-16(7)(v)-13 DIST Cust'!L517","v":0},{"$f":"SUM(G517:I517)","v":0},{"$f":"F517-J517","v":0}]
[4,null,{"$f":"'FR-16(7)(v)-1 Functional'!C518","v":"TOTAL CUSTOMER SERV. & INFO."},null," ",{"$f":"SUM(F516:F517)","v":677},0,0,677,677,0]
[5]
[6,"SALES"]
[7,null,{"$f":"'FR-16(7)(v)-1 Functional'!C521","v":"SALES EXPENSE"},{"$f":"'FR-16(7)(v)-1 Functional'!D521","v":"K405"}," ",{"$f":"'FR-16(7)(v)-14 TOTAL CLASS'!L521","v":1677},{"$f":"'FR-16(7)(v)-3 PROD Demand'!L521+'FR-16(7)(v)-7 TRANS Demand'!L521+'FR-16(7)(v)-11 DIST Demand'!L521","v":0},{"$f":"'FR-16(7)(v)-4 PROD Energy'!L521+'FR-16(7)(v)-8 TRANS Energy'!L521+'FR-16(7)(v)-12 DIST Energy'!L521","v":0},{"$f":"'FR-16(7)(v)-5 PROD Cust'!L521+'FR-16(7)(v)-9 TRANS Cust'!L521+'FR-16(7)(v)-13 DIST Cust'!L521","v":1677},{"$f":"SUM(G521:I521)","v":1677},{"$f":"F521-J521","v":0}]
[8,null,{"$f":"'FR-16(7)(v)-1 Functional'!C522","v":"TOTAL SALES EXPENSE"},null," ",{"$f":"SUM(F520:F521)","v":1677},0,0,1677,1677,0]
[9]
[10,"ADMINISTRATIVE & GENERAL "]
[11,null,{"$f":"'FR-16(7)(v)-1 Functional'!C525","v":"PRODUCTION - DEMAND RELATED"},{"$f":"'FR-16(7)(v)-1 Functional'!D525","v":"P349"},null,{"$f":"'FR-16(7)(v)-14 TOTAL CLASS'!L525","v":0},{"$f":"'FR-16(7)(v)-3 PROD Demand'!L525+'FR-16(7)(v)-7 TRANS Demand'!L525+'FR-16(7)(v)-11 DIST Demand'!L525","v":0},{"$f":"'FR-16(7)(v)-4 PROD Energy'!L525+'FR-16(7)(v)-8 TRANS Energy'!L525+'FR-16(7)(v)-12 DIST Energy'!L525","v":0},{"$f":"'FR-16(7)(v)-5 PROD Cust'!L525+'FR-16(7)(v)-9 TRANS Cust'!L525+'FR-16(7)(v)-13 DIST Cust'!L525","v":0},{"$f":"SUM(G525:I525)","v":0},{"$f":"F525-J525","v":0}]
[12,null,{"$f":"'FR-16(7)(v)-1 Functional'!C526","v":"PRODUCTION - ENERGY RELATED"},{"$f":"'FR-16(7)(v)-1 Functional'!D526","v":"E349"},null,{"$f":"'FR-16(7)(v)-14 TOTAL CLASS'!L526","v":1791420},{"$f":"'FR-16(7)(v)-3 PROD Demand'!L526+'FR-16(7)(v)-7 TRANS Demand'!L526+'FR-16(7)(v)-11 DIST Demand'!L526","v":0},{"$f":"'FR-16(7)(v)-4 PROD Energy'!L526+'FR-16(7)(v)-8 TRANS Energy'!L526+'FR-16(7)(v)-12 DIST Energy'!L526","v":1791420},{"$f":"'FR-16(7)(v)-5 PROD Cust'!L526+'FR-16(7)(v)-9 TRANS Cust'!L526+'FR-16(7)(v)-13 DIST Cust'!L526","v":0},1791420,0]
[13,null,"TRANSMISSION",{"$f":"'FR-16(7)(v)-1 Functional'!D527","v":"T349"},null,{"$f":"'FR-16(7)(v)-14 TOTAL CLASS'!L527","v":198017},{"$f":"'FR-16(7)(v)-3 PROD Demand'!L527+'FR-16(7)(v)-7 TRANS Demand'!L527+'FR-16(7)(v)-11 DIST Demand'!L527","v":198017},{"$f":"'FR-16(7)(v)-4 PROD Energy'!L527+'FR-16(7)(v)-8 TRANS Energy'!L527+'FR-16(7)(v)-12 DIST Energy'!L527","v":0},{"$f":"'FR-16(7)(v)-5 PROD Cust'!L527+'FR-16(7)(v)-9 TRANS Cust'!L527+'FR-16(7)(v)-13 DIST Cust'!L527","v":0},198017,0]
[14,null,{"$f":"'FR-16(7)(v)-1 Functional'!C528","v":"DISTRIBUTION"},{"$f":"'FR-16(7)(v)-1 Functional'!D528","v":"D349"},null,{"$f":"'FR-16(7)(v)-14 TOTAL CLASS'!L528","v":600486},{"$f":"'FR-16(7)(v)-3 PROD Demand'!L528+'FR-16(7)(v)-7 TRANS Demand'!L528+'FR-16(7)(v)-11 DIST Demand'!L528","v":597416},{"$f":"'FR-16(7)(v)-4 PROD Energy'!L528+'FR-16(7)(v)-8 TRANS Energy'!L528+'FR-16(7)(v)-12 DIST Energy'!L528","v":0},{"$f":"'FR-16(7)(v)-5 PROD Cust'!L528+'FR-16(7)(v)-9 TRANS Cust'!L528+'FR-16(7)(v)-13 DIST Cust'!L528","v":3070},600486,0]
[15,null,{"$f":"'FR-16(7)(v)-1 Functional'!C529","v":"CUSTOMER ACCOUNTING"},{"$f":"'FR-16(7)(v)-1 Functional'!D529","v":"C319"},null,{"$f":"'FR-16(7)(v)-14 TOTAL CLASS'!L529","v":22523},{"$f":"'FR-16(7)(v)-3 PROD Demand'!L529+'FR-16(7)(v)-7 TRANS Demand'!L529+'FR-16(7)(v)-11 DIST Demand'!L529","v":0},{"$f":"'FR-16(7)(v)-4 PROD Energy'!L529+'FR-16(7)(v)-8 TRANS Energy'!L529+'FR-16(7)(v)-12 DIST Energy'!L529","v":0},{"$f":"'FR-16(7)(v)-5 PROD Cust'!L529+'FR-16(7)(v)-9 TRANS Cust'!L529+'FR-16(7)(v)-13 DIST Cust'!L529","v":22523},22523,0]
[16,null,{"$f":"'FR-16(7)(v)-1 Functional'!C530","v":"CUSTOMER SERVICE & INFORMATION"},{"$f":"'FR-16(7)(v)-1 Functional'!D530","v":"C331"},null,{"$f":"'FR-16(7)(v)-14 TOTAL CLASS'!L530","v":269},{"$f":"'FR-16(7)(v)-3 PROD Demand'!L530+'FR-16(7)(v)-7 TRANS Demand'!L530+'FR-16(7)(v)-11 DIST Demand'!L530","v":0},{"$f":"'FR-16(7)(v)-4 PROD Energy'!L530+'FR-16(7)(v)-8 TRANS Energy'!L530+'FR-16(7)(v)-12 DIST Energy'!L530","v":0},{"$f":"'FR-16(7)(v)-5 PROD Cust'!L530+'FR-16(7)(v)-9 TRANS Cust'!L530+'FR-16(7)(v)-13 DIST Cust'!L530","v":269},269,0]
[17,null,{"$f":"'FR-16(7)(v)-1 Functional'!C531","v":"SALES"},{"$f":"'FR-16(7)(v)-1 Functional'!D531","v":"S319"},null,{"$f":"'FR-16(7)(v)-14 TOTAL CLASS'!L531","v":0},{"$f":"'FR-16(7)(v)-3 PROD Demand'!L531+'FR-16(7)(v)-7 TRANS Demand'!L531+'FR-16(7)(v)-11 DIST Demand'!L531","v":0},{"$f":"'FR-16(7)(v)-4 PROD Energy'!L531+'FR-16(7)(v)-8 TRANS Energy'!L531+'FR-16(7)(v)-12 DIST Energy'!L531","v":0},{"$f":"'FR-16(7)(v)-5 PROD Cust'!L531+'FR-16(7)(v)-9 TRANS Cust'!L531+'FR-16(7)(v)-13 DIST Cust'!L531","v":0},0,0]
[18,null,{"$f":"'FR-16(7)(v)-1 Functional'!C532","v":"TOT ADMIN & GEN LESS REG EXP"}," ",null,{"$f":"SUM(F525:F531)","v":2612715},795433,1791420,25862,2612715,0]
[19,null,{"$f":"'FR-16(7)(v)-1 Functional'!C533","v":"RATE CASE EXPENSE ADJUSTMENT"},{"$f":"'FR-16(7)(v)-1 Functional'!D533","v":"A315"},null,{"$f":"'FR-16(7)(v)-14 TOTAL CLASS'!L533","v":11214},{"$f":"'FR-16(7)(v)-3 PROD Demand'!L533+'FR-16(7)(v)-7 TRANS Demand'!L533+'FR-16(7)(v)-11 DIST Demand'!L533","v":3414},{"$f":"'FR-16(7)(v)-4 PROD Energy'!L533+'FR-16(7)(v)-8 TRANS Energy'!L533+'FR-16(7)(v)-12 DIST Energy'!L533","v":7689},{"$f":"'FR-16(7)(v)-5 PROD Cust'!L533+'FR-16(7)(v)-9 TRANS Cust'!L533+'FR-16(7)(v)-13 DIST Cust'!L533","v":111},{"$f":"SUM(G533:I533)","v":11214},{"$f":"F533-J533","v":0}]
[20,null,{"$f":"'FR-16(7)(v)-1 Functional'!C534","v":"ELIMINATE MISCELLANEOUS EXPENSES ADJUSTMENT"},{"$f":"'FR-16(7)(v)-1 Functional'!D534","v":"A315"},null,{"$f":"'FR-16(7)(v)-14 TOTAL CLASS'!L534","v":0},{"$f":"'FR-16(7)(v)-3 PROD Demand'!L534+'FR-16(7)(v)-7 TRANS Demand'!L534+'FR-16(7)(v)-11 DIST Demand'!L534","v":0},{"$f":"'FR-16(7)(v)-4 PROD Energy'!L534+'FR-16(7)(v)-8 TRANS Energy'!L534+'FR-16(7)(v)-12 DIST Energy'!L534","v":0},{"$f":"'FR-16(7)(v)-5 PROD Cust'!L534+'FR-16(7)(v)-9 TRANS Cust'!L534+'FR-16(7)(v)-13 DIST Cust'!L534","v":0},0,0]
[21,null,{"$f":"'FR-16(7)(v)-1 Functional'!C535","v":"RIDER ESM ELIMINATION"},{"$f":"'FR-16(7)(v)-1 Functional'!D535","v":"A315"},null,{"$f":"'FR-16(7)(v)-14 TOTAL CLASS'!L535","v":-770748},{"$f":"'FR-16(7)(v)-3 PROD Demand'!L535+'FR-16(7)(v)-7 TRANS Demand'!L535+'FR-16(7)(v)-11 DIST Demand'!L535","v":-234641},{"$f":"'FR-16(7)(v)-4 PROD Energy'!L535+'FR-16(7)(v)-8 TRANS Energy'!L535+'FR-16(7)(v)-12 DIST Energy'!L535","v":-528477},{"$f":"'FR-16(7)(v)-5 PROD Cust'!L535+'FR-16(7)(v)-9 TRANS Cust'!L535+'FR-16(7)(v)-13 DIST Cust'!L535","v":-7630},-770748,0]
[22,null,{"$f":"'FR-16(7)(v)-1 Functional'!C536","v":"ELIMINATE DSM"},{"$f":"'FR-16(7)(v)-1 Functional'!D536","v":"A315"},null,{"$f":"'FR-16(7)(v)-14 TOTAL CLASS'!L536","v":-10796},{"$f":"'FR-16(7)(v)-3 PROD Demand'!L536+'FR-16(7)(v)-7 TRANS Demand'!L536+'FR-16(7)(v)-11 DIST Demand'!L536","v":-3287},{"$f":"'FR-16(7)(v)-4 PROD Energy'!L536+'FR-16(7)(v)-8 TRANS Energy'!L536+'FR-16(7)(v)-12 DIST Energy'!L536","v":-7402},{"$f":"'FR-16(7)(v)-5 PROD Cust'!L536+'FR-16(7)(v)-9 TRANS Cust'!L536+'FR-16(7)(v)-13 DIST Cust'!L536","v":-107},-10796,0]
[23,null,{"$f":"'FR-16(7)(v)-1 Functional'!C537","v":"DSM DEFERRAL - ELECTRIC"},{"$f":"'FR-16(7)(v)-1 Functional'!D537","v":"A315"},null,{"$f":"'FR-16(7)(v)-14 TOTAL CLASS'!L537","v":0},{"$f":"'FR-16(7)(v)-3 PROD Demand'!L537+'FR-16(7)(v)-7 TRANS Demand'!L537+'FR-16(7)(v)-11 DIST Demand'!L537","v":0},{"$f":"'FR-16(7)(v)-4 PROD Energy'!L537+'FR-16(7)(v)-8 TRANS Energy'!L537+'FR-16(7)(v)-12 DIST Energy'!L537","v":0},{"$f":"'FR-16(7)(v)-5 PROD Cust'!L537+'FR-16(7)(v)-9 TRANS Cust'!L537+'FR-16(7)(v)-13 DIST Cust'!L537","v":0},0,0]
[24,null,{"$f":"'FR-16(7)(v)-1 Functional'!C538","v":"PENSION ADJUSTMENT"},{"$f":"'FR-16(7)(v)-1 Functional'!D538","v":"A315"},null,{"$f":"'FR-16(7)(v)-14 TOTAL CLASS'!L538","v":-47026},{"$f":"'FR-16(7)(v)-3 PROD Demand'!L538+'FR-16(7)(v)-7 TRANS Demand'!L538+'FR-16(7)(v)-11 DIST Demand'!L538","v":-14317},{"$f":"'FR-16(7)(v)-4 PROD Energy'!L538+'FR-16(7)(v)-8 TRANS Energy'!L538+'FR-16(7)(v)-12 DIST Energy'!L538","v":-32244},{"$f":"'FR-16(7)(v)-5 PROD Cust'!L538+'FR-16(7)(v)-9 TRANS Cust'!L538+'FR-16(7)(v)-13 DIST Cust'!L538","v":-465},-47026,0]
[25,null,{"$f":"'FR-16(7)(v)-1 Functional'!C539","v":"ELIMINATE MISC EXPENSES"},{"$f":"'FR-16(7)(v)-1 Functional'!D539","v":"A315"},null,{"$f":"'FR-16(7)(v)-14 TOTAL CLASS'!L539","v":-45362},{"$f":"'FR-16(7)(v)-3 PROD Demand'!L539+'FR-16(7)(v)-7 TRANS Demand'!L539+'FR-16(7)(v)-11 DIST Demand'!L539","v":-13810},{"$f":"'FR-16(7)(v)-4 PROD Energy'!L539+'FR-16(7)(v)-8 TRANS Energy'!L539+'FR-16(7)(v)-12 DIST Energy'!L539","v":-31103},{"$f":"'FR-16(7)(v)-5 PROD Cust'!L539+'FR-16(7)(v)-9 TRANS Cust'!L539+'FR-16(7)(v)-13 DIST Cust'!L539","v":-449},-45362,0]
[26,null,{"$f":"'FR-16(7)(v)-1 Functional'!C540","v":"ELIMINATE MERGER COSTS AND CREDITS"},{"$f":"'FR-16(7)(v)-1 Functional'!D540","v":"A315"},null,{"$f":"'FR-16(7)(v)-14 TOTAL CLASS'!L540","v":0},{"$f":"'FR-16(7)(v)-3 PROD Demand'!L540+'FR-16(7)(v)-7 TRANS Demand'!L540+'FR-16(7)(v)-11 DIST Demand'!L540","v":0},{"$f":"'FR-16(7)(v)-4 PROD Energy'!L540+'FR-16(7)(v)-8 TRANS Energy'!L540+'FR-16(7)(v)-12 DIST Energy'!L540","v":0},{"$f":"'FR-16(7)(v)-5 PROD Cust'!L540+'FR-16(7)(v)-9 TRANS Cust'!L540+'FR-16(7)(v)-13 DIST Cust'!L540","v":0},0,0]
[27,null,{"$f":"'FR-16(7)(v)-1 Functional'!C541","v":"ANNUALIZE KYPSC MAINT TAX"},{"$f":"'FR-16(7)(v)-1 Functional'!D541","v":"A315"},null,{"$f":"'FR-16(7)(v)-14 TOTAL CLASS'!L541","v":0},{"$f":"'FR-16(7)(v)-3 PROD Demand'!L541+'FR-16(7)(v)-7 TRANS Demand'!L541+'FR-16(7)(v)-11 DIST Demand'!L541","v":0},{"$f":"'FR-16(7)(v)-4 PROD Energy'!L541+'FR-16(7)(v)-8 TRANS Energy'!L541+'FR-16(7)(v)-12 DIST Energy'!L541","v":0},{"$f":"'FR-16(7)(v)-5 PROD Cust'!L541+'FR-16(7)(v)-9 TRANS Cust'!L541+'FR-16(7)(v)-13 DIST Cust'!L541","v":0},0,0]
[28,null,{"$f":"'FR-16(7)(v)-1 Functional'!C542","v":"REMOVE INCENTIVE COMP"},{"$f":"'FR-16(7)(v)-1 Functional'!D542","v":"A315"},null,{"$f":"'FR-16(7)(v)-14 TOTAL CLASS'!L542","v":-130954},{"$f":"'FR-16(7)(v)-3 PROD Demand'!L542+'FR-16(7)(v)-7 TRANS Demand'!L542+'FR-16(7)(v)-11 DIST Demand'!L542","v":-39867},{"$f":"'FR-16(7)(v)-4 PROD Energy'!L542+'FR-16(7)(v)-8 TRANS Energy'!L542+'FR-16(7)(v)-12 DIST Energy'!L542","v":-89790},{"$f":"'FR-16(7)(v)-5 PROD Cust'!L542+'FR-16(7)(v)-9 TRANS Cust'!L542+'FR-16(7)(v)-13 DIST Cust'!L542","v":-1297},-130954,0]
[29,null,{"$f":"'FR-16(7)(v)-1 Functional'!C543","v":"CREDIT CARD FEES"},{"$f":"'FR-16(7)(v)-1 Functional'!D543","v":"A315"},null,{"$f":"'FR-16(7)(v)-14 TOTAL CLASS'!L543","v":0},{"$f":"'FR-16(7)(v)-3 PROD Demand'!L543+'FR-16(7)(v)-7 TRANS Demand'!L543+'FR-16(7)(v)-11 DIST Demand'!L543","v":0},{"$f":"'FR-16(7)(v)-4 PROD Energy'!L543+'FR-16(7)(v)-8 TRANS Energy'!L543+'FR-16(7)(v)-12 DIST Energy'!L543","v":0},{"$f":"'FR-16(7)(v)-5 PROD Cust'!L543+'FR-16(7)(v)-9 TRANS Cust'!L543+'FR-16(7)(v)-13 DIST Cust'!L543","v":0},0,0]
[30,null,{"$f":"'FR-16(7)(v)-1 Functional'!C544","v":"ELIMINATE INCENTIVE COMPENSATION ADJUSTMENT"},{"$f":"'FR-16(7)(v)-1 Functional'!D544","v":"A315"},null,{"$f":"'FR-16(7)(v)-14 TOTAL CLASS'!L544","v":0},{"$f":"'FR-16(7)(v)-3 PROD Demand'!L544+'FR-16(7)(v)-7 TRANS Demand'!L544+'FR-16(7)(v)-11 DIST Demand'!L544","v":0},{"$f":"'FR-16(7)(v)-4 PROD Energy'!L544+'FR-16(7)(v)-8 TRANS Energy'!L544+'FR-16(7)(v)-12 DIST Energy'!L544","v":0},{"$f":"'FR-16(7)(v)-5 PROD Cust'!L544+'FR-16(7)(v)-9 TRANS Cust'!L544+'FR-16(7)(v)-13 DIST Cust'!L544","v":0},0,0]
[31,null,{"$f":"'FR-16(7)(v)-1 Functional'!C545","v":"AMORTIZATION OF DEFERRAL ASSET"},{"$f":"'FR-16(7)(v)-1 Functional'!D545","v":"A315"},null,{"$f":"'FR-16(7)(v)-14 TOTAL CLASS'!L545","v":0},{"$f":"'FR-16(7)(v)-3 PROD Demand'!L545+'FR-16(7)(v)-7 TRANS Demand'!L545+'FR-16(7)(v)-11 DIST Demand'!L545","v":0},{"$f":"'FR-16(7)(v)-4 PROD Energy'!L545+'FR-16(7)(v)-8 TRANS Energy'!L545+'FR-16(7)(v)-12 DIST Energy'!L545","v":0},{"$f":"'FR-16(7)(v)-5 PROD Cust'!L545+'FR-16(7)(v)-9 TRANS Cust'!L545+'FR-16(7)(v)-13 DIST Cust'!L545","v":0},0,0]
[32,null,{"$f":"'FR-16(7)(v)-1 Functional'!C546","v":"AMORTIZATION OF DEFERRED EXPENSES"},{"$f":"'FR-16(7)(v)-1 Functional'!D546","v":"A315"},null,{"$f":"'FR-16(7)(v)-14 TOTAL CLASS'!L546","v":8241},{"$f":"'FR-16(7)(v)-3 PROD Demand'!L546+'FR-16(7)(v)-7 TRANS Demand'!L546+'FR-16(7)(v)-11 DIST Demand'!L546","v":2509},{"$f":"'FR-16(7)(v)-4 PROD Energy'!L546+'FR-16(7)(v)-8 TRANS Energy'!L546+'FR-16(7)(v)-12 DIST Energy'!L546","v":5650},{"$f":"'FR-16(7)(v)-5 PROD Cust'!L546+'FR-16(7)(v)-9 TRANS Cust'!L546+'FR-16(7)(v)-13 DIST Cust'!L546","v":82},8241,0]
[33,null,{"$f":"'FR-16(7)(v)-1 Functional'!C547","v":"TOTAL ADMIN. & GENERAL"},null," ",{"$f":"SUM(F532:F546)","v":1627284},495434,1115743,16107,1627284,0]
[34]
[35,null,{"$f":"'FR-16(7)(v)-1 Functional'!C549","v":"TOTAL O & M EXPENSE"},null,null,{"$f":"F547+F522+F518+F503+F492+F470+F466+F459","v":30098766},5640079,24405654,53033,30098766,0]
[]
[{"$f":"co_name","v":"DUKE ENERGY KENTUCKY, INC."},null,null,null,null,null,null,null,null,{"$f":"J1","v":"FR-16(7)(v)-20"}]
[{"$f":"$A$2","v":"DT SECONDARY CLASSIFIED - ELECTRIC COST OF SERVICE"},null,null,null,null,null,null,null,null,{"$f":"J2","v":"WITNESS RESPONSIBLE:"}]
[{"$f":"case_name","v":"CASE NO: 2019-00271"},null,null,null,null,null,null,null,null,{"$f":"Witness","v":"JAMES E. ZIOLKOWSKI"}]
[{"$f":"data_filing","v":"DATA: 12 MONTHS ACTUAL  & 0 MONTHS ESTIMATED"},null,null,null,null,null,null,null,null,{"$f":"\"PAGE \"&Pages2-5&\" OF \"&Pages2","v":"PAGE 10 OF 15"}]
[{"$f":"type","v":"TYPE OF FILING: \"X\" ORIGINAL   UPDATED    REVISED  "}]
[]
[]
["LINE",null,null,null,null,"TOTAL","CLASSIFIED",null,null,"TOTAL","ALL"]
["NO.","DEPRECIATION EXPENSE",null,"ALLO",null,{"$f":"$F$9","v":"DT SECONDARY"},{"$f":"G9","v":"DEMAND"},"ENERGY","CUSTOMER","AT ISSUE","OTHER"]
[null,null,"Schedule 7",null,null,null,3,4,5]
[1,"PRODUCTION DEPRECIATION"]
[2,null,{"$f":"'FR-16(7)(v)-1 Functional'!C562","v":"PRODUCTION DEPRECIATION"},{"$f":"'FR-16(7)(v)-1 Functional'!D562","v":"P229"},null,{"$f":"'FR-16(7)(v)-14 TOTAL CLASS'!L562","v":5065006},{"$f":"'FR-16(7)(v)-3 PROD Demand'!L562+'FR-16(7)(v)-7 TRANS Demand'!L562+'FR-16(7)(v)-11 DIST Demand'!L562","v":5065006},{"$f":"'FR-16(7)(v)-4 PROD Energy'!L562+'FR-16(7)(v)-8 TRANS Energy'!L562+'FR-16(7)(v)-12 DIST Energy'!L562","v":0},{"$f":"'FR-16(7)(v)-5 PROD Cust'!L562+'FR-16(7)(v)-9 TRANS Cust'!L562+'FR-16(7)(v)-13 DIST Cust'!L562","v":0},{"$f":"SUM(G562:I562)","v":5065006},{"$f":"F562-J562","v":0}]
[3,null,{"$f":"'FR-16(7)(v)-1 Functional'!C563","v":"  TOTAL PRODUCTION DEPREC EXP."},null,null,{"$f":"SUM(F562:F562)","v":5065006},5065006,0,0,5065006,0]
[4]
[5,"TRANSMISSION DEPRECIATION"]
[6,null,"TRANSMISSION DEPRECIATION",{"$f":"'FR-16(7)(v)-1 Functional'!D566","v":"T229"},null,{"$f":"'FR-16(7)(v)-14 TOTAL CLASS'!L566","v":198293},{"$f":"'FR-16(7)(v)-3 PROD Demand'!L566+'FR-16(7)(v)-7 TRANS Demand'!L566+'FR-16(7)(v)-11 DIST Demand'!L566","v":198293},{"$f":"'FR-16(7)(v)-4 PROD Energy'!L566+'FR-16(7)(v)-8 TRANS Energy'!L566+'FR-16(7)(v)-12 DIST Energy'!L566","v":0},{"$f":"'FR-16(7)(v)-5 PROD Cust'!L566+'FR-16(7)(v)-9 TRANS Cust'!L566+'FR-16(7)(v)-13 DIST Cust'!L566","v":0},{"$f":"SUM(G566:I566)","v":198293},{"$f":"F566-J566","v":0}]
[7,null,{"$f":"'FR-16(7)(v)-1 Functional'!C567","v":"  TOTAL TRANSMISSION DEP. EXP."},null,null,{"$f":"SUM(F566:F566)","v":198293},198293,0,0,198293,0]
[8]
[9,"DISTRIBUTION DEPRECIATION"]
[10,null,{"$f":"'FR-16(7)(v)-1 Functional'!C570","v":"DISTRIBUTION DEPRECIATION"},{"$f":"'FR-16(7)(v)-1 Functional'!D570","v":"D249"},null,{"$f":"'FR-16(7)(v)-14 TOTAL CLASS'!L570","v":1489462},{"$f":"'FR-16(7)(v)-3 PROD Demand'!L570+'FR-16(7)(v)-7 TRANS Demand'!L570+'FR-16(7)(v)-11 DIST Demand'!L570","v":1479779},{"$f":"'FR-16(7)(v)-4 PROD Energy'!L570+'FR-16(7)(v)-8 TRANS Energy'!L570+'FR-16(7)(v)-12 DIST Energy'!L570","v":0},{"$f":"'FR-16(7)(v)-5 PROD Cust'!L570+'FR-16(7)(v)-9 TRANS Cust'!L570+'FR-16(7)(v)-13 DIST Cust'!L570","v":9683},{"$f":"SUM(G570:I570)","v":1489462},{"$f":"F570-J570","v":0}]
[11,null,{"$f":"'FR-16(7)(v)-1 Functional'!C571","v":"  TOTAL DIST. DEPREC EXP."},null,null,{"$f":"SUM(F570:F570)","v":1489462},1479779,0,9683,1489462,0]
[12,null,null,null,null," "]
[13,"GENERAL DEPRECIATION"]
[14,null,{"$f":"'FR-16(7)(v)-1 Functional'!C574","v":"GENERAL DEPRECIATION"},{"$f":"'FR-16(7)(v)-1 Functional'!D574","v":"G229"},null,{"$f":"'FR-16(7)(v)-14 TOTAL CLASS'!L574","v":674441},{"$f":"'FR-16(7)(v)-3 PROD Demand'!L574+'FR-16(7)(v)-7 TRANS Demand'!L574+'FR-16(7)(v)-11 DIST Demand'!L574","v":364367},{"$f":"'FR-16(7)(v)-4 PROD Energy'!L574+'FR-16(7)(v)-8 TRANS Energy'!L574+'FR-16(7)(v)-12 DIST Energy'!L574","v":305968},{"$f":"'FR-16(7)(v)-5 PROD Cust'!L574+'FR-16(7)(v)-9 TRANS Cust'!L574+'FR-16(7)(v)-13 DIST Cust'!L574","v":4106},{"$f":"SUM(G574:I574)","v":674441},{"$f":"F574-J574","v":0}]
[15,null,{"$f":"'FR-16(7)(v)-1 Functional'!C575","v":"  TOTAL GENERAL DEPREC EXP."},null,null,{"$f":"SUM(F574:F574)","v":674441},364367,305968,4106,674441,0]
[16]
[17,"COMMON AND OTHER DEPRECIATION"]
[18,null,{"$f":"'FR-16(7)(v)-1 Functional'!C578","v":"COMMON DEPRECIATION"},{"$f":"'FR-16(7)(v)-1 Functional'!D578","v":"C229"},null,{"$f":"'FR-16(7)(v)-14 TOTAL CLASS'!L578","v":4563},{"$f":"'FR-16(7)(v)-3 PROD Demand'!L578+'FR-16(7)(v)-7 TRANS Demand'!L578+'FR-16(7)(v)-11 DIST Demand'!L578","v":2459},{"$f":"'FR-16(7)(v)-4 PROD Energy'!L578+'FR-16(7)(v)-8 TRANS Energy'!L578+'FR-16(7)(v)-12 DIST Energy'!L578","v":2076},{"$f":"'FR-16(7)(v)-5 PROD Cust'!L578+'FR-16(7)(v)-9 TRANS Cust'!L578+'FR-16(7)(v)-13 DIST Cust'!L578","v":28},{"$f":"SUM(G578:I578)","v":4563},{"$f":"F578-J578","v":0}]
[19,null,{"$f":"'FR-16(7)(v)-1 Functional'!C579","v":"  TOTAL COM & OTHER DEPREC EXP."},null,null,{"$f":"SUM(F578:F578)","v":4563},2459,2076,28,4563,0]
[20]
[21]
[22,"TOTAL DEPRECIATION EXPENSE",null,null," ",{"$f":"F579+F575+F571+F567+F563","v":7431765},7109904,308044,13817,7431765,0]
[]
[{"$f":"co_name","v":"DUKE ENERGY KENTUCKY, INC."},null,null,null,null,null,null,null,null,{"$f":"J1","v":"FR-16(7)(v)-20"}]
[{"$f":"$A$2","v":"DT SECONDARY CLASSIFIED - ELECTRIC COST OF SERVICE"},null,null,null,null,null,null,null,null,{"$f":"J2","v":"WITNESS RESPONSIBLE:"}]
[{"$f":"case_name","v":"CASE NO: 2019-00271"},null,null,null,null,null,null,null,null,{"$f":"Witness","v":"JAMES E. ZIOLKOWSKI"}]
[{"$f":"data_filing","v":"DATA: 12 MONTHS ACTUAL  & 0 MONTHS ESTIMATED"},null,null,null,null,null,null,null,null,{"$f":"\"PAGE \"&Pages2-4&\" OF \"&Pages2","v":"PAGE 11 OF 15"}]
[{"$f":"type","v":"TYPE OF FILING: \"X\" ORIGINAL   UPDATED    REVISED  "}]
[]
[]
["LINE",null,null,null,null,"TOTAL","CLASSIFIED",null,null,"TOTAL","ALL"]
["NO.","OTHER TAXES & MISC EXPENSES",null,"ALLO",null,{"$f":"$F$9","v":"DT SECONDARY"},{"$f":"G9","v":"DEMAND"},"ENERGY","CUSTOMER","AT ISSUE","OTHER"]
[null,null,"Schedule 8",null,null,null,3,4,5]
[1,"TAXES OTHER THAN INC & REV"]
[2," REAL ESTATE & PROPERTY TAX"]
[3,null,{"$f":"'FR-16(7)(v)-1 Functional'!C596","v":"REAL ESTATE & PROPERTY TAX"},{"$f":"'FR-16(7)(v)-1 Functional'!D596","v":"NP29"},null,{"$f":"'FR-16(7)(v)-14 TOTAL CLASS'!L596","v":1700545},{"$f":"'FR-16(7)(v)-3 PROD Demand'!L596+'FR-16(7)(v)-7 TRANS Demand'!L596+'FR-16(7)(v)-11 DIST Demand'!L596","v":1666022},{"$f":"'FR-16(7)(v)-4 PROD Energy'!L596+'FR-16(7)(v)-8 TRANS Energy'!L596+'FR-16(7)(v)-12 DIST Energy'!L596","v":30548},{"$f":"'FR-16(7)(v)-5 PROD Cust'!L596+'FR-16(7)(v)-9 TRANS Cust'!L596+'FR-16(7)(v)-13 DIST Cust'!L596","v":3975},{"$f":"SUM(G596:I596)","v":1700545},{"$f":"F596-J596","v":0}]
[4,null,{"$f":"'FR-16(7)(v)-1 Functional'!C597","v":"ANNUALIZE PROPERTY TAX"},{"$f":"'FR-16(7)(v)-1 Functional'!D597","v":"NP29"}," ",{"$f":"'FR-16(7)(v)-14 TOTAL CLASS'!L597","v":0},{"$f":"'FR-16(7)(v)-3 PROD Demand'!L597+'FR-16(7)(v)-7 TRANS Demand'!L597+'FR-16(7)(v)-11 DIST Demand'!L597","v":0},{"$f":"'FR-16(7)(v)-4 PROD Energy'!L597+'FR-16(7)(v)-8 TRANS Energy'!L597+'FR-16(7)(v)-12 DIST Energy'!L597","v":0},{"$f":"'FR-16(7)(v)-5 PROD Cust'!L597+'FR-16(7)(v)-9 TRANS Cust'!L597+'FR-16(7)(v)-13 DIST Cust'!L597","v":0},{"$f":"SUM(G597:I597)","v":0},{"$f":"F597-J597","v":0}]
[5,null,{"$f":"'FR-16(7)(v)-1 Functional'!C598","v":"  TOTAL REAL ESTATE & PROPERTY TAX"},null,null,{"$f":"SUM(F596:F597)","v":1700545},1666022,30548,3975,1700545,0]
[6]
[7," MISCELLANEOUS TAXES"]
[8,null,{"$f":"'FR-16(7)(v)-1 Functional'!C601","v":"PAYROLL "},{"$f":"'FR-16(7)(v)-1 Functional'!D601","v":"A315"},null,{"$f":"'FR-16(7)(v)-14 TOTAL CLASS'!L601","v":155960},{"$f":"'FR-16(7)(v)-3 PROD Demand'!L601+'FR-16(7)(v)-7 TRANS Demand'!L601+'FR-16(7)(v)-11 DIST Demand'!L601","v":47479},{"$f":"'FR-16(7)(v)-4 PROD Energy'!L601+'FR-16(7)(v)-8 TRANS Energy'!L601+'FR-16(7)(v)-12 DIST Energy'!L601","v":106938},{"$f":"'FR-16(7)(v)-5 PROD Cust'!L601+'FR-16(7)(v)-9 TRANS Cust'!L601+'FR-16(7)(v)-13 DIST Cust'!L601","v":1543},{"$f":"SUM(G601:I601)","v":155960},{"$f":"F601-J601","v":0}]
[9,null,{"$f":"'FR-16(7)(v)-1 Functional'!C602","v":"ELIMINATE DSM "},{"$f":"'FR-16(7)(v)-1 Functional'!D602","v":"A315"},null,{"$f":"'FR-16(7)(v)-14 TOTAL CLASS'!L602","v":-3068},{"$f":"'FR-16(7)(v)-3 PROD Demand'!L602+'FR-16(7)(v)-7 TRANS Demand'!L602+'FR-16(7)(v)-11 DIST Demand'!L602","v":-934},{"$f":"'FR-16(7)(v)-4 PROD Energy'!L602+'FR-16(7)(v)-8 TRANS Energy'!L602+'FR-16(7)(v)-12 DIST Energy'!L602","v":-2104},{"$f":"'FR-16(7)(v)-5 PROD Cust'!L602+'FR-16(7)(v)-9 TRANS Cust'!L602+'FR-16(7)(v)-13 DIST Cust'!L602","v":-30},{"$f":"SUM(G602:I602)","v":-3068},{"$f":"F602-J602","v":0}]
[10,null,{"$f":"'FR-16(7)(v)-1 Functional'!C603","v":"FRANCHISE & LICENSE"},{"$f":"'FR-16(7)(v)-1 Functional'!D603","v":"A315"},null,{"$f":"'FR-16(7)(v)-14 TOTAL CLASS'!L603","v":0},{"$f":"'FR-16(7)(v)-3 PROD Demand'!L603+'FR-16(7)(v)-7 TRANS Demand'!L603+'FR-16(7)(v)-11 DIST Demand'!L603","v":0},{"$f":"'FR-16(7)(v)-4 PROD Energy'!L603+'FR-16(7)(v)-8 TRANS Energy'!L603+'FR-16(7)(v)-12 DIST Energy'!L603","v":0},{"$f":"'FR-16(7)(v)-5 PROD Cust'!L603+'FR-16(7)(v)-9 TRANS Cust'!L603+'FR-16(7)(v)-13 DIST Cust'!L603","v":0},{"$f":"SUM(G603:I603)","v":0},{"$f":"F603-J603","v":0}]
[11,null,{"$f":"'FR-16(7)(v)-1 Functional'!C604","v":"ELIMINATE ESM"},{"$f":"'FR-16(7)(v)-1 Functional'!D604","v":"A315"},null,{"$f":"'FR-16(7)(v)-14 TOTAL CLASS'!L604","v":-82965},{"$f":"'FR-16(7)(v)-3 PROD Demand'!L604+'FR-16(7)(v)-7 TRANS Demand'!L604+'FR-16(7)(v)-11 DIST Demand'!L604","v":-25258},{"$f":"'FR-16(7)(v)-4 PROD Energy'!L604+'FR-16(7)(v)-8 TRANS Energy'!L604+'FR-16(7)(v)-12 DIST Energy'!L604","v":-56886},{"$f":"'FR-16(7)(v)-5 PROD Cust'!L604+'FR-16(7)(v)-9 TRANS Cust'!L604+'FR-16(7)(v)-13 DIST Cust'!L604","v":-821},{"$f":"SUM(G604:I604)","v":-82965},{"$f":"F604-J604","v":0}]
[12,null,{"$f":"'FR-16(7)(v)-1 Functional'!C605","v":"  TOTAL MISCELLANEOUS TAXES"},null,null,{"$f":"SUM(F601:F604)","v":69927},21287,47948,692,69927,0]
[13]
[14," MISCELLANEOUS EXPENSES"]
[15,null,{"$f":"'FR-16(7)(v)-1 Functional'!C608","v":"PSC MAINT. EXP ON INCREASE"},{"$f":"'FR-16(7)(v)-1 Functional'!D608","v":"K902"},null,{"$f":"'FR-16(7)(v)-14 TOTAL CLASS'!L608","v":13202},{"$f":"'FR-16(7)(v)-3 PROD Demand'!L608+'FR-16(7)(v)-7 TRANS Demand'!L608+'FR-16(7)(v)-11 DIST Demand'!L608","v":6529},{"$f":"'FR-16(7)(v)-4 PROD Energy'!L608+'FR-16(7)(v)-8 TRANS Energy'!L608+'FR-16(7)(v)-12 DIST Energy'!L608","v":4543},{"$f":"'FR-16(7)(v)-5 PROD Cust'!L608+'FR-16(7)(v)-9 TRANS Cust'!L608+'FR-16(7)(v)-13 DIST Cust'!L608","v":2130},{"$f":"SUM(G608:I608)","v":13202},{"$f":"F608-J608","v":0}]
[16,null,{"$f":"'FR-16(7)(v)-1 Functional'!C609","v":"RESERVED FOR FUTURE USE"},{"$f":"'FR-16(7)(v)-1 Functional'!D609","v":"K902"},null,{"$f":"'FR-16(7)(v)-14 TOTAL CLASS'!L609","v":0},{"$f":"'FR-16(7)(v)-3 PROD Demand'!L609+'FR-16(7)(v)-7 TRANS Demand'!L609+'FR-16(7)(v)-11 DIST Demand'!L609","v":0},{"$f":"'FR-16(7)(v)-4 PROD Energy'!L609+'FR-16(7)(v)-8 TRANS Energy'!L609+'FR-16(7)(v)-12 DIST Energy'!L609","v":0},{"$f":"'FR-16(7)(v)-5 PROD Cust'!L609+'FR-16(7)(v)-9 TRANS Cust'!L609+'FR-16(7)(v)-13 DIST Cust'!L609","v":0},{"$f":"SUM(G609:I609)","v":0},{"$f":"F609-J609","v":0}]
[17,null,{"$f":"'FR-16(7)(v)-1 Functional'!C610","v":"  TOTAL MISCELLANEOUS EXPENSES"},null,null,{"$f":"SUM(F608:F609)","v":13202},6529,4543,2130,13202,0]
[18]
[19,"TOTAL OTHER TAX & MISC EXPENSE",null,null," ",{"$f":"F605+F598+F610","v":1783674},1693838,83039,6797,1783674,0]
[20]
[21,"PRELIMINARY SUMMARY"]
[22,null,{"$f":"'FR-16(7)(v)-1 Functional'!C615","v":"TOTAL O&M EXPENSE"},null,null,{"$f":"F549","v":30098766},5640079,24405654,53033,30098766,0]
[23,null,{"$f":"'FR-16(7)(v)-1 Functional'!C616","v":"TOTAL DEPRECIATION EXPENSE"},null,null,{"$f":"F582","v":7431765},7109904,308044,13817,7431765,0]
[24,null,{"$f":"'FR-16(7)(v)-1 Functional'!C617","v":"TOTAL OTHER TAX & MISC EXPENSE"},null,null,{"$f":"F612","v":1783674},1693838,83039,6797,1783674,0]
[25,null,{"$f":"'FR-16(7)(v)-1 Functional'!C618","v":"  TOTAL OPER EXP EXCL INCOME & REV TAX"},null,null,{"$f":"SUM(F615:F617)","v":39314205},14443821,24796737,73647,39314205,0]
[]
[{"$f":"co_name","v":"DUKE ENERGY KENTUCKY, INC."},null,null,null,null,null,null,null,null,{"$f":"J1","v":"FR-16(7)(v)-20"}]
[{"$f":"$A$2","v":"DT SECONDARY CLASSIFIED - ELECTRIC COST OF SERVICE"},null,null,null,null,null,null,null,null,{"$f":"J2","v":"WITNESS RESPONSIBLE:"}]
[{"$f":"case_name","v":"CASE NO: 2019-00271"},null,null,null,null,null,null,null,null,{"$f":"Witness","v":"JAMES E. ZIOLKOWSKI"}]
[{"$f":"data_filing","v":"DATA: 12 MONTHS ACTUAL  & 0 MONTHS ESTIMATED"},null,null,null,null,null,null,null,null,{"$f":"\"PAGE \"&Pages2-3&\" OF \"&Pages2","v":"PAGE 12 OF 15"}]
[{"$f":"type","v":"TYPE OF FILING: \"X\" ORIGINAL   UPDATED    REVISED  "}]
[]
[]
["LINE",null,null,null,null,"TOTAL","CLASSIFIED",null,null,"TOTAL","ALL"]
["NO.","FEDERAL INCOME TAX BASED ON RETURN",null,"ALLO",null,{"$f":"$F$9","v":"DT SECONDARY"},{"$f":"$G$9","v":"DEMAND"},{"$f":"$H$9","v":"ENERGY"},{"$f":"$I$9","v":"CUSTOMER"},"AT ISSUE","OTHER"]
[null,null,"Schedule 9",null,null,null,{"$f":"G10","v":3},{"$f":"H10","v":4},{"$f":"I10","v":5}]
[1,"FEDERAL INCOME TAX DEDUCTIONS"]
[2," AUTOMATIC INTEREST CALCULATION",null,null,null," "]
[3,null,{"$f":"'FR-16(7)(v)-1 Functional'!C632","v":"AUTO PROC INTEREST DED"},{"$f":"'FR-16(7)(v)-1 Functional'!D632","v":"RB99"},null,{"$f":"'FR-16(7)(v)-14 TOTAL CLASS'!L632","v":2336706},{"$f":"'FR-16(7)(v)-3 PROD Demand'!L632+'FR-16(7)(v)-7 TRANS Demand'!L632+'FR-16(7)(v)-11 DIST Demand'!L632","v":2226863},{"$f":"'FR-16(7)(v)-4 PROD Energy'!L632+'FR-16(7)(v)-8 TRANS Energy'!L632+'FR-16(7)(v)-12 DIST Energy'!L632","v":103813},{"$f":"'FR-16(7)(v)-5 PROD Cust'!L632+'FR-16(7)(v)-9 TRANS Cust'!L632+'FR-16(7)(v)-13 DIST Cust'!L632","v":6030},{"$f":"SUM(G632:I632)","v":2336706},{"$f":"F632-J632","v":0}]
[4,null,{"$f":"'FR-16(7)(v)-1 Functional'!C633","v":"  TOTAL INTEREST EXPENSE"},null,null,{"$f":"F632","v":2336706},2226863,103813,6030,2336706,0]
[5]
[6," OTHER DEDUCTIONS"]
[7,null,{"$f":"'FR-16(7)(v)-1 Functional'!C636","v":"DEPREC EXCESS TAX-BOOK"},{"$f":"'FR-16(7)(v)-1 Functional'!D636","v":"DE49"},null,{"$f":"'FR-16(7)(v)-14 TOTAL CLASS'!L636","v":-1762725},{"$f":"'FR-16(7)(v)-3 PROD Demand'!L636+'FR-16(7)(v)-7 TRANS Demand'!L636+'FR-16(7)(v)-11 DIST Demand'!L636","v":-1686388},{"$f":"'FR-16(7)(v)-4 PROD Energy'!L636+'FR-16(7)(v)-8 TRANS Energy'!L636+'FR-16(7)(v)-12 DIST Energy'!L636","v":-73058},{"$f":"'FR-16(7)(v)-5 PROD Cust'!L636+'FR-16(7)(v)-9 TRANS Cust'!L636+'FR-16(7)(v)-13 DIST Cust'!L636","v":-3279},{"$f":"SUM(G636:I636)","v":-1762725},{"$f":"F636-J636","v":0}]
[8,null,{"$f":"'FR-16(7)(v)-1 Functional'!C637","v":"PERMANENT DIFFERENCES"},{"$f":"'FR-16(7)(v)-1 Functional'!D637","v":"A357"},null,{"$f":"'FR-16(7)(v)-14 TOTAL CLASS'!L637","v":-34903},{"$f":"'FR-16(7)(v)-3 PROD Demand'!L637+'FR-16(7)(v)-7 TRANS Demand'!L637+'FR-16(7)(v)-11 DIST Demand'!L637","v":-10626},{"$f":"'FR-16(7)(v)-4 PROD Energy'!L637+'FR-16(7)(v)-8 TRANS Energy'!L637+'FR-16(7)(v)-12 DIST Energy'!L637","v":-23931},{"$f":"'FR-16(7)(v)-5 PROD Cust'!L637+'FR-16(7)(v)-9 TRANS Cust'!L637+'FR-16(7)(v)-13 DIST Cust'!L637","v":-346},{"$f":"SUM(G637:I637)","v":-34903},{"$f":"F637-J637","v":0}]
[9,null,{"$f":"'FR-16(7)(v)-1 Functional'!C638","v":"TEMPORARY DIFFERENCES"},{"$f":"'FR-16(7)(v)-1 Functional'!D638","v":"DE49"},null,{"$f":"'FR-16(7)(v)-14 TOTAL CLASS'!L638","v":10755881},{"$f":"'FR-16(7)(v)-3 PROD Demand'!L638+'FR-16(7)(v)-7 TRANS Demand'!L638+'FR-16(7)(v)-11 DIST Demand'!L638","v":10290084},{"$f":"'FR-16(7)(v)-4 PROD Energy'!L638+'FR-16(7)(v)-8 TRANS Energy'!L638+'FR-16(7)(v)-12 DIST Energy'!L638","v":445789},{"$f":"'FR-16(7)(v)-5 PROD Cust'!L638+'FR-16(7)(v)-9 TRANS Cust'!L638+'FR-16(7)(v)-13 DIST Cust'!L638","v":20008},{"$f":"SUM(G638:I638)","v":10755881},{"$f":"F638-J638","v":0}]
[10,null,{"$f":"'FR-16(7)(v)-1 Functional'!C639","v":"  TOTAL OTHER DEDUCTIONS"},null,null,{"$f":"SUM(F636:F638)","v":8958253},8593070,348800,16383,8958253,0]
[11]
[12,"NET DEDUCTIONS AND ADDITIONS",null,null,null,{"$f":"F639+F633","v":11294959},10819933,452613,22413,11294959,0]
[13]
[14," FED DEFERRED INCOME TAX (410 & 411)"]
[15,null,{"$f":"'FR-16(7)(v)-1 Functional'!C644","v":"DEFERRED INCOME TAXES - NET"},{"$f":"'FR-16(7)(v)-1 Functional'!D644","v":"OM39"},null,{"$f":"'FR-16(7)(v)-14 TOTAL CLASS'!L644","v":2003466},{"$f":"'FR-16(7)(v)-3 PROD Demand'!L644+'FR-16(7)(v)-7 TRANS Demand'!L644+'FR-16(7)(v)-11 DIST Demand'!L644","v":375426},{"$f":"'FR-16(7)(v)-4 PROD Energy'!L644+'FR-16(7)(v)-8 TRANS Energy'!L644+'FR-16(7)(v)-12 DIST Energy'!L644","v":1624506},{"$f":"'FR-16(7)(v)-5 PROD Cust'!L644+'FR-16(7)(v)-9 TRANS Cust'!L644+'FR-16(7)(v)-13 DIST Cust'!L644","v":3534},{"$f":"SUM(G644:I644)","v":2003466},{"$f":"F644-J644","v":0}]
[16,null,{"$f":"'FR-16(7)(v)-1 Functional'!C645","v":"AMORT OF DEFERRED MERGER COST"},{"$f":"'FR-16(7)(v)-1 Functional'!D645","v":"A357"},null,{"$f":"'FR-16(7)(v)-14 TOTAL CLASS'!L645","v":0},{"$f":"'FR-16(7)(v)-3 PROD Demand'!L645+'FR-16(7)(v)-7 TRANS Demand'!L645+'FR-16(7)(v)-11 DIST Demand'!L645","v":0},{"$f":"'FR-16(7)(v)-4 PROD Energy'!L645+'FR-16(7)(v)-8 TRANS Energy'!L645+'FR-16(7)(v)-12 DIST Energy'!L645","v":0},{"$f":"'FR-16(7)(v)-5 PROD Cust'!L645+'FR-16(7)(v)-9 TRANS Cust'!L645+'FR-16(7)(v)-13 DIST Cust'!L645","v":0},{"$f":"SUM(G645:I645)","v":0},{"$f":"F645-J645","v":0}]
[17,null,{"$f":"'FR-16(7)(v)-1 Functional'!C646","v":"DIT ADJUSTMENT - S/L DEPRECIATION"},{"$f":"'FR-16(7)(v)-1 Functional'!D646","v":"DE49"},null,{"$f":"'FR-16(7)(v)-14 TOTAL CLASS'!L646","v":0},{"$f":"'FR-16(7)(v)-3 PROD Demand'!L646+'FR-16(7)(v)-7 TRANS Demand'!L646+'FR-16(7)(v)-11 DIST Demand'!L646","v":0},{"$f":"'FR-16(7)(v)-4 PROD Energy'!L646+'FR-16(7)(v)-8 TRANS Energy'!L646+'FR-16(7)(v)-12 DIST Energy'!L646","v":0},{"$f":"'FR-16(7)(v)-5 PROD Cust'!L646+'FR-16(7)(v)-9 TRANS Cust'!L646+'FR-16(7)(v)-13 DIST Cust'!L646","v":0},{"$f":"SUM(G646:I646)","v":0},{"$f":"F646-J646","v":0}]
[18,null,{"$f":"'FR-16(7)(v)-1 Functional'!C647","v":"DIT ADJUSTMENT - ARAM"},{"$f":"'FR-16(7)(v)-1 Functional'!D647","v":"K201"},null,{"$f":"'FR-16(7)(v)-14 TOTAL CLASS'!L647","v":-14509},{"$f":"'FR-16(7)(v)-3 PROD Demand'!L647+'FR-16(7)(v)-7 TRANS Demand'!L647+'FR-16(7)(v)-11 DIST Demand'!L647","v":-14509},{"$f":"'FR-16(7)(v)-4 PROD Energy'!L647+'FR-16(7)(v)-8 TRANS Energy'!L647+'FR-16(7)(v)-12 DIST Energy'!L647","v":0},{"$f":"'FR-16(7)(v)-5 PROD Cust'!L647+'FR-16(7)(v)-9 TRANS Cust'!L647+'FR-16(7)(v)-13 DIST Cust'!L647","v":0},{"$f":"SUM(G647:I647)","v":-14509},{"$f":"F647-J647","v":0}]
[19,null,{"$f":"'FR-16(7)(v)-1 Functional'!C648","v":"DIT ADJUSTMENT - AMORT OF EXCESS DEF TAXES"},{"$f":"'FR-16(7)(v)-1 Functional'!D648","v":"A357"},null,{"$f":"'FR-16(7)(v)-14 TOTAL CLASS'!L648","v":-306060},{"$f":"'FR-16(7)(v)-3 PROD Demand'!L648+'FR-16(7)(v)-7 TRANS Demand'!L648+'FR-16(7)(v)-11 DIST Demand'!L648","v":-93177},{"$f":"'FR-16(7)(v)-4 PROD Energy'!L648+'FR-16(7)(v)-8 TRANS Energy'!L648+'FR-16(7)(v)-12 DIST Energy'!L648","v":-209853},{"$f":"'FR-16(7)(v)-5 PROD Cust'!L648+'FR-16(7)(v)-9 TRANS Cust'!L648+'FR-16(7)(v)-13 DIST Cust'!L648","v":-3030},{"$f":"SUM(G648:I648)","v":-306060},{"$f":"F648-J648","v":0}]
[20,null,{"$f":"'FR-16(7)(v)-1 Functional'!C649","v":"  TOTAL FED DEF IT (410 & 411)"},null,null,{"$f":"SUM(F644:F648)","v":1682897},267740,1414653,504,1682897,0]
[21]
[22," AMORT INV TAX CREDIT"]
[23,null,{"$f":"'FR-16(7)(v)-1 Functional'!C652","v":"AMORTIZE ITC"},{"$f":"'FR-16(7)(v)-1 Functional'!D652","v":"NP29"},null,{"$f":"'FR-16(7)(v)-14 TOTAL CLASS'!L652","v":53},{"$f":"'FR-16(7)(v)-3 PROD Demand'!L652+'FR-16(7)(v)-7 TRANS Demand'!L652+'FR-16(7)(v)-11 DIST Demand'!L652","v":52},{"$f":"'FR-16(7)(v)-4 PROD Energy'!L652+'FR-16(7)(v)-8 TRANS Energy'!L652+'FR-16(7)(v)-12 DIST Energy'!L652","v":1},{"$f":"'FR-16(7)(v)-5 PROD Cust'!L652+'FR-16(7)(v)-9 TRANS Cust'!L652+'FR-16(7)(v)-13 DIST Cust'!L652","v":0},{"$f":"SUM(G652:I652)","v":53},{"$f":"F652-J652","v":0}]
[24,null,{"$f":"'FR-16(7)(v)-1 Functional'!C653","v":"  TOTAL AMORTIZED ITC"},null,null,{"$f":"SUM(F652:F652)","v":53},52,1,0,53,0]
[25]
[26," OTHER FEDERAL TAX CREDITS"]
[27,null,{"$f":"'FR-16(7)(v)-1 Functional'!C656","v":"FUEL TAX CREDIT"},{"$f":"'FR-16(7)(v)-1 Functional'!D656","v":"K301"},null,{"$f":"'FR-16(7)(v)-14 TOTAL CLASS'!L656","v":0},{"$f":"'FR-16(7)(v)-3 PROD Demand'!L656+'FR-16(7)(v)-7 TRANS Demand'!L656+'FR-16(7)(v)-11 DIST Demand'!L656","v":0},{"$f":"'FR-16(7)(v)-4 PROD Energy'!L656+'FR-16(7)(v)-8 TRANS Energy'!L656+'FR-16(7)(v)-12 DIST Energy'!L656","v":0},{"$f":"'FR-16(7)(v)-5 PROD Cust'!L656+'FR-16(7)(v)-9 TRANS Cust'!L656+'FR-16(7)(v)-13 DIST Cust'!L656","v":0},{"$f":"SUM(G656:I656)","v":0},{"$f":"F656-J656","v":0}]
[28,null,{"$f":"'FR-16(7)(v)-1 Functional'!C657","v":"R&D CREDIT - SECTION 41"},{"$f":"'FR-16(7)(v)-1 Functional'!D657","v":"A315"},null,{"$f":"'FR-16(7)(v)-14 TOTAL CLASS'!L657","v":0},{"$f":"'FR-16(7)(v)-3 PROD Demand'!L657+'FR-16(7)(v)-7 TRANS Demand'!L657+'FR-16(7)(v)-11 DIST Demand'!L657","v":0},{"$f":"'FR-16(7)(v)-4 PROD Energy'!L657+'FR-16(7)(v)-8 TRANS Energy'!L657+'FR-16(7)(v)-12 DIST Energy'!L657","v":0},{"$f":"'FR-16(7)(v)-5 PROD Cust'!L657+'FR-16(7)(v)-9 TRANS Cust'!L657+'FR-16(7)(v)-13 DIST Cust'!L657","v":0},{"$f":"SUM(G657:I657)","v":0},{"$f":"F657-J657","v":0}]
[29,null,{"$f":"'FR-16(7)(v)-1 Functional'!C658","v":"  TOTAL OTHER FEDERAL TAX CREDITS"},null,null,{"$f":"SUM(F656:F657)","v":0},0,0,0,0,0]
[30]
[31,"PRELIMINARY SUMMARY"]
[32,null,{"$f":"'FR-16(7)(v)-1 Functional'!C661","v":"TOTAL FED DEF IT (410 & 411)"},null,null,{"$f":"F649","v":1682897},267740,1414653,504,1682897,0]
[33,null,{"$f":"'FR-16(7)(v)-1 Functional'!C662","v":"TOTAL AMORTIZED ITC & OTHER FEDERAL TAX CREDITS"},null,null,{"$f":"-F653-F658","v":-53},-52,-1,0,-53,0]
[34,null,{"$f":"'FR-16(7)(v)-1 Functional'!C663","v":"  TOTAL FEDERAL TAX ADJUSTMENTS"},null,null,{"$f":"SUM(F661:F662)","v":1682844},267688,1414652,504,1682844,0]
[35]
[36,"FEDERAL INCOME TAX COMPUTATION"]
[37,null,"RETURN ON RATE BASE",null,null,{"$f":"F433","v":7904870},{"$f":"G433","v":7533282},{"$f":"H433","v":351190},{"$f":"I433","v":20398},{"$f":"J433","v":7904870},{"$f":"F666-J666","v":0}]
[38,null,{"$f":"'FR-16(7)(v)-1 Functional'!C667","v":"NET DEDUCTIONS AND ADDITIONS"},null,null,{"$f":"-F641","v":-11294959},{"$f":"-G641","v":-10819933},{"$f":"-H641","v":-452613},{"$f":"-I641","v":-22413},{"$f":"-J641","v":-11294959},{"$f":"F667-J667","v":0}]
[39,null,{"$f":"'FR-16(7)(v)-1 Functional'!C668","v":"TOTAL FEDERAL TAX ADJUSTMENTS"},null,null,{"$f":"F663","v":1682844},{"$f":"G663","v":267688},{"$f":"H663","v":1414652},{"$f":"I663","v":504},{"$f":"J663","v":1682844},{"$f":"F668-J668","v":0}]
[40,null,"TOTAL STATE PROV DEF IT (410 & 411)",null,null,{"$f":"F707","v":303712},{"$f":"G707","v":92461},{"$f":"H707","v":208244},{"$f":"I707","v":3007},{"$f":"J707","v":303712},{"$f":"F669-J669","v":0}]
[41,null,"RESERVED",null,null,{"$f":"F24","v":0},{"$f":"G24","v":0},{"$f":"H24","v":0},{"$f":"I24","v":0},{"$f":"J24","v":0},{"$f":"F670-J670","v":0}]
[42,null,{"$f":"'FR-16(7)(v)-1 Functional'!C671","v":"  BASE FOR FIT COMPUATION"},null,null,{"$f":"SUM(F666:F670)","v":-1403533},-2926502,1521473,1496,-1403533,0]
[43]
[44,null,{"$f":"'FR-16(7)(v)-1 Functional'!C673","v":"FIT FACTOR K190/(1-K190)"},null,null,{"$f":"ROUND(FIT/(1-FIT),9)","v":0.26582278500000001},{"$f":"ROUND(FIT/(1-FIT),9)","v":0.26582278500000001},{"$f":"ROUND(FIT/(1-FIT),9)","v":0.26582278500000001},{"$f":"ROUND(FIT/(1-FIT),9)","v":0.26582278500000001},null,{"$f":"ROUND(FIT/(1-FIT),9)","v":0.26582278500000001}]
[45,null,{"$f":"'FR-16(7)(v)-1 Functional'!C674","v":"PRELIM FED INCOME TAX"},null,null,{"$f":"'FR-16(7)(v)-14 TOTAL CLASS'!L674","v":-373091},{"$f":"F674-SUM(H674:I674)","v":-777931},{"$f":"'FR-16(7)(v)-4 PROD Energy'!L674+'FR-16(7)(v)-8 TRANS Energy'!L674+'FR-16(7)(v)-12 DIST Energy'!L674","v":404442},{"$f":"'FR-16(7)(v)-5 PROD Cust'!L674+'FR-16(7)(v)-9 TRANS Cust'!L674+'FR-16(7)(v)-13 DIST Cust'!L674","v":398},{"$f":"SUM(G674:I674)","v":-373091},{"$f":"F674-J674","v":0}]
[46,null,{"$f":"'FR-16(7)(v)-1 Functional'!C675","v":"TOTAL FEDERAL TAX ADJUSTMENTS"},null,null,{"$f":"F663","v":1682844},{"$f":"G663","v":267688},{"$f":"H663","v":1414652},{"$f":"I663","v":504},{"$f":"J663","v":1682844},{"$f":"F675-J675","v":0}]
[47,null,{"$f":"'FR-16(7)(v)-1 Functional'!C676","v":"  NET FED INCOME TAX ALLOWABLE"},null,null,{"$f":"SUM(F674:F675)","v":1309753},-510243,1819094,902,1309753,0]
[48]
[49,"INCOME TAX BASED ON RETURN"]
[50,"FEDERAL INCOME TAX PAYABLE"]
[51,null,{"$f":"'FR-16(7)(v)-1 Functional'!C680","v":"PRELIM FEDERAL INCOME TAX"},null,null,{"$f":"F674","v":-373091},-777931,404442,398,-373091,0]
[53,null,{"$f":"'FR-16(7)(v)-1 Functional'!C681","v":"  NET FED INCOME TAX PAYABLE"},null,null,{"$f":"SUM(F680:F680)","v":-373091},-777931,404442,398,-373091,0]
[]
[{"$f":"co_name","v":"DUKE ENERGY KENTUCKY, INC."},null,null,null,null,null,null,null,null,{"$f":"J1","v":"FR-16(7)(v)-20"}]
[{"$f":"$A$2","v":"DT SECONDARY CLASSIFIED - ELECTRIC COST OF SERVICE"},null,null,null,null,null,null,null,null,{"$f":"J2","v":"WITNESS RESPONSIBLE:"}]
[{"$f":"case_name","v":"CASE NO: 2019-00271"},null,null,null,null,null,null,null,null,{"$f":"Witness","v":"JAMES E. ZIOLKOWSKI"}]
[{"$f":"data_filing","v":"DATA: 12 MONTHS ACTUAL  & 0 MONTHS ESTIMATED"},null,null,null,null,null,null,null,null,{"$f":"\"PAGE \"&Pages2-2&\" OF \"&Pages2","v":"PAGE 13 OF 15"}]
[{"$f":"type","v":"TYPE OF FILING: \"X\" ORIGINAL   UPDATED    REVISED  "}]
[]
[]
["LINE",null,null,null,null,"TOTAL","CLASSIFIED",null,null,"TOTAL","ALL"]
["NO.","STATE INCOME TAX BASED ON RETURN",null,"Allo",null,"GAS",{"$f":"$G$9","v":"DEMAND"},{"$f":"$H$9","v":"ENERGY"},{"$f":"$I$9","v":"CUSTOMER"},"AT ISSUE","OTHER"]
[null,null,"Schedule 9.1",null,null,null,{"$f":"$G$10","v":3},{"$f":"$H$10","v":4},{"$f":"$I$10","v":5}]
[1,"DEDUCTIONS IN ADDITION TO Y871"]
[2,"KY TAXABLE INCOME ADJUSTMENT",null,{"$f":"'FR-16(7)(v)-1 Functional'!D694","v":"NP29"},null,{"$f":"'FR-16(7)(v)-14 TOTAL CLASS'!L694","v":1066282},{"$f":"'FR-16(7)(v)-3 PROD Demand'!L694+'FR-16(7)(v)-7 TRANS Demand'!L694+'FR-16(7)(v)-11 DIST Demand'!L694","v":1044635},{"$f":"'FR-16(7)(v)-4 PROD Energy'!L694+'FR-16(7)(v)-8 TRANS Energy'!L694+'FR-16(7)(v)-12 DIST Energy'!L694","v":19154},{"$f":"'FR-16(7)(v)-5 PROD Cust'!L694+'FR-16(7)(v)-9 TRANS Cust'!L694+'FR-16(7)(v)-13 DIST Cust'!L694","v":2493},{"$f":"SUM(G694:I694)","v":1066282},{"$f":"F694-J694","v":0}]
[3,"RESERVED FOR FUTURE USE",null,{"$f":"'FR-16(7)(v)-1 Functional'!D695","v":"NP29"},null,{"$f":"'FR-16(7)(v)-14 TOTAL CLASS'!L695","v":0},{"$f":"'FR-16(7)(v)-3 PROD Demand'!L695+'FR-16(7)(v)-7 TRANS Demand'!L695+'FR-16(7)(v)-11 DIST Demand'!L695","v":0},{"$f":"'FR-16(7)(v)-4 PROD Energy'!L695+'FR-16(7)(v)-8 TRANS Energy'!L695+'FR-16(7)(v)-12 DIST Energy'!L695","v":0},{"$f":"'FR-16(7)(v)-5 PROD Cust'!L695+'FR-16(7)(v)-9 TRANS Cust'!L695+'FR-16(7)(v)-13 DIST Cust'!L695","v":0},{"$f":"SUM(G695:I695)","v":0},{"$f":"F695-J695","v":0}]
[4,"  DEDUCTIONS IN ADD TO Y871",null,null,null,{"$f":"SUM(F694:F695)","v":1066282},1044635,19154,2493,1066282,0]
[5]
[6,"STATE INCOME TAX ADJUSTMENTS"]
[7,"STATE PROV DEF INC TAX (410 & 411)"]
[8,"OTHER DEFERRED INCOME TAXES - NET",null,{"$f":"'FR-16(7)(v)-1 Functional'!D700","v":"A357"},null,{"$f":"'FR-16(7)(v)-14 TOTAL CLASS'!L700","v":303712},{"$f":"'FR-16(7)(v)-3 PROD Demand'!L700+'FR-16(7)(v)-7 TRANS Demand'!L700+'FR-16(7)(v)-11 DIST Demand'!L700","v":92461},{"$f":"'FR-16(7)(v)-4 PROD Energy'!L700+'FR-16(7)(v)-8 TRANS Energy'!L700+'FR-16(7)(v)-12 DIST Energy'!L700","v":208244},{"$f":"'FR-16(7)(v)-5 PROD Cust'!L700+'FR-16(7)(v)-9 TRANS Cust'!L700+'FR-16(7)(v)-13 DIST Cust'!L700","v":3007},{"$f":"SUM(G700:I700)","v":303712},{"$f":"F700-J700","v":0}]
[9,"  TOT STATE PROV DEF IT (410 & 411)",null,null,null,{"$f":"SUM(F700)","v":303712},92461,208244,3007,303712,0]
[10]
[11,"OTHER SIT ADJUSTMENTS"]
[12,"CURRENT YEAR PAYABLE ADJUSTMENT",null,{"$f":"'FR-16(7)(v)-1 Functional'!D704","v":"NP29"},null,{"$f":"'FR-16(7)(v)-14 TOTAL CLASS'!L704","v":0},{"$f":"'FR-16(7)(v)-3 PROD Demand'!L704+'FR-16(7)(v)-7 TRANS Demand'!L704+'FR-16(7)(v)-11 DIST Demand'!L704","v":0},{"$f":"'FR-16(7)(v)-4 PROD Energy'!L704+'FR-16(7)(v)-8 TRANS Energy'!L704+'FR-16(7)(v)-12 DIST Energy'!L704","v":0},{"$f":"'FR-16(7)(v)-5 PROD Cust'!L704+'FR-16(7)(v)-9 TRANS Cust'!L704+'FR-16(7)(v)-13 DIST Cust'!L704","v":0},{"$f":"SUM(G704:I704)","v":0},{"$f":"F704-J704","v":0}]
[13,"  OTHER SIT ADJUSMENTS",null,null,null,{"$f":"SUM(F704)","v":0},0,0,0,0,0]
[14]
[15,"TOTAL STATE INC TAX ADJUSTMENT",null,null,null,{"$f":"F705+F701","v":303712},92461,208244,3007,303712,0]
[16]
[17,"INCOME TAX BASED ON RETURN"]
[18,"SUMMARY OF SIT CALCULATION"]
[19,"RETURN ON RATE BASE",null,null,null,{"$f":"F433","v":7904870},{"$f":"G433","v":7533282},{"$f":"H433","v":351190},{"$f":"I433","v":20398},{"$f":"J433","v":7904870},{"$f":"F711-J711","v":0}]
[20,"NET FED INCOME TAX ALLOWABLE",null,null,null,{"$f":"F676","v":1309753},{"$f":"G676","v":-510243},{"$f":"H676","v":1819094},{"$f":"I676","v":902},{"$f":"J676","v":1309753},0]
[21,"NET FED. DED. AND ADDITIONS",null,null,null,{"$f":"-F641","v":-11294959},{"$f":"-G641","v":-10819933},{"$f":"-H641","v":-452613},{"$f":"-I641","v":-22413},{"$f":"-J641","v":-11294959},0]
[22,"DEDUCTIONS IN ADD TO Y871",null,null,null,{"$f":"-F696","v":-1066282},{"$f":"-G696","v":-1044635},{"$f":"-H696","v":-19154},{"$f":"-I696","v":-2493},{"$f":"-J696","v":-1066282},0]
[23,"RESERVED",null,null,null,{"$f":"F24","v":0},{"$f":"G24","v":0},{"$f":"H24","v":0},{"$f":"I24","v":0},{"$f":"J24","v":0},0]
[24,"TOTAL STATE INC TAX ADJ",null,null,null,{"$f":"F707","v":303712},{"$f":"G707","v":92461},{"$f":"H707","v":208244},{"$f":"I707","v":3007},{"$f":"J707","v":303712},0]
[25,"  BASE FOR SIT COMPUTATION",null,null,null,{"$f":"SUM(F711:F716)","v":-2842906},-4749068,1906761,-599,-2842906,0]
[26]
[27,"SIT FACTOR K192/(1-K192)",null,null,null,{"$f":"ROUND(SIT/(1-SIT),8)","v":5.2282660000000002E-2},{"$f":"ROUND(SIT/(1-SIT),8)","v":5.2282660000000002E-2},{"$f":"ROUND(SIT/(1-SIT),8)","v":5.2282660000000002E-2},{"$f":"ROUND(SIT/(1-SIT),8)","v":5.2282660000000002E-2},null,{"$f":"ROUND(SIT/(1-SIT),8)","v":5.2282660000000002E-2}]
[28,"PRELIMINARY STATE INCOME TAX",null,null,null,{"$f":"ROUND(F717*F719,0)","v":-148635},{"$f":"'FR-16(7)(v)-3 PROD Demand'!L720+'FR-16(7)(v)-7 TRANS Demand'!L720+'FR-16(7)(v)-11 DIST Demand'!L720","v":-248294},{"$f":"ROUND(H717*H719,0)","v":99691},{"$f":"ROUND(I717*I719,0)","v":-31},{"$f":"SUM(G720:I720)","v":-148634},{"$f":"F720-J720","v":-1}]
[29,"TOTAL STATE INCOME TAX ADJ.",null,null,null,{"$f":"F707","v":303712},{"$f":"G707","v":92461},{"$f":"H707","v":208244},{"$f":"I707","v":3007},{"$f":"J707","v":303712},{"$f":"F721-J721","v":0}]
[30,"  NET STATE INC TAX ALLOWABLE",null,null,null,{"$f":"F721+F720","v":155077},-155833,307935,2976,155078,-1]
[31]
[32,"STATE INCOME TAX PAYABLE"]
[33,"PRELIMINARY STATE INCOME TAX",null,null,null,{"$f":"F720","v":-148635},{"$f":"G720","v":-248294},{"$f":"H720","v":99691},{"$f":"I720","v":-31},{"$f":"J720","v":-148634},{"$f":"F725-J725","v":-1}]
[34,"OTHER SIT ADJUSTMENTS",null,null,null,{"$f":"F705","v":0},{"$f":"G705","v":0},{"$f":"H705","v":0},{"$f":"I705","v":0},{"$f":"J705","v":0},{"$f":"F726-J726","v":0}]
[35,"  NET STATE INCOME TAX PAYABLE",null,null,null,{"$f":"F725+F726","v":-148635},-248294,99691,-31,-148634,-1]
[36]
[37,"COMPOSITE TAX RATE",null,null,null,{"$f":"(SIT*(1-FIT))+((1-SIT)*(1-FIT)*RevTax)+FIT","v":0.24925115},0.24925115,0.24925115,0.24925115,0.24925115,0.24925115]
[]
[{"$f":"co_name","v":"DUKE ENERGY KENTUCKY, INC."},null,null,null,null,null,null,null,null,{"$f":"J1","v":"FR-16(7)(v)-20"}]
[{"$f":"$A$2","v":"DT SECONDARY CLASSIFIED - ELECTRIC COST OF SERVICE"},null,null,null,null,null,null,null,null,{"$f":"J2","v":"WITNESS RESPONSIBLE:"}]
[{"$f":"case_name","v":"CASE NO: 2019-00271"},null,null,null,null,null,null,null,null,{"$f":"Witness","v":"JAMES E. ZIOLKOWSKI"}]
[{"$f":"data_filing","v":"DATA: 12 MONTHS ACTUAL  & 0 MONTHS ESTIMATED"},null,null,null,null,null,null,null,null,{"$f":"\"PAGE \"&Pages2-1&\" OF \"&Pages2","v":"PAGE 14 OF 15"}]
[{"$f":"type","v":"TYPE OF FILING: \"X\" ORIGINAL   UPDATED    REVISED  "}]
[]
[]
["LINE",null,null,null,null,"TOTAL","CLASSIFIED",null,null,"TOTAL","ALL"]
["NO.","COST OF SERVICE COMPUTATION",null,"ALLO",null,{"$f":"$F$9","v":"DT SECONDARY"},{"$f":"G9","v":"DEMAND"},"ENERGY","CUSTOMER","AT ISSUE","OTHER"]
[null,null,"Schedule 10",null,null,null,3,4,5]
[1,"OTHER OPERATING REVENUES"]
[2,null,{"$f":"'FR-16(7)(v)-1 Functional'!C742","v":"MISC SERVICE REVENUE"},{"$f":"'FR-16(7)(v)-1 Functional'!D742","v":"D249"},null,{"$f":"'FR-16(7)(v)-14 TOTAL CLASS'!L742","v":27318},{"$f":"'FR-16(7)(v)-3 PROD Demand'!L742+'FR-16(7)(v)-7 TRANS Demand'!L742+'FR-16(7)(v)-11 DIST Demand'!L742","v":27140},{"$f":"'FR-16(7)(v)-4 PROD Energy'!L742+'FR-16(7)(v)-8 TRANS Energy'!L742+'FR-16(7)(v)-12 DIST Energy'!L742","v":0},{"$f":"'FR-16(7)(v)-5 PROD Cust'!L742+'FR-16(7)(v)-9 TRANS Cust'!L742+'FR-16(7)(v)-13 DIST Cust'!L742","v":178},{"$f":"SUM(G742:I742)","v":27318},{"$f":"F742-J742","v":0}]
[3,null,{"$f":"'FR-16(7)(v)-1 Functional'!C743","v":"INTERDEPARTMENTAL"},{"$f":"'FR-16(7)(v)-1 Functional'!D743","v":"K902"},null,{"$f":"'FR-16(7)(v)-14 TOTAL CLASS'!L743","v":0},{"$f":"'FR-16(7)(v)-3 PROD Demand'!L743+'FR-16(7)(v)-7 TRANS Demand'!L743+'FR-16(7)(v)-11 DIST Demand'!L743","v":0},{"$f":"'FR-16(7)(v)-4 PROD Energy'!L743+'FR-16(7)(v)-8 TRANS Energy'!L743+'FR-16(7)(v)-12 DIST Energy'!L743","v":0},{"$f":"'FR-16(7)(v)-5 PROD Cust'!L743+'FR-16(7)(v)-9 TRANS Cust'!L743+'FR-16(7)(v)-13 DIST Cust'!L743","v":0},0,{"$f":"F743-J743","v":0}]
[4,null,{"$f":"'FR-16(7)(v)-1 Functional'!C744","v":"POLE & LINE ATTACHMENTS"},{"$f":"'FR-16(7)(v)-1 Functional'!D744","v":"D249"},null,{"$f":"'FR-16(7)(v)-14 TOTAL CLASS'!L744","v":23263},{"$f":"'FR-16(7)(v)-3 PROD Demand'!L744+'FR-16(7)(v)-7 TRANS Demand'!L744+'FR-16(7)(v)-11 DIST Demand'!L744","v":23112},{"$f":"'FR-16(7)(v)-4 PROD Energy'!L744+'FR-16(7)(v)-8 TRANS Energy'!L744+'FR-16(7)(v)-12 DIST Energy'!L744","v":0},{"$f":"'FR-16(7)(v)-5 PROD Cust'!L744+'FR-16(7)(v)-9 TRANS Cust'!L744+'FR-16(7)(v)-13 DIST Cust'!L744","v":151},23263,0]
[5,null,{"$f":"'FR-16(7)(v)-1 Functional'!C745","v":"RENTS"},{"$f":"'FR-16(7)(v)-1 Functional'!D745","v":"D249"},null,{"$f":"'FR-16(7)(v)-14 TOTAL CLASS'!L745","v":114459},{"$f":"'FR-16(7)(v)-3 PROD Demand'!L745+'FR-16(7)(v)-7 TRANS Demand'!L745+'FR-16(7)(v)-11 DIST Demand'!L745","v":113715},{"$f":"'FR-16(7)(v)-4 PROD Energy'!L745+'FR-16(7)(v)-8 TRANS Energy'!L745+'FR-16(7)(v)-12 DIST Energy'!L745","v":0},{"$f":"'FR-16(7)(v)-5 PROD Cust'!L745+'FR-16(7)(v)-9 TRANS Cust'!L745+'FR-16(7)(v)-13 DIST Cust'!L745","v":744},114459,0]
[6,null,{"$f":"'FR-16(7)(v)-1 Functional'!C746","v":"TRANSMISSION CHARGE PTP"},{"$f":"'FR-16(7)(v)-1 Functional'!D746","v":"T229"},null,{"$f":"'FR-16(7)(v)-14 TOTAL CLASS'!L746","v":19566},{"$f":"'FR-16(7)(v)-3 PROD Demand'!L746+'FR-16(7)(v)-7 TRANS Demand'!L746+'FR-16(7)(v)-11 DIST Demand'!L746","v":19566},{"$f":"'FR-16(7)(v)-4 PROD Energy'!L746+'FR-16(7)(v)-8 TRANS Energy'!L746+'FR-16(7)(v)-12 DIST Energy'!L746","v":0},{"$f":"'FR-16(7)(v)-5 PROD Cust'!L746+'FR-16(7)(v)-9 TRANS Cust'!L746+'FR-16(7)(v)-13 DIST Cust'!L746","v":0},19566,{"$f":"F746-J746","v":0}]
[7,null,{"$f":"'FR-16(7)(v)-1 Functional'!C747","v":"PJM REACTIVE REVENUE"},{"$f":"'FR-16(7)(v)-1 Functional'!D747","v":"K401"},null,{"$f":"'FR-16(7)(v)-14 TOTAL CLASS'!L747","v":0},{"$f":"'FR-16(7)(v)-3 PROD Demand'!L747+'FR-16(7)(v)-7 TRANS Demand'!L747+'FR-16(7)(v)-11 DIST Demand'!L747","v":0},{"$f":"'FR-16(7)(v)-4 PROD Energy'!L747+'FR-16(7)(v)-8 TRANS Energy'!L747+'FR-16(7)(v)-12 DIST Energy'!L747","v":0},{"$f":"'FR-16(7)(v)-5 PROD Cust'!L747+'FR-16(7)(v)-9 TRANS Cust'!L747+'FR-16(7)(v)-13 DIST Cust'!L747","v":0},0,{"$f":"F747-J747","v":0}]
[8,null,{"$f":"'FR-16(7)(v)-1 Functional'!C748","v":"OTHER TRANSMISSION REVENUES"},{"$f":"'FR-16(7)(v)-1 Functional'!D748","v":"T229"},null,{"$f":"'FR-16(7)(v)-14 TOTAL CLASS'!L748","v":3307},{"$f":"'FR-16(7)(v)-3 PROD Demand'!L748+'FR-16(7)(v)-7 TRANS Demand'!L748+'FR-16(7)(v)-11 DIST Demand'!L748","v":3307},{"$f":"'FR-16(7)(v)-4 PROD Energy'!L748+'FR-16(7)(v)-8 TRANS Energy'!L748+'FR-16(7)(v)-12 DIST Energy'!L748","v":0},{"$f":"'FR-16(7)(v)-5 PROD Cust'!L748+'FR-16(7)(v)-9 TRANS Cust'!L748+'FR-16(7)(v)-13 DIST Cust'!L748","v":0},3307,{"$f":"F748-J748","v":0}]
[9,null,{"$f":"'FR-16(7)(v)-1 Functional'!C749","v":"FIXED BILL PREMIUM"},{"$f":"'FR-16(7)(v)-1 Functional'!D749","v":"K902"},null,{"$f":"'FR-16(7)(v)-14 TOTAL CLASS'!L749","v":0},{"$f":"'FR-16(7)(v)-3 PROD Demand'!L749+'FR-16(7)(v)-7 TRANS Demand'!L749+'FR-16(7)(v)-11 DIST Demand'!L749","v":0},{"$f":"'FR-16(7)(v)-4 PROD Energy'!L749+'FR-16(7)(v)-8 TRANS Energy'!L749+'FR-16(7)(v)-12 DIST Energy'!L749","v":0},{"$f":"'FR-16(7)(v)-5 PROD Cust'!L749+'FR-16(7)(v)-9 TRANS Cust'!L749+'FR-16(7)(v)-13 DIST Cust'!L749","v":0},0,0]
[10,null,{"$f":"'FR-16(7)(v)-1 Functional'!C750","v":"  TOTAL OTHER OPERATING REVS"},null,null,{"$f":"SUM(F742:F749)","v":187913},186840,0,1073,187913,0]
[11]
[12,"COST OF SERVICE COMPUTATION"]
[13,null,{"$f":"'FR-16(7)(v)-1 Functional'!C753","v":"TOTAL OP EXP EXC INC & REV TAX"},null,null,{"$f":"F618","v":39314205},{"$f":"G618","v":14443821},{"$f":"H618","v":24796737},{"$f":"I618","v":73647},{"$f":"J618","v":39314205},{"$f":"F753-J753","v":0}]
[14,null,"RETURN ON RATE BASE",null,null,{"$f":"F433","v":7904870},{"$f":"G433","v":7533282},{"$f":"H433","v":351190},{"$f":"I433","v":20398},{"$f":"J433","v":7904870},{"$f":"F754-J754","v":0}]
[15,null,{"$f":"'FR-16(7)(v)-1 Functional'!C755","v":"NET FED INCOME TAX ALLOWABLE"},null,null,{"$f":"F676","v":1309753},{"$f":"G676","v":-510243},{"$f":"H676","v":1819094},{"$f":"I676","v":902},{"$f":"J676","v":1309753},{"$f":"F755-J755","v":0}]
[16,null,{"$f":"'FR-16(7)(v)-1 Functional'!C756","v":"NET STATE INCOME TAX ALLOWABLE"},null,null,{"$f":"F722","v":155077},{"$f":"G722","v":-155833},{"$f":"H722","v":307935},{"$f":"I722","v":2976},{"$f":"J722","v":155078},{"$f":"F756-J756","v":-1}]
[17,null,{"$f":"'FR-16(7)(v)-1 Functional'!C757","v":"TOTAL OTHER OPERATING REVENUES"},null,null,{"$f":"-F750","v":-187913},{"$f":"-G750","v":-186840},{"$f":"-H750","v":0},{"$f":"-I750","v":-1073},{"$f":"-J750","v":-187913},{"$f":"F757-J757","v":0}]
[18,null,{"$f":"'FR-16(7)(v)-1 Functional'!C758","v":"  SUBTOTAL B"},null,null,{"$f":"SUM(F752:F757)","v":48495992},{"$f":"SUM(G752:G757)","v":21124187},{"$f":"SUM(H752:H757)","v":27274956},{"$f":"SUM(I752:I757)","v":96850},{"$f":"SUM(J752:J757)","v":48495993},{"$f":"J758-F758","v":1}]
[19]
[20,null,{"$f":"'FR-16(7)(v)-1 Functional'!C760","v":"TOTAL OTHER OPERATING REVENUES"},null,null,{"$f":"-F757","v":187913},{"$f":"-G757","v":186840},{"$f":"-H757","v":0},{"$f":"-I757","v":1073},{"$f":"-J757","v":187913},{"$f":"F760-J760","v":0}]
[21,null,{"$f":"'FR-16(7)(v)-1 Functional'!C761","v":"LESS: REVS EXCL FROM REV TAX CALC"},null,null,{"$f":"'FR-16(7)(v)-14 TOTAL CLASS'!L761","v":0},{"$f":"'FR-16(7)(v)-3 PROD Demand'!L761+'FR-16(7)(v)-7 TRANS Demand'!L761+'FR-16(7)(v)-11 DIST Demand'!L761","v":0},{"$f":"'FR-16(7)(v)-4 PROD Energy'!L761+'FR-16(7)(v)-8 TRANS Energy'!L761+'FR-16(7)(v)-12 DIST Energy'!L761","v":0},{"$f":"'FR-16(7)(v)-5 PROD Cust'!L761+'FR-16(7)(v)-9 TRANS Cust'!L761+'FR-16(7)(v)-13 DIST Cust'!L761","v":0},{"$f":"SUM(G761:I761)","v":0},{"$f":"F761-J761","v":0}]
[22,null,{"$f":"'FR-16(7)(v)-1 Functional'!C762","v":"OTHER OPERATING REVS TO BE TAXED"},null,null,{"$f":"F760-F761","v":187913},186840,0,1073,187913,0]
[23]
[24,null,{"$f":"'FR-16(7)(v)-1 Functional'!C764","v":"REVENUE TAX FACTOR"},null,null,{"$f":"ROUND(F817/(1-F817),8)","v":0},0,0,0,0,0]
[25,null,{"$f":"'FR-16(7)(v)-1 Functional'!C765","v":"REVENUE TAX ON OTHER OPER. REVS"},null,null,{"$f":"ROUND(F764*F762,0)","v":0},{"$f":"ROUND(G764*G762,0)","v":0},{"$f":"ROUND(H764*H762,0)","v":0},{"$f":"ROUND(I764*I762,0)","v":0},{"$f":"SUM(G765:I765)","v":0},{"$f":"F765-J765","v":0}]
[26,null,{"$f":"'FR-16(7)(v)-1 Functional'!C766","v":"REVENUE TAX ON COST OF SERVICE"},null,null,{"$f":"ROUND(F764*F758,0)","v":0},{"$f":"ROUND(G764*G758,0)","v":0},{"$f":"ROUND(H764*H758,0)","v":0},{"$f":"ROUND(I764*I758,0)","v":0},{"$f":"SUM(G766:I766)","v":0},{"$f":"F766-J766","v":0}]
[27,null,{"$f":"'FR-16(7)(v)-1 Functional'!C767","v":"TOTAL REVENUE TAX"},null,null,{"$f":"F766+F765","v":0},0,0,0,0,0]
[28]
[29,null,"RESERVED",null,null,{"$f":"F24","v":0},{"$f":"G24","v":0},{"$f":"H24","v":0},{"$f":"I24","v":0},{"$f":"J24","v":0},{"$f":"F769-J769","v":0}]
[30,null,{"$f":"'FR-16(7)(v)-1 Functional'!C770","v":"  TOTAL ELECTRIC COST OF SERVICE"},null,null,{"$f":"F769+F767+F758","v":48495992},21124187,27274956,96850,48495993,1]
[31]
[32,"PROPOSED REVENUES ",null,null,null,{"$f":"'FR-16(7)(v)-14 TOTAL CLASS'!L772","v":29421555},{"$f":"'FR-16(7)(v)-3 PROD Demand'!L772+'FR-16(7)(v)-7 TRANS Demand'!L772+'FR-16(7)(v)-11 DIST Demand'!L772","v":8957023},{"$f":"'FR-16(7)(v)-4 PROD Energy'!L772+'FR-16(7)(v)-8 TRANS Energy'!L772+'FR-16(7)(v)-12 DIST Energy'!L772","v":20173291},{"$f":"'FR-16(7)(v)-5 PROD Cust'!L772+'FR-16(7)(v)-9 TRANS Cust'!L772+'FR-16(7)(v)-13 DIST Cust'!L772","v":291241},{"$f":"SUM(G772:I772)","v":29421555},{"$f":"F772-J772","v":0}]
[33,"TOTAL ELECTRIC COST OF SERVICE",null,null,null,{"$f":"-F770","v":-48495992},{"$f":"-G770","v":-21124187},{"$f":"-H770","v":-27274956},{"$f":"-I770","v":-96850},{"$f":"SUM(G773:I773)","v":-48495993},{"$f":"F773-J773","v":1}]
[34,"EXCESS REVENUES",null,null,null,{"$f":"F773+F772","v":-19074437},{"$f":"G773+G772","v":-12167164},{"$f":"H773+H772","v":-7101665},{"$f":"I773+I772","v":194391},{"$f":"SUM(G774:I774)","v":-19074438},{"$f":"F774-J774","v":1}]
[35,"COMPOSITE TAX RATE",null,null,null,{"$f":"F729","v":0.24925115},0.24925115,0.24925115,0.24925115,0.24925115,0.24925115]
[36,"EXCESS TAX",null,null,null,{"$f":"ROUND(F775*F774,0)","v":-4754325},{"$f":"'FR-16(7)(v)-3 PROD Demand'!L776+'FR-16(7)(v)-7 TRANS Demand'!L776+'FR-16(7)(v)-11 DIST Demand'!L776","v":-3032679},{"$f":"ROUND(H775*H774,0)","v":-1770098},{"$f":"ROUND(I775*I774,0)","v":48452},{"$f":"SUM(G776:I776)","v":-4754325},{"$f":"F776-J776","v":0}]
[37,"EXCESS RETURN",null,null,null,{"$f":"F774-F776","v":-14320112},{"$f":"'FR-16(7)(v)-3 PROD Demand'!L777+'FR-16(7)(v)-7 TRANS Demand'!L777+'FR-16(7)(v)-11 DIST Demand'!L777","v":-9134484},{"$f":"H774-H776","v":-5331567},{"$f":"I774-I776","v":145939},{"$f":"SUM(G777:I777)","v":-14320112},{"$f":"F777-J777","v":0}]
[]
[{"$f":"co_name","v":"DUKE ENERGY KENTUCKY, INC."},null,null,null,null,null,null,null,null,{"$f":"J1","v":"FR-16(7)(v)-20"}]
[{"$f":"$A$2","v":"DT SECONDARY CLASSIFIED - ELECTRIC COST OF SERVICE"},null,null,null,null,null,null,null,null,{"$f":"J2","v":"WITNESS RESPONSIBLE:"}]
[{"$f":"case_name","v":"CASE NO: 2019-00271"},null,null,null,null,null,null,null,null,{"$f":"Witness","v":"JAMES E. ZIOLKOWSKI"}]
[{"$f":"data_filing","v":"DATA: 12 MONTHS ACTUAL  & 0 MONTHS ESTIMATED"},null,null,null,null,null,null,null,null,{"$f":"\"PAGE \"&Pages2&\" OF \"&Pages2","v":"PAGE 15 OF 15"}]
[{"$f":"type","v":"TYPE OF FILING: \"X\" ORIGINAL   UPDATED    REVISED  "}]
[]
[]
["LINE",null,null,null,null,"TOTAL","CLASSIFIED",null,null,"TOTAL","ALL"]
["NO.","ROR, TAX RATES & SPEC FACTORS",null,"ALLO",null,{"$f":"$F$9","v":"DT SECONDARY"},{"$f":"G9","v":"DEMAND"},"ENERGY","CUSTOMER","AT ISSUE","OTHER"]
[null,null,"Schedule 11",null,null,null,3,4,5]
[1,"RATE OF RETURN"]
[2," CAPITALIZATION AMOUNTS",null,null,null,null,"RATIO"]
[3,null,{"$f":"'FR-16(7)(v)-1 Functional'!C791","v":"LONG TERM DEBT"},null,null,{"$f":"'FR-16(7)(v)-1 Functional'!$F$791","v":665948506},{"$f":"IF(TotalCap=0,0,ROUND(F791/TotalCap,4))","v":0.45929999999999999}]
[4,null,{"$f":"'FR-16(7)(v)-1 Functional'!C792","v":"PREFERRED STOCK"},null,null,{"$f":"'FR-16(7)(v)-1 Functional'!$F$792","v":0},{"$f":"IF(TotalCap=0,0,ROUND(F792/TotalCap,4))","v":0}]
[5,null,{"$f":"'FR-16(7)(v)-1 Functional'!C793","v":"COMMON STOCK"},null,null,{"$f":"[0]!Equity","v":699348680},{"$f":"1-G791-G792-G794-G795","v":0.48239999999999994}]
[6,null,{"$f":"'FR-16(7)(v)-1 Functional'!C794","v":"SHORT TERM DEBT"},null,null,{"$f":"'FR-16(7)(v)-1 Functional'!$F$794","v":84600060},{"$f":"IF(TotalCap=0,0,ROUND(F794/TotalCap,4))","v":5.8299999999999998E-2}]
[7,null,{"$f":"'FR-16(7)(v)-1 Functional'!C795","v":"UNAMORTIZED DISCOUNT"},null,null,{"$f":"'FR-16(7)(v)-1 Functional'!$F$795","v":0},{"$f":"IF(TotalCap=0,0,ROUND(F795/TotalCap,4))","v":0}]
[8,null,{"$f":"'FR-16(7)(v)-1 Functional'!C796","v":"  TOTAL"},null,null,{"$f":"SUM(F790:F795)","v":1449897246},{"$f":"SUM(G791:G795)","v":1}]
[9]
[10," COST OF CAPITAL"]
[11,null,{"$f":"'FR-16(7)(v)-1 Functional'!C799","v":"LONG TERM DEBT"},null,null,{"$f":"'FR-16(7)(v)-1 Functional'!$F$799","v":4.0730000000000002E-2}]
[12,null,{"$f":"'FR-16(7)(v)-1 Functional'!C800","v":"PREFERRED STOCK"},null,null,{"$f":"'FR-16(7)(v)-1 Functional'!$F$800","v":0}]
[13,null,{"$f":"'FR-16(7)(v)-1 Functional'!C801","v":"COMMON STOCK"},null,null,{"$f":"'FR-16(7)(v)-1 Functional'!$F$801","v":9.8000000000000004E-2}]
[14,null,{"$f":"'FR-16(7)(v)-1 Functional'!C802","v":"SHORT TERM DEBT"},null,null,{"$f":"'FR-16(7)(v)-1 Functional'!$F$802","v":1.9369999999999998E-2}]
[15,null,{"$f":"'FR-16(7)(v)-1 Functional'!C803","v":"UNAMORTIZED DISCOUNT"},null,null,{"$f":"'FR-16(7)(v)-1 Functional'!$F$803","v":0}]
[16]
[17," WEIGHTED COST OF CAPITAL"]
[18,null,{"$f":"'FR-16(7)(v)-1 Functional'!C806","v":"LONG TERM DEBT"},null,null,{"$f":"ROUND(G791*F799,4)","v":1.8700000000000001E-2}]
[19,null,{"$f":"'FR-16(7)(v)-1 Functional'!C807","v":"PREFERRED STOCK"},null,null,{"$f":"ROUND(G792*F800,4)","v":0}]
[20,null,{"$f":"'FR-16(7)(v)-1 Functional'!C808","v":"COMMON STOCK"},null,null,{"$f":"ROUND(G793*F801,4)","v":4.7300000000000002E-2}]
[21,null,{"$f":"'FR-16(7)(v)-1 Functional'!C809","v":"SHORT TERM DEBT"},null,null,{"$f":"ROUND(G794*F802,4)","v":1.1000000000000001E-3}]
[22,null,{"$f":"'FR-16(7)(v)-1 Functional'!C810","v":"UNAMORTIZED DISCOUNT"},null,null,{"$f":"ROUND(G795*F803,4)","v":0}]
[23,null,{"$f":"'FR-16(7)(v)-1 Functional'!C811","v":"  TOT RATE OF RETURN ALLOWABLE"},null,null,{"$f":"SUM(F806:F810)","v":6.7100000000000007E-2}]
[24]
[25,"TAX RATES AND SPECIAL FACTORS"]
[26,null,{"$f":"'FR-16(7)(v)-1 Functional'!C814","v":"SHORT TERM DEBT COST"},null,null,0,{"$f":"F814","v":0},{"$f":"F814","v":0},{"$f":"F814","v":0},{"$f":"F814","v":0},{"$f":"F814","v":0}]
[27,null,{"$f":"'FR-16(7)(v)-1 Functional'!C815","v":"FEDERAL INCOME TAX RATE"},null,null,0.35,{"$f":"FIT","v":0.21},{"$f":"FIT","v":0.21},{"$f":"FIT","v":0.21},{"$f":"FIT","v":0.21},{"$f":"FIT","v":0.21}]
[28,null,{"$f":"'FR-16(7)(v)-1 Functional'!C816","v":"STATE INCOME TAX RATE"},null,null,{"$f":"SIT","v":4.9685000000000007E-2},4.9685000000000007E-2,4.9685000000000007E-2,4.9685000000000007E-2,4.9685000000000007E-2,4.9685000000000007E-2]
[29,null,{"$f":"'FR-16(7)(v)-1 Functional'!C817","v":"REVENUE TAX RATE"},null,null,0,{"$f":"RevTax","v":0},{"$f":"RevTax","v":0},{"$f":"RevTax","v":0},{"$f":"RevTax","v":0},{"$f":"RevTax","v":0}]
[]
[]
[]
[]
[]
[]
[]
[]
[]
[]
[]
[]
[]
[]
[]
[]
[]
[]
[]
[]
[]
[]
[]
[]
[]
[]
[]
[]
[]
[]
[]
[]
[]
[]
[]
[]
[]
[]
[]
[]
[]
[]
[]
[]
[]
[]
[]
[]
[]
[]
[]
[]
[]
[]
[]
[]
[]
[]
[]
[]
[]
[]
[]
[]
[]
[]
[]
[]
[]
[]
[]
[]
[]
[]
[]
[]
[]
[]
[]
[]
[]
[]
[]
[]
[]
[]
[]
[]
[]
[]
[]
[]
[]
[]
[]
[]
[]
[]
[]
[]
[]
[]
[]
[]
[]
[]
[]
[]
[]
[]
[]
[]
[]
[]
[]
[]
[]
[]
[]
[]
[]
[]
[]
[]
[]
[]
[]
[]
[]
[]
[]
[]
[]
[]
[]
[]
[]
[]
[]
[]
[]
[]
[]
[]
[]
[]
[]
[]
[]
[]
[]
[]
[]
[]
[]
[]
[]
[]
[]
[]
[]
[]
[]
[]
[]
[]
["DO NOT FILE THIS PAGE"]
[]
[{"$f":"co_name","v":"DUKE ENERGY KENTUCKY, INC."},null,null,null,null,null,null,null,null,{"$f":"J1","v":"FR-16(7)(v)-20"}]
[{"$f":"$A$2","v":"DT SECONDARY CLASSIFIED - ELECTRIC COST OF SERVICE"},null,null,null,null,null,null,null,null,{"$f":"J2","v":"WITNESS RESPONSIBLE:"}]
[{"$f":"case_name","v":"CASE NO: 2019-00271"},null,null,null,null,null,null,null,null,{"$f":"Witness","v":"JAMES E. ZIOLKOWSKI"}]
[{"$f":"data_filing","v":"DATA: 12 MONTHS ACTUAL  & 0 MONTHS ESTIMATED"},null,null,null,null,null,null,null,null,{"$f":"\"PAGE \"&Pages2&\" OF \"&Pages2","v":"PAGE 15 OF 15"}]
[{"$f":"type","v":"TYPE OF FILING: \"X\" ORIGINAL   UPDATED    REVISED  "}]
[]
[]
["LINE",null,null,null,null,"TOTAL","CLASSIFIED",null,null,"TOTAL","ALL"]
["NO.","INCOME TAX BASED ON REVENUES",null,"ALLO",null,{"$f":"$F$9","v":"DT SECONDARY"},"DEMAND","COMMODITY","CUSTOMER","AT ISSUE","OTHER"]
[null,null,"Schedule 13",null,null,null,{"$f":"G10","v":3},{"$f":"H10","v":4},{"$f":"I10","v":5}]
[1,"NET INCOME COMPUTATION"]
[2,null,{"$f":"'FR-16(7)(v)-1 Functional'!C1008","v":"TOTAL ELECTRIC COST OF SERVICE"},null,null,{"$f":"F770","v":48495992},21124187,27274956,96850,48495993,1]
[3,null,{"$f":"'FR-16(7)(v)-1 Functional'!C1009","v":"TOTAL OTHER OPERATING REVENUES"},null,null,{"$f":"F750","v":187913},186840,0,1073,187913,0]
[4,null,{"$f":"'FR-16(7)(v)-1 Functional'!C1010","v":"  TOTAL ELECTRIC REVENUE"},null,null,{"$f":"SUM(F996:F998)","v":48683905},21311027,27274956,97923,48683906,1]
[5,null,{"$f":"'FR-16(7)(v)-1 Functional'!C1011","v":"TOTAL OP EXP EX INC & REV TAX"},null,null,{"$f":"-F618","v":-39314205},-14443821,-24796737,-73647,-39314205,0]
[6,null,{"$f":"'FR-16(7)(v)-1 Functional'!C1012","v":"FIRM SERVICE REVENUE TAX"},null,null,{"$f":"-ROUND(F817*F997,0)","v":0},{"$f":"-ROUND(G817*G997,0)","v":0},{"$f":"-ROUND(H817*H997,0)","v":0},{"$f":"-ROUND(I817*I997,0)","v":0},{"$f":"SUM(G1001:I1001)","v":0},{"$f":"-ROUND('FR-16(7)(v)-1 Functional'!K817*K997,0)","v":0}]
[7,null,{"$f":"'FR-16(7)(v)-1 Functional'!C1013","v":"  NET INCOME"},null,null,{"$f":"SUM(F999:F1001)","v":9369700},{"$f":"SUM(G999:G1001)","v":6867206},{"$f":"SUM(H999:H1001)","v":2478219},{"$f":"SUM(I999:I1001)","v":24276},{"$f":"SUM(G1002:I1002)","v":9369701},{"$f":"SUM(K999:K1001)","v":1}]
[8]
[9,"ADJUSTMENTS TO NET INCOME"]
[10,null,{"$f":"'FR-16(7)(v)-1 Functional'!C1016","v":"TOTAL INTEREST EXPENSE"},null,null,{"$f":"-F633","v":-2336706},-2226863,-103813,-6030,-2336706,0]
[11,null,{"$f":"'FR-16(7)(v)-1 Functional'!C1017","v":"TOTAL OTHER DEDUCTIONS"},null,null,{"$f":"-F639","v":-8958253},-8593070,-348800,-16383,-8958253,0]
[12,null,{"$f":"'FR-16(7)(v)-1 Functional'!C1018","v":"  PRELIMINARY TAXABLE INCOME"},null,null,{"$f":"SUM(F1004:F1006)+F1002","v":-1925259},{"$f":"SUM(G1004:G1006)+G1002","v":-3952727},{"$f":"SUM(H1004:H1006)+H1002","v":2025606},{"$f":"SUM(I1004:I1006)+I1002","v":1863},{"$f":"SUM(G1007:I1007)","v":-1925258},{"$f":"SUM(K1004:K1006)+K1002","v":1}]
[13]
[14,"INCOME TAX BASED ON REVENUES"]
[15,"FEDERAL INCOME TAX COMPUTATION"]
[16,null,{"$f":"'FR-16(7)(v)-1 Functional'!C1022","v":"PRELIMINARY TAXABLE INCOME"},null,null,{"$f":"F1007","v":-1925259},-3952727,2025606,1863,-1925258,1]
[17,null,{"$f":"'FR-16(7)(v)-1 Functional'!C1023","v":"  NET FEDERAL TAXABLE INCOME"},null,null,{"$f":"SUM(F1011:F1011)","v":-1925259},-3952727,2025606,1863,-1925258,1]
[18,null,{"$f":"'FR-16(7)(v)-1 Functional'!C1024","v":"  FEDERAL INCOME TAX RATE"},null,null,{"$f":"F815","v":0.35},{"$f":"G815","v":0.21},{"$f":"H815","v":0.21},{"$f":"I815","v":0.21},null,{"$f":"'FR-16(7)(v)-1 Functional'!K815","v":0.21}]
[19,null,{"$f":"'FR-16(7)(v)-1 Functional'!C1025","v":"PRELIMINARY FIT = FI01 * K190"},null,null,{"$f":"ROUND(F1013*F1012,0)","v":-673841},{"$f":"ROUND(G1013*G1012,0)","v":-830073},{"$f":"ROUND(H1013*H1012,0)","v":425377},{"$f":"ROUND(I1013*I1012,0)","v":391},{"$f":"SUM(G1014:I1014)","v":-404305},{"$f":"ROUND(K1013*K1012,0)","v":0}]
[20,null,{"$f":"'FR-16(7)(v)-1 Functional'!C1026","v":"TOTAL FED DEF IT (410 & 411)"},null,null,{"$f":"F649","v":1682897},267740,1414653,504,1682897,0]
[21,null,{"$f":"'FR-16(7)(v)-1 Functional'!C1027","v":"TOTAL AMORTIZED ITC"},null,null,{"$f":"-F653","v":-53},-52,-1,0,-53,0]
[22,null,{"$f":"'FR-16(7)(v)-1 Functional'!C1028","v":"  NET FED INC TAX ALLOWABLE"},null,null,{"$f":"SUM(F1014:F1016)","v":1009003},-562385,1840029,895,1278539,0]
[23]
[24,"FEDERAL INCOME TAX PAYABLE"]
[25,null,{"$f":"'FR-16(7)(v)-1 Functional'!C1031","v":"PRELIM FIT"},null,null,{"$f":"F1014","v":-673841},-830073,425377,391,-404305,0]
[26,null,{"$f":"'FR-16(7)(v)-1 Functional'!C1032","v":"TEST YEAR INV TAX CREDIT"},null,null,{"$f":"-F658","v":0},0,0,0,0,0]
[27,null,{"$f":"'FR-16(7)(v)-1 Functional'!C1033","v":"  FED INC TAX PAYABLE"},null,null,{"$f":"SUM(F1019:F1021)","v":-673841},-830073,425377,391,-404305,0]
[28]
[29,"PRELIMINARY SUMMARY"]
[30,null,{"$f":"'FR-16(7)(v)-1 Functional'!C1036","v":"NET INCOME"},null,null,{"$f":"F1002","v":9369700},6867206,2478219,24276,9369701,1]
[31,null,{"$f":"'FR-16(7)(v)-1 Functional'!C1037","v":"NET FED INC TAX ALLOWABLE"},null,null,{"$f":"-F1017","v":-1009003},562385,-1840029,-895,-1278539,0]
[32,null,{"$f":"'FR-16(7)(v)-1 Functional'!C1038","v":"  OVERALL RETURN EARNED"},null,null,{"$f":"SUM(F1024:F1026)","v":8360697},7429591,638190,23381,8091162,1]
[33]
[34,null,{"$f":"'FR-16(7)(v)-1 Functional'!C1040","v":"  RATE OF RETURN EARNED"},null,null,{"$f":"IF(F426=0,0,ROUND(F1027/F426,5))","v":7.1080000000000004E-2},6.6280000000000006E-2,0.12196,7.6410000000000006E-2,6.8790000000000004E-2,0]

{"sheet":"FR-16(7)(v)-21 DTP Classified","index":25,"n_rows":1029,"n_cols":14,"rows_kept":1029,"cut":false,"hidden":false,"merged":[]}
[{"$f":"co_name","v":"DUKE ENERGY KENTUCKY, INC."},null,null,null,null,null,null,null,null,"FR-16(7)(v)-21"]
[{"$f":"F9&\" \"&\"CLASSIFIED - ELECTRIC COST OF SERVICE\"","v":"DT PRIMARY CLASSIFIED - ELECTRIC COST OF SERVICE"},null,null,null,null,null,null,null,null,"WITNESS RESPONSIBLE:"]
[{"$f":"case_name","v":"CASE NO: 2019-00271"},null,null,null,null,null,null,null,null,{"$f":"Witness","v":"JAMES E. ZIOLKOWSKI"}]
[{"$f":"data_filing","v":"DATA: 12 MONTHS ACTUAL  & 0 MONTHS ESTIMATED"},null,null,null,null,null,null,null,null,{"$f":"\"PAGE \"&Pages2-14&\" OF \"&Pages2","v":"PAGE 1 OF 15"}]
[{"$f":"type","v":"TYPE OF FILING: \"X\" ORIGINAL   UPDATED    REVISED  "}]
[]
[]
["LINE",null,null,null,null,"TOTAL","CLASSIFIED",null,null,"TOTAL","ALL"]
["NO.","SUMMARY OF RESULTS",null,"ALLO",null,"DT PRIMARY","DEMAND","ENERGY","CUSTOMER","AT ISSUE","OTHER"]
[null,null,"Schedule 1",null,null,null,3,4,5]
[1,"NET INCOME COMPUTATION"]
[2,null,{"$f":"'FR-16(7)(v)-1 Functional'!C12","v":"GROSS ELECTRIC PLANT IN SERVICE"},null,null,{"$f":"F123","v":161404647},{"$f":"G123","v":157842100},{"$f":"H123","v":3502974},{"$f":"I123","v":59573},{"$f":"SUM(G12:I12)","v":161404647},{"$f":"F12-J12","v":0}]
[3,null,{"$f":"'FR-16(7)(v)-1 Functional'!C13","v":"TOTAL DEPRECIATION RESERVE"},null,null,{"$f":"-F200","v":-66655247},{"$f":"-G200","v":-64923162},{"$f":"-H200","v":-1708495},{"$f":"-I200","v":-23590},{"$f":"SUM(G13:I13)","v":-66655247},{"$f":"F13-J13","v":0}]
[4,null,{"$f":"'FR-16(7)(v)-1 Functional'!C14","v":"TOTAL RATE BASE ADJUSTMENTS"},null,null,{"$f":"F421","v":-17070734},{"$f":"G421","v":-18905743},{"$f":"H421","v":1838624},{"$f":"I421","v":-3615},{"$f":"SUM(G14:I14)","v":-17070734},{"$f":"F14-J14","v":0}]
[5,null,{"$f":"'FR-16(7)(v)-1 Functional'!C15","v":"  TOTAL RATE BASE"},null,null,{"$f":"SUM(F12:F14)","v":77678666},74013195,3633103,32368,77678666,0]
[6]
[7,"OPERATING EXPENSES"]
[8,null,{"$f":"'FR-16(7)(v)-1 Functional'!C18","v":"TOTAL O&M EXPENSE"},null,null,{"$f":"F549","v":20687129},{"$f":"G549","v":3696925},{"$f":"H549","v":16992283},{"$f":"I549","v":-2079},{"$f":"SUM(G18:I18)","v":20687129},{"$f":"F18-J18","v":0}]
[9,null,{"$f":"'FR-16(7)(v)-1 Functional'!C19","v":"TOTAL DEPRECIATION EXPENSE"},null,null,{"$f":"F582","v":4911695},{"$f":"G582","v":4696773},{"$f":"H582","v":213957},{"$f":"I582","v":965},{"$f":"SUM(G19:I19)","v":4911695},{"$f":"F19-J19","v":0}]
[10,null,{"$f":"'FR-16(7)(v)-1 Functional'!C20","v":"TOTAL OTHER TAX & MISC EXPENSE"},null,null,{"$f":"F612","v":1177258},{"$f":"G612","v":1118023},{"$f":"H612","v":57501},{"$f":"I612","v":1734},{"$f":"SUM(G20:I20)","v":1177258},{"$f":"F20-J20","v":0}]
[11,null,{"$f":"'FR-16(7)(v)-1 Functional'!C21","v":"  TOTAL OP EXP EXCLUDING INC & REV TAX"},null,null,{"$f":"SUM(F17:F20)","v":26776082},9511721,17263741,620,26776082,0]
[12,null,{"$f":"'FR-16(7)(v)-1 Functional'!C22","v":"NET FED INCOME TAX EXP ALLOWABLE"},null,null,{"$f":"F676","v":927754},{"$f":"G676","v":-338919},{"$f":"H676","v":1266572},{"$f":"I676","v":101},{"$f":"SUM(G22:I22)","v":927754},{"$f":"F22-J22","v":0}]
[13,null,"NET STATE INCOME TAX EXP ALLOWABLE",null,null,{"$f":"F722","v":110080},{"$f":"G722","v":-104135},{"$f":"H722","v":214409},{"$f":"I722","v":-193},{"$f":"SUM(G23:I23)","v":110081},{"$f":"F23-J23","v":-1}]
[14,null,"RESERVED",{"$f":"'FR-16(7)(v)-1 Functional'!D24","v":"CW29"},null,{"$f":"'FR-16(7)(v)-14 TOTAL CLASS'!M24","v":0},{"$f":"'FR-16(7)(v)-3 PROD Demand'!M24+'FR-16(7)(v)-7 TRANS Demand'!M24+'FR-16(7)(v)-11 DIST Demand'!M24","v":0},{"$f":"'FR-16(7)(v)-4 PROD Energy'!M24+'FR-16(7)(v)-8 TRANS Energy'!M24+'FR-16(7)(v)-12 DIST Energy'!M24","v":0},{"$f":"'FR-16(7)(v)-5 PROD Cust'!M24+'FR-16(7)(v)-9 TRANS Cust'!M24+'FR-16(7)(v)-13 DIST Cust'!M24","v":0},{"$f":"SUM(G24:I24)","v":0},{"$f":"F24-J24","v":0}]
[15,null,{"$f":"'FR-16(7)(v)-1 Functional'!C25","v":"REVENUE TAX"},null,null,{"$f":"F767","v":0},{"$f":"G767","v":0},{"$f":"H767","v":0},{"$f":"I767","v":0},{"$f":"SUM(G25:I25)","v":0},{"$f":"F25-J25","v":0}]
[16,null,{"$f":"'FR-16(7)(v)-1 Functional'!C26","v":"  TOTAL OPERATING EXPENSE"},null,null,{"$f":"SUM(F21:F25)","v":27813916},9068667,18744722,528,27813917,-1]
[17]
[18,"RETURN ON RATE BASE",null,null,null,{"$f":"F433","v":5220165},{"$f":"G433","v":4974218},{"$f":"H433","v":243826},{"$f":"I433","v":2121},{"$f":"SUM(G28:I28)","v":5220165},{"$f":"F28-J28","v":0}]
[19,"TOTAL OTHER OPERATING REVENUES",null,null,null,{"$f":"-F750","v":-123253},{"$f":"-G750","v":-123117},{"$f":"-H750","v":0},{"$f":"-I750","v":-136},{"$f":"SUM(G29:I29)","v":-123253},{"$f":"F29-J29","v":0}]
[20,null,{"$f":"'FR-16(7)(v)-1 Functional'!C30","v":"TOTAL ELECTRIC COST OF SERVICE"},null,null,{"$f":"SUM(F26:F29)","v":32910828},{"$f":"SUM(G26:G29)","v":13919768},{"$f":"SUM(H26:H29)","v":18988548},{"$f":"SUM(I26:I29)","v":2513},{"$f":"SUM(J26:J29)","v":32910829},{"$f":"F30-J30","v":-1}]
[21,"ADJUSTMENT FOR INTERCLASS SUBSIDIZATION",null,{"$f":"1-'WP FR-16(7)(v) Rate Incr'!I11","v":0.95},null,{"$f":"SUM(G31:I31)","v":647497},{"$f":"'WP FR-16(7)(v) Rate Incr'!T21","v":475502},{"$f":"'WP FR-16(7)(v) Rate Incr'!U15","v":0},{"$f":"'WP FR-16(7)(v) Rate Incr'!V21","v":171995},null,{"$f":"F31-J31","v":647497}]
[22,{"$f":"'FR-16(7)(v)-1 Functional'!$B$32","v":"REQUESTED REVENUES (COST OF SERVICE ADJUSTED FOR SUBSIDIES)"},null,null,null,{"$f":"F30+F31","v":33558325},14395270,18988548,174508,32910829,647496]
[23,"PROPOSED REVENUES",null,null,null,{"$f":"'FR-16(7)(v)-14 TOTAL CLASS'!M33","v":33522516},{"$f":"'FR-16(7)(v)-3 PROD Demand'!M33+'FR-16(7)(v)-7 TRANS Demand'!M33+'FR-16(7)(v)-11 DIST Demand'!M33","v":5821837},{"$f":"'FR-16(7)(v)-4 PROD Energy'!M33+'FR-16(7)(v)-8 TRANS Energy'!M33+'FR-16(7)(v)-12 DIST Energy'!M33","v":14045547},{"$f":"'FR-16(7)(v)-5 PROD Cust'!M33+'FR-16(7)(v)-9 TRANS Cust'!M33+'FR-16(7)(v)-13 DIST Cust'!M33","v":-18546},{"$f":"SUM(G33:I33)","v":19848838},{"$f":"F33-J33","v":13673678}]
[24,"DIFFERENCE (REQUESTED LESS PROPOSED)",null,null,null,{"$f":"F32-F33","v":35809},8573433,4943001,193054,13061991,-13026182]
[25]
[26,"TOTAL RETURN EARNED",null,null,null,{"$f":"F777+F28","v":-4586109},{"$f":"G777+G28","v":-1105294},{"$f":"H777+H28","v":-3467126},{"$f":"I777+I28","v":-13689},{"$f":"J777+J28","v":-4586109},{"$f":"F36-J36","v":0}]
[27,"RATE OF RETURN EARNED",null,null,null,{"$f":"IF(F431=0,0,ROUND(F36/F431,5))","v":-5.8959999999999999E-2},-1.491E-2,-0.95428000000000002,-0.43303000000000003,-5.8959999999999999E-2,0]
[28,"TOTAL RATE OF RETURN ALLOWABLE",null,null,null,{"$f":"$F$811","v":6.7100000000000007E-2},{"$f":"F811","v":6.7100000000000007E-2},{"$f":"F811","v":6.7100000000000007E-2},{"$f":"F811","v":6.7100000000000007E-2},{"$f":"F811","v":6.7100000000000007E-2},{"$f":"IF(K37=0,0,F811)","v":0},null,null,"Not Part of print range"]
[29,"RETURN EARNED ON COMMON EQUITY",null,null,null,{"$f":"IF(Equity=0,0,(F37-$F$806-$F$807-$F$809)*TotalCap/Equity)","v":-0.16328608369570385},{"$f":"IF(Equity=0,0,(G37-$F$806-$F$807-$F$809)*TotalCap/Equity)","v":-7.1961147347357535E-2},{"$f":"IF(Equity=0,0,(H37-F806-F807-F809)*TotalCap/Equity)","v":-2.0194731895163942},{"$f":"IF(Equity=0,0,(I37-F806-F807-F809)*TotalCap/Equity)","v":-0.93881205281774471},{"$f":"IF(Equity=0,0,(J37-F806-F807-F809)*TotalCap/Equity)","v":-0.16328608369570385},{"$f":"IF(OR(E793=0,K37=0)=TRUE,0,(K37-E806-E807-E809)*E796/E793)","v":0},null,null,"Not Filed"]
[30,"ALLOWED RETURN ON COMMON EQUITY",null,null,null,{"$f":"IF(Equity=0,0,(F38-$F$806-$F$807-$F$809)*TotalCap/Equity)","v":9.8062871493229981E-2},{"$f":"IF(Equity=0,0,(G38-F806-F807-F809)*TotalCap/Equity)","v":9.8062871493229981E-2},{"$f":"IF(Equity=0,0,(H38-F806-F807-F809)*TotalCap/Equity)","v":9.8062871493229981E-2},{"$f":"IF(Equity=0,0,(I38-F806-F807-F809)*TotalCap/Equity)","v":9.8062871493229981E-2},{"$f":"IF(Equity=0,0,(J38-F806-F807-F809)*TotalCap/Equity)","v":9.8062871493229981E-2},{"$f":"IF(OR(Equity=0,K38=0)=TRUE,0,(K38-F806-F807-F809)*TotalCap/Equity)","v":0}]
[31,null,null,null,null," "]
[32,"PRESENT REVENUES",null,null,null,{"$f":"'FR-16(7)(v)-14 TOTAL CLASS'!M42","v":29943872},{"$f":"F42-SUM(H42:I42)","v":13334483},{"$f":"'FR-16(7)(v)-4 PROD Energy'!M42","v":16607160},{"$f":"'FR-16(7)(v)-13 DIST Cust'!M42","v":2229},{"$f":"SUM(G42:I42)","v":29943872},{"$f":"F42-J42","v":0}]
[33,"REVENUE INCREASE JUSTIFIED",null,null,null,{"$f":"F30-F42","v":2966956},585285,2381388,284,2966957,-1]
[34,null,"PER UNIT PRES REV",null,null,{"$f":"IF(F42=0,0,ROUND(F43/F42,5))","v":9.9080000000000001E-2},4.3889999999999998E-2,0.1434,0.12741,9.9080000000000001E-2,0]
[35,"REVENUE INCREASE REQUESTED",null,null,null,{"$f":"F33-F42","v":3578644},-7512646,-2561613,-20775,-10095034,13673678]
[36,null,"PER UNIT PRES REV",null,null,{"$f":"IF(F42=0,0,ROUND(F45/F42,5))","v":0.11951000000000001},-0.56340000000000001,-0.15425,-9.3203200000000006,-0.33712999999999999,0]
[]
[{"$f":"co_name","v":"DUKE ENERGY KENTUCKY, INC."},null,null,null,null,null,null,null,null,{"$f":"J1","v":"FR-16(7)(v)-21"}]
[{"$f":"$A$2","v":"DT PRIMARY CLASSIFIED - ELECTRIC COST OF SERVICE"},null,null,null,null,null,null,null,null,{"$f":"J2","v":"WITNESS RESPONSIBLE:"}]
[{"$f":"case_name","v":"CASE NO: 2019-00271"},null,null,null,null,null,null,null,null,{"$f":"Witness","v":"JAMES E. ZIOLKOWSKI"}]
[{"$f":"data_filing","v":"DATA: 12 MONTHS ACTUAL  & 0 MONTHS ESTIMATED"},null,null,null,null,null,null,null,null,{"$f":"\"PAGE \"&Pages2-13&\" OF \"&Pages2","v":"PAGE 2 OF 15"}]
[{"$f":"type","v":"TYPE OF FILING: \"X\" ORIGINAL   UPDATED    REVISED  "}]
[]
[]
["LINE",null,null,null,null,"TOTAL","CLASSIFIED",null,null,"TOTAL","ALL"]
["NO.","GROSS ELECTRIC PLANT IN SERVICE",null,"ALLO",null,{"$f":"$F$9","v":"DT PRIMARY"},{"$f":"G9","v":"DEMAND"},"ENERGY","CUSTOMER","AT ISSUE","OTHER"]
[null,null,"Schedule 2",null,null,null,3,4,5,null," "]
[1,"PRODUCTION PLANT"]
[2,null,"PRODUCTION STEAM",{"$f":"'FR-16(7)(v)-1 Functional'!D59","v":"K201"},null,{"$f":"'FR-16(7)(v)-14 TOTAL CLASS'!M59","v":74520731},{"$f":"'FR-16(7)(v)-3 PROD Demand'!M59+'FR-16(7)(v)-7 TRANS Demand'!M59+'FR-16(7)(v)-11 DIST Demand'!M59","v":74520731},{"$f":"'FR-16(7)(v)-4 PROD Energy'!M59+'FR-16(7)(v)-8 TRANS Energy'!M59+'FR-16(7)(v)-12 DIST Energy'!M59","v":0},{"$f":"'FR-16(7)(v)-5 PROD Cust'!M59+'FR-16(7)(v)-9 TRANS Cust'!M59+'FR-16(7)(v)-13 DIST Cust'!M59","v":0},{"$f":"SUM(G59:I59)","v":74520731},{"$f":"F59-J59","v":0}]
[3,null,"PRODUCTION OTHER",{"$f":"'FR-16(7)(v)-1 Functional'!D60","v":"K201"},null,{"$f":"'FR-16(7)(v)-14 TOTAL CLASS'!M60","v":33315651},{"$f":"'FR-16(7)(v)-3 PROD Demand'!M60+'FR-16(7)(v)-7 TRANS Demand'!M60+'FR-16(7)(v)-11 DIST Demand'!M60","v":33315651},{"$f":"'FR-16(7)(v)-4 PROD Energy'!M60+'FR-16(7)(v)-8 TRANS Energy'!M60+'FR-16(7)(v)-12 DIST Energy'!M60","v":0},{"$f":"'FR-16(7)(v)-5 PROD Cust'!M60+'FR-16(7)(v)-9 TRANS Cust'!M60+'FR-16(7)(v)-13 DIST Cust'!M60","v":0},{"$f":"SUM(G60:I60)","v":33315651},{"$f":"F60-J60","v":0}]
[4,null,{"$f":"'FR-16(7)(v)-1 Functional'!C61","v":"ADJUSTMENT"},{"$f":"'FR-16(7)(v)-1 Functional'!D61","v":"K201"},null,{"$f":"'FR-16(7)(v)-14 TOTAL CLASS'!M61","v":0},{"$f":"'FR-16(7)(v)-3 PROD Demand'!M61+'FR-16(7)(v)-7 TRANS Demand'!M61+'FR-16(7)(v)-11 DIST Demand'!M61","v":0},{"$f":"'FR-16(7)(v)-4 PROD Energy'!M61+'FR-16(7)(v)-8 TRANS Energy'!M61+'FR-16(7)(v)-12 DIST Energy'!M61","v":0},{"$f":"'FR-16(7)(v)-5 PROD Cust'!M61+'FR-16(7)(v)-9 TRANS Cust'!M61+'FR-16(7)(v)-13 DIST Cust'!M61","v":0},{"$f":"SUM(G61:I61)","v":0},{"$f":"F61-J61","v":0}]
[5,null,{"$f":"'FR-16(7)(v)-1 Functional'!C62","v":"  PRODUCTION PLANT IN SERVICE"},null,null,{"$f":"SUM(F59:F61)","v":107836382},107836382,0,0,107836382,0]
[6]
[7,"TRANSMISSION PLANT"]
[8,null,"MAIN STEP-UP TRANSFORMERS",{"$f":"'FR-16(7)(v)-1 Functional'!D65","v":"K202"},null,{"$f":"'FR-16(7)(v)-14 TOTAL CLASS'!M65","v":0},{"$f":"'FR-16(7)(v)-3 PROD Demand'!M65+'FR-16(7)(v)-7 TRANS Demand'!M65+'FR-16(7)(v)-11 DIST Demand'!M65","v":0},{"$f":"'FR-16(7)(v)-4 PROD Energy'!M65+'FR-16(7)(v)-8 TRANS Energy'!M65+'FR-16(7)(v)-12 DIST Energy'!M65","v":0},{"$f":"'FR-16(7)(v)-5 PROD Cust'!M65+'FR-16(7)(v)-9 TRANS Cust'!M65+'FR-16(7)(v)-13 DIST Cust'!M65","v":0},{"$f":"SUM(G65:I65)","v":0},{"$f":"F65-J65","v":0}]
[9,null,"OTHER TRANSMISSION",{"$f":"'FR-16(7)(v)-1 Functional'!D66","v":"K202"},null,{"$f":"'FR-16(7)(v)-14 TOTAL CLASS'!M66","v":6456280},{"$f":"'FR-16(7)(v)-3 PROD Demand'!M66+'FR-16(7)(v)-7 TRANS Demand'!M66+'FR-16(7)(v)-11 DIST Demand'!M66","v":6456280},{"$f":"'FR-16(7)(v)-4 PROD Energy'!M66+'FR-16(7)(v)-8 TRANS Energy'!M66+'FR-16(7)(v)-12 DIST Energy'!M66","v":0},{"$f":"'FR-16(7)(v)-5 PROD Cust'!M66+'FR-16(7)(v)-9 TRANS Cust'!M66+'FR-16(7)(v)-13 DIST Cust'!M66","v":0},{"$f":"SUM(G66:I66)","v":6456280},{"$f":"F66-J66","v":0}]
[10,null,"ADJUSTMENT",{"$f":"'FR-16(7)(v)-1 Functional'!D67","v":"K202"},null,{"$f":"'FR-16(7)(v)-14 TOTAL CLASS'!M67","v":0},{"$f":"'FR-16(7)(v)-3 PROD Demand'!M67+'FR-16(7)(v)-7 TRANS Demand'!M67+'FR-16(7)(v)-11 DIST Demand'!M67","v":0},{"$f":"'FR-16(7)(v)-4 PROD Energy'!M67+'FR-16(7)(v)-8 TRANS Energy'!M67+'FR-16(7)(v)-12 DIST Energy'!M67","v":0},{"$f":"'FR-16(7)(v)-5 PROD Cust'!M67+'FR-16(7)(v)-9 TRANS Cust'!M67+'FR-16(7)(v)-13 DIST Cust'!M67","v":0},{"$f":"SUM(G67:I67)","v":0},{"$f":"F67-J67","v":0}]
[11,null,{"$f":"'FR-16(7)(v)-1 Functional'!C68","v":"  TRANSMISSION PLANT IN SERVICE"},null,null,{"$f":"SUM(F65:F67)","v":6456280},6456280,0,0,6456280,0]
[12]
[13,"TOTAL PROD & TRANS PLANT",null,null,null,{"$f":"F68+F62","v":114292662},114292662,0,0,114292662,0]
[14]
[15,"DISTRIBUTION PLANT"]
[16,null,{"$f":"'FR-16(7)(v)-1 Functional'!C73","v":"SUBSTATIONS"},{"$f":"'FR-16(7)(v)-1 Functional'!D73","v":"K215"},null,{"$f":"'FR-16(7)(v)-14 TOTAL CLASS'!M73","v":8483547},{"$f":"'FR-16(7)(v)-3 PROD Demand'!M73+'FR-16(7)(v)-7 TRANS Demand'!M73+'FR-16(7)(v)-11 DIST Demand'!M73","v":8483547},{"$f":"'FR-16(7)(v)-4 PROD Energy'!M73+'FR-16(7)(v)-8 TRANS Energy'!M73+'FR-16(7)(v)-12 DIST Energy'!M73","v":0},{"$f":"'FR-16(7)(v)-5 PROD Cust'!M73+'FR-16(7)(v)-9 TRANS Cust'!M73+'FR-16(7)(v)-13 DIST Cust'!M73","v":0},{"$f":"SUM(G73:I73)","v":8483547},{"$f":"F73-J73","v":0}]
[17,null,{"$f":"'FR-16(7)(v)-1 Functional'!C74","v":"POLES, TOWERS  & FIXTURES - PRIMARY - DEMAND"},{"$f":"'FR-16(7)(v)-1 Functional'!D74","v":"K205"},null,{"$f":"'FR-16(7)(v)-14 TOTAL CLASS'!M74","v":3078180},{"$f":"'FR-16(7)(v)-3 PROD Demand'!M74+'FR-16(7)(v)-7 TRANS Demand'!M74+'FR-16(7)(v)-11 DIST Demand'!M74","v":3078180},{"$f":"'FR-16(7)(v)-4 PROD Energy'!M74+'FR-16(7)(v)-8 TRANS Energy'!M74+'FR-16(7)(v)-12 DIST Energy'!M74","v":0},{"$f":"'FR-16(7)(v)-5 PROD Cust'!M74+'FR-16(7)(v)-9 TRANS Cust'!M74+'FR-16(7)(v)-13 DIST Cust'!M74","v":0},{"$f":"SUM(G74:I74)","v":3078180},{"$f":"F74-J74","v":0}]
[18,null,{"$f":"'FR-16(7)(v)-1 Functional'!C75","v":"POLES, TOWERS  & FIXTURES - PRIMARY - CUSTOMER"},{"$f":"'FR-16(7)(v)-1 Functional'!D75","v":"K405"},null,{"$f":"'FR-16(7)(v)-14 TOTAL CLASS'!M75","v":3928},{"$f":"'FR-16(7)(v)-3 PROD Demand'!M75+'FR-16(7)(v)-7 TRANS Demand'!M75+'FR-16(7)(v)-11 DIST Demand'!M75","v":0},{"$f":"'FR-16(7)(v)-4 PROD Energy'!M75+'FR-16(7)(v)-8 TRANS Energy'!M75+'FR-16(7)(v)-12 DIST Energy'!M75","v":0},{"$f":"'FR-16(7)(v)-5 PROD Cust'!M75+'FR-16(7)(v)-9 TRANS Cust'!M75+'FR-16(7)(v)-13 DIST Cust'!M75","v":3928},{"$f":"SUM(G75:I75)","v":3928},{"$f":"F75-J75","v":0}]
[19,null,{"$f":"'FR-16(7)(v)-1 Functional'!C76","v":"POLES, TOWERS  & FIXTURES - SECONDARY - DEMAND"},{"$f":"'FR-16(7)(v)-1 Functional'!D76","v":"K206"},null,{"$f":"'FR-16(7)(v)-14 TOTAL CLASS'!M76","v":1177199},{"$f":"'FR-16(7)(v)-3 PROD Demand'!M76+'FR-16(7)(v)-7 TRANS Demand'!M76+'FR-16(7)(v)-11 DIST Demand'!M76","v":1177199},{"$f":"'FR-16(7)(v)-4 PROD Energy'!M76+'FR-16(7)(v)-8 TRANS Energy'!M76+'FR-16(7)(v)-12 DIST Energy'!M76","v":0},{"$f":"'FR-16(7)(v)-5 PROD Cust'!M76+'FR-16(7)(v)-9 TRANS Cust'!M76+'FR-16(7)(v)-13 DIST Cust'!M76","v":0},1177199,0]
[20,null,{"$f":"'FR-16(7)(v)-1 Functional'!C77","v":"POLES, TOWERS  & FIXTURES - SECONDARY - CUSTOMER"},{"$f":"'FR-16(7)(v)-1 Functional'!D77","v":"K405"},null,{"$f":"'FR-16(7)(v)-14 TOTAL CLASS'!M77","v":888},{"$f":"'FR-16(7)(v)-3 PROD Demand'!M77+'FR-16(7)(v)-7 TRANS Demand'!M77+'FR-16(7)(v)-11 DIST Demand'!M77","v":0},{"$f":"'FR-16(7)(v)-4 PROD Energy'!M77+'FR-16(7)(v)-8 TRANS Energy'!M77+'FR-16(7)(v)-12 DIST Energy'!M77","v":0},{"$f":"'FR-16(7)(v)-5 PROD Cust'!M77+'FR-16(7)(v)-9 TRANS Cust'!M77+'FR-16(7)(v)-13 DIST Cust'!M77","v":888},888,0]
[21,null,{"$f":"'FR-16(7)(v)-1 Functional'!C78","v":"CONDUCTORS - OVERHEAD / PRIMARY - DEMAND"},{"$f":"'FR-16(7)(v)-1 Functional'!D78","v":"K205"},null,{"$f":"'FR-16(7)(v)-14 TOTAL CLASS'!M78","v":7014528},{"$f":"'FR-16(7)(v)-3 PROD Demand'!M78+'FR-16(7)(v)-7 TRANS Demand'!M78+'FR-16(7)(v)-11 DIST Demand'!M78","v":7014528},{"$f":"'FR-16(7)(v)-4 PROD Energy'!M78+'FR-16(7)(v)-8 TRANS Energy'!M78+'FR-16(7)(v)-12 DIST Energy'!M78","v":0},{"$f":"'FR-16(7)(v)-5 PROD Cust'!M78+'FR-16(7)(v)-9 TRANS Cust'!M78+'FR-16(7)(v)-13 DIST Cust'!M78","v":0},7014528,0]
[22,null,{"$f":"'FR-16(7)(v)-1 Functional'!C79","v":"CONDUCTORS - OVERHEAD / PRIMARY - CUSTOMER"},{"$f":"'FR-16(7)(v)-1 Functional'!D79","v":"K405"},null,{"$f":"'FR-16(7)(v)-14 TOTAL CLASS'!M79","v":4271},{"$f":"'FR-16(7)(v)-3 PROD Demand'!M79+'FR-16(7)(v)-7 TRANS Demand'!M79+'FR-16(7)(v)-11 DIST Demand'!M79","v":0},{"$f":"'FR-16(7)(v)-4 PROD Energy'!M79+'FR-16(7)(v)-8 TRANS Energy'!M79+'FR-16(7)(v)-12 DIST Energy'!M79","v":0},{"$f":"'FR-16(7)(v)-5 PROD Cust'!M79+'FR-16(7)(v)-9 TRANS Cust'!M79+'FR-16(7)(v)-13 DIST Cust'!M79","v":4271},4271,0]
[23,null,{"$f":"'FR-16(7)(v)-1 Functional'!C80","v":"CONDUCTORS - OVERHEAD / SECONDARY - DEMAND"},{"$f":"'FR-16(7)(v)-1 Functional'!D80","v":"K206"},null,{"$f":"'FR-16(7)(v)-14 TOTAL CLASS'!M80","v":2856234},{"$f":"'FR-16(7)(v)-3 PROD Demand'!M80+'FR-16(7)(v)-7 TRANS Demand'!M80+'FR-16(7)(v)-11 DIST Demand'!M80","v":2856234},{"$f":"'FR-16(7)(v)-4 PROD Energy'!M80+'FR-16(7)(v)-8 TRANS Energy'!M80+'FR-16(7)(v)-12 DIST Energy'!M80","v":0},{"$f":"'FR-16(7)(v)-5 PROD Cust'!M80+'FR-16(7)(v)-9 TRANS Cust'!M80+'FR-16(7)(v)-13 DIST Cust'!M80","v":0},2856234,0]
[24,null,{"$f":"'FR-16(7)(v)-1 Functional'!C81","v":"CONDUCTORS - OVERHEAD / SECONDARY - CUSTOMER"},{"$f":"'FR-16(7)(v)-1 Functional'!D81","v":"K405"},null,{"$f":"'FR-16(7)(v)-14 TOTAL CLASS'!M81","v":1769},{"$f":"'FR-16(7)(v)-3 PROD Demand'!M81+'FR-16(7)(v)-7 TRANS Demand'!M81+'FR-16(7)(v)-11 DIST Demand'!M81","v":0},{"$f":"'FR-16(7)(v)-4 PROD Energy'!M81+'FR-16(7)(v)-8 TRANS Energy'!M81+'FR-16(7)(v)-12 DIST Energy'!M81","v":0},{"$f":"'FR-16(7)(v)-5 PROD Cust'!M81+'FR-16(7)(v)-9 TRANS Cust'!M81+'FR-16(7)(v)-13 DIST Cust'!M81","v":1769},1769,0]
[25,null,{"$f":"'FR-16(7)(v)-1 Functional'!C82","v":"CONDUCTORS - UNDERGROUND / PRIMARY - DEMAND"},{"$f":"'FR-16(7)(v)-1 Functional'!D82","v":"K205"},null,{"$f":"'FR-16(7)(v)-14 TOTAL CLASS'!M82","v":5235177},{"$f":"'FR-16(7)(v)-3 PROD Demand'!M82+'FR-16(7)(v)-7 TRANS Demand'!M82+'FR-16(7)(v)-11 DIST Demand'!M82","v":5235177},{"$f":"'FR-16(7)(v)-4 PROD Energy'!M82+'FR-16(7)(v)-8 TRANS Energy'!M82+'FR-16(7)(v)-12 DIST Energy'!M82","v":0},{"$f":"'FR-16(7)(v)-5 PROD Cust'!M82+'FR-16(7)(v)-9 TRANS Cust'!M82+'FR-16(7)(v)-13 DIST Cust'!M82","v":0},5235177,0]
[26,null,{"$f":"'FR-16(7)(v)-1 Functional'!C83","v":"CONDUCTORS - UNDERGROUND / PRIMARY - CUSTOMER"},{"$f":"'FR-16(7)(v)-1 Functional'!D83","v":"K405"},null,{"$f":"'FR-16(7)(v)-14 TOTAL CLASS'!M83","v":4533},{"$f":"'FR-16(7)(v)-3 PROD Demand'!M83+'FR-16(7)(v)-7 TRANS Demand'!M83+'FR-16(7)(v)-11 DIST Demand'!M83","v":0},{"$f":"'FR-16(7)(v)-4 PROD Energy'!M83+'FR-16(7)(v)-8 TRANS Energy'!M83+'FR-16(7)(v)-12 DIST Energy'!M83","v":0},{"$f":"'FR-16(7)(v)-5 PROD Cust'!M83+'FR-16(7)(v)-9 TRANS Cust'!M83+'FR-16(7)(v)-13 DIST Cust'!M83","v":4533},4533,0]
[27,null,{"$f":"'FR-16(7)(v)-1 Functional'!C84","v":"CONDUCTORS - UNDERGROUND / SECONDARY - DEMAND"},{"$f":"'FR-16(7)(v)-1 Functional'!D84","v":"K206"},null,{"$f":"'FR-16(7)(v)-14 TOTAL CLASS'!M84","v":896861},{"$f":"'FR-16(7)(v)-3 PROD Demand'!M84+'FR-16(7)(v)-7 TRANS Demand'!M84+'FR-16(7)(v)-11 DIST Demand'!M84","v":896861},{"$f":"'FR-16(7)(v)-4 PROD Energy'!M84+'FR-16(7)(v)-8 TRANS Energy'!M84+'FR-16(7)(v)-12 DIST Energy'!M84","v":0},{"$f":"'FR-16(7)(v)-5 PROD Cust'!M84+'FR-16(7)(v)-9 TRANS Cust'!M84+'FR-16(7)(v)-13 DIST Cust'!M84","v":0},896861,0]
[28,null,{"$f":"'FR-16(7)(v)-1 Functional'!C85","v":"CONDUCTORS - UNDERGROUND / SECONDARY - CUSTOMER"},{"$f":"'FR-16(7)(v)-1 Functional'!D85","v":"K405"},null,{"$f":"'FR-16(7)(v)-14 TOTAL CLASS'!M85","v":1417},{"$f":"'FR-16(7)(v)-3 PROD Demand'!M85+'FR-16(7)(v)-7 TRANS Demand'!M85+'FR-16(7)(v)-11 DIST Demand'!M85","v":0},{"$f":"'FR-16(7)(v)-4 PROD Energy'!M85+'FR-16(7)(v)-8 TRANS Energy'!M85+'FR-16(7)(v)-12 DIST Energy'!M85","v":0},{"$f":"'FR-16(7)(v)-5 PROD Cust'!M85+'FR-16(7)(v)-9 TRANS Cust'!M85+'FR-16(7)(v)-13 DIST Cust'!M85","v":1417},1417,0]
[29,null,{"$f":"'FR-16(7)(v)-1 Functional'!C86","v":"TRANSFORMERS DEMAND RELATED"},{"$f":"'FR-16(7)(v)-1 Functional'!D86","v":"K215"},null,{"$f":"'FR-16(7)(v)-14 TOTAL CLASS'!M86","v":4393576},{"$f":"'FR-16(7)(v)-3 PROD Demand'!M86+'FR-16(7)(v)-7 TRANS Demand'!M86+'FR-16(7)(v)-11 DIST Demand'!M86","v":4393576},{"$f":"'FR-16(7)(v)-4 PROD Energy'!M86+'FR-16(7)(v)-8 TRANS Energy'!M86+'FR-16(7)(v)-12 DIST Energy'!M86","v":0},{"$f":"'FR-16(7)(v)-5 PROD Cust'!M86+'FR-16(7)(v)-9 TRANS Cust'!M86+'FR-16(7)(v)-13 DIST Cust'!M86","v":0},{"$f":"SUM(G86:I86)","v":4393576},{"$f":"F86-J86","v":0}]
[30,null,{"$f":"'FR-16(7)(v)-1 Functional'!C87","v":"TRANSFORMERS CUSTOMER RELATED"},{"$f":"'FR-16(7)(v)-1 Functional'!D87","v":"K405"},null,{"$f":"'FR-16(7)(v)-14 TOTAL CLASS'!M87","v":3981},{"$f":"'FR-16(7)(v)-3 PROD Demand'!M87+'FR-16(7)(v)-7 TRANS Demand'!M87+'FR-16(7)(v)-11 DIST Demand'!M87","v":0},{"$f":"'FR-16(7)(v)-4 PROD Energy'!M87+'FR-16(7)(v)-8 TRANS Energy'!M87+'FR-16(7)(v)-12 DIST Energy'!M87","v":0},{"$f":"'FR-16(7)(v)-5 PROD Cust'!M87+'FR-16(7)(v)-9 TRANS Cust'!M87+'FR-16(7)(v)-13 DIST Cust'!M87","v":3981},3981,0]
[31,null,{"$f":"'FR-16(7)(v)-1 Functional'!C88","v":"SERVICES"},{"$f":"'FR-16(7)(v)-1 Functional'!D88","v":"K217"},null,{"$f":"'FR-16(7)(v)-14 TOTAL CLASS'!M88","v":32689},{"$f":"'FR-16(7)(v)-3 PROD Demand'!M88+'FR-16(7)(v)-7 TRANS Demand'!M88+'FR-16(7)(v)-11 DIST Demand'!M88","v":0},{"$f":"'FR-16(7)(v)-4 PROD Energy'!M88+'FR-16(7)(v)-8 TRANS Energy'!M88+'FR-16(7)(v)-12 DIST Energy'!M88","v":0},{"$f":"'FR-16(7)(v)-5 PROD Cust'!M88+'FR-16(7)(v)-9 TRANS Cust'!M88+'FR-16(7)(v)-13 DIST Cust'!M88","v":32689},32689,0]
[32,null,{"$f":"'FR-16(7)(v)-1 Functional'!C89","v":"METERS"},{"$f":"'FR-16(7)(v)-1 Functional'!D89","v":"K407"},null,{"$f":"'FR-16(7)(v)-14 TOTAL CLASS'!M89","v":0},{"$f":"'FR-16(7)(v)-3 PROD Demand'!M89+'FR-16(7)(v)-7 TRANS Demand'!M89+'FR-16(7)(v)-11 DIST Demand'!M89","v":0},{"$f":"'FR-16(7)(v)-4 PROD Energy'!M89+'FR-16(7)(v)-8 TRANS Energy'!M89+'FR-16(7)(v)-12 DIST Energy'!M89","v":0},{"$f":"'FR-16(7)(v)-5 PROD Cust'!M89+'FR-16(7)(v)-9 TRANS Cust'!M89+'FR-16(7)(v)-13 DIST Cust'!M89","v":0},0,0]
[33,null,{"$f":"'FR-16(7)(v)-1 Functional'!C90","v":"STREET LIGHTS"},{"$f":"'FR-16(7)(v)-1 Functional'!D90","v":"K401"},null,{"$f":"'FR-16(7)(v)-14 TOTAL CLASS'!M90","v":0},{"$f":"'FR-16(7)(v)-3 PROD Demand'!M90+'FR-16(7)(v)-7 TRANS Demand'!M90+'FR-16(7)(v)-11 DIST Demand'!M90","v":0},{"$f":"'FR-16(7)(v)-4 PROD Energy'!M90+'FR-16(7)(v)-8 TRANS Energy'!M90+'FR-16(7)(v)-12 DIST Energy'!M90","v":0},{"$f":"'FR-16(7)(v)-5 PROD Cust'!M90+'FR-16(7)(v)-9 TRANS Cust'!M90+'FR-16(7)(v)-13 DIST Cust'!M90","v":0},0,0]
[34,null,{"$f":"'FR-16(7)(v)-1 Functional'!C91","v":"ADJUSTMENT  "},{"$f":"'FR-16(7)(v)-1 Functional'!D91","v":"K209"},null,{"$f":"'FR-16(7)(v)-14 TOTAL CLASS'!M91","v":0},{"$f":"'FR-16(7)(v)-3 PROD Demand'!M91+'FR-16(7)(v)-7 TRANS Demand'!M91+'FR-16(7)(v)-11 DIST Demand'!M91","v":0},{"$f":"'FR-16(7)(v)-4 PROD Energy'!M91+'FR-16(7)(v)-8 TRANS Energy'!M91+'FR-16(7)(v)-12 DIST Energy'!M91","v":0},{"$f":"'FR-16(7)(v)-5 PROD Cust'!M91+'FR-16(7)(v)-9 TRANS Cust'!M91+'FR-16(7)(v)-13 DIST Cust'!M91","v":0},0,0]
[35,null,{"$f":"'FR-16(7)(v)-1 Functional'!C92","v":"CONSTRUCTION NOT CLASSIFIED"},{"$f":"'FR-16(7)(v)-1 Functional'!D92","v":"K209"},null,{"$f":"'FR-16(7)(v)-14 TOTAL CLASS'!M92","v":6483658},{"$f":"'FR-16(7)(v)-3 PROD Demand'!M92+'FR-16(7)(v)-7 TRANS Demand'!M92+'FR-16(7)(v)-11 DIST Demand'!M92","v":6473298},{"$f":"'FR-16(7)(v)-4 PROD Energy'!M92+'FR-16(7)(v)-8 TRANS Energy'!M92+'FR-16(7)(v)-12 DIST Energy'!M92","v":0},{"$f":"'FR-16(7)(v)-5 PROD Cust'!M92+'FR-16(7)(v)-9 TRANS Cust'!M92+'FR-16(7)(v)-13 DIST Cust'!M92","v":10360},6483658,0]
[36,null,{"$f":"'FR-16(7)(v)-1 Functional'!C93","v":"RWIP"},{"$f":"'FR-16(7)(v)-1 Functional'!D93","v":"K215"},null,{"$f":"'FR-16(7)(v)-14 TOTAL CLASS'!M93","v":0},{"$f":"'FR-16(7)(v)-3 PROD Demand'!M93+'FR-16(7)(v)-7 TRANS Demand'!M93+'FR-16(7)(v)-11 DIST Demand'!M93","v":0},{"$f":"'FR-16(7)(v)-4 PROD Energy'!M93+'FR-16(7)(v)-8 TRANS Energy'!M93+'FR-16(7)(v)-12 DIST Energy'!M93","v":0},{"$f":"'FR-16(7)(v)-5 PROD Cust'!M93+'FR-16(7)(v)-9 TRANS Cust'!M93+'FR-16(7)(v)-13 DIST Cust'!M93","v":0},{"$f":"SUM(G93:I93)","v":0},{"$f":"F93-J93","v":0}]
[37,null,{"$f":"'FR-16(7)(v)-1 Functional'!C94","v":"  DISTRIBUTION PLANT IN SERVICE"},null,null,{"$f":"SUM(F73:F93)","v":39672436},{"$f":"SUM(G73:G92)","v":39608600},0,63836,39672436,0]
[38]
[39,"TOTAL TRANS & DIST PLANT",null,null,null,{"$f":"F94+F68","v":46128716},46064880,0,63836,46128716,0]
[40,"TOTAL GROSS PTD PLANT",null,null,null,{"$f":"F94+F70","v":153965098},153901262,0,63836,153965098,0]
[41]
[42,"GENERAL & INTANGIBLE PLANT"]
[43,null,{"$f":"'FR-16(7)(v)-1 Functional'!C100","v":"PRODUCTION - DEMAND"},{"$f":"'FR-16(7)(v)-1 Functional'!D100","v":"K201"},null,{"$f":"'FR-16(7)(v)-14 TOTAL CLASS'!M100","v":1490168},{"$f":"'FR-16(7)(v)-3 PROD Demand'!M100+'FR-16(7)(v)-7 TRANS Demand'!M100+'FR-16(7)(v)-11 DIST Demand'!M100","v":1490168},{"$f":"'FR-16(7)(v)-4 PROD Energy'!M100+'FR-16(7)(v)-8 TRANS Energy'!M100+'FR-16(7)(v)-12 DIST Energy'!M100","v":0},{"$f":"'FR-16(7)(v)-5 PROD Cust'!M100+'FR-16(7)(v)-9 TRANS Cust'!M100+'FR-16(7)(v)-13 DIST Cust'!M100","v":0},{"$f":"SUM(G100:I100)","v":1490168},{"$f":"F100-J100","v":0}]
[44,null,{"$f":"'FR-16(7)(v)-1 Functional'!C101","v":"PRODUCTION - ENERGY"},{"$f":"'FR-16(7)(v)-1 Functional'!D101","v":"K301"},null,{"$f":"'FR-16(7)(v)-14 TOTAL CLASS'!M101","v":2236918},{"$f":"'FR-16(7)(v)-3 PROD Demand'!M101+'FR-16(7)(v)-7 TRANS Demand'!M101+'FR-16(7)(v)-11 DIST Demand'!M101","v":0},{"$f":"'FR-16(7)(v)-4 PROD Energy'!M101+'FR-16(7)(v)-8 TRANS Energy'!M101+'FR-16(7)(v)-12 DIST Energy'!M101","v":2236918},{"$f":"'FR-16(7)(v)-5 PROD Cust'!M101+'FR-16(7)(v)-9 TRANS Cust'!M101+'FR-16(7)(v)-13 DIST Cust'!M101","v":0},{"$f":"SUM(G101:I101)","v":2236918},{"$f":"F101-J101","v":0}]
[45,null,{"$f":"'FR-16(7)(v)-1 Functional'!C102","v":"TRANSMISSION"},{"$f":"'FR-16(7)(v)-1 Functional'!D102","v":"K202"},null,{"$f":"'FR-16(7)(v)-14 TOTAL CLASS'!M102","v":235479},{"$f":"'FR-16(7)(v)-3 PROD Demand'!M102+'FR-16(7)(v)-7 TRANS Demand'!M102+'FR-16(7)(v)-11 DIST Demand'!M102","v":235479},{"$f":"'FR-16(7)(v)-4 PROD Energy'!M102+'FR-16(7)(v)-8 TRANS Energy'!M102+'FR-16(7)(v)-12 DIST Energy'!M102","v":0},{"$f":"'FR-16(7)(v)-5 PROD Cust'!M102+'FR-16(7)(v)-9 TRANS Cust'!M102+'FR-16(7)(v)-13 DIST Cust'!M102","v":0},235479,0]
[46,null,{"$f":"'FR-16(7)(v)-1 Functional'!C103","v":"DISTRIBUTION - DEMAND"},{"$f":"'FR-16(7)(v)-1 Functional'!D103","v":"K201"},null,{"$f":"'FR-16(7)(v)-14 TOTAL CLASS'!M103","v":790881},{"$f":"'FR-16(7)(v)-3 PROD Demand'!M103+'FR-16(7)(v)-7 TRANS Demand'!M103+'FR-16(7)(v)-11 DIST Demand'!M103","v":790881},{"$f":"'FR-16(7)(v)-4 PROD Energy'!M103+'FR-16(7)(v)-8 TRANS Energy'!M103+'FR-16(7)(v)-12 DIST Energy'!M103","v":0},{"$f":"'FR-16(7)(v)-5 PROD Cust'!M103+'FR-16(7)(v)-9 TRANS Cust'!M103+'FR-16(7)(v)-13 DIST Cust'!M103","v":0},790881,0]
[47,null,{"$f":"'FR-16(7)(v)-1 Functional'!C104","v":"DISTRIBUTION - CUSTOMER"},{"$f":"'FR-16(7)(v)-1 Functional'!D104","v":"K405"},null,{"$f":"'FR-16(7)(v)-14 TOTAL CLASS'!M104","v":506},{"$f":"'FR-16(7)(v)-3 PROD Demand'!M104+'FR-16(7)(v)-7 TRANS Demand'!M104+'FR-16(7)(v)-11 DIST Demand'!M104","v":0},{"$f":"'FR-16(7)(v)-4 PROD Energy'!M104+'FR-16(7)(v)-8 TRANS Energy'!M104+'FR-16(7)(v)-12 DIST Energy'!M104","v":0},{"$f":"'FR-16(7)(v)-5 PROD Cust'!M104+'FR-16(7)(v)-9 TRANS Cust'!M104+'FR-16(7)(v)-13 DIST Cust'!M104","v":506},506,0]
[48,null,{"$f":"'FR-16(7)(v)-1 Functional'!C105","v":"CUSTOMER ACCOUNTING"},{"$f":"'FR-16(7)(v)-1 Functional'!D105","v":"A308"},null,{"$f":"'FR-16(7)(v)-14 TOTAL CLASS'!M105","v":-3341},{"$f":"'FR-16(7)(v)-3 PROD Demand'!M105+'FR-16(7)(v)-7 TRANS Demand'!M105+'FR-16(7)(v)-11 DIST Demand'!M105","v":0},{"$f":"'FR-16(7)(v)-4 PROD Energy'!M105+'FR-16(7)(v)-8 TRANS Energy'!M105+'FR-16(7)(v)-12 DIST Energy'!M105","v":0},{"$f":"'FR-16(7)(v)-5 PROD Cust'!M105+'FR-16(7)(v)-9 TRANS Cust'!M105+'FR-16(7)(v)-13 DIST Cust'!M105","v":-3341},-3341,0]
[49,null,{"$f":"'FR-16(7)(v)-1 Functional'!C106","v":"CUSTOMER SERVICE & INFORMATION"},{"$f":"'FR-16(7)(v)-1 Functional'!D106","v":"A310"},null,{"$f":"'FR-16(7)(v)-14 TOTAL CLASS'!M106","v":113},{"$f":"'FR-16(7)(v)-3 PROD Demand'!M106+'FR-16(7)(v)-7 TRANS Demand'!M106+'FR-16(7)(v)-11 DIST Demand'!M106","v":0},{"$f":"'FR-16(7)(v)-4 PROD Energy'!M106+'FR-16(7)(v)-8 TRANS Energy'!M106+'FR-16(7)(v)-12 DIST Energy'!M106","v":0},{"$f":"'FR-16(7)(v)-5 PROD Cust'!M106+'FR-16(7)(v)-9 TRANS Cust'!M106+'FR-16(7)(v)-13 DIST Cust'!M106","v":113},113,0]
[50,null,{"$f":"'FR-16(7)(v)-1 Functional'!C107","v":"SALES"},{"$f":"'FR-16(7)(v)-1 Functional'!D107","v":"A312"},null,{"$f":"'FR-16(7)(v)-14 TOTAL CLASS'!M107","v":0},{"$f":"'FR-16(7)(v)-3 PROD Demand'!M107+'FR-16(7)(v)-7 TRANS Demand'!M107+'FR-16(7)(v)-11 DIST Demand'!M107","v":0},{"$f":"'FR-16(7)(v)-4 PROD Energy'!M107+'FR-16(7)(v)-8 TRANS Energy'!M107+'FR-16(7)(v)-12 DIST Energy'!M107","v":0},{"$f":"'FR-16(7)(v)-5 PROD Cust'!M107+'FR-16(7)(v)-9 TRANS Cust'!M107+'FR-16(7)(v)-13 DIST Cust'!M107","v":0},0,0]
[51,null,{"$f":"'FR-16(7)(v)-1 Functional'!C108","v":"ADJUSTMENT"},{"$f":"'FR-16(7)(v)-1 Functional'!D108","v":"A315"},null,{"$f":"'FR-16(7)(v)-14 TOTAL CLASS'!M108","v":0},{"$f":"'FR-16(7)(v)-3 PROD Demand'!M108+'FR-16(7)(v)-7 TRANS Demand'!M108+'FR-16(7)(v)-11 DIST Demand'!M108","v":0},{"$f":"'FR-16(7)(v)-4 PROD Energy'!M108+'FR-16(7)(v)-8 TRANS Energy'!M108+'FR-16(7)(v)-12 DIST Energy'!M108","v":0},{"$f":"'FR-16(7)(v)-5 PROD Cust'!M108+'FR-16(7)(v)-9 TRANS Cust'!M108+'FR-16(7)(v)-13 DIST Cust'!M108","v":0},0,0]
[52,null,{"$f":"'FR-16(7)(v)-1 Functional'!C109","v":"  GEN & INTANG PLANT IN SERVICE"},null,null,{"$f":"SUM(F100:F108)","v":4750724},2516528,2236918,-2722,4750724,0]
[53]
[54,"COMMON & OTHER PLANT"]
[55,null,{"$f":"'FR-16(7)(v)-1 Functional'!C112","v":"PRODUCTION - DEMAND"},{"$f":"'FR-16(7)(v)-1 Functional'!D112","v":"K201"},null,{"$f":"'FR-16(7)(v)-14 TOTAL CLASS'!M112","v":843408},{"$f":"'FR-16(7)(v)-3 PROD Demand'!M112+'FR-16(7)(v)-7 TRANS Demand'!M112+'FR-16(7)(v)-11 DIST Demand'!M112","v":843408},{"$f":"'FR-16(7)(v)-4 PROD Energy'!M112+'FR-16(7)(v)-8 TRANS Energy'!M112+'FR-16(7)(v)-12 DIST Energy'!M112","v":0},{"$f":"'FR-16(7)(v)-5 PROD Cust'!M112+'FR-16(7)(v)-9 TRANS Cust'!M112+'FR-16(7)(v)-13 DIST Cust'!M112","v":0},{"$f":"SUM(G112:I112)","v":843408},{"$f":"F112-J112","v":0}]
[56,null,{"$f":"'FR-16(7)(v)-1 Functional'!C113","v":"PRODUCTION - ENERGY"},{"$f":"'FR-16(7)(v)-1 Functional'!D113","v":"K301"},null,{"$f":"'FR-16(7)(v)-14 TOTAL CLASS'!M113","v":1266056},{"$f":"'FR-16(7)(v)-3 PROD Demand'!M113+'FR-16(7)(v)-7 TRANS Demand'!M113+'FR-16(7)(v)-11 DIST Demand'!M113","v":0},{"$f":"'FR-16(7)(v)-4 PROD Energy'!M113+'FR-16(7)(v)-8 TRANS Energy'!M113+'FR-16(7)(v)-12 DIST Energy'!M113","v":1266056},{"$f":"'FR-16(7)(v)-5 PROD Cust'!M113+'FR-16(7)(v)-9 TRANS Cust'!M113+'FR-16(7)(v)-13 DIST Cust'!M113","v":0},{"$f":"SUM(G113:I113)","v":1266056},{"$f":"F113-J113","v":0}]
[57,null,{"$f":"'FR-16(7)(v)-1 Functional'!C114","v":"TRANSMISSION"},{"$f":"'FR-16(7)(v)-1 Functional'!D114","v":"K202"},null,{"$f":"'FR-16(7)(v)-14 TOTAL CLASS'!M114","v":133277},{"$f":"'FR-16(7)(v)-3 PROD Demand'!M114+'FR-16(7)(v)-7 TRANS Demand'!M114+'FR-16(7)(v)-11 DIST Demand'!M114","v":133277},{"$f":"'FR-16(7)(v)-4 PROD Energy'!M114+'FR-16(7)(v)-8 TRANS Energy'!M114+'FR-16(7)(v)-12 DIST Energy'!M114","v":0},{"$f":"'FR-16(7)(v)-5 PROD Cust'!M114+'FR-16(7)(v)-9 TRANS Cust'!M114+'FR-16(7)(v)-13 DIST Cust'!M114","v":0},133277,0]
[58,null,{"$f":"'FR-16(7)(v)-1 Functional'!C115","v":"DISTRIBUTION - DEMAND"},{"$f":"'FR-16(7)(v)-1 Functional'!D115","v":"K201"},null,{"$f":"'FR-16(7)(v)-14 TOTAL CLASS'!M115","v":447625},{"$f":"'FR-16(7)(v)-3 PROD Demand'!M115+'FR-16(7)(v)-7 TRANS Demand'!M115+'FR-16(7)(v)-11 DIST Demand'!M115","v":447625},{"$f":"'FR-16(7)(v)-4 PROD Energy'!M115+'FR-16(7)(v)-8 TRANS Energy'!M115+'FR-16(7)(v)-12 DIST Energy'!M115","v":0},{"$f":"'FR-16(7)(v)-5 PROD Cust'!M115+'FR-16(7)(v)-9 TRANS Cust'!M115+'FR-16(7)(v)-13 DIST Cust'!M115","v":0},447625,0]
[59,null,{"$f":"'FR-16(7)(v)-1 Functional'!C116","v":"DISTRIBUTION - CUSTOMER"},{"$f":"'FR-16(7)(v)-1 Functional'!D116","v":"K405"},null,{"$f":"'FR-16(7)(v)-14 TOTAL CLASS'!M116","v":286},{"$f":"'FR-16(7)(v)-3 PROD Demand'!M116+'FR-16(7)(v)-7 TRANS Demand'!M116+'FR-16(7)(v)-11 DIST Demand'!M116","v":0},{"$f":"'FR-16(7)(v)-4 PROD Energy'!M116+'FR-16(7)(v)-8 TRANS Energy'!M116+'FR-16(7)(v)-12 DIST Energy'!M116","v":0},{"$f":"'FR-16(7)(v)-5 PROD Cust'!M116+'FR-16(7)(v)-9 TRANS Cust'!M116+'FR-16(7)(v)-13 DIST Cust'!M116","v":286},286,0]
[60,null,{"$f":"'FR-16(7)(v)-1 Functional'!C117","v":"CUSTOMER ACCOUNTING"},{"$f":"'FR-16(7)(v)-1 Functional'!D117","v":"A308"},null,{"$f":"'FR-16(7)(v)-14 TOTAL CLASS'!M117","v":-1891},{"$f":"'FR-16(7)(v)-3 PROD Demand'!M117+'FR-16(7)(v)-7 TRANS Demand'!M117+'FR-16(7)(v)-11 DIST Demand'!M117","v":0},{"$f":"'FR-16(7)(v)-4 PROD Energy'!M117+'FR-16(7)(v)-8 TRANS Energy'!M117+'FR-16(7)(v)-12 DIST Energy'!M117","v":0},{"$f":"'FR-16(7)(v)-5 PROD Cust'!M117+'FR-16(7)(v)-9 TRANS Cust'!M117+'FR-16(7)(v)-13 DIST Cust'!M117","v":-1891},-1891,0]
[61,null,{"$f":"'FR-16(7)(v)-1 Functional'!C118","v":"CUSTOMER SERVICE & INFORMATION"},{"$f":"'FR-16(7)(v)-1 Functional'!D118","v":"A310"},null,{"$f":"'FR-16(7)(v)-14 TOTAL CLASS'!M118","v":64},{"$f":"'FR-16(7)(v)-3 PROD Demand'!M118+'FR-16(7)(v)-7 TRANS Demand'!M118+'FR-16(7)(v)-11 DIST Demand'!M118","v":0},{"$f":"'FR-16(7)(v)-4 PROD Energy'!M118+'FR-16(7)(v)-8 TRANS Energy'!M118+'FR-16(7)(v)-12 DIST Energy'!M118","v":0},{"$f":"'FR-16(7)(v)-5 PROD Cust'!M118+'FR-16(7)(v)-9 TRANS Cust'!M118+'FR-16(7)(v)-13 DIST Cust'!M118","v":64},64,0]
[62,null,{"$f":"'FR-16(7)(v)-1 Functional'!C119","v":"SALES"},{"$f":"'FR-16(7)(v)-1 Functional'!D119","v":"A312"},null,{"$f":"'FR-16(7)(v)-14 TOTAL CLASS'!M119","v":0},{"$f":"'FR-16(7)(v)-3 PROD Demand'!M119+'FR-16(7)(v)-7 TRANS Demand'!M119+'FR-16(7)(v)-11 DIST Demand'!M119","v":0},{"$f":"'FR-16(7)(v)-4 PROD Energy'!M119+'FR-16(7)(v)-8 TRANS Energy'!M119+'FR-16(7)(v)-12 DIST Energy'!M119","v":0},{"$f":"'FR-16(7)(v)-5 PROD Cust'!M119+'FR-16(7)(v)-9 TRANS Cust'!M119+'FR-16(7)(v)-13 DIST Cust'!M119","v":0},0,0]
[63,null,{"$f":"'FR-16(7)(v)-1 Functional'!C120","v":"ADJUSTMENT"},{"$f":"'FR-16(7)(v)-1 Functional'!D120","v":"A315"},null,{"$f":"'FR-16(7)(v)-14 TOTAL CLASS'!M120","v":0},{"$f":"'FR-16(7)(v)-3 PROD Demand'!M120+'FR-16(7)(v)-7 TRANS Demand'!M120+'FR-16(7)(v)-11 DIST Demand'!M120","v":0},{"$f":"'FR-16(7)(v)-4 PROD Energy'!M120+'FR-16(7)(v)-8 TRANS Energy'!M120+'FR-16(7)(v)-12 DIST Energy'!M120","v":0},{"$f":"'FR-16(7)(v)-5 PROD Cust'!M120+'FR-16(7)(v)-9 TRANS Cust'!M120+'FR-16(7)(v)-13 DIST Cust'!M120","v":0},0,0]
[64,null,{"$f":"'FR-16(7)(v)-1 Functional'!C121","v":"  COMMON & OTHER PLANT IN SERVICE"},null,null,{"$f":"SUM(F112:F120)","v":2688825},1424310,1266056,-1541,2688825,0]
[65]
[66,"GROSS ELECTRIC PLANT IN SERVICE",null,null,null,{"$f":"F97+F109+F121","v":161404647},157842100,3502974,59573,161404647,0]
[]
[{"$f":"co_name","v":"DUKE ENERGY KENTUCKY, INC."},null,null,null,null,null,null,null,null,{"$f":"J1","v":"FR-16(7)(v)-21"}]
[{"$f":"$A$2","v":"DT PRIMARY CLASSIFIED - ELECTRIC COST OF SERVICE"},null,null,null,null,null,null,null,null,{"$f":"J2","v":"WITNESS RESPONSIBLE:"}]
[{"$f":"case_name","v":"CASE NO: 2019-00271"},null,null,null,null,null,null,null,null,{"$f":"Witness","v":"JAMES E. ZIOLKOWSKI"}]
[{"$f":"data_filing","v":"DATA: 12 MONTHS ACTUAL  & 0 MONTHS ESTIMATED"},null,null,null,null,null,null,null,null,{"$f":"\"PAGE \"&Pages2-12&\" OF \"&Pages2","v":"PAGE 3 OF 15"}]
[{"$f":"type","v":"TYPE OF FILING: \"X\" ORIGINAL   UPDATED    REVISED  "}]
[]
[]
["LINE",null,null,null,null,"TOTAL","CLASSIFIED",null,null,"TOTAL","ALL"]
["NO.","DEPRECIATION RESERVE",null,"ALLO",null,{"$f":"$F$9","v":"DT PRIMARY"},{"$f":"G9","v":"DEMAND"},"ENERGY","CUSTOMER","AT ISSUE","OTHER"]
[null,null,"Schedule 3",null,null,null,3,4,5]
[1,"PRODUCTION PLANT"]
[2,null,{"$f":"'FR-16(7)(v)-1 Functional'!C136","v":"PRODUCTION STEAM"},{"$f":"'FR-16(7)(v)-1 Functional'!D136","v":"K201"},null,{"$f":"'FR-16(7)(v)-14 TOTAL CLASS'!M136","v":35787511},{"$f":"'FR-16(7)(v)-3 PROD Demand'!M136+'FR-16(7)(v)-7 TRANS Demand'!M136+'FR-16(7)(v)-11 DIST Demand'!M136","v":35787511},{"$f":"'FR-16(7)(v)-4 PROD Energy'!M136+'FR-16(7)(v)-8 TRANS Energy'!M136+'FR-16(7)(v)-12 DIST Energy'!M136","v":0},{"$f":"'FR-16(7)(v)-5 PROD Cust'!M136+'FR-16(7)(v)-9 TRANS Cust'!M136+'FR-16(7)(v)-13 DIST Cust'!M136","v":0},{"$f":"SUM(G136:I136)","v":35787511},{"$f":"F136-J136","v":0}]
[3,null,{"$f":"'FR-16(7)(v)-1 Functional'!C137","v":"PRODUCTION OTHER"},{"$f":"'FR-16(7)(v)-1 Functional'!D137","v":"K201"},null,{"$f":"'FR-16(7)(v)-14 TOTAL CLASS'!M137","v":16434426},{"$f":"'FR-16(7)(v)-3 PROD Demand'!M137+'FR-16(7)(v)-7 TRANS Demand'!M137+'FR-16(7)(v)-11 DIST Demand'!M137","v":16434426},{"$f":"'FR-16(7)(v)-4 PROD Energy'!M137+'FR-16(7)(v)-8 TRANS Energy'!M137+'FR-16(7)(v)-12 DIST Energy'!M137","v":0},{"$f":"'FR-16(7)(v)-5 PROD Cust'!M137+'FR-16(7)(v)-9 TRANS Cust'!M137+'FR-16(7)(v)-13 DIST Cust'!M137","v":0},{"$f":"SUM(G137:I137)","v":16434426},{"$f":"F137-J137","v":0}]
[4,null,{"$f":"'FR-16(7)(v)-1 Functional'!C138","v":"ADJUSTMENT"},{"$f":"'FR-16(7)(v)-1 Functional'!D138","v":"K201"},null,{"$f":"'FR-16(7)(v)-14 TOTAL CLASS'!M138","v":138576},{"$f":"'FR-16(7)(v)-3 PROD Demand'!M138+'FR-16(7)(v)-7 TRANS Demand'!M138+'FR-16(7)(v)-11 DIST Demand'!M138","v":138576},{"$f":"'FR-16(7)(v)-4 PROD Energy'!M138+'FR-16(7)(v)-8 TRANS Energy'!M138+'FR-16(7)(v)-12 DIST Energy'!M138","v":0},{"$f":"'FR-16(7)(v)-5 PROD Cust'!M138+'FR-16(7)(v)-9 TRANS Cust'!M138+'FR-16(7)(v)-13 DIST Cust'!M138","v":0},{"$f":"SUM(G138:I138)","v":138576},{"$f":"F138-J138","v":0}]
[5,null,{"$f":"'FR-16(7)(v)-1 Functional'!C139","v":"  TOTAL PROD DEPREC RESERVE"},null,null,{"$f":"SUM(F136:F138)","v":52360513},52360513,0,0,52360513,0]
[6]
[7,"TRANSMISSION PLANT"]
[8,null,{"$f":"'FR-16(7)(v)-1 Functional'!C142","v":"MAIN STEP-UP TRANSFORMERS"},{"$f":"'FR-16(7)(v)-1 Functional'!D142","v":"K202"},null,{"$f":"'FR-16(7)(v)-14 TOTAL CLASS'!M142","v":0},{"$f":"'FR-16(7)(v)-3 PROD Demand'!M142+'FR-16(7)(v)-7 TRANS Demand'!M142+'FR-16(7)(v)-11 DIST Demand'!M142","v":0},{"$f":"'FR-16(7)(v)-4 PROD Energy'!M142+'FR-16(7)(v)-8 TRANS Energy'!M142+'FR-16(7)(v)-12 DIST Energy'!M142","v":0},{"$f":"'FR-16(7)(v)-5 PROD Cust'!M142+'FR-16(7)(v)-9 TRANS Cust'!M142+'FR-16(7)(v)-13 DIST Cust'!M142","v":0},{"$f":"SUM(G142:I142)","v":0},{"$f":"F142-J142","v":0}]
[9,null,{"$f":"'FR-16(7)(v)-1 Functional'!C143","v":"OTHER TRANSMISSION"},{"$f":"'FR-16(7)(v)-1 Functional'!D143","v":"K202"},null,{"$f":"'FR-16(7)(v)-14 TOTAL CLASS'!M143","v":1780545},{"$f":"'FR-16(7)(v)-3 PROD Demand'!M143+'FR-16(7)(v)-7 TRANS Demand'!M143+'FR-16(7)(v)-11 DIST Demand'!M143","v":1780545},{"$f":"'FR-16(7)(v)-4 PROD Energy'!M143+'FR-16(7)(v)-8 TRANS Energy'!M143+'FR-16(7)(v)-12 DIST Energy'!M143","v":0},{"$f":"'FR-16(7)(v)-5 PROD Cust'!M143+'FR-16(7)(v)-9 TRANS Cust'!M143+'FR-16(7)(v)-13 DIST Cust'!M143","v":0},{"$f":"SUM(G143:I143)","v":1780545},{"$f":"F143-J143","v":0}]
[10,null,{"$f":"'FR-16(7)(v)-1 Functional'!C144","v":"ADJUSTMENT"},{"$f":"'FR-16(7)(v)-1 Functional'!D144","v":"K202"},null,{"$f":"'FR-16(7)(v)-14 TOTAL CLASS'!M144","v":-6260},{"$f":"'FR-16(7)(v)-3 PROD Demand'!M144+'FR-16(7)(v)-7 TRANS Demand'!M144+'FR-16(7)(v)-11 DIST Demand'!M144","v":-6260},{"$f":"'FR-16(7)(v)-4 PROD Energy'!M144+'FR-16(7)(v)-8 TRANS Energy'!M144+'FR-16(7)(v)-12 DIST Energy'!M144","v":0},{"$f":"'FR-16(7)(v)-5 PROD Cust'!M144+'FR-16(7)(v)-9 TRANS Cust'!M144+'FR-16(7)(v)-13 DIST Cust'!M144","v":0},{"$f":"SUM(G144:I144)","v":-6260},{"$f":"F144-J144","v":0}]
[11,null,{"$f":"'FR-16(7)(v)-1 Functional'!C145","v":"  TOTAL TRANS DEPREC RESERVE"},null,null,{"$f":"SUM(F142:F144)","v":1774285},1774285,0,0,1774285,0]
[12]
[13,null,{"$f":"'FR-16(7)(v)-1 Functional'!C147","v":"TOTAL PROD & TRANS DEPREC RESERVE"},null,null,{"$f":"F145+F139","v":54134798},{"$f":"G145+G139","v":54134798},{"$f":"H145+H139","v":0},{"$f":"I145+I139","v":0},{"$f":"J145+J139","v":54134798},{"$f":"F147-J147","v":0}]
[14]
[15,"DISTRIBUTION PLANT"]
[16,null,{"$f":"'FR-16(7)(v)-1 Functional'!C150","v":"SUBSTATIONS"},{"$f":"'FR-16(7)(v)-1 Functional'!D150","v":"K215"},null,{"$f":"'FR-16(7)(v)-14 TOTAL CLASS'!M150","v":1723618},{"$f":"'FR-16(7)(v)-3 PROD Demand'!M150+'FR-16(7)(v)-7 TRANS Demand'!M150+'FR-16(7)(v)-11 DIST Demand'!M150","v":1723618},{"$f":"'FR-16(7)(v)-4 PROD Energy'!M150+'FR-16(7)(v)-8 TRANS Energy'!M150+'FR-16(7)(v)-12 DIST Energy'!M150","v":0},{"$f":"'FR-16(7)(v)-5 PROD Cust'!M150+'FR-16(7)(v)-9 TRANS Cust'!M150+'FR-16(7)(v)-13 DIST Cust'!M150","v":0},{"$f":"SUM(G150:I150)","v":1723618},{"$f":"F150-J150","v":0}]
[17,null,{"$f":"'FR-16(7)(v)-1 Functional'!C151","v":"POLES, TOWERS  & FIXTURES - PRIMARY - DEMAND"},{"$f":"'FR-16(7)(v)-1 Functional'!D151","v":"K205"},null,{"$f":"'FR-16(7)(v)-14 TOTAL CLASS'!M151","v":1408398},{"$f":"'FR-16(7)(v)-3 PROD Demand'!M151+'FR-16(7)(v)-7 TRANS Demand'!M151+'FR-16(7)(v)-11 DIST Demand'!M151","v":1408398},{"$f":"'FR-16(7)(v)-4 PROD Energy'!M151+'FR-16(7)(v)-8 TRANS Energy'!M151+'FR-16(7)(v)-12 DIST Energy'!M151","v":0},{"$f":"'FR-16(7)(v)-5 PROD Cust'!M151+'FR-16(7)(v)-9 TRANS Cust'!M151+'FR-16(7)(v)-13 DIST Cust'!M151","v":0},{"$f":"SUM(G151:I151)","v":1408398},{"$f":"F151-J151","v":0}]
[18,null,{"$f":"'FR-16(7)(v)-1 Functional'!C152","v":"POLES, TOWERS  & FIXTURES - PRIMARY - CUSTOMER"},{"$f":"'FR-16(7)(v)-1 Functional'!D152","v":"K405"},null,{"$f":"'FR-16(7)(v)-14 TOTAL CLASS'!M152","v":1797},{"$f":"'FR-16(7)(v)-3 PROD Demand'!M152+'FR-16(7)(v)-7 TRANS Demand'!M152+'FR-16(7)(v)-11 DIST Demand'!M152","v":0},{"$f":"'FR-16(7)(v)-4 PROD Energy'!M152+'FR-16(7)(v)-8 TRANS Energy'!M152+'FR-16(7)(v)-12 DIST Energy'!M152","v":0},{"$f":"'FR-16(7)(v)-5 PROD Cust'!M152+'FR-16(7)(v)-9 TRANS Cust'!M152+'FR-16(7)(v)-13 DIST Cust'!M152","v":1797},{"$f":"SUM(G152:I152)","v":1797},{"$f":"F152-J152","v":0}]
[19,null,{"$f":"'FR-16(7)(v)-1 Functional'!C153","v":"POLES, TOWERS  & FIXTURES - SECONDARY - DEMAND"},{"$f":"'FR-16(7)(v)-1 Functional'!D153","v":"K206"},null,{"$f":"'FR-16(7)(v)-14 TOTAL CLASS'!M153","v":538618},{"$f":"'FR-16(7)(v)-3 PROD Demand'!M153+'FR-16(7)(v)-7 TRANS Demand'!M153+'FR-16(7)(v)-11 DIST Demand'!M153","v":538618},{"$f":"'FR-16(7)(v)-4 PROD Energy'!M153+'FR-16(7)(v)-8 TRANS Energy'!M153+'FR-16(7)(v)-12 DIST Energy'!M153","v":0},{"$f":"'FR-16(7)(v)-5 PROD Cust'!M153+'FR-16(7)(v)-9 TRANS Cust'!M153+'FR-16(7)(v)-13 DIST Cust'!M153","v":0},538618,0]
[20,null,{"$f":"'FR-16(7)(v)-1 Functional'!C154","v":"POLES, TOWERS  & FIXTURES - SECONDARY - CUSTOMER"},{"$f":"'FR-16(7)(v)-1 Functional'!D154","v":"K405"},null,{"$f":"'FR-16(7)(v)-14 TOTAL CLASS'!M154","v":406},{"$f":"'FR-16(7)(v)-3 PROD Demand'!M154+'FR-16(7)(v)-7 TRANS Demand'!M154+'FR-16(7)(v)-11 DIST Demand'!M154","v":0},{"$f":"'FR-16(7)(v)-4 PROD Energy'!M154+'FR-16(7)(v)-8 TRANS Energy'!M154+'FR-16(7)(v)-12 DIST Energy'!M154","v":0},{"$f":"'FR-16(7)(v)-5 PROD Cust'!M154+'FR-16(7)(v)-9 TRANS Cust'!M154+'FR-16(7)(v)-13 DIST Cust'!M154","v":406},406,0]
[21,null,{"$f":"'FR-16(7)(v)-1 Functional'!C155","v":"CONDUCTORS - OVERHEAD / PRIMARY - DEMAND"},{"$f":"'FR-16(7)(v)-1 Functional'!D155","v":"K205"},null,{"$f":"'FR-16(7)(v)-14 TOTAL CLASS'!M155","v":2091649},{"$f":"'FR-16(7)(v)-3 PROD Demand'!M155+'FR-16(7)(v)-7 TRANS Demand'!M155+'FR-16(7)(v)-11 DIST Demand'!M155","v":2091649},{"$f":"'FR-16(7)(v)-4 PROD Energy'!M155+'FR-16(7)(v)-8 TRANS Energy'!M155+'FR-16(7)(v)-12 DIST Energy'!M155","v":0},{"$f":"'FR-16(7)(v)-5 PROD Cust'!M155+'FR-16(7)(v)-9 TRANS Cust'!M155+'FR-16(7)(v)-13 DIST Cust'!M155","v":0},2091649,0]
[22,null,{"$f":"'FR-16(7)(v)-1 Functional'!C156","v":"CONDUCTORS - OVERHEAD / PRIMARY - CUSTOMER"},{"$f":"'FR-16(7)(v)-1 Functional'!D156","v":"K405"},null,{"$f":"'FR-16(7)(v)-14 TOTAL CLASS'!M156","v":1274},{"$f":"'FR-16(7)(v)-3 PROD Demand'!M156+'FR-16(7)(v)-7 TRANS Demand'!M156+'FR-16(7)(v)-11 DIST Demand'!M156","v":0},{"$f":"'FR-16(7)(v)-4 PROD Energy'!M156+'FR-16(7)(v)-8 TRANS Energy'!M156+'FR-16(7)(v)-12 DIST Energy'!M156","v":0},{"$f":"'FR-16(7)(v)-5 PROD Cust'!M156+'FR-16(7)(v)-9 TRANS Cust'!M156+'FR-16(7)(v)-13 DIST Cust'!M156","v":1274},1274,0]
[23,null,{"$f":"'FR-16(7)(v)-1 Functional'!C157","v":"CONDUCTORS - OVERHEAD / SECONDARY - DEMAND"},{"$f":"'FR-16(7)(v)-1 Functional'!D157","v":"K206"},null,{"$f":"'FR-16(7)(v)-14 TOTAL CLASS'!M157","v":851695},{"$f":"'FR-16(7)(v)-3 PROD Demand'!M157+'FR-16(7)(v)-7 TRANS Demand'!M157+'FR-16(7)(v)-11 DIST Demand'!M157","v":851695},{"$f":"'FR-16(7)(v)-4 PROD Energy'!M157+'FR-16(7)(v)-8 TRANS Energy'!M157+'FR-16(7)(v)-12 DIST Energy'!M157","v":0},{"$f":"'FR-16(7)(v)-5 PROD Cust'!M157+'FR-16(7)(v)-9 TRANS Cust'!M157+'FR-16(7)(v)-13 DIST Cust'!M157","v":0},851695,0]
[24,null,{"$f":"'FR-16(7)(v)-1 Functional'!C158","v":"CONDUCTORS - OVERHEAD / SECONDARY - CUSTOMER"},{"$f":"'FR-16(7)(v)-1 Functional'!D158","v":"K405"},null,{"$f":"'FR-16(7)(v)-14 TOTAL CLASS'!M158","v":528},{"$f":"'FR-16(7)(v)-3 PROD Demand'!M158+'FR-16(7)(v)-7 TRANS Demand'!M158+'FR-16(7)(v)-11 DIST Demand'!M158","v":0},{"$f":"'FR-16(7)(v)-4 PROD Energy'!M158+'FR-16(7)(v)-8 TRANS Energy'!M158+'FR-16(7)(v)-12 DIST Energy'!M158","v":0},{"$f":"'FR-16(7)(v)-5 PROD Cust'!M158+'FR-16(7)(v)-9 TRANS Cust'!M158+'FR-16(7)(v)-13 DIST Cust'!M158","v":528},528,0]
[25,null,{"$f":"'FR-16(7)(v)-1 Functional'!C159","v":"CONDUCTORS - UNDERGROUND / PRIMARY - DEMAND"},{"$f":"'FR-16(7)(v)-1 Functional'!D159","v":"K205"},null,{"$f":"'FR-16(7)(v)-14 TOTAL CLASS'!M159","v":1548540},{"$f":"'FR-16(7)(v)-3 PROD Demand'!M159+'FR-16(7)(v)-7 TRANS Demand'!M159+'FR-16(7)(v)-11 DIST Demand'!M159","v":1548540},{"$f":"'FR-16(7)(v)-4 PROD Energy'!M159+'FR-16(7)(v)-8 TRANS Energy'!M159+'FR-16(7)(v)-12 DIST Energy'!M159","v":0},{"$f":"'FR-16(7)(v)-5 PROD Cust'!M159+'FR-16(7)(v)-9 TRANS Cust'!M159+'FR-16(7)(v)-13 DIST Cust'!M159","v":0},1548540,0]
[26,null,{"$f":"'FR-16(7)(v)-1 Functional'!C160","v":"CONDUCTORS - UNDERGROUND / PRIMARY - CUSTOMER"},{"$f":"'FR-16(7)(v)-1 Functional'!D160","v":"K405"},null,{"$f":"'FR-16(7)(v)-14 TOTAL CLASS'!M160","v":1341},{"$f":"'FR-16(7)(v)-3 PROD Demand'!M160+'FR-16(7)(v)-7 TRANS Demand'!M160+'FR-16(7)(v)-11 DIST Demand'!M160","v":0},{"$f":"'FR-16(7)(v)-4 PROD Energy'!M160+'FR-16(7)(v)-8 TRANS Energy'!M160+'FR-16(7)(v)-12 DIST Energy'!M160","v":0},{"$f":"'FR-16(7)(v)-5 PROD Cust'!M160+'FR-16(7)(v)-9 TRANS Cust'!M160+'FR-16(7)(v)-13 DIST Cust'!M160","v":1341},1341,0]
[27,null,{"$f":"'FR-16(7)(v)-1 Functional'!C161","v":"CONDUCTORS - UNDERGROUND / SECONDARY - DEMAND"},{"$f":"'FR-16(7)(v)-1 Functional'!D161","v":"K206"},null,{"$f":"'FR-16(7)(v)-14 TOTAL CLASS'!M161","v":265287},{"$f":"'FR-16(7)(v)-3 PROD Demand'!M161+'FR-16(7)(v)-7 TRANS Demand'!M161+'FR-16(7)(v)-11 DIST Demand'!M161","v":265287},{"$f":"'FR-16(7)(v)-4 PROD Energy'!M161+'FR-16(7)(v)-8 TRANS Energy'!M161+'FR-16(7)(v)-12 DIST Energy'!M161","v":0},{"$f":"'FR-16(7)(v)-5 PROD Cust'!M161+'FR-16(7)(v)-9 TRANS Cust'!M161+'FR-16(7)(v)-13 DIST Cust'!M161","v":0},265287,0]
[28,null,{"$f":"'FR-16(7)(v)-1 Functional'!C162","v":"CONDUCTORS - UNDERGROUND / SECONDARY - CUSTOMER"},{"$f":"'FR-16(7)(v)-1 Functional'!D162","v":"K405"},null,{"$f":"'FR-16(7)(v)-14 TOTAL CLASS'!M162","v":419},{"$f":"'FR-16(7)(v)-3 PROD Demand'!M162+'FR-16(7)(v)-7 TRANS Demand'!M162+'FR-16(7)(v)-11 DIST Demand'!M162","v":0},{"$f":"'FR-16(7)(v)-4 PROD Energy'!M162+'FR-16(7)(v)-8 TRANS Energy'!M162+'FR-16(7)(v)-12 DIST Energy'!M162","v":0},{"$f":"'FR-16(7)(v)-5 PROD Cust'!M162+'FR-16(7)(v)-9 TRANS Cust'!M162+'FR-16(7)(v)-13 DIST Cust'!M162","v":419},419,0]
[29,null,{"$f":"'FR-16(7)(v)-1 Functional'!C163","v":"TRANSFORMERS DEMAND RELATED"},{"$f":"'FR-16(7)(v)-1 Functional'!D163","v":"K215"},null,{"$f":"'FR-16(7)(v)-14 TOTAL CLASS'!M163","v":1912198},{"$f":"'FR-16(7)(v)-3 PROD Demand'!M163+'FR-16(7)(v)-7 TRANS Demand'!M163+'FR-16(7)(v)-11 DIST Demand'!M163","v":1912198},{"$f":"'FR-16(7)(v)-4 PROD Energy'!M163+'FR-16(7)(v)-8 TRANS Energy'!M163+'FR-16(7)(v)-12 DIST Energy'!M163","v":0},{"$f":"'FR-16(7)(v)-5 PROD Cust'!M163+'FR-16(7)(v)-9 TRANS Cust'!M163+'FR-16(7)(v)-13 DIST Cust'!M163","v":0},{"$f":"SUM(G163:I163)","v":1912198},{"$f":"F163-J163","v":0}]
[30,null,{"$f":"'FR-16(7)(v)-1 Functional'!C164","v":"TRANSFORMERS CUSTOMER RELATED"},{"$f":"'FR-16(7)(v)-1 Functional'!D164","v":"K405"},null,{"$f":"'FR-16(7)(v)-14 TOTAL CLASS'!M164","v":1733},{"$f":"'FR-16(7)(v)-3 PROD Demand'!M164+'FR-16(7)(v)-7 TRANS Demand'!M164+'FR-16(7)(v)-11 DIST Demand'!M164","v":0},{"$f":"'FR-16(7)(v)-4 PROD Energy'!M164+'FR-16(7)(v)-8 TRANS Energy'!M164+'FR-16(7)(v)-12 DIST Energy'!M164","v":0},{"$f":"'FR-16(7)(v)-5 PROD Cust'!M164+'FR-16(7)(v)-9 TRANS Cust'!M164+'FR-16(7)(v)-13 DIST Cust'!M164","v":1733},1733,0]
[31,null,{"$f":"'FR-16(7)(v)-1 Functional'!C165","v":"SERVICES"},{"$f":"'FR-16(7)(v)-1 Functional'!D165","v":"K217"},null,{"$f":"'FR-16(7)(v)-14 TOTAL CLASS'!M165","v":17955},{"$f":"'FR-16(7)(v)-3 PROD Demand'!M165+'FR-16(7)(v)-7 TRANS Demand'!M165+'FR-16(7)(v)-11 DIST Demand'!M165","v":0},{"$f":"'FR-16(7)(v)-4 PROD Energy'!M165+'FR-16(7)(v)-8 TRANS Energy'!M165+'FR-16(7)(v)-12 DIST Energy'!M165","v":0},{"$f":"'FR-16(7)(v)-5 PROD Cust'!M165+'FR-16(7)(v)-9 TRANS Cust'!M165+'FR-16(7)(v)-13 DIST Cust'!M165","v":17955},17955,0]
[32,null,{"$f":"'FR-16(7)(v)-1 Functional'!C166","v":"METERS"},{"$f":"'FR-16(7)(v)-1 Functional'!D166","v":"K407"},null,{"$f":"'FR-16(7)(v)-14 TOTAL CLASS'!M166","v":0},{"$f":"'FR-16(7)(v)-3 PROD Demand'!M166+'FR-16(7)(v)-7 TRANS Demand'!M166+'FR-16(7)(v)-11 DIST Demand'!M166","v":0},{"$f":"'FR-16(7)(v)-4 PROD Energy'!M166+'FR-16(7)(v)-8 TRANS Energy'!M166+'FR-16(7)(v)-12 DIST Energy'!M166","v":0},{"$f":"'FR-16(7)(v)-5 PROD Cust'!M166+'FR-16(7)(v)-9 TRANS Cust'!M166+'FR-16(7)(v)-13 DIST Cust'!M166","v":0},0,0]
[33,null,{"$f":"'FR-16(7)(v)-1 Functional'!C167","v":"STREET LIGHTS"},{"$f":"'FR-16(7)(v)-1 Functional'!D167","v":"K401"},null,{"$f":"'FR-16(7)(v)-14 TOTAL CLASS'!M167","v":0},{"$f":"'FR-16(7)(v)-3 PROD Demand'!M167+'FR-16(7)(v)-7 TRANS Demand'!M167+'FR-16(7)(v)-11 DIST Demand'!M167","v":0},{"$f":"'FR-16(7)(v)-4 PROD Energy'!M167+'FR-16(7)(v)-8 TRANS Energy'!M167+'FR-16(7)(v)-12 DIST Energy'!M167","v":0},{"$f":"'FR-16(7)(v)-5 PROD Cust'!M167+'FR-16(7)(v)-9 TRANS Cust'!M167+'FR-16(7)(v)-13 DIST Cust'!M167","v":0},0,0]
[34,null,{"$f":"'FR-16(7)(v)-1 Functional'!C168","v":"ADJUSTMENT  "},{"$f":"'FR-16(7)(v)-1 Functional'!D168","v":"K209"},null,{"$f":"'FR-16(7)(v)-14 TOTAL CLASS'!M168","v":31986},{"$f":"'FR-16(7)(v)-3 PROD Demand'!M168+'FR-16(7)(v)-7 TRANS Demand'!M168+'FR-16(7)(v)-11 DIST Demand'!M168","v":31935},{"$f":"'FR-16(7)(v)-4 PROD Energy'!M168+'FR-16(7)(v)-8 TRANS Energy'!M168+'FR-16(7)(v)-12 DIST Energy'!M168","v":0},{"$f":"'FR-16(7)(v)-5 PROD Cust'!M168+'FR-16(7)(v)-9 TRANS Cust'!M168+'FR-16(7)(v)-13 DIST Cust'!M168","v":51},31986,0]
[35,null,{"$f":"'FR-16(7)(v)-1 Functional'!C169","v":"CONSTRUCTION NOT CLASSIFIED"},{"$f":"'FR-16(7)(v)-1 Functional'!D169","v":"K209"},null,{"$f":"'FR-16(7)(v)-14 TOTAL CLASS'!M169","v":104473},{"$f":"'FR-16(7)(v)-3 PROD Demand'!M169+'FR-16(7)(v)-7 TRANS Demand'!M169+'FR-16(7)(v)-11 DIST Demand'!M169","v":104306},{"$f":"'FR-16(7)(v)-4 PROD Energy'!M169+'FR-16(7)(v)-8 TRANS Energy'!M169+'FR-16(7)(v)-12 DIST Energy'!M169","v":0},{"$f":"'FR-16(7)(v)-5 PROD Cust'!M169+'FR-16(7)(v)-9 TRANS Cust'!M169+'FR-16(7)(v)-13 DIST Cust'!M169","v":167},104473,0]
[36,null,{"$f":"'FR-16(7)(v)-1 Functional'!C170","v":"RWIP"},{"$f":"'FR-16(7)(v)-1 Functional'!D170","v":"K215"},null,{"$f":"'FR-16(7)(v)-14 TOTAL CLASS'!M170","v":-1596367},{"$f":"'FR-16(7)(v)-3 PROD Demand'!M170+'FR-16(7)(v)-7 TRANS Demand'!M170+'FR-16(7)(v)-11 DIST Demand'!M170","v":-1596367},{"$f":"'FR-16(7)(v)-4 PROD Energy'!M170+'FR-16(7)(v)-8 TRANS Energy'!M170+'FR-16(7)(v)-12 DIST Energy'!M170","v":0},{"$f":"'FR-16(7)(v)-5 PROD Cust'!M170+'FR-16(7)(v)-9 TRANS Cust'!M170+'FR-16(7)(v)-13 DIST Cust'!M170","v":0},{"$f":"SUM(G170:I170)","v":-1596367},{"$f":"F170-J170","v":0}]
[37,null,{"$f":"'FR-16(7)(v)-1 Functional'!C171","v":"  TOTAL DIST DEPREC RESERVE"},null,null,{"$f":"SUM(F149:F170)","v":8905548},{"$f":"SUM(G149:G170)","v":8879877},0,25671,8905548,0]
[38]
[39,null,"TOTAL TRANS & DIST DEPREC RESERVE",null,null,{"$f":"F171+F145","v":10679833},{"$f":"G171+G145","v":10654162},{"$f":"H171+H145","v":0},{"$f":"I171+I145","v":25671},{"$f":"J171+J145","v":10679833},{"$f":"F173-J173","v":0}]
[40,null,"TOTAL GROSS PTD PLANT DEPREC RESERVE",null,null,{"$f":"F147+F171","v":63040346},{"$f":"G147+G171","v":63014675},{"$f":"H147+H171","v":0},{"$f":"I147+I171","v":25671},{"$f":"J147+J171","v":63040346},{"$f":"F174-J174","v":0}]
[41]
[42,"GENERAL & INTANGIBLE PLANT"]
[43,null,{"$f":"'FR-16(7)(v)-1 Functional'!C177","v":"PRODUCTION - DEMAND"},{"$f":"'FR-16(7)(v)-1 Functional'!D177","v":"K201"},null,{"$f":"'FR-16(7)(v)-14 TOTAL CLASS'!M177","v":480223},{"$f":"'FR-16(7)(v)-3 PROD Demand'!M177+'FR-16(7)(v)-7 TRANS Demand'!M177+'FR-16(7)(v)-11 DIST Demand'!M177","v":480223},{"$f":"'FR-16(7)(v)-4 PROD Energy'!M177+'FR-16(7)(v)-8 TRANS Energy'!M177+'FR-16(7)(v)-12 DIST Energy'!M177","v":0},{"$f":"'FR-16(7)(v)-5 PROD Cust'!M177+'FR-16(7)(v)-9 TRANS Cust'!M177+'FR-16(7)(v)-13 DIST Cust'!M177","v":0},{"$f":"SUM(G177:I177)","v":480223},{"$f":"F177-J177","v":0}]
[44,null,{"$f":"'FR-16(7)(v)-1 Functional'!C178","v":"PRODUCTION - ENERGY"},{"$f":"'FR-16(7)(v)-1 Functional'!D178","v":"K301"},null,{"$f":"'FR-16(7)(v)-14 TOTAL CLASS'!M178","v":720872},{"$f":"'FR-16(7)(v)-3 PROD Demand'!M178+'FR-16(7)(v)-7 TRANS Demand'!M178+'FR-16(7)(v)-11 DIST Demand'!M178","v":0},{"$f":"'FR-16(7)(v)-4 PROD Energy'!M178+'FR-16(7)(v)-8 TRANS Energy'!M178+'FR-16(7)(v)-12 DIST Energy'!M178","v":720872},{"$f":"'FR-16(7)(v)-5 PROD Cust'!M178+'FR-16(7)(v)-9 TRANS Cust'!M178+'FR-16(7)(v)-13 DIST Cust'!M178","v":0},{"$f":"SUM(G178:I178)","v":720872},{"$f":"F178-J178","v":0}]
[45,null,{"$f":"'FR-16(7)(v)-1 Functional'!C179","v":"TRANSMISSION"},{"$f":"'FR-16(7)(v)-1 Functional'!D179","v":"K202"},null,{"$f":"'FR-16(7)(v)-14 TOTAL CLASS'!M179","v":75886},{"$f":"'FR-16(7)(v)-3 PROD Demand'!M179+'FR-16(7)(v)-7 TRANS Demand'!M179+'FR-16(7)(v)-11 DIST Demand'!M179","v":75886},{"$f":"'FR-16(7)(v)-4 PROD Energy'!M179+'FR-16(7)(v)-8 TRANS Energy'!M179+'FR-16(7)(v)-12 DIST Energy'!M179","v":0},{"$f":"'FR-16(7)(v)-5 PROD Cust'!M179+'FR-16(7)(v)-9 TRANS Cust'!M179+'FR-16(7)(v)-13 DIST Cust'!M179","v":0},75886,0]
[46,null,{"$f":"'FR-16(7)(v)-1 Functional'!C180","v":"DISTRIBUTION - DEMAND"},{"$f":"'FR-16(7)(v)-1 Functional'!D180","v":"K201"},null,{"$f":"'FR-16(7)(v)-14 TOTAL CLASS'!M180","v":254870},{"$f":"'FR-16(7)(v)-3 PROD Demand'!M180+'FR-16(7)(v)-7 TRANS Demand'!M180+'FR-16(7)(v)-11 DIST Demand'!M180","v":254870},{"$f":"'FR-16(7)(v)-4 PROD Energy'!M180+'FR-16(7)(v)-8 TRANS Energy'!M180+'FR-16(7)(v)-12 DIST Energy'!M180","v":0},{"$f":"'FR-16(7)(v)-5 PROD Cust'!M180+'FR-16(7)(v)-9 TRANS Cust'!M180+'FR-16(7)(v)-13 DIST Cust'!M180","v":0},254870,0]
[47,null,{"$f":"'FR-16(7)(v)-1 Functional'!C181","v":"DISTRIBUTION - CUSTOMER"},{"$f":"'FR-16(7)(v)-1 Functional'!D181","v":"K405"},null,{"$f":"'FR-16(7)(v)-14 TOTAL CLASS'!M181","v":163},{"$f":"'FR-16(7)(v)-3 PROD Demand'!M181+'FR-16(7)(v)-7 TRANS Demand'!M181+'FR-16(7)(v)-11 DIST Demand'!M181","v":0},{"$f":"'FR-16(7)(v)-4 PROD Energy'!M181+'FR-16(7)(v)-8 TRANS Energy'!M181+'FR-16(7)(v)-12 DIST Energy'!M181","v":0},{"$f":"'FR-16(7)(v)-5 PROD Cust'!M181+'FR-16(7)(v)-9 TRANS Cust'!M181+'FR-16(7)(v)-13 DIST Cust'!M181","v":163},163,0]
[48,null,{"$f":"'FR-16(7)(v)-1 Functional'!C182","v":"CUSTOMER ACCOUNTING"},{"$f":"'FR-16(7)(v)-1 Functional'!D182","v":"A308"},null,{"$f":"'FR-16(7)(v)-14 TOTAL CLASS'!M182","v":-1076},{"$f":"'FR-16(7)(v)-3 PROD Demand'!M182+'FR-16(7)(v)-7 TRANS Demand'!M182+'FR-16(7)(v)-11 DIST Demand'!M182","v":0},{"$f":"'FR-16(7)(v)-4 PROD Energy'!M182+'FR-16(7)(v)-8 TRANS Energy'!M182+'FR-16(7)(v)-12 DIST Energy'!M182","v":0},{"$f":"'FR-16(7)(v)-5 PROD Cust'!M182+'FR-16(7)(v)-9 TRANS Cust'!M182+'FR-16(7)(v)-13 DIST Cust'!M182","v":-1076},-1076,0]
[49,null,{"$f":"'FR-16(7)(v)-1 Functional'!C183","v":"CUSTOMER SERVICE & INFORMATION"},{"$f":"'FR-16(7)(v)-1 Functional'!D183","v":"A310"},null,{"$f":"'FR-16(7)(v)-14 TOTAL CLASS'!M183","v":36},{"$f":"'FR-16(7)(v)-3 PROD Demand'!M183+'FR-16(7)(v)-7 TRANS Demand'!M183+'FR-16(7)(v)-11 DIST Demand'!M183","v":0},{"$f":"'FR-16(7)(v)-4 PROD Energy'!M183+'FR-16(7)(v)-8 TRANS Energy'!M183+'FR-16(7)(v)-12 DIST Energy'!M183","v":0},{"$f":"'FR-16(7)(v)-5 PROD Cust'!M183+'FR-16(7)(v)-9 TRANS Cust'!M183+'FR-16(7)(v)-13 DIST Cust'!M183","v":36},36,0]
[50,null,{"$f":"'FR-16(7)(v)-1 Functional'!C184","v":"SALES"},{"$f":"'FR-16(7)(v)-1 Functional'!D184","v":"A312"},null,{"$f":"'FR-16(7)(v)-14 TOTAL CLASS'!M184","v":0},{"$f":"'FR-16(7)(v)-3 PROD Demand'!M184+'FR-16(7)(v)-7 TRANS Demand'!M184+'FR-16(7)(v)-11 DIST Demand'!M184","v":0},{"$f":"'FR-16(7)(v)-4 PROD Energy'!M184+'FR-16(7)(v)-8 TRANS Energy'!M184+'FR-16(7)(v)-12 DIST Energy'!M184","v":0},{"$f":"'FR-16(7)(v)-5 PROD Cust'!M184+'FR-16(7)(v)-9 TRANS Cust'!M184+'FR-16(7)(v)-13 DIST Cust'!M184","v":0},0,0]
[51,null,{"$f":"'FR-16(7)(v)-1 Functional'!C185","v":"ADJUSTMENT"},{"$f":"'FR-16(7)(v)-1 Functional'!D185","v":"A315"},null,{"$f":"'FR-16(7)(v)-14 TOTAL CLASS'!M185","v":14494},{"$f":"'FR-16(7)(v)-3 PROD Demand'!M185+'FR-16(7)(v)-7 TRANS Demand'!M185+'FR-16(7)(v)-11 DIST Demand'!M185","v":1638},{"$f":"'FR-16(7)(v)-4 PROD Energy'!M185+'FR-16(7)(v)-8 TRANS Energy'!M185+'FR-16(7)(v)-12 DIST Energy'!M185","v":12873},{"$f":"'FR-16(7)(v)-5 PROD Cust'!M185+'FR-16(7)(v)-9 TRANS Cust'!M185+'FR-16(7)(v)-13 DIST Cust'!M185","v":-17},14494,0]
[52,null,{"$f":"'FR-16(7)(v)-1 Functional'!C186","v":"  GENERAL & INTANG PLANT"},null,null,{"$f":"SUM(F176:F185)","v":1545468},812617,733745,-894,1545468,0]
[53]
[54,"COMMON & OTHER PLANT"]
[55,null,{"$f":"'FR-16(7)(v)-1 Functional'!C189","v":"PRODUCTION - DEMAND"},{"$f":"'FR-16(7)(v)-1 Functional'!D189","v":"K201"},null,{"$f":"'FR-16(7)(v)-14 TOTAL CLASS'!M189","v":648868},{"$f":"'FR-16(7)(v)-3 PROD Demand'!M189+'FR-16(7)(v)-7 TRANS Demand'!M189+'FR-16(7)(v)-11 DIST Demand'!M189","v":648868},{"$f":"'FR-16(7)(v)-4 PROD Energy'!M189+'FR-16(7)(v)-8 TRANS Energy'!M189+'FR-16(7)(v)-12 DIST Energy'!M189","v":0},{"$f":"'FR-16(7)(v)-5 PROD Cust'!M189+'FR-16(7)(v)-9 TRANS Cust'!M189+'FR-16(7)(v)-13 DIST Cust'!M189","v":0},{"$f":"SUM(G189:I189)","v":648868},{"$f":"F189-J189","v":0}]
[56,null,{"$f":"'FR-16(7)(v)-1 Functional'!C190","v":"PRODUCTION - ENERGY"},{"$f":"'FR-16(7)(v)-1 Functional'!D190","v":"K301"},null,{"$f":"'FR-16(7)(v)-14 TOTAL CLASS'!M190","v":974027},{"$f":"'FR-16(7)(v)-3 PROD Demand'!M190+'FR-16(7)(v)-7 TRANS Demand'!M190+'FR-16(7)(v)-11 DIST Demand'!M190","v":0},{"$f":"'FR-16(7)(v)-4 PROD Energy'!M190+'FR-16(7)(v)-8 TRANS Energy'!M190+'FR-16(7)(v)-12 DIST Energy'!M190","v":974027},{"$f":"'FR-16(7)(v)-5 PROD Cust'!M190+'FR-16(7)(v)-9 TRANS Cust'!M190+'FR-16(7)(v)-13 DIST Cust'!M190","v":0},{"$f":"SUM(G190:I190)","v":974027},{"$f":"F190-J190","v":0}]
[57,null,{"$f":"'FR-16(7)(v)-1 Functional'!C191","v":"TRANSMISSION"},{"$f":"'FR-16(7)(v)-1 Functional'!D191","v":"K202"},null,{"$f":"'FR-16(7)(v)-14 TOTAL CLASS'!M191","v":102535},{"$f":"'FR-16(7)(v)-3 PROD Demand'!M191+'FR-16(7)(v)-7 TRANS Demand'!M191+'FR-16(7)(v)-11 DIST Demand'!M191","v":102535},{"$f":"'FR-16(7)(v)-4 PROD Energy'!M191+'FR-16(7)(v)-8 TRANS Energy'!M191+'FR-16(7)(v)-12 DIST Energy'!M191","v":0},{"$f":"'FR-16(7)(v)-5 PROD Cust'!M191+'FR-16(7)(v)-9 TRANS Cust'!M191+'FR-16(7)(v)-13 DIST Cust'!M191","v":0},102535,0]
[58,null,{"$f":"'FR-16(7)(v)-1 Functional'!C192","v":"DISTRIBUTION - DEMAND"},{"$f":"'FR-16(7)(v)-1 Functional'!D192","v":"K201"},null,{"$f":"'FR-16(7)(v)-14 TOTAL CLASS'!M192","v":344375},{"$f":"'FR-16(7)(v)-3 PROD Demand'!M192+'FR-16(7)(v)-7 TRANS Demand'!M192+'FR-16(7)(v)-11 DIST Demand'!M192","v":344375},{"$f":"'FR-16(7)(v)-4 PROD Energy'!M192+'FR-16(7)(v)-8 TRANS Energy'!M192+'FR-16(7)(v)-12 DIST Energy'!M192","v":0},{"$f":"'FR-16(7)(v)-5 PROD Cust'!M192+'FR-16(7)(v)-9 TRANS Cust'!M192+'FR-16(7)(v)-13 DIST Cust'!M192","v":0},344375,0]
[59,null,{"$f":"'FR-16(7)(v)-1 Functional'!C193","v":"DISTRIBUTION - CUSTOMER"},{"$f":"'FR-16(7)(v)-1 Functional'!D193","v":"K405"},null,{"$f":"'FR-16(7)(v)-14 TOTAL CLASS'!M193","v":220},{"$f":"'FR-16(7)(v)-3 PROD Demand'!M193+'FR-16(7)(v)-7 TRANS Demand'!M193+'FR-16(7)(v)-11 DIST Demand'!M193","v":0},{"$f":"'FR-16(7)(v)-4 PROD Energy'!M193+'FR-16(7)(v)-8 TRANS Energy'!M193+'FR-16(7)(v)-12 DIST Energy'!M193","v":0},{"$f":"'FR-16(7)(v)-5 PROD Cust'!M193+'FR-16(7)(v)-9 TRANS Cust'!M193+'FR-16(7)(v)-13 DIST Cust'!M193","v":220},220,0]
[60,null,{"$f":"'FR-16(7)(v)-1 Functional'!C194","v":"CUSTOMER ACCOUNTING"},{"$f":"'FR-16(7)(v)-1 Functional'!D194","v":"A308"},null,{"$f":"'FR-16(7)(v)-14 TOTAL CLASS'!M194","v":-1455},{"$f":"'FR-16(7)(v)-3 PROD Demand'!M194+'FR-16(7)(v)-7 TRANS Demand'!M194+'FR-16(7)(v)-11 DIST Demand'!M194","v":0},{"$f":"'FR-16(7)(v)-4 PROD Energy'!M194+'FR-16(7)(v)-8 TRANS Energy'!M194+'FR-16(7)(v)-12 DIST Energy'!M194","v":0},{"$f":"'FR-16(7)(v)-5 PROD Cust'!M194+'FR-16(7)(v)-9 TRANS Cust'!M194+'FR-16(7)(v)-13 DIST Cust'!M194","v":-1455},-1455,0]
[61,null,{"$f":"'FR-16(7)(v)-1 Functional'!C195","v":"CUSTOMER SERVICE & INFORMATION"},{"$f":"'FR-16(7)(v)-1 Functional'!D195","v":"A310"},null,{"$f":"'FR-16(7)(v)-14 TOTAL CLASS'!M195","v":49},{"$f":"'FR-16(7)(v)-3 PROD Demand'!M195+'FR-16(7)(v)-7 TRANS Demand'!M195+'FR-16(7)(v)-11 DIST Demand'!M195","v":0},{"$f":"'FR-16(7)(v)-4 PROD Energy'!M195+'FR-16(7)(v)-8 TRANS Energy'!M195+'FR-16(7)(v)-12 DIST Energy'!M195","v":0},{"$f":"'FR-16(7)(v)-5 PROD Cust'!M195+'FR-16(7)(v)-9 TRANS Cust'!M195+'FR-16(7)(v)-13 DIST Cust'!M195","v":49},49,0]
[62,null,{"$f":"'FR-16(7)(v)-1 Functional'!C196","v":"SALES"},{"$f":"'FR-16(7)(v)-1 Functional'!D196","v":"A312"},null,{"$f":"'FR-16(7)(v)-14 TOTAL CLASS'!M196","v":0},{"$f":"'FR-16(7)(v)-3 PROD Demand'!M196+'FR-16(7)(v)-7 TRANS Demand'!M196+'FR-16(7)(v)-11 DIST Demand'!M196","v":0},{"$f":"'FR-16(7)(v)-4 PROD Energy'!M196+'FR-16(7)(v)-8 TRANS Energy'!M196+'FR-16(7)(v)-12 DIST Energy'!M196","v":0},{"$f":"'FR-16(7)(v)-5 PROD Cust'!M196+'FR-16(7)(v)-9 TRANS Cust'!M196+'FR-16(7)(v)-13 DIST Cust'!M196","v":0},0,0]
[63,null,{"$f":"'FR-16(7)(v)-1 Functional'!C197","v":"ADJUSTMENT"},{"$f":"'FR-16(7)(v)-1 Functional'!D197","v":"A315"},null,{"$f":"'FR-16(7)(v)-14 TOTAL CLASS'!M197","v":814},{"$f":"'FR-16(7)(v)-3 PROD Demand'!M197+'FR-16(7)(v)-7 TRANS Demand'!M197+'FR-16(7)(v)-11 DIST Demand'!M197","v":92},{"$f":"'FR-16(7)(v)-4 PROD Energy'!M197+'FR-16(7)(v)-8 TRANS Energy'!M197+'FR-16(7)(v)-12 DIST Energy'!M197","v":723},{"$f":"'FR-16(7)(v)-5 PROD Cust'!M197+'FR-16(7)(v)-9 TRANS Cust'!M197+'FR-16(7)(v)-13 DIST Cust'!M197","v":-1},814,0]
[64,null,{"$f":"'FR-16(7)(v)-1 Functional'!C198","v":"  COMMON & OTHER PLANT IN SERVICE"},null,null,{"$f":"SUM(F189:F197)","v":2069433},{"$f":"SUM(G188:G197)","v":1095870},{"$f":"SUM(H188:H197)","v":974750},{"$f":"SUM(I188:I197)","v":-1187},{"$f":"SUM(J188:J197)","v":2069433},{"$f":"SUM(K188:K197)","v":0}]
[65]
[66,"TOTAL DEPRECIATION RESERVE",null,null,null,{"$f":"F198+F186+F171+F145+F139","v":66655247},64923162,1708495,23590,66655247,0]
[]
[{"$f":"co_name","v":"DUKE ENERGY KENTUCKY, INC."},null,null,null,null,null,null,null,null,{"$f":"J1","v":"FR-16(7)(v)-21"}]
[{"$f":"$A$2","v":"DT PRIMARY CLASSIFIED - ELECTRIC COST OF SERVICE"},null,null,null,null,null,null,null,null,{"$f":"J2","v":"WITNESS RESPONSIBLE:"}]
[{"$f":"case_name","v":"CASE NO: 2019-00271"},null,null,null,null,null,null,null,null,{"$f":"Witness","v":"JAMES E. ZIOLKOWSKI"}]
[{"$f":"data_filing","v":"DATA: 12 MONTHS ACTUAL  & 0 MONTHS ESTIMATED"},null,null,null,null,null,null,null,null,{"$f":"\"PAGE \"&Pages2-11&\" OF \"&Pages2","v":"PAGE 4 OF 15"}]
[{"$f":"type","v":"TYPE OF FILING: \"X\" ORIGINAL   UPDATED    REVISED  "}]
[]
[]
["LINE",null,null,null,null,"TOTAL","CLASSIFIED",null,null,"TOTAL","ALL"]
["NO.",{"$f":"\"NET ELECTRIC PLANT\"","v":"NET ELECTRIC PLANT"},null,"ALLO",null,{"$f":"$F$9","v":"DT PRIMARY"},{"$f":"G9","v":"DEMAND"},"ENERGY","CUSTOMER","AT ISSUE","OTHER"]
[null,null,"Schedule 4",null,null,null,3,4,5]
[1,"PRODUCTION PLANT"]
[2,null,{"$f":"'FR-16(7)(v)-1 Functional'!C213","v":"PRODUCTION STEAM"},null,null,{"$f":"F59-F136","v":38733220},38733220,0,0,38733220,0]
[3,null,{"$f":"'FR-16(7)(v)-1 Functional'!C214","v":"PRODUCTION OTHER"},null,null,16881225,16881225,0,0,16881225,0]
[4,null,{"$f":"'FR-16(7)(v)-1 Functional'!C215","v":"ADJUSTMENT"},null,null,-138576,-138576,0,0,-138576,0]
[5,null,{"$f":"'FR-16(7)(v)-1 Functional'!C216","v":"  NET PRODUCTION PLANT"},null,null,{"$f":"SUM(F213:F215)","v":55475869},55475869,0,0,55475869,0]
[6]
[7,"TRANSMISSION PLANT"]
[8,null,{"$f":"'FR-16(7)(v)-1 Functional'!C219","v":"MAIN STEP-UP TRANSFORMERS"},null,null,{"$f":"F65-F142","v":0},0,0,0,0,0]
[9,null,{"$f":"'FR-16(7)(v)-1 Functional'!C220","v":"OTHER TRANSMISSION"},null,null,4675735,4675735,0,0,4675735,0]
[10,null,{"$f":"'FR-16(7)(v)-1 Functional'!C221","v":"ADJUSTMENT"},null,null,6260,6260,0,0,6260,0]
[11,null,{"$f":"'FR-16(7)(v)-1 Functional'!C222","v":"    NET TRANSMISSION PLANT"},null,null,{"$f":"SUM(F218:F221)","v":4681995},4681995,0,0,4681995,0]
[12]
[13,"NET PROD & TRANS PLANT",null,null,null,{"$f":"F70-F147","v":60157864},60157864,0,0,60157864,0]
[14]
[15,"DISTRIBUTION PLANT"]
[16,null,{"$f":"'FR-16(7)(v)-1 Functional'!C227","v":"SUBSTATIONS"},null,null,{"$f":"F73-F150","v":6759929},6759929,0,0,6759929,0]
[17,null,{"$f":"'FR-16(7)(v)-1 Functional'!C228","v":"POLES, TOWERS  & FIXTURES - PRIMARY - DEMAND"},null,null,1669782,1669782,0,0,1669782,0]
[18,null,{"$f":"'FR-16(7)(v)-1 Functional'!C229","v":"POLES, TOWERS  & FIXTURES - PRIMARY - CUSTOMER"},null,null,{"$f":"F75-F152","v":2131},0,0,2131,2131,0]
[19,null,{"$f":"'FR-16(7)(v)-1 Functional'!C230","v":"POLES, TOWERS  & FIXTURES - SECONDARY - DEMAND"},null,null,{"$f":"F76-F153","v":638581},638581,0,0,638581,0]
[20,null,{"$f":"'FR-16(7)(v)-1 Functional'!C231","v":"POLES, TOWERS  & FIXTURES - SECONDARY - CUSTOMER"},null,null,{"$f":"F77-F154","v":482},0,0,482,482,0]
[21,null,{"$f":"'FR-16(7)(v)-1 Functional'!C232","v":"CONDUCTORS - OVERHEAD / PRIMARY - DEMAND"},null,null,{"$f":"F78-F155","v":4922879},4922879,0,0,4922879,0]
[22,null,{"$f":"'FR-16(7)(v)-1 Functional'!C233","v":"CONDUCTORS - OVERHEAD / PRIMARY - CUSTOMER"},null,null,{"$f":"F79-F156","v":2997},0,0,2997,2997,0]
[23,null,{"$f":"'FR-16(7)(v)-1 Functional'!C234","v":"CONDUCTORS - OVERHEAD / SECONDARY - DEMAND"},null,null,{"$f":"F80-F157","v":2004539},2004539,0,0,2004539,0]
[24,null,{"$f":"'FR-16(7)(v)-1 Functional'!C235","v":"CONDUCTORS - OVERHEAD / SECONDARY - CUSTOMER"},null,null,{"$f":"F81-F158","v":1241},0,0,1241,1241,0]
[25,null,{"$f":"'FR-16(7)(v)-1 Functional'!C236","v":"CONDUCTORS - UNDERGROUND / PRIMARY - DEMAND"},null,null,{"$f":"F82-F159","v":3686637},3686637,0,0,3686637,0]
[26,null,{"$f":"'FR-16(7)(v)-1 Functional'!C237","v":"CONDUCTORS - UNDERGROUND / PRIMARY - CUSTOMER"},null,null,{"$f":"F83-F160","v":3192},0,0,3192,3192,0]
[27,null,{"$f":"'FR-16(7)(v)-1 Functional'!C238","v":"CONDUCTORS - UNDERGROUND / SECONDARY - DEMAND"},null,null,{"$f":"F84-F161","v":631574},631574,0,0,631574,0]
[28,null,{"$f":"'FR-16(7)(v)-1 Functional'!C239","v":"CONDUCTORS - UNDERGROUND / SECONDARY - CUSTOMER"},null,null,{"$f":"F85-F162","v":998},0,0,998,998,0]
[29,null,{"$f":"'FR-16(7)(v)-1 Functional'!C240","v":"TRANSFORMERS DEMAND RELATED"},null,null,{"$f":"F86-F163","v":2481378},2481378,0,0,2481378,0]
[30,null,{"$f":"'FR-16(7)(v)-1 Functional'!C241","v":"TRANSFORMERS CUSTOMER RELATED"},null,null,2248,0,0,2248,2248,0]
[31,null,{"$f":"'FR-16(7)(v)-1 Functional'!C242","v":"SERVICES"},null,null,14734,0,0,14734,14734,0]
[32,null,{"$f":"'FR-16(7)(v)-1 Functional'!C243","v":"METERS"},null,null,0,0,0,0,0,0]
[33,null,{"$f":"'FR-16(7)(v)-1 Functional'!C244","v":"STREET LIGHTS"},null,null,0,0,0,0,0,0]
[34,null,{"$f":"'FR-16(7)(v)-1 Functional'!C245","v":"ADJUSTMENT  "},null,null,-31986,-31935,0,-51,-31986,0]
[35,null,{"$f":"'FR-16(7)(v)-1 Functional'!C246","v":"CONSTRUCTION NOT CLASSIFIED"},null,null,6379185,6368992,0,10193,6379185,0]
[36,null,{"$f":"'FR-16(7)(v)-1 Functional'!C247","v":"RWIP"},null,null,1596367,1596367,0,0,1596367,0]
[37,null,{"$f":"'FR-16(7)(v)-1 Functional'!C248","v":"  NET DISTRIBUTION PLANT"},null,null,{"$f":"SUM(F226:F247)","v":30766888},{"$f":"SUM(G226:G247)","v":30728723},0,38165,30766888,0]
[38]
[39,"NET PTD PLANT",null,null,null,{"$f":"F96-F173","v":35448883},35410718,0,38165,35448883,0]
[40,"NET TRANS & DIST PLANT",null,null,null,90924752,90886587,0,38165,90924752,0]
[41]
[42,"GENERAL & INTANGIBLE PLANT"]
[43,null,{"$f":"'FR-16(7)(v)-1 Functional'!C254","v":"PRODUCTION - DEMAND"},null,null,{"$f":"F100-F177","v":1009945},1009945,0,0,1009945,0]
[44,null,{"$f":"'FR-16(7)(v)-1 Functional'!C255","v":"PRODUCTION - ENERGY"},null,null,1516046,0,1516046,0,1516046,0]
[45,null,{"$f":"'FR-16(7)(v)-1 Functional'!C256","v":"TRANSMISSION"},null,null,159593,159593,0,0,159593,0]
[46,null,{"$f":"'FR-16(7)(v)-1 Functional'!C257","v":"DISTRIBUTION - DEMAND"},null,null,536011,536011,0,0,536011,0]
[47,null,{"$f":"'FR-16(7)(v)-1 Functional'!C258","v":"DISTRIBUTION - CUSTOMER"}]
[48,null,{"$f":"'FR-16(7)(v)-1 Functional'!C259","v":"CUSTOMER ACCOUNTING"},null,null,{"$f":"F105-F182","v":-2265},0,0,-2265,-2265,0]
[49,null,{"$f":"'FR-16(7)(v)-1 Functional'!C260","v":"CUSTOMER SERVICE & INFORMATION"},null,null,77,0,0,77,77,0]
[50,null,{"$f":"'FR-16(7)(v)-1 Functional'!C261","v":"SALES"},null,null,0,0,0,0,0,0]
[51,null,{"$f":"'FR-16(7)(v)-1 Functional'!C262","v":"ADJUSTMENT"},null,null,-14494,-1638,-12873,17,-14494,0]
[52,null,{"$f":"'FR-16(7)(v)-1 Functional'!C263","v":"  NET GENERAL & INTANG PLANT"},null,null,{"$f":"SUM(F253:F262)","v":3204913},1703911,1503173,-2171,3204913,0]
[53]
[54,"COMMON & OTHER PLANT"]
[55,null,{"$f":"'FR-16(7)(v)-1 Functional'!C266","v":"PRODUCTION - DEMAND"},null,null,{"$f":"F112-F189","v":194540},194540,0,0,194540,0]
[56,null,{"$f":"'FR-16(7)(v)-1 Functional'!C267","v":"PRODUCTION - ENERGY"},null,null,292029,0,292029,0,292029,0]
[57,null,{"$f":"'FR-16(7)(v)-1 Functional'!C268","v":"TRANSMISSION"},null,null,30742,30742,0,0,30742,0]
[58,null,{"$f":"'FR-16(7)(v)-1 Functional'!C269","v":"DISTRIBUTION - DEMAND"},null,null,103250,103250,0,0,103250,0]
[59,null,{"$f":"'FR-16(7)(v)-1 Functional'!C270","v":"DISTRIBUTION - CUSTOMER"}]
[60,null,{"$f":"'FR-16(7)(v)-1 Functional'!C271","v":"CUSTOMER ACCOUNTING"},null,null,{"$f":"F117-F194","v":-436},0,0,-436,-436,0]
[61,null,{"$f":"'FR-16(7)(v)-1 Functional'!C272","v":"CUSTOMER SERVICE & INFORMATION"},null,null,15,0,0,15,15,0]
[62,null,{"$f":"'FR-16(7)(v)-1 Functional'!C273","v":"SALES"},null,null,0,0,0,0,0,0]
[63,null,{"$f":"'FR-16(7)(v)-1 Functional'!C274","v":"ADJUSTMENT"},null,null,-814,-92,-723,1,-814,0]
[64,null,{"$f":"'FR-16(7)(v)-1 Functional'!C275","v":"  COMMON & OTHER PLANT IN SERVICE"},null,null,{"$f":"SUM(F265:F274)","v":619326},328440,291306,-420,619326,0]
[65]
[66,null,{"$f":"'FR-16(7)(v)-1 Functional'!C277","v":"NET ELECTRIC PLANT IN SERVICE"},null,null,{"$f":"F275+F263+F248+F222+F216","v":94748991},92918938,1794479,35574,94748991,0]
[]
[{"$f":"co_name","v":"DUKE ENERGY KENTUCKY, INC."},null,null,null,null,null,null,null,null,{"$f":"J1","v":"FR-16(7)(v)-21"}]
[{"$f":"$A$2","v":"DT PRIMARY CLASSIFIED - ELECTRIC COST OF SERVICE"},null,null,null,null,null,null,null,null,{"$f":"J2","v":"WITNESS RESPONSIBLE:"}]
[{"$f":"case_name","v":"CASE NO: 2019-00271"},null,null,null,null,null,null,null,null,{"$f":"Witness","v":"JAMES E. ZIOLKOWSKI"}]
[{"$f":"data_filing","v":"DATA: 12 MONTHS ACTUAL  & 0 MONTHS ESTIMATED"},null,null,null,null,null,null,null,null,{"$f":"\"PAGE \"&Pages2-10&\" OF \"&Pages2","v":"PAGE 5 OF 15"}]
[{"$f":"type","v":"TYPE OF FILING: \"X\" ORIGINAL   UPDATED    REVISED  "}]
[]
[]
["LINE",null,null,null,null,"TOTAL","CLASSIFIED",null,null,"TOTAL","ALL"]
["NO.","SUBTRACTIVE RATE BASE ADJUSTMENTS",null,"ALLO",null,{"$f":"$F$9","v":"DT PRIMARY"},{"$f":"G9","v":"DEMAND"},"ENERGY","CUSTOMER","AT ISSUE","OTHER"]
[null,null,"Schedule 5",null,null,null,3,4,5]
[1,"RATE BASE ADJUSTMENTS"]
[2,"ACCUMULATED DEFERRED INCOME TAXES"]
[3," ACCUM DEF INC TAXES (282)"]
[4,null,{"$f":"'FR-16(7)(v)-1 Functional'!C292","v":"LIBERALIZED DEPRECIATION"},{"$f":"'FR-16(7)(v)-1 Functional'!D292","v":"NP29"}," ",{"$f":"'FR-16(7)(v)-14 TOTAL CLASS'!M292","v":5616961},{"$f":"'FR-16(7)(v)-3 PROD Demand'!M292+'FR-16(7)(v)-7 TRANS Demand'!M292+'FR-16(7)(v)-11 DIST Demand'!M292","v":5508615},{"$f":"'FR-16(7)(v)-4 PROD Energy'!M292+'FR-16(7)(v)-8 TRANS Energy'!M292+'FR-16(7)(v)-12 DIST Energy'!M292","v":106253},{"$f":"'FR-16(7)(v)-5 PROD Cust'!M292+'FR-16(7)(v)-9 TRANS Cust'!M292+'FR-16(7)(v)-13 DIST Cust'!M292","v":2093},{"$f":"SUM(G292:I292)","v":5616961},{"$f":"F292-J292","v":0}]
[5,null,{"$f":"'FR-16(7)(v)-1 Functional'!C293","v":"LEASED METERS"},{"$f":"'FR-16(7)(v)-1 Functional'!D293","v":"NP29"}," ",{"$f":"'FR-16(7)(v)-14 TOTAL CLASS'!M293","v":127406},{"$f":"'FR-16(7)(v)-3 PROD Demand'!M293+'FR-16(7)(v)-7 TRANS Demand'!M293+'FR-16(7)(v)-11 DIST Demand'!M293","v":124948},{"$f":"'FR-16(7)(v)-4 PROD Energy'!M293+'FR-16(7)(v)-8 TRANS Energy'!M293+'FR-16(7)(v)-12 DIST Energy'!M293","v":2410},{"$f":"'FR-16(7)(v)-5 PROD Cust'!M293+'FR-16(7)(v)-9 TRANS Cust'!M293+'FR-16(7)(v)-13 DIST Cust'!M293","v":48},127406,0]
[6,null,{"$f":"'FR-16(7)(v)-1 Functional'!C294","v":"CONTRIB AID CONSTR"},{"$f":"'FR-16(7)(v)-1 Functional'!D294","v":"D249"}," ",{"$f":"'FR-16(7)(v)-14 TOTAL CLASS'!M294","v":0},{"$f":"'FR-16(7)(v)-3 PROD Demand'!M294+'FR-16(7)(v)-7 TRANS Demand'!M294+'FR-16(7)(v)-11 DIST Demand'!M294","v":0},{"$f":"'FR-16(7)(v)-4 PROD Energy'!M294+'FR-16(7)(v)-8 TRANS Energy'!M294+'FR-16(7)(v)-12 DIST Energy'!M294","v":0},{"$f":"'FR-16(7)(v)-5 PROD Cust'!M294+'FR-16(7)(v)-9 TRANS Cust'!M294+'FR-16(7)(v)-13 DIST Cust'!M294","v":0},0,0]
[7,null,{"$f":"'FR-16(7)(v)-1 Functional'!C295","v":"TAX INTEREST, EXPENSING, DEPR."},{"$f":"'FR-16(7)(v)-1 Functional'!D295","v":"NP29"}," ",{"$f":"'FR-16(7)(v)-14 TOTAL CLASS'!M295","v":5608419},{"$f":"'FR-16(7)(v)-3 PROD Demand'!M295+'FR-16(7)(v)-7 TRANS Demand'!M295+'FR-16(7)(v)-11 DIST Demand'!M295","v":5500238},{"$f":"'FR-16(7)(v)-4 PROD Energy'!M295+'FR-16(7)(v)-8 TRANS Energy'!M295+'FR-16(7)(v)-12 DIST Energy'!M295","v":106091},{"$f":"'FR-16(7)(v)-5 PROD Cust'!M295+'FR-16(7)(v)-9 TRANS Cust'!M295+'FR-16(7)(v)-13 DIST Cust'!M295","v":2090},5608419,0]
[8,null,{"$f":"'FR-16(7)(v)-1 Functional'!C296","v":"AFUDC IN DEBT"},{"$f":"'FR-16(7)(v)-1 Functional'!D296","v":"NP29"}," ",{"$f":"'FR-16(7)(v)-14 TOTAL CLASS'!M296","v":0},{"$f":"'FR-16(7)(v)-3 PROD Demand'!M296+'FR-16(7)(v)-7 TRANS Demand'!M296+'FR-16(7)(v)-11 DIST Demand'!M296","v":0},{"$f":"'FR-16(7)(v)-4 PROD Energy'!M296+'FR-16(7)(v)-8 TRANS Energy'!M296+'FR-16(7)(v)-12 DIST Energy'!M296","v":0},{"$f":"'FR-16(7)(v)-5 PROD Cust'!M296+'FR-16(7)(v)-9 TRANS Cust'!M296+'FR-16(7)(v)-13 DIST Cust'!M296","v":0},0,0]
[9,null,{"$f":"'FR-16(7)(v)-1 Functional'!C297","v":"CASUALTY LOSS"},{"$f":"'FR-16(7)(v)-1 Functional'!D297","v":"K411"}," ",{"$f":"'FR-16(7)(v)-14 TOTAL CLASS'!M297","v":-5470},{"$f":"'FR-16(7)(v)-3 PROD Demand'!M297+'FR-16(7)(v)-7 TRANS Demand'!M297+'FR-16(7)(v)-11 DIST Demand'!M297","v":0},{"$f":"'FR-16(7)(v)-4 PROD Energy'!M297+'FR-16(7)(v)-8 TRANS Energy'!M297+'FR-16(7)(v)-12 DIST Energy'!M297","v":0},{"$f":"'FR-16(7)(v)-5 PROD Cust'!M297+'FR-16(7)(v)-9 TRANS Cust'!M297+'FR-16(7)(v)-13 DIST Cust'!M297","v":-5470},-5470,0]
[10,null,{"$f":"'FR-16(7)(v)-1 Functional'!C298","v":"NON-CASH OVERHEADS"},{"$f":"'FR-16(7)(v)-1 Functional'!D298","v":"G229"}," ",{"$f":"'FR-16(7)(v)-14 TOTAL CLASS'!M298","v":0},{"$f":"'FR-16(7)(v)-3 PROD Demand'!M298+'FR-16(7)(v)-7 TRANS Demand'!M298+'FR-16(7)(v)-11 DIST Demand'!M298","v":0},{"$f":"'FR-16(7)(v)-4 PROD Energy'!M298+'FR-16(7)(v)-8 TRANS Energy'!M298+'FR-16(7)(v)-12 DIST Energy'!M298","v":0},{"$f":"'FR-16(7)(v)-5 PROD Cust'!M298+'FR-16(7)(v)-9 TRANS Cust'!M298+'FR-16(7)(v)-13 DIST Cust'!M298","v":0},0,0]
[11,null,{"$f":"'FR-16(7)(v)-1 Functional'!C299","v":"PLANT FAS 109"},{"$f":"'FR-16(7)(v)-1 Functional'!D299","v":"NP29"}," ",{"$f":"'FR-16(7)(v)-14 TOTAL CLASS'!M299","v":0},{"$f":"'FR-16(7)(v)-3 PROD Demand'!M299+'FR-16(7)(v)-7 TRANS Demand'!M299+'FR-16(7)(v)-11 DIST Demand'!M299","v":0},{"$f":"'FR-16(7)(v)-4 PROD Energy'!M299+'FR-16(7)(v)-8 TRANS Energy'!M299+'FR-16(7)(v)-12 DIST Energy'!M299","v":0},{"$f":"'FR-16(7)(v)-5 PROD Cust'!M299+'FR-16(7)(v)-9 TRANS Cust'!M299+'FR-16(7)(v)-13 DIST Cust'!M299","v":0},0,0]
[12,null,{"$f":"'FR-16(7)(v)-1 Functional'!C300","v":"MISCELLANEOUS"},{"$f":"'FR-16(7)(v)-1 Functional'!D300","v":"NP29"},null,{"$f":"'FR-16(7)(v)-14 TOTAL CLASS'!M300","v":5292293},{"$f":"'FR-16(7)(v)-3 PROD Demand'!M300+'FR-16(7)(v)-7 TRANS Demand'!M300+'FR-16(7)(v)-11 DIST Demand'!M300","v":5190209},{"$f":"'FR-16(7)(v)-4 PROD Energy'!M300+'FR-16(7)(v)-8 TRANS Energy'!M300+'FR-16(7)(v)-12 DIST Energy'!M300","v":100111},{"$f":"'FR-16(7)(v)-5 PROD Cust'!M300+'FR-16(7)(v)-9 TRANS Cust'!M300+'FR-16(7)(v)-13 DIST Cust'!M300","v":1973},5292293,0]
[13,null,{"$f":"'FR-16(7)(v)-1 Functional'!C301","v":"  TOTAL ACCOUNT 282"},null,null,{"$f":"SUM(F292:F300)","v":16639609},16324010,314865,734,16639609,0]
[14]
[15," ACCUM DEF INC TAXES (283)"]
[16,null,{"$f":"'FR-16(7)(v)-1 Functional'!C304","v":"TRANSITION FROM MISO TO PJM"},{"$f":"'FR-16(7)(v)-1 Functional'!D304","v":"NP29"},null,{"$f":"'FR-16(7)(v)-14 TOTAL CLASS'!M304","v":-301391},{"$f":"'FR-16(7)(v)-3 PROD Demand'!M304+'FR-16(7)(v)-7 TRANS Demand'!M304+'FR-16(7)(v)-11 DIST Demand'!M304","v":-295578},{"$f":"'FR-16(7)(v)-4 PROD Energy'!M304+'FR-16(7)(v)-8 TRANS Energy'!M304+'FR-16(7)(v)-12 DIST Energy'!M304","v":-5701},{"$f":"'FR-16(7)(v)-5 PROD Cust'!M304+'FR-16(7)(v)-9 TRANS Cust'!M304+'FR-16(7)(v)-13 DIST Cust'!M304","v":-112},{"$f":"SUM(G304:I304)","v":-301391},{"$f":"F304-J304","v":0}]
[17,null,{"$f":"'FR-16(7)(v)-1 Functional'!C305","v":"DEFERRED PLANT COSTS"},{"$f":"'FR-16(7)(v)-1 Functional'!D305","v":"NP29"},null,{"$f":"'FR-16(7)(v)-14 TOTAL CLASS'!M305","v":58716},{"$f":"'FR-16(7)(v)-3 PROD Demand'!M305+'FR-16(7)(v)-7 TRANS Demand'!M305+'FR-16(7)(v)-11 DIST Demand'!M305","v":57583},{"$f":"'FR-16(7)(v)-4 PROD Energy'!M305+'FR-16(7)(v)-8 TRANS Energy'!M305+'FR-16(7)(v)-12 DIST Energy'!M305","v":1111},{"$f":"'FR-16(7)(v)-5 PROD Cust'!M305+'FR-16(7)(v)-9 TRANS Cust'!M305+'FR-16(7)(v)-13 DIST Cust'!M305","v":22},58716,0]
[18,null,{"$f":"'FR-16(7)(v)-1 Functional'!C306","v":"MISCELLANEOUS"},{"$f":"'FR-16(7)(v)-1 Functional'!D306","v":"OM39"},null,{"$f":"'FR-16(7)(v)-14 TOTAL CLASS'!M306","v":1075457},{"$f":"'FR-16(7)(v)-3 PROD Demand'!M306+'FR-16(7)(v)-7 TRANS Demand'!M306+'FR-16(7)(v)-11 DIST Demand'!M306","v":192196},{"$f":"'FR-16(7)(v)-4 PROD Energy'!M306+'FR-16(7)(v)-8 TRANS Energy'!M306+'FR-16(7)(v)-12 DIST Energy'!M306","v":883370},{"$f":"'FR-16(7)(v)-5 PROD Cust'!M306+'FR-16(7)(v)-9 TRANS Cust'!M306+'FR-16(7)(v)-13 DIST Cust'!M306","v":-109},1075457,0]
[19,null,{"$f":"'FR-16(7)(v)-1 Functional'!C307","v":"ENVIRONMENTAL RESERVE"},{"$f":"'FR-16(7)(v)-1 Functional'!D307","v":"NP29"},null,{"$f":"'FR-16(7)(v)-14 TOTAL CLASS'!M307","v":0},{"$f":"'FR-16(7)(v)-3 PROD Demand'!M307+'FR-16(7)(v)-7 TRANS Demand'!M307+'FR-16(7)(v)-11 DIST Demand'!M307","v":0},{"$f":"'FR-16(7)(v)-4 PROD Energy'!M307+'FR-16(7)(v)-8 TRANS Energy'!M307+'FR-16(7)(v)-12 DIST Energy'!M307","v":0},{"$f":"'FR-16(7)(v)-5 PROD Cust'!M307+'FR-16(7)(v)-9 TRANS Cust'!M307+'FR-16(7)(v)-13 DIST Cust'!M307","v":0},0,0]
[20,null,{"$f":"'FR-16(7)(v)-1 Functional'!C308","v":"POST IN-SERVICE CARRYING COSTS"},{"$f":"'FR-16(7)(v)-1 Functional'!D308","v":"NP29"},null,{"$f":"'FR-16(7)(v)-14 TOTAL CLASS'!M308","v":0},{"$f":"'FR-16(7)(v)-3 PROD Demand'!M308+'FR-16(7)(v)-7 TRANS Demand'!M308+'FR-16(7)(v)-11 DIST Demand'!M308","v":0},{"$f":"'FR-16(7)(v)-4 PROD Energy'!M308+'FR-16(7)(v)-8 TRANS Energy'!M308+'FR-16(7)(v)-12 DIST Energy'!M308","v":0},{"$f":"'FR-16(7)(v)-5 PROD Cust'!M308+'FR-16(7)(v)-9 TRANS Cust'!M308+'FR-16(7)(v)-13 DIST Cust'!M308","v":0},0,0]
[21,null,{"$f":"'FR-16(7)(v)-1 Functional'!C309","v":"ARO CUMULATIVE EFFECT"},{"$f":"'FR-16(7)(v)-1 Functional'!D309","v":"NP29"},null,{"$f":"'FR-16(7)(v)-14 TOTAL CLASS'!M309","v":0},{"$f":"'FR-16(7)(v)-3 PROD Demand'!M309+'FR-16(7)(v)-7 TRANS Demand'!M309+'FR-16(7)(v)-11 DIST Demand'!M309","v":0},{"$f":"'FR-16(7)(v)-4 PROD Energy'!M309+'FR-16(7)(v)-8 TRANS Energy'!M309+'FR-16(7)(v)-12 DIST Energy'!M309","v":0},{"$f":"'FR-16(7)(v)-5 PROD Cust'!M309+'FR-16(7)(v)-9 TRANS Cust'!M309+'FR-16(7)(v)-13 DIST Cust'!M309","v":0},0,0]
[22,null,{"$f":"'FR-16(7)(v)-1 Functional'!C310","v":"LOSS ON REACQUIRED DEBT"},{"$f":"'FR-16(7)(v)-1 Functional'!D310","v":"D249"},null,{"$f":"'FR-16(7)(v)-14 TOTAL CLASS'!M310","v":0},{"$f":"'FR-16(7)(v)-3 PROD Demand'!M310+'FR-16(7)(v)-7 TRANS Demand'!M310+'FR-16(7)(v)-11 DIST Demand'!M310","v":0},{"$f":"'FR-16(7)(v)-4 PROD Energy'!M310+'FR-16(7)(v)-8 TRANS Energy'!M310+'FR-16(7)(v)-12 DIST Energy'!M310","v":0},{"$f":"'FR-16(7)(v)-5 PROD Cust'!M310+'FR-16(7)(v)-9 TRANS Cust'!M310+'FR-16(7)(v)-13 DIST Cust'!M310","v":0},0,0]
[23,null,{"$f":"'FR-16(7)(v)-1 Functional'!C311","v":"VACATION PAY ACCRUAL"},{"$f":"'FR-16(7)(v)-1 Functional'!D311","v":"A315"},null,{"$f":"'FR-16(7)(v)-14 TOTAL CLASS'!M311","v":0},{"$f":"'FR-16(7)(v)-3 PROD Demand'!M311+'FR-16(7)(v)-7 TRANS Demand'!M311+'FR-16(7)(v)-11 DIST Demand'!M311","v":0},{"$f":"'FR-16(7)(v)-4 PROD Energy'!M311+'FR-16(7)(v)-8 TRANS Energy'!M311+'FR-16(7)(v)-12 DIST Energy'!M311","v":0},{"$f":"'FR-16(7)(v)-5 PROD Cust'!M311+'FR-16(7)(v)-9 TRANS Cust'!M311+'FR-16(7)(v)-13 DIST Cust'!M311","v":0},0,0]
[24,null,{"$f":"'FR-16(7)(v)-1 Functional'!C312","v":"NON-AMI METERS RETIRED EARLY"},{"$f":"'FR-16(7)(v)-1 Functional'!D312","v":"OM39"},null,{"$f":"'FR-16(7)(v)-14 TOTAL CLASS'!M312","v":129039},{"$f":"'FR-16(7)(v)-3 PROD Demand'!M312+'FR-16(7)(v)-7 TRANS Demand'!M312+'FR-16(7)(v)-11 DIST Demand'!M312","v":23060},{"$f":"'FR-16(7)(v)-4 PROD Energy'!M312+'FR-16(7)(v)-8 TRANS Energy'!M312+'FR-16(7)(v)-12 DIST Energy'!M312","v":105992},{"$f":"'FR-16(7)(v)-5 PROD Cust'!M312+'FR-16(7)(v)-9 TRANS Cust'!M312+'FR-16(7)(v)-13 DIST Cust'!M312","v":-13},{"$f":"SUM(G312:I312)","v":129039},{"$f":"F312-J312","v":0}]
[25,null,{"$f":"'FR-16(7)(v)-1 Functional'!C313","v":"PENSION EXPENSE"},{"$f":"'FR-16(7)(v)-1 Functional'!D313","v":"A315"},null,{"$f":"'FR-16(7)(v)-14 TOTAL CLASS'!M313","v":384840},{"$f":"'FR-16(7)(v)-3 PROD Demand'!M313+'FR-16(7)(v)-7 TRANS Demand'!M313+'FR-16(7)(v)-11 DIST Demand'!M313","v":112890},{"$f":"'FR-16(7)(v)-4 PROD Energy'!M313+'FR-16(7)(v)-8 TRANS Energy'!M313+'FR-16(7)(v)-12 DIST Energy'!M313","v":272309},{"$f":"'FR-16(7)(v)-5 PROD Cust'!M313+'FR-16(7)(v)-9 TRANS Cust'!M313+'FR-16(7)(v)-13 DIST Cust'!M313","v":-359},{"$f":"SUM(G313:I313)","v":384840},{"$f":"F313-J313","v":0}]
[26,null,{"$f":"'FR-16(7)(v)-1 Functional'!C314","v":"UNCOLLECTIBLE ACCOUNTS"},{"$f":"'FR-16(7)(v)-1 Functional'!D314","v":"K411"},null,{"$f":"'FR-16(7)(v)-14 TOTAL CLASS'!M314","v":0},{"$f":"'FR-16(7)(v)-3 PROD Demand'!M314+'FR-16(7)(v)-7 TRANS Demand'!M314+'FR-16(7)(v)-11 DIST Demand'!M314","v":0},{"$f":"'FR-16(7)(v)-4 PROD Energy'!M314+'FR-16(7)(v)-8 TRANS Energy'!M314+'FR-16(7)(v)-12 DIST Energy'!M314","v":0},{"$f":"'FR-16(7)(v)-5 PROD Cust'!M314+'FR-16(7)(v)-9 TRANS Cust'!M314+'FR-16(7)(v)-13 DIST Cust'!M314","v":0},0,0]
[27,null,{"$f":"'FR-16(7)(v)-1 Functional'!C315","v":"  TOTAL ACCOUNT 283"},null,null,{"$f":"SUM(F303:F314)","v":1346661},90151,1257081,-571,1346661,0]
[28]
[29," OTHER ACCUMULATED DEFERRED INCOME TAXES"]
[30,null,{"$f":"'FR-16(7)(v)-1 Functional'!C318","v":"EXCESS ADIT"},{"$f":"'FR-16(7)(v)-1 Functional'!D318","v":"NP29"},null,{"$f":"'FR-16(7)(v)-14 TOTAL CLASS'!M318","v":5224379},{"$f":"'FR-16(7)(v)-3 PROD Demand'!M318+'FR-16(7)(v)-7 TRANS Demand'!M318+'FR-16(7)(v)-11 DIST Demand'!M318","v":5123605},{"$f":"'FR-16(7)(v)-4 PROD Energy'!M318+'FR-16(7)(v)-8 TRANS Energy'!M318+'FR-16(7)(v)-12 DIST Energy'!M318","v":98826},{"$f":"'FR-16(7)(v)-5 PROD Cust'!M318+'FR-16(7)(v)-9 TRANS Cust'!M318+'FR-16(7)(v)-13 DIST Cust'!M318","v":1948},{"$f":"SUM(G318:I318)","v":5224379},{"$f":"F318-J318","v":0}]
[31,null,{"$f":"'FR-16(7)(v)-1 Functional'!C319","v":"CUSTOMER SERVICE DEPOSITS"},{"$f":"'FR-16(7)(v)-1 Functional'!D319","v":"NP29"},null,{"$f":"'FR-16(7)(v)-14 TOTAL CLASS'!M319","v":0},{"$f":"'FR-16(7)(v)-3 PROD Demand'!M319+'FR-16(7)(v)-7 TRANS Demand'!M319+'FR-16(7)(v)-11 DIST Demand'!M319","v":0},{"$f":"'FR-16(7)(v)-4 PROD Energy'!M319+'FR-16(7)(v)-8 TRANS Energy'!M319+'FR-16(7)(v)-12 DIST Energy'!M319","v":0},{"$f":"'FR-16(7)(v)-5 PROD Cust'!M319+'FR-16(7)(v)-9 TRANS Cust'!M319+'FR-16(7)(v)-13 DIST Cust'!M319","v":0},{"$f":"SUM(G319:I319)","v":0},{"$f":"F319-J319","v":0}]
[32,null,{"$f":"'FR-16(7)(v)-1 Functional'!C320","v":"POST RETIREMENT BENEFITS"},{"$f":"'FR-16(7)(v)-1 Functional'!D320","v":"NP29"},null,{"$f":"'FR-16(7)(v)-14 TOTAL CLASS'!M320","v":0},{"$f":"'FR-16(7)(v)-3 PROD Demand'!M320+'FR-16(7)(v)-7 TRANS Demand'!M320+'FR-16(7)(v)-11 DIST Demand'!M320","v":0},{"$f":"'FR-16(7)(v)-4 PROD Energy'!M320+'FR-16(7)(v)-8 TRANS Energy'!M320+'FR-16(7)(v)-12 DIST Energy'!M320","v":0},{"$f":"'FR-16(7)(v)-5 PROD Cust'!M320+'FR-16(7)(v)-9 TRANS Cust'!M320+'FR-16(7)(v)-13 DIST Cust'!M320","v":0},{"$f":"SUM(G320:I320)","v":0},{"$f":"F320-J320","v":0}]
[33,null,{"$f":"'FR-16(7)(v)-1 Functional'!C321","v":"INVESTMENT TAX CREDIT"},{"$f":"'FR-16(7)(v)-1 Functional'!D321","v":"NP29"},null,{"$f":"'FR-16(7)(v)-14 TOTAL CLASS'!M321","v":0},{"$f":"'FR-16(7)(v)-3 PROD Demand'!M321+'FR-16(7)(v)-7 TRANS Demand'!M321+'FR-16(7)(v)-11 DIST Demand'!M321","v":0},{"$f":"'FR-16(7)(v)-4 PROD Energy'!M321+'FR-16(7)(v)-8 TRANS Energy'!M321+'FR-16(7)(v)-12 DIST Energy'!M321","v":0},{"$f":"'FR-16(7)(v)-5 PROD Cust'!M321+'FR-16(7)(v)-9 TRANS Cust'!M321+'FR-16(7)(v)-13 DIST Cust'!M321","v":0},{"$f":"SUM(G321:I321)","v":0},{"$f":"F321-J321","v":0}]
[34,null,{"$f":"'FR-16(7)(v)-1 Functional'!C322","v":"  TOTAL OTHER SUBTRACTIVE ADJUSTMENTS"},null,null,{"$f":"SUM(F317:F321)","v":5224379},5123605,98826,1948,5224379,0]
[35]
[36,{"$f":"'FR-16(7)(v)-1 Functional'!B324","v":"TOTAL SUBTRACTIVE RATE BASE ADJUSTMENTS"},null,null,null,{"$f":"F322+F315+F301","v":23210649},21537766,1670772,2111,23210649,0]
[]
[{"$f":"co_name","v":"DUKE ENERGY KENTUCKY, INC."},null,null,null,null,null,null,null,null,{"$f":"J1","v":"FR-16(7)(v)-21"}]
[{"$f":"$A$2","v":"DT PRIMARY CLASSIFIED - ELECTRIC COST OF SERVICE"},null,null,null,null,null,null,null,null,{"$f":"J2","v":"WITNESS RESPONSIBLE:"}]
[{"$f":"case_name","v":"CASE NO: 2019-00271"},null,null,null,null,null,null,null,null,{"$f":"Witness","v":"JAMES E. ZIOLKOWSKI"}]
[{"$f":"data_filing","v":"DATA: 12 MONTHS ACTUAL  & 0 MONTHS ESTIMATED"},null,null,null,null,null,null,null,null,{"$f":"\"PAGE \"&Pages2-9&\" OF \"&Pages2","v":"PAGE 6 OF 15"}]
[{"$f":"type","v":"TYPE OF FILING: \"X\" ORIGINAL   UPDATED    REVISED  "}]
[]
[]
["LINE",null,null,null,null,"TOTAL","CLASSIFIED",null,null,"TOTAL","ALL"]
["NO.","ADDITIVE RATE BASE ADJUSTMENTS",null,"ALLO",null,{"$f":"$F$9","v":"DT PRIMARY"},{"$f":"G9","v":"DEMAND"},"ENERGY","CUSTOMER","AT ISSUE","OTHER"]
[null,null,"Schedule 5.1",null,null,null,3,4,5]
[1,"OTHER ACCUMULATED DEFERRED INCOME TAXES"]
[2," ACCUM DEF INC TAXES (190)"]
[3,null,{"$f":"'FR-16(7)(v)-1 Functional'!C338","v":"UNCOLLECTIBLE ACCTS"},{"$f":"'FR-16(7)(v)-1 Functional'!D338","v":"K411"},null,{"$f":"'FR-16(7)(v)-14 TOTAL CLASS'!M338","v":1007},{"$f":"'FR-16(7)(v)-3 PROD Demand'!M338+'FR-16(7)(v)-7 TRANS Demand'!M338+'FR-16(7)(v)-11 DIST Demand'!M338","v":0},{"$f":"'FR-16(7)(v)-4 PROD Energy'!M338+'FR-16(7)(v)-8 TRANS Energy'!M338+'FR-16(7)(v)-12 DIST Energy'!M338","v":0},{"$f":"'FR-16(7)(v)-5 PROD Cust'!M338+'FR-16(7)(v)-9 TRANS Cust'!M338+'FR-16(7)(v)-13 DIST Cust'!M338","v":1007},{"$f":"SUM(G338:I338)","v":1007},{"$f":"F338-J338","v":0}]
[4,null,{"$f":"'FR-16(7)(v)-1 Functional'!C339","v":"CASH FLOW HEDGE"},{"$f":"'FR-16(7)(v)-1 Functional'!D339","v":"A315"},null,{"$f":"'FR-16(7)(v)-14 TOTAL CLASS'!M339","v":15462},{"$f":"'FR-16(7)(v)-3 PROD Demand'!M339+'FR-16(7)(v)-7 TRANS Demand'!M339+'FR-16(7)(v)-11 DIST Demand'!M339","v":4535},{"$f":"'FR-16(7)(v)-4 PROD Energy'!M339+'FR-16(7)(v)-8 TRANS Energy'!M339+'FR-16(7)(v)-12 DIST Energy'!M339","v":10941},{"$f":"'FR-16(7)(v)-5 PROD Cust'!M339+'FR-16(7)(v)-9 TRANS Cust'!M339+'FR-16(7)(v)-13 DIST Cust'!M339","v":-14},15462,0]
[5,null,{"$f":"'FR-16(7)(v)-1 Functional'!C340","v":"RESERVED FOR FUTURE USE"},{"$f":"'FR-16(7)(v)-1 Functional'!D340","v":"NP29"},null,{"$f":"'FR-16(7)(v)-14 TOTAL CLASS'!M340","v":0},{"$f":"'FR-16(7)(v)-3 PROD Demand'!M340+'FR-16(7)(v)-7 TRANS Demand'!M340+'FR-16(7)(v)-11 DIST Demand'!M340","v":0},{"$f":"'FR-16(7)(v)-4 PROD Energy'!M340+'FR-16(7)(v)-8 TRANS Energy'!M340+'FR-16(7)(v)-12 DIST Energy'!M340","v":0},{"$f":"'FR-16(7)(v)-5 PROD Cust'!M340+'FR-16(7)(v)-9 TRANS Cust'!M340+'FR-16(7)(v)-13 DIST Cust'!M340","v":0},0,0]
[6,null,{"$f":"'FR-16(7)(v)-1 Functional'!C341","v":"RESERVED FOR FUTURE USE"},{"$f":"'FR-16(7)(v)-1 Functional'!D341","v":"NP29"},null,{"$f":"'FR-16(7)(v)-14 TOTAL CLASS'!M341","v":0},{"$f":"'FR-16(7)(v)-3 PROD Demand'!M341+'FR-16(7)(v)-7 TRANS Demand'!M341+'FR-16(7)(v)-11 DIST Demand'!M341","v":0},{"$f":"'FR-16(7)(v)-4 PROD Energy'!M341+'FR-16(7)(v)-8 TRANS Energy'!M341+'FR-16(7)(v)-12 DIST Energy'!M341","v":0},{"$f":"'FR-16(7)(v)-5 PROD Cust'!M341+'FR-16(7)(v)-9 TRANS Cust'!M341+'FR-16(7)(v)-13 DIST Cust'!M341","v":0},0,0]
[7,null,{"$f":"'FR-16(7)(v)-1 Functional'!C342","v":"ELECTRIC METERS"},{"$f":"'FR-16(7)(v)-1 Functional'!D342","v":"K407"},null,{"$f":"'FR-16(7)(v)-14 TOTAL CLASS'!M342","v":0},{"$f":"'FR-16(7)(v)-3 PROD Demand'!M342+'FR-16(7)(v)-7 TRANS Demand'!M342+'FR-16(7)(v)-11 DIST Demand'!M342","v":0},{"$f":"'FR-16(7)(v)-4 PROD Energy'!M342+'FR-16(7)(v)-8 TRANS Energy'!M342+'FR-16(7)(v)-12 DIST Energy'!M342","v":0},{"$f":"'FR-16(7)(v)-5 PROD Cust'!M342+'FR-16(7)(v)-9 TRANS Cust'!M342+'FR-16(7)(v)-13 DIST Cust'!M342","v":0},0,0]
[8,null,{"$f":"'FR-16(7)(v)-1 Functional'!C343","v":"UNAMORTIZED DEBT PREMIUM"},{"$f":"'FR-16(7)(v)-1 Functional'!D343","v":"D249"},null,{"$f":"'FR-16(7)(v)-14 TOTAL CLASS'!M343","v":0},{"$f":"'FR-16(7)(v)-3 PROD Demand'!M343+'FR-16(7)(v)-7 TRANS Demand'!M343+'FR-16(7)(v)-11 DIST Demand'!M343","v":0},{"$f":"'FR-16(7)(v)-4 PROD Energy'!M343+'FR-16(7)(v)-8 TRANS Energy'!M343+'FR-16(7)(v)-12 DIST Energy'!M343","v":0},{"$f":"'FR-16(7)(v)-5 PROD Cust'!M343+'FR-16(7)(v)-9 TRANS Cust'!M343+'FR-16(7)(v)-13 DIST Cust'!M343","v":0},0,0]
[9,null,{"$f":"'FR-16(7)(v)-1 Functional'!C344","v":"ARO CUMULATIVE EFFECT"},{"$f":"'FR-16(7)(v)-1 Functional'!D344","v":"NP29"},null,{"$f":"'FR-16(7)(v)-14 TOTAL CLASS'!M344","v":0},{"$f":"'FR-16(7)(v)-3 PROD Demand'!M344+'FR-16(7)(v)-7 TRANS Demand'!M344+'FR-16(7)(v)-11 DIST Demand'!M344","v":0},{"$f":"'FR-16(7)(v)-4 PROD Energy'!M344+'FR-16(7)(v)-8 TRANS Energy'!M344+'FR-16(7)(v)-12 DIST Energy'!M344","v":0},{"$f":"'FR-16(7)(v)-5 PROD Cust'!M344+'FR-16(7)(v)-9 TRANS Cust'!M344+'FR-16(7)(v)-13 DIST Cust'!M344","v":0},0,0]
[10,null,{"$f":"'FR-16(7)(v)-1 Functional'!C345","v":"RETIREMENT PLAN"},{"$f":"'FR-16(7)(v)-1 Functional'!D345","v":"A315"},null,{"$f":"'FR-16(7)(v)-14 TOTAL CLASS'!M345","v":158833},{"$f":"'FR-16(7)(v)-3 PROD Demand'!M345+'FR-16(7)(v)-7 TRANS Demand'!M345+'FR-16(7)(v)-11 DIST Demand'!M345","v":46593},{"$f":"'FR-16(7)(v)-4 PROD Energy'!M345+'FR-16(7)(v)-8 TRANS Energy'!M345+'FR-16(7)(v)-12 DIST Energy'!M345","v":112389},{"$f":"'FR-16(7)(v)-5 PROD Cust'!M345+'FR-16(7)(v)-9 TRANS Cust'!M345+'FR-16(7)(v)-13 DIST Cust'!M345","v":-149},158833,0]
[11,null,{"$f":"'FR-16(7)(v)-1 Functional'!C346","v":"POST RETIREMENT BENEFITS "},{"$f":"'FR-16(7)(v)-1 Functional'!D346","v":"A315"},null,{"$f":"'FR-16(7)(v)-14 TOTAL CLASS'!M346","v":0},{"$f":"'FR-16(7)(v)-3 PROD Demand'!M346+'FR-16(7)(v)-7 TRANS Demand'!M346+'FR-16(7)(v)-11 DIST Demand'!M346","v":0},{"$f":"'FR-16(7)(v)-4 PROD Energy'!M346+'FR-16(7)(v)-8 TRANS Energy'!M346+'FR-16(7)(v)-12 DIST Energy'!M346","v":0},{"$f":"'FR-16(7)(v)-5 PROD Cust'!M346+'FR-16(7)(v)-9 TRANS Cust'!M346+'FR-16(7)(v)-13 DIST Cust'!M346","v":0},0,0]
[12,null,{"$f":"'FR-16(7)(v)-1 Functional'!C347","v":"POST RETIREMENT BENEFITS - HEALTH CARE"},{"$f":"'FR-16(7)(v)-1 Functional'!D347","v":"A315"},null,{"$f":"'FR-16(7)(v)-14 TOTAL CLASS'!M347","v":0},{"$f":"'FR-16(7)(v)-3 PROD Demand'!M347+'FR-16(7)(v)-7 TRANS Demand'!M347+'FR-16(7)(v)-11 DIST Demand'!M347","v":0},{"$f":"'FR-16(7)(v)-4 PROD Energy'!M347+'FR-16(7)(v)-8 TRANS Energy'!M347+'FR-16(7)(v)-12 DIST Energy'!M347","v":0},{"$f":"'FR-16(7)(v)-5 PROD Cust'!M347+'FR-16(7)(v)-9 TRANS Cust'!M347+'FR-16(7)(v)-13 DIST Cust'!M347","v":0},0,0]
[13,null,{"$f":"'FR-16(7)(v)-1 Functional'!C348","v":"POST EMPLOYMENT BENEFITS - SFAS 112"},{"$f":"'FR-16(7)(v)-1 Functional'!D348","v":"A315"},null,{"$f":"'FR-16(7)(v)-14 TOTAL CLASS'!M348","v":0},{"$f":"'FR-16(7)(v)-3 PROD Demand'!M348+'FR-16(7)(v)-7 TRANS Demand'!M348+'FR-16(7)(v)-11 DIST Demand'!M348","v":0},{"$f":"'FR-16(7)(v)-4 PROD Energy'!M348+'FR-16(7)(v)-8 TRANS Energy'!M348+'FR-16(7)(v)-12 DIST Energy'!M348","v":0},{"$f":"'FR-16(7)(v)-5 PROD Cust'!M348+'FR-16(7)(v)-9 TRANS Cust'!M348+'FR-16(7)(v)-13 DIST Cust'!M348","v":0},0,0]
[14,null,{"$f":"'FR-16(7)(v)-1 Functional'!C349","v":"SUPPLEMENTAL PENSION PLAN"},{"$f":"'FR-16(7)(v)-1 Functional'!D349","v":"A315"},null,{"$f":"'FR-16(7)(v)-14 TOTAL CLASS'!M349","v":0},{"$f":"'FR-16(7)(v)-3 PROD Demand'!M349+'FR-16(7)(v)-7 TRANS Demand'!M349+'FR-16(7)(v)-11 DIST Demand'!M349","v":0},{"$f":"'FR-16(7)(v)-4 PROD Energy'!M349+'FR-16(7)(v)-8 TRANS Energy'!M349+'FR-16(7)(v)-12 DIST Energy'!M349","v":0},{"$f":"'FR-16(7)(v)-5 PROD Cust'!M349+'FR-16(7)(v)-9 TRANS Cust'!M349+'FR-16(7)(v)-13 DIST Cust'!M349","v":0},0,0]
[15,null,{"$f":"'FR-16(7)(v)-1 Functional'!C350","v":"INCENTIVE PLAN"},{"$f":"'FR-16(7)(v)-1 Functional'!D350","v":"A315"},null,{"$f":"'FR-16(7)(v)-14 TOTAL CLASS'!M350","v":0},{"$f":"'FR-16(7)(v)-3 PROD Demand'!M350+'FR-16(7)(v)-7 TRANS Demand'!M350+'FR-16(7)(v)-11 DIST Demand'!M350","v":0},{"$f":"'FR-16(7)(v)-4 PROD Energy'!M350+'FR-16(7)(v)-8 TRANS Energy'!M350+'FR-16(7)(v)-12 DIST Energy'!M350","v":0},{"$f":"'FR-16(7)(v)-5 PROD Cust'!M350+'FR-16(7)(v)-9 TRANS Cust'!M350+'FR-16(7)(v)-13 DIST Cust'!M350","v":0},0,0]
[16,null,{"$f":"'FR-16(7)(v)-1 Functional'!C351","v":"FEDERAL DEFERRED TAX RECEIVEABLE"},{"$f":"'FR-16(7)(v)-1 Functional'!D351","v":"A315"},null,{"$f":"'FR-16(7)(v)-14 TOTAL CLASS'!M351","v":0},{"$f":"'FR-16(7)(v)-3 PROD Demand'!M351+'FR-16(7)(v)-7 TRANS Demand'!M351+'FR-16(7)(v)-11 DIST Demand'!M351","v":0},{"$f":"'FR-16(7)(v)-4 PROD Energy'!M351+'FR-16(7)(v)-8 TRANS Energy'!M351+'FR-16(7)(v)-12 DIST Energy'!M351","v":0},{"$f":"'FR-16(7)(v)-5 PROD Cust'!M351+'FR-16(7)(v)-9 TRANS Cust'!M351+'FR-16(7)(v)-13 DIST Cust'!M351","v":0},0,0]
[17,null,{"$f":"'FR-16(7)(v)-1 Functional'!C352","v":"MISCELLANEOUS"},{"$f":"'FR-16(7)(v)-1 Functional'!D352","v":"A315"},null,{"$f":"'FR-16(7)(v)-14 TOTAL CLASS'!M352","v":509807},{"$f":"'FR-16(7)(v)-3 PROD Demand'!M352+'FR-16(7)(v)-7 TRANS Demand'!M352+'FR-16(7)(v)-11 DIST Demand'!M352","v":149547},{"$f":"'FR-16(7)(v)-4 PROD Energy'!M352+'FR-16(7)(v)-8 TRANS Energy'!M352+'FR-16(7)(v)-12 DIST Energy'!M352","v":360736},{"$f":"'FR-16(7)(v)-5 PROD Cust'!M352+'FR-16(7)(v)-9 TRANS Cust'!M352+'FR-16(7)(v)-13 DIST Cust'!M352","v":-476},509807,0]
[18,null,{"$f":"'FR-16(7)(v)-1 Functional'!C353","v":"DEFERRED TAX"},{"$f":"'FR-16(7)(v)-1 Functional'!D353","v":"A315"},null,{"$f":"'FR-16(7)(v)-14 TOTAL CLASS'!M353","v":232315},{"$f":"'FR-16(7)(v)-3 PROD Demand'!M353+'FR-16(7)(v)-7 TRANS Demand'!M353+'FR-16(7)(v)-11 DIST Demand'!M353","v":68148},{"$f":"'FR-16(7)(v)-4 PROD Energy'!M353+'FR-16(7)(v)-8 TRANS Energy'!M353+'FR-16(7)(v)-12 DIST Energy'!M353","v":164384},{"$f":"'FR-16(7)(v)-5 PROD Cust'!M353+'FR-16(7)(v)-9 TRANS Cust'!M353+'FR-16(7)(v)-13 DIST Cust'!M353","v":-217},232315,0]
[19,null,{"$f":"'FR-16(7)(v)-1 Functional'!C354","v":"NET OPERATING LOSS"},{"$f":"'FR-16(7)(v)-1 Functional'!D354","v":"NP29"},null,{"$f":"'FR-16(7)(v)-14 TOTAL CLASS'!M354","v":0},{"$f":"'FR-16(7)(v)-3 PROD Demand'!M354+'FR-16(7)(v)-7 TRANS Demand'!M354+'FR-16(7)(v)-11 DIST Demand'!M354","v":0},{"$f":"'FR-16(7)(v)-4 PROD Energy'!M354+'FR-16(7)(v)-8 TRANS Energy'!M354+'FR-16(7)(v)-12 DIST Energy'!M354","v":0},{"$f":"'FR-16(7)(v)-5 PROD Cust'!M354+'FR-16(7)(v)-9 TRANS Cust'!M354+'FR-16(7)(v)-13 DIST Cust'!M354","v":0},0,0]
[20,null,{"$f":"'FR-16(7)(v)-1 Functional'!C355","v":"401K INCENTIVE PLAN"},{"$f":"'FR-16(7)(v)-1 Functional'!D355","v":"A315"},null,{"$f":"'FR-16(7)(v)-14 TOTAL CLASS'!M355","v":0},{"$f":"'FR-16(7)(v)-3 PROD Demand'!M355+'FR-16(7)(v)-7 TRANS Demand'!M355+'FR-16(7)(v)-11 DIST Demand'!M355","v":0},{"$f":"'FR-16(7)(v)-4 PROD Energy'!M355+'FR-16(7)(v)-8 TRANS Energy'!M355+'FR-16(7)(v)-12 DIST Energy'!M355","v":0},{"$f":"'FR-16(7)(v)-5 PROD Cust'!M355+'FR-16(7)(v)-9 TRANS Cust'!M355+'FR-16(7)(v)-13 DIST Cust'!M355","v":0},0,0]
[21,null,{"$f":"'FR-16(7)(v)-1 Functional'!C356","v":"ENVIRONMENTAL RESERVE"},{"$f":"'FR-16(7)(v)-1 Functional'!D356","v":"NP29"},null,{"$f":"'FR-16(7)(v)-14 TOTAL CLASS'!M356","v":0},{"$f":"'FR-16(7)(v)-3 PROD Demand'!M356+'FR-16(7)(v)-7 TRANS Demand'!M356+'FR-16(7)(v)-11 DIST Demand'!M356","v":0},{"$f":"'FR-16(7)(v)-4 PROD Energy'!M356+'FR-16(7)(v)-8 TRANS Energy'!M356+'FR-16(7)(v)-12 DIST Energy'!M356","v":0},{"$f":"'FR-16(7)(v)-5 PROD Cust'!M356+'FR-16(7)(v)-9 TRANS Cust'!M356+'FR-16(7)(v)-13 DIST Cust'!M356","v":0},0,0]
[22,null,{"$f":"'FR-16(7)(v)-1 Functional'!C357","v":"VACATION PAY ACCRUALS"},{"$f":"'FR-16(7)(v)-1 Functional'!D357","v":"A315"},null,{"$f":"'FR-16(7)(v)-14 TOTAL CLASS'!M357","v":25183},{"$f":"'FR-16(7)(v)-3 PROD Demand'!M357+'FR-16(7)(v)-7 TRANS Demand'!M357+'FR-16(7)(v)-11 DIST Demand'!M357","v":7387},{"$f":"'FR-16(7)(v)-4 PROD Energy'!M357+'FR-16(7)(v)-8 TRANS Energy'!M357+'FR-16(7)(v)-12 DIST Energy'!M357","v":17819},{"$f":"'FR-16(7)(v)-5 PROD Cust'!M357+'FR-16(7)(v)-9 TRANS Cust'!M357+'FR-16(7)(v)-13 DIST Cust'!M357","v":-23},25183,0]
[23,null,{"$f":"'FR-16(7)(v)-1 Functional'!C358","v":"DEMAND SIDE MANAGEMENT DEFERRAL"},{"$f":"'FR-16(7)(v)-1 Functional'!D358","v":"NP29"},null,{"$f":"'FR-16(7)(v)-14 TOTAL CLASS'!M358","v":52018},{"$f":"'FR-16(7)(v)-3 PROD Demand'!M358+'FR-16(7)(v)-7 TRANS Demand'!M358+'FR-16(7)(v)-11 DIST Demand'!M358","v":51015},{"$f":"'FR-16(7)(v)-4 PROD Energy'!M358+'FR-16(7)(v)-8 TRANS Energy'!M358+'FR-16(7)(v)-12 DIST Energy'!M358","v":984},{"$f":"'FR-16(7)(v)-5 PROD Cust'!M358+'FR-16(7)(v)-9 TRANS Cust'!M358+'FR-16(7)(v)-13 DIST Cust'!M358","v":19},52018,0]
[24,null,{"$f":"'FR-16(7)(v)-1 Functional'!C359","v":"OPERATING LEASE OBLIGATION"},{"$f":"'FR-16(7)(v)-1 Functional'!D359","v":"NP29"},null,{"$f":"'FR-16(7)(v)-14 TOTAL CLASS'!M359","v":192491},{"$f":"'FR-16(7)(v)-3 PROD Demand'!M359+'FR-16(7)(v)-7 TRANS Demand'!M359+'FR-16(7)(v)-11 DIST Demand'!M359","v":188778},{"$f":"'FR-16(7)(v)-4 PROD Energy'!M359+'FR-16(7)(v)-8 TRANS Energy'!M359+'FR-16(7)(v)-12 DIST Energy'!M359","v":3641},{"$f":"'FR-16(7)(v)-5 PROD Cust'!M359+'FR-16(7)(v)-9 TRANS Cust'!M359+'FR-16(7)(v)-13 DIST Cust'!M359","v":72},192491,0]
[25,null,{"$f":"'FR-16(7)(v)-1 Functional'!C360","v":"INJURIES & DAMAGES"},{"$f":"'FR-16(7)(v)-1 Functional'!D360","v":"NP29"},null,{"$f":"'FR-16(7)(v)-14 TOTAL CLASS'!M360","v":0},{"$f":"'FR-16(7)(v)-3 PROD Demand'!M360+'FR-16(7)(v)-7 TRANS Demand'!M360+'FR-16(7)(v)-11 DIST Demand'!M360","v":0},{"$f":"'FR-16(7)(v)-4 PROD Energy'!M360+'FR-16(7)(v)-8 TRANS Energy'!M360+'FR-16(7)(v)-12 DIST Energy'!M360","v":0},{"$f":"'FR-16(7)(v)-5 PROD Cust'!M360+'FR-16(7)(v)-9 TRANS Cust'!M360+'FR-16(7)(v)-13 DIST Cust'!M360","v":0},0,0]
[26,null,{"$f":"'FR-16(7)(v)-1 Functional'!C361","v":"  TOTAL ACCOUNT 190"},null,null,{"$f":"SUM(F337:F360)","v":1187116},516003,670894,219,1187116,0]
[27]
[28," OTHER"]
[29,null,{"$f":"'FR-16(7)(v)-1 Functional'!C364","v":"RESERVED FOR FUTURE USE"},{"$f":"'FR-16(7)(v)-1 Functional'!D364","v":"NP29"},null,{"$f":"'FR-16(7)(v)-14 TOTAL CLASS'!M364","v":0},{"$f":"'FR-16(7)(v)-3 PROD Demand'!M364+'FR-16(7)(v)-7 TRANS Demand'!M364+'FR-16(7)(v)-11 DIST Demand'!M364","v":0},{"$f":"'FR-16(7)(v)-4 PROD Energy'!M364+'FR-16(7)(v)-8 TRANS Energy'!M364+'FR-16(7)(v)-12 DIST Energy'!M364","v":0},{"$f":"'FR-16(7)(v)-5 PROD Cust'!M364+'FR-16(7)(v)-9 TRANS Cust'!M364+'FR-16(7)(v)-13 DIST Cust'!M364","v":0},{"$f":"SUM(G364:I364)","v":0},{"$f":"F364-J364","v":0}]
[30,null,{"$f":"'FR-16(7)(v)-1 Functional'!C365","v":"RATE CASE EXPENSE REGULATORY ASSET"},{"$f":"'FR-16(7)(v)-1 Functional'!D365","v":"NP29"},null,{"$f":"'FR-16(7)(v)-14 TOTAL CLASS'!M365","v":77984},{"$f":"'FR-16(7)(v)-3 PROD Demand'!M365+'FR-16(7)(v)-7 TRANS Demand'!M365+'FR-16(7)(v)-11 DIST Demand'!M365","v":76480},{"$f":"'FR-16(7)(v)-4 PROD Energy'!M365+'FR-16(7)(v)-8 TRANS Energy'!M365+'FR-16(7)(v)-12 DIST Energy'!M365","v":1475},{"$f":"'FR-16(7)(v)-5 PROD Cust'!M365+'FR-16(7)(v)-9 TRANS Cust'!M365+'FR-16(7)(v)-13 DIST Cust'!M365","v":29},{"$f":"SUM(G365:I365)","v":77984},{"$f":"F365-J365","v":0}]
[31,null,{"$f":"'FR-16(7)(v)-1 Functional'!C366","v":"RESERVED FOR FUTURE USE"},{"$f":"'FR-16(7)(v)-1 Functional'!D366","v":"NP29"},null,{"$f":"'FR-16(7)(v)-14 TOTAL CLASS'!M366","v":0},{"$f":"'FR-16(7)(v)-3 PROD Demand'!M366+'FR-16(7)(v)-7 TRANS Demand'!M366+'FR-16(7)(v)-11 DIST Demand'!M366","v":0},{"$f":"'FR-16(7)(v)-4 PROD Energy'!M366+'FR-16(7)(v)-8 TRANS Energy'!M366+'FR-16(7)(v)-12 DIST Energy'!M366","v":0},{"$f":"'FR-16(7)(v)-5 PROD Cust'!M366+'FR-16(7)(v)-9 TRANS Cust'!M366+'FR-16(7)(v)-13 DIST Cust'!M366","v":0},{"$f":"SUM(G366:I366)","v":0},{"$f":"F366-J366","v":0}]
[32,null,{"$f":"'FR-16(7)(v)-1 Functional'!C367","v":"  OTHER"},null,null,{"$f":"SUM(F364:F366)","v":77984},{"$f":"SUM(G363:G366)","v":76480},{"$f":"SUM(H363:H366)","v":1475},{"$f":"SUM(I363:I366)","v":29},{"$f":"SUM(J363:J366)","v":77984},{"$f":"SUM(K363:K366)","v":0}]
[33,null,null,null,null," "]
[34,"CONSTRUCTION WORK IN PROGRESS"]
[35,null,{"$f":"'FR-16(7)(v)-1 Functional'!C370","v":"PRODUCTION"},{"$f":"'FR-16(7)(v)-1 Functional'!D370","v":"P129"},null,{"$f":"'FR-16(7)(v)-14 TOTAL CLASS'!M370","v":0},{"$f":"'FR-16(7)(v)-3 PROD Demand'!M370+'FR-16(7)(v)-7 TRANS Demand'!M370+'FR-16(7)(v)-11 DIST Demand'!M370","v":0},{"$f":"'FR-16(7)(v)-4 PROD Energy'!M370+'FR-16(7)(v)-8 TRANS Energy'!M370+'FR-16(7)(v)-12 DIST Energy'!M370","v":0},{"$f":"'FR-16(7)(v)-5 PROD Cust'!M370+'FR-16(7)(v)-9 TRANS Cust'!M370+'FR-16(7)(v)-13 DIST Cust'!M370","v":0},{"$f":"SUM(G370:I370)","v":0},{"$f":"F370-J370","v":0}]
[36,null,{"$f":"'FR-16(7)(v)-1 Functional'!C371","v":"TRANSMISSION"},{"$f":"'FR-16(7)(v)-1 Functional'!D371","v":"T129"},null,{"$f":"'FR-16(7)(v)-14 TOTAL CLASS'!M371","v":0},{"$f":"'FR-16(7)(v)-3 PROD Demand'!M371+'FR-16(7)(v)-7 TRANS Demand'!M371+'FR-16(7)(v)-11 DIST Demand'!M371","v":0},{"$f":"'FR-16(7)(v)-4 PROD Energy'!M371+'FR-16(7)(v)-8 TRANS Energy'!M371+'FR-16(7)(v)-12 DIST Energy'!M371","v":0},{"$f":"'FR-16(7)(v)-5 PROD Cust'!M371+'FR-16(7)(v)-9 TRANS Cust'!M371+'FR-16(7)(v)-13 DIST Cust'!M371","v":0},{"$f":"SUM(G371:I371)","v":0},{"$f":"F371-J371","v":0}]
[37,null,{"$f":"'FR-16(7)(v)-1 Functional'!C372","v":"DISTRIBUTION"},{"$f":"'FR-16(7)(v)-1 Functional'!D372","v":"D149"},null,{"$f":"'FR-16(7)(v)-14 TOTAL CLASS'!M372","v":0},{"$f":"'FR-16(7)(v)-3 PROD Demand'!M372+'FR-16(7)(v)-7 TRANS Demand'!M372+'FR-16(7)(v)-11 DIST Demand'!M372","v":0},{"$f":"'FR-16(7)(v)-4 PROD Energy'!M372+'FR-16(7)(v)-8 TRANS Energy'!M372+'FR-16(7)(v)-12 DIST Energy'!M372","v":0},{"$f":"'FR-16(7)(v)-5 PROD Cust'!M372+'FR-16(7)(v)-9 TRANS Cust'!M372+'FR-16(7)(v)-13 DIST Cust'!M372","v":0},{"$f":"SUM(G372:I372)","v":0},{"$f":"F372-J372","v":0}]
[38,null,{"$f":"'FR-16(7)(v)-1 Functional'!C373","v":"COMMON"},{"$f":"'FR-16(7)(v)-1 Functional'!D373","v":"C129"},null,{"$f":"'FR-16(7)(v)-14 TOTAL CLASS'!M373","v":0},{"$f":"'FR-16(7)(v)-3 PROD Demand'!M373+'FR-16(7)(v)-7 TRANS Demand'!M373+'FR-16(7)(v)-11 DIST Demand'!M373","v":0},{"$f":"'FR-16(7)(v)-4 PROD Energy'!M373+'FR-16(7)(v)-8 TRANS Energy'!M373+'FR-16(7)(v)-12 DIST Energy'!M373","v":0},{"$f":"'FR-16(7)(v)-5 PROD Cust'!M373+'FR-16(7)(v)-9 TRANS Cust'!M373+'FR-16(7)(v)-13 DIST Cust'!M373","v":0},{"$f":"SUM(G373:I373)","v":0},{"$f":"F373-J373","v":0}]
[39,null,{"$f":"'FR-16(7)(v)-1 Functional'!C374","v":"GENERAL"},{"$f":"'FR-16(7)(v)-1 Functional'!D374","v":"G129"},null,{"$f":"'FR-16(7)(v)-14 TOTAL CLASS'!M374","v":0},{"$f":"'FR-16(7)(v)-3 PROD Demand'!M374+'FR-16(7)(v)-7 TRANS Demand'!M374+'FR-16(7)(v)-11 DIST Demand'!M374","v":0},{"$f":"'FR-16(7)(v)-4 PROD Energy'!M374+'FR-16(7)(v)-8 TRANS Energy'!M374+'FR-16(7)(v)-12 DIST Energy'!M374","v":0},{"$f":"'FR-16(7)(v)-5 PROD Cust'!M374+'FR-16(7)(v)-9 TRANS Cust'!M374+'FR-16(7)(v)-13 DIST Cust'!M374","v":0},{"$f":"SUM(G374:I374)","v":0},{"$f":"F374-J374","v":0}]
[40,null,{"$f":"'FR-16(7)(v)-1 Functional'!C375","v":"TOTAL CONSTRUCTION WORK IN PROGRESS"},null,null,{"$f":"SUM(F370:F374)","v":0},0,0,0,0,0]
[41]
[42,{"$f":"'FR-16(7)(v)-1 Functional'!B377","v":"TOTAL ADDITIVE RATE BASE ADJUSTMENTS"},null,null,null,{"$f":"F361+F367+F375","v":1265100},592483,672369,248,1265100,0]
[]
[{"$f":"co_name","v":"DUKE ENERGY KENTUCKY, INC."},null,null,null,null,null,null,null,null,{"$f":"J1","v":"FR-16(7)(v)-21"}]
[{"$f":"$A$2","v":"DT PRIMARY CLASSIFIED - ELECTRIC COST OF SERVICE"},null,null,null,null,null,null,null,null,{"$f":"J2","v":"WITNESS RESPONSIBLE:"}]
[{"$f":"case_name","v":"CASE NO: 2019-00271"},null,null,null,null,null,null,null,null,{"$f":"Witness","v":"JAMES E. ZIOLKOWSKI"}]
[{"$f":"data_filing","v":"DATA: 12 MONTHS ACTUAL  & 0 MONTHS ESTIMATED"},null,null,null,null,null,null,null,null,{"$f":"\"PAGE \"&Pages2-8&\" OF \"&Pages2","v":"PAGE 7 OF 15"}]
[{"$f":"type","v":"TYPE OF FILING: \"X\" ORIGINAL   UPDATED    REVISED  "}]
[]
[]
["LINE",null,null,null,null,"TOTAL","CLASSIFIED",null,null,"TOTAL","ALL"]
["NO.","WORKING CAPITAL",null,"ALLO",null,{"$f":"$F$9","v":"DT PRIMARY"},{"$f":"G9","v":"DEMAND"},"ENERGY","CUSTOMER","AT ISSUE","OTHER"]
[null,null,"Schedule 5.2",null,null,null,3,4,5]
[]
[1,"NET ORIGINAL COST RATE BASE",null,null,null,{"$f":"F277-F324+F377","v":72803442},71973655,796076,33711,72803442,0]
[2]
[3,"WORKING CAPITAL"]
[4]
[5,"PLANT MATERIALS & SUPPLIES"]
[6,null,{"$f":"'FR-16(7)(v)-1 Functional'!C395","v":"OTHER MATERIALS & SUPPLIES"},{"$f":"'FR-16(7)(v)-1 Functional'!D395","v":"PD29"},null,{"$f":"'FR-16(7)(v)-14 TOTAL CLASS'!M395","v":1284683},{"$f":"'FR-16(7)(v)-3 PROD Demand'!M395+'FR-16(7)(v)-7 TRANS Demand'!M395+'FR-16(7)(v)-11 DIST Demand'!M395","v":681760},{"$f":"'FR-16(7)(v)-4 PROD Energy'!M395+'FR-16(7)(v)-8 TRANS Energy'!M395+'FR-16(7)(v)-12 DIST Energy'!M395","v":604684},{"$f":"'FR-16(7)(v)-5 PROD Cust'!M395+'FR-16(7)(v)-9 TRANS Cust'!M395+'FR-16(7)(v)-13 DIST Cust'!M395","v":-1761},{"$f":"SUM(G395:I395)","v":1284683},{"$f":"F395-J395","v":0}]
[7,null,{"$f":"'FR-16(7)(v)-1 Functional'!C396","v":"FUEL"},{"$f":"'FR-16(7)(v)-1 Functional'!D396","v":"K301"},null,{"$f":"'FR-16(7)(v)-14 TOTAL CLASS'!M396","v":2236960},{"$f":"'FR-16(7)(v)-3 PROD Demand'!M396+'FR-16(7)(v)-7 TRANS Demand'!M396+'FR-16(7)(v)-11 DIST Demand'!M396","v":0},{"$f":"'FR-16(7)(v)-4 PROD Energy'!M396+'FR-16(7)(v)-8 TRANS Energy'!M396+'FR-16(7)(v)-12 DIST Energy'!M396","v":2236960},{"$f":"'FR-16(7)(v)-5 PROD Cust'!M396+'FR-16(7)(v)-9 TRANS Cust'!M396+'FR-16(7)(v)-13 DIST Cust'!M396","v":0},{"$f":"SUM(G396:I396)","v":2236960},{"$f":"F396-J396","v":0}]
[8,null,{"$f":"'FR-16(7)(v)-1 Functional'!C397","v":"EMISSION ALLOWANCES"},{"$f":"'FR-16(7)(v)-1 Functional'!D397","v":"K301"},null,{"$f":"'FR-16(7)(v)-14 TOTAL CLASS'!M397","v":0},{"$f":"'FR-16(7)(v)-3 PROD Demand'!M397+'FR-16(7)(v)-7 TRANS Demand'!M397+'FR-16(7)(v)-11 DIST Demand'!M397","v":0},{"$f":"'FR-16(7)(v)-4 PROD Energy'!M397+'FR-16(7)(v)-8 TRANS Energy'!M397+'FR-16(7)(v)-12 DIST Energy'!M397","v":0},{"$f":"'FR-16(7)(v)-5 PROD Cust'!M397+'FR-16(7)(v)-9 TRANS Cust'!M397+'FR-16(7)(v)-13 DIST Cust'!M397","v":0},{"$f":"SUM(G397:I397)","v":0},{"$f":"F397-J397","v":0}]
[9,null,{"$f":"'FR-16(7)(v)-1 Functional'!C398","v":"  TOTAL PLANT MATS. & SUPPLIES"},null,null,{"$f":"SUM(F394:F397)","v":3521643},681760,2841644,-1761,3521643,0]
[10,"TOTAL MATERIALS & SUPPLIES",null,null,null,{"$f":"F398","v":3521643},681760,2841644,-1761,3521643,0]
[11]
[12,"PREPAYMENTS"]
[13,null,{"$f":"'FR-16(7)(v)-1 Functional'!C402","v":"INSURANCE GENERAL"},{"$f":"'FR-16(7)(v)-1 Functional'!D402","v":"NP29"},null,{"$f":"'FR-16(7)(v)-14 TOTAL CLASS'!M402","v":23027},{"$f":"'FR-16(7)(v)-3 PROD Demand'!M402+'FR-16(7)(v)-7 TRANS Demand'!M402+'FR-16(7)(v)-11 DIST Demand'!M402","v":22582},{"$f":"'FR-16(7)(v)-4 PROD Energy'!M402+'FR-16(7)(v)-8 TRANS Energy'!M402+'FR-16(7)(v)-12 DIST Energy'!M402","v":436},{"$f":"'FR-16(7)(v)-5 PROD Cust'!M402+'FR-16(7)(v)-9 TRANS Cust'!M402+'FR-16(7)(v)-13 DIST Cust'!M402","v":9},{"$f":"SUM(G402:I402)","v":23027},{"$f":"F402-J402","v":0}]
[14,null,{"$f":"'FR-16(7)(v)-1 Functional'!C403","v":"EXCISE TAX"},{"$f":"'FR-16(7)(v)-1 Functional'!D403","v":"NP29"},null,{"$f":"'FR-16(7)(v)-14 TOTAL CLASS'!M403","v":0},{"$f":"'FR-16(7)(v)-3 PROD Demand'!M403+'FR-16(7)(v)-7 TRANS Demand'!M403+'FR-16(7)(v)-11 DIST Demand'!M403","v":0},{"$f":"'FR-16(7)(v)-4 PROD Energy'!M403+'FR-16(7)(v)-8 TRANS Energy'!M403+'FR-16(7)(v)-12 DIST Energy'!M403","v":0},{"$f":"'FR-16(7)(v)-5 PROD Cust'!M403+'FR-16(7)(v)-9 TRANS Cust'!M403+'FR-16(7)(v)-13 DIST Cust'!M403","v":0},{"$f":"SUM(G403:I403)","v":0},{"$f":"F403-J403","v":0}]
[15,null,{"$f":"'FR-16(7)(v)-1 Functional'!C404","v":"COLLATERAL ASSET"},{"$f":"'FR-16(7)(v)-1 Functional'!D404","v":"K301"},null,{"$f":"'FR-16(7)(v)-14 TOTAL CLASS'!M404","v":-5053},{"$f":"'FR-16(7)(v)-3 PROD Demand'!M404+'FR-16(7)(v)-7 TRANS Demand'!M404+'FR-16(7)(v)-11 DIST Demand'!M404","v":0},{"$f":"'FR-16(7)(v)-4 PROD Energy'!M404+'FR-16(7)(v)-8 TRANS Energy'!M404+'FR-16(7)(v)-12 DIST Energy'!M404","v":-5053},{"$f":"'FR-16(7)(v)-5 PROD Cust'!M404+'FR-16(7)(v)-9 TRANS Cust'!M404+'FR-16(7)(v)-13 DIST Cust'!M404","v":0},{"$f":"SUM(G404:I404)","v":-5053},{"$f":"F404-J404","v":0}]
[16,null,{"$f":"'FR-16(7)(v)-1 Functional'!C405","v":"  TOTAL PREPAYMENTS"},null,null,{"$f":"SUM(F401:F404)","v":17974},22582,-4617,9,17974,0]
[17]
[18,"AUTO CALC (O&M-ELECTRIC FUEL COST)/8",null,null,null,{"$f":"'FR-16(7)(v)-14 TOTAL CLASS'!M407","v":1335198},{"$f":"'FR-16(7)(v)-3 PROD Demand'!M407+'FR-16(7)(v)-7 TRANS Demand'!M407+'FR-16(7)(v)-11 DIST Demand'!M407","v":1335198},{"$f":"'FR-16(7)(v)-4 PROD Energy'!M407+'FR-16(7)(v)-8 TRANS Energy'!M407+'FR-16(7)(v)-12 DIST Energy'!M407","v":0},{"$f":"'FR-16(7)(v)-5 PROD Cust'!M407+'FR-16(7)(v)-9 TRANS Cust'!M407+'FR-16(7)(v)-13 DIST Cust'!M407","v":0},{"$f":"SUM(G407:I407)","v":1335198},{"$f":"F407-J407","v":0}]
[19,"  TOTAL WORKING CASH",null,null,null,{"$f":"F407","v":1335198},1335198,0,0,1335198,0]
[20]
[21,"MISCELLANEOUS WORKING CAPITAL"]
[22,null,{"$f":"'FR-16(7)(v)-1 Functional'!C411","v":"RESERVED FOR FUTURE USE"},{"$f":"'FR-16(7)(v)-1 Functional'!D411","v":"K301"},null,{"$f":"'FR-16(7)(v)-14 TOTAL CLASS'!M411","v":0},{"$f":"'FR-16(7)(v)-3 PROD Demand'!M411+'FR-16(7)(v)-7 TRANS Demand'!M411+'FR-16(7)(v)-11 DIST Demand'!M411","v":0},{"$f":"'FR-16(7)(v)-4 PROD Energy'!M411+'FR-16(7)(v)-8 TRANS Energy'!M411+'FR-16(7)(v)-12 DIST Energy'!M411","v":0},{"$f":"'FR-16(7)(v)-5 PROD Cust'!M411+'FR-16(7)(v)-9 TRANS Cust'!M411+'FR-16(7)(v)-13 DIST Cust'!M411","v":0},{"$f":"SUM(G411:I411)","v":0},{"$f":"F411-J411","v":0}]
[23,null,{"$f":"'FR-16(7)(v)-1 Functional'!C412","v":"PIPP UNCOLLECTIBLES"},{"$f":"'FR-16(7)(v)-1 Functional'!D412","v":"A315"},null,{"$f":"'FR-16(7)(v)-14 TOTAL CLASS'!M412","v":0},{"$f":"'FR-16(7)(v)-3 PROD Demand'!M412+'FR-16(7)(v)-7 TRANS Demand'!M412+'FR-16(7)(v)-11 DIST Demand'!M412","v":0},{"$f":"'FR-16(7)(v)-4 PROD Energy'!M412+'FR-16(7)(v)-8 TRANS Energy'!M412+'FR-16(7)(v)-12 DIST Energy'!M412","v":0},{"$f":"'FR-16(7)(v)-5 PROD Cust'!M412+'FR-16(7)(v)-9 TRANS Cust'!M412+'FR-16(7)(v)-13 DIST Cust'!M412","v":0},{"$f":"SUM(G412:I412)","v":0},{"$f":"F412-J412","v":0}]
[24,null,{"$f":"'FR-16(7)(v)-1 Functional'!C413","v":"RESERVED FOR FUTURE USE"},{"$f":"'FR-16(7)(v)-1 Functional'!D413","v":"D249"},null,{"$f":"'FR-16(7)(v)-14 TOTAL CLASS'!M413","v":0},{"$f":"'FR-16(7)(v)-3 PROD Demand'!M413+'FR-16(7)(v)-7 TRANS Demand'!M413+'FR-16(7)(v)-11 DIST Demand'!M413","v":0},{"$f":"'FR-16(7)(v)-4 PROD Energy'!M413+'FR-16(7)(v)-8 TRANS Energy'!M413+'FR-16(7)(v)-12 DIST Energy'!M413","v":0},{"$f":"'FR-16(7)(v)-5 PROD Cust'!M413+'FR-16(7)(v)-9 TRANS Cust'!M413+'FR-16(7)(v)-13 DIST Cust'!M413","v":0},{"$f":"SUM(G413:I413)","v":0},{"$f":"F413-J413","v":0}]
[25,null,{"$f":"'FR-16(7)(v)-1 Functional'!C414","v":"  TOTAL MISC WORK CAPITAL"},null,null,{"$f":"SUM(F410:F413)","v":0},0,0,0,0,0]
[26]
[27,"TOTAL WORKING CAPITAL",null,null,null,{"$f":"F399+F405+F408+F414","v":4874815},2039540,2837027,-1752,4874815,0]
[28,"PRELIMINARY SUMMARY"]
[29,null,{"$f":"'FR-16(7)(v)-1 Functional'!C418","v":"TOTAL ACCUMULATED DEFERRED INCOME TAXES"},null,null,{"$f":"-F324","v":-23210649},-21537766,-1670772,-2111,-23210649,0]
[30,null,{"$f":"'FR-16(7)(v)-1 Functional'!C419","v":"TOTAL OTHER ACCUMULATED DEFERRED INCOME TAXES"},null,null,{"$f":"F377","v":1265100},592483,672369,248,1265100,0]
[31,null,{"$f":"'FR-16(7)(v)-1 Functional'!C420","v":"TOTAL WORKING CAPITAL"},null,null,{"$f":"F416","v":4874815},2039540,2837027,-1752,4874815,0]
[32,null,{"$f":"'FR-16(7)(v)-1 Functional'!C421","v":"  TOTAL RATE BASE ADJUSTMENTS"},null,null,{"$f":"SUM(F417:F420)","v":-17070734},-18905743,1838624,-3615,-17070734,0]
[33]
[34,"RATE BASE CALCULATION"]
[35,null,{"$f":"'FR-16(7)(v)-1 Functional'!C424","v":"NET ELECTRIC PLANT IN SERVICE"},null,null,{"$f":"F277","v":94748991},92918938,1794479,35574,94748991,0]
[36,null,{"$f":"'FR-16(7)(v)-1 Functional'!C425","v":"TOTAL RATE BASE ADJUSTMENTS"},null,null,{"$f":"F421","v":-17070734},-18905743,1838624,-3615,-17070734,0]
[37,null,{"$f":"'FR-16(7)(v)-1 Functional'!C426","v":"  TOTAL RATE BASE"},null,null,{"$f":"SUM(F423:F425)","v":77678257},74013195,3633103,31959,77678257,0]
[38]
[39,"TOTAL RATE OF RETURN ALLOWABLE",null,null,null,{"$f":"$F$811","v":6.7100000000000007E-2},{"$f":"F811","v":6.7100000000000007E-2},{"$f":"F811","v":6.7100000000000007E-2},{"$f":"F811","v":6.7100000000000007E-2},{"$f":"F811","v":6.7100000000000007E-2}]
[40,"RETURN ON RATE BASE",null,null,null,{"$f":"ROUND(F428*F426,0)","v":5212211},{"$f":"F429-SUM(H429:I429)","v":4966286},{"$f":"ROUND(H426*H428,0)","v":243781},{"$f":"ROUND(I426*I428,0)","v":2144},{"$f":"SUM(G429:I429)","v":5212211},{"$f":"ROUND(K426*K428,0)","v":0}]
[41]
[42,{"$f":"'FR-16(7)(v)-1 Functional'!B431","v":"ELECTRIC RATE BASE"},null,{"$f":"'FR-16(7)(v)-1 Functional'!D431","v":"RB99"},null,{"$f":"'FR-16(7)(v)-14 TOTAL CLASS'!M431","v":77785206},{"$f":"'FR-16(7)(v)-3 PROD Demand'!M431+'FR-16(7)(v)-7 TRANS Demand'!M431+'FR-16(7)(v)-11 DIST Demand'!M431","v":74120368},{"$f":"'FR-16(7)(v)-4 PROD Energy'!M431+'FR-16(7)(v)-8 TRANS Energy'!M431+'FR-16(7)(v)-12 DIST Energy'!M431","v":3633226},{"$f":"'FR-16(7)(v)-5 PROD Cust'!M431+'FR-16(7)(v)-9 TRANS Cust'!M431+'FR-16(7)(v)-13 DIST Cust'!M431","v":31612},{"$f":"SUM(G431:I431)","v":77785206},{"$f":"F431-J431","v":0}]
[43,{"$f":"'FR-16(7)(v)-1 Functional'!B432","v":"TOTAL RATE OF RETURN ALLOWABLE"},null,null,null,{"$f":"RofR","v":6.7110000000000003E-2},{"$f":"RofR","v":6.7110000000000003E-2},{"$f":"RofR","v":6.7110000000000003E-2},{"$f":"RofR","v":6.7110000000000003E-2},{"$f":"RofR","v":6.7110000000000003E-2}]
[44,{"$f":"'FR-16(7)(v)-1 Functional'!B433","v":"RETURN ON RATE BASE"},null,null,null,{"$f":"ROUND(F431*F432,0)","v":5220165},{"$f":"F433-H433-I433","v":4974218},{"$f":"ROUND(H431*H432,0)","v":243826},{"$f":"ROUND(I431*I432,0)","v":2121},{"$f":"ROUND(J431*J432,0)","v":5220165},{"$f":"F433-J433","v":0}]
[]
[{"$f":"co_name","v":"DUKE ENERGY KENTUCKY, INC."},null,null,null,null,null,null,null,null,{"$f":"J1","v":"FR-16(7)(v)-21"}]
[{"$f":"$A$2","v":"DT PRIMARY CLASSIFIED - ELECTRIC COST OF SERVICE"},null,null,null,null,null,null,null,null,{"$f":"J2","v":"WITNESS RESPONSIBLE:"}]
[{"$f":"case_name","v":"CASE NO: 2019-00271"},null,null,null,null,null,null,null,null,{"$f":"Witness","v":"JAMES E. ZIOLKOWSKI"}]
[{"$f":"data_filing","v":"DATA: 12 MONTHS ACTUAL  & 0 MONTHS ESTIMATED"},null,null,null,null,null,null,null,null,{"$f":"\"PAGE \"&Pages2-7&\" OF \"&Pages2","v":"PAGE 8 OF 15"}]
[{"$f":"type","v":"TYPE OF FILING: \"X\" ORIGINAL   UPDATED    REVISED  "}]
[]
[]
["LINE",null,null,null,null,"TOTAL","CLASSIFIED",null,null,"TOTAL","ALL"]
["NO.","O&M EXPENSES",null,"ALLO",null,{"$f":"$F$9","v":"DT PRIMARY"},{"$f":"G9","v":"DEMAND"},"ENERGY","CUSTOMER","AT ISSUE","OTHER"]
[null,null,"Schedule 6",null,null,null,3,4,5]
[1,"PRODUCTION O&M"]
[2,{"$f":"'FR-16(7)(v)-1 Functional'!B446","v":"ENERGY RELATED PRODUCTION O&M"}]
[3,null,{"$f":"'FR-16(7)(v)-1 Functional'!C447","v":"FUEL"},{"$f":"'FR-16(7)(v)-1 Functional'!D447","v":"K302"},null,{"$f":"'FR-16(7)(v)-14 TOTAL CLASS'!M447","v":0},{"$f":"'FR-16(7)(v)-3 PROD Demand'!M447+'FR-16(7)(v)-7 TRANS Demand'!M447+'FR-16(7)(v)-11 DIST Demand'!M447","v":0},{"$f":"'FR-16(7)(v)-4 PROD Energy'!M447+'FR-16(7)(v)-8 TRANS Energy'!M447+'FR-16(7)(v)-12 DIST Energy'!M447","v":0},{"$f":"'FR-16(7)(v)-5 PROD Cust'!M447+'FR-16(7)(v)-9 TRANS Cust'!M447+'FR-16(7)(v)-13 DIST Cust'!M447","v":0},{"$f":"SUM(G447:I447)","v":0},{"$f":"F447-J447","v":0}]
[4,null,{"$f":"'FR-16(7)(v)-1 Functional'!C448","v":"FUEL AND PURCHASED POWER ADJUSTMENT"},{"$f":"'FR-16(7)(v)-1 Functional'!D448","v":"K302"},null,{"$f":"'FR-16(7)(v)-14 TOTAL CLASS'!M448","v":11552698},{"$f":"'FR-16(7)(v)-3 PROD Demand'!M448+'FR-16(7)(v)-7 TRANS Demand'!M448+'FR-16(7)(v)-11 DIST Demand'!M448","v":0},{"$f":"'FR-16(7)(v)-4 PROD Energy'!M448+'FR-16(7)(v)-8 TRANS Energy'!M448+'FR-16(7)(v)-12 DIST Energy'!M448","v":11552698},{"$f":"'FR-16(7)(v)-5 PROD Cust'!M448+'FR-16(7)(v)-9 TRANS Cust'!M448+'FR-16(7)(v)-13 DIST Cust'!M448","v":0},11552698,0]
[5,null,{"$f":"'FR-16(7)(v)-1 Functional'!C449","v":"EMISSION ALLOWANCES"},{"$f":"'FR-16(7)(v)-1 Functional'!D449","v":"K301"},null,{"$f":"'FR-16(7)(v)-14 TOTAL CLASS'!M449","v":0},{"$f":"'FR-16(7)(v)-3 PROD Demand'!M449+'FR-16(7)(v)-7 TRANS Demand'!M449+'FR-16(7)(v)-11 DIST Demand'!M449","v":0},{"$f":"'FR-16(7)(v)-4 PROD Energy'!M449+'FR-16(7)(v)-8 TRANS Energy'!M449+'FR-16(7)(v)-12 DIST Energy'!M449","v":0},{"$f":"'FR-16(7)(v)-5 PROD Cust'!M449+'FR-16(7)(v)-9 TRANS Cust'!M449+'FR-16(7)(v)-13 DIST Cust'!M449","v":0},0,0]
[6,null,{"$f":"'FR-16(7)(v)-1 Functional'!C450","v":"ELIMINATE EMISSION ALLOW & OTHER VAR COST"},{"$f":"'FR-16(7)(v)-1 Functional'!D450","v":"K301"},null,{"$f":"'FR-16(7)(v)-14 TOTAL CLASS'!M450","v":0},{"$f":"'FR-16(7)(v)-3 PROD Demand'!M450+'FR-16(7)(v)-7 TRANS Demand'!M450+'FR-16(7)(v)-11 DIST Demand'!M450","v":0},{"$f":"'FR-16(7)(v)-4 PROD Energy'!M450+'FR-16(7)(v)-8 TRANS Energy'!M450+'FR-16(7)(v)-12 DIST Energy'!M450","v":0},{"$f":"'FR-16(7)(v)-5 PROD Cust'!M450+'FR-16(7)(v)-9 TRANS Cust'!M450+'FR-16(7)(v)-13 DIST Cust'!M450","v":0},0,0]
[7,null,{"$f":"'FR-16(7)(v)-1 Functional'!C451","v":"OTHER PRODUCTION EXPENSE - MAINTENANCE"},{"$f":"'FR-16(7)(v)-1 Functional'!D451","v":"K301"},null,{"$f":"'FR-16(7)(v)-14 TOTAL CLASS'!M451","v":4662754},{"$f":"'FR-16(7)(v)-3 PROD Demand'!M451+'FR-16(7)(v)-7 TRANS Demand'!M451+'FR-16(7)(v)-11 DIST Demand'!M451","v":0},{"$f":"'FR-16(7)(v)-4 PROD Energy'!M451+'FR-16(7)(v)-8 TRANS Energy'!M451+'FR-16(7)(v)-12 DIST Energy'!M451","v":4662754},{"$f":"'FR-16(7)(v)-5 PROD Cust'!M451+'FR-16(7)(v)-9 TRANS Cust'!M451+'FR-16(7)(v)-13 DIST Cust'!M451","v":0},4662754,0]
[8,null,{"$f":"'FR-16(7)(v)-1 Functional'!C452","v":"MISO TRANSMISSION CHARGES - ACCT 555"},{"$f":"'FR-16(7)(v)-1 Functional'!D452","v":"K301"},null,{"$f":"'FR-16(7)(v)-14 TOTAL CLASS'!M452","v":0},{"$f":"'FR-16(7)(v)-3 PROD Demand'!M452+'FR-16(7)(v)-7 TRANS Demand'!M452+'FR-16(7)(v)-11 DIST Demand'!M452","v":0},{"$f":"'FR-16(7)(v)-4 PROD Energy'!M452+'FR-16(7)(v)-8 TRANS Energy'!M452+'FR-16(7)(v)-12 DIST Energy'!M452","v":0},{"$f":"'FR-16(7)(v)-5 PROD Cust'!M452+'FR-16(7)(v)-9 TRANS Cust'!M452+'FR-16(7)(v)-13 DIST Cust'!M452","v":0},0,0]
[9,null,{"$f":"'FR-16(7)(v)-1 Functional'!C453","v":"  TOTAL ENERGY RELATED"},null,null,{"$f":"SUM(F447:F452)","v":16215452},0,16215452,0,16215452,0]
[10]
[11,"DEMAND RELATED & OTHER PROD O&M"]
[12,null,{"$f":"'FR-16(7)(v)-1 Functional'!C456","v":"OTHER PRODUCTION EXPENSES - OPERATIONS"},{"$f":"'FR-16(7)(v)-1 Functional'!D456","v":"K201"},null,{"$f":"'FR-16(7)(v)-14 TOTAL CLASS'!M456","v":0},{"$f":"'FR-16(7)(v)-3 PROD Demand'!M456+'FR-16(7)(v)-7 TRANS Demand'!M456+'FR-16(7)(v)-11 DIST Demand'!M456","v":0},{"$f":"'FR-16(7)(v)-4 PROD Energy'!M456+'FR-16(7)(v)-8 TRANS Energy'!M456+'FR-16(7)(v)-12 DIST Energy'!M456","v":0},{"$f":"'FR-16(7)(v)-5 PROD Cust'!M456+'FR-16(7)(v)-9 TRANS Cust'!M456+'FR-16(7)(v)-13 DIST Cust'!M456","v":0},{"$f":"SUM(G456:I456)","v":0},{"$f":"F456-J456","v":0}]
[13,null,{"$f":"'FR-16(7)(v)-1 Functional'!C457","v":"  TOTAL DEMAND REL & OTH PROD O&M "},null,null,{"$f":"SUM(F455:F456)","v":0},0,0,0,0,0]
[14]
[15,"TOTAL PRODUCTION O&M",null,null," ",{"$f":"F457+F453","v":16215452},0,16215452,0,16215452,0]
[16]
[17,"TRANSMISSION O & M"]
[18,null,{"$f":"'FR-16(7)(v)-1 Functional'!C462","v":"TRANSFORMER LEASE PAYMENTS"},{"$f":"'FR-16(7)(v)-1 Functional'!D462","v":"K202"},null,{"$f":"'FR-16(7)(v)-14 TOTAL CLASS'!M462","v":0},{"$f":"'FR-16(7)(v)-3 PROD Demand'!M462+'FR-16(7)(v)-7 TRANS Demand'!M462+'FR-16(7)(v)-11 DIST Demand'!M462","v":0},{"$f":"'FR-16(7)(v)-4 PROD Energy'!M462+'FR-16(7)(v)-8 TRANS Energy'!M462+'FR-16(7)(v)-12 DIST Energy'!M462","v":0},{"$f":"'FR-16(7)(v)-5 PROD Cust'!M462+'FR-16(7)(v)-9 TRANS Cust'!M462+'FR-16(7)(v)-13 DIST Cust'!M462","v":0},{"$f":"SUM(G462:I462)","v":0},{"$f":"F462-J462","v":0}]
[19,null,{"$f":"'FR-16(7)(v)-1 Functional'!C463","v":"OTHER TRANSMISSION"},{"$f":"'FR-16(7)(v)-1 Functional'!D463","v":"K202"},null,{"$f":"'FR-16(7)(v)-14 TOTAL CLASS'!M463","v":2065383},{"$f":"'FR-16(7)(v)-3 PROD Demand'!M463+'FR-16(7)(v)-7 TRANS Demand'!M463+'FR-16(7)(v)-11 DIST Demand'!M463","v":2065383},{"$f":"'FR-16(7)(v)-4 PROD Energy'!M463+'FR-16(7)(v)-8 TRANS Energy'!M463+'FR-16(7)(v)-12 DIST Energy'!M463","v":0},{"$f":"'FR-16(7)(v)-5 PROD Cust'!M463+'FR-16(7)(v)-9 TRANS Cust'!M463+'FR-16(7)(v)-13 DIST Cust'!M463","v":0},{"$f":"SUM(G463:I463)","v":2065383},{"$f":"F463-J463","v":0}]
[20,null,{"$f":"'FR-16(7)(v)-1 Functional'!C464","v":"MISCELLANEOUS ADJUSTMENTS"},{"$f":"'FR-16(7)(v)-1 Functional'!D464","v":"K202"},null,{"$f":"'FR-16(7)(v)-14 TOTAL CLASS'!M464","v":0},{"$f":"'FR-16(7)(v)-3 PROD Demand'!M464+'FR-16(7)(v)-7 TRANS Demand'!M464+'FR-16(7)(v)-11 DIST Demand'!M464","v":0},{"$f":"'FR-16(7)(v)-4 PROD Energy'!M464+'FR-16(7)(v)-8 TRANS Energy'!M464+'FR-16(7)(v)-12 DIST Energy'!M464","v":0},{"$f":"'FR-16(7)(v)-5 PROD Cust'!M464+'FR-16(7)(v)-9 TRANS Cust'!M464+'FR-16(7)(v)-13 DIST Cust'!M464","v":0},{"$f":"SUM(G464:I464)","v":0},{"$f":"F464-J464","v":0}]
[21,null,{"$f":"'FR-16(7)(v)-1 Functional'!C465","v":"NETWORK SERVICE RATES ADJUSTMENT"},{"$f":"'FR-16(7)(v)-1 Functional'!D465","v":"K202"},null,{"$f":"'FR-16(7)(v)-14 TOTAL CLASS'!M465","v":0},{"$f":"'FR-16(7)(v)-3 PROD Demand'!M465+'FR-16(7)(v)-7 TRANS Demand'!M465+'FR-16(7)(v)-11 DIST Demand'!M465","v":0},{"$f":"'FR-16(7)(v)-4 PROD Energy'!M465+'FR-16(7)(v)-8 TRANS Energy'!M465+'FR-16(7)(v)-12 DIST Energy'!M465","v":0},{"$f":"'FR-16(7)(v)-5 PROD Cust'!M465+'FR-16(7)(v)-9 TRANS Cust'!M465+'FR-16(7)(v)-13 DIST Cust'!M465","v":0},{"$f":"SUM(G465:I465)","v":0},{"$f":"F465-J465","v":0}]
[22,null,{"$f":"'FR-16(7)(v)-1 Functional'!C466","v":"  TOTAL TRANSMISSION O & M"},null,null,{"$f":"SUM(F462:F465)","v":2065383},2065383,0,0,2065383,0]
[23]
[24,"REGIONAL MARKET O&M"]
[25,null,{"$f":"'FR-16(7)(v)-1 Functional'!C469","v":"MARKET FACILITATION - MONITORING & COMPLIANCE"},{"$f":"'FR-16(7)(v)-1 Functional'!D469","v":"K202"},null,{"$f":"'FR-16(7)(v)-14 TOTAL CLASS'!M469","v":162973},{"$f":"'FR-16(7)(v)-3 PROD Demand'!M469+'FR-16(7)(v)-7 TRANS Demand'!M469+'FR-16(7)(v)-11 DIST Demand'!M469","v":162973},{"$f":"'FR-16(7)(v)-4 PROD Energy'!M469+'FR-16(7)(v)-8 TRANS Energy'!M469+'FR-16(7)(v)-12 DIST Energy'!M469","v":0},{"$f":"'FR-16(7)(v)-5 PROD Cust'!M469+'FR-16(7)(v)-9 TRANS Cust'!M469+'FR-16(7)(v)-13 DIST Cust'!M469","v":0},{"$f":"SUM(G469:I469)","v":162973},{"$f":"F469-J469","v":0}]
[26,null,{"$f":"'FR-16(7)(v)-1 Functional'!C470","v":"TOTAL REGIONAL MARKET O&M"},null,null,{"$f":"SUM(F468:F469)","v":162973},162973,0,0,162973,0]
[27]
[28,"DISTRIBUTION O & M"]
[29,null,{"$f":"'FR-16(7)(v)-1 Functional'!C473","v":"SUBSTATIONS"},{"$f":"'FR-16(7)(v)-1 Functional'!D473","v":"K201"},null,{"$f":"'FR-16(7)(v)-14 TOTAL CLASS'!M473","v":55410},{"$f":"'FR-16(7)(v)-3 PROD Demand'!M473+'FR-16(7)(v)-7 TRANS Demand'!M473+'FR-16(7)(v)-11 DIST Demand'!M473","v":55410},{"$f":"'FR-16(7)(v)-4 PROD Energy'!M473+'FR-16(7)(v)-8 TRANS Energy'!M473+'FR-16(7)(v)-12 DIST Energy'!M473","v":0},{"$f":"'FR-16(7)(v)-5 PROD Cust'!M473+'FR-16(7)(v)-9 TRANS Cust'!M473+'FR-16(7)(v)-13 DIST Cust'!M473","v":0},{"$f":"SUM(G473:I473)","v":55410},{"$f":"F473-J473","v":0}]
[30,null,{"$f":"'FR-16(7)(v)-1 Functional'!C474","v":"POLES, TOWERS & FIXTURES"},{"$f":"'FR-16(7)(v)-1 Functional'!D474","v":"PL49"},null,{"$f":"'FR-16(7)(v)-14 TOTAL CLASS'!M474","v":0},{"$f":"'FR-16(7)(v)-3 PROD Demand'!M474+'FR-16(7)(v)-7 TRANS Demand'!M474+'FR-16(7)(v)-11 DIST Demand'!M474","v":0},{"$f":"'FR-16(7)(v)-4 PROD Energy'!M474+'FR-16(7)(v)-8 TRANS Energy'!M474+'FR-16(7)(v)-12 DIST Energy'!M474","v":0},{"$f":"'FR-16(7)(v)-5 PROD Cust'!M474+'FR-16(7)(v)-9 TRANS Cust'!M474+'FR-16(7)(v)-13 DIST Cust'!M474","v":0},0,0]
[31,null,{"$f":"'FR-16(7)(v)-1 Functional'!C475","v":"OVERHEAD LINES - PRIMARY / DEMAND"},{"$f":"'FR-16(7)(v)-1 Functional'!D475","v":"K205"},null,{"$f":"'FR-16(7)(v)-14 TOTAL CLASS'!M475","v":482230},{"$f":"'FR-16(7)(v)-3 PROD Demand'!M475+'FR-16(7)(v)-7 TRANS Demand'!M475+'FR-16(7)(v)-11 DIST Demand'!M475","v":482230},{"$f":"'FR-16(7)(v)-4 PROD Energy'!M475+'FR-16(7)(v)-8 TRANS Energy'!M475+'FR-16(7)(v)-12 DIST Energy'!M475","v":0},{"$f":"'FR-16(7)(v)-5 PROD Cust'!M475+'FR-16(7)(v)-9 TRANS Cust'!M475+'FR-16(7)(v)-13 DIST Cust'!M475","v":0},482230,0]
[32,null,{"$f":"'FR-16(7)(v)-1 Functional'!C476","v":"OVERHEAD LINES - PRIMARY / CUSTOMER"},{"$f":"'FR-16(7)(v)-1 Functional'!D476","v":"K405"},null,{"$f":"'FR-16(7)(v)-14 TOTAL CLASS'!M476","v":294},{"$f":"'FR-16(7)(v)-3 PROD Demand'!M476+'FR-16(7)(v)-7 TRANS Demand'!M476+'FR-16(7)(v)-11 DIST Demand'!M476","v":0},{"$f":"'FR-16(7)(v)-4 PROD Energy'!M476+'FR-16(7)(v)-8 TRANS Energy'!M476+'FR-16(7)(v)-12 DIST Energy'!M476","v":0},{"$f":"'FR-16(7)(v)-5 PROD Cust'!M476+'FR-16(7)(v)-9 TRANS Cust'!M476+'FR-16(7)(v)-13 DIST Cust'!M476","v":294},{"$f":"SUM(G476:I476)","v":294},{"$f":"F476-J476","v":0}]
[33,null,{"$f":"'FR-16(7)(v)-1 Functional'!C477","v":"OVERHEAD LINES - SECONDARY / DEMAND"},{"$f":"'FR-16(7)(v)-1 Functional'!D477","v":"K206"},null,{"$f":"'FR-16(7)(v)-14 TOTAL CLASS'!M477","v":196358},{"$f":"'FR-16(7)(v)-3 PROD Demand'!M477+'FR-16(7)(v)-7 TRANS Demand'!M477+'FR-16(7)(v)-11 DIST Demand'!M477","v":196358},{"$f":"'FR-16(7)(v)-4 PROD Energy'!M477+'FR-16(7)(v)-8 TRANS Energy'!M477+'FR-16(7)(v)-12 DIST Energy'!M477","v":0},{"$f":"'FR-16(7)(v)-5 PROD Cust'!M477+'FR-16(7)(v)-9 TRANS Cust'!M477+'FR-16(7)(v)-13 DIST Cust'!M477","v":0},196358,0]
[34,null,{"$f":"'FR-16(7)(v)-1 Functional'!C478","v":"OVERHEAD LINES - SECONDARY / CUSTOMER"},{"$f":"'FR-16(7)(v)-1 Functional'!D478","v":"K405"},null,{"$f":"'FR-16(7)(v)-14 TOTAL CLASS'!M478","v":122},{"$f":"'FR-16(7)(v)-3 PROD Demand'!M478+'FR-16(7)(v)-7 TRANS Demand'!M478+'FR-16(7)(v)-11 DIST Demand'!M478","v":0},{"$f":"'FR-16(7)(v)-4 PROD Energy'!M478+'FR-16(7)(v)-8 TRANS Energy'!M478+'FR-16(7)(v)-12 DIST Energy'!M478","v":0},{"$f":"'FR-16(7)(v)-5 PROD Cust'!M478+'FR-16(7)(v)-9 TRANS Cust'!M478+'FR-16(7)(v)-13 DIST Cust'!M478","v":122},122,0]
[35,null,{"$f":"'FR-16(7)(v)-1 Functional'!C479","v":"UNDERGROUND LINES - PRIMARY / DEMAND"},{"$f":"'FR-16(7)(v)-1 Functional'!D479","v":"K205"},null,{"$f":"'FR-16(7)(v)-14 TOTAL CLASS'!M479","v":62855},{"$f":"'FR-16(7)(v)-3 PROD Demand'!M479+'FR-16(7)(v)-7 TRANS Demand'!M479+'FR-16(7)(v)-11 DIST Demand'!M479","v":62855},{"$f":"'FR-16(7)(v)-4 PROD Energy'!M479+'FR-16(7)(v)-8 TRANS Energy'!M479+'FR-16(7)(v)-12 DIST Energy'!M479","v":0},{"$f":"'FR-16(7)(v)-5 PROD Cust'!M479+'FR-16(7)(v)-9 TRANS Cust'!M479+'FR-16(7)(v)-13 DIST Cust'!M479","v":0},62855,0]
[36,null,{"$f":"'FR-16(7)(v)-1 Functional'!C480","v":"UNDERGROUND LINES - PRIMARY / CUSTOMER"},{"$f":"'FR-16(7)(v)-1 Functional'!D480","v":"K405"},null,{"$f":"'FR-16(7)(v)-14 TOTAL CLASS'!M480","v":54},{"$f":"'FR-16(7)(v)-3 PROD Demand'!M480+'FR-16(7)(v)-7 TRANS Demand'!M480+'FR-16(7)(v)-11 DIST Demand'!M480","v":0},{"$f":"'FR-16(7)(v)-4 PROD Energy'!M480+'FR-16(7)(v)-8 TRANS Energy'!M480+'FR-16(7)(v)-12 DIST Energy'!M480","v":0},{"$f":"'FR-16(7)(v)-5 PROD Cust'!M480+'FR-16(7)(v)-9 TRANS Cust'!M480+'FR-16(7)(v)-13 DIST Cust'!M480","v":54},54,0]
[37,null,{"$f":"'FR-16(7)(v)-1 Functional'!C481","v":"UNDERGROUND LINES - SECONDARY / DEMAND"},{"$f":"'FR-16(7)(v)-1 Functional'!D481","v":"K206"},null,{"$f":"'FR-16(7)(v)-14 TOTAL CLASS'!M481","v":10768},{"$f":"'FR-16(7)(v)-3 PROD Demand'!M481+'FR-16(7)(v)-7 TRANS Demand'!M481+'FR-16(7)(v)-11 DIST Demand'!M481","v":10768},{"$f":"'FR-16(7)(v)-4 PROD Energy'!M481+'FR-16(7)(v)-8 TRANS Energy'!M481+'FR-16(7)(v)-12 DIST Energy'!M481","v":0},{"$f":"'FR-16(7)(v)-5 PROD Cust'!M481+'FR-16(7)(v)-9 TRANS Cust'!M481+'FR-16(7)(v)-13 DIST Cust'!M481","v":0},10768,0]
[38,null,{"$f":"'FR-16(7)(v)-1 Functional'!C482","v":"UNDERGROUND LINES - SECONDARY / CUSTOMER"},{"$f":"'FR-16(7)(v)-1 Functional'!D482","v":"K405"},null,{"$f":"'FR-16(7)(v)-14 TOTAL CLASS'!M482","v":17},{"$f":"'FR-16(7)(v)-3 PROD Demand'!M482+'FR-16(7)(v)-7 TRANS Demand'!M482+'FR-16(7)(v)-11 DIST Demand'!M482","v":0},{"$f":"'FR-16(7)(v)-4 PROD Energy'!M482+'FR-16(7)(v)-8 TRANS Energy'!M482+'FR-16(7)(v)-12 DIST Energy'!M482","v":0},{"$f":"'FR-16(7)(v)-5 PROD Cust'!M482+'FR-16(7)(v)-9 TRANS Cust'!M482+'FR-16(7)(v)-13 DIST Cust'!M482","v":17},17,0]
[39,null,{"$f":"'FR-16(7)(v)-1 Functional'!C483","v":"TRANSFORMERS DEMAND RELATED"},{"$f":"'FR-16(7)(v)-1 Functional'!D483","v":"K203"},null,{"$f":"'FR-16(7)(v)-14 TOTAL CLASS'!M483","v":15119},{"$f":"'FR-16(7)(v)-3 PROD Demand'!M483+'FR-16(7)(v)-7 TRANS Demand'!M483+'FR-16(7)(v)-11 DIST Demand'!M483","v":15119},{"$f":"'FR-16(7)(v)-4 PROD Energy'!M483+'FR-16(7)(v)-8 TRANS Energy'!M483+'FR-16(7)(v)-12 DIST Energy'!M483","v":0},{"$f":"'FR-16(7)(v)-5 PROD Cust'!M483+'FR-16(7)(v)-9 TRANS Cust'!M483+'FR-16(7)(v)-13 DIST Cust'!M483","v":0},15119,0]
[40,null,{"$f":"'FR-16(7)(v)-1 Functional'!C484","v":"TRANSFORMERS CUSTOMER RELATED"},{"$f":"'FR-16(7)(v)-1 Functional'!D484","v":"K401"},null,{"$f":"'FR-16(7)(v)-14 TOTAL CLASS'!M484","v":0},{"$f":"'FR-16(7)(v)-3 PROD Demand'!M484+'FR-16(7)(v)-7 TRANS Demand'!M484+'FR-16(7)(v)-11 DIST Demand'!M484","v":0},{"$f":"'FR-16(7)(v)-4 PROD Energy'!M484+'FR-16(7)(v)-8 TRANS Energy'!M484+'FR-16(7)(v)-12 DIST Energy'!M484","v":0},{"$f":"'FR-16(7)(v)-5 PROD Cust'!M484+'FR-16(7)(v)-9 TRANS Cust'!M484+'FR-16(7)(v)-13 DIST Cust'!M484","v":0},{"$f":"SUM(G484:I484)","v":0},{"$f":"F484-J484","v":0}]
[41,null,{"$f":"'FR-16(7)(v)-1 Functional'!C485","v":"OTHER MAINTENANCE"},{"$f":"'FR-16(7)(v)-1 Functional'!D485","v":"K203"},null,{"$f":"'FR-16(7)(v)-14 TOTAL CLASS'!M485","v":105455},{"$f":"'FR-16(7)(v)-3 PROD Demand'!M485+'FR-16(7)(v)-7 TRANS Demand'!M485+'FR-16(7)(v)-11 DIST Demand'!M485","v":105455},{"$f":"'FR-16(7)(v)-4 PROD Energy'!M485+'FR-16(7)(v)-8 TRANS Energy'!M485+'FR-16(7)(v)-12 DIST Energy'!M485","v":0},{"$f":"'FR-16(7)(v)-5 PROD Cust'!M485+'FR-16(7)(v)-9 TRANS Cust'!M485+'FR-16(7)(v)-13 DIST Cust'!M485","v":0},105455,0]
[42,null,{"$f":"'FR-16(7)(v)-1 Functional'!C486","v":"LOAD DISPATCH"},{"$f":"'FR-16(7)(v)-1 Functional'!D486","v":"K215"},null,{"$f":"'FR-16(7)(v)-14 TOTAL CLASS'!M486","v":53978},{"$f":"'FR-16(7)(v)-3 PROD Demand'!M486+'FR-16(7)(v)-7 TRANS Demand'!M486+'FR-16(7)(v)-11 DIST Demand'!M486","v":53978},{"$f":"'FR-16(7)(v)-4 PROD Energy'!M486+'FR-16(7)(v)-8 TRANS Energy'!M486+'FR-16(7)(v)-12 DIST Energy'!M486","v":0},{"$f":"'FR-16(7)(v)-5 PROD Cust'!M486+'FR-16(7)(v)-9 TRANS Cust'!M486+'FR-16(7)(v)-13 DIST Cust'!M486","v":0},53978,0]
[43,null,{"$f":"'FR-16(7)(v)-1 Functional'!C487","v":"METERS"},{"$f":"'FR-16(7)(v)-1 Functional'!D487","v":"K407"},null,{"$f":"'FR-16(7)(v)-14 TOTAL CLASS'!M487","v":0},{"$f":"'FR-16(7)(v)-3 PROD Demand'!M487+'FR-16(7)(v)-7 TRANS Demand'!M487+'FR-16(7)(v)-11 DIST Demand'!M487","v":0},{"$f":"'FR-16(7)(v)-4 PROD Energy'!M487+'FR-16(7)(v)-8 TRANS Energy'!M487+'FR-16(7)(v)-12 DIST Energy'!M487","v":0},{"$f":"'FR-16(7)(v)-5 PROD Cust'!M487+'FR-16(7)(v)-9 TRANS Cust'!M487+'FR-16(7)(v)-13 DIST Cust'!M487","v":0},0,0]
[44,null,{"$f":"'FR-16(7)(v)-1 Functional'!C488","v":"STREET LIGHTING AND SIGNAL SYSTEMS"},{"$f":"'FR-16(7)(v)-1 Functional'!D488","v":"K401"},null,{"$f":"'FR-16(7)(v)-14 TOTAL CLASS'!M488","v":0},{"$f":"'FR-16(7)(v)-3 PROD Demand'!M488+'FR-16(7)(v)-7 TRANS Demand'!M488+'FR-16(7)(v)-11 DIST Demand'!M488","v":0},{"$f":"'FR-16(7)(v)-4 PROD Energy'!M488+'FR-16(7)(v)-8 TRANS Energy'!M488+'FR-16(7)(v)-12 DIST Energy'!M488","v":0},{"$f":"'FR-16(7)(v)-5 PROD Cust'!M488+'FR-16(7)(v)-9 TRANS Cust'!M488+'FR-16(7)(v)-13 DIST Cust'!M488","v":0},0,0]
[45,null,{"$f":"'FR-16(7)(v)-1 Functional'!C489","v":"OTHER OPERATIONS"},{"$f":"'FR-16(7)(v)-1 Functional'!D489","v":"K203"},null,{"$f":"'FR-16(7)(v)-14 TOTAL CLASS'!M489","v":40270},{"$f":"'FR-16(7)(v)-3 PROD Demand'!M489+'FR-16(7)(v)-7 TRANS Demand'!M489+'FR-16(7)(v)-11 DIST Demand'!M489","v":40270},{"$f":"'FR-16(7)(v)-4 PROD Energy'!M489+'FR-16(7)(v)-8 TRANS Energy'!M489+'FR-16(7)(v)-12 DIST Energy'!M489","v":0},{"$f":"'FR-16(7)(v)-5 PROD Cust'!M489+'FR-16(7)(v)-9 TRANS Cust'!M489+'FR-16(7)(v)-13 DIST Cust'!M489","v":0},40270,0]
[46,null,{"$f":"'FR-16(7)(v)-1 Functional'!C490","v":"MISCELLANEOUS EXPENSES ADJUSTMENT"},{"$f":"'FR-16(7)(v)-1 Functional'!D490","v":"K203"},null,{"$f":"'FR-16(7)(v)-14 TOTAL CLASS'!M490","v":124107},{"$f":"'FR-16(7)(v)-3 PROD Demand'!M490+'FR-16(7)(v)-7 TRANS Demand'!M490+'FR-16(7)(v)-11 DIST Demand'!M490","v":124107},{"$f":"'FR-16(7)(v)-4 PROD Energy'!M490+'FR-16(7)(v)-8 TRANS Energy'!M490+'FR-16(7)(v)-12 DIST Energy'!M490","v":0},{"$f":"'FR-16(7)(v)-5 PROD Cust'!M490+'FR-16(7)(v)-9 TRANS Cust'!M490+'FR-16(7)(v)-13 DIST Cust'!M490","v":0},124107,0]
[47,null,{"$f":"'FR-16(7)(v)-1 Functional'!C491","v":"AFFILIATED COMPANY RENTS ADJUSTMENT"},{"$f":"'FR-16(7)(v)-1 Functional'!D491","v":"D249"},null,{"$f":"'FR-16(7)(v)-14 TOTAL CLASS'!M491","v":0},{"$f":"'FR-16(7)(v)-3 PROD Demand'!M491+'FR-16(7)(v)-7 TRANS Demand'!M491+'FR-16(7)(v)-11 DIST Demand'!M491","v":0},{"$f":"'FR-16(7)(v)-4 PROD Energy'!M491+'FR-16(7)(v)-8 TRANS Energy'!M491+'FR-16(7)(v)-12 DIST Energy'!M491","v":0},{"$f":"'FR-16(7)(v)-5 PROD Cust'!M491+'FR-16(7)(v)-9 TRANS Cust'!M491+'FR-16(7)(v)-13 DIST Cust'!M491","v":0},0,0]
[48,null,{"$f":"'FR-16(7)(v)-1 Functional'!C492","v":"  TOTAL DISTRIBUTION O & M"},null," ",{"$f":"SUM(F472:F491)","v":1147037},1146550,0,487,1147037,0]
[49,null," "]
[50,"CUSTOMER ACCOUNTING",null,null,null," "]
[51,null,{"$f":"'FR-16(7)(v)-1 Functional'!C495","v":"CUSTOMER ACCOUNTING EXPENSE"},{"$f":"'FR-16(7)(v)-1 Functional'!D495","v":"K409"},null,{"$f":"'FR-16(7)(v)-14 TOTAL CLASS'!M495","v":931},{"$f":"'FR-16(7)(v)-3 PROD Demand'!M495+'FR-16(7)(v)-7 TRANS Demand'!M495+'FR-16(7)(v)-11 DIST Demand'!M495","v":0},{"$f":"'FR-16(7)(v)-4 PROD Energy'!M495+'FR-16(7)(v)-8 TRANS Energy'!M495+'FR-16(7)(v)-12 DIST Energy'!M495","v":0},{"$f":"'FR-16(7)(v)-5 PROD Cust'!M495+'FR-16(7)(v)-9 TRANS Cust'!M495+'FR-16(7)(v)-13 DIST Cust'!M495","v":931},{"$f":"SUM(G495:I495)","v":931},{"$f":"F495-J495","v":0}]
[52,null,{"$f":"'FR-16(7)(v)-1 Functional'!C496","v":"UNCOLLECTIBLE EXP"},{"$f":"'FR-16(7)(v)-1 Functional'!D496","v":"K411"},null,{"$f":"'FR-16(7)(v)-14 TOTAL CLASS'!M496","v":22282},{"$f":"'FR-16(7)(v)-3 PROD Demand'!M496+'FR-16(7)(v)-7 TRANS Demand'!M496+'FR-16(7)(v)-11 DIST Demand'!M496","v":0},{"$f":"'FR-16(7)(v)-4 PROD Energy'!M496+'FR-16(7)(v)-8 TRANS Energy'!M496+'FR-16(7)(v)-12 DIST Energy'!M496","v":0},{"$f":"'FR-16(7)(v)-5 PROD Cust'!M496+'FR-16(7)(v)-9 TRANS Cust'!M496+'FR-16(7)(v)-13 DIST Cust'!M496","v":22282},22282,0]
[53,null,{"$f":"'FR-16(7)(v)-1 Functional'!C497","v":"METER READING"},{"$f":"'FR-16(7)(v)-1 Functional'!D497","v":"K407"},null,{"$f":"'FR-16(7)(v)-14 TOTAL CLASS'!M497","v":0},{"$f":"'FR-16(7)(v)-3 PROD Demand'!M497+'FR-16(7)(v)-7 TRANS Demand'!M497+'FR-16(7)(v)-11 DIST Demand'!M497","v":0},{"$f":"'FR-16(7)(v)-4 PROD Energy'!M497+'FR-16(7)(v)-8 TRANS Energy'!M497+'FR-16(7)(v)-12 DIST Energy'!M497","v":0},{"$f":"'FR-16(7)(v)-5 PROD Cust'!M497+'FR-16(7)(v)-9 TRANS Cust'!M497+'FR-16(7)(v)-13 DIST Cust'!M497","v":0},0,0]
[54,null,{"$f":"'FR-16(7)(v)-1 Functional'!C498","v":"UNCOLLECTIBLE EXP ADJUSTMENT"},{"$f":"'FR-16(7)(v)-1 Functional'!D498","v":"K411"},null,{"$f":"'FR-16(7)(v)-14 TOTAL CLASS'!M498","v":-31520},{"$f":"'FR-16(7)(v)-3 PROD Demand'!M498+'FR-16(7)(v)-7 TRANS Demand'!M498+'FR-16(7)(v)-11 DIST Demand'!M498","v":0},{"$f":"'FR-16(7)(v)-4 PROD Energy'!M498+'FR-16(7)(v)-8 TRANS Energy'!M498+'FR-16(7)(v)-12 DIST Energy'!M498","v":0},{"$f":"'FR-16(7)(v)-5 PROD Cust'!M498+'FR-16(7)(v)-9 TRANS Cust'!M498+'FR-16(7)(v)-13 DIST Cust'!M498","v":-31520},-31520,0]
[55,null,{"$f":"'FR-16(7)(v)-1 Functional'!C499","v":"CREDIT CARD FEES"},{"$f":"'FR-16(7)(v)-1 Functional'!D499","v":"K407"},null,{"$f":"'FR-16(7)(v)-14 TOTAL CLASS'!M499","v":0},{"$f":"'FR-16(7)(v)-3 PROD Demand'!M499+'FR-16(7)(v)-7 TRANS Demand'!M499+'FR-16(7)(v)-11 DIST Demand'!M499","v":0},{"$f":"'FR-16(7)(v)-4 PROD Energy'!M499+'FR-16(7)(v)-8 TRANS Energy'!M499+'FR-16(7)(v)-12 DIST Energy'!M499","v":0},{"$f":"'FR-16(7)(v)-5 PROD Cust'!M499+'FR-16(7)(v)-9 TRANS Cust'!M499+'FR-16(7)(v)-13 DIST Cust'!M499","v":0},0,0]
[56,null,{"$f":"'FR-16(7)(v)-1 Functional'!C500","v":"ELIMINATE REV & EXP - DSM RIDER"},{"$f":"'FR-16(7)(v)-1 Functional'!D500","v":"K405"},null,{"$f":"'FR-16(7)(v)-14 TOTAL CLASS'!M500","v":0},{"$f":"'FR-16(7)(v)-3 PROD Demand'!M500+'FR-16(7)(v)-7 TRANS Demand'!M500+'FR-16(7)(v)-11 DIST Demand'!M500","v":0},{"$f":"'FR-16(7)(v)-4 PROD Energy'!M500+'FR-16(7)(v)-8 TRANS Energy'!M500+'FR-16(7)(v)-12 DIST Energy'!M500","v":0},{"$f":"'FR-16(7)(v)-5 PROD Cust'!M500+'FR-16(7)(v)-9 TRANS Cust'!M500+'FR-16(7)(v)-13 DIST Cust'!M500","v":0},0,0]
[57,null,{"$f":"'FR-16(7)(v)-1 Functional'!C501","v":"SALE OF A/R"},{"$f":"'FR-16(7)(v)-1 Functional'!D501","v":"K411"},null,{"$f":"'FR-16(7)(v)-14 TOTAL CLASS'!M501","v":6206},{"$f":"'FR-16(7)(v)-3 PROD Demand'!M501+'FR-16(7)(v)-7 TRANS Demand'!M501+'FR-16(7)(v)-11 DIST Demand'!M501","v":0},{"$f":"'FR-16(7)(v)-4 PROD Energy'!M501+'FR-16(7)(v)-8 TRANS Energy'!M501+'FR-16(7)(v)-12 DIST Energy'!M501","v":0},{"$f":"'FR-16(7)(v)-5 PROD Cust'!M501+'FR-16(7)(v)-9 TRANS Cust'!M501+'FR-16(7)(v)-13 DIST Cust'!M501","v":6206},6206,0]
[58,null,{"$f":"'FR-16(7)(v)-1 Functional'!C502","v":"ELIMINATE MISC EXPENSE"},{"$f":"'FR-16(7)(v)-1 Functional'!D502","v":"K405"},null,{"$f":"'FR-16(7)(v)-14 TOTAL CLASS'!M502","v":0},{"$f":"'FR-16(7)(v)-3 PROD Demand'!M502+'FR-16(7)(v)-7 TRANS Demand'!M502+'FR-16(7)(v)-11 DIST Demand'!M502","v":0},{"$f":"'FR-16(7)(v)-4 PROD Energy'!M502+'FR-16(7)(v)-8 TRANS Energy'!M502+'FR-16(7)(v)-12 DIST Energy'!M502","v":0},{"$f":"'FR-16(7)(v)-5 PROD Cust'!M502+'FR-16(7)(v)-9 TRANS Cust'!M502+'FR-16(7)(v)-13 DIST Cust'!M502","v":0},0,0]
[59,null,{"$f":"'FR-16(7)(v)-1 Functional'!C503","v":"  TOTAL CUSTOMER ACCT EXPENSE"},null," ",{"$f":"SUM(F494:F502)","v":-2101},0,0,-2101,-2101,0]
[]
[{"$f":"co_name","v":"DUKE ENERGY KENTUCKY, INC."},null,null,null,null,null,null,null,null,{"$f":"J1","v":"FR-16(7)(v)-21"}]
[{"$f":"$A$2","v":"DT PRIMARY CLASSIFIED - ELECTRIC COST OF SERVICE"},null,null,null,null,null,null,null,null,{"$f":"J2","v":"WITNESS RESPONSIBLE:"}]
[{"$f":"case_name","v":"CASE NO: 2019-00271"},null,null,null,null,null,null,null,null,{"$f":"Witness","v":"JAMES E. ZIOLKOWSKI"}]
[{"$f":"data_filing","v":"DATA: 12 MONTHS ACTUAL  & 0 MONTHS ESTIMATED"},null,null,null,null,null,null,null,null,{"$f":"\"PAGE \"&Pages2-6&\" OF \"&Pages2","v":"PAGE 9 OF 15"}]
[{"$f":"type","v":"TYPE OF FILING: \"X\" ORIGINAL   UPDATED    REVISED  "}]
[]
[]
["LINE",null,null,null,null,"TOTAL","CLASSIFIED",null,null,"TOTAL","ALL"]
["NO.","O&M EXPENSES",null,"ALLO",null,{"$f":"$F$9","v":"DT PRIMARY"},{"$f":"G9","v":"DEMAND"},"ENERGY","CUSTOMER","AT ISSUE","OTHER"]
[null,null,"Schedule 6.1",null,null,null,3,4,5]
[1,"CUSTOMER SERVICE & INFORMATION"]
[2,null,{"$f":"'FR-16(7)(v)-1 Functional'!C516","v":"TOTAL CUST SERVICE & INFO"},{"$f":"'FR-16(7)(v)-1 Functional'!D516","v":"K405"},null,{"$f":"'FR-16(7)(v)-14 TOTAL CLASS'!M516","v":157},{"$f":"'FR-16(7)(v)-3 PROD Demand'!M516+'FR-16(7)(v)-7 TRANS Demand'!M516+'FR-16(7)(v)-11 DIST Demand'!M516","v":0},{"$f":"'FR-16(7)(v)-4 PROD Energy'!M516+'FR-16(7)(v)-8 TRANS Energy'!M516+'FR-16(7)(v)-12 DIST Energy'!M516","v":0},{"$f":"'FR-16(7)(v)-5 PROD Cust'!M516+'FR-16(7)(v)-9 TRANS Cust'!M516+'FR-16(7)(v)-13 DIST Cust'!M516","v":157},{"$f":"SUM(G516:I516)","v":157},{"$f":"F516-J516","v":0}]
[3,null,{"$f":"'FR-16(7)(v)-1 Functional'!C517","v":"INFORMATIONAL & INSTRUCTIONAL ADV"},{"$f":"'FR-16(7)(v)-1 Functional'!D517","v":"K405"},null,{"$f":"'FR-16(7)(v)-14 TOTAL CLASS'!M517","v":0},{"$f":"'FR-16(7)(v)-3 PROD Demand'!M517+'FR-16(7)(v)-7 TRANS Demand'!M517+'FR-16(7)(v)-11 DIST Demand'!M517","v":0},{"$f":"'FR-16(7)(v)-4 PROD Energy'!M517+'FR-16(7)(v)-8 TRANS Energy'!M517+'FR-16(7)(v)-12 DIST Energy'!M517","v":0},{"$f":"'FR-16(7)(v)-5 PROD Cust'!M517+'FR-16(7)(v)-9 TRANS Cust'!M517+'FR-16(7)(v)-13 DIST Cust'!M517","v":0},{"$f":"SUM(G517:I517)","v":0},{"$f":"F517-J517","v":0}]
[4,null,{"$f":"'FR-16(7)(v)-1 Functional'!C518","v":"TOTAL CUSTOMER SERV. & INFO."},null," ",{"$f":"SUM(F516:F517)","v":157},0,0,157,157,0]
[5]
[6,"SALES"]
[7,null,{"$f":"'FR-16(7)(v)-1 Functional'!C521","v":"SALES EXPENSE"},{"$f":"'FR-16(7)(v)-1 Functional'!D521","v":"K405"}," ",{"$f":"'FR-16(7)(v)-14 TOTAL CLASS'!M521","v":389},{"$f":"'FR-16(7)(v)-3 PROD Demand'!M521+'FR-16(7)(v)-7 TRANS Demand'!M521+'FR-16(7)(v)-11 DIST Demand'!M521","v":0},{"$f":"'FR-16(7)(v)-4 PROD Energy'!M521+'FR-16(7)(v)-8 TRANS Energy'!M521+'FR-16(7)(v)-12 DIST Energy'!M521","v":0},{"$f":"'FR-16(7)(v)-5 PROD Cust'!M521+'FR-16(7)(v)-9 TRANS Cust'!M521+'FR-16(7)(v)-13 DIST Cust'!M521","v":389},{"$f":"SUM(G521:I521)","v":389},{"$f":"F521-J521","v":0}]
[8,null,{"$f":"'FR-16(7)(v)-1 Functional'!C522","v":"TOTAL SALES EXPENSE"},null," ",{"$f":"SUM(F520:F521)","v":389},0,0,389,389,0]
[9]
[10,"ADMINISTRATIVE & GENERAL "]
[11,null,{"$f":"'FR-16(7)(v)-1 Functional'!C525","v":"PRODUCTION - DEMAND RELATED"},{"$f":"'FR-16(7)(v)-1 Functional'!D525","v":"P349"},null,{"$f":"'FR-16(7)(v)-14 TOTAL CLASS'!M525","v":0},{"$f":"'FR-16(7)(v)-3 PROD Demand'!M525+'FR-16(7)(v)-7 TRANS Demand'!M525+'FR-16(7)(v)-11 DIST Demand'!M525","v":0},{"$f":"'FR-16(7)(v)-4 PROD Energy'!M525+'FR-16(7)(v)-8 TRANS Energy'!M525+'FR-16(7)(v)-12 DIST Energy'!M525","v":0},{"$f":"'FR-16(7)(v)-5 PROD Cust'!M525+'FR-16(7)(v)-9 TRANS Cust'!M525+'FR-16(7)(v)-13 DIST Cust'!M525","v":0},{"$f":"SUM(G525:I525)","v":0},{"$f":"F525-J525","v":0}]
[12,null,{"$f":"'FR-16(7)(v)-1 Functional'!C526","v":"PRODUCTION - ENERGY RELATED"},{"$f":"'FR-16(7)(v)-1 Functional'!D526","v":"E349"},null,{"$f":"'FR-16(7)(v)-14 TOTAL CLASS'!M526","v":1247267},{"$f":"'FR-16(7)(v)-3 PROD Demand'!M526+'FR-16(7)(v)-7 TRANS Demand'!M526+'FR-16(7)(v)-11 DIST Demand'!M526","v":0},{"$f":"'FR-16(7)(v)-4 PROD Energy'!M526+'FR-16(7)(v)-8 TRANS Energy'!M526+'FR-16(7)(v)-12 DIST Energy'!M526","v":1247267},{"$f":"'FR-16(7)(v)-5 PROD Cust'!M526+'FR-16(7)(v)-9 TRANS Cust'!M526+'FR-16(7)(v)-13 DIST Cust'!M526","v":0},1247267,0]
[13,null,"TRANSMISSION",{"$f":"'FR-16(7)(v)-1 Functional'!D527","v":"T349"},null,{"$f":"'FR-16(7)(v)-14 TOTAL CLASS'!M527","v":130911},{"$f":"'FR-16(7)(v)-3 PROD Demand'!M527+'FR-16(7)(v)-7 TRANS Demand'!M527+'FR-16(7)(v)-11 DIST Demand'!M527","v":130911},{"$f":"'FR-16(7)(v)-4 PROD Energy'!M527+'FR-16(7)(v)-8 TRANS Energy'!M527+'FR-16(7)(v)-12 DIST Energy'!M527","v":0},{"$f":"'FR-16(7)(v)-5 PROD Cust'!M527+'FR-16(7)(v)-9 TRANS Cust'!M527+'FR-16(7)(v)-13 DIST Cust'!M527","v":0},130911,0]
[14,null,{"$f":"'FR-16(7)(v)-1 Functional'!C528","v":"DISTRIBUTION"},{"$f":"'FR-16(7)(v)-1 Functional'!D528","v":"D349"},null,{"$f":"'FR-16(7)(v)-14 TOTAL CLASS'!M528","v":386297},{"$f":"'FR-16(7)(v)-3 PROD Demand'!M528+'FR-16(7)(v)-7 TRANS Demand'!M528+'FR-16(7)(v)-11 DIST Demand'!M528","v":386134},{"$f":"'FR-16(7)(v)-4 PROD Energy'!M528+'FR-16(7)(v)-8 TRANS Energy'!M528+'FR-16(7)(v)-12 DIST Energy'!M528","v":0},{"$f":"'FR-16(7)(v)-5 PROD Cust'!M528+'FR-16(7)(v)-9 TRANS Cust'!M528+'FR-16(7)(v)-13 DIST Cust'!M528","v":163},386297,0]
[15,null,{"$f":"'FR-16(7)(v)-1 Functional'!C529","v":"CUSTOMER ACCOUNTING"},{"$f":"'FR-16(7)(v)-1 Functional'!D529","v":"C319"},null,{"$f":"'FR-16(7)(v)-14 TOTAL CLASS'!M529","v":-1857},{"$f":"'FR-16(7)(v)-3 PROD Demand'!M529+'FR-16(7)(v)-7 TRANS Demand'!M529+'FR-16(7)(v)-11 DIST Demand'!M529","v":0},{"$f":"'FR-16(7)(v)-4 PROD Energy'!M529+'FR-16(7)(v)-8 TRANS Energy'!M529+'FR-16(7)(v)-12 DIST Energy'!M529","v":0},{"$f":"'FR-16(7)(v)-5 PROD Cust'!M529+'FR-16(7)(v)-9 TRANS Cust'!M529+'FR-16(7)(v)-13 DIST Cust'!M529","v":-1857},-1857,0]
[16,null,{"$f":"'FR-16(7)(v)-1 Functional'!C530","v":"CUSTOMER SERVICE & INFORMATION"},{"$f":"'FR-16(7)(v)-1 Functional'!D530","v":"C331"},null,{"$f":"'FR-16(7)(v)-14 TOTAL CLASS'!M530","v":63},{"$f":"'FR-16(7)(v)-3 PROD Demand'!M530+'FR-16(7)(v)-7 TRANS Demand'!M530+'FR-16(7)(v)-11 DIST Demand'!M530","v":0},{"$f":"'FR-16(7)(v)-4 PROD Energy'!M530+'FR-16(7)(v)-8 TRANS Energy'!M530+'FR-16(7)(v)-12 DIST Energy'!M530","v":0},{"$f":"'FR-16(7)(v)-5 PROD Cust'!M530+'FR-16(7)(v)-9 TRANS Cust'!M530+'FR-16(7)(v)-13 DIST Cust'!M530","v":63},63,0]
[17,null,{"$f":"'FR-16(7)(v)-1 Functional'!C531","v":"SALES"},{"$f":"'FR-16(7)(v)-1 Functional'!D531","v":"S319"},null,{"$f":"'FR-16(7)(v)-14 TOTAL CLASS'!M531","v":0},{"$f":"'FR-16(7)(v)-3 PROD Demand'!M531+'FR-16(7)(v)-7 TRANS Demand'!M531+'FR-16(7)(v)-11 DIST Demand'!M531","v":0},{"$f":"'FR-16(7)(v)-4 PROD Energy'!M531+'FR-16(7)(v)-8 TRANS Energy'!M531+'FR-16(7)(v)-12 DIST Energy'!M531","v":0},{"$f":"'FR-16(7)(v)-5 PROD Cust'!M531+'FR-16(7)(v)-9 TRANS Cust'!M531+'FR-16(7)(v)-13 DIST Cust'!M531","v":0},0,0]
[18,null,{"$f":"'FR-16(7)(v)-1 Functional'!C532","v":"TOT ADMIN & GEN LESS REG EXP"}," ",null,{"$f":"SUM(F525:F531)","v":1762681},517045,1247267,-1631,1762681,0]
[19,null,{"$f":"'FR-16(7)(v)-1 Functional'!C533","v":"RATE CASE EXPENSE ADJUSTMENT"},{"$f":"'FR-16(7)(v)-1 Functional'!D533","v":"A315"},null,{"$f":"'FR-16(7)(v)-14 TOTAL CLASS'!M533","v":7565},{"$f":"'FR-16(7)(v)-3 PROD Demand'!M533+'FR-16(7)(v)-7 TRANS Demand'!M533+'FR-16(7)(v)-11 DIST Demand'!M533","v":2219},{"$f":"'FR-16(7)(v)-4 PROD Energy'!M533+'FR-16(7)(v)-8 TRANS Energy'!M533+'FR-16(7)(v)-12 DIST Energy'!M533","v":5353},{"$f":"'FR-16(7)(v)-5 PROD Cust'!M533+'FR-16(7)(v)-9 TRANS Cust'!M533+'FR-16(7)(v)-13 DIST Cust'!M533","v":-7},{"$f":"SUM(G533:I533)","v":7565},{"$f":"F533-J533","v":0}]
[20,null,{"$f":"'FR-16(7)(v)-1 Functional'!C534","v":"ELIMINATE MISCELLANEOUS EXPENSES ADJUSTMENT"},{"$f":"'FR-16(7)(v)-1 Functional'!D534","v":"A315"},null,{"$f":"'FR-16(7)(v)-14 TOTAL CLASS'!M534","v":0},{"$f":"'FR-16(7)(v)-3 PROD Demand'!M534+'FR-16(7)(v)-7 TRANS Demand'!M534+'FR-16(7)(v)-11 DIST Demand'!M534","v":0},{"$f":"'FR-16(7)(v)-4 PROD Energy'!M534+'FR-16(7)(v)-8 TRANS Energy'!M534+'FR-16(7)(v)-12 DIST Energy'!M534","v":0},{"$f":"'FR-16(7)(v)-5 PROD Cust'!M534+'FR-16(7)(v)-9 TRANS Cust'!M534+'FR-16(7)(v)-13 DIST Cust'!M534","v":0},0,0]
[21,null,{"$f":"'FR-16(7)(v)-1 Functional'!C535","v":"RIDER ESM ELIMINATION"},{"$f":"'FR-16(7)(v)-1 Functional'!D535","v":"A315"},null,{"$f":"'FR-16(7)(v)-14 TOTAL CLASS'!M535","v":-520002},{"$f":"'FR-16(7)(v)-3 PROD Demand'!M535+'FR-16(7)(v)-7 TRANS Demand'!M535+'FR-16(7)(v)-11 DIST Demand'!M535","v":-152538},{"$f":"'FR-16(7)(v)-4 PROD Energy'!M535+'FR-16(7)(v)-8 TRANS Energy'!M535+'FR-16(7)(v)-12 DIST Energy'!M535","v":-367949},{"$f":"'FR-16(7)(v)-5 PROD Cust'!M535+'FR-16(7)(v)-9 TRANS Cust'!M535+'FR-16(7)(v)-13 DIST Cust'!M535","v":485},-520002,0]
[22,null,{"$f":"'FR-16(7)(v)-1 Functional'!C536","v":"ELIMINATE DSM"},{"$f":"'FR-16(7)(v)-1 Functional'!D536","v":"A315"},null,{"$f":"'FR-16(7)(v)-14 TOTAL CLASS'!M536","v":-7282},{"$f":"'FR-16(7)(v)-3 PROD Demand'!M536+'FR-16(7)(v)-7 TRANS Demand'!M536+'FR-16(7)(v)-11 DIST Demand'!M536","v":-2136},{"$f":"'FR-16(7)(v)-4 PROD Energy'!M536+'FR-16(7)(v)-8 TRANS Energy'!M536+'FR-16(7)(v)-12 DIST Energy'!M536","v":-5153},{"$f":"'FR-16(7)(v)-5 PROD Cust'!M536+'FR-16(7)(v)-9 TRANS Cust'!M536+'FR-16(7)(v)-13 DIST Cust'!M536","v":7},-7282,0]
[23,null,{"$f":"'FR-16(7)(v)-1 Functional'!C537","v":"DSM DEFERRAL - ELECTRIC"},{"$f":"'FR-16(7)(v)-1 Functional'!D537","v":"A315"},null,{"$f":"'FR-16(7)(v)-14 TOTAL CLASS'!M537","v":0},{"$f":"'FR-16(7)(v)-3 PROD Demand'!M537+'FR-16(7)(v)-7 TRANS Demand'!M537+'FR-16(7)(v)-11 DIST Demand'!M537","v":0},{"$f":"'FR-16(7)(v)-4 PROD Energy'!M537+'FR-16(7)(v)-8 TRANS Energy'!M537+'FR-16(7)(v)-12 DIST Energy'!M537","v":0},{"$f":"'FR-16(7)(v)-5 PROD Cust'!M537+'FR-16(7)(v)-9 TRANS Cust'!M537+'FR-16(7)(v)-13 DIST Cust'!M537","v":0},0,0]
[24,null,{"$f":"'FR-16(7)(v)-1 Functional'!C538","v":"PENSION ADJUSTMENT"},{"$f":"'FR-16(7)(v)-1 Functional'!D538","v":"A315"},null,{"$f":"'FR-16(7)(v)-14 TOTAL CLASS'!M538","v":-31728},{"$f":"'FR-16(7)(v)-3 PROD Demand'!M538+'FR-16(7)(v)-7 TRANS Demand'!M538+'FR-16(7)(v)-11 DIST Demand'!M538","v":-9307},{"$f":"'FR-16(7)(v)-4 PROD Energy'!M538+'FR-16(7)(v)-8 TRANS Energy'!M538+'FR-16(7)(v)-12 DIST Energy'!M538","v":-22450},{"$f":"'FR-16(7)(v)-5 PROD Cust'!M538+'FR-16(7)(v)-9 TRANS Cust'!M538+'FR-16(7)(v)-13 DIST Cust'!M538","v":29},-31728,0]
[25,null,{"$f":"'FR-16(7)(v)-1 Functional'!C539","v":"ELIMINATE MISC EXPENSES"},{"$f":"'FR-16(7)(v)-1 Functional'!D539","v":"A315"},null,{"$f":"'FR-16(7)(v)-14 TOTAL CLASS'!M539","v":-30605},{"$f":"'FR-16(7)(v)-3 PROD Demand'!M539+'FR-16(7)(v)-7 TRANS Demand'!M539+'FR-16(7)(v)-11 DIST Demand'!M539","v":-8978},{"$f":"'FR-16(7)(v)-4 PROD Energy'!M539+'FR-16(7)(v)-8 TRANS Energy'!M539+'FR-16(7)(v)-12 DIST Energy'!M539","v":-21655},{"$f":"'FR-16(7)(v)-5 PROD Cust'!M539+'FR-16(7)(v)-9 TRANS Cust'!M539+'FR-16(7)(v)-13 DIST Cust'!M539","v":28},-30605,0]
[26,null,{"$f":"'FR-16(7)(v)-1 Functional'!C540","v":"ELIMINATE MERGER COSTS AND CREDITS"},{"$f":"'FR-16(7)(v)-1 Functional'!D540","v":"A315"},null,{"$f":"'FR-16(7)(v)-14 TOTAL CLASS'!M540","v":0},{"$f":"'FR-16(7)(v)-3 PROD Demand'!M540+'FR-16(7)(v)-7 TRANS Demand'!M540+'FR-16(7)(v)-11 DIST Demand'!M540","v":0},{"$f":"'FR-16(7)(v)-4 PROD Energy'!M540+'FR-16(7)(v)-8 TRANS Energy'!M540+'FR-16(7)(v)-12 DIST Energy'!M540","v":0},{"$f":"'FR-16(7)(v)-5 PROD Cust'!M540+'FR-16(7)(v)-9 TRANS Cust'!M540+'FR-16(7)(v)-13 DIST Cust'!M540","v":0},0,0]
[27,null,{"$f":"'FR-16(7)(v)-1 Functional'!C541","v":"ANNUALIZE KYPSC MAINT TAX"},{"$f":"'FR-16(7)(v)-1 Functional'!D541","v":"A315"},null,{"$f":"'FR-16(7)(v)-14 TOTAL CLASS'!M541","v":0},{"$f":"'FR-16(7)(v)-3 PROD Demand'!M541+'FR-16(7)(v)-7 TRANS Demand'!M541+'FR-16(7)(v)-11 DIST Demand'!M541","v":0},{"$f":"'FR-16(7)(v)-4 PROD Energy'!M541+'FR-16(7)(v)-8 TRANS Energy'!M541+'FR-16(7)(v)-12 DIST Energy'!M541","v":0},{"$f":"'FR-16(7)(v)-5 PROD Cust'!M541+'FR-16(7)(v)-9 TRANS Cust'!M541+'FR-16(7)(v)-13 DIST Cust'!M541","v":0},0,0]
[28,null,{"$f":"'FR-16(7)(v)-1 Functional'!C542","v":"REMOVE INCENTIVE COMP"},{"$f":"'FR-16(7)(v)-1 Functional'!D542","v":"A315"},null,{"$f":"'FR-16(7)(v)-14 TOTAL CLASS'!M542","v":-88350},{"$f":"'FR-16(7)(v)-3 PROD Demand'!M542+'FR-16(7)(v)-7 TRANS Demand'!M542+'FR-16(7)(v)-11 DIST Demand'!M542","v":-25917},{"$f":"'FR-16(7)(v)-4 PROD Energy'!M542+'FR-16(7)(v)-8 TRANS Energy'!M542+'FR-16(7)(v)-12 DIST Energy'!M542","v":-62516},{"$f":"'FR-16(7)(v)-5 PROD Cust'!M542+'FR-16(7)(v)-9 TRANS Cust'!M542+'FR-16(7)(v)-13 DIST Cust'!M542","v":83},-88350,0]
[29,null,{"$f":"'FR-16(7)(v)-1 Functional'!C543","v":"CREDIT CARD FEES"},{"$f":"'FR-16(7)(v)-1 Functional'!D543","v":"A315"},null,{"$f":"'FR-16(7)(v)-14 TOTAL CLASS'!M543","v":0},{"$f":"'FR-16(7)(v)-3 PROD Demand'!M543+'FR-16(7)(v)-7 TRANS Demand'!M543+'FR-16(7)(v)-11 DIST Demand'!M543","v":0},{"$f":"'FR-16(7)(v)-4 PROD Energy'!M543+'FR-16(7)(v)-8 TRANS Energy'!M543+'FR-16(7)(v)-12 DIST Energy'!M543","v":0},{"$f":"'FR-16(7)(v)-5 PROD Cust'!M543+'FR-16(7)(v)-9 TRANS Cust'!M543+'FR-16(7)(v)-13 DIST Cust'!M543","v":0},0,0]
[30,null,{"$f":"'FR-16(7)(v)-1 Functional'!C544","v":"ELIMINATE INCENTIVE COMPENSATION ADJUSTMENT"},{"$f":"'FR-16(7)(v)-1 Functional'!D544","v":"A315"},null,{"$f":"'FR-16(7)(v)-14 TOTAL CLASS'!M544","v":0},{"$f":"'FR-16(7)(v)-3 PROD Demand'!M544+'FR-16(7)(v)-7 TRANS Demand'!M544+'FR-16(7)(v)-11 DIST Demand'!M544","v":0},{"$f":"'FR-16(7)(v)-4 PROD Energy'!M544+'FR-16(7)(v)-8 TRANS Energy'!M544+'FR-16(7)(v)-12 DIST Energy'!M544","v":0},{"$f":"'FR-16(7)(v)-5 PROD Cust'!M544+'FR-16(7)(v)-9 TRANS Cust'!M544+'FR-16(7)(v)-13 DIST Cust'!M544","v":0},0,0]
[31,null,{"$f":"'FR-16(7)(v)-1 Functional'!C545","v":"AMORTIZATION OF DEFERRAL ASSET"},{"$f":"'FR-16(7)(v)-1 Functional'!D545","v":"A315"},null,{"$f":"'FR-16(7)(v)-14 TOTAL CLASS'!M545","v":0},{"$f":"'FR-16(7)(v)-3 PROD Demand'!M545+'FR-16(7)(v)-7 TRANS Demand'!M545+'FR-16(7)(v)-11 DIST Demand'!M545","v":0},{"$f":"'FR-16(7)(v)-4 PROD Energy'!M545+'FR-16(7)(v)-8 TRANS Energy'!M545+'FR-16(7)(v)-12 DIST Energy'!M545","v":0},{"$f":"'FR-16(7)(v)-5 PROD Cust'!M545+'FR-16(7)(v)-9 TRANS Cust'!M545+'FR-16(7)(v)-13 DIST Cust'!M545","v":0},0,0]
[32,null,{"$f":"'FR-16(7)(v)-1 Functional'!C546","v":"AMORTIZATION OF DEFERRED EXPENSES"},{"$f":"'FR-16(7)(v)-1 Functional'!D546","v":"A315"},null,{"$f":"'FR-16(7)(v)-14 TOTAL CLASS'!M546","v":5560},{"$f":"'FR-16(7)(v)-3 PROD Demand'!M546+'FR-16(7)(v)-7 TRANS Demand'!M546+'FR-16(7)(v)-11 DIST Demand'!M546","v":1631},{"$f":"'FR-16(7)(v)-4 PROD Energy'!M546+'FR-16(7)(v)-8 TRANS Energy'!M546+'FR-16(7)(v)-12 DIST Energy'!M546","v":3934},{"$f":"'FR-16(7)(v)-5 PROD Cust'!M546+'FR-16(7)(v)-9 TRANS Cust'!M546+'FR-16(7)(v)-13 DIST Cust'!M546","v":-5},5560,0]
[33,null,{"$f":"'FR-16(7)(v)-1 Functional'!C547","v":"TOTAL ADMIN. & GENERAL"},null," ",{"$f":"SUM(F532:F546)","v":1097839},322019,776831,-1011,1097839,0]
[34]
[35,null,{"$f":"'FR-16(7)(v)-1 Functional'!C549","v":"TOTAL O & M EXPENSE"},null,null,{"$f":"F547+F522+F518+F503+F492+F470+F466+F459","v":20687129},3696925,16992283,-2079,20687129,0]
[]
[{"$f":"co_name","v":"DUKE ENERGY KENTUCKY, INC."},null,null,null,null,null,null,null,null,{"$f":"J1","v":"FR-16(7)(v)-21"}]
[{"$f":"$A$2","v":"DT PRIMARY CLASSIFIED - ELECTRIC COST OF SERVICE"},null,null,null,null,null,null,null,null,{"$f":"J2","v":"WITNESS RESPONSIBLE:"}]
[{"$f":"case_name","v":"CASE NO: 2019-00271"},null,null,null,null,null,null,null,null,{"$f":"Witness","v":"JAMES E. ZIOLKOWSKI"}]
[{"$f":"data_filing","v":"DATA: 12 MONTHS ACTUAL  & 0 MONTHS ESTIMATED"},null,null,null,null,null,null,null,null,{"$f":"\"PAGE \"&Pages2-5&\" OF \"&Pages2","v":"PAGE 10 OF 15"}]
[{"$f":"type","v":"TYPE OF FILING: \"X\" ORIGINAL   UPDATED    REVISED  "}]
[]
[]
["LINE",null,null,null,null,"TOTAL","CLASSIFIED",null,null,"TOTAL","ALL"]
["NO.","DEPRECIATION EXPENSE",null,"ALLO",null,{"$f":"$F$9","v":"DT PRIMARY"},{"$f":"G9","v":"DEMAND"},"ENERGY","CUSTOMER","AT ISSUE","OTHER"]
[null,null,"Schedule 7",null,null,null,3,4,5]
[1,"PRODUCTION DEPRECIATION"]
[2,null,{"$f":"'FR-16(7)(v)-1 Functional'!C562","v":"PRODUCTION DEPRECIATION"},{"$f":"'FR-16(7)(v)-1 Functional'!D562","v":"P229"},null,{"$f":"'FR-16(7)(v)-14 TOTAL CLASS'!M562","v":3348519},{"$f":"'FR-16(7)(v)-3 PROD Demand'!M562+'FR-16(7)(v)-7 TRANS Demand'!M562+'FR-16(7)(v)-11 DIST Demand'!M562","v":3348519},{"$f":"'FR-16(7)(v)-4 PROD Energy'!M562+'FR-16(7)(v)-8 TRANS Energy'!M562+'FR-16(7)(v)-12 DIST Energy'!M562","v":0},{"$f":"'FR-16(7)(v)-5 PROD Cust'!M562+'FR-16(7)(v)-9 TRANS Cust'!M562+'FR-16(7)(v)-13 DIST Cust'!M562","v":0},{"$f":"SUM(G562:I562)","v":3348519},{"$f":"F562-J562","v":0}]
[3,null,{"$f":"'FR-16(7)(v)-1 Functional'!C563","v":"  TOTAL PRODUCTION DEPREC EXP."},null,null,{"$f":"SUM(F562:F562)","v":3348519},3348519,0,0,3348519,0]
[4]
[5,"TRANSMISSION DEPRECIATION"]
[6,null,"TRANSMISSION DEPRECIATION",{"$f":"'FR-16(7)(v)-1 Functional'!D566","v":"T229"},null,{"$f":"'FR-16(7)(v)-14 TOTAL CLASS'!M566","v":131093},{"$f":"'FR-16(7)(v)-3 PROD Demand'!M566+'FR-16(7)(v)-7 TRANS Demand'!M566+'FR-16(7)(v)-11 DIST Demand'!M566","v":131093},{"$f":"'FR-16(7)(v)-4 PROD Energy'!M566+'FR-16(7)(v)-8 TRANS Energy'!M566+'FR-16(7)(v)-12 DIST Energy'!M566","v":0},{"$f":"'FR-16(7)(v)-5 PROD Cust'!M566+'FR-16(7)(v)-9 TRANS Cust'!M566+'FR-16(7)(v)-13 DIST Cust'!M566","v":0},{"$f":"SUM(G566:I566)","v":131093},{"$f":"F566-J566","v":0}]
[7,null,{"$f":"'FR-16(7)(v)-1 Functional'!C567","v":"  TOTAL TRANSMISSION DEP. EXP."},null,null,{"$f":"SUM(F566:F566)","v":131093},131093,0,0,131093,0]
[8]
[9,"DISTRIBUTION DEPRECIATION"]
[10,null,{"$f":"'FR-16(7)(v)-1 Functional'!C570","v":"DISTRIBUTION DEPRECIATION"},{"$f":"'FR-16(7)(v)-1 Functional'!D570","v":"D249"},null,{"$f":"'FR-16(7)(v)-14 TOTAL CLASS'!M570","v":975866},{"$f":"'FR-16(7)(v)-3 PROD Demand'!M570+'FR-16(7)(v)-7 TRANS Demand'!M570+'FR-16(7)(v)-11 DIST Demand'!M570","v":974639},{"$f":"'FR-16(7)(v)-4 PROD Energy'!M570+'FR-16(7)(v)-8 TRANS Energy'!M570+'FR-16(7)(v)-12 DIST Energy'!M570","v":0},{"$f":"'FR-16(7)(v)-5 PROD Cust'!M570+'FR-16(7)(v)-9 TRANS Cust'!M570+'FR-16(7)(v)-13 DIST Cust'!M570","v":1227},{"$f":"SUM(G570:I570)","v":975866},{"$f":"F570-J570","v":0}]
[11,null,{"$f":"'FR-16(7)(v)-1 Functional'!C571","v":"  TOTAL DIST. DEPREC EXP."},null,null,{"$f":"SUM(F570:F570)","v":975866},974639,0,1227,975866,0]
[12,null,null,null,null," "]
[13,"GENERAL DEPRECIATION"]
[14,null,{"$f":"'FR-16(7)(v)-1 Functional'!C574","v":"GENERAL DEPRECIATION"},{"$f":"'FR-16(7)(v)-1 Functional'!D574","v":"G229"},null,{"$f":"'FR-16(7)(v)-14 TOTAL CLASS'!M574","v":453151},{"$f":"'FR-16(7)(v)-3 PROD Demand'!M574+'FR-16(7)(v)-7 TRANS Demand'!M574+'FR-16(7)(v)-11 DIST Demand'!M574","v":240896},{"$f":"'FR-16(7)(v)-4 PROD Energy'!M574+'FR-16(7)(v)-8 TRANS Energy'!M574+'FR-16(7)(v)-12 DIST Energy'!M574","v":212515},{"$f":"'FR-16(7)(v)-5 PROD Cust'!M574+'FR-16(7)(v)-9 TRANS Cust'!M574+'FR-16(7)(v)-13 DIST Cust'!M574","v":-260},{"$f":"SUM(G574:I574)","v":453151},{"$f":"F574-J574","v":0}]
[15,null,{"$f":"'FR-16(7)(v)-1 Functional'!C575","v":"  TOTAL GENERAL DEPREC EXP."},null,null,{"$f":"SUM(F574:F574)","v":453151},240896,212515,-260,453151,0]
[16]
[17,"COMMON AND OTHER DEPRECIATION"]
[18,null,{"$f":"'FR-16(7)(v)-1 Functional'!C578","v":"COMMON DEPRECIATION"},{"$f":"'FR-16(7)(v)-1 Functional'!D578","v":"C229"},null,{"$f":"'FR-16(7)(v)-14 TOTAL CLASS'!M578","v":3066},{"$f":"'FR-16(7)(v)-3 PROD Demand'!M578+'FR-16(7)(v)-7 TRANS Demand'!M578+'FR-16(7)(v)-11 DIST Demand'!M578","v":1626},{"$f":"'FR-16(7)(v)-4 PROD Energy'!M578+'FR-16(7)(v)-8 TRANS Energy'!M578+'FR-16(7)(v)-12 DIST Energy'!M578","v":1442},{"$f":"'FR-16(7)(v)-5 PROD Cust'!M578+'FR-16(7)(v)-9 TRANS Cust'!M578+'FR-16(7)(v)-13 DIST Cust'!M578","v":-2},{"$f":"SUM(G578:I578)","v":3066},{"$f":"F578-J578","v":0}]
[19,null,{"$f":"'FR-16(7)(v)-1 Functional'!C579","v":"  TOTAL COM & OTHER DEPREC EXP."},null,null,{"$f":"SUM(F578:F578)","v":3066},1626,1442,-2,3066,0]
[20]
[21]
[22,"TOTAL DEPRECIATION EXPENSE",null,null," ",{"$f":"F579+F575+F571+F567+F563","v":4911695},4696773,213957,965,4911695,0]
[]
[{"$f":"co_name","v":"DUKE ENERGY KENTUCKY, INC."},null,null,null,null,null,null,null,null,{"$f":"J1","v":"FR-16(7)(v)-21"}]
[{"$f":"$A$2","v":"DT PRIMARY CLASSIFIED - ELECTRIC COST OF SERVICE"},null,null,null,null,null,null,null,null,{"$f":"J2","v":"WITNESS RESPONSIBLE:"}]
[{"$f":"case_name","v":"CASE NO: 2019-00271"},null,null,null,null,null,null,null,null,{"$f":"Witness","v":"JAMES E. ZIOLKOWSKI"}]
[{"$f":"data_filing","v":"DATA: 12 MONTHS ACTUAL  & 0 MONTHS ESTIMATED"},null,null,null,null,null,null,null,null,{"$f":"\"PAGE \"&Pages2-4&\" OF \"&Pages2","v":"PAGE 11 OF 15"}]
[{"$f":"type","v":"TYPE OF FILING: \"X\" ORIGINAL   UPDATED    REVISED  "}]
[]
[]
["LINE",null,null,null,null,"TOTAL","CLASSIFIED",null,null,"TOTAL","ALL"]
["NO.","OTHER TAXES & MISC EXPENSES",null,"ALLO",null,{"$f":"$F$9","v":"DT PRIMARY"},{"$f":"G9","v":"DEMAND"},"ENERGY","CUSTOMER","AT ISSUE","OTHER"]
[null,null,"Schedule 8",null,null,null,3,4,5]
[1,"TAXES OTHER THAN INC & REV"]
[2," REAL ESTATE & PROPERTY TAX"]
[3,null,{"$f":"'FR-16(7)(v)-1 Functional'!C596","v":"REAL ESTATE & PROPERTY TAX"},{"$f":"'FR-16(7)(v)-1 Functional'!D596","v":"NP29"},null,{"$f":"'FR-16(7)(v)-14 TOTAL CLASS'!M596","v":1121653},{"$f":"'FR-16(7)(v)-3 PROD Demand'!M596+'FR-16(7)(v)-7 TRANS Demand'!M596+'FR-16(7)(v)-11 DIST Demand'!M596","v":1100017},{"$f":"'FR-16(7)(v)-4 PROD Energy'!M596+'FR-16(7)(v)-8 TRANS Energy'!M596+'FR-16(7)(v)-12 DIST Energy'!M596","v":21218},{"$f":"'FR-16(7)(v)-5 PROD Cust'!M596+'FR-16(7)(v)-9 TRANS Cust'!M596+'FR-16(7)(v)-13 DIST Cust'!M596","v":418},{"$f":"SUM(G596:I596)","v":1121653},{"$f":"F596-J596","v":0}]
[4,null,{"$f":"'FR-16(7)(v)-1 Functional'!C597","v":"ANNUALIZE PROPERTY TAX"},{"$f":"'FR-16(7)(v)-1 Functional'!D597","v":"NP29"}," ",{"$f":"'FR-16(7)(v)-14 TOTAL CLASS'!M597","v":0},{"$f":"'FR-16(7)(v)-3 PROD Demand'!M597+'FR-16(7)(v)-7 TRANS Demand'!M597+'FR-16(7)(v)-11 DIST Demand'!M597","v":0},{"$f":"'FR-16(7)(v)-4 PROD Energy'!M597+'FR-16(7)(v)-8 TRANS Energy'!M597+'FR-16(7)(v)-12 DIST Energy'!M597","v":0},{"$f":"'FR-16(7)(v)-5 PROD Cust'!M597+'FR-16(7)(v)-9 TRANS Cust'!M597+'FR-16(7)(v)-13 DIST Cust'!M597","v":0},{"$f":"SUM(G597:I597)","v":0},{"$f":"F597-J597","v":0}]
[5,null,{"$f":"'FR-16(7)(v)-1 Functional'!C598","v":"  TOTAL REAL ESTATE & PROPERTY TAX"},null,null,{"$f":"SUM(F596:F597)","v":1121653},1100017,21218,418,1121653,0]
[6]
[7," MISCELLANEOUS TAXES"]
[8,null,{"$f":"'FR-16(7)(v)-1 Functional'!C601","v":"PAYROLL "},{"$f":"'FR-16(7)(v)-1 Functional'!D601","v":"A315"},null,{"$f":"'FR-16(7)(v)-14 TOTAL CLASS'!M601","v":105223},{"$f":"'FR-16(7)(v)-3 PROD Demand'!M601+'FR-16(7)(v)-7 TRANS Demand'!M601+'FR-16(7)(v)-11 DIST Demand'!M601","v":30866},{"$f":"'FR-16(7)(v)-4 PROD Energy'!M601+'FR-16(7)(v)-8 TRANS Energy'!M601+'FR-16(7)(v)-12 DIST Energy'!M601","v":74455},{"$f":"'FR-16(7)(v)-5 PROD Cust'!M601+'FR-16(7)(v)-9 TRANS Cust'!M601+'FR-16(7)(v)-13 DIST Cust'!M601","v":-98},{"$f":"SUM(G601:I601)","v":105223},{"$f":"F601-J601","v":0}]
[9,null,{"$f":"'FR-16(7)(v)-1 Functional'!C602","v":"ELIMINATE DSM "},{"$f":"'FR-16(7)(v)-1 Functional'!D602","v":"A315"},null,{"$f":"'FR-16(7)(v)-14 TOTAL CLASS'!M602","v":-2071},{"$f":"'FR-16(7)(v)-3 PROD Demand'!M602+'FR-16(7)(v)-7 TRANS Demand'!M602+'FR-16(7)(v)-11 DIST Demand'!M602","v":-608},{"$f":"'FR-16(7)(v)-4 PROD Energy'!M602+'FR-16(7)(v)-8 TRANS Energy'!M602+'FR-16(7)(v)-12 DIST Energy'!M602","v":-1465},{"$f":"'FR-16(7)(v)-5 PROD Cust'!M602+'FR-16(7)(v)-9 TRANS Cust'!M602+'FR-16(7)(v)-13 DIST Cust'!M602","v":2},{"$f":"SUM(G602:I602)","v":-2071},{"$f":"F602-J602","v":0}]
[10,null,{"$f":"'FR-16(7)(v)-1 Functional'!C603","v":"FRANCHISE & LICENSE"},{"$f":"'FR-16(7)(v)-1 Functional'!D603","v":"A315"},null,{"$f":"'FR-16(7)(v)-14 TOTAL CLASS'!M603","v":0},{"$f":"'FR-16(7)(v)-3 PROD Demand'!M603+'FR-16(7)(v)-7 TRANS Demand'!M603+'FR-16(7)(v)-11 DIST Demand'!M603","v":0},{"$f":"'FR-16(7)(v)-4 PROD Energy'!M603+'FR-16(7)(v)-8 TRANS Energy'!M603+'FR-16(7)(v)-12 DIST Energy'!M603","v":0},{"$f":"'FR-16(7)(v)-5 PROD Cust'!M603+'FR-16(7)(v)-9 TRANS Cust'!M603+'FR-16(7)(v)-13 DIST Cust'!M603","v":0},{"$f":"SUM(G603:I603)","v":0},{"$f":"F603-J603","v":0}]
[11,null,{"$f":"'FR-16(7)(v)-1 Functional'!C604","v":"ELIMINATE ESM"},{"$f":"'FR-16(7)(v)-1 Functional'!D604","v":"A315"},null,{"$f":"'FR-16(7)(v)-14 TOTAL CLASS'!M604","v":-55974},{"$f":"'FR-16(7)(v)-3 PROD Demand'!M604+'FR-16(7)(v)-7 TRANS Demand'!M604+'FR-16(7)(v)-11 DIST Demand'!M604","v":-16420},{"$f":"'FR-16(7)(v)-4 PROD Energy'!M604+'FR-16(7)(v)-8 TRANS Energy'!M604+'FR-16(7)(v)-12 DIST Energy'!M604","v":-39607},{"$f":"'FR-16(7)(v)-5 PROD Cust'!M604+'FR-16(7)(v)-9 TRANS Cust'!M604+'FR-16(7)(v)-13 DIST Cust'!M604","v":53},{"$f":"SUM(G604:I604)","v":-55974},{"$f":"F604-J604","v":0}]
[12,null,{"$f":"'FR-16(7)(v)-1 Functional'!C605","v":"  TOTAL MISCELLANEOUS TAXES"},null,null,{"$f":"SUM(F601:F604)","v":47178},13838,33383,-43,47178,0]
[13]
[14," MISCELLANEOUS EXPENSES"]
[15,null,{"$f":"'FR-16(7)(v)-1 Functional'!C608","v":"PSC MAINT. EXP ON INCREASE"},{"$f":"'FR-16(7)(v)-1 Functional'!D608","v":"K902"},null,{"$f":"'FR-16(7)(v)-14 TOTAL CLASS'!M608","v":8427},{"$f":"'FR-16(7)(v)-3 PROD Demand'!M608+'FR-16(7)(v)-7 TRANS Demand'!M608+'FR-16(7)(v)-11 DIST Demand'!M608","v":4168},{"$f":"'FR-16(7)(v)-4 PROD Energy'!M608+'FR-16(7)(v)-8 TRANS Energy'!M608+'FR-16(7)(v)-12 DIST Energy'!M608","v":2900},{"$f":"'FR-16(7)(v)-5 PROD Cust'!M608+'FR-16(7)(v)-9 TRANS Cust'!M608+'FR-16(7)(v)-13 DIST Cust'!M608","v":1359},{"$f":"SUM(G608:I608)","v":8427},{"$f":"F608-J608","v":0}]
[16,null,{"$f":"'FR-16(7)(v)-1 Functional'!C609","v":"RESERVED FOR FUTURE USE"},{"$f":"'FR-16(7)(v)-1 Functional'!D609","v":"K902"},null,{"$f":"'FR-16(7)(v)-14 TOTAL CLASS'!M609","v":0},{"$f":"'FR-16(7)(v)-3 PROD Demand'!M609+'FR-16(7)(v)-7 TRANS Demand'!M609+'FR-16(7)(v)-11 DIST Demand'!M609","v":0},{"$f":"'FR-16(7)(v)-4 PROD Energy'!M609+'FR-16(7)(v)-8 TRANS Energy'!M609+'FR-16(7)(v)-12 DIST Energy'!M609","v":0},{"$f":"'FR-16(7)(v)-5 PROD Cust'!M609+'FR-16(7)(v)-9 TRANS Cust'!M609+'FR-16(7)(v)-13 DIST Cust'!M609","v":0},{"$f":"SUM(G609:I609)","v":0},{"$f":"F609-J609","v":0}]
[17,null,{"$f":"'FR-16(7)(v)-1 Functional'!C610","v":"  TOTAL MISCELLANEOUS EXPENSES"},null,null,{"$f":"SUM(F608:F609)","v":8427},4168,2900,1359,8427,0]
[18]
[19,"TOTAL OTHER TAX & MISC EXPENSE",null,null," ",{"$f":"F605+F598+F610","v":1177258},1118023,57501,1734,1177258,0]
[20]
[21,"PRELIMINARY SUMMARY"]
[22,null,{"$f":"'FR-16(7)(v)-1 Functional'!C615","v":"TOTAL O&M EXPENSE"},null,null,{"$f":"F549","v":20687129},3696925,16992283,-2079,20687129,0]
[23,null,{"$f":"'FR-16(7)(v)-1 Functional'!C616","v":"TOTAL DEPRECIATION EXPENSE"},null,null,{"$f":"F582","v":4911695},4696773,213957,965,4911695,0]
[24,null,{"$f":"'FR-16(7)(v)-1 Functional'!C617","v":"TOTAL OTHER TAX & MISC EXPENSE"},null,null,{"$f":"F612","v":1177258},1118023,57501,1734,1177258,0]
[25,null,{"$f":"'FR-16(7)(v)-1 Functional'!C618","v":"  TOTAL OPER EXP EXCL INCOME & REV TAX"},null,null,{"$f":"SUM(F615:F617)","v":26776082},9511721,17263741,620,26776082,0]
[]
[{"$f":"co_name","v":"DUKE ENERGY KENTUCKY, INC."},null,null,null,null,null,null,null,null,{"$f":"J1","v":"FR-16(7)(v)-21"}]
[{"$f":"$A$2","v":"DT PRIMARY CLASSIFIED - ELECTRIC COST OF SERVICE"},null,null,null,null,null,null,null,null,{"$f":"J2","v":"WITNESS RESPONSIBLE:"}]
[{"$f":"case_name","v":"CASE NO: 2019-00271"},null,null,null,null,null,null,null,null,{"$f":"Witness","v":"JAMES E. ZIOLKOWSKI"}]
[{"$f":"data_filing","v":"DATA: 12 MONTHS ACTUAL  & 0 MONTHS ESTIMATED"},null,null,null,null,null,null,null,null,{"$f":"\"PAGE \"&Pages2-3&\" OF \"&Pages2","v":"PAGE 12 OF 15"}]
[{"$f":"type","v":"TYPE OF FILING: \"X\" ORIGINAL   UPDATED    REVISED  "}]
[]
[]
["LINE",null,null,null,null,"TOTAL","CLASSIFIED",null,null,"TOTAL","ALL"]
["NO.","FEDERAL INCOME TAX BASED ON RETURN",null,"ALLO",null,{"$f":"$F$9","v":"DT PRIMARY"},{"$f":"$G$9","v":"DEMAND"},{"$f":"$H$9","v":"ENERGY"},{"$f":"$I$9","v":"CUSTOMER"},"AT ISSUE","OTHER"]
[null,null,"Schedule 9",null,null,null,{"$f":"G10","v":3},{"$f":"H10","v":4},{"$f":"I10","v":5}]
[1,"FEDERAL INCOME TAX DEDUCTIONS"]
[2," AUTOMATIC INTEREST CALCULATION",null,null,null," "]
[3,null,{"$f":"'FR-16(7)(v)-1 Functional'!C632","v":"AUTO PROC INTEREST DED"},{"$f":"'FR-16(7)(v)-1 Functional'!D632","v":"RB99"},null,{"$f":"'FR-16(7)(v)-14 TOTAL CLASS'!M632","v":1543098},{"$f":"'FR-16(7)(v)-3 PROD Demand'!M632+'FR-16(7)(v)-7 TRANS Demand'!M632+'FR-16(7)(v)-11 DIST Demand'!M632","v":1470395},{"$f":"'FR-16(7)(v)-4 PROD Energy'!M632+'FR-16(7)(v)-8 TRANS Energy'!M632+'FR-16(7)(v)-12 DIST Energy'!M632","v":72076},{"$f":"'FR-16(7)(v)-5 PROD Cust'!M632+'FR-16(7)(v)-9 TRANS Cust'!M632+'FR-16(7)(v)-13 DIST Cust'!M632","v":627},{"$f":"SUM(G632:I632)","v":1543098},{"$f":"F632-J632","v":0}]
[4,null,{"$f":"'FR-16(7)(v)-1 Functional'!C633","v":"  TOTAL INTEREST EXPENSE"},null,null,{"$f":"F632","v":1543098},1470395,72076,627,1543098,0]
[5]
[6," OTHER DEDUCTIONS"]
[7,null,{"$f":"'FR-16(7)(v)-1 Functional'!C636","v":"DEPREC EXCESS TAX-BOOK"},{"$f":"'FR-16(7)(v)-1 Functional'!D636","v":"DE49"},null,{"$f":"'FR-16(7)(v)-14 TOTAL CLASS'!M636","v":-1164962},{"$f":"'FR-16(7)(v)-3 PROD Demand'!M636+'FR-16(7)(v)-7 TRANS Demand'!M636+'FR-16(7)(v)-11 DIST Demand'!M636","v":-1113992},{"$f":"'FR-16(7)(v)-4 PROD Energy'!M636+'FR-16(7)(v)-8 TRANS Energy'!M636+'FR-16(7)(v)-12 DIST Energy'!M636","v":-50743},{"$f":"'FR-16(7)(v)-5 PROD Cust'!M636+'FR-16(7)(v)-9 TRANS Cust'!M636+'FR-16(7)(v)-13 DIST Cust'!M636","v":-227},{"$f":"SUM(G636:I636)","v":-1164962},{"$f":"F636-J636","v":0}]
[8,null,{"$f":"'FR-16(7)(v)-1 Functional'!C637","v":"PERMANENT DIFFERENCES"},{"$f":"'FR-16(7)(v)-1 Functional'!D637","v":"A357"},null,{"$f":"'FR-16(7)(v)-14 TOTAL CLASS'!M637","v":-23547},{"$f":"'FR-16(7)(v)-3 PROD Demand'!M637+'FR-16(7)(v)-7 TRANS Demand'!M637+'FR-16(7)(v)-11 DIST Demand'!M637","v":-6907},{"$f":"'FR-16(7)(v)-4 PROD Energy'!M637+'FR-16(7)(v)-8 TRANS Energy'!M637+'FR-16(7)(v)-12 DIST Energy'!M637","v":-16662},{"$f":"'FR-16(7)(v)-5 PROD Cust'!M637+'FR-16(7)(v)-9 TRANS Cust'!M637+'FR-16(7)(v)-13 DIST Cust'!M637","v":22},{"$f":"SUM(G637:I637)","v":-23547},{"$f":"F637-J637","v":0}]
[9,null,{"$f":"'FR-16(7)(v)-1 Functional'!C638","v":"TEMPORARY DIFFERENCES"},{"$f":"'FR-16(7)(v)-1 Functional'!D638","v":"DE49"},null,{"$f":"'FR-16(7)(v)-14 TOTAL CLASS'!M638","v":7108426},{"$f":"'FR-16(7)(v)-3 PROD Demand'!M638+'FR-16(7)(v)-7 TRANS Demand'!M638+'FR-16(7)(v)-11 DIST Demand'!M638","v":6797411},{"$f":"'FR-16(7)(v)-4 PROD Energy'!M638+'FR-16(7)(v)-8 TRANS Energy'!M638+'FR-16(7)(v)-12 DIST Energy'!M638","v":309629},{"$f":"'FR-16(7)(v)-5 PROD Cust'!M638+'FR-16(7)(v)-9 TRANS Cust'!M638+'FR-16(7)(v)-13 DIST Cust'!M638","v":1386},{"$f":"SUM(G638:I638)","v":7108426},{"$f":"F638-J638","v":0}]
[10,null,{"$f":"'FR-16(7)(v)-1 Functional'!C639","v":"  TOTAL OTHER DEDUCTIONS"},null,null,{"$f":"SUM(F636:F638)","v":5919917},5676512,242224,1181,5919917,0]
[11]
[12,"NET DEDUCTIONS AND ADDITIONS",null,null,null,{"$f":"F639+F633","v":7463015},7146907,314300,1808,7463015,0]
[13]
[14," FED DEFERRED INCOME TAX (410 & 411)"]
[15,null,{"$f":"'FR-16(7)(v)-1 Functional'!C644","v":"DEFERRED INCOME TAXES - NET"},{"$f":"'FR-16(7)(v)-1 Functional'!D644","v":"OM39"},null,{"$f":"'FR-16(7)(v)-14 TOTAL CLASS'!M644","v":1377002},{"$f":"'FR-16(7)(v)-3 PROD Demand'!M644+'FR-16(7)(v)-7 TRANS Demand'!M644+'FR-16(7)(v)-11 DIST Demand'!M644","v":246087},{"$f":"'FR-16(7)(v)-4 PROD Energy'!M644+'FR-16(7)(v)-8 TRANS Energy'!M644+'FR-16(7)(v)-12 DIST Energy'!M644","v":1131054},{"$f":"'FR-16(7)(v)-5 PROD Cust'!M644+'FR-16(7)(v)-9 TRANS Cust'!M644+'FR-16(7)(v)-13 DIST Cust'!M644","v":-139},{"$f":"SUM(G644:I644)","v":1377002},{"$f":"F644-J644","v":0}]
[16,null,{"$f":"'FR-16(7)(v)-1 Functional'!C645","v":"AMORT OF DEFERRED MERGER COST"},{"$f":"'FR-16(7)(v)-1 Functional'!D645","v":"A357"},null,{"$f":"'FR-16(7)(v)-14 TOTAL CLASS'!M645","v":0},{"$f":"'FR-16(7)(v)-3 PROD Demand'!M645+'FR-16(7)(v)-7 TRANS Demand'!M645+'FR-16(7)(v)-11 DIST Demand'!M645","v":0},{"$f":"'FR-16(7)(v)-4 PROD Energy'!M645+'FR-16(7)(v)-8 TRANS Energy'!M645+'FR-16(7)(v)-12 DIST Energy'!M645","v":0},{"$f":"'FR-16(7)(v)-5 PROD Cust'!M645+'FR-16(7)(v)-9 TRANS Cust'!M645+'FR-16(7)(v)-13 DIST Cust'!M645","v":0},{"$f":"SUM(G645:I645)","v":0},{"$f":"F645-J645","v":0}]
[17,null,{"$f":"'FR-16(7)(v)-1 Functional'!C646","v":"DIT ADJUSTMENT - S/L DEPRECIATION"},{"$f":"'FR-16(7)(v)-1 Functional'!D646","v":"DE49"},null,{"$f":"'FR-16(7)(v)-14 TOTAL CLASS'!M646","v":0},{"$f":"'FR-16(7)(v)-3 PROD Demand'!M646+'FR-16(7)(v)-7 TRANS Demand'!M646+'FR-16(7)(v)-11 DIST Demand'!M646","v":0},{"$f":"'FR-16(7)(v)-4 PROD Energy'!M646+'FR-16(7)(v)-8 TRANS Energy'!M646+'FR-16(7)(v)-12 DIST Energy'!M646","v":0},{"$f":"'FR-16(7)(v)-5 PROD Cust'!M646+'FR-16(7)(v)-9 TRANS Cust'!M646+'FR-16(7)(v)-13 DIST Cust'!M646","v":0},{"$f":"SUM(G646:I646)","v":0},{"$f":"F646-J646","v":0}]
[18,null,{"$f":"'FR-16(7)(v)-1 Functional'!C647","v":"DIT ADJUSTMENT - ARAM"},{"$f":"'FR-16(7)(v)-1 Functional'!D647","v":"K201"},null,{"$f":"'FR-16(7)(v)-14 TOTAL CLASS'!M647","v":-9592},{"$f":"'FR-16(7)(v)-3 PROD Demand'!M647+'FR-16(7)(v)-7 TRANS Demand'!M647+'FR-16(7)(v)-11 DIST Demand'!M647","v":-9592},{"$f":"'FR-16(7)(v)-4 PROD Energy'!M647+'FR-16(7)(v)-8 TRANS Energy'!M647+'FR-16(7)(v)-12 DIST Energy'!M647","v":0},{"$f":"'FR-16(7)(v)-5 PROD Cust'!M647+'FR-16(7)(v)-9 TRANS Cust'!M647+'FR-16(7)(v)-13 DIST Cust'!M647","v":0},{"$f":"SUM(G647:I647)","v":-9592},{"$f":"F647-J647","v":0}]
[19,null,{"$f":"'FR-16(7)(v)-1 Functional'!C648","v":"DIT ADJUSTMENT - AMORT OF EXCESS DEF TAXES"},{"$f":"'FR-16(7)(v)-1 Functional'!D648","v":"A357"},null,{"$f":"'FR-16(7)(v)-14 TOTAL CLASS'!M648","v":-206478},{"$f":"'FR-16(7)(v)-3 PROD Demand'!M648+'FR-16(7)(v)-7 TRANS Demand'!M648+'FR-16(7)(v)-11 DIST Demand'!M648","v":-60562},{"$f":"'FR-16(7)(v)-4 PROD Energy'!M648+'FR-16(7)(v)-8 TRANS Energy'!M648+'FR-16(7)(v)-12 DIST Energy'!M648","v":-146109},{"$f":"'FR-16(7)(v)-5 PROD Cust'!M648+'FR-16(7)(v)-9 TRANS Cust'!M648+'FR-16(7)(v)-13 DIST Cust'!M648","v":193},{"$f":"SUM(G648:I648)","v":-206478},{"$f":"F648-J648","v":0}]
[20,null,{"$f":"'FR-16(7)(v)-1 Functional'!C649","v":"  TOTAL FED DEF IT (410 & 411)"},null,null,{"$f":"SUM(F644:F648)","v":1160932},175933,984945,54,1160932,0]
[21]
[22," AMORT INV TAX CREDIT"]
[23,null,{"$f":"'FR-16(7)(v)-1 Functional'!C652","v":"AMORTIZE ITC"},{"$f":"'FR-16(7)(v)-1 Functional'!D652","v":"NP29"},null,{"$f":"'FR-16(7)(v)-14 TOTAL CLASS'!M652","v":35},{"$f":"'FR-16(7)(v)-3 PROD Demand'!M652+'FR-16(7)(v)-7 TRANS Demand'!M652+'FR-16(7)(v)-11 DIST Demand'!M652","v":34},{"$f":"'FR-16(7)(v)-4 PROD Energy'!M652+'FR-16(7)(v)-8 TRANS Energy'!M652+'FR-16(7)(v)-12 DIST Energy'!M652","v":1},{"$f":"'FR-16(7)(v)-5 PROD Cust'!M652+'FR-16(7)(v)-9 TRANS Cust'!M652+'FR-16(7)(v)-13 DIST Cust'!M652","v":0},{"$f":"SUM(G652:I652)","v":35},{"$f":"F652-J652","v":0}]
[24,null,{"$f":"'FR-16(7)(v)-1 Functional'!C653","v":"  TOTAL AMORTIZED ITC"},null,null,{"$f":"SUM(F652:F652)","v":35},34,1,0,35,0]
[25]
[26," OTHER FEDERAL TAX CREDITS"]
[27,null,{"$f":"'FR-16(7)(v)-1 Functional'!C656","v":"FUEL TAX CREDIT"},{"$f":"'FR-16(7)(v)-1 Functional'!D656","v":"K301"},null,{"$f":"'FR-16(7)(v)-14 TOTAL CLASS'!M656","v":0},{"$f":"'FR-16(7)(v)-3 PROD Demand'!M656+'FR-16(7)(v)-7 TRANS Demand'!M656+'FR-16(7)(v)-11 DIST Demand'!M656","v":0},{"$f":"'FR-16(7)(v)-4 PROD Energy'!M656+'FR-16(7)(v)-8 TRANS Energy'!M656+'FR-16(7)(v)-12 DIST Energy'!M656","v":0},{"$f":"'FR-16(7)(v)-5 PROD Cust'!M656+'FR-16(7)(v)-9 TRANS Cust'!M656+'FR-16(7)(v)-13 DIST Cust'!M656","v":0},{"$f":"SUM(G656:I656)","v":0},{"$f":"F656-J656","v":0}]
[28,null,{"$f":"'FR-16(7)(v)-1 Functional'!C657","v":"R&D CREDIT - SECTION 41"},{"$f":"'FR-16(7)(v)-1 Functional'!D657","v":"A315"},null,{"$f":"'FR-16(7)(v)-14 TOTAL CLASS'!M657","v":0},{"$f":"'FR-16(7)(v)-3 PROD Demand'!M657+'FR-16(7)(v)-7 TRANS Demand'!M657+'FR-16(7)(v)-11 DIST Demand'!M657","v":0},{"$f":"'FR-16(7)(v)-4 PROD Energy'!M657+'FR-16(7)(v)-8 TRANS Energy'!M657+'FR-16(7)(v)-12 DIST Energy'!M657","v":0},{"$f":"'FR-16(7)(v)-5 PROD Cust'!M657+'FR-16(7)(v)-9 TRANS Cust'!M657+'FR-16(7)(v)-13 DIST Cust'!M657","v":0},{"$f":"SUM(G657:I657)","v":0},{"$f":"F657-J657","v":0}]
[29,null,{"$f":"'FR-16(7)(v)-1 Functional'!C658","v":"  TOTAL OTHER FEDERAL TAX CREDITS"},null,null,{"$f":"SUM(F656:F657)","v":0},0,0,0,0,0]
[30]
[31,"PRELIMINARY SUMMARY"]
[32,null,{"$f":"'FR-16(7)(v)-1 Functional'!C661","v":"TOTAL FED DEF IT (410 & 411)"},null,null,{"$f":"F649","v":1160932},175933,984945,54,1160932,0]
[33,null,{"$f":"'FR-16(7)(v)-1 Functional'!C662","v":"TOTAL AMORTIZED ITC & OTHER FEDERAL TAX CREDITS"},null,null,{"$f":"-F653-F658","v":-35},-34,-1,0,-35,0]
[34,null,{"$f":"'FR-16(7)(v)-1 Functional'!C663","v":"  TOTAL FEDERAL TAX ADJUSTMENTS"},null,null,{"$f":"SUM(F661:F662)","v":1160897},175899,984944,54,1160897,0]
[35]
[36,"FEDERAL INCOME TAX COMPUTATION"]
[37,null,"RETURN ON RATE BASE",null,null,{"$f":"F433","v":5220165},{"$f":"G433","v":4974218},{"$f":"H433","v":243826},{"$f":"I433","v":2121},{"$f":"J433","v":5220165},{"$f":"F666-J666","v":0}]
[38,null,{"$f":"'FR-16(7)(v)-1 Functional'!C667","v":"NET DEDUCTIONS AND ADDITIONS"},null,null,{"$f":"-F641","v":-7463015},{"$f":"-G641","v":-7146907},{"$f":"-H641","v":-314300},{"$f":"-I641","v":-1808},{"$f":"-J641","v":-7463015},{"$f":"F667-J667","v":0}]
[39,null,{"$f":"'FR-16(7)(v)-1 Functional'!C668","v":"TOTAL FEDERAL TAX ADJUSTMENTS"},null,null,{"$f":"F663","v":1160897},{"$f":"G663","v":175899},{"$f":"H663","v":984944},{"$f":"I663","v":54},{"$f":"J663","v":1160897},{"$f":"F668-J668","v":0}]
[40,null,"TOTAL STATE PROV DEF IT (410 & 411)",null,null,{"$f":"F707","v":204895},{"$f":"G707","v":60097},{"$f":"H707","v":144989},{"$f":"I707","v":-191},{"$f":"J707","v":204895},{"$f":"F669-J669","v":0}]
[41,null,"RESERVED",null,null,{"$f":"F24","v":0},{"$f":"G24","v":0},{"$f":"H24","v":0},{"$f":"I24","v":0},{"$f":"J24","v":0},{"$f":"F670-J670","v":0}]
[42,null,{"$f":"'FR-16(7)(v)-1 Functional'!C671","v":"  BASE FOR FIT COMPUATION"},null,null,{"$f":"SUM(F666:F670)","v":-877058},-1936693,1059459,176,-877058,0]
[43]
[44,null,{"$f":"'FR-16(7)(v)-1 Functional'!C673","v":"FIT FACTOR K190/(1-K190)"},null,null,{"$f":"ROUND(FIT/(1-FIT),9)","v":0.26582278500000001},{"$f":"ROUND(FIT/(1-FIT),9)","v":0.26582278500000001},{"$f":"ROUND(FIT/(1-FIT),9)","v":0.26582278500000001},{"$f":"ROUND(FIT/(1-FIT),9)","v":0.26582278500000001},null,{"$f":"ROUND(FIT/(1-FIT),9)","v":0.26582278500000001}]
[45,null,{"$f":"'FR-16(7)(v)-1 Functional'!C674","v":"PRELIM FED INCOME TAX"},null,null,{"$f":"'FR-16(7)(v)-14 TOTAL CLASS'!M674","v":-233143},{"$f":"F674-SUM(H674:I674)","v":-514818},{"$f":"'FR-16(7)(v)-4 PROD Energy'!M674+'FR-16(7)(v)-8 TRANS Energy'!M674+'FR-16(7)(v)-12 DIST Energy'!M674","v":281628},{"$f":"'FR-16(7)(v)-5 PROD Cust'!M674+'FR-16(7)(v)-9 TRANS Cust'!M674+'FR-16(7)(v)-13 DIST Cust'!M674","v":47},{"$f":"SUM(G674:I674)","v":-233143},{"$f":"F674-J674","v":0}]
[46,null,{"$f":"'FR-16(7)(v)-1 Functional'!C675","v":"TOTAL FEDERAL TAX ADJUSTMENTS"},null,null,{"$f":"F663","v":1160897},{"$f":"G663","v":175899},{"$f":"H663","v":984944},{"$f":"I663","v":54},{"$f":"J663","v":1160897},{"$f":"F675-J675","v":0}]
[47,null,{"$f":"'FR-16(7)(v)-1 Functional'!C676","v":"  NET FED INCOME TAX ALLOWABLE"},null,null,{"$f":"SUM(F674:F675)","v":927754},-338919,1266572,101,927754,0]
[48]
[49,"INCOME TAX BASED ON RETURN"]
[50,"FEDERAL INCOME TAX PAYABLE"]
[51,null,{"$f":"'FR-16(7)(v)-1 Functional'!C680","v":"PRELIM FEDERAL INCOME TAX"},null,null,{"$f":"F674","v":-233143},-514818,281628,47,-233143,0]
[53,null,{"$f":"'FR-16(7)(v)-1 Functional'!C681","v":"  NET FED INCOME TAX PAYABLE"},null,null,{"$f":"SUM(F680:F680)","v":-233143},-514818,281628,47,-233143,0]
[]
[{"$f":"co_name","v":"DUKE ENERGY KENTUCKY, INC."},null,null,null,null,null,null,null,null,{"$f":"J1","v":"FR-16(7)(v)-21"}]
[{"$f":"$A$2","v":"DT PRIMARY CLASSIFIED - ELECTRIC COST OF SERVICE"},null,null,null,null,null,null,null,null,{"$f":"J2","v":"WITNESS RESPONSIBLE:"}]
[{"$f":"case_name","v":"CASE NO: 2019-00271"},null,null,null,null,null,null,null,null,{"$f":"Witness","v":"JAMES E. ZIOLKOWSKI"}]
[{"$f":"data_filing","v":"DATA: 12 MONTHS ACTUAL  & 0 MONTHS ESTIMATED"},null,null,null,null,null,null,null,null,{"$f":"\"PAGE \"&Pages2-2&\" OF \"&Pages2","v":"PAGE 13 OF 15"}]
[{"$f":"type","v":"TYPE OF FILING: \"X\" ORIGINAL   UPDATED    REVISED  "}]
[]
[]
["LINE",null,null,null,null,"TOTAL","CLASSIFIED",null,null,"TOTAL","ALL"]
["NO.","STATE INCOME TAX BASED ON RETURN",null,"Allo",null,"GAS",{"$f":"$G$9","v":"DEMAND"},{"$f":"$H$9","v":"ENERGY"},{"$f":"$I$9","v":"CUSTOMER"},"AT ISSUE","OTHER"]
[null,null,"Schedule 9.1",null,null,null,{"$f":"$G$10","v":3},{"$f":"$H$10","v":4},{"$f":"$I$10","v":5}]
[1,"DEDUCTIONS IN ADDITION TO Y871"]
[2,"KY TAXABLE INCOME ADJUSTMENT",null,{"$f":"'FR-16(7)(v)-1 Functional'!D694","v":"NP29"},null,{"$f":"'FR-16(7)(v)-14 TOTAL CLASS'!M694","v":703302},{"$f":"'FR-16(7)(v)-3 PROD Demand'!M694+'FR-16(7)(v)-7 TRANS Demand'!M694+'FR-16(7)(v)-11 DIST Demand'!M694","v":689736},{"$f":"'FR-16(7)(v)-4 PROD Energy'!M694+'FR-16(7)(v)-8 TRANS Energy'!M694+'FR-16(7)(v)-12 DIST Energy'!M694","v":13304},{"$f":"'FR-16(7)(v)-5 PROD Cust'!M694+'FR-16(7)(v)-9 TRANS Cust'!M694+'FR-16(7)(v)-13 DIST Cust'!M694","v":262},{"$f":"SUM(G694:I694)","v":703302},{"$f":"F694-J694","v":0}]
[3,"RESERVED FOR FUTURE USE",null,{"$f":"'FR-16(7)(v)-1 Functional'!D695","v":"NP29"},null,{"$f":"'FR-16(7)(v)-14 TOTAL CLASS'!M695","v":0},{"$f":"'FR-16(7)(v)-3 PROD Demand'!M695+'FR-16(7)(v)-7 TRANS Demand'!M695+'FR-16(7)(v)-11 DIST Demand'!M695","v":0},{"$f":"'FR-16(7)(v)-4 PROD Energy'!M695+'FR-16(7)(v)-8 TRANS Energy'!M695+'FR-16(7)(v)-12 DIST Energy'!M695","v":0},{"$f":"'FR-16(7)(v)-5 PROD Cust'!M695+'FR-16(7)(v)-9 TRANS Cust'!M695+'FR-16(7)(v)-13 DIST Cust'!M695","v":0},{"$f":"SUM(G695:I695)","v":0},{"$f":"F695-J695","v":0}]
[4,"  DEDUCTIONS IN ADD TO Y871",null,null,null,{"$f":"SUM(F694:F695)","v":703302},689736,13304,262,703302,0]
[5]
[6,"STATE INCOME TAX ADJUSTMENTS"]
[7,"STATE PROV DEF INC TAX (410 & 411)"]
[8,"OTHER DEFERRED INCOME TAXES - NET",null,{"$f":"'FR-16(7)(v)-1 Functional'!D700","v":"A357"},null,{"$f":"'FR-16(7)(v)-14 TOTAL CLASS'!M700","v":204895},{"$f":"'FR-16(7)(v)-3 PROD Demand'!M700+'FR-16(7)(v)-7 TRANS Demand'!M700+'FR-16(7)(v)-11 DIST Demand'!M700","v":60097},{"$f":"'FR-16(7)(v)-4 PROD Energy'!M700+'FR-16(7)(v)-8 TRANS Energy'!M700+'FR-16(7)(v)-12 DIST Energy'!M700","v":144989},{"$f":"'FR-16(7)(v)-5 PROD Cust'!M700+'FR-16(7)(v)-9 TRANS Cust'!M700+'FR-16(7)(v)-13 DIST Cust'!M700","v":-191},{"$f":"SUM(G700:I700)","v":204895},{"$f":"F700-J700","v":0}]
[9,"  TOT STATE PROV DEF IT (410 & 411)",null,null,null,{"$f":"SUM(F700)","v":204895},60097,144989,-191,204895,0]
[10]
[11,"OTHER SIT ADJUSTMENTS"]
[12,"CURRENT YEAR PAYABLE ADJUSTMENT",null,{"$f":"'FR-16(7)(v)-1 Functional'!D704","v":"NP29"},null,{"$f":"'FR-16(7)(v)-14 TOTAL CLASS'!M704","v":0},{"$f":"'FR-16(7)(v)-3 PROD Demand'!M704+'FR-16(7)(v)-7 TRANS Demand'!M704+'FR-16(7)(v)-11 DIST Demand'!M704","v":0},{"$f":"'FR-16(7)(v)-4 PROD Energy'!M704+'FR-16(7)(v)-8 TRANS Energy'!M704+'FR-16(7)(v)-12 DIST Energy'!M704","v":0},{"$f":"'FR-16(7)(v)-5 PROD Cust'!M704+'FR-16(7)(v)-9 TRANS Cust'!M704+'FR-16(7)(v)-13 DIST Cust'!M704","v":0},{"$f":"SUM(G704:I704)","v":0},{"$f":"F704-J704","v":0}]
[13,"  OTHER SIT ADJUSMENTS",null,null,null,{"$f":"SUM(F704)","v":0},0,0,0,0,0]
[14]
[15,"TOTAL STATE INC TAX ADJUSTMENT",null,null,null,{"$f":"F705+F701","v":204895},60097,144989,-191,204895,0]
[16]
[17,"INCOME TAX BASED ON RETURN"]
[18,"SUMMARY OF SIT CALCULATION"]
[19,"RETURN ON RATE BASE",null,null,null,{"$f":"F433","v":5220165},{"$f":"G433","v":4974218},{"$f":"H433","v":243826},{"$f":"I433","v":2121},{"$f":"J433","v":5220165},{"$f":"F711-J711","v":0}]
[20,"NET FED INCOME TAX ALLOWABLE",null,null,null,{"$f":"F676","v":927754},{"$f":"G676","v":-338919},{"$f":"H676","v":1266572},{"$f":"I676","v":101},{"$f":"J676","v":927754},0]
[21,"NET FED. DED. AND ADDITIONS",null,null,null,{"$f":"-F641","v":-7463015},{"$f":"-G641","v":-7146907},{"$f":"-H641","v":-314300},{"$f":"-I641","v":-1808},{"$f":"-J641","v":-7463015},0]
[22,"DEDUCTIONS IN ADD TO Y871",null,null,null,{"$f":"-F696","v":-703302},{"$f":"-G696","v":-689736},{"$f":"-H696","v":-13304},{"$f":"-I696","v":-262},{"$f":"-J696","v":-703302},0]
[23,"RESERVED",null,null,null,{"$f":"F24","v":0},{"$f":"G24","v":0},{"$f":"H24","v":0},{"$f":"I24","v":0},{"$f":"J24","v":0},0]
[24,"TOTAL STATE INC TAX ADJ",null,null,null,{"$f":"F707","v":204895},{"$f":"G707","v":60097},{"$f":"H707","v":144989},{"$f":"I707","v":-191},{"$f":"J707","v":204895},0]
[25,"  BASE FOR SIT COMPUTATION",null,null,null,{"$f":"SUM(F711:F716)","v":-1813503},-3141247,1327783,-39,-1813503,0]
[26]
[27,"SIT FACTOR K192/(1-K192)",null,null,null,{"$f":"ROUND(SIT/(1-SIT),8)","v":5.2282660000000002E-2},{"$f":"ROUND(SIT/(1-SIT),8)","v":5.2282660000000002E-2},{"$f":"ROUND(SIT/(1-SIT),8)","v":5.2282660000000002E-2},{"$f":"ROUND(SIT/(1-SIT),8)","v":5.2282660000000002E-2},null,{"$f":"ROUND(SIT/(1-SIT),8)","v":5.2282660000000002E-2}]
[28,"PRELIMINARY STATE INCOME TAX",null,null,null,{"$f":"ROUND(F717*F719,0)","v":-94815},{"$f":"'FR-16(7)(v)-3 PROD Demand'!M720+'FR-16(7)(v)-7 TRANS Demand'!M720+'FR-16(7)(v)-11 DIST Demand'!M720","v":-164232},{"$f":"ROUND(H717*H719,0)","v":69420},{"$f":"ROUND(I717*I719,0)","v":-2},{"$f":"SUM(G720:I720)","v":-94814},{"$f":"F720-J720","v":-1}]
[29,"TOTAL STATE INCOME TAX ADJ.",null,null,null,{"$f":"F707","v":204895},{"$f":"G707","v":60097},{"$f":"H707","v":144989},{"$f":"I707","v":-191},{"$f":"J707","v":204895},{"$f":"F721-J721","v":0}]
[30,"  NET STATE INC TAX ALLOWABLE",null,null,null,{"$f":"F721+F720","v":110080},-104135,214409,-193,110081,-1]
[31]
[32,"STATE INCOME TAX PAYABLE"]
[33,"PRELIMINARY STATE INCOME TAX",null,null,null,{"$f":"F720","v":-94815},{"$f":"G720","v":-164232},{"$f":"H720","v":69420},{"$f":"I720","v":-2},{"$f":"J720","v":-94814},{"$f":"F725-J725","v":-1}]
[34,"OTHER SIT ADJUSTMENTS",null,null,null,{"$f":"F705","v":0},{"$f":"G705","v":0},{"$f":"H705","v":0},{"$f":"I705","v":0},{"$f":"J705","v":0},{"$f":"F726-J726","v":0}]
[35,"  NET STATE INCOME TAX PAYABLE",null,null,null,{"$f":"F725+F726","v":-94815},-164232,69420,-2,-94814,-1]
[36]
[37,"COMPOSITE TAX RATE",null,null,null,{"$f":"(SIT*(1-FIT))+((1-SIT)*(1-FIT)*RevTax)+FIT","v":0.24925115},0.24925115,0.24925115,0.24925115,0.24925115,0.24925115]
[]
[{"$f":"co_name","v":"DUKE ENERGY KENTUCKY, INC."},null,null,null,null,null,null,null,null,{"$f":"J1","v":"FR-16(7)(v)-21"}]
[{"$f":"$A$2","v":"DT PRIMARY CLASSIFIED - ELECTRIC COST OF SERVICE"},null,null,null,null,null,null,null,null,{"$f":"J2","v":"WITNESS RESPONSIBLE:"}]
[{"$f":"case_name","v":"CASE NO: 2019-00271"},null,null,null,null,null,null,null,null,{"$f":"Witness","v":"JAMES E. ZIOLKOWSKI"}]
[{"$f":"data_filing","v":"DATA: 12 MONTHS ACTUAL  & 0 MONTHS ESTIMATED"},null,null,null,null,null,null,null,null,{"$f":"\"PAGE \"&Pages2-1&\" OF \"&Pages2","v":"PAGE 14 OF 15"}]
[{"$f":"type","v":"TYPE OF FILING: \"X\" ORIGINAL   UPDATED    REVISED  "}]
[]
[]
["LINE",null,null,null,null,"TOTAL","CLASSIFIED",null,null,"TOTAL","ALL"]
["NO.","COST OF SERVICE COMPUTATION",null,"ALLO",null,{"$f":"$F$9","v":"DT PRIMARY"},{"$f":"G9","v":"DEMAND"},"ENERGY","CUSTOMER","AT ISSUE","OTHER"]
[null,null,"Schedule 10",null,null,null,3,4,5]
[1,"OTHER OPERATING REVENUES"]
[2,null,{"$f":"'FR-16(7)(v)-1 Functional'!C742","v":"MISC SERVICE REVENUE"},{"$f":"'FR-16(7)(v)-1 Functional'!D742","v":"D249"},null,{"$f":"'FR-16(7)(v)-14 TOTAL CLASS'!M742","v":17899},{"$f":"'FR-16(7)(v)-3 PROD Demand'!M742+'FR-16(7)(v)-7 TRANS Demand'!M742+'FR-16(7)(v)-11 DIST Demand'!M742","v":17876},{"$f":"'FR-16(7)(v)-4 PROD Energy'!M742+'FR-16(7)(v)-8 TRANS Energy'!M742+'FR-16(7)(v)-12 DIST Energy'!M742","v":0},{"$f":"'FR-16(7)(v)-5 PROD Cust'!M742+'FR-16(7)(v)-9 TRANS Cust'!M742+'FR-16(7)(v)-13 DIST Cust'!M742","v":23},{"$f":"SUM(G742:I742)","v":17899},{"$f":"F742-J742","v":0}]
[3,null,{"$f":"'FR-16(7)(v)-1 Functional'!C743","v":"INTERDEPARTMENTAL"},{"$f":"'FR-16(7)(v)-1 Functional'!D743","v":"K902"},null,{"$f":"'FR-16(7)(v)-14 TOTAL CLASS'!M743","v":0},{"$f":"'FR-16(7)(v)-3 PROD Demand'!M743+'FR-16(7)(v)-7 TRANS Demand'!M743+'FR-16(7)(v)-11 DIST Demand'!M743","v":0},{"$f":"'FR-16(7)(v)-4 PROD Energy'!M743+'FR-16(7)(v)-8 TRANS Energy'!M743+'FR-16(7)(v)-12 DIST Energy'!M743","v":0},{"$f":"'FR-16(7)(v)-5 PROD Cust'!M743+'FR-16(7)(v)-9 TRANS Cust'!M743+'FR-16(7)(v)-13 DIST Cust'!M743","v":0},0,{"$f":"F743-J743","v":0}]
[4,null,{"$f":"'FR-16(7)(v)-1 Functional'!C744","v":"POLE & LINE ATTACHMENTS"},{"$f":"'FR-16(7)(v)-1 Functional'!D744","v":"D249"},null,{"$f":"'FR-16(7)(v)-14 TOTAL CLASS'!M744","v":15242},{"$f":"'FR-16(7)(v)-3 PROD Demand'!M744+'FR-16(7)(v)-7 TRANS Demand'!M744+'FR-16(7)(v)-11 DIST Demand'!M744","v":15223},{"$f":"'FR-16(7)(v)-4 PROD Energy'!M744+'FR-16(7)(v)-8 TRANS Energy'!M744+'FR-16(7)(v)-12 DIST Energy'!M744","v":0},{"$f":"'FR-16(7)(v)-5 PROD Cust'!M744+'FR-16(7)(v)-9 TRANS Cust'!M744+'FR-16(7)(v)-13 DIST Cust'!M744","v":19},15242,0]
[5,null,{"$f":"'FR-16(7)(v)-1 Functional'!C745","v":"RENTS"},{"$f":"'FR-16(7)(v)-1 Functional'!D745","v":"D249"},null,{"$f":"'FR-16(7)(v)-14 TOTAL CLASS'!M745","v":74991},{"$f":"'FR-16(7)(v)-3 PROD Demand'!M745+'FR-16(7)(v)-7 TRANS Demand'!M745+'FR-16(7)(v)-11 DIST Demand'!M745","v":74897},{"$f":"'FR-16(7)(v)-4 PROD Energy'!M745+'FR-16(7)(v)-8 TRANS Energy'!M745+'FR-16(7)(v)-12 DIST Energy'!M745","v":0},{"$f":"'FR-16(7)(v)-5 PROD Cust'!M745+'FR-16(7)(v)-9 TRANS Cust'!M745+'FR-16(7)(v)-13 DIST Cust'!M745","v":94},74991,0]
[6,null,{"$f":"'FR-16(7)(v)-1 Functional'!C746","v":"TRANSMISSION CHARGE PTP"},{"$f":"'FR-16(7)(v)-1 Functional'!D746","v":"T229"},null,{"$f":"'FR-16(7)(v)-14 TOTAL CLASS'!M746","v":12935},{"$f":"'FR-16(7)(v)-3 PROD Demand'!M746+'FR-16(7)(v)-7 TRANS Demand'!M746+'FR-16(7)(v)-11 DIST Demand'!M746","v":12935},{"$f":"'FR-16(7)(v)-4 PROD Energy'!M746+'FR-16(7)(v)-8 TRANS Energy'!M746+'FR-16(7)(v)-12 DIST Energy'!M746","v":0},{"$f":"'FR-16(7)(v)-5 PROD Cust'!M746+'FR-16(7)(v)-9 TRANS Cust'!M746+'FR-16(7)(v)-13 DIST Cust'!M746","v":0},12935,{"$f":"F746-J746","v":0}]
[7,null,{"$f":"'FR-16(7)(v)-1 Functional'!C747","v":"PJM REACTIVE REVENUE"},{"$f":"'FR-16(7)(v)-1 Functional'!D747","v":"K401"},null,{"$f":"'FR-16(7)(v)-14 TOTAL CLASS'!M747","v":0},{"$f":"'FR-16(7)(v)-3 PROD Demand'!M747+'FR-16(7)(v)-7 TRANS Demand'!M747+'FR-16(7)(v)-11 DIST Demand'!M747","v":0},{"$f":"'FR-16(7)(v)-4 PROD Energy'!M747+'FR-16(7)(v)-8 TRANS Energy'!M747+'FR-16(7)(v)-12 DIST Energy'!M747","v":0},{"$f":"'FR-16(7)(v)-5 PROD Cust'!M747+'FR-16(7)(v)-9 TRANS Cust'!M747+'FR-16(7)(v)-13 DIST Cust'!M747","v":0},0,{"$f":"F747-J747","v":0}]
[8,null,{"$f":"'FR-16(7)(v)-1 Functional'!C748","v":"OTHER TRANSMISSION REVENUES"},{"$f":"'FR-16(7)(v)-1 Functional'!D748","v":"T229"},null,{"$f":"'FR-16(7)(v)-14 TOTAL CLASS'!M748","v":2186},{"$f":"'FR-16(7)(v)-3 PROD Demand'!M748+'FR-16(7)(v)-7 TRANS Demand'!M748+'FR-16(7)(v)-11 DIST Demand'!M748","v":2186},{"$f":"'FR-16(7)(v)-4 PROD Energy'!M748+'FR-16(7)(v)-8 TRANS Energy'!M748+'FR-16(7)(v)-12 DIST Energy'!M748","v":0},{"$f":"'FR-16(7)(v)-5 PROD Cust'!M748+'FR-16(7)(v)-9 TRANS Cust'!M748+'FR-16(7)(v)-13 DIST Cust'!M748","v":0},2186,{"$f":"F748-J748","v":0}]
[9,null,{"$f":"'FR-16(7)(v)-1 Functional'!C749","v":"FIXED BILL PREMIUM"},{"$f":"'FR-16(7)(v)-1 Functional'!D749","v":"K902"},null,{"$f":"'FR-16(7)(v)-14 TOTAL CLASS'!M749","v":0},{"$f":"'FR-16(7)(v)-3 PROD Demand'!M749+'FR-16(7)(v)-7 TRANS Demand'!M749+'FR-16(7)(v)-11 DIST Demand'!M749","v":0},{"$f":"'FR-16(7)(v)-4 PROD Energy'!M749+'FR-16(7)(v)-8 TRANS Energy'!M749+'FR-16(7)(v)-12 DIST Energy'!M749","v":0},{"$f":"'FR-16(7)(v)-5 PROD Cust'!M749+'FR-16(7)(v)-9 TRANS Cust'!M749+'FR-16(7)(v)-13 DIST Cust'!M749","v":0},0,0]
[10,null,{"$f":"'FR-16(7)(v)-1 Functional'!C750","v":"  TOTAL OTHER OPERATING REVS"},null,null,{"$f":"SUM(F742:F749)","v":123253},123117,0,136,123253,0]
[11]
[12,"COST OF SERVICE COMPUTATION"]
[13,null,{"$f":"'FR-16(7)(v)-1 Functional'!C753","v":"TOTAL OP EXP EXC INC & REV TAX"},null,null,{"$f":"F618","v":26776082},{"$f":"G618","v":9511721},{"$f":"H618","v":17263741},{"$f":"I618","v":620},{"$f":"J618","v":26776082},{"$f":"F753-J753","v":0}]
[14,null,"RETURN ON RATE BASE",null,null,{"$f":"F433","v":5220165},{"$f":"G433","v":4974218},{"$f":"H433","v":243826},{"$f":"I433","v":2121},{"$f":"J433","v":5220165},{"$f":"F754-J754","v":0}]
[15,null,{"$f":"'FR-16(7)(v)-1 Functional'!C755","v":"NET FED INCOME TAX ALLOWABLE"},null,null,{"$f":"F676","v":927754},{"$f":"G676","v":-338919},{"$f":"H676","v":1266572},{"$f":"I676","v":101},{"$f":"J676","v":927754},{"$f":"F755-J755","v":0}]
[16,null,{"$f":"'FR-16(7)(v)-1 Functional'!C756","v":"NET STATE INCOME TAX ALLOWABLE"},null,null,{"$f":"F722","v":110080},{"$f":"G722","v":-104135},{"$f":"H722","v":214409},{"$f":"I722","v":-193},{"$f":"J722","v":110081},{"$f":"F756-J756","v":-1}]
[17,null,{"$f":"'FR-16(7)(v)-1 Functional'!C757","v":"TOTAL OTHER OPERATING REVENUES"},null,null,{"$f":"-F750","v":-123253},{"$f":"-G750","v":-123117},{"$f":"-H750","v":0},{"$f":"-I750","v":-136},{"$f":"-J750","v":-123253},{"$f":"F757-J757","v":0}]
[18,null,{"$f":"'FR-16(7)(v)-1 Functional'!C758","v":"  SUBTOTAL B"},null,null,{"$f":"SUM(F752:F757)","v":32910828},{"$f":"SUM(G752:G757)","v":13919768},{"$f":"SUM(H752:H757)","v":18988548},{"$f":"SUM(I752:I757)","v":2513},{"$f":"SUM(J752:J757)","v":32910829},{"$f":"J758-F758","v":1}]
[19]
[20,null,{"$f":"'FR-16(7)(v)-1 Functional'!C760","v":"TOTAL OTHER OPERATING REVENUES"},null,null,{"$f":"-F757","v":123253},{"$f":"-G757","v":123117},{"$f":"-H757","v":0},{"$f":"-I757","v":136},{"$f":"-J757","v":123253},{"$f":"F760-J760","v":0}]
[21,null,{"$f":"'FR-16(7)(v)-1 Functional'!C761","v":"LESS: REVS EXCL FROM REV TAX CALC"},null,null,{"$f":"'FR-16(7)(v)-14 TOTAL CLASS'!M761","v":0},{"$f":"'FR-16(7)(v)-3 PROD Demand'!M761+'FR-16(7)(v)-7 TRANS Demand'!M761+'FR-16(7)(v)-11 DIST Demand'!M761","v":0},{"$f":"'FR-16(7)(v)-4 PROD Energy'!M761+'FR-16(7)(v)-8 TRANS Energy'!M761+'FR-16(7)(v)-12 DIST Energy'!M761","v":0},{"$f":"'FR-16(7)(v)-5 PROD Cust'!M761+'FR-16(7)(v)-9 TRANS Cust'!M761+'FR-16(7)(v)-13 DIST Cust'!M761","v":0},{"$f":"SUM(G761:I761)","v":0},{"$f":"F761-J761","v":0}]
[22,null,{"$f":"'FR-16(7)(v)-1 Functional'!C762","v":"OTHER OPERATING REVS TO BE TAXED"},null,null,{"$f":"F760-F761","v":123253},123117,0,136,123253,0]
[23]
[24,null,{"$f":"'FR-16(7)(v)-1 Functional'!C764","v":"REVENUE TAX FACTOR"},null,null,{"$f":"ROUND(F817/(1-F817),8)","v":0},0,0,0,0,0]
[25,null,{"$f":"'FR-16(7)(v)-1 Functional'!C765","v":"REVENUE TAX ON OTHER OPER. REVS"},null,null,{"$f":"ROUND(F764*F762,0)","v":0},{"$f":"ROUND(G764*G762,0)","v":0},{"$f":"ROUND(H764*H762,0)","v":0},{"$f":"ROUND(I764*I762,0)","v":0},{"$f":"SUM(G765:I765)","v":0},{"$f":"F765-J765","v":0}]
[26,null,{"$f":"'FR-16(7)(v)-1 Functional'!C766","v":"REVENUE TAX ON COST OF SERVICE"},null,null,{"$f":"ROUND(F764*F758,0)","v":0},{"$f":"ROUND(G764*G758,0)","v":0},{"$f":"ROUND(H764*H758,0)","v":0},{"$f":"ROUND(I764*I758,0)","v":0},{"$f":"SUM(G766:I766)","v":0},{"$f":"F766-J766","v":0}]
[27,null,{"$f":"'FR-16(7)(v)-1 Functional'!C767","v":"TOTAL REVENUE TAX"},null,null,{"$f":"F766+F765","v":0},0,0,0,0,0]
[28]
[29,null,"RESERVED",null,null,{"$f":"F24","v":0},{"$f":"G24","v":0},{"$f":"H24","v":0},{"$f":"I24","v":0},{"$f":"J24","v":0},{"$f":"F769-J769","v":0}]
[30,null,{"$f":"'FR-16(7)(v)-1 Functional'!C770","v":"  TOTAL ELECTRIC COST OF SERVICE"},null,null,{"$f":"F769+F767+F758","v":32910828},13919768,18988548,2513,32910829,1]
[31]
[32,"PROPOSED REVENUES ",null,null,null,{"$f":"'FR-16(7)(v)-14 TOTAL CLASS'!M772","v":19848838},{"$f":"'FR-16(7)(v)-3 PROD Demand'!M772+'FR-16(7)(v)-7 TRANS Demand'!M772+'FR-16(7)(v)-11 DIST Demand'!M772","v":5821837},{"$f":"'FR-16(7)(v)-4 PROD Energy'!M772+'FR-16(7)(v)-8 TRANS Energy'!M772+'FR-16(7)(v)-12 DIST Energy'!M772","v":14045547},{"$f":"'FR-16(7)(v)-5 PROD Cust'!M772+'FR-16(7)(v)-9 TRANS Cust'!M772+'FR-16(7)(v)-13 DIST Cust'!M772","v":-18546},{"$f":"SUM(G772:I772)","v":19848838},{"$f":"F772-J772","v":0}]
[33,"TOTAL ELECTRIC COST OF SERVICE",null,null,null,{"$f":"-F770","v":-32910828},{"$f":"-G770","v":-13919768},{"$f":"-H770","v":-18988548},{"$f":"-I770","v":-2513},{"$f":"SUM(G773:I773)","v":-32910829},{"$f":"F773-J773","v":1}]
[34,"EXCESS REVENUES",null,null,null,{"$f":"F773+F772","v":-13061990},{"$f":"G773+G772","v":-8097931},{"$f":"H773+H772","v":-4943001},{"$f":"I773+I772","v":-21059},{"$f":"SUM(G774:I774)","v":-13061991},{"$f":"F774-J774","v":1}]
[35,"COMPOSITE TAX RATE",null,null,null,{"$f":"F729","v":0.24925115},0.24925115,0.24925115,0.24925115,0.24925115,0.24925115]
[36,"EXCESS TAX",null,null,null,{"$f":"ROUND(F775*F774,0)","v":-3255716},{"$f":"'FR-16(7)(v)-3 PROD Demand'!M776+'FR-16(7)(v)-7 TRANS Demand'!M776+'FR-16(7)(v)-11 DIST Demand'!M776","v":-2018419},{"$f":"ROUND(H775*H774,0)","v":-1232049},{"$f":"ROUND(I775*I774,0)","v":-5249},{"$f":"SUM(G776:I776)","v":-3255717},{"$f":"F776-J776","v":1}]
[37,"EXCESS RETURN",null,null,null,{"$f":"F774-F776","v":-9806274},{"$f":"'FR-16(7)(v)-3 PROD Demand'!M777+'FR-16(7)(v)-7 TRANS Demand'!M777+'FR-16(7)(v)-11 DIST Demand'!M777","v":-6079512},{"$f":"H774-H776","v":-3710952},{"$f":"I774-I776","v":-15810},{"$f":"SUM(G777:I777)","v":-9806274},{"$f":"F777-J777","v":0}]
[]
[{"$f":"co_name","v":"DUKE ENERGY KENTUCKY, INC."},null,null,null,null,null,null,null,null,{"$f":"J1","v":"FR-16(7)(v)-21"}]
[{"$f":"$A$2","v":"DT PRIMARY CLASSIFIED - ELECTRIC COST OF SERVICE"},null,null,null,null,null,null,null,null,{"$f":"J2","v":"WITNESS RESPONSIBLE:"}]
[{"$f":"case_name","v":"CASE NO: 2019-00271"},null,null,null,null,null,null,null,null,{"$f":"Witness","v":"JAMES E. ZIOLKOWSKI"}]
[{"$f":"data_filing","v":"DATA: 12 MONTHS ACTUAL  & 0 MONTHS ESTIMATED"},null,null,null,null,null,null,null,null,{"$f":"\"PAGE \"&Pages2&\" OF \"&Pages2","v":"PAGE 15 OF 15"}]
[{"$f":"type","v":"TYPE OF FILING: \"X\" ORIGINAL   UPDATED    REVISED  "}]
[]
[]
["LINE",null,null,null,null,"TOTAL","CLASSIFIED",null,null,"TOTAL","ALL"]
["NO.","ROR, TAX RATES & SPEC FACTORS",null,"ALLO",null,{"$f":"$F$9","v":"DT PRIMARY"},{"$f":"G9","v":"DEMAND"},"ENERGY","CUSTOMER","AT ISSUE","OTHER"]
[null,null,"Schedule 11",null,null,null,3,4,5]
[1,"RATE OF RETURN"]
[2," CAPITALIZATION AMOUNTS",null,null,null,null,"RATIO"]
[3,null,{"$f":"'FR-16(7)(v)-1 Functional'!C791","v":"LONG TERM DEBT"},null,null,{"$f":"'FR-16(7)(v)-1 Functional'!$F$791","v":665948506},{"$f":"IF(TotalCap=0,0,ROUND(F791/TotalCap,4))","v":0.45929999999999999}]
[4,null,{"$f":"'FR-16(7)(v)-1 Functional'!C792","v":"PREFERRED STOCK"},null,null,{"$f":"'FR-16(7)(v)-1 Functional'!$F$792","v":0},{"$f":"IF(TotalCap=0,0,ROUND(F792/TotalCap,4))","v":0}]
[5,null,{"$f":"'FR-16(7)(v)-1 Functional'!C793","v":"COMMON STOCK"},null,null,{"$f":"[0]!Equity","v":699348680},{"$f":"1-G791-G792-G794-G795","v":0.48239999999999994}]
[6,null,{"$f":"'FR-16(7)(v)-1 Functional'!C794","v":"SHORT TERM DEBT"},null,null,{"$f":"'FR-16(7)(v)-1 Functional'!$F$794","v":84600060},{"$f":"IF(TotalCap=0,0,ROUND(F794/TotalCap,4))","v":5.8299999999999998E-2}]
[7,null,{"$f":"'FR-16(7)(v)-1 Functional'!C795","v":"UNAMORTIZED DISCOUNT"},null,null,{"$f":"'FR-16(7)(v)-1 Functional'!$F$795","v":0},{"$f":"IF(TotalCap=0,0,ROUND(F795/TotalCap,4))","v":0}]
[8,null,{"$f":"'FR-16(7)(v)-1 Functional'!C796","v":"  TOTAL"},null,null,{"$f":"SUM(F790:F795)","v":1449897246},{"$f":"SUM(G791:G795)","v":1}]
[9]
[10," COST OF CAPITAL"]
[11,null,{"$f":"'FR-16(7)(v)-1 Functional'!C799","v":"LONG TERM DEBT"},null,null,{"$f":"'FR-16(7)(v)-1 Functional'!$F$799","v":4.0730000000000002E-2}]
[12,null,{"$f":"'FR-16(7)(v)-1 Functional'!C800","v":"PREFERRED STOCK"},null,null,{"$f":"'FR-16(7)(v)-1 Functional'!$F$800","v":0}]
[13,null,{"$f":"'FR-16(7)(v)-1 Functional'!C801","v":"COMMON STOCK"},null,null,{"$f":"'FR-16(7)(v)-1 Functional'!$F$801","v":9.8000000000000004E-2}]
[14,null,{"$f":"'FR-16(7)(v)-1 Functional'!C802","v":"SHORT TERM DEBT"},null,null,{"$f":"'FR-16(7)(v)-1 Functional'!$F$802","v":1.9369999999999998E-2}]
[15,null,{"$f":"'FR-16(7)(v)-1 Functional'!C803","v":"UNAMORTIZED DISCOUNT"},null,null,{"$f":"'FR-16(7)(v)-1 Functional'!$F$803","v":0}]
[16]
[17," WEIGHTED COST OF CAPITAL"]
[18,null,{"$f":"'FR-16(7)(v)-1 Functional'!C806","v":"LONG TERM DEBT"},null,null,{"$f":"ROUND(G791*F799,4)","v":1.8700000000000001E-2}]
[19,null,{"$f":"'FR-16(7)(v)-1 Functional'!C807","v":"PREFERRED STOCK"},null,null,{"$f":"ROUND(G792*F800,4)","v":0}]
[20,null,{"$f":"'FR-16(7)(v)-1 Functional'!C808","v":"COMMON STOCK"},null,null,{"$f":"ROUND(G793*F801,4)","v":4.7300000000000002E-2}]
[21,null,{"$f":"'FR-16(7)(v)-1 Functional'!C809","v":"SHORT TERM DEBT"},null,null,{"$f":"ROUND(G794*F802,4)","v":1.1000000000000001E-3}]
[22,null,{"$f":"'FR-16(7)(v)-1 Functional'!C810","v":"UNAMORTIZED DISCOUNT"},null,null,{"$f":"ROUND(G795*F803,4)","v":0}]
[23,null,{"$f":"'FR-16(7)(v)-1 Functional'!C811","v":"  TOT RATE OF RETURN ALLOWABLE"},null,null,{"$f":"SUM(F806:F810)","v":6.7100000000000007E-2}]
[24]
[25,"TAX RATES AND SPECIAL FACTORS"]
[26,null,{"$f":"'FR-16(7)(v)-1 Functional'!C814","v":"SHORT TERM DEBT COST"},null,null,0,{"$f":"F814","v":0},{"$f":"F814","v":0},{"$f":"F814","v":0},{"$f":"F814","v":0},{"$f":"F814","v":0}]
[27,null,{"$f":"'FR-16(7)(v)-1 Functional'!C815","v":"FEDERAL INCOME TAX RATE"},null,null,0.35,{"$f":"FIT","v":0.21},{"$f":"FIT","v":0.21},{"$f":"FIT","v":0.21},{"$f":"FIT","v":0.21},{"$f":"FIT","v":0.21}]
[28,null,{"$f":"'FR-16(7)(v)-1 Functional'!C816","v":"STATE INCOME TAX RATE"},null,null,{"$f":"SIT","v":4.9685000000000007E-2},4.9685000000000007E-2,4.9685000000000007E-2,4.9685000000000007E-2,4.9685000000000007E-2,4.9685000000000007E-2]
[29,null,{"$f":"'FR-16(7)(v)-1 Functional'!C817","v":"REVENUE TAX RATE"},null,null,0,{"$f":"RevTax","v":0},{"$f":"RevTax","v":0},{"$f":"RevTax","v":0},{"$f":"RevTax","v":0},{"$f":"RevTax","v":0}]
[]
[]
[]
[]
[]
[]
[]
[]
[]
[]
[]
[]
[]
[]
[]
[]
[]
[]
[]
[]
[]
[]
[]
[]
[]
[]
[]
[]
[]
[]
[]
[]
[]
[]
[]
[]
[]
[]
[]
[]
[]
[]
[]
[]
[]
[]
[]
[]
[]
[]
[]
[]
[]
[]
[]
[]
[]
[]
[]
[]
[]
[]
[]
[]
[]
[]
[]
[]
[]
[]
[]
[]
[]
[]
[]
[]
[]
[]
[]
[]
[]
[]
[]
[]
[]
[]
[]
[]
[]
[]
[]
[]
[]
[]
[]
[]
[]
[]
[]
[]
[]
[]
[]
[]
[]
[]
[]
[]
[]
[]
[]
[]
[]
[]
[]
[]
[]
[]
[]
[]
[]
[]
[]
[]
[]
[]
[]
[]
[]
[]
[]
[]
[]
[]
[]
[]
[]
[]
[]
[]
[]
[]
[]
[]
[]
[]
[]
[]
[]
[]
[]
[]
[]
[]
[]
[]
[]
[]
[]
[]
[]
[]
[]
[]
[]
[]
["DO NOT FILE THIS PAGE"]
[]
[{"$f":"co_name","v":"DUKE ENERGY KENTUCKY, INC."},null,null,null,null,null,null,null,null,{"$f":"J1","v":"FR-16(7)(v)-21"}]
[{"$f":"$A$2","v":"DT PRIMARY CLASSIFIED - ELECTRIC COST OF SERVICE"},null,null,null,null,null,null,null,null,{"$f":"J2","v":"WITNESS RESPONSIBLE:"}]
[{"$f":"case_name","v":"CASE NO: 2019-00271"},null,null,null,null,null,null,null,null,{"$f":"Witness","v":"JAMES E. ZIOLKOWSKI"}]
[{"$f":"data_filing","v":"DATA: 12 MONTHS ACTUAL  & 0 MONTHS ESTIMATED"},null,null,null,null,null,null,null,null,{"$f":"\"PAGE \"&Pages2&\" OF \"&Pages2","v":"PAGE 15 OF 15"}]
[{"$f":"type","v":"TYPE OF FILING: \"X\" ORIGINAL   UPDATED    REVISED  "}]
[]
[]
["LINE",null,null,null,null,"TOTAL","CLASSIFIED",null,null,"TOTAL","ALL"]
["NO.","INCOME TAX BASED ON REVENUES",null,"ALLO",null,{"$f":"$F$9","v":"DT PRIMARY"},"DEMAND","COMMODITY","CUSTOMER","AT ISSUE","OTHER"]
[null,null,"Schedule 13",null,null,null,{"$f":"G10","v":3},{"$f":"H10","v":4},{"$f":"I10","v":5}]
[1,"NET INCOME COMPUTATION"]
[2,null,{"$f":"'FR-16(7)(v)-1 Functional'!C1008","v":"TOTAL ELECTRIC COST OF SERVICE"},null,null,{"$f":"F770","v":32910828},13919768,18988548,2513,32910829,1]
[3,null,{"$f":"'FR-16(7)(v)-1 Functional'!C1009","v":"TOTAL OTHER OPERATING REVENUES"},null,null,{"$f":"F750","v":123253},123117,0,136,123253,0]
[4,null,{"$f":"'FR-16(7)(v)-1 Functional'!C1010","v":"  TOTAL ELECTRIC REVENUE"},null,null,{"$f":"SUM(F996:F998)","v":33034081},14042885,18988548,2649,33034082,1]
[5,null,{"$f":"'FR-16(7)(v)-1 Functional'!C1011","v":"TOTAL OP EXP EX INC & REV TAX"},null,null,{"$f":"-F618","v":-26776082},-9511721,-17263741,-620,-26776082,0]
[6,null,{"$f":"'FR-16(7)(v)-1 Functional'!C1012","v":"FIRM SERVICE REVENUE TAX"},null,null,{"$f":"-ROUND(F817*F997,0)","v":0},{"$f":"-ROUND(G817*G997,0)","v":0},{"$f":"-ROUND(H817*H997,0)","v":0},{"$f":"-ROUND(I817*I997,0)","v":0},{"$f":"SUM(G1001:I1001)","v":0},{"$f":"-ROUND('FR-16(7)(v)-1 Functional'!K817*K997,0)","v":0}]
[7,null,{"$f":"'FR-16(7)(v)-1 Functional'!C1013","v":"  NET INCOME"},null,null,{"$f":"SUM(F999:F1001)","v":6257999},{"$f":"SUM(G999:G1001)","v":4531164},{"$f":"SUM(H999:H1001)","v":1724807},{"$f":"SUM(I999:I1001)","v":2029},{"$f":"SUM(G1002:I1002)","v":6258000},{"$f":"SUM(K999:K1001)","v":1}]
[8]
[9,"ADJUSTMENTS TO NET INCOME"]
[10,null,{"$f":"'FR-16(7)(v)-1 Functional'!C1016","v":"TOTAL INTEREST EXPENSE"},null,null,{"$f":"-F633","v":-1543098},-1470395,-72076,-627,-1543098,0]
[11,null,{"$f":"'FR-16(7)(v)-1 Functional'!C1017","v":"TOTAL OTHER DEDUCTIONS"},null,null,{"$f":"-F639","v":-5919917},-5676512,-242224,-1181,-5919917,0]
[12,null,{"$f":"'FR-16(7)(v)-1 Functional'!C1018","v":"  PRELIMINARY TAXABLE INCOME"},null,null,{"$f":"SUM(F1004:F1006)+F1002","v":-1205016},{"$f":"SUM(G1004:G1006)+G1002","v":-2615743},{"$f":"SUM(H1004:H1006)+H1002","v":1410507},{"$f":"SUM(I1004:I1006)+I1002","v":221},{"$f":"SUM(G1007:I1007)","v":-1205015},{"$f":"SUM(K1004:K1006)+K1002","v":1}]
[13]
[14,"INCOME TAX BASED ON REVENUES"]
[15,"FEDERAL INCOME TAX COMPUTATION"]
[16,null,{"$f":"'FR-16(7)(v)-1 Functional'!C1022","v":"PRELIMINARY TAXABLE INCOME"},null,null,{"$f":"F1007","v":-1205016},-2615743,1410507,221,-1205015,1]
[17,null,{"$f":"'FR-16(7)(v)-1 Functional'!C1023","v":"  NET FEDERAL TAXABLE INCOME"},null,null,{"$f":"SUM(F1011:F1011)","v":-1205016},-2615743,1410507,221,-1205015,1]
[18,null,{"$f":"'FR-16(7)(v)-1 Functional'!C1024","v":"  FEDERAL INCOME TAX RATE"},null,null,{"$f":"F815","v":0.35},{"$f":"G815","v":0.21},{"$f":"H815","v":0.21},{"$f":"I815","v":0.21},null,{"$f":"'FR-16(7)(v)-1 Functional'!K815","v":0.21}]
[19,null,{"$f":"'FR-16(7)(v)-1 Functional'!C1025","v":"PRELIMINARY FIT = FI01 * K190"},null,null,{"$f":"ROUND(F1013*F1012,0)","v":-421756},{"$f":"ROUND(G1013*G1012,0)","v":-549306},{"$f":"ROUND(H1013*H1012,0)","v":296206},{"$f":"ROUND(I1013*I1012,0)","v":46},{"$f":"SUM(G1014:I1014)","v":-253054},{"$f":"ROUND(K1013*K1012,0)","v":0}]
[20,null,{"$f":"'FR-16(7)(v)-1 Functional'!C1026","v":"TOTAL FED DEF IT (410 & 411)"},null,null,{"$f":"F649","v":1160932},175933,984945,54,1160932,0]
[21,null,{"$f":"'FR-16(7)(v)-1 Functional'!C1027","v":"TOTAL AMORTIZED ITC"},null,null,{"$f":"-F653","v":-35},-34,-1,0,-35,0]
[22,null,{"$f":"'FR-16(7)(v)-1 Functional'!C1028","v":"  NET FED INC TAX ALLOWABLE"},null,null,{"$f":"SUM(F1014:F1016)","v":739141},-373407,1281150,100,907843,0]
[23]
[24,"FEDERAL INCOME TAX PAYABLE"]
[25,null,{"$f":"'FR-16(7)(v)-1 Functional'!C1031","v":"PRELIM FIT"},null,null,{"$f":"F1014","v":-421756},-549306,296206,46,-253054,0]
[26,null,{"$f":"'FR-16(7)(v)-1 Functional'!C1032","v":"TEST YEAR INV TAX CREDIT"},null,null,{"$f":"-F658","v":0},0,0,0,0,0]
[27,null,{"$f":"'FR-16(7)(v)-1 Functional'!C1033","v":"  FED INC TAX PAYABLE"},null,null,{"$f":"SUM(F1019:F1021)","v":-421756},-549306,296206,46,-253054,0]
[28]
[29,"PRELIMINARY SUMMARY"]
[30,null,{"$f":"'FR-16(7)(v)-1 Functional'!C1036","v":"NET INCOME"},null,null,{"$f":"F1002","v":6257999},4531164,1724807,2029,6258000,1]
[31,null,{"$f":"'FR-16(7)(v)-1 Functional'!C1037","v":"NET FED INC TAX ALLOWABLE"},null,null,{"$f":"-F1017","v":-739141},373407,-1281150,-100,-907843,0]
[32,null,{"$f":"'FR-16(7)(v)-1 Functional'!C1038","v":"  OVERALL RETURN EARNED"},null,null,{"$f":"SUM(F1024:F1026)","v":5518858},4904571,443657,1929,5350157,1]
[33]
[34,null,{"$f":"'FR-16(7)(v)-1 Functional'!C1040","v":"  RATE OF RETURN EARNED"},null,null,{"$f":"IF(F426=0,0,ROUND(F1027/F426,5))","v":7.1050000000000002E-2},6.6269999999999996E-2,0.12212000000000001,6.0359999999999997E-2,6.8879999999999997E-2,0]

{"sheet":"FR-16(7)(v)-22 DP Classified","index":26,"n_rows":1029,"n_cols":14,"rows_kept":1029,"cut":false,"hidden":false,"merged":[]}
[{"$f":"co_name","v":"DUKE ENERGY KENTUCKY, INC."},null,null,null,null,null,null,null,null,"FR-16(7)(v)-22"]
[{"$f":"F9&\" \"&\"CLASSIFIED - ELECTRIC COST OF SERVICE\"","v":"DISTR. PRIMARY CLASSIFIED - ELECTRIC COST OF SERVICE"},null,null,null,null,null,null,null,null,"WITNESS RESPONSIBLE:"]
[{"$f":"case_name","v":"CASE NO: 2019-00271"},null,null,null,null,null,null,null,null,{"$f":"Witness","v":"JAMES E. ZIOLKOWSKI"}]
[{"$f":"data_filing","v":"DATA: 12 MONTHS ACTUAL  & 0 MONTHS ESTIMATED"},null,null,null,null,null,null,null,null,{"$f":"\"PAGE \"&Pages2-14&\" OF \"&Pages2","v":"PAGE 1 OF 15"}]
[{"$f":"type","v":"TYPE OF FILING: \"X\" ORIGINAL   UPDATED    REVISED  "}]
[]
[]
["LINE",null,null,null,null,"TOTAL","CLASSIFIED",null,null,"TOTAL","ALL"]
["NO.","SUMMARY OF RESULTS",null,"ALLO",null,"DISTR. PRIMARY","DEMAND","ENERGY","CUSTOMER","AT ISSUE","OTHER"]
[null,null,"Schedule 1",null,null,null,3,4,5]
[1,"NET INCOME COMPUTATION"]
[2,null,{"$f":"'FR-16(7)(v)-1 Functional'!C12","v":"GROSS ELECTRIC PLANT IN SERVICE"},null,null,{"$f":"F123","v":7890667},{"$f":"G123","v":7700075},{"$f":"H123","v":164130},{"$f":"I123","v":26462},{"$f":"SUM(G12:I12)","v":7890667},{"$f":"F12-J12","v":0}]
[3,null,{"$f":"'FR-16(7)(v)-1 Functional'!C13","v":"TOTAL DEPRECIATION RESERVE"},null,null,{"$f":"-F200","v":-3242856},{"$f":"-G200","v":-3153278},{"$f":"-H200","v":-80052},{"$f":"-I200","v":-9526},{"$f":"SUM(G13:I13)","v":-3242856},{"$f":"F13-J13","v":0}]
[4,null,{"$f":"'FR-16(7)(v)-1 Functional'!C14","v":"TOTAL RATE BASE ADJUSTMENTS"},null,null,{"$f":"F421","v":-842034},{"$f":"G421","v":-926037},{"$f":"H421","v":86127},{"$f":"I421","v":-2124},{"$f":"SUM(G14:I14)","v":-842034},{"$f":"F14-J14","v":0}]
[5,null,{"$f":"'FR-16(7)(v)-1 Functional'!C15","v":"  TOTAL RATE BASE"},null,null,{"$f":"SUM(F12:F14)","v":3805777},3620760,170205,14812,3805777,0]
[6]
[7,"OPERATING EXPENSES"]
[8,null,{"$f":"'FR-16(7)(v)-1 Functional'!C18","v":"TOTAL O&M EXPENSE"},null,null,{"$f":"F549","v":986111},{"$f":"G549","v":186995},{"$f":"H549","v":796946},{"$f":"I549","v":2170},{"$f":"SUM(G18:I18)","v":986111},{"$f":"F18-J18","v":0}]
[9,null,{"$f":"'FR-16(7)(v)-1 Functional'!C19","v":"TOTAL DEPRECIATION EXPENSE"},null,null,{"$f":"F582","v":239418},{"$f":"G582","v":228732},{"$f":"H582","v":10025},{"$f":"I582","v":661},{"$f":"SUM(G19:I19)","v":239418},{"$f":"F19-J19","v":0}]
[10,null,{"$f":"'FR-16(7)(v)-1 Functional'!C20","v":"TOTAL OTHER TAX & MISC EXPENSE"},null,null,{"$f":"F612","v":57726},{"$f":"G612","v":54746},{"$f":"H612","v":2693},{"$f":"I612","v":287},{"$f":"SUM(G20:I20)","v":57726},{"$f":"F20-J20","v":0}]
[11,null,{"$f":"'FR-16(7)(v)-1 Functional'!C21","v":"  TOTAL OP EXP EXCLUDING INC & REV TAX"},null,null,{"$f":"SUM(F17:F20)","v":1283255},470473,809664,3118,1283255,0]
[12,null,{"$f":"'FR-16(7)(v)-1 Functional'!C22","v":"NET FED INCOME TAX EXP ALLOWABLE"},null,null,{"$f":"F676","v":43507},{"$f":"G676","v":-15925},{"$f":"H676","v":59391},{"$f":"I676","v":41},{"$f":"SUM(G22:I22)","v":43507},{"$f":"F22-J22","v":0}]
[13,null,"NET STATE INCOME TAX EXP ALLOWABLE",null,null,{"$f":"F722","v":5432},{"$f":"G722","v":-4738},{"$f":"H722","v":10055},{"$f":"I722","v":115},{"$f":"SUM(G23:I23)","v":5432},{"$f":"F23-J23","v":0}]
[14,null,"RESERVED",{"$f":"'FR-16(7)(v)-1 Functional'!D24","v":"CW29"},null,{"$f":"'FR-16(7)(v)-14 TOTAL CLASS'!N24","v":0},{"$f":"'FR-16(7)(v)-3 PROD Demand'!N24+'FR-16(7)(v)-7 TRANS Demand'!N24+'FR-16(7)(v)-11 DIST Demand'!N24","v":0},{"$f":"'FR-16(7)(v)-4 PROD Energy'!N24+'FR-16(7)(v)-8 TRANS Energy'!N24+'FR-16(7)(v)-12 DIST Energy'!N24","v":0},{"$f":"'FR-16(7)(v)-5 PROD Cust'!N24+'FR-16(7)(v)-9 TRANS Cust'!N24+'FR-16(7)(v)-13 DIST Cust'!N24","v":0},{"$f":"SUM(G24:I24)","v":0},{"$f":"F24-J24","v":0}]
[15,null,{"$f":"'FR-16(7)(v)-1 Functional'!C25","v":"REVENUE TAX"},null,null,{"$f":"F767","v":0},{"$f":"G767","v":0},{"$f":"H767","v":0},{"$f":"I767","v":0},{"$f":"SUM(G25:I25)","v":0},{"$f":"F25-J25","v":0}]
[16,null,{"$f":"'FR-16(7)(v)-1 Functional'!C26","v":"  TOTAL OPERATING EXPENSE"},null,null,{"$f":"SUM(F21:F25)","v":1332194},449810,879110,3274,1332194,0]
[17]
[18,"RETURN ON RATE BASE",null,null,null,{"$f":"F433","v":255798},{"$f":"G433","v":243370},{"$f":"H433","v":11430},{"$f":"I433","v":998},{"$f":"SUM(G28:I28)","v":255798},{"$f":"F28-J28","v":0}]
[19,"TOTAL OTHER OPERATING REVENUES",null,null,null,{"$f":"-F750","v":-6206},{"$f":"-G750","v":-6151},{"$f":"-H750","v":0},{"$f":"-I750","v":-55},{"$f":"SUM(G29:I29)","v":-6206},{"$f":"F29-J29","v":0}]
[20,null,{"$f":"'FR-16(7)(v)-1 Functional'!C30","v":"TOTAL ELECTRIC COST OF SERVICE"},null,null,{"$f":"SUM(F26:F29)","v":1581786},{"$f":"SUM(G26:G29)","v":687029},{"$f":"SUM(H26:H29)","v":890540},{"$f":"SUM(I26:I29)","v":4217},{"$f":"SUM(J26:J29)","v":1581786},{"$f":"F30-J30","v":0}]
[21,"ADJUSTMENT FOR INTERCLASS SUBSIDIZATION",null,{"$f":"1-'WP FR-16(7)(v) Rate Incr'!I11","v":0.95},null,{"$f":"SUM(G31:I31)","v":-39543},{"$f":"'WP FR-16(7)(v) Rate Incr'!T22","v":-29039},{"$f":"'WP FR-16(7)(v) Rate Incr'!U15","v":0},{"$f":"'WP FR-16(7)(v) Rate Incr'!V22","v":-10504},null,{"$f":"F31-J31","v":-39543}]
[22,{"$f":"'FR-16(7)(v)-1 Functional'!$B$32","v":"REQUESTED REVENUES (COST OF SERVICE ADJUSTED FOR SUBSIDIES)"},null,null,null,{"$f":"F30+F31","v":1542243},657990,890540,-6287,1581786,-39543]
[23,"PROPOSED REVENUES",null,null,null,{"$f":"'FR-16(7)(v)-14 TOTAL CLASS'!N33","v":1546768},{"$f":"'FR-16(7)(v)-3 PROD Demand'!N33+'FR-16(7)(v)-7 TRANS Demand'!N33+'FR-16(7)(v)-11 DIST Demand'!N33","v":307865},{"$f":"'FR-16(7)(v)-4 PROD Energy'!N33+'FR-16(7)(v)-8 TRANS Energy'!N33+'FR-16(7)(v)-12 DIST Energy'!N33","v":658595},{"$f":"'FR-16(7)(v)-5 PROD Cust'!N33+'FR-16(7)(v)-9 TRANS Cust'!N33+'FR-16(7)(v)-13 DIST Cust'!N33","v":11438},{"$f":"SUM(G33:I33)","v":977898},{"$f":"F33-J33","v":568870}]
[24,"DIFFERENCE (REQUESTED LESS PROPOSED)",null,null,null,{"$f":"F32-F33","v":-4525},350125,231945,-17725,603888,-608413]
[25]
[26,"TOTAL RETURN EARNED",null,null,null,{"$f":"F777+F28","v":-197570},{"$f":"G777+G28","v":-41287},{"$f":"H777+H28","v":-162702},{"$f":"I777+I28","v":6419},{"$f":"J777+J28","v":-197570},{"$f":"F36-J36","v":0}]
[27,"RATE OF RETURN EARNED",null,null,null,{"$f":"IF(F431=0,0,ROUND(F36/F431,5))","v":-5.1830000000000001E-2},-1.1390000000000001E-2,-0.95526,0.43162,-5.1830000000000001E-2,0]
[28,"TOTAL RATE OF RETURN ALLOWABLE",null,null,null,{"$f":"$F$811","v":6.7100000000000007E-2},{"$f":"F811","v":6.7100000000000007E-2},{"$f":"F811","v":6.7100000000000007E-2},{"$f":"F811","v":6.7100000000000007E-2},{"$f":"F811","v":6.7100000000000007E-2},{"$f":"IF(K37=0,0,F811)","v":0},null,null,"Not Part of print range"]
[29,"RETURN EARNED ON COMMON EQUITY",null,null,null,{"$f":"IF(Equity=0,0,(F37-$F$806-$F$807-$F$809)*TotalCap/Equity)","v":-0.14850409059323602},{"$f":"IF(Equity=0,0,(G37-$F$806-$F$807-$F$809)*TotalCap/Equity)","v":-6.4663445282745091E-2},{"$f":"IF(Equity=0,0,(H37-F806-F807-F809)*TotalCap/Equity)","v":-2.0215049361139283},{"$f":"IF(Equity=0,0,(I37-F806-F807-F809)*TotalCap/Equity)","v":0.85378967734338185},{"$f":"IF(Equity=0,0,(J37-F806-F807-F809)*TotalCap/Equity)","v":-0.14850409059323602},{"$f":"IF(OR(E793=0,K37=0)=TRUE,0,(K37-E806-E807-E809)*E796/E793)","v":0},null,null,"Not Filed"]
[30,"ALLOWED RETURN ON COMMON EQUITY",null,null,null,{"$f":"IF(Equity=0,0,(F38-$F$806-$F$807-$F$809)*TotalCap/Equity)","v":9.8062871493229981E-2},{"$f":"IF(Equity=0,0,(G38-F806-F807-F809)*TotalCap/Equity)","v":9.8062871493229981E-2},{"$f":"IF(Equity=0,0,(H38-F806-F807-F809)*TotalCap/Equity)","v":9.8062871493229981E-2},{"$f":"IF(Equity=0,0,(I38-F806-F807-F809)*TotalCap/Equity)","v":9.8062871493229981E-2},{"$f":"IF(Equity=0,0,(J38-F806-F807-F809)*TotalCap/Equity)","v":9.8062871493229981E-2},{"$f":"IF(OR(Equity=0,K38=0)=TRUE,0,(K38-F806-F807-F809)*TotalCap/Equity)","v":0}]
[31,null,null,null,null," "]
[32,"PRESENT REVENUES",null,null,null,{"$f":"'FR-16(7)(v)-14 TOTAL CLASS'!N42","v":1361377},{"$f":"F42-SUM(H42:I42)","v":578831},{"$f":"'FR-16(7)(v)-4 PROD Energy'!N42","v":778856},{"$f":"'FR-16(7)(v)-13 DIST Cust'!N42","v":3690},{"$f":"SUM(G42:I42)","v":1361377},{"$f":"F42-J42","v":0}]
[33,"REVENUE INCREASE JUSTIFIED",null,null,null,{"$f":"F30-F42","v":220409},108198,111684,527,220409,0]
[34,null,"PER UNIT PRES REV",null,null,{"$f":"IF(F42=0,0,ROUND(F43/F42,5))","v":0.16189999999999999},0.18693000000000001,0.14338999999999999,0.14282,0.16189999999999999,0]
[35,"REVENUE INCREASE REQUESTED",null,null,null,{"$f":"F33-F42","v":185391},-270966,-120261,7748,-383479,568870]
[36,null,"PER UNIT PRES REV",null,null,{"$f":"IF(F42=0,0,ROUND(F45/F42,5))","v":0.13618},-0.46812999999999999,-0.15440999999999999,2.0997300000000001,-0.28167999999999999,0]
[]
[{"$f":"co_name","v":"DUKE ENERGY KENTUCKY, INC."},null,null,null,null,null,null,null,null,{"$f":"J1","v":"FR-16(7)(v)-22"}]
[{"$f":"$A$2","v":"DISTR. PRIMARY CLASSIFIED - ELECTRIC COST OF SERVICE"},null,null,null,null,null,null,null,null,{"$f":"J2","v":"WITNESS RESPONSIBLE:"}]
[{"$f":"case_name","v":"CASE NO: 2019-00271"},null,null,null,null,null,null,null,null,{"$f":"Witness","v":"JAMES E. ZIOLKOWSKI"}]
[{"$f":"data_filing","v":"DATA: 12 MONTHS ACTUAL  & 0 MONTHS ESTIMATED"},null,null,null,null,null,null,null,null,{"$f":"\"PAGE \"&Pages2-13&\" OF \"&Pages2","v":"PAGE 2 OF 15"}]
[{"$f":"type","v":"TYPE OF FILING: \"X\" ORIGINAL   UPDATED    REVISED  "}]
[]
[]
["LINE",null,null,null,null,"TOTAL","CLASSIFIED",null,null,"TOTAL","ALL"]
["NO.","GROSS ELECTRIC PLANT IN SERVICE",null,"ALLO",null,{"$f":"$F$9","v":"DISTR. PRIMARY"},{"$f":"G9","v":"DEMAND"},"ENERGY","CUSTOMER","AT ISSUE","OTHER"]
[null,null,"Schedule 2",null,null,null,3,4,5,null," "]
[1,"PRODUCTION PLANT"]
[2,null,"PRODUCTION STEAM",{"$f":"'FR-16(7)(v)-1 Functional'!D59","v":"K201"},null,{"$f":"'FR-16(7)(v)-14 TOTAL CLASS'!N59","v":3600318},{"$f":"'FR-16(7)(v)-3 PROD Demand'!N59+'FR-16(7)(v)-7 TRANS Demand'!N59+'FR-16(7)(v)-11 DIST Demand'!N59","v":3600318},{"$f":"'FR-16(7)(v)-4 PROD Energy'!N59+'FR-16(7)(v)-8 TRANS Energy'!N59+'FR-16(7)(v)-12 DIST Energy'!N59","v":0},{"$f":"'FR-16(7)(v)-5 PROD Cust'!N59+'FR-16(7)(v)-9 TRANS Cust'!N59+'FR-16(7)(v)-13 DIST Cust'!N59","v":0},{"$f":"SUM(G59:I59)","v":3600318},{"$f":"F59-J59","v":0}]
[3,null,"PRODUCTION OTHER",{"$f":"'FR-16(7)(v)-1 Functional'!D60","v":"K201"},null,{"$f":"'FR-16(7)(v)-14 TOTAL CLASS'!N60","v":1609578},{"$f":"'FR-16(7)(v)-3 PROD Demand'!N60+'FR-16(7)(v)-7 TRANS Demand'!N60+'FR-16(7)(v)-11 DIST Demand'!N60","v":1609578},{"$f":"'FR-16(7)(v)-4 PROD Energy'!N60+'FR-16(7)(v)-8 TRANS Energy'!N60+'FR-16(7)(v)-12 DIST Energy'!N60","v":0},{"$f":"'FR-16(7)(v)-5 PROD Cust'!N60+'FR-16(7)(v)-9 TRANS Cust'!N60+'FR-16(7)(v)-13 DIST Cust'!N60","v":0},{"$f":"SUM(G60:I60)","v":1609578},{"$f":"F60-J60","v":0}]
[4,null,{"$f":"'FR-16(7)(v)-1 Functional'!C61","v":"ADJUSTMENT"},{"$f":"'FR-16(7)(v)-1 Functional'!D61","v":"K201"},null,{"$f":"'FR-16(7)(v)-14 TOTAL CLASS'!N61","v":0},{"$f":"'FR-16(7)(v)-3 PROD Demand'!N61+'FR-16(7)(v)-7 TRANS Demand'!N61+'FR-16(7)(v)-11 DIST Demand'!N61","v":0},{"$f":"'FR-16(7)(v)-4 PROD Energy'!N61+'FR-16(7)(v)-8 TRANS Energy'!N61+'FR-16(7)(v)-12 DIST Energy'!N61","v":0},{"$f":"'FR-16(7)(v)-5 PROD Cust'!N61+'FR-16(7)(v)-9 TRANS Cust'!N61+'FR-16(7)(v)-13 DIST Cust'!N61","v":0},{"$f":"SUM(G61:I61)","v":0},{"$f":"F61-J61","v":0}]
[5,null,{"$f":"'FR-16(7)(v)-1 Functional'!C62","v":"  PRODUCTION PLANT IN SERVICE"},null,null,{"$f":"SUM(F59:F61)","v":5209896},5209896,0,0,5209896,0]
[6]
[7,"TRANSMISSION PLANT"]
[8,null,"MAIN STEP-UP TRANSFORMERS",{"$f":"'FR-16(7)(v)-1 Functional'!D65","v":"K202"},null,{"$f":"'FR-16(7)(v)-14 TOTAL CLASS'!N65","v":0},{"$f":"'FR-16(7)(v)-3 PROD Demand'!N65+'FR-16(7)(v)-7 TRANS Demand'!N65+'FR-16(7)(v)-11 DIST Demand'!N65","v":0},{"$f":"'FR-16(7)(v)-4 PROD Energy'!N65+'FR-16(7)(v)-8 TRANS Energy'!N65+'FR-16(7)(v)-12 DIST Energy'!N65","v":0},{"$f":"'FR-16(7)(v)-5 PROD Cust'!N65+'FR-16(7)(v)-9 TRANS Cust'!N65+'FR-16(7)(v)-13 DIST Cust'!N65","v":0},{"$f":"SUM(G65:I65)","v":0},{"$f":"F65-J65","v":0}]
[9,null,"OTHER TRANSMISSION",{"$f":"'FR-16(7)(v)-1 Functional'!D66","v":"K202"},null,{"$f":"'FR-16(7)(v)-14 TOTAL CLASS'!N66","v":311922},{"$f":"'FR-16(7)(v)-3 PROD Demand'!N66+'FR-16(7)(v)-7 TRANS Demand'!N66+'FR-16(7)(v)-11 DIST Demand'!N66","v":311922},{"$f":"'FR-16(7)(v)-4 PROD Energy'!N66+'FR-16(7)(v)-8 TRANS Energy'!N66+'FR-16(7)(v)-12 DIST Energy'!N66","v":0},{"$f":"'FR-16(7)(v)-5 PROD Cust'!N66+'FR-16(7)(v)-9 TRANS Cust'!N66+'FR-16(7)(v)-13 DIST Cust'!N66","v":0},{"$f":"SUM(G66:I66)","v":311922},{"$f":"F66-J66","v":0}]
[10,null,"ADJUSTMENT",{"$f":"'FR-16(7)(v)-1 Functional'!D67","v":"K202"},null,{"$f":"'FR-16(7)(v)-14 TOTAL CLASS'!N67","v":0},{"$f":"'FR-16(7)(v)-3 PROD Demand'!N67+'FR-16(7)(v)-7 TRANS Demand'!N67+'FR-16(7)(v)-11 DIST Demand'!N67","v":0},{"$f":"'FR-16(7)(v)-4 PROD Energy'!N67+'FR-16(7)(v)-8 TRANS Energy'!N67+'FR-16(7)(v)-12 DIST Energy'!N67","v":0},{"$f":"'FR-16(7)(v)-5 PROD Cust'!N67+'FR-16(7)(v)-9 TRANS Cust'!N67+'FR-16(7)(v)-13 DIST Cust'!N67","v":0},{"$f":"SUM(G67:I67)","v":0},{"$f":"F67-J67","v":0}]
[11,null,{"$f":"'FR-16(7)(v)-1 Functional'!C68","v":"  TRANSMISSION PLANT IN SERVICE"},null,null,{"$f":"SUM(F65:F67)","v":311922},311922,0,0,311922,0]
[12]
[13,"TOTAL PROD & TRANS PLANT",null,null,null,{"$f":"F68+F62","v":5521818},5521818,0,0,5521818,0]
[14]
[15,"DISTRIBUTION PLANT"]
[16,null,{"$f":"'FR-16(7)(v)-1 Functional'!C73","v":"SUBSTATIONS"},{"$f":"'FR-16(7)(v)-1 Functional'!D73","v":"K215"},null,{"$f":"'FR-16(7)(v)-14 TOTAL CLASS'!N73","v":425769},{"$f":"'FR-16(7)(v)-3 PROD Demand'!N73+'FR-16(7)(v)-7 TRANS Demand'!N73+'FR-16(7)(v)-11 DIST Demand'!N73","v":425769},{"$f":"'FR-16(7)(v)-4 PROD Energy'!N73+'FR-16(7)(v)-8 TRANS Energy'!N73+'FR-16(7)(v)-12 DIST Energy'!N73","v":0},{"$f":"'FR-16(7)(v)-5 PROD Cust'!N73+'FR-16(7)(v)-9 TRANS Cust'!N73+'FR-16(7)(v)-13 DIST Cust'!N73","v":0},{"$f":"SUM(G73:I73)","v":425769},{"$f":"F73-J73","v":0}]
[17,null,{"$f":"'FR-16(7)(v)-1 Functional'!C74","v":"POLES, TOWERS  & FIXTURES - PRIMARY - DEMAND"},{"$f":"'FR-16(7)(v)-1 Functional'!D74","v":"K205"},null,{"$f":"'FR-16(7)(v)-14 TOTAL CLASS'!N74","v":154487},{"$f":"'FR-16(7)(v)-3 PROD Demand'!N74+'FR-16(7)(v)-7 TRANS Demand'!N74+'FR-16(7)(v)-11 DIST Demand'!N74","v":154487},{"$f":"'FR-16(7)(v)-4 PROD Energy'!N74+'FR-16(7)(v)-8 TRANS Energy'!N74+'FR-16(7)(v)-12 DIST Energy'!N74","v":0},{"$f":"'FR-16(7)(v)-5 PROD Cust'!N74+'FR-16(7)(v)-9 TRANS Cust'!N74+'FR-16(7)(v)-13 DIST Cust'!N74","v":0},{"$f":"SUM(G74:I74)","v":154487},{"$f":"F74-J74","v":0}]
[18,null,{"$f":"'FR-16(7)(v)-1 Functional'!C75","v":"POLES, TOWERS  & FIXTURES - PRIMARY - CUSTOMER"},{"$f":"'FR-16(7)(v)-1 Functional'!D75","v":"K405"},null,{"$f":"'FR-16(7)(v)-14 TOTAL CLASS'!N75","v":1057},{"$f":"'FR-16(7)(v)-3 PROD Demand'!N75+'FR-16(7)(v)-7 TRANS Demand'!N75+'FR-16(7)(v)-11 DIST Demand'!N75","v":0},{"$f":"'FR-16(7)(v)-4 PROD Energy'!N75+'FR-16(7)(v)-8 TRANS Energy'!N75+'FR-16(7)(v)-12 DIST Energy'!N75","v":0},{"$f":"'FR-16(7)(v)-5 PROD Cust'!N75+'FR-16(7)(v)-9 TRANS Cust'!N75+'FR-16(7)(v)-13 DIST Cust'!N75","v":1057},{"$f":"SUM(G75:I75)","v":1057},{"$f":"F75-J75","v":0}]
[19,null,{"$f":"'FR-16(7)(v)-1 Functional'!C76","v":"POLES, TOWERS  & FIXTURES - SECONDARY - DEMAND"},{"$f":"'FR-16(7)(v)-1 Functional'!D76","v":"K206"},null,{"$f":"'FR-16(7)(v)-14 TOTAL CLASS'!N76","v":59081},{"$f":"'FR-16(7)(v)-3 PROD Demand'!N76+'FR-16(7)(v)-7 TRANS Demand'!N76+'FR-16(7)(v)-11 DIST Demand'!N76","v":59081},{"$f":"'FR-16(7)(v)-4 PROD Energy'!N76+'FR-16(7)(v)-8 TRANS Energy'!N76+'FR-16(7)(v)-12 DIST Energy'!N76","v":0},{"$f":"'FR-16(7)(v)-5 PROD Cust'!N76+'FR-16(7)(v)-9 TRANS Cust'!N76+'FR-16(7)(v)-13 DIST Cust'!N76","v":0},59081,0]
[20,null,{"$f":"'FR-16(7)(v)-1 Functional'!C77","v":"POLES, TOWERS  & FIXTURES - SECONDARY - CUSTOMER"},{"$f":"'FR-16(7)(v)-1 Functional'!D77","v":"K405"},null,{"$f":"'FR-16(7)(v)-14 TOTAL CLASS'!N77","v":239},{"$f":"'FR-16(7)(v)-3 PROD Demand'!N77+'FR-16(7)(v)-7 TRANS Demand'!N77+'FR-16(7)(v)-11 DIST Demand'!N77","v":0},{"$f":"'FR-16(7)(v)-4 PROD Energy'!N77+'FR-16(7)(v)-8 TRANS Energy'!N77+'FR-16(7)(v)-12 DIST Energy'!N77","v":0},{"$f":"'FR-16(7)(v)-5 PROD Cust'!N77+'FR-16(7)(v)-9 TRANS Cust'!N77+'FR-16(7)(v)-13 DIST Cust'!N77","v":239},239,0]
[21,null,{"$f":"'FR-16(7)(v)-1 Functional'!C78","v":"CONDUCTORS - OVERHEAD / PRIMARY - DEMAND"},{"$f":"'FR-16(7)(v)-1 Functional'!D78","v":"K205"},null,{"$f":"'FR-16(7)(v)-14 TOTAL CLASS'!N78","v":352043},{"$f":"'FR-16(7)(v)-3 PROD Demand'!N78+'FR-16(7)(v)-7 TRANS Demand'!N78+'FR-16(7)(v)-11 DIST Demand'!N78","v":352043},{"$f":"'FR-16(7)(v)-4 PROD Energy'!N78+'FR-16(7)(v)-8 TRANS Energy'!N78+'FR-16(7)(v)-12 DIST Energy'!N78","v":0},{"$f":"'FR-16(7)(v)-5 PROD Cust'!N78+'FR-16(7)(v)-9 TRANS Cust'!N78+'FR-16(7)(v)-13 DIST Cust'!N78","v":0},352043,0]
[22,null,{"$f":"'FR-16(7)(v)-1 Functional'!C79","v":"CONDUCTORS - OVERHEAD / PRIMARY - CUSTOMER"},{"$f":"'FR-16(7)(v)-1 Functional'!D79","v":"K405"},null,{"$f":"'FR-16(7)(v)-14 TOTAL CLASS'!N79","v":1150},{"$f":"'FR-16(7)(v)-3 PROD Demand'!N79+'FR-16(7)(v)-7 TRANS Demand'!N79+'FR-16(7)(v)-11 DIST Demand'!N79","v":0},{"$f":"'FR-16(7)(v)-4 PROD Energy'!N79+'FR-16(7)(v)-8 TRANS Energy'!N79+'FR-16(7)(v)-12 DIST Energy'!N79","v":0},{"$f":"'FR-16(7)(v)-5 PROD Cust'!N79+'FR-16(7)(v)-9 TRANS Cust'!N79+'FR-16(7)(v)-13 DIST Cust'!N79","v":1150},1150,0]
[23,null,{"$f":"'FR-16(7)(v)-1 Functional'!C80","v":"CONDUCTORS - OVERHEAD / SECONDARY - DEMAND"},{"$f":"'FR-16(7)(v)-1 Functional'!D80","v":"K206"},null,{"$f":"'FR-16(7)(v)-14 TOTAL CLASS'!N80","v":143348},{"$f":"'FR-16(7)(v)-3 PROD Demand'!N80+'FR-16(7)(v)-7 TRANS Demand'!N80+'FR-16(7)(v)-11 DIST Demand'!N80","v":143348},{"$f":"'FR-16(7)(v)-4 PROD Energy'!N80+'FR-16(7)(v)-8 TRANS Energy'!N80+'FR-16(7)(v)-12 DIST Energy'!N80","v":0},{"$f":"'FR-16(7)(v)-5 PROD Cust'!N80+'FR-16(7)(v)-9 TRANS Cust'!N80+'FR-16(7)(v)-13 DIST Cust'!N80","v":0},143348,0]
[24,null,{"$f":"'FR-16(7)(v)-1 Functional'!C81","v":"CONDUCTORS - OVERHEAD / SECONDARY - CUSTOMER"},{"$f":"'FR-16(7)(v)-1 Functional'!D81","v":"K405"},null,{"$f":"'FR-16(7)(v)-14 TOTAL CLASS'!N81","v":476},{"$f":"'FR-16(7)(v)-3 PROD Demand'!N81+'FR-16(7)(v)-7 TRANS Demand'!N81+'FR-16(7)(v)-11 DIST Demand'!N81","v":0},{"$f":"'FR-16(7)(v)-4 PROD Energy'!N81+'FR-16(7)(v)-8 TRANS Energy'!N81+'FR-16(7)(v)-12 DIST Energy'!N81","v":0},{"$f":"'FR-16(7)(v)-5 PROD Cust'!N81+'FR-16(7)(v)-9 TRANS Cust'!N81+'FR-16(7)(v)-13 DIST Cust'!N81","v":476},476,0]
[25,null,{"$f":"'FR-16(7)(v)-1 Functional'!C82","v":"CONDUCTORS - UNDERGROUND / PRIMARY - DEMAND"},{"$f":"'FR-16(7)(v)-1 Functional'!D82","v":"K205"},null,{"$f":"'FR-16(7)(v)-14 TOTAL CLASS'!N82","v":262741},{"$f":"'FR-16(7)(v)-3 PROD Demand'!N82+'FR-16(7)(v)-7 TRANS Demand'!N82+'FR-16(7)(v)-11 DIST Demand'!N82","v":262741},{"$f":"'FR-16(7)(v)-4 PROD Energy'!N82+'FR-16(7)(v)-8 TRANS Energy'!N82+'FR-16(7)(v)-12 DIST Energy'!N82","v":0},{"$f":"'FR-16(7)(v)-5 PROD Cust'!N82+'FR-16(7)(v)-9 TRANS Cust'!N82+'FR-16(7)(v)-13 DIST Cust'!N82","v":0},262741,0]
[26,null,{"$f":"'FR-16(7)(v)-1 Functional'!C83","v":"CONDUCTORS - UNDERGROUND / PRIMARY - CUSTOMER"},{"$f":"'FR-16(7)(v)-1 Functional'!D83","v":"K405"},null,{"$f":"'FR-16(7)(v)-14 TOTAL CLASS'!N83","v":1220},{"$f":"'FR-16(7)(v)-3 PROD Demand'!N83+'FR-16(7)(v)-7 TRANS Demand'!N83+'FR-16(7)(v)-11 DIST Demand'!N83","v":0},{"$f":"'FR-16(7)(v)-4 PROD Energy'!N83+'FR-16(7)(v)-8 TRANS Energy'!N83+'FR-16(7)(v)-12 DIST Energy'!N83","v":0},{"$f":"'FR-16(7)(v)-5 PROD Cust'!N83+'FR-16(7)(v)-9 TRANS Cust'!N83+'FR-16(7)(v)-13 DIST Cust'!N83","v":1220},1220,0]
[27,null,{"$f":"'FR-16(7)(v)-1 Functional'!C84","v":"CONDUCTORS - UNDERGROUND / SECONDARY - DEMAND"},{"$f":"'FR-16(7)(v)-1 Functional'!D84","v":"K206"},null,{"$f":"'FR-16(7)(v)-14 TOTAL CLASS'!N84","v":45011},{"$f":"'FR-16(7)(v)-3 PROD Demand'!N84+'FR-16(7)(v)-7 TRANS Demand'!N84+'FR-16(7)(v)-11 DIST Demand'!N84","v":45011},{"$f":"'FR-16(7)(v)-4 PROD Energy'!N84+'FR-16(7)(v)-8 TRANS Energy'!N84+'FR-16(7)(v)-12 DIST Energy'!N84","v":0},{"$f":"'FR-16(7)(v)-5 PROD Cust'!N84+'FR-16(7)(v)-9 TRANS Cust'!N84+'FR-16(7)(v)-13 DIST Cust'!N84","v":0},45011,0]
[28,null,{"$f":"'FR-16(7)(v)-1 Functional'!C85","v":"CONDUCTORS - UNDERGROUND / SECONDARY - CUSTOMER"},{"$f":"'FR-16(7)(v)-1 Functional'!D85","v":"K405"},null,{"$f":"'FR-16(7)(v)-14 TOTAL CLASS'!N85","v":382},{"$f":"'FR-16(7)(v)-3 PROD Demand'!N85+'FR-16(7)(v)-7 TRANS Demand'!N85+'FR-16(7)(v)-11 DIST Demand'!N85","v":0},{"$f":"'FR-16(7)(v)-4 PROD Energy'!N85+'FR-16(7)(v)-8 TRANS Energy'!N85+'FR-16(7)(v)-12 DIST Energy'!N85","v":0},{"$f":"'FR-16(7)(v)-5 PROD Cust'!N85+'FR-16(7)(v)-9 TRANS Cust'!N85+'FR-16(7)(v)-13 DIST Cust'!N85","v":382},382,0]
[29,null,{"$f":"'FR-16(7)(v)-1 Functional'!C86","v":"TRANSFORMERS DEMAND RELATED"},{"$f":"'FR-16(7)(v)-1 Functional'!D86","v":"K215"},null,{"$f":"'FR-16(7)(v)-14 TOTAL CLASS'!N86","v":220503},{"$f":"'FR-16(7)(v)-3 PROD Demand'!N86+'FR-16(7)(v)-7 TRANS Demand'!N86+'FR-16(7)(v)-11 DIST Demand'!N86","v":220503},{"$f":"'FR-16(7)(v)-4 PROD Energy'!N86+'FR-16(7)(v)-8 TRANS Energy'!N86+'FR-16(7)(v)-12 DIST Energy'!N86","v":0},{"$f":"'FR-16(7)(v)-5 PROD Cust'!N86+'FR-16(7)(v)-9 TRANS Cust'!N86+'FR-16(7)(v)-13 DIST Cust'!N86","v":0},{"$f":"SUM(G86:I86)","v":220503},{"$f":"F86-J86","v":0}]
[30,null,{"$f":"'FR-16(7)(v)-1 Functional'!C87","v":"TRANSFORMERS CUSTOMER RELATED"},{"$f":"'FR-16(7)(v)-1 Functional'!D87","v":"K405"},null,{"$f":"'FR-16(7)(v)-14 TOTAL CLASS'!N87","v":1072},{"$f":"'FR-16(7)(v)-3 PROD Demand'!N87+'FR-16(7)(v)-7 TRANS Demand'!N87+'FR-16(7)(v)-11 DIST Demand'!N87","v":0},{"$f":"'FR-16(7)(v)-4 PROD Energy'!N87+'FR-16(7)(v)-8 TRANS Energy'!N87+'FR-16(7)(v)-12 DIST Energy'!N87","v":0},{"$f":"'FR-16(7)(v)-5 PROD Cust'!N87+'FR-16(7)(v)-9 TRANS Cust'!N87+'FR-16(7)(v)-13 DIST Cust'!N87","v":1072},1072,0]
[31,null,{"$f":"'FR-16(7)(v)-1 Functional'!C88","v":"SERVICES"},{"$f":"'FR-16(7)(v)-1 Functional'!D88","v":"K217"},null,{"$f":"'FR-16(7)(v)-14 TOTAL CLASS'!N88","v":8915},{"$f":"'FR-16(7)(v)-3 PROD Demand'!N88+'FR-16(7)(v)-7 TRANS Demand'!N88+'FR-16(7)(v)-11 DIST Demand'!N88","v":0},{"$f":"'FR-16(7)(v)-4 PROD Energy'!N88+'FR-16(7)(v)-8 TRANS Energy'!N88+'FR-16(7)(v)-12 DIST Energy'!N88","v":0},{"$f":"'FR-16(7)(v)-5 PROD Cust'!N88+'FR-16(7)(v)-9 TRANS Cust'!N88+'FR-16(7)(v)-13 DIST Cust'!N88","v":8915},8915,0]
[32,null,{"$f":"'FR-16(7)(v)-1 Functional'!C89","v":"METERS"},{"$f":"'FR-16(7)(v)-1 Functional'!D89","v":"K407"},null,{"$f":"'FR-16(7)(v)-14 TOTAL CLASS'!N89","v":5417},{"$f":"'FR-16(7)(v)-3 PROD Demand'!N89+'FR-16(7)(v)-7 TRANS Demand'!N89+'FR-16(7)(v)-11 DIST Demand'!N89","v":0},{"$f":"'FR-16(7)(v)-4 PROD Energy'!N89+'FR-16(7)(v)-8 TRANS Energy'!N89+'FR-16(7)(v)-12 DIST Energy'!N89","v":0},{"$f":"'FR-16(7)(v)-5 PROD Cust'!N89+'FR-16(7)(v)-9 TRANS Cust'!N89+'FR-16(7)(v)-13 DIST Cust'!N89","v":5417},5417,0]
[33,null,{"$f":"'FR-16(7)(v)-1 Functional'!C90","v":"STREET LIGHTS"},{"$f":"'FR-16(7)(v)-1 Functional'!D90","v":"K401"},null,{"$f":"'FR-16(7)(v)-14 TOTAL CLASS'!N90","v":0},{"$f":"'FR-16(7)(v)-3 PROD Demand'!N90+'FR-16(7)(v)-7 TRANS Demand'!N90+'FR-16(7)(v)-11 DIST Demand'!N90","v":0},{"$f":"'FR-16(7)(v)-4 PROD Energy'!N90+'FR-16(7)(v)-8 TRANS Energy'!N90+'FR-16(7)(v)-12 DIST Energy'!N90","v":0},{"$f":"'FR-16(7)(v)-5 PROD Cust'!N90+'FR-16(7)(v)-9 TRANS Cust'!N90+'FR-16(7)(v)-13 DIST Cust'!N90","v":0},0,0]
[34,null,{"$f":"'FR-16(7)(v)-1 Functional'!C91","v":"ADJUSTMENT  "},{"$f":"'FR-16(7)(v)-1 Functional'!D91","v":"K209"},null,{"$f":"'FR-16(7)(v)-14 TOTAL CLASS'!N91","v":0},{"$f":"'FR-16(7)(v)-3 PROD Demand'!N91+'FR-16(7)(v)-7 TRANS Demand'!N91+'FR-16(7)(v)-11 DIST Demand'!N91","v":0},{"$f":"'FR-16(7)(v)-4 PROD Energy'!N91+'FR-16(7)(v)-8 TRANS Energy'!N91+'FR-16(7)(v)-12 DIST Energy'!N91","v":0},{"$f":"'FR-16(7)(v)-5 PROD Cust'!N91+'FR-16(7)(v)-9 TRANS Cust'!N91+'FR-16(7)(v)-13 DIST Cust'!N91","v":0},0,0]
[35,null,{"$f":"'FR-16(7)(v)-1 Functional'!C92","v":"CONSTRUCTION NOT CLASSIFIED"},{"$f":"'FR-16(7)(v)-1 Functional'!D92","v":"K209"},null,{"$f":"'FR-16(7)(v)-14 TOTAL CLASS'!N92","v":328670},{"$f":"'FR-16(7)(v)-3 PROD Demand'!N92+'FR-16(7)(v)-7 TRANS Demand'!N92+'FR-16(7)(v)-11 DIST Demand'!N92","v":324880},{"$f":"'FR-16(7)(v)-4 PROD Energy'!N92+'FR-16(7)(v)-8 TRANS Energy'!N92+'FR-16(7)(v)-12 DIST Energy'!N92","v":0},{"$f":"'FR-16(7)(v)-5 PROD Cust'!N92+'FR-16(7)(v)-9 TRANS Cust'!N92+'FR-16(7)(v)-13 DIST Cust'!N92","v":3790},328670,0]
[36,null,{"$f":"'FR-16(7)(v)-1 Functional'!C93","v":"RWIP"},{"$f":"'FR-16(7)(v)-1 Functional'!D93","v":"K215"},null,{"$f":"'FR-16(7)(v)-14 TOTAL CLASS'!N93","v":0},{"$f":"'FR-16(7)(v)-3 PROD Demand'!N93+'FR-16(7)(v)-7 TRANS Demand'!N93+'FR-16(7)(v)-11 DIST Demand'!N93","v":0},{"$f":"'FR-16(7)(v)-4 PROD Energy'!N93+'FR-16(7)(v)-8 TRANS Energy'!N93+'FR-16(7)(v)-12 DIST Energy'!N93","v":0},{"$f":"'FR-16(7)(v)-5 PROD Cust'!N93+'FR-16(7)(v)-9 TRANS Cust'!N93+'FR-16(7)(v)-13 DIST Cust'!N93","v":0},{"$f":"SUM(G93:I93)","v":0},{"$f":"F93-J93","v":0}]
[37,null,{"$f":"'FR-16(7)(v)-1 Functional'!C94","v":"  DISTRIBUTION PLANT IN SERVICE"},null,null,{"$f":"SUM(F73:F93)","v":2011581},{"$f":"SUM(G73:G92)","v":1987863},0,23718,2011581,0]
[38]
[39,"TOTAL TRANS & DIST PLANT",null,null,null,{"$f":"F94+F68","v":2323503},2299785,0,23718,2323503,0]
[40,"TOTAL GROSS PTD PLANT",null,null,null,{"$f":"F94+F70","v":7533399},7509681,0,23718,7533399,0]
[41]
[42,"GENERAL & INTANGIBLE PLANT"]
[43,null,{"$f":"'FR-16(7)(v)-1 Functional'!C100","v":"PRODUCTION - DEMAND"},{"$f":"'FR-16(7)(v)-1 Functional'!D100","v":"K201"},null,{"$f":"'FR-16(7)(v)-14 TOTAL CLASS'!N100","v":71994},{"$f":"'FR-16(7)(v)-3 PROD Demand'!N100+'FR-16(7)(v)-7 TRANS Demand'!N100+'FR-16(7)(v)-11 DIST Demand'!N100","v":71994},{"$f":"'FR-16(7)(v)-4 PROD Energy'!N100+'FR-16(7)(v)-8 TRANS Energy'!N100+'FR-16(7)(v)-12 DIST Energy'!N100","v":0},{"$f":"'FR-16(7)(v)-5 PROD Cust'!N100+'FR-16(7)(v)-9 TRANS Cust'!N100+'FR-16(7)(v)-13 DIST Cust'!N100","v":0},{"$f":"SUM(G100:I100)","v":71994},{"$f":"F100-J100","v":0}]
[44,null,{"$f":"'FR-16(7)(v)-1 Functional'!C101","v":"PRODUCTION - ENERGY"},{"$f":"'FR-16(7)(v)-1 Functional'!D101","v":"K301"},null,{"$f":"'FR-16(7)(v)-14 TOTAL CLASS'!N101","v":104810},{"$f":"'FR-16(7)(v)-3 PROD Demand'!N101+'FR-16(7)(v)-7 TRANS Demand'!N101+'FR-16(7)(v)-11 DIST Demand'!N101","v":0},{"$f":"'FR-16(7)(v)-4 PROD Energy'!N101+'FR-16(7)(v)-8 TRANS Energy'!N101+'FR-16(7)(v)-12 DIST Energy'!N101","v":104810},{"$f":"'FR-16(7)(v)-5 PROD Cust'!N101+'FR-16(7)(v)-9 TRANS Cust'!N101+'FR-16(7)(v)-13 DIST Cust'!N101","v":0},{"$f":"SUM(G101:I101)","v":104810},{"$f":"F101-J101","v":0}]
[45,null,{"$f":"'FR-16(7)(v)-1 Functional'!C102","v":"TRANSMISSION"},{"$f":"'FR-16(7)(v)-1 Functional'!D102","v":"K202"},null,{"$f":"'FR-16(7)(v)-14 TOTAL CLASS'!N102","v":11377},{"$f":"'FR-16(7)(v)-3 PROD Demand'!N102+'FR-16(7)(v)-7 TRANS Demand'!N102+'FR-16(7)(v)-11 DIST Demand'!N102","v":11377},{"$f":"'FR-16(7)(v)-4 PROD Energy'!N102+'FR-16(7)(v)-8 TRANS Energy'!N102+'FR-16(7)(v)-12 DIST Energy'!N102","v":0},{"$f":"'FR-16(7)(v)-5 PROD Cust'!N102+'FR-16(7)(v)-9 TRANS Cust'!N102+'FR-16(7)(v)-13 DIST Cust'!N102","v":0},11377,0]
[46,null,{"$f":"'FR-16(7)(v)-1 Functional'!C103","v":"DISTRIBUTION - DEMAND"},{"$f":"'FR-16(7)(v)-1 Functional'!D103","v":"K201"},null,{"$f":"'FR-16(7)(v)-14 TOTAL CLASS'!N103","v":38210},{"$f":"'FR-16(7)(v)-3 PROD Demand'!N103+'FR-16(7)(v)-7 TRANS Demand'!N103+'FR-16(7)(v)-11 DIST Demand'!N103","v":38210},{"$f":"'FR-16(7)(v)-4 PROD Energy'!N103+'FR-16(7)(v)-8 TRANS Energy'!N103+'FR-16(7)(v)-12 DIST Energy'!N103","v":0},{"$f":"'FR-16(7)(v)-5 PROD Cust'!N103+'FR-16(7)(v)-9 TRANS Cust'!N103+'FR-16(7)(v)-13 DIST Cust'!N103","v":0},38210,0]
[47,null,{"$f":"'FR-16(7)(v)-1 Functional'!C104","v":"DISTRIBUTION - CUSTOMER"},{"$f":"'FR-16(7)(v)-1 Functional'!D104","v":"K405"},null,{"$f":"'FR-16(7)(v)-14 TOTAL CLASS'!N104","v":136},{"$f":"'FR-16(7)(v)-3 PROD Demand'!N104+'FR-16(7)(v)-7 TRANS Demand'!N104+'FR-16(7)(v)-11 DIST Demand'!N104","v":0},{"$f":"'FR-16(7)(v)-4 PROD Energy'!N104+'FR-16(7)(v)-8 TRANS Energy'!N104+'FR-16(7)(v)-12 DIST Energy'!N104","v":0},{"$f":"'FR-16(7)(v)-5 PROD Cust'!N104+'FR-16(7)(v)-9 TRANS Cust'!N104+'FR-16(7)(v)-13 DIST Cust'!N104","v":136},136,0]
[48,null,{"$f":"'FR-16(7)(v)-1 Functional'!C105","v":"CUSTOMER ACCOUNTING"},{"$f":"'FR-16(7)(v)-1 Functional'!D105","v":"A308"},null,{"$f":"'FR-16(7)(v)-14 TOTAL CLASS'!N105","v":1586},{"$f":"'FR-16(7)(v)-3 PROD Demand'!N105+'FR-16(7)(v)-7 TRANS Demand'!N105+'FR-16(7)(v)-11 DIST Demand'!N105","v":0},{"$f":"'FR-16(7)(v)-4 PROD Energy'!N105+'FR-16(7)(v)-8 TRANS Energy'!N105+'FR-16(7)(v)-12 DIST Energy'!N105","v":0},{"$f":"'FR-16(7)(v)-5 PROD Cust'!N105+'FR-16(7)(v)-9 TRANS Cust'!N105+'FR-16(7)(v)-13 DIST Cust'!N105","v":1586},1586,0]
[49,null,{"$f":"'FR-16(7)(v)-1 Functional'!C106","v":"CUSTOMER SERVICE & INFORMATION"},{"$f":"'FR-16(7)(v)-1 Functional'!D106","v":"A310"},null,{"$f":"'FR-16(7)(v)-14 TOTAL CLASS'!N106","v":30},{"$f":"'FR-16(7)(v)-3 PROD Demand'!N106+'FR-16(7)(v)-7 TRANS Demand'!N106+'FR-16(7)(v)-11 DIST Demand'!N106","v":0},{"$f":"'FR-16(7)(v)-4 PROD Energy'!N106+'FR-16(7)(v)-8 TRANS Energy'!N106+'FR-16(7)(v)-12 DIST Energy'!N106","v":0},{"$f":"'FR-16(7)(v)-5 PROD Cust'!N106+'FR-16(7)(v)-9 TRANS Cust'!N106+'FR-16(7)(v)-13 DIST Cust'!N106","v":30},30,0]
[50,null,{"$f":"'FR-16(7)(v)-1 Functional'!C107","v":"SALES"},{"$f":"'FR-16(7)(v)-1 Functional'!D107","v":"A312"},null,{"$f":"'FR-16(7)(v)-14 TOTAL CLASS'!N107","v":0},{"$f":"'FR-16(7)(v)-3 PROD Demand'!N107+'FR-16(7)(v)-7 TRANS Demand'!N107+'FR-16(7)(v)-11 DIST Demand'!N107","v":0},{"$f":"'FR-16(7)(v)-4 PROD Energy'!N107+'FR-16(7)(v)-8 TRANS Energy'!N107+'FR-16(7)(v)-12 DIST Energy'!N107","v":0},{"$f":"'FR-16(7)(v)-5 PROD Cust'!N107+'FR-16(7)(v)-9 TRANS Cust'!N107+'FR-16(7)(v)-13 DIST Cust'!N107","v":0},0,0]
[51,null,{"$f":"'FR-16(7)(v)-1 Functional'!C108","v":"ADJUSTMENT"},{"$f":"'FR-16(7)(v)-1 Functional'!D108","v":"A315"},null,{"$f":"'FR-16(7)(v)-14 TOTAL CLASS'!N108","v":0},{"$f":"'FR-16(7)(v)-3 PROD Demand'!N108+'FR-16(7)(v)-7 TRANS Demand'!N108+'FR-16(7)(v)-11 DIST Demand'!N108","v":0},{"$f":"'FR-16(7)(v)-4 PROD Energy'!N108+'FR-16(7)(v)-8 TRANS Energy'!N108+'FR-16(7)(v)-12 DIST Energy'!N108","v":0},{"$f":"'FR-16(7)(v)-5 PROD Cust'!N108+'FR-16(7)(v)-9 TRANS Cust'!N108+'FR-16(7)(v)-13 DIST Cust'!N108","v":0},0,0]
[52,null,{"$f":"'FR-16(7)(v)-1 Functional'!C109","v":"  GEN & INTANG PLANT IN SERVICE"},null,null,{"$f":"SUM(F100:F108)","v":228143},121581,104810,1752,228143,0]
[53]
[54,"COMMON & OTHER PLANT"]
[55,null,{"$f":"'FR-16(7)(v)-1 Functional'!C112","v":"PRODUCTION - DEMAND"},{"$f":"'FR-16(7)(v)-1 Functional'!D112","v":"K201"},null,{"$f":"'FR-16(7)(v)-14 TOTAL CLASS'!N112","v":40748},{"$f":"'FR-16(7)(v)-3 PROD Demand'!N112+'FR-16(7)(v)-7 TRANS Demand'!N112+'FR-16(7)(v)-11 DIST Demand'!N112","v":40748},{"$f":"'FR-16(7)(v)-4 PROD Energy'!N112+'FR-16(7)(v)-8 TRANS Energy'!N112+'FR-16(7)(v)-12 DIST Energy'!N112","v":0},{"$f":"'FR-16(7)(v)-5 PROD Cust'!N112+'FR-16(7)(v)-9 TRANS Cust'!N112+'FR-16(7)(v)-13 DIST Cust'!N112","v":0},{"$f":"SUM(G112:I112)","v":40748},{"$f":"F112-J112","v":0}]
[56,null,{"$f":"'FR-16(7)(v)-1 Functional'!C113","v":"PRODUCTION - ENERGY"},{"$f":"'FR-16(7)(v)-1 Functional'!D113","v":"K301"},null,{"$f":"'FR-16(7)(v)-14 TOTAL CLASS'!N113","v":59320},{"$f":"'FR-16(7)(v)-3 PROD Demand'!N113+'FR-16(7)(v)-7 TRANS Demand'!N113+'FR-16(7)(v)-11 DIST Demand'!N113","v":0},{"$f":"'FR-16(7)(v)-4 PROD Energy'!N113+'FR-16(7)(v)-8 TRANS Energy'!N113+'FR-16(7)(v)-12 DIST Energy'!N113","v":59320},{"$f":"'FR-16(7)(v)-5 PROD Cust'!N113+'FR-16(7)(v)-9 TRANS Cust'!N113+'FR-16(7)(v)-13 DIST Cust'!N113","v":0},{"$f":"SUM(G113:I113)","v":59320},{"$f":"F113-J113","v":0}]
[57,null,{"$f":"'FR-16(7)(v)-1 Functional'!C114","v":"TRANSMISSION"},{"$f":"'FR-16(7)(v)-1 Functional'!D114","v":"K202"},null,{"$f":"'FR-16(7)(v)-14 TOTAL CLASS'!N114","v":6439},{"$f":"'FR-16(7)(v)-3 PROD Demand'!N114+'FR-16(7)(v)-7 TRANS Demand'!N114+'FR-16(7)(v)-11 DIST Demand'!N114","v":6439},{"$f":"'FR-16(7)(v)-4 PROD Energy'!N114+'FR-16(7)(v)-8 TRANS Energy'!N114+'FR-16(7)(v)-12 DIST Energy'!N114","v":0},{"$f":"'FR-16(7)(v)-5 PROD Cust'!N114+'FR-16(7)(v)-9 TRANS Cust'!N114+'FR-16(7)(v)-13 DIST Cust'!N114","v":0},6439,0]
[58,null,{"$f":"'FR-16(7)(v)-1 Functional'!C115","v":"DISTRIBUTION - DEMAND"},{"$f":"'FR-16(7)(v)-1 Functional'!D115","v":"K201"},null,{"$f":"'FR-16(7)(v)-14 TOTAL CLASS'!N115","v":21626},{"$f":"'FR-16(7)(v)-3 PROD Demand'!N115+'FR-16(7)(v)-7 TRANS Demand'!N115+'FR-16(7)(v)-11 DIST Demand'!N115","v":21626},{"$f":"'FR-16(7)(v)-4 PROD Energy'!N115+'FR-16(7)(v)-8 TRANS Energy'!N115+'FR-16(7)(v)-12 DIST Energy'!N115","v":0},{"$f":"'FR-16(7)(v)-5 PROD Cust'!N115+'FR-16(7)(v)-9 TRANS Cust'!N115+'FR-16(7)(v)-13 DIST Cust'!N115","v":0},21626,0]
[59,null,{"$f":"'FR-16(7)(v)-1 Functional'!C116","v":"DISTRIBUTION - CUSTOMER"},{"$f":"'FR-16(7)(v)-1 Functional'!D116","v":"K405"},null,{"$f":"'FR-16(7)(v)-14 TOTAL CLASS'!N116","v":77},{"$f":"'FR-16(7)(v)-3 PROD Demand'!N116+'FR-16(7)(v)-7 TRANS Demand'!N116+'FR-16(7)(v)-11 DIST Demand'!N116","v":0},{"$f":"'FR-16(7)(v)-4 PROD Energy'!N116+'FR-16(7)(v)-8 TRANS Energy'!N116+'FR-16(7)(v)-12 DIST Energy'!N116","v":0},{"$f":"'FR-16(7)(v)-5 PROD Cust'!N116+'FR-16(7)(v)-9 TRANS Cust'!N116+'FR-16(7)(v)-13 DIST Cust'!N116","v":77},77,0]
[60,null,{"$f":"'FR-16(7)(v)-1 Functional'!C117","v":"CUSTOMER ACCOUNTING"},{"$f":"'FR-16(7)(v)-1 Functional'!D117","v":"A308"},null,{"$f":"'FR-16(7)(v)-14 TOTAL CLASS'!N117","v":898},{"$f":"'FR-16(7)(v)-3 PROD Demand'!N117+'FR-16(7)(v)-7 TRANS Demand'!N117+'FR-16(7)(v)-11 DIST Demand'!N117","v":0},{"$f":"'FR-16(7)(v)-4 PROD Energy'!N117+'FR-16(7)(v)-8 TRANS Energy'!N117+'FR-16(7)(v)-12 DIST Energy'!N117","v":0},{"$f":"'FR-16(7)(v)-5 PROD Cust'!N117+'FR-16(7)(v)-9 TRANS Cust'!N117+'FR-16(7)(v)-13 DIST Cust'!N117","v":898},898,0]
[61,null,{"$f":"'FR-16(7)(v)-1 Functional'!C118","v":"CUSTOMER SERVICE & INFORMATION"},{"$f":"'FR-16(7)(v)-1 Functional'!D118","v":"A310"},null,{"$f":"'FR-16(7)(v)-14 TOTAL CLASS'!N118","v":17},{"$f":"'FR-16(7)(v)-3 PROD Demand'!N118+'FR-16(7)(v)-7 TRANS Demand'!N118+'FR-16(7)(v)-11 DIST Demand'!N118","v":0},{"$f":"'FR-16(7)(v)-4 PROD Energy'!N118+'FR-16(7)(v)-8 TRANS Energy'!N118+'FR-16(7)(v)-12 DIST Energy'!N118","v":0},{"$f":"'FR-16(7)(v)-5 PROD Cust'!N118+'FR-16(7)(v)-9 TRANS Cust'!N118+'FR-16(7)(v)-13 DIST Cust'!N118","v":17},17,0]
[62,null,{"$f":"'FR-16(7)(v)-1 Functional'!C119","v":"SALES"},{"$f":"'FR-16(7)(v)-1 Functional'!D119","v":"A312"},null,{"$f":"'FR-16(7)(v)-14 TOTAL CLASS'!N119","v":0},{"$f":"'FR-16(7)(v)-3 PROD Demand'!N119+'FR-16(7)(v)-7 TRANS Demand'!N119+'FR-16(7)(v)-11 DIST Demand'!N119","v":0},{"$f":"'FR-16(7)(v)-4 PROD Energy'!N119+'FR-16(7)(v)-8 TRANS Energy'!N119+'FR-16(7)(v)-12 DIST Energy'!N119","v":0},{"$f":"'FR-16(7)(v)-5 PROD Cust'!N119+'FR-16(7)(v)-9 TRANS Cust'!N119+'FR-16(7)(v)-13 DIST Cust'!N119","v":0},0,0]
[63,null,{"$f":"'FR-16(7)(v)-1 Functional'!C120","v":"ADJUSTMENT"},{"$f":"'FR-16(7)(v)-1 Functional'!D120","v":"A315"},null,{"$f":"'FR-16(7)(v)-14 TOTAL CLASS'!N120","v":0},{"$f":"'FR-16(7)(v)-3 PROD Demand'!N120+'FR-16(7)(v)-7 TRANS Demand'!N120+'FR-16(7)(v)-11 DIST Demand'!N120","v":0},{"$f":"'FR-16(7)(v)-4 PROD Energy'!N120+'FR-16(7)(v)-8 TRANS Energy'!N120+'FR-16(7)(v)-12 DIST Energy'!N120","v":0},{"$f":"'FR-16(7)(v)-5 PROD Cust'!N120+'FR-16(7)(v)-9 TRANS Cust'!N120+'FR-16(7)(v)-13 DIST Cust'!N120","v":0},0,0]
[64,null,{"$f":"'FR-16(7)(v)-1 Functional'!C121","v":"  COMMON & OTHER PLANT IN SERVICE"},null,null,{"$f":"SUM(F112:F120)","v":129125},68813,59320,992,129125,0]
[65]
[66,"GROSS ELECTRIC PLANT IN SERVICE",null,null,null,{"$f":"F97+F109+F121","v":7890667},7700075,164130,26462,7890667,0]
[]
[{"$f":"co_name","v":"DUKE ENERGY KENTUCKY, INC."},null,null,null,null,null,null,null,null,{"$f":"J1","v":"FR-16(7)(v)-22"}]
[{"$f":"$A$2","v":"DISTR. PRIMARY CLASSIFIED - ELECTRIC COST OF SERVICE"},null,null,null,null,null,null,null,null,{"$f":"J2","v":"WITNESS RESPONSIBLE:"}]
[{"$f":"case_name","v":"CASE NO: 2019-00271"},null,null,null,null,null,null,null,null,{"$f":"Witness","v":"JAMES E. ZIOLKOWSKI"}]
[{"$f":"data_filing","v":"DATA: 12 MONTHS ACTUAL  & 0 MONTHS ESTIMATED"},null,null,null,null,null,null,null,null,{"$f":"\"PAGE \"&Pages2-12&\" OF \"&Pages2","v":"PAGE 3 OF 15"}]
[{"$f":"type","v":"TYPE OF FILING: \"X\" ORIGINAL   UPDATED    REVISED  "}]
[]
[]
["LINE",null,null,null,null,"TOTAL","CLASSIFIED",null,null,"TOTAL","ALL"]
["NO.","DEPRECIATION RESERVE",null,"ALLO",null,{"$f":"$F$9","v":"DISTR. PRIMARY"},{"$f":"G9","v":"DEMAND"},"ENERGY","CUSTOMER","AT ISSUE","OTHER"]
[null,null,"Schedule 3",null,null,null,3,4,5]
[1,"PRODUCTION PLANT"]
[2,null,{"$f":"'FR-16(7)(v)-1 Functional'!C136","v":"PRODUCTION STEAM"},{"$f":"'FR-16(7)(v)-1 Functional'!D136","v":"K201"},null,{"$f":"'FR-16(7)(v)-14 TOTAL CLASS'!N136","v":1729001},{"$f":"'FR-16(7)(v)-3 PROD Demand'!N136+'FR-16(7)(v)-7 TRANS Demand'!N136+'FR-16(7)(v)-11 DIST Demand'!N136","v":1729001},{"$f":"'FR-16(7)(v)-4 PROD Energy'!N136+'FR-16(7)(v)-8 TRANS Energy'!N136+'FR-16(7)(v)-12 DIST Energy'!N136","v":0},{"$f":"'FR-16(7)(v)-5 PROD Cust'!N136+'FR-16(7)(v)-9 TRANS Cust'!N136+'FR-16(7)(v)-13 DIST Cust'!N136","v":0},{"$f":"SUM(G136:I136)","v":1729001},{"$f":"F136-J136","v":0}]
[3,null,{"$f":"'FR-16(7)(v)-1 Functional'!C137","v":"PRODUCTION OTHER"},{"$f":"'FR-16(7)(v)-1 Functional'!D137","v":"K201"},null,{"$f":"'FR-16(7)(v)-14 TOTAL CLASS'!N137","v":793996},{"$f":"'FR-16(7)(v)-3 PROD Demand'!N137+'FR-16(7)(v)-7 TRANS Demand'!N137+'FR-16(7)(v)-11 DIST Demand'!N137","v":793996},{"$f":"'FR-16(7)(v)-4 PROD Energy'!N137+'FR-16(7)(v)-8 TRANS Energy'!N137+'FR-16(7)(v)-12 DIST Energy'!N137","v":0},{"$f":"'FR-16(7)(v)-5 PROD Cust'!N137+'FR-16(7)(v)-9 TRANS Cust'!N137+'FR-16(7)(v)-13 DIST Cust'!N137","v":0},{"$f":"SUM(G137:I137)","v":793996},{"$f":"F137-J137","v":0}]
[4,null,{"$f":"'FR-16(7)(v)-1 Functional'!C138","v":"ADJUSTMENT"},{"$f":"'FR-16(7)(v)-1 Functional'!D138","v":"K201"},null,{"$f":"'FR-16(7)(v)-14 TOTAL CLASS'!N138","v":6695},{"$f":"'FR-16(7)(v)-3 PROD Demand'!N138+'FR-16(7)(v)-7 TRANS Demand'!N138+'FR-16(7)(v)-11 DIST Demand'!N138","v":6695},{"$f":"'FR-16(7)(v)-4 PROD Energy'!N138+'FR-16(7)(v)-8 TRANS Energy'!N138+'FR-16(7)(v)-12 DIST Energy'!N138","v":0},{"$f":"'FR-16(7)(v)-5 PROD Cust'!N138+'FR-16(7)(v)-9 TRANS Cust'!N138+'FR-16(7)(v)-13 DIST Cust'!N138","v":0},{"$f":"SUM(G138:I138)","v":6695},{"$f":"F138-J138","v":0}]
[5,null,{"$f":"'FR-16(7)(v)-1 Functional'!C139","v":"  TOTAL PROD DEPREC RESERVE"},null,null,{"$f":"SUM(F136:F138)","v":2529692},2529692,0,0,2529692,0]
[6]
[7,"TRANSMISSION PLANT"]
[8,null,{"$f":"'FR-16(7)(v)-1 Functional'!C142","v":"MAIN STEP-UP TRANSFORMERS"},{"$f":"'FR-16(7)(v)-1 Functional'!D142","v":"K202"},null,{"$f":"'FR-16(7)(v)-14 TOTAL CLASS'!N142","v":0},{"$f":"'FR-16(7)(v)-3 PROD Demand'!N142+'FR-16(7)(v)-7 TRANS Demand'!N142+'FR-16(7)(v)-11 DIST Demand'!N142","v":0},{"$f":"'FR-16(7)(v)-4 PROD Energy'!N142+'FR-16(7)(v)-8 TRANS Energy'!N142+'FR-16(7)(v)-12 DIST Energy'!N142","v":0},{"$f":"'FR-16(7)(v)-5 PROD Cust'!N142+'FR-16(7)(v)-9 TRANS Cust'!N142+'FR-16(7)(v)-13 DIST Cust'!N142","v":0},{"$f":"SUM(G142:I142)","v":0},{"$f":"F142-J142","v":0}]
[9,null,{"$f":"'FR-16(7)(v)-1 Functional'!C143","v":"OTHER TRANSMISSION"},{"$f":"'FR-16(7)(v)-1 Functional'!D143","v":"K202"},null,{"$f":"'FR-16(7)(v)-14 TOTAL CLASS'!N143","v":86023},{"$f":"'FR-16(7)(v)-3 PROD Demand'!N143+'FR-16(7)(v)-7 TRANS Demand'!N143+'FR-16(7)(v)-11 DIST Demand'!N143","v":86023},{"$f":"'FR-16(7)(v)-4 PROD Energy'!N143+'FR-16(7)(v)-8 TRANS Energy'!N143+'FR-16(7)(v)-12 DIST Energy'!N143","v":0},{"$f":"'FR-16(7)(v)-5 PROD Cust'!N143+'FR-16(7)(v)-9 TRANS Cust'!N143+'FR-16(7)(v)-13 DIST Cust'!N143","v":0},{"$f":"SUM(G143:I143)","v":86023},{"$f":"F143-J143","v":0}]
[10,null,{"$f":"'FR-16(7)(v)-1 Functional'!C144","v":"ADJUSTMENT"},{"$f":"'FR-16(7)(v)-1 Functional'!D144","v":"K202"},null,{"$f":"'FR-16(7)(v)-14 TOTAL CLASS'!N144","v":-302},{"$f":"'FR-16(7)(v)-3 PROD Demand'!N144+'FR-16(7)(v)-7 TRANS Demand'!N144+'FR-16(7)(v)-11 DIST Demand'!N144","v":-302},{"$f":"'FR-16(7)(v)-4 PROD Energy'!N144+'FR-16(7)(v)-8 TRANS Energy'!N144+'FR-16(7)(v)-12 DIST Energy'!N144","v":0},{"$f":"'FR-16(7)(v)-5 PROD Cust'!N144+'FR-16(7)(v)-9 TRANS Cust'!N144+'FR-16(7)(v)-13 DIST Cust'!N144","v":0},{"$f":"SUM(G144:I144)","v":-302},{"$f":"F144-J144","v":0}]
[11,null,{"$f":"'FR-16(7)(v)-1 Functional'!C145","v":"  TOTAL TRANS DEPREC RESERVE"},null,null,{"$f":"SUM(F142:F144)","v":85721},85721,0,0,85721,0]
[12]
[13,null,{"$f":"'FR-16(7)(v)-1 Functional'!C147","v":"TOTAL PROD & TRANS DEPREC RESERVE"},null,null,{"$f":"F145+F139","v":2615413},{"$f":"G145+G139","v":2615413},{"$f":"H145+H139","v":0},{"$f":"I145+I139","v":0},{"$f":"J145+J139","v":2615413},{"$f":"F147-J147","v":0}]
[14]
[15,"DISTRIBUTION PLANT"]
[16,null,{"$f":"'FR-16(7)(v)-1 Functional'!C150","v":"SUBSTATIONS"},{"$f":"'FR-16(7)(v)-1 Functional'!D150","v":"K215"},null,{"$f":"'FR-16(7)(v)-14 TOTAL CLASS'!N150","v":86504},{"$f":"'FR-16(7)(v)-3 PROD Demand'!N150+'FR-16(7)(v)-7 TRANS Demand'!N150+'FR-16(7)(v)-11 DIST Demand'!N150","v":86504},{"$f":"'FR-16(7)(v)-4 PROD Energy'!N150+'FR-16(7)(v)-8 TRANS Energy'!N150+'FR-16(7)(v)-12 DIST Energy'!N150","v":0},{"$f":"'FR-16(7)(v)-5 PROD Cust'!N150+'FR-16(7)(v)-9 TRANS Cust'!N150+'FR-16(7)(v)-13 DIST Cust'!N150","v":0},{"$f":"SUM(G150:I150)","v":86504},{"$f":"F150-J150","v":0}]
[17,null,{"$f":"'FR-16(7)(v)-1 Functional'!C151","v":"POLES, TOWERS  & FIXTURES - PRIMARY - DEMAND"},{"$f":"'FR-16(7)(v)-1 Functional'!D151","v":"K205"},null,{"$f":"'FR-16(7)(v)-14 TOTAL CLASS'!N151","v":70684},{"$f":"'FR-16(7)(v)-3 PROD Demand'!N151+'FR-16(7)(v)-7 TRANS Demand'!N151+'FR-16(7)(v)-11 DIST Demand'!N151","v":70684},{"$f":"'FR-16(7)(v)-4 PROD Energy'!N151+'FR-16(7)(v)-8 TRANS Energy'!N151+'FR-16(7)(v)-12 DIST Energy'!N151","v":0},{"$f":"'FR-16(7)(v)-5 PROD Cust'!N151+'FR-16(7)(v)-9 TRANS Cust'!N151+'FR-16(7)(v)-13 DIST Cust'!N151","v":0},{"$f":"SUM(G151:I151)","v":70684},{"$f":"F151-J151","v":0}]
[18,null,{"$f":"'FR-16(7)(v)-1 Functional'!C152","v":"POLES, TOWERS  & FIXTURES - PRIMARY - CUSTOMER"},{"$f":"'FR-16(7)(v)-1 Functional'!D152","v":"K405"},null,{"$f":"'FR-16(7)(v)-14 TOTAL CLASS'!N152","v":484},{"$f":"'FR-16(7)(v)-3 PROD Demand'!N152+'FR-16(7)(v)-7 TRANS Demand'!N152+'FR-16(7)(v)-11 DIST Demand'!N152","v":0},{"$f":"'FR-16(7)(v)-4 PROD Energy'!N152+'FR-16(7)(v)-8 TRANS Energy'!N152+'FR-16(7)(v)-12 DIST Energy'!N152","v":0},{"$f":"'FR-16(7)(v)-5 PROD Cust'!N152+'FR-16(7)(v)-9 TRANS Cust'!N152+'FR-16(7)(v)-13 DIST Cust'!N152","v":484},{"$f":"SUM(G152:I152)","v":484},{"$f":"F152-J152","v":0}]
[19,null,{"$f":"'FR-16(7)(v)-1 Functional'!C153","v":"POLES, TOWERS  & FIXTURES - SECONDARY - DEMAND"},{"$f":"'FR-16(7)(v)-1 Functional'!D153","v":"K206"},null,{"$f":"'FR-16(7)(v)-14 TOTAL CLASS'!N153","v":27032},{"$f":"'FR-16(7)(v)-3 PROD Demand'!N153+'FR-16(7)(v)-7 TRANS Demand'!N153+'FR-16(7)(v)-11 DIST Demand'!N153","v":27032},{"$f":"'FR-16(7)(v)-4 PROD Energy'!N153+'FR-16(7)(v)-8 TRANS Energy'!N153+'FR-16(7)(v)-12 DIST Energy'!N153","v":0},{"$f":"'FR-16(7)(v)-5 PROD Cust'!N153+'FR-16(7)(v)-9 TRANS Cust'!N153+'FR-16(7)(v)-13 DIST Cust'!N153","v":0},27032,0]
[20,null,{"$f":"'FR-16(7)(v)-1 Functional'!C154","v":"POLES, TOWERS  & FIXTURES - SECONDARY - CUSTOMER"},{"$f":"'FR-16(7)(v)-1 Functional'!D154","v":"K405"},null,{"$f":"'FR-16(7)(v)-14 TOTAL CLASS'!N154","v":109},{"$f":"'FR-16(7)(v)-3 PROD Demand'!N154+'FR-16(7)(v)-7 TRANS Demand'!N154+'FR-16(7)(v)-11 DIST Demand'!N154","v":0},{"$f":"'FR-16(7)(v)-4 PROD Energy'!N154+'FR-16(7)(v)-8 TRANS Energy'!N154+'FR-16(7)(v)-12 DIST Energy'!N154","v":0},{"$f":"'FR-16(7)(v)-5 PROD Cust'!N154+'FR-16(7)(v)-9 TRANS Cust'!N154+'FR-16(7)(v)-13 DIST Cust'!N154","v":109},109,0]
[21,null,{"$f":"'FR-16(7)(v)-1 Functional'!C155","v":"CONDUCTORS - OVERHEAD / PRIMARY - DEMAND"},{"$f":"'FR-16(7)(v)-1 Functional'!D155","v":"K205"},null,{"$f":"'FR-16(7)(v)-14 TOTAL CLASS'!N155","v":104975},{"$f":"'FR-16(7)(v)-3 PROD Demand'!N155+'FR-16(7)(v)-7 TRANS Demand'!N155+'FR-16(7)(v)-11 DIST Demand'!N155","v":104975},{"$f":"'FR-16(7)(v)-4 PROD Energy'!N155+'FR-16(7)(v)-8 TRANS Energy'!N155+'FR-16(7)(v)-12 DIST Energy'!N155","v":0},{"$f":"'FR-16(7)(v)-5 PROD Cust'!N155+'FR-16(7)(v)-9 TRANS Cust'!N155+'FR-16(7)(v)-13 DIST Cust'!N155","v":0},104975,0]
[22,null,{"$f":"'FR-16(7)(v)-1 Functional'!C156","v":"CONDUCTORS - OVERHEAD / PRIMARY - CUSTOMER"},{"$f":"'FR-16(7)(v)-1 Functional'!D156","v":"K405"},null,{"$f":"'FR-16(7)(v)-14 TOTAL CLASS'!N156","v":343},{"$f":"'FR-16(7)(v)-3 PROD Demand'!N156+'FR-16(7)(v)-7 TRANS Demand'!N156+'FR-16(7)(v)-11 DIST Demand'!N156","v":0},{"$f":"'FR-16(7)(v)-4 PROD Energy'!N156+'FR-16(7)(v)-8 TRANS Energy'!N156+'FR-16(7)(v)-12 DIST Energy'!N156","v":0},{"$f":"'FR-16(7)(v)-5 PROD Cust'!N156+'FR-16(7)(v)-9 TRANS Cust'!N156+'FR-16(7)(v)-13 DIST Cust'!N156","v":343},343,0]
[23,null,{"$f":"'FR-16(7)(v)-1 Functional'!C157","v":"CONDUCTORS - OVERHEAD / SECONDARY - DEMAND"},{"$f":"'FR-16(7)(v)-1 Functional'!D157","v":"K206"},null,{"$f":"'FR-16(7)(v)-14 TOTAL CLASS'!N157","v":42745},{"$f":"'FR-16(7)(v)-3 PROD Demand'!N157+'FR-16(7)(v)-7 TRANS Demand'!N157+'FR-16(7)(v)-11 DIST Demand'!N157","v":42745},{"$f":"'FR-16(7)(v)-4 PROD Energy'!N157+'FR-16(7)(v)-8 TRANS Energy'!N157+'FR-16(7)(v)-12 DIST Energy'!N157","v":0},{"$f":"'FR-16(7)(v)-5 PROD Cust'!N157+'FR-16(7)(v)-9 TRANS Cust'!N157+'FR-16(7)(v)-13 DIST Cust'!N157","v":0},42745,0]
[24,null,{"$f":"'FR-16(7)(v)-1 Functional'!C158","v":"CONDUCTORS - OVERHEAD / SECONDARY - CUSTOMER"},{"$f":"'FR-16(7)(v)-1 Functional'!D158","v":"K405"},null,{"$f":"'FR-16(7)(v)-14 TOTAL CLASS'!N158","v":142},{"$f":"'FR-16(7)(v)-3 PROD Demand'!N158+'FR-16(7)(v)-7 TRANS Demand'!N158+'FR-16(7)(v)-11 DIST Demand'!N158","v":0},{"$f":"'FR-16(7)(v)-4 PROD Energy'!N158+'FR-16(7)(v)-8 TRANS Energy'!N158+'FR-16(7)(v)-12 DIST Energy'!N158","v":0},{"$f":"'FR-16(7)(v)-5 PROD Cust'!N158+'FR-16(7)(v)-9 TRANS Cust'!N158+'FR-16(7)(v)-13 DIST Cust'!N158","v":142},142,0]
[25,null,{"$f":"'FR-16(7)(v)-1 Functional'!C159","v":"CONDUCTORS - UNDERGROUND / PRIMARY - DEMAND"},{"$f":"'FR-16(7)(v)-1 Functional'!D159","v":"K205"},null,{"$f":"'FR-16(7)(v)-14 TOTAL CLASS'!N159","v":77718},{"$f":"'FR-16(7)(v)-3 PROD Demand'!N159+'FR-16(7)(v)-7 TRANS Demand'!N159+'FR-16(7)(v)-11 DIST Demand'!N159","v":77718},{"$f":"'FR-16(7)(v)-4 PROD Energy'!N159+'FR-16(7)(v)-8 TRANS Energy'!N159+'FR-16(7)(v)-12 DIST Energy'!N159","v":0},{"$f":"'FR-16(7)(v)-5 PROD Cust'!N159+'FR-16(7)(v)-9 TRANS Cust'!N159+'FR-16(7)(v)-13 DIST Cust'!N159","v":0},77718,0]
[26,null,{"$f":"'FR-16(7)(v)-1 Functional'!C160","v":"CONDUCTORS - UNDERGROUND / PRIMARY - CUSTOMER"},{"$f":"'FR-16(7)(v)-1 Functional'!D160","v":"K405"},null,{"$f":"'FR-16(7)(v)-14 TOTAL CLASS'!N160","v":361},{"$f":"'FR-16(7)(v)-3 PROD Demand'!N160+'FR-16(7)(v)-7 TRANS Demand'!N160+'FR-16(7)(v)-11 DIST Demand'!N160","v":0},{"$f":"'FR-16(7)(v)-4 PROD Energy'!N160+'FR-16(7)(v)-8 TRANS Energy'!N160+'FR-16(7)(v)-12 DIST Energy'!N160","v":0},{"$f":"'FR-16(7)(v)-5 PROD Cust'!N160+'FR-16(7)(v)-9 TRANS Cust'!N160+'FR-16(7)(v)-13 DIST Cust'!N160","v":361},361,0]
[27,null,{"$f":"'FR-16(7)(v)-1 Functional'!C161","v":"CONDUCTORS - UNDERGROUND / SECONDARY - DEMAND"},{"$f":"'FR-16(7)(v)-1 Functional'!D161","v":"K206"},null,{"$f":"'FR-16(7)(v)-14 TOTAL CLASS'!N161","v":13314},{"$f":"'FR-16(7)(v)-3 PROD Demand'!N161+'FR-16(7)(v)-7 TRANS Demand'!N161+'FR-16(7)(v)-11 DIST Demand'!N161","v":13314},{"$f":"'FR-16(7)(v)-4 PROD Energy'!N161+'FR-16(7)(v)-8 TRANS Energy'!N161+'FR-16(7)(v)-12 DIST Energy'!N161","v":0},{"$f":"'FR-16(7)(v)-5 PROD Cust'!N161+'FR-16(7)(v)-9 TRANS Cust'!N161+'FR-16(7)(v)-13 DIST Cust'!N161","v":0},13314,0]
[28,null,{"$f":"'FR-16(7)(v)-1 Functional'!C162","v":"CONDUCTORS - UNDERGROUND / SECONDARY - CUSTOMER"},{"$f":"'FR-16(7)(v)-1 Functional'!D162","v":"K405"},null,{"$f":"'FR-16(7)(v)-14 TOTAL CLASS'!N162","v":113},{"$f":"'FR-16(7)(v)-3 PROD Demand'!N162+'FR-16(7)(v)-7 TRANS Demand'!N162+'FR-16(7)(v)-11 DIST Demand'!N162","v":0},{"$f":"'FR-16(7)(v)-4 PROD Energy'!N162+'FR-16(7)(v)-8 TRANS Energy'!N162+'FR-16(7)(v)-12 DIST Energy'!N162","v":0},{"$f":"'FR-16(7)(v)-5 PROD Cust'!N162+'FR-16(7)(v)-9 TRANS Cust'!N162+'FR-16(7)(v)-13 DIST Cust'!N162","v":113},113,0]
[29,null,{"$f":"'FR-16(7)(v)-1 Functional'!C163","v":"TRANSFORMERS DEMAND RELATED"},{"$f":"'FR-16(7)(v)-1 Functional'!D163","v":"K215"},null,{"$f":"'FR-16(7)(v)-14 TOTAL CLASS'!N163","v":95969},{"$f":"'FR-16(7)(v)-3 PROD Demand'!N163+'FR-16(7)(v)-7 TRANS Demand'!N163+'FR-16(7)(v)-11 DIST Demand'!N163","v":95969},{"$f":"'FR-16(7)(v)-4 PROD Energy'!N163+'FR-16(7)(v)-8 TRANS Energy'!N163+'FR-16(7)(v)-12 DIST Energy'!N163","v":0},{"$f":"'FR-16(7)(v)-5 PROD Cust'!N163+'FR-16(7)(v)-9 TRANS Cust'!N163+'FR-16(7)(v)-13 DIST Cust'!N163","v":0},{"$f":"SUM(G163:I163)","v":95969},{"$f":"F163-J163","v":0}]
[30,null,{"$f":"'FR-16(7)(v)-1 Functional'!C164","v":"TRANSFORMERS CUSTOMER RELATED"},{"$f":"'FR-16(7)(v)-1 Functional'!D164","v":"K405"},null,{"$f":"'FR-16(7)(v)-14 TOTAL CLASS'!N164","v":466},{"$f":"'FR-16(7)(v)-3 PROD Demand'!N164+'FR-16(7)(v)-7 TRANS Demand'!N164+'FR-16(7)(v)-11 DIST Demand'!N164","v":0},{"$f":"'FR-16(7)(v)-4 PROD Energy'!N164+'FR-16(7)(v)-8 TRANS Energy'!N164+'FR-16(7)(v)-12 DIST Energy'!N164","v":0},{"$f":"'FR-16(7)(v)-5 PROD Cust'!N164+'FR-16(7)(v)-9 TRANS Cust'!N164+'FR-16(7)(v)-13 DIST Cust'!N164","v":466},466,0]
[31,null,{"$f":"'FR-16(7)(v)-1 Functional'!C165","v":"SERVICES"},{"$f":"'FR-16(7)(v)-1 Functional'!D165","v":"K217"},null,{"$f":"'FR-16(7)(v)-14 TOTAL CLASS'!N165","v":4897},{"$f":"'FR-16(7)(v)-3 PROD Demand'!N165+'FR-16(7)(v)-7 TRANS Demand'!N165+'FR-16(7)(v)-11 DIST Demand'!N165","v":0},{"$f":"'FR-16(7)(v)-4 PROD Energy'!N165+'FR-16(7)(v)-8 TRANS Energy'!N165+'FR-16(7)(v)-12 DIST Energy'!N165","v":0},{"$f":"'FR-16(7)(v)-5 PROD Cust'!N165+'FR-16(7)(v)-9 TRANS Cust'!N165+'FR-16(7)(v)-13 DIST Cust'!N165","v":4897},4897,0]
[32,null,{"$f":"'FR-16(7)(v)-1 Functional'!C166","v":"METERS"},{"$f":"'FR-16(7)(v)-1 Functional'!D166","v":"K407"},null,{"$f":"'FR-16(7)(v)-14 TOTAL CLASS'!N166","v":1192},{"$f":"'FR-16(7)(v)-3 PROD Demand'!N166+'FR-16(7)(v)-7 TRANS Demand'!N166+'FR-16(7)(v)-11 DIST Demand'!N166","v":0},{"$f":"'FR-16(7)(v)-4 PROD Energy'!N166+'FR-16(7)(v)-8 TRANS Energy'!N166+'FR-16(7)(v)-12 DIST Energy'!N166","v":0},{"$f":"'FR-16(7)(v)-5 PROD Cust'!N166+'FR-16(7)(v)-9 TRANS Cust'!N166+'FR-16(7)(v)-13 DIST Cust'!N166","v":1192},1192,0]
[33,null,{"$f":"'FR-16(7)(v)-1 Functional'!C167","v":"STREET LIGHTS"},{"$f":"'FR-16(7)(v)-1 Functional'!D167","v":"K401"},null,{"$f":"'FR-16(7)(v)-14 TOTAL CLASS'!N167","v":0},{"$f":"'FR-16(7)(v)-3 PROD Demand'!N167+'FR-16(7)(v)-7 TRANS Demand'!N167+'FR-16(7)(v)-11 DIST Demand'!N167","v":0},{"$f":"'FR-16(7)(v)-4 PROD Energy'!N167+'FR-16(7)(v)-8 TRANS Energy'!N167+'FR-16(7)(v)-12 DIST Energy'!N167","v":0},{"$f":"'FR-16(7)(v)-5 PROD Cust'!N167+'FR-16(7)(v)-9 TRANS Cust'!N167+'FR-16(7)(v)-13 DIST Cust'!N167","v":0},0,0]
[34,null,{"$f":"'FR-16(7)(v)-1 Functional'!C168","v":"ADJUSTMENT  "},{"$f":"'FR-16(7)(v)-1 Functional'!D168","v":"K209"},null,{"$f":"'FR-16(7)(v)-14 TOTAL CLASS'!N168","v":1622},{"$f":"'FR-16(7)(v)-3 PROD Demand'!N168+'FR-16(7)(v)-7 TRANS Demand'!N168+'FR-16(7)(v)-11 DIST Demand'!N168","v":1603},{"$f":"'FR-16(7)(v)-4 PROD Energy'!N168+'FR-16(7)(v)-8 TRANS Energy'!N168+'FR-16(7)(v)-12 DIST Energy'!N168","v":0},{"$f":"'FR-16(7)(v)-5 PROD Cust'!N168+'FR-16(7)(v)-9 TRANS Cust'!N168+'FR-16(7)(v)-13 DIST Cust'!N168","v":19},1622,0]
[35,null,{"$f":"'FR-16(7)(v)-1 Functional'!C169","v":"CONSTRUCTION NOT CLASSIFIED"},{"$f":"'FR-16(7)(v)-1 Functional'!D169","v":"K209"},null,{"$f":"'FR-16(7)(v)-14 TOTAL CLASS'!N169","v":5296},{"$f":"'FR-16(7)(v)-3 PROD Demand'!N169+'FR-16(7)(v)-7 TRANS Demand'!N169+'FR-16(7)(v)-11 DIST Demand'!N169","v":5235},{"$f":"'FR-16(7)(v)-4 PROD Energy'!N169+'FR-16(7)(v)-8 TRANS Energy'!N169+'FR-16(7)(v)-12 DIST Energy'!N169","v":0},{"$f":"'FR-16(7)(v)-5 PROD Cust'!N169+'FR-16(7)(v)-9 TRANS Cust'!N169+'FR-16(7)(v)-13 DIST Cust'!N169","v":61},5296,0]
[36,null,{"$f":"'FR-16(7)(v)-1 Functional'!C170","v":"RWIP"},{"$f":"'FR-16(7)(v)-1 Functional'!D170","v":"K215"},null,{"$f":"'FR-16(7)(v)-14 TOTAL CLASS'!N170","v":-80118},{"$f":"'FR-16(7)(v)-3 PROD Demand'!N170+'FR-16(7)(v)-7 TRANS Demand'!N170+'FR-16(7)(v)-11 DIST Demand'!N170","v":-80118},{"$f":"'FR-16(7)(v)-4 PROD Energy'!N170+'FR-16(7)(v)-8 TRANS Energy'!N170+'FR-16(7)(v)-12 DIST Energy'!N170","v":0},{"$f":"'FR-16(7)(v)-5 PROD Cust'!N170+'FR-16(7)(v)-9 TRANS Cust'!N170+'FR-16(7)(v)-13 DIST Cust'!N170","v":0},{"$f":"SUM(G170:I170)","v":-80118},{"$f":"F170-J170","v":0}]
[37,null,{"$f":"'FR-16(7)(v)-1 Functional'!C171","v":"  TOTAL DIST DEPREC RESERVE"},null,null,{"$f":"SUM(F149:F170)","v":453848},{"$f":"SUM(G149:G170)","v":445661},0,8187,453848,0]
[38]
[39,null,"TOTAL TRANS & DIST DEPREC RESERVE",null,null,{"$f":"F171+F145","v":539569},{"$f":"G171+G145","v":531382},{"$f":"H171+H145","v":0},{"$f":"I171+I145","v":8187},{"$f":"J171+J145","v":539569},{"$f":"F173-J173","v":0}]
[40,null,"TOTAL GROSS PTD PLANT DEPREC RESERVE",null,null,{"$f":"F147+F171","v":3069261},{"$f":"G147+G171","v":3061074},{"$f":"H147+H171","v":0},{"$f":"I147+I171","v":8187},{"$f":"J147+J171","v":3069261},{"$f":"F174-J174","v":0}]
[41]
[42,"GENERAL & INTANGIBLE PLANT"]
[43,null,{"$f":"'FR-16(7)(v)-1 Functional'!C177","v":"PRODUCTION - DEMAND"},{"$f":"'FR-16(7)(v)-1 Functional'!D177","v":"K201"},null,{"$f":"'FR-16(7)(v)-14 TOTAL CLASS'!N177","v":23201},{"$f":"'FR-16(7)(v)-3 PROD Demand'!N177+'FR-16(7)(v)-7 TRANS Demand'!N177+'FR-16(7)(v)-11 DIST Demand'!N177","v":23201},{"$f":"'FR-16(7)(v)-4 PROD Energy'!N177+'FR-16(7)(v)-8 TRANS Energy'!N177+'FR-16(7)(v)-12 DIST Energy'!N177","v":0},{"$f":"'FR-16(7)(v)-5 PROD Cust'!N177+'FR-16(7)(v)-9 TRANS Cust'!N177+'FR-16(7)(v)-13 DIST Cust'!N177","v":0},{"$f":"SUM(G177:I177)","v":23201},{"$f":"F177-J177","v":0}]
[44,null,{"$f":"'FR-16(7)(v)-1 Functional'!C178","v":"PRODUCTION - ENERGY"},{"$f":"'FR-16(7)(v)-1 Functional'!D178","v":"K301"},null,{"$f":"'FR-16(7)(v)-14 TOTAL CLASS'!N178","v":33776},{"$f":"'FR-16(7)(v)-3 PROD Demand'!N178+'FR-16(7)(v)-7 TRANS Demand'!N178+'FR-16(7)(v)-11 DIST Demand'!N178","v":0},{"$f":"'FR-16(7)(v)-4 PROD Energy'!N178+'FR-16(7)(v)-8 TRANS Energy'!N178+'FR-16(7)(v)-12 DIST Energy'!N178","v":33776},{"$f":"'FR-16(7)(v)-5 PROD Cust'!N178+'FR-16(7)(v)-9 TRANS Cust'!N178+'FR-16(7)(v)-13 DIST Cust'!N178","v":0},{"$f":"SUM(G178:I178)","v":33776},{"$f":"F178-J178","v":0}]
[45,null,{"$f":"'FR-16(7)(v)-1 Functional'!C179","v":"TRANSMISSION"},{"$f":"'FR-16(7)(v)-1 Functional'!D179","v":"K202"},null,{"$f":"'FR-16(7)(v)-14 TOTAL CLASS'!N179","v":3666},{"$f":"'FR-16(7)(v)-3 PROD Demand'!N179+'FR-16(7)(v)-7 TRANS Demand'!N179+'FR-16(7)(v)-11 DIST Demand'!N179","v":3666},{"$f":"'FR-16(7)(v)-4 PROD Energy'!N179+'FR-16(7)(v)-8 TRANS Energy'!N179+'FR-16(7)(v)-12 DIST Energy'!N179","v":0},{"$f":"'FR-16(7)(v)-5 PROD Cust'!N179+'FR-16(7)(v)-9 TRANS Cust'!N179+'FR-16(7)(v)-13 DIST Cust'!N179","v":0},3666,0]
[46,null,{"$f":"'FR-16(7)(v)-1 Functional'!C180","v":"DISTRIBUTION - DEMAND"},{"$f":"'FR-16(7)(v)-1 Functional'!D180","v":"K201"},null,{"$f":"'FR-16(7)(v)-14 TOTAL CLASS'!N180","v":12314},{"$f":"'FR-16(7)(v)-3 PROD Demand'!N180+'FR-16(7)(v)-7 TRANS Demand'!N180+'FR-16(7)(v)-11 DIST Demand'!N180","v":12314},{"$f":"'FR-16(7)(v)-4 PROD Energy'!N180+'FR-16(7)(v)-8 TRANS Energy'!N180+'FR-16(7)(v)-12 DIST Energy'!N180","v":0},{"$f":"'FR-16(7)(v)-5 PROD Cust'!N180+'FR-16(7)(v)-9 TRANS Cust'!N180+'FR-16(7)(v)-13 DIST Cust'!N180","v":0},12314,0]
[47,null,{"$f":"'FR-16(7)(v)-1 Functional'!C181","v":"DISTRIBUTION - CUSTOMER"},{"$f":"'FR-16(7)(v)-1 Functional'!D181","v":"K405"},null,{"$f":"'FR-16(7)(v)-14 TOTAL CLASS'!N181","v":44},{"$f":"'FR-16(7)(v)-3 PROD Demand'!N181+'FR-16(7)(v)-7 TRANS Demand'!N181+'FR-16(7)(v)-11 DIST Demand'!N181","v":0},{"$f":"'FR-16(7)(v)-4 PROD Energy'!N181+'FR-16(7)(v)-8 TRANS Energy'!N181+'FR-16(7)(v)-12 DIST Energy'!N181","v":0},{"$f":"'FR-16(7)(v)-5 PROD Cust'!N181+'FR-16(7)(v)-9 TRANS Cust'!N181+'FR-16(7)(v)-13 DIST Cust'!N181","v":44},44,0]
[48,null,{"$f":"'FR-16(7)(v)-1 Functional'!C182","v":"CUSTOMER ACCOUNTING"},{"$f":"'FR-16(7)(v)-1 Functional'!D182","v":"A308"},null,{"$f":"'FR-16(7)(v)-14 TOTAL CLASS'!N182","v":511},{"$f":"'FR-16(7)(v)-3 PROD Demand'!N182+'FR-16(7)(v)-7 TRANS Demand'!N182+'FR-16(7)(v)-11 DIST Demand'!N182","v":0},{"$f":"'FR-16(7)(v)-4 PROD Energy'!N182+'FR-16(7)(v)-8 TRANS Energy'!N182+'FR-16(7)(v)-12 DIST Energy'!N182","v":0},{"$f":"'FR-16(7)(v)-5 PROD Cust'!N182+'FR-16(7)(v)-9 TRANS Cust'!N182+'FR-16(7)(v)-13 DIST Cust'!N182","v":511},511,0]
[49,null,{"$f":"'FR-16(7)(v)-1 Functional'!C183","v":"CUSTOMER SERVICE & INFORMATION"},{"$f":"'FR-16(7)(v)-1 Functional'!D183","v":"A310"},null,{"$f":"'FR-16(7)(v)-14 TOTAL CLASS'!N183","v":10},{"$f":"'FR-16(7)(v)-3 PROD Demand'!N183+'FR-16(7)(v)-7 TRANS Demand'!N183+'FR-16(7)(v)-11 DIST Demand'!N183","v":0},{"$f":"'FR-16(7)(v)-4 PROD Energy'!N183+'FR-16(7)(v)-8 TRANS Energy'!N183+'FR-16(7)(v)-12 DIST Energy'!N183","v":0},{"$f":"'FR-16(7)(v)-5 PROD Cust'!N183+'FR-16(7)(v)-9 TRANS Cust'!N183+'FR-16(7)(v)-13 DIST Cust'!N183","v":10},10,0]
[50,null,{"$f":"'FR-16(7)(v)-1 Functional'!C184","v":"SALES"},{"$f":"'FR-16(7)(v)-1 Functional'!D184","v":"A312"},null,{"$f":"'FR-16(7)(v)-14 TOTAL CLASS'!N184","v":0},{"$f":"'FR-16(7)(v)-3 PROD Demand'!N184+'FR-16(7)(v)-7 TRANS Demand'!N184+'FR-16(7)(v)-11 DIST Demand'!N184","v":0},{"$f":"'FR-16(7)(v)-4 PROD Energy'!N184+'FR-16(7)(v)-8 TRANS Energy'!N184+'FR-16(7)(v)-12 DIST Energy'!N184","v":0},{"$f":"'FR-16(7)(v)-5 PROD Cust'!N184+'FR-16(7)(v)-9 TRANS Cust'!N184+'FR-16(7)(v)-13 DIST Cust'!N184","v":0},0,0]
[51,null,{"$f":"'FR-16(7)(v)-1 Functional'!C185","v":"ADJUSTMENT"},{"$f":"'FR-16(7)(v)-1 Functional'!D185","v":"A315"},null,{"$f":"'FR-16(7)(v)-14 TOTAL CLASS'!N185","v":692},{"$f":"'FR-16(7)(v)-3 PROD Demand'!N185+'FR-16(7)(v)-7 TRANS Demand'!N185+'FR-16(7)(v)-11 DIST Demand'!N185","v":78},{"$f":"'FR-16(7)(v)-4 PROD Energy'!N185+'FR-16(7)(v)-8 TRANS Energy'!N185+'FR-16(7)(v)-12 DIST Energy'!N185","v":604},{"$f":"'FR-16(7)(v)-5 PROD Cust'!N185+'FR-16(7)(v)-9 TRANS Cust'!N185+'FR-16(7)(v)-13 DIST Cust'!N185","v":10},692,0]
[52,null,{"$f":"'FR-16(7)(v)-1 Functional'!C186","v":"  GENERAL & INTANG PLANT"},null,null,{"$f":"SUM(F176:F185)","v":74214},39259,34380,575,74214,0]
[53]
[54,"COMMON & OTHER PLANT"]
[55,null,{"$f":"'FR-16(7)(v)-1 Functional'!C189","v":"PRODUCTION - DEMAND"},{"$f":"'FR-16(7)(v)-1 Functional'!D189","v":"K201"},null,{"$f":"'FR-16(7)(v)-14 TOTAL CLASS'!N189","v":31349},{"$f":"'FR-16(7)(v)-3 PROD Demand'!N189+'FR-16(7)(v)-7 TRANS Demand'!N189+'FR-16(7)(v)-11 DIST Demand'!N189","v":31349},{"$f":"'FR-16(7)(v)-4 PROD Energy'!N189+'FR-16(7)(v)-8 TRANS Energy'!N189+'FR-16(7)(v)-12 DIST Energy'!N189","v":0},{"$f":"'FR-16(7)(v)-5 PROD Cust'!N189+'FR-16(7)(v)-9 TRANS Cust'!N189+'FR-16(7)(v)-13 DIST Cust'!N189","v":0},{"$f":"SUM(G189:I189)","v":31349},{"$f":"F189-J189","v":0}]
[56,null,{"$f":"'FR-16(7)(v)-1 Functional'!C190","v":"PRODUCTION - ENERGY"},{"$f":"'FR-16(7)(v)-1 Functional'!D190","v":"K301"},null,{"$f":"'FR-16(7)(v)-14 TOTAL CLASS'!N190","v":45638},{"$f":"'FR-16(7)(v)-3 PROD Demand'!N190+'FR-16(7)(v)-7 TRANS Demand'!N190+'FR-16(7)(v)-11 DIST Demand'!N190","v":0},{"$f":"'FR-16(7)(v)-4 PROD Energy'!N190+'FR-16(7)(v)-8 TRANS Energy'!N190+'FR-16(7)(v)-12 DIST Energy'!N190","v":45638},{"$f":"'FR-16(7)(v)-5 PROD Cust'!N190+'FR-16(7)(v)-9 TRANS Cust'!N190+'FR-16(7)(v)-13 DIST Cust'!N190","v":0},{"$f":"SUM(G190:I190)","v":45638},{"$f":"F190-J190","v":0}]
[57,null,{"$f":"'FR-16(7)(v)-1 Functional'!C191","v":"TRANSMISSION"},{"$f":"'FR-16(7)(v)-1 Functional'!D191","v":"K202"},null,{"$f":"'FR-16(7)(v)-14 TOTAL CLASS'!N191","v":4954},{"$f":"'FR-16(7)(v)-3 PROD Demand'!N191+'FR-16(7)(v)-7 TRANS Demand'!N191+'FR-16(7)(v)-11 DIST Demand'!N191","v":4954},{"$f":"'FR-16(7)(v)-4 PROD Energy'!N191+'FR-16(7)(v)-8 TRANS Energy'!N191+'FR-16(7)(v)-12 DIST Energy'!N191","v":0},{"$f":"'FR-16(7)(v)-5 PROD Cust'!N191+'FR-16(7)(v)-9 TRANS Cust'!N191+'FR-16(7)(v)-13 DIST Cust'!N191","v":0},4954,0]
[58,null,{"$f":"'FR-16(7)(v)-1 Functional'!C192","v":"DISTRIBUTION - DEMAND"},{"$f":"'FR-16(7)(v)-1 Functional'!D192","v":"K201"},null,{"$f":"'FR-16(7)(v)-14 TOTAL CLASS'!N192","v":16638},{"$f":"'FR-16(7)(v)-3 PROD Demand'!N192+'FR-16(7)(v)-7 TRANS Demand'!N192+'FR-16(7)(v)-11 DIST Demand'!N192","v":16638},{"$f":"'FR-16(7)(v)-4 PROD Energy'!N192+'FR-16(7)(v)-8 TRANS Energy'!N192+'FR-16(7)(v)-12 DIST Energy'!N192","v":0},{"$f":"'FR-16(7)(v)-5 PROD Cust'!N192+'FR-16(7)(v)-9 TRANS Cust'!N192+'FR-16(7)(v)-13 DIST Cust'!N192","v":0},16638,0]
[59,null,{"$f":"'FR-16(7)(v)-1 Functional'!C193","v":"DISTRIBUTION - CUSTOMER"},{"$f":"'FR-16(7)(v)-1 Functional'!D193","v":"K405"},null,{"$f":"'FR-16(7)(v)-14 TOTAL CLASS'!N193","v":59},{"$f":"'FR-16(7)(v)-3 PROD Demand'!N193+'FR-16(7)(v)-7 TRANS Demand'!N193+'FR-16(7)(v)-11 DIST Demand'!N193","v":0},{"$f":"'FR-16(7)(v)-4 PROD Energy'!N193+'FR-16(7)(v)-8 TRANS Energy'!N193+'FR-16(7)(v)-12 DIST Energy'!N193","v":0},{"$f":"'FR-16(7)(v)-5 PROD Cust'!N193+'FR-16(7)(v)-9 TRANS Cust'!N193+'FR-16(7)(v)-13 DIST Cust'!N193","v":59},59,0]
[60,null,{"$f":"'FR-16(7)(v)-1 Functional'!C194","v":"CUSTOMER ACCOUNTING"},{"$f":"'FR-16(7)(v)-1 Functional'!D194","v":"A308"},null,{"$f":"'FR-16(7)(v)-14 TOTAL CLASS'!N194","v":691},{"$f":"'FR-16(7)(v)-3 PROD Demand'!N194+'FR-16(7)(v)-7 TRANS Demand'!N194+'FR-16(7)(v)-11 DIST Demand'!N194","v":0},{"$f":"'FR-16(7)(v)-4 PROD Energy'!N194+'FR-16(7)(v)-8 TRANS Energy'!N194+'FR-16(7)(v)-12 DIST Energy'!N194","v":0},{"$f":"'FR-16(7)(v)-5 PROD Cust'!N194+'FR-16(7)(v)-9 TRANS Cust'!N194+'FR-16(7)(v)-13 DIST Cust'!N194","v":691},691,0]
[61,null,{"$f":"'FR-16(7)(v)-1 Functional'!C195","v":"CUSTOMER SERVICE & INFORMATION"},{"$f":"'FR-16(7)(v)-1 Functional'!D195","v":"A310"},null,{"$f":"'FR-16(7)(v)-14 TOTAL CLASS'!N195","v":13},{"$f":"'FR-16(7)(v)-3 PROD Demand'!N195+'FR-16(7)(v)-7 TRANS Demand'!N195+'FR-16(7)(v)-11 DIST Demand'!N195","v":0},{"$f":"'FR-16(7)(v)-4 PROD Energy'!N195+'FR-16(7)(v)-8 TRANS Energy'!N195+'FR-16(7)(v)-12 DIST Energy'!N195","v":0},{"$f":"'FR-16(7)(v)-5 PROD Cust'!N195+'FR-16(7)(v)-9 TRANS Cust'!N195+'FR-16(7)(v)-13 DIST Cust'!N195","v":13},13,0]
[62,null,{"$f":"'FR-16(7)(v)-1 Functional'!C196","v":"SALES"},{"$f":"'FR-16(7)(v)-1 Functional'!D196","v":"A312"},null,{"$f":"'FR-16(7)(v)-14 TOTAL CLASS'!N196","v":0},{"$f":"'FR-16(7)(v)-3 PROD Demand'!N196+'FR-16(7)(v)-7 TRANS Demand'!N196+'FR-16(7)(v)-11 DIST Demand'!N196","v":0},{"$f":"'FR-16(7)(v)-4 PROD Energy'!N196+'FR-16(7)(v)-8 TRANS Energy'!N196+'FR-16(7)(v)-12 DIST Energy'!N196","v":0},{"$f":"'FR-16(7)(v)-5 PROD Cust'!N196+'FR-16(7)(v)-9 TRANS Cust'!N196+'FR-16(7)(v)-13 DIST Cust'!N196","v":0},0,0]
[63,null,{"$f":"'FR-16(7)(v)-1 Functional'!C197","v":"ADJUSTMENT"},{"$f":"'FR-16(7)(v)-1 Functional'!D197","v":"A315"},null,{"$f":"'FR-16(7)(v)-14 TOTAL CLASS'!N197","v":39},{"$f":"'FR-16(7)(v)-3 PROD Demand'!N197+'FR-16(7)(v)-7 TRANS Demand'!N197+'FR-16(7)(v)-11 DIST Demand'!N197","v":4},{"$f":"'FR-16(7)(v)-4 PROD Energy'!N197+'FR-16(7)(v)-8 TRANS Energy'!N197+'FR-16(7)(v)-12 DIST Energy'!N197","v":34},{"$f":"'FR-16(7)(v)-5 PROD Cust'!N197+'FR-16(7)(v)-9 TRANS Cust'!N197+'FR-16(7)(v)-13 DIST Cust'!N197","v":1},39,0]
[64,null,{"$f":"'FR-16(7)(v)-1 Functional'!C198","v":"  COMMON & OTHER PLANT IN SERVICE"},null,null,{"$f":"SUM(F189:F197)","v":99381},{"$f":"SUM(G188:G197)","v":52945},{"$f":"SUM(H188:H197)","v":45672},{"$f":"SUM(I188:I197)","v":764},{"$f":"SUM(J188:J197)","v":99381},{"$f":"SUM(K188:K197)","v":0}]
[65]
[66,"TOTAL DEPRECIATION RESERVE",null,null,null,{"$f":"F198+F186+F171+F145+F139","v":3242856},3153278,80052,9526,3242856,0]
[]
[{"$f":"co_name","v":"DUKE ENERGY KENTUCKY, INC."},null,null,null,null,null,null,null,null,{"$f":"J1","v":"FR-16(7)(v)-22"}]
[{"$f":"$A$2","v":"DISTR. PRIMARY CLASSIFIED - ELECTRIC COST OF SERVICE"},null,null,null,null,null,null,null,null,{"$f":"J2","v":"WITNESS RESPONSIBLE:"}]
[{"$f":"case_name","v":"CASE NO: 2019-00271"},null,null,null,null,null,null,null,null,{"$f":"Witness","v":"JAMES E. ZIOLKOWSKI"}]
[{"$f":"data_filing","v":"DATA: 12 MONTHS ACTUAL  & 0 MONTHS ESTIMATED"},null,null,null,null,null,null,null,null,{"$f":"\"PAGE \"&Pages2-11&\" OF \"&Pages2","v":"PAGE 4 OF 15"}]
[{"$f":"type","v":"TYPE OF FILING: \"X\" ORIGINAL   UPDATED    REVISED  "}]
[]
[]
["LINE",null,null,null,null,"TOTAL","CLASSIFIED",null,null,"TOTAL","ALL"]
["NO.",{"$f":"\"NET ELECTRIC PLANT\"","v":"NET ELECTRIC PLANT"},null,"ALLO",null,{"$f":"$F$9","v":"DISTR. PRIMARY"},{"$f":"G9","v":"DEMAND"},"ENERGY","CUSTOMER","AT ISSUE","OTHER"]
[null,null,"Schedule 4",null,null,null,3,4,5]
[1,"PRODUCTION PLANT"]
[2,null,{"$f":"'FR-16(7)(v)-1 Functional'!C213","v":"PRODUCTION STEAM"},null,null,{"$f":"F59-F136","v":1871317},1871317,0,0,1871317,0]
[3,null,{"$f":"'FR-16(7)(v)-1 Functional'!C214","v":"PRODUCTION OTHER"},null,null,815582,815582,0,0,815582,0]
[4,null,{"$f":"'FR-16(7)(v)-1 Functional'!C215","v":"ADJUSTMENT"},null,null,-6695,-6695,0,0,-6695,0]
[5,null,{"$f":"'FR-16(7)(v)-1 Functional'!C216","v":"  NET PRODUCTION PLANT"},null,null,{"$f":"SUM(F213:F215)","v":2680204},2680204,0,0,2680204,0]
[6]
[7,"TRANSMISSION PLANT"]
[8,null,{"$f":"'FR-16(7)(v)-1 Functional'!C219","v":"MAIN STEP-UP TRANSFORMERS"},null,null,{"$f":"F65-F142","v":0},0,0,0,0,0]
[9,null,{"$f":"'FR-16(7)(v)-1 Functional'!C220","v":"OTHER TRANSMISSION"},null,null,225899,225899,0,0,225899,0]
[10,null,{"$f":"'FR-16(7)(v)-1 Functional'!C221","v":"ADJUSTMENT"},null,null,302,302,0,0,302,0]
[11,null,{"$f":"'FR-16(7)(v)-1 Functional'!C222","v":"    NET TRANSMISSION PLANT"},null,null,{"$f":"SUM(F218:F221)","v":226201},226201,0,0,226201,0]
[12]
[13,"NET PROD & TRANS PLANT",null,null,null,{"$f":"F70-F147","v":2906405},2906405,0,0,2906405,0]
[14]
[15,"DISTRIBUTION PLANT"]
[16,null,{"$f":"'FR-16(7)(v)-1 Functional'!C227","v":"SUBSTATIONS"},null,null,{"$f":"F73-F150","v":339265},339265,0,0,339265,0]
[17,null,{"$f":"'FR-16(7)(v)-1 Functional'!C228","v":"POLES, TOWERS  & FIXTURES - PRIMARY - DEMAND"},null,null,83803,83803,0,0,83803,0]
[18,null,{"$f":"'FR-16(7)(v)-1 Functional'!C229","v":"POLES, TOWERS  & FIXTURES - PRIMARY - CUSTOMER"},null,null,{"$f":"F75-F152","v":573},0,0,573,573,0]
[19,null,{"$f":"'FR-16(7)(v)-1 Functional'!C230","v":"POLES, TOWERS  & FIXTURES - SECONDARY - DEMAND"},null,null,{"$f":"F76-F153","v":32049},32049,0,0,32049,0]
[20,null,{"$f":"'FR-16(7)(v)-1 Functional'!C231","v":"POLES, TOWERS  & FIXTURES - SECONDARY - CUSTOMER"},null,null,{"$f":"F77-F154","v":130},0,0,130,130,0]
[21,null,{"$f":"'FR-16(7)(v)-1 Functional'!C232","v":"CONDUCTORS - OVERHEAD / PRIMARY - DEMAND"},null,null,{"$f":"F78-F155","v":247068},247068,0,0,247068,0]
[22,null,{"$f":"'FR-16(7)(v)-1 Functional'!C233","v":"CONDUCTORS - OVERHEAD / PRIMARY - CUSTOMER"},null,null,{"$f":"F79-F156","v":807},0,0,807,807,0]
[23,null,{"$f":"'FR-16(7)(v)-1 Functional'!C234","v":"CONDUCTORS - OVERHEAD / SECONDARY - DEMAND"},null,null,{"$f":"F80-F157","v":100603},100603,0,0,100603,0]
[24,null,{"$f":"'FR-16(7)(v)-1 Functional'!C235","v":"CONDUCTORS - OVERHEAD / SECONDARY - CUSTOMER"},null,null,{"$f":"F81-F158","v":334},0,0,334,334,0]
[25,null,{"$f":"'FR-16(7)(v)-1 Functional'!C236","v":"CONDUCTORS - UNDERGROUND / PRIMARY - DEMAND"},null,null,{"$f":"F82-F159","v":185023},185023,0,0,185023,0]
[26,null,{"$f":"'FR-16(7)(v)-1 Functional'!C237","v":"CONDUCTORS - UNDERGROUND / PRIMARY - CUSTOMER"},null,null,{"$f":"F83-F160","v":859},0,0,859,859,0]
[27,null,{"$f":"'FR-16(7)(v)-1 Functional'!C238","v":"CONDUCTORS - UNDERGROUND / SECONDARY - DEMAND"},null,null,{"$f":"F84-F161","v":31697},31697,0,0,31697,0]
[28,null,{"$f":"'FR-16(7)(v)-1 Functional'!C239","v":"CONDUCTORS - UNDERGROUND / SECONDARY - CUSTOMER"},null,null,{"$f":"F85-F162","v":269},0,0,269,269,0]
[29,null,{"$f":"'FR-16(7)(v)-1 Functional'!C240","v":"TRANSFORMERS DEMAND RELATED"},null,null,{"$f":"F86-F163","v":124534},124534,0,0,124534,0]
[30,null,{"$f":"'FR-16(7)(v)-1 Functional'!C241","v":"TRANSFORMERS CUSTOMER RELATED"},null,null,606,0,0,606,606,0]
[31,null,{"$f":"'FR-16(7)(v)-1 Functional'!C242","v":"SERVICES"},null,null,4018,0,0,4018,4018,0]
[32,null,{"$f":"'FR-16(7)(v)-1 Functional'!C243","v":"METERS"},null,null,4225,0,0,4225,4225,0]
[33,null,{"$f":"'FR-16(7)(v)-1 Functional'!C244","v":"STREET LIGHTS"},null,null,0,0,0,0,0,0]
[34,null,{"$f":"'FR-16(7)(v)-1 Functional'!C245","v":"ADJUSTMENT  "},null,null,-1622,-1603,0,-19,-1622,0]
[35,null,{"$f":"'FR-16(7)(v)-1 Functional'!C246","v":"CONSTRUCTION NOT CLASSIFIED"},null,null,323374,319645,0,3729,323374,0]
[36,null,{"$f":"'FR-16(7)(v)-1 Functional'!C247","v":"RWIP"},null,null,80118,80118,0,0,80118,0]
[37,null,{"$f":"'FR-16(7)(v)-1 Functional'!C248","v":"  NET DISTRIBUTION PLANT"},null,null,{"$f":"SUM(F226:F247)","v":1557733},{"$f":"SUM(G226:G247)","v":1542202},0,15531,1557733,0]
[38]
[39,"NET PTD PLANT",null,null,null,{"$f":"F96-F173","v":1783934},1768403,0,15531,1783934,0]
[40,"NET TRANS & DIST PLANT",null,null,null,4464138,4448607,0,15531,4464138,0]
[41]
[42,"GENERAL & INTANGIBLE PLANT"]
[43,null,{"$f":"'FR-16(7)(v)-1 Functional'!C254","v":"PRODUCTION - DEMAND"},null,null,{"$f":"F100-F177","v":48793},48793,0,0,48793,0]
[44,null,{"$f":"'FR-16(7)(v)-1 Functional'!C255","v":"PRODUCTION - ENERGY"},null,null,71034,0,71034,0,71034,0]
[45,null,{"$f":"'FR-16(7)(v)-1 Functional'!C256","v":"TRANSMISSION"},null,null,7711,7711,0,0,7711,0]
[46,null,{"$f":"'FR-16(7)(v)-1 Functional'!C257","v":"DISTRIBUTION - DEMAND"},null,null,25896,25896,0,0,25896,0]
[47,null,{"$f":"'FR-16(7)(v)-1 Functional'!C258","v":"DISTRIBUTION - CUSTOMER"}]
[48,null,{"$f":"'FR-16(7)(v)-1 Functional'!C259","v":"CUSTOMER ACCOUNTING"},null,null,{"$f":"F105-F182","v":1075},0,0,1075,1075,0]
[49,null,{"$f":"'FR-16(7)(v)-1 Functional'!C260","v":"CUSTOMER SERVICE & INFORMATION"},null,null,20,0,0,20,20,0]
[50,null,{"$f":"'FR-16(7)(v)-1 Functional'!C261","v":"SALES"},null,null,0,0,0,0,0,0]
[51,null,{"$f":"'FR-16(7)(v)-1 Functional'!C262","v":"ADJUSTMENT"},null,null,-692,-78,-604,-10,-692,0]
[52,null,{"$f":"'FR-16(7)(v)-1 Functional'!C263","v":"  NET GENERAL & INTANG PLANT"},null,null,{"$f":"SUM(F253:F262)","v":153837},82322,70430,1085,153837,0]
[53]
[54,"COMMON & OTHER PLANT"]
[55,null,{"$f":"'FR-16(7)(v)-1 Functional'!C266","v":"PRODUCTION - DEMAND"},null,null,{"$f":"F112-F189","v":9399},9399,0,0,9399,0]
[56,null,{"$f":"'FR-16(7)(v)-1 Functional'!C267","v":"PRODUCTION - ENERGY"},null,null,13682,0,13682,0,13682,0]
[57,null,{"$f":"'FR-16(7)(v)-1 Functional'!C268","v":"TRANSMISSION"},null,null,1485,1485,0,0,1485,0]
[58,null,{"$f":"'FR-16(7)(v)-1 Functional'!C269","v":"DISTRIBUTION - DEMAND"},null,null,4988,4988,0,0,4988,0]
[59,null,{"$f":"'FR-16(7)(v)-1 Functional'!C270","v":"DISTRIBUTION - CUSTOMER"}]
[60,null,{"$f":"'FR-16(7)(v)-1 Functional'!C271","v":"CUSTOMER ACCOUNTING"},null,null,{"$f":"F117-F194","v":207},0,0,207,207,0]
[61,null,{"$f":"'FR-16(7)(v)-1 Functional'!C272","v":"CUSTOMER SERVICE & INFORMATION"},null,null,4,0,0,4,4,0]
[62,null,{"$f":"'FR-16(7)(v)-1 Functional'!C273","v":"SALES"},null,null,0,0,0,0,0,0]
[63,null,{"$f":"'FR-16(7)(v)-1 Functional'!C274","v":"ADJUSTMENT"},null,null,-39,-4,-34,-1,-39,0]
[64,null,{"$f":"'FR-16(7)(v)-1 Functional'!C275","v":"  COMMON & OTHER PLANT IN SERVICE"},null,null,{"$f":"SUM(F265:F274)","v":29726},15868,13648,210,29726,0]
[65]
[66,null,{"$f":"'FR-16(7)(v)-1 Functional'!C277","v":"NET ELECTRIC PLANT IN SERVICE"},null,null,{"$f":"F275+F263+F248+F222+F216","v":4647701},4546797,84078,16826,4647701,0]
[]
[{"$f":"co_name","v":"DUKE ENERGY KENTUCKY, INC."},null,null,null,null,null,null,null,null,{"$f":"J1","v":"FR-16(7)(v)-22"}]
[{"$f":"$A$2","v":"DISTR. PRIMARY CLASSIFIED - ELECTRIC COST OF SERVICE"},null,null,null,null,null,null,null,null,{"$f":"J2","v":"WITNESS RESPONSIBLE:"}]
[{"$f":"case_name","v":"CASE NO: 2019-00271"},null,null,null,null,null,null,null,null,{"$f":"Witness","v":"JAMES E. ZIOLKOWSKI"}]
[{"$f":"data_filing","v":"DATA: 12 MONTHS ACTUAL  & 0 MONTHS ESTIMATED"},null,null,null,null,null,null,null,null,{"$f":"\"PAGE \"&Pages2-10&\" OF \"&Pages2","v":"PAGE 5 OF 15"}]
[{"$f":"type","v":"TYPE OF FILING: \"X\" ORIGINAL   UPDATED    REVISED  "}]
[]
[]
["LINE",null,null,null,null,"TOTAL","CLASSIFIED",null,null,"TOTAL","ALL"]
["NO.","SUBTRACTIVE RATE BASE ADJUSTMENTS",null,"ALLO",null,{"$f":"$F$9","v":"DISTR. PRIMARY"},{"$f":"G9","v":"DEMAND"},"ENERGY","CUSTOMER","AT ISSUE","OTHER"]
[null,null,"Schedule 5",null,null,null,3,4,5]
[1,"RATE BASE ADJUSTMENTS"]
[2,"ACCUMULATED DEFERRED INCOME TAXES"]
[3," ACCUM DEF INC TAXES (282)"]
[4,null,{"$f":"'FR-16(7)(v)-1 Functional'!C292","v":"LIBERALIZED DEPRECIATION"},{"$f":"'FR-16(7)(v)-1 Functional'!D292","v":"NP29"}," ",{"$f":"'FR-16(7)(v)-14 TOTAL CLASS'!N292","v":275492},{"$f":"'FR-16(7)(v)-3 PROD Demand'!N292+'FR-16(7)(v)-7 TRANS Demand'!N292+'FR-16(7)(v)-11 DIST Demand'!N292","v":269532},{"$f":"'FR-16(7)(v)-4 PROD Energy'!N292+'FR-16(7)(v)-8 TRANS Energy'!N292+'FR-16(7)(v)-12 DIST Energy'!N292","v":4978},{"$f":"'FR-16(7)(v)-5 PROD Cust'!N292+'FR-16(7)(v)-9 TRANS Cust'!N292+'FR-16(7)(v)-13 DIST Cust'!N292","v":982},{"$f":"SUM(G292:I292)","v":275492},{"$f":"F292-J292","v":0}]
[5,null,{"$f":"'FR-16(7)(v)-1 Functional'!C293","v":"LEASED METERS"},{"$f":"'FR-16(7)(v)-1 Functional'!D293","v":"NP29"}," ",{"$f":"'FR-16(7)(v)-14 TOTAL CLASS'!N293","v":6249},{"$f":"'FR-16(7)(v)-3 PROD Demand'!N293+'FR-16(7)(v)-7 TRANS Demand'!N293+'FR-16(7)(v)-11 DIST Demand'!N293","v":6114},{"$f":"'FR-16(7)(v)-4 PROD Energy'!N293+'FR-16(7)(v)-8 TRANS Energy'!N293+'FR-16(7)(v)-12 DIST Energy'!N293","v":113},{"$f":"'FR-16(7)(v)-5 PROD Cust'!N293+'FR-16(7)(v)-9 TRANS Cust'!N293+'FR-16(7)(v)-13 DIST Cust'!N293","v":22},6249,0]
[6,null,{"$f":"'FR-16(7)(v)-1 Functional'!C294","v":"CONTRIB AID CONSTR"},{"$f":"'FR-16(7)(v)-1 Functional'!D294","v":"D249"}," ",{"$f":"'FR-16(7)(v)-14 TOTAL CLASS'!N294","v":0},{"$f":"'FR-16(7)(v)-3 PROD Demand'!N294+'FR-16(7)(v)-7 TRANS Demand'!N294+'FR-16(7)(v)-11 DIST Demand'!N294","v":0},{"$f":"'FR-16(7)(v)-4 PROD Energy'!N294+'FR-16(7)(v)-8 TRANS Energy'!N294+'FR-16(7)(v)-12 DIST Energy'!N294","v":0},{"$f":"'FR-16(7)(v)-5 PROD Cust'!N294+'FR-16(7)(v)-9 TRANS Cust'!N294+'FR-16(7)(v)-13 DIST Cust'!N294","v":0},0,0]
[7,null,{"$f":"'FR-16(7)(v)-1 Functional'!C295","v":"TAX INTEREST, EXPENSING, DEPR."},{"$f":"'FR-16(7)(v)-1 Functional'!D295","v":"NP29"}," ",{"$f":"'FR-16(7)(v)-14 TOTAL CLASS'!N295","v":275075},{"$f":"'FR-16(7)(v)-3 PROD Demand'!N295+'FR-16(7)(v)-7 TRANS Demand'!N295+'FR-16(7)(v)-11 DIST Demand'!N295","v":269123},{"$f":"'FR-16(7)(v)-4 PROD Energy'!N295+'FR-16(7)(v)-8 TRANS Energy'!N295+'FR-16(7)(v)-12 DIST Energy'!N295","v":4971},{"$f":"'FR-16(7)(v)-5 PROD Cust'!N295+'FR-16(7)(v)-9 TRANS Cust'!N295+'FR-16(7)(v)-13 DIST Cust'!N295","v":981},275075,0]
[8,null,{"$f":"'FR-16(7)(v)-1 Functional'!C296","v":"AFUDC IN DEBT"},{"$f":"'FR-16(7)(v)-1 Functional'!D296","v":"NP29"}," ",{"$f":"'FR-16(7)(v)-14 TOTAL CLASS'!N296","v":0},{"$f":"'FR-16(7)(v)-3 PROD Demand'!N296+'FR-16(7)(v)-7 TRANS Demand'!N296+'FR-16(7)(v)-11 DIST Demand'!N296","v":0},{"$f":"'FR-16(7)(v)-4 PROD Energy'!N296+'FR-16(7)(v)-8 TRANS Energy'!N296+'FR-16(7)(v)-12 DIST Energy'!N296","v":0},{"$f":"'FR-16(7)(v)-5 PROD Cust'!N296+'FR-16(7)(v)-9 TRANS Cust'!N296+'FR-16(7)(v)-13 DIST Cust'!N296","v":0},0,0]
[9,null,{"$f":"'FR-16(7)(v)-1 Functional'!C297","v":"CASUALTY LOSS"},{"$f":"'FR-16(7)(v)-1 Functional'!D297","v":"K411"}," ",{"$f":"'FR-16(7)(v)-14 TOTAL CLASS'!N297","v":-248},{"$f":"'FR-16(7)(v)-3 PROD Demand'!N297+'FR-16(7)(v)-7 TRANS Demand'!N297+'FR-16(7)(v)-11 DIST Demand'!N297","v":0},{"$f":"'FR-16(7)(v)-4 PROD Energy'!N297+'FR-16(7)(v)-8 TRANS Energy'!N297+'FR-16(7)(v)-12 DIST Energy'!N297","v":0},{"$f":"'FR-16(7)(v)-5 PROD Cust'!N297+'FR-16(7)(v)-9 TRANS Cust'!N297+'FR-16(7)(v)-13 DIST Cust'!N297","v":-248},-248,0]
[10,null,{"$f":"'FR-16(7)(v)-1 Functional'!C298","v":"NON-CASH OVERHEADS"},{"$f":"'FR-16(7)(v)-1 Functional'!D298","v":"G229"}," ",{"$f":"'FR-16(7)(v)-14 TOTAL CLASS'!N298","v":0},{"$f":"'FR-16(7)(v)-3 PROD Demand'!N298+'FR-16(7)(v)-7 TRANS Demand'!N298+'FR-16(7)(v)-11 DIST Demand'!N298","v":0},{"$f":"'FR-16(7)(v)-4 PROD Energy'!N298+'FR-16(7)(v)-8 TRANS Energy'!N298+'FR-16(7)(v)-12 DIST Energy'!N298","v":0},{"$f":"'FR-16(7)(v)-5 PROD Cust'!N298+'FR-16(7)(v)-9 TRANS Cust'!N298+'FR-16(7)(v)-13 DIST Cust'!N298","v":0},0,0]
[11,null,{"$f":"'FR-16(7)(v)-1 Functional'!C299","v":"PLANT FAS 109"},{"$f":"'FR-16(7)(v)-1 Functional'!D299","v":"NP29"}," ",{"$f":"'FR-16(7)(v)-14 TOTAL CLASS'!N299","v":0},{"$f":"'FR-16(7)(v)-3 PROD Demand'!N299+'FR-16(7)(v)-7 TRANS Demand'!N299+'FR-16(7)(v)-11 DIST Demand'!N299","v":0},{"$f":"'FR-16(7)(v)-4 PROD Energy'!N299+'FR-16(7)(v)-8 TRANS Energy'!N299+'FR-16(7)(v)-12 DIST Energy'!N299","v":0},{"$f":"'FR-16(7)(v)-5 PROD Cust'!N299+'FR-16(7)(v)-9 TRANS Cust'!N299+'FR-16(7)(v)-13 DIST Cust'!N299","v":0},0,0]
[12,null,{"$f":"'FR-16(7)(v)-1 Functional'!C300","v":"MISCELLANEOUS"},{"$f":"'FR-16(7)(v)-1 Functional'!D300","v":"NP29"},null,{"$f":"'FR-16(7)(v)-14 TOTAL CLASS'!N300","v":259570},{"$f":"'FR-16(7)(v)-3 PROD Demand'!N300+'FR-16(7)(v)-7 TRANS Demand'!N300+'FR-16(7)(v)-11 DIST Demand'!N300","v":253954},{"$f":"'FR-16(7)(v)-4 PROD Energy'!N300+'FR-16(7)(v)-8 TRANS Energy'!N300+'FR-16(7)(v)-12 DIST Energy'!N300","v":4691},{"$f":"'FR-16(7)(v)-5 PROD Cust'!N300+'FR-16(7)(v)-9 TRANS Cust'!N300+'FR-16(7)(v)-13 DIST Cust'!N300","v":925},259570,0]
[13,null,{"$f":"'FR-16(7)(v)-1 Functional'!C301","v":"  TOTAL ACCOUNT 282"},null,null,{"$f":"SUM(F292:F300)","v":816138},798723,14753,2662,816138,0]
[14]
[15," ACCUM DEF INC TAXES (283)"]
[16,null,{"$f":"'FR-16(7)(v)-1 Functional'!C304","v":"TRANSITION FROM MISO TO PJM"},{"$f":"'FR-16(7)(v)-1 Functional'!D304","v":"NP29"},null,{"$f":"'FR-16(7)(v)-14 TOTAL CLASS'!N304","v":-14783},{"$f":"'FR-16(7)(v)-3 PROD Demand'!N304+'FR-16(7)(v)-7 TRANS Demand'!N304+'FR-16(7)(v)-11 DIST Demand'!N304","v":-14463},{"$f":"'FR-16(7)(v)-4 PROD Energy'!N304+'FR-16(7)(v)-8 TRANS Energy'!N304+'FR-16(7)(v)-12 DIST Energy'!N304","v":-267},{"$f":"'FR-16(7)(v)-5 PROD Cust'!N304+'FR-16(7)(v)-9 TRANS Cust'!N304+'FR-16(7)(v)-13 DIST Cust'!N304","v":-53},{"$f":"SUM(G304:I304)","v":-14783},{"$f":"F304-J304","v":0}]
[17,null,{"$f":"'FR-16(7)(v)-1 Functional'!C305","v":"DEFERRED PLANT COSTS"},{"$f":"'FR-16(7)(v)-1 Functional'!D305","v":"NP29"},null,{"$f":"'FR-16(7)(v)-14 TOTAL CLASS'!N305","v":2880},{"$f":"'FR-16(7)(v)-3 PROD Demand'!N305+'FR-16(7)(v)-7 TRANS Demand'!N305+'FR-16(7)(v)-11 DIST Demand'!N305","v":2818},{"$f":"'FR-16(7)(v)-4 PROD Energy'!N305+'FR-16(7)(v)-8 TRANS Energy'!N305+'FR-16(7)(v)-12 DIST Energy'!N305","v":52},{"$f":"'FR-16(7)(v)-5 PROD Cust'!N305+'FR-16(7)(v)-9 TRANS Cust'!N305+'FR-16(7)(v)-13 DIST Cust'!N305","v":10},2880,0]
[18,null,{"$f":"'FR-16(7)(v)-1 Functional'!C306","v":"MISCELLANEOUS"},{"$f":"'FR-16(7)(v)-1 Functional'!D306","v":"OM39"},null,{"$f":"'FR-16(7)(v)-14 TOTAL CLASS'!N306","v":51254},{"$f":"'FR-16(7)(v)-3 PROD Demand'!N306+'FR-16(7)(v)-7 TRANS Demand'!N306+'FR-16(7)(v)-11 DIST Demand'!N306","v":9719},{"$f":"'FR-16(7)(v)-4 PROD Energy'!N306+'FR-16(7)(v)-8 TRANS Energy'!N306+'FR-16(7)(v)-12 DIST Energy'!N306","v":41421},{"$f":"'FR-16(7)(v)-5 PROD Cust'!N306+'FR-16(7)(v)-9 TRANS Cust'!N306+'FR-16(7)(v)-13 DIST Cust'!N306","v":114},51254,0]
[19,null,{"$f":"'FR-16(7)(v)-1 Functional'!C307","v":"ENVIRONMENTAL RESERVE"},{"$f":"'FR-16(7)(v)-1 Functional'!D307","v":"NP29"},null,{"$f":"'FR-16(7)(v)-14 TOTAL CLASS'!N307","v":0},{"$f":"'FR-16(7)(v)-3 PROD Demand'!N307+'FR-16(7)(v)-7 TRANS Demand'!N307+'FR-16(7)(v)-11 DIST Demand'!N307","v":0},{"$f":"'FR-16(7)(v)-4 PROD Energy'!N307+'FR-16(7)(v)-8 TRANS Energy'!N307+'FR-16(7)(v)-12 DIST Energy'!N307","v":0},{"$f":"'FR-16(7)(v)-5 PROD Cust'!N307+'FR-16(7)(v)-9 TRANS Cust'!N307+'FR-16(7)(v)-13 DIST Cust'!N307","v":0},0,0]
[20,null,{"$f":"'FR-16(7)(v)-1 Functional'!C308","v":"POST IN-SERVICE CARRYING COSTS"},{"$f":"'FR-16(7)(v)-1 Functional'!D308","v":"NP29"},null,{"$f":"'FR-16(7)(v)-14 TOTAL CLASS'!N308","v":0},{"$f":"'FR-16(7)(v)-3 PROD Demand'!N308+'FR-16(7)(v)-7 TRANS Demand'!N308+'FR-16(7)(v)-11 DIST Demand'!N308","v":0},{"$f":"'FR-16(7)(v)-4 PROD Energy'!N308+'FR-16(7)(v)-8 TRANS Energy'!N308+'FR-16(7)(v)-12 DIST Energy'!N308","v":0},{"$f":"'FR-16(7)(v)-5 PROD Cust'!N308+'FR-16(7)(v)-9 TRANS Cust'!N308+'FR-16(7)(v)-13 DIST Cust'!N308","v":0},0,0]
[21,null,{"$f":"'FR-16(7)(v)-1 Functional'!C309","v":"ARO CUMULATIVE EFFECT"},{"$f":"'FR-16(7)(v)-1 Functional'!D309","v":"NP29"},null,{"$f":"'FR-16(7)(v)-14 TOTAL CLASS'!N309","v":0},{"$f":"'FR-16(7)(v)-3 PROD Demand'!N309+'FR-16(7)(v)-7 TRANS Demand'!N309+'FR-16(7)(v)-11 DIST Demand'!N309","v":0},{"$f":"'FR-16(7)(v)-4 PROD Energy'!N309+'FR-16(7)(v)-8 TRANS Energy'!N309+'FR-16(7)(v)-12 DIST Energy'!N309","v":0},{"$f":"'FR-16(7)(v)-5 PROD Cust'!N309+'FR-16(7)(v)-9 TRANS Cust'!N309+'FR-16(7)(v)-13 DIST Cust'!N309","v":0},0,0]
[22,null,{"$f":"'FR-16(7)(v)-1 Functional'!C310","v":"LOSS ON REACQUIRED DEBT"},{"$f":"'FR-16(7)(v)-1 Functional'!D310","v":"D249"},null,{"$f":"'FR-16(7)(v)-14 TOTAL CLASS'!N310","v":0},{"$f":"'FR-16(7)(v)-3 PROD Demand'!N310+'FR-16(7)(v)-7 TRANS Demand'!N310+'FR-16(7)(v)-11 DIST Demand'!N310","v":0},{"$f":"'FR-16(7)(v)-4 PROD Energy'!N310+'FR-16(7)(v)-8 TRANS Energy'!N310+'FR-16(7)(v)-12 DIST Energy'!N310","v":0},{"$f":"'FR-16(7)(v)-5 PROD Cust'!N310+'FR-16(7)(v)-9 TRANS Cust'!N310+'FR-16(7)(v)-13 DIST Cust'!N310","v":0},0,0]
[23,null,{"$f":"'FR-16(7)(v)-1 Functional'!C311","v":"VACATION PAY ACCRUAL"},{"$f":"'FR-16(7)(v)-1 Functional'!D311","v":"A315"},null,{"$f":"'FR-16(7)(v)-14 TOTAL CLASS'!N311","v":0},{"$f":"'FR-16(7)(v)-3 PROD Demand'!N311+'FR-16(7)(v)-7 TRANS Demand'!N311+'FR-16(7)(v)-11 DIST Demand'!N311","v":0},{"$f":"'FR-16(7)(v)-4 PROD Energy'!N311+'FR-16(7)(v)-8 TRANS Energy'!N311+'FR-16(7)(v)-12 DIST Energy'!N311","v":0},{"$f":"'FR-16(7)(v)-5 PROD Cust'!N311+'FR-16(7)(v)-9 TRANS Cust'!N311+'FR-16(7)(v)-13 DIST Cust'!N311","v":0},0,0]
[24,null,{"$f":"'FR-16(7)(v)-1 Functional'!C312","v":"NON-AMI METERS RETIRED EARLY"},{"$f":"'FR-16(7)(v)-1 Functional'!D312","v":"OM39"},null,{"$f":"'FR-16(7)(v)-14 TOTAL CLASS'!N312","v":6150},{"$f":"'FR-16(7)(v)-3 PROD Demand'!N312+'FR-16(7)(v)-7 TRANS Demand'!N312+'FR-16(7)(v)-11 DIST Demand'!N312","v":1166},{"$f":"'FR-16(7)(v)-4 PROD Energy'!N312+'FR-16(7)(v)-8 TRANS Energy'!N312+'FR-16(7)(v)-12 DIST Energy'!N312","v":4970},{"$f":"'FR-16(7)(v)-5 PROD Cust'!N312+'FR-16(7)(v)-9 TRANS Cust'!N312+'FR-16(7)(v)-13 DIST Cust'!N312","v":14},{"$f":"SUM(G312:I312)","v":6150},{"$f":"F312-J312","v":0}]
[25,null,{"$f":"'FR-16(7)(v)-1 Functional'!C313","v":"PENSION EXPENSE"},{"$f":"'FR-16(7)(v)-1 Functional'!D313","v":"A315"},null,{"$f":"'FR-16(7)(v)-14 TOTAL CLASS'!N313","v":18940},{"$f":"'FR-16(7)(v)-3 PROD Demand'!N313+'FR-16(7)(v)-7 TRANS Demand'!N313+'FR-16(7)(v)-11 DIST Demand'!N313","v":5949},{"$f":"'FR-16(7)(v)-4 PROD Energy'!N313+'FR-16(7)(v)-8 TRANS Energy'!N313+'FR-16(7)(v)-12 DIST Energy'!N313","v":12769},{"$f":"'FR-16(7)(v)-5 PROD Cust'!N313+'FR-16(7)(v)-9 TRANS Cust'!N313+'FR-16(7)(v)-13 DIST Cust'!N313","v":222},{"$f":"SUM(G313:I313)","v":18940},{"$f":"F313-J313","v":0}]
[26,null,{"$f":"'FR-16(7)(v)-1 Functional'!C314","v":"UNCOLLECTIBLE ACCOUNTS"},{"$f":"'FR-16(7)(v)-1 Functional'!D314","v":"K411"},null,{"$f":"'FR-16(7)(v)-14 TOTAL CLASS'!N314","v":0},{"$f":"'FR-16(7)(v)-3 PROD Demand'!N314+'FR-16(7)(v)-7 TRANS Demand'!N314+'FR-16(7)(v)-11 DIST Demand'!N314","v":0},{"$f":"'FR-16(7)(v)-4 PROD Energy'!N314+'FR-16(7)(v)-8 TRANS Energy'!N314+'FR-16(7)(v)-12 DIST Energy'!N314","v":0},{"$f":"'FR-16(7)(v)-5 PROD Cust'!N314+'FR-16(7)(v)-9 TRANS Cust'!N314+'FR-16(7)(v)-13 DIST Cust'!N314","v":0},0,0]
[27,null,{"$f":"'FR-16(7)(v)-1 Functional'!C315","v":"  TOTAL ACCOUNT 283"},null,null,{"$f":"SUM(F303:F314)","v":64441},5189,58945,307,64441,0]
[28]
[29," OTHER ACCUMULATED DEFERRED INCOME TAXES"]
[30,null,{"$f":"'FR-16(7)(v)-1 Functional'!C318","v":"EXCESS ADIT"},{"$f":"'FR-16(7)(v)-1 Functional'!D318","v":"NP29"},null,{"$f":"'FR-16(7)(v)-14 TOTAL CLASS'!N318","v":256238},{"$f":"'FR-16(7)(v)-3 PROD Demand'!N318+'FR-16(7)(v)-7 TRANS Demand'!N318+'FR-16(7)(v)-11 DIST Demand'!N318","v":250694},{"$f":"'FR-16(7)(v)-4 PROD Energy'!N318+'FR-16(7)(v)-8 TRANS Energy'!N318+'FR-16(7)(v)-12 DIST Energy'!N318","v":4630},{"$f":"'FR-16(7)(v)-5 PROD Cust'!N318+'FR-16(7)(v)-9 TRANS Cust'!N318+'FR-16(7)(v)-13 DIST Cust'!N318","v":914},{"$f":"SUM(G318:I318)","v":256238},{"$f":"F318-J318","v":0}]
[31,null,{"$f":"'FR-16(7)(v)-1 Functional'!C319","v":"CUSTOMER SERVICE DEPOSITS"},{"$f":"'FR-16(7)(v)-1 Functional'!D319","v":"NP29"},null,{"$f":"'FR-16(7)(v)-14 TOTAL CLASS'!N319","v":0},{"$f":"'FR-16(7)(v)-3 PROD Demand'!N319+'FR-16(7)(v)-7 TRANS Demand'!N319+'FR-16(7)(v)-11 DIST Demand'!N319","v":0},{"$f":"'FR-16(7)(v)-4 PROD Energy'!N319+'FR-16(7)(v)-8 TRANS Energy'!N319+'FR-16(7)(v)-12 DIST Energy'!N319","v":0},{"$f":"'FR-16(7)(v)-5 PROD Cust'!N319+'FR-16(7)(v)-9 TRANS Cust'!N319+'FR-16(7)(v)-13 DIST Cust'!N319","v":0},{"$f":"SUM(G319:I319)","v":0},{"$f":"F319-J319","v":0}]
[32,null,{"$f":"'FR-16(7)(v)-1 Functional'!C320","v":"POST RETIREMENT BENEFITS"},{"$f":"'FR-16(7)(v)-1 Functional'!D320","v":"NP29"},null,{"$f":"'FR-16(7)(v)-14 TOTAL CLASS'!N320","v":0},{"$f":"'FR-16(7)(v)-3 PROD Demand'!N320+'FR-16(7)(v)-7 TRANS Demand'!N320+'FR-16(7)(v)-11 DIST Demand'!N320","v":0},{"$f":"'FR-16(7)(v)-4 PROD Energy'!N320+'FR-16(7)(v)-8 TRANS Energy'!N320+'FR-16(7)(v)-12 DIST Energy'!N320","v":0},{"$f":"'FR-16(7)(v)-5 PROD Cust'!N320+'FR-16(7)(v)-9 TRANS Cust'!N320+'FR-16(7)(v)-13 DIST Cust'!N320","v":0},{"$f":"SUM(G320:I320)","v":0},{"$f":"F320-J320","v":0}]
[33,null,{"$f":"'FR-16(7)(v)-1 Functional'!C321","v":"INVESTMENT TAX CREDIT"},{"$f":"'FR-16(7)(v)-1 Functional'!D321","v":"NP29"},null,{"$f":"'FR-16(7)(v)-14 TOTAL CLASS'!N321","v":0},{"$f":"'FR-16(7)(v)-3 PROD Demand'!N321+'FR-16(7)(v)-7 TRANS Demand'!N321+'FR-16(7)(v)-11 DIST Demand'!N321","v":0},{"$f":"'FR-16(7)(v)-4 PROD Energy'!N321+'FR-16(7)(v)-8 TRANS Energy'!N321+'FR-16(7)(v)-12 DIST Energy'!N321","v":0},{"$f":"'FR-16(7)(v)-5 PROD Cust'!N321+'FR-16(7)(v)-9 TRANS Cust'!N321+'FR-16(7)(v)-13 DIST Cust'!N321","v":0},{"$f":"SUM(G321:I321)","v":0},{"$f":"F321-J321","v":0}]
[34,null,{"$f":"'FR-16(7)(v)-1 Functional'!C322","v":"  TOTAL OTHER SUBTRACTIVE ADJUSTMENTS"},null,null,{"$f":"SUM(F317:F321)","v":256238},250694,4630,914,256238,0]
[35]
[36,{"$f":"'FR-16(7)(v)-1 Functional'!B324","v":"TOTAL SUBTRACTIVE RATE BASE ADJUSTMENTS"},null,null,null,{"$f":"F322+F315+F301","v":1136817},1054606,78328,3883,1136817,0]
[]
[{"$f":"co_name","v":"DUKE ENERGY KENTUCKY, INC."},null,null,null,null,null,null,null,null,{"$f":"J1","v":"FR-16(7)(v)-22"}]
[{"$f":"$A$2","v":"DISTR. PRIMARY CLASSIFIED - ELECTRIC COST OF SERVICE"},null,null,null,null,null,null,null,null,{"$f":"J2","v":"WITNESS RESPONSIBLE:"}]
[{"$f":"case_name","v":"CASE NO: 2019-00271"},null,null,null,null,null,null,null,null,{"$f":"Witness","v":"JAMES E. ZIOLKOWSKI"}]
[{"$f":"data_filing","v":"DATA: 12 MONTHS ACTUAL  & 0 MONTHS ESTIMATED"},null,null,null,null,null,null,null,null,{"$f":"\"PAGE \"&Pages2-9&\" OF \"&Pages2","v":"PAGE 6 OF 15"}]
[{"$f":"type","v":"TYPE OF FILING: \"X\" ORIGINAL   UPDATED    REVISED  "}]
[]
[]
["LINE",null,null,null,null,"TOTAL","CLASSIFIED",null,null,"TOTAL","ALL"]
["NO.","ADDITIVE RATE BASE ADJUSTMENTS",null,"ALLO",null,{"$f":"$F$9","v":"DISTR. PRIMARY"},{"$f":"G9","v":"DEMAND"},"ENERGY","CUSTOMER","AT ISSUE","OTHER"]
[null,null,"Schedule 5.1",null,null,null,3,4,5]
[1,"OTHER ACCUMULATED DEFERRED INCOME TAXES"]
[2," ACCUM DEF INC TAXES (190)"]
[3,null,{"$f":"'FR-16(7)(v)-1 Functional'!C338","v":"UNCOLLECTIBLE ACCTS"},{"$f":"'FR-16(7)(v)-1 Functional'!D338","v":"K411"},null,{"$f":"'FR-16(7)(v)-14 TOTAL CLASS'!N338","v":45},{"$f":"'FR-16(7)(v)-3 PROD Demand'!N338+'FR-16(7)(v)-7 TRANS Demand'!N338+'FR-16(7)(v)-11 DIST Demand'!N338","v":0},{"$f":"'FR-16(7)(v)-4 PROD Energy'!N338+'FR-16(7)(v)-8 TRANS Energy'!N338+'FR-16(7)(v)-12 DIST Energy'!N338","v":0},{"$f":"'FR-16(7)(v)-5 PROD Cust'!N338+'FR-16(7)(v)-9 TRANS Cust'!N338+'FR-16(7)(v)-13 DIST Cust'!N338","v":45},{"$f":"SUM(G338:I338)","v":45},{"$f":"F338-J338","v":0}]
[4,null,{"$f":"'FR-16(7)(v)-1 Functional'!C339","v":"CASH FLOW HEDGE"},{"$f":"'FR-16(7)(v)-1 Functional'!D339","v":"A315"},null,{"$f":"'FR-16(7)(v)-14 TOTAL CLASS'!N339","v":760},{"$f":"'FR-16(7)(v)-3 PROD Demand'!N339+'FR-16(7)(v)-7 TRANS Demand'!N339+'FR-16(7)(v)-11 DIST Demand'!N339","v":238},{"$f":"'FR-16(7)(v)-4 PROD Energy'!N339+'FR-16(7)(v)-8 TRANS Energy'!N339+'FR-16(7)(v)-12 DIST Energy'!N339","v":513},{"$f":"'FR-16(7)(v)-5 PROD Cust'!N339+'FR-16(7)(v)-9 TRANS Cust'!N339+'FR-16(7)(v)-13 DIST Cust'!N339","v":9},760,0]
[5,null,{"$f":"'FR-16(7)(v)-1 Functional'!C340","v":"RESERVED FOR FUTURE USE"},{"$f":"'FR-16(7)(v)-1 Functional'!D340","v":"NP29"},null,{"$f":"'FR-16(7)(v)-14 TOTAL CLASS'!N340","v":0},{"$f":"'FR-16(7)(v)-3 PROD Demand'!N340+'FR-16(7)(v)-7 TRANS Demand'!N340+'FR-16(7)(v)-11 DIST Demand'!N340","v":0},{"$f":"'FR-16(7)(v)-4 PROD Energy'!N340+'FR-16(7)(v)-8 TRANS Energy'!N340+'FR-16(7)(v)-12 DIST Energy'!N340","v":0},{"$f":"'FR-16(7)(v)-5 PROD Cust'!N340+'FR-16(7)(v)-9 TRANS Cust'!N340+'FR-16(7)(v)-13 DIST Cust'!N340","v":0},0,0]
[6,null,{"$f":"'FR-16(7)(v)-1 Functional'!C341","v":"RESERVED FOR FUTURE USE"},{"$f":"'FR-16(7)(v)-1 Functional'!D341","v":"NP29"},null,{"$f":"'FR-16(7)(v)-14 TOTAL CLASS'!N341","v":0},{"$f":"'FR-16(7)(v)-3 PROD Demand'!N341+'FR-16(7)(v)-7 TRANS Demand'!N341+'FR-16(7)(v)-11 DIST Demand'!N341","v":0},{"$f":"'FR-16(7)(v)-4 PROD Energy'!N341+'FR-16(7)(v)-8 TRANS Energy'!N341+'FR-16(7)(v)-12 DIST Energy'!N341","v":0},{"$f":"'FR-16(7)(v)-5 PROD Cust'!N341+'FR-16(7)(v)-9 TRANS Cust'!N341+'FR-16(7)(v)-13 DIST Cust'!N341","v":0},0,0]
[7,null,{"$f":"'FR-16(7)(v)-1 Functional'!C342","v":"ELECTRIC METERS"},{"$f":"'FR-16(7)(v)-1 Functional'!D342","v":"K407"},null,{"$f":"'FR-16(7)(v)-14 TOTAL CLASS'!N342","v":0},{"$f":"'FR-16(7)(v)-3 PROD Demand'!N342+'FR-16(7)(v)-7 TRANS Demand'!N342+'FR-16(7)(v)-11 DIST Demand'!N342","v":0},{"$f":"'FR-16(7)(v)-4 PROD Energy'!N342+'FR-16(7)(v)-8 TRANS Energy'!N342+'FR-16(7)(v)-12 DIST Energy'!N342","v":0},{"$f":"'FR-16(7)(v)-5 PROD Cust'!N342+'FR-16(7)(v)-9 TRANS Cust'!N342+'FR-16(7)(v)-13 DIST Cust'!N342","v":0},0,0]
[8,null,{"$f":"'FR-16(7)(v)-1 Functional'!C343","v":"UNAMORTIZED DEBT PREMIUM"},{"$f":"'FR-16(7)(v)-1 Functional'!D343","v":"D249"},null,{"$f":"'FR-16(7)(v)-14 TOTAL CLASS'!N343","v":0},{"$f":"'FR-16(7)(v)-3 PROD Demand'!N343+'FR-16(7)(v)-7 TRANS Demand'!N343+'FR-16(7)(v)-11 DIST Demand'!N343","v":0},{"$f":"'FR-16(7)(v)-4 PROD Energy'!N343+'FR-16(7)(v)-8 TRANS Energy'!N343+'FR-16(7)(v)-12 DIST Energy'!N343","v":0},{"$f":"'FR-16(7)(v)-5 PROD Cust'!N343+'FR-16(7)(v)-9 TRANS Cust'!N343+'FR-16(7)(v)-13 DIST Cust'!N343","v":0},0,0]
[9,null,{"$f":"'FR-16(7)(v)-1 Functional'!C344","v":"ARO CUMULATIVE EFFECT"},{"$f":"'FR-16(7)(v)-1 Functional'!D344","v":"NP29"},null,{"$f":"'FR-16(7)(v)-14 TOTAL CLASS'!N344","v":0},{"$f":"'FR-16(7)(v)-3 PROD Demand'!N344+'FR-16(7)(v)-7 TRANS Demand'!N344+'FR-16(7)(v)-11 DIST Demand'!N344","v":0},{"$f":"'FR-16(7)(v)-4 PROD Energy'!N344+'FR-16(7)(v)-8 TRANS Energy'!N344+'FR-16(7)(v)-12 DIST Energy'!N344","v":0},{"$f":"'FR-16(7)(v)-5 PROD Cust'!N344+'FR-16(7)(v)-9 TRANS Cust'!N344+'FR-16(7)(v)-13 DIST Cust'!N344","v":0},0,0]
[10,null,{"$f":"'FR-16(7)(v)-1 Functional'!C345","v":"RETIREMENT PLAN"},{"$f":"'FR-16(7)(v)-1 Functional'!D345","v":"A315"},null,{"$f":"'FR-16(7)(v)-14 TOTAL CLASS'!N345","v":7817},{"$f":"'FR-16(7)(v)-3 PROD Demand'!N345+'FR-16(7)(v)-7 TRANS Demand'!N345+'FR-16(7)(v)-11 DIST Demand'!N345","v":2455},{"$f":"'FR-16(7)(v)-4 PROD Energy'!N345+'FR-16(7)(v)-8 TRANS Energy'!N345+'FR-16(7)(v)-12 DIST Energy'!N345","v":5270},{"$f":"'FR-16(7)(v)-5 PROD Cust'!N345+'FR-16(7)(v)-9 TRANS Cust'!N345+'FR-16(7)(v)-13 DIST Cust'!N345","v":92},7817,0]
[11,null,{"$f":"'FR-16(7)(v)-1 Functional'!C346","v":"POST RETIREMENT BENEFITS "},{"$f":"'FR-16(7)(v)-1 Functional'!D346","v":"A315"},null,{"$f":"'FR-16(7)(v)-14 TOTAL CLASS'!N346","v":0},{"$f":"'FR-16(7)(v)-3 PROD Demand'!N346+'FR-16(7)(v)-7 TRANS Demand'!N346+'FR-16(7)(v)-11 DIST Demand'!N346","v":0},{"$f":"'FR-16(7)(v)-4 PROD Energy'!N346+'FR-16(7)(v)-8 TRANS Energy'!N346+'FR-16(7)(v)-12 DIST Energy'!N346","v":0},{"$f":"'FR-16(7)(v)-5 PROD Cust'!N346+'FR-16(7)(v)-9 TRANS Cust'!N346+'FR-16(7)(v)-13 DIST Cust'!N346","v":0},0,0]
[12,null,{"$f":"'FR-16(7)(v)-1 Functional'!C347","v":"POST RETIREMENT BENEFITS - HEALTH CARE"},{"$f":"'FR-16(7)(v)-1 Functional'!D347","v":"A315"},null,{"$f":"'FR-16(7)(v)-14 TOTAL CLASS'!N347","v":0},{"$f":"'FR-16(7)(v)-3 PROD Demand'!N347+'FR-16(7)(v)-7 TRANS Demand'!N347+'FR-16(7)(v)-11 DIST Demand'!N347","v":0},{"$f":"'FR-16(7)(v)-4 PROD Energy'!N347+'FR-16(7)(v)-8 TRANS Energy'!N347+'FR-16(7)(v)-12 DIST Energy'!N347","v":0},{"$f":"'FR-16(7)(v)-5 PROD Cust'!N347+'FR-16(7)(v)-9 TRANS Cust'!N347+'FR-16(7)(v)-13 DIST Cust'!N347","v":0},0,0]
[13,null,{"$f":"'FR-16(7)(v)-1 Functional'!C348","v":"POST EMPLOYMENT BENEFITS - SFAS 112"},{"$f":"'FR-16(7)(v)-1 Functional'!D348","v":"A315"},null,{"$f":"'FR-16(7)(v)-14 TOTAL CLASS'!N348","v":0},{"$f":"'FR-16(7)(v)-3 PROD Demand'!N348+'FR-16(7)(v)-7 TRANS Demand'!N348+'FR-16(7)(v)-11 DIST Demand'!N348","v":0},{"$f":"'FR-16(7)(v)-4 PROD Energy'!N348+'FR-16(7)(v)-8 TRANS Energy'!N348+'FR-16(7)(v)-12 DIST Energy'!N348","v":0},{"$f":"'FR-16(7)(v)-5 PROD Cust'!N348+'FR-16(7)(v)-9 TRANS Cust'!N348+'FR-16(7)(v)-13 DIST Cust'!N348","v":0},0,0]
[14,null,{"$f":"'FR-16(7)(v)-1 Functional'!C349","v":"SUPPLEMENTAL PENSION PLAN"},{"$f":"'FR-16(7)(v)-1 Functional'!D349","v":"A315"},null,{"$f":"'FR-16(7)(v)-14 TOTAL CLASS'!N349","v":0},{"$f":"'FR-16(7)(v)-3 PROD Demand'!N349+'FR-16(7)(v)-7 TRANS Demand'!N349+'FR-16(7)(v)-11 DIST Demand'!N349","v":0},{"$f":"'FR-16(7)(v)-4 PROD Energy'!N349+'FR-16(7)(v)-8 TRANS Energy'!N349+'FR-16(7)(v)-12 DIST Energy'!N349","v":0},{"$f":"'FR-16(7)(v)-5 PROD Cust'!N349+'FR-16(7)(v)-9 TRANS Cust'!N349+'FR-16(7)(v)-13 DIST Cust'!N349","v":0},0,0]
[15,null,{"$f":"'FR-16(7)(v)-1 Functional'!C350","v":"INCENTIVE PLAN"},{"$f":"'FR-16(7)(v)-1 Functional'!D350","v":"A315"},null,{"$f":"'FR-16(7)(v)-14 TOTAL CLASS'!N350","v":0},{"$f":"'FR-16(7)(v)-3 PROD Demand'!N350+'FR-16(7)(v)-7 TRANS Demand'!N350+'FR-16(7)(v)-11 DIST Demand'!N350","v":0},{"$f":"'FR-16(7)(v)-4 PROD Energy'!N350+'FR-16(7)(v)-8 TRANS Energy'!N350+'FR-16(7)(v)-12 DIST Energy'!N350","v":0},{"$f":"'FR-16(7)(v)-5 PROD Cust'!N350+'FR-16(7)(v)-9 TRANS Cust'!N350+'FR-16(7)(v)-13 DIST Cust'!N350","v":0},0,0]
[16,null,{"$f":"'FR-16(7)(v)-1 Functional'!C351","v":"FEDERAL DEFERRED TAX RECEIVEABLE"},{"$f":"'FR-16(7)(v)-1 Functional'!D351","v":"A315"},null,{"$f":"'FR-16(7)(v)-14 TOTAL CLASS'!N351","v":0},{"$f":"'FR-16(7)(v)-3 PROD Demand'!N351+'FR-16(7)(v)-7 TRANS Demand'!N351+'FR-16(7)(v)-11 DIST Demand'!N351","v":0},{"$f":"'FR-16(7)(v)-4 PROD Energy'!N351+'FR-16(7)(v)-8 TRANS Energy'!N351+'FR-16(7)(v)-12 DIST Energy'!N351","v":0},{"$f":"'FR-16(7)(v)-5 PROD Cust'!N351+'FR-16(7)(v)-9 TRANS Cust'!N351+'FR-16(7)(v)-13 DIST Cust'!N351","v":0},0,0]
[17,null,{"$f":"'FR-16(7)(v)-1 Functional'!C352","v":"MISCELLANEOUS"},{"$f":"'FR-16(7)(v)-1 Functional'!D352","v":"A315"},null,{"$f":"'FR-16(7)(v)-14 TOTAL CLASS'!N352","v":25088},{"$f":"'FR-16(7)(v)-3 PROD Demand'!N352+'FR-16(7)(v)-7 TRANS Demand'!N352+'FR-16(7)(v)-11 DIST Demand'!N352","v":7879},{"$f":"'FR-16(7)(v)-4 PROD Energy'!N352+'FR-16(7)(v)-8 TRANS Energy'!N352+'FR-16(7)(v)-12 DIST Energy'!N352","v":16915},{"$f":"'FR-16(7)(v)-5 PROD Cust'!N352+'FR-16(7)(v)-9 TRANS Cust'!N352+'FR-16(7)(v)-13 DIST Cust'!N352","v":294},25088,0]
[18,null,{"$f":"'FR-16(7)(v)-1 Functional'!C353","v":"DEFERRED TAX"},{"$f":"'FR-16(7)(v)-1 Functional'!D353","v":"A315"},null,{"$f":"'FR-16(7)(v)-14 TOTAL CLASS'!N353","v":11433},{"$f":"'FR-16(7)(v)-3 PROD Demand'!N353+'FR-16(7)(v)-7 TRANS Demand'!N353+'FR-16(7)(v)-11 DIST Demand'!N353","v":3591},{"$f":"'FR-16(7)(v)-4 PROD Energy'!N353+'FR-16(7)(v)-8 TRANS Energy'!N353+'FR-16(7)(v)-12 DIST Energy'!N353","v":7708},{"$f":"'FR-16(7)(v)-5 PROD Cust'!N353+'FR-16(7)(v)-9 TRANS Cust'!N353+'FR-16(7)(v)-13 DIST Cust'!N353","v":134},11433,0]
[19,null,{"$f":"'FR-16(7)(v)-1 Functional'!C354","v":"NET OPERATING LOSS"},{"$f":"'FR-16(7)(v)-1 Functional'!D354","v":"NP29"},null,{"$f":"'FR-16(7)(v)-14 TOTAL CLASS'!N354","v":0},{"$f":"'FR-16(7)(v)-3 PROD Demand'!N354+'FR-16(7)(v)-7 TRANS Demand'!N354+'FR-16(7)(v)-11 DIST Demand'!N354","v":0},{"$f":"'FR-16(7)(v)-4 PROD Energy'!N354+'FR-16(7)(v)-8 TRANS Energy'!N354+'FR-16(7)(v)-12 DIST Energy'!N354","v":0},{"$f":"'FR-16(7)(v)-5 PROD Cust'!N354+'FR-16(7)(v)-9 TRANS Cust'!N354+'FR-16(7)(v)-13 DIST Cust'!N354","v":0},0,0]
[20,null,{"$f":"'FR-16(7)(v)-1 Functional'!C355","v":"401K INCENTIVE PLAN"},{"$f":"'FR-16(7)(v)-1 Functional'!D355","v":"A315"},null,{"$f":"'FR-16(7)(v)-14 TOTAL CLASS'!N355","v":0},{"$f":"'FR-16(7)(v)-3 PROD Demand'!N355+'FR-16(7)(v)-7 TRANS Demand'!N355+'FR-16(7)(v)-11 DIST Demand'!N355","v":0},{"$f":"'FR-16(7)(v)-4 PROD Energy'!N355+'FR-16(7)(v)-8 TRANS Energy'!N355+'FR-16(7)(v)-12 DIST Energy'!N355","v":0},{"$f":"'FR-16(7)(v)-5 PROD Cust'!N355+'FR-16(7)(v)-9 TRANS Cust'!N355+'FR-16(7)(v)-13 DIST Cust'!N355","v":0},0,0]
[21,null,{"$f":"'FR-16(7)(v)-1 Functional'!C356","v":"ENVIRONMENTAL RESERVE"},{"$f":"'FR-16(7)(v)-1 Functional'!D356","v":"NP29"},null,{"$f":"'FR-16(7)(v)-14 TOTAL CLASS'!N356","v":0},{"$f":"'FR-16(7)(v)-3 PROD Demand'!N356+'FR-16(7)(v)-7 TRANS Demand'!N356+'FR-16(7)(v)-11 DIST Demand'!N356","v":0},{"$f":"'FR-16(7)(v)-4 PROD Energy'!N356+'FR-16(7)(v)-8 TRANS Energy'!N356+'FR-16(7)(v)-12 DIST Energy'!N356","v":0},{"$f":"'FR-16(7)(v)-5 PROD Cust'!N356+'FR-16(7)(v)-9 TRANS Cust'!N356+'FR-16(7)(v)-13 DIST Cust'!N356","v":0},0,0]
[22,null,{"$f":"'FR-16(7)(v)-1 Functional'!C357","v":"VACATION PAY ACCRUALS"},{"$f":"'FR-16(7)(v)-1 Functional'!D357","v":"A315"},null,{"$f":"'FR-16(7)(v)-14 TOTAL CLASS'!N357","v":1240},{"$f":"'FR-16(7)(v)-3 PROD Demand'!N357+'FR-16(7)(v)-7 TRANS Demand'!N357+'FR-16(7)(v)-11 DIST Demand'!N357","v":389},{"$f":"'FR-16(7)(v)-4 PROD Energy'!N357+'FR-16(7)(v)-8 TRANS Energy'!N357+'FR-16(7)(v)-12 DIST Energy'!N357","v":836},{"$f":"'FR-16(7)(v)-5 PROD Cust'!N357+'FR-16(7)(v)-9 TRANS Cust'!N357+'FR-16(7)(v)-13 DIST Cust'!N357","v":15},1240,0]
[23,null,{"$f":"'FR-16(7)(v)-1 Functional'!C358","v":"DEMAND SIDE MANAGEMENT DEFERRAL"},{"$f":"'FR-16(7)(v)-1 Functional'!D358","v":"NP29"},null,{"$f":"'FR-16(7)(v)-14 TOTAL CLASS'!N358","v":2551},{"$f":"'FR-16(7)(v)-3 PROD Demand'!N358+'FR-16(7)(v)-7 TRANS Demand'!N358+'FR-16(7)(v)-11 DIST Demand'!N358","v":2496},{"$f":"'FR-16(7)(v)-4 PROD Energy'!N358+'FR-16(7)(v)-8 TRANS Energy'!N358+'FR-16(7)(v)-12 DIST Energy'!N358","v":46},{"$f":"'FR-16(7)(v)-5 PROD Cust'!N358+'FR-16(7)(v)-9 TRANS Cust'!N358+'FR-16(7)(v)-13 DIST Cust'!N358","v":9},2551,0]
[24,null,{"$f":"'FR-16(7)(v)-1 Functional'!C359","v":"OPERATING LEASE OBLIGATION"},{"$f":"'FR-16(7)(v)-1 Functional'!D359","v":"NP29"},null,{"$f":"'FR-16(7)(v)-14 TOTAL CLASS'!N359","v":9442},{"$f":"'FR-16(7)(v)-3 PROD Demand'!N359+'FR-16(7)(v)-7 TRANS Demand'!N359+'FR-16(7)(v)-11 DIST Demand'!N359","v":9237},{"$f":"'FR-16(7)(v)-4 PROD Energy'!N359+'FR-16(7)(v)-8 TRANS Energy'!N359+'FR-16(7)(v)-12 DIST Energy'!N359","v":171},{"$f":"'FR-16(7)(v)-5 PROD Cust'!N359+'FR-16(7)(v)-9 TRANS Cust'!N359+'FR-16(7)(v)-13 DIST Cust'!N359","v":34},9442,0]
[25,null,{"$f":"'FR-16(7)(v)-1 Functional'!C360","v":"INJURIES & DAMAGES"},{"$f":"'FR-16(7)(v)-1 Functional'!D360","v":"NP29"},null,{"$f":"'FR-16(7)(v)-14 TOTAL CLASS'!N360","v":0},{"$f":"'FR-16(7)(v)-3 PROD Demand'!N360+'FR-16(7)(v)-7 TRANS Demand'!N360+'FR-16(7)(v)-11 DIST Demand'!N360","v":0},{"$f":"'FR-16(7)(v)-4 PROD Energy'!N360+'FR-16(7)(v)-8 TRANS Energy'!N360+'FR-16(7)(v)-12 DIST Energy'!N360","v":0},{"$f":"'FR-16(7)(v)-5 PROD Cust'!N360+'FR-16(7)(v)-9 TRANS Cust'!N360+'FR-16(7)(v)-13 DIST Cust'!N360","v":0},0,0]
[26,null,{"$f":"'FR-16(7)(v)-1 Functional'!C361","v":"  TOTAL ACCOUNT 190"},null,null,{"$f":"SUM(F337:F360)","v":58376},26285,31459,632,58376,0]
[27]
[28," OTHER"]
[29,null,{"$f":"'FR-16(7)(v)-1 Functional'!C364","v":"RESERVED FOR FUTURE USE"},{"$f":"'FR-16(7)(v)-1 Functional'!D364","v":"NP29"},null,{"$f":"'FR-16(7)(v)-14 TOTAL CLASS'!N364","v":0},{"$f":"'FR-16(7)(v)-3 PROD Demand'!N364+'FR-16(7)(v)-7 TRANS Demand'!N364+'FR-16(7)(v)-11 DIST Demand'!N364","v":0},{"$f":"'FR-16(7)(v)-4 PROD Energy'!N364+'FR-16(7)(v)-8 TRANS Energy'!N364+'FR-16(7)(v)-12 DIST Energy'!N364","v":0},{"$f":"'FR-16(7)(v)-5 PROD Cust'!N364+'FR-16(7)(v)-9 TRANS Cust'!N364+'FR-16(7)(v)-13 DIST Cust'!N364","v":0},{"$f":"SUM(G364:I364)","v":0},{"$f":"F364-J364","v":0}]
[30,null,{"$f":"'FR-16(7)(v)-1 Functional'!C365","v":"RATE CASE EXPENSE REGULATORY ASSET"},{"$f":"'FR-16(7)(v)-1 Functional'!D365","v":"NP29"},null,{"$f":"'FR-16(7)(v)-14 TOTAL CLASS'!N365","v":3824},{"$f":"'FR-16(7)(v)-3 PROD Demand'!N365+'FR-16(7)(v)-7 TRANS Demand'!N365+'FR-16(7)(v)-11 DIST Demand'!N365","v":3741},{"$f":"'FR-16(7)(v)-4 PROD Energy'!N365+'FR-16(7)(v)-8 TRANS Energy'!N365+'FR-16(7)(v)-12 DIST Energy'!N365","v":69},{"$f":"'FR-16(7)(v)-5 PROD Cust'!N365+'FR-16(7)(v)-9 TRANS Cust'!N365+'FR-16(7)(v)-13 DIST Cust'!N365","v":14},{"$f":"SUM(G365:I365)","v":3824},{"$f":"F365-J365","v":0}]
[31,null,{"$f":"'FR-16(7)(v)-1 Functional'!C366","v":"RESERVED FOR FUTURE USE"},{"$f":"'FR-16(7)(v)-1 Functional'!D366","v":"NP29"},null,{"$f":"'FR-16(7)(v)-14 TOTAL CLASS'!N366","v":0},{"$f":"'FR-16(7)(v)-3 PROD Demand'!N366+'FR-16(7)(v)-7 TRANS Demand'!N366+'FR-16(7)(v)-11 DIST Demand'!N366","v":0},{"$f":"'FR-16(7)(v)-4 PROD Energy'!N366+'FR-16(7)(v)-8 TRANS Energy'!N366+'FR-16(7)(v)-12 DIST Energy'!N366","v":0},{"$f":"'FR-16(7)(v)-5 PROD Cust'!N366+'FR-16(7)(v)-9 TRANS Cust'!N366+'FR-16(7)(v)-13 DIST Cust'!N366","v":0},{"$f":"SUM(G366:I366)","v":0},{"$f":"F366-J366","v":0}]
[32,null,{"$f":"'FR-16(7)(v)-1 Functional'!C367","v":"  OTHER"},null,null,{"$f":"SUM(F364:F366)","v":3824},{"$f":"SUM(G363:G366)","v":3741},{"$f":"SUM(H363:H366)","v":69},{"$f":"SUM(I363:I366)","v":14},{"$f":"SUM(J363:J366)","v":3824},{"$f":"SUM(K363:K366)","v":0}]
[33,null,null,null,null," "]
[34,"CONSTRUCTION WORK IN PROGRESS"]
[35,null,{"$f":"'FR-16(7)(v)-1 Functional'!C370","v":"PRODUCTION"},{"$f":"'FR-16(7)(v)-1 Functional'!D370","v":"P129"},null,{"$f":"'FR-16(7)(v)-14 TOTAL CLASS'!N370","v":0},{"$f":"'FR-16(7)(v)-3 PROD Demand'!N370+'FR-16(7)(v)-7 TRANS Demand'!N370+'FR-16(7)(v)-11 DIST Demand'!N370","v":0},{"$f":"'FR-16(7)(v)-4 PROD Energy'!N370+'FR-16(7)(v)-8 TRANS Energy'!N370+'FR-16(7)(v)-12 DIST Energy'!N370","v":0},{"$f":"'FR-16(7)(v)-5 PROD Cust'!N370+'FR-16(7)(v)-9 TRANS Cust'!N370+'FR-16(7)(v)-13 DIST Cust'!N370","v":0},{"$f":"SUM(G370:I370)","v":0},{"$f":"F370-J370","v":0}]
[36,null,{"$f":"'FR-16(7)(v)-1 Functional'!C371","v":"TRANSMISSION"},{"$f":"'FR-16(7)(v)-1 Functional'!D371","v":"T129"},null,{"$f":"'FR-16(7)(v)-14 TOTAL CLASS'!N371","v":0},{"$f":"'FR-16(7)(v)-3 PROD Demand'!N371+'FR-16(7)(v)-7 TRANS Demand'!N371+'FR-16(7)(v)-11 DIST Demand'!N371","v":0},{"$f":"'FR-16(7)(v)-4 PROD Energy'!N371+'FR-16(7)(v)-8 TRANS Energy'!N371+'FR-16(7)(v)-12 DIST Energy'!N371","v":0},{"$f":"'FR-16(7)(v)-5 PROD Cust'!N371+'FR-16(7)(v)-9 TRANS Cust'!N371+'FR-16(7)(v)-13 DIST Cust'!N371","v":0},{"$f":"SUM(G371:I371)","v":0},{"$f":"F371-J371","v":0}]
[37,null,{"$f":"'FR-16(7)(v)-1 Functional'!C372","v":"DISTRIBUTION"},{"$f":"'FR-16(7)(v)-1 Functional'!D372","v":"D149"},null,{"$f":"'FR-16(7)(v)-14 TOTAL CLASS'!N372","v":0},{"$f":"'FR-16(7)(v)-3 PROD Demand'!N372+'FR-16(7)(v)-7 TRANS Demand'!N372+'FR-16(7)(v)-11 DIST Demand'!N372","v":0},{"$f":"'FR-16(7)(v)-4 PROD Energy'!N372+'FR-16(7)(v)-8 TRANS Energy'!N372+'FR-16(7)(v)-12 DIST Energy'!N372","v":0},{"$f":"'FR-16(7)(v)-5 PROD Cust'!N372+'FR-16(7)(v)-9 TRANS Cust'!N372+'FR-16(7)(v)-13 DIST Cust'!N372","v":0},{"$f":"SUM(G372:I372)","v":0},{"$f":"F372-J372","v":0}]
[38,null,{"$f":"'FR-16(7)(v)-1 Functional'!C373","v":"COMMON"},{"$f":"'FR-16(7)(v)-1 Functional'!D373","v":"C129"},null,{"$f":"'FR-16(7)(v)-14 TOTAL CLASS'!N373","v":0},{"$f":"'FR-16(7)(v)-3 PROD Demand'!N373+'FR-16(7)(v)-7 TRANS Demand'!N373+'FR-16(7)(v)-11 DIST Demand'!N373","v":0},{"$f":"'FR-16(7)(v)-4 PROD Energy'!N373+'FR-16(7)(v)-8 TRANS Energy'!N373+'FR-16(7)(v)-12 DIST Energy'!N373","v":0},{"$f":"'FR-16(7)(v)-5 PROD Cust'!N373+'FR-16(7)(v)-9 TRANS Cust'!N373+'FR-16(7)(v)-13 DIST Cust'!N373","v":0},{"$f":"SUM(G373:I373)","v":0},{"$f":"F373-J373","v":0}]
[39,null,{"$f":"'FR-16(7)(v)-1 Functional'!C374","v":"GENERAL"},{"$f":"'FR-16(7)(v)-1 Functional'!D374","v":"G129"},null,{"$f":"'FR-16(7)(v)-14 TOTAL CLASS'!N374","v":0},{"$f":"'FR-16(7)(v)-3 PROD Demand'!N374+'FR-16(7)(v)-7 TRANS Demand'!N374+'FR-16(7)(v)-11 DIST Demand'!N374","v":0},{"$f":"'FR-16(7)(v)-4 PROD Energy'!N374+'FR-16(7)(v)-8 TRANS Energy'!N374+'FR-16(7)(v)-12 DIST Energy'!N374","v":0},{"$f":"'FR-16(7)(v)-5 PROD Cust'!N374+'FR-16(7)(v)-9 TRANS Cust'!N374+'FR-16(7)(v)-13 DIST Cust'!N374","v":0},{"$f":"SUM(G374:I374)","v":0},{"$f":"F374-J374","v":0}]
[40,null,{"$f":"'FR-16(7)(v)-1 Functional'!C375","v":"TOTAL CONSTRUCTION WORK IN PROGRESS"},null,null,{"$f":"SUM(F370:F374)","v":0},0,0,0,0,0]
[41]
[42,{"$f":"'FR-16(7)(v)-1 Functional'!B377","v":"TOTAL ADDITIVE RATE BASE ADJUSTMENTS"},null,null,null,{"$f":"F361+F367+F375","v":62200},30026,31528,646,62200,0]
[]
[{"$f":"co_name","v":"DUKE ENERGY KENTUCKY, INC."},null,null,null,null,null,null,null,null,{"$f":"J1","v":"FR-16(7)(v)-22"}]
[{"$f":"$A$2","v":"DISTR. PRIMARY CLASSIFIED - ELECTRIC COST OF SERVICE"},null,null,null,null,null,null,null,null,{"$f":"J2","v":"WITNESS RESPONSIBLE:"}]
[{"$f":"case_name","v":"CASE NO: 2019-00271"},null,null,null,null,null,null,null,null,{"$f":"Witness","v":"JAMES E. ZIOLKOWSKI"}]
[{"$f":"data_filing","v":"DATA: 12 MONTHS ACTUAL  & 0 MONTHS ESTIMATED"},null,null,null,null,null,null,null,null,{"$f":"\"PAGE \"&Pages2-8&\" OF \"&Pages2","v":"PAGE 7 OF 15"}]
[{"$f":"type","v":"TYPE OF FILING: \"X\" ORIGINAL   UPDATED    REVISED  "}]
[]
[]
["LINE",null,null,null,null,"TOTAL","CLASSIFIED",null,null,"TOTAL","ALL"]
["NO.","WORKING CAPITAL",null,"ALLO",null,{"$f":"$F$9","v":"DISTR. PRIMARY"},{"$f":"G9","v":"DEMAND"},"ENERGY","CUSTOMER","AT ISSUE","OTHER"]
[null,null,"Schedule 5.2",null,null,null,3,4,5]
[]
[1,"NET ORIGINAL COST RATE BASE",null,null,null,{"$f":"F277-F324+F377","v":3573084},3522217,37278,13589,3573084,0]
[2]
[3,"WORKING CAPITAL"]
[4]
[5,"PLANT MATERIALS & SUPPLIES"]
[6,null,{"$f":"'FR-16(7)(v)-1 Functional'!C395","v":"OTHER MATERIALS & SUPPLIES"},{"$f":"'FR-16(7)(v)-1 Functional'!D395","v":"PD29"},null,{"$f":"'FR-16(7)(v)-14 TOTAL CLASS'!N395","v":62379},{"$f":"'FR-16(7)(v)-3 PROD Demand'!N395+'FR-16(7)(v)-7 TRANS Demand'!N395+'FR-16(7)(v)-11 DIST Demand'!N395","v":32938},{"$f":"'FR-16(7)(v)-4 PROD Energy'!N395+'FR-16(7)(v)-8 TRANS Energy'!N395+'FR-16(7)(v)-12 DIST Energy'!N395","v":28332},{"$f":"'FR-16(7)(v)-5 PROD Cust'!N395+'FR-16(7)(v)-9 TRANS Cust'!N395+'FR-16(7)(v)-13 DIST Cust'!N395","v":1109},{"$f":"SUM(G395:I395)","v":62379},{"$f":"F395-J395","v":0}]
[7,null,{"$f":"'FR-16(7)(v)-1 Functional'!C396","v":"FUEL"},{"$f":"'FR-16(7)(v)-1 Functional'!D396","v":"K301"},null,{"$f":"'FR-16(7)(v)-14 TOTAL CLASS'!N396","v":104812},{"$f":"'FR-16(7)(v)-3 PROD Demand'!N396+'FR-16(7)(v)-7 TRANS Demand'!N396+'FR-16(7)(v)-11 DIST Demand'!N396","v":0},{"$f":"'FR-16(7)(v)-4 PROD Energy'!N396+'FR-16(7)(v)-8 TRANS Energy'!N396+'FR-16(7)(v)-12 DIST Energy'!N396","v":104812},{"$f":"'FR-16(7)(v)-5 PROD Cust'!N396+'FR-16(7)(v)-9 TRANS Cust'!N396+'FR-16(7)(v)-13 DIST Cust'!N396","v":0},{"$f":"SUM(G396:I396)","v":104812},{"$f":"F396-J396","v":0}]
[8,null,{"$f":"'FR-16(7)(v)-1 Functional'!C397","v":"EMISSION ALLOWANCES"},{"$f":"'FR-16(7)(v)-1 Functional'!D397","v":"K301"},null,{"$f":"'FR-16(7)(v)-14 TOTAL CLASS'!N397","v":0},{"$f":"'FR-16(7)(v)-3 PROD Demand'!N397+'FR-16(7)(v)-7 TRANS Demand'!N397+'FR-16(7)(v)-11 DIST Demand'!N397","v":0},{"$f":"'FR-16(7)(v)-4 PROD Energy'!N397+'FR-16(7)(v)-8 TRANS Energy'!N397+'FR-16(7)(v)-12 DIST Energy'!N397","v":0},{"$f":"'FR-16(7)(v)-5 PROD Cust'!N397+'FR-16(7)(v)-9 TRANS Cust'!N397+'FR-16(7)(v)-13 DIST Cust'!N397","v":0},{"$f":"SUM(G397:I397)","v":0},{"$f":"F397-J397","v":0}]
[9,null,{"$f":"'FR-16(7)(v)-1 Functional'!C398","v":"  TOTAL PLANT MATS. & SUPPLIES"},null,null,{"$f":"SUM(F394:F397)","v":167191},32938,133144,1109,167191,0]
[10,"TOTAL MATERIALS & SUPPLIES",null,null,null,{"$f":"F398","v":167191},32938,133144,1109,167191,0]
[11]
[12,"PREPAYMENTS"]
[13,null,{"$f":"'FR-16(7)(v)-1 Functional'!C402","v":"INSURANCE GENERAL"},{"$f":"'FR-16(7)(v)-1 Functional'!D402","v":"NP29"},null,{"$f":"'FR-16(7)(v)-14 TOTAL CLASS'!N402","v":1129},{"$f":"'FR-16(7)(v)-3 PROD Demand'!N402+'FR-16(7)(v)-7 TRANS Demand'!N402+'FR-16(7)(v)-11 DIST Demand'!N402","v":1105},{"$f":"'FR-16(7)(v)-4 PROD Energy'!N402+'FR-16(7)(v)-8 TRANS Energy'!N402+'FR-16(7)(v)-12 DIST Energy'!N402","v":20},{"$f":"'FR-16(7)(v)-5 PROD Cust'!N402+'FR-16(7)(v)-9 TRANS Cust'!N402+'FR-16(7)(v)-13 DIST Cust'!N402","v":4},{"$f":"SUM(G402:I402)","v":1129},{"$f":"F402-J402","v":0}]
[14,null,{"$f":"'FR-16(7)(v)-1 Functional'!C403","v":"EXCISE TAX"},{"$f":"'FR-16(7)(v)-1 Functional'!D403","v":"NP29"},null,{"$f":"'FR-16(7)(v)-14 TOTAL CLASS'!N403","v":0},{"$f":"'FR-16(7)(v)-3 PROD Demand'!N403+'FR-16(7)(v)-7 TRANS Demand'!N403+'FR-16(7)(v)-11 DIST Demand'!N403","v":0},{"$f":"'FR-16(7)(v)-4 PROD Energy'!N403+'FR-16(7)(v)-8 TRANS Energy'!N403+'FR-16(7)(v)-12 DIST Energy'!N403","v":0},{"$f":"'FR-16(7)(v)-5 PROD Cust'!N403+'FR-16(7)(v)-9 TRANS Cust'!N403+'FR-16(7)(v)-13 DIST Cust'!N403","v":0},{"$f":"SUM(G403:I403)","v":0},{"$f":"F403-J403","v":0}]
[15,null,{"$f":"'FR-16(7)(v)-1 Functional'!C404","v":"COLLATERAL ASSET"},{"$f":"'FR-16(7)(v)-1 Functional'!D404","v":"K301"},null,{"$f":"'FR-16(7)(v)-14 TOTAL CLASS'!N404","v":-237},{"$f":"'FR-16(7)(v)-3 PROD Demand'!N404+'FR-16(7)(v)-7 TRANS Demand'!N404+'FR-16(7)(v)-11 DIST Demand'!N404","v":0},{"$f":"'FR-16(7)(v)-4 PROD Energy'!N404+'FR-16(7)(v)-8 TRANS Energy'!N404+'FR-16(7)(v)-12 DIST Energy'!N404","v":-237},{"$f":"'FR-16(7)(v)-5 PROD Cust'!N404+'FR-16(7)(v)-9 TRANS Cust'!N404+'FR-16(7)(v)-13 DIST Cust'!N404","v":0},{"$f":"SUM(G404:I404)","v":-237},{"$f":"F404-J404","v":0}]
[16,null,{"$f":"'FR-16(7)(v)-1 Functional'!C405","v":"  TOTAL PREPAYMENTS"},null,null,{"$f":"SUM(F401:F404)","v":892},1105,-217,4,892,0]
[17]
[18,"AUTO CALC (O&M-ELECTRIC FUEL COST)/8",null,null,null,{"$f":"'FR-16(7)(v)-14 TOTAL CLASS'!N407","v":64500},{"$f":"'FR-16(7)(v)-3 PROD Demand'!N407+'FR-16(7)(v)-7 TRANS Demand'!N407+'FR-16(7)(v)-11 DIST Demand'!N407","v":64500},{"$f":"'FR-16(7)(v)-4 PROD Energy'!N407+'FR-16(7)(v)-8 TRANS Energy'!N407+'FR-16(7)(v)-12 DIST Energy'!N407","v":0},{"$f":"'FR-16(7)(v)-5 PROD Cust'!N407+'FR-16(7)(v)-9 TRANS Cust'!N407+'FR-16(7)(v)-13 DIST Cust'!N407","v":0},{"$f":"SUM(G407:I407)","v":64500},{"$f":"F407-J407","v":0}]
[19,"  TOTAL WORKING CASH",null,null,null,{"$f":"F407","v":64500},64500,0,0,64500,0]
[20]
[21,"MISCELLANEOUS WORKING CAPITAL"]
[22,null,{"$f":"'FR-16(7)(v)-1 Functional'!C411","v":"RESERVED FOR FUTURE USE"},{"$f":"'FR-16(7)(v)-1 Functional'!D411","v":"K301"},null,{"$f":"'FR-16(7)(v)-14 TOTAL CLASS'!N411","v":0},{"$f":"'FR-16(7)(v)-3 PROD Demand'!N411+'FR-16(7)(v)-7 TRANS Demand'!N411+'FR-16(7)(v)-11 DIST Demand'!N411","v":0},{"$f":"'FR-16(7)(v)-4 PROD Energy'!N411+'FR-16(7)(v)-8 TRANS Energy'!N411+'FR-16(7)(v)-12 DIST Energy'!N411","v":0},{"$f":"'FR-16(7)(v)-5 PROD Cust'!N411+'FR-16(7)(v)-9 TRANS Cust'!N411+'FR-16(7)(v)-13 DIST Cust'!N411","v":0},{"$f":"SUM(G411:I411)","v":0},{"$f":"F411-J411","v":0}]
[23,null,{"$f":"'FR-16(7)(v)-1 Functional'!C412","v":"PIPP UNCOLLECTIBLES"},{"$f":"'FR-16(7)(v)-1 Functional'!D412","v":"A315"},null,{"$f":"'FR-16(7)(v)-14 TOTAL CLASS'!N412","v":0},{"$f":"'FR-16(7)(v)-3 PROD Demand'!N412+'FR-16(7)(v)-7 TRANS Demand'!N412+'FR-16(7)(v)-11 DIST Demand'!N412","v":0},{"$f":"'FR-16(7)(v)-4 PROD Energy'!N412+'FR-16(7)(v)-8 TRANS Energy'!N412+'FR-16(7)(v)-12 DIST Energy'!N412","v":0},{"$f":"'FR-16(7)(v)-5 PROD Cust'!N412+'FR-16(7)(v)-9 TRANS Cust'!N412+'FR-16(7)(v)-13 DIST Cust'!N412","v":0},{"$f":"SUM(G412:I412)","v":0},{"$f":"F412-J412","v":0}]
[24,null,{"$f":"'FR-16(7)(v)-1 Functional'!C413","v":"RESERVED FOR FUTURE USE"},{"$f":"'FR-16(7)(v)-1 Functional'!D413","v":"D249"},null,{"$f":"'FR-16(7)(v)-14 TOTAL CLASS'!N413","v":0},{"$f":"'FR-16(7)(v)-3 PROD Demand'!N413+'FR-16(7)(v)-7 TRANS Demand'!N413+'FR-16(7)(v)-11 DIST Demand'!N413","v":0},{"$f":"'FR-16(7)(v)-4 PROD Energy'!N413+'FR-16(7)(v)-8 TRANS Energy'!N413+'FR-16(7)(v)-12 DIST Energy'!N413","v":0},{"$f":"'FR-16(7)(v)-5 PROD Cust'!N413+'FR-16(7)(v)-9 TRANS Cust'!N413+'FR-16(7)(v)-13 DIST Cust'!N413","v":0},{"$f":"SUM(G413:I413)","v":0},{"$f":"F413-J413","v":0}]
[25,null,{"$f":"'FR-16(7)(v)-1 Functional'!C414","v":"  TOTAL MISC WORK CAPITAL"},null,null,{"$f":"SUM(F410:F413)","v":0},0,0,0,0,0]
[26]
[27,"TOTAL WORKING CAPITAL",null,null,null,{"$f":"F399+F405+F408+F414","v":232583},98543,132927,1113,232583,0]
[28,"PRELIMINARY SUMMARY"]
[29,null,{"$f":"'FR-16(7)(v)-1 Functional'!C418","v":"TOTAL ACCUMULATED DEFERRED INCOME TAXES"},null,null,{"$f":"-F324","v":-1136817},-1054606,-78328,-3883,-1136817,0]
[30,null,{"$f":"'FR-16(7)(v)-1 Functional'!C419","v":"TOTAL OTHER ACCUMULATED DEFERRED INCOME TAXES"},null,null,{"$f":"F377","v":62200},30026,31528,646,62200,0]
[31,null,{"$f":"'FR-16(7)(v)-1 Functional'!C420","v":"TOTAL WORKING CAPITAL"},null,null,{"$f":"F416","v":232583},98543,132927,1113,232583,0]
[32,null,{"$f":"'FR-16(7)(v)-1 Functional'!C421","v":"  TOTAL RATE BASE ADJUSTMENTS"},null,null,{"$f":"SUM(F417:F420)","v":-842034},-926037,86127,-2124,-842034,0]
[33]
[34,"RATE BASE CALCULATION"]
[35,null,{"$f":"'FR-16(7)(v)-1 Functional'!C424","v":"NET ELECTRIC PLANT IN SERVICE"},null,null,{"$f":"F277","v":4647701},4546797,84078,16826,4647701,0]
[36,null,{"$f":"'FR-16(7)(v)-1 Functional'!C425","v":"TOTAL RATE BASE ADJUSTMENTS"},null,null,{"$f":"F421","v":-842034},-926037,86127,-2124,-842034,0]
[37,null,{"$f":"'FR-16(7)(v)-1 Functional'!C426","v":"  TOTAL RATE BASE"},null,null,{"$f":"SUM(F423:F425)","v":3805667},3620760,170205,14702,3805667,0]
[38]
[39,"TOTAL RATE OF RETURN ALLOWABLE",null,null,null,{"$f":"$F$811","v":6.7100000000000007E-2},{"$f":"F811","v":6.7100000000000007E-2},{"$f":"F811","v":6.7100000000000007E-2},{"$f":"F811","v":6.7100000000000007E-2},{"$f":"F811","v":6.7100000000000007E-2}]
[40,"RETURN ON RATE BASE",null,null,null,{"$f":"ROUND(F428*F426,0)","v":255360},{"$f":"F429-SUM(H429:I429)","v":242952},{"$f":"ROUND(H426*H428,0)","v":11421},{"$f":"ROUND(I426*I428,0)","v":987},{"$f":"SUM(G429:I429)","v":255360},{"$f":"ROUND(K426*K428,0)","v":0}]
[41]
[42,{"$f":"'FR-16(7)(v)-1 Functional'!B431","v":"ELECTRIC RATE BASE"},null,{"$f":"'FR-16(7)(v)-1 Functional'!D431","v":"RB99"},null,{"$f":"'FR-16(7)(v)-14 TOTAL CLASS'!N431","v":3811616},{"$f":"'FR-16(7)(v)-3 PROD Demand'!N431+'FR-16(7)(v)-7 TRANS Demand'!N431+'FR-16(7)(v)-11 DIST Demand'!N431","v":3626422},{"$f":"'FR-16(7)(v)-4 PROD Energy'!N431+'FR-16(7)(v)-8 TRANS Energy'!N431+'FR-16(7)(v)-12 DIST Energy'!N431","v":170322},{"$f":"'FR-16(7)(v)-5 PROD Cust'!N431+'FR-16(7)(v)-9 TRANS Cust'!N431+'FR-16(7)(v)-13 DIST Cust'!N431","v":14872},{"$f":"SUM(G431:I431)","v":3811616},{"$f":"F431-J431","v":0}]
[43,{"$f":"'FR-16(7)(v)-1 Functional'!B432","v":"TOTAL RATE OF RETURN ALLOWABLE"},null,null,null,{"$f":"RofR","v":6.7110000000000003E-2},{"$f":"RofR","v":6.7110000000000003E-2},{"$f":"RofR","v":6.7110000000000003E-2},{"$f":"RofR","v":6.7110000000000003E-2},{"$f":"RofR","v":6.7110000000000003E-2}]
[44,{"$f":"'FR-16(7)(v)-1 Functional'!B433","v":"RETURN ON RATE BASE"},null,null,null,{"$f":"ROUND(F431*F432,0)","v":255798},{"$f":"F433-H433-I433","v":243370},{"$f":"ROUND(H431*H432,0)","v":11430},{"$f":"ROUND(I431*I432,0)","v":998},{"$f":"ROUND(J431*J432,0)","v":255798},{"$f":"F433-J433","v":0}]
[]
[{"$f":"co_name","v":"DUKE ENERGY KENTUCKY, INC."},null,null,null,null,null,null,null,null,{"$f":"J1","v":"FR-16(7)(v)-22"}]
[{"$f":"$A$2","v":"DISTR. PRIMARY CLASSIFIED - ELECTRIC COST OF SERVICE"},null,null,null,null,null,null,null,null,{"$f":"J2","v":"WITNESS RESPONSIBLE:"}]
[{"$f":"case_name","v":"CASE NO: 2019-00271"},null,null,null,null,null,null,null,null,{"$f":"Witness","v":"JAMES E. ZIOLKOWSKI"}]
[{"$f":"data_filing","v":"DATA: 12 MONTHS ACTUAL  & 0 MONTHS ESTIMATED"},null,null,null,null,null,null,null,null,{"$f":"\"PAGE \"&Pages2-7&\" OF \"&Pages2","v":"PAGE 8 OF 15"}]
[{"$f":"type","v":"TYPE OF FILING: \"X\" ORIGINAL   UPDATED    REVISED  "}]
[]
[]
["LINE",null,null,null,null,"TOTAL","CLASSIFIED",null,null,"TOTAL","ALL"]
["NO.","O&M EXPENSES",null,"ALLO",null,{"$f":"$F$9","v":"DISTR. PRIMARY"},{"$f":"G9","v":"DEMAND"},"ENERGY","CUSTOMER","AT ISSUE","OTHER"]
[null,null,"Schedule 6",null,null,null,3,4,5]
[1,"PRODUCTION O&M"]
[2,{"$f":"'FR-16(7)(v)-1 Functional'!B446","v":"ENERGY RELATED PRODUCTION O&M"}]
[3,null,{"$f":"'FR-16(7)(v)-1 Functional'!C447","v":"FUEL"},{"$f":"'FR-16(7)(v)-1 Functional'!D447","v":"K302"},null,{"$f":"'FR-16(7)(v)-14 TOTAL CLASS'!N447","v":0},{"$f":"'FR-16(7)(v)-3 PROD Demand'!N447+'FR-16(7)(v)-7 TRANS Demand'!N447+'FR-16(7)(v)-11 DIST Demand'!N447","v":0},{"$f":"'FR-16(7)(v)-4 PROD Energy'!N447+'FR-16(7)(v)-8 TRANS Energy'!N447+'FR-16(7)(v)-12 DIST Energy'!N447","v":0},{"$f":"'FR-16(7)(v)-5 PROD Cust'!N447+'FR-16(7)(v)-9 TRANS Cust'!N447+'FR-16(7)(v)-13 DIST Cust'!N447","v":0},{"$f":"SUM(G447:I447)","v":0},{"$f":"F447-J447","v":0}]
[4,null,{"$f":"'FR-16(7)(v)-1 Functional'!C448","v":"FUEL AND PURCHASED POWER ADJUSTMENT"},{"$f":"'FR-16(7)(v)-1 Functional'!D448","v":"K302"},null,{"$f":"'FR-16(7)(v)-14 TOTAL CLASS'!N448","v":542050},{"$f":"'FR-16(7)(v)-3 PROD Demand'!N448+'FR-16(7)(v)-7 TRANS Demand'!N448+'FR-16(7)(v)-11 DIST Demand'!N448","v":0},{"$f":"'FR-16(7)(v)-4 PROD Energy'!N448+'FR-16(7)(v)-8 TRANS Energy'!N448+'FR-16(7)(v)-12 DIST Energy'!N448","v":542050},{"$f":"'FR-16(7)(v)-5 PROD Cust'!N448+'FR-16(7)(v)-9 TRANS Cust'!N448+'FR-16(7)(v)-13 DIST Cust'!N448","v":0},542050,0]
[5,null,{"$f":"'FR-16(7)(v)-1 Functional'!C449","v":"EMISSION ALLOWANCES"},{"$f":"'FR-16(7)(v)-1 Functional'!D449","v":"K301"},null,{"$f":"'FR-16(7)(v)-14 TOTAL CLASS'!N449","v":0},{"$f":"'FR-16(7)(v)-3 PROD Demand'!N449+'FR-16(7)(v)-7 TRANS Demand'!N449+'FR-16(7)(v)-11 DIST Demand'!N449","v":0},{"$f":"'FR-16(7)(v)-4 PROD Energy'!N449+'FR-16(7)(v)-8 TRANS Energy'!N449+'FR-16(7)(v)-12 DIST Energy'!N449","v":0},{"$f":"'FR-16(7)(v)-5 PROD Cust'!N449+'FR-16(7)(v)-9 TRANS Cust'!N449+'FR-16(7)(v)-13 DIST Cust'!N449","v":0},0,0]
[6,null,{"$f":"'FR-16(7)(v)-1 Functional'!C450","v":"ELIMINATE EMISSION ALLOW & OTHER VAR COST"},{"$f":"'FR-16(7)(v)-1 Functional'!D450","v":"K301"},null,{"$f":"'FR-16(7)(v)-14 TOTAL CLASS'!N450","v":0},{"$f":"'FR-16(7)(v)-3 PROD Demand'!N450+'FR-16(7)(v)-7 TRANS Demand'!N450+'FR-16(7)(v)-11 DIST Demand'!N450","v":0},{"$f":"'FR-16(7)(v)-4 PROD Energy'!N450+'FR-16(7)(v)-8 TRANS Energy'!N450+'FR-16(7)(v)-12 DIST Energy'!N450","v":0},{"$f":"'FR-16(7)(v)-5 PROD Cust'!N450+'FR-16(7)(v)-9 TRANS Cust'!N450+'FR-16(7)(v)-13 DIST Cust'!N450","v":0},0,0]
[7,null,{"$f":"'FR-16(7)(v)-1 Functional'!C451","v":"OTHER PRODUCTION EXPENSE - MAINTENANCE"},{"$f":"'FR-16(7)(v)-1 Functional'!D451","v":"K301"},null,{"$f":"'FR-16(7)(v)-14 TOTAL CLASS'!N451","v":218471},{"$f":"'FR-16(7)(v)-3 PROD Demand'!N451+'FR-16(7)(v)-7 TRANS Demand'!N451+'FR-16(7)(v)-11 DIST Demand'!N451","v":0},{"$f":"'FR-16(7)(v)-4 PROD Energy'!N451+'FR-16(7)(v)-8 TRANS Energy'!N451+'FR-16(7)(v)-12 DIST Energy'!N451","v":218471},{"$f":"'FR-16(7)(v)-5 PROD Cust'!N451+'FR-16(7)(v)-9 TRANS Cust'!N451+'FR-16(7)(v)-13 DIST Cust'!N451","v":0},218471,0]
[8,null,{"$f":"'FR-16(7)(v)-1 Functional'!C452","v":"MISO TRANSMISSION CHARGES - ACCT 555"},{"$f":"'FR-16(7)(v)-1 Functional'!D452","v":"K301"},null,{"$f":"'FR-16(7)(v)-14 TOTAL CLASS'!N452","v":0},{"$f":"'FR-16(7)(v)-3 PROD Demand'!N452+'FR-16(7)(v)-7 TRANS Demand'!N452+'FR-16(7)(v)-11 DIST Demand'!N452","v":0},{"$f":"'FR-16(7)(v)-4 PROD Energy'!N452+'FR-16(7)(v)-8 TRANS Energy'!N452+'FR-16(7)(v)-12 DIST Energy'!N452","v":0},{"$f":"'FR-16(7)(v)-5 PROD Cust'!N452+'FR-16(7)(v)-9 TRANS Cust'!N452+'FR-16(7)(v)-13 DIST Cust'!N452","v":0},0,0]
[9,null,{"$f":"'FR-16(7)(v)-1 Functional'!C453","v":"  TOTAL ENERGY RELATED"},null,null,{"$f":"SUM(F447:F452)","v":760521},0,760521,0,760521,0]
[10]
[11,"DEMAND RELATED & OTHER PROD O&M"]
[12,null,{"$f":"'FR-16(7)(v)-1 Functional'!C456","v":"OTHER PRODUCTION EXPENSES - OPERATIONS"},{"$f":"'FR-16(7)(v)-1 Functional'!D456","v":"K201"},null,{"$f":"'FR-16(7)(v)-14 TOTAL CLASS'!N456","v":0},{"$f":"'FR-16(7)(v)-3 PROD Demand'!N456+'FR-16(7)(v)-7 TRANS Demand'!N456+'FR-16(7)(v)-11 DIST Demand'!N456","v":0},{"$f":"'FR-16(7)(v)-4 PROD Energy'!N456+'FR-16(7)(v)-8 TRANS Energy'!N456+'FR-16(7)(v)-12 DIST Energy'!N456","v":0},{"$f":"'FR-16(7)(v)-5 PROD Cust'!N456+'FR-16(7)(v)-9 TRANS Cust'!N456+'FR-16(7)(v)-13 DIST Cust'!N456","v":0},{"$f":"SUM(G456:I456)","v":0},{"$f":"F456-J456","v":0}]
[13,null,{"$f":"'FR-16(7)(v)-1 Functional'!C457","v":"  TOTAL DEMAND REL & OTH PROD O&M "},null,null,{"$f":"SUM(F455:F456)","v":0},0,0,0,0,0]
[14]
[15,"TOTAL PRODUCTION O&M",null,null," ",{"$f":"F457+F453","v":760521},0,760521,0,760521,0]
[16]
[17,"TRANSMISSION O & M"]
[18,null,{"$f":"'FR-16(7)(v)-1 Functional'!C462","v":"TRANSFORMER LEASE PAYMENTS"},{"$f":"'FR-16(7)(v)-1 Functional'!D462","v":"K202"},null,{"$f":"'FR-16(7)(v)-14 TOTAL CLASS'!N462","v":0},{"$f":"'FR-16(7)(v)-3 PROD Demand'!N462+'FR-16(7)(v)-7 TRANS Demand'!N462+'FR-16(7)(v)-11 DIST Demand'!N462","v":0},{"$f":"'FR-16(7)(v)-4 PROD Energy'!N462+'FR-16(7)(v)-8 TRANS Energy'!N462+'FR-16(7)(v)-12 DIST Energy'!N462","v":0},{"$f":"'FR-16(7)(v)-5 PROD Cust'!N462+'FR-16(7)(v)-9 TRANS Cust'!N462+'FR-16(7)(v)-13 DIST Cust'!N462","v":0},{"$f":"SUM(G462:I462)","v":0},{"$f":"F462-J462","v":0}]
[19,null,{"$f":"'FR-16(7)(v)-1 Functional'!C463","v":"OTHER TRANSMISSION"},{"$f":"'FR-16(7)(v)-1 Functional'!D463","v":"K202"},null,{"$f":"'FR-16(7)(v)-14 TOTAL CLASS'!N463","v":99785},{"$f":"'FR-16(7)(v)-3 PROD Demand'!N463+'FR-16(7)(v)-7 TRANS Demand'!N463+'FR-16(7)(v)-11 DIST Demand'!N463","v":99785},{"$f":"'FR-16(7)(v)-4 PROD Energy'!N463+'FR-16(7)(v)-8 TRANS Energy'!N463+'FR-16(7)(v)-12 DIST Energy'!N463","v":0},{"$f":"'FR-16(7)(v)-5 PROD Cust'!N463+'FR-16(7)(v)-9 TRANS Cust'!N463+'FR-16(7)(v)-13 DIST Cust'!N463","v":0},{"$f":"SUM(G463:I463)","v":99785},{"$f":"F463-J463","v":0}]
[20,null,{"$f":"'FR-16(7)(v)-1 Functional'!C464","v":"MISCELLANEOUS ADJUSTMENTS"},{"$f":"'FR-16(7)(v)-1 Functional'!D464","v":"K202"},null,{"$f":"'FR-16(7)(v)-14 TOTAL CLASS'!N464","v":0},{"$f":"'FR-16(7)(v)-3 PROD Demand'!N464+'FR-16(7)(v)-7 TRANS Demand'!N464+'FR-16(7)(v)-11 DIST Demand'!N464","v":0},{"$f":"'FR-16(7)(v)-4 PROD Energy'!N464+'FR-16(7)(v)-8 TRANS Energy'!N464+'FR-16(7)(v)-12 DIST Energy'!N464","v":0},{"$f":"'FR-16(7)(v)-5 PROD Cust'!N464+'FR-16(7)(v)-9 TRANS Cust'!N464+'FR-16(7)(v)-13 DIST Cust'!N464","v":0},{"$f":"SUM(G464:I464)","v":0},{"$f":"F464-J464","v":0}]
[21,null,{"$f":"'FR-16(7)(v)-1 Functional'!C465","v":"NETWORK SERVICE RATES ADJUSTMENT"},{"$f":"'FR-16(7)(v)-1 Functional'!D465","v":"K202"},null,{"$f":"'FR-16(7)(v)-14 TOTAL CLASS'!N465","v":0},{"$f":"'FR-16(7)(v)-3 PROD Demand'!N465+'FR-16(7)(v)-7 TRANS Demand'!N465+'FR-16(7)(v)-11 DIST Demand'!N465","v":0},{"$f":"'FR-16(7)(v)-4 PROD Energy'!N465+'FR-16(7)(v)-8 TRANS Energy'!N465+'FR-16(7)(v)-12 DIST Energy'!N465","v":0},{"$f":"'FR-16(7)(v)-5 PROD Cust'!N465+'FR-16(7)(v)-9 TRANS Cust'!N465+'FR-16(7)(v)-13 DIST Cust'!N465","v":0},{"$f":"SUM(G465:I465)","v":0},{"$f":"F465-J465","v":0}]
[22,null,{"$f":"'FR-16(7)(v)-1 Functional'!C466","v":"  TOTAL TRANSMISSION O & M"},null,null,{"$f":"SUM(F462:F465)","v":99785},99785,0,0,99785,0]
[23]
[24,"REGIONAL MARKET O&M"]
[25,null,{"$f":"'FR-16(7)(v)-1 Functional'!C469","v":"MARKET FACILITATION - MONITORING & COMPLIANCE"},{"$f":"'FR-16(7)(v)-1 Functional'!D469","v":"K202"},null,{"$f":"'FR-16(7)(v)-14 TOTAL CLASS'!N469","v":7874},{"$f":"'FR-16(7)(v)-3 PROD Demand'!N469+'FR-16(7)(v)-7 TRANS Demand'!N469+'FR-16(7)(v)-11 DIST Demand'!N469","v":7874},{"$f":"'FR-16(7)(v)-4 PROD Energy'!N469+'FR-16(7)(v)-8 TRANS Energy'!N469+'FR-16(7)(v)-12 DIST Energy'!N469","v":0},{"$f":"'FR-16(7)(v)-5 PROD Cust'!N469+'FR-16(7)(v)-9 TRANS Cust'!N469+'FR-16(7)(v)-13 DIST Cust'!N469","v":0},{"$f":"SUM(G469:I469)","v":7874},{"$f":"F469-J469","v":0}]
[26,null,{"$f":"'FR-16(7)(v)-1 Functional'!C470","v":"TOTAL REGIONAL MARKET O&M"},null,null,{"$f":"SUM(F468:F469)","v":7874},7874,0,0,7874,0]
[27]
[28,"DISTRIBUTION O & M"]
[29,null,{"$f":"'FR-16(7)(v)-1 Functional'!C473","v":"SUBSTATIONS"},{"$f":"'FR-16(7)(v)-1 Functional'!D473","v":"K201"},null,{"$f":"'FR-16(7)(v)-14 TOTAL CLASS'!N473","v":2677},{"$f":"'FR-16(7)(v)-3 PROD Demand'!N473+'FR-16(7)(v)-7 TRANS Demand'!N473+'FR-16(7)(v)-11 DIST Demand'!N473","v":2677},{"$f":"'FR-16(7)(v)-4 PROD Energy'!N473+'FR-16(7)(v)-8 TRANS Energy'!N473+'FR-16(7)(v)-12 DIST Energy'!N473","v":0},{"$f":"'FR-16(7)(v)-5 PROD Cust'!N473+'FR-16(7)(v)-9 TRANS Cust'!N473+'FR-16(7)(v)-13 DIST Cust'!N473","v":0},{"$f":"SUM(G473:I473)","v":2677},{"$f":"F473-J473","v":0}]
[30,null,{"$f":"'FR-16(7)(v)-1 Functional'!C474","v":"POLES, TOWERS & FIXTURES"},{"$f":"'FR-16(7)(v)-1 Functional'!D474","v":"PL49"},null,{"$f":"'FR-16(7)(v)-14 TOTAL CLASS'!N474","v":0},{"$f":"'FR-16(7)(v)-3 PROD Demand'!N474+'FR-16(7)(v)-7 TRANS Demand'!N474+'FR-16(7)(v)-11 DIST Demand'!N474","v":0},{"$f":"'FR-16(7)(v)-4 PROD Energy'!N474+'FR-16(7)(v)-8 TRANS Energy'!N474+'FR-16(7)(v)-12 DIST Energy'!N474","v":0},{"$f":"'FR-16(7)(v)-5 PROD Cust'!N474+'FR-16(7)(v)-9 TRANS Cust'!N474+'FR-16(7)(v)-13 DIST Cust'!N474","v":0},0,0]
[31,null,{"$f":"'FR-16(7)(v)-1 Functional'!C475","v":"OVERHEAD LINES - PRIMARY / DEMAND"},{"$f":"'FR-16(7)(v)-1 Functional'!D475","v":"K205"},null,{"$f":"'FR-16(7)(v)-14 TOTAL CLASS'!N475","v":24202},{"$f":"'FR-16(7)(v)-3 PROD Demand'!N475+'FR-16(7)(v)-7 TRANS Demand'!N475+'FR-16(7)(v)-11 DIST Demand'!N475","v":24202},{"$f":"'FR-16(7)(v)-4 PROD Energy'!N475+'FR-16(7)(v)-8 TRANS Energy'!N475+'FR-16(7)(v)-12 DIST Energy'!N475","v":0},{"$f":"'FR-16(7)(v)-5 PROD Cust'!N475+'FR-16(7)(v)-9 TRANS Cust'!N475+'FR-16(7)(v)-13 DIST Cust'!N475","v":0},24202,0]
[32,null,{"$f":"'FR-16(7)(v)-1 Functional'!C476","v":"OVERHEAD LINES - PRIMARY / CUSTOMER"},{"$f":"'FR-16(7)(v)-1 Functional'!D476","v":"K405"},null,{"$f":"'FR-16(7)(v)-14 TOTAL CLASS'!N476","v":79},{"$f":"'FR-16(7)(v)-3 PROD Demand'!N476+'FR-16(7)(v)-7 TRANS Demand'!N476+'FR-16(7)(v)-11 DIST Demand'!N476","v":0},{"$f":"'FR-16(7)(v)-4 PROD Energy'!N476+'FR-16(7)(v)-8 TRANS Energy'!N476+'FR-16(7)(v)-12 DIST Energy'!N476","v":0},{"$f":"'FR-16(7)(v)-5 PROD Cust'!N476+'FR-16(7)(v)-9 TRANS Cust'!N476+'FR-16(7)(v)-13 DIST Cust'!N476","v":79},{"$f":"SUM(G476:I476)","v":79},{"$f":"F476-J476","v":0}]
[33,null,{"$f":"'FR-16(7)(v)-1 Functional'!C477","v":"OVERHEAD LINES - SECONDARY / DEMAND"},{"$f":"'FR-16(7)(v)-1 Functional'!D477","v":"K206"},null,{"$f":"'FR-16(7)(v)-14 TOTAL CLASS'!N477","v":9855},{"$f":"'FR-16(7)(v)-3 PROD Demand'!N477+'FR-16(7)(v)-7 TRANS Demand'!N477+'FR-16(7)(v)-11 DIST Demand'!N477","v":9855},{"$f":"'FR-16(7)(v)-4 PROD Energy'!N477+'FR-16(7)(v)-8 TRANS Energy'!N477+'FR-16(7)(v)-12 DIST Energy'!N477","v":0},{"$f":"'FR-16(7)(v)-5 PROD Cust'!N477+'FR-16(7)(v)-9 TRANS Cust'!N477+'FR-16(7)(v)-13 DIST Cust'!N477","v":0},9855,0]
[34,null,{"$f":"'FR-16(7)(v)-1 Functional'!C478","v":"OVERHEAD LINES - SECONDARY / CUSTOMER"},{"$f":"'FR-16(7)(v)-1 Functional'!D478","v":"K405"},null,{"$f":"'FR-16(7)(v)-14 TOTAL CLASS'!N478","v":33},{"$f":"'FR-16(7)(v)-3 PROD Demand'!N478+'FR-16(7)(v)-7 TRANS Demand'!N478+'FR-16(7)(v)-11 DIST Demand'!N478","v":0},{"$f":"'FR-16(7)(v)-4 PROD Energy'!N478+'FR-16(7)(v)-8 TRANS Energy'!N478+'FR-16(7)(v)-12 DIST Energy'!N478","v":0},{"$f":"'FR-16(7)(v)-5 PROD Cust'!N478+'FR-16(7)(v)-9 TRANS Cust'!N478+'FR-16(7)(v)-13 DIST Cust'!N478","v":33},33,0]
[35,null,{"$f":"'FR-16(7)(v)-1 Functional'!C479","v":"UNDERGROUND LINES - PRIMARY / DEMAND"},{"$f":"'FR-16(7)(v)-1 Functional'!D479","v":"K205"},null,{"$f":"'FR-16(7)(v)-14 TOTAL CLASS'!N479","v":3155},{"$f":"'FR-16(7)(v)-3 PROD Demand'!N479+'FR-16(7)(v)-7 TRANS Demand'!N479+'FR-16(7)(v)-11 DIST Demand'!N479","v":3155},{"$f":"'FR-16(7)(v)-4 PROD Energy'!N479+'FR-16(7)(v)-8 TRANS Energy'!N479+'FR-16(7)(v)-12 DIST Energy'!N479","v":0},{"$f":"'FR-16(7)(v)-5 PROD Cust'!N479+'FR-16(7)(v)-9 TRANS Cust'!N479+'FR-16(7)(v)-13 DIST Cust'!N479","v":0},3155,0]
[36,null,{"$f":"'FR-16(7)(v)-1 Functional'!C480","v":"UNDERGROUND LINES - PRIMARY / CUSTOMER"},{"$f":"'FR-16(7)(v)-1 Functional'!D480","v":"K405"},null,{"$f":"'FR-16(7)(v)-14 TOTAL CLASS'!N480","v":15},{"$f":"'FR-16(7)(v)-3 PROD Demand'!N480+'FR-16(7)(v)-7 TRANS Demand'!N480+'FR-16(7)(v)-11 DIST Demand'!N480","v":0},{"$f":"'FR-16(7)(v)-4 PROD Energy'!N480+'FR-16(7)(v)-8 TRANS Energy'!N480+'FR-16(7)(v)-12 DIST Energy'!N480","v":0},{"$f":"'FR-16(7)(v)-5 PROD Cust'!N480+'FR-16(7)(v)-9 TRANS Cust'!N480+'FR-16(7)(v)-13 DIST Cust'!N480","v":15},15,0]
[37,null,{"$f":"'FR-16(7)(v)-1 Functional'!C481","v":"UNDERGROUND LINES - SECONDARY / DEMAND"},{"$f":"'FR-16(7)(v)-1 Functional'!D481","v":"K206"},null,{"$f":"'FR-16(7)(v)-14 TOTAL CLASS'!N481","v":540},{"$f":"'FR-16(7)(v)-3 PROD Demand'!N481+'FR-16(7)(v)-7 TRANS Demand'!N481+'FR-16(7)(v)-11 DIST Demand'!N481","v":540},{"$f":"'FR-16(7)(v)-4 PROD Energy'!N481+'FR-16(7)(v)-8 TRANS Energy'!N481+'FR-16(7)(v)-12 DIST Energy'!N481","v":0},{"$f":"'FR-16(7)(v)-5 PROD Cust'!N481+'FR-16(7)(v)-9 TRANS Cust'!N481+'FR-16(7)(v)-13 DIST Cust'!N481","v":0},540,0]
[38,null,{"$f":"'FR-16(7)(v)-1 Functional'!C482","v":"UNDERGROUND LINES - SECONDARY / CUSTOMER"},{"$f":"'FR-16(7)(v)-1 Functional'!D482","v":"K405"},null,{"$f":"'FR-16(7)(v)-14 TOTAL CLASS'!N482","v":5},{"$f":"'FR-16(7)(v)-3 PROD Demand'!N482+'FR-16(7)(v)-7 TRANS Demand'!N482+'FR-16(7)(v)-11 DIST Demand'!N482","v":0},{"$f":"'FR-16(7)(v)-4 PROD Energy'!N482+'FR-16(7)(v)-8 TRANS Energy'!N482+'FR-16(7)(v)-12 DIST Energy'!N482","v":0},{"$f":"'FR-16(7)(v)-5 PROD Cust'!N482+'FR-16(7)(v)-9 TRANS Cust'!N482+'FR-16(7)(v)-13 DIST Cust'!N482","v":5},5,0]
[39,null,{"$f":"'FR-16(7)(v)-1 Functional'!C483","v":"TRANSFORMERS DEMAND RELATED"},{"$f":"'FR-16(7)(v)-1 Functional'!D483","v":"K203"},null,{"$f":"'FR-16(7)(v)-14 TOTAL CLASS'!N483","v":1018},{"$f":"'FR-16(7)(v)-3 PROD Demand'!N483+'FR-16(7)(v)-7 TRANS Demand'!N483+'FR-16(7)(v)-11 DIST Demand'!N483","v":1018},{"$f":"'FR-16(7)(v)-4 PROD Energy'!N483+'FR-16(7)(v)-8 TRANS Energy'!N483+'FR-16(7)(v)-12 DIST Energy'!N483","v":0},{"$f":"'FR-16(7)(v)-5 PROD Cust'!N483+'FR-16(7)(v)-9 TRANS Cust'!N483+'FR-16(7)(v)-13 DIST Cust'!N483","v":0},1018,0]
[40,null,{"$f":"'FR-16(7)(v)-1 Functional'!C484","v":"TRANSFORMERS CUSTOMER RELATED"},{"$f":"'FR-16(7)(v)-1 Functional'!D484","v":"K401"},null,{"$f":"'FR-16(7)(v)-14 TOTAL CLASS'!N484","v":0},{"$f":"'FR-16(7)(v)-3 PROD Demand'!N484+'FR-16(7)(v)-7 TRANS Demand'!N484+'FR-16(7)(v)-11 DIST Demand'!N484","v":0},{"$f":"'FR-16(7)(v)-4 PROD Energy'!N484+'FR-16(7)(v)-8 TRANS Energy'!N484+'FR-16(7)(v)-12 DIST Energy'!N484","v":0},{"$f":"'FR-16(7)(v)-5 PROD Cust'!N484+'FR-16(7)(v)-9 TRANS Cust'!N484+'FR-16(7)(v)-13 DIST Cust'!N484","v":0},{"$f":"SUM(G484:I484)","v":0},{"$f":"F484-J484","v":0}]
[41,null,{"$f":"'FR-16(7)(v)-1 Functional'!C485","v":"OTHER MAINTENANCE"},{"$f":"'FR-16(7)(v)-1 Functional'!D485","v":"K203"},null,{"$f":"'FR-16(7)(v)-14 TOTAL CLASS'!N485","v":7099},{"$f":"'FR-16(7)(v)-3 PROD Demand'!N485+'FR-16(7)(v)-7 TRANS Demand'!N485+'FR-16(7)(v)-11 DIST Demand'!N485","v":7099},{"$f":"'FR-16(7)(v)-4 PROD Energy'!N485+'FR-16(7)(v)-8 TRANS Energy'!N485+'FR-16(7)(v)-12 DIST Energy'!N485","v":0},{"$f":"'FR-16(7)(v)-5 PROD Cust'!N485+'FR-16(7)(v)-9 TRANS Cust'!N485+'FR-16(7)(v)-13 DIST Cust'!N485","v":0},7099,0]
[42,null,{"$f":"'FR-16(7)(v)-1 Functional'!C486","v":"LOAD DISPATCH"},{"$f":"'FR-16(7)(v)-1 Functional'!D486","v":"K215"},null,{"$f":"'FR-16(7)(v)-14 TOTAL CLASS'!N486","v":2709},{"$f":"'FR-16(7)(v)-3 PROD Demand'!N486+'FR-16(7)(v)-7 TRANS Demand'!N486+'FR-16(7)(v)-11 DIST Demand'!N486","v":2709},{"$f":"'FR-16(7)(v)-4 PROD Energy'!N486+'FR-16(7)(v)-8 TRANS Energy'!N486+'FR-16(7)(v)-12 DIST Energy'!N486","v":0},{"$f":"'FR-16(7)(v)-5 PROD Cust'!N486+'FR-16(7)(v)-9 TRANS Cust'!N486+'FR-16(7)(v)-13 DIST Cust'!N486","v":0},2709,0]
[43,null,{"$f":"'FR-16(7)(v)-1 Functional'!C487","v":"METERS"},{"$f":"'FR-16(7)(v)-1 Functional'!D487","v":"K407"},null,{"$f":"'FR-16(7)(v)-14 TOTAL CLASS'!N487","v":258},{"$f":"'FR-16(7)(v)-3 PROD Demand'!N487+'FR-16(7)(v)-7 TRANS Demand'!N487+'FR-16(7)(v)-11 DIST Demand'!N487","v":0},{"$f":"'FR-16(7)(v)-4 PROD Energy'!N487+'FR-16(7)(v)-8 TRANS Energy'!N487+'FR-16(7)(v)-12 DIST Energy'!N487","v":0},{"$f":"'FR-16(7)(v)-5 PROD Cust'!N487+'FR-16(7)(v)-9 TRANS Cust'!N487+'FR-16(7)(v)-13 DIST Cust'!N487","v":258},258,0]
[44,null,{"$f":"'FR-16(7)(v)-1 Functional'!C488","v":"STREET LIGHTING AND SIGNAL SYSTEMS"},{"$f":"'FR-16(7)(v)-1 Functional'!D488","v":"K401"},null,{"$f":"'FR-16(7)(v)-14 TOTAL CLASS'!N488","v":0},{"$f":"'FR-16(7)(v)-3 PROD Demand'!N488+'FR-16(7)(v)-7 TRANS Demand'!N488+'FR-16(7)(v)-11 DIST Demand'!N488","v":0},{"$f":"'FR-16(7)(v)-4 PROD Energy'!N488+'FR-16(7)(v)-8 TRANS Energy'!N488+'FR-16(7)(v)-12 DIST Energy'!N488","v":0},{"$f":"'FR-16(7)(v)-5 PROD Cust'!N488+'FR-16(7)(v)-9 TRANS Cust'!N488+'FR-16(7)(v)-13 DIST Cust'!N488","v":0},0,0]
[45,null,{"$f":"'FR-16(7)(v)-1 Functional'!C489","v":"OTHER OPERATIONS"},{"$f":"'FR-16(7)(v)-1 Functional'!D489","v":"K203"},null,{"$f":"'FR-16(7)(v)-14 TOTAL CLASS'!N489","v":2711},{"$f":"'FR-16(7)(v)-3 PROD Demand'!N489+'FR-16(7)(v)-7 TRANS Demand'!N489+'FR-16(7)(v)-11 DIST Demand'!N489","v":2711},{"$f":"'FR-16(7)(v)-4 PROD Energy'!N489+'FR-16(7)(v)-8 TRANS Energy'!N489+'FR-16(7)(v)-12 DIST Energy'!N489","v":0},{"$f":"'FR-16(7)(v)-5 PROD Cust'!N489+'FR-16(7)(v)-9 TRANS Cust'!N489+'FR-16(7)(v)-13 DIST Cust'!N489","v":0},2711,0]
[46,null,{"$f":"'FR-16(7)(v)-1 Functional'!C490","v":"MISCELLANEOUS EXPENSES ADJUSTMENT"},{"$f":"'FR-16(7)(v)-1 Functional'!D490","v":"K203"},null,{"$f":"'FR-16(7)(v)-14 TOTAL CLASS'!N490","v":8354},{"$f":"'FR-16(7)(v)-3 PROD Demand'!N490+'FR-16(7)(v)-7 TRANS Demand'!N490+'FR-16(7)(v)-11 DIST Demand'!N490","v":8354},{"$f":"'FR-16(7)(v)-4 PROD Energy'!N490+'FR-16(7)(v)-8 TRANS Energy'!N490+'FR-16(7)(v)-12 DIST Energy'!N490","v":0},{"$f":"'FR-16(7)(v)-5 PROD Cust'!N490+'FR-16(7)(v)-9 TRANS Cust'!N490+'FR-16(7)(v)-13 DIST Cust'!N490","v":0},8354,0]
[47,null,{"$f":"'FR-16(7)(v)-1 Functional'!C491","v":"AFFILIATED COMPANY RENTS ADJUSTMENT"},{"$f":"'FR-16(7)(v)-1 Functional'!D491","v":"D249"},null,{"$f":"'FR-16(7)(v)-14 TOTAL CLASS'!N491","v":0},{"$f":"'FR-16(7)(v)-3 PROD Demand'!N491+'FR-16(7)(v)-7 TRANS Demand'!N491+'FR-16(7)(v)-11 DIST Demand'!N491","v":0},{"$f":"'FR-16(7)(v)-4 PROD Energy'!N491+'FR-16(7)(v)-8 TRANS Energy'!N491+'FR-16(7)(v)-12 DIST Energy'!N491","v":0},{"$f":"'FR-16(7)(v)-5 PROD Cust'!N491+'FR-16(7)(v)-9 TRANS Cust'!N491+'FR-16(7)(v)-13 DIST Cust'!N491","v":0},0,0]
[48,null,{"$f":"'FR-16(7)(v)-1 Functional'!C492","v":"  TOTAL DISTRIBUTION O & M"},null," ",{"$f":"SUM(F472:F491)","v":62710},62320,0,390,62710,0]
[49,null," "]
[50,"CUSTOMER ACCOUNTING",null,null,null," "]
[51,null,{"$f":"'FR-16(7)(v)-1 Functional'!C495","v":"CUSTOMER ACCOUNTING EXPENSE"},{"$f":"'FR-16(7)(v)-1 Functional'!D495","v":"K409"},null,{"$f":"'FR-16(7)(v)-14 TOTAL CLASS'!N495","v":1009},{"$f":"'FR-16(7)(v)-3 PROD Demand'!N495+'FR-16(7)(v)-7 TRANS Demand'!N495+'FR-16(7)(v)-11 DIST Demand'!N495","v":0},{"$f":"'FR-16(7)(v)-4 PROD Energy'!N495+'FR-16(7)(v)-8 TRANS Energy'!N495+'FR-16(7)(v)-12 DIST Energy'!N495","v":0},{"$f":"'FR-16(7)(v)-5 PROD Cust'!N495+'FR-16(7)(v)-9 TRANS Cust'!N495+'FR-16(7)(v)-13 DIST Cust'!N495","v":1009},{"$f":"SUM(G495:I495)","v":1009},{"$f":"F495-J495","v":0}]
[52,null,{"$f":"'FR-16(7)(v)-1 Functional'!C496","v":"UNCOLLECTIBLE EXP"},{"$f":"'FR-16(7)(v)-1 Functional'!D496","v":"K411"},null,{"$f":"'FR-16(7)(v)-14 TOTAL CLASS'!N496","v":1011},{"$f":"'FR-16(7)(v)-3 PROD Demand'!N496+'FR-16(7)(v)-7 TRANS Demand'!N496+'FR-16(7)(v)-11 DIST Demand'!N496","v":0},{"$f":"'FR-16(7)(v)-4 PROD Energy'!N496+'FR-16(7)(v)-8 TRANS Energy'!N496+'FR-16(7)(v)-12 DIST Energy'!N496","v":0},{"$f":"'FR-16(7)(v)-5 PROD Cust'!N496+'FR-16(7)(v)-9 TRANS Cust'!N496+'FR-16(7)(v)-13 DIST Cust'!N496","v":1011},1011,0]
[53,null,{"$f":"'FR-16(7)(v)-1 Functional'!C497","v":"METER READING"},{"$f":"'FR-16(7)(v)-1 Functional'!D497","v":"K407"},null,{"$f":"'FR-16(7)(v)-14 TOTAL CLASS'!N497","v":0},{"$f":"'FR-16(7)(v)-3 PROD Demand'!N497+'FR-16(7)(v)-7 TRANS Demand'!N497+'FR-16(7)(v)-11 DIST Demand'!N497","v":0},{"$f":"'FR-16(7)(v)-4 PROD Energy'!N497+'FR-16(7)(v)-8 TRANS Energy'!N497+'FR-16(7)(v)-12 DIST Energy'!N497","v":0},{"$f":"'FR-16(7)(v)-5 PROD Cust'!N497+'FR-16(7)(v)-9 TRANS Cust'!N497+'FR-16(7)(v)-13 DIST Cust'!N497","v":0},0,0]
[54,null,{"$f":"'FR-16(7)(v)-1 Functional'!C498","v":"UNCOLLECTIBLE EXP ADJUSTMENT"},{"$f":"'FR-16(7)(v)-1 Functional'!D498","v":"K411"},null,{"$f":"'FR-16(7)(v)-14 TOTAL CLASS'!N498","v":-1430},{"$f":"'FR-16(7)(v)-3 PROD Demand'!N498+'FR-16(7)(v)-7 TRANS Demand'!N498+'FR-16(7)(v)-11 DIST Demand'!N498","v":0},{"$f":"'FR-16(7)(v)-4 PROD Energy'!N498+'FR-16(7)(v)-8 TRANS Energy'!N498+'FR-16(7)(v)-12 DIST Energy'!N498","v":0},{"$f":"'FR-16(7)(v)-5 PROD Cust'!N498+'FR-16(7)(v)-9 TRANS Cust'!N498+'FR-16(7)(v)-13 DIST Cust'!N498","v":-1430},-1430,0]
[55,null,{"$f":"'FR-16(7)(v)-1 Functional'!C499","v":"CREDIT CARD FEES"},{"$f":"'FR-16(7)(v)-1 Functional'!D499","v":"K407"},null,{"$f":"'FR-16(7)(v)-14 TOTAL CLASS'!N499","v":118},{"$f":"'FR-16(7)(v)-3 PROD Demand'!N499+'FR-16(7)(v)-7 TRANS Demand'!N499+'FR-16(7)(v)-11 DIST Demand'!N499","v":0},{"$f":"'FR-16(7)(v)-4 PROD Energy'!N499+'FR-16(7)(v)-8 TRANS Energy'!N499+'FR-16(7)(v)-12 DIST Energy'!N499","v":0},{"$f":"'FR-16(7)(v)-5 PROD Cust'!N499+'FR-16(7)(v)-9 TRANS Cust'!N499+'FR-16(7)(v)-13 DIST Cust'!N499","v":118},118,0]
[56,null,{"$f":"'FR-16(7)(v)-1 Functional'!C500","v":"ELIMINATE REV & EXP - DSM RIDER"},{"$f":"'FR-16(7)(v)-1 Functional'!D500","v":"K405"},null,{"$f":"'FR-16(7)(v)-14 TOTAL CLASS'!N500","v":0},{"$f":"'FR-16(7)(v)-3 PROD Demand'!N500+'FR-16(7)(v)-7 TRANS Demand'!N500+'FR-16(7)(v)-11 DIST Demand'!N500","v":0},{"$f":"'FR-16(7)(v)-4 PROD Energy'!N500+'FR-16(7)(v)-8 TRANS Energy'!N500+'FR-16(7)(v)-12 DIST Energy'!N500","v":0},{"$f":"'FR-16(7)(v)-5 PROD Cust'!N500+'FR-16(7)(v)-9 TRANS Cust'!N500+'FR-16(7)(v)-13 DIST Cust'!N500","v":0},0,0]
[57,null,{"$f":"'FR-16(7)(v)-1 Functional'!C501","v":"SALE OF A/R"},{"$f":"'FR-16(7)(v)-1 Functional'!D501","v":"K411"},null,{"$f":"'FR-16(7)(v)-14 TOTAL CLASS'!N501","v":282},{"$f":"'FR-16(7)(v)-3 PROD Demand'!N501+'FR-16(7)(v)-7 TRANS Demand'!N501+'FR-16(7)(v)-11 DIST Demand'!N501","v":0},{"$f":"'FR-16(7)(v)-4 PROD Energy'!N501+'FR-16(7)(v)-8 TRANS Energy'!N501+'FR-16(7)(v)-12 DIST Energy'!N501","v":0},{"$f":"'FR-16(7)(v)-5 PROD Cust'!N501+'FR-16(7)(v)-9 TRANS Cust'!N501+'FR-16(7)(v)-13 DIST Cust'!N501","v":282},282,0]
[58,null,{"$f":"'FR-16(7)(v)-1 Functional'!C502","v":"ELIMINATE MISC EXPENSE"},{"$f":"'FR-16(7)(v)-1 Functional'!D502","v":"K405"},null,{"$f":"'FR-16(7)(v)-14 TOTAL CLASS'!N502","v":0},{"$f":"'FR-16(7)(v)-3 PROD Demand'!N502+'FR-16(7)(v)-7 TRANS Demand'!N502+'FR-16(7)(v)-11 DIST Demand'!N502","v":0},{"$f":"'FR-16(7)(v)-4 PROD Energy'!N502+'FR-16(7)(v)-8 TRANS Energy'!N502+'FR-16(7)(v)-12 DIST Energy'!N502","v":0},{"$f":"'FR-16(7)(v)-5 PROD Cust'!N502+'FR-16(7)(v)-9 TRANS Cust'!N502+'FR-16(7)(v)-13 DIST Cust'!N502","v":0},0,0]
[59,null,{"$f":"'FR-16(7)(v)-1 Functional'!C503","v":"  TOTAL CUSTOMER ACCT EXPENSE"},null," ",{"$f":"SUM(F494:F502)","v":990},0,0,990,990,0]
[]
[{"$f":"co_name","v":"DUKE ENERGY KENTUCKY, INC."},null,null,null,null,null,null,null,null,{"$f":"J1","v":"FR-16(7)(v)-22"}]
[{"$f":"$A$2","v":"DISTR. PRIMARY CLASSIFIED - ELECTRIC COST OF SERVICE"},null,null,null,null,null,null,null,null,{"$f":"J2","v":"WITNESS RESPONSIBLE:"}]
[{"$f":"case_name","v":"CASE NO: 2019-00271"},null,null,null,null,null,null,null,null,{"$f":"Witness","v":"JAMES E. ZIOLKOWSKI"}]
[{"$f":"data_filing","v":"DATA: 12 MONTHS ACTUAL  & 0 MONTHS ESTIMATED"},null,null,null,null,null,null,null,null,{"$f":"\"PAGE \"&Pages2-6&\" OF \"&Pages2","v":"PAGE 9 OF 15"}]
[{"$f":"type","v":"TYPE OF FILING: \"X\" ORIGINAL   UPDATED    REVISED  "}]
[]
[]
["LINE",null,null,null,null,"TOTAL","CLASSIFIED",null,null,"TOTAL","ALL"]
["NO.","O&M EXPENSES",null,"ALLO",null,{"$f":"$F$9","v":"DISTR. PRIMARY"},{"$f":"G9","v":"DEMAND"},"ENERGY","CUSTOMER","AT ISSUE","OTHER"]
[null,null,"Schedule 6.1",null,null,null,3,4,5]
[1,"CUSTOMER SERVICE & INFORMATION"]
[2,null,{"$f":"'FR-16(7)(v)-1 Functional'!C516","v":"TOTAL CUST SERVICE & INFO"},{"$f":"'FR-16(7)(v)-1 Functional'!D516","v":"K405"},null,{"$f":"'FR-16(7)(v)-14 TOTAL CLASS'!N516","v":42},{"$f":"'FR-16(7)(v)-3 PROD Demand'!N516+'FR-16(7)(v)-7 TRANS Demand'!N516+'FR-16(7)(v)-11 DIST Demand'!N516","v":0},{"$f":"'FR-16(7)(v)-4 PROD Energy'!N516+'FR-16(7)(v)-8 TRANS Energy'!N516+'FR-16(7)(v)-12 DIST Energy'!N516","v":0},{"$f":"'FR-16(7)(v)-5 PROD Cust'!N516+'FR-16(7)(v)-9 TRANS Cust'!N516+'FR-16(7)(v)-13 DIST Cust'!N516","v":42},{"$f":"SUM(G516:I516)","v":42},{"$f":"F516-J516","v":0}]
[3,null,{"$f":"'FR-16(7)(v)-1 Functional'!C517","v":"INFORMATIONAL & INSTRUCTIONAL ADV"},{"$f":"'FR-16(7)(v)-1 Functional'!D517","v":"K405"},null,{"$f":"'FR-16(7)(v)-14 TOTAL CLASS'!N517","v":0},{"$f":"'FR-16(7)(v)-3 PROD Demand'!N517+'FR-16(7)(v)-7 TRANS Demand'!N517+'FR-16(7)(v)-11 DIST Demand'!N517","v":0},{"$f":"'FR-16(7)(v)-4 PROD Energy'!N517+'FR-16(7)(v)-8 TRANS Energy'!N517+'FR-16(7)(v)-12 DIST Energy'!N517","v":0},{"$f":"'FR-16(7)(v)-5 PROD Cust'!N517+'FR-16(7)(v)-9 TRANS Cust'!N517+'FR-16(7)(v)-13 DIST Cust'!N517","v":0},{"$f":"SUM(G517:I517)","v":0},{"$f":"F517-J517","v":0}]
[4,null,{"$f":"'FR-16(7)(v)-1 Functional'!C518","v":"TOTAL CUSTOMER SERV. & INFO."},null," ",{"$f":"SUM(F516:F517)","v":42},0,0,42,42,0]
[5]
[6,"SALES"]
[7,null,{"$f":"'FR-16(7)(v)-1 Functional'!C521","v":"SALES EXPENSE"},{"$f":"'FR-16(7)(v)-1 Functional'!D521","v":"K405"}," ",{"$f":"'FR-16(7)(v)-14 TOTAL CLASS'!N521","v":105},{"$f":"'FR-16(7)(v)-3 PROD Demand'!N521+'FR-16(7)(v)-7 TRANS Demand'!N521+'FR-16(7)(v)-11 DIST Demand'!N521","v":0},{"$f":"'FR-16(7)(v)-4 PROD Energy'!N521+'FR-16(7)(v)-8 TRANS Energy'!N521+'FR-16(7)(v)-12 DIST Energy'!N521","v":0},{"$f":"'FR-16(7)(v)-5 PROD Cust'!N521+'FR-16(7)(v)-9 TRANS Cust'!N521+'FR-16(7)(v)-13 DIST Cust'!N521","v":105},{"$f":"SUM(G521:I521)","v":105},{"$f":"F521-J521","v":0}]
[8,null,{"$f":"'FR-16(7)(v)-1 Functional'!C522","v":"TOTAL SALES EXPENSE"},null," ",{"$f":"SUM(F520:F521)","v":105},0,0,105,105,0]
[9]
[10,"ADMINISTRATIVE & GENERAL "]
[11,null,{"$f":"'FR-16(7)(v)-1 Functional'!C525","v":"PRODUCTION - DEMAND RELATED"},{"$f":"'FR-16(7)(v)-1 Functional'!D525","v":"P349"},null,{"$f":"'FR-16(7)(v)-14 TOTAL CLASS'!N525","v":0},{"$f":"'FR-16(7)(v)-3 PROD Demand'!N525+'FR-16(7)(v)-7 TRANS Demand'!N525+'FR-16(7)(v)-11 DIST Demand'!N525","v":0},{"$f":"'FR-16(7)(v)-4 PROD Energy'!N525+'FR-16(7)(v)-8 TRANS Energy'!N525+'FR-16(7)(v)-12 DIST Energy'!N525","v":0},{"$f":"'FR-16(7)(v)-5 PROD Cust'!N525+'FR-16(7)(v)-9 TRANS Cust'!N525+'FR-16(7)(v)-13 DIST Cust'!N525","v":0},{"$f":"SUM(G525:I525)","v":0},{"$f":"F525-J525","v":0}]
[12,null,{"$f":"'FR-16(7)(v)-1 Functional'!C526","v":"PRODUCTION - ENERGY RELATED"},{"$f":"'FR-16(7)(v)-1 Functional'!D526","v":"E349"},null,{"$f":"'FR-16(7)(v)-14 TOTAL CLASS'!N526","v":58484},{"$f":"'FR-16(7)(v)-3 PROD Demand'!N526+'FR-16(7)(v)-7 TRANS Demand'!N526+'FR-16(7)(v)-11 DIST Demand'!N526","v":0},{"$f":"'FR-16(7)(v)-4 PROD Energy'!N526+'FR-16(7)(v)-8 TRANS Energy'!N526+'FR-16(7)(v)-12 DIST Energy'!N526","v":58484},{"$f":"'FR-16(7)(v)-5 PROD Cust'!N526+'FR-16(7)(v)-9 TRANS Cust'!N526+'FR-16(7)(v)-13 DIST Cust'!N526","v":0},58484,0]
[13,null,"TRANSMISSION",{"$f":"'FR-16(7)(v)-1 Functional'!D527","v":"T349"},null,{"$f":"'FR-16(7)(v)-14 TOTAL CLASS'!N527","v":6325},{"$f":"'FR-16(7)(v)-3 PROD Demand'!N527+'FR-16(7)(v)-7 TRANS Demand'!N527+'FR-16(7)(v)-11 DIST Demand'!N527","v":6325},{"$f":"'FR-16(7)(v)-4 PROD Energy'!N527+'FR-16(7)(v)-8 TRANS Energy'!N527+'FR-16(7)(v)-12 DIST Energy'!N527","v":0},{"$f":"'FR-16(7)(v)-5 PROD Cust'!N527+'FR-16(7)(v)-9 TRANS Cust'!N527+'FR-16(7)(v)-13 DIST Cust'!N527","v":0},6325,0]
[14,null,{"$f":"'FR-16(7)(v)-1 Functional'!C528","v":"DISTRIBUTION"},{"$f":"'FR-16(7)(v)-1 Functional'!D528","v":"D349"},null,{"$f":"'FR-16(7)(v)-14 TOTAL CLASS'!N528","v":21095},{"$f":"'FR-16(7)(v)-3 PROD Demand'!N528+'FR-16(7)(v)-7 TRANS Demand'!N528+'FR-16(7)(v)-11 DIST Demand'!N528","v":20967},{"$f":"'FR-16(7)(v)-4 PROD Energy'!N528+'FR-16(7)(v)-8 TRANS Energy'!N528+'FR-16(7)(v)-12 DIST Energy'!N528","v":0},{"$f":"'FR-16(7)(v)-5 PROD Cust'!N528+'FR-16(7)(v)-9 TRANS Cust'!N528+'FR-16(7)(v)-13 DIST Cust'!N528","v":128},21095,0]
[15,null,{"$f":"'FR-16(7)(v)-1 Functional'!C529","v":"CUSTOMER ACCOUNTING"},{"$f":"'FR-16(7)(v)-1 Functional'!D529","v":"C319"},null,{"$f":"'FR-16(7)(v)-14 TOTAL CLASS'!N529","v":882},{"$f":"'FR-16(7)(v)-3 PROD Demand'!N529+'FR-16(7)(v)-7 TRANS Demand'!N529+'FR-16(7)(v)-11 DIST Demand'!N529","v":0},{"$f":"'FR-16(7)(v)-4 PROD Energy'!N529+'FR-16(7)(v)-8 TRANS Energy'!N529+'FR-16(7)(v)-12 DIST Energy'!N529","v":0},{"$f":"'FR-16(7)(v)-5 PROD Cust'!N529+'FR-16(7)(v)-9 TRANS Cust'!N529+'FR-16(7)(v)-13 DIST Cust'!N529","v":882},882,0]
[16,null,{"$f":"'FR-16(7)(v)-1 Functional'!C530","v":"CUSTOMER SERVICE & INFORMATION"},{"$f":"'FR-16(7)(v)-1 Functional'!D530","v":"C331"},null,{"$f":"'FR-16(7)(v)-14 TOTAL CLASS'!N530","v":17},{"$f":"'FR-16(7)(v)-3 PROD Demand'!N530+'FR-16(7)(v)-7 TRANS Demand'!N530+'FR-16(7)(v)-11 DIST Demand'!N530","v":0},{"$f":"'FR-16(7)(v)-4 PROD Energy'!N530+'FR-16(7)(v)-8 TRANS Energy'!N530+'FR-16(7)(v)-12 DIST Energy'!N530","v":0},{"$f":"'FR-16(7)(v)-5 PROD Cust'!N530+'FR-16(7)(v)-9 TRANS Cust'!N530+'FR-16(7)(v)-13 DIST Cust'!N530","v":17},17,0]
[17,null,{"$f":"'FR-16(7)(v)-1 Functional'!C531","v":"SALES"},{"$f":"'FR-16(7)(v)-1 Functional'!D531","v":"S319"},null,{"$f":"'FR-16(7)(v)-14 TOTAL CLASS'!N531","v":0},{"$f":"'FR-16(7)(v)-3 PROD Demand'!N531+'FR-16(7)(v)-7 TRANS Demand'!N531+'FR-16(7)(v)-11 DIST Demand'!N531","v":0},{"$f":"'FR-16(7)(v)-4 PROD Energy'!N531+'FR-16(7)(v)-8 TRANS Energy'!N531+'FR-16(7)(v)-12 DIST Energy'!N531","v":0},{"$f":"'FR-16(7)(v)-5 PROD Cust'!N531+'FR-16(7)(v)-9 TRANS Cust'!N531+'FR-16(7)(v)-13 DIST Cust'!N531","v":0},0,0]
[18,null,{"$f":"'FR-16(7)(v)-1 Functional'!C532","v":"TOT ADMIN & GEN LESS REG EXP"}," ",null,{"$f":"SUM(F525:F531)","v":86803},27292,58484,1027,86803,0]
[19,null,{"$f":"'FR-16(7)(v)-1 Functional'!C533","v":"RATE CASE EXPENSE ADJUSTMENT"},{"$f":"'FR-16(7)(v)-1 Functional'!D533","v":"A315"},null,{"$f":"'FR-16(7)(v)-14 TOTAL CLASS'!N533","v":372},{"$f":"'FR-16(7)(v)-3 PROD Demand'!N533+'FR-16(7)(v)-7 TRANS Demand'!N533+'FR-16(7)(v)-11 DIST Demand'!N533","v":117},{"$f":"'FR-16(7)(v)-4 PROD Energy'!N533+'FR-16(7)(v)-8 TRANS Energy'!N533+'FR-16(7)(v)-12 DIST Energy'!N533","v":251},{"$f":"'FR-16(7)(v)-5 PROD Cust'!N533+'FR-16(7)(v)-9 TRANS Cust'!N533+'FR-16(7)(v)-13 DIST Cust'!N533","v":4},{"$f":"SUM(G533:I533)","v":372},{"$f":"F533-J533","v":0}]
[20,null,{"$f":"'FR-16(7)(v)-1 Functional'!C534","v":"ELIMINATE MISCELLANEOUS EXPENSES ADJUSTMENT"},{"$f":"'FR-16(7)(v)-1 Functional'!D534","v":"A315"},null,{"$f":"'FR-16(7)(v)-14 TOTAL CLASS'!N534","v":0},{"$f":"'FR-16(7)(v)-3 PROD Demand'!N534+'FR-16(7)(v)-7 TRANS Demand'!N534+'FR-16(7)(v)-11 DIST Demand'!N534","v":0},{"$f":"'FR-16(7)(v)-4 PROD Energy'!N534+'FR-16(7)(v)-8 TRANS Energy'!N534+'FR-16(7)(v)-12 DIST Energy'!N534","v":0},{"$f":"'FR-16(7)(v)-5 PROD Cust'!N534+'FR-16(7)(v)-9 TRANS Cust'!N534+'FR-16(7)(v)-13 DIST Cust'!N534","v":0},0,0]
[21,null,{"$f":"'FR-16(7)(v)-1 Functional'!C535","v":"RIDER ESM ELIMINATION"},{"$f":"'FR-16(7)(v)-1 Functional'!D535","v":"A315"},null,{"$f":"'FR-16(7)(v)-14 TOTAL CLASS'!N535","v":-25590},{"$f":"'FR-16(7)(v)-3 PROD Demand'!N535+'FR-16(7)(v)-7 TRANS Demand'!N535+'FR-16(7)(v)-11 DIST Demand'!N535","v":-8037},{"$f":"'FR-16(7)(v)-4 PROD Energy'!N535+'FR-16(7)(v)-8 TRANS Energy'!N535+'FR-16(7)(v)-12 DIST Energy'!N535","v":-17253},{"$f":"'FR-16(7)(v)-5 PROD Cust'!N535+'FR-16(7)(v)-9 TRANS Cust'!N535+'FR-16(7)(v)-13 DIST Cust'!N535","v":-300},-25590,0]
[22,null,{"$f":"'FR-16(7)(v)-1 Functional'!C536","v":"ELIMINATE DSM"},{"$f":"'FR-16(7)(v)-1 Functional'!D536","v":"A315"},null,{"$f":"'FR-16(7)(v)-14 TOTAL CLASS'!N536","v":-359},{"$f":"'FR-16(7)(v)-3 PROD Demand'!N536+'FR-16(7)(v)-7 TRANS Demand'!N536+'FR-16(7)(v)-11 DIST Demand'!N536","v":-113},{"$f":"'FR-16(7)(v)-4 PROD Energy'!N536+'FR-16(7)(v)-8 TRANS Energy'!N536+'FR-16(7)(v)-12 DIST Energy'!N536","v":-242},{"$f":"'FR-16(7)(v)-5 PROD Cust'!N536+'FR-16(7)(v)-9 TRANS Cust'!N536+'FR-16(7)(v)-13 DIST Cust'!N536","v":-4},-359,0]
[23,null,{"$f":"'FR-16(7)(v)-1 Functional'!C537","v":"DSM DEFERRAL - ELECTRIC"},{"$f":"'FR-16(7)(v)-1 Functional'!D537","v":"A315"},null,{"$f":"'FR-16(7)(v)-14 TOTAL CLASS'!N537","v":0},{"$f":"'FR-16(7)(v)-3 PROD Demand'!N537+'FR-16(7)(v)-7 TRANS Demand'!N537+'FR-16(7)(v)-11 DIST Demand'!N537","v":0},{"$f":"'FR-16(7)(v)-4 PROD Energy'!N537+'FR-16(7)(v)-8 TRANS Energy'!N537+'FR-16(7)(v)-12 DIST Energy'!N537","v":0},{"$f":"'FR-16(7)(v)-5 PROD Cust'!N537+'FR-16(7)(v)-9 TRANS Cust'!N537+'FR-16(7)(v)-13 DIST Cust'!N537","v":0},0,0]
[24,null,{"$f":"'FR-16(7)(v)-1 Functional'!C538","v":"PENSION ADJUSTMENT"},{"$f":"'FR-16(7)(v)-1 Functional'!D538","v":"A315"},null,{"$f":"'FR-16(7)(v)-14 TOTAL CLASS'!N538","v":-1561},{"$f":"'FR-16(7)(v)-3 PROD Demand'!N538+'FR-16(7)(v)-7 TRANS Demand'!N538+'FR-16(7)(v)-11 DIST Demand'!N538","v":-490},{"$f":"'FR-16(7)(v)-4 PROD Energy'!N538+'FR-16(7)(v)-8 TRANS Energy'!N538+'FR-16(7)(v)-12 DIST Energy'!N538","v":-1053},{"$f":"'FR-16(7)(v)-5 PROD Cust'!N538+'FR-16(7)(v)-9 TRANS Cust'!N538+'FR-16(7)(v)-13 DIST Cust'!N538","v":-18},-1561,0]
[25,null,{"$f":"'FR-16(7)(v)-1 Functional'!C539","v":"ELIMINATE MISC EXPENSES"},{"$f":"'FR-16(7)(v)-1 Functional'!D539","v":"A315"},null,{"$f":"'FR-16(7)(v)-14 TOTAL CLASS'!N539","v":-1506},{"$f":"'FR-16(7)(v)-3 PROD Demand'!N539+'FR-16(7)(v)-7 TRANS Demand'!N539+'FR-16(7)(v)-11 DIST Demand'!N539","v":-473},{"$f":"'FR-16(7)(v)-4 PROD Energy'!N539+'FR-16(7)(v)-8 TRANS Energy'!N539+'FR-16(7)(v)-12 DIST Energy'!N539","v":-1015},{"$f":"'FR-16(7)(v)-5 PROD Cust'!N539+'FR-16(7)(v)-9 TRANS Cust'!N539+'FR-16(7)(v)-13 DIST Cust'!N539","v":-18},-1506,0]
[26,null,{"$f":"'FR-16(7)(v)-1 Functional'!C540","v":"ELIMINATE MERGER COSTS AND CREDITS"},{"$f":"'FR-16(7)(v)-1 Functional'!D540","v":"A315"},null,{"$f":"'FR-16(7)(v)-14 TOTAL CLASS'!N540","v":0},{"$f":"'FR-16(7)(v)-3 PROD Demand'!N540+'FR-16(7)(v)-7 TRANS Demand'!N540+'FR-16(7)(v)-11 DIST Demand'!N540","v":0},{"$f":"'FR-16(7)(v)-4 PROD Energy'!N540+'FR-16(7)(v)-8 TRANS Energy'!N540+'FR-16(7)(v)-12 DIST Energy'!N540","v":0},{"$f":"'FR-16(7)(v)-5 PROD Cust'!N540+'FR-16(7)(v)-9 TRANS Cust'!N540+'FR-16(7)(v)-13 DIST Cust'!N540","v":0},0,0]
[27,null,{"$f":"'FR-16(7)(v)-1 Functional'!C541","v":"ANNUALIZE KYPSC MAINT TAX"},{"$f":"'FR-16(7)(v)-1 Functional'!D541","v":"A315"},null,{"$f":"'FR-16(7)(v)-14 TOTAL CLASS'!N541","v":0},{"$f":"'FR-16(7)(v)-3 PROD Demand'!N541+'FR-16(7)(v)-7 TRANS Demand'!N541+'FR-16(7)(v)-11 DIST Demand'!N541","v":0},{"$f":"'FR-16(7)(v)-4 PROD Energy'!N541+'FR-16(7)(v)-8 TRANS Energy'!N541+'FR-16(7)(v)-12 DIST Energy'!N541","v":0},{"$f":"'FR-16(7)(v)-5 PROD Cust'!N541+'FR-16(7)(v)-9 TRANS Cust'!N541+'FR-16(7)(v)-13 DIST Cust'!N541","v":0},0,0]
[28,null,{"$f":"'FR-16(7)(v)-1 Functional'!C542","v":"REMOVE INCENTIVE COMP"},{"$f":"'FR-16(7)(v)-1 Functional'!D542","v":"A315"},null,{"$f":"'FR-16(7)(v)-14 TOTAL CLASS'!N542","v":-4348},{"$f":"'FR-16(7)(v)-3 PROD Demand'!N542+'FR-16(7)(v)-7 TRANS Demand'!N542+'FR-16(7)(v)-11 DIST Demand'!N542","v":-1366},{"$f":"'FR-16(7)(v)-4 PROD Energy'!N542+'FR-16(7)(v)-8 TRANS Energy'!N542+'FR-16(7)(v)-12 DIST Energy'!N542","v":-2931},{"$f":"'FR-16(7)(v)-5 PROD Cust'!N542+'FR-16(7)(v)-9 TRANS Cust'!N542+'FR-16(7)(v)-13 DIST Cust'!N542","v":-51},-4348,0]
[29,null,{"$f":"'FR-16(7)(v)-1 Functional'!C543","v":"CREDIT CARD FEES"},{"$f":"'FR-16(7)(v)-1 Functional'!D543","v":"A315"},null,{"$f":"'FR-16(7)(v)-14 TOTAL CLASS'!N543","v":0},{"$f":"'FR-16(7)(v)-3 PROD Demand'!N543+'FR-16(7)(v)-7 TRANS Demand'!N543+'FR-16(7)(v)-11 DIST Demand'!N543","v":0},{"$f":"'FR-16(7)(v)-4 PROD Energy'!N543+'FR-16(7)(v)-8 TRANS Energy'!N543+'FR-16(7)(v)-12 DIST Energy'!N543","v":0},{"$f":"'FR-16(7)(v)-5 PROD Cust'!N543+'FR-16(7)(v)-9 TRANS Cust'!N543+'FR-16(7)(v)-13 DIST Cust'!N543","v":0},0,0]
[30,null,{"$f":"'FR-16(7)(v)-1 Functional'!C544","v":"ELIMINATE INCENTIVE COMPENSATION ADJUSTMENT"},{"$f":"'FR-16(7)(v)-1 Functional'!D544","v":"A315"},null,{"$f":"'FR-16(7)(v)-14 TOTAL CLASS'!N544","v":0},{"$f":"'FR-16(7)(v)-3 PROD Demand'!N544+'FR-16(7)(v)-7 TRANS Demand'!N544+'FR-16(7)(v)-11 DIST Demand'!N544","v":0},{"$f":"'FR-16(7)(v)-4 PROD Energy'!N544+'FR-16(7)(v)-8 TRANS Energy'!N544+'FR-16(7)(v)-12 DIST Energy'!N544","v":0},{"$f":"'FR-16(7)(v)-5 PROD Cust'!N544+'FR-16(7)(v)-9 TRANS Cust'!N544+'FR-16(7)(v)-13 DIST Cust'!N544","v":0},0,0]
[31,null,{"$f":"'FR-16(7)(v)-1 Functional'!C545","v":"AMORTIZATION OF DEFERRAL ASSET"},{"$f":"'FR-16(7)(v)-1 Functional'!D545","v":"A315"},null,{"$f":"'FR-16(7)(v)-14 TOTAL CLASS'!N545","v":0},{"$f":"'FR-16(7)(v)-3 PROD Demand'!N545+'FR-16(7)(v)-7 TRANS Demand'!N545+'FR-16(7)(v)-11 DIST Demand'!N545","v":0},{"$f":"'FR-16(7)(v)-4 PROD Energy'!N545+'FR-16(7)(v)-8 TRANS Energy'!N545+'FR-16(7)(v)-12 DIST Energy'!N545","v":0},{"$f":"'FR-16(7)(v)-5 PROD Cust'!N545+'FR-16(7)(v)-9 TRANS Cust'!N545+'FR-16(7)(v)-13 DIST Cust'!N545","v":0},0,0]
[32,null,{"$f":"'FR-16(7)(v)-1 Functional'!C546","v":"AMORTIZATION OF DEFERRED EXPENSES"},{"$f":"'FR-16(7)(v)-1 Functional'!D546","v":"A315"},null,{"$f":"'FR-16(7)(v)-14 TOTAL CLASS'!N546","v":273},{"$f":"'FR-16(7)(v)-3 PROD Demand'!N546+'FR-16(7)(v)-7 TRANS Demand'!N546+'FR-16(7)(v)-11 DIST Demand'!N546","v":86},{"$f":"'FR-16(7)(v)-4 PROD Energy'!N546+'FR-16(7)(v)-8 TRANS Energy'!N546+'FR-16(7)(v)-12 DIST Energy'!N546","v":184},{"$f":"'FR-16(7)(v)-5 PROD Cust'!N546+'FR-16(7)(v)-9 TRANS Cust'!N546+'FR-16(7)(v)-13 DIST Cust'!N546","v":3},273,0]
[33,null,{"$f":"'FR-16(7)(v)-1 Functional'!C547","v":"TOTAL ADMIN. & GENERAL"},null," ",{"$f":"SUM(F532:F546)","v":54084},17016,36425,643,54084,0]
[34]
[35,null,{"$f":"'FR-16(7)(v)-1 Functional'!C549","v":"TOTAL O & M EXPENSE"},null,null,{"$f":"F547+F522+F518+F503+F492+F470+F466+F459","v":986111},186995,796946,2170,986111,0]
[]
[{"$f":"co_name","v":"DUKE ENERGY KENTUCKY, INC."},null,null,null,null,null,null,null,null,{"$f":"J1","v":"FR-16(7)(v)-22"}]
[{"$f":"$A$2","v":"DISTR. PRIMARY CLASSIFIED - ELECTRIC COST OF SERVICE"},null,null,null,null,null,null,null,null,{"$f":"J2","v":"WITNESS RESPONSIBLE:"}]
[{"$f":"case_name","v":"CASE NO: 2019-00271"},null,null,null,null,null,null,null,null,{"$f":"Witness","v":"JAMES E. ZIOLKOWSKI"}]
[{"$f":"data_filing","v":"DATA: 12 MONTHS ACTUAL  & 0 MONTHS ESTIMATED"},null,null,null,null,null,null,null,null,{"$f":"\"PAGE \"&Pages2-5&\" OF \"&Pages2","v":"PAGE 10 OF 15"}]
[{"$f":"type","v":"TYPE OF FILING: \"X\" ORIGINAL   UPDATED    REVISED  "}]
[]
[]
["LINE",null,null,null,null,"TOTAL","CLASSIFIED",null,null,"TOTAL","ALL"]
["NO.","DEPRECIATION EXPENSE",null,"ALLO",null,{"$f":"$F$9","v":"DISTR. PRIMARY"},{"$f":"G9","v":"DEMAND"},"ENERGY","CUSTOMER","AT ISSUE","OTHER"]
[null,null,"Schedule 7",null,null,null,3,4,5]
[1,"PRODUCTION DEPRECIATION"]
[2,null,{"$f":"'FR-16(7)(v)-1 Functional'!C562","v":"PRODUCTION DEPRECIATION"},{"$f":"'FR-16(7)(v)-1 Functional'!D562","v":"P229"},null,{"$f":"'FR-16(7)(v)-14 TOTAL CLASS'!N562","v":161777},{"$f":"'FR-16(7)(v)-3 PROD Demand'!N562+'FR-16(7)(v)-7 TRANS Demand'!N562+'FR-16(7)(v)-11 DIST Demand'!N562","v":161777},{"$f":"'FR-16(7)(v)-4 PROD Energy'!N562+'FR-16(7)(v)-8 TRANS Energy'!N562+'FR-16(7)(v)-12 DIST Energy'!N562","v":0},{"$f":"'FR-16(7)(v)-5 PROD Cust'!N562+'FR-16(7)(v)-9 TRANS Cust'!N562+'FR-16(7)(v)-13 DIST Cust'!N562","v":0},{"$f":"SUM(G562:I562)","v":161777},{"$f":"F562-J562","v":0}]
[3,null,{"$f":"'FR-16(7)(v)-1 Functional'!C563","v":"  TOTAL PRODUCTION DEPREC EXP."},null,null,{"$f":"SUM(F562:F562)","v":161777},161777,0,0,161777,0]
[4]
[5,"TRANSMISSION DEPRECIATION"]
[6,null,"TRANSMISSION DEPRECIATION",{"$f":"'FR-16(7)(v)-1 Functional'!D566","v":"T229"},null,{"$f":"'FR-16(7)(v)-14 TOTAL CLASS'!N566","v":6334},{"$f":"'FR-16(7)(v)-3 PROD Demand'!N566+'FR-16(7)(v)-7 TRANS Demand'!N566+'FR-16(7)(v)-11 DIST Demand'!N566","v":6334},{"$f":"'FR-16(7)(v)-4 PROD Energy'!N566+'FR-16(7)(v)-8 TRANS Energy'!N566+'FR-16(7)(v)-12 DIST Energy'!N566","v":0},{"$f":"'FR-16(7)(v)-5 PROD Cust'!N566+'FR-16(7)(v)-9 TRANS Cust'!N566+'FR-16(7)(v)-13 DIST Cust'!N566","v":0},{"$f":"SUM(G566:I566)","v":6334},{"$f":"F566-J566","v":0}]
[7,null,{"$f":"'FR-16(7)(v)-1 Functional'!C567","v":"  TOTAL TRANSMISSION DEP. EXP."},null,null,{"$f":"SUM(F566:F566)","v":6334},6334,0,0,6334,0]
[8]
[9,"DISTRIBUTION DEPRECIATION"]
[10,null,{"$f":"'FR-16(7)(v)-1 Functional'!C570","v":"DISTRIBUTION DEPRECIATION"},{"$f":"'FR-16(7)(v)-1 Functional'!D570","v":"D249"},null,{"$f":"'FR-16(7)(v)-14 TOTAL CLASS'!N570","v":49412},{"$f":"'FR-16(7)(v)-3 PROD Demand'!N570+'FR-16(7)(v)-7 TRANS Demand'!N570+'FR-16(7)(v)-11 DIST Demand'!N570","v":48915},{"$f":"'FR-16(7)(v)-4 PROD Energy'!N570+'FR-16(7)(v)-8 TRANS Energy'!N570+'FR-16(7)(v)-12 DIST Energy'!N570","v":0},{"$f":"'FR-16(7)(v)-5 PROD Cust'!N570+'FR-16(7)(v)-9 TRANS Cust'!N570+'FR-16(7)(v)-13 DIST Cust'!N570","v":497},{"$f":"SUM(G570:I570)","v":49412},{"$f":"F570-J570","v":0}]
[11,null,{"$f":"'FR-16(7)(v)-1 Functional'!C571","v":"  TOTAL DIST. DEPREC EXP."},null,null,{"$f":"SUM(F570:F570)","v":49412},48915,0,497,49412,0]
[12,null,null,null,null," "]
[13,"GENERAL DEPRECIATION"]
[14,null,{"$f":"'FR-16(7)(v)-1 Functional'!C574","v":"GENERAL DEPRECIATION"},{"$f":"'FR-16(7)(v)-1 Functional'!D574","v":"G229"},null,{"$f":"'FR-16(7)(v)-14 TOTAL CLASS'!N574","v":21748},{"$f":"'FR-16(7)(v)-3 PROD Demand'!N574+'FR-16(7)(v)-7 TRANS Demand'!N574+'FR-16(7)(v)-11 DIST Demand'!N574","v":11628},{"$f":"'FR-16(7)(v)-4 PROD Energy'!N574+'FR-16(7)(v)-8 TRANS Energy'!N574+'FR-16(7)(v)-12 DIST Energy'!N574","v":9957},{"$f":"'FR-16(7)(v)-5 PROD Cust'!N574+'FR-16(7)(v)-9 TRANS Cust'!N574+'FR-16(7)(v)-13 DIST Cust'!N574","v":163},{"$f":"SUM(G574:I574)","v":21748},{"$f":"F574-J574","v":0}]
[15,null,{"$f":"'FR-16(7)(v)-1 Functional'!C575","v":"  TOTAL GENERAL DEPREC EXP."},null,null,{"$f":"SUM(F574:F574)","v":21748},11628,9957,163,21748,0]
[16]
[17,"COMMON AND OTHER DEPRECIATION"]
[18,null,{"$f":"'FR-16(7)(v)-1 Functional'!C578","v":"COMMON DEPRECIATION"},{"$f":"'FR-16(7)(v)-1 Functional'!D578","v":"C229"},null,{"$f":"'FR-16(7)(v)-14 TOTAL CLASS'!N578","v":147},{"$f":"'FR-16(7)(v)-3 PROD Demand'!N578+'FR-16(7)(v)-7 TRANS Demand'!N578+'FR-16(7)(v)-11 DIST Demand'!N578","v":78},{"$f":"'FR-16(7)(v)-4 PROD Energy'!N578+'FR-16(7)(v)-8 TRANS Energy'!N578+'FR-16(7)(v)-12 DIST Energy'!N578","v":68},{"$f":"'FR-16(7)(v)-5 PROD Cust'!N578+'FR-16(7)(v)-9 TRANS Cust'!N578+'FR-16(7)(v)-13 DIST Cust'!N578","v":1},{"$f":"SUM(G578:I578)","v":147},{"$f":"F578-J578","v":0}]
[19,null,{"$f":"'FR-16(7)(v)-1 Functional'!C579","v":"  TOTAL COM & OTHER DEPREC EXP."},null,null,{"$f":"SUM(F578:F578)","v":147},78,68,1,147,0]
[20]
[21]
[22,"TOTAL DEPRECIATION EXPENSE",null,null," ",{"$f":"F579+F575+F571+F567+F563","v":239418},228732,10025,661,239418,0]
[]
[{"$f":"co_name","v":"DUKE ENERGY KENTUCKY, INC."},null,null,null,null,null,null,null,null,{"$f":"J1","v":"FR-16(7)(v)-22"}]
[{"$f":"$A$2","v":"DISTR. PRIMARY CLASSIFIED - ELECTRIC COST OF SERVICE"},null,null,null,null,null,null,null,null,{"$f":"J2","v":"WITNESS RESPONSIBLE:"}]
[{"$f":"case_name","v":"CASE NO: 2019-00271"},null,null,null,null,null,null,null,null,{"$f":"Witness","v":"JAMES E. ZIOLKOWSKI"}]
[{"$f":"data_filing","v":"DATA: 12 MONTHS ACTUAL  & 0 MONTHS ESTIMATED"},null,null,null,null,null,null,null,null,{"$f":"\"PAGE \"&Pages2-4&\" OF \"&Pages2","v":"PAGE 11 OF 15"}]
[{"$f":"type","v":"TYPE OF FILING: \"X\" ORIGINAL   UPDATED    REVISED  "}]
[]
[]
["LINE",null,null,null,null,"TOTAL","CLASSIFIED",null,null,"TOTAL","ALL"]
["NO.","OTHER TAXES & MISC EXPENSES",null,"ALLO",null,{"$f":"$F$9","v":"DISTR. PRIMARY"},{"$f":"G9","v":"DEMAND"},"ENERGY","CUSTOMER","AT ISSUE","OTHER"]
[null,null,"Schedule 8",null,null,null,3,4,5]
[1,"TAXES OTHER THAN INC & REV"]
[2," REAL ESTATE & PROPERTY TAX"]
[3,null,{"$f":"'FR-16(7)(v)-1 Functional'!C596","v":"REAL ESTATE & PROPERTY TAX"},{"$f":"'FR-16(7)(v)-1 Functional'!D596","v":"NP29"},null,{"$f":"'FR-16(7)(v)-14 TOTAL CLASS'!N596","v":55014},{"$f":"'FR-16(7)(v)-3 PROD Demand'!N596+'FR-16(7)(v)-7 TRANS Demand'!N596+'FR-16(7)(v)-11 DIST Demand'!N596","v":53824},{"$f":"'FR-16(7)(v)-4 PROD Energy'!N596+'FR-16(7)(v)-8 TRANS Energy'!N596+'FR-16(7)(v)-12 DIST Energy'!N596","v":994},{"$f":"'FR-16(7)(v)-5 PROD Cust'!N596+'FR-16(7)(v)-9 TRANS Cust'!N596+'FR-16(7)(v)-13 DIST Cust'!N596","v":196},{"$f":"SUM(G596:I596)","v":55014},{"$f":"F596-J596","v":0}]
[4,null,{"$f":"'FR-16(7)(v)-1 Functional'!C597","v":"ANNUALIZE PROPERTY TAX"},{"$f":"'FR-16(7)(v)-1 Functional'!D597","v":"NP29"}," ",{"$f":"'FR-16(7)(v)-14 TOTAL CLASS'!N597","v":0},{"$f":"'FR-16(7)(v)-3 PROD Demand'!N597+'FR-16(7)(v)-7 TRANS Demand'!N597+'FR-16(7)(v)-11 DIST Demand'!N597","v":0},{"$f":"'FR-16(7)(v)-4 PROD Energy'!N597+'FR-16(7)(v)-8 TRANS Energy'!N597+'FR-16(7)(v)-12 DIST Energy'!N597","v":0},{"$f":"'FR-16(7)(v)-5 PROD Cust'!N597+'FR-16(7)(v)-9 TRANS Cust'!N597+'FR-16(7)(v)-13 DIST Cust'!N597","v":0},{"$f":"SUM(G597:I597)","v":0},{"$f":"F597-J597","v":0}]
[5,null,{"$f":"'FR-16(7)(v)-1 Functional'!C598","v":"  TOTAL REAL ESTATE & PROPERTY TAX"},null,null,{"$f":"SUM(F596:F597)","v":55014},53824,994,196,55014,0]
[6]
[7," MISCELLANEOUS TAXES"]
[8,null,{"$f":"'FR-16(7)(v)-1 Functional'!C601","v":"PAYROLL "},{"$f":"'FR-16(7)(v)-1 Functional'!D601","v":"A315"},null,{"$f":"'FR-16(7)(v)-14 TOTAL CLASS'!N601","v":5179},{"$f":"'FR-16(7)(v)-3 PROD Demand'!N601+'FR-16(7)(v)-7 TRANS Demand'!N601+'FR-16(7)(v)-11 DIST Demand'!N601","v":1627},{"$f":"'FR-16(7)(v)-4 PROD Energy'!N601+'FR-16(7)(v)-8 TRANS Energy'!N601+'FR-16(7)(v)-12 DIST Energy'!N601","v":3491},{"$f":"'FR-16(7)(v)-5 PROD Cust'!N601+'FR-16(7)(v)-9 TRANS Cust'!N601+'FR-16(7)(v)-13 DIST Cust'!N601","v":61},{"$f":"SUM(G601:I601)","v":5179},{"$f":"F601-J601","v":0}]
[9,null,{"$f":"'FR-16(7)(v)-1 Functional'!C602","v":"ELIMINATE DSM "},{"$f":"'FR-16(7)(v)-1 Functional'!D602","v":"A315"},null,{"$f":"'FR-16(7)(v)-14 TOTAL CLASS'!N602","v":-102},{"$f":"'FR-16(7)(v)-3 PROD Demand'!N602+'FR-16(7)(v)-7 TRANS Demand'!N602+'FR-16(7)(v)-11 DIST Demand'!N602","v":-32},{"$f":"'FR-16(7)(v)-4 PROD Energy'!N602+'FR-16(7)(v)-8 TRANS Energy'!N602+'FR-16(7)(v)-12 DIST Energy'!N602","v":-69},{"$f":"'FR-16(7)(v)-5 PROD Cust'!N602+'FR-16(7)(v)-9 TRANS Cust'!N602+'FR-16(7)(v)-13 DIST Cust'!N602","v":-1},{"$f":"SUM(G602:I602)","v":-102},{"$f":"F602-J602","v":0}]
[10,null,{"$f":"'FR-16(7)(v)-1 Functional'!C603","v":"FRANCHISE & LICENSE"},{"$f":"'FR-16(7)(v)-1 Functional'!D603","v":"A315"},null,{"$f":"'FR-16(7)(v)-14 TOTAL CLASS'!N603","v":0},{"$f":"'FR-16(7)(v)-3 PROD Demand'!N603+'FR-16(7)(v)-7 TRANS Demand'!N603+'FR-16(7)(v)-11 DIST Demand'!N603","v":0},{"$f":"'FR-16(7)(v)-4 PROD Energy'!N603+'FR-16(7)(v)-8 TRANS Energy'!N603+'FR-16(7)(v)-12 DIST Energy'!N603","v":0},{"$f":"'FR-16(7)(v)-5 PROD Cust'!N603+'FR-16(7)(v)-9 TRANS Cust'!N603+'FR-16(7)(v)-13 DIST Cust'!N603","v":0},{"$f":"SUM(G603:I603)","v":0},{"$f":"F603-J603","v":0}]
[11,null,{"$f":"'FR-16(7)(v)-1 Functional'!C604","v":"ELIMINATE ESM"},{"$f":"'FR-16(7)(v)-1 Functional'!D604","v":"A315"},null,{"$f":"'FR-16(7)(v)-14 TOTAL CLASS'!N604","v":-2754},{"$f":"'FR-16(7)(v)-3 PROD Demand'!N604+'FR-16(7)(v)-7 TRANS Demand'!N604+'FR-16(7)(v)-11 DIST Demand'!N604","v":-865},{"$f":"'FR-16(7)(v)-4 PROD Energy'!N604+'FR-16(7)(v)-8 TRANS Energy'!N604+'FR-16(7)(v)-12 DIST Energy'!N604","v":-1857},{"$f":"'FR-16(7)(v)-5 PROD Cust'!N604+'FR-16(7)(v)-9 TRANS Cust'!N604+'FR-16(7)(v)-13 DIST Cust'!N604","v":-32},{"$f":"SUM(G604:I604)","v":-2754},{"$f":"F604-J604","v":0}]
[12,null,{"$f":"'FR-16(7)(v)-1 Functional'!C605","v":"  TOTAL MISCELLANEOUS TAXES"},null,null,{"$f":"SUM(F601:F604)","v":2323},730,1565,28,2323,0]
[13]
[14," MISCELLANEOUS EXPENSES"]
[15,null,{"$f":"'FR-16(7)(v)-1 Functional'!C608","v":"PSC MAINT. EXP ON INCREASE"},{"$f":"'FR-16(7)(v)-1 Functional'!D608","v":"K902"},null,{"$f":"'FR-16(7)(v)-14 TOTAL CLASS'!N608","v":389},{"$f":"'FR-16(7)(v)-3 PROD Demand'!N608+'FR-16(7)(v)-7 TRANS Demand'!N608+'FR-16(7)(v)-11 DIST Demand'!N608","v":192},{"$f":"'FR-16(7)(v)-4 PROD Energy'!N608+'FR-16(7)(v)-8 TRANS Energy'!N608+'FR-16(7)(v)-12 DIST Energy'!N608","v":134},{"$f":"'FR-16(7)(v)-5 PROD Cust'!N608+'FR-16(7)(v)-9 TRANS Cust'!N608+'FR-16(7)(v)-13 DIST Cust'!N608","v":63},{"$f":"SUM(G608:I608)","v":389},{"$f":"F608-J608","v":0}]
[16,null,{"$f":"'FR-16(7)(v)-1 Functional'!C609","v":"RESERVED FOR FUTURE USE"},{"$f":"'FR-16(7)(v)-1 Functional'!D609","v":"K902"},null,{"$f":"'FR-16(7)(v)-14 TOTAL CLASS'!N609","v":0},{"$f":"'FR-16(7)(v)-3 PROD Demand'!N609+'FR-16(7)(v)-7 TRANS Demand'!N609+'FR-16(7)(v)-11 DIST Demand'!N609","v":0},{"$f":"'FR-16(7)(v)-4 PROD Energy'!N609+'FR-16(7)(v)-8 TRANS Energy'!N609+'FR-16(7)(v)-12 DIST Energy'!N609","v":0},{"$f":"'FR-16(7)(v)-5 PROD Cust'!N609+'FR-16(7)(v)-9 TRANS Cust'!N609+'FR-16(7)(v)-13 DIST Cust'!N609","v":0},{"$f":"SUM(G609:I609)","v":0},{"$f":"F609-J609","v":0}]
[17,null,{"$f":"'FR-16(7)(v)-1 Functional'!C610","v":"  TOTAL MISCELLANEOUS EXPENSES"},null,null,{"$f":"SUM(F608:F609)","v":389},192,134,63,389,0]
[18]
[19,"TOTAL OTHER TAX & MISC EXPENSE",null,null," ",{"$f":"F605+F598+F610","v":57726},54746,2693,287,57726,0]
[20]
[21,"PRELIMINARY SUMMARY"]
[22,null,{"$f":"'FR-16(7)(v)-1 Functional'!C615","v":"TOTAL O&M EXPENSE"},null,null,{"$f":"F549","v":986111},186995,796946,2170,986111,0]
[23,null,{"$f":"'FR-16(7)(v)-1 Functional'!C616","v":"TOTAL DEPRECIATION EXPENSE"},null,null,{"$f":"F582","v":239418},228732,10025,661,239418,0]
[24,null,{"$f":"'FR-16(7)(v)-1 Functional'!C617","v":"TOTAL OTHER TAX & MISC EXPENSE"},null,null,{"$f":"F612","v":57726},54746,2693,287,57726,0]
[25,null,{"$f":"'FR-16(7)(v)-1 Functional'!C618","v":"  TOTAL OPER EXP EXCL INCOME & REV TAX"},null,null,{"$f":"SUM(F615:F617)","v":1283255},470473,809664,3118,1283255,0]
[]
[{"$f":"co_name","v":"DUKE ENERGY KENTUCKY, INC."},null,null,null,null,null,null,null,null,{"$f":"J1","v":"FR-16(7)(v)-22"}]
[{"$f":"$A$2","v":"DISTR. PRIMARY CLASSIFIED - ELECTRIC COST OF SERVICE"},null,null,null,null,null,null,null,null,{"$f":"J2","v":"WITNESS RESPONSIBLE:"}]
[{"$f":"case_name","v":"CASE NO: 2019-00271"},null,null,null,null,null,null,null,null,{"$f":"Witness","v":"JAMES E. ZIOLKOWSKI"}]
[{"$f":"data_filing","v":"DATA: 12 MONTHS ACTUAL  & 0 MONTHS ESTIMATED"},null,null,null,null,null,null,null,null,{"$f":"\"PAGE \"&Pages2-3&\" OF \"&Pages2","v":"PAGE 12 OF 15"}]
[{"$f":"type","v":"TYPE OF FILING: \"X\" ORIGINAL   UPDATED    REVISED  "}]
[]
[]
["LINE",null,null,null,null,"TOTAL","CLASSIFIED",null,null,"TOTAL","ALL"]
["NO.","FEDERAL INCOME TAX BASED ON RETURN",null,"ALLO",null,{"$f":"$F$9","v":"DISTR. PRIMARY"},{"$f":"$G$9","v":"DEMAND"},{"$f":"$H$9","v":"ENERGY"},{"$f":"$I$9","v":"CUSTOMER"},"AT ISSUE","OTHER"]
[null,null,"Schedule 9",null,null,null,{"$f":"G10","v":3},{"$f":"H10","v":4},{"$f":"I10","v":5}]
[1,"FEDERAL INCOME TAX DEDUCTIONS"]
[2," AUTOMATIC INTEREST CALCULATION",null,null,null," "]
[3,null,{"$f":"'FR-16(7)(v)-1 Functional'!C632","v":"AUTO PROC INTEREST DED"},{"$f":"'FR-16(7)(v)-1 Functional'!D632","v":"RB99"},null,{"$f":"'FR-16(7)(v)-14 TOTAL CLASS'!N632","v":75614},{"$f":"'FR-16(7)(v)-3 PROD Demand'!N632+'FR-16(7)(v)-7 TRANS Demand'!N632+'FR-16(7)(v)-11 DIST Demand'!N632","v":71940},{"$f":"'FR-16(7)(v)-4 PROD Energy'!N632+'FR-16(7)(v)-8 TRANS Energy'!N632+'FR-16(7)(v)-12 DIST Energy'!N632","v":3379},{"$f":"'FR-16(7)(v)-5 PROD Cust'!N632+'FR-16(7)(v)-9 TRANS Cust'!N632+'FR-16(7)(v)-13 DIST Cust'!N632","v":295},{"$f":"SUM(G632:I632)","v":75614},{"$f":"F632-J632","v":0}]
[4,null,{"$f":"'FR-16(7)(v)-1 Functional'!C633","v":"  TOTAL INTEREST EXPENSE"},null,null,{"$f":"F632","v":75614},71940,3379,295,75614,0]
[5]
[6," OTHER DEDUCTIONS"]
[7,null,{"$f":"'FR-16(7)(v)-1 Functional'!C636","v":"DEPREC EXCESS TAX-BOOK"},{"$f":"'FR-16(7)(v)-1 Functional'!D636","v":"DE49"},null,{"$f":"'FR-16(7)(v)-14 TOTAL CLASS'!N636","v":-56767},{"$f":"'FR-16(7)(v)-3 PROD Demand'!N636+'FR-16(7)(v)-7 TRANS Demand'!N636+'FR-16(7)(v)-11 DIST Demand'!N636","v":-54230},{"$f":"'FR-16(7)(v)-4 PROD Energy'!N636+'FR-16(7)(v)-8 TRANS Energy'!N636+'FR-16(7)(v)-12 DIST Energy'!N636","v":-2378},{"$f":"'FR-16(7)(v)-5 PROD Cust'!N636+'FR-16(7)(v)-9 TRANS Cust'!N636+'FR-16(7)(v)-13 DIST Cust'!N636","v":-159},{"$f":"SUM(G636:I636)","v":-56767},{"$f":"F636-J636","v":0}]
[8,null,{"$f":"'FR-16(7)(v)-1 Functional'!C637","v":"PERMANENT DIFFERENCES"},{"$f":"'FR-16(7)(v)-1 Functional'!D637","v":"A357"},null,{"$f":"'FR-16(7)(v)-14 TOTAL CLASS'!N637","v":-1160},{"$f":"'FR-16(7)(v)-3 PROD Demand'!N637+'FR-16(7)(v)-7 TRANS Demand'!N637+'FR-16(7)(v)-11 DIST Demand'!N637","v":-365},{"$f":"'FR-16(7)(v)-4 PROD Energy'!N637+'FR-16(7)(v)-8 TRANS Energy'!N637+'FR-16(7)(v)-12 DIST Energy'!N637","v":-781},{"$f":"'FR-16(7)(v)-5 PROD Cust'!N637+'FR-16(7)(v)-9 TRANS Cust'!N637+'FR-16(7)(v)-13 DIST Cust'!N637","v":-14},{"$f":"SUM(G637:I637)","v":-1160},{"$f":"F637-J637","v":0}]
[9,null,{"$f":"'FR-16(7)(v)-1 Functional'!C638","v":"TEMPORARY DIFFERENCES"},{"$f":"'FR-16(7)(v)-1 Functional'!D638","v":"DE49"},null,{"$f":"'FR-16(7)(v)-14 TOTAL CLASS'!N638","v":346378},{"$f":"'FR-16(7)(v)-3 PROD Demand'!N638+'FR-16(7)(v)-7 TRANS Demand'!N638+'FR-16(7)(v)-11 DIST Demand'!N638","v":330903},{"$f":"'FR-16(7)(v)-4 PROD Energy'!N638+'FR-16(7)(v)-8 TRANS Energy'!N638+'FR-16(7)(v)-12 DIST Energy'!N638","v":14508},{"$f":"'FR-16(7)(v)-5 PROD Cust'!N638+'FR-16(7)(v)-9 TRANS Cust'!N638+'FR-16(7)(v)-13 DIST Cust'!N638","v":967},{"$f":"SUM(G638:I638)","v":346378},{"$f":"F638-J638","v":0}]
[10,null,{"$f":"'FR-16(7)(v)-1 Functional'!C639","v":"  TOTAL OTHER DEDUCTIONS"},null,null,{"$f":"SUM(F636:F638)","v":288451},276308,11349,794,288451,0]
[11]
[12,"NET DEDUCTIONS AND ADDITIONS",null,null,null,{"$f":"F639+F633","v":364065},348248,14728,1089,364065,0]
[13]
[14," FED DEFERRED INCOME TAX (410 & 411)"]
[15,null,{"$f":"'FR-16(7)(v)-1 Functional'!C644","v":"DEFERRED INCOME TAXES - NET"},{"$f":"'FR-16(7)(v)-1 Functional'!D644","v":"OM39"},null,{"$f":"'FR-16(7)(v)-14 TOTAL CLASS'!N644","v":65625},{"$f":"'FR-16(7)(v)-3 PROD Demand'!N644+'FR-16(7)(v)-7 TRANS Demand'!N644+'FR-16(7)(v)-11 DIST Demand'!N644","v":12444},{"$f":"'FR-16(7)(v)-4 PROD Energy'!N644+'FR-16(7)(v)-8 TRANS Energy'!N644+'FR-16(7)(v)-12 DIST Energy'!N644","v":53035},{"$f":"'FR-16(7)(v)-5 PROD Cust'!N644+'FR-16(7)(v)-9 TRANS Cust'!N644+'FR-16(7)(v)-13 DIST Cust'!N644","v":146},{"$f":"SUM(G644:I644)","v":65625},{"$f":"F644-J644","v":0}]
[16,null,{"$f":"'FR-16(7)(v)-1 Functional'!C645","v":"AMORT OF DEFERRED MERGER COST"},{"$f":"'FR-16(7)(v)-1 Functional'!D645","v":"A357"},null,{"$f":"'FR-16(7)(v)-14 TOTAL CLASS'!N645","v":0},{"$f":"'FR-16(7)(v)-3 PROD Demand'!N645+'FR-16(7)(v)-7 TRANS Demand'!N645+'FR-16(7)(v)-11 DIST Demand'!N645","v":0},{"$f":"'FR-16(7)(v)-4 PROD Energy'!N645+'FR-16(7)(v)-8 TRANS Energy'!N645+'FR-16(7)(v)-12 DIST Energy'!N645","v":0},{"$f":"'FR-16(7)(v)-5 PROD Cust'!N645+'FR-16(7)(v)-9 TRANS Cust'!N645+'FR-16(7)(v)-13 DIST Cust'!N645","v":0},{"$f":"SUM(G645:I645)","v":0},{"$f":"F645-J645","v":0}]
[17,null,{"$f":"'FR-16(7)(v)-1 Functional'!C646","v":"DIT ADJUSTMENT - S/L DEPRECIATION"},{"$f":"'FR-16(7)(v)-1 Functional'!D646","v":"DE49"},null,{"$f":"'FR-16(7)(v)-14 TOTAL CLASS'!N646","v":0},{"$f":"'FR-16(7)(v)-3 PROD Demand'!N646+'FR-16(7)(v)-7 TRANS Demand'!N646+'FR-16(7)(v)-11 DIST Demand'!N646","v":0},{"$f":"'FR-16(7)(v)-4 PROD Energy'!N646+'FR-16(7)(v)-8 TRANS Energy'!N646+'FR-16(7)(v)-12 DIST Energy'!N646","v":0},{"$f":"'FR-16(7)(v)-5 PROD Cust'!N646+'FR-16(7)(v)-9 TRANS Cust'!N646+'FR-16(7)(v)-13 DIST Cust'!N646","v":0},{"$f":"SUM(G646:I646)","v":0},{"$f":"F646-J646","v":0}]
[18,null,{"$f":"'FR-16(7)(v)-1 Functional'!C647","v":"DIT ADJUSTMENT - ARAM"},{"$f":"'FR-16(7)(v)-1 Functional'!D647","v":"K201"},null,{"$f":"'FR-16(7)(v)-14 TOTAL CLASS'!N647","v":-463},{"$f":"'FR-16(7)(v)-3 PROD Demand'!N647+'FR-16(7)(v)-7 TRANS Demand'!N647+'FR-16(7)(v)-11 DIST Demand'!N647","v":-463},{"$f":"'FR-16(7)(v)-4 PROD Energy'!N647+'FR-16(7)(v)-8 TRANS Energy'!N647+'FR-16(7)(v)-12 DIST Energy'!N647","v":0},{"$f":"'FR-16(7)(v)-5 PROD Cust'!N647+'FR-16(7)(v)-9 TRANS Cust'!N647+'FR-16(7)(v)-13 DIST Cust'!N647","v":0},{"$f":"SUM(G647:I647)","v":-463},{"$f":"F647-J647","v":0}]
[19,null,{"$f":"'FR-16(7)(v)-1 Functional'!C648","v":"DIT ADJUSTMENT - AMORT OF EXCESS DEF TAXES"},{"$f":"'FR-16(7)(v)-1 Functional'!D648","v":"A357"},null,{"$f":"'FR-16(7)(v)-14 TOTAL CLASS'!N648","v":-10172},{"$f":"'FR-16(7)(v)-3 PROD Demand'!N648+'FR-16(7)(v)-7 TRANS Demand'!N648+'FR-16(7)(v)-11 DIST Demand'!N648","v":-3202},{"$f":"'FR-16(7)(v)-4 PROD Energy'!N648+'FR-16(7)(v)-8 TRANS Energy'!N648+'FR-16(7)(v)-12 DIST Energy'!N648","v":-6851},{"$f":"'FR-16(7)(v)-5 PROD Cust'!N648+'FR-16(7)(v)-9 TRANS Cust'!N648+'FR-16(7)(v)-13 DIST Cust'!N648","v":-119},{"$f":"SUM(G648:I648)","v":-10172},{"$f":"F648-J648","v":0}]
[20,null,{"$f":"'FR-16(7)(v)-1 Functional'!C649","v":"  TOTAL FED DEF IT (410 & 411)"},null,null,{"$f":"SUM(F644:F648)","v":54990},8779,46184,27,54990,0]
[21]
[22," AMORT INV TAX CREDIT"]
[23,null,{"$f":"'FR-16(7)(v)-1 Functional'!C652","v":"AMORTIZE ITC"},{"$f":"'FR-16(7)(v)-1 Functional'!D652","v":"NP29"},null,{"$f":"'FR-16(7)(v)-14 TOTAL CLASS'!N652","v":2},{"$f":"'FR-16(7)(v)-3 PROD Demand'!N652+'FR-16(7)(v)-7 TRANS Demand'!N652+'FR-16(7)(v)-11 DIST Demand'!N652","v":2},{"$f":"'FR-16(7)(v)-4 PROD Energy'!N652+'FR-16(7)(v)-8 TRANS Energy'!N652+'FR-16(7)(v)-12 DIST Energy'!N652","v":0},{"$f":"'FR-16(7)(v)-5 PROD Cust'!N652+'FR-16(7)(v)-9 TRANS Cust'!N652+'FR-16(7)(v)-13 DIST Cust'!N652","v":0},{"$f":"SUM(G652:I652)","v":2},{"$f":"F652-J652","v":0}]
[24,null,{"$f":"'FR-16(7)(v)-1 Functional'!C653","v":"  TOTAL AMORTIZED ITC"},null,null,{"$f":"SUM(F652:F652)","v":2},2,0,0,2,0]
[25]
[26," OTHER FEDERAL TAX CREDITS"]
[27,null,{"$f":"'FR-16(7)(v)-1 Functional'!C656","v":"FUEL TAX CREDIT"},{"$f":"'FR-16(7)(v)-1 Functional'!D656","v":"K301"},null,{"$f":"'FR-16(7)(v)-14 TOTAL CLASS'!N656","v":0},{"$f":"'FR-16(7)(v)-3 PROD Demand'!N656+'FR-16(7)(v)-7 TRANS Demand'!N656+'FR-16(7)(v)-11 DIST Demand'!N656","v":0},{"$f":"'FR-16(7)(v)-4 PROD Energy'!N656+'FR-16(7)(v)-8 TRANS Energy'!N656+'FR-16(7)(v)-12 DIST Energy'!N656","v":0},{"$f":"'FR-16(7)(v)-5 PROD Cust'!N656+'FR-16(7)(v)-9 TRANS Cust'!N656+'FR-16(7)(v)-13 DIST Cust'!N656","v":0},{"$f":"SUM(G656:I656)","v":0},{"$f":"F656-J656","v":0}]
[28,null,{"$f":"'FR-16(7)(v)-1 Functional'!C657","v":"R&D CREDIT - SECTION 41"},{"$f":"'FR-16(7)(v)-1 Functional'!D657","v":"A315"},null,{"$f":"'FR-16(7)(v)-14 TOTAL CLASS'!N657","v":0},{"$f":"'FR-16(7)(v)-3 PROD Demand'!N657+'FR-16(7)(v)-7 TRANS Demand'!N657+'FR-16(7)(v)-11 DIST Demand'!N657","v":0},{"$f":"'FR-16(7)(v)-4 PROD Energy'!N657+'FR-16(7)(v)-8 TRANS Energy'!N657+'FR-16(7)(v)-12 DIST Energy'!N657","v":0},{"$f":"'FR-16(7)(v)-5 PROD Cust'!N657+'FR-16(7)(v)-9 TRANS Cust'!N657+'FR-16(7)(v)-13 DIST Cust'!N657","v":0},{"$f":"SUM(G657:I657)","v":0},{"$f":"F657-J657","v":0}]
[29,null,{"$f":"'FR-16(7)(v)-1 Functional'!C658","v":"  TOTAL OTHER FEDERAL TAX CREDITS"},null,null,{"$f":"SUM(F656:F657)","v":0},0,0,0,0,0]
[30]
[31,"PRELIMINARY SUMMARY"]
[32,null,{"$f":"'FR-16(7)(v)-1 Functional'!C661","v":"TOTAL FED DEF IT (410 & 411)"},null,null,{"$f":"F649","v":54990},8779,46184,27,54990,0]
[33,null,{"$f":"'FR-16(7)(v)-1 Functional'!C662","v":"TOTAL AMORTIZED ITC & OTHER FEDERAL TAX CREDITS"},null,null,{"$f":"-F653-F658","v":-2},-2,0,0,-2,0]
[34,null,{"$f":"'FR-16(7)(v)-1 Functional'!C663","v":"  TOTAL FEDERAL TAX ADJUSTMENTS"},null,null,{"$f":"SUM(F661:F662)","v":54988},8777,46184,27,54988,0]
[35]
[36,"FEDERAL INCOME TAX COMPUTATION"]
[37,null,"RETURN ON RATE BASE",null,null,{"$f":"F433","v":255798},{"$f":"G433","v":243370},{"$f":"H433","v":11430},{"$f":"I433","v":998},{"$f":"J433","v":255798},{"$f":"F666-J666","v":0}]
[38,null,{"$f":"'FR-16(7)(v)-1 Functional'!C667","v":"NET DEDUCTIONS AND ADDITIONS"},null,null,{"$f":"-F641","v":-364065},{"$f":"-G641","v":-348248},{"$f":"-H641","v":-14728},{"$f":"-I641","v":-1089},{"$f":"-J641","v":-364065},{"$f":"F667-J667","v":0}]
[39,null,{"$f":"'FR-16(7)(v)-1 Functional'!C668","v":"TOTAL FEDERAL TAX ADJUSTMENTS"},null,null,{"$f":"F663","v":54988},{"$f":"G663","v":8777},{"$f":"H663","v":46184},{"$f":"I663","v":27},{"$f":"J663","v":54988},{"$f":"F668-J668","v":0}]
[40,null,"TOTAL STATE PROV DEF IT (410 & 411)",null,null,{"$f":"F707","v":10094},{"$f":"G707","v":3177},{"$f":"H707","v":6799},{"$f":"I707","v":118},{"$f":"J707","v":10094},{"$f":"F669-J669","v":0}]
[41,null,"RESERVED",null,null,{"$f":"F24","v":0},{"$f":"G24","v":0},{"$f":"H24","v":0},{"$f":"I24","v":0},{"$f":"J24","v":0},{"$f":"F670-J670","v":0}]
[42,null,{"$f":"'FR-16(7)(v)-1 Functional'!C671","v":"  BASE FOR FIT COMPUATION"},null,null,{"$f":"SUM(F666:F670)","v":-43185},-92924,49685,54,-43185,0]
[43]
[44,null,{"$f":"'FR-16(7)(v)-1 Functional'!C673","v":"FIT FACTOR K190/(1-K190)"},null,null,{"$f":"ROUND(FIT/(1-FIT),9)","v":0.26582278500000001},{"$f":"ROUND(FIT/(1-FIT),9)","v":0.26582278500000001},{"$f":"ROUND(FIT/(1-FIT),9)","v":0.26582278500000001},{"$f":"ROUND(FIT/(1-FIT),9)","v":0.26582278500000001},null,{"$f":"ROUND(FIT/(1-FIT),9)","v":0.26582278500000001}]
[45,null,{"$f":"'FR-16(7)(v)-1 Functional'!C674","v":"PRELIM FED INCOME TAX"},null,null,{"$f":"'FR-16(7)(v)-14 TOTAL CLASS'!N674","v":-11481},{"$f":"F674-SUM(H674:I674)","v":-24702},{"$f":"'FR-16(7)(v)-4 PROD Energy'!N674+'FR-16(7)(v)-8 TRANS Energy'!N674+'FR-16(7)(v)-12 DIST Energy'!N674","v":13207},{"$f":"'FR-16(7)(v)-5 PROD Cust'!N674+'FR-16(7)(v)-9 TRANS Cust'!N674+'FR-16(7)(v)-13 DIST Cust'!N674","v":14},{"$f":"SUM(G674:I674)","v":-11481},{"$f":"F674-J674","v":0}]
[46,null,{"$f":"'FR-16(7)(v)-1 Functional'!C675","v":"TOTAL FEDERAL TAX ADJUSTMENTS"},null,null,{"$f":"F663","v":54988},{"$f":"G663","v":8777},{"$f":"H663","v":46184},{"$f":"I663","v":27},{"$f":"J663","v":54988},{"$f":"F675-J675","v":0}]
[47,null,{"$f":"'FR-16(7)(v)-1 Functional'!C676","v":"  NET FED INCOME TAX ALLOWABLE"},null,null,{"$f":"SUM(F674:F675)","v":43507},-15925,59391,41,43507,0]
[48]
[49,"INCOME TAX BASED ON RETURN"]
[50,"FEDERAL INCOME TAX PAYABLE"]
[51,null,{"$f":"'FR-16(7)(v)-1 Functional'!C680","v":"PRELIM FEDERAL INCOME TAX"},null,null,{"$f":"F674","v":-11481},-24702,13207,14,-11481,0]
[53,null,{"$f":"'FR-16(7)(v)-1 Functional'!C681","v":"  NET FED INCOME TAX PAYABLE"},null,null,{"$f":"SUM(F680:F680)","v":-11481},-24702,13207,14,-11481,0]
[]
[{"$f":"co_name","v":"DUKE ENERGY KENTUCKY, INC."},null,null,null,null,null,null,null,null,{"$f":"J1","v":"FR-16(7)(v)-22"}]
[{"$f":"$A$2","v":"DISTR. PRIMARY CLASSIFIED - ELECTRIC COST OF SERVICE"},null,null,null,null,null,null,null,null,{"$f":"J2","v":"WITNESS RESPONSIBLE:"}]
[{"$f":"case_name","v":"CASE NO: 2019-00271"},null,null,null,null,null,null,null,null,{"$f":"Witness","v":"JAMES E. ZIOLKOWSKI"}]
[{"$f":"data_filing","v":"DATA: 12 MONTHS ACTUAL  & 0 MONTHS ESTIMATED"},null,null,null,null,null,null,null,null,{"$f":"\"PAGE \"&Pages2-2&\" OF \"&Pages2","v":"PAGE 13 OF 15"}]
[{"$f":"type","v":"TYPE OF FILING: \"X\" ORIGINAL   UPDATED    REVISED  "}]
[]
[]
["LINE",null,null,null,null,"TOTAL","CLASSIFIED",null,null,"TOTAL","ALL"]
["NO.","STATE INCOME TAX BASED ON RETURN",null,"Allo",null,"GAS",{"$f":"$G$9","v":"DEMAND"},{"$f":"$H$9","v":"ENERGY"},{"$f":"$I$9","v":"CUSTOMER"},"AT ISSUE","OTHER"]
[null,null,"Schedule 9.1",null,null,null,{"$f":"$G$10","v":3},{"$f":"$H$10","v":4},{"$f":"$I$10","v":5}]
[1,"DEDUCTIONS IN ADDITION TO Y871"]
[2,"KY TAXABLE INCOME ADJUSTMENT",null,{"$f":"'FR-16(7)(v)-1 Functional'!D694","v":"NP29"},null,{"$f":"'FR-16(7)(v)-14 TOTAL CLASS'!N694","v":34495},{"$f":"'FR-16(7)(v)-3 PROD Demand'!N694+'FR-16(7)(v)-7 TRANS Demand'!N694+'FR-16(7)(v)-11 DIST Demand'!N694","v":33749},{"$f":"'FR-16(7)(v)-4 PROD Energy'!N694+'FR-16(7)(v)-8 TRANS Energy'!N694+'FR-16(7)(v)-12 DIST Energy'!N694","v":623},{"$f":"'FR-16(7)(v)-5 PROD Cust'!N694+'FR-16(7)(v)-9 TRANS Cust'!N694+'FR-16(7)(v)-13 DIST Cust'!N694","v":123},{"$f":"SUM(G694:I694)","v":34495},{"$f":"F694-J694","v":0}]
[3,"RESERVED FOR FUTURE USE",null,{"$f":"'FR-16(7)(v)-1 Functional'!D695","v":"NP29"},null,{"$f":"'FR-16(7)(v)-14 TOTAL CLASS'!N695","v":0},{"$f":"'FR-16(7)(v)-3 PROD Demand'!N695+'FR-16(7)(v)-7 TRANS Demand'!N695+'FR-16(7)(v)-11 DIST Demand'!N695","v":0},{"$f":"'FR-16(7)(v)-4 PROD Energy'!N695+'FR-16(7)(v)-8 TRANS Energy'!N695+'FR-16(7)(v)-12 DIST Energy'!N695","v":0},{"$f":"'FR-16(7)(v)-5 PROD Cust'!N695+'FR-16(7)(v)-9 TRANS Cust'!N695+'FR-16(7)(v)-13 DIST Cust'!N695","v":0},{"$f":"SUM(G695:I695)","v":0},{"$f":"F695-J695","v":0}]
[4,"  DEDUCTIONS IN ADD TO Y871",null,null,null,{"$f":"SUM(F694:F695)","v":34495},33749,623,123,34495,0]
[5]
[6,"STATE INCOME TAX ADJUSTMENTS"]
[7,"STATE PROV DEF INC TAX (410 & 411)"]
[8,"OTHER DEFERRED INCOME TAXES - NET",null,{"$f":"'FR-16(7)(v)-1 Functional'!D700","v":"A357"},null,{"$f":"'FR-16(7)(v)-14 TOTAL CLASS'!N700","v":10094},{"$f":"'FR-16(7)(v)-3 PROD Demand'!N700+'FR-16(7)(v)-7 TRANS Demand'!N700+'FR-16(7)(v)-11 DIST Demand'!N700","v":3177},{"$f":"'FR-16(7)(v)-4 PROD Energy'!N700+'FR-16(7)(v)-8 TRANS Energy'!N700+'FR-16(7)(v)-12 DIST Energy'!N700","v":6799},{"$f":"'FR-16(7)(v)-5 PROD Cust'!N700+'FR-16(7)(v)-9 TRANS Cust'!N700+'FR-16(7)(v)-13 DIST Cust'!N700","v":118},{"$f":"SUM(G700:I700)","v":10094},{"$f":"F700-J700","v":0}]
[9,"  TOT STATE PROV DEF IT (410 & 411)",null,null,null,{"$f":"SUM(F700)","v":10094},3177,6799,118,10094,0]
[10]
[11,"OTHER SIT ADJUSTMENTS"]
[12,"CURRENT YEAR PAYABLE ADJUSTMENT",null,{"$f":"'FR-16(7)(v)-1 Functional'!D704","v":"NP29"},null,{"$f":"'FR-16(7)(v)-14 TOTAL CLASS'!N704","v":0},{"$f":"'FR-16(7)(v)-3 PROD Demand'!N704+'FR-16(7)(v)-7 TRANS Demand'!N704+'FR-16(7)(v)-11 DIST Demand'!N704","v":0},{"$f":"'FR-16(7)(v)-4 PROD Energy'!N704+'FR-16(7)(v)-8 TRANS Energy'!N704+'FR-16(7)(v)-12 DIST Energy'!N704","v":0},{"$f":"'FR-16(7)(v)-5 PROD Cust'!N704+'FR-16(7)(v)-9 TRANS Cust'!N704+'FR-16(7)(v)-13 DIST Cust'!N704","v":0},{"$f":"SUM(G704:I704)","v":0},{"$f":"F704-J704","v":0}]
[13,"  OTHER SIT ADJUSMENTS",null,null,null,{"$f":"SUM(F704)","v":0},0,0,0,0,0]
[14]
[15,"TOTAL STATE INC TAX ADJUSTMENT",null,null,null,{"$f":"F705+F701","v":10094},3177,6799,118,10094,0]
[16]
[17,"INCOME TAX BASED ON RETURN"]
[18,"SUMMARY OF SIT CALCULATION"]
[19,"RETURN ON RATE BASE",null,null,null,{"$f":"F433","v":255798},{"$f":"G433","v":243370},{"$f":"H433","v":11430},{"$f":"I433","v":998},{"$f":"J433","v":255798},{"$f":"F711-J711","v":0}]
[20,"NET FED INCOME TAX ALLOWABLE",null,null,null,{"$f":"F676","v":43507},{"$f":"G676","v":-15925},{"$f":"H676","v":59391},{"$f":"I676","v":41},{"$f":"J676","v":43507},0]
[21,"NET FED. DED. AND ADDITIONS",null,null,null,{"$f":"-F641","v":-364065},{"$f":"-G641","v":-348248},{"$f":"-H641","v":-14728},{"$f":"-I641","v":-1089},{"$f":"-J641","v":-364065},0]
[22,"DEDUCTIONS IN ADD TO Y871",null,null,null,{"$f":"-F696","v":-34495},{"$f":"-G696","v":-33749},{"$f":"-H696","v":-623},{"$f":"-I696","v":-123},{"$f":"-J696","v":-34495},0]
[23,"RESERVED",null,null,null,{"$f":"F24","v":0},{"$f":"G24","v":0},{"$f":"H24","v":0},{"$f":"I24","v":0},{"$f":"J24","v":0},0]
[24,"TOTAL STATE INC TAX ADJ",null,null,null,{"$f":"F707","v":10094},{"$f":"G707","v":3177},{"$f":"H707","v":6799},{"$f":"I707","v":118},{"$f":"J707","v":10094},0]
[25,"  BASE FOR SIT COMPUTATION",null,null,null,{"$f":"SUM(F711:F716)","v":-89161},-151375,62269,-55,-89161,0]
[26]
[27,"SIT FACTOR K192/(1-K192)",null,null,null,{"$f":"ROUND(SIT/(1-SIT),8)","v":5.2282660000000002E-2},{"$f":"ROUND(SIT/(1-SIT),8)","v":5.2282660000000002E-2},{"$f":"ROUND(SIT/(1-SIT),8)","v":5.2282660000000002E-2},{"$f":"ROUND(SIT/(1-SIT),8)","v":5.2282660000000002E-2},null,{"$f":"ROUND(SIT/(1-SIT),8)","v":5.2282660000000002E-2}]
[28,"PRELIMINARY STATE INCOME TAX",null,null,null,{"$f":"ROUND(F717*F719,0)","v":-4662},{"$f":"'FR-16(7)(v)-3 PROD Demand'!N720+'FR-16(7)(v)-7 TRANS Demand'!N720+'FR-16(7)(v)-11 DIST Demand'!N720","v":-7915},{"$f":"ROUND(H717*H719,0)","v":3256},{"$f":"ROUND(I717*I719,0)","v":-3},{"$f":"SUM(G720:I720)","v":-4662},{"$f":"F720-J720","v":0}]
[29,"TOTAL STATE INCOME TAX ADJ.",null,null,null,{"$f":"F707","v":10094},{"$f":"G707","v":3177},{"$f":"H707","v":6799},{"$f":"I707","v":118},{"$f":"J707","v":10094},{"$f":"F721-J721","v":0}]
[30,"  NET STATE INC TAX ALLOWABLE",null,null,null,{"$f":"F721+F720","v":5432},-4738,10055,115,5432,0]
[31]
[32,"STATE INCOME TAX PAYABLE"]
[33,"PRELIMINARY STATE INCOME TAX",null,null,null,{"$f":"F720","v":-4662},{"$f":"G720","v":-7915},{"$f":"H720","v":3256},{"$f":"I720","v":-3},{"$f":"J720","v":-4662},{"$f":"F725-J725","v":0}]
[34,"OTHER SIT ADJUSTMENTS",null,null,null,{"$f":"F705","v":0},{"$f":"G705","v":0},{"$f":"H705","v":0},{"$f":"I705","v":0},{"$f":"J705","v":0},{"$f":"F726-J726","v":0}]
[35,"  NET STATE INCOME TAX PAYABLE",null,null,null,{"$f":"F725+F726","v":-4662},-7915,3256,-3,-4662,0]
[36]
[37,"COMPOSITE TAX RATE",null,null,null,{"$f":"(SIT*(1-FIT))+((1-SIT)*(1-FIT)*RevTax)+FIT","v":0.24925115},0.24925115,0.24925115,0.24925115,0.24925115,0.24925115]
[]
[{"$f":"co_name","v":"DUKE ENERGY KENTUCKY, INC."},null,null,null,null,null,null,null,null,{"$f":"J1","v":"FR-16(7)(v)-22"}]
[{"$f":"$A$2","v":"DISTR. PRIMARY CLASSIFIED - ELECTRIC COST OF SERVICE"},null,null,null,null,null,null,null,null,{"$f":"J2","v":"WITNESS RESPONSIBLE:"}]
[{"$f":"case_name","v":"CASE NO: 2019-00271"},null,null,null,null,null,null,null,null,{"$f":"Witness","v":"JAMES E. ZIOLKOWSKI"}]
[{"$f":"data_filing","v":"DATA: 12 MONTHS ACTUAL  & 0 MONTHS ESTIMATED"},null,null,null,null,null,null,null,null,{"$f":"\"PAGE \"&Pages2-1&\" OF \"&Pages2","v":"PAGE 14 OF 15"}]
[{"$f":"type","v":"TYPE OF FILING: \"X\" ORIGINAL   UPDATED    REVISED  "}]
[]
[]
["LINE",null,null,null,null,"TOTAL","CLASSIFIED",null,null,"TOTAL","ALL"]
["NO.","COST OF SERVICE COMPUTATION",null,"ALLO",null,{"$f":"$F$9","v":"DISTR. PRIMARY"},{"$f":"G9","v":"DEMAND"},"ENERGY","CUSTOMER","AT ISSUE","OTHER"]
[null,null,"Schedule 10",null,null,null,3,4,5]
[1,"OTHER OPERATING REVENUES"]
[2,null,{"$f":"'FR-16(7)(v)-1 Functional'!C742","v":"MISC SERVICE REVENUE"},{"$f":"'FR-16(7)(v)-1 Functional'!D742","v":"D249"},null,{"$f":"'FR-16(7)(v)-14 TOTAL CLASS'!N742","v":906},{"$f":"'FR-16(7)(v)-3 PROD Demand'!N742+'FR-16(7)(v)-7 TRANS Demand'!N742+'FR-16(7)(v)-11 DIST Demand'!N742","v":897},{"$f":"'FR-16(7)(v)-4 PROD Energy'!N742+'FR-16(7)(v)-8 TRANS Energy'!N742+'FR-16(7)(v)-12 DIST Energy'!N742","v":0},{"$f":"'FR-16(7)(v)-5 PROD Cust'!N742+'FR-16(7)(v)-9 TRANS Cust'!N742+'FR-16(7)(v)-13 DIST Cust'!N742","v":9},{"$f":"SUM(G742:I742)","v":906},{"$f":"F742-J742","v":0}]
[3,null,{"$f":"'FR-16(7)(v)-1 Functional'!C743","v":"INTERDEPARTMENTAL"},{"$f":"'FR-16(7)(v)-1 Functional'!D743","v":"K902"},null,{"$f":"'FR-16(7)(v)-14 TOTAL CLASS'!N743","v":0},{"$f":"'FR-16(7)(v)-3 PROD Demand'!N743+'FR-16(7)(v)-7 TRANS Demand'!N743+'FR-16(7)(v)-11 DIST Demand'!N743","v":0},{"$f":"'FR-16(7)(v)-4 PROD Energy'!N743+'FR-16(7)(v)-8 TRANS Energy'!N743+'FR-16(7)(v)-12 DIST Energy'!N743","v":0},{"$f":"'FR-16(7)(v)-5 PROD Cust'!N743+'FR-16(7)(v)-9 TRANS Cust'!N743+'FR-16(7)(v)-13 DIST Cust'!N743","v":0},0,{"$f":"F743-J743","v":0}]
[4,null,{"$f":"'FR-16(7)(v)-1 Functional'!C744","v":"POLE & LINE ATTACHMENTS"},{"$f":"'FR-16(7)(v)-1 Functional'!D744","v":"D249"},null,{"$f":"'FR-16(7)(v)-14 TOTAL CLASS'!N744","v":772},{"$f":"'FR-16(7)(v)-3 PROD Demand'!N744+'FR-16(7)(v)-7 TRANS Demand'!N744+'FR-16(7)(v)-11 DIST Demand'!N744","v":764},{"$f":"'FR-16(7)(v)-4 PROD Energy'!N744+'FR-16(7)(v)-8 TRANS Energy'!N744+'FR-16(7)(v)-12 DIST Energy'!N744","v":0},{"$f":"'FR-16(7)(v)-5 PROD Cust'!N744+'FR-16(7)(v)-9 TRANS Cust'!N744+'FR-16(7)(v)-13 DIST Cust'!N744","v":8},772,0]
[5,null,{"$f":"'FR-16(7)(v)-1 Functional'!C745","v":"RENTS"},{"$f":"'FR-16(7)(v)-1 Functional'!D745","v":"D249"},null,{"$f":"'FR-16(7)(v)-14 TOTAL CLASS'!N745","v":3797},{"$f":"'FR-16(7)(v)-3 PROD Demand'!N745+'FR-16(7)(v)-7 TRANS Demand'!N745+'FR-16(7)(v)-11 DIST Demand'!N745","v":3759},{"$f":"'FR-16(7)(v)-4 PROD Energy'!N745+'FR-16(7)(v)-8 TRANS Energy'!N745+'FR-16(7)(v)-12 DIST Energy'!N745","v":0},{"$f":"'FR-16(7)(v)-5 PROD Cust'!N745+'FR-16(7)(v)-9 TRANS Cust'!N745+'FR-16(7)(v)-13 DIST Cust'!N745","v":38},3797,0]
[6,null,{"$f":"'FR-16(7)(v)-1 Functional'!C746","v":"TRANSMISSION CHARGE PTP"},{"$f":"'FR-16(7)(v)-1 Functional'!D746","v":"T229"},null,{"$f":"'FR-16(7)(v)-14 TOTAL CLASS'!N746","v":625},{"$f":"'FR-16(7)(v)-3 PROD Demand'!N746+'FR-16(7)(v)-7 TRANS Demand'!N746+'FR-16(7)(v)-11 DIST Demand'!N746","v":625},{"$f":"'FR-16(7)(v)-4 PROD Energy'!N746+'FR-16(7)(v)-8 TRANS Energy'!N746+'FR-16(7)(v)-12 DIST Energy'!N746","v":0},{"$f":"'FR-16(7)(v)-5 PROD Cust'!N746+'FR-16(7)(v)-9 TRANS Cust'!N746+'FR-16(7)(v)-13 DIST Cust'!N746","v":0},625,{"$f":"F746-J746","v":0}]
[7,null,{"$f":"'FR-16(7)(v)-1 Functional'!C747","v":"PJM REACTIVE REVENUE"},{"$f":"'FR-16(7)(v)-1 Functional'!D747","v":"K401"},null,{"$f":"'FR-16(7)(v)-14 TOTAL CLASS'!N747","v":0},{"$f":"'FR-16(7)(v)-3 PROD Demand'!N747+'FR-16(7)(v)-7 TRANS Demand'!N747+'FR-16(7)(v)-11 DIST Demand'!N747","v":0},{"$f":"'FR-16(7)(v)-4 PROD Energy'!N747+'FR-16(7)(v)-8 TRANS Energy'!N747+'FR-16(7)(v)-12 DIST Energy'!N747","v":0},{"$f":"'FR-16(7)(v)-5 PROD Cust'!N747+'FR-16(7)(v)-9 TRANS Cust'!N747+'FR-16(7)(v)-13 DIST Cust'!N747","v":0},0,{"$f":"F747-J747","v":0}]
[8,null,{"$f":"'FR-16(7)(v)-1 Functional'!C748","v":"OTHER TRANSMISSION REVENUES"},{"$f":"'FR-16(7)(v)-1 Functional'!D748","v":"T229"},null,{"$f":"'FR-16(7)(v)-14 TOTAL CLASS'!N748","v":106},{"$f":"'FR-16(7)(v)-3 PROD Demand'!N748+'FR-16(7)(v)-7 TRANS Demand'!N748+'FR-16(7)(v)-11 DIST Demand'!N748","v":106},{"$f":"'FR-16(7)(v)-4 PROD Energy'!N748+'FR-16(7)(v)-8 TRANS Energy'!N748+'FR-16(7)(v)-12 DIST Energy'!N748","v":0},{"$f":"'FR-16(7)(v)-5 PROD Cust'!N748+'FR-16(7)(v)-9 TRANS Cust'!N748+'FR-16(7)(v)-13 DIST Cust'!N748","v":0},106,{"$f":"F748-J748","v":0}]
[9,null,{"$f":"'FR-16(7)(v)-1 Functional'!C749","v":"FIXED BILL PREMIUM"},{"$f":"'FR-16(7)(v)-1 Functional'!D749","v":"K902"},null,{"$f":"'FR-16(7)(v)-14 TOTAL CLASS'!N749","v":0},{"$f":"'FR-16(7)(v)-3 PROD Demand'!N749+'FR-16(7)(v)-7 TRANS Demand'!N749+'FR-16(7)(v)-11 DIST Demand'!N749","v":0},{"$f":"'FR-16(7)(v)-4 PROD Energy'!N749+'FR-16(7)(v)-8 TRANS Energy'!N749+'FR-16(7)(v)-12 DIST Energy'!N749","v":0},{"$f":"'FR-16(7)(v)-5 PROD Cust'!N749+'FR-16(7)(v)-9 TRANS Cust'!N749+'FR-16(7)(v)-13 DIST Cust'!N749","v":0},0,0]
[10,null,{"$f":"'FR-16(7)(v)-1 Functional'!C750","v":"  TOTAL OTHER OPERATING REVS"},null,null,{"$f":"SUM(F742:F749)","v":6206},6151,0,55,6206,0]
[11]
[12,"COST OF SERVICE COMPUTATION"]
[13,null,{"$f":"'FR-16(7)(v)-1 Functional'!C753","v":"TOTAL OP EXP EXC INC & REV TAX"},null,null,{"$f":"F618","v":1283255},{"$f":"G618","v":470473},{"$f":"H618","v":809664},{"$f":"I618","v":3118},{"$f":"J618","v":1283255},{"$f":"F753-J753","v":0}]
[14,null,"RETURN ON RATE BASE",null,null,{"$f":"F433","v":255798},{"$f":"G433","v":243370},{"$f":"H433","v":11430},{"$f":"I433","v":998},{"$f":"J433","v":255798},{"$f":"F754-J754","v":0}]
[15,null,{"$f":"'FR-16(7)(v)-1 Functional'!C755","v":"NET FED INCOME TAX ALLOWABLE"},null,null,{"$f":"F676","v":43507},{"$f":"G676","v":-15925},{"$f":"H676","v":59391},{"$f":"I676","v":41},{"$f":"J676","v":43507},{"$f":"F755-J755","v":0}]
[16,null,{"$f":"'FR-16(7)(v)-1 Functional'!C756","v":"NET STATE INCOME TAX ALLOWABLE"},null,null,{"$f":"F722","v":5432},{"$f":"G722","v":-4738},{"$f":"H722","v":10055},{"$f":"I722","v":115},{"$f":"J722","v":5432},{"$f":"F756-J756","v":0}]
[17,null,{"$f":"'FR-16(7)(v)-1 Functional'!C757","v":"TOTAL OTHER OPERATING REVENUES"},null,null,{"$f":"-F750","v":-6206},{"$f":"-G750","v":-6151},{"$f":"-H750","v":0},{"$f":"-I750","v":-55},{"$f":"-J750","v":-6206},{"$f":"F757-J757","v":0}]
[18,null,{"$f":"'FR-16(7)(v)-1 Functional'!C758","v":"  SUBTOTAL B"},null,null,{"$f":"SUM(F752:F757)","v":1581786},{"$f":"SUM(G752:G757)","v":687029},{"$f":"SUM(H752:H757)","v":890540},{"$f":"SUM(I752:I757)","v":4217},{"$f":"SUM(J752:J757)","v":1581786},{"$f":"J758-F758","v":0}]
[19]
[20,null,{"$f":"'FR-16(7)(v)-1 Functional'!C760","v":"TOTAL OTHER OPERATING REVENUES"},null,null,{"$f":"-F757","v":6206},{"$f":"-G757","v":6151},{"$f":"-H757","v":0},{"$f":"-I757","v":55},{"$f":"-J757","v":6206},{"$f":"F760-J760","v":0}]
[21,null,{"$f":"'FR-16(7)(v)-1 Functional'!C761","v":"LESS: REVS EXCL FROM REV TAX CALC"},null,null,{"$f":"'FR-16(7)(v)-14 TOTAL CLASS'!N761","v":0},{"$f":"'FR-16(7)(v)-3 PROD Demand'!N761+'FR-16(7)(v)-7 TRANS Demand'!N761+'FR-16(7)(v)-11 DIST Demand'!N761","v":0},{"$f":"'FR-16(7)(v)-4 PROD Energy'!N761+'FR-16(7)(v)-8 TRANS Energy'!N761+'FR-16(7)(v)-12 DIST Energy'!N761","v":0},{"$f":"'FR-16(7)(v)-5 PROD Cust'!N761+'FR-16(7)(v)-9 TRANS Cust'!N761+'FR-16(7)(v)-13 DIST Cust'!N761","v":0},{"$f":"SUM(G761:I761)","v":0},{"$f":"F761-J761","v":0}]
[22,null,{"$f":"'FR-16(7)(v)-1 Functional'!C762","v":"OTHER OPERATING REVS TO BE TAXED"},null,null,{"$f":"F760-F761","v":6206},6151,0,55,6206,0]
[23]
[24,null,{"$f":"'FR-16(7)(v)-1 Functional'!C764","v":"REVENUE TAX FACTOR"},null,null,{"$f":"ROUND(F817/(1-F817),8)","v":0},0,0,0,0,0]
[25,null,{"$f":"'FR-16(7)(v)-1 Functional'!C765","v":"REVENUE TAX ON OTHER OPER. REVS"},null,null,{"$f":"ROUND(F764*F762,0)","v":0},{"$f":"ROUND(G764*G762,0)","v":0},{"$f":"ROUND(H764*H762,0)","v":0},{"$f":"ROUND(I764*I762,0)","v":0},{"$f":"SUM(G765:I765)","v":0},{"$f":"F765-J765","v":0}]
[26,null,{"$f":"'FR-16(7)(v)-1 Functional'!C766","v":"REVENUE TAX ON COST OF SERVICE"},null,null,{"$f":"ROUND(F764*F758,0)","v":0},{"$f":"ROUND(G764*G758,0)","v":0},{"$f":"ROUND(H764*H758,0)","v":0},{"$f":"ROUND(I764*I758,0)","v":0},{"$f":"SUM(G766:I766)","v":0},{"$f":"F766-J766","v":0}]
[27,null,{"$f":"'FR-16(7)(v)-1 Functional'!C767","v":"TOTAL REVENUE TAX"},null,null,{"$f":"F766+F765","v":0},0,0,0,0,0]
[28]
[29,null,"RESERVED",null,null,{"$f":"F24","v":0},{"$f":"G24","v":0},{"$f":"H24","v":0},{"$f":"I24","v":0},{"$f":"J24","v":0},{"$f":"F769-J769","v":0}]
[30,null,{"$f":"'FR-16(7)(v)-1 Functional'!C770","v":"  TOTAL ELECTRIC COST OF SERVICE"},null,null,{"$f":"F769+F767+F758","v":1581786},687029,890540,4217,1581786,0]
[31]
[32,"PROPOSED REVENUES ",null,null,null,{"$f":"'FR-16(7)(v)-14 TOTAL CLASS'!N772","v":977898},{"$f":"'FR-16(7)(v)-3 PROD Demand'!N772+'FR-16(7)(v)-7 TRANS Demand'!N772+'FR-16(7)(v)-11 DIST Demand'!N772","v":307865},{"$f":"'FR-16(7)(v)-4 PROD Energy'!N772+'FR-16(7)(v)-8 TRANS Energy'!N772+'FR-16(7)(v)-12 DIST Energy'!N772","v":658595},{"$f":"'FR-16(7)(v)-5 PROD Cust'!N772+'FR-16(7)(v)-9 TRANS Cust'!N772+'FR-16(7)(v)-13 DIST Cust'!N772","v":11438},{"$f":"SUM(G772:I772)","v":977898},{"$f":"F772-J772","v":0}]
[33,"TOTAL ELECTRIC COST OF SERVICE",null,null,null,{"$f":"-F770","v":-1581786},{"$f":"-G770","v":-687029},{"$f":"-H770","v":-890540},{"$f":"-I770","v":-4217},{"$f":"SUM(G773:I773)","v":-1581786},{"$f":"F773-J773","v":0}]
[34,"EXCESS REVENUES",null,null,null,{"$f":"F773+F772","v":-603888},{"$f":"G773+G772","v":-379164},{"$f":"H773+H772","v":-231945},{"$f":"I773+I772","v":7221},{"$f":"SUM(G774:I774)","v":-603888},{"$f":"F774-J774","v":0}]
[35,"COMPOSITE TAX RATE",null,null,null,{"$f":"F729","v":0.24925115},0.24925115,0.24925115,0.24925115,0.24925115,0.24925115]
[36,"EXCESS TAX",null,null,null,{"$f":"ROUND(F775*F774,0)","v":-150520},{"$f":"'FR-16(7)(v)-3 PROD Demand'!N776+'FR-16(7)(v)-7 TRANS Demand'!N776+'FR-16(7)(v)-11 DIST Demand'!N776","v":-94507},{"$f":"ROUND(H775*H774,0)","v":-57813},{"$f":"ROUND(I775*I774,0)","v":1800},{"$f":"SUM(G776:I776)","v":-150520},{"$f":"F776-J776","v":0}]
[37,"EXCESS RETURN",null,null,null,{"$f":"F774-F776","v":-453368},{"$f":"'FR-16(7)(v)-3 PROD Demand'!N777+'FR-16(7)(v)-7 TRANS Demand'!N777+'FR-16(7)(v)-11 DIST Demand'!N777","v":-284657},{"$f":"H774-H776","v":-174132},{"$f":"I774-I776","v":5421},{"$f":"SUM(G777:I777)","v":-453368},{"$f":"F777-J777","v":0}]
[]
[{"$f":"co_name","v":"DUKE ENERGY KENTUCKY, INC."},null,null,null,null,null,null,null,null,{"$f":"J1","v":"FR-16(7)(v)-22"}]
[{"$f":"$A$2","v":"DISTR. PRIMARY CLASSIFIED - ELECTRIC COST OF SERVICE"},null,null,null,null,null,null,null,null,{"$f":"J2","v":"WITNESS RESPONSIBLE:"}]
[{"$f":"case_name","v":"CASE NO: 2019-00271"},null,null,null,null,null,null,null,null,{"$f":"Witness","v":"JAMES E. ZIOLKOWSKI"}]
[{"$f":"data_filing","v":"DATA: 12 MONTHS ACTUAL  & 0 MONTHS ESTIMATED"},null,null,null,null,null,null,null,null,{"$f":"\"PAGE \"&Pages2&\" OF \"&Pages2","v":"PAGE 15 OF 15"}]
[{"$f":"type","v":"TYPE OF FILING: \"X\" ORIGINAL   UPDATED    REVISED  "}]
[]
[]
["LINE",null,null,null,null,"TOTAL","CLASSIFIED",null,null,"TOTAL","ALL"]
["NO.","ROR, TAX RATES & SPEC FACTORS",null,"ALLO",null,{"$f":"$F$9","v":"DISTR. PRIMARY"},{"$f":"G9","v":"DEMAND"},"ENERGY","CUSTOMER","AT ISSUE","OTHER"]
[null,null,"Schedule 11",null,null,null,3,4,5]
[1,"RATE OF RETURN"]
[2," CAPITALIZATION AMOUNTS",null,null,null,null,"RATIO"]
[3,null,{"$f":"'FR-16(7)(v)-1 Functional'!C791","v":"LONG TERM DEBT"},null,null,{"$f":"'FR-16(7)(v)-1 Functional'!$F$791","v":665948506},{"$f":"IF(TotalCap=0,0,ROUND(F791/TotalCap,4))","v":0.45929999999999999}]
[4,null,{"$f":"'FR-16(7)(v)-1 Functional'!C792","v":"PREFERRED STOCK"},null,null,{"$f":"'FR-16(7)(v)-1 Functional'!$F$792","v":0},{"$f":"IF(TotalCap=0,0,ROUND(F792/TotalCap,4))","v":0}]
[5,null,{"$f":"'FR-16(7)(v)-1 Functional'!C793","v":"COMMON STOCK"},null,null,{"$f":"[0]!Equity","v":699348680},{"$f":"1-G791-G792-G794-G795","v":0.48239999999999994}]
[6,null,{"$f":"'FR-16(7)(v)-1 Functional'!C794","v":"SHORT TERM DEBT"},null,null,{"$f":"'FR-16(7)(v)-1 Functional'!$F$794","v":84600060},{"$f":"IF(TotalCap=0,0,ROUND(F794/TotalCap,4))","v":5.8299999999999998E-2}]
[7,null,{"$f":"'FR-16(7)(v)-1 Functional'!C795","v":"UNAMORTIZED DISCOUNT"},null,null,{"$f":"'FR-16(7)(v)-1 Functional'!$F$795","v":0},{"$f":"IF(TotalCap=0,0,ROUND(F795/TotalCap,4))","v":0}]
[8,null,{"$f":"'FR-16(7)(v)-1 Functional'!C796","v":"  TOTAL"},null,null,{"$f":"SUM(F790:F795)","v":1449897246},{"$f":"SUM(G791:G795)","v":1}]
[9]
[10," COST OF CAPITAL"]
[11,null,{"$f":"'FR-16(7)(v)-1 Functional'!C799","v":"LONG TERM DEBT"},null,null,{"$f":"'FR-16(7)(v)-1 Functional'!$F$799","v":4.0730000000000002E-2}]
[12,null,{"$f":"'FR-16(7)(v)-1 Functional'!C800","v":"PREFERRED STOCK"},null,null,{"$f":"'FR-16(7)(v)-1 Functional'!$F$800","v":0}]
[13,null,{"$f":"'FR-16(7)(v)-1 Functional'!C801","v":"COMMON STOCK"},null,null,{"$f":"'FR-16(7)(v)-1 Functional'!$F$801","v":9.8000000000000004E-2}]
[14,null,{"$f":"'FR-16(7)(v)-1 Functional'!C802","v":"SHORT TERM DEBT"},null,null,{"$f":"'FR-16(7)(v)-1 Functional'!$F$802","v":1.9369999999999998E-2}]
[15,null,{"$f":"'FR-16(7)(v)-1 Functional'!C803","v":"UNAMORTIZED DISCOUNT"},null,null,{"$f":"'FR-16(7)(v)-1 Functional'!$F$803","v":0}]
[16]
[17," WEIGHTED COST OF CAPITAL"]
[18,null,{"$f":"'FR-16(7)(v)-1 Functional'!C806","v":"LONG TERM DEBT"},null,null,{"$f":"ROUND(G791*F799,4)","v":1.8700000000000001E-2}]
[19,null,{"$f":"'FR-16(7)(v)-1 Functional'!C807","v":"PREFERRED STOCK"},null,null,{"$f":"ROUND(G792*F800,4)","v":0}]
[20,null,{"$f":"'FR-16(7)(v)-1 Functional'!C808","v":"COMMON STOCK"},null,null,{"$f":"ROUND(G793*F801,4)","v":4.7300000000000002E-2}]
[21,null,{"$f":"'FR-16(7)(v)-1 Functional'!C809","v":"SHORT TERM DEBT"},null,null,{"$f":"ROUND(G794*F802,4)","v":1.1000000000000001E-3}]
[22,null,{"$f":"'FR-16(7)(v)-1 Functional'!C810","v":"UNAMORTIZED DISCOUNT"},null,null,{"$f":"ROUND(G795*F803,4)","v":0}]
[23,null,{"$f":"'FR-16(7)(v)-1 Functional'!C811","v":"  TOT RATE OF RETURN ALLOWABLE"},null,null,{"$f":"SUM(F806:F810)","v":6.7100000000000007E-2}]
[24]
[25,"TAX RATES AND SPECIAL FACTORS"]
[26,null,{"$f":"'FR-16(7)(v)-1 Functional'!C814","v":"SHORT TERM DEBT COST"},null,null,0,{"$f":"F814","v":0},{"$f":"F814","v":0},{"$f":"F814","v":0},{"$f":"F814","v":0},{"$f":"F814","v":0}]
[27,null,{"$f":"'FR-16(7)(v)-1 Functional'!C815","v":"FEDERAL INCOME TAX RATE"},null,null,0.35,{"$f":"FIT","v":0.21},{"$f":"FIT","v":0.21},{"$f":"FIT","v":0.21},{"$f":"FIT","v":0.21},{"$f":"FIT","v":0.21}]
[28,null,{"$f":"'FR-16(7)(v)-1 Functional'!C816","v":"STATE INCOME TAX RATE"},null,null,{"$f":"SIT","v":4.9685000000000007E-2},4.9685000000000007E-2,4.9685000000000007E-2,4.9685000000000007E-2,4.9685000000000007E-2,4.9685000000000007E-2]
[29,null,{"$f":"'FR-16(7)(v)-1 Functional'!C817","v":"REVENUE TAX RATE"},null,null,0,{"$f":"RevTax","v":0},{"$f":"RevTax","v":0},{"$f":"RevTax","v":0},{"$f":"RevTax","v":0},{"$f":"RevTax","v":0}]
[]
[]
[]
[]
[]
[]
[]
[]
[]
[]
[]
[]
[]
[]
[]
[]
[]
[]
[]
[]
[]
[]
[]
[]
[]
[]
[]
[]
[]
[]
[]
[]
[]
[]
[]
[]
[]
[]
[]
[]
[]
[]
[]
[]
[]
[]
[]
[]
[]
[]
[]
[]
[]
[]
[]
[]
[]
[]
[]
[]
[]
[]
[]
[]
[]
[]
[]
[]
[]
[]
[]
[]
[]
[]
[]
[]
[]
[]
[]
[]
[]
[]
[]
[]
[]
[]
[]
[]
[]
[]
[]
[]
[]
[]
[]
[]
[]
[]
[]
[]
[]
[]
[]
[]
[]
[]
[]
[]
[]
[]
[]
[]
[]
[]
[]
[]
[]
[]
[]
[]
[]
[]
[]
[]
[]
[]
[]
[]
[]
[]
[]
[]
[]
[]
[]
[]
[]
[]
[]
[]
[]
[]
[]
[]
[]
[]
[]
[]
[]
[]
[]
[]
[]
[]
[]
[]
[]
[]
[]
[]
[]
[]
[]
[]
[]
[]
["DO NOT FILE THIS PAGE"]
[]
[{"$f":"co_name","v":"DUKE ENERGY KENTUCKY, INC."},null,null,null,null,null,null,null,null,{"$f":"J1","v":"FR-16(7)(v)-22"}]
[{"$f":"$A$2","v":"DISTR. PRIMARY CLASSIFIED - ELECTRIC COST OF SERVICE"},null,null,null,null,null,null,null,null,{"$f":"J2","v":"WITNESS RESPONSIBLE:"}]
[{"$f":"case_name","v":"CASE NO: 2019-00271"},null,null,null,null,null,null,null,null,{"$f":"Witness","v":"JAMES E. ZIOLKOWSKI"}]
[{"$f":"data_filing","v":"DATA: 12 MONTHS ACTUAL  & 0 MONTHS ESTIMATED"},null,null,null,null,null,null,null,null,{"$f":"\"PAGE \"&Pages2&\" OF \"&Pages2","v":"PAGE 15 OF 15"}]
[{"$f":"type","v":"TYPE OF FILING: \"X\" ORIGINAL   UPDATED    REVISED  "}]
[]
[]
["LINE",null,null,null,null,"TOTAL","CLASSIFIED",null,null,"TOTAL","ALL"]
["NO.","INCOME TAX BASED ON REVENUES",null,"ALLO",null,{"$f":"$F$9","v":"DISTR. PRIMARY"},"DEMAND","COMMODITY","CUSTOMER","AT ISSUE","OTHER"]
[null,null,"Schedule 13",null,null,null,{"$f":"G10","v":3},{"$f":"H10","v":4},{"$f":"I10","v":5}]
[1,"NET INCOME COMPUTATION"]
[2,null,{"$f":"'FR-16(7)(v)-1 Functional'!C1008","v":"TOTAL ELECTRIC COST OF SERVICE"},null,null,{"$f":"F770","v":1581786},687029,890540,4217,1581786,0]
[3,null,{"$f":"'FR-16(7)(v)-1 Functional'!C1009","v":"TOTAL OTHER OPERATING REVENUES"},null,null,{"$f":"F750","v":6206},6151,0,55,6206,0]
[4,null,{"$f":"'FR-16(7)(v)-1 Functional'!C1010","v":"  TOTAL ELECTRIC REVENUE"},null,null,{"$f":"SUM(F996:F998)","v":1587992},693180,890540,4272,1587992,0]
[5,null,{"$f":"'FR-16(7)(v)-1 Functional'!C1011","v":"TOTAL OP EXP EX INC & REV TAX"},null,null,{"$f":"-F618","v":-1283255},-470473,-809664,-3118,-1283255,0]
[6,null,{"$f":"'FR-16(7)(v)-1 Functional'!C1012","v":"FIRM SERVICE REVENUE TAX"},null,null,{"$f":"-ROUND(F817*F997,0)","v":0},{"$f":"-ROUND(G817*G997,0)","v":0},{"$f":"-ROUND(H817*H997,0)","v":0},{"$f":"-ROUND(I817*I997,0)","v":0},{"$f":"SUM(G1001:I1001)","v":0},{"$f":"-ROUND('FR-16(7)(v)-1 Functional'!K817*K997,0)","v":0}]
[7,null,{"$f":"'FR-16(7)(v)-1 Functional'!C1013","v":"  NET INCOME"},null,null,{"$f":"SUM(F999:F1001)","v":304737},{"$f":"SUM(G999:G1001)","v":222707},{"$f":"SUM(H999:H1001)","v":80876},{"$f":"SUM(I999:I1001)","v":1154},{"$f":"SUM(G1002:I1002)","v":304737},{"$f":"SUM(K999:K1001)","v":0}]
[8]
[9,"ADJUSTMENTS TO NET INCOME"]
[10,null,{"$f":"'FR-16(7)(v)-1 Functional'!C1016","v":"TOTAL INTEREST EXPENSE"},null,null,{"$f":"-F633","v":-75614},-71940,-3379,-295,-75614,0]
[11,null,{"$f":"'FR-16(7)(v)-1 Functional'!C1017","v":"TOTAL OTHER DEDUCTIONS"},null,null,{"$f":"-F639","v":-288451},-276308,-11349,-794,-288451,0]
[12,null,{"$f":"'FR-16(7)(v)-1 Functional'!C1018","v":"  PRELIMINARY TAXABLE INCOME"},null,null,{"$f":"SUM(F1004:F1006)+F1002","v":-59328},{"$f":"SUM(G1004:G1006)+G1002","v":-125541},{"$f":"SUM(H1004:H1006)+H1002","v":66148},{"$f":"SUM(I1004:I1006)+I1002","v":65},{"$f":"SUM(G1007:I1007)","v":-59328},{"$f":"SUM(K1004:K1006)+K1002","v":0}]
[13]
[14,"INCOME TAX BASED ON REVENUES"]
[15,"FEDERAL INCOME TAX COMPUTATION"]
[16,null,{"$f":"'FR-16(7)(v)-1 Functional'!C1022","v":"PRELIMINARY TAXABLE INCOME"},null,null,{"$f":"F1007","v":-59328},-125541,66148,65,-59328,0]
[17,null,{"$f":"'FR-16(7)(v)-1 Functional'!C1023","v":"  NET FEDERAL TAXABLE INCOME"},null,null,{"$f":"SUM(F1011:F1011)","v":-59328},-125541,66148,65,-59328,0]
[18,null,{"$f":"'FR-16(7)(v)-1 Functional'!C1024","v":"  FEDERAL INCOME TAX RATE"},null,null,{"$f":"F815","v":0.35},{"$f":"G815","v":0.21},{"$f":"H815","v":0.21},{"$f":"I815","v":0.21},null,{"$f":"'FR-16(7)(v)-1 Functional'!K815","v":0.21}]
[19,null,{"$f":"'FR-16(7)(v)-1 Functional'!C1025","v":"PRELIMINARY FIT = FI01 * K190"},null,null,{"$f":"ROUND(F1013*F1012,0)","v":-20765},{"$f":"ROUND(G1013*G1012,0)","v":-26364},{"$f":"ROUND(H1013*H1012,0)","v":13891},{"$f":"ROUND(I1013*I1012,0)","v":14},{"$f":"SUM(G1014:I1014)","v":-12459},{"$f":"ROUND(K1013*K1012,0)","v":0}]
[20,null,{"$f":"'FR-16(7)(v)-1 Functional'!C1026","v":"TOTAL FED DEF IT (410 & 411)"},null,null,{"$f":"F649","v":54990},8779,46184,27,54990,0]
[21,null,{"$f":"'FR-16(7)(v)-1 Functional'!C1027","v":"TOTAL AMORTIZED ITC"},null,null,{"$f":"-F653","v":-2},-2,0,0,-2,0]
[22,null,{"$f":"'FR-16(7)(v)-1 Functional'!C1028","v":"  NET FED INC TAX ALLOWABLE"},null,null,{"$f":"SUM(F1014:F1016)","v":34223},-17587,60075,41,42529,0]
[23]
[24,"FEDERAL INCOME TAX PAYABLE"]
[25,null,{"$f":"'FR-16(7)(v)-1 Functional'!C1031","v":"PRELIM FIT"},null,null,{"$f":"F1014","v":-20765},-26364,13891,14,-12459,0]
[26,null,{"$f":"'FR-16(7)(v)-1 Functional'!C1032","v":"TEST YEAR INV TAX CREDIT"},null,null,{"$f":"-F658","v":0},0,0,0,0,0]
[27,null,{"$f":"'FR-16(7)(v)-1 Functional'!C1033","v":"  FED INC TAX PAYABLE"},null,null,{"$f":"SUM(F1019:F1021)","v":-20765},-26364,13891,14,-12459,0]
[28]
[29,"PRELIMINARY SUMMARY"]
[30,null,{"$f":"'FR-16(7)(v)-1 Functional'!C1036","v":"NET INCOME"},null,null,{"$f":"F1002","v":304737},222707,80876,1154,304737,0]
[31,null,{"$f":"'FR-16(7)(v)-1 Functional'!C1037","v":"NET FED INC TAX ALLOWABLE"},null,null,{"$f":"-F1017","v":-34223},17587,-60075,-41,-42529,0]
[32,null,{"$f":"'FR-16(7)(v)-1 Functional'!C1038","v":"  OVERALL RETURN EARNED"},null,null,{"$f":"SUM(F1024:F1026)","v":270514},240294,20801,1113,262208,0]
[33]
[34,null,{"$f":"'FR-16(7)(v)-1 Functional'!C1040","v":"  RATE OF RETURN EARNED"},null,null,{"$f":"IF(F426=0,0,ROUND(F1027/F426,5))","v":7.1080000000000004E-2},6.6369999999999998E-2,0.12221,7.5700000000000003E-2,6.8900000000000003E-2,0]

{"sheet":"FR-16(7)(v)-23 TT Classified","index":27,"n_rows":1029,"n_cols":14,"rows_kept":1029,"cut":false,"hidden":false,"merged":[]}
[{"$f":"co_name","v":"DUKE ENERGY KENTUCKY, INC."},null,null,null,null,null,null,null,null,"FR-16(7)(v)-23"]
[{"$f":"F9&\" \"&\"CLASSIFIED - ELECTRIC COST OF SERVICE\"","v":"TT CLASSIFIED - ELECTRIC COST OF SERVICE"},null,null,null,null,null,null,null,null,"WITNESS RESPONSIBLE:"]
[{"$f":"case_name","v":"CASE NO: 2019-00271"},null,null,null,null,null,null,null,null,{"$f":"Witness","v":"JAMES E. ZIOLKOWSKI"}]
[{"$f":"data_filing","v":"DATA: 12 MONTHS ACTUAL  & 0 MONTHS ESTIMATED"},null,null,null,null,null,null,null,null,{"$f":"\"PAGE \"&Pages2-14&\" OF \"&Pages2","v":"PAGE 1 OF 15"}]
[{"$f":"type","v":"TYPE OF FILING: \"X\" ORIGINAL   UPDATED    REVISED  "}]
[]
[]
["LINE",null,null,null,null,"TOTAL","CLASSIFIED",null,null,"TOTAL","ALL"]
["NO.","SUMMARY OF RESULTS",null,"ALLO",null,"TT","DEMAND","ENERGY","CUSTOMER","AT ISSUE","OTHER"]
[null,null,"Schedule 1",null,null,null,3,4,5]
[1,"NET INCOME COMPUTATION"]
[2,null,{"$f":"'FR-16(7)(v)-1 Functional'!C12","v":"GROSS ELECTRIC PLANT IN SERVICE"},null,null,{"$f":"F123","v":57809196},{"$f":"G123","v":56022083},{"$f":"H123","v":1769673},{"$f":"I123","v":17440},{"$f":"SUM(G12:I12)","v":57809196},{"$f":"F12-J12","v":0}]
[3,null,{"$f":"'FR-16(7)(v)-1 Functional'!C13","v":"TOTAL DEPRECIATION RESERVE"},null,null,{"$f":"-F200","v":-27423884},{"$f":"-G200","v":-26554753},{"$f":"-H200","v":-862829},{"$f":"-I200","v":-6302},{"$f":"SUM(G13:I13)","v":-27423884},{"$f":"F13-J13","v":0}]
[4,null,{"$f":"'FR-16(7)(v)-1 Functional'!C14","v":"TOTAL RATE BASE ADJUSTMENTS"},null,null,{"$f":"F421","v":-4751970},{"$f":"G421","v":-5693608},{"$f":"H421","v":941379},{"$f":"I421","v":259},{"$f":"SUM(G14:I14)","v":-4751970},{"$f":"F14-J14","v":0}]
[5,null,{"$f":"'FR-16(7)(v)-1 Functional'!C15","v":"  TOTAL RATE BASE"},null,null,{"$f":"SUM(F12:F14)","v":25633342},23773722,1848223,11397,25633342,0]
[6]
[7,"OPERATING EXPENSES"]
[8,null,{"$f":"'FR-16(7)(v)-1 Functional'!C18","v":"TOTAL O&M EXPENSE"},null,null,{"$f":"F549","v":9537511},{"$f":"G549","v":1313190},{"$f":"H549","v":8224374},{"$f":"I549","v":-53},{"$f":"SUM(G18:I18)","v":9537511},{"$f":"F18-J18","v":0}]
[9,null,{"$f":"'FR-16(7)(v)-1 Functional'!C19","v":"TOTAL DEPRECIATION EXPENSE"},null,null,{"$f":"F582","v":1872107},{"$f":"G582","v":1763651},{"$f":"H582","v":108127},{"$f":"I582","v":329},{"$f":"SUM(G19:I19)","v":1872107},{"$f":"F19-J19","v":0}]
[10,null,{"$f":"'FR-16(7)(v)-1 Functional'!C20","v":"TOTAL OTHER TAX & MISC EXPENSE"},null,null,{"$f":"F612","v":382604},{"$f":"G612","v":353662},{"$f":"H612","v":28200},{"$f":"I612","v":742},{"$f":"SUM(G20:I20)","v":382604},{"$f":"F20-J20","v":0}]
[11,null,{"$f":"'FR-16(7)(v)-1 Functional'!C21","v":"  TOTAL OP EXP EXCLUDING INC & REV TAX"},null,null,{"$f":"SUM(F17:F20)","v":11792222},3430503,8360701,1018,11792222,0]
[12,null,{"$f":"'FR-16(7)(v)-1 Functional'!C22","v":"NET FED INCOME TAX EXP ALLOWABLE"},null,null,{"$f":"F676","v":435199},{"$f":"G676","v":-177592},{"$f":"H676","v":612729},{"$f":"I676","v":62},{"$f":"SUM(G22:I22)","v":435199},{"$f":"F22-J22","v":0}]
[13,null,"NET STATE INCOME TAX EXP ALLOWABLE",null,null,{"$f":"F722","v":45259},{"$f":"G722","v":-58396},{"$f":"H722","v":103683},{"$f":"I722","v":-27},{"$f":"SUM(G23:I23)","v":45260},{"$f":"F23-J23","v":-1}]
[14,null,"RESERVED",{"$f":"'FR-16(7)(v)-1 Functional'!D24","v":"CW29"},null,{"$f":"'FR-16(7)(v)-14 TOTAL CLASS'!O24","v":0},{"$f":"'FR-16(7)(v)-3 PROD Demand'!O24+'FR-16(7)(v)-7 TRANS Demand'!O24+'FR-16(7)(v)-11 DIST Demand'!O24","v":0},{"$f":"'FR-16(7)(v)-4 PROD Energy'!O24+'FR-16(7)(v)-8 TRANS Energy'!O24+'FR-16(7)(v)-12 DIST Energy'!O24","v":0},{"$f":"'FR-16(7)(v)-5 PROD Cust'!O24+'FR-16(7)(v)-9 TRANS Cust'!O24+'FR-16(7)(v)-13 DIST Cust'!O24","v":0},{"$f":"SUM(G24:I24)","v":0},{"$f":"F24-J24","v":0}]
[15,null,{"$f":"'FR-16(7)(v)-1 Functional'!C25","v":"REVENUE TAX"},null,null,{"$f":"F767","v":0},{"$f":"G767","v":0},{"$f":"H767","v":0},{"$f":"I767","v":0},{"$f":"SUM(G25:I25)","v":0},{"$f":"F25-J25","v":0}]
[16,null,{"$f":"'FR-16(7)(v)-1 Functional'!C26","v":"  TOTAL OPERATING EXPENSE"},null,null,{"$f":"SUM(F21:F25)","v":12272680},3194515,9077113,1053,12272681,-1]
[17]
[18,"RETURN ON RATE BASE",null,null,null,{"$f":"F433","v":1720371},{"$f":"G433","v":1595570},{"$f":"H433","v":124052},{"$f":"I433","v":749},{"$f":"SUM(G28:I28)","v":1720371},{"$f":"F28-J28","v":0}]
[19,"TOTAL OTHER OPERATING REVENUES",null,null,null,{"$f":"-F750","v":-7206},{"$f":"-G750","v":-7165},{"$f":"-H750","v":0},{"$f":"-I750","v":-41},{"$f":"SUM(G29:I29)","v":-7206},{"$f":"F29-J29","v":0}]
[20,null,{"$f":"'FR-16(7)(v)-1 Functional'!C30","v":"TOTAL ELECTRIC COST OF SERVICE"},null,null,{"$f":"SUM(F26:F29)","v":13985845},{"$f":"SUM(G26:G29)","v":4782920},{"$f":"SUM(H26:H29)","v":9201165},{"$f":"SUM(I26:I29)","v":1761},{"$f":"SUM(J26:J29)","v":13985846},{"$f":"F30-J30","v":-1}]
[21,"ADJUSTMENT FOR INTERCLASS SUBSIDIZATION",null,{"$f":"1-'WP FR-16(7)(v) Rate Incr'!I11","v":0.95},null,{"$f":"SUM(G31:I31)","v":1214804},{"$f":"'WP FR-16(7)(v) Rate Incr'!T23","v":892116},{"$f":"'WP FR-16(7)(v) Rate Incr'!U15","v":0},{"$f":"'WP FR-16(7)(v) Rate Incr'!V23","v":322688},null,{"$f":"F31-J31","v":1214804}]
[22,{"$f":"'FR-16(7)(v)-1 Functional'!$B$32","v":"REQUESTED REVENUES (COST OF SERVICE ADJUSTED FOR SUBSIDIES)"},null,null,null,{"$f":"F30+F31","v":15200649},5675036,9201165,324449,13985846,1214803]
[23,"PROPOSED REVENUES",null,null,null,{"$f":"'FR-16(7)(v)-14 TOTAL CLASS'!O33","v":15232520},{"$f":"'FR-16(7)(v)-3 PROD Demand'!O33+'FR-16(7)(v)-7 TRANS Demand'!O33+'FR-16(7)(v)-11 DIST Demand'!O33","v":1383947},{"$f":"'FR-16(7)(v)-4 PROD Energy'!O33+'FR-16(7)(v)-8 TRANS Energy'!O33+'FR-16(7)(v)-12 DIST Energy'!O33","v":6798558},{"$f":"'FR-16(7)(v)-5 PROD Cust'!O33+'FR-16(7)(v)-9 TRANS Cust'!O33+'FR-16(7)(v)-13 DIST Cust'!O33","v":-2972},{"$f":"SUM(G33:I33)","v":8179533},{"$f":"F33-J33","v":7052987}]
[24,"DIFFERENCE (REQUESTED LESS PROPOSED)",null,null,null,{"$f":"F32-F33","v":-31871},4291089,2402607,327421,5806313,-5838184]
[25]
[26,"TOTAL RETURN EARNED",null,null,null,{"$f":"F777+F28","v":-2638711},{"$f":"G777+G28","v":-956204},{"$f":"H777+H28","v":-1679702},{"$f":"I777+I28","v":-2804},{"$f":"J777+J28","v":-2638710},{"$f":"F36-J36","v":-1}]
[27,"RATE OF RETURN EARNED",null,null,null,{"$f":"IF(F431=0,0,ROUND(F36/F431,5))","v":-0.10292999999999999},-4.0219999999999999E-2,-0.90869,-0.25128,-0.10292999999999999,0]
[28,"TOTAL RATE OF RETURN ALLOWABLE",null,null,null,{"$f":"$F$811","v":6.7100000000000007E-2},{"$f":"F811","v":6.7100000000000007E-2},{"$f":"F811","v":6.7100000000000007E-2},{"$f":"F811","v":6.7100000000000007E-2},{"$f":"F811","v":6.7100000000000007E-2},{"$f":"IF(K37=0,0,F811)","v":0},null,null,"Not Part of print range"]
[29,"RETURN EARNED ON COMMON EQUITY",null,null,null,{"$f":"IF(Equity=0,0,(F37-$F$806-$F$807-$F$809)*TotalCap/Equity)","v":-0.25444516317894528},{"$f":"IF(Equity=0,0,(G37-$F$806-$F$807-$F$809)*TotalCap/Equity)","v":-0.12443411304489771},{"$f":"IF(Equity=0,0,(H37-F806-F807-F809)*TotalCap/Equity)","v":-1.9249555085147798},{"$f":"IF(Equity=0,0,(I37-F806-F807-F809)*TotalCap/Equity)","v":-0.5620059874077119},{"$f":"IF(Equity=0,0,(J37-F806-F807-F809)*TotalCap/Equity)","v":-0.25444516317894528},{"$f":"IF(OR(E793=0,K37=0)=TRUE,0,(K37-E806-E807-E809)*E796/E793)","v":0},null,null,"Not Filed"]
[30,"ALLOWED RETURN ON COMMON EQUITY",null,null,null,{"$f":"IF(Equity=0,0,(F38-$F$806-$F$807-$F$809)*TotalCap/Equity)","v":9.8062871493229981E-2},{"$f":"IF(Equity=0,0,(G38-F806-F807-F809)*TotalCap/Equity)","v":9.8062871493229981E-2},{"$f":"IF(Equity=0,0,(H38-F806-F807-F809)*TotalCap/Equity)","v":9.8062871493229981E-2},{"$f":"IF(Equity=0,0,(I38-F806-F807-F809)*TotalCap/Equity)","v":9.8062871493229981E-2},{"$f":"IF(Equity=0,0,(J38-F806-F807-F809)*TotalCap/Equity)","v":9.8062871493229981E-2},{"$f":"IF(OR(Equity=0,K38=0)=TRUE,0,(K38-F806-F807-F809)*TotalCap/Equity)","v":0}]
[31,null,null,null,null," "]
[32,"PRESENT REVENUES",null,null,null,{"$f":"'FR-16(7)(v)-14 TOTAL CLASS'!O42","v":14062168},{"$f":"F42-SUM(H42:I42)","v":6013381},{"$f":"'FR-16(7)(v)-4 PROD Energy'!O42","v":8047230},{"$f":"'FR-16(7)(v)-13 DIST Cust'!O42","v":1557},{"$f":"SUM(G42:I42)","v":14062168},{"$f":"F42-J42","v":0}]
[33,"REVENUE INCREASE JUSTIFIED",null,null,null,{"$f":"F30-F42","v":-76323},-1230461,1153935,204,-76322,-1]
[34,null,"PER UNIT PRES REV",null,null,{"$f":"IF(F42=0,0,ROUND(F43/F42,5))","v":-5.4299999999999999E-3},-0.20462,0.1434,0.13102,-5.4299999999999999E-3,0]
[35,"REVENUE INCREASE REQUESTED",null,null,null,{"$f":"F33-F42","v":1170352},-4629434,-1248672,-4529,-5882635,7052987]
[36,null,"PER UNIT PRES REV",null,null,{"$f":"IF(F42=0,0,ROUND(F45/F42,5))","v":8.3229999999999998E-2},-0.76985999999999999,-0.15517,-2.9087999999999998,-0.41832999999999998,0]
[]
[{"$f":"co_name","v":"DUKE ENERGY KENTUCKY, INC."},null,null,null,null,null,null,null,null,{"$f":"J1","v":"FR-16(7)(v)-23"}]
[{"$f":"$A$2","v":"TT CLASSIFIED - ELECTRIC COST OF SERVICE"},null,null,null,null,null,null,null,null,{"$f":"J2","v":"WITNESS RESPONSIBLE:"}]
[{"$f":"case_name","v":"CASE NO: 2019-00271"},null,null,null,null,null,null,null,null,{"$f":"Witness","v":"JAMES E. ZIOLKOWSKI"}]
[{"$f":"data_filing","v":"DATA: 12 MONTHS ACTUAL  & 0 MONTHS ESTIMATED"},null,null,null,null,null,null,null,null,{"$f":"\"PAGE \"&Pages2-13&\" OF \"&Pages2","v":"PAGE 2 OF 15"}]
[{"$f":"type","v":"TYPE OF FILING: \"X\" ORIGINAL   UPDATED    REVISED  "}]
[]
[]
["LINE",null,null,null,null,"TOTAL","CLASSIFIED",null,null,"TOTAL","ALL"]
["NO.","GROSS ELECTRIC PLANT IN SERVICE",null,"ALLO",null,{"$f":"$F$9","v":"TT"},{"$f":"G9","v":"DEMAND"},"ENERGY","CUSTOMER","AT ISSUE","OTHER"]
[null,null,"Schedule 2",null,null,null,3,4,5,null," "]
[1,"PRODUCTION PLANT"]
[2,null,"PRODUCTION STEAM",{"$f":"'FR-16(7)(v)-1 Functional'!D59","v":"K201"},null,{"$f":"'FR-16(7)(v)-14 TOTAL CLASS'!O59","v":35309845},{"$f":"'FR-16(7)(v)-3 PROD Demand'!O59+'FR-16(7)(v)-7 TRANS Demand'!O59+'FR-16(7)(v)-11 DIST Demand'!O59","v":35309845},{"$f":"'FR-16(7)(v)-4 PROD Energy'!O59+'FR-16(7)(v)-8 TRANS Energy'!O59+'FR-16(7)(v)-12 DIST Energy'!O59","v":0},{"$f":"'FR-16(7)(v)-5 PROD Cust'!O59+'FR-16(7)(v)-9 TRANS Cust'!O59+'FR-16(7)(v)-13 DIST Cust'!O59","v":0},{"$f":"SUM(G59:I59)","v":35309845},{"$f":"F59-J59","v":0}]
[3,null,"PRODUCTION OTHER",{"$f":"'FR-16(7)(v)-1 Functional'!D60","v":"K201"},null,{"$f":"'FR-16(7)(v)-14 TOTAL CLASS'!O60","v":15785815},{"$f":"'FR-16(7)(v)-3 PROD Demand'!O60+'FR-16(7)(v)-7 TRANS Demand'!O60+'FR-16(7)(v)-11 DIST Demand'!O60","v":15785815},{"$f":"'FR-16(7)(v)-4 PROD Energy'!O60+'FR-16(7)(v)-8 TRANS Energy'!O60+'FR-16(7)(v)-12 DIST Energy'!O60","v":0},{"$f":"'FR-16(7)(v)-5 PROD Cust'!O60+'FR-16(7)(v)-9 TRANS Cust'!O60+'FR-16(7)(v)-13 DIST Cust'!O60","v":0},{"$f":"SUM(G60:I60)","v":15785815},{"$f":"F60-J60","v":0}]
[4,null,{"$f":"'FR-16(7)(v)-1 Functional'!C61","v":"ADJUSTMENT"},{"$f":"'FR-16(7)(v)-1 Functional'!D61","v":"K201"},null,{"$f":"'FR-16(7)(v)-14 TOTAL CLASS'!O61","v":0},{"$f":"'FR-16(7)(v)-3 PROD Demand'!O61+'FR-16(7)(v)-7 TRANS Demand'!O61+'FR-16(7)(v)-11 DIST Demand'!O61","v":0},{"$f":"'FR-16(7)(v)-4 PROD Energy'!O61+'FR-16(7)(v)-8 TRANS Energy'!O61+'FR-16(7)(v)-12 DIST Energy'!O61","v":0},{"$f":"'FR-16(7)(v)-5 PROD Cust'!O61+'FR-16(7)(v)-9 TRANS Cust'!O61+'FR-16(7)(v)-13 DIST Cust'!O61","v":0},{"$f":"SUM(G61:I61)","v":0},{"$f":"F61-J61","v":0}]
[5,null,{"$f":"'FR-16(7)(v)-1 Functional'!C62","v":"  PRODUCTION PLANT IN SERVICE"},null,null,{"$f":"SUM(F59:F61)","v":51095660},51095660,0,0,51095660,0]
[6]
[7,"TRANSMISSION PLANT"]
[8,null,"MAIN STEP-UP TRANSFORMERS",{"$f":"'FR-16(7)(v)-1 Functional'!D65","v":"K202"},null,{"$f":"'FR-16(7)(v)-14 TOTAL CLASS'!O65","v":0},{"$f":"'FR-16(7)(v)-3 PROD Demand'!O65+'FR-16(7)(v)-7 TRANS Demand'!O65+'FR-16(7)(v)-11 DIST Demand'!O65","v":0},{"$f":"'FR-16(7)(v)-4 PROD Energy'!O65+'FR-16(7)(v)-8 TRANS Energy'!O65+'FR-16(7)(v)-12 DIST Energy'!O65","v":0},{"$f":"'FR-16(7)(v)-5 PROD Cust'!O65+'FR-16(7)(v)-9 TRANS Cust'!O65+'FR-16(7)(v)-13 DIST Cust'!O65","v":0},{"$f":"SUM(G65:I65)","v":0},{"$f":"F65-J65","v":0}]
[9,null,"OTHER TRANSMISSION",{"$f":"'FR-16(7)(v)-1 Functional'!D66","v":"K202"},null,{"$f":"'FR-16(7)(v)-14 TOTAL CLASS'!O66","v":3059152},{"$f":"'FR-16(7)(v)-3 PROD Demand'!O66+'FR-16(7)(v)-7 TRANS Demand'!O66+'FR-16(7)(v)-11 DIST Demand'!O66","v":3059152},{"$f":"'FR-16(7)(v)-4 PROD Energy'!O66+'FR-16(7)(v)-8 TRANS Energy'!O66+'FR-16(7)(v)-12 DIST Energy'!O66","v":0},{"$f":"'FR-16(7)(v)-5 PROD Cust'!O66+'FR-16(7)(v)-9 TRANS Cust'!O66+'FR-16(7)(v)-13 DIST Cust'!O66","v":0},{"$f":"SUM(G66:I66)","v":3059152},{"$f":"F66-J66","v":0}]
[10,null,"ADJUSTMENT",{"$f":"'FR-16(7)(v)-1 Functional'!D67","v":"K202"},null,{"$f":"'FR-16(7)(v)-14 TOTAL CLASS'!O67","v":0},{"$f":"'FR-16(7)(v)-3 PROD Demand'!O67+'FR-16(7)(v)-7 TRANS Demand'!O67+'FR-16(7)(v)-11 DIST Demand'!O67","v":0},{"$f":"'FR-16(7)(v)-4 PROD Energy'!O67+'FR-16(7)(v)-8 TRANS Energy'!O67+'FR-16(7)(v)-12 DIST Energy'!O67","v":0},{"$f":"'FR-16(7)(v)-5 PROD Cust'!O67+'FR-16(7)(v)-9 TRANS Cust'!O67+'FR-16(7)(v)-13 DIST Cust'!O67","v":0},{"$f":"SUM(G67:I67)","v":0},{"$f":"F67-J67","v":0}]
[11,null,{"$f":"'FR-16(7)(v)-1 Functional'!C68","v":"  TRANSMISSION PLANT IN SERVICE"},null,null,{"$f":"SUM(F65:F67)","v":3059152},3059152,0,0,3059152,0]
[12]
[13,"TOTAL PROD & TRANS PLANT",null,null,null,{"$f":"F68+F62","v":54154812},54154812,0,0,54154812,0]
[14]
[15,"DISTRIBUTION PLANT"]
[16,null,{"$f":"'FR-16(7)(v)-1 Functional'!C73","v":"SUBSTATIONS"},{"$f":"'FR-16(7)(v)-1 Functional'!D73","v":"K215"},null,{"$f":"'FR-16(7)(v)-14 TOTAL CLASS'!O73","v":0},{"$f":"'FR-16(7)(v)-3 PROD Demand'!O73+'FR-16(7)(v)-7 TRANS Demand'!O73+'FR-16(7)(v)-11 DIST Demand'!O73","v":0},{"$f":"'FR-16(7)(v)-4 PROD Energy'!O73+'FR-16(7)(v)-8 TRANS Energy'!O73+'FR-16(7)(v)-12 DIST Energy'!O73","v":0},{"$f":"'FR-16(7)(v)-5 PROD Cust'!O73+'FR-16(7)(v)-9 TRANS Cust'!O73+'FR-16(7)(v)-13 DIST Cust'!O73","v":0},{"$f":"SUM(G73:I73)","v":0},{"$f":"F73-J73","v":0}]
[17,null,{"$f":"'FR-16(7)(v)-1 Functional'!C74","v":"POLES, TOWERS  & FIXTURES - PRIMARY - DEMAND"},{"$f":"'FR-16(7)(v)-1 Functional'!D74","v":"K205"},null,{"$f":"'FR-16(7)(v)-14 TOTAL CLASS'!O74","v":0},{"$f":"'FR-16(7)(v)-3 PROD Demand'!O74+'FR-16(7)(v)-7 TRANS Demand'!O74+'FR-16(7)(v)-11 DIST Demand'!O74","v":0},{"$f":"'FR-16(7)(v)-4 PROD Energy'!O74+'FR-16(7)(v)-8 TRANS Energy'!O74+'FR-16(7)(v)-12 DIST Energy'!O74","v":0},{"$f":"'FR-16(7)(v)-5 PROD Cust'!O74+'FR-16(7)(v)-9 TRANS Cust'!O74+'FR-16(7)(v)-13 DIST Cust'!O74","v":0},{"$f":"SUM(G74:I74)","v":0},{"$f":"F74-J74","v":0}]
[18,null,{"$f":"'FR-16(7)(v)-1 Functional'!C75","v":"POLES, TOWERS  & FIXTURES - PRIMARY - CUSTOMER"},{"$f":"'FR-16(7)(v)-1 Functional'!D75","v":"K405"},null,{"$f":"'FR-16(7)(v)-14 TOTAL CLASS'!O75","v":0},{"$f":"'FR-16(7)(v)-3 PROD Demand'!O75+'FR-16(7)(v)-7 TRANS Demand'!O75+'FR-16(7)(v)-11 DIST Demand'!O75","v":0},{"$f":"'FR-16(7)(v)-4 PROD Energy'!O75+'FR-16(7)(v)-8 TRANS Energy'!O75+'FR-16(7)(v)-12 DIST Energy'!O75","v":0},{"$f":"'FR-16(7)(v)-5 PROD Cust'!O75+'FR-16(7)(v)-9 TRANS Cust'!O75+'FR-16(7)(v)-13 DIST Cust'!O75","v":0},{"$f":"SUM(G75:I75)","v":0},{"$f":"F75-J75","v":0}]
[19,null,{"$f":"'FR-16(7)(v)-1 Functional'!C76","v":"POLES, TOWERS  & FIXTURES - SECONDARY - DEMAND"},{"$f":"'FR-16(7)(v)-1 Functional'!D76","v":"K206"},null,{"$f":"'FR-16(7)(v)-14 TOTAL CLASS'!O76","v":0},{"$f":"'FR-16(7)(v)-3 PROD Demand'!O76+'FR-16(7)(v)-7 TRANS Demand'!O76+'FR-16(7)(v)-11 DIST Demand'!O76","v":0},{"$f":"'FR-16(7)(v)-4 PROD Energy'!O76+'FR-16(7)(v)-8 TRANS Energy'!O76+'FR-16(7)(v)-12 DIST Energy'!O76","v":0},{"$f":"'FR-16(7)(v)-5 PROD Cust'!O76+'FR-16(7)(v)-9 TRANS Cust'!O76+'FR-16(7)(v)-13 DIST Cust'!O76","v":0},0,0]
[20,null,{"$f":"'FR-16(7)(v)-1 Functional'!C77","v":"POLES, TOWERS  & FIXTURES - SECONDARY - CUSTOMER"},{"$f":"'FR-16(7)(v)-1 Functional'!D77","v":"K405"},null,{"$f":"'FR-16(7)(v)-14 TOTAL CLASS'!O77","v":0},{"$f":"'FR-16(7)(v)-3 PROD Demand'!O77+'FR-16(7)(v)-7 TRANS Demand'!O77+'FR-16(7)(v)-11 DIST Demand'!O77","v":0},{"$f":"'FR-16(7)(v)-4 PROD Energy'!O77+'FR-16(7)(v)-8 TRANS Energy'!O77+'FR-16(7)(v)-12 DIST Energy'!O77","v":0},{"$f":"'FR-16(7)(v)-5 PROD Cust'!O77+'FR-16(7)(v)-9 TRANS Cust'!O77+'FR-16(7)(v)-13 DIST Cust'!O77","v":0},0,0]
[21,null,{"$f":"'FR-16(7)(v)-1 Functional'!C78","v":"CONDUCTORS - OVERHEAD / PRIMARY - DEMAND"},{"$f":"'FR-16(7)(v)-1 Functional'!D78","v":"K205"},null,{"$f":"'FR-16(7)(v)-14 TOTAL CLASS'!O78","v":0},{"$f":"'FR-16(7)(v)-3 PROD Demand'!O78+'FR-16(7)(v)-7 TRANS Demand'!O78+'FR-16(7)(v)-11 DIST Demand'!O78","v":0},{"$f":"'FR-16(7)(v)-4 PROD Energy'!O78+'FR-16(7)(v)-8 TRANS Energy'!O78+'FR-16(7)(v)-12 DIST Energy'!O78","v":0},{"$f":"'FR-16(7)(v)-5 PROD Cust'!O78+'FR-16(7)(v)-9 TRANS Cust'!O78+'FR-16(7)(v)-13 DIST Cust'!O78","v":0},0,0]
[22,null,{"$f":"'FR-16(7)(v)-1 Functional'!C79","v":"CONDUCTORS - OVERHEAD / PRIMARY - CUSTOMER"},{"$f":"'FR-16(7)(v)-1 Functional'!D79","v":"K405"},null,{"$f":"'FR-16(7)(v)-14 TOTAL CLASS'!O79","v":0},{"$f":"'FR-16(7)(v)-3 PROD Demand'!O79+'FR-16(7)(v)-7 TRANS Demand'!O79+'FR-16(7)(v)-11 DIST Demand'!O79","v":0},{"$f":"'FR-16(7)(v)-4 PROD Energy'!O79+'FR-16(7)(v)-8 TRANS Energy'!O79+'FR-16(7)(v)-12 DIST Energy'!O79","v":0},{"$f":"'FR-16(7)(v)-5 PROD Cust'!O79+'FR-16(7)(v)-9 TRANS Cust'!O79+'FR-16(7)(v)-13 DIST Cust'!O79","v":0},0,0]
[23,null,{"$f":"'FR-16(7)(v)-1 Functional'!C80","v":"CONDUCTORS - OVERHEAD / SECONDARY - DEMAND"},{"$f":"'FR-16(7)(v)-1 Functional'!D80","v":"K206"},null,{"$f":"'FR-16(7)(v)-14 TOTAL CLASS'!O80","v":0},{"$f":"'FR-16(7)(v)-3 PROD Demand'!O80+'FR-16(7)(v)-7 TRANS Demand'!O80+'FR-16(7)(v)-11 DIST Demand'!O80","v":0},{"$f":"'FR-16(7)(v)-4 PROD Energy'!O80+'FR-16(7)(v)-8 TRANS Energy'!O80+'FR-16(7)(v)-12 DIST Energy'!O80","v":0},{"$f":"'FR-16(7)(v)-5 PROD Cust'!O80+'FR-16(7)(v)-9 TRANS Cust'!O80+'FR-16(7)(v)-13 DIST Cust'!O80","v":0},0,0]
[24,null,{"$f":"'FR-16(7)(v)-1 Functional'!C81","v":"CONDUCTORS - OVERHEAD / SECONDARY - CUSTOMER"},{"$f":"'FR-16(7)(v)-1 Functional'!D81","v":"K405"},null,{"$f":"'FR-16(7)(v)-14 TOTAL CLASS'!O81","v":0},{"$f":"'FR-16(7)(v)-3 PROD Demand'!O81+'FR-16(7)(v)-7 TRANS Demand'!O81+'FR-16(7)(v)-11 DIST Demand'!O81","v":0},{"$f":"'FR-16(7)(v)-4 PROD Energy'!O81+'FR-16(7)(v)-8 TRANS Energy'!O81+'FR-16(7)(v)-12 DIST Energy'!O81","v":0},{"$f":"'FR-16(7)(v)-5 PROD Cust'!O81+'FR-16(7)(v)-9 TRANS Cust'!O81+'FR-16(7)(v)-13 DIST Cust'!O81","v":0},0,0]
[25,null,{"$f":"'FR-16(7)(v)-1 Functional'!C82","v":"CONDUCTORS - UNDERGROUND / PRIMARY - DEMAND"},{"$f":"'FR-16(7)(v)-1 Functional'!D82","v":"K205"},null,{"$f":"'FR-16(7)(v)-14 TOTAL CLASS'!O82","v":0},{"$f":"'FR-16(7)(v)-3 PROD Demand'!O82+'FR-16(7)(v)-7 TRANS Demand'!O82+'FR-16(7)(v)-11 DIST Demand'!O82","v":0},{"$f":"'FR-16(7)(v)-4 PROD Energy'!O82+'FR-16(7)(v)-8 TRANS Energy'!O82+'FR-16(7)(v)-12 DIST Energy'!O82","v":0},{"$f":"'FR-16(7)(v)-5 PROD Cust'!O82+'FR-16(7)(v)-9 TRANS Cust'!O82+'FR-16(7)(v)-13 DIST Cust'!O82","v":0},0,0]
[26,null,{"$f":"'FR-16(7)(v)-1 Functional'!C83","v":"CONDUCTORS - UNDERGROUND / PRIMARY - CUSTOMER"},{"$f":"'FR-16(7)(v)-1 Functional'!D83","v":"K405"},null,{"$f":"'FR-16(7)(v)-14 TOTAL CLASS'!O83","v":0},{"$f":"'FR-16(7)(v)-3 PROD Demand'!O83+'FR-16(7)(v)-7 TRANS Demand'!O83+'FR-16(7)(v)-11 DIST Demand'!O83","v":0},{"$f":"'FR-16(7)(v)-4 PROD Energy'!O83+'FR-16(7)(v)-8 TRANS Energy'!O83+'FR-16(7)(v)-12 DIST Energy'!O83","v":0},{"$f":"'FR-16(7)(v)-5 PROD Cust'!O83+'FR-16(7)(v)-9 TRANS Cust'!O83+'FR-16(7)(v)-13 DIST Cust'!O83","v":0},0,0]
[27,null,{"$f":"'FR-16(7)(v)-1 Functional'!C84","v":"CONDUCTORS - UNDERGROUND / SECONDARY - DEMAND"},{"$f":"'FR-16(7)(v)-1 Functional'!D84","v":"K206"},null,{"$f":"'FR-16(7)(v)-14 TOTAL CLASS'!O84","v":0},{"$f":"'FR-16(7)(v)-3 PROD Demand'!O84+'FR-16(7)(v)-7 TRANS Demand'!O84+'FR-16(7)(v)-11 DIST Demand'!O84","v":0},{"$f":"'FR-16(7)(v)-4 PROD Energy'!O84+'FR-16(7)(v)-8 TRANS Energy'!O84+'FR-16(7)(v)-12 DIST Energy'!O84","v":0},{"$f":"'FR-16(7)(v)-5 PROD Cust'!O84+'FR-16(7)(v)-9 TRANS Cust'!O84+'FR-16(7)(v)-13 DIST Cust'!O84","v":0},0,0]
[28,null,{"$f":"'FR-16(7)(v)-1 Functional'!C85","v":"CONDUCTORS - UNDERGROUND / SECONDARY - CUSTOMER"},{"$f":"'FR-16(7)(v)-1 Functional'!D85","v":"K405"},null,{"$f":"'FR-16(7)(v)-14 TOTAL CLASS'!O85","v":0},{"$f":"'FR-16(7)(v)-3 PROD Demand'!O85+'FR-16(7)(v)-7 TRANS Demand'!O85+'FR-16(7)(v)-11 DIST Demand'!O85","v":0},{"$f":"'FR-16(7)(v)-4 PROD Energy'!O85+'FR-16(7)(v)-8 TRANS Energy'!O85+'FR-16(7)(v)-12 DIST Energy'!O85","v":0},{"$f":"'FR-16(7)(v)-5 PROD Cust'!O85+'FR-16(7)(v)-9 TRANS Cust'!O85+'FR-16(7)(v)-13 DIST Cust'!O85","v":0},0,0]
[29,null,{"$f":"'FR-16(7)(v)-1 Functional'!C86","v":"TRANSFORMERS DEMAND RELATED"},{"$f":"'FR-16(7)(v)-1 Functional'!D86","v":"K215"},null,{"$f":"'FR-16(7)(v)-14 TOTAL CLASS'!O86","v":0},{"$f":"'FR-16(7)(v)-3 PROD Demand'!O86+'FR-16(7)(v)-7 TRANS Demand'!O86+'FR-16(7)(v)-11 DIST Demand'!O86","v":0},{"$f":"'FR-16(7)(v)-4 PROD Energy'!O86+'FR-16(7)(v)-8 TRANS Energy'!O86+'FR-16(7)(v)-12 DIST Energy'!O86","v":0},{"$f":"'FR-16(7)(v)-5 PROD Cust'!O86+'FR-16(7)(v)-9 TRANS Cust'!O86+'FR-16(7)(v)-13 DIST Cust'!O86","v":0},{"$f":"SUM(G86:I86)","v":0},{"$f":"F86-J86","v":0}]
[30,null,{"$f":"'FR-16(7)(v)-1 Functional'!C87","v":"TRANSFORMERS CUSTOMER RELATED"},{"$f":"'FR-16(7)(v)-1 Functional'!D87","v":"K405"},null,{"$f":"'FR-16(7)(v)-14 TOTAL CLASS'!O87","v":0},{"$f":"'FR-16(7)(v)-3 PROD Demand'!O87+'FR-16(7)(v)-7 TRANS Demand'!O87+'FR-16(7)(v)-11 DIST Demand'!O87","v":0},{"$f":"'FR-16(7)(v)-4 PROD Energy'!O87+'FR-16(7)(v)-8 TRANS Energy'!O87+'FR-16(7)(v)-12 DIST Energy'!O87","v":0},{"$f":"'FR-16(7)(v)-5 PROD Cust'!O87+'FR-16(7)(v)-9 TRANS Cust'!O87+'FR-16(7)(v)-13 DIST Cust'!O87","v":0},0,0]
[31,null,{"$f":"'FR-16(7)(v)-1 Functional'!C88","v":"SERVICES"},{"$f":"'FR-16(7)(v)-1 Functional'!D88","v":"K217"},null,{"$f":"'FR-16(7)(v)-14 TOTAL CLASS'!O88","v":9764},{"$f":"'FR-16(7)(v)-3 PROD Demand'!O88+'FR-16(7)(v)-7 TRANS Demand'!O88+'FR-16(7)(v)-11 DIST Demand'!O88","v":0},{"$f":"'FR-16(7)(v)-4 PROD Energy'!O88+'FR-16(7)(v)-8 TRANS Energy'!O88+'FR-16(7)(v)-12 DIST Energy'!O88","v":0},{"$f":"'FR-16(7)(v)-5 PROD Cust'!O88+'FR-16(7)(v)-9 TRANS Cust'!O88+'FR-16(7)(v)-13 DIST Cust'!O88","v":9764},9764,0]
[32,null,{"$f":"'FR-16(7)(v)-1 Functional'!C89","v":"METERS"},{"$f":"'FR-16(7)(v)-1 Functional'!D89","v":"K407"},null,{"$f":"'FR-16(7)(v)-14 TOTAL CLASS'!O89","v":5192},{"$f":"'FR-16(7)(v)-3 PROD Demand'!O89+'FR-16(7)(v)-7 TRANS Demand'!O89+'FR-16(7)(v)-11 DIST Demand'!O89","v":0},{"$f":"'FR-16(7)(v)-4 PROD Energy'!O89+'FR-16(7)(v)-8 TRANS Energy'!O89+'FR-16(7)(v)-12 DIST Energy'!O89","v":0},{"$f":"'FR-16(7)(v)-5 PROD Cust'!O89+'FR-16(7)(v)-9 TRANS Cust'!O89+'FR-16(7)(v)-13 DIST Cust'!O89","v":5192},5192,0]
[33,null,{"$f":"'FR-16(7)(v)-1 Functional'!C90","v":"STREET LIGHTS"},{"$f":"'FR-16(7)(v)-1 Functional'!D90","v":"K401"},null,{"$f":"'FR-16(7)(v)-14 TOTAL CLASS'!O90","v":0},{"$f":"'FR-16(7)(v)-3 PROD Demand'!O90+'FR-16(7)(v)-7 TRANS Demand'!O90+'FR-16(7)(v)-11 DIST Demand'!O90","v":0},{"$f":"'FR-16(7)(v)-4 PROD Energy'!O90+'FR-16(7)(v)-8 TRANS Energy'!O90+'FR-16(7)(v)-12 DIST Energy'!O90","v":0},{"$f":"'FR-16(7)(v)-5 PROD Cust'!O90+'FR-16(7)(v)-9 TRANS Cust'!O90+'FR-16(7)(v)-13 DIST Cust'!O90","v":0},0,0]
[34,null,{"$f":"'FR-16(7)(v)-1 Functional'!C91","v":"ADJUSTMENT  "},{"$f":"'FR-16(7)(v)-1 Functional'!D91","v":"K209"},null,{"$f":"'FR-16(7)(v)-14 TOTAL CLASS'!O91","v":0},{"$f":"'FR-16(7)(v)-3 PROD Demand'!O91+'FR-16(7)(v)-7 TRANS Demand'!O91+'FR-16(7)(v)-11 DIST Demand'!O91","v":0},{"$f":"'FR-16(7)(v)-4 PROD Energy'!O91+'FR-16(7)(v)-8 TRANS Energy'!O91+'FR-16(7)(v)-12 DIST Energy'!O91","v":0},{"$f":"'FR-16(7)(v)-5 PROD Cust'!O91+'FR-16(7)(v)-9 TRANS Cust'!O91+'FR-16(7)(v)-13 DIST Cust'!O91","v":0},0,0]
[35,null,{"$f":"'FR-16(7)(v)-1 Functional'!C92","v":"CONSTRUCTION NOT CLASSIFIED"},{"$f":"'FR-16(7)(v)-1 Functional'!D92","v":"K209"},null,{"$f":"'FR-16(7)(v)-14 TOTAL CLASS'!O92","v":3032},{"$f":"'FR-16(7)(v)-3 PROD Demand'!O92+'FR-16(7)(v)-7 TRANS Demand'!O92+'FR-16(7)(v)-11 DIST Demand'!O92","v":0},{"$f":"'FR-16(7)(v)-4 PROD Energy'!O92+'FR-16(7)(v)-8 TRANS Energy'!O92+'FR-16(7)(v)-12 DIST Energy'!O92","v":0},{"$f":"'FR-16(7)(v)-5 PROD Cust'!O92+'FR-16(7)(v)-9 TRANS Cust'!O92+'FR-16(7)(v)-13 DIST Cust'!O92","v":3032},3032,0]
[36,null,{"$f":"'FR-16(7)(v)-1 Functional'!C93","v":"RWIP"},{"$f":"'FR-16(7)(v)-1 Functional'!D93","v":"K215"},null,{"$f":"'FR-16(7)(v)-14 TOTAL CLASS'!O93","v":0},{"$f":"'FR-16(7)(v)-3 PROD Demand'!O93+'FR-16(7)(v)-7 TRANS Demand'!O93+'FR-16(7)(v)-11 DIST Demand'!O93","v":0},{"$f":"'FR-16(7)(v)-4 PROD Energy'!O93+'FR-16(7)(v)-8 TRANS Energy'!O93+'FR-16(7)(v)-12 DIST Energy'!O93","v":0},{"$f":"'FR-16(7)(v)-5 PROD Cust'!O93+'FR-16(7)(v)-9 TRANS Cust'!O93+'FR-16(7)(v)-13 DIST Cust'!O93","v":0},{"$f":"SUM(G93:I93)","v":0},{"$f":"F93-J93","v":0}]
[37,null,{"$f":"'FR-16(7)(v)-1 Functional'!C94","v":"  DISTRIBUTION PLANT IN SERVICE"},null,null,{"$f":"SUM(F73:F93)","v":17988},{"$f":"SUM(G73:G92)","v":0},0,17988,17988,0]
[38]
[39,"TOTAL TRANS & DIST PLANT",null,null,null,{"$f":"F94+F68","v":3077140},3059152,0,17988,3077140,0]
[40,"TOTAL GROSS PTD PLANT",null,null,null,{"$f":"F94+F70","v":54172800},54154812,0,17988,54172800,0]
[41]
[42,"GENERAL & INTANGIBLE PLANT"]
[43,null,{"$f":"'FR-16(7)(v)-1 Functional'!C100","v":"PRODUCTION - DEMAND"},{"$f":"'FR-16(7)(v)-1 Functional'!D100","v":"K201"},null,{"$f":"'FR-16(7)(v)-14 TOTAL CLASS'!O100","v":706080},{"$f":"'FR-16(7)(v)-3 PROD Demand'!O100+'FR-16(7)(v)-7 TRANS Demand'!O100+'FR-16(7)(v)-11 DIST Demand'!O100","v":706080},{"$f":"'FR-16(7)(v)-4 PROD Energy'!O100+'FR-16(7)(v)-8 TRANS Energy'!O100+'FR-16(7)(v)-12 DIST Energy'!O100","v":0},{"$f":"'FR-16(7)(v)-5 PROD Cust'!O100+'FR-16(7)(v)-9 TRANS Cust'!O100+'FR-16(7)(v)-13 DIST Cust'!O100","v":0},{"$f":"SUM(G100:I100)","v":706080},{"$f":"F100-J100","v":0}]
[44,null,{"$f":"'FR-16(7)(v)-1 Functional'!C101","v":"PRODUCTION - ENERGY"},{"$f":"'FR-16(7)(v)-1 Functional'!D101","v":"K301"},null,{"$f":"'FR-16(7)(v)-14 TOTAL CLASS'!O101","v":1130072},{"$f":"'FR-16(7)(v)-3 PROD Demand'!O101+'FR-16(7)(v)-7 TRANS Demand'!O101+'FR-16(7)(v)-11 DIST Demand'!O101","v":0},{"$f":"'FR-16(7)(v)-4 PROD Energy'!O101+'FR-16(7)(v)-8 TRANS Energy'!O101+'FR-16(7)(v)-12 DIST Energy'!O101","v":1130072},{"$f":"'FR-16(7)(v)-5 PROD Cust'!O101+'FR-16(7)(v)-9 TRANS Cust'!O101+'FR-16(7)(v)-13 DIST Cust'!O101","v":0},{"$f":"SUM(G101:I101)","v":1130072},{"$f":"F101-J101","v":0}]
[45,null,{"$f":"'FR-16(7)(v)-1 Functional'!C102","v":"TRANSMISSION"},{"$f":"'FR-16(7)(v)-1 Functional'!D102","v":"K202"},null,{"$f":"'FR-16(7)(v)-14 TOTAL CLASS'!O102","v":111576},{"$f":"'FR-16(7)(v)-3 PROD Demand'!O102+'FR-16(7)(v)-7 TRANS Demand'!O102+'FR-16(7)(v)-11 DIST Demand'!O102","v":111576},{"$f":"'FR-16(7)(v)-4 PROD Energy'!O102+'FR-16(7)(v)-8 TRANS Energy'!O102+'FR-16(7)(v)-12 DIST Energy'!O102","v":0},{"$f":"'FR-16(7)(v)-5 PROD Cust'!O102+'FR-16(7)(v)-9 TRANS Cust'!O102+'FR-16(7)(v)-13 DIST Cust'!O102","v":0},111576,0]
[46,null,{"$f":"'FR-16(7)(v)-1 Functional'!C103","v":"DISTRIBUTION - DEMAND"},{"$f":"'FR-16(7)(v)-1 Functional'!D103","v":"K201"},null,{"$f":"'FR-16(7)(v)-14 TOTAL CLASS'!O103","v":374740},{"$f":"'FR-16(7)(v)-3 PROD Demand'!O103+'FR-16(7)(v)-7 TRANS Demand'!O103+'FR-16(7)(v)-11 DIST Demand'!O103","v":374740},{"$f":"'FR-16(7)(v)-4 PROD Energy'!O103+'FR-16(7)(v)-8 TRANS Energy'!O103+'FR-16(7)(v)-12 DIST Energy'!O103","v":0},{"$f":"'FR-16(7)(v)-5 PROD Cust'!O103+'FR-16(7)(v)-9 TRANS Cust'!O103+'FR-16(7)(v)-13 DIST Cust'!O103","v":0},374740,0]
[47,null,{"$f":"'FR-16(7)(v)-1 Functional'!C104","v":"DISTRIBUTION - CUSTOMER"},{"$f":"'FR-16(7)(v)-1 Functional'!D104","v":"K405"},null,{"$f":"'FR-16(7)(v)-14 TOTAL CLASS'!O104","v":214},{"$f":"'FR-16(7)(v)-3 PROD Demand'!O104+'FR-16(7)(v)-7 TRANS Demand'!O104+'FR-16(7)(v)-11 DIST Demand'!O104","v":0},{"$f":"'FR-16(7)(v)-4 PROD Energy'!O104+'FR-16(7)(v)-8 TRANS Energy'!O104+'FR-16(7)(v)-12 DIST Energy'!O104","v":0},{"$f":"'FR-16(7)(v)-5 PROD Cust'!O104+'FR-16(7)(v)-9 TRANS Cust'!O104+'FR-16(7)(v)-13 DIST Cust'!O104","v":214},214,0]
[48,null,{"$f":"'FR-16(7)(v)-1 Functional'!C105","v":"CUSTOMER ACCOUNTING"},{"$f":"'FR-16(7)(v)-1 Functional'!D105","v":"A308"},null,{"$f":"'FR-16(7)(v)-14 TOTAL CLASS'!O105","v":-612},{"$f":"'FR-16(7)(v)-3 PROD Demand'!O105+'FR-16(7)(v)-7 TRANS Demand'!O105+'FR-16(7)(v)-11 DIST Demand'!O105","v":0},{"$f":"'FR-16(7)(v)-4 PROD Energy'!O105+'FR-16(7)(v)-8 TRANS Energy'!O105+'FR-16(7)(v)-12 DIST Energy'!O105","v":0},{"$f":"'FR-16(7)(v)-5 PROD Cust'!O105+'FR-16(7)(v)-9 TRANS Cust'!O105+'FR-16(7)(v)-13 DIST Cust'!O105","v":-612},-612,0]
[49,null,{"$f":"'FR-16(7)(v)-1 Functional'!C106","v":"CUSTOMER SERVICE & INFORMATION"},{"$f":"'FR-16(7)(v)-1 Functional'!D106","v":"A310"},null,{"$f":"'FR-16(7)(v)-14 TOTAL CLASS'!O106","v":48},{"$f":"'FR-16(7)(v)-3 PROD Demand'!O106+'FR-16(7)(v)-7 TRANS Demand'!O106+'FR-16(7)(v)-11 DIST Demand'!O106","v":0},{"$f":"'FR-16(7)(v)-4 PROD Energy'!O106+'FR-16(7)(v)-8 TRANS Energy'!O106+'FR-16(7)(v)-12 DIST Energy'!O106","v":0},{"$f":"'FR-16(7)(v)-5 PROD Cust'!O106+'FR-16(7)(v)-9 TRANS Cust'!O106+'FR-16(7)(v)-13 DIST Cust'!O106","v":48},48,0]
[50,null,{"$f":"'FR-16(7)(v)-1 Functional'!C107","v":"SALES"},{"$f":"'FR-16(7)(v)-1 Functional'!D107","v":"A312"},null,{"$f":"'FR-16(7)(v)-14 TOTAL CLASS'!O107","v":0},{"$f":"'FR-16(7)(v)-3 PROD Demand'!O107+'FR-16(7)(v)-7 TRANS Demand'!O107+'FR-16(7)(v)-11 DIST Demand'!O107","v":0},{"$f":"'FR-16(7)(v)-4 PROD Energy'!O107+'FR-16(7)(v)-8 TRANS Energy'!O107+'FR-16(7)(v)-12 DIST Energy'!O107","v":0},{"$f":"'FR-16(7)(v)-5 PROD Cust'!O107+'FR-16(7)(v)-9 TRANS Cust'!O107+'FR-16(7)(v)-13 DIST Cust'!O107","v":0},0,0]
[51,null,{"$f":"'FR-16(7)(v)-1 Functional'!C108","v":"ADJUSTMENT"},{"$f":"'FR-16(7)(v)-1 Functional'!D108","v":"A315"},null,{"$f":"'FR-16(7)(v)-14 TOTAL CLASS'!O108","v":0},{"$f":"'FR-16(7)(v)-3 PROD Demand'!O108+'FR-16(7)(v)-7 TRANS Demand'!O108+'FR-16(7)(v)-11 DIST Demand'!O108","v":0},{"$f":"'FR-16(7)(v)-4 PROD Energy'!O108+'FR-16(7)(v)-8 TRANS Energy'!O108+'FR-16(7)(v)-12 DIST Energy'!O108","v":0},{"$f":"'FR-16(7)(v)-5 PROD Cust'!O108+'FR-16(7)(v)-9 TRANS Cust'!O108+'FR-16(7)(v)-13 DIST Cust'!O108","v":0},0,0]
[52,null,{"$f":"'FR-16(7)(v)-1 Functional'!C109","v":"  GEN & INTANG PLANT IN SERVICE"},null,null,{"$f":"SUM(F100:F108)","v":2322118},1192396,1130072,-350,2322118,0]
[53]
[54,"COMMON & OTHER PLANT"]
[55,null,{"$f":"'FR-16(7)(v)-1 Functional'!C112","v":"PRODUCTION - DEMAND"},{"$f":"'FR-16(7)(v)-1 Functional'!D112","v":"K201"},null,{"$f":"'FR-16(7)(v)-14 TOTAL CLASS'!O112","v":399629},{"$f":"'FR-16(7)(v)-3 PROD Demand'!O112+'FR-16(7)(v)-7 TRANS Demand'!O112+'FR-16(7)(v)-11 DIST Demand'!O112","v":399629},{"$f":"'FR-16(7)(v)-4 PROD Energy'!O112+'FR-16(7)(v)-8 TRANS Energy'!O112+'FR-16(7)(v)-12 DIST Energy'!O112","v":0},{"$f":"'FR-16(7)(v)-5 PROD Cust'!O112+'FR-16(7)(v)-9 TRANS Cust'!O112+'FR-16(7)(v)-13 DIST Cust'!O112","v":0},{"$f":"SUM(G112:I112)","v":399629},{"$f":"F112-J112","v":0}]
[56,null,{"$f":"'FR-16(7)(v)-1 Functional'!C113","v":"PRODUCTION - ENERGY"},{"$f":"'FR-16(7)(v)-1 Functional'!D113","v":"K301"},null,{"$f":"'FR-16(7)(v)-14 TOTAL CLASS'!O113","v":639601},{"$f":"'FR-16(7)(v)-3 PROD Demand'!O113+'FR-16(7)(v)-7 TRANS Demand'!O113+'FR-16(7)(v)-11 DIST Demand'!O113","v":0},{"$f":"'FR-16(7)(v)-4 PROD Energy'!O113+'FR-16(7)(v)-8 TRANS Energy'!O113+'FR-16(7)(v)-12 DIST Energy'!O113","v":639601},{"$f":"'FR-16(7)(v)-5 PROD Cust'!O113+'FR-16(7)(v)-9 TRANS Cust'!O113+'FR-16(7)(v)-13 DIST Cust'!O113","v":0},{"$f":"SUM(G113:I113)","v":639601},{"$f":"F113-J113","v":0}]
[57,null,{"$f":"'FR-16(7)(v)-1 Functional'!C114","v":"TRANSMISSION"},{"$f":"'FR-16(7)(v)-1 Functional'!D114","v":"K202"},null,{"$f":"'FR-16(7)(v)-14 TOTAL CLASS'!O114","v":63150},{"$f":"'FR-16(7)(v)-3 PROD Demand'!O114+'FR-16(7)(v)-7 TRANS Demand'!O114+'FR-16(7)(v)-11 DIST Demand'!O114","v":63150},{"$f":"'FR-16(7)(v)-4 PROD Energy'!O114+'FR-16(7)(v)-8 TRANS Energy'!O114+'FR-16(7)(v)-12 DIST Energy'!O114","v":0},{"$f":"'FR-16(7)(v)-5 PROD Cust'!O114+'FR-16(7)(v)-9 TRANS Cust'!O114+'FR-16(7)(v)-13 DIST Cust'!O114","v":0},63150,0]
[58,null,{"$f":"'FR-16(7)(v)-1 Functional'!C115","v":"DISTRIBUTION - DEMAND"},{"$f":"'FR-16(7)(v)-1 Functional'!D115","v":"K201"},null,{"$f":"'FR-16(7)(v)-14 TOTAL CLASS'!O115","v":212096},{"$f":"'FR-16(7)(v)-3 PROD Demand'!O115+'FR-16(7)(v)-7 TRANS Demand'!O115+'FR-16(7)(v)-11 DIST Demand'!O115","v":212096},{"$f":"'FR-16(7)(v)-4 PROD Energy'!O115+'FR-16(7)(v)-8 TRANS Energy'!O115+'FR-16(7)(v)-12 DIST Energy'!O115","v":0},{"$f":"'FR-16(7)(v)-5 PROD Cust'!O115+'FR-16(7)(v)-9 TRANS Cust'!O115+'FR-16(7)(v)-13 DIST Cust'!O115","v":0},212096,0]
[59,null,{"$f":"'FR-16(7)(v)-1 Functional'!C116","v":"DISTRIBUTION - CUSTOMER"},{"$f":"'FR-16(7)(v)-1 Functional'!D116","v":"K405"},null,{"$f":"'FR-16(7)(v)-14 TOTAL CLASS'!O116","v":121},{"$f":"'FR-16(7)(v)-3 PROD Demand'!O116+'FR-16(7)(v)-7 TRANS Demand'!O116+'FR-16(7)(v)-11 DIST Demand'!O116","v":0},{"$f":"'FR-16(7)(v)-4 PROD Energy'!O116+'FR-16(7)(v)-8 TRANS Energy'!O116+'FR-16(7)(v)-12 DIST Energy'!O116","v":0},{"$f":"'FR-16(7)(v)-5 PROD Cust'!O116+'FR-16(7)(v)-9 TRANS Cust'!O116+'FR-16(7)(v)-13 DIST Cust'!O116","v":121},121,0]
[60,null,{"$f":"'FR-16(7)(v)-1 Functional'!C117","v":"CUSTOMER ACCOUNTING"},{"$f":"'FR-16(7)(v)-1 Functional'!D117","v":"A308"},null,{"$f":"'FR-16(7)(v)-14 TOTAL CLASS'!O117","v":-346},{"$f":"'FR-16(7)(v)-3 PROD Demand'!O117+'FR-16(7)(v)-7 TRANS Demand'!O117+'FR-16(7)(v)-11 DIST Demand'!O117","v":0},{"$f":"'FR-16(7)(v)-4 PROD Energy'!O117+'FR-16(7)(v)-8 TRANS Energy'!O117+'FR-16(7)(v)-12 DIST Energy'!O117","v":0},{"$f":"'FR-16(7)(v)-5 PROD Cust'!O117+'FR-16(7)(v)-9 TRANS Cust'!O117+'FR-16(7)(v)-13 DIST Cust'!O117","v":-346},-346,0]
[61,null,{"$f":"'FR-16(7)(v)-1 Functional'!C118","v":"CUSTOMER SERVICE & INFORMATION"},{"$f":"'FR-16(7)(v)-1 Functional'!D118","v":"A310"},null,{"$f":"'FR-16(7)(v)-14 TOTAL CLASS'!O118","v":27},{"$f":"'FR-16(7)(v)-3 PROD Demand'!O118+'FR-16(7)(v)-7 TRANS Demand'!O118+'FR-16(7)(v)-11 DIST Demand'!O118","v":0},{"$f":"'FR-16(7)(v)-4 PROD Energy'!O118+'FR-16(7)(v)-8 TRANS Energy'!O118+'FR-16(7)(v)-12 DIST Energy'!O118","v":0},{"$f":"'FR-16(7)(v)-5 PROD Cust'!O118+'FR-16(7)(v)-9 TRANS Cust'!O118+'FR-16(7)(v)-13 DIST Cust'!O118","v":27},27,0]
[62,null,{"$f":"'FR-16(7)(v)-1 Functional'!C119","v":"SALES"},{"$f":"'FR-16(7)(v)-1 Functional'!D119","v":"A312"},null,{"$f":"'FR-16(7)(v)-14 TOTAL CLASS'!O119","v":0},{"$f":"'FR-16(7)(v)-3 PROD Demand'!O119+'FR-16(7)(v)-7 TRANS Demand'!O119+'FR-16(7)(v)-11 DIST Demand'!O119","v":0},{"$f":"'FR-16(7)(v)-4 PROD Energy'!O119+'FR-16(7)(v)-8 TRANS Energy'!O119+'FR-16(7)(v)-12 DIST Energy'!O119","v":0},{"$f":"'FR-16(7)(v)-5 PROD Cust'!O119+'FR-16(7)(v)-9 TRANS Cust'!O119+'FR-16(7)(v)-13 DIST Cust'!O119","v":0},0,0]
[63,null,{"$f":"'FR-16(7)(v)-1 Functional'!C120","v":"ADJUSTMENT"},{"$f":"'FR-16(7)(v)-1 Functional'!D120","v":"A315"},null,{"$f":"'FR-16(7)(v)-14 TOTAL CLASS'!O120","v":0},{"$f":"'FR-16(7)(v)-3 PROD Demand'!O120+'FR-16(7)(v)-7 TRANS Demand'!O120+'FR-16(7)(v)-11 DIST Demand'!O120","v":0},{"$f":"'FR-16(7)(v)-4 PROD Energy'!O120+'FR-16(7)(v)-8 TRANS Energy'!O120+'FR-16(7)(v)-12 DIST Energy'!O120","v":0},{"$f":"'FR-16(7)(v)-5 PROD Cust'!O120+'FR-16(7)(v)-9 TRANS Cust'!O120+'FR-16(7)(v)-13 DIST Cust'!O120","v":0},0,0]
[64,null,{"$f":"'FR-16(7)(v)-1 Functional'!C121","v":"  COMMON & OTHER PLANT IN SERVICE"},null,null,{"$f":"SUM(F112:F120)","v":1314278},674875,639601,-198,1314278,0]
[65]
[66,"GROSS ELECTRIC PLANT IN SERVICE",null,null,null,{"$f":"F97+F109+F121","v":57809196},56022083,1769673,17440,57809196,0]
[]
[{"$f":"co_name","v":"DUKE ENERGY KENTUCKY, INC."},null,null,null,null,null,null,null,null,{"$f":"J1","v":"FR-16(7)(v)-23"}]
[{"$f":"$A$2","v":"TT CLASSIFIED - ELECTRIC COST OF SERVICE"},null,null,null,null,null,null,null,null,{"$f":"J2","v":"WITNESS RESPONSIBLE:"}]
[{"$f":"case_name","v":"CASE NO: 2019-00271"},null,null,null,null,null,null,null,null,{"$f":"Witness","v":"JAMES E. ZIOLKOWSKI"}]
[{"$f":"data_filing","v":"DATA: 12 MONTHS ACTUAL  & 0 MONTHS ESTIMATED"},null,null,null,null,null,null,null,null,{"$f":"\"PAGE \"&Pages2-12&\" OF \"&Pages2","v":"PAGE 3 OF 15"}]
[{"$f":"type","v":"TYPE OF FILING: \"X\" ORIGINAL   UPDATED    REVISED  "}]
[]
[]
["LINE",null,null,null,null,"TOTAL","CLASSIFIED",null,null,"TOTAL","ALL"]
["NO.","DEPRECIATION RESERVE",null,"ALLO",null,{"$f":"$F$9","v":"TT"},{"$f":"G9","v":"DEMAND"},"ENERGY","CUSTOMER","AT ISSUE","OTHER"]
[null,null,"Schedule 3",null,null,null,3,4,5]
[1,"PRODUCTION PLANT"]
[2,null,{"$f":"'FR-16(7)(v)-1 Functional'!C136","v":"PRODUCTION STEAM"},{"$f":"'FR-16(7)(v)-1 Functional'!D136","v":"K201"},null,{"$f":"'FR-16(7)(v)-14 TOTAL CLASS'!O136","v":16957046},{"$f":"'FR-16(7)(v)-3 PROD Demand'!O136+'FR-16(7)(v)-7 TRANS Demand'!O136+'FR-16(7)(v)-11 DIST Demand'!O136","v":16957046},{"$f":"'FR-16(7)(v)-4 PROD Energy'!O136+'FR-16(7)(v)-8 TRANS Energy'!O136+'FR-16(7)(v)-12 DIST Energy'!O136","v":0},{"$f":"'FR-16(7)(v)-5 PROD Cust'!O136+'FR-16(7)(v)-9 TRANS Cust'!O136+'FR-16(7)(v)-13 DIST Cust'!O136","v":0},{"$f":"SUM(G136:I136)","v":16957046},{"$f":"F136-J136","v":0}]
[3,null,{"$f":"'FR-16(7)(v)-1 Functional'!C137","v":"PRODUCTION OTHER"},{"$f":"'FR-16(7)(v)-1 Functional'!D137","v":"K201"},null,{"$f":"'FR-16(7)(v)-14 TOTAL CLASS'!O137","v":7787055},{"$f":"'FR-16(7)(v)-3 PROD Demand'!O137+'FR-16(7)(v)-7 TRANS Demand'!O137+'FR-16(7)(v)-11 DIST Demand'!O137","v":7787055},{"$f":"'FR-16(7)(v)-4 PROD Energy'!O137+'FR-16(7)(v)-8 TRANS Energy'!O137+'FR-16(7)(v)-12 DIST Energy'!O137","v":0},{"$f":"'FR-16(7)(v)-5 PROD Cust'!O137+'FR-16(7)(v)-9 TRANS Cust'!O137+'FR-16(7)(v)-13 DIST Cust'!O137","v":0},{"$f":"SUM(G137:I137)","v":7787055},{"$f":"F137-J137","v":0}]
[4,null,{"$f":"'FR-16(7)(v)-1 Functional'!C138","v":"ADJUSTMENT"},{"$f":"'FR-16(7)(v)-1 Functional'!D138","v":"K201"},null,{"$f":"'FR-16(7)(v)-14 TOTAL CLASS'!O138","v":65661},{"$f":"'FR-16(7)(v)-3 PROD Demand'!O138+'FR-16(7)(v)-7 TRANS Demand'!O138+'FR-16(7)(v)-11 DIST Demand'!O138","v":65661},{"$f":"'FR-16(7)(v)-4 PROD Energy'!O138+'FR-16(7)(v)-8 TRANS Energy'!O138+'FR-16(7)(v)-12 DIST Energy'!O138","v":0},{"$f":"'FR-16(7)(v)-5 PROD Cust'!O138+'FR-16(7)(v)-9 TRANS Cust'!O138+'FR-16(7)(v)-13 DIST Cust'!O138","v":0},{"$f":"SUM(G138:I138)","v":65661},{"$f":"F138-J138","v":0}]
[5,null,{"$f":"'FR-16(7)(v)-1 Functional'!C139","v":"  TOTAL PROD DEPREC RESERVE"},null,null,{"$f":"SUM(F136:F138)","v":24809762},24809762,0,0,24809762,0]
[6]
[7,"TRANSMISSION PLANT"]
[8,null,{"$f":"'FR-16(7)(v)-1 Functional'!C142","v":"MAIN STEP-UP TRANSFORMERS"},{"$f":"'FR-16(7)(v)-1 Functional'!D142","v":"K202"},null,{"$f":"'FR-16(7)(v)-14 TOTAL CLASS'!O142","v":0},{"$f":"'FR-16(7)(v)-3 PROD Demand'!O142+'FR-16(7)(v)-7 TRANS Demand'!O142+'FR-16(7)(v)-11 DIST Demand'!O142","v":0},{"$f":"'FR-16(7)(v)-4 PROD Energy'!O142+'FR-16(7)(v)-8 TRANS Energy'!O142+'FR-16(7)(v)-12 DIST Energy'!O142","v":0},{"$f":"'FR-16(7)(v)-5 PROD Cust'!O142+'FR-16(7)(v)-9 TRANS Cust'!O142+'FR-16(7)(v)-13 DIST Cust'!O142","v":0},{"$f":"SUM(G142:I142)","v":0},{"$f":"F142-J142","v":0}]
[9,null,{"$f":"'FR-16(7)(v)-1 Functional'!C143","v":"OTHER TRANSMISSION"},{"$f":"'FR-16(7)(v)-1 Functional'!D143","v":"K202"},null,{"$f":"'FR-16(7)(v)-14 TOTAL CLASS'!O143","v":843668},{"$f":"'FR-16(7)(v)-3 PROD Demand'!O143+'FR-16(7)(v)-7 TRANS Demand'!O143+'FR-16(7)(v)-11 DIST Demand'!O143","v":843668},{"$f":"'FR-16(7)(v)-4 PROD Energy'!O143+'FR-16(7)(v)-8 TRANS Energy'!O143+'FR-16(7)(v)-12 DIST Energy'!O143","v":0},{"$f":"'FR-16(7)(v)-5 PROD Cust'!O143+'FR-16(7)(v)-9 TRANS Cust'!O143+'FR-16(7)(v)-13 DIST Cust'!O143","v":0},{"$f":"SUM(G143:I143)","v":843668},{"$f":"F143-J143","v":0}]
[10,null,{"$f":"'FR-16(7)(v)-1 Functional'!C144","v":"ADJUSTMENT"},{"$f":"'FR-16(7)(v)-1 Functional'!D144","v":"K202"},null,{"$f":"'FR-16(7)(v)-14 TOTAL CLASS'!O144","v":-2966},{"$f":"'FR-16(7)(v)-3 PROD Demand'!O144+'FR-16(7)(v)-7 TRANS Demand'!O144+'FR-16(7)(v)-11 DIST Demand'!O144","v":-2966},{"$f":"'FR-16(7)(v)-4 PROD Energy'!O144+'FR-16(7)(v)-8 TRANS Energy'!O144+'FR-16(7)(v)-12 DIST Energy'!O144","v":0},{"$f":"'FR-16(7)(v)-5 PROD Cust'!O144+'FR-16(7)(v)-9 TRANS Cust'!O144+'FR-16(7)(v)-13 DIST Cust'!O144","v":0},{"$f":"SUM(G144:I144)","v":-2966},{"$f":"F144-J144","v":0}]
[11,null,{"$f":"'FR-16(7)(v)-1 Functional'!C145","v":"  TOTAL TRANS DEPREC RESERVE"},null,null,{"$f":"SUM(F142:F144)","v":840702},840702,0,0,840702,0]
[12]
[13,null,{"$f":"'FR-16(7)(v)-1 Functional'!C147","v":"TOTAL PROD & TRANS DEPREC RESERVE"},null,null,{"$f":"F145+F139","v":25650464},{"$f":"G145+G139","v":25650464},{"$f":"H145+H139","v":0},{"$f":"I145+I139","v":0},{"$f":"J145+J139","v":25650464},{"$f":"F147-J147","v":0}]
[14]
[15,"DISTRIBUTION PLANT"]
[16,null,{"$f":"'FR-16(7)(v)-1 Functional'!C150","v":"SUBSTATIONS"},{"$f":"'FR-16(7)(v)-1 Functional'!D150","v":"K215"},null,{"$f":"'FR-16(7)(v)-14 TOTAL CLASS'!O150","v":0},{"$f":"'FR-16(7)(v)-3 PROD Demand'!O150+'FR-16(7)(v)-7 TRANS Demand'!O150+'FR-16(7)(v)-11 DIST Demand'!O150","v":0},{"$f":"'FR-16(7)(v)-4 PROD Energy'!O150+'FR-16(7)(v)-8 TRANS Energy'!O150+'FR-16(7)(v)-12 DIST Energy'!O150","v":0},{"$f":"'FR-16(7)(v)-5 PROD Cust'!O150+'FR-16(7)(v)-9 TRANS Cust'!O150+'FR-16(7)(v)-13 DIST Cust'!O150","v":0},{"$f":"SUM(G150:I150)","v":0},{"$f":"F150-J150","v":0}]
[17,null,{"$f":"'FR-16(7)(v)-1 Functional'!C151","v":"POLES, TOWERS  & FIXTURES - PRIMARY - DEMAND"},{"$f":"'FR-16(7)(v)-1 Functional'!D151","v":"K205"},null,{"$f":"'FR-16(7)(v)-14 TOTAL CLASS'!O151","v":0},{"$f":"'FR-16(7)(v)-3 PROD Demand'!O151+'FR-16(7)(v)-7 TRANS Demand'!O151+'FR-16(7)(v)-11 DIST Demand'!O151","v":0},{"$f":"'FR-16(7)(v)-4 PROD Energy'!O151+'FR-16(7)(v)-8 TRANS Energy'!O151+'FR-16(7)(v)-12 DIST Energy'!O151","v":0},{"$f":"'FR-16(7)(v)-5 PROD Cust'!O151+'FR-16(7)(v)-9 TRANS Cust'!O151+'FR-16(7)(v)-13 DIST Cust'!O151","v":0},{"$f":"SUM(G151:I151)","v":0},{"$f":"F151-J151","v":0}]
[18,null,{"$f":"'FR-16(7)(v)-1 Functional'!C152","v":"POLES, TOWERS  & FIXTURES - PRIMARY - CUSTOMER"},{"$f":"'FR-16(7)(v)-1 Functional'!D152","v":"K405"},null,{"$f":"'FR-16(7)(v)-14 TOTAL CLASS'!O152","v":0},{"$f":"'FR-16(7)(v)-3 PROD Demand'!O152+'FR-16(7)(v)-7 TRANS Demand'!O152+'FR-16(7)(v)-11 DIST Demand'!O152","v":0},{"$f":"'FR-16(7)(v)-4 PROD Energy'!O152+'FR-16(7)(v)-8 TRANS Energy'!O152+'FR-16(7)(v)-12 DIST Energy'!O152","v":0},{"$f":"'FR-16(7)(v)-5 PROD Cust'!O152+'FR-16(7)(v)-9 TRANS Cust'!O152+'FR-16(7)(v)-13 DIST Cust'!O152","v":0},{"$f":"SUM(G152:I152)","v":0},{"$f":"F152-J152","v":0}]
[19,null,{"$f":"'FR-16(7)(v)-1 Functional'!C153","v":"POLES, TOWERS  & FIXTURES - SECONDARY - DEMAND"},{"$f":"'FR-16(7)(v)-1 Functional'!D153","v":"K206"},null,{"$f":"'FR-16(7)(v)-14 TOTAL CLASS'!O153","v":0},{"$f":"'FR-16(7)(v)-3 PROD Demand'!O153+'FR-16(7)(v)-7 TRANS Demand'!O153+'FR-16(7)(v)-11 DIST Demand'!O153","v":0},{"$f":"'FR-16(7)(v)-4 PROD Energy'!O153+'FR-16(7)(v)-8 TRANS Energy'!O153+'FR-16(7)(v)-12 DIST Energy'!O153","v":0},{"$f":"'FR-16(7)(v)-5 PROD Cust'!O153+'FR-16(7)(v)-9 TRANS Cust'!O153+'FR-16(7)(v)-13 DIST Cust'!O153","v":0},0,0]
[20,null,{"$f":"'FR-16(7)(v)-1 Functional'!C154","v":"POLES, TOWERS  & FIXTURES - SECONDARY - CUSTOMER"},{"$f":"'FR-16(7)(v)-1 Functional'!D154","v":"K405"},null,{"$f":"'FR-16(7)(v)-14 TOTAL CLASS'!O154","v":0},{"$f":"'FR-16(7)(v)-3 PROD Demand'!O154+'FR-16(7)(v)-7 TRANS Demand'!O154+'FR-16(7)(v)-11 DIST Demand'!O154","v":0},{"$f":"'FR-16(7)(v)-4 PROD Energy'!O154+'FR-16(7)(v)-8 TRANS Energy'!O154+'FR-16(7)(v)-12 DIST Energy'!O154","v":0},{"$f":"'FR-16(7)(v)-5 PROD Cust'!O154+'FR-16(7)(v)-9 TRANS Cust'!O154+'FR-16(7)(v)-13 DIST Cust'!O154","v":0},0,0]
[21,null,{"$f":"'FR-16(7)(v)-1 Functional'!C155","v":"CONDUCTORS - OVERHEAD / PRIMARY - DEMAND"},{"$f":"'FR-16(7)(v)-1 Functional'!D155","v":"K205"},null,{"$f":"'FR-16(7)(v)-14 TOTAL CLASS'!O155","v":0},{"$f":"'FR-16(7)(v)-3 PROD Demand'!O155+'FR-16(7)(v)-7 TRANS Demand'!O155+'FR-16(7)(v)-11 DIST Demand'!O155","v":0},{"$f":"'FR-16(7)(v)-4 PROD Energy'!O155+'FR-16(7)(v)-8 TRANS Energy'!O155+'FR-16(7)(v)-12 DIST Energy'!O155","v":0},{"$f":"'FR-16(7)(v)-5 PROD Cust'!O155+'FR-16(7)(v)-9 TRANS Cust'!O155+'FR-16(7)(v)-13 DIST Cust'!O155","v":0},0,0]
[22,null,{"$f":"'FR-16(7)(v)-1 Functional'!C156","v":"CONDUCTORS - OVERHEAD / PRIMARY - CUSTOMER"},{"$f":"'FR-16(7)(v)-1 Functional'!D156","v":"K405"},null,{"$f":"'FR-16(7)(v)-14 TOTAL CLASS'!O156","v":0},{"$f":"'FR-16(7)(v)-3 PROD Demand'!O156+'FR-16(7)(v)-7 TRANS Demand'!O156+'FR-16(7)(v)-11 DIST Demand'!O156","v":0},{"$f":"'FR-16(7)(v)-4 PROD Energy'!O156+'FR-16(7)(v)-8 TRANS Energy'!O156+'FR-16(7)(v)-12 DIST Energy'!O156","v":0},{"$f":"'FR-16(7)(v)-5 PROD Cust'!O156+'FR-16(7)(v)-9 TRANS Cust'!O156+'FR-16(7)(v)-13 DIST Cust'!O156","v":0},0,0]
[23,null,{"$f":"'FR-16(7)(v)-1 Functional'!C157","v":"CONDUCTORS - OVERHEAD / SECONDARY - DEMAND"},{"$f":"'FR-16(7)(v)-1 Functional'!D157","v":"K206"},null,{"$f":"'FR-16(7)(v)-14 TOTAL CLASS'!O157","v":0},{"$f":"'FR-16(7)(v)-3 PROD Demand'!O157+'FR-16(7)(v)-7 TRANS Demand'!O157+'FR-16(7)(v)-11 DIST Demand'!O157","v":0},{"$f":"'FR-16(7)(v)-4 PROD Energy'!O157+'FR-16(7)(v)-8 TRANS Energy'!O157+'FR-16(7)(v)-12 DIST Energy'!O157","v":0},{"$f":"'FR-16(7)(v)-5 PROD Cust'!O157+'FR-16(7)(v)-9 TRANS Cust'!O157+'FR-16(7)(v)-13 DIST Cust'!O157","v":0},0,0]
[24,null,{"$f":"'FR-16(7)(v)-1 Functional'!C158","v":"CONDUCTORS - OVERHEAD / SECONDARY - CUSTOMER"},{"$f":"'FR-16(7)(v)-1 Functional'!D158","v":"K405"},null,{"$f":"'FR-16(7)(v)-14 TOTAL CLASS'!O158","v":0},{"$f":"'FR-16(7)(v)-3 PROD Demand'!O158+'FR-16(7)(v)-7 TRANS Demand'!O158+'FR-16(7)(v)-11 DIST Demand'!O158","v":0},{"$f":"'FR-16(7)(v)-4 PROD Energy'!O158+'FR-16(7)(v)-8 TRANS Energy'!O158+'FR-16(7)(v)-12 DIST Energy'!O158","v":0},{"$f":"'FR-16(7)(v)-5 PROD Cust'!O158+'FR-16(7)(v)-9 TRANS Cust'!O158+'FR-16(7)(v)-13 DIST Cust'!O158","v":0},0,0]
[25,null,{"$f":"'FR-16(7)(v)-1 Functional'!C159","v":"CONDUCTORS - UNDERGROUND / PRIMARY - DEMAND"},{"$f":"'FR-16(7)(v)-1 Functional'!D159","v":"K205"},null,{"$f":"'FR-16(7)(v)-14 TOTAL CLASS'!O159","v":0},{"$f":"'FR-16(7)(v)-3 PROD Demand'!O159+'FR-16(7)(v)-7 TRANS Demand'!O159+'FR-16(7)(v)-11 DIST Demand'!O159","v":0},{"$f":"'FR-16(7)(v)-4 PROD Energy'!O159+'FR-16(7)(v)-8 TRANS Energy'!O159+'FR-16(7)(v)-12 DIST Energy'!O159","v":0},{"$f":"'FR-16(7)(v)-5 PROD Cust'!O159+'FR-16(7)(v)-9 TRANS Cust'!O159+'FR-16(7)(v)-13 DIST Cust'!O159","v":0},0,0]
[26,null,{"$f":"'FR-16(7)(v)-1 Functional'!C160","v":"CONDUCTORS - UNDERGROUND / PRIMARY - CUSTOMER"},{"$f":"'FR-16(7)(v)-1 Functional'!D160","v":"K405"},null,{"$f":"'FR-16(7)(v)-14 TOTAL CLASS'!O160","v":0},{"$f":"'FR-16(7)(v)-3 PROD Demand'!O160+'FR-16(7)(v)-7 TRANS Demand'!O160+'FR-16(7)(v)-11 DIST Demand'!O160","v":0},{"$f":"'FR-16(7)(v)-4 PROD Energy'!O160+'FR-16(7)(v)-8 TRANS Energy'!O160+'FR-16(7)(v)-12 DIST Energy'!O160","v":0},{"$f":"'FR-16(7)(v)-5 PROD Cust'!O160+'FR-16(7)(v)-9 TRANS Cust'!O160+'FR-16(7)(v)-13 DIST Cust'!O160","v":0},0,0]
[27,null,{"$f":"'FR-16(7)(v)-1 Functional'!C161","v":"CONDUCTORS - UNDERGROUND / SECONDARY - DEMAND"},{"$f":"'FR-16(7)(v)-1 Functional'!D161","v":"K206"},null,{"$f":"'FR-16(7)(v)-14 TOTAL CLASS'!O161","v":0},{"$f":"'FR-16(7)(v)-3 PROD Demand'!O161+'FR-16(7)(v)-7 TRANS Demand'!O161+'FR-16(7)(v)-11 DIST Demand'!O161","v":0},{"$f":"'FR-16(7)(v)-4 PROD Energy'!O161+'FR-16(7)(v)-8 TRANS Energy'!O161+'FR-16(7)(v)-12 DIST Energy'!O161","v":0},{"$f":"'FR-16(7)(v)-5 PROD Cust'!O161+'FR-16(7)(v)-9 TRANS Cust'!O161+'FR-16(7)(v)-13 DIST Cust'!O161","v":0},0,0]
[28,null,{"$f":"'FR-16(7)(v)-1 Functional'!C162","v":"CONDUCTORS - UNDERGROUND / SECONDARY - CUSTOMER"},{"$f":"'FR-16(7)(v)-1 Functional'!D162","v":"K405"},null,{"$f":"'FR-16(7)(v)-14 TOTAL CLASS'!O162","v":0},{"$f":"'FR-16(7)(v)-3 PROD Demand'!O162+'FR-16(7)(v)-7 TRANS Demand'!O162+'FR-16(7)(v)-11 DIST Demand'!O162","v":0},{"$f":"'FR-16(7)(v)-4 PROD Energy'!O162+'FR-16(7)(v)-8 TRANS Energy'!O162+'FR-16(7)(v)-12 DIST Energy'!O162","v":0},{"$f":"'FR-16(7)(v)-5 PROD Cust'!O162+'FR-16(7)(v)-9 TRANS Cust'!O162+'FR-16(7)(v)-13 DIST Cust'!O162","v":0},0,0]
[29,null,{"$f":"'FR-16(7)(v)-1 Functional'!C163","v":"TRANSFORMERS DEMAND RELATED"},{"$f":"'FR-16(7)(v)-1 Functional'!D163","v":"K215"},null,{"$f":"'FR-16(7)(v)-14 TOTAL CLASS'!O163","v":0},{"$f":"'FR-16(7)(v)-3 PROD Demand'!O163+'FR-16(7)(v)-7 TRANS Demand'!O163+'FR-16(7)(v)-11 DIST Demand'!O163","v":0},{"$f":"'FR-16(7)(v)-4 PROD Energy'!O163+'FR-16(7)(v)-8 TRANS Energy'!O163+'FR-16(7)(v)-12 DIST Energy'!O163","v":0},{"$f":"'FR-16(7)(v)-5 PROD Cust'!O163+'FR-16(7)(v)-9 TRANS Cust'!O163+'FR-16(7)(v)-13 DIST Cust'!O163","v":0},{"$f":"SUM(G163:I163)","v":0},{"$f":"F163-J163","v":0}]
[30,null,{"$f":"'FR-16(7)(v)-1 Functional'!C164","v":"TRANSFORMERS CUSTOMER RELATED"},{"$f":"'FR-16(7)(v)-1 Functional'!D164","v":"K405"},null,{"$f":"'FR-16(7)(v)-14 TOTAL CLASS'!O164","v":0},{"$f":"'FR-16(7)(v)-3 PROD Demand'!O164+'FR-16(7)(v)-7 TRANS Demand'!O164+'FR-16(7)(v)-11 DIST Demand'!O164","v":0},{"$f":"'FR-16(7)(v)-4 PROD Energy'!O164+'FR-16(7)(v)-8 TRANS Energy'!O164+'FR-16(7)(v)-12 DIST Energy'!O164","v":0},{"$f":"'FR-16(7)(v)-5 PROD Cust'!O164+'FR-16(7)(v)-9 TRANS Cust'!O164+'FR-16(7)(v)-13 DIST Cust'!O164","v":0},0,0]
[31,null,{"$f":"'FR-16(7)(v)-1 Functional'!C165","v":"SERVICES"},{"$f":"'FR-16(7)(v)-1 Functional'!D165","v":"K217"},null,{"$f":"'FR-16(7)(v)-14 TOTAL CLASS'!O165","v":5363},{"$f":"'FR-16(7)(v)-3 PROD Demand'!O165+'FR-16(7)(v)-7 TRANS Demand'!O165+'FR-16(7)(v)-11 DIST Demand'!O165","v":0},{"$f":"'FR-16(7)(v)-4 PROD Energy'!O165+'FR-16(7)(v)-8 TRANS Energy'!O165+'FR-16(7)(v)-12 DIST Energy'!O165","v":0},{"$f":"'FR-16(7)(v)-5 PROD Cust'!O165+'FR-16(7)(v)-9 TRANS Cust'!O165+'FR-16(7)(v)-13 DIST Cust'!O165","v":5363},5363,0]
[32,null,{"$f":"'FR-16(7)(v)-1 Functional'!C166","v":"METERS"},{"$f":"'FR-16(7)(v)-1 Functional'!D166","v":"K407"},null,{"$f":"'FR-16(7)(v)-14 TOTAL CLASS'!O166","v":1142},{"$f":"'FR-16(7)(v)-3 PROD Demand'!O166+'FR-16(7)(v)-7 TRANS Demand'!O166+'FR-16(7)(v)-11 DIST Demand'!O166","v":0},{"$f":"'FR-16(7)(v)-4 PROD Energy'!O166+'FR-16(7)(v)-8 TRANS Energy'!O166+'FR-16(7)(v)-12 DIST Energy'!O166","v":0},{"$f":"'FR-16(7)(v)-5 PROD Cust'!O166+'FR-16(7)(v)-9 TRANS Cust'!O166+'FR-16(7)(v)-13 DIST Cust'!O166","v":1142},1142,0]
[33,null,{"$f":"'FR-16(7)(v)-1 Functional'!C167","v":"STREET LIGHTS"},{"$f":"'FR-16(7)(v)-1 Functional'!D167","v":"K401"},null,{"$f":"'FR-16(7)(v)-14 TOTAL CLASS'!O167","v":0},{"$f":"'FR-16(7)(v)-3 PROD Demand'!O167+'FR-16(7)(v)-7 TRANS Demand'!O167+'FR-16(7)(v)-11 DIST Demand'!O167","v":0},{"$f":"'FR-16(7)(v)-4 PROD Energy'!O167+'FR-16(7)(v)-8 TRANS Energy'!O167+'FR-16(7)(v)-12 DIST Energy'!O167","v":0},{"$f":"'FR-16(7)(v)-5 PROD Cust'!O167+'FR-16(7)(v)-9 TRANS Cust'!O167+'FR-16(7)(v)-13 DIST Cust'!O167","v":0},0,0]
[34,null,{"$f":"'FR-16(7)(v)-1 Functional'!C168","v":"ADJUSTMENT  "},{"$f":"'FR-16(7)(v)-1 Functional'!D168","v":"K209"},null,{"$f":"'FR-16(7)(v)-14 TOTAL CLASS'!O168","v":15},{"$f":"'FR-16(7)(v)-3 PROD Demand'!O168+'FR-16(7)(v)-7 TRANS Demand'!O168+'FR-16(7)(v)-11 DIST Demand'!O168","v":0},{"$f":"'FR-16(7)(v)-4 PROD Energy'!O168+'FR-16(7)(v)-8 TRANS Energy'!O168+'FR-16(7)(v)-12 DIST Energy'!O168","v":0},{"$f":"'FR-16(7)(v)-5 PROD Cust'!O168+'FR-16(7)(v)-9 TRANS Cust'!O168+'FR-16(7)(v)-13 DIST Cust'!O168","v":15},15,0]
[35,null,{"$f":"'FR-16(7)(v)-1 Functional'!C169","v":"CONSTRUCTION NOT CLASSIFIED"},{"$f":"'FR-16(7)(v)-1 Functional'!D169","v":"K209"},null,{"$f":"'FR-16(7)(v)-14 TOTAL CLASS'!O169","v":49},{"$f":"'FR-16(7)(v)-3 PROD Demand'!O169+'FR-16(7)(v)-7 TRANS Demand'!O169+'FR-16(7)(v)-11 DIST Demand'!O169","v":0},{"$f":"'FR-16(7)(v)-4 PROD Energy'!O169+'FR-16(7)(v)-8 TRANS Energy'!O169+'FR-16(7)(v)-12 DIST Energy'!O169","v":0},{"$f":"'FR-16(7)(v)-5 PROD Cust'!O169+'FR-16(7)(v)-9 TRANS Cust'!O169+'FR-16(7)(v)-13 DIST Cust'!O169","v":49},49,0]
[36,null,{"$f":"'FR-16(7)(v)-1 Functional'!C170","v":"RWIP"},{"$f":"'FR-16(7)(v)-1 Functional'!D170","v":"K215"},null,{"$f":"'FR-16(7)(v)-14 TOTAL CLASS'!O170","v":0},{"$f":"'FR-16(7)(v)-3 PROD Demand'!O170+'FR-16(7)(v)-7 TRANS Demand'!O170+'FR-16(7)(v)-11 DIST Demand'!O170","v":0},{"$f":"'FR-16(7)(v)-4 PROD Energy'!O170+'FR-16(7)(v)-8 TRANS Energy'!O170+'FR-16(7)(v)-12 DIST Energy'!O170","v":0},{"$f":"'FR-16(7)(v)-5 PROD Cust'!O170+'FR-16(7)(v)-9 TRANS Cust'!O170+'FR-16(7)(v)-13 DIST Cust'!O170","v":0},{"$f":"SUM(G170:I170)","v":0},{"$f":"F170-J170","v":0}]
[37,null,{"$f":"'FR-16(7)(v)-1 Functional'!C171","v":"  TOTAL DIST DEPREC RESERVE"},null,null,{"$f":"SUM(F149:F170)","v":6569},{"$f":"SUM(G149:G170)","v":0},0,6569,6569,0]
[38]
[39,null,"TOTAL TRANS & DIST DEPREC RESERVE",null,null,{"$f":"F171+F145","v":847271},{"$f":"G171+G145","v":840702},{"$f":"H171+H145","v":0},{"$f":"I171+I145","v":6569},{"$f":"J171+J145","v":847271},{"$f":"F173-J173","v":0}]
[40,null,"TOTAL GROSS PTD PLANT DEPREC RESERVE",null,null,{"$f":"F147+F171","v":25657033},{"$f":"G147+G171","v":25650464},{"$f":"H147+H171","v":0},{"$f":"I147+I171","v":6569},{"$f":"J147+J171","v":25657033},{"$f":"F174-J174","v":0}]
[41]
[42,"GENERAL & INTANGIBLE PLANT"]
[43,null,{"$f":"'FR-16(7)(v)-1 Functional'!C177","v":"PRODUCTION - DEMAND"},{"$f":"'FR-16(7)(v)-1 Functional'!D177","v":"K201"},null,{"$f":"'FR-16(7)(v)-14 TOTAL CLASS'!O177","v":227542},{"$f":"'FR-16(7)(v)-3 PROD Demand'!O177+'FR-16(7)(v)-7 TRANS Demand'!O177+'FR-16(7)(v)-11 DIST Demand'!O177","v":227542},{"$f":"'FR-16(7)(v)-4 PROD Energy'!O177+'FR-16(7)(v)-8 TRANS Energy'!O177+'FR-16(7)(v)-12 DIST Energy'!O177","v":0},{"$f":"'FR-16(7)(v)-5 PROD Cust'!O177+'FR-16(7)(v)-9 TRANS Cust'!O177+'FR-16(7)(v)-13 DIST Cust'!O177","v":0},{"$f":"SUM(G177:I177)","v":227542},{"$f":"F177-J177","v":0}]
[44,null,{"$f":"'FR-16(7)(v)-1 Functional'!C178","v":"PRODUCTION - ENERGY"},{"$f":"'FR-16(7)(v)-1 Functional'!D178","v":"K301"},null,{"$f":"'FR-16(7)(v)-14 TOTAL CLASS'!O178","v":364178},{"$f":"'FR-16(7)(v)-3 PROD Demand'!O178+'FR-16(7)(v)-7 TRANS Demand'!O178+'FR-16(7)(v)-11 DIST Demand'!O178","v":0},{"$f":"'FR-16(7)(v)-4 PROD Energy'!O178+'FR-16(7)(v)-8 TRANS Energy'!O178+'FR-16(7)(v)-12 DIST Energy'!O178","v":364178},{"$f":"'FR-16(7)(v)-5 PROD Cust'!O178+'FR-16(7)(v)-9 TRANS Cust'!O178+'FR-16(7)(v)-13 DIST Cust'!O178","v":0},{"$f":"SUM(G178:I178)","v":364178},{"$f":"F178-J178","v":0}]
[45,null,{"$f":"'FR-16(7)(v)-1 Functional'!C179","v":"TRANSMISSION"},{"$f":"'FR-16(7)(v)-1 Functional'!D179","v":"K202"},null,{"$f":"'FR-16(7)(v)-14 TOTAL CLASS'!O179","v":35957},{"$f":"'FR-16(7)(v)-3 PROD Demand'!O179+'FR-16(7)(v)-7 TRANS Demand'!O179+'FR-16(7)(v)-11 DIST Demand'!O179","v":35957},{"$f":"'FR-16(7)(v)-4 PROD Energy'!O179+'FR-16(7)(v)-8 TRANS Energy'!O179+'FR-16(7)(v)-12 DIST Energy'!O179","v":0},{"$f":"'FR-16(7)(v)-5 PROD Cust'!O179+'FR-16(7)(v)-9 TRANS Cust'!O179+'FR-16(7)(v)-13 DIST Cust'!O179","v":0},35957,0]
[46,null,{"$f":"'FR-16(7)(v)-1 Functional'!C180","v":"DISTRIBUTION - DEMAND"},{"$f":"'FR-16(7)(v)-1 Functional'!D180","v":"K201"},null,{"$f":"'FR-16(7)(v)-14 TOTAL CLASS'!O180","v":120764},{"$f":"'FR-16(7)(v)-3 PROD Demand'!O180+'FR-16(7)(v)-7 TRANS Demand'!O180+'FR-16(7)(v)-11 DIST Demand'!O180","v":120764},{"$f":"'FR-16(7)(v)-4 PROD Energy'!O180+'FR-16(7)(v)-8 TRANS Energy'!O180+'FR-16(7)(v)-12 DIST Energy'!O180","v":0},{"$f":"'FR-16(7)(v)-5 PROD Cust'!O180+'FR-16(7)(v)-9 TRANS Cust'!O180+'FR-16(7)(v)-13 DIST Cust'!O180","v":0},120764,0]
[47,null,{"$f":"'FR-16(7)(v)-1 Functional'!C181","v":"DISTRIBUTION - CUSTOMER"},{"$f":"'FR-16(7)(v)-1 Functional'!D181","v":"K405"},null,{"$f":"'FR-16(7)(v)-14 TOTAL CLASS'!O181","v":69},{"$f":"'FR-16(7)(v)-3 PROD Demand'!O181+'FR-16(7)(v)-7 TRANS Demand'!O181+'FR-16(7)(v)-11 DIST Demand'!O181","v":0},{"$f":"'FR-16(7)(v)-4 PROD Energy'!O181+'FR-16(7)(v)-8 TRANS Energy'!O181+'FR-16(7)(v)-12 DIST Energy'!O181","v":0},{"$f":"'FR-16(7)(v)-5 PROD Cust'!O181+'FR-16(7)(v)-9 TRANS Cust'!O181+'FR-16(7)(v)-13 DIST Cust'!O181","v":69},69,0]
[48,null,{"$f":"'FR-16(7)(v)-1 Functional'!C182","v":"CUSTOMER ACCOUNTING"},{"$f":"'FR-16(7)(v)-1 Functional'!D182","v":"A308"},null,{"$f":"'FR-16(7)(v)-14 TOTAL CLASS'!O182","v":-197},{"$f":"'FR-16(7)(v)-3 PROD Demand'!O182+'FR-16(7)(v)-7 TRANS Demand'!O182+'FR-16(7)(v)-11 DIST Demand'!O182","v":0},{"$f":"'FR-16(7)(v)-4 PROD Energy'!O182+'FR-16(7)(v)-8 TRANS Energy'!O182+'FR-16(7)(v)-12 DIST Energy'!O182","v":0},{"$f":"'FR-16(7)(v)-5 PROD Cust'!O182+'FR-16(7)(v)-9 TRANS Cust'!O182+'FR-16(7)(v)-13 DIST Cust'!O182","v":-197},-197,0]
[49,null,{"$f":"'FR-16(7)(v)-1 Functional'!C183","v":"CUSTOMER SERVICE & INFORMATION"},{"$f":"'FR-16(7)(v)-1 Functional'!D183","v":"A310"},null,{"$f":"'FR-16(7)(v)-14 TOTAL CLASS'!O183","v":15},{"$f":"'FR-16(7)(v)-3 PROD Demand'!O183+'FR-16(7)(v)-7 TRANS Demand'!O183+'FR-16(7)(v)-11 DIST Demand'!O183","v":0},{"$f":"'FR-16(7)(v)-4 PROD Energy'!O183+'FR-16(7)(v)-8 TRANS Energy'!O183+'FR-16(7)(v)-12 DIST Energy'!O183","v":0},{"$f":"'FR-16(7)(v)-5 PROD Cust'!O183+'FR-16(7)(v)-9 TRANS Cust'!O183+'FR-16(7)(v)-13 DIST Cust'!O183","v":15},15,0]
[50,null,{"$f":"'FR-16(7)(v)-1 Functional'!C184","v":"SALES"},{"$f":"'FR-16(7)(v)-1 Functional'!D184","v":"A312"},null,{"$f":"'FR-16(7)(v)-14 TOTAL CLASS'!O184","v":0},{"$f":"'FR-16(7)(v)-3 PROD Demand'!O184+'FR-16(7)(v)-7 TRANS Demand'!O184+'FR-16(7)(v)-11 DIST Demand'!O184","v":0},{"$f":"'FR-16(7)(v)-4 PROD Energy'!O184+'FR-16(7)(v)-8 TRANS Energy'!O184+'FR-16(7)(v)-12 DIST Energy'!O184","v":0},{"$f":"'FR-16(7)(v)-5 PROD Cust'!O184+'FR-16(7)(v)-9 TRANS Cust'!O184+'FR-16(7)(v)-13 DIST Cust'!O184","v":0},0,0]
[51,null,{"$f":"'FR-16(7)(v)-1 Functional'!C185","v":"ADJUSTMENT"},{"$f":"'FR-16(7)(v)-1 Functional'!D185","v":"A315"},null,{"$f":"'FR-16(7)(v)-14 TOTAL CLASS'!O185","v":7004},{"$f":"'FR-16(7)(v)-3 PROD Demand'!O185+'FR-16(7)(v)-7 TRANS Demand'!O185+'FR-16(7)(v)-11 DIST Demand'!O185","v":775},{"$f":"'FR-16(7)(v)-4 PROD Energy'!O185+'FR-16(7)(v)-8 TRANS Energy'!O185+'FR-16(7)(v)-12 DIST Energy'!O185","v":6231},{"$f":"'FR-16(7)(v)-5 PROD Cust'!O185+'FR-16(7)(v)-9 TRANS Cust'!O185+'FR-16(7)(v)-13 DIST Cust'!O185","v":-2},7004,0]
[52,null,{"$f":"'FR-16(7)(v)-1 Functional'!C186","v":"  GENERAL & INTANG PLANT"},null,null,{"$f":"SUM(F176:F185)","v":755332},385038,370409,-115,755332,0]
[53]
[54,"COMMON & OTHER PLANT"]
[55,null,{"$f":"'FR-16(7)(v)-1 Functional'!C189","v":"PRODUCTION - DEMAND"},{"$f":"'FR-16(7)(v)-1 Functional'!D189","v":"K201"},null,{"$f":"'FR-16(7)(v)-14 TOTAL CLASS'!O189","v":307450},{"$f":"'FR-16(7)(v)-3 PROD Demand'!O189+'FR-16(7)(v)-7 TRANS Demand'!O189+'FR-16(7)(v)-11 DIST Demand'!O189","v":307450},{"$f":"'FR-16(7)(v)-4 PROD Energy'!O189+'FR-16(7)(v)-8 TRANS Energy'!O189+'FR-16(7)(v)-12 DIST Energy'!O189","v":0},{"$f":"'FR-16(7)(v)-5 PROD Cust'!O189+'FR-16(7)(v)-9 TRANS Cust'!O189+'FR-16(7)(v)-13 DIST Cust'!O189","v":0},{"$f":"SUM(G189:I189)","v":307450},{"$f":"F189-J189","v":0}]
[56,null,{"$f":"'FR-16(7)(v)-1 Functional'!C190","v":"PRODUCTION - ENERGY"},{"$f":"'FR-16(7)(v)-1 Functional'!D190","v":"K301"},null,{"$f":"'FR-16(7)(v)-14 TOTAL CLASS'!O190","v":492070},{"$f":"'FR-16(7)(v)-3 PROD Demand'!O190+'FR-16(7)(v)-7 TRANS Demand'!O190+'FR-16(7)(v)-11 DIST Demand'!O190","v":0},{"$f":"'FR-16(7)(v)-4 PROD Energy'!O190+'FR-16(7)(v)-8 TRANS Energy'!O190+'FR-16(7)(v)-12 DIST Energy'!O190","v":492070},{"$f":"'FR-16(7)(v)-5 PROD Cust'!O190+'FR-16(7)(v)-9 TRANS Cust'!O190+'FR-16(7)(v)-13 DIST Cust'!O190","v":0},{"$f":"SUM(G190:I190)","v":492070},{"$f":"F190-J190","v":0}]
[57,null,{"$f":"'FR-16(7)(v)-1 Functional'!C191","v":"TRANSMISSION"},{"$f":"'FR-16(7)(v)-1 Functional'!D191","v":"K202"},null,{"$f":"'FR-16(7)(v)-14 TOTAL CLASS'!O191","v":48584},{"$f":"'FR-16(7)(v)-3 PROD Demand'!O191+'FR-16(7)(v)-7 TRANS Demand'!O191+'FR-16(7)(v)-11 DIST Demand'!O191","v":48584},{"$f":"'FR-16(7)(v)-4 PROD Energy'!O191+'FR-16(7)(v)-8 TRANS Energy'!O191+'FR-16(7)(v)-12 DIST Energy'!O191","v":0},{"$f":"'FR-16(7)(v)-5 PROD Cust'!O191+'FR-16(7)(v)-9 TRANS Cust'!O191+'FR-16(7)(v)-13 DIST Cust'!O191","v":0},48584,0]
[58,null,{"$f":"'FR-16(7)(v)-1 Functional'!C192","v":"DISTRIBUTION - DEMAND"},{"$f":"'FR-16(7)(v)-1 Functional'!D192","v":"K201"},null,{"$f":"'FR-16(7)(v)-14 TOTAL CLASS'!O192","v":163174},{"$f":"'FR-16(7)(v)-3 PROD Demand'!O192+'FR-16(7)(v)-7 TRANS Demand'!O192+'FR-16(7)(v)-11 DIST Demand'!O192","v":163174},{"$f":"'FR-16(7)(v)-4 PROD Energy'!O192+'FR-16(7)(v)-8 TRANS Energy'!O192+'FR-16(7)(v)-12 DIST Energy'!O192","v":0},{"$f":"'FR-16(7)(v)-5 PROD Cust'!O192+'FR-16(7)(v)-9 TRANS Cust'!O192+'FR-16(7)(v)-13 DIST Cust'!O192","v":0},163174,0]
[59,null,{"$f":"'FR-16(7)(v)-1 Functional'!C193","v":"DISTRIBUTION - CUSTOMER"},{"$f":"'FR-16(7)(v)-1 Functional'!D193","v":"K405"},null,{"$f":"'FR-16(7)(v)-14 TOTAL CLASS'!O193","v":93},{"$f":"'FR-16(7)(v)-3 PROD Demand'!O193+'FR-16(7)(v)-7 TRANS Demand'!O193+'FR-16(7)(v)-11 DIST Demand'!O193","v":0},{"$f":"'FR-16(7)(v)-4 PROD Energy'!O193+'FR-16(7)(v)-8 TRANS Energy'!O193+'FR-16(7)(v)-12 DIST Energy'!O193","v":0},{"$f":"'FR-16(7)(v)-5 PROD Cust'!O193+'FR-16(7)(v)-9 TRANS Cust'!O193+'FR-16(7)(v)-13 DIST Cust'!O193","v":93},93,0]
[60,null,{"$f":"'FR-16(7)(v)-1 Functional'!C194","v":"CUSTOMER ACCOUNTING"},{"$f":"'FR-16(7)(v)-1 Functional'!D194","v":"A308"},null,{"$f":"'FR-16(7)(v)-14 TOTAL CLASS'!O194","v":-266},{"$f":"'FR-16(7)(v)-3 PROD Demand'!O194+'FR-16(7)(v)-7 TRANS Demand'!O194+'FR-16(7)(v)-11 DIST Demand'!O194","v":0},{"$f":"'FR-16(7)(v)-4 PROD Energy'!O194+'FR-16(7)(v)-8 TRANS Energy'!O194+'FR-16(7)(v)-12 DIST Energy'!O194","v":0},{"$f":"'FR-16(7)(v)-5 PROD Cust'!O194+'FR-16(7)(v)-9 TRANS Cust'!O194+'FR-16(7)(v)-13 DIST Cust'!O194","v":-266},-266,0]
[61,null,{"$f":"'FR-16(7)(v)-1 Functional'!C195","v":"CUSTOMER SERVICE & INFORMATION"},{"$f":"'FR-16(7)(v)-1 Functional'!D195","v":"A310"},null,{"$f":"'FR-16(7)(v)-14 TOTAL CLASS'!O195","v":21},{"$f":"'FR-16(7)(v)-3 PROD Demand'!O195+'FR-16(7)(v)-7 TRANS Demand'!O195+'FR-16(7)(v)-11 DIST Demand'!O195","v":0},{"$f":"'FR-16(7)(v)-4 PROD Energy'!O195+'FR-16(7)(v)-8 TRANS Energy'!O195+'FR-16(7)(v)-12 DIST Energy'!O195","v":0},{"$f":"'FR-16(7)(v)-5 PROD Cust'!O195+'FR-16(7)(v)-9 TRANS Cust'!O195+'FR-16(7)(v)-13 DIST Cust'!O195","v":21},21,0]
[62,null,{"$f":"'FR-16(7)(v)-1 Functional'!C196","v":"SALES"},{"$f":"'FR-16(7)(v)-1 Functional'!D196","v":"A312"},null,{"$f":"'FR-16(7)(v)-14 TOTAL CLASS'!O196","v":0},{"$f":"'FR-16(7)(v)-3 PROD Demand'!O196+'FR-16(7)(v)-7 TRANS Demand'!O196+'FR-16(7)(v)-11 DIST Demand'!O196","v":0},{"$f":"'FR-16(7)(v)-4 PROD Energy'!O196+'FR-16(7)(v)-8 TRANS Energy'!O196+'FR-16(7)(v)-12 DIST Energy'!O196","v":0},{"$f":"'FR-16(7)(v)-5 PROD Cust'!O196+'FR-16(7)(v)-9 TRANS Cust'!O196+'FR-16(7)(v)-13 DIST Cust'!O196","v":0},0,0]
[63,null,{"$f":"'FR-16(7)(v)-1 Functional'!C197","v":"ADJUSTMENT"},{"$f":"'FR-16(7)(v)-1 Functional'!D197","v":"A315"},null,{"$f":"'FR-16(7)(v)-14 TOTAL CLASS'!O197","v":393},{"$f":"'FR-16(7)(v)-3 PROD Demand'!O197+'FR-16(7)(v)-7 TRANS Demand'!O197+'FR-16(7)(v)-11 DIST Demand'!O197","v":43},{"$f":"'FR-16(7)(v)-4 PROD Energy'!O197+'FR-16(7)(v)-8 TRANS Energy'!O197+'FR-16(7)(v)-12 DIST Energy'!O197","v":350},{"$f":"'FR-16(7)(v)-5 PROD Cust'!O197+'FR-16(7)(v)-9 TRANS Cust'!O197+'FR-16(7)(v)-13 DIST Cust'!O197","v":0},393,0]
[64,null,{"$f":"'FR-16(7)(v)-1 Functional'!C198","v":"  COMMON & OTHER PLANT IN SERVICE"},null,null,{"$f":"SUM(F189:F197)","v":1011519},{"$f":"SUM(G188:G197)","v":519251},{"$f":"SUM(H188:H197)","v":492420},{"$f":"SUM(I188:I197)","v":-152},{"$f":"SUM(J188:J197)","v":1011519},{"$f":"SUM(K188:K197)","v":0}]
[65]
[66,"TOTAL DEPRECIATION RESERVE",null,null,null,{"$f":"F198+F186+F171+F145+F139","v":27423884},26554753,862829,6302,27423884,0]
[]
[{"$f":"co_name","v":"DUKE ENERGY KENTUCKY, INC."},null,null,null,null,null,null,null,null,{"$f":"J1","v":"FR-16(7)(v)-23"}]
[{"$f":"$A$2","v":"TT CLASSIFIED - ELECTRIC COST OF SERVICE"},null,null,null,null,null,null,null,null,{"$f":"J2","v":"WITNESS RESPONSIBLE:"}]
[{"$f":"case_name","v":"CASE NO: 2019-00271"},null,null,null,null,null,null,null,null,{"$f":"Witness","v":"JAMES E. ZIOLKOWSKI"}]
[{"$f":"data_filing","v":"DATA: 12 MONTHS ACTUAL  & 0 MONTHS ESTIMATED"},null,null,null,null,null,null,null,null,{"$f":"\"PAGE \"&Pages2-11&\" OF \"&Pages2","v":"PAGE 4 OF 15"}]
[{"$f":"type","v":"TYPE OF FILING: \"X\" ORIGINAL   UPDATED    REVISED  "}]
[]
[]
["LINE",null,null,null,null,"TOTAL","CLASSIFIED",null,null,"TOTAL","ALL"]
["NO.",{"$f":"\"NET ELECTRIC PLANT\"","v":"NET ELECTRIC PLANT"},null,"ALLO",null,{"$f":"$F$9","v":"TT"},{"$f":"G9","v":"DEMAND"},"ENERGY","CUSTOMER","AT ISSUE","OTHER"]
[null,null,"Schedule 4",null,null,null,3,4,5]
[1,"PRODUCTION PLANT"]
[2,null,{"$f":"'FR-16(7)(v)-1 Functional'!C213","v":"PRODUCTION STEAM"},null,null,{"$f":"F59-F136","v":18352799},18352799,0,0,18352799,0]
[3,null,{"$f":"'FR-16(7)(v)-1 Functional'!C214","v":"PRODUCTION OTHER"},null,null,7998760,7998760,0,0,7998760,0]
[4,null,{"$f":"'FR-16(7)(v)-1 Functional'!C215","v":"ADJUSTMENT"},null,null,-65661,-65661,0,0,-65661,0]
[5,null,{"$f":"'FR-16(7)(v)-1 Functional'!C216","v":"  NET PRODUCTION PLANT"},null,null,{"$f":"SUM(F213:F215)","v":26285898},26285898,0,0,26285898,0]
[6]
[7,"TRANSMISSION PLANT"]
[8,null,{"$f":"'FR-16(7)(v)-1 Functional'!C219","v":"MAIN STEP-UP TRANSFORMERS"},null,null,{"$f":"F65-F142","v":0},0,0,0,0,0]
[9,null,{"$f":"'FR-16(7)(v)-1 Functional'!C220","v":"OTHER TRANSMISSION"},null,null,2215484,2215484,0,0,2215484,0]
[10,null,{"$f":"'FR-16(7)(v)-1 Functional'!C221","v":"ADJUSTMENT"},null,null,2966,2966,0,0,2966,0]
[11,null,{"$f":"'FR-16(7)(v)-1 Functional'!C222","v":"    NET TRANSMISSION PLANT"},null,null,{"$f":"SUM(F218:F221)","v":2218450},2218450,0,0,2218450,0]
[12]
[13,"NET PROD & TRANS PLANT",null,null,null,{"$f":"F70-F147","v":28504348},28504348,0,0,28504348,0]
[14]
[15,"DISTRIBUTION PLANT"]
[16,null,{"$f":"'FR-16(7)(v)-1 Functional'!C227","v":"SUBSTATIONS"},null,null,{"$f":"F73-F150","v":0},0,0,0,0,0]
[17,null,{"$f":"'FR-16(7)(v)-1 Functional'!C228","v":"POLES, TOWERS  & FIXTURES - PRIMARY - DEMAND"},null,null,0,0,0,0,0,0]
[18,null,{"$f":"'FR-16(7)(v)-1 Functional'!C229","v":"POLES, TOWERS  & FIXTURES - PRIMARY - CUSTOMER"},null,null,{"$f":"F75-F152","v":0},0,0,0,0,0]
[19,null,{"$f":"'FR-16(7)(v)-1 Functional'!C230","v":"POLES, TOWERS  & FIXTURES - SECONDARY - DEMAND"},null,null,{"$f":"F76-F153","v":0},0,0,0,0,0]
[20,null,{"$f":"'FR-16(7)(v)-1 Functional'!C231","v":"POLES, TOWERS  & FIXTURES - SECONDARY - CUSTOMER"},null,null,{"$f":"F77-F154","v":0},0,0,0,0,0]
[21,null,{"$f":"'FR-16(7)(v)-1 Functional'!C232","v":"CONDUCTORS - OVERHEAD / PRIMARY - DEMAND"},null,null,{"$f":"F78-F155","v":0},0,0,0,0,0]
[22,null,{"$f":"'FR-16(7)(v)-1 Functional'!C233","v":"CONDUCTORS - OVERHEAD / PRIMARY - CUSTOMER"},null,null,{"$f":"F79-F156","v":0},0,0,0,0,0]
[23,null,{"$f":"'FR-16(7)(v)-1 Functional'!C234","v":"CONDUCTORS - OVERHEAD / SECONDARY - DEMAND"},null,null,{"$f":"F80-F157","v":0},0,0,0,0,0]
[24,null,{"$f":"'FR-16(7)(v)-1 Functional'!C235","v":"CONDUCTORS - OVERHEAD / SECONDARY - CUSTOMER"},null,null,{"$f":"F81-F158","v":0},0,0,0,0,0]
[25,null,{"$f":"'FR-16(7)(v)-1 Functional'!C236","v":"CONDUCTORS - UNDERGROUND / PRIMARY - DEMAND"},null,null,{"$f":"F82-F159","v":0},0,0,0,0,0]
[26,null,{"$f":"'FR-16(7)(v)-1 Functional'!C237","v":"CONDUCTORS - UNDERGROUND / PRIMARY - CUSTOMER"},null,null,{"$f":"F83-F160","v":0},0,0,0,0,0]
[27,null,{"$f":"'FR-16(7)(v)-1 Functional'!C238","v":"CONDUCTORS - UNDERGROUND / SECONDARY - DEMAND"},null,null,{"$f":"F84-F161","v":0},0,0,0,0,0]
[28,null,{"$f":"'FR-16(7)(v)-1 Functional'!C239","v":"CONDUCTORS - UNDERGROUND / SECONDARY - CUSTOMER"},null,null,{"$f":"F85-F162","v":0},0,0,0,0,0]
[29,null,{"$f":"'FR-16(7)(v)-1 Functional'!C240","v":"TRANSFORMERS DEMAND RELATED"},null,null,{"$f":"F86-F163","v":0},0,0,0,0,0]
[30,null,{"$f":"'FR-16(7)(v)-1 Functional'!C241","v":"TRANSFORMERS CUSTOMER RELATED"},null,null,0,0,0,0,0,0]
[31,null,{"$f":"'FR-16(7)(v)-1 Functional'!C242","v":"SERVICES"},null,null,4401,0,0,4401,4401,0]
[32,null,{"$f":"'FR-16(7)(v)-1 Functional'!C243","v":"METERS"},null,null,4050,0,0,4050,4050,0]
[33,null,{"$f":"'FR-16(7)(v)-1 Functional'!C244","v":"STREET LIGHTS"},null,null,0,0,0,0,0,0]
[34,null,{"$f":"'FR-16(7)(v)-1 Functional'!C245","v":"ADJUSTMENT  "},null,null,-15,0,0,-15,-15,0]
[35,null,{"$f":"'FR-16(7)(v)-1 Functional'!C246","v":"CONSTRUCTION NOT CLASSIFIED"},null,null,2983,0,0,2983,2983,0]
[36,null,{"$f":"'FR-16(7)(v)-1 Functional'!C247","v":"RWIP"},null,null,0,0,0,0,0,0]
[37,null,{"$f":"'FR-16(7)(v)-1 Functional'!C248","v":"  NET DISTRIBUTION PLANT"},null,null,{"$f":"SUM(F226:F247)","v":11419},{"$f":"SUM(G226:G247)","v":0},0,11419,11419,0]
[38]
[39,"NET PTD PLANT",null,null,null,{"$f":"F96-F173","v":2229869},2218450,0,11419,2229869,0]
[40,"NET TRANS & DIST PLANT",null,null,null,28515767,28504348,0,11419,28515767,0]
[41]
[42,"GENERAL & INTANGIBLE PLANT"]
[43,null,{"$f":"'FR-16(7)(v)-1 Functional'!C254","v":"PRODUCTION - DEMAND"},null,null,{"$f":"F100-F177","v":478538},478538,0,0,478538,0]
[44,null,{"$f":"'FR-16(7)(v)-1 Functional'!C255","v":"PRODUCTION - ENERGY"},null,null,765894,0,765894,0,765894,0]
[45,null,{"$f":"'FR-16(7)(v)-1 Functional'!C256","v":"TRANSMISSION"},null,null,75619,75619,0,0,75619,0]
[46,null,{"$f":"'FR-16(7)(v)-1 Functional'!C257","v":"DISTRIBUTION - DEMAND"},null,null,253976,253976,0,0,253976,0]
[47,null,{"$f":"'FR-16(7)(v)-1 Functional'!C258","v":"DISTRIBUTION - CUSTOMER"}]
[48,null,{"$f":"'FR-16(7)(v)-1 Functional'!C259","v":"CUSTOMER ACCOUNTING"},null,null,{"$f":"F105-F182","v":-415},0,0,-415,-415,0]
[49,null,{"$f":"'FR-16(7)(v)-1 Functional'!C260","v":"CUSTOMER SERVICE & INFORMATION"},null,null,33,0,0,33,33,0]
[50,null,{"$f":"'FR-16(7)(v)-1 Functional'!C261","v":"SALES"},null,null,0,0,0,0,0,0]
[51,null,{"$f":"'FR-16(7)(v)-1 Functional'!C262","v":"ADJUSTMENT"},null,null,-7004,-775,-6231,2,-7004,0]
[52,null,{"$f":"'FR-16(7)(v)-1 Functional'!C263","v":"  NET GENERAL & INTANG PLANT"},null,null,{"$f":"SUM(F253:F262)","v":1566641},807358,759663,-380,1566641,0]
[53]
[54,"COMMON & OTHER PLANT"]
[55,null,{"$f":"'FR-16(7)(v)-1 Functional'!C266","v":"PRODUCTION - DEMAND"},null,null,{"$f":"F112-F189","v":92179},92179,0,0,92179,0]
[56,null,{"$f":"'FR-16(7)(v)-1 Functional'!C267","v":"PRODUCTION - ENERGY"},null,null,147531,0,147531,0,147531,0]
[57,null,{"$f":"'FR-16(7)(v)-1 Functional'!C268","v":"TRANSMISSION"},null,null,14566,14566,0,0,14566,0]
[58,null,{"$f":"'FR-16(7)(v)-1 Functional'!C269","v":"DISTRIBUTION - DEMAND"},null,null,48922,48922,0,0,48922,0]
[59,null,{"$f":"'FR-16(7)(v)-1 Functional'!C270","v":"DISTRIBUTION - CUSTOMER"}]
[60,null,{"$f":"'FR-16(7)(v)-1 Functional'!C271","v":"CUSTOMER ACCOUNTING"},null,null,{"$f":"F117-F194","v":-80},0,0,-80,-80,0]
[61,null,{"$f":"'FR-16(7)(v)-1 Functional'!C272","v":"CUSTOMER SERVICE & INFORMATION"},null,null,6,0,0,6,6,0]
[62,null,{"$f":"'FR-16(7)(v)-1 Functional'!C273","v":"SALES"},null,null,0,0,0,0,0,0]
[63,null,{"$f":"'FR-16(7)(v)-1 Functional'!C274","v":"ADJUSTMENT"},null,null,-393,-43,-350,0,-393,0]
[64,null,{"$f":"'FR-16(7)(v)-1 Functional'!C275","v":"  COMMON & OTHER PLANT IN SERVICE"},null,null,{"$f":"SUM(F265:F274)","v":302731},155624,147181,-74,302731,0]
[65]
[66,null,{"$f":"'FR-16(7)(v)-1 Functional'!C277","v":"NET ELECTRIC PLANT IN SERVICE"},null,null,{"$f":"F275+F263+F248+F222+F216","v":30385139},29467330,906844,10965,30385139,0]
[]
[{"$f":"co_name","v":"DUKE ENERGY KENTUCKY, INC."},null,null,null,null,null,null,null,null,{"$f":"J1","v":"FR-16(7)(v)-23"}]
[{"$f":"$A$2","v":"TT CLASSIFIED - ELECTRIC COST OF SERVICE"},null,null,null,null,null,null,null,null,{"$f":"J2","v":"WITNESS RESPONSIBLE:"}]
[{"$f":"case_name","v":"CASE NO: 2019-00271"},null,null,null,null,null,null,null,null,{"$f":"Witness","v":"JAMES E. ZIOLKOWSKI"}]
[{"$f":"data_filing","v":"DATA: 12 MONTHS ACTUAL  & 0 MONTHS ESTIMATED"},null,null,null,null,null,null,null,null,{"$f":"\"PAGE \"&Pages2-10&\" OF \"&Pages2","v":"PAGE 5 OF 15"}]
[{"$f":"type","v":"TYPE OF FILING: \"X\" ORIGINAL   UPDATED    REVISED  "}]
[]
[]
["LINE",null,null,null,null,"TOTAL","CLASSIFIED",null,null,"TOTAL","ALL"]
["NO.","SUBTRACTIVE RATE BASE ADJUSTMENTS",null,"ALLO",null,{"$f":"$F$9","v":"TT"},{"$f":"G9","v":"DEMAND"},"ENERGY","CUSTOMER","AT ISSUE","OTHER"]
[null,null,"Schedule 5",null,null,null,3,4,5]
[1,"RATE BASE ADJUSTMENTS"]
[2,"ACCUMULATED DEFERRED INCOME TAXES"]
[3," ACCUM DEF INC TAXES (282)"]
[4,null,{"$f":"'FR-16(7)(v)-1 Functional'!C292","v":"LIBERALIZED DEPRECIATION"},{"$f":"'FR-16(7)(v)-1 Functional'!D292","v":"NP29"}," ",{"$f":"'FR-16(7)(v)-14 TOTAL CLASS'!O292","v":1799445},{"$f":"'FR-16(7)(v)-3 PROD Demand'!O292+'FR-16(7)(v)-7 TRANS Demand'!O292+'FR-16(7)(v)-11 DIST Demand'!O292","v":1745095},{"$f":"'FR-16(7)(v)-4 PROD Energy'!O292+'FR-16(7)(v)-8 TRANS Energy'!O292+'FR-16(7)(v)-12 DIST Energy'!O292","v":53696},{"$f":"'FR-16(7)(v)-5 PROD Cust'!O292+'FR-16(7)(v)-9 TRANS Cust'!O292+'FR-16(7)(v)-13 DIST Cust'!O292","v":654},{"$f":"SUM(G292:I292)","v":1799445},{"$f":"F292-J292","v":0}]
[5,null,{"$f":"'FR-16(7)(v)-1 Functional'!C293","v":"LEASED METERS"},{"$f":"'FR-16(7)(v)-1 Functional'!D293","v":"NP29"}," ",{"$f":"'FR-16(7)(v)-14 TOTAL CLASS'!O293","v":40816},{"$f":"'FR-16(7)(v)-3 PROD Demand'!O293+'FR-16(7)(v)-7 TRANS Demand'!O293+'FR-16(7)(v)-11 DIST Demand'!O293","v":39583},{"$f":"'FR-16(7)(v)-4 PROD Energy'!O293+'FR-16(7)(v)-8 TRANS Energy'!O293+'FR-16(7)(v)-12 DIST Energy'!O293","v":1218},{"$f":"'FR-16(7)(v)-5 PROD Cust'!O293+'FR-16(7)(v)-9 TRANS Cust'!O293+'FR-16(7)(v)-13 DIST Cust'!O293","v":15},40816,0]
[6,null,{"$f":"'FR-16(7)(v)-1 Functional'!C294","v":"CONTRIB AID CONSTR"},{"$f":"'FR-16(7)(v)-1 Functional'!D294","v":"D249"}," ",{"$f":"'FR-16(7)(v)-14 TOTAL CLASS'!O294","v":0},{"$f":"'FR-16(7)(v)-3 PROD Demand'!O294+'FR-16(7)(v)-7 TRANS Demand'!O294+'FR-16(7)(v)-11 DIST Demand'!O294","v":0},{"$f":"'FR-16(7)(v)-4 PROD Energy'!O294+'FR-16(7)(v)-8 TRANS Energy'!O294+'FR-16(7)(v)-12 DIST Energy'!O294","v":0},{"$f":"'FR-16(7)(v)-5 PROD Cust'!O294+'FR-16(7)(v)-9 TRANS Cust'!O294+'FR-16(7)(v)-13 DIST Cust'!O294","v":0},0,0]
[7,null,{"$f":"'FR-16(7)(v)-1 Functional'!C295","v":"TAX INTEREST, EXPENSING, DEPR."},{"$f":"'FR-16(7)(v)-1 Functional'!D295","v":"NP29"}," ",{"$f":"'FR-16(7)(v)-14 TOTAL CLASS'!O295","v":1796709},{"$f":"'FR-16(7)(v)-3 PROD Demand'!O295+'FR-16(7)(v)-7 TRANS Demand'!O295+'FR-16(7)(v)-11 DIST Demand'!O295","v":1742441},{"$f":"'FR-16(7)(v)-4 PROD Energy'!O295+'FR-16(7)(v)-8 TRANS Energy'!O295+'FR-16(7)(v)-12 DIST Energy'!O295","v":53615},{"$f":"'FR-16(7)(v)-5 PROD Cust'!O295+'FR-16(7)(v)-9 TRANS Cust'!O295+'FR-16(7)(v)-13 DIST Cust'!O295","v":653},1796709,0]
[8,null,{"$f":"'FR-16(7)(v)-1 Functional'!C296","v":"AFUDC IN DEBT"},{"$f":"'FR-16(7)(v)-1 Functional'!D296","v":"NP29"}," ",{"$f":"'FR-16(7)(v)-14 TOTAL CLASS'!O296","v":0},{"$f":"'FR-16(7)(v)-3 PROD Demand'!O296+'FR-16(7)(v)-7 TRANS Demand'!O296+'FR-16(7)(v)-11 DIST Demand'!O296","v":0},{"$f":"'FR-16(7)(v)-4 PROD Energy'!O296+'FR-16(7)(v)-8 TRANS Energy'!O296+'FR-16(7)(v)-12 DIST Energy'!O296","v":0},{"$f":"'FR-16(7)(v)-5 PROD Cust'!O296+'FR-16(7)(v)-9 TRANS Cust'!O296+'FR-16(7)(v)-13 DIST Cust'!O296","v":0},0,0]
[9,null,{"$f":"'FR-16(7)(v)-1 Functional'!C297","v":"CASUALTY LOSS"},{"$f":"'FR-16(7)(v)-1 Functional'!D297","v":"K411"}," ",{"$f":"'FR-16(7)(v)-14 TOTAL CLASS'!O297","v":-2569},{"$f":"'FR-16(7)(v)-3 PROD Demand'!O297+'FR-16(7)(v)-7 TRANS Demand'!O297+'FR-16(7)(v)-11 DIST Demand'!O297","v":0},{"$f":"'FR-16(7)(v)-4 PROD Energy'!O297+'FR-16(7)(v)-8 TRANS Energy'!O297+'FR-16(7)(v)-12 DIST Energy'!O297","v":0},{"$f":"'FR-16(7)(v)-5 PROD Cust'!O297+'FR-16(7)(v)-9 TRANS Cust'!O297+'FR-16(7)(v)-13 DIST Cust'!O297","v":-2569},-2569,0]
[10,null,{"$f":"'FR-16(7)(v)-1 Functional'!C298","v":"NON-CASH OVERHEADS"},{"$f":"'FR-16(7)(v)-1 Functional'!D298","v":"G229"}," ",{"$f":"'FR-16(7)(v)-14 TOTAL CLASS'!O298","v":0},{"$f":"'FR-16(7)(v)-3 PROD Demand'!O298+'FR-16(7)(v)-7 TRANS Demand'!O298+'FR-16(7)(v)-11 DIST Demand'!O298","v":0},{"$f":"'FR-16(7)(v)-4 PROD Energy'!O298+'FR-16(7)(v)-8 TRANS Energy'!O298+'FR-16(7)(v)-12 DIST Energy'!O298","v":0},{"$f":"'FR-16(7)(v)-5 PROD Cust'!O298+'FR-16(7)(v)-9 TRANS Cust'!O298+'FR-16(7)(v)-13 DIST Cust'!O298","v":0},0,0]
[11,null,{"$f":"'FR-16(7)(v)-1 Functional'!C299","v":"PLANT FAS 109"},{"$f":"'FR-16(7)(v)-1 Functional'!D299","v":"NP29"}," ",{"$f":"'FR-16(7)(v)-14 TOTAL CLASS'!O299","v":0},{"$f":"'FR-16(7)(v)-3 PROD Demand'!O299+'FR-16(7)(v)-7 TRANS Demand'!O299+'FR-16(7)(v)-11 DIST Demand'!O299","v":0},{"$f":"'FR-16(7)(v)-4 PROD Energy'!O299+'FR-16(7)(v)-8 TRANS Energy'!O299+'FR-16(7)(v)-12 DIST Energy'!O299","v":0},{"$f":"'FR-16(7)(v)-5 PROD Cust'!O299+'FR-16(7)(v)-9 TRANS Cust'!O299+'FR-16(7)(v)-13 DIST Cust'!O299","v":0},0,0]
[12,null,{"$f":"'FR-16(7)(v)-1 Functional'!C300","v":"MISCELLANEOUS"},{"$f":"'FR-16(7)(v)-1 Functional'!D300","v":"NP29"},null,{"$f":"'FR-16(7)(v)-14 TOTAL CLASS'!O300","v":1695435},{"$f":"'FR-16(7)(v)-3 PROD Demand'!O300+'FR-16(7)(v)-7 TRANS Demand'!O300+'FR-16(7)(v)-11 DIST Demand'!O300","v":1644226},{"$f":"'FR-16(7)(v)-4 PROD Energy'!O300+'FR-16(7)(v)-8 TRANS Energy'!O300+'FR-16(7)(v)-12 DIST Energy'!O300","v":50593},{"$f":"'FR-16(7)(v)-5 PROD Cust'!O300+'FR-16(7)(v)-9 TRANS Cust'!O300+'FR-16(7)(v)-13 DIST Cust'!O300","v":616},1695435,0]
[13,null,{"$f":"'FR-16(7)(v)-1 Functional'!C301","v":"  TOTAL ACCOUNT 282"},null,null,{"$f":"SUM(F292:F300)","v":5329836},5171345,159122,-631,5329836,0]
[14]
[15," ACCUM DEF INC TAXES (283)"]
[16,null,{"$f":"'FR-16(7)(v)-1 Functional'!C304","v":"TRANSITION FROM MISO TO PJM"},{"$f":"'FR-16(7)(v)-1 Functional'!D304","v":"NP29"},null,{"$f":"'FR-16(7)(v)-14 TOTAL CLASS'!O304","v":-96553},{"$f":"'FR-16(7)(v)-3 PROD Demand'!O304+'FR-16(7)(v)-7 TRANS Demand'!O304+'FR-16(7)(v)-11 DIST Demand'!O304","v":-93637},{"$f":"'FR-16(7)(v)-4 PROD Energy'!O304+'FR-16(7)(v)-8 TRANS Energy'!O304+'FR-16(7)(v)-12 DIST Energy'!O304","v":-2881},{"$f":"'FR-16(7)(v)-5 PROD Cust'!O304+'FR-16(7)(v)-9 TRANS Cust'!O304+'FR-16(7)(v)-13 DIST Cust'!O304","v":-35},{"$f":"SUM(G304:I304)","v":-96553},{"$f":"F304-J304","v":0}]
[17,null,{"$f":"'FR-16(7)(v)-1 Functional'!C305","v":"DEFERRED PLANT COSTS"},{"$f":"'FR-16(7)(v)-1 Functional'!D305","v":"NP29"},null,{"$f":"'FR-16(7)(v)-14 TOTAL CLASS'!O305","v":18810},{"$f":"'FR-16(7)(v)-3 PROD Demand'!O305+'FR-16(7)(v)-7 TRANS Demand'!O305+'FR-16(7)(v)-11 DIST Demand'!O305","v":18242},{"$f":"'FR-16(7)(v)-4 PROD Energy'!O305+'FR-16(7)(v)-8 TRANS Energy'!O305+'FR-16(7)(v)-12 DIST Energy'!O305","v":561},{"$f":"'FR-16(7)(v)-5 PROD Cust'!O305+'FR-16(7)(v)-9 TRANS Cust'!O305+'FR-16(7)(v)-13 DIST Cust'!O305","v":7},18810,0]
[18,null,{"$f":"'FR-16(7)(v)-1 Functional'!C306","v":"MISCELLANEOUS"},{"$f":"'FR-16(7)(v)-1 Functional'!D306","v":"OM39"},null,{"$f":"'FR-16(7)(v)-14 TOTAL CLASS'!O306","v":495851},{"$f":"'FR-16(7)(v)-3 PROD Demand'!O306+'FR-16(7)(v)-7 TRANS Demand'!O306+'FR-16(7)(v)-11 DIST Demand'!O306","v":68268},{"$f":"'FR-16(7)(v)-4 PROD Energy'!O306+'FR-16(7)(v)-8 TRANS Energy'!O306+'FR-16(7)(v)-12 DIST Energy'!O306","v":427584},{"$f":"'FR-16(7)(v)-5 PROD Cust'!O306+'FR-16(7)(v)-9 TRANS Cust'!O306+'FR-16(7)(v)-13 DIST Cust'!O306","v":-1},495851,0]
[19,null,{"$f":"'FR-16(7)(v)-1 Functional'!C307","v":"ENVIRONMENTAL RESERVE"},{"$f":"'FR-16(7)(v)-1 Functional'!D307","v":"NP29"},null,{"$f":"'FR-16(7)(v)-14 TOTAL CLASS'!O307","v":0},{"$f":"'FR-16(7)(v)-3 PROD Demand'!O307+'FR-16(7)(v)-7 TRANS Demand'!O307+'FR-16(7)(v)-11 DIST Demand'!O307","v":0},{"$f":"'FR-16(7)(v)-4 PROD Energy'!O307+'FR-16(7)(v)-8 TRANS Energy'!O307+'FR-16(7)(v)-12 DIST Energy'!O307","v":0},{"$f":"'FR-16(7)(v)-5 PROD Cust'!O307+'FR-16(7)(v)-9 TRANS Cust'!O307+'FR-16(7)(v)-13 DIST Cust'!O307","v":0},0,0]
[20,null,{"$f":"'FR-16(7)(v)-1 Functional'!C308","v":"POST IN-SERVICE CARRYING COSTS"},{"$f":"'FR-16(7)(v)-1 Functional'!D308","v":"NP29"},null,{"$f":"'FR-16(7)(v)-14 TOTAL CLASS'!O308","v":0},{"$f":"'FR-16(7)(v)-3 PROD Demand'!O308+'FR-16(7)(v)-7 TRANS Demand'!O308+'FR-16(7)(v)-11 DIST Demand'!O308","v":0},{"$f":"'FR-16(7)(v)-4 PROD Energy'!O308+'FR-16(7)(v)-8 TRANS Energy'!O308+'FR-16(7)(v)-12 DIST Energy'!O308","v":0},{"$f":"'FR-16(7)(v)-5 PROD Cust'!O308+'FR-16(7)(v)-9 TRANS Cust'!O308+'FR-16(7)(v)-13 DIST Cust'!O308","v":0},0,0]
[21,null,{"$f":"'FR-16(7)(v)-1 Functional'!C309","v":"ARO CUMULATIVE EFFECT"},{"$f":"'FR-16(7)(v)-1 Functional'!D309","v":"NP29"},null,{"$f":"'FR-16(7)(v)-14 TOTAL CLASS'!O309","v":0},{"$f":"'FR-16(7)(v)-3 PROD Demand'!O309+'FR-16(7)(v)-7 TRANS Demand'!O309+'FR-16(7)(v)-11 DIST Demand'!O309","v":0},{"$f":"'FR-16(7)(v)-4 PROD Energy'!O309+'FR-16(7)(v)-8 TRANS Energy'!O309+'FR-16(7)(v)-12 DIST Energy'!O309","v":0},{"$f":"'FR-16(7)(v)-5 PROD Cust'!O309+'FR-16(7)(v)-9 TRANS Cust'!O309+'FR-16(7)(v)-13 DIST Cust'!O309","v":0},0,0]
[22,null,{"$f":"'FR-16(7)(v)-1 Functional'!C310","v":"LOSS ON REACQUIRED DEBT"},{"$f":"'FR-16(7)(v)-1 Functional'!D310","v":"D249"},null,{"$f":"'FR-16(7)(v)-14 TOTAL CLASS'!O310","v":0},{"$f":"'FR-16(7)(v)-3 PROD Demand'!O310+'FR-16(7)(v)-7 TRANS Demand'!O310+'FR-16(7)(v)-11 DIST Demand'!O310","v":0},{"$f":"'FR-16(7)(v)-4 PROD Energy'!O310+'FR-16(7)(v)-8 TRANS Energy'!O310+'FR-16(7)(v)-12 DIST Energy'!O310","v":0},{"$f":"'FR-16(7)(v)-5 PROD Cust'!O310+'FR-16(7)(v)-9 TRANS Cust'!O310+'FR-16(7)(v)-13 DIST Cust'!O310","v":0},0,0]
[23,null,{"$f":"'FR-16(7)(v)-1 Functional'!C311","v":"VACATION PAY ACCRUAL"},{"$f":"'FR-16(7)(v)-1 Functional'!D311","v":"A315"},null,{"$f":"'FR-16(7)(v)-14 TOTAL CLASS'!O311","v":0},{"$f":"'FR-16(7)(v)-3 PROD Demand'!O311+'FR-16(7)(v)-7 TRANS Demand'!O311+'FR-16(7)(v)-11 DIST Demand'!O311","v":0},{"$f":"'FR-16(7)(v)-4 PROD Energy'!O311+'FR-16(7)(v)-8 TRANS Energy'!O311+'FR-16(7)(v)-12 DIST Energy'!O311","v":0},{"$f":"'FR-16(7)(v)-5 PROD Cust'!O311+'FR-16(7)(v)-9 TRANS Cust'!O311+'FR-16(7)(v)-13 DIST Cust'!O311","v":0},0,0]
[24,null,{"$f":"'FR-16(7)(v)-1 Functional'!C312","v":"NON-AMI METERS RETIRED EARLY"},{"$f":"'FR-16(7)(v)-1 Functional'!D312","v":"OM39"},null,{"$f":"'FR-16(7)(v)-14 TOTAL CLASS'!O312","v":59495},{"$f":"'FR-16(7)(v)-3 PROD Demand'!O312+'FR-16(7)(v)-7 TRANS Demand'!O312+'FR-16(7)(v)-11 DIST Demand'!O312","v":8191},{"$f":"'FR-16(7)(v)-4 PROD Energy'!O312+'FR-16(7)(v)-8 TRANS Energy'!O312+'FR-16(7)(v)-12 DIST Energy'!O312","v":51304},{"$f":"'FR-16(7)(v)-5 PROD Cust'!O312+'FR-16(7)(v)-9 TRANS Cust'!O312+'FR-16(7)(v)-13 DIST Cust'!O312","v":0},{"$f":"SUM(G312:I312)","v":59495},{"$f":"F312-J312","v":0}]
[25,null,{"$f":"'FR-16(7)(v)-1 Functional'!C313","v":"PENSION EXPENSE"},{"$f":"'FR-16(7)(v)-1 Functional'!D313","v":"A315"},null,{"$f":"'FR-16(7)(v)-14 TOTAL CLASS'!O313","v":158593},{"$f":"'FR-16(7)(v)-3 PROD Demand'!O313+'FR-16(7)(v)-7 TRANS Demand'!O313+'FR-16(7)(v)-11 DIST Demand'!O313","v":26831},{"$f":"'FR-16(7)(v)-4 PROD Energy'!O313+'FR-16(7)(v)-8 TRANS Energy'!O313+'FR-16(7)(v)-12 DIST Energy'!O313","v":131808},{"$f":"'FR-16(7)(v)-5 PROD Cust'!O313+'FR-16(7)(v)-9 TRANS Cust'!O313+'FR-16(7)(v)-13 DIST Cust'!O313","v":-46},{"$f":"SUM(G313:I313)","v":158593},{"$f":"F313-J313","v":0}]
[26,null,{"$f":"'FR-16(7)(v)-1 Functional'!C314","v":"UNCOLLECTIBLE ACCOUNTS"},{"$f":"'FR-16(7)(v)-1 Functional'!D314","v":"K411"},null,{"$f":"'FR-16(7)(v)-14 TOTAL CLASS'!O314","v":0},{"$f":"'FR-16(7)(v)-3 PROD Demand'!O314+'FR-16(7)(v)-7 TRANS Demand'!O314+'FR-16(7)(v)-11 DIST Demand'!O314","v":0},{"$f":"'FR-16(7)(v)-4 PROD Energy'!O314+'FR-16(7)(v)-8 TRANS Energy'!O314+'FR-16(7)(v)-12 DIST Energy'!O314","v":0},{"$f":"'FR-16(7)(v)-5 PROD Cust'!O314+'FR-16(7)(v)-9 TRANS Cust'!O314+'FR-16(7)(v)-13 DIST Cust'!O314","v":0},0,0]
[27,null,{"$f":"'FR-16(7)(v)-1 Functional'!C315","v":"  TOTAL ACCOUNT 283"},null,null,{"$f":"SUM(F303:F314)","v":636196},27895,608376,-75,636196,0]
[28]
[29," OTHER ACCUMULATED DEFERRED INCOME TAXES"]
[30,null,{"$f":"'FR-16(7)(v)-1 Functional'!C318","v":"EXCESS ADIT"},{"$f":"'FR-16(7)(v)-1 Functional'!D318","v":"NP29"},null,{"$f":"'FR-16(7)(v)-14 TOTAL CLASS'!O318","v":1673679},{"$f":"'FR-16(7)(v)-3 PROD Demand'!O318+'FR-16(7)(v)-7 TRANS Demand'!O318+'FR-16(7)(v)-11 DIST Demand'!O318","v":1623127},{"$f":"'FR-16(7)(v)-4 PROD Energy'!O318+'FR-16(7)(v)-8 TRANS Energy'!O318+'FR-16(7)(v)-12 DIST Energy'!O318","v":49944},{"$f":"'FR-16(7)(v)-5 PROD Cust'!O318+'FR-16(7)(v)-9 TRANS Cust'!O318+'FR-16(7)(v)-13 DIST Cust'!O318","v":608},{"$f":"SUM(G318:I318)","v":1673679},{"$f":"F318-J318","v":0}]
[31,null,{"$f":"'FR-16(7)(v)-1 Functional'!C319","v":"CUSTOMER SERVICE DEPOSITS"},{"$f":"'FR-16(7)(v)-1 Functional'!D319","v":"NP29"},null,{"$f":"'FR-16(7)(v)-14 TOTAL CLASS'!O319","v":0},{"$f":"'FR-16(7)(v)-3 PROD Demand'!O319+'FR-16(7)(v)-7 TRANS Demand'!O319+'FR-16(7)(v)-11 DIST Demand'!O319","v":0},{"$f":"'FR-16(7)(v)-4 PROD Energy'!O319+'FR-16(7)(v)-8 TRANS Energy'!O319+'FR-16(7)(v)-12 DIST Energy'!O319","v":0},{"$f":"'FR-16(7)(v)-5 PROD Cust'!O319+'FR-16(7)(v)-9 TRANS Cust'!O319+'FR-16(7)(v)-13 DIST Cust'!O319","v":0},{"$f":"SUM(G319:I319)","v":0},{"$f":"F319-J319","v":0}]
[32,null,{"$f":"'FR-16(7)(v)-1 Functional'!C320","v":"POST RETIREMENT BENEFITS"},{"$f":"'FR-16(7)(v)-1 Functional'!D320","v":"NP29"},null,{"$f":"'FR-16(7)(v)-14 TOTAL CLASS'!O320","v":0},{"$f":"'FR-16(7)(v)-3 PROD Demand'!O320+'FR-16(7)(v)-7 TRANS Demand'!O320+'FR-16(7)(v)-11 DIST Demand'!O320","v":0},{"$f":"'FR-16(7)(v)-4 PROD Energy'!O320+'FR-16(7)(v)-8 TRANS Energy'!O320+'FR-16(7)(v)-12 DIST Energy'!O320","v":0},{"$f":"'FR-16(7)(v)-5 PROD Cust'!O320+'FR-16(7)(v)-9 TRANS Cust'!O320+'FR-16(7)(v)-13 DIST Cust'!O320","v":0},{"$f":"SUM(G320:I320)","v":0},{"$f":"F320-J320","v":0}]
[33,null,{"$f":"'FR-16(7)(v)-1 Functional'!C321","v":"INVESTMENT TAX CREDIT"},{"$f":"'FR-16(7)(v)-1 Functional'!D321","v":"NP29"},null,{"$f":"'FR-16(7)(v)-14 TOTAL CLASS'!O321","v":0},{"$f":"'FR-16(7)(v)-3 PROD Demand'!O321+'FR-16(7)(v)-7 TRANS Demand'!O321+'FR-16(7)(v)-11 DIST Demand'!O321","v":0},{"$f":"'FR-16(7)(v)-4 PROD Energy'!O321+'FR-16(7)(v)-8 TRANS Energy'!O321+'FR-16(7)(v)-12 DIST Energy'!O321","v":0},{"$f":"'FR-16(7)(v)-5 PROD Cust'!O321+'FR-16(7)(v)-9 TRANS Cust'!O321+'FR-16(7)(v)-13 DIST Cust'!O321","v":0},{"$f":"SUM(G321:I321)","v":0},{"$f":"F321-J321","v":0}]
[34,null,{"$f":"'FR-16(7)(v)-1 Functional'!C322","v":"  TOTAL OTHER SUBTRACTIVE ADJUSTMENTS"},null,null,{"$f":"SUM(F317:F321)","v":1673679},1623127,49944,608,1673679,0]
[35]
[36,{"$f":"'FR-16(7)(v)-1 Functional'!B324","v":"TOTAL SUBTRACTIVE RATE BASE ADJUSTMENTS"},null,null,null,{"$f":"F322+F315+F301","v":7639711},6822367,817442,-98,7639711,0]
[]
[{"$f":"co_name","v":"DUKE ENERGY KENTUCKY, INC."},null,null,null,null,null,null,null,null,{"$f":"J1","v":"FR-16(7)(v)-23"}]
[{"$f":"$A$2","v":"TT CLASSIFIED - ELECTRIC COST OF SERVICE"},null,null,null,null,null,null,null,null,{"$f":"J2","v":"WITNESS RESPONSIBLE:"}]
[{"$f":"case_name","v":"CASE NO: 2019-00271"},null,null,null,null,null,null,null,null,{"$f":"Witness","v":"JAMES E. ZIOLKOWSKI"}]
[{"$f":"data_filing","v":"DATA: 12 MONTHS ACTUAL  & 0 MONTHS ESTIMATED"},null,null,null,null,null,null,null,null,{"$f":"\"PAGE \"&Pages2-9&\" OF \"&Pages2","v":"PAGE 6 OF 15"}]
[{"$f":"type","v":"TYPE OF FILING: \"X\" ORIGINAL   UPDATED    REVISED  "}]
[]
[]
["LINE",null,null,null,null,"TOTAL","CLASSIFIED",null,null,"TOTAL","ALL"]
["NO.","ADDITIVE RATE BASE ADJUSTMENTS",null,"ALLO",null,{"$f":"$F$9","v":"TT"},{"$f":"G9","v":"DEMAND"},"ENERGY","CUSTOMER","AT ISSUE","OTHER"]
[null,null,"Schedule 5.1",null,null,null,3,4,5]
[1,"OTHER ACCUMULATED DEFERRED INCOME TAXES"]
[2," ACCUM DEF INC TAXES (190)"]
[3,null,{"$f":"'FR-16(7)(v)-1 Functional'!C338","v":"UNCOLLECTIBLE ACCTS"},{"$f":"'FR-16(7)(v)-1 Functional'!D338","v":"K411"},null,{"$f":"'FR-16(7)(v)-14 TOTAL CLASS'!O338","v":473},{"$f":"'FR-16(7)(v)-3 PROD Demand'!O338+'FR-16(7)(v)-7 TRANS Demand'!O338+'FR-16(7)(v)-11 DIST Demand'!O338","v":0},{"$f":"'FR-16(7)(v)-4 PROD Energy'!O338+'FR-16(7)(v)-8 TRANS Energy'!O338+'FR-16(7)(v)-12 DIST Energy'!O338","v":0},{"$f":"'FR-16(7)(v)-5 PROD Cust'!O338+'FR-16(7)(v)-9 TRANS Cust'!O338+'FR-16(7)(v)-13 DIST Cust'!O338","v":473},{"$f":"SUM(G338:I338)","v":473},{"$f":"F338-J338","v":0}]
[4,null,{"$f":"'FR-16(7)(v)-1 Functional'!C339","v":"CASH FLOW HEDGE"},{"$f":"'FR-16(7)(v)-1 Functional'!D339","v":"A315"},null,{"$f":"'FR-16(7)(v)-14 TOTAL CLASS'!O339","v":6371},{"$f":"'FR-16(7)(v)-3 PROD Demand'!O339+'FR-16(7)(v)-7 TRANS Demand'!O339+'FR-16(7)(v)-11 DIST Demand'!O339","v":1077},{"$f":"'FR-16(7)(v)-4 PROD Energy'!O339+'FR-16(7)(v)-8 TRANS Energy'!O339+'FR-16(7)(v)-12 DIST Energy'!O339","v":5296},{"$f":"'FR-16(7)(v)-5 PROD Cust'!O339+'FR-16(7)(v)-9 TRANS Cust'!O339+'FR-16(7)(v)-13 DIST Cust'!O339","v":-2},6371,0]
[5,null,{"$f":"'FR-16(7)(v)-1 Functional'!C340","v":"RESERVED FOR FUTURE USE"},{"$f":"'FR-16(7)(v)-1 Functional'!D340","v":"NP29"},null,{"$f":"'FR-16(7)(v)-14 TOTAL CLASS'!O340","v":0},{"$f":"'FR-16(7)(v)-3 PROD Demand'!O340+'FR-16(7)(v)-7 TRANS Demand'!O340+'FR-16(7)(v)-11 DIST Demand'!O340","v":0},{"$f":"'FR-16(7)(v)-4 PROD Energy'!O340+'FR-16(7)(v)-8 TRANS Energy'!O340+'FR-16(7)(v)-12 DIST Energy'!O340","v":0},{"$f":"'FR-16(7)(v)-5 PROD Cust'!O340+'FR-16(7)(v)-9 TRANS Cust'!O340+'FR-16(7)(v)-13 DIST Cust'!O340","v":0},0,0]
[6,null,{"$f":"'FR-16(7)(v)-1 Functional'!C341","v":"RESERVED FOR FUTURE USE"},{"$f":"'FR-16(7)(v)-1 Functional'!D341","v":"NP29"},null,{"$f":"'FR-16(7)(v)-14 TOTAL CLASS'!O341","v":0},{"$f":"'FR-16(7)(v)-3 PROD Demand'!O341+'FR-16(7)(v)-7 TRANS Demand'!O341+'FR-16(7)(v)-11 DIST Demand'!O341","v":0},{"$f":"'FR-16(7)(v)-4 PROD Energy'!O341+'FR-16(7)(v)-8 TRANS Energy'!O341+'FR-16(7)(v)-12 DIST Energy'!O341","v":0},{"$f":"'FR-16(7)(v)-5 PROD Cust'!O341+'FR-16(7)(v)-9 TRANS Cust'!O341+'FR-16(7)(v)-13 DIST Cust'!O341","v":0},0,0]
[7,null,{"$f":"'FR-16(7)(v)-1 Functional'!C342","v":"ELECTRIC METERS"},{"$f":"'FR-16(7)(v)-1 Functional'!D342","v":"K407"},null,{"$f":"'FR-16(7)(v)-14 TOTAL CLASS'!O342","v":0},{"$f":"'FR-16(7)(v)-3 PROD Demand'!O342+'FR-16(7)(v)-7 TRANS Demand'!O342+'FR-16(7)(v)-11 DIST Demand'!O342","v":0},{"$f":"'FR-16(7)(v)-4 PROD Energy'!O342+'FR-16(7)(v)-8 TRANS Energy'!O342+'FR-16(7)(v)-12 DIST Energy'!O342","v":0},{"$f":"'FR-16(7)(v)-5 PROD Cust'!O342+'FR-16(7)(v)-9 TRANS Cust'!O342+'FR-16(7)(v)-13 DIST Cust'!O342","v":0},0,0]
[8,null,{"$f":"'FR-16(7)(v)-1 Functional'!C343","v":"UNAMORTIZED DEBT PREMIUM"},{"$f":"'FR-16(7)(v)-1 Functional'!D343","v":"D249"},null,{"$f":"'FR-16(7)(v)-14 TOTAL CLASS'!O343","v":0},{"$f":"'FR-16(7)(v)-3 PROD Demand'!O343+'FR-16(7)(v)-7 TRANS Demand'!O343+'FR-16(7)(v)-11 DIST Demand'!O343","v":0},{"$f":"'FR-16(7)(v)-4 PROD Energy'!O343+'FR-16(7)(v)-8 TRANS Energy'!O343+'FR-16(7)(v)-12 DIST Energy'!O343","v":0},{"$f":"'FR-16(7)(v)-5 PROD Cust'!O343+'FR-16(7)(v)-9 TRANS Cust'!O343+'FR-16(7)(v)-13 DIST Cust'!O343","v":0},0,0]
[9,null,{"$f":"'FR-16(7)(v)-1 Functional'!C344","v":"ARO CUMULATIVE EFFECT"},{"$f":"'FR-16(7)(v)-1 Functional'!D344","v":"NP29"},null,{"$f":"'FR-16(7)(v)-14 TOTAL CLASS'!O344","v":0},{"$f":"'FR-16(7)(v)-3 PROD Demand'!O344+'FR-16(7)(v)-7 TRANS Demand'!O344+'FR-16(7)(v)-11 DIST Demand'!O344","v":0},{"$f":"'FR-16(7)(v)-4 PROD Energy'!O344+'FR-16(7)(v)-8 TRANS Energy'!O344+'FR-16(7)(v)-12 DIST Energy'!O344","v":0},{"$f":"'FR-16(7)(v)-5 PROD Cust'!O344+'FR-16(7)(v)-9 TRANS Cust'!O344+'FR-16(7)(v)-13 DIST Cust'!O344","v":0},0,0]
[10,null,{"$f":"'FR-16(7)(v)-1 Functional'!C345","v":"RETIREMENT PLAN"},{"$f":"'FR-16(7)(v)-1 Functional'!D345","v":"A315"},null,{"$f":"'FR-16(7)(v)-14 TOTAL CLASS'!O345","v":65455},{"$f":"'FR-16(7)(v)-3 PROD Demand'!O345+'FR-16(7)(v)-7 TRANS Demand'!O345+'FR-16(7)(v)-11 DIST Demand'!O345","v":11074},{"$f":"'FR-16(7)(v)-4 PROD Energy'!O345+'FR-16(7)(v)-8 TRANS Energy'!O345+'FR-16(7)(v)-12 DIST Energy'!O345","v":54400},{"$f":"'FR-16(7)(v)-5 PROD Cust'!O345+'FR-16(7)(v)-9 TRANS Cust'!O345+'FR-16(7)(v)-13 DIST Cust'!O345","v":-19},65455,0]
[11,null,{"$f":"'FR-16(7)(v)-1 Functional'!C346","v":"POST RETIREMENT BENEFITS "},{"$f":"'FR-16(7)(v)-1 Functional'!D346","v":"A315"},null,{"$f":"'FR-16(7)(v)-14 TOTAL CLASS'!O346","v":0},{"$f":"'FR-16(7)(v)-3 PROD Demand'!O346+'FR-16(7)(v)-7 TRANS Demand'!O346+'FR-16(7)(v)-11 DIST Demand'!O346","v":0},{"$f":"'FR-16(7)(v)-4 PROD Energy'!O346+'FR-16(7)(v)-8 TRANS Energy'!O346+'FR-16(7)(v)-12 DIST Energy'!O346","v":0},{"$f":"'FR-16(7)(v)-5 PROD Cust'!O346+'FR-16(7)(v)-9 TRANS Cust'!O346+'FR-16(7)(v)-13 DIST Cust'!O346","v":0},0,0]
[12,null,{"$f":"'FR-16(7)(v)-1 Functional'!C347","v":"POST RETIREMENT BENEFITS - HEALTH CARE"},{"$f":"'FR-16(7)(v)-1 Functional'!D347","v":"A315"},null,{"$f":"'FR-16(7)(v)-14 TOTAL CLASS'!O347","v":0},{"$f":"'FR-16(7)(v)-3 PROD Demand'!O347+'FR-16(7)(v)-7 TRANS Demand'!O347+'FR-16(7)(v)-11 DIST Demand'!O347","v":0},{"$f":"'FR-16(7)(v)-4 PROD Energy'!O347+'FR-16(7)(v)-8 TRANS Energy'!O347+'FR-16(7)(v)-12 DIST Energy'!O347","v":0},{"$f":"'FR-16(7)(v)-5 PROD Cust'!O347+'FR-16(7)(v)-9 TRANS Cust'!O347+'FR-16(7)(v)-13 DIST Cust'!O347","v":0},0,0]
[13,null,{"$f":"'FR-16(7)(v)-1 Functional'!C348","v":"POST EMPLOYMENT BENEFITS - SFAS 112"},{"$f":"'FR-16(7)(v)-1 Functional'!D348","v":"A315"},null,{"$f":"'FR-16(7)(v)-14 TOTAL CLASS'!O348","v":0},{"$f":"'FR-16(7)(v)-3 PROD Demand'!O348+'FR-16(7)(v)-7 TRANS Demand'!O348+'FR-16(7)(v)-11 DIST Demand'!O348","v":0},{"$f":"'FR-16(7)(v)-4 PROD Energy'!O348+'FR-16(7)(v)-8 TRANS Energy'!O348+'FR-16(7)(v)-12 DIST Energy'!O348","v":0},{"$f":"'FR-16(7)(v)-5 PROD Cust'!O348+'FR-16(7)(v)-9 TRANS Cust'!O348+'FR-16(7)(v)-13 DIST Cust'!O348","v":0},0,0]
[14,null,{"$f":"'FR-16(7)(v)-1 Functional'!C349","v":"SUPPLEMENTAL PENSION PLAN"},{"$f":"'FR-16(7)(v)-1 Functional'!D349","v":"A315"},null,{"$f":"'FR-16(7)(v)-14 TOTAL CLASS'!O349","v":0},{"$f":"'FR-16(7)(v)-3 PROD Demand'!O349+'FR-16(7)(v)-7 TRANS Demand'!O349+'FR-16(7)(v)-11 DIST Demand'!O349","v":0},{"$f":"'FR-16(7)(v)-4 PROD Energy'!O349+'FR-16(7)(v)-8 TRANS Energy'!O349+'FR-16(7)(v)-12 DIST Energy'!O349","v":0},{"$f":"'FR-16(7)(v)-5 PROD Cust'!O349+'FR-16(7)(v)-9 TRANS Cust'!O349+'FR-16(7)(v)-13 DIST Cust'!O349","v":0},0,0]
[15,null,{"$f":"'FR-16(7)(v)-1 Functional'!C350","v":"INCENTIVE PLAN"},{"$f":"'FR-16(7)(v)-1 Functional'!D350","v":"A315"},null,{"$f":"'FR-16(7)(v)-14 TOTAL CLASS'!O350","v":0},{"$f":"'FR-16(7)(v)-3 PROD Demand'!O350+'FR-16(7)(v)-7 TRANS Demand'!O350+'FR-16(7)(v)-11 DIST Demand'!O350","v":0},{"$f":"'FR-16(7)(v)-4 PROD Energy'!O350+'FR-16(7)(v)-8 TRANS Energy'!O350+'FR-16(7)(v)-12 DIST Energy'!O350","v":0},{"$f":"'FR-16(7)(v)-5 PROD Cust'!O350+'FR-16(7)(v)-9 TRANS Cust'!O350+'FR-16(7)(v)-13 DIST Cust'!O350","v":0},0,0]
[16,null,{"$f":"'FR-16(7)(v)-1 Functional'!C351","v":"FEDERAL DEFERRED TAX RECEIVEABLE"},{"$f":"'FR-16(7)(v)-1 Functional'!D351","v":"A315"},null,{"$f":"'FR-16(7)(v)-14 TOTAL CLASS'!O351","v":0},{"$f":"'FR-16(7)(v)-3 PROD Demand'!O351+'FR-16(7)(v)-7 TRANS Demand'!O351+'FR-16(7)(v)-11 DIST Demand'!O351","v":0},{"$f":"'FR-16(7)(v)-4 PROD Energy'!O351+'FR-16(7)(v)-8 TRANS Energy'!O351+'FR-16(7)(v)-12 DIST Energy'!O351","v":0},{"$f":"'FR-16(7)(v)-5 PROD Cust'!O351+'FR-16(7)(v)-9 TRANS Cust'!O351+'FR-16(7)(v)-13 DIST Cust'!O351","v":0},0,0]
[17,null,{"$f":"'FR-16(7)(v)-1 Functional'!C352","v":"MISCELLANEOUS"},{"$f":"'FR-16(7)(v)-1 Functional'!D352","v":"A315"},null,{"$f":"'FR-16(7)(v)-14 TOTAL CLASS'!O352","v":210090},{"$f":"'FR-16(7)(v)-3 PROD Demand'!O352+'FR-16(7)(v)-7 TRANS Demand'!O352+'FR-16(7)(v)-11 DIST Demand'!O352","v":35543},{"$f":"'FR-16(7)(v)-4 PROD Energy'!O352+'FR-16(7)(v)-8 TRANS Energy'!O352+'FR-16(7)(v)-12 DIST Energy'!O352","v":174609},{"$f":"'FR-16(7)(v)-5 PROD Cust'!O352+'FR-16(7)(v)-9 TRANS Cust'!O352+'FR-16(7)(v)-13 DIST Cust'!O352","v":-62},210090,0]
[18,null,{"$f":"'FR-16(7)(v)-1 Functional'!C353","v":"DEFERRED TAX"},{"$f":"'FR-16(7)(v)-1 Functional'!D353","v":"A315"},null,{"$f":"'FR-16(7)(v)-14 TOTAL CLASS'!O353","v":95737},{"$f":"'FR-16(7)(v)-3 PROD Demand'!O353+'FR-16(7)(v)-7 TRANS Demand'!O353+'FR-16(7)(v)-11 DIST Demand'!O353","v":16197},{"$f":"'FR-16(7)(v)-4 PROD Energy'!O353+'FR-16(7)(v)-8 TRANS Energy'!O353+'FR-16(7)(v)-12 DIST Energy'!O353","v":79568},{"$f":"'FR-16(7)(v)-5 PROD Cust'!O353+'FR-16(7)(v)-9 TRANS Cust'!O353+'FR-16(7)(v)-13 DIST Cust'!O353","v":-28},95737,0]
[19,null,{"$f":"'FR-16(7)(v)-1 Functional'!C354","v":"NET OPERATING LOSS"},{"$f":"'FR-16(7)(v)-1 Functional'!D354","v":"NP29"},null,{"$f":"'FR-16(7)(v)-14 TOTAL CLASS'!O354","v":0},{"$f":"'FR-16(7)(v)-3 PROD Demand'!O354+'FR-16(7)(v)-7 TRANS Demand'!O354+'FR-16(7)(v)-11 DIST Demand'!O354","v":0},{"$f":"'FR-16(7)(v)-4 PROD Energy'!O354+'FR-16(7)(v)-8 TRANS Energy'!O354+'FR-16(7)(v)-12 DIST Energy'!O354","v":0},{"$f":"'FR-16(7)(v)-5 PROD Cust'!O354+'FR-16(7)(v)-9 TRANS Cust'!O354+'FR-16(7)(v)-13 DIST Cust'!O354","v":0},0,0]
[20,null,{"$f":"'FR-16(7)(v)-1 Functional'!C355","v":"401K INCENTIVE PLAN"},{"$f":"'FR-16(7)(v)-1 Functional'!D355","v":"A315"},null,{"$f":"'FR-16(7)(v)-14 TOTAL CLASS'!O355","v":0},{"$f":"'FR-16(7)(v)-3 PROD Demand'!O355+'FR-16(7)(v)-7 TRANS Demand'!O355+'FR-16(7)(v)-11 DIST Demand'!O355","v":0},{"$f":"'FR-16(7)(v)-4 PROD Energy'!O355+'FR-16(7)(v)-8 TRANS Energy'!O355+'FR-16(7)(v)-12 DIST Energy'!O355","v":0},{"$f":"'FR-16(7)(v)-5 PROD Cust'!O355+'FR-16(7)(v)-9 TRANS Cust'!O355+'FR-16(7)(v)-13 DIST Cust'!O355","v":0},0,0]
[21,null,{"$f":"'FR-16(7)(v)-1 Functional'!C356","v":"ENVIRONMENTAL RESERVE"},{"$f":"'FR-16(7)(v)-1 Functional'!D356","v":"NP29"},null,{"$f":"'FR-16(7)(v)-14 TOTAL CLASS'!O356","v":0},{"$f":"'FR-16(7)(v)-3 PROD Demand'!O356+'FR-16(7)(v)-7 TRANS Demand'!O356+'FR-16(7)(v)-11 DIST Demand'!O356","v":0},{"$f":"'FR-16(7)(v)-4 PROD Energy'!O356+'FR-16(7)(v)-8 TRANS Energy'!O356+'FR-16(7)(v)-12 DIST Energy'!O356","v":0},{"$f":"'FR-16(7)(v)-5 PROD Cust'!O356+'FR-16(7)(v)-9 TRANS Cust'!O356+'FR-16(7)(v)-13 DIST Cust'!O356","v":0},0,0]
[22,null,{"$f":"'FR-16(7)(v)-1 Functional'!C357","v":"VACATION PAY ACCRUALS"},{"$f":"'FR-16(7)(v)-1 Functional'!D357","v":"A315"},null,{"$f":"'FR-16(7)(v)-14 TOTAL CLASS'!O357","v":10377},{"$f":"'FR-16(7)(v)-3 PROD Demand'!O357+'FR-16(7)(v)-7 TRANS Demand'!O357+'FR-16(7)(v)-11 DIST Demand'!O357","v":1755},{"$f":"'FR-16(7)(v)-4 PROD Energy'!O357+'FR-16(7)(v)-8 TRANS Energy'!O357+'FR-16(7)(v)-12 DIST Energy'!O357","v":8625},{"$f":"'FR-16(7)(v)-5 PROD Cust'!O357+'FR-16(7)(v)-9 TRANS Cust'!O357+'FR-16(7)(v)-13 DIST Cust'!O357","v":-3},10377,0]
[23,null,{"$f":"'FR-16(7)(v)-1 Functional'!C358","v":"DEMAND SIDE MANAGEMENT DEFERRAL"},{"$f":"'FR-16(7)(v)-1 Functional'!D358","v":"NP29"},null,{"$f":"'FR-16(7)(v)-14 TOTAL CLASS'!O358","v":16664},{"$f":"'FR-16(7)(v)-3 PROD Demand'!O358+'FR-16(7)(v)-7 TRANS Demand'!O358+'FR-16(7)(v)-11 DIST Demand'!O358","v":16161},{"$f":"'FR-16(7)(v)-4 PROD Energy'!O358+'FR-16(7)(v)-8 TRANS Energy'!O358+'FR-16(7)(v)-12 DIST Energy'!O358","v":497},{"$f":"'FR-16(7)(v)-5 PROD Cust'!O358+'FR-16(7)(v)-9 TRANS Cust'!O358+'FR-16(7)(v)-13 DIST Cust'!O358","v":6},16664,0]
[24,null,{"$f":"'FR-16(7)(v)-1 Functional'!C359","v":"OPERATING LEASE OBLIGATION"},{"$f":"'FR-16(7)(v)-1 Functional'!D359","v":"NP29"},null,{"$f":"'FR-16(7)(v)-14 TOTAL CLASS'!O359","v":61666},{"$f":"'FR-16(7)(v)-3 PROD Demand'!O359+'FR-16(7)(v)-7 TRANS Demand'!O359+'FR-16(7)(v)-11 DIST Demand'!O359","v":59804},{"$f":"'FR-16(7)(v)-4 PROD Energy'!O359+'FR-16(7)(v)-8 TRANS Energy'!O359+'FR-16(7)(v)-12 DIST Energy'!O359","v":1840},{"$f":"'FR-16(7)(v)-5 PROD Cust'!O359+'FR-16(7)(v)-9 TRANS Cust'!O359+'FR-16(7)(v)-13 DIST Cust'!O359","v":22},61666,0]
[25,null,{"$f":"'FR-16(7)(v)-1 Functional'!C360","v":"INJURIES & DAMAGES"},{"$f":"'FR-16(7)(v)-1 Functional'!D360","v":"NP29"},null,{"$f":"'FR-16(7)(v)-14 TOTAL CLASS'!O360","v":0},{"$f":"'FR-16(7)(v)-3 PROD Demand'!O360+'FR-16(7)(v)-7 TRANS Demand'!O360+'FR-16(7)(v)-11 DIST Demand'!O360","v":0},{"$f":"'FR-16(7)(v)-4 PROD Energy'!O360+'FR-16(7)(v)-8 TRANS Energy'!O360+'FR-16(7)(v)-12 DIST Energy'!O360","v":0},{"$f":"'FR-16(7)(v)-5 PROD Cust'!O360+'FR-16(7)(v)-9 TRANS Cust'!O360+'FR-16(7)(v)-13 DIST Cust'!O360","v":0},0,0]
[26,null,{"$f":"'FR-16(7)(v)-1 Functional'!C361","v":"  TOTAL ACCOUNT 190"},null,null,{"$f":"SUM(F337:F360)","v":466833},141611,324835,387,466833,0]
[27]
[28," OTHER"]
[29,null,{"$f":"'FR-16(7)(v)-1 Functional'!C364","v":"RESERVED FOR FUTURE USE"},{"$f":"'FR-16(7)(v)-1 Functional'!D364","v":"NP29"},null,{"$f":"'FR-16(7)(v)-14 TOTAL CLASS'!O364","v":0},{"$f":"'FR-16(7)(v)-3 PROD Demand'!O364+'FR-16(7)(v)-7 TRANS Demand'!O364+'FR-16(7)(v)-11 DIST Demand'!O364","v":0},{"$f":"'FR-16(7)(v)-4 PROD Energy'!O364+'FR-16(7)(v)-8 TRANS Energy'!O364+'FR-16(7)(v)-12 DIST Energy'!O364","v":0},{"$f":"'FR-16(7)(v)-5 PROD Cust'!O364+'FR-16(7)(v)-9 TRANS Cust'!O364+'FR-16(7)(v)-13 DIST Cust'!O364","v":0},{"$f":"SUM(G364:I364)","v":0},{"$f":"F364-J364","v":0}]
[30,null,{"$f":"'FR-16(7)(v)-1 Functional'!C365","v":"RATE CASE EXPENSE REGULATORY ASSET"},{"$f":"'FR-16(7)(v)-1 Functional'!D365","v":"NP29"},null,{"$f":"'FR-16(7)(v)-14 TOTAL CLASS'!O365","v":24982},{"$f":"'FR-16(7)(v)-3 PROD Demand'!O365+'FR-16(7)(v)-7 TRANS Demand'!O365+'FR-16(7)(v)-11 DIST Demand'!O365","v":24228},{"$f":"'FR-16(7)(v)-4 PROD Energy'!O365+'FR-16(7)(v)-8 TRANS Energy'!O365+'FR-16(7)(v)-12 DIST Energy'!O365","v":745},{"$f":"'FR-16(7)(v)-5 PROD Cust'!O365+'FR-16(7)(v)-9 TRANS Cust'!O365+'FR-16(7)(v)-13 DIST Cust'!O365","v":9},{"$f":"SUM(G365:I365)","v":24982},{"$f":"F365-J365","v":0}]
[31,null,{"$f":"'FR-16(7)(v)-1 Functional'!C366","v":"RESERVED FOR FUTURE USE"},{"$f":"'FR-16(7)(v)-1 Functional'!D366","v":"NP29"},null,{"$f":"'FR-16(7)(v)-14 TOTAL CLASS'!O366","v":0},{"$f":"'FR-16(7)(v)-3 PROD Demand'!O366+'FR-16(7)(v)-7 TRANS Demand'!O366+'FR-16(7)(v)-11 DIST Demand'!O366","v":0},{"$f":"'FR-16(7)(v)-4 PROD Energy'!O366+'FR-16(7)(v)-8 TRANS Energy'!O366+'FR-16(7)(v)-12 DIST Energy'!O366","v":0},{"$f":"'FR-16(7)(v)-5 PROD Cust'!O366+'FR-16(7)(v)-9 TRANS Cust'!O366+'FR-16(7)(v)-13 DIST Cust'!O366","v":0},{"$f":"SUM(G366:I366)","v":0},{"$f":"F366-J366","v":0}]
[32,null,{"$f":"'FR-16(7)(v)-1 Functional'!C367","v":"  OTHER"},null,null,{"$f":"SUM(F364:F366)","v":24982},{"$f":"SUM(G363:G366)","v":24228},{"$f":"SUM(H363:H366)","v":745},{"$f":"SUM(I363:I366)","v":9},{"$f":"SUM(J363:J366)","v":24982},{"$f":"SUM(K363:K366)","v":0}]
[33,null,null,null,null," "]
[34,"CONSTRUCTION WORK IN PROGRESS"]
[35,null,{"$f":"'FR-16(7)(v)-1 Functional'!C370","v":"PRODUCTION"},{"$f":"'FR-16(7)(v)-1 Functional'!D370","v":"P129"},null,{"$f":"'FR-16(7)(v)-14 TOTAL CLASS'!O370","v":0},{"$f":"'FR-16(7)(v)-3 PROD Demand'!O370+'FR-16(7)(v)-7 TRANS Demand'!O370+'FR-16(7)(v)-11 DIST Demand'!O370","v":0},{"$f":"'FR-16(7)(v)-4 PROD Energy'!O370+'FR-16(7)(v)-8 TRANS Energy'!O370+'FR-16(7)(v)-12 DIST Energy'!O370","v":0},{"$f":"'FR-16(7)(v)-5 PROD Cust'!O370+'FR-16(7)(v)-9 TRANS Cust'!O370+'FR-16(7)(v)-13 DIST Cust'!O370","v":0},{"$f":"SUM(G370:I370)","v":0},{"$f":"F370-J370","v":0}]
[36,null,{"$f":"'FR-16(7)(v)-1 Functional'!C371","v":"TRANSMISSION"},{"$f":"'FR-16(7)(v)-1 Functional'!D371","v":"T129"},null,{"$f":"'FR-16(7)(v)-14 TOTAL CLASS'!O371","v":0},{"$f":"'FR-16(7)(v)-3 PROD Demand'!O371+'FR-16(7)(v)-7 TRANS Demand'!O371+'FR-16(7)(v)-11 DIST Demand'!O371","v":0},{"$f":"'FR-16(7)(v)-4 PROD Energy'!O371+'FR-16(7)(v)-8 TRANS Energy'!O371+'FR-16(7)(v)-12 DIST Energy'!O371","v":0},{"$f":"'FR-16(7)(v)-5 PROD Cust'!O371+'FR-16(7)(v)-9 TRANS Cust'!O371+'FR-16(7)(v)-13 DIST Cust'!O371","v":0},{"$f":"SUM(G371:I371)","v":0},{"$f":"F371-J371","v":0}]
[37,null,{"$f":"'FR-16(7)(v)-1 Functional'!C372","v":"DISTRIBUTION"},{"$f":"'FR-16(7)(v)-1 Functional'!D372","v":"D149"},null,{"$f":"'FR-16(7)(v)-14 TOTAL CLASS'!O372","v":0},{"$f":"'FR-16(7)(v)-3 PROD Demand'!O372+'FR-16(7)(v)-7 TRANS Demand'!O372+'FR-16(7)(v)-11 DIST Demand'!O372","v":0},{"$f":"'FR-16(7)(v)-4 PROD Energy'!O372+'FR-16(7)(v)-8 TRANS Energy'!O372+'FR-16(7)(v)-12 DIST Energy'!O372","v":0},{"$f":"'FR-16(7)(v)-5 PROD Cust'!O372+'FR-16(7)(v)-9 TRANS Cust'!O372+'FR-16(7)(v)-13 DIST Cust'!O372","v":0},{"$f":"SUM(G372:I372)","v":0},{"$f":"F372-J372","v":0}]
[38,null,{"$f":"'FR-16(7)(v)-1 Functional'!C373","v":"COMMON"},{"$f":"'FR-16(7)(v)-1 Functional'!D373","v":"C129"},null,{"$f":"'FR-16(7)(v)-14 TOTAL CLASS'!O373","v":0},{"$f":"'FR-16(7)(v)-3 PROD Demand'!O373+'FR-16(7)(v)-7 TRANS Demand'!O373+'FR-16(7)(v)-11 DIST Demand'!O373","v":0},{"$f":"'FR-16(7)(v)-4 PROD Energy'!O373+'FR-16(7)(v)-8 TRANS Energy'!O373+'FR-16(7)(v)-12 DIST Energy'!O373","v":0},{"$f":"'FR-16(7)(v)-5 PROD Cust'!O373+'FR-16(7)(v)-9 TRANS Cust'!O373+'FR-16(7)(v)-13 DIST Cust'!O373","v":0},{"$f":"SUM(G373:I373)","v":0},{"$f":"F373-J373","v":0}]
[39,null,{"$f":"'FR-16(7)(v)-1 Functional'!C374","v":"GENERAL"},{"$f":"'FR-16(7)(v)-1 Functional'!D374","v":"G129"},null,{"$f":"'FR-16(7)(v)-14 TOTAL CLASS'!O374","v":0},{"$f":"'FR-16(7)(v)-3 PROD Demand'!O374+'FR-16(7)(v)-7 TRANS Demand'!O374+'FR-16(7)(v)-11 DIST Demand'!O374","v":0},{"$f":"'FR-16(7)(v)-4 PROD Energy'!O374+'FR-16(7)(v)-8 TRANS Energy'!O374+'FR-16(7)(v)-12 DIST Energy'!O374","v":0},{"$f":"'FR-16(7)(v)-5 PROD Cust'!O374+'FR-16(7)(v)-9 TRANS Cust'!O374+'FR-16(7)(v)-13 DIST Cust'!O374","v":0},{"$f":"SUM(G374:I374)","v":0},{"$f":"F374-J374","v":0}]
[40,null,{"$f":"'FR-16(7)(v)-1 Functional'!C375","v":"TOTAL CONSTRUCTION WORK IN PROGRESS"},null,null,{"$f":"SUM(F370:F374)","v":0},0,0,0,0,0]
[41]
[42,{"$f":"'FR-16(7)(v)-1 Functional'!B377","v":"TOTAL ADDITIVE RATE BASE ADJUSTMENTS"},null,null,null,{"$f":"F361+F367+F375","v":491815},165839,325580,396,491815,0]
[]
[{"$f":"co_name","v":"DUKE ENERGY KENTUCKY, INC."},null,null,null,null,null,null,null,null,{"$f":"J1","v":"FR-16(7)(v)-23"}]
[{"$f":"$A$2","v":"TT CLASSIFIED - ELECTRIC COST OF SERVICE"},null,null,null,null,null,null,null,null,{"$f":"J2","v":"WITNESS RESPONSIBLE:"}]
[{"$f":"case_name","v":"CASE NO: 2019-00271"},null,null,null,null,null,null,null,null,{"$f":"Witness","v":"JAMES E. ZIOLKOWSKI"}]
[{"$f":"data_filing","v":"DATA: 12 MONTHS ACTUAL  & 0 MONTHS ESTIMATED"},null,null,null,null,null,null,null,null,{"$f":"\"PAGE \"&Pages2-8&\" OF \"&Pages2","v":"PAGE 7 OF 15"}]
[{"$f":"type","v":"TYPE OF FILING: \"X\" ORIGINAL   UPDATED    REVISED  "}]
[]
[]
["LINE",null,null,null,null,"TOTAL","CLASSIFIED",null,null,"TOTAL","ALL"]
["NO.","WORKING CAPITAL",null,"ALLO",null,{"$f":"$F$9","v":"TT"},{"$f":"G9","v":"DEMAND"},"ENERGY","CUSTOMER","AT ISSUE","OTHER"]
[null,null,"Schedule 5.2",null,null,null,3,4,5]
[]
[1,"NET ORIGINAL COST RATE BASE",null,null,null,{"$f":"F277-F324+F377","v":23237243},22810802,414982,11459,23237243,0]
[2]
[3,"WORKING CAPITAL"]
[4]
[5,"PLANT MATERIALS & SUPPLIES"]
[6,null,{"$f":"'FR-16(7)(v)-1 Functional'!C395","v":"OTHER MATERIALS & SUPPLIES"},{"$f":"'FR-16(7)(v)-1 Functional'!D395","v":"PD29"},null,{"$f":"'FR-16(7)(v)-14 TOTAL CLASS'!O395","v":628279},{"$f":"'FR-16(7)(v)-3 PROD Demand'!O395+'FR-16(7)(v)-7 TRANS Demand'!O395+'FR-16(7)(v)-11 DIST Demand'!O395","v":323036},{"$f":"'FR-16(7)(v)-4 PROD Energy'!O395+'FR-16(7)(v)-8 TRANS Energy'!O395+'FR-16(7)(v)-12 DIST Energy'!O395","v":305481},{"$f":"'FR-16(7)(v)-5 PROD Cust'!O395+'FR-16(7)(v)-9 TRANS Cust'!O395+'FR-16(7)(v)-13 DIST Cust'!O395","v":-238},{"$f":"SUM(G395:I395)","v":628279},{"$f":"F395-J395","v":0}]
[7,null,{"$f":"'FR-16(7)(v)-1 Functional'!C396","v":"FUEL"},{"$f":"'FR-16(7)(v)-1 Functional'!D396","v":"K301"},null,{"$f":"'FR-16(7)(v)-14 TOTAL CLASS'!O396","v":1130093},{"$f":"'FR-16(7)(v)-3 PROD Demand'!O396+'FR-16(7)(v)-7 TRANS Demand'!O396+'FR-16(7)(v)-11 DIST Demand'!O396","v":0},{"$f":"'FR-16(7)(v)-4 PROD Energy'!O396+'FR-16(7)(v)-8 TRANS Energy'!O396+'FR-16(7)(v)-12 DIST Energy'!O396","v":1130093},{"$f":"'FR-16(7)(v)-5 PROD Cust'!O396+'FR-16(7)(v)-9 TRANS Cust'!O396+'FR-16(7)(v)-13 DIST Cust'!O396","v":0},{"$f":"SUM(G396:I396)","v":1130093},{"$f":"F396-J396","v":0}]
[8,null,{"$f":"'FR-16(7)(v)-1 Functional'!C397","v":"EMISSION ALLOWANCES"},{"$f":"'FR-16(7)(v)-1 Functional'!D397","v":"K301"},null,{"$f":"'FR-16(7)(v)-14 TOTAL CLASS'!O397","v":0},{"$f":"'FR-16(7)(v)-3 PROD Demand'!O397+'FR-16(7)(v)-7 TRANS Demand'!O397+'FR-16(7)(v)-11 DIST Demand'!O397","v":0},{"$f":"'FR-16(7)(v)-4 PROD Energy'!O397+'FR-16(7)(v)-8 TRANS Energy'!O397+'FR-16(7)(v)-12 DIST Energy'!O397","v":0},{"$f":"'FR-16(7)(v)-5 PROD Cust'!O397+'FR-16(7)(v)-9 TRANS Cust'!O397+'FR-16(7)(v)-13 DIST Cust'!O397","v":0},{"$f":"SUM(G397:I397)","v":0},{"$f":"F397-J397","v":0}]
[9,null,{"$f":"'FR-16(7)(v)-1 Functional'!C398","v":"  TOTAL PLANT MATS. & SUPPLIES"},null,null,{"$f":"SUM(F394:F397)","v":1758372},323036,1435574,-238,1758372,0]
[10,"TOTAL MATERIALS & SUPPLIES",null,null,null,{"$f":"F398","v":1758372},323036,1435574,-238,1758372,0]
[11]
[12,"PREPAYMENTS"]
[13,null,{"$f":"'FR-16(7)(v)-1 Functional'!C402","v":"INSURANCE GENERAL"},{"$f":"'FR-16(7)(v)-1 Functional'!D402","v":"NP29"},null,{"$f":"'FR-16(7)(v)-14 TOTAL CLASS'!O402","v":7377},{"$f":"'FR-16(7)(v)-3 PROD Demand'!O402+'FR-16(7)(v)-7 TRANS Demand'!O402+'FR-16(7)(v)-11 DIST Demand'!O402","v":7154},{"$f":"'FR-16(7)(v)-4 PROD Energy'!O402+'FR-16(7)(v)-8 TRANS Energy'!O402+'FR-16(7)(v)-12 DIST Energy'!O402","v":220},{"$f":"'FR-16(7)(v)-5 PROD Cust'!O402+'FR-16(7)(v)-9 TRANS Cust'!O402+'FR-16(7)(v)-13 DIST Cust'!O402","v":3},{"$f":"SUM(G402:I402)","v":7377},{"$f":"F402-J402","v":0}]
[14,null,{"$f":"'FR-16(7)(v)-1 Functional'!C403","v":"EXCISE TAX"},{"$f":"'FR-16(7)(v)-1 Functional'!D403","v":"NP29"},null,{"$f":"'FR-16(7)(v)-14 TOTAL CLASS'!O403","v":0},{"$f":"'FR-16(7)(v)-3 PROD Demand'!O403+'FR-16(7)(v)-7 TRANS Demand'!O403+'FR-16(7)(v)-11 DIST Demand'!O403","v":0},{"$f":"'FR-16(7)(v)-4 PROD Energy'!O403+'FR-16(7)(v)-8 TRANS Energy'!O403+'FR-16(7)(v)-12 DIST Energy'!O403","v":0},{"$f":"'FR-16(7)(v)-5 PROD Cust'!O403+'FR-16(7)(v)-9 TRANS Cust'!O403+'FR-16(7)(v)-13 DIST Cust'!O403","v":0},{"$f":"SUM(G403:I403)","v":0},{"$f":"F403-J403","v":0}]
[15,null,{"$f":"'FR-16(7)(v)-1 Functional'!C404","v":"COLLATERAL ASSET"},{"$f":"'FR-16(7)(v)-1 Functional'!D404","v":"K301"},null,{"$f":"'FR-16(7)(v)-14 TOTAL CLASS'!O404","v":-2553},{"$f":"'FR-16(7)(v)-3 PROD Demand'!O404+'FR-16(7)(v)-7 TRANS Demand'!O404+'FR-16(7)(v)-11 DIST Demand'!O404","v":0},{"$f":"'FR-16(7)(v)-4 PROD Energy'!O404+'FR-16(7)(v)-8 TRANS Energy'!O404+'FR-16(7)(v)-12 DIST Energy'!O404","v":-2553},{"$f":"'FR-16(7)(v)-5 PROD Cust'!O404+'FR-16(7)(v)-9 TRANS Cust'!O404+'FR-16(7)(v)-13 DIST Cust'!O404","v":0},{"$f":"SUM(G404:I404)","v":-2553},{"$f":"F404-J404","v":0}]
[16,null,{"$f":"'FR-16(7)(v)-1 Functional'!C405","v":"  TOTAL PREPAYMENTS"},null,null,{"$f":"SUM(F401:F404)","v":4824},7154,-2333,3,4824,0]
[17]
[18,"AUTO CALC (O&M-ELECTRIC FUEL COST)/8",null,null,null,{"$f":"'FR-16(7)(v)-14 TOTAL CLASS'!O407","v":632730},{"$f":"'FR-16(7)(v)-3 PROD Demand'!O407+'FR-16(7)(v)-7 TRANS Demand'!O407+'FR-16(7)(v)-11 DIST Demand'!O407","v":632730},{"$f":"'FR-16(7)(v)-4 PROD Energy'!O407+'FR-16(7)(v)-8 TRANS Energy'!O407+'FR-16(7)(v)-12 DIST Energy'!O407","v":0},{"$f":"'FR-16(7)(v)-5 PROD Cust'!O407+'FR-16(7)(v)-9 TRANS Cust'!O407+'FR-16(7)(v)-13 DIST Cust'!O407","v":0},{"$f":"SUM(G407:I407)","v":632730},{"$f":"F407-J407","v":0}]
[19,"  TOTAL WORKING CASH",null,null,null,{"$f":"F407","v":632730},632730,0,0,632730,0]
[20]
[21,"MISCELLANEOUS WORKING CAPITAL"]
[22,null,{"$f":"'FR-16(7)(v)-1 Functional'!C411","v":"RESERVED FOR FUTURE USE"},{"$f":"'FR-16(7)(v)-1 Functional'!D411","v":"K301"},null,{"$f":"'FR-16(7)(v)-14 TOTAL CLASS'!O411","v":0},{"$f":"'FR-16(7)(v)-3 PROD Demand'!O411+'FR-16(7)(v)-7 TRANS Demand'!O411+'FR-16(7)(v)-11 DIST Demand'!O411","v":0},{"$f":"'FR-16(7)(v)-4 PROD Energy'!O411+'FR-16(7)(v)-8 TRANS Energy'!O411+'FR-16(7)(v)-12 DIST Energy'!O411","v":0},{"$f":"'FR-16(7)(v)-5 PROD Cust'!O411+'FR-16(7)(v)-9 TRANS Cust'!O411+'FR-16(7)(v)-13 DIST Cust'!O411","v":0},{"$f":"SUM(G411:I411)","v":0},{"$f":"F411-J411","v":0}]
[23,null,{"$f":"'FR-16(7)(v)-1 Functional'!C412","v":"PIPP UNCOLLECTIBLES"},{"$f":"'FR-16(7)(v)-1 Functional'!D412","v":"A315"},null,{"$f":"'FR-16(7)(v)-14 TOTAL CLASS'!O412","v":0},{"$f":"'FR-16(7)(v)-3 PROD Demand'!O412+'FR-16(7)(v)-7 TRANS Demand'!O412+'FR-16(7)(v)-11 DIST Demand'!O412","v":0},{"$f":"'FR-16(7)(v)-4 PROD Energy'!O412+'FR-16(7)(v)-8 TRANS Energy'!O412+'FR-16(7)(v)-12 DIST Energy'!O412","v":0},{"$f":"'FR-16(7)(v)-5 PROD Cust'!O412+'FR-16(7)(v)-9 TRANS Cust'!O412+'FR-16(7)(v)-13 DIST Cust'!O412","v":0},{"$f":"SUM(G412:I412)","v":0},{"$f":"F412-J412","v":0}]
[24,null,{"$f":"'FR-16(7)(v)-1 Functional'!C413","v":"RESERVED FOR FUTURE USE"},{"$f":"'FR-16(7)(v)-1 Functional'!D413","v":"D249"},null,{"$f":"'FR-16(7)(v)-14 TOTAL CLASS'!O413","v":0},{"$f":"'FR-16(7)(v)-3 PROD Demand'!O413+'FR-16(7)(v)-7 TRANS Demand'!O413+'FR-16(7)(v)-11 DIST Demand'!O413","v":0},{"$f":"'FR-16(7)(v)-4 PROD Energy'!O413+'FR-16(7)(v)-8 TRANS Energy'!O413+'FR-16(7)(v)-12 DIST Energy'!O413","v":0},{"$f":"'FR-16(7)(v)-5 PROD Cust'!O413+'FR-16(7)(v)-9 TRANS Cust'!O413+'FR-16(7)(v)-13 DIST Cust'!O413","v":0},{"$f":"SUM(G413:I413)","v":0},{"$f":"F413-J413","v":0}]
[25,null,{"$f":"'FR-16(7)(v)-1 Functional'!C414","v":"  TOTAL MISC WORK CAPITAL"},null,null,{"$f":"SUM(F410:F413)","v":0},0,0,0,0,0]
[26]
[27,"TOTAL WORKING CAPITAL",null,null,null,{"$f":"F399+F405+F408+F414","v":2395926},962920,1433241,-235,2395926,0]
[28,"PRELIMINARY SUMMARY"]
[29,null,{"$f":"'FR-16(7)(v)-1 Functional'!C418","v":"TOTAL ACCUMULATED DEFERRED INCOME TAXES"},null,null,{"$f":"-F324","v":-7639711},-6822367,-817442,98,-7639711,0]
[30,null,{"$f":"'FR-16(7)(v)-1 Functional'!C419","v":"TOTAL OTHER ACCUMULATED DEFERRED INCOME TAXES"},null,null,{"$f":"F377","v":491815},165839,325580,396,491815,0]
[31,null,{"$f":"'FR-16(7)(v)-1 Functional'!C420","v":"TOTAL WORKING CAPITAL"},null,null,{"$f":"F416","v":2395926},962920,1433241,-235,2395926,0]
[32,null,{"$f":"'FR-16(7)(v)-1 Functional'!C421","v":"  TOTAL RATE BASE ADJUSTMENTS"},null,null,{"$f":"SUM(F417:F420)","v":-4751970},-5693608,941379,259,-4751970,0]
[33]
[34,"RATE BASE CALCULATION"]
[35,null,{"$f":"'FR-16(7)(v)-1 Functional'!C424","v":"NET ELECTRIC PLANT IN SERVICE"},null,null,{"$f":"F277","v":30385139},29467330,906844,10965,30385139,0]
[36,null,{"$f":"'FR-16(7)(v)-1 Functional'!C425","v":"TOTAL RATE BASE ADJUSTMENTS"},null,null,{"$f":"F421","v":-4751970},-5693608,941379,259,-4751970,0]
[37,null,{"$f":"'FR-16(7)(v)-1 Functional'!C426","v":"  TOTAL RATE BASE"},null,null,{"$f":"SUM(F423:F425)","v":25633169},23773722,1848223,11224,25633169,0]
[38]
[39,"TOTAL RATE OF RETURN ALLOWABLE",null,null,null,{"$f":"$F$811","v":6.7100000000000007E-2},{"$f":"F811","v":6.7100000000000007E-2},{"$f":"F811","v":6.7100000000000007E-2},{"$f":"F811","v":6.7100000000000007E-2},{"$f":"F811","v":6.7100000000000007E-2}]
[40,"RETURN ON RATE BASE",null,null,null,{"$f":"ROUND(F428*F426,0)","v":1719986},{"$f":"F429-SUM(H429:I429)","v":1595217},{"$f":"ROUND(H426*H428,0)","v":124016},{"$f":"ROUND(I426*I428,0)","v":753},{"$f":"SUM(G429:I429)","v":1719986},{"$f":"ROUND(K426*K428,0)","v":0}]
[41]
[42,{"$f":"'FR-16(7)(v)-1 Functional'!B431","v":"ELECTRIC RATE BASE"},null,{"$f":"'FR-16(7)(v)-1 Functional'!D431","v":"RB99"},null,{"$f":"'FR-16(7)(v)-14 TOTAL CLASS'!O431","v":25635088},{"$f":"'FR-16(7)(v)-3 PROD Demand'!O431+'FR-16(7)(v)-7 TRANS Demand'!O431+'FR-16(7)(v)-11 DIST Demand'!O431","v":23775440},{"$f":"'FR-16(7)(v)-4 PROD Energy'!O431+'FR-16(7)(v)-8 TRANS Energy'!O431+'FR-16(7)(v)-12 DIST Energy'!O431","v":1848489},{"$f":"'FR-16(7)(v)-5 PROD Cust'!O431+'FR-16(7)(v)-9 TRANS Cust'!O431+'FR-16(7)(v)-13 DIST Cust'!O431","v":11159},{"$f":"SUM(G431:I431)","v":25635088},{"$f":"F431-J431","v":0}]
[43,{"$f":"'FR-16(7)(v)-1 Functional'!B432","v":"TOTAL RATE OF RETURN ALLOWABLE"},null,null,null,{"$f":"RofR","v":6.7110000000000003E-2},{"$f":"RofR","v":6.7110000000000003E-2},{"$f":"RofR","v":6.7110000000000003E-2},{"$f":"RofR","v":6.7110000000000003E-2},{"$f":"RofR","v":6.7110000000000003E-2}]
[44,{"$f":"'FR-16(7)(v)-1 Functional'!B433","v":"RETURN ON RATE BASE"},null,null,null,{"$f":"ROUND(F431*F432,0)","v":1720371},{"$f":"F433-H433-I433","v":1595570},{"$f":"ROUND(H431*H432,0)","v":124052},{"$f":"ROUND(I431*I432,0)","v":749},{"$f":"ROUND(J431*J432,0)","v":1720371},{"$f":"F433-J433","v":0}]
[]
[{"$f":"co_name","v":"DUKE ENERGY KENTUCKY, INC."},null,null,null,null,null,null,null,null,{"$f":"J1","v":"FR-16(7)(v)-23"}]
[{"$f":"$A$2","v":"TT CLASSIFIED - ELECTRIC COST OF SERVICE"},null,null,null,null,null,null,null,null,{"$f":"J2","v":"WITNESS RESPONSIBLE:"}]
[{"$f":"case_name","v":"CASE NO: 2019-00271"},null,null,null,null,null,null,null,null,{"$f":"Witness","v":"JAMES E. ZIOLKOWSKI"}]
[{"$f":"data_filing","v":"DATA: 12 MONTHS ACTUAL  & 0 MONTHS ESTIMATED"},null,null,null,null,null,null,null,null,{"$f":"\"PAGE \"&Pages2-7&\" OF \"&Pages2","v":"PAGE 8 OF 15"}]
[{"$f":"type","v":"TYPE OF FILING: \"X\" ORIGINAL   UPDATED    REVISED  "}]
[]
[]
["LINE",null,null,null,null,"TOTAL","CLASSIFIED",null,null,"TOTAL","ALL"]
["NO.","O&M EXPENSES",null,"ALLO",null,{"$f":"$F$9","v":"TT"},{"$f":"G9","v":"DEMAND"},"ENERGY","CUSTOMER","AT ISSUE","OTHER"]
[null,null,"Schedule 6",null,null,null,3,4,5]
[1,"PRODUCTION O&M"]
[2,{"$f":"'FR-16(7)(v)-1 Functional'!B446","v":"ENERGY RELATED PRODUCTION O&M"}]
[3,null,{"$f":"'FR-16(7)(v)-1 Functional'!C447","v":"FUEL"},{"$f":"'FR-16(7)(v)-1 Functional'!D447","v":"K302"},null,{"$f":"'FR-16(7)(v)-14 TOTAL CLASS'!O447","v":0},{"$f":"'FR-16(7)(v)-3 PROD Demand'!O447+'FR-16(7)(v)-7 TRANS Demand'!O447+'FR-16(7)(v)-11 DIST Demand'!O447","v":0},{"$f":"'FR-16(7)(v)-4 PROD Energy'!O447+'FR-16(7)(v)-8 TRANS Energy'!O447+'FR-16(7)(v)-12 DIST Energy'!O447","v":0},{"$f":"'FR-16(7)(v)-5 PROD Cust'!O447+'FR-16(7)(v)-9 TRANS Cust'!O447+'FR-16(7)(v)-13 DIST Cust'!O447","v":0},{"$f":"SUM(G447:I447)","v":0},{"$f":"F447-J447","v":0}]
[4,null,{"$f":"'FR-16(7)(v)-1 Functional'!C448","v":"FUEL AND PURCHASED POWER ADJUSTMENT"},{"$f":"'FR-16(7)(v)-1 Functional'!D448","v":"K302"},null,{"$f":"'FR-16(7)(v)-14 TOTAL CLASS'!O448","v":5492776},{"$f":"'FR-16(7)(v)-3 PROD Demand'!O448+'FR-16(7)(v)-7 TRANS Demand'!O448+'FR-16(7)(v)-11 DIST Demand'!O448","v":0},{"$f":"'FR-16(7)(v)-4 PROD Energy'!O448+'FR-16(7)(v)-8 TRANS Energy'!O448+'FR-16(7)(v)-12 DIST Energy'!O448","v":5492776},{"$f":"'FR-16(7)(v)-5 PROD Cust'!O448+'FR-16(7)(v)-9 TRANS Cust'!O448+'FR-16(7)(v)-13 DIST Cust'!O448","v":0},5492776,0]
[5,null,{"$f":"'FR-16(7)(v)-1 Functional'!C449","v":"EMISSION ALLOWANCES"},{"$f":"'FR-16(7)(v)-1 Functional'!D449","v":"K301"},null,{"$f":"'FR-16(7)(v)-14 TOTAL CLASS'!O449","v":0},{"$f":"'FR-16(7)(v)-3 PROD Demand'!O449+'FR-16(7)(v)-7 TRANS Demand'!O449+'FR-16(7)(v)-11 DIST Demand'!O449","v":0},{"$f":"'FR-16(7)(v)-4 PROD Energy'!O449+'FR-16(7)(v)-8 TRANS Energy'!O449+'FR-16(7)(v)-12 DIST Energy'!O449","v":0},{"$f":"'FR-16(7)(v)-5 PROD Cust'!O449+'FR-16(7)(v)-9 TRANS Cust'!O449+'FR-16(7)(v)-13 DIST Cust'!O449","v":0},0,0]
[6,null,{"$f":"'FR-16(7)(v)-1 Functional'!C450","v":"ELIMINATE EMISSION ALLOW & OTHER VAR COST"},{"$f":"'FR-16(7)(v)-1 Functional'!D450","v":"K301"},null,{"$f":"'FR-16(7)(v)-14 TOTAL CLASS'!O450","v":0},{"$f":"'FR-16(7)(v)-3 PROD Demand'!O450+'FR-16(7)(v)-7 TRANS Demand'!O450+'FR-16(7)(v)-11 DIST Demand'!O450","v":0},{"$f":"'FR-16(7)(v)-4 PROD Energy'!O450+'FR-16(7)(v)-8 TRANS Energy'!O450+'FR-16(7)(v)-12 DIST Energy'!O450","v":0},{"$f":"'FR-16(7)(v)-5 PROD Cust'!O450+'FR-16(7)(v)-9 TRANS Cust'!O450+'FR-16(7)(v)-13 DIST Cust'!O450","v":0},0,0]
[7,null,{"$f":"'FR-16(7)(v)-1 Functional'!C451","v":"OTHER PRODUCTION EXPENSE - MAINTENANCE"},{"$f":"'FR-16(7)(v)-1 Functional'!D451","v":"K301"},null,{"$f":"'FR-16(7)(v)-14 TOTAL CLASS'!O451","v":2355584},{"$f":"'FR-16(7)(v)-3 PROD Demand'!O451+'FR-16(7)(v)-7 TRANS Demand'!O451+'FR-16(7)(v)-11 DIST Demand'!O451","v":0},{"$f":"'FR-16(7)(v)-4 PROD Energy'!O451+'FR-16(7)(v)-8 TRANS Energy'!O451+'FR-16(7)(v)-12 DIST Energy'!O451","v":2355584},{"$f":"'FR-16(7)(v)-5 PROD Cust'!O451+'FR-16(7)(v)-9 TRANS Cust'!O451+'FR-16(7)(v)-13 DIST Cust'!O451","v":0},2355584,0]
[8,null,{"$f":"'FR-16(7)(v)-1 Functional'!C452","v":"MISO TRANSMISSION CHARGES - ACCT 555"},{"$f":"'FR-16(7)(v)-1 Functional'!D452","v":"K301"},null,{"$f":"'FR-16(7)(v)-14 TOTAL CLASS'!O452","v":0},{"$f":"'FR-16(7)(v)-3 PROD Demand'!O452+'FR-16(7)(v)-7 TRANS Demand'!O452+'FR-16(7)(v)-11 DIST Demand'!O452","v":0},{"$f":"'FR-16(7)(v)-4 PROD Energy'!O452+'FR-16(7)(v)-8 TRANS Energy'!O452+'FR-16(7)(v)-12 DIST Energy'!O452","v":0},{"$f":"'FR-16(7)(v)-5 PROD Cust'!O452+'FR-16(7)(v)-9 TRANS Cust'!O452+'FR-16(7)(v)-13 DIST Cust'!O452","v":0},0,0]
[9,null,{"$f":"'FR-16(7)(v)-1 Functional'!C453","v":"  TOTAL ENERGY RELATED"},null,null,{"$f":"SUM(F447:F452)","v":7848360},0,7848360,0,7848360,0]
[10]
[11,"DEMAND RELATED & OTHER PROD O&M"]
[12,null,{"$f":"'FR-16(7)(v)-1 Functional'!C456","v":"OTHER PRODUCTION EXPENSES - OPERATIONS"},{"$f":"'FR-16(7)(v)-1 Functional'!D456","v":"K201"},null,{"$f":"'FR-16(7)(v)-14 TOTAL CLASS'!O456","v":0},{"$f":"'FR-16(7)(v)-3 PROD Demand'!O456+'FR-16(7)(v)-7 TRANS Demand'!O456+'FR-16(7)(v)-11 DIST Demand'!O456","v":0},{"$f":"'FR-16(7)(v)-4 PROD Energy'!O456+'FR-16(7)(v)-8 TRANS Energy'!O456+'FR-16(7)(v)-12 DIST Energy'!O456","v":0},{"$f":"'FR-16(7)(v)-5 PROD Cust'!O456+'FR-16(7)(v)-9 TRANS Cust'!O456+'FR-16(7)(v)-13 DIST Cust'!O456","v":0},{"$f":"SUM(G456:I456)","v":0},{"$f":"F456-J456","v":0}]
[13,null,{"$f":"'FR-16(7)(v)-1 Functional'!C457","v":"  TOTAL DEMAND REL & OTH PROD O&M "},null,null,{"$f":"SUM(F455:F456)","v":0},0,0,0,0,0]
[14]
[15,"TOTAL PRODUCTION O&M",null,null," ",{"$f":"F457+F453","v":7848360},0,7848360,0,7848360,0]
[16]
[17,"TRANSMISSION O & M"]
[18,null,{"$f":"'FR-16(7)(v)-1 Functional'!C462","v":"TRANSFORMER LEASE PAYMENTS"},{"$f":"'FR-16(7)(v)-1 Functional'!D462","v":"K202"},null,{"$f":"'FR-16(7)(v)-14 TOTAL CLASS'!O462","v":0},{"$f":"'FR-16(7)(v)-3 PROD Demand'!O462+'FR-16(7)(v)-7 TRANS Demand'!O462+'FR-16(7)(v)-11 DIST Demand'!O462","v":0},{"$f":"'FR-16(7)(v)-4 PROD Energy'!O462+'FR-16(7)(v)-8 TRANS Energy'!O462+'FR-16(7)(v)-12 DIST Energy'!O462","v":0},{"$f":"'FR-16(7)(v)-5 PROD Cust'!O462+'FR-16(7)(v)-9 TRANS Cust'!O462+'FR-16(7)(v)-13 DIST Cust'!O462","v":0},{"$f":"SUM(G462:I462)","v":0},{"$f":"F462-J462","v":0}]
[19,null,{"$f":"'FR-16(7)(v)-1 Functional'!C463","v":"OTHER TRANSMISSION"},{"$f":"'FR-16(7)(v)-1 Functional'!D463","v":"K202"},null,{"$f":"'FR-16(7)(v)-14 TOTAL CLASS'!O463","v":978632},{"$f":"'FR-16(7)(v)-3 PROD Demand'!O463+'FR-16(7)(v)-7 TRANS Demand'!O463+'FR-16(7)(v)-11 DIST Demand'!O463","v":978632},{"$f":"'FR-16(7)(v)-4 PROD Energy'!O463+'FR-16(7)(v)-8 TRANS Energy'!O463+'FR-16(7)(v)-12 DIST Energy'!O463","v":0},{"$f":"'FR-16(7)(v)-5 PROD Cust'!O463+'FR-16(7)(v)-9 TRANS Cust'!O463+'FR-16(7)(v)-13 DIST Cust'!O463","v":0},{"$f":"SUM(G463:I463)","v":978632},{"$f":"F463-J463","v":0}]
[20,null,{"$f":"'FR-16(7)(v)-1 Functional'!C464","v":"MISCELLANEOUS ADJUSTMENTS"},{"$f":"'FR-16(7)(v)-1 Functional'!D464","v":"K202"},null,{"$f":"'FR-16(7)(v)-14 TOTAL CLASS'!O464","v":0},{"$f":"'FR-16(7)(v)-3 PROD Demand'!O464+'FR-16(7)(v)-7 TRANS Demand'!O464+'FR-16(7)(v)-11 DIST Demand'!O464","v":0},{"$f":"'FR-16(7)(v)-4 PROD Energy'!O464+'FR-16(7)(v)-8 TRANS Energy'!O464+'FR-16(7)(v)-12 DIST Energy'!O464","v":0},{"$f":"'FR-16(7)(v)-5 PROD Cust'!O464+'FR-16(7)(v)-9 TRANS Cust'!O464+'FR-16(7)(v)-13 DIST Cust'!O464","v":0},{"$f":"SUM(G464:I464)","v":0},{"$f":"F464-J464","v":0}]
[21,null,{"$f":"'FR-16(7)(v)-1 Functional'!C465","v":"NETWORK SERVICE RATES ADJUSTMENT"},{"$f":"'FR-16(7)(v)-1 Functional'!D465","v":"K202"},null,{"$f":"'FR-16(7)(v)-14 TOTAL CLASS'!O465","v":0},{"$f":"'FR-16(7)(v)-3 PROD Demand'!O465+'FR-16(7)(v)-7 TRANS Demand'!O465+'FR-16(7)(v)-11 DIST Demand'!O465","v":0},{"$f":"'FR-16(7)(v)-4 PROD Energy'!O465+'FR-16(7)(v)-8 TRANS Energy'!O465+'FR-16(7)(v)-12 DIST Energy'!O465","v":0},{"$f":"'FR-16(7)(v)-5 PROD Cust'!O465+'FR-16(7)(v)-9 TRANS Cust'!O465+'FR-16(7)(v)-13 DIST Cust'!O465","v":0},{"$f":"SUM(G465:I465)","v":0},{"$f":"F465-J465","v":0}]
[22,null,{"$f":"'FR-16(7)(v)-1 Functional'!C466","v":"  TOTAL TRANSMISSION O & M"},null,null,{"$f":"SUM(F462:F465)","v":978632},978632,0,0,978632,0]
[23]
[24,"REGIONAL MARKET O&M"]
[25,null,{"$f":"'FR-16(7)(v)-1 Functional'!C469","v":"MARKET FACILITATION - MONITORING & COMPLIANCE"},{"$f":"'FR-16(7)(v)-1 Functional'!D469","v":"K202"},null,{"$f":"'FR-16(7)(v)-14 TOTAL CLASS'!O469","v":77221},{"$f":"'FR-16(7)(v)-3 PROD Demand'!O469+'FR-16(7)(v)-7 TRANS Demand'!O469+'FR-16(7)(v)-11 DIST Demand'!O469","v":77221},{"$f":"'FR-16(7)(v)-4 PROD Energy'!O469+'FR-16(7)(v)-8 TRANS Energy'!O469+'FR-16(7)(v)-12 DIST Energy'!O469","v":0},{"$f":"'FR-16(7)(v)-5 PROD Cust'!O469+'FR-16(7)(v)-9 TRANS Cust'!O469+'FR-16(7)(v)-13 DIST Cust'!O469","v":0},{"$f":"SUM(G469:I469)","v":77221},{"$f":"F469-J469","v":0}]
[26,null,{"$f":"'FR-16(7)(v)-1 Functional'!C470","v":"TOTAL REGIONAL MARKET O&M"},null,null,{"$f":"SUM(F468:F469)","v":77221},77221,0,0,77221,0]
[27]
[28,"DISTRIBUTION O & M"]
[29,null,{"$f":"'FR-16(7)(v)-1 Functional'!C473","v":"SUBSTATIONS"},{"$f":"'FR-16(7)(v)-1 Functional'!D473","v":"K201"},null,{"$f":"'FR-16(7)(v)-14 TOTAL CLASS'!O473","v":26255},{"$f":"'FR-16(7)(v)-3 PROD Demand'!O473+'FR-16(7)(v)-7 TRANS Demand'!O473+'FR-16(7)(v)-11 DIST Demand'!O473","v":26255},{"$f":"'FR-16(7)(v)-4 PROD Energy'!O473+'FR-16(7)(v)-8 TRANS Energy'!O473+'FR-16(7)(v)-12 DIST Energy'!O473","v":0},{"$f":"'FR-16(7)(v)-5 PROD Cust'!O473+'FR-16(7)(v)-9 TRANS Cust'!O473+'FR-16(7)(v)-13 DIST Cust'!O473","v":0},{"$f":"SUM(G473:I473)","v":26255},{"$f":"F473-J473","v":0}]
[30,null,{"$f":"'FR-16(7)(v)-1 Functional'!C474","v":"POLES, TOWERS & FIXTURES"},{"$f":"'FR-16(7)(v)-1 Functional'!D474","v":"PL49"},null,{"$f":"'FR-16(7)(v)-14 TOTAL CLASS'!O474","v":0},{"$f":"'FR-16(7)(v)-3 PROD Demand'!O474+'FR-16(7)(v)-7 TRANS Demand'!O474+'FR-16(7)(v)-11 DIST Demand'!O474","v":0},{"$f":"'FR-16(7)(v)-4 PROD Energy'!O474+'FR-16(7)(v)-8 TRANS Energy'!O474+'FR-16(7)(v)-12 DIST Energy'!O474","v":0},{"$f":"'FR-16(7)(v)-5 PROD Cust'!O474+'FR-16(7)(v)-9 TRANS Cust'!O474+'FR-16(7)(v)-13 DIST Cust'!O474","v":0},0,0]
[31,null,{"$f":"'FR-16(7)(v)-1 Functional'!C475","v":"OVERHEAD LINES - PRIMARY / DEMAND"},{"$f":"'FR-16(7)(v)-1 Functional'!D475","v":"K205"},null,{"$f":"'FR-16(7)(v)-14 TOTAL CLASS'!O475","v":0},{"$f":"'FR-16(7)(v)-3 PROD Demand'!O475+'FR-16(7)(v)-7 TRANS Demand'!O475+'FR-16(7)(v)-11 DIST Demand'!O475","v":0},{"$f":"'FR-16(7)(v)-4 PROD Energy'!O475+'FR-16(7)(v)-8 TRANS Energy'!O475+'FR-16(7)(v)-12 DIST Energy'!O475","v":0},{"$f":"'FR-16(7)(v)-5 PROD Cust'!O475+'FR-16(7)(v)-9 TRANS Cust'!O475+'FR-16(7)(v)-13 DIST Cust'!O475","v":0},0,0]
[32,null,{"$f":"'FR-16(7)(v)-1 Functional'!C476","v":"OVERHEAD LINES - PRIMARY / CUSTOMER"},{"$f":"'FR-16(7)(v)-1 Functional'!D476","v":"K405"},null,{"$f":"'FR-16(7)(v)-14 TOTAL CLASS'!O476","v":0},{"$f":"'FR-16(7)(v)-3 PROD Demand'!O476+'FR-16(7)(v)-7 TRANS Demand'!O476+'FR-16(7)(v)-11 DIST Demand'!O476","v":0},{"$f":"'FR-16(7)(v)-4 PROD Energy'!O476+'FR-16(7)(v)-8 TRANS Energy'!O476+'FR-16(7)(v)-12 DIST Energy'!O476","v":0},{"$f":"'FR-16(7)(v)-5 PROD Cust'!O476+'FR-16(7)(v)-9 TRANS Cust'!O476+'FR-16(7)(v)-13 DIST Cust'!O476","v":0},{"$f":"SUM(G476:I476)","v":0},{"$f":"F476-J476","v":0}]
[33,null,{"$f":"'FR-16(7)(v)-1 Functional'!C477","v":"OVERHEAD LINES - SECONDARY / DEMAND"},{"$f":"'FR-16(7)(v)-1 Functional'!D477","v":"K206"},null,{"$f":"'FR-16(7)(v)-14 TOTAL CLASS'!O477","v":0},{"$f":"'FR-16(7)(v)-3 PROD Demand'!O477+'FR-16(7)(v)-7 TRANS Demand'!O477+'FR-16(7)(v)-11 DIST Demand'!O477","v":0},{"$f":"'FR-16(7)(v)-4 PROD Energy'!O477+'FR-16(7)(v)-8 TRANS Energy'!O477+'FR-16(7)(v)-12 DIST Energy'!O477","v":0},{"$f":"'FR-16(7)(v)-5 PROD Cust'!O477+'FR-16(7)(v)-9 TRANS Cust'!O477+'FR-16(7)(v)-13 DIST Cust'!O477","v":0},0,0]
[34,null,{"$f":"'FR-16(7)(v)-1 Functional'!C478","v":"OVERHEAD LINES - SECONDARY / CUSTOMER"},{"$f":"'FR-16(7)(v)-1 Functional'!D478","v":"K405"},null,{"$f":"'FR-16(7)(v)-14 TOTAL CLASS'!O478","v":0},{"$f":"'FR-16(7)(v)-3 PROD Demand'!O478+'FR-16(7)(v)-7 TRANS Demand'!O478+'FR-16(7)(v)-11 DIST Demand'!O478","v":0},{"$f":"'FR-16(7)(v)-4 PROD Energy'!O478+'FR-16(7)(v)-8 TRANS Energy'!O478+'FR-16(7)(v)-12 DIST Energy'!O478","v":0},{"$f":"'FR-16(7)(v)-5 PROD Cust'!O478+'FR-16(7)(v)-9 TRANS Cust'!O478+'FR-16(7)(v)-13 DIST Cust'!O478","v":0},0,0]
[35,null,{"$f":"'FR-16(7)(v)-1 Functional'!C479","v":"UNDERGROUND LINES - PRIMARY / DEMAND"},{"$f":"'FR-16(7)(v)-1 Functional'!D479","v":"K205"},null,{"$f":"'FR-16(7)(v)-14 TOTAL CLASS'!O479","v":0},{"$f":"'FR-16(7)(v)-3 PROD Demand'!O479+'FR-16(7)(v)-7 TRANS Demand'!O479+'FR-16(7)(v)-11 DIST Demand'!O479","v":0},{"$f":"'FR-16(7)(v)-4 PROD Energy'!O479+'FR-16(7)(v)-8 TRANS Energy'!O479+'FR-16(7)(v)-12 DIST Energy'!O479","v":0},{"$f":"'FR-16(7)(v)-5 PROD Cust'!O479+'FR-16(7)(v)-9 TRANS Cust'!O479+'FR-16(7)(v)-13 DIST Cust'!O479","v":0},0,0]
[36,null,{"$f":"'FR-16(7)(v)-1 Functional'!C480","v":"UNDERGROUND LINES - PRIMARY / CUSTOMER"},{"$f":"'FR-16(7)(v)-1 Functional'!D480","v":"K405"},null,{"$f":"'FR-16(7)(v)-14 TOTAL CLASS'!O480","v":0},{"$f":"'FR-16(7)(v)-3 PROD Demand'!O480+'FR-16(7)(v)-7 TRANS Demand'!O480+'FR-16(7)(v)-11 DIST Demand'!O480","v":0},{"$f":"'FR-16(7)(v)-4 PROD Energy'!O480+'FR-16(7)(v)-8 TRANS Energy'!O480+'FR-16(7)(v)-12 DIST Energy'!O480","v":0},{"$f":"'FR-16(7)(v)-5 PROD Cust'!O480+'FR-16(7)(v)-9 TRANS Cust'!O480+'FR-16(7)(v)-13 DIST Cust'!O480","v":0},0,0]
[37,null,{"$f":"'FR-16(7)(v)-1 Functional'!C481","v":"UNDERGROUND LINES - SECONDARY / DEMAND"},{"$f":"'FR-16(7)(v)-1 Functional'!D481","v":"K206"},null,{"$f":"'FR-16(7)(v)-14 TOTAL CLASS'!O481","v":0},{"$f":"'FR-16(7)(v)-3 PROD Demand'!O481+'FR-16(7)(v)-7 TRANS Demand'!O481+'FR-16(7)(v)-11 DIST Demand'!O481","v":0},{"$f":"'FR-16(7)(v)-4 PROD Energy'!O481+'FR-16(7)(v)-8 TRANS Energy'!O481+'FR-16(7)(v)-12 DIST Energy'!O481","v":0},{"$f":"'FR-16(7)(v)-5 PROD Cust'!O481+'FR-16(7)(v)-9 TRANS Cust'!O481+'FR-16(7)(v)-13 DIST Cust'!O481","v":0},0,0]
[38,null,{"$f":"'FR-16(7)(v)-1 Functional'!C482","v":"UNDERGROUND LINES - SECONDARY / CUSTOMER"},{"$f":"'FR-16(7)(v)-1 Functional'!D482","v":"K405"},null,{"$f":"'FR-16(7)(v)-14 TOTAL CLASS'!O482","v":0},{"$f":"'FR-16(7)(v)-3 PROD Demand'!O482+'FR-16(7)(v)-7 TRANS Demand'!O482+'FR-16(7)(v)-11 DIST Demand'!O482","v":0},{"$f":"'FR-16(7)(v)-4 PROD Energy'!O482+'FR-16(7)(v)-8 TRANS Energy'!O482+'FR-16(7)(v)-12 DIST Energy'!O482","v":0},{"$f":"'FR-16(7)(v)-5 PROD Cust'!O482+'FR-16(7)(v)-9 TRANS Cust'!O482+'FR-16(7)(v)-13 DIST Cust'!O482","v":0},0,0]
[39,null,{"$f":"'FR-16(7)(v)-1 Functional'!C483","v":"TRANSFORMERS DEMAND RELATED"},{"$f":"'FR-16(7)(v)-1 Functional'!D483","v":"K203"},null,{"$f":"'FR-16(7)(v)-14 TOTAL CLASS'!O483","v":8198},{"$f":"'FR-16(7)(v)-3 PROD Demand'!O483+'FR-16(7)(v)-7 TRANS Demand'!O483+'FR-16(7)(v)-11 DIST Demand'!O483","v":8198},{"$f":"'FR-16(7)(v)-4 PROD Energy'!O483+'FR-16(7)(v)-8 TRANS Energy'!O483+'FR-16(7)(v)-12 DIST Energy'!O483","v":0},{"$f":"'FR-16(7)(v)-5 PROD Cust'!O483+'FR-16(7)(v)-9 TRANS Cust'!O483+'FR-16(7)(v)-13 DIST Cust'!O483","v":0},8198,0]
[40,null,{"$f":"'FR-16(7)(v)-1 Functional'!C484","v":"TRANSFORMERS CUSTOMER RELATED"},{"$f":"'FR-16(7)(v)-1 Functional'!D484","v":"K401"},null,{"$f":"'FR-16(7)(v)-14 TOTAL CLASS'!O484","v":0},{"$f":"'FR-16(7)(v)-3 PROD Demand'!O484+'FR-16(7)(v)-7 TRANS Demand'!O484+'FR-16(7)(v)-11 DIST Demand'!O484","v":0},{"$f":"'FR-16(7)(v)-4 PROD Energy'!O484+'FR-16(7)(v)-8 TRANS Energy'!O484+'FR-16(7)(v)-12 DIST Energy'!O484","v":0},{"$f":"'FR-16(7)(v)-5 PROD Cust'!O484+'FR-16(7)(v)-9 TRANS Cust'!O484+'FR-16(7)(v)-13 DIST Cust'!O484","v":0},{"$f":"SUM(G484:I484)","v":0},{"$f":"F484-J484","v":0}]
[41,null,{"$f":"'FR-16(7)(v)-1 Functional'!C485","v":"OTHER MAINTENANCE"},{"$f":"'FR-16(7)(v)-1 Functional'!D485","v":"K203"},null,{"$f":"'FR-16(7)(v)-14 TOTAL CLASS'!O485","v":57186},{"$f":"'FR-16(7)(v)-3 PROD Demand'!O485+'FR-16(7)(v)-7 TRANS Demand'!O485+'FR-16(7)(v)-11 DIST Demand'!O485","v":57186},{"$f":"'FR-16(7)(v)-4 PROD Energy'!O485+'FR-16(7)(v)-8 TRANS Energy'!O485+'FR-16(7)(v)-12 DIST Energy'!O485","v":0},{"$f":"'FR-16(7)(v)-5 PROD Cust'!O485+'FR-16(7)(v)-9 TRANS Cust'!O485+'FR-16(7)(v)-13 DIST Cust'!O485","v":0},57186,0]
[42,null,{"$f":"'FR-16(7)(v)-1 Functional'!C486","v":"LOAD DISPATCH"},{"$f":"'FR-16(7)(v)-1 Functional'!D486","v":"K215"},null,{"$f":"'FR-16(7)(v)-14 TOTAL CLASS'!O486","v":0},{"$f":"'FR-16(7)(v)-3 PROD Demand'!O486+'FR-16(7)(v)-7 TRANS Demand'!O486+'FR-16(7)(v)-11 DIST Demand'!O486","v":0},{"$f":"'FR-16(7)(v)-4 PROD Energy'!O486+'FR-16(7)(v)-8 TRANS Energy'!O486+'FR-16(7)(v)-12 DIST Energy'!O486","v":0},{"$f":"'FR-16(7)(v)-5 PROD Cust'!O486+'FR-16(7)(v)-9 TRANS Cust'!O486+'FR-16(7)(v)-13 DIST Cust'!O486","v":0},0,0]
[43,null,{"$f":"'FR-16(7)(v)-1 Functional'!C487","v":"METERS"},{"$f":"'FR-16(7)(v)-1 Functional'!D487","v":"K407"},null,{"$f":"'FR-16(7)(v)-14 TOTAL CLASS'!O487","v":247},{"$f":"'FR-16(7)(v)-3 PROD Demand'!O487+'FR-16(7)(v)-7 TRANS Demand'!O487+'FR-16(7)(v)-11 DIST Demand'!O487","v":0},{"$f":"'FR-16(7)(v)-4 PROD Energy'!O487+'FR-16(7)(v)-8 TRANS Energy'!O487+'FR-16(7)(v)-12 DIST Energy'!O487","v":0},{"$f":"'FR-16(7)(v)-5 PROD Cust'!O487+'FR-16(7)(v)-9 TRANS Cust'!O487+'FR-16(7)(v)-13 DIST Cust'!O487","v":247},247,0]
[44,null,{"$f":"'FR-16(7)(v)-1 Functional'!C488","v":"STREET LIGHTING AND SIGNAL SYSTEMS"},{"$f":"'FR-16(7)(v)-1 Functional'!D488","v":"K401"},null,{"$f":"'FR-16(7)(v)-14 TOTAL CLASS'!O488","v":0},{"$f":"'FR-16(7)(v)-3 PROD Demand'!O488+'FR-16(7)(v)-7 TRANS Demand'!O488+'FR-16(7)(v)-11 DIST Demand'!O488","v":0},{"$f":"'FR-16(7)(v)-4 PROD Energy'!O488+'FR-16(7)(v)-8 TRANS Energy'!O488+'FR-16(7)(v)-12 DIST Energy'!O488","v":0},{"$f":"'FR-16(7)(v)-5 PROD Cust'!O488+'FR-16(7)(v)-9 TRANS Cust'!O488+'FR-16(7)(v)-13 DIST Cust'!O488","v":0},0,0]
[45,null,{"$f":"'FR-16(7)(v)-1 Functional'!C489","v":"OTHER OPERATIONS"},{"$f":"'FR-16(7)(v)-1 Functional'!D489","v":"K203"},null,{"$f":"'FR-16(7)(v)-14 TOTAL CLASS'!O489","v":21837},{"$f":"'FR-16(7)(v)-3 PROD Demand'!O489+'FR-16(7)(v)-7 TRANS Demand'!O489+'FR-16(7)(v)-11 DIST Demand'!O489","v":21837},{"$f":"'FR-16(7)(v)-4 PROD Energy'!O489+'FR-16(7)(v)-8 TRANS Energy'!O489+'FR-16(7)(v)-12 DIST Energy'!O489","v":0},{"$f":"'FR-16(7)(v)-5 PROD Cust'!O489+'FR-16(7)(v)-9 TRANS Cust'!O489+'FR-16(7)(v)-13 DIST Cust'!O489","v":0},21837,0]
[46,null,{"$f":"'FR-16(7)(v)-1 Functional'!C490","v":"MISCELLANEOUS EXPENSES ADJUSTMENT"},{"$f":"'FR-16(7)(v)-1 Functional'!D490","v":"K203"},null,{"$f":"'FR-16(7)(v)-14 TOTAL CLASS'!O490","v":67300},{"$f":"'FR-16(7)(v)-3 PROD Demand'!O490+'FR-16(7)(v)-7 TRANS Demand'!O490+'FR-16(7)(v)-11 DIST Demand'!O490","v":67300},{"$f":"'FR-16(7)(v)-4 PROD Energy'!O490+'FR-16(7)(v)-8 TRANS Energy'!O490+'FR-16(7)(v)-12 DIST Energy'!O490","v":0},{"$f":"'FR-16(7)(v)-5 PROD Cust'!O490+'FR-16(7)(v)-9 TRANS Cust'!O490+'FR-16(7)(v)-13 DIST Cust'!O490","v":0},67300,0]
[47,null,{"$f":"'FR-16(7)(v)-1 Functional'!C491","v":"AFFILIATED COMPANY RENTS ADJUSTMENT"},{"$f":"'FR-16(7)(v)-1 Functional'!D491","v":"D249"},null,{"$f":"'FR-16(7)(v)-14 TOTAL CLASS'!O491","v":0},{"$f":"'FR-16(7)(v)-3 PROD Demand'!O491+'FR-16(7)(v)-7 TRANS Demand'!O491+'FR-16(7)(v)-11 DIST Demand'!O491","v":0},{"$f":"'FR-16(7)(v)-4 PROD Energy'!O491+'FR-16(7)(v)-8 TRANS Energy'!O491+'FR-16(7)(v)-12 DIST Energy'!O491","v":0},{"$f":"'FR-16(7)(v)-5 PROD Cust'!O491+'FR-16(7)(v)-9 TRANS Cust'!O491+'FR-16(7)(v)-13 DIST Cust'!O491","v":0},0,0]
[48,null,{"$f":"'FR-16(7)(v)-1 Functional'!C492","v":"  TOTAL DISTRIBUTION O & M"},null," ",{"$f":"SUM(F472:F491)","v":181023},180776,0,247,181023,0]
[49,null," "]
[50,"CUSTOMER ACCOUNTING",null,null,null," "]
[51,null,{"$f":"'FR-16(7)(v)-1 Functional'!C495","v":"CUSTOMER ACCOUNTING EXPENSE"},{"$f":"'FR-16(7)(v)-1 Functional'!D495","v":"K409"},null,{"$f":"'FR-16(7)(v)-14 TOTAL CLASS'!O495","v":931},{"$f":"'FR-16(7)(v)-3 PROD Demand'!O495+'FR-16(7)(v)-7 TRANS Demand'!O495+'FR-16(7)(v)-11 DIST Demand'!O495","v":0},{"$f":"'FR-16(7)(v)-4 PROD Energy'!O495+'FR-16(7)(v)-8 TRANS Energy'!O495+'FR-16(7)(v)-12 DIST Energy'!O495","v":0},{"$f":"'FR-16(7)(v)-5 PROD Cust'!O495+'FR-16(7)(v)-9 TRANS Cust'!O495+'FR-16(7)(v)-13 DIST Cust'!O495","v":931},{"$f":"SUM(G495:I495)","v":931},{"$f":"F495-J495","v":0}]
[52,null,{"$f":"'FR-16(7)(v)-1 Functional'!C496","v":"UNCOLLECTIBLE EXP"},{"$f":"'FR-16(7)(v)-1 Functional'!D496","v":"K411"},null,{"$f":"'FR-16(7)(v)-14 TOTAL CLASS'!O496","v":10464},{"$f":"'FR-16(7)(v)-3 PROD Demand'!O496+'FR-16(7)(v)-7 TRANS Demand'!O496+'FR-16(7)(v)-11 DIST Demand'!O496","v":0},{"$f":"'FR-16(7)(v)-4 PROD Energy'!O496+'FR-16(7)(v)-8 TRANS Energy'!O496+'FR-16(7)(v)-12 DIST Energy'!O496","v":0},{"$f":"'FR-16(7)(v)-5 PROD Cust'!O496+'FR-16(7)(v)-9 TRANS Cust'!O496+'FR-16(7)(v)-13 DIST Cust'!O496","v":10464},10464,0]
[53,null,{"$f":"'FR-16(7)(v)-1 Functional'!C497","v":"METER READING"},{"$f":"'FR-16(7)(v)-1 Functional'!D497","v":"K407"},null,{"$f":"'FR-16(7)(v)-14 TOTAL CLASS'!O497","v":0},{"$f":"'FR-16(7)(v)-3 PROD Demand'!O497+'FR-16(7)(v)-7 TRANS Demand'!O497+'FR-16(7)(v)-11 DIST Demand'!O497","v":0},{"$f":"'FR-16(7)(v)-4 PROD Energy'!O497+'FR-16(7)(v)-8 TRANS Energy'!O497+'FR-16(7)(v)-12 DIST Energy'!O497","v":0},{"$f":"'FR-16(7)(v)-5 PROD Cust'!O497+'FR-16(7)(v)-9 TRANS Cust'!O497+'FR-16(7)(v)-13 DIST Cust'!O497","v":0},0,0]
[54,null,{"$f":"'FR-16(7)(v)-1 Functional'!C498","v":"UNCOLLECTIBLE EXP ADJUSTMENT"},{"$f":"'FR-16(7)(v)-1 Functional'!D498","v":"K411"},null,{"$f":"'FR-16(7)(v)-14 TOTAL CLASS'!O498","v":-14803},{"$f":"'FR-16(7)(v)-3 PROD Demand'!O498+'FR-16(7)(v)-7 TRANS Demand'!O498+'FR-16(7)(v)-11 DIST Demand'!O498","v":0},{"$f":"'FR-16(7)(v)-4 PROD Energy'!O498+'FR-16(7)(v)-8 TRANS Energy'!O498+'FR-16(7)(v)-12 DIST Energy'!O498","v":0},{"$f":"'FR-16(7)(v)-5 PROD Cust'!O498+'FR-16(7)(v)-9 TRANS Cust'!O498+'FR-16(7)(v)-13 DIST Cust'!O498","v":-14803},-14803,0]
[55,null,{"$f":"'FR-16(7)(v)-1 Functional'!C499","v":"CREDIT CARD FEES"},{"$f":"'FR-16(7)(v)-1 Functional'!D499","v":"K407"},null,{"$f":"'FR-16(7)(v)-14 TOTAL CLASS'!O499","v":113},{"$f":"'FR-16(7)(v)-3 PROD Demand'!O499+'FR-16(7)(v)-7 TRANS Demand'!O499+'FR-16(7)(v)-11 DIST Demand'!O499","v":0},{"$f":"'FR-16(7)(v)-4 PROD Energy'!O499+'FR-16(7)(v)-8 TRANS Energy'!O499+'FR-16(7)(v)-12 DIST Energy'!O499","v":0},{"$f":"'FR-16(7)(v)-5 PROD Cust'!O499+'FR-16(7)(v)-9 TRANS Cust'!O499+'FR-16(7)(v)-13 DIST Cust'!O499","v":113},113,0]
[56,null,{"$f":"'FR-16(7)(v)-1 Functional'!C500","v":"ELIMINATE REV & EXP - DSM RIDER"},{"$f":"'FR-16(7)(v)-1 Functional'!D500","v":"K405"},null,{"$f":"'FR-16(7)(v)-14 TOTAL CLASS'!O500","v":0},{"$f":"'FR-16(7)(v)-3 PROD Demand'!O500+'FR-16(7)(v)-7 TRANS Demand'!O500+'FR-16(7)(v)-11 DIST Demand'!O500","v":0},{"$f":"'FR-16(7)(v)-4 PROD Energy'!O500+'FR-16(7)(v)-8 TRANS Energy'!O500+'FR-16(7)(v)-12 DIST Energy'!O500","v":0},{"$f":"'FR-16(7)(v)-5 PROD Cust'!O500+'FR-16(7)(v)-9 TRANS Cust'!O500+'FR-16(7)(v)-13 DIST Cust'!O500","v":0},0,0]
[57,null,{"$f":"'FR-16(7)(v)-1 Functional'!C501","v":"SALE OF A/R"},{"$f":"'FR-16(7)(v)-1 Functional'!D501","v":"K411"},null,{"$f":"'FR-16(7)(v)-14 TOTAL CLASS'!O501","v":2915},{"$f":"'FR-16(7)(v)-3 PROD Demand'!O501+'FR-16(7)(v)-7 TRANS Demand'!O501+'FR-16(7)(v)-11 DIST Demand'!O501","v":0},{"$f":"'FR-16(7)(v)-4 PROD Energy'!O501+'FR-16(7)(v)-8 TRANS Energy'!O501+'FR-16(7)(v)-12 DIST Energy'!O501","v":0},{"$f":"'FR-16(7)(v)-5 PROD Cust'!O501+'FR-16(7)(v)-9 TRANS Cust'!O501+'FR-16(7)(v)-13 DIST Cust'!O501","v":2915},2915,0]
[58,null,{"$f":"'FR-16(7)(v)-1 Functional'!C502","v":"ELIMINATE MISC EXPENSE"},{"$f":"'FR-16(7)(v)-1 Functional'!D502","v":"K405"},null,{"$f":"'FR-16(7)(v)-14 TOTAL CLASS'!O502","v":0},{"$f":"'FR-16(7)(v)-3 PROD Demand'!O502+'FR-16(7)(v)-7 TRANS Demand'!O502+'FR-16(7)(v)-11 DIST Demand'!O502","v":0},{"$f":"'FR-16(7)(v)-4 PROD Energy'!O502+'FR-16(7)(v)-8 TRANS Energy'!O502+'FR-16(7)(v)-12 DIST Energy'!O502","v":0},{"$f":"'FR-16(7)(v)-5 PROD Cust'!O502+'FR-16(7)(v)-9 TRANS Cust'!O502+'FR-16(7)(v)-13 DIST Cust'!O502","v":0},0,0]
[59,null,{"$f":"'FR-16(7)(v)-1 Functional'!C503","v":"  TOTAL CUSTOMER ACCT EXPENSE"},null," ",{"$f":"SUM(F494:F502)","v":-380},0,0,-380,-380,0]
[]
[{"$f":"co_name","v":"DUKE ENERGY KENTUCKY, INC."},null,null,null,null,null,null,null,null,{"$f":"J1","v":"FR-16(7)(v)-23"}]
[{"$f":"$A$2","v":"TT CLASSIFIED - ELECTRIC COST OF SERVICE"},null,null,null,null,null,null,null,null,{"$f":"J2","v":"WITNESS RESPONSIBLE:"}]
[{"$f":"case_name","v":"CASE NO: 2019-00271"},null,null,null,null,null,null,null,null,{"$f":"Witness","v":"JAMES E. ZIOLKOWSKI"}]
[{"$f":"data_filing","v":"DATA: 12 MONTHS ACTUAL  & 0 MONTHS ESTIMATED"},null,null,null,null,null,null,null,null,{"$f":"\"PAGE \"&Pages2-6&\" OF \"&Pages2","v":"PAGE 9 OF 15"}]
[{"$f":"type","v":"TYPE OF FILING: \"X\" ORIGINAL   UPDATED    REVISED  "}]
[]
[]
["LINE",null,null,null,null,"TOTAL","CLASSIFIED",null,null,"TOTAL","ALL"]
["NO.","O&M EXPENSES",null,"ALLO",null,{"$f":"$F$9","v":"TT"},{"$f":"G9","v":"DEMAND"},"ENERGY","CUSTOMER","AT ISSUE","OTHER"]
[null,null,"Schedule 6.1",null,null,null,3,4,5]
[1,"CUSTOMER SERVICE & INFORMATION"]
[2,null,{"$f":"'FR-16(7)(v)-1 Functional'!C516","v":"TOTAL CUST SERVICE & INFO"},{"$f":"'FR-16(7)(v)-1 Functional'!D516","v":"K405"},null,{"$f":"'FR-16(7)(v)-14 TOTAL CLASS'!O516","v":67},{"$f":"'FR-16(7)(v)-3 PROD Demand'!O516+'FR-16(7)(v)-7 TRANS Demand'!O516+'FR-16(7)(v)-11 DIST Demand'!O516","v":0},{"$f":"'FR-16(7)(v)-4 PROD Energy'!O516+'FR-16(7)(v)-8 TRANS Energy'!O516+'FR-16(7)(v)-12 DIST Energy'!O516","v":0},{"$f":"'FR-16(7)(v)-5 PROD Cust'!O516+'FR-16(7)(v)-9 TRANS Cust'!O516+'FR-16(7)(v)-13 DIST Cust'!O516","v":67},{"$f":"SUM(G516:I516)","v":67},{"$f":"F516-J516","v":0}]
[3,null,{"$f":"'FR-16(7)(v)-1 Functional'!C517","v":"INFORMATIONAL & INSTRUCTIONAL ADV"},{"$f":"'FR-16(7)(v)-1 Functional'!D517","v":"K405"},null,{"$f":"'FR-16(7)(v)-14 TOTAL CLASS'!O517","v":0},{"$f":"'FR-16(7)(v)-3 PROD Demand'!O517+'FR-16(7)(v)-7 TRANS Demand'!O517+'FR-16(7)(v)-11 DIST Demand'!O517","v":0},{"$f":"'FR-16(7)(v)-4 PROD Energy'!O517+'FR-16(7)(v)-8 TRANS Energy'!O517+'FR-16(7)(v)-12 DIST Energy'!O517","v":0},{"$f":"'FR-16(7)(v)-5 PROD Cust'!O517+'FR-16(7)(v)-9 TRANS Cust'!O517+'FR-16(7)(v)-13 DIST Cust'!O517","v":0},{"$f":"SUM(G517:I517)","v":0},{"$f":"F517-J517","v":0}]
[4,null,{"$f":"'FR-16(7)(v)-1 Functional'!C518","v":"TOTAL CUSTOMER SERV. & INFO."},null," ",{"$f":"SUM(F516:F517)","v":67},0,0,67,67,0]
[5]
[6,"SALES"]
[7,null,{"$f":"'FR-16(7)(v)-1 Functional'!C521","v":"SALES EXPENSE"},{"$f":"'FR-16(7)(v)-1 Functional'!D521","v":"K405"}," ",{"$f":"'FR-16(7)(v)-14 TOTAL CLASS'!O521","v":165},{"$f":"'FR-16(7)(v)-3 PROD Demand'!O521+'FR-16(7)(v)-7 TRANS Demand'!O521+'FR-16(7)(v)-11 DIST Demand'!O521","v":0},{"$f":"'FR-16(7)(v)-4 PROD Energy'!O521+'FR-16(7)(v)-8 TRANS Energy'!O521+'FR-16(7)(v)-12 DIST Energy'!O521","v":0},{"$f":"'FR-16(7)(v)-5 PROD Cust'!O521+'FR-16(7)(v)-9 TRANS Cust'!O521+'FR-16(7)(v)-13 DIST Cust'!O521","v":165},{"$f":"SUM(G521:I521)","v":165},{"$f":"F521-J521","v":0}]
[8,null,{"$f":"'FR-16(7)(v)-1 Functional'!C522","v":"TOTAL SALES EXPENSE"},null," ",{"$f":"SUM(F520:F521)","v":165},0,0,165,165,0]
[9]
[10,"ADMINISTRATIVE & GENERAL "]
[11,null,{"$f":"'FR-16(7)(v)-1 Functional'!C525","v":"PRODUCTION - DEMAND RELATED"},{"$f":"'FR-16(7)(v)-1 Functional'!D525","v":"P349"},null,{"$f":"'FR-16(7)(v)-14 TOTAL CLASS'!O525","v":0},{"$f":"'FR-16(7)(v)-3 PROD Demand'!O525+'FR-16(7)(v)-7 TRANS Demand'!O525+'FR-16(7)(v)-11 DIST Demand'!O525","v":0},{"$f":"'FR-16(7)(v)-4 PROD Energy'!O525+'FR-16(7)(v)-8 TRANS Energy'!O525+'FR-16(7)(v)-12 DIST Energy'!O525","v":0},{"$f":"'FR-16(7)(v)-5 PROD Cust'!O525+'FR-16(7)(v)-9 TRANS Cust'!O525+'FR-16(7)(v)-13 DIST Cust'!O525","v":0},{"$f":"SUM(G525:I525)","v":0},{"$f":"F525-J525","v":0}]
[12,null,{"$f":"'FR-16(7)(v)-1 Functional'!C526","v":"PRODUCTION - ENERGY RELATED"},{"$f":"'FR-16(7)(v)-1 Functional'!D526","v":"E349"},null,{"$f":"'FR-16(7)(v)-14 TOTAL CLASS'!O526","v":603723},{"$f":"'FR-16(7)(v)-3 PROD Demand'!O526+'FR-16(7)(v)-7 TRANS Demand'!O526+'FR-16(7)(v)-11 DIST Demand'!O526","v":0},{"$f":"'FR-16(7)(v)-4 PROD Energy'!O526+'FR-16(7)(v)-8 TRANS Energy'!O526+'FR-16(7)(v)-12 DIST Energy'!O526","v":603723},{"$f":"'FR-16(7)(v)-5 PROD Cust'!O526+'FR-16(7)(v)-9 TRANS Cust'!O526+'FR-16(7)(v)-13 DIST Cust'!O526","v":0},603723,0]
[13,null,"TRANSMISSION",{"$f":"'FR-16(7)(v)-1 Functional'!D527","v":"T349"},null,{"$f":"'FR-16(7)(v)-14 TOTAL CLASS'!O527","v":62029},{"$f":"'FR-16(7)(v)-3 PROD Demand'!O527+'FR-16(7)(v)-7 TRANS Demand'!O527+'FR-16(7)(v)-11 DIST Demand'!O527","v":62029},{"$f":"'FR-16(7)(v)-4 PROD Energy'!O527+'FR-16(7)(v)-8 TRANS Energy'!O527+'FR-16(7)(v)-12 DIST Energy'!O527","v":0},{"$f":"'FR-16(7)(v)-5 PROD Cust'!O527+'FR-16(7)(v)-9 TRANS Cust'!O527+'FR-16(7)(v)-13 DIST Cust'!O527","v":0},62029,0]
[14,null,{"$f":"'FR-16(7)(v)-1 Functional'!C528","v":"DISTRIBUTION"},{"$f":"'FR-16(7)(v)-1 Functional'!D528","v":"D349"},null,{"$f":"'FR-16(7)(v)-14 TOTAL CLASS'!O528","v":60965},{"$f":"'FR-16(7)(v)-3 PROD Demand'!O528+'FR-16(7)(v)-7 TRANS Demand'!O528+'FR-16(7)(v)-11 DIST Demand'!O528","v":60883},{"$f":"'FR-16(7)(v)-4 PROD Energy'!O528+'FR-16(7)(v)-8 TRANS Energy'!O528+'FR-16(7)(v)-12 DIST Energy'!O528","v":0},{"$f":"'FR-16(7)(v)-5 PROD Cust'!O528+'FR-16(7)(v)-9 TRANS Cust'!O528+'FR-16(7)(v)-13 DIST Cust'!O528","v":82},60965,0]
[15,null,{"$f":"'FR-16(7)(v)-1 Functional'!C529","v":"CUSTOMER ACCOUNTING"},{"$f":"'FR-16(7)(v)-1 Functional'!D529","v":"C319"},null,{"$f":"'FR-16(7)(v)-14 TOTAL CLASS'!O529","v":-340},{"$f":"'FR-16(7)(v)-3 PROD Demand'!O529+'FR-16(7)(v)-7 TRANS Demand'!O529+'FR-16(7)(v)-11 DIST Demand'!O529","v":0},{"$f":"'FR-16(7)(v)-4 PROD Energy'!O529+'FR-16(7)(v)-8 TRANS Energy'!O529+'FR-16(7)(v)-12 DIST Energy'!O529","v":0},{"$f":"'FR-16(7)(v)-5 PROD Cust'!O529+'FR-16(7)(v)-9 TRANS Cust'!O529+'FR-16(7)(v)-13 DIST Cust'!O529","v":-340},-340,0]
[16,null,{"$f":"'FR-16(7)(v)-1 Functional'!C530","v":"CUSTOMER SERVICE & INFORMATION"},{"$f":"'FR-16(7)(v)-1 Functional'!D530","v":"C331"},null,{"$f":"'FR-16(7)(v)-14 TOTAL CLASS'!O530","v":26},{"$f":"'FR-16(7)(v)-3 PROD Demand'!O530+'FR-16(7)(v)-7 TRANS Demand'!O530+'FR-16(7)(v)-11 DIST Demand'!O530","v":0},{"$f":"'FR-16(7)(v)-4 PROD Energy'!O530+'FR-16(7)(v)-8 TRANS Energy'!O530+'FR-16(7)(v)-12 DIST Energy'!O530","v":0},{"$f":"'FR-16(7)(v)-5 PROD Cust'!O530+'FR-16(7)(v)-9 TRANS Cust'!O530+'FR-16(7)(v)-13 DIST Cust'!O530","v":26},26,0]
[17,null,{"$f":"'FR-16(7)(v)-1 Functional'!C531","v":"SALES"},{"$f":"'FR-16(7)(v)-1 Functional'!D531","v":"S319"},null,{"$f":"'FR-16(7)(v)-14 TOTAL CLASS'!O531","v":0},{"$f":"'FR-16(7)(v)-3 PROD Demand'!O531+'FR-16(7)(v)-7 TRANS Demand'!O531+'FR-16(7)(v)-11 DIST Demand'!O531","v":0},{"$f":"'FR-16(7)(v)-4 PROD Energy'!O531+'FR-16(7)(v)-8 TRANS Energy'!O531+'FR-16(7)(v)-12 DIST Energy'!O531","v":0},{"$f":"'FR-16(7)(v)-5 PROD Cust'!O531+'FR-16(7)(v)-9 TRANS Cust'!O531+'FR-16(7)(v)-13 DIST Cust'!O531","v":0},0,0]
[18,null,{"$f":"'FR-16(7)(v)-1 Functional'!C532","v":"TOT ADMIN & GEN LESS REG EXP"}," ",null,{"$f":"SUM(F525:F531)","v":726403},122912,603723,-232,726403,0]
[19,null,{"$f":"'FR-16(7)(v)-1 Functional'!C533","v":"RATE CASE EXPENSE ADJUSTMENT"},{"$f":"'FR-16(7)(v)-1 Functional'!D533","v":"A315"},null,{"$f":"'FR-16(7)(v)-14 TOTAL CLASS'!O533","v":3117},{"$f":"'FR-16(7)(v)-3 PROD Demand'!O533+'FR-16(7)(v)-7 TRANS Demand'!O533+'FR-16(7)(v)-11 DIST Demand'!O533","v":527},{"$f":"'FR-16(7)(v)-4 PROD Energy'!O533+'FR-16(7)(v)-8 TRANS Energy'!O533+'FR-16(7)(v)-12 DIST Energy'!O533","v":2591},{"$f":"'FR-16(7)(v)-5 PROD Cust'!O533+'FR-16(7)(v)-9 TRANS Cust'!O533+'FR-16(7)(v)-13 DIST Cust'!O533","v":-1},{"$f":"SUM(G533:I533)","v":3117},{"$f":"F533-J533","v":0}]
[20,null,{"$f":"'FR-16(7)(v)-1 Functional'!C534","v":"ELIMINATE MISCELLANEOUS EXPENSES ADJUSTMENT"},{"$f":"'FR-16(7)(v)-1 Functional'!D534","v":"A315"},null,{"$f":"'FR-16(7)(v)-14 TOTAL CLASS'!O534","v":0},{"$f":"'FR-16(7)(v)-3 PROD Demand'!O534+'FR-16(7)(v)-7 TRANS Demand'!O534+'FR-16(7)(v)-11 DIST Demand'!O534","v":0},{"$f":"'FR-16(7)(v)-4 PROD Energy'!O534+'FR-16(7)(v)-8 TRANS Energy'!O534+'FR-16(7)(v)-12 DIST Energy'!O534","v":0},{"$f":"'FR-16(7)(v)-5 PROD Cust'!O534+'FR-16(7)(v)-9 TRANS Cust'!O534+'FR-16(7)(v)-13 DIST Cust'!O534","v":0},0,0]
[21,null,{"$f":"'FR-16(7)(v)-1 Functional'!C535","v":"RIDER ESM ELIMINATION"},{"$f":"'FR-16(7)(v)-1 Functional'!D535","v":"A315"},null,{"$f":"'FR-16(7)(v)-14 TOTAL CLASS'!O535","v":-214292},{"$f":"'FR-16(7)(v)-3 PROD Demand'!O535+'FR-16(7)(v)-7 TRANS Demand'!O535+'FR-16(7)(v)-11 DIST Demand'!O535","v":-36254},{"$f":"'FR-16(7)(v)-4 PROD Energy'!O535+'FR-16(7)(v)-8 TRANS Energy'!O535+'FR-16(7)(v)-12 DIST Energy'!O535","v":-178101},{"$f":"'FR-16(7)(v)-5 PROD Cust'!O535+'FR-16(7)(v)-9 TRANS Cust'!O535+'FR-16(7)(v)-13 DIST Cust'!O535","v":63},-214292,0]
[22,null,{"$f":"'FR-16(7)(v)-1 Functional'!C536","v":"ELIMINATE DSM"},{"$f":"'FR-16(7)(v)-1 Functional'!D536","v":"A315"},null,{"$f":"'FR-16(7)(v)-14 TOTAL CLASS'!O536","v":-3000},{"$f":"'FR-16(7)(v)-3 PROD Demand'!O536+'FR-16(7)(v)-7 TRANS Demand'!O536+'FR-16(7)(v)-11 DIST Demand'!O536","v":-507},{"$f":"'FR-16(7)(v)-4 PROD Energy'!O536+'FR-16(7)(v)-8 TRANS Energy'!O536+'FR-16(7)(v)-12 DIST Energy'!O536","v":-2494},{"$f":"'FR-16(7)(v)-5 PROD Cust'!O536+'FR-16(7)(v)-9 TRANS Cust'!O536+'FR-16(7)(v)-13 DIST Cust'!O536","v":1},-3000,0]
[23,null,{"$f":"'FR-16(7)(v)-1 Functional'!C537","v":"DSM DEFERRAL - ELECTRIC"},{"$f":"'FR-16(7)(v)-1 Functional'!D537","v":"A315"},null,{"$f":"'FR-16(7)(v)-14 TOTAL CLASS'!O537","v":0},{"$f":"'FR-16(7)(v)-3 PROD Demand'!O537+'FR-16(7)(v)-7 TRANS Demand'!O537+'FR-16(7)(v)-11 DIST Demand'!O537","v":0},{"$f":"'FR-16(7)(v)-4 PROD Energy'!O537+'FR-16(7)(v)-8 TRANS Energy'!O537+'FR-16(7)(v)-12 DIST Energy'!O537","v":0},{"$f":"'FR-16(7)(v)-5 PROD Cust'!O537+'FR-16(7)(v)-9 TRANS Cust'!O537+'FR-16(7)(v)-13 DIST Cust'!O537","v":0},0,0]
[24,null,{"$f":"'FR-16(7)(v)-1 Functional'!C538","v":"PENSION ADJUSTMENT"},{"$f":"'FR-16(7)(v)-1 Functional'!D538","v":"A315"},null,{"$f":"'FR-16(7)(v)-14 TOTAL CLASS'!O538","v":-13075},{"$f":"'FR-16(7)(v)-3 PROD Demand'!O538+'FR-16(7)(v)-7 TRANS Demand'!O538+'FR-16(7)(v)-11 DIST Demand'!O538","v":-2212},{"$f":"'FR-16(7)(v)-4 PROD Energy'!O538+'FR-16(7)(v)-8 TRANS Energy'!O538+'FR-16(7)(v)-12 DIST Energy'!O538","v":-10867},{"$f":"'FR-16(7)(v)-5 PROD Cust'!O538+'FR-16(7)(v)-9 TRANS Cust'!O538+'FR-16(7)(v)-13 DIST Cust'!O538","v":4},-13075,0]
[25,null,{"$f":"'FR-16(7)(v)-1 Functional'!C539","v":"ELIMINATE MISC EXPENSES"},{"$f":"'FR-16(7)(v)-1 Functional'!D539","v":"A315"},null,{"$f":"'FR-16(7)(v)-14 TOTAL CLASS'!O539","v":-12611},{"$f":"'FR-16(7)(v)-3 PROD Demand'!O539+'FR-16(7)(v)-7 TRANS Demand'!O539+'FR-16(7)(v)-11 DIST Demand'!O539","v":-2133},{"$f":"'FR-16(7)(v)-4 PROD Energy'!O539+'FR-16(7)(v)-8 TRANS Energy'!O539+'FR-16(7)(v)-12 DIST Energy'!O539","v":-10482},{"$f":"'FR-16(7)(v)-5 PROD Cust'!O539+'FR-16(7)(v)-9 TRANS Cust'!O539+'FR-16(7)(v)-13 DIST Cust'!O539","v":4},-12611,0]
[26,null,{"$f":"'FR-16(7)(v)-1 Functional'!C540","v":"ELIMINATE MERGER COSTS AND CREDITS"},{"$f":"'FR-16(7)(v)-1 Functional'!D540","v":"A315"},null,{"$f":"'FR-16(7)(v)-14 TOTAL CLASS'!O540","v":0},{"$f":"'FR-16(7)(v)-3 PROD Demand'!O540+'FR-16(7)(v)-7 TRANS Demand'!O540+'FR-16(7)(v)-11 DIST Demand'!O540","v":0},{"$f":"'FR-16(7)(v)-4 PROD Energy'!O540+'FR-16(7)(v)-8 TRANS Energy'!O540+'FR-16(7)(v)-12 DIST Energy'!O540","v":0},{"$f":"'FR-16(7)(v)-5 PROD Cust'!O540+'FR-16(7)(v)-9 TRANS Cust'!O540+'FR-16(7)(v)-13 DIST Cust'!O540","v":0},0,0]
[27,null,{"$f":"'FR-16(7)(v)-1 Functional'!C541","v":"ANNUALIZE KYPSC MAINT TAX"},{"$f":"'FR-16(7)(v)-1 Functional'!D541","v":"A315"},null,{"$f":"'FR-16(7)(v)-14 TOTAL CLASS'!O541","v":0},{"$f":"'FR-16(7)(v)-3 PROD Demand'!O541+'FR-16(7)(v)-7 TRANS Demand'!O541+'FR-16(7)(v)-11 DIST Demand'!O541","v":0},{"$f":"'FR-16(7)(v)-4 PROD Energy'!O541+'FR-16(7)(v)-8 TRANS Energy'!O541+'FR-16(7)(v)-12 DIST Energy'!O541","v":0},{"$f":"'FR-16(7)(v)-5 PROD Cust'!O541+'FR-16(7)(v)-9 TRANS Cust'!O541+'FR-16(7)(v)-13 DIST Cust'!O541","v":0},0,0]
[28,null,{"$f":"'FR-16(7)(v)-1 Functional'!C542","v":"REMOVE INCENTIVE COMP"},{"$f":"'FR-16(7)(v)-1 Functional'!D542","v":"A315"},null,{"$f":"'FR-16(7)(v)-14 TOTAL CLASS'!O542","v":-36410},{"$f":"'FR-16(7)(v)-3 PROD Demand'!O542+'FR-16(7)(v)-7 TRANS Demand'!O542+'FR-16(7)(v)-11 DIST Demand'!O542","v":-6160},{"$f":"'FR-16(7)(v)-4 PROD Energy'!O542+'FR-16(7)(v)-8 TRANS Energy'!O542+'FR-16(7)(v)-12 DIST Energy'!O542","v":-30260},{"$f":"'FR-16(7)(v)-5 PROD Cust'!O542+'FR-16(7)(v)-9 TRANS Cust'!O542+'FR-16(7)(v)-13 DIST Cust'!O542","v":10},-36410,0]
[29,null,{"$f":"'FR-16(7)(v)-1 Functional'!C543","v":"CREDIT CARD FEES"},{"$f":"'FR-16(7)(v)-1 Functional'!D543","v":"A315"},null,{"$f":"'FR-16(7)(v)-14 TOTAL CLASS'!O543","v":0},{"$f":"'FR-16(7)(v)-3 PROD Demand'!O543+'FR-16(7)(v)-7 TRANS Demand'!O543+'FR-16(7)(v)-11 DIST Demand'!O543","v":0},{"$f":"'FR-16(7)(v)-4 PROD Energy'!O543+'FR-16(7)(v)-8 TRANS Energy'!O543+'FR-16(7)(v)-12 DIST Energy'!O543","v":0},{"$f":"'FR-16(7)(v)-5 PROD Cust'!O543+'FR-16(7)(v)-9 TRANS Cust'!O543+'FR-16(7)(v)-13 DIST Cust'!O543","v":0},0,0]
[30,null,{"$f":"'FR-16(7)(v)-1 Functional'!C544","v":"ELIMINATE INCENTIVE COMPENSATION ADJUSTMENT"},{"$f":"'FR-16(7)(v)-1 Functional'!D544","v":"A315"},null,{"$f":"'FR-16(7)(v)-14 TOTAL CLASS'!O544","v":0},{"$f":"'FR-16(7)(v)-3 PROD Demand'!O544+'FR-16(7)(v)-7 TRANS Demand'!O544+'FR-16(7)(v)-11 DIST Demand'!O544","v":0},{"$f":"'FR-16(7)(v)-4 PROD Energy'!O544+'FR-16(7)(v)-8 TRANS Energy'!O544+'FR-16(7)(v)-12 DIST Energy'!O544","v":0},{"$f":"'FR-16(7)(v)-5 PROD Cust'!O544+'FR-16(7)(v)-9 TRANS Cust'!O544+'FR-16(7)(v)-13 DIST Cust'!O544","v":0},0,0]
[31,null,{"$f":"'FR-16(7)(v)-1 Functional'!C545","v":"AMORTIZATION OF DEFERRAL ASSET"},{"$f":"'FR-16(7)(v)-1 Functional'!D545","v":"A315"},null,{"$f":"'FR-16(7)(v)-14 TOTAL CLASS'!O545","v":0},{"$f":"'FR-16(7)(v)-3 PROD Demand'!O545+'FR-16(7)(v)-7 TRANS Demand'!O545+'FR-16(7)(v)-11 DIST Demand'!O545","v":0},{"$f":"'FR-16(7)(v)-4 PROD Energy'!O545+'FR-16(7)(v)-8 TRANS Energy'!O545+'FR-16(7)(v)-12 DIST Energy'!O545","v":0},{"$f":"'FR-16(7)(v)-5 PROD Cust'!O545+'FR-16(7)(v)-9 TRANS Cust'!O545+'FR-16(7)(v)-13 DIST Cust'!O545","v":0},0,0]
[32,null,{"$f":"'FR-16(7)(v)-1 Functional'!C546","v":"AMORTIZATION OF DEFERRED EXPENSES"},{"$f":"'FR-16(7)(v)-1 Functional'!D546","v":"A315"},null,{"$f":"'FR-16(7)(v)-14 TOTAL CLASS'!O546","v":2291},{"$f":"'FR-16(7)(v)-3 PROD Demand'!O546+'FR-16(7)(v)-7 TRANS Demand'!O546+'FR-16(7)(v)-11 DIST Demand'!O546","v":388},{"$f":"'FR-16(7)(v)-4 PROD Energy'!O546+'FR-16(7)(v)-8 TRANS Energy'!O546+'FR-16(7)(v)-12 DIST Energy'!O546","v":1904},{"$f":"'FR-16(7)(v)-5 PROD Cust'!O546+'FR-16(7)(v)-9 TRANS Cust'!O546+'FR-16(7)(v)-13 DIST Cust'!O546","v":-1},2291,0]
[33,null,{"$f":"'FR-16(7)(v)-1 Functional'!C547","v":"TOTAL ADMIN. & GENERAL"},null," ",{"$f":"SUM(F532:F546)","v":452423},76561,376014,-152,452423,0]
[34]
[35,null,{"$f":"'FR-16(7)(v)-1 Functional'!C549","v":"TOTAL O & M EXPENSE"},null,null,{"$f":"F547+F522+F518+F503+F492+F470+F466+F459","v":9537511},1313190,8224374,-53,9537511,0]
[]
[{"$f":"co_name","v":"DUKE ENERGY KENTUCKY, INC."},null,null,null,null,null,null,null,null,{"$f":"J1","v":"FR-16(7)(v)-23"}]
[{"$f":"$A$2","v":"TT CLASSIFIED - ELECTRIC COST OF SERVICE"},null,null,null,null,null,null,null,null,{"$f":"J2","v":"WITNESS RESPONSIBLE:"}]
[{"$f":"case_name","v":"CASE NO: 2019-00271"},null,null,null,null,null,null,null,null,{"$f":"Witness","v":"JAMES E. ZIOLKOWSKI"}]
[{"$f":"data_filing","v":"DATA: 12 MONTHS ACTUAL  & 0 MONTHS ESTIMATED"},null,null,null,null,null,null,null,null,{"$f":"\"PAGE \"&Pages2-5&\" OF \"&Pages2","v":"PAGE 10 OF 15"}]
[{"$f":"type","v":"TYPE OF FILING: \"X\" ORIGINAL   UPDATED    REVISED  "}]
[]
[]
["LINE",null,null,null,null,"TOTAL","CLASSIFIED",null,null,"TOTAL","ALL"]
["NO.","DEPRECIATION EXPENSE",null,"ALLO",null,{"$f":"$F$9","v":"TT"},{"$f":"G9","v":"DEMAND"},"ENERGY","CUSTOMER","AT ISSUE","OTHER"]
[null,null,"Schedule 7",null,null,null,3,4,5]
[1,"PRODUCTION DEPRECIATION"]
[2,null,{"$f":"'FR-16(7)(v)-1 Functional'!C562","v":"PRODUCTION DEPRECIATION"},{"$f":"'FR-16(7)(v)-1 Functional'!D562","v":"P229"},null,{"$f":"'FR-16(7)(v)-14 TOTAL CLASS'!O562","v":1586615},{"$f":"'FR-16(7)(v)-3 PROD Demand'!O562+'FR-16(7)(v)-7 TRANS Demand'!O562+'FR-16(7)(v)-11 DIST Demand'!O562","v":1586615},{"$f":"'FR-16(7)(v)-4 PROD Energy'!O562+'FR-16(7)(v)-8 TRANS Energy'!O562+'FR-16(7)(v)-12 DIST Energy'!O562","v":0},{"$f":"'FR-16(7)(v)-5 PROD Cust'!O562+'FR-16(7)(v)-9 TRANS Cust'!O562+'FR-16(7)(v)-13 DIST Cust'!O562","v":0},{"$f":"SUM(G562:I562)","v":1586615},{"$f":"F562-J562","v":0}]
[3,null,{"$f":"'FR-16(7)(v)-1 Functional'!C563","v":"  TOTAL PRODUCTION DEPREC EXP."},null,null,{"$f":"SUM(F562:F562)","v":1586615},1586615,0,0,1586615,0]
[4]
[5,"TRANSMISSION DEPRECIATION"]
[6,null,"TRANSMISSION DEPRECIATION",{"$f":"'FR-16(7)(v)-1 Functional'!D566","v":"T229"},null,{"$f":"'FR-16(7)(v)-14 TOTAL CLASS'!O566","v":62115},{"$f":"'FR-16(7)(v)-3 PROD Demand'!O566+'FR-16(7)(v)-7 TRANS Demand'!O566+'FR-16(7)(v)-11 DIST Demand'!O566","v":62115},{"$f":"'FR-16(7)(v)-4 PROD Energy'!O566+'FR-16(7)(v)-8 TRANS Energy'!O566+'FR-16(7)(v)-12 DIST Energy'!O566","v":0},{"$f":"'FR-16(7)(v)-5 PROD Cust'!O566+'FR-16(7)(v)-9 TRANS Cust'!O566+'FR-16(7)(v)-13 DIST Cust'!O566","v":0},{"$f":"SUM(G566:I566)","v":62115},{"$f":"F566-J566","v":0}]
[7,null,{"$f":"'FR-16(7)(v)-1 Functional'!C567","v":"  TOTAL TRANSMISSION DEP. EXP."},null,null,{"$f":"SUM(F566:F566)","v":62115},62115,0,0,62115,0]
[8]
[9,"DISTRIBUTION DEPRECIATION"]
[10,null,{"$f":"'FR-16(7)(v)-1 Functional'!C570","v":"DISTRIBUTION DEPRECIATION"},{"$f":"'FR-16(7)(v)-1 Functional'!D570","v":"D249"},null,{"$f":"'FR-16(7)(v)-14 TOTAL CLASS'!O570","v":365},{"$f":"'FR-16(7)(v)-3 PROD Demand'!O570+'FR-16(7)(v)-7 TRANS Demand'!O570+'FR-16(7)(v)-11 DIST Demand'!O570","v":0},{"$f":"'FR-16(7)(v)-4 PROD Energy'!O570+'FR-16(7)(v)-8 TRANS Energy'!O570+'FR-16(7)(v)-12 DIST Energy'!O570","v":0},{"$f":"'FR-16(7)(v)-5 PROD Cust'!O570+'FR-16(7)(v)-9 TRANS Cust'!O570+'FR-16(7)(v)-13 DIST Cust'!O570","v":365},{"$f":"SUM(G570:I570)","v":365},{"$f":"F570-J570","v":0}]
[11,null,{"$f":"'FR-16(7)(v)-1 Functional'!C571","v":"  TOTAL DIST. DEPREC EXP."},null,null,{"$f":"SUM(F570:F570)","v":365},0,0,365,365,0]
[12,null,null,null,null," "]
[13,"GENERAL DEPRECIATION"]
[14,null,{"$f":"'FR-16(7)(v)-1 Functional'!C574","v":"GENERAL DEPRECIATION"},{"$f":"'FR-16(7)(v)-1 Functional'!D574","v":"G229"},null,{"$f":"'FR-16(7)(v)-14 TOTAL CLASS'!O574","v":221513},{"$f":"'FR-16(7)(v)-3 PROD Demand'!O574+'FR-16(7)(v)-7 TRANS Demand'!O574+'FR-16(7)(v)-11 DIST Demand'!O574","v":114151},{"$f":"'FR-16(7)(v)-4 PROD Energy'!O574+'FR-16(7)(v)-8 TRANS Energy'!O574+'FR-16(7)(v)-12 DIST Energy'!O574","v":107398},{"$f":"'FR-16(7)(v)-5 PROD Cust'!O574+'FR-16(7)(v)-9 TRANS Cust'!O574+'FR-16(7)(v)-13 DIST Cust'!O574","v":-36},{"$f":"SUM(G574:I574)","v":221513},{"$f":"F574-J574","v":0}]
[15,null,{"$f":"'FR-16(7)(v)-1 Functional'!C575","v":"  TOTAL GENERAL DEPREC EXP."},null,null,{"$f":"SUM(F574:F574)","v":221513},114151,107398,-36,221513,0]
[16]
[17,"COMMON AND OTHER DEPRECIATION"]
[18,null,{"$f":"'FR-16(7)(v)-1 Functional'!C578","v":"COMMON DEPRECIATION"},{"$f":"'FR-16(7)(v)-1 Functional'!D578","v":"C229"},null,{"$f":"'FR-16(7)(v)-14 TOTAL CLASS'!O578","v":1499},{"$f":"'FR-16(7)(v)-3 PROD Demand'!O578+'FR-16(7)(v)-7 TRANS Demand'!O578+'FR-16(7)(v)-11 DIST Demand'!O578","v":770},{"$f":"'FR-16(7)(v)-4 PROD Energy'!O578+'FR-16(7)(v)-8 TRANS Energy'!O578+'FR-16(7)(v)-12 DIST Energy'!O578","v":729},{"$f":"'FR-16(7)(v)-5 PROD Cust'!O578+'FR-16(7)(v)-9 TRANS Cust'!O578+'FR-16(7)(v)-13 DIST Cust'!O578","v":0},{"$f":"SUM(G578:I578)","v":1499},{"$f":"F578-J578","v":0}]
[19,null,{"$f":"'FR-16(7)(v)-1 Functional'!C579","v":"  TOTAL COM & OTHER DEPREC EXP."},null,null,{"$f":"SUM(F578:F578)","v":1499},770,729,0,1499,0]
[20]
[21]
[22,"TOTAL DEPRECIATION EXPENSE",null,null," ",{"$f":"F579+F575+F571+F567+F563","v":1872107},1763651,108127,329,1872107,0]
[]
[{"$f":"co_name","v":"DUKE ENERGY KENTUCKY, INC."},null,null,null,null,null,null,null,null,{"$f":"J1","v":"FR-16(7)(v)-23"}]
[{"$f":"$A$2","v":"TT CLASSIFIED - ELECTRIC COST OF SERVICE"},null,null,null,null,null,null,null,null,{"$f":"J2","v":"WITNESS RESPONSIBLE:"}]
[{"$f":"case_name","v":"CASE NO: 2019-00271"},null,null,null,null,null,null,null,null,{"$f":"Witness","v":"JAMES E. ZIOLKOWSKI"}]
[{"$f":"data_filing","v":"DATA: 12 MONTHS ACTUAL  & 0 MONTHS ESTIMATED"},null,null,null,null,null,null,null,null,{"$f":"\"PAGE \"&Pages2-4&\" OF \"&Pages2","v":"PAGE 11 OF 15"}]
[{"$f":"type","v":"TYPE OF FILING: \"X\" ORIGINAL   UPDATED    REVISED  "}]
[]
[]
["LINE",null,null,null,null,"TOTAL","CLASSIFIED",null,null,"TOTAL","ALL"]
["NO.","OTHER TAXES & MISC EXPENSES",null,"ALLO",null,{"$f":"$F$9","v":"TT"},{"$f":"G9","v":"DEMAND"},"ENERGY","CUSTOMER","AT ISSUE","OTHER"]
[null,null,"Schedule 8",null,null,null,3,4,5]
[1,"TAXES OTHER THAN INC & REV"]
[2," REAL ESTATE & PROPERTY TAX"]
[3,null,{"$f":"'FR-16(7)(v)-1 Functional'!C596","v":"REAL ESTATE & PROPERTY TAX"},{"$f":"'FR-16(7)(v)-1 Functional'!D596","v":"NP29"},null,{"$f":"'FR-16(7)(v)-14 TOTAL CLASS'!O596","v":359332},{"$f":"'FR-16(7)(v)-3 PROD Demand'!O596+'FR-16(7)(v)-7 TRANS Demand'!O596+'FR-16(7)(v)-11 DIST Demand'!O596","v":348478},{"$f":"'FR-16(7)(v)-4 PROD Energy'!O596+'FR-16(7)(v)-8 TRANS Energy'!O596+'FR-16(7)(v)-12 DIST Energy'!O596","v":10723},{"$f":"'FR-16(7)(v)-5 PROD Cust'!O596+'FR-16(7)(v)-9 TRANS Cust'!O596+'FR-16(7)(v)-13 DIST Cust'!O596","v":131},{"$f":"SUM(G596:I596)","v":359332},{"$f":"F596-J596","v":0}]
[4,null,{"$f":"'FR-16(7)(v)-1 Functional'!C597","v":"ANNUALIZE PROPERTY TAX"},{"$f":"'FR-16(7)(v)-1 Functional'!D597","v":"NP29"}," ",{"$f":"'FR-16(7)(v)-14 TOTAL CLASS'!O597","v":0},{"$f":"'FR-16(7)(v)-3 PROD Demand'!O597+'FR-16(7)(v)-7 TRANS Demand'!O597+'FR-16(7)(v)-11 DIST Demand'!O597","v":0},{"$f":"'FR-16(7)(v)-4 PROD Energy'!O597+'FR-16(7)(v)-8 TRANS Energy'!O597+'FR-16(7)(v)-12 DIST Energy'!O597","v":0},{"$f":"'FR-16(7)(v)-5 PROD Cust'!O597+'FR-16(7)(v)-9 TRANS Cust'!O597+'FR-16(7)(v)-13 DIST Cust'!O597","v":0},{"$f":"SUM(G597:I597)","v":0},{"$f":"F597-J597","v":0}]
[5,null,{"$f":"'FR-16(7)(v)-1 Functional'!C598","v":"  TOTAL REAL ESTATE & PROPERTY TAX"},null,null,{"$f":"SUM(F596:F597)","v":359332},348478,10723,131,359332,0]
[6]
[7," MISCELLANEOUS TAXES"]
[8,null,{"$f":"'FR-16(7)(v)-1 Functional'!C601","v":"PAYROLL "},{"$f":"'FR-16(7)(v)-1 Functional'!D601","v":"A315"},null,{"$f":"'FR-16(7)(v)-14 TOTAL CLASS'!O601","v":43362},{"$f":"'FR-16(7)(v)-3 PROD Demand'!O601+'FR-16(7)(v)-7 TRANS Demand'!O601+'FR-16(7)(v)-11 DIST Demand'!O601","v":7336},{"$f":"'FR-16(7)(v)-4 PROD Energy'!O601+'FR-16(7)(v)-8 TRANS Energy'!O601+'FR-16(7)(v)-12 DIST Energy'!O601","v":36039},{"$f":"'FR-16(7)(v)-5 PROD Cust'!O601+'FR-16(7)(v)-9 TRANS Cust'!O601+'FR-16(7)(v)-13 DIST Cust'!O601","v":-13},{"$f":"SUM(G601:I601)","v":43362},{"$f":"F601-J601","v":0}]
[9,null,{"$f":"'FR-16(7)(v)-1 Functional'!C602","v":"ELIMINATE DSM "},{"$f":"'FR-16(7)(v)-1 Functional'!D602","v":"A315"},null,{"$f":"'FR-16(7)(v)-14 TOTAL CLASS'!O602","v":-853},{"$f":"'FR-16(7)(v)-3 PROD Demand'!O602+'FR-16(7)(v)-7 TRANS Demand'!O602+'FR-16(7)(v)-11 DIST Demand'!O602","v":-144},{"$f":"'FR-16(7)(v)-4 PROD Energy'!O602+'FR-16(7)(v)-8 TRANS Energy'!O602+'FR-16(7)(v)-12 DIST Energy'!O602","v":-709},{"$f":"'FR-16(7)(v)-5 PROD Cust'!O602+'FR-16(7)(v)-9 TRANS Cust'!O602+'FR-16(7)(v)-13 DIST Cust'!O602","v":0},{"$f":"SUM(G602:I602)","v":-853},{"$f":"F602-J602","v":0}]
[10,null,{"$f":"'FR-16(7)(v)-1 Functional'!C603","v":"FRANCHISE & LICENSE"},{"$f":"'FR-16(7)(v)-1 Functional'!D603","v":"A315"},null,{"$f":"'FR-16(7)(v)-14 TOTAL CLASS'!O603","v":0},{"$f":"'FR-16(7)(v)-3 PROD Demand'!O603+'FR-16(7)(v)-7 TRANS Demand'!O603+'FR-16(7)(v)-11 DIST Demand'!O603","v":0},{"$f":"'FR-16(7)(v)-4 PROD Energy'!O603+'FR-16(7)(v)-8 TRANS Energy'!O603+'FR-16(7)(v)-12 DIST Energy'!O603","v":0},{"$f":"'FR-16(7)(v)-5 PROD Cust'!O603+'FR-16(7)(v)-9 TRANS Cust'!O603+'FR-16(7)(v)-13 DIST Cust'!O603","v":0},{"$f":"SUM(G603:I603)","v":0},{"$f":"F603-J603","v":0}]
[11,null,{"$f":"'FR-16(7)(v)-1 Functional'!C604","v":"ELIMINATE ESM"},{"$f":"'FR-16(7)(v)-1 Functional'!D604","v":"A315"},null,{"$f":"'FR-16(7)(v)-14 TOTAL CLASS'!O604","v":-23067},{"$f":"'FR-16(7)(v)-3 PROD Demand'!O604+'FR-16(7)(v)-7 TRANS Demand'!O604+'FR-16(7)(v)-11 DIST Demand'!O604","v":-3902},{"$f":"'FR-16(7)(v)-4 PROD Energy'!O604+'FR-16(7)(v)-8 TRANS Energy'!O604+'FR-16(7)(v)-12 DIST Energy'!O604","v":-19171},{"$f":"'FR-16(7)(v)-5 PROD Cust'!O604+'FR-16(7)(v)-9 TRANS Cust'!O604+'FR-16(7)(v)-13 DIST Cust'!O604","v":6},{"$f":"SUM(G604:I604)","v":-23067},{"$f":"F604-J604","v":0}]
[12,null,{"$f":"'FR-16(7)(v)-1 Functional'!C605","v":"  TOTAL MISCELLANEOUS TAXES"},null,null,{"$f":"SUM(F601:F604)","v":19442},3290,16159,-7,19442,0]
[13]
[14," MISCELLANEOUS EXPENSES"]
[15,null,{"$f":"'FR-16(7)(v)-1 Functional'!C608","v":"PSC MAINT. EXP ON INCREASE"},{"$f":"'FR-16(7)(v)-1 Functional'!D608","v":"K902"},null,{"$f":"'FR-16(7)(v)-14 TOTAL CLASS'!O608","v":3830},{"$f":"'FR-16(7)(v)-3 PROD Demand'!O608+'FR-16(7)(v)-7 TRANS Demand'!O608+'FR-16(7)(v)-11 DIST Demand'!O608","v":1894},{"$f":"'FR-16(7)(v)-4 PROD Energy'!O608+'FR-16(7)(v)-8 TRANS Energy'!O608+'FR-16(7)(v)-12 DIST Energy'!O608","v":1318},{"$f":"'FR-16(7)(v)-5 PROD Cust'!O608+'FR-16(7)(v)-9 TRANS Cust'!O608+'FR-16(7)(v)-13 DIST Cust'!O608","v":618},{"$f":"SUM(G608:I608)","v":3830},{"$f":"F608-J608","v":0}]
[16,null,{"$f":"'FR-16(7)(v)-1 Functional'!C609","v":"RESERVED FOR FUTURE USE"},{"$f":"'FR-16(7)(v)-1 Functional'!D609","v":"K902"},null,{"$f":"'FR-16(7)(v)-14 TOTAL CLASS'!O609","v":0},{"$f":"'FR-16(7)(v)-3 PROD Demand'!O609+'FR-16(7)(v)-7 TRANS Demand'!O609+'FR-16(7)(v)-11 DIST Demand'!O609","v":0},{"$f":"'FR-16(7)(v)-4 PROD Energy'!O609+'FR-16(7)(v)-8 TRANS Energy'!O609+'FR-16(7)(v)-12 DIST Energy'!O609","v":0},{"$f":"'FR-16(7)(v)-5 PROD Cust'!O609+'FR-16(7)(v)-9 TRANS Cust'!O609+'FR-16(7)(v)-13 DIST Cust'!O609","v":0},{"$f":"SUM(G609:I609)","v":0},{"$f":"F609-J609","v":0}]
[17,null,{"$f":"'FR-16(7)(v)-1 Functional'!C610","v":"  TOTAL MISCELLANEOUS EXPENSES"},null,null,{"$f":"SUM(F608:F609)","v":3830},1894,1318,618,3830,0]
[18]
[19,"TOTAL OTHER TAX & MISC EXPENSE",null,null," ",{"$f":"F605+F598+F610","v":382604},353662,28200,742,382604,0]
[20]
[21,"PRELIMINARY SUMMARY"]
[22,null,{"$f":"'FR-16(7)(v)-1 Functional'!C615","v":"TOTAL O&M EXPENSE"},null,null,{"$f":"F549","v":9537511},1313190,8224374,-53,9537511,0]
[23,null,{"$f":"'FR-16(7)(v)-1 Functional'!C616","v":"TOTAL DEPRECIATION EXPENSE"},null,null,{"$f":"F582","v":1872107},1763651,108127,329,1872107,0]
[24,null,{"$f":"'FR-16(7)(v)-1 Functional'!C617","v":"TOTAL OTHER TAX & MISC EXPENSE"},null,null,{"$f":"F612","v":382604},353662,28200,742,382604,0]
[25,null,{"$f":"'FR-16(7)(v)-1 Functional'!C618","v":"  TOTAL OPER EXP EXCL INCOME & REV TAX"},null,null,{"$f":"SUM(F615:F617)","v":11792222},3430503,8360701,1018,11792222,0]
[]
[{"$f":"co_name","v":"DUKE ENERGY KENTUCKY, INC."},null,null,null,null,null,null,null,null,{"$f":"J1","v":"FR-16(7)(v)-23"}]
[{"$f":"$A$2","v":"TT CLASSIFIED - ELECTRIC COST OF SERVICE"},null,null,null,null,null,null,null,null,{"$f":"J2","v":"WITNESS RESPONSIBLE:"}]
[{"$f":"case_name","v":"CASE NO: 2019-00271"},null,null,null,null,null,null,null,null,{"$f":"Witness","v":"JAMES E. ZIOLKOWSKI"}]
[{"$f":"data_filing","v":"DATA: 12 MONTHS ACTUAL  & 0 MONTHS ESTIMATED"},null,null,null,null,null,null,null,null,{"$f":"\"PAGE \"&Pages2-3&\" OF \"&Pages2","v":"PAGE 12 OF 15"}]
[{"$f":"type","v":"TYPE OF FILING: \"X\" ORIGINAL   UPDATED    REVISED  "}]
[]
[]
["LINE",null,null,null,null,"TOTAL","CLASSIFIED",null,null,"TOTAL","ALL"]
["NO.","FEDERAL INCOME TAX BASED ON RETURN",null,"ALLO",null,{"$f":"$F$9","v":"TT"},{"$f":"$G$9","v":"DEMAND"},{"$f":"$H$9","v":"ENERGY"},{"$f":"$I$9","v":"CUSTOMER"},"AT ISSUE","OTHER"]
[null,null,"Schedule 9",null,null,null,{"$f":"G10","v":3},{"$f":"H10","v":4},{"$f":"I10","v":5}]
[1,"FEDERAL INCOME TAX DEDUCTIONS"]
[2," AUTOMATIC INTEREST CALCULATION",null,null,null," "]
[3,null,{"$f":"'FR-16(7)(v)-1 Functional'!C632","v":"AUTO PROC INTEREST DED"},{"$f":"'FR-16(7)(v)-1 Functional'!D632","v":"RB99"},null,{"$f":"'FR-16(7)(v)-14 TOTAL CLASS'!O632","v":508547},{"$f":"'FR-16(7)(v)-3 PROD Demand'!O632+'FR-16(7)(v)-7 TRANS Demand'!O632+'FR-16(7)(v)-11 DIST Demand'!O632","v":471656},{"$f":"'FR-16(7)(v)-4 PROD Energy'!O632+'FR-16(7)(v)-8 TRANS Energy'!O632+'FR-16(7)(v)-12 DIST Energy'!O632","v":36670},{"$f":"'FR-16(7)(v)-5 PROD Cust'!O632+'FR-16(7)(v)-9 TRANS Cust'!O632+'FR-16(7)(v)-13 DIST Cust'!O632","v":221},{"$f":"SUM(G632:I632)","v":508547},{"$f":"F632-J632","v":0}]
[4,null,{"$f":"'FR-16(7)(v)-1 Functional'!C633","v":"  TOTAL INTEREST EXPENSE"},null,null,{"$f":"F632","v":508547},471656,36670,221,508547,0]
[5]
[6," OTHER DEDUCTIONS"]
[7,null,{"$f":"'FR-16(7)(v)-1 Functional'!C636","v":"DEPREC EXCESS TAX-BOOK"},{"$f":"'FR-16(7)(v)-1 Functional'!D636","v":"DE49"},null,{"$f":"'FR-16(7)(v)-14 TOTAL CLASS'!O636","v":-443987},{"$f":"'FR-16(7)(v)-3 PROD Demand'!O636+'FR-16(7)(v)-7 TRANS Demand'!O636+'FR-16(7)(v)-11 DIST Demand'!O636","v":-418265},{"$f":"'FR-16(7)(v)-4 PROD Energy'!O636+'FR-16(7)(v)-8 TRANS Energy'!O636+'FR-16(7)(v)-12 DIST Energy'!O636","v":-25644},{"$f":"'FR-16(7)(v)-5 PROD Cust'!O636+'FR-16(7)(v)-9 TRANS Cust'!O636+'FR-16(7)(v)-13 DIST Cust'!O636","v":-78},{"$f":"SUM(G636:I636)","v":-443987},{"$f":"F636-J636","v":0}]
[8,null,{"$f":"'FR-16(7)(v)-1 Functional'!C637","v":"PERMANENT DIFFERENCES"},{"$f":"'FR-16(7)(v)-1 Functional'!D637","v":"A357"},null,{"$f":"'FR-16(7)(v)-14 TOTAL CLASS'!O637","v":-9704},{"$f":"'FR-16(7)(v)-3 PROD Demand'!O637+'FR-16(7)(v)-7 TRANS Demand'!O637+'FR-16(7)(v)-11 DIST Demand'!O637","v":-1642},{"$f":"'FR-16(7)(v)-4 PROD Energy'!O637+'FR-16(7)(v)-8 TRANS Energy'!O637+'FR-16(7)(v)-12 DIST Energy'!O637","v":-8065},{"$f":"'FR-16(7)(v)-5 PROD Cust'!O637+'FR-16(7)(v)-9 TRANS Cust'!O637+'FR-16(7)(v)-13 DIST Cust'!O637","v":3},{"$f":"SUM(G637:I637)","v":-9704},{"$f":"F637-J637","v":0}]
[9,null,{"$f":"'FR-16(7)(v)-1 Functional'!C638","v":"TEMPORARY DIFFERENCES"},{"$f":"'FR-16(7)(v)-1 Functional'!D638","v":"DE49"},null,{"$f":"'FR-16(7)(v)-14 TOTAL CLASS'!O638","v":2709145},{"$f":"'FR-16(7)(v)-3 PROD Demand'!O638+'FR-16(7)(v)-7 TRANS Demand'!O638+'FR-16(7)(v)-11 DIST Demand'!O638","v":2552188},{"$f":"'FR-16(7)(v)-4 PROD Energy'!O638+'FR-16(7)(v)-8 TRANS Energy'!O638+'FR-16(7)(v)-12 DIST Energy'!O638","v":156476},{"$f":"'FR-16(7)(v)-5 PROD Cust'!O638+'FR-16(7)(v)-9 TRANS Cust'!O638+'FR-16(7)(v)-13 DIST Cust'!O638","v":481},{"$f":"SUM(G638:I638)","v":2709145},{"$f":"F638-J638","v":0}]
[10,null,{"$f":"'FR-16(7)(v)-1 Functional'!C639","v":"  TOTAL OTHER DEDUCTIONS"},null,null,{"$f":"SUM(F636:F638)","v":2255454},2132281,122767,406,2255454,0]
[11]
[12,"NET DEDUCTIONS AND ADDITIONS",null,null,null,{"$f":"F639+F633","v":2764001},2603937,159437,627,2764001,0]
[13]
[14," FED DEFERRED INCOME TAX (410 & 411)"]
[15,null,{"$f":"'FR-16(7)(v)-1 Functional'!C644","v":"DEFERRED INCOME TAXES - NET"},{"$f":"'FR-16(7)(v)-1 Functional'!D644","v":"OM39"},null,{"$f":"'FR-16(7)(v)-14 TOTAL CLASS'!O644","v":634881},{"$f":"'FR-16(7)(v)-3 PROD Demand'!O644+'FR-16(7)(v)-7 TRANS Demand'!O644+'FR-16(7)(v)-11 DIST Demand'!O644","v":87411},{"$f":"'FR-16(7)(v)-4 PROD Energy'!O644+'FR-16(7)(v)-8 TRANS Energy'!O644+'FR-16(7)(v)-12 DIST Energy'!O644","v":547471},{"$f":"'FR-16(7)(v)-5 PROD Cust'!O644+'FR-16(7)(v)-9 TRANS Cust'!O644+'FR-16(7)(v)-13 DIST Cust'!O644","v":-1},{"$f":"SUM(G644:I644)","v":634881},{"$f":"F644-J644","v":0}]
[16,null,{"$f":"'FR-16(7)(v)-1 Functional'!C645","v":"AMORT OF DEFERRED MERGER COST"},{"$f":"'FR-16(7)(v)-1 Functional'!D645","v":"A357"},null,{"$f":"'FR-16(7)(v)-14 TOTAL CLASS'!O645","v":0},{"$f":"'FR-16(7)(v)-3 PROD Demand'!O645+'FR-16(7)(v)-7 TRANS Demand'!O645+'FR-16(7)(v)-11 DIST Demand'!O645","v":0},{"$f":"'FR-16(7)(v)-4 PROD Energy'!O645+'FR-16(7)(v)-8 TRANS Energy'!O645+'FR-16(7)(v)-12 DIST Energy'!O645","v":0},{"$f":"'FR-16(7)(v)-5 PROD Cust'!O645+'FR-16(7)(v)-9 TRANS Cust'!O645+'FR-16(7)(v)-13 DIST Cust'!O645","v":0},{"$f":"SUM(G645:I645)","v":0},{"$f":"F645-J645","v":0}]
[17,null,{"$f":"'FR-16(7)(v)-1 Functional'!C646","v":"DIT ADJUSTMENT - S/L DEPRECIATION"},{"$f":"'FR-16(7)(v)-1 Functional'!D646","v":"DE49"},null,{"$f":"'FR-16(7)(v)-14 TOTAL CLASS'!O646","v":0},{"$f":"'FR-16(7)(v)-3 PROD Demand'!O646+'FR-16(7)(v)-7 TRANS Demand'!O646+'FR-16(7)(v)-11 DIST Demand'!O646","v":0},{"$f":"'FR-16(7)(v)-4 PROD Energy'!O646+'FR-16(7)(v)-8 TRANS Energy'!O646+'FR-16(7)(v)-12 DIST Energy'!O646","v":0},{"$f":"'FR-16(7)(v)-5 PROD Cust'!O646+'FR-16(7)(v)-9 TRANS Cust'!O646+'FR-16(7)(v)-13 DIST Cust'!O646","v":0},{"$f":"SUM(G646:I646)","v":0},{"$f":"F646-J646","v":0}]
[18,null,{"$f":"'FR-16(7)(v)-1 Functional'!C647","v":"DIT ADJUSTMENT - ARAM"},{"$f":"'FR-16(7)(v)-1 Functional'!D647","v":"K201"},null,{"$f":"'FR-16(7)(v)-14 TOTAL CLASS'!O647","v":-4545},{"$f":"'FR-16(7)(v)-3 PROD Demand'!O647+'FR-16(7)(v)-7 TRANS Demand'!O647+'FR-16(7)(v)-11 DIST Demand'!O647","v":-4545},{"$f":"'FR-16(7)(v)-4 PROD Energy'!O647+'FR-16(7)(v)-8 TRANS Energy'!O647+'FR-16(7)(v)-12 DIST Energy'!O647","v":0},{"$f":"'FR-16(7)(v)-5 PROD Cust'!O647+'FR-16(7)(v)-9 TRANS Cust'!O647+'FR-16(7)(v)-13 DIST Cust'!O647","v":0},{"$f":"SUM(G647:I647)","v":-4545},{"$f":"F647-J647","v":0}]
[19,null,{"$f":"'FR-16(7)(v)-1 Functional'!C648","v":"DIT ADJUSTMENT - AMORT OF EXCESS DEF TAXES"},{"$f":"'FR-16(7)(v)-1 Functional'!D648","v":"A357"},null,{"$f":"'FR-16(7)(v)-14 TOTAL CLASS'!O648","v":-85087},{"$f":"'FR-16(7)(v)-3 PROD Demand'!O648+'FR-16(7)(v)-7 TRANS Demand'!O648+'FR-16(7)(v)-11 DIST Demand'!O648","v":-14396},{"$f":"'FR-16(7)(v)-4 PROD Energy'!O648+'FR-16(7)(v)-8 TRANS Energy'!O648+'FR-16(7)(v)-12 DIST Energy'!O648","v":-70722},{"$f":"'FR-16(7)(v)-5 PROD Cust'!O648+'FR-16(7)(v)-9 TRANS Cust'!O648+'FR-16(7)(v)-13 DIST Cust'!O648","v":31},{"$f":"SUM(G648:I648)","v":-85087},{"$f":"F648-J648","v":0}]
[20,null,{"$f":"'FR-16(7)(v)-1 Functional'!C649","v":"  TOTAL FED DEF IT (410 & 411)"},null,null,{"$f":"SUM(F644:F648)","v":545249},68470,476749,30,545249,0]
[21]
[22," AMORT INV TAX CREDIT"]
[23,null,{"$f":"'FR-16(7)(v)-1 Functional'!C652","v":"AMORTIZE ITC"},{"$f":"'FR-16(7)(v)-1 Functional'!D652","v":"NP29"},null,{"$f":"'FR-16(7)(v)-14 TOTAL CLASS'!O652","v":11},{"$f":"'FR-16(7)(v)-3 PROD Demand'!O652+'FR-16(7)(v)-7 TRANS Demand'!O652+'FR-16(7)(v)-11 DIST Demand'!O652","v":11},{"$f":"'FR-16(7)(v)-4 PROD Energy'!O652+'FR-16(7)(v)-8 TRANS Energy'!O652+'FR-16(7)(v)-12 DIST Energy'!O652","v":0},{"$f":"'FR-16(7)(v)-5 PROD Cust'!O652+'FR-16(7)(v)-9 TRANS Cust'!O652+'FR-16(7)(v)-13 DIST Cust'!O652","v":0},{"$f":"SUM(G652:I652)","v":11},{"$f":"F652-J652","v":0}]
[24,null,{"$f":"'FR-16(7)(v)-1 Functional'!C653","v":"  TOTAL AMORTIZED ITC"},null,null,{"$f":"SUM(F652:F652)","v":11},11,0,0,11,0]
[25]
[26," OTHER FEDERAL TAX CREDITS"]
[27,null,{"$f":"'FR-16(7)(v)-1 Functional'!C656","v":"FUEL TAX CREDIT"},{"$f":"'FR-16(7)(v)-1 Functional'!D656","v":"K301"},null,{"$f":"'FR-16(7)(v)-14 TOTAL CLASS'!O656","v":0},{"$f":"'FR-16(7)(v)-3 PROD Demand'!O656+'FR-16(7)(v)-7 TRANS Demand'!O656+'FR-16(7)(v)-11 DIST Demand'!O656","v":0},{"$f":"'FR-16(7)(v)-4 PROD Energy'!O656+'FR-16(7)(v)-8 TRANS Energy'!O656+'FR-16(7)(v)-12 DIST Energy'!O656","v":0},{"$f":"'FR-16(7)(v)-5 PROD Cust'!O656+'FR-16(7)(v)-9 TRANS Cust'!O656+'FR-16(7)(v)-13 DIST Cust'!O656","v":0},{"$f":"SUM(G656:I656)","v":0},{"$f":"F656-J656","v":0}]
[28,null,{"$f":"'FR-16(7)(v)-1 Functional'!C657","v":"R&D CREDIT - SECTION 41"},{"$f":"'FR-16(7)(v)-1 Functional'!D657","v":"A315"},null,{"$f":"'FR-16(7)(v)-14 TOTAL CLASS'!O657","v":0},{"$f":"'FR-16(7)(v)-3 PROD Demand'!O657+'FR-16(7)(v)-7 TRANS Demand'!O657+'FR-16(7)(v)-11 DIST Demand'!O657","v":0},{"$f":"'FR-16(7)(v)-4 PROD Energy'!O657+'FR-16(7)(v)-8 TRANS Energy'!O657+'FR-16(7)(v)-12 DIST Energy'!O657","v":0},{"$f":"'FR-16(7)(v)-5 PROD Cust'!O657+'FR-16(7)(v)-9 TRANS Cust'!O657+'FR-16(7)(v)-13 DIST Cust'!O657","v":0},{"$f":"SUM(G657:I657)","v":0},{"$f":"F657-J657","v":0}]
[29,null,{"$f":"'FR-16(7)(v)-1 Functional'!C658","v":"  TOTAL OTHER FEDERAL TAX CREDITS"},null,null,{"$f":"SUM(F656:F657)","v":0},0,0,0,0,0]
[30]
[31,"PRELIMINARY SUMMARY"]
[32,null,{"$f":"'FR-16(7)(v)-1 Functional'!C661","v":"TOTAL FED DEF IT (410 & 411)"},null,null,{"$f":"F649","v":545249},68470,476749,30,545249,0]
[33,null,{"$f":"'FR-16(7)(v)-1 Functional'!C662","v":"TOTAL AMORTIZED ITC & OTHER FEDERAL TAX CREDITS"},null,null,{"$f":"-F653-F658","v":-11},-11,0,0,-11,0]
[34,null,{"$f":"'FR-16(7)(v)-1 Functional'!C663","v":"  TOTAL FEDERAL TAX ADJUSTMENTS"},null,null,{"$f":"SUM(F661:F662)","v":545238},68459,476749,30,545238,0]
[35]
[36,"FEDERAL INCOME TAX COMPUTATION"]
[37,null,"RETURN ON RATE BASE",null,null,{"$f":"F433","v":1720371},{"$f":"G433","v":1595570},{"$f":"H433","v":124052},{"$f":"I433","v":749},{"$f":"J433","v":1720371},{"$f":"F666-J666","v":0}]
[38,null,{"$f":"'FR-16(7)(v)-1 Functional'!C667","v":"NET DEDUCTIONS AND ADDITIONS"},null,null,{"$f":"-F641","v":-2764001},{"$f":"-G641","v":-2603937},{"$f":"-H641","v":-159437},{"$f":"-I641","v":-627},{"$f":"-J641","v":-2764001},{"$f":"F667-J667","v":0}]
[39,null,{"$f":"'FR-16(7)(v)-1 Functional'!C668","v":"TOTAL FEDERAL TAX ADJUSTMENTS"},null,null,{"$f":"F663","v":545238},{"$f":"G663","v":68459},{"$f":"H663","v":476749},{"$f":"I663","v":30},{"$f":"J663","v":545238},{"$f":"F668-J668","v":0}]
[40,null,"TOTAL STATE PROV DEF IT (410 & 411)",null,null,{"$f":"F707","v":84435},{"$f":"G707","v":14286},{"$f":"H707","v":70180},{"$f":"I707","v":-31},{"$f":"J707","v":84435},{"$f":"F669-J669","v":0}]
[41,null,"RESERVED",null,null,{"$f":"F24","v":0},{"$f":"G24","v":0},{"$f":"H24","v":0},{"$f":"I24","v":0},{"$f":"J24","v":0},{"$f":"F670-J670","v":0}]
[42,null,{"$f":"'FR-16(7)(v)-1 Functional'!C671","v":"  BASE FOR FIT COMPUATION"},null,null,{"$f":"SUM(F666:F670)","v":-413957},-925622,511544,121,-413957,0]
[43]
[44,null,{"$f":"'FR-16(7)(v)-1 Functional'!C673","v":"FIT FACTOR K190/(1-K190)"},null,null,{"$f":"ROUND(FIT/(1-FIT),9)","v":0.26582278500000001},{"$f":"ROUND(FIT/(1-FIT),9)","v":0.26582278500000001},{"$f":"ROUND(FIT/(1-FIT),9)","v":0.26582278500000001},{"$f":"ROUND(FIT/(1-FIT),9)","v":0.26582278500000001},null,{"$f":"ROUND(FIT/(1-FIT),9)","v":0.26582278500000001}]
[45,null,{"$f":"'FR-16(7)(v)-1 Functional'!C674","v":"PRELIM FED INCOME TAX"},null,null,{"$f":"'FR-16(7)(v)-14 TOTAL CLASS'!O674","v":-110039},{"$f":"F674-SUM(H674:I674)","v":-246051},{"$f":"'FR-16(7)(v)-4 PROD Energy'!O674+'FR-16(7)(v)-8 TRANS Energy'!O674+'FR-16(7)(v)-12 DIST Energy'!O674","v":135980},{"$f":"'FR-16(7)(v)-5 PROD Cust'!O674+'FR-16(7)(v)-9 TRANS Cust'!O674+'FR-16(7)(v)-13 DIST Cust'!O674","v":32},{"$f":"SUM(G674:I674)","v":-110039},{"$f":"F674-J674","v":0}]
[46,null,{"$f":"'FR-16(7)(v)-1 Functional'!C675","v":"TOTAL FEDERAL TAX ADJUSTMENTS"},null,null,{"$f":"F663","v":545238},{"$f":"G663","v":68459},{"$f":"H663","v":476749},{"$f":"I663","v":30},{"$f":"J663","v":545238},{"$f":"F675-J675","v":0}]
[47,null,{"$f":"'FR-16(7)(v)-1 Functional'!C676","v":"  NET FED INCOME TAX ALLOWABLE"},null,null,{"$f":"SUM(F674:F675)","v":435199},-177592,612729,62,435199,0]
[48]
[49,"INCOME TAX BASED ON RETURN"]
[50,"FEDERAL INCOME TAX PAYABLE"]
[51,null,{"$f":"'FR-16(7)(v)-1 Functional'!C680","v":"PRELIM FEDERAL INCOME TAX"},null,null,{"$f":"F674","v":-110039},-246051,135980,32,-110039,0]
[53,null,{"$f":"'FR-16(7)(v)-1 Functional'!C681","v":"  NET FED INCOME TAX PAYABLE"},null,null,{"$f":"SUM(F680:F680)","v":-110039},-246051,135980,32,-110039,0]
[]
[{"$f":"co_name","v":"DUKE ENERGY KENTUCKY, INC."},null,null,null,null,null,null,null,null,{"$f":"J1","v":"FR-16(7)(v)-23"}]
[{"$f":"$A$2","v":"TT CLASSIFIED - ELECTRIC COST OF SERVICE"},null,null,null,null,null,null,null,null,{"$f":"J2","v":"WITNESS RESPONSIBLE:"}]
[{"$f":"case_name","v":"CASE NO: 2019-00271"},null,null,null,null,null,null,null,null,{"$f":"Witness","v":"JAMES E. ZIOLKOWSKI"}]
[{"$f":"data_filing","v":"DATA: 12 MONTHS ACTUAL  & 0 MONTHS ESTIMATED"},null,null,null,null,null,null,null,null,{"$f":"\"PAGE \"&Pages2-2&\" OF \"&Pages2","v":"PAGE 13 OF 15"}]
[{"$f":"type","v":"TYPE OF FILING: \"X\" ORIGINAL   UPDATED    REVISED  "}]
[]
[]
["LINE",null,null,null,null,"TOTAL","CLASSIFIED",null,null,"TOTAL","ALL"]
["NO.","STATE INCOME TAX BASED ON RETURN",null,"Allo",null,"GAS",{"$f":"$G$9","v":"DEMAND"},{"$f":"$H$9","v":"ENERGY"},{"$f":"$I$9","v":"CUSTOMER"},"AT ISSUE","OTHER"]
[null,null,"Schedule 9.1",null,null,null,{"$f":"$G$10","v":3},{"$f":"$H$10","v":4},{"$f":"$I$10","v":5}]
[1,"DEDUCTIONS IN ADDITION TO Y871"]
[2,"KY TAXABLE INCOME ADJUSTMENT",null,{"$f":"'FR-16(7)(v)-1 Functional'!D694","v":"NP29"},null,{"$f":"'FR-16(7)(v)-14 TOTAL CLASS'!O694","v":225309},{"$f":"'FR-16(7)(v)-3 PROD Demand'!O694+'FR-16(7)(v)-7 TRANS Demand'!O694+'FR-16(7)(v)-11 DIST Demand'!O694","v":218504},{"$f":"'FR-16(7)(v)-4 PROD Energy'!O694+'FR-16(7)(v)-8 TRANS Energy'!O694+'FR-16(7)(v)-12 DIST Energy'!O694","v":6723},{"$f":"'FR-16(7)(v)-5 PROD Cust'!O694+'FR-16(7)(v)-9 TRANS Cust'!O694+'FR-16(7)(v)-13 DIST Cust'!O694","v":82},{"$f":"SUM(G694:I694)","v":225309},{"$f":"F694-J694","v":0}]
[3,"RESERVED FOR FUTURE USE",null,{"$f":"'FR-16(7)(v)-1 Functional'!D695","v":"NP29"},null,{"$f":"'FR-16(7)(v)-14 TOTAL CLASS'!O695","v":0},{"$f":"'FR-16(7)(v)-3 PROD Demand'!O695+'FR-16(7)(v)-7 TRANS Demand'!O695+'FR-16(7)(v)-11 DIST Demand'!O695","v":0},{"$f":"'FR-16(7)(v)-4 PROD Energy'!O695+'FR-16(7)(v)-8 TRANS Energy'!O695+'FR-16(7)(v)-12 DIST Energy'!O695","v":0},{"$f":"'FR-16(7)(v)-5 PROD Cust'!O695+'FR-16(7)(v)-9 TRANS Cust'!O695+'FR-16(7)(v)-13 DIST Cust'!O695","v":0},{"$f":"SUM(G695:I695)","v":0},{"$f":"F695-J695","v":0}]
[4,"  DEDUCTIONS IN ADD TO Y871",null,null,null,{"$f":"SUM(F694:F695)","v":225309},218504,6723,82,225309,0]
[5]
[6,"STATE INCOME TAX ADJUSTMENTS"]
[7,"STATE PROV DEF INC TAX (410 & 411)"]
[8,"OTHER DEFERRED INCOME TAXES - NET",null,{"$f":"'FR-16(7)(v)-1 Functional'!D700","v":"A357"},null,{"$f":"'FR-16(7)(v)-14 TOTAL CLASS'!O700","v":84435},{"$f":"'FR-16(7)(v)-3 PROD Demand'!O700+'FR-16(7)(v)-7 TRANS Demand'!O700+'FR-16(7)(v)-11 DIST Demand'!O700","v":14286},{"$f":"'FR-16(7)(v)-4 PROD Energy'!O700+'FR-16(7)(v)-8 TRANS Energy'!O700+'FR-16(7)(v)-12 DIST Energy'!O700","v":70180},{"$f":"'FR-16(7)(v)-5 PROD Cust'!O700+'FR-16(7)(v)-9 TRANS Cust'!O700+'FR-16(7)(v)-13 DIST Cust'!O700","v":-31},{"$f":"SUM(G700:I700)","v":84435},{"$f":"F700-J700","v":0}]
[9,"  TOT STATE PROV DEF IT (410 & 411)",null,null,null,{"$f":"SUM(F700)","v":84435},14286,70180,-31,84435,0]
[10]
[11,"OTHER SIT ADJUSTMENTS"]
[12,"CURRENT YEAR PAYABLE ADJUSTMENT",null,{"$f":"'FR-16(7)(v)-1 Functional'!D704","v":"NP29"},null,{"$f":"'FR-16(7)(v)-14 TOTAL CLASS'!O704","v":0},{"$f":"'FR-16(7)(v)-3 PROD Demand'!O704+'FR-16(7)(v)-7 TRANS Demand'!O704+'FR-16(7)(v)-11 DIST Demand'!O704","v":0},{"$f":"'FR-16(7)(v)-4 PROD Energy'!O704+'FR-16(7)(v)-8 TRANS Energy'!O704+'FR-16(7)(v)-12 DIST Energy'!O704","v":0},{"$f":"'FR-16(7)(v)-5 PROD Cust'!O704+'FR-16(7)(v)-9 TRANS Cust'!O704+'FR-16(7)(v)-13 DIST Cust'!O704","v":0},{"$f":"SUM(G704:I704)","v":0},{"$f":"F704-J704","v":0}]
[13,"  OTHER SIT ADJUSMENTS",null,null,null,{"$f":"SUM(F704)","v":0},0,0,0,0,0]
[14]
[15,"TOTAL STATE INC TAX ADJUSTMENT",null,null,null,{"$f":"F705+F701","v":84435},14286,70180,-31,84435,0]
[16]
[17,"INCOME TAX BASED ON RETURN"]
[18,"SUMMARY OF SIT CALCULATION"]
[19,"RETURN ON RATE BASE",null,null,null,{"$f":"F433","v":1720371},{"$f":"G433","v":1595570},{"$f":"H433","v":124052},{"$f":"I433","v":749},{"$f":"J433","v":1720371},{"$f":"F711-J711","v":0}]
[20,"NET FED INCOME TAX ALLOWABLE",null,null,null,{"$f":"F676","v":435199},{"$f":"G676","v":-177592},{"$f":"H676","v":612729},{"$f":"I676","v":62},{"$f":"J676","v":435199},0]
[21,"NET FED. DED. AND ADDITIONS",null,null,null,{"$f":"-F641","v":-2764001},{"$f":"-G641","v":-2603937},{"$f":"-H641","v":-159437},{"$f":"-I641","v":-627},{"$f":"-J641","v":-2764001},0]
[22,"DEDUCTIONS IN ADD TO Y871",null,null,null,{"$f":"-F696","v":-225309},{"$f":"-G696","v":-218504},{"$f":"-H696","v":-6723},{"$f":"-I696","v":-82},{"$f":"-J696","v":-225309},0]
[23,"RESERVED",null,null,null,{"$f":"F24","v":0},{"$f":"G24","v":0},{"$f":"H24","v":0},{"$f":"I24","v":0},{"$f":"J24","v":0},0]
[24,"TOTAL STATE INC TAX ADJ",null,null,null,{"$f":"F707","v":84435},{"$f":"G707","v":14286},{"$f":"H707","v":70180},{"$f":"I707","v":-31},{"$f":"J707","v":84435},0]
[25,"  BASE FOR SIT COMPUTATION",null,null,null,{"$f":"SUM(F711:F716)","v":-749305},-1390177,640801,71,-749305,0]
[26]
[27,"SIT FACTOR K192/(1-K192)",null,null,null,{"$f":"ROUND(SIT/(1-SIT),8)","v":5.2282660000000002E-2},{"$f":"ROUND(SIT/(1-SIT),8)","v":5.2282660000000002E-2},{"$f":"ROUND(SIT/(1-SIT),8)","v":5.2282660000000002E-2},{"$f":"ROUND(SIT/(1-SIT),8)","v":5.2282660000000002E-2},null,{"$f":"ROUND(SIT/(1-SIT),8)","v":5.2282660000000002E-2}]
[28,"PRELIMINARY STATE INCOME TAX",null,null,null,{"$f":"ROUND(F717*F719,0)","v":-39176},{"$f":"'FR-16(7)(v)-3 PROD Demand'!O720+'FR-16(7)(v)-7 TRANS Demand'!O720+'FR-16(7)(v)-11 DIST Demand'!O720","v":-72682},{"$f":"ROUND(H717*H719,0)","v":33503},{"$f":"ROUND(I717*I719,0)","v":4},{"$f":"SUM(G720:I720)","v":-39175},{"$f":"F720-J720","v":-1}]
[29,"TOTAL STATE INCOME TAX ADJ.",null,null,null,{"$f":"F707","v":84435},{"$f":"G707","v":14286},{"$f":"H707","v":70180},{"$f":"I707","v":-31},{"$f":"J707","v":84435},{"$f":"F721-J721","v":0}]
[30,"  NET STATE INC TAX ALLOWABLE",null,null,null,{"$f":"F721+F720","v":45259},-58396,103683,-27,45260,-1]
[31]
[32,"STATE INCOME TAX PAYABLE"]
[33,"PRELIMINARY STATE INCOME TAX",null,null,null,{"$f":"F720","v":-39176},{"$f":"G720","v":-72682},{"$f":"H720","v":33503},{"$f":"I720","v":4},{"$f":"J720","v":-39175},{"$f":"F725-J725","v":-1}]
[34,"OTHER SIT ADJUSTMENTS",null,null,null,{"$f":"F705","v":0},{"$f":"G705","v":0},{"$f":"H705","v":0},{"$f":"I705","v":0},{"$f":"J705","v":0},{"$f":"F726-J726","v":0}]
[35,"  NET STATE INCOME TAX PAYABLE",null,null,null,{"$f":"F725+F726","v":-39176},-72682,33503,4,-39175,-1]
[36]
[37,"COMPOSITE TAX RATE",null,null,null,{"$f":"(SIT*(1-FIT))+((1-SIT)*(1-FIT)*RevTax)+FIT","v":0.24925115},0.24925115,0.24925115,0.24925115,0.24925115,0.24925115]
[]
[{"$f":"co_name","v":"DUKE ENERGY KENTUCKY, INC."},null,null,null,null,null,null,null,null,{"$f":"J1","v":"FR-16(7)(v)-23"}]
[{"$f":"$A$2","v":"TT CLASSIFIED - ELECTRIC COST OF SERVICE"},null,null,null,null,null,null,null,null,{"$f":"J2","v":"WITNESS RESPONSIBLE:"}]
[{"$f":"case_name","v":"CASE NO: 2019-00271"},null,null,null,null,null,null,null,null,{"$f":"Witness","v":"JAMES E. ZIOLKOWSKI"}]
[{"$f":"data_filing","v":"DATA: 12 MONTHS ACTUAL  & 0 MONTHS ESTIMATED"},null,null,null,null,null,null,null,null,{"$f":"\"PAGE \"&Pages2-1&\" OF \"&Pages2","v":"PAGE 14 OF 15"}]
[{"$f":"type","v":"TYPE OF FILING: \"X\" ORIGINAL   UPDATED    REVISED  "}]
[]
[]
["LINE",null,null,null,null,"TOTAL","CLASSIFIED",null,null,"TOTAL","ALL"]
["NO.","COST OF SERVICE COMPUTATION",null,"ALLO",null,{"$f":"$F$9","v":"TT"},{"$f":"G9","v":"DEMAND"},"ENERGY","CUSTOMER","AT ISSUE","OTHER"]
[null,null,"Schedule 10",null,null,null,3,4,5]
[1,"OTHER OPERATING REVENUES"]
[2,null,{"$f":"'FR-16(7)(v)-1 Functional'!C742","v":"MISC SERVICE REVENUE"},{"$f":"'FR-16(7)(v)-1 Functional'!D742","v":"D249"},null,{"$f":"'FR-16(7)(v)-14 TOTAL CLASS'!O742","v":7},{"$f":"'FR-16(7)(v)-3 PROD Demand'!O742+'FR-16(7)(v)-7 TRANS Demand'!O742+'FR-16(7)(v)-11 DIST Demand'!O742","v":0},{"$f":"'FR-16(7)(v)-4 PROD Energy'!O742+'FR-16(7)(v)-8 TRANS Energy'!O742+'FR-16(7)(v)-12 DIST Energy'!O742","v":0},{"$f":"'FR-16(7)(v)-5 PROD Cust'!O742+'FR-16(7)(v)-9 TRANS Cust'!O742+'FR-16(7)(v)-13 DIST Cust'!O742","v":7},{"$f":"SUM(G742:I742)","v":7},{"$f":"F742-J742","v":0}]
[3,null,{"$f":"'FR-16(7)(v)-1 Functional'!C743","v":"INTERDEPARTMENTAL"},{"$f":"'FR-16(7)(v)-1 Functional'!D743","v":"K902"},null,{"$f":"'FR-16(7)(v)-14 TOTAL CLASS'!O743","v":0},{"$f":"'FR-16(7)(v)-3 PROD Demand'!O743+'FR-16(7)(v)-7 TRANS Demand'!O743+'FR-16(7)(v)-11 DIST Demand'!O743","v":0},{"$f":"'FR-16(7)(v)-4 PROD Energy'!O743+'FR-16(7)(v)-8 TRANS Energy'!O743+'FR-16(7)(v)-12 DIST Energy'!O743","v":0},{"$f":"'FR-16(7)(v)-5 PROD Cust'!O743+'FR-16(7)(v)-9 TRANS Cust'!O743+'FR-16(7)(v)-13 DIST Cust'!O743","v":0},0,{"$f":"F743-J743","v":0}]
[4,null,{"$f":"'FR-16(7)(v)-1 Functional'!C744","v":"POLE & LINE ATTACHMENTS"},{"$f":"'FR-16(7)(v)-1 Functional'!D744","v":"D249"},null,{"$f":"'FR-16(7)(v)-14 TOTAL CLASS'!O744","v":6},{"$f":"'FR-16(7)(v)-3 PROD Demand'!O744+'FR-16(7)(v)-7 TRANS Demand'!O744+'FR-16(7)(v)-11 DIST Demand'!O744","v":0},{"$f":"'FR-16(7)(v)-4 PROD Energy'!O744+'FR-16(7)(v)-8 TRANS Energy'!O744+'FR-16(7)(v)-12 DIST Energy'!O744","v":0},{"$f":"'FR-16(7)(v)-5 PROD Cust'!O744+'FR-16(7)(v)-9 TRANS Cust'!O744+'FR-16(7)(v)-13 DIST Cust'!O744","v":6},6,0]
[5,null,{"$f":"'FR-16(7)(v)-1 Functional'!C745","v":"RENTS"},{"$f":"'FR-16(7)(v)-1 Functional'!D745","v":"D249"},null,{"$f":"'FR-16(7)(v)-14 TOTAL CLASS'!O745","v":28},{"$f":"'FR-16(7)(v)-3 PROD Demand'!O745+'FR-16(7)(v)-7 TRANS Demand'!O745+'FR-16(7)(v)-11 DIST Demand'!O745","v":0},{"$f":"'FR-16(7)(v)-4 PROD Energy'!O745+'FR-16(7)(v)-8 TRANS Energy'!O745+'FR-16(7)(v)-12 DIST Energy'!O745","v":0},{"$f":"'FR-16(7)(v)-5 PROD Cust'!O745+'FR-16(7)(v)-9 TRANS Cust'!O745+'FR-16(7)(v)-13 DIST Cust'!O745","v":28},28,0]
[6,null,{"$f":"'FR-16(7)(v)-1 Functional'!C746","v":"TRANSMISSION CHARGE PTP"},{"$f":"'FR-16(7)(v)-1 Functional'!D746","v":"T229"},null,{"$f":"'FR-16(7)(v)-14 TOTAL CLASS'!O746","v":6129},{"$f":"'FR-16(7)(v)-3 PROD Demand'!O746+'FR-16(7)(v)-7 TRANS Demand'!O746+'FR-16(7)(v)-11 DIST Demand'!O746","v":6129},{"$f":"'FR-16(7)(v)-4 PROD Energy'!O746+'FR-16(7)(v)-8 TRANS Energy'!O746+'FR-16(7)(v)-12 DIST Energy'!O746","v":0},{"$f":"'FR-16(7)(v)-5 PROD Cust'!O746+'FR-16(7)(v)-9 TRANS Cust'!O746+'FR-16(7)(v)-13 DIST Cust'!O746","v":0},6129,{"$f":"F746-J746","v":0}]
[7,null,{"$f":"'FR-16(7)(v)-1 Functional'!C747","v":"PJM REACTIVE REVENUE"},{"$f":"'FR-16(7)(v)-1 Functional'!D747","v":"K401"},null,{"$f":"'FR-16(7)(v)-14 TOTAL CLASS'!O747","v":0},{"$f":"'FR-16(7)(v)-3 PROD Demand'!O747+'FR-16(7)(v)-7 TRANS Demand'!O747+'FR-16(7)(v)-11 DIST Demand'!O747","v":0},{"$f":"'FR-16(7)(v)-4 PROD Energy'!O747+'FR-16(7)(v)-8 TRANS Energy'!O747+'FR-16(7)(v)-12 DIST Energy'!O747","v":0},{"$f":"'FR-16(7)(v)-5 PROD Cust'!O747+'FR-16(7)(v)-9 TRANS Cust'!O747+'FR-16(7)(v)-13 DIST Cust'!O747","v":0},0,{"$f":"F747-J747","v":0}]
[8,null,{"$f":"'FR-16(7)(v)-1 Functional'!C748","v":"OTHER TRANSMISSION REVENUES"},{"$f":"'FR-16(7)(v)-1 Functional'!D748","v":"T229"},null,{"$f":"'FR-16(7)(v)-14 TOTAL CLASS'!O748","v":1036},{"$f":"'FR-16(7)(v)-3 PROD Demand'!O748+'FR-16(7)(v)-7 TRANS Demand'!O748+'FR-16(7)(v)-11 DIST Demand'!O748","v":1036},{"$f":"'FR-16(7)(v)-4 PROD Energy'!O748+'FR-16(7)(v)-8 TRANS Energy'!O748+'FR-16(7)(v)-12 DIST Energy'!O748","v":0},{"$f":"'FR-16(7)(v)-5 PROD Cust'!O748+'FR-16(7)(v)-9 TRANS Cust'!O748+'FR-16(7)(v)-13 DIST Cust'!O748","v":0},1036,{"$f":"F748-J748","v":0}]
[9,null,{"$f":"'FR-16(7)(v)-1 Functional'!C749","v":"FIXED BILL PREMIUM"},{"$f":"'FR-16(7)(v)-1 Functional'!D749","v":"K902"},null,{"$f":"'FR-16(7)(v)-14 TOTAL CLASS'!O749","v":0},{"$f":"'FR-16(7)(v)-3 PROD Demand'!O749+'FR-16(7)(v)-7 TRANS Demand'!O749+'FR-16(7)(v)-11 DIST Demand'!O749","v":0},{"$f":"'FR-16(7)(v)-4 PROD Energy'!O749+'FR-16(7)(v)-8 TRANS Energy'!O749+'FR-16(7)(v)-12 DIST Energy'!O749","v":0},{"$f":"'FR-16(7)(v)-5 PROD Cust'!O749+'FR-16(7)(v)-9 TRANS Cust'!O749+'FR-16(7)(v)-13 DIST Cust'!O749","v":0},0,0]
[10,null,{"$f":"'FR-16(7)(v)-1 Functional'!C750","v":"  TOTAL OTHER OPERATING REVS"},null,null,{"$f":"SUM(F742:F749)","v":7206},7165,0,41,7206,0]
[11]
[12,"COST OF SERVICE COMPUTATION"]
[13,null,{"$f":"'FR-16(7)(v)-1 Functional'!C753","v":"TOTAL OP EXP EXC INC & REV TAX"},null,null,{"$f":"F618","v":11792222},{"$f":"G618","v":3430503},{"$f":"H618","v":8360701},{"$f":"I618","v":1018},{"$f":"J618","v":11792222},{"$f":"F753-J753","v":0}]
[14,null,"RETURN ON RATE BASE",null,null,{"$f":"F433","v":1720371},{"$f":"G433","v":1595570},{"$f":"H433","v":124052},{"$f":"I433","v":749},{"$f":"J433","v":1720371},{"$f":"F754-J754","v":0}]
[15,null,{"$f":"'FR-16(7)(v)-1 Functional'!C755","v":"NET FED INCOME TAX ALLOWABLE"},null,null,{"$f":"F676","v":435199},{"$f":"G676","v":-177592},{"$f":"H676","v":612729},{"$f":"I676","v":62},{"$f":"J676","v":435199},{"$f":"F755-J755","v":0}]
[16,null,{"$f":"'FR-16(7)(v)-1 Functional'!C756","v":"NET STATE INCOME TAX ALLOWABLE"},null,null,{"$f":"F722","v":45259},{"$f":"G722","v":-58396},{"$f":"H722","v":103683},{"$f":"I722","v":-27},{"$f":"J722","v":45260},{"$f":"F756-J756","v":-1}]
[17,null,{"$f":"'FR-16(7)(v)-1 Functional'!C757","v":"TOTAL OTHER OPERATING REVENUES"},null,null,{"$f":"-F750","v":-7206},{"$f":"-G750","v":-7165},{"$f":"-H750","v":0},{"$f":"-I750","v":-41},{"$f":"-J750","v":-7206},{"$f":"F757-J757","v":0}]
[18,null,{"$f":"'FR-16(7)(v)-1 Functional'!C758","v":"  SUBTOTAL B"},null,null,{"$f":"SUM(F752:F757)","v":13985845},{"$f":"SUM(G752:G757)","v":4782920},{"$f":"SUM(H752:H757)","v":9201165},{"$f":"SUM(I752:I757)","v":1761},{"$f":"SUM(J752:J757)","v":13985846},{"$f":"J758-F758","v":1}]
[19]
[20,null,{"$f":"'FR-16(7)(v)-1 Functional'!C760","v":"TOTAL OTHER OPERATING REVENUES"},null,null,{"$f":"-F757","v":7206},{"$f":"-G757","v":7165},{"$f":"-H757","v":0},{"$f":"-I757","v":41},{"$f":"-J757","v":7206},{"$f":"F760-J760","v":0}]
[21,null,{"$f":"'FR-16(7)(v)-1 Functional'!C761","v":"LESS: REVS EXCL FROM REV TAX CALC"},null,null,{"$f":"'FR-16(7)(v)-14 TOTAL CLASS'!O761","v":0},{"$f":"'FR-16(7)(v)-3 PROD Demand'!O761+'FR-16(7)(v)-7 TRANS Demand'!O761+'FR-16(7)(v)-11 DIST Demand'!O761","v":0},{"$f":"'FR-16(7)(v)-4 PROD Energy'!O761+'FR-16(7)(v)-8 TRANS Energy'!O761+'FR-16(7)(v)-12 DIST Energy'!O761","v":0},{"$f":"'FR-16(7)(v)-5 PROD Cust'!O761+'FR-16(7)(v)-9 TRANS Cust'!O761+'FR-16(7)(v)-13 DIST Cust'!O761","v":0},{"$f":"SUM(G761:I761)","v":0},{"$f":"F761-J761","v":0}]
[22,null,{"$f":"'FR-16(7)(v)-1 Functional'!C762","v":"OTHER OPERATING REVS TO BE TAXED"},null,null,{"$f":"F760-F761","v":7206},7165,0,41,7206,0]
[23]
[24,null,{"$f":"'FR-16(7)(v)-1 Functional'!C764","v":"REVENUE TAX FACTOR"},null,null,{"$f":"ROUND(F817/(1-F817),8)","v":0},0,0,0,0,0]
[25,null,{"$f":"'FR-16(7)(v)-1 Functional'!C765","v":"REVENUE TAX ON OTHER OPER. REVS"},null,null,{"$f":"ROUND(F764*F762,0)","v":0},{"$f":"ROUND(G764*G762,0)","v":0},{"$f":"ROUND(H764*H762,0)","v":0},{"$f":"ROUND(I764*I762,0)","v":0},{"$f":"SUM(G765:I765)","v":0},{"$f":"F765-J765","v":0}]
[26,null,{"$f":"'FR-16(7)(v)-1 Functional'!C766","v":"REVENUE TAX ON COST OF SERVICE"},null,null,{"$f":"ROUND(F764*F758,0)","v":0},{"$f":"ROUND(G764*G758,0)","v":0},{"$f":"ROUND(H764*H758,0)","v":0},{"$f":"ROUND(I764*I758,0)","v":0},{"$f":"SUM(G766:I766)","v":0},{"$f":"F766-J766","v":0}]
[27,null,{"$f":"'FR-16(7)(v)-1 Functional'!C767","v":"TOTAL REVENUE TAX"},null,null,{"$f":"F766+F765","v":0},0,0,0,0,0]
[28]
[29,null,"RESERVED",null,null,{"$f":"F24","v":0},{"$f":"G24","v":0},{"$f":"H24","v":0},{"$f":"I24","v":0},{"$f":"J24","v":0},{"$f":"F769-J769","v":0}]
[30,null,{"$f":"'FR-16(7)(v)-1 Functional'!C770","v":"  TOTAL ELECTRIC COST OF SERVICE"},null,null,{"$f":"F769+F767+F758","v":13985845},4782920,9201165,1761,13985846,1]
[31]
[32,"PROPOSED REVENUES ",null,null,null,{"$f":"'FR-16(7)(v)-14 TOTAL CLASS'!O772","v":8179533},{"$f":"'FR-16(7)(v)-3 PROD Demand'!O772+'FR-16(7)(v)-7 TRANS Demand'!O772+'FR-16(7)(v)-11 DIST Demand'!O772","v":1383947},{"$f":"'FR-16(7)(v)-4 PROD Energy'!O772+'FR-16(7)(v)-8 TRANS Energy'!O772+'FR-16(7)(v)-12 DIST Energy'!O772","v":6798558},{"$f":"'FR-16(7)(v)-5 PROD Cust'!O772+'FR-16(7)(v)-9 TRANS Cust'!O772+'FR-16(7)(v)-13 DIST Cust'!O772","v":-2972},{"$f":"SUM(G772:I772)","v":8179533},{"$f":"F772-J772","v":0}]
[33,"TOTAL ELECTRIC COST OF SERVICE",null,null,null,{"$f":"-F770","v":-13985845},{"$f":"-G770","v":-4782920},{"$f":"-H770","v":-9201165},{"$f":"-I770","v":-1761},{"$f":"SUM(G773:I773)","v":-13985846},{"$f":"F773-J773","v":1}]
[34,"EXCESS REVENUES",null,null,null,{"$f":"F773+F772","v":-5806312},{"$f":"G773+G772","v":-3398973},{"$f":"H773+H772","v":-2402607},{"$f":"I773+I772","v":-4733},{"$f":"SUM(G774:I774)","v":-5806313},{"$f":"F774-J774","v":1}]
[35,"COMPOSITE TAX RATE",null,null,null,{"$f":"F729","v":0.24925115},0.24925115,0.24925115,0.24925115,0.24925115,0.24925115]
[36,"EXCESS TAX",null,null,null,{"$f":"ROUND(F775*F774,0)","v":-1447230},{"$f":"'FR-16(7)(v)-3 PROD Demand'!O776+'FR-16(7)(v)-7 TRANS Demand'!O776+'FR-16(7)(v)-11 DIST Demand'!O776","v":-847199},{"$f":"ROUND(H775*H774,0)","v":-598853},{"$f":"ROUND(I775*I774,0)","v":-1180},{"$f":"SUM(G776:I776)","v":-1447232},{"$f":"F776-J776","v":2}]
[37,"EXCESS RETURN",null,null,null,{"$f":"F774-F776","v":-4359082},{"$f":"'FR-16(7)(v)-3 PROD Demand'!O777+'FR-16(7)(v)-7 TRANS Demand'!O777+'FR-16(7)(v)-11 DIST Demand'!O777","v":-2551774},{"$f":"H774-H776","v":-1803754},{"$f":"I774-I776","v":-3553},{"$f":"SUM(G777:I777)","v":-4359081},{"$f":"F777-J777","v":-1}]
[]
[{"$f":"co_name","v":"DUKE ENERGY KENTUCKY, INC."},null,null,null,null,null,null,null,null,{"$f":"J1","v":"FR-16(7)(v)-23"}]
[{"$f":"$A$2","v":"TT CLASSIFIED - ELECTRIC COST OF SERVICE"},null,null,null,null,null,null,null,null,{"$f":"J2","v":"WITNESS RESPONSIBLE:"}]
[{"$f":"case_name","v":"CASE NO: 2019-00271"},null,null,null,null,null,null,null,null,{"$f":"Witness","v":"JAMES E. ZIOLKOWSKI"}]
[{"$f":"data_filing","v":"DATA: 12 MONTHS ACTUAL  & 0 MONTHS ESTIMATED"},null,null,null,null,null,null,null,null,{"$f":"\"PAGE \"&Pages2&\" OF \"&Pages2","v":"PAGE 15 OF 15"}]
[{"$f":"type","v":"TYPE OF FILING: \"X\" ORIGINAL   UPDATED    REVISED  "}]
[]
[]
["LINE",null,null,null,null,"TOTAL","CLASSIFIED",null,null,"TOTAL","ALL"]
["NO.","ROR, TAX RATES & SPEC FACTORS",null,"ALLO",null,{"$f":"$F$9","v":"TT"},{"$f":"G9","v":"DEMAND"},"ENERGY","CUSTOMER","AT ISSUE","OTHER"]
[null,null,"Schedule 11",null,null,null,3,4,5]
[1,"RATE OF RETURN"]
[2," CAPITALIZATION AMOUNTS",null,null,null,null,"RATIO"]
[3,null,{"$f":"'FR-16(7)(v)-1 Functional'!C791","v":"LONG TERM DEBT"},null,null,{"$f":"'FR-16(7)(v)-1 Functional'!$F$791","v":665948506},{"$f":"IF(TotalCap=0,0,ROUND(F791/TotalCap,4))","v":0.45929999999999999}]
[4,null,{"$f":"'FR-16(7)(v)-1 Functional'!C792","v":"PREFERRED STOCK"},null,null,{"$f":"'FR-16(7)(v)-1 Functional'!$F$792","v":0},{"$f":"IF(TotalCap=0,0,ROUND(F792/TotalCap,4))","v":0}]
[5,null,{"$f":"'FR-16(7)(v)-1 Functional'!C793","v":"COMMON STOCK"},null,null,{"$f":"[0]!Equity","v":699348680},{"$f":"1-G791-G792-G794-G795","v":0.48239999999999994}]
[6,null,{"$f":"'FR-16(7)(v)-1 Functional'!C794","v":"SHORT TERM DEBT"},null,null,{"$f":"'FR-16(7)(v)-1 Functional'!$F$794","v":84600060},{"$f":"IF(TotalCap=0,0,ROUND(F794/TotalCap,4))","v":5.8299999999999998E-2}]
[7,null,{"$f":"'FR-16(7)(v)-1 Functional'!C795","v":"UNAMORTIZED DISCOUNT"},null,null,{"$f":"'FR-16(7)(v)-1 Functional'!$F$795","v":0},{"$f":"IF(TotalCap=0,0,ROUND(F795/TotalCap,4))","v":0}]
[8,null,{"$f":"'FR-16(7)(v)-1 Functional'!C796","v":"  TOTAL"},null,null,{"$f":"SUM(F790:F795)","v":1449897246},{"$f":"SUM(G791:G795)","v":1}]
[9]
[10," COST OF CAPITAL"]
[11,null,{"$f":"'FR-16(7)(v)-1 Functional'!C799","v":"LONG TERM DEBT"},null,null,{"$f":"'FR-16(7)(v)-1 Functional'!$F$799","v":4.0730000000000002E-2}]
[12,null,{"$f":"'FR-16(7)(v)-1 Functional'!C800","v":"PREFERRED STOCK"},null,null,{"$f":"'FR-16(7)(v)-1 Functional'!$F$800","v":0}]
[13,null,{"$f":"'FR-16(7)(v)-1 Functional'!C801","v":"COMMON STOCK"},null,null,{"$f":"'FR-16(7)(v)-1 Functional'!$F$801","v":9.8000000000000004E-2}]
[14,null,{"$f":"'FR-16(7)(v)-1 Functional'!C802","v":"SHORT TERM DEBT"},null,null,{"$f":"'FR-16(7)(v)-1 Functional'!$F$802","v":1.9369999999999998E-2}]
[15,null,{"$f":"'FR-16(7)(v)-1 Functional'!C803","v":"UNAMORTIZED DISCOUNT"},null,null,{"$f":"'FR-16(7)(v)-1 Functional'!$F$803","v":0}]
[16]
[17," WEIGHTED COST OF CAPITAL"]
[18,null,{"$f":"'FR-16(7)(v)-1 Functional'!C806","v":"LONG TERM DEBT"},null,null,{"$f":"ROUND(G791*F799,4)","v":1.8700000000000001E-2}]
[19,null,{"$f":"'FR-16(7)(v)-1 Functional'!C807","v":"PREFERRED STOCK"},null,null,{"$f":"ROUND(G792*F800,4)","v":0}]
[20,null,{"$f":"'FR-16(7)(v)-1 Functional'!C808","v":"COMMON STOCK"},null,null,{"$f":"ROUND(G793*F801,4)","v":4.7300000000000002E-2}]
[21,null,{"$f":"'FR-16(7)(v)-1 Functional'!C809","v":"SHORT TERM DEBT"},null,null,{"$f":"ROUND(G794*F802,4)","v":1.1000000000000001E-3}]
[22,null,{"$f":"'FR-16(7)(v)-1 Functional'!C810","v":"UNAMORTIZED DISCOUNT"},null,null,{"$f":"ROUND(G795*F803,4)","v":0}]
[23,null,{"$f":"'FR-16(7)(v)-1 Functional'!C811","v":"  TOT RATE OF RETURN ALLOWABLE"},null,null,{"$f":"SUM(F806:F810)","v":6.7100000000000007E-2}]
[24]
[25,"TAX RATES AND SPECIAL FACTORS"]
[26,null,{"$f":"'FR-16(7)(v)-1 Functional'!C814","v":"SHORT TERM DEBT COST"},null,null,0,{"$f":"F814","v":0},{"$f":"F814","v":0},{"$f":"F814","v":0},{"$f":"F814","v":0},{"$f":"F814","v":0}]
[27,null,{"$f":"'FR-16(7)(v)-1 Functional'!C815","v":"FEDERAL INCOME TAX RATE"},null,null,0.35,{"$f":"FIT","v":0.21},{"$f":"FIT","v":0.21},{"$f":"FIT","v":0.21},{"$f":"FIT","v":0.21},{"$f":"FIT","v":0.21}]
[28,null,{"$f":"'FR-16(7)(v)-1 Functional'!C816","v":"STATE INCOME TAX RATE"},null,null,{"$f":"SIT","v":4.9685000000000007E-2},4.9685000000000007E-2,4.9685000000000007E-2,4.9685000000000007E-2,4.9685000000000007E-2,4.9685000000000007E-2]
[29,null,{"$f":"'FR-16(7)(v)-1 Functional'!C817","v":"REVENUE TAX RATE"},null,null,0,{"$f":"RevTax","v":0},{"$f":"RevTax","v":0},{"$f":"RevTax","v":0},{"$f":"RevTax","v":0},{"$f":"RevTax","v":0}]
[]
[]
[]
[]
[]
[]
[]
[]
[]
[]
[]
[]
[]
[]
[]
[]
[]
[]
[]
[]
[]
[]
[]
[]
[]
[]
[]
[]
[]
[]
[]
[]
[]
[]
[]
[]
[]
[]
[]
[]
[]
[]
[]
[]
[]
[]
[]
[]
[]
[]
[]
[]
[]
[]
[]
[]
[]
[]
[]
[]
[]
[]
[]
[]
[]
[]
[]
[]
[]
[]
[]
[]
[]
[]
[]
[]
[]
[]
[]
[]
[]
[]
[]
[]
[]
[]
[]
[]
[]
[]
[]
[]
[]
[]
[]
[]
[]
[]
[]
[]
[]
[]
[]
[]
[]
[]
[]
[]
[]
[]
[]
[]
[]
[]
[]
[]
[]
[]
[]
[]
[]
[]
[]
[]
[]
[]
[]
[]
[]
[]
[]
[]
[]
[]
[]
[]
[]
[]
[]
[]
[]
[]
[]
[]
[]
[]
[]
[]
[]
[]
[]
[]
[]
[]
[]
[]
[]
[]
[]
[]
[]
[]
[]
[]
[]
[]
["DO NOT FILE THIS PAGE"]
[]
[{"$f":"co_name","v":"DUKE ENERGY KENTUCKY, INC."},null,null,null,null,null,null,null,null,{"$f":"J1","v":"FR-16(7)(v)-23"}]
[{"$f":"$A$2","v":"TT CLASSIFIED - ELECTRIC COST OF SERVICE"},null,null,null,null,null,null,null,null,{"$f":"J2","v":"WITNESS RESPONSIBLE:"}]
[{"$f":"case_name","v":"CASE NO: 2019-00271"},null,null,null,null,null,null,null,null,{"$f":"Witness","v":"JAMES E. ZIOLKOWSKI"}]
[{"$f":"data_filing","v":"DATA: 12 MONTHS ACTUAL  & 0 MONTHS ESTIMATED"},null,null,null,null,null,null,null,null,{"$f":"\"PAGE \"&Pages2&\" OF \"&Pages2","v":"PAGE 15 OF 15"}]
[{"$f":"type","v":"TYPE OF FILING: \"X\" ORIGINAL   UPDATED    REVISED  "}]
[]
[]
["LINE",null,null,null,null,"TOTAL","CLASSIFIED",null,null,"TOTAL","ALL"]
["NO.","INCOME TAX BASED ON REVENUES",null,"ALLO",null,{"$f":"$F$9","v":"TT"},"DEMAND","COMMODITY","CUSTOMER","AT ISSUE","OTHER"]
[null,null,"Schedule 13",null,null,null,{"$f":"G10","v":3},{"$f":"H10","v":4},{"$f":"I10","v":5}]
[1,"NET INCOME COMPUTATION"]
[2,null,{"$f":"'FR-16(7)(v)-1 Functional'!C1008","v":"TOTAL ELECTRIC COST OF SERVICE"},null,null,{"$f":"F770","v":13985845},4782920,9201165,1761,13985846,1]
[3,null,{"$f":"'FR-16(7)(v)-1 Functional'!C1009","v":"TOTAL OTHER OPERATING REVENUES"},null,null,{"$f":"F750","v":7206},7165,0,41,7206,0]
[4,null,{"$f":"'FR-16(7)(v)-1 Functional'!C1010","v":"  TOTAL ELECTRIC REVENUE"},null,null,{"$f":"SUM(F996:F998)","v":13993051},4790085,9201165,1802,13993052,1]
[5,null,{"$f":"'FR-16(7)(v)-1 Functional'!C1011","v":"TOTAL OP EXP EX INC & REV TAX"},null,null,{"$f":"-F618","v":-11792222},-3430503,-8360701,-1018,-11792222,0]
[6,null,{"$f":"'FR-16(7)(v)-1 Functional'!C1012","v":"FIRM SERVICE REVENUE TAX"},null,null,{"$f":"-ROUND(F817*F997,0)","v":0},{"$f":"-ROUND(G817*G997,0)","v":0},{"$f":"-ROUND(H817*H997,0)","v":0},{"$f":"-ROUND(I817*I997,0)","v":0},{"$f":"SUM(G1001:I1001)","v":0},{"$f":"-ROUND('FR-16(7)(v)-1 Functional'!K817*K997,0)","v":0}]
[7,null,{"$f":"'FR-16(7)(v)-1 Functional'!C1013","v":"  NET INCOME"},null,null,{"$f":"SUM(F999:F1001)","v":2200829},{"$f":"SUM(G999:G1001)","v":1359582},{"$f":"SUM(H999:H1001)","v":840464},{"$f":"SUM(I999:I1001)","v":784},{"$f":"SUM(G1002:I1002)","v":2200830},{"$f":"SUM(K999:K1001)","v":1}]
[8]
[9,"ADJUSTMENTS TO NET INCOME"]
[10,null,{"$f":"'FR-16(7)(v)-1 Functional'!C1016","v":"TOTAL INTEREST EXPENSE"},null,null,{"$f":"-F633","v":-508547},-471656,-36670,-221,-508547,0]
[11,null,{"$f":"'FR-16(7)(v)-1 Functional'!C1017","v":"TOTAL OTHER DEDUCTIONS"},null,null,{"$f":"-F639","v":-2255454},-2132281,-122767,-406,-2255454,0]
[12,null,{"$f":"'FR-16(7)(v)-1 Functional'!C1018","v":"  PRELIMINARY TAXABLE INCOME"},null,null,{"$f":"SUM(F1004:F1006)+F1002","v":-563172},{"$f":"SUM(G1004:G1006)+G1002","v":-1244355},{"$f":"SUM(H1004:H1006)+H1002","v":681027},{"$f":"SUM(I1004:I1006)+I1002","v":157},{"$f":"SUM(G1007:I1007)","v":-563171},{"$f":"SUM(K1004:K1006)+K1002","v":1}]
[13]
[14,"INCOME TAX BASED ON REVENUES"]
[15,"FEDERAL INCOME TAX COMPUTATION"]
[16,null,{"$f":"'FR-16(7)(v)-1 Functional'!C1022","v":"PRELIMINARY TAXABLE INCOME"},null,null,{"$f":"F1007","v":-563172},-1244355,681027,157,-563171,1]
[17,null,{"$f":"'FR-16(7)(v)-1 Functional'!C1023","v":"  NET FEDERAL TAXABLE INCOME"},null,null,{"$f":"SUM(F1011:F1011)","v":-563172},-1244355,681027,157,-563171,1]
[18,null,{"$f":"'FR-16(7)(v)-1 Functional'!C1024","v":"  FEDERAL INCOME TAX RATE"},null,null,{"$f":"F815","v":0.35},{"$f":"G815","v":0.21},{"$f":"H815","v":0.21},{"$f":"I815","v":0.21},null,{"$f":"'FR-16(7)(v)-1 Functional'!K815","v":0.21}]
[19,null,{"$f":"'FR-16(7)(v)-1 Functional'!C1025","v":"PRELIMINARY FIT = FI01 * K190"},null,null,{"$f":"ROUND(F1013*F1012,0)","v":-197110},{"$f":"ROUND(G1013*G1012,0)","v":-261315},{"$f":"ROUND(H1013*H1012,0)","v":143016},{"$f":"ROUND(I1013*I1012,0)","v":33},{"$f":"SUM(G1014:I1014)","v":-118266},{"$f":"ROUND(K1013*K1012,0)","v":0}]
[20,null,{"$f":"'FR-16(7)(v)-1 Functional'!C1026","v":"TOTAL FED DEF IT (410 & 411)"},null,null,{"$f":"F649","v":545249},68470,476749,30,545249,0]
[21,null,{"$f":"'FR-16(7)(v)-1 Functional'!C1027","v":"TOTAL AMORTIZED ITC"},null,null,{"$f":"-F653","v":-11},-11,0,0,-11,0]
[22,null,{"$f":"'FR-16(7)(v)-1 Functional'!C1028","v":"  NET FED INC TAX ALLOWABLE"},null,null,{"$f":"SUM(F1014:F1016)","v":348128},-192856,619765,63,426972,0]
[23]
[24,"FEDERAL INCOME TAX PAYABLE"]
[25,null,{"$f":"'FR-16(7)(v)-1 Functional'!C1031","v":"PRELIM FIT"},null,null,{"$f":"F1014","v":-197110},-261315,143016,33,-118266,0]
[26,null,{"$f":"'FR-16(7)(v)-1 Functional'!C1032","v":"TEST YEAR INV TAX CREDIT"},null,null,{"$f":"-F658","v":0},0,0,0,0,0]
[27,null,{"$f":"'FR-16(7)(v)-1 Functional'!C1033","v":"  FED INC TAX PAYABLE"},null,null,{"$f":"SUM(F1019:F1021)","v":-197110},-261315,143016,33,-118266,0]
[28]
[29,"PRELIMINARY SUMMARY"]
[30,null,{"$f":"'FR-16(7)(v)-1 Functional'!C1036","v":"NET INCOME"},null,null,{"$f":"F1002","v":2200829},1359582,840464,784,2200830,1]
[31,null,{"$f":"'FR-16(7)(v)-1 Functional'!C1037","v":"NET FED INC TAX ALLOWABLE"},null,null,{"$f":"-F1017","v":-348128},192856,-619765,-63,-426972,0]
[32,null,{"$f":"'FR-16(7)(v)-1 Functional'!C1038","v":"  OVERALL RETURN EARNED"},null,null,{"$f":"SUM(F1024:F1026)","v":1852701},1552438,220699,721,1773858,1]
[33]
[34,null,{"$f":"'FR-16(7)(v)-1 Functional'!C1040","v":"  RATE OF RETURN EARNED"},null,null,{"$f":"IF(F426=0,0,ROUND(F1027/F426,5))","v":7.2279999999999997E-2},6.5299999999999997E-2,0.11941,6.4240000000000005E-2,6.9199999999999998E-2,0]

{"sheet":"FR-16(7)(v)-24 LT Classified","index":28,"n_rows":1029,"n_cols":14,"rows_kept":1029,"cut":false,"hidden":false,"merged":[]}
[{"$f":"co_name","v":"DUKE ENERGY KENTUCKY, INC."},null,null,null,null,null,null,null,null,"FR-16(7)(v)-24"]
[{"$f":"F9&\" \"&\"CLASSIFIED - ELECTRIC COST OF SERVICE\"","v":"LIGHTING CLASSIFIED - ELECTRIC COST OF SERVICE"},null,null,null,null,null,null,null,null,"WITNESS RESPONSIBLE:"]
[{"$f":"case_name","v":"CASE NO: 2019-00271"},null,null,null,null,null,null,null,null,{"$f":"Witness","v":"JAMES E. ZIOLKOWSKI"}]
[{"$f":"data_filing","v":"DATA: 12 MONTHS ACTUAL  & 0 MONTHS ESTIMATED"},null,null,null,null,null,null,null,null,{"$f":"\"PAGE \"&Pages2-14&\" OF \"&Pages2","v":"PAGE 1 OF 15"}]
[{"$f":"type","v":"TYPE OF FILING: \"X\" ORIGINAL   UPDATED    REVISED  "}]
[]
[]
["LINE",null,null,null,null,"TOTAL","CLASSIFIED",null,null,"TOTAL","ALL"]
["NO.","SUMMARY OF RESULTS",null,"ALLO",null,"LIGHTING","DEMAND","ENERGY","CUSTOMER","AT ISSUE","OTHER"]
[null,null,"Schedule 1",null,null,null,3,4,5]
[1,"NET INCOME COMPUTATION"]
[2,null,{"$f":"'FR-16(7)(v)-1 Functional'!C12","v":"GROSS ELECTRIC PLANT IN SERVICE"},null,null,{"$f":"F123","v":11570718},{"$f":"G123","v":4310894},{"$f":"H123","v":133260},{"$f":"I123","v":7126564},{"$f":"SUM(G12:I12)","v":11570718},{"$f":"F12-J12","v":0}]
[3,null,{"$f":"'FR-16(7)(v)-1 Functional'!C13","v":"TOTAL DEPRECIATION RESERVE"},null,null,{"$f":"-F200","v":-5694343},{"$f":"-G200","v":-1377014},{"$f":"-H200","v":-64993},{"$f":"-I200","v":-4252336},{"$f":"SUM(G13:I13)","v":-5694343},{"$f":"F13-J13","v":0}]
[4,null,{"$f":"'FR-16(7)(v)-1 Functional'!C14","v":"TOTAL RATE BASE ADJUSTMENTS"},null,null,{"$f":"F421","v":-1160255},{"$f":"G421","v":-630202},{"$f":"H421","v":69961},{"$f":"I421","v":-600014},{"$f":"SUM(G14:I14)","v":-1160255},{"$f":"F14-J14","v":0}]
[5,null,{"$f":"'FR-16(7)(v)-1 Functional'!C15","v":"  TOTAL RATE BASE"},null,null,{"$f":"SUM(F12:F14)","v":4716120},2303678,138228,2274214,4716120,0]
[6]
[7,"OPERATING EXPENSES"]
[8,null,{"$f":"'FR-16(7)(v)-1 Functional'!C18","v":"TOTAL O&M EXPENSE"},null,null,{"$f":"F549","v":1433909},{"$f":"G549","v":127731},{"$f":"H549","v":646578},{"$f":"I549","v":659600},{"$f":"SUM(G18:I18)","v":1433909},{"$f":"F18-J18","v":0}]
[9,null,{"$f":"'FR-16(7)(v)-1 Functional'!C19","v":"TOTAL DEPRECIATION EXPENSE"},null,null,{"$f":"F582","v":218310},{"$f":"G582","v":117382},{"$f":"H582","v":8139},{"$f":"I582","v":92789},{"$f":"SUM(G19:I19)","v":218310},{"$f":"F19-J19","v":0}]
[10,null,{"$f":"'FR-16(7)(v)-1 Functional'!C20","v":"TOTAL OTHER TAX & MISC EXPENSE"},null,null,{"$f":"F612","v":76794},{"$f":"G612","v":35801},{"$f":"H612","v":2258},{"$f":"I612","v":38735},{"$f":"SUM(G20:I20)","v":76794},{"$f":"F20-J20","v":0}]
[11,null,{"$f":"'FR-16(7)(v)-1 Functional'!C21","v":"  TOTAL OP EXP EXCLUDING INC & REV TAX"},null,null,{"$f":"SUM(F17:F20)","v":1729013},280914,656975,791124,1729013,0]
[12,null,{"$f":"'FR-16(7)(v)-1 Functional'!C22","v":"NET FED INCOME TAX EXP ALLOWABLE"},null,null,{"$f":"F676","v":79367},{"$f":"G676","v":-1400},{"$f":"H676","v":48151},{"$f":"I676","v":32616},{"$f":"SUM(G22:I22)","v":79367},{"$f":"F22-J22","v":0}]
[13,null,"NET STATE INCOME TAX EXP ALLOWABLE",null,null,{"$f":"F722","v":32070},{"$f":"G722","v":569},{"$f":"H722","v":8151},{"$f":"I722","v":23351},{"$f":"SUM(G23:I23)","v":32071},{"$f":"F23-J23","v":-1}]
[14,null,"RESERVED",{"$f":"'FR-16(7)(v)-1 Functional'!D24","v":"CW29"},null,{"$f":"'FR-16(7)(v)-14 TOTAL CLASS'!P24","v":0},{"$f":"'FR-16(7)(v)-3 PROD Demand'!P24+'FR-16(7)(v)-7 TRANS Demand'!P24+'FR-16(7)(v)-11 DIST Demand'!P24","v":0},{"$f":"'FR-16(7)(v)-4 PROD Energy'!P24+'FR-16(7)(v)-8 TRANS Energy'!P24+'FR-16(7)(v)-12 DIST Energy'!P24","v":0},{"$f":"'FR-16(7)(v)-5 PROD Cust'!P24+'FR-16(7)(v)-9 TRANS Cust'!P24+'FR-16(7)(v)-13 DIST Cust'!P24","v":0},{"$f":"SUM(G24:I24)","v":0},{"$f":"F24-J24","v":0}]
[15,null,{"$f":"'FR-16(7)(v)-1 Functional'!C25","v":"REVENUE TAX"},null,null,{"$f":"F767","v":0},{"$f":"G767","v":0},{"$f":"H767","v":0},{"$f":"I767","v":0},{"$f":"SUM(G25:I25)","v":0},{"$f":"F25-J25","v":0}]
[16,null,{"$f":"'FR-16(7)(v)-1 Functional'!C26","v":"  TOTAL OPERATING EXPENSE"},null,null,{"$f":"SUM(F21:F25)","v":1840450},280083,713277,847091,1840451,-1]
[17]
[18,"RETURN ON RATE BASE",null,null,null,{"$f":"F433","v":314977},{"$f":"G433","v":154942},{"$f":"H433","v":9281},{"$f":"I433","v":150754},{"$f":"SUM(G28:I28)","v":314977},{"$f":"F28-J28","v":0}]
[19,"TOTAL OTHER OPERATING REVENUES",null,null,null,{"$f":"-F750","v":-17517},{"$f":"-G750","v":-7483},{"$f":"-H750","v":0},{"$f":"-I750","v":-10034},{"$f":"SUM(G29:I29)","v":-17517},{"$f":"F29-J29","v":0}]
[20,null,{"$f":"'FR-16(7)(v)-1 Functional'!C30","v":"TOTAL ELECTRIC COST OF SERVICE"},null,null,{"$f":"SUM(F26:F29)","v":2137910},{"$f":"SUM(G26:G29)","v":427542},{"$f":"SUM(H26:H29)","v":722558},{"$f":"SUM(I26:I29)","v":987811},{"$f":"SUM(J26:J29)","v":2137911},{"$f":"F30-J30","v":-1}]
[21,"ADJUSTMENT FOR INTERCLASS SUBSIDIZATION",null,{"$f":"1-'WP FR-16(7)(v) Rate Incr'!I11","v":0.95},null,{"$f":"SUM(G31:I31)","v":-39229},{"$f":"'WP FR-16(7)(v) Rate Incr'!T24","v":-28809},{"$f":"'WP FR-16(7)(v) Rate Incr'!U15","v":0},{"$f":"'WP FR-16(7)(v) Rate Incr'!V24","v":-10420},null,{"$f":"F31-J31","v":-39229}]
[22,{"$f":"'FR-16(7)(v)-1 Functional'!$B$32","v":"REQUESTED REVENUES (COST OF SERVICE ADJUSTED FOR SUBSIDIES)"},null,null,null,{"$f":"F30+F31","v":2098681},398733,722558,977391,2137911,-39230]
[23,"PROPOSED REVENUES",null,null,null,{"$f":"'FR-16(7)(v)-14 TOTAL CLASS'!P33","v":2104877},{"$f":"'FR-16(7)(v)-3 PROD Demand'!P33+'FR-16(7)(v)-7 TRANS Demand'!P33+'FR-16(7)(v)-11 DIST Demand'!P33","v":320619},{"$f":"'FR-16(7)(v)-4 PROD Energy'!P33+'FR-16(7)(v)-8 TRANS Energy'!P33+'FR-16(7)(v)-12 DIST Energy'!P33","v":533963},{"$f":"'FR-16(7)(v)-5 PROD Cust'!P33+'FR-16(7)(v)-9 TRANS Cust'!P33+'FR-16(7)(v)-13 DIST Cust'!P33","v":2111392},{"$f":"SUM(G33:I33)","v":2965974},{"$f":"F33-J33","v":-861097}]
[24,"DIFFERENCE (REQUESTED LESS PROPOSED)",null,null,null,{"$f":"F32-F33","v":-6196},78114,188595,-1134001,-828063,821867]
[25]
[26,"TOTAL RETURN EARNED",null,null,null,{"$f":"F777+F28","v":936645},{"$f":"G777+G28","v":74670},{"$f":"H777+H28","v":-132306},{"$f":"I777+I28","v":994281},{"$f":"J777+J28","v":936645},{"$f":"F36-J36","v":0}]
[27,"RATE OF RETURN EARNED",null,null,null,{"$f":"IF(F431=0,0,ROUND(F36/F431,5))","v":0.19955999999999999},3.2340000000000001E-2,-0.95674000000000003,0.44262000000000001,0.19955999999999999,0]
[28,"TOTAL RATE OF RETURN ALLOWABLE",null,null,null,{"$f":"$F$811","v":6.7100000000000007E-2},{"$f":"F811","v":6.7100000000000007E-2},{"$f":"F811","v":6.7100000000000007E-2},{"$f":"F811","v":6.7100000000000007E-2},{"$f":"F811","v":6.7100000000000007E-2},{"$f":"IF(K37=0,0,F811)","v":0},null,null,"Not Part of print range"]
[29,"RETURN EARNED ON COMMON EQUITY",null,null,null,{"$f":"IF(Equity=0,0,(F37-$F$806-$F$807-$F$809)*TotalCap/Equity)","v":0.37268037589055003},{"$f":"IF(Equity=0,0,(G37-$F$806-$F$807-$F$809)*TotalCap/Equity)","v":2.5998063605181893E-2},{"$f":"IF(Equity=0,0,(H37-F806-F807-F809)*TotalCap/Equity)","v":-2.024573288118368},{"$f":"IF(Equity=0,0,(I37-F806-F807-F809)*TotalCap/Equity)","v":0.8765949962952958},{"$f":"IF(Equity=0,0,(J37-F806-F807-F809)*TotalCap/Equity)","v":0.37268037589055003},{"$f":"IF(OR(E793=0,K37=0)=TRUE,0,(K37-E806-E807-E809)*E796/E793)","v":0},null,null,"Not Filed"]
[30,"ALLOWED RETURN ON COMMON EQUITY",null,null,null,{"$f":"IF(Equity=0,0,(F38-$F$806-$F$807-$F$809)*TotalCap/Equity)","v":9.8062871493229981E-2},{"$f":"IF(Equity=0,0,(G38-F806-F807-F809)*TotalCap/Equity)","v":9.8062871493229981E-2},{"$f":"IF(Equity=0,0,(H38-F806-F807-F809)*TotalCap/Equity)","v":9.8062871493229981E-2},{"$f":"IF(Equity=0,0,(I38-F806-F807-F809)*TotalCap/Equity)","v":9.8062871493229981E-2},{"$f":"IF(Equity=0,0,(J38-F806-F807-F809)*TotalCap/Equity)","v":9.8062871493229981E-2},{"$f":"IF(OR(Equity=0,K38=0)=TRUE,0,(K38-F806-F807-F809)*TotalCap/Equity)","v":0}]
[31,null,null,null,null," "]
[32,"PRESENT REVENUES",null,null,null,{"$f":"'FR-16(7)(v)-14 TOTAL CLASS'!P42","v":1876470},{"$f":"F42-SUM(H42:I42)","v":380600},{"$f":"'FR-16(7)(v)-4 PROD Energy'!P42","v":631941},{"$f":"'FR-16(7)(v)-13 DIST Cust'!P42","v":863929},{"$f":"SUM(G42:I42)","v":1876470},{"$f":"F42-J42","v":0}]
[33,"REVENUE INCREASE JUSTIFIED",null,null,null,{"$f":"F30-F42","v":261440},46942,90617,123882,261441,-1]
[34,null,"PER UNIT PRES REV",null,null,{"$f":"IF(F42=0,0,ROUND(F43/F42,5))","v":0.13933000000000001},0.12334000000000001,0.14338999999999999,0.14338999999999999,0.13933000000000001,0]
[35,"REVENUE INCREASE REQUESTED",null,null,null,{"$f":"F33-F42","v":228407},-59981,-97978,1247463,1089504,-861097]
[36,null,"PER UNIT PRES REV",null,null,{"$f":"IF(F42=0,0,ROUND(F45/F42,5))","v":0.12171999999999999},-0.15759999999999999,-0.15504000000000001,1.44394,0.58060999999999996,0]
[]
[{"$f":"co_name","v":"DUKE ENERGY KENTUCKY, INC."},null,null,null,null,null,null,null,null,{"$f":"J1","v":"FR-16(7)(v)-24"}]
[{"$f":"$A$2","v":"LIGHTING CLASSIFIED - ELECTRIC COST OF SERVICE"},null,null,null,null,null,null,null,null,{"$f":"J2","v":"WITNESS RESPONSIBLE:"}]
[{"$f":"case_name","v":"CASE NO: 2019-00271"},null,null,null,null,null,null,null,null,{"$f":"Witness","v":"JAMES E. ZIOLKOWSKI"}]
[{"$f":"data_filing","v":"DATA: 12 MONTHS ACTUAL  & 0 MONTHS ESTIMATED"},null,null,null,null,null,null,null,null,{"$f":"\"PAGE \"&Pages2-13&\" OF \"&Pages2","v":"PAGE 2 OF 15"}]
[{"$f":"type","v":"TYPE OF FILING: \"X\" ORIGINAL   UPDATED    REVISED  "}]
[]
[]
["LINE",null,null,null,null,"TOTAL","CLASSIFIED",null,null,"TOTAL","ALL"]
["NO.","GROSS ELECTRIC PLANT IN SERVICE",null,"ALLO",null,{"$f":"$F$9","v":"LIGHTING"},{"$f":"G9","v":"DEMAND"},"ENERGY","CUSTOMER","AT ISSUE","OTHER"]
[null,null,"Schedule 2",null,null,null,3,4,5,null," "]
[1,"PRODUCTION PLANT"]
[2,null,"PRODUCTION STEAM",{"$f":"'FR-16(7)(v)-1 Functional'!D59","v":"K201"},null,{"$f":"'FR-16(7)(v)-14 TOTAL CLASS'!P59","v":1035822},{"$f":"'FR-16(7)(v)-3 PROD Demand'!P59+'FR-16(7)(v)-7 TRANS Demand'!P59+'FR-16(7)(v)-11 DIST Demand'!P59","v":1035822},{"$f":"'FR-16(7)(v)-4 PROD Energy'!P59+'FR-16(7)(v)-8 TRANS Energy'!P59+'FR-16(7)(v)-12 DIST Energy'!P59","v":0},{"$f":"'FR-16(7)(v)-5 PROD Cust'!P59+'FR-16(7)(v)-9 TRANS Cust'!P59+'FR-16(7)(v)-13 DIST Cust'!P59","v":0},{"$f":"SUM(G59:I59)","v":1035822},{"$f":"F59-J59","v":0}]
[3,null,"PRODUCTION OTHER",{"$f":"'FR-16(7)(v)-1 Functional'!D60","v":"K201"},null,{"$f":"'FR-16(7)(v)-14 TOTAL CLASS'!P60","v":463080},{"$f":"'FR-16(7)(v)-3 PROD Demand'!P60+'FR-16(7)(v)-7 TRANS Demand'!P60+'FR-16(7)(v)-11 DIST Demand'!P60","v":463080},{"$f":"'FR-16(7)(v)-4 PROD Energy'!P60+'FR-16(7)(v)-8 TRANS Energy'!P60+'FR-16(7)(v)-12 DIST Energy'!P60","v":0},{"$f":"'FR-16(7)(v)-5 PROD Cust'!P60+'FR-16(7)(v)-9 TRANS Cust'!P60+'FR-16(7)(v)-13 DIST Cust'!P60","v":0},{"$f":"SUM(G60:I60)","v":463080},{"$f":"F60-J60","v":0}]
[4,null,{"$f":"'FR-16(7)(v)-1 Functional'!C61","v":"ADJUSTMENT"},{"$f":"'FR-16(7)(v)-1 Functional'!D61","v":"K201"},null,{"$f":"'FR-16(7)(v)-14 TOTAL CLASS'!P61","v":0},{"$f":"'FR-16(7)(v)-3 PROD Demand'!P61+'FR-16(7)(v)-7 TRANS Demand'!P61+'FR-16(7)(v)-11 DIST Demand'!P61","v":0},{"$f":"'FR-16(7)(v)-4 PROD Energy'!P61+'FR-16(7)(v)-8 TRANS Energy'!P61+'FR-16(7)(v)-12 DIST Energy'!P61","v":0},{"$f":"'FR-16(7)(v)-5 PROD Cust'!P61+'FR-16(7)(v)-9 TRANS Cust'!P61+'FR-16(7)(v)-13 DIST Cust'!P61","v":0},{"$f":"SUM(G61:I61)","v":0},{"$f":"F61-J61","v":0}]
[5,null,{"$f":"'FR-16(7)(v)-1 Functional'!C62","v":"  PRODUCTION PLANT IN SERVICE"},null,null,{"$f":"SUM(F59:F61)","v":1498902},1498902,0,0,1498902,0]
[6]
[7,"TRANSMISSION PLANT"]
[8,null,"MAIN STEP-UP TRANSFORMERS",{"$f":"'FR-16(7)(v)-1 Functional'!D65","v":"K202"},null,{"$f":"'FR-16(7)(v)-14 TOTAL CLASS'!P65","v":0},{"$f":"'FR-16(7)(v)-3 PROD Demand'!P65+'FR-16(7)(v)-7 TRANS Demand'!P65+'FR-16(7)(v)-11 DIST Demand'!P65","v":0},{"$f":"'FR-16(7)(v)-4 PROD Energy'!P65+'FR-16(7)(v)-8 TRANS Energy'!P65+'FR-16(7)(v)-12 DIST Energy'!P65","v":0},{"$f":"'FR-16(7)(v)-5 PROD Cust'!P65+'FR-16(7)(v)-9 TRANS Cust'!P65+'FR-16(7)(v)-13 DIST Cust'!P65","v":0},{"$f":"SUM(G65:I65)","v":0},{"$f":"F65-J65","v":0}]
[9,null,"OTHER TRANSMISSION",{"$f":"'FR-16(7)(v)-1 Functional'!D66","v":"K202"},null,{"$f":"'FR-16(7)(v)-14 TOTAL CLASS'!P66","v":89741},{"$f":"'FR-16(7)(v)-3 PROD Demand'!P66+'FR-16(7)(v)-7 TRANS Demand'!P66+'FR-16(7)(v)-11 DIST Demand'!P66","v":89741},{"$f":"'FR-16(7)(v)-4 PROD Energy'!P66+'FR-16(7)(v)-8 TRANS Energy'!P66+'FR-16(7)(v)-12 DIST Energy'!P66","v":0},{"$f":"'FR-16(7)(v)-5 PROD Cust'!P66+'FR-16(7)(v)-9 TRANS Cust'!P66+'FR-16(7)(v)-13 DIST Cust'!P66","v":0},{"$f":"SUM(G66:I66)","v":89741},{"$f":"F66-J66","v":0}]
[10,null,"ADJUSTMENT",{"$f":"'FR-16(7)(v)-1 Functional'!D67","v":"K202"},null,{"$f":"'FR-16(7)(v)-14 TOTAL CLASS'!P67","v":0},{"$f":"'FR-16(7)(v)-3 PROD Demand'!P67+'FR-16(7)(v)-7 TRANS Demand'!P67+'FR-16(7)(v)-11 DIST Demand'!P67","v":0},{"$f":"'FR-16(7)(v)-4 PROD Energy'!P67+'FR-16(7)(v)-8 TRANS Energy'!P67+'FR-16(7)(v)-12 DIST Energy'!P67","v":0},{"$f":"'FR-16(7)(v)-5 PROD Cust'!P67+'FR-16(7)(v)-9 TRANS Cust'!P67+'FR-16(7)(v)-13 DIST Cust'!P67","v":0},{"$f":"SUM(G67:I67)","v":0},{"$f":"F67-J67","v":0}]
[11,null,{"$f":"'FR-16(7)(v)-1 Functional'!C68","v":"  TRANSMISSION PLANT IN SERVICE"},null,null,{"$f":"SUM(F65:F67)","v":89741},89741,0,0,89741,0]
[12]
[13,"TOTAL PROD & TRANS PLANT",null,null,null,{"$f":"F68+F62","v":1588643},1588643,0,0,1588643,0]
[14]
[15,"DISTRIBUTION PLANT"]
[16,null,{"$f":"'FR-16(7)(v)-1 Functional'!C73","v":"SUBSTATIONS"},{"$f":"'FR-16(7)(v)-1 Functional'!D73","v":"K215"},null,{"$f":"'FR-16(7)(v)-14 TOTAL CLASS'!P73","v":571332},{"$f":"'FR-16(7)(v)-3 PROD Demand'!P73+'FR-16(7)(v)-7 TRANS Demand'!P73+'FR-16(7)(v)-11 DIST Demand'!P73","v":571332},{"$f":"'FR-16(7)(v)-4 PROD Energy'!P73+'FR-16(7)(v)-8 TRANS Energy'!P73+'FR-16(7)(v)-12 DIST Energy'!P73","v":0},{"$f":"'FR-16(7)(v)-5 PROD Cust'!P73+'FR-16(7)(v)-9 TRANS Cust'!P73+'FR-16(7)(v)-13 DIST Cust'!P73","v":0},{"$f":"SUM(G73:I73)","v":571332},{"$f":"F73-J73","v":0}]
[17,null,{"$f":"'FR-16(7)(v)-1 Functional'!C74","v":"POLES, TOWERS  & FIXTURES - PRIMARY - DEMAND"},{"$f":"'FR-16(7)(v)-1 Functional'!D74","v":"K205"},null,{"$f":"'FR-16(7)(v)-14 TOTAL CLASS'!P74","v":207303},{"$f":"'FR-16(7)(v)-3 PROD Demand'!P74+'FR-16(7)(v)-7 TRANS Demand'!P74+'FR-16(7)(v)-11 DIST Demand'!P74","v":207303},{"$f":"'FR-16(7)(v)-4 PROD Energy'!P74+'FR-16(7)(v)-8 TRANS Energy'!P74+'FR-16(7)(v)-12 DIST Energy'!P74","v":0},{"$f":"'FR-16(7)(v)-5 PROD Cust'!P74+'FR-16(7)(v)-9 TRANS Cust'!P74+'FR-16(7)(v)-13 DIST Cust'!P74","v":0},{"$f":"SUM(G74:I74)","v":207303},{"$f":"F74-J74","v":0}]
[18,null,{"$f":"'FR-16(7)(v)-1 Functional'!C75","v":"POLES, TOWERS  & FIXTURES - PRIMARY - CUSTOMER"},{"$f":"'FR-16(7)(v)-1 Functional'!D75","v":"K405"},null,{"$f":"'FR-16(7)(v)-14 TOTAL CLASS'!P75","v":49701},{"$f":"'FR-16(7)(v)-3 PROD Demand'!P75+'FR-16(7)(v)-7 TRANS Demand'!P75+'FR-16(7)(v)-11 DIST Demand'!P75","v":0},{"$f":"'FR-16(7)(v)-4 PROD Energy'!P75+'FR-16(7)(v)-8 TRANS Energy'!P75+'FR-16(7)(v)-12 DIST Energy'!P75","v":0},{"$f":"'FR-16(7)(v)-5 PROD Cust'!P75+'FR-16(7)(v)-9 TRANS Cust'!P75+'FR-16(7)(v)-13 DIST Cust'!P75","v":49701},{"$f":"SUM(G75:I75)","v":49701},{"$f":"F75-J75","v":0}]
[19,null,{"$f":"'FR-16(7)(v)-1 Functional'!C76","v":"POLES, TOWERS  & FIXTURES - SECONDARY - DEMAND"},{"$f":"'FR-16(7)(v)-1 Functional'!D76","v":"K206"},null,{"$f":"'FR-16(7)(v)-14 TOTAL CLASS'!P76","v":79279},{"$f":"'FR-16(7)(v)-3 PROD Demand'!P76+'FR-16(7)(v)-7 TRANS Demand'!P76+'FR-16(7)(v)-11 DIST Demand'!P76","v":79279},{"$f":"'FR-16(7)(v)-4 PROD Energy'!P76+'FR-16(7)(v)-8 TRANS Energy'!P76+'FR-16(7)(v)-12 DIST Energy'!P76","v":0},{"$f":"'FR-16(7)(v)-5 PROD Cust'!P76+'FR-16(7)(v)-9 TRANS Cust'!P76+'FR-16(7)(v)-13 DIST Cust'!P76","v":0},79279,0]
[20,null,{"$f":"'FR-16(7)(v)-1 Functional'!C77","v":"POLES, TOWERS  & FIXTURES - SECONDARY - CUSTOMER"},{"$f":"'FR-16(7)(v)-1 Functional'!D77","v":"K405"},null,{"$f":"'FR-16(7)(v)-14 TOTAL CLASS'!P77","v":11235},{"$f":"'FR-16(7)(v)-3 PROD Demand'!P77+'FR-16(7)(v)-7 TRANS Demand'!P77+'FR-16(7)(v)-11 DIST Demand'!P77","v":0},{"$f":"'FR-16(7)(v)-4 PROD Energy'!P77+'FR-16(7)(v)-8 TRANS Energy'!P77+'FR-16(7)(v)-12 DIST Energy'!P77","v":0},{"$f":"'FR-16(7)(v)-5 PROD Cust'!P77+'FR-16(7)(v)-9 TRANS Cust'!P77+'FR-16(7)(v)-13 DIST Cust'!P77","v":11235},11235,0]
[21,null,{"$f":"'FR-16(7)(v)-1 Functional'!C78","v":"CONDUCTORS - OVERHEAD / PRIMARY - DEMAND"},{"$f":"'FR-16(7)(v)-1 Functional'!D78","v":"K205"},null,{"$f":"'FR-16(7)(v)-14 TOTAL CLASS'!P78","v":472399},{"$f":"'FR-16(7)(v)-3 PROD Demand'!P78+'FR-16(7)(v)-7 TRANS Demand'!P78+'FR-16(7)(v)-11 DIST Demand'!P78","v":472399},{"$f":"'FR-16(7)(v)-4 PROD Energy'!P78+'FR-16(7)(v)-8 TRANS Energy'!P78+'FR-16(7)(v)-12 DIST Energy'!P78","v":0},{"$f":"'FR-16(7)(v)-5 PROD Cust'!P78+'FR-16(7)(v)-9 TRANS Cust'!P78+'FR-16(7)(v)-13 DIST Cust'!P78","v":0},472399,0]
[22,null,{"$f":"'FR-16(7)(v)-1 Functional'!C79","v":"CONDUCTORS - OVERHEAD / PRIMARY - CUSTOMER"},{"$f":"'FR-16(7)(v)-1 Functional'!D79","v":"K405"},null,{"$f":"'FR-16(7)(v)-14 TOTAL CLASS'!P79","v":54044},{"$f":"'FR-16(7)(v)-3 PROD Demand'!P79+'FR-16(7)(v)-7 TRANS Demand'!P79+'FR-16(7)(v)-11 DIST Demand'!P79","v":0},{"$f":"'FR-16(7)(v)-4 PROD Energy'!P79+'FR-16(7)(v)-8 TRANS Energy'!P79+'FR-16(7)(v)-12 DIST Energy'!P79","v":0},{"$f":"'FR-16(7)(v)-5 PROD Cust'!P79+'FR-16(7)(v)-9 TRANS Cust'!P79+'FR-16(7)(v)-13 DIST Cust'!P79","v":54044},54044,0]
[23,null,{"$f":"'FR-16(7)(v)-1 Functional'!C80","v":"CONDUCTORS - OVERHEAD / SECONDARY - DEMAND"},{"$f":"'FR-16(7)(v)-1 Functional'!D80","v":"K206"},null,{"$f":"'FR-16(7)(v)-14 TOTAL CLASS'!P80","v":192355},{"$f":"'FR-16(7)(v)-3 PROD Demand'!P80+'FR-16(7)(v)-7 TRANS Demand'!P80+'FR-16(7)(v)-11 DIST Demand'!P80","v":192355},{"$f":"'FR-16(7)(v)-4 PROD Energy'!P80+'FR-16(7)(v)-8 TRANS Energy'!P80+'FR-16(7)(v)-12 DIST Energy'!P80","v":0},{"$f":"'FR-16(7)(v)-5 PROD Cust'!P80+'FR-16(7)(v)-9 TRANS Cust'!P80+'FR-16(7)(v)-13 DIST Cust'!P80","v":0},192355,0]
[24,null,{"$f":"'FR-16(7)(v)-1 Functional'!C81","v":"CONDUCTORS - OVERHEAD / SECONDARY - CUSTOMER"},{"$f":"'FR-16(7)(v)-1 Functional'!D81","v":"K405"},null,{"$f":"'FR-16(7)(v)-14 TOTAL CLASS'!P81","v":22387},{"$f":"'FR-16(7)(v)-3 PROD Demand'!P81+'FR-16(7)(v)-7 TRANS Demand'!P81+'FR-16(7)(v)-11 DIST Demand'!P81","v":0},{"$f":"'FR-16(7)(v)-4 PROD Energy'!P81+'FR-16(7)(v)-8 TRANS Energy'!P81+'FR-16(7)(v)-12 DIST Energy'!P81","v":0},{"$f":"'FR-16(7)(v)-5 PROD Cust'!P81+'FR-16(7)(v)-9 TRANS Cust'!P81+'FR-16(7)(v)-13 DIST Cust'!P81","v":22387},22387,0]
[25,null,{"$f":"'FR-16(7)(v)-1 Functional'!C82","v":"CONDUCTORS - UNDERGROUND / PRIMARY - DEMAND"},{"$f":"'FR-16(7)(v)-1 Functional'!D82","v":"K205"},null,{"$f":"'FR-16(7)(v)-14 TOTAL CLASS'!P82","v":352567},{"$f":"'FR-16(7)(v)-3 PROD Demand'!P82+'FR-16(7)(v)-7 TRANS Demand'!P82+'FR-16(7)(v)-11 DIST Demand'!P82","v":352567},{"$f":"'FR-16(7)(v)-4 PROD Energy'!P82+'FR-16(7)(v)-8 TRANS Energy'!P82+'FR-16(7)(v)-12 DIST Energy'!P82","v":0},{"$f":"'FR-16(7)(v)-5 PROD Cust'!P82+'FR-16(7)(v)-9 TRANS Cust'!P82+'FR-16(7)(v)-13 DIST Cust'!P82","v":0},352567,0]
[26,null,{"$f":"'FR-16(7)(v)-1 Functional'!C83","v":"CONDUCTORS - UNDERGROUND / PRIMARY - CUSTOMER"},{"$f":"'FR-16(7)(v)-1 Functional'!D83","v":"K405"},null,{"$f":"'FR-16(7)(v)-14 TOTAL CLASS'!P83","v":57358},{"$f":"'FR-16(7)(v)-3 PROD Demand'!P83+'FR-16(7)(v)-7 TRANS Demand'!P83+'FR-16(7)(v)-11 DIST Demand'!P83","v":0},{"$f":"'FR-16(7)(v)-4 PROD Energy'!P83+'FR-16(7)(v)-8 TRANS Energy'!P83+'FR-16(7)(v)-12 DIST Energy'!P83","v":0},{"$f":"'FR-16(7)(v)-5 PROD Cust'!P83+'FR-16(7)(v)-9 TRANS Cust'!P83+'FR-16(7)(v)-13 DIST Cust'!P83","v":57358},57358,0]
[27,null,{"$f":"'FR-16(7)(v)-1 Functional'!C84","v":"CONDUCTORS - UNDERGROUND / SECONDARY - DEMAND"},{"$f":"'FR-16(7)(v)-1 Functional'!D84","v":"K206"},null,{"$f":"'FR-16(7)(v)-14 TOTAL CLASS'!P84","v":60400},{"$f":"'FR-16(7)(v)-3 PROD Demand'!P84+'FR-16(7)(v)-7 TRANS Demand'!P84+'FR-16(7)(v)-11 DIST Demand'!P84","v":60400},{"$f":"'FR-16(7)(v)-4 PROD Energy'!P84+'FR-16(7)(v)-8 TRANS Energy'!P84+'FR-16(7)(v)-12 DIST Energy'!P84","v":0},{"$f":"'FR-16(7)(v)-5 PROD Cust'!P84+'FR-16(7)(v)-9 TRANS Cust'!P84+'FR-16(7)(v)-13 DIST Cust'!P84","v":0},60400,0]
[28,null,{"$f":"'FR-16(7)(v)-1 Functional'!C85","v":"CONDUCTORS - UNDERGROUND / SECONDARY - CUSTOMER"},{"$f":"'FR-16(7)(v)-1 Functional'!D85","v":"K405"},null,{"$f":"'FR-16(7)(v)-14 TOTAL CLASS'!P85","v":17937},{"$f":"'FR-16(7)(v)-3 PROD Demand'!P85+'FR-16(7)(v)-7 TRANS Demand'!P85+'FR-16(7)(v)-11 DIST Demand'!P85","v":0},{"$f":"'FR-16(7)(v)-4 PROD Energy'!P85+'FR-16(7)(v)-8 TRANS Energy'!P85+'FR-16(7)(v)-12 DIST Energy'!P85","v":0},{"$f":"'FR-16(7)(v)-5 PROD Cust'!P85+'FR-16(7)(v)-9 TRANS Cust'!P85+'FR-16(7)(v)-13 DIST Cust'!P85","v":17937},17937,0]
[29,null,{"$f":"'FR-16(7)(v)-1 Functional'!C86","v":"TRANSFORMERS DEMAND RELATED"},{"$f":"'FR-16(7)(v)-1 Functional'!D86","v":"K215"},null,{"$f":"'FR-16(7)(v)-14 TOTAL CLASS'!P86","v":295889},{"$f":"'FR-16(7)(v)-3 PROD Demand'!P86+'FR-16(7)(v)-7 TRANS Demand'!P86+'FR-16(7)(v)-11 DIST Demand'!P86","v":295889},{"$f":"'FR-16(7)(v)-4 PROD Energy'!P86+'FR-16(7)(v)-8 TRANS Energy'!P86+'FR-16(7)(v)-12 DIST Energy'!P86","v":0},{"$f":"'FR-16(7)(v)-5 PROD Cust'!P86+'FR-16(7)(v)-9 TRANS Cust'!P86+'FR-16(7)(v)-13 DIST Cust'!P86","v":0},{"$f":"SUM(G86:I86)","v":295889},{"$f":"F86-J86","v":0}]
[30,null,{"$f":"'FR-16(7)(v)-1 Functional'!C87","v":"TRANSFORMERS CUSTOMER RELATED"},{"$f":"'FR-16(7)(v)-1 Functional'!D87","v":"K405"},null,{"$f":"'FR-16(7)(v)-14 TOTAL CLASS'!P87","v":50373},{"$f":"'FR-16(7)(v)-3 PROD Demand'!P87+'FR-16(7)(v)-7 TRANS Demand'!P87+'FR-16(7)(v)-11 DIST Demand'!P87","v":0},{"$f":"'FR-16(7)(v)-4 PROD Energy'!P87+'FR-16(7)(v)-8 TRANS Energy'!P87+'FR-16(7)(v)-12 DIST Energy'!P87","v":0},{"$f":"'FR-16(7)(v)-5 PROD Cust'!P87+'FR-16(7)(v)-9 TRANS Cust'!P87+'FR-16(7)(v)-13 DIST Cust'!P87","v":50373},50373,0]
[31,null,{"$f":"'FR-16(7)(v)-1 Functional'!C88","v":"SERVICES"},{"$f":"'FR-16(7)(v)-1 Functional'!D88","v":"K217"},null,{"$f":"'FR-16(7)(v)-14 TOTAL CLASS'!P88","v":68986},{"$f":"'FR-16(7)(v)-3 PROD Demand'!P88+'FR-16(7)(v)-7 TRANS Demand'!P88+'FR-16(7)(v)-11 DIST Demand'!P88","v":0},{"$f":"'FR-16(7)(v)-4 PROD Energy'!P88+'FR-16(7)(v)-8 TRANS Energy'!P88+'FR-16(7)(v)-12 DIST Energy'!P88","v":0},{"$f":"'FR-16(7)(v)-5 PROD Cust'!P88+'FR-16(7)(v)-9 TRANS Cust'!P88+'FR-16(7)(v)-13 DIST Cust'!P88","v":68986},68986,0]
[32,null,{"$f":"'FR-16(7)(v)-1 Functional'!C89","v":"METERS"},{"$f":"'FR-16(7)(v)-1 Functional'!D89","v":"K407"},null,{"$f":"'FR-16(7)(v)-14 TOTAL CLASS'!P89","v":0},{"$f":"'FR-16(7)(v)-3 PROD Demand'!P89+'FR-16(7)(v)-7 TRANS Demand'!P89+'FR-16(7)(v)-11 DIST Demand'!P89","v":0},{"$f":"'FR-16(7)(v)-4 PROD Energy'!P89+'FR-16(7)(v)-8 TRANS Energy'!P89+'FR-16(7)(v)-12 DIST Energy'!P89","v":0},{"$f":"'FR-16(7)(v)-5 PROD Cust'!P89+'FR-16(7)(v)-9 TRANS Cust'!P89+'FR-16(7)(v)-13 DIST Cust'!P89","v":0},0,0]
[33,null,{"$f":"'FR-16(7)(v)-1 Functional'!C90","v":"STREET LIGHTS"},{"$f":"'FR-16(7)(v)-1 Functional'!D90","v":"K401"},null,{"$f":"'FR-16(7)(v)-14 TOTAL CLASS'!P90","v":5595857},{"$f":"'FR-16(7)(v)-3 PROD Demand'!P90+'FR-16(7)(v)-7 TRANS Demand'!P90+'FR-16(7)(v)-11 DIST Demand'!P90","v":0},{"$f":"'FR-16(7)(v)-4 PROD Energy'!P90+'FR-16(7)(v)-8 TRANS Energy'!P90+'FR-16(7)(v)-12 DIST Energy'!P90","v":0},{"$f":"'FR-16(7)(v)-5 PROD Cust'!P90+'FR-16(7)(v)-9 TRANS Cust'!P90+'FR-16(7)(v)-13 DIST Cust'!P90","v":5595857},5595857,0]
[34,null,{"$f":"'FR-16(7)(v)-1 Functional'!C91","v":"ADJUSTMENT  "},{"$f":"'FR-16(7)(v)-1 Functional'!D91","v":"K209"},null,{"$f":"'FR-16(7)(v)-14 TOTAL CLASS'!P91","v":0},{"$f":"'FR-16(7)(v)-3 PROD Demand'!P91+'FR-16(7)(v)-7 TRANS Demand'!P91+'FR-16(7)(v)-11 DIST Demand'!P91","v":0},{"$f":"'FR-16(7)(v)-4 PROD Energy'!P91+'FR-16(7)(v)-8 TRANS Energy'!P91+'FR-16(7)(v)-12 DIST Energy'!P91","v":0},{"$f":"'FR-16(7)(v)-5 PROD Cust'!P91+'FR-16(7)(v)-9 TRANS Cust'!P91+'FR-16(7)(v)-13 DIST Cust'!P91","v":0},0,0]
[35,null,{"$f":"'FR-16(7)(v)-1 Functional'!C92","v":"CONSTRUCTION NOT CLASSIFIED"},{"$f":"'FR-16(7)(v)-1 Functional'!D92","v":"K209"},null,{"$f":"'FR-16(7)(v)-14 TOTAL CLASS'!P92","v":1593989},{"$f":"'FR-16(7)(v)-3 PROD Demand'!P92+'FR-16(7)(v)-7 TRANS Demand'!P92+'FR-16(7)(v)-11 DIST Demand'!P92","v":435950},{"$f":"'FR-16(7)(v)-4 PROD Energy'!P92+'FR-16(7)(v)-8 TRANS Energy'!P92+'FR-16(7)(v)-12 DIST Energy'!P92","v":0},{"$f":"'FR-16(7)(v)-5 PROD Cust'!P92+'FR-16(7)(v)-9 TRANS Cust'!P92+'FR-16(7)(v)-13 DIST Cust'!P92","v":1158039},1593989,0]
[36,null,{"$f":"'FR-16(7)(v)-1 Functional'!C93","v":"RWIP"},{"$f":"'FR-16(7)(v)-1 Functional'!D93","v":"K215"},null,{"$f":"'FR-16(7)(v)-14 TOTAL CLASS'!P93","v":0},{"$f":"'FR-16(7)(v)-3 PROD Demand'!P93+'FR-16(7)(v)-7 TRANS Demand'!P93+'FR-16(7)(v)-11 DIST Demand'!P93","v":0},{"$f":"'FR-16(7)(v)-4 PROD Energy'!P93+'FR-16(7)(v)-8 TRANS Energy'!P93+'FR-16(7)(v)-12 DIST Energy'!P93","v":0},{"$f":"'FR-16(7)(v)-5 PROD Cust'!P93+'FR-16(7)(v)-9 TRANS Cust'!P93+'FR-16(7)(v)-13 DIST Cust'!P93","v":0},{"$f":"SUM(G93:I93)","v":0},{"$f":"F93-J93","v":0}]
[37,null,{"$f":"'FR-16(7)(v)-1 Functional'!C94","v":"  DISTRIBUTION PLANT IN SERVICE"},null,null,{"$f":"SUM(F73:F93)","v":9753391},{"$f":"SUM(G73:G92)","v":2667474},0,7085917,9753391,0]
[38]
[39,"TOTAL TRANS & DIST PLANT",null,null,null,{"$f":"F94+F68","v":9843132},2757215,0,7085917,9843132,0]
[40,"TOTAL GROSS PTD PLANT",null,null,null,{"$f":"F94+F70","v":11342034},4256117,0,7085917,11342034,0]
[41]
[42,"GENERAL & INTANGIBLE PLANT"]
[43,null,{"$f":"'FR-16(7)(v)-1 Functional'!C100","v":"PRODUCTION - DEMAND"},{"$f":"'FR-16(7)(v)-1 Functional'!D100","v":"K201"},null,{"$f":"'FR-16(7)(v)-14 TOTAL CLASS'!P100","v":20713},{"$f":"'FR-16(7)(v)-3 PROD Demand'!P100+'FR-16(7)(v)-7 TRANS Demand'!P100+'FR-16(7)(v)-11 DIST Demand'!P100","v":20713},{"$f":"'FR-16(7)(v)-4 PROD Energy'!P100+'FR-16(7)(v)-8 TRANS Energy'!P100+'FR-16(7)(v)-12 DIST Energy'!P100","v":0},{"$f":"'FR-16(7)(v)-5 PROD Cust'!P100+'FR-16(7)(v)-9 TRANS Cust'!P100+'FR-16(7)(v)-13 DIST Cust'!P100","v":0},{"$f":"SUM(G100:I100)","v":20713},{"$f":"F100-J100","v":0}]
[44,null,{"$f":"'FR-16(7)(v)-1 Functional'!C101","v":"PRODUCTION - ENERGY"},{"$f":"'FR-16(7)(v)-1 Functional'!D101","v":"K301"},null,{"$f":"'FR-16(7)(v)-14 TOTAL CLASS'!P101","v":85097},{"$f":"'FR-16(7)(v)-3 PROD Demand'!P101+'FR-16(7)(v)-7 TRANS Demand'!P101+'FR-16(7)(v)-11 DIST Demand'!P101","v":0},{"$f":"'FR-16(7)(v)-4 PROD Energy'!P101+'FR-16(7)(v)-8 TRANS Energy'!P101+'FR-16(7)(v)-12 DIST Energy'!P101","v":85097},{"$f":"'FR-16(7)(v)-5 PROD Cust'!P101+'FR-16(7)(v)-9 TRANS Cust'!P101+'FR-16(7)(v)-13 DIST Cust'!P101","v":0},{"$f":"SUM(G101:I101)","v":85097},{"$f":"F101-J101","v":0}]
[45,null,{"$f":"'FR-16(7)(v)-1 Functional'!C102","v":"TRANSMISSION"},{"$f":"'FR-16(7)(v)-1 Functional'!D102","v":"K202"},null,{"$f":"'FR-16(7)(v)-14 TOTAL CLASS'!P102","v":3273},{"$f":"'FR-16(7)(v)-3 PROD Demand'!P102+'FR-16(7)(v)-7 TRANS Demand'!P102+'FR-16(7)(v)-11 DIST Demand'!P102","v":3273},{"$f":"'FR-16(7)(v)-4 PROD Energy'!P102+'FR-16(7)(v)-8 TRANS Energy'!P102+'FR-16(7)(v)-12 DIST Energy'!P102","v":0},{"$f":"'FR-16(7)(v)-5 PROD Cust'!P102+'FR-16(7)(v)-9 TRANS Cust'!P102+'FR-16(7)(v)-13 DIST Cust'!P102","v":0},3273,0]
[46,null,{"$f":"'FR-16(7)(v)-1 Functional'!C103","v":"DISTRIBUTION - DEMAND"},{"$f":"'FR-16(7)(v)-1 Functional'!D103","v":"K201"},null,{"$f":"'FR-16(7)(v)-14 TOTAL CLASS'!P103","v":10993},{"$f":"'FR-16(7)(v)-3 PROD Demand'!P103+'FR-16(7)(v)-7 TRANS Demand'!P103+'FR-16(7)(v)-11 DIST Demand'!P103","v":10993},{"$f":"'FR-16(7)(v)-4 PROD Energy'!P103+'FR-16(7)(v)-8 TRANS Energy'!P103+'FR-16(7)(v)-12 DIST Energy'!P103","v":0},{"$f":"'FR-16(7)(v)-5 PROD Cust'!P103+'FR-16(7)(v)-9 TRANS Cust'!P103+'FR-16(7)(v)-13 DIST Cust'!P103","v":0},10993,0]
[47,null,{"$f":"'FR-16(7)(v)-1 Functional'!C104","v":"DISTRIBUTION - CUSTOMER"},{"$f":"'FR-16(7)(v)-1 Functional'!D104","v":"K405"},null,{"$f":"'FR-16(7)(v)-14 TOTAL CLASS'!P104","v":6403},{"$f":"'FR-16(7)(v)-3 PROD Demand'!P104+'FR-16(7)(v)-7 TRANS Demand'!P104+'FR-16(7)(v)-11 DIST Demand'!P104","v":0},{"$f":"'FR-16(7)(v)-4 PROD Energy'!P104+'FR-16(7)(v)-8 TRANS Energy'!P104+'FR-16(7)(v)-12 DIST Energy'!P104","v":0},{"$f":"'FR-16(7)(v)-5 PROD Cust'!P104+'FR-16(7)(v)-9 TRANS Cust'!P104+'FR-16(7)(v)-13 DIST Cust'!P104","v":6403},6403,0]
[48,null,{"$f":"'FR-16(7)(v)-1 Functional'!C105","v":"CUSTOMER ACCOUNTING"},{"$f":"'FR-16(7)(v)-1 Functional'!D105","v":"A308"},null,{"$f":"'FR-16(7)(v)-14 TOTAL CLASS'!P105","v":18129},{"$f":"'FR-16(7)(v)-3 PROD Demand'!P105+'FR-16(7)(v)-7 TRANS Demand'!P105+'FR-16(7)(v)-11 DIST Demand'!P105","v":0},{"$f":"'FR-16(7)(v)-4 PROD Energy'!P105+'FR-16(7)(v)-8 TRANS Energy'!P105+'FR-16(7)(v)-12 DIST Energy'!P105","v":0},{"$f":"'FR-16(7)(v)-5 PROD Cust'!P105+'FR-16(7)(v)-9 TRANS Cust'!P105+'FR-16(7)(v)-13 DIST Cust'!P105","v":18129},18129,0]
[49,null,{"$f":"'FR-16(7)(v)-1 Functional'!C106","v":"CUSTOMER SERVICE & INFORMATION"},{"$f":"'FR-16(7)(v)-1 Functional'!D106","v":"A310"},null,{"$f":"'FR-16(7)(v)-14 TOTAL CLASS'!P106","v":1424},{"$f":"'FR-16(7)(v)-3 PROD Demand'!P106+'FR-16(7)(v)-7 TRANS Demand'!P106+'FR-16(7)(v)-11 DIST Demand'!P106","v":0},{"$f":"'FR-16(7)(v)-4 PROD Energy'!P106+'FR-16(7)(v)-8 TRANS Energy'!P106+'FR-16(7)(v)-12 DIST Energy'!P106","v":0},{"$f":"'FR-16(7)(v)-5 PROD Cust'!P106+'FR-16(7)(v)-9 TRANS Cust'!P106+'FR-16(7)(v)-13 DIST Cust'!P106","v":1424},1424,0]
[50,null,{"$f":"'FR-16(7)(v)-1 Functional'!C107","v":"SALES"},{"$f":"'FR-16(7)(v)-1 Functional'!D107","v":"A312"},null,{"$f":"'FR-16(7)(v)-14 TOTAL CLASS'!P107","v":0},{"$f":"'FR-16(7)(v)-3 PROD Demand'!P107+'FR-16(7)(v)-7 TRANS Demand'!P107+'FR-16(7)(v)-11 DIST Demand'!P107","v":0},{"$f":"'FR-16(7)(v)-4 PROD Energy'!P107+'FR-16(7)(v)-8 TRANS Energy'!P107+'FR-16(7)(v)-12 DIST Energy'!P107","v":0},{"$f":"'FR-16(7)(v)-5 PROD Cust'!P107+'FR-16(7)(v)-9 TRANS Cust'!P107+'FR-16(7)(v)-13 DIST Cust'!P107","v":0},0,0]
[51,null,{"$f":"'FR-16(7)(v)-1 Functional'!C108","v":"ADJUSTMENT"},{"$f":"'FR-16(7)(v)-1 Functional'!D108","v":"A315"},null,{"$f":"'FR-16(7)(v)-14 TOTAL CLASS'!P108","v":0},{"$f":"'FR-16(7)(v)-3 PROD Demand'!P108+'FR-16(7)(v)-7 TRANS Demand'!P108+'FR-16(7)(v)-11 DIST Demand'!P108","v":0},{"$f":"'FR-16(7)(v)-4 PROD Energy'!P108+'FR-16(7)(v)-8 TRANS Energy'!P108+'FR-16(7)(v)-12 DIST Energy'!P108","v":0},{"$f":"'FR-16(7)(v)-5 PROD Cust'!P108+'FR-16(7)(v)-9 TRANS Cust'!P108+'FR-16(7)(v)-13 DIST Cust'!P108","v":0},0,0]
[52,null,{"$f":"'FR-16(7)(v)-1 Functional'!C109","v":"  GEN & INTANG PLANT IN SERVICE"},null,null,{"$f":"SUM(F100:F108)","v":146032},34979,85097,25956,146032,0]
[53]
[54,"COMMON & OTHER PLANT"]
[55,null,{"$f":"'FR-16(7)(v)-1 Functional'!C112","v":"PRODUCTION - DEMAND"},{"$f":"'FR-16(7)(v)-1 Functional'!D112","v":"K201"},null,{"$f":"'FR-16(7)(v)-14 TOTAL CLASS'!P112","v":11723},{"$f":"'FR-16(7)(v)-3 PROD Demand'!P112+'FR-16(7)(v)-7 TRANS Demand'!P112+'FR-16(7)(v)-11 DIST Demand'!P112","v":11723},{"$f":"'FR-16(7)(v)-4 PROD Energy'!P112+'FR-16(7)(v)-8 TRANS Energy'!P112+'FR-16(7)(v)-12 DIST Energy'!P112","v":0},{"$f":"'FR-16(7)(v)-5 PROD Cust'!P112+'FR-16(7)(v)-9 TRANS Cust'!P112+'FR-16(7)(v)-13 DIST Cust'!P112","v":0},{"$f":"SUM(G112:I112)","v":11723},{"$f":"F112-J112","v":0}]
[56,null,{"$f":"'FR-16(7)(v)-1 Functional'!C113","v":"PRODUCTION - ENERGY"},{"$f":"'FR-16(7)(v)-1 Functional'!D113","v":"K301"},null,{"$f":"'FR-16(7)(v)-14 TOTAL CLASS'!P113","v":48163},{"$f":"'FR-16(7)(v)-3 PROD Demand'!P113+'FR-16(7)(v)-7 TRANS Demand'!P113+'FR-16(7)(v)-11 DIST Demand'!P113","v":0},{"$f":"'FR-16(7)(v)-4 PROD Energy'!P113+'FR-16(7)(v)-8 TRANS Energy'!P113+'FR-16(7)(v)-12 DIST Energy'!P113","v":48163},{"$f":"'FR-16(7)(v)-5 PROD Cust'!P113+'FR-16(7)(v)-9 TRANS Cust'!P113+'FR-16(7)(v)-13 DIST Cust'!P113","v":0},{"$f":"SUM(G113:I113)","v":48163},{"$f":"F113-J113","v":0}]
[57,null,{"$f":"'FR-16(7)(v)-1 Functional'!C114","v":"TRANSMISSION"},{"$f":"'FR-16(7)(v)-1 Functional'!D114","v":"K202"},null,{"$f":"'FR-16(7)(v)-14 TOTAL CLASS'!P114","v":1853},{"$f":"'FR-16(7)(v)-3 PROD Demand'!P114+'FR-16(7)(v)-7 TRANS Demand'!P114+'FR-16(7)(v)-11 DIST Demand'!P114","v":1853},{"$f":"'FR-16(7)(v)-4 PROD Energy'!P114+'FR-16(7)(v)-8 TRANS Energy'!P114+'FR-16(7)(v)-12 DIST Energy'!P114","v":0},{"$f":"'FR-16(7)(v)-5 PROD Cust'!P114+'FR-16(7)(v)-9 TRANS Cust'!P114+'FR-16(7)(v)-13 DIST Cust'!P114","v":0},1853,0]
[58,null,{"$f":"'FR-16(7)(v)-1 Functional'!C115","v":"DISTRIBUTION - DEMAND"},{"$f":"'FR-16(7)(v)-1 Functional'!D115","v":"K201"},null,{"$f":"'FR-16(7)(v)-14 TOTAL CLASS'!P115","v":6222},{"$f":"'FR-16(7)(v)-3 PROD Demand'!P115+'FR-16(7)(v)-7 TRANS Demand'!P115+'FR-16(7)(v)-11 DIST Demand'!P115","v":6222},{"$f":"'FR-16(7)(v)-4 PROD Energy'!P115+'FR-16(7)(v)-8 TRANS Energy'!P115+'FR-16(7)(v)-12 DIST Energy'!P115","v":0},{"$f":"'FR-16(7)(v)-5 PROD Cust'!P115+'FR-16(7)(v)-9 TRANS Cust'!P115+'FR-16(7)(v)-13 DIST Cust'!P115","v":0},6222,0]
[59,null,{"$f":"'FR-16(7)(v)-1 Functional'!C116","v":"DISTRIBUTION - CUSTOMER"},{"$f":"'FR-16(7)(v)-1 Functional'!D116","v":"K405"},null,{"$f":"'FR-16(7)(v)-14 TOTAL CLASS'!P116","v":3624},{"$f":"'FR-16(7)(v)-3 PROD Demand'!P116+'FR-16(7)(v)-7 TRANS Demand'!P116+'FR-16(7)(v)-11 DIST Demand'!P116","v":0},{"$f":"'FR-16(7)(v)-4 PROD Energy'!P116+'FR-16(7)(v)-8 TRANS Energy'!P116+'FR-16(7)(v)-12 DIST Energy'!P116","v":0},{"$f":"'FR-16(7)(v)-5 PROD Cust'!P116+'FR-16(7)(v)-9 TRANS Cust'!P116+'FR-16(7)(v)-13 DIST Cust'!P116","v":3624},3624,0]
[60,null,{"$f":"'FR-16(7)(v)-1 Functional'!C117","v":"CUSTOMER ACCOUNTING"},{"$f":"'FR-16(7)(v)-1 Functional'!D117","v":"A308"},null,{"$f":"'FR-16(7)(v)-14 TOTAL CLASS'!P117","v":10261},{"$f":"'FR-16(7)(v)-3 PROD Demand'!P117+'FR-16(7)(v)-7 TRANS Demand'!P117+'FR-16(7)(v)-11 DIST Demand'!P117","v":0},{"$f":"'FR-16(7)(v)-4 PROD Energy'!P117+'FR-16(7)(v)-8 TRANS Energy'!P117+'FR-16(7)(v)-12 DIST Energy'!P117","v":0},{"$f":"'FR-16(7)(v)-5 PROD Cust'!P117+'FR-16(7)(v)-9 TRANS Cust'!P117+'FR-16(7)(v)-13 DIST Cust'!P117","v":10261},10261,0]
[61,null,{"$f":"'FR-16(7)(v)-1 Functional'!C118","v":"CUSTOMER SERVICE & INFORMATION"},{"$f":"'FR-16(7)(v)-1 Functional'!D118","v":"A310"},null,{"$f":"'FR-16(7)(v)-14 TOTAL CLASS'!P118","v":806},{"$f":"'FR-16(7)(v)-3 PROD Demand'!P118+'FR-16(7)(v)-7 TRANS Demand'!P118+'FR-16(7)(v)-11 DIST Demand'!P118","v":0},{"$f":"'FR-16(7)(v)-4 PROD Energy'!P118+'FR-16(7)(v)-8 TRANS Energy'!P118+'FR-16(7)(v)-12 DIST Energy'!P118","v":0},{"$f":"'FR-16(7)(v)-5 PROD Cust'!P118+'FR-16(7)(v)-9 TRANS Cust'!P118+'FR-16(7)(v)-13 DIST Cust'!P118","v":806},806,0]
[62,null,{"$f":"'FR-16(7)(v)-1 Functional'!C119","v":"SALES"},{"$f":"'FR-16(7)(v)-1 Functional'!D119","v":"A312"},null,{"$f":"'FR-16(7)(v)-14 TOTAL CLASS'!P119","v":0},{"$f":"'FR-16(7)(v)-3 PROD Demand'!P119+'FR-16(7)(v)-7 TRANS Demand'!P119+'FR-16(7)(v)-11 DIST Demand'!P119","v":0},{"$f":"'FR-16(7)(v)-4 PROD Energy'!P119+'FR-16(7)(v)-8 TRANS Energy'!P119+'FR-16(7)(v)-12 DIST Energy'!P119","v":0},{"$f":"'FR-16(7)(v)-5 PROD Cust'!P119+'FR-16(7)(v)-9 TRANS Cust'!P119+'FR-16(7)(v)-13 DIST Cust'!P119","v":0},0,0]
[63,null,{"$f":"'FR-16(7)(v)-1 Functional'!C120","v":"ADJUSTMENT"},{"$f":"'FR-16(7)(v)-1 Functional'!D120","v":"A315"},null,{"$f":"'FR-16(7)(v)-14 TOTAL CLASS'!P120","v":0},{"$f":"'FR-16(7)(v)-3 PROD Demand'!P120+'FR-16(7)(v)-7 TRANS Demand'!P120+'FR-16(7)(v)-11 DIST Demand'!P120","v":0},{"$f":"'FR-16(7)(v)-4 PROD Energy'!P120+'FR-16(7)(v)-8 TRANS Energy'!P120+'FR-16(7)(v)-12 DIST Energy'!P120","v":0},{"$f":"'FR-16(7)(v)-5 PROD Cust'!P120+'FR-16(7)(v)-9 TRANS Cust'!P120+'FR-16(7)(v)-13 DIST Cust'!P120","v":0},0,0]
[64,null,{"$f":"'FR-16(7)(v)-1 Functional'!C121","v":"  COMMON & OTHER PLANT IN SERVICE"},null,null,{"$f":"SUM(F112:F120)","v":82652},19798,48163,14691,82652,0]
[65]
[66,"GROSS ELECTRIC PLANT IN SERVICE",null,null,null,{"$f":"F97+F109+F121","v":11570718},4310894,133260,7126564,11570718,0]
[]
[{"$f":"co_name","v":"DUKE ENERGY KENTUCKY, INC."},null,null,null,null,null,null,null,null,{"$f":"J1","v":"FR-16(7)(v)-24"}]
[{"$f":"$A$2","v":"LIGHTING CLASSIFIED - ELECTRIC COST OF SERVICE"},null,null,null,null,null,null,null,null,{"$f":"J2","v":"WITNESS RESPONSIBLE:"}]
[{"$f":"case_name","v":"CASE NO: 2019-00271"},null,null,null,null,null,null,null,null,{"$f":"Witness","v":"JAMES E. ZIOLKOWSKI"}]
[{"$f":"data_filing","v":"DATA: 12 MONTHS ACTUAL  & 0 MONTHS ESTIMATED"},null,null,null,null,null,null,null,null,{"$f":"\"PAGE \"&Pages2-12&\" OF \"&Pages2","v":"PAGE 3 OF 15"}]
[{"$f":"type","v":"TYPE OF FILING: \"X\" ORIGINAL   UPDATED    REVISED  "}]
[]
[]
["LINE",null,null,null,null,"TOTAL","CLASSIFIED",null,null,"TOTAL","ALL"]
["NO.","DEPRECIATION RESERVE",null,"ALLO",null,{"$f":"$F$9","v":"LIGHTING"},{"$f":"G9","v":"DEMAND"},"ENERGY","CUSTOMER","AT ISSUE","OTHER"]
[null,null,"Schedule 3",null,null,null,3,4,5]
[1,"PRODUCTION PLANT"]
[2,null,{"$f":"'FR-16(7)(v)-1 Functional'!C136","v":"PRODUCTION STEAM"},{"$f":"'FR-16(7)(v)-1 Functional'!D136","v":"K201"},null,{"$f":"'FR-16(7)(v)-14 TOTAL CLASS'!P136","v":497439},{"$f":"'FR-16(7)(v)-3 PROD Demand'!P136+'FR-16(7)(v)-7 TRANS Demand'!P136+'FR-16(7)(v)-11 DIST Demand'!P136","v":497439},{"$f":"'FR-16(7)(v)-4 PROD Energy'!P136+'FR-16(7)(v)-8 TRANS Energy'!P136+'FR-16(7)(v)-12 DIST Energy'!P136","v":0},{"$f":"'FR-16(7)(v)-5 PROD Cust'!P136+'FR-16(7)(v)-9 TRANS Cust'!P136+'FR-16(7)(v)-13 DIST Cust'!P136","v":0},{"$f":"SUM(G136:I136)","v":497439},{"$f":"F136-J136","v":0}]
[3,null,{"$f":"'FR-16(7)(v)-1 Functional'!C137","v":"PRODUCTION OTHER"},{"$f":"'FR-16(7)(v)-1 Functional'!D137","v":"K201"},null,{"$f":"'FR-16(7)(v)-14 TOTAL CLASS'!P137","v":228435},{"$f":"'FR-16(7)(v)-3 PROD Demand'!P137+'FR-16(7)(v)-7 TRANS Demand'!P137+'FR-16(7)(v)-11 DIST Demand'!P137","v":228435},{"$f":"'FR-16(7)(v)-4 PROD Energy'!P137+'FR-16(7)(v)-8 TRANS Energy'!P137+'FR-16(7)(v)-12 DIST Energy'!P137","v":0},{"$f":"'FR-16(7)(v)-5 PROD Cust'!P137+'FR-16(7)(v)-9 TRANS Cust'!P137+'FR-16(7)(v)-13 DIST Cust'!P137","v":0},{"$f":"SUM(G137:I137)","v":228435},{"$f":"F137-J137","v":0}]
[4,null,{"$f":"'FR-16(7)(v)-1 Functional'!C138","v":"ADJUSTMENT"},{"$f":"'FR-16(7)(v)-1 Functional'!D138","v":"K201"},null,{"$f":"'FR-16(7)(v)-14 TOTAL CLASS'!P138","v":1926},{"$f":"'FR-16(7)(v)-3 PROD Demand'!P138+'FR-16(7)(v)-7 TRANS Demand'!P138+'FR-16(7)(v)-11 DIST Demand'!P138","v":1926},{"$f":"'FR-16(7)(v)-4 PROD Energy'!P138+'FR-16(7)(v)-8 TRANS Energy'!P138+'FR-16(7)(v)-12 DIST Energy'!P138","v":0},{"$f":"'FR-16(7)(v)-5 PROD Cust'!P138+'FR-16(7)(v)-9 TRANS Cust'!P138+'FR-16(7)(v)-13 DIST Cust'!P138","v":0},{"$f":"SUM(G138:I138)","v":1926},{"$f":"F138-J138","v":0}]
[5,null,{"$f":"'FR-16(7)(v)-1 Functional'!C139","v":"  TOTAL PROD DEPREC RESERVE"},null,null,{"$f":"SUM(F136:F138)","v":727800},727800,0,0,727800,0]
[6]
[7,"TRANSMISSION PLANT"]
[8,null,{"$f":"'FR-16(7)(v)-1 Functional'!C142","v":"MAIN STEP-UP TRANSFORMERS"},{"$f":"'FR-16(7)(v)-1 Functional'!D142","v":"K202"},null,{"$f":"'FR-16(7)(v)-14 TOTAL CLASS'!P142","v":0},{"$f":"'FR-16(7)(v)-3 PROD Demand'!P142+'FR-16(7)(v)-7 TRANS Demand'!P142+'FR-16(7)(v)-11 DIST Demand'!P142","v":0},{"$f":"'FR-16(7)(v)-4 PROD Energy'!P142+'FR-16(7)(v)-8 TRANS Energy'!P142+'FR-16(7)(v)-12 DIST Energy'!P142","v":0},{"$f":"'FR-16(7)(v)-5 PROD Cust'!P142+'FR-16(7)(v)-9 TRANS Cust'!P142+'FR-16(7)(v)-13 DIST Cust'!P142","v":0},{"$f":"SUM(G142:I142)","v":0},{"$f":"F142-J142","v":0}]
[9,null,{"$f":"'FR-16(7)(v)-1 Functional'!C143","v":"OTHER TRANSMISSION"},{"$f":"'FR-16(7)(v)-1 Functional'!D143","v":"K202"},null,{"$f":"'FR-16(7)(v)-14 TOTAL CLASS'!P143","v":24749},{"$f":"'FR-16(7)(v)-3 PROD Demand'!P143+'FR-16(7)(v)-7 TRANS Demand'!P143+'FR-16(7)(v)-11 DIST Demand'!P143","v":24749},{"$f":"'FR-16(7)(v)-4 PROD Energy'!P143+'FR-16(7)(v)-8 TRANS Energy'!P143+'FR-16(7)(v)-12 DIST Energy'!P143","v":0},{"$f":"'FR-16(7)(v)-5 PROD Cust'!P143+'FR-16(7)(v)-9 TRANS Cust'!P143+'FR-16(7)(v)-13 DIST Cust'!P143","v":0},{"$f":"SUM(G143:I143)","v":24749},{"$f":"F143-J143","v":0}]
[10,null,{"$f":"'FR-16(7)(v)-1 Functional'!C144","v":"ADJUSTMENT"},{"$f":"'FR-16(7)(v)-1 Functional'!D144","v":"K202"},null,{"$f":"'FR-16(7)(v)-14 TOTAL CLASS'!P144","v":-87},{"$f":"'FR-16(7)(v)-3 PROD Demand'!P144+'FR-16(7)(v)-7 TRANS Demand'!P144+'FR-16(7)(v)-11 DIST Demand'!P144","v":-87},{"$f":"'FR-16(7)(v)-4 PROD Energy'!P144+'FR-16(7)(v)-8 TRANS Energy'!P144+'FR-16(7)(v)-12 DIST Energy'!P144","v":0},{"$f":"'FR-16(7)(v)-5 PROD Cust'!P144+'FR-16(7)(v)-9 TRANS Cust'!P144+'FR-16(7)(v)-13 DIST Cust'!P144","v":0},{"$f":"SUM(G144:I144)","v":-87},{"$f":"F144-J144","v":0}]
[11,null,{"$f":"'FR-16(7)(v)-1 Functional'!C145","v":"  TOTAL TRANS DEPREC RESERVE"},null,null,{"$f":"SUM(F142:F144)","v":24662},24662,0,0,24662,0]
[12]
[13,null,{"$f":"'FR-16(7)(v)-1 Functional'!C147","v":"TOTAL PROD & TRANS DEPREC RESERVE"},null,null,{"$f":"F145+F139","v":752462},{"$f":"G145+G139","v":752462},{"$f":"H145+H139","v":0},{"$f":"I145+I139","v":0},{"$f":"J145+J139","v":752462},{"$f":"F147-J147","v":0}]
[14]
[15,"DISTRIBUTION PLANT"]
[16,null,{"$f":"'FR-16(7)(v)-1 Functional'!C150","v":"SUBSTATIONS"},{"$f":"'FR-16(7)(v)-1 Functional'!D150","v":"K215"},null,{"$f":"'FR-16(7)(v)-14 TOTAL CLASS'!P150","v":116078},{"$f":"'FR-16(7)(v)-3 PROD Demand'!P150+'FR-16(7)(v)-7 TRANS Demand'!P150+'FR-16(7)(v)-11 DIST Demand'!P150","v":116078},{"$f":"'FR-16(7)(v)-4 PROD Energy'!P150+'FR-16(7)(v)-8 TRANS Energy'!P150+'FR-16(7)(v)-12 DIST Energy'!P150","v":0},{"$f":"'FR-16(7)(v)-5 PROD Cust'!P150+'FR-16(7)(v)-9 TRANS Cust'!P150+'FR-16(7)(v)-13 DIST Cust'!P150","v":0},{"$f":"SUM(G150:I150)","v":116078},{"$f":"F150-J150","v":0}]
[17,null,{"$f":"'FR-16(7)(v)-1 Functional'!C151","v":"POLES, TOWERS  & FIXTURES - PRIMARY - DEMAND"},{"$f":"'FR-16(7)(v)-1 Functional'!D151","v":"K205"},null,{"$f":"'FR-16(7)(v)-14 TOTAL CLASS'!P151","v":94850},{"$f":"'FR-16(7)(v)-3 PROD Demand'!P151+'FR-16(7)(v)-7 TRANS Demand'!P151+'FR-16(7)(v)-11 DIST Demand'!P151","v":94850},{"$f":"'FR-16(7)(v)-4 PROD Energy'!P151+'FR-16(7)(v)-8 TRANS Energy'!P151+'FR-16(7)(v)-12 DIST Energy'!P151","v":0},{"$f":"'FR-16(7)(v)-5 PROD Cust'!P151+'FR-16(7)(v)-9 TRANS Cust'!P151+'FR-16(7)(v)-13 DIST Cust'!P151","v":0},{"$f":"SUM(G151:I151)","v":94850},{"$f":"F151-J151","v":0}]
[18,null,{"$f":"'FR-16(7)(v)-1 Functional'!C152","v":"POLES, TOWERS  & FIXTURES - PRIMARY - CUSTOMER"},{"$f":"'FR-16(7)(v)-1 Functional'!D152","v":"K405"},null,{"$f":"'FR-16(7)(v)-14 TOTAL CLASS'!P152","v":22740},{"$f":"'FR-16(7)(v)-3 PROD Demand'!P152+'FR-16(7)(v)-7 TRANS Demand'!P152+'FR-16(7)(v)-11 DIST Demand'!P152","v":0},{"$f":"'FR-16(7)(v)-4 PROD Energy'!P152+'FR-16(7)(v)-8 TRANS Energy'!P152+'FR-16(7)(v)-12 DIST Energy'!P152","v":0},{"$f":"'FR-16(7)(v)-5 PROD Cust'!P152+'FR-16(7)(v)-9 TRANS Cust'!P152+'FR-16(7)(v)-13 DIST Cust'!P152","v":22740},{"$f":"SUM(G152:I152)","v":22740},{"$f":"F152-J152","v":0}]
[19,null,{"$f":"'FR-16(7)(v)-1 Functional'!C153","v":"POLES, TOWERS  & FIXTURES - SECONDARY - DEMAND"},{"$f":"'FR-16(7)(v)-1 Functional'!D153","v":"K206"},null,{"$f":"'FR-16(7)(v)-14 TOTAL CLASS'!P153","v":36274},{"$f":"'FR-16(7)(v)-3 PROD Demand'!P153+'FR-16(7)(v)-7 TRANS Demand'!P153+'FR-16(7)(v)-11 DIST Demand'!P153","v":36274},{"$f":"'FR-16(7)(v)-4 PROD Energy'!P153+'FR-16(7)(v)-8 TRANS Energy'!P153+'FR-16(7)(v)-12 DIST Energy'!P153","v":0},{"$f":"'FR-16(7)(v)-5 PROD Cust'!P153+'FR-16(7)(v)-9 TRANS Cust'!P153+'FR-16(7)(v)-13 DIST Cust'!P153","v":0},36274,0]
[20,null,{"$f":"'FR-16(7)(v)-1 Functional'!C154","v":"POLES, TOWERS  & FIXTURES - SECONDARY - CUSTOMER"},{"$f":"'FR-16(7)(v)-1 Functional'!D154","v":"K405"},null,{"$f":"'FR-16(7)(v)-14 TOTAL CLASS'!P154","v":5140},{"$f":"'FR-16(7)(v)-3 PROD Demand'!P154+'FR-16(7)(v)-7 TRANS Demand'!P154+'FR-16(7)(v)-11 DIST Demand'!P154","v":0},{"$f":"'FR-16(7)(v)-4 PROD Energy'!P154+'FR-16(7)(v)-8 TRANS Energy'!P154+'FR-16(7)(v)-12 DIST Energy'!P154","v":0},{"$f":"'FR-16(7)(v)-5 PROD Cust'!P154+'FR-16(7)(v)-9 TRANS Cust'!P154+'FR-16(7)(v)-13 DIST Cust'!P154","v":5140},5140,0]
[21,null,{"$f":"'FR-16(7)(v)-1 Functional'!C155","v":"CONDUCTORS - OVERHEAD / PRIMARY - DEMAND"},{"$f":"'FR-16(7)(v)-1 Functional'!D155","v":"K205"},null,{"$f":"'FR-16(7)(v)-14 TOTAL CLASS'!P155","v":140864},{"$f":"'FR-16(7)(v)-3 PROD Demand'!P155+'FR-16(7)(v)-7 TRANS Demand'!P155+'FR-16(7)(v)-11 DIST Demand'!P155","v":140864},{"$f":"'FR-16(7)(v)-4 PROD Energy'!P155+'FR-16(7)(v)-8 TRANS Energy'!P155+'FR-16(7)(v)-12 DIST Energy'!P155","v":0},{"$f":"'FR-16(7)(v)-5 PROD Cust'!P155+'FR-16(7)(v)-9 TRANS Cust'!P155+'FR-16(7)(v)-13 DIST Cust'!P155","v":0},140864,0]
[22,null,{"$f":"'FR-16(7)(v)-1 Functional'!C156","v":"CONDUCTORS - OVERHEAD / PRIMARY - CUSTOMER"},{"$f":"'FR-16(7)(v)-1 Functional'!D156","v":"K405"},null,{"$f":"'FR-16(7)(v)-14 TOTAL CLASS'!P156","v":16115},{"$f":"'FR-16(7)(v)-3 PROD Demand'!P156+'FR-16(7)(v)-7 TRANS Demand'!P156+'FR-16(7)(v)-11 DIST Demand'!P156","v":0},{"$f":"'FR-16(7)(v)-4 PROD Energy'!P156+'FR-16(7)(v)-8 TRANS Energy'!P156+'FR-16(7)(v)-12 DIST Energy'!P156","v":0},{"$f":"'FR-16(7)(v)-5 PROD Cust'!P156+'FR-16(7)(v)-9 TRANS Cust'!P156+'FR-16(7)(v)-13 DIST Cust'!P156","v":16115},16115,0]
[23,null,{"$f":"'FR-16(7)(v)-1 Functional'!C157","v":"CONDUCTORS - OVERHEAD / SECONDARY - DEMAND"},{"$f":"'FR-16(7)(v)-1 Functional'!D157","v":"K206"},null,{"$f":"'FR-16(7)(v)-14 TOTAL CLASS'!P157","v":57358},{"$f":"'FR-16(7)(v)-3 PROD Demand'!P157+'FR-16(7)(v)-7 TRANS Demand'!P157+'FR-16(7)(v)-11 DIST Demand'!P157","v":57358},{"$f":"'FR-16(7)(v)-4 PROD Energy'!P157+'FR-16(7)(v)-8 TRANS Energy'!P157+'FR-16(7)(v)-12 DIST Energy'!P157","v":0},{"$f":"'FR-16(7)(v)-5 PROD Cust'!P157+'FR-16(7)(v)-9 TRANS Cust'!P157+'FR-16(7)(v)-13 DIST Cust'!P157","v":0},57358,0]
[24,null,{"$f":"'FR-16(7)(v)-1 Functional'!C158","v":"CONDUCTORS - OVERHEAD / SECONDARY - CUSTOMER"},{"$f":"'FR-16(7)(v)-1 Functional'!D158","v":"K405"},null,{"$f":"'FR-16(7)(v)-14 TOTAL CLASS'!P158","v":6675},{"$f":"'FR-16(7)(v)-3 PROD Demand'!P158+'FR-16(7)(v)-7 TRANS Demand'!P158+'FR-16(7)(v)-11 DIST Demand'!P158","v":0},{"$f":"'FR-16(7)(v)-4 PROD Energy'!P158+'FR-16(7)(v)-8 TRANS Energy'!P158+'FR-16(7)(v)-12 DIST Energy'!P158","v":0},{"$f":"'FR-16(7)(v)-5 PROD Cust'!P158+'FR-16(7)(v)-9 TRANS Cust'!P158+'FR-16(7)(v)-13 DIST Cust'!P158","v":6675},6675,0]
[25,null,{"$f":"'FR-16(7)(v)-1 Functional'!C159","v":"CONDUCTORS - UNDERGROUND / PRIMARY - DEMAND"},{"$f":"'FR-16(7)(v)-1 Functional'!D159","v":"K205"},null,{"$f":"'FR-16(7)(v)-14 TOTAL CLASS'!P159","v":104288},{"$f":"'FR-16(7)(v)-3 PROD Demand'!P159+'FR-16(7)(v)-7 TRANS Demand'!P159+'FR-16(7)(v)-11 DIST Demand'!P159","v":104288},{"$f":"'FR-16(7)(v)-4 PROD Energy'!P159+'FR-16(7)(v)-8 TRANS Energy'!P159+'FR-16(7)(v)-12 DIST Energy'!P159","v":0},{"$f":"'FR-16(7)(v)-5 PROD Cust'!P159+'FR-16(7)(v)-9 TRANS Cust'!P159+'FR-16(7)(v)-13 DIST Cust'!P159","v":0},104288,0]
[26,null,{"$f":"'FR-16(7)(v)-1 Functional'!C160","v":"CONDUCTORS - UNDERGROUND / PRIMARY - CUSTOMER"},{"$f":"'FR-16(7)(v)-1 Functional'!D160","v":"K405"},null,{"$f":"'FR-16(7)(v)-14 TOTAL CLASS'!P160","v":16966},{"$f":"'FR-16(7)(v)-3 PROD Demand'!P160+'FR-16(7)(v)-7 TRANS Demand'!P160+'FR-16(7)(v)-11 DIST Demand'!P160","v":0},{"$f":"'FR-16(7)(v)-4 PROD Energy'!P160+'FR-16(7)(v)-8 TRANS Energy'!P160+'FR-16(7)(v)-12 DIST Energy'!P160","v":0},{"$f":"'FR-16(7)(v)-5 PROD Cust'!P160+'FR-16(7)(v)-9 TRANS Cust'!P160+'FR-16(7)(v)-13 DIST Cust'!P160","v":16966},16966,0]
[27,null,{"$f":"'FR-16(7)(v)-1 Functional'!C161","v":"CONDUCTORS - UNDERGROUND / SECONDARY - DEMAND"},{"$f":"'FR-16(7)(v)-1 Functional'!D161","v":"K206"},null,{"$f":"'FR-16(7)(v)-14 TOTAL CLASS'!P161","v":17866},{"$f":"'FR-16(7)(v)-3 PROD Demand'!P161+'FR-16(7)(v)-7 TRANS Demand'!P161+'FR-16(7)(v)-11 DIST Demand'!P161","v":17866},{"$f":"'FR-16(7)(v)-4 PROD Energy'!P161+'FR-16(7)(v)-8 TRANS Energy'!P161+'FR-16(7)(v)-12 DIST Energy'!P161","v":0},{"$f":"'FR-16(7)(v)-5 PROD Cust'!P161+'FR-16(7)(v)-9 TRANS Cust'!P161+'FR-16(7)(v)-13 DIST Cust'!P161","v":0},17866,0]
[28,null,{"$f":"'FR-16(7)(v)-1 Functional'!C162","v":"CONDUCTORS - UNDERGROUND / SECONDARY - CUSTOMER"},{"$f":"'FR-16(7)(v)-1 Functional'!D162","v":"K405"},null,{"$f":"'FR-16(7)(v)-14 TOTAL CLASS'!P162","v":5306},{"$f":"'FR-16(7)(v)-3 PROD Demand'!P162+'FR-16(7)(v)-7 TRANS Demand'!P162+'FR-16(7)(v)-11 DIST Demand'!P162","v":0},{"$f":"'FR-16(7)(v)-4 PROD Energy'!P162+'FR-16(7)(v)-8 TRANS Energy'!P162+'FR-16(7)(v)-12 DIST Energy'!P162","v":0},{"$f":"'FR-16(7)(v)-5 PROD Cust'!P162+'FR-16(7)(v)-9 TRANS Cust'!P162+'FR-16(7)(v)-13 DIST Cust'!P162","v":5306},5306,0]
[29,null,{"$f":"'FR-16(7)(v)-1 Functional'!C163","v":"TRANSFORMERS DEMAND RELATED"},{"$f":"'FR-16(7)(v)-1 Functional'!D163","v":"K215"},null,{"$f":"'FR-16(7)(v)-14 TOTAL CLASS'!P163","v":128779},{"$f":"'FR-16(7)(v)-3 PROD Demand'!P163+'FR-16(7)(v)-7 TRANS Demand'!P163+'FR-16(7)(v)-11 DIST Demand'!P163","v":128779},{"$f":"'FR-16(7)(v)-4 PROD Energy'!P163+'FR-16(7)(v)-8 TRANS Energy'!P163+'FR-16(7)(v)-12 DIST Energy'!P163","v":0},{"$f":"'FR-16(7)(v)-5 PROD Cust'!P163+'FR-16(7)(v)-9 TRANS Cust'!P163+'FR-16(7)(v)-13 DIST Cust'!P163","v":0},{"$f":"SUM(G163:I163)","v":128779},{"$f":"F163-J163","v":0}]
[30,null,{"$f":"'FR-16(7)(v)-1 Functional'!C164","v":"TRANSFORMERS CUSTOMER RELATED"},{"$f":"'FR-16(7)(v)-1 Functional'!D164","v":"K405"},null,{"$f":"'FR-16(7)(v)-14 TOTAL CLASS'!P164","v":21924},{"$f":"'FR-16(7)(v)-3 PROD Demand'!P164+'FR-16(7)(v)-7 TRANS Demand'!P164+'FR-16(7)(v)-11 DIST Demand'!P164","v":0},{"$f":"'FR-16(7)(v)-4 PROD Energy'!P164+'FR-16(7)(v)-8 TRANS Energy'!P164+'FR-16(7)(v)-12 DIST Energy'!P164","v":0},{"$f":"'FR-16(7)(v)-5 PROD Cust'!P164+'FR-16(7)(v)-9 TRANS Cust'!P164+'FR-16(7)(v)-13 DIST Cust'!P164","v":21924},21924,0]
[31,null,{"$f":"'FR-16(7)(v)-1 Functional'!C165","v":"SERVICES"},{"$f":"'FR-16(7)(v)-1 Functional'!D165","v":"K217"},null,{"$f":"'FR-16(7)(v)-14 TOTAL CLASS'!P165","v":37893},{"$f":"'FR-16(7)(v)-3 PROD Demand'!P165+'FR-16(7)(v)-7 TRANS Demand'!P165+'FR-16(7)(v)-11 DIST Demand'!P165","v":0},{"$f":"'FR-16(7)(v)-4 PROD Energy'!P165+'FR-16(7)(v)-8 TRANS Energy'!P165+'FR-16(7)(v)-12 DIST Energy'!P165","v":0},{"$f":"'FR-16(7)(v)-5 PROD Cust'!P165+'FR-16(7)(v)-9 TRANS Cust'!P165+'FR-16(7)(v)-13 DIST Cust'!P165","v":37893},37893,0]
[32,null,{"$f":"'FR-16(7)(v)-1 Functional'!C166","v":"METERS"},{"$f":"'FR-16(7)(v)-1 Functional'!D166","v":"K407"},null,{"$f":"'FR-16(7)(v)-14 TOTAL CLASS'!P166","v":0},{"$f":"'FR-16(7)(v)-3 PROD Demand'!P166+'FR-16(7)(v)-7 TRANS Demand'!P166+'FR-16(7)(v)-11 DIST Demand'!P166","v":0},{"$f":"'FR-16(7)(v)-4 PROD Energy'!P166+'FR-16(7)(v)-8 TRANS Energy'!P166+'FR-16(7)(v)-12 DIST Energy'!P166","v":0},{"$f":"'FR-16(7)(v)-5 PROD Cust'!P166+'FR-16(7)(v)-9 TRANS Cust'!P166+'FR-16(7)(v)-13 DIST Cust'!P166","v":0},0,0]
[33,null,{"$f":"'FR-16(7)(v)-1 Functional'!C167","v":"STREET LIGHTS"},{"$f":"'FR-16(7)(v)-1 Functional'!D167","v":"K401"},null,{"$f":"'FR-16(7)(v)-14 TOTAL CLASS'!P167","v":4073494},{"$f":"'FR-16(7)(v)-3 PROD Demand'!P167+'FR-16(7)(v)-7 TRANS Demand'!P167+'FR-16(7)(v)-11 DIST Demand'!P167","v":0},{"$f":"'FR-16(7)(v)-4 PROD Energy'!P167+'FR-16(7)(v)-8 TRANS Energy'!P167+'FR-16(7)(v)-12 DIST Energy'!P167","v":0},{"$f":"'FR-16(7)(v)-5 PROD Cust'!P167+'FR-16(7)(v)-9 TRANS Cust'!P167+'FR-16(7)(v)-13 DIST Cust'!P167","v":4073494},4073494,0]
[34,null,{"$f":"'FR-16(7)(v)-1 Functional'!C168","v":"ADJUSTMENT  "},{"$f":"'FR-16(7)(v)-1 Functional'!D168","v":"K209"},null,{"$f":"'FR-16(7)(v)-14 TOTAL CLASS'!P168","v":7864},{"$f":"'FR-16(7)(v)-3 PROD Demand'!P168+'FR-16(7)(v)-7 TRANS Demand'!P168+'FR-16(7)(v)-11 DIST Demand'!P168","v":2151},{"$f":"'FR-16(7)(v)-4 PROD Energy'!P168+'FR-16(7)(v)-8 TRANS Energy'!P168+'FR-16(7)(v)-12 DIST Energy'!P168","v":0},{"$f":"'FR-16(7)(v)-5 PROD Cust'!P168+'FR-16(7)(v)-9 TRANS Cust'!P168+'FR-16(7)(v)-13 DIST Cust'!P168","v":5713},7864,0]
[35,null,{"$f":"'FR-16(7)(v)-1 Functional'!C169","v":"CONSTRUCTION NOT CLASSIFIED"},{"$f":"'FR-16(7)(v)-1 Functional'!D169","v":"K209"},null,{"$f":"'FR-16(7)(v)-14 TOTAL CLASS'!P169","v":25685},{"$f":"'FR-16(7)(v)-3 PROD Demand'!P169+'FR-16(7)(v)-7 TRANS Demand'!P169+'FR-16(7)(v)-11 DIST Demand'!P169","v":7025},{"$f":"'FR-16(7)(v)-4 PROD Energy'!P169+'FR-16(7)(v)-8 TRANS Energy'!P169+'FR-16(7)(v)-12 DIST Energy'!P169","v":0},{"$f":"'FR-16(7)(v)-5 PROD Cust'!P169+'FR-16(7)(v)-9 TRANS Cust'!P169+'FR-16(7)(v)-13 DIST Cust'!P169","v":18660},25685,0]
[36,null,{"$f":"'FR-16(7)(v)-1 Functional'!C170","v":"RWIP"},{"$f":"'FR-16(7)(v)-1 Functional'!D170","v":"K215"},null,{"$f":"'FR-16(7)(v)-14 TOTAL CLASS'!P170","v":-107509},{"$f":"'FR-16(7)(v)-3 PROD Demand'!P170+'FR-16(7)(v)-7 TRANS Demand'!P170+'FR-16(7)(v)-11 DIST Demand'!P170","v":-107509},{"$f":"'FR-16(7)(v)-4 PROD Energy'!P170+'FR-16(7)(v)-8 TRANS Energy'!P170+'FR-16(7)(v)-12 DIST Energy'!P170","v":0},{"$f":"'FR-16(7)(v)-5 PROD Cust'!P170+'FR-16(7)(v)-9 TRANS Cust'!P170+'FR-16(7)(v)-13 DIST Cust'!P170","v":0},{"$f":"SUM(G170:I170)","v":-107509},{"$f":"F170-J170","v":0}]
[37,null,{"$f":"'FR-16(7)(v)-1 Functional'!C171","v":"  TOTAL DIST DEPREC RESERVE"},null,null,{"$f":"SUM(F149:F170)","v":4828650},{"$f":"SUM(G149:G170)","v":598024},0,4230626,4828650,0]
[38]
[39,null,"TOTAL TRANS & DIST DEPREC RESERVE",null,null,{"$f":"F171+F145","v":4853312},{"$f":"G171+G145","v":622686},{"$f":"H171+H145","v":0},{"$f":"I171+I145","v":4230626},{"$f":"J171+J145","v":4853312},{"$f":"F173-J173","v":0}]
[40,null,"TOTAL GROSS PTD PLANT DEPREC RESERVE",null,null,{"$f":"F147+F171","v":5581112},{"$f":"G147+G171","v":1350486},{"$f":"H147+H171","v":0},{"$f":"I147+I171","v":4230626},{"$f":"J147+J171","v":5581112},{"$f":"F174-J174","v":0}]
[41]
[42,"GENERAL & INTANGIBLE PLANT"]
[43,null,{"$f":"'FR-16(7)(v)-1 Functional'!C177","v":"PRODUCTION - DEMAND"},{"$f":"'FR-16(7)(v)-1 Functional'!D177","v":"K201"},null,{"$f":"'FR-16(7)(v)-14 TOTAL CLASS'!P177","v":6675},{"$f":"'FR-16(7)(v)-3 PROD Demand'!P177+'FR-16(7)(v)-7 TRANS Demand'!P177+'FR-16(7)(v)-11 DIST Demand'!P177","v":6675},{"$f":"'FR-16(7)(v)-4 PROD Energy'!P177+'FR-16(7)(v)-8 TRANS Energy'!P177+'FR-16(7)(v)-12 DIST Energy'!P177","v":0},{"$f":"'FR-16(7)(v)-5 PROD Cust'!P177+'FR-16(7)(v)-9 TRANS Cust'!P177+'FR-16(7)(v)-13 DIST Cust'!P177","v":0},{"$f":"SUM(G177:I177)","v":6675},{"$f":"F177-J177","v":0}]
[44,null,{"$f":"'FR-16(7)(v)-1 Functional'!C178","v":"PRODUCTION - ENERGY"},{"$f":"'FR-16(7)(v)-1 Functional'!D178","v":"K301"},null,{"$f":"'FR-16(7)(v)-14 TOTAL CLASS'!P178","v":27423},{"$f":"'FR-16(7)(v)-3 PROD Demand'!P178+'FR-16(7)(v)-7 TRANS Demand'!P178+'FR-16(7)(v)-11 DIST Demand'!P178","v":0},{"$f":"'FR-16(7)(v)-4 PROD Energy'!P178+'FR-16(7)(v)-8 TRANS Energy'!P178+'FR-16(7)(v)-12 DIST Energy'!P178","v":27423},{"$f":"'FR-16(7)(v)-5 PROD Cust'!P178+'FR-16(7)(v)-9 TRANS Cust'!P178+'FR-16(7)(v)-13 DIST Cust'!P178","v":0},{"$f":"SUM(G178:I178)","v":27423},{"$f":"F178-J178","v":0}]
[45,null,{"$f":"'FR-16(7)(v)-1 Functional'!C179","v":"TRANSMISSION"},{"$f":"'FR-16(7)(v)-1 Functional'!D179","v":"K202"},null,{"$f":"'FR-16(7)(v)-14 TOTAL CLASS'!P179","v":1055},{"$f":"'FR-16(7)(v)-3 PROD Demand'!P179+'FR-16(7)(v)-7 TRANS Demand'!P179+'FR-16(7)(v)-11 DIST Demand'!P179","v":1055},{"$f":"'FR-16(7)(v)-4 PROD Energy'!P179+'FR-16(7)(v)-8 TRANS Energy'!P179+'FR-16(7)(v)-12 DIST Energy'!P179","v":0},{"$f":"'FR-16(7)(v)-5 PROD Cust'!P179+'FR-16(7)(v)-9 TRANS Cust'!P179+'FR-16(7)(v)-13 DIST Cust'!P179","v":0},1055,0]
[46,null,{"$f":"'FR-16(7)(v)-1 Functional'!C180","v":"DISTRIBUTION - DEMAND"},{"$f":"'FR-16(7)(v)-1 Functional'!D180","v":"K201"},null,{"$f":"'FR-16(7)(v)-14 TOTAL CLASS'!P180","v":3543},{"$f":"'FR-16(7)(v)-3 PROD Demand'!P180+'FR-16(7)(v)-7 TRANS Demand'!P180+'FR-16(7)(v)-11 DIST Demand'!P180","v":3543},{"$f":"'FR-16(7)(v)-4 PROD Energy'!P180+'FR-16(7)(v)-8 TRANS Energy'!P180+'FR-16(7)(v)-12 DIST Energy'!P180","v":0},{"$f":"'FR-16(7)(v)-5 PROD Cust'!P180+'FR-16(7)(v)-9 TRANS Cust'!P180+'FR-16(7)(v)-13 DIST Cust'!P180","v":0},3543,0]
[47,null,{"$f":"'FR-16(7)(v)-1 Functional'!C181","v":"DISTRIBUTION - CUSTOMER"},{"$f":"'FR-16(7)(v)-1 Functional'!D181","v":"K405"},null,{"$f":"'FR-16(7)(v)-14 TOTAL CLASS'!P181","v":2063},{"$f":"'FR-16(7)(v)-3 PROD Demand'!P181+'FR-16(7)(v)-7 TRANS Demand'!P181+'FR-16(7)(v)-11 DIST Demand'!P181","v":0},{"$f":"'FR-16(7)(v)-4 PROD Energy'!P181+'FR-16(7)(v)-8 TRANS Energy'!P181+'FR-16(7)(v)-12 DIST Energy'!P181","v":0},{"$f":"'FR-16(7)(v)-5 PROD Cust'!P181+'FR-16(7)(v)-9 TRANS Cust'!P181+'FR-16(7)(v)-13 DIST Cust'!P181","v":2063},2063,0]
[48,null,{"$f":"'FR-16(7)(v)-1 Functional'!C182","v":"CUSTOMER ACCOUNTING"},{"$f":"'FR-16(7)(v)-1 Functional'!D182","v":"A308"},null,{"$f":"'FR-16(7)(v)-14 TOTAL CLASS'!P182","v":5842},{"$f":"'FR-16(7)(v)-3 PROD Demand'!P182+'FR-16(7)(v)-7 TRANS Demand'!P182+'FR-16(7)(v)-11 DIST Demand'!P182","v":0},{"$f":"'FR-16(7)(v)-4 PROD Energy'!P182+'FR-16(7)(v)-8 TRANS Energy'!P182+'FR-16(7)(v)-12 DIST Energy'!P182","v":0},{"$f":"'FR-16(7)(v)-5 PROD Cust'!P182+'FR-16(7)(v)-9 TRANS Cust'!P182+'FR-16(7)(v)-13 DIST Cust'!P182","v":5842},5842,0]
[49,null,{"$f":"'FR-16(7)(v)-1 Functional'!C183","v":"CUSTOMER SERVICE & INFORMATION"},{"$f":"'FR-16(7)(v)-1 Functional'!D183","v":"A310"},null,{"$f":"'FR-16(7)(v)-14 TOTAL CLASS'!P183","v":459},{"$f":"'FR-16(7)(v)-3 PROD Demand'!P183+'FR-16(7)(v)-7 TRANS Demand'!P183+'FR-16(7)(v)-11 DIST Demand'!P183","v":0},{"$f":"'FR-16(7)(v)-4 PROD Energy'!P183+'FR-16(7)(v)-8 TRANS Energy'!P183+'FR-16(7)(v)-12 DIST Energy'!P183","v":0},{"$f":"'FR-16(7)(v)-5 PROD Cust'!P183+'FR-16(7)(v)-9 TRANS Cust'!P183+'FR-16(7)(v)-13 DIST Cust'!P183","v":459},459,0]
[50,null,{"$f":"'FR-16(7)(v)-1 Functional'!C184","v":"SALES"},{"$f":"'FR-16(7)(v)-1 Functional'!D184","v":"A312"},null,{"$f":"'FR-16(7)(v)-14 TOTAL CLASS'!P184","v":0},{"$f":"'FR-16(7)(v)-3 PROD Demand'!P184+'FR-16(7)(v)-7 TRANS Demand'!P184+'FR-16(7)(v)-11 DIST Demand'!P184","v":0},{"$f":"'FR-16(7)(v)-4 PROD Energy'!P184+'FR-16(7)(v)-8 TRANS Energy'!P184+'FR-16(7)(v)-12 DIST Energy'!P184","v":0},{"$f":"'FR-16(7)(v)-5 PROD Cust'!P184+'FR-16(7)(v)-9 TRANS Cust'!P184+'FR-16(7)(v)-13 DIST Cust'!P184","v":0},0,0]
[51,null,{"$f":"'FR-16(7)(v)-1 Functional'!C185","v":"ADJUSTMENT"},{"$f":"'FR-16(7)(v)-1 Functional'!D185","v":"A315"},null,{"$f":"'FR-16(7)(v)-14 TOTAL CLASS'!P185","v":2447},{"$f":"'FR-16(7)(v)-3 PROD Demand'!P185+'FR-16(7)(v)-7 TRANS Demand'!P185+'FR-16(7)(v)-11 DIST Demand'!P185","v":23},{"$f":"'FR-16(7)(v)-4 PROD Energy'!P185+'FR-16(7)(v)-8 TRANS Energy'!P185+'FR-16(7)(v)-12 DIST Energy'!P185","v":489},{"$f":"'FR-16(7)(v)-5 PROD Cust'!P185+'FR-16(7)(v)-9 TRANS Cust'!P185+'FR-16(7)(v)-13 DIST Cust'!P185","v":1935},2447,0]
[52,null,{"$f":"'FR-16(7)(v)-1 Functional'!C186","v":"  GENERAL & INTANG PLANT"},null,null,{"$f":"SUM(F176:F185)","v":49507},11296,27912,10299,49507,0]
[53]
[54,"COMMON & OTHER PLANT"]
[55,null,{"$f":"'FR-16(7)(v)-1 Functional'!C189","v":"PRODUCTION - DEMAND"},{"$f":"'FR-16(7)(v)-1 Functional'!D189","v":"K201"},null,{"$f":"'FR-16(7)(v)-14 TOTAL CLASS'!P189","v":9019},{"$f":"'FR-16(7)(v)-3 PROD Demand'!P189+'FR-16(7)(v)-7 TRANS Demand'!P189+'FR-16(7)(v)-11 DIST Demand'!P189","v":9019},{"$f":"'FR-16(7)(v)-4 PROD Energy'!P189+'FR-16(7)(v)-8 TRANS Energy'!P189+'FR-16(7)(v)-12 DIST Energy'!P189","v":0},{"$f":"'FR-16(7)(v)-5 PROD Cust'!P189+'FR-16(7)(v)-9 TRANS Cust'!P189+'FR-16(7)(v)-13 DIST Cust'!P189","v":0},{"$f":"SUM(G189:I189)","v":9019},{"$f":"F189-J189","v":0}]
[56,null,{"$f":"'FR-16(7)(v)-1 Functional'!C190","v":"PRODUCTION - ENERGY"},{"$f":"'FR-16(7)(v)-1 Functional'!D190","v":"K301"},null,{"$f":"'FR-16(7)(v)-14 TOTAL CLASS'!P190","v":37054},{"$f":"'FR-16(7)(v)-3 PROD Demand'!P190+'FR-16(7)(v)-7 TRANS Demand'!P190+'FR-16(7)(v)-11 DIST Demand'!P190","v":0},{"$f":"'FR-16(7)(v)-4 PROD Energy'!P190+'FR-16(7)(v)-8 TRANS Energy'!P190+'FR-16(7)(v)-12 DIST Energy'!P190","v":37054},{"$f":"'FR-16(7)(v)-5 PROD Cust'!P190+'FR-16(7)(v)-9 TRANS Cust'!P190+'FR-16(7)(v)-13 DIST Cust'!P190","v":0},{"$f":"SUM(G190:I190)","v":37054},{"$f":"F190-J190","v":0}]
[57,null,{"$f":"'FR-16(7)(v)-1 Functional'!C191","v":"TRANSMISSION"},{"$f":"'FR-16(7)(v)-1 Functional'!D191","v":"K202"},null,{"$f":"'FR-16(7)(v)-14 TOTAL CLASS'!P191","v":1425},{"$f":"'FR-16(7)(v)-3 PROD Demand'!P191+'FR-16(7)(v)-7 TRANS Demand'!P191+'FR-16(7)(v)-11 DIST Demand'!P191","v":1425},{"$f":"'FR-16(7)(v)-4 PROD Energy'!P191+'FR-16(7)(v)-8 TRANS Energy'!P191+'FR-16(7)(v)-12 DIST Energy'!P191","v":0},{"$f":"'FR-16(7)(v)-5 PROD Cust'!P191+'FR-16(7)(v)-9 TRANS Cust'!P191+'FR-16(7)(v)-13 DIST Cust'!P191","v":0},1425,0]
[58,null,{"$f":"'FR-16(7)(v)-1 Functional'!C192","v":"DISTRIBUTION - DEMAND"},{"$f":"'FR-16(7)(v)-1 Functional'!D192","v":"K201"},null,{"$f":"'FR-16(7)(v)-14 TOTAL CLASS'!P192","v":4787},{"$f":"'FR-16(7)(v)-3 PROD Demand'!P192+'FR-16(7)(v)-7 TRANS Demand'!P192+'FR-16(7)(v)-11 DIST Demand'!P192","v":4787},{"$f":"'FR-16(7)(v)-4 PROD Energy'!P192+'FR-16(7)(v)-8 TRANS Energy'!P192+'FR-16(7)(v)-12 DIST Energy'!P192","v":0},{"$f":"'FR-16(7)(v)-5 PROD Cust'!P192+'FR-16(7)(v)-9 TRANS Cust'!P192+'FR-16(7)(v)-13 DIST Cust'!P192","v":0},4787,0]
[59,null,{"$f":"'FR-16(7)(v)-1 Functional'!C193","v":"DISTRIBUTION - CUSTOMER"},{"$f":"'FR-16(7)(v)-1 Functional'!D193","v":"K405"},null,{"$f":"'FR-16(7)(v)-14 TOTAL CLASS'!P193","v":2788},{"$f":"'FR-16(7)(v)-3 PROD Demand'!P193+'FR-16(7)(v)-7 TRANS Demand'!P193+'FR-16(7)(v)-11 DIST Demand'!P193","v":0},{"$f":"'FR-16(7)(v)-4 PROD Energy'!P193+'FR-16(7)(v)-8 TRANS Energy'!P193+'FR-16(7)(v)-12 DIST Energy'!P193","v":0},{"$f":"'FR-16(7)(v)-5 PROD Cust'!P193+'FR-16(7)(v)-9 TRANS Cust'!P193+'FR-16(7)(v)-13 DIST Cust'!P193","v":2788},2788,0]
[60,null,{"$f":"'FR-16(7)(v)-1 Functional'!C194","v":"CUSTOMER ACCOUNTING"},{"$f":"'FR-16(7)(v)-1 Functional'!D194","v":"A308"},null,{"$f":"'FR-16(7)(v)-14 TOTAL CLASS'!P194","v":7894},{"$f":"'FR-16(7)(v)-3 PROD Demand'!P194+'FR-16(7)(v)-7 TRANS Demand'!P194+'FR-16(7)(v)-11 DIST Demand'!P194","v":0},{"$f":"'FR-16(7)(v)-4 PROD Energy'!P194+'FR-16(7)(v)-8 TRANS Energy'!P194+'FR-16(7)(v)-12 DIST Energy'!P194","v":0},{"$f":"'FR-16(7)(v)-5 PROD Cust'!P194+'FR-16(7)(v)-9 TRANS Cust'!P194+'FR-16(7)(v)-13 DIST Cust'!P194","v":7894},7894,0]
[61,null,{"$f":"'FR-16(7)(v)-1 Functional'!C195","v":"CUSTOMER SERVICE & INFORMATION"},{"$f":"'FR-16(7)(v)-1 Functional'!D195","v":"A310"},null,{"$f":"'FR-16(7)(v)-14 TOTAL CLASS'!P195","v":620},{"$f":"'FR-16(7)(v)-3 PROD Demand'!P195+'FR-16(7)(v)-7 TRANS Demand'!P195+'FR-16(7)(v)-11 DIST Demand'!P195","v":0},{"$f":"'FR-16(7)(v)-4 PROD Energy'!P195+'FR-16(7)(v)-8 TRANS Energy'!P195+'FR-16(7)(v)-12 DIST Energy'!P195","v":0},{"$f":"'FR-16(7)(v)-5 PROD Cust'!P195+'FR-16(7)(v)-9 TRANS Cust'!P195+'FR-16(7)(v)-13 DIST Cust'!P195","v":620},620,0]
[62,null,{"$f":"'FR-16(7)(v)-1 Functional'!C196","v":"SALES"},{"$f":"'FR-16(7)(v)-1 Functional'!D196","v":"A312"},null,{"$f":"'FR-16(7)(v)-14 TOTAL CLASS'!P196","v":0},{"$f":"'FR-16(7)(v)-3 PROD Demand'!P196+'FR-16(7)(v)-7 TRANS Demand'!P196+'FR-16(7)(v)-11 DIST Demand'!P196","v":0},{"$f":"'FR-16(7)(v)-4 PROD Energy'!P196+'FR-16(7)(v)-8 TRANS Energy'!P196+'FR-16(7)(v)-12 DIST Energy'!P196","v":0},{"$f":"'FR-16(7)(v)-5 PROD Cust'!P196+'FR-16(7)(v)-9 TRANS Cust'!P196+'FR-16(7)(v)-13 DIST Cust'!P196","v":0},0,0]
[63,null,{"$f":"'FR-16(7)(v)-1 Functional'!C197","v":"ADJUSTMENT"},{"$f":"'FR-16(7)(v)-1 Functional'!D197","v":"A315"},null,{"$f":"'FR-16(7)(v)-14 TOTAL CLASS'!P197","v":137},{"$f":"'FR-16(7)(v)-3 PROD Demand'!P197+'FR-16(7)(v)-7 TRANS Demand'!P197+'FR-16(7)(v)-11 DIST Demand'!P197","v":1},{"$f":"'FR-16(7)(v)-4 PROD Energy'!P197+'FR-16(7)(v)-8 TRANS Energy'!P197+'FR-16(7)(v)-12 DIST Energy'!P197","v":27},{"$f":"'FR-16(7)(v)-5 PROD Cust'!P197+'FR-16(7)(v)-9 TRANS Cust'!P197+'FR-16(7)(v)-13 DIST Cust'!P197","v":109},137,0]
[64,null,{"$f":"'FR-16(7)(v)-1 Functional'!C198","v":"  COMMON & OTHER PLANT IN SERVICE"},null,null,{"$f":"SUM(F189:F197)","v":63724},{"$f":"SUM(G188:G197)","v":15232},{"$f":"SUM(H188:H197)","v":37081},{"$f":"SUM(I188:I197)","v":11411},{"$f":"SUM(J188:J197)","v":63724},{"$f":"SUM(K188:K197)","v":0}]
[65]
[66,"TOTAL DEPRECIATION RESERVE",null,null,null,{"$f":"F198+F186+F171+F145+F139","v":5694343},1377014,64993,4252336,5694343,0]
[]
[{"$f":"co_name","v":"DUKE ENERGY KENTUCKY, INC."},null,null,null,null,null,null,null,null,{"$f":"J1","v":"FR-16(7)(v)-24"}]
[{"$f":"$A$2","v":"LIGHTING CLASSIFIED - ELECTRIC COST OF SERVICE"},null,null,null,null,null,null,null,null,{"$f":"J2","v":"WITNESS RESPONSIBLE:"}]
[{"$f":"case_name","v":"CASE NO: 2019-00271"},null,null,null,null,null,null,null,null,{"$f":"Witness","v":"JAMES E. ZIOLKOWSKI"}]
[{"$f":"data_filing","v":"DATA: 12 MONTHS ACTUAL  & 0 MONTHS ESTIMATED"},null,null,null,null,null,null,null,null,{"$f":"\"PAGE \"&Pages2-11&\" OF \"&Pages2","v":"PAGE 4 OF 15"}]
[{"$f":"type","v":"TYPE OF FILING: \"X\" ORIGINAL   UPDATED    REVISED  "}]
[]
[]
["LINE",null,null,null,null,"TOTAL","CLASSIFIED",null,null,"TOTAL","ALL"]
["NO.",{"$f":"\"NET ELECTRIC PLANT\"","v":"NET ELECTRIC PLANT"},null,"ALLO",null,{"$f":"$F$9","v":"LIGHTING"},{"$f":"G9","v":"DEMAND"},"ENERGY","CUSTOMER","AT ISSUE","OTHER"]
[null,null,"Schedule 4",null,null,null,3,4,5]
[1,"PRODUCTION PLANT"]
[2,null,{"$f":"'FR-16(7)(v)-1 Functional'!C213","v":"PRODUCTION STEAM"},null,null,{"$f":"F59-F136","v":538383},538383,0,0,538383,0]
[3,null,{"$f":"'FR-16(7)(v)-1 Functional'!C214","v":"PRODUCTION OTHER"},null,null,234645,234645,0,0,234645,0]
[4,null,{"$f":"'FR-16(7)(v)-1 Functional'!C215","v":"ADJUSTMENT"},null,null,-1926,-1926,0,0,-1926,0]
[5,null,{"$f":"'FR-16(7)(v)-1 Functional'!C216","v":"  NET PRODUCTION PLANT"},null,null,{"$f":"SUM(F213:F215)","v":771102},771102,0,0,771102,0]
[6]
[7,"TRANSMISSION PLANT"]
[8,null,{"$f":"'FR-16(7)(v)-1 Functional'!C219","v":"MAIN STEP-UP TRANSFORMERS"},null,null,{"$f":"F65-F142","v":0},0,0,0,0,0]
[9,null,{"$f":"'FR-16(7)(v)-1 Functional'!C220","v":"OTHER TRANSMISSION"},null,null,64992,64992,0,0,64992,0]
[10,null,{"$f":"'FR-16(7)(v)-1 Functional'!C221","v":"ADJUSTMENT"},null,null,87,87,0,0,87,0]
[11,null,{"$f":"'FR-16(7)(v)-1 Functional'!C222","v":"    NET TRANSMISSION PLANT"},null,null,{"$f":"SUM(F218:F221)","v":65079},65079,0,0,65079,0]
[12]
[13,"NET PROD & TRANS PLANT",null,null,null,{"$f":"F70-F147","v":836181},836181,0,0,836181,0]
[14]
[15,"DISTRIBUTION PLANT"]
[16,null,{"$f":"'FR-16(7)(v)-1 Functional'!C227","v":"SUBSTATIONS"},null,null,{"$f":"F73-F150","v":455254},455254,0,0,455254,0]
[17,null,{"$f":"'FR-16(7)(v)-1 Functional'!C228","v":"POLES, TOWERS  & FIXTURES - PRIMARY - DEMAND"},null,null,112453,112453,0,0,112453,0]
[18,null,{"$f":"'FR-16(7)(v)-1 Functional'!C229","v":"POLES, TOWERS  & FIXTURES - PRIMARY - CUSTOMER"},null,null,{"$f":"F75-F152","v":26961},0,0,26961,26961,0]
[19,null,{"$f":"'FR-16(7)(v)-1 Functional'!C230","v":"POLES, TOWERS  & FIXTURES - SECONDARY - DEMAND"},null,null,{"$f":"F76-F153","v":43005},43005,0,0,43005,0]
[20,null,{"$f":"'FR-16(7)(v)-1 Functional'!C231","v":"POLES, TOWERS  & FIXTURES - SECONDARY - CUSTOMER"},null,null,{"$f":"F77-F154","v":6095},0,0,6095,6095,0]
[21,null,{"$f":"'FR-16(7)(v)-1 Functional'!C232","v":"CONDUCTORS - OVERHEAD / PRIMARY - DEMAND"},null,null,{"$f":"F78-F155","v":331535},331535,0,0,331535,0]
[22,null,{"$f":"'FR-16(7)(v)-1 Functional'!C233","v":"CONDUCTORS - OVERHEAD / PRIMARY - CUSTOMER"},null,null,{"$f":"F79-F156","v":37929},0,0,37929,37929,0]
[23,null,{"$f":"'FR-16(7)(v)-1 Functional'!C234","v":"CONDUCTORS - OVERHEAD / SECONDARY - DEMAND"},null,null,{"$f":"F80-F157","v":134997},134997,0,0,134997,0]
[24,null,{"$f":"'FR-16(7)(v)-1 Functional'!C235","v":"CONDUCTORS - OVERHEAD / SECONDARY - CUSTOMER"},null,null,{"$f":"F81-F158","v":15712},0,0,15712,15712,0]
[25,null,{"$f":"'FR-16(7)(v)-1 Functional'!C236","v":"CONDUCTORS - UNDERGROUND / PRIMARY - DEMAND"},null,null,{"$f":"F82-F159","v":248279},248279,0,0,248279,0]
[26,null,{"$f":"'FR-16(7)(v)-1 Functional'!C237","v":"CONDUCTORS - UNDERGROUND / PRIMARY - CUSTOMER"},null,null,{"$f":"F83-F160","v":40392},0,0,40392,40392,0]
[27,null,{"$f":"'FR-16(7)(v)-1 Functional'!C238","v":"CONDUCTORS - UNDERGROUND / SECONDARY - DEMAND"},null,null,{"$f":"F84-F161","v":42534},42534,0,0,42534,0]
[28,null,{"$f":"'FR-16(7)(v)-1 Functional'!C239","v":"CONDUCTORS - UNDERGROUND / SECONDARY - CUSTOMER"},null,null,{"$f":"F85-F162","v":12631},0,0,12631,12631,0]
[29,null,{"$f":"'FR-16(7)(v)-1 Functional'!C240","v":"TRANSFORMERS DEMAND RELATED"},null,null,{"$f":"F86-F163","v":167110},167110,0,0,167110,0]
[30,null,{"$f":"'FR-16(7)(v)-1 Functional'!C241","v":"TRANSFORMERS CUSTOMER RELATED"},null,null,28449,0,0,28449,28449,0]
[31,null,{"$f":"'FR-16(7)(v)-1 Functional'!C242","v":"SERVICES"},null,null,31093,0,0,31093,31093,0]
[32,null,{"$f":"'FR-16(7)(v)-1 Functional'!C243","v":"METERS"},null,null,0,0,0,0,0,0]
[33,null,{"$f":"'FR-16(7)(v)-1 Functional'!C244","v":"STREET LIGHTS"},null,null,1522363,0,0,1522363,1522363,0]
[34,null,{"$f":"'FR-16(7)(v)-1 Functional'!C245","v":"ADJUSTMENT  "},null,null,-7864,-2151,0,-5713,-7864,0]
[35,null,{"$f":"'FR-16(7)(v)-1 Functional'!C246","v":"CONSTRUCTION NOT CLASSIFIED"},null,null,1568304,428925,0,1139379,1568304,0]
[36,null,{"$f":"'FR-16(7)(v)-1 Functional'!C247","v":"RWIP"},null,null,107509,107509,0,0,107509,0]
[37,null,{"$f":"'FR-16(7)(v)-1 Functional'!C248","v":"  NET DISTRIBUTION PLANT"},null,null,{"$f":"SUM(F226:F247)","v":4924741},{"$f":"SUM(G226:G247)","v":2069450},0,2855291,4924741,0]
[38]
[39,"NET PTD PLANT",null,null,null,{"$f":"F96-F173","v":4989820},2134529,0,2855291,4989820,0]
[40,"NET TRANS & DIST PLANT",null,null,null,5760922,2905631,0,2855291,5760922,0]
[41]
[42,"GENERAL & INTANGIBLE PLANT"]
[43,null,{"$f":"'FR-16(7)(v)-1 Functional'!C254","v":"PRODUCTION - DEMAND"},null,null,{"$f":"F100-F177","v":14038},14038,0,0,14038,0]
[44,null,{"$f":"'FR-16(7)(v)-1 Functional'!C255","v":"PRODUCTION - ENERGY"},null,null,57674,0,57674,0,57674,0]
[45,null,{"$f":"'FR-16(7)(v)-1 Functional'!C256","v":"TRANSMISSION"},null,null,2218,2218,0,0,2218,0]
[46,null,{"$f":"'FR-16(7)(v)-1 Functional'!C257","v":"DISTRIBUTION - DEMAND"},null,null,7450,7450,0,0,7450,0]
[47,null,{"$f":"'FR-16(7)(v)-1 Functional'!C258","v":"DISTRIBUTION - CUSTOMER"}]
[48,null,{"$f":"'FR-16(7)(v)-1 Functional'!C259","v":"CUSTOMER ACCOUNTING"},null,null,{"$f":"F105-F182","v":12287},0,0,12287,12287,0]
[49,null,{"$f":"'FR-16(7)(v)-1 Functional'!C260","v":"CUSTOMER SERVICE & INFORMATION"},null,null,965,0,0,965,965,0]
[50,null,{"$f":"'FR-16(7)(v)-1 Functional'!C261","v":"SALES"},null,null,0,0,0,0,0,0]
[51,null,{"$f":"'FR-16(7)(v)-1 Functional'!C262","v":"ADJUSTMENT"},null,null,-2447,-23,-489,-1935,-2447,0]
[52,null,{"$f":"'FR-16(7)(v)-1 Functional'!C263","v":"  NET GENERAL & INTANG PLANT"},null,null,{"$f":"SUM(F253:F262)","v":92185},23683,57185,11317,92185,0]
[53]
[54,"COMMON & OTHER PLANT"]
[55,null,{"$f":"'FR-16(7)(v)-1 Functional'!C266","v":"PRODUCTION - DEMAND"},null,null,{"$f":"F112-F189","v":2704},2704,0,0,2704,0]
[56,null,{"$f":"'FR-16(7)(v)-1 Functional'!C267","v":"PRODUCTION - ENERGY"},null,null,11109,0,11109,0,11109,0]
[57,null,{"$f":"'FR-16(7)(v)-1 Functional'!C268","v":"TRANSMISSION"},null,null,428,428,0,0,428,0]
[58,null,{"$f":"'FR-16(7)(v)-1 Functional'!C269","v":"DISTRIBUTION - DEMAND"},null,null,1435,1435,0,0,1435,0]
[59,null,{"$f":"'FR-16(7)(v)-1 Functional'!C270","v":"DISTRIBUTION - CUSTOMER"}]
[60,null,{"$f":"'FR-16(7)(v)-1 Functional'!C271","v":"CUSTOMER ACCOUNTING"},null,null,{"$f":"F117-F194","v":2367},0,0,2367,2367,0]
[61,null,{"$f":"'FR-16(7)(v)-1 Functional'!C272","v":"CUSTOMER SERVICE & INFORMATION"},null,null,186,0,0,186,186,0]
[62,null,{"$f":"'FR-16(7)(v)-1 Functional'!C273","v":"SALES"},null,null,0,0,0,0,0,0]
[63,null,{"$f":"'FR-16(7)(v)-1 Functional'!C274","v":"ADJUSTMENT"},null,null,-137,-1,-27,-109,-137,0]
[64,null,{"$f":"'FR-16(7)(v)-1 Functional'!C275","v":"  COMMON & OTHER PLANT IN SERVICE"},null,null,{"$f":"SUM(F265:F274)","v":18092},4566,11082,2444,18092,0]
[65]
[66,null,{"$f":"'FR-16(7)(v)-1 Functional'!C277","v":"NET ELECTRIC PLANT IN SERVICE"},null,null,{"$f":"F275+F263+F248+F222+F216","v":5871199},2933880,68267,2869052,5871199,0]
[]
[{"$f":"co_name","v":"DUKE ENERGY KENTUCKY, INC."},null,null,null,null,null,null,null,null,{"$f":"J1","v":"FR-16(7)(v)-24"}]
[{"$f":"$A$2","v":"LIGHTING CLASSIFIED - ELECTRIC COST OF SERVICE"},null,null,null,null,null,null,null,null,{"$f":"J2","v":"WITNESS RESPONSIBLE:"}]
[{"$f":"case_name","v":"CASE NO: 2019-00271"},null,null,null,null,null,null,null,null,{"$f":"Witness","v":"JAMES E. ZIOLKOWSKI"}]
[{"$f":"data_filing","v":"DATA: 12 MONTHS ACTUAL  & 0 MONTHS ESTIMATED"},null,null,null,null,null,null,null,null,{"$f":"\"PAGE \"&Pages2-10&\" OF \"&Pages2","v":"PAGE 5 OF 15"}]
[{"$f":"type","v":"TYPE OF FILING: \"X\" ORIGINAL   UPDATED    REVISED  "}]
[]
[]
["LINE",null,null,null,null,"TOTAL","CLASSIFIED",null,null,"TOTAL","ALL"]
["NO.","SUBTRACTIVE RATE BASE ADJUSTMENTS",null,"ALLO",null,{"$f":"$F$9","v":"LIGHTING"},{"$f":"G9","v":"DEMAND"},"ENERGY","CUSTOMER","AT ISSUE","OTHER"]
[null,null,"Schedule 5",null,null,null,3,4,5]
[1,"RATE BASE ADJUSTMENTS"]
[2,"ACCUMULATED DEFERRED INCOME TAXES"]
[3," ACCUM DEF INC TAXES (282)"]
[4,null,{"$f":"'FR-16(7)(v)-1 Functional'!C292","v":"LIBERALIZED DEPRECIATION"},{"$f":"'FR-16(7)(v)-1 Functional'!D292","v":"NP29"}," ",{"$f":"'FR-16(7)(v)-14 TOTAL CLASS'!P292","v":346610},{"$f":"'FR-16(7)(v)-3 PROD Demand'!P292+'FR-16(7)(v)-7 TRANS Demand'!P292+'FR-16(7)(v)-11 DIST Demand'!P292","v":174145},{"$f":"'FR-16(7)(v)-4 PROD Energy'!P292+'FR-16(7)(v)-8 TRANS Energy'!P292+'FR-16(7)(v)-12 DIST Energy'!P292","v":4042},{"$f":"'FR-16(7)(v)-5 PROD Cust'!P292+'FR-16(7)(v)-9 TRANS Cust'!P292+'FR-16(7)(v)-13 DIST Cust'!P292","v":168423},{"$f":"SUM(G292:I292)","v":346610},{"$f":"F292-J292","v":0}]
[5,null,{"$f":"'FR-16(7)(v)-1 Functional'!C293","v":"LEASED METERS"},{"$f":"'FR-16(7)(v)-1 Functional'!D293","v":"NP29"}," ",{"$f":"'FR-16(7)(v)-14 TOTAL CLASS'!P293","v":7862},{"$f":"'FR-16(7)(v)-3 PROD Demand'!P293+'FR-16(7)(v)-7 TRANS Demand'!P293+'FR-16(7)(v)-11 DIST Demand'!P293","v":3950},{"$f":"'FR-16(7)(v)-4 PROD Energy'!P293+'FR-16(7)(v)-8 TRANS Energy'!P293+'FR-16(7)(v)-12 DIST Energy'!P293","v":92},{"$f":"'FR-16(7)(v)-5 PROD Cust'!P293+'FR-16(7)(v)-9 TRANS Cust'!P293+'FR-16(7)(v)-13 DIST Cust'!P293","v":3820},7862,0]
[6,null,{"$f":"'FR-16(7)(v)-1 Functional'!C294","v":"CONTRIB AID CONSTR"},{"$f":"'FR-16(7)(v)-1 Functional'!D294","v":"D249"}," ",{"$f":"'FR-16(7)(v)-14 TOTAL CLASS'!P294","v":0},{"$f":"'FR-16(7)(v)-3 PROD Demand'!P294+'FR-16(7)(v)-7 TRANS Demand'!P294+'FR-16(7)(v)-11 DIST Demand'!P294","v":0},{"$f":"'FR-16(7)(v)-4 PROD Energy'!P294+'FR-16(7)(v)-8 TRANS Energy'!P294+'FR-16(7)(v)-12 DIST Energy'!P294","v":0},{"$f":"'FR-16(7)(v)-5 PROD Cust'!P294+'FR-16(7)(v)-9 TRANS Cust'!P294+'FR-16(7)(v)-13 DIST Cust'!P294","v":0},0,0]
[7,null,{"$f":"'FR-16(7)(v)-1 Functional'!C295","v":"TAX INTEREST, EXPENSING, DEPR."},{"$f":"'FR-16(7)(v)-1 Functional'!D295","v":"NP29"}," ",{"$f":"'FR-16(7)(v)-14 TOTAL CLASS'!P295","v":346084},{"$f":"'FR-16(7)(v)-3 PROD Demand'!P295+'FR-16(7)(v)-7 TRANS Demand'!P295+'FR-16(7)(v)-11 DIST Demand'!P295","v":173881},{"$f":"'FR-16(7)(v)-4 PROD Energy'!P295+'FR-16(7)(v)-8 TRANS Energy'!P295+'FR-16(7)(v)-12 DIST Energy'!P295","v":4036},{"$f":"'FR-16(7)(v)-5 PROD Cust'!P295+'FR-16(7)(v)-9 TRANS Cust'!P295+'FR-16(7)(v)-13 DIST Cust'!P295","v":168167},346084,0]
[8,null,{"$f":"'FR-16(7)(v)-1 Functional'!C296","v":"AFUDC IN DEBT"},{"$f":"'FR-16(7)(v)-1 Functional'!D296","v":"NP29"}," ",{"$f":"'FR-16(7)(v)-14 TOTAL CLASS'!P296","v":0},{"$f":"'FR-16(7)(v)-3 PROD Demand'!P296+'FR-16(7)(v)-7 TRANS Demand'!P296+'FR-16(7)(v)-11 DIST Demand'!P296","v":0},{"$f":"'FR-16(7)(v)-4 PROD Energy'!P296+'FR-16(7)(v)-8 TRANS Energy'!P296+'FR-16(7)(v)-12 DIST Energy'!P296","v":0},{"$f":"'FR-16(7)(v)-5 PROD Cust'!P296+'FR-16(7)(v)-9 TRANS Cust'!P296+'FR-16(7)(v)-13 DIST Cust'!P296","v":0},0,0]
[9,null,{"$f":"'FR-16(7)(v)-1 Functional'!C297","v":"CASUALTY LOSS"},{"$f":"'FR-16(7)(v)-1 Functional'!D297","v":"K411"}," ",{"$f":"'FR-16(7)(v)-14 TOTAL CLASS'!P297","v":-343},{"$f":"'FR-16(7)(v)-3 PROD Demand'!P297+'FR-16(7)(v)-7 TRANS Demand'!P297+'FR-16(7)(v)-11 DIST Demand'!P297","v":0},{"$f":"'FR-16(7)(v)-4 PROD Energy'!P297+'FR-16(7)(v)-8 TRANS Energy'!P297+'FR-16(7)(v)-12 DIST Energy'!P297","v":0},{"$f":"'FR-16(7)(v)-5 PROD Cust'!P297+'FR-16(7)(v)-9 TRANS Cust'!P297+'FR-16(7)(v)-13 DIST Cust'!P297","v":-343},-343,0]
[10,null,{"$f":"'FR-16(7)(v)-1 Functional'!C298","v":"NON-CASH OVERHEADS"},{"$f":"'FR-16(7)(v)-1 Functional'!D298","v":"G229"}," ",{"$f":"'FR-16(7)(v)-14 TOTAL CLASS'!P298","v":0},{"$f":"'FR-16(7)(v)-3 PROD Demand'!P298+'FR-16(7)(v)-7 TRANS Demand'!P298+'FR-16(7)(v)-11 DIST Demand'!P298","v":0},{"$f":"'FR-16(7)(v)-4 PROD Energy'!P298+'FR-16(7)(v)-8 TRANS Energy'!P298+'FR-16(7)(v)-12 DIST Energy'!P298","v":0},{"$f":"'FR-16(7)(v)-5 PROD Cust'!P298+'FR-16(7)(v)-9 TRANS Cust'!P298+'FR-16(7)(v)-13 DIST Cust'!P298","v":0},0,0]
[11,null,{"$f":"'FR-16(7)(v)-1 Functional'!C299","v":"PLANT FAS 109"},{"$f":"'FR-16(7)(v)-1 Functional'!D299","v":"NP29"}," ",{"$f":"'FR-16(7)(v)-14 TOTAL CLASS'!P299","v":0},{"$f":"'FR-16(7)(v)-3 PROD Demand'!P299+'FR-16(7)(v)-7 TRANS Demand'!P299+'FR-16(7)(v)-11 DIST Demand'!P299","v":0},{"$f":"'FR-16(7)(v)-4 PROD Energy'!P299+'FR-16(7)(v)-8 TRANS Energy'!P299+'FR-16(7)(v)-12 DIST Energy'!P299","v":0},{"$f":"'FR-16(7)(v)-5 PROD Cust'!P299+'FR-16(7)(v)-9 TRANS Cust'!P299+'FR-16(7)(v)-13 DIST Cust'!P299","v":0},0,0]
[12,null,{"$f":"'FR-16(7)(v)-1 Functional'!C300","v":"MISCELLANEOUS"},{"$f":"'FR-16(7)(v)-1 Functional'!D300","v":"NP29"},null,{"$f":"'FR-16(7)(v)-14 TOTAL CLASS'!P300","v":326575},{"$f":"'FR-16(7)(v)-3 PROD Demand'!P300+'FR-16(7)(v)-7 TRANS Demand'!P300+'FR-16(7)(v)-11 DIST Demand'!P300","v":164079},{"$f":"'FR-16(7)(v)-4 PROD Energy'!P300+'FR-16(7)(v)-8 TRANS Energy'!P300+'FR-16(7)(v)-12 DIST Energy'!P300","v":3808},{"$f":"'FR-16(7)(v)-5 PROD Cust'!P300+'FR-16(7)(v)-9 TRANS Cust'!P300+'FR-16(7)(v)-13 DIST Cust'!P300","v":158688},326575,0]
[13,null,{"$f":"'FR-16(7)(v)-1 Functional'!C301","v":"  TOTAL ACCOUNT 282"},null,null,{"$f":"SUM(F292:F300)","v":1026788},516055,11978,498755,1026788,0]
[14]
[15," ACCUM DEF INC TAXES (283)"]
[16,null,{"$f":"'FR-16(7)(v)-1 Functional'!C304","v":"TRANSITION FROM MISO TO PJM"},{"$f":"'FR-16(7)(v)-1 Functional'!D304","v":"NP29"},null,{"$f":"'FR-16(7)(v)-14 TOTAL CLASS'!P304","v":-18598},{"$f":"'FR-16(7)(v)-3 PROD Demand'!P304+'FR-16(7)(v)-7 TRANS Demand'!P304+'FR-16(7)(v)-11 DIST Demand'!P304","v":-9344},{"$f":"'FR-16(7)(v)-4 PROD Energy'!P304+'FR-16(7)(v)-8 TRANS Energy'!P304+'FR-16(7)(v)-12 DIST Energy'!P304","v":-217},{"$f":"'FR-16(7)(v)-5 PROD Cust'!P304+'FR-16(7)(v)-9 TRANS Cust'!P304+'FR-16(7)(v)-13 DIST Cust'!P304","v":-9037},{"$f":"SUM(G304:I304)","v":-18598},{"$f":"F304-J304","v":0}]
[17,null,{"$f":"'FR-16(7)(v)-1 Functional'!C305","v":"DEFERRED PLANT COSTS"},{"$f":"'FR-16(7)(v)-1 Functional'!D305","v":"NP29"},null,{"$f":"'FR-16(7)(v)-14 TOTAL CLASS'!P305","v":3623},{"$f":"'FR-16(7)(v)-3 PROD Demand'!P305+'FR-16(7)(v)-7 TRANS Demand'!P305+'FR-16(7)(v)-11 DIST Demand'!P305","v":1820},{"$f":"'FR-16(7)(v)-4 PROD Energy'!P305+'FR-16(7)(v)-8 TRANS Energy'!P305+'FR-16(7)(v)-12 DIST Energy'!P305","v":42},{"$f":"'FR-16(7)(v)-5 PROD Cust'!P305+'FR-16(7)(v)-9 TRANS Cust'!P305+'FR-16(7)(v)-13 DIST Cust'!P305","v":1761},3623,0]
[18,null,{"$f":"'FR-16(7)(v)-1 Functional'!C306","v":"MISCELLANEOUS"},{"$f":"'FR-16(7)(v)-1 Functional'!D306","v":"OM39"},null,{"$f":"'FR-16(7)(v)-14 TOTAL CLASS'!P306","v":74516},{"$f":"'FR-16(7)(v)-3 PROD Demand'!P306+'FR-16(7)(v)-7 TRANS Demand'!P306+'FR-16(7)(v)-11 DIST Demand'!P306","v":6641},{"$f":"'FR-16(7)(v)-4 PROD Energy'!P306+'FR-16(7)(v)-8 TRANS Energy'!P306+'FR-16(7)(v)-12 DIST Energy'!P306","v":33583},{"$f":"'FR-16(7)(v)-5 PROD Cust'!P306+'FR-16(7)(v)-9 TRANS Cust'!P306+'FR-16(7)(v)-13 DIST Cust'!P306","v":34292},74516,0]
[19,null,{"$f":"'FR-16(7)(v)-1 Functional'!C307","v":"ENVIRONMENTAL RESERVE"},{"$f":"'FR-16(7)(v)-1 Functional'!D307","v":"NP29"},null,{"$f":"'FR-16(7)(v)-14 TOTAL CLASS'!P307","v":0},{"$f":"'FR-16(7)(v)-3 PROD Demand'!P307+'FR-16(7)(v)-7 TRANS Demand'!P307+'FR-16(7)(v)-11 DIST Demand'!P307","v":0},{"$f":"'FR-16(7)(v)-4 PROD Energy'!P307+'FR-16(7)(v)-8 TRANS Energy'!P307+'FR-16(7)(v)-12 DIST Energy'!P307","v":0},{"$f":"'FR-16(7)(v)-5 PROD Cust'!P307+'FR-16(7)(v)-9 TRANS Cust'!P307+'FR-16(7)(v)-13 DIST Cust'!P307","v":0},0,0]
[20,null,{"$f":"'FR-16(7)(v)-1 Functional'!C308","v":"POST IN-SERVICE CARRYING COSTS"},{"$f":"'FR-16(7)(v)-1 Functional'!D308","v":"NP29"},null,{"$f":"'FR-16(7)(v)-14 TOTAL CLASS'!P308","v":0},{"$f":"'FR-16(7)(v)-3 PROD Demand'!P308+'FR-16(7)(v)-7 TRANS Demand'!P308+'FR-16(7)(v)-11 DIST Demand'!P308","v":0},{"$f":"'FR-16(7)(v)-4 PROD Energy'!P308+'FR-16(7)(v)-8 TRANS Energy'!P308+'FR-16(7)(v)-12 DIST Energy'!P308","v":0},{"$f":"'FR-16(7)(v)-5 PROD Cust'!P308+'FR-16(7)(v)-9 TRANS Cust'!P308+'FR-16(7)(v)-13 DIST Cust'!P308","v":0},0,0]
[21,null,{"$f":"'FR-16(7)(v)-1 Functional'!C309","v":"ARO CUMULATIVE EFFECT"},{"$f":"'FR-16(7)(v)-1 Functional'!D309","v":"NP29"},null,{"$f":"'FR-16(7)(v)-14 TOTAL CLASS'!P309","v":0},{"$f":"'FR-16(7)(v)-3 PROD Demand'!P309+'FR-16(7)(v)-7 TRANS Demand'!P309+'FR-16(7)(v)-11 DIST Demand'!P309","v":0},{"$f":"'FR-16(7)(v)-4 PROD Energy'!P309+'FR-16(7)(v)-8 TRANS Energy'!P309+'FR-16(7)(v)-12 DIST Energy'!P309","v":0},{"$f":"'FR-16(7)(v)-5 PROD Cust'!P309+'FR-16(7)(v)-9 TRANS Cust'!P309+'FR-16(7)(v)-13 DIST Cust'!P309","v":0},0,0]
[22,null,{"$f":"'FR-16(7)(v)-1 Functional'!C310","v":"LOSS ON REACQUIRED DEBT"},{"$f":"'FR-16(7)(v)-1 Functional'!D310","v":"D249"},null,{"$f":"'FR-16(7)(v)-14 TOTAL CLASS'!P310","v":0},{"$f":"'FR-16(7)(v)-3 PROD Demand'!P310+'FR-16(7)(v)-7 TRANS Demand'!P310+'FR-16(7)(v)-11 DIST Demand'!P310","v":0},{"$f":"'FR-16(7)(v)-4 PROD Energy'!P310+'FR-16(7)(v)-8 TRANS Energy'!P310+'FR-16(7)(v)-12 DIST Energy'!P310","v":0},{"$f":"'FR-16(7)(v)-5 PROD Cust'!P310+'FR-16(7)(v)-9 TRANS Cust'!P310+'FR-16(7)(v)-13 DIST Cust'!P310","v":0},0,0]
[23,null,{"$f":"'FR-16(7)(v)-1 Functional'!C311","v":"VACATION PAY ACCRUAL"},{"$f":"'FR-16(7)(v)-1 Functional'!D311","v":"A315"},null,{"$f":"'FR-16(7)(v)-14 TOTAL CLASS'!P311","v":0},{"$f":"'FR-16(7)(v)-3 PROD Demand'!P311+'FR-16(7)(v)-7 TRANS Demand'!P311+'FR-16(7)(v)-11 DIST Demand'!P311","v":0},{"$f":"'FR-16(7)(v)-4 PROD Energy'!P311+'FR-16(7)(v)-8 TRANS Energy'!P311+'FR-16(7)(v)-12 DIST Energy'!P311","v":0},{"$f":"'FR-16(7)(v)-5 PROD Cust'!P311+'FR-16(7)(v)-9 TRANS Cust'!P311+'FR-16(7)(v)-13 DIST Cust'!P311","v":0},0,0]
[24,null,{"$f":"'FR-16(7)(v)-1 Functional'!C312","v":"NON-AMI METERS RETIRED EARLY"},{"$f":"'FR-16(7)(v)-1 Functional'!D312","v":"OM39"},null,{"$f":"'FR-16(7)(v)-14 TOTAL CLASS'!P312","v":8941},{"$f":"'FR-16(7)(v)-3 PROD Demand'!P312+'FR-16(7)(v)-7 TRANS Demand'!P312+'FR-16(7)(v)-11 DIST Demand'!P312","v":797},{"$f":"'FR-16(7)(v)-4 PROD Energy'!P312+'FR-16(7)(v)-8 TRANS Energy'!P312+'FR-16(7)(v)-12 DIST Energy'!P312","v":4029},{"$f":"'FR-16(7)(v)-5 PROD Cust'!P312+'FR-16(7)(v)-9 TRANS Cust'!P312+'FR-16(7)(v)-13 DIST Cust'!P312","v":4115},{"$f":"SUM(G312:I312)","v":8941},{"$f":"F312-J312","v":0}]
[25,null,{"$f":"'FR-16(7)(v)-1 Functional'!C313","v":"PENSION EXPENSE"},{"$f":"'FR-16(7)(v)-1 Functional'!D313","v":"A315"},null,{"$f":"'FR-16(7)(v)-14 TOTAL CLASS'!P313","v":57499},{"$f":"'FR-16(7)(v)-3 PROD Demand'!P313+'FR-16(7)(v)-7 TRANS Demand'!P313+'FR-16(7)(v)-11 DIST Demand'!P313","v":6215},{"$f":"'FR-16(7)(v)-4 PROD Energy'!P313+'FR-16(7)(v)-8 TRANS Energy'!P313+'FR-16(7)(v)-12 DIST Energy'!P313","v":10352},{"$f":"'FR-16(7)(v)-5 PROD Cust'!P313+'FR-16(7)(v)-9 TRANS Cust'!P313+'FR-16(7)(v)-13 DIST Cust'!P313","v":40932},{"$f":"SUM(G313:I313)","v":57499},{"$f":"F313-J313","v":0}]
[26,null,{"$f":"'FR-16(7)(v)-1 Functional'!C314","v":"UNCOLLECTIBLE ACCOUNTS"},{"$f":"'FR-16(7)(v)-1 Functional'!D314","v":"K411"},null,{"$f":"'FR-16(7)(v)-14 TOTAL CLASS'!P314","v":0},{"$f":"'FR-16(7)(v)-3 PROD Demand'!P314+'FR-16(7)(v)-7 TRANS Demand'!P314+'FR-16(7)(v)-11 DIST Demand'!P314","v":0},{"$f":"'FR-16(7)(v)-4 PROD Energy'!P314+'FR-16(7)(v)-8 TRANS Energy'!P314+'FR-16(7)(v)-12 DIST Energy'!P314","v":0},{"$f":"'FR-16(7)(v)-5 PROD Cust'!P314+'FR-16(7)(v)-9 TRANS Cust'!P314+'FR-16(7)(v)-13 DIST Cust'!P314","v":0},0,0]
[27,null,{"$f":"'FR-16(7)(v)-1 Functional'!C315","v":"  TOTAL ACCOUNT 283"},null,null,{"$f":"SUM(F303:F314)","v":125981},6129,47789,72063,125981,0]
[28]
[29," OTHER ACCUMULATED DEFERRED INCOME TAXES"]
[30,null,{"$f":"'FR-16(7)(v)-1 Functional'!C318","v":"EXCESS ADIT"},{"$f":"'FR-16(7)(v)-1 Functional'!D318","v":"NP29"},null,{"$f":"'FR-16(7)(v)-14 TOTAL CLASS'!P318","v":322385},{"$f":"'FR-16(7)(v)-3 PROD Demand'!P318+'FR-16(7)(v)-7 TRANS Demand'!P318+'FR-16(7)(v)-11 DIST Demand'!P318","v":161973},{"$f":"'FR-16(7)(v)-4 PROD Energy'!P318+'FR-16(7)(v)-8 TRANS Energy'!P318+'FR-16(7)(v)-12 DIST Energy'!P318","v":3760},{"$f":"'FR-16(7)(v)-5 PROD Cust'!P318+'FR-16(7)(v)-9 TRANS Cust'!P318+'FR-16(7)(v)-13 DIST Cust'!P318","v":156652},{"$f":"SUM(G318:I318)","v":322385},{"$f":"F318-J318","v":0}]
[31,null,{"$f":"'FR-16(7)(v)-1 Functional'!C319","v":"CUSTOMER SERVICE DEPOSITS"},{"$f":"'FR-16(7)(v)-1 Functional'!D319","v":"NP29"},null,{"$f":"'FR-16(7)(v)-14 TOTAL CLASS'!P319","v":0},{"$f":"'FR-16(7)(v)-3 PROD Demand'!P319+'FR-16(7)(v)-7 TRANS Demand'!P319+'FR-16(7)(v)-11 DIST Demand'!P319","v":0},{"$f":"'FR-16(7)(v)-4 PROD Energy'!P319+'FR-16(7)(v)-8 TRANS Energy'!P319+'FR-16(7)(v)-12 DIST Energy'!P319","v":0},{"$f":"'FR-16(7)(v)-5 PROD Cust'!P319+'FR-16(7)(v)-9 TRANS Cust'!P319+'FR-16(7)(v)-13 DIST Cust'!P319","v":0},{"$f":"SUM(G319:I319)","v":0},{"$f":"F319-J319","v":0}]
[32,null,{"$f":"'FR-16(7)(v)-1 Functional'!C320","v":"POST RETIREMENT BENEFITS"},{"$f":"'FR-16(7)(v)-1 Functional'!D320","v":"NP29"},null,{"$f":"'FR-16(7)(v)-14 TOTAL CLASS'!P320","v":0},{"$f":"'FR-16(7)(v)-3 PROD Demand'!P320+'FR-16(7)(v)-7 TRANS Demand'!P320+'FR-16(7)(v)-11 DIST Demand'!P320","v":0},{"$f":"'FR-16(7)(v)-4 PROD Energy'!P320+'FR-16(7)(v)-8 TRANS Energy'!P320+'FR-16(7)(v)-12 DIST Energy'!P320","v":0},{"$f":"'FR-16(7)(v)-5 PROD Cust'!P320+'FR-16(7)(v)-9 TRANS Cust'!P320+'FR-16(7)(v)-13 DIST Cust'!P320","v":0},{"$f":"SUM(G320:I320)","v":0},{"$f":"F320-J320","v":0}]
[33,null,{"$f":"'FR-16(7)(v)-1 Functional'!C321","v":"INVESTMENT TAX CREDIT"},{"$f":"'FR-16(7)(v)-1 Functional'!D321","v":"NP29"},null,{"$f":"'FR-16(7)(v)-14 TOTAL CLASS'!P321","v":0},{"$f":"'FR-16(7)(v)-3 PROD Demand'!P321+'FR-16(7)(v)-7 TRANS Demand'!P321+'FR-16(7)(v)-11 DIST Demand'!P321","v":0},{"$f":"'FR-16(7)(v)-4 PROD Energy'!P321+'FR-16(7)(v)-8 TRANS Energy'!P321+'FR-16(7)(v)-12 DIST Energy'!P321","v":0},{"$f":"'FR-16(7)(v)-5 PROD Cust'!P321+'FR-16(7)(v)-9 TRANS Cust'!P321+'FR-16(7)(v)-13 DIST Cust'!P321","v":0},{"$f":"SUM(G321:I321)","v":0},{"$f":"F321-J321","v":0}]
[34,null,{"$f":"'FR-16(7)(v)-1 Functional'!C322","v":"  TOTAL OTHER SUBTRACTIVE ADJUSTMENTS"},null,null,{"$f":"SUM(F317:F321)","v":322385},161973,3760,156652,322385,0]
[35]
[36,{"$f":"'FR-16(7)(v)-1 Functional'!B324","v":"TOTAL SUBTRACTIVE RATE BASE ADJUSTMENTS"},null,null,null,{"$f":"F322+F315+F301","v":1475154},684157,63527,727470,1475154,0]
[]
[{"$f":"co_name","v":"DUKE ENERGY KENTUCKY, INC."},null,null,null,null,null,null,null,null,{"$f":"J1","v":"FR-16(7)(v)-24"}]
[{"$f":"$A$2","v":"LIGHTING CLASSIFIED - ELECTRIC COST OF SERVICE"},null,null,null,null,null,null,null,null,{"$f":"J2","v":"WITNESS RESPONSIBLE:"}]
[{"$f":"case_name","v":"CASE NO: 2019-00271"},null,null,null,null,null,null,null,null,{"$f":"Witness","v":"JAMES E. ZIOLKOWSKI"}]
[{"$f":"data_filing","v":"DATA: 12 MONTHS ACTUAL  & 0 MONTHS ESTIMATED"},null,null,null,null,null,null,null,null,{"$f":"\"PAGE \"&Pages2-9&\" OF \"&Pages2","v":"PAGE 6 OF 15"}]
[{"$f":"type","v":"TYPE OF FILING: \"X\" ORIGINAL   UPDATED    REVISED  "}]
[]
[]
["LINE",null,null,null,null,"TOTAL","CLASSIFIED",null,null,"TOTAL","ALL"]
["NO.","ADDITIVE RATE BASE ADJUSTMENTS",null,"ALLO",null,{"$f":"$F$9","v":"LIGHTING"},{"$f":"G9","v":"DEMAND"},"ENERGY","CUSTOMER","AT ISSUE","OTHER"]
[null,null,"Schedule 5.1",null,null,null,3,4,5]
[1,"OTHER ACCUMULATED DEFERRED INCOME TAXES"]
[2," ACCUM DEF INC TAXES (190)"]
[3,null,{"$f":"'FR-16(7)(v)-1 Functional'!C338","v":"UNCOLLECTIBLE ACCTS"},{"$f":"'FR-16(7)(v)-1 Functional'!D338","v":"K411"},null,{"$f":"'FR-16(7)(v)-14 TOTAL CLASS'!P338","v":63},{"$f":"'FR-16(7)(v)-3 PROD Demand'!P338+'FR-16(7)(v)-7 TRANS Demand'!P338+'FR-16(7)(v)-11 DIST Demand'!P338","v":0},{"$f":"'FR-16(7)(v)-4 PROD Energy'!P338+'FR-16(7)(v)-8 TRANS Energy'!P338+'FR-16(7)(v)-12 DIST Energy'!P338","v":0},{"$f":"'FR-16(7)(v)-5 PROD Cust'!P338+'FR-16(7)(v)-9 TRANS Cust'!P338+'FR-16(7)(v)-13 DIST Cust'!P338","v":63},{"$f":"SUM(G338:I338)","v":63},{"$f":"F338-J338","v":0}]
[4,null,{"$f":"'FR-16(7)(v)-1 Functional'!C339","v":"CASH FLOW HEDGE"},{"$f":"'FR-16(7)(v)-1 Functional'!D339","v":"A315"},null,{"$f":"'FR-16(7)(v)-14 TOTAL CLASS'!P339","v":2310},{"$f":"'FR-16(7)(v)-3 PROD Demand'!P339+'FR-16(7)(v)-7 TRANS Demand'!P339+'FR-16(7)(v)-11 DIST Demand'!P339","v":249},{"$f":"'FR-16(7)(v)-4 PROD Energy'!P339+'FR-16(7)(v)-8 TRANS Energy'!P339+'FR-16(7)(v)-12 DIST Energy'!P339","v":416},{"$f":"'FR-16(7)(v)-5 PROD Cust'!P339+'FR-16(7)(v)-9 TRANS Cust'!P339+'FR-16(7)(v)-13 DIST Cust'!P339","v":1645},2310,0]
[5,null,{"$f":"'FR-16(7)(v)-1 Functional'!C340","v":"RESERVED FOR FUTURE USE"},{"$f":"'FR-16(7)(v)-1 Functional'!D340","v":"NP29"},null,{"$f":"'FR-16(7)(v)-14 TOTAL CLASS'!P340","v":0},{"$f":"'FR-16(7)(v)-3 PROD Demand'!P340+'FR-16(7)(v)-7 TRANS Demand'!P340+'FR-16(7)(v)-11 DIST Demand'!P340","v":0},{"$f":"'FR-16(7)(v)-4 PROD Energy'!P340+'FR-16(7)(v)-8 TRANS Energy'!P340+'FR-16(7)(v)-12 DIST Energy'!P340","v":0},{"$f":"'FR-16(7)(v)-5 PROD Cust'!P340+'FR-16(7)(v)-9 TRANS Cust'!P340+'FR-16(7)(v)-13 DIST Cust'!P340","v":0},0,0]
[6,null,{"$f":"'FR-16(7)(v)-1 Functional'!C341","v":"RESERVED FOR FUTURE USE"},{"$f":"'FR-16(7)(v)-1 Functional'!D341","v":"NP29"},null,{"$f":"'FR-16(7)(v)-14 TOTAL CLASS'!P341","v":0},{"$f":"'FR-16(7)(v)-3 PROD Demand'!P341+'FR-16(7)(v)-7 TRANS Demand'!P341+'FR-16(7)(v)-11 DIST Demand'!P341","v":0},{"$f":"'FR-16(7)(v)-4 PROD Energy'!P341+'FR-16(7)(v)-8 TRANS Energy'!P341+'FR-16(7)(v)-12 DIST Energy'!P341","v":0},{"$f":"'FR-16(7)(v)-5 PROD Cust'!P341+'FR-16(7)(v)-9 TRANS Cust'!P341+'FR-16(7)(v)-13 DIST Cust'!P341","v":0},0,0]
[7,null,{"$f":"'FR-16(7)(v)-1 Functional'!C342","v":"ELECTRIC METERS"},{"$f":"'FR-16(7)(v)-1 Functional'!D342","v":"K407"},null,{"$f":"'FR-16(7)(v)-14 TOTAL CLASS'!P342","v":0},{"$f":"'FR-16(7)(v)-3 PROD Demand'!P342+'FR-16(7)(v)-7 TRANS Demand'!P342+'FR-16(7)(v)-11 DIST Demand'!P342","v":0},{"$f":"'FR-16(7)(v)-4 PROD Energy'!P342+'FR-16(7)(v)-8 TRANS Energy'!P342+'FR-16(7)(v)-12 DIST Energy'!P342","v":0},{"$f":"'FR-16(7)(v)-5 PROD Cust'!P342+'FR-16(7)(v)-9 TRANS Cust'!P342+'FR-16(7)(v)-13 DIST Cust'!P342","v":0},0,0]
[8,null,{"$f":"'FR-16(7)(v)-1 Functional'!C343","v":"UNAMORTIZED DEBT PREMIUM"},{"$f":"'FR-16(7)(v)-1 Functional'!D343","v":"D249"},null,{"$f":"'FR-16(7)(v)-14 TOTAL CLASS'!P343","v":0},{"$f":"'FR-16(7)(v)-3 PROD Demand'!P343+'FR-16(7)(v)-7 TRANS Demand'!P343+'FR-16(7)(v)-11 DIST Demand'!P343","v":0},{"$f":"'FR-16(7)(v)-4 PROD Energy'!P343+'FR-16(7)(v)-8 TRANS Energy'!P343+'FR-16(7)(v)-12 DIST Energy'!P343","v":0},{"$f":"'FR-16(7)(v)-5 PROD Cust'!P343+'FR-16(7)(v)-9 TRANS Cust'!P343+'FR-16(7)(v)-13 DIST Cust'!P343","v":0},0,0]
[9,null,{"$f":"'FR-16(7)(v)-1 Functional'!C344","v":"ARO CUMULATIVE EFFECT"},{"$f":"'FR-16(7)(v)-1 Functional'!D344","v":"NP29"},null,{"$f":"'FR-16(7)(v)-14 TOTAL CLASS'!P344","v":0},{"$f":"'FR-16(7)(v)-3 PROD Demand'!P344+'FR-16(7)(v)-7 TRANS Demand'!P344+'FR-16(7)(v)-11 DIST Demand'!P344","v":0},{"$f":"'FR-16(7)(v)-4 PROD Energy'!P344+'FR-16(7)(v)-8 TRANS Energy'!P344+'FR-16(7)(v)-12 DIST Energy'!P344","v":0},{"$f":"'FR-16(7)(v)-5 PROD Cust'!P344+'FR-16(7)(v)-9 TRANS Cust'!P344+'FR-16(7)(v)-13 DIST Cust'!P344","v":0},0,0]
[10,null,{"$f":"'FR-16(7)(v)-1 Functional'!C345","v":"RETIREMENT PLAN"},{"$f":"'FR-16(7)(v)-1 Functional'!D345","v":"A315"},null,{"$f":"'FR-16(7)(v)-14 TOTAL CLASS'!P345","v":23733},{"$f":"'FR-16(7)(v)-3 PROD Demand'!P345+'FR-16(7)(v)-7 TRANS Demand'!P345+'FR-16(7)(v)-11 DIST Demand'!P345","v":2566},{"$f":"'FR-16(7)(v)-4 PROD Energy'!P345+'FR-16(7)(v)-8 TRANS Energy'!P345+'FR-16(7)(v)-12 DIST Energy'!P345","v":4273},{"$f":"'FR-16(7)(v)-5 PROD Cust'!P345+'FR-16(7)(v)-9 TRANS Cust'!P345+'FR-16(7)(v)-13 DIST Cust'!P345","v":16894},23733,0]
[11,null,{"$f":"'FR-16(7)(v)-1 Functional'!C346","v":"POST RETIREMENT BENEFITS "},{"$f":"'FR-16(7)(v)-1 Functional'!D346","v":"A315"},null,{"$f":"'FR-16(7)(v)-14 TOTAL CLASS'!P346","v":0},{"$f":"'FR-16(7)(v)-3 PROD Demand'!P346+'FR-16(7)(v)-7 TRANS Demand'!P346+'FR-16(7)(v)-11 DIST Demand'!P346","v":0},{"$f":"'FR-16(7)(v)-4 PROD Energy'!P346+'FR-16(7)(v)-8 TRANS Energy'!P346+'FR-16(7)(v)-12 DIST Energy'!P346","v":0},{"$f":"'FR-16(7)(v)-5 PROD Cust'!P346+'FR-16(7)(v)-9 TRANS Cust'!P346+'FR-16(7)(v)-13 DIST Cust'!P346","v":0},0,0]
[12,null,{"$f":"'FR-16(7)(v)-1 Functional'!C347","v":"POST RETIREMENT BENEFITS - HEALTH CARE"},{"$f":"'FR-16(7)(v)-1 Functional'!D347","v":"A315"},null,{"$f":"'FR-16(7)(v)-14 TOTAL CLASS'!P347","v":0},{"$f":"'FR-16(7)(v)-3 PROD Demand'!P347+'FR-16(7)(v)-7 TRANS Demand'!P347+'FR-16(7)(v)-11 DIST Demand'!P347","v":0},{"$f":"'FR-16(7)(v)-4 PROD Energy'!P347+'FR-16(7)(v)-8 TRANS Energy'!P347+'FR-16(7)(v)-12 DIST Energy'!P347","v":0},{"$f":"'FR-16(7)(v)-5 PROD Cust'!P347+'FR-16(7)(v)-9 TRANS Cust'!P347+'FR-16(7)(v)-13 DIST Cust'!P347","v":0},0,0]
[13,null,{"$f":"'FR-16(7)(v)-1 Functional'!C348","v":"POST EMPLOYMENT BENEFITS - SFAS 112"},{"$f":"'FR-16(7)(v)-1 Functional'!D348","v":"A315"},null,{"$f":"'FR-16(7)(v)-14 TOTAL CLASS'!P348","v":0},{"$f":"'FR-16(7)(v)-3 PROD Demand'!P348+'FR-16(7)(v)-7 TRANS Demand'!P348+'FR-16(7)(v)-11 DIST Demand'!P348","v":0},{"$f":"'FR-16(7)(v)-4 PROD Energy'!P348+'FR-16(7)(v)-8 TRANS Energy'!P348+'FR-16(7)(v)-12 DIST Energy'!P348","v":0},{"$f":"'FR-16(7)(v)-5 PROD Cust'!P348+'FR-16(7)(v)-9 TRANS Cust'!P348+'FR-16(7)(v)-13 DIST Cust'!P348","v":0},0,0]
[14,null,{"$f":"'FR-16(7)(v)-1 Functional'!C349","v":"SUPPLEMENTAL PENSION PLAN"},{"$f":"'FR-16(7)(v)-1 Functional'!D349","v":"A315"},null,{"$f":"'FR-16(7)(v)-14 TOTAL CLASS'!P349","v":0},{"$f":"'FR-16(7)(v)-3 PROD Demand'!P349+'FR-16(7)(v)-7 TRANS Demand'!P349+'FR-16(7)(v)-11 DIST Demand'!P349","v":0},{"$f":"'FR-16(7)(v)-4 PROD Energy'!P349+'FR-16(7)(v)-8 TRANS Energy'!P349+'FR-16(7)(v)-12 DIST Energy'!P349","v":0},{"$f":"'FR-16(7)(v)-5 PROD Cust'!P349+'FR-16(7)(v)-9 TRANS Cust'!P349+'FR-16(7)(v)-13 DIST Cust'!P349","v":0},0,0]
[15,null,{"$f":"'FR-16(7)(v)-1 Functional'!C350","v":"INCENTIVE PLAN"},{"$f":"'FR-16(7)(v)-1 Functional'!D350","v":"A315"},null,{"$f":"'FR-16(7)(v)-14 TOTAL CLASS'!P350","v":0},{"$f":"'FR-16(7)(v)-3 PROD Demand'!P350+'FR-16(7)(v)-7 TRANS Demand'!P350+'FR-16(7)(v)-11 DIST Demand'!P350","v":0},{"$f":"'FR-16(7)(v)-4 PROD Energy'!P350+'FR-16(7)(v)-8 TRANS Energy'!P350+'FR-16(7)(v)-12 DIST Energy'!P350","v":0},{"$f":"'FR-16(7)(v)-5 PROD Cust'!P350+'FR-16(7)(v)-9 TRANS Cust'!P350+'FR-16(7)(v)-13 DIST Cust'!P350","v":0},0,0]
[16,null,{"$f":"'FR-16(7)(v)-1 Functional'!C351","v":"FEDERAL DEFERRED TAX RECEIVEABLE"},{"$f":"'FR-16(7)(v)-1 Functional'!D351","v":"A315"},null,{"$f":"'FR-16(7)(v)-14 TOTAL CLASS'!P351","v":0},{"$f":"'FR-16(7)(v)-3 PROD Demand'!P351+'FR-16(7)(v)-7 TRANS Demand'!P351+'FR-16(7)(v)-11 DIST Demand'!P351","v":0},{"$f":"'FR-16(7)(v)-4 PROD Energy'!P351+'FR-16(7)(v)-8 TRANS Energy'!P351+'FR-16(7)(v)-12 DIST Energy'!P351","v":0},{"$f":"'FR-16(7)(v)-5 PROD Cust'!P351+'FR-16(7)(v)-9 TRANS Cust'!P351+'FR-16(7)(v)-13 DIST Cust'!P351","v":0},0,0]
[17,null,{"$f":"'FR-16(7)(v)-1 Functional'!C352","v":"MISCELLANEOUS"},{"$f":"'FR-16(7)(v)-1 Functional'!D352","v":"A315"},null,{"$f":"'FR-16(7)(v)-14 TOTAL CLASS'!P352","v":76172},{"$f":"'FR-16(7)(v)-3 PROD Demand'!P352+'FR-16(7)(v)-7 TRANS Demand'!P352+'FR-16(7)(v)-11 DIST Demand'!P352","v":8234},{"$f":"'FR-16(7)(v)-4 PROD Energy'!P352+'FR-16(7)(v)-8 TRANS Energy'!P352+'FR-16(7)(v)-12 DIST Energy'!P352","v":13714},{"$f":"'FR-16(7)(v)-5 PROD Cust'!P352+'FR-16(7)(v)-9 TRANS Cust'!P352+'FR-16(7)(v)-13 DIST Cust'!P352","v":54224},76172,0]
[18,null,{"$f":"'FR-16(7)(v)-1 Functional'!C353","v":"DEFERRED TAX"},{"$f":"'FR-16(7)(v)-1 Functional'!D353","v":"A315"},null,{"$f":"'FR-16(7)(v)-14 TOTAL CLASS'!P353","v":34712},{"$f":"'FR-16(7)(v)-3 PROD Demand'!P353+'FR-16(7)(v)-7 TRANS Demand'!P353+'FR-16(7)(v)-11 DIST Demand'!P353","v":3753},{"$f":"'FR-16(7)(v)-4 PROD Energy'!P353+'FR-16(7)(v)-8 TRANS Energy'!P353+'FR-16(7)(v)-12 DIST Energy'!P353","v":6249},{"$f":"'FR-16(7)(v)-5 PROD Cust'!P353+'FR-16(7)(v)-9 TRANS Cust'!P353+'FR-16(7)(v)-13 DIST Cust'!P353","v":24710},34712,0]
[19,null,{"$f":"'FR-16(7)(v)-1 Functional'!C354","v":"NET OPERATING LOSS"},{"$f":"'FR-16(7)(v)-1 Functional'!D354","v":"NP29"},null,{"$f":"'FR-16(7)(v)-14 TOTAL CLASS'!P354","v":0},{"$f":"'FR-16(7)(v)-3 PROD Demand'!P354+'FR-16(7)(v)-7 TRANS Demand'!P354+'FR-16(7)(v)-11 DIST Demand'!P354","v":0},{"$f":"'FR-16(7)(v)-4 PROD Energy'!P354+'FR-16(7)(v)-8 TRANS Energy'!P354+'FR-16(7)(v)-12 DIST Energy'!P354","v":0},{"$f":"'FR-16(7)(v)-5 PROD Cust'!P354+'FR-16(7)(v)-9 TRANS Cust'!P354+'FR-16(7)(v)-13 DIST Cust'!P354","v":0},0,0]
[20,null,{"$f":"'FR-16(7)(v)-1 Functional'!C355","v":"401K INCENTIVE PLAN"},{"$f":"'FR-16(7)(v)-1 Functional'!D355","v":"A315"},null,{"$f":"'FR-16(7)(v)-14 TOTAL CLASS'!P355","v":0},{"$f":"'FR-16(7)(v)-3 PROD Demand'!P355+'FR-16(7)(v)-7 TRANS Demand'!P355+'FR-16(7)(v)-11 DIST Demand'!P355","v":0},{"$f":"'FR-16(7)(v)-4 PROD Energy'!P355+'FR-16(7)(v)-8 TRANS Energy'!P355+'FR-16(7)(v)-12 DIST Energy'!P355","v":0},{"$f":"'FR-16(7)(v)-5 PROD Cust'!P355+'FR-16(7)(v)-9 TRANS Cust'!P355+'FR-16(7)(v)-13 DIST Cust'!P355","v":0},0,0]
[21,null,{"$f":"'FR-16(7)(v)-1 Functional'!C356","v":"ENVIRONMENTAL RESERVE"},{"$f":"'FR-16(7)(v)-1 Functional'!D356","v":"NP29"},null,{"$f":"'FR-16(7)(v)-14 TOTAL CLASS'!P356","v":0},{"$f":"'FR-16(7)(v)-3 PROD Demand'!P356+'FR-16(7)(v)-7 TRANS Demand'!P356+'FR-16(7)(v)-11 DIST Demand'!P356","v":0},{"$f":"'FR-16(7)(v)-4 PROD Energy'!P356+'FR-16(7)(v)-8 TRANS Energy'!P356+'FR-16(7)(v)-12 DIST Energy'!P356","v":0},{"$f":"'FR-16(7)(v)-5 PROD Cust'!P356+'FR-16(7)(v)-9 TRANS Cust'!P356+'FR-16(7)(v)-13 DIST Cust'!P356","v":0},0,0]
[22,null,{"$f":"'FR-16(7)(v)-1 Functional'!C357","v":"VACATION PAY ACCRUALS"},{"$f":"'FR-16(7)(v)-1 Functional'!D357","v":"A315"},null,{"$f":"'FR-16(7)(v)-14 TOTAL CLASS'!P357","v":3763},{"$f":"'FR-16(7)(v)-3 PROD Demand'!P357+'FR-16(7)(v)-7 TRANS Demand'!P357+'FR-16(7)(v)-11 DIST Demand'!P357","v":407},{"$f":"'FR-16(7)(v)-4 PROD Energy'!P357+'FR-16(7)(v)-8 TRANS Energy'!P357+'FR-16(7)(v)-12 DIST Energy'!P357","v":677},{"$f":"'FR-16(7)(v)-5 PROD Cust'!P357+'FR-16(7)(v)-9 TRANS Cust'!P357+'FR-16(7)(v)-13 DIST Cust'!P357","v":2679},3763,0]
[23,null,{"$f":"'FR-16(7)(v)-1 Functional'!C358","v":"DEMAND SIDE MANAGEMENT DEFERRAL"},{"$f":"'FR-16(7)(v)-1 Functional'!D358","v":"NP29"},null,{"$f":"'FR-16(7)(v)-14 TOTAL CLASS'!P358","v":3210},{"$f":"'FR-16(7)(v)-3 PROD Demand'!P358+'FR-16(7)(v)-7 TRANS Demand'!P358+'FR-16(7)(v)-11 DIST Demand'!P358","v":1613},{"$f":"'FR-16(7)(v)-4 PROD Energy'!P358+'FR-16(7)(v)-8 TRANS Energy'!P358+'FR-16(7)(v)-12 DIST Energy'!P358","v":37},{"$f":"'FR-16(7)(v)-5 PROD Cust'!P358+'FR-16(7)(v)-9 TRANS Cust'!P358+'FR-16(7)(v)-13 DIST Cust'!P358","v":1560},3210,0]
[24,null,{"$f":"'FR-16(7)(v)-1 Functional'!C359","v":"OPERATING LEASE OBLIGATION"},{"$f":"'FR-16(7)(v)-1 Functional'!D359","v":"NP29"},null,{"$f":"'FR-16(7)(v)-14 TOTAL CLASS'!P359","v":11879},{"$f":"'FR-16(7)(v)-3 PROD Demand'!P359+'FR-16(7)(v)-7 TRANS Demand'!P359+'FR-16(7)(v)-11 DIST Demand'!P359","v":5968},{"$f":"'FR-16(7)(v)-4 PROD Energy'!P359+'FR-16(7)(v)-8 TRANS Energy'!P359+'FR-16(7)(v)-12 DIST Energy'!P359","v":139},{"$f":"'FR-16(7)(v)-5 PROD Cust'!P359+'FR-16(7)(v)-9 TRANS Cust'!P359+'FR-16(7)(v)-13 DIST Cust'!P359","v":5772},11879,0]
[25,null,{"$f":"'FR-16(7)(v)-1 Functional'!C360","v":"INJURIES & DAMAGES"},{"$f":"'FR-16(7)(v)-1 Functional'!D360","v":"NP29"},null,{"$f":"'FR-16(7)(v)-14 TOTAL CLASS'!P360","v":0},{"$f":"'FR-16(7)(v)-3 PROD Demand'!P360+'FR-16(7)(v)-7 TRANS Demand'!P360+'FR-16(7)(v)-11 DIST Demand'!P360","v":0},{"$f":"'FR-16(7)(v)-4 PROD Energy'!P360+'FR-16(7)(v)-8 TRANS Energy'!P360+'FR-16(7)(v)-12 DIST Energy'!P360","v":0},{"$f":"'FR-16(7)(v)-5 PROD Cust'!P360+'FR-16(7)(v)-9 TRANS Cust'!P360+'FR-16(7)(v)-13 DIST Cust'!P360","v":0},0,0]
[26,null,{"$f":"'FR-16(7)(v)-1 Functional'!C361","v":"  TOTAL ACCOUNT 190"},null,null,{"$f":"SUM(F337:F360)","v":155842},22790,25505,107547,155842,0]
[27]
[28," OTHER"]
[29,null,{"$f":"'FR-16(7)(v)-1 Functional'!C364","v":"RESERVED FOR FUTURE USE"},{"$f":"'FR-16(7)(v)-1 Functional'!D364","v":"NP29"},null,{"$f":"'FR-16(7)(v)-14 TOTAL CLASS'!P364","v":0},{"$f":"'FR-16(7)(v)-3 PROD Demand'!P364+'FR-16(7)(v)-7 TRANS Demand'!P364+'FR-16(7)(v)-11 DIST Demand'!P364","v":0},{"$f":"'FR-16(7)(v)-4 PROD Energy'!P364+'FR-16(7)(v)-8 TRANS Energy'!P364+'FR-16(7)(v)-12 DIST Energy'!P364","v":0},{"$f":"'FR-16(7)(v)-5 PROD Cust'!P364+'FR-16(7)(v)-9 TRANS Cust'!P364+'FR-16(7)(v)-13 DIST Cust'!P364","v":0},{"$f":"SUM(G364:I364)","v":0},{"$f":"F364-J364","v":0}]
[30,null,{"$f":"'FR-16(7)(v)-1 Functional'!C365","v":"RATE CASE EXPENSE REGULATORY ASSET"},{"$f":"'FR-16(7)(v)-1 Functional'!D365","v":"NP29"},null,{"$f":"'FR-16(7)(v)-14 TOTAL CLASS'!P365","v":4812},{"$f":"'FR-16(7)(v)-3 PROD Demand'!P365+'FR-16(7)(v)-7 TRANS Demand'!P365+'FR-16(7)(v)-11 DIST Demand'!P365","v":2418},{"$f":"'FR-16(7)(v)-4 PROD Energy'!P365+'FR-16(7)(v)-8 TRANS Energy'!P365+'FR-16(7)(v)-12 DIST Energy'!P365","v":56},{"$f":"'FR-16(7)(v)-5 PROD Cust'!P365+'FR-16(7)(v)-9 TRANS Cust'!P365+'FR-16(7)(v)-13 DIST Cust'!P365","v":2338},{"$f":"SUM(G365:I365)","v":4812},{"$f":"F365-J365","v":0}]
[31,null,{"$f":"'FR-16(7)(v)-1 Functional'!C366","v":"RESERVED FOR FUTURE USE"},{"$f":"'FR-16(7)(v)-1 Functional'!D366","v":"NP29"},null,{"$f":"'FR-16(7)(v)-14 TOTAL CLASS'!P366","v":0},{"$f":"'FR-16(7)(v)-3 PROD Demand'!P366+'FR-16(7)(v)-7 TRANS Demand'!P366+'FR-16(7)(v)-11 DIST Demand'!P366","v":0},{"$f":"'FR-16(7)(v)-4 PROD Energy'!P366+'FR-16(7)(v)-8 TRANS Energy'!P366+'FR-16(7)(v)-12 DIST Energy'!P366","v":0},{"$f":"'FR-16(7)(v)-5 PROD Cust'!P366+'FR-16(7)(v)-9 TRANS Cust'!P366+'FR-16(7)(v)-13 DIST Cust'!P366","v":0},{"$f":"SUM(G366:I366)","v":0},{"$f":"F366-J366","v":0}]
[32,null,{"$f":"'FR-16(7)(v)-1 Functional'!C367","v":"  OTHER"},null,null,{"$f":"SUM(F364:F366)","v":4812},{"$f":"SUM(G363:G366)","v":2418},{"$f":"SUM(H363:H366)","v":56},{"$f":"SUM(I363:I366)","v":2338},{"$f":"SUM(J363:J366)","v":4812},{"$f":"SUM(K363:K366)","v":0}]
[33,null,null,null,null," "]
[34,"CONSTRUCTION WORK IN PROGRESS"]
[35,null,{"$f":"'FR-16(7)(v)-1 Functional'!C370","v":"PRODUCTION"},{"$f":"'FR-16(7)(v)-1 Functional'!D370","v":"P129"},null,{"$f":"'FR-16(7)(v)-14 TOTAL CLASS'!P370","v":0},{"$f":"'FR-16(7)(v)-3 PROD Demand'!P370+'FR-16(7)(v)-7 TRANS Demand'!P370+'FR-16(7)(v)-11 DIST Demand'!P370","v":0},{"$f":"'FR-16(7)(v)-4 PROD Energy'!P370+'FR-16(7)(v)-8 TRANS Energy'!P370+'FR-16(7)(v)-12 DIST Energy'!P370","v":0},{"$f":"'FR-16(7)(v)-5 PROD Cust'!P370+'FR-16(7)(v)-9 TRANS Cust'!P370+'FR-16(7)(v)-13 DIST Cust'!P370","v":0},{"$f":"SUM(G370:I370)","v":0},{"$f":"F370-J370","v":0}]
[36,null,{"$f":"'FR-16(7)(v)-1 Functional'!C371","v":"TRANSMISSION"},{"$f":"'FR-16(7)(v)-1 Functional'!D371","v":"T129"},null,{"$f":"'FR-16(7)(v)-14 TOTAL CLASS'!P371","v":0},{"$f":"'FR-16(7)(v)-3 PROD Demand'!P371+'FR-16(7)(v)-7 TRANS Demand'!P371+'FR-16(7)(v)-11 DIST Demand'!P371","v":0},{"$f":"'FR-16(7)(v)-4 PROD Energy'!P371+'FR-16(7)(v)-8 TRANS Energy'!P371+'FR-16(7)(v)-12 DIST Energy'!P371","v":0},{"$f":"'FR-16(7)(v)-5 PROD Cust'!P371+'FR-16(7)(v)-9 TRANS Cust'!P371+'FR-16(7)(v)-13 DIST Cust'!P371","v":0},{"$f":"SUM(G371:I371)","v":0},{"$f":"F371-J371","v":0}]
[37,null,{"$f":"'FR-16(7)(v)-1 Functional'!C372","v":"DISTRIBUTION"},{"$f":"'FR-16(7)(v)-1 Functional'!D372","v":"D149"},null,{"$f":"'FR-16(7)(v)-14 TOTAL CLASS'!P372","v":0},{"$f":"'FR-16(7)(v)-3 PROD Demand'!P372+'FR-16(7)(v)-7 TRANS Demand'!P372+'FR-16(7)(v)-11 DIST Demand'!P372","v":0},{"$f":"'FR-16(7)(v)-4 PROD Energy'!P372+'FR-16(7)(v)-8 TRANS Energy'!P372+'FR-16(7)(v)-12 DIST Energy'!P372","v":0},{"$f":"'FR-16(7)(v)-5 PROD Cust'!P372+'FR-16(7)(v)-9 TRANS Cust'!P372+'FR-16(7)(v)-13 DIST Cust'!P372","v":0},{"$f":"SUM(G372:I372)","v":0},{"$f":"F372-J372","v":0}]
[38,null,{"$f":"'FR-16(7)(v)-1 Functional'!C373","v":"COMMON"},{"$f":"'FR-16(7)(v)-1 Functional'!D373","v":"C129"},null,{"$f":"'FR-16(7)(v)-14 TOTAL CLASS'!P373","v":0},{"$f":"'FR-16(7)(v)-3 PROD Demand'!P373+'FR-16(7)(v)-7 TRANS Demand'!P373+'FR-16(7)(v)-11 DIST Demand'!P373","v":0},{"$f":"'FR-16(7)(v)-4 PROD Energy'!P373+'FR-16(7)(v)-8 TRANS Energy'!P373+'FR-16(7)(v)-12 DIST Energy'!P373","v":0},{"$f":"'FR-16(7)(v)-5 PROD Cust'!P373+'FR-16(7)(v)-9 TRANS Cust'!P373+'FR-16(7)(v)-13 DIST Cust'!P373","v":0},{"$f":"SUM(G373:I373)","v":0},{"$f":"F373-J373","v":0}]
[39,null,{"$f":"'FR-16(7)(v)-1 Functional'!C374","v":"GENERAL"},{"$f":"'FR-16(7)(v)-1 Functional'!D374","v":"G129"},null,{"$f":"'FR-16(7)(v)-14 TOTAL CLASS'!P374","v":0},{"$f":"'FR-16(7)(v)-3 PROD Demand'!P374+'FR-16(7)(v)-7 TRANS Demand'!P374+'FR-16(7)(v)-11 DIST Demand'!P374","v":0},{"$f":"'FR-16(7)(v)-4 PROD Energy'!P374+'FR-16(7)(v)-8 TRANS Energy'!P374+'FR-16(7)(v)-12 DIST Energy'!P374","v":0},{"$f":"'FR-16(7)(v)-5 PROD Cust'!P374+'FR-16(7)(v)-9 TRANS Cust'!P374+'FR-16(7)(v)-13 DIST Cust'!P374","v":0},{"$f":"SUM(G374:I374)","v":0},{"$f":"F374-J374","v":0}]
[40,null,{"$f":"'FR-16(7)(v)-1 Functional'!C375","v":"TOTAL CONSTRUCTION WORK IN PROGRESS"},null,null,{"$f":"SUM(F370:F374)","v":0},0,0,0,0,0]
[41]
[42,{"$f":"'FR-16(7)(v)-1 Functional'!B377","v":"TOTAL ADDITIVE RATE BASE ADJUSTMENTS"},null,null,null,{"$f":"F361+F367+F375","v":160654},25208,25561,109885,160654,0]
[]
[{"$f":"co_name","v":"DUKE ENERGY KENTUCKY, INC."},null,null,null,null,null,null,null,null,{"$f":"J1","v":"FR-16(7)(v)-24"}]
[{"$f":"$A$2","v":"LIGHTING CLASSIFIED - ELECTRIC COST OF SERVICE"},null,null,null,null,null,null,null,null,{"$f":"J2","v":"WITNESS RESPONSIBLE:"}]
[{"$f":"case_name","v":"CASE NO: 2019-00271"},null,null,null,null,null,null,null,null,{"$f":"Witness","v":"JAMES E. ZIOLKOWSKI"}]
[{"$f":"data_filing","v":"DATA: 12 MONTHS ACTUAL  & 0 MONTHS ESTIMATED"},null,null,null,null,null,null,null,null,{"$f":"\"PAGE \"&Pages2-8&\" OF \"&Pages2","v":"PAGE 7 OF 15"}]
[{"$f":"type","v":"TYPE OF FILING: \"X\" ORIGINAL   UPDATED    REVISED  "}]
[]
[]
["LINE",null,null,null,null,"TOTAL","CLASSIFIED",null,null,"TOTAL","ALL"]
["NO.","WORKING CAPITAL",null,"ALLO",null,{"$f":"$F$9","v":"LIGHTING"},{"$f":"G9","v":"DEMAND"},"ENERGY","CUSTOMER","AT ISSUE","OTHER"]
[null,null,"Schedule 5.2",null,null,null,3,4,5]
[]
[1,"NET ORIGINAL COST RATE BASE",null,null,null,{"$f":"F277-F324+F377","v":4556699},2274931,30301,2251467,4556699,0]
[2]
[3,"WORKING CAPITAL"]
[4]
[5,"PLANT MATERIALS & SUPPLIES"]
[6,null,{"$f":"'FR-16(7)(v)-1 Functional'!C395","v":"OTHER MATERIALS & SUPPLIES"},{"$f":"'FR-16(7)(v)-1 Functional'!D395","v":"PD29"},null,{"$f":"'FR-16(7)(v)-14 TOTAL CLASS'!P395","v":49361},{"$f":"'FR-16(7)(v)-3 PROD Demand'!P395+'FR-16(7)(v)-7 TRANS Demand'!P395+'FR-16(7)(v)-11 DIST Demand'!P395","v":9477},{"$f":"'FR-16(7)(v)-4 PROD Energy'!P395+'FR-16(7)(v)-8 TRANS Energy'!P395+'FR-16(7)(v)-12 DIST Energy'!P395","v":23003},{"$f":"'FR-16(7)(v)-5 PROD Cust'!P395+'FR-16(7)(v)-9 TRANS Cust'!P395+'FR-16(7)(v)-13 DIST Cust'!P395","v":16881},{"$f":"SUM(G395:I395)","v":49361},{"$f":"F395-J395","v":0}]
[7,null,{"$f":"'FR-16(7)(v)-1 Functional'!C396","v":"FUEL"},{"$f":"'FR-16(7)(v)-1 Functional'!D396","v":"K301"},null,{"$f":"'FR-16(7)(v)-14 TOTAL CLASS'!P396","v":85099},{"$f":"'FR-16(7)(v)-3 PROD Demand'!P396+'FR-16(7)(v)-7 TRANS Demand'!P396+'FR-16(7)(v)-11 DIST Demand'!P396","v":0},{"$f":"'FR-16(7)(v)-4 PROD Energy'!P396+'FR-16(7)(v)-8 TRANS Energy'!P396+'FR-16(7)(v)-12 DIST Energy'!P396","v":85099},{"$f":"'FR-16(7)(v)-5 PROD Cust'!P396+'FR-16(7)(v)-9 TRANS Cust'!P396+'FR-16(7)(v)-13 DIST Cust'!P396","v":0},{"$f":"SUM(G396:I396)","v":85099},{"$f":"F396-J396","v":0}]
[8,null,{"$f":"'FR-16(7)(v)-1 Functional'!C397","v":"EMISSION ALLOWANCES"},{"$f":"'FR-16(7)(v)-1 Functional'!D397","v":"K301"},null,{"$f":"'FR-16(7)(v)-14 TOTAL CLASS'!P397","v":0},{"$f":"'FR-16(7)(v)-3 PROD Demand'!P397+'FR-16(7)(v)-7 TRANS Demand'!P397+'FR-16(7)(v)-11 DIST Demand'!P397","v":0},{"$f":"'FR-16(7)(v)-4 PROD Energy'!P397+'FR-16(7)(v)-8 TRANS Energy'!P397+'FR-16(7)(v)-12 DIST Energy'!P397","v":0},{"$f":"'FR-16(7)(v)-5 PROD Cust'!P397+'FR-16(7)(v)-9 TRANS Cust'!P397+'FR-16(7)(v)-13 DIST Cust'!P397","v":0},{"$f":"SUM(G397:I397)","v":0},{"$f":"F397-J397","v":0}]
[9,null,{"$f":"'FR-16(7)(v)-1 Functional'!C398","v":"  TOTAL PLANT MATS. & SUPPLIES"},null,null,{"$f":"SUM(F394:F397)","v":134460},9477,108102,16881,134460,0]
[10,"TOTAL MATERIALS & SUPPLIES",null,null,null,{"$f":"F398","v":134460},9477,108102,16881,134460,0]
[11]
[12,"PREPAYMENTS"]
[13,null,{"$f":"'FR-16(7)(v)-1 Functional'!C402","v":"INSURANCE GENERAL"},{"$f":"'FR-16(7)(v)-1 Functional'!D402","v":"NP29"},null,{"$f":"'FR-16(7)(v)-14 TOTAL CLASS'!P402","v":1420},{"$f":"'FR-16(7)(v)-3 PROD Demand'!P402+'FR-16(7)(v)-7 TRANS Demand'!P402+'FR-16(7)(v)-11 DIST Demand'!P402","v":713},{"$f":"'FR-16(7)(v)-4 PROD Energy'!P402+'FR-16(7)(v)-8 TRANS Energy'!P402+'FR-16(7)(v)-12 DIST Energy'!P402","v":17},{"$f":"'FR-16(7)(v)-5 PROD Cust'!P402+'FR-16(7)(v)-9 TRANS Cust'!P402+'FR-16(7)(v)-13 DIST Cust'!P402","v":690},{"$f":"SUM(G402:I402)","v":1420},{"$f":"F402-J402","v":0}]
[14,null,{"$f":"'FR-16(7)(v)-1 Functional'!C403","v":"EXCISE TAX"},{"$f":"'FR-16(7)(v)-1 Functional'!D403","v":"NP29"},null,{"$f":"'FR-16(7)(v)-14 TOTAL CLASS'!P403","v":0},{"$f":"'FR-16(7)(v)-3 PROD Demand'!P403+'FR-16(7)(v)-7 TRANS Demand'!P403+'FR-16(7)(v)-11 DIST Demand'!P403","v":0},{"$f":"'FR-16(7)(v)-4 PROD Energy'!P403+'FR-16(7)(v)-8 TRANS Energy'!P403+'FR-16(7)(v)-12 DIST Energy'!P403","v":0},{"$f":"'FR-16(7)(v)-5 PROD Cust'!P403+'FR-16(7)(v)-9 TRANS Cust'!P403+'FR-16(7)(v)-13 DIST Cust'!P403","v":0},{"$f":"SUM(G403:I403)","v":0},{"$f":"F403-J403","v":0}]
[15,null,{"$f":"'FR-16(7)(v)-1 Functional'!C404","v":"COLLATERAL ASSET"},{"$f":"'FR-16(7)(v)-1 Functional'!D404","v":"K301"},null,{"$f":"'FR-16(7)(v)-14 TOTAL CLASS'!P404","v":-192},{"$f":"'FR-16(7)(v)-3 PROD Demand'!P404+'FR-16(7)(v)-7 TRANS Demand'!P404+'FR-16(7)(v)-11 DIST Demand'!P404","v":0},{"$f":"'FR-16(7)(v)-4 PROD Energy'!P404+'FR-16(7)(v)-8 TRANS Energy'!P404+'FR-16(7)(v)-12 DIST Energy'!P404","v":-192},{"$f":"'FR-16(7)(v)-5 PROD Cust'!P404+'FR-16(7)(v)-9 TRANS Cust'!P404+'FR-16(7)(v)-13 DIST Cust'!P404","v":0},{"$f":"SUM(G404:I404)","v":-192},{"$f":"F404-J404","v":0}]
[16,null,{"$f":"'FR-16(7)(v)-1 Functional'!C405","v":"  TOTAL PREPAYMENTS"},null,null,{"$f":"SUM(F401:F404)","v":1228},713,-175,690,1228,0]
[17]
[18,"AUTO CALC (O&M-ELECTRIC FUEL COST)/8",null,null,null,{"$f":"'FR-16(7)(v)-14 TOTAL CLASS'!P407","v":18557},{"$f":"'FR-16(7)(v)-3 PROD Demand'!P407+'FR-16(7)(v)-7 TRANS Demand'!P407+'FR-16(7)(v)-11 DIST Demand'!P407","v":18557},{"$f":"'FR-16(7)(v)-4 PROD Energy'!P407+'FR-16(7)(v)-8 TRANS Energy'!P407+'FR-16(7)(v)-12 DIST Energy'!P407","v":0},{"$f":"'FR-16(7)(v)-5 PROD Cust'!P407+'FR-16(7)(v)-9 TRANS Cust'!P407+'FR-16(7)(v)-13 DIST Cust'!P407","v":0},{"$f":"SUM(G407:I407)","v":18557},{"$f":"F407-J407","v":0}]
[19,"  TOTAL WORKING CASH",null,null,null,{"$f":"F407","v":18557},18557,0,0,18557,0]
[20]
[21,"MISCELLANEOUS WORKING CAPITAL"]
[22,null,{"$f":"'FR-16(7)(v)-1 Functional'!C411","v":"RESERVED FOR FUTURE USE"},{"$f":"'FR-16(7)(v)-1 Functional'!D411","v":"K301"},null,{"$f":"'FR-16(7)(v)-14 TOTAL CLASS'!P411","v":0},{"$f":"'FR-16(7)(v)-3 PROD Demand'!P411+'FR-16(7)(v)-7 TRANS Demand'!P411+'FR-16(7)(v)-11 DIST Demand'!P411","v":0},{"$f":"'FR-16(7)(v)-4 PROD Energy'!P411+'FR-16(7)(v)-8 TRANS Energy'!P411+'FR-16(7)(v)-12 DIST Energy'!P411","v":0},{"$f":"'FR-16(7)(v)-5 PROD Cust'!P411+'FR-16(7)(v)-9 TRANS Cust'!P411+'FR-16(7)(v)-13 DIST Cust'!P411","v":0},{"$f":"SUM(G411:I411)","v":0},{"$f":"F411-J411","v":0}]
[23,null,{"$f":"'FR-16(7)(v)-1 Functional'!C412","v":"PIPP UNCOLLECTIBLES"},{"$f":"'FR-16(7)(v)-1 Functional'!D412","v":"A315"},null,{"$f":"'FR-16(7)(v)-14 TOTAL CLASS'!P412","v":0},{"$f":"'FR-16(7)(v)-3 PROD Demand'!P412+'FR-16(7)(v)-7 TRANS Demand'!P412+'FR-16(7)(v)-11 DIST Demand'!P412","v":0},{"$f":"'FR-16(7)(v)-4 PROD Energy'!P412+'FR-16(7)(v)-8 TRANS Energy'!P412+'FR-16(7)(v)-12 DIST Energy'!P412","v":0},{"$f":"'FR-16(7)(v)-5 PROD Cust'!P412+'FR-16(7)(v)-9 TRANS Cust'!P412+'FR-16(7)(v)-13 DIST Cust'!P412","v":0},{"$f":"SUM(G412:I412)","v":0},{"$f":"F412-J412","v":0}]
[24,null,{"$f":"'FR-16(7)(v)-1 Functional'!C413","v":"RESERVED FOR FUTURE USE"},{"$f":"'FR-16(7)(v)-1 Functional'!D413","v":"D249"},null,{"$f":"'FR-16(7)(v)-14 TOTAL CLASS'!P413","v":0},{"$f":"'FR-16(7)(v)-3 PROD Demand'!P413+'FR-16(7)(v)-7 TRANS Demand'!P413+'FR-16(7)(v)-11 DIST Demand'!P413","v":0},{"$f":"'FR-16(7)(v)-4 PROD Energy'!P413+'FR-16(7)(v)-8 TRANS Energy'!P413+'FR-16(7)(v)-12 DIST Energy'!P413","v":0},{"$f":"'FR-16(7)(v)-5 PROD Cust'!P413+'FR-16(7)(v)-9 TRANS Cust'!P413+'FR-16(7)(v)-13 DIST Cust'!P413","v":0},{"$f":"SUM(G413:I413)","v":0},{"$f":"F413-J413","v":0}]
[25,null,{"$f":"'FR-16(7)(v)-1 Functional'!C414","v":"  TOTAL MISC WORK CAPITAL"},null,null,{"$f":"SUM(F410:F413)","v":0},0,0,0,0,0]
[26]
[27,"TOTAL WORKING CAPITAL",null,null,null,{"$f":"F399+F405+F408+F414","v":154245},28747,107927,17571,154245,0]
[28,"PRELIMINARY SUMMARY"]
[29,null,{"$f":"'FR-16(7)(v)-1 Functional'!C418","v":"TOTAL ACCUMULATED DEFERRED INCOME TAXES"},null,null,{"$f":"-F324","v":-1475154},-684157,-63527,-727470,-1475154,0]
[30,null,{"$f":"'FR-16(7)(v)-1 Functional'!C419","v":"TOTAL OTHER ACCUMULATED DEFERRED INCOME TAXES"},null,null,{"$f":"F377","v":160654},25208,25561,109885,160654,0]
[31,null,{"$f":"'FR-16(7)(v)-1 Functional'!C420","v":"TOTAL WORKING CAPITAL"},null,null,{"$f":"F416","v":154245},28747,107927,17571,154245,0]
[32,null,{"$f":"'FR-16(7)(v)-1 Functional'!C421","v":"  TOTAL RATE BASE ADJUSTMENTS"},null,null,{"$f":"SUM(F417:F420)","v":-1160255},-630202,69961,-600014,-1160255,0]
[33]
[34,"RATE BASE CALCULATION"]
[35,null,{"$f":"'FR-16(7)(v)-1 Functional'!C424","v":"NET ELECTRIC PLANT IN SERVICE"},null,null,{"$f":"F277","v":5871199},2933880,68267,2869052,5871199,0]
[36,null,{"$f":"'FR-16(7)(v)-1 Functional'!C425","v":"TOTAL RATE BASE ADJUSTMENTS"},null,null,{"$f":"F421","v":-1160255},-630202,69961,-600014,-1160255,0]
[37,null,{"$f":"'FR-16(7)(v)-1 Functional'!C426","v":"  TOTAL RATE BASE"},null,null,{"$f":"SUM(F423:F425)","v":4710944},2303678,138228,2269038,4710944,0]
[38]
[39,"TOTAL RATE OF RETURN ALLOWABLE",null,null,null,{"$f":"$F$811","v":6.7100000000000007E-2},{"$f":"F811","v":6.7100000000000007E-2},{"$f":"F811","v":6.7100000000000007E-2},{"$f":"F811","v":6.7100000000000007E-2},{"$f":"F811","v":6.7100000000000007E-2}]
[40,"RETURN ON RATE BASE",null,null,null,{"$f":"ROUND(F428*F426,0)","v":316104},{"$f":"F429-SUM(H429:I429)","v":154577},{"$f":"ROUND(H426*H428,0)","v":9275},{"$f":"ROUND(I426*I428,0)","v":152252},{"$f":"SUM(G429:I429)","v":316104},{"$f":"ROUND(K426*K428,0)","v":0}]
[41]
[42,{"$f":"'FR-16(7)(v)-1 Functional'!B431","v":"ELECTRIC RATE BASE"},null,{"$f":"'FR-16(7)(v)-1 Functional'!D431","v":"RB99"},null,{"$f":"'FR-16(7)(v)-14 TOTAL CLASS'!P431","v":4693439},{"$f":"'FR-16(7)(v)-3 PROD Demand'!P431+'FR-16(7)(v)-7 TRANS Demand'!P431+'FR-16(7)(v)-11 DIST Demand'!P431","v":2308774},{"$f":"'FR-16(7)(v)-4 PROD Energy'!P431+'FR-16(7)(v)-8 TRANS Energy'!P431+'FR-16(7)(v)-12 DIST Energy'!P431","v":138288},{"$f":"'FR-16(7)(v)-5 PROD Cust'!P431+'FR-16(7)(v)-9 TRANS Cust'!P431+'FR-16(7)(v)-13 DIST Cust'!P431","v":2246377},{"$f":"SUM(G431:I431)","v":4693439},{"$f":"F431-J431","v":0}]
[43,{"$f":"'FR-16(7)(v)-1 Functional'!B432","v":"TOTAL RATE OF RETURN ALLOWABLE"},null,null,null,{"$f":"RofR","v":6.7110000000000003E-2},{"$f":"RofR","v":6.7110000000000003E-2},{"$f":"RofR","v":6.7110000000000003E-2},{"$f":"RofR","v":6.7110000000000003E-2},{"$f":"RofR","v":6.7110000000000003E-2}]
[44,{"$f":"'FR-16(7)(v)-1 Functional'!B433","v":"RETURN ON RATE BASE"},null,null,null,{"$f":"ROUND(F431*F432,0)","v":314977},{"$f":"F433-H433-I433","v":154942},{"$f":"ROUND(H431*H432,0)","v":9281},{"$f":"ROUND(I431*I432,0)","v":150754},{"$f":"ROUND(J431*J432,0)","v":314977},{"$f":"F433-J433","v":0}]
[]
[{"$f":"co_name","v":"DUKE ENERGY KENTUCKY, INC."},null,null,null,null,null,null,null,null,{"$f":"J1","v":"FR-16(7)(v)-24"}]
[{"$f":"$A$2","v":"LIGHTING CLASSIFIED - ELECTRIC COST OF SERVICE"},null,null,null,null,null,null,null,null,{"$f":"J2","v":"WITNESS RESPONSIBLE:"}]
[{"$f":"case_name","v":"CASE NO: 2019-00271"},null,null,null,null,null,null,null,null,{"$f":"Witness","v":"JAMES E. ZIOLKOWSKI"}]
[{"$f":"data_filing","v":"DATA: 12 MONTHS ACTUAL  & 0 MONTHS ESTIMATED"},null,null,null,null,null,null,null,null,{"$f":"\"PAGE \"&Pages2-7&\" OF \"&Pages2","v":"PAGE 8 OF 15"}]
[{"$f":"type","v":"TYPE OF FILING: \"X\" ORIGINAL   UPDATED    REVISED  "}]
[]
[]
["LINE",null,null,null,null,"TOTAL","CLASSIFIED",null,null,"TOTAL","ALL"]
["NO.","O&M EXPENSES",null,"ALLO",null,{"$f":"$F$9","v":"LIGHTING"},{"$f":"G9","v":"DEMAND"},"ENERGY","CUSTOMER","AT ISSUE","OTHER"]
[null,null,"Schedule 6",null,null,null,3,4,5]
[1,"PRODUCTION O&M"]
[2,{"$f":"'FR-16(7)(v)-1 Functional'!B446","v":"ENERGY RELATED PRODUCTION O&M"}]
[3,null,{"$f":"'FR-16(7)(v)-1 Functional'!C447","v":"FUEL"},{"$f":"'FR-16(7)(v)-1 Functional'!D447","v":"K302"},null,{"$f":"'FR-16(7)(v)-14 TOTAL CLASS'!P447","v":0},{"$f":"'FR-16(7)(v)-3 PROD Demand'!P447+'FR-16(7)(v)-7 TRANS Demand'!P447+'FR-16(7)(v)-11 DIST Demand'!P447","v":0},{"$f":"'FR-16(7)(v)-4 PROD Energy'!P447+'FR-16(7)(v)-8 TRANS Energy'!P447+'FR-16(7)(v)-12 DIST Energy'!P447","v":0},{"$f":"'FR-16(7)(v)-5 PROD Cust'!P447+'FR-16(7)(v)-9 TRANS Cust'!P447+'FR-16(7)(v)-13 DIST Cust'!P447","v":0},{"$f":"SUM(G447:I447)","v":0},{"$f":"F447-J447","v":0}]
[4,null,{"$f":"'FR-16(7)(v)-1 Functional'!C448","v":"FUEL AND PURCHASED POWER ADJUSTMENT"},{"$f":"'FR-16(7)(v)-1 Functional'!D448","v":"K302"},null,{"$f":"'FR-16(7)(v)-14 TOTAL CLASS'!P448","v":439663},{"$f":"'FR-16(7)(v)-3 PROD Demand'!P448+'FR-16(7)(v)-7 TRANS Demand'!P448+'FR-16(7)(v)-11 DIST Demand'!P448","v":0},{"$f":"'FR-16(7)(v)-4 PROD Energy'!P448+'FR-16(7)(v)-8 TRANS Energy'!P448+'FR-16(7)(v)-12 DIST Energy'!P448","v":439663},{"$f":"'FR-16(7)(v)-5 PROD Cust'!P448+'FR-16(7)(v)-9 TRANS Cust'!P448+'FR-16(7)(v)-13 DIST Cust'!P448","v":0},439663,0]
[5,null,{"$f":"'FR-16(7)(v)-1 Functional'!C449","v":"EMISSION ALLOWANCES"},{"$f":"'FR-16(7)(v)-1 Functional'!D449","v":"K301"},null,{"$f":"'FR-16(7)(v)-14 TOTAL CLASS'!P449","v":0},{"$f":"'FR-16(7)(v)-3 PROD Demand'!P449+'FR-16(7)(v)-7 TRANS Demand'!P449+'FR-16(7)(v)-11 DIST Demand'!P449","v":0},{"$f":"'FR-16(7)(v)-4 PROD Energy'!P449+'FR-16(7)(v)-8 TRANS Energy'!P449+'FR-16(7)(v)-12 DIST Energy'!P449","v":0},{"$f":"'FR-16(7)(v)-5 PROD Cust'!P449+'FR-16(7)(v)-9 TRANS Cust'!P449+'FR-16(7)(v)-13 DIST Cust'!P449","v":0},0,0]
[6,null,{"$f":"'FR-16(7)(v)-1 Functional'!C450","v":"ELIMINATE EMISSION ALLOW & OTHER VAR COST"},{"$f":"'FR-16(7)(v)-1 Functional'!D450","v":"K301"},null,{"$f":"'FR-16(7)(v)-14 TOTAL CLASS'!P450","v":0},{"$f":"'FR-16(7)(v)-3 PROD Demand'!P450+'FR-16(7)(v)-7 TRANS Demand'!P450+'FR-16(7)(v)-11 DIST Demand'!P450","v":0},{"$f":"'FR-16(7)(v)-4 PROD Energy'!P450+'FR-16(7)(v)-8 TRANS Energy'!P450+'FR-16(7)(v)-12 DIST Energy'!P450","v":0},{"$f":"'FR-16(7)(v)-5 PROD Cust'!P450+'FR-16(7)(v)-9 TRANS Cust'!P450+'FR-16(7)(v)-13 DIST Cust'!P450","v":0},0,0]
[7,null,{"$f":"'FR-16(7)(v)-1 Functional'!C451","v":"OTHER PRODUCTION EXPENSE - MAINTENANCE"},{"$f":"'FR-16(7)(v)-1 Functional'!D451","v":"K301"},null,{"$f":"'FR-16(7)(v)-14 TOTAL CLASS'!P451","v":177381},{"$f":"'FR-16(7)(v)-3 PROD Demand'!P451+'FR-16(7)(v)-7 TRANS Demand'!P451+'FR-16(7)(v)-11 DIST Demand'!P451","v":0},{"$f":"'FR-16(7)(v)-4 PROD Energy'!P451+'FR-16(7)(v)-8 TRANS Energy'!P451+'FR-16(7)(v)-12 DIST Energy'!P451","v":177381},{"$f":"'FR-16(7)(v)-5 PROD Cust'!P451+'FR-16(7)(v)-9 TRANS Cust'!P451+'FR-16(7)(v)-13 DIST Cust'!P451","v":0},177381,0]
[8,null,{"$f":"'FR-16(7)(v)-1 Functional'!C452","v":"MISO TRANSMISSION CHARGES - ACCT 555"},{"$f":"'FR-16(7)(v)-1 Functional'!D452","v":"K301"},null,{"$f":"'FR-16(7)(v)-14 TOTAL CLASS'!P452","v":0},{"$f":"'FR-16(7)(v)-3 PROD Demand'!P452+'FR-16(7)(v)-7 TRANS Demand'!P452+'FR-16(7)(v)-11 DIST Demand'!P452","v":0},{"$f":"'FR-16(7)(v)-4 PROD Energy'!P452+'FR-16(7)(v)-8 TRANS Energy'!P452+'FR-16(7)(v)-12 DIST Energy'!P452","v":0},{"$f":"'FR-16(7)(v)-5 PROD Cust'!P452+'FR-16(7)(v)-9 TRANS Cust'!P452+'FR-16(7)(v)-13 DIST Cust'!P452","v":0},0,0]
[9,null,{"$f":"'FR-16(7)(v)-1 Functional'!C453","v":"  TOTAL ENERGY RELATED"},null,null,{"$f":"SUM(F447:F452)","v":617044},0,617044,0,617044,0]
[10]
[11,"DEMAND RELATED & OTHER PROD O&M"]
[12,null,{"$f":"'FR-16(7)(v)-1 Functional'!C456","v":"OTHER PRODUCTION EXPENSES - OPERATIONS"},{"$f":"'FR-16(7)(v)-1 Functional'!D456","v":"K201"},null,{"$f":"'FR-16(7)(v)-14 TOTAL CLASS'!P456","v":0},{"$f":"'FR-16(7)(v)-3 PROD Demand'!P456+'FR-16(7)(v)-7 TRANS Demand'!P456+'FR-16(7)(v)-11 DIST Demand'!P456","v":0},{"$f":"'FR-16(7)(v)-4 PROD Energy'!P456+'FR-16(7)(v)-8 TRANS Energy'!P456+'FR-16(7)(v)-12 DIST Energy'!P456","v":0},{"$f":"'FR-16(7)(v)-5 PROD Cust'!P456+'FR-16(7)(v)-9 TRANS Cust'!P456+'FR-16(7)(v)-13 DIST Cust'!P456","v":0},{"$f":"SUM(G456:I456)","v":0},{"$f":"F456-J456","v":0}]
[13,null,{"$f":"'FR-16(7)(v)-1 Functional'!C457","v":"  TOTAL DEMAND REL & OTH PROD O&M "},null,null,{"$f":"SUM(F455:F456)","v":0},0,0,0,0,0]
[14]
[15,"TOTAL PRODUCTION O&M",null,null," ",{"$f":"F457+F453","v":617044},0,617044,0,617044,0]
[16]
[17,"TRANSMISSION O & M"]
[18,null,{"$f":"'FR-16(7)(v)-1 Functional'!C462","v":"TRANSFORMER LEASE PAYMENTS"},{"$f":"'FR-16(7)(v)-1 Functional'!D462","v":"K202"},null,{"$f":"'FR-16(7)(v)-14 TOTAL CLASS'!P462","v":0},{"$f":"'FR-16(7)(v)-3 PROD Demand'!P462+'FR-16(7)(v)-7 TRANS Demand'!P462+'FR-16(7)(v)-11 DIST Demand'!P462","v":0},{"$f":"'FR-16(7)(v)-4 PROD Energy'!P462+'FR-16(7)(v)-8 TRANS Energy'!P462+'FR-16(7)(v)-12 DIST Energy'!P462","v":0},{"$f":"'FR-16(7)(v)-5 PROD Cust'!P462+'FR-16(7)(v)-9 TRANS Cust'!P462+'FR-16(7)(v)-13 DIST Cust'!P462","v":0},{"$f":"SUM(G462:I462)","v":0},{"$f":"F462-J462","v":0}]
[19,null,{"$f":"'FR-16(7)(v)-1 Functional'!C463","v":"OTHER TRANSMISSION"},{"$f":"'FR-16(7)(v)-1 Functional'!D463","v":"K202"},null,{"$f":"'FR-16(7)(v)-14 TOTAL CLASS'!P463","v":28708},{"$f":"'FR-16(7)(v)-3 PROD Demand'!P463+'FR-16(7)(v)-7 TRANS Demand'!P463+'FR-16(7)(v)-11 DIST Demand'!P463","v":28708},{"$f":"'FR-16(7)(v)-4 PROD Energy'!P463+'FR-16(7)(v)-8 TRANS Energy'!P463+'FR-16(7)(v)-12 DIST Energy'!P463","v":0},{"$f":"'FR-16(7)(v)-5 PROD Cust'!P463+'FR-16(7)(v)-9 TRANS Cust'!P463+'FR-16(7)(v)-13 DIST Cust'!P463","v":0},{"$f":"SUM(G463:I463)","v":28708},{"$f":"F463-J463","v":0}]
[20,null,{"$f":"'FR-16(7)(v)-1 Functional'!C464","v":"MISCELLANEOUS ADJUSTMENTS"},{"$f":"'FR-16(7)(v)-1 Functional'!D464","v":"K202"},null,{"$f":"'FR-16(7)(v)-14 TOTAL CLASS'!P464","v":0},{"$f":"'FR-16(7)(v)-3 PROD Demand'!P464+'FR-16(7)(v)-7 TRANS Demand'!P464+'FR-16(7)(v)-11 DIST Demand'!P464","v":0},{"$f":"'FR-16(7)(v)-4 PROD Energy'!P464+'FR-16(7)(v)-8 TRANS Energy'!P464+'FR-16(7)(v)-12 DIST Energy'!P464","v":0},{"$f":"'FR-16(7)(v)-5 PROD Cust'!P464+'FR-16(7)(v)-9 TRANS Cust'!P464+'FR-16(7)(v)-13 DIST Cust'!P464","v":0},{"$f":"SUM(G464:I464)","v":0},{"$f":"F464-J464","v":0}]
[21,null,{"$f":"'FR-16(7)(v)-1 Functional'!C465","v":"NETWORK SERVICE RATES ADJUSTMENT"},{"$f":"'FR-16(7)(v)-1 Functional'!D465","v":"K202"},null,{"$f":"'FR-16(7)(v)-14 TOTAL CLASS'!P465","v":0},{"$f":"'FR-16(7)(v)-3 PROD Demand'!P465+'FR-16(7)(v)-7 TRANS Demand'!P465+'FR-16(7)(v)-11 DIST Demand'!P465","v":0},{"$f":"'FR-16(7)(v)-4 PROD Energy'!P465+'FR-16(7)(v)-8 TRANS Energy'!P465+'FR-16(7)(v)-12 DIST Energy'!P465","v":0},{"$f":"'FR-16(7)(v)-5 PROD Cust'!P465+'FR-16(7)(v)-9 TRANS Cust'!P465+'FR-16(7)(v)-13 DIST Cust'!P465","v":0},{"$f":"SUM(G465:I465)","v":0},{"$f":"F465-J465","v":0}]
[22,null,{"$f":"'FR-16(7)(v)-1 Functional'!C466","v":"  TOTAL TRANSMISSION O & M"},null,null,{"$f":"SUM(F462:F465)","v":28708},28708,0,0,28708,0]
[23]
[24,"REGIONAL MARKET O&M"]
[25,null,{"$f":"'FR-16(7)(v)-1 Functional'!C469","v":"MARKET FACILITATION - MONITORING & COMPLIANCE"},{"$f":"'FR-16(7)(v)-1 Functional'!D469","v":"K202"},null,{"$f":"'FR-16(7)(v)-14 TOTAL CLASS'!P469","v":2265},{"$f":"'FR-16(7)(v)-3 PROD Demand'!P469+'FR-16(7)(v)-7 TRANS Demand'!P469+'FR-16(7)(v)-11 DIST Demand'!P469","v":2265},{"$f":"'FR-16(7)(v)-4 PROD Energy'!P469+'FR-16(7)(v)-8 TRANS Energy'!P469+'FR-16(7)(v)-12 DIST Energy'!P469","v":0},{"$f":"'FR-16(7)(v)-5 PROD Cust'!P469+'FR-16(7)(v)-9 TRANS Cust'!P469+'FR-16(7)(v)-13 DIST Cust'!P469","v":0},{"$f":"SUM(G469:I469)","v":2265},{"$f":"F469-J469","v":0}]
[26,null,{"$f":"'FR-16(7)(v)-1 Functional'!C470","v":"TOTAL REGIONAL MARKET O&M"},null,null,{"$f":"SUM(F468:F469)","v":2265},2265,0,0,2265,0]
[27]
[28,"DISTRIBUTION O & M"]
[29,null,{"$f":"'FR-16(7)(v)-1 Functional'!C473","v":"SUBSTATIONS"},{"$f":"'FR-16(7)(v)-1 Functional'!D473","v":"K201"},null,{"$f":"'FR-16(7)(v)-14 TOTAL CLASS'!P473","v":770},{"$f":"'FR-16(7)(v)-3 PROD Demand'!P473+'FR-16(7)(v)-7 TRANS Demand'!P473+'FR-16(7)(v)-11 DIST Demand'!P473","v":770},{"$f":"'FR-16(7)(v)-4 PROD Energy'!P473+'FR-16(7)(v)-8 TRANS Energy'!P473+'FR-16(7)(v)-12 DIST Energy'!P473","v":0},{"$f":"'FR-16(7)(v)-5 PROD Cust'!P473+'FR-16(7)(v)-9 TRANS Cust'!P473+'FR-16(7)(v)-13 DIST Cust'!P473","v":0},{"$f":"SUM(G473:I473)","v":770},{"$f":"F473-J473","v":0}]
[30,null,{"$f":"'FR-16(7)(v)-1 Functional'!C474","v":"POLES, TOWERS & FIXTURES"},{"$f":"'FR-16(7)(v)-1 Functional'!D474","v":"PL49"},null,{"$f":"'FR-16(7)(v)-14 TOTAL CLASS'!P474","v":0},{"$f":"'FR-16(7)(v)-3 PROD Demand'!P474+'FR-16(7)(v)-7 TRANS Demand'!P474+'FR-16(7)(v)-11 DIST Demand'!P474","v":0},{"$f":"'FR-16(7)(v)-4 PROD Energy'!P474+'FR-16(7)(v)-8 TRANS Energy'!P474+'FR-16(7)(v)-12 DIST Energy'!P474","v":0},{"$f":"'FR-16(7)(v)-5 PROD Cust'!P474+'FR-16(7)(v)-9 TRANS Cust'!P474+'FR-16(7)(v)-13 DIST Cust'!P474","v":0},0,0]
[31,null,{"$f":"'FR-16(7)(v)-1 Functional'!C475","v":"OVERHEAD LINES - PRIMARY / DEMAND"},{"$f":"'FR-16(7)(v)-1 Functional'!D475","v":"K205"},null,{"$f":"'FR-16(7)(v)-14 TOTAL CLASS'!P475","v":32476},{"$f":"'FR-16(7)(v)-3 PROD Demand'!P475+'FR-16(7)(v)-7 TRANS Demand'!P475+'FR-16(7)(v)-11 DIST Demand'!P475","v":32476},{"$f":"'FR-16(7)(v)-4 PROD Energy'!P475+'FR-16(7)(v)-8 TRANS Energy'!P475+'FR-16(7)(v)-12 DIST Energy'!P475","v":0},{"$f":"'FR-16(7)(v)-5 PROD Cust'!P475+'FR-16(7)(v)-9 TRANS Cust'!P475+'FR-16(7)(v)-13 DIST Cust'!P475","v":0},32476,0]
[32,null,{"$f":"'FR-16(7)(v)-1 Functional'!C476","v":"OVERHEAD LINES - PRIMARY / CUSTOMER"},{"$f":"'FR-16(7)(v)-1 Functional'!D476","v":"K405"},null,{"$f":"'FR-16(7)(v)-14 TOTAL CLASS'!P476","v":3715},{"$f":"'FR-16(7)(v)-3 PROD Demand'!P476+'FR-16(7)(v)-7 TRANS Demand'!P476+'FR-16(7)(v)-11 DIST Demand'!P476","v":0},{"$f":"'FR-16(7)(v)-4 PROD Energy'!P476+'FR-16(7)(v)-8 TRANS Energy'!P476+'FR-16(7)(v)-12 DIST Energy'!P476","v":0},{"$f":"'FR-16(7)(v)-5 PROD Cust'!P476+'FR-16(7)(v)-9 TRANS Cust'!P476+'FR-16(7)(v)-13 DIST Cust'!P476","v":3715},{"$f":"SUM(G476:I476)","v":3715},{"$f":"F476-J476","v":0}]
[33,null,{"$f":"'FR-16(7)(v)-1 Functional'!C477","v":"OVERHEAD LINES - SECONDARY / DEMAND"},{"$f":"'FR-16(7)(v)-1 Functional'!D477","v":"K206"},null,{"$f":"'FR-16(7)(v)-14 TOTAL CLASS'!P477","v":13224},{"$f":"'FR-16(7)(v)-3 PROD Demand'!P477+'FR-16(7)(v)-7 TRANS Demand'!P477+'FR-16(7)(v)-11 DIST Demand'!P477","v":13224},{"$f":"'FR-16(7)(v)-4 PROD Energy'!P477+'FR-16(7)(v)-8 TRANS Energy'!P477+'FR-16(7)(v)-12 DIST Energy'!P477","v":0},{"$f":"'FR-16(7)(v)-5 PROD Cust'!P477+'FR-16(7)(v)-9 TRANS Cust'!P477+'FR-16(7)(v)-13 DIST Cust'!P477","v":0},13224,0]
[34,null,{"$f":"'FR-16(7)(v)-1 Functional'!C478","v":"OVERHEAD LINES - SECONDARY / CUSTOMER"},{"$f":"'FR-16(7)(v)-1 Functional'!D478","v":"K405"},null,{"$f":"'FR-16(7)(v)-14 TOTAL CLASS'!P478","v":1539},{"$f":"'FR-16(7)(v)-3 PROD Demand'!P478+'FR-16(7)(v)-7 TRANS Demand'!P478+'FR-16(7)(v)-11 DIST Demand'!P478","v":0},{"$f":"'FR-16(7)(v)-4 PROD Energy'!P478+'FR-16(7)(v)-8 TRANS Energy'!P478+'FR-16(7)(v)-12 DIST Energy'!P478","v":0},{"$f":"'FR-16(7)(v)-5 PROD Cust'!P478+'FR-16(7)(v)-9 TRANS Cust'!P478+'FR-16(7)(v)-13 DIST Cust'!P478","v":1539},1539,0]
[35,null,{"$f":"'FR-16(7)(v)-1 Functional'!C479","v":"UNDERGROUND LINES - PRIMARY / DEMAND"},{"$f":"'FR-16(7)(v)-1 Functional'!D479","v":"K205"},null,{"$f":"'FR-16(7)(v)-14 TOTAL CLASS'!P479","v":4233},{"$f":"'FR-16(7)(v)-3 PROD Demand'!P479+'FR-16(7)(v)-7 TRANS Demand'!P479+'FR-16(7)(v)-11 DIST Demand'!P479","v":4233},{"$f":"'FR-16(7)(v)-4 PROD Energy'!P479+'FR-16(7)(v)-8 TRANS Energy'!P479+'FR-16(7)(v)-12 DIST Energy'!P479","v":0},{"$f":"'FR-16(7)(v)-5 PROD Cust'!P479+'FR-16(7)(v)-9 TRANS Cust'!P479+'FR-16(7)(v)-13 DIST Cust'!P479","v":0},4233,0]
[36,null,{"$f":"'FR-16(7)(v)-1 Functional'!C480","v":"UNDERGROUND LINES - PRIMARY / CUSTOMER"},{"$f":"'FR-16(7)(v)-1 Functional'!D480","v":"K405"},null,{"$f":"'FR-16(7)(v)-14 TOTAL CLASS'!P480","v":689},{"$f":"'FR-16(7)(v)-3 PROD Demand'!P480+'FR-16(7)(v)-7 TRANS Demand'!P480+'FR-16(7)(v)-11 DIST Demand'!P480","v":0},{"$f":"'FR-16(7)(v)-4 PROD Energy'!P480+'FR-16(7)(v)-8 TRANS Energy'!P480+'FR-16(7)(v)-12 DIST Energy'!P480","v":0},{"$f":"'FR-16(7)(v)-5 PROD Cust'!P480+'FR-16(7)(v)-9 TRANS Cust'!P480+'FR-16(7)(v)-13 DIST Cust'!P480","v":689},689,0]
[37,null,{"$f":"'FR-16(7)(v)-1 Functional'!C481","v":"UNDERGROUND LINES - SECONDARY / DEMAND"},{"$f":"'FR-16(7)(v)-1 Functional'!D481","v":"K206"},null,{"$f":"'FR-16(7)(v)-14 TOTAL CLASS'!P481","v":725},{"$f":"'FR-16(7)(v)-3 PROD Demand'!P481+'FR-16(7)(v)-7 TRANS Demand'!P481+'FR-16(7)(v)-11 DIST Demand'!P481","v":725},{"$f":"'FR-16(7)(v)-4 PROD Energy'!P481+'FR-16(7)(v)-8 TRANS Energy'!P481+'FR-16(7)(v)-12 DIST Energy'!P481","v":0},{"$f":"'FR-16(7)(v)-5 PROD Cust'!P481+'FR-16(7)(v)-9 TRANS Cust'!P481+'FR-16(7)(v)-13 DIST Cust'!P481","v":0},725,0]
[38,null,{"$f":"'FR-16(7)(v)-1 Functional'!C482","v":"UNDERGROUND LINES - SECONDARY / CUSTOMER"},{"$f":"'FR-16(7)(v)-1 Functional'!D482","v":"K405"},null,{"$f":"'FR-16(7)(v)-14 TOTAL CLASS'!P482","v":215},{"$f":"'FR-16(7)(v)-3 PROD Demand'!P482+'FR-16(7)(v)-7 TRANS Demand'!P482+'FR-16(7)(v)-11 DIST Demand'!P482","v":0},{"$f":"'FR-16(7)(v)-4 PROD Energy'!P482+'FR-16(7)(v)-8 TRANS Energy'!P482+'FR-16(7)(v)-12 DIST Energy'!P482","v":0},{"$f":"'FR-16(7)(v)-5 PROD Cust'!P482+'FR-16(7)(v)-9 TRANS Cust'!P482+'FR-16(7)(v)-13 DIST Cust'!P482","v":215},215,0]
[39,null,{"$f":"'FR-16(7)(v)-1 Functional'!C483","v":"TRANSFORMERS DEMAND RELATED"},{"$f":"'FR-16(7)(v)-1 Functional'!D483","v":"K203"},null,{"$f":"'FR-16(7)(v)-14 TOTAL CLASS'!P483","v":1273},{"$f":"'FR-16(7)(v)-3 PROD Demand'!P483+'FR-16(7)(v)-7 TRANS Demand'!P483+'FR-16(7)(v)-11 DIST Demand'!P483","v":1273},{"$f":"'FR-16(7)(v)-4 PROD Energy'!P483+'FR-16(7)(v)-8 TRANS Energy'!P483+'FR-16(7)(v)-12 DIST Energy'!P483","v":0},{"$f":"'FR-16(7)(v)-5 PROD Cust'!P483+'FR-16(7)(v)-9 TRANS Cust'!P483+'FR-16(7)(v)-13 DIST Cust'!P483","v":0},1273,0]
[40,null,{"$f":"'FR-16(7)(v)-1 Functional'!C484","v":"TRANSFORMERS CUSTOMER RELATED"},{"$f":"'FR-16(7)(v)-1 Functional'!D484","v":"K401"},null,{"$f":"'FR-16(7)(v)-14 TOTAL CLASS'!P484","v":88189},{"$f":"'FR-16(7)(v)-3 PROD Demand'!P484+'FR-16(7)(v)-7 TRANS Demand'!P484+'FR-16(7)(v)-11 DIST Demand'!P484","v":0},{"$f":"'FR-16(7)(v)-4 PROD Energy'!P484+'FR-16(7)(v)-8 TRANS Energy'!P484+'FR-16(7)(v)-12 DIST Energy'!P484","v":0},{"$f":"'FR-16(7)(v)-5 PROD Cust'!P484+'FR-16(7)(v)-9 TRANS Cust'!P484+'FR-16(7)(v)-13 DIST Cust'!P484","v":88189},{"$f":"SUM(G484:I484)","v":88189},{"$f":"F484-J484","v":0}]
[41,null,{"$f":"'FR-16(7)(v)-1 Functional'!C485","v":"OTHER MAINTENANCE"},{"$f":"'FR-16(7)(v)-1 Functional'!D485","v":"K203"},null,{"$f":"'FR-16(7)(v)-14 TOTAL CLASS'!P485","v":8878},{"$f":"'FR-16(7)(v)-3 PROD Demand'!P485+'FR-16(7)(v)-7 TRANS Demand'!P485+'FR-16(7)(v)-11 DIST Demand'!P485","v":8878},{"$f":"'FR-16(7)(v)-4 PROD Energy'!P485+'FR-16(7)(v)-8 TRANS Energy'!P485+'FR-16(7)(v)-12 DIST Energy'!P485","v":0},{"$f":"'FR-16(7)(v)-5 PROD Cust'!P485+'FR-16(7)(v)-9 TRANS Cust'!P485+'FR-16(7)(v)-13 DIST Cust'!P485","v":0},8878,0]
[42,null,{"$f":"'FR-16(7)(v)-1 Functional'!C486","v":"LOAD DISPATCH"},{"$f":"'FR-16(7)(v)-1 Functional'!D486","v":"K215"},null,{"$f":"'FR-16(7)(v)-14 TOTAL CLASS'!P486","v":3635},{"$f":"'FR-16(7)(v)-3 PROD Demand'!P486+'FR-16(7)(v)-7 TRANS Demand'!P486+'FR-16(7)(v)-11 DIST Demand'!P486","v":3635},{"$f":"'FR-16(7)(v)-4 PROD Energy'!P486+'FR-16(7)(v)-8 TRANS Energy'!P486+'FR-16(7)(v)-12 DIST Energy'!P486","v":0},{"$f":"'FR-16(7)(v)-5 PROD Cust'!P486+'FR-16(7)(v)-9 TRANS Cust'!P486+'FR-16(7)(v)-13 DIST Cust'!P486","v":0},3635,0]
[43,null,{"$f":"'FR-16(7)(v)-1 Functional'!C487","v":"METERS"},{"$f":"'FR-16(7)(v)-1 Functional'!D487","v":"K407"},null,{"$f":"'FR-16(7)(v)-14 TOTAL CLASS'!P487","v":0},{"$f":"'FR-16(7)(v)-3 PROD Demand'!P487+'FR-16(7)(v)-7 TRANS Demand'!P487+'FR-16(7)(v)-11 DIST Demand'!P487","v":0},{"$f":"'FR-16(7)(v)-4 PROD Energy'!P487+'FR-16(7)(v)-8 TRANS Energy'!P487+'FR-16(7)(v)-12 DIST Energy'!P487","v":0},{"$f":"'FR-16(7)(v)-5 PROD Cust'!P487+'FR-16(7)(v)-9 TRANS Cust'!P487+'FR-16(7)(v)-13 DIST Cust'!P487","v":0},0,0]
[44,null,{"$f":"'FR-16(7)(v)-1 Functional'!C488","v":"STREET LIGHTING AND SIGNAL SYSTEMS"},{"$f":"'FR-16(7)(v)-1 Functional'!D488","v":"K401"},null,{"$f":"'FR-16(7)(v)-14 TOTAL CLASS'!P488","v":430143},{"$f":"'FR-16(7)(v)-3 PROD Demand'!P488+'FR-16(7)(v)-7 TRANS Demand'!P488+'FR-16(7)(v)-11 DIST Demand'!P488","v":0},{"$f":"'FR-16(7)(v)-4 PROD Energy'!P488+'FR-16(7)(v)-8 TRANS Energy'!P488+'FR-16(7)(v)-12 DIST Energy'!P488","v":0},{"$f":"'FR-16(7)(v)-5 PROD Cust'!P488+'FR-16(7)(v)-9 TRANS Cust'!P488+'FR-16(7)(v)-13 DIST Cust'!P488","v":430143},430143,0]
[45,null,{"$f":"'FR-16(7)(v)-1 Functional'!C489","v":"OTHER OPERATIONS"},{"$f":"'FR-16(7)(v)-1 Functional'!D489","v":"K203"},null,{"$f":"'FR-16(7)(v)-14 TOTAL CLASS'!P489","v":3390},{"$f":"'FR-16(7)(v)-3 PROD Demand'!P489+'FR-16(7)(v)-7 TRANS Demand'!P489+'FR-16(7)(v)-11 DIST Demand'!P489","v":3390},{"$f":"'FR-16(7)(v)-4 PROD Energy'!P489+'FR-16(7)(v)-8 TRANS Energy'!P489+'FR-16(7)(v)-12 DIST Energy'!P489","v":0},{"$f":"'FR-16(7)(v)-5 PROD Cust'!P489+'FR-16(7)(v)-9 TRANS Cust'!P489+'FR-16(7)(v)-13 DIST Cust'!P489","v":0},3390,0]
[46,null,{"$f":"'FR-16(7)(v)-1 Functional'!C490","v":"MISCELLANEOUS EXPENSES ADJUSTMENT"},{"$f":"'FR-16(7)(v)-1 Functional'!D490","v":"K203"},null,{"$f":"'FR-16(7)(v)-14 TOTAL CLASS'!P490","v":10448},{"$f":"'FR-16(7)(v)-3 PROD Demand'!P490+'FR-16(7)(v)-7 TRANS Demand'!P490+'FR-16(7)(v)-11 DIST Demand'!P490","v":10448},{"$f":"'FR-16(7)(v)-4 PROD Energy'!P490+'FR-16(7)(v)-8 TRANS Energy'!P490+'FR-16(7)(v)-12 DIST Energy'!P490","v":0},{"$f":"'FR-16(7)(v)-5 PROD Cust'!P490+'FR-16(7)(v)-9 TRANS Cust'!P490+'FR-16(7)(v)-13 DIST Cust'!P490","v":0},10448,0]
[47,null,{"$f":"'FR-16(7)(v)-1 Functional'!C491","v":"AFFILIATED COMPANY RENTS ADJUSTMENT"},{"$f":"'FR-16(7)(v)-1 Functional'!D491","v":"D249"},null,{"$f":"'FR-16(7)(v)-14 TOTAL CLASS'!P491","v":0},{"$f":"'FR-16(7)(v)-3 PROD Demand'!P491+'FR-16(7)(v)-7 TRANS Demand'!P491+'FR-16(7)(v)-11 DIST Demand'!P491","v":0},{"$f":"'FR-16(7)(v)-4 PROD Energy'!P491+'FR-16(7)(v)-8 TRANS Energy'!P491+'FR-16(7)(v)-12 DIST Energy'!P491","v":0},{"$f":"'FR-16(7)(v)-5 PROD Cust'!P491+'FR-16(7)(v)-9 TRANS Cust'!P491+'FR-16(7)(v)-13 DIST Cust'!P491","v":0},0,0]
[48,null,{"$f":"'FR-16(7)(v)-1 Functional'!C492","v":"  TOTAL DISTRIBUTION O & M"},null," ",{"$f":"SUM(F472:F491)","v":603542},79052,0,524490,603542,0]
[49,null," "]
[50,"CUSTOMER ACCOUNTING",null,null,null," "]
[51,null,{"$f":"'FR-16(7)(v)-1 Functional'!C495","v":"CUSTOMER ACCOUNTING EXPENSE"},{"$f":"'FR-16(7)(v)-1 Functional'!D495","v":"K409"},null,{"$f":"'FR-16(7)(v)-14 TOTAL CLASS'!P495","v":11603},{"$f":"'FR-16(7)(v)-3 PROD Demand'!P495+'FR-16(7)(v)-7 TRANS Demand'!P495+'FR-16(7)(v)-11 DIST Demand'!P495","v":0},{"$f":"'FR-16(7)(v)-4 PROD Energy'!P495+'FR-16(7)(v)-8 TRANS Energy'!P495+'FR-16(7)(v)-12 DIST Energy'!P495","v":0},{"$f":"'FR-16(7)(v)-5 PROD Cust'!P495+'FR-16(7)(v)-9 TRANS Cust'!P495+'FR-16(7)(v)-13 DIST Cust'!P495","v":11603},{"$f":"SUM(G495:I495)","v":11603},{"$f":"F495-J495","v":0}]
[52,null,{"$f":"'FR-16(7)(v)-1 Functional'!C496","v":"UNCOLLECTIBLE EXP"},{"$f":"'FR-16(7)(v)-1 Functional'!D496","v":"K411"},null,{"$f":"'FR-16(7)(v)-14 TOTAL CLASS'!P496","v":1399},{"$f":"'FR-16(7)(v)-3 PROD Demand'!P496+'FR-16(7)(v)-7 TRANS Demand'!P496+'FR-16(7)(v)-11 DIST Demand'!P496","v":0},{"$f":"'FR-16(7)(v)-4 PROD Energy'!P496+'FR-16(7)(v)-8 TRANS Energy'!P496+'FR-16(7)(v)-12 DIST Energy'!P496","v":0},{"$f":"'FR-16(7)(v)-5 PROD Cust'!P496+'FR-16(7)(v)-9 TRANS Cust'!P496+'FR-16(7)(v)-13 DIST Cust'!P496","v":1399},1399,0]
[53,null,{"$f":"'FR-16(7)(v)-1 Functional'!C497","v":"METER READING"},{"$f":"'FR-16(7)(v)-1 Functional'!D497","v":"K407"},null,{"$f":"'FR-16(7)(v)-14 TOTAL CLASS'!P497","v":0},{"$f":"'FR-16(7)(v)-3 PROD Demand'!P497+'FR-16(7)(v)-7 TRANS Demand'!P497+'FR-16(7)(v)-11 DIST Demand'!P497","v":0},{"$f":"'FR-16(7)(v)-4 PROD Energy'!P497+'FR-16(7)(v)-8 TRANS Energy'!P497+'FR-16(7)(v)-12 DIST Energy'!P497","v":0},{"$f":"'FR-16(7)(v)-5 PROD Cust'!P497+'FR-16(7)(v)-9 TRANS Cust'!P497+'FR-16(7)(v)-13 DIST Cust'!P497","v":0},0,0]
[54,null,{"$f":"'FR-16(7)(v)-1 Functional'!C498","v":"UNCOLLECTIBLE EXP ADJUSTMENT"},{"$f":"'FR-16(7)(v)-1 Functional'!D498","v":"K411"},null,{"$f":"'FR-16(7)(v)-14 TOTAL CLASS'!P498","v":-1979},{"$f":"'FR-16(7)(v)-3 PROD Demand'!P498+'FR-16(7)(v)-7 TRANS Demand'!P498+'FR-16(7)(v)-11 DIST Demand'!P498","v":0},{"$f":"'FR-16(7)(v)-4 PROD Energy'!P498+'FR-16(7)(v)-8 TRANS Energy'!P498+'FR-16(7)(v)-12 DIST Energy'!P498","v":0},{"$f":"'FR-16(7)(v)-5 PROD Cust'!P498+'FR-16(7)(v)-9 TRANS Cust'!P498+'FR-16(7)(v)-13 DIST Cust'!P498","v":-1979},-1979,0]
[55,null,{"$f":"'FR-16(7)(v)-1 Functional'!C499","v":"CREDIT CARD FEES"},{"$f":"'FR-16(7)(v)-1 Functional'!D499","v":"K407"},null,{"$f":"'FR-16(7)(v)-14 TOTAL CLASS'!P499","v":0},{"$f":"'FR-16(7)(v)-3 PROD Demand'!P499+'FR-16(7)(v)-7 TRANS Demand'!P499+'FR-16(7)(v)-11 DIST Demand'!P499","v":0},{"$f":"'FR-16(7)(v)-4 PROD Energy'!P499+'FR-16(7)(v)-8 TRANS Energy'!P499+'FR-16(7)(v)-12 DIST Energy'!P499","v":0},{"$f":"'FR-16(7)(v)-5 PROD Cust'!P499+'FR-16(7)(v)-9 TRANS Cust'!P499+'FR-16(7)(v)-13 DIST Cust'!P499","v":0},0,0]
[56,null,{"$f":"'FR-16(7)(v)-1 Functional'!C500","v":"ELIMINATE REV & EXP - DSM RIDER"},{"$f":"'FR-16(7)(v)-1 Functional'!D500","v":"K405"},null,{"$f":"'FR-16(7)(v)-14 TOTAL CLASS'!P500","v":0},{"$f":"'FR-16(7)(v)-3 PROD Demand'!P500+'FR-16(7)(v)-7 TRANS Demand'!P500+'FR-16(7)(v)-11 DIST Demand'!P500","v":0},{"$f":"'FR-16(7)(v)-4 PROD Energy'!P500+'FR-16(7)(v)-8 TRANS Energy'!P500+'FR-16(7)(v)-12 DIST Energy'!P500","v":0},{"$f":"'FR-16(7)(v)-5 PROD Cust'!P500+'FR-16(7)(v)-9 TRANS Cust'!P500+'FR-16(7)(v)-13 DIST Cust'!P500","v":0},0,0]
[57,null,{"$f":"'FR-16(7)(v)-1 Functional'!C501","v":"SALE OF A/R"},{"$f":"'FR-16(7)(v)-1 Functional'!D501","v":"K411"},null,{"$f":"'FR-16(7)(v)-14 TOTAL CLASS'!P501","v":390},{"$f":"'FR-16(7)(v)-3 PROD Demand'!P501+'FR-16(7)(v)-7 TRANS Demand'!P501+'FR-16(7)(v)-11 DIST Demand'!P501","v":0},{"$f":"'FR-16(7)(v)-4 PROD Energy'!P501+'FR-16(7)(v)-8 TRANS Energy'!P501+'FR-16(7)(v)-12 DIST Energy'!P501","v":0},{"$f":"'FR-16(7)(v)-5 PROD Cust'!P501+'FR-16(7)(v)-9 TRANS Cust'!P501+'FR-16(7)(v)-13 DIST Cust'!P501","v":390},390,0]
[58,null,{"$f":"'FR-16(7)(v)-1 Functional'!C502","v":"ELIMINATE MISC EXPENSE"},{"$f":"'FR-16(7)(v)-1 Functional'!D502","v":"K405"},null,{"$f":"'FR-16(7)(v)-14 TOTAL CLASS'!P502","v":-4},{"$f":"'FR-16(7)(v)-3 PROD Demand'!P502+'FR-16(7)(v)-7 TRANS Demand'!P502+'FR-16(7)(v)-11 DIST Demand'!P502","v":0},{"$f":"'FR-16(7)(v)-4 PROD Energy'!P502+'FR-16(7)(v)-8 TRANS Energy'!P502+'FR-16(7)(v)-12 DIST Energy'!P502","v":0},{"$f":"'FR-16(7)(v)-5 PROD Cust'!P502+'FR-16(7)(v)-9 TRANS Cust'!P502+'FR-16(7)(v)-13 DIST Cust'!P502","v":-4},-4,0]
[59,null,{"$f":"'FR-16(7)(v)-1 Functional'!C503","v":"  TOTAL CUSTOMER ACCT EXPENSE"},null," ",{"$f":"SUM(F494:F502)","v":11409},0,0,11409,11409,0]
[]
[{"$f":"co_name","v":"DUKE ENERGY KENTUCKY, INC."},null,null,null,null,null,null,null,null,{"$f":"J1","v":"FR-16(7)(v)-24"}]
[{"$f":"$A$2","v":"LIGHTING CLASSIFIED - ELECTRIC COST OF SERVICE"},null,null,null,null,null,null,null,null,{"$f":"J2","v":"WITNESS RESPONSIBLE:"}]
[{"$f":"case_name","v":"CASE NO: 2019-00271"},null,null,null,null,null,null,null,null,{"$f":"Witness","v":"JAMES E. ZIOLKOWSKI"}]
[{"$f":"data_filing","v":"DATA: 12 MONTHS ACTUAL  & 0 MONTHS ESTIMATED"},null,null,null,null,null,null,null,null,{"$f":"\"PAGE \"&Pages2-6&\" OF \"&Pages2","v":"PAGE 9 OF 15"}]
[{"$f":"type","v":"TYPE OF FILING: \"X\" ORIGINAL   UPDATED    REVISED  "}]
[]
[]
["LINE",null,null,null,null,"TOTAL","CLASSIFIED",null,null,"TOTAL","ALL"]
["NO.","O&M EXPENSES",null,"ALLO",null,{"$f":"$F$9","v":"LIGHTING"},{"$f":"G9","v":"DEMAND"},"ENERGY","CUSTOMER","AT ISSUE","OTHER"]
[null,null,"Schedule 6.1",null,null,null,3,4,5]
[1,"CUSTOMER SERVICE & INFORMATION"]
[2,null,{"$f":"'FR-16(7)(v)-1 Functional'!C516","v":"TOTAL CUST SERVICE & INFO"},{"$f":"'FR-16(7)(v)-1 Functional'!D516","v":"K405"},null,{"$f":"'FR-16(7)(v)-14 TOTAL CLASS'!P516","v":1990},{"$f":"'FR-16(7)(v)-3 PROD Demand'!P516+'FR-16(7)(v)-7 TRANS Demand'!P516+'FR-16(7)(v)-11 DIST Demand'!P516","v":0},{"$f":"'FR-16(7)(v)-4 PROD Energy'!P516+'FR-16(7)(v)-8 TRANS Energy'!P516+'FR-16(7)(v)-12 DIST Energy'!P516","v":0},{"$f":"'FR-16(7)(v)-5 PROD Cust'!P516+'FR-16(7)(v)-9 TRANS Cust'!P516+'FR-16(7)(v)-13 DIST Cust'!P516","v":1990},{"$f":"SUM(G516:I516)","v":1990},{"$f":"F516-J516","v":0}]
[3,null,{"$f":"'FR-16(7)(v)-1 Functional'!C517","v":"INFORMATIONAL & INSTRUCTIONAL ADV"},{"$f":"'FR-16(7)(v)-1 Functional'!D517","v":"K405"},null,{"$f":"'FR-16(7)(v)-14 TOTAL CLASS'!P517","v":0},{"$f":"'FR-16(7)(v)-3 PROD Demand'!P517+'FR-16(7)(v)-7 TRANS Demand'!P517+'FR-16(7)(v)-11 DIST Demand'!P517","v":0},{"$f":"'FR-16(7)(v)-4 PROD Energy'!P517+'FR-16(7)(v)-8 TRANS Energy'!P517+'FR-16(7)(v)-12 DIST Energy'!P517","v":0},{"$f":"'FR-16(7)(v)-5 PROD Cust'!P517+'FR-16(7)(v)-9 TRANS Cust'!P517+'FR-16(7)(v)-13 DIST Cust'!P517","v":0},{"$f":"SUM(G517:I517)","v":0},{"$f":"F517-J517","v":0}]
[4,null,{"$f":"'FR-16(7)(v)-1 Functional'!C518","v":"TOTAL CUSTOMER SERV. & INFO."},null," ",{"$f":"SUM(F516:F517)","v":1990},0,0,1990,1990,0]
[5]
[6,"SALES"]
[7,null,{"$f":"'FR-16(7)(v)-1 Functional'!C521","v":"SALES EXPENSE"},{"$f":"'FR-16(7)(v)-1 Functional'!D521","v":"K405"}," ",{"$f":"'FR-16(7)(v)-14 TOTAL CLASS'!P521","v":4926},{"$f":"'FR-16(7)(v)-3 PROD Demand'!P521+'FR-16(7)(v)-7 TRANS Demand'!P521+'FR-16(7)(v)-11 DIST Demand'!P521","v":0},{"$f":"'FR-16(7)(v)-4 PROD Energy'!P521+'FR-16(7)(v)-8 TRANS Energy'!P521+'FR-16(7)(v)-12 DIST Energy'!P521","v":0},{"$f":"'FR-16(7)(v)-5 PROD Cust'!P521+'FR-16(7)(v)-9 TRANS Cust'!P521+'FR-16(7)(v)-13 DIST Cust'!P521","v":4926},{"$f":"SUM(G521:I521)","v":4926},{"$f":"F521-J521","v":0}]
[8,null,{"$f":"'FR-16(7)(v)-1 Functional'!C522","v":"TOTAL SALES EXPENSE"},null," ",{"$f":"SUM(F520:F521)","v":4926},0,0,4926,4926,0]
[9]
[10,"ADMINISTRATIVE & GENERAL "]
[11,null,{"$f":"'FR-16(7)(v)-1 Functional'!C525","v":"PRODUCTION - DEMAND RELATED"},{"$f":"'FR-16(7)(v)-1 Functional'!D525","v":"P349"},null,{"$f":"'FR-16(7)(v)-14 TOTAL CLASS'!P525","v":0},{"$f":"'FR-16(7)(v)-3 PROD Demand'!P525+'FR-16(7)(v)-7 TRANS Demand'!P525+'FR-16(7)(v)-11 DIST Demand'!P525","v":0},{"$f":"'FR-16(7)(v)-4 PROD Energy'!P525+'FR-16(7)(v)-8 TRANS Energy'!P525+'FR-16(7)(v)-12 DIST Energy'!P525","v":0},{"$f":"'FR-16(7)(v)-5 PROD Cust'!P525+'FR-16(7)(v)-9 TRANS Cust'!P525+'FR-16(7)(v)-13 DIST Cust'!P525","v":0},{"$f":"SUM(G525:I525)","v":0},{"$f":"F525-J525","v":0}]
[12,null,{"$f":"'FR-16(7)(v)-1 Functional'!C526","v":"PRODUCTION - ENERGY RELATED"},{"$f":"'FR-16(7)(v)-1 Functional'!D526","v":"E349"},null,{"$f":"'FR-16(7)(v)-14 TOTAL CLASS'!P526","v":47417},{"$f":"'FR-16(7)(v)-3 PROD Demand'!P526+'FR-16(7)(v)-7 TRANS Demand'!P526+'FR-16(7)(v)-11 DIST Demand'!P526","v":0},{"$f":"'FR-16(7)(v)-4 PROD Energy'!P526+'FR-16(7)(v)-8 TRANS Energy'!P526+'FR-16(7)(v)-12 DIST Energy'!P526","v":47417},{"$f":"'FR-16(7)(v)-5 PROD Cust'!P526+'FR-16(7)(v)-9 TRANS Cust'!P526+'FR-16(7)(v)-13 DIST Cust'!P526","v":0},47417,0]
[13,null,"TRANSMISSION",{"$f":"'FR-16(7)(v)-1 Functional'!D527","v":"T349"},null,{"$f":"'FR-16(7)(v)-14 TOTAL CLASS'!P527","v":1820},{"$f":"'FR-16(7)(v)-3 PROD Demand'!P527+'FR-16(7)(v)-7 TRANS Demand'!P527+'FR-16(7)(v)-11 DIST Demand'!P527","v":1820},{"$f":"'FR-16(7)(v)-4 PROD Energy'!P527+'FR-16(7)(v)-8 TRANS Energy'!P527+'FR-16(7)(v)-12 DIST Energy'!P527","v":0},{"$f":"'FR-16(7)(v)-5 PROD Cust'!P527+'FR-16(7)(v)-9 TRANS Cust'!P527+'FR-16(7)(v)-13 DIST Cust'!P527","v":0},1820,0]
[14,null,{"$f":"'FR-16(7)(v)-1 Functional'!C528","v":"DISTRIBUTION"},{"$f":"'FR-16(7)(v)-1 Functional'!D528","v":"D349"},null,{"$f":"'FR-16(7)(v)-14 TOTAL CLASS'!P528","v":203255},{"$f":"'FR-16(7)(v)-3 PROD Demand'!P528+'FR-16(7)(v)-7 TRANS Demand'!P528+'FR-16(7)(v)-11 DIST Demand'!P528","v":26626},{"$f":"'FR-16(7)(v)-4 PROD Energy'!P528+'FR-16(7)(v)-8 TRANS Energy'!P528+'FR-16(7)(v)-12 DIST Energy'!P528","v":0},{"$f":"'FR-16(7)(v)-5 PROD Cust'!P528+'FR-16(7)(v)-9 TRANS Cust'!P528+'FR-16(7)(v)-13 DIST Cust'!P528","v":176629},203255,0]
[15,null,{"$f":"'FR-16(7)(v)-1 Functional'!C529","v":"CUSTOMER ACCOUNTING"},{"$f":"'FR-16(7)(v)-1 Functional'!D529","v":"C319"},null,{"$f":"'FR-16(7)(v)-14 TOTAL CLASS'!P529","v":10079},{"$f":"'FR-16(7)(v)-3 PROD Demand'!P529+'FR-16(7)(v)-7 TRANS Demand'!P529+'FR-16(7)(v)-11 DIST Demand'!P529","v":0},{"$f":"'FR-16(7)(v)-4 PROD Energy'!P529+'FR-16(7)(v)-8 TRANS Energy'!P529+'FR-16(7)(v)-12 DIST Energy'!P529","v":0},{"$f":"'FR-16(7)(v)-5 PROD Cust'!P529+'FR-16(7)(v)-9 TRANS Cust'!P529+'FR-16(7)(v)-13 DIST Cust'!P529","v":10079},10079,0]
[16,null,{"$f":"'FR-16(7)(v)-1 Functional'!C530","v":"CUSTOMER SERVICE & INFORMATION"},{"$f":"'FR-16(7)(v)-1 Functional'!D530","v":"C331"},null,{"$f":"'FR-16(7)(v)-14 TOTAL CLASS'!P530","v":792},{"$f":"'FR-16(7)(v)-3 PROD Demand'!P530+'FR-16(7)(v)-7 TRANS Demand'!P530+'FR-16(7)(v)-11 DIST Demand'!P530","v":0},{"$f":"'FR-16(7)(v)-4 PROD Energy'!P530+'FR-16(7)(v)-8 TRANS Energy'!P530+'FR-16(7)(v)-12 DIST Energy'!P530","v":0},{"$f":"'FR-16(7)(v)-5 PROD Cust'!P530+'FR-16(7)(v)-9 TRANS Cust'!P530+'FR-16(7)(v)-13 DIST Cust'!P530","v":792},792,0]
[17,null,{"$f":"'FR-16(7)(v)-1 Functional'!C531","v":"SALES"},{"$f":"'FR-16(7)(v)-1 Functional'!D531","v":"S319"},null,{"$f":"'FR-16(7)(v)-14 TOTAL CLASS'!P531","v":0},{"$f":"'FR-16(7)(v)-3 PROD Demand'!P531+'FR-16(7)(v)-7 TRANS Demand'!P531+'FR-16(7)(v)-11 DIST Demand'!P531","v":0},{"$f":"'FR-16(7)(v)-4 PROD Energy'!P531+'FR-16(7)(v)-8 TRANS Energy'!P531+'FR-16(7)(v)-12 DIST Energy'!P531","v":0},{"$f":"'FR-16(7)(v)-5 PROD Cust'!P531+'FR-16(7)(v)-9 TRANS Cust'!P531+'FR-16(7)(v)-13 DIST Cust'!P531","v":0},0,0]
[18,null,{"$f":"'FR-16(7)(v)-1 Functional'!C532","v":"TOT ADMIN & GEN LESS REG EXP"}," ",null,{"$f":"SUM(F525:F531)","v":263363},28446,47417,187500,263363,0]
[19,null,{"$f":"'FR-16(7)(v)-1 Functional'!C533","v":"RATE CASE EXPENSE ADJUSTMENT"},{"$f":"'FR-16(7)(v)-1 Functional'!D533","v":"A315"},null,{"$f":"'FR-16(7)(v)-14 TOTAL CLASS'!P533","v":1131},{"$f":"'FR-16(7)(v)-3 PROD Demand'!P533+'FR-16(7)(v)-7 TRANS Demand'!P533+'FR-16(7)(v)-11 DIST Demand'!P533","v":122},{"$f":"'FR-16(7)(v)-4 PROD Energy'!P533+'FR-16(7)(v)-8 TRANS Energy'!P533+'FR-16(7)(v)-12 DIST Energy'!P533","v":204},{"$f":"'FR-16(7)(v)-5 PROD Cust'!P533+'FR-16(7)(v)-9 TRANS Cust'!P533+'FR-16(7)(v)-13 DIST Cust'!P533","v":805},{"$f":"SUM(G533:I533)","v":1131},{"$f":"F533-J533","v":0}]
[20,null,{"$f":"'FR-16(7)(v)-1 Functional'!C534","v":"ELIMINATE MISCELLANEOUS EXPENSES ADJUSTMENT"},{"$f":"'FR-16(7)(v)-1 Functional'!D534","v":"A315"},null,{"$f":"'FR-16(7)(v)-14 TOTAL CLASS'!P534","v":0},{"$f":"'FR-16(7)(v)-3 PROD Demand'!P534+'FR-16(7)(v)-7 TRANS Demand'!P534+'FR-16(7)(v)-11 DIST Demand'!P534","v":0},{"$f":"'FR-16(7)(v)-4 PROD Energy'!P534+'FR-16(7)(v)-8 TRANS Energy'!P534+'FR-16(7)(v)-12 DIST Energy'!P534","v":0},{"$f":"'FR-16(7)(v)-5 PROD Cust'!P534+'FR-16(7)(v)-9 TRANS Cust'!P534+'FR-16(7)(v)-13 DIST Cust'!P534","v":0},0,0]
[21,null,{"$f":"'FR-16(7)(v)-1 Functional'!C535","v":"RIDER ESM ELIMINATION"},{"$f":"'FR-16(7)(v)-1 Functional'!D535","v":"A315"},null,{"$f":"'FR-16(7)(v)-14 TOTAL CLASS'!P535","v":-77696},{"$f":"'FR-16(7)(v)-3 PROD Demand'!P535+'FR-16(7)(v)-7 TRANS Demand'!P535+'FR-16(7)(v)-11 DIST Demand'!P535","v":-8399},{"$f":"'FR-16(7)(v)-4 PROD Energy'!P535+'FR-16(7)(v)-8 TRANS Energy'!P535+'FR-16(7)(v)-12 DIST Energy'!P535","v":-13988},{"$f":"'FR-16(7)(v)-5 PROD Cust'!P535+'FR-16(7)(v)-9 TRANS Cust'!P535+'FR-16(7)(v)-13 DIST Cust'!P535","v":-55309},-77696,0]
[22,null,{"$f":"'FR-16(7)(v)-1 Functional'!C536","v":"ELIMINATE DSM"},{"$f":"'FR-16(7)(v)-1 Functional'!D536","v":"A315"},null,{"$f":"'FR-16(7)(v)-14 TOTAL CLASS'!P536","v":-1089},{"$f":"'FR-16(7)(v)-3 PROD Demand'!P536+'FR-16(7)(v)-7 TRANS Demand'!P536+'FR-16(7)(v)-11 DIST Demand'!P536","v":-118},{"$f":"'FR-16(7)(v)-4 PROD Energy'!P536+'FR-16(7)(v)-8 TRANS Energy'!P536+'FR-16(7)(v)-12 DIST Energy'!P536","v":-196},{"$f":"'FR-16(7)(v)-5 PROD Cust'!P536+'FR-16(7)(v)-9 TRANS Cust'!P536+'FR-16(7)(v)-13 DIST Cust'!P536","v":-775},-1089,0]
[23,null,{"$f":"'FR-16(7)(v)-1 Functional'!C537","v":"DSM DEFERRAL - ELECTRIC"},{"$f":"'FR-16(7)(v)-1 Functional'!D537","v":"A315"},null,{"$f":"'FR-16(7)(v)-14 TOTAL CLASS'!P537","v":0},{"$f":"'FR-16(7)(v)-3 PROD Demand'!P537+'FR-16(7)(v)-7 TRANS Demand'!P537+'FR-16(7)(v)-11 DIST Demand'!P537","v":0},{"$f":"'FR-16(7)(v)-4 PROD Energy'!P537+'FR-16(7)(v)-8 TRANS Energy'!P537+'FR-16(7)(v)-12 DIST Energy'!P537","v":0},{"$f":"'FR-16(7)(v)-5 PROD Cust'!P537+'FR-16(7)(v)-9 TRANS Cust'!P537+'FR-16(7)(v)-13 DIST Cust'!P537","v":0},0,0]
[24,null,{"$f":"'FR-16(7)(v)-1 Functional'!C538","v":"PENSION ADJUSTMENT"},{"$f":"'FR-16(7)(v)-1 Functional'!D538","v":"A315"},null,{"$f":"'FR-16(7)(v)-14 TOTAL CLASS'!P538","v":-4741},{"$f":"'FR-16(7)(v)-3 PROD Demand'!P538+'FR-16(7)(v)-7 TRANS Demand'!P538+'FR-16(7)(v)-11 DIST Demand'!P538","v":-513},{"$f":"'FR-16(7)(v)-4 PROD Energy'!P538+'FR-16(7)(v)-8 TRANS Energy'!P538+'FR-16(7)(v)-12 DIST Energy'!P538","v":-853},{"$f":"'FR-16(7)(v)-5 PROD Cust'!P538+'FR-16(7)(v)-9 TRANS Cust'!P538+'FR-16(7)(v)-13 DIST Cust'!P538","v":-3375},-4741,0]
[25,null,{"$f":"'FR-16(7)(v)-1 Functional'!C539","v":"ELIMINATE MISC EXPENSES"},{"$f":"'FR-16(7)(v)-1 Functional'!D539","v":"A315"},null,{"$f":"'FR-16(7)(v)-14 TOTAL CLASS'!P539","v":-4573},{"$f":"'FR-16(7)(v)-3 PROD Demand'!P539+'FR-16(7)(v)-7 TRANS Demand'!P539+'FR-16(7)(v)-11 DIST Demand'!P539","v":-495},{"$f":"'FR-16(7)(v)-4 PROD Energy'!P539+'FR-16(7)(v)-8 TRANS Energy'!P539+'FR-16(7)(v)-12 DIST Energy'!P539","v":-823},{"$f":"'FR-16(7)(v)-5 PROD Cust'!P539+'FR-16(7)(v)-9 TRANS Cust'!P539+'FR-16(7)(v)-13 DIST Cust'!P539","v":-3255},-4573,0]
[26,null,{"$f":"'FR-16(7)(v)-1 Functional'!C540","v":"ELIMINATE MERGER COSTS AND CREDITS"},{"$f":"'FR-16(7)(v)-1 Functional'!D540","v":"A315"},null,{"$f":"'FR-16(7)(v)-14 TOTAL CLASS'!P540","v":0},{"$f":"'FR-16(7)(v)-3 PROD Demand'!P540+'FR-16(7)(v)-7 TRANS Demand'!P540+'FR-16(7)(v)-11 DIST Demand'!P540","v":0},{"$f":"'FR-16(7)(v)-4 PROD Energy'!P540+'FR-16(7)(v)-8 TRANS Energy'!P540+'FR-16(7)(v)-12 DIST Energy'!P540","v":0},{"$f":"'FR-16(7)(v)-5 PROD Cust'!P540+'FR-16(7)(v)-9 TRANS Cust'!P540+'FR-16(7)(v)-13 DIST Cust'!P540","v":0},0,0]
[27,null,{"$f":"'FR-16(7)(v)-1 Functional'!C541","v":"ANNUALIZE KYPSC MAINT TAX"},{"$f":"'FR-16(7)(v)-1 Functional'!D541","v":"A315"},null,{"$f":"'FR-16(7)(v)-14 TOTAL CLASS'!P541","v":0},{"$f":"'FR-16(7)(v)-3 PROD Demand'!P541+'FR-16(7)(v)-7 TRANS Demand'!P541+'FR-16(7)(v)-11 DIST Demand'!P541","v":0},{"$f":"'FR-16(7)(v)-4 PROD Energy'!P541+'FR-16(7)(v)-8 TRANS Energy'!P541+'FR-16(7)(v)-12 DIST Energy'!P541","v":0},{"$f":"'FR-16(7)(v)-5 PROD Cust'!P541+'FR-16(7)(v)-9 TRANS Cust'!P541+'FR-16(7)(v)-13 DIST Cust'!P541","v":0},0,0]
[28,null,{"$f":"'FR-16(7)(v)-1 Functional'!C542","v":"REMOVE INCENTIVE COMP"},{"$f":"'FR-16(7)(v)-1 Functional'!D542","v":"A315"},null,{"$f":"'FR-16(7)(v)-14 TOTAL CLASS'!P542","v":-13201},{"$f":"'FR-16(7)(v)-3 PROD Demand'!P542+'FR-16(7)(v)-7 TRANS Demand'!P542+'FR-16(7)(v)-11 DIST Demand'!P542","v":-1427},{"$f":"'FR-16(7)(v)-4 PROD Energy'!P542+'FR-16(7)(v)-8 TRANS Energy'!P542+'FR-16(7)(v)-12 DIST Energy'!P542","v":-2377},{"$f":"'FR-16(7)(v)-5 PROD Cust'!P542+'FR-16(7)(v)-9 TRANS Cust'!P542+'FR-16(7)(v)-13 DIST Cust'!P542","v":-9397},-13201,0]
[29,null,{"$f":"'FR-16(7)(v)-1 Functional'!C543","v":"CREDIT CARD FEES"},{"$f":"'FR-16(7)(v)-1 Functional'!D543","v":"A315"},null,{"$f":"'FR-16(7)(v)-14 TOTAL CLASS'!P543","v":0},{"$f":"'FR-16(7)(v)-3 PROD Demand'!P543+'FR-16(7)(v)-7 TRANS Demand'!P543+'FR-16(7)(v)-11 DIST Demand'!P543","v":0},{"$f":"'FR-16(7)(v)-4 PROD Energy'!P543+'FR-16(7)(v)-8 TRANS Energy'!P543+'FR-16(7)(v)-12 DIST Energy'!P543","v":0},{"$f":"'FR-16(7)(v)-5 PROD Cust'!P543+'FR-16(7)(v)-9 TRANS Cust'!P543+'FR-16(7)(v)-13 DIST Cust'!P543","v":0},0,0]
[30,null,{"$f":"'FR-16(7)(v)-1 Functional'!C544","v":"ELIMINATE INCENTIVE COMPENSATION ADJUSTMENT"},{"$f":"'FR-16(7)(v)-1 Functional'!D544","v":"A315"},null,{"$f":"'FR-16(7)(v)-14 TOTAL CLASS'!P544","v":0},{"$f":"'FR-16(7)(v)-3 PROD Demand'!P544+'FR-16(7)(v)-7 TRANS Demand'!P544+'FR-16(7)(v)-11 DIST Demand'!P544","v":0},{"$f":"'FR-16(7)(v)-4 PROD Energy'!P544+'FR-16(7)(v)-8 TRANS Energy'!P544+'FR-16(7)(v)-12 DIST Energy'!P544","v":0},{"$f":"'FR-16(7)(v)-5 PROD Cust'!P544+'FR-16(7)(v)-9 TRANS Cust'!P544+'FR-16(7)(v)-13 DIST Cust'!P544","v":0},0,0]
[31,null,{"$f":"'FR-16(7)(v)-1 Functional'!C545","v":"AMORTIZATION OF DEFERRAL ASSET"},{"$f":"'FR-16(7)(v)-1 Functional'!D545","v":"A315"},null,{"$f":"'FR-16(7)(v)-14 TOTAL CLASS'!P545","v":0},{"$f":"'FR-16(7)(v)-3 PROD Demand'!P545+'FR-16(7)(v)-7 TRANS Demand'!P545+'FR-16(7)(v)-11 DIST Demand'!P545","v":0},{"$f":"'FR-16(7)(v)-4 PROD Energy'!P545+'FR-16(7)(v)-8 TRANS Energy'!P545+'FR-16(7)(v)-12 DIST Energy'!P545","v":0},{"$f":"'FR-16(7)(v)-5 PROD Cust'!P545+'FR-16(7)(v)-9 TRANS Cust'!P545+'FR-16(7)(v)-13 DIST Cust'!P545","v":0},0,0]
[32,null,{"$f":"'FR-16(7)(v)-1 Functional'!C546","v":"AMORTIZATION OF DEFERRED EXPENSES"},{"$f":"'FR-16(7)(v)-1 Functional'!D546","v":"A315"},null,{"$f":"'FR-16(7)(v)-14 TOTAL CLASS'!P546","v":831},{"$f":"'FR-16(7)(v)-3 PROD Demand'!P546+'FR-16(7)(v)-7 TRANS Demand'!P546+'FR-16(7)(v)-11 DIST Demand'!P546","v":90},{"$f":"'FR-16(7)(v)-4 PROD Energy'!P546+'FR-16(7)(v)-8 TRANS Energy'!P546+'FR-16(7)(v)-12 DIST Energy'!P546","v":150},{"$f":"'FR-16(7)(v)-5 PROD Cust'!P546+'FR-16(7)(v)-9 TRANS Cust'!P546+'FR-16(7)(v)-13 DIST Cust'!P546","v":591},831,0]
[33,null,{"$f":"'FR-16(7)(v)-1 Functional'!C547","v":"TOTAL ADMIN. & GENERAL"},null," ",{"$f":"SUM(F532:F546)","v":164025},17706,29534,116785,164025,0]
[34]
[35,null,{"$f":"'FR-16(7)(v)-1 Functional'!C549","v":"TOTAL O & M EXPENSE"},null,null,{"$f":"F547+F522+F518+F503+F492+F470+F466+F459","v":1433909},127731,646578,659600,1433909,0]
[]
[{"$f":"co_name","v":"DUKE ENERGY KENTUCKY, INC."},null,null,null,null,null,null,null,null,{"$f":"J1","v":"FR-16(7)(v)-24"}]
[{"$f":"$A$2","v":"LIGHTING CLASSIFIED - ELECTRIC COST OF SERVICE"},null,null,null,null,null,null,null,null,{"$f":"J2","v":"WITNESS RESPONSIBLE:"}]
[{"$f":"case_name","v":"CASE NO: 2019-00271"},null,null,null,null,null,null,null,null,{"$f":"Witness","v":"JAMES E. ZIOLKOWSKI"}]
[{"$f":"data_filing","v":"DATA: 12 MONTHS ACTUAL  & 0 MONTHS ESTIMATED"},null,null,null,null,null,null,null,null,{"$f":"\"PAGE \"&Pages2-5&\" OF \"&Pages2","v":"PAGE 10 OF 15"}]
[{"$f":"type","v":"TYPE OF FILING: \"X\" ORIGINAL   UPDATED    REVISED  "}]
[]
[]
["LINE",null,null,null,null,"TOTAL","CLASSIFIED",null,null,"TOTAL","ALL"]
["NO.","DEPRECIATION EXPENSE",null,"ALLO",null,{"$f":"$F$9","v":"LIGHTING"},{"$f":"G9","v":"DEMAND"},"ENERGY","CUSTOMER","AT ISSUE","OTHER"]
[null,null,"Schedule 7",null,null,null,3,4,5]
[1,"PRODUCTION DEPRECIATION"]
[2,null,{"$f":"'FR-16(7)(v)-1 Functional'!C562","v":"PRODUCTION DEPRECIATION"},{"$f":"'FR-16(7)(v)-1 Functional'!D562","v":"P229"},null,{"$f":"'FR-16(7)(v)-14 TOTAL CLASS'!P562","v":46544},{"$f":"'FR-16(7)(v)-3 PROD Demand'!P562+'FR-16(7)(v)-7 TRANS Demand'!P562+'FR-16(7)(v)-11 DIST Demand'!P562","v":46544},{"$f":"'FR-16(7)(v)-4 PROD Energy'!P562+'FR-16(7)(v)-8 TRANS Energy'!P562+'FR-16(7)(v)-12 DIST Energy'!P562","v":0},{"$f":"'FR-16(7)(v)-5 PROD Cust'!P562+'FR-16(7)(v)-9 TRANS Cust'!P562+'FR-16(7)(v)-13 DIST Cust'!P562","v":0},{"$f":"SUM(G562:I562)","v":46544},{"$f":"F562-J562","v":0}]
[3,null,{"$f":"'FR-16(7)(v)-1 Functional'!C563","v":"  TOTAL PRODUCTION DEPREC EXP."},null,null,{"$f":"SUM(F562:F562)","v":46544},46544,0,0,46544,0]
[4]
[5,"TRANSMISSION DEPRECIATION"]
[6,null,"TRANSMISSION DEPRECIATION",{"$f":"'FR-16(7)(v)-1 Functional'!D566","v":"T229"},null,{"$f":"'FR-16(7)(v)-14 TOTAL CLASS'!P566","v":1822},{"$f":"'FR-16(7)(v)-3 PROD Demand'!P566+'FR-16(7)(v)-7 TRANS Demand'!P566+'FR-16(7)(v)-11 DIST Demand'!P566","v":1822},{"$f":"'FR-16(7)(v)-4 PROD Energy'!P566+'FR-16(7)(v)-8 TRANS Energy'!P566+'FR-16(7)(v)-12 DIST Energy'!P566","v":0},{"$f":"'FR-16(7)(v)-5 PROD Cust'!P566+'FR-16(7)(v)-9 TRANS Cust'!P566+'FR-16(7)(v)-13 DIST Cust'!P566","v":0},{"$f":"SUM(G566:I566)","v":1822},{"$f":"F566-J566","v":0}]
[7,null,{"$f":"'FR-16(7)(v)-1 Functional'!C567","v":"  TOTAL TRANSMISSION DEP. EXP."},null,null,{"$f":"SUM(F566:F566)","v":1822},1822,0,0,1822,0]
[8]
[9,"DISTRIBUTION DEPRECIATION"]
[10,null,{"$f":"'FR-16(7)(v)-1 Functional'!C570","v":"DISTRIBUTION DEPRECIATION"},{"$f":"'FR-16(7)(v)-1 Functional'!D570","v":"D249"},null,{"$f":"'FR-16(7)(v)-14 TOTAL CLASS'!P570","v":156193},{"$f":"'FR-16(7)(v)-3 PROD Demand'!P570+'FR-16(7)(v)-7 TRANS Demand'!P570+'FR-16(7)(v)-11 DIST Demand'!P570","v":65638},{"$f":"'FR-16(7)(v)-4 PROD Energy'!P570+'FR-16(7)(v)-8 TRANS Energy'!P570+'FR-16(7)(v)-12 DIST Energy'!P570","v":0},{"$f":"'FR-16(7)(v)-5 PROD Cust'!P570+'FR-16(7)(v)-9 TRANS Cust'!P570+'FR-16(7)(v)-13 DIST Cust'!P570","v":90555},{"$f":"SUM(G570:I570)","v":156193},{"$f":"F570-J570","v":0}]
[11,null,{"$f":"'FR-16(7)(v)-1 Functional'!C571","v":"  TOTAL DIST. DEPREC EXP."},null,null,{"$f":"SUM(F570:F570)","v":156193},65638,0,90555,156193,0]
[12,null,null,null,null," "]
[13,"GENERAL DEPRECIATION"]
[14,null,{"$f":"'FR-16(7)(v)-1 Functional'!C574","v":"GENERAL DEPRECIATION"},{"$f":"'FR-16(7)(v)-1 Functional'!D574","v":"G229"},null,{"$f":"'FR-16(7)(v)-14 TOTAL CLASS'!P574","v":13658},{"$f":"'FR-16(7)(v)-3 PROD Demand'!P574+'FR-16(7)(v)-7 TRANS Demand'!P574+'FR-16(7)(v)-11 DIST Demand'!P574","v":3356},{"$f":"'FR-16(7)(v)-4 PROD Energy'!P574+'FR-16(7)(v)-8 TRANS Energy'!P574+'FR-16(7)(v)-12 DIST Energy'!P574","v":8084},{"$f":"'FR-16(7)(v)-5 PROD Cust'!P574+'FR-16(7)(v)-9 TRANS Cust'!P574+'FR-16(7)(v)-13 DIST Cust'!P574","v":2218},{"$f":"SUM(G574:I574)","v":13658},{"$f":"F574-J574","v":0}]
[15,null,{"$f":"'FR-16(7)(v)-1 Functional'!C575","v":"  TOTAL GENERAL DEPREC EXP."},null,null,{"$f":"SUM(F574:F574)","v":13658},3356,8084,2218,13658,0]
[16]
[17,"COMMON AND OTHER DEPRECIATION"]
[18,null,{"$f":"'FR-16(7)(v)-1 Functional'!C578","v":"COMMON DEPRECIATION"},{"$f":"'FR-16(7)(v)-1 Functional'!D578","v":"C229"},null,{"$f":"'FR-16(7)(v)-14 TOTAL CLASS'!P578","v":93},{"$f":"'FR-16(7)(v)-3 PROD Demand'!P578+'FR-16(7)(v)-7 TRANS Demand'!P578+'FR-16(7)(v)-11 DIST Demand'!P578","v":22},{"$f":"'FR-16(7)(v)-4 PROD Energy'!P578+'FR-16(7)(v)-8 TRANS Energy'!P578+'FR-16(7)(v)-12 DIST Energy'!P578","v":55},{"$f":"'FR-16(7)(v)-5 PROD Cust'!P578+'FR-16(7)(v)-9 TRANS Cust'!P578+'FR-16(7)(v)-13 DIST Cust'!P578","v":16},{"$f":"SUM(G578:I578)","v":93},{"$f":"F578-J578","v":0}]
[19,null,{"$f":"'FR-16(7)(v)-1 Functional'!C579","v":"  TOTAL COM & OTHER DEPREC EXP."},null,null,{"$f":"SUM(F578:F578)","v":93},22,55,16,93,0]
[20]
[21]
[22,"TOTAL DEPRECIATION EXPENSE",null,null," ",{"$f":"F579+F575+F571+F567+F563","v":218310},117382,8139,92789,218310,0]
[]
[{"$f":"co_name","v":"DUKE ENERGY KENTUCKY, INC."},null,null,null,null,null,null,null,null,{"$f":"J1","v":"FR-16(7)(v)-24"}]
[{"$f":"$A$2","v":"LIGHTING CLASSIFIED - ELECTRIC COST OF SERVICE"},null,null,null,null,null,null,null,null,{"$f":"J2","v":"WITNESS RESPONSIBLE:"}]
[{"$f":"case_name","v":"CASE NO: 2019-00271"},null,null,null,null,null,null,null,null,{"$f":"Witness","v":"JAMES E. ZIOLKOWSKI"}]
[{"$f":"data_filing","v":"DATA: 12 MONTHS ACTUAL  & 0 MONTHS ESTIMATED"},null,null,null,null,null,null,null,null,{"$f":"\"PAGE \"&Pages2-4&\" OF \"&Pages2","v":"PAGE 11 OF 15"}]
[{"$f":"type","v":"TYPE OF FILING: \"X\" ORIGINAL   UPDATED    REVISED  "}]
[]
[]
["LINE",null,null,null,null,"TOTAL","CLASSIFIED",null,null,"TOTAL","ALL"]
["NO.","OTHER TAXES & MISC EXPENSES",null,"ALLO",null,{"$f":"$F$9","v":"LIGHTING"},{"$f":"G9","v":"DEMAND"},"ENERGY","CUSTOMER","AT ISSUE","OTHER"]
[null,null,"Schedule 8",null,null,null,3,4,5]
[1,"TAXES OTHER THAN INC & REV"]
[2," REAL ESTATE & PROPERTY TAX"]
[3,null,{"$f":"'FR-16(7)(v)-1 Functional'!C596","v":"REAL ESTATE & PROPERTY TAX"},{"$f":"'FR-16(7)(v)-1 Functional'!D596","v":"NP29"},null,{"$f":"'FR-16(7)(v)-14 TOTAL CLASS'!P596","v":69215},{"$f":"'FR-16(7)(v)-3 PROD Demand'!P596+'FR-16(7)(v)-7 TRANS Demand'!P596+'FR-16(7)(v)-11 DIST Demand'!P596","v":34776},{"$f":"'FR-16(7)(v)-4 PROD Energy'!P596+'FR-16(7)(v)-8 TRANS Energy'!P596+'FR-16(7)(v)-12 DIST Energy'!P596","v":807},{"$f":"'FR-16(7)(v)-5 PROD Cust'!P596+'FR-16(7)(v)-9 TRANS Cust'!P596+'FR-16(7)(v)-13 DIST Cust'!P596","v":33632},{"$f":"SUM(G596:I596)","v":69215},{"$f":"F596-J596","v":0}]
[4,null,{"$f":"'FR-16(7)(v)-1 Functional'!C597","v":"ANNUALIZE PROPERTY TAX"},{"$f":"'FR-16(7)(v)-1 Functional'!D597","v":"NP29"}," ",{"$f":"'FR-16(7)(v)-14 TOTAL CLASS'!P597","v":0},{"$f":"'FR-16(7)(v)-3 PROD Demand'!P597+'FR-16(7)(v)-7 TRANS Demand'!P597+'FR-16(7)(v)-11 DIST Demand'!P597","v":0},{"$f":"'FR-16(7)(v)-4 PROD Energy'!P597+'FR-16(7)(v)-8 TRANS Energy'!P597+'FR-16(7)(v)-12 DIST Energy'!P597","v":0},{"$f":"'FR-16(7)(v)-5 PROD Cust'!P597+'FR-16(7)(v)-9 TRANS Cust'!P597+'FR-16(7)(v)-13 DIST Cust'!P597","v":0},{"$f":"SUM(G597:I597)","v":0},{"$f":"F597-J597","v":0}]
[5,null,{"$f":"'FR-16(7)(v)-1 Functional'!C598","v":"  TOTAL REAL ESTATE & PROPERTY TAX"},null,null,{"$f":"SUM(F596:F597)","v":69215},34776,807,33632,69215,0]
[6]
[7," MISCELLANEOUS TAXES"]
[8,null,{"$f":"'FR-16(7)(v)-1 Functional'!C601","v":"PAYROLL "},{"$f":"'FR-16(7)(v)-1 Functional'!D601","v":"A315"},null,{"$f":"'FR-16(7)(v)-14 TOTAL CLASS'!P601","v":15723},{"$f":"'FR-16(7)(v)-3 PROD Demand'!P601+'FR-16(7)(v)-7 TRANS Demand'!P601+'FR-16(7)(v)-11 DIST Demand'!P601","v":1700},{"$f":"'FR-16(7)(v)-4 PROD Energy'!P601+'FR-16(7)(v)-8 TRANS Energy'!P601+'FR-16(7)(v)-12 DIST Energy'!P601","v":2831},{"$f":"'FR-16(7)(v)-5 PROD Cust'!P601+'FR-16(7)(v)-9 TRANS Cust'!P601+'FR-16(7)(v)-13 DIST Cust'!P601","v":11192},{"$f":"SUM(G601:I601)","v":15723},{"$f":"F601-J601","v":0}]
[9,null,{"$f":"'FR-16(7)(v)-1 Functional'!C602","v":"ELIMINATE DSM "},{"$f":"'FR-16(7)(v)-1 Functional'!D602","v":"A315"},null,{"$f":"'FR-16(7)(v)-14 TOTAL CLASS'!P602","v":-309},{"$f":"'FR-16(7)(v)-3 PROD Demand'!P602+'FR-16(7)(v)-7 TRANS Demand'!P602+'FR-16(7)(v)-11 DIST Demand'!P602","v":-33},{"$f":"'FR-16(7)(v)-4 PROD Energy'!P602+'FR-16(7)(v)-8 TRANS Energy'!P602+'FR-16(7)(v)-12 DIST Energy'!P602","v":-56},{"$f":"'FR-16(7)(v)-5 PROD Cust'!P602+'FR-16(7)(v)-9 TRANS Cust'!P602+'FR-16(7)(v)-13 DIST Cust'!P602","v":-220},{"$f":"SUM(G602:I602)","v":-309},{"$f":"F602-J602","v":0}]
[10,null,{"$f":"'FR-16(7)(v)-1 Functional'!C603","v":"FRANCHISE & LICENSE"},{"$f":"'FR-16(7)(v)-1 Functional'!D603","v":"A315"},null,{"$f":"'FR-16(7)(v)-14 TOTAL CLASS'!P603","v":0},{"$f":"'FR-16(7)(v)-3 PROD Demand'!P603+'FR-16(7)(v)-7 TRANS Demand'!P603+'FR-16(7)(v)-11 DIST Demand'!P603","v":0},{"$f":"'FR-16(7)(v)-4 PROD Energy'!P603+'FR-16(7)(v)-8 TRANS Energy'!P603+'FR-16(7)(v)-12 DIST Energy'!P603","v":0},{"$f":"'FR-16(7)(v)-5 PROD Cust'!P603+'FR-16(7)(v)-9 TRANS Cust'!P603+'FR-16(7)(v)-13 DIST Cust'!P603","v":0},{"$f":"SUM(G603:I603)","v":0},{"$f":"F603-J603","v":0}]
[11,null,{"$f":"'FR-16(7)(v)-1 Functional'!C604","v":"ELIMINATE ESM"},{"$f":"'FR-16(7)(v)-1 Functional'!D604","v":"A315"},null,{"$f":"'FR-16(7)(v)-14 TOTAL CLASS'!P604","v":-8364},{"$f":"'FR-16(7)(v)-3 PROD Demand'!P604+'FR-16(7)(v)-7 TRANS Demand'!P604+'FR-16(7)(v)-11 DIST Demand'!P604","v":-904},{"$f":"'FR-16(7)(v)-4 PROD Energy'!P604+'FR-16(7)(v)-8 TRANS Energy'!P604+'FR-16(7)(v)-12 DIST Energy'!P604","v":-1506},{"$f":"'FR-16(7)(v)-5 PROD Cust'!P604+'FR-16(7)(v)-9 TRANS Cust'!P604+'FR-16(7)(v)-13 DIST Cust'!P604","v":-5954},{"$f":"SUM(G604:I604)","v":-8364},{"$f":"F604-J604","v":0}]
[12,null,{"$f":"'FR-16(7)(v)-1 Functional'!C605","v":"  TOTAL MISCELLANEOUS TAXES"},null,null,{"$f":"SUM(F601:F604)","v":7050},763,1269,5018,7050,0]
[13]
[14," MISCELLANEOUS EXPENSES"]
[15,null,{"$f":"'FR-16(7)(v)-1 Functional'!C608","v":"PSC MAINT. EXP ON INCREASE"},{"$f":"'FR-16(7)(v)-1 Functional'!D608","v":"K902"},null,{"$f":"'FR-16(7)(v)-14 TOTAL CLASS'!P608","v":529},{"$f":"'FR-16(7)(v)-3 PROD Demand'!P608+'FR-16(7)(v)-7 TRANS Demand'!P608+'FR-16(7)(v)-11 DIST Demand'!P608","v":262},{"$f":"'FR-16(7)(v)-4 PROD Energy'!P608+'FR-16(7)(v)-8 TRANS Energy'!P608+'FR-16(7)(v)-12 DIST Energy'!P608","v":182},{"$f":"'FR-16(7)(v)-5 PROD Cust'!P608+'FR-16(7)(v)-9 TRANS Cust'!P608+'FR-16(7)(v)-13 DIST Cust'!P608","v":85},{"$f":"SUM(G608:I608)","v":529},{"$f":"F608-J608","v":0}]
[16,null,{"$f":"'FR-16(7)(v)-1 Functional'!C609","v":"RESERVED FOR FUTURE USE"},{"$f":"'FR-16(7)(v)-1 Functional'!D609","v":"K902"},null,{"$f":"'FR-16(7)(v)-14 TOTAL CLASS'!P609","v":0},{"$f":"'FR-16(7)(v)-3 PROD Demand'!P609+'FR-16(7)(v)-7 TRANS Demand'!P609+'FR-16(7)(v)-11 DIST Demand'!P609","v":0},{"$f":"'FR-16(7)(v)-4 PROD Energy'!P609+'FR-16(7)(v)-8 TRANS Energy'!P609+'FR-16(7)(v)-12 DIST Energy'!P609","v":0},{"$f":"'FR-16(7)(v)-5 PROD Cust'!P609+'FR-16(7)(v)-9 TRANS Cust'!P609+'FR-16(7)(v)-13 DIST Cust'!P609","v":0},{"$f":"SUM(G609:I609)","v":0},{"$f":"F609-J609","v":0}]
[17,null,{"$f":"'FR-16(7)(v)-1 Functional'!C610","v":"  TOTAL MISCELLANEOUS EXPENSES"},null,null,{"$f":"SUM(F608:F609)","v":529},262,182,85,529,0]
[18]
[19,"TOTAL OTHER TAX & MISC EXPENSE",null,null," ",{"$f":"F605+F598+F610","v":76794},35801,2258,38735,76794,0]
[20]
[21,"PRELIMINARY SUMMARY"]
[22,null,{"$f":"'FR-16(7)(v)-1 Functional'!C615","v":"TOTAL O&M EXPENSE"},null,null,{"$f":"F549","v":1433909},127731,646578,659600,1433909,0]
[23,null,{"$f":"'FR-16(7)(v)-1 Functional'!C616","v":"TOTAL DEPRECIATION EXPENSE"},null,null,{"$f":"F582","v":218310},117382,8139,92789,218310,0]
[24,null,{"$f":"'FR-16(7)(v)-1 Functional'!C617","v":"TOTAL OTHER TAX & MISC EXPENSE"},null,null,{"$f":"F612","v":76794},35801,2258,38735,76794,0]
[25,null,{"$f":"'FR-16(7)(v)-1 Functional'!C618","v":"  TOTAL OPER EXP EXCL INCOME & REV TAX"},null,null,{"$f":"SUM(F615:F617)","v":1729013},280914,656975,791124,1729013,0]
[]
[{"$f":"co_name","v":"DUKE ENERGY KENTUCKY, INC."},null,null,null,null,null,null,null,null,{"$f":"J1","v":"FR-16(7)(v)-24"}]
[{"$f":"$A$2","v":"LIGHTING CLASSIFIED - ELECTRIC COST OF SERVICE"},null,null,null,null,null,null,null,null,{"$f":"J2","v":"WITNESS RESPONSIBLE:"}]
[{"$f":"case_name","v":"CASE NO: 2019-00271"},null,null,null,null,null,null,null,null,{"$f":"Witness","v":"JAMES E. ZIOLKOWSKI"}]
[{"$f":"data_filing","v":"DATA: 12 MONTHS ACTUAL  & 0 MONTHS ESTIMATED"},null,null,null,null,null,null,null,null,{"$f":"\"PAGE \"&Pages2-3&\" OF \"&Pages2","v":"PAGE 12 OF 15"}]
[{"$f":"type","v":"TYPE OF FILING: \"X\" ORIGINAL   UPDATED    REVISED  "}]
[]
[]
["LINE",null,null,null,null,"TOTAL","CLASSIFIED",null,null,"TOTAL","ALL"]
["NO.","FEDERAL INCOME TAX BASED ON RETURN",null,"ALLO",null,{"$f":"$F$9","v":"LIGHTING"},{"$f":"$G$9","v":"DEMAND"},{"$f":"$H$9","v":"ENERGY"},{"$f":"$I$9","v":"CUSTOMER"},"AT ISSUE","OTHER"]
[null,null,"Schedule 9",null,null,null,{"$f":"G10","v":3},{"$f":"H10","v":4},{"$f":"I10","v":5}]
[1,"FEDERAL INCOME TAX DEDUCTIONS"]
[2," AUTOMATIC INTEREST CALCULATION",null,null,null," "]
[3,null,{"$f":"'FR-16(7)(v)-1 Functional'!C632","v":"AUTO PROC INTEREST DED"},{"$f":"'FR-16(7)(v)-1 Functional'!D632","v":"RB99"},null,{"$f":"'FR-16(7)(v)-14 TOTAL CLASS'!P632","v":93107},{"$f":"'FR-16(7)(v)-3 PROD Demand'!P632+'FR-16(7)(v)-7 TRANS Demand'!P632+'FR-16(7)(v)-11 DIST Demand'!P632","v":45801},{"$f":"'FR-16(7)(v)-4 PROD Energy'!P632+'FR-16(7)(v)-8 TRANS Energy'!P632+'FR-16(7)(v)-12 DIST Energy'!P632","v":2743},{"$f":"'FR-16(7)(v)-5 PROD Cust'!P632+'FR-16(7)(v)-9 TRANS Cust'!P632+'FR-16(7)(v)-13 DIST Cust'!P632","v":44563},{"$f":"SUM(G632:I632)","v":93107},{"$f":"F632-J632","v":0}]
[4,null,{"$f":"'FR-16(7)(v)-1 Functional'!C633","v":"  TOTAL INTEREST EXPENSE"},null,null,{"$f":"F632","v":93107},45801,2743,44563,93107,0]
[5]
[6," OTHER DEDUCTIONS"]
[7,null,{"$f":"'FR-16(7)(v)-1 Functional'!C636","v":"DEPREC EXCESS TAX-BOOK"},{"$f":"'FR-16(7)(v)-1 Functional'!D636","v":"DE49"},null,{"$f":"'FR-16(7)(v)-14 TOTAL CLASS'!P636","v":-51786},{"$f":"'FR-16(7)(v)-3 PROD Demand'!P636+'FR-16(7)(v)-7 TRANS Demand'!P636+'FR-16(7)(v)-11 DIST Demand'!P636","v":-27847},{"$f":"'FR-16(7)(v)-4 PROD Energy'!P636+'FR-16(7)(v)-8 TRANS Energy'!P636+'FR-16(7)(v)-12 DIST Energy'!P636","v":-1930},{"$f":"'FR-16(7)(v)-5 PROD Cust'!P636+'FR-16(7)(v)-9 TRANS Cust'!P636+'FR-16(7)(v)-13 DIST Cust'!P636","v":-22009},{"$f":"SUM(G636:I636)","v":-51786},{"$f":"F636-J636","v":0}]
[8,null,{"$f":"'FR-16(7)(v)-1 Functional'!C637","v":"PERMANENT DIFFERENCES"},{"$f":"'FR-16(7)(v)-1 Functional'!D637","v":"A357"},null,{"$f":"'FR-16(7)(v)-14 TOTAL CLASS'!P637","v":-3518},{"$f":"'FR-16(7)(v)-3 PROD Demand'!P637+'FR-16(7)(v)-7 TRANS Demand'!P637+'FR-16(7)(v)-11 DIST Demand'!P637","v":-380},{"$f":"'FR-16(7)(v)-4 PROD Energy'!P637+'FR-16(7)(v)-8 TRANS Energy'!P637+'FR-16(7)(v)-12 DIST Energy'!P637","v":-633},{"$f":"'FR-16(7)(v)-5 PROD Cust'!P637+'FR-16(7)(v)-9 TRANS Cust'!P637+'FR-16(7)(v)-13 DIST Cust'!P637","v":-2505},{"$f":"SUM(G637:I637)","v":-3518},{"$f":"F637-J637","v":0}]
[9,null,{"$f":"'FR-16(7)(v)-1 Functional'!C638","v":"TEMPORARY DIFFERENCES"},{"$f":"'FR-16(7)(v)-1 Functional'!D638","v":"DE49"},null,{"$f":"'FR-16(7)(v)-14 TOTAL CLASS'!P638","v":315990},{"$f":"'FR-16(7)(v)-3 PROD Demand'!P638+'FR-16(7)(v)-7 TRANS Demand'!P638+'FR-16(7)(v)-11 DIST Demand'!P638","v":169918},{"$f":"'FR-16(7)(v)-4 PROD Energy'!P638+'FR-16(7)(v)-8 TRANS Energy'!P638+'FR-16(7)(v)-12 DIST Energy'!P638","v":11779},{"$f":"'FR-16(7)(v)-5 PROD Cust'!P638+'FR-16(7)(v)-9 TRANS Cust'!P638+'FR-16(7)(v)-13 DIST Cust'!P638","v":134293},{"$f":"SUM(G638:I638)","v":315990},{"$f":"F638-J638","v":0}]
[10,null,{"$f":"'FR-16(7)(v)-1 Functional'!C639","v":"  TOTAL OTHER DEDUCTIONS"},null,null,{"$f":"SUM(F636:F638)","v":260686},141691,9216,109779,260686,0]
[11]
[12,"NET DEDUCTIONS AND ADDITIONS",null,null,null,{"$f":"F639+F633","v":353793},187492,11959,154342,353793,0]
[13]
[14," FED DEFERRED INCOME TAX (410 & 411)"]
[15,null,{"$f":"'FR-16(7)(v)-1 Functional'!C644","v":"DEFERRED INCOME TAXES - NET"},{"$f":"'FR-16(7)(v)-1 Functional'!D644","v":"OM39"},null,{"$f":"'FR-16(7)(v)-14 TOTAL CLASS'!P644","v":95410},{"$f":"'FR-16(7)(v)-3 PROD Demand'!P644+'FR-16(7)(v)-7 TRANS Demand'!P644+'FR-16(7)(v)-11 DIST Demand'!P644","v":8503},{"$f":"'FR-16(7)(v)-4 PROD Energy'!P644+'FR-16(7)(v)-8 TRANS Energy'!P644+'FR-16(7)(v)-12 DIST Energy'!P644","v":42999},{"$f":"'FR-16(7)(v)-5 PROD Cust'!P644+'FR-16(7)(v)-9 TRANS Cust'!P644+'FR-16(7)(v)-13 DIST Cust'!P644","v":43908},{"$f":"SUM(G644:I644)","v":95410},{"$f":"F644-J644","v":0}]
[16,null,{"$f":"'FR-16(7)(v)-1 Functional'!C645","v":"AMORT OF DEFERRED MERGER COST"},{"$f":"'FR-16(7)(v)-1 Functional'!D645","v":"A357"},null,{"$f":"'FR-16(7)(v)-14 TOTAL CLASS'!P645","v":0},{"$f":"'FR-16(7)(v)-3 PROD Demand'!P645+'FR-16(7)(v)-7 TRANS Demand'!P645+'FR-16(7)(v)-11 DIST Demand'!P645","v":0},{"$f":"'FR-16(7)(v)-4 PROD Energy'!P645+'FR-16(7)(v)-8 TRANS Energy'!P645+'FR-16(7)(v)-12 DIST Energy'!P645","v":0},{"$f":"'FR-16(7)(v)-5 PROD Cust'!P645+'FR-16(7)(v)-9 TRANS Cust'!P645+'FR-16(7)(v)-13 DIST Cust'!P645","v":0},{"$f":"SUM(G645:I645)","v":0},{"$f":"F645-J645","v":0}]
[17,null,{"$f":"'FR-16(7)(v)-1 Functional'!C646","v":"DIT ADJUSTMENT - S/L DEPRECIATION"},{"$f":"'FR-16(7)(v)-1 Functional'!D646","v":"DE49"},null,{"$f":"'FR-16(7)(v)-14 TOTAL CLASS'!P646","v":0},{"$f":"'FR-16(7)(v)-3 PROD Demand'!P646+'FR-16(7)(v)-7 TRANS Demand'!P646+'FR-16(7)(v)-11 DIST Demand'!P646","v":0},{"$f":"'FR-16(7)(v)-4 PROD Energy'!P646+'FR-16(7)(v)-8 TRANS Energy'!P646+'FR-16(7)(v)-12 DIST Energy'!P646","v":0},{"$f":"'FR-16(7)(v)-5 PROD Cust'!P646+'FR-16(7)(v)-9 TRANS Cust'!P646+'FR-16(7)(v)-13 DIST Cust'!P646","v":0},{"$f":"SUM(G646:I646)","v":0},{"$f":"F646-J646","v":0}]
[18,null,{"$f":"'FR-16(7)(v)-1 Functional'!C647","v":"DIT ADJUSTMENT - ARAM"},{"$f":"'FR-16(7)(v)-1 Functional'!D647","v":"K201"},null,{"$f":"'FR-16(7)(v)-14 TOTAL CLASS'!P647","v":-133},{"$f":"'FR-16(7)(v)-3 PROD Demand'!P647+'FR-16(7)(v)-7 TRANS Demand'!P647+'FR-16(7)(v)-11 DIST Demand'!P647","v":-133},{"$f":"'FR-16(7)(v)-4 PROD Energy'!P647+'FR-16(7)(v)-8 TRANS Energy'!P647+'FR-16(7)(v)-12 DIST Energy'!P647","v":0},{"$f":"'FR-16(7)(v)-5 PROD Cust'!P647+'FR-16(7)(v)-9 TRANS Cust'!P647+'FR-16(7)(v)-13 DIST Cust'!P647","v":0},{"$f":"SUM(G647:I647)","v":-133},{"$f":"F647-J647","v":0}]
[19,null,{"$f":"'FR-16(7)(v)-1 Functional'!C648","v":"DIT ADJUSTMENT - AMORT OF EXCESS DEF TAXES"},{"$f":"'FR-16(7)(v)-1 Functional'!D648","v":"A357"},null,{"$f":"'FR-16(7)(v)-14 TOTAL CLASS'!P648","v":-30854},{"$f":"'FR-16(7)(v)-3 PROD Demand'!P648+'FR-16(7)(v)-7 TRANS Demand'!P648+'FR-16(7)(v)-11 DIST Demand'!P648","v":-3335},{"$f":"'FR-16(7)(v)-4 PROD Energy'!P648+'FR-16(7)(v)-8 TRANS Energy'!P648+'FR-16(7)(v)-12 DIST Energy'!P648","v":-5555},{"$f":"'FR-16(7)(v)-5 PROD Cust'!P648+'FR-16(7)(v)-9 TRANS Cust'!P648+'FR-16(7)(v)-13 DIST Cust'!P648","v":-21964},{"$f":"SUM(G648:I648)","v":-30854},{"$f":"F648-J648","v":0}]
[20,null,{"$f":"'FR-16(7)(v)-1 Functional'!C649","v":"  TOTAL FED DEF IT (410 & 411)"},null,null,{"$f":"SUM(F644:F648)","v":64423},5035,37444,21944,64423,0]
[21]
[22," AMORT INV TAX CREDIT"]
[23,null,{"$f":"'FR-16(7)(v)-1 Functional'!C652","v":"AMORTIZE ITC"},{"$f":"'FR-16(7)(v)-1 Functional'!D652","v":"NP29"},null,{"$f":"'FR-16(7)(v)-14 TOTAL CLASS'!P652","v":2},{"$f":"'FR-16(7)(v)-3 PROD Demand'!P652+'FR-16(7)(v)-7 TRANS Demand'!P652+'FR-16(7)(v)-11 DIST Demand'!P652","v":1},{"$f":"'FR-16(7)(v)-4 PROD Energy'!P652+'FR-16(7)(v)-8 TRANS Energy'!P652+'FR-16(7)(v)-12 DIST Energy'!P652","v":0},{"$f":"'FR-16(7)(v)-5 PROD Cust'!P652+'FR-16(7)(v)-9 TRANS Cust'!P652+'FR-16(7)(v)-13 DIST Cust'!P652","v":1},{"$f":"SUM(G652:I652)","v":2},{"$f":"F652-J652","v":0}]
[24,null,{"$f":"'FR-16(7)(v)-1 Functional'!C653","v":"  TOTAL AMORTIZED ITC"},null,null,{"$f":"SUM(F652:F652)","v":2},1,0,1,2,0]
[25]
[26," OTHER FEDERAL TAX CREDITS"]
[27,null,{"$f":"'FR-16(7)(v)-1 Functional'!C656","v":"FUEL TAX CREDIT"},{"$f":"'FR-16(7)(v)-1 Functional'!D656","v":"K301"},null,{"$f":"'FR-16(7)(v)-14 TOTAL CLASS'!P656","v":0},{"$f":"'FR-16(7)(v)-3 PROD Demand'!P656+'FR-16(7)(v)-7 TRANS Demand'!P656+'FR-16(7)(v)-11 DIST Demand'!P656","v":0},{"$f":"'FR-16(7)(v)-4 PROD Energy'!P656+'FR-16(7)(v)-8 TRANS Energy'!P656+'FR-16(7)(v)-12 DIST Energy'!P656","v":0},{"$f":"'FR-16(7)(v)-5 PROD Cust'!P656+'FR-16(7)(v)-9 TRANS Cust'!P656+'FR-16(7)(v)-13 DIST Cust'!P656","v":0},{"$f":"SUM(G656:I656)","v":0},{"$f":"F656-J656","v":0}]
[28,null,{"$f":"'FR-16(7)(v)-1 Functional'!C657","v":"R&D CREDIT - SECTION 41"},{"$f":"'FR-16(7)(v)-1 Functional'!D657","v":"A315"},null,{"$f":"'FR-16(7)(v)-14 TOTAL CLASS'!P657","v":0},{"$f":"'FR-16(7)(v)-3 PROD Demand'!P657+'FR-16(7)(v)-7 TRANS Demand'!P657+'FR-16(7)(v)-11 DIST Demand'!P657","v":0},{"$f":"'FR-16(7)(v)-4 PROD Energy'!P657+'FR-16(7)(v)-8 TRANS Energy'!P657+'FR-16(7)(v)-12 DIST Energy'!P657","v":0},{"$f":"'FR-16(7)(v)-5 PROD Cust'!P657+'FR-16(7)(v)-9 TRANS Cust'!P657+'FR-16(7)(v)-13 DIST Cust'!P657","v":0},{"$f":"SUM(G657:I657)","v":0},{"$f":"F657-J657","v":0}]
[29,null,{"$f":"'FR-16(7)(v)-1 Functional'!C658","v":"  TOTAL OTHER FEDERAL TAX CREDITS"},null,null,{"$f":"SUM(F656:F657)","v":0},0,0,0,0,0]
[30]
[31,"PRELIMINARY SUMMARY"]
[32,null,{"$f":"'FR-16(7)(v)-1 Functional'!C661","v":"TOTAL FED DEF IT (410 & 411)"},null,null,{"$f":"F649","v":64423},5035,37444,21944,64423,0]
[33,null,{"$f":"'FR-16(7)(v)-1 Functional'!C662","v":"TOTAL AMORTIZED ITC & OTHER FEDERAL TAX CREDITS"},null,null,{"$f":"-F653-F658","v":-2},-1,0,-1,-2,0]
[34,null,{"$f":"'FR-16(7)(v)-1 Functional'!C663","v":"  TOTAL FEDERAL TAX ADJUSTMENTS"},null,null,{"$f":"SUM(F661:F662)","v":64421},5034,37444,21943,64421,0]
[35]
[36,"FEDERAL INCOME TAX COMPUTATION"]
[37,null,"RETURN ON RATE BASE",null,null,{"$f":"F433","v":314977},{"$f":"G433","v":154942},{"$f":"H433","v":9281},{"$f":"I433","v":150754},{"$f":"J433","v":314977},{"$f":"F666-J666","v":0}]
[38,null,{"$f":"'FR-16(7)(v)-1 Functional'!C667","v":"NET DEDUCTIONS AND ADDITIONS"},null,null,{"$f":"-F641","v":-353793},{"$f":"-G641","v":-187492},{"$f":"-H641","v":-11959},{"$f":"-I641","v":-154342},{"$f":"-J641","v":-353793},{"$f":"F667-J667","v":0}]
[39,null,{"$f":"'FR-16(7)(v)-1 Functional'!C668","v":"TOTAL FEDERAL TAX ADJUSTMENTS"},null,null,{"$f":"F663","v":64421},{"$f":"G663","v":5034},{"$f":"H663","v":37444},{"$f":"I663","v":21943},{"$f":"J663","v":64421},{"$f":"F668-J668","v":0}]
[40,null,"TOTAL STATE PROV DEF IT (410 & 411)",null,null,{"$f":"F707","v":30618},{"$f":"G707","v":3310},{"$f":"H707","v":5512},{"$f":"I707","v":21796},{"$f":"J707","v":30618},{"$f":"F669-J669","v":0}]
[41,null,"RESERVED",null,null,{"$f":"F24","v":0},{"$f":"G24","v":0},{"$f":"H24","v":0},{"$f":"I24","v":0},{"$f":"J24","v":0},{"$f":"F670-J670","v":0}]
[42,null,{"$f":"'FR-16(7)(v)-1 Functional'!C671","v":"  BASE FOR FIT COMPUATION"},null,null,{"$f":"SUM(F666:F670)","v":56223},-24206,40278,40151,56223,0]
[43]
[44,null,{"$f":"'FR-16(7)(v)-1 Functional'!C673","v":"FIT FACTOR K190/(1-K190)"},null,null,{"$f":"ROUND(FIT/(1-FIT),9)","v":0.26582278500000001},{"$f":"ROUND(FIT/(1-FIT),9)","v":0.26582278500000001},{"$f":"ROUND(FIT/(1-FIT),9)","v":0.26582278500000001},{"$f":"ROUND(FIT/(1-FIT),9)","v":0.26582278500000001},null,{"$f":"ROUND(FIT/(1-FIT),9)","v":0.26582278500000001}]
[45,null,{"$f":"'FR-16(7)(v)-1 Functional'!C674","v":"PRELIM FED INCOME TAX"},null,null,{"$f":"'FR-16(7)(v)-14 TOTAL CLASS'!P674","v":14946},{"$f":"F674-SUM(H674:I674)","v":-6434},{"$f":"'FR-16(7)(v)-4 PROD Energy'!P674+'FR-16(7)(v)-8 TRANS Energy'!P674+'FR-16(7)(v)-12 DIST Energy'!P674","v":10707},{"$f":"'FR-16(7)(v)-5 PROD Cust'!P674+'FR-16(7)(v)-9 TRANS Cust'!P674+'FR-16(7)(v)-13 DIST Cust'!P674","v":10673},{"$f":"SUM(G674:I674)","v":14946},{"$f":"F674-J674","v":0}]
[46,null,{"$f":"'FR-16(7)(v)-1 Functional'!C675","v":"TOTAL FEDERAL TAX ADJUSTMENTS"},null,null,{"$f":"F663","v":64421},{"$f":"G663","v":5034},{"$f":"H663","v":37444},{"$f":"I663","v":21943},{"$f":"J663","v":64421},{"$f":"F675-J675","v":0}]
[47,null,{"$f":"'FR-16(7)(v)-1 Functional'!C676","v":"  NET FED INCOME TAX ALLOWABLE"},null,null,{"$f":"SUM(F674:F675)","v":79367},-1400,48151,32616,79367,0]
[48]
[49,"INCOME TAX BASED ON RETURN"]
[50,"FEDERAL INCOME TAX PAYABLE"]
[51,null,{"$f":"'FR-16(7)(v)-1 Functional'!C680","v":"PRELIM FEDERAL INCOME TAX"},null,null,{"$f":"F674","v":14946},-6434,10707,10673,14946,0]
[53,null,{"$f":"'FR-16(7)(v)-1 Functional'!C681","v":"  NET FED INCOME TAX PAYABLE"},null,null,{"$f":"SUM(F680:F680)","v":14946},-6434,10707,10673,14946,0]
[]
[{"$f":"co_name","v":"DUKE ENERGY KENTUCKY, INC."},null,null,null,null,null,null,null,null,{"$f":"J1","v":"FR-16(7)(v)-24"}]
[{"$f":"$A$2","v":"LIGHTING CLASSIFIED - ELECTRIC COST OF SERVICE"},null,null,null,null,null,null,null,null,{"$f":"J2","v":"WITNESS RESPONSIBLE:"}]
[{"$f":"case_name","v":"CASE NO: 2019-00271"},null,null,null,null,null,null,null,null,{"$f":"Witness","v":"JAMES E. ZIOLKOWSKI"}]
[{"$f":"data_filing","v":"DATA: 12 MONTHS ACTUAL  & 0 MONTHS ESTIMATED"},null,null,null,null,null,null,null,null,{"$f":"\"PAGE \"&Pages2-2&\" OF \"&Pages2","v":"PAGE 13 OF 15"}]
[{"$f":"type","v":"TYPE OF FILING: \"X\" ORIGINAL   UPDATED    REVISED  "}]
[]
[]
["LINE",null,null,null,null,"TOTAL","CLASSIFIED",null,null,"TOTAL","ALL"]
["NO.","STATE INCOME TAX BASED ON RETURN",null,"Allo",null,"GAS",{"$f":"$G$9","v":"DEMAND"},{"$f":"$H$9","v":"ENERGY"},{"$f":"$I$9","v":"CUSTOMER"},"AT ISSUE","OTHER"]
[null,null,"Schedule 9.1",null,null,null,{"$f":"$G$10","v":3},{"$f":"$H$10","v":4},{"$f":"$I$10","v":5}]
[1,"DEDUCTIONS IN ADDITION TO Y871"]
[2,"KY TAXABLE INCOME ADJUSTMENT",null,{"$f":"'FR-16(7)(v)-1 Functional'!D694","v":"NP29"},null,{"$f":"'FR-16(7)(v)-14 TOTAL CLASS'!P694","v":43398},{"$f":"'FR-16(7)(v)-3 PROD Demand'!P694+'FR-16(7)(v)-7 TRANS Demand'!P694+'FR-16(7)(v)-11 DIST Demand'!P694","v":21804},{"$f":"'FR-16(7)(v)-4 PROD Energy'!P694+'FR-16(7)(v)-8 TRANS Energy'!P694+'FR-16(7)(v)-12 DIST Energy'!P694","v":506},{"$f":"'FR-16(7)(v)-5 PROD Cust'!P694+'FR-16(7)(v)-9 TRANS Cust'!P694+'FR-16(7)(v)-13 DIST Cust'!P694","v":21088},{"$f":"SUM(G694:I694)","v":43398},{"$f":"F694-J694","v":0}]
[3,"RESERVED FOR FUTURE USE",null,{"$f":"'FR-16(7)(v)-1 Functional'!D695","v":"NP29"},null,{"$f":"'FR-16(7)(v)-14 TOTAL CLASS'!P695","v":0},{"$f":"'FR-16(7)(v)-3 PROD Demand'!P695+'FR-16(7)(v)-7 TRANS Demand'!P695+'FR-16(7)(v)-11 DIST Demand'!P695","v":0},{"$f":"'FR-16(7)(v)-4 PROD Energy'!P695+'FR-16(7)(v)-8 TRANS Energy'!P695+'FR-16(7)(v)-12 DIST Energy'!P695","v":0},{"$f":"'FR-16(7)(v)-5 PROD Cust'!P695+'FR-16(7)(v)-9 TRANS Cust'!P695+'FR-16(7)(v)-13 DIST Cust'!P695","v":0},{"$f":"SUM(G695:I695)","v":0},{"$f":"F695-J695","v":0}]
[4,"  DEDUCTIONS IN ADD TO Y871",null,null,null,{"$f":"SUM(F694:F695)","v":43398},21804,506,21088,43398,0]
[5]
[6,"STATE INCOME TAX ADJUSTMENTS"]
[7,"STATE PROV DEF INC TAX (410 & 411)"]
[8,"OTHER DEFERRED INCOME TAXES - NET",null,{"$f":"'FR-16(7)(v)-1 Functional'!D700","v":"A357"},null,{"$f":"'FR-16(7)(v)-14 TOTAL CLASS'!P700","v":30618},{"$f":"'FR-16(7)(v)-3 PROD Demand'!P700+'FR-16(7)(v)-7 TRANS Demand'!P700+'FR-16(7)(v)-11 DIST Demand'!P700","v":3310},{"$f":"'FR-16(7)(v)-4 PROD Energy'!P700+'FR-16(7)(v)-8 TRANS Energy'!P700+'FR-16(7)(v)-12 DIST Energy'!P700","v":5512},{"$f":"'FR-16(7)(v)-5 PROD Cust'!P700+'FR-16(7)(v)-9 TRANS Cust'!P700+'FR-16(7)(v)-13 DIST Cust'!P700","v":21796},{"$f":"SUM(G700:I700)","v":30618},{"$f":"F700-J700","v":0}]
[9,"  TOT STATE PROV DEF IT (410 & 411)",null,null,null,{"$f":"SUM(F700)","v":30618},3310,5512,21796,30618,0]
[10]
[11,"OTHER SIT ADJUSTMENTS"]
[12,"CURRENT YEAR PAYABLE ADJUSTMENT",null,{"$f":"'FR-16(7)(v)-1 Functional'!D704","v":"NP29"},null,{"$f":"'FR-16(7)(v)-14 TOTAL CLASS'!P704","v":0},{"$f":"'FR-16(7)(v)-3 PROD Demand'!P704+'FR-16(7)(v)-7 TRANS Demand'!P704+'FR-16(7)(v)-11 DIST Demand'!P704","v":0},{"$f":"'FR-16(7)(v)-4 PROD Energy'!P704+'FR-16(7)(v)-8 TRANS Energy'!P704+'FR-16(7)(v)-12 DIST Energy'!P704","v":0},{"$f":"'FR-16(7)(v)-5 PROD Cust'!P704+'FR-16(7)(v)-9 TRANS Cust'!P704+'FR-16(7)(v)-13 DIST Cust'!P704","v":0},{"$f":"SUM(G704:I704)","v":0},{"$f":"F704-J704","v":0}]
[13,"  OTHER SIT ADJUSMENTS",null,null,null,{"$f":"SUM(F704)","v":0},0,0,0,0,0]
[14]
[15,"TOTAL STATE INC TAX ADJUSTMENT",null,null,null,{"$f":"F705+F701","v":30618},3310,5512,21796,30618,0]
[16]
[17,"INCOME TAX BASED ON RETURN"]
[18,"SUMMARY OF SIT CALCULATION"]
[19,"RETURN ON RATE BASE",null,null,null,{"$f":"F433","v":314977},{"$f":"G433","v":154942},{"$f":"H433","v":9281},{"$f":"I433","v":150754},{"$f":"J433","v":314977},{"$f":"F711-J711","v":0}]
[20,"NET FED INCOME TAX ALLOWABLE",null,null,null,{"$f":"F676","v":79367},{"$f":"G676","v":-1400},{"$f":"H676","v":48151},{"$f":"I676","v":32616},{"$f":"J676","v":79367},0]
[21,"NET FED. DED. AND ADDITIONS",null,null,null,{"$f":"-F641","v":-353793},{"$f":"-G641","v":-187492},{"$f":"-H641","v":-11959},{"$f":"-I641","v":-154342},{"$f":"-J641","v":-353793},0]
[22,"DEDUCTIONS IN ADD TO Y871",null,null,null,{"$f":"-F696","v":-43398},{"$f":"-G696","v":-21804},{"$f":"-H696","v":-506},{"$f":"-I696","v":-21088},{"$f":"-J696","v":-43398},0]
[23,"RESERVED",null,null,null,{"$f":"F24","v":0},{"$f":"G24","v":0},{"$f":"H24","v":0},{"$f":"I24","v":0},{"$f":"J24","v":0},0]
[24,"TOTAL STATE INC TAX ADJ",null,null,null,{"$f":"F707","v":30618},{"$f":"G707","v":3310},{"$f":"H707","v":5512},{"$f":"I707","v":21796},{"$f":"J707","v":30618},0]
[25,"  BASE FOR SIT COMPUTATION",null,null,null,{"$f":"SUM(F711:F716)","v":27771},-52444,50479,29736,27771,0]
[26]
[27,"SIT FACTOR K192/(1-K192)",null,null,null,{"$f":"ROUND(SIT/(1-SIT),8)","v":5.2282660000000002E-2},{"$f":"ROUND(SIT/(1-SIT),8)","v":5.2282660000000002E-2},{"$f":"ROUND(SIT/(1-SIT),8)","v":5.2282660000000002E-2},{"$f":"ROUND(SIT/(1-SIT),8)","v":5.2282660000000002E-2},null,{"$f":"ROUND(SIT/(1-SIT),8)","v":5.2282660000000002E-2}]
[28,"PRELIMINARY STATE INCOME TAX",null,null,null,{"$f":"ROUND(F717*F719,0)","v":1452},{"$f":"'FR-16(7)(v)-3 PROD Demand'!P720+'FR-16(7)(v)-7 TRANS Demand'!P720+'FR-16(7)(v)-11 DIST Demand'!P720","v":-2741},{"$f":"ROUND(H717*H719,0)","v":2639},{"$f":"ROUND(I717*I719,0)","v":1555},{"$f":"SUM(G720:I720)","v":1453},{"$f":"F720-J720","v":-1}]
[29,"TOTAL STATE INCOME TAX ADJ.",null,null,null,{"$f":"F707","v":30618},{"$f":"G707","v":3310},{"$f":"H707","v":5512},{"$f":"I707","v":21796},{"$f":"J707","v":30618},{"$f":"F721-J721","v":0}]
[30,"  NET STATE INC TAX ALLOWABLE",null,null,null,{"$f":"F721+F720","v":32070},569,8151,23351,32071,-1]
[31]
[32,"STATE INCOME TAX PAYABLE"]
[33,"PRELIMINARY STATE INCOME TAX",null,null,null,{"$f":"F720","v":1452},{"$f":"G720","v":-2741},{"$f":"H720","v":2639},{"$f":"I720","v":1555},{"$f":"J720","v":1453},{"$f":"F725-J725","v":-1}]
[34,"OTHER SIT ADJUSTMENTS",null,null,null,{"$f":"F705","v":0},{"$f":"G705","v":0},{"$f":"H705","v":0},{"$f":"I705","v":0},{"$f":"J705","v":0},{"$f":"F726-J726","v":0}]
[35,"  NET STATE INCOME TAX PAYABLE",null,null,null,{"$f":"F725+F726","v":1452},-2741,2639,1555,1453,-1]
[36]
[37,"COMPOSITE TAX RATE",null,null,null,{"$f":"(SIT*(1-FIT))+((1-SIT)*(1-FIT)*RevTax)+FIT","v":0.24925115},0.24925115,0.24925115,0.24925115,0.24925115,0.24925115]
[]
[{"$f":"co_name","v":"DUKE ENERGY KENTUCKY, INC."},null,null,null,null,null,null,null,null,{"$f":"J1","v":"FR-16(7)(v)-24"}]
[{"$f":"$A$2","v":"LIGHTING CLASSIFIED - ELECTRIC COST OF SERVICE"},null,null,null,null,null,null,null,null,{"$f":"J2","v":"WITNESS RESPONSIBLE:"}]
[{"$f":"case_name","v":"CASE NO: 2019-00271"},null,null,null,null,null,null,null,null,{"$f":"Witness","v":"JAMES E. ZIOLKOWSKI"}]
[{"$f":"data_filing","v":"DATA: 12 MONTHS ACTUAL  & 0 MONTHS ESTIMATED"},null,null,null,null,null,null,null,null,{"$f":"\"PAGE \"&Pages2-1&\" OF \"&Pages2","v":"PAGE 14 OF 15"}]
[{"$f":"type","v":"TYPE OF FILING: \"X\" ORIGINAL   UPDATED    REVISED  "}]
[]
[]
["LINE",null,null,null,null,"TOTAL","CLASSIFIED",null,null,"TOTAL","ALL"]
["NO.","COST OF SERVICE COMPUTATION",null,"ALLO",null,{"$f":"$F$9","v":"LIGHTING"},{"$f":"G9","v":"DEMAND"},"ENERGY","CUSTOMER","AT ISSUE","OTHER"]
[null,null,"Schedule 10",null,null,null,3,4,5]
[1,"OTHER OPERATING REVENUES"]
[2,null,{"$f":"'FR-16(7)(v)-1 Functional'!C742","v":"MISC SERVICE REVENUE"},{"$f":"'FR-16(7)(v)-1 Functional'!D742","v":"D249"},null,{"$f":"'FR-16(7)(v)-14 TOTAL CLASS'!P742","v":2865},{"$f":"'FR-16(7)(v)-3 PROD Demand'!P742+'FR-16(7)(v)-7 TRANS Demand'!P742+'FR-16(7)(v)-11 DIST Demand'!P742","v":1204},{"$f":"'FR-16(7)(v)-4 PROD Energy'!P742+'FR-16(7)(v)-8 TRANS Energy'!P742+'FR-16(7)(v)-12 DIST Energy'!P742","v":0},{"$f":"'FR-16(7)(v)-5 PROD Cust'!P742+'FR-16(7)(v)-9 TRANS Cust'!P742+'FR-16(7)(v)-13 DIST Cust'!P742","v":1661},{"$f":"SUM(G742:I742)","v":2865},{"$f":"F742-J742","v":0}]
[3,null,{"$f":"'FR-16(7)(v)-1 Functional'!C743","v":"INTERDEPARTMENTAL"},{"$f":"'FR-16(7)(v)-1 Functional'!D743","v":"K902"},null,{"$f":"'FR-16(7)(v)-14 TOTAL CLASS'!P743","v":0},{"$f":"'FR-16(7)(v)-3 PROD Demand'!P743+'FR-16(7)(v)-7 TRANS Demand'!P743+'FR-16(7)(v)-11 DIST Demand'!P743","v":0},{"$f":"'FR-16(7)(v)-4 PROD Energy'!P743+'FR-16(7)(v)-8 TRANS Energy'!P743+'FR-16(7)(v)-12 DIST Energy'!P743","v":0},{"$f":"'FR-16(7)(v)-5 PROD Cust'!P743+'FR-16(7)(v)-9 TRANS Cust'!P743+'FR-16(7)(v)-13 DIST Cust'!P743","v":0},0,{"$f":"F743-J743","v":0}]
[4,null,{"$f":"'FR-16(7)(v)-1 Functional'!C744","v":"POLE & LINE ATTACHMENTS"},{"$f":"'FR-16(7)(v)-1 Functional'!D744","v":"D249"},null,{"$f":"'FR-16(7)(v)-14 TOTAL CLASS'!P744","v":2439},{"$f":"'FR-16(7)(v)-3 PROD Demand'!P744+'FR-16(7)(v)-7 TRANS Demand'!P744+'FR-16(7)(v)-11 DIST Demand'!P744","v":1025},{"$f":"'FR-16(7)(v)-4 PROD Energy'!P744+'FR-16(7)(v)-8 TRANS Energy'!P744+'FR-16(7)(v)-12 DIST Energy'!P744","v":0},{"$f":"'FR-16(7)(v)-5 PROD Cust'!P744+'FR-16(7)(v)-9 TRANS Cust'!P744+'FR-16(7)(v)-13 DIST Cust'!P744","v":1414},2439,0]
[5,null,{"$f":"'FR-16(7)(v)-1 Functional'!C745","v":"RENTS"},{"$f":"'FR-16(7)(v)-1 Functional'!D745","v":"D249"},null,{"$f":"'FR-16(7)(v)-14 TOTAL CLASS'!P745","v":12003},{"$f":"'FR-16(7)(v)-3 PROD Demand'!P745+'FR-16(7)(v)-7 TRANS Demand'!P745+'FR-16(7)(v)-11 DIST Demand'!P745","v":5044},{"$f":"'FR-16(7)(v)-4 PROD Energy'!P745+'FR-16(7)(v)-8 TRANS Energy'!P745+'FR-16(7)(v)-12 DIST Energy'!P745","v":0},{"$f":"'FR-16(7)(v)-5 PROD Cust'!P745+'FR-16(7)(v)-9 TRANS Cust'!P745+'FR-16(7)(v)-13 DIST Cust'!P745","v":6959},12003,0]
[6,null,{"$f":"'FR-16(7)(v)-1 Functional'!C746","v":"TRANSMISSION CHARGE PTP"},{"$f":"'FR-16(7)(v)-1 Functional'!D746","v":"T229"},null,{"$f":"'FR-16(7)(v)-14 TOTAL CLASS'!P746","v":180},{"$f":"'FR-16(7)(v)-3 PROD Demand'!P746+'FR-16(7)(v)-7 TRANS Demand'!P746+'FR-16(7)(v)-11 DIST Demand'!P746","v":180},{"$f":"'FR-16(7)(v)-4 PROD Energy'!P746+'FR-16(7)(v)-8 TRANS Energy'!P746+'FR-16(7)(v)-12 DIST Energy'!P746","v":0},{"$f":"'FR-16(7)(v)-5 PROD Cust'!P746+'FR-16(7)(v)-9 TRANS Cust'!P746+'FR-16(7)(v)-13 DIST Cust'!P746","v":0},180,{"$f":"F746-J746","v":0}]
[7,null,{"$f":"'FR-16(7)(v)-1 Functional'!C747","v":"PJM REACTIVE REVENUE"},{"$f":"'FR-16(7)(v)-1 Functional'!D747","v":"K401"},null,{"$f":"'FR-16(7)(v)-14 TOTAL CLASS'!P747","v":0},{"$f":"'FR-16(7)(v)-3 PROD Demand'!P747+'FR-16(7)(v)-7 TRANS Demand'!P747+'FR-16(7)(v)-11 DIST Demand'!P747","v":0},{"$f":"'FR-16(7)(v)-4 PROD Energy'!P747+'FR-16(7)(v)-8 TRANS Energy'!P747+'FR-16(7)(v)-12 DIST Energy'!P747","v":0},{"$f":"'FR-16(7)(v)-5 PROD Cust'!P747+'FR-16(7)(v)-9 TRANS Cust'!P747+'FR-16(7)(v)-13 DIST Cust'!P747","v":0},0,{"$f":"F747-J747","v":0}]
[8,null,{"$f":"'FR-16(7)(v)-1 Functional'!C748","v":"OTHER TRANSMISSION REVENUES"},{"$f":"'FR-16(7)(v)-1 Functional'!D748","v":"T229"},null,{"$f":"'FR-16(7)(v)-14 TOTAL CLASS'!P748","v":30},{"$f":"'FR-16(7)(v)-3 PROD Demand'!P748+'FR-16(7)(v)-7 TRANS Demand'!P748+'FR-16(7)(v)-11 DIST Demand'!P748","v":30},{"$f":"'FR-16(7)(v)-4 PROD Energy'!P748+'FR-16(7)(v)-8 TRANS Energy'!P748+'FR-16(7)(v)-12 DIST Energy'!P748","v":0},{"$f":"'FR-16(7)(v)-5 PROD Cust'!P748+'FR-16(7)(v)-9 TRANS Cust'!P748+'FR-16(7)(v)-13 DIST Cust'!P748","v":0},30,{"$f":"F748-J748","v":0}]
[9,null,{"$f":"'FR-16(7)(v)-1 Functional'!C749","v":"FIXED BILL PREMIUM"},{"$f":"'FR-16(7)(v)-1 Functional'!D749","v":"K902"},null,{"$f":"'FR-16(7)(v)-14 TOTAL CLASS'!P749","v":0},{"$f":"'FR-16(7)(v)-3 PROD Demand'!P749+'FR-16(7)(v)-7 TRANS Demand'!P749+'FR-16(7)(v)-11 DIST Demand'!P749","v":0},{"$f":"'FR-16(7)(v)-4 PROD Energy'!P749+'FR-16(7)(v)-8 TRANS Energy'!P749+'FR-16(7)(v)-12 DIST Energy'!P749","v":0},{"$f":"'FR-16(7)(v)-5 PROD Cust'!P749+'FR-16(7)(v)-9 TRANS Cust'!P749+'FR-16(7)(v)-13 DIST Cust'!P749","v":0},0,0]
[10,null,{"$f":"'FR-16(7)(v)-1 Functional'!C750","v":"  TOTAL OTHER OPERATING REVS"},null,null,{"$f":"SUM(F742:F749)","v":17517},7483,0,10034,17517,0]
[11]
[12,"COST OF SERVICE COMPUTATION"]
[13,null,{"$f":"'FR-16(7)(v)-1 Functional'!C753","v":"TOTAL OP EXP EXC INC & REV TAX"},null,null,{"$f":"F618","v":1729013},{"$f":"G618","v":280914},{"$f":"H618","v":656975},{"$f":"I618","v":791124},{"$f":"J618","v":1729013},{"$f":"F753-J753","v":0}]
[14,null,"RETURN ON RATE BASE",null,null,{"$f":"F433","v":314977},{"$f":"G433","v":154942},{"$f":"H433","v":9281},{"$f":"I433","v":150754},{"$f":"J433","v":314977},{"$f":"F754-J754","v":0}]
[15,null,{"$f":"'FR-16(7)(v)-1 Functional'!C755","v":"NET FED INCOME TAX ALLOWABLE"},null,null,{"$f":"F676","v":79367},{"$f":"G676","v":-1400},{"$f":"H676","v":48151},{"$f":"I676","v":32616},{"$f":"J676","v":79367},{"$f":"F755-J755","v":0}]
[16,null,{"$f":"'FR-16(7)(v)-1 Functional'!C756","v":"NET STATE INCOME TAX ALLOWABLE"},null,null,{"$f":"F722","v":32070},{"$f":"G722","v":569},{"$f":"H722","v":8151},{"$f":"I722","v":23351},{"$f":"J722","v":32071},{"$f":"F756-J756","v":-1}]
[17,null,{"$f":"'FR-16(7)(v)-1 Functional'!C757","v":"TOTAL OTHER OPERATING REVENUES"},null,null,{"$f":"-F750","v":-17517},{"$f":"-G750","v":-7483},{"$f":"-H750","v":0},{"$f":"-I750","v":-10034},{"$f":"-J750","v":-17517},{"$f":"F757-J757","v":0}]
[18,null,{"$f":"'FR-16(7)(v)-1 Functional'!C758","v":"  SUBTOTAL B"},null,null,{"$f":"SUM(F752:F757)","v":2137910},{"$f":"SUM(G752:G757)","v":427542},{"$f":"SUM(H752:H757)","v":722558},{"$f":"SUM(I752:I757)","v":987811},{"$f":"SUM(J752:J757)","v":2137911},{"$f":"J758-F758","v":1}]
[19]
[20,null,{"$f":"'FR-16(7)(v)-1 Functional'!C760","v":"TOTAL OTHER OPERATING REVENUES"},null,null,{"$f":"-F757","v":17517},{"$f":"-G757","v":7483},{"$f":"-H757","v":0},{"$f":"-I757","v":10034},{"$f":"-J757","v":17517},{"$f":"F760-J760","v":0}]
[21,null,{"$f":"'FR-16(7)(v)-1 Functional'!C761","v":"LESS: REVS EXCL FROM REV TAX CALC"},null,null,{"$f":"'FR-16(7)(v)-14 TOTAL CLASS'!P761","v":0},{"$f":"'FR-16(7)(v)-3 PROD Demand'!P761+'FR-16(7)(v)-7 TRANS Demand'!P761+'FR-16(7)(v)-11 DIST Demand'!P761","v":0},{"$f":"'FR-16(7)(v)-4 PROD Energy'!P761+'FR-16(7)(v)-8 TRANS Energy'!P761+'FR-16(7)(v)-12 DIST Energy'!P761","v":0},{"$f":"'FR-16(7)(v)-5 PROD Cust'!P761+'FR-16(7)(v)-9 TRANS Cust'!P761+'FR-16(7)(v)-13 DIST Cust'!P761","v":0},{"$f":"SUM(G761:I761)","v":0},{"$f":"F761-J761","v":0}]
[22,null,{"$f":"'FR-16(7)(v)-1 Functional'!C762","v":"OTHER OPERATING REVS TO BE TAXED"},null,null,{"$f":"F760-F761","v":17517},7483,0,10034,17517,0]
[23]
[24,null,{"$f":"'FR-16(7)(v)-1 Functional'!C764","v":"REVENUE TAX FACTOR"},null,null,{"$f":"ROUND(F817/(1-F817),8)","v":0},0,0,0,0,0]
[25,null,{"$f":"'FR-16(7)(v)-1 Functional'!C765","v":"REVENUE TAX ON OTHER OPER. REVS"},null,null,{"$f":"ROUND(F764*F762,0)","v":0},{"$f":"ROUND(G764*G762,0)","v":0},{"$f":"ROUND(H764*H762,0)","v":0},{"$f":"ROUND(I764*I762,0)","v":0},{"$f":"SUM(G765:I765)","v":0},{"$f":"F765-J765","v":0}]
[26,null,{"$f":"'FR-16(7)(v)-1 Functional'!C766","v":"REVENUE TAX ON COST OF SERVICE"},null,null,{"$f":"ROUND(F764*F758,0)","v":0},{"$f":"ROUND(G764*G758,0)","v":0},{"$f":"ROUND(H764*H758,0)","v":0},{"$f":"ROUND(I764*I758,0)","v":0},{"$f":"SUM(G766:I766)","v":0},{"$f":"F766-J766","v":0}]
[27,null,{"$f":"'FR-16(7)(v)-1 Functional'!C767","v":"TOTAL REVENUE TAX"},null,null,{"$f":"F766+F765","v":0},0,0,0,0,0]
[28]
[29,null,"RESERVED",null,null,{"$f":"F24","v":0},{"$f":"G24","v":0},{"$f":"H24","v":0},{"$f":"I24","v":0},{"$f":"J24","v":0},{"$f":"F769-J769","v":0}]
[30,null,{"$f":"'FR-16(7)(v)-1 Functional'!C770","v":"  TOTAL ELECTRIC COST OF SERVICE"},null,null,{"$f":"F769+F767+F758","v":2137910},427542,722558,987811,2137911,1]
[31]
[32,"PROPOSED REVENUES ",null,null,null,{"$f":"'FR-16(7)(v)-14 TOTAL CLASS'!P772","v":2965974},{"$f":"'FR-16(7)(v)-3 PROD Demand'!P772+'FR-16(7)(v)-7 TRANS Demand'!P772+'FR-16(7)(v)-11 DIST Demand'!P772","v":320619},{"$f":"'FR-16(7)(v)-4 PROD Energy'!P772+'FR-16(7)(v)-8 TRANS Energy'!P772+'FR-16(7)(v)-12 DIST Energy'!P772","v":533963},{"$f":"'FR-16(7)(v)-5 PROD Cust'!P772+'FR-16(7)(v)-9 TRANS Cust'!P772+'FR-16(7)(v)-13 DIST Cust'!P772","v":2111392},{"$f":"SUM(G772:I772)","v":2965974},{"$f":"F772-J772","v":0}]
[33,"TOTAL ELECTRIC COST OF SERVICE",null,null,null,{"$f":"-F770","v":-2137910},{"$f":"-G770","v":-427542},{"$f":"-H770","v":-722558},{"$f":"-I770","v":-987811},{"$f":"SUM(G773:I773)","v":-2137911},{"$f":"F773-J773","v":1}]
[34,"EXCESS REVENUES",null,null,null,{"$f":"F773+F772","v":828064},{"$f":"G773+G772","v":-106923},{"$f":"H773+H772","v":-188595},{"$f":"I773+I772","v":1123581},{"$f":"SUM(G774:I774)","v":828063},{"$f":"F774-J774","v":1}]
[35,"COMPOSITE TAX RATE",null,null,null,{"$f":"F729","v":0.24925115},0.24925115,0.24925115,0.24925115,0.24925115,0.24925115]
[36,"EXCESS TAX",null,null,null,{"$f":"ROUND(F775*F774,0)","v":206396},{"$f":"'FR-16(7)(v)-3 PROD Demand'!P776+'FR-16(7)(v)-7 TRANS Demand'!P776+'FR-16(7)(v)-11 DIST Demand'!P776","v":-26651},{"$f":"ROUND(H775*H774,0)","v":-47008},{"$f":"ROUND(I775*I774,0)","v":280054},{"$f":"SUM(G776:I776)","v":206395},{"$f":"F776-J776","v":1}]
[37,"EXCESS RETURN",null,null,null,{"$f":"F774-F776","v":621668},{"$f":"'FR-16(7)(v)-3 PROD Demand'!P777+'FR-16(7)(v)-7 TRANS Demand'!P777+'FR-16(7)(v)-11 DIST Demand'!P777","v":-80272},{"$f":"H774-H776","v":-141587},{"$f":"I774-I776","v":843527},{"$f":"SUM(G777:I777)","v":621668},{"$f":"F777-J777","v":0}]
[]
[{"$f":"co_name","v":"DUKE ENERGY KENTUCKY, INC."},null,null,null,null,null,null,null,null,{"$f":"J1","v":"FR-16(7)(v)-24"}]
[{"$f":"$A$2","v":"LIGHTING CLASSIFIED - ELECTRIC COST OF SERVICE"},null,null,null,null,null,null,null,null,{"$f":"J2","v":"WITNESS RESPONSIBLE:"}]
[{"$f":"case_name","v":"CASE NO: 2019-00271"},null,null,null,null,null,null,null,null,{"$f":"Witness","v":"JAMES E. ZIOLKOWSKI"}]
[{"$f":"data_filing","v":"DATA: 12 MONTHS ACTUAL  & 0 MONTHS ESTIMATED"},null,null,null,null,null,null,null,null,{"$f":"\"PAGE \"&Pages2&\" OF \"&Pages2","v":"PAGE 15 OF 15"}]
[{"$f":"type","v":"TYPE OF FILING: \"X\" ORIGINAL   UPDATED    REVISED  "}]
[]
[]
["LINE",null,null,null,null,"TOTAL","CLASSIFIED",null,null,"TOTAL","ALL"]
["NO.","ROR, TAX RATES & SPEC FACTORS",null,"ALLO",null,{"$f":"$F$9","v":"LIGHTING"},{"$f":"G9","v":"DEMAND"},"ENERGY","CUSTOMER","AT ISSUE","OTHER"]
[null,null,"Schedule 11",null,null,null,3,4,5]
[1,"RATE OF RETURN"]
[2," CAPITALIZATION AMOUNTS",null,null,null,null,"RATIO"]
[3,null,{"$f":"'FR-16(7)(v)-1 Functional'!C791","v":"LONG TERM DEBT"},null,null,{"$f":"'FR-16(7)(v)-1 Functional'!$F$791","v":665948506},{"$f":"IF(TotalCap=0,0,ROUND(F791/TotalCap,4))","v":0.45929999999999999}]
[4,null,{"$f":"'FR-16(7)(v)-1 Functional'!C792","v":"PREFERRED STOCK"},null,null,{"$f":"'FR-16(7)(v)-1 Functional'!$F$792","v":0},{"$f":"IF(TotalCap=0,0,ROUND(F792/TotalCap,4))","v":0}]
[5,null,{"$f":"'FR-16(7)(v)-1 Functional'!C793","v":"COMMON STOCK"},null,null,{"$f":"[0]!Equity","v":699348680},{"$f":"1-G791-G792-G794-G795","v":0.48239999999999994}]
[6,null,{"$f":"'FR-16(7)(v)-1 Functional'!C794","v":"SHORT TERM DEBT"},null,null,{"$f":"'FR-16(7)(v)-1 Functional'!$F$794","v":84600060},{"$f":"IF(TotalCap=0,0,ROUND(F794/TotalCap,4))","v":5.8299999999999998E-2}]
[7,null,{"$f":"'FR-16(7)(v)-1 Functional'!C795","v":"UNAMORTIZED DISCOUNT"},null,null,{"$f":"'FR-16(7)(v)-1 Functional'!$F$795","v":0},{"$f":"IF(TotalCap=0,0,ROUND(F795/TotalCap,4))","v":0}]
[8,null,{"$f":"'FR-16(7)(v)-1 Functional'!C796","v":"  TOTAL"},null,null,{"$f":"SUM(F790:F795)","v":1449897246},{"$f":"SUM(G791:G795)","v":1}]
[9]
[10," COST OF CAPITAL"]
[11,null,{"$f":"'FR-16(7)(v)-1 Functional'!C799","v":"LONG TERM DEBT"},null,null,{"$f":"'FR-16(7)(v)-1 Functional'!$F$799","v":4.0730000000000002E-2}]
[12,null,{"$f":"'FR-16(7)(v)-1 Functional'!C800","v":"PREFERRED STOCK"},null,null,{"$f":"'FR-16(7)(v)-1 Functional'!$F$800","v":0}]
[13,null,{"$f":"'FR-16(7)(v)-1 Functional'!C801","v":"COMMON STOCK"},null,null,{"$f":"'FR-16(7)(v)-1 Functional'!$F$801","v":9.8000000000000004E-2}]
[14,null,{"$f":"'FR-16(7)(v)-1 Functional'!C802","v":"SHORT TERM DEBT"},null,null,{"$f":"'FR-16(7)(v)-1 Functional'!$F$802","v":1.9369999999999998E-2}]
[15,null,{"$f":"'FR-16(7)(v)-1 Functional'!C803","v":"UNAMORTIZED DISCOUNT"},null,null,{"$f":"'FR-16(7)(v)-1 Functional'!$F$803","v":0}]
[16]
[17," WEIGHTED COST OF CAPITAL"]
[18,null,{"$f":"'FR-16(7)(v)-1 Functional'!C806","v":"LONG TERM DEBT"},null,null,{"$f":"ROUND(G791*F799,4)","v":1.8700000000000001E-2}]
[19,null,{"$f":"'FR-16(7)(v)-1 Functional'!C807","v":"PREFERRED STOCK"},null,null,{"$f":"ROUND(G792*F800,4)","v":0}]
[20,null,{"$f":"'FR-16(7)(v)-1 Functional'!C808","v":"COMMON STOCK"},null,null,{"$f":"ROUND(G793*F801,4)","v":4.7300000000000002E-2}]
[21,null,{"$f":"'FR-16(7)(v)-1 Functional'!C809","v":"SHORT TERM DEBT"},null,null,{"$f":"ROUND(G794*F802,4)","v":1.1000000000000001E-3}]
[22,null,{"$f":"'FR-16(7)(v)-1 Functional'!C810","v":"UNAMORTIZED DISCOUNT"},null,null,{"$f":"ROUND(G795*F803,4)","v":0}]
[23,null,{"$f":"'FR-16(7)(v)-1 Functional'!C811","v":"  TOT RATE OF RETURN ALLOWABLE"},null,null,{"$f":"SUM(F806:F810)","v":6.7100000000000007E-2}]
[24]
[25,"TAX RATES AND SPECIAL FACTORS"]
[26,null,{"$f":"'FR-16(7)(v)-1 Functional'!C814","v":"SHORT TERM DEBT COST"},null,null,0,{"$f":"F814","v":0},{"$f":"F814","v":0},{"$f":"F814","v":0},{"$f":"F814","v":0},{"$f":"F814","v":0}]
[27,null,{"$f":"'FR-16(7)(v)-1 Functional'!C815","v":"FEDERAL INCOME TAX RATE"},null,null,0.35,{"$f":"FIT","v":0.21},{"$f":"FIT","v":0.21},{"$f":"FIT","v":0.21},{"$f":"FIT","v":0.21},{"$f":"FIT","v":0.21}]
[28,null,{"$f":"'FR-16(7)(v)-1 Functional'!C816","v":"STATE INCOME TAX RATE"},null,null,{"$f":"SIT","v":4.9685000000000007E-2},4.9685000000000007E-2,4.9685000000000007E-2,4.9685000000000007E-2,4.9685000000000007E-2,4.9685000000000007E-2]
[29,null,{"$f":"'FR-16(7)(v)-1 Functional'!C817","v":"REVENUE TAX RATE"},null,null,0,{"$f":"RevTax","v":0},{"$f":"RevTax","v":0},{"$f":"RevTax","v":0},{"$f":"RevTax","v":0},{"$f":"RevTax","v":0}]
[]
[]
[]
[]
[]
[]
[]
[]
[]
[]
[]
[]
[]
[]
[]
[]
[]
[]
[]
[]
[]
[]
[]
[]
[]
[]
[]
[]
[]
[]
[]
[]
[]
[]
[]
[]
[]
[]
[]
[]
[]
[]
[]
[]
[]
[]
[]
[]
[]
[]
[]
[]
[]
[]
[]
[]
[]
[]
[]
[]
[]
[]
[]
[]
[]
[]
[]
[]
[]
[]
[]
[]
[]
[]
[]
[]
[]
[]
[]
[]
[]
[]
[]
[]
[]
[]
[]
[]
[]
[]
[]
[]
[]
[]
[]
[]
[]
[]
[]
[]
[]
[]
[]
[]
[]
[]
[]
[]
[]
[]
[]
[]
[]
[]
[]
[]
[]
[]
[]
[]
[]
[]
[]
[]
[]
[]
[]
[]
[]
[]
[]
[]
[]
[]
[]
[]
[]
[]
[]
[]
[]
[]
[]
[]
[]
[]
[]
[]
[]
[]
[]
[]
[]
[]
[]
[]
[]
[]
[]
[]
[]
[]
[]
[]
[]
[]
["DO NOT FILE THIS PAGE"]
[]
[{"$f":"co_name","v":"DUKE ENERGY KENTUCKY, INC."},null,null,null,null,null,null,null,null,{"$f":"J1","v":"FR-16(7)(v)-24"}]
[{"$f":"$A$2","v":"LIGHTING CLASSIFIED - ELECTRIC COST OF SERVICE"},null,null,null,null,null,null,null,null,{"$f":"J2","v":"WITNESS RESPONSIBLE:"}]
[{"$f":"case_name","v":"CASE NO: 2019-00271"},null,null,null,null,null,null,null,null,{"$f":"Witness","v":"JAMES E. ZIOLKOWSKI"}]
[{"$f":"data_filing","v":"DATA: 12 MONTHS ACTUAL  & 0 MONTHS ESTIMATED"},null,null,null,null,null,null,null,null,{"$f":"\"PAGE \"&Pages2&\" OF \"&Pages2","v":"PAGE 15 OF 15"}]
[{"$f":"type","v":"TYPE OF FILING: \"X\" ORIGINAL   UPDATED    REVISED  "}]
[]
[]
["LINE",null,null,null,null,"TOTAL","CLASSIFIED",null,null,"TOTAL","ALL"]
["NO.","INCOME TAX BASED ON REVENUES",null,"ALLO",null,{"$f":"$F$9","v":"LIGHTING"},"DEMAND","COMMODITY","CUSTOMER","AT ISSUE","OTHER"]
[null,null,"Schedule 13",null,null,null,{"$f":"G10","v":3},{"$f":"H10","v":4},{"$f":"I10","v":5}]
[1,"NET INCOME COMPUTATION"]
[2,null,{"$f":"'FR-16(7)(v)-1 Functional'!C1008","v":"TOTAL ELECTRIC COST OF SERVICE"},null,null,{"$f":"F770","v":2137910},427542,722558,987811,2137911,1]
[3,null,{"$f":"'FR-16(7)(v)-1 Functional'!C1009","v":"TOTAL OTHER OPERATING REVENUES"},null,null,{"$f":"F750","v":17517},7483,0,10034,17517,0]
[4,null,{"$f":"'FR-16(7)(v)-1 Functional'!C1010","v":"  TOTAL ELECTRIC REVENUE"},null,null,{"$f":"SUM(F996:F998)","v":2155427},435025,722558,997845,2155428,1]
[5,null,{"$f":"'FR-16(7)(v)-1 Functional'!C1011","v":"TOTAL OP EXP EX INC & REV TAX"},null,null,{"$f":"-F618","v":-1729013},-280914,-656975,-791124,-1729013,0]
[6,null,{"$f":"'FR-16(7)(v)-1 Functional'!C1012","v":"FIRM SERVICE REVENUE TAX"},null,null,{"$f":"-ROUND(F817*F997,0)","v":0},{"$f":"-ROUND(G817*G997,0)","v":0},{"$f":"-ROUND(H817*H997,0)","v":0},{"$f":"-ROUND(I817*I997,0)","v":0},{"$f":"SUM(G1001:I1001)","v":0},{"$f":"-ROUND('FR-16(7)(v)-1 Functional'!K817*K997,0)","v":0}]
[7,null,{"$f":"'FR-16(7)(v)-1 Functional'!C1013","v":"  NET INCOME"},null,null,{"$f":"SUM(F999:F1001)","v":426414},{"$f":"SUM(G999:G1001)","v":154111},{"$f":"SUM(H999:H1001)","v":65583},{"$f":"SUM(I999:I1001)","v":206721},{"$f":"SUM(G1002:I1002)","v":426415},{"$f":"SUM(K999:K1001)","v":1}]
[8]
[9,"ADJUSTMENTS TO NET INCOME"]
[10,null,{"$f":"'FR-16(7)(v)-1 Functional'!C1016","v":"TOTAL INTEREST EXPENSE"},null,null,{"$f":"-F633","v":-93107},-45801,-2743,-44563,-93107,0]
[11,null,{"$f":"'FR-16(7)(v)-1 Functional'!C1017","v":"TOTAL OTHER DEDUCTIONS"},null,null,{"$f":"-F639","v":-260686},-141691,-9216,-109779,-260686,0]
[12,null,{"$f":"'FR-16(7)(v)-1 Functional'!C1018","v":"  PRELIMINARY TAXABLE INCOME"},null,null,{"$f":"SUM(F1004:F1006)+F1002","v":72621},{"$f":"SUM(G1004:G1006)+G1002","v":-33381},{"$f":"SUM(H1004:H1006)+H1002","v":53624},{"$f":"SUM(I1004:I1006)+I1002","v":52379},{"$f":"SUM(G1007:I1007)","v":72622},{"$f":"SUM(K1004:K1006)+K1002","v":1}]
[13]
[14,"INCOME TAX BASED ON REVENUES"]
[15,"FEDERAL INCOME TAX COMPUTATION"]
[16,null,{"$f":"'FR-16(7)(v)-1 Functional'!C1022","v":"PRELIMINARY TAXABLE INCOME"},null,null,{"$f":"F1007","v":72621},-33381,53624,52379,72622,1]
[17,null,{"$f":"'FR-16(7)(v)-1 Functional'!C1023","v":"  NET FEDERAL TAXABLE INCOME"},null,null,{"$f":"SUM(F1011:F1011)","v":72621},-33381,53624,52379,72622,1]
[18,null,{"$f":"'FR-16(7)(v)-1 Functional'!C1024","v":"  FEDERAL INCOME TAX RATE"},null,null,{"$f":"F815","v":0.35},{"$f":"G815","v":0.21},{"$f":"H815","v":0.21},{"$f":"I815","v":0.21},null,{"$f":"'FR-16(7)(v)-1 Functional'!K815","v":0.21}]
[19,null,{"$f":"'FR-16(7)(v)-1 Functional'!C1025","v":"PRELIMINARY FIT = FI01 * K190"},null,null,{"$f":"ROUND(F1013*F1012,0)","v":25417},{"$f":"ROUND(G1013*G1012,0)","v":-7010},{"$f":"ROUND(H1013*H1012,0)","v":11261},{"$f":"ROUND(I1013*I1012,0)","v":11000},{"$f":"SUM(G1014:I1014)","v":15251},{"$f":"ROUND(K1013*K1012,0)","v":0}]
[20,null,{"$f":"'FR-16(7)(v)-1 Functional'!C1026","v":"TOTAL FED DEF IT (410 & 411)"},null,null,{"$f":"F649","v":64423},5035,37444,21944,64423,0]
[21,null,{"$f":"'FR-16(7)(v)-1 Functional'!C1027","v":"TOTAL AMORTIZED ITC"},null,null,{"$f":"-F653","v":-2},-1,0,-1,-2,0]
[22,null,{"$f":"'FR-16(7)(v)-1 Functional'!C1028","v":"  NET FED INC TAX ALLOWABLE"},null,null,{"$f":"SUM(F1014:F1016)","v":89838},-1976,48705,32943,79672,0]
[23]
[24,"FEDERAL INCOME TAX PAYABLE"]
[25,null,{"$f":"'FR-16(7)(v)-1 Functional'!C1031","v":"PRELIM FIT"},null,null,{"$f":"F1014","v":25417},-7010,11261,11000,15251,0]
[26,null,{"$f":"'FR-16(7)(v)-1 Functional'!C1032","v":"TEST YEAR INV TAX CREDIT"},null,null,{"$f":"-F658","v":0},0,0,0,0,0]
[27,null,{"$f":"'FR-16(7)(v)-1 Functional'!C1033","v":"  FED INC TAX PAYABLE"},null,null,{"$f":"SUM(F1019:F1021)","v":25417},-7010,11261,11000,15251,0]
[28]
[29,"PRELIMINARY SUMMARY"]
[30,null,{"$f":"'FR-16(7)(v)-1 Functional'!C1036","v":"NET INCOME"},null,null,{"$f":"F1002","v":426414},154111,65583,206721,426415,1]
[31,null,{"$f":"'FR-16(7)(v)-1 Functional'!C1037","v":"NET FED INC TAX ALLOWABLE"},null,null,{"$f":"-F1017","v":-89838},1976,-48705,-32943,-79672,0]
[32,null,{"$f":"'FR-16(7)(v)-1 Functional'!C1038","v":"  OVERALL RETURN EARNED"},null,null,{"$f":"SUM(F1024:F1026)","v":336576},156087,16878,173778,346743,1]
[33]
[34,null,{"$f":"'FR-16(7)(v)-1 Functional'!C1040","v":"  RATE OF RETURN EARNED"},null,null,{"$f":"IF(F426=0,0,ROUND(F1027/F426,5))","v":7.145E-2},6.7760000000000001E-2,0.1221,7.6590000000000005E-2,7.3599999999999999E-2,0]

{"sheet":"FR-16(7)(v)-25 OTH Classified","index":29,"n_rows":1029,"n_cols":14,"rows_kept":1029,"cut":false,"hidden":false,"merged":[]}
[{"$f":"co_name","v":"DUKE ENERGY KENTUCKY, INC."},null,null,null,null,null,null,null,null,"FR-16(7)(v)-25"]
[{"$f":"F9&\" \"&\"CLASSIFIED - ELECTRIC COST OF SERVICE\"","v":"OTHER WP CLASSIFIED - ELECTRIC COST OF SERVICE"},null,null,null,null,null,null,null,null,"WITNESS RESPONSIBLE:"]
[{"$f":"case_name","v":"CASE NO: 2019-00271"},null,null,null,null,null,null,null,null,{"$f":"Witness","v":"JAMES E. ZIOLKOWSKI"}]
[{"$f":"data_filing","v":"DATA: 12 MONTHS ACTUAL  & 0 MONTHS ESTIMATED"},null,null,null,null,null,null,null,null,{"$f":"\"PAGE \"&Pages2-14&\" OF \"&Pages2","v":"PAGE 1 OF 15"}]
[{"$f":"type","v":"TYPE OF FILING: \"X\" ORIGINAL   UPDATED    REVISED  "}]
[]
[]
["LINE",null,null,null,null,"TOTAL","CLASSIFIED",null,null,"TOTAL","ALL"]
["NO.","SUMMARY OF RESULTS",null,"ALLO",null,"OTHER WP","DEMAND","ENERGY","CUSTOMER","AT ISSUE","OTHER"]
[null,null,"Schedule 1",null,null,null,3,4,5]
[1,"NET INCOME COMPUTATION"]
[2,null,{"$f":"'FR-16(7)(v)-1 Functional'!C12","v":"GROSS ELECTRIC PLANT IN SERVICE"},null,null,{"$f":"F123","v":211255},{"$f":"G123","v":192510},{"$f":"H123","v":3362},{"$f":"I123","v":15383},{"$f":"SUM(G12:I12)","v":211255},{"$f":"F12-J12","v":0}]
[3,null,{"$f":"'FR-16(7)(v)-1 Functional'!C13","v":"TOTAL DEPRECIATION RESERVE"},null,null,{"$f":"-F200","v":-86104},{"$f":"-G200","v":-79578},{"$f":"-H200","v":-1640},{"$f":"-I200","v":-4886},{"$f":"SUM(G13:I13)","v":-86104},{"$f":"F13-J13","v":0}]
[4,null,{"$f":"'FR-16(7)(v)-1 Functional'!C14","v":"TOTAL RATE BASE ADJUSTMENTS"},null,null,{"$f":"F421","v":-24139},{"$f":"G421","v":-24554},{"$f":"H421","v":1764},{"$f":"I421","v":-1349},{"$f":"SUM(G14:I14)","v":-24139},{"$f":"F14-J14","v":0}]
[5,null,{"$f":"'FR-16(7)(v)-1 Functional'!C15","v":"  TOTAL RATE BASE"},null,null,{"$f":"SUM(F12:F14)","v":101012},88378,3486,9148,101012,0]
[6]
[7,"OPERATING EXPENSES"]
[8,null,{"$f":"'FR-16(7)(v)-1 Functional'!C18","v":"TOTAL O&M EXPENSE"},null,null,{"$f":"F549","v":23661},{"$f":"G549","v":5896},{"$f":"H549","v":16261},{"$f":"I549","v":1504},{"$f":"SUM(G18:I18)","v":23661},{"$f":"F18-J18","v":0}]
[9,null,{"$f":"'FR-16(7)(v)-1 Functional'!C19","v":"TOTAL DEPRECIATION EXPENSE"},null,null,{"$f":"F582","v":6354},{"$f":"G582","v":5739},{"$f":"H582","v":205},{"$f":"I582","v":410},{"$f":"SUM(G19:I19)","v":6354},{"$f":"F19-J19","v":0}]
[10,null,{"$f":"'FR-16(7)(v)-1 Functional'!C20","v":"TOTAL OTHER TAX & MISC EXPENSE"},null,null,{"$f":"F612","v":1557},{"$f":"G612","v":1367},{"$f":"H612","v":54},{"$f":"I612","v":136},{"$f":"SUM(G20:I20)","v":1557},{"$f":"F20-J20","v":0}]
[11,null,{"$f":"'FR-16(7)(v)-1 Functional'!C21","v":"  TOTAL OP EXP EXCLUDING INC & REV TAX"},null,null,{"$f":"SUM(F17:F20)","v":31572},13002,16520,2050,31572,0]
[12,null,{"$f":"'FR-16(7)(v)-1 Functional'!C22","v":"NET FED INCOME TAX EXP ALLOWABLE"},null,null,{"$f":"F676","v":908},{"$f":"G676","v":-342},{"$f":"H676","v":1212},{"$f":"I676","v":38},{"$f":"SUM(G22:I22)","v":908},{"$f":"F22-J22","v":0}]
[13,null,"NET STATE INCOME TAX EXP ALLOWABLE",null,null,{"$f":"F722","v":203},{"$f":"G722","v":-78},{"$f":"H722","v":205},{"$f":"I722","v":76},{"$f":"SUM(G23:I23)","v":203},{"$f":"F23-J23","v":0}]
[14,null,"RESERVED",{"$f":"'FR-16(7)(v)-1 Functional'!D24","v":"CW29"},null,{"$f":"'FR-16(7)(v)-14 TOTAL CLASS'!Q24","v":0},{"$f":"'FR-16(7)(v)-3 PROD Demand'!Q24+'FR-16(7)(v)-7 TRANS Demand'!Q24+'FR-16(7)(v)-11 DIST Demand'!Q24","v":0},{"$f":"'FR-16(7)(v)-4 PROD Energy'!Q24+'FR-16(7)(v)-8 TRANS Energy'!Q24+'FR-16(7)(v)-12 DIST Energy'!Q24","v":0},{"$f":"'FR-16(7)(v)-5 PROD Cust'!Q24+'FR-16(7)(v)-9 TRANS Cust'!Q24+'FR-16(7)(v)-13 DIST Cust'!Q24","v":0},{"$f":"SUM(G24:I24)","v":0},{"$f":"F24-J24","v":0}]
[15,null,{"$f":"'FR-16(7)(v)-1 Functional'!C25","v":"REVENUE TAX"},null,null,{"$f":"F767","v":0},{"$f":"G767","v":0},{"$f":"H767","v":0},{"$f":"I767","v":0},{"$f":"SUM(G25:I25)","v":0},{"$f":"F25-J25","v":0}]
[16,null,{"$f":"'FR-16(7)(v)-1 Functional'!C26","v":"  TOTAL OPERATING EXPENSE"},null,null,{"$f":"SUM(F21:F25)","v":32683},12582,17937,2164,32683,0]
[17]
[18,"RETURN ON RATE BASE",null,null,null,{"$f":"F433","v":6924},{"$f":"G433","v":6066},{"$f":"H433","v":234},{"$f":"I433","v":624},{"$f":"SUM(G28:I28)","v":6924},{"$f":"F28-J28","v":0}]
[19,"TOTAL OTHER OPERATING REVENUES",null,null,null,{"$f":"-F750","v":-179},{"$f":"-G750","v":-146},{"$f":"-H750","v":0},{"$f":"-I750","v":-33},{"$f":"SUM(G29:I29)","v":-179},{"$f":"F29-J29","v":0}]
[20,null,{"$f":"'FR-16(7)(v)-1 Functional'!C30","v":"TOTAL ELECTRIC COST OF SERVICE"},null,null,{"$f":"SUM(F26:F29)","v":39428},{"$f":"SUM(G26:G29)","v":18502},{"$f":"SUM(H26:H29)","v":18171},{"$f":"SUM(I26:I29)","v":2755},{"$f":"SUM(J26:J29)","v":39428},{"$f":"F30-J30","v":0}]
[21,"ADJUSTMENT FOR INTERCLASS SUBSIDIZATION",null,{"$f":"1-'WP FR-16(7)(v) Rate Incr'!I11","v":0.95},null,{"$f":"SUM(G31:I31)","v":-16854},{"$f":"'WP FR-16(7)(v) Rate Incr'!T25","v":-12377},{"$f":"'WP FR-16(7)(v) Rate Incr'!U15","v":0},{"$f":"'WP FR-16(7)(v) Rate Incr'!V25","v":-4477},null,{"$f":"F31-J31","v":-16854}]
[22,{"$f":"'FR-16(7)(v)-1 Functional'!$B$32","v":"REQUESTED REVENUES (COST OF SERVICE ADJUSTED FOR SUBSIDIES)"},null,null,null,{"$f":"F30+F31","v":22574},6125,18171,-1722,39428,-16854]
[23,"PROPOSED REVENUES",null,null,null,{"$f":"'FR-16(7)(v)-14 TOTAL CLASS'!Q33","v":18961},{"$f":"'FR-16(7)(v)-3 PROD Demand'!Q33+'FR-16(7)(v)-7 TRANS Demand'!Q33+'FR-16(7)(v)-11 DIST Demand'!Q33","v":11211},{"$f":"'FR-16(7)(v)-4 PROD Energy'!Q33+'FR-16(7)(v)-8 TRANS Energy'!Q33+'FR-16(7)(v)-12 DIST Energy'!Q33","v":13441},{"$f":"'FR-16(7)(v)-5 PROD Cust'!Q33+'FR-16(7)(v)-9 TRANS Cust'!Q33+'FR-16(7)(v)-13 DIST Cust'!Q33","v":7447},{"$f":"SUM(G33:I33)","v":32099},{"$f":"F33-J33","v":-13138}]
[24,"DIFFERENCE (REQUESTED LESS PROPOSED)",null,null,null,{"$f":"F32-F33","v":3613},-5086,4730,-9169,7329,-3716]
[25]
[26,"TOTAL RETURN EARNED",null,null,null,{"$f":"F777+F28","v":1422},{"$f":"G777+G28","v":592},{"$f":"H777+H28","v":-3317},{"$f":"I777+I28","v":4147},{"$f":"J777+J28","v":1422},{"$f":"F36-J36","v":0}]
[27,"RATE OF RETURN EARNED",null,null,null,{"$f":"IF(F431=0,0,ROUND(F36/F431,5))","v":1.3780000000000001E-2},6.5500000000000003E-3,-0.95069999999999999,0.44614999999999999,1.3780000000000001E-2,0]
[28,"TOTAL RATE OF RETURN ALLOWABLE",null,null,null,{"$f":"$F$811","v":6.7100000000000007E-2},{"$f":"F811","v":6.7100000000000007E-2},{"$f":"F811","v":6.7100000000000007E-2},{"$f":"F811","v":6.7100000000000007E-2},{"$f":"F811","v":6.7100000000000007E-2},{"$f":"IF(K37=0,0,F811)","v":0},null,null,"Not Part of print range"]
[29,"RETURN EARNED ON COMMON EQUITY",null,null,null,{"$f":"IF(Equity=0,0,(F37-$F$806-$F$807-$F$809)*TotalCap/Equity)","v":-1.248072909913836E-2},{"$f":"IF(Equity=0,0,(G37-$F$806-$F$807-$F$809)*TotalCap/Equity)","v":-2.7470043282987251E-2},{"$f":"IF(Equity=0,0,(H37-F806-F807-F809)*TotalCap/Equity)","v":-2.0120510948029531},{"$f":"IF(Equity=0,0,(I37-F806-F807-F809)*TotalCap/Equity)","v":0.88391343046804638},{"$f":"IF(Equity=0,0,(J37-F806-F807-F809)*TotalCap/Equity)","v":-1.248072909913836E-2},{"$f":"IF(OR(E793=0,K37=0)=TRUE,0,(K37-E806-E807-E809)*E796/E793)","v":0},null,null,"Not Filed"]
[30,"ALLOWED RETURN ON COMMON EQUITY",null,null,null,{"$f":"IF(Equity=0,0,(F38-$F$806-$F$807-$F$809)*TotalCap/Equity)","v":9.8062871493229981E-2},{"$f":"IF(Equity=0,0,(G38-F806-F807-F809)*TotalCap/Equity)","v":9.8062871493229981E-2},{"$f":"IF(Equity=0,0,(H38-F806-F807-F809)*TotalCap/Equity)","v":9.8062871493229981E-2},{"$f":"IF(Equity=0,0,(I38-F806-F807-F809)*TotalCap/Equity)","v":9.8062871493229981E-2},{"$f":"IF(Equity=0,0,(J38-F806-F807-F809)*TotalCap/Equity)","v":9.8062871493229981E-2},{"$f":"IF(OR(Equity=0,K38=0)=TRUE,0,(K38-F806-F807-F809)*TotalCap/Equity)","v":0}]
[31,null,null,null,null," "]
[32,"PRESENT REVENUES",null,null,null,{"$f":"'FR-16(7)(v)-14 TOTAL CLASS'!Q42","v":16848},{"$f":"F42-SUM(H42:I42)","v":-1453},{"$f":"'FR-16(7)(v)-4 PROD Energy'!Q42","v":15892},{"$f":"'FR-16(7)(v)-13 DIST Cust'!Q42","v":2409},{"$f":"SUM(G42:I42)","v":16848},{"$f":"F42-J42","v":0}]
[33,"REVENUE INCREASE JUSTIFIED",null,null,null,{"$f":"F30-F42","v":22580},19955,2279,346,22580,0]
[34,null,"PER UNIT PRES REV",null,null,{"$f":"IF(F42=0,0,ROUND(F43/F42,5))","v":1.34022},-13.733650000000001,0.14341000000000001,0.14363000000000001,1.34022,0]
[35,"REVENUE INCREASE REQUESTED",null,null,null,{"$f":"F33-F42","v":2113},12664,-2451,5038,15251,-13138]
[36,null,"PER UNIT PRES REV",null,null,{"$f":"IF(F42=0,0,ROUND(F45/F42,5))","v":0.12542},-8.7157599999999995,-0.15423000000000001,2.0913200000000001,0.90520999999999996,0]
[]
[{"$f":"co_name","v":"DUKE ENERGY KENTUCKY, INC."},null,null,null,null,null,null,null,null,{"$f":"J1","v":"FR-16(7)(v)-25"}]
[{"$f":"$A$2","v":"OTHER WP CLASSIFIED - ELECTRIC COST OF SERVICE"},null,null,null,null,null,null,null,null,{"$f":"J2","v":"WITNESS RESPONSIBLE:"}]
[{"$f":"case_name","v":"CASE NO: 2019-00271"},null,null,null,null,null,null,null,null,{"$f":"Witness","v":"JAMES E. ZIOLKOWSKI"}]
[{"$f":"data_filing","v":"DATA: 12 MONTHS ACTUAL  & 0 MONTHS ESTIMATED"},null,null,null,null,null,null,null,null,{"$f":"\"PAGE \"&Pages2-13&\" OF \"&Pages2","v":"PAGE 2 OF 15"}]
[{"$f":"type","v":"TYPE OF FILING: \"X\" ORIGINAL   UPDATED    REVISED  "}]
[]
[]
["LINE",null,null,null,null,"TOTAL","CLASSIFIED",null,null,"TOTAL","ALL"]
["NO.","GROSS ELECTRIC PLANT IN SERVICE",null,"ALLO",null,{"$f":"$F$9","v":"OTHER WP"},{"$f":"G9","v":"DEMAND"},"ENERGY","CUSTOMER","AT ISSUE","OTHER"]
[null,null,"Schedule 2",null,null,null,3,4,5,null," "]
[1,"PRODUCTION PLANT"]
[2,null,"PRODUCTION STEAM",{"$f":"'FR-16(7)(v)-1 Functional'!D59","v":"K201"},null,{"$f":"'FR-16(7)(v)-14 TOTAL CLASS'!Q59","v":91887},{"$f":"'FR-16(7)(v)-3 PROD Demand'!Q59+'FR-16(7)(v)-7 TRANS Demand'!Q59+'FR-16(7)(v)-11 DIST Demand'!Q59","v":91887},{"$f":"'FR-16(7)(v)-4 PROD Energy'!Q59+'FR-16(7)(v)-8 TRANS Energy'!Q59+'FR-16(7)(v)-12 DIST Energy'!Q59","v":0},{"$f":"'FR-16(7)(v)-5 PROD Cust'!Q59+'FR-16(7)(v)-9 TRANS Cust'!Q59+'FR-16(7)(v)-13 DIST Cust'!Q59","v":0},{"$f":"SUM(G59:I59)","v":91887},{"$f":"F59-J59","v":0}]
[3,null,"PRODUCTION OTHER",{"$f":"'FR-16(7)(v)-1 Functional'!D60","v":"K201"},null,{"$f":"'FR-16(7)(v)-14 TOTAL CLASS'!Q60","v":41080},{"$f":"'FR-16(7)(v)-3 PROD Demand'!Q60+'FR-16(7)(v)-7 TRANS Demand'!Q60+'FR-16(7)(v)-11 DIST Demand'!Q60","v":41080},{"$f":"'FR-16(7)(v)-4 PROD Energy'!Q60+'FR-16(7)(v)-8 TRANS Energy'!Q60+'FR-16(7)(v)-12 DIST Energy'!Q60","v":0},{"$f":"'FR-16(7)(v)-5 PROD Cust'!Q60+'FR-16(7)(v)-9 TRANS Cust'!Q60+'FR-16(7)(v)-13 DIST Cust'!Q60","v":0},{"$f":"SUM(G60:I60)","v":41080},{"$f":"F60-J60","v":0}]
[4,null,{"$f":"'FR-16(7)(v)-1 Functional'!C61","v":"ADJUSTMENT"},{"$f":"'FR-16(7)(v)-1 Functional'!D61","v":"K201"},null,{"$f":"'FR-16(7)(v)-14 TOTAL CLASS'!Q61","v":0},{"$f":"'FR-16(7)(v)-3 PROD Demand'!Q61+'FR-16(7)(v)-7 TRANS Demand'!Q61+'FR-16(7)(v)-11 DIST Demand'!Q61","v":0},{"$f":"'FR-16(7)(v)-4 PROD Energy'!Q61+'FR-16(7)(v)-8 TRANS Energy'!Q61+'FR-16(7)(v)-12 DIST Energy'!Q61","v":0},{"$f":"'FR-16(7)(v)-5 PROD Cust'!Q61+'FR-16(7)(v)-9 TRANS Cust'!Q61+'FR-16(7)(v)-13 DIST Cust'!Q61","v":0},{"$f":"SUM(G61:I61)","v":0},{"$f":"F61-J61","v":0}]
[5,null,{"$f":"'FR-16(7)(v)-1 Functional'!C62","v":"  PRODUCTION PLANT IN SERVICE"},null,null,{"$f":"SUM(F59:F61)","v":132967},132967,0,0,132967,0]
[6]
[7,"TRANSMISSION PLANT"]
[8,null,"MAIN STEP-UP TRANSFORMERS",{"$f":"'FR-16(7)(v)-1 Functional'!D65","v":"K202"},null,{"$f":"'FR-16(7)(v)-14 TOTAL CLASS'!Q65","v":0},{"$f":"'FR-16(7)(v)-3 PROD Demand'!Q65+'FR-16(7)(v)-7 TRANS Demand'!Q65+'FR-16(7)(v)-11 DIST Demand'!Q65","v":0},{"$f":"'FR-16(7)(v)-4 PROD Energy'!Q65+'FR-16(7)(v)-8 TRANS Energy'!Q65+'FR-16(7)(v)-12 DIST Energy'!Q65","v":0},{"$f":"'FR-16(7)(v)-5 PROD Cust'!Q65+'FR-16(7)(v)-9 TRANS Cust'!Q65+'FR-16(7)(v)-13 DIST Cust'!Q65","v":0},{"$f":"SUM(G65:I65)","v":0},{"$f":"F65-J65","v":0}]
[9,null,"OTHER TRANSMISSION",{"$f":"'FR-16(7)(v)-1 Functional'!D66","v":"K202"},null,{"$f":"'FR-16(7)(v)-14 TOTAL CLASS'!Q66","v":7961},{"$f":"'FR-16(7)(v)-3 PROD Demand'!Q66+'FR-16(7)(v)-7 TRANS Demand'!Q66+'FR-16(7)(v)-11 DIST Demand'!Q66","v":7961},{"$f":"'FR-16(7)(v)-4 PROD Energy'!Q66+'FR-16(7)(v)-8 TRANS Energy'!Q66+'FR-16(7)(v)-12 DIST Energy'!Q66","v":0},{"$f":"'FR-16(7)(v)-5 PROD Cust'!Q66+'FR-16(7)(v)-9 TRANS Cust'!Q66+'FR-16(7)(v)-13 DIST Cust'!Q66","v":0},{"$f":"SUM(G66:I66)","v":7961},{"$f":"F66-J66","v":0}]
[10,null,"ADJUSTMENT",{"$f":"'FR-16(7)(v)-1 Functional'!D67","v":"K202"},null,{"$f":"'FR-16(7)(v)-14 TOTAL CLASS'!Q67","v":0},{"$f":"'FR-16(7)(v)-3 PROD Demand'!Q67+'FR-16(7)(v)-7 TRANS Demand'!Q67+'FR-16(7)(v)-11 DIST Demand'!Q67","v":0},{"$f":"'FR-16(7)(v)-4 PROD Energy'!Q67+'FR-16(7)(v)-8 TRANS Energy'!Q67+'FR-16(7)(v)-12 DIST Energy'!Q67","v":0},{"$f":"'FR-16(7)(v)-5 PROD Cust'!Q67+'FR-16(7)(v)-9 TRANS Cust'!Q67+'FR-16(7)(v)-13 DIST Cust'!Q67","v":0},{"$f":"SUM(G67:I67)","v":0},{"$f":"F67-J67","v":0}]
[11,null,{"$f":"'FR-16(7)(v)-1 Functional'!C68","v":"  TRANSMISSION PLANT IN SERVICE"},null,null,{"$f":"SUM(F65:F67)","v":7961},7961,0,0,7961,0]
[12]
[13,"TOTAL PROD & TRANS PLANT",null,null,null,{"$f":"F68+F62","v":140928},140928,0,0,140928,0]
[14]
[15,"DISTRIBUTION PLANT"]
[16,null,{"$f":"'FR-16(7)(v)-1 Functional'!C73","v":"SUBSTATIONS"},{"$f":"'FR-16(7)(v)-1 Functional'!D73","v":"K215"},null,{"$f":"'FR-16(7)(v)-14 TOTAL CLASS'!Q73","v":10007},{"$f":"'FR-16(7)(v)-3 PROD Demand'!Q73+'FR-16(7)(v)-7 TRANS Demand'!Q73+'FR-16(7)(v)-11 DIST Demand'!Q73","v":10007},{"$f":"'FR-16(7)(v)-4 PROD Energy'!Q73+'FR-16(7)(v)-8 TRANS Energy'!Q73+'FR-16(7)(v)-12 DIST Energy'!Q73","v":0},{"$f":"'FR-16(7)(v)-5 PROD Cust'!Q73+'FR-16(7)(v)-9 TRANS Cust'!Q73+'FR-16(7)(v)-13 DIST Cust'!Q73","v":0},{"$f":"SUM(G73:I73)","v":10007},{"$f":"F73-J73","v":0}]
[17,null,{"$f":"'FR-16(7)(v)-1 Functional'!C74","v":"POLES, TOWERS  & FIXTURES - PRIMARY - DEMAND"},{"$f":"'FR-16(7)(v)-1 Functional'!D74","v":"K205"},null,{"$f":"'FR-16(7)(v)-14 TOTAL CLASS'!Q74","v":3631},{"$f":"'FR-16(7)(v)-3 PROD Demand'!Q74+'FR-16(7)(v)-7 TRANS Demand'!Q74+'FR-16(7)(v)-11 DIST Demand'!Q74","v":3631},{"$f":"'FR-16(7)(v)-4 PROD Energy'!Q74+'FR-16(7)(v)-8 TRANS Energy'!Q74+'FR-16(7)(v)-12 DIST Energy'!Q74","v":0},{"$f":"'FR-16(7)(v)-5 PROD Cust'!Q74+'FR-16(7)(v)-9 TRANS Cust'!Q74+'FR-16(7)(v)-13 DIST Cust'!Q74","v":0},{"$f":"SUM(G74:I74)","v":3631},{"$f":"F74-J74","v":0}]
[18,null,{"$f":"'FR-16(7)(v)-1 Functional'!C75","v":"POLES, TOWERS  & FIXTURES - PRIMARY - CUSTOMER"},{"$f":"'FR-16(7)(v)-1 Functional'!D75","v":"K405"},null,{"$f":"'FR-16(7)(v)-14 TOTAL CLASS'!Q75","v":1209},{"$f":"'FR-16(7)(v)-3 PROD Demand'!Q75+'FR-16(7)(v)-7 TRANS Demand'!Q75+'FR-16(7)(v)-11 DIST Demand'!Q75","v":0},{"$f":"'FR-16(7)(v)-4 PROD Energy'!Q75+'FR-16(7)(v)-8 TRANS Energy'!Q75+'FR-16(7)(v)-12 DIST Energy'!Q75","v":0},{"$f":"'FR-16(7)(v)-5 PROD Cust'!Q75+'FR-16(7)(v)-9 TRANS Cust'!Q75+'FR-16(7)(v)-13 DIST Cust'!Q75","v":1209},{"$f":"SUM(G75:I75)","v":1209},{"$f":"F75-J75","v":0}]
[19,null,{"$f":"'FR-16(7)(v)-1 Functional'!C76","v":"POLES, TOWERS  & FIXTURES - SECONDARY - DEMAND"},{"$f":"'FR-16(7)(v)-1 Functional'!D76","v":"K206"},null,{"$f":"'FR-16(7)(v)-14 TOTAL CLASS'!Q76","v":1389},{"$f":"'FR-16(7)(v)-3 PROD Demand'!Q76+'FR-16(7)(v)-7 TRANS Demand'!Q76+'FR-16(7)(v)-11 DIST Demand'!Q76","v":1389},{"$f":"'FR-16(7)(v)-4 PROD Energy'!Q76+'FR-16(7)(v)-8 TRANS Energy'!Q76+'FR-16(7)(v)-12 DIST Energy'!Q76","v":0},{"$f":"'FR-16(7)(v)-5 PROD Cust'!Q76+'FR-16(7)(v)-9 TRANS Cust'!Q76+'FR-16(7)(v)-13 DIST Cust'!Q76","v":0},1389,0]
[20,null,{"$f":"'FR-16(7)(v)-1 Functional'!C77","v":"POLES, TOWERS  & FIXTURES - SECONDARY - CUSTOMER"},{"$f":"'FR-16(7)(v)-1 Functional'!D77","v":"K405"},null,{"$f":"'FR-16(7)(v)-14 TOTAL CLASS'!Q77","v":273},{"$f":"'FR-16(7)(v)-3 PROD Demand'!Q77+'FR-16(7)(v)-7 TRANS Demand'!Q77+'FR-16(7)(v)-11 DIST Demand'!Q77","v":0},{"$f":"'FR-16(7)(v)-4 PROD Energy'!Q77+'FR-16(7)(v)-8 TRANS Energy'!Q77+'FR-16(7)(v)-12 DIST Energy'!Q77","v":0},{"$f":"'FR-16(7)(v)-5 PROD Cust'!Q77+'FR-16(7)(v)-9 TRANS Cust'!Q77+'FR-16(7)(v)-13 DIST Cust'!Q77","v":273},273,0]
[21,null,{"$f":"'FR-16(7)(v)-1 Functional'!C78","v":"CONDUCTORS - OVERHEAD / PRIMARY - DEMAND"},{"$f":"'FR-16(7)(v)-1 Functional'!D78","v":"K205"},null,{"$f":"'FR-16(7)(v)-14 TOTAL CLASS'!Q78","v":8275},{"$f":"'FR-16(7)(v)-3 PROD Demand'!Q78+'FR-16(7)(v)-7 TRANS Demand'!Q78+'FR-16(7)(v)-11 DIST Demand'!Q78","v":8275},{"$f":"'FR-16(7)(v)-4 PROD Energy'!Q78+'FR-16(7)(v)-8 TRANS Energy'!Q78+'FR-16(7)(v)-12 DIST Energy'!Q78","v":0},{"$f":"'FR-16(7)(v)-5 PROD Cust'!Q78+'FR-16(7)(v)-9 TRANS Cust'!Q78+'FR-16(7)(v)-13 DIST Cust'!Q78","v":0},8275,0]
[22,null,{"$f":"'FR-16(7)(v)-1 Functional'!C79","v":"CONDUCTORS - OVERHEAD / PRIMARY - CUSTOMER"},{"$f":"'FR-16(7)(v)-1 Functional'!D79","v":"K405"},null,{"$f":"'FR-16(7)(v)-14 TOTAL CLASS'!Q79","v":1314},{"$f":"'FR-16(7)(v)-3 PROD Demand'!Q79+'FR-16(7)(v)-7 TRANS Demand'!Q79+'FR-16(7)(v)-11 DIST Demand'!Q79","v":0},{"$f":"'FR-16(7)(v)-4 PROD Energy'!Q79+'FR-16(7)(v)-8 TRANS Energy'!Q79+'FR-16(7)(v)-12 DIST Energy'!Q79","v":0},{"$f":"'FR-16(7)(v)-5 PROD Cust'!Q79+'FR-16(7)(v)-9 TRANS Cust'!Q79+'FR-16(7)(v)-13 DIST Cust'!Q79","v":1314},1314,0]
[23,null,{"$f":"'FR-16(7)(v)-1 Functional'!C80","v":"CONDUCTORS - OVERHEAD / SECONDARY - DEMAND"},{"$f":"'FR-16(7)(v)-1 Functional'!D80","v":"K206"},null,{"$f":"'FR-16(7)(v)-14 TOTAL CLASS'!Q80","v":3369},{"$f":"'FR-16(7)(v)-3 PROD Demand'!Q80+'FR-16(7)(v)-7 TRANS Demand'!Q80+'FR-16(7)(v)-11 DIST Demand'!Q80","v":3369},{"$f":"'FR-16(7)(v)-4 PROD Energy'!Q80+'FR-16(7)(v)-8 TRANS Energy'!Q80+'FR-16(7)(v)-12 DIST Energy'!Q80","v":0},{"$f":"'FR-16(7)(v)-5 PROD Cust'!Q80+'FR-16(7)(v)-9 TRANS Cust'!Q80+'FR-16(7)(v)-13 DIST Cust'!Q80","v":0},3369,0]
[24,null,{"$f":"'FR-16(7)(v)-1 Functional'!C81","v":"CONDUCTORS - OVERHEAD / SECONDARY - CUSTOMER"},{"$f":"'FR-16(7)(v)-1 Functional'!D81","v":"K405"},null,{"$f":"'FR-16(7)(v)-14 TOTAL CLASS'!Q81","v":544},{"$f":"'FR-16(7)(v)-3 PROD Demand'!Q81+'FR-16(7)(v)-7 TRANS Demand'!Q81+'FR-16(7)(v)-11 DIST Demand'!Q81","v":0},{"$f":"'FR-16(7)(v)-4 PROD Energy'!Q81+'FR-16(7)(v)-8 TRANS Energy'!Q81+'FR-16(7)(v)-12 DIST Energy'!Q81","v":0},{"$f":"'FR-16(7)(v)-5 PROD Cust'!Q81+'FR-16(7)(v)-9 TRANS Cust'!Q81+'FR-16(7)(v)-13 DIST Cust'!Q81","v":544},544,0]
[25,null,{"$f":"'FR-16(7)(v)-1 Functional'!C82","v":"CONDUCTORS - UNDERGROUND / PRIMARY - DEMAND"},{"$f":"'FR-16(7)(v)-1 Functional'!D82","v":"K205"},null,{"$f":"'FR-16(7)(v)-14 TOTAL CLASS'!Q82","v":6176},{"$f":"'FR-16(7)(v)-3 PROD Demand'!Q82+'FR-16(7)(v)-7 TRANS Demand'!Q82+'FR-16(7)(v)-11 DIST Demand'!Q82","v":6176},{"$f":"'FR-16(7)(v)-4 PROD Energy'!Q82+'FR-16(7)(v)-8 TRANS Energy'!Q82+'FR-16(7)(v)-12 DIST Energy'!Q82","v":0},{"$f":"'FR-16(7)(v)-5 PROD Cust'!Q82+'FR-16(7)(v)-9 TRANS Cust'!Q82+'FR-16(7)(v)-13 DIST Cust'!Q82","v":0},6176,0]
[26,null,{"$f":"'FR-16(7)(v)-1 Functional'!C83","v":"CONDUCTORS - UNDERGROUND / PRIMARY - CUSTOMER"},{"$f":"'FR-16(7)(v)-1 Functional'!D83","v":"K405"},null,{"$f":"'FR-16(7)(v)-14 TOTAL CLASS'!Q83","v":1395},{"$f":"'FR-16(7)(v)-3 PROD Demand'!Q83+'FR-16(7)(v)-7 TRANS Demand'!Q83+'FR-16(7)(v)-11 DIST Demand'!Q83","v":0},{"$f":"'FR-16(7)(v)-4 PROD Energy'!Q83+'FR-16(7)(v)-8 TRANS Energy'!Q83+'FR-16(7)(v)-12 DIST Energy'!Q83","v":0},{"$f":"'FR-16(7)(v)-5 PROD Cust'!Q83+'FR-16(7)(v)-9 TRANS Cust'!Q83+'FR-16(7)(v)-13 DIST Cust'!Q83","v":1395},1395,0]
[27,null,{"$f":"'FR-16(7)(v)-1 Functional'!C84","v":"CONDUCTORS - UNDERGROUND / SECONDARY - DEMAND"},{"$f":"'FR-16(7)(v)-1 Functional'!D84","v":"K206"},null,{"$f":"'FR-16(7)(v)-14 TOTAL CLASS'!Q84","v":1058},{"$f":"'FR-16(7)(v)-3 PROD Demand'!Q84+'FR-16(7)(v)-7 TRANS Demand'!Q84+'FR-16(7)(v)-11 DIST Demand'!Q84","v":1058},{"$f":"'FR-16(7)(v)-4 PROD Energy'!Q84+'FR-16(7)(v)-8 TRANS Energy'!Q84+'FR-16(7)(v)-12 DIST Energy'!Q84","v":0},{"$f":"'FR-16(7)(v)-5 PROD Cust'!Q84+'FR-16(7)(v)-9 TRANS Cust'!Q84+'FR-16(7)(v)-13 DIST Cust'!Q84","v":0},1058,0]
[28,null,{"$f":"'FR-16(7)(v)-1 Functional'!C85","v":"CONDUCTORS - UNDERGROUND / SECONDARY - CUSTOMER"},{"$f":"'FR-16(7)(v)-1 Functional'!D85","v":"K405"},null,{"$f":"'FR-16(7)(v)-14 TOTAL CLASS'!Q85","v":436},{"$f":"'FR-16(7)(v)-3 PROD Demand'!Q85+'FR-16(7)(v)-7 TRANS Demand'!Q85+'FR-16(7)(v)-11 DIST Demand'!Q85","v":0},{"$f":"'FR-16(7)(v)-4 PROD Energy'!Q85+'FR-16(7)(v)-8 TRANS Energy'!Q85+'FR-16(7)(v)-12 DIST Energy'!Q85","v":0},{"$f":"'FR-16(7)(v)-5 PROD Cust'!Q85+'FR-16(7)(v)-9 TRANS Cust'!Q85+'FR-16(7)(v)-13 DIST Cust'!Q85","v":436},436,0]
[29,null,{"$f":"'FR-16(7)(v)-1 Functional'!C86","v":"TRANSFORMERS DEMAND RELATED"},{"$f":"'FR-16(7)(v)-1 Functional'!D86","v":"K215"},null,{"$f":"'FR-16(7)(v)-14 TOTAL CLASS'!Q86","v":5183},{"$f":"'FR-16(7)(v)-3 PROD Demand'!Q86+'FR-16(7)(v)-7 TRANS Demand'!Q86+'FR-16(7)(v)-11 DIST Demand'!Q86","v":5183},{"$f":"'FR-16(7)(v)-4 PROD Energy'!Q86+'FR-16(7)(v)-8 TRANS Energy'!Q86+'FR-16(7)(v)-12 DIST Energy'!Q86","v":0},{"$f":"'FR-16(7)(v)-5 PROD Cust'!Q86+'FR-16(7)(v)-9 TRANS Cust'!Q86+'FR-16(7)(v)-13 DIST Cust'!Q86","v":0},{"$f":"SUM(G86:I86)","v":5183},{"$f":"F86-J86","v":0}]
[30,null,{"$f":"'FR-16(7)(v)-1 Functional'!C87","v":"TRANSFORMERS CUSTOMER RELATED"},{"$f":"'FR-16(7)(v)-1 Functional'!D87","v":"K405"},null,{"$f":"'FR-16(7)(v)-14 TOTAL CLASS'!Q87","v":1225},{"$f":"'FR-16(7)(v)-3 PROD Demand'!Q87+'FR-16(7)(v)-7 TRANS Demand'!Q87+'FR-16(7)(v)-11 DIST Demand'!Q87","v":0},{"$f":"'FR-16(7)(v)-4 PROD Energy'!Q87+'FR-16(7)(v)-8 TRANS Energy'!Q87+'FR-16(7)(v)-12 DIST Energy'!Q87","v":0},{"$f":"'FR-16(7)(v)-5 PROD Cust'!Q87+'FR-16(7)(v)-9 TRANS Cust'!Q87+'FR-16(7)(v)-13 DIST Cust'!Q87","v":1225},1225,0]
[31,null,{"$f":"'FR-16(7)(v)-1 Functional'!C88","v":"SERVICES"},{"$f":"'FR-16(7)(v)-1 Functional'!D88","v":"K217"},null,{"$f":"'FR-16(7)(v)-14 TOTAL CLASS'!Q88","v":1698},{"$f":"'FR-16(7)(v)-3 PROD Demand'!Q88+'FR-16(7)(v)-7 TRANS Demand'!Q88+'FR-16(7)(v)-11 DIST Demand'!Q88","v":0},{"$f":"'FR-16(7)(v)-4 PROD Energy'!Q88+'FR-16(7)(v)-8 TRANS Energy'!Q88+'FR-16(7)(v)-12 DIST Energy'!Q88","v":0},{"$f":"'FR-16(7)(v)-5 PROD Cust'!Q88+'FR-16(7)(v)-9 TRANS Cust'!Q88+'FR-16(7)(v)-13 DIST Cust'!Q88","v":1698},1698,0]
[32,null,{"$f":"'FR-16(7)(v)-1 Functional'!C89","v":"METERS"},{"$f":"'FR-16(7)(v)-1 Functional'!D89","v":"K407"},null,{"$f":"'FR-16(7)(v)-14 TOTAL CLASS'!Q89","v":3161},{"$f":"'FR-16(7)(v)-3 PROD Demand'!Q89+'FR-16(7)(v)-7 TRANS Demand'!Q89+'FR-16(7)(v)-11 DIST Demand'!Q89","v":0},{"$f":"'FR-16(7)(v)-4 PROD Energy'!Q89+'FR-16(7)(v)-8 TRANS Energy'!Q89+'FR-16(7)(v)-12 DIST Energy'!Q89","v":0},{"$f":"'FR-16(7)(v)-5 PROD Cust'!Q89+'FR-16(7)(v)-9 TRANS Cust'!Q89+'FR-16(7)(v)-13 DIST Cust'!Q89","v":3161},3161,0]
[33,null,{"$f":"'FR-16(7)(v)-1 Functional'!C90","v":"STREET LIGHTS"},{"$f":"'FR-16(7)(v)-1 Functional'!D90","v":"K401"},null,{"$f":"'FR-16(7)(v)-14 TOTAL CLASS'!Q90","v":0},{"$f":"'FR-16(7)(v)-3 PROD Demand'!Q90+'FR-16(7)(v)-7 TRANS Demand'!Q90+'FR-16(7)(v)-11 DIST Demand'!Q90","v":0},{"$f":"'FR-16(7)(v)-4 PROD Energy'!Q90+'FR-16(7)(v)-8 TRANS Energy'!Q90+'FR-16(7)(v)-12 DIST Energy'!Q90","v":0},{"$f":"'FR-16(7)(v)-5 PROD Cust'!Q90+'FR-16(7)(v)-9 TRANS Cust'!Q90+'FR-16(7)(v)-13 DIST Cust'!Q90","v":0},0,0]
[34,null,{"$f":"'FR-16(7)(v)-1 Functional'!C91","v":"ADJUSTMENT  "},{"$f":"'FR-16(7)(v)-1 Functional'!D91","v":"K209"},null,{"$f":"'FR-16(7)(v)-14 TOTAL CLASS'!Q91","v":0},{"$f":"'FR-16(7)(v)-3 PROD Demand'!Q91+'FR-16(7)(v)-7 TRANS Demand'!Q91+'FR-16(7)(v)-11 DIST Demand'!Q91","v":0},{"$f":"'FR-16(7)(v)-4 PROD Energy'!Q91+'FR-16(7)(v)-8 TRANS Energy'!Q91+'FR-16(7)(v)-12 DIST Energy'!Q91","v":0},{"$f":"'FR-16(7)(v)-5 PROD Cust'!Q91+'FR-16(7)(v)-9 TRANS Cust'!Q91+'FR-16(7)(v)-13 DIST Cust'!Q91","v":0},0,0]
[35,null,{"$f":"'FR-16(7)(v)-1 Functional'!C92","v":"CONSTRUCTION NOT CLASSIFIED"},{"$f":"'FR-16(7)(v)-1 Functional'!D92","v":"K209"},null,{"$f":"'FR-16(7)(v)-14 TOTAL CLASS'!Q92","v":9910},{"$f":"'FR-16(7)(v)-3 PROD Demand'!Q92+'FR-16(7)(v)-7 TRANS Demand'!Q92+'FR-16(7)(v)-11 DIST Demand'!Q92","v":7636},{"$f":"'FR-16(7)(v)-4 PROD Energy'!Q92+'FR-16(7)(v)-8 TRANS Energy'!Q92+'FR-16(7)(v)-12 DIST Energy'!Q92","v":0},{"$f":"'FR-16(7)(v)-5 PROD Cust'!Q92+'FR-16(7)(v)-9 TRANS Cust'!Q92+'FR-16(7)(v)-13 DIST Cust'!Q92","v":2274},9910,0]
[36,null,{"$f":"'FR-16(7)(v)-1 Functional'!C93","v":"RWIP"},{"$f":"'FR-16(7)(v)-1 Functional'!D93","v":"K215"},null,{"$f":"'FR-16(7)(v)-14 TOTAL CLASS'!Q93","v":0},{"$f":"'FR-16(7)(v)-3 PROD Demand'!Q93+'FR-16(7)(v)-7 TRANS Demand'!Q93+'FR-16(7)(v)-11 DIST Demand'!Q93","v":0},{"$f":"'FR-16(7)(v)-4 PROD Energy'!Q93+'FR-16(7)(v)-8 TRANS Energy'!Q93+'FR-16(7)(v)-12 DIST Energy'!Q93","v":0},{"$f":"'FR-16(7)(v)-5 PROD Cust'!Q93+'FR-16(7)(v)-9 TRANS Cust'!Q93+'FR-16(7)(v)-13 DIST Cust'!Q93","v":0},{"$f":"SUM(G93:I93)","v":0},{"$f":"F93-J93","v":0}]
[37,null,{"$f":"'FR-16(7)(v)-1 Functional'!C94","v":"  DISTRIBUTION PLANT IN SERVICE"},null,null,{"$f":"SUM(F73:F93)","v":60253},{"$f":"SUM(G73:G92)","v":46724},0,13529,60253,0]
[38]
[39,"TOTAL TRANS & DIST PLANT",null,null,null,{"$f":"F94+F68","v":68214},54685,0,13529,68214,0]
[40,"TOTAL GROSS PTD PLANT",null,null,null,{"$f":"F94+F70","v":201181},187652,0,13529,201181,0]
[41]
[42,"GENERAL & INTANGIBLE PLANT"]
[43,null,{"$f":"'FR-16(7)(v)-1 Functional'!C100","v":"PRODUCTION - DEMAND"},{"$f":"'FR-16(7)(v)-1 Functional'!D100","v":"K201"},null,{"$f":"'FR-16(7)(v)-14 TOTAL CLASS'!Q100","v":1837},{"$f":"'FR-16(7)(v)-3 PROD Demand'!Q100+'FR-16(7)(v)-7 TRANS Demand'!Q100+'FR-16(7)(v)-11 DIST Demand'!Q100","v":1837},{"$f":"'FR-16(7)(v)-4 PROD Energy'!Q100+'FR-16(7)(v)-8 TRANS Energy'!Q100+'FR-16(7)(v)-12 DIST Energy'!Q100","v":0},{"$f":"'FR-16(7)(v)-5 PROD Cust'!Q100+'FR-16(7)(v)-9 TRANS Cust'!Q100+'FR-16(7)(v)-13 DIST Cust'!Q100","v":0},{"$f":"SUM(G100:I100)","v":1837},{"$f":"F100-J100","v":0}]
[44,null,{"$f":"'FR-16(7)(v)-1 Functional'!C101","v":"PRODUCTION - ENERGY"},{"$f":"'FR-16(7)(v)-1 Functional'!D101","v":"K301"},null,{"$f":"'FR-16(7)(v)-14 TOTAL CLASS'!Q101","v":2147},{"$f":"'FR-16(7)(v)-3 PROD Demand'!Q101+'FR-16(7)(v)-7 TRANS Demand'!Q101+'FR-16(7)(v)-11 DIST Demand'!Q101","v":0},{"$f":"'FR-16(7)(v)-4 PROD Energy'!Q101+'FR-16(7)(v)-8 TRANS Energy'!Q101+'FR-16(7)(v)-12 DIST Energy'!Q101","v":2147},{"$f":"'FR-16(7)(v)-5 PROD Cust'!Q101+'FR-16(7)(v)-9 TRANS Cust'!Q101+'FR-16(7)(v)-13 DIST Cust'!Q101","v":0},{"$f":"SUM(G101:I101)","v":2147},{"$f":"F101-J101","v":0}]
[45,null,{"$f":"'FR-16(7)(v)-1 Functional'!C102","v":"TRANSMISSION"},{"$f":"'FR-16(7)(v)-1 Functional'!D102","v":"K202"},null,{"$f":"'FR-16(7)(v)-14 TOTAL CLASS'!Q102","v":290},{"$f":"'FR-16(7)(v)-3 PROD Demand'!Q102+'FR-16(7)(v)-7 TRANS Demand'!Q102+'FR-16(7)(v)-11 DIST Demand'!Q102","v":290},{"$f":"'FR-16(7)(v)-4 PROD Energy'!Q102+'FR-16(7)(v)-8 TRANS Energy'!Q102+'FR-16(7)(v)-12 DIST Energy'!Q102","v":0},{"$f":"'FR-16(7)(v)-5 PROD Cust'!Q102+'FR-16(7)(v)-9 TRANS Cust'!Q102+'FR-16(7)(v)-13 DIST Cust'!Q102","v":0},290,0]
[46,null,{"$f":"'FR-16(7)(v)-1 Functional'!C103","v":"DISTRIBUTION - DEMAND"},{"$f":"'FR-16(7)(v)-1 Functional'!D103","v":"K201"},null,{"$f":"'FR-16(7)(v)-14 TOTAL CLASS'!Q103","v":975},{"$f":"'FR-16(7)(v)-3 PROD Demand'!Q103+'FR-16(7)(v)-7 TRANS Demand'!Q103+'FR-16(7)(v)-11 DIST Demand'!Q103","v":975},{"$f":"'FR-16(7)(v)-4 PROD Energy'!Q103+'FR-16(7)(v)-8 TRANS Energy'!Q103+'FR-16(7)(v)-12 DIST Energy'!Q103","v":0},{"$f":"'FR-16(7)(v)-5 PROD Cust'!Q103+'FR-16(7)(v)-9 TRANS Cust'!Q103+'FR-16(7)(v)-13 DIST Cust'!Q103","v":0},975,0]
[47,null,{"$f":"'FR-16(7)(v)-1 Functional'!C104","v":"DISTRIBUTION - CUSTOMER"},{"$f":"'FR-16(7)(v)-1 Functional'!D104","v":"K405"},null,{"$f":"'FR-16(7)(v)-14 TOTAL CLASS'!Q104","v":156},{"$f":"'FR-16(7)(v)-3 PROD Demand'!Q104+'FR-16(7)(v)-7 TRANS Demand'!Q104+'FR-16(7)(v)-11 DIST Demand'!Q104","v":0},{"$f":"'FR-16(7)(v)-4 PROD Energy'!Q104+'FR-16(7)(v)-8 TRANS Energy'!Q104+'FR-16(7)(v)-12 DIST Energy'!Q104","v":0},{"$f":"'FR-16(7)(v)-5 PROD Cust'!Q104+'FR-16(7)(v)-9 TRANS Cust'!Q104+'FR-16(7)(v)-13 DIST Cust'!Q104","v":156},156,0]
[48,null,{"$f":"'FR-16(7)(v)-1 Functional'!C105","v":"CUSTOMER ACCOUNTING"},{"$f":"'FR-16(7)(v)-1 Functional'!D105","v":"A308"},null,{"$f":"'FR-16(7)(v)-14 TOTAL CLASS'!Q105","v":993},{"$f":"'FR-16(7)(v)-3 PROD Demand'!Q105+'FR-16(7)(v)-7 TRANS Demand'!Q105+'FR-16(7)(v)-11 DIST Demand'!Q105","v":0},{"$f":"'FR-16(7)(v)-4 PROD Energy'!Q105+'FR-16(7)(v)-8 TRANS Energy'!Q105+'FR-16(7)(v)-12 DIST Energy'!Q105","v":0},{"$f":"'FR-16(7)(v)-5 PROD Cust'!Q105+'FR-16(7)(v)-9 TRANS Cust'!Q105+'FR-16(7)(v)-13 DIST Cust'!Q105","v":993},993,0]
[49,null,{"$f":"'FR-16(7)(v)-1 Functional'!C106","v":"CUSTOMER SERVICE & INFORMATION"},{"$f":"'FR-16(7)(v)-1 Functional'!D106","v":"A310"},null,{"$f":"'FR-16(7)(v)-14 TOTAL CLASS'!Q106","v":35},{"$f":"'FR-16(7)(v)-3 PROD Demand'!Q106+'FR-16(7)(v)-7 TRANS Demand'!Q106+'FR-16(7)(v)-11 DIST Demand'!Q106","v":0},{"$f":"'FR-16(7)(v)-4 PROD Energy'!Q106+'FR-16(7)(v)-8 TRANS Energy'!Q106+'FR-16(7)(v)-12 DIST Energy'!Q106","v":0},{"$f":"'FR-16(7)(v)-5 PROD Cust'!Q106+'FR-16(7)(v)-9 TRANS Cust'!Q106+'FR-16(7)(v)-13 DIST Cust'!Q106","v":35},35,0]
[50,null,{"$f":"'FR-16(7)(v)-1 Functional'!C107","v":"SALES"},{"$f":"'FR-16(7)(v)-1 Functional'!D107","v":"A312"},null,{"$f":"'FR-16(7)(v)-14 TOTAL CLASS'!Q107","v":0},{"$f":"'FR-16(7)(v)-3 PROD Demand'!Q107+'FR-16(7)(v)-7 TRANS Demand'!Q107+'FR-16(7)(v)-11 DIST Demand'!Q107","v":0},{"$f":"'FR-16(7)(v)-4 PROD Energy'!Q107+'FR-16(7)(v)-8 TRANS Energy'!Q107+'FR-16(7)(v)-12 DIST Energy'!Q107","v":0},{"$f":"'FR-16(7)(v)-5 PROD Cust'!Q107+'FR-16(7)(v)-9 TRANS Cust'!Q107+'FR-16(7)(v)-13 DIST Cust'!Q107","v":0},0,0]
[51,null,{"$f":"'FR-16(7)(v)-1 Functional'!C108","v":"ADJUSTMENT"},{"$f":"'FR-16(7)(v)-1 Functional'!D108","v":"A315"},null,{"$f":"'FR-16(7)(v)-14 TOTAL CLASS'!Q108","v":0},{"$f":"'FR-16(7)(v)-3 PROD Demand'!Q108+'FR-16(7)(v)-7 TRANS Demand'!Q108+'FR-16(7)(v)-11 DIST Demand'!Q108","v":0},{"$f":"'FR-16(7)(v)-4 PROD Energy'!Q108+'FR-16(7)(v)-8 TRANS Energy'!Q108+'FR-16(7)(v)-12 DIST Energy'!Q108","v":0},{"$f":"'FR-16(7)(v)-5 PROD Cust'!Q108+'FR-16(7)(v)-9 TRANS Cust'!Q108+'FR-16(7)(v)-13 DIST Cust'!Q108","v":0},0,0]
[52,null,{"$f":"'FR-16(7)(v)-1 Functional'!C109","v":"  GEN & INTANG PLANT IN SERVICE"},null,null,{"$f":"SUM(F100:F108)","v":6433},3102,2147,1184,6433,0]
[53]
[54,"COMMON & OTHER PLANT"]
[55,null,{"$f":"'FR-16(7)(v)-1 Functional'!C112","v":"PRODUCTION - DEMAND"},{"$f":"'FR-16(7)(v)-1 Functional'!D112","v":"K201"},null,{"$f":"'FR-16(7)(v)-14 TOTAL CLASS'!Q112","v":1040},{"$f":"'FR-16(7)(v)-3 PROD Demand'!Q112+'FR-16(7)(v)-7 TRANS Demand'!Q112+'FR-16(7)(v)-11 DIST Demand'!Q112","v":1040},{"$f":"'FR-16(7)(v)-4 PROD Energy'!Q112+'FR-16(7)(v)-8 TRANS Energy'!Q112+'FR-16(7)(v)-12 DIST Energy'!Q112","v":0},{"$f":"'FR-16(7)(v)-5 PROD Cust'!Q112+'FR-16(7)(v)-9 TRANS Cust'!Q112+'FR-16(7)(v)-13 DIST Cust'!Q112","v":0},{"$f":"SUM(G112:I112)","v":1040},{"$f":"F112-J112","v":0}]
[56,null,{"$f":"'FR-16(7)(v)-1 Functional'!C113","v":"PRODUCTION - ENERGY"},{"$f":"'FR-16(7)(v)-1 Functional'!D113","v":"K301"},null,{"$f":"'FR-16(7)(v)-14 TOTAL CLASS'!Q113","v":1215},{"$f":"'FR-16(7)(v)-3 PROD Demand'!Q113+'FR-16(7)(v)-7 TRANS Demand'!Q113+'FR-16(7)(v)-11 DIST Demand'!Q113","v":0},{"$f":"'FR-16(7)(v)-4 PROD Energy'!Q113+'FR-16(7)(v)-8 TRANS Energy'!Q113+'FR-16(7)(v)-12 DIST Energy'!Q113","v":1215},{"$f":"'FR-16(7)(v)-5 PROD Cust'!Q113+'FR-16(7)(v)-9 TRANS Cust'!Q113+'FR-16(7)(v)-13 DIST Cust'!Q113","v":0},{"$f":"SUM(G113:I113)","v":1215},{"$f":"F113-J113","v":0}]
[57,null,{"$f":"'FR-16(7)(v)-1 Functional'!C114","v":"TRANSMISSION"},{"$f":"'FR-16(7)(v)-1 Functional'!D114","v":"K202"},null,{"$f":"'FR-16(7)(v)-14 TOTAL CLASS'!Q114","v":164},{"$f":"'FR-16(7)(v)-3 PROD Demand'!Q114+'FR-16(7)(v)-7 TRANS Demand'!Q114+'FR-16(7)(v)-11 DIST Demand'!Q114","v":164},{"$f":"'FR-16(7)(v)-4 PROD Energy'!Q114+'FR-16(7)(v)-8 TRANS Energy'!Q114+'FR-16(7)(v)-12 DIST Energy'!Q114","v":0},{"$f":"'FR-16(7)(v)-5 PROD Cust'!Q114+'FR-16(7)(v)-9 TRANS Cust'!Q114+'FR-16(7)(v)-13 DIST Cust'!Q114","v":0},164,0]
[58,null,{"$f":"'FR-16(7)(v)-1 Functional'!C115","v":"DISTRIBUTION - DEMAND"},{"$f":"'FR-16(7)(v)-1 Functional'!D115","v":"K201"},null,{"$f":"'FR-16(7)(v)-14 TOTAL CLASS'!Q115","v":552},{"$f":"'FR-16(7)(v)-3 PROD Demand'!Q115+'FR-16(7)(v)-7 TRANS Demand'!Q115+'FR-16(7)(v)-11 DIST Demand'!Q115","v":552},{"$f":"'FR-16(7)(v)-4 PROD Energy'!Q115+'FR-16(7)(v)-8 TRANS Energy'!Q115+'FR-16(7)(v)-12 DIST Energy'!Q115","v":0},{"$f":"'FR-16(7)(v)-5 PROD Cust'!Q115+'FR-16(7)(v)-9 TRANS Cust'!Q115+'FR-16(7)(v)-13 DIST Cust'!Q115","v":0},552,0]
[59,null,{"$f":"'FR-16(7)(v)-1 Functional'!C116","v":"DISTRIBUTION - CUSTOMER"},{"$f":"'FR-16(7)(v)-1 Functional'!D116","v":"K405"},null,{"$f":"'FR-16(7)(v)-14 TOTAL CLASS'!Q116","v":88},{"$f":"'FR-16(7)(v)-3 PROD Demand'!Q116+'FR-16(7)(v)-7 TRANS Demand'!Q116+'FR-16(7)(v)-11 DIST Demand'!Q116","v":0},{"$f":"'FR-16(7)(v)-4 PROD Energy'!Q116+'FR-16(7)(v)-8 TRANS Energy'!Q116+'FR-16(7)(v)-12 DIST Energy'!Q116","v":0},{"$f":"'FR-16(7)(v)-5 PROD Cust'!Q116+'FR-16(7)(v)-9 TRANS Cust'!Q116+'FR-16(7)(v)-13 DIST Cust'!Q116","v":88},88,0]
[60,null,{"$f":"'FR-16(7)(v)-1 Functional'!C117","v":"CUSTOMER ACCOUNTING"},{"$f":"'FR-16(7)(v)-1 Functional'!D117","v":"A308"},null,{"$f":"'FR-16(7)(v)-14 TOTAL CLASS'!Q117","v":562},{"$f":"'FR-16(7)(v)-3 PROD Demand'!Q117+'FR-16(7)(v)-7 TRANS Demand'!Q117+'FR-16(7)(v)-11 DIST Demand'!Q117","v":0},{"$f":"'FR-16(7)(v)-4 PROD Energy'!Q117+'FR-16(7)(v)-8 TRANS Energy'!Q117+'FR-16(7)(v)-12 DIST Energy'!Q117","v":0},{"$f":"'FR-16(7)(v)-5 PROD Cust'!Q117+'FR-16(7)(v)-9 TRANS Cust'!Q117+'FR-16(7)(v)-13 DIST Cust'!Q117","v":562},562,0]
[61,null,{"$f":"'FR-16(7)(v)-1 Functional'!C118","v":"CUSTOMER SERVICE & INFORMATION"},{"$f":"'FR-16(7)(v)-1 Functional'!D118","v":"A310"},null,{"$f":"'FR-16(7)(v)-14 TOTAL CLASS'!Q118","v":20},{"$f":"'FR-16(7)(v)-3 PROD Demand'!Q118+'FR-16(7)(v)-7 TRANS Demand'!Q118+'FR-16(7)(v)-11 DIST Demand'!Q118","v":0},{"$f":"'FR-16(7)(v)-4 PROD Energy'!Q118+'FR-16(7)(v)-8 TRANS Energy'!Q118+'FR-16(7)(v)-12 DIST Energy'!Q118","v":0},{"$f":"'FR-16(7)(v)-5 PROD Cust'!Q118+'FR-16(7)(v)-9 TRANS Cust'!Q118+'FR-16(7)(v)-13 DIST Cust'!Q118","v":20},20,0]
[62,null,{"$f":"'FR-16(7)(v)-1 Functional'!C119","v":"SALES"},{"$f":"'FR-16(7)(v)-1 Functional'!D119","v":"A312"},null,{"$f":"'FR-16(7)(v)-14 TOTAL CLASS'!Q119","v":0},{"$f":"'FR-16(7)(v)-3 PROD Demand'!Q119+'FR-16(7)(v)-7 TRANS Demand'!Q119+'FR-16(7)(v)-11 DIST Demand'!Q119","v":0},{"$f":"'FR-16(7)(v)-4 PROD Energy'!Q119+'FR-16(7)(v)-8 TRANS Energy'!Q119+'FR-16(7)(v)-12 DIST Energy'!Q119","v":0},{"$f":"'FR-16(7)(v)-5 PROD Cust'!Q119+'FR-16(7)(v)-9 TRANS Cust'!Q119+'FR-16(7)(v)-13 DIST Cust'!Q119","v":0},0,0]
[63,null,{"$f":"'FR-16(7)(v)-1 Functional'!C120","v":"ADJUSTMENT"},{"$f":"'FR-16(7)(v)-1 Functional'!D120","v":"A315"},null,{"$f":"'FR-16(7)(v)-14 TOTAL CLASS'!Q120","v":0},{"$f":"'FR-16(7)(v)-3 PROD Demand'!Q120+'FR-16(7)(v)-7 TRANS Demand'!Q120+'FR-16(7)(v)-11 DIST Demand'!Q120","v":0},{"$f":"'FR-16(7)(v)-4 PROD Energy'!Q120+'FR-16(7)(v)-8 TRANS Energy'!Q120+'FR-16(7)(v)-12 DIST Energy'!Q120","v":0},{"$f":"'FR-16(7)(v)-5 PROD Cust'!Q120+'FR-16(7)(v)-9 TRANS Cust'!Q120+'FR-16(7)(v)-13 DIST Cust'!Q120","v":0},0,0]
[64,null,{"$f":"'FR-16(7)(v)-1 Functional'!C121","v":"  COMMON & OTHER PLANT IN SERVICE"},null,null,{"$f":"SUM(F112:F120)","v":3641},1756,1215,670,3641,0]
[65]
[66,"GROSS ELECTRIC PLANT IN SERVICE",null,null,null,{"$f":"F97+F109+F121","v":211255},192510,3362,15383,211255,0]
[]
[{"$f":"co_name","v":"DUKE ENERGY KENTUCKY, INC."},null,null,null,null,null,null,null,null,{"$f":"J1","v":"FR-16(7)(v)-25"}]
[{"$f":"$A$2","v":"OTHER WP CLASSIFIED - ELECTRIC COST OF SERVICE"},null,null,null,null,null,null,null,null,{"$f":"J2","v":"WITNESS RESPONSIBLE:"}]
[{"$f":"case_name","v":"CASE NO: 2019-00271"},null,null,null,null,null,null,null,null,{"$f":"Witness","v":"JAMES E. ZIOLKOWSKI"}]
[{"$f":"data_filing","v":"DATA: 12 MONTHS ACTUAL  & 0 MONTHS ESTIMATED"},null,null,null,null,null,null,null,null,{"$f":"\"PAGE \"&Pages2-12&\" OF \"&Pages2","v":"PAGE 3 OF 15"}]
[{"$f":"type","v":"TYPE OF FILING: \"X\" ORIGINAL   UPDATED    REVISED  "}]
[]
[]
["LINE",null,null,null,null,"TOTAL","CLASSIFIED",null,null,"TOTAL","ALL"]
["NO.","DEPRECIATION RESERVE",null,"ALLO",null,{"$f":"$F$9","v":"OTHER WP"},{"$f":"G9","v":"DEMAND"},"ENERGY","CUSTOMER","AT ISSUE","OTHER"]
[null,null,"Schedule 3",null,null,null,3,4,5]
[1,"PRODUCTION PLANT"]
[2,null,{"$f":"'FR-16(7)(v)-1 Functional'!C136","v":"PRODUCTION STEAM"},{"$f":"'FR-16(7)(v)-1 Functional'!D136","v":"K201"},null,{"$f":"'FR-16(7)(v)-14 TOTAL CLASS'!Q136","v":44128},{"$f":"'FR-16(7)(v)-3 PROD Demand'!Q136+'FR-16(7)(v)-7 TRANS Demand'!Q136+'FR-16(7)(v)-11 DIST Demand'!Q136","v":44128},{"$f":"'FR-16(7)(v)-4 PROD Energy'!Q136+'FR-16(7)(v)-8 TRANS Energy'!Q136+'FR-16(7)(v)-12 DIST Energy'!Q136","v":0},{"$f":"'FR-16(7)(v)-5 PROD Cust'!Q136+'FR-16(7)(v)-9 TRANS Cust'!Q136+'FR-16(7)(v)-13 DIST Cust'!Q136","v":0},{"$f":"SUM(G136:I136)","v":44128},{"$f":"F136-J136","v":0}]
[3,null,{"$f":"'FR-16(7)(v)-1 Functional'!C137","v":"PRODUCTION OTHER"},{"$f":"'FR-16(7)(v)-1 Functional'!D137","v":"K201"},null,{"$f":"'FR-16(7)(v)-14 TOTAL CLASS'!Q137","v":20264},{"$f":"'FR-16(7)(v)-3 PROD Demand'!Q137+'FR-16(7)(v)-7 TRANS Demand'!Q137+'FR-16(7)(v)-11 DIST Demand'!Q137","v":20264},{"$f":"'FR-16(7)(v)-4 PROD Energy'!Q137+'FR-16(7)(v)-8 TRANS Energy'!Q137+'FR-16(7)(v)-12 DIST Energy'!Q137","v":0},{"$f":"'FR-16(7)(v)-5 PROD Cust'!Q137+'FR-16(7)(v)-9 TRANS Cust'!Q137+'FR-16(7)(v)-13 DIST Cust'!Q137","v":0},{"$f":"SUM(G137:I137)","v":20264},{"$f":"F137-J137","v":0}]
[4,null,{"$f":"'FR-16(7)(v)-1 Functional'!C138","v":"ADJUSTMENT"},{"$f":"'FR-16(7)(v)-1 Functional'!D138","v":"K201"},null,{"$f":"'FR-16(7)(v)-14 TOTAL CLASS'!Q138","v":171},{"$f":"'FR-16(7)(v)-3 PROD Demand'!Q138+'FR-16(7)(v)-7 TRANS Demand'!Q138+'FR-16(7)(v)-11 DIST Demand'!Q138","v":171},{"$f":"'FR-16(7)(v)-4 PROD Energy'!Q138+'FR-16(7)(v)-8 TRANS Energy'!Q138+'FR-16(7)(v)-12 DIST Energy'!Q138","v":0},{"$f":"'FR-16(7)(v)-5 PROD Cust'!Q138+'FR-16(7)(v)-9 TRANS Cust'!Q138+'FR-16(7)(v)-13 DIST Cust'!Q138","v":0},{"$f":"SUM(G138:I138)","v":171},{"$f":"F138-J138","v":0}]
[5,null,{"$f":"'FR-16(7)(v)-1 Functional'!C139","v":"  TOTAL PROD DEPREC RESERVE"},null,null,{"$f":"SUM(F136:F138)","v":64563},64563,0,0,64563,0]
[6]
[7,"TRANSMISSION PLANT"]
[8,null,{"$f":"'FR-16(7)(v)-1 Functional'!C142","v":"MAIN STEP-UP TRANSFORMERS"},{"$f":"'FR-16(7)(v)-1 Functional'!D142","v":"K202"},null,{"$f":"'FR-16(7)(v)-14 TOTAL CLASS'!Q142","v":0},{"$f":"'FR-16(7)(v)-3 PROD Demand'!Q142+'FR-16(7)(v)-7 TRANS Demand'!Q142+'FR-16(7)(v)-11 DIST Demand'!Q142","v":0},{"$f":"'FR-16(7)(v)-4 PROD Energy'!Q142+'FR-16(7)(v)-8 TRANS Energy'!Q142+'FR-16(7)(v)-12 DIST Energy'!Q142","v":0},{"$f":"'FR-16(7)(v)-5 PROD Cust'!Q142+'FR-16(7)(v)-9 TRANS Cust'!Q142+'FR-16(7)(v)-13 DIST Cust'!Q142","v":0},{"$f":"SUM(G142:I142)","v":0},{"$f":"F142-J142","v":0}]
[9,null,{"$f":"'FR-16(7)(v)-1 Functional'!C143","v":"OTHER TRANSMISSION"},{"$f":"'FR-16(7)(v)-1 Functional'!D143","v":"K202"},null,{"$f":"'FR-16(7)(v)-14 TOTAL CLASS'!Q143","v":2195},{"$f":"'FR-16(7)(v)-3 PROD Demand'!Q143+'FR-16(7)(v)-7 TRANS Demand'!Q143+'FR-16(7)(v)-11 DIST Demand'!Q143","v":2195},{"$f":"'FR-16(7)(v)-4 PROD Energy'!Q143+'FR-16(7)(v)-8 TRANS Energy'!Q143+'FR-16(7)(v)-12 DIST Energy'!Q143","v":0},{"$f":"'FR-16(7)(v)-5 PROD Cust'!Q143+'FR-16(7)(v)-9 TRANS Cust'!Q143+'FR-16(7)(v)-13 DIST Cust'!Q143","v":0},{"$f":"SUM(G143:I143)","v":2195},{"$f":"F143-J143","v":0}]
[10,null,{"$f":"'FR-16(7)(v)-1 Functional'!C144","v":"ADJUSTMENT"},{"$f":"'FR-16(7)(v)-1 Functional'!D144","v":"K202"},null,{"$f":"'FR-16(7)(v)-14 TOTAL CLASS'!Q144","v":-8},{"$f":"'FR-16(7)(v)-3 PROD Demand'!Q144+'FR-16(7)(v)-7 TRANS Demand'!Q144+'FR-16(7)(v)-11 DIST Demand'!Q144","v":-8},{"$f":"'FR-16(7)(v)-4 PROD Energy'!Q144+'FR-16(7)(v)-8 TRANS Energy'!Q144+'FR-16(7)(v)-12 DIST Energy'!Q144","v":0},{"$f":"'FR-16(7)(v)-5 PROD Cust'!Q144+'FR-16(7)(v)-9 TRANS Cust'!Q144+'FR-16(7)(v)-13 DIST Cust'!Q144","v":0},{"$f":"SUM(G144:I144)","v":-8},{"$f":"F144-J144","v":0}]
[11,null,{"$f":"'FR-16(7)(v)-1 Functional'!C145","v":"  TOTAL TRANS DEPREC RESERVE"},null,null,{"$f":"SUM(F142:F144)","v":2187},2187,0,0,2187,0]
[12]
[13,null,{"$f":"'FR-16(7)(v)-1 Functional'!C147","v":"TOTAL PROD & TRANS DEPREC RESERVE"},null,null,{"$f":"F145+F139","v":66750},{"$f":"G145+G139","v":66750},{"$f":"H145+H139","v":0},{"$f":"I145+I139","v":0},{"$f":"J145+J139","v":66750},{"$f":"F147-J147","v":0}]
[14]
[15,"DISTRIBUTION PLANT"]
[16,null,{"$f":"'FR-16(7)(v)-1 Functional'!C150","v":"SUBSTATIONS"},{"$f":"'FR-16(7)(v)-1 Functional'!D150","v":"K215"},null,{"$f":"'FR-16(7)(v)-14 TOTAL CLASS'!Q150","v":2033},{"$f":"'FR-16(7)(v)-3 PROD Demand'!Q150+'FR-16(7)(v)-7 TRANS Demand'!Q150+'FR-16(7)(v)-11 DIST Demand'!Q150","v":2033},{"$f":"'FR-16(7)(v)-4 PROD Energy'!Q150+'FR-16(7)(v)-8 TRANS Energy'!Q150+'FR-16(7)(v)-12 DIST Energy'!Q150","v":0},{"$f":"'FR-16(7)(v)-5 PROD Cust'!Q150+'FR-16(7)(v)-9 TRANS Cust'!Q150+'FR-16(7)(v)-13 DIST Cust'!Q150","v":0},{"$f":"SUM(G150:I150)","v":2033},{"$f":"F150-J150","v":0}]
[17,null,{"$f":"'FR-16(7)(v)-1 Functional'!C151","v":"POLES, TOWERS  & FIXTURES - PRIMARY - DEMAND"},{"$f":"'FR-16(7)(v)-1 Functional'!D151","v":"K205"},null,{"$f":"'FR-16(7)(v)-14 TOTAL CLASS'!Q151","v":1661},{"$f":"'FR-16(7)(v)-3 PROD Demand'!Q151+'FR-16(7)(v)-7 TRANS Demand'!Q151+'FR-16(7)(v)-11 DIST Demand'!Q151","v":1661},{"$f":"'FR-16(7)(v)-4 PROD Energy'!Q151+'FR-16(7)(v)-8 TRANS Energy'!Q151+'FR-16(7)(v)-12 DIST Energy'!Q151","v":0},{"$f":"'FR-16(7)(v)-5 PROD Cust'!Q151+'FR-16(7)(v)-9 TRANS Cust'!Q151+'FR-16(7)(v)-13 DIST Cust'!Q151","v":0},{"$f":"SUM(G151:I151)","v":1661},{"$f":"F151-J151","v":0}]
[18,null,{"$f":"'FR-16(7)(v)-1 Functional'!C152","v":"POLES, TOWERS  & FIXTURES - PRIMARY - CUSTOMER"},{"$f":"'FR-16(7)(v)-1 Functional'!D152","v":"K405"},null,{"$f":"'FR-16(7)(v)-14 TOTAL CLASS'!Q152","v":553},{"$f":"'FR-16(7)(v)-3 PROD Demand'!Q152+'FR-16(7)(v)-7 TRANS Demand'!Q152+'FR-16(7)(v)-11 DIST Demand'!Q152","v":0},{"$f":"'FR-16(7)(v)-4 PROD Energy'!Q152+'FR-16(7)(v)-8 TRANS Energy'!Q152+'FR-16(7)(v)-12 DIST Energy'!Q152","v":0},{"$f":"'FR-16(7)(v)-5 PROD Cust'!Q152+'FR-16(7)(v)-9 TRANS Cust'!Q152+'FR-16(7)(v)-13 DIST Cust'!Q152","v":553},{"$f":"SUM(G152:I152)","v":553},{"$f":"F152-J152","v":0}]
[19,null,{"$f":"'FR-16(7)(v)-1 Functional'!C153","v":"POLES, TOWERS  & FIXTURES - SECONDARY - DEMAND"},{"$f":"'FR-16(7)(v)-1 Functional'!D153","v":"K206"},null,{"$f":"'FR-16(7)(v)-14 TOTAL CLASS'!Q153","v":635},{"$f":"'FR-16(7)(v)-3 PROD Demand'!Q153+'FR-16(7)(v)-7 TRANS Demand'!Q153+'FR-16(7)(v)-11 DIST Demand'!Q153","v":635},{"$f":"'FR-16(7)(v)-4 PROD Energy'!Q153+'FR-16(7)(v)-8 TRANS Energy'!Q153+'FR-16(7)(v)-12 DIST Energy'!Q153","v":0},{"$f":"'FR-16(7)(v)-5 PROD Cust'!Q153+'FR-16(7)(v)-9 TRANS Cust'!Q153+'FR-16(7)(v)-13 DIST Cust'!Q153","v":0},635,0]
[20,null,{"$f":"'FR-16(7)(v)-1 Functional'!C154","v":"POLES, TOWERS  & FIXTURES - SECONDARY - CUSTOMER"},{"$f":"'FR-16(7)(v)-1 Functional'!D154","v":"K405"},null,{"$f":"'FR-16(7)(v)-14 TOTAL CLASS'!Q154","v":125},{"$f":"'FR-16(7)(v)-3 PROD Demand'!Q154+'FR-16(7)(v)-7 TRANS Demand'!Q154+'FR-16(7)(v)-11 DIST Demand'!Q154","v":0},{"$f":"'FR-16(7)(v)-4 PROD Energy'!Q154+'FR-16(7)(v)-8 TRANS Energy'!Q154+'FR-16(7)(v)-12 DIST Energy'!Q154","v":0},{"$f":"'FR-16(7)(v)-5 PROD Cust'!Q154+'FR-16(7)(v)-9 TRANS Cust'!Q154+'FR-16(7)(v)-13 DIST Cust'!Q154","v":125},125,0]
[21,null,{"$f":"'FR-16(7)(v)-1 Functional'!C155","v":"CONDUCTORS - OVERHEAD / PRIMARY - DEMAND"},{"$f":"'FR-16(7)(v)-1 Functional'!D155","v":"K205"},null,{"$f":"'FR-16(7)(v)-14 TOTAL CLASS'!Q155","v":2467},{"$f":"'FR-16(7)(v)-3 PROD Demand'!Q155+'FR-16(7)(v)-7 TRANS Demand'!Q155+'FR-16(7)(v)-11 DIST Demand'!Q155","v":2467},{"$f":"'FR-16(7)(v)-4 PROD Energy'!Q155+'FR-16(7)(v)-8 TRANS Energy'!Q155+'FR-16(7)(v)-12 DIST Energy'!Q155","v":0},{"$f":"'FR-16(7)(v)-5 PROD Cust'!Q155+'FR-16(7)(v)-9 TRANS Cust'!Q155+'FR-16(7)(v)-13 DIST Cust'!Q155","v":0},2467,0]
[22,null,{"$f":"'FR-16(7)(v)-1 Functional'!C156","v":"CONDUCTORS - OVERHEAD / PRIMARY - CUSTOMER"},{"$f":"'FR-16(7)(v)-1 Functional'!D156","v":"K405"},null,{"$f":"'FR-16(7)(v)-14 TOTAL CLASS'!Q156","v":392},{"$f":"'FR-16(7)(v)-3 PROD Demand'!Q156+'FR-16(7)(v)-7 TRANS Demand'!Q156+'FR-16(7)(v)-11 DIST Demand'!Q156","v":0},{"$f":"'FR-16(7)(v)-4 PROD Energy'!Q156+'FR-16(7)(v)-8 TRANS Energy'!Q156+'FR-16(7)(v)-12 DIST Energy'!Q156","v":0},{"$f":"'FR-16(7)(v)-5 PROD Cust'!Q156+'FR-16(7)(v)-9 TRANS Cust'!Q156+'FR-16(7)(v)-13 DIST Cust'!Q156","v":392},392,0]
[23,null,{"$f":"'FR-16(7)(v)-1 Functional'!C157","v":"CONDUCTORS - OVERHEAD / SECONDARY - DEMAND"},{"$f":"'FR-16(7)(v)-1 Functional'!D157","v":"K206"},null,{"$f":"'FR-16(7)(v)-14 TOTAL CLASS'!Q157","v":1005},{"$f":"'FR-16(7)(v)-3 PROD Demand'!Q157+'FR-16(7)(v)-7 TRANS Demand'!Q157+'FR-16(7)(v)-11 DIST Demand'!Q157","v":1005},{"$f":"'FR-16(7)(v)-4 PROD Energy'!Q157+'FR-16(7)(v)-8 TRANS Energy'!Q157+'FR-16(7)(v)-12 DIST Energy'!Q157","v":0},{"$f":"'FR-16(7)(v)-5 PROD Cust'!Q157+'FR-16(7)(v)-9 TRANS Cust'!Q157+'FR-16(7)(v)-13 DIST Cust'!Q157","v":0},1005,0]
[24,null,{"$f":"'FR-16(7)(v)-1 Functional'!C158","v":"CONDUCTORS - OVERHEAD / SECONDARY - CUSTOMER"},{"$f":"'FR-16(7)(v)-1 Functional'!D158","v":"K405"},null,{"$f":"'FR-16(7)(v)-14 TOTAL CLASS'!Q158","v":162},{"$f":"'FR-16(7)(v)-3 PROD Demand'!Q158+'FR-16(7)(v)-7 TRANS Demand'!Q158+'FR-16(7)(v)-11 DIST Demand'!Q158","v":0},{"$f":"'FR-16(7)(v)-4 PROD Energy'!Q158+'FR-16(7)(v)-8 TRANS Energy'!Q158+'FR-16(7)(v)-12 DIST Energy'!Q158","v":0},{"$f":"'FR-16(7)(v)-5 PROD Cust'!Q158+'FR-16(7)(v)-9 TRANS Cust'!Q158+'FR-16(7)(v)-13 DIST Cust'!Q158","v":162},162,0]
[25,null,{"$f":"'FR-16(7)(v)-1 Functional'!C159","v":"CONDUCTORS - UNDERGROUND / PRIMARY - DEMAND"},{"$f":"'FR-16(7)(v)-1 Functional'!D159","v":"K205"},null,{"$f":"'FR-16(7)(v)-14 TOTAL CLASS'!Q159","v":1827},{"$f":"'FR-16(7)(v)-3 PROD Demand'!Q159+'FR-16(7)(v)-7 TRANS Demand'!Q159+'FR-16(7)(v)-11 DIST Demand'!Q159","v":1827},{"$f":"'FR-16(7)(v)-4 PROD Energy'!Q159+'FR-16(7)(v)-8 TRANS Energy'!Q159+'FR-16(7)(v)-12 DIST Energy'!Q159","v":0},{"$f":"'FR-16(7)(v)-5 PROD Cust'!Q159+'FR-16(7)(v)-9 TRANS Cust'!Q159+'FR-16(7)(v)-13 DIST Cust'!Q159","v":0},1827,0]
[26,null,{"$f":"'FR-16(7)(v)-1 Functional'!C160","v":"CONDUCTORS - UNDERGROUND / PRIMARY - CUSTOMER"},{"$f":"'FR-16(7)(v)-1 Functional'!D160","v":"K405"},null,{"$f":"'FR-16(7)(v)-14 TOTAL CLASS'!Q160","v":413},{"$f":"'FR-16(7)(v)-3 PROD Demand'!Q160+'FR-16(7)(v)-7 TRANS Demand'!Q160+'FR-16(7)(v)-11 DIST Demand'!Q160","v":0},{"$f":"'FR-16(7)(v)-4 PROD Energy'!Q160+'FR-16(7)(v)-8 TRANS Energy'!Q160+'FR-16(7)(v)-12 DIST Energy'!Q160","v":0},{"$f":"'FR-16(7)(v)-5 PROD Cust'!Q160+'FR-16(7)(v)-9 TRANS Cust'!Q160+'FR-16(7)(v)-13 DIST Cust'!Q160","v":413},413,0]
[27,null,{"$f":"'FR-16(7)(v)-1 Functional'!C161","v":"CONDUCTORS - UNDERGROUND / SECONDARY - DEMAND"},{"$f":"'FR-16(7)(v)-1 Functional'!D161","v":"K206"},null,{"$f":"'FR-16(7)(v)-14 TOTAL CLASS'!Q161","v":313},{"$f":"'FR-16(7)(v)-3 PROD Demand'!Q161+'FR-16(7)(v)-7 TRANS Demand'!Q161+'FR-16(7)(v)-11 DIST Demand'!Q161","v":313},{"$f":"'FR-16(7)(v)-4 PROD Energy'!Q161+'FR-16(7)(v)-8 TRANS Energy'!Q161+'FR-16(7)(v)-12 DIST Energy'!Q161","v":0},{"$f":"'FR-16(7)(v)-5 PROD Cust'!Q161+'FR-16(7)(v)-9 TRANS Cust'!Q161+'FR-16(7)(v)-13 DIST Cust'!Q161","v":0},313,0]
[28,null,{"$f":"'FR-16(7)(v)-1 Functional'!C162","v":"CONDUCTORS - UNDERGROUND / SECONDARY - CUSTOMER"},{"$f":"'FR-16(7)(v)-1 Functional'!D162","v":"K405"},null,{"$f":"'FR-16(7)(v)-14 TOTAL CLASS'!Q162","v":129},{"$f":"'FR-16(7)(v)-3 PROD Demand'!Q162+'FR-16(7)(v)-7 TRANS Demand'!Q162+'FR-16(7)(v)-11 DIST Demand'!Q162","v":0},{"$f":"'FR-16(7)(v)-4 PROD Energy'!Q162+'FR-16(7)(v)-8 TRANS Energy'!Q162+'FR-16(7)(v)-12 DIST Energy'!Q162","v":0},{"$f":"'FR-16(7)(v)-5 PROD Cust'!Q162+'FR-16(7)(v)-9 TRANS Cust'!Q162+'FR-16(7)(v)-13 DIST Cust'!Q162","v":129},129,0]
[29,null,{"$f":"'FR-16(7)(v)-1 Functional'!C163","v":"TRANSFORMERS DEMAND RELATED"},{"$f":"'FR-16(7)(v)-1 Functional'!D163","v":"K215"},null,{"$f":"'FR-16(7)(v)-14 TOTAL CLASS'!Q163","v":2256},{"$f":"'FR-16(7)(v)-3 PROD Demand'!Q163+'FR-16(7)(v)-7 TRANS Demand'!Q163+'FR-16(7)(v)-11 DIST Demand'!Q163","v":2256},{"$f":"'FR-16(7)(v)-4 PROD Energy'!Q163+'FR-16(7)(v)-8 TRANS Energy'!Q163+'FR-16(7)(v)-12 DIST Energy'!Q163","v":0},{"$f":"'FR-16(7)(v)-5 PROD Cust'!Q163+'FR-16(7)(v)-9 TRANS Cust'!Q163+'FR-16(7)(v)-13 DIST Cust'!Q163","v":0},{"$f":"SUM(G163:I163)","v":2256},{"$f":"F163-J163","v":0}]
[30,null,{"$f":"'FR-16(7)(v)-1 Functional'!C164","v":"TRANSFORMERS CUSTOMER RELATED"},{"$f":"'FR-16(7)(v)-1 Functional'!D164","v":"K405"},null,{"$f":"'FR-16(7)(v)-14 TOTAL CLASS'!Q164","v":533},{"$f":"'FR-16(7)(v)-3 PROD Demand'!Q164+'FR-16(7)(v)-7 TRANS Demand'!Q164+'FR-16(7)(v)-11 DIST Demand'!Q164","v":0},{"$f":"'FR-16(7)(v)-4 PROD Energy'!Q164+'FR-16(7)(v)-8 TRANS Energy'!Q164+'FR-16(7)(v)-12 DIST Energy'!Q164","v":0},{"$f":"'FR-16(7)(v)-5 PROD Cust'!Q164+'FR-16(7)(v)-9 TRANS Cust'!Q164+'FR-16(7)(v)-13 DIST Cust'!Q164","v":533},533,0]
[31,null,{"$f":"'FR-16(7)(v)-1 Functional'!C165","v":"SERVICES"},{"$f":"'FR-16(7)(v)-1 Functional'!D165","v":"K217"},null,{"$f":"'FR-16(7)(v)-14 TOTAL CLASS'!Q165","v":933},{"$f":"'FR-16(7)(v)-3 PROD Demand'!Q165+'FR-16(7)(v)-7 TRANS Demand'!Q165+'FR-16(7)(v)-11 DIST Demand'!Q165","v":0},{"$f":"'FR-16(7)(v)-4 PROD Energy'!Q165+'FR-16(7)(v)-8 TRANS Energy'!Q165+'FR-16(7)(v)-12 DIST Energy'!Q165","v":0},{"$f":"'FR-16(7)(v)-5 PROD Cust'!Q165+'FR-16(7)(v)-9 TRANS Cust'!Q165+'FR-16(7)(v)-13 DIST Cust'!Q165","v":933},933,0]
[32,null,{"$f":"'FR-16(7)(v)-1 Functional'!C166","v":"METERS"},{"$f":"'FR-16(7)(v)-1 Functional'!D166","v":"K407"},null,{"$f":"'FR-16(7)(v)-14 TOTAL CLASS'!Q166","v":695},{"$f":"'FR-16(7)(v)-3 PROD Demand'!Q166+'FR-16(7)(v)-7 TRANS Demand'!Q166+'FR-16(7)(v)-11 DIST Demand'!Q166","v":0},{"$f":"'FR-16(7)(v)-4 PROD Energy'!Q166+'FR-16(7)(v)-8 TRANS Energy'!Q166+'FR-16(7)(v)-12 DIST Energy'!Q166","v":0},{"$f":"'FR-16(7)(v)-5 PROD Cust'!Q166+'FR-16(7)(v)-9 TRANS Cust'!Q166+'FR-16(7)(v)-13 DIST Cust'!Q166","v":695},695,0]
[33,null,{"$f":"'FR-16(7)(v)-1 Functional'!C167","v":"STREET LIGHTS"},{"$f":"'FR-16(7)(v)-1 Functional'!D167","v":"K401"},null,{"$f":"'FR-16(7)(v)-14 TOTAL CLASS'!Q167","v":0},{"$f":"'FR-16(7)(v)-3 PROD Demand'!Q167+'FR-16(7)(v)-7 TRANS Demand'!Q167+'FR-16(7)(v)-11 DIST Demand'!Q167","v":0},{"$f":"'FR-16(7)(v)-4 PROD Energy'!Q167+'FR-16(7)(v)-8 TRANS Energy'!Q167+'FR-16(7)(v)-12 DIST Energy'!Q167","v":0},{"$f":"'FR-16(7)(v)-5 PROD Cust'!Q167+'FR-16(7)(v)-9 TRANS Cust'!Q167+'FR-16(7)(v)-13 DIST Cust'!Q167","v":0},0,0]
[34,null,{"$f":"'FR-16(7)(v)-1 Functional'!C168","v":"ADJUSTMENT  "},{"$f":"'FR-16(7)(v)-1 Functional'!D168","v":"K209"},null,{"$f":"'FR-16(7)(v)-14 TOTAL CLASS'!Q168","v":49},{"$f":"'FR-16(7)(v)-3 PROD Demand'!Q168+'FR-16(7)(v)-7 TRANS Demand'!Q168+'FR-16(7)(v)-11 DIST Demand'!Q168","v":38},{"$f":"'FR-16(7)(v)-4 PROD Energy'!Q168+'FR-16(7)(v)-8 TRANS Energy'!Q168+'FR-16(7)(v)-12 DIST Energy'!Q168","v":0},{"$f":"'FR-16(7)(v)-5 PROD Cust'!Q168+'FR-16(7)(v)-9 TRANS Cust'!Q168+'FR-16(7)(v)-13 DIST Cust'!Q168","v":11},49,0]
[35,null,{"$f":"'FR-16(7)(v)-1 Functional'!C169","v":"CONSTRUCTION NOT CLASSIFIED"},{"$f":"'FR-16(7)(v)-1 Functional'!D169","v":"K209"},null,{"$f":"'FR-16(7)(v)-14 TOTAL CLASS'!Q169","v":160},{"$f":"'FR-16(7)(v)-3 PROD Demand'!Q169+'FR-16(7)(v)-7 TRANS Demand'!Q169+'FR-16(7)(v)-11 DIST Demand'!Q169","v":123},{"$f":"'FR-16(7)(v)-4 PROD Energy'!Q169+'FR-16(7)(v)-8 TRANS Energy'!Q169+'FR-16(7)(v)-12 DIST Energy'!Q169","v":0},{"$f":"'FR-16(7)(v)-5 PROD Cust'!Q169+'FR-16(7)(v)-9 TRANS Cust'!Q169+'FR-16(7)(v)-13 DIST Cust'!Q169","v":37},160,0]
[36,null,{"$f":"'FR-16(7)(v)-1 Functional'!C170","v":"RWIP"},{"$f":"'FR-16(7)(v)-1 Functional'!D170","v":"K215"},null,{"$f":"'FR-16(7)(v)-14 TOTAL CLASS'!Q170","v":-1883},{"$f":"'FR-16(7)(v)-3 PROD Demand'!Q170+'FR-16(7)(v)-7 TRANS Demand'!Q170+'FR-16(7)(v)-11 DIST Demand'!Q170","v":-1883},{"$f":"'FR-16(7)(v)-4 PROD Energy'!Q170+'FR-16(7)(v)-8 TRANS Energy'!Q170+'FR-16(7)(v)-12 DIST Energy'!Q170","v":0},{"$f":"'FR-16(7)(v)-5 PROD Cust'!Q170+'FR-16(7)(v)-9 TRANS Cust'!Q170+'FR-16(7)(v)-13 DIST Cust'!Q170","v":0},{"$f":"SUM(G170:I170)","v":-1883},{"$f":"F170-J170","v":0}]
[37,null,{"$f":"'FR-16(7)(v)-1 Functional'!C171","v":"  TOTAL DIST DEPREC RESERVE"},null,null,{"$f":"SUM(F149:F170)","v":14458},{"$f":"SUM(G149:G170)","v":10475},0,3983,14458,0]
[38]
[39,null,"TOTAL TRANS & DIST DEPREC RESERVE",null,null,{"$f":"F171+F145","v":16645},{"$f":"G171+G145","v":12662},{"$f":"H171+H145","v":0},{"$f":"I171+I145","v":3983},{"$f":"J171+J145","v":16645},{"$f":"F173-J173","v":0}]
[40,null,"TOTAL GROSS PTD PLANT DEPREC RESERVE",null,null,{"$f":"F147+F171","v":81208},{"$f":"G147+G171","v":77225},{"$f":"H147+H171","v":0},{"$f":"I147+I171","v":3983},{"$f":"J147+J171","v":81208},{"$f":"F174-J174","v":0}]
[41]
[42,"GENERAL & INTANGIBLE PLANT"]
[43,null,{"$f":"'FR-16(7)(v)-1 Functional'!C177","v":"PRODUCTION - DEMAND"},{"$f":"'FR-16(7)(v)-1 Functional'!D177","v":"K201"},null,{"$f":"'FR-16(7)(v)-14 TOTAL CLASS'!Q177","v":592},{"$f":"'FR-16(7)(v)-3 PROD Demand'!Q177+'FR-16(7)(v)-7 TRANS Demand'!Q177+'FR-16(7)(v)-11 DIST Demand'!Q177","v":592},{"$f":"'FR-16(7)(v)-4 PROD Energy'!Q177+'FR-16(7)(v)-8 TRANS Energy'!Q177+'FR-16(7)(v)-12 DIST Energy'!Q177","v":0},{"$f":"'FR-16(7)(v)-5 PROD Cust'!Q177+'FR-16(7)(v)-9 TRANS Cust'!Q177+'FR-16(7)(v)-13 DIST Cust'!Q177","v":0},{"$f":"SUM(G177:I177)","v":592},{"$f":"F177-J177","v":0}]
[44,null,{"$f":"'FR-16(7)(v)-1 Functional'!C178","v":"PRODUCTION - ENERGY"},{"$f":"'FR-16(7)(v)-1 Functional'!D178","v":"K301"},null,{"$f":"'FR-16(7)(v)-14 TOTAL CLASS'!Q178","v":692},{"$f":"'FR-16(7)(v)-3 PROD Demand'!Q178+'FR-16(7)(v)-7 TRANS Demand'!Q178+'FR-16(7)(v)-11 DIST Demand'!Q178","v":0},{"$f":"'FR-16(7)(v)-4 PROD Energy'!Q178+'FR-16(7)(v)-8 TRANS Energy'!Q178+'FR-16(7)(v)-12 DIST Energy'!Q178","v":692},{"$f":"'FR-16(7)(v)-5 PROD Cust'!Q178+'FR-16(7)(v)-9 TRANS Cust'!Q178+'FR-16(7)(v)-13 DIST Cust'!Q178","v":0},{"$f":"SUM(G178:I178)","v":692},{"$f":"F178-J178","v":0}]
[45,null,{"$f":"'FR-16(7)(v)-1 Functional'!C179","v":"TRANSMISSION"},{"$f":"'FR-16(7)(v)-1 Functional'!D179","v":"K202"},null,{"$f":"'FR-16(7)(v)-14 TOTAL CLASS'!Q179","v":94},{"$f":"'FR-16(7)(v)-3 PROD Demand'!Q179+'FR-16(7)(v)-7 TRANS Demand'!Q179+'FR-16(7)(v)-11 DIST Demand'!Q179","v":94},{"$f":"'FR-16(7)(v)-4 PROD Energy'!Q179+'FR-16(7)(v)-8 TRANS Energy'!Q179+'FR-16(7)(v)-12 DIST Energy'!Q179","v":0},{"$f":"'FR-16(7)(v)-5 PROD Cust'!Q179+'FR-16(7)(v)-9 TRANS Cust'!Q179+'FR-16(7)(v)-13 DIST Cust'!Q179","v":0},94,0]
[46,null,{"$f":"'FR-16(7)(v)-1 Functional'!C180","v":"DISTRIBUTION - DEMAND"},{"$f":"'FR-16(7)(v)-1 Functional'!D180","v":"K201"},null,{"$f":"'FR-16(7)(v)-14 TOTAL CLASS'!Q180","v":314},{"$f":"'FR-16(7)(v)-3 PROD Demand'!Q180+'FR-16(7)(v)-7 TRANS Demand'!Q180+'FR-16(7)(v)-11 DIST Demand'!Q180","v":314},{"$f":"'FR-16(7)(v)-4 PROD Energy'!Q180+'FR-16(7)(v)-8 TRANS Energy'!Q180+'FR-16(7)(v)-12 DIST Energy'!Q180","v":0},{"$f":"'FR-16(7)(v)-5 PROD Cust'!Q180+'FR-16(7)(v)-9 TRANS Cust'!Q180+'FR-16(7)(v)-13 DIST Cust'!Q180","v":0},314,0]
[47,null,{"$f":"'FR-16(7)(v)-1 Functional'!C181","v":"DISTRIBUTION - CUSTOMER"},{"$f":"'FR-16(7)(v)-1 Functional'!D181","v":"K405"},null,{"$f":"'FR-16(7)(v)-14 TOTAL CLASS'!Q181","v":50},{"$f":"'FR-16(7)(v)-3 PROD Demand'!Q181+'FR-16(7)(v)-7 TRANS Demand'!Q181+'FR-16(7)(v)-11 DIST Demand'!Q181","v":0},{"$f":"'FR-16(7)(v)-4 PROD Energy'!Q181+'FR-16(7)(v)-8 TRANS Energy'!Q181+'FR-16(7)(v)-12 DIST Energy'!Q181","v":0},{"$f":"'FR-16(7)(v)-5 PROD Cust'!Q181+'FR-16(7)(v)-9 TRANS Cust'!Q181+'FR-16(7)(v)-13 DIST Cust'!Q181","v":50},50,0]
[48,null,{"$f":"'FR-16(7)(v)-1 Functional'!C182","v":"CUSTOMER ACCOUNTING"},{"$f":"'FR-16(7)(v)-1 Functional'!D182","v":"A308"},null,{"$f":"'FR-16(7)(v)-14 TOTAL CLASS'!Q182","v":320},{"$f":"'FR-16(7)(v)-3 PROD Demand'!Q182+'FR-16(7)(v)-7 TRANS Demand'!Q182+'FR-16(7)(v)-11 DIST Demand'!Q182","v":0},{"$f":"'FR-16(7)(v)-4 PROD Energy'!Q182+'FR-16(7)(v)-8 TRANS Energy'!Q182+'FR-16(7)(v)-12 DIST Energy'!Q182","v":0},{"$f":"'FR-16(7)(v)-5 PROD Cust'!Q182+'FR-16(7)(v)-9 TRANS Cust'!Q182+'FR-16(7)(v)-13 DIST Cust'!Q182","v":320},320,0]
[49,null,{"$f":"'FR-16(7)(v)-1 Functional'!C183","v":"CUSTOMER SERVICE & INFORMATION"},{"$f":"'FR-16(7)(v)-1 Functional'!D183","v":"A310"},null,{"$f":"'FR-16(7)(v)-14 TOTAL CLASS'!Q183","v":11},{"$f":"'FR-16(7)(v)-3 PROD Demand'!Q183+'FR-16(7)(v)-7 TRANS Demand'!Q183+'FR-16(7)(v)-11 DIST Demand'!Q183","v":0},{"$f":"'FR-16(7)(v)-4 PROD Energy'!Q183+'FR-16(7)(v)-8 TRANS Energy'!Q183+'FR-16(7)(v)-12 DIST Energy'!Q183","v":0},{"$f":"'FR-16(7)(v)-5 PROD Cust'!Q183+'FR-16(7)(v)-9 TRANS Cust'!Q183+'FR-16(7)(v)-13 DIST Cust'!Q183","v":11},11,0]
[50,null,{"$f":"'FR-16(7)(v)-1 Functional'!C184","v":"SALES"},{"$f":"'FR-16(7)(v)-1 Functional'!D184","v":"A312"},null,{"$f":"'FR-16(7)(v)-14 TOTAL CLASS'!Q184","v":0},{"$f":"'FR-16(7)(v)-3 PROD Demand'!Q184+'FR-16(7)(v)-7 TRANS Demand'!Q184+'FR-16(7)(v)-11 DIST Demand'!Q184","v":0},{"$f":"'FR-16(7)(v)-4 PROD Energy'!Q184+'FR-16(7)(v)-8 TRANS Energy'!Q184+'FR-16(7)(v)-12 DIST Energy'!Q184","v":0},{"$f":"'FR-16(7)(v)-5 PROD Cust'!Q184+'FR-16(7)(v)-9 TRANS Cust'!Q184+'FR-16(7)(v)-13 DIST Cust'!Q184","v":0},0,0]
[51,null,{"$f":"'FR-16(7)(v)-1 Functional'!C185","v":"ADJUSTMENT"},{"$f":"'FR-16(7)(v)-1 Functional'!D185","v":"A315"},null,{"$f":"'FR-16(7)(v)-14 TOTAL CLASS'!Q185","v":21},{"$f":"'FR-16(7)(v)-3 PROD Demand'!Q185+'FR-16(7)(v)-7 TRANS Demand'!Q185+'FR-16(7)(v)-11 DIST Demand'!Q185","v":2},{"$f":"'FR-16(7)(v)-4 PROD Energy'!Q185+'FR-16(7)(v)-8 TRANS Energy'!Q185+'FR-16(7)(v)-12 DIST Energy'!Q185","v":12},{"$f":"'FR-16(7)(v)-5 PROD Cust'!Q185+'FR-16(7)(v)-9 TRANS Cust'!Q185+'FR-16(7)(v)-13 DIST Cust'!Q185","v":7},21,0]
[52,null,{"$f":"'FR-16(7)(v)-1 Functional'!C186","v":"  GENERAL & INTANG PLANT"},null,null,{"$f":"SUM(F176:F185)","v":2094},1002,704,388,2094,0]
[53]
[54,"COMMON & OTHER PLANT"]
[55,null,{"$f":"'FR-16(7)(v)-1 Functional'!C189","v":"PRODUCTION - DEMAND"},{"$f":"'FR-16(7)(v)-1 Functional'!D189","v":"K201"},null,{"$f":"'FR-16(7)(v)-14 TOTAL CLASS'!Q189","v":800},{"$f":"'FR-16(7)(v)-3 PROD Demand'!Q189+'FR-16(7)(v)-7 TRANS Demand'!Q189+'FR-16(7)(v)-11 DIST Demand'!Q189","v":800},{"$f":"'FR-16(7)(v)-4 PROD Energy'!Q189+'FR-16(7)(v)-8 TRANS Energy'!Q189+'FR-16(7)(v)-12 DIST Energy'!Q189","v":0},{"$f":"'FR-16(7)(v)-5 PROD Cust'!Q189+'FR-16(7)(v)-9 TRANS Cust'!Q189+'FR-16(7)(v)-13 DIST Cust'!Q189","v":0},{"$f":"SUM(G189:I189)","v":800},{"$f":"F189-J189","v":0}]
[56,null,{"$f":"'FR-16(7)(v)-1 Functional'!C190","v":"PRODUCTION - ENERGY"},{"$f":"'FR-16(7)(v)-1 Functional'!D190","v":"K301"},null,{"$f":"'FR-16(7)(v)-14 TOTAL CLASS'!Q190","v":935},{"$f":"'FR-16(7)(v)-3 PROD Demand'!Q190+'FR-16(7)(v)-7 TRANS Demand'!Q190+'FR-16(7)(v)-11 DIST Demand'!Q190","v":0},{"$f":"'FR-16(7)(v)-4 PROD Energy'!Q190+'FR-16(7)(v)-8 TRANS Energy'!Q190+'FR-16(7)(v)-12 DIST Energy'!Q190","v":935},{"$f":"'FR-16(7)(v)-5 PROD Cust'!Q190+'FR-16(7)(v)-9 TRANS Cust'!Q190+'FR-16(7)(v)-13 DIST Cust'!Q190","v":0},{"$f":"SUM(G190:I190)","v":935},{"$f":"F190-J190","v":0}]
[57,null,{"$f":"'FR-16(7)(v)-1 Functional'!C191","v":"TRANSMISSION"},{"$f":"'FR-16(7)(v)-1 Functional'!D191","v":"K202"},null,{"$f":"'FR-16(7)(v)-14 TOTAL CLASS'!Q191","v":126},{"$f":"'FR-16(7)(v)-3 PROD Demand'!Q191+'FR-16(7)(v)-7 TRANS Demand'!Q191+'FR-16(7)(v)-11 DIST Demand'!Q191","v":126},{"$f":"'FR-16(7)(v)-4 PROD Energy'!Q191+'FR-16(7)(v)-8 TRANS Energy'!Q191+'FR-16(7)(v)-12 DIST Energy'!Q191","v":0},{"$f":"'FR-16(7)(v)-5 PROD Cust'!Q191+'FR-16(7)(v)-9 TRANS Cust'!Q191+'FR-16(7)(v)-13 DIST Cust'!Q191","v":0},126,0]
[58,null,{"$f":"'FR-16(7)(v)-1 Functional'!C192","v":"DISTRIBUTION - DEMAND"},{"$f":"'FR-16(7)(v)-1 Functional'!D192","v":"K201"},null,{"$f":"'FR-16(7)(v)-14 TOTAL CLASS'!Q192","v":425},{"$f":"'FR-16(7)(v)-3 PROD Demand'!Q192+'FR-16(7)(v)-7 TRANS Demand'!Q192+'FR-16(7)(v)-11 DIST Demand'!Q192","v":425},{"$f":"'FR-16(7)(v)-4 PROD Energy'!Q192+'FR-16(7)(v)-8 TRANS Energy'!Q192+'FR-16(7)(v)-12 DIST Energy'!Q192","v":0},{"$f":"'FR-16(7)(v)-5 PROD Cust'!Q192+'FR-16(7)(v)-9 TRANS Cust'!Q192+'FR-16(7)(v)-13 DIST Cust'!Q192","v":0},425,0]
[59,null,{"$f":"'FR-16(7)(v)-1 Functional'!C193","v":"DISTRIBUTION - CUSTOMER"},{"$f":"'FR-16(7)(v)-1 Functional'!D193","v":"K405"},null,{"$f":"'FR-16(7)(v)-14 TOTAL CLASS'!Q193","v":68},{"$f":"'FR-16(7)(v)-3 PROD Demand'!Q193+'FR-16(7)(v)-7 TRANS Demand'!Q193+'FR-16(7)(v)-11 DIST Demand'!Q193","v":0},{"$f":"'FR-16(7)(v)-4 PROD Energy'!Q193+'FR-16(7)(v)-8 TRANS Energy'!Q193+'FR-16(7)(v)-12 DIST Energy'!Q193","v":0},{"$f":"'FR-16(7)(v)-5 PROD Cust'!Q193+'FR-16(7)(v)-9 TRANS Cust'!Q193+'FR-16(7)(v)-13 DIST Cust'!Q193","v":68},68,0]
[60,null,{"$f":"'FR-16(7)(v)-1 Functional'!C194","v":"CUSTOMER ACCOUNTING"},{"$f":"'FR-16(7)(v)-1 Functional'!D194","v":"A308"},null,{"$f":"'FR-16(7)(v)-14 TOTAL CLASS'!Q194","v":432},{"$f":"'FR-16(7)(v)-3 PROD Demand'!Q194+'FR-16(7)(v)-7 TRANS Demand'!Q194+'FR-16(7)(v)-11 DIST Demand'!Q194","v":0},{"$f":"'FR-16(7)(v)-4 PROD Energy'!Q194+'FR-16(7)(v)-8 TRANS Energy'!Q194+'FR-16(7)(v)-12 DIST Energy'!Q194","v":0},{"$f":"'FR-16(7)(v)-5 PROD Cust'!Q194+'FR-16(7)(v)-9 TRANS Cust'!Q194+'FR-16(7)(v)-13 DIST Cust'!Q194","v":432},432,0]
[61,null,{"$f":"'FR-16(7)(v)-1 Functional'!C195","v":"CUSTOMER SERVICE & INFORMATION"},{"$f":"'FR-16(7)(v)-1 Functional'!D195","v":"A310"},null,{"$f":"'FR-16(7)(v)-14 TOTAL CLASS'!Q195","v":15},{"$f":"'FR-16(7)(v)-3 PROD Demand'!Q195+'FR-16(7)(v)-7 TRANS Demand'!Q195+'FR-16(7)(v)-11 DIST Demand'!Q195","v":0},{"$f":"'FR-16(7)(v)-4 PROD Energy'!Q195+'FR-16(7)(v)-8 TRANS Energy'!Q195+'FR-16(7)(v)-12 DIST Energy'!Q195","v":0},{"$f":"'FR-16(7)(v)-5 PROD Cust'!Q195+'FR-16(7)(v)-9 TRANS Cust'!Q195+'FR-16(7)(v)-13 DIST Cust'!Q195","v":15},15,0]
[62,null,{"$f":"'FR-16(7)(v)-1 Functional'!C196","v":"SALES"},{"$f":"'FR-16(7)(v)-1 Functional'!D196","v":"A312"},null,{"$f":"'FR-16(7)(v)-14 TOTAL CLASS'!Q196","v":0},{"$f":"'FR-16(7)(v)-3 PROD Demand'!Q196+'FR-16(7)(v)-7 TRANS Demand'!Q196+'FR-16(7)(v)-11 DIST Demand'!Q196","v":0},{"$f":"'FR-16(7)(v)-4 PROD Energy'!Q196+'FR-16(7)(v)-8 TRANS Energy'!Q196+'FR-16(7)(v)-12 DIST Energy'!Q196","v":0},{"$f":"'FR-16(7)(v)-5 PROD Cust'!Q196+'FR-16(7)(v)-9 TRANS Cust'!Q196+'FR-16(7)(v)-13 DIST Cust'!Q196","v":0},0,0]
[63,null,{"$f":"'FR-16(7)(v)-1 Functional'!C197","v":"ADJUSTMENT"},{"$f":"'FR-16(7)(v)-1 Functional'!D197","v":"A315"},null,{"$f":"'FR-16(7)(v)-14 TOTAL CLASS'!Q197","v":1},{"$f":"'FR-16(7)(v)-3 PROD Demand'!Q197+'FR-16(7)(v)-7 TRANS Demand'!Q197+'FR-16(7)(v)-11 DIST Demand'!Q197","v":0},{"$f":"'FR-16(7)(v)-4 PROD Energy'!Q197+'FR-16(7)(v)-8 TRANS Energy'!Q197+'FR-16(7)(v)-12 DIST Energy'!Q197","v":1},{"$f":"'FR-16(7)(v)-5 PROD Cust'!Q197+'FR-16(7)(v)-9 TRANS Cust'!Q197+'FR-16(7)(v)-13 DIST Cust'!Q197","v":0},1,0]
[64,null,{"$f":"'FR-16(7)(v)-1 Functional'!C198","v":"  COMMON & OTHER PLANT IN SERVICE"},null,null,{"$f":"SUM(F189:F197)","v":2802},{"$f":"SUM(G188:G197)","v":1351},{"$f":"SUM(H188:H197)","v":936},{"$f":"SUM(I188:I197)","v":515},{"$f":"SUM(J188:J197)","v":2802},{"$f":"SUM(K188:K197)","v":0}]
[65]
[66,"TOTAL DEPRECIATION RESERVE",null,null,null,{"$f":"F198+F186+F171+F145+F139","v":86104},79578,1640,4886,86104,0]
[]
[{"$f":"co_name","v":"DUKE ENERGY KENTUCKY, INC."},null,null,null,null,null,null,null,null,{"$f":"J1","v":"FR-16(7)(v)-25"}]
[{"$f":"$A$2","v":"OTHER WP CLASSIFIED - ELECTRIC COST OF SERVICE"},null,null,null,null,null,null,null,null,{"$f":"J2","v":"WITNESS RESPONSIBLE:"}]
[{"$f":"case_name","v":"CASE NO: 2019-00271"},null,null,null,null,null,null,null,null,{"$f":"Witness","v":"JAMES E. ZIOLKOWSKI"}]
[{"$f":"data_filing","v":"DATA: 12 MONTHS ACTUAL  & 0 MONTHS ESTIMATED"},null,null,null,null,null,null,null,null,{"$f":"\"PAGE \"&Pages2-11&\" OF \"&Pages2","v":"PAGE 4 OF 15"}]
[{"$f":"type","v":"TYPE OF FILING: \"X\" ORIGINAL   UPDATED    REVISED  "}]
[]
[]
["LINE",null,null,null,null,"TOTAL","CLASSIFIED",null,null,"TOTAL","ALL"]
["NO.",{"$f":"\"NET ELECTRIC PLANT\"","v":"NET ELECTRIC PLANT"},null,"ALLO",null,{"$f":"$F$9","v":"OTHER WP"},{"$f":"G9","v":"DEMAND"},"ENERGY","CUSTOMER","AT ISSUE","OTHER"]
[null,null,"Schedule 4",null,null,null,3,4,5]
[1,"PRODUCTION PLANT"]
[2,null,{"$f":"'FR-16(7)(v)-1 Functional'!C213","v":"PRODUCTION STEAM"},null,null,{"$f":"F59-F136","v":47759},47759,0,0,47759,0]
[3,null,{"$f":"'FR-16(7)(v)-1 Functional'!C214","v":"PRODUCTION OTHER"},null,null,20816,20816,0,0,20816,0]
[4,null,{"$f":"'FR-16(7)(v)-1 Functional'!C215","v":"ADJUSTMENT"},null,null,-171,-171,0,0,-171,0]
[5,null,{"$f":"'FR-16(7)(v)-1 Functional'!C216","v":"  NET PRODUCTION PLANT"},null,null,{"$f":"SUM(F213:F215)","v":68404},68404,0,0,68404,0]
[6]
[7,"TRANSMISSION PLANT"]
[8,null,{"$f":"'FR-16(7)(v)-1 Functional'!C219","v":"MAIN STEP-UP TRANSFORMERS"},null,null,{"$f":"F65-F142","v":0},0,0,0,0,0]
[9,null,{"$f":"'FR-16(7)(v)-1 Functional'!C220","v":"OTHER TRANSMISSION"},null,null,5766,5766,0,0,5766,0]
[10,null,{"$f":"'FR-16(7)(v)-1 Functional'!C221","v":"ADJUSTMENT"},null,null,8,8,0,0,8,0]
[11,null,{"$f":"'FR-16(7)(v)-1 Functional'!C222","v":"    NET TRANSMISSION PLANT"},null,null,{"$f":"SUM(F218:F221)","v":5774},5774,0,0,5774,0]
[12]
[13,"NET PROD & TRANS PLANT",null,null,null,{"$f":"F70-F147","v":74178},74178,0,0,74178,0]
[14]
[15,"DISTRIBUTION PLANT"]
[16,null,{"$f":"'FR-16(7)(v)-1 Functional'!C227","v":"SUBSTATIONS"},null,null,{"$f":"F73-F150","v":7974},7974,0,0,7974,0]
[17,null,{"$f":"'FR-16(7)(v)-1 Functional'!C228","v":"POLES, TOWERS  & FIXTURES - PRIMARY - DEMAND"},null,null,1970,1970,0,0,1970,0]
[18,null,{"$f":"'FR-16(7)(v)-1 Functional'!C229","v":"POLES, TOWERS  & FIXTURES - PRIMARY - CUSTOMER"},null,null,{"$f":"F75-F152","v":656},0,0,656,656,0]
[19,null,{"$f":"'FR-16(7)(v)-1 Functional'!C230","v":"POLES, TOWERS  & FIXTURES - SECONDARY - DEMAND"},null,null,{"$f":"F76-F153","v":754},754,0,0,754,0]
[20,null,{"$f":"'FR-16(7)(v)-1 Functional'!C231","v":"POLES, TOWERS  & FIXTURES - SECONDARY - CUSTOMER"},null,null,{"$f":"F77-F154","v":148},0,0,148,148,0]
[21,null,{"$f":"'FR-16(7)(v)-1 Functional'!C232","v":"CONDUCTORS - OVERHEAD / PRIMARY - DEMAND"},null,null,{"$f":"F78-F155","v":5808},5808,0,0,5808,0]
[22,null,{"$f":"'FR-16(7)(v)-1 Functional'!C233","v":"CONDUCTORS - OVERHEAD / PRIMARY - CUSTOMER"},null,null,{"$f":"F79-F156","v":922},0,0,922,922,0]
[23,null,{"$f":"'FR-16(7)(v)-1 Functional'!C234","v":"CONDUCTORS - OVERHEAD / SECONDARY - DEMAND"},null,null,{"$f":"F80-F157","v":2364},2364,0,0,2364,0]
[24,null,{"$f":"'FR-16(7)(v)-1 Functional'!C235","v":"CONDUCTORS - OVERHEAD / SECONDARY - CUSTOMER"},null,null,{"$f":"F81-F158","v":382},0,0,382,382,0]
[25,null,{"$f":"'FR-16(7)(v)-1 Functional'!C236","v":"CONDUCTORS - UNDERGROUND / PRIMARY - DEMAND"},null,null,{"$f":"F82-F159","v":4349},4349,0,0,4349,0]
[26,null,{"$f":"'FR-16(7)(v)-1 Functional'!C237","v":"CONDUCTORS - UNDERGROUND / PRIMARY - CUSTOMER"},null,null,{"$f":"F83-F160","v":982},0,0,982,982,0]
[27,null,{"$f":"'FR-16(7)(v)-1 Functional'!C238","v":"CONDUCTORS - UNDERGROUND / SECONDARY - DEMAND"},null,null,{"$f":"F84-F161","v":745},745,0,0,745,0]
[28,null,{"$f":"'FR-16(7)(v)-1 Functional'!C239","v":"CONDUCTORS - UNDERGROUND / SECONDARY - CUSTOMER"},null,null,{"$f":"F85-F162","v":307},0,0,307,307,0]
[29,null,{"$f":"'FR-16(7)(v)-1 Functional'!C240","v":"TRANSFORMERS DEMAND RELATED"},null,null,{"$f":"F86-F163","v":2927},2927,0,0,2927,0]
[30,null,{"$f":"'FR-16(7)(v)-1 Functional'!C241","v":"TRANSFORMERS CUSTOMER RELATED"},null,null,692,0,0,692,692,0]
[31,null,{"$f":"'FR-16(7)(v)-1 Functional'!C242","v":"SERVICES"},null,null,765,0,0,765,765,0]
[32,null,{"$f":"'FR-16(7)(v)-1 Functional'!C243","v":"METERS"},null,null,2466,0,0,2466,2466,0]
[33,null,{"$f":"'FR-16(7)(v)-1 Functional'!C244","v":"STREET LIGHTS"},null,null,0,0,0,0,0,0]
[34,null,{"$f":"'FR-16(7)(v)-1 Functional'!C245","v":"ADJUSTMENT  "},null,null,-49,-38,0,-11,-49,0]
[35,null,{"$f":"'FR-16(7)(v)-1 Functional'!C246","v":"CONSTRUCTION NOT CLASSIFIED"},null,null,9750,7513,0,2237,9750,0]
[36,null,{"$f":"'FR-16(7)(v)-1 Functional'!C247","v":"RWIP"},null,null,1883,1883,0,0,1883,0]
[37,null,{"$f":"'FR-16(7)(v)-1 Functional'!C248","v":"  NET DISTRIBUTION PLANT"},null,null,{"$f":"SUM(F226:F247)","v":45795},{"$f":"SUM(G226:G247)","v":36249},0,9546,45795,0]
[38]
[39,"NET PTD PLANT",null,null,null,{"$f":"F96-F173","v":51569},42023,0,9546,51569,0]
[40,"NET TRANS & DIST PLANT",null,null,null,119973,110427,0,9546,119973,0]
[41]
[42,"GENERAL & INTANGIBLE PLANT"]
[43,null,{"$f":"'FR-16(7)(v)-1 Functional'!C254","v":"PRODUCTION - DEMAND"},null,null,{"$f":"F100-F177","v":1245},1245,0,0,1245,0]
[44,null,{"$f":"'FR-16(7)(v)-1 Functional'!C255","v":"PRODUCTION - ENERGY"},null,null,1455,0,1455,0,1455,0]
[45,null,{"$f":"'FR-16(7)(v)-1 Functional'!C256","v":"TRANSMISSION"},null,null,196,196,0,0,196,0]
[46,null,{"$f":"'FR-16(7)(v)-1 Functional'!C257","v":"DISTRIBUTION - DEMAND"},null,null,661,661,0,0,661,0]
[47,null,{"$f":"'FR-16(7)(v)-1 Functional'!C258","v":"DISTRIBUTION - CUSTOMER"}]
[48,null,{"$f":"'FR-16(7)(v)-1 Functional'!C259","v":"CUSTOMER ACCOUNTING"},null,null,{"$f":"F105-F182","v":673},0,0,673,673,0]
[49,null,{"$f":"'FR-16(7)(v)-1 Functional'!C260","v":"CUSTOMER SERVICE & INFORMATION"},null,null,24,0,0,24,24,0]
[50,null,{"$f":"'FR-16(7)(v)-1 Functional'!C261","v":"SALES"},null,null,0,0,0,0,0,0]
[51,null,{"$f":"'FR-16(7)(v)-1 Functional'!C262","v":"ADJUSTMENT"},null,null,-21,-2,-12,-7,-21,0]
[52,null,{"$f":"'FR-16(7)(v)-1 Functional'!C263","v":"  NET GENERAL & INTANG PLANT"},null,null,{"$f":"SUM(F253:F262)","v":4233},2100,1443,690,4233,0]
[53]
[54,"COMMON & OTHER PLANT"]
[55,null,{"$f":"'FR-16(7)(v)-1 Functional'!C266","v":"PRODUCTION - DEMAND"},null,null,{"$f":"F112-F189","v":240},240,0,0,240,0]
[56,null,{"$f":"'FR-16(7)(v)-1 Functional'!C267","v":"PRODUCTION - ENERGY"},null,null,280,0,280,0,280,0]
[57,null,{"$f":"'FR-16(7)(v)-1 Functional'!C268","v":"TRANSMISSION"},null,null,38,38,0,0,38,0]
[58,null,{"$f":"'FR-16(7)(v)-1 Functional'!C269","v":"DISTRIBUTION - DEMAND"},null,null,127,127,0,0,127,0]
[59,null,{"$f":"'FR-16(7)(v)-1 Functional'!C270","v":"DISTRIBUTION - CUSTOMER"}]
[60,null,{"$f":"'FR-16(7)(v)-1 Functional'!C271","v":"CUSTOMER ACCOUNTING"},null,null,{"$f":"F117-F194","v":130},0,0,130,130,0]
[61,null,{"$f":"'FR-16(7)(v)-1 Functional'!C272","v":"CUSTOMER SERVICE & INFORMATION"},null,null,5,0,0,5,5,0]
[62,null,{"$f":"'FR-16(7)(v)-1 Functional'!C273","v":"SALES"},null,null,0,0,0,0,0,0]
[63,null,{"$f":"'FR-16(7)(v)-1 Functional'!C274","v":"ADJUSTMENT"},null,null,-1,0,-1,0,-1,0]
[64,null,{"$f":"'FR-16(7)(v)-1 Functional'!C275","v":"  COMMON & OTHER PLANT IN SERVICE"},null,null,{"$f":"SUM(F265:F274)","v":819},405,279,135,819,0]
[65]
[66,null,{"$f":"'FR-16(7)(v)-1 Functional'!C277","v":"NET ELECTRIC PLANT IN SERVICE"},null,null,{"$f":"F275+F263+F248+F222+F216","v":125025},112932,1722,10371,125025,0]
[]
[{"$f":"co_name","v":"DUKE ENERGY KENTUCKY, INC."},null,null,null,null,null,null,null,null,{"$f":"J1","v":"FR-16(7)(v)-25"}]
[{"$f":"$A$2","v":"OTHER WP CLASSIFIED - ELECTRIC COST OF SERVICE"},null,null,null,null,null,null,null,null,{"$f":"J2","v":"WITNESS RESPONSIBLE:"}]
[{"$f":"case_name","v":"CASE NO: 2019-00271"},null,null,null,null,null,null,null,null,{"$f":"Witness","v":"JAMES E. ZIOLKOWSKI"}]
[{"$f":"data_filing","v":"DATA: 12 MONTHS ACTUAL  & 0 MONTHS ESTIMATED"},null,null,null,null,null,null,null,null,{"$f":"\"PAGE \"&Pages2-10&\" OF \"&Pages2","v":"PAGE 5 OF 15"}]
[{"$f":"type","v":"TYPE OF FILING: \"X\" ORIGINAL   UPDATED    REVISED  "}]
[]
[]
["LINE",null,null,null,null,"TOTAL","CLASSIFIED",null,null,"TOTAL","ALL"]
["NO.","SUBTRACTIVE RATE BASE ADJUSTMENTS",null,"ALLO",null,{"$f":"$F$9","v":"OTHER WP"},{"$f":"G9","v":"DEMAND"},"ENERGY","CUSTOMER","AT ISSUE","OTHER"]
[null,null,"Schedule 5",null,null,null,3,4,5]
[1,"RATE BASE ADJUSTMENTS"]
[2,"ACCUMULATED DEFERRED INCOME TAXES"]
[3," ACCUM DEF INC TAXES (282)"]
[4,null,{"$f":"'FR-16(7)(v)-1 Functional'!C292","v":"LIBERALIZED DEPRECIATION"},{"$f":"'FR-16(7)(v)-1 Functional'!D292","v":"NP29"}," ",{"$f":"'FR-16(7)(v)-14 TOTAL CLASS'!Q292","v":7386},{"$f":"'FR-16(7)(v)-3 PROD Demand'!Q292+'FR-16(7)(v)-7 TRANS Demand'!Q292+'FR-16(7)(v)-11 DIST Demand'!Q292","v":6695},{"$f":"'FR-16(7)(v)-4 PROD Energy'!Q292+'FR-16(7)(v)-8 TRANS Energy'!Q292+'FR-16(7)(v)-12 DIST Energy'!Q292","v":102},{"$f":"'FR-16(7)(v)-5 PROD Cust'!Q292+'FR-16(7)(v)-9 TRANS Cust'!Q292+'FR-16(7)(v)-13 DIST Cust'!Q292","v":589},{"$f":"SUM(G292:I292)","v":7386},{"$f":"F292-J292","v":0}]
[5,null,{"$f":"'FR-16(7)(v)-1 Functional'!C293","v":"LEASED METERS"},{"$f":"'FR-16(7)(v)-1 Functional'!D293","v":"NP29"}," ",{"$f":"'FR-16(7)(v)-14 TOTAL CLASS'!Q293","v":167},{"$f":"'FR-16(7)(v)-3 PROD Demand'!Q293+'FR-16(7)(v)-7 TRANS Demand'!Q293+'FR-16(7)(v)-11 DIST Demand'!Q293","v":152},{"$f":"'FR-16(7)(v)-4 PROD Energy'!Q293+'FR-16(7)(v)-8 TRANS Energy'!Q293+'FR-16(7)(v)-12 DIST Energy'!Q293","v":2},{"$f":"'FR-16(7)(v)-5 PROD Cust'!Q293+'FR-16(7)(v)-9 TRANS Cust'!Q293+'FR-16(7)(v)-13 DIST Cust'!Q293","v":13},167,0]
[6,null,{"$f":"'FR-16(7)(v)-1 Functional'!C294","v":"CONTRIB AID CONSTR"},{"$f":"'FR-16(7)(v)-1 Functional'!D294","v":"D249"}," ",{"$f":"'FR-16(7)(v)-14 TOTAL CLASS'!Q294","v":0},{"$f":"'FR-16(7)(v)-3 PROD Demand'!Q294+'FR-16(7)(v)-7 TRANS Demand'!Q294+'FR-16(7)(v)-11 DIST Demand'!Q294","v":0},{"$f":"'FR-16(7)(v)-4 PROD Energy'!Q294+'FR-16(7)(v)-8 TRANS Energy'!Q294+'FR-16(7)(v)-12 DIST Energy'!Q294","v":0},{"$f":"'FR-16(7)(v)-5 PROD Cust'!Q294+'FR-16(7)(v)-9 TRANS Cust'!Q294+'FR-16(7)(v)-13 DIST Cust'!Q294","v":0},0,0]
[7,null,{"$f":"'FR-16(7)(v)-1 Functional'!C295","v":"TAX INTEREST, EXPENSING, DEPR."},{"$f":"'FR-16(7)(v)-1 Functional'!D295","v":"NP29"}," ",{"$f":"'FR-16(7)(v)-14 TOTAL CLASS'!Q295","v":7374},{"$f":"'FR-16(7)(v)-3 PROD Demand'!Q295+'FR-16(7)(v)-7 TRANS Demand'!Q295+'FR-16(7)(v)-11 DIST Demand'!Q295","v":6684},{"$f":"'FR-16(7)(v)-4 PROD Energy'!Q295+'FR-16(7)(v)-8 TRANS Energy'!Q295+'FR-16(7)(v)-12 DIST Energy'!Q295","v":102},{"$f":"'FR-16(7)(v)-5 PROD Cust'!Q295+'FR-16(7)(v)-9 TRANS Cust'!Q295+'FR-16(7)(v)-13 DIST Cust'!Q295","v":588},7374,0]
[8,null,{"$f":"'FR-16(7)(v)-1 Functional'!C296","v":"AFUDC IN DEBT"},{"$f":"'FR-16(7)(v)-1 Functional'!D296","v":"NP29"}," ",{"$f":"'FR-16(7)(v)-14 TOTAL CLASS'!Q296","v":0},{"$f":"'FR-16(7)(v)-3 PROD Demand'!Q296+'FR-16(7)(v)-7 TRANS Demand'!Q296+'FR-16(7)(v)-11 DIST Demand'!Q296","v":0},{"$f":"'FR-16(7)(v)-4 PROD Energy'!Q296+'FR-16(7)(v)-8 TRANS Energy'!Q296+'FR-16(7)(v)-12 DIST Energy'!Q296","v":0},{"$f":"'FR-16(7)(v)-5 PROD Cust'!Q296+'FR-16(7)(v)-9 TRANS Cust'!Q296+'FR-16(7)(v)-13 DIST Cust'!Q296","v":0},0,0]
[9,null,{"$f":"'FR-16(7)(v)-1 Functional'!C297","v":"CASUALTY LOSS"},{"$f":"'FR-16(7)(v)-1 Functional'!D297","v":"K411"}," ",{"$f":"'FR-16(7)(v)-14 TOTAL CLASS'!Q297","v":-4},{"$f":"'FR-16(7)(v)-3 PROD Demand'!Q297+'FR-16(7)(v)-7 TRANS Demand'!Q297+'FR-16(7)(v)-11 DIST Demand'!Q297","v":0},{"$f":"'FR-16(7)(v)-4 PROD Energy'!Q297+'FR-16(7)(v)-8 TRANS Energy'!Q297+'FR-16(7)(v)-12 DIST Energy'!Q297","v":0},{"$f":"'FR-16(7)(v)-5 PROD Cust'!Q297+'FR-16(7)(v)-9 TRANS Cust'!Q297+'FR-16(7)(v)-13 DIST Cust'!Q297","v":-4},-4,0]
[10,null,{"$f":"'FR-16(7)(v)-1 Functional'!C298","v":"NON-CASH OVERHEADS"},{"$f":"'FR-16(7)(v)-1 Functional'!D298","v":"G229"}," ",{"$f":"'FR-16(7)(v)-14 TOTAL CLASS'!Q298","v":0},{"$f":"'FR-16(7)(v)-3 PROD Demand'!Q298+'FR-16(7)(v)-7 TRANS Demand'!Q298+'FR-16(7)(v)-11 DIST Demand'!Q298","v":0},{"$f":"'FR-16(7)(v)-4 PROD Energy'!Q298+'FR-16(7)(v)-8 TRANS Energy'!Q298+'FR-16(7)(v)-12 DIST Energy'!Q298","v":0},{"$f":"'FR-16(7)(v)-5 PROD Cust'!Q298+'FR-16(7)(v)-9 TRANS Cust'!Q298+'FR-16(7)(v)-13 DIST Cust'!Q298","v":0},0,0]
[11,null,{"$f":"'FR-16(7)(v)-1 Functional'!C299","v":"PLANT FAS 109"},{"$f":"'FR-16(7)(v)-1 Functional'!D299","v":"NP29"}," ",{"$f":"'FR-16(7)(v)-14 TOTAL CLASS'!Q299","v":0},{"$f":"'FR-16(7)(v)-3 PROD Demand'!Q299+'FR-16(7)(v)-7 TRANS Demand'!Q299+'FR-16(7)(v)-11 DIST Demand'!Q299","v":0},{"$f":"'FR-16(7)(v)-4 PROD Energy'!Q299+'FR-16(7)(v)-8 TRANS Energy'!Q299+'FR-16(7)(v)-12 DIST Energy'!Q299","v":0},{"$f":"'FR-16(7)(v)-5 PROD Cust'!Q299+'FR-16(7)(v)-9 TRANS Cust'!Q299+'FR-16(7)(v)-13 DIST Cust'!Q299","v":0},0,0]
[12,null,{"$f":"'FR-16(7)(v)-1 Functional'!C300","v":"MISCELLANEOUS"},{"$f":"'FR-16(7)(v)-1 Functional'!D300","v":"NP29"},null,{"$f":"'FR-16(7)(v)-14 TOTAL CLASS'!Q300","v":6958},{"$f":"'FR-16(7)(v)-3 PROD Demand'!Q300+'FR-16(7)(v)-7 TRANS Demand'!Q300+'FR-16(7)(v)-11 DIST Demand'!Q300","v":6307},{"$f":"'FR-16(7)(v)-4 PROD Energy'!Q300+'FR-16(7)(v)-8 TRANS Energy'!Q300+'FR-16(7)(v)-12 DIST Energy'!Q300","v":96},{"$f":"'FR-16(7)(v)-5 PROD Cust'!Q300+'FR-16(7)(v)-9 TRANS Cust'!Q300+'FR-16(7)(v)-13 DIST Cust'!Q300","v":555},6958,0]
[13,null,{"$f":"'FR-16(7)(v)-1 Functional'!C301","v":"  TOTAL ACCOUNT 282"},null,null,{"$f":"SUM(F292:F300)","v":21881},19838,302,1741,21881,0]
[14]
[15," ACCUM DEF INC TAXES (283)"]
[16,null,{"$f":"'FR-16(7)(v)-1 Functional'!C304","v":"TRANSITION FROM MISO TO PJM"},{"$f":"'FR-16(7)(v)-1 Functional'!D304","v":"NP29"},null,{"$f":"'FR-16(7)(v)-14 TOTAL CLASS'!Q304","v":-397},{"$f":"'FR-16(7)(v)-3 PROD Demand'!Q304+'FR-16(7)(v)-7 TRANS Demand'!Q304+'FR-16(7)(v)-11 DIST Demand'!Q304","v":-360},{"$f":"'FR-16(7)(v)-4 PROD Energy'!Q304+'FR-16(7)(v)-8 TRANS Energy'!Q304+'FR-16(7)(v)-12 DIST Energy'!Q304","v":-5},{"$f":"'FR-16(7)(v)-5 PROD Cust'!Q304+'FR-16(7)(v)-9 TRANS Cust'!Q304+'FR-16(7)(v)-13 DIST Cust'!Q304","v":-32},{"$f":"SUM(G304:I304)","v":-397},{"$f":"F304-J304","v":0}]
[17,null,{"$f":"'FR-16(7)(v)-1 Functional'!C305","v":"DEFERRED PLANT COSTS"},{"$f":"'FR-16(7)(v)-1 Functional'!D305","v":"NP29"},null,{"$f":"'FR-16(7)(v)-14 TOTAL CLASS'!Q305","v":78},{"$f":"'FR-16(7)(v)-3 PROD Demand'!Q305+'FR-16(7)(v)-7 TRANS Demand'!Q305+'FR-16(7)(v)-11 DIST Demand'!Q305","v":71},{"$f":"'FR-16(7)(v)-4 PROD Energy'!Q305+'FR-16(7)(v)-8 TRANS Energy'!Q305+'FR-16(7)(v)-12 DIST Energy'!Q305","v":1},{"$f":"'FR-16(7)(v)-5 PROD Cust'!Q305+'FR-16(7)(v)-9 TRANS Cust'!Q305+'FR-16(7)(v)-13 DIST Cust'!Q305","v":6},78,0]
[18,null,{"$f":"'FR-16(7)(v)-1 Functional'!C306","v":"MISCELLANEOUS"},{"$f":"'FR-16(7)(v)-1 Functional'!D306","v":"OM39"},null,{"$f":"'FR-16(7)(v)-14 TOTAL CLASS'!Q306","v":1232},{"$f":"'FR-16(7)(v)-3 PROD Demand'!Q306+'FR-16(7)(v)-7 TRANS Demand'!Q306+'FR-16(7)(v)-11 DIST Demand'!Q306","v":307},{"$f":"'FR-16(7)(v)-4 PROD Energy'!Q306+'FR-16(7)(v)-8 TRANS Energy'!Q306+'FR-16(7)(v)-12 DIST Energy'!Q306","v":845},{"$f":"'FR-16(7)(v)-5 PROD Cust'!Q306+'FR-16(7)(v)-9 TRANS Cust'!Q306+'FR-16(7)(v)-13 DIST Cust'!Q306","v":80},1232,0]
[19,null,{"$f":"'FR-16(7)(v)-1 Functional'!C307","v":"ENVIRONMENTAL RESERVE"},{"$f":"'FR-16(7)(v)-1 Functional'!D307","v":"NP29"},null,{"$f":"'FR-16(7)(v)-14 TOTAL CLASS'!Q307","v":0},{"$f":"'FR-16(7)(v)-3 PROD Demand'!Q307+'FR-16(7)(v)-7 TRANS Demand'!Q307+'FR-16(7)(v)-11 DIST Demand'!Q307","v":0},{"$f":"'FR-16(7)(v)-4 PROD Energy'!Q307+'FR-16(7)(v)-8 TRANS Energy'!Q307+'FR-16(7)(v)-12 DIST Energy'!Q307","v":0},{"$f":"'FR-16(7)(v)-5 PROD Cust'!Q307+'FR-16(7)(v)-9 TRANS Cust'!Q307+'FR-16(7)(v)-13 DIST Cust'!Q307","v":0},0,0]
[20,null,{"$f":"'FR-16(7)(v)-1 Functional'!C308","v":"POST IN-SERVICE CARRYING COSTS"},{"$f":"'FR-16(7)(v)-1 Functional'!D308","v":"NP29"},null,{"$f":"'FR-16(7)(v)-14 TOTAL CLASS'!Q308","v":0},{"$f":"'FR-16(7)(v)-3 PROD Demand'!Q308+'FR-16(7)(v)-7 TRANS Demand'!Q308+'FR-16(7)(v)-11 DIST Demand'!Q308","v":0},{"$f":"'FR-16(7)(v)-4 PROD Energy'!Q308+'FR-16(7)(v)-8 TRANS Energy'!Q308+'FR-16(7)(v)-12 DIST Energy'!Q308","v":0},{"$f":"'FR-16(7)(v)-5 PROD Cust'!Q308+'FR-16(7)(v)-9 TRANS Cust'!Q308+'FR-16(7)(v)-13 DIST Cust'!Q308","v":0},0,0]
[21,null,{"$f":"'FR-16(7)(v)-1 Functional'!C309","v":"ARO CUMULATIVE EFFECT"},{"$f":"'FR-16(7)(v)-1 Functional'!D309","v":"NP29"},null,{"$f":"'FR-16(7)(v)-14 TOTAL CLASS'!Q309","v":0},{"$f":"'FR-16(7)(v)-3 PROD Demand'!Q309+'FR-16(7)(v)-7 TRANS Demand'!Q309+'FR-16(7)(v)-11 DIST Demand'!Q309","v":0},{"$f":"'FR-16(7)(v)-4 PROD Energy'!Q309+'FR-16(7)(v)-8 TRANS Energy'!Q309+'FR-16(7)(v)-12 DIST Energy'!Q309","v":0},{"$f":"'FR-16(7)(v)-5 PROD Cust'!Q309+'FR-16(7)(v)-9 TRANS Cust'!Q309+'FR-16(7)(v)-13 DIST Cust'!Q309","v":0},0,0]
[22,null,{"$f":"'FR-16(7)(v)-1 Functional'!C310","v":"LOSS ON REACQUIRED DEBT"},{"$f":"'FR-16(7)(v)-1 Functional'!D310","v":"D249"},null,{"$f":"'FR-16(7)(v)-14 TOTAL CLASS'!Q310","v":0},{"$f":"'FR-16(7)(v)-3 PROD Demand'!Q310+'FR-16(7)(v)-7 TRANS Demand'!Q310+'FR-16(7)(v)-11 DIST Demand'!Q310","v":0},{"$f":"'FR-16(7)(v)-4 PROD Energy'!Q310+'FR-16(7)(v)-8 TRANS Energy'!Q310+'FR-16(7)(v)-12 DIST Energy'!Q310","v":0},{"$f":"'FR-16(7)(v)-5 PROD Cust'!Q310+'FR-16(7)(v)-9 TRANS Cust'!Q310+'FR-16(7)(v)-13 DIST Cust'!Q310","v":0},0,0]
[23,null,{"$f":"'FR-16(7)(v)-1 Functional'!C311","v":"VACATION PAY ACCRUAL"},{"$f":"'FR-16(7)(v)-1 Functional'!D311","v":"A315"},null,{"$f":"'FR-16(7)(v)-14 TOTAL CLASS'!Q311","v":0},{"$f":"'FR-16(7)(v)-3 PROD Demand'!Q311+'FR-16(7)(v)-7 TRANS Demand'!Q311+'FR-16(7)(v)-11 DIST Demand'!Q311","v":0},{"$f":"'FR-16(7)(v)-4 PROD Energy'!Q311+'FR-16(7)(v)-8 TRANS Energy'!Q311+'FR-16(7)(v)-12 DIST Energy'!Q311","v":0},{"$f":"'FR-16(7)(v)-5 PROD Cust'!Q311+'FR-16(7)(v)-9 TRANS Cust'!Q311+'FR-16(7)(v)-13 DIST Cust'!Q311","v":0},0,0]
[24,null,{"$f":"'FR-16(7)(v)-1 Functional'!C312","v":"NON-AMI METERS RETIRED EARLY"},{"$f":"'FR-16(7)(v)-1 Functional'!D312","v":"OM39"},null,{"$f":"'FR-16(7)(v)-14 TOTAL CLASS'!Q312","v":148},{"$f":"'FR-16(7)(v)-3 PROD Demand'!Q312+'FR-16(7)(v)-7 TRANS Demand'!Q312+'FR-16(7)(v)-11 DIST Demand'!Q312","v":37},{"$f":"'FR-16(7)(v)-4 PROD Energy'!Q312+'FR-16(7)(v)-8 TRANS Energy'!Q312+'FR-16(7)(v)-12 DIST Energy'!Q312","v":101},{"$f":"'FR-16(7)(v)-5 PROD Cust'!Q312+'FR-16(7)(v)-9 TRANS Cust'!Q312+'FR-16(7)(v)-13 DIST Cust'!Q312","v":10},{"$f":"SUM(G312:I312)","v":148},{"$f":"F312-J312","v":0}]
[25,null,{"$f":"'FR-16(7)(v)-1 Functional'!C313","v":"PENSION EXPENSE"},{"$f":"'FR-16(7)(v)-1 Functional'!D313","v":"A315"},null,{"$f":"'FR-16(7)(v)-14 TOTAL CLASS'!Q313","v":622},{"$f":"'FR-16(7)(v)-3 PROD Demand'!Q313+'FR-16(7)(v)-7 TRANS Demand'!Q313+'FR-16(7)(v)-11 DIST Demand'!Q313","v":217},{"$f":"'FR-16(7)(v)-4 PROD Energy'!Q313+'FR-16(7)(v)-8 TRANS Energy'!Q313+'FR-16(7)(v)-12 DIST Energy'!Q313","v":261},{"$f":"'FR-16(7)(v)-5 PROD Cust'!Q313+'FR-16(7)(v)-9 TRANS Cust'!Q313+'FR-16(7)(v)-13 DIST Cust'!Q313","v":144},{"$f":"SUM(G313:I313)","v":622},{"$f":"F313-J313","v":0}]
[26,null,{"$f":"'FR-16(7)(v)-1 Functional'!C314","v":"UNCOLLECTIBLE ACCOUNTS"},{"$f":"'FR-16(7)(v)-1 Functional'!D314","v":"K411"},null,{"$f":"'FR-16(7)(v)-14 TOTAL CLASS'!Q314","v":0},{"$f":"'FR-16(7)(v)-3 PROD Demand'!Q314+'FR-16(7)(v)-7 TRANS Demand'!Q314+'FR-16(7)(v)-11 DIST Demand'!Q314","v":0},{"$f":"'FR-16(7)(v)-4 PROD Energy'!Q314+'FR-16(7)(v)-8 TRANS Energy'!Q314+'FR-16(7)(v)-12 DIST Energy'!Q314","v":0},{"$f":"'FR-16(7)(v)-5 PROD Cust'!Q314+'FR-16(7)(v)-9 TRANS Cust'!Q314+'FR-16(7)(v)-13 DIST Cust'!Q314","v":0},0,0]
[27,null,{"$f":"'FR-16(7)(v)-1 Functional'!C315","v":"  TOTAL ACCOUNT 283"},null,null,{"$f":"SUM(F303:F314)","v":1683},272,1203,208,1683,0]
[28]
[29," OTHER ACCUMULATED DEFERRED INCOME TAXES"]
[30,null,{"$f":"'FR-16(7)(v)-1 Functional'!C318","v":"EXCESS ADIT"},{"$f":"'FR-16(7)(v)-1 Functional'!D318","v":"NP29"},null,{"$f":"'FR-16(7)(v)-14 TOTAL CLASS'!Q318","v":6869},{"$f":"'FR-16(7)(v)-3 PROD Demand'!Q318+'FR-16(7)(v)-7 TRANS Demand'!Q318+'FR-16(7)(v)-11 DIST Demand'!Q318","v":6226},{"$f":"'FR-16(7)(v)-4 PROD Energy'!Q318+'FR-16(7)(v)-8 TRANS Energy'!Q318+'FR-16(7)(v)-12 DIST Energy'!Q318","v":95},{"$f":"'FR-16(7)(v)-5 PROD Cust'!Q318+'FR-16(7)(v)-9 TRANS Cust'!Q318+'FR-16(7)(v)-13 DIST Cust'!Q318","v":548},{"$f":"SUM(G318:I318)","v":6869},{"$f":"F318-J318","v":0}]
[31,null,{"$f":"'FR-16(7)(v)-1 Functional'!C319","v":"CUSTOMER SERVICE DEPOSITS"},{"$f":"'FR-16(7)(v)-1 Functional'!D319","v":"NP29"},null,{"$f":"'FR-16(7)(v)-14 TOTAL CLASS'!Q319","v":0},{"$f":"'FR-16(7)(v)-3 PROD Demand'!Q319+'FR-16(7)(v)-7 TRANS Demand'!Q319+'FR-16(7)(v)-11 DIST Demand'!Q319","v":0},{"$f":"'FR-16(7)(v)-4 PROD Energy'!Q319+'FR-16(7)(v)-8 TRANS Energy'!Q319+'FR-16(7)(v)-12 DIST Energy'!Q319","v":0},{"$f":"'FR-16(7)(v)-5 PROD Cust'!Q319+'FR-16(7)(v)-9 TRANS Cust'!Q319+'FR-16(7)(v)-13 DIST Cust'!Q319","v":0},{"$f":"SUM(G319:I319)","v":0},{"$f":"F319-J319","v":0}]
[32,null,{"$f":"'FR-16(7)(v)-1 Functional'!C320","v":"POST RETIREMENT BENEFITS"},{"$f":"'FR-16(7)(v)-1 Functional'!D320","v":"NP29"},null,{"$f":"'FR-16(7)(v)-14 TOTAL CLASS'!Q320","v":0},{"$f":"'FR-16(7)(v)-3 PROD Demand'!Q320+'FR-16(7)(v)-7 TRANS Demand'!Q320+'FR-16(7)(v)-11 DIST Demand'!Q320","v":0},{"$f":"'FR-16(7)(v)-4 PROD Energy'!Q320+'FR-16(7)(v)-8 TRANS Energy'!Q320+'FR-16(7)(v)-12 DIST Energy'!Q320","v":0},{"$f":"'FR-16(7)(v)-5 PROD Cust'!Q320+'FR-16(7)(v)-9 TRANS Cust'!Q320+'FR-16(7)(v)-13 DIST Cust'!Q320","v":0},{"$f":"SUM(G320:I320)","v":0},{"$f":"F320-J320","v":0}]
[33,null,{"$f":"'FR-16(7)(v)-1 Functional'!C321","v":"INVESTMENT TAX CREDIT"},{"$f":"'FR-16(7)(v)-1 Functional'!D321","v":"NP29"},null,{"$f":"'FR-16(7)(v)-14 TOTAL CLASS'!Q321","v":0},{"$f":"'FR-16(7)(v)-3 PROD Demand'!Q321+'FR-16(7)(v)-7 TRANS Demand'!Q321+'FR-16(7)(v)-11 DIST Demand'!Q321","v":0},{"$f":"'FR-16(7)(v)-4 PROD Energy'!Q321+'FR-16(7)(v)-8 TRANS Energy'!Q321+'FR-16(7)(v)-12 DIST Energy'!Q321","v":0},{"$f":"'FR-16(7)(v)-5 PROD Cust'!Q321+'FR-16(7)(v)-9 TRANS Cust'!Q321+'FR-16(7)(v)-13 DIST Cust'!Q321","v":0},{"$f":"SUM(G321:I321)","v":0},{"$f":"F321-J321","v":0}]
[34,null,{"$f":"'FR-16(7)(v)-1 Functional'!C322","v":"  TOTAL OTHER SUBTRACTIVE ADJUSTMENTS"},null,null,{"$f":"SUM(F317:F321)","v":6869},6226,95,548,6869,0]
[35]
[36,{"$f":"'FR-16(7)(v)-1 Functional'!B324","v":"TOTAL SUBTRACTIVE RATE BASE ADJUSTMENTS"},null,null,null,{"$f":"F322+F315+F301","v":30433},26336,1600,2497,30433,0]
[]
[{"$f":"co_name","v":"DUKE ENERGY KENTUCKY, INC."},null,null,null,null,null,null,null,null,{"$f":"J1","v":"FR-16(7)(v)-25"}]
[{"$f":"$A$2","v":"OTHER WP CLASSIFIED - ELECTRIC COST OF SERVICE"},null,null,null,null,null,null,null,null,{"$f":"J2","v":"WITNESS RESPONSIBLE:"}]
[{"$f":"case_name","v":"CASE NO: 2019-00271"},null,null,null,null,null,null,null,null,{"$f":"Witness","v":"JAMES E. ZIOLKOWSKI"}]
[{"$f":"data_filing","v":"DATA: 12 MONTHS ACTUAL  & 0 MONTHS ESTIMATED"},null,null,null,null,null,null,null,null,{"$f":"\"PAGE \"&Pages2-9&\" OF \"&Pages2","v":"PAGE 6 OF 15"}]
[{"$f":"type","v":"TYPE OF FILING: \"X\" ORIGINAL   UPDATED    REVISED  "}]
[]
[]
["LINE",null,null,null,null,"TOTAL","CLASSIFIED",null,null,"TOTAL","ALL"]
["NO.","ADDITIVE RATE BASE ADJUSTMENTS",null,"ALLO",null,{"$f":"$F$9","v":"OTHER WP"},{"$f":"G9","v":"DEMAND"},"ENERGY","CUSTOMER","AT ISSUE","OTHER"]
[null,null,"Schedule 5.1",null,null,null,3,4,5]
[1,"OTHER ACCUMULATED DEFERRED INCOME TAXES"]
[2," ACCUM DEF INC TAXES (190)"]
[3,null,{"$f":"'FR-16(7)(v)-1 Functional'!C338","v":"UNCOLLECTIBLE ACCTS"},{"$f":"'FR-16(7)(v)-1 Functional'!D338","v":"K411"},null,{"$f":"'FR-16(7)(v)-14 TOTAL CLASS'!Q338","v":1},{"$f":"'FR-16(7)(v)-3 PROD Demand'!Q338+'FR-16(7)(v)-7 TRANS Demand'!Q338+'FR-16(7)(v)-11 DIST Demand'!Q338","v":0},{"$f":"'FR-16(7)(v)-4 PROD Energy'!Q338+'FR-16(7)(v)-8 TRANS Energy'!Q338+'FR-16(7)(v)-12 DIST Energy'!Q338","v":0},{"$f":"'FR-16(7)(v)-5 PROD Cust'!Q338+'FR-16(7)(v)-9 TRANS Cust'!Q338+'FR-16(7)(v)-13 DIST Cust'!Q338","v":1},{"$f":"SUM(G338:I338)","v":1},{"$f":"F338-J338","v":0}]
[4,null,{"$f":"'FR-16(7)(v)-1 Functional'!C339","v":"CASH FLOW HEDGE"},{"$f":"'FR-16(7)(v)-1 Functional'!D339","v":"A315"},null,{"$f":"'FR-16(7)(v)-14 TOTAL CLASS'!Q339","v":24},{"$f":"'FR-16(7)(v)-3 PROD Demand'!Q339+'FR-16(7)(v)-7 TRANS Demand'!Q339+'FR-16(7)(v)-11 DIST Demand'!Q339","v":8},{"$f":"'FR-16(7)(v)-4 PROD Energy'!Q339+'FR-16(7)(v)-8 TRANS Energy'!Q339+'FR-16(7)(v)-12 DIST Energy'!Q339","v":10},{"$f":"'FR-16(7)(v)-5 PROD Cust'!Q339+'FR-16(7)(v)-9 TRANS Cust'!Q339+'FR-16(7)(v)-13 DIST Cust'!Q339","v":6},24,0]
[5,null,{"$f":"'FR-16(7)(v)-1 Functional'!C340","v":"RESERVED FOR FUTURE USE"},{"$f":"'FR-16(7)(v)-1 Functional'!D340","v":"NP29"},null,{"$f":"'FR-16(7)(v)-14 TOTAL CLASS'!Q340","v":0},{"$f":"'FR-16(7)(v)-3 PROD Demand'!Q340+'FR-16(7)(v)-7 TRANS Demand'!Q340+'FR-16(7)(v)-11 DIST Demand'!Q340","v":0},{"$f":"'FR-16(7)(v)-4 PROD Energy'!Q340+'FR-16(7)(v)-8 TRANS Energy'!Q340+'FR-16(7)(v)-12 DIST Energy'!Q340","v":0},{"$f":"'FR-16(7)(v)-5 PROD Cust'!Q340+'FR-16(7)(v)-9 TRANS Cust'!Q340+'FR-16(7)(v)-13 DIST Cust'!Q340","v":0},0,0]
[6,null,{"$f":"'FR-16(7)(v)-1 Functional'!C341","v":"RESERVED FOR FUTURE USE"},{"$f":"'FR-16(7)(v)-1 Functional'!D341","v":"NP29"},null,{"$f":"'FR-16(7)(v)-14 TOTAL CLASS'!Q341","v":0},{"$f":"'FR-16(7)(v)-3 PROD Demand'!Q341+'FR-16(7)(v)-7 TRANS Demand'!Q341+'FR-16(7)(v)-11 DIST Demand'!Q341","v":0},{"$f":"'FR-16(7)(v)-4 PROD Energy'!Q341+'FR-16(7)(v)-8 TRANS Energy'!Q341+'FR-16(7)(v)-12 DIST Energy'!Q341","v":0},{"$f":"'FR-16(7)(v)-5 PROD Cust'!Q341+'FR-16(7)(v)-9 TRANS Cust'!Q341+'FR-16(7)(v)-13 DIST Cust'!Q341","v":0},0,0]
[7,null,{"$f":"'FR-16(7)(v)-1 Functional'!C342","v":"ELECTRIC METERS"},{"$f":"'FR-16(7)(v)-1 Functional'!D342","v":"K407"},null,{"$f":"'FR-16(7)(v)-14 TOTAL CLASS'!Q342","v":0},{"$f":"'FR-16(7)(v)-3 PROD Demand'!Q342+'FR-16(7)(v)-7 TRANS Demand'!Q342+'FR-16(7)(v)-11 DIST Demand'!Q342","v":0},{"$f":"'FR-16(7)(v)-4 PROD Energy'!Q342+'FR-16(7)(v)-8 TRANS Energy'!Q342+'FR-16(7)(v)-12 DIST Energy'!Q342","v":0},{"$f":"'FR-16(7)(v)-5 PROD Cust'!Q342+'FR-16(7)(v)-9 TRANS Cust'!Q342+'FR-16(7)(v)-13 DIST Cust'!Q342","v":0},0,0]
[8,null,{"$f":"'FR-16(7)(v)-1 Functional'!C343","v":"UNAMORTIZED DEBT PREMIUM"},{"$f":"'FR-16(7)(v)-1 Functional'!D343","v":"D249"},null,{"$f":"'FR-16(7)(v)-14 TOTAL CLASS'!Q343","v":0},{"$f":"'FR-16(7)(v)-3 PROD Demand'!Q343+'FR-16(7)(v)-7 TRANS Demand'!Q343+'FR-16(7)(v)-11 DIST Demand'!Q343","v":0},{"$f":"'FR-16(7)(v)-4 PROD Energy'!Q343+'FR-16(7)(v)-8 TRANS Energy'!Q343+'FR-16(7)(v)-12 DIST Energy'!Q343","v":0},{"$f":"'FR-16(7)(v)-5 PROD Cust'!Q343+'FR-16(7)(v)-9 TRANS Cust'!Q343+'FR-16(7)(v)-13 DIST Cust'!Q343","v":0},0,0]
[9,null,{"$f":"'FR-16(7)(v)-1 Functional'!C344","v":"ARO CUMULATIVE EFFECT"},{"$f":"'FR-16(7)(v)-1 Functional'!D344","v":"NP29"},null,{"$f":"'FR-16(7)(v)-14 TOTAL CLASS'!Q344","v":0},{"$f":"'FR-16(7)(v)-3 PROD Demand'!Q344+'FR-16(7)(v)-7 TRANS Demand'!Q344+'FR-16(7)(v)-11 DIST Demand'!Q344","v":0},{"$f":"'FR-16(7)(v)-4 PROD Energy'!Q344+'FR-16(7)(v)-8 TRANS Energy'!Q344+'FR-16(7)(v)-12 DIST Energy'!Q344","v":0},{"$f":"'FR-16(7)(v)-5 PROD Cust'!Q344+'FR-16(7)(v)-9 TRANS Cust'!Q344+'FR-16(7)(v)-13 DIST Cust'!Q344","v":0},0,0]
[10,null,{"$f":"'FR-16(7)(v)-1 Functional'!C345","v":"RETIREMENT PLAN"},{"$f":"'FR-16(7)(v)-1 Functional'!D345","v":"A315"},null,{"$f":"'FR-16(7)(v)-14 TOTAL CLASS'!Q345","v":258},{"$f":"'FR-16(7)(v)-3 PROD Demand'!Q345+'FR-16(7)(v)-7 TRANS Demand'!Q345+'FR-16(7)(v)-11 DIST Demand'!Q345","v":90},{"$f":"'FR-16(7)(v)-4 PROD Energy'!Q345+'FR-16(7)(v)-8 TRANS Energy'!Q345+'FR-16(7)(v)-12 DIST Energy'!Q345","v":108},{"$f":"'FR-16(7)(v)-5 PROD Cust'!Q345+'FR-16(7)(v)-9 TRANS Cust'!Q345+'FR-16(7)(v)-13 DIST Cust'!Q345","v":60},258,0]
[11,null,{"$f":"'FR-16(7)(v)-1 Functional'!C346","v":"POST RETIREMENT BENEFITS "},{"$f":"'FR-16(7)(v)-1 Functional'!D346","v":"A315"},null,{"$f":"'FR-16(7)(v)-14 TOTAL CLASS'!Q346","v":0},{"$f":"'FR-16(7)(v)-3 PROD Demand'!Q346+'FR-16(7)(v)-7 TRANS Demand'!Q346+'FR-16(7)(v)-11 DIST Demand'!Q346","v":0},{"$f":"'FR-16(7)(v)-4 PROD Energy'!Q346+'FR-16(7)(v)-8 TRANS Energy'!Q346+'FR-16(7)(v)-12 DIST Energy'!Q346","v":0},{"$f":"'FR-16(7)(v)-5 PROD Cust'!Q346+'FR-16(7)(v)-9 TRANS Cust'!Q346+'FR-16(7)(v)-13 DIST Cust'!Q346","v":0},0,0]
[12,null,{"$f":"'FR-16(7)(v)-1 Functional'!C347","v":"POST RETIREMENT BENEFITS - HEALTH CARE"},{"$f":"'FR-16(7)(v)-1 Functional'!D347","v":"A315"},null,{"$f":"'FR-16(7)(v)-14 TOTAL CLASS'!Q347","v":0},{"$f":"'FR-16(7)(v)-3 PROD Demand'!Q347+'FR-16(7)(v)-7 TRANS Demand'!Q347+'FR-16(7)(v)-11 DIST Demand'!Q347","v":0},{"$f":"'FR-16(7)(v)-4 PROD Energy'!Q347+'FR-16(7)(v)-8 TRANS Energy'!Q347+'FR-16(7)(v)-12 DIST Energy'!Q347","v":0},{"$f":"'FR-16(7)(v)-5 PROD Cust'!Q347+'FR-16(7)(v)-9 TRANS Cust'!Q347+'FR-16(7)(v)-13 DIST Cust'!Q347","v":0},0,0]
[13,null,{"$f":"'FR-16(7)(v)-1 Functional'!C348","v":"POST EMPLOYMENT BENEFITS - SFAS 112"},{"$f":"'FR-16(7)(v)-1 Functional'!D348","v":"A315"},null,{"$f":"'FR-16(7)(v)-14 TOTAL CLASS'!Q348","v":0},{"$f":"'FR-16(7)(v)-3 PROD Demand'!Q348+'FR-16(7)(v)-7 TRANS Demand'!Q348+'FR-16(7)(v)-11 DIST Demand'!Q348","v":0},{"$f":"'FR-16(7)(v)-4 PROD Energy'!Q348+'FR-16(7)(v)-8 TRANS Energy'!Q348+'FR-16(7)(v)-12 DIST Energy'!Q348","v":0},{"$f":"'FR-16(7)(v)-5 PROD Cust'!Q348+'FR-16(7)(v)-9 TRANS Cust'!Q348+'FR-16(7)(v)-13 DIST Cust'!Q348","v":0},0,0]
[14,null,{"$f":"'FR-16(7)(v)-1 Functional'!C349","v":"SUPPLEMENTAL PENSION PLAN"},{"$f":"'FR-16(7)(v)-1 Functional'!D349","v":"A315"},null,{"$f":"'FR-16(7)(v)-14 TOTAL CLASS'!Q349","v":0},{"$f":"'FR-16(7)(v)-3 PROD Demand'!Q349+'FR-16(7)(v)-7 TRANS Demand'!Q349+'FR-16(7)(v)-11 DIST Demand'!Q349","v":0},{"$f":"'FR-16(7)(v)-4 PROD Energy'!Q349+'FR-16(7)(v)-8 TRANS Energy'!Q349+'FR-16(7)(v)-12 DIST Energy'!Q349","v":0},{"$f":"'FR-16(7)(v)-5 PROD Cust'!Q349+'FR-16(7)(v)-9 TRANS Cust'!Q349+'FR-16(7)(v)-13 DIST Cust'!Q349","v":0},0,0]
[15,null,{"$f":"'FR-16(7)(v)-1 Functional'!C350","v":"INCENTIVE PLAN"},{"$f":"'FR-16(7)(v)-1 Functional'!D350","v":"A315"},null,{"$f":"'FR-16(7)(v)-14 TOTAL CLASS'!Q350","v":0},{"$f":"'FR-16(7)(v)-3 PROD Demand'!Q350+'FR-16(7)(v)-7 TRANS Demand'!Q350+'FR-16(7)(v)-11 DIST Demand'!Q350","v":0},{"$f":"'FR-16(7)(v)-4 PROD Energy'!Q350+'FR-16(7)(v)-8 TRANS Energy'!Q350+'FR-16(7)(v)-12 DIST Energy'!Q350","v":0},{"$f":"'FR-16(7)(v)-5 PROD Cust'!Q350+'FR-16(7)(v)-9 TRANS Cust'!Q350+'FR-16(7)(v)-13 DIST Cust'!Q350","v":0},0,0]
[16,null,{"$f":"'FR-16(7)(v)-1 Functional'!C351","v":"FEDERAL DEFERRED TAX RECEIVEABLE"},{"$f":"'FR-16(7)(v)-1 Functional'!D351","v":"A315"},null,{"$f":"'FR-16(7)(v)-14 TOTAL CLASS'!Q351","v":0},{"$f":"'FR-16(7)(v)-3 PROD Demand'!Q351+'FR-16(7)(v)-7 TRANS Demand'!Q351+'FR-16(7)(v)-11 DIST Demand'!Q351","v":0},{"$f":"'FR-16(7)(v)-4 PROD Energy'!Q351+'FR-16(7)(v)-8 TRANS Energy'!Q351+'FR-16(7)(v)-12 DIST Energy'!Q351","v":0},{"$f":"'FR-16(7)(v)-5 PROD Cust'!Q351+'FR-16(7)(v)-9 TRANS Cust'!Q351+'FR-16(7)(v)-13 DIST Cust'!Q351","v":0},0,0]
[17,null,{"$f":"'FR-16(7)(v)-1 Functional'!C352","v":"MISCELLANEOUS"},{"$f":"'FR-16(7)(v)-1 Functional'!D352","v":"A315"},null,{"$f":"'FR-16(7)(v)-14 TOTAL CLASS'!Q352","v":824},{"$f":"'FR-16(7)(v)-3 PROD Demand'!Q352+'FR-16(7)(v)-7 TRANS Demand'!Q352+'FR-16(7)(v)-11 DIST Demand'!Q352","v":288},{"$f":"'FR-16(7)(v)-4 PROD Energy'!Q352+'FR-16(7)(v)-8 TRANS Energy'!Q352+'FR-16(7)(v)-12 DIST Energy'!Q352","v":345},{"$f":"'FR-16(7)(v)-5 PROD Cust'!Q352+'FR-16(7)(v)-9 TRANS Cust'!Q352+'FR-16(7)(v)-13 DIST Cust'!Q352","v":191},824,0]
[18,null,{"$f":"'FR-16(7)(v)-1 Functional'!C353","v":"DEFERRED TAX"},{"$f":"'FR-16(7)(v)-1 Functional'!D353","v":"A315"},null,{"$f":"'FR-16(7)(v)-14 TOTAL CLASS'!Q353","v":375},{"$f":"'FR-16(7)(v)-3 PROD Demand'!Q353+'FR-16(7)(v)-7 TRANS Demand'!Q353+'FR-16(7)(v)-11 DIST Demand'!Q353","v":131},{"$f":"'FR-16(7)(v)-4 PROD Energy'!Q353+'FR-16(7)(v)-8 TRANS Energy'!Q353+'FR-16(7)(v)-12 DIST Energy'!Q353","v":157},{"$f":"'FR-16(7)(v)-5 PROD Cust'!Q353+'FR-16(7)(v)-9 TRANS Cust'!Q353+'FR-16(7)(v)-13 DIST Cust'!Q353","v":87},375,0]
[19,null,{"$f":"'FR-16(7)(v)-1 Functional'!C354","v":"NET OPERATING LOSS"},{"$f":"'FR-16(7)(v)-1 Functional'!D354","v":"NP29"},null,{"$f":"'FR-16(7)(v)-14 TOTAL CLASS'!Q354","v":0},{"$f":"'FR-16(7)(v)-3 PROD Demand'!Q354+'FR-16(7)(v)-7 TRANS Demand'!Q354+'FR-16(7)(v)-11 DIST Demand'!Q354","v":0},{"$f":"'FR-16(7)(v)-4 PROD Energy'!Q354+'FR-16(7)(v)-8 TRANS Energy'!Q354+'FR-16(7)(v)-12 DIST Energy'!Q354","v":0},{"$f":"'FR-16(7)(v)-5 PROD Cust'!Q354+'FR-16(7)(v)-9 TRANS Cust'!Q354+'FR-16(7)(v)-13 DIST Cust'!Q354","v":0},0,0]
[20,null,{"$f":"'FR-16(7)(v)-1 Functional'!C355","v":"401K INCENTIVE PLAN"},{"$f":"'FR-16(7)(v)-1 Functional'!D355","v":"A315"},null,{"$f":"'FR-16(7)(v)-14 TOTAL CLASS'!Q355","v":0},{"$f":"'FR-16(7)(v)-3 PROD Demand'!Q355+'FR-16(7)(v)-7 TRANS Demand'!Q355+'FR-16(7)(v)-11 DIST Demand'!Q355","v":0},{"$f":"'FR-16(7)(v)-4 PROD Energy'!Q355+'FR-16(7)(v)-8 TRANS Energy'!Q355+'FR-16(7)(v)-12 DIST Energy'!Q355","v":0},{"$f":"'FR-16(7)(v)-5 PROD Cust'!Q355+'FR-16(7)(v)-9 TRANS Cust'!Q355+'FR-16(7)(v)-13 DIST Cust'!Q355","v":0},0,0]
[21,null,{"$f":"'FR-16(7)(v)-1 Functional'!C356","v":"ENVIRONMENTAL RESERVE"},{"$f":"'FR-16(7)(v)-1 Functional'!D356","v":"NP29"},null,{"$f":"'FR-16(7)(v)-14 TOTAL CLASS'!Q356","v":0},{"$f":"'FR-16(7)(v)-3 PROD Demand'!Q356+'FR-16(7)(v)-7 TRANS Demand'!Q356+'FR-16(7)(v)-11 DIST Demand'!Q356","v":0},{"$f":"'FR-16(7)(v)-4 PROD Energy'!Q356+'FR-16(7)(v)-8 TRANS Energy'!Q356+'FR-16(7)(v)-12 DIST Energy'!Q356","v":0},{"$f":"'FR-16(7)(v)-5 PROD Cust'!Q356+'FR-16(7)(v)-9 TRANS Cust'!Q356+'FR-16(7)(v)-13 DIST Cust'!Q356","v":0},0,0]
[22,null,{"$f":"'FR-16(7)(v)-1 Functional'!C357","v":"VACATION PAY ACCRUALS"},{"$f":"'FR-16(7)(v)-1 Functional'!D357","v":"A315"},null,{"$f":"'FR-16(7)(v)-14 TOTAL CLASS'!Q357","v":40},{"$f":"'FR-16(7)(v)-3 PROD Demand'!Q357+'FR-16(7)(v)-7 TRANS Demand'!Q357+'FR-16(7)(v)-11 DIST Demand'!Q357","v":14},{"$f":"'FR-16(7)(v)-4 PROD Energy'!Q357+'FR-16(7)(v)-8 TRANS Energy'!Q357+'FR-16(7)(v)-12 DIST Energy'!Q357","v":17},{"$f":"'FR-16(7)(v)-5 PROD Cust'!Q357+'FR-16(7)(v)-9 TRANS Cust'!Q357+'FR-16(7)(v)-13 DIST Cust'!Q357","v":9},40,0]
[23,null,{"$f":"'FR-16(7)(v)-1 Functional'!C358","v":"DEMAND SIDE MANAGEMENT DEFERRAL"},{"$f":"'FR-16(7)(v)-1 Functional'!D358","v":"NP29"},null,{"$f":"'FR-16(7)(v)-14 TOTAL CLASS'!Q358","v":68},{"$f":"'FR-16(7)(v)-3 PROD Demand'!Q358+'FR-16(7)(v)-7 TRANS Demand'!Q358+'FR-16(7)(v)-11 DIST Demand'!Q358","v":62},{"$f":"'FR-16(7)(v)-4 PROD Energy'!Q358+'FR-16(7)(v)-8 TRANS Energy'!Q358+'FR-16(7)(v)-12 DIST Energy'!Q358","v":1},{"$f":"'FR-16(7)(v)-5 PROD Cust'!Q358+'FR-16(7)(v)-9 TRANS Cust'!Q358+'FR-16(7)(v)-13 DIST Cust'!Q358","v":5},68,0]
[24,null,{"$f":"'FR-16(7)(v)-1 Functional'!C359","v":"OPERATING LEASE OBLIGATION"},{"$f":"'FR-16(7)(v)-1 Functional'!D359","v":"NP29"},null,{"$f":"'FR-16(7)(v)-14 TOTAL CLASS'!Q359","v":252},{"$f":"'FR-16(7)(v)-3 PROD Demand'!Q359+'FR-16(7)(v)-7 TRANS Demand'!Q359+'FR-16(7)(v)-11 DIST Demand'!Q359","v":229},{"$f":"'FR-16(7)(v)-4 PROD Energy'!Q359+'FR-16(7)(v)-8 TRANS Energy'!Q359+'FR-16(7)(v)-12 DIST Energy'!Q359","v":3},{"$f":"'FR-16(7)(v)-5 PROD Cust'!Q359+'FR-16(7)(v)-9 TRANS Cust'!Q359+'FR-16(7)(v)-13 DIST Cust'!Q359","v":20},252,0]
[25,null,{"$f":"'FR-16(7)(v)-1 Functional'!C360","v":"INJURIES & DAMAGES"},{"$f":"'FR-16(7)(v)-1 Functional'!D360","v":"NP29"},null,{"$f":"'FR-16(7)(v)-14 TOTAL CLASS'!Q360","v":0},{"$f":"'FR-16(7)(v)-3 PROD Demand'!Q360+'FR-16(7)(v)-7 TRANS Demand'!Q360+'FR-16(7)(v)-11 DIST Demand'!Q360","v":0},{"$f":"'FR-16(7)(v)-4 PROD Energy'!Q360+'FR-16(7)(v)-8 TRANS Energy'!Q360+'FR-16(7)(v)-12 DIST Energy'!Q360","v":0},{"$f":"'FR-16(7)(v)-5 PROD Cust'!Q360+'FR-16(7)(v)-9 TRANS Cust'!Q360+'FR-16(7)(v)-13 DIST Cust'!Q360","v":0},0,0]
[26,null,{"$f":"'FR-16(7)(v)-1 Functional'!C361","v":"  TOTAL ACCOUNT 190"},null,null,{"$f":"SUM(F337:F360)","v":1842},822,641,379,1842,0]
[27]
[28," OTHER"]
[29,null,{"$f":"'FR-16(7)(v)-1 Functional'!C364","v":"RESERVED FOR FUTURE USE"},{"$f":"'FR-16(7)(v)-1 Functional'!D364","v":"NP29"},null,{"$f":"'FR-16(7)(v)-14 TOTAL CLASS'!Q364","v":0},{"$f":"'FR-16(7)(v)-3 PROD Demand'!Q364+'FR-16(7)(v)-7 TRANS Demand'!Q364+'FR-16(7)(v)-11 DIST Demand'!Q364","v":0},{"$f":"'FR-16(7)(v)-4 PROD Energy'!Q364+'FR-16(7)(v)-8 TRANS Energy'!Q364+'FR-16(7)(v)-12 DIST Energy'!Q364","v":0},{"$f":"'FR-16(7)(v)-5 PROD Cust'!Q364+'FR-16(7)(v)-9 TRANS Cust'!Q364+'FR-16(7)(v)-13 DIST Cust'!Q364","v":0},{"$f":"SUM(G364:I364)","v":0},{"$f":"F364-J364","v":0}]
[30,null,{"$f":"'FR-16(7)(v)-1 Functional'!C365","v":"RATE CASE EXPENSE REGULATORY ASSET"},{"$f":"'FR-16(7)(v)-1 Functional'!D365","v":"NP29"},null,{"$f":"'FR-16(7)(v)-14 TOTAL CLASS'!Q365","v":102},{"$f":"'FR-16(7)(v)-3 PROD Demand'!Q365+'FR-16(7)(v)-7 TRANS Demand'!Q365+'FR-16(7)(v)-11 DIST Demand'!Q365","v":93},{"$f":"'FR-16(7)(v)-4 PROD Energy'!Q365+'FR-16(7)(v)-8 TRANS Energy'!Q365+'FR-16(7)(v)-12 DIST Energy'!Q365","v":1},{"$f":"'FR-16(7)(v)-5 PROD Cust'!Q365+'FR-16(7)(v)-9 TRANS Cust'!Q365+'FR-16(7)(v)-13 DIST Cust'!Q365","v":8},{"$f":"SUM(G365:I365)","v":102},{"$f":"F365-J365","v":0}]
[31,null,{"$f":"'FR-16(7)(v)-1 Functional'!C366","v":"RESERVED FOR FUTURE USE"},{"$f":"'FR-16(7)(v)-1 Functional'!D366","v":"NP29"},null,{"$f":"'FR-16(7)(v)-14 TOTAL CLASS'!Q366","v":0},{"$f":"'FR-16(7)(v)-3 PROD Demand'!Q366+'FR-16(7)(v)-7 TRANS Demand'!Q366+'FR-16(7)(v)-11 DIST Demand'!Q366","v":0},{"$f":"'FR-16(7)(v)-4 PROD Energy'!Q366+'FR-16(7)(v)-8 TRANS Energy'!Q366+'FR-16(7)(v)-12 DIST Energy'!Q366","v":0},{"$f":"'FR-16(7)(v)-5 PROD Cust'!Q366+'FR-16(7)(v)-9 TRANS Cust'!Q366+'FR-16(7)(v)-13 DIST Cust'!Q366","v":0},{"$f":"SUM(G366:I366)","v":0},{"$f":"F366-J366","v":0}]
[32,null,{"$f":"'FR-16(7)(v)-1 Functional'!C367","v":"  OTHER"},null,null,{"$f":"SUM(F364:F366)","v":102},{"$f":"SUM(G363:G366)","v":93},{"$f":"SUM(H363:H366)","v":1},{"$f":"SUM(I363:I366)","v":8},{"$f":"SUM(J363:J366)","v":102},{"$f":"SUM(K363:K366)","v":0}]
[33,null,null,null,null," "]
[34,"CONSTRUCTION WORK IN PROGRESS"]
[35,null,{"$f":"'FR-16(7)(v)-1 Functional'!C370","v":"PRODUCTION"},{"$f":"'FR-16(7)(v)-1 Functional'!D370","v":"P129"},null,{"$f":"'FR-16(7)(v)-14 TOTAL CLASS'!Q370","v":0},{"$f":"'FR-16(7)(v)-3 PROD Demand'!Q370+'FR-16(7)(v)-7 TRANS Demand'!Q370+'FR-16(7)(v)-11 DIST Demand'!Q370","v":0},{"$f":"'FR-16(7)(v)-4 PROD Energy'!Q370+'FR-16(7)(v)-8 TRANS Energy'!Q370+'FR-16(7)(v)-12 DIST Energy'!Q370","v":0},{"$f":"'FR-16(7)(v)-5 PROD Cust'!Q370+'FR-16(7)(v)-9 TRANS Cust'!Q370+'FR-16(7)(v)-13 DIST Cust'!Q370","v":0},{"$f":"SUM(G370:I370)","v":0},{"$f":"F370-J370","v":0}]
[36,null,{"$f":"'FR-16(7)(v)-1 Functional'!C371","v":"TRANSMISSION"},{"$f":"'FR-16(7)(v)-1 Functional'!D371","v":"T129"},null,{"$f":"'FR-16(7)(v)-14 TOTAL CLASS'!Q371","v":0},{"$f":"'FR-16(7)(v)-3 PROD Demand'!Q371+'FR-16(7)(v)-7 TRANS Demand'!Q371+'FR-16(7)(v)-11 DIST Demand'!Q371","v":0},{"$f":"'FR-16(7)(v)-4 PROD Energy'!Q371+'FR-16(7)(v)-8 TRANS Energy'!Q371+'FR-16(7)(v)-12 DIST Energy'!Q371","v":0},{"$f":"'FR-16(7)(v)-5 PROD Cust'!Q371+'FR-16(7)(v)-9 TRANS Cust'!Q371+'FR-16(7)(v)-13 DIST Cust'!Q371","v":0},{"$f":"SUM(G371:I371)","v":0},{"$f":"F371-J371","v":0}]
[37,null,{"$f":"'FR-16(7)(v)-1 Functional'!C372","v":"DISTRIBUTION"},{"$f":"'FR-16(7)(v)-1 Functional'!D372","v":"D149"},null,{"$f":"'FR-16(7)(v)-14 TOTAL CLASS'!Q372","v":0},{"$f":"'FR-16(7)(v)-3 PROD Demand'!Q372+'FR-16(7)(v)-7 TRANS Demand'!Q372+'FR-16(7)(v)-11 DIST Demand'!Q372","v":0},{"$f":"'FR-16(7)(v)-4 PROD Energy'!Q372+'FR-16(7)(v)-8 TRANS Energy'!Q372+'FR-16(7)(v)-12 DIST Energy'!Q372","v":0},{"$f":"'FR-16(7)(v)-5 PROD Cust'!Q372+'FR-16(7)(v)-9 TRANS Cust'!Q372+'FR-16(7)(v)-13 DIST Cust'!Q372","v":0},{"$f":"SUM(G372:I372)","v":0},{"$f":"F372-J372","v":0}]
[38,null,{"$f":"'FR-16(7)(v)-1 Functional'!C373","v":"COMMON"},{"$f":"'FR-16(7)(v)-1 Functional'!D373","v":"C129"},null,{"$f":"'FR-16(7)(v)-14 TOTAL CLASS'!Q373","v":0},{"$f":"'FR-16(7)(v)-3 PROD Demand'!Q373+'FR-16(7)(v)-7 TRANS Demand'!Q373+'FR-16(7)(v)-11 DIST Demand'!Q373","v":0},{"$f":"'FR-16(7)(v)-4 PROD Energy'!Q373+'FR-16(7)(v)-8 TRANS Energy'!Q373+'FR-16(7)(v)-12 DIST Energy'!Q373","v":0},{"$f":"'FR-16(7)(v)-5 PROD Cust'!Q373+'FR-16(7)(v)-9 TRANS Cust'!Q373+'FR-16(7)(v)-13 DIST Cust'!Q373","v":0},{"$f":"SUM(G373:I373)","v":0},{"$f":"F373-J373","v":0}]
[39,null,{"$f":"'FR-16(7)(v)-1 Functional'!C374","v":"GENERAL"},{"$f":"'FR-16(7)(v)-1 Functional'!D374","v":"G129"},null,{"$f":"'FR-16(7)(v)-14 TOTAL CLASS'!Q374","v":0},{"$f":"'FR-16(7)(v)-3 PROD Demand'!Q374+'FR-16(7)(v)-7 TRANS Demand'!Q374+'FR-16(7)(v)-11 DIST Demand'!Q374","v":0},{"$f":"'FR-16(7)(v)-4 PROD Energy'!Q374+'FR-16(7)(v)-8 TRANS Energy'!Q374+'FR-16(7)(v)-12 DIST Energy'!Q374","v":0},{"$f":"'FR-16(7)(v)-5 PROD Cust'!Q374+'FR-16(7)(v)-9 TRANS Cust'!Q374+'FR-16(7)(v)-13 DIST Cust'!Q374","v":0},{"$f":"SUM(G374:I374)","v":0},{"$f":"F374-J374","v":0}]
[40,null,{"$f":"'FR-16(7)(v)-1 Functional'!C375","v":"TOTAL CONSTRUCTION WORK IN PROGRESS"},null,null,{"$f":"SUM(F370:F374)","v":0},0,0,0,0,0]
[41]
[42,{"$f":"'FR-16(7)(v)-1 Functional'!B377","v":"TOTAL ADDITIVE RATE BASE ADJUSTMENTS"},null,null,null,{"$f":"F361+F367+F375","v":1944},915,642,387,1944,0]
[]
[{"$f":"co_name","v":"DUKE ENERGY KENTUCKY, INC."},null,null,null,null,null,null,null,null,{"$f":"J1","v":"FR-16(7)(v)-25"}]
[{"$f":"$A$2","v":"OTHER WP CLASSIFIED - ELECTRIC COST OF SERVICE"},null,null,null,null,null,null,null,null,{"$f":"J2","v":"WITNESS RESPONSIBLE:"}]
[{"$f":"case_name","v":"CASE NO: 2019-00271"},null,null,null,null,null,null,null,null,{"$f":"Witness","v":"JAMES E. ZIOLKOWSKI"}]
[{"$f":"data_filing","v":"DATA: 12 MONTHS ACTUAL  & 0 MONTHS ESTIMATED"},null,null,null,null,null,null,null,null,{"$f":"\"PAGE \"&Pages2-8&\" OF \"&Pages2","v":"PAGE 7 OF 15"}]
[{"$f":"type","v":"TYPE OF FILING: \"X\" ORIGINAL   UPDATED    REVISED  "}]
[]
[]
["LINE",null,null,null,null,"TOTAL","CLASSIFIED",null,null,"TOTAL","ALL"]
["NO.","WORKING CAPITAL",null,"ALLO",null,{"$f":"$F$9","v":"OTHER WP"},{"$f":"G9","v":"DEMAND"},"ENERGY","CUSTOMER","AT ISSUE","OTHER"]
[null,null,"Schedule 5.2",null,null,null,3,4,5]
[]
[1,"NET ORIGINAL COST RATE BASE",null,null,null,{"$f":"F277-F324+F377","v":96536},87511,764,8261,96536,0]
[2]
[3,"WORKING CAPITAL"]
[4]
[5,"PLANT MATERIALS & SUPPLIES"]
[6,null,{"$f":"'FR-16(7)(v)-1 Functional'!C395","v":"OTHER MATERIALS & SUPPLIES"},{"$f":"'FR-16(7)(v)-1 Functional'!D395","v":"PD29"},null,{"$f":"'FR-16(7)(v)-14 TOTAL CLASS'!Q395","v":2179},{"$f":"'FR-16(7)(v)-3 PROD Demand'!Q395+'FR-16(7)(v)-7 TRANS Demand'!Q395+'FR-16(7)(v)-11 DIST Demand'!Q395","v":840},{"$f":"'FR-16(7)(v)-4 PROD Energy'!Q395+'FR-16(7)(v)-8 TRANS Energy'!Q395+'FR-16(7)(v)-12 DIST Energy'!Q395","v":580},{"$f":"'FR-16(7)(v)-5 PROD Cust'!Q395+'FR-16(7)(v)-9 TRANS Cust'!Q395+'FR-16(7)(v)-13 DIST Cust'!Q395","v":759},{"$f":"SUM(G395:I395)","v":2179},{"$f":"F395-J395","v":0}]
[7,null,{"$f":"'FR-16(7)(v)-1 Functional'!C396","v":"FUEL"},{"$f":"'FR-16(7)(v)-1 Functional'!D396","v":"K301"},null,{"$f":"'FR-16(7)(v)-14 TOTAL CLASS'!Q396","v":2147},{"$f":"'FR-16(7)(v)-3 PROD Demand'!Q396+'FR-16(7)(v)-7 TRANS Demand'!Q396+'FR-16(7)(v)-11 DIST Demand'!Q396","v":0},{"$f":"'FR-16(7)(v)-4 PROD Energy'!Q396+'FR-16(7)(v)-8 TRANS Energy'!Q396+'FR-16(7)(v)-12 DIST Energy'!Q396","v":2147},{"$f":"'FR-16(7)(v)-5 PROD Cust'!Q396+'FR-16(7)(v)-9 TRANS Cust'!Q396+'FR-16(7)(v)-13 DIST Cust'!Q396","v":0},{"$f":"SUM(G396:I396)","v":2147},{"$f":"F396-J396","v":0}]
[8,null,{"$f":"'FR-16(7)(v)-1 Functional'!C397","v":"EMISSION ALLOWANCES"},{"$f":"'FR-16(7)(v)-1 Functional'!D397","v":"K301"},null,{"$f":"'FR-16(7)(v)-14 TOTAL CLASS'!Q397","v":0},{"$f":"'FR-16(7)(v)-3 PROD Demand'!Q397+'FR-16(7)(v)-7 TRANS Demand'!Q397+'FR-16(7)(v)-11 DIST Demand'!Q397","v":0},{"$f":"'FR-16(7)(v)-4 PROD Energy'!Q397+'FR-16(7)(v)-8 TRANS Energy'!Q397+'FR-16(7)(v)-12 DIST Energy'!Q397","v":0},{"$f":"'FR-16(7)(v)-5 PROD Cust'!Q397+'FR-16(7)(v)-9 TRANS Cust'!Q397+'FR-16(7)(v)-13 DIST Cust'!Q397","v":0},{"$f":"SUM(G397:I397)","v":0},{"$f":"F397-J397","v":0}]
[9,null,{"$f":"'FR-16(7)(v)-1 Functional'!C398","v":"  TOTAL PLANT MATS. & SUPPLIES"},null,null,{"$f":"SUM(F394:F397)","v":4326},840,2727,759,4326,0]
[10,"TOTAL MATERIALS & SUPPLIES",null,null,null,{"$f":"F398","v":4326},840,2727,759,4326,0]
[11]
[12,"PREPAYMENTS"]
[13,null,{"$f":"'FR-16(7)(v)-1 Functional'!C402","v":"INSURANCE GENERAL"},{"$f":"'FR-16(7)(v)-1 Functional'!D402","v":"NP29"},null,{"$f":"'FR-16(7)(v)-14 TOTAL CLASS'!Q402","v":29},{"$f":"'FR-16(7)(v)-3 PROD Demand'!Q402+'FR-16(7)(v)-7 TRANS Demand'!Q402+'FR-16(7)(v)-11 DIST Demand'!Q402","v":27},{"$f":"'FR-16(7)(v)-4 PROD Energy'!Q402+'FR-16(7)(v)-8 TRANS Energy'!Q402+'FR-16(7)(v)-12 DIST Energy'!Q402","v":0},{"$f":"'FR-16(7)(v)-5 PROD Cust'!Q402+'FR-16(7)(v)-9 TRANS Cust'!Q402+'FR-16(7)(v)-13 DIST Cust'!Q402","v":2},{"$f":"SUM(G402:I402)","v":29},{"$f":"F402-J402","v":0}]
[14,null,{"$f":"'FR-16(7)(v)-1 Functional'!C403","v":"EXCISE TAX"},{"$f":"'FR-16(7)(v)-1 Functional'!D403","v":"NP29"},null,{"$f":"'FR-16(7)(v)-14 TOTAL CLASS'!Q403","v":0},{"$f":"'FR-16(7)(v)-3 PROD Demand'!Q403+'FR-16(7)(v)-7 TRANS Demand'!Q403+'FR-16(7)(v)-11 DIST Demand'!Q403","v":0},{"$f":"'FR-16(7)(v)-4 PROD Energy'!Q403+'FR-16(7)(v)-8 TRANS Energy'!Q403+'FR-16(7)(v)-12 DIST Energy'!Q403","v":0},{"$f":"'FR-16(7)(v)-5 PROD Cust'!Q403+'FR-16(7)(v)-9 TRANS Cust'!Q403+'FR-16(7)(v)-13 DIST Cust'!Q403","v":0},{"$f":"SUM(G403:I403)","v":0},{"$f":"F403-J403","v":0}]
[15,null,{"$f":"'FR-16(7)(v)-1 Functional'!C404","v":"COLLATERAL ASSET"},{"$f":"'FR-16(7)(v)-1 Functional'!D404","v":"K301"},null,{"$f":"'FR-16(7)(v)-14 TOTAL CLASS'!Q404","v":-5},{"$f":"'FR-16(7)(v)-3 PROD Demand'!Q404+'FR-16(7)(v)-7 TRANS Demand'!Q404+'FR-16(7)(v)-11 DIST Demand'!Q404","v":0},{"$f":"'FR-16(7)(v)-4 PROD Energy'!Q404+'FR-16(7)(v)-8 TRANS Energy'!Q404+'FR-16(7)(v)-12 DIST Energy'!Q404","v":-5},{"$f":"'FR-16(7)(v)-5 PROD Cust'!Q404+'FR-16(7)(v)-9 TRANS Cust'!Q404+'FR-16(7)(v)-13 DIST Cust'!Q404","v":0},{"$f":"SUM(G404:I404)","v":-5},{"$f":"F404-J404","v":0}]
[16,null,{"$f":"'FR-16(7)(v)-1 Functional'!C405","v":"  TOTAL PREPAYMENTS"},null,null,{"$f":"SUM(F401:F404)","v":24},27,-5,2,24,0]
[17]
[18,"AUTO CALC (O&M-ELECTRIC FUEL COST)/8",null,null,null,{"$f":"IF(WorkingCap=\"No\",0,ROUND((F549-F447-F448)/8,0))","v":0},{"$f":"F407-SUM(H407:I407)","v":0},{"$f":"IF(WorkingCap=\"No\",0,ROUND((H549-H447-H448)/8,0))","v":0},{"$f":"IF(WorkingCap=\"No\",0,ROUND((I549-I447-I448)/8,0))","v":0},{"$f":"SUM(G407:I407)","v":0},{"$f":"F407-J407","v":0}]
[19,"  TOTAL WORKING CASH",null,null,null,{"$f":"F407","v":0},0,0,0,0,0]
[20]
[21,"MISCELLANEOUS WORKING CAPITAL"]
[22,null,{"$f":"'FR-16(7)(v)-1 Functional'!C411","v":"RESERVED FOR FUTURE USE"},{"$f":"'FR-16(7)(v)-1 Functional'!D411","v":"K301"},null,{"$f":"'FR-16(7)(v)-14 TOTAL CLASS'!Q411","v":0},{"$f":"'FR-16(7)(v)-3 PROD Demand'!Q411+'FR-16(7)(v)-7 TRANS Demand'!Q411+'FR-16(7)(v)-11 DIST Demand'!Q411","v":0},{"$f":"'FR-16(7)(v)-4 PROD Energy'!Q411+'FR-16(7)(v)-8 TRANS Energy'!Q411+'FR-16(7)(v)-12 DIST Energy'!Q411","v":0},{"$f":"'FR-16(7)(v)-5 PROD Cust'!Q411+'FR-16(7)(v)-9 TRANS Cust'!Q411+'FR-16(7)(v)-13 DIST Cust'!Q411","v":0},{"$f":"SUM(G411:I411)","v":0},{"$f":"F411-J411","v":0}]
[23,null,{"$f":"'FR-16(7)(v)-1 Functional'!C412","v":"PIPP UNCOLLECTIBLES"},{"$f":"'FR-16(7)(v)-1 Functional'!D412","v":"A315"},null,{"$f":"'FR-16(7)(v)-14 TOTAL CLASS'!Q412","v":0},{"$f":"'FR-16(7)(v)-3 PROD Demand'!Q412+'FR-16(7)(v)-7 TRANS Demand'!Q412+'FR-16(7)(v)-11 DIST Demand'!Q412","v":0},{"$f":"'FR-16(7)(v)-4 PROD Energy'!Q412+'FR-16(7)(v)-8 TRANS Energy'!Q412+'FR-16(7)(v)-12 DIST Energy'!Q412","v":0},{"$f":"'FR-16(7)(v)-5 PROD Cust'!Q412+'FR-16(7)(v)-9 TRANS Cust'!Q412+'FR-16(7)(v)-13 DIST Cust'!Q412","v":0},{"$f":"SUM(G412:I412)","v":0},{"$f":"F412-J412","v":0}]
[24,null,{"$f":"'FR-16(7)(v)-1 Functional'!C413","v":"RESERVED FOR FUTURE USE"},{"$f":"'FR-16(7)(v)-1 Functional'!D413","v":"D249"},null,{"$f":"'FR-16(7)(v)-14 TOTAL CLASS'!Q413","v":0},{"$f":"'FR-16(7)(v)-3 PROD Demand'!Q413+'FR-16(7)(v)-7 TRANS Demand'!Q413+'FR-16(7)(v)-11 DIST Demand'!Q413","v":0},{"$f":"'FR-16(7)(v)-4 PROD Energy'!Q413+'FR-16(7)(v)-8 TRANS Energy'!Q413+'FR-16(7)(v)-12 DIST Energy'!Q413","v":0},{"$f":"'FR-16(7)(v)-5 PROD Cust'!Q413+'FR-16(7)(v)-9 TRANS Cust'!Q413+'FR-16(7)(v)-13 DIST Cust'!Q413","v":0},{"$f":"SUM(G413:I413)","v":0},{"$f":"F413-J413","v":0}]
[25,null,{"$f":"'FR-16(7)(v)-1 Functional'!C414","v":"  TOTAL MISC WORK CAPITAL"},null,null,{"$f":"SUM(F410:F413)","v":0},0,0,0,0,0]
[26]
[27,"TOTAL WORKING CAPITAL",null,null,null,{"$f":"F399+F405+F408+F414","v":4350},867,2722,761,4350,0]
[28,"PRELIMINARY SUMMARY"]
[29,null,{"$f":"'FR-16(7)(v)-1 Functional'!C418","v":"TOTAL ACCUMULATED DEFERRED INCOME TAXES"},null,null,{"$f":"-F324","v":-30433},-26336,-1600,-2497,-30433,0]
[30,null,{"$f":"'FR-16(7)(v)-1 Functional'!C419","v":"TOTAL OTHER ACCUMULATED DEFERRED INCOME TAXES"},null,null,{"$f":"F377","v":1944},915,642,387,1944,0]
[31,null,{"$f":"'FR-16(7)(v)-1 Functional'!C420","v":"TOTAL WORKING CAPITAL"},null,null,{"$f":"F416","v":4350},867,2722,761,4350,0]
[32,null,{"$f":"'FR-16(7)(v)-1 Functional'!C421","v":"  TOTAL RATE BASE ADJUSTMENTS"},null,null,{"$f":"SUM(F417:F420)","v":-24139},-24554,1764,-1349,-24139,0]
[33]
[34,"RATE BASE CALCULATION"]
[35,null,{"$f":"'FR-16(7)(v)-1 Functional'!C424","v":"NET ELECTRIC PLANT IN SERVICE"},null,null,{"$f":"F277","v":125025},112932,1722,10371,125025,0]
[36,null,{"$f":"'FR-16(7)(v)-1 Functional'!C425","v":"TOTAL RATE BASE ADJUSTMENTS"},null,null,{"$f":"F421","v":-24139},-24554,1764,-1349,-24139,0]
[37,null,{"$f":"'FR-16(7)(v)-1 Functional'!C426","v":"  TOTAL RATE BASE"},null,null,{"$f":"SUM(F423:F425)","v":100886},88378,3486,9022,100886,0]
[38]
[39,"TOTAL RATE OF RETURN ALLOWABLE",null,null,null,{"$f":"$F$811","v":6.7100000000000007E-2},{"$f":"F811","v":6.7100000000000007E-2},{"$f":"F811","v":6.7100000000000007E-2},{"$f":"F811","v":6.7100000000000007E-2},{"$f":"F811","v":6.7100000000000007E-2}]
[40,"RETURN ON RATE BASE",null,null,null,{"$f":"ROUND(F428*F426,0)","v":6769},{"$f":"F429-SUM(H429:I429)","v":5930},{"$f":"ROUND(H426*H428,0)","v":234},{"$f":"ROUND(I426*I428,0)","v":605},{"$f":"SUM(G429:I429)","v":6769},{"$f":"ROUND(K426*K428,0)","v":0}]
[41]
[42,{"$f":"'FR-16(7)(v)-1 Functional'!B431","v":"ELECTRIC RATE BASE"},null,{"$f":"'FR-16(7)(v)-1 Functional'!D431","v":"RB99"},null,{"$f":"'FR-16(7)(v)-14 TOTAL CLASS'!Q431","v":103178},{"$f":"'FR-16(7)(v)-3 PROD Demand'!Q431+'FR-16(7)(v)-7 TRANS Demand'!Q431+'FR-16(7)(v)-11 DIST Demand'!Q431","v":90394},{"$f":"'FR-16(7)(v)-4 PROD Energy'!Q431+'FR-16(7)(v)-8 TRANS Energy'!Q431+'FR-16(7)(v)-12 DIST Energy'!Q431","v":3489},{"$f":"'FR-16(7)(v)-5 PROD Cust'!Q431+'FR-16(7)(v)-9 TRANS Cust'!Q431+'FR-16(7)(v)-13 DIST Cust'!Q431","v":9295},{"$f":"SUM(G431:I431)","v":103178},{"$f":"F431-J431","v":0}]
[43,{"$f":"'FR-16(7)(v)-1 Functional'!B432","v":"TOTAL RATE OF RETURN ALLOWABLE"},null,null,null,{"$f":"RofR","v":6.7110000000000003E-2},{"$f":"RofR","v":6.7110000000000003E-2},{"$f":"RofR","v":6.7110000000000003E-2},{"$f":"RofR","v":6.7110000000000003E-2},{"$f":"RofR","v":6.7110000000000003E-2}]
[44,{"$f":"'FR-16(7)(v)-1 Functional'!B433","v":"RETURN ON RATE BASE"},null,null,null,{"$f":"ROUND(F431*F432,0)","v":6924},{"$f":"F433-H433-I433","v":6066},{"$f":"ROUND(H431*H432,0)","v":234},{"$f":"ROUND(I431*I432,0)","v":624},{"$f":"ROUND(J431*J432,0)","v":6924},{"$f":"F433-J433","v":0}]
[]
[{"$f":"co_name","v":"DUKE ENERGY KENTUCKY, INC."},null,null,null,null,null,null,null,null,{"$f":"J1","v":"FR-16(7)(v)-25"}]
[{"$f":"$A$2","v":"OTHER WP CLASSIFIED - ELECTRIC COST OF SERVICE"},null,null,null,null,null,null,null,null,{"$f":"J2","v":"WITNESS RESPONSIBLE:"}]
[{"$f":"case_name","v":"CASE NO: 2019-00271"},null,null,null,null,null,null,null,null,{"$f":"Witness","v":"JAMES E. ZIOLKOWSKI"}]
[{"$f":"data_filing","v":"DATA: 12 MONTHS ACTUAL  & 0 MONTHS ESTIMATED"},null,null,null,null,null,null,null,null,{"$f":"\"PAGE \"&Pages2-7&\" OF \"&Pages2","v":"PAGE 8 OF 15"}]
[{"$f":"type","v":"TYPE OF FILING: \"X\" ORIGINAL   UPDATED    REVISED  "}]
[]
[]
["LINE",null,null,null,null,"TOTAL","CLASSIFIED",null,null,"TOTAL","ALL"]
["NO.","O&M EXPENSES",null,"ALLO",null,{"$f":"$F$9","v":"OTHER WP"},{"$f":"G9","v":"DEMAND"},"ENERGY","CUSTOMER","AT ISSUE","OTHER"]
[null,null,"Schedule 6",null,null,null,3,4,5]
[1,"PRODUCTION O&M"]
[2,{"$f":"'FR-16(7)(v)-1 Functional'!B446","v":"ENERGY RELATED PRODUCTION O&M"}]
[3,null,{"$f":"'FR-16(7)(v)-1 Functional'!C447","v":"FUEL"},{"$f":"'FR-16(7)(v)-1 Functional'!D447","v":"K302"},null,{"$f":"'FR-16(7)(v)-14 TOTAL CLASS'!Q447","v":0},{"$f":"'FR-16(7)(v)-3 PROD Demand'!Q447+'FR-16(7)(v)-7 TRANS Demand'!Q447+'FR-16(7)(v)-11 DIST Demand'!Q447","v":0},{"$f":"'FR-16(7)(v)-4 PROD Energy'!Q447+'FR-16(7)(v)-8 TRANS Energy'!Q447+'FR-16(7)(v)-12 DIST Energy'!Q447","v":0},{"$f":"'FR-16(7)(v)-5 PROD Cust'!Q447+'FR-16(7)(v)-9 TRANS Cust'!Q447+'FR-16(7)(v)-13 DIST Cust'!Q447","v":0},{"$f":"SUM(G447:I447)","v":0},{"$f":"F447-J447","v":0}]
[4,null,{"$f":"'FR-16(7)(v)-1 Functional'!C448","v":"FUEL AND PURCHASED POWER ADJUSTMENT"},{"$f":"'FR-16(7)(v)-1 Functional'!D448","v":"K302"},null,{"$f":"'FR-16(7)(v)-14 TOTAL CLASS'!Q448","v":11042},{"$f":"'FR-16(7)(v)-3 PROD Demand'!Q448+'FR-16(7)(v)-7 TRANS Demand'!Q448+'FR-16(7)(v)-11 DIST Demand'!Q448","v":0},{"$f":"'FR-16(7)(v)-4 PROD Energy'!Q448+'FR-16(7)(v)-8 TRANS Energy'!Q448+'FR-16(7)(v)-12 DIST Energy'!Q448","v":11042},{"$f":"'FR-16(7)(v)-5 PROD Cust'!Q448+'FR-16(7)(v)-9 TRANS Cust'!Q448+'FR-16(7)(v)-13 DIST Cust'!Q448","v":0},11042,0]
[5,null,{"$f":"'FR-16(7)(v)-1 Functional'!C449","v":"EMISSION ALLOWANCES"},{"$f":"'FR-16(7)(v)-1 Functional'!D449","v":"K301"},null,{"$f":"'FR-16(7)(v)-14 TOTAL CLASS'!Q449","v":0},{"$f":"'FR-16(7)(v)-3 PROD Demand'!Q449+'FR-16(7)(v)-7 TRANS Demand'!Q449+'FR-16(7)(v)-11 DIST Demand'!Q449","v":0},{"$f":"'FR-16(7)(v)-4 PROD Energy'!Q449+'FR-16(7)(v)-8 TRANS Energy'!Q449+'FR-16(7)(v)-12 DIST Energy'!Q449","v":0},{"$f":"'FR-16(7)(v)-5 PROD Cust'!Q449+'FR-16(7)(v)-9 TRANS Cust'!Q449+'FR-16(7)(v)-13 DIST Cust'!Q449","v":0},0,0]
[6,null,{"$f":"'FR-16(7)(v)-1 Functional'!C450","v":"ELIMINATE EMISSION ALLOW & OTHER VAR COST"},{"$f":"'FR-16(7)(v)-1 Functional'!D450","v":"K301"},null,{"$f":"'FR-16(7)(v)-14 TOTAL CLASS'!Q450","v":0},{"$f":"'FR-16(7)(v)-3 PROD Demand'!Q450+'FR-16(7)(v)-7 TRANS Demand'!Q450+'FR-16(7)(v)-11 DIST Demand'!Q450","v":0},{"$f":"'FR-16(7)(v)-4 PROD Energy'!Q450+'FR-16(7)(v)-8 TRANS Energy'!Q450+'FR-16(7)(v)-12 DIST Energy'!Q450","v":0},{"$f":"'FR-16(7)(v)-5 PROD Cust'!Q450+'FR-16(7)(v)-9 TRANS Cust'!Q450+'FR-16(7)(v)-13 DIST Cust'!Q450","v":0},0,0]
[7,null,{"$f":"'FR-16(7)(v)-1 Functional'!C451","v":"OTHER PRODUCTION EXPENSE - MAINTENANCE"},{"$f":"'FR-16(7)(v)-1 Functional'!D451","v":"K301"},null,{"$f":"'FR-16(7)(v)-14 TOTAL CLASS'!Q451","v":4475},{"$f":"'FR-16(7)(v)-3 PROD Demand'!Q451+'FR-16(7)(v)-7 TRANS Demand'!Q451+'FR-16(7)(v)-11 DIST Demand'!Q451","v":0},{"$f":"'FR-16(7)(v)-4 PROD Energy'!Q451+'FR-16(7)(v)-8 TRANS Energy'!Q451+'FR-16(7)(v)-12 DIST Energy'!Q451","v":4475},{"$f":"'FR-16(7)(v)-5 PROD Cust'!Q451+'FR-16(7)(v)-9 TRANS Cust'!Q451+'FR-16(7)(v)-13 DIST Cust'!Q451","v":0},4475,0]
[8,null,{"$f":"'FR-16(7)(v)-1 Functional'!C452","v":"MISO TRANSMISSION CHARGES - ACCT 555"},{"$f":"'FR-16(7)(v)-1 Functional'!D452","v":"K301"},null,{"$f":"'FR-16(7)(v)-14 TOTAL CLASS'!Q452","v":0},{"$f":"'FR-16(7)(v)-3 PROD Demand'!Q452+'FR-16(7)(v)-7 TRANS Demand'!Q452+'FR-16(7)(v)-11 DIST Demand'!Q452","v":0},{"$f":"'FR-16(7)(v)-4 PROD Energy'!Q452+'FR-16(7)(v)-8 TRANS Energy'!Q452+'FR-16(7)(v)-12 DIST Energy'!Q452","v":0},{"$f":"'FR-16(7)(v)-5 PROD Cust'!Q452+'FR-16(7)(v)-9 TRANS Cust'!Q452+'FR-16(7)(v)-13 DIST Cust'!Q452","v":0},0,0]
[9,null,{"$f":"'FR-16(7)(v)-1 Functional'!C453","v":"  TOTAL ENERGY RELATED"},null,null,{"$f":"SUM(F447:F452)","v":15517},0,15517,0,15517,0]
[10]
[11,"DEMAND RELATED & OTHER PROD O&M"]
[12,null,{"$f":"'FR-16(7)(v)-1 Functional'!C456","v":"OTHER PRODUCTION EXPENSES - OPERATIONS"},{"$f":"'FR-16(7)(v)-1 Functional'!D456","v":"K201"},null,{"$f":"'FR-16(7)(v)-14 TOTAL CLASS'!Q456","v":0},{"$f":"'FR-16(7)(v)-3 PROD Demand'!Q456+'FR-16(7)(v)-7 TRANS Demand'!Q456+'FR-16(7)(v)-11 DIST Demand'!Q456","v":0},{"$f":"'FR-16(7)(v)-4 PROD Energy'!Q456+'FR-16(7)(v)-8 TRANS Energy'!Q456+'FR-16(7)(v)-12 DIST Energy'!Q456","v":0},{"$f":"'FR-16(7)(v)-5 PROD Cust'!Q456+'FR-16(7)(v)-9 TRANS Cust'!Q456+'FR-16(7)(v)-13 DIST Cust'!Q456","v":0},{"$f":"SUM(G456:I456)","v":0},{"$f":"F456-J456","v":0}]
[13,null,{"$f":"'FR-16(7)(v)-1 Functional'!C457","v":"  TOTAL DEMAND REL & OTH PROD O&M "},null,null,{"$f":"SUM(F455:F456)","v":0},0,0,0,0,0]
[14]
[15,"TOTAL PRODUCTION O&M",null,null," ",{"$f":"F457+F453","v":15517},0,15517,0,15517,0]
[16]
[17,"TRANSMISSION O & M"]
[18,null,{"$f":"'FR-16(7)(v)-1 Functional'!C462","v":"TRANSFORMER LEASE PAYMENTS"},{"$f":"'FR-16(7)(v)-1 Functional'!D462","v":"K202"},null,{"$f":"'FR-16(7)(v)-14 TOTAL CLASS'!Q462","v":0},{"$f":"'FR-16(7)(v)-3 PROD Demand'!Q462+'FR-16(7)(v)-7 TRANS Demand'!Q462+'FR-16(7)(v)-11 DIST Demand'!Q462","v":0},{"$f":"'FR-16(7)(v)-4 PROD Energy'!Q462+'FR-16(7)(v)-8 TRANS Energy'!Q462+'FR-16(7)(v)-12 DIST Energy'!Q462","v":0},{"$f":"'FR-16(7)(v)-5 PROD Cust'!Q462+'FR-16(7)(v)-9 TRANS Cust'!Q462+'FR-16(7)(v)-13 DIST Cust'!Q462","v":0},{"$f":"SUM(G462:I462)","v":0},{"$f":"F462-J462","v":0}]
[19,null,{"$f":"'FR-16(7)(v)-1 Functional'!C463","v":"OTHER TRANSMISSION"},{"$f":"'FR-16(7)(v)-1 Functional'!D463","v":"K202"},null,{"$f":"'FR-16(7)(v)-14 TOTAL CLASS'!Q463","v":2547},{"$f":"'FR-16(7)(v)-3 PROD Demand'!Q463+'FR-16(7)(v)-7 TRANS Demand'!Q463+'FR-16(7)(v)-11 DIST Demand'!Q463","v":2547},{"$f":"'FR-16(7)(v)-4 PROD Energy'!Q463+'FR-16(7)(v)-8 TRANS Energy'!Q463+'FR-16(7)(v)-12 DIST Energy'!Q463","v":0},{"$f":"'FR-16(7)(v)-5 PROD Cust'!Q463+'FR-16(7)(v)-9 TRANS Cust'!Q463+'FR-16(7)(v)-13 DIST Cust'!Q463","v":0},{"$f":"SUM(G463:I463)","v":2547},{"$f":"F463-J463","v":0}]
[20,null,{"$f":"'FR-16(7)(v)-1 Functional'!C464","v":"MISCELLANEOUS ADJUSTMENTS"},{"$f":"'FR-16(7)(v)-1 Functional'!D464","v":"K202"},null,{"$f":"'FR-16(7)(v)-14 TOTAL CLASS'!Q464","v":0},{"$f":"'FR-16(7)(v)-3 PROD Demand'!Q464+'FR-16(7)(v)-7 TRANS Demand'!Q464+'FR-16(7)(v)-11 DIST Demand'!Q464","v":0},{"$f":"'FR-16(7)(v)-4 PROD Energy'!Q464+'FR-16(7)(v)-8 TRANS Energy'!Q464+'FR-16(7)(v)-12 DIST Energy'!Q464","v":0},{"$f":"'FR-16(7)(v)-5 PROD Cust'!Q464+'FR-16(7)(v)-9 TRANS Cust'!Q464+'FR-16(7)(v)-13 DIST Cust'!Q464","v":0},{"$f":"SUM(G464:I464)","v":0},{"$f":"F464-J464","v":0}]
[21,null,{"$f":"'FR-16(7)(v)-1 Functional'!C465","v":"NETWORK SERVICE RATES ADJUSTMENT"},{"$f":"'FR-16(7)(v)-1 Functional'!D465","v":"K202"},null,{"$f":"'FR-16(7)(v)-14 TOTAL CLASS'!Q465","v":0},{"$f":"'FR-16(7)(v)-3 PROD Demand'!Q465+'FR-16(7)(v)-7 TRANS Demand'!Q465+'FR-16(7)(v)-11 DIST Demand'!Q465","v":0},{"$f":"'FR-16(7)(v)-4 PROD Energy'!Q465+'FR-16(7)(v)-8 TRANS Energy'!Q465+'FR-16(7)(v)-12 DIST Energy'!Q465","v":0},{"$f":"'FR-16(7)(v)-5 PROD Cust'!Q465+'FR-16(7)(v)-9 TRANS Cust'!Q465+'FR-16(7)(v)-13 DIST Cust'!Q465","v":0},{"$f":"SUM(G465:I465)","v":0},{"$f":"F465-J465","v":0}]
[22,null,{"$f":"'FR-16(7)(v)-1 Functional'!C466","v":"  TOTAL TRANSMISSION O & M"},null,null,{"$f":"SUM(F462:F465)","v":2547},2547,0,0,2547,0]
[23]
[24,"REGIONAL MARKET O&M"]
[25,null,{"$f":"'FR-16(7)(v)-1 Functional'!C469","v":"MARKET FACILITATION - MONITORING & COMPLIANCE"},{"$f":"'FR-16(7)(v)-1 Functional'!D469","v":"K202"},null,{"$f":"'FR-16(7)(v)-14 TOTAL CLASS'!Q469","v":201},{"$f":"'FR-16(7)(v)-3 PROD Demand'!Q469+'FR-16(7)(v)-7 TRANS Demand'!Q469+'FR-16(7)(v)-11 DIST Demand'!Q469","v":201},{"$f":"'FR-16(7)(v)-4 PROD Energy'!Q469+'FR-16(7)(v)-8 TRANS Energy'!Q469+'FR-16(7)(v)-12 DIST Energy'!Q469","v":0},{"$f":"'FR-16(7)(v)-5 PROD Cust'!Q469+'FR-16(7)(v)-9 TRANS Cust'!Q469+'FR-16(7)(v)-13 DIST Cust'!Q469","v":0},{"$f":"SUM(G469:I469)","v":201},{"$f":"F469-J469","v":0}]
[26,null,{"$f":"'FR-16(7)(v)-1 Functional'!C470","v":"TOTAL REGIONAL MARKET O&M"},null,null,{"$f":"SUM(F468:F469)","v":201},201,0,0,201,0]
[27]
[28,"DISTRIBUTION O & M"]
[29,null,{"$f":"'FR-16(7)(v)-1 Functional'!C473","v":"SUBSTATIONS"},{"$f":"'FR-16(7)(v)-1 Functional'!D473","v":"K201"},null,{"$f":"'FR-16(7)(v)-14 TOTAL CLASS'!Q473","v":68},{"$f":"'FR-16(7)(v)-3 PROD Demand'!Q473+'FR-16(7)(v)-7 TRANS Demand'!Q473+'FR-16(7)(v)-11 DIST Demand'!Q473","v":68},{"$f":"'FR-16(7)(v)-4 PROD Energy'!Q473+'FR-16(7)(v)-8 TRANS Energy'!Q473+'FR-16(7)(v)-12 DIST Energy'!Q473","v":0},{"$f":"'FR-16(7)(v)-5 PROD Cust'!Q473+'FR-16(7)(v)-9 TRANS Cust'!Q473+'FR-16(7)(v)-13 DIST Cust'!Q473","v":0},{"$f":"SUM(G473:I473)","v":68},{"$f":"F473-J473","v":0}]
[30,null,{"$f":"'FR-16(7)(v)-1 Functional'!C474","v":"POLES, TOWERS & FIXTURES"},{"$f":"'FR-16(7)(v)-1 Functional'!D474","v":"PL49"},null,{"$f":"'FR-16(7)(v)-14 TOTAL CLASS'!Q474","v":0},{"$f":"'FR-16(7)(v)-3 PROD Demand'!Q474+'FR-16(7)(v)-7 TRANS Demand'!Q474+'FR-16(7)(v)-11 DIST Demand'!Q474","v":0},{"$f":"'FR-16(7)(v)-4 PROD Energy'!Q474+'FR-16(7)(v)-8 TRANS Energy'!Q474+'FR-16(7)(v)-12 DIST Energy'!Q474","v":0},{"$f":"'FR-16(7)(v)-5 PROD Cust'!Q474+'FR-16(7)(v)-9 TRANS Cust'!Q474+'FR-16(7)(v)-13 DIST Cust'!Q474","v":0},0,0]
[31,null,{"$f":"'FR-16(7)(v)-1 Functional'!C475","v":"OVERHEAD LINES - PRIMARY / DEMAND"},{"$f":"'FR-16(7)(v)-1 Functional'!D475","v":"K205"},null,{"$f":"'FR-16(7)(v)-14 TOTAL CLASS'!Q475","v":569},{"$f":"'FR-16(7)(v)-3 PROD Demand'!Q475+'FR-16(7)(v)-7 TRANS Demand'!Q475+'FR-16(7)(v)-11 DIST Demand'!Q475","v":569},{"$f":"'FR-16(7)(v)-4 PROD Energy'!Q475+'FR-16(7)(v)-8 TRANS Energy'!Q475+'FR-16(7)(v)-12 DIST Energy'!Q475","v":0},{"$f":"'FR-16(7)(v)-5 PROD Cust'!Q475+'FR-16(7)(v)-9 TRANS Cust'!Q475+'FR-16(7)(v)-13 DIST Cust'!Q475","v":0},569,0]
[32,null,{"$f":"'FR-16(7)(v)-1 Functional'!C476","v":"OVERHEAD LINES - PRIMARY / CUSTOMER"},{"$f":"'FR-16(7)(v)-1 Functional'!D476","v":"K405"},null,{"$f":"'FR-16(7)(v)-14 TOTAL CLASS'!Q476","v":90},{"$f":"'FR-16(7)(v)-3 PROD Demand'!Q476+'FR-16(7)(v)-7 TRANS Demand'!Q476+'FR-16(7)(v)-11 DIST Demand'!Q476","v":0},{"$f":"'FR-16(7)(v)-4 PROD Energy'!Q476+'FR-16(7)(v)-8 TRANS Energy'!Q476+'FR-16(7)(v)-12 DIST Energy'!Q476","v":0},{"$f":"'FR-16(7)(v)-5 PROD Cust'!Q476+'FR-16(7)(v)-9 TRANS Cust'!Q476+'FR-16(7)(v)-13 DIST Cust'!Q476","v":90},{"$f":"SUM(G476:I476)","v":90},{"$f":"F476-J476","v":0}]
[33,null,{"$f":"'FR-16(7)(v)-1 Functional'!C477","v":"OVERHEAD LINES - SECONDARY / DEMAND"},{"$f":"'FR-16(7)(v)-1 Functional'!D477","v":"K206"},null,{"$f":"'FR-16(7)(v)-14 TOTAL CLASS'!Q477","v":232},{"$f":"'FR-16(7)(v)-3 PROD Demand'!Q477+'FR-16(7)(v)-7 TRANS Demand'!Q477+'FR-16(7)(v)-11 DIST Demand'!Q477","v":232},{"$f":"'FR-16(7)(v)-4 PROD Energy'!Q477+'FR-16(7)(v)-8 TRANS Energy'!Q477+'FR-16(7)(v)-12 DIST Energy'!Q477","v":0},{"$f":"'FR-16(7)(v)-5 PROD Cust'!Q477+'FR-16(7)(v)-9 TRANS Cust'!Q477+'FR-16(7)(v)-13 DIST Cust'!Q477","v":0},232,0]
[34,null,{"$f":"'FR-16(7)(v)-1 Functional'!C478","v":"OVERHEAD LINES - SECONDARY / CUSTOMER"},{"$f":"'FR-16(7)(v)-1 Functional'!D478","v":"K405"},null,{"$f":"'FR-16(7)(v)-14 TOTAL CLASS'!Q478","v":37},{"$f":"'FR-16(7)(v)-3 PROD Demand'!Q478+'FR-16(7)(v)-7 TRANS Demand'!Q478+'FR-16(7)(v)-11 DIST Demand'!Q478","v":0},{"$f":"'FR-16(7)(v)-4 PROD Energy'!Q478+'FR-16(7)(v)-8 TRANS Energy'!Q478+'FR-16(7)(v)-12 DIST Energy'!Q478","v":0},{"$f":"'FR-16(7)(v)-5 PROD Cust'!Q478+'FR-16(7)(v)-9 TRANS Cust'!Q478+'FR-16(7)(v)-13 DIST Cust'!Q478","v":37},37,0]
[35,null,{"$f":"'FR-16(7)(v)-1 Functional'!C479","v":"UNDERGROUND LINES - PRIMARY / DEMAND"},{"$f":"'FR-16(7)(v)-1 Functional'!D479","v":"K205"},null,{"$f":"'FR-16(7)(v)-14 TOTAL CLASS'!Q479","v":74},{"$f":"'FR-16(7)(v)-3 PROD Demand'!Q479+'FR-16(7)(v)-7 TRANS Demand'!Q479+'FR-16(7)(v)-11 DIST Demand'!Q479","v":74},{"$f":"'FR-16(7)(v)-4 PROD Energy'!Q479+'FR-16(7)(v)-8 TRANS Energy'!Q479+'FR-16(7)(v)-12 DIST Energy'!Q479","v":0},{"$f":"'FR-16(7)(v)-5 PROD Cust'!Q479+'FR-16(7)(v)-9 TRANS Cust'!Q479+'FR-16(7)(v)-13 DIST Cust'!Q479","v":0},74,0]
[36,null,{"$f":"'FR-16(7)(v)-1 Functional'!C480","v":"UNDERGROUND LINES - PRIMARY / CUSTOMER"},{"$f":"'FR-16(7)(v)-1 Functional'!D480","v":"K405"},null,{"$f":"'FR-16(7)(v)-14 TOTAL CLASS'!Q480","v":17},{"$f":"'FR-16(7)(v)-3 PROD Demand'!Q480+'FR-16(7)(v)-7 TRANS Demand'!Q480+'FR-16(7)(v)-11 DIST Demand'!Q480","v":0},{"$f":"'FR-16(7)(v)-4 PROD Energy'!Q480+'FR-16(7)(v)-8 TRANS Energy'!Q480+'FR-16(7)(v)-12 DIST Energy'!Q480","v":0},{"$f":"'FR-16(7)(v)-5 PROD Cust'!Q480+'FR-16(7)(v)-9 TRANS Cust'!Q480+'FR-16(7)(v)-13 DIST Cust'!Q480","v":17},17,0]
[37,null,{"$f":"'FR-16(7)(v)-1 Functional'!C481","v":"UNDERGROUND LINES - SECONDARY / DEMAND"},{"$f":"'FR-16(7)(v)-1 Functional'!D481","v":"K206"},null,{"$f":"'FR-16(7)(v)-14 TOTAL CLASS'!Q481","v":13},{"$f":"'FR-16(7)(v)-3 PROD Demand'!Q481+'FR-16(7)(v)-7 TRANS Demand'!Q481+'FR-16(7)(v)-11 DIST Demand'!Q481","v":13},{"$f":"'FR-16(7)(v)-4 PROD Energy'!Q481+'FR-16(7)(v)-8 TRANS Energy'!Q481+'FR-16(7)(v)-12 DIST Energy'!Q481","v":0},{"$f":"'FR-16(7)(v)-5 PROD Cust'!Q481+'FR-16(7)(v)-9 TRANS Cust'!Q481+'FR-16(7)(v)-13 DIST Cust'!Q481","v":0},13,0]
[38,null,{"$f":"'FR-16(7)(v)-1 Functional'!C482","v":"UNDERGROUND LINES - SECONDARY / CUSTOMER"},{"$f":"'FR-16(7)(v)-1 Functional'!D482","v":"K405"},null,{"$f":"'FR-16(7)(v)-14 TOTAL CLASS'!Q482","v":5},{"$f":"'FR-16(7)(v)-3 PROD Demand'!Q482+'FR-16(7)(v)-7 TRANS Demand'!Q482+'FR-16(7)(v)-11 DIST Demand'!Q482","v":0},{"$f":"'FR-16(7)(v)-4 PROD Energy'!Q482+'FR-16(7)(v)-8 TRANS Energy'!Q482+'FR-16(7)(v)-12 DIST Energy'!Q482","v":0},{"$f":"'FR-16(7)(v)-5 PROD Cust'!Q482+'FR-16(7)(v)-9 TRANS Cust'!Q482+'FR-16(7)(v)-13 DIST Cust'!Q482","v":5},5,0]
[39,null,{"$f":"'FR-16(7)(v)-1 Functional'!C483","v":"TRANSFORMERS DEMAND RELATED"},{"$f":"'FR-16(7)(v)-1 Functional'!D483","v":"K203"},null,{"$f":"'FR-16(7)(v)-14 TOTAL CLASS'!Q483","v":79},{"$f":"'FR-16(7)(v)-3 PROD Demand'!Q483+'FR-16(7)(v)-7 TRANS Demand'!Q483+'FR-16(7)(v)-11 DIST Demand'!Q483","v":79},{"$f":"'FR-16(7)(v)-4 PROD Energy'!Q483+'FR-16(7)(v)-8 TRANS Energy'!Q483+'FR-16(7)(v)-12 DIST Energy'!Q483","v":0},{"$f":"'FR-16(7)(v)-5 PROD Cust'!Q483+'FR-16(7)(v)-9 TRANS Cust'!Q483+'FR-16(7)(v)-13 DIST Cust'!Q483","v":0},79,0]
[40,null,{"$f":"'FR-16(7)(v)-1 Functional'!C484","v":"TRANSFORMERS CUSTOMER RELATED"},{"$f":"'FR-16(7)(v)-1 Functional'!D484","v":"K401"},null,{"$f":"'FR-16(7)(v)-14 TOTAL CLASS'!Q484","v":0},{"$f":"'FR-16(7)(v)-3 PROD Demand'!Q484+'FR-16(7)(v)-7 TRANS Demand'!Q484+'FR-16(7)(v)-11 DIST Demand'!Q484","v":0},{"$f":"'FR-16(7)(v)-4 PROD Energy'!Q484+'FR-16(7)(v)-8 TRANS Energy'!Q484+'FR-16(7)(v)-12 DIST Energy'!Q484","v":0},{"$f":"'FR-16(7)(v)-5 PROD Cust'!Q484+'FR-16(7)(v)-9 TRANS Cust'!Q484+'FR-16(7)(v)-13 DIST Cust'!Q484","v":0},{"$f":"SUM(G484:I484)","v":0},{"$f":"F484-J484","v":0}]
[41,null,{"$f":"'FR-16(7)(v)-1 Functional'!C485","v":"OTHER MAINTENANCE"},{"$f":"'FR-16(7)(v)-1 Functional'!D485","v":"K203"},null,{"$f":"'FR-16(7)(v)-14 TOTAL CLASS'!Q485","v":549},{"$f":"'FR-16(7)(v)-3 PROD Demand'!Q485+'FR-16(7)(v)-7 TRANS Demand'!Q485+'FR-16(7)(v)-11 DIST Demand'!Q485","v":549},{"$f":"'FR-16(7)(v)-4 PROD Energy'!Q485+'FR-16(7)(v)-8 TRANS Energy'!Q485+'FR-16(7)(v)-12 DIST Energy'!Q485","v":0},{"$f":"'FR-16(7)(v)-5 PROD Cust'!Q485+'FR-16(7)(v)-9 TRANS Cust'!Q485+'FR-16(7)(v)-13 DIST Cust'!Q485","v":0},549,0]
[42,null,{"$f":"'FR-16(7)(v)-1 Functional'!C486","v":"LOAD DISPATCH"},{"$f":"'FR-16(7)(v)-1 Functional'!D486","v":"K215"},null,{"$f":"'FR-16(7)(v)-14 TOTAL CLASS'!Q486","v":64},{"$f":"'FR-16(7)(v)-3 PROD Demand'!Q486+'FR-16(7)(v)-7 TRANS Demand'!Q486+'FR-16(7)(v)-11 DIST Demand'!Q486","v":64},{"$f":"'FR-16(7)(v)-4 PROD Energy'!Q486+'FR-16(7)(v)-8 TRANS Energy'!Q486+'FR-16(7)(v)-12 DIST Energy'!Q486","v":0},{"$f":"'FR-16(7)(v)-5 PROD Cust'!Q486+'FR-16(7)(v)-9 TRANS Cust'!Q486+'FR-16(7)(v)-13 DIST Cust'!Q486","v":0},64,0]
[43,null,{"$f":"'FR-16(7)(v)-1 Functional'!C487","v":"METERS"},{"$f":"'FR-16(7)(v)-1 Functional'!D487","v":"K407"},null,{"$f":"'FR-16(7)(v)-14 TOTAL CLASS'!Q487","v":151},{"$f":"'FR-16(7)(v)-3 PROD Demand'!Q487+'FR-16(7)(v)-7 TRANS Demand'!Q487+'FR-16(7)(v)-11 DIST Demand'!Q487","v":0},{"$f":"'FR-16(7)(v)-4 PROD Energy'!Q487+'FR-16(7)(v)-8 TRANS Energy'!Q487+'FR-16(7)(v)-12 DIST Energy'!Q487","v":0},{"$f":"'FR-16(7)(v)-5 PROD Cust'!Q487+'FR-16(7)(v)-9 TRANS Cust'!Q487+'FR-16(7)(v)-13 DIST Cust'!Q487","v":151},151,0]
[44,null,{"$f":"'FR-16(7)(v)-1 Functional'!C488","v":"STREET LIGHTING AND SIGNAL SYSTEMS"},{"$f":"'FR-16(7)(v)-1 Functional'!D488","v":"K401"},null,{"$f":"'FR-16(7)(v)-14 TOTAL CLASS'!Q488","v":0},{"$f":"'FR-16(7)(v)-3 PROD Demand'!Q488+'FR-16(7)(v)-7 TRANS Demand'!Q488+'FR-16(7)(v)-11 DIST Demand'!Q488","v":0},{"$f":"'FR-16(7)(v)-4 PROD Energy'!Q488+'FR-16(7)(v)-8 TRANS Energy'!Q488+'FR-16(7)(v)-12 DIST Energy'!Q488","v":0},{"$f":"'FR-16(7)(v)-5 PROD Cust'!Q488+'FR-16(7)(v)-9 TRANS Cust'!Q488+'FR-16(7)(v)-13 DIST Cust'!Q488","v":0},0,0]
[45,null,{"$f":"'FR-16(7)(v)-1 Functional'!C489","v":"OTHER OPERATIONS"},{"$f":"'FR-16(7)(v)-1 Functional'!D489","v":"K203"},null,{"$f":"'FR-16(7)(v)-14 TOTAL CLASS'!Q489","v":210},{"$f":"'FR-16(7)(v)-3 PROD Demand'!Q489+'FR-16(7)(v)-7 TRANS Demand'!Q489+'FR-16(7)(v)-11 DIST Demand'!Q489","v":210},{"$f":"'FR-16(7)(v)-4 PROD Energy'!Q489+'FR-16(7)(v)-8 TRANS Energy'!Q489+'FR-16(7)(v)-12 DIST Energy'!Q489","v":0},{"$f":"'FR-16(7)(v)-5 PROD Cust'!Q489+'FR-16(7)(v)-9 TRANS Cust'!Q489+'FR-16(7)(v)-13 DIST Cust'!Q489","v":0},210,0]
[46,null,{"$f":"'FR-16(7)(v)-1 Functional'!C490","v":"MISCELLANEOUS EXPENSES ADJUSTMENT"},{"$f":"'FR-16(7)(v)-1 Functional'!D490","v":"K203"},null,{"$f":"'FR-16(7)(v)-14 TOTAL CLASS'!Q490","v":646},{"$f":"'FR-16(7)(v)-3 PROD Demand'!Q490+'FR-16(7)(v)-7 TRANS Demand'!Q490+'FR-16(7)(v)-11 DIST Demand'!Q490","v":646},{"$f":"'FR-16(7)(v)-4 PROD Energy'!Q490+'FR-16(7)(v)-8 TRANS Energy'!Q490+'FR-16(7)(v)-12 DIST Energy'!Q490","v":0},{"$f":"'FR-16(7)(v)-5 PROD Cust'!Q490+'FR-16(7)(v)-9 TRANS Cust'!Q490+'FR-16(7)(v)-13 DIST Cust'!Q490","v":0},646,0]
[47,null,{"$f":"'FR-16(7)(v)-1 Functional'!C491","v":"AFFILIATED COMPANY RENTS ADJUSTMENT"},{"$f":"'FR-16(7)(v)-1 Functional'!D491","v":"D249"},null,{"$f":"'FR-16(7)(v)-14 TOTAL CLASS'!Q491","v":0},{"$f":"'FR-16(7)(v)-3 PROD Demand'!Q491+'FR-16(7)(v)-7 TRANS Demand'!Q491+'FR-16(7)(v)-11 DIST Demand'!Q491","v":0},{"$f":"'FR-16(7)(v)-4 PROD Energy'!Q491+'FR-16(7)(v)-8 TRANS Energy'!Q491+'FR-16(7)(v)-12 DIST Energy'!Q491","v":0},{"$f":"'FR-16(7)(v)-5 PROD Cust'!Q491+'FR-16(7)(v)-9 TRANS Cust'!Q491+'FR-16(7)(v)-13 DIST Cust'!Q491","v":0},0,0]
[48,null,{"$f":"'FR-16(7)(v)-1 Functional'!C492","v":"  TOTAL DISTRIBUTION O & M"},null," ",{"$f":"SUM(F472:F491)","v":2804},2504,0,300,2804,0]
[49,null," "]
[50,"CUSTOMER ACCOUNTING",null,null,null," "]
[51,null,{"$f":"'FR-16(7)(v)-1 Functional'!C495","v":"CUSTOMER ACCOUNTING EXPENSE"},{"$f":"'FR-16(7)(v)-1 Functional'!D495","v":"K409"},null,{"$f":"'FR-16(7)(v)-14 TOTAL CLASS'!Q495","v":543},{"$f":"'FR-16(7)(v)-3 PROD Demand'!Q495+'FR-16(7)(v)-7 TRANS Demand'!Q495+'FR-16(7)(v)-11 DIST Demand'!Q495","v":0},{"$f":"'FR-16(7)(v)-4 PROD Energy'!Q495+'FR-16(7)(v)-8 TRANS Energy'!Q495+'FR-16(7)(v)-12 DIST Energy'!Q495","v":0},{"$f":"'FR-16(7)(v)-5 PROD Cust'!Q495+'FR-16(7)(v)-9 TRANS Cust'!Q495+'FR-16(7)(v)-13 DIST Cust'!Q495","v":543},{"$f":"SUM(G495:I495)","v":543},{"$f":"F495-J495","v":0}]
[52,null,{"$f":"'FR-16(7)(v)-1 Functional'!C496","v":"UNCOLLECTIBLE EXP"},{"$f":"'FR-16(7)(v)-1 Functional'!D496","v":"K411"},null,{"$f":"'FR-16(7)(v)-14 TOTAL CLASS'!Q496","v":15},{"$f":"'FR-16(7)(v)-3 PROD Demand'!Q496+'FR-16(7)(v)-7 TRANS Demand'!Q496+'FR-16(7)(v)-11 DIST Demand'!Q496","v":0},{"$f":"'FR-16(7)(v)-4 PROD Energy'!Q496+'FR-16(7)(v)-8 TRANS Energy'!Q496+'FR-16(7)(v)-12 DIST Energy'!Q496","v":0},{"$f":"'FR-16(7)(v)-5 PROD Cust'!Q496+'FR-16(7)(v)-9 TRANS Cust'!Q496+'FR-16(7)(v)-13 DIST Cust'!Q496","v":15},15,0]
[53,null,{"$f":"'FR-16(7)(v)-1 Functional'!C497","v":"METER READING"},{"$f":"'FR-16(7)(v)-1 Functional'!D497","v":"K407"},null,{"$f":"'FR-16(7)(v)-14 TOTAL CLASS'!Q497","v":0},{"$f":"'FR-16(7)(v)-3 PROD Demand'!Q497+'FR-16(7)(v)-7 TRANS Demand'!Q497+'FR-16(7)(v)-11 DIST Demand'!Q497","v":0},{"$f":"'FR-16(7)(v)-4 PROD Energy'!Q497+'FR-16(7)(v)-8 TRANS Energy'!Q497+'FR-16(7)(v)-12 DIST Energy'!Q497","v":0},{"$f":"'FR-16(7)(v)-5 PROD Cust'!Q497+'FR-16(7)(v)-9 TRANS Cust'!Q497+'FR-16(7)(v)-13 DIST Cust'!Q497","v":0},0,0]
[54,null,{"$f":"'FR-16(7)(v)-1 Functional'!C498","v":"UNCOLLECTIBLE EXP ADJUSTMENT"},{"$f":"'FR-16(7)(v)-1 Functional'!D498","v":"K411"},null,{"$f":"'FR-16(7)(v)-14 TOTAL CLASS'!Q498","v":-22},{"$f":"'FR-16(7)(v)-3 PROD Demand'!Q498+'FR-16(7)(v)-7 TRANS Demand'!Q498+'FR-16(7)(v)-11 DIST Demand'!Q498","v":0},{"$f":"'FR-16(7)(v)-4 PROD Energy'!Q498+'FR-16(7)(v)-8 TRANS Energy'!Q498+'FR-16(7)(v)-12 DIST Energy'!Q498","v":0},{"$f":"'FR-16(7)(v)-5 PROD Cust'!Q498+'FR-16(7)(v)-9 TRANS Cust'!Q498+'FR-16(7)(v)-13 DIST Cust'!Q498","v":-22},-22,0]
[55,null,{"$f":"'FR-16(7)(v)-1 Functional'!C499","v":"CREDIT CARD FEES"},{"$f":"'FR-16(7)(v)-1 Functional'!D499","v":"K407"},null,{"$f":"'FR-16(7)(v)-14 TOTAL CLASS'!Q499","v":69},{"$f":"'FR-16(7)(v)-3 PROD Demand'!Q499+'FR-16(7)(v)-7 TRANS Demand'!Q499+'FR-16(7)(v)-11 DIST Demand'!Q499","v":0},{"$f":"'FR-16(7)(v)-4 PROD Energy'!Q499+'FR-16(7)(v)-8 TRANS Energy'!Q499+'FR-16(7)(v)-12 DIST Energy'!Q499","v":0},{"$f":"'FR-16(7)(v)-5 PROD Cust'!Q499+'FR-16(7)(v)-9 TRANS Cust'!Q499+'FR-16(7)(v)-13 DIST Cust'!Q499","v":69},69,0]
[56,null,{"$f":"'FR-16(7)(v)-1 Functional'!C500","v":"ELIMINATE REV & EXP - DSM RIDER"},{"$f":"'FR-16(7)(v)-1 Functional'!D500","v":"K405"},null,{"$f":"'FR-16(7)(v)-14 TOTAL CLASS'!Q500","v":0},{"$f":"'FR-16(7)(v)-3 PROD Demand'!Q500+'FR-16(7)(v)-7 TRANS Demand'!Q500+'FR-16(7)(v)-11 DIST Demand'!Q500","v":0},{"$f":"'FR-16(7)(v)-4 PROD Energy'!Q500+'FR-16(7)(v)-8 TRANS Energy'!Q500+'FR-16(7)(v)-12 DIST Energy'!Q500","v":0},{"$f":"'FR-16(7)(v)-5 PROD Cust'!Q500+'FR-16(7)(v)-9 TRANS Cust'!Q500+'FR-16(7)(v)-13 DIST Cust'!Q500","v":0},0,0]
[57,null,{"$f":"'FR-16(7)(v)-1 Functional'!C501","v":"SALE OF A/R"},{"$f":"'FR-16(7)(v)-1 Functional'!D501","v":"K411"},null,{"$f":"'FR-16(7)(v)-14 TOTAL CLASS'!Q501","v":4},{"$f":"'FR-16(7)(v)-3 PROD Demand'!Q501+'FR-16(7)(v)-7 TRANS Demand'!Q501+'FR-16(7)(v)-11 DIST Demand'!Q501","v":0},{"$f":"'FR-16(7)(v)-4 PROD Energy'!Q501+'FR-16(7)(v)-8 TRANS Energy'!Q501+'FR-16(7)(v)-12 DIST Energy'!Q501","v":0},{"$f":"'FR-16(7)(v)-5 PROD Cust'!Q501+'FR-16(7)(v)-9 TRANS Cust'!Q501+'FR-16(7)(v)-13 DIST Cust'!Q501","v":4},4,0]
[58,null,{"$f":"'FR-16(7)(v)-1 Functional'!C502","v":"ELIMINATE MISC EXPENSE"},{"$f":"'FR-16(7)(v)-1 Functional'!D502","v":"K405"},null,{"$f":"'FR-16(7)(v)-14 TOTAL CLASS'!Q502","v":0},{"$f":"'FR-16(7)(v)-3 PROD Demand'!Q502+'FR-16(7)(v)-7 TRANS Demand'!Q502+'FR-16(7)(v)-11 DIST Demand'!Q502","v":0},{"$f":"'FR-16(7)(v)-4 PROD Energy'!Q502+'FR-16(7)(v)-8 TRANS Energy'!Q502+'FR-16(7)(v)-12 DIST Energy'!Q502","v":0},{"$f":"'FR-16(7)(v)-5 PROD Cust'!Q502+'FR-16(7)(v)-9 TRANS Cust'!Q502+'FR-16(7)(v)-13 DIST Cust'!Q502","v":0},0,0]
[59,null,{"$f":"'FR-16(7)(v)-1 Functional'!C503","v":"  TOTAL CUSTOMER ACCT EXPENSE"},null," ",{"$f":"SUM(F494:F502)","v":609},0,0,609,609,0]
[]
[{"$f":"co_name","v":"DUKE ENERGY KENTUCKY, INC."},null,null,null,null,null,null,null,null,{"$f":"J1","v":"FR-16(7)(v)-25"}]
[{"$f":"$A$2","v":"OTHER WP CLASSIFIED - ELECTRIC COST OF SERVICE"},null,null,null,null,null,null,null,null,{"$f":"J2","v":"WITNESS RESPONSIBLE:"}]
[{"$f":"case_name","v":"CASE NO: 2019-00271"},null,null,null,null,null,null,null,null,{"$f":"Witness","v":"JAMES E. ZIOLKOWSKI"}]
[{"$f":"data_filing","v":"DATA: 12 MONTHS ACTUAL  & 0 MONTHS ESTIMATED"},null,null,null,null,null,null,null,null,{"$f":"\"PAGE \"&Pages2-6&\" OF \"&Pages2","v":"PAGE 9 OF 15"}]
[{"$f":"type","v":"TYPE OF FILING: \"X\" ORIGINAL   UPDATED    REVISED  "}]
[]
[]
["LINE",null,null,null,null,"TOTAL","CLASSIFIED",null,null,"TOTAL","ALL"]
["NO.","O&M EXPENSES",null,"ALLO",null,{"$f":"$F$9","v":"OTHER WP"},{"$f":"G9","v":"DEMAND"},"ENERGY","CUSTOMER","AT ISSUE","OTHER"]
[null,null,"Schedule 6.1",null,null,null,3,4,5]
[1,"CUSTOMER SERVICE & INFORMATION"]
[2,null,{"$f":"'FR-16(7)(v)-1 Functional'!C516","v":"TOTAL CUST SERVICE & INFO"},{"$f":"'FR-16(7)(v)-1 Functional'!D516","v":"K405"},null,{"$f":"'FR-16(7)(v)-14 TOTAL CLASS'!Q516","v":48},{"$f":"'FR-16(7)(v)-3 PROD Demand'!Q516+'FR-16(7)(v)-7 TRANS Demand'!Q516+'FR-16(7)(v)-11 DIST Demand'!Q516","v":0},{"$f":"'FR-16(7)(v)-4 PROD Energy'!Q516+'FR-16(7)(v)-8 TRANS Energy'!Q516+'FR-16(7)(v)-12 DIST Energy'!Q516","v":0},{"$f":"'FR-16(7)(v)-5 PROD Cust'!Q516+'FR-16(7)(v)-9 TRANS Cust'!Q516+'FR-16(7)(v)-13 DIST Cust'!Q516","v":48},{"$f":"SUM(G516:I516)","v":48},{"$f":"F516-J516","v":0}]
[3,null,{"$f":"'FR-16(7)(v)-1 Functional'!C517","v":"INFORMATIONAL & INSTRUCTIONAL ADV"},{"$f":"'FR-16(7)(v)-1 Functional'!D517","v":"K405"},null,{"$f":"'FR-16(7)(v)-14 TOTAL CLASS'!Q517","v":0},{"$f":"'FR-16(7)(v)-3 PROD Demand'!Q517+'FR-16(7)(v)-7 TRANS Demand'!Q517+'FR-16(7)(v)-11 DIST Demand'!Q517","v":0},{"$f":"'FR-16(7)(v)-4 PROD Energy'!Q517+'FR-16(7)(v)-8 TRANS Energy'!Q517+'FR-16(7)(v)-12 DIST Energy'!Q517","v":0},{"$f":"'FR-16(7)(v)-5 PROD Cust'!Q517+'FR-16(7)(v)-9 TRANS Cust'!Q517+'FR-16(7)(v)-13 DIST Cust'!Q517","v":0},{"$f":"SUM(G517:I517)","v":0},{"$f":"F517-J517","v":0}]
[4,null,{"$f":"'FR-16(7)(v)-1 Functional'!C518","v":"TOTAL CUSTOMER SERV. & INFO."},null," ",{"$f":"SUM(F516:F517)","v":48},0,0,48,48,0]
[5]
[6,"SALES"]
[7,null,{"$f":"'FR-16(7)(v)-1 Functional'!C521","v":"SALES EXPENSE"},{"$f":"'FR-16(7)(v)-1 Functional'!D521","v":"K405"}," ",{"$f":"'FR-16(7)(v)-14 TOTAL CLASS'!Q521","v":120},{"$f":"'FR-16(7)(v)-3 PROD Demand'!Q521+'FR-16(7)(v)-7 TRANS Demand'!Q521+'FR-16(7)(v)-11 DIST Demand'!Q521","v":0},{"$f":"'FR-16(7)(v)-4 PROD Energy'!Q521+'FR-16(7)(v)-8 TRANS Energy'!Q521+'FR-16(7)(v)-12 DIST Energy'!Q521","v":0},{"$f":"'FR-16(7)(v)-5 PROD Cust'!Q521+'FR-16(7)(v)-9 TRANS Cust'!Q521+'FR-16(7)(v)-13 DIST Cust'!Q521","v":120},{"$f":"SUM(G521:I521)","v":120},{"$f":"F521-J521","v":0}]
[8,null,{"$f":"'FR-16(7)(v)-1 Functional'!C522","v":"TOTAL SALES EXPENSE"},null," ",{"$f":"SUM(F520:F521)","v":120},0,0,120,120,0]
[9]
[10,"ADMINISTRATIVE & GENERAL "]
[11,null,{"$f":"'FR-16(7)(v)-1 Functional'!C525","v":"PRODUCTION - DEMAND RELATED"},{"$f":"'FR-16(7)(v)-1 Functional'!D525","v":"P349"},null,{"$f":"'FR-16(7)(v)-14 TOTAL CLASS'!Q525","v":0},{"$f":"'FR-16(7)(v)-3 PROD Demand'!Q525+'FR-16(7)(v)-7 TRANS Demand'!Q525+'FR-16(7)(v)-11 DIST Demand'!Q525","v":0},{"$f":"'FR-16(7)(v)-4 PROD Energy'!Q525+'FR-16(7)(v)-8 TRANS Energy'!Q525+'FR-16(7)(v)-12 DIST Energy'!Q525","v":0},{"$f":"'FR-16(7)(v)-5 PROD Cust'!Q525+'FR-16(7)(v)-9 TRANS Cust'!Q525+'FR-16(7)(v)-13 DIST Cust'!Q525","v":0},{"$f":"SUM(G525:I525)","v":0},{"$f":"F525-J525","v":0}]
[12,null,{"$f":"'FR-16(7)(v)-1 Functional'!C526","v":"PRODUCTION - ENERGY RELATED"},{"$f":"'FR-16(7)(v)-1 Functional'!D526","v":"E349"},null,{"$f":"'FR-16(7)(v)-14 TOTAL CLASS'!Q526","v":1194},{"$f":"'FR-16(7)(v)-3 PROD Demand'!Q526+'FR-16(7)(v)-7 TRANS Demand'!Q526+'FR-16(7)(v)-11 DIST Demand'!Q526","v":0},{"$f":"'FR-16(7)(v)-4 PROD Energy'!Q526+'FR-16(7)(v)-8 TRANS Energy'!Q526+'FR-16(7)(v)-12 DIST Energy'!Q526","v":1194},{"$f":"'FR-16(7)(v)-5 PROD Cust'!Q526+'FR-16(7)(v)-9 TRANS Cust'!Q526+'FR-16(7)(v)-13 DIST Cust'!Q526","v":0},1194,0]
[13,null,"TRANSMISSION",{"$f":"'FR-16(7)(v)-1 Functional'!D527","v":"T349"},null,{"$f":"'FR-16(7)(v)-14 TOTAL CLASS'!Q527","v":161},{"$f":"'FR-16(7)(v)-3 PROD Demand'!Q527+'FR-16(7)(v)-7 TRANS Demand'!Q527+'FR-16(7)(v)-11 DIST Demand'!Q527","v":161},{"$f":"'FR-16(7)(v)-4 PROD Energy'!Q527+'FR-16(7)(v)-8 TRANS Energy'!Q527+'FR-16(7)(v)-12 DIST Energy'!Q527","v":0},{"$f":"'FR-16(7)(v)-5 PROD Cust'!Q527+'FR-16(7)(v)-9 TRANS Cust'!Q527+'FR-16(7)(v)-13 DIST Cust'!Q527","v":0},161,0]
[14,null,{"$f":"'FR-16(7)(v)-1 Functional'!C528","v":"DISTRIBUTION"},{"$f":"'FR-16(7)(v)-1 Functional'!D528","v":"D349"},null,{"$f":"'FR-16(7)(v)-14 TOTAL CLASS'!Q528","v":962},{"$f":"'FR-16(7)(v)-3 PROD Demand'!Q528+'FR-16(7)(v)-7 TRANS Demand'!Q528+'FR-16(7)(v)-11 DIST Demand'!Q528","v":857},{"$f":"'FR-16(7)(v)-4 PROD Energy'!Q528+'FR-16(7)(v)-8 TRANS Energy'!Q528+'FR-16(7)(v)-12 DIST Energy'!Q528","v":0},{"$f":"'FR-16(7)(v)-5 PROD Cust'!Q528+'FR-16(7)(v)-9 TRANS Cust'!Q528+'FR-16(7)(v)-13 DIST Cust'!Q528","v":105},962,0]
[15,null,{"$f":"'FR-16(7)(v)-1 Functional'!C529","v":"CUSTOMER ACCOUNTING"},{"$f":"'FR-16(7)(v)-1 Functional'!D529","v":"C319"},null,{"$f":"'FR-16(7)(v)-14 TOTAL CLASS'!Q529","v":552},{"$f":"'FR-16(7)(v)-3 PROD Demand'!Q529+'FR-16(7)(v)-7 TRANS Demand'!Q529+'FR-16(7)(v)-11 DIST Demand'!Q529","v":0},{"$f":"'FR-16(7)(v)-4 PROD Energy'!Q529+'FR-16(7)(v)-8 TRANS Energy'!Q529+'FR-16(7)(v)-12 DIST Energy'!Q529","v":0},{"$f":"'FR-16(7)(v)-5 PROD Cust'!Q529+'FR-16(7)(v)-9 TRANS Cust'!Q529+'FR-16(7)(v)-13 DIST Cust'!Q529","v":552},552,0]
[16,null,{"$f":"'FR-16(7)(v)-1 Functional'!C530","v":"CUSTOMER SERVICE & INFORMATION"},{"$f":"'FR-16(7)(v)-1 Functional'!D530","v":"C331"},null,{"$f":"'FR-16(7)(v)-14 TOTAL CLASS'!Q530","v":19},{"$f":"'FR-16(7)(v)-3 PROD Demand'!Q530+'FR-16(7)(v)-7 TRANS Demand'!Q530+'FR-16(7)(v)-11 DIST Demand'!Q530","v":0},{"$f":"'FR-16(7)(v)-4 PROD Energy'!Q530+'FR-16(7)(v)-8 TRANS Energy'!Q530+'FR-16(7)(v)-12 DIST Energy'!Q530","v":0},{"$f":"'FR-16(7)(v)-5 PROD Cust'!Q530+'FR-16(7)(v)-9 TRANS Cust'!Q530+'FR-16(7)(v)-13 DIST Cust'!Q530","v":19},19,0]
[17,null,{"$f":"'FR-16(7)(v)-1 Functional'!C531","v":"SALES"},{"$f":"'FR-16(7)(v)-1 Functional'!D531","v":"S319"},null,{"$f":"'FR-16(7)(v)-14 TOTAL CLASS'!Q531","v":0},{"$f":"'FR-16(7)(v)-3 PROD Demand'!Q531+'FR-16(7)(v)-7 TRANS Demand'!Q531+'FR-16(7)(v)-11 DIST Demand'!Q531","v":0},{"$f":"'FR-16(7)(v)-4 PROD Energy'!Q531+'FR-16(7)(v)-8 TRANS Energy'!Q531+'FR-16(7)(v)-12 DIST Energy'!Q531","v":0},{"$f":"'FR-16(7)(v)-5 PROD Cust'!Q531+'FR-16(7)(v)-9 TRANS Cust'!Q531+'FR-16(7)(v)-13 DIST Cust'!Q531","v":0},0,0]
[18,null,{"$f":"'FR-16(7)(v)-1 Functional'!C532","v":"TOT ADMIN & GEN LESS REG EXP"}," ",null,{"$f":"SUM(F525:F531)","v":2888},1018,1194,676,2888,0]
[19,null,{"$f":"'FR-16(7)(v)-1 Functional'!C533","v":"RATE CASE EXPENSE ADJUSTMENT"},{"$f":"'FR-16(7)(v)-1 Functional'!D533","v":"A315"},null,{"$f":"'FR-16(7)(v)-14 TOTAL CLASS'!Q533","v":13},{"$f":"'FR-16(7)(v)-3 PROD Demand'!Q533+'FR-16(7)(v)-7 TRANS Demand'!Q533+'FR-16(7)(v)-11 DIST Demand'!Q533","v":5},{"$f":"'FR-16(7)(v)-4 PROD Energy'!Q533+'FR-16(7)(v)-8 TRANS Energy'!Q533+'FR-16(7)(v)-12 DIST Energy'!Q533","v":5},{"$f":"'FR-16(7)(v)-5 PROD Cust'!Q533+'FR-16(7)(v)-9 TRANS Cust'!Q533+'FR-16(7)(v)-13 DIST Cust'!Q533","v":3},{"$f":"SUM(G533:I533)","v":13},{"$f":"F533-J533","v":0}]
[20,null,{"$f":"'FR-16(7)(v)-1 Functional'!C534","v":"ELIMINATE MISCELLANEOUS EXPENSES ADJUSTMENT"},{"$f":"'FR-16(7)(v)-1 Functional'!D534","v":"A315"},null,{"$f":"'FR-16(7)(v)-14 TOTAL CLASS'!Q534","v":0},{"$f":"'FR-16(7)(v)-3 PROD Demand'!Q534+'FR-16(7)(v)-7 TRANS Demand'!Q534+'FR-16(7)(v)-11 DIST Demand'!Q534","v":0},{"$f":"'FR-16(7)(v)-4 PROD Energy'!Q534+'FR-16(7)(v)-8 TRANS Energy'!Q534+'FR-16(7)(v)-12 DIST Energy'!Q534","v":0},{"$f":"'FR-16(7)(v)-5 PROD Cust'!Q534+'FR-16(7)(v)-9 TRANS Cust'!Q534+'FR-16(7)(v)-13 DIST Cust'!Q534","v":0},0,0]
[21,null,{"$f":"'FR-16(7)(v)-1 Functional'!C535","v":"RIDER ESM ELIMINATION"},{"$f":"'FR-16(7)(v)-1 Functional'!D535","v":"A315"},null,{"$f":"'FR-16(7)(v)-14 TOTAL CLASS'!Q535","v":-841},{"$f":"'FR-16(7)(v)-3 PROD Demand'!Q535+'FR-16(7)(v)-7 TRANS Demand'!Q535+'FR-16(7)(v)-11 DIST Demand'!Q535","v":-294},{"$f":"'FR-16(7)(v)-4 PROD Energy'!Q535+'FR-16(7)(v)-8 TRANS Energy'!Q535+'FR-16(7)(v)-12 DIST Energy'!Q535","v":-352},{"$f":"'FR-16(7)(v)-5 PROD Cust'!Q535+'FR-16(7)(v)-9 TRANS Cust'!Q535+'FR-16(7)(v)-13 DIST Cust'!Q535","v":-195},-841,0]
[22,null,{"$f":"'FR-16(7)(v)-1 Functional'!C536","v":"ELIMINATE DSM"},{"$f":"'FR-16(7)(v)-1 Functional'!D536","v":"A315"},null,{"$f":"'FR-16(7)(v)-14 TOTAL CLASS'!Q536","v":-12},{"$f":"'FR-16(7)(v)-3 PROD Demand'!Q536+'FR-16(7)(v)-7 TRANS Demand'!Q536+'FR-16(7)(v)-11 DIST Demand'!Q536","v":-4},{"$f":"'FR-16(7)(v)-4 PROD Energy'!Q536+'FR-16(7)(v)-8 TRANS Energy'!Q536+'FR-16(7)(v)-12 DIST Energy'!Q536","v":-5},{"$f":"'FR-16(7)(v)-5 PROD Cust'!Q536+'FR-16(7)(v)-9 TRANS Cust'!Q536+'FR-16(7)(v)-13 DIST Cust'!Q536","v":-3},-12,0]
[23,null,{"$f":"'FR-16(7)(v)-1 Functional'!C537","v":"DSM DEFERRAL - ELECTRIC"},{"$f":"'FR-16(7)(v)-1 Functional'!D537","v":"A315"},null,{"$f":"'FR-16(7)(v)-14 TOTAL CLASS'!Q537","v":0},{"$f":"'FR-16(7)(v)-3 PROD Demand'!Q537+'FR-16(7)(v)-7 TRANS Demand'!Q537+'FR-16(7)(v)-11 DIST Demand'!Q537","v":0},{"$f":"'FR-16(7)(v)-4 PROD Energy'!Q537+'FR-16(7)(v)-8 TRANS Energy'!Q537+'FR-16(7)(v)-12 DIST Energy'!Q537","v":0},{"$f":"'FR-16(7)(v)-5 PROD Cust'!Q537+'FR-16(7)(v)-9 TRANS Cust'!Q537+'FR-16(7)(v)-13 DIST Cust'!Q537","v":0},0,0]
[24,null,{"$f":"'FR-16(7)(v)-1 Functional'!C538","v":"PENSION ADJUSTMENT"},{"$f":"'FR-16(7)(v)-1 Functional'!D538","v":"A315"},null,{"$f":"'FR-16(7)(v)-14 TOTAL CLASS'!Q538","v":-51},{"$f":"'FR-16(7)(v)-3 PROD Demand'!Q538+'FR-16(7)(v)-7 TRANS Demand'!Q538+'FR-16(7)(v)-11 DIST Demand'!Q538","v":-18},{"$f":"'FR-16(7)(v)-4 PROD Energy'!Q538+'FR-16(7)(v)-8 TRANS Energy'!Q538+'FR-16(7)(v)-12 DIST Energy'!Q538","v":-21},{"$f":"'FR-16(7)(v)-5 PROD Cust'!Q538+'FR-16(7)(v)-9 TRANS Cust'!Q538+'FR-16(7)(v)-13 DIST Cust'!Q538","v":-12},-51,0]
[25,null,{"$f":"'FR-16(7)(v)-1 Functional'!C539","v":"ELIMINATE MISC EXPENSES"},{"$f":"'FR-16(7)(v)-1 Functional'!D539","v":"A315"},null,{"$f":"'FR-16(7)(v)-14 TOTAL CLASS'!Q539","v":-49},{"$f":"'FR-16(7)(v)-3 PROD Demand'!Q539+'FR-16(7)(v)-7 TRANS Demand'!Q539+'FR-16(7)(v)-11 DIST Demand'!Q539","v":-17},{"$f":"'FR-16(7)(v)-4 PROD Energy'!Q539+'FR-16(7)(v)-8 TRANS Energy'!Q539+'FR-16(7)(v)-12 DIST Energy'!Q539","v":-21},{"$f":"'FR-16(7)(v)-5 PROD Cust'!Q539+'FR-16(7)(v)-9 TRANS Cust'!Q539+'FR-16(7)(v)-13 DIST Cust'!Q539","v":-11},-49,0]
[26,null,{"$f":"'FR-16(7)(v)-1 Functional'!C540","v":"ELIMINATE MERGER COSTS AND CREDITS"},{"$f":"'FR-16(7)(v)-1 Functional'!D540","v":"A315"},null,{"$f":"'FR-16(7)(v)-14 TOTAL CLASS'!Q540","v":0},{"$f":"'FR-16(7)(v)-3 PROD Demand'!Q540+'FR-16(7)(v)-7 TRANS Demand'!Q540+'FR-16(7)(v)-11 DIST Demand'!Q540","v":0},{"$f":"'FR-16(7)(v)-4 PROD Energy'!Q540+'FR-16(7)(v)-8 TRANS Energy'!Q540+'FR-16(7)(v)-12 DIST Energy'!Q540","v":0},{"$f":"'FR-16(7)(v)-5 PROD Cust'!Q540+'FR-16(7)(v)-9 TRANS Cust'!Q540+'FR-16(7)(v)-13 DIST Cust'!Q540","v":0},0,0]
[27,null,{"$f":"'FR-16(7)(v)-1 Functional'!C541","v":"ANNUALIZE KYPSC MAINT TAX"},{"$f":"'FR-16(7)(v)-1 Functional'!D541","v":"A315"},null,{"$f":"'FR-16(7)(v)-14 TOTAL CLASS'!Q541","v":0},{"$f":"'FR-16(7)(v)-3 PROD Demand'!Q541+'FR-16(7)(v)-7 TRANS Demand'!Q541+'FR-16(7)(v)-11 DIST Demand'!Q541","v":0},{"$f":"'FR-16(7)(v)-4 PROD Energy'!Q541+'FR-16(7)(v)-8 TRANS Energy'!Q541+'FR-16(7)(v)-12 DIST Energy'!Q541","v":0},{"$f":"'FR-16(7)(v)-5 PROD Cust'!Q541+'FR-16(7)(v)-9 TRANS Cust'!Q541+'FR-16(7)(v)-13 DIST Cust'!Q541","v":0},0,0]
[28,null,{"$f":"'FR-16(7)(v)-1 Functional'!C542","v":"REMOVE INCENTIVE COMP"},{"$f":"'FR-16(7)(v)-1 Functional'!D542","v":"A315"},null,{"$f":"'FR-16(7)(v)-14 TOTAL CLASS'!Q542","v":-143},{"$f":"'FR-16(7)(v)-3 PROD Demand'!Q542+'FR-16(7)(v)-7 TRANS Demand'!Q542+'FR-16(7)(v)-11 DIST Demand'!Q542","v":-50},{"$f":"'FR-16(7)(v)-4 PROD Energy'!Q542+'FR-16(7)(v)-8 TRANS Energy'!Q542+'FR-16(7)(v)-12 DIST Energy'!Q542","v":-60},{"$f":"'FR-16(7)(v)-5 PROD Cust'!Q542+'FR-16(7)(v)-9 TRANS Cust'!Q542+'FR-16(7)(v)-13 DIST Cust'!Q542","v":-33},-143,0]
[29,null,{"$f":"'FR-16(7)(v)-1 Functional'!C543","v":"CREDIT CARD FEES"},{"$f":"'FR-16(7)(v)-1 Functional'!D543","v":"A315"},null,{"$f":"'FR-16(7)(v)-14 TOTAL CLASS'!Q543","v":0},{"$f":"'FR-16(7)(v)-3 PROD Demand'!Q543+'FR-16(7)(v)-7 TRANS Demand'!Q543+'FR-16(7)(v)-11 DIST Demand'!Q543","v":0},{"$f":"'FR-16(7)(v)-4 PROD Energy'!Q543+'FR-16(7)(v)-8 TRANS Energy'!Q543+'FR-16(7)(v)-12 DIST Energy'!Q543","v":0},{"$f":"'FR-16(7)(v)-5 PROD Cust'!Q543+'FR-16(7)(v)-9 TRANS Cust'!Q543+'FR-16(7)(v)-13 DIST Cust'!Q543","v":0},0,0]
[30,null,{"$f":"'FR-16(7)(v)-1 Functional'!C544","v":"ELIMINATE INCENTIVE COMPENSATION ADJUSTMENT"},{"$f":"'FR-16(7)(v)-1 Functional'!D544","v":"A315"},null,{"$f":"'FR-16(7)(v)-14 TOTAL CLASS'!Q544","v":0},{"$f":"'FR-16(7)(v)-3 PROD Demand'!Q544+'FR-16(7)(v)-7 TRANS Demand'!Q544+'FR-16(7)(v)-11 DIST Demand'!Q544","v":0},{"$f":"'FR-16(7)(v)-4 PROD Energy'!Q544+'FR-16(7)(v)-8 TRANS Energy'!Q544+'FR-16(7)(v)-12 DIST Energy'!Q544","v":0},{"$f":"'FR-16(7)(v)-5 PROD Cust'!Q544+'FR-16(7)(v)-9 TRANS Cust'!Q544+'FR-16(7)(v)-13 DIST Cust'!Q544","v":0},0,0]
[31,null,{"$f":"'FR-16(7)(v)-1 Functional'!C545","v":"AMORTIZATION OF DEFERRAL ASSET"},{"$f":"'FR-16(7)(v)-1 Functional'!D545","v":"A315"},null,{"$f":"'FR-16(7)(v)-14 TOTAL CLASS'!Q545","v":0},{"$f":"'FR-16(7)(v)-3 PROD Demand'!Q545+'FR-16(7)(v)-7 TRANS Demand'!Q545+'FR-16(7)(v)-11 DIST Demand'!Q545","v":0},{"$f":"'FR-16(7)(v)-4 PROD Energy'!Q545+'FR-16(7)(v)-8 TRANS Energy'!Q545+'FR-16(7)(v)-12 DIST Energy'!Q545","v":0},{"$f":"'FR-16(7)(v)-5 PROD Cust'!Q545+'FR-16(7)(v)-9 TRANS Cust'!Q545+'FR-16(7)(v)-13 DIST Cust'!Q545","v":0},0,0]
[32,null,{"$f":"'FR-16(7)(v)-1 Functional'!C546","v":"AMORTIZATION OF DEFERRED EXPENSES"},{"$f":"'FR-16(7)(v)-1 Functional'!D546","v":"A315"},null,{"$f":"'FR-16(7)(v)-14 TOTAL CLASS'!Q546","v":10},{"$f":"'FR-16(7)(v)-3 PROD Demand'!Q546+'FR-16(7)(v)-7 TRANS Demand'!Q546+'FR-16(7)(v)-11 DIST Demand'!Q546","v":4},{"$f":"'FR-16(7)(v)-4 PROD Energy'!Q546+'FR-16(7)(v)-8 TRANS Energy'!Q546+'FR-16(7)(v)-12 DIST Energy'!Q546","v":4},{"$f":"'FR-16(7)(v)-5 PROD Cust'!Q546+'FR-16(7)(v)-9 TRANS Cust'!Q546+'FR-16(7)(v)-13 DIST Cust'!Q546","v":2},10,0]
[33,null,{"$f":"'FR-16(7)(v)-1 Functional'!C547","v":"TOTAL ADMIN. & GENERAL"},null," ",{"$f":"SUM(F532:F546)","v":1815},644,744,427,1815,0]
[34]
[35,null,{"$f":"'FR-16(7)(v)-1 Functional'!C549","v":"TOTAL O & M EXPENSE"},null,null,{"$f":"F547+F522+F518+F503+F492+F470+F466+F459","v":23661},5896,16261,1504,23661,0]
[]
[{"$f":"co_name","v":"DUKE ENERGY KENTUCKY, INC."},null,null,null,null,null,null,null,null,{"$f":"J1","v":"FR-16(7)(v)-25"}]
[{"$f":"$A$2","v":"OTHER WP CLASSIFIED - ELECTRIC COST OF SERVICE"},null,null,null,null,null,null,null,null,{"$f":"J2","v":"WITNESS RESPONSIBLE:"}]
[{"$f":"case_name","v":"CASE NO: 2019-00271"},null,null,null,null,null,null,null,null,{"$f":"Witness","v":"JAMES E. ZIOLKOWSKI"}]
[{"$f":"data_filing","v":"DATA: 12 MONTHS ACTUAL  & 0 MONTHS ESTIMATED"},null,null,null,null,null,null,null,null,{"$f":"\"PAGE \"&Pages2-5&\" OF \"&Pages2","v":"PAGE 10 OF 15"}]
[{"$f":"type","v":"TYPE OF FILING: \"X\" ORIGINAL   UPDATED    REVISED  "}]
[]
[]
["LINE",null,null,null,null,"TOTAL","CLASSIFIED",null,null,"TOTAL","ALL"]
["NO.","DEPRECIATION EXPENSE",null,"ALLO",null,{"$f":"$F$9","v":"OTHER WP"},{"$f":"G9","v":"DEMAND"},"ENERGY","CUSTOMER","AT ISSUE","OTHER"]
[null,null,"Schedule 7",null,null,null,3,4,5]
[1,"PRODUCTION DEPRECIATION"]
[2,null,{"$f":"'FR-16(7)(v)-1 Functional'!C562","v":"PRODUCTION DEPRECIATION"},{"$f":"'FR-16(7)(v)-1 Functional'!D562","v":"P229"},null,{"$f":"'FR-16(7)(v)-14 TOTAL CLASS'!Q562","v":4129},{"$f":"'FR-16(7)(v)-3 PROD Demand'!Q562+'FR-16(7)(v)-7 TRANS Demand'!Q562+'FR-16(7)(v)-11 DIST Demand'!Q562","v":4129},{"$f":"'FR-16(7)(v)-4 PROD Energy'!Q562+'FR-16(7)(v)-8 TRANS Energy'!Q562+'FR-16(7)(v)-12 DIST Energy'!Q562","v":0},{"$f":"'FR-16(7)(v)-5 PROD Cust'!Q562+'FR-16(7)(v)-9 TRANS Cust'!Q562+'FR-16(7)(v)-13 DIST Cust'!Q562","v":0},{"$f":"SUM(G562:I562)","v":4129},{"$f":"F562-J562","v":0}]
[3,null,{"$f":"'FR-16(7)(v)-1 Functional'!C563","v":"  TOTAL PRODUCTION DEPREC EXP."},null,null,{"$f":"SUM(F562:F562)","v":4129},4129,0,0,4129,0]
[4]
[5,"TRANSMISSION DEPRECIATION"]
[6,null,"TRANSMISSION DEPRECIATION",{"$f":"'FR-16(7)(v)-1 Functional'!D566","v":"T229"},null,{"$f":"'FR-16(7)(v)-14 TOTAL CLASS'!Q566","v":162},{"$f":"'FR-16(7)(v)-3 PROD Demand'!Q566+'FR-16(7)(v)-7 TRANS Demand'!Q566+'FR-16(7)(v)-11 DIST Demand'!Q566","v":162},{"$f":"'FR-16(7)(v)-4 PROD Energy'!Q566+'FR-16(7)(v)-8 TRANS Energy'!Q566+'FR-16(7)(v)-12 DIST Energy'!Q566","v":0},{"$f":"'FR-16(7)(v)-5 PROD Cust'!Q566+'FR-16(7)(v)-9 TRANS Cust'!Q566+'FR-16(7)(v)-13 DIST Cust'!Q566","v":0},{"$f":"SUM(G566:I566)","v":162},{"$f":"F566-J566","v":0}]
[7,null,{"$f":"'FR-16(7)(v)-1 Functional'!C567","v":"  TOTAL TRANSMISSION DEP. EXP."},null,null,{"$f":"SUM(F566:F566)","v":162},162,0,0,162,0]
[8]
[9,"DISTRIBUTION DEPRECIATION"]
[10,null,{"$f":"'FR-16(7)(v)-1 Functional'!C570","v":"DISTRIBUTION DEPRECIATION"},{"$f":"'FR-16(7)(v)-1 Functional'!D570","v":"D249"},null,{"$f":"'FR-16(7)(v)-14 TOTAL CLASS'!Q570","v":1448},{"$f":"'FR-16(7)(v)-3 PROD Demand'!Q570+'FR-16(7)(v)-7 TRANS Demand'!Q570+'FR-16(7)(v)-11 DIST Demand'!Q570","v":1150},{"$f":"'FR-16(7)(v)-4 PROD Energy'!Q570+'FR-16(7)(v)-8 TRANS Energy'!Q570+'FR-16(7)(v)-12 DIST Energy'!Q570","v":0},{"$f":"'FR-16(7)(v)-5 PROD Cust'!Q570+'FR-16(7)(v)-9 TRANS Cust'!Q570+'FR-16(7)(v)-13 DIST Cust'!Q570","v":298},{"$f":"SUM(G570:I570)","v":1448},{"$f":"F570-J570","v":0}]
[11,null,{"$f":"'FR-16(7)(v)-1 Functional'!C571","v":"  TOTAL DIST. DEPREC EXP."},null,null,{"$f":"SUM(F570:F570)","v":1448},1150,0,298,1448,0]
[12,null,null,null,null," "]
[13,"GENERAL DEPRECIATION"]
[14,null,{"$f":"'FR-16(7)(v)-1 Functional'!C574","v":"GENERAL DEPRECIATION"},{"$f":"'FR-16(7)(v)-1 Functional'!D574","v":"G229"},null,{"$f":"'FR-16(7)(v)-14 TOTAL CLASS'!Q574","v":611},{"$f":"'FR-16(7)(v)-3 PROD Demand'!Q574+'FR-16(7)(v)-7 TRANS Demand'!Q574+'FR-16(7)(v)-11 DIST Demand'!Q574","v":296},{"$f":"'FR-16(7)(v)-4 PROD Energy'!Q574+'FR-16(7)(v)-8 TRANS Energy'!Q574+'FR-16(7)(v)-12 DIST Energy'!Q574","v":204},{"$f":"'FR-16(7)(v)-5 PROD Cust'!Q574+'FR-16(7)(v)-9 TRANS Cust'!Q574+'FR-16(7)(v)-13 DIST Cust'!Q574","v":111},{"$f":"SUM(G574:I574)","v":611},{"$f":"F574-J574","v":0}]
[15,null,{"$f":"'FR-16(7)(v)-1 Functional'!C575","v":"  TOTAL GENERAL DEPREC EXP."},null,null,{"$f":"SUM(F574:F574)","v":611},296,204,111,611,0]
[16]
[17,"COMMON AND OTHER DEPRECIATION"]
[18,null,{"$f":"'FR-16(7)(v)-1 Functional'!C578","v":"COMMON DEPRECIATION"},{"$f":"'FR-16(7)(v)-1 Functional'!D578","v":"C229"},null,{"$f":"'FR-16(7)(v)-14 TOTAL CLASS'!Q578","v":4},{"$f":"'FR-16(7)(v)-3 PROD Demand'!Q578+'FR-16(7)(v)-7 TRANS Demand'!Q578+'FR-16(7)(v)-11 DIST Demand'!Q578","v":2},{"$f":"'FR-16(7)(v)-4 PROD Energy'!Q578+'FR-16(7)(v)-8 TRANS Energy'!Q578+'FR-16(7)(v)-12 DIST Energy'!Q578","v":1},{"$f":"'FR-16(7)(v)-5 PROD Cust'!Q578+'FR-16(7)(v)-9 TRANS Cust'!Q578+'FR-16(7)(v)-13 DIST Cust'!Q578","v":1},{"$f":"SUM(G578:I578)","v":4},{"$f":"F578-J578","v":0}]
[19,null,{"$f":"'FR-16(7)(v)-1 Functional'!C579","v":"  TOTAL COM & OTHER DEPREC EXP."},null,null,{"$f":"SUM(F578:F578)","v":4},2,1,1,4,0]
[20]
[21]
[22,"TOTAL DEPRECIATION EXPENSE",null,null," ",{"$f":"F579+F575+F571+F567+F563","v":6354},5739,205,410,6354,0]
[]
[{"$f":"co_name","v":"DUKE ENERGY KENTUCKY, INC."},null,null,null,null,null,null,null,null,{"$f":"J1","v":"FR-16(7)(v)-25"}]
[{"$f":"$A$2","v":"OTHER WP CLASSIFIED - ELECTRIC COST OF SERVICE"},null,null,null,null,null,null,null,null,{"$f":"J2","v":"WITNESS RESPONSIBLE:"}]
[{"$f":"case_name","v":"CASE NO: 2019-00271"},null,null,null,null,null,null,null,null,{"$f":"Witness","v":"JAMES E. ZIOLKOWSKI"}]
[{"$f":"data_filing","v":"DATA: 12 MONTHS ACTUAL  & 0 MONTHS ESTIMATED"},null,null,null,null,null,null,null,null,{"$f":"\"PAGE \"&Pages2-4&\" OF \"&Pages2","v":"PAGE 11 OF 15"}]
[{"$f":"type","v":"TYPE OF FILING: \"X\" ORIGINAL   UPDATED    REVISED  "}]
[]
[]
["LINE",null,null,null,null,"TOTAL","CLASSIFIED",null,null,"TOTAL","ALL"]
["NO.","OTHER TAXES & MISC EXPENSES",null,"ALLO",null,{"$f":"$F$9","v":"OTHER WP"},{"$f":"G9","v":"DEMAND"},"ENERGY","CUSTOMER","AT ISSUE","OTHER"]
[null,null,"Schedule 8",null,null,null,3,4,5]
[1,"TAXES OTHER THAN INC & REV"]
[2," REAL ESTATE & PROPERTY TAX"]
[3,null,{"$f":"'FR-16(7)(v)-1 Functional'!C596","v":"REAL ESTATE & PROPERTY TAX"},{"$f":"'FR-16(7)(v)-1 Functional'!D596","v":"NP29"},null,{"$f":"'FR-16(7)(v)-14 TOTAL CLASS'!Q596","v":1475},{"$f":"'FR-16(7)(v)-3 PROD Demand'!Q596+'FR-16(7)(v)-7 TRANS Demand'!Q596+'FR-16(7)(v)-11 DIST Demand'!Q596","v":1337},{"$f":"'FR-16(7)(v)-4 PROD Energy'!Q596+'FR-16(7)(v)-8 TRANS Energy'!Q596+'FR-16(7)(v)-12 DIST Energy'!Q596","v":20},{"$f":"'FR-16(7)(v)-5 PROD Cust'!Q596+'FR-16(7)(v)-9 TRANS Cust'!Q596+'FR-16(7)(v)-13 DIST Cust'!Q596","v":118},{"$f":"SUM(G596:I596)","v":1475},{"$f":"F596-J596","v":0}]
[4,null,{"$f":"'FR-16(7)(v)-1 Functional'!C597","v":"ANNUALIZE PROPERTY TAX"},{"$f":"'FR-16(7)(v)-1 Functional'!D597","v":"NP29"}," ",{"$f":"'FR-16(7)(v)-14 TOTAL CLASS'!Q597","v":0},{"$f":"'FR-16(7)(v)-3 PROD Demand'!Q597+'FR-16(7)(v)-7 TRANS Demand'!Q597+'FR-16(7)(v)-11 DIST Demand'!Q597","v":0},{"$f":"'FR-16(7)(v)-4 PROD Energy'!Q597+'FR-16(7)(v)-8 TRANS Energy'!Q597+'FR-16(7)(v)-12 DIST Energy'!Q597","v":0},{"$f":"'FR-16(7)(v)-5 PROD Cust'!Q597+'FR-16(7)(v)-9 TRANS Cust'!Q597+'FR-16(7)(v)-13 DIST Cust'!Q597","v":0},{"$f":"SUM(G597:I597)","v":0},{"$f":"F597-J597","v":0}]
[5,null,{"$f":"'FR-16(7)(v)-1 Functional'!C598","v":"  TOTAL REAL ESTATE & PROPERTY TAX"},null,null,{"$f":"SUM(F596:F597)","v":1475},1337,20,118,1475,0]
[6]
[7," MISCELLANEOUS TAXES"]
[8,null,{"$f":"'FR-16(7)(v)-1 Functional'!C601","v":"PAYROLL "},{"$f":"'FR-16(7)(v)-1 Functional'!D601","v":"A315"},null,{"$f":"'FR-16(7)(v)-14 TOTAL CLASS'!Q601","v":170},{"$f":"'FR-16(7)(v)-3 PROD Demand'!Q601+'FR-16(7)(v)-7 TRANS Demand'!Q601+'FR-16(7)(v)-11 DIST Demand'!Q601","v":60},{"$f":"'FR-16(7)(v)-4 PROD Energy'!Q601+'FR-16(7)(v)-8 TRANS Energy'!Q601+'FR-16(7)(v)-12 DIST Energy'!Q601","v":71},{"$f":"'FR-16(7)(v)-5 PROD Cust'!Q601+'FR-16(7)(v)-9 TRANS Cust'!Q601+'FR-16(7)(v)-13 DIST Cust'!Q601","v":39},{"$f":"SUM(G601:I601)","v":170},{"$f":"F601-J601","v":0}]
[9,null,{"$f":"'FR-16(7)(v)-1 Functional'!C602","v":"ELIMINATE DSM "},{"$f":"'FR-16(7)(v)-1 Functional'!D602","v":"A315"},null,{"$f":"'FR-16(7)(v)-14 TOTAL CLASS'!Q602","v":-3},{"$f":"'FR-16(7)(v)-3 PROD Demand'!Q602+'FR-16(7)(v)-7 TRANS Demand'!Q602+'FR-16(7)(v)-11 DIST Demand'!Q602","v":-1},{"$f":"'FR-16(7)(v)-4 PROD Energy'!Q602+'FR-16(7)(v)-8 TRANS Energy'!Q602+'FR-16(7)(v)-12 DIST Energy'!Q602","v":-1},{"$f":"'FR-16(7)(v)-5 PROD Cust'!Q602+'FR-16(7)(v)-9 TRANS Cust'!Q602+'FR-16(7)(v)-13 DIST Cust'!Q602","v":-1},{"$f":"SUM(G602:I602)","v":-3},{"$f":"F602-J602","v":0}]
[10,null,{"$f":"'FR-16(7)(v)-1 Functional'!C603","v":"FRANCHISE & LICENSE"},{"$f":"'FR-16(7)(v)-1 Functional'!D603","v":"A315"},null,{"$f":"'FR-16(7)(v)-14 TOTAL CLASS'!Q603","v":0},{"$f":"'FR-16(7)(v)-3 PROD Demand'!Q603+'FR-16(7)(v)-7 TRANS Demand'!Q603+'FR-16(7)(v)-11 DIST Demand'!Q603","v":0},{"$f":"'FR-16(7)(v)-4 PROD Energy'!Q603+'FR-16(7)(v)-8 TRANS Energy'!Q603+'FR-16(7)(v)-12 DIST Energy'!Q603","v":0},{"$f":"'FR-16(7)(v)-5 PROD Cust'!Q603+'FR-16(7)(v)-9 TRANS Cust'!Q603+'FR-16(7)(v)-13 DIST Cust'!Q603","v":0},{"$f":"SUM(G603:I603)","v":0},{"$f":"F603-J603","v":0}]
[11,null,{"$f":"'FR-16(7)(v)-1 Functional'!C604","v":"ELIMINATE ESM"},{"$f":"'FR-16(7)(v)-1 Functional'!D604","v":"A315"},null,{"$f":"'FR-16(7)(v)-14 TOTAL CLASS'!Q604","v":-90},{"$f":"'FR-16(7)(v)-3 PROD Demand'!Q604+'FR-16(7)(v)-7 TRANS Demand'!Q604+'FR-16(7)(v)-11 DIST Demand'!Q604","v":-31},{"$f":"'FR-16(7)(v)-4 PROD Energy'!Q604+'FR-16(7)(v)-8 TRANS Energy'!Q604+'FR-16(7)(v)-12 DIST Energy'!Q604","v":-38},{"$f":"'FR-16(7)(v)-5 PROD Cust'!Q604+'FR-16(7)(v)-9 TRANS Cust'!Q604+'FR-16(7)(v)-13 DIST Cust'!Q604","v":-21},{"$f":"SUM(G604:I604)","v":-90},{"$f":"F604-J604","v":0}]
[12,null,{"$f":"'FR-16(7)(v)-1 Functional'!C605","v":"  TOTAL MISCELLANEOUS TAXES"},null,null,{"$f":"SUM(F601:F604)","v":77},28,32,17,77,0]
[13]
[14," MISCELLANEOUS EXPENSES"]
[15,null,{"$f":"'FR-16(7)(v)-1 Functional'!C608","v":"PSC MAINT. EXP ON INCREASE"},{"$f":"'FR-16(7)(v)-1 Functional'!D608","v":"K902"},null,{"$f":"'FR-16(7)(v)-14 TOTAL CLASS'!Q608","v":5},{"$f":"'FR-16(7)(v)-3 PROD Demand'!Q608+'FR-16(7)(v)-7 TRANS Demand'!Q608+'FR-16(7)(v)-11 DIST Demand'!Q608","v":2},{"$f":"'FR-16(7)(v)-4 PROD Energy'!Q608+'FR-16(7)(v)-8 TRANS Energy'!Q608+'FR-16(7)(v)-12 DIST Energy'!Q608","v":2},{"$f":"'FR-16(7)(v)-5 PROD Cust'!Q608+'FR-16(7)(v)-9 TRANS Cust'!Q608+'FR-16(7)(v)-13 DIST Cust'!Q608","v":1},{"$f":"SUM(G608:I608)","v":5},{"$f":"F608-J608","v":0}]
[16,null,{"$f":"'FR-16(7)(v)-1 Functional'!C609","v":"RESERVED FOR FUTURE USE"},{"$f":"'FR-16(7)(v)-1 Functional'!D609","v":"K902"},null,{"$f":"'FR-16(7)(v)-14 TOTAL CLASS'!Q609","v":0},{"$f":"'FR-16(7)(v)-3 PROD Demand'!Q609+'FR-16(7)(v)-7 TRANS Demand'!Q609+'FR-16(7)(v)-11 DIST Demand'!Q609","v":0},{"$f":"'FR-16(7)(v)-4 PROD Energy'!Q609+'FR-16(7)(v)-8 TRANS Energy'!Q609+'FR-16(7)(v)-12 DIST Energy'!Q609","v":0},{"$f":"'FR-16(7)(v)-5 PROD Cust'!Q609+'FR-16(7)(v)-9 TRANS Cust'!Q609+'FR-16(7)(v)-13 DIST Cust'!Q609","v":0},{"$f":"SUM(G609:I609)","v":0},{"$f":"F609-J609","v":0}]
[17,null,{"$f":"'FR-16(7)(v)-1 Functional'!C610","v":"  TOTAL MISCELLANEOUS EXPENSES"},null,null,{"$f":"SUM(F608:F609)","v":5},2,2,1,5,0]
[18]
[19,"TOTAL OTHER TAX & MISC EXPENSE",null,null," ",{"$f":"F605+F598+F610","v":1557},1367,54,136,1557,0]
[20]
[21,"PRELIMINARY SUMMARY"]
[22,null,{"$f":"'FR-16(7)(v)-1 Functional'!C615","v":"TOTAL O&M EXPENSE"},null,null,{"$f":"F549","v":23661},5896,16261,1504,23661,0]
[23,null,{"$f":"'FR-16(7)(v)-1 Functional'!C616","v":"TOTAL DEPRECIATION EXPENSE"},null,null,{"$f":"F582","v":6354},5739,205,410,6354,0]
[24,null,{"$f":"'FR-16(7)(v)-1 Functional'!C617","v":"TOTAL OTHER TAX & MISC EXPENSE"},null,null,{"$f":"F612","v":1557},1367,54,136,1557,0]
[25,null,{"$f":"'FR-16(7)(v)-1 Functional'!C618","v":"  TOTAL OPER EXP EXCL INCOME & REV TAX"},null,null,{"$f":"SUM(F615:F617)","v":31572},13002,16520,2050,31572,0]
[]
[{"$f":"co_name","v":"DUKE ENERGY KENTUCKY, INC."},null,null,null,null,null,null,null,null,{"$f":"J1","v":"FR-16(7)(v)-25"}]
[{"$f":"$A$2","v":"OTHER WP CLASSIFIED - ELECTRIC COST OF SERVICE"},null,null,null,null,null,null,null,null,{"$f":"J2","v":"WITNESS RESPONSIBLE:"}]
[{"$f":"case_name","v":"CASE NO: 2019-00271"},null,null,null,null,null,null,null,null,{"$f":"Witness","v":"JAMES E. ZIOLKOWSKI"}]
[{"$f":"data_filing","v":"DATA: 12 MONTHS ACTUAL  & 0 MONTHS ESTIMATED"},null,null,null,null,null,null,null,null,{"$f":"\"PAGE \"&Pages2-3&\" OF \"&Pages2","v":"PAGE 12 OF 15"}]
[{"$f":"type","v":"TYPE OF FILING: \"X\" ORIGINAL   UPDATED    REVISED  "}]
[]
[]
["LINE",null,null,null,null,"TOTAL","CLASSIFIED",null,null,"TOTAL","ALL"]
["NO.","FEDERAL INCOME TAX BASED ON RETURN",null,"ALLO",null,{"$f":"$F$9","v":"OTHER WP"},{"$f":"$G$9","v":"DEMAND"},{"$f":"$H$9","v":"ENERGY"},{"$f":"$I$9","v":"CUSTOMER"},"AT ISSUE","OTHER"]
[null,null,"Schedule 9",null,null,null,{"$f":"G10","v":3},{"$f":"H10","v":4},{"$f":"I10","v":5}]
[1,"FEDERAL INCOME TAX DEDUCTIONS"]
[2," AUTOMATIC INTEREST CALCULATION",null,null,null," "]
[3,null,{"$f":"'FR-16(7)(v)-1 Functional'!C632","v":"AUTO PROC INTEREST DED"},{"$f":"'FR-16(7)(v)-1 Functional'!D632","v":"RB99"},null,{"$f":"'FR-16(7)(v)-14 TOTAL CLASS'!Q632","v":2047},{"$f":"'FR-16(7)(v)-3 PROD Demand'!Q632+'FR-16(7)(v)-7 TRANS Demand'!Q632+'FR-16(7)(v)-11 DIST Demand'!Q632","v":1794},{"$f":"'FR-16(7)(v)-4 PROD Energy'!Q632+'FR-16(7)(v)-8 TRANS Energy'!Q632+'FR-16(7)(v)-12 DIST Energy'!Q632","v":69},{"$f":"'FR-16(7)(v)-5 PROD Cust'!Q632+'FR-16(7)(v)-9 TRANS Cust'!Q632+'FR-16(7)(v)-13 DIST Cust'!Q632","v":184},{"$f":"SUM(G632:I632)","v":2047},{"$f":"F632-J632","v":0}]
[4,null,{"$f":"'FR-16(7)(v)-1 Functional'!C633","v":"  TOTAL INTEREST EXPENSE"},null,null,{"$f":"F632","v":2047},1794,69,184,2047,0]
[5]
[6," OTHER DEDUCTIONS"]
[7,null,{"$f":"'FR-16(7)(v)-1 Functional'!C636","v":"DEPREC EXCESS TAX-BOOK"},{"$f":"'FR-16(7)(v)-1 Functional'!D636","v":"DE49"},null,{"$f":"'FR-16(7)(v)-14 TOTAL CLASS'!Q636","v":-1508},{"$f":"'FR-16(7)(v)-3 PROD Demand'!Q636+'FR-16(7)(v)-7 TRANS Demand'!Q636+'FR-16(7)(v)-11 DIST Demand'!Q636","v":-1360},{"$f":"'FR-16(7)(v)-4 PROD Energy'!Q636+'FR-16(7)(v)-8 TRANS Energy'!Q636+'FR-16(7)(v)-12 DIST Energy'!Q636","v":-49},{"$f":"'FR-16(7)(v)-5 PROD Cust'!Q636+'FR-16(7)(v)-9 TRANS Cust'!Q636+'FR-16(7)(v)-13 DIST Cust'!Q636","v":-99},{"$f":"SUM(G636:I636)","v":-1508},{"$f":"F636-J636","v":0}]
[8,null,{"$f":"'FR-16(7)(v)-1 Functional'!C637","v":"PERMANENT DIFFERENCES"},{"$f":"'FR-16(7)(v)-1 Functional'!D637","v":"A357"},null,{"$f":"'FR-16(7)(v)-14 TOTAL CLASS'!Q637","v":-38},{"$f":"'FR-16(7)(v)-3 PROD Demand'!Q637+'FR-16(7)(v)-7 TRANS Demand'!Q637+'FR-16(7)(v)-11 DIST Demand'!Q637","v":-13},{"$f":"'FR-16(7)(v)-4 PROD Energy'!Q637+'FR-16(7)(v)-8 TRANS Energy'!Q637+'FR-16(7)(v)-12 DIST Energy'!Q637","v":-16},{"$f":"'FR-16(7)(v)-5 PROD Cust'!Q637+'FR-16(7)(v)-9 TRANS Cust'!Q637+'FR-16(7)(v)-13 DIST Cust'!Q637","v":-9},{"$f":"SUM(G637:I637)","v":-38},{"$f":"F637-J637","v":0}]
[9,null,{"$f":"'FR-16(7)(v)-1 Functional'!C638","v":"TEMPORARY DIFFERENCES"},{"$f":"'FR-16(7)(v)-1 Functional'!D638","v":"DE49"},null,{"$f":"'FR-16(7)(v)-14 TOTAL CLASS'!Q638","v":9204},{"$f":"'FR-16(7)(v)-3 PROD Demand'!Q638+'FR-16(7)(v)-7 TRANS Demand'!Q638+'FR-16(7)(v)-11 DIST Demand'!Q638","v":8302},{"$f":"'FR-16(7)(v)-4 PROD Energy'!Q638+'FR-16(7)(v)-8 TRANS Energy'!Q638+'FR-16(7)(v)-12 DIST Energy'!Q638","v":297},{"$f":"'FR-16(7)(v)-5 PROD Cust'!Q638+'FR-16(7)(v)-9 TRANS Cust'!Q638+'FR-16(7)(v)-13 DIST Cust'!Q638","v":605},{"$f":"SUM(G638:I638)","v":9204},{"$f":"F638-J638","v":0}]
[10,null,{"$f":"'FR-16(7)(v)-1 Functional'!C639","v":"  TOTAL OTHER DEDUCTIONS"},null,null,{"$f":"SUM(F636:F638)","v":7658},6929,232,497,7658,0]
[11]
[12,"NET DEDUCTIONS AND ADDITIONS",null,null,null,{"$f":"F639+F633","v":9705},8723,301,681,9705,0]
[13]
[14," FED DEFERRED INCOME TAX (410 & 411)"]
[15,null,{"$f":"'FR-16(7)(v)-1 Functional'!C644","v":"DEFERRED INCOME TAXES - NET"},{"$f":"'FR-16(7)(v)-1 Functional'!D644","v":"OM39"},null,{"$f":"'FR-16(7)(v)-14 TOTAL CLASS'!Q644","v":1578},{"$f":"'FR-16(7)(v)-3 PROD Demand'!Q644+'FR-16(7)(v)-7 TRANS Demand'!Q644+'FR-16(7)(v)-11 DIST Demand'!Q644","v":393},{"$f":"'FR-16(7)(v)-4 PROD Energy'!Q644+'FR-16(7)(v)-8 TRANS Energy'!Q644+'FR-16(7)(v)-12 DIST Energy'!Q644","v":1082},{"$f":"'FR-16(7)(v)-5 PROD Cust'!Q644+'FR-16(7)(v)-9 TRANS Cust'!Q644+'FR-16(7)(v)-13 DIST Cust'!Q644","v":103},{"$f":"SUM(G644:I644)","v":1578},{"$f":"F644-J644","v":0}]
[16,null,{"$f":"'FR-16(7)(v)-1 Functional'!C645","v":"AMORT OF DEFERRED MERGER COST"},{"$f":"'FR-16(7)(v)-1 Functional'!D645","v":"A357"},null,{"$f":"'FR-16(7)(v)-14 TOTAL CLASS'!Q645","v":0},{"$f":"'FR-16(7)(v)-3 PROD Demand'!Q645+'FR-16(7)(v)-7 TRANS Demand'!Q645+'FR-16(7)(v)-11 DIST Demand'!Q645","v":0},{"$f":"'FR-16(7)(v)-4 PROD Energy'!Q645+'FR-16(7)(v)-8 TRANS Energy'!Q645+'FR-16(7)(v)-12 DIST Energy'!Q645","v":0},{"$f":"'FR-16(7)(v)-5 PROD Cust'!Q645+'FR-16(7)(v)-9 TRANS Cust'!Q645+'FR-16(7)(v)-13 DIST Cust'!Q645","v":0},{"$f":"SUM(G645:I645)","v":0},{"$f":"F645-J645","v":0}]
[17,null,{"$f":"'FR-16(7)(v)-1 Functional'!C646","v":"DIT ADJUSTMENT - S/L DEPRECIATION"},{"$f":"'FR-16(7)(v)-1 Functional'!D646","v":"DE49"},null,{"$f":"'FR-16(7)(v)-14 TOTAL CLASS'!Q646","v":0},{"$f":"'FR-16(7)(v)-3 PROD Demand'!Q646+'FR-16(7)(v)-7 TRANS Demand'!Q646+'FR-16(7)(v)-11 DIST Demand'!Q646","v":0},{"$f":"'FR-16(7)(v)-4 PROD Energy'!Q646+'FR-16(7)(v)-8 TRANS Energy'!Q646+'FR-16(7)(v)-12 DIST Energy'!Q646","v":0},{"$f":"'FR-16(7)(v)-5 PROD Cust'!Q646+'FR-16(7)(v)-9 TRANS Cust'!Q646+'FR-16(7)(v)-13 DIST Cust'!Q646","v":0},{"$f":"SUM(G646:I646)","v":0},{"$f":"F646-J646","v":0}]
[18,null,{"$f":"'FR-16(7)(v)-1 Functional'!C647","v":"DIT ADJUSTMENT - ARAM"},{"$f":"'FR-16(7)(v)-1 Functional'!D647","v":"K201"},null,{"$f":"'FR-16(7)(v)-14 TOTAL CLASS'!Q647","v":-12},{"$f":"'FR-16(7)(v)-3 PROD Demand'!Q647+'FR-16(7)(v)-7 TRANS Demand'!Q647+'FR-16(7)(v)-11 DIST Demand'!Q647","v":-12},{"$f":"'FR-16(7)(v)-4 PROD Energy'!Q647+'FR-16(7)(v)-8 TRANS Energy'!Q647+'FR-16(7)(v)-12 DIST Energy'!Q647","v":0},{"$f":"'FR-16(7)(v)-5 PROD Cust'!Q647+'FR-16(7)(v)-9 TRANS Cust'!Q647+'FR-16(7)(v)-13 DIST Cust'!Q647","v":0},{"$f":"SUM(G647:I647)","v":-12},{"$f":"F647-J647","v":0}]
[19,null,{"$f":"'FR-16(7)(v)-1 Functional'!C648","v":"DIT ADJUSTMENT - AMORT OF EXCESS DEF TAXES"},{"$f":"'FR-16(7)(v)-1 Functional'!D648","v":"A357"},null,{"$f":"'FR-16(7)(v)-14 TOTAL CLASS'!Q648","v":-334},{"$f":"'FR-16(7)(v)-3 PROD Demand'!Q648+'FR-16(7)(v)-7 TRANS Demand'!Q648+'FR-16(7)(v)-11 DIST Demand'!Q648","v":-117},{"$f":"'FR-16(7)(v)-4 PROD Energy'!Q648+'FR-16(7)(v)-8 TRANS Energy'!Q648+'FR-16(7)(v)-12 DIST Energy'!Q648","v":-140},{"$f":"'FR-16(7)(v)-5 PROD Cust'!Q648+'FR-16(7)(v)-9 TRANS Cust'!Q648+'FR-16(7)(v)-13 DIST Cust'!Q648","v":-77},{"$f":"SUM(G648:I648)","v":-334},{"$f":"F648-J648","v":0}]
[20,null,{"$f":"'FR-16(7)(v)-1 Functional'!C649","v":"  TOTAL FED DEF IT (410 & 411)"},null,null,{"$f":"SUM(F644:F648)","v":1232},264,942,26,1232,0]
[21]
[22," AMORT INV TAX CREDIT"]
[23,null,{"$f":"'FR-16(7)(v)-1 Functional'!C652","v":"AMORTIZE ITC"},{"$f":"'FR-16(7)(v)-1 Functional'!D652","v":"NP29"},null,{"$f":"'FR-16(7)(v)-14 TOTAL CLASS'!Q652","v":0},{"$f":"'FR-16(7)(v)-3 PROD Demand'!Q652+'FR-16(7)(v)-7 TRANS Demand'!Q652+'FR-16(7)(v)-11 DIST Demand'!Q652","v":0},{"$f":"'FR-16(7)(v)-4 PROD Energy'!Q652+'FR-16(7)(v)-8 TRANS Energy'!Q652+'FR-16(7)(v)-12 DIST Energy'!Q652","v":0},{"$f":"'FR-16(7)(v)-5 PROD Cust'!Q652+'FR-16(7)(v)-9 TRANS Cust'!Q652+'FR-16(7)(v)-13 DIST Cust'!Q652","v":0},{"$f":"SUM(G652:I652)","v":0},{"$f":"F652-J652","v":0}]
[24,null,{"$f":"'FR-16(7)(v)-1 Functional'!C653","v":"  TOTAL AMORTIZED ITC"},null,null,{"$f":"SUM(F652:F652)","v":0},0,0,0,0,0]
[25]
[26," OTHER FEDERAL TAX CREDITS"]
[27,null,{"$f":"'FR-16(7)(v)-1 Functional'!C656","v":"FUEL TAX CREDIT"},{"$f":"'FR-16(7)(v)-1 Functional'!D656","v":"K301"},null,{"$f":"'FR-16(7)(v)-14 TOTAL CLASS'!Q656","v":0},{"$f":"'FR-16(7)(v)-3 PROD Demand'!Q656+'FR-16(7)(v)-7 TRANS Demand'!Q656+'FR-16(7)(v)-11 DIST Demand'!Q656","v":0},{"$f":"'FR-16(7)(v)-4 PROD Energy'!Q656+'FR-16(7)(v)-8 TRANS Energy'!Q656+'FR-16(7)(v)-12 DIST Energy'!Q656","v":0},{"$f":"'FR-16(7)(v)-5 PROD Cust'!Q656+'FR-16(7)(v)-9 TRANS Cust'!Q656+'FR-16(7)(v)-13 DIST Cust'!Q656","v":0},{"$f":"SUM(G656:I656)","v":0},{"$f":"F656-J656","v":0}]
[28,null,{"$f":"'FR-16(7)(v)-1 Functional'!C657","v":"R&D CREDIT - SECTION 41"},{"$f":"'FR-16(7)(v)-1 Functional'!D657","v":"A315"},null,{"$f":"'FR-16(7)(v)-14 TOTAL CLASS'!Q657","v":0},{"$f":"'FR-16(7)(v)-3 PROD Demand'!Q657+'FR-16(7)(v)-7 TRANS Demand'!Q657+'FR-16(7)(v)-11 DIST Demand'!Q657","v":0},{"$f":"'FR-16(7)(v)-4 PROD Energy'!Q657+'FR-16(7)(v)-8 TRANS Energy'!Q657+'FR-16(7)(v)-12 DIST Energy'!Q657","v":0},{"$f":"'FR-16(7)(v)-5 PROD Cust'!Q657+'FR-16(7)(v)-9 TRANS Cust'!Q657+'FR-16(7)(v)-13 DIST Cust'!Q657","v":0},{"$f":"SUM(G657:I657)","v":0},{"$f":"F657-J657","v":0}]
[29,null,{"$f":"'FR-16(7)(v)-1 Functional'!C658","v":"  TOTAL OTHER FEDERAL TAX CREDITS"},null,null,{"$f":"SUM(F656:F657)","v":0},0,0,0,0,0]
[30]
[31,"PRELIMINARY SUMMARY"]
[32,null,{"$f":"'FR-16(7)(v)-1 Functional'!C661","v":"TOTAL FED DEF IT (410 & 411)"},null,null,{"$f":"F649","v":1232},264,942,26,1232,0]
[33,null,{"$f":"'FR-16(7)(v)-1 Functional'!C662","v":"TOTAL AMORTIZED ITC & OTHER FEDERAL TAX CREDITS"},null,null,{"$f":"-F653-F658","v":0},0,0,0,0,0]
[34,null,{"$f":"'FR-16(7)(v)-1 Functional'!C663","v":"  TOTAL FEDERAL TAX ADJUSTMENTS"},null,null,{"$f":"SUM(F661:F662)","v":1232},264,942,26,1232,0]
[35]
[36,"FEDERAL INCOME TAX COMPUTATION"]
[37,null,"RETURN ON RATE BASE",null,null,{"$f":"F433","v":6924},{"$f":"G433","v":6066},{"$f":"H433","v":234},{"$f":"I433","v":624},{"$f":"J433","v":6924},{"$f":"F666-J666","v":0}]
[38,null,{"$f":"'FR-16(7)(v)-1 Functional'!C667","v":"NET DEDUCTIONS AND ADDITIONS"},null,null,{"$f":"-F641","v":-9705},{"$f":"-G641","v":-8723},{"$f":"-H641","v":-301},{"$f":"-I641","v":-681},{"$f":"-J641","v":-9705},{"$f":"F667-J667","v":0}]
[39,null,{"$f":"'FR-16(7)(v)-1 Functional'!C668","v":"TOTAL FEDERAL TAX ADJUSTMENTS"},null,null,{"$f":"F663","v":1232},{"$f":"G663","v":264},{"$f":"H663","v":942},{"$f":"I663","v":26},{"$f":"J663","v":1232},{"$f":"F668-J668","v":0}]
[40,null,"TOTAL STATE PROV DEF IT (410 & 411)",null,null,{"$f":"F707","v":332},{"$f":"G707","v":116},{"$f":"H707","v":139},{"$f":"I707","v":77},{"$f":"J707","v":332},{"$f":"F669-J669","v":0}]
[41,null,"RESERVED",null,null,{"$f":"F24","v":0},{"$f":"G24","v":0},{"$f":"H24","v":0},{"$f":"I24","v":0},{"$f":"J24","v":0},{"$f":"F670-J670","v":0}]
[42,null,{"$f":"'FR-16(7)(v)-1 Functional'!C671","v":"  BASE FOR FIT COMPUATION"},null,null,{"$f":"SUM(F666:F670)","v":-1217},-2277,1014,46,-1217,0]
[43]
[44,null,{"$f":"'FR-16(7)(v)-1 Functional'!C673","v":"FIT FACTOR K190/(1-K190)"},null,null,{"$f":"ROUND(FIT/(1-FIT),9)","v":0.26582278500000001},{"$f":"ROUND(FIT/(1-FIT),9)","v":0.26582278500000001},{"$f":"ROUND(FIT/(1-FIT),9)","v":0.26582278500000001},{"$f":"ROUND(FIT/(1-FIT),9)","v":0.26582278500000001},null,{"$f":"ROUND(FIT/(1-FIT),9)","v":0.26582278500000001}]
[45,null,{"$f":"'FR-16(7)(v)-1 Functional'!C674","v":"PRELIM FED INCOME TAX"},null,null,{"$f":"'FR-16(7)(v)-14 TOTAL CLASS'!Q674","v":-324},{"$f":"F674-SUM(H674:I674)","v":-606},{"$f":"'FR-16(7)(v)-4 PROD Energy'!Q674+'FR-16(7)(v)-8 TRANS Energy'!Q674+'FR-16(7)(v)-12 DIST Energy'!Q674","v":270},{"$f":"'FR-16(7)(v)-5 PROD Cust'!Q674+'FR-16(7)(v)-9 TRANS Cust'!Q674+'FR-16(7)(v)-13 DIST Cust'!Q674","v":12},{"$f":"SUM(G674:I674)","v":-324},{"$f":"F674-J674","v":0}]
[46,null,{"$f":"'FR-16(7)(v)-1 Functional'!C675","v":"TOTAL FEDERAL TAX ADJUSTMENTS"},null,null,{"$f":"F663","v":1232},{"$f":"G663","v":264},{"$f":"H663","v":942},{"$f":"I663","v":26},{"$f":"J663","v":1232},{"$f":"F675-J675","v":0}]
[47,null,{"$f":"'FR-16(7)(v)-1 Functional'!C676","v":"  NET FED INCOME TAX ALLOWABLE"},null,null,{"$f":"SUM(F674:F675)","v":908},-342,1212,38,908,0]
[48]
[49,"INCOME TAX BASED ON RETURN"]
[50,"FEDERAL INCOME TAX PAYABLE"]
[51,null,{"$f":"'FR-16(7)(v)-1 Functional'!C680","v":"PRELIM FEDERAL INCOME TAX"},null,null,{"$f":"F674","v":-324},-606,270,12,-324,0]
[53,null,{"$f":"'FR-16(7)(v)-1 Functional'!C681","v":"  NET FED INCOME TAX PAYABLE"},null,null,{"$f":"SUM(F680:F680)","v":-324},-606,270,12,-324,0]
[]
[{"$f":"co_name","v":"DUKE ENERGY KENTUCKY, INC."},null,null,null,null,null,null,null,null,{"$f":"J1","v":"FR-16(7)(v)-25"}]
[{"$f":"$A$2","v":"OTHER WP CLASSIFIED - ELECTRIC COST OF SERVICE"},null,null,null,null,null,null,null,null,{"$f":"J2","v":"WITNESS RESPONSIBLE:"}]
[{"$f":"case_name","v":"CASE NO: 2019-00271"},null,null,null,null,null,null,null,null,{"$f":"Witness","v":"JAMES E. ZIOLKOWSKI"}]
[{"$f":"data_filing","v":"DATA: 12 MONTHS ACTUAL  & 0 MONTHS ESTIMATED"},null,null,null,null,null,null,null,null,{"$f":"\"PAGE \"&Pages2-2&\" OF \"&Pages2","v":"PAGE 13 OF 15"}]
[{"$f":"type","v":"TYPE OF FILING: \"X\" ORIGINAL   UPDATED    REVISED  "}]
[]
[]
["LINE",null,null,null,null,"TOTAL","CLASSIFIED",null,null,"TOTAL","ALL"]
["NO.","STATE INCOME TAX BASED ON RETURN",null,"Allo",null,"GAS",{"$f":"$G$9","v":"DEMAND"},{"$f":"$H$9","v":"ENERGY"},{"$f":"$I$9","v":"CUSTOMER"},"AT ISSUE","OTHER"]
[null,null,"Schedule 9.1",null,null,null,{"$f":"$G$10","v":3},{"$f":"$H$10","v":4},{"$f":"$I$10","v":5}]
[1,"DEDUCTIONS IN ADDITION TO Y871"]
[2,"KY TAXABLE INCOME ADJUSTMENT",null,{"$f":"'FR-16(7)(v)-1 Functional'!D694","v":"NP29"},null,{"$f":"'FR-16(7)(v)-14 TOTAL CLASS'!Q694","v":926},{"$f":"'FR-16(7)(v)-3 PROD Demand'!Q694+'FR-16(7)(v)-7 TRANS Demand'!Q694+'FR-16(7)(v)-11 DIST Demand'!Q694","v":839},{"$f":"'FR-16(7)(v)-4 PROD Energy'!Q694+'FR-16(7)(v)-8 TRANS Energy'!Q694+'FR-16(7)(v)-12 DIST Energy'!Q694","v":13},{"$f":"'FR-16(7)(v)-5 PROD Cust'!Q694+'FR-16(7)(v)-9 TRANS Cust'!Q694+'FR-16(7)(v)-13 DIST Cust'!Q694","v":74},{"$f":"SUM(G694:I694)","v":926},{"$f":"F694-J694","v":0}]
[3,"RESERVED FOR FUTURE USE",null,{"$f":"'FR-16(7)(v)-1 Functional'!D695","v":"NP29"},null,{"$f":"'FR-16(7)(v)-14 TOTAL CLASS'!Q695","v":0},{"$f":"'FR-16(7)(v)-3 PROD Demand'!Q695+'FR-16(7)(v)-7 TRANS Demand'!Q695+'FR-16(7)(v)-11 DIST Demand'!Q695","v":0},{"$f":"'FR-16(7)(v)-4 PROD Energy'!Q695+'FR-16(7)(v)-8 TRANS Energy'!Q695+'FR-16(7)(v)-12 DIST Energy'!Q695","v":0},{"$f":"'FR-16(7)(v)-5 PROD Cust'!Q695+'FR-16(7)(v)-9 TRANS Cust'!Q695+'FR-16(7)(v)-13 DIST Cust'!Q695","v":0},{"$f":"SUM(G695:I695)","v":0},{"$f":"F695-J695","v":0}]
[4,"  DEDUCTIONS IN ADD TO Y871",null,null,null,{"$f":"SUM(F694:F695)","v":926},839,13,74,926,0]
[5]
[6,"STATE INCOME TAX ADJUSTMENTS"]
[7,"STATE PROV DEF INC TAX (410 & 411)"]
[8,"OTHER DEFERRED INCOME TAXES - NET",null,{"$f":"'FR-16(7)(v)-1 Functional'!D700","v":"A357"},null,{"$f":"'FR-16(7)(v)-14 TOTAL CLASS'!Q700","v":332},{"$f":"'FR-16(7)(v)-3 PROD Demand'!Q700+'FR-16(7)(v)-7 TRANS Demand'!Q700+'FR-16(7)(v)-11 DIST Demand'!Q700","v":116},{"$f":"'FR-16(7)(v)-4 PROD Energy'!Q700+'FR-16(7)(v)-8 TRANS Energy'!Q700+'FR-16(7)(v)-12 DIST Energy'!Q700","v":139},{"$f":"'FR-16(7)(v)-5 PROD Cust'!Q700+'FR-16(7)(v)-9 TRANS Cust'!Q700+'FR-16(7)(v)-13 DIST Cust'!Q700","v":77},{"$f":"SUM(G700:I700)","v":332},{"$f":"F700-J700","v":0}]
[9,"  TOT STATE PROV DEF IT (410 & 411)",null,null,null,{"$f":"SUM(F700)","v":332},116,139,77,332,0]
[10]
[11,"OTHER SIT ADJUSTMENTS"]
[12,"CURRENT YEAR PAYABLE ADJUSTMENT",null,{"$f":"'FR-16(7)(v)-1 Functional'!D704","v":"NP29"},null,{"$f":"'FR-16(7)(v)-14 TOTAL CLASS'!Q704","v":0},{"$f":"'FR-16(7)(v)-3 PROD Demand'!Q704+'FR-16(7)(v)-7 TRANS Demand'!Q704+'FR-16(7)(v)-11 DIST Demand'!Q704","v":0},{"$f":"'FR-16(7)(v)-4 PROD Energy'!Q704+'FR-16(7)(v)-8 TRANS Energy'!Q704+'FR-16(7)(v)-12 DIST Energy'!Q704","v":0},{"$f":"'FR-16(7)(v)-5 PROD Cust'!Q704+'FR-16(7)(v)-9 TRANS Cust'!Q704+'FR-16(7)(v)-13 DIST Cust'!Q704","v":0},{"$f":"SUM(G704:I704)","v":0},{"$f":"F704-J704","v":0}]
[13,"  OTHER SIT ADJUSMENTS",null,null,null,{"$f":"SUM(F704)","v":0},0,0,0,0,0]
[14]
[15,"TOTAL STATE INC TAX ADJUSTMENT",null,null,null,{"$f":"F705+F701","v":332},116,139,77,332,0]
[16]
[17,"INCOME TAX BASED ON RETURN"]
[18,"SUMMARY OF SIT CALCULATION"]
[19,"RETURN ON RATE BASE",null,null,null,{"$f":"F433","v":6924},{"$f":"G433","v":6066},{"$f":"H433","v":234},{"$f":"I433","v":624},{"$f":"J433","v":6924},{"$f":"F711-J711","v":0}]
[20,"NET FED INCOME TAX ALLOWABLE",null,null,null,{"$f":"F676","v":908},{"$f":"G676","v":-342},{"$f":"H676","v":1212},{"$f":"I676","v":38},{"$f":"J676","v":908},0]
[21,"NET FED. DED. AND ADDITIONS",null,null,null,{"$f":"-F641","v":-9705},{"$f":"-G641","v":-8723},{"$f":"-H641","v":-301},{"$f":"-I641","v":-681},{"$f":"-J641","v":-9705},0]
[22,"DEDUCTIONS IN ADD TO Y871",null,null,null,{"$f":"-F696","v":-926},{"$f":"-G696","v":-839},{"$f":"-H696","v":-13},{"$f":"-I696","v":-74},{"$f":"-J696","v":-926},0]
[23,"RESERVED",null,null,null,{"$f":"F24","v":0},{"$f":"G24","v":0},{"$f":"H24","v":0},{"$f":"I24","v":0},{"$f":"J24","v":0},0]
[24,"TOTAL STATE INC TAX ADJ",null,null,null,{"$f":"F707","v":332},{"$f":"G707","v":116},{"$f":"H707","v":139},{"$f":"I707","v":77},{"$f":"J707","v":332},0]
[25,"  BASE FOR SIT COMPUTATION",null,null,null,{"$f":"SUM(F711:F716)","v":-2467},-3722,1271,-16,-2467,0]
[26]
[27,"SIT FACTOR K192/(1-K192)",null,null,null,{"$f":"ROUND(SIT/(1-SIT),8)","v":5.2282660000000002E-2},{"$f":"ROUND(SIT/(1-SIT),8)","v":5.2282660000000002E-2},{"$f":"ROUND(SIT/(1-SIT),8)","v":5.2282660000000002E-2},{"$f":"ROUND(SIT/(1-SIT),8)","v":5.2282660000000002E-2},null,{"$f":"ROUND(SIT/(1-SIT),8)","v":5.2282660000000002E-2}]
[28,"PRELIMINARY STATE INCOME TAX",null,null,null,{"$f":"ROUND(F717*F719,0)","v":-129},{"$f":"'FR-16(7)(v)-3 PROD Demand'!Q720+'FR-16(7)(v)-7 TRANS Demand'!Q720+'FR-16(7)(v)-11 DIST Demand'!Q720","v":-194},{"$f":"ROUND(H717*H719,0)","v":66},{"$f":"ROUND(I717*I719,0)","v":-1},{"$f":"SUM(G720:I720)","v":-129},{"$f":"F720-J720","v":0}]
[29,"TOTAL STATE INCOME TAX ADJ.",null,null,null,{"$f":"F707","v":332},{"$f":"G707","v":116},{"$f":"H707","v":139},{"$f":"I707","v":77},{"$f":"J707","v":332},{"$f":"F721-J721","v":0}]
[30,"  NET STATE INC TAX ALLOWABLE",null,null,null,{"$f":"F721+F720","v":203},-78,205,76,203,0]
[31]
[32,"STATE INCOME TAX PAYABLE"]
[33,"PRELIMINARY STATE INCOME TAX",null,null,null,{"$f":"F720","v":-129},{"$f":"G720","v":-194},{"$f":"H720","v":66},{"$f":"I720","v":-1},{"$f":"J720","v":-129},{"$f":"F725-J725","v":0}]
[34,"OTHER SIT ADJUSTMENTS",null,null,null,{"$f":"F705","v":0},{"$f":"G705","v":0},{"$f":"H705","v":0},{"$f":"I705","v":0},{"$f":"J705","v":0},{"$f":"F726-J726","v":0}]
[35,"  NET STATE INCOME TAX PAYABLE",null,null,null,{"$f":"F725+F726","v":-129},-194,66,-1,-129,0]
[36]
[37,"COMPOSITE TAX RATE",null,null,null,{"$f":"(SIT*(1-FIT))+((1-SIT)*(1-FIT)*RevTax)+FIT","v":0.24925115},0.24925115,0.24925115,0.24925115,0.24925115,0.24925115]
[]
[{"$f":"co_name","v":"DUKE ENERGY KENTUCKY, INC."},null,null,null,null,null,null,null,null,{"$f":"J1","v":"FR-16(7)(v)-25"}]
[{"$f":"$A$2","v":"OTHER WP CLASSIFIED - ELECTRIC COST OF SERVICE"},null,null,null,null,null,null,null,null,{"$f":"J2","v":"WITNESS RESPONSIBLE:"}]
[{"$f":"case_name","v":"CASE NO: 2019-00271"},null,null,null,null,null,null,null,null,{"$f":"Witness","v":"JAMES E. ZIOLKOWSKI"}]
[{"$f":"data_filing","v":"DATA: 12 MONTHS ACTUAL  & 0 MONTHS ESTIMATED"},null,null,null,null,null,null,null,null,{"$f":"\"PAGE \"&Pages2-1&\" OF \"&Pages2","v":"PAGE 14 OF 15"}]
[{"$f":"type","v":"TYPE OF FILING: \"X\" ORIGINAL   UPDATED    REVISED  "}]
[]
[]
["LINE",null,null,null,null,"TOTAL","CLASSIFIED",null,null,"TOTAL","ALL"]
["NO.","COST OF SERVICE COMPUTATION",null,"ALLO",null,{"$f":"$F$9","v":"OTHER WP"},{"$f":"G9","v":"DEMAND"},"ENERGY","CUSTOMER","AT ISSUE","OTHER"]
[null,null,"Schedule 10",null,null,null,3,4,5]
[1,"OTHER OPERATING REVENUES"]
[2,null,{"$f":"'FR-16(7)(v)-1 Functional'!C742","v":"MISC SERVICE REVENUE"},{"$f":"'FR-16(7)(v)-1 Functional'!D742","v":"D249"},null,{"$f":"'FR-16(7)(v)-14 TOTAL CLASS'!Q742","v":26},{"$f":"'FR-16(7)(v)-3 PROD Demand'!Q742+'FR-16(7)(v)-7 TRANS Demand'!Q742+'FR-16(7)(v)-11 DIST Demand'!Q742","v":21},{"$f":"'FR-16(7)(v)-4 PROD Energy'!Q742+'FR-16(7)(v)-8 TRANS Energy'!Q742+'FR-16(7)(v)-12 DIST Energy'!Q742","v":0},{"$f":"'FR-16(7)(v)-5 PROD Cust'!Q742+'FR-16(7)(v)-9 TRANS Cust'!Q742+'FR-16(7)(v)-13 DIST Cust'!Q742","v":5},{"$f":"SUM(G742:I742)","v":26},{"$f":"F742-J742","v":0}]
[3,null,{"$f":"'FR-16(7)(v)-1 Functional'!C743","v":"INTERDEPARTMENTAL"},{"$f":"'FR-16(7)(v)-1 Functional'!D743","v":"K902"},null,{"$f":"'FR-16(7)(v)-14 TOTAL CLASS'!Q743","v":0},{"$f":"'FR-16(7)(v)-3 PROD Demand'!Q743+'FR-16(7)(v)-7 TRANS Demand'!Q743+'FR-16(7)(v)-11 DIST Demand'!Q743","v":0},{"$f":"'FR-16(7)(v)-4 PROD Energy'!Q743+'FR-16(7)(v)-8 TRANS Energy'!Q743+'FR-16(7)(v)-12 DIST Energy'!Q743","v":0},{"$f":"'FR-16(7)(v)-5 PROD Cust'!Q743+'FR-16(7)(v)-9 TRANS Cust'!Q743+'FR-16(7)(v)-13 DIST Cust'!Q743","v":0},0,{"$f":"F743-J743","v":0}]
[4,null,{"$f":"'FR-16(7)(v)-1 Functional'!C744","v":"POLE & LINE ATTACHMENTS"},{"$f":"'FR-16(7)(v)-1 Functional'!D744","v":"D249"},null,{"$f":"'FR-16(7)(v)-14 TOTAL CLASS'!Q744","v":23},{"$f":"'FR-16(7)(v)-3 PROD Demand'!Q744+'FR-16(7)(v)-7 TRANS Demand'!Q744+'FR-16(7)(v)-11 DIST Demand'!Q744","v":18},{"$f":"'FR-16(7)(v)-4 PROD Energy'!Q744+'FR-16(7)(v)-8 TRANS Energy'!Q744+'FR-16(7)(v)-12 DIST Energy'!Q744","v":0},{"$f":"'FR-16(7)(v)-5 PROD Cust'!Q744+'FR-16(7)(v)-9 TRANS Cust'!Q744+'FR-16(7)(v)-13 DIST Cust'!Q744","v":5},23,0]
[5,null,{"$f":"'FR-16(7)(v)-1 Functional'!C745","v":"RENTS"},{"$f":"'FR-16(7)(v)-1 Functional'!D745","v":"D249"},null,{"$f":"'FR-16(7)(v)-14 TOTAL CLASS'!Q745","v":111},{"$f":"'FR-16(7)(v)-3 PROD Demand'!Q745+'FR-16(7)(v)-7 TRANS Demand'!Q745+'FR-16(7)(v)-11 DIST Demand'!Q745","v":88},{"$f":"'FR-16(7)(v)-4 PROD Energy'!Q745+'FR-16(7)(v)-8 TRANS Energy'!Q745+'FR-16(7)(v)-12 DIST Energy'!Q745","v":0},{"$f":"'FR-16(7)(v)-5 PROD Cust'!Q745+'FR-16(7)(v)-9 TRANS Cust'!Q745+'FR-16(7)(v)-13 DIST Cust'!Q745","v":23},111,0]
[6,null,{"$f":"'FR-16(7)(v)-1 Functional'!C746","v":"TRANSMISSION CHARGE PTP"},{"$f":"'FR-16(7)(v)-1 Functional'!D746","v":"T229"},null,{"$f":"'FR-16(7)(v)-14 TOTAL CLASS'!Q746","v":16},{"$f":"'FR-16(7)(v)-3 PROD Demand'!Q746+'FR-16(7)(v)-7 TRANS Demand'!Q746+'FR-16(7)(v)-11 DIST Demand'!Q746","v":16},{"$f":"'FR-16(7)(v)-4 PROD Energy'!Q746+'FR-16(7)(v)-8 TRANS Energy'!Q746+'FR-16(7)(v)-12 DIST Energy'!Q746","v":0},{"$f":"'FR-16(7)(v)-5 PROD Cust'!Q746+'FR-16(7)(v)-9 TRANS Cust'!Q746+'FR-16(7)(v)-13 DIST Cust'!Q746","v":0},16,{"$f":"F746-J746","v":0}]
[7,null,{"$f":"'FR-16(7)(v)-1 Functional'!C747","v":"PJM REACTIVE REVENUE"},{"$f":"'FR-16(7)(v)-1 Functional'!D747","v":"K401"},null,{"$f":"'FR-16(7)(v)-14 TOTAL CLASS'!Q747","v":0},{"$f":"'FR-16(7)(v)-3 PROD Demand'!Q747+'FR-16(7)(v)-7 TRANS Demand'!Q747+'FR-16(7)(v)-11 DIST Demand'!Q747","v":0},{"$f":"'FR-16(7)(v)-4 PROD Energy'!Q747+'FR-16(7)(v)-8 TRANS Energy'!Q747+'FR-16(7)(v)-12 DIST Energy'!Q747","v":0},{"$f":"'FR-16(7)(v)-5 PROD Cust'!Q747+'FR-16(7)(v)-9 TRANS Cust'!Q747+'FR-16(7)(v)-13 DIST Cust'!Q747","v":0},0,{"$f":"F747-J747","v":0}]
[8,null,{"$f":"'FR-16(7)(v)-1 Functional'!C748","v":"OTHER TRANSMISSION REVENUES"},{"$f":"'FR-16(7)(v)-1 Functional'!D748","v":"T229"},null,{"$f":"'FR-16(7)(v)-14 TOTAL CLASS'!Q748","v":3},{"$f":"'FR-16(7)(v)-3 PROD Demand'!Q748+'FR-16(7)(v)-7 TRANS Demand'!Q748+'FR-16(7)(v)-11 DIST Demand'!Q748","v":3},{"$f":"'FR-16(7)(v)-4 PROD Energy'!Q748+'FR-16(7)(v)-8 TRANS Energy'!Q748+'FR-16(7)(v)-12 DIST Energy'!Q748","v":0},{"$f":"'FR-16(7)(v)-5 PROD Cust'!Q748+'FR-16(7)(v)-9 TRANS Cust'!Q748+'FR-16(7)(v)-13 DIST Cust'!Q748","v":0},3,{"$f":"F748-J748","v":0}]
[9,null,{"$f":"'FR-16(7)(v)-1 Functional'!C749","v":"FIXED BILL PREMIUM"},{"$f":"'FR-16(7)(v)-1 Functional'!D749","v":"K902"},null,{"$f":"'FR-16(7)(v)-14 TOTAL CLASS'!Q749","v":0},{"$f":"'FR-16(7)(v)-3 PROD Demand'!Q749+'FR-16(7)(v)-7 TRANS Demand'!Q749+'FR-16(7)(v)-11 DIST Demand'!Q749","v":0},{"$f":"'FR-16(7)(v)-4 PROD Energy'!Q749+'FR-16(7)(v)-8 TRANS Energy'!Q749+'FR-16(7)(v)-12 DIST Energy'!Q749","v":0},{"$f":"'FR-16(7)(v)-5 PROD Cust'!Q749+'FR-16(7)(v)-9 TRANS Cust'!Q749+'FR-16(7)(v)-13 DIST Cust'!Q749","v":0},0,0]
[10,null,{"$f":"'FR-16(7)(v)-1 Functional'!C750","v":"  TOTAL OTHER OPERATING REVS"},null,null,{"$f":"SUM(F742:F749)","v":179},146,0,33,179,0]
[11]
[12,"COST OF SERVICE COMPUTATION"]
[13,null,{"$f":"'FR-16(7)(v)-1 Functional'!C753","v":"TOTAL OP EXP EXC INC & REV TAX"},null,null,{"$f":"F618","v":31572},{"$f":"G618","v":13002},{"$f":"H618","v":16520},{"$f":"I618","v":2050},{"$f":"J618","v":31572},{"$f":"F753-J753","v":0}]
[14,null,"RETURN ON RATE BASE",null,null,{"$f":"F433","v":6924},{"$f":"G433","v":6066},{"$f":"H433","v":234},{"$f":"I433","v":624},{"$f":"J433","v":6924},{"$f":"F754-J754","v":0}]
[15,null,{"$f":"'FR-16(7)(v)-1 Functional'!C755","v":"NET FED INCOME TAX ALLOWABLE"},null,null,{"$f":"F676","v":908},{"$f":"G676","v":-342},{"$f":"H676","v":1212},{"$f":"I676","v":38},{"$f":"J676","v":908},{"$f":"F755-J755","v":0}]
[16,null,{"$f":"'FR-16(7)(v)-1 Functional'!C756","v":"NET STATE INCOME TAX ALLOWABLE"},null,null,{"$f":"F722","v":203},{"$f":"G722","v":-78},{"$f":"H722","v":205},{"$f":"I722","v":76},{"$f":"J722","v":203},{"$f":"F756-J756","v":0}]
[17,null,{"$f":"'FR-16(7)(v)-1 Functional'!C757","v":"TOTAL OTHER OPERATING REVENUES"},null,null,{"$f":"-F750","v":-179},{"$f":"-G750","v":-146},{"$f":"-H750","v":0},{"$f":"-I750","v":-33},{"$f":"-J750","v":-179},{"$f":"F757-J757","v":0}]
[18,null,{"$f":"'FR-16(7)(v)-1 Functional'!C758","v":"  SUBTOTAL B"},null,null,{"$f":"SUM(F752:F757)","v":39428},{"$f":"SUM(G752:G757)","v":18502},{"$f":"SUM(H752:H757)","v":18171},{"$f":"SUM(I752:I757)","v":2755},{"$f":"SUM(J752:J757)","v":39428},{"$f":"J758-F758","v":0}]
[19]
[20,null,{"$f":"'FR-16(7)(v)-1 Functional'!C760","v":"TOTAL OTHER OPERATING REVENUES"},null,null,{"$f":"-F757","v":179},{"$f":"-G757","v":146},{"$f":"-H757","v":0},{"$f":"-I757","v":33},{"$f":"-J757","v":179},{"$f":"F760-J760","v":0}]
[21,null,{"$f":"'FR-16(7)(v)-1 Functional'!C761","v":"LESS: REVS EXCL FROM REV TAX CALC"},null,null,{"$f":"'FR-16(7)(v)-14 TOTAL CLASS'!Q761","v":0},{"$f":"'FR-16(7)(v)-3 PROD Demand'!Q761+'FR-16(7)(v)-7 TRANS Demand'!Q761+'FR-16(7)(v)-11 DIST Demand'!Q761","v":0},{"$f":"'FR-16(7)(v)-4 PROD Energy'!Q761+'FR-16(7)(v)-8 TRANS Energy'!Q761+'FR-16(7)(v)-12 DIST Energy'!Q761","v":0},{"$f":"'FR-16(7)(v)-5 PROD Cust'!Q761+'FR-16(7)(v)-9 TRANS Cust'!Q761+'FR-16(7)(v)-13 DIST Cust'!Q761","v":0},{"$f":"SUM(G761:I761)","v":0},{"$f":"F761-J761","v":0}]
[22,null,{"$f":"'FR-16(7)(v)-1 Functional'!C762","v":"OTHER OPERATING REVS TO BE TAXED"},null,null,{"$f":"F760-F761","v":179},146,0,33,179,0]
[23]
[24,null,{"$f":"'FR-16(7)(v)-1 Functional'!C764","v":"REVENUE TAX FACTOR"},null,null,{"$f":"ROUND(F817/(1-F817),8)","v":0},0,0,0,0,0]
[25,null,{"$f":"'FR-16(7)(v)-1 Functional'!C765","v":"REVENUE TAX ON OTHER OPER. REVS"},null,null,{"$f":"ROUND(F764*F762,0)","v":0},{"$f":"ROUND(G764*G762,0)","v":0},{"$f":"ROUND(H764*H762,0)","v":0},{"$f":"ROUND(I764*I762,0)","v":0},{"$f":"SUM(G765:I765)","v":0},{"$f":"F765-J765","v":0}]
[26,null,{"$f":"'FR-16(7)(v)-1 Functional'!C766","v":"REVENUE TAX ON COST OF SERVICE"},null,null,{"$f":"ROUND(F764*F758,0)","v":0},{"$f":"ROUND(G764*G758,0)","v":0},{"$f":"ROUND(H764*H758,0)","v":0},{"$f":"ROUND(I764*I758,0)","v":0},{"$f":"SUM(G766:I766)","v":0},{"$f":"F766-J766","v":0}]
[27,null,{"$f":"'FR-16(7)(v)-1 Functional'!C767","v":"TOTAL REVENUE TAX"},null,null,{"$f":"F766+F765","v":0},0,0,0,0,0]
[28]
[29,null,"RESERVED",null,null,{"$f":"F24","v":0},{"$f":"G24","v":0},{"$f":"H24","v":0},{"$f":"I24","v":0},{"$f":"J24","v":0},{"$f":"F769-J769","v":0}]
[30,null,{"$f":"'FR-16(7)(v)-1 Functional'!C770","v":"  TOTAL ELECTRIC COST OF SERVICE"},null,null,{"$f":"F769+F767+F758","v":39428},18502,18171,2755,39428,0]
[31]
[32,"PROPOSED REVENUES ",null,null,null,{"$f":"'FR-16(7)(v)-14 TOTAL CLASS'!Q772","v":32099},{"$f":"'FR-16(7)(v)-3 PROD Demand'!Q772+'FR-16(7)(v)-7 TRANS Demand'!Q772+'FR-16(7)(v)-11 DIST Demand'!Q772","v":11211},{"$f":"'FR-16(7)(v)-4 PROD Energy'!Q772+'FR-16(7)(v)-8 TRANS Energy'!Q772+'FR-16(7)(v)-12 DIST Energy'!Q772","v":13441},{"$f":"'FR-16(7)(v)-5 PROD Cust'!Q772+'FR-16(7)(v)-9 TRANS Cust'!Q772+'FR-16(7)(v)-13 DIST Cust'!Q772","v":7447},{"$f":"SUM(G772:I772)","v":32099},{"$f":"F772-J772","v":0}]
[33,"TOTAL ELECTRIC COST OF SERVICE",null,null,null,{"$f":"-F770","v":-39428},{"$f":"-G770","v":-18502},{"$f":"-H770","v":-18171},{"$f":"-I770","v":-2755},{"$f":"SUM(G773:I773)","v":-39428},{"$f":"F773-J773","v":0}]
[34,"EXCESS REVENUES",null,null,null,{"$f":"F773+F772","v":-7329},{"$f":"G773+G772","v":-7291},{"$f":"H773+H772","v":-4730},{"$f":"I773+I772","v":4692},{"$f":"SUM(G774:I774)","v":-7329},{"$f":"F774-J774","v":0}]
[35,"COMPOSITE TAX RATE",null,null,null,{"$f":"F729","v":0.24925115},0.24925115,0.24925115,0.24925115,0.24925115,0.24925115]
[36,"EXCESS TAX",null,null,null,{"$f":"ROUND(F775*F774,0)","v":-1827},{"$f":"'FR-16(7)(v)-3 PROD Demand'!Q776+'FR-16(7)(v)-7 TRANS Demand'!Q776+'FR-16(7)(v)-11 DIST Demand'!Q776","v":-1817},{"$f":"ROUND(H775*H774,0)","v":-1179},{"$f":"ROUND(I775*I774,0)","v":1169},{"$f":"SUM(G776:I776)","v":-1827},{"$f":"F776-J776","v":0}]
[37,"EXCESS RETURN",null,null,null,{"$f":"F774-F776","v":-5502},{"$f":"'FR-16(7)(v)-3 PROD Demand'!Q777+'FR-16(7)(v)-7 TRANS Demand'!Q777+'FR-16(7)(v)-11 DIST Demand'!Q777","v":-5474},{"$f":"H774-H776","v":-3551},{"$f":"I774-I776","v":3523},{"$f":"SUM(G777:I777)","v":-5502},{"$f":"F777-J777","v":0}]
[]
[{"$f":"co_name","v":"DUKE ENERGY KENTUCKY, INC."},null,null,null,null,null,null,null,null,{"$f":"J1","v":"FR-16(7)(v)-25"}]
[{"$f":"$A$2","v":"OTHER WP CLASSIFIED - ELECTRIC COST OF SERVICE"},null,null,null,null,null,null,null,null,{"$f":"J2","v":"WITNESS RESPONSIBLE:"}]
[{"$f":"case_name","v":"CASE NO: 2019-00271"},null,null,null,null,null,null,null,null,{"$f":"Witness","v":"JAMES E. ZIOLKOWSKI"}]
[{"$f":"data_filing","v":"DATA: 12 MONTHS ACTUAL  & 0 MONTHS ESTIMATED"},null,null,null,null,null,null,null,null,{"$f":"\"PAGE \"&Pages2&\" OF \"&Pages2","v":"PAGE 15 OF 15"}]
[{"$f":"type","v":"TYPE OF FILING: \"X\" ORIGINAL   UPDATED    REVISED  "}]
[]
[]
["LINE",null,null,null,null,"TOTAL","CLASSIFIED",null,null,"TOTAL","ALL"]
["NO.","ROR, TAX RATES & SPEC FACTORS",null,"ALLO",null,{"$f":"$F$9","v":"OTHER WP"},{"$f":"G9","v":"DEMAND"},"ENERGY","CUSTOMER","AT ISSUE","OTHER"]
[null,null,"Schedule 11",null,null,null,3,4,5]
[1,"RATE OF RETURN"]
[2," CAPITALIZATION AMOUNTS",null,null,null,null,"RATIO"]
[3,null,{"$f":"'FR-16(7)(v)-1 Functional'!C791","v":"LONG TERM DEBT"},null,null,{"$f":"'FR-16(7)(v)-1 Functional'!$F$791","v":665948506},{"$f":"IF(TotalCap=0,0,ROUND(F791/TotalCap,4))","v":0.45929999999999999}]
[4,null,{"$f":"'FR-16(7)(v)-1 Functional'!C792","v":"PREFERRED STOCK"},null,null,{"$f":"'FR-16(7)(v)-1 Functional'!$F$792","v":0},{"$f":"IF(TotalCap=0,0,ROUND(F792/TotalCap,4))","v":0}]
[5,null,{"$f":"'FR-16(7)(v)-1 Functional'!C793","v":"COMMON STOCK"},null,null,{"$f":"[0]!Equity","v":699348680},{"$f":"1-G791-G792-G794-G795","v":0.48239999999999994}]
[6,null,{"$f":"'FR-16(7)(v)-1 Functional'!C794","v":"SHORT TERM DEBT"},null,null,{"$f":"'FR-16(7)(v)-1 Functional'!$F$794","v":84600060},{"$f":"IF(TotalCap=0,0,ROUND(F794/TotalCap,4))","v":5.8299999999999998E-2}]
[7,null,{"$f":"'FR-16(7)(v)-1 Functional'!C795","v":"UNAMORTIZED DISCOUNT"},null,null,{"$f":"'FR-16(7)(v)-1 Functional'!$F$795","v":0},{"$f":"IF(TotalCap=0,0,ROUND(F795/TotalCap,4))","v":0}]
[8,null,{"$f":"'FR-16(7)(v)-1 Functional'!C796","v":"  TOTAL"},null,null,{"$f":"SUM(F790:F795)","v":1449897246},{"$f":"SUM(G791:G795)","v":1}]
[9]
[10," COST OF CAPITAL"]
[11,null,{"$f":"'FR-16(7)(v)-1 Functional'!C799","v":"LONG TERM DEBT"},null,null,{"$f":"'FR-16(7)(v)-1 Functional'!$F$799","v":4.0730000000000002E-2}]
[12,null,{"$f":"'FR-16(7)(v)-1 Functional'!C800","v":"PREFERRED STOCK"},null,null,{"$f":"'FR-16(7)(v)-1 Functional'!$F$800","v":0}]
[13,null,{"$f":"'FR-16(7)(v)-1 Functional'!C801","v":"COMMON STOCK"},null,null,{"$f":"'FR-16(7)(v)-1 Functional'!$F$801","v":9.8000000000000004E-2}]
[14,null,{"$f":"'FR-16(7)(v)-1 Functional'!C802","v":"SHORT TERM DEBT"},null,null,{"$f":"'FR-16(7)(v)-1 Functional'!$F$802","v":1.9369999999999998E-2}]
[15,null,{"$f":"'FR-16(7)(v)-1 Functional'!C803","v":"UNAMORTIZED DISCOUNT"},null,null,{"$f":"'FR-16(7)(v)-1 Functional'!$F$803","v":0}]
[16]
[17," WEIGHTED COST OF CAPITAL"]
[18,null,{"$f":"'FR-16(7)(v)-1 Functional'!C806","v":"LONG TERM DEBT"},null,null,{"$f":"ROUND(G791*F799,4)","v":1.8700000000000001E-2}]
[19,null,{"$f":"'FR-16(7)(v)-1 Functional'!C807","v":"PREFERRED STOCK"},null,null,{"$f":"ROUND(G792*F800,4)","v":0}]
[20,null,{"$f":"'FR-16(7)(v)-1 Functional'!C808","v":"COMMON STOCK"},null,null,{"$f":"ROUND(G793*F801,4)","v":4.7300000000000002E-2}]
[21,null,{"$f":"'FR-16(7)(v)-1 Functional'!C809","v":"SHORT TERM DEBT"},null,null,{"$f":"ROUND(G794*F802,4)","v":1.1000000000000001E-3}]
[22,null,{"$f":"'FR-16(7)(v)-1 Functional'!C810","v":"UNAMORTIZED DISCOUNT"},null,null,{"$f":"ROUND(G795*F803,4)","v":0}]
[23,null,{"$f":"'FR-16(7)(v)-1 Functional'!C811","v":"  TOT RATE OF RETURN ALLOWABLE"},null,null,{"$f":"SUM(F806:F810)","v":6.7100000000000007E-2}]
[24]
[25,"TAX RATES AND SPECIAL FACTORS"]
[26,null,{"$f":"'FR-16(7)(v)-1 Functional'!C814","v":"SHORT TERM DEBT COST"},null,null,0,{"$f":"F814","v":0},{"$f":"F814","v":0},{"$f":"F814","v":0},{"$f":"F814","v":0},{"$f":"F814","v":0}]
[27,null,{"$f":"'FR-16(7)(v)-1 Functional'!C815","v":"FEDERAL INCOME TAX RATE"},null,null,0.35,{"$f":"FIT","v":0.21},{"$f":"FIT","v":0.21},{"$f":"FIT","v":0.21},{"$f":"FIT","v":0.21},{"$f":"FIT","v":0.21}]
[28,null,{"$f":"'FR-16(7)(v)-1 Functional'!C816","v":"STATE INCOME TAX RATE"},null,null,{"$f":"SIT","v":4.9685000000000007E-2},4.9685000000000007E-2,4.9685000000000007E-2,4.9685000000000007E-2,4.9685000000000007E-2,4.9685000000000007E-2]
[29,null,{"$f":"'FR-16(7)(v)-1 Functional'!C817","v":"REVENUE TAX RATE"},null,null,0,{"$f":"RevTax","v":0},{"$f":"RevTax","v":0},{"$f":"RevTax","v":0},{"$f":"RevTax","v":0},{"$f":"RevTax","v":0}]
[]
[]
[]
[]
[]
[]
[]
[]
[]
[]
[]
[]
[]
[]
[]
[]
[]
[]
[]
[]
[]
[]
[]
[]
[]
[]
[]
[]
[]
[]
[]
[]
[]
[]
[]
[]
[]
[]
[]
[]
[]
[]
[]
[]
[]
[]
[]
[]
[]
[]
[]
[]
[]
[]
[]
[]
[]
[]
[]
[]
[]
[]
[]
[]
[]
[]
[]
[]
[]
[]
[]
[]
[]
[]
[]
[]
[]
[]
[]
[]
[]
[]
[]
[]
[]
[]
[]
[]
[]
[]
[]
[]
[]
[]
[]
[]
[]
[]
[]
[]
[]
[]
[]
[]
[]
[]
[]
[]
[]
[]
[]
[]
[]
[]
[]
[]
[]
[]
[]
[]
[]
[]
[]
[]
[]
[]
[]
[]
[]
[]
[]
[]
[]
[]
[]
[]
[]
[]
[]
[]
[]
[]
[]
[]
[]
[]
[]
[]
[]
[]
[]
[]
[]
[]
[]
[]
[]
[]
[]
[]
[]
[]
[]
[]
[]
[]
["DO NOT FILE THIS PAGE"]
[]
[{"$f":"co_name","v":"DUKE ENERGY KENTUCKY, INC."},null,null,null,null,null,null,null,null,{"$f":"J1","v":"FR-16(7)(v)-25"}]
[{"$f":"$A$2","v":"OTHER WP CLASSIFIED - ELECTRIC COST OF SERVICE"},null,null,null,null,null,null,null,null,{"$f":"J2","v":"WITNESS RESPONSIBLE:"}]
[{"$f":"case_name","v":"CASE NO: 2019-00271"},null,null,null,null,null,null,null,null,{"$f":"Witness","v":"JAMES E. ZIOLKOWSKI"}]
[{"$f":"data_filing","v":"DATA: 12 MONTHS ACTUAL  & 0 MONTHS ESTIMATED"},null,null,null,null,null,null,null,null,{"$f":"\"PAGE \"&Pages2&\" OF \"&Pages2","v":"PAGE 15 OF 15"}]
[{"$f":"type","v":"TYPE OF FILING: \"X\" ORIGINAL   UPDATED    REVISED  "}]
[]
[]
["LINE",null,null,null,null,"TOTAL","CLASSIFIED",null,null,"TOTAL","ALL"]
["NO.","INCOME TAX BASED ON REVENUES",null,"ALLO",null,{"$f":"$F$9","v":"OTHER WP"},"DEMAND","COMMODITY","CUSTOMER","AT ISSUE","OTHER"]
[null,null,"Schedule 13",null,null,null,{"$f":"G10","v":3},{"$f":"H10","v":4},{"$f":"I10","v":5}]
[1,"NET INCOME COMPUTATION"]
[2,null,{"$f":"'FR-16(7)(v)-1 Functional'!C1008","v":"TOTAL ELECTRIC COST OF SERVICE"},null,null,{"$f":"F770","v":39428},18502,18171,2755,39428,0]
[3,null,{"$f":"'FR-16(7)(v)-1 Functional'!C1009","v":"TOTAL OTHER OPERATING REVENUES"},null,null,{"$f":"F750","v":179},146,0,33,179,0]
[4,null,{"$f":"'FR-16(7)(v)-1 Functional'!C1010","v":"  TOTAL ELECTRIC REVENUE"},null,null,{"$f":"SUM(F996:F998)","v":39607},18648,18171,2788,39607,0]
[5,null,{"$f":"'FR-16(7)(v)-1 Functional'!C1011","v":"TOTAL OP EXP EX INC & REV TAX"},null,null,{"$f":"-F618","v":-31572},-13002,-16520,-2050,-31572,0]
[6,null,{"$f":"'FR-16(7)(v)-1 Functional'!C1012","v":"FIRM SERVICE REVENUE TAX"},null,null,{"$f":"-ROUND(F817*F997,0)","v":0},{"$f":"-ROUND(G817*G997,0)","v":0},{"$f":"-ROUND(H817*H997,0)","v":0},{"$f":"-ROUND(I817*I997,0)","v":0},{"$f":"SUM(G1001:I1001)","v":0},{"$f":"-ROUND('FR-16(7)(v)-1 Functional'!K817*K997,0)","v":0}]
[7,null,{"$f":"'FR-16(7)(v)-1 Functional'!C1013","v":"  NET INCOME"},null,null,{"$f":"SUM(F999:F1001)","v":8035},{"$f":"SUM(G999:G1001)","v":5646},{"$f":"SUM(H999:H1001)","v":1651},{"$f":"SUM(I999:I1001)","v":738},{"$f":"SUM(G1002:I1002)","v":8035},{"$f":"SUM(K999:K1001)","v":0}]
[8]
[9,"ADJUSTMENTS TO NET INCOME"]
[10,null,{"$f":"'FR-16(7)(v)-1 Functional'!C1016","v":"TOTAL INTEREST EXPENSE"},null,null,{"$f":"-F633","v":-2047},-1794,-69,-184,-2047,0]
[11,null,{"$f":"'FR-16(7)(v)-1 Functional'!C1017","v":"TOTAL OTHER DEDUCTIONS"},null,null,{"$f":"-F639","v":-7658},-6929,-232,-497,-7658,0]
[12,null,{"$f":"'FR-16(7)(v)-1 Functional'!C1018","v":"  PRELIMINARY TAXABLE INCOME"},null,null,{"$f":"SUM(F1004:F1006)+F1002","v":-1670},{"$f":"SUM(G1004:G1006)+G1002","v":-3077},{"$f":"SUM(H1004:H1006)+H1002","v":1350},{"$f":"SUM(I1004:I1006)+I1002","v":57},{"$f":"SUM(G1007:I1007)","v":-1670},{"$f":"SUM(K1004:K1006)+K1002","v":0}]
[13]
[14,"INCOME TAX BASED ON REVENUES"]
[15,"FEDERAL INCOME TAX COMPUTATION"]
[16,null,{"$f":"'FR-16(7)(v)-1 Functional'!C1022","v":"PRELIMINARY TAXABLE INCOME"},null,null,{"$f":"F1007","v":-1670},-3077,1350,57,-1670,0]
[17,null,{"$f":"'FR-16(7)(v)-1 Functional'!C1023","v":"  NET FEDERAL TAXABLE INCOME"},null,null,{"$f":"SUM(F1011:F1011)","v":-1670},-3077,1350,57,-1670,0]
[18,null,{"$f":"'FR-16(7)(v)-1 Functional'!C1024","v":"  FEDERAL INCOME TAX RATE"},null,null,{"$f":"F815","v":0.35},{"$f":"G815","v":0.21},{"$f":"H815","v":0.21},{"$f":"I815","v":0.21},null,{"$f":"'FR-16(7)(v)-1 Functional'!K815","v":0.21}]
[19,null,{"$f":"'FR-16(7)(v)-1 Functional'!C1025","v":"PRELIMINARY FIT = FI01 * K190"},null,null,{"$f":"ROUND(F1013*F1012,0)","v":-585},{"$f":"ROUND(G1013*G1012,0)","v":-646},{"$f":"ROUND(H1013*H1012,0)","v":284},{"$f":"ROUND(I1013*I1012,0)","v":12},{"$f":"SUM(G1014:I1014)","v":-350},{"$f":"ROUND(K1013*K1012,0)","v":0}]
[20,null,{"$f":"'FR-16(7)(v)-1 Functional'!C1026","v":"TOTAL FED DEF IT (410 & 411)"},null,null,{"$f":"F649","v":1232},264,942,26,1232,0]
[21,null,{"$f":"'FR-16(7)(v)-1 Functional'!C1027","v":"TOTAL AMORTIZED ITC"},null,null,{"$f":"-F653","v":0},0,0,0,0,0]
[22,null,{"$f":"'FR-16(7)(v)-1 Functional'!C1028","v":"  NET FED INC TAX ALLOWABLE"},null,null,{"$f":"SUM(F1014:F1016)","v":647},-382,1226,38,882,0]
[23]
[24,"FEDERAL INCOME TAX PAYABLE"]
[25,null,{"$f":"'FR-16(7)(v)-1 Functional'!C1031","v":"PRELIM FIT"},null,null,{"$f":"F1014","v":-585},-646,284,12,-350,0]
[26,null,{"$f":"'FR-16(7)(v)-1 Functional'!C1032","v":"TEST YEAR INV TAX CREDIT"},null,null,{"$f":"-F658","v":0},0,0,0,0,0]
[27,null,{"$f":"'FR-16(7)(v)-1 Functional'!C1033","v":"  FED INC TAX PAYABLE"},null,null,{"$f":"SUM(F1019:F1021)","v":-585},-646,284,12,-350,0]
[28]
[29,"PRELIMINARY SUMMARY"]
[30,null,{"$f":"'FR-16(7)(v)-1 Functional'!C1036","v":"NET INCOME"},null,null,{"$f":"F1002","v":8035},5646,1651,738,8035,0]
[31,null,{"$f":"'FR-16(7)(v)-1 Functional'!C1037","v":"NET FED INC TAX ALLOWABLE"},null,null,{"$f":"-F1017","v":-647},382,-1226,-38,-882,0]
[32,null,{"$f":"'FR-16(7)(v)-1 Functional'!C1038","v":"  OVERALL RETURN EARNED"},null,null,{"$f":"SUM(F1024:F1026)","v":7388},6028,425,700,7153,0]
[33]
[34,null,{"$f":"'FR-16(7)(v)-1 Functional'!C1040","v":"  RATE OF RETURN EARNED"},null,null,{"$f":"IF(F426=0,0,ROUND(F1027/F426,5))","v":7.3230000000000003E-2},6.8210000000000007E-2,0.12192,7.7590000000000006E-2,7.0900000000000005E-2,0]

{"sheet":"Input Data","index":30,"n_rows":152,"n_cols":9,"rows_kept":152,"cut":false,"hidden":false,"merged":[]}
[null,null,null,null,null,"Tab","Workpaper"," Source","Description of Work Paper"]
[]
["I.","Meter Costs"]
[null,null,null,"Meter"]
[null,"Retail:",null,"Cost",null,"WP FR-16(7)(v) Meters",{"$f":"'WP FR-16(7)(v) Meters'!I1&\", \"&'WP FR-16(7)(v) Meters'!I4","v":"Work Paper FR-16(7)(v) , Page 5"},"Meter Cost Study  ","Computation of Meter Allocation Factors"]
[null,"Residential",null,12782441]
[null,"Dist Secondary - DS",null,2892747]
[null,"Dist Secondary - GS-FL",null,0]
[null,"Dist Secondary - EH",null,22093]
[null,"Dist Secondary - SP",null,3451]
[null,"DT",null,102877]
[null,"Dist Primary - DT"]
[null,"Dist Primary - DP",null,3805]
[null,"Transmission",null,3619]
[null,"Lighting"]
[null,"Other",null,2208]
[null,null,null,{"$f":"SUM(D6:D16)","v":15813241}]
[]
["II.","Poles, Towers & Fixtures"]
[null,"Conductors"]
[]
[null,"Gross Plant",null,"$","Quantity"]
[null,"Poles, Towers & Fixtures",null,{"$f":"'[3]SCH B-2.1'!$I$147","v":64529516},{"$f":"12028+34227","v":46255},"WP FR-16(7)(v) Distlines",{"$f":"'WP FR-16(7)(v) Distlines'!$K$1&\", \"&'WP FR-16(7)(v) Distlines'!$K$4","v":"Work Paper FR-16(7)(v) , Page 7"},"Fixed Asset Accounting, Schedule B-2.1.","Computation of \"Weighted\" Distribution Line Allocation Factors"]
[null,"Conductors - Overhead",47193967,{"$f":"'[3]SCH B-2.1'!$I$148","v":125466324},null,"WP FR-16(7)(v) Distlines",{"$f":"'WP FR-16(7)(v) Distlines'!$K$1&\", \"&'WP FR-16(7)(v) Distlines'!$K$4","v":"Work Paper FR-16(7)(v) , Page 7"},"Fixed Asset Accounting, Schedule B-2.1.","Computation of \"Weighted\" Distribution Line Allocation Factors"]
[null,"Conductors - Underground",144669885,{"$f":"'[3]SCH B-2.1'!$I$151","v":63667535},null,"WP FR-16(7)(v) Distlines",{"$f":"'WP FR-16(7)(v) Distlines'!$K$1&\", \"&'WP FR-16(7)(v) Distlines'!$K$4","v":"Work Paper FR-16(7)(v) , Page 7"},"Fixed Asset Accounting, Schedule B-2.1.","Computation of \"Weighted\" Distribution Line Allocation Factors"]
[]
[null,"Accumulated Depreciation"]
[null,"Poles, Towers & Fixtures",null,{"$f":"'[3]SCH B-3'!$K$152","v":30123078},null,"WP FR-16(7)(v) Distlines",{"$f":"'WP FR-16(7)(v) Distlines'!$K$1&\", \"&'WP FR-16(7)(v) Distlines'!$K$4","v":"Work Paper FR-16(7)(v) , Page 7"},"Fixed Asset Accounting, Schedule B-3.","Computation of \"Weighted\" Distribution Line Allocation Factors"]
[null,"Conductors - Overhead",23834920,{"$f":"'[3]SCH B-3'!$K$153","v":39101631},null,"WP FR-16(7)(v) Distlines",{"$f":"'WP FR-16(7)(v) Distlines'!$K$1&\", \"&'WP FR-16(7)(v) Distlines'!$K$4","v":"Work Paper FR-16(7)(v) , Page 7"},"Fixed Asset Accounting, Schedule B-3.","Computation of \"Weighted\" Distribution Line Allocation Factors"]
[null,"Conductors - Underground",49095459,{"$f":"'[3]SCH B-3'!$K$156","v":17983384},null,"WP FR-16(7)(v) Distlines",{"$f":"'WP FR-16(7)(v) Distlines'!$K$1&\", \"&'WP FR-16(7)(v) Distlines'!$K$4","v":"Work Paper FR-16(7)(v) , Page 7"},"Fixed Asset Accounting, Schedule B-3.","Computation of \"Weighted\" Distribution Line Allocation Factors"]
[]
[]
["III.","Unbilled Sales",null,-23998000,null,"WP FR-16(7)(v) kwh analysis",{"$f":"'WP FR-16(7)(v) kwh analysis'!I1&\", \"&'WP FR-16(7)(v) kwh analysis'!I4","v":"Work Paper FR-16(7)(v) , Page 9"},"Company records; total agrees to FERC Form 1, p. 301","Rate Group Kwh Energy Analysis"]
[]
["IV.","Hours Per Month"]
[]
[null,"Jan 2018",null,{"$f":"31*24","v":744},null,"WP FR-16(7)(v) RS - KW",{"$f":"'WP FR-16(7)(v) RS - KW'!P1&\", \"&'WP FR-16(7)(v) RS - KW'!P4","v":"Work Paper FR-16(7)(v) , Page 13"},"Calendar","Derivation of Coincident And Non-Coincident Kw Demands"]
[null,"Feb",null,{"$f":"24*28","v":672}]
[null,"Mar",null,{"$f":"31*24","v":744}]
[null,"Apr",null,{"$f":"30*24","v":720}]
[null,"May",null,{"$f":"31*24","v":744}]
[null,"Jun",null,{"$f":"30*24","v":720}]
[null,"Jul",null,{"$f":"31*24","v":744}]
[null,"Aug",null,{"$f":"31*24","v":744}]
[null,"Sep",null,{"$f":"30*24","v":720}]
[null,"Oct",null,{"$f":"31*24","v":744}]
[null,"Nov",null,{"$f":"30*24","v":720}]
[null,"Dec",null,{"$f":"31*24","v":744}]
[]
["V.","Loss Ratios"]
[null,null,null,"SYSTEM"]
[null,null,null,"PEAK"]
[null,"MONTH",null,"KW"]
[null,{"$f":"B37","v":"Jan 2018"},null,768000,null,"WP FR-16(7)(v) LossRatios",{"$f":"'WP FR-16(7)(v) LossRatios'!I1&\", \"&'WP FR-16(7)(v) LossRatios'!I4","v":"Work Paper FR-16(7)(v) , Page 33"},"Form 1, Page 401b, Col (d).","Development of Distribution Monthly Loss Ratios"]
[null,{"$f":"B38","v":"Feb"},null,634000]
[null,"Mar",null,632000]
[null,"Apr",null,612000]
[null,"May",null,734000]
[null,"Jun",null,819000]
[null,"Jul",null,808000]
[null,"Aug",null,787000]
[null,"Sep",null,799000]
[null,"Oct",null,758000]
[null,"Nov",null,632000]
[null,"Dec",null,630000]
[]
[]
[]
[null,null,null,"CO. USE"]
[null,null,null,"TOTAL"]
[null,"MONTH",null,"KWH"]
[null,{"$f":"B54","v":"Jan 2018"},null,26194,null,"WP FR-16(7)(v) LossRatios",{"$f":"'WP FR-16(7)(v) LossRatios'!BQ175&\", \"&'WP FR-16(7)(v) LossRatios'!BQ178","v":"Work Paper FR-16(7)(v) , Page 37"},"Extracted from Company Monthly Financial Statements.; total agrees to FERC Form 1, p.401a, line 26.","Estimated Monthly Coincident Kw For Company Use"]
[null,{"$f":"B55","v":"Feb"},null,108317]
[null,"Mar",null,30065]
[null,"Apr",null,38880]
[null,"May",null,29912]
[null,"Jun",null,153793]
[null,"Jul",null,71100]
[null,"Aug",null,70132]
[null,"Sep",null,599258]
[null,"Oct",null,-472314]
[null,"Nov",null,61346]
[null,"Dec",null,59592]
[null,null,null,{"$f":"SUM(D72:D83)","v":776275}]
[]
[null,null,null,"KWH"]
[null,"Total kWh Available for Delivery",null,4966207000,null,"WP FR-16(7)(v) LossRatios",{"$f":"'WP FR-16(7)(v) LossRatios'!BZ211&\", \"&'WP FR-16(7)(v) LossRatios'!BZ214","v":"Work Paper FR-16(7)(v) , Page 38"},"FERC Form 1 p.401a, line 20","Development of Factors For Kwh Losses & Company Use"]
[null,"Less:  Sales to other Utilities",null,507428000,null,"WP FR-16(7)(v) LossRatios",{"$f":"'WP FR-16(7)(v) LossRatios'!BZ211&\", \"&'WP FR-16(7)(v) LossRatios'!BZ214","v":"Work Paper FR-16(7)(v) , Page 38"},"FERC Form 1 p.401a, line 24"]
[]
[]
[]
["VI.","Load Research Data",null,"See Load Research Data Tabs"]
[]
[]
[]
["VII.","Conductors & Devices"]
[null,"Overhead - Account 365"]
[null,"Secondary",null,575,null,"WP FR-16(7)(v) Conduct&dev",{"$f":"'WP FR-16(7)(v) Conduct&dev'!$G$1&\", \"&'WP FR-16(7)(v) Conduct&dev'!$G$4","v":"Work Paper FR-16(7)(v) , Page 47"},"Circuit Mile Report; total agrees to FERC Form 1, p.206.","Cost Support for Primary and Secondary Line Allocation"]
[null,"Primary",null,1435,null,"WP FR-16(7)(v) Conduct&dev",{"$f":"'WP FR-16(7)(v) Conduct&dev'!$G$1&\", \"&'WP FR-16(7)(v) Conduct&dev'!$G$4","v":"Work Paper FR-16(7)(v) , Page 47"},"Circuit Mile Report; total agrees to FERC Form 1, p.206.","Cost Support for Primary and Secondary Line Allocation"]
[null,"Underground - Account 367"]
[null,"Secondary",null,151,null,"WP FR-16(7)(v) Conduct&dev",{"$f":"'WP FR-16(7)(v) Conduct&dev'!$G$1&\", \"&'WP FR-16(7)(v) Conduct&dev'!$G$4","v":"Work Paper FR-16(7)(v) , Page 47"},"Circuit Mile Report; total agrees to FERC Form 1, p.206.","Cost Support for Primary and Secondary Line Allocation"]
[null,"Primary",null,727,null,"WP FR-16(7)(v) Conduct&dev",{"$f":"'WP FR-16(7)(v) Conduct&dev'!$G$1&\", \"&'WP FR-16(7)(v) Conduct&dev'!$G$4","v":"Work Paper FR-16(7)(v) , Page 47"},"Circuit Mile Report; total agrees to FERC Form 1, p.206.","Cost Support for Primary and Secondary Line Allocation"]
[]
[]
[]
["VIII.","Service Cost Weighting"]
[]
[null,"Size in"]
[null,"KVA",null,"Cost"]
[]
[null,null,null,"OH","UG"]
[null,15,null,0,0,"WP FR-16(7)(v) Service cost wgt",{"$f":"'WP FR-16(7)(v) Serv cost wgt'!$J$1&\", \"&'WP FR-16(7)(v) Serv cost wgt'!$J$4","v":"Work Paper FR-16(7)(v) , Page 48"},"Engineering Standards & Support","Cost Support For Service Cost Weighting  "]
[null,25,null,1704,2779]
[null,50,null,1979,2015]
[null,100,null,3398,3627]
[null,150,null,5969,10519]
[null,300,null,10094,12645]
[]
[null,"Services",null,"Net Plant"]
[null,"Overhead - Company Account 3691",12089618,{"$f":"'[3]SCH B-2.1'!$I$155","v":18784974},null,"WP FR-16(7)(v) Service cost wgt",{"$f":"'WP FR-16(7)(v) Serv cost wgt'!$J$1&\", \"&'WP FR-16(7)(v) Serv cost wgt'!$J$4","v":"Work Paper FR-16(7)(v) , Page 48"},"Fixed Asset Accounting, Sch. B-2.1 and Sch. B-3.","Cost Support For Service Cost Weighting  "]
[null,"Underground - Company Account 3692",440367,null,{"$f":"'[3]SCH B-2.1'!$I$154","v":2458590},"WP FR-16(7)(v) Service cost wgt",{"$f":"'WP FR-16(7)(v) Serv cost wgt'!$J$1&\", \"&'WP FR-16(7)(v) Serv cost wgt'!$J$4","v":"Work Paper FR-16(7)(v) , Page 48"},"Fixed Asset Accounting, Sch. B-2.1 and Sch. B-3.","Cost Support For Service Cost Weighting  "]
[]
[]
[]
["IX.","Customer Account Information",null,"See Tab",null,"WP FR-16(7)(v) 901-913 AcctSum ",{"$f":"#REF!&\", \"&#REF!","v":{"$error":"#REF!"}},"Various","Allocation of Cost to Rate Class for Accounts 901 Through 913"]
[]
[]
[]
["X.","Lighting Burn Schedule "]
[]
[null,null,null,"APPROX.","APPROX."]
[null,"MONTH",null,"SUNSET","SUNRISE"]
[null,{"$f":"B37","v":"Jan 2018"},null,1741,754,"WP FR-16(7)(v) BurnHours",{"$f":"'WP FR-16(7)(v) BurnHours'!J1&\", \"&'WP FR-16(7)(v) BurnHours'!J4","v":"Work Paper FR-16(7)(v) , Page 49"},"Monthly average of Sunrise/Sunset chart using EST.","Lighting Burn Hours"]
[null,{"$f":"B38","v":"Feb"},null,1816,730]
[null,"Mar",null,1842,633]
[null,"Apr",null,1916,629]
[null,"May",null,1945,525]
[null,"Jun",null,2011,313]
[null,"Jul",null,2021,525]
[null,"Aug",null,1932,538]
[null,"Sep",null,1832,620]
[null,"Oct",null,1730,639]
[null,"Nov",null,1725,721]
[null,"Dec",null,1718,750]
[]
[]
[]
["XI.","KWH",null,"See Tab",null,"WP FR-16(7)(v) KWH",{"$f":"'WP FR-16(7)(v) KWH'!M1&\", \"&'WP FR-16(7)(v) KWH'!M4","v":"Work Paper FR-16(7)(v) , Page 50"},"Source: Revenue Stats File & RAC_039 Rept","Electric KWH"]
[]
[]
[]
["XI.","Customers",null,"See Tab",null,"WP FR-16(7)(v) AVG CUST",{"$f":"'WP FR-16(7)(v) AVG CUST'!N1&\", \"&'WP FR-16(7)(v) AVG CUST'!N4","v":"Work Paper FR-16(7)(v) , Page 51"},"Source: Revenue Stats File & RAC_039 Rept","Electric Customers"]

{"sheet":"WP FR-16(7)(v)-KW & KWH @Gen","index":31,"n_rows":554,"n_cols":18,"rows_kept":554,"cut":false,"hidden":false,"merged":[]}
[{"$f":"co_name","v":"DUKE ENERGY KENTUCKY, INC."},null,null,null,null,null,"Work Paper FR-16(7)(v) "]
[{"$f":"coss_type","v":"ELECTRIC COST OF SERVICE STUDY "},null,null,null,null,null,"Witness Responsible:"]
[{"$f":"case_name","v":"CASE NO: 2019-00271"},null,null,null,null,null,{"$f":"PROPER(Witness)","v":"James E. Ziolkowski"}]
[{"$f":"alloc_factors","v":"ALLOCATION FACTORS FOR COST OF SERVICE STUDY"},null,null,null,null,null,"Page 3"]
[{"$f":"time_period","v":"TWELVE MONTHS ENDING DECEMBER 31, 2018"}]
[]
["COMPUTATION OF KWH & KW ALLOCATION FACTORS"]
[]
[]
[null,"AT GENERATION LEVEL"]
[null,null,null," "]
[null,null,null,"12 MONTH AVG",null," "]
["LINE",null,"RATE",{"$f":"IF(ALLOCATOR=\"AE\",\"EXCESS\",IF(ALLOCATOR=\"TDD\",\"SUMMER/NONSUMMER\",\"COIN PEAK\"))","v":"COIN PEAK"},"ALLOC","KWH","ALLOC"]
["NO.",null,"GROUP","KW DEMAND(a)","K201"," (AT SOURCE)(b)","K301"]
[1,null,null,"(1)","(2)","(3)","(4)"]
[{"$f":"1+A15","v":2},null,"Retail:"]
[3,null,"Residential",{"$f":"'WP FR-16(7)(v) CP NCP sum'!E30","v":323558},{"$f":"1-SUM(E18:E27)-E36","v":0.45079999999999976},{"$f":"'WP FR-16(7)(v) kwh analysis'!J17","v":1608724299},{"$f":"1-SUM(G18:G27)-G36","v":0.37747999999999987}]
[4,null,"Dist Secondary - DS",{"$f":"'WP FR-16(7)(v) CP NCP sum'!F30+'WP FR-16(7)(v) CP NCP sum'!G30","v":194112},{"$f":"IF($D$38=0,0,ROUND(D18/$D$38,5))","v":0.27044000000000001},{"$f":"'WP FR-16(7)(v) kwh analysis'!J18","v":1146956880},{"$f":"IF(F$38=0,0,ROUND(F18/$F$38,5))","v":0.26911000000000002}]
[5,null,"Dist Secondary - GS-FL",{"$f":"'WP FR-16(7)(v) CP NCP sum'!H30","v":933},{"$f":"IF($D$38=0,0,ROUND(D19/$D$38,5))","v":1.2999999999999999E-3},{"$f":"'WP FR-16(7)(v) kwh analysis'!J19","v":6420710},1.5100000000000001E-3]
[6,null,"Dist Secondary - EH",{"$f":"'WP FR-16(7)(v) CP NCP sum'!I30","v":3682},5.13E-3,{"$f":"'WP FR-16(7)(v) kwh analysis'!J20","v":18228802},4.28E-3,null,null,null,null,null,null,null,null,null,null,{"$f":"Q20>I20","v":false}]
[7,null,"Dist Secondary - SP",{"$f":"'WP FR-16(7)(v) CP NCP sum'!J30","v":51},6.9999999999999994E-5,{"$f":"'WP FR-16(7)(v) kwh analysis'!J21","v":298034},6.9999999999999994E-5]
[8,null,"Dist Secondary - DT",{"$f":"'WP FR-16(7)(v) CP NCP sum'!K30","v":96516},0.13447000000000001,{"$f":"'WP FR-16(7)(v) kwh analysis'!J22","v":700889249},0.16445000000000001]
[9,null,"Dist Primary - DT",{"$f":"'WP FR-16(7)(v) CP NCP sum'!L30","v":64029},8.9209999999999998E-2,{"$f":"'WP FR-16(7)(v) kwh analysis'!J23","v":488455966},0.11461]
[10,null,"Dist Primary - DP",{"$f":"'WP FR-16(7)(v) CP NCP sum'!M30","v":3090},4.3099999999999996E-3,{"$f":"'WP FR-16(7)(v) kwh analysis'!J24","v":22905598},5.3699999999999998E-3]
[11,null,"Transmission",{"$f":"'WP FR-16(7)(v) CP NCP sum'!N30","v":28569},3.9800000000000002E-2,{"$f":"'WP FR-16(7)(v) kwh analysis'!J25","v":232255694},5.4489999999999997E-2]
[12,null,"Lighting",{"$f":"'WP FR-16(7)(v) CP NCP sum'!O30","v":891},1.24E-3,{"$f":"'WP FR-16(7)(v) kwh analysis'!J26","v":18599129},4.3600000000000002E-3]
[13,null,"Other",{"$f":"'WP FR-16(7)(v) CP NCP sum'!P30","v":79},1.1E-4,{"$f":"'WP FR-16(7)(v) kwh analysis'!J27","v":479245},1.1E-4]
[14,null," Total Retail excl RTP Incremental",{"$f":"SUM(D17:D27)","v":715510},{"$f":"SUM(E17:E27)","v":0.99687999999999988},{"$f":"SUM(F17:F27)","v":4244213606},{"$f":"ROUND(SUM(G17:G27),5)","v":0.99583999999999995}]
[15]
[16,null,"RTP Incremental:"]
[17,null,"Dist Secondary - DS",{"$f":"'WP FR-16(7)(v) CP NCP sum'!R30","v":139},{"$f":"IF($D$38=0,0,ROUND(D31/$D$38,5))","v":1.9000000000000001E-4},{"$f":"'WP FR-16(7)(v) kwh analysis'!J31","v":866696},{"$f":"IF(F$38=0,0,ROUND(F31/$F$38,5))","v":2.0000000000000001E-4}]
[18,null,"Dist Secondary - DT",{"$f":"'WP FR-16(7)(v) CP NCP sum'!S30","v":335},{"$f":"IF($D$38=0,0,ROUND(D32/$D$38,5))","v":4.6999999999999999E-4},{"$f":"'WP FR-16(7)(v) kwh analysis'!J32","v":2391373},{"$f":"IF(F$38=0,0,ROUND(F32/$F$38,5))","v":5.5999999999999995E-4}]
[19,null,"Dist Primary - DT",{"$f":"'WP FR-16(7)(v) CP NCP sum'!T30","v":0},{"$f":"IF($D$38=0,0,ROUND(D33/$D$38,5))","v":0},{"$f":"'WP FR-16(7)(v) kwh analysis'!J33","v":0},{"$f":"IF(F$38=0,0,ROUND(F33/$F$38,5))","v":0}]
[20,null,"Dist Primary - DP",{"$f":"'WP FR-16(7)(v) CP NCP sum'!U30","v":0},{"$f":"IF($D$38=0,0,ROUND(D34/$D$38,5))","v":0},{"$f":"'WP FR-16(7)(v) kwh analysis'!J34","v":0},{"$f":"IF(F$38=0,0,ROUND(F34/$F$38,5))","v":0}]
[21,null,"Transmission",{"$f":"'WP FR-16(7)(v) CP NCP sum'!V30","v":1767},{"$f":"IF($D$38=0,0,ROUND(D35/$D$38,5))","v":2.4599999999999999E-3},{"$f":"'WP FR-16(7)(v) kwh analysis'!J35","v":14499306},{"$f":"IF(F$38=0,0,ROUND(F35/$F$38,5))","v":3.3999999999999998E-3}]
[22,null,"  Total RTP Incremental",{"$f":"SUM(D31:D35)","v":2241},{"$f":"SUM(E31:E35)","v":3.1199999999999999E-3},{"$f":"SUM(F31:F35)","v":17757375},{"$f":"SUM(G31:G35)","v":4.1599999999999996E-3}]
[23]
[24,null,"Total Retail",{"$f":"D36+D28","v":717751},{"$f":"E36+E28","v":0.99999999999999989},{"$f":"F36+F28","v":4261970981},{"$f":"G36+G28","v":1}]
[]
[null,null,null,null,null,{"$f":"IF(F38-'WP FR-16(7)(v) kwh analysis'!J38=0,\"\",\"doesn't tie\")","v":""}]
[]
[null,null,"(a) Source:  WPFR-16(7)(v), Page 10"]
[null,null,"(b) Source:  WPFR-16(7)(v), Page 9"]
[]
[]
[]
[]
[]
[]
[]
[]
[]
[]
[]
[]
[]
[]
[]
[]
[]
[]
[]
[]
[]
[]
[]
[]
[]
[]
[]
[]
[]
[]
[]
[]
[]
[]
[]
[]
[]
[]
[]
[]
[]
[]
[]
[]
[]
[]
[]
[]
[]
[]
[]
[]
[]
[]
[]
[]
[]
[]
[]
[]
[]
[]
[]
[]
[]
[]
[]
[]
[]
[]
[]
[]
[]
[]
[]
[]
[]
[]
[]
[]
[]
[]
[]
[]
[]
[]
[]
[]
[]
[]
[]
[]
[]
[]
[]
[]
[]
[]
[]
[]
[]
[]
[]
[]
[]
[]
[]
[]
[]
[]
[]
[]
[]
[]
[]
[]
[]
[]
[]
[]
[]
[]
[]
[]
[]
[]
[]
[]
[]
[]
[]
[]
[]
[]
[]
[]
[]
[]
[]
[]
[]
[]
[]
[]
[]
[]
[]
[]
[]
[]
[]
[]
[]
[]
[]
[]
[]
[]
[]
[]
[]
[]
[]
[]
[]
[]
[]
[]
[]
[]
[]
[]
[]
[]
[]
[]
[]
[]
[]
[]
[]
[]
[]
[]
[]
[]
[]
[]
[]
[]
[]
[]
[]
[]
[]
[]
[]
[]
[]
[]
[]
[]
[]
[]
[]
[]
[]
[]
[]
[]
[]
[]
[]
[]
[]
[]
[]
[]
[]
[]
[]
[]
[]
[]
[]
[]
[]
[]
[]
[]
[]
[]
[]
[]
[]
[]
[]
[]
[]
[]
[]
[]
[]
[]
[]
[]
[]
[]
[]
[]
[]
[]
[]
[]
[]
[]
[]
[]
[]
[]
[]
[]
[]
[]
[]
[]
[]
[]
[]
[]
[]
[]
[]
[]
[]
[]
[]
[]
[]
[]
[]
[]
[]
[]
[]
[]
[]
[]
[]
[]
[]
[]
[]
[]
[]
[]
[]
[]
[]
[]
[]
[]
[]
[]
[]
[]
[]
[]
[]
[]
[]
[]
[]
[]
[]
[]
[]
[]
[]
[]
[]
[]
[]
[]
[]
[]
[]
[]
[]
[]
[]
[]
[]
[]
[]
[]
[]
[]
[]
[]
[]
[]
[]
[]
[]
[]
[]
[]
[]
[]
[]
[]
[]
[]
[]
[]
[]
[]
[]
[]
[]
[]
[]
[]
[]
[]
[]
[]
[]
[]
[]
[]
[]
[]
[]
[]
[]
[]
[]
[]
[]
[]
[]
[]
[]
[]
[]
[]
[]
[]
[]
[]
[]
[]
[]
[]
[]
[]
[]
[]
[]
[]
[]
[]
[]
[]
[]
[]
[]
[]
[]
[]
[]
[]
[]
[]
[]
[]
[]
[]
[]
[]
[]
[]
[]
[]
[]
[]
[]
[]
[]
[]
[]
[]
[]
[]
[]
[]
[]
[]
[]
[]
[]
[]
[]
[]
[]
[]
[]
[]
[]
[]
[]
[]
[]
[]
[]
[]
[]
[]
[]
[]
[]
[]
[]
[]
[]
[]
[]
[]
[]
[]
[]
[]
[]
[]
[]
[]
[]
[]
[]
[]
[]
[]
[]
[]
[]
[]
[]
[]
[]
[]
[]
[]
[]
[]
[]
[]
[]
[]
[]
[]
[]
[]
[]
[]
[]
[]
[]
[]
[null,null,null,null,null,0]

{"sheet":"WP FR-16(7)(v)-KW & KWH @Dist","index":32,"n_rows":554,"n_cols":13,"rows_kept":554,"cut":false,"hidden":false,"merged":[]}
[{"$f":"'WP FR-16(7)(v)-KW & KWH @Gen'!A1","v":"DUKE ENERGY KENTUCKY, INC."},null,null,null,null,null,null,null,null,null,null,{"$f":"'WP FR-16(7)(v)-KW & KWH @Gen'!G1","v":"Work Paper FR-16(7)(v) "}]
[{"$f":"coss_type","v":"ELECTRIC COST OF SERVICE STUDY "},null,null,null,null,null,null,null,null,null,null,{"$f":"'WP FR-16(7)(v)-KW & KWH @Gen'!G2","v":"Witness Responsible:"}]
[{"$f":"case_name","v":"CASE NO: 2019-00271"},null,null,null,null,null,null,null,null,null,null,{"$f":"PROPER(Witness)","v":"James E. Ziolkowski"}]
[{"$f":"alloc_factors","v":"ALLOCATION FACTORS FOR COST OF SERVICE STUDY"},null,null,null,null,null,null,null,null,null,null,"Page 4"]
[{"$f":"time_period","v":"TWELVE MONTHS ENDING DECEMBER 31, 2018"}]
[]
["COMPUTATION OF KWH, KW & CUSTOMER ALLOCATION FACTORS",null,null,null,null,null,null,"  "]
[]
[null,null,null," ",null,null,null,null,null,null,null," "]
[null,"CUSTOMERS AT DISTRIBUTION LEVEL ONLY  "]
[null,null,null,null,null,null,null,null,null,null,null,"GROUP"]
[null,null,null,null,null," ",null," ",null,null,null,"DIVERSIFIED"]
[null,null,null," NON-COIN",null,null,null,"CUSTOMERS",null,"CUSTOMERS",null,"CLASS"]
["LINE",null,"RATE"," KW","ALLOC","KWH","ALLOC"," (DIST.","ALLOC"," (DIST.","ALLOC"," KW","ALLOC"]
["NO.",null,"GROUP","DEMAND(a)","K203","(AT SOURCE)(b)","K303","LEVEL)(c)","K405","LEVEL)(c)","K406","DEMAND(d)","K215"]
[1,null,null,"(1)","(2)","(3)","(4)","(5)","(6)",null,null,"(7)","(8)"]
[{"$f":"1+A16","v":2},null,"Retail:"]
[3,null,{"$f":"'WP FR-16(7)(v)-KW & KWH @Gen'!C17","v":"Residential"},{"$f":"'WP FR-16(7)(v) CP NCP sum'!$E49","v":899439},{"$f":"IF(C$29=0,0,1-SUM(E19:E28)-E37)","v":0.5938500000000001},{"$f":"'WP FR-16(7)(v) kwh analysis'!$J17","v":1608724299},{"$f":"IF(E$29=0,0,1-SUM(G19:G28)-G37)","v":0.37747999999999987},{"$f":"'WP FR-16(7)(v) AVG CUST'!O11","v":128431},{"$f":"IF(H$29=0,0,1-SUM(I19:I28)-I37)","v":0.90193999999999996},{"$f":"H18","v":128431},{"$f":"IF(J$29=0,0,1-SUM(K19:K28)-K37)","v":0.90205000000000002},{"$f":"'WP FR-16(7)(v) CP NCP sum'!E67","v":343307},{"$f":"IF(I$29=0,0,1-SUM(M19:M28)-M37)","v":0.46943000000000007}]
[4,null,{"$f":"'WP FR-16(7)(v)-KW & KWH @Gen'!C18","v":"Dist Secondary - DS"},{"$f":"'WP FR-16(7)(v) CP NCP sum'!$F49+'WP FR-16(7)(v) CP NCP sum'!$G49","v":321466},{"$f":"ROUND(D19/D$39,5)","v":0.21224000000000001},{"$f":"'WP FR-16(7)(v) kwh analysis'!$J18","v":1146956880},{"$f":"ROUND(F19/F$39,5)","v":0.26911000000000002},{"$f":"'WP FR-16(7)(v) AVG CUST'!O34+'WP FR-16(7)(v) AVG CUST'!O35","v":12968},{"$f":"IF(H$39=0,0,ROUND(H19/$H$39,5))","v":9.1069999999999998E-2},{"$f":"H19","v":12968},9.1069999999999998E-2,{"$f":"'WP FR-16(7)(v) CP NCP sum'!F67+'WP FR-16(7)(v) CP NCP sum'!G67","v":202596},{"$f":"IF(L$39=0,0,ROUND(L19/$L$39,5))","v":0.27701999999999999}]
[5,null,{"$f":"'WP FR-16(7)(v)-KW & KWH @Gen'!C19","v":"Dist Secondary - GS-FL"},{"$f":"'WP FR-16(7)(v) CP NCP sum'!$H49","v":1158},7.6000000000000004E-4,{"$f":"'WP FR-16(7)(v) kwh analysis'!$J19","v":6420710},1.5100000000000001E-3,{"$f":"'WP FR-16(7)(v) AVG CUST'!O20","v":172},1.2099999999999999E-3,172,1.2099999999999999E-3,{"$f":"'WP FR-16(7)(v) CP NCP sum'!H67","v":945},1.2899999999999999E-3]
[6,null,{"$f":"'WP FR-16(7)(v)-KW & KWH @Gen'!C20","v":"Dist Secondary - EH"},{"$f":"'WP FR-16(7)(v) CP NCP sum'!$I49","v":10653},7.0299999999999998E-3,{"$f":"'WP FR-16(7)(v) kwh analysis'!$J20","v":18228802},4.28E-3,{"$f":"'WP FR-16(7)(v) AVG CUST'!O18","v":103},7.2000000000000005E-4,103,7.2000000000000005E-4,{"$f":"'WP FR-16(7)(v) CP NCP sum'!I67","v":4447},6.0800000000000003E-3]
[7,null,{"$f":"'WP FR-16(7)(v)-KW & KWH @Gen'!C21","v":"Dist Secondary - SP"},{"$f":"'WP FR-16(7)(v) CP NCP sum'!$J49","v":109},6.9999999999999994E-5,{"$f":"'WP FR-16(7)(v) kwh analysis'!$J21","v":298034},6.9999999999999994E-5,{"$f":"'WP FR-16(7)(v) AVG CUST'!O19","v":14},1E-4,14,1E-4,{"$f":"'WP FR-16(7)(v) CP NCP sum'!F70+'WP FR-16(7)(v) CP NCP sum'!J67","v":53},6.9999999999999994E-5]
[8,null,{"$f":"'WP FR-16(7)(v)-KW & KWH @Gen'!C22","v":"Dist Secondary - DT"},{"$f":"'WP FR-16(7)(v) CP NCP sum'!$K49","v":136975},9.0429999999999996E-2,{"$f":"'WP FR-16(7)(v) kwh analysis'!$J22","v":700889249},0.16445000000000001,{"$f":"'WP FR-16(7)(v) AVG CUST'!O39","v":155},1.09E-3,155,1.09E-3,{"$f":"'WP FR-16(7)(v) CP NCP sum'!K67","v":103187},0.14108999999999999]
[9,null,{"$f":"'WP FR-16(7)(v)-KW & KWH @Gen'!C23","v":"Dist Primary - DT"},{"$f":"'WP FR-16(7)(v) CP NCP sum'!L49","v":84382},5.5710000000000003E-2,{"$f":"'WP FR-16(7)(v) kwh analysis'!$J23","v":488455966},0.11461,{"$f":"'WP FR-16(7)(v) AVG CUST'!O43","v":37},2.5999999999999998E-4,37,2.5999999999999998E-4,{"$f":"'WP FR-16(7)(v) CP NCP sum'!L67","v":68199},9.325E-2]
[10,null,"Dist Primary - DP",{"$f":"'WP FR-16(7)(v) CP NCP sum'!M49","v":5687},3.7499999999999999E-3,{"$f":"'WP FR-16(7)(v) kwh analysis'!$J24","v":22905598},5.3699999999999998E-3,{"$f":"'WP FR-16(7)(v) AVG CUST'!O21","v":10},6.9999999999999994E-5,10,6.9999999999999994E-5,{"$f":"'WP FR-16(7)(v) CP NCP sum'!M67","v":3420},4.6800000000000001E-3]
[11,null,{"$f":"'WP FR-16(7)(v)-KW & KWH @Gen'!C25","v":"Transmission"},{"$f":"'WP FR-16(7)(v) CP NCP sum'!N49","v":41996},2.7730000000000001E-2,{"$f":"'WP FR-16(7)(v) kwh analysis'!J25","v":232255694},5.4489999999999997E-2,{"$f":"'WP FR-16(7)(v) AVG CUST'!O23","v":11},8.0000000000000007E-5,0,0,0,0]
[12,null,{"$f":"'WP FR-16(7)(v)-KW & KWH @Gen'!C26","v":"Lighting"},{"$f":"'WP FR-16(7)(v) CP NCP sum'!$O49","v":7098},4.6899999999999997E-3,{"$f":"'WP FR-16(7)(v) kwh analysis'!$J26","v":18599129},4.3600000000000002E-3,{"$f":"'WP FR-16(7)(v) AVG CUST'!O25","v":468},3.29E-3,468,3.29E-3,{"$f":"'WP FR-16(7)(v) CP NCP sum'!O67","v":4595},6.28E-3]
[13,null,{"$f":"'WP FR-16(7)(v)-KW & KWH @Gen'!C27","v":"Other"},{"$f":"'WP FR-16(7)(v) CP NCP sum'!$P49","v":444},2.9E-4,{"$f":"'WP FR-16(7)(v) kwh analysis'!$J27","v":479245},1.1E-4,{"$f":"'WP FR-16(7)(v) AVG CUST'!O22","v":11},8.0000000000000007E-5,11,8.0000000000000007E-5,{"$f":"'WP FR-16(7)(v) CP NCP sum'!P67","v":80},1.1E-4]
[14,null,{"$f":"'WP FR-16(7)(v)-KW & KWH @Gen'!C28","v":" Total Retail excl RTP Incremental"},{"$f":"SUM(D18:D28)","v":1509407},{"$f":"SUM(E18:E28)","v":0.99655000000000016},{"$f":"SUM(F18:F28)","v":4244213606},{"$f":"ROUND(SUM(G18:G28),5)","v":0.99583999999999995},{"$f":"SUM(H18:H28)","v":142380},{"$f":"ROUND(SUM(I18:I28),5)","v":0.99990999999999997},{"$f":"SUM(J18:J28)","v":142369},{"$f":"ROUND(SUM(K18:K28),5)","v":0.99994000000000005},{"$f":"SUM(L18:L28)","v":730829},{"$f":"ROUND(SUM(M18:M28),5)","v":0.99929999999999997}]
[15]
[16,null,{"$f":"'WP FR-16(7)(v)-KW & KWH @Gen'!C30","v":"RTP Incremental:"}]
[17,null,{"$f":"'WP FR-16(7)(v)-KW & KWH @Gen'!C31","v":"Dist Secondary - DS"},{"$f":"'WP FR-16(7)(v) CP NCP sum'!$R49","v":391},{"$f":"ROUND(D32/D$39,5)","v":2.5999999999999998E-4},{"$f":"'WP FR-16(7)(v) kwh analysis'!J31","v":866696},{"$f":"ROUND(F32/F$39,5)","v":2.0000000000000001E-4},{"$f":"'WP FR-16(7)(v) AVG CUST'!O36","v":4},{"$f":"IF(H$39=0,0,ROUND(H32/$H$39,5))","v":3.0000000000000001E-5},{"$f":"H32","v":4},{"$f":"IF(J$39=0,0,ROUND(J32/$H$39,5))","v":3.0000000000000001E-5},{"$f":"'WP FR-16(7)(v) CP NCP sum'!$R67","v":152},{"$f":"IF(L$39=0,0,ROUND(L32/$L$39,5))","v":2.1000000000000001E-4}]
[18,null,{"$f":"'WP FR-16(7)(v)-KW & KWH @Gen'!C32","v":"Dist Secondary - DT"},{"$f":"'WP FR-16(7)(v) CP NCP sum'!$S49","v":1076},{"$f":"ROUND(D33/D$39,5)","v":7.1000000000000002E-4},{"$f":"'WP FR-16(7)(v) kwh analysis'!J32","v":2391373},{"$f":"ROUND(F33/F$39,5)","v":5.5999999999999995E-4},{"$f":"'WP FR-16(7)(v) AVG CUST'!O40","v":4},{"$f":"IF(H$39=0,0,ROUND(H33/$H$39,5))","v":3.0000000000000001E-5},4,{"$f":"IF(J$39=0,0,ROUND(J33/$H$39,5))","v":3.0000000000000001E-5},{"$f":"'WP FR-16(7)(v) CP NCP sum'!$S67","v":357},{"$f":"IF(L$39=0,0,ROUND(L33/$L$39,5))","v":4.8999999999999998E-4}]
[19,null,{"$f":"'WP FR-16(7)(v)-KW & KWH @Gen'!C33","v":"Dist Primary - DT"},0,{"$f":"ROUND(D34/D$39,5)","v":0},{"$f":"'WP FR-16(7)(v) kwh analysis'!J33","v":0},{"$f":"ROUND(F34/F$39,5)","v":0},{"$f":"'WP FR-16(7)(v) AVG CUST'!O44","v":0},{"$f":"IF(H$39=0,0,ROUND(H34/$H$39,5))","v":0},0,{"$f":"IF(J$39=0,0,ROUND(J34/$H$39,5))","v":0},{"$f":"'WP FR-16(7)(v) CP NCP sum'!$T67","v":0},{"$f":"IF(L$39=0,0,ROUND(L34/$L$39,5))","v":0}]
[20,null,"Dist Primary - DP",0,{"$f":"ROUND(D35/D$39,5)","v":0},{"$f":"'WP FR-16(7)(v) kwh analysis'!J34","v":0},{"$f":"ROUND(F35/F$39,5)","v":0},0,{"$f":"IF(H$39=0,0,ROUND(H35/$H$39,5))","v":0},0,{"$f":"IF(J$39=0,0,ROUND(J35/$H$39,5))","v":0},{"$f":"'WP FR-16(7)(v) CP NCP sum'!$U67","v":0},{"$f":"IF(L$39=0,0,ROUND(L35/$L$39,5))","v":0}]
[21,null,{"$f":"'WP FR-16(7)(v)-KW & KWH @Gen'!C35","v":"Transmission"},{"$f":"'WP FR-16(7)(v) CP NCP sum'!V49","v":3759},{"$f":"ROUND(D36/D$39,5)","v":2.48E-3},{"$f":"'WP FR-16(7)(v) kwh analysis'!J35","v":14499306},{"$f":"ROUND(F36/F$39,5)","v":3.3999999999999998E-3},{"$f":"'WP FR-16(7)(v) AVG CUST'!O24","v":4},{"$f":"IF(H$39=0,0,ROUND(H36/$H$39,5))","v":3.0000000000000001E-5},0,{"$f":"IF(J$39=0,0,ROUND(J36/$H$39,5))","v":0},0,{"$f":"IF(L$39=0,0,ROUND(L36/$L$39,5))","v":0}]
[22,null,{"$f":"'WP FR-16(7)(v)-KW & KWH @Gen'!C36","v":"  Total RTP Incremental"},{"$f":"SUM(D32:D36)","v":5226},3.4499999999999999E-3,17757375,4.1599999999999996E-3,12,9.0000000000000006E-5,8,6.0000000000000002E-5,509,6.9999999999999999E-4]
[23]
[24,null,{"$f":"'WP FR-16(7)(v)-KW & KWH @Gen'!C38","v":"Total Retail"},{"$f":"D37+D29","v":1514633},1.0000000000000002,4261970981,1,142392,1,142377,1,731338,1]
[]
[null,null,"(a) Source: WPFR-16(7)(v), Page 10"]
[null,null,"(b) Source: WPFR-16(7)(v), Page 9"]
[null,null,"(c) Source: 2010 Customers - WPFR-16(7)(v), Page 52"]
[null,null,"(d) Source: WPFR-16(7)(v), Page 10"]
[]
[null,null,null,null,null,null,null,{"$f":"'WP FR-16(7)(v) AVG CUST'!O28","v":142392},"Total Avg Cust"]
[null,null,null,null,null,null,null,{"$f":"'WP FR-16(7)(v) AVG CUST'!O23","v":11},"Trans"]
[null,null,null,null,null,null,null,{"$f":"H46-H47","v":142381},"Total less Trans."]
[]
[]
[]
[]
[]
[]
[]
[]
[]
[]
[]
[]
[]
[]
[]
[]
[]
[]
[]
[]
[]
[]
[]
[]
[]
[]
[]
[]
[]
[]
[]
[]
[]
[]
[]
[]
[]
[]
[]
[]
[]
[]
[]
[]
[]
[]
[]
[]
[]
[]
[]
[]
[]
[]
[]
[]
[]
[]
[]
[]
[]
[]
[]
[]
[]
[]
[]
[]
[]
[]
[]
[]
[]
[]
[]
[]
[]
[]
[]
[]
[]
[]
[]
[]
[]
[]
[]
[]
[]
[]
[]
[]
[]
[]
[]
[]
[]
[]
[]
[]
[]
[]
[]
[]
[]
[]
[]
[]
[]
[]
[]
[]
[]
[]
[]
[]
[]
[]
[]
[]
[]
[]
[]
[]
[]
[]
[]
[]
[]
[]
[]
[]
[]
[]
[]
[]
[]
[]
[]
[]
[]
[]
[]
[]
[]
[]
[]
[]
[]
[]
[]
[]
[]
[]
[]
[]
[]
[]
[]
[]
[]
[]
[]
[]
[]
[]
[]
[]
[]
[]
[]
[]
[]
[]
[]
[]
[]
[]
[]
[]
[]
[]
[]
[]
[]
[]
[]
[]
[]
[]
[]
[]
[]
[]
[]
[]
[]
[]
[]
[]
[]
[]
[]
[]
[]
[]
[]
[]
[]
[]
[]
[]
[]
[]
[]
[]
[]
[]
[]
[]
[]
[]
[]
[]
[]
[]
[]
[]
[]
[]
[]
[]
[]
[]
[]
[]
[]
[]
[]
[]
[]
[]
[]
[]
[]
[]
[]
[]
[]
[]
[]
[]
[]
[]
[]
[]
[]
[]
[]
[]
[]
[]
[]
[]
[]
[]
[]
[]
[]
[]
[]
[]
[]
[]
[]
[]
[]
[]
[]
[]
[]
[]
[]
[]
[]
[]
[]
[]
[]
[]
[]
[]
[]
[]
[]
[]
[]
[]
[]
[]
[]
[]
[]
[]
[]
[]
[]
[]
[]
[]
[]
[]
[]
[]
[]
[]
[]
[]
[]
[]
[]
[]
[]
[]
[]
[]
[]
[]
[]
[]
[]
[]
[]
[]
[]
[]
[]
[]
[]
[]
[]
[]
[]
[]
[]
[]
[]
[]
[]
[]
[]
[]
[]
[]
[]
[]
[]
[]
[]
[]
[]
[]
[]
[]
[]
[]
[]
[]
[]
[]
[]
[]
[]
[]
[]
[]
[]
[]
[]
[]
[]
[]
[]
[]
[]
[]
[]
[]
[]
[]
[]
[]
[]
[]
[]
[]
[]
[]
[]
[]
[]
[]
[]
[]
[]
[]
[]
[]
[]
[]
[]
[]
[]
[]
[]
[]
[]
[]
[]
[]
[]
[]
[]
[]
[]
[]
[]
[]
[]
[]
[]
[]
[]
[]
[]
[]
[]
[]
[]
[]
[]
[]
[]
[]
[]
[]
[]
[]
[]
[]
[]
[]
[]
[]
[]
[]
[]
[]
[]
[]
[]
[]
[]
[]
[]
[]
[]
[]
[]
[]
[]
[]
[]
[]
[]
[]
[]
[]
[]
[]
[]
[]
[]
[]
[]
[]
[]
[]
[]
[]
[]
[]
[]
[]
[]
[]
[]
[]
[]
[]
[]
[]
[]
[]
[]
[null,null,null,null,null,0]

{"sheet":"WP FR-16(7)(v) Meters","index":33,"n_rows":556,"n_cols":12,"rows_kept":556,"cut":false,"hidden":false,"merged":[]}
[{"$f":"'WP FR-16(7)(v)-KW & KWH @Gen'!A1","v":"DUKE ENERGY KENTUCKY, INC."},null,null,null,null,null,null,null,{"$f":"'WP FR-16(7)(v)-KW & KWH @Gen'!G1","v":"Work Paper FR-16(7)(v) "}]
[{"$f":"coss_type","v":"ELECTRIC COST OF SERVICE STUDY "},null,null,null,null,null,null,null,{"$f":"'WP FR-16(7)(v)-KW & KWH @Gen'!G2","v":"Witness Responsible:"}]
[{"$f":"case_name","v":"CASE NO: 2019-00271"},null,null,null,null,null,null,null,{"$f":"PROPER(Witness)","v":"James E. Ziolkowski"}]
[{"$f":"alloc_factors","v":"ALLOCATION FACTORS FOR COST OF SERVICE STUDY"},null,null,null,null,null,null,null,"Page 5"]
[{"$f":"time_period","v":"TWELVE MONTHS ENDING DECEMBER 31, 2018"}]
[]
["COMPUTATION OF METER ALLOCATION FACTORS"]
[]
[]
[]
[]
[null,null,null,null,null,null,null,null,"WEIGHTED","METER"]
[null,null,null,"AVERAGE",null,"AVERAGE","WEIGHTED",null,"CUSTOMERS","COST"]
["LINE",null,"RATE","NO. OF","METER","METER","COST","WEIGHTED","ALLOC","ALLOC"]
["NO.",null,"GROUP","CUSTOMERS","COST (a)","COST","FACTOR","CUSTOMERS","K409","    K407"]
[null,null,null,"(1)","(2)","(3)","(4)","(5)","(6)","(7)"]
[]
[{"$f":"1+A16","v":1},null,"Retail:"]
[{"$f":"1+A18","v":2},null,{"$f":"'WP FR-16(7)(v)-KW & KWH @Gen'!C17","v":"Residential"},{"$f":"'WP FR-16(7)(v) AVG CUST'!O11","v":128431},{"$f":"'Input Data'!D6","v":12782441},{"$f":"IF(D19=0,0,ROUND(E19/D19,0))","v":100},{"$f":"ROUND(F19/$F$19,0)","v":1},{"$f":"IF(G19=0,ROUND(D19*1,0),ROUND(D19*G19,0))","v":128431},{"$f":"1-SUM(I20:I29)-I38","v":0.82077999999999995},{"$f":"1-SUM(J20:J29)-J38","v":0.80832999999999999}]
[3,null,{"$f":"'WP FR-16(7)(v)-KW & KWH @Gen'!C18","v":"Dist Secondary - DS"},{"$f":"'WP FR-16(7)(v) AVG CUST'!O12","v":12968},{"$f":"'Input Data'!D7","v":2892747},{"$f":"IF(D20=0,0,ROUND(E20/D20,0))","v":223},{"$f":"ROUND(F20/$F$19,0)","v":2},{"$f":"IF(G20=0,ROUND(D20*1,0),ROUND(D20*G20,0))","v":25936},{"$f":"ROUND(H20/$H$40,5)","v":0.16575999999999999},{"$f":"IF($E$40=0,0,ROUND(E20/$E$40,5))","v":0.18293000000000001}]
[4,null,{"$f":"'WP FR-16(7)(v)-KW & KWH @Gen'!C19","v":"Dist Secondary - GS-FL"},{"$f":"'WP FR-16(7)(v) AVG CUST'!O20","v":172},{"$f":"'Input Data'!D8","v":0},0,0,172,1.1000000000000001E-3,0,null," "]
[5,null,{"$f":"'WP FR-16(7)(v)-KW & KWH @Gen'!C20","v":"Dist Secondary - EH"},{"$f":"'WP FR-16(7)(v) AVG CUST'!O18","v":103},{"$f":"'Input Data'!D9","v":22093},214,2,206,1.32E-3,1.4E-3]
[6,null,{"$f":"'WP FR-16(7)(v)-KW & KWH @Gen'!C21","v":"Dist Secondary - SP"},{"$f":"'WP FR-16(7)(v) AVG CUST'!O19","v":14},{"$f":"'Input Data'!D10","v":3451},247,2,28,1.8000000000000001E-4,2.2000000000000001E-4]
[7,null,{"$f":"'WP FR-16(7)(v)-KW & KWH @Gen'!C22","v":"Dist Secondary - DT"},{"$f":"'WP FR-16(7)(v) AVG CUST'!O14","v":155},{"$f":"'Input Data'!D11","v":102877},664,7,1085,6.9300000000000004E-3,6.5100000000000002E-3]
[8,null,{"$f":"'WP FR-16(7)(v)-KW & KWH @Gen'!C23","v":"Dist Primary - DT"},{"$f":"'WP FR-16(7)(v) AVG CUST'!O16","v":37},{"$f":"'Input Data'!D12","v":0},0,0,37,2.4000000000000001E-4,0]
[9,null,"Dist Primary - DP",{"$f":"'WP FR-16(7)(v) AVG CUST'!O21","v":10},{"$f":"'Input Data'!D13","v":3805},381,4,40,2.5999999999999998E-4,2.4000000000000001E-4]
[10,null,{"$f":"'WP FR-16(7)(v)-KW & KWH @Gen'!C25","v":"Transmission"},{"$f":"'WP FR-16(7)(v) AVG CUST'!O23","v":11},{"$f":"'Input Data'!D14","v":3619},329,3,33,2.1000000000000001E-4,2.3000000000000001E-4]
[11,null,{"$f":"'WP FR-16(7)(v)-KW & KWH @Gen'!C26","v":"Lighting"},{"$f":"'WP FR-16(7)(v) AVG CUST'!O25","v":468},{"$f":"'Input Data'!D15","v":0},0,0,468,2.99E-3,0,null," "]
[12,null,{"$f":"'WP FR-16(7)(v)-KW & KWH @Gen'!C27","v":"Other"},{"$f":"'WP FR-16(7)(v) AVG CUST'!O22","v":11},{"$f":"'Input Data'!D16","v":2208},201,2,22,1.3999999999999999E-4,1.3999999999999999E-4,null," "]
[13,null,{"$f":"'WP FR-16(7)(v)-KW & KWH @Gen'!C28","v":" Total Retail excl RTP Incremental"},{"$f":"SUM(D19:D29)","v":142380},{"$f":"SUM(E19:E29)","v":15813241},null,null,{"$f":"SUM(H19:H29)","v":156458},{"$f":"SUM(I15:I29)","v":0.99991000000000008},{"$f":"SUM(J15:J29)","v":1}]
[14]
[15,null,{"$f":"'WP FR-16(7)(v)-KW & KWH @Gen'!C30","v":"RTP Incremental:"}]
[16,null,{"$f":"'WP FR-16(7)(v)-KW & KWH @Gen'!C31","v":"Dist Secondary - DS"},{"$f":"'WP FR-16(7)(v) AVG CUST'!O13","v":4},0,{"$f":"IF(D33=0,0,ROUND(E33/D33,0))","v":0},{"$f":"ROUND(F33/$F$19,0)","v":0},{"$f":"IF(G33=0,ROUND(D33*1,0),ROUND(D33*G33,0))","v":4},{"$f":"ROUND(H33/$H$40,5)","v":3.0000000000000001E-5},{"$f":"IF($E$40=0,0,ROUND(E33/$E$40,5))","v":0}]
[17,null,{"$f":"'WP FR-16(7)(v)-KW & KWH @Gen'!C32","v":"Dist Secondary - DT"},{"$f":"'WP FR-16(7)(v) AVG CUST'!O15","v":4},0,{"$f":"IF(D34=0,0,ROUND(E34/D34,0))","v":0},{"$f":"ROUND(F34/$F$19,0)","v":0},{"$f":"IF(G34=0,ROUND(D34*1,0),ROUND(D34*G34,0))","v":4},{"$f":"ROUND(H34/$H$40,5)","v":3.0000000000000001E-5},{"$f":"IF($E$40=0,0,ROUND(E34/$E$40,5))","v":0}]
[18,null,{"$f":"'WP FR-16(7)(v)-KW & KWH @Gen'!C33","v":"Dist Primary - DT"},{"$f":"'WP FR-16(7)(v) AVG CUST'!O17","v":0},0,{"$f":"IF(D35=0,0,ROUND(E35/D35,0))","v":0},{"$f":"ROUND(F35/$F$19,0)","v":0},{"$f":"IF(G35=0,ROUND(D35*1,0),ROUND(D35*G35,0))","v":0},{"$f":"ROUND(H35/$H$40,5)","v":0},{"$f":"IF($E$40=0,0,ROUND(E35/$E$40,5))","v":0}]
[19,null,"Dist Primary - DP",0,0,{"$f":"IF(D36=0,0,ROUND(E36/D36,0))","v":0},{"$f":"ROUND(F36/$F$19,0)","v":0},{"$f":"IF(G36=0,ROUND(D36*1,0),ROUND(D36*G36,0))","v":0},{"$f":"ROUND(H36/$H$40,5)","v":0},{"$f":"IF($E$40=0,0,ROUND(E36/$E$40,5))","v":0}]
[20,null,{"$f":"'WP FR-16(7)(v)-KW & KWH @Gen'!C35","v":"Transmission"},{"$f":"'WP FR-16(7)(v) AVG CUST'!O24","v":4},0,{"$f":"IF(D37=0,0,ROUND(E37/D37,0))","v":0},{"$f":"ROUND(F37/$F$19,0)","v":0},{"$f":"IF(G37=0,ROUND(D37*1,0),ROUND(D37*G37,0))","v":4},{"$f":"ROUND(H37/$H$40,5)","v":3.0000000000000001E-5},{"$f":"IF($E$40=0,0,ROUND(E37/$E$40,5))","v":0}]
[21,null,{"$f":"'WP FR-16(7)(v)-KW & KWH @Gen'!C36","v":"  Total RTP Incremental"},{"$f":"SUM(D33:D37)","v":12},{"$f":"SUM(E33:E37)","v":0},null,null,{"$f":"SUM(H33:H37)","v":12},{"$f":"SUM(I33:I37)","v":9.0000000000000006E-5},{"$f":"SUM(J33:J37)","v":0}]
[22]
[23,null,{"$f":"'WP FR-16(7)(v)-KW & KWH @Gen'!C38","v":"Total Retail"},{"$f":"D38+D30","v":142392},{"$f":"E38+E30","v":15813241},null,null,{"$f":"H38+H30","v":156470},{"$f":"I38+I30","v":1},{"$f":"J38+J30","v":1}]
[]
[null,"(a) Source: Metering Support"]
[" "]
[" ",null,null,null,null," "]
[" "]
[" "]
[" "]
[]
[]
[]
[]
[]
[]
[]
[]
[]
[]
[]
[]
[]
[]
[]
[]
[]
[]
[]
[]
[]
[]
[]
[]
[]
[]
[]
[]
[]
[]
[]
[]
[]
[]
[]
[]
[]
[]
[]
[]
[]
[]
[]
[]
[]
[]
[]
[]
[]
[]
[]
[]
[]
[]
[]
[]
[]
[]
[]
[]
[]
[]
[]
[]
[]
[]
[]
[]
[]
[]
[]
[]
[]
[]
[]
[]
[]
[]
[]
[]
[]
[]
[]
[]
[]
[]
[]
[]
[]
[]
[]
[]
[]
[]
[]
[]
[]
[]
[]
[]
[]
[]
[]
[]
[]
[]
[]
[]
[]
[]
[]
[]
[]
[]
[]
[]
[]
[]
[]
[]
[]
[]
[]
[]
[]
[]
[]
[]
[]
[]
[]
[]
[]
[]
[]
[]
[]
[]
[]
[]
[]
[]
[]
[]
[]
[]
[]
[]
[]
[]
[]
[]
[]
[]
[]
[]
[]
[]
[]
[]
[]
[]
[]
[]
[]
[]
[]
[]
[]
[]
[]
[]
[]
[]
[]
[]
[]
[]
[]
[]
[]
[]
[]
[]
[]
[]
[]
[]
[]
[]
[]
[]
[]
[]
[]
[]
[]
[]
[]
[]
[]
[]
[]
[]
[]
[]
[]
[]
[]
[]
[]
[]
[]
[]
[]
[]
[]
[]
[]
[]
[]
[]
[]
[]
[]
[]
[]
[]
[]
[]
[]
[]
[]
[]
[]
[]
[]
[]
[]
[]
[]
[]
[]
[]
[]
[]
[]
[]
[]
[]
[]
[]
[]
[]
[]
[]
[]
[]
[]
[]
[]
[]
[]
[]
[]
[]
[]
[]
[]
[]
[]
[]
[]
[]
[]
[]
[]
[]
[]
[]
[]
[]
[]
[]
[]
[]
[]
[]
[]
[]
[]
[]
[]
[]
[]
[]
[]
[]
[]
[]
[]
[]
[]
[]
[]
[]
[]
[]
[]
[]
[]
[]
[]
[]
[]
[]
[]
[]
[]
[]
[]
[]
[]
[]
[]
[]
[]
[]
[]
[]
[]
[]
[]
[]
[]
[]
[]
[]
[]
[]
[]
[]
[]
[]
[]
[]
[]
[]
[]
[]
[]
[]
[]
[]
[]
[]
[]
[]
[]
[]
[]
[]
[]
[]
[]
[]
[]
[]
[]
[]
[]
[]
[]
[]
[]
[]
[]
[]
[]
[]
[]
[]
[]
[]
[]
[]
[]
[]
[]
[]
[]
[]
[]
[]
[]
[]
[]
[]
[]
[]
[]
[]
[]
[]
[]
[]
[]
[]
[]
[]
[]
[]
[]
[]
[]
[]
[]
[]
[]
[]
[]
[]
[]
[]
[]
[]
[]
[]
[]
[]
[]
[]
[]
[]
[]
[]
[]
[]
[]
[]
[]
[]
[]
[]
[]
[]
[]
[]
[]
[]
[]
[]
[]
[]
[]
[]
[]
[]
[]
[]
[]
[]
[]
[]
[]
[]
[]
[]
[]
[]
[]
[]
[]
[]
[]
[]
[]
[]
[]
[]
[]
[]
[]
[]
[]
[]
[]
[]
[]
[]
[]
[]
[]
[]
[]
[]
[]
[]
[]
[]
[]
[]
[]
[]
[]
[]
[]
[]
[null,null,null,null,null,0]

{"sheet":"WP FR-16(7)(v) CustAcct","index":34,"n_rows":112,"n_cols":17,"rows_kept":112,"cut":false,"hidden":false,"merged":[]}
[{"$f":"'WP FR-16(7)(v)-KW & KWH @Gen'!A1","v":"DUKE ENERGY KENTUCKY, INC."},null,null,null,null,null,null,{"$f":"'WP FR-16(7)(v)-KW & KWH @Gen'!G1","v":"Work Paper FR-16(7)(v) "}]
[{"$f":"coss_type","v":"ELECTRIC COST OF SERVICE STUDY "},null,null,null,null,null,null,{"$f":"'WP FR-16(7)(v)-KW & KWH @Gen'!G2","v":"Witness Responsible:"}]
[{"$f":"case_name","v":"CASE NO: 2019-00271"},null,null,null,null,null,null,{"$f":"PROPER(Witness)","v":"James E. Ziolkowski"}]
[{"$f":"alloc_factors","v":"ALLOCATION FACTORS FOR COST OF SERVICE STUDY"},null,null,null,null,null,null,"Page 6"]
[{"$f":"time_period","v":"TWELVE MONTHS ENDING DECEMBER 31, 2018"}]
[]
["COMPUTATION OF UNCOLLECTIBLE ACCOUNTS ALLOCATION FACTORS"]
[]
[]
[]
[null,null,null,null,null,null,""]
[null,null,null,null,null,null,"Test Period"]
["Line",null,null,"Test Period","Revenue",null,"Uncollectible","ALLOC"]
["No.",null,"Description","Present Revenue","Ratio",null,"Expense (b)","K411"]
[1]
[2,null,"Retail:"]
[3,null,{"$f":"'WP FR-16(7)(v)-KW & KWH @Gen'!C17","v":"Residential"},{"$f":"'FR-16(7)(v)-3 PROD Demand'!G881","v":123883637},null,null,{"$f":"ROUND(G31*J42,0)","v":5267443},{"$f":"ROUND(G17/$G$31,5)","v":0.91115999999999997}]
[4]
[5,null,{"$f":"'WP FR-16(7)(v)-KW & KWH @Gen'!C18","v":"Dist Secondary - DS"},{"$f":"'FR-16(7)(v)-3 PROD Demand'!H881","v":90318223},{"$f":"1-SUM(E20:E28)","v":0.48636000000000001},null,{"$f":"G29-SUM(G20:G28)","v":249785.75999999978},{"$f":"1-H17-SUM(H20:H28)","v":4.320000000000003E-2}]
[6,null,{"$f":"'WP FR-16(7)(v)-KW & KWH @Gen'!C19","v":"Dist Secondary - GS-FL"},{"$f":"'FR-16(7)(v)-3 PROD Demand'!I881","v":577046},{"$f":"ROUND(D20/$D$29,5)","v":3.1099999999999999E-3},null,{"$f":"ROUND($G$29*E20,0)","v":1597},{"$f":"ROUND(G20/$G$31,5)","v":2.7999999999999998E-4}]
[7,null,{"$f":"'WP FR-16(7)(v)-KW & KWH @Gen'!C20","v":"Dist Secondary - EH"},{"$f":"'FR-16(7)(v)-3 PROD Demand'!J881","v":600937},{"$f":"ROUND(D21/$D$29,5)","v":3.2399999999999998E-3},null,1664,2.9E-4]
[8,null,{"$f":"'WP FR-16(7)(v)-KW & KWH @Gen'!C21","v":"Dist Secondary - SP"},{"$f":"'FR-16(7)(v)-3 PROD Demand'!K881","v":29960},1.6000000000000001E-4,null,82,1.0000000000000001E-5]
[9,null,{"$f":"'WP FR-16(7)(v)-KW & KWH @Gen'!C22","v":"Dist Secondary - DT"},{"$f":"'FR-16(7)(v)-3 PROD Demand'!L881","v":46910116},0.25262000000000001,null,129741,2.2440000000000002E-2]
[10,null,{"$f":"'WP FR-16(7)(v)-KW & KWH @Gen'!C23","v":"Dist Primary - DT"},{"$f":"'FR-16(7)(v)-3 PROD Demand'!M881","v":29943872},0.16125,null,82815,1.4330000000000001E-2]
[11,null,"Dist Primary - DP",{"$f":"'FR-16(7)(v)-3 PROD Demand'!N881","v":1361377},7.3299999999999997E-3,null,3765,6.4999999999999997E-4]
[12,null,{"$f":"'WP FR-16(7)(v)-KW & KWH @Gen'!C25","v":"Transmission"},{"$f":"'FR-16(7)(v)-3 PROD Demand'!O881","v":14062168},7.5730000000000006E-2,null,38893,6.7299999999999999E-3]
[13,null,{"$f":"'WP FR-16(7)(v)-KW & KWH @Gen'!C26","v":"Lighting"},{"$f":"'FR-16(7)(v)-3 PROD Demand'!P881","v":1876470},1.0109999999999999E-2,null,5192,8.9999999999999998E-4]
[14,null,{"$f":"'WP FR-16(7)(v)-KW & KWH @Gen'!C27","v":"Other"},{"$f":"'FR-16(7)(v)-3 PROD Demand'!Q881","v":16848},9.0000000000000006E-5,null,{"$f":"ROUND($G$29*E28,0)","v":46},1.0000000000000001E-5]
[15,null,"Sub total Non Residential",{"$f":"SUM(D19:D28)","v":185697017},{"$f":"SUM(E19:E28)","v":0.99999999999999989},null,{"$f":"G31-G17","v":513580.75999999978},{"$f":"SUM(H19:H28)","v":8.8840000000000016E-2}]
[16]
[17,null,"Total Revenue",{"$f":"D29+D17","v":309580654},null,null,{"$f":"D44","v":5781023.7599999998},{"$f":"H29+H17","v":1}]
[18]
[19]
[20]
[21,null,null,"Electric","Electric",null,"Electric"]
[22,null,null,"Charge-Offs","Retail Revenue",null,"Charge-Offs",null,"Charge-Offs"]
[23,null,null,"12 Months Ended","12 Months Ended",null,"as % of Electric","Present","12 Months Ended"]
[24,null,"Residential / Non-Residential","December 2018 (c)","December 2018 (d)",null,"Retail Revenue","Revenue","December 2016","Ratio"]
[25,null,null,"(1)","(2)",null,"(3)","(4)","(5)","(6)"]
[26,null,null,null,null,null,"(1)/(2)",null,"(3)*(4)"]
[27]
[28,null,"Residential",{"$f":"O111","v":5293184.99},144298290.68000001,null,{"$f":"ROUND(D42/E42,6)","v":3.6681999999999999E-2},{"$f":"D17","v":123883637},{"$f":"ROUND(G42*H42,0)","v":4544300},{"$f":"1-J43","v":0.911161}]
[29,null,"Non-Residential",{"$f":"O86","v":487838.77},{"$f":"E44-E42","v":204460258.77999997},null,{"$f":"ROUND(D43/E43,6)","v":2.3860000000000001E-3},{"$f":"D29","v":185697017},{"$f":"ROUND(G43*H43,0)","v":443073},{"$f":"ROUND(I43/I44,6)","v":8.8839000000000001E-2}]
[30,null,null,{"$f":"SUM(D42:D43)","v":5781023.7599999998},348758549.45999998,null,{"$f":"ROUND(D44/E44,6)","v":1.6576E-2},{"$f":"SUM(H42:H43)","v":309580654},{"$f":"SUM(I42:I43)","v":4987373},{"$f":"SUM(J42:J43)","v":1}]
[]
[]
[null,"(a)","Source: Schedule M and Schedule M work papers."]
[null,"(b)","Based on Charge-Off Study"]
[null,"(c)","Work Paper FR-16(7)(v), page 6b.  Line 28, Residential is Sum Class \"R\". Line 29, Non Residential is Sum Class \"N\"."]
[null,"(d)","Customer billing records"]
[]
[]
[null,null,null,null,null,null,null,null,null,null,null,{"$f":"co_name","v":"DUKE ENERGY KENTUCKY, INC."},null,null,null,null,{"$f":"'WP FR-16(7)(v)-KW & KWH @Gen'!G1","v":"Work Paper FR-16(7)(v) "}]
[null,null,null,null,null,null,null,null,null,null,null,{"$f":"coss_type","v":"ELECTRIC COST OF SERVICE STUDY "},null,null,null,null,{"$f":"'WP FR-16(7)(v)-KW & KWH @Gen'!G2","v":"Witness Responsible:"}]
[null,null,null,null,null,null,null,null,null,null,null,{"$f":"case_name","v":"CASE NO: 2019-00271"},null,null,null,null,{"$f":"PROPER(Witness)","v":"James E. Ziolkowski"}]
[null,null,null,null,null,null,null,null,null,null,null,{"$f":"alloc_factors","v":"ALLOCATION FACTORS FOR COST OF SERVICE STUDY"},null,null,null,null,"Page 6b"]
[null,null,null,null,null,null,null,null,null,null,null,{"$f":"time_period","v":"TWELVE MONTHS ENDING DECEMBER 31, 2018"}]
[]
[]
[]
[]
[null,null,null,null,null,null,null,null,null,null,null,"Sum of Electric Charge Off"]
[null,null,null,null,null,null,null,null,null,null,null,"Class","Mo","RCL","Total"]
[null,null,null,null,null,null,null,null,null,null,null,"N","JAN","02",58981.179999999993]
[null,null,null,null,null,null,null,null,null,null,null,null,null,"04",0]
[null,null,null,null,null,null,null,null,null,null,null,null,null,"62",389.26]
[null,null,null,null,null,null,null,null,null,null,null,null,"FEB","02",37691.870000000003]
[null,null,null,null,null,null,null,null,null,null,null,null,"MAR","02",56125.89]
[null,null,null,null,null,null,null,null,null,null,null,null,null,"04",0]
[null,null,null,null,null,null,null,null,null,null,null,null,null,"62",24878.15]
[null,null,null,null,null,null,null,null,null,null,null,null,"APR","02",52112.28]
[null,null,null,null,null,null,null,null,null,null,null,null,null,"04",377.52000000000004]
[null,null,null,null,null,null,null,null,null,null,null,null,"MAY","02",67361.740000000005]
[null,null,null,null,null,null,null,null,null,null,null,null,null,"04",0]
[null,null,null,null,null,null,null,null,null,null,null,null,"JUN","02",36652.120000000003]
[null,null,null,null,null,null,null,null,null,null,null,null,null,"04",209.88]
[null,null,null,null,null,null,null,null,null,null,null,null,"JUL","02",32717.640000000003]
[null,null,null,null,null,null,null,null,null,null,null,null,"AUG","02",24867.59]
[null,null,null,null,null,null,null,null,null,null,null,null,null,"04",0]
[null,null,null,null,null,null,null,null,null,null,null,null,null,"64",7334.41]
[null,null,null,null,null,null,null,null,null,null,null,null,"SEP","02",22448.54]
[null,null,null,null,null,null,null,null,null,null,null,null,"OCT","02",13675.560000000001]
[null,null,null,null,null,null,null,null,null,null,null,null,"NOV","02",25178.720000000001]
[null,null,null,null,null,null,null,null,null,null,null,null,null,"64",7003.65]
[null,null,null,null,null,null,null,null,null,null,null,null,"DEC","02",19832.77]
[null,null,null,null,null,null,null,null,null,null,null,"N Total",null,null,487838.77]
[null,null,null,null,null,null,null,null,null,null,null,"R","JAN","00",605772.06000000006]
[null,null,null,null,null,null,null,null,null,null,null,null,null,"01",1173.0600000000002]
[null,null,null,null,null,null,null,null,null,null,null,null,"FEB","00",493939.60000000003]
[null,null,null,null,null,null,null,null,null,null,null,null,null,"01",984.35]
[null,null,null,null,null,null,null,null,null,null,null,null,"MAR","00",404516.74999999994]
[null,null,null,null,null,null,null,null,null,null,null,null,null,"01",0.84]
[null,null,null,null,null,null,null,null,null,null,null,null,"APR","00",336525.65]
[null,null,null,null,null,null,null,null,null,null,null,null,null,"01",329]
[null,null,null,null,null,null,null,null,null,null,null,null,"MAY","00",594900.99]
[null,null,null,null,null,null,null,null,null,null,null,null,null,"01",496.70999999999992]
[null,null,null,null,null,null,null,null,null,null,null,null,"JUN","00",507909.89999999997]
[null,null,null,null,null,null,null,null,null,null,null,null,null,"01",320.37]
[null,null,null,null,null,null,null,null,null,null,null,null,"JUL","00",376357.82999999996]
[null,null,null,null,null,null,null,null,null,null,null,null,null,"01",3923.9300000000003]
[null,null,null,null,null,null,null,null,null,null,null,null,"AUG","00",388469.3]
[null,null,null,null,null,null,null,null,null,null,null,null,null,"01",238.13]
[null,null,null,null,null,null,null,null,null,null,null,null,"SEP","00",341473.65]
[null,null,null,null,null,null,null,null,null,null,null,null,null,"01",8.15]
[null,null,null,null,null,null,null,null,null,null,null,null,"OCT","00",399461.91]
[null,null,null,null,null,null,null,null,null,null,null,null,null,"01",2417.2399999999998]
[null,null,null,null,null,null,null,null,null,null,null,null,"NOV","00",404540.62]
[null,null,null,null,null,null,null,null,null,null,null,null,null,"01",493.46]
[null,null,null,null,null,null,null,null,null,null,null,null,"DEC","00",428510.23]
[null,null,null,null,null,null,null,null,null,null,null,null,null,"01",421.26]
[null,null,null,null,null,null,null,null,null,null,null,"R Total",null,null,5293184.99]
[null,null,null,null,null,null,null,null,null,null,null,"Grand Total",null,null,5781023.7600000016]

{"sheet":"WP FR-16(7)(v) Distlines","index":35,"n_rows":284,"n_cols":13,"rows_kept":284,"cut":false,"hidden":false,"merged":[]}
[{"$f":"'WP FR-16(7)(v)-KW & KWH @Gen'!A1","v":"DUKE ENERGY KENTUCKY, INC."},null,null,null,null,null,null,null,null,null,{"$f":"'WP FR-16(7)(v)-KW & KWH @Gen'!G1","v":"Work Paper FR-16(7)(v) "}]
[{"$f":"coss_type","v":"ELECTRIC COST OF SERVICE STUDY "},null,null,null,null,null,null,null,null,null,{"$f":"'WP FR-16(7)(v)-KW & KWH @Gen'!G2","v":"Witness Responsible:"}]
[{"$f":"case_name","v":"CASE NO: 2019-00271"},null,null,null,null,null,null,null,null,null,{"$f":"PROPER(Witness)","v":"James E. Ziolkowski"}]
[{"$f":"alloc_factors","v":"ALLOCATION FACTORS FOR COST OF SERVICE STUDY"},null,null,null,null,null,null,null,null,null,"Page 7"]
[{"$f":"time_period","v":"TWELVE MONTHS ENDING DECEMBER 31, 2018"}]
[]
["COMPUTATION OF \"WEIGHTED\" DISTRIBUTION LINE ALLOCATION FACTORS"]
[]
[]
[]
[null,null,null,null,"GROUP "]
[null,null,null,null,"DIVERSIFIED",null,"PRIMARY LINE WEIGHTING",null,null,null,"SECONDARY LINE WEIGHTING"]
["LINE",null,"RATE",null,"CLASS",null,null,null,"    ALLOC",null,null,null,"    ALLOC"]
["NO.",null,"GROUP",null,"KW DEMAND(a)",null,"KW DEMAND (a)",null,"    K205 ",null,"KW DEMAND (a)(b)",null,"    K206 "]
[null,null,null,null,"(1)",null,{"$f":"\"(2)=\"&\"(1) * \"&TEXT(G13,\"##%\")","v":"(2)=(1) * %"},null,"(3)",null,{"$f":"\"(4)=\"&\"(1) * \"&TEXT(K13,\"##%\")","v":"(4)=(1) * %"},null,"(5)"]
[1,null,"Retail:"]
[2,null,{"$f":"'WP FR-16(7)(v)-KW & KWH @Gen'!C17","v":"Residential"},null,{"$f":"'WP FR-16(7)(v)-KW & KWH @Dist'!L18","v":343307},null,{"$f":"E17","v":343307},null,{"$f":"1-SUM(I18:I27)-I36","v":0.46943000000000007},null,{"$f":"E17","v":343307},null,{"$f":"1-SUM(M18:M27)-M36","v":0.46943000000000007}]
[3,null,{"$f":"'WP FR-16(7)(v)-KW & KWH @Gen'!C18","v":"Dist Secondary - DS"},null,{"$f":"'WP FR-16(7)(v)-KW & KWH @Dist'!L19","v":202596},null,{"$f":"E18","v":202596},null,{"$f":"ROUND(G18/$G$38,5)","v":0.27701999999999999},null,202596,null,{"$f":"ROUND(K18/$K$38,5)","v":0.27701999999999999}]
[4,null,{"$f":"'WP FR-16(7)(v)-KW & KWH @Gen'!C19","v":"Dist Secondary - GS-FL"},null,{"$f":"'WP FR-16(7)(v)-KW & KWH @Dist'!L20","v":945},null,945,null,{"$f":"ROUND(G19/$G$38,5)","v":1.2899999999999999E-3},null,945,null,1.2899999999999999E-3]
[5,null,{"$f":"'WP FR-16(7)(v)-KW & KWH @Gen'!C20","v":"Dist Secondary - EH"},null,{"$f":"'WP FR-16(7)(v)-KW & KWH @Dist'!L21","v":4447},null,4447,null,6.0800000000000003E-3,null,4447,null,6.0800000000000003E-3]
[6,null,{"$f":"'WP FR-16(7)(v)-KW & KWH @Gen'!C21","v":"Dist Secondary - SP"},null,{"$f":"'WP FR-16(7)(v)-KW & KWH @Dist'!L22","v":53},null,53,null,6.9999999999999994E-5,null,53,null,6.9999999999999994E-5]
[7,null,{"$f":"'WP FR-16(7)(v)-KW & KWH @Gen'!C22","v":"Dist Secondary - DT"},null,{"$f":"'WP FR-16(7)(v)-KW & KWH @Dist'!L23","v":103187},null,103187,null,0.14108999999999999,null,103187,null,0.14108999999999999]
[8,null,{"$f":"'WP FR-16(7)(v)-KW & KWH @Gen'!C23","v":"Dist Primary - DT"},null,{"$f":"'WP FR-16(7)(v)-KW & KWH @Dist'!L24","v":68199},null,68199,null,9.325E-2,null,68199,null,9.325E-2]
[9,null,"Dist Primary - DP",null,{"$f":"'WP FR-16(7)(v)-KW & KWH @Dist'!L25","v":3420},null,3420,null,4.6800000000000001E-3,null,3420,null,4.6800000000000001E-3]
[10,null,{"$f":"'WP FR-16(7)(v)-KW & KWH @Gen'!C25","v":"Transmission"},null,{"$f":"'WP FR-16(7)(v)-KW & KWH @Dist'!L26","v":0},null,0,null,0,null,0,null,0]
[11,null,{"$f":"'WP FR-16(7)(v)-KW & KWH @Gen'!C26","v":"Lighting"},null,{"$f":"'WP FR-16(7)(v)-KW & KWH @Dist'!L27","v":4595},null,4595,null,6.28E-3,null,4595,null,6.28E-3]
[12,null,{"$f":"'WP FR-16(7)(v)-KW & KWH @Gen'!C27","v":"Other"},null,{"$f":"'WP FR-16(7)(v)-KW & KWH @Dist'!L28","v":80},null,80,null,1.1E-4,null,{"$f":"E27","v":80},null,1.1E-4]
[13,null,{"$f":"'WP FR-16(7)(v)-KW & KWH @Gen'!C28","v":" Total Retail excl RTP Incremental"},null,{"$f":"SUM(E17:E27)","v":730829},null,{"$f":"SUM(G17:G27)","v":730829},null,{"$f":"SUM(I17:I27)","v":0.99930000000000019},null,{"$f":"SUM(K17:K27)","v":730829},null,{"$f":"SUM(M17:M27)","v":0.99930000000000019}]
[14]
[15,null,{"$f":"'WP FR-16(7)(v)-KW & KWH @Gen'!C30","v":"RTP Incremental:"}]
[16,null,{"$f":"'WP FR-16(7)(v)-KW & KWH @Gen'!C31","v":"Dist Secondary - DS"},null,{"$f":"'WP FR-16(7)(v)-KW & KWH @Dist'!L32","v":152},null,{"$f":"E31","v":152},null,{"$f":"ROUND(G31/$G$38,5)","v":2.1000000000000001E-4},null,{"$f":"E31","v":152},null,{"$f":"ROUND(K31/$K$38,5)","v":2.1000000000000001E-4}]
[17,null,{"$f":"'WP FR-16(7)(v)-KW & KWH @Gen'!C32","v":"Dist Secondary - DT"},null,{"$f":"'WP FR-16(7)(v)-KW & KWH @Dist'!L33","v":357},null,{"$f":"E32","v":357},null,{"$f":"ROUND(G32/$G$38,5)","v":4.8999999999999998E-4},null,{"$f":"E32","v":357},null,{"$f":"ROUND(K32/$K$38,5)","v":4.8999999999999998E-4}]
[18,null,{"$f":"'WP FR-16(7)(v)-KW & KWH @Gen'!C33","v":"Dist Primary - DT"},null,{"$f":"'WP FR-16(7)(v)-KW & KWH @Dist'!L34","v":0},null,{"$f":"E33","v":0},null,{"$f":"ROUND(G33/$G$38,5)","v":0},null,{"$f":"E33","v":0},null,{"$f":"ROUND(K33/$K$38,5)","v":0}]
[19,null,"Dist Primary - DP",null,{"$f":"'WP FR-16(7)(v)-KW & KWH @Dist'!L35","v":0},null,{"$f":"E34","v":0},null,{"$f":"ROUND(G34/$G$38,5)","v":0},null,{"$f":"E34","v":0},null,{"$f":"ROUND(K34/$K$38,5)","v":0}]
[20,null,{"$f":"'WP FR-16(7)(v)-KW & KWH @Gen'!C35","v":"Transmission"},null,{"$f":"'WP FR-16(7)(v)-KW & KWH @Dist'!L36","v":0},null,{"$f":"E35","v":0},null,{"$f":"ROUND(G35/$G$38,5)","v":0},null,{"$f":"E35","v":0},null,{"$f":"ROUND(K35/$K$38,5)","v":0}]
[21,null,{"$f":"'WP FR-16(7)(v)-KW & KWH @Gen'!C36","v":"  Total RTP Incremental"},null,{"$f":"SUM(E31:E35)","v":509},null,{"$f":"SUM(G30:G35)","v":509},null,{"$f":"SUM(I30:I35)","v":6.9999999999999999E-4},null,{"$f":"SUM(K30:K35)","v":509},null,{"$f":"SUM(M30:M35)","v":6.9999999999999999E-4}]
[22]
[23,null,{"$f":"'WP FR-16(7)(v)-KW & KWH @Gen'!C38","v":"Total Retail"},null,{"$f":"E36+E28","v":731338},null,{"$f":"G36+G28","v":731338},null,{"$f":"I28+I36","v":1.0000000000000002},null,{"$f":"K36+K28","v":731338},null,{"$f":"M28+M36","v":1.0000000000000002}]
[]
[]
[null,null,"(a) Source: WPFR-16(7)(v), Page 10."]
[null,null,"(b) Rates DT-Primary and DP-Primary are served from primary lines. There is no allocation of secondary related costs."]
[]
[]
[" "]
[]
[]
[]
[]
[]
[]
[]
[]
[]
[]
[]
[]
[]
[]
[]
[]
[]
[]
[]
[]
[]
[]
[]
[]
[]
[]
[]
[]
[]
[]
[]
[]
[]
[]
[]
[]
[]
[]
[]
[]
[]
[]
[]
[]
[]
[]
[]
[]
[]
[]
[]
[]
[]
[]
[]
[]
[]
[]
[]
[]
[]
[]
[]
[]
[]
[]
[]
[]
[]
[]
[]
[]
[]
[]
[]
[]
[]
[]
[]
[]
[]
[]
[]
[]
[]
[]
[]
[]
[]
[]
[]
[]
[]
[]
[]
[]
[]
[]
[]
[]
[]
[]
[]
[]
[]
[]
[]
[]
[]
[]
[]
[]
[]
[]
[]
[]
[]
[]
[]
[]
[]
[]
[]
[]
[]
[]
[]
[]
[]
[]
[]
[]
[]
[]
[]
[]
[]
[]
[]
[]
[]
[]
[]
[]
[]
[]
[]
[]
[]
[]
[]
[]
[]
[]
[]
[]
[]
[]
[]
[]
[]
[]
[]
[]
[]
[]
[]
[]
[]
[]
[]
[]
[]
[]
[]
[]
[]
[]
[]
[]
[]
[]
[]
[]
[]
[]
[]
[]
[]
[]
[]
[]
[]
[]
[]
[]
[]
[]
[]
[]
[]
[]
[]
[]
[]
[]
[]
[]
[]
[]
[]
[]
[]
[]
[]
[]
[]
[]
[]
[]
[]
[]
[]
[]
[]
[]
[]
[]
[]
[]
[]
[]
[]
[]
[]
[]
[]
[]
[null,null,null,null,null,null,null,null,null,null,0]

{"sheet":"WP FR-16(7)(v) Wtd services","index":36,"n_rows":553,"n_cols":14,"rows_kept":553,"cut":false,"hidden":false,"merged":[]}
[{"$f":"'WP FR-16(7)(v)-KW & KWH @Gen'!A1","v":"DUKE ENERGY KENTUCKY, INC."},null,null,null,null,null,null,{"$f":"'WP FR-16(7)(v)-KW & KWH @Gen'!G1","v":"Work Paper FR-16(7)(v) "}]
[{"$f":"coss_type","v":"ELECTRIC COST OF SERVICE STUDY "},null,null,null,null,null,null,{"$f":"'WP FR-16(7)(v)-KW & KWH @Gen'!G2","v":"Witness Responsible:"}]
[{"$f":"case_name","v":"CASE NO: 2019-00271"},null,null,null,null,null,null,{"$f":"PROPER(Witness)","v":"James E. Ziolkowski"}]
[{"$f":"alloc_factors","v":"ALLOCATION FACTORS FOR COST OF SERVICE STUDY"},null,null,null,null,null,null,"Page 8"]
[{"$f":"time_period","v":"TWELVE MONTHS ENDING DECEMBER 31, 2018"}]
[]
["COMPUTATION OF \"WEIGHTED\" SERVICES ALLOCATION FACTORS"]
[]
[null,null,null," "," "]
[null,null,null," NON-COIN"]
[null,null,null," KW",null,null,null,"WEIGHTED"]
[null,null,null,"DEMAND",null,"AVERAGE",null,"CUSTOMER"]
["LINE",null,"RATE","SECONDARY","   AVERAGE","DEMAND","WEIGHTING","SERVICE","ALLOC"]
["NO.",null,"GROUP","(a)","   CUSTOMERS(b)","(1) / (2)","FACTOR (c)","(2) * (4)","K217"]
[1,null,null,"(1)","(2)","(3)","(4)","(5)","(6)"]
[{"$f":"1+A15","v":2},null,"Retail:"]
[3,null,{"$f":"'WP FR-16(7)(v)-KW & KWH @Gen'!C17","v":"Residential"},{"$f":"'WP FR-16(7)(v)-KW & KWH @Dist'!D18","v":899439},{"$f":"'WP FR-16(7)(v) AVG CUST'!O11","v":128431},{"$f":"IF(E17=0,0,ROUND(D17/E17,0))","v":7},{"$f":"IF(AND(F17>=0,F17<=25),$D$48,IF(AND(F17>=26,F17<=50),$D$49,IF(AND(F17>=51,F17<=100),$D$50,IF(AND(F17>=101,F17<=150),$D$51,IF(AND(F17>=151,F17<=4000),$D$52,\"Error\")))))","v":1},{"$f":"IF(G17=0,0,ROUND(E17*G17,0))","v":128431},{"$f":"1-SUM(I18:I27)-I36","v":0.89305000000000001}]
[4,null,{"$f":"'WP FR-16(7)(v)-KW & KWH @Gen'!C18","v":"Dist Secondary - DS"},{"$f":"'WP FR-16(7)(v)-KW & KWH @Dist'!D19","v":321466},{"$f":"'WP FR-16(7)(v) AVG CUST'!O12","v":12968},{"$f":"IF(E18=0,0,ROUND(D18/E18,0))","v":25},{"$f":"IF(AND(F18>=0,F18<=25),$D$48,IF(AND(F18>=26,F18<=50),$D$49,IF(AND(F18>=51,F18<=100),$D$50,IF(AND(F18>=101,F18<=150),$D$51,IF(AND(F18>=151,F18<=4000),$D$52,\"Error\")))))","v":1},{"$f":"IF(G18=0,0,ROUND(E18*G18,0))","v":12968},{"$f":"ROUND(H18/$H$38,5)","v":9.017E-2}]
[5,null,{"$f":"'WP FR-16(7)(v)-KW & KWH @Gen'!C19","v":"Dist Secondary - GS-FL"},{"$f":"'WP FR-16(7)(v)-KW & KWH @Dist'!D20","v":1158},{"$f":"'WP FR-16(7)(v) AVG CUST'!O20","v":172},7,1,172,1.1999999999999999E-3]
[6,null,{"$f":"'WP FR-16(7)(v)-KW & KWH @Gen'!C20","v":"Dist Secondary - EH"},{"$f":"'WP FR-16(7)(v)-KW & KWH @Dist'!D21","v":10653},{"$f":"'WP FR-16(7)(v) AVG CUST'!O18","v":103},103,4,412,2.8600000000000001E-3]
[7,null,{"$f":"'WP FR-16(7)(v)-KW & KWH @Gen'!C21","v":"Dist Secondary - SP"},{"$f":"'WP FR-16(7)(v)-KW & KWH @Dist'!D22","v":109},{"$f":"'WP FR-16(7)(v) AVG CUST'!O19","v":14},8,1,14,1E-4]
[8,null,{"$f":"'WP FR-16(7)(v)-KW & KWH @Gen'!C22","v":"Dist Secondary - DT"},{"$f":"'WP FR-16(7)(v)-KW & KWH @Dist'!D23","v":136975},{"$f":"'WP FR-16(7)(v) AVG CUST'!O14","v":155},{"$f":"IF(E22=0,0,ROUND(D22/E22,0))","v":884},6,{"$f":"IF(G22=0,0,ROUND(E22*G22,0))","v":930},6.4700000000000001E-3]
[9,null,{"$f":"'WP FR-16(7)(v)-KW & KWH @Gen'!C23","v":"Dist Primary - DT"},{"$f":"'WP FR-16(7)(v)-KW & KWH @Dist'!D24","v":84382},{"$f":"'WP FR-16(7)(v) AVG CUST'!O16","v":37},{"$f":"IF(E23=0,0,ROUND(D23/E23,0))","v":2281},6,222,1.5399999999999999E-3]
[10,null,"Dist Primary - DP",{"$f":"'WP FR-16(7)(v)-KW & KWH @Dist'!D25","v":5687},{"$f":"'WP FR-16(7)(v) AVG CUST'!O21","v":10},569,6,60,4.2000000000000002E-4]
[11,null,{"$f":"'WP FR-16(7)(v)-KW & KWH @Gen'!C25","v":"Transmission"},{"$f":"'WP FR-16(7)(v)-KW & KWH @Dist'!D26","v":41996},{"$f":"'WP FR-16(7)(v) AVG CUST'!O23","v":11},3818,6,66,4.6000000000000001E-4]
[12,null,{"$f":"'WP FR-16(7)(v)-KW & KWH @Gen'!C26","v":"Lighting"},{"$f":"'WP FR-16(7)(v)-KW & KWH @Dist'!D27","v":7098},{"$f":"'WP FR-16(7)(v) AVG CUST'!O25","v":468},15,1,468,3.2499999999999999E-3]
[13,null,{"$f":"'WP FR-16(7)(v)-KW & KWH @Gen'!C27","v":"Other"},{"$f":"'WP FR-16(7)(v)-KW & KWH @Dist'!D28","v":444},{"$f":"'WP FR-16(7)(v) AVG CUST'!O22","v":11},40,1,11,8.0000000000000007E-5]
[14,null,{"$f":"'WP FR-16(7)(v)-KW & KWH @Gen'!C28","v":" Total Retail excl RTP Incremental"},{"$f":"SUM(D17:D27)","v":1509407},{"$f":"SUM(E17:E27)","v":142380},null,null,{"$f":"SUM(H17:H27)","v":143754},{"$f":"SUM(I17:I27)","v":0.99959999999999982}]
[15]
[16," ",{"$f":"'WP FR-16(7)(v)-KW & KWH @Gen'!C30","v":"RTP Incremental:"}]
[17,null,{"$f":"'WP FR-16(7)(v)-KW & KWH @Gen'!C31","v":"Dist Secondary - DS"},{"$f":"'WP FR-16(7)(v)-KW & KWH @Dist'!D32","v":391},{"$f":"'WP FR-16(7)(v) AVG CUST'!O13","v":4},{"$f":"IF(E31=0,0,ROUND(D31/E31,0))","v":98},{"$f":"IF(AND(F31>=0,F31<=25),$D$48,IF(AND(F31>=26,F31<=50),$D$49,IF(AND(F31>=51,F31<=100),$D$50,IF(AND(F31>=101,F31<=150),$D$51,IF(AND(F31>=151,F31<=1000),$D$52,\"Error\")))))","v":2},{"$f":"IF(G31=0,0,ROUND(E31*G31,0))","v":8},{"$f":"ROUND(H31/$H$38,5)","v":6.0000000000000002E-5},null,null,null,null,"`"]
[18,null,{"$f":"'WP FR-16(7)(v)-KW & KWH @Gen'!C32","v":"Dist Secondary - DT"},{"$f":"'WP FR-16(7)(v)-KW & KWH @Dist'!D33","v":1076},{"$f":"'WP FR-16(7)(v) AVG CUST'!O15","v":4},{"$f":"IF(E32=0,0,ROUND(D32/E32,0))","v":269},{"$f":"IF(AND(F32>=0,F32<=25),$D$48,IF(AND(F32>=26,F32<=50),$D$49,IF(AND(F32>=51,F32<=100),$D$50,IF(AND(F32>=101,F32<=150),$D$51,IF(AND(F32>=151,F32<=1000),$D$52,\"Error\")))))","v":6},{"$f":"IF(G32=0,0,ROUND(E32*G32,0))","v":24},{"$f":"ROUND(H32/$H$38,5)","v":1.7000000000000001E-4}]
[19,null,{"$f":"'WP FR-16(7)(v)-KW & KWH @Gen'!C33","v":"Dist Primary - DT"},{"$f":"'WP FR-16(7)(v)-KW & KWH @Dist'!D34","v":0},0,{"$f":"IF(E33=0,0,ROUND(D33/E33,0))","v":0},{"$f":"IF(AND(F33>=0,F33<=25),$D$48,IF(AND(F33>=26,F33<=50),$D$49,IF(AND(F33>=51,F33<=100),$D$50,IF(AND(F33>=101,F33<=150),$D$51,IF(AND(F33>=151,F33<=1000),$D$52,\"Error\")))))","v":1},{"$f":"IF(G33=0,0,ROUND(E33*G33,0))","v":0},{"$f":"ROUND(H33/$H$38,5)","v":0}]
[20,null,"Dist Primary - DP",{"$f":"'WP FR-16(7)(v)-KW & KWH @Dist'!D35","v":0},0,{"$f":"IF(E34=0,0,ROUND(D34/E34,0))","v":0},{"$f":"IF(AND(F34>=0,F34<=25),$D$48,IF(AND(F34>=26,F34<=50),$D$49,IF(AND(F34>=51,F34<=100),$D$50,IF(AND(F34>=101,F34<=150),$D$51,IF(AND(F34>=151,F34<=1000),$D$52,\"Error\")))))","v":1},{"$f":"IF(G34=0,0,ROUND(E34*G34,0))","v":0},{"$f":"ROUND(H34/$H$38,5)","v":0}]
[21,null,{"$f":"'WP FR-16(7)(v)-KW & KWH @Gen'!C35","v":"Transmission"},{"$f":"'WP FR-16(7)(v)-KW & KWH @Dist'!D36","v":3759},{"$f":"'WP FR-16(7)(v) AVG CUST'!O24","v":4},{"$f":"IF(E35=0,0,ROUND(D35/E35,0))","v":940},{"$f":"IF(AND(F35>=0,F35<=25),$D$48,IF(AND(F35>=26,F35<=50),$D$49,IF(AND(F35>=51,F35<=100),$D$50,IF(AND(F35>=101,F35<=150),$D$51,IF(AND(F35>=151,F35<=1000),$D$52,\"Error\")))))","v":6},{"$f":"IF(G35=0,0,ROUND(E35*G35,0))","v":24},{"$f":"ROUND(H35/$H$38,5)","v":1.7000000000000001E-4}]
[22,null,{"$f":"'WP FR-16(7)(v)-KW & KWH @Gen'!C36","v":"  Total RTP Incremental"},{"$f":"SUM(D31:D35)","v":5226},{"$f":"SUM(E31:E35)","v":12},null,null,{"$f":"SUM(H31:H35)","v":56},{"$f":"SUM(I31:I35)","v":4.0000000000000002E-4}]
[23]
[24,null,{"$f":"'WP FR-16(7)(v)-KW & KWH @Gen'!C38","v":"Total Retail"},{"$f":"D36+D28","v":1514633},{"$f":"E36+E28","v":142392},null,null,{"$f":"H36+H28","v":143810},{"$f":"I36+I28","v":0.99999999999999978}]
[]
[]
[]
[]
[]
[null,"Notes:"]
[null,"(a)","Source: WPFR-16(7)(v), Page 4  (Demands shown in Base Retail Category)."]
[null,"(b)","Source: WPFR-16(7)(v), Page 52."]
[null,"(c)","Average Demand (Size in KVA)","Weighting Factor (d)"]
[null,null,"0 - 25",{"$f":"'WP FR-16(7)(v) Serv cost wgt'!L19","v":1}]
[null,null,"26 - 50",{"$f":"'WP FR-16(7)(v) Serv cost wgt'!L20","v":1}]
[null,null,"51 - 100",{"$f":"'WP FR-16(7)(v) Serv cost wgt'!L21","v":2}]
[null,null,"101 - 150",{"$f":"'WP FR-16(7)(v) Serv cost wgt'!L22","v":4}]
[null,null,">= 151 ",{"$f":"'WP FR-16(7)(v) Serv cost wgt'!L23","v":6}]
[null,"(d)","Source: WPFR-16(7)(v), Page 48"]
[]
[]
[]
[]
[]
[]
[]
[]
[]
[]
[]
[]
[]
[]
[]
[]
[]
[]
[]
[]
[]
[]
[]
[]
[]
[]
[]
[]
[]
[]
[]
[]
[]
[]
[]
[]
[]
[]
[]
[]
[]
[]
[]
[]
[]
[]
[]
[]
[]
[]
[]
[]
[]
[]
[]
[]
[]
[]
[]
[]
[]
[]
[]
[]
[]
[]
[]
[]
[]
[]
[]
[]
[]
[]
[]
[]
[]
[]
[]
[]
[]
[]
[]
[]
[]
[]
[]
[]
[]
[]
[]
[]
[]
[]
[]
[]
[]
[]
[]
[]
[]
[]
[]
[]
[]
[]
[]
[]
[]
[]
[]
[]
[]
[]
[]
[]
[]
[]
[]
[]
[]
[]
[]
[]
[]
[]
[]
[]
[]
[]
[]
[]
[]
[]
[]
[]
[]
[]
[]
[]
[]
[]
[]
[]
[]
[]
[]
[]
[]
[]
[]
[]
[]
[]
[]
[]
[]
[]
[]
[]
[]
[]
[]
[]
[]
[]
[]
[]
[]
[]
[]
[]
[]
[]
[]
[]
[]
[]
[]
[]
[]
[]
[]
[]
[]
[]
[]
[]
[]
[]
[]
[]
[]
[]
[]
[]
[]
[]
[]
[]
[]
[]
[]
[]
[]
[]
[]
[]
[]
[]
[]
[]
[]
[]
[]
[]
[]
[]
[]
[]
[]
[]
[]
[]
[]
[]
[]
[]
[]
[]
[]
[]
[]
[]
[]
[]
[]
[]
[]
[]
[]
[]
[]
[]
[]
[]
[]
[]
[]
[]
[]
[]
[]
[]
[]
[]
[]
[]
[]
[]
[]
[]
[]
[]
[]
[]
[]
[]
[]
[]
[]
[]
[]
[]
[]
[]
[]
[]
[]
[]
[]
[]
[]
[]
[]
[]
[]
[]
[]
[]
[]
[]
[]
[]
[]
[]
[]
[]
[]
[]
[]
[]
[]
[]
[]
[]
[]
[]
[]
[]
[]
[]
[]
[]
[]
[]
[]
[]
[]
[]
[]
[]
[]
[]
[]
[]
[]
[]
[]
[]
[]
[]
[]
[]
[]
[]
[]
[]
[]
[]
[]
[]
[]
[]
[]
[]
[]
[]
[]
[]
[]
[]
[]
[]
[]
[]
[]
[]
[]
[]
[]
[]
[]
[]
[]
[]
[]
[]
[]
[]
[]
[]
[]
[]
[]
[]
[]
[]
[]
[]
[]
[]
[]
[]
[]
[]
[]
[]
[]
[]
[]
[]
[]
[]
[]
[]
[]
[]
[]
[]
[]
[]
[]
[]
[]
[]
[]
[]
[]
[]
[]
[]
[]
[]
[]
[]
[]
[]
[]
[]
[]
[]
[]
[]
[]
[]
[]
[]
[]
[]
[]
[]
[]
[]
[]
[]
[]
[]
[]
[]
[]
[]
[]
[]
[]
[]
[]
[]
[]
[]
[]
[]
[]
[]
[]
[]
[]
[]
[]
[]
[]
[]
[]
[]
[]
[]
[]
[]
[]
[]
[]
[]
[]
[]
[]
[]
[]
[]
[]
[]
[]
[]
[]
[]
[]
[]
[]
[]
[]
[]
[]
[]
[]
[]
[]
[]
[]
[]
[]
[null,null,null,null,null,0]

{"sheet":"WP FR-16(7)(v) kwh analysis","index":37,"n_rows":554,"n_cols":11,"rows_kept":554,"cut":false,"hidden":false,"merged":[]}
[{"$f":"'WP FR-16(7)(v)-KW & KWH @Gen'!A1","v":"DUKE ENERGY KENTUCKY, INC."},null,null,null,null,null,null,null,{"$f":"'WP FR-16(7)(v)-KW & KWH @Gen'!G1","v":"Work Paper FR-16(7)(v) "}]
[{"$f":"coss_type","v":"ELECTRIC COST OF SERVICE STUDY "},null,null,null,null,null,null,null,{"$f":"'WP FR-16(7)(v)-KW & KWH @Gen'!G2","v":"Witness Responsible:"}]
[{"$f":"case_name","v":"CASE NO: 2019-00271"},null,null,null,null,null,null,null,{"$f":"PROPER(Witness)","v":"James E. Ziolkowski"}]
[{"$f":"alloc_factors","v":"ALLOCATION FACTORS FOR COST OF SERVICE STUDY"},null,null,null,null,null,null,null,"Page 9"]
[{"$f":"time_period","v":"TWELVE MONTHS ENDING DECEMBER 31, 2018"}]
[null,null,null,null," "]
["RATE GROUP KWH ENERGY ANALYSIS"]
[]
[]
[null,null,null," "," ","CALENDAR","DIST.",null,"TRANS.","KWH"]
[null,null,null,"SALES AT","UNBILLED","YEAR","LOSSES(c)","SALES AT","LOSSES(c)","SALES"]
[null,null,null,"CUSTOMER","SALES","SALES","Col(3) * ","DIST. LEVEL","Col(4) * ","(AT SOURCE)"]
["LINE",null,null,"LEVEL(a)","(b)","(1+2)",{"$f":"'WP FR-16(7)(v) LossRatios'!CA244","v":2.8489325999999999E-2},"(3+4)",{"$f":"'WP FR-16(7)(v) LossRatios'!CA232","v":4.1014752000000003E-3},"(5+6)"]
["NO.",null,"RATE GROUP","(1)","(2)","(3)","(4)","(5)","(6)","(7)"]
[1]
[{"$f":"1+A15","v":2},null,"Retail:"]
[3,null,{"$f":"'WP FR-16(7)(v)-KW & KWH @Gen'!C17","v":"Residential"},{"$f":"'WP FR-16(7)(v) RS - KW'!D32","v":1573474084},{"$f":"E38-SUM('WP FR-16(7)(v) kwh analysis'!E18:E27)-'WP FR-16(7)(v) kwh analysis'!E36","v":-9082210},{"$f":"SUM(D17:E17)","v":1564391874},{"$f":"G38-SUM(G18:G27)-SUM(G31:G35)","v":37761235},{"$f":"SUM(F17:G17)","v":1602153109},{"$f":"I38-SUM(I18:I27)-SUM(I31:I35)","v":6571190},{"$f":"H17+I17","v":1608724299}," "]
[4,null,{"$f":"'WP FR-16(7)(v)-KW & KWH @Gen'!C18","v":"Dist Secondary - DS"},{"$f":"'WP FR-16(7)(v) DS Sec - KW'!E32","v":1117078620},{"$f":"IF($D$38=0,0,ROUND((E$38/$D$38)*D18,0))","v":-6447862},{"$f":"SUM(D18:E18)","v":1110630758},{"$f":"ROUND((F18)*$G$13,0)","v":31641122},1142271880,{"$f":"ROUND(H18*$I$13,0)","v":4685000},1146956880]
[5,null,{"$f":"'WP FR-16(7)(v)-KW & KWH @Gen'!C19","v":"Dist Secondary - GS-FL"},{"$f":"'WP FR-16(7)(v) GSFL - KW'!D32","v":6253450},{"$f":"IF($D$38=0,0,ROUND((E$38/$D$38)*D19,0))","v":-36095},6217355,{"$f":"ROUND((F19)*$G$13,0)","v":177128},6394483,26227,6420710]
[6,null,{"$f":"'WP FR-16(7)(v)-KW & KWH @Gen'!C20","v":"Dist Secondary - EH"},{"$f":"'WP FR-16(7)(v) EH - KW'!D32","v":17753941},{"$f":"IF($D$38=0,0,ROUND((E$38/$D$38)*D20,0))","v":-102477},17651464,502878,18154342,74460,18228802]
[7,null,{"$f":"'WP FR-16(7)(v)-KW & KWH @Gen'!C21","v":"Dist Secondary - SP"},{"$f":"'WP FR-16(7)(v) SP - KW'!D32","v":290270},-1675,288595,8222,296817,1217,298034]
[8,null,{"$f":"'WP FR-16(7)(v)-KW & KWH @Gen'!C22","v":"Dist Secondary - DT"},{"$f":"'WP FR-16(7)(v) DT Sec - KW'!$D$32","v":682631064},-3940198,678690866,19335445,698026311,2862938,700889249]
[9,null,{"$f":"'WP FR-16(7)(v)-KW & KWH @Gen'!C23","v":"Dist Primary - DT"},{"$f":"'WP FR-16(7)(v) DT Pri - KW'!$D$32","v":475731674},-2745959,472985715,13475044,486460759,1995207,488455966]
[10,null,"Dist Primary - DP",{"$f":"'WP FR-16(7)(v) DP Pri - KW'!$E$32","v":22308907},-128769,22180138,631897,22812035,93563,22905598]
[11,null,{"$f":"'WP FR-16(7)(v)-KW & KWH @Gen'!C25","v":"Transmission"},{"$f":"'WP FR-16(7)(v) TT - KW'!$E$30","v":226205427},{"$f":"IF($D$38=0,0,ROUND((E$38/$D$38)*D25,0))","v":-1305675},224899752,6407242,231306994,948700,232255694]
[12,null,{"$f":"'WP FR-16(7)(v)-KW & KWH @Gen'!C26","v":"Lighting"},{"$f":"'WP FR-16(7)(v) LT - KW'!$D$30","v":18114621},-104559,18010062,{"$f":"ROUND((F26)*$G$13,0)","v":513095},18523157,75972,18599129]
[13,null,{"$f":"'WP FR-16(7)(v)-KW & KWH @Gen'!C27","v":"Other"},{"$f":"'WP FR-16(7)(v) OTHER - KW'!$D$32","v":466760},-2694,464066,{"$f":"ROUND((F27)*$G$13,0)","v":13221},477287,1958,479245]
[14,null,{"$f":"'WP FR-16(7)(v)-KW & KWH @Gen'!C28","v":" Total Retail excl RTP Incremental"},{"$f":"SUM(D17:D27)","v":4140308818},-23898173,4116410645,{"$f":"SUM(G17:G27)","v":110466529},4226877174,17336432,4244213606]
[15]
[16,null,{"$f":"'WP FR-16(7)(v)-KW & KWH @Gen'!C30","v":"RTP Incremental:"}]
[17,null,{"$f":"'WP FR-16(7)(v)-KW & KWH @Gen'!C31","v":"Dist Secondary - DS"},{"$f":"'WP FR-16(7)(v) DS Sec - KW'!E111","v":844118},{"$f":"IF($D$38=0,0,ROUND((E$38/$D$38)*D31,0))","v":-4872},{"$f":"SUM(D31:E31)","v":839246},{"$f":"ROUND((F31)*$G$13,0)","v":23910},{"$f":"SUM(F31:G31)","v":863156},{"$f":"ROUND(H31*$I$13,0)","v":3540},{"$f":"SUM(H31:I31)","v":866696}]
[18,null,{"$f":"'WP FR-16(7)(v)-KW & KWH @Gen'!C32","v":"Dist Secondary - DT"},{"$f":"'WP FR-16(7)(v) DT Sec - KW'!D76","v":2329078},{"$f":"IF($D$38=0,0,ROUND((E$38/$D$38)*D32,0))","v":-13444},{"$f":"SUM(D32:E32)","v":2315634},{"$f":"ROUND((F32)*$G$13,0)","v":65971},{"$f":"SUM(F32:G32)","v":2381605},{"$f":"ROUND(H32*$I$13,0)","v":9768},{"$f":"SUM(H32:I32)","v":2391373}]
[19,null,{"$f":"'WP FR-16(7)(v)-KW & KWH @Gen'!C33","v":"Dist Primary - DT"},{"$f":"'WP FR-16(7)(v) DT Pri - KW'!D74","v":0},{"$f":"IF($D$38=0,0,ROUND((E$38/$D$38)*D33,0))","v":0},{"$f":"SUM(D33:E33)","v":0},{"$f":"ROUND((F33)*$G$13,0)","v":0},{"$f":"SUM(F33:G33)","v":0},{"$f":"ROUND(H33*$I$13,0)","v":0},{"$f":"SUM(H33:I33)","v":0}]
[20,null,"Dist Primary - DP",{"$f":"'WP FR-16(7)(v) DP Pri - KW'!E73","v":0},{"$f":"IF($D$38=0,0,ROUND((E$38/$D$38)*D34,0))","v":0},{"$f":"SUM(D34:E34)","v":0},{"$f":"ROUND((F34)*$G$13,0)","v":0},{"$f":"SUM(F34:G34)","v":0},{"$f":"ROUND(H34*$I$13,0)","v":0},{"$f":"SUM(H34:I34)","v":0}]
[21,null,{"$f":"'WP FR-16(7)(v)-KW & KWH @Gen'!C35","v":"Transmission"},{"$f":"'WP FR-16(7)(v) TT - KW'!E69","v":14121598},{"$f":"IF($D$38=0,0,ROUND((E$38/$D$38)*D35,0))","v":-81511},{"$f":"SUM(D35:E35)","v":14040087},{"$f":"ROUND((F35)*$G$13,0)","v":399993},{"$f":"SUM(F35:G35)","v":14440080},{"$f":"ROUND(H35*$I$13,0)","v":59226},{"$f":"SUM(H35:I35)","v":14499306}]
[22,null,{"$f":"'WP FR-16(7)(v)-KW & KWH @Gen'!C36","v":"  Total RTP Incremental"},{"$f":"SUM(D31:D35)","v":17294794},-99827,17194967,{"$f":"SUM(G31:G35)","v":489874},17684841,72534,17757375]
[23]
[24,null,{"$f":"'WP FR-16(7)(v)-KW & KWH @Gen'!C38","v":"Total Retail"},{"$f":"D36+D28","v":4157603612},{"$f":"'Input Data'!D33","v":-23998000},{"$f":"F36+F28","v":4133605612},{"$f":"ROUND((F38-F25-F35)*$G$13,0)","v":110956403},{"$f":"H36+H28","v":4244562015},{"$f":"ROUND(H38*$I$13,0)","v":17408966},{"$f":"J36+J28","v":4261970981}]
[null,null,null,null,null,null,null,null,{"$f":"IF(ROUND((H17)*$I$13,0)-I17 > 3, \"check RS alloc\",\"\")","v":""}]
[null,null,null,null,null,null,null,null,null," To WPFR-16(7)(v) Page 3"]
[null,null,"(a) Source: WPFR-16(7)(v), Pages 13 through 32."]
[null,null,"(b) Unbilled Sales are distributed based on Sales at Customer Level."]
[null,null,"(c) Source: WPFR-16(7)(v), Page 38."]
[]
[]
[]
[]
[]
[]
[]
[]
[]
[]
[]
[]
[]
[]
[]
[]
[]
[]
[]
[]
[]
[]
[]
[]
[]
[]
[]
[]
[]
[]
[]
[]
[]
[]
[]
[]
[]
[]
[]
[]
[]
[]
[]
[]
[]
[]
[]
[]
[]
[]
[]
[]
[]
[]
[]
[]
[]
[]
[]
[]
[]
[]
[]
[]
[]
[]
[]
[]
[]
[]
[]
[]
[]
[]
[]
[]
[]
[]
[]
[]
[]
[]
[]
[]
[]
[]
[]
[]
[]
[]
[]
[]
[]
[]
[]
[]
[]
[]
[]
[]
[]
[]
[]
[]
[]
[]
[]
[]
[]
[]
[]
[]
[]
[]
[]
[]
[]
[]
[]
[]
[]
[]
[]
[]
[]
[]
[]
[]
[]
[]
[]
[]
[]
[]
[]
[]
[]
[]
[]
[]
[]
[]
[]
[]
[]
[]
[]
[]
[]
[]
[]
[]
[]
[]
[]
[]
[]
[]
[]
[]
[]
[]
[]
[]
[]
[]
[]
[]
[]
[]
[]
[]
[]
[]
[]
[]
[]
[]
[]
[]
[]
[]
[]
[]
[]
[]
[]
[]
[]
[]
[]
[]
[]
[]
[]
[]
[]
[]
[]
[]
[]
[]
[]
[]
[]
[]
[]
[]
[]
[]
[]
[]
[]
[]
[]
[]
[]
[]
[]
[]
[]
[]
[]
[]
[]
[]
[]
[]
[]
[]
[]
[]
[]
[]
[]
[]
[]
[]
[]
[]
[]
[]
[]
[]
[]
[]
[]
[]
[]
[]
[]
[]
[]
[]
[]
[]
[]
[]
[]
[]
[]
[]
[]
[]
[]
[]
[]
[]
[]
[]
[]
[]
[]
[]
[]
[]
[]
[]
[]
[]
[]
[]
[]
[]
[]
[]
[]
[]
[]
[]
[]
[]
[]
[]
[]
[]
[]
[]
[]
[]
[]
[]
[]
[]
[]
[]
[]
[]
[]
[]
[]
[]
[]
[]
[]
[]
[]
[]
[]
[]
[]
[]
[]
[]
[]
[]
[]
[]
[]
[]
[]
[]
[]
[]
[]
[]
[]
[]
[]
[]
[]
[]
[]
[]
[]
[]
[]
[]
[]
[]
[]
[]
[]
[]
[]
[]
[]
[]
[]
[]
[]
[]
[]
[]
[]
[]
[]
[]
[]
[]
[]
[]
[]
[]
[]
[]
[]
[]
[]
[]
[]
[]
[]
[]
[]
[]
[]
[]
[]
[]
[]
[]
[]
[]
[]
[]
[]
[]
[]
[]
[]
[]
[]
[]
[]
[]
[]
[]
[]
[]
[]
[]
[]
[]
[]
[]
[]
[]
[]
[]
[]
[]
[]
[]
[]
[]
[]
[]
[]
[]
[]
[]
[]
[]
[]
[]
[]
[]
[]
[]
[]
[]
[]
[]
[]
[]
[]
[]
[]
[]
[]
[]
[]
[]
[]
[]
[]
[]
[]
[]
[]
[]
[]
[]
[]
[]
[]
[]
[]
[]
[]
[]
[]
[]
[]
[]
[]
[]
[]
[]
[]
[]
[]
[]
[]
[]
[]
[]
[]
[]
[]
[]
[]
[]
[]
[]
[]
[]
[]
[]
[]
[]
[]
[]
[]
[]
[]
[]
[]
[]
[null,null,null,null,null,0]

{"sheet":"WP FR-16(7)(v) CP NCP sum","index":38,"n_rows":555,"n_cols":24,"rows_kept":555,"cut":false,"hidden":false,"merged":[[8,5,8,6],[9,10,9,11]]}
[{"$f":"'WP FR-16(7)(v)-KW & KWH @Gen'!A1","v":"DUKE ENERGY KENTUCKY, INC."},null,null,null,null,null,null,null,null,null,null,null,null,null,null,null,null,null,null,null,null,null,{"$f":"'WP FR-16(7)(v)-KW & KWH @Gen'!G1","v":"Work Paper FR-16(7)(v) "}]
[{"$f":"coss_type","v":"ELECTRIC COST OF SERVICE STUDY "},null,null,null,null,null,null,null,null,null,null,null,null,null,null,null,null,null,null,null,null,null,{"$f":"'WP FR-16(7)(v)-KW & KWH @Gen'!G2","v":"Witness Responsible:"}]
[{"$f":"case_name","v":"CASE NO: 2019-00271"},null,null,null,null,null," ",null,null,null,null,null,null,null,null,null,null,null,null,null,null,null,{"$f":"PROPER(Witness)","v":"James E. Ziolkowski"}]
[{"$f":"alloc_factors","v":"ALLOCATION FACTORS FOR COST OF SERVICE STUDY"},null,null,null,null,null,null,null,null,null,null,null,null,null,null,null,null,null,null,null,null,null,"Page 10"]
[{"$f":"time_period","v":"TWELVE MONTHS ENDING DECEMBER 31, 2018"}]
[]
["SUMMARY OF ADJUSTED RATE GROUP COINCIDENT AND NON-COINCIDENT KW DEMANDS"]
[null,null,null,null,null,null,null,null,null,null,null,null,null,null,null,null,null,"RTP"]
[null,null,null,null,null,"Distr. Secondary (DS)",null,null,null,null,null,null,"DP",null,null,null,"Total",null,"DT","DT"]
[null,null,"-SYS PEAK-",null,null,"Small /",null,null,null,null,"Time of Day (DT)",null,"Distr.","TT",null,null,"Excluding","DS","Sec.","Primary","DP","TT","RTP"]
["LINE",null,"DAY","HOUR","Residential","Medium","Large","GS-FL","EH","SP","Secondary","Primary","Primary","Trans","Lighting","Other","RTP Incre.","Incr.","Incr.","Incr.","Incr.","Incr.","Incre.","Total"]
["NO.","   MONTH","(1)","(2)","(3)","(4)","(5)","(7)","(8)","(6)","(7)","(8)","(6)","(9)","(10)","(11)","(12)","(13)","(15)","(16)","(17)","(18)","(19)","(20)"]
[]
[null,null,null,null,"*******************   SYSTEM PEAK COINCIDENT KW DEMAND (a)   *********************"]
[]
[1,{"$f":"'WP FR-16(7)(v) DS Tot - KW'!$B$17","v":"JANUARY"},{"$f":"VALUE(LEFT(VLOOKUP(B16,CoinPeakTable,9,FALSE),5))","v":"2020-01-05"},{"$f":"VALUE(RIGHT(VLOOKUP(B16,CoinPeakTable,9,FALSE),5))","v":0.33333333333333331},{"$f":"'WP FR-16(7)(v) Sys Peak'!E19","v":398081.44906392146},{"$f":"'WP FR-16(7)(v) Sys Peak'!F19","v":169414.41744359638},{"$f":"'WP FR-16(7)(v) Sys Peak'!G19","v":8354},{"$f":"'WP FR-16(7)(v) Sys Peak'!H19","v":870.94448285095723},{"$f":"'WP FR-16(7)(v) Sys Peak'!I19","v":9227.5503357701527},{"$f":"'WP FR-16(7)(v) Sys Peak'!J19","v":44.611824499932617},{"$f":"'WP FR-16(7)(v) Sys Peak'!K19","v":90905},{"$f":"'WP FR-16(7)(v) Sys Peak'!L19","v":58914},{"$f":"'WP FR-16(7)(v) Sys Peak'!M19","v":1640.498455474795},{"$f":"'WP FR-16(7)(v) Sys Peak'!N19","v":28814},{"$f":"'WP FR-16(7)(v) Sys Peak'!O19","v":0},{"$f":"'WP FR-16(7)(v) Sys Peak'!P19","v":38.528393886305444},{"$f":"SUM(E16:P16)","v":766305},{"$f":"'WP FR-16(7)(v) Sys Peak'!R19","v":164},{"$f":"'WP FR-16(7)(v) Sys Peak'!S19","v":276},{"$f":"'WP FR-16(7)(v) Sys Peak'!T19","v":0},{"$f":"'WP FR-16(7)(v) Sys Peak'!U19","v":0},{"$f":"'WP FR-16(7)(v) Sys Peak'!V19","v":1255},{"$f":"SUM(R16:V16)","v":1695},{"$f":"W16+Q16","v":768000}]
[2,{"$f":"'WP FR-16(7)(v) DS Tot - KW'!$B$18","v":"FEBRUARY"},"2020-02-02",0.33333333333333331,{"$f":"'WP FR-16(7)(v) Sys Peak'!E25","v":293164.03741778567},{"$f":"'WP FR-16(7)(v) Sys Peak'!F25","v":138252.80083015945},{"$f":"'WP FR-16(7)(v) Sys Peak'!G25","v":7867},{"$f":"'WP FR-16(7)(v) Sys Peak'!H25","v":788.01524240030653},{"$f":"'WP FR-16(7)(v) Sys Peak'!I25","v":6187.9843215997871},{"$f":"'WP FR-16(7)(v) Sys Peak'!J25","v":37.852260551979789},{"$f":"'WP FR-16(7)(v) Sys Peak'!K25","v":94618},{"$f":"'WP FR-16(7)(v) Sys Peak'!L25","v":62162},{"$f":"'WP FR-16(7)(v) Sys Peak'!M25","v":1450.4298020599529},{"$f":"'WP FR-16(7)(v) Sys Peak'!N25","v":27199},{"$f":"'WP FR-16(7)(v) Sys Peak'!O25","v":0},{"$f":"'WP FR-16(7)(v) Sys Peak'!P25","v":123.88012544284295},631851,{"$f":"'WP FR-16(7)(v) Sys Peak'!R25","v":129},{"$f":"'WP FR-16(7)(v) Sys Peak'!S25","v":228},{"$f":"'WP FR-16(7)(v) Sys Peak'!T25","v":0},{"$f":"'WP FR-16(7)(v) Sys Peak'!U25","v":0},{"$f":"'WP FR-16(7)(v) Sys Peak'!V25","v":1792},{"$f":"SUM(R17:V17)","v":2149},634000]
[3,{"$f":"'WP FR-16(7)(v) DS Tot - KW'!$B$19","v":"MARCH"},"2020-03-08",0.83333333333333337,{"$f":"'WP FR-16(7)(v) Sys Peak'!E31","v":298430.02069193061},{"$f":"'WP FR-16(7)(v) Sys Peak'!F31","v":151119.75919117648},{"$f":"'WP FR-16(7)(v) Sys Peak'!G31","v":6384},{"$f":"'WP FR-16(7)(v) Sys Peak'!H31","v":970.83481020613374},{"$f":"'WP FR-16(7)(v) Sys Peak'!I31","v":4286.4414749874304},{"$f":"'WP FR-16(7)(v) Sys Peak'!J31","v":44.789137129210658},{"$f":"'WP FR-16(7)(v) Sys Peak'!K31","v":79664},{"$f":"'WP FR-16(7)(v) Sys Peak'!L31","v":54916},{"$f":"'WP FR-16(7)(v) Sys Peak'!M31","v":1671.7242804172952},{"$f":"'WP FR-16(7)(v) Sys Peak'!N31","v":27181},{"$f":"'WP FR-16(7)(v) Sys Peak'!O31","v":5437.643350930116},{"$f":"'WP FR-16(7)(v) Sys Peak'!P31","v":320.78706322272501},630426.99999999988,{"$f":"'WP FR-16(7)(v) Sys Peak'!R31","v":100},{"$f":"'WP FR-16(7)(v) Sys Peak'!S31","v":-71},{"$f":"'WP FR-16(7)(v) Sys Peak'!T31","v":0},{"$f":"'WP FR-16(7)(v) Sys Peak'!U31","v":0},{"$f":"'WP FR-16(7)(v) Sys Peak'!V31","v":1544},1573,631999.99999999988]
[4,{"$f":"'WP FR-16(7)(v) DS Tot - KW'!$B$20","v":"APRIL"},"2020-04-17",0.45833333333333331,{"$f":"'WP FR-16(7)(v) Sys Peak'!E37","v":220173.34913972896},{"$f":"'WP FR-16(7)(v) Sys Peak'!F37","v":194050.44578465752},{"$f":"'WP FR-16(7)(v) Sys Peak'!G37","v":7800},{"$f":"'WP FR-16(7)(v) Sys Peak'!H37","v":1073.3432454124152},{"$f":"'WP FR-16(7)(v) Sys Peak'!I37","v":6910.181371773444},{"$f":"'WP FR-16(7)(v) Sys Peak'!J37","v":64.718079643751992},{"$f":"'WP FR-16(7)(v) Sys Peak'!K37","v":88923},{"$f":"'WP FR-16(7)(v) Sys Peak'!L37","v":57769},{"$f":"'WP FR-16(7)(v) Sys Peak'!M37","v":2008.7026606409818},{"$f":"'WP FR-16(7)(v) Sys Peak'!N37","v":31308},{"$f":"'WP FR-16(7)(v) Sys Peak'!O37","v":0},{"$f":"'WP FR-16(7)(v) Sys Peak'!P37","v":200.25971814293069},610280.99999999988,{"$f":"'WP FR-16(7)(v) Sys Peak'!R37","v":148},{"$f":"'WP FR-16(7)(v) Sys Peak'!S37","v":4},{"$f":"'WP FR-16(7)(v) Sys Peak'!T37","v":0},{"$f":"'WP FR-16(7)(v) Sys Peak'!U37","v":0},{"$f":"'WP FR-16(7)(v) Sys Peak'!V37","v":1567},1719,611999.99999999988]
[5,{"$f":"'WP FR-16(7)(v) DS Tot - KW'!$B$21","v":"MAY"},"2020-05-15",0.70833333333333337,{"$f":"'WP FR-16(7)(v) Sys Peak'!E43","v":332444.08020244271},{"$f":"'WP FR-16(7)(v) Sys Peak'!F43","v":207064.17216553167},{"$f":"'WP FR-16(7)(v) Sys Peak'!G43","v":7923},{"$f":"'WP FR-16(7)(v) Sys Peak'!H43","v":1117.0102606356384},{"$f":"'WP FR-16(7)(v) Sys Peak'!I43","v":3641.1966657042185},{"$f":"'WP FR-16(7)(v) Sys Peak'!J43","v":46.221114233198826},{"$f":"'WP FR-16(7)(v) Sys Peak'!K43","v":90371},{"$f":"'WP FR-16(7)(v) Sys Peak'!L43","v":59563},{"$f":"'WP FR-16(7)(v) Sys Peak'!M43","v":2579.3949581804568},{"$f":"'WP FR-16(7)(v) Sys Peak'!N43","v":27349},{"$f":"'WP FR-16(7)(v) Sys Peak'!O43","v":0},{"$f":"'WP FR-16(7)(v) Sys Peak'!P43","v":53.924633272065293},732152.00000000012,{"$f":"'WP FR-16(7)(v) Sys Peak'!R43","v":130},{"$f":"'WP FR-16(7)(v) Sys Peak'!S43","v":194},{"$f":"'WP FR-16(7)(v) Sys Peak'!T43","v":0},{"$f":"'WP FR-16(7)(v) Sys Peak'!U43","v":0},{"$f":"'WP FR-16(7)(v) Sys Peak'!V43","v":1524},1848,734000.00000000012]
[6,{"$f":"'WP FR-16(7)(v) DS Tot - KW'!$B$22","v":"JUNE"},"2020-06-19",0.70833333333333337,{"$f":"'WP FR-16(7)(v) Sys Peak'!E49","v":376925.32002329314},{"$f":"'WP FR-16(7)(v) Sys Peak'!F49","v":215311.2965193335},{"$f":"'WP FR-16(7)(v) Sys Peak'!G49","v":10423},{"$f":"'WP FR-16(7)(v) Sys Peak'!H49","v":942.23847827326597},{"$f":"'WP FR-16(7)(v) Sys Peak'!I49","v":0},{"$f":"'WP FR-16(7)(v) Sys Peak'!J49","v":44.377058670044285},{"$f":"'WP FR-16(7)(v) Sys Peak'!K49","v":109954},{"$f":"'WP FR-16(7)(v) Sys Peak'!L49","v":71243},{"$f":"'WP FR-16(7)(v) Sys Peak'!M49","v":4002.1914772658547},{"$f":"'WP FR-16(7)(v) Sys Peak'!N49","v":28287},{"$f":"'WP FR-16(7)(v) Sys Peak'!O49","v":0},{"$f":"'WP FR-16(7)(v) Sys Peak'!P49","v":18.576443164204587},817151.00000000012,{"$f":"'WP FR-16(7)(v) Sys Peak'!R49","v":176},{"$f":"'WP FR-16(7)(v) Sys Peak'!S49","v":146},{"$f":"'WP FR-16(7)(v) Sys Peak'!T49","v":0},{"$f":"'WP FR-16(7)(v) Sys Peak'!U49","v":0},{"$f":"'WP FR-16(7)(v) Sys Peak'!V49","v":1527},1849,819000.00000000012]
[7,{"$f":"'WP FR-16(7)(v) DS Tot - KW'!$B$23","v":"JULY"},"2020-07-10",0.70833333333333337,{"$f":"'WP FR-16(7)(v) Sys Peak'!E55","v":384557.08999894577},{"$f":"'WP FR-16(7)(v) Sys Peak'!F55","v":202044.896652817},{"$f":"'WP FR-16(7)(v) Sys Peak'!G55","v":9934},{"$f":"'WP FR-16(7)(v) Sys Peak'!H55","v":884.29424856134551},{"$f":"'WP FR-16(7)(v) Sys Peak'!I55","v":0},{"$f":"'WP FR-16(7)(v) Sys Peak'!J55","v":53.473560383328845},{"$f":"'WP FR-16(7)(v) Sys Peak'!K55","v":106564},{"$f":"'WP FR-16(7)(v) Sys Peak'!L55","v":68172},{"$f":"'WP FR-16(7)(v) Sys Peak'!M55","v":4226.3917725193978},{"$f":"'WP FR-16(7)(v) Sys Peak'!N55","v":28647},{"$f":"'WP FR-16(7)(v) Sys Peak'!O55","v":0},{"$f":"'WP FR-16(7)(v) Sys Peak'!P55","v":14.853766773146901},805098,{"$f":"'WP FR-16(7)(v) Sys Peak'!R55","v":159},{"$f":"'WP FR-16(7)(v) Sys Peak'!S55","v":576},{"$f":"'WP FR-16(7)(v) Sys Peak'!T55","v":0},{"$f":"'WP FR-16(7)(v) Sys Peak'!U55","v":0},{"$f":"'WP FR-16(7)(v) Sys Peak'!V55","v":2167},2902,808000]
[8,{"$f":"'WP FR-16(7)(v) DS Tot - KW'!$B$24","v":"AUGUST"},"2020-08-28",0.75,{"$f":"'WP FR-16(7)(v) Sys Peak'!E74","v":379451.98564626294},{"$f":"'WP FR-16(7)(v) Sys Peak'!F74","v":200542.5316175443},{"$f":"'WP FR-16(7)(v) Sys Peak'!G74","v":8736},{"$f":"'WP FR-16(7)(v) Sys Peak'!H74","v":911.27949532692867},{"$f":"'WP FR-16(7)(v) Sys Peak'!I74","v":0},{"$f":"'WP FR-16(7)(v) Sys Peak'!J74","v":52.322267674273412},{"$f":"'WP FR-16(7)(v) Sys Peak'!K74","v":97616},{"$f":"'WP FR-16(7)(v) Sys Peak'!L74","v":67355},{"$f":"'WP FR-16(7)(v) Sys Peak'!M74","v":3920.8999338408639},{"$f":"'WP FR-16(7)(v) Sys Peak'!N74","v":26013},{"$f":"'WP FR-16(7)(v) Sys Peak'!O74","v":0},{"$f":"'WP FR-16(7)(v) Sys Peak'!P74","v":23.981039350708649},784623,{"$f":"'WP FR-16(7)(v) Sys Peak'!R74","v":130},{"$f":"'WP FR-16(7)(v) Sys Peak'!S74","v":263},{"$f":"'WP FR-16(7)(v) Sys Peak'!T74","v":0},{"$f":"'WP FR-16(7)(v) Sys Peak'!U74","v":0},{"$f":"'WP FR-16(7)(v) Sys Peak'!V74","v":1984},2377,787000]
[9,{"$f":"'WP FR-16(7)(v) DS Tot - KW'!$B$25","v":"SEPTEMBER"},"2020-09-04",0.66666666666666663,{"$f":"'WP FR-16(7)(v) Sys Peak'!E80","v":345006.39880260784},{"$f":"'WP FR-16(7)(v) Sys Peak'!F80","v":220021.89765162865},{"$f":"'WP FR-16(7)(v) Sys Peak'!G80","v":12521},{"$f":"'WP FR-16(7)(v) Sys Peak'!H80","v":833.78586491647229},{"$f":"'WP FR-16(7)(v) Sys Peak'!I80","v":0},{"$f":"'WP FR-16(7)(v) Sys Peak'!J80","v":54.107380595643413},{"$f":"'WP FR-16(7)(v) Sys Peak'!K80","v":115194},{"$f":"'WP FR-16(7)(v) Sys Peak'!L80","v":74614},{"$f":"'WP FR-16(7)(v) Sys Peak'!M80","v":3565.7650818768279},{"$f":"'WP FR-16(7)(v) Sys Peak'!N80","v":24301},{"$f":"'WP FR-16(7)(v) Sys Peak'!O80","v":0},{"$f":"'WP FR-16(7)(v) Sys Peak'!P80","v":31.045218374549499},796143,{"$f":"'WP FR-16(7)(v) Sys Peak'!R80","v":16},{"$f":"'WP FR-16(7)(v) Sys Peak'!S80","v":534},{"$f":"'WP FR-16(7)(v) Sys Peak'!T80","v":0},{"$f":"'WP FR-16(7)(v) Sys Peak'!U80","v":0},{"$f":"'WP FR-16(7)(v) Sys Peak'!V80","v":2307},2857,799000]
[10,{"$f":"'WP FR-16(7)(v) DS Tot - KW'!$B$26","v":"OCTOBER"},"2020-10-08",0.625,{"$f":"'WP FR-16(7)(v) Sys Peak'!E86","v":307700.18135451357},{"$f":"'WP FR-16(7)(v) Sys Peak'!F86","v":226294.58355303522},{"$f":"'WP FR-16(7)(v) Sys Peak'!G86","v":10049},{"$f":"'WP FR-16(7)(v) Sys Peak'!H86","v":998.33346727797698},{"$f":"'WP FR-16(7)(v) Sys Peak'!I86","v":3195.7291521696093},{"$f":"'WP FR-16(7)(v) Sys Peak'!J86","v":90.274834807051107},{"$f":"'WP FR-16(7)(v) Sys Peak'!K86","v":101811},{"$f":"'WP FR-16(7)(v) Sys Peak'!L86","v":71722},{"$f":"'WP FR-16(7)(v) Sys Peak'!M86","v":3507.9738749139979},{"$f":"'WP FR-16(7)(v) Sys Peak'!N86","v":29177},{"$f":"'WP FR-16(7)(v) Sys Peak'!O86","v":0},{"$f":"'WP FR-16(7)(v) Sys Peak'!P86","v":32.923763282571578},754579,{"$f":"'WP FR-16(7)(v) Sys Peak'!R86","v":308},{"$f":"'WP FR-16(7)(v) Sys Peak'!S86","v":912},{"$f":"'WP FR-16(7)(v) Sys Peak'!T86","v":0},{"$f":"'WP FR-16(7)(v) Sys Peak'!U86","v":0},{"$f":"'WP FR-16(7)(v) Sys Peak'!V86","v":2201},3421,758000]
[11,{"$f":"'WP FR-16(7)(v) DS Tot - KW'!$B$27","v":"NOVEMBER"},"2020-11-27",0.79166666666666663,{"$f":"'WP FR-16(7)(v) Sys Peak'!E92","v":281051.26761537581},{"$f":"'WP FR-16(7)(v) Sys Peak'!F92","v":151967.53694122465},{"$f":"'WP FR-16(7)(v) Sys Peak'!G92","v":6811},{"$f":"'WP FR-16(7)(v) Sys Peak'!H92","v":939.77295404945141},{"$f":"'WP FR-16(7)(v) Sys Peak'!I92","v":3739.001658035228},{"$f":"'WP FR-16(7)(v) Sys Peak'!J92","v":52.457635202285289},{"$f":"'WP FR-16(7)(v) Sys Peak'!K92","v":86386},{"$f":"'WP FR-16(7)(v) Sys Peak'!L92","v":59274},{"$f":"'WP FR-16(7)(v) Sys Peak'!M92","v":3935.4387600693181},{"$f":"'WP FR-16(7)(v) Sys Peak'!N92","v":30259},{"$f":"'WP FR-16(7)(v) Sys Peak'!O92","v":5259.1569590035806},{"$f":"'WP FR-16(7)(v) Sys Peak'!P92","v":32.36747703970795},629707,{"$f":"'WP FR-16(7)(v) Sys Peak'!R92","v":98},{"$f":"'WP FR-16(7)(v) Sys Peak'!S92","v":573},{"$f":"'WP FR-16(7)(v) Sys Peak'!T92","v":0},{"$f":"'WP FR-16(7)(v) Sys Peak'!U92","v":0},{"$f":"'WP FR-16(7)(v) Sys Peak'!V92","v":1622},2293,632000]
[12,{"$f":"'WP FR-16(7)(v) DS Tot - KW'!$B$28","v":"DECEMBER"},"2020-12-11",0.33333333333333331,{"$f":"'WP FR-16(7)(v) Sys Peak'!E98","v":265708.79395571741},{"$f":"'WP FR-16(7)(v) Sys Peak'!F98","v":148858.87372087128},{"$f":"'WP FR-16(7)(v) Sys Peak'!G98","v":7592},{"$f":"'WP FR-16(7)(v) Sys Peak'!H98","v":867.74721299637372},{"$f":"'WP FR-16(7)(v) Sys Peak'!I98","v":6992.7399581528971},{"$f":"'WP FR-16(7)(v) Sys Peak'!J98","v":26.817794662139583},{"$f":"'WP FR-16(7)(v) Sys Peak'!K98","v":96191},{"$f":"'WP FR-16(7)(v) Sys Peak'!L98","v":62640},{"$f":"'WP FR-16(7)(v) Sys Peak'!M98","v":4573.39176827559},{"$f":"'WP FR-16(7)(v) Sys Peak'!N98","v":34288},{"$f":"'WP FR-16(7)(v) Sys Peak'!O98","v":0},{"$f":"'WP FR-16(7)(v) Sys Peak'!P98","v":53.635589324279167},627793,{"$f":"'WP FR-16(7)(v) Sys Peak'!R98","v":115},{"$f":"'WP FR-16(7)(v) Sys Peak'!S98","v":381},{"$f":"'WP FR-16(7)(v) Sys Peak'!T98","v":0},{"$f":"'WP FR-16(7)(v) Sys Peak'!U98","v":0},{"$f":"'WP FR-16(7)(v) Sys Peak'!V98","v":1711},2207,630000]
[13,"      TOTAL",null,null,{"$f":"SUM(E16:E27)","v":3882693.973912525},2224943.2120715762,104394,11197.599762907264,44180.824938192767,612.02294805283975,1158197,768344,37082.802825535335,342823,10696.800309933697,944.76323127603757,8586110,1673,4016,0,0,21201,26890,8613000]
[]
[14,"12 MONTHS AVERAGE",null,null,{"$f":"ROUND(E28/12,0)","v":323558},185412,8700,933,3682,51,96516,64029,3090,28569,891,79,{"$f":"SUM(E30:P30)","v":715510},{"$f":"ROUND(R28/12,0)","v":139},{"$f":"ROUND(S28/12,0)","v":335},{"$f":"ROUND(T28/12,0)","v":0},{"$f":"ROUND(U28/12,0)","v":0},{"$f":"ROUND(V28/12,0)","v":1767},{"$f":"SUM(R30:V30)","v":2241},{"$f":"W30+Q30","v":717751}]
[null,null,null,null,"To WPFR-16(7)(v) P. 3"]
[]
[null,null,null,null,"*******************   MAXIMUM NON-COINCIDENT KW DEMANDS (b)   *********************"]
[]
[15,{"$f":"'WP FR-16(7)(v) DS Tot - KW'!$B$17","v":"JANUARY"},{"$f":"VALUE(LEFT(VLOOKUP(B35,CoinPeakTable,9,FALSE),5))","v":"2020-01-05"},{"$f":"VALUE(RIGHT(VLOOKUP(B35,CoinPeakTable,9,FALSE),5))","v":0.33333333333333331},{"$f":"'WP FR-16(7)(v) RS - KW'!L20","v":899439},{"$f":"'WP FR-16(7)(v) DS Tot - KW'!D32","v":240021},{"$f":"'WP FR-16(7)(v) DS Tot - KW'!E32","v":12000},{"$f":"'WP FR-16(7)(v) GSFL - KW'!L20","v":1040},{"$f":"'WP FR-16(7)(v) EH - KW'!L20","v":10653},{"$f":"'WP FR-16(7)(v) SP - KW'!L20","v":63},{"$f":"'WP FR-16(7)(v) DT Sec - KW'!L20","v":110089},{"$f":"'WP FR-16(7)(v) DT Pri - KW'!L20","v":71594},{"$f":"'WP FR-16(7)(v) DP Pri - KW'!M20","v":2151},{"$f":"'WP FR-16(7)(v) TT - KW'!M18","v":39084},{"$f":"'WP FR-16(7)(v) LT - KW'!K18","v":3018},{"$f":"'WP FR-16(7)(v) OTHER - KW'!L20","v":56},{"$f":"SUM(E35:P35)","v":1389208},{"$f":"'WP FR-16(7)(v) DS Sec - KW'!M99","v":236},{"$f":"'WP FR-16(7)(v) DT Sec - KW'!L64","v":334},{"$f":"'WP FR-16(7)(v) DT Pri - KW'!L62","v":0},{"$f":"'WP FR-16(7)(v) DP Pri - KW'!J61","v":0},{"$f":"'WP FR-16(7)(v) TT - KW'!M57","v":1703},{"$f":"SUM(R35:V35)","v":2273},{"$f":"W35+Q35","v":1391481}]
[16,{"$f":"'WP FR-16(7)(v) DS Tot - KW'!$B$18","v":"FEBRUARY"},"2020-02-02",0.33333333333333331,{"$f":"'WP FR-16(7)(v) RS - KW'!L21","v":880832},{"$f":"'WP FR-16(7)(v) DS Tot - KW'!D33","v":255734},{"$f":"'WP FR-16(7)(v) DS Tot - KW'!E33","v":12519},{"$f":"'WP FR-16(7)(v) GSFL - KW'!L21","v":1158},{"$f":"'WP FR-16(7)(v) EH - KW'!L21","v":9973},{"$f":"'WP FR-16(7)(v) SP - KW'!L21","v":69},{"$f":"'WP FR-16(7)(v) DT Sec - KW'!L21","v":119647},{"$f":"'WP FR-16(7)(v) DT Pri - KW'!L21","v":77201},{"$f":"'WP FR-16(7)(v) DP Pri - KW'!M21","v":2199},{"$f":"'WP FR-16(7)(v) TT - KW'!M19","v":39335},{"$f":"'WP FR-16(7)(v) LT - KW'!K19","v":5087},{"$f":"'WP FR-16(7)(v) OTHER - KW'!L21","v":229},1403983,{"$f":"'WP FR-16(7)(v) DS Sec - KW'!M100","v":206},{"$f":"'WP FR-16(7)(v) DT Sec - KW'!L65","v":288},{"$f":"'WP FR-16(7)(v) DT Pri - KW'!L63","v":0},{"$f":"'WP FR-16(7)(v) DP Pri - KW'!J62","v":0},{"$f":"'WP FR-16(7)(v) TT - KW'!M58","v":2592},3086,1407069]
[17,{"$f":"'WP FR-16(7)(v) DS Tot - KW'!$B$19","v":"MARCH"},"2020-03-08",0.83333333333333337,{"$f":"'WP FR-16(7)(v) RS - KW'!L22","v":637260},{"$f":"'WP FR-16(7)(v) DS Tot - KW'!D34","v":209194},{"$f":"'WP FR-16(7)(v) DS Tot - KW'!E34","v":10696},{"$f":"'WP FR-16(7)(v) GSFL - KW'!L22","v":1030},{"$f":"'WP FR-16(7)(v) EH - KW'!L22","v":8011},{"$f":"'WP FR-16(7)(v) SP - KW'!L22","v":62},{"$f":"'WP FR-16(7)(v) DT Sec - KW'!L22","v":102440},{"$f":"'WP FR-16(7)(v) DT Pri - KW'!L22","v":67943},{"$f":"'WP FR-16(7)(v) DP Pri - KW'!M22","v":1806},{"$f":"'WP FR-16(7)(v) TT - KW'!M20","v":35739},{"$f":"'WP FR-16(7)(v) LT - KW'!K20","v":4337},{"$f":"'WP FR-16(7)(v) OTHER - KW'!L22","v":444},1078962,{"$f":"'WP FR-16(7)(v) DS Sec - KW'!M101","v":168},{"$f":"'WP FR-16(7)(v) DT Sec - KW'!L66","v":-91},{"$f":"'WP FR-16(7)(v) DT Pri - KW'!L64","v":0},{"$f":"'WP FR-16(7)(v) DP Pri - KW'!J63","v":0},{"$f":"'WP FR-16(7)(v) TT - KW'!M59","v":2030},2107,1081069]
[18,{"$f":"'WP FR-16(7)(v) DS Tot - KW'!$B$20","v":"APRIL"},"2020-04-17",0.45833333333333331,{"$f":"'WP FR-16(7)(v) RS - KW'!L23","v":801326},{"$f":"'WP FR-16(7)(v) DS Tot - KW'!D35","v":247010},{"$f":"'WP FR-16(7)(v) DS Tot - KW'!E35","v":12125},{"$f":"'WP FR-16(7)(v) GSFL - KW'!L23","v":1100},{"$f":"'WP FR-16(7)(v) EH - KW'!L23","v":8981},{"$f":"'WP FR-16(7)(v) SP - KW'!L23","v":83},{"$f":"'WP FR-16(7)(v) DT Sec - KW'!L23","v":111268},{"$f":"'WP FR-16(7)(v) DT Pri - KW'!L23","v":74632},{"$f":"'WP FR-16(7)(v) DP Pri - KW'!M23","v":2166},{"$f":"'WP FR-16(7)(v) TT - KW'!M21","v":39502},{"$f":"'WP FR-16(7)(v) LT - KW'!K21","v":5008},{"$f":"'WP FR-16(7)(v) OTHER - KW'!L23","v":255},1303456,{"$f":"'WP FR-16(7)(v) DS Sec - KW'!M102","v":230},{"$f":"'WP FR-16(7)(v) DT Sec - KW'!L67","v":5},{"$f":"'WP FR-16(7)(v) DT Pri - KW'!L65","v":0},{"$f":"'WP FR-16(7)(v) DP Pri - KW'!J64","v":0},{"$f":"'WP FR-16(7)(v) TT - KW'!M60","v":1977},2212,1305668]
[19,{"$f":"'WP FR-16(7)(v) DS Tot - KW'!$B$21","v":"MAY"},"2020-05-15",0.70833333333333337,{"$f":"'WP FR-16(7)(v) RS - KW'!L24","v":560614},{"$f":"'WP FR-16(7)(v) DS Tot - KW'!D36","v":223940},{"$f":"'WP FR-16(7)(v) DS Tot - KW'!E36","v":11001},{"$f":"'WP FR-16(7)(v) GSFL - KW'!L24","v":1064},{"$f":"'WP FR-16(7)(v) EH - KW'!L24","v":6042},{"$f":"'WP FR-16(7)(v) SP - KW'!L24","v":50},{"$f":"'WP FR-16(7)(v) DT Sec - KW'!L24","v":110490},{"$f":"'WP FR-16(7)(v) DT Pri - KW'!L24","v":73517},{"$f":"'WP FR-16(7)(v) DP Pri - KW'!M24","v":2510},{"$f":"'WP FR-16(7)(v) TT - KW'!M22","v":36721},{"$f":"'WP FR-16(7)(v) LT - KW'!K22","v":5487},{"$f":"'WP FR-16(7)(v) OTHER - KW'!L24","v":58},1031494,{"$f":"'WP FR-16(7)(v) DS Sec - KW'!M103","v":181},{"$f":"'WP FR-16(7)(v) DT Sec - KW'!L68","v":237},{"$f":"'WP FR-16(7)(v) DT Pri - KW'!L66","v":0},{"$f":"'WP FR-16(7)(v) DP Pri - KW'!J65","v":0},{"$f":"'WP FR-16(7)(v) TT - KW'!M61","v":2046},2464,1033958]
[20,{"$f":"'WP FR-16(7)(v) DS Tot - KW'!$B$22","v":"JUNE"},"2020-06-19",0.70833333333333337,{"$f":"'WP FR-16(7)(v) RS - KW'!L25","v":696708},{"$f":"'WP FR-16(7)(v) DS Tot - KW'!D37","v":281593},{"$f":"'WP FR-16(7)(v) DS Tot - KW'!E37","v":14069},{"$f":"'WP FR-16(7)(v) GSFL - KW'!L25","v":1071},{"$f":"'WP FR-16(7)(v) EH - KW'!L25","v":0},{"$f":"'WP FR-16(7)(v) SP - KW'!L25","v":57},{"$f":"'WP FR-16(7)(v) DT Sec - KW'!L25","v":128800},{"$f":"'WP FR-16(7)(v) DT Pri - KW'!L25","v":80744},{"$f":"'WP FR-16(7)(v) DP Pri - KW'!M25","v":4510},{"$f":"'WP FR-16(7)(v) TT - KW'!M23","v":38351},{"$f":"'WP FR-16(7)(v) LT - KW'!K23","v":2899},{"$f":"'WP FR-16(7)(v) OTHER - KW'!L25","v":25},1248827,{"$f":"'WP FR-16(7)(v) DS Sec - KW'!M104","v":237},{"$f":"'WP FR-16(7)(v) DT Sec - KW'!L69","v":170},{"$f":"'WP FR-16(7)(v) DT Pri - KW'!L67","v":0},{"$f":"'WP FR-16(7)(v) DP Pri - KW'!J66","v":0},{"$f":"'WP FR-16(7)(v) TT - KW'!M62","v":2070},2477,1251304]
[21,{"$f":"'WP FR-16(7)(v) DS Tot - KW'!$B$23","v":"JULY"},"2020-07-10",0.70833333333333337,{"$f":"'WP FR-16(7)(v) RS - KW'!L26","v":742606},{"$f":"'WP FR-16(7)(v) DS Tot - KW'!D38","v":279666},{"$f":"'WP FR-16(7)(v) DS Tot - KW'!E38","v":13617},{"$f":"'WP FR-16(7)(v) GSFL - KW'!L26","v":1041},{"$f":"'WP FR-16(7)(v) EH - KW'!L26","v":0},{"$f":"'WP FR-16(7)(v) SP - KW'!L26","v":75},{"$f":"'WP FR-16(7)(v) DT Sec - KW'!L26","v":124139},{"$f":"'WP FR-16(7)(v) DT Pri - KW'!L26","v":79948},{"$f":"'WP FR-16(7)(v) DP Pri - KW'!M26","v":4914},{"$f":"'WP FR-16(7)(v) TT - KW'!M24","v":38282},{"$f":"'WP FR-16(7)(v) LT - KW'!K24","v":7098},{"$f":"'WP FR-16(7)(v) OTHER - KW'!L26","v":20},1291406,{"$f":"'WP FR-16(7)(v) DS Sec - KW'!M105","v":218},{"$f":"'WP FR-16(7)(v) DT Sec - KW'!L70","v":671},{"$f":"'WP FR-16(7)(v) DT Pri - KW'!L68","v":0},{"$f":"'WP FR-16(7)(v) DP Pri - KW'!J67","v":0},{"$f":"'WP FR-16(7)(v) TT - KW'!M63","v":2897},3786,1295192]
[22,{"$f":"'WP FR-16(7)(v) DS Tot - KW'!$B$24","v":"AUGUST"},"2020-08-28",0.75,{"$f":"'WP FR-16(7)(v) RS - KW'!L27","v":712741},{"$f":"'WP FR-16(7)(v) DS Tot - KW'!D39","v":260149},{"$f":"'WP FR-16(7)(v) DS Tot - KW'!E39","v":12353},{"$f":"'WP FR-16(7)(v) GSFL - KW'!L27","v":1021},{"$f":"'WP FR-16(7)(v) EH - KW'!L27","v":0},{"$f":"'WP FR-16(7)(v) SP - KW'!L27","v":67},{"$f":"'WP FR-16(7)(v) DT Sec - KW'!L27","v":119344},{"$f":"'WP FR-16(7)(v) DT Pri - KW'!L27","v":77766},{"$f":"'WP FR-16(7)(v) DP Pri - KW'!M27","v":5001},{"$f":"'WP FR-16(7)(v) TT - KW'!M25","v":37107},{"$f":"'WP FR-16(7)(v) LT - KW'!K25","v":5026},{"$f":"'WP FR-16(7)(v) OTHER - KW'!L27","v":32},1230607,{"$f":"'WP FR-16(7)(v) DS Sec - KW'!M106","v":184},{"$f":"'WP FR-16(7)(v) DT Sec - KW'!L71","v":322},{"$f":"'WP FR-16(7)(v) DT Pri - KW'!L69","v":0},{"$f":"'WP FR-16(7)(v) DP Pri - KW'!J68","v":0},{"$f":"'WP FR-16(7)(v) TT - KW'!M64","v":2830},3336,1233943]
[23,{"$f":"'WP FR-16(7)(v) DS Tot - KW'!$B$25","v":"SEPTEMBER"},"2020-09-04",0.66666666666666663,{"$f":"'WP FR-16(7)(v) RS - KW'!L28","v":864674},{"$f":"'WP FR-16(7)(v) DS Tot - KW'!D40","v":306018},{"$f":"'WP FR-16(7)(v) DS Tot - KW'!E40","v":15448},{"$f":"'WP FR-16(7)(v) GSFL - KW'!L28","v":1119},{"$f":"'WP FR-16(7)(v) EH - KW'!L28","v":0},{"$f":"'WP FR-16(7)(v) SP - KW'!L28","v":76},{"$f":"'WP FR-16(7)(v) DT Sec - KW'!L28","v":136975},{"$f":"'WP FR-16(7)(v) DT Pri - KW'!L28","v":84382},{"$f":"'WP FR-16(7)(v) DP Pri - KW'!M28","v":5047},{"$f":"'WP FR-16(7)(v) TT - KW'!M26","v":39591},{"$f":"'WP FR-16(7)(v) LT - KW'!K26","v":4559},{"$f":"'WP FR-16(7)(v) OTHER - KW'!L28","v":43},1457932,{"$f":"'WP FR-16(7)(v) DS Sec - KW'!M107","v":20},{"$f":"'WP FR-16(7)(v) DT Sec - KW'!L72","v":635},{"$f":"'WP FR-16(7)(v) DT Pri - KW'!L70","v":0},{"$f":"'WP FR-16(7)(v) DP Pri - KW'!J69","v":0},{"$f":"'WP FR-16(7)(v) TT - KW'!M65","v":3759},4414,1462346]
[24,{"$f":"'WP FR-16(7)(v) DS Tot - KW'!$B$26","v":"OCTOBER"},"2020-10-08",0.625,{"$f":"'WP FR-16(7)(v) RS - KW'!L29","v":815089},{"$f":"'WP FR-16(7)(v) DS Tot - KW'!D41","v":270606},{"$f":"'WP FR-16(7)(v) DS Tot - KW'!E41","v":12762},{"$f":"'WP FR-16(7)(v) GSFL - KW'!L29","v":1109},{"$f":"'WP FR-16(7)(v) EH - KW'!L29","v":6657},{"$f":"'WP FR-16(7)(v) SP - KW'!L29","v":109},{"$f":"'WP FR-16(7)(v) DT Sec - KW'!L29","v":120196},{"$f":"'WP FR-16(7)(v) DT Pri - KW'!L29","v":77580},{"$f":"'WP FR-16(7)(v) DP Pri - KW'!M29","v":4841},{"$f":"'WP FR-16(7)(v) TT - KW'!M27","v":36014},{"$f":"'WP FR-16(7)(v) LT - KW'!K27","v":2964},{"$f":"'WP FR-16(7)(v) OTHER - KW'!L29","v":39},1347966,{"$f":"'WP FR-16(7)(v) DS Sec - KW'!M108","v":391},{"$f":"'WP FR-16(7)(v) DT Sec - KW'!L73","v":1076},{"$f":"'WP FR-16(7)(v) DT Pri - KW'!L71","v":0},{"$f":"'WP FR-16(7)(v) DP Pri - KW'!J70","v":0},{"$f":"'WP FR-16(7)(v) TT - KW'!M66","v":2716},4183,1352149]
[25,{"$f":"'WP FR-16(7)(v) DS Tot - KW'!$B$27","v":"NOVEMBER"},"2020-11-27",0.79166666666666663,{"$f":"'WP FR-16(7)(v) RS - KW'!L30","v":633974},{"$f":"'WP FR-16(7)(v) DS Tot - KW'!D42","v":219349},{"$f":"'WP FR-16(7)(v) DS Tot - KW'!E42","v":10972},{"$f":"'WP FR-16(7)(v) GSFL - KW'!L30","v":1104},{"$f":"'WP FR-16(7)(v) EH - KW'!L30","v":6662},{"$f":"'WP FR-16(7)(v) SP - KW'!L30","v":74},{"$f":"'WP FR-16(7)(v) DT Sec - KW'!L30","v":113310},{"$f":"'WP FR-16(7)(v) DT Pri - KW'!L30","v":74546},{"$f":"'WP FR-16(7)(v) DP Pri - KW'!M30","v":5448},{"$f":"'WP FR-16(7)(v) TT - KW'!M28","v":41996},{"$f":"'WP FR-16(7)(v) LT - KW'!K28","v":4549},{"$f":"'WP FR-16(7)(v) OTHER - KW'!L30","v":47},1112031,{"$f":"'WP FR-16(7)(v) DS Sec - KW'!M109","v":159},{"$f":"'WP FR-16(7)(v) DT Sec - KW'!L74","v":752},{"$f":"'WP FR-16(7)(v) DT Pri - KW'!L72","v":0},{"$f":"'WP FR-16(7)(v) DP Pri - KW'!J71","v":0},{"$f":"'WP FR-16(7)(v) TT - KW'!M67","v":2250},3161,1115192]
[26,{"$f":"'WP FR-16(7)(v) DS Tot - KW'!$B$28","v":"DECEMBER"},"2020-12-11",0.33333333333333331,{"$f":"'WP FR-16(7)(v) RS - KW'!L31","v":765357},{"$f":"'WP FR-16(7)(v) DS Tot - KW'!D43","v":233854},{"$f":"'WP FR-16(7)(v) DS Tot - KW'!E43","v":11425},{"$f":"'WP FR-16(7)(v) GSFL - KW'!L31","v":1100},{"$f":"'WP FR-16(7)(v) EH - KW'!L31","v":8553},{"$f":"'WP FR-16(7)(v) SP - KW'!L31","v":42},{"$f":"'WP FR-16(7)(v) DT Sec - KW'!L31","v":116642},{"$f":"'WP FR-16(7)(v) DT Pri - KW'!L31","v":73782},{"$f":"'WP FR-16(7)(v) DP Pri - KW'!M31","v":5687},{"$f":"'WP FR-16(7)(v) TT - KW'!M29","v":41746},{"$f":"'WP FR-16(7)(v) LT - KW'!K29","v":3432},{"$f":"'WP FR-16(7)(v) OTHER - KW'!L31","v":85},1261705,{"$f":"'WP FR-16(7)(v) DS Sec - KW'!M110","v":173},{"$f":"'WP FR-16(7)(v) DT Sec - KW'!L75","v":463},{"$f":"'WP FR-16(7)(v) DT Pri - KW'!L73","v":0},{"$f":"'WP FR-16(7)(v) DP Pri - KW'!J72","v":0},{"$f":"'WP FR-16(7)(v) TT - KW'!M68","v":2083},2719,1264424]
[27,"      TOTAL",null,null,{"$f":"SUM(E35:E46)","v":9010620},3027134,148987,12957,65532,827,1413340,913635,46280,463468,53464,1333,15157577,2403,4862,0,0,28953,36218,15193795]
[]
[28,"ANNUAL MAXIMUM",null,null,{"$f":"MAX(E35:E46)","v":899439},306018,15448,1158,10653,109,136975,84382,5687,41996,7098,444,{"$f":"SUM(E49:P49)","v":1509407},{"$f":"MAX(R35:R46)","v":391},{"$f":"MAX(S35:S46)","v":1076},{"$f":"MAX(T35:T46)","v":0},{"$f":"MAX(U35:U46)","v":0},{"$f":"MAX(V35:V46)","v":3759},{"$f":"SUM(R49:V49)","v":5226},{"$f":"W49+Q49","v":1514633}]
[null,null,null,null,"To WPFR-16(7)(v) P. 4"]
[null,null,null,null,"*********************   DIVERSIFIED CLASS KW DEMANDS (b)   ***********************"]
[]
[29,{"$f":"'WP FR-16(7)(v) DS Tot - KW'!$B$17","v":"JANUARY"},{"$f":"VALUE(LEFT(VLOOKUP(B53,CoinPeakTable,9,FALSE),5))","v":"2020-01-05"},{"$f":"VALUE(RIGHT(VLOOKUP(B53,CoinPeakTable,9,FALSE),5))","v":0.33333333333333331},{"$f":"'WP FR-16(7)(v) RS - KW'!Q20","v":439164},{"$f":"'WP FR-16(7)(v) DS Tot - KW'!D47","v":179321},{"$f":"'WP FR-16(7)(v) DS Tot - KW'!E47","v":8967},{"$f":"'WP FR-16(7)(v) GSFL - KW'!Q20","v":904},{"$f":"'WP FR-16(7)(v) EH - KW'!Q20","v":9043},{"$f":"'WP FR-16(7)(v) SP - KW'!Q20","v":47},{"$f":"'WP FR-16(7)(v) DT Sec - KW'!Q20","v":95738},{"$f":"'WP FR-16(7)(v) DT Pri - KW'!Q20","v":62148},{"$f":"'WP FR-16(7)(v) DP Pri - KW'!R20","v":1788},0,{"$f":"'WP FR-16(7)(v) LT - KW'!O18","v":3115},{"$f":"'WP FR-16(7)(v) OTHER - KW'!Q20","v":41},{"$f":"SUM(E53:P53)","v":800276},{"$f":"'WP FR-16(7)(v) DS Sec - KW'!R99","v":177},{"$f":"'WP FR-16(7)(v) DT Sec - KW'!Q64","v":291},{"$f":"'WP FR-16(7)(v) DT Pri - KW'!Q62","v":0},{"$f":"'WP FR-16(7)(v) DP Pri - KW'!R61","v":0},0,{"$f":"SUM(R53:V53)","v":468},{"$f":"W53+Q53","v":800744}]
[30,{"$f":"'WP FR-16(7)(v) DS Tot - KW'!$B$18","v":"FEBRUARY"},"2020-02-02",0.33333333333333331,{"$f":"'WP FR-16(7)(v) RS - KW'!Q21","v":355564},{"$f":"'WP FR-16(7)(v) DS Tot - KW'!D48","v":175804},{"$f":"'WP FR-16(7)(v) DS Tot - KW'!E48","v":8606},{"$f":"'WP FR-16(7)(v) GSFL - KW'!Q21","v":1002},{"$f":"'WP FR-16(7)(v) EH - KW'!Q21","v":8369},{"$f":"'WP FR-16(7)(v) SP - KW'!Q21","v":47},{"$f":"'WP FR-16(7)(v) DT Sec - KW'!Q21","v":103557},{"$f":"'WP FR-16(7)(v) DT Pri - KW'!Q21","v":69184},{"$f":"'WP FR-16(7)(v) DP Pri - KW'!R21","v":1782},0,{"$f":"'WP FR-16(7)(v) LT - KW'!O19","v":5239},{"$f":"'WP FR-16(7)(v) OTHER - KW'!Q21","v":158},729312,{"$f":"'WP FR-16(7)(v) DS Sec - KW'!R100","v":142},{"$f":"'WP FR-16(7)(v) DT Sec - KW'!Q65","v":249},{"$f":"'WP FR-16(7)(v) DT Pri - KW'!Q63","v":0},{"$f":"'WP FR-16(7)(v) DP Pri - KW'!R62","v":0},0,391,729703]
[31,{"$f":"'WP FR-16(7)(v) DS Tot - KW'!$B$19","v":"MARCH"},"2020-03-08",0.83333333333333337,{"$f":"'WP FR-16(7)(v) RS - KW'!Q22","v":245077},{"$f":"'WP FR-16(7)(v) DS Tot - KW'!D49","v":149572},{"$f":"'WP FR-16(7)(v) DS Tot - KW'!E49","v":7648},{"$f":"'WP FR-16(7)(v) GSFL - KW'!Q22","v":892},{"$f":"'WP FR-16(7)(v) EH - KW'!Q22","v":6814},{"$f":"'WP FR-16(7)(v) SP - KW'!Q22","v":44},{"$f":"'WP FR-16(7)(v) DT Sec - KW'!Q22","v":88635},{"$f":"'WP FR-16(7)(v) DT Pri - KW'!Q22","v":59519},{"$f":"'WP FR-16(7)(v) DP Pri - KW'!R22","v":1493},0,{"$f":"'WP FR-16(7)(v) LT - KW'!O20","v":4466},{"$f":"'WP FR-16(7)(v) OTHER - KW'!Q22","v":318},564478,{"$f":"'WP FR-16(7)(v) DS Sec - KW'!R101","v":120},{"$f":"'WP FR-16(7)(v) DT Sec - KW'!Q66","v":-79},{"$f":"'WP FR-16(7)(v) DT Pri - KW'!Q64","v":0},{"$f":"'WP FR-16(7)(v) DP Pri - KW'!R63","v":0},0,41,564519]
[32,{"$f":"'WP FR-16(7)(v) DS Tot - KW'!$B$20","v":"APRIL"},"2020-04-17",0.45833333333333331,{"$f":"'WP FR-16(7)(v) RS - KW'!Q23","v":271497},{"$f":"'WP FR-16(7)(v) DS Tot - KW'!D50","v":162823},{"$f":"'WP FR-16(7)(v) DS Tot - KW'!E50","v":7992},{"$f":"'WP FR-16(7)(v) GSFL - KW'!Q23","v":915},{"$f":"'WP FR-16(7)(v) EH - KW'!Q23","v":6205},{"$f":"'WP FR-16(7)(v) SP - KW'!Q23","v":55},{"$f":"'WP FR-16(7)(v) DT Sec - KW'!Q23","v":92576},{"$f":"'WP FR-16(7)(v) DT Pri - KW'!Q23","v":67602},{"$f":"'WP FR-16(7)(v) DP Pri - KW'!R23","v":1701},0,{"$f":"'WP FR-16(7)(v) LT - KW'!O21","v":5155},{"$f":"'WP FR-16(7)(v) OTHER - KW'!Q23","v":168},616689,{"$f":"'WP FR-16(7)(v) DS Sec - KW'!R102","v":151},{"$f":"'WP FR-16(7)(v) DT Sec - KW'!Q67","v":4},{"$f":"'WP FR-16(7)(v) DT Pri - KW'!Q65","v":0},{"$f":"'WP FR-16(7)(v) DP Pri - KW'!R64","v":0},0,155,616844]
[33,{"$f":"'WP FR-16(7)(v) DS Tot - KW'!$B$21","v":"MAY"},"2020-05-15",0.70833333333333337,{"$f":"'WP FR-16(7)(v) RS - KW'!Q24","v":278032},{"$f":"'WP FR-16(7)(v) DS Tot - KW'!D51","v":181626},{"$f":"'WP FR-16(7)(v) DS Tot - KW'!E51","v":8923},{"$f":"'WP FR-16(7)(v) GSFL - KW'!Q24","v":938},{"$f":"'WP FR-16(7)(v) EH - KW'!Q24","v":5116},{"$f":"'WP FR-16(7)(v) SP - KW'!Q24","v":40},{"$f":"'WP FR-16(7)(v) DT Sec - KW'!Q24","v":97367},{"$f":"'WP FR-16(7)(v) DT Pri - KW'!Q24","v":65290},{"$f":"'WP FR-16(7)(v) DP Pri - KW'!R24","v":2335},0,{"$f":"'WP FR-16(7)(v) LT - KW'!O22","v":5660},{"$f":"'WP FR-16(7)(v) OTHER - KW'!Q24","v":47},645374,{"$f":"'WP FR-16(7)(v) DS Sec - KW'!R103","v":146},{"$f":"'WP FR-16(7)(v) DT Sec - KW'!Q68","v":208},{"$f":"'WP FR-16(7)(v) DT Pri - KW'!Q66","v":0},{"$f":"'WP FR-16(7)(v) DP Pri - KW'!R65","v":0},0,354,645728]
[34,{"$f":"'WP FR-16(7)(v) DS Tot - KW'!$B$22","v":"JUNE"},"2020-06-19",0.70833333333333337,{"$f":"'WP FR-16(7)(v) RS - KW'!Q25","v":391515},{"$f":"'WP FR-16(7)(v) DS Tot - KW'!D52","v":229474},{"$f":"'WP FR-16(7)(v) DS Tot - KW'!E52","v":11464},{"$f":"'WP FR-16(7)(v) GSFL - KW'!Q25","v":963},{"$f":"'WP FR-16(7)(v) EH - KW'!Q25","v":0},{"$f":"'WP FR-16(7)(v) SP - KW'!Q25","v":47},{"$f":"'WP FR-16(7)(v) DT Sec - KW'!Q25","v":115906},{"$f":"'WP FR-16(7)(v) DT Pri - KW'!Q25","v":73085},{"$f":"'WP FR-16(7)(v) DP Pri - KW'!R25","v":4095},0,{"$f":"'WP FR-16(7)(v) LT - KW'!O23","v":2996},{"$f":"'WP FR-16(7)(v) OTHER - KW'!Q25","v":20},829565,{"$f":"'WP FR-16(7)(v) DS Sec - KW'!R104","v":193},{"$f":"'WP FR-16(7)(v) DT Sec - KW'!Q69","v":153},{"$f":"'WP FR-16(7)(v) DT Pri - KW'!Q67","v":0},{"$f":"'WP FR-16(7)(v) DP Pri - KW'!R66","v":0},0,346,829911]
[35,{"$f":"'WP FR-16(7)(v) DS Tot - KW'!$B$23","v":"JULY"},"2020-07-10",0.70833333333333337,{"$f":"'WP FR-16(7)(v) RS - KW'!Q26","v":393775},{"$f":"'WP FR-16(7)(v) DS Tot - KW'!D53","v":229610},{"$f":"'WP FR-16(7)(v) DS Tot - KW'!E53","v":11180},{"$f":"'WP FR-16(7)(v) GSFL - KW'!Q26","v":939},{"$f":"'WP FR-16(7)(v) EH - KW'!Q26","v":0},{"$f":"'WP FR-16(7)(v) SP - KW'!Q26","v":61},{"$f":"'WP FR-16(7)(v) DT Sec - KW'!Q26","v":112020},{"$f":"'WP FR-16(7)(v) DT Pri - KW'!Q26","v":71670},{"$f":"'WP FR-16(7)(v) DP Pri - KW'!R26","v":4696},0,{"$f":"'WP FR-16(7)(v) LT - KW'!O24","v":7334},{"$f":"'WP FR-16(7)(v) OTHER - KW'!Q26","v":17},831302,{"$f":"'WP FR-16(7)(v) DS Sec - KW'!R105","v":179},{"$f":"'WP FR-16(7)(v) DT Sec - KW'!Q70","v":605},{"$f":"'WP FR-16(7)(v) DT Pri - KW'!Q68","v":0},{"$f":"'WP FR-16(7)(v) DP Pri - KW'!R67","v":0},0,784,832086]
[36,{"$f":"'WP FR-16(7)(v) DS Tot - KW'!$B$24","v":"AUGUST"},"2020-08-28",0.75,{"$f":"'WP FR-16(7)(v) RS - KW'!Q27","v":362246},{"$f":"'WP FR-16(7)(v) DS Tot - KW'!D54","v":215747},{"$f":"'WP FR-16(7)(v) DS Tot - KW'!E54","v":10245},{"$f":"'WP FR-16(7)(v) GSFL - KW'!Q27","v":915},{"$f":"'WP FR-16(7)(v) EH - KW'!Q27","v":0},{"$f":"'WP FR-16(7)(v) SP - KW'!Q27","v":56},{"$f":"'WP FR-16(7)(v) DT Sec - KW'!Q27","v":106881},{"$f":"'WP FR-16(7)(v) DT Pri - KW'!Q27","v":69819},{"$f":"'WP FR-16(7)(v) DP Pri - KW'!R27","v":4688},0,{"$f":"'WP FR-16(7)(v) LT - KW'!O25","v":5191},{"$f":"'WP FR-16(7)(v) OTHER - KW'!Q27","v":26},775814,{"$f":"'WP FR-16(7)(v) DS Sec - KW'!R106","v":152},{"$f":"'WP FR-16(7)(v) DT Sec - KW'!Q71","v":288},{"$f":"'WP FR-16(7)(v) DT Pri - KW'!Q69","v":0},{"$f":"'WP FR-16(7)(v) DP Pri - KW'!R68","v":0},0,440,776254]
[37,{"$f":"'WP FR-16(7)(v) DS Tot - KW'!$B$25","v":"SEPTEMBER"},"2020-09-04",0.66666666666666663,{"$f":"'WP FR-16(7)(v) RS - KW'!Q28","v":468379},{"$f":"'WP FR-16(7)(v) DS Tot - KW'!D55","v":255672},{"$f":"'WP FR-16(7)(v) DS Tot - KW'!E55","v":12907},{"$f":"'WP FR-16(7)(v) GSFL - KW'!Q28","v":1006},{"$f":"'WP FR-16(7)(v) EH - KW'!Q28","v":0},{"$f":"'WP FR-16(7)(v) SP - KW'!Q28","v":63},{"$f":"'WP FR-16(7)(v) DT Sec - KW'!Q28","v":123179},{"$f":"'WP FR-16(7)(v) DT Pri - KW'!Q28","v":76222},{"$f":"'WP FR-16(7)(v) DP Pri - KW'!R28","v":4553},0,{"$f":"'WP FR-16(7)(v) LT - KW'!O26","v":4711},{"$f":"'WP FR-16(7)(v) OTHER - KW'!Q28","v":36},946728,{"$f":"'WP FR-16(7)(v) DS Sec - KW'!R107","v":17},{"$f":"'WP FR-16(7)(v) DT Sec - KW'!Q72","v":571},{"$f":"'WP FR-16(7)(v) DT Pri - KW'!Q70","v":0},{"$f":"'WP FR-16(7)(v) DP Pri - KW'!R69","v":0},0,588,947316]
[38,{"$f":"'WP FR-16(7)(v) DS Tot - KW'!$B$26","v":"OCTOBER"},"2020-10-08",0.625,{"$f":"'WP FR-16(7)(v) RS - KW'!Q29","v":345963},{"$f":"'WP FR-16(7)(v) DS Tot - KW'!D56","v":212377},{"$f":"'WP FR-16(7)(v) DS Tot - KW'!E56","v":10016},{"$f":"'WP FR-16(7)(v) GSFL - KW'!Q29","v":983},{"$f":"'WP FR-16(7)(v) EH - KW'!Q29","v":4993},{"$f":"'WP FR-16(7)(v) SP - KW'!Q29","v":86},{"$f":"'WP FR-16(7)(v) DT Sec - KW'!Q29","v":106503},{"$f":"'WP FR-16(7)(v) DT Pri - KW'!Q29","v":71772},{"$f":"'WP FR-16(7)(v) DP Pri - KW'!R29","v":3994},0,{"$f":"'WP FR-16(7)(v) LT - KW'!O27","v":3058},{"$f":"'WP FR-16(7)(v) OTHER - KW'!Q29","v":31},759776,{"$f":"'WP FR-16(7)(v) DS Sec - KW'!R108","v":306},{"$f":"'WP FR-16(7)(v) DT Sec - KW'!Q73","v":953},{"$f":"'WP FR-16(7)(v) DT Pri - KW'!Q71","v":0},{"$f":"'WP FR-16(7)(v) DP Pri - KW'!R70","v":0},0,1259,761035]
[39,{"$f":"'WP FR-16(7)(v) DS Tot - KW'!$B$27","v":"NOVEMBER"},"2020-11-27",0.79166666666666663,{"$f":"'WP FR-16(7)(v) RS - KW'!Q30","v":273614},{"$f":"'WP FR-16(7)(v) DS Tot - KW'!D57","v":156350},{"$f":"'WP FR-16(7)(v) DS Tot - KW'!E57","v":7821},{"$f":"'WP FR-16(7)(v) GSFL - KW'!Q30","v":944},{"$f":"'WP FR-16(7)(v) EH - KW'!Q30","v":5487},{"$f":"'WP FR-16(7)(v) SP - KW'!Q30","v":53},{"$f":"'WP FR-16(7)(v) DT Sec - KW'!Q30","v":96884},{"$f":"'WP FR-16(7)(v) DT Pri - KW'!Q30","v":68046},{"$f":"'WP FR-16(7)(v) DP Pri - KW'!R30","v":4814},0,{"$f":"'WP FR-16(7)(v) LT - KW'!O28","v":4684},{"$f":"'WP FR-16(7)(v) OTHER - KW'!Q30","v":34},618731,{"$f":"'WP FR-16(7)(v) DS Sec - KW'!R109","v":113},{"$f":"'WP FR-16(7)(v) DT Sec - KW'!Q74","v":643},{"$f":"'WP FR-16(7)(v) DT Pri - KW'!Q72","v":0},{"$f":"'WP FR-16(7)(v) DP Pri - KW'!R71","v":0},0,756,619487]
[40,{"$f":"'WP FR-16(7)(v) DS Tot - KW'!$B$28","v":"DECEMBER"},"2020-12-11",0.33333333333333331,{"$f":"'WP FR-16(7)(v) RS - KW'!Q31","v":294862},{"$f":"'WP FR-16(7)(v) DS Tot - KW'!D58","v":168768},{"$f":"'WP FR-16(7)(v) DS Tot - KW'!E58","v":8246},{"$f":"'WP FR-16(7)(v) GSFL - KW'!Q31","v":933},{"$f":"'WP FR-16(7)(v) EH - KW'!Q31","v":7331},{"$f":"'WP FR-16(7)(v) SP - KW'!Q31","v":31},{"$f":"'WP FR-16(7)(v) DT Sec - KW'!Q31","v":99001},{"$f":"'WP FR-16(7)(v) DT Pri - KW'!Q31","v":64025},{"$f":"'WP FR-16(7)(v) DP Pri - KW'!R31","v":5104},0,{"$f":"'WP FR-16(7)(v) LT - KW'!O29","v":3534},{"$f":"'WP FR-16(7)(v) OTHER - KW'!Q31","v":61},651896,{"$f":"'WP FR-16(7)(v) DS Sec - KW'!R110","v":125},{"$f":"'WP FR-16(7)(v) DT Sec - KW'!Q75","v":392},{"$f":"'WP FR-16(7)(v) DT Pri - KW'!Q73","v":0},{"$f":"'WP FR-16(7)(v) DP Pri - KW'!R72","v":0},0,517,652413]
[41,"      TOTAL",null,null,{"$f":"SUM(E53:E64)","v":4119688},2317144,114015,11334,53358,630,1238247,818382,41043,0,55143,957,8769941,1821,4278,0,0,0,6099,8776040]
[]
[42,"12 MONTHS AVERAGE",null,null,{"$f":"ROUND(E65/12,0)","v":343307},193095,9501,945,4447,53,103187,68199,3420,0,4595,80,{"$f":"SUM(E67:P67)","v":730829},{"$f":"ROUND(R65/12,0)","v":152},{"$f":"ROUND(S65/12,0)","v":357},{"$f":"ROUND(T65/12,0)","v":0},{"$f":"ROUND(U65/12,0)","v":0},{"$f":"ROUND(V65/12,0)","v":0},{"$f":"SUM(R67:V67)","v":509},{"$f":"W67+Q67","v":731338}]
[null,null,null,null,"To WPFR-16(7)(v) P. 4 & 7"]
[null,"(a) Source: WPFR-16(7)(v), Page 12."]
[null,"(b) Sources: WPFR-16(7)(v), Pages 13-32."]
[]
[]
[]
[]
[]
[]
[]
[]
[]
[]
[]
[]
[]
[]
[]
[]
[]
[]
[]
[]
[]
[]
[]
[]
[]
[]
[]
[]
[]
[]
[]
[]
[]
[]
[]
[]
[]
[]
[]
[]
[]
[]
[]
[]
[]
[]
[]
[]
[]
[]
[]
[]
[]
[]
[]
[]
[]
[]
[]
[]
[]
[]
[]
[]
[]
[]
[]
[]
[]
[]
[]
[]
[]
[]
[]
[]
[]
[]
[]
[]
[]
[]
[]
[]
[]
[]
[]
[]
[]
[]
[]
[]
[]
[]
[]
[]
[]
[]
[]
[]
[]
[]
[]
[]
[]
[]
[]
[]
[]
[]
[]
[]
[]
[]
[]
[]
[]
[]
[]
[]
[]
[]
[]
[]
[]
[]
[]
[]
[]
[]
[]
[]
[]
[]
[]
[]
[]
[]
[]
[]
[]
[]
[]
[]
[]
[]
[]
[]
[]
[]
[]
[]
[]
[]
[]
[]
[]
[]
[]
[]
[]
[]
[]
[]
[]
[]
[]
[]
[]
[]
[]
[]
[]
[]
[]
[]
[]
[]
[]
[]
[]
[]
[]
[]
[]
[]
[]
[]
[]
[]
[]
[]
[]
[]
[]
[]
[]
[]
[]
[]
[]
[]
[]
[]
[]
[]
[]
[]
[]
[]
[]
[]
[]
[]
[]
[]
[]
[]
[]
[]
[]
[]
[]
[]
[]
[]
[]
[]
[]
[]
[]
[]
[]
[]
[]
[]
[]
[]
[]
[]
[]
[]
[]
[]
[]
[]
[]
[]
[]
[]
[]
[]
[]
[]
[]
[]
[]
[]
[]
[]
[]
[]
[]
[]
[]
[]
[]
[]
[]
[]
[]
[]
[]
[]
[]
[]
[]
[]
[]
[]
[]
[]
[]
[]
[]
[]
[]
[]
[]
[]
[]
[]
[]
[]
[]
[]
[]
[]
[]
[]
[]
[]
[]
[]
[]
[]
[]
[]
[]
[]
[]
[]
[]
[]
[]
[]
[]
[]
[]
[]
[]
[]
[]
[]
[]
[]
[]
[]
[]
[]
[]
[]
[]
[]
[]
[]
[]
[]
[]
[]
[]
[]
[]
[]
[]
[]
[]
[]
[]
[]
[]
[]
[]
[]
[]
[]
[]
[]
[]
[]
[]
[]
[]
[]
[]
[]
[]
[]
[]
[]
[]
[]
[]
[]
[]
[]
[]
[]
[]
[]
[]
[]
[]
[]
[]
[]
[]
[]
[]
[]
[]
[]
[]
[]
[]
[]
[]
[]
[]
[]
[]
[]
[]
[]
[]
[]
[]
[]
[]
[]
[]
[]
[]
[]
[]
[]
[]
[]
[]
[]
[]
[]
[]
[]
[]
[]
[]
[]
[]
[]
[]
[]
[]
[]
[]
[]
[]
[]
[]
[]
[]
[]
[]
[]
[]
[]
[]
[]
[]
[]
[]
[]
[]
[]
[]
[]
[]
[]
[]
[]
[]
[]
[]
[]
[]
[]
[]
[]
[]
[]
[]
[]
[]
[]
[]
[]
[]
[]
[]
[]
[]
[]
[]
[]
[null,null,null,null,null,0]

{"sheet":"WP FR-16(7)(v) Sys Peak","index":39,"n_rows":106,"n_cols":24,"rows_kept":106,"cut":false,"hidden":false,"merged":[]}
[{"$f":"co_name","v":"DUKE ENERGY KENTUCKY, INC."},null,null,null,null,null,null,null,null,null,null,null,null,null,null,null,null,null,null,null,null,{"$f":"'WP FR-16(7)(v)-KW & KWH @Gen'!G1","v":"Work Paper FR-16(7)(v) "}]
[{"$f":"coss_type","v":"ELECTRIC COST OF SERVICE STUDY "},null,null,null,null,null,null,null,null,null,null,null,null,null,null,null,null,null,null,null,null,{"$f":"'WP FR-16(7)(v)-KW & KWH @Gen'!G2","v":"Witness Responsible:"}]
[{"$f":"case_name","v":"CASE NO: 2019-00271"},null,null,null,null,null,null,null,null,null,null,null,null,null,null,null,null,null,null,null,null,{"$f":"PROPER(Witness)","v":"James E. Ziolkowski"}]
[{"$f":"alloc_factors","v":"ALLOCATION FACTORS FOR COST OF SERVICE STUDY"},null,null,null,null,null,null,null,null,null,null,null,null,null,null,null,null,null,null,null,null,"Page 11"]
[{"$f":"time_period","v":"TWELVE MONTHS ENDING DECEMBER 31, 2018"}]
[]
["SUMMARY OF RECONCILIATION OF RATE GROUP SYSTEM PEAK"]
[" "]
[null,null,null,null,null,null,null,null,null,null,null,null,null,null,null,null,null,"RTP"]
[null,null,null,null,null,"Distr. Secondary (DS)",null,null,null,null,null,null,"DP",null,null,null,"Total",null,null,"DT"]
[null,null," -SYS PEAK-",null,null,"Small \\",null,null,null,null,"Time of Day (DT)",null,"Primary","TT",null,null,"Excl. RTP","DS","DT sec.","Primary","DP","TT","RTP","Total"]
["LINE",null,"Day","Hour","Residential","Medium","Large","GS-FL","EH","SP","Secondary","Primary","Distr.","Trans","Lighting","Other","Incremental","Incr.","Incr.","Incr.","Incr.","Incr.","Incre.","Incl. RTP"]
["NO.","Month","(1)","(2)","(3)","(4)","(5)","(6)","(7)","(8)","(9)","(10)","(11)","(12)","(13)","(14)","(15)","(16)","(17)","(18)","(19)","(20)","(21)","(22)"]
[]
[1,{"$f":"'WP FR-16(7)(v) RS - KW'!$B$20","v":"JANUARY"}]
[2,"Calculated Peaks (a)",{"$f":"VALUE(LEFT(VLOOKUP(B15,CoinPeakTable,9,FALSE),5))","v":"2020-01-05"},{"$f":"VALUE(RIGHT(VLOOKUP(B15,CoinPeakTable,9,FALSE),5))","v":0.33333333333333331},{"$f":"'WP FR-16(7)(v) RS - KW'!$I$20","v":392622},{"$f":"'WP FR-16(7)(v) DS Tot - KW'!D17","v":167091},{"$f":"'WP FR-16(7)(v) DS Tot - KW'!E17","v":8354},{"$f":"'WP FR-16(7)(v) GSFL - KW'!$I20","v":859},{"$f":"'WP FR-16(7)(v) EH - KW'!$I20","v":9101},{"$f":"'WP FR-16(7)(v) SP - KW'!$I20","v":44},{"$f":"'WP FR-16(7)(v) DT Sec - KW'!I20","v":90905},{"$f":"'WP FR-16(7)(v) DT Pri - KW'!I20","v":58914},{"$f":"'WP FR-16(7)(v) DP Pri - KW'!J20","v":1618},{"$f":"'WP FR-16(7)(v) TT - KW'!J18","v":28814},{"$f":"'WP FR-16(7)(v) LT - KW'!I18","v":0},{"$f":"'WP FR-16(7)(v) OTHER - KW'!$I$20","v":38},{"$f":"SUM(E16:P16)","v":758360},{"$f":"'WP FR-16(7)(v) DS Sec - KW'!J99","v":164},{"$f":"'WP FR-16(7)(v) DT Sec - KW'!$I64","v":276},{"$f":"'WP FR-16(7)(v) DT Pri - KW'!$I62","v":0},{"$f":"'WP FR-16(7)(v) DP Pri - KW'!$J61","v":0},{"$f":"'WP FR-16(7)(v) TT - KW'!$J57","v":1255},{"$f":"SUM(R16:V16)","v":1695},{"$f":"W16+Q16","v":760055}]
[3,"Peak per Form 1 (b)",null,null,null,null,null,null,null,null,null,null,null,null,null,null,null,null,null,null,null,null,null,{"$f":"'WP FR-16(7)(v) LossRatios'!E16","v":768000}]
[4,"Adjustment to match Form 1 system peak",null,null,{"$f":"(E16/($E16+$F16+$H16+$I16+$J16+$M16+$O16+$P16))*$X18","v":5459.4490639214664},{"$f":"(F16/($E16+$F16+$H16+$I16+$J16+$M16+$O16+$P16))*$X18","v":2323.4174435963901},null,{"$f":"(H16/($E16+$F16+$H16+$I16+$J16+$M16+$O16+$P16))*$X18","v":11.944482850957256},{"$f":"(I16/($E16+$F16+$H16+$I16+$J16+$M16+$O16+$P16))*$X18","v":126.55033577015364},{"$f":"(J16/($E16+$F16+$H16+$I16+$J16+$M16+$O16+$P16))*$X18","v":0.61182449993261845},null,null,{"$f":"(M16/($E16+$F16+$H16+$I16+$J16+$M16+$O16+$P16))*$X18","v":22.498455474794927},null,{"$f":"(O16/($E16+$F16+$H16+$I16+$J16+$M16+$O16+$P16))*$X18","v":0},{"$f":"(P16/($E16+$F16+$H16+$I16+$J16+$M16+$O16+$P16))*$X18","v":0.52839388630544315},{"$f":"SUM(E18:P18)","v":7945.0000000000009},null,null,null,null,null,{"$f":"SUM(R18:V18)","v":0},{"$f":"X17-X16","v":7945}]
[5,"Adjusted Peaks",null,null,{"$f":"E16+E18","v":398081.44906392146},169414.41744359638,8354,870.94448285095723,9227.5503357701527,44.611824499932617,90905,58914,1640.498455474795,28814,0,38.528393886305444,{"$f":"SUM(E19:P19)","v":766305},{"$f":"R16+R18","v":164},{"$f":"S16+S18","v":276},{"$f":"T16+T18","v":0},{"$f":"U16+U18","v":0},{"$f":"V16+V18","v":1255},{"$f":"SUM(R19:V19)","v":1695},{"$f":"W19+Q19","v":768000}]
[6]
[7,{"$f":"'WP FR-16(7)(v) RS - KW'!$B$21","v":"FEBRUARY"}]
[8,{"$f":"B16","v":"Calculated Peaks (a)"},{"$f":"VALUE(LEFT(VLOOKUP(B21,CoinPeakTable,9,FALSE),5))","v":"2020-02-02"},{"$f":"VALUE(RIGHT(VLOOKUP(B21,CoinPeakTable,9,FALSE),5))","v":0.33333333333333331},{"$f":"'WP FR-16(7)(v) RS - KW'!$I$21","v":340778},{"$f":"'WP FR-16(7)(v) DS Tot - KW'!D18","v":160707},{"$f":"'WP FR-16(7)(v) DS Tot - KW'!E18","v":7867},{"$f":"'WP FR-16(7)(v) GSFL - KW'!$I21","v":916},{"$f":"'WP FR-16(7)(v) EH - KW'!$I21","v":7193},{"$f":"'WP FR-16(7)(v) SP - KW'!$I21","v":44},{"$f":"'WP FR-16(7)(v) DT Sec - KW'!I21","v":94618},{"$f":"'WP FR-16(7)(v) DT Pri - KW'!I21","v":62162},{"$f":"'WP FR-16(7)(v) DP Pri - KW'!J21","v":1686},{"$f":"'WP FR-16(7)(v) TT - KW'!J19","v":27199},{"$f":"'WP FR-16(7)(v) LT - KW'!I19","v":0},{"$f":"'WP FR-16(7)(v) OTHER - KW'!$I$21","v":144},{"$f":"SUM(E22:P22)","v":703314},{"$f":"'WP FR-16(7)(v) DS Sec - KW'!J100","v":129},{"$f":"'WP FR-16(7)(v) DT Sec - KW'!$I65","v":228},{"$f":"'WP FR-16(7)(v) DT Pri - KW'!$I63","v":0},{"$f":"'WP FR-16(7)(v) DP Pri - KW'!$J62","v":0},{"$f":"'WP FR-16(7)(v) TT - KW'!$J58","v":1792},{"$f":"SUM(R22:V22)","v":2149},{"$f":"W22+Q22","v":705463}]
[9,{"$f":"B17","v":"Peak per Form 1 (b)"},null,null,null,null,null,null,null,null,null,null,null,null,null,null,null,null,null,null,null,null,null,{"$f":"'WP FR-16(7)(v) LossRatios'!E17","v":634000}]
[10,{"$f":"B18","v":"Adjustment to match Form 1 system peak"},null,null,{"$f":"(E22/($E22+$F22+$H22+$I22+$J22+$M22+$O22+$P22))*$X24","v":-47613.962582214335},{"$f":"(F22/($E22+$F22+$H22+$I22+$J22+$M22+$O22+$P22))*$X24","v":-22454.199169840536},null,{"$f":"(H22/($E22+$F22+$H22+$I22+$J22+$M22+$O22+$P22))*$X24","v":-127.98475759969344},{"$f":"(I22/($E22+$F22+$H22+$I22+$J22+$M22+$O22+$P22))*$X24","v":-1005.0156784002128},{"$f":"(J22/($E22+$F22+$H22+$I22+$J22+$M22+$O22+$P22))*$X24","v":-6.1477394480202081},null,null,{"$f":"(M22/($E22+$F22+$H22+$I22+$J22+$M22+$O22+$P22))*$X24","v":-235.57019794004708},null,{"$f":"(O22/($E22+$F22+$H22+$I22+$J22+$M22+$O22+$P22))*$X24","v":0},{"$f":"(P22/($E22+$F22+$H22+$I22+$J22+$M22+$O22+$P22))*$X24","v":-20.119874557157047},{"$f":"SUM(E24:P24)","v":-71463.000000000015},null,null,null,null,null,{"$f":"SUM(R24:V24)","v":0},{"$f":"X23-X22","v":-71463}]
[11,{"$f":"B19","v":"Adjusted Peaks"},null,null,{"$f":"E22+E24","v":293164.03741778567},138252.80083015945,7867,788.01524240030653,6187.9843215997871,37.852260551979789,94618,62162,1450.4298020599529,27199,0,123.88012544284295,{"$f":"SUM(E25:P25)","v":631851},{"$f":"R22+R24","v":129},{"$f":"S22+S24","v":228},{"$f":"T22+T24","v":0},{"$f":"U22+U24","v":0},{"$f":"V22+V24","v":1792},{"$f":"SUM(R25:V25)","v":2149},{"$f":"W25+Q25","v":634000}]
[12]
[13,{"$f":"'WP FR-16(7)(v) RS - KW'!$B$22","v":"MARCH"}]
[14,{"$f":"B22","v":"Calculated Peaks (a)"},{"$f":"VALUE(LEFT(VLOOKUP(B27,CoinPeakTable,9,FALSE),5))","v":"2020-03-08"},{"$f":"VALUE(RIGHT(VLOOKUP(B27,CoinPeakTable,9,FALSE),5))","v":0.83333333333333337},{"$f":"'WP FR-16(7)(v) RS - KW'!$I$22","v":246531},{"$f":"'WP FR-16(7)(v) DS Tot - KW'!D19","v":124839},{"$f":"'WP FR-16(7)(v) DS Tot - KW'!E19","v":6384},{"$f":"'WP FR-16(7)(v) GSFL - KW'!$I22","v":802},{"$f":"'WP FR-16(7)(v) EH - KW'!$I22","v":3541},{"$f":"'WP FR-16(7)(v) SP - KW'!$I22","v":37},{"$f":"'WP FR-16(7)(v) DT Sec - KW'!I22","v":79664},{"$f":"'WP FR-16(7)(v) DT Pri - KW'!I22","v":54916},{"$f":"'WP FR-16(7)(v) DP Pri - KW'!J22","v":1381},{"$f":"'WP FR-16(7)(v) TT - KW'!J20","v":27181},{"$f":"'WP FR-16(7)(v) LT - KW'!I20","v":4492},{"$f":"'WP FR-16(7)(v) OTHER - KW'!$I$22","v":265},{"$f":"SUM(E28:P28)","v":550033},{"$f":"'WP FR-16(7)(v) DS Sec - KW'!J101","v":100},{"$f":"'WP FR-16(7)(v) DT Sec - KW'!$I66","v":-71},{"$f":"'WP FR-16(7)(v) DT Pri - KW'!$I64","v":0},{"$f":"'WP FR-16(7)(v) DP Pri - KW'!$J63","v":0},{"$f":"'WP FR-16(7)(v) TT - KW'!$J59","v":1544},{"$f":"SUM(R28:V28)","v":1573},{"$f":"W28+Q28","v":551606}]
[15,{"$f":"B23","v":"Peak per Form 1 (b)"},null,null,null,null,null,null,null,null,null,null,null,null,null,null,null,null,null,null,null,null,null,{"$f":"'WP FR-16(7)(v) LossRatios'!E18","v":632000}]
[16,{"$f":"B24","v":"Adjustment to match Form 1 system peak"},null,null,{"$f":"(E28/($E28+$F28+$H28+$I28+$J28+$M28+$O28+$P28))*$X30","v":51899.020691930615},{"$f":"(F28/($E28+$F28+$H28+$I28+$J28+$M28+$O28+$P28))*$X30","v":26280.759191176472},null,{"$f":"(H28/($E28+$F28+$H28+$I28+$J28+$M28+$O28+$P28))*$X30","v":168.83481020613374},{"$f":"(I28/($E28+$F28+$H28+$I28+$J28+$M28+$O28+$P28))*$X30","v":745.44147498743087},{"$f":"(J28/($E28+$F28+$H28+$I28+$J28+$M28+$O28+$P28))*$X30","v":7.7891371292106593},null,null,{"$f":"(M28/($E28+$F28+$H28+$I28+$J28+$M28+$O28+$P28))*$X30","v":290.72428041729512},null,{"$f":"(O28/($E28+$F28+$H28+$I28+$J28+$M28+$O28+$P28))*$X30","v":945.64335093011562},{"$f":"(P28/($E28+$F28+$H28+$I28+$J28+$M28+$O28+$P28))*$X30","v":55.787063222724981},{"$f":"SUM(E30:P30)","v":80393.999999999985},null,null,null,null,null,{"$f":"SUM(R30:V30)","v":0},{"$f":"X29-X28","v":80394}]
[17,{"$f":"B25","v":"Adjusted Peaks"},null,null,{"$f":"E28+E30","v":298430.02069193061},151119.75919117648,6384,970.83481020613374,4286.4414749874304,44.789137129210658,79664,54916,1671.7242804172952,27181,5437.643350930116,320.78706322272501,{"$f":"SUM(E31:P31)","v":630426.99999999988},{"$f":"R28+R30","v":100},{"$f":"S28+S30","v":-71},{"$f":"T28+T30","v":0},{"$f":"U28+U30","v":0},{"$f":"V28+V30","v":1544},{"$f":"SUM(R31:V31)","v":1573},{"$f":"W31+Q31","v":631999.99999999988}]
[18]
[19,{"$f":"'WP FR-16(7)(v) RS - KW'!$B$23","v":"APRIL"}]
[20,{"$f":"B28","v":"Calculated Peaks (a)"},{"$f":"VALUE(LEFT(VLOOKUP(B33,CoinPeakTable,9,FALSE),5))","v":"2020-04-17"},{"$f":"VALUE(RIGHT(VLOOKUP(B33,CoinPeakTable,9,FALSE),5))","v":0.45833333333333331},{"$f":"'WP FR-16(7)(v) RS - KW'!$I$23","v":180308},{"$f":"'WP FR-16(7)(v) DS Tot - KW'!D20","v":158915},{"$f":"'WP FR-16(7)(v) DS Tot - KW'!E20","v":7800},{"$f":"'WP FR-16(7)(v) GSFL - KW'!$I23","v":879},{"$f":"'WP FR-16(7)(v) EH - KW'!$I23","v":5659},{"$f":"'WP FR-16(7)(v) SP - KW'!$I23","v":53},{"$f":"'WP FR-16(7)(v) DT Sec - KW'!I23","v":88923},{"$f":"'WP FR-16(7)(v) DT Pri - KW'!I23","v":57769},{"$f":"'WP FR-16(7)(v) DP Pri - KW'!J23","v":1645},{"$f":"'WP FR-16(7)(v) TT - KW'!J21","v":31308},{"$f":"'WP FR-16(7)(v) LT - KW'!I21","v":0},{"$f":"'WP FR-16(7)(v) OTHER - KW'!$I$23","v":164},{"$f":"SUM(E34:P34)","v":533423},{"$f":"'WP FR-16(7)(v) DS Sec - KW'!J102","v":148},{"$f":"'WP FR-16(7)(v) DT Sec - KW'!$I67","v":4},{"$f":"'WP FR-16(7)(v) DT Pri - KW'!$I65","v":0},{"$f":"'WP FR-16(7)(v) DP Pri - KW'!$J64","v":0},{"$f":"'WP FR-16(7)(v) TT - KW'!$J60","v":1567},{"$f":"SUM(R34:V34)","v":1719},{"$f":"W34+Q34","v":535142}]
[21,{"$f":"B29","v":"Peak per Form 1 (b)"},null,null,null,null,null,null,null,null,null,null,null,null,null,null,null,null,null,null,null,null,null,{"$f":"'WP FR-16(7)(v) LossRatios'!E19","v":612000}]
[22,{"$f":"B30","v":"Adjustment to match Form 1 system peak"},null,null,{"$f":"(E34/($E34+$F34+$H34+$I34+$J34+$M34+$O34+$P34))*$X36","v":39865.349139728962},{"$f":"(F34/($E34+$F34+$H34+$I34+$J34+$M34+$O34+$P34))*$X36","v":35135.445784657517},null,{"$f":"(H34/($E34+$F34+$H34+$I34+$J34+$M34+$O34+$P34))*$X36","v":194.34324541241517},{"$f":"(I34/($E34+$F34+$H34+$I34+$J34+$M34+$O34+$P34))*$X36","v":1251.1813717734442},{"$f":"(J34/($E34+$F34+$H34+$I34+$J34+$M34+$O34+$P34))*$X36","v":11.718079643751995},null,null,{"$f":"(M34/($E34+$F34+$H34+$I34+$J34+$M34+$O34+$P34))*$X36","v":363.70266064098172},null,{"$f":"(O34/($E34+$F34+$H34+$I34+$J34+$M34+$O34+$P34))*$X36","v":0},{"$f":"(P34/($E34+$F34+$H34+$I34+$J34+$M34+$O34+$P34))*$X36","v":36.259718142930701},{"$f":"SUM(E36:P36)","v":76858},null,null,null,null,null,{"$f":"SUM(R36:V36)","v":0},{"$f":"X35-X34","v":76858}]
[23,{"$f":"B31","v":"Adjusted Peaks"},null,null,{"$f":"E34+E36","v":220173.34913972896},194050.44578465752,7800,1073.3432454124152,6910.181371773444,64.718079643751992,88923,57769,2008.7026606409818,31308,0,200.25971814293069,{"$f":"SUM(E37:P37)","v":610280.99999999988},{"$f":"R34+R36","v":148},{"$f":"S34+S36","v":4},{"$f":"T34+T36","v":0},{"$f":"U34+U36","v":0},{"$f":"V34+V36","v":1567},{"$f":"SUM(R37:V37)","v":1719},{"$f":"W37+Q37","v":611999.99999999988}]
[24]
[25,{"$f":"'WP FR-16(7)(v) RS - KW'!$B$24","v":"MAY"}]
[26,{"$f":"B34","v":"Calculated Peaks (a)"},{"$f":"VALUE(LEFT(VLOOKUP(B39,CoinPeakTable,9,FALSE),5))","v":"2020-05-15"},{"$f":"VALUE(RIGHT(VLOOKUP(B39,CoinPeakTable,9,FALSE),5))","v":0.70833333333333337},{"$f":"'WP FR-16(7)(v) RS - KW'!$I$24","v":258929},{"$f":"'WP FR-16(7)(v) DS Tot - KW'!D21","v":161275},{"$f":"'WP FR-16(7)(v) DS Tot - KW'!E21","v":7923},{"$f":"'WP FR-16(7)(v) GSFL - KW'!$I24","v":870},{"$f":"'WP FR-16(7)(v) EH - KW'!$I24","v":2836},{"$f":"'WP FR-16(7)(v) SP - KW'!$I24","v":36},{"$f":"'WP FR-16(7)(v) DT Sec - KW'!I24","v":90371},{"$f":"'WP FR-16(7)(v) DT Pri - KW'!I24","v":59563},{"$f":"'WP FR-16(7)(v) DP Pri - KW'!J24","v":2009},{"$f":"'WP FR-16(7)(v) TT - KW'!J22","v":27349},{"$f":"'WP FR-16(7)(v) LT - KW'!I22","v":0},{"$f":"'WP FR-16(7)(v) OTHER - KW'!$I$24","v":42},{"$f":"SUM(E40:P40)","v":611203},{"$f":"'WP FR-16(7)(v) DS Sec - KW'!J103","v":130},{"$f":"'WP FR-16(7)(v) DT Sec - KW'!$I68","v":194},{"$f":"'WP FR-16(7)(v) DT Pri - KW'!$I66","v":0},{"$f":"'WP FR-16(7)(v) DP Pri - KW'!$J65","v":0},{"$f":"'WP FR-16(7)(v) TT - KW'!$J61","v":1524},{"$f":"SUM(R40:V40)","v":1848},{"$f":"W40+Q40","v":613051}]
[27,{"$f":"B35","v":"Peak per Form 1 (b)"},null,null,null,null,null,null,null,null,null,null,null,null,null,null,null,null,null,null,null,null,null,{"$f":"'WP FR-16(7)(v) LossRatios'!E20","v":734000}]
[28,{"$f":"B36","v":"Adjustment to match Form 1 system peak"},null,null,{"$f":"(E40/($E40+$F40+$H40+$I40+$J40+$M40+$O40+$P40))*$X42","v":73515.080202442739},{"$f":"(F40/($E40+$F40+$H40+$I40+$J40+$M40+$O40+$P40))*$X42","v":45789.17216553168},null,{"$f":"(H40/($E40+$F40+$H40+$I40+$J40+$M40+$O40+$P40))*$X42","v":247.01026063563828},{"$f":"(I40/($E40+$F40+$H40+$I40+$J40+$M40+$O40+$P40))*$X42","v":805.19666570421862},{"$f":"(J40/($E40+$F40+$H40+$I40+$J40+$M40+$O40+$P40))*$X42","v":10.221114233198826},null,null,{"$f":"(M40/($E40+$F40+$H40+$I40+$J40+$M40+$O40+$P40))*$X42","v":570.39495818045668},null,{"$f":"(O40/($E40+$F40+$H40+$I40+$J40+$M40+$O40+$P40))*$X42","v":0},{"$f":"(P40/($E40+$F40+$H40+$I40+$J40+$M40+$O40+$P40))*$X42","v":11.924633272065297},{"$f":"SUM(E42:P42)","v":120949},null,null,null,null,null,{"$f":"SUM(R42:V42)","v":0},{"$f":"X41-X40","v":120949}]
[29,{"$f":"B37","v":"Adjusted Peaks"},null,null,{"$f":"E40+E42","v":332444.08020244271},207064.17216553167,7923,1117.0102606356384,3641.1966657042185,46.221114233198826,90371,59563,2579.3949581804568,27349,0,53.924633272065293,{"$f":"SUM(E43:P43)","v":732152.00000000012},{"$f":"R40+R42","v":130},{"$f":"S40+S42","v":194},{"$f":"T40+T42","v":0},{"$f":"U40+U42","v":0},{"$f":"V40+V42","v":1524},{"$f":"SUM(R43:V43)","v":1848},{"$f":"W43+Q43","v":734000.00000000012}]
[30]
[31,{"$f":"'WP FR-16(7)(v) RS - KW'!$B$25","v":"JUNE"}]
[32,{"$f":"B40","v":"Calculated Peaks (a)"},{"$f":"VALUE(LEFT(VLOOKUP(B45,CoinPeakTable,9,FALSE),5))","v":"2020-06-19"},{"$f":"VALUE(RIGHT(VLOOKUP(B45,CoinPeakTable,9,FALSE),5))","v":0.70833333333333337},{"$f":"'WP FR-16(7)(v) RS - KW'!$I$25","v":365229},{"$f":"'WP FR-16(7)(v) DS Tot - KW'!D22","v":208630},{"$f":"'WP FR-16(7)(v) DS Tot - KW'!E22","v":10423},{"$f":"'WP FR-16(7)(v) GSFL - KW'!$I25","v":913},{"$f":"'WP FR-16(7)(v) EH - KW'!$I25","v":0},{"$f":"'WP FR-16(7)(v) SP - KW'!$I25","v":43},{"$f":"'WP FR-16(7)(v) DT Sec - KW'!I25","v":109954},{"$f":"'WP FR-16(7)(v) DT Pri - KW'!I25","v":71243},{"$f":"'WP FR-16(7)(v) DP Pri - KW'!J25","v":3878},{"$f":"'WP FR-16(7)(v) TT - KW'!J23","v":28287},{"$f":"'WP FR-16(7)(v) LT - KW'!I23","v":0},{"$f":"'WP FR-16(7)(v) OTHER - KW'!$I$25","v":18},{"$f":"SUM(E46:P46)","v":798618},{"$f":"'WP FR-16(7)(v) DS Sec - KW'!J104","v":176},{"$f":"'WP FR-16(7)(v) DT Sec - KW'!$I69","v":146},{"$f":"'WP FR-16(7)(v) DT Pri - KW'!$I67","v":0},{"$f":"'WP FR-16(7)(v) DP Pri - KW'!$J66","v":0},{"$f":"'WP FR-16(7)(v) TT - KW'!$J62","v":1527},{"$f":"SUM(R46:V46)","v":1849},{"$f":"W46+Q46","v":800467}]
[33,{"$f":"B41","v":"Peak per Form 1 (b)"},null,null,null,null,null,null,null,null,null,null,null,null,null,null,null,null,null,null,null,null,null,{"$f":"'WP FR-16(7)(v) LossRatios'!E21","v":819000}]
[34,{"$f":"B42","v":"Adjustment to match Form 1 system peak"},null,null,{"$f":"(E46/($E46+$F46+$H46+$I46+$J46+$M46+$O46+$P46))*$X48","v":11696.320023293147},{"$f":"(F46/($E46+$F46+$H46+$I46+$J46+$M46+$O46+$P46))*$X48","v":6681.296519333484},null,{"$f":"(H46/($E46+$F46+$H46+$I46+$J46+$M46+$O46+$P46))*$X48","v":29.238478273265933},{"$f":"(I46/($E46+$F46+$H46+$I46+$J46+$M46+$O46+$P46))*$X48","v":0},{"$f":"(J46/($E46+$F46+$H46+$I46+$J46+$M46+$O46+$P46))*$X48","v":1.3770586700442882},null,null,{"$f":"(M46/($E46+$F46+$H46+$I46+$J46+$M46+$O46+$P46))*$X48","v":124.19147726585464},null,{"$f":"(O46/($E46+$F46+$H46+$I46+$J46+$M46+$O46+$P46))*$X48","v":0},{"$f":"(P46/($E46+$F46+$H46+$I46+$J46+$M46+$O46+$P46))*$X48","v":0.57644316420458575},{"$f":"SUM(E48:P48)","v":18533},null,null,null,null,null,{"$f":"SUM(R48:V48)","v":0},{"$f":"X47-X46","v":18533}]
[35,{"$f":"B43","v":"Adjusted Peaks"},null,null,{"$f":"E46+E48","v":376925.32002329314},215311.2965193335,10423,942.23847827326597,0,44.377058670044285,109954,71243,4002.1914772658547,28287,0,18.576443164204587,{"$f":"SUM(E49:P49)","v":817151.00000000012},{"$f":"R46+R48","v":176},{"$f":"S46+S48","v":146},{"$f":"T46+T48","v":0},{"$f":"U46+U48","v":0},{"$f":"V46+V48","v":1527},{"$f":"SUM(R49:V49)","v":1849},{"$f":"W49+Q49","v":819000.00000000012}]
[36]
[37,{"$f":"'WP FR-16(7)(v) RS - KW'!$B$26","v":"JULY"}]
[38,{"$f":"B46","v":"Calculated Peaks (a)"},{"$f":"VALUE(LEFT(VLOOKUP(B51,CoinPeakTable,9,FALSE),5))","v":"2020-07-10"},{"$f":"VALUE(RIGHT(VLOOKUP(B51,CoinPeakTable,9,FALSE),5))","v":0.70833333333333337},{"$f":"'WP FR-16(7)(v) RS - KW'!$I$26","v":388343},{"$f":"'WP FR-16(7)(v) DS Tot - KW'!D23","v":204034},{"$f":"'WP FR-16(7)(v) DS Tot - KW'!E23","v":9934},{"$f":"'WP FR-16(7)(v) GSFL - KW'!$I26","v":893},{"$f":"'WP FR-16(7)(v) EH - KW'!$I26","v":0},{"$f":"'WP FR-16(7)(v) SP - KW'!$I26","v":54},{"$f":"'WP FR-16(7)(v) DT Sec - KW'!I26","v":106564},{"$f":"'WP FR-16(7)(v) DT Pri - KW'!I26","v":68172},{"$f":"'WP FR-16(7)(v) DP Pri - KW'!J26","v":4268},{"$f":"'WP FR-16(7)(v) TT - KW'!J24","v":28647},{"$f":"'WP FR-16(7)(v) LT - KW'!I24","v":0},{"$f":"'WP FR-16(7)(v) OTHER - KW'!$I$26","v":15},{"$f":"SUM(E52:P52)","v":810924},{"$f":"'WP FR-16(7)(v) DS Sec - KW'!J105","v":159},{"$f":"'WP FR-16(7)(v) DT Sec - KW'!$I70","v":576},{"$f":"'WP FR-16(7)(v) DT Pri - KW'!$I68","v":0},{"$f":"'WP FR-16(7)(v) DP Pri - KW'!$J67","v":0},{"$f":"'WP FR-16(7)(v) TT - KW'!$J63","v":2167},{"$f":"SUM(R52:V52)","v":2902},{"$f":"W52+Q52","v":813826}]
[39,{"$f":"B47","v":"Peak per Form 1 (b)"},null,null,null,null,null,null,null,null,null,null,null,null,null,null,null,null,null,null,null,null,null,{"$f":"'WP FR-16(7)(v) LossRatios'!E22","v":808000}]
[40,{"$f":"B48","v":"Adjustment to match Form 1 system peak"},null,null,{"$f":"(E52/($E52+$F52+$H52+$I52+$J52+$M52+$O52+$P52))*$X54","v":-3785.9100010542047},{"$f":"(F52/($E52+$F52+$H52+$I52+$J52+$M52+$O52+$P52))*$X54","v":-1989.1033471830149},null,{"$f":"(H52/($E52+$F52+$H52+$I52+$J52+$M52+$O52+$P52))*$X54","v":-8.7057514386545005},{"$f":"(I52/($E52+$F52+$H52+$I52+$J52+$M52+$O52+$P52))*$X54","v":0},{"$f":"(J52/($E52+$F52+$H52+$I52+$J52+$M52+$O52+$P52))*$X54","v":-0.5264396166711568},null,null,{"$f":"(M52/($E52+$F52+$H52+$I52+$J52+$M52+$O52+$P52))*$X54","v":-41.608227480601798},null,{"$f":"(O52/($E52+$F52+$H52+$I52+$J52+$M52+$O52+$P52))*$X54","v":0},{"$f":"(P52/($E52+$F52+$H52+$I52+$J52+$M52+$O52+$P52))*$X54","v":-0.14623322685309911},{"$f":"SUM(E54:P54)","v":-5826},null,null,null,null,null,{"$f":"SUM(R54:V54)","v":0},{"$f":"X53-X52","v":-5826}]
[41,{"$f":"B49","v":"Adjusted Peaks"},null,null,{"$f":"E52+E54","v":384557.08999894577},202044.896652817,9934,884.29424856134551,0,53.473560383328845,106564,68172,4226.3917725193978,28647,0,14.853766773146901,{"$f":"SUM(E55:P55)","v":805098},{"$f":"R52+R54","v":159},{"$f":"S52+S54","v":576},{"$f":"T52+T54","v":0},{"$f":"U52+U54","v":0},{"$f":"V52+V54","v":2167},{"$f":"SUM(R55:V55)","v":2902},{"$f":"W55+Q55","v":808000}]
[" "]
[{"$f":"co_name","v":"DUKE ENERGY KENTUCKY, INC."},null,null,null,null,null,null,null,null,null,null,null,null,null,null,null,null,null,null,null,null,{"$f":"V1","v":"Work Paper FR-16(7)(v) "}]
[{"$f":"coss_type","v":"ELECTRIC COST OF SERVICE STUDY "},null,null,null,null,null,null,null,null,null,null,null,null,null,null,null,null,null,null,null,null,{"$f":"V2","v":"Witness Responsible:"}]
[{"$f":"case_name","v":"CASE NO: 2019-00271"},null,null,null,null,null,null,null,null,null,null,null,null,null,null,null,null,null,null,null,null,{"$f":"V3","v":"James E. Ziolkowski"}]
[{"$f":"alloc_factors","v":"ALLOCATION FACTORS FOR COST OF SERVICE STUDY"},null,null,null,null,null,null,null,null,null,null,null,null,null,null,null,null,null,null,null,null,"Page 12"]
[{"$f":"time_period","v":"TWELVE MONTHS ENDING DECEMBER 31, 2018"}]
[]
["SUMMARY OF RECONCILIATION OF RATE GROUP SYSTEM PEAK"]
[null,null,null,null,null,null,null,null,null,null,null,null,null,null,null,null,null,"RTP"]
[null,null,null,null,null,"Distr. Secondary (DS)",null,null,null,null,null,null,"DP",null,null,null,"Total",null,null,"DT"]
[null,null," -SYS PEAK-",null,null,"Small \\",null,null,null,null,"Time of Day (DT)",null,"Primary","TT",null,null,"Excl. RTP","DS","DT sec.","Primary","DP","TT","RTP","Total"]
["LINE",null,"Day","Hour","Residential","Medium","Large","GS-FL","EH","SP","Secondary","Primary","Distr.","Trans","Lighting","Other","Incremental","Incr.","Incr.","Incr.","Incr.","Incr.","Incre.","Incl. RTP"]
["NO.","Month","(1)","(2)","(3)","(4)","(5)","(6)","(7)","(8)","(9)","(10)","(11)","(12)","(13)","(14)","(15)","(16)","(17)","(18)","(19)","(20)","(21)","(22)"]
[]
[42,{"$f":"'WP FR-16(7)(v) RS - KW'!$B$27","v":"AUGUST"}]
[43,{"$f":"B52","v":"Calculated Peaks (a)"},{"$f":"VALUE(LEFT(VLOOKUP(B70,CoinPeakTable,9,FALSE),5))","v":"2020-08-28"},{"$f":"VALUE(RIGHT(VLOOKUP(B70,CoinPeakTable,9,FALSE),5))","v":0.75},{"$f":"'WP FR-16(7)(v) RS - KW'!$I$27","v":348106},{"$f":"'WP FR-16(7)(v) DS Tot - KW'!D24","v":183976},{"$f":"'WP FR-16(7)(v) DS Tot - KW'!E24","v":8736},{"$f":"'WP FR-16(7)(v) GSFL - KW'!$I27","v":836},{"$f":"'WP FR-16(7)(v) EH - KW'!$I27","v":0},{"$f":"'WP FR-16(7)(v) SP - KW'!$I27","v":48},{"$f":"'WP FR-16(7)(v) DT Sec - KW'!I27","v":97616},{"$f":"'WP FR-16(7)(v) DT Pri - KW'!I27","v":67355},{"$f":"'WP FR-16(7)(v) DP Pri - KW'!J27","v":3597},{"$f":"'WP FR-16(7)(v) TT - KW'!J25","v":26013},{"$f":"'WP FR-16(7)(v) LT - KW'!I25","v":0},{"$f":"'WP FR-16(7)(v) OTHER - KW'!$I$27","v":22},{"$f":"SUM(E71:P71)","v":736305},{"$f":"'WP FR-16(7)(v) DS Sec - KW'!J106","v":130},{"$f":"'WP FR-16(7)(v) DT Sec - KW'!$I71","v":263},{"$f":"'WP FR-16(7)(v) DT Pri - KW'!$I69","v":0},{"$f":"'WP FR-16(7)(v) DP Pri - KW'!$J68","v":0},{"$f":"'WP FR-16(7)(v) TT - KW'!$J64","v":1984},{"$f":"SUM(R71:V71)","v":2377},{"$f":"W71+Q71","v":738682}]
[44,{"$f":"B53","v":"Peak per Form 1 (b)"},null,null,null,null,null,null,null,null,null,null,null,null,null,null,null,null,null,null,null,null,null,{"$f":"'WP FR-16(7)(v) LossRatios'!E23","v":787000}]
[45,{"$f":"B54","v":"Adjustment to match Form 1 system peak"},null,null,{"$f":"(E71/($E71+$F71+$H71+$I71+$J71+$M71+$O71+$P71))*$X73","v":31345.98564626294},{"$f":"(F71/($E71+$F71+$H71+$I71+$J71+$M71+$O71+$P71))*$X73","v":16566.531617544286},null,{"$f":"(H71/($E71+$F71+$H71+$I71+$J71+$M71+$O71+$P71))*$X73","v":75.27949532692864},{"$f":"(I71/($E71+$F71+$H71+$I71+$J71+$M71+$O71+$P71))*$X73","v":0},{"$f":"(J71/($E71+$F71+$H71+$I71+$J71+$M71+$O71+$P71))*$X73","v":4.3222676742734141},null,null,{"$f":"(M71/($E71+$F71+$H71+$I71+$J71+$M71+$O71+$P71))*$X73","v":323.89993384086398},null,{"$f":"(O71/($E71+$F71+$H71+$I71+$J71+$M71+$O71+$P71))*$X73","v":0},{"$f":"(P71/($E71+$F71+$H71+$I71+$J71+$M71+$O71+$P71))*$X73","v":1.9810393507086481},{"$f":"SUM(E73:P73)","v":48317.999999999993},null,null,null,null,null,{"$f":"SUM(R73:V73)","v":0},{"$f":"X72-X71","v":48318}]
[46,{"$f":"B55","v":"Adjusted Peaks"},null,null,{"$f":"E71+E73","v":379451.98564626294},200542.5316175443,8736,911.27949532692867,0,52.322267674273412,97616,67355,3920.8999338408639,26013,0,23.981039350708649,{"$f":"SUM(E74:P74)","v":784623},{"$f":"R71+R73","v":130},{"$f":"S71+S73","v":263},{"$f":"T71+T73","v":0},{"$f":"U71+U73","v":0},{"$f":"V71+V73","v":1984},{"$f":"SUM(R74:V74)","v":2377},{"$f":"W74+Q74","v":787000}]
[47]
[48,{"$f":"'WP FR-16(7)(v) RS - KW'!$B$28","v":"SEPTEMBER"}]
[49,{"$f":"B71","v":"Calculated Peaks (a)"},{"$f":"VALUE(LEFT(VLOOKUP(B76,CoinPeakTable,9,FALSE),5))","v":"2020-09-04"},{"$f":"VALUE(RIGHT(VLOOKUP(B76,CoinPeakTable,9,FALSE),5))","v":0.66666666666666663},{"$f":"'WP FR-16(7)(v) RS - KW'!$I$28","v":388956},{"$f":"'WP FR-16(7)(v) DS Tot - KW'!D25","v":248050},{"$f":"'WP FR-16(7)(v) DS Tot - KW'!E25","v":12521},{"$f":"'WP FR-16(7)(v) GSFL - KW'!$I28","v":940},{"$f":"'WP FR-16(7)(v) EH - KW'!$I28","v":0},{"$f":"'WP FR-16(7)(v) SP - KW'!$I28","v":61},{"$f":"'WP FR-16(7)(v) DT Sec - KW'!I28","v":115194},{"$f":"'WP FR-16(7)(v) DT Pri - KW'!I28","v":74614},{"$f":"'WP FR-16(7)(v) DP Pri - KW'!J28","v":4020},{"$f":"'WP FR-16(7)(v) TT - KW'!J26","v":24301},{"$f":"'WP FR-16(7)(v) LT - KW'!I26","v":0},{"$f":"'WP FR-16(7)(v) OTHER - KW'!$I$28","v":35},{"$f":"SUM(E77:P77)","v":868692},{"$f":"'WP FR-16(7)(v) DS Sec - KW'!J107","v":16},{"$f":"'WP FR-16(7)(v) DT Sec - KW'!$I72","v":534},{"$f":"'WP FR-16(7)(v) DT Pri - KW'!$I70","v":0},{"$f":"'WP FR-16(7)(v) DP Pri - KW'!$J69","v":0},{"$f":"'WP FR-16(7)(v) TT - KW'!$J65","v":2307},{"$f":"SUM(R77:V77)","v":2857},{"$f":"W77+Q77","v":871549}]
[50,{"$f":"B72","v":"Peak per Form 1 (b)"},null,null,null,null,null,null,null,null,null,null,null,null,null,null,null,null,null,null,null,null,null,{"$f":"'WP FR-16(7)(v) LossRatios'!E24","v":799000}]
[51,{"$f":"B73","v":"Adjustment to match Form 1 system peak"},null,null,{"$f":"(E77/($E77+$F77+$H77+$I77+$J77+$M77+$O77+$P77))*$X79","v":-43949.601197392156},{"$f":"(F77/($E77+$F77+$H77+$I77+$J77+$M77+$O77+$P77))*$X79","v":-28028.102348371343},null,{"$f":"(H77/($E77+$F77+$H77+$I77+$J77+$M77+$O77+$P77))*$X79","v":-106.21413508352775},{"$f":"(I77/($E77+$F77+$H77+$I77+$J77+$M77+$O77+$P77))*$X79","v":0},{"$f":"(J77/($E77+$F77+$H77+$I77+$J77+$M77+$O77+$P77))*$X79","v":-6.8926194043565889},null,null,{"$f":"(M77/($E77+$F77+$H77+$I77+$J77+$M77+$O77+$P77))*$X79","v":-454.23491812317189},null,{"$f":"(O77/($E77+$F77+$H77+$I77+$J77+$M77+$O77+$P77))*$X79","v":0},{"$f":"(P77/($E77+$F77+$H77+$I77+$J77+$M77+$O77+$P77))*$X79","v":-3.9547816254505017},{"$f":"SUM(E79:P79)","v":-72549.000000000015},null,null,null,null,null,{"$f":"SUM(R79:V79)","v":0},{"$f":"X78-X77","v":-72549}]
[52,{"$f":"B74","v":"Adjusted Peaks"},null,null,{"$f":"E77+E79","v":345006.39880260784},220021.89765162865,12521,833.78586491647229,0,54.107380595643413,115194,74614,3565.7650818768279,24301,0,31.045218374549499,{"$f":"SUM(E80:P80)","v":796143},{"$f":"R77+R79","v":16},{"$f":"S77+S79","v":534},{"$f":"T77+T79","v":0},{"$f":"U77+U79","v":0},{"$f":"V77+V79","v":2307},{"$f":"SUM(R80:V80)","v":2857},{"$f":"W80+Q80","v":799000}]
[53]
[54,{"$f":"'WP FR-16(7)(v) RS - KW'!$B$29","v":"OCTOBER"}]
[55,{"$f":"B77","v":"Calculated Peaks (a)"},{"$f":"VALUE(LEFT(VLOOKUP(B82,CoinPeakTable,9,FALSE),5))","v":"2020-10-08"},{"$f":"VALUE(RIGHT(VLOOKUP(B82,CoinPeakTable,9,FALSE),5))","v":0.625},{"$f":"'WP FR-16(7)(v) RS - KW'!$I$29","v":289721},{"$f":"'WP FR-16(7)(v) DS Tot - KW'!D26","v":213072},{"$f":"'WP FR-16(7)(v) DS Tot - KW'!E26","v":10049},{"$f":"'WP FR-16(7)(v) GSFL - KW'!$I29","v":940},{"$f":"'WP FR-16(7)(v) EH - KW'!$I29","v":3009},{"$f":"'WP FR-16(7)(v) SP - KW'!$I29","v":85},{"$f":"'WP FR-16(7)(v) DT Sec - KW'!I29","v":101811},{"$f":"'WP FR-16(7)(v) DT Pri - KW'!I29","v":71722},{"$f":"'WP FR-16(7)(v) DP Pri - KW'!J29","v":3303},{"$f":"'WP FR-16(7)(v) TT - KW'!J27","v":29177},{"$f":"'WP FR-16(7)(v) LT - KW'!I27","v":0},{"$f":"'WP FR-16(7)(v) OTHER - KW'!$I$29","v":31},{"$f":"SUM(E83:P83)","v":722920},{"$f":"'WP FR-16(7)(v) DS Sec - KW'!J108","v":308},{"$f":"'WP FR-16(7)(v) DT Sec - KW'!$I73","v":912},{"$f":"'WP FR-16(7)(v) DT Pri - KW'!$I71","v":0},{"$f":"'WP FR-16(7)(v) DP Pri - KW'!$J70","v":0},{"$f":"'WP FR-16(7)(v) TT - KW'!$J66","v":2201},{"$f":"SUM(R83:V83)","v":3421},{"$f":"W83+Q83","v":726341}]
[56,{"$f":"B78","v":"Peak per Form 1 (b)"},null,null,null,null,null,null,null,null,null,null,null,null,null,null,null,null,null,null,null,null,null,{"$f":"'WP FR-16(7)(v) LossRatios'!E25","v":758000}]
[57,{"$f":"B79","v":"Adjustment to match Form 1 system peak"},null,null,{"$f":"(E83/($E83+$F83+$H83+$I83+$J83+$M83+$O83+$P83))*$X85","v":17979.181354513574},{"$f":"(F83/($E83+$F83+$H83+$I83+$J83+$M83+$O83+$P83))*$X85","v":13222.583553035218},null,{"$f":"(H83/($E83+$F83+$H83+$I83+$J83+$M83+$O83+$P83))*$X85","v":58.333467277976951},{"$f":"(I83/($E83+$F83+$H83+$I83+$J83+$M83+$O83+$P83))*$X85","v":186.72915216960919},{"$f":"(J83/($E83+$F83+$H83+$I83+$J83+$M83+$O83+$P83))*$X85","v":5.2748348070511071},null,null,{"$f":"(M83/($E83+$F83+$H83+$I83+$J83+$M83+$O83+$P83))*$X85","v":204.97387491399775},null,{"$f":"(O83/($E83+$F83+$H83+$I83+$J83+$M83+$O83+$P83))*$X85","v":0},{"$f":"(P83/($E83+$F83+$H83+$I83+$J83+$M83+$O83+$P83))*$X85","v":1.9237632825715802},{"$f":"SUM(E85:P85)","v":31659.000000000004},null,null,null,null,null,{"$f":"SUM(R85:V85)","v":0},{"$f":"X84-X83","v":31659}]
[58,{"$f":"B80","v":"Adjusted Peaks"},null,null,{"$f":"E83+E85","v":307700.18135451357},226294.58355303522,10049,998.33346727797698,3195.7291521696093,90.274834807051107,101811,71722,3507.9738749139979,29177,0,32.923763282571578,{"$f":"SUM(E86:P86)","v":754579},{"$f":"R83+R85","v":308},{"$f":"S83+S85","v":912},{"$f":"T83+T85","v":0},{"$f":"U83+U85","v":0},{"$f":"V83+V85","v":2201},{"$f":"SUM(R86:V86)","v":3421},{"$f":"W86+Q86","v":758000}]
[59]
[60,{"$f":"'WP FR-16(7)(v) RS - KW'!$B$30","v":"NOVEMBER"}]
[61,{"$f":"B83","v":"Calculated Peaks (a)"},{"$f":"VALUE(LEFT(VLOOKUP(B88,CoinPeakTable,9,FALSE),5))","v":"2020-11-27"},{"$f":"VALUE(RIGHT(VLOOKUP(B88,CoinPeakTable,9,FALSE),5))","v":0.79166666666666663},{"$f":"'WP FR-16(7)(v) RS - KW'!$I$30","v":251811},{"$f":"'WP FR-16(7)(v) DS Tot - KW'!D27","v":136157},{"$f":"'WP FR-16(7)(v) DS Tot - KW'!E27","v":6811},{"$f":"'WP FR-16(7)(v) GSFL - KW'!$I30","v":842},{"$f":"'WP FR-16(7)(v) EH - KW'!$I30","v":3350},{"$f":"'WP FR-16(7)(v) SP - KW'!$I30","v":47},{"$f":"'WP FR-16(7)(v) DT Sec - KW'!I30","v":86386},{"$f":"'WP FR-16(7)(v) DT Pri - KW'!I30","v":59274},{"$f":"'WP FR-16(7)(v) DP Pri - KW'!J30","v":3526},{"$f":"'WP FR-16(7)(v) TT - KW'!J28","v":30259},{"$f":"'WP FR-16(7)(v) LT - KW'!I28","v":4712},{"$f":"'WP FR-16(7)(v) OTHER - KW'!$I$30","v":29},{"$f":"SUM(E89:P89)","v":583204},{"$f":"'WP FR-16(7)(v) DS Sec - KW'!J109","v":98},{"$f":"'WP FR-16(7)(v) DT Sec - KW'!$I74","v":573},{"$f":"'WP FR-16(7)(v) DT Pri - KW'!$I72","v":0},{"$f":"'WP FR-16(7)(v) DP Pri - KW'!$J71","v":0},{"$f":"'WP FR-16(7)(v) TT - KW'!$J67","v":1622},{"$f":"SUM(R89:V89)","v":2293},{"$f":"W89+Q89","v":585497}]
[62,{"$f":"B84","v":"Peak per Form 1 (b)"},null,null,null,null,null,null,null,null,null,null,null,null,null,null,null,null,null,null,null,null,null,{"$f":"'WP FR-16(7)(v) LossRatios'!E26","v":632000}]
[63,{"$f":"B85","v":"Adjustment to match Form 1 system peak"},null,null,{"$f":"(E89/($E89+$F89+$H89+$I89+$J89+$M89+$O89+$P89))*$X91","v":29240.267615375778},{"$f":"(F89/($E89+$F89+$H89+$I89+$J89+$M89+$O89+$P89))*$X91","v":15810.536941224647},null,{"$f":"(H89/($E89+$F89+$H89+$I89+$J89+$M89+$O89+$P89))*$X91","v":97.7729540494514},{"$f":"(I89/($E89+$F89+$H89+$I89+$J89+$M89+$O89+$P89))*$X91","v":389.00165803522822},{"$f":"(J89/($E89+$F89+$H89+$I89+$J89+$M89+$O89+$P89))*$X91","v":5.4576352022852923},null,null,{"$f":"(M89/($E89+$F89+$H89+$I89+$J89+$M89+$O89+$P89))*$X91","v":409.43876006931788},null,{"$f":"(O89/($E89+$F89+$H89+$I89+$J89+$M89+$O89+$P89))*$X91","v":547.15695900358071},{"$f":"(P89/($E89+$F89+$H89+$I89+$J89+$M89+$O89+$P89))*$X91","v":3.3674770397079463},{"$f":"SUM(E91:P91)","v":46503},null,null,null,null,null,{"$f":"SUM(R91:V91)","v":0},{"$f":"X90-X89","v":46503}]
[64,{"$f":"B86","v":"Adjusted Peaks"},null,null,{"$f":"E89+E91","v":281051.26761537581},151967.53694122465,6811,939.77295404945141,3739.001658035228,52.457635202285289,86386,59274,3935.4387600693181,30259,5259.1569590035806,32.36747703970795,{"$f":"SUM(E92:P92)","v":629707},{"$f":"R89+R91","v":98},{"$f":"S89+S91","v":573},{"$f":"T89+T91","v":0},{"$f":"U89+U91","v":0},{"$f":"V89+V91","v":1622},{"$f":"SUM(R92:V92)","v":2293},{"$f":"W92+Q92","v":632000}]
[65]
[66,{"$f":"'WP FR-16(7)(v) RS - KW'!$B$31","v":"DECEMBER"}]
[67,{"$f":"B89","v":"Calculated Peaks (a)"},{"$f":"VALUE(LEFT(VLOOKUP(B94,CoinPeakTable,9,FALSE),5))","v":"2020-12-11"},{"$f":"VALUE(RIGHT(VLOOKUP(B94,CoinPeakTable,9,FALSE),5))","v":0.33333333333333331},{"$f":"'WP FR-16(7)(v) RS - KW'!$I$31","v":277422},{"$f":"'WP FR-16(7)(v) DS Tot - KW'!D28","v":155421},{"$f":"'WP FR-16(7)(v) DS Tot - KW'!E28","v":7592},{"$f":"'WP FR-16(7)(v) GSFL - KW'!$I31","v":906},{"$f":"'WP FR-16(7)(v) EH - KW'!$I31","v":7301},{"$f":"'WP FR-16(7)(v) SP - KW'!$I31","v":28},{"$f":"'WP FR-16(7)(v) DT Sec - KW'!I31","v":96191},{"$f":"'WP FR-16(7)(v) DT Pri - KW'!I31","v":62640},{"$f":"'WP FR-16(7)(v) DP Pri - KW'!J31","v":4775},{"$f":"'WP FR-16(7)(v) TT - KW'!J29","v":34288},{"$f":"'WP FR-16(7)(v) LT - KW'!I29","v":0},{"$f":"'WP FR-16(7)(v) OTHER - KW'!$I$31","v":56},{"$f":"SUM(E95:P95)","v":646620},{"$f":"'WP FR-16(7)(v) DS Sec - KW'!J110","v":115},{"$f":"'WP FR-16(7)(v) DT Sec - KW'!$I75","v":381},{"$f":"'WP FR-16(7)(v) DT Pri - KW'!$I73","v":0},{"$f":"'WP FR-16(7)(v) DP Pri - KW'!$J72","v":0},{"$f":"'WP FR-16(7)(v) TT - KW'!$J68","v":1711},{"$f":"SUM(R95:V95)","v":2207},{"$f":"W95+Q95","v":648827}]
[68,{"$f":"B90","v":"Peak per Form 1 (b)"},null,null,null,null,null,null,null,null,null,null,null,null,null,null,null,null,null,null,null,null,null,{"$f":"'WP FR-16(7)(v) LossRatios'!E27","v":630000}]
[69,{"$f":"B91","v":"Adjustment to match Form 1 system peak"},null,null,{"$f":"(E95/($E95+$F95+$H95+$I95+$J95+$M95+$O95+$P95))*$X97","v":-11713.206044282579},{"$f":"(F95/($E95+$F95+$H95+$I95+$J95+$M95+$O95+$P95))*$X97","v":-6562.1262791287008},null,{"$f":"(H95/($E95+$F95+$H95+$I95+$J95+$M95+$O95+$P95))*$X97","v":-38.252787003626302},{"$f":"(I95/($E95+$F95+$H95+$I95+$J95+$M95+$O95+$P95))*$X97","v":-308.26004184710331},{"$f":"(J95/($E95+$F95+$H95+$I95+$J95+$M95+$O95+$P95))*$X97","v":-1.1822053378604154},null,null,{"$f":"(M95/($E95+$F95+$H95+$I95+$J95+$M95+$O95+$P95))*$X97","v":-201.60823172441016},null,{"$f":"(O95/($E95+$F95+$H95+$I95+$J95+$M95+$O95+$P95))*$X97","v":0},{"$f":"(P95/($E95+$F95+$H95+$I95+$J95+$M95+$O95+$P95))*$X97","v":-2.3644106757208307},{"$f":"SUM(E97:P97)","v":-18827},null,null,null,null,null,{"$f":"SUM(R97:V97)","v":0},{"$f":"X96-X95","v":-18827}]
[70,{"$f":"B92","v":"Adjusted Peaks"},null,null,{"$f":"E95+E97","v":265708.79395571741},148858.87372087128,7592,867.74721299637372,6992.7399581528971,26.817794662139583,96191,62640,4573.39176827559,34288,0,53.635589324279167,{"$f":"SUM(E98:P98)","v":627793},{"$f":"R95+R97","v":115},{"$f":"S95+S97","v":381},{"$f":"T95+T97","v":0},{"$f":"U95+U97","v":0},{"$f":"V95+V97","v":1711},{"$f":"SUM(R98:V98)","v":2207},{"$f":"W98+Q98","v":630000}]
[71]
[72,"System Total Peaks",null,null,{"$f":"E95+E89+E83+E77+E71+E52+E46+E40+E34+E28+E22+E16","v":3728756},2122167,104394,10596,41990,580,1158197,768344,35706,342823,9204,859,8323616,1673,4016,0,0,21201,26890,8350506]
[73,"Peak per Form 1",null,null,null,null,null,null,null,null,null,null,null,null,null,null,null,null,null,null,null,null,null,{"$f":"X96+X90+X84+X78+X72+X53+X47+X41+X35+X29+X23+X17","v":8613000}]
[74,"Adjustment to match Form 1 system peak",null,null,{"$f":"E97+E91+E85+E79+E73+E54+E48+E42+E36+E30+E24+E18","v":153937.97391252592},102776.2120715761,0,601.59976290726536,2190.8249381927685,32.022948052839837,0,0,1376.802825535332,0,1492.8003099336963,85.7632312760377,262493.99999999994,0,0,0,0,0,0,{"$f":"X97+X91+X85+X79+X73+X54+X48+X42+X36+X30+X24+X18","v":262494}]
[75,"Adjusted Peaks",null,null,{"$f":"E98+E92+E86+E80+E74+E55+E49+E43+E37+E31+E25+E19","v":3882693.9739125264},2224943.2120715762,104394,11197.599762907266,44180.824938192767,612.02294805283987,1158197,768344,37082.802825535327,342823,10696.800309933697,944.7632312760378,8586110,1673,4016,0,0,21201,26890,{"$f":"X98+X92+X86+X80+X74+X55+X49+X43+X37+X31+X25+X19","v":8613000}]
[]
[null,"(a) Sources: Work paper FR-16(7)(v), Pages 13-32."]
[null,"(b) Source: Form 1, Page 401b, Col (d)"]

{"sheet":"WP FR-16(7)(v) RS - KW","index":40,"n_rows":505,"n_cols":17,"rows_kept":505,"cut":false,"hidden":false,"merged":[[11,5,11,8]]}
[{"$f":"'WP FR-16(7)(v)-KW & KWH @Gen'!A1","v":"DUKE ENERGY KENTUCKY, INC."},null,null,null,null,null,null,null,null,null,null,null,null,null,null,{"$f":"'WP FR-16(7)(v)-KW & KWH @Gen'!G1","v":"Work Paper FR-16(7)(v) "}]
[{"$f":"coss_type","v":"ELECTRIC COST OF SERVICE STUDY "},null,null,null,null,null,null,null,null,null,null,null,null,null,null,{"$f":"'WP FR-16(7)(v)-KW & KWH @Gen'!G2","v":"Witness Responsible:"}]
[{"$f":"case_name","v":"CASE NO: 2019-00271"},null,null,null,null,null,null,null,null,null,null,null,null,null,null,{"$f":"PROPER(Witness)","v":"James E. Ziolkowski"}]
[{"$f":"alloc_factors","v":"ALLOCATION FACTORS FOR COST OF SERVICE STUDY"},null,null,null,null,null,null,null,null,null,null,null,null,null,null,"Page 13"]
[{"$f":"'WP FR-16(7)(v)-KW & KWH @Gen'!A5","v":"TWELVE MONTHS ENDING DECEMBER 31, 2018"}]
[]
["DERIVATION OF COINCIDENT AND NON-COINCIDENT KW DEMANDS"]
["RATE GROUP: RS -  RESIDENTIAL"]
[]
[]
[null,null,null,null,null,null,null,null,null,null,"NON-COINCIDENT PEAK"]
[null,null,null," ",null,"COINCIDENT PEAK DEMAND",null,null,null,null,"(\"NCP\") DEMAND",null,null,"DIVERSIFIED PEAK DEMAND"]
[null,null,null,null,null,"COIN","CP","TRANS & DIST","CP",null,null,null,null,null,"DIVERSIFIED",null,"DIVERSIFIED"]
[null,null,null,null,null," PEAK","KW DMD.","LOSS","KW DMD.",null,"NON-COIN","NON-COIN",null,"DIVERSIFIED","CLASS","DISTR. LOSS","CLASS"]
[null,null,null," ","AVERAGE","LOAD","AT","FACTOR","AT",null,"CLASS","KW DMD.",null,"CLASS","KW DEMAND","FACTOR TO","KW DEMAND"]
[null,null,null,"TOTAL","HRLY KW","FACTOR","DELIVERY","TO GEN","GENERATION",null,"PEAK LOAD","AT DELIVERY",null,"PEAK LOAD","AT DELIVERY","TRANSMISSION","AT TRANSMISSION"]
["LINE",null,"HOURS","KWH(a)","(2) / (1)","(b)","(3) / (4)","(c)","(5) * (6)",null,"FACTOR (b)","(3) / (8)",null,"FACTOR (b)","(3) / (10)","(d)","(11)* (12)"]
["NO."," MONTH","(1)","(2)","(3)","(4)","(5)","(6)","(7)",null,"(8)","(9)",null,"(10)","(11)","(12)","(13)"]
[1]
[{"$f":"1+A19","v":2},"JANUARY",{"$f":"24*31","v":744},{"$f":"'WP FR-16(7)(v) KWH'!B11","v":182516347},{"$f":"ROUND(D20/C20,0)","v":245318},{"$f":"'WP FR-16(7)(v) Load Res RS'!L15/100","v":0.64916350069000006},{"$f":"IF(F20=0,0,ROUND(E20/F20,0))","v":377899},{"$f":"'WP FR-16(7)(v) LossRatios'!$M$16+1","v":1.0389600000000001},{"$f":"ROUND(G20*H20,0)","v":392622},null,{"$f":"'WP FR-16(7)(v) Load Res RS'!J15/100","v":0.27274541889999998},{"$f":"ROUND(E20/K20,0)","v":899439},null,{"$f":"'WP FR-16(7)(v) Load Res RS'!K15/100","v":0.57664431770000002},{"$f":"IF(N20=0,0,ROUND(E20/N20,0))","v":425423},{"$f":"'WP FR-16(7)(v) LossRatios'!$K$16+1","v":1.0323},{"$f":"ROUND(O20*P20,0)","v":439164}]
[3,"FEBRUARY",{"$f":"24*28","v":672},{"$f":"'WP FR-16(7)(v) KWH'!C11","v":137671405},{"$f":"ROUND(D21/C21,0)","v":204868},{"$f":"'WP FR-16(7)(v) Load Res RS'!L17/100","v":0.62277017379999999},{"$f":"IF(F21=0,0,ROUND(E21/F21,0))","v":328962},{"$f":"'WP FR-16(7)(v) LossRatios'!$M$17+1","v":1.03592},{"$f":"ROUND(G21*H21,0)","v":340778},null,{"$f":"'WP FR-16(7)(v) Load Res RS'!J17/100","v":0.23258468996000001},880832,null,{"$f":"'WP FR-16(7)(v) Load Res RS'!K17/100","v":0.59334211402999992},{"$f":"IF(N21=0,0,ROUND(E21/N21,0))","v":345278},{"$f":"'WP FR-16(7)(v) LossRatios'!$K$17+1","v":1.02979},{"$f":"ROUND(O21*P21,0)","v":355564}]
[4,"MARCH",{"$f":"$C$20","v":744},{"$f":"'WP FR-16(7)(v) KWH'!D$11","v":113126208},152051,{"$f":"'WP FR-16(7)(v) Load Res RS'!L19/100","v":0.63884286378999999},238010,{"$f":"'WP FR-16(7)(v) LossRatios'!$M$18+1","v":1.0358000000000001},246531,null,{"$f":"'WP FR-16(7)(v) Load Res RS'!J19/100","v":0.23860119827999998},637260,null,{"$f":"'WP FR-16(7)(v) Load Res RS'!K19/100","v":0.63884286378999999},238010,{"$f":"'WP FR-16(7)(v) LossRatios'!$K$18+1","v":1.02969},245077]
[5,"APRIL",{"$f":"24*30","v":720},{"$f":"'WP FR-16(7)(v) KWH'!E$11","v":110498891},153471,{"$f":"'WP FR-16(7)(v) Load Res RS'!L21/100","v":0.88131682670999989},174138,{"$f":"'WP FR-16(7)(v) LossRatios'!$M$19+1","v":1.0354300000000001},180308,null,{"$f":"'WP FR-16(7)(v) Load Res RS'!J21/100","v":0.19152132007},801326,null,{"$f":"'WP FR-16(7)(v) Load Res RS'!K21/100","v":0.58188863369999999},263746,{"$f":"'WP FR-16(7)(v) LossRatios'!$K$19+1","v":1.02939},271497]
[6,"MAY",{"$f":"$C$20","v":744},{"$f":"'WP FR-16(7)(v) KWH'!F$11","v":95656110},128570,{"$f":"'WP FR-16(7)(v) Load Res RS'!L23/100","v":0.51546999390000003},249423,{"$f":"'WP FR-16(7)(v) LossRatios'!$M$20+1","v":1.0381100000000001},258929,null,{"$f":"'WP FR-16(7)(v) Load Res RS'!J23/100","v":0.22933772192999999},560614,null,{"$f":"'WP FR-16(7)(v) Load Res RS'!K23/100","v":0.47704173019000001},269515,{"$f":"'WP FR-16(7)(v) LossRatios'!$K$20+1","v":1.0316000000000001},278032]
[7,"JUNE",{"$f":"$C$23","v":720},{"$f":"'WP FR-16(7)(v) KWH'!G$11","v":137155984},190494,{"$f":"'WP FR-16(7)(v) Load Res RS'!L25/100","v":0.54265196899000001},351043,{"$f":"'WP FR-16(7)(v) LossRatios'!$M$21+1","v":1.0404100000000001},365229,null,{"$f":"'WP FR-16(7)(v) Load Res RS'!J25/100","v":0.27342017556999998},696708,null,{"$f":"'WP FR-16(7)(v) Load Res RS'!K25/100","v":0.50285577865999997},378824,{"$f":"'WP FR-16(7)(v) LossRatios'!$K$21+1","v":1.0335000000000001},391515]
[8,"JULY",{"$f":"$C$20","v":744},{"$f":"'WP FR-16(7)(v) KWH'!H$11","v":158944123},213635,{"$f":"'WP FR-16(7)(v) Load Res RS'!L27/100","v":0.57215171675999998},373389,{"$f":"'WP FR-16(7)(v) LossRatios'!$M$22+1","v":1.0400499999999999},388343,null,{"$f":"'WP FR-16(7)(v) Load Res RS'!J27/100","v":0.28768273735},742606,null,{"$f":"'WP FR-16(7)(v) Load Res RS'!K27/100","v":0.56054191839},381122,{"$f":"'WP FR-16(7)(v) LossRatios'!$K$22+1","v":1.0331999999999999},393775]
[9,"AUGUST",{"$f":"$C$20","v":744},{"$f":"'WP FR-16(7)(v) KWH'!I$11","v":141794873},190585,{"$f":"'WP FR-16(7)(v) Load Res RS'!L29/100","v":0.56911849955999994},334878,{"$f":"'WP FR-16(7)(v) LossRatios'!$M$23+1","v":1.0395000000000001},348106,null,{"$f":"'WP FR-16(7)(v) Load Res RS'!J29/100","v":0.26739730978999998},712741,null,{"$f":"'WP FR-16(7)(v) Load Res RS'!K29/100","v":0.54334971447000002},350759,{"$f":"'WP FR-16(7)(v) LossRatios'!$K$23+1","v":1.0327500000000001},362246]
[10,"SEPTEMBER",{"$f":"$C$23","v":720},{"$f":"'WP FR-16(7)(v) KWH'!J$11","v":144333320},200463,{"$f":"'WP FR-16(7)(v) Load Res RS'!L31/100","v":0.53618429176000004},373870,{"$f":"'WP FR-16(7)(v) LossRatios'!$M$24+1","v":1.0403500000000001},388956,null,{"$f":"'WP FR-16(7)(v) Load Res RS'!J31/100","v":0.23183649760000002},864674,null,{"$f":"'WP FR-16(7)(v) Load Res RS'!K31/100","v":0.44230910280000002},453219,{"$f":"'WP FR-16(7)(v) LossRatios'!$K$24+1","v":1.03345},468379]
[11,"OCTOBER",{"$f":"$C$20","v":744},{"$f":"'WP FR-16(7)(v) KWH'!K$11","v":112881524},151722,{"$f":"'WP FR-16(7)(v) Load Res RS'!L33/100","v":0.54367247401999996},279069,{"$f":"'WP FR-16(7)(v) LossRatios'!$M$25+1","v":1.03817},289721,null,{"$f":"'WP FR-16(7)(v) Load Res RS'!J33/100","v":0.18614174297000002},815089,null,{"$f":"'WP FR-16(7)(v) Load Res RS'!K33/100","v":0.45243052255999999},335349,{"$f":"'WP FR-16(7)(v) LossRatios'!$K$25+1","v":1.03165},345963]
[12,"NOVEMBER",{"$f":"$C$23","v":720},{"$f":"'WP FR-16(7)(v) KWH'!L$11","v":101316672},140718,{"$f":"'WP FR-16(7)(v) Load Res RS'!L35/100","v":0.57886183005000003},243094,{"$f":"'WP FR-16(7)(v) LossRatios'!$M$26+1","v":1.03586},251811,null,{"$f":"'WP FR-16(7)(v) Load Res RS'!J35/100","v":0.2219617183},633974,null,{"$f":"'WP FR-16(7)(v) Load Res RS'!K35/100","v":0.52958865992000004},265712,{"$f":"'WP FR-16(7)(v) LossRatios'!$K$26+1","v":1.0297400000000001},273614]
[13,"DECEMBER",{"$f":"$C$20","v":744},{"$f":"'WP FR-16(7)(v) KWH'!M$11","v":137578627},184918,{"$f":"'WP FR-16(7)(v) Load Res RS'!L37/100","v":0.69042016834999997},267834,{"$f":"'WP FR-16(7)(v) LossRatios'!$M$27+1","v":1.0358000000000001},{"$f":"IF(H31=0,0,ROUND(G31*H31,0))","v":277422},null,{"$f":"'WP FR-16(7)(v) Load Res RS'!J37/100","v":0.24161025716000001},{"$f":"IF(K31=0,0,ROUND(E31/K31,0))","v":765357},null,{"$f":"'WP FR-16(7)(v) Load Res RS'!K37/100","v":0.64575252475},286360,{"$f":"'WP FR-16(7)(v) LossRatios'!$K$27+1","v":1.02969},294862]
[14,null,{"$f":"SUM(C20:C31)","v":8760},{"$f":"SUM(D20:D31)","v":1573474084},null,null,{"$f":"SUM(G20:G31)","v":3591609},null,{"$f":"SUM(I20:I31)","v":3728756},null,null,{"$f":"SUM(L20:L31)","v":9010620},null,null,{"$f":"SUM(O20:O31)","v":3993317},null,{"$f":"SUM(Q20:Q31)","v":4119688}]
[]
[null,"(a) Source: WPFR-16(7)(v), Page 51."]
[null,"(b) Source: WPFR-16(7)(v), Page 39"]
[null,"(c) Source: WPFR-16(7)(v) Page 33, Col 5 (Loss % + 1)"]
[null,"(d) Source: WPFR-16(7)(v) Page 33, Col 2  (Loss % + 1)"]
[null,"(e) Source: Form 1, Page 401b, Col (f)"]
[]
[]
[]
[]
[]
[]
[]
[]
[]
[]
[]
[]
[]
[]
[]
[]
[]
[]
[]
[]
[]
[]
[]
[]
[]
[]
[]
[]
[]
[]
[]
[]
[]
[]
[]
[]
[]
[]
[]
[]
[]
[]
[]
[]
[]
[]
[]
[]
[]
[]
[]
[]
[]
[]
[]
[]
[]
[]
[]
[]
[]
[]
[]
[]
[]
[]
[]
[]
[]
[]
[]
[]
[]
[]
[]
[]
[]
[]
[]
[]
[]
[]
[]
[]
[]
[]
[]
[]
[]
[]
[]
[]
[]
[]
[]
[]
[]
[]
[]
[]
[]
[]
[]
[]
[]
[]
[]
[]
[]
[]
[]
[]
[]
[]
[]
[]
[]
[]
[]
[]
[]
[]
[]
[]
[]
[]
[]
[]
[]
[]
[]
[]
[]
[]
[]
[]
[]
[]
[]
[]
[]
[]
[]
[]
[]
[]
[]
[]
[]
[]
[]
[]
[]
[]
[]
[]
[]
[]
[]
[]
[]
[]
[]
[]
[]
[]
[]
[]
[]
[]
[]
[]
[]
[]
[]
[]
[]
[]
[]
[]
[]
[]
[]
[]
[]
[]
[]
[]
[]
[]
[]
[]
[]
[]
[]
[]
[]
[]
[]
[]
[]
[]
[]
[]
[]
[]
[]
[]
[]
[]
[]
[]
[]
[]
[]
[]
[]
[]
[]
[]
[]
[]
[]
[]
[]
[]
[]
[]
[]
[]
[]
[]
[]
[]
[]
[]
[]
[]
[]
[]
[]
[]
[]
[]
[]
[]
[]
[]
[]
[]
[]
[]
[]
[]
[]
[]
[]
[]
[]
[]
[]
[]
[]
[]
[]
[]
[]
[]
[]
[]
[]
[]
[]
[]
[]
[]
[]
[]
[]
[]
[]
[]
[]
[]
[]
[]
[]
[]
[]
[]
[]
[]
[]
[]
[]
[]
[]
[]
[]
[]
[]
[]
[]
[]
[]
[]
[]
[]
[]
[]
[]
[]
[]
[]
[]
[]
[]
[]
[]
[]
[]
[]
[]
[]
[]
[]
[]
[]
[]
[]
[]
[]
[]
[]
[]
[]
[]
[]
[]
[]
[]
[]
[]
[]
[]
[]
[]
[]
[]
[]
[]
[]
[]
[]
[]
[]
[]
[]
[]
[]
[]
[]
[]
[]
[]
[]
[]
[]
[]
[]
[]
[]
[]
[]
[]
[]
[]
[]
[]
[]
[]
[]
[]
[]
[]
[]
[]
[]
[]
[]
[]
[]
[]
[]
[]
[]
[]
[]
[]
[]
[]
[]
[]
[]
[]
[]
[]
[]
[]
[]
[]
[]
[]
[]
[]
[]
[]
[]
[]
[]
[]
[]
[]
[]
[]
[]
[]
[]
[]
[]
[]
[]
[]
[]
[]
[]
[]
[]
[]
[]
[]
[]
[]
[]
[]
[]
[]
[]
[]
[]
[]
[]
[]
[]
[]
[]
[]
[]
[]
[]
[]
[]
[]
[]
[]
[]
[null,null,null,null,0]

{"sheet":"WP FR-16(7)(v) DS Tot - KW","index":41,"n_rows":61,"n_cols":9,"rows_kept":61,"cut":false,"hidden":false,"merged":[]}
[{"$f":"'WP FR-16(7)(v)-KW & KWH @Gen'!A1","v":"DUKE ENERGY KENTUCKY, INC."},null,null,null,null,null,null,null,{"$f":"'WP FR-16(7)(v)-KW & KWH @Gen'!G1","v":"Work Paper FR-16(7)(v) "}]
[{"$f":"coss_type","v":"ELECTRIC COST OF SERVICE STUDY "},null,null,null,null,null,null,null,{"$f":"'WP FR-16(7)(v)-KW & KWH @Gen'!G2","v":"Witness Responsible:"}]
[{"$f":"case_name","v":"CASE NO: 2019-00271"},null,null,null,null,null,null,null,{"$f":"PROPER(Witness)","v":"James E. Ziolkowski"}]
[{"$f":"alloc_factors","v":"ALLOCATION FACTORS FOR COST OF SERVICE STUDY"},null,null,null,null,null,null,null,"Page 14"]
[{"$f":"'WP FR-16(7)(v)-KW & KWH @Gen'!A5","v":"TWELVE MONTHS ENDING DECEMBER 31, 2018"}]
[]
["SUMMARY OF COININCIDENT AND NON-COINCIDENT KW DEMANDS"]
["RATE GROUP: DS -  TOTAL DISTRIBUTION - SECONDARY VOLTAGE"]
[]
[null,null,null," "," ","TOTAL",null," "]
[null,null,null,"SMALL /",null,"DISTRIBUTION",null,"LARGE","TOTAL"]
[null," ",null,"MEDIUM","LARGE","EXCL. RTP INCR.",null,"RTP","DISTR"]
["LINE",null,null,"DISTR","DISTR","(1)+(2)",null,"INCREMENTAL","(3)+(4)"]
["NO.","MONTH",null,"(1)","(2)","(3)",null,"(4)","(5)"]
[1]
[{"$f":"1+A15","v":2},null,"********************   SYSTEM PEAK COINCIDENT KW DEMANDS (a)   ********************"]
[3,{"$f":"'WP FR-16(7)(v) RS - KW'!B20","v":"JANUARY"},null,{"$f":"'WP FR-16(7)(v) DS Sec - KW'!J180","v":167091},{"$f":"'WP FR-16(7)(v) DS Sec - KW'!J58+'WP FR-16(7)(v) DS Sec - KW'!J139","v":8354},{"$f":"D17+E17","v":175445},null,{"$f":"'WP FR-16(7)(v) DS Sec - KW'!J99","v":164},{"$f":"SUM(F17:H17)","v":175609}]
[4,{"$f":"'WP FR-16(7)(v) RS - KW'!B21","v":"FEBRUARY"},null,{"$f":"'WP FR-16(7)(v) DS Sec - KW'!J181","v":160707},{"$f":"'WP FR-16(7)(v) DS Sec - KW'!J59+'WP FR-16(7)(v) DS Sec - KW'!J140","v":7867},{"$f":"D18+E18","v":168574},null,{"$f":"'WP FR-16(7)(v) DS Sec - KW'!J100","v":129},168703]
[5,{"$f":"'WP FR-16(7)(v) RS - KW'!B22","v":"MARCH"},null,{"$f":"'WP FR-16(7)(v) DS Sec - KW'!J182","v":124839},{"$f":"'WP FR-16(7)(v) DS Sec - KW'!J60+'WP FR-16(7)(v) DS Sec - KW'!J141","v":6384},131223,null,{"$f":"'WP FR-16(7)(v) DS Sec - KW'!J101","v":100},131323]
[6,{"$f":"'WP FR-16(7)(v) RS - KW'!B23","v":"APRIL"},null,{"$f":"'WP FR-16(7)(v) DS Sec - KW'!J183","v":158915},{"$f":"'WP FR-16(7)(v) DS Sec - KW'!J61+'WP FR-16(7)(v) DS Sec - KW'!J142","v":7800},166715,null,{"$f":"'WP FR-16(7)(v) DS Sec - KW'!J102","v":148},166863]
[7,{"$f":"'WP FR-16(7)(v) RS - KW'!B24","v":"MAY"},null,{"$f":"'WP FR-16(7)(v) DS Sec - KW'!J184","v":161275},{"$f":"'WP FR-16(7)(v) DS Sec - KW'!J62+'WP FR-16(7)(v) DS Sec - KW'!J143","v":7923},169198,null,{"$f":"'WP FR-16(7)(v) DS Sec - KW'!J103","v":130},169328]
[8,{"$f":"'WP FR-16(7)(v) RS - KW'!B25","v":"JUNE"},null,{"$f":"'WP FR-16(7)(v) DS Sec - KW'!J185","v":208630},{"$f":"'WP FR-16(7)(v) DS Sec - KW'!J63+'WP FR-16(7)(v) DS Sec - KW'!J144","v":10423},219053,null,{"$f":"'WP FR-16(7)(v) DS Sec - KW'!J104","v":176},219229]
[9,{"$f":"'WP FR-16(7)(v) RS - KW'!B26","v":"JULY"},null,{"$f":"'WP FR-16(7)(v) DS Sec - KW'!J186","v":204034},{"$f":"'WP FR-16(7)(v) DS Sec - KW'!J64+'WP FR-16(7)(v) DS Sec - KW'!J145","v":9934},213968,null,{"$f":"'WP FR-16(7)(v) DS Sec - KW'!J105","v":159},214127]
[10,{"$f":"'WP FR-16(7)(v) RS - KW'!B27","v":"AUGUST"},null,{"$f":"'WP FR-16(7)(v) DS Sec - KW'!J187","v":183976},{"$f":"'WP FR-16(7)(v) DS Sec - KW'!J65+'WP FR-16(7)(v) DS Sec - KW'!J146","v":8736},192712,null,{"$f":"'WP FR-16(7)(v) DS Sec - KW'!J106","v":130},192842]
[11,{"$f":"'WP FR-16(7)(v) RS - KW'!B28","v":"SEPTEMBER"},null,{"$f":"'WP FR-16(7)(v) DS Sec - KW'!J188","v":248050},{"$f":"'WP FR-16(7)(v) DS Sec - KW'!J66+'WP FR-16(7)(v) DS Sec - KW'!J147","v":12521},260571,null,{"$f":"'WP FR-16(7)(v) DS Sec - KW'!J107","v":16},260587]
[12,{"$f":"'WP FR-16(7)(v) RS - KW'!B29","v":"OCTOBER"},null,{"$f":"'WP FR-16(7)(v) DS Sec - KW'!J189","v":213072},{"$f":"'WP FR-16(7)(v) DS Sec - KW'!J67+'WP FR-16(7)(v) DS Sec - KW'!J148","v":10049},223121,null,{"$f":"'WP FR-16(7)(v) DS Sec - KW'!J108","v":308},223429]
[13,{"$f":"'WP FR-16(7)(v) RS - KW'!B30","v":"NOVEMBER"},null,{"$f":"'WP FR-16(7)(v) DS Sec - KW'!J190","v":136157},{"$f":"'WP FR-16(7)(v) DS Sec - KW'!J68+'WP FR-16(7)(v) DS Sec - KW'!J149","v":6811},142968,null,{"$f":"'WP FR-16(7)(v) DS Sec - KW'!J109","v":98},143066]
[14,{"$f":"'WP FR-16(7)(v) RS - KW'!B31","v":"DECEMBER"},null,{"$f":"'WP FR-16(7)(v) DS Sec - KW'!J191","v":155421},{"$f":"'WP FR-16(7)(v) DS Sec - KW'!J69+'WP FR-16(7)(v) DS Sec - KW'!J150","v":7592},163013,null,{"$f":"'WP FR-16(7)(v) DS Sec - KW'!J110","v":115},163128]
[15,null,null,{"$f":"SUM(D17:D28)","v":2122167},{"$f":"SUM(E17:E28)","v":104394},{"$f":"SUM(F17:F28)","v":2226561},null,{"$f":"SUM(H17:H28)","v":1673},{"$f":"SUM(I17:I28)","v":2228234}]
[16]
[17,null,"*********************   MAXIMUM NON-COINCIDENT KW DEMANDS (a)   ********************"]
[18,{"$f":"B17","v":"JANUARY"},null,{"$f":"'WP FR-16(7)(v) DS Sec - KW'!M180","v":240021},{"$f":"'WP FR-16(7)(v) DS Sec - KW'!M58+'WP FR-16(7)(v) DS Sec - KW'!M139","v":12000},{"$f":"D32+E32","v":252021},null,{"$f":"'WP FR-16(7)(v) DS Sec - KW'!M99","v":236},{"$f":"SUM(F32:H32)","v":252257}]
[19,"FEBRUARY",null,{"$f":"'WP FR-16(7)(v) DS Sec - KW'!M181","v":255734},{"$f":"'WP FR-16(7)(v) DS Sec - KW'!M59+'WP FR-16(7)(v) DS Sec - KW'!M140","v":12519},268253,null,{"$f":"'WP FR-16(7)(v) DS Sec - KW'!M100","v":206},268459]
[20,"MARCH",null,{"$f":"'WP FR-16(7)(v) DS Sec - KW'!M182","v":209194},{"$f":"'WP FR-16(7)(v) DS Sec - KW'!M60+'WP FR-16(7)(v) DS Sec - KW'!M141","v":10696},219890,null,{"$f":"'WP FR-16(7)(v) DS Sec - KW'!M101","v":168},220058]
[21,"APRIL",null,{"$f":"'WP FR-16(7)(v) DS Sec - KW'!M183","v":247010},{"$f":"'WP FR-16(7)(v) DS Sec - KW'!M61+'WP FR-16(7)(v) DS Sec - KW'!M142","v":12125},259135,null,{"$f":"'WP FR-16(7)(v) DS Sec - KW'!M102","v":230},259365]
[22,"MAY",null,{"$f":"'WP FR-16(7)(v) DS Sec - KW'!M184","v":223940},{"$f":"'WP FR-16(7)(v) DS Sec - KW'!M62+'WP FR-16(7)(v) DS Sec - KW'!M143","v":11001},234941,null,{"$f":"'WP FR-16(7)(v) DS Sec - KW'!M103","v":181},235122]
[23,"JUNE",null,{"$f":"'WP FR-16(7)(v) DS Sec - KW'!M185","v":281593},{"$f":"'WP FR-16(7)(v) DS Sec - KW'!M63+'WP FR-16(7)(v) DS Sec - KW'!M144","v":14069},295662,null,{"$f":"'WP FR-16(7)(v) DS Sec - KW'!M104","v":237},295899]
[24,"JULY",null,{"$f":"'WP FR-16(7)(v) DS Sec - KW'!M186","v":279666},{"$f":"'WP FR-16(7)(v) DS Sec - KW'!M64+'WP FR-16(7)(v) DS Sec - KW'!M145","v":13617},293283,null,{"$f":"'WP FR-16(7)(v) DS Sec - KW'!M105","v":218},293501]
[25,"AUGUST",null,{"$f":"'WP FR-16(7)(v) DS Sec - KW'!M187","v":260149},{"$f":"'WP FR-16(7)(v) DS Sec - KW'!M65+'WP FR-16(7)(v) DS Sec - KW'!M146","v":12353},272502,null,{"$f":"'WP FR-16(7)(v) DS Sec - KW'!M106","v":184},272686]
[26,"SEPTEMBER",null,{"$f":"'WP FR-16(7)(v) DS Sec - KW'!M188","v":306018},{"$f":"'WP FR-16(7)(v) DS Sec - KW'!M66+'WP FR-16(7)(v) DS Sec - KW'!M147","v":15448},321466,null,{"$f":"'WP FR-16(7)(v) DS Sec - KW'!M107","v":20},321486]
[27,"OCTOBER",null,{"$f":"'WP FR-16(7)(v) DS Sec - KW'!M189","v":270606},{"$f":"'WP FR-16(7)(v) DS Sec - KW'!M67+'WP FR-16(7)(v) DS Sec - KW'!M148","v":12762},283368,null,{"$f":"'WP FR-16(7)(v) DS Sec - KW'!M108","v":391},283759]
[28,"NOVEMBER",null,{"$f":"'WP FR-16(7)(v) DS Sec - KW'!M190","v":219349},{"$f":"'WP FR-16(7)(v) DS Sec - KW'!M68+'WP FR-16(7)(v) DS Sec - KW'!M149","v":10972},230321,null,{"$f":"'WP FR-16(7)(v) DS Sec - KW'!M109","v":159},230480]
[29,"DECEMBER",null,{"$f":"'WP FR-16(7)(v) DS Sec - KW'!M191","v":233854},{"$f":"'WP FR-16(7)(v) DS Sec - KW'!M69+'WP FR-16(7)(v) DS Sec - KW'!M150","v":11425},245279,null,{"$f":"'WP FR-16(7)(v) DS Sec - KW'!M110","v":173},245452]
[30,null,null,{"$f":"SUM(D32:D43)","v":3027134},{"$f":"SUM(E32:E43)","v":148987},{"$f":"SUM(F32:F43)","v":3176121},null,{"$f":"SUM(H32:H43)","v":2403},{"$f":"SUM(I32:I43)","v":3178524}]
[31]
[32,null,"**************************   DIVERSIFIED CLASS KW DEMANDS (a)   **************************"]
[33,{"$f":"B17","v":"JANUARY"},null,{"$f":"'WP FR-16(7)(v) DS Sec - KW'!R180","v":179321},{"$f":"'WP FR-16(7)(v) DS Sec - KW'!R58+'WP FR-16(7)(v) DS Sec - KW'!R139","v":8967},{"$f":"D47+E47","v":188288},null,{"$f":"'WP FR-16(7)(v) DS Sec - KW'!R99","v":177},{"$f":"SUM(F47:H47)","v":188465}]
[34,"FEBRUARY",null,{"$f":"'WP FR-16(7)(v) DS Sec - KW'!R181","v":175804},{"$f":"'WP FR-16(7)(v) DS Sec - KW'!R59+'WP FR-16(7)(v) DS Sec - KW'!R140","v":8606},184410,null,{"$f":"'WP FR-16(7)(v) DS Sec - KW'!R100","v":142},184552]
[35,"MARCH",null,{"$f":"'WP FR-16(7)(v) DS Sec - KW'!R182","v":149572},{"$f":"'WP FR-16(7)(v) DS Sec - KW'!R60+'WP FR-16(7)(v) DS Sec - KW'!R141","v":7648},157220,null,{"$f":"'WP FR-16(7)(v) DS Sec - KW'!R101","v":120},157340]
[36,"APRIL",null,{"$f":"'WP FR-16(7)(v) DS Sec - KW'!R183","v":162823},{"$f":"'WP FR-16(7)(v) DS Sec - KW'!R61+'WP FR-16(7)(v) DS Sec - KW'!R142","v":7992},170815,null,{"$f":"'WP FR-16(7)(v) DS Sec - KW'!R102","v":151},170966]
[37,"MAY",null,{"$f":"'WP FR-16(7)(v) DS Sec - KW'!R184","v":181626},{"$f":"'WP FR-16(7)(v) DS Sec - KW'!R62+'WP FR-16(7)(v) DS Sec - KW'!R143","v":8923},190549,null,{"$f":"'WP FR-16(7)(v) DS Sec - KW'!R103","v":146},190695]
[38,"JUNE",null,{"$f":"'WP FR-16(7)(v) DS Sec - KW'!R185","v":229474},{"$f":"'WP FR-16(7)(v) DS Sec - KW'!R63+'WP FR-16(7)(v) DS Sec - KW'!R144","v":11464},240938,null,{"$f":"'WP FR-16(7)(v) DS Sec - KW'!R104","v":193},241131]
[39,"JULY",null,{"$f":"'WP FR-16(7)(v) DS Sec - KW'!R186","v":229610},{"$f":"'WP FR-16(7)(v) DS Sec - KW'!R64+'WP FR-16(7)(v) DS Sec - KW'!R145","v":11180},240790,null,{"$f":"'WP FR-16(7)(v) DS Sec - KW'!R105","v":179},240969]
[40,"AUGUST",null,{"$f":"'WP FR-16(7)(v) DS Sec - KW'!R187","v":215747},{"$f":"'WP FR-16(7)(v) DS Sec - KW'!R65+'WP FR-16(7)(v) DS Sec - KW'!R146","v":10245},225992,null,{"$f":"'WP FR-16(7)(v) DS Sec - KW'!R106","v":152},226144]
[41,"SEPTEMBER",null,{"$f":"'WP FR-16(7)(v) DS Sec - KW'!R188","v":255672},{"$f":"'WP FR-16(7)(v) DS Sec - KW'!R66+'WP FR-16(7)(v) DS Sec - KW'!R147","v":12907},268579,null,{"$f":"'WP FR-16(7)(v) DS Sec - KW'!R107","v":17},268596]
[42,"OCTOBER",null,{"$f":"'WP FR-16(7)(v) DS Sec - KW'!R189","v":212377},{"$f":"'WP FR-16(7)(v) DS Sec - KW'!R67+'WP FR-16(7)(v) DS Sec - KW'!R148","v":10016},222393,null,{"$f":"'WP FR-16(7)(v) DS Sec - KW'!R108","v":306},222699]
[43,"NOVEMBER",null,{"$f":"'WP FR-16(7)(v) DS Sec - KW'!R190","v":156350},{"$f":"'WP FR-16(7)(v) DS Sec - KW'!R68+'WP FR-16(7)(v) DS Sec - KW'!R149","v":7821},164171,null,{"$f":"'WP FR-16(7)(v) DS Sec - KW'!R109","v":113},164284]
[44,"DECEMBER",null,{"$f":"'WP FR-16(7)(v) DS Sec - KW'!R191","v":168768},{"$f":"'WP FR-16(7)(v) DS Sec - KW'!R69+'WP FR-16(7)(v) DS Sec - KW'!R150","v":8246},177014,null,{"$f":"'WP FR-16(7)(v) DS Sec - KW'!R110","v":125},177139]
[45,null,null,{"$f":"SUM(D47:D58)","v":2317144},{"$f":"SUM(E47:E58)","v":114015},{"$f":"SUM(F47:F58)","v":2431159},null,{"$f":"SUM(H47:H58)","v":1821},{"$f":"SUM(I47:I58)","v":2432980}]
[]
[null,"(a) Sources: WPFR-16(7)(v), Pages 16 - 19.  Includes Interdepartmental kwh."]

{"sheet":"WP FR-16(7)(v) DS Sec - KW","index":42,"n_rows":199,"n_cols":18,"rows_kept":199,"cut":false,"hidden":false,"merged":[[11,6,11,9],[49,6,49,9],[171,6,171,9],[90,6,90,9],[130,6,130,9]]}
[{"$f":"'WP FR-16(7)(v) DS Tot - KW'!A1","v":"DUKE ENERGY KENTUCKY, INC."},null,null,null,null,null,null,null,null,null,null,null,null,null,null,null,{"$f":"'WP FR-16(7)(v) DS Tot - KW'!I1","v":"Work Paper FR-16(7)(v) "}]
[{"$f":"coss_type","v":"ELECTRIC COST OF SERVICE STUDY "},null,null,null,null,null,null,null,null,null,null,null,null,null,null,null,{"$f":"'WP FR-16(7)(v) DS Tot - KW'!I2","v":"Witness Responsible:"}]
[{"$f":"case_name","v":"CASE NO: 2019-00271"},null,null,null,null,null,null,null,null,null,null,null,null,null,null,null,{"$f":"PROPER(Witness)","v":"James E. Ziolkowski"}]
[{"$f":"alloc_factors","v":"ALLOCATION FACTORS FOR COST OF SERVICE STUDY"},null,null,null,null,null,null,null,null,null,null,null,null,null,null,null,"Page 15"]
[{"$f":"'WP FR-16(7)(v) DS Tot - KW'!A5","v":"TWELVE MONTHS ENDING DECEMBER 31, 2018"}]
[]
["DERIVATION OF COINCIDENT AND NON-COINCIDENT KW DEMANDS",null,null,null,null,null,null,null,null,""]
["RATE GROUP:  DS - TOTAL DISTRIBUTION LARGE - SECONDARY VOLTAGE - EXCL. RTP INCREMENTAL"]
[]
[]
[null,null,null,null,null,null,null,null,null,null,null,"NON-COINCIDENT PEAK"]
[null,null,null,null," ",null,"COINCIDENT PEAK DEMAND",null,null,null,null,"(\"NCP\") DEMAND",null,null,"DIVERSIFIED PEAK DEMAND"]
[null,null,null,null,null,null,"COIN","CP","TRANS & DIST","CP",null,null,null,null,null,"DIVERSIFIED",null,"DIVERSIFIED"]
[null,null,null,null,null,null," PEAK","KW DMD.","LOSS","KW DMD.",null,"NON-COIN","NON-COIN",null,"DIVERSIFIED","CLASS","DISTR. LOSS","CLASS"]
[null,null,null,null," ","AVERAGE","LOAD","AT","FACTOR","AT",null,"CLASS","KW DMD.",null,"CLASS","KW DEMAND","FACTOR TO","KW DEMAND"]
[null,null,null,null,"TOTAL","HRLY KW","FACTOR","DELIVERY","TO GEN","GENERATION",null,"PEAK LOAD","AT DELIVERY",null,"PEAK LOAD","AT DELIVERY","TRANSMISSION","AT TRANSMISSION"]
["LINE",null,null,"HOURS","KWH(a)","(2) / (1)","(b)","(3) / (4)","(c)","(5) * (6)",null,"FACTOR (b)","(3) / (8)",null,"FACTOR (b)","(3) / (10)","(d)","(11)* (12)"]
["NO.",null," MONTH","(1)","(2)","(3)","(4)","(5)","(6)","(7)",null,"(8)","(9)",null,"(10)","(11)","(12)","(13)"]
[1]
[{"$f":"1+A19","v":2},null,{"$f":"'WP FR-16(7)(v) DS Tot - KW'!$B$17","v":"JANUARY"},{"$f":"'WP FR-16(7)(v) RS - KW'!$C$20","v":744},{"$f":"E58+E180+E139","v":97701998},{"$f":"F58+F180+F139","v":131320},null,{"$f":"H58+H180+H139","v":168866},null,{"$f":"J58+J180+J139","v":175445},null,null,{"$f":"M58+M180+M139","v":252021},null,null,{"$f":"P58+P180+P139","v":182396},null,{"$f":"R58+R180+R139","v":188288}]
[3,null,{"$f":"'WP FR-16(7)(v) DS Tot - KW'!$B$18","v":"FEBRUARY"},{"$f":"'WP FR-16(7)(v) RS - KW'!$C$21","v":672},86483905,128696,null,162729,null,168574,null,null,268253,null,null,179075,null,184410]
[4,null,{"$f":"'WP FR-16(7)(v) DS Tot - KW'!$B$19","v":"MARCH"},{"$f":"'WP FR-16(7)(v) RS - KW'!$C$22","v":744},81708412,109823,null,126687,null,131223,null,null,219890,null,null,152686,null,157220]
[5,null,{"$f":"'WP FR-16(7)(v) DS Tot - KW'!$B$20","v":"APRIL"},{"$f":"'WP FR-16(7)(v) RS - KW'!$C$23","v":720},83465125,115923,null,161010,null,166715,null,null,259135,null,null,165938,null,170815]
[6,null,{"$f":"'WP FR-16(7)(v) DS Tot - KW'!$B$21","v":"MAY"},{"$f":"'WP FR-16(7)(v) RS - KW'!$C$24","v":744},84103345,113042,null,162986,null,169198,null,null,234941,null,null,184711,null,190549]
[7,null,{"$f":"'WP FR-16(7)(v) DS Tot - KW'!$B$22","v":"JUNE"},{"$f":"'WP FR-16(7)(v) RS - KW'!$C$25","v":720},104166826,144677,null,210545,null,219053,null,null,295662,null,null,233128,null,240938]
[8,null,{"$f":"'WP FR-16(7)(v) DS Tot - KW'!$B$23","v":"JULY"},{"$f":"'WP FR-16(7)(v) RS - KW'!$C$26","v":744},108114616,145315,null,205729,null,213968,null,null,293283,null,null,233053,null,240790]
[9,null,{"$f":"'WP FR-16(7)(v) DS Tot - KW'!$B$24","v":"AUGUST"},{"$f":"'WP FR-16(7)(v) RS - KW'!$C$27","v":744},102690504,138024,null,185389,null,192712,null,null,272502,null,null,218825,null,225992]
[10,null,{"$f":"'WP FR-16(7)(v) DS Tot - KW'!$B$25","v":"SEPTEMBER"},{"$f":"'WP FR-16(7)(v) RS - KW'!$C$28","v":720},106542770,147975,null,250465,null,260571,null,null,321466,null,null,259886,null,268579]
[11,null,{"$f":"'WP FR-16(7)(v) DS Tot - KW'!$B$26","v":"OCTOBER"},{"$f":"'WP FR-16(7)(v) RS - KW'!$C$29","v":744},91134694,122493,null,214918,null,223121,null,null,283368,null,null,215570,null,222393]
[12,null,{"$f":"'WP FR-16(7)(v) DS Tot - KW'!$B$27","v":"NOVEMBER"},{"$f":"'WP FR-16(7)(v) RS - KW'!$C$30","v":720},80302917,111532,null,138018,null,142968,null,null,230321,null,null,159429,null,164171]
[13,null,{"$f":"'WP FR-16(7)(v) DS Tot - KW'!$B$28","v":"DECEMBER"},{"$f":"'WP FR-16(7)(v) RS - KW'!$C$31","v":744},90663508,121859,null,157379,null,163013,null,null,245279,null,null,171910,null,177014]
[14,null,null,{"$f":"SUM(D20:D31)","v":8760},{"$f":"SUM(E20:E31)","v":1117078620},null,null,{"$f":"SUM(H20:H31)","v":2144721},null,{"$f":"SUM(J20:J31)","v":2226561},null,null,{"$f":"SUM(M20:M31)","v":3176121},null,null,{"$f":"SUM(P20:P31)","v":2356607},null,{"$f":"SUM(R20:R31)","v":2431159}]
[]
[]
[null,null,"(a) Source: WPFR-16(7)(v), Pages 16, 18-19.  Summary of DS-Large, DS-Small/Med and DS-Large-Interdepartmental."]
[null,null,"(b) Source: Form 1, Page 401b, Col (f)"]
[]
[null,null,null,null,null,null,null,null,null,null,null,null,null,null,null,null,{"$f":"'WP FR-16(7)(v) DS Tot - KW'!I1","v":"Work Paper FR-16(7)(v) "}]
[{"$f":"'WP FR-16(7)(v) DS Tot - KW'!A1","v":"DUKE ENERGY KENTUCKY, INC."},null,null,null,null,null,null,null,null,null,null,null,null,null,null,null,{"$f":"'WP FR-16(7)(v) DS Tot - KW'!I2","v":"Witness Responsible:"}]
[{"$f":"coss_type","v":"ELECTRIC COST OF SERVICE STUDY "},null,null,null,null,null,null,null,null,null,null,null,null,null,null,null,{"$f":"'WP FR-16(7)(v) DS Tot - KW'!I3","v":"James E. Ziolkowski"}]
[{"$f":"case_name","v":"CASE NO: 2019-00271"},null,null,null,null,null,null,null,null,null,null,null,null,null,null,null,"Page 16"]
[{"$f":"alloc_factors","v":"ALLOCATION FACTORS FOR COST OF SERVICE STUDY"}]
[{"$f":"'WP FR-16(7)(v) DS Tot - KW'!A5","v":"TWELVE MONTHS ENDING DECEMBER 31, 2018"}]
[]
["DERIVATION OF COINCIDENT AND NON-COINCIDENT KW DEMANDS",null,null,null,null,null,null,null,null,""]
["RATE GROUP:  DS - DISTRIBUTION - LARGE EXCL. RTP - SECONDARY VOLTAGE"]
[]
[]
[null,null,null,null,null,null,null,null,null,null,null,"NON-COINCIDENT PEAK"]
[null,null,null,null," ",null,"COINCIDENT PEAK DEMAND",null,null,null,null,"(\"NCP\") DEMAND",null,null,"DIVERSIFIED PEAK DEMAND"]
[null,null,null,null,null,null,"COIN","CP","TRANS & DIST","CP",null,null,null,null,null,"DIVERSIFIED",null,"DIVERSIFIED"]
[null,null,null,null,null,null," PEAK","KW DMD.","LOSS","KW DMD.",null,"NON-COIN","NON-COIN",null,"DIVERSIFIED","CLASS","DISTR. LOSS","CLASS"]
[null,null,null,null," ","AVERAGE","LOAD","AT","FACTOR","AT",null,"CLASS","KW DMD.",null,"CLASS","KW DEMAND","FACTOR TO","KW DEMAND"]
[null,null,null,null,"TOTAL","HRLY KW","FACTOR","DELIVERY","TO GEN","GENERATION",null,"PEAK LOAD","AT DELIVERY",null,"PEAK LOAD","AT DELIVERY","TRANSMISSION","AT TRANSMISSION"]
["LINE",null,null,"HOURS","KWH(a)","(2) / (1)","(b)","(3) / (4)","(c)","(5) * (6)",null,"FACTOR (b)","(3) / (8)",null,"FACTOR (b)","(3) / (10)","(d)","(11)* (12)"]
["NO.",null," MONTH","(1)","(2)","(3)","(4)","(5)","(6)","(7)",null,"(8)","(9)",null,"(10)","(11)","(12)","(13)"]
[1]
[{"$f":"1+A57","v":2},null,{"$f":"'WP FR-16(7)(v) DS Tot - KW'!$B$17","v":"JANUARY"},{"$f":"'WP FR-16(7)(v) RS - KW'!$C$20","v":744},{"$f":"'WP FR-16(7)(v) KWH'!B30","v":4592033},{"$f":"ROUND(E58/D58,0)","v":6172},{"$f":"'WP FR-16(7)(v) LoadRes DS_LG'!$L$15/100","v":0.77765870936000003},{"$f":"ROUND(F58/G58,0)","v":7937},{"$f":"'WP FR-16(7)(v) LossRatios'!$M$16+1","v":1.0389600000000001},{"$f":"ROUND(H58*I58,0)","v":8246},null,{"$f":"'WP FR-16(7)(v) LoadRes DS_LG'!$J$15/100","v":0.52106588546999999},{"$f":"ROUND(F58/L58,0)","v":11845},null,{"$f":"'WP FR-16(7)(v) LoadRes DS_LG'!$K$15/100","v":0.71997439431999988},{"$f":"ROUND(F58/O58,0)","v":8573},{"$f":"'WP FR-16(7)(v) LossRatios'!$K$16+1","v":1.0323},{"$f":"ROUND(Q58*P58,0)","v":8850}]
[3,null,{"$f":"'WP FR-16(7)(v) DS Tot - KW'!$B$18","v":"FEBRUARY"},{"$f":"'WP FR-16(7)(v) RS - KW'!$C$21","v":672},{"$f":"'WP FR-16(7)(v) KWH'!C$30","v":3951333},{"$f":"ROUND(E59/D59,0)","v":5880},{"$f":"'WP FR-16(7)(v) LoadRes DS_LG'!$L$17/100","v":0.79085856854000003},7435,{"$f":"'WP FR-16(7)(v) LossRatios'!$M$17+1","v":1.03592},{"$f":"ROUND(H59*I59,0)","v":7702},null,{"$f":"'WP FR-16(7)(v) LoadRes DS_LG'!$J$17/100","v":0.47975649672999998},12256,null,{"$f":"'WP FR-16(7)(v) LoadRes DS_LG'!$K$17/100","v":0.71867025837999998},8182,{"$f":"'WP FR-16(7)(v) LossRatios'!$K$17+1","v":1.02979},{"$f":"ROUND(Q59*P59,0)","v":8426}]
[4,null,{"$f":"'WP FR-16(7)(v) DS Tot - KW'!$B$19","v":"MARCH"},{"$f":"'WP FR-16(7)(v) RS - KW'!$C$22","v":744},{"$f":"'WP FR-16(7)(v) KWH'!D$30","v":3903994},5247,{"$f":"'WP FR-16(7)(v) LoadRes DS_LG'!$L$19/100","v":0.86688695483999989},6053,{"$f":"'WP FR-16(7)(v) LossRatios'!$M$18+1","v":1.0358000000000001},6270,null,{"$f":"'WP FR-16(7)(v) LoadRes DS_LG'!$J$19/100","v":0.49944559015000001},10506,null,{"$f":"'WP FR-16(7)(v) LoadRes DS_LG'!$K$19/100","v":0.71927613312000005},7295,{"$f":"'WP FR-16(7)(v) LossRatios'!$K$18+1","v":1.02969},7512]
[5,null,{"$f":"'WP FR-16(7)(v) DS Tot - KW'!$B$20","v":"APRIL"},{"$f":"'WP FR-16(7)(v) RS - KW'!$C$23","v":720},{"$f":"'WP FR-16(7)(v) KWH'!E$30","v":3858736},5359,{"$f":"'WP FR-16(7)(v) LoadRes DS_LG'!$L$21/100","v":0.71997148407},7443,{"$f":"'WP FR-16(7)(v) LossRatios'!$M$19+1","v":1.0354300000000001},7707,null,{"$f":"'WP FR-16(7)(v) LoadRes DS_LG'!$J$21/100","v":0.44734635127},11980,null,{"$f":"'WP FR-16(7)(v) LoadRes DS_LG'!$K$21/100","v":0.69859048607000007},7671,{"$f":"'WP FR-16(7)(v) LossRatios'!$K$19+1","v":1.02939},7896]
[6,null,{"$f":"'WP FR-16(7)(v) DS Tot - KW'!$B$21","v":"MAY"},{"$f":"'WP FR-16(7)(v) RS - KW'!$C$24","v":744},{"$f":"'WP FR-16(7)(v) KWH'!F$30","v":3899429},5241,{"$f":"'WP FR-16(7)(v) LoadRes DS_LG'!$L$23/100","v":0.69356867433999991},7557,{"$f":"'WP FR-16(7)(v) LossRatios'!$M$20+1","v":1.0381100000000001},7845,null,{"$f":"'WP FR-16(7)(v) LoadRes DS_LG'!$J$23/100","v":0.48115190906999999},10893,null,{"$f":"'WP FR-16(7)(v) LoadRes DS_LG'!$K$23/100","v":0.61199533048999999},8564,{"$f":"'WP FR-16(7)(v) LossRatios'!$K$20+1","v":1.0316000000000001},8835]
[7,null,{"$f":"'WP FR-16(7)(v) DS Tot - KW'!$B$22","v":"JUNE"},{"$f":"'WP FR-16(7)(v) RS - KW'!$C$25","v":720},{"$f":"'WP FR-16(7)(v) KWH'!G$30","v":4863984},6756,{"$f":"'WP FR-16(7)(v) LoadRes DS_LG'!$L$25/100","v":0.68715415871000007},9832,{"$f":"'WP FR-16(7)(v) LossRatios'!$M$21+1","v":1.0404100000000001},10229,null,{"$f":"'WP FR-16(7)(v) LoadRes DS_LG'!$J$25/100","v":0.48933462833999997},13807,null,{"$f":"'WP FR-16(7)(v) LoadRes DS_LG'!$K$25/100","v":0.62058942452999999},10886,{"$f":"'WP FR-16(7)(v) LossRatios'!$K$21+1","v":1.0335000000000001},11251]
[8,null,{"$f":"'WP FR-16(7)(v) DS Tot - KW'!$B$23","v":"JULY"},{"$f":"'WP FR-16(7)(v) RS - KW'!$C$26","v":744},{"$f":"'WP FR-16(7)(v) KWH'!H$30","v":4974556},6686,{"$f":"'WP FR-16(7)(v) LoadRes DS_LG'!$L$27/100","v":0.70634182654},9466,{"$f":"'WP FR-16(7)(v) LossRatios'!$M$22+1","v":1.0400499999999999},9845,null,{"$f":"'WP FR-16(7)(v) LoadRes DS_LG'!$J$27/100","v":0.49547608554999995},13494,null,{"$f":"'WP FR-16(7)(v) LoadRes DS_LG'!$K$27/100","v":0.62352890137999994},10723,{"$f":"'WP FR-16(7)(v) LossRatios'!$K$22+1","v":1.0331999999999999},11079]
[9,null,{"$f":"'WP FR-16(7)(v) DS Tot - KW'!$B$24","v":"AUGUST"},{"$f":"'WP FR-16(7)(v) RS - KW'!$C$27","v":744},{"$f":"'WP FR-16(7)(v) KWH'!I$30","v":4609148},6195,{"$f":"'WP FR-16(7)(v) LoadRes DS_LG'!$L$29/100","v":0.74450926513000004},8321,{"$f":"'WP FR-16(7)(v) LossRatios'!$M$23+1","v":1.0395000000000001},8650,null,{"$f":"'WP FR-16(7)(v) LoadRes DS_LG'!$J$29/100","v":0.50650680028999995},12231,null,{"$f":"'WP FR-16(7)(v) LoadRes DS_LG'!$K$29/100","v":0.63075037956000002},9822,{"$f":"'WP FR-16(7)(v) LossRatios'!$K$23+1","v":1.0327500000000001},10144]
[10,null,{"$f":"'WP FR-16(7)(v) DS Tot - KW'!$B$25","v":"SEPTEMBER"},{"$f":"'WP FR-16(7)(v) RS - KW'!$C$28","v":720},{"$f":"'WP FR-16(7)(v) KWH'!J$30","v":5052538},7017,{"$f":"'WP FR-16(7)(v) LoadRes DS_LG'!$L$31/100","v":0.59079947379999997},11877,{"$f":"'WP FR-16(7)(v) LossRatios'!$M$24+1","v":1.0403500000000001},12356,null,{"$f":"'WP FR-16(7)(v) LoadRes DS_LG'!$J$31/100","v":0.46031310396999997},15244,null,{"$f":"'WP FR-16(7)(v) LoadRes DS_LG'!$K$31/100","v":0.56938555129000001},12324,{"$f":"'WP FR-16(7)(v) LossRatios'!$K$24+1","v":1.03345},12736]
[11,null,{"$f":"'WP FR-16(7)(v) DS Tot - KW'!$B$26","v":"OCTOBER"},{"$f":"'WP FR-16(7)(v) RS - KW'!$C$29","v":744},{"$f":"'WP FR-16(7)(v) KWH'!K$30","v":4058488},5455,{"$f":"'WP FR-16(7)(v) LoadRes DS_LG'!$L$33/100","v":0.56995259941999998},9571,{"$f":"'WP FR-16(7)(v) LossRatios'!$M$25+1","v":1.03817},9936,null,{"$f":"'WP FR-16(7)(v) LoadRes DS_LG'!$J$33/100","v":0.43227459885999997},12619,null,{"$f":"'WP FR-16(7)(v) LoadRes DS_LG'!$K$33/100","v":0.56822716540000007},9600,{"$f":"'WP FR-16(7)(v) LossRatios'!$K$25+1","v":1.03165},9904]
[12,null,{"$f":"'WP FR-16(7)(v) DS Tot - KW'!$B$27","v":"NOVEMBER"},{"$f":"'WP FR-16(7)(v) RS - KW'!$C$30","v":720},{"$f":"'WP FR-16(7)(v) KWH'!L$30","v":3775027},5243,{"$f":"'WP FR-16(7)(v) LoadRes DS_LG'!$L$35/100","v":0.80809709695999998},6488,{"$f":"'WP FR-16(7)(v) LossRatios'!$M$26+1","v":1.03586},6721,null,{"$f":"'WP FR-16(7)(v) LoadRes DS_LG'!$J$35/100","v":0.48424641179},10827,null,{"$f":"'WP FR-16(7)(v) LoadRes DS_LG'!$K$35/100","v":0.69957437865000005},7495,{"$f":"'WP FR-16(7)(v) LossRatios'!$K$26+1","v":1.0297400000000001},7718]
[13,null,{"$f":"'WP FR-16(7)(v) DS Tot - KW'!$B$28","v":"DECEMBER"},{"$f":"'WP FR-16(7)(v) RS - KW'!$C$31","v":744},{"$f":"'WP FR-16(7)(v) KWH'!M$30","v":4183482},5623,{"$f":"'WP FR-16(7)(v) LoadRes DS_LG'!$L$37/100","v":0.77429897424000005},7262,{"$f":"'WP FR-16(7)(v) LossRatios'!$M$27+1","v":1.0358000000000001},7522,null,{"$f":"'WP FR-16(7)(v) LoadRes DS_LG'!$J$37/100","v":0.49681938365999995},11318,null,{"$f":"'WP FR-16(7)(v) LoadRes DS_LG'!$K$37/100","v":0.70885571443000006},7933,{"$f":"'WP FR-16(7)(v) LossRatios'!$K$27+1","v":1.02969},8169]
[14,null,null,{"$f":"SUM(D58:D69)","v":8760},{"$f":"SUM(E58:E69)","v":51722748},null,null,{"$f":"SUM(H58:H69)","v":99242},null,{"$f":"SUM(J58:J69)","v":103029},null,null,{"$f":"SUM(M58:M69)","v":147020},null,null,{"$f":"SUM(P58:P69)","v":109068},null,{"$f":"SUM(R58:R69)","v":112520}]
[]
[]
[null,null,"(a) Source: WPFR-16(7)(v), Page 51"]
[null,null,"(b) Source: WPFR-16(7)(v), Page 41"]
[null,null,"(c) Source: WPFR-16(7)(v), Page 33, Col 5 (Loss % + 1)"]
[null,null,"(d) Source: WPFR-16(7)(v), Page 33, Col 2 (Loss % + 1)"]
[null,null,"(e) Source: Form 1, Page 401b, Col (f)"]
[]
[]
[{"$f":"'WP FR-16(7)(v) DS Tot - KW'!A1","v":"DUKE ENERGY KENTUCKY, INC."},null,null,null,null,null,null,null,null,null,null,null,null,null,null,null,{"$f":"'WP FR-16(7)(v) DS Tot - KW'!I1","v":"Work Paper FR-16(7)(v) "}]
[{"$f":"coss_type","v":"ELECTRIC COST OF SERVICE STUDY "},null,null,null,null,null,null,null,null,null,null,null,null,null,null,null,{"$f":"'WP FR-16(7)(v) DS Tot - KW'!I2","v":"Witness Responsible:"}]
[{"$f":"case_name","v":"CASE NO: 2019-00271"},null,null,null,null,null,null,null,null,null,null,null,null,null,null,null,{"$f":"'WP FR-16(7)(v) DS Tot - KW'!I3","v":"James E. Ziolkowski"}]
[{"$f":"alloc_factors","v":"ALLOCATION FACTORS FOR COST OF SERVICE STUDY"},null,null,null,null,null,null,null,null,null,null,null,null,null,null,null,"Page 17"]
[{"$f":"'WP FR-16(7)(v) DS Tot - KW'!A5","v":"TWELVE MONTHS ENDING DECEMBER 31, 2018"}]
[]
["DERIVATION OF COINCIDENT AND NON-COINCIDENT KW DEMANDS",null,null,null,null,null,null,null,null,""]
["RATE GROUP:  DS - DISTRIBUTION - LARGE RTP INCREMENTAL - SECONDARY VOLTAGE"]
[]
[]
[null,null,null,null,null,null,null,null,null,null,null,"NON-COINCIDENT PEAK"]
[null,null,null,null," ",null,"COINCIDENT PEAK DEMAND",null,null,null,null,"(\"NCP\") DEMAND",null,null,"DIVERSIFIED PEAK DEMAND"]
[null,null,null,null,null,null,"COIN","CP","TRANS & DIST","CP",null,null,null,null,null,"DIVERSIFIED",null,"DIVERSIFIED"]
[null,null,null,null,null,null," PEAK","KW DMD.","LOSS","KW DMD.",null,"NON-COIN","NON-COIN",null,"DIVERSIFIED","CLASS","DISTR. LOSS","CLASS"]
[null,null,null,null," ","AVERAGE","LOAD","AT","FACTOR","AT",null,"CLASS","KW DMD.",null,"CLASS","KW DEMAND","FACTOR TO","KW DEMAND"]
[null,null,null,null,"TOTAL","HRLY KW","FACTOR","DELIVERY","TO GEN","GENERATION",null,"PEAK LOAD","AT DELIVERY",null,"PEAK LOAD","AT DELIVERY","TRANSMISSION","AT TRANSMISSION"]
["LINE",null,null,"HOURS","KWH(a)","(2) / (1)","(b)","(3) / (4)","(c)","(5) * (6)",null,"FACTOR (b)","(3) / (8)",null,"FACTOR (b)","(3) / (10)","(d)","(11)* (12)"]
["NO.",null," MONTH","(1)","(2)","(3)","(4)","(5)","(6)","(7)",null,"(8)","(9)",null,"(10)","(11)","(12)","(13)"]
[1]
[{"$f":"1+A98","v":2},null,{"$f":"'WP FR-16(7)(v) DS Tot - KW'!$B$17","v":"JANUARY"},{"$f":"'WP FR-16(7)(v) RS - KW'!$C$20","v":744},{"$f":"'WP FR-16(7)(v) KWH'!B31","v":91496},{"$f":"ROUND(E99/D99,0)","v":123},{"$f":"G58","v":0.77765870936000003},{"$f":"ROUND(F99/G99,0)","v":158},{"$f":"'WP FR-16(7)(v) LossRatios'!$M$16+1","v":1.0389600000000001},{"$f":"ROUND(H99*I99,0)","v":164},null,{"$f":"L58","v":0.52106588546999999},{"$f":"ROUND(F99/L99,0)","v":236},null,{"$f":"O58","v":0.71997439431999988},{"$f":"ROUND(F99/O99,0)","v":171},{"$f":"'WP FR-16(7)(v) LossRatios'!$K$16+1","v":1.0323},{"$f":"ROUND(Q99*P99,0)","v":177}]
[3,null,{"$f":"'WP FR-16(7)(v) DS Tot - KW'!$B$18","v":"FEBRUARY"},{"$f":"'WP FR-16(7)(v) RS - KW'!$C$21","v":672},{"$f":"'WP FR-16(7)(v) KWH'!C$31","v":66618},99,0.79085856854000003,125,{"$f":"'WP FR-16(7)(v) LossRatios'!$M$17+1","v":1.03592},129,null,0.47975649672999998,206,null,0.71867025837999998,138,{"$f":"'WP FR-16(7)(v) LossRatios'!$K$17+1","v":1.02979},142]
[4,null,{"$f":"'WP FR-16(7)(v) DS Tot - KW'!$B$19","v":"MARCH"},{"$f":"'WP FR-16(7)(v) RS - KW'!$C$22","v":744},{"$f":"'WP FR-16(7)(v) KWH'!D$31","v":62693},84,0.86688695483999989,97,{"$f":"'WP FR-16(7)(v) LossRatios'!$M$18+1","v":1.0358000000000001},100,null,0.49944559015000001,168,null,0.71927613312000005,117,{"$f":"'WP FR-16(7)(v) LossRatios'!$K$18+1","v":1.02969},120]
[5,null,{"$f":"'WP FR-16(7)(v) DS Tot - KW'!$B$20","v":"APRIL"},{"$f":"'WP FR-16(7)(v) RS - KW'!$C$23","v":720},{"$f":"'WP FR-16(7)(v) KWH'!E$31","v":73900},103,0.71997148407,143,{"$f":"'WP FR-16(7)(v) LossRatios'!$M$19+1","v":1.0354300000000001},148,null,0.44734635127,230,null,0.69859048607000007,147,{"$f":"'WP FR-16(7)(v) LossRatios'!$K$19+1","v":1.02939},151]
[6,null,{"$f":"'WP FR-16(7)(v) DS Tot - KW'!$B$21","v":"MAY"},{"$f":"'WP FR-16(7)(v) RS - KW'!$C$24","v":744},{"$f":"'WP FR-16(7)(v) KWH'!F$31","v":64922},87,0.69356867433999991,125,{"$f":"'WP FR-16(7)(v) LossRatios'!$M$20+1","v":1.0381100000000001},130,null,0.48115190906999999,181,null,0.61199533048999999,142,{"$f":"'WP FR-16(7)(v) LossRatios'!$K$20+1","v":1.0316000000000001},146]
[7,null,{"$f":"'WP FR-16(7)(v) DS Tot - KW'!$B$22","v":"JUNE"},{"$f":"'WP FR-16(7)(v) RS - KW'!$C$25","v":720},{"$f":"'WP FR-16(7)(v) KWH'!G$31","v":83616},116,0.68715415871000007,169,{"$f":"'WP FR-16(7)(v) LossRatios'!$M$21+1","v":1.0404100000000001},176,null,0.48933462833999997,237,null,0.62058942452999999,187,{"$f":"'WP FR-16(7)(v) LossRatios'!$K$21+1","v":1.0335000000000001},193]
[8,null,{"$f":"'WP FR-16(7)(v) DS Tot - KW'!$B$23","v":"JULY"},{"$f":"'WP FR-16(7)(v) RS - KW'!$C$26","v":744},{"$f":"'WP FR-16(7)(v) KWH'!H$31","v":80312},108,0.70634182654,153,{"$f":"'WP FR-16(7)(v) LossRatios'!$M$22+1","v":1.0400499999999999},159,null,0.49547608554999995,218,null,0.62352890137999994,173,{"$f":"'WP FR-16(7)(v) LossRatios'!$K$22+1","v":1.0331999999999999},179]
[9,null,{"$f":"'WP FR-16(7)(v) DS Tot - KW'!$B$24","v":"AUGUST"},{"$f":"'WP FR-16(7)(v) RS - KW'!$C$27","v":744},{"$f":"'WP FR-16(7)(v) KWH'!I$31","v":69071},93,0.74450926513000004,125,{"$f":"'WP FR-16(7)(v) LossRatios'!$M$23+1","v":1.0395000000000001},130,null,0.50650680028999995,184,null,0.63075037956000002,147,{"$f":"'WP FR-16(7)(v) LossRatios'!$K$23+1","v":1.0327500000000001},152]
[10,null,{"$f":"'WP FR-16(7)(v) DS Tot - KW'!$B$25","v":"SEPTEMBER"},{"$f":"'WP FR-16(7)(v) RS - KW'!$C$28","v":720},{"$f":"'WP FR-16(7)(v) KWH'!J$31","v":6127},9,0.59079947379999997,15,{"$f":"'WP FR-16(7)(v) LossRatios'!$M$24+1","v":1.0403500000000001},16,null,0.46031310396999997,20,null,0.56938555129000001,16,{"$f":"'WP FR-16(7)(v) LossRatios'!$K$24+1","v":1.03345},17]
[11,null,{"$f":"'WP FR-16(7)(v) DS Tot - KW'!$B$26","v":"OCTOBER"},{"$f":"'WP FR-16(7)(v) RS - KW'!$C$29","v":744},{"$f":"'WP FR-16(7)(v) KWH'!K$31","v":125544},169,0.56995259941999998,297,{"$f":"'WP FR-16(7)(v) LossRatios'!$M$25+1","v":1.03817},308,null,0.43227459885999997,391,null,0.56822716540000007,297,{"$f":"'WP FR-16(7)(v) LossRatios'!$K$25+1","v":1.03165},306]
[12,null,{"$f":"'WP FR-16(7)(v) DS Tot - KW'!$B$27","v":"NOVEMBER"},{"$f":"'WP FR-16(7)(v) RS - KW'!$C$30","v":720},{"$f":"'WP FR-16(7)(v) KWH'!L$31","v":55722},77,0.80809709695999998,95,{"$f":"'WP FR-16(7)(v) LossRatios'!$M$26+1","v":1.03586},98,null,0.48424641179,159,null,0.69957437865000005,110,{"$f":"'WP FR-16(7)(v) LossRatios'!$K$26+1","v":1.0297400000000001},113]
[13,null,{"$f":"'WP FR-16(7)(v) DS Tot - KW'!$B$28","v":"DECEMBER"},{"$f":"'WP FR-16(7)(v) RS - KW'!$C$31","v":744},{"$f":"'WP FR-16(7)(v) KWH'!M$31","v":64097},86,0.77429897424000005,111,{"$f":"'WP FR-16(7)(v) LossRatios'!$M$27+1","v":1.0358000000000001},115,null,0.49681938365999995,173,null,0.70885571443000006,121,{"$f":"'WP FR-16(7)(v) LossRatios'!$K$27+1","v":1.02969},125]
[14,null,null,{"$f":"SUM(D99:D110)","v":8760},{"$f":"SUM(E99:E110)","v":844118},null,null,{"$f":"SUM(H99:H110)","v":1613},null,{"$f":"SUM(J99:J110)","v":1673},null,null,{"$f":"SUM(M99:M110)","v":2403},null,null,{"$f":"SUM(P99:P110)","v":1766},null,{"$f":"SUM(R99:R110)","v":1821}]
[null,null,null,null," ",null,null," "]
[null,null,"(a) Source: WPFR-16(7)(v), Page 51"]
[null,null,"(b) Source: WPFR-16(7)(v), Page 41",null,null,null,null," "]
[null,null,"(c) Source: WPFR-16(7)(v), Page 33, Col 5 (Loss % + 1)"]
[null,null,"(d) Source: WPFR-16(7)(v), Page 33, Col 2 (Loss % + 1)"]
[null,null,"(e) Source: Form 1, Page 401b, Col (f)"]
[]
[]
[{"$f":"'WP FR-16(7)(v) DS Tot - KW'!A1","v":"DUKE ENERGY KENTUCKY, INC."},null,null,null,null,null,null,null,null,null,null,null,null,null,null,null,{"$f":"'WP FR-16(7)(v) DS Tot - KW'!I1","v":"Work Paper FR-16(7)(v) "}]
[{"$f":"coss_type","v":"ELECTRIC COST OF SERVICE STUDY "},null,null,null,null,null,null,null,null,null,null,null,null,null,null,null,{"$f":"'WP FR-16(7)(v) DS Tot - KW'!I2","v":"Witness Responsible:"}]
[{"$f":"case_name","v":"CASE NO: 2019-00271"},null,null,null,null,null,null,null,null,null,null,null,null,null,null,null,{"$f":"'WP FR-16(7)(v) DS Tot - KW'!I3","v":"James E. Ziolkowski"}]
[{"$f":"alloc_factors","v":"ALLOCATION FACTORS FOR COST OF SERVICE STUDY"},null,null,null,null,null,null,null,null,null,null,null,null,null,null,null,"Page 18"]
[{"$f":"'WP FR-16(7)(v) DS Tot - KW'!A5","v":"TWELVE MONTHS ENDING DECEMBER 31, 2018"}]
[]
["DERIVATION OF COINCIDENT AND NON-COINCIDENT KW DEMANDS",null,null,null,null,null,null,null,null,""]
["RATE GROUP:  DS - DISTRIBUTION LARGE - INTERDEPARTMENTAL - SECONDARY VOLTAGE"]
[]
[null,null,null,null,null,null,null,null,null,null,null,null," "]
[null,null,null,null,null,null,null,null,null,null,null,"NON-COINCIDENT PEAK"]
[null,null,null,null," ",null,"COINCIDENT PEAK DEMAND",null,null,null,null,"(\"NCP\") DEMAND",null,null,"DIVERSIFIED PEAK DEMAND"]
[null,null,null,null,null,null,"COIN","CP","TRANS & DIST","CP",null,null,null,null,null,"DIVERSIFIED",null,"DIVERSIFIED"]
[null,null,null,null,null,null," PEAK","KW DMD.","LOSS","KW DMD.",null,"NON-COIN","NON-COIN",null,"DIVERSIFIED","CLASS","DISTR. LOSS","CLASS"]
[null,null,null,null," ","AVERAGE","LOAD","AT","FACTOR","AT",null,"CLASS","KW DMD.",null,"CLASS","KW DEMAND","FACTOR TO","KW DEMAND"]
[null,null,null,null,"TOTAL","HRLY KW","FACTOR","DELIVERY","TO GEN","GENERATION",null,"PEAK LOAD","AT DELIVERY",null,"PEAK LOAD","AT DELIVERY","TRANSMISSION","AT TRANSMISSION"]
["LINE",null,null,"HOURS","KWH(a)","(2) / (1)","(b)","(3) / (4)","(c)","(5) * (6)",null,"FACTOR (b)","(3) / (8)",null,"FACTOR (b)","(3) / (10)","(d)","(11)* (12)"]
["NO.",null," MONTH","(1)","(2)","(3)","(4)","(5)","(6)","(7)",null,"(8)","(9)",null,"(10)","(11)","(12)","(13)"]
[1]
[{"$f":"1+A138","v":2},null,{"$f":"'WP FR-16(7)(v) DS Tot - KW'!$B$17","v":"JANUARY"},{"$f":"'WP FR-16(7)(v) RS - KW'!$C$20","v":744},{"$f":"'WP FR-16(7)(v) KWH'!B22","v":60315},{"$f":"ROUND(E139/D139,0)","v":81},{"$f":"G99","v":0.77765870936000003},{"$f":"ROUND(F139/G139,0)","v":104},{"$f":"'WP FR-16(7)(v) LossRatios'!$M$16+1","v":1.0389600000000001},{"$f":"ROUND(H139*I139,0)","v":108},null,{"$f":"L99","v":0.52106588546999999},{"$f":"ROUND(F139/L139,0)","v":155},null,{"$f":"O99","v":0.71997439431999988},{"$f":"ROUND(F139/O139,0)","v":113},{"$f":"'WP FR-16(7)(v) LossRatios'!$K$16+1","v":1.0323},{"$f":"ROUND(Q139*P139,0)","v":117}]
[3,null,{"$f":"'WP FR-16(7)(v) DS Tot - KW'!$B$18","v":"FEBRUARY"},{"$f":"'WP FR-16(7)(v) RS - KW'!$C$21","v":672},{"$f":"'WP FR-16(7)(v) KWH'!C$22","v":84723},126,0.79085856854000003,159,{"$f":"'WP FR-16(7)(v) LossRatios'!$M$17+1","v":1.03592},165,null,0.47975649672999998,263,null,0.71867025837999998,175,{"$f":"'WP FR-16(7)(v) LossRatios'!$K$17+1","v":1.02979},180]
[4,null,{"$f":"'WP FR-16(7)(v) DS Tot - KW'!$B$19","v":"MARCH"},{"$f":"'WP FR-16(7)(v) RS - KW'!$C$22","v":744},{"$f":"'WP FR-16(7)(v) KWH'!D$22","v":70924},95,0.86688695483999989,110,{"$f":"'WP FR-16(7)(v) LossRatios'!$M$18+1","v":1.0358000000000001},114,null,0.49944559015000001,190,null,0.71927613312000005,132,{"$f":"'WP FR-16(7)(v) LossRatios'!$K$18+1","v":1.02969},136]
[5,null,{"$f":"'WP FR-16(7)(v) DS Tot - KW'!$B$20","v":"APRIL"},{"$f":"'WP FR-16(7)(v) RS - KW'!$C$23","v":720},{"$f":"'WP FR-16(7)(v) KWH'!E$22","v":47062},65,0.71997148407,90,{"$f":"'WP FR-16(7)(v) LossRatios'!$M$19+1","v":1.0354300000000001},93,null,0.44734635127,145,null,0.69859048607000007,93,{"$f":"'WP FR-16(7)(v) LossRatios'!$K$19+1","v":1.02939},96]
[6,null,{"$f":"'WP FR-16(7)(v) DS Tot - KW'!$B$21","v":"MAY"},{"$f":"'WP FR-16(7)(v) RS - KW'!$C$24","v":744},{"$f":"'WP FR-16(7)(v) KWH'!F$22","v":38868},52,0.69356867433999991,75,{"$f":"'WP FR-16(7)(v) LossRatios'!$M$20+1","v":1.0381100000000001},78,null,0.48115190906999999,108,null,0.61199533048999999,85,{"$f":"'WP FR-16(7)(v) LossRatios'!$K$20+1","v":1.0316000000000001},88]
[7,null,{"$f":"'WP FR-16(7)(v) DS Tot - KW'!$B$22","v":"JUNE"},{"$f":"'WP FR-16(7)(v) RS - KW'!$C$25","v":720},{"$f":"'WP FR-16(7)(v) KWH'!G$22","v":91941},128,0.68715415871000007,186,{"$f":"'WP FR-16(7)(v) LossRatios'!$M$21+1","v":1.0404100000000001},194,null,0.48933462833999997,262,null,0.62058942452999999,206,{"$f":"'WP FR-16(7)(v) LossRatios'!$K$21+1","v":1.0335000000000001},213]
[8,null,{"$f":"'WP FR-16(7)(v) DS Tot - KW'!$B$23","v":"JULY"},{"$f":"'WP FR-16(7)(v) RS - KW'!$C$26","v":744},{"$f":"'WP FR-16(7)(v) KWH'!H$22","v":45341},61,0.70634182654,86,{"$f":"'WP FR-16(7)(v) LossRatios'!$M$22+1","v":1.0400499999999999},89,null,0.49547608554999995,123,null,0.62352890137999994,98,{"$f":"'WP FR-16(7)(v) LossRatios'!$K$22+1","v":1.0331999999999999},101]
[9,null,{"$f":"'WP FR-16(7)(v) DS Tot - KW'!$B$24","v":"AUGUST"},{"$f":"'WP FR-16(7)(v) RS - KW'!$C$27","v":744},{"$f":"'WP FR-16(7)(v) KWH'!I$22","v":46356},62,0.74450926513000004,83,{"$f":"'WP FR-16(7)(v) LossRatios'!$M$23+1","v":1.0395000000000001},86,null,0.50650680028999995,122,null,0.63075037956000002,98,{"$f":"'WP FR-16(7)(v) LossRatios'!$K$23+1","v":1.0327500000000001},101]
[10,null,{"$f":"'WP FR-16(7)(v) DS Tot - KW'!$B$25","v":"SEPTEMBER"},{"$f":"'WP FR-16(7)(v) RS - KW'!$C$28","v":720},{"$f":"'WP FR-16(7)(v) KWH'!J$22","v":67817},94,0.59079947379999997,159,{"$f":"'WP FR-16(7)(v) LossRatios'!$M$24+1","v":1.0403500000000001},165,null,0.46031310396999997,204,null,0.56938555129000001,165,{"$f":"'WP FR-16(7)(v) LossRatios'!$K$24+1","v":1.03345},171]
[11,null,{"$f":"'WP FR-16(7)(v) DS Tot - KW'!$B$26","v":"OCTOBER"},{"$f":"'WP FR-16(7)(v) RS - KW'!$C$29","v":744},{"$f":"'WP FR-16(7)(v) KWH'!K$22","v":45888},62,0.56995259941999998,109,{"$f":"'WP FR-16(7)(v) LossRatios'!$M$25+1","v":1.03817},113,null,0.43227459885999997,143,null,0.56822716540000007,109,{"$f":"'WP FR-16(7)(v) LossRatios'!$K$25+1","v":1.03165},112]
[12,null,{"$f":"'WP FR-16(7)(v) DS Tot - KW'!$B$27","v":"NOVEMBER"},{"$f":"'WP FR-16(7)(v) RS - KW'!$C$30","v":720},{"$f":"'WP FR-16(7)(v) KWH'!L$22","v":50311},70,0.80809709695999998,87,{"$f":"'WP FR-16(7)(v) LossRatios'!$M$26+1","v":1.03586},90,null,0.48424641179,145,null,0.69957437865000005,100,{"$f":"'WP FR-16(7)(v) LossRatios'!$K$26+1","v":1.0297400000000001},103]
[13,null,{"$f":"'WP FR-16(7)(v) DS Tot - KW'!$B$28","v":"DECEMBER"},{"$f":"'WP FR-16(7)(v) RS - KW'!$C$31","v":744},{"$f":"'WP FR-16(7)(v) KWH'!M$22","v":39736},53,0.77429897424000005,68,{"$f":"'WP FR-16(7)(v) LossRatios'!$M$27+1","v":1.0358000000000001},70,null,0.49681938365999995,107,null,0.70885571443000006,75,{"$f":"'WP FR-16(7)(v) LossRatios'!$K$27+1","v":1.02969},77]
[14,null,null,{"$f":"SUM(D139:D150)","v":8760},{"$f":"SUM(E139:E150)","v":689282},null,null,{"$f":"SUM(H139:H150)","v":1316},null,{"$f":"SUM(J139:J150)","v":1365},null,null,{"$f":"SUM(M139:M150)","v":1967},null,null,{"$f":"SUM(P139:P150)","v":1449},null,{"$f":"SUM(R139:R150)","v":1495}]
[null,null,null,null," ",null,null," "]
[]
[null,null,"(a) Source: WPFR-16(7)(v), Page 51"]
[null,null,"(b) Source: WPFR-16(7)(v), Page 41"]
[null,null,"(c) Source: WPFR-16(7)(v), Page 33, Col 5 (Loss % + 1)"]
[null,null,"(d) Source: WPFR-16(7)(v), Page 33, Col 2 (Loss % + 1)"]
[null,null,"(e) Source: Form 1, Page 401b, Col (f)"]
[]
[null,null,null,null,null,null,null,null,null,null,null,null,null,null,null,null,{"$f":"'WP FR-16(7)(v) DS Tot - KW'!I1","v":"Work Paper FR-16(7)(v) "}]
[{"$f":"'WP FR-16(7)(v) DS Tot - KW'!A1","v":"DUKE ENERGY KENTUCKY, INC."},null,null,null,null,null,null,null,null,null,null,null,null,null,null,null,{"$f":"'WP FR-16(7)(v) DS Tot - KW'!I2","v":"Witness Responsible:"}]
[{"$f":"coss_type","v":"ELECTRIC COST OF SERVICE STUDY "},null,null,null,null,null,null,null,null,null,null,null,null,null,null,null,{"$f":"'WP FR-16(7)(v) DS Tot - KW'!I3","v":"James E. Ziolkowski"}]
[{"$f":"case_name","v":"CASE NO: 2019-00271"},null,null,null,null,null,null,null,null,null,null,null,null,null,null,null,"Page 19"]
[{"$f":"alloc_factors","v":"ALLOCATION FACTORS FOR COST OF SERVICE STUDY"}]
[{"$f":"'WP FR-16(7)(v) DS Tot - KW'!A5","v":"TWELVE MONTHS ENDING DECEMBER 31, 2018"}]
[]
["DERIVATION OF COINCIDENT AND NON-COINCIDENT KW DEMANDS",null,null,null,null,null,null,null,null,""]
["RATE GROUP:  DS - DISTRIBUTION - SMALL/MEDIUM - SECONDARY VOLTAGE (NO RTP)"]
[]
[]
[null,null,null,null,null,null,null,null,null,null,null,"NON-COINCIDENT PEAK"]
[null,null,null,null," ",null,"COINCIDENT PEAK DEMAND",null,null,null,null,"(\"NCP\") DEMAND",null,null,"DIVERSIFIED PEAK DEMAND"]
[null,null,null,null,null,null,"COIN","CP","TRANS & DIST","CP",null,null,null,null,null,"DIVERSIFIED",null,"DIVERSIFIED"]
[null,null,null,null,null,null," PEAK","KW DMD.","LOSS","KW DMD.",null,"NON-COIN","NON-COIN",null,"DIVERSIFIED","CLASS","DISTR. LOSS","CLASS"]
[null,null,null,null," ","AVERAGE","LOAD","AT","FACTOR","AT",null,"CLASS","KW DMD.",null,"CLASS","KW DEMAND","FACTOR TO","KW DEMAND"]
[null,null,null,null,"TOTAL","HRLY KW","FACTOR","DELIVERY","TO GEN","GENERATION",null,"PEAK LOAD","AT DELIVERY",null,"PEAK LOAD","AT DELIVERY","TRANSMISSION","AT TRANSMISSION"]
["LINE",null,null,"HOURS","KWH(a)","(2) / (1)","(b)","(3) / (4)","(c)","(5) * (6)",null,"FACTOR (b)","(3) / (8)",null,"FACTOR (b)","(3) / (10)","(d)","(11)* (12)"]
["NO.",null," MONTH","(1)","(2)","(3)","(4)","(5)","(6)","(7)",null,"(8)","(9)",null,"(10)","(11)","(12)","(13)"]
[1]
[{"$f":"1+A179","v":2},null,{"$f":"'WP FR-16(7)(v) DS Tot - KW'!$B$17","v":"JANUARY"},{"$f":"'WP FR-16(7)(v) RS - KW'!$C$20","v":744},{"$f":"'WP FR-16(7)(v) KWH'!B29","v":93049650},{"$f":"IF(D180=0,0,ROUND(E180/D180,0))","v":125067},{"$f":"'WP FR-16(7)(v) LoadRes DS'!L15/100","v":0.77765870936000003},{"$f":"IF(G180=0,0,ROUND(F180/G180,0))","v":160825},{"$f":"'WP FR-16(7)(v) LossRatios'!$M$16+1","v":1.0389600000000001},{"$f":"ROUND(H180*I180,0)","v":167091},null,{"$f":"'WP FR-16(7)(v) LoadRes DS'!J15/100","v":0.52106588546999999},{"$f":"ROUND(F180/L180,0)","v":240021},null,{"$f":"'WP FR-16(7)(v) LoadRes DS'!K15/100","v":0.71997439431999988},{"$f":"ROUND(F180/O180,0)","v":173710},{"$f":"'WP FR-16(7)(v) LossRatios'!$K$16+1","v":1.0323},{"$f":"ROUND(Q180*P180,0)","v":179321}]
[3,null,{"$f":"'WP FR-16(7)(v) DS Tot - KW'!$B$18","v":"FEBRUARY"},{"$f":"'WP FR-16(7)(v) RS - KW'!$C$21","v":672},{"$f":"'WP FR-16(7)(v) KWH'!C$29","v":82447849},122690,{"$f":"'WP FR-16(7)(v) LoadRes DS'!L17/100","v":0.79085856854000003},155135,{"$f":"'WP FR-16(7)(v) LossRatios'!$M$17+1","v":1.03592},160707,null,{"$f":"'WP FR-16(7)(v) LoadRes DS'!J17/100","v":0.47975649672999998},255734,null,{"$f":"'WP FR-16(7)(v) LoadRes DS'!K17/100","v":0.71867025837999998},170718,{"$f":"'WP FR-16(7)(v) LossRatios'!$K$17+1","v":1.02979},175804]
[4,null,{"$f":"'WP FR-16(7)(v) DS Tot - KW'!$B$19","v":"MARCH"},{"$f":"'WP FR-16(7)(v) RS - KW'!$C$22","v":744},{"$f":"'WP FR-16(7)(v) KWH'!D$29","v":77733494},104481,{"$f":"'WP FR-16(7)(v) LoadRes DS'!L19/100","v":0.86688695483999989},120524,{"$f":"'WP FR-16(7)(v) LossRatios'!$M$18+1","v":1.0358000000000001},124839,null,{"$f":"'WP FR-16(7)(v) LoadRes DS'!J19/100","v":0.49944559015000001},209194,null,{"$f":"'WP FR-16(7)(v) LoadRes DS'!K19/100","v":0.71927613312000005},145259,{"$f":"'WP FR-16(7)(v) LossRatios'!$K$18+1","v":1.02969},149572]
[5,null,{"$f":"'WP FR-16(7)(v) DS Tot - KW'!$B$20","v":"APRIL"},{"$f":"'WP FR-16(7)(v) RS - KW'!$C$23","v":720},{"$f":"'WP FR-16(7)(v) KWH'!E$29","v":79559327},110499,{"$f":"'WP FR-16(7)(v) LoadRes DS'!L21/100","v":0.71997148407},153477,{"$f":"'WP FR-16(7)(v) LossRatios'!$M$19+1","v":1.0354300000000001},158915,null,{"$f":"'WP FR-16(7)(v) LoadRes DS'!J21/100","v":0.44734635127},247010,null,{"$f":"'WP FR-16(7)(v) LoadRes DS'!K21/100","v":0.69859048607000007},158174,{"$f":"'WP FR-16(7)(v) LossRatios'!$K$19+1","v":1.02939},162823]
[6,null,{"$f":"'WP FR-16(7)(v) DS Tot - KW'!$B$21","v":"MAY"},{"$f":"'WP FR-16(7)(v) RS - KW'!$C$24","v":744},{"$f":"'WP FR-16(7)(v) KWH'!F$29","v":80165048},107749,{"$f":"'WP FR-16(7)(v) LoadRes DS'!L23/100","v":0.69356867433999991},155354,{"$f":"'WP FR-16(7)(v) LossRatios'!$M$20+1","v":1.0381100000000001},161275,null,{"$f":"'WP FR-16(7)(v) LoadRes DS'!J23/100","v":0.48115190906999999},223940,null,{"$f":"'WP FR-16(7)(v) LoadRes DS'!K23/100","v":0.61199533048999999},176062,{"$f":"'WP FR-16(7)(v) LossRatios'!$K$20+1","v":1.0316000000000001},181626]
[7,null,{"$f":"'WP FR-16(7)(v) DS Tot - KW'!$B$22","v":"JUNE"},{"$f":"'WP FR-16(7)(v) RS - KW'!$C$25","v":720},{"$f":"'WP FR-16(7)(v) KWH'!G$29","v":99210901},137793,{"$f":"'WP FR-16(7)(v) LoadRes DS'!L25/100","v":0.68715415871000007},200527,{"$f":"'WP FR-16(7)(v) LossRatios'!$M$21+1","v":1.0404100000000001},208630,null,{"$f":"'WP FR-16(7)(v) LoadRes DS'!J25/100","v":0.48933462833999997},281593,null,{"$f":"'WP FR-16(7)(v) LoadRes DS'!K25/100","v":0.62058942452999999},222036,{"$f":"'WP FR-16(7)(v) LossRatios'!$K$21+1","v":1.0335000000000001},229474]
[8,null,{"$f":"'WP FR-16(7)(v) DS Tot - KW'!$B$23","v":"JULY"},{"$f":"'WP FR-16(7)(v) RS - KW'!$C$26","v":744},{"$f":"'WP FR-16(7)(v) KWH'!H$29","v":103094719},138568,{"$f":"'WP FR-16(7)(v) LoadRes DS'!L27/100","v":0.70634182654},196177,{"$f":"'WP FR-16(7)(v) LossRatios'!$M$22+1","v":1.0400499999999999},204034,null,{"$f":"'WP FR-16(7)(v) LoadRes DS'!J27/100","v":0.49547608554999995},279666,null,{"$f":"'WP FR-16(7)(v) LoadRes DS'!K27/100","v":0.62352890137999994},222232,{"$f":"'WP FR-16(7)(v) LossRatios'!$K$22+1","v":1.0331999999999999},229610]
[9,null,{"$f":"'WP FR-16(7)(v) DS Tot - KW'!$B$24","v":"AUGUST"},{"$f":"'WP FR-16(7)(v) RS - KW'!$C$27","v":744},{"$f":"'WP FR-16(7)(v) KWH'!I$29","v":98035000},131767,{"$f":"'WP FR-16(7)(v) LoadRes DS'!L29/100","v":0.74450926513000004},176985,{"$f":"'WP FR-16(7)(v) LossRatios'!$M$23+1","v":1.0395000000000001},183976,null,{"$f":"'WP FR-16(7)(v) LoadRes DS'!J29/100","v":0.50650680028999995},260149,null,{"$f":"'WP FR-16(7)(v) LoadRes DS'!K29/100","v":0.63075037956000002},208905,{"$f":"'WP FR-16(7)(v) LossRatios'!$K$23+1","v":1.0327500000000001},215747]
[10,null,{"$f":"'WP FR-16(7)(v) DS Tot - KW'!$B$25","v":"SEPTEMBER"},{"$f":"'WP FR-16(7)(v) RS - KW'!$C$28","v":720},{"$f":"'WP FR-16(7)(v) KWH'!J$29","v":101422415},140864,{"$f":"'WP FR-16(7)(v) LoadRes DS'!L31/100","v":0.59079947379999997},238429,{"$f":"'WP FR-16(7)(v) LossRatios'!$M$24+1","v":1.0403500000000001},248050,null,{"$f":"'WP FR-16(7)(v) LoadRes DS'!J31/100","v":0.46031310396999997},306018,null,{"$f":"'WP FR-16(7)(v) LoadRes DS'!K31/100","v":0.56938555129000001},247397,{"$f":"'WP FR-16(7)(v) LossRatios'!$K$24+1","v":1.03345},255672]
[11,null,{"$f":"'WP FR-16(7)(v) DS Tot - KW'!$B$26","v":"OCTOBER"},{"$f":"'WP FR-16(7)(v) RS - KW'!$C$29","v":744},{"$f":"'WP FR-16(7)(v) KWH'!K$29","v":87030318},116976,{"$f":"'WP FR-16(7)(v) LoadRes DS'!L33/100","v":0.56995259941999998},205238,{"$f":"'WP FR-16(7)(v) LossRatios'!$M$25+1","v":1.03817},213072,null,{"$f":"'WP FR-16(7)(v) LoadRes DS'!J33/100","v":0.43227459885999997},270606,null,{"$f":"'WP FR-16(7)(v) LoadRes DS'!K33/100","v":0.56822716540000007},205861,{"$f":"'WP FR-16(7)(v) LossRatios'!$K$25+1","v":1.03165},212377]
[12,null,{"$f":"'WP FR-16(7)(v) DS Tot - KW'!$B$27","v":"NOVEMBER"},{"$f":"'WP FR-16(7)(v) RS - KW'!$C$30","v":720},{"$f":"'WP FR-16(7)(v) KWH'!L$29","v":76477579},106219,{"$f":"'WP FR-16(7)(v) LoadRes DS'!L35/100","v":0.80809709695999998},131443,{"$f":"'WP FR-16(7)(v) LossRatios'!$M$26+1","v":1.03586},136157,null,{"$f":"'WP FR-16(7)(v) LoadRes DS'!J35/100","v":0.48424641179},219349,null,{"$f":"'WP FR-16(7)(v) LoadRes DS'!K35/100","v":0.69957437865000005},151834,{"$f":"'WP FR-16(7)(v) LossRatios'!$K$26+1","v":1.0297400000000001},156350]
[13,null,{"$f":"'WP FR-16(7)(v) DS Tot - KW'!$B$28","v":"DECEMBER"},{"$f":"'WP FR-16(7)(v) RS - KW'!$C$31","v":744},{"$f":"'WP FR-16(7)(v) KWH'!M$29","v":86440290},116183,{"$f":"'WP FR-16(7)(v) LoadRes DS'!L37/100","v":0.77429897424000005},150049,{"$f":"'WP FR-16(7)(v) LossRatios'!$M$27+1","v":1.0358000000000001},155421,null,{"$f":"'WP FR-16(7)(v) LoadRes DS'!J37/100","v":0.49681938365999995},233854,null,{"$f":"'WP FR-16(7)(v) LoadRes DS'!K37/100","v":0.70885571443000006},163902,{"$f":"'WP FR-16(7)(v) LossRatios'!$K$27+1","v":1.02969},168768]
[14,null,null,{"$f":"SUM(D180:D191)","v":8760},{"$f":"SUM(E180:E191)","v":1064666590},null,null,{"$f":"SUM(H180:H191)","v":2044163},null,{"$f":"SUM(J180:J191)","v":2122167},null,null,{"$f":"SUM(M180:M191)","v":3027134},null,null,{"$f":"SUM(P180:P191)","v":2246090},null,{"$f":"SUM(R180:R191)","v":2317144}]
[null,null,null,null," ",null,null," "]
[]
[null,null,"(a) Source: WPFR-16(7)(v), Page 51"]
[null,null,"(b) Source: WPFR-16(7)(v), Page 40"]
[null,null,"(c) Source: WPFR-16(7)(v), Page 33, Col 5 (Loss % + 1)"]
[null,null,"(d) Source: WPFR-16(7)(v), Page 33, Col 2 (Loss % + 1)"]
[null,null,"(e) Source: Form 1, Page 401b, Col (f)"]

{"sheet":"WP FR-16(7)(v) DP Pri - KW","index":43,"n_rows":460,"n_cols":18,"rows_kept":460,"cut":false,"hidden":false,"merged":[[11,6,11,9],[52,6,52,9]]}
[{"$f":"'WP FR-16(7)(v)-KW & KWH @Gen'!A1","v":"DUKE ENERGY KENTUCKY, INC."},null,null,null,null,null,null,null,null,null,null,null,null,null,null,null,{"$f":"'WP FR-16(7)(v)-KW & KWH @Gen'!G1","v":"Work Paper FR-16(7)(v) "}]
[{"$f":"coss_type","v":"ELECTRIC COST OF SERVICE STUDY "},null,null,null,null,null,null,null,null,null,null,null,null,null,null,null,{"$f":"'WP FR-16(7)(v)-KW & KWH @Gen'!G2","v":"Witness Responsible:"}]
[{"$f":"case_name","v":"CASE NO: 2019-00271"},null,null,null,null,null,null,null,null,null,null,null,null,null,null,null,{"$f":"PROPER(Witness)","v":"James E. Ziolkowski"}]
[{"$f":"alloc_factors","v":"ALLOCATION FACTORS FOR COST OF SERVICE STUDY"},null,null,null,null,null,null,null,null,null,null,null,null,null,null,null,"Page 20"]
[{"$f":"'WP FR-16(7)(v)-KW & KWH @Gen'!A5","v":"TWELVE MONTHS ENDING DECEMBER 31, 2018"}]
[]
["DERIVATION OF COINCIDENT AND NON-COINCIDENT KW DEMANDS",null,null,null,null,null,null,null,null,""]
["RATE GROUP: DP - DISTRIBUTION - LARGE - PRIMARY VOLTAGE - EXCL. RTP INCREMENTAL"]
[]
[]
[" ",null,null,null,null,null,null,null,null,null,null,"NON-COINCIDENT PEAK"]
[null,null,null,null," ",null,"COINCIDENT PEAK DEMAND",null,null,null,null,"(\"NCP\") DEMAND",null,null,"DIVERSIFIED PEAK DEMAND"]
[null,null,null,null,null,null,"COIN","CP","TRANS & DIST","CP",null,null,null,null,null,"DIVERSIFIED",null,"DIVERSIFIED"]
[null,null,null,null,null,null," PEAK","KW DMD.","LOSS","KW DMD.",null,"NON-COIN","NON-COIN",null,"DIVERSIFIED","CLASS","DISTR. LOSS","CLASS"]
[null,null,null,null," ","AVERAGE","LOAD","AT","FACTOR","AT",null,"CLASS","KW DMD.",null,"CLASS","KW DEMAND","FACTOR TO","KW DEMAND"]
[null,null,null,null,"TOTAL","HRLY KW","FACTOR","DELIVERY","TO GEN","GENERATION",null,"PEAK LOAD","AT DELIVERY",null,"PEAK LOAD","AT DELIVERY","TRANSMISSION","AT TRANSMISSION"]
["LINE",null,null,"HOURS","KWH(a)","(2) / (1)","(b)","(3) / (4)","(c)","(5) * (6)",null,"FACTOR (b)","(3) / (8)",null,"FACTOR (b)","(3) / (10)","(d)","(11)* (12)"]
["NO.",null," MONTH","(1)","(2)","(3)","(4)","(5)","(6)","(7)",null,"(8)","(9)",null,"(10)","(11)","(12)","(13)"]
[1]
[{"$f":"1+A19","v":2},null,{"$f":"'WP FR-16(7)(v) DS Tot - KW'!$B$17","v":"JANUARY"},{"$f":"'WP FR-16(7)(v) RS - KW'!$C$20","v":744},{"$f":"'WP FR-16(7)(v) KWH'!B18","v":1033548},{"$f":"IF(D20=0,0,ROUND(E20/D20,0))","v":1389},{"$f":"'WP FR-16(7)(v) LoadRes DP'!$L$15/100","v":0.89184165395999992},{"$f":"ROUND(F20/G20,0)","v":1557},{"$f":"'WP FR-16(7)(v) LossRatios'!$M$16+1","v":1.0389600000000001},{"$f":"ROUND(H20*I20,0)","v":1618},null,{"$f":"'WP FR-16(7)(v) LoadRes DP'!$J$15/100","v":0.64561643805000002},{"$f":"ROUND(F20/L20,0)","v":2151},null,{"$f":"'WP FR-16(7)(v) LoadRes DP'!$K$15/100","v":0.80187648358999997},{"$f":"ROUND(F20/O20,0)","v":1732},{"$f":"1+'WP FR-16(7)(v) LossRatios'!$K$16","v":1.0323},{"$f":"ROUND(Q20*P20,0)","v":1788}]
[3,null,{"$f":"'WP FR-16(7)(v) DS Tot - KW'!$B$18","v":"FEBRUARY"},{"$f":"'WP FR-16(7)(v) RS - KW'!$C$21","v":672},{"$f":"'WP FR-16(7)(v) KWH'!C$18","v":935338},1392,{"$f":"'WP FR-16(7)(v) LoadRes DP'!$L$17/100","v":0.85526982025999998},1628,{"$f":"'WP FR-16(7)(v) LossRatios'!$M$17+1","v":1.03592},1686,null,{"$f":"'WP FR-16(7)(v) LoadRes DP'!$J$17/100","v":0.63300052506999993},2199,null,{"$f":"'WP FR-16(7)(v) LoadRes DP'!$K$17/100","v":0.80476009941000004},1730,{"$f":"1+'WP FR-16(7)(v) LossRatios'!$K$17","v":1.02979},1782]
[4,null,{"$f":"'WP FR-16(7)(v) DS Tot - KW'!$B$19","v":"MARCH"},{"$f":"'WP FR-16(7)(v) RS - KW'!$C$22","v":744},{"$f":"'WP FR-16(7)(v) KWH'!D$18","v":878917},1181,{"$f":"'WP FR-16(7)(v) LoadRes DP'!$L$19/100","v":0.88596817110999992},1333,{"$f":"'WP FR-16(7)(v) LossRatios'!$M$18+1","v":1.0358000000000001},1381,null,{"$f":"'WP FR-16(7)(v) LoadRes DP'!$J$19/100","v":0.65394301712000003},1806,null,{"$f":"'WP FR-16(7)(v) LoadRes DP'!$K$19/100","v":0.81470674436000001},1450,{"$f":"1+'WP FR-16(7)(v) LossRatios'!$K$18","v":1.02969},1493]
[5,null,{"$f":"'WP FR-16(7)(v) DS Tot - KW'!$B$20","v":"APRIL"},{"$f":"'WP FR-16(7)(v) RS - KW'!$C$23","v":720},{"$f":"'WP FR-16(7)(v) KWH'!E$18","v":907590},1261,{"$f":"'WP FR-16(7)(v) LoadRes DP'!$L$21/100","v":0.79342256336000005},1589,{"$f":"'WP FR-16(7)(v) LossRatios'!$M$19+1","v":1.0354300000000001},1645,null,{"$f":"'WP FR-16(7)(v) LoadRes DP'!$J$21/100","v":0.58218052577000001},2166,null,{"$f":"'WP FR-16(7)(v) LoadRes DP'!$K$21/100","v":0.76352233284999993},1652,{"$f":"1+'WP FR-16(7)(v) LossRatios'!$K$19","v":1.02939},1701]
[6,null,{"$f":"'WP FR-16(7)(v) DS Tot - KW'!$B$21","v":"MAY"},{"$f":"'WP FR-16(7)(v) RS - KW'!$C$24","v":744},{"$f":"'WP FR-16(7)(v) KWH'!F$18","v":1031960},1387,{"$f":"'WP FR-16(7)(v) LoadRes DP'!$L$23/100","v":0.7166491761899999},1935,{"$f":"'WP FR-16(7)(v) LossRatios'!$M$20+1","v":1.0381100000000001},2009,null,{"$f":"'WP FR-16(7)(v) LoadRes DP'!$J$23/100","v":0.55267742567},2510,null,{"$f":"'WP FR-16(7)(v) LoadRes DP'!$K$23/100","v":0.61290032009999995},2263,{"$f":"1+'WP FR-16(7)(v) LossRatios'!$K$20","v":1.0316000000000001},2335]
[7,null,{"$f":"'WP FR-16(7)(v) DS Tot - KW'!$B$22","v":"JUNE"},{"$f":"'WP FR-16(7)(v) RS - KW'!$C$25","v":720},{"$f":"'WP FR-16(7)(v) KWH'!G$18","v":2281381},3169,{"$f":"'WP FR-16(7)(v) LoadRes DP'!$L$25/100","v":0.85023190735999998},3727,{"$f":"'WP FR-16(7)(v) LossRatios'!$M$21+1","v":1.0404100000000001},3878,null,{"$f":"'WP FR-16(7)(v) LoadRes DP'!$J$25/100","v":0.70273368925000002},4510,null,{"$f":"'WP FR-16(7)(v) LoadRes DP'!$K$25/100","v":0.79983659862000001},3962,{"$f":"1+'WP FR-16(7)(v) LossRatios'!$K$21","v":1.0335000000000001},4095]
[8,null,{"$f":"'WP FR-16(7)(v) DS Tot - KW'!$B$23","v":"JULY"},{"$f":"'WP FR-16(7)(v) RS - KW'!$C$26","v":744},{"$f":"'WP FR-16(7)(v) KWH'!H$18","v":2583273},3472,{"$f":"'WP FR-16(7)(v) LoadRes DP'!$L$27/100","v":0.84603584737000004},4104,{"$f":"'WP FR-16(7)(v) LossRatios'!$M$22+1","v":1.0400499999999999},4268,null,{"$f":"'WP FR-16(7)(v) LoadRes DP'!$J$27/100","v":0.70655759818999997},4914,null,{"$f":"'WP FR-16(7)(v) LoadRes DP'!$K$27/100","v":0.76393358601000005},4545,{"$f":"1+'WP FR-16(7)(v) LossRatios'!$K$22","v":1.0331999999999999},4696]
[9,null,{"$f":"'WP FR-16(7)(v) DS Tot - KW'!$B$24","v":"AUGUST"},{"$f":"'WP FR-16(7)(v) RS - KW'!$C$27","v":744},{"$f":"'WP FR-16(7)(v) KWH'!I$18","v":2670956},3590,{"$f":"'WP FR-16(7)(v) LoadRes DP'!$L$29/100","v":1.03769322535},3460,{"$f":"'WP FR-16(7)(v) LossRatios'!$M$23+1","v":1.0395000000000001},3597,null,{"$f":"'WP FR-16(7)(v) LoadRes DP'!$J$29/100","v":0.7179093914400001},5001,null,{"$f":"'WP FR-16(7)(v) LoadRes DP'!$K$29/100","v":0.79084337402000005},4539,{"$f":"1+'WP FR-16(7)(v) LossRatios'!$K$23","v":1.0327500000000001},4688]
[10,null,{"$f":"'WP FR-16(7)(v) DS Tot - KW'!$B$25","v":"SEPTEMBER"},{"$f":"'WP FR-16(7)(v) RS - KW'!$C$28","v":720},{"$f":"'WP FR-16(7)(v) KWH'!J$18","v":2396718},3329,{"$f":"'WP FR-16(7)(v) LoadRes DP'!$L$31/100","v":0.86154242031999995},3864,{"$f":"'WP FR-16(7)(v) LossRatios'!$M$24+1","v":1.0403500000000001},4020,null,{"$f":"'WP FR-16(7)(v) LoadRes DP'!$J$31/100","v":0.65965949714000005},5047,null,{"$f":"'WP FR-16(7)(v) LoadRes DP'!$K$31/100","v":0.75561775190000002},4406,{"$f":"1+'WP FR-16(7)(v) LossRatios'!$K$24","v":1.03345},4553]
[11,null,{"$f":"'WP FR-16(7)(v) DS Tot - KW'!$B$26","v":"OCTOBER"},{"$f":"'WP FR-16(7)(v) RS - KW'!$C$29","v":744},{"$f":"'WP FR-16(7)(v) KWH'!K$18","v":2289439},3077,{"$f":"'WP FR-16(7)(v) LoadRes DP'!$L$33/100","v":0.96686968144999996},3182,{"$f":"'WP FR-16(7)(v) LossRatios'!$M$25+1","v":1.03817},3303,null,{"$f":"'WP FR-16(7)(v) LoadRes DP'!$J$33/100","v":0.63559678596000002},4841,null,{"$f":"'WP FR-16(7)(v) LoadRes DP'!$K$33/100","v":0.79480291192999997},3871,{"$f":"1+'WP FR-16(7)(v) LossRatios'!$K$25","v":1.03165},3994]
[12,null,{"$f":"'WP FR-16(7)(v) DS Tot - KW'!$B$27","v":"NOVEMBER"},{"$f":"'WP FR-16(7)(v) RS - KW'!$C$30","v":720},{"$f":"'WP FR-16(7)(v) KWH'!L$18","v":2511982},3489,{"$f":"'WP FR-16(7)(v) LoadRes DP'!$L$35/100","v":1.0250616565900001},3404,{"$f":"'WP FR-16(7)(v) LossRatios'!$M$26+1","v":1.03586},3526,null,{"$f":"'WP FR-16(7)(v) LoadRes DP'!$J$35/100","v":0.64042333346000002},5448,null,{"$f":"'WP FR-16(7)(v) LoadRes DP'!$K$35/100","v":0.74633120770999994},4675,{"$f":"1+'WP FR-16(7)(v) LossRatios'!$K$26","v":1.0297400000000001},4814]
[13,null,{"$f":"'WP FR-16(7)(v) DS Tot - KW'!$B$28","v":"DECEMBER"},{"$f":"'WP FR-16(7)(v) RS - KW'!$C$31","v":744},{"$f":"'WP FR-16(7)(v) KWH'!M$18","v":2787805},3747,{"$f":"'WP FR-16(7)(v) LoadRes DP'!$L$37/100","v":0.81271532764999999},4610,{"$f":"'WP FR-16(7)(v) LossRatios'!$M$27+1","v":1.0358000000000001},4775,null,{"$f":"'WP FR-16(7)(v) LoadRes DP'!$J$37/100","v":0.65887980897999998},5687,null,{"$f":"'WP FR-16(7)(v) LoadRes DP'!$K$37/100","v":0.75595232021000003},4957,{"$f":"1+'WP FR-16(7)(v) LossRatios'!$K$27","v":1.02969},5104]
[14,null,null,{"$f":"SUM(D20:D31)","v":8760},{"$f":"SUM(E20:E31)","v":22308907},null,null,{"$f":"SUM(H20:H31)","v":34393},null,{"$f":"SUM(J20:J31)","v":35706},null,null,{"$f":"SUM(M20:M31)","v":46280},null,null,{"$f":"SUM(P20:P31)","v":39782},null,{"$f":"SUM(R20:R31)","v":41043}]
[]
[]
[null,null,"(a) Source: WPFR-16(7)(v), Page 51"]
[null,null,"(b) Source: WPFR-16(7)(v), Page 42"]
[null,null,"(c) Source: WPFR-16(7)(v), Page 33, Col 5 (Loss % + 1)"]
[null,null,"(d) Source: WPFR-16(7)(v), Page 33, Col 2 (Loss % + 1)"]
[null,null,"(e) Source: Form 1, Page 401b, Col (f)"]
[]
[]
[{"$f":"A1","v":"DUKE ENERGY KENTUCKY, INC."},null,null,null,null,null,null,null,null,null,null,null,null,null,null,null,{"$f":"Q1","v":"Work Paper FR-16(7)(v) "}]
[{"$f":"coss_type","v":"ELECTRIC COST OF SERVICE STUDY "},null,null,null,null,null,null,null,null,null,null,null,null,null,null,null,{"$f":"Q2","v":"Witness Responsible:"}]
[{"$f":"case_name","v":"CASE NO: 2019-00271"},null,null,null,null,null,null,null,null,null,null,null,null,null,null,null,{"$f":"Q3","v":"James E. Ziolkowski"}]
[{"$f":"alloc_factors","v":"ALLOCATION FACTORS FOR COST OF SERVICE STUDY"},null,null,null,null,null,null,null,null,null,null,null,null,null,null,null,"Page 21"]
[{"$f":"A5","v":"TWELVE MONTHS ENDING DECEMBER 31, 2018"}]
[]
["DERIVATION OF COINCIDENT AND NON-COINCIDENT KW DEMANDS",null,null,null,null,null,null,null,null,""]
["RATE GROUP: DP - DISTRIBUTION - LARGE - PRIMARY VOLTAGE - RTP INCREMENTAL"]
[]
[]
[null,null,null,null,null,null,null,null,null,null,null,"NON-COINCIDENT PEAK"]
[null,null,null,null," ",null,"COINCIDENT PEAK DEMAND",null,null,null,null,"(\"NCP\") DEMAND",null,null,"DIVERSIFIED PEAK DEMAND"]
[null,null,null,null,null,null,"COIN","CP","TRANS & DIST","CP",null,null,null,null,null,"DIVERSIFIED",null,"DIVERSIFIED"]
[null,null,null,null,null,null," PEAK","KW DMD.","LOSS","KW DMD.",null,"NON-COIN","NON-COIN",null,"DIVERSIFIED","CLASS","DISTR. LOSS","CLASS"]
[null,null,null,null," ","AVERAGE","LOAD","AT","FACTOR","AT",null,"CLASS","KW DMD.",null,"CLASS","KW DEMAND","FACTOR TO","KW DEMAND"]
[null,null,null,null,"TOTAL","HRLY KW","FACTOR","DELIVERY","TO GEN","GENERATION",null,"PEAK LOAD","AT DELIVERY",null,"PEAK LOAD","AT DELIVERY","TRANSMISSION","AT TRANSMISSION"]
["LINE",null,null,"HOURS","KWH(a)","(2) / (1)","(b)","(3) / (4)","(c)","(5) * (6)",null,"FACTOR (b)","(3) / (8)",null,"FACTOR (b)","(3) / (10)","(d)","(11)* (12)"]
["NO.",null," MONTH","(1)","(2)","(3)","(4)","(5)","(6)","(7)",null,"(8)","(9)",null,"(10)","(11)","(12)","(13)"]
[1]
[{"$f":"1+A60","v":2},null,{"$f":"'WP FR-16(7)(v) DS Tot - KW'!$B$17","v":"JANUARY"},{"$f":"'WP FR-16(7)(v) RS - KW'!$C$20","v":744},0,{"$f":"IF(D61=0,0,ROUND(E61/D61,0))","v":0},{"$f":"G20","v":0.89184165395999992},{"$f":"IF(G61=0,0,ROUND(F61/G61,0))","v":0},{"$f":"'WP FR-16(7)(v) LossRatios'!$M$16+1","v":1.0389600000000001},{"$f":"ROUND(H61*I61,0)","v":0},null,{"$f":"L20","v":0.64561643805000002},{"$f":"IF(L61=0,0,ROUND(F61/L61,0))","v":0},null,{"$f":"O20","v":0.80187648358999997},{"$f":"ROUND(F61/O61,0)","v":0},{"$f":"1+'WP FR-16(7)(v) LossRatios'!$K$16","v":1.0323},{"$f":"ROUND(Q61*P61,0)","v":0}]
[3,null,{"$f":"'WP FR-16(7)(v) DS Tot - KW'!$B$18","v":"FEBRUARY"},{"$f":"'WP FR-16(7)(v) RS - KW'!$C$21","v":672},0,0,0.85526982025999998,0,{"$f":"'WP FR-16(7)(v) LossRatios'!$M$17+1","v":1.03592},0,null,0.63300052506999993,0,null,0.80476009941000004,0,{"$f":"1+'WP FR-16(7)(v) LossRatios'!$K$17","v":1.02979},0]
[4,null,{"$f":"'WP FR-16(7)(v) DS Tot - KW'!$B$19","v":"MARCH"},{"$f":"'WP FR-16(7)(v) RS - KW'!$C$22","v":744},0,0,0.88596817110999992,0,{"$f":"'WP FR-16(7)(v) LossRatios'!$M$18+1","v":1.0358000000000001},0,null,0.65394301712000003,0,null,0.81470674436000001,0,{"$f":"1+'WP FR-16(7)(v) LossRatios'!$K$18","v":1.02969},0]
[5,null,{"$f":"'WP FR-16(7)(v) DS Tot - KW'!$B$20","v":"APRIL"},{"$f":"'WP FR-16(7)(v) RS - KW'!$C$23","v":720},0,0,0.79342256336000005,0,{"$f":"'WP FR-16(7)(v) LossRatios'!$M$19+1","v":1.0354300000000001},0,null,0.58218052577000001,0,null,0.76352233284999993,0,{"$f":"1+'WP FR-16(7)(v) LossRatios'!$K$19","v":1.02939},0]
[6,null,{"$f":"'WP FR-16(7)(v) DS Tot - KW'!$B$21","v":"MAY"},{"$f":"'WP FR-16(7)(v) RS - KW'!$C$24","v":744},0,0,0.7166491761899999,0,{"$f":"'WP FR-16(7)(v) LossRatios'!$M$20+1","v":1.0381100000000001},0,null,0.55267742567,0,null,0.61290032009999995,0,{"$f":"1+'WP FR-16(7)(v) LossRatios'!$K$20","v":1.0316000000000001},0]
[7,null,{"$f":"'WP FR-16(7)(v) DS Tot - KW'!$B$22","v":"JUNE"},{"$f":"'WP FR-16(7)(v) RS - KW'!$C$25","v":720},0,0,0.85023190735999998,0,{"$f":"'WP FR-16(7)(v) LossRatios'!$M$21+1","v":1.0404100000000001},0,null,0.70273368925000002,0,null,0.79983659862000001,0,{"$f":"1+'WP FR-16(7)(v) LossRatios'!$K$21","v":1.0335000000000001},0]
[8,null,{"$f":"'WP FR-16(7)(v) DS Tot - KW'!$B$23","v":"JULY"},{"$f":"'WP FR-16(7)(v) RS - KW'!$C$26","v":744},0,0,0.84603584737000004,0,{"$f":"'WP FR-16(7)(v) LossRatios'!$M$22+1","v":1.0400499999999999},0,null,0.70655759818999997,0,null,0.76393358601000005,0,{"$f":"1+'WP FR-16(7)(v) LossRatios'!$K$22","v":1.0331999999999999},0]
[9,null,{"$f":"'WP FR-16(7)(v) DS Tot - KW'!$B$24","v":"AUGUST"},{"$f":"'WP FR-16(7)(v) RS - KW'!$C$27","v":744},0,0,1.03769322535,0,{"$f":"'WP FR-16(7)(v) LossRatios'!$M$23+1","v":1.0395000000000001},0,null,0.7179093914400001,0,null,0.79084337402000005,0,{"$f":"1+'WP FR-16(7)(v) LossRatios'!$K$23","v":1.0327500000000001},0]
[10,null,{"$f":"'WP FR-16(7)(v) DS Tot - KW'!$B$25","v":"SEPTEMBER"},{"$f":"'WP FR-16(7)(v) RS - KW'!$C$28","v":720},0,0,0.86154242031999995,0,{"$f":"'WP FR-16(7)(v) LossRatios'!$M$24+1","v":1.0403500000000001},0,null,0.65965949714000005,0,null,0.75561775190000002,0,{"$f":"1+'WP FR-16(7)(v) LossRatios'!$K$24","v":1.03345},0]
[11,null,{"$f":"'WP FR-16(7)(v) DS Tot - KW'!$B$26","v":"OCTOBER"},{"$f":"'WP FR-16(7)(v) RS - KW'!$C$29","v":744},0,0,0.96686968144999996,0,{"$f":"'WP FR-16(7)(v) LossRatios'!$M$25+1","v":1.03817},0,null,0.63559678596000002,0,null,0.79480291192999997,0,{"$f":"1+'WP FR-16(7)(v) LossRatios'!$K$25","v":1.03165},0]
[12,null,{"$f":"'WP FR-16(7)(v) DS Tot - KW'!$B$27","v":"NOVEMBER"},{"$f":"'WP FR-16(7)(v) RS - KW'!$C$30","v":720},0,0,1.0250616565900001,0,{"$f":"'WP FR-16(7)(v) LossRatios'!$M$26+1","v":1.03586},0,null,0.64042333346000002,0,null,0.74633120770999994,0,{"$f":"1+'WP FR-16(7)(v) LossRatios'!$K$26","v":1.0297400000000001},0]
[13,null,{"$f":"'WP FR-16(7)(v) DS Tot - KW'!$B$28","v":"DECEMBER"},{"$f":"'WP FR-16(7)(v) RS - KW'!$C$31","v":744},0,0,0.81271532764999999,0,{"$f":"'WP FR-16(7)(v) LossRatios'!$M$27+1","v":1.0358000000000001},0,null,0.65887980897999998,0,null,0.75595232021000003,0,{"$f":"1+'WP FR-16(7)(v) LossRatios'!$K$27","v":1.02969},0]
[14,null,null,{"$f":"SUM(D61:D72)","v":8760},{"$f":"SUM(E61:E72)","v":0},null,null,{"$f":"SUM(H61:H72)","v":0},null,{"$f":"SUM(J61:J72)","v":0},null,null,{"$f":"SUM(M61:M72)","v":0},null,null,{"$f":"SUM(P61:P72)","v":0},null,{"$f":"SUM(R61:R72)","v":0}]
[]
[]
[null,null,"(a) No KWH value for this class"]
[null,null,{"$f":"C36","v":"(b) Source: WPFR-16(7)(v), Page 42"}]
[null,null,"(c) Source: WPFR-16(7)(v), Page 33, Col 5 (Loss % + 1)"]
[null,null,"(d) Source: WPFR-16(7)(v), Page 33, Col 2 (Loss % + 1)"]
[null,null,"(e) Source: Form 1, Page 401b, Col (f)"]
[" "]
[" "]
[" "]
[" "]
[" "]
[]
[]
[]
[]
[]
[]
[]
[]
[]
[]
[]
[]
[]
[]
[]
[]
[]
[]
[]
[]
[]
[]
[]
[]
[]
[]
[]
[]
[]
[]
[]
[]
[]
[]
[]
[]
[]
[]
[]
[]
[]
[]
[]
[]
[]
[]
[]
[]
[]
[]
[]
[]
[]
[]
[]
[]
[]
[]
[]
[]
[]
[]
[]
[]
[]
[]
[]
[]
[]
[]
[]
[]
[]
[]
[]
[]
[]
[]
[]
[]
[]
[]
[]
[]
[]
[]
[]
[]
[]
[]
[]
[]
[]
[]
[]
[]
[]
[]
[]
[]
[]
[]
[]
[]
[]
[]
[]
[]
[]
[]
[]
[]
[]
[]
[]
[]
[]
[]
[]
[]
[]
[]
[]
[]
[]
[]
[]
[]
[]
[]
[]
[]
[]
[]
[]
[]
[]
[]
[]
[]
[]
[]
[]
[]
[]
[]
[]
[]
[]
[]
[]
[]
[]
[]
[]
[]
[]
[]
[]
[]
[]
[]
[]
[]
[]
[]
[]
[]
[]
[]
[]
[]
[]
[]
[]
[]
[]
[]
[]
[]
[]
[]
[]
[]
[]
[]
[]
[]
[]
[]
[]
[]
[]
[]
[]
[]
[]
[]
[]
[]
[]
[]
[]
[]
[]
[]
[]
[]
[]
[]
[]
[]
[]
[]
[]
[]
[]
[]
[]
[]
[]
[]
[]
[]
[]
[]
[]
[]
[]
[]
[]
[]
[]
[]
[]
[]
[]
[]
[]
[]
[]
[]
[]
[]
[]
[]
[]
[]
[]
[]
[]
[]
[]
[]
[]
[]
[]
[]
[]
[]
[]
[]
[]
[]
[]
[]
[]
[]
[]
[]
[]
[]
[]
[]
[]
[]
[]
[]
[]
[]
[]
[]
[]
[]
[]
[]
[]
[]
[]
[]
[]
[]
[]
[]
[]
[]
[]
[]
[]
[]
[]
[]
[]
[]
[]
[]
[]
[]
[]
[]
[]
[]
[]
[]
[]
[]
[]
[]
[]
[]
[]
[]
[]
[]
[]
[]
[]
[]
[]
[]
[]
[]
[]
[]
[]
[]
[]
[]
[]
[]
[]
[]
[]
[]
[]
[]
[]
[]
[]
[]
[]
[]
[]
[]
[]
[]
[]
[]
[]
[]
[]
[]
[]
[]
[]
[]
[]
[]
[]
[]
[]
[]
[]
[]
[null,null,null,null,null,0]

{"sheet":"WP FR-16(7)(v) TT - KW","index":44,"n_rows":504,"n_cols":13,"rows_kept":504,"cut":false,"hidden":false,"merged":[[9,6,9,9],[48,6,48,9]]}
[{"$f":"'WP FR-16(7)(v)-KW & KWH @Gen'!A1","v":"DUKE ENERGY KENTUCKY, INC."},null,null,null,null,null,null,null,null,null,null,{"$f":"'WP FR-16(7)(v)-KW & KWH @Gen'!G1","v":"Work Paper FR-16(7)(v) "}]
[{"$f":"coss_type","v":"ELECTRIC COST OF SERVICE STUDY "},null,null,null,null,null,null,null,null,null,null,{"$f":"'WP FR-16(7)(v)-KW & KWH @Gen'!G2","v":"Witness Responsible:"}]
[{"$f":"case_name","v":"CASE NO: 2019-00271"},null,null,null,null,null,null,null,null,null,null,{"$f":"PROPER(Witness)","v":"James E. Ziolkowski"}]
[{"$f":"alloc_factors","v":"ALLOCATION FACTORS FOR COST OF SERVICE STUDY"},null,null,null,null,null,null,null,null,null,null,"Page 22"]
[{"$f":"'WP FR-16(7)(v)-KW & KWH @Gen'!A5","v":"TWELVE MONTHS ENDING DECEMBER 31, 2018"}]
[]
["DERIVATION OF COINCIDENT AND NON-COINCIDENT KW DEMANDS",null,null,null,null,null,null,null,null,""]
["RATE GROUP:  TT -  TOTAL TRANSMISSION EXCL. RTP INCREMENTAL"]
[null,null,null,null,null,null,null,null,null,null,null,"NON-COINCIDENT PEAK"]
[null,null,null,null," ",null,"COINCIDENT PEAK DEMAND",null,null,null,null,"(\"NCP\") DEMAND"]
[null,null,null,null,null,null,"COIN","CP","TRANS & DIST","CP"]
[null,null,null,null,null,null," PEAK","KW DMD.","LOSS","KW DMD.",null,"NON-COIN","NON-COIN"]
[null,null,null,null," ","AVERAGE","LOAD","AT","FACTOR","AT",null,"CLASS","KW DMD."]
[null,null,null,null,"TOTAL","HRLY KW","FACTOR","DELIVERY","TO GEN","GENERATION",null,"PEAK LOAD","AT DELIVERY"]
["LINE",null,null,"HOURS","KWH(a)","(2) / (1)","(b)","(3) / (4)","(c)","(5) * (6)",null,"FACTOR (b)","(3) / (8)"]
["NO.",null," MONTH","(1)","(2)","(3)","(4)","(5)","(6)","(7)",null,"(8)","(9)"]
[1]
[{"$f":"1+A17","v":2},null,{"$f":"'WP FR-16(7)(v) DS Tot - KW'!$B$17","v":"JANUARY"},{"$f":"'WP FR-16(7)(v) RS - KW'!$C$20","v":744},{"$f":"'WP FR-16(7)(v) KWH'!B47","v":19295877},{"$f":"IF(D18=0,0,ROUND(E18/D18,0))","v":25935},{"$f":"'WP FR-16(7)(v) LoadRes TT'!$L$15/100","v":0.90589137939999997},{"$f":"ROUND(F18/G18,0)","v":28629},{"$f":"'WP FR-16(7)(v) LossRatios'!$G$16+1","v":1.0064500000000001},{"$f":"ROUND(H18*I18,0)","v":28814},null,{"$f":"'WP FR-16(7)(v) LoadRes TT'!$J$15/100","v":0.66357059395999995},{"$f":"ROUND(F18/L18,0)","v":39084}]
[3,null,{"$f":"'WP FR-16(7)(v) DS Tot - KW'!$B$18","v":"FEBRUARY"},{"$f":"'WP FR-16(7)(v) RS - KW'!$C$21","v":672},{"$f":"'WP FR-16(7)(v) KWH'!C$47","v":18094456},26926,{"$f":"'WP FR-16(7)(v) LoadRes TT'!$L$17/100","v":0.99587282511999997},27038,{"$f":"'WP FR-16(7)(v) LossRatios'!$G$17+1","v":1.0059499999999999},27199,null,{"$f":"'WP FR-16(7)(v) LoadRes TT'!$J$17/100","v":0.68453901118999994},39335]
[4,null,{"$f":"'WP FR-16(7)(v) DS Tot - KW'!$B$19","v":"MARCH"},{"$f":"'WP FR-16(7)(v) RS - KW'!$C$22","v":744},{"$f":"'WP FR-16(7)(v) KWH'!D$47","v":18885733},25384,{"$f":"'WP FR-16(7)(v) LoadRes TT'!$L$19/100","v":0.93940394522999993},27021,{"$f":"'WP FR-16(7)(v) LossRatios'!$G$18+1","v":1.00593},27181,null,{"$f":"'WP FR-16(7)(v) LoadRes TT'!$J$19/100","v":0.71025162628999994},35739]
[5,null,{"$f":"'WP FR-16(7)(v) DS Tot - KW'!$B$20","v":"APRIL"},{"$f":"'WP FR-16(7)(v) RS - KW'!$C$23","v":720},{"$f":"'WP FR-16(7)(v) KWH'!E$47","v":18886548},26231,{"$f":"'WP FR-16(7)(v) LoadRes TT'!$L$21/100","v":0.84276115399999996},31125,{"$f":"'WP FR-16(7)(v) LossRatios'!$G$19+1","v":1.00587},31308,null,{"$f":"'WP FR-16(7)(v) LoadRes TT'!$J$21/100","v":0.66403588752000009},39502]
[6,null,{"$f":"'WP FR-16(7)(v) DS Tot - KW'!$B$21","v":"MAY"},{"$f":"'WP FR-16(7)(v) RS - KW'!$C$24","v":744},{"$f":"'WP FR-16(7)(v) KWH'!F$47","v":18670526},25095,{"$f":"'WP FR-16(7)(v) LoadRes TT'!$L$23/100","v":0.9233643185699999},27178,{"$f":"'WP FR-16(7)(v) LossRatios'!$G$20+1","v":1.00631},27349,null,{"$f":"'WP FR-16(7)(v) LoadRes TT'!$J$23/100","v":0.68340535652000001},36721]
[7,null,{"$f":"'WP FR-16(7)(v) DS Tot - KW'!$B$22","v":"JUNE"},{"$f":"'WP FR-16(7)(v) RS - KW'!$C$25","v":720},{"$f":"'WP FR-16(7)(v) KWH'!G$47","v":18937868},26303,{"$f":"'WP FR-16(7)(v) LoadRes TT'!$L$25/100","v":0.93606989107000005},28099,{"$f":"'WP FR-16(7)(v) LossRatios'!$G$21+1","v":1.0066900000000001},28287,null,{"$f":"'WP FR-16(7)(v) LoadRes TT'!$J$25/100","v":0.68584095938},38351]
[8,null,{"$f":"'WP FR-16(7)(v) DS Tot - KW'!$B$23","v":"JULY"},{"$f":"'WP FR-16(7)(v) RS - KW'!$C$26","v":744},{"$f":"'WP FR-16(7)(v) KWH'!H$47","v":19075004},25638,{"$f":"'WP FR-16(7)(v) LoadRes TT'!$L$27/100","v":0.90090632979999996},28458,{"$f":"'WP FR-16(7)(v) LossRatios'!$G$22+1","v":1.0066299999999999},28647,null,{"$f":"'WP FR-16(7)(v) LoadRes TT'!$J$27/100","v":0.66971852061000003},38282]
[9,null,{"$f":"'WP FR-16(7)(v) DS Tot - KW'!$B$24","v":"AUGUST"},{"$f":"'WP FR-16(7)(v) RS - KW'!$C$27","v":744},{"$f":"'WP FR-16(7)(v) KWH'!I$47","v":18644336},25060,{"$f":"'WP FR-16(7)(v) LoadRes TT'!$L$29/100","v":0.96966513053000003},25844,{"$f":"'WP FR-16(7)(v) LossRatios'!$G$23+1","v":1.00654},26013,null,{"$f":"'WP FR-16(7)(v) LoadRes TT'!$J$29/100","v":0.6753401216499999},37107]
[10,null,{"$f":"'WP FR-16(7)(v) DS Tot - KW'!$B$25","v":"SEPTEMBER"},{"$f":"'WP FR-16(7)(v) RS - KW'!$C$28","v":720},{"$f":"'WP FR-16(7)(v) KWH'!J$47","v":18633408},25880,{"$f":"'WP FR-16(7)(v) LoadRes TT'!$L$31/100","v":1.07207953963},24140,{"$f":"'WP FR-16(7)(v) LossRatios'!$G$24+1","v":1.00668},24301,null,{"$f":"'WP FR-16(7)(v) LoadRes TT'!$J$31/100","v":0.65369102950000002},39591]
[11,null,{"$f":"'WP FR-16(7)(v) DS Tot - KW'!$B$26","v":"OCTOBER"},{"$f":"'WP FR-16(7)(v) RS - KW'!$C$29","v":744},{"$f":"'WP FR-16(7)(v) KWH'!K$47","v":17757865},23868,{"$f":"'WP FR-16(7)(v) LoadRes TT'!$L$33/100","v":0.82320705434999997},28994,{"$f":"'WP FR-16(7)(v) LossRatios'!$G$25+1","v":1.0063200000000001},29177,null,{"$f":"'WP FR-16(7)(v) LoadRes TT'!$J$33/100","v":0.66274081024999998},36014]
[12,null,{"$f":"'WP FR-16(7)(v) DS Tot - KW'!$B$27","v":"NOVEMBER"},{"$f":"'WP FR-16(7)(v) RS - KW'!$C$30","v":720},{"$f":"'WP FR-16(7)(v) KWH'!L$47","v":19540074},27139,{"$f":"'WP FR-16(7)(v) LoadRes TT'!$L$35/100","v":0.90224097873000009},30080,{"$f":"'WP FR-16(7)(v) LossRatios'!$G$26+1","v":1.0059400000000001},30259,null,{"$f":"'WP FR-16(7)(v) LoadRes TT'!$J$35/100","v":0.64622185164000001},41996]
[13,null,{"$f":"'WP FR-16(7)(v) DS Tot - KW'!$B$28","v":"DECEMBER"},{"$f":"'WP FR-16(7)(v) RS - KW'!$C$31","v":744},{"$f":"'WP FR-16(7)(v) KWH'!M$47","v":19783732},26591,{"$f":"'WP FR-16(7)(v) LoadRes TT'!$L$37/100","v":0.78010848137},34086,{"$f":"'WP FR-16(7)(v) LossRatios'!$G$27+1","v":1.00593},34288,null,{"$f":"'WP FR-16(7)(v) LoadRes TT'!$J$37/100","v":0.63696904428000001},41746]
[14,null,null,{"$f":"SUM(D18:D29)","v":8760},{"$f":"SUM(E18:E29)","v":226205427},null,null,{"$f":"SUM(H18:H29)","v":340692},null,{"$f":"SUM(J18:J29)","v":342823},null,null,{"$f":"SUM(M18:M29)","v":463468}]
[]
[]
[null,null,"(a) Source: WPFR-16(7)(v), Page 51"]
[null,null,"(b) Source: WPFR-16(7)(v), Page 46"]
[null,null,"(c) Source: WPFR-16(7)(v), Page 33, Col 3 (Loss % + 1)"]
[null,null,"(d) Source: Form 1, Page 401b, Col (f)"]
[]
[]
[]
[{"$f":"A1","v":"DUKE ENERGY KENTUCKY, INC."},null,null,null,null,null,null,null,null,null,null,{"$f":"L1","v":"Work Paper FR-16(7)(v) "}]
[{"$f":"coss_type","v":"ELECTRIC COST OF SERVICE STUDY "},null,null,null,null,null,null,null,null,null,null,{"$f":"L2","v":"Witness Responsible:"}]
[{"$f":"case_name","v":"CASE NO: 2019-00271"},null,null,null,null,null,null,null,null,null,null,{"$f":"L3","v":"James E. Ziolkowski"}]
[{"$f":"alloc_factors","v":"ALLOCATION FACTORS FOR COST OF SERVICE STUDY"},null,null,null,null,null,null,null,null,null,null,"Page 23"]
[{"$f":"A5","v":"TWELVE MONTHS ENDING DECEMBER 31, 2018"}]
[]
["DERIVATION OF COINCIDENT AND NON-COINCIDENT KW DEMANDS"]
["RATE GROUP:  TT -  TRANSMISSION RTP - INCREMENTAL"]
[null,null,null,null,null,null,null,null,null,null,null,"NON-COINCIDENT PEAK"]
[null,null,null,null," ",null,"COINCIDENT PEAK DEMAND",null,null,null,null,"(\"NCP\") DEMAND"]
[null,null,null,null,null,null,"COIN","CP","TRANS & DIST","CP"]
[null,null,null,null,null,null," PEAK","KW DMD.","LOSS","KW DMD.",null,"NON-COIN","NON-COIN"]
[null,null,null,null," ","AVERAGE","LOAD","AT","FACTOR","AT",null,"CLASS","KW DMD."]
[null,null,null,null,"TOTAL","HRLY KW","FACTOR","DELIVERY","TO GEN","GENERATION",null,"PEAK LOAD","AT DELIVERY"]
["LINE",null,null,"HOURS","KWH(a)","(2) / (1)","(b)","(3) / (4)","(c)","(5) * (6)",null,"FACTOR (b)","(3) / (8)"]
["NO.",null," MONTH","(1)","(2)","(3)","(4)","(5)","(6)","(7)",null,"(8)","(9)"]
[1]
[{"$f":"1+A56","v":2},null,{"$f":"'WP FR-16(7)(v) DS Tot - KW'!$B$17","v":"JANUARY"},{"$f":"'WP FR-16(7)(v) RS - KW'!$C$20","v":744},{"$f":"'WP FR-16(7)(v) KWH'!B$48","v":841048},{"$f":"IF(D57=0,0,ROUND(E57/D57,0))","v":1130},{"$f":"G18","v":0.90589137939999997},{"$f":"IF(G57=0,0,ROUND(F57/G57,0))","v":1247},{"$f":"1+'WP FR-16(7)(v) LossRatios'!$G$16","v":1.0064500000000001},{"$f":"ROUND(H57*I57,0)","v":1255},null,{"$f":"L18","v":0.66357059395999995},{"$f":"IF(L57=0,0,ROUND(F57/L57,0))","v":1703}]
[3,null,{"$f":"'WP FR-16(7)(v) DS Tot - KW'!$B$18","v":"FEBRUARY"},{"$f":"'WP FR-16(7)(v) RS - KW'!$C$21","v":672},{"$f":"'WP FR-16(7)(v) KWH'!C$48","v":1191821},1774,0.99587282511999997,1781,{"$f":"1+'WP FR-16(7)(v) LossRatios'!$G$17","v":1.0059499999999999},1792,null,0.68453901118999994,2592]
[4,null,{"$f":"'WP FR-16(7)(v) DS Tot - KW'!$B$19","v":"MARCH"},{"$f":"'WP FR-16(7)(v) RS - KW'!$C$22","v":744},{"$f":"'WP FR-16(7)(v) KWH'!D$48","v":1073160},1442,0.93940394522999993,1535,{"$f":"1+'WP FR-16(7)(v) LossRatios'!$G$18","v":1.00593},1544,null,0.71025162628999994,2030]
[5,null,{"$f":"'WP FR-16(7)(v) DS Tot - KW'!$B$20","v":"APRIL"},{"$f":"'WP FR-16(7)(v) RS - KW'!$C$23","v":720},{"$f":"'WP FR-16(7)(v) KWH'!E$48","v":945173},1313,0.84276115399999996,1558,{"$f":"1+'WP FR-16(7)(v) LossRatios'!$G$19","v":1.00587},1567,null,0.66403588752000009,1977]
[6,null,{"$f":"'WP FR-16(7)(v) DS Tot - KW'!$B$21","v":"MAY"},{"$f":"'WP FR-16(7)(v) RS - KW'!$C$24","v":744},{"$f":"'WP FR-16(7)(v) KWH'!F$48","v":1039800},1398,0.9233643185699999,1514,{"$f":"1+'WP FR-16(7)(v) LossRatios'!$G$20","v":1.00631},1524,null,0.68340535652000001,2046]
[7,null,{"$f":"'WP FR-16(7)(v) DS Tot - KW'!$B$22","v":"JUNE"},{"$f":"'WP FR-16(7)(v) RS - KW'!$C$25","v":720},{"$f":"'WP FR-16(7)(v) KWH'!G$48","v":1022576},1420,0.93606989107000005,1517,{"$f":"1+'WP FR-16(7)(v) LossRatios'!$G$21","v":1.0066900000000001},1527,null,0.68584095938,2070]
[8,null,{"$f":"'WP FR-16(7)(v) DS Tot - KW'!$B$23","v":"JULY"},{"$f":"'WP FR-16(7)(v) RS - KW'!$C$26","v":744},{"$f":"'WP FR-16(7)(v) KWH'!H$48","v":1443007},1940,0.90090632979999996,2153,{"$f":"1+'WP FR-16(7)(v) LossRatios'!$G$22","v":1.0066299999999999},2167,null,0.66971852061000003,2897]
[9,null,{"$f":"'WP FR-16(7)(v) DS Tot - KW'!$B$24","v":"AUGUST"},{"$f":"'WP FR-16(7)(v) RS - KW'!$C$27","v":744},{"$f":"'WP FR-16(7)(v) KWH'!I$48","v":1422110},1911,0.96966513053000003,1971,{"$f":"1+'WP FR-16(7)(v) LossRatios'!$G$23","v":1.00654},1984,null,0.6753401216499999,2830]
[10,null,{"$f":"'WP FR-16(7)(v) DS Tot - KW'!$B$25","v":"SEPTEMBER"},{"$f":"'WP FR-16(7)(v) RS - KW'!$C$28","v":720},{"$f":"'WP FR-16(7)(v) KWH'!J$48","v":1768753},2457,1.07207953963,2292,{"$f":"1+'WP FR-16(7)(v) LossRatios'!$G$24","v":1.00668},2307,null,0.65369102950000002,3759]
[11,null,{"$f":"'WP FR-16(7)(v) DS Tot - KW'!$B$26","v":"OCTOBER"},{"$f":"'WP FR-16(7)(v) RS - KW'!$C$29","v":744},{"$f":"'WP FR-16(7)(v) KWH'!K$48","v":1339558},1800,0.82320705434999997,2187,{"$f":"1+'WP FR-16(7)(v) LossRatios'!$G$25","v":1.0063200000000001},2201,null,0.66274081024999998,2716]
[12,null,{"$f":"'WP FR-16(7)(v) DS Tot - KW'!$B$27","v":"NOVEMBER"},{"$f":"'WP FR-16(7)(v) RS - KW'!$C$30","v":720},{"$f":"'WP FR-16(7)(v) KWH'!L$48","v":1047185},1454,0.90224097873000009,1612,{"$f":"1+'WP FR-16(7)(v) LossRatios'!$G$26","v":1.0059400000000001},1622,null,0.64622185164000001,2250]
[13,null,{"$f":"'WP FR-16(7)(v) DS Tot - KW'!$B$28","v":"DECEMBER"},{"$f":"'WP FR-16(7)(v) RS - KW'!$C$31","v":744},{"$f":"'WP FR-16(7)(v) KWH'!M$48","v":987407},1327,0.78010848137,1701,{"$f":"1+'WP FR-16(7)(v) LossRatios'!$G$27","v":1.00593},1711,null,0.63696904428000001,2083]
[14,null,null,{"$f":"SUM(D57:D68)","v":8760},{"$f":"SUM(E57:E68)","v":14121598},null,null,{"$f":"SUM(H57:H68)","v":21068},null,{"$f":"SUM(J57:J68)","v":21201},null,null,{"$f":"SUM(M57:M68)","v":28953}]
[null,null,null,null," ",null,null," "]
[]
[null,null,"(a) Source: WPFR-16(7)(v), Page 51"]
[null,null,{"$f":"C34","v":"(b) Source: WPFR-16(7)(v), Page 46"}]
[null,null,"(c) Source: WPFR-16(7)(v) Page 33, Col 3 (Loss % + 1)"]
[null,null,"(d) Source: Form 1, Page 401b, Col (f)"]
[]
[" "]
[]
[]
[]
[]
[]
[]
[]
[]
[]
[]
[]
[]
[]
[]
[]
[]
[]
[]
[]
[]
[]
[]
[]
[]
[]
[]
[]
[]
[]
[]
[]
[]
[]
[]
[]
[]
[]
[]
[]
[]
[]
[]
[]
[]
[]
[]
[]
[]
[]
[]
[]
[]
[]
[]
[]
[]
[]
[]
[]
[]
[]
[]
[]
[]
[]
[]
[]
[]
[]
[]
[]
[]
[]
[]
[]
[]
[]
[]
[]
[]
[]
[]
[]
[]
[]
[]
[]
[]
[]
[]
[]
[]
[]
[]
[]
[]
[]
[]
[]
[]
[]
[]
[]
[]
[]
[]
[]
[]
[]
[]
[]
[]
[]
[]
[]
[]
[]
[]
[]
[]
[]
[]
[]
[]
[]
[]
[]
[]
[]
[]
[]
[]
[]
[]
[]
[]
[]
[]
[]
[]
[]
[]
[]
[]
[]
[]
[]
[]
[]
[]
[]
[]
[]
[]
[]
[]
[]
[]
[]
[]
[]
[]
[]
[]
[]
[]
[]
[]
[]
[]
[]
[]
[]
[]
[]
[]
[]
[]
[]
[]
[]
[]
[]
[]
[]
[]
[]
[]
[]
[]
[]
[]
[]
[]
[]
[]
[]
[]
[]
[]
[]
[]
[]
[]
[]
[]
[]
[]
[]
[]
[]
[]
[]
[]
[]
[]
[]
[]
[]
[]
[]
[]
[]
[]
[]
[]
[]
[]
[]
[]
[]
[]
[]
[]
[]
[]
[]
[]
[]
[]
[]
[]
[]
[]
[]
[]
[]
[]
[]
[]
[]
[]
[]
[]
[]
[]
[]
[]
[]
[]
[]
[]
[]
[]
[]
[]
[]
[]
[]
[]
[]
[]
[]
[]
[]
[]
[]
[]
[]
[]
[]
[]
[]
[]
[]
[]
[]
[]
[]
[]
[]
[]
[]
[]
[]
[]
[]
[]
[]
[]
[]
[]
[]
[]
[]
[]
[]
[]
[]
[]
[]
[]
[]
[]
[]
[]
[]
[]
[]
[]
[]
[]
[]
[]
[]
[]
[]
[]
[]
[]
[]
[]
[]
[]
[]
[]
[]
[]
[]
[]
[]
[]
[]
[]
[]
[]
[]
[]
[]
[]
[]
[]
[]
[]
[]
[]
[]
[]
[]
[]
[]
[]
[]
[]
[]
[]
[]
[]
[]
[]
[]
[]
[]
[]
[]
[]
[]
[]
[]
[]
[]
[]
[]
[]
[]
[]
[]
[]
[]
[]
[]
[]
[]
[]
[]
[]
[]
[]
[]
[]
[]
[]
[]
[]
[]
[]
[]
[]
[]
[]
[]
[]
[]
[]
[]
[]
[]
[]
[]
[]
[]
[]
[]
[]
[]
[]
[null,null,null,null,null,0]

{"sheet":"WP FR-16(7)(v) LT - KW","index":45,"n_rows":507,"n_cols":15,"rows_kept":507,"cut":false,"hidden":false,"merged":[]}
[{"$f":"'WP FR-16(7)(v)-KW & KWH @Gen'!A1","v":"DUKE ENERGY KENTUCKY, INC."},null,null,null,null,null,null,null,null,null,null,null,null,{"$f":"'WP FR-16(7)(v)-KW & KWH @Gen'!G1","v":"Work Paper FR-16(7)(v) "}]
[{"$f":"coss_type","v":"ELECTRIC COST OF SERVICE STUDY "},null,null,null,null,null,null,null,null,null,null,null,null,{"$f":"'WP FR-16(7)(v)-KW & KWH @Gen'!G2","v":"Witness Responsible:"}]
[{"$f":"case_name","v":"CASE NO: 2019-00271"},null,null,null,null,null,null,null,null,null,null,null,null,{"$f":"PROPER(Witness)","v":"James E. Ziolkowski"}]
[{"$f":"alloc_factors","v":"ALLOCATION FACTORS FOR COST OF SERVICE STUDY"},null,null,null,null,null,null,null,null,null,null,null,null,"Page 24"]
[{"$f":"'WP FR-16(7)(v)-KW & KWH @Gen'!A5","v":"TWELVE MONTHS ENDING DECEMBER 31, 2018"}]
[]
["DERIVATION OF COINCIDENT AND NON-COINCIDENT KW DEMANDS",null,null,null,null,null,null,null,"    "]
["RATE GROUP: LIGHTING"]
[null,null,null,null,null,null,null,null,null,null,"(\"NCP\") "]
[null,null,null,null,null,null,null,null,null,null,"DEMAND",null,"DIVERSIFIED PEAK DEMAND"]
[null,null,null,null,null," ",null,"TRANS & DIST","CP",null,null,null,"DIVERSIFIED",null,"DIVERSIFIED"]
[null,null,null,null,null,null,"CP","LOSS","KW DMD.",null,"NON-COIN",null,"CLASS","DISTR. LOSS","CLASS"]
[null,null,null," ",null,"AVERAGE","KW DMD.","FACTOR","AT",null,"KW DMD.",null,"KW DEMAND","FACTOR TO","KW DEMAND"]
[null,null,null,"TOTAL","BURNING","HRLY KW","AT","TO GEN","GENERAION",null,"AT DELIVERY",null,"AT DELIVERY","TRANSMISSION","AT TRANSMISSION"]
["LINE",null,"HOURS","KWH(a)","HOURS ","(2) / (3)","DELIVERY","(b)","(5) * (6)",null,"(4)",null,"(4)","(d)","(11)* (12)"]
["NO."," MONTH","(1)","(2)","(3)","(4)","(5)","(6)","(7)",null,"(8)",null,"(9)","(10)","(11)"]
[1]
[{"$f":"A17+1","v":2},{"$f":"'WP FR-16(7)(v) DS Tot - KW'!$B$17","v":"JANUARY"},{"$f":"'WP FR-16(7)(v) RS - KW'!$C$20","v":744},{"$f":"'WP FR-16(7)(v) BurnHours'!D14","v":1303907},{"$f":"'WP FR-16(7)(v) BurnHours'!E14","v":432},{"$f":"IF(E18=0,0,ROUND(D18/E18,0))","v":3018},{"$f":"IF('WP FR-16(7)(v) BurnHours'!L14=\"n\",0,F18)","v":0},{"$f":"'WP FR-16(7)(v) LossRatios'!$M$16+1","v":1.0389600000000001},{"$f":"IF(H18=0,0,ROUND(G18*H18,0))","v":0},null,{"$f":"F18","v":3018},null,{"$f":"K18","v":3018},{"$f":"1+'WP FR-16(7)(v) LossRatios'!$K16","v":1.0323},{"$f":"ROUND(N18*M18,0)","v":3115}]
[3,{"$f":"'WP FR-16(7)(v) DS Tot - KW'!$B$18","v":"FEBRUARY"},{"$f":"'WP FR-16(7)(v) RS - KW'!$C$21","v":672},{"$f":"'WP FR-16(7)(v) BurnHours'!D15","v":1841369},{"$f":"'WP FR-16(7)(v) BurnHours'!E15","v":362},5087,{"$f":"IF('WP FR-16(7)(v) BurnHours'!L15=\"n\",0,F19)","v":0},{"$f":"'WP FR-16(7)(v) LossRatios'!$M$17+1","v":1.03592},0,null,5087,null,5087,{"$f":"1+'WP FR-16(7)(v) LossRatios'!$K17","v":1.02979},5239]
[4,{"$f":"'WP FR-16(7)(v) DS Tot - KW'!$B$19","v":"MARCH"},{"$f":"'WP FR-16(7)(v) RS - KW'!$C$22","v":744},{"$f":"'WP FR-16(7)(v) BurnHours'!D16","v":1574392},{"$f":"'WP FR-16(7)(v) BurnHours'!E16","v":363},4337,{"$f":"IF('WP FR-16(7)(v) BurnHours'!L16=\"n\",0,F20)","v":4337},{"$f":"'WP FR-16(7)(v) LossRatios'!$M$18+1","v":1.0358000000000001},4492,null,4337,null,4337,{"$f":"1+'WP FR-16(7)(v) LossRatios'!$K18","v":1.02969},4466]
[5,{"$f":"'WP FR-16(7)(v) DS Tot - KW'!$B$20","v":"APRIL"},{"$f":"'WP FR-16(7)(v) RS - KW'!$C$23","v":720},{"$f":"'WP FR-16(7)(v) BurnHours'!D17","v":1567513},{"$f":"'WP FR-16(7)(v) BurnHours'!E17","v":313},5008,{"$f":"IF('WP FR-16(7)(v) BurnHours'!L17=\"n\",0,F21)","v":0},{"$f":"'WP FR-16(7)(v) LossRatios'!$M$19+1","v":1.0354300000000001},0,null,5008,null,5008,{"$f":"1+'WP FR-16(7)(v) LossRatios'!$K19","v":1.02939},5155]
[6,{"$f":"'WP FR-16(7)(v) DS Tot - KW'!$B$21","v":"MAY"},{"$f":"'WP FR-16(7)(v) RS - KW'!$C$24","v":744},{"$f":"'WP FR-16(7)(v) BurnHours'!D18","v":1574736},{"$f":"'WP FR-16(7)(v) BurnHours'!E18","v":287},5487,{"$f":"IF('WP FR-16(7)(v) BurnHours'!L18=\"n\",0,F22)","v":0},{"$f":"'WP FR-16(7)(v) LossRatios'!$M$20+1","v":1.0381100000000001},0,null,5487,null,5487,{"$f":"1+'WP FR-16(7)(v) LossRatios'!$K20","v":1.0316000000000001},5660]
[7,{"$f":"'WP FR-16(7)(v) DS Tot - KW'!$B$22","v":"JUNE"},{"$f":"'WP FR-16(7)(v) RS - KW'!$C$25","v":720},{"$f":"'WP FR-16(7)(v) BurnHours'!D19","v":750766},{"$f":"'WP FR-16(7)(v) BurnHours'!E19","v":259},2899,{"$f":"IF('WP FR-16(7)(v) BurnHours'!L19=\"n\",0,F23)","v":0},{"$f":"'WP FR-16(7)(v) LossRatios'!$M$21+1","v":1.0404100000000001},0,null,2899,null,2899,{"$f":"1+'WP FR-16(7)(v) LossRatios'!$K21","v":1.0335000000000001},2996]
[8,{"$f":"'WP FR-16(7)(v) DS Tot - KW'!$B$23","v":"JULY"},{"$f":"'WP FR-16(7)(v) RS - KW'!$C$26","v":744},{"$f":"'WP FR-16(7)(v) BurnHours'!D20","v":1951974},{"$f":"'WP FR-16(7)(v) BurnHours'!E20","v":275},7098,{"$f":"IF('WP FR-16(7)(v) BurnHours'!L20=\"n\",0,F24)","v":0},{"$f":"'WP FR-16(7)(v) LossRatios'!$M$22+1","v":1.0400499999999999},0,null,7098,null,7098,{"$f":"1+'WP FR-16(7)(v) LossRatios'!$K22","v":1.0331999999999999},7334]
[9,{"$f":"'WP FR-16(7)(v) DS Tot - KW'!$B$24","v":"AUGUST"},{"$f":"'WP FR-16(7)(v) RS - KW'!$C$27","v":744},{"$f":"'WP FR-16(7)(v) BurnHours'!D21","v":1532991},{"$f":"'WP FR-16(7)(v) BurnHours'!E21","v":305},5026,{"$f":"IF('WP FR-16(7)(v) BurnHours'!L21=\"n\",0,F25)","v":0},{"$f":"'WP FR-16(7)(v) LossRatios'!$M$23+1","v":1.0395000000000001},0,null,5026,null,5026,{"$f":"1+'WP FR-16(7)(v) LossRatios'!$K23","v":1.0327500000000001},5191]
[10,{"$f":"'WP FR-16(7)(v) DS Tot - KW'!$B$25","v":"SEPTEMBER"},{"$f":"'WP FR-16(7)(v) RS - KW'!$C$28","v":720},{"$f":"'WP FR-16(7)(v) BurnHours'!D22","v":1518293},{"$f":"'WP FR-16(7)(v) BurnHours'!E22","v":333},4559,{"$f":"IF('WP FR-16(7)(v) BurnHours'!L22=\"n\",0,F26)","v":0},{"$f":"'WP FR-16(7)(v) LossRatios'!$M$24+1","v":1.0403500000000001},0,null,4559,null,4559,{"$f":"1+'WP FR-16(7)(v) LossRatios'!$K24","v":1.03345},4711]
[11,{"$f":"'WP FR-16(7)(v) DS Tot - KW'!$B$26","v":"OCTOBER"},{"$f":"'WP FR-16(7)(v) RS - KW'!$C$29","v":744},{"$f":"'WP FR-16(7)(v) BurnHours'!D23","v":1138261},{"$f":"'WP FR-16(7)(v) BurnHours'!E23","v":384},2964,{"$f":"IF('WP FR-16(7)(v) BurnHours'!L23=\"n\",0,F27)","v":0},{"$f":"'WP FR-16(7)(v) LossRatios'!$M$25+1","v":1.03817},0,null,2964,null,2964,{"$f":"1+'WP FR-16(7)(v) LossRatios'!$K25","v":1.03165},3058]
[12,{"$f":"'WP FR-16(7)(v) DS Tot - KW'!$B$27","v":"NOVEMBER"},{"$f":"'WP FR-16(7)(v) RS - KW'!$C$30","v":720},{"$f":"'WP FR-16(7)(v) BurnHours'!D24","v":1846880},{"$f":"'WP FR-16(7)(v) BurnHours'!E24","v":406},4549,{"$f":"IF('WP FR-16(7)(v) BurnHours'!L24=\"n\",0,F28)","v":4549},{"$f":"'WP FR-16(7)(v) LossRatios'!$M$26+1","v":1.03586},4712,null,4549,null,4549,{"$f":"1+'WP FR-16(7)(v) LossRatios'!$K26","v":1.0297400000000001},4684]
[13,{"$f":"'WP FR-16(7)(v) DS Tot - KW'!$B$28","v":"DECEMBER"},{"$f":"'WP FR-16(7)(v) RS - KW'!$C$31","v":744},{"$f":"'WP FR-16(7)(v) BurnHours'!D25","v":1513539},{"$f":"'WP FR-16(7)(v) BurnHours'!E25","v":441},3432,{"$f":"IF('WP FR-16(7)(v) BurnHours'!L25=\"n\",0,F29)","v":0},{"$f":"'WP FR-16(7)(v) LossRatios'!$M$27+1","v":1.0358000000000001},0,null,3432,null,3432,{"$f":"1+'WP FR-16(7)(v) LossRatios'!$K27","v":1.02969},3534]
[14,null,{"$f":"SUM(C18:C29)","v":8760},{"$f":"SUM(D18:D29)","v":18114621},null,null,{"$f":"SUM(G18:G29)","v":8886},null,{"$f":"SUM(I18:I29)","v":9204},null,{"$f":"SUM(K18:K29)","v":53464},null,{"$f":"SUM(M18:M29)","v":53464},null,{"$f":"SUM(O18:O29)","v":55143}]
[]
[]
[null,"(a) Source: WPFR-16(7)(v), Page 50. Street Lighting Coin Peak KW Demand only if: Approx. Sunset > System Peak > Approx. Sunrise"]
[null,"(b) Source: WPFR-16(7)(v), Page 33, Col 5 (Loss % + 1)"]
[null,"(c) Source: WPFR-16(7)(v), Page 33, Col 2 (Loss % + 1)"]
[null,"(d) Source: Form 1, Page 401b, Col (f)"]
[" "]
[" "]
[" "]
[]
[]
[]
[]
[]
[]
[]
[]
[]
[]
[]
[]
[]
[]
[]
[]
[]
[]
[]
[]
[]
[]
[]
[]
[]
[]
[]
[]
[]
[]
[]
[]
[]
[]
[]
[]
[]
[]
[]
[]
[]
[]
[]
[]
[]
[]
[]
[]
[]
[]
[]
[]
[]
[]
[]
[]
[]
[]
[]
[]
[]
[]
[]
[]
[]
[]
[]
[]
[]
[]
[]
[]
[]
[]
[]
[]
[]
[]
[]
[]
[]
[]
[]
[]
[]
[]
[]
[]
[]
[]
[]
[]
[]
[]
[]
[]
[]
[]
[]
[]
[]
[]
[]
[]
[]
[]
[]
[]
[]
[]
[]
[]
[]
[]
[]
[]
[]
[]
[]
[]
[]
[]
[]
[]
[]
[]
[]
[]
[]
[]
[]
[]
[]
[]
[]
[]
[]
[]
[]
[]
[]
[]
[]
[]
[]
[]
[]
[]
[]
[]
[]
[]
[]
[]
[]
[]
[]
[]
[]
[]
[]
[]
[]
[]
[]
[]
[]
[]
[]
[]
[]
[]
[]
[]
[]
[]
[]
[]
[]
[]
[]
[]
[]
[]
[]
[]
[]
[]
[]
[]
[]
[]
[]
[]
[]
[]
[]
[]
[]
[]
[]
[]
[]
[]
[]
[]
[]
[]
[]
[]
[]
[]
[]
[]
[]
[]
[]
[]
[]
[]
[]
[]
[]
[]
[]
[]
[]
[]
[]
[]
[]
[]
[]
[]
[]
[]
[]
[]
[]
[]
[]
[]
[]
[]
[]
[]
[]
[]
[]
[]
[]
[]
[]
[]
[]
[]
[]
[]
[]
[]
[]
[]
[]
[]
[]
[]
[]
[]
[]
[]
[]
[]
[]
[]
[]
[]
[]
[]
[]
[]
[]
[]
[]
[]
[]
[]
[]
[]
[]
[]
[]
[]
[]
[]
[]
[]
[]
[]
[]
[]
[]
[]
[]
[]
[]
[]
[]
[]
[]
[]
[]
[]
[]
[]
[]
[]
[]
[]
[]
[]
[]
[]
[]
[]
[]
[]
[]
[]
[]
[]
[]
[]
[]
[]
[]
[]
[]
[]
[]
[]
[]
[]
[]
[]
[]
[]
[]
[]
[]
[]
[]
[]
[]
[]
[]
[]
[]
[]
[]
[]
[]
[]
[]
[]
[]
[]
[]
[]
[]
[]
[]
[]
[]
[]
[]
[]
[]
[]
[]
[]
[]
[]
[]
[]
[]
[]
[]
[]
[]
[]
[]
[]
[]
[]
[]
[]
[]
[]
[]
[]
[]
[]
[]
[]
[]
[]
[]
[]
[]
[]
[]
[]
[]
[]
[]
[]
[]
[]
[]
[]
[]
[]
[]
[]
[]
[]
[]
[]
[]
[]
[]
[]
[]
[]
[]
[]
[]
[]
[]
[]
[]
[]
[]
[]
[]
[]
[]
[]
[]
[]
[]
[]
[]
[]
[]
[]
[]
[]
[]
[]
[]
[]
[]
[]
[]
[]
[]
[null,null,null,null,0]

{"sheet":"WP FR-16(7)(v) DT Pri - KW","index":46,"n_rows":462,"n_cols":17,"rows_kept":462,"cut":false,"hidden":false,"merged":[[11,5,11,8],[53,5,53,8]]}
[{"$f":"'WP FR-16(7)(v)-KW & KWH @Gen'!A1","v":"DUKE ENERGY KENTUCKY, INC."},null,null,null,null,null,null,null,null,null,null,null,null,null,null,{"$f":"'WP FR-16(7)(v)-KW & KWH @Gen'!G1","v":"Work Paper FR-16(7)(v) "}]
[{"$f":"coss_type","v":"ELECTRIC COST OF SERVICE STUDY "},null,null,null,null,null,null,null,null,null,null,null,null,null,null,{"$f":"'WP FR-16(7)(v)-KW & KWH @Gen'!G2","v":"Witness Responsible:"}]
[{"$f":"case_name","v":"CASE NO: 2019-00271"},null,null,null,null,null,null,null,null,null,null,null,null,null,null,{"$f":"PROPER(Witness)","v":"James E. Ziolkowski"}]
[{"$f":"alloc_factors","v":"ALLOCATION FACTORS FOR COST OF SERVICE STUDY"},null,null,null,null,null,null,null,null,null,null,null,null,null,null,"Page 25"]
[{"$f":"'WP FR-16(7)(v)-KW & KWH @Gen'!A5","v":"TWELVE MONTHS ENDING DECEMBER 31, 2018"}]
[]
["DERIVATION OF COINCIDENT AND NON-COINCIDENT KW DEMANDS",null,null,null,null,null,null,null,""]
["RATE GROUP: DT - PRIMARY TOTAL EXCL. RTP INCREMENTAL"]
[]
[]
[null,null,null," ",null,null,null,null,null,null,"NON-COINCIDENT PEAK"]
[null,null,null," ",null,"COINCIDENT PEAK DEMAND",null,null,null,null,"(\"NCP\") DEMAND",null,null,"DIVERSIFIED PEAK DEMAND"]
[null,null,null,null,null,"COIN","CP","TRANS & DIST","CP",null,null,null,null,null,"DIVERSIFIED",null,"DIVERSIFIED"]
[null,null,null,null,null," PEAK","KW DMD.","LOSS","KW DMD.",null,"NON-COIN","NON-COIN",null,"DIVERSIFIED","CLASS","DISTR. LOSS","CLASS"]
[null,null,null," ","AVERAGE","LOAD","AT","FACTOR","AT",null,"CLASS","KW DMD.",null,"CLASS","KW DEMAND","FACTOR TO","KW DEMAND"]
[null,null,null,"TOTAL","HRLY KW","FACTOR","DELIVERY","TO GEN","GENERATION",null,"PEAK LOAD","AT DELIVERY",null,"PEAK LOAD","AT DELIVERY","TRANSMISSION","AT TRANSMISSION"]
["LINE",null,"HOURS","KWH(a)","(2) / (1)","(b)","(3) / (4)","(c)","(5) * (6)",null,"FACTOR (b)","(3) / (8)",null,"FACTOR (b)","(3) / (10)","(d)","(11)* (12)"]
["NO."," MONTH","(1)","(2)","(3)","(4)","(5)","(6)","(7)",null,"(8)","(9)",null,"(10)","(11)","(12)","(13)"]
[1]
[{"$f":"1+A19","v":2},{"$f":"'WP FR-16(7)(v) DS Tot - KW'!$B$17","v":"JANUARY"},{"$f":"'WP FR-16(7)(v) RS - KW'!$C$20","v":744},{"$f":"'WP FR-16(7)(v) KWH'!B$38","v":38465859},{"$f":"IF(C20=0,0,ROUND(D20/C20,0))","v":51701},{"$f":"'WP FR-16(7)(v) LoadRes DTPRI'!$L$15/100","v":0.91175206031},{"$f":"ROUND(E20/F20,0)","v":56705},{"$f":"'WP FR-16(7)(v) LossRatios'!$M$16+1","v":1.0389600000000001},{"$f":"ROUND(G20*H20,0)","v":58914},null,{"$f":"'WP FR-16(7)(v) LoadRes DTPRI'!$J$15/100","v":0.72213839355000009},{"$f":"ROUND(E20/K20,0)","v":71594},null,{"$f":"'WP FR-16(7)(v) LoadRes DTPRI'!$K$15/100","v":0.85877290400000006},{"$f":"ROUND(E20/N20,0)","v":60203},{"$f":"1+'WP FR-16(7)(v) LossRatios'!$K$16","v":1.0323},{"$f":"ROUND(P20*O20,0)","v":62148}]
[3,{"$f":"'WP FR-16(7)(v) DS Tot - KW'!$B$18","v":"FEBRUARY"},{"$f":"'WP FR-16(7)(v) RS - KW'!$C$21","v":672},{"$f":"'WP FR-16(7)(v) KWH'!C$38","v":37222330},55390,{"$f":"'WP FR-16(7)(v) LoadRes DTPRI'!$L$17/100","v":0.92306169722999998},60007,{"$f":"'WP FR-16(7)(v) LossRatios'!$M$17+1","v":1.03592},62162,null,{"$f":"'WP FR-16(7)(v) LoadRes DTPRI'!$J$17/100","v":0.71747685929000005},77201,null,{"$f":"'WP FR-16(7)(v) LoadRes DTPRI'!$K$17/100","v":0.82446006389999993},67183,{"$f":"1+'WP FR-16(7)(v) LossRatios'!$K$17","v":1.02979},69184]
[4,{"$f":"'WP FR-16(7)(v) DS Tot - KW'!$B$19","v":"MARCH"},{"$f":"'WP FR-16(7)(v) RS - KW'!$C$22","v":744},{"$f":"'WP FR-16(7)(v) KWH'!D$38","v":36815258},49483,{"$f":"'WP FR-16(7)(v) LoadRes DTPRI'!$L$19/100","v":0.93331806381000004},53018,{"$f":"'WP FR-16(7)(v) LossRatios'!$M$18+1","v":1.0358000000000001},54916,null,{"$f":"'WP FR-16(7)(v) LoadRes DTPRI'!$J$19/100","v":0.72830647393999992},67943,null,{"$f":"'WP FR-16(7)(v) LoadRes DTPRI'!$K$19/100","v":0.85606350091999994},57803,{"$f":"1+'WP FR-16(7)(v) LossRatios'!$K$18","v":1.02969},59519]
[5,{"$f":"'WP FR-16(7)(v) DS Tot - KW'!$B$20","v":"APRIL"},{"$f":"'WP FR-16(7)(v) RS - KW'!$C$23","v":720},{"$f":"'WP FR-16(7)(v) KWH'!E$38","v":37942615},52698,{"$f":"'WP FR-16(7)(v) LoadRes DTPRI'!$L$21/100","v":0.94455060302999994},55792,{"$f":"'WP FR-16(7)(v) LossRatios'!$M$19+1","v":1.0354300000000001},57769,null,{"$f":"'WP FR-16(7)(v) LoadRes DTPRI'!$J$21/100","v":0.70610340418999995},74632,null,{"$f":"'WP FR-16(7)(v) LoadRes DTPRI'!$K$21/100","v":0.80244364692000003},65672,{"$f":"1+'WP FR-16(7)(v) LossRatios'!$K$19","v":1.02939},67602]
[6,{"$f":"'WP FR-16(7)(v) DS Tot - KW'!$B$21","v":"MAY"},{"$f":"'WP FR-16(7)(v) RS - KW'!$C$24","v":744},{"$f":"'WP FR-16(7)(v) KWH'!F$38","v":38571881},51844,{"$f":"'WP FR-16(7)(v) LoadRes DTPRI'!$L$23/100","v":0.90357643585000003},57376,{"$f":"'WP FR-16(7)(v) LossRatios'!$M$20+1","v":1.0381100000000001},59563,null,{"$f":"'WP FR-16(7)(v) LoadRes DTPRI'!$J$23/100","v":0.70519698129000008},73517,null,{"$f":"'WP FR-16(7)(v) LoadRes DTPRI'!$K$23/100","v":0.81915157793999993},63290,{"$f":"1+'WP FR-16(7)(v) LossRatios'!$K$20","v":1.0316000000000001},65290]
[7,{"$f":"'WP FR-16(7)(v) DS Tot - KW'!$B$22","v":"JUNE"},{"$f":"'WP FR-16(7)(v) RS - KW'!$C$25","v":720},{"$f":"'WP FR-16(7)(v) KWH'!G$38","v":42184861},58590,{"$f":"'WP FR-16(7)(v) LoadRes DTPRI'!$L$25/100","v":0.85562898404999999},68476,{"$f":"'WP FR-16(7)(v) LossRatios'!$M$21+1","v":1.0404100000000001},71243,null,{"$f":"'WP FR-16(7)(v) LoadRes DTPRI'!$J$25/100","v":0.72562611708999991},80744,null,{"$f":"'WP FR-16(7)(v) LoadRes DTPRI'!$K$25/100","v":0.8285282811800001},70716,{"$f":"1+'WP FR-16(7)(v) LossRatios'!$K$21","v":1.0335000000000001},73085]
[8,{"$f":"'WP FR-16(7)(v) DS Tot - KW'!$B$23","v":"JULY"},{"$f":"'WP FR-16(7)(v) RS - KW'!$C$26","v":744},{"$f":"'WP FR-16(7)(v) KWH'!H$38","v":42626567},57294,{"$f":"'WP FR-16(7)(v) LoadRes DTPRI'!$L$27/100","v":0.8740923318599999},65547,{"$f":"'WP FR-16(7)(v) LossRatios'!$M$22+1","v":1.0400499999999999},68172,null,{"$f":"'WP FR-16(7)(v) LoadRes DTPRI'!$J$27/100","v":0.71663756168999992},79948,null,{"$f":"'WP FR-16(7)(v) LoadRes DTPRI'!$K$27/100","v":0.82595579193999991},69367,{"$f":"1+'WP FR-16(7)(v) LossRatios'!$K$22","v":1.0331999999999999},71670]
[9,{"$f":"'WP FR-16(7)(v) DS Tot - KW'!$B$24","v":"AUGUST"},{"$f":"'WP FR-16(7)(v) RS - KW'!$C$27","v":744},{"$f":"'WP FR-16(7)(v) KWH'!I$38","v":42623310},57289,{"$f":"'WP FR-16(7)(v) LoadRes DTPRI'!$L$29/100","v":0.88414626035999999},64796,{"$f":"'WP FR-16(7)(v) LossRatios'!$M$23+1","v":1.0395000000000001},67355,null,{"$f":"'WP FR-16(7)(v) LoadRes DTPRI'!$J$29/100","v":0.73668570200000005},77766,null,{"$f":"'WP FR-16(7)(v) LoadRes DTPRI'!$K$29/100","v":0.84741225709000001},67605,{"$f":"1+'WP FR-16(7)(v) LossRatios'!$K$23","v":1.0327500000000001},69819]
[10,{"$f":"'WP FR-16(7)(v) DS Tot - KW'!$B$25","v":"SEPTEMBER"},{"$f":"'WP FR-16(7)(v) RS - KW'!$C$28","v":720},{"$f":"'WP FR-16(7)(v) KWH'!J$38","v":42999613},59722,{"$f":"'WP FR-16(7)(v) LoadRes DTPRI'!$L$31/100","v":0.83270581274},71720,{"$f":"'WP FR-16(7)(v) LossRatios'!$M$24+1","v":1.0403500000000001},74614,null,{"$f":"'WP FR-16(7)(v) LoadRes DTPRI'!$J$31/100","v":0.70775990453999993},84382,null,{"$f":"'WP FR-16(7)(v) LoadRes DTPRI'!$K$31/100","v":0.80973977090000004},73755,{"$f":"1+'WP FR-16(7)(v) LossRatios'!$K$24","v":1.03345},76222]
[11,{"$f":"'WP FR-16(7)(v) DS Tot - KW'!$B$26","v":"OCTOBER"},{"$f":"'WP FR-16(7)(v) RS - KW'!$C$29","v":744},{"$f":"'WP FR-16(7)(v) KWH'!K$38","v":39917796},53653,{"$f":"'WP FR-16(7)(v) LoadRes DTPRI'!$L$33/100","v":0.77662056742999996},69085,{"$f":"'WP FR-16(7)(v) LossRatios'!$M$25+1","v":1.03817},71722,null,{"$f":"'WP FR-16(7)(v) LoadRes DTPRI'!$J$33/100","v":0.69158573920999999},77580,null,{"$f":"'WP FR-16(7)(v) LoadRes DTPRI'!$K$33/100","v":0.77121170974999997},69570,{"$f":"1+'WP FR-16(7)(v) LossRatios'!$K$25","v":1.03165},71772]
[12,{"$f":"'WP FR-16(7)(v) DS Tot - KW'!$B$27","v":"NOVEMBER"},{"$f":"'WP FR-16(7)(v) RS - KW'!$C$30","v":720},{"$f":"'WP FR-16(7)(v) KWH'!L$38","v":37945202},52702,{"$f":"'WP FR-16(7)(v) LoadRes DTPRI'!$L$35/100","v":0.92101154342000002},57222,{"$f":"'WP FR-16(7)(v) LossRatios'!$M$26+1","v":1.03586},59274,null,{"$f":"'WP FR-16(7)(v) LoadRes DTPRI'!$J$35/100","v":0.70696865218000005},74546,null,{"$f":"'WP FR-16(7)(v) LoadRes DTPRI'!$K$35/100","v":0.7975334917000001},66081,{"$f":"1+'WP FR-16(7)(v) LossRatios'!$K$26","v":1.0297400000000001},68046]
[13,{"$f":"'WP FR-16(7)(v) DS Tot - KW'!$B$28","v":"DECEMBER"},{"$f":"'WP FR-16(7)(v) RS - KW'!$C$31","v":744},{"$f":"'WP FR-16(7)(v) KWH'!M$38","v":38416382},51635,{"$f":"'WP FR-16(7)(v) LoadRes DTPRI'!$L$37/100","v":0.85382711445000004},60475,{"$f":"'WP FR-16(7)(v) LossRatios'!$M$27+1","v":1.0358000000000001},62640,null,{"$f":"'WP FR-16(7)(v) LoadRes DTPRI'!$J$37/100","v":0.69983128123000005},73782,null,{"$f":"'WP FR-16(7)(v) LoadRes DTPRI'!$K$37/100","v":0.83041895383999997},62179,{"$f":"1+'WP FR-16(7)(v) LossRatios'!$K$27","v":1.02969},64025]
[14,null,{"$f":"SUM(C20:C31)","v":8760},{"$f":"SUM(D20:D31)","v":475731674},null,null,{"$f":"SUM(G20:G31)","v":740219},null,{"$f":"SUM(I20:I31)","v":768344},null,null,{"$f":"SUM(L20:L31)","v":913635},null,null,{"$f":"SUM(O20:O31)","v":793424},null,{"$f":"SUM(Q20:Q31)","v":818382}]
[]
[null,null,null," ",null,null," "]
[null,null,null,null,null,null," "]
[null,"(a) Source: WPFR-16(7)(v), Page 51"]
[null,"(b) Source: WPFR-16(7)(v), Page 44"]
[null,"(c) Source: WPFR-16(7)(v), Page 33, Col 5 (Loss % + 1)"]
[null,"(d) Source: WPFR-16(7)(v), Page 33, Col 2 (Loss % + 1)"]
[null,"(e) Source: Form 1, Page 401b, Col (f)"]
[]
[]
[{"$f":"A1","v":"DUKE ENERGY KENTUCKY, INC."},null,null,null,null,null,null,null,null,null,null,null,null,null,null,{"$f":"P1","v":"Work Paper FR-16(7)(v) "}]
[{"$f":"coss_type","v":"ELECTRIC COST OF SERVICE STUDY "},null,null,null,null,null,null,null,null,null,null,null,null,null,null,{"$f":"P2","v":"Witness Responsible:"}]
[{"$f":"case_name","v":"CASE NO: 2019-00271"},null,null,null,null,null,null,null,null,null,null,null,null,null,null,{"$f":"P3","v":"James E. Ziolkowski"}]
[{"$f":"alloc_factors","v":"ALLOCATION FACTORS FOR COST OF SERVICE STUDY"},null,null,null,null,null,null,null,null,null,null,null,null,null,null,"Page 26"]
[{"$f":"A5","v":"TWELVE MONTHS ENDING DECEMBER 31, 2018"}]
[]
["DERIVATION OF COINCIDENT AND NON-COINCIDENT KW DEMANDS",null,null,null,null,null,null,null,""]
["RATE GROUP: DT - PRIMARY RTP INCREMENTAL"]
[]
[]
[null,null,null,null,null,null,null,null,null,null,"NON-COINCIDENT PEAK"]
[null,null,null," ",null,"COINCIDENT PEAK DEMAND",null,null,null,null,"(\"NCP\") DEMAND",null,null,"DIVERSIFIED PEAK DEMAND"]
[null,null,null,null,null,"COIN","CP","TRANS & DIST","CP",null,null,null,null,null,"DIVERSIFIED",null,"DIVERSIFIED"]
[null,null,null,null,null," PEAK","KW DMD.","LOSS","KW DMD.",null,"NON-COIN","NON-COIN",null,"DIVERSIFIED","CLASS","DISTR. LOSS","CLASS"]
[null,null,null," ","AVERAGE","LOAD","AT","FACTOR","AT",null,"CLASS","KW DMD.",null,"CLASS","KW DEMAND","FACTOR TO","KW DEMAND"]
[null,null,null,"TOTAL","HRLY KW","FACTOR","DELIVERY","TO GEN","GENERATION",null,"PEAK LOAD","AT DELIVERY",null,"PEAK LOAD","AT DELIVERY","TRANSMISSION","AT TRANSMISSION"]
["LINE",null,"HOURS","KWH(a)","(2) / (1)","(b)","(3) / (4)","(c)","(5) * (6)",null,"FACTOR (b)","(3) / (8)",null,"FACTOR (b)","(3) / (10)","(d)","(11)* (12)"]
["NO."," MONTH","(1)","(2)","(3)","(4)","(5)","(6)","(7)",null,"(8)","(9)",null,"(10)","(11)","(12)","(13)"]
[1]
[{"$f":"1+A61","v":2},{"$f":"'WP FR-16(7)(v) DS Tot - KW'!$B$17","v":"JANUARY"},{"$f":"'WP FR-16(7)(v) RS - KW'!$C$20","v":744},{"$f":"'WP FR-16(7)(v) KWH'!B39","v":0},{"$f":"IF(C62=0,0,ROUND(D62/C62,0))","v":0},{"$f":"F20","v":0.91175206031},{"$f":"IF(F62=0,0,ROUND(E62/F62,0))","v":0},{"$f":"'WP FR-16(7)(v) LossRatios'!$M$16+1","v":1.0389600000000001},{"$f":"ROUND(G62*H62,0)","v":0},null,{"$f":"K20","v":0.72213839355000009},{"$f":"IF(K62=0,0,ROUND(E62/K62,0))","v":0},null,{"$f":"N20","v":0.85877290400000006},{"$f":"ROUND(E62/N62,0)","v":0},{"$f":"1+'WP FR-16(7)(v) LossRatios'!$K$16","v":1.0323},{"$f":"ROUND(P62*O62,0)","v":0}]
[3,{"$f":"'WP FR-16(7)(v) DS Tot - KW'!$B$18","v":"FEBRUARY"},{"$f":"'WP FR-16(7)(v) RS - KW'!$C$21","v":672},{"$f":"'WP FR-16(7)(v) KWH'!C$39","v":0},0,0.92306169722999998,0,{"$f":"'WP FR-16(7)(v) LossRatios'!$M$17+1","v":1.03592},0,null,0.71747685929000005,0,null,0.82446006389999993,0,{"$f":"1+'WP FR-16(7)(v) LossRatios'!$K$17","v":1.02979},0]
[4,{"$f":"'WP FR-16(7)(v) DS Tot - KW'!$B$19","v":"MARCH"},{"$f":"'WP FR-16(7)(v) RS - KW'!$C$22","v":744},{"$f":"'WP FR-16(7)(v) KWH'!D$39","v":0},0,0.93331806381000004,0,{"$f":"'WP FR-16(7)(v) LossRatios'!$M$18+1","v":1.0358000000000001},0,null,0.72830647393999992,0,null,0.85606350091999994,0,{"$f":"1+'WP FR-16(7)(v) LossRatios'!$K$18","v":1.02969},0]
[5,{"$f":"'WP FR-16(7)(v) DS Tot - KW'!$B$20","v":"APRIL"},{"$f":"'WP FR-16(7)(v) RS - KW'!$C$23","v":720},{"$f":"'WP FR-16(7)(v) KWH'!E$39","v":0},0,0.94455060302999994,0,{"$f":"'WP FR-16(7)(v) LossRatios'!$M$19+1","v":1.0354300000000001},0,null,0.70610340418999995,0,null,0.80244364692000003,0,{"$f":"1+'WP FR-16(7)(v) LossRatios'!$K$19","v":1.02939},0]
[6,{"$f":"'WP FR-16(7)(v) DS Tot - KW'!$B$21","v":"MAY"},{"$f":"'WP FR-16(7)(v) RS - KW'!$C$24","v":744},{"$f":"'WP FR-16(7)(v) KWH'!F$39","v":0},0,0.90357643585000003,0,{"$f":"'WP FR-16(7)(v) LossRatios'!$M$20+1","v":1.0381100000000001},0,null,0.70519698129000008,0,null,0.81915157793999993,0,{"$f":"1+'WP FR-16(7)(v) LossRatios'!$K$20","v":1.0316000000000001},0]
[7,{"$f":"'WP FR-16(7)(v) DS Tot - KW'!$B$22","v":"JUNE"},{"$f":"'WP FR-16(7)(v) RS - KW'!$C$25","v":720},{"$f":"'WP FR-16(7)(v) KWH'!G$39","v":0},0,0.85562898404999999,0,{"$f":"'WP FR-16(7)(v) LossRatios'!$M$21+1","v":1.0404100000000001},0,null,0.72562611708999991,0,null,0.8285282811800001,0,{"$f":"1+'WP FR-16(7)(v) LossRatios'!$K$21","v":1.0335000000000001},0]
[8,{"$f":"'WP FR-16(7)(v) DS Tot - KW'!$B$23","v":"JULY"},{"$f":"'WP FR-16(7)(v) RS - KW'!$C$26","v":744},{"$f":"'WP FR-16(7)(v) KWH'!H$39","v":0},0,0.8740923318599999,0,{"$f":"'WP FR-16(7)(v) LossRatios'!$M$22+1","v":1.0400499999999999},0,null,0.71663756168999992,0,null,0.82595579193999991,0,{"$f":"1+'WP FR-16(7)(v) LossRatios'!$K$22","v":1.0331999999999999},0]
[9,{"$f":"'WP FR-16(7)(v) DS Tot - KW'!$B$24","v":"AUGUST"},{"$f":"'WP FR-16(7)(v) RS - KW'!$C$27","v":744},{"$f":"'WP FR-16(7)(v) KWH'!I$39","v":0},0,0.88414626035999999,0,{"$f":"'WP FR-16(7)(v) LossRatios'!$M$23+1","v":1.0395000000000001},0,null,0.73668570200000005,0,null,0.84741225709000001,0,{"$f":"1+'WP FR-16(7)(v) LossRatios'!$K$23","v":1.0327500000000001},0]
[10,{"$f":"'WP FR-16(7)(v) DS Tot - KW'!$B$25","v":"SEPTEMBER"},{"$f":"'WP FR-16(7)(v) RS - KW'!$C$28","v":720},{"$f":"'WP FR-16(7)(v) KWH'!J$39","v":0},0,0.83270581274,0,{"$f":"'WP FR-16(7)(v) LossRatios'!$M$24+1","v":1.0403500000000001},0,null,0.70775990453999993,0,null,0.80973977090000004,0,{"$f":"1+'WP FR-16(7)(v) LossRatios'!$K$24","v":1.03345},0]
[11,{"$f":"'WP FR-16(7)(v) DS Tot - KW'!$B$26","v":"OCTOBER"},{"$f":"'WP FR-16(7)(v) RS - KW'!$C$29","v":744},{"$f":"'WP FR-16(7)(v) KWH'!K$39","v":0},0,0.77662056742999996,0,{"$f":"'WP FR-16(7)(v) LossRatios'!$M$25+1","v":1.03817},0,null,0.69158573920999999,0,null,0.77121170974999997,0,{"$f":"1+'WP FR-16(7)(v) LossRatios'!$K$25","v":1.03165},0]
[12,{"$f":"'WP FR-16(7)(v) DS Tot - KW'!$B$27","v":"NOVEMBER"},{"$f":"'WP FR-16(7)(v) RS - KW'!$C$30","v":720},{"$f":"'WP FR-16(7)(v) KWH'!L$39","v":0},0,0.92101154342000002,0,{"$f":"'WP FR-16(7)(v) LossRatios'!$M$26+1","v":1.03586},0,null,0.70696865218000005,0,null,0.7975334917000001,0,{"$f":"1+'WP FR-16(7)(v) LossRatios'!$K$26","v":1.0297400000000001},0]
[13,{"$f":"'WP FR-16(7)(v) DS Tot - KW'!$B$28","v":"DECEMBER"},{"$f":"'WP FR-16(7)(v) RS - KW'!$C$31","v":744},{"$f":"'WP FR-16(7)(v) KWH'!M$39","v":0},0,0.85382711445000004,0,{"$f":"'WP FR-16(7)(v) LossRatios'!$M$27+1","v":1.0358000000000001},0,null,0.69983128123000005,0,null,0.83041895383999997,0,{"$f":"1+'WP FR-16(7)(v) LossRatios'!$K$27","v":1.02969},0]
[14,null,{"$f":"SUM(C62:C73)","v":8760},{"$f":"SUM(D62:D73)","v":0},null,null,{"$f":"SUM(G62:G73)","v":0},null,{"$f":"SUM(I62:I73)","v":0},null,null,{"$f":"SUM(L62:L73)","v":0},null,null,{"$f":"SUM(O62:O73)","v":0},null,{"$f":"SUM(Q62:Q73)","v":0}]
[null,null,null," ",null,null," "]
[]
[]
[null,"(a) No KWH value for this class"]
[null,{"$f":"B37","v":"(b) Source: WPFR-16(7)(v), Page 44"}]
[null,"(c) Source: WPFR-16(7)(v), Page 33, Col 5 (Loss % + 1)"]
[null,"(d) Source: WPFR-16(7)(v), Page 33, Col 2 (Loss % + 1)"]
[null,"(e) Source: Form 1, Page 401b, Col (f)"]
[]
[]
[]
[]
[]
[]
[]
[]
[]
[]
[]
[]
[]
[]
[]
[]
[]
[]
[]
[]
[]
[]
[]
[]
[]
[]
[]
[]
[]
[]
[]
[]
[]
[]
[]
[]
[]
[]
[]
[]
[]
[]
[]
[]
[]
[]
[]
[]
[]
[]
[]
[]
[]
[]
[]
[]
[]
[]
[]
[]
[]
[]
[]
[]
[]
[]
[]
[]
[]
[]
[]
[]
[]
[]
[]
[]
[]
[]
[]
[]
[]
[]
[]
[]
[]
[]
[]
[]
[]
[]
[]
[]
[]
[]
[]
[]
[]
[]
[]
[]
[]
[]
[]
[]
[]
[]
[]
[]
[]
[]
[]
[]
[]
[]
[]
[]
[]
[]
[]
[]
[]
[]
[]
[]
[]
[]
[]
[]
[]
[]
[]
[]
[]
[]
[]
[]
[]
[]
[]
[]
[]
[]
[]
[]
[]
[]
[]
[]
[]
[]
[]
[]
[]
[]
[]
[]
[]
[]
[]
[]
[]
[]
[]
[]
[]
[]
[]
[]
[]
[]
[]
[]
[]
[]
[]
[]
[]
[]
[]
[]
[]
[]
[]
[]
[]
[]
[]
[]
[]
[]
[]
[]
[]
[]
[]
[]
[]
[]
[]
[]
[]
[]
[]
[]
[]
[]
[]
[]
[]
[]
[]
[]
[]
[]
[]
[]
[]
[]
[]
[]
[]
[]
[]
[]
[]
[]
[]
[]
[]
[]
[]
[]
[]
[]
[]
[]
[]
[]
[]
[]
[]
[]
[]
[]
[]
[]
[]
[]
[]
[]
[]
[]
[]
[]
[]
[]
[]
[]
[]
[]
[]
[]
[]
[]
[]
[]
[]
[]
[]
[]
[]
[]
[]
[]
[]
[]
[]
[]
[]
[]
[]
[]
[]
[]
[]
[]
[]
[]
[]
[]
[]
[]
[]
[]
[]
[]
[]
[]
[]
[]
[]
[]
[]
[]
[]
[]
[]
[]
[]
[]
[]
[]
[]
[]
[]
[]
[]
[]
[]
[]
[]
[]
[]
[]
[]
[]
[]
[]
[]
[]
[]
[]
[]
[]
[]
[]
[]
[]
[]
[]
[]
[]
[]
[]
[]
[]
[]
[]
[]
[]
[]
[]
[]
[]
[]
[]
[]
[]
[]
[]
[]
[]
[]
[]
[]
[]
[]
[]
[]
[]
[]
[]
[]
[]
[]
[]
[]
[]
[]
[null,null,null,null,0]

{"sheet":"WP FR-16(7)(v) DT Sec - KW","index":47,"n_rows":462,"n_cols":17,"rows_kept":462,"cut":false,"hidden":false,"merged":[[11,5,11,8],[55,5,55,8]]}
[{"$f":"'WP FR-16(7)(v)-KW & KWH @Gen'!A1","v":"DUKE ENERGY KENTUCKY, INC."},null,null,null,null,null,null,null,null,null,null,null,null,null,null,{"$f":"'WP FR-16(7)(v)-KW & KWH @Gen'!G1","v":"Work Paper FR-16(7)(v) "}]
[{"$f":"coss_type","v":"ELECTRIC COST OF SERVICE STUDY "},null,null,null,null,null,null,null,null,null,null,null,null,null,null,{"$f":"'WP FR-16(7)(v)-KW & KWH @Gen'!G2","v":"Witness Responsible:"}]
[{"$f":"case_name","v":"CASE NO: 2019-00271"},null,null,null,null,null,null,null,null,null,null,null,null,null,null,{"$f":"PROPER(Witness)","v":"James E. Ziolkowski"}]
[{"$f":"alloc_factors","v":"ALLOCATION FACTORS FOR COST OF SERVICE STUDY"},null,null,null,null,null,null,null,null,null,null,null,null,null,null,"Page 27"]
[{"$f":"'WP FR-16(7)(v)-KW & KWH @Gen'!A5","v":"TWELVE MONTHS ENDING DECEMBER 31, 2018"}]
[]
["DERIVATION OF COINCIDENT AND NON-COINCIDENT KW DEMANDS",null,null,null,null,null,null,null,""]
["RATE GROUP: TOTAL DT - SECONDARY EXCL. RTP INCREMENTAL"]
[]
[]
[null,null,null,null,null,null,null,null,null,null,"NON-COINCIDENT PEAK"]
[null,null,null," ",null,"COINCIDENT PEAK DEMAND",null,null,null,null,"(\"NCP\") DEMAND",null,null,"DIVERSIFIED PEAK DEMAND"]
[null,null,null,null,null,"COIN","CP","TRANS & DIST","CP",null,null,null,null,null,"DIVERSIFIED",null,"DIVERSIFIED"]
[null,null,null,null,null," PEAK","KW DMD.","LOSS","KW DMD.",null,"NON-COIN","NON-COIN",null,"DIVERSIFIED","CLASS","DISTR. LOSS","CLASS"]
[null,null,null," ","AVERAGE","LOAD","AT","FACTOR","AT",null,"CLASS","KW DMD.",null,"CLASS","KW DEMAND","FACTOR TO","KW DEMAND"]
[null,null,null,"TOTAL","HRLY KW","FACTOR","DELIVERY","TO GEN","GENERATION",null,"PEAK LOAD","AT DELIVERY",null,"PEAK LOAD","AT DELIVERY","TRANSMISSION","AT TRANSMISSION"]
["LINE",null,"HOURS","KWH(a)","(2) / (1)","(b)","(3) / (4)","(c)","(5) * (6)",null,"FACTOR (b)","(3) / (8)",null,"FACTOR (b)","(3) / (10)","(d)","(11)* (12)"]
["NO."," MONTH","(1)","(2)","(3)","(4)","(5)","(6)","(7)",null,"(8)","(9)",null,"(10)","(11)","(12)","(13)"]
[1]
[{"$f":"1+A19","v":2},{"$f":"'WP FR-16(7)(v) DS Tot - KW'!$B$17","v":"JANUARY"},{"$f":"'WP FR-16(7)(v) RS - KW'!$C$20","v":744},{"$f":"'WP FR-16(7)(v) KWH'!B$34","v":55121465},{"$f":"IF(C20=0,0,ROUND(D20/C20,0))","v":74088},{"$f":"'WP FR-16(7)(v) LoadRes DTSEC'!$L$15/100","v":0.84676077422000007},{"$f":"ROUND(E20/F20,0)","v":87496},{"$f":"'WP FR-16(7)(v) LossRatios'!$M$16+1","v":1.0389600000000001},{"$f":"ROUND(G20*H20,0)","v":90905},null,{"$f":"'WP FR-16(7)(v) LoadRes DTSEC'!$J$15/100","v":0.67298291714000003},{"$f":"ROUND(E20/K20,0)","v":110089},null,{"$f":"'WP FR-16(7)(v) LoadRes DTSEC'!$K$15/100","v":0.79886018095},{"$f":"ROUND(E20/N20,0)","v":92742},{"$f":"1+'WP FR-16(7)(v) LossRatios'!$K$16","v":1.0323},{"$f":"ROUND(P20*O20,0)","v":95738}]
[3,{"$f":"'WP FR-16(7)(v) DS Tot - KW'!$B$18","v":"FEBRUARY"},{"$f":"'WP FR-16(7)(v) RS - KW'!$C$21","v":672},{"$f":"'WP FR-16(7)(v) KWH'!C$34","v":53826833},80099,{"$f":"'WP FR-16(7)(v) LoadRes DTSEC'!$L$17/100","v":0.87696063245},{"$f":"ROUND(E21/F21,0)","v":91337},{"$f":"'WP FR-16(7)(v) LossRatios'!$M$17+1","v":1.03592},94618,null,{"$f":"'WP FR-16(7)(v) LoadRes DTSEC'!$J$17/100","v":0.66946099704000006},119647,null,{"$f":"'WP FR-16(7)(v) LoadRes DTSEC'!$K$17/100","v":0.79652324887000003},100561,{"$f":"1+'WP FR-16(7)(v) LossRatios'!$K$17","v":1.02979},103557]
[4,{"$f":"'WP FR-16(7)(v) DS Tot - KW'!$B$19","v":"MARCH"},{"$f":"'WP FR-16(7)(v) RS - KW'!$C$22","v":744},{"$f":"'WP FR-16(7)(v) KWH'!D$34","v":51777495},69593,{"$f":"'WP FR-16(7)(v) LoadRes DTSEC'!$L$19/100","v":0.90485290049},76911,{"$f":"'WP FR-16(7)(v) LossRatios'!$M$18+1","v":1.0358000000000001},79664,null,{"$f":"'WP FR-16(7)(v) LoadRes DTSEC'!$J$19/100","v":0.67935281299999994},102440,null,{"$f":"'WP FR-16(7)(v) LoadRes DTSEC'!$K$19/100","v":0.80847590945999992},86079,{"$f":"1+'WP FR-16(7)(v) LossRatios'!$K$18","v":1.02969},88635]
[5,{"$f":"'WP FR-16(7)(v) DS Tot - KW'!$B$20","v":"APRIL"},{"$f":"'WP FR-16(7)(v) RS - KW'!$C$23","v":720},{"$f":"'WP FR-16(7)(v) KWH'!E$34","v":52715694},73216,{"$f":"'WP FR-16(7)(v) LoadRes DTSEC'!$L$21/100","v":0.85253612692999992},85880,{"$f":"'WP FR-16(7)(v) LossRatios'!$M$19+1","v":1.0354300000000001},88923,null,{"$f":"'WP FR-16(7)(v) LoadRes DTSEC'!$J$21/100","v":0.65801757488000012},111268,null,{"$f":"'WP FR-16(7)(v) LoadRes DTSEC'!$K$21/100","v":0.81411387692000003},89933,{"$f":"1+'WP FR-16(7)(v) LossRatios'!$K$19","v":1.02939},92576]
[6,{"$f":"'WP FR-16(7)(v) DS Tot - KW'!$B$21","v":"MAY"},{"$f":"'WP FR-16(7)(v) RS - KW'!$C$24","v":744},{"$f":"'WP FR-16(7)(v) KWH'!F$34","v":54151368},72784,{"$f":"'WP FR-16(7)(v) LoadRes DTSEC'!$L$23/100","v":0.83609061265999995},87053,{"$f":"'WP FR-16(7)(v) LossRatios'!$M$20+1","v":1.0381100000000001},90371,null,{"$f":"'WP FR-16(7)(v) LoadRes DTSEC'!$J$23/100","v":0.65874069752999997},110490,null,{"$f":"'WP FR-16(7)(v) LoadRes DTSEC'!$K$23/100","v":0.77115076274000005},94384,{"$f":"1+'WP FR-16(7)(v) LossRatios'!$K$20","v":1.0316000000000001},97367]
[7,{"$f":"'WP FR-16(7)(v) DS Tot - KW'!$B$22","v":"JUNE"},{"$f":"'WP FR-16(7)(v) RS - KW'!$C$25","v":720},{"$f":"'WP FR-16(7)(v) KWH'!G$34","v":62709682},87097,{"$f":"'WP FR-16(7)(v) LoadRes DTSEC'!$L$25/100","v":0.82413364083000007},105683,{"$f":"'WP FR-16(7)(v) LossRatios'!$M$21+1","v":1.0404100000000001},109954,null,{"$f":"'WP FR-16(7)(v) LoadRes DTSEC'!$J$25/100","v":0.67621969816999994},128800,null,{"$f":"'WP FR-16(7)(v) LoadRes DTSEC'!$K$25/100","v":0.7766188515100001},112149,{"$f":"1+'WP FR-16(7)(v) LossRatios'!$K$21","v":1.0335000000000001},115906]
[8,{"$f":"'WP FR-16(7)(v) DS Tot - KW'!$B$23","v":"JULY"},{"$f":"'WP FR-16(7)(v) RS - KW'!$C$26","v":744},{"$f":"'WP FR-16(7)(v) KWH'!H$34","v":62223120},83633,{"$f":"'WP FR-16(7)(v) LoadRes DTSEC'!$L$27/100","v":0.81624969267000003},102460,{"$f":"'WP FR-16(7)(v) LossRatios'!$M$22+1","v":1.0400499999999999},106564,null,{"$f":"'WP FR-16(7)(v) LoadRes DTSEC'!$J$27/100","v":0.67370559224999993},124139,null,{"$f":"'WP FR-16(7)(v) LoadRes DTSEC'!$K$27/100","v":0.77138019903999999},108420,{"$f":"1+'WP FR-16(7)(v) LossRatios'!$K$22","v":1.0331999999999999},112020]
[9,{"$f":"'WP FR-16(7)(v) DS Tot - KW'!$B$24","v":"AUGUST"},{"$f":"'WP FR-16(7)(v) RS - KW'!$C$27","v":744},{"$f":"'WP FR-16(7)(v) KWH'!I$34","v":60935751},81903,{"$f":"'WP FR-16(7)(v) LoadRes DTSEC'!$L$29/100","v":0.8721734845500001},93907,{"$f":"'WP FR-16(7)(v) LossRatios'!$M$23+1","v":1.0395000000000001},97616,null,{"$f":"'WP FR-16(7)(v) LoadRes DTSEC'!$J$29/100","v":0.68627397241999999},119344,null,{"$f":"'WP FR-16(7)(v) LoadRes DTSEC'!$K$29/100","v":0.79139091312999998},103492,{"$f":"1+'WP FR-16(7)(v) LossRatios'!$K$23","v":1.0327500000000001},106881]
[10,{"$f":"'WP FR-16(7)(v) DS Tot - KW'!$B$25","v":"SEPTEMBER"},{"$f":"'WP FR-16(7)(v) RS - KW'!$C$28","v":720},{"$f":"'WP FR-16(7)(v) KWH'!J$34","v":63829564},88652,{"$f":"'WP FR-16(7)(v) LoadRes DTSEC'!$L$31/100","v":0.80064571122000006},110726,{"$f":"'WP FR-16(7)(v) LossRatios'!$M$24+1","v":1.0403500000000001},115194,null,{"$f":"'WP FR-16(7)(v) LoadRes DTSEC'!$J$31/100","v":0.64721173734999993},136975,null,{"$f":"'WP FR-16(7)(v) LoadRes DTSEC'!$K$31/100","v":0.74377502797999995},119192,{"$f":"1+'WP FR-16(7)(v) LossRatios'!$K$24","v":1.03345},123179]
[11,{"$f":"'WP FR-16(7)(v) DS Tot - KW'!$B$26","v":"OCTOBER"},{"$f":"'WP FR-16(7)(v) RS - KW'!$C$29","v":744},{"$f":"'WP FR-16(7)(v) KWH'!K$34","v":56519825},75968,{"$f":"'WP FR-16(7)(v) LoadRes DTSEC'!$L$33/100","v":0.77464892121999995},98068,{"$f":"'WP FR-16(7)(v) LossRatios'!$M$25+1","v":1.03817},101811,null,{"$f":"'WP FR-16(7)(v) LoadRes DTSEC'!$J$33/100","v":0.63203627916999994},120196,null,{"$f":"'WP FR-16(7)(v) LoadRes DTSEC'!$K$33/100","v":0.7358662065599999},103236,{"$f":"1+'WP FR-16(7)(v) LossRatios'!$K$25","v":1.03165},106503]
[12,{"$f":"'WP FR-16(7)(v) DS Tot - KW'!$B$27","v":"NOVEMBER"},{"$f":"'WP FR-16(7)(v) RS - KW'!$C$30","v":720},{"$f":"'WP FR-16(7)(v) KWH'!L$34","v":53498081},74303,{"$f":"'WP FR-16(7)(v) LoadRes DTSEC'!$L$35/100","v":0.89098108679999999},83395,{"$f":"'WP FR-16(7)(v) LossRatios'!$M$26+1","v":1.03586},86386,null,{"$f":"'WP FR-16(7)(v) LoadRes DTSEC'!$J$35/100","v":0.6557508581},113310,null,{"$f":"'WP FR-16(7)(v) LoadRes DTSEC'!$K$35/100","v":0.78973188793000004},94086,{"$f":"1+'WP FR-16(7)(v) LossRatios'!$K$26","v":1.0297400000000001},96884]
[13,{"$f":"'WP FR-16(7)(v) DS Tot - KW'!$B$28","v":"DECEMBER"},{"$f":"'WP FR-16(7)(v) RS - KW'!$C$31","v":744},{"$f":"'WP FR-16(7)(v) KWH'!M$34","v":55322186},74358,{"$f":"'WP FR-16(7)(v) LoadRes DTSEC'!$L$37/100","v":0.80069918099999993},92866,{"$f":"'WP FR-16(7)(v) LossRatios'!$M$27+1","v":1.0358000000000001},96191,null,{"$f":"'WP FR-16(7)(v) LoadRes DTSEC'!$J$37/100","v":0.63748956278000002},116642,null,{"$f":"'WP FR-16(7)(v) LoadRes DTSEC'!$K$37/100","v":0.77338523101000012},96146,{"$f":"1+'WP FR-16(7)(v) LossRatios'!$K$27","v":1.02969},99001]
[14,null,{"$f":"SUM(C20:C31)","v":8760},{"$f":"SUM(D20:D31)","v":682631064},null,null,{"$f":"SUM(G20:G31)","v":1115782},null,{"$f":"SUM(I20:I31)","v":1158197},null,null,{"$f":"SUM(L20:L31)","v":1413340},null,null,{"$f":"SUM(O20:O31)","v":1200420},null,{"$f":"SUM(Q20:Q31)","v":1238247}]
[null,null,null," "]
[]
[]
[null,"(a) Source: WPFR-16(7)(v), Page 51"]
[null,"(b) Source: WPFR-16(7)(v), Page 43"]
[null,"(c) Source: WPFR-16(7)(v), Page 33, Col 5 (Loss % + 1)"]
[null,"(d) Source: WPFR-16(7)(v) Page 33, Col 2 (Loss % + 1)"]
[null,"(e) Source: Form 1, Page 401b, Col (f)"]
[]
[]
[]
[]
[{"$f":"A1","v":"DUKE ENERGY KENTUCKY, INC."},null,null,null,null,null,null,null,null,null,null,null,null,null,null,{"$f":"P1","v":"Work Paper FR-16(7)(v) "}]
[{"$f":"coss_type","v":"ELECTRIC COST OF SERVICE STUDY "},null,null,null,null,null,null,null,null,null,null,null,null,null,null,{"$f":"P2","v":"Witness Responsible:"}]
[{"$f":"case_name","v":"CASE NO: 2019-00271"},null,null,null,null,null,null,null,null,null,null,null,null,null,null,{"$f":"P3","v":"James E. Ziolkowski"}]
[{"$f":"alloc_factors","v":"ALLOCATION FACTORS FOR COST OF SERVICE STUDY"},null,null,null,null,null,null,null,null,null,null,null,null,null,null,"Page 28"]
[{"$f":"A5","v":"TWELVE MONTHS ENDING DECEMBER 31, 2018"}]
[]
["DERIVATION OF COINCIDENT AND NON-COINCIDENT KW DEMANDS",null,null,null,null,null,null,null,""]
["RATE GROUP: DT SECONDARY - RTP - INCREMENTAL"]
[]
[]
[null,null,null,null,null,null,null,null,null,null,"NON-COINCIDENT PEAK"]
[null,null,null," ",null,"COINCIDENT PEAK DEMAND",null,null,null,null,"(\"NCP\") DEMAND",null,null,"DIVERSIFIED PEAK DEMAND"]
[null,null,null,null,null,"COIN","CP","TRANS & DIST","CP",null,null,null,null,null,"DIVERSIFIED",null,"DIVERSIFIED"]
[null,null,null,null,null," PEAK","KW DMD.","LOSS","KW DMD.",null,"NON-COIN","NON-COIN",null,"DIVERSIFIED","CLASS","DISTR. LOSS","CLASS"]
[null,null,null," ","AVERAGE","LOAD","AT","FACTOR","AT",null,"CLASS","KW DMD.",null,"CLASS","KW DEMAND","FACTOR TO","KW DEMAND"]
[null,null,null,"TOTAL","HRLY KW","FACTOR","DELIVERY","TO GEN","GENERATION",null,"PEAK LOAD","AT DELIVERY",null,"PEAK LOAD","AT DELIVERY","TRANSMISSION","AT TRANSMISSION"]
["LINE",null,"HOURS","KWH(a)","(2) / (1)","(b)","(3) / (4)","(c)","(5) * (6)",null,"FACTOR (b)","(3) / (8)",null,"FACTOR (b)","(3) / (10)","(d)","(11)* (12)"]
["NO."," MONTH","(1)","(2)","(3)","(4)","(5)","(6)","(7)",null,"(8)","(9)",null,"(10)","(11)","(12)","(13)"]
[1]
[{"$f":"1+A63","v":2},{"$f":"'WP FR-16(7)(v) DS Tot - KW'!$B$17","v":"JANUARY"},{"$f":"'WP FR-16(7)(v) RS - KW'!$C$20","v":744},{"$f":"'WP FR-16(7)(v) KWH'!B$35","v":167744},{"$f":"IF(C64=0,0,ROUND(D64/C64,0))","v":225},{"$f":"F20","v":0.84676077422000007},{"$f":"IF(F64=0,0,ROUND(E64/F64,0))","v":266},{"$f":"'WP FR-16(7)(v) LossRatios'!$M$16+1","v":1.0389600000000001},{"$f":"ROUND(G64*H64,0)","v":276},null,{"$f":"K20","v":0.67298291714000003},{"$f":"IF(K64=0,0,ROUND(E64/K64,0))","v":334},null,{"$f":"N20","v":0.79886018095},{"$f":"ROUND(E64/N64,0)","v":282},{"$f":"1+'WP FR-16(7)(v) LossRatios'!$K$16","v":1.0323},{"$f":"ROUND(P64*O64,0)","v":291}]
[3,{"$f":"'WP FR-16(7)(v) DS Tot - KW'!$B$18","v":"FEBRUARY"},{"$f":"'WP FR-16(7)(v) RS - KW'!$C$21","v":672},{"$f":"'WP FR-16(7)(v) KWH'!C$35","v":129576},193,0.87696063245,220,{"$f":"'WP FR-16(7)(v) LossRatios'!$M$17+1","v":1.03592},228,null,0.66946099704000006,288,null,0.79652324887000003,242,{"$f":"1+'WP FR-16(7)(v) LossRatios'!$K$17","v":1.02979},249]
[4,{"$f":"'WP FR-16(7)(v) DS Tot - KW'!$B$19","v":"MARCH"},{"$f":"'WP FR-16(7)(v) RS - KW'!$C$22","v":744},{"$f":"'WP FR-16(7)(v) KWH'!D$35","v":-46023},-62,0.90485290049,-69,{"$f":"'WP FR-16(7)(v) LossRatios'!$M$18+1","v":1.0358000000000001},-71,null,0.67935281299999994,-91,null,0.80847590945999992,-77,{"$f":"1+'WP FR-16(7)(v) LossRatios'!$K$18","v":1.02969},-79]
[5,{"$f":"'WP FR-16(7)(v) DS Tot - KW'!$B$20","v":"APRIL"},{"$f":"'WP FR-16(7)(v) RS - KW'!$C$23","v":720},{"$f":"'WP FR-16(7)(v) KWH'!E$35","v":1947},3,0.85253612692999992,4,{"$f":"'WP FR-16(7)(v) LossRatios'!$M$19+1","v":1.0354300000000001},4,null,0.65801757488000012,5,null,0.81411387692000003,4,{"$f":"1+'WP FR-16(7)(v) LossRatios'!$K$19","v":1.02939},4]
[6,{"$f":"'WP FR-16(7)(v) DS Tot - KW'!$B$21","v":"MAY"},{"$f":"'WP FR-16(7)(v) RS - KW'!$C$24","v":744},{"$f":"'WP FR-16(7)(v) KWH'!F$35","v":116158},156,0.83609061265999995,187,{"$f":"'WP FR-16(7)(v) LossRatios'!$M$20+1","v":1.0381100000000001},194,null,0.65874069752999997,237,null,0.77115076274000005,202,{"$f":"1+'WP FR-16(7)(v) LossRatios'!$K$20","v":1.0316000000000001},208]
[7,{"$f":"'WP FR-16(7)(v) DS Tot - KW'!$B$22","v":"JUNE"},{"$f":"'WP FR-16(7)(v) RS - KW'!$C$25","v":720},{"$f":"'WP FR-16(7)(v) KWH'!G$35","v":83026},115,0.82413364083000007,140,{"$f":"'WP FR-16(7)(v) LossRatios'!$M$21+1","v":1.0404100000000001},146,null,0.67621969816999994,170,null,0.7766188515100001,148,{"$f":"1+'WP FR-16(7)(v) LossRatios'!$K$21","v":1.0335000000000001},153]
[8,{"$f":"'WP FR-16(7)(v) DS Tot - KW'!$B$23","v":"JULY"},{"$f":"'WP FR-16(7)(v) RS - KW'!$C$26","v":744},{"$f":"'WP FR-16(7)(v) KWH'!H$35","v":335956},452,0.81624969267000003,554,{"$f":"'WP FR-16(7)(v) LossRatios'!$M$22+1","v":1.0400499999999999},576,null,0.67370559224999993,671,null,0.77138019903999999,586,{"$f":"1+'WP FR-16(7)(v) LossRatios'!$K$22","v":1.0331999999999999},605]
[9,{"$f":"'WP FR-16(7)(v) DS Tot - KW'!$B$24","v":"AUGUST"},{"$f":"'WP FR-16(7)(v) RS - KW'!$C$27","v":744},{"$f":"'WP FR-16(7)(v) KWH'!I$35","v":164125},221,0.8721734845500001,253,{"$f":"'WP FR-16(7)(v) LossRatios'!$M$23+1","v":1.0395000000000001},263,null,0.68627397241999999,322,null,0.79139091312999998,279,{"$f":"1+'WP FR-16(7)(v) LossRatios'!$K$23","v":1.0327500000000001},288]
[10,{"$f":"'WP FR-16(7)(v) DS Tot - KW'!$B$25","v":"SEPTEMBER"},{"$f":"'WP FR-16(7)(v) RS - KW'!$C$28","v":720},{"$f":"'WP FR-16(7)(v) KWH'!J$35","v":296107},411,0.80064571122000006,513,{"$f":"'WP FR-16(7)(v) LossRatios'!$M$24+1","v":1.0403500000000001},534,null,0.64721173734999993,635,null,0.74377502797999995,553,{"$f":"1+'WP FR-16(7)(v) LossRatios'!$K$24","v":1.03345},571]
[11,{"$f":"'WP FR-16(7)(v) DS Tot - KW'!$B$26","v":"OCTOBER"},{"$f":"'WP FR-16(7)(v) RS - KW'!$C$29","v":744},{"$f":"'WP FR-16(7)(v) KWH'!K$35","v":506204},680,0.77464892121999995,878,{"$f":"'WP FR-16(7)(v) LossRatios'!$M$25+1","v":1.03817},912,null,0.63203627916999994,1076,null,0.7358662065599999,924,{"$f":"1+'WP FR-16(7)(v) LossRatios'!$K$25","v":1.03165},953]
[12,{"$f":"'WP FR-16(7)(v) DS Tot - KW'!$B$27","v":"NOVEMBER"},{"$f":"'WP FR-16(7)(v) RS - KW'!$C$30","v":720},{"$f":"'WP FR-16(7)(v) KWH'!L$35","v":354945},493,0.89098108679999999,553,{"$f":"'WP FR-16(7)(v) LossRatios'!$M$26+1","v":1.03586},573,null,0.6557508581,752,null,0.78973188793000004,624,{"$f":"1+'WP FR-16(7)(v) LossRatios'!$K$26","v":1.0297400000000001},643]
[13,{"$f":"'WP FR-16(7)(v) DS Tot - KW'!$B$28","v":"DECEMBER"},{"$f":"'WP FR-16(7)(v) RS - KW'!$C$31","v":744},{"$f":"'WP FR-16(7)(v) KWH'!M$35","v":219313},295,0.80069918099999993,368,{"$f":"'WP FR-16(7)(v) LossRatios'!$M$27+1","v":1.0358000000000001},381,null,0.63748956278000002,463,null,0.77338523101000012,381,{"$f":"1+'WP FR-16(7)(v) LossRatios'!$K$27","v":1.02969},392]
[14,null,{"$f":"SUM(C64:C75)","v":8760},{"$f":"SUM(D64:D75)","v":2329078},null,null,{"$f":"SUM(G64:G75)","v":3867},null,{"$f":"SUM(I64:I75)","v":4016},null,null,{"$f":"SUM(L64:L75)","v":4862},null,null,{"$f":"SUM(O64:O75)","v":4148},null,{"$f":"SUM(Q64:Q75)","v":4278}]
[]
[]
[]
[null,"(a) Source: WPFR-16(7)(v), Page 51"]
[null,"(b) Source: WPFR-16(7)(v), Page 43"]
[null,"(c) Source: WPFR-16(7)(v), Page 33, Col 5 (Loss % + 1)"]
[null,"(d) Source: WPFR-16(7)(v), Page 33, Col 2 (Loss % + 1)"]
[null,"(e) Source: Form 1, Page 401b, Col (f)"]
[]
[]
[]
[]
[]
[]
[]
[]
[]
[]
[]
[]
[]
[]
[]
[]
[]
[]
[]
[]
[]
[]
[]
[]
[]
[]
[]
[]
[]
[]
[]
[]
[]
[]
[]
[]
[]
[]
[]
[]
[]
[]
[]
[]
[]
[]
[]
[]
[]
[]
[]
[]
[]
[]
[]
[]
[]
[]
[]
[]
[]
[]
[]
[]
[]
[]
[]
[]
[]
[]
[]
[]
[]
[]
[]
[]
[]
[]
[]
[]
[]
[]
[]
[]
[]
[]
[]
[]
[]
[]
[]
[]
[]
[]
[]
[]
[]
[]
[]
[]
[]
[]
[]
[]
[]
[]
[]
[]
[]
[]
[]
[]
[]
[]
[]
[]
[]
[]
[]
[]
[]
[]
[]
[]
[]
[]
[]
[]
[]
[]
[]
[]
[]
[]
[]
[]
[]
[]
[]
[]
[]
[]
[]
[]
[]
[]
[]
[]
[]
[]
[]
[]
[]
[]
[]
[]
[]
[]
[]
[]
[]
[]
[]
[]
[]
[]
[]
[]
[]
[]
[]
[]
[]
[]
[]
[]
[]
[]
[]
[]
[]
[]
[]
[]
[]
[]
[]
[]
[]
[]
[]
[]
[]
[]
[]
[]
[]
[]
[]
[]
[]
[]
[]
[]
[]
[]
[]
[]
[]
[]
[]
[]
[]
[]
[]
[]
[]
[]
[]
[]
[]
[]
[]
[]
[]
[]
[]
[]
[]
[]
[]
[]
[]
[]
[]
[]
[]
[]
[]
[]
[]
[]
[]
[]
[]
[]
[]
[]
[]
[]
[]
[]
[]
[]
[]
[]
[]
[]
[]
[]
[]
[]
[]
[]
[]
[]
[]
[]
[]
[]
[]
[]
[]
[]
[]
[]
[]
[]
[]
[]
[]
[]
[]
[]
[]
[]
[]
[]
[]
[]
[]
[]
[]
[]
[]
[]
[]
[]
[]
[]
[]
[]
[]
[]
[]
[]
[]
[]
[]
[]
[]
[]
[]
[]
[]
[]
[]
[]
[]
[]
[]
[]
[]
[]
[]
[]
[]
[]
[]
[]
[]
[]
[]
[]
[]
[]
[]
[]
[]
[]
[]
[]
[]
[]
[]
[]
[]
[]
[]
[]
[]
[]
[]
[]
[]
[]
[]
[]
[]
[]
[]
[]
[]
[]
[]
[]
[]
[]
[]
[]
[]
[]
[]
[]
[]
[]
[]
[null,null,null,null,0]

{"sheet":"WP FR-16(7)(v) OTHER - KW","index":48,"n_rows":508,"n_cols":17,"rows_kept":508,"cut":false,"hidden":false,"merged":[[11,5,11,8]]}
[{"$f":"'WP FR-16(7)(v)-KW & KWH @Gen'!A1","v":"DUKE ENERGY KENTUCKY, INC."},null,null,null,null,null,null,null,null,null,null,null,null,null,null,{"$f":"'WP FR-16(7)(v)-KW & KWH @Gen'!G1","v":"Work Paper FR-16(7)(v) "}]
[{"$f":"coss_type","v":"ELECTRIC COST OF SERVICE STUDY "},null,null,null,null,null,null,null,null,null,null,null,null,null,null,{"$f":"'WP FR-16(7)(v)-KW & KWH @Gen'!G2","v":"Witness Responsible:"}]
[{"$f":"case_name","v":"CASE NO: 2019-00271"},null,null,null,null,null,null,null,null,null,null,null,null,null,null,{"$f":"PROPER(Witness)","v":"James E. Ziolkowski"}]
[{"$f":"alloc_factors","v":"ALLOCATION FACTORS FOR COST OF SERVICE STUDY"},null,null,null,null,null,null,null,null,null,null,null,null,null,null,"Page 29"]
[{"$f":"'WP FR-16(7)(v)-KW & KWH @Gen'!A5","v":"TWELVE MONTHS ENDING DECEMBER 31, 2018"}]
[]
["DERIVATION OF COINCIDENT AND NON-COINCIDENT KW DEMANDS"]
["RATE GROUP: OTHER - (e)"]
[null,null,null,null," "," "]
[]
[null,null,null," ",null,null,null,null,null,null,"NON-COINCIDENT PEAK"]
[null,null,null," ",null,"COINCIDENT PEAK DEMAND",null,null,null,null,"(\"NCP\") DEMAND",null,null,"DIVERSIFIED PEAK DEMAND"]
[null,null,null,null,null,"COIN","CP","TRANS & DIST","CP",null,null,null,null,null,"DIVERSIFIED",null,"DIVERSIFIED"]
[null,null,null,null,null," PEAK","KW DMD.","LOSS","KW DMD.",null,"NON-COIN","NON-COIN",null,"DIVERSIFIED","CLASS","DISTR. LOSS","CLASS"]
[null,null,null," ","AVERAGE","LOAD","AT","FACTOR","AT",null,"CLASS","KW DMD.",null,"CLASS","KW DEMAND","FACTOR TO","KW DEMAND"]
[null,null,null,"TOTAL","HRLY KW","FACTOR","DELIVERY","TO GEN","GENERATION",null,"PEAK LOAD","AT DELIVERY",null,"PEAK LOAD","AT DELIVERY","TRANSMISSION","AT TRANSMISSION"]
["LINE",null,"HOURS","KWH(a)","(2) / (1)","(b)","(3) / (4)","(c)","(5) * (6)",null,"FACTOR (b)","(3) / (8)",null,"FACTOR (b)","(3) / (10)","(d)","(11)* (12)"]
["NO."," MONTH","(1)","(2)","(3)","(4)","(5)","(6)","(7)",null,"(8)","(9)",null,"(10)","(11)","(12)","(13)"]
[1]
[{"$f":"1+A19","v":2},{"$f":"'WP FR-16(7)(v) DS Tot - KW'!$B$17","v":"JANUARY"},{"$f":"'WP FR-16(7)(v) RS - KW'!C20","v":744},{"$f":"'WP FR-16(7)(v) KWH'!B$19","v":21920},{"$f":"ROUND(D20/C20,0)","v":29},{"$f":"'WP FR-16(7)(v) DS Sec - KW'!G180","v":0.77765870936000003},{"$f":"ROUND(E20/F20,0)","v":37},{"$f":"'WP FR-16(7)(v) LossRatios'!$M$16+1","v":1.0389600000000001},{"$f":"ROUND(G20*H20,0)","v":38},null,{"$f":"'WP FR-16(7)(v) DS Sec - KW'!L180","v":0.52106588546999999},{"$f":"ROUND(E20/K20,0)","v":56},null,{"$f":"'WP FR-16(7)(v) DS Sec - KW'!O180","v":0.71997439431999988},{"$f":"ROUND(E20/N20,0)","v":40},{"$f":"1+'WP FR-16(7)(v) LossRatios'!$K$16","v":1.0323},{"$f":"ROUND(O20*P20,0)","v":41}]
[3,{"$f":"'WP FR-16(7)(v) DS Tot - KW'!$B$18","v":"FEBRUARY"},{"$f":"'WP FR-16(7)(v) RS - KW'!C21","v":672},{"$f":"'WP FR-16(7)(v) KWH'!C$19","v":73680},110,{"$f":"'WP FR-16(7)(v) DS Sec - KW'!G181","v":0.79085856854000003},139,{"$f":"'WP FR-16(7)(v) LossRatios'!$M$17+1","v":1.03592},144,null,{"$f":"'WP FR-16(7)(v) DS Sec - KW'!L181","v":0.47975649672999998},229,null,{"$f":"'WP FR-16(7)(v) DS Sec - KW'!O181","v":0.71867025837999998},153,{"$f":"1+'WP FR-16(7)(v) LossRatios'!$K$17","v":1.02979},158]
[4,{"$f":"'WP FR-16(7)(v) DS Tot - KW'!$B$19","v":"MARCH"},{"$f":"'WP FR-16(7)(v) RS - KW'!C22","v":744},{"$f":"'WP FR-16(7)(v) KWH'!D$19","v":165000},222,{"$f":"'WP FR-16(7)(v) DS Sec - KW'!G182","v":0.86688695483999989},256,{"$f":"'WP FR-16(7)(v) LossRatios'!$M$18+1","v":1.0358000000000001},265,null,{"$f":"'WP FR-16(7)(v) DS Sec - KW'!L182","v":0.49944559015000001},444,null,{"$f":"'WP FR-16(7)(v) DS Sec - KW'!O182","v":0.71927613312000005},309,{"$f":"1+'WP FR-16(7)(v) LossRatios'!$K$18","v":1.02969},318]
[5,{"$f":"'WP FR-16(7)(v) DS Tot - KW'!$B$20","v":"APRIL"},{"$f":"'WP FR-16(7)(v) RS - KW'!C23","v":720},{"$f":"'WP FR-16(7)(v) KWH'!E$19","v":81880},114,{"$f":"'WP FR-16(7)(v) DS Sec - KW'!G183","v":0.71997148407},158,{"$f":"'WP FR-16(7)(v) LossRatios'!$M$19+1","v":1.0354300000000001},164,null,{"$f":"'WP FR-16(7)(v) DS Sec - KW'!L183","v":0.44734635127},255,null,{"$f":"'WP FR-16(7)(v) DS Sec - KW'!O183","v":0.69859048607000007},163,{"$f":"1+'WP FR-16(7)(v) LossRatios'!$K$19","v":1.02939},168]
[6,{"$f":"'WP FR-16(7)(v) DS Tot - KW'!$B$21","v":"MAY"},{"$f":"'WP FR-16(7)(v) RS - KW'!C24","v":744},{"$f":"'WP FR-16(7)(v) KWH'!F$19","v":20760},28,{"$f":"'WP FR-16(7)(v) DS Sec - KW'!G184","v":0.69356867433999991},40,{"$f":"'WP FR-16(7)(v) LossRatios'!$M$20+1","v":1.0381100000000001},42,null,{"$f":"'WP FR-16(7)(v) DS Sec - KW'!L184","v":0.48115190906999999},58,null,{"$f":"'WP FR-16(7)(v) DS Sec - KW'!O184","v":0.61199533048999999},46,{"$f":"1+'WP FR-16(7)(v) LossRatios'!$K$20","v":1.0316000000000001},47]
[7,{"$f":"'WP FR-16(7)(v) DS Tot - KW'!$B$22","v":"JUNE"},{"$f":"'WP FR-16(7)(v) RS - KW'!C25","v":720},{"$f":"'WP FR-16(7)(v) KWH'!G$19","v":8440},12,{"$f":"'WP FR-16(7)(v) DS Sec - KW'!G185","v":0.68715415871000007},17,{"$f":"'WP FR-16(7)(v) LossRatios'!$M$21+1","v":1.0404100000000001},18,null,{"$f":"'WP FR-16(7)(v) DS Sec - KW'!L185","v":0.48933462833999997},25,null,{"$f":"'WP FR-16(7)(v) DS Sec - KW'!O185","v":0.62058942452999999},19,{"$f":"1+'WP FR-16(7)(v) LossRatios'!$K$21","v":1.0335000000000001},20]
[8,{"$f":"'WP FR-16(7)(v) DS Tot - KW'!$B$23","v":"JULY"},{"$f":"'WP FR-16(7)(v) RS - KW'!C26","v":744},{"$f":"'WP FR-16(7)(v) KWH'!H$19","v":7800},10,{"$f":"'WP FR-16(7)(v) DS Sec - KW'!G186","v":0.70634182654},14,{"$f":"'WP FR-16(7)(v) LossRatios'!$M$22+1","v":1.0400499999999999},15,null,{"$f":"'WP FR-16(7)(v) DS Sec - KW'!L186","v":0.49547608554999995},20,null,{"$f":"'WP FR-16(7)(v) DS Sec - KW'!O186","v":0.62352890137999994},16,{"$f":"1+'WP FR-16(7)(v) LossRatios'!$K$22","v":1.0331999999999999},17]
[9,{"$f":"'WP FR-16(7)(v) DS Tot - KW'!$B$24","v":"AUGUST"},{"$f":"'WP FR-16(7)(v) RS - KW'!C27","v":744},{"$f":"'WP FR-16(7)(v) KWH'!I$19","v":12000},16,{"$f":"'WP FR-16(7)(v) DS Sec - KW'!G187","v":0.74450926513000004},21,{"$f":"'WP FR-16(7)(v) LossRatios'!$M$23+1","v":1.0395000000000001},22,null,{"$f":"'WP FR-16(7)(v) DS Sec - KW'!L187","v":0.50650680028999995},32,null,{"$f":"'WP FR-16(7)(v) DS Sec - KW'!O187","v":0.63075037956000002},25,{"$f":"1+'WP FR-16(7)(v) LossRatios'!$K$23","v":1.0327500000000001},26]
[10,{"$f":"'WP FR-16(7)(v) DS Tot - KW'!$B$25","v":"SEPTEMBER"},{"$f":"'WP FR-16(7)(v) RS - KW'!C28","v":720},{"$f":"'WP FR-16(7)(v) KWH'!J$19","v":14640},20,{"$f":"'WP FR-16(7)(v) DS Sec - KW'!G188","v":0.59079947379999997},34,{"$f":"'WP FR-16(7)(v) LossRatios'!$M$24+1","v":1.0403500000000001},35,null,{"$f":"'WP FR-16(7)(v) DS Sec - KW'!L188","v":0.46031310396999997},43,null,{"$f":"'WP FR-16(7)(v) DS Sec - KW'!O188","v":0.56938555129000001},35,{"$f":"1+'WP FR-16(7)(v) LossRatios'!$K$24","v":1.03345},36]
[11,{"$f":"'WP FR-16(7)(v) DS Tot - KW'!$B$26","v":"OCTOBER"},{"$f":"'WP FR-16(7)(v) RS - KW'!C29","v":744},{"$f":"'WP FR-16(7)(v) KWH'!K$19","v":12280},17,{"$f":"'WP FR-16(7)(v) DS Sec - KW'!G189","v":0.56995259941999998},30,{"$f":"'WP FR-16(7)(v) LossRatios'!$M$25+1","v":1.03817},31,null,{"$f":"'WP FR-16(7)(v) DS Sec - KW'!L189","v":0.43227459885999997},39,null,{"$f":"'WP FR-16(7)(v) DS Sec - KW'!O189","v":0.56822716540000007},30,{"$f":"1+'WP FR-16(7)(v) LossRatios'!$K$25","v":1.03165},31]
[12,{"$f":"'WP FR-16(7)(v) DS Tot - KW'!$B$27","v":"NOVEMBER"},{"$f":"'WP FR-16(7)(v) RS - KW'!C30","v":720},{"$f":"'WP FR-16(7)(v) KWH'!L$19","v":16800},23,{"$f":"'WP FR-16(7)(v) DS Sec - KW'!G190","v":0.80809709695999998},28,{"$f":"'WP FR-16(7)(v) LossRatios'!$M$26+1","v":1.03586},29,null,{"$f":"'WP FR-16(7)(v) DS Sec - KW'!L190","v":0.48424641179},47,null,{"$f":"'WP FR-16(7)(v) DS Sec - KW'!O190","v":0.69957437865000005},33,{"$f":"1+'WP FR-16(7)(v) LossRatios'!$K$26","v":1.0297400000000001},34]
[13,{"$f":"'WP FR-16(7)(v) DS Tot - KW'!$B$28","v":"DECEMBER"},{"$f":"'WP FR-16(7)(v) RS - KW'!C31","v":744},{"$f":"'WP FR-16(7)(v) KWH'!M$19","v":31560},42,{"$f":"'WP FR-16(7)(v) DS Sec - KW'!G191","v":0.77429897424000005},54,{"$f":"'WP FR-16(7)(v) LossRatios'!$M$27+1","v":1.0358000000000001},56,null,{"$f":"'WP FR-16(7)(v) DS Sec - KW'!L191","v":0.49681938365999995},85,null,{"$f":"'WP FR-16(7)(v) DS Sec - KW'!O191","v":0.70885571443000006},59,{"$f":"1+'WP FR-16(7)(v) LossRatios'!$K$27","v":1.02969},61]
[14,null,{"$f":"SUM(C20:C31)","v":8760},{"$f":"SUM(D20:D31)","v":466760},null,null,{"$f":"SUM(G20:G31)","v":828},null,{"$f":"SUM(I20:I31)","v":859},null,null,{"$f":"SUM(L20:L31)","v":1333},null,null,{"$f":"SUM(O20:O31)","v":928},null,{"$f":"SUM(Q20:Q31)","v":957}]
[15]
[]
[]
[null,"(a) Source: WPFR-16(7)(v), Page 51"]
[null,"(b) Source: WPFR-16(7)(v), Page 40",null,"Uses DS- Small/Med Load Factors"]
[null,"(c) Source: WPFR-16(7)(v), Page 33, Col 5 (Loss % + 1)"]
[null,"(d) Source: WPFR-16(7)(v) Page 33, Col 2 (Loss % + 1)"]
[null,"(e) Flood Pumping"]
[null,"(f) Source: Form 1, Page 401b, Col (f)"]
[]
[]
[]
[]
[]
[]
[]
[]
[]
[]
[]
[]
[]
[]
[]
[]
[]
[]
[]
[]
[]
[]
[]
[]
[]
[]
[]
[]
[]
[]
[]
[]
[]
[]
[]
[]
[]
[]
[]
[]
[]
[]
[]
[]
[]
[]
[]
[]
[]
[]
[]
[]
[]
[]
[]
[]
[]
[]
[]
[]
[]
[]
[]
[]
[]
[]
[]
[]
[]
[]
[]
[]
[]
[]
[]
[]
[]
[]
[]
[]
[]
[]
[]
[]
[]
[]
[]
[]
[]
[]
[]
[]
[]
[]
[]
[]
[]
[]
[]
[]
[]
[]
[]
[]
[]
[]
[]
[]
[]
[]
[]
[]
[]
[]
[]
[]
[]
[]
[]
[]
[]
[]
[]
[]
[]
[]
[]
[]
[]
[]
[]
[]
[]
[]
[]
[]
[]
[]
[]
[]
[]
[]
[]
[]
[]
[]
[]
[]
[]
[]
[]
[]
[]
[]
[]
[]
[]
[]
[]
[]
[]
[]
[]
[]
[]
[]
[]
[]
[]
[]
[]
[]
[]
[]
[]
[]
[]
[]
[]
[]
[]
[]
[]
[]
[]
[]
[]
[]
[]
[]
[]
[]
[]
[]
[]
[]
[]
[]
[]
[]
[]
[]
[]
[]
[]
[]
[]
[]
[]
[]
[]
[]
[]
[]
[]
[]
[]
[]
[]
[]
[]
[]
[]
[]
[]
[]
[]
[]
[]
[]
[]
[]
[]
[]
[]
[]
[]
[]
[]
[]
[]
[]
[]
[]
[]
[]
[]
[]
[]
[]
[]
[]
[]
[]
[]
[]
[]
[]
[]
[]
[]
[]
[]
[]
[]
[]
[]
[]
[]
[]
[]
[]
[]
[]
[]
[]
[]
[]
[]
[]
[]
[]
[]
[]
[]
[]
[]
[]
[]
[]
[]
[]
[]
[]
[]
[]
[]
[]
[]
[]
[]
[]
[]
[]
[]
[]
[]
[]
[]
[]
[]
[]
[]
[]
[]
[]
[]
[]
[]
[]
[]
[]
[]
[]
[]
[]
[]
[]
[]
[]
[]
[]
[]
[]
[]
[]
[]
[]
[]
[]
[]
[]
[]
[]
[]
[]
[]
[]
[]
[]
[]
[]
[]
[]
[]
[]
[]
[]
[]
[]
[]
[]
[]
[]
[]
[]
[]
[]
[]
[]
[]
[]
[]
[]
[]
[]
[]
[]
[]
[]
[]
[]
[]
[]
[]
[]
[]
[]
[]
[]
[]
[]
[]
[]
[]
[]
[]
[]
[]
[]
[]
[]
[]
[]
[]
[]
[]
[]
[]
[]
[]
[]
[]
[]
[]
[]
[]
[]
[]
[]
[]
[]
[]
[]
[]
[]
[]
[]
[]
[]
[]
[]
[]
[]
[]
[]
[]
[]
[]
[]
[]
[]
[]
[]
[]
[]
[]
[]
[]
[]
[]
[]
[]
[]
[]
[]
[]
[]
[]
[]
[]
[]
[]
[]
[]
[]
[null,null,null,null,0]

{"sheet":"WP FR-16(7)(v) GSFL - KW","index":49,"n_rows":508,"n_cols":17,"rows_kept":508,"cut":false,"hidden":false,"merged":[[11,5,11,8]]}
[{"$f":"'WP FR-16(7)(v)-KW & KWH @Gen'!A1","v":"DUKE ENERGY KENTUCKY, INC."},null,null,null,null,null,null,null,null,null,null,null,null,null,null,{"$f":"'WP FR-16(7)(v)-KW & KWH @Gen'!G1","v":"Work Paper FR-16(7)(v) "}]
[{"$f":"coss_type","v":"ELECTRIC COST OF SERVICE STUDY "},null,null,null,null,null,null,null,null,null,null,null,null,null,null,{"$f":"'WP FR-16(7)(v)-KW & KWH @Gen'!G2","v":"Witness Responsible:"}]
[{"$f":"case_name","v":"CASE NO: 2019-00271"},null,null,null,null,null,null,null,null,null,null,null,null,null,null,{"$f":"PROPER(Witness)","v":"James E. Ziolkowski"}]
[{"$f":"alloc_factors","v":"ALLOCATION FACTORS FOR COST OF SERVICE STUDY"},null,null,null,null,null,null,null,null,null,null,null,null,null,null,"Page 30"]
[{"$f":"'WP FR-16(7)(v)-KW & KWH @Gen'!A5","v":"TWELVE MONTHS ENDING DECEMBER 31, 2018"}]
[]
["DERIVATION OF COINCIDENT AND NON-COINCIDENT KW DEMANDS"]
["RATE GROUP: GS-FL - GENERAL SERVICE RATE FOR SMALL FIXED LOADS"]
[]
[null,null,null," "]
[null,null,null,null,null,null,null,null,null,null,"NON-COINCIDENT PEAK"]
[null,null,null," ",null,"COINCIDENT PEAK DEMAND",null,null,null,null,"(\"NCP\") DEMAND",null,null,"DIVERSIFIED PEAK DEMAND"]
[null,null,null,null,null,"COIN","CP","TRANS & DIST","CP",null,null,null,null,null,"DIVERSIFIED",null,"DIVERSIFIED"]
[null,null,null,null,null," PEAK","KW DMD.","LOSS","KW DMD.",null,"NON-COIN","NON-COIN",null,"DIVERSIFIED","CLASS","DISTR. LOSS","CLASS"]
[null,null,null," ","AVERAGE","LOAD","AT","FACTOR","AT",null,"CLASS","KW DMD.",null,"CLASS","KW DEMAND","FACTOR TO","KW DEMAND"]
[null,null,null,"TOTAL","HRLY KW","FACTOR","DELIVERY","TO GEN","GENERATION",null,"PEAK LOAD","AT DELIVERY",null,"PEAK LOAD","AT DELIVERY","TRANSMISSION","AT TRANSMISSION"]
["LINE",null,"HOURS","KWH(a)","(2) / (1)","(b)","(3) / (4)","(c)","(5) * (6)",null,"FACTOR (b)","(3) / (8)",null,"FACTOR (b)","(3) / (10)","(d)","(11)* (12)"]
["NO."," MONTH","(1)","(2)","(3)","(4)","(5)","(6)","(7)",null,"(8)","(9)",null,"(10)","(11)","(12)","(13)"]
[1]
[{"$f":"1+A19","v":2},{"$f":"'WP FR-16(7)(v) DS Tot - KW'!$B$17","v":"JANUARY"},{"$f":"'WP FR-16(7)(v) RS - KW'!$C$20","v":744},{"$f":"'WP FR-16(7)(v) KWH'!B$17","v":520821},{"$f":"ROUND(D20/C20,0)","v":700},{"$f":"'WP FR-16(7)(v) LoadRes DTSEC'!L15/100","v":0.84676077422000007},{"$f":"IF(F20=0,0,ROUND(E20/F20,0))","v":827},{"$f":"'WP FR-16(7)(v) LossRatios'!$M$16+1","v":1.0389600000000001},{"$f":"IF(H20=0,0,ROUND(G20*H20,0))","v":859},null,{"$f":"'WP FR-16(7)(v) LoadRes DTSEC'!J15/100","v":0.67298291714000003},{"$f":"IF(K20=0,0,ROUND(E20/K20,0))","v":1040},null,{"$f":"'WP FR-16(7)(v) LoadRes DTSEC'!K15/100","v":0.79886018095},{"$f":"IF(N20=0,0,ROUND(E20/N20,0))","v":876},{"$f":"'WP FR-16(7)(v) LossRatios'!$K$16+1","v":1.0323},{"$f":"ROUND(P20*O20,0)","v":904}]
[3,{"$f":"'WP FR-16(7)(v) DS Tot - KW'!$B$18","v":"FEBRUARY"},{"$f":"'WP FR-16(7)(v) RS - KW'!$C$21","v":672},{"$f":"'WP FR-16(7)(v) KWH'!C$17","v":520821},775,{"$f":"'WP FR-16(7)(v) LoadRes DTSEC'!L17/100","v":0.87696063245},884,{"$f":"'WP FR-16(7)(v) LossRatios'!$M$17+1","v":1.03592},916,null,{"$f":"'WP FR-16(7)(v) LoadRes DTSEC'!J17/100","v":0.66946099704000006},1158,null,{"$f":"'WP FR-16(7)(v) LoadRes DTSEC'!K17/100","v":0.79652324887000003},973,{"$f":"'WP FR-16(7)(v) LossRatios'!$K$17+1","v":1.02979},1002]
[4,{"$f":"'WP FR-16(7)(v) DS Tot - KW'!$B$19","v":"MARCH"},{"$f":"'WP FR-16(7)(v) RS - KW'!$C$22","v":744},{"$f":"'WP FR-16(7)(v) KWH'!D$17","v":520954},700,{"$f":"'WP FR-16(7)(v) LoadRes DTSEC'!L19/100","v":0.90485290049},774,{"$f":"'WP FR-16(7)(v) LossRatios'!$M$18+1","v":1.0358000000000001},802,null,{"$f":"'WP FR-16(7)(v) LoadRes DTSEC'!J19/100","v":0.67935281299999994},1030,null,{"$f":"'WP FR-16(7)(v) LoadRes DTSEC'!K19/100","v":0.80847590945999992},866,{"$f":"'WP FR-16(7)(v) LossRatios'!$K$18+1","v":1.02969},892]
[5,{"$f":"'WP FR-16(7)(v) DS Tot - KW'!$B$20","v":"APRIL"},{"$f":"'WP FR-16(7)(v) RS - KW'!$C$23","v":720},{"$f":"'WP FR-16(7)(v) KWH'!E$17","v":521206},724,{"$f":"'WP FR-16(7)(v) LoadRes DTSEC'!L21/100","v":0.85253612692999992},849,{"$f":"'WP FR-16(7)(v) LossRatios'!$M$19+1","v":1.0354300000000001},879,null,{"$f":"'WP FR-16(7)(v) LoadRes DTSEC'!J21/100","v":0.65801757488000012},1100,null,{"$f":"'WP FR-16(7)(v) LoadRes DTSEC'!K21/100","v":0.81411387692000003},889,{"$f":"'WP FR-16(7)(v) LossRatios'!$K$19+1","v":1.02939},915]
[6,{"$f":"'WP FR-16(7)(v) DS Tot - KW'!$B$21","v":"MAY"},{"$f":"'WP FR-16(7)(v) RS - KW'!$C$24","v":744},{"$f":"'WP FR-16(7)(v) KWH'!F$17","v":521206},701,{"$f":"'WP FR-16(7)(v) LoadRes DTSEC'!L23/100","v":0.83609061265999995},838,{"$f":"'WP FR-16(7)(v) LossRatios'!$M$20+1","v":1.0381100000000001},870,null,{"$f":"'WP FR-16(7)(v) LoadRes DTSEC'!J23/100","v":0.65874069752999997},1064,null,{"$f":"'WP FR-16(7)(v) LoadRes DTSEC'!K23/100","v":0.77115076274000005},909,{"$f":"'WP FR-16(7)(v) LossRatios'!$K$20+1","v":1.0316000000000001},938]
[7,{"$f":"'WP FR-16(7)(v) DS Tot - KW'!$B$22","v":"JUNE"},{"$f":"'WP FR-16(7)(v) RS - KW'!$C$25","v":720},{"$f":"'WP FR-16(7)(v) KWH'!G$17","v":521206},724,{"$f":"'WP FR-16(7)(v) LoadRes DTSEC'!L25/100","v":0.82413364083000007},878,{"$f":"'WP FR-16(7)(v) LossRatios'!$M$21+1","v":1.0404100000000001},913,null,{"$f":"'WP FR-16(7)(v) LoadRes DTSEC'!J25/100","v":0.67621969816999994},1071,null,{"$f":"'WP FR-16(7)(v) LoadRes DTSEC'!K25/100","v":0.7766188515100001},932,{"$f":"'WP FR-16(7)(v) LossRatios'!$K$21+1","v":1.0335000000000001},963]
[8,{"$f":"'WP FR-16(7)(v) DS Tot - KW'!$B$23","v":"JULY"},{"$f":"'WP FR-16(7)(v) RS - KW'!$C$26","v":744},{"$f":"'WP FR-16(7)(v) KWH'!H$17","v":521206},701,{"$f":"'WP FR-16(7)(v) LoadRes DTSEC'!L27/100","v":0.81624969267000003},859,{"$f":"'WP FR-16(7)(v) LossRatios'!$M$22+1","v":1.0400499999999999},893,null,{"$f":"'WP FR-16(7)(v) LoadRes DTSEC'!J27/100","v":0.67370559224999993},1041,null,{"$f":"'WP FR-16(7)(v) LoadRes DTSEC'!K27/100","v":0.77138019903999999},909,{"$f":"'WP FR-16(7)(v) LossRatios'!$K$22+1","v":1.0331999999999999},939]
[9,{"$f":"'WP FR-16(7)(v) DS Tot - KW'!$B$24","v":"AUGUST"},{"$f":"'WP FR-16(7)(v) RS - KW'!$C$27","v":744},{"$f":"'WP FR-16(7)(v) KWH'!I$17","v":521206},701,{"$f":"'WP FR-16(7)(v) LoadRes DTSEC'!L29/100","v":0.8721734845500001},804,{"$f":"'WP FR-16(7)(v) LossRatios'!$M$23+1","v":1.0395000000000001},836,null,{"$f":"'WP FR-16(7)(v) LoadRes DTSEC'!J29/100","v":0.68627397241999999},1021,null,{"$f":"'WP FR-16(7)(v) LoadRes DTSEC'!K29/100","v":0.79139091312999998},886,{"$f":"'WP FR-16(7)(v) LossRatios'!$K$23+1","v":1.0327500000000001},915]
[10,{"$f":"'WP FR-16(7)(v) DS Tot - KW'!$B$25","v":"SEPTEMBER"},{"$f":"'WP FR-16(7)(v) RS - KW'!$C$28","v":720},{"$f":"'WP FR-16(7)(v) KWH'!J$17","v":521206},724,{"$f":"'WP FR-16(7)(v) LoadRes DTSEC'!L31/100","v":0.80064571122000006},904,{"$f":"'WP FR-16(7)(v) LossRatios'!$M$24+1","v":1.0403500000000001},940,null,{"$f":"'WP FR-16(7)(v) LoadRes DTSEC'!J31/100","v":0.64721173734999993},1119,null,{"$f":"'WP FR-16(7)(v) LoadRes DTSEC'!K31/100","v":0.74377502797999995},973,{"$f":"'WP FR-16(7)(v) LossRatios'!$K$24+1","v":1.03345},1006]
[11,{"$f":"'WP FR-16(7)(v) DS Tot - KW'!$B$26","v":"OCTOBER"},{"$f":"'WP FR-16(7)(v) RS - KW'!$C$29","v":744},{"$f":"'WP FR-16(7)(v) KWH'!K$17","v":521206},701,{"$f":"'WP FR-16(7)(v) LoadRes DTSEC'!L33/100","v":0.77464892121999995},905,{"$f":"'WP FR-16(7)(v) LossRatios'!$M$25+1","v":1.03817},940,null,{"$f":"'WP FR-16(7)(v) LoadRes DTSEC'!J33/100","v":0.63203627916999994},1109,null,{"$f":"'WP FR-16(7)(v) LoadRes DTSEC'!K33/100","v":0.7358662065599999},953,{"$f":"'WP FR-16(7)(v) LossRatios'!$K$25+1","v":1.03165},983]
[12,{"$f":"'WP FR-16(7)(v) DS Tot - KW'!$B$27","v":"NOVEMBER"},{"$f":"'WP FR-16(7)(v) RS - KW'!$C$30","v":720},{"$f":"'WP FR-16(7)(v) KWH'!L$17","v":521206},724,{"$f":"'WP FR-16(7)(v) LoadRes DTSEC'!L35/100","v":0.89098108679999999},813,{"$f":"'WP FR-16(7)(v) LossRatios'!$M$26+1","v":1.03586},842,null,{"$f":"'WP FR-16(7)(v) LoadRes DTSEC'!J35/100","v":0.6557508581},1104,null,{"$f":"'WP FR-16(7)(v) LoadRes DTSEC'!K35/100","v":0.78973188793000004},917,{"$f":"'WP FR-16(7)(v) LossRatios'!$K$26+1","v":1.0297400000000001},944]
[13,{"$f":"'WP FR-16(7)(v) DS Tot - KW'!$B$28","v":"DECEMBER"},{"$f":"'WP FR-16(7)(v) RS - KW'!$C$31","v":744},{"$f":"'WP FR-16(7)(v) KWH'!M$17","v":521206},701,{"$f":"'WP FR-16(7)(v) LoadRes DTSEC'!L37/100","v":0.80069918099999993},875,{"$f":"'WP FR-16(7)(v) LossRatios'!$M$27+1","v":1.0358000000000001},906,null,{"$f":"'WP FR-16(7)(v) LoadRes DTSEC'!J37/100","v":0.63748956278000002},1100,null,{"$f":"'WP FR-16(7)(v) LoadRes DTSEC'!K37/100","v":0.77338523101000012},906,{"$f":"'WP FR-16(7)(v) LossRatios'!$K$27+1","v":1.02969},933]
[14,null,{"$f":"SUM(C20:C31)","v":8760},{"$f":"SUM(D20:D31)","v":6253450},null,null,{"$f":"SUM(G20:G31)","v":10210},null,{"$f":"SUM(I20:I31)","v":10596},null,null,{"$f":"SUM(L20:L31)","v":12957},null,null,{"$f":"SUM(O20:O31)","v":10989},null,{"$f":"SUM(Q20:Q31)","v":11334}]
[]
[]
[]
[]
[null,"(a) Source: WPFR-16(7)(v), Page 51"]
[null,"(b) Source: WPFR-16(7)(v), Page 43"]
[null,"(c) Source: WPFR-16(7)(v) Page 33, Col 5 (Loss % + 1)"]
[null,"(d) Source: WPFR-16(7)(v) Page 33, Col 4 (Loss % + 1)"]
[" "]
[]
[]
[]
[]
[]
[]
[]
[]
[]
[]
[]
[]
[]
[]
[]
[]
[]
[]
[]
[]
[]
[]
[]
[]
[]
[]
[]
[]
[]
[]
[]
[]
[]
[]
[]
[]
[]
[]
[]
[]
[]
[]
[]
[]
[]
[]
[]
[]
[]
[]
[]
[]
[]
[]
[]
[]
[]
[]
[]
[]
[]
[]
[]
[]
[]
[]
[]
[]
[]
[]
[]
[]
[]
[]
[]
[]
[]
[]
[]
[]
[]
[]
[]
[]
[]
[]
[]
[]
[]
[]
[]
[]
[]
[]
[]
[]
[]
[]
[]
[]
[]
[]
[]
[]
[]
[]
[]
[]
[]
[]
[]
[]
[]
[]
[]
[]
[]
[]
[]
[]
[]
[]
[]
[]
[]
[]
[]
[]
[]
[]
[]
[]
[]
[]
[]
[]
[]
[]
[]
[]
[]
[]
[]
[]
[]
[]
[]
[]
[]
[]
[]
[]
[]
[]
[]
[]
[]
[]
[]
[]
[]
[]
[]
[]
[]
[]
[]
[]
[]
[]
[]
[]
[]
[]
[]
[]
[]
[]
[]
[]
[]
[]
[]
[]
[]
[]
[]
[]
[]
[]
[]
[]
[]
[]
[]
[]
[]
[]
[]
[]
[]
[]
[]
[]
[]
[]
[]
[]
[]
[]
[]
[]
[]
[]
[]
[]
[]
[]
[]
[]
[]
[]
[]
[]
[]
[]
[]
[]
[]
[]
[]
[]
[]
[]
[]
[]
[]
[]
[]
[]
[]
[]
[]
[]
[]
[]
[]
[]
[]
[]
[]
[]
[]
[]
[]
[]
[]
[]
[]
[]
[]
[]
[]
[]
[]
[]
[]
[]
[]
[]
[]
[]
[]
[]
[]
[]
[]
[]
[]
[]
[]
[]
[]
[]
[]
[]
[]
[]
[]
[]
[]
[]
[]
[]
[]
[]
[]
[]
[]
[]
[]
[]
[]
[]
[]
[]
[]
[]
[]
[]
[]
[]
[]
[]
[]
[]
[]
[]
[]
[]
[]
[]
[]
[]
[]
[]
[]
[]
[]
[]
[]
[]
[]
[]
[]
[]
[]
[]
[]
[]
[]
[]
[]
[]
[]
[]
[]
[]
[]
[]
[]
[]
[]
[]
[]
[]
[]
[]
[]
[]
[]
[]
[]
[]
[]
[]
[]
[]
[]
[]
[]
[]
[]
[]
[]
[]
[]
[]
[]
[]
[]
[]
[]
[]
[]
[]
[]
[]
[]
[]
[]
[]
[]
[]
[]
[]
[]
[]
[]
[]
[]
[]
[]
[]
[]
[]
[]
[]
[]
[]
[]
[]
[]
[]
[]
[]
[]
[]
[]
[]
[]
[]
[]
[]
[]
[]
[]
[]
[]
[]
[]
[]
[]
[]
[]
[]
[]
[]
[]
[]
[]
[]
[]
[]
[]
[]
[]
[]
[]
[]
[]
[]
[]
[]
[]
[]
[]
[]
[]
[]
[]
[]
[]
[]
[]
[]
[null,null,null,null,0]

{"sheet":"WP FR-16(7)(v) EH - KW","index":50,"n_rows":508,"n_cols":17,"rows_kept":508,"cut":false,"hidden":false,"merged":[[11,5,11,8]]}
[{"$f":"'WP FR-16(7)(v)-KW & KWH @Gen'!A1","v":"DUKE ENERGY KENTUCKY, INC."},null,null,null,null,null,null,null,null,null,null,null,null,null,null,{"$f":"'WP FR-16(7)(v)-KW & KWH @Gen'!G1","v":"Work Paper FR-16(7)(v) "}]
[{"$f":"coss_type","v":"ELECTRIC COST OF SERVICE STUDY "},null,null,null,null,null,null,null,null,null,null,null,null,null,null,{"$f":"'WP FR-16(7)(v)-KW & KWH @Gen'!G2","v":"Witness Responsible:"}]
[{"$f":"case_name","v":"CASE NO: 2019-00271"},null,null,null,null,null,null,null,null,null,null,null,null,null,null,{"$f":"PROPER(Witness)","v":"James E. Ziolkowski"}]
[{"$f":"alloc_factors","v":"ALLOCATION FACTORS FOR COST OF SERVICE STUDY"},null,null,null,null,null,null,null,null,null,null,null,null,null,null,"Page 31"]
[{"$f":"'WP FR-16(7)(v)-KW & KWH @Gen'!A5","v":"TWELVE MONTHS ENDING DECEMBER 31, 2018"}]
[]
["DERIVATION OF COINCIDENT AND NON-COINCIDENT KW DEMANDS",null,null,null,null,null,null,null,""]
["RATE GROUP: EH - OPTIONAL RATE FOR ELECTRIC SPACE HEATING"]
[]
[null,null,null," "]
[null,null,null,null,null,null,null,null,null,null,"NON-COINCIDENT PEAK"]
[null,null,null," ",null,"COINCIDENT PEAK DEMAND",null,null,null,null,"(\"NCP\") DEMAND",null,null,"DIVERSIFIED PEAK DEMAND"]
[null,null,null,null,null,"COIN","CP","TRANS & DIST","CP",null,null,null,null,null,"DIVERSIFIED",null,"DIVERSIFIED"]
[null,null,null,null,null," PEAK","KW DMD.","LOSS","KW DMD.",null,"NON-COIN","NON-COIN",null,"DIVERSIFIED","CLASS","DISTR. LOSS","CLASS"]
[null,null,null," ","AVERAGE","LOAD","AT","FACTOR","AT",null,"CLASS","KW DMD.",null,"CLASS","KW DEMAND","FACTOR TO","KW DEMAND"]
[null,null,null,"TOTAL","HRLY KW","FACTOR","DELIVERY","TO GEN","GENERATION",null,"PEAK LOAD","AT DELIVERY",null,"PEAK LOAD","AT DELIVERY","TRANSMISSION","AT TRANSMISSION"]
["LINE",null,"HOURS","KWH(a)","(2) / (1)","(b)","(3) / (4)","(c)","(5) * (6)",null,"FACTOR (b)","(3) / (8)",null,"FACTOR (b)","(3) / (10)","(d)","(11)* (12)"]
["NO."," MONTH","(1)","(2)","(3)","(4)","(5)","(6)","(7)",null,"(8)","(9)",null,"(10)","(11)","(12)","(13)"]
[1]
[{"$f":"1+A19","v":2},{"$f":"'WP FR-16(7)(v) DS Tot - KW'!$B$17","v":"JANUARY"},{"$f":"'WP FR-16(7)(v) RS - KW'!$C$20","v":744},{"$f":"'WP FR-16(7)(v) KWH'!B$15","v":3239766},{"$f":"ROUND(D20/C20,0)","v":4355},{"$f":"'WP FR-16(7)(v) LoadRes EH'!L15/100","v":0.49714528344000003},{"$f":"ROUND(E20/F20,0)","v":8760},{"$f":"'WP FR-16(7)(v) LossRatios'!$M$16+1","v":1.0389600000000001},{"$f":"ROUND(G20*H20,0)","v":9101},null,{"$f":"'WP FR-16(7)(v) LoadRes EH'!J15/100","v":0.40880568482999996},{"$f":"ROUND(E20/K20,0)","v":10653},null,{"$f":"'WP FR-16(7)(v) LoadRes EH'!K15/100","v":0.49714528344000003},{"$f":"IF(N20=0,0,ROUND(E20/N20,0))","v":8760},{"$f":"'WP FR-16(7)(v) LossRatios'!$K$16+1","v":1.0323},{"$f":"ROUND(P20*O20,0)","v":9043}]
[3,{"$f":"'WP FR-16(7)(v) DS Tot - KW'!$B$18","v":"FEBRUARY"},{"$f":"'WP FR-16(7)(v) RS - KW'!$C$21","v":672},{"$f":"'WP FR-16(7)(v) KWH'!C$15","v":2518499},3748,{"$f":"'WP FR-16(7)(v) LoadRes EH'!L17/100","v":0.53970859361000001},{"$f":"ROUND(E21/F21,0)","v":6944},{"$f":"'WP FR-16(7)(v) LossRatios'!$M$17+1","v":1.03592},{"$f":"ROUND(G21*H21,0)","v":7193},null,{"$f":"'WP FR-16(7)(v) LoadRes EH'!J17/100","v":0.37580141773000003},{"$f":"ROUND(E21/K21,0)","v":9973},null,{"$f":"'WP FR-16(7)(v) LoadRes EH'!K17/100","v":0.46117194077000001},{"$f":"IF(N21=0,0,ROUND(E21/N21,0))","v":8127},{"$f":"'WP FR-16(7)(v) LossRatios'!$K$17+1","v":1.02979},{"$f":"ROUND(P21*O21,0)","v":8369}]
[4,{"$f":"'WP FR-16(7)(v) DS Tot - KW'!$B$19","v":"MARCH"},{"$f":"'WP FR-16(7)(v) RS - KW'!$C$22","v":744},{"$f":"'WP FR-16(7)(v) KWH'!D$15","v":2293362},3082,{"$f":"'WP FR-16(7)(v) LoadRes EH'!L19/100","v":0.90154812805000006},{"$f":"ROUND(E22/F22,0)","v":3419},{"$f":"'WP FR-16(7)(v) LossRatios'!$M$18+1","v":1.0358000000000001},{"$f":"ROUND(G22*H22,0)","v":3541},null,{"$f":"'WP FR-16(7)(v) LoadRes EH'!J19/100","v":0.38471565528000001},{"$f":"ROUND(E22/K22,0)","v":8011},null,{"$f":"'WP FR-16(7)(v) LoadRes EH'!K19/100","v":0.46569404128999997},{"$f":"IF(N22=0,0,ROUND(E22/N22,0))","v":6618},{"$f":"'WP FR-16(7)(v) LossRatios'!$K$18+1","v":1.02969},{"$f":"ROUND(P22*O22,0)","v":6814}]
[5,{"$f":"'WP FR-16(7)(v) DS Tot - KW'!$B$20","v":"APRIL"},{"$f":"'WP FR-16(7)(v) RS - KW'!$C$23","v":720},{"$f":"'WP FR-16(7)(v) KWH'!E$15","v":2077538},2885,{"$f":"'WP FR-16(7)(v) LoadRes EH'!L21/100","v":0.52792203055999998},{"$f":"ROUND(E23/F23,0)","v":5465},{"$f":"'WP FR-16(7)(v) LossRatios'!$M$19+1","v":1.0354300000000001},{"$f":"ROUND(G23*H23,0)","v":5659},null,{"$f":"'WP FR-16(7)(v) LoadRes EH'!J21/100","v":0.32124406479000001},{"$f":"ROUND(E23/K23,0)","v":8981},null,{"$f":"'WP FR-16(7)(v) LoadRes EH'!K21/100","v":0.47858993257999999},{"$f":"IF(N23=0,0,ROUND(E23/N23,0))","v":6028},{"$f":"'WP FR-16(7)(v) LossRatios'!$K$19+1","v":1.02939},{"$f":"ROUND(P23*O23,0)","v":6205}]
[6,{"$f":"'WP FR-16(7)(v) DS Tot - KW'!$B$21","v":"MAY"},{"$f":"'WP FR-16(7)(v) RS - KW'!$C$24","v":744},{"$f":"'WP FR-16(7)(v) KWH'!F$15","v":1755828},2360,{"$f":"'WP FR-16(7)(v) LoadRes EH'!L23/100","v":0.86373769634999997},{"$f":"ROUND(E24/F24,0)","v":2732},{"$f":"'WP FR-16(7)(v) LossRatios'!$M$20+1","v":1.0381100000000001},{"$f":"ROUND(G24*H24,0)","v":2836},null,{"$f":"'WP FR-16(7)(v) LoadRes EH'!J23/100","v":0.39057102935000004},{"$f":"ROUND(E24/K24,0)","v":6042},null,{"$f":"'WP FR-16(7)(v) LoadRes EH'!K23/100","v":0.47593972531000001},{"$f":"IF(N24=0,0,ROUND(E24/N24,0))","v":4959},{"$f":"'WP FR-16(7)(v) LossRatios'!$K$20+1","v":1.0316000000000001},{"$f":"ROUND(P24*O24,0)","v":5116}]
[7,{"$f":"'WP FR-16(7)(v) DS Tot - KW'!$B$22","v":"JUNE"},{"$f":"'WP FR-16(7)(v) RS - KW'!$C$25","v":720},{"$f":"'WP FR-16(7)(v) KWH'!G$15","v":0},0]
[8,{"$f":"'WP FR-16(7)(v) DS Tot - KW'!$B$23","v":"JULY"},{"$f":"'WP FR-16(7)(v) RS - KW'!$C$26","v":744},{"$f":"'WP FR-16(7)(v) KWH'!H$15","v":0},0]
[9,{"$f":"'WP FR-16(7)(v) DS Tot - KW'!$B$24","v":"AUGUST"},{"$f":"'WP FR-16(7)(v) RS - KW'!$C$27","v":744},{"$f":"'WP FR-16(7)(v) KWH'!I$15","v":0},0]
[10,{"$f":"'WP FR-16(7)(v) DS Tot - KW'!$B$25","v":"SEPTEMBER"},{"$f":"'WP FR-16(7)(v) RS - KW'!$C$28","v":720},{"$f":"'WP FR-16(7)(v) KWH'!J$15","v":0},0]
[11,{"$f":"'WP FR-16(7)(v) DS Tot - KW'!$B$26","v":"OCTOBER"},{"$f":"'WP FR-16(7)(v) RS - KW'!$C$29","v":744},{"$f":"'WP FR-16(7)(v) KWH'!K$15","v":1704560},2291,{"$f":"'WP FR-16(7)(v) LoadRes EH'!L33/100","v":0.79059978493000005},{"$f":"ROUND(E29/F29,0)","v":2898},{"$f":"'WP FR-16(7)(v) LossRatios'!$M$25+1","v":1.03817},{"$f":"ROUND(G29*H29,0)","v":3009},null,{"$f":"'WP FR-16(7)(v) LoadRes EH'!J33/100","v":0.34414126195},{"$f":"ROUND(E29/K29,0)","v":6657},null,{"$f":"'WP FR-16(7)(v) LoadRes EH'!K33/100","v":0.47332996528999999},{"$f":"IF(N29=0,0,ROUND(E29/N29,0))","v":4840},{"$f":"'WP FR-16(7)(v) LossRatios'!$K$25+1","v":1.03165},{"$f":"ROUND(P29*O29,0)","v":4993}]
[12,{"$f":"'WP FR-16(7)(v) DS Tot - KW'!$B$27","v":"NOVEMBER"},{"$f":"'WP FR-16(7)(v) RS - KW'!$C$30","v":720},{"$f":"'WP FR-16(7)(v) KWH'!L$15","v":1755034},2438,{"$f":"'WP FR-16(7)(v) LoadRes EH'!L35/100","v":0.75396378336000003},{"$f":"ROUND(E30/F30,0)","v":3234},{"$f":"'WP FR-16(7)(v) LossRatios'!$M$26+1","v":1.03586},{"$f":"ROUND(G30*H30,0)","v":3350},null,{"$f":"'WP FR-16(7)(v) LoadRes EH'!J35/100","v":0.36595431510999998},{"$f":"ROUND(E30/K30,0)","v":6662},null,{"$f":"'WP FR-16(7)(v) LoadRes EH'!K35/100","v":0.45746896122000003},{"$f":"IF(N30=0,0,ROUND(E30/N30,0))","v":5329},{"$f":"'WP FR-16(7)(v) LossRatios'!$K$26+1","v":1.0297400000000001},{"$f":"ROUND(P30*O30,0)","v":5487}]
[13,{"$f":"'WP FR-16(7)(v) DS Tot - KW'!$B$28","v":"DECEMBER"},{"$f":"'WP FR-16(7)(v) RS - KW'!$C$31","v":744},{"$f":"'WP FR-16(7)(v) KWH'!M$15","v":2409354},3238,{"$f":"'WP FR-16(7)(v) LoadRes EH'!L37/100","v":0.45936067296999999},{"$f":"ROUND(E31/F31,0)","v":7049},{"$f":"'WP FR-16(7)(v) LossRatios'!$M$27+1","v":1.0358000000000001},{"$f":"ROUND(G31*H31,0)","v":7301},null,{"$f":"'WP FR-16(7)(v) LoadRes EH'!J37/100","v":0.37856659683999999},{"$f":"ROUND(E31/K31,0)","v":8553},null,{"$f":"'WP FR-16(7)(v) LoadRes EH'!K37/100","v":0.45474347244000002},{"$f":"IF(N31=0,0,ROUND(E31/N31,0))","v":7120},{"$f":"'WP FR-16(7)(v) LossRatios'!$K$27+1","v":1.02969},{"$f":"ROUND(P31*O31,0)","v":7331}]
[14,null,{"$f":"SUM(C20:C31)","v":8760},{"$f":"SUM(D20:D31)","v":17753941},null,null,{"$f":"SUM(G20:G31)","v":40501},null,{"$f":"SUM(I20:I31)","v":41990},null,null,{"$f":"SUM(L20:L31)","v":65532},null,null,{"$f":"SUM(O20:O31)","v":51781},null,{"$f":"SUM(Q20:Q31)","v":53358}]
[]
[]
[]
[]
[null,"(a) Source: WPFR-16(7)(v), Page 51"]
[null,"(b) Source: WPFR-16(7)(v), Page 45"]
[null,"(c) Source: WPFR-16(7)(v), Page 33, Col 5 (Loss % + 1)"]
[null,"(d) Source: WPFR-16(7)(v), Page 33, Col 2 (Loss % + 1)"]
[null,"(e) Source: Form 1, Page 401b, Col (f)"]
[" "]
[" "]
["  "]
[" "]
[" "]
[" "]
[" "]
[" "]
[]
[]
[]
[]
[]
[]
[]
[]
[]
[]
[]
[]
[]
[]
[]
[]
[]
[]
[]
[]
[]
[]
[]
[]
[]
[]
[]
[]
[]
[]
[]
[]
[]
[]
[]
[]
[]
[]
[]
[]
[]
[]
[]
[]
[]
[]
[]
[]
[]
[]
[]
[]
[]
[]
[]
[]
[]
[]
[]
[]
[]
[]
[]
[]
[]
[]
[]
[]
[]
[]
[]
[]
[]
[]
[]
[]
[]
[]
[]
[]
[]
[]
[]
[]
[]
[]
[]
[]
[]
[]
[]
[]
[]
[]
[]
[]
[]
[]
[]
[]
[]
[]
[]
[]
[]
[]
[]
[]
[]
[]
[]
[]
[]
[]
[]
[]
[]
[]
[]
[]
[]
[]
[]
[]
[]
[]
[]
[]
[]
[]
[]
[]
[]
[]
[]
[]
[]
[]
[]
[]
[]
[]
[]
[]
[]
[]
[]
[]
[]
[]
[]
[]
[]
[]
[]
[]
[]
[]
[]
[]
[]
[]
[]
[]
[]
[]
[]
[]
[]
[]
[]
[]
[]
[]
[]
[]
[]
[]
[]
[]
[]
[]
[]
[]
[]
[]
[]
[]
[]
[]
[]
[]
[]
[]
[]
[]
[]
[]
[]
[]
[]
[]
[]
[]
[]
[]
[]
[]
[]
[]
[]
[]
[]
[]
[]
[]
[]
[]
[]
[]
[]
[]
[]
[]
[]
[]
[]
[]
[]
[]
[]
[]
[]
[]
[]
[]
[]
[]
[]
[]
[]
[]
[]
[]
[]
[]
[]
[]
[]
[]
[]
[]
[]
[]
[]
[]
[]
[]
[]
[]
[]
[]
[]
[]
[]
[]
[]
[]
[]
[]
[]
[]
[]
[]
[]
[]
[]
[]
[]
[]
[]
[]
[]
[]
[]
[]
[]
[]
[]
[]
[]
[]
[]
[]
[]
[]
[]
[]
[]
[]
[]
[]
[]
[]
[]
[]
[]
[]
[]
[]
[]
[]
[]
[]
[]
[]
[]
[]
[]
[]
[]
[]
[]
[]
[]
[]
[]
[]
[]
[]
[]
[]
[]
[]
[]
[]
[]
[]
[]
[]
[]
[]
[]
[]
[]
[]
[]
[]
[]
[]
[]
[]
[]
[]
[]
[]
[]
[]
[]
[]
[]
[]
[]
[]
[]
[]
[]
[]
[]
[]
[]
[]
[]
[]
[]
[]
[]
[]
[]
[]
[]
[]
[]
[]
[]
[]
[]
[]
[]
[]
[]
[]
[]
[]
[]
[]
[]
[]
[]
[]
[]
[]
[]
[]
[]
[]
[]
[]
[]
[]
[]
[]
[]
[]
[]
[]
[]
[]
[]
[]
[]
[]
[]
[]
[]
[]
[]
[]
[]
[]
[]
[]
[]
[]
[]
[]
[]
[]
[]
[]
[]
[]
[]
[]
[]
[]
[]
[]
[]
[]
[]
[]
[]
[]
[]
[]
[]
[]
[null,null,null,null,0]

{"sheet":"WP FR-16(7)(v) SP - KW","index":51,"n_rows":507,"n_cols":17,"rows_kept":507,"cut":false,"hidden":false,"merged":[[11,5,11,8]]}
[{"$f":"'WP FR-16(7)(v)-KW & KWH @Gen'!A1","v":"DUKE ENERGY KENTUCKY, INC."},null,null,null,null,null,null,null,null,null,null,null,null,null,null,{"$f":"'WP FR-16(7)(v)-KW & KWH @Gen'!G1","v":"Work Paper FR-16(7)(v) "}]
[{"$f":"coss_type","v":"ELECTRIC COST OF SERVICE STUDY "},null,null,null,null,null,null,null,null,null,null,null,null,null,null,{"$f":"'WP FR-16(7)(v)-KW & KWH @Gen'!G2","v":"Witness Responsible:"}]
[{"$f":"case_name","v":"CASE NO: 2019-00271"},null,null,null,null,null,null,null,null,null,null,null,null,null,null,{"$f":"'WP FR-16(7)(v)-KW & KWH @Gen'!G3","v":"James E. Ziolkowski"}]
[{"$f":"alloc_factors","v":"ALLOCATION FACTORS FOR COST OF SERVICE STUDY"},null,null,null,null,null,null,null,null,null,null,null,null,null,null,"Page 32"]
[{"$f":"'WP FR-16(7)(v)-KW & KWH @Gen'!A5","v":"TWELVE MONTHS ENDING DECEMBER 31, 2018"}]
[]
["DERIVATION OF COINCIDENT AND NON-COINCIDENT KW DEMANDS",null,null,null,null,null,null,null,""]
["RATE GROUP: SP - SEASONAL SPORTS SERVICE"]
[]
[]
[null,null,null," ",null,null,null,null,null,null,"NON-COINCIDENT PEAK"]
[null,null,null," ",null,"COINCIDENT PEAK DEMAND",null,null,null,null,"(\"NCP\") DEMAND",null,null,"DIVERSIFIED PEAK DEMAND"]
[null,null,null,null,null,"COIN","CP","TRANS & DIST","CP",null,null,null,null,null,"DIVERSIFIED",null,"DIVERSIFIED"]
[null,null,null,null,null," PEAK","KW DMD.","LOSS","KW DMD.",null,"NON-COIN","NON-COIN",null,"DIVERSIFIED","CLASS","DISTR. LOSS","CLASS"]
[null,null,null," ","AVERAGE","LOAD","AT","FACTOR","AT",null,"CLASS","KW DMD.",null,"CLASS","KW DEMAND","FACTOR TO","KW DEMAND"]
[null,null,null,"TOTAL","HRLY KW","FACTOR","DELIVERY","TO GEN","GENERATION",null,"PEAK LOAD","AT DELIVERY",null,"PEAK LOAD","AT DELIVERY","TRANSMISSION","AT TRANSMISSION"]
["LINE",null,"HOURS","KWH(a)","(2) / (1)","(b)","(3) / (4)","(c)","(5) * (6)",null,"FACTOR (b)","(3) / (8)",null,"FACTOR (b)","(3) / (10)","(d)","(11)* (12)"]
["NO."," MONTH","(1)","(2)","(3)","(4)","(5)","(6)","(7)",null,"(8)","(9)",null,"(10)","(11)","(12)","(13)"]
[1]
[{"$f":"1+A19","v":2},{"$f":"'WP FR-16(7)(v) DS Tot - KW'!$B$17","v":"JANUARY"},{"$f":"'WP FR-16(7)(v) RS - KW'!$C$20","v":744},{"$f":"'WP FR-16(7)(v) KWH'!B$16","v":24824},{"$f":"ROUND(D20/C20,0)","v":33},{"$f":"'WP FR-16(7)(v) DS Sec - KW'!G180","v":0.77765870936000003},{"$f":"ROUND(E20/F20,0)","v":42},{"$f":"'WP FR-16(7)(v) LossRatios'!$M$16+1","v":1.0389600000000001},{"$f":"ROUND(G20*H20,0)","v":44},null,{"$f":"'WP FR-16(7)(v) DS Sec - KW'!L180","v":0.52106588546999999},{"$f":"ROUND(E20/K20,0)","v":63},null,{"$f":"'WP FR-16(7)(v) DS Sec - KW'!O180","v":0.71997439431999988},{"$f":"ROUND(E20/N20,0)","v":46},{"$f":"1+'WP FR-16(7)(v) LossRatios'!$K16","v":1.0323},{"$f":"ROUND(P20*O20,0)","v":47}]
[3,{"$f":"'WP FR-16(7)(v) DS Tot - KW'!$B$18","v":"FEBRUARY"},{"$f":"'WP FR-16(7)(v) RS - KW'!$C$21","v":672},{"$f":"'WP FR-16(7)(v) KWH'!C$16","v":22274},33,{"$f":"'WP FR-16(7)(v) DS Sec - KW'!G181","v":0.79085856854000003},42,{"$f":"'WP FR-16(7)(v) LossRatios'!$M$17+1","v":1.03592},44,null,{"$f":"'WP FR-16(7)(v) DS Sec - KW'!L181","v":0.47975649672999998},69,null,{"$f":"'WP FR-16(7)(v) DS Sec - KW'!O181","v":0.71867025837999998},46,{"$f":"1+'WP FR-16(7)(v) LossRatios'!$K17","v":1.02979},47]
[4,{"$f":"'WP FR-16(7)(v) DS Tot - KW'!$B$19","v":"MARCH"},{"$f":"'WP FR-16(7)(v) RS - KW'!$C$22","v":744},{"$f":"'WP FR-16(7)(v) KWH'!D$16","v":23279},31,{"$f":"'WP FR-16(7)(v) DS Sec - KW'!G182","v":0.86688695483999989},36,{"$f":"'WP FR-16(7)(v) LossRatios'!$M$18+1","v":1.0358000000000001},37,null,{"$f":"'WP FR-16(7)(v) DS Sec - KW'!L182","v":0.49944559015000001},62,null,{"$f":"'WP FR-16(7)(v) DS Sec - KW'!O182","v":0.71927613312000005},43,{"$f":"1+'WP FR-16(7)(v) LossRatios'!$K18","v":1.02969},44]
[5,{"$f":"'WP FR-16(7)(v) DS Tot - KW'!$B$20","v":"APRIL"},{"$f":"'WP FR-16(7)(v) RS - KW'!$C$23","v":720},{"$f":"'WP FR-16(7)(v) KWH'!E$16","v":26707},37,{"$f":"'WP FR-16(7)(v) DS Sec - KW'!G183","v":0.71997148407},51,{"$f":"'WP FR-16(7)(v) LossRatios'!$M$19+1","v":1.0354300000000001},53,null,{"$f":"'WP FR-16(7)(v) DS Sec - KW'!L183","v":0.44734635127},83,null,{"$f":"'WP FR-16(7)(v) DS Sec - KW'!O183","v":0.69859048607000007},53,{"$f":"1+'WP FR-16(7)(v) LossRatios'!$K19","v":1.02939},55]
[6,{"$f":"'WP FR-16(7)(v) DS Tot - KW'!$B$21","v":"MAY"},{"$f":"'WP FR-16(7)(v) RS - KW'!$C$24","v":744},{"$f":"'WP FR-16(7)(v) KWH'!F$16","v":17857},24,{"$f":"'WP FR-16(7)(v) DS Sec - KW'!G184","v":0.69356867433999991},35,{"$f":"'WP FR-16(7)(v) LossRatios'!$M$20+1","v":1.0381100000000001},36,null,{"$f":"'WP FR-16(7)(v) DS Sec - KW'!L184","v":0.48115190906999999},50,null,{"$f":"'WP FR-16(7)(v) DS Sec - KW'!O184","v":0.61199533048999999},39,{"$f":"1+'WP FR-16(7)(v) LossRatios'!$K20","v":1.0316000000000001},40]
[7,{"$f":"'WP FR-16(7)(v) DS Tot - KW'!$B$22","v":"JUNE"},{"$f":"'WP FR-16(7)(v) RS - KW'!$C$25","v":720},{"$f":"'WP FR-16(7)(v) KWH'!G$16","v":20482},28,{"$f":"'WP FR-16(7)(v) DS Sec - KW'!G185","v":0.68715415871000007},41,{"$f":"'WP FR-16(7)(v) LossRatios'!$M$21+1","v":1.0404100000000001},43,null,{"$f":"'WP FR-16(7)(v) DS Sec - KW'!L185","v":0.48933462833999997},57,null,{"$f":"'WP FR-16(7)(v) DS Sec - KW'!O185","v":0.62058942452999999},45,{"$f":"1+'WP FR-16(7)(v) LossRatios'!$K21","v":1.0335000000000001},47]
[8,{"$f":"'WP FR-16(7)(v) DS Tot - KW'!$B$23","v":"JULY"},{"$f":"'WP FR-16(7)(v) RS - KW'!$C$26","v":744},{"$f":"'WP FR-16(7)(v) KWH'!H$16","v":27702},37,{"$f":"'WP FR-16(7)(v) DS Sec - KW'!G186","v":0.70634182654},52,{"$f":"'WP FR-16(7)(v) LossRatios'!$M$22+1","v":1.0400499999999999},54,null,{"$f":"'WP FR-16(7)(v) DS Sec - KW'!L186","v":0.49547608554999995},75,null,{"$f":"'WP FR-16(7)(v) DS Sec - KW'!O186","v":0.62352890137999994},59,{"$f":"1+'WP FR-16(7)(v) LossRatios'!$K22","v":1.0331999999999999},61]
[9,{"$f":"'WP FR-16(7)(v) DS Tot - KW'!$B$24","v":"AUGUST"},{"$f":"'WP FR-16(7)(v) RS - KW'!$C$27","v":744},{"$f":"'WP FR-16(7)(v) KWH'!I$16","v":25313},34,{"$f":"'WP FR-16(7)(v) DS Sec - KW'!G187","v":0.74450926513000004},46,{"$f":"'WP FR-16(7)(v) LossRatios'!$M$23+1","v":1.0395000000000001},48,null,{"$f":"'WP FR-16(7)(v) DS Sec - KW'!L187","v":0.50650680028999995},67,null,{"$f":"'WP FR-16(7)(v) DS Sec - KW'!O187","v":0.63075037956000002},54,{"$f":"1+'WP FR-16(7)(v) LossRatios'!$K23","v":1.0327500000000001},56]
[10,{"$f":"'WP FR-16(7)(v) DS Tot - KW'!$B$25","v":"SEPTEMBER"},{"$f":"'WP FR-16(7)(v) RS - KW'!$C$28","v":720},{"$f":"'WP FR-16(7)(v) KWH'!J$16","v":25533},35,{"$f":"'WP FR-16(7)(v) DS Sec - KW'!G188","v":0.59079947379999997},59,{"$f":"'WP FR-16(7)(v) LossRatios'!$M$24+1","v":1.0403500000000001},61,null,{"$f":"'WP FR-16(7)(v) DS Sec - KW'!L188","v":0.46031310396999997},76,null,{"$f":"'WP FR-16(7)(v) DS Sec - KW'!O188","v":0.56938555129000001},61,{"$f":"1+'WP FR-16(7)(v) LossRatios'!$K24","v":1.03345},63]
[11,{"$f":"'WP FR-16(7)(v) DS Tot - KW'!$B$26","v":"OCTOBER"},{"$f":"'WP FR-16(7)(v) RS - KW'!$C$29","v":744},{"$f":"'WP FR-16(7)(v) KWH'!K$16","v":35094},47,{"$f":"'WP FR-16(7)(v) DS Sec - KW'!G189","v":0.56995259941999998},82,{"$f":"'WP FR-16(7)(v) LossRatios'!$M$25+1","v":1.03817},85,null,{"$f":"'WP FR-16(7)(v) DS Sec - KW'!L189","v":0.43227459885999997},109,null,{"$f":"'WP FR-16(7)(v) DS Sec - KW'!O189","v":0.56822716540000007},83,{"$f":"1+'WP FR-16(7)(v) LossRatios'!$K25","v":1.03165},86]
[12,{"$f":"'WP FR-16(7)(v) DS Tot - KW'!$B$27","v":"NOVEMBER"},{"$f":"'WP FR-16(7)(v) RS - KW'!$C$30","v":720},{"$f":"'WP FR-16(7)(v) KWH'!L$16","v":25621},36,{"$f":"'WP FR-16(7)(v) DS Sec - KW'!G190","v":0.80809709695999998},45,{"$f":"'WP FR-16(7)(v) LossRatios'!$M$26+1","v":1.03586},47,null,{"$f":"'WP FR-16(7)(v) DS Sec - KW'!L190","v":0.48424641179},74,null,{"$f":"'WP FR-16(7)(v) DS Sec - KW'!O190","v":0.69957437865000005},51,{"$f":"1+'WP FR-16(7)(v) LossRatios'!$K26","v":1.0297400000000001},53]
[13,{"$f":"'WP FR-16(7)(v) DS Tot - KW'!$B$28","v":"DECEMBER"},{"$f":"'WP FR-16(7)(v) RS - KW'!$C$31","v":744},{"$f":"'WP FR-16(7)(v) KWH'!M$16","v":15584},21,{"$f":"'WP FR-16(7)(v) DS Sec - KW'!G191","v":0.77429897424000005},27,{"$f":"'WP FR-16(7)(v) LossRatios'!$M$27+1","v":1.0358000000000001},28,null,{"$f":"'WP FR-16(7)(v) DS Sec - KW'!L191","v":0.49681938365999995},42,null,{"$f":"'WP FR-16(7)(v) DS Sec - KW'!O191","v":0.70885571443000006},30,{"$f":"1+'WP FR-16(7)(v) LossRatios'!$K27","v":1.02969},31]
[14,null,{"$f":"SUM(C20:C31)","v":8760},{"$f":"SUM(D20:D31)","v":290270},null,null,{"$f":"SUM(G20:G31)","v":558},null,{"$f":"SUM(I20:I31)","v":580},null,null,{"$f":"SUM(L20:L31)","v":827},null,null,{"$f":"SUM(O20:O31)","v":610},null,{"$f":"SUM(Q20:Q31)","v":630}]
[]
[]
[]
[null,"(a) Source: WPFR-16(7)(v), Page 51"]
[null,"(b) Source: WPFR-16(7)(v), Page 40"]
[null,"(c) Source: WPFR-16(7)(v), Page 33, Col 5 (Loss % + 1)"]
[null,"(d) Source: WPFR-16(7)(v), Page 33, Col 2 (Loss % + 1)"]
[null,"(e) Source: Form 1, Page 401b, Col (f)"]
[" "]
[" "]
[]
[]
[]
[]
[]
[]
[]
[]
[]
[]
[]
[]
[]
[]
[]
[]
[]
[]
[]
[]
[]
[]
[]
[]
[]
[]
[]
[]
[]
[]
[]
[]
[]
[]
[]
[]
[]
[]
[]
[]
[]
[]
[]
[]
[]
[]
[]
[]
[]
[]
[]
[]
[]
[]
[]
[]
[]
[]
[]
[]
[]
[]
[]
[]
[]
[]
[]
[]
[]
[]
[]
[]
[]
[]
[]
[]
[]
[]
[]
[]
[]
[]
[]
[]
[]
[]
[]
[]
[]
[]
[]
[]
[]
[]
[]
[]
[]
[]
[]
[]
[]
[]
[]
[]
[]
[]
[]
[]
[]
[]
[]
[]
[]
[]
[]
[]
[]
[]
[]
[]
[]
[]
[]
[]
[]
[]
[]
[]
[]
[]
[]
[]
[]
[]
[]
[]
[]
[]
[]
[]
[]
[]
[]
[]
[]
[]
[]
[]
[]
[]
[]
[]
[]
[]
[]
[]
[]
[]
[]
[]
[]
[]
[]
[]
[]
[]
[]
[]
[]
[]
[]
[]
[]
[]
[]
[]
[]
[]
[]
[]
[]
[]
[]
[]
[]
[]
[]
[]
[]
[]
[]
[]
[]
[]
[]
[]
[]
[]
[]
[]
[]
[]
[]
[]
[]
[]
[]
[]
[]
[]
[]
[]
[]
[]
[]
[]
[]
[]
[]
[]
[]
[]
[]
[]
[]
[]
[]
[]
[]
[]
[]
[]
[]
[]
[]
[]
[]
[]
[]
[]
[]
[]
[]
[]
[]
[]
[]
[]
[]
[]
[]
[]
[]
[]
[]
[]
[]
[]
[]
[]
[]
[]
[]
[]
[]
[]
[]
[]
[]
[]
[]
[]
[]
[]
[]
[]
[]
[]
[]
[]
[]
[]
[]
[]
[]
[]
[]
[]
[]
[]
[]
[]
[]
[]
[]
[]
[]
[]
[]
[]
[]
[]
[]
[]
[]
[]
[]
[]
[]
[]
[]
[]
[]
[]
[]
[]
[]
[]
[]
[]
[]
[]
[]
[]
[]
[]
[]
[]
[]
[]
[]
[]
[]
[]
[]
[]
[]
[]
[]
[]
[]
[]
[]
[]
[]
[]
[]
[]
[]
[]
[]
[]
[]
[]
[]
[]
[]
[]
[]
[]
[]
[]
[]
[]
[]
[]
[]
[]
[]
[]
[]
[]
[]
[]
[]
[]
[]
[]
[]
[]
[]
[]
[]
[]
[]
[]
[]
[]
[]
[]
[]
[]
[]
[]
[]
[]
[]
[]
[]
[]
[]
[]
[]
[]
[]
[]
[]
[]
[]
[]
[]
[]
[]
[]
[]
[]
[]
[]
[]
[]
[]
[]
[]
[]
[]
[]
[]
[]
[]
[]
[]
[]
[]
[]
[]
[]
[]
[]
[]
[]
[]
[]
[]
[]
[]
[]
[]
[]
[]
[]
[]
[]
[]
[]
[]
[]
[]
[]
[]
[]
[]
[]
[]
[]
[null,null,null,null,0]

{"sheet":"WP FR-16(7)(v) LossRatios","index":52,"n_rows":559,"n_cols":80,"rows_kept":559,"cut":false,"hidden":false,"merged":[[9,6,9,8]]}
[{"$f":"'WP FR-16(7)(v)-KW & KWH @Gen'!A1","v":"DUKE ENERGY KENTUCKY, INC."},null,null,null,null,null,null,null,{"$f":"'WP FR-16(7)(v)-KW & KWH @Gen'!G1","v":"Work Paper FR-16(7)(v) "}]
[{"$f":"coss_type","v":"ELECTRIC COST OF SERVICE STUDY "},null,null,null,null,null,null,null,{"$f":"'WP FR-16(7)(v)-KW & KWH @Gen'!G2","v":"Witness Responsible:"}]
[{"$f":"case_name","v":"CASE NO: 2019-00271"},null,null,null,null,null,null,null,{"$f":"PROPER(Witness)","v":"James E. Ziolkowski"}]
[{"$f":"alloc_factors","v":"ALLOCATION FACTORS FOR COST OF SERVICE STUDY"},null,null,null,null,null,null,null,"Page 33"]
[{"$f":"'WP FR-16(7)(v)-KW & KWH @Gen'!A5","v":"TWELVE MONTHS ENDING DECEMBER 31, 2018"}]
[]
["DEVELOPMENT OF DISTRIBUTION MONTHLY LOSS RATIOS"]
[]
[null,null,null,null,null,null,null,null,null,null,null,null,null,null,null,null,null,null,"do not "]
[null,null,null,null,null,null,"TRANSMISSION LOSSES",null,null,null,"DISTRIBUTION LOSSES",null,null,null,null,null,null,null,"delete"]
[null,null,null,null,"SYSTEM",null,null,null,"% OF",null," ",null,null,null,null,null,null,null,"used  for"]
["LINE",null,null,null,"PEAK",null,"TO SOURCE",null,"PEAK MONTH",null,"TO TRANS",null,"TO SOURCE",null,null,null,null,null,"peak month"]
["NO.",null,"MONTH",null,"KW (d)",null,"(b)",null,"(c)",null,"(a)",null,"((2)+(2x3))+(3)",null,null,null,null,null,"months for"]
[1,null,null,null,"(1)",null,"(2)",null,"(3)",null,"(4)",null,"(5)",null,null,null,null,null,"VLOOKUP"]
[{"$f":"1+A14","v":2}]
[3,null,"Jan 2016",null,{"$f":"'Input Data'!D54","v":768000},null,{"$f":"ROUND(AE59-1,5)","v":6.45E-3},null,{"$f":"G16/$G$31","v":0.97285067873303177},null,{"$f":"ROUND($K$31*I16,5)","v":3.2300000000000002E-2},null,{"$f":"ROUND(G16*K16,5)+G16+K16","v":3.8960000000000002E-2},null,null,null,null,null,"Jan"]
[4,null,"Feb",null,{"$f":"'Input Data'!D55","v":634000},null,{"$f":"ROUND(AE60-1,5)","v":5.9500000000000004E-3},null,0.89743589743589758,null,{"$f":"ROUND($K$31*I17,5)","v":2.9790000000000001E-2},null,3.5920000000000001E-2,null,null,null,null,null,"Feb"]
[5,null,"Mar",null,{"$f":"'Input Data'!D56","v":632000},null,5.9300000000000004E-3,null,0.89441930618401222,null,2.9690000000000001E-2,null,3.5799999999999998E-2,null,null,null,null,null,"Mar"]
[6,null,"Apr",null,{"$f":"'Input Data'!D57","v":612000},null,5.8700000000000002E-3,null,0.88536953242835603,null,2.9389999999999999E-2,null,3.5430000000000003E-2,null,null,null,null,null,"Apr"]
[7,null,"May",null,{"$f":"'Input Data'!D58","v":734000},null,6.3099999999999996E-3,null,0.95173453996983404,null,3.1600000000000003E-2,null,3.8110000000000005E-2,null,null,null,null,null,"May"]
[8,null,"Jun",null,{"$f":"'Input Data'!D59","v":819000},null,6.6899999999999998E-3,null,1.0090497737556561,null,3.3500000000000002E-2,null,4.0410000000000001E-2,null,null,null,null,null,"Jun"]
[9,null,"Jul",null,{"$f":"'Input Data'!D60","v":808000},null,6.6299999999999996E-3,null,1,null,3.32E-2,null,4.0050000000000002E-2,null,null,null,null,null,"Jul"]
[10,null,"Aug",null,{"$f":"'Input Data'!D61","v":787000},null,6.5399999999999998E-3,null,0.98642533936651589,null,3.2750000000000001E-2,null,3.95E-2,null,null,null,null,null,"Aug"]
[11,null,"Sep",null,{"$f":"'Input Data'!D62","v":799000},null,6.6800000000000002E-3,null,1.0075414781297136,null,3.3450000000000001E-2,null,4.0349999999999997E-2,null,null,null,null,null,"Sep"]
[12,null,"Oct",null,{"$f":"'Input Data'!D63","v":758000},null,6.3200000000000001E-3,null,0.95324283559577683,null,3.1649999999999998E-2,null,3.8169999999999996E-2,null,null,null,null,null,"Oct"]
[13,null,"Nov",null,{"$f":"'Input Data'!D64","v":632000},null,5.94E-3,null,0.89592760180995479,null,2.9739999999999999E-2,null,3.5859999999999996E-2,null,null,null,null,null,"Nov"]
[14,null,"Dec",null,{"$f":"'Input Data'!D65","v":630000},null,5.9300000000000004E-3,null,0.89441930618401222,null,2.9690000000000001E-2,null,3.5799999999999998E-2,null,null,null,null,null,"Dec"]
[15,null,null,null,{"$f":"SUM(E16:E27)","v":8613000},null,null,null,null,null," "]
[16]
[17,null,"Peak Month:",null,{"$f":"VLOOKUP(MAXA($E$16:$E$27),$E$16:$S$27,15,FALSE)","v":"Jun"},null,null,null,null,null," "]
[18,null,{"$f":"C22","v":"Jul"},null,{"$f":"MAXA($E$16:$E$27)","v":819000},null,{"$f":"G22","v":6.6299999999999996E-3},null,null,null,3.32E-2,null,{"$f":"ROUND(G31*K31,5)+G31+K31","v":4.0050000000000002E-2}]
[]
[]
[]
[null,null,"(a) The peak month Distribution KW Loss Factor is computed on"]
[null,null,"      WPFR-16(7)(v), page 35; losses for the other months are derived by"]
[null,null,"      multiplying this peak month loss factor by percentages in Col(4)."]
[null,null,"(b) The peak month Transmission KW Loss Factor is computed on "]
[null,null,"      WPFR-16(7)(v), page 35; losses for the other months are derived by"]
[null,null,"      taking page 34, Col (6) less 1."]
[null,null,"(c) Percentages of monthly losses to peak month transmission loss."]
[null,null,"(d) Source: Form 1, Page 401b, Col (d)."]
[" "]
[null,null,null,null,null,null,null,null,null,null,null,null,null,null,null,null,{"$f":"A1","v":"DUKE ENERGY KENTUCKY, INC."},null,null,null,null,null,null,null,null,null,null,null,{"$f":"I1","v":"Work Paper FR-16(7)(v) "}]
[null,null,null,null,null,null,null,null,null,null,null,null,null,null,null,null,{"$f":"coss_type","v":"ELECTRIC COST OF SERVICE STUDY "},null,null,null,null,null,null,null,null,null,null,null,{"$f":"I2","v":"Witness Responsible:"}]
[null,null,null,null,null,null,null,null,null,null,null,null,null,null,null,null,{"$f":"case_name","v":"CASE NO: 2019-00271"},null,null,null,null,null,null,null,null,null,null,null,{"$f":"I3","v":"James E. Ziolkowski"}]
[null,null,null,null,null,null,null,null,null,null,null,null,null,null,null,null,{"$f":"alloc_factors","v":"ALLOCATION FACTORS FOR COST OF SERVICE STUDY"},null,null,null,null,null,null,null,null,null,null,null,"Page 34"]
[null,null,null,null,null,null,null,null,null,null,null,null,null,null,null,null,{"$f":"A5","v":"TWELVE MONTHS ENDING DECEMBER 31, 2018"}]
[]
[null,null,null,null,null,null,null,null,null,null,null,null,null,null,null,null,"DEVELOPMENT OF TRANSMISSION MONTHLY LOSS RATIOS",null,null,null,null,null,null,null,null,null,null,null,null,null," "]
[null,null,null,null,null,null,null,null,null,null,null,null,null,null,null,null,null,null,null,null,null,null,null,null,null,null,null,null,null,null," "]
[null,null,null,null,null,null,null,null,null,null,null,null,null,null,null,null,null,null,null,null,null,null,null,null,null,null,null,null,"TOTAL",null,"TRANS."]
[null,null,null,null,null,null,null,null,null,null,null,null,null,null,null,null,null,null,null,null,null,null,null,null,null,null,"TRANS.",null,"AVAIL. KW",null,"MONTHLY"]
[null,null,null,null,null,null,null,null,null,null,null,null,null,null,null,null,null,null,null,null,"SYSTEM",null,null,null,null,null,"PORTION",null,"FOR FIRM",null,"LOSSES &"]
[null,null,null,null,null,null,null,null,null,null,null,null,null,null,null,null,"LINE",null,null,null,"PEAK",null,"KW SQUARED",null,"TRANS.",null,"CO. USE",null,"DELIVERY",null,"CO. USE"]
[null,null,null,null,null,null,null,null,null,null,null,null,null,null,null,null,"NO.",null,"MONTH",null,"KW",null,"RATIO(a)",null,"LOSSES(b)",null,"KW(c)",null,"(1)-(3)-(4)",null,"(1) / (5)"]
[null,null,null,null,null,null,null,null,null,null,null,null,null,null,null,null,1,null,null,null,"(1)",null,"(2)",null,"(3)",null,"(4)",null,"(5)",null,"(6)"]
[null,null,null,null,null,null,null,null,null,null,null,null,null,null,null,null,{"$f":"Q57+1","v":2}]
[null,null,null,null,null,null,null,null,null,null,null,null,null,null,null,null,3,null,{"$f":"C16","v":"Jan 2016"},null,{"$f":"E16","v":768000},null,{"$f":"ROUND(U59^2/MAX($U$59:$U$70)^2,9)","v":0.87933556099999999},null,{"$f":"ROUND(($Y$78*W59)+$Y$79,0)","v":4918},null,{"$f":"BQ192","v":3},null,{"$f":"U59-Y59-AA59","v":763079},null,{"$f":"ROUND(U59/AC59,9)","v":1.0064488739999999}]
[null,null,null,null,null,null,null,null,null,null,null,null,null,null,null,null,4,null,"Feb",null,634000,null,0.59925368400000001,null,3739,null,12,null,630249,null,1.0059516159999999]
[null,null,null,null,null,null,null,null,null,null,null,null,null,null,null,null,5,null,"Mar",null,632000,null,0.59547886699999997,null,3723,null,3,null,628274,null,1.0059305329999999]
[null,null,null,null,null,null,null,null,null,null,null,null,null,null,null,null,6,null,"Apr",null,612000,null,0.55838666800000003,null,3567,null,4,null,608429,null,1.0058692140000001]
[null,null,null,null,null,null,null,null,null,null,null,null,null,null,null,null,7,null,"May",null,734000,null,0.80320113999999998,null,4597,null,3,null,729400,null,1.0063065529999999]
[null,null,null,null,null,null,null,null,null,null,null,null,null,null,null,null,8,null,"Jun",null,819000,null,1,null,5426,null,18,null,813556,null,1.0066916109999999]
[null,null,null,null,null,null,null,null,null,null,null,null,null,null,null,null,9,null,"Jul",null,808000,null,0.97331836500000002,null,5314,null,8,null,802678,null,1.0066303050000001]
[null,null,null,null,null,null,null,null,null,null,null,null,null,null,null,null,10,null,"Aug",null,787000,null,0.92338254600000003,null,5103,null,7,null,781890,null,1.006535446]
[null,null,null,null,null,null,null,null,null,null,null,null,null,null,null,null,11,null,"Sep",null,799000,null,0.95175628899999998,null,5223,null,81,null,793696,null,1.006682659]
[null,null,null,null,null,null,null,null,null,null,null,null,null,null,null,null,12,null,"Oct",null,758000,null,0.85658528099999998,null,4822,null,-64,null,753242,null,1.006316695]
[null,null,null,null,null,null,null,null,null,null,null,null,null,null,null,null,13,null,"Nov",null,632000,null,0.59547886699999997,null,3723,null,6,null,628271,null,1.0059353369999999]
[null,null,null,null,null,null,null,null,null,null,null,null,null,null,null,null,14,null,"Dec",null,630000,null,0.59171597600000003,null,3707,null,6,null,626287,null,1.0059285920000001]
[null,null,null,null,null,null,null,null,null,null,null,null,null,null,null,null,15,null,null,null,{"$f":"SUM(U59:U70)","v":8613000},null,null,null,{"$f":"SUM(Y59:Y70)","v":53862},null,{"$f":"SUM(AA59:AA70)","v":87},null,{"$f":"SUM(AC59:AC70)","v":8559051}]
[null,null,null,null,null,null,null,null,null,null,null,null,null,null,null,null,16]
[null,null,null,null,null,null,null,null,null,null,null,null,null,null,null,null,17]
[null,null,null,null,null,null,null,null,null,null,null,null,null,null,null,null,18,null,"Peak Month:",null,{"$f":"E30","v":"Jun"}]
[null,null,null,null,null,null,null,null,null,null,null,null,null,null,null,null,19,null,{"$f":"C31","v":"Jul"},null,{"$f":"E31","v":819000}]
[null,null,null,null,null,null,null,null,null,null,null,null,null,null,null,null,20]
[null,null,null,null,null,null,null,null,null,null,null,null,null,null,null,null,21,null,null,null,null,null,null,null,"Updated 7/11/19"]
[null,null,null,null,null,null,null,null,null,null,null,null,null,null,null,null,22,null,"   Transmission \"Variable\" Losses:",null,null,null,null,null,4210,null,"(d)"]
[null,null,null,null,null,null,null,null,null,null,null,null,null,null,null,null,23,null,"   Transmission \"Fixed\" Losses:",null,null,null,null,null,1216,null,"(d)"]
[null,null,null,null,null,null,null,null,null,null,null,null,null,null,null,null,24,null,"      Total",null,null,null,null,null,{"$f":"SUM(Y78:Y79)","v":5426}]
[]
[]
[]
[]
[null,null,null,null,null,null,null,null,null,null,null,null,null,null,null,null,null,null,"(a) The square of the current month Kw divided by"]
[null,null,null,null,null,null,null,null,null,null,null,null,null,null,null,null,null,null,"      the square of the peak month Kw."]
[null,null,null,null,null,null,null,null,null,null,null,null,null,null,null,null,null,null,"(b) Losses computed by applying ratios of demands squared (Col 2)"]
[null,null,null,null,null,null,null,null,null,null,null,null,null,null,null,null,null,null,"      times the \"variable\" losses and adding the \"fixed\" losses."]
[null,null,null,null,null,null,null,null,null,null,null,null,null,null,null,null,null,null,"(c) Source: WPFR-16(7)(v) Page 37"]
[null,null,null,null,null,null,null,null,null,null,null,null,null,null,null,null,null,null,"(d) Source: Transmission Planning"]
[null,null,null,null,null,null,null,null,null,null,null,null,null,null,null,null," "]
[null,null,null,null,null,null,null,null,null,null,null,null,null,null,null,null,null,null,null,null,null,null,null,null,null,null,null,null,null,null,null,null,{"$f":"A1","v":"DUKE ENERGY KENTUCKY, INC."},null,null,null,null,{"$f":"I1","v":"Work Paper FR-16(7)(v) "}]
[null,null,null,null,null,null,null,null,null,null,null,null,null,null,null,null,null,null,null,null,null,null,null,null,null,null,null,null,null,null,null,null,{"$f":"coss_type","v":"ELECTRIC COST OF SERVICE STUDY "},null,null,null,null,{"$f":"I2","v":"Witness Responsible:"}]
[null,null,null,null,null,null,null,null,null,null,null,null,null,null,null,null,null,null,null,null,null,null,null,null,null,null,null,null,null,null,null,null,{"$f":"case_name","v":"CASE NO: 2019-00271"},null,null,null,null,{"$f":"I3","v":"James E. Ziolkowski"}]
[null,null,null,null,null,null,null,null,null,null,null,null,null,null,null,null,null,null,null,null,null,null,null,null,null,null,null,null,null,null,null,null,{"$f":"alloc_factors","v":"ALLOCATION FACTORS FOR COST OF SERVICE STUDY"},null,null,null,null,"Page 35"]
[null,null,null,null,null,null,null,null,null,null,null,null,null,null,null,null,null,null,null,null,null,null,null,null,null,null,null,null,null,null,null,null,{"$f":"A5","v":"TWELVE MONTHS ENDING DECEMBER 31, 2018"}]
[null,null,null,null,null,null,null,null,null,null,null,null,null,null,null,null,null,null,null,null,null,null,null,null,null,null,null,null,null,null,null,null,null,null,null,null,""]
[null,null,null,null,null,null,null,null,null,null,null,null,null,null,null,null,null,null,null,null,null,null,null,null,null,null,null,null,null,null,null,null,"DEVELOPMENT OF FACTORS FOR KW DEMAND LOSSES & COMPANY USE",null,null,null,null," "]
[null,null,null,null,null,null,null,null,null,null,null,null,null,null,null,null,null,null,null,null,null,null,null,null,null,null,null,null,null,null,null,null,null,null,null,null,null," "]
[null,null,null,null,null,null,null,null,null,null,null,null,null,null,null,null,null,null,null,null,null,null,null,null,null,null,null,null,null,null,null,null,"LINE"]
[null,null,null,null,null,null,null,null,null,null,null,null,null,null,null,null,null,null,null,null,null,null,null,null,null,null,null,null,null,null,null,null,"NO.",null,"DESCRIPTION",null,"SOURCE",null,"KW"]
[null,null,null,null,null,null,null,null,null,null,null,null,null,null,null,null,null,null,null,null,null,null,null,null,null,null,null,null,null,null,null,null,1,null,"Total Maximum System Demand",null,"WPFR-16(7)(v), Page 33",null,{"$f":"LARGE(E16:E27,1)","v":819000}]
[null,null,null,null,null,null,null,null,null,null,null,null,null,null,null,null,null,null,null,null,null,null,null,null,null,null,null,null,null,null,null,null,{"$f":"1+AG102","v":2},null,"Less:  "]
[null,null,null,null,null,null,null,null,null,null,null,null,null,null,null," ",null,null,null,null,null,null,null,null,null,null,null,null,null,null,null,null,3,null,"     Coincident KW Demand (at delivery) for Transmission (Excluding RTP)",null,"WPFR-16(7)(v), Page 22",null,{"$f":"'WP FR-16(7)(v) TT - KW'!H25","v":25844}]
[null,null,null,null,null,null,null,null,null,null,null,null,null,null,null,null,null,null,null,null,null,null,null,null,null,null,null,null,null,null,null,null,4,null,"     Coincident KW Demand (at delivery) for Transmission RTP",null,"WPFR-16(7)(v), Page 23",null,{"$f":"'WP FR-16(7)(v) TT - KW'!H64","v":1971}]
[null,null,null,null,null,null,null,null,null,null,null,null,null,null,null,null,null,null,null,null,null,null,null,null,null,null,null,null,null,null,null,null,5,null,"      Transmission Demand Losses",null,"Transmission Planning",null,5426,"updated 7/8/19"]
[null,null,null,null,null,null,null,null,null,null,null,null,null,null,null,null,null,null,null,null,null,null,null,null,null,null,null,null,null,null,null,null,6,null,"      Distribution Demand Losses",null,{"$f":"AK106","v":"Transmission Planning"},null,27580,"updated 7/8/19"]
[null,null,null,null,null,null,null,null,null,null,null,null,null,null,null,null,null,null,null,null,null,null,null,null,null,null,null,null,null,null,null,null,7,null,"      Company Use Kw Demand at System Peak",null,"WPFR-16(7)(v), Page 37",null,{"$f":"VLOOKUP($E$30,'WP FR-16(7)(v) LossRatios'!BE192:BS203,11,FALSE)","v":311}]
[null,null,null,null,null,null,null,null,null,null,null,null,null,null,null," ",null,null,null,null,null,null,null,null,null,null,null,null,null,null,null,null,8,null,"       Interdepartmental KW Demand at System Peak",null,"WPFR-16(7)(v), Page 36",null,{"$f":"VLOOKUP($E$30,'WP FR-16(7)(v) LossRatios'!AQ157:BA168,11,FALSE)","v":186}]
[null,null,null,null,null,null,null,null,null,null,null,null,null,null,null,null,null,null,null,null,null,null,null,null,null,null,null,null,null,null,null,null,9,null,"   Total Distribution KW Demand",null,null,null,{"$f":"AM102-SUM(AM104:AM109)","v":757682}]
[null,null,null,null,null,null,null,null,null,null,null,null,null,null,null,null,null,null,null,null,null,null,null,null,null,null,null,null,null,null,null,null,10]
[null,null,null,null,null,null,null,null,null,null,null,null,null,null,null,null,null,null,null,null,null,null,null,null,null,null,null,null,null,null,null,null,{"$f":"1+AG111","v":11}]
[null,null,null,null,null,null,null,null,null,null,null,null,null,null,null,null,null,null,null,null,null,null,null,null,null,null,null,null,null,null,null,null,12]
[null,null,null,null,null,null,null,null,null,null,null,null,null,null,null,null,null,null,null,null,null,null,null,null,null,null,null,null,null,null,null,null,13,null,"Transmission Demand Losses",null,"Line 5",null,{"$f":"AM106","v":5426}]
[null,null,null,null,null,null,null,null,null,null,null,null,null,null,null,null,null,null,null,null,null,null,null,null,null,null,null,null,null,null,null,null,14,null,"Transmission Losses  - PJM",null,"Line 1 x0%",null,0]
[null,null,null,null,null,null,null,null,null,null,null,null,null,null,null,null,null,null,null,null,null,null,null,null,null,null,null,null,null,null,null,null,15,null,"Transmission Allocated Company Use",null,"WPFR-16(7)(v), Page 37",null,{"$f":"VLOOKUP($E$30,$BE$192:$BS$203,13,FALSE)","v":18}]
[null,null,null,null,null,null,null,null,null,null,null,null,null,null,null,null,null,null,null,null,null,null,null,null,null,null,null,null,null,null,null,null,16,null,"   Total Transmission Losses & Company Use",null,null,null,{"$f":"SUM(AM114:AM116)","v":5444}]
[null,null,null,null,null,null,null,null,null,null,null,null,null,null,null,null,null,null,null,null,null,null,null,null,null,null,null,null,null,null,null,null,17]
[null,null,null,null,null,null,null,null,null,null,null,null,null,null,null,null,null,null,null,null,null,null,null,null,null,null,null,null,null,null,null,null,18,null,"Load on Transmission after Losses and Company Use",null,"Line 1 - Line 16",null,{"$f":"AM102-AM117","v":813556}]
[null,null,null,null,null,null,null,null,null,null,null,null,null,null,null,null,null,null,null,null,null,null,null,null,null,null,null,null,null,null,null,null,19]
[null,null,null,null,null,null,null,null,null,null,null,null,null,null,null,null,null,null,null,null,null,null,null,null,null,null,null,null,null,null,null,null,20,null,"Transmission Loss Factor (TLF) ",null,"Line 16 / Line 18",null,{"$f":"ROUND(AM117/AM119,9)","v":6.6916110000000001E-3}]
[null,null,null,null,null,null,null,null,null,null,null,null,null,null,null,null,null,null,null,null,null,null,null,null,null,null,null,null,null,null,null,null,21]
[null,null,null,null,null,null,null,null,null,null,null,null,null,null,null,null,null,null,null,null,null,null,null,null,null,null,null,null,null,null,null,null,22,null,"Load on Transmission",null,"Line 20",null,{"$f":"AM119","v":813556}]
[null,null,null,null,null,null,null,null,null,null,null,null,null,null,null,null,null,null,null,null,null,null,null,null,null,null,null,null,null,null,null,null,23]
[null,null,null,null,null,null,null,null,null,null,null,null,null,null,null,null,null,null,null,null,null,null,null,null,null,null,null,null,null,null,null,null,24,null,"Transmission Demand",null,"Line 3 + Line 4",null,{"$f":"AM104+AM105","v":27815}]
[null,null,null,null,null,null,null,null,null,null,null,null,null,null,null,null,null,null,null,null,null,null,null,null,null,null,null,null,null,null,null,null,25,null,"Interdepartmental KW Demand at System Peak",null,"Line 8 ",null,{"$f":"AM109","v":186}]
[null,null,null,null,null,null,null,null,null,null,null,null,null,null,null,null,null,null,null,null,null,null,null,null,null,null,null,null,null,null,null,null,26,null,"   Transmission and Interdepartmental Demand",null,null,null,{"$f":"SUM(AM125:AM126)","v":28001}]
[null,null,null,null,null,null,null,null,null,null,null,null,null,null,null,null,null,null,null,null,null,null,null,null,null,null,null,null,null,null,null,null,27]
[null,null,null,null,null,null,null,null,null,null,null,null,null,null,null,null,null,null,null,null,null,null,null,null,null,null,null,null,null,null,null,null,28,null,"Distribution Demand Losses",null,"Line 6",null,{"$f":"AM107","v":27580}]
[null,null,null,null,null,null,null,null,null,null,null,null,null,null,null,null,null,null,null,null,null,null,null,null,null,null,null,null,null,null,null,null,29,null,"Distribution Allocated Company Use",null,"WPFR-16(7)(v), Page 37",null,{"$f":"VLOOKUP($E$30,'WP FR-16(7)(v) LossRatios'!$BE$192:$BS$203,15,FALSE)","v":293}]
[null,null,null,null,null,null,null,null,null,null,null,null,null,null,null,null,null,null,null,null,null,null,null,null,null,null,null,null,null,null,null,null,30,null,"   Total Distribution Losses & Company Use",null,null,null,{"$f":"SUM(AM129:AM130)","v":27873}]
[null,null,null,null,null,null,null,null,null,null,null,null,null,null,null,null,null,null,null,null,null,null,null,null,null,null,null,null,null,null,null,null,31]
[null,null,null,null,null,null,null,null,null,null,null,null,null,null,null,null,null,null,null,null,null,null,null,null,null,null,null,null,null,null,null,null,32,null,"Load on Distribution",null,"Line 22 - L26 - L30",null,{"$f":"AM123-AM127-AM131","v":757682}]
[null,null,null,null,null,null,null,null,null,null,null,null,null,null,null,null,null,null,null,null,null,null,null,null,null,null,null,null,null,null,null,null,33]
[null,null,null,null,null,null,null,null,null,null,null,null,null,null,null,null,null,null,null,null,null,null,null,null,null,null,null,null,null,null,null,null,34,null,"Distribution Loss Factor (DLF)",null,"Line 30 / Line 32",null,{"$f":"AM131/AM133","v":3.6787200962936958E-2}]
[null,null,null,null,null,null,null,null,null,null,null,null,null,null,null,null,null,null,null,null,null,null,null,null,null,null,null,null,null,null,null,null,35]
[null,null,null,null,null,null,null,null,null,null,null,null,null,null,null,null,null,null,null,null,null,null,null,null,null,null,null,null,null,null,null,null,36]
[null,null,null,null,null,null,null,null,null,null,null,null,null,null,null,null,null,null,null,null,null,null,null,null,null,null,null,null,null,null,null,null,37,null,"Total  Loss Factor",null,"(TLF + (TLF * DLF) + DLF)",null,{"$f":"ROUND(AM121+(AM121*AM135)+AM135,10)","v":4.3724977599999999E-2}]
[]
[null,null,null,null,null,null,null,null,null,null,null,null,null,null,null,null,null,null,null,null,null,null,null,null,null,null,null,null,null,null,null,null,null,null,null,null,null,null,null,null,{"$f":"A1","v":"DUKE ENERGY KENTUCKY, INC."},null,null,null,null,null,null,null,null,null,null,null,{"$f":"I1","v":"Work Paper FR-16(7)(v) "}]
[null,null,null,null,null,null,null,null,null,null,null,null,null,null,null,null,null,null,null,null,null,null,null,null,null,null,null,null,null,null,null,null,null,null,null,null,null,null,null,null,{"$f":"coss_type","v":"ELECTRIC COST OF SERVICE STUDY "},null,null,null,null,null,null,null,null,null,null,null,{"$f":"I2","v":"Witness Responsible:"}]
[null,null,null,null,null,null,null,null,null,null,null,null,null,null,null,null,null,null,null,null,null,null,null,null,null,null,null,null,null,null,null,null,null,null,null,null,null,null,null,null,{"$f":"case_name","v":"CASE NO: 2019-00271"},null,null,null,null,null,null,null,null,null,null,null,{"$f":"I3","v":"James E. Ziolkowski"}]
[null,null,null,null,null,null,null,null,null,null,null,null,null,null,null,null,null,null,null,null,null,null,null,null,null,null,null,null,null,null,null,null,null,null,null,null,null,null,null,null,{"$f":"alloc_factors","v":"ALLOCATION FACTORS FOR COST OF SERVICE STUDY"},null,null,null,null,null,null,null,null,null,null,null,"Page 36"]
[null,null,null,null,null,null,null,null,null,null,null,null,null,null,null,null,null,null,null,null,null,null,null,null,null,null,null,null,null,null,null,null,null,null,null,null,null,null,null,null,{"$f":"A5","v":"TWELVE MONTHS ENDING DECEMBER 31, 2018"}]
[]
[null,null,null,null,null,null,null,null,null,null,null,null,null,null,null,null,null,null,null,null,null,null,null,null,null,null,null,null,null,null,null,null,null,null,null,null,null,null,null,null,"ESTIMATED MONTHLY COINCIDENT KW FOR INTERDEPARTMENTAL SALES",null,null,null,null,null,null,null,null,null,null,null,null,null," "]
[]
[null,null,null,null,null,null,null,null,null,null,null,null,null,null,null,null,null,null,null,null,null,null,null,null,null,null,null,null,null,null,null,null,null,null,null,null,null,null,null,null,null,null,null,null,null,null,null,null,null,null,"COINCIDENT PEAK DEMAND"]
[null,null,null,null,null,null,null,null,null,null,null,null,null,null,null,null,null,null,null,null,null,null,null,null,null,null,null,null,null,null,null,null,null,null,null,null,null,null,null,null,null,null,null,null,null,null,null,null,null,null,"COIN",null,"CP",null," "]
[null,null,null,null,null,null,null,null,null,null,null,null,null,null,null,null,null,null,null,null,null,null,null,null,null,null,null,null,null,null,null,null,null,null,null,null,null,null,null,null,null,null,null,null,null,null,null,null,null,null," PEAK",null,"KW DMD."]
[null,null,null,null,null,null,null,null,null,null,null,null,null,null,null,null,null,null,null,null,null,null,null,null,null,null,null,null,null,null,null,null,null,null,null,null,null,null,null,null,null,null,null,null,null,null,"INTERDEPT.",null,"AVERAGE",null,"LOAD",null,"AT"]
[null,null,null,null,null,null,null,null,null,null,null,null,null,null,null,null,null,null,null,null,null,null,null,null,null,null,null,null,null,null,null,null,null,null,null,null,null,null,null,null,null,null,null,null,null,null,"TOTAL",null,"HRLY KW",null,"FACTOR",null,"DELIVERY"]
[null,null,null,null,null,null,null,null,null,null,null,null,null,null,null,null,null,null,null,null,null,null,null,null,null,null,null,null,null,null,null,null,null,null,null,null,null,null,null,null,"LINE",null,null,null,"HOURS",null,"KWH(a)",null," (1) / (2)",null," (b)",null," (3) / (4)"]
[null,null,null,null,null,null,null,null,null,null,null,null,null,null,null,null,null,null,null,null,null,null,null,null,null,null,null,null,null,null,null,null,null,null,null,null,null,null,null,null,"NO.",null,"MONTH",null,"(1)",null,"(2)",null,"(3)",null,"(4)",null,"  (5)"]
[null,null,null,null,null,null,null,null,null,null,null,null,null,null,null,null,null,null,null,null,null,null,null,null,null,null,null,null,null,null,null,null,null,null,null,null,null,null,null,null,null,null,null,null," ",null,null,null,null,null," ",null," "]
[null,null,null,null,null,null,null,null,null,null,null,null,null,null,null,null,null,null,null,null,null,null,null,null,null,null,null,null,null,null,null,null,null,null,null,null,null,null,null,null,null,null,null,null,null,null,null,null,null,null," "]
[null,null,null,null,null,null,null,null,null,null,null,null,null,null,null,null,null,null,null,null,null,null,null,null,null,null,null,null,null,null,null,null,null,null,null,null,null,null,null,null,1,null,{"$f":"C16","v":"Jan 2016"},null,{"$f":"'WP FR-16(7)(v) RS - KW'!C20","v":744},null,{"$f":"'WP FR-16(7)(v) KWH'!B$22","v":60315},null,{"$f":"IF(OR(AU157=0,AU157=\"\"),\"\",ROUND(AU157/AS157,0))","v":81},null,{"$f":"'WP FR-16(7)(v) DS Sec - KW'!G58","v":0.77765870936000003},null,{"$f":"IF(OR(AW157=0,AW157=\"\"),\"\",ROUND(AW157/AY157,0))","v":104}]
[null,null,null,null,null,null,null,null,null,null,null,null,null,null,null,null,null,null,null,null,null,null,null,null,null,null,null,null,null,null,null,null,null,null,null,null,null,null,null,null,{"$f":"1+AO157","v":2},null,"Feb",null,{"$f":"24*28","v":672},null,{"$f":"'WP FR-16(7)(v) KWH'!C$22","v":84723},null,126,null,{"$f":"'WP FR-16(7)(v) DS Sec - KW'!G59","v":0.79085856854000003},null,159]
[null,null,null,null,null,null,null,null,null,null,null,null,null,null,null,null,null,null,null,null,null,null,null,null,null,null,null,null,null,null,null,null,null,null,null,null,null,null,null,null,3,null,"Mar",null,{"$f":"'WP FR-16(7)(v) RS - KW'!C22","v":744},null,{"$f":"'WP FR-16(7)(v) KWH'!D$22","v":70924},null,95,null,{"$f":"'WP FR-16(7)(v) DS Sec - KW'!G60","v":0.86688695483999989},null,110]
[null,null,null,null,null,null,null,null,null,null,null,null,null,null,null,null,null,null,null,null,null,null,null,null,null,null,null,null,null,null,null,null,null,null,null,null,null,null,null,null,4,null,"Apr",null,{"$f":"'WP FR-16(7)(v) RS - KW'!C23","v":720},null,{"$f":"'WP FR-16(7)(v) KWH'!E$22","v":47062},null,65,null,{"$f":"'WP FR-16(7)(v) DS Sec - KW'!G61","v":0.71997148407},null,90]
[null,null,null,null,null,null,null,null,null,null,null,null,null,null,null,null,null,null,null,null,null,null,null,null,null,null,null,null,null,null,null,null,null,null,null,null,null,null,null,null,5,null,"May",null,{"$f":"'WP FR-16(7)(v) RS - KW'!C24","v":744},null,{"$f":"'WP FR-16(7)(v) KWH'!F$22","v":38868},null,52,null,{"$f":"'WP FR-16(7)(v) DS Sec - KW'!G62","v":0.69356867433999991},null,75]
[null,null,null,null,null,null,null,null,null,null,null,null,null,null,null,null,null,null,null,null,null,null,null,null,null,null,null,null,null,null,null,null,null,null,null,null,null,null,null,null,6,null,"Jun",null,{"$f":"'WP FR-16(7)(v) RS - KW'!C25","v":720},null,{"$f":"'WP FR-16(7)(v) KWH'!G$22","v":91941},null,128,null,{"$f":"'WP FR-16(7)(v) DS Sec - KW'!G63","v":0.68715415871000007},null,186]
[null,null,null,null,null,null,null,null,null,null,null,null,null,null,null,null,null,null,null,null,null,null,null,null,null,null,null,null,null,null,null,null,null,null,null,null,null,null,null,null,7,null,"Jul",null,{"$f":"'WP FR-16(7)(v) RS - KW'!C26","v":744},null,{"$f":"'WP FR-16(7)(v) KWH'!H$22","v":45341},null,61,null,{"$f":"'WP FR-16(7)(v) DS Sec - KW'!G64","v":0.70634182654},null,86]
[null,null,null,null,null,null,null,null,null,null,null,null,null,null,null,null,null,null,null,null,null,null,null,null,null,null,null,null,null,null,null,null,null,null,null,null,null,null,null,null,8,null,"Aug",null,{"$f":"'WP FR-16(7)(v) RS - KW'!C27","v":744},null,{"$f":"'WP FR-16(7)(v) KWH'!I$22","v":46356},null,62,null,{"$f":"'WP FR-16(7)(v) DS Sec - KW'!G65","v":0.74450926513000004},null,83]
[null,null,null,null,null,null,null,null,null,null,null,null,null,null,null,null,null,null,null,null,null,null,null,null,null,null,null,null,null,null,null,null,null,null,null,null,null,null,null,null,9,null,"Sep",null,{"$f":"'WP FR-16(7)(v) RS - KW'!C28","v":720},null,{"$f":"'WP FR-16(7)(v) KWH'!J$22","v":67817},null,94,null,{"$f":"'WP FR-16(7)(v) DS Sec - KW'!G66","v":0.59079947379999997},null,159]
[null,null,null,null,null,null,null,null,null,null,null,null,null,null,null,null,null,null,null,null,null,null,null,null,null,null,null,null,null,null,null,null,null,null,null,null,null,null,null,null,10,null,"Oct",null,{"$f":"'WP FR-16(7)(v) RS - KW'!C29","v":744},null,{"$f":"'WP FR-16(7)(v) KWH'!K$22","v":45888},null,62,null,{"$f":"'WP FR-16(7)(v) DS Sec - KW'!G67","v":0.56995259941999998},null,109]
[null,null,null,null,null,null,null,null,null,null,null,null,null,null,null,null,null,null,null,null,null,null,null,null,null,null,null,null,null,null,null,null,null,null,null,null,null,null,null,null,11,null,"Nov",null,{"$f":"'WP FR-16(7)(v) RS - KW'!C30","v":720},null,{"$f":"'WP FR-16(7)(v) KWH'!L$22","v":50311},null,70,null,{"$f":"'WP FR-16(7)(v) DS Sec - KW'!G68","v":0.80809709695999998},null,87]
[null,null,null,null,null,null,null,null,null,null,null,null,null,null,null,null,null,null,null,null,null,null,null,null,null,null,null,null,null,null,null,null,null,null,null,null,null,null,null,null,12,null,"Dec",null,{"$f":"'WP FR-16(7)(v) RS - KW'!C31","v":744},null,{"$f":"'WP FR-16(7)(v) KWH'!M$22","v":39736},null,53,null,{"$f":"'WP FR-16(7)(v) DS Sec - KW'!G69","v":0.77429897424000005},null,68]
[null,null,null,null,null,null,null,null,null,null,null,null,null,null,null,null,null,null,null,null,null,null,null,null,null,null,null,null,null,null,null,null,null,null,null,null,null,null,null,null,13,null,null,null,null,null,{"$f":"SUM(AU157:AU168)","v":689282},null,{"$f":"SUM(AW157:AW168)","v":949},null,null,null,{"$f":"SUM(BA157:BA168)","v":1316}]
[]
[null,null,null,null,null,null,null,null,null,null,null,null,null,null,null,null,null,null,null,null,null,null,null,null,null,null,null,null,null,null,null,null,null,null,null,null,null,null,null,null,null,null,"(a) WPFR-16(7)(v) Page 51"]
[null,null,null,null,null,null,null,null,null,null,null,null,null,null,null,null,null,null,null,null,null,null,null,null,null,null,null,null,null,null,null,null,null,null,null,null,null,null,null,null,null,null,"(b) WPFR-16(7)(v) Page 41",null,null,null,"Uses DS- Large Load Factors"]
[]
[]
[null,null,null,null,null,null,null,null,null,null,null,null,null,null,null,null,null,null,null,null,null,null,null,null,null,null,null,null,null,null,null,null,null,null,null,null,null,null,null,null,null,null,null,null,null,null,null,null,null,null,null,null,null,null,{"$f":"A1","v":"DUKE ENERGY KENTUCKY, INC."},null,null,null,null,null,null,null,null,null,null,null,null,null,{"$f":"I1","v":"Work Paper FR-16(7)(v) "}]
[null,null,null,null,null,null,null,null,null,null,null,null,null,null,null,null,null,null,null,null,null,null,null,null,null,null,null,null,null,null,null,null,null,null,null,null,null,null,null,null,null,null,null,null,null,null,null,null,null,null,null,null,null,null,{"$f":"coss_type","v":"ELECTRIC COST OF SERVICE STUDY "},null,null,null,null,null,null,null,null,null,null,null,null,null,{"$f":"I2","v":"Witness Responsible:"}]
[null,null,null,null,null,null,null,null,null,null,null,null,null,null,null,null,null,null,null,null,null,null,null,null,null,null,null,null,null,null,null,null,null,null,null,null,null,null,null,null,null,null,null,null,null,null,null,null,null,null,null,null,null,null,{"$f":"case_name","v":"CASE NO: 2019-00271"},null,null,null,null,null,null,null,null,null,null,null,null,null,{"$f":"I3","v":"James E. Ziolkowski"}]
[null,null,null,null,null,null,null,null,null,null,null,null,null,null,null,null,null,null,null,null,null,null,null,null,null,null,null,null,null,null,null,null,null,null,null,null,null,null,null,null,null,null,null,null,null,null,null,null,null,null,null,null,null,null,{"$f":"alloc_factors","v":"ALLOCATION FACTORS FOR COST OF SERVICE STUDY"},null,null,null,null,null,null,null,null,null,null,null,null,null,"Page 37"]
[null,null,null,null,null,null,null,null,null,null,null,null,null,null,null,null,null,null,null,null,null,null,null,null,null,null,null,null,null,null,null,null,null,null,null,null,null,null,null,null,null,null,null,null,null,null,null,null,null,null,null,null,null,null,{"$f":"A5","v":"TWELVE MONTHS ENDING DECEMBER 31, 2018"}]
[]
[null,null,null,null,null,null,null,null,null,null,null,null,null,null,null,null,null,null,null,null,null,null,null,null,null,null,null,null,null,null,null,null,null,null,null,null,null,null,null,null,null,null,null,null,null,null,null,null,null,null,null,null,null,null,"ESTIMATED MONTHLY COINCIDENT KW FOR COMPANY USE",null,null,null,null,null,null,null,null,null,null,null,null,null," "]
[]
[null,null,null,null,null,null,null,null,null,null,null,null,null,null,null,null,null,null,null,null,null,null,null,null,null,null,null,null,null,null,null,null,null,null,null,null,null,null,null,null,null,null,null,null,null,null,null,null,null,null,null,null,null,null,null,null,null,null,null,null,null,null,null,null,"COINCIDENT PEAK DEMAND"]
[null,null,null,null,null,null,null,null,null,null,null,null,null,null,null,null,null,null,null,null,null,null,null,null,null,null,null,null,null,null,null,null,null,null,null,null,null,null,null,null,null,null,null,null,null,null,null,null,null,null,null,null,null,null,null,null,null,null,null,null,null,null,null,null,"COIN",null,"CP",null," "]
[null,null,null,null,null,null,null,null,null,null,null,null,null,null,null,null,null,null,null,null,null,null,null,null,null,null,null,null,null,null,null,null,null,null,null,null,null,null,null,null,null,null,null,null,null,null,null,null,null,null,null,null,null,null,null,null,null,null,null,null,null,null,null,null," PEAK",null,"KW DMD."]
[null,null,null,null,null,null,null,null,null,null,null,null,null,null,null,null,null,null,null,null,null,null,null,null,null,null,null,null,null,null,null,null,null,null,null,null,null,null,null,null,null,null,null,null,null,null,null,null,null,null,null,null,null,null,null,null,null,null,null,null,"CO. USE",null,"AVERAGE",null,"LOAD",null,"AT",null,"    ALLOC ON FIRM SALES (c)"]
[null,null,null,null,null,null,null,null,null,null,null,null,null,null,null,null,null,null,null,null,null,null,null,null,null,null,null,null,null,null,null,null,null,null,null,null,null,null,null,null,null,null,null,null,null,null,null,null,null,null,null,null,null,null,null,null,null,null,null,null,"TOTAL",null,"HRLY KW",null,"FACTOR",null,"DELIVERY"]
[null,null,null,null,null,null,null,null,null,null,null,null,null,null,null,null,null,null,null,null,null,null,null,null,null,null,null,null,null,null,null,null,null,null,null,null,null,null,null,null,null,null,null,null,null,null,null,null,null,null,null,null,null,null,"LINE",null,null,null,"HOURS",null,"KWH(a)",null," (1) / (2)",null," (b)",null," (3) / (4)",null,"TRANS.  @",null,"DIST.  @"]
[null,null,null,null,null,null,null,null,null,null,null,null,null,null,null,null,null,null,null,null,null,null,null,null,null,null,null,null,null,null,null,null,null,null,null,null,null,null,null,null,null,null,null,null,null,null,null,null,null,null,null,null,null,null,"NO.",null,"MONTH",null,"(1)",null,"(2)",null,"(3)",null,"(4)",null,"  (5)",null,{"$f":"BZ260","v":5.7804217776932898E-2},null,{"$f":"BZ261","v":0.9421957822230671}]
[null,null,null,null,null,null,null,null,null,null,null,null,null,null,null,null,null,null,null,null,null,null,null,null,null,null,null,null,null,null,null,null,null,null,null,null,null,null,null,null,null,null,null,null,null,null,null,null,null,null,null,null,null,null,null,null,null,null," ",null," ",null," ",null," ",null," ",null,"    (6)",null,"    (7)"]
[]
[null,null,null,null,null,null,null,null,null,null,null,null,null,null,null,null,null,null,null,null,null,null,null,null,null,null,null,null,null,null,null,null,null,null,null,null,null,null,null,null,null,null,null,null,null,null,null,null,null,null,null,null,null,null,1,null,{"$f":"AQ157","v":"Jan 2016"},null,{"$f":"AS157","v":744},null,{"$f":"'Input Data'!D72","v":26194},null,{"$f":"ROUND(BI192/BG192,0)","v":35},null,{"$f":"AY157","v":0.77765870936000003},null,{"$f":"ROUND(BK192/BM192,0)","v":45},null,{"$f":"ROUND(BO192*$BQ$189,0)","v":3},null,{"$f":"BO192-BQ192","v":42}]
[null,null,null,null,null,null,null,null,null,null,null,null,null,null,null,null,null,null,null,null,null,null,null,null,null,null,null,null,null,null,null,null,null,null,null,null,null,null,null,null,null,null,null,null,null,null,null,null,null,null,null,null,null,null,{"$f":"1+BC192","v":2},null,"Feb",null,672,null,{"$f":"'Input Data'!D73","v":108317},null,161,null,0.79085856854000003,null,204,null,12,null,192]
[null,null,null,null,null,null,null,null,null,null,null,null,null,null,null,null,null,null,null,null,null,null,null,null,null,null,null,null,null,null,null,null,null,null,null,null,null,null,null,null,null,null,null,null,null,null,null,null,null,null,null,null,null,null,3,null,"Mar",null,744,null,{"$f":"'Input Data'!D74","v":30065},null,40,null,0.86688695483999989,null,46,null,3,null,43]
[null,null,null,null,null,null,null,null,null,null,null,null,null,null,null,null,null,null,null,null,null,null,null,null,null,null,null,null,null,null,null,null,null,null,null,null,null,null,null,null,null,null,null,null,null,null,null,null,null,null,null,null,null,null,4,null,"Apr",null,720,null,{"$f":"'Input Data'!D75","v":38880},null,54,null,0.71997148407,null,75,null,4,null,71]
[null,null,null,null,null,null,null,null,null,null,null,null,null,null,null,null,null,null,null,null,null,null,null,null,null,null,null,null,null,null,null,null,null,null,null,null,null,null,null,null,null,null,null,null,null,null,null,null,null,null,null,null,null,null,5,null,"May",null,744,null,{"$f":"'Input Data'!D76","v":29912},null,40,null,0.69356867433999991,null,58,null,3,null,55]
[null,null,null,null,null,null,null,null,null,null,null,null,null,null,null,null,null,null,null,null,null,null,null,null,null,null,null,null,null,null,null,null,null,null,null,null,null,null,null,null,null,null,null,null,null,null,null,null,null,null,null,null,null,null,6,null,"Jun",null,720,null,{"$f":"'Input Data'!D77","v":153793},null,214,null,0.68715415871000007,null,311,null,18,null,293]
[null,null,null,null,null,null,null,null,null,null,null,null,null,null,null,null,null,null,null,null,null,null,null,null,null,null,null,null,null,null,null,null,null,null,null,null,null,null,null,null,null,null,null,null,null,null,null,null,null,null,null,null,null,null,7,null,"Jul",null,744,null,{"$f":"'Input Data'!D78","v":71100},null,96,null,0.70634182654,null,136,null,8,null,128]
[null,null,null,null,null,null,null,null,null,null,null,null,null,null,null,null,null,null,null,null,null,null,null,null,null,null,null,null,null,null,null,null,null,null,null,null,null,null,null,null,null,null,null,null,null,null,null,null,null,null,null,null,null,null,8,null,"Aug",null,744,null,{"$f":"'Input Data'!D79","v":70132},null,94,null,0.74450926513000004,null,126,null,7,null,119]
[null,null,null,null,null,null,null,null,null,null,null,null,null,null,null,null,null,null,null,null,null,null,null,null,null,null,null,null,null,null,null,null,null,null,null,null,null,null,null,null,null,null,null,null,null,null,null,null,null,null,null,null,null,null,9,null,"Sep",null,720,null,{"$f":"'Input Data'!D80","v":599258},null,832,null,0.59079947379999997,null,1408,null,81,null,1327]
[null,null,null,null,null,null,null,null,null,null,null,null,null,null,null,null,null,null,null,null,null,null,null,null,null,null,null,null,null,null,null,null,null,null,null,null,null,null,null,null,null,null,null,null,null,null,null,null,null,null,null,null,null,null,10,null,"Oct",null,744,null,{"$f":"'Input Data'!D81","v":-472314},null,-635,null,0.56995259941999998,null,-1114,null,-64,null,-1050]
[null,null,null,null,null,null,null,null,null,null,null,null,null,null,null,null,null,null,null,null,null,null,null,null,null,null,null,null,null,null,null,null,null,null,null,null,null,null,null,null,null,null,null,null,null,null,null,null,null,null,null,null,null,null,11,null,"Nov",null,720,null,{"$f":"'Input Data'!D82","v":61346},null,85,null,0.80809709695999998,null,105,null,6,null,99]
[null,null,null,null,null,null,null,null,null,null,null,null,null,null,null,null,null,null,null,null,null,null,null,null,null,null,null,null,null,null,null,null,null,null,null,null,null,null,null,null,null,null,null,null,null,null,null,null,null,null,null,null,null,null,12,null,"Dec",null,744,null,{"$f":"'Input Data'!D83","v":59592},null,80,null,0.77429897424000005,null,103,null,6,null,97]
[null,null,null,null,null,null,null,null,null,null,null,null,null,null,null,null,null,null,null,null,null,null,null,null,null,null,null,null,null,null,null,null,null,null,null,null,null,null,null,null,null,null,null,null,null,null,null,null,null,null,null,null,null,null,13,null,null,null,null,null,{"$f":"SUM(BI192:BI203)","v":776275},null,null,null,null,null,{"$f":"SUM(BO192:BO203)","v":1503},null,{"$f":"SUM(BQ192:BQ203)","v":87},null,{"$f":"SUM(BS192:BS203)","v":1416}]
[]
[null,null,null,null,null,null,null,null,null,null,null,null,null,null,null,null,null,null,null,null,null,null,null,null,null,null,null,null,null,null,null,null,null,null,null,null,null,null,null,null,null,null,null,null,null,null,null,null,null,null,null,null,null,null,null,null,"(a) Extracted from Company Monthly Financial Statements.; total agrees to FERC Form1, p.401a, line 26."]
[null,null,null,null,null,null,null,null,null,null,null,null,null,null,null,null,null,null,null,null,null,null,null,null,null,null,null,null,null,null,null,null,null,null,null,null,null,null,null,null,null,null,null,null,null,null,null,null,null,null,null,null,null,null,null,null,"(b) WPFR-16(7)(v), Page 41."]
[null,null,null,null,null,null,null,null,null,null,null,null,null,null,null,null,null,null,null,null,null,null,null,null,null,null,null,null,null,null,null,null,null,null,null,null,null,null,null,null,null,null,null,null,null,null,null,null,null,null,null,null,null,null,null,null,"(c) WPFR-16(7)(v), Page 38."]
[]
[]
[null,null,null,null,null,null,null,null,null,null,null,null,null,null,null,null,null,null,null,null,null,null,null,null,null,null,null,null,null,null,null,null,null,null,null,null,null,null,null,null,null,null,null,null,null,null,null,null,null,null,null,null,null,null,null,null,null,null,null,null,null,null,null,null,null,null,null,null,null,null,null,null,{"$f":"A1","v":"DUKE ENERGY KENTUCKY, INC."},null,null,null,null,{"$f":"I1","v":"Work Paper FR-16(7)(v) "}]
[null,null,null,null,null,null,null,null,null,null,null,null,null,null,null,null,null,null,null,null,null,null,null,null,null,null,null,null,null,null,null,null,null,null,null,null,null,null,null,null,null,null,null,null,null,null,null,null,null,null,null,null,null,null,null,null,null,null,null,null,null,null,null,null,null,null,null,null,null,null,null,null,{"$f":"coss_type","v":"ELECTRIC COST OF SERVICE STUDY "},null,null,null,null,{"$f":"I2","v":"Witness Responsible:"}]
[null,null,null,null,null,null,null,null,null,null,null,null,null,null,null,null,null,null,null,null,null,null,null,null,null,null,null,null,null,null,null,null,null,null,null,null,null,null,null,null,null,null,null,null,null,null,null,null,null,null,null,null,null,null,null,null,null,null,null,null,null,null,null,null,null,null,null,null,null,null,null,null,{"$f":"case_name","v":"CASE NO: 2019-00271"},null,null,null,null,{"$f":"I3","v":"James E. Ziolkowski"}]
[null,null,null,null,null,null,null,null,null,null,null,null,null,null,null,null,null,null,null,null,null,null,null,null,null,null,null,null,null,null,null,null,null,null,null,null,null,null,null,null,null,null,null,null,null,null,null,null,null,null,null,null,null,null,null,null,null,null,null,null,null,null,null,null,null,null,null,null,null,null,null,null,{"$f":"alloc_factors","v":"ALLOCATION FACTORS FOR COST OF SERVICE STUDY"},null,null,null,null,"Page 38"]
[null,null,null,null,null,null,null,null,null,null,null,null,null,null,null,null,null,null,null,null,null,null,null,null,null,null,null,null,null,null,null,null,null,null,null,null,null,null,null,null,null,null,null,null,null,null,null,null,null,null,null,null,null,null,null,null,null,null,null,null,null,null,null,null,null,null,null,null,null,null,null,null,{"$f":"A5","v":"TWELVE MONTHS ENDING DECEMBER 31, 2018"}]
[]
[null,null,null,null,null,null,null,null,null,null,null,null,null,null,null,null,null,null,null,null,null,null,null,null,null,null,null,null,null,null,null,null,null,null,null,null,null,null,null,null,null,null,null,null,null,null,null,null,null,null,null,null,null,null,null,null,null,null,null,null,null,null,null,null,null,null,null,null,null,null,null,null,"DEVELOPMENT OF FACTORS FOR KWH LOSSES & COMPANY USE",null,null,null,null," "]
[]
[null,null,null,null,null,null,null,null,null,null,null,null,null,null,null,null,null,null,null,null,null,null,null,null,null,null,null,null,null,null,null,null,null,null,null,null,null,null,null,null,null,null,null,null,null,null,null,null,null,null,null,null,null,null,null,null,null,null,null,null,null,null,null,null,null,null,null,null,null,null,null,null,"LINE"]
[null,null,null,null,null,null,null,null,null,null,null,null,null,null,null,null,null,null,null,null,null,null,null,null,null,null,null,null,null,null,null,null,null,null,null,null,null,null,null,null,null,null,null,null,null,null,null,null,null,null,null,null,null,null,null,null,null,null,null,null,null,null,null,null,null,null,null,null,null,null,null,null,"NO.",null,"DESCRIPTION",null,"SOURCE",null,"KWH"]
[null,null,null,null,null,null,null,null,null,null,null,null,null,null,null,null,null,null,null,null,null,null,null,null,null,null,null,null,null,null,null,null,null,null,null,null,null,null,null,null,null,null,null,null,null,null,null,null,null,null,null,null,null,null,null,null,null,null,null,null,null,null,null,null,null,null,null,null,null,null,null,null,1,null,"Total kWh Available for Delivery",null,"FERC Form1 p.401a, line 20",null,{"$f":"'Input Data'!D87","v":4966207000}]
[null,null,null,null,null,null,null,null,null,null,null,null,null,null,null,null,null,null,null,null,null,null,null,null,null,null,null,null,null,null,null,null,null,null,null,null,null,null,null,null,null,null,null,null,null,null,null,null,null,null,null,null,null,null,null,null,null,null,null,null,null,null,null,null,null,null,null,null,null,null,null,null,{"$f":"BU221+1","v":2},null,"Less:  Sales to other Utilities",null,"FERC Form1 p.401a, line 24",null,{"$f":"'Input Data'!D88","v":507428000}]
[null,null,null,null,null,null,null,null,null,null,null,null,null,null,null,null,null,null,null,null,null,null,null,null,null,null,null,null,null,null,null,null,null,null,null,null,null,null,null,null,null,null,null,null,null,null,null,null,null,null,null,null,null,null,null,null,null,null,null,null,null,null,null,null,null,null,null,null,null,null,null,null,3,null,"System Adjustment",null,"N/A",null,0]
[null,null,null,null,null,null,null,null,null,null,null,null,null,null,null,null,null,null,null,null,null,null,null,null,null,null,null,null,null,null,null,null,null,null,null,null,null,null,null,null,null,null,null,null,null,null,null,null,null,null,null,null,null,null,null,null,null,null,null,null,null,null,null,null,null,null,null,null,null,null,null,null,4,null,"   Total Available for Firm Deliveries",null,"Lines 1 - 2 + 3",null,{"$f":"CA221-CA222+CA223","v":4458779000}]
[null,null,null,null,null,null,null,null,null,null,null,null,null,null,null,null,null,null,null,null,null,null,null,null,null,null,null,null,null,null,null,null,null,null,null,null,null,null,null,null,null,null,null,null,null,null,null,null,null,null,null,null,null,null,null,null,null,null,null,null,null,null,null,null,null,null,null,null,null,null,null,null,5]
[null,null,null,null,null,null,null,null,null,null,null,null,null,null,null,null,null,null,null,null,null,null,null,null,null,null,null,null,null,null,null,null,null,null,null,null,null,null,null,null,null,null,null,null,null,null,null,null,null,null,null,null,null,null,null,null,null,null,null,null,null,null,null,null,null,null,null,null,null,null,null,null,6,null,"Transmission Losses",null,"Lines 33 + 34",null,{"$f":"CA253+CA254","v":18168000}]
[null,null,null,null,null,null,null,null,null,null,null,null,null,null,null,null,null,null,null,null,null,null,null,null,null,null,null,null,null,null,null,null,null,null,null,null,null,null,null,null,null,null,null,null,null,null,null,null,null,null,null,null,null,null,null,null,null,null,null,null,null,null,null,null,null,null,null,null,null,null,null,null,7,null,"Allocated Company Use to Transmission",null,"Line 45",null,{"$f":"CA265","v":44871.969154788589}]
[null,null,null,null,null,null,null,null,null,null,null,null,null,null,null,null,null,null,null,null,null,null,null,null,null,null,null,null,null,null,null,null,null,null,null,null,null,null,null,null,null,null,null,null,null,null,null,null,null,null,null,null,null,null,null,null,null,null,null,null,null,null,null,null,null,null,null,null,null,null,null,null,8,null,"   Total Transmission Losses & Company Use",null,"Lines 6 + 7",null,{"$f":"SUM(CA226:CA227)","v":18212871.96915479}]
[null,null,null,null,null,null,null,null,null,null,null,null,null,null,null,null,null,null,null,null,null,null,null,null,null,null,null,null,null,null,null,null,null,null,null,null,null,null,null,null,null,null,null,null,null,null,null,null,null,null,null,null,null,null,null,null,null,null,null,null,null,null,null,null,null,null,null,null,null,null,null,null,9]
[null,null,null,null,null,null,null,null,null,null,null,null,null,null,null,null,null,null,null,null,null,null,null,null,null,null,null,null,null,null,null,null,null,null,null,null,null,null,null,null,null,null,null,null,null,null,null,null,null,null,null,null,null,null,null,null,null,null,null,null,null,null,null,null,null,null,null,null,null,null,null,null,10,null,"Load on Transmission System after Losses and Company use",null,"Line 4 - Line 8",null,{"$f":"CA224-CA228","v":4440566128.0308456}]
[null,null,null,null,null,null,null,null,null,null,null,null,null,null,null,null,null,null,null,null,null,null,null,null,null,null,null,null,null,null,null,null,null,null,null,null,null,null,null,null,null,null,null,null,null,null,null,null,null,null,null,null,null,null,null,null,null,null,null,null,null,null,null,null,null,null,null,null,null,null,null,null,11]
[null,null,null,null,null,null,null,null,null,null,null,null,null,null,null,null,null,null,null,null,null,null,null,null,null,null,null,null,null,null,null,null,null,null,null,null,null,null,null,null,null,null,null,null,null,null,null,null,null,null,null,null,null,null,null,null,null,null,null,null,null,null,null,null,null,null,null,null,null,null,null,null,12,null,"   Trans Loss Factor (TLF)  ",null,"Line 8 / Line 10",null,{"$f":"ROUND(CA228/CA230,10)","v":4.1014752000000003E-3}]
[null,null,null,null,null,null,null,null,null,null,null,null,null,null,null,null,null,null,null,null,null,null,null,null,null,null,null,null,null,null,null,null,null,null,null,null,null,null,null,null,null,null,null,null,null,null,null,null,null,null,null,null,null,null,null,null,null,null,null,null,null,null,null,null,null,null,null,null,null,null,null,null,13]
[null,null,null,null,null,null,null,null,null,null,null,null,null,null,null,null,null,null,null,null,null,null,null,null,null,null,null,null,null,null,null,null,null,null,null,null,null,null,null,null,null,null,null,null,null,null,null,null,null,null,null,null,null,null,null,null,null,null,null,null,null,null,null,null,null,null,null,null,null,null,null,null,14]
[null,null,null,null,null,null,null,null,null,null,null,null,null,null,null,null,null,null,null,null,null,null,null,null,null,null,null,null,null,null,null,null,null,null,null,null,null,null,null,null,null,null,null,null,null,null,null,null,null,null,null,null,null,null,null,null,null,null,null,null,null,null,null,null,null,null,null,null,null,null,null,null,15]
[null,null,null,null,null,null,null,null,null,null,null,null,null,null,null,null,null,null,null,null,null,null,null,null,null,null,null,null,null,null,null,null,null,null,null,null,null,null,null,null,null,null,null,null,null,null,null,null,null,null,null,null,null,null,null,null,null,null,null,null,null,null,null,null,null,null,null,null,null,null,null,null,16,null,"Total Firm Billed Sales (Billed and Unbilled)",null,"WPFR-16(7)(v), Page 9, col (3)",null,{"$f":"'WP FR-16(7)(v) kwh analysis'!F38","v":4133605612}]
[null,null,null,null,null,null,null,null,null,null,null,null,null,null,null,null,null,null,null,null,null,null,null,null,null,null,null,null,null,null,null,null,null,null,null,null,null,null,null,null,null,null,null,null,null,null,null,null,null,null,null,null,null,null,null,null,null,null,null,null,null,null,null,null,null,null,null,null,null,null,null,null,17,null,"Less Transmission Sales (Billed and Unbilled)",null,{"$f":"BY236","v":"WPFR-16(7)(v), Page 9, col (3)"},null,{"$f":"-CA260","v":-238939839}]
[null,null,null,null,null,null,null,null,null,null,null,null,null,null,null,null,null,null,null,null,null,null,null,null,null,null,null,null,null,null,null,null,null,null,null,null,null,null,null,null,null,null,null,null,null,null,null,null,null,null,null,null,null,null,null,null,null,null,null,null,null,null,null,null,null,null,null,null,null,null,null,null,18,null,"   Total Load on Distribution System",null,"Line 16 + Line 17",null,{"$f":"SUM(CA236:CA237)","v":3894665773}]
[null,null,null,null,null,null,null,null,null,null,null,null,null,null,null,null,null,null,null,null,null,null,null,null,null,null,null,null,null,null,null,null,null,null,null,null,null,null,null,null,null,null,null,null,null,null,null,null,null,null,null,null,null,null,null,null,null,null,null,null,null,null,null,null,null,null,null,null,null,null,null,null,19]
[null,null,null,null,null,null,null,null,null,null,null,null,null,null,null,null,null,null,null,null,null,null,null,null,null,null,null,null,null,null,null,null,null,null,null,null,null,null,null,null,null,null,null,null,null,null,null,null,null,null,null,null,null,null,null,null,null,null,null,null,null,null,null,null,null,null,null,null,null,null,null,null,20,null,"Distribution Losses",null,"Line 35",null,{"$f":"CA255","v":110225000}]
[null,null,null,null,null,null,null,null,null,null,null,null,null,null,null,null,null,null,null,null,null,null,null,null,null,null,null,null,null,null,null,null,null,null,null,null,null,null,null,null,null,null,null,null,null,null,null,null,null,null,null,null,null,null,null,null,null,null,null,null,null,null,null,null,null,null,null,null,null,null,null,null,21,null,"Plus: Allocated Company Use",null,"Line 46",null,{"$f":"CA266","v":731403.03084521147}]
[null,null,null,null,null,null,null,null,null,null,null,null,null,null,null,null,null,null,null,null,null,null,null,null,null,null,null,null,null,null,null,null,null,null,null,null,null,null,null,null,null,null,null,null,null,null,null,null,null,null,null,null,null,null,null,null,null,null,null,null,null,null,null,null,null,null,null,null,null,null,null,null,22,null,"   Total Distribution Losses & Company Use",null,"Line 20 + 21",null,{"$f":"CA240+CA241","v":110956403.03084521}]
[null,null,null,null,null,null,null,null,null,null,null,null,null,null,null,null,null,null,null,null,null,null,null,null,null,null,null,null,null,null,null,null,null,null,null,null,null,null,null,null,null,null,null,null,null,null,null,null,null,null,null,null,null,null,null,null,null,null,null,null,null,null,null,null,null,null,null,null,null,null,null,null,23]
[null,null,null,null,null,null,null,null,null,null,null,null,null,null,null,null,null,null,null,null,null,null,null,null,null,null,null,null,null,null,null,null,null,null,null,null,null,null,null,null,null,null,null,null,null,null,null,null,null,null,null,null,null,null,null,null,null,null,null,null,null,null,null,null,null,null,null,null,null,null,null,null,24,null,"Distribution Loss Factor (DLF)",null,"Line 22 / Line 18",null,{"$f":"ROUND(CA242/CA238,10)","v":2.8489325999999999E-2}]
[null,null,null,null,null,null,null,null,null,null,null,null,null,null,null,null,null,null,null,null,null,null,null,null,null,null,null,null,null,null,null,null,null,null,null,null,null,null,null,null,null,null,null,null,null,null,null,null,null,null,null,null,null,null,null,null,null,null,null,null,null,null,null,null,null,null,null,null,null,null,null,null,25]
[null,null,null,null,null,null,null,null,null,null,null,null,null,null,null,null,null,null,null,null,null,null,null,null,null,null,null,null,null,null,null,null,null,null,null,null,null,null,null,null,null,null,null,null,null,null,null,null,null,null,null,null,null,null,null,null,null,null,null,null,null,null,null,null,null,null,null,null,null,null,null,null,26]
[null,null,null,null,null,null,null,null,null,null,null,null,null,null,null,null,null,null,null,null,null,null,null,null,null,null,null,null,null,null,null,null,null,null,null,null,null,null,null,null,null,null,null,null,null,null,null,null,null,null,null,null,null,null,null,null,null,null,null,null,null,null,null,null,null,null,null,null,null,null,null,null,27]
[null,null,null,null,null,null,null,null,null,null,null,null,null,null,null,null,null,null,null,null,null,null,null,null,null,null,null,null,null,null,null,null,null,null,null,null,null,null,null,null,null,null,null,null,null,null,null,null,null,null,null,null,null,null,null,null,null,null,null,null,null,null,null,null,null,null,null,null,null,null,null,null,28,null,"Total  Loss Factor",null,"(TLF + (TLF * DLF) + DLF)",null,{"$f":"ROUND(CA232+(CA232*CA244)+CA244,10)","v":3.2707649499999998E-2}]
[null,null,null,null,null,null,null,null,null,null,null,null,null,null,null,null,null,null,null,null,null,null,null,null,null,null,null,null,null,null,null,null,null,null,null,null,null,null,null,null,null,null,null,null,null,null,null,null,null,null,null,null,null,null,null,null,null,null,null,null,null,null,null,null,null,null,null,null,null,null,null,null,29]
[null,null,null,null,null,null,null,null,null,null,null,null,null,null,null,null,null,null,null,null,null,null,null,null,null,null,null,null,null,null,null,null,null,null,null,null,null,null,null,null,null,null,null,null,null,null,null,null,null,null,null,null,null,null,null,null,null,null,null,null,null,null,null,null,null,null,null,null,null,null,null,null,30]
[null,null,null,null,null,null,null,null,null,null,null,null,null,null,null,null,null,null,null,null,null,null,null,null,null,null,null,null,null,null,null,null,null,null,null,null,null,null,null,null,null,null,null,null,null,null,null,null,null,null,null,null,null,null,null,null,null,null,null,null,null,null,null,null,null,null,null,null,null,null,null,null,31]
[null,null,null,null,null,null,null,null,null,null,null,null,null,null,null,null,null,null,null,null,null,null,null,null,null,null,null,null,null,null,null,null,null,null,null,null,null,null,null,null,null,null,null,null,null,null,null,null,null,null,null,null,null,null,null,null,null,null,null,null,null,null,null,null,null,null,null,null,null,null,null,null,{"$f":"BU251+1","v":32},null,"Additional Detail on Company Losses"]
[null,null,null,null,null,null,null,null,null,null,null,null,null,null,null,null,null,null,null,null,null,null,null,null,null,null,null,null,null,null,null,null,null,null,null,null,null,null,null,null,null,null,null,null,null,null,null,null,null,null,null,null,null,null,null,null,null,null,null,null,null,null,null,null,null,null,null,null,null,null,null,null,33,null,"Transmission Losses - Duke Energy Kentucky",null,{"$f":"AK106","v":"Transmission Planning"},null,18168000,"updated 7/22/19"]
[null,null,null,null,null,null,null,null,null,null,null,null,null,null,null,null,null,null,null,null,null,null,null,null,null,null,null,null,null,null,null,null,null,null,null,null,null,null,null,null,null,null,null,null,null,null,null,null,null,null,null,null,null,null,null,null,null,null,null,null,null,null,null,null,null,null,null,null,null,null,null,null,34,null,"Transmission Losses - PJM",null,null,null,0]
[null,null,null,null,null,null,null,null,null,null,null,null,null,null,null,null,null,null,null,null,null,null,null,null,null,null,null,null,null,null,null,null,null,null,null,null,null,null,null,null,null,null,null,null,null,null,null,null,null,null,null,null,null,null,null,null,null,null,null,null,null,null,null,null,null,null,null,null,null,null,null,null,35,null,"Distribution Losses",null,{"$f":"BY253","v":"Transmission Planning"},null,110225000,"updated 7/22/19"]
[null,null,null,null,null,null,null,null,null,null,null,null,null,null,null,null,null,null,null,null,null,null,null,null,null,null,null,null,null,null,null,null,null,null,null,null,null,null,null,null,null,null,null,null,null,null,null,null,null,null,null,null,null,null,null,null,null,null,null,null,null,null,null,null,null,null,null,null,null,null,null,null,36,null,"    Total Company Losses",null,"Line 33 + 34 + 35",null,{"$f":"SUM(CA253:CA255)","v":128393000}]
[null,null,null,null,null,null,null,null,null,null,null,null,null,null,null,null,null,null,null,null,null,null,null,null,null,null,null,null,null,null,null,null,null,null,null,null,null,null,null,null,null,null,null,null,null,null,null,null,null,null,null,null,null,null,null,null,null,null,null,null,null,null,null,null,null,null,null,null,null,null,null,null,37]
[null,null,null,null,null,null,null,null,null,null,null,null,null,null,null,null,null,null,null,null,null,null,null,null,null,null,null,null,null,null,null,null,null,null,null,null,null,null,null,null,null,null,null,null,null,null,null,null,null,null,null,null,null,null,null,null,null,null,null,null,null,null,null,null,null,null,null,null,null,null,null,null,38]
[null,null,null,null,null,null,null,null,null,null,null,null,null,null,null,null,null,null,null,null,null,null,null,null,null,null,null,null,null,null,null,null,null,null,null,null,null,null,null,null,null,null,null,null,null,null,null,null,null,null,null,null,null,null,null,null,null,null,null,null,null,null,null,null,null,null,null,null,null,null,null,null,39,null,"Additional Detail on Allocation of Company Use",null,null,"Alloc %","KWH"]
[null,null,null,null,null,null,null,null,null,null,null,null,null,null,null,null,null,null,null,null,null,null,null,null,null,null,null,null,null,null,null,null,null,null,null,null,null,null,null,null,null,null,null,null,null,null,null,null,null,null,null,null,null,null,null,null,null,null,null,null,null,null,null,null,null,null,null,null,null,null,null,null,40,null,"Firm Transmission Billed Sales",null,{"$f":"BY237","v":"WPFR-16(7)(v), Page 9, col (3)"},{"$f":"CA260/CA262","v":5.7804217776932898E-2},{"$f":"'WP FR-16(7)(v) kwh analysis'!F25+'WP FR-16(7)(v) kwh analysis'!F35","v":238939839}]
[null,null,null,null,null,null,null,null,null,null,null,null,null,null,null,null,null,null,null,null,null,null,null,null,null,null,null,null,null,null,null,null,null,null,null,null,null,null,null,null,null,null,null,null,null,null,null,null,null,null,null,null,null,null,null,null,null,null,null,null,null,null,null,null,null,null,null,null,null,null,null,null,41,null,"Firm Distribution Billed Sales",null,{"$f":"BY260","v":"WPFR-16(7)(v), Page 9, col (3)"},{"$f":"CA261/CA262","v":0.9421957822230671},{"$f":"CA262-CA260","v":3894665773}]
[null,null,null,null,null,null,null,null,null,null,null,null,null,null,null,null,null,null,null,null,null,null,null,null,null,null,null,null,null,null,null,null,null,null,null,null,null,null,null,null,null,null,null,null,null,null,null,null,null,null,null,null,null,null,null,null,null,null,null,null,null,null,null,null,null,null,null,null,null,null,null,null,42,null,"   Total Firm Billed Sales",null,null,{"$f":"SUM(BZ260:BZ261)","v":1},{"$f":"'WP FR-16(7)(v) kwh analysis'!F38","v":4133605612}]
[null,null,null,null,null,null,null,null,null,null,null,null,null,null,null,null,null,null,null,null,null,null,null,null,null,null,null,null,null,null,null,null,null,null,null,null,null,null,null,null,null,null,null,null,null,null,null,null,null,null,null,null,null,null,null,null,null,null,null,null,null,null,null,null,null,null,null,null,null,null,null,null,43]
[null,null,null,null,null,null,null,null,null,null,null,null,null,null,null,null,null,null,null,null,null,null,null,null,null,null,null,null,null,null,null,null,null,null,null,null,null,null,null,null,null,null,null,null,null,null,null,null,null,null,null,null,null,null,null,null,null,null,null,null,null,null,null,null,null,null,null,null,null,null,null,null,44,null,"Total Company Use",null,"WPFR-16(7)(v), Page 37",null,{"$f":"BI204","v":776275}]
[null,null,null,null,null,null,null,null,null,null,null,null,null,null,null,null,null,null,null,null,null,null,null,null,null,null,null,null,null,null,null,null,null,null,null,null,null,null,null,null,null,null,null,null,null,null,null,null,null,null,null,null,null,null,null,null,null,null,null,null,null,null,null,null,null,null,null,null,null,null,null,null,45,null,"Allocated Company Use - Transmission",null,"Line 44 * Line 40 ",null,{"$f":"BZ260*CA264","v":44871.969154788589}]
[null,null,null,null,null,null,null,null,null,null,null,null,null,null,null,null,null,null,null,null,null,null,null,null,null,null,null,null,null,null,null,null,null,null,null,null,null,null,null,null,null,null,null,null,null,null,null,null,null,null,null,null,null,null,null,null,null,null,null,null,null,null,null,null,null,null,null,null,null,null,null,null,46,null,"Allocated Company Use - Distribution",null,"Line 44 * Line 41 ",null,{"$f":"CA264*BZ261","v":731403.03084521147}]
[null,null,null,null,null,null,null,null,null,null,null,null,null,null,null,null,null,null,null,null,null,null,null,null,null,null,null,null,null,null,null,null,null,null,null,null,null,null,null,null,null,null,null,null,null,null,null,null,null,null,null,null,null,null,null,null,null,null,null,null,null,null,null,null,null,null,null,null,null,null,null,null," "]
[null,null,null,null,null,null,null,null,null,null,null,null,null,null,null,null,null,null,null,null,null,null,null,null,null,null,null,null,null,null,null,null,null,null,null,null,null,null,null,null,null,null,null,null,null,null,null,null,null,null,null,null,null,null,null,null,null,null,null,null,null,null,null,null,null,null,null,null,null,null,null,null," "]
[]
[]
[]
[]
[]
[]
[]
[]
[]
[]
[]
[]
[]
[]
[]
[]
[]
[]
[]
[]
[]
[]
[]
[]
[]
[]
[]
[]
[]
[]
[]
[]
[]
[]
[]
[]
[]
[]
[]
[]
[]
[]
[]
[]
[]
[]
[]
[]
[]
[]
[]
[]
[]
[]
[]
[]
[]
[]
[]
[]
[]
[]
[]
[]
[]
[]
[]
[]
[]
[]
[]
[]
[]
[]
[]
[]
[]
[]
[]
[]
[]
[]
[]
[]
[]
[]
[]
[]
[]
[]
[]
[]
[]
[]
[]
[]
[]
[]
[]
[]
[]
[]
[]
[]
[]
[]
[]
[]
[]
[]
[]
[]
[]
[]
[]
[]
[]
[]
[]
[]
[]
[]
[]
[]
[]
[]
[]
[]
[]
[]
[]
[]
[]
[]
[]
[]
[]
[]
[]
[]
[]
[]
[]
[]
[]
[]
[]
[]
[]
[]
[]
[]
[]
[]
[]
[]
[]
[]
[]
[]
[]
[]
[]
[]
[]
[]
[]
[]
[]
[]
[]
[]
[]
[]
[]
[]
[]
[]
[]
[]
[]
[]
[]
[]
[]
[]
[]
[]
[]
[]
[]
[]
[]
[]
[]
[]
[]
[]
[]
[]
[]
[]
[]
[]
[]
[]
[]
[]
[]
[]
[]
[]
[]
[]
[]
[]
[]
[]
[]
[]
[]
[]
[]
[]
[]
[]
[]
[]
[]
[]
[]
[]
[]
[]
[]
[]
[]
[]
[]
[]
[]
[]
[]
[]
[]
[]
[]
[]
[]
[]
[]
[]
[]
[]
[]
[]
[]
[]
[]
[]
[]
[]
[]
[]
[]
[]
[]
[]
[]
[]
[]
[]
[]
[]
[]
[]
[]
[]
[]
[]
[]
[]
[]
[]
[]
[]
[]
[]
[]
[]
[null,null,null,null,null,0]

{"sheet":"WP FR-16(7)(v) Load Res RS","index":53,"n_rows":554,"n_cols":25,"rows_kept":554,"cut":false,"hidden":false,"merged":[[10,55,10,57],[10,64,10,66],[10,67,10,69],[10,70,10,72],[10,25,10,27],[10,34,10,36],[10,37,10,39],[10,40,10,42],[10,139,10,141],[10,5,10,6],[10,7,10,8],[10,49,10,51],[10,52,10,54],[10,142,10,144],[10,145,10,147],[10,154,10,156],[10,157,10,159],[10,160,10,162],[10,109,10,111],[10,112,10,114],[10,115,10,117],[10,124,10,126],[10,127,10,129],[10,130,10,132],[10,79,10,81],[10,82,10,84],[10,85,10,87],[10,94,10,96],[10,97,10,99],[10,100,10,102],[10,229,10,231],[10,232,10,234],[10,235,10,237],[10,244,10,246],[10,247,10,249],[10,250,10,252],[10,199,10,201],[10,202,10,204],[10,205,10,207],[10,214,10,216],[10,217,10,219],[10,220,10,222],[10,169,10,171],[10,172,10,174],[10,175,10,177],[10,184,10,186],[10,187,10,189],[10,190,10,192],[10,319,10,321],[10,322,10,324],[10,325,10,327],[10,334,10,336],[10,337,10,339],[10,340,10,342],[10,289,10,291],[10,292,10,294],[10,295,10,297],[10,304,10,306],[10,307,10,309],[10,310,10,312],[10,259,10,261],[10,262,10,264],[10,265,10,267],[10,274,10,276],[10,277,10,279],[10,280,10,282],[10,409,10,411],[10,412,10,414],[10,415,10,417],[10,424,10,426],[10,427,10,429],[10,430,10,432],[10,379,10,381],[10,382,10,384],[10,385,10,387],[10,394,10,396],[10,397,10,399],[10,400,10,402],[10,349,10,351],[10,352,10,354],[10,355,10,357],[10,364,10,366],[10,367,10,369],[10,370,10,372],[10,499,10,501],[10,502,10,504],[10,505,10,507],[10,514,10,516],[10,517,10,519],[10,520,10,522],[10,469,10,471],[10,472,10,474],[10,475,10,477],[10,484,10,486],[10,487,10,489],[10,490,10,492],[10,439,10,441],[10,442,10,444],[10,445,10,447],[10,454,10,456],[10,457,10,459],[10,460,10,462],[10,589,10,591],[10,592,10,594],[10,595,10,597],[10,604,10,606],[10,607,10,609],[10,610,10,612],[10,559,10,561],[10,562,10,564],[10,565,10,567],[10,574,10,576],[10,577,10,579],[10,580,10,582],[10,529,10,531],[10,532,10,534],[10,535,10,537],[10,544,10,546],[10,547,10,549],[10,550,10,552],[10,679,10,681],[10,682,10,684],[10,685,10,687],[10,694,10,696],[10,697,10,699],[10,700,10,702],[10,649,10,651],[10,652,10,654],[10,655,10,657],[10,664,10,666],[10,667,10,669],[10,670,10,672],[10,619,10,621],[10,622,10,624],[10,625,10,627],[10,634,10,636],[10,637,10,639],[10,640,10,642],[10,769,10,771],[10,772,10,774],[10,775,10,777],[10,784,10,786],[10,787,10,789],[10,790,10,792],[10,739,10,741],[10,742,10,744],[10,745,10,747],[10,754,10,756],[10,757,10,759],[10,760,10,762],[10,709,10,711],[10,712,10,714],[10,715,10,717],[10,724,10,726],[10,727,10,729],[10,730,10,732],[10,859,10,861],[10,862,10,864],[10,865,10,867],[10,874,10,876],[10,877,10,879],[10,880,10,882],[10,829,10,831],[10,832,10,834],[10,835,10,837],[10,844,10,846],[10,847,10,849],[10,850,10,852],[10,799,10,801],[10,802,10,804],[10,805,10,807],[10,814,10,816],[10,817,10,819],[10,820,10,822],[10,949,10,951],[10,952,10,954],[10,955,10,957],[10,964,10,966],[10,967,10,969],[10,970,10,972],[10,919,10,921],[10,922,10,924],[10,925,10,927],[10,934,10,936],[10,937,10,939],[10,940,10,942],[10,889,10,891],[10,892,10,894],[10,895,10,897],[10,904,10,906],[10,907,10,909],[10,910,10,912],[10,1039,10,1041],[10,1042,10,1044],[10,1045,10,1047],[10,1054,10,1056],[10,1057,10,1059],[10,1060,10,1062],[10,1009,10,1011],[10,1012,10,1014],[10,1015,10,1017],[10,1024,10,1026],[10,1027,10,1029],[10,1030,10,1032],[10,979,10,981],[10,982,10,984],[10,985,10,987],[10,994,10,996],[10,997,10,999],[10,1000,10,1002],[10,1129,10,1131],[10,1132,10,1134],[10,1135,10,1137],[10,1144,10,1146],[10,1147,10,1149],[10,1150,10,1152],[10,1099,10,1101],[10,1102,10,1104],[10,1105,10,1107],[10,1114,10,1116],[10,1117,10,1119],[10,1120,10,1122],[10,1069,10,1071],[10,1072,10,1074],[10,1075,10,1077],[10,1084,10,1086],[10,1087,10,1089],[10,1090,10,1092],[10,1219,10,1221],[10,1222,10,1224],[10,1225,10,1227],[10,1234,10,1236],[10,1237,10,1239],[10,1240,10,1242],[10,1189,10,1191],[10,1192,10,1194],[10,1195,10,1197],[10,1204,10,1206],[10,1207,10,1209],[10,1210,10,1212],[10,1159,10,1161],[10,1162,10,1164],[10,1165,10,1167],[10,1174,10,1176],[10,1177,10,1179],[10,1180,10,1182],[10,1309,10,1311],[10,1312,10,1314],[10,1315,10,1317],[10,1324,10,1326],[10,1327,10,1329],[10,1330,10,1332],[10,1279,10,1281],[10,1282,10,1284],[10,1285,10,1287],[10,1294,10,1296],[10,1297,10,1299],[10,1300,10,1302],[10,1249,10,1251],[10,1252,10,1254],[10,1255,10,1257],[10,1264,10,1266],[10,1267,10,1269],[10,1270,10,1272],[10,1399,10,1401],[10,1402,10,1404],[10,1405,10,1407],[10,1414,10,1416],[10,1417,10,1419],[10,1420,10,1422],[10,1369,10,1371],[10,1372,10,1374],[10,1375,10,1377],[10,1384,10,1386],[10,1387,10,1389],[10,1390,10,1392],[10,1339,10,1341],[10,1342,10,1344],[10,1345,10,1347],[10,1354,10,1356],[10,1357,10,1359],[10,1360,10,1362],[10,1489,10,1491],[10,1492,10,1494],[10,1495,10,1497],[10,1504,10,1506],[10,1507,10,1509],[10,1510,10,1512],[10,1459,10,1461],[10,1462,10,1464],[10,1465,10,1467],[10,1474,10,1476],[10,1477,10,1479],[10,1480,10,1482],[10,1429,10,1431],[10,1432,10,1434],[10,1435,10,1437],[10,1444,10,1446],[10,1447,10,1449],[10,1450,10,1452],[10,1579,10,1581],[10,1582,10,1584],[10,1585,10,1587],[10,1594,10,1596],[10,1597,10,1599],[10,1600,10,1602],[10,1549,10,1551],[10,1552,10,1554],[10,1555,10,1557],[10,1564,10,1566],[10,1567,10,1569],[10,1570,10,1572],[10,1519,10,1521],[10,1522,10,1524],[10,1525,10,1527],[10,1534,10,1536],[10,1537,10,1539],[10,1540,10,1542],[10,1669,10,1671],[10,1672,10,1674],[10,1675,10,1677],[10,1684,10,1686],[10,1687,10,1689],[10,1690,10,1692],[10,1639,10,1641],[10,1642,10,1644],[10,1645,10,1647],[10,1654,10,1656],[10,1657,10,1659],[10,1660,10,1662],[10,1609,10,1611],[10,1612,10,1614],[10,1615,10,1617],[10,1624,10,1626],[10,1627,10,1629],[10,1630,10,1632],[10,1759,10,1761],[10,1762,10,1764],[10,1765,10,1767],[10,1774,10,1776],[10,1777,10,1779],[10,1780,10,1782],[10,1729,10,1731],[10,1732,10,1734],[10,1735,10,1737],[10,1744,10,1746],[10,1747,10,1749],[10,1750,10,1752],[10,1699,10,1701],[10,1702,10,1704],[10,1705,10,1707],[10,1714,10,1716],[10,1717,10,1719],[10,1720,10,1722],[10,1849,10,1851],[10,1852,10,1854],[10,1855,10,1857],[10,1864,10,1866],[10,1867,10,1869],[10,1870,10,1872],[10,1819,10,1821],[10,1822,10,1824],[10,1825,10,1827],[10,1834,10,1836],[10,1837,10,1839],[10,1840,10,1842],[10,1789,10,1791],[10,1792,10,1794],[10,1795,10,1797],[10,1804,10,1806],[10,1807,10,1809],[10,1810,10,1812],[10,1939,10,1941],[10,1942,10,1944],[10,1945,10,1947],[10,1954,10,1956],[10,1957,10,1959],[10,1960,10,1962],[10,1909,10,1911],[10,1912,10,1914],[10,1915,10,1917],[10,1924,10,1926],[10,1927,10,1929],[10,1930,10,1932],[10,1879,10,1881],[10,1882,10,1884],[10,1885,10,1887],[10,1894,10,1896],[10,1897,10,1899],[10,1900,10,1902],[10,2029,10,2031],[10,2032,10,2034],[10,2035,10,2037],[10,2044,10,2046],[10,2047,10,2049],[10,2050,10,2052],[10,1999,10,2001],[10,2002,10,2004],[10,2005,10,2007],[10,2014,10,2016],[10,2017,10,2019],[10,2020,10,2022],[10,1969,10,1971],[10,1972,10,1974],[10,1975,10,1977],[10,1984,10,1986],[10,1987,10,1989],[10,1990,10,1992],[10,2119,10,2121],[10,2122,10,2124],[10,2125,10,2127],[10,2134,10,2136],[10,2137,10,2139],[10,2140,10,2142],[10,2089,10,2091],[10,2092,10,2094],[10,2095,10,2097],[10,2104,10,2106],[10,2107,10,2109],[10,2110,10,2112],[10,2059,10,2061],[10,2062,10,2064],[10,2065,10,2067],[10,2074,10,2076],[10,2077,10,2079],[10,2080,10,2082],[10,2209,10,2211],[10,2212,10,2214],[10,2215,10,2217],[10,2224,10,2226],[10,2227,10,2229],[10,2230,10,2232],[10,2179,10,2181],[10,2182,10,2184],[10,2185,10,2187],[10,2194,10,2196],[10,2197,10,2199],[10,2200,10,2202],[10,2149,10,2151],[10,2152,10,2154],[10,2155,10,2157],[10,2164,10,2166],[10,2167,10,2169],[10,2170,10,2172],[10,2299,10,2301],[10,2302,10,2304],[10,2305,10,2307],[10,2314,10,2316],[10,2317,10,2319],[10,2320,10,2322],[10,2269,10,2271],[10,2272,10,2274],[10,2275,10,2277],[10,2284,10,2286],[10,2287,10,2289],[10,2290,10,2292],[10,2239,10,2241],[10,2242,10,2244],[10,2245,10,2247],[10,2254,10,2256],[10,2257,10,2259],[10,2260,10,2262],[10,2389,10,2391],[10,2392,10,2394],[10,2395,10,2397],[10,2404,10,2406],[10,2407,10,2409],[10,2410,10,2412],[10,2359,10,2361],[10,2362,10,2364],[10,2365,10,2367],[10,2374,10,2376],[10,2377,10,2379],[10,2380,10,2382],[10,2329,10,2331],[10,2332,10,2334],[10,2335,10,2337],[10,2344,10,2346],[10,2347,10,2349],[10,2350,10,2352],[10,2479,10,2481],[10,2482,10,2484],[10,2485,10,2487],[10,2494,10,2496],[10,2497,10,2499],[10,2500,10,2502],[10,2449,10,2451],[10,2452,10,2454],[10,2455,10,2457],[10,2464,10,2466],[10,2467,10,2469],[10,2470,10,2472],[10,2419,10,2421],[10,2422,10,2424],[10,2425,10,2427],[10,2434,10,2436],[10,2437,10,2439],[10,2440,10,2442],[10,2569,10,2571],[10,2572,10,2574],[10,2575,10,2577],[10,2584,10,2586],[10,2587,10,2589],[10,2590,10,2592],[10,2539,10,2541],[10,2542,10,2544],[10,2545,10,2547],[10,2554,10,2556],[10,2557,10,2559],[10,2560,10,2562],[10,2509,10,2511],[10,2512,10,2514],[10,2515,10,2517],[10,2524,10,2526],[10,2527,10,2529],[10,2530,10,2532],[10,2659,10,2661],[10,2662,10,2664],[10,2665,10,2667],[10,2674,10,2676],[10,2677,10,2679],[10,2680,10,2682],[10,2629,10,2631],[10,2632,10,2634],[10,2635,10,2637],[10,2644,10,2646],[10,2647,10,2649],[10,2650,10,2652],[10,2599,10,2601],[10,2602,10,2604],[10,2605,10,2607],[10,2614,10,2616],[10,2617,10,2619],[10,2620,10,2622],[10,2749,10,2751],[10,2752,10,2754],[10,2755,10,2757],[10,2764,10,2766],[10,2767,10,2769],[10,2770,10,2772],[10,2719,10,2721],[10,2722,10,2724],[10,2725,10,2727],[10,2734,10,2736],[10,2737,10,2739],[10,2740,10,2742],[10,2689,10,2691],[10,2692,10,2694],[10,2695,10,2697],[10,2704,10,2706],[10,2707,10,2709],[10,2710,10,2712],[10,2839,10,2841],[10,2842,10,2844],[10,2845,10,2847],[10,2854,10,2856],[10,2857,10,2859],[10,2860,10,2862],[10,2809,10,2811],[10,2812,10,2814],[10,2815,10,2817],[10,2824,10,2826],[10,2827,10,2829],[10,2830,10,2832],[10,2779,10,2781],[10,2782,10,2784],[10,2785,10,2787],[10,2794,10,2796],[10,2797,10,2799],[10,2800,10,2802],[10,2929,10,2931],[10,2932,10,2934],[10,2935,10,2937],[10,2944,10,2946],[10,2947,10,2949],[10,2950,10,2952],[10,2899,10,2901],[10,2902,10,2904],[10,2905,10,2907],[10,2914,10,2916],[10,2917,10,2919],[10,2920,10,2922],[10,2869,10,2871],[10,2872,10,2874],[10,2875,10,2877],[10,2884,10,2886],[10,2887,10,2889],[10,2890,10,2892],[10,3019,10,3021],[10,3022,10,3024],[10,3025,10,3027],[10,3034,10,3036],[10,3037,10,3039],[10,3040,10,3042],[10,2989,10,2991],[10,2992,10,2994],[10,2995,10,2997],[10,3004,10,3006],[10,3007,10,3009],[10,3010,10,3012],[10,2959,10,2961],[10,2962,10,2964],[10,2965,10,2967],[10,2974,10,2976],[10,2977,10,2979],[10,2980,10,2982],[10,3109,10,3111],[10,3112,10,3114],[10,3115,10,3117],[10,3124,10,3126],[10,3127,10,3129],[10,3130,10,3132],[10,3079,10,3081],[10,3082,10,3084],[10,3085,10,3087],[10,3094,10,3096],[10,3097,10,3099],[10,3100,10,3102],[10,3049,10,3051],[10,3052,10,3054],[10,3055,10,3057],[10,3064,10,3066],[10,3067,10,3069],[10,3070,10,3072],[10,3199,10,3201],[10,3202,10,3204],[10,3205,10,3207],[10,3214,10,3216],[10,3217,10,3219],[10,3220,10,3222],[10,3169,10,3171],[10,3172,10,3174],[10,3175,10,3177],[10,3184,10,3186],[10,3187,10,3189],[10,3190,10,3192],[10,3139,10,3141],[10,3142,10,3144],[10,3145,10,3147],[10,3154,10,3156],[10,3157,10,3159],[10,3160,10,3162],[10,3289,10,3291],[10,3292,10,3294],[10,3295,10,3297],[10,3304,10,3306],[10,3307,10,3309],[10,3310,10,3312],[10,3259,10,3261],[10,3262,10,3264],[10,3265,10,3267],[10,3274,10,3276],[10,3277,10,3279],[10,3280,10,3282],[10,3229,10,3231],[10,3232,10,3234],[10,3235,10,3237],[10,3244,10,3246],[10,3247,10,3249],[10,3250,10,3252],[10,3379,10,3381],[10,3382,10,3384],[10,3385,10,3387],[10,3394,10,3396],[10,3397,10,3399],[10,3400,10,3402],[10,3349,10,3351],[10,3352,10,3354],[10,3355,10,3357],[10,3364,10,3366],[10,3367,10,3369],[10,3370,10,3372],[10,3319,10,3321],[10,3322,10,3324],[10,3325,10,3327],[10,3334,10,3336],[10,3337,10,3339],[10,3340,10,3342],[10,3469,10,3471],[10,3472,10,3474],[10,3475,10,3477],[10,3484,10,3486],[10,3487,10,3489],[10,3490,10,3492],[10,3439,10,3441],[10,3442,10,3444],[10,3445,10,3447],[10,3454,10,3456],[10,3457,10,3459],[10,3460,10,3462],[10,3409,10,3411],[10,3412,10,3414],[10,3415,10,3417],[10,3424,10,3426],[10,3427,10,3429],[10,3430,10,3432],[10,3559,10,3561],[10,3562,10,3564],[10,3565,10,3567],[10,3574,10,3576],[10,3577,10,3579],[10,3580,10,3582],[10,3529,10,3531],[10,3532,10,3534],[10,3535,10,3537],[10,3544,10,3546],[10,3547,10,3549],[10,3550,10,3552],[10,3499,10,3501],[10,3502,10,3504],[10,3505,10,3507],[10,3514,10,3516],[10,3517,10,3519],[10,3520,10,3522],[10,3649,10,3651],[10,3652,10,3654],[10,3655,10,3657],[10,3664,10,3666],[10,3667,10,3669],[10,3670,10,3672],[10,3619,10,3621],[10,3622,10,3624],[10,3625,10,3627],[10,3634,10,3636],[10,3637,10,3639],[10,3640,10,3642],[10,3589,10,3591],[10,3592,10,3594],[10,3595,10,3597],[10,3604,10,3606],[10,3607,10,3609],[10,3610,10,3612],[10,3739,10,3741],[10,3742,10,3744],[10,3745,10,3747],[10,3754,10,3756],[10,3757,10,3759],[10,3760,10,3762],[10,3709,10,3711],[10,3712,10,3714],[10,3715,10,3717],[10,3724,10,3726],[10,3727,10,3729],[10,3730,10,3732],[10,3679,10,3681],[10,3682,10,3684],[10,3685,10,3687],[10,3694,10,3696],[10,3697,10,3699],[10,3700,10,3702],[10,3829,10,3831],[10,3832,10,3834],[10,3835,10,3837],[10,3844,10,3846],[10,3847,10,3849],[10,3850,10,3852],[10,3799,10,3801],[10,3802,10,3804],[10,3805,10,3807],[10,3814,10,3816],[10,3817,10,3819],[10,3820,10,3822],[10,3769,10,3771],[10,3772,10,3774],[10,3775,10,3777],[10,3784,10,3786],[10,3787,10,3789],[10,3790,10,3792],[10,3919,10,3921],[10,3922,10,3924],[10,3925,10,3927],[10,3934,10,3936],[10,3937,10,3939],[10,3940,10,3942],[10,3889,10,3891],[10,3892,10,3894],[10,3895,10,3897],[10,3904,10,3906],[10,3907,10,3909],[10,3910,10,3912],[10,3859,10,3861],[10,3862,10,3864],[10,3865,10,3867],[10,3874,10,3876],[10,3877,10,3879],[10,3880,10,3882],[10,4009,10,4011],[10,4012,10,4014],[10,4015,10,4017],[10,4024,10,4026],[10,4027,10,4029],[10,4030,10,4032],[10,3979,10,3981],[10,3982,10,3984],[10,3985,10,3987],[10,3994,10,3996],[10,3997,10,3999],[10,4000,10,4002],[10,3949,10,3951],[10,3952,10,3954],[10,3955,10,3957],[10,3964,10,3966],[10,3967,10,3969],[10,3970,10,3972],[10,4099,10,4101],[10,4102,10,4104],[10,4105,10,4107],[10,4114,10,4116],[10,4117,10,4119],[10,4120,10,4122],[10,4069,10,4071],[10,4072,10,4074],[10,4075,10,4077],[10,4084,10,4086],[10,4087,10,4089],[10,4090,10,4092],[10,4039,10,4041],[10,4042,10,4044],[10,4045,10,4047],[10,4054,10,4056],[10,4057,10,4059],[10,4060,10,4062],[10,4189,10,4191],[10,4192,10,4194],[10,4195,10,4197],[10,4204,10,4206],[10,4207,10,4209],[10,4210,10,4212],[10,4159,10,4161],[10,4162,10,4164],[10,4165,10,4167],[10,4174,10,4176],[10,4177,10,4179],[10,4180,10,4182],[10,4129,10,4131],[10,4132,10,4134],[10,4135,10,4137],[10,4144,10,4146],[10,4147,10,4149],[10,4150,10,4152],[10,4279,10,4281],[10,4282,10,4284],[10,4285,10,4287],[10,4294,10,4296],[10,4297,10,4299],[10,4300,10,4302],[10,4249,10,4251],[10,4252,10,4254],[10,4255,10,4257],[10,4264,10,4266],[10,4267,10,4269],[10,4270,10,4272],[10,4219,10,4221],[10,4222,10,4224],[10,4225,10,4227],[10,4234,10,4236],[10,4237,10,4239],[10,4240,10,4242],[10,4369,10,4371],[10,4372,10,4374],[10,4375,10,4377],[10,4384,10,4386],[10,4387,10,4389],[10,4390,10,4392],[10,4339,10,4341],[10,4342,10,4344],[10,4345,10,4347],[10,4354,10,4356],[10,4357,10,4359],[10,4360,10,4362],[10,4309,10,4311],[10,4312,10,4314],[10,4315,10,4317],[10,4324,10,4326],[10,4327,10,4329],[10,4330,10,4332],[10,4459,10,4461],[10,4462,10,4464],[10,4465,10,4467],[10,4474,10,4476],[10,4477,10,4479],[10,4480,10,4482],[10,4429,10,4431],[10,4432,10,4434],[10,4435,10,4437],[10,4444,10,4446],[10,4447,10,4449],[10,4450,10,4452],[10,4399,10,4401],[10,4402,10,4404],[10,4405,10,4407],[10,4414,10,4416],[10,4417,10,4419],[10,4420,10,4422],[10,4549,10,4551],[10,4552,10,4554],[10,4555,10,4557],[10,4564,10,4566],[10,4567,10,4569],[10,4570,10,4572],[10,4519,10,4521],[10,4522,10,4524],[10,4525,10,4527],[10,4534,10,4536],[10,4537,10,4539],[10,4540,10,4542],[10,4489,10,4491],[10,4492,10,4494],[10,4495,10,4497],[10,4504,10,4506],[10,4507,10,4509],[10,4510,10,4512],[10,4639,10,4641],[10,4642,10,4644],[10,4645,10,4647],[10,4654,10,4656],[10,4657,10,4659],[10,4660,10,4662],[10,4609,10,4611],[10,4612,10,4614],[10,4615,10,4617],[10,4624,10,4626],[10,4627,10,4629],[10,4630,10,4632],[10,4579,10,4581],[10,4582,10,4584],[10,4585,10,4587],[10,4594,10,4596],[10,4597,10,4599],[10,4600,10,4602],[10,4729,10,4731],[10,4732,10,4734],[10,4735,10,4737],[10,4744,10,4746],[10,4747,10,4749],[10,4750,10,4752],[10,4699,10,4701],[10,4702,10,4704],[10,4705,10,4707],[10,4714,10,4716],[10,4717,10,4719],[10,4720,10,4722],[10,4669,10,4671],[10,4672,10,4674],[10,4675,10,4677],[10,4684,10,4686],[10,4687,10,4689],[10,4690,10,4692],[10,4819,10,4821],[10,4822,10,4824],[10,4825,10,4827],[10,4834,10,4836],[10,4837,10,4839],[10,4840,10,4842],[10,4789,10,4791],[10,4792,10,4794],[10,4795,10,4797],[10,4804,10,4806],[10,4807,10,4809],[10,4810,10,4812],[10,4759,10,4761],[10,4762,10,4764],[10,4765,10,4767],[10,4774,10,4776],[10,4777,10,4779],[10,4780,10,4782],[10,4909,10,4911],[10,4912,10,4914],[10,4915,10,4917],[10,4924,10,4926],[10,4927,10,4929],[10,4930,10,4932],[10,4879,10,4881],[10,4882,10,4884],[10,4885,10,4887],[10,4894,10,4896],[10,4897,10,4899],[10,4900,10,4902],[10,4849,10,4851],[10,4852,10,4854],[10,4855,10,4857],[10,4864,10,4866],[10,4867,10,4869],[10,4870,10,4872],[10,4999,10,5001],[10,5002,10,5004],[10,5005,10,5007],[10,5014,10,5016],[10,5017,10,5019],[10,5020,10,5022],[10,4969,10,4971],[10,4972,10,4974],[10,4975,10,4977],[10,4984,10,4986],[10,4987,10,4989],[10,4990,10,4992],[10,4939,10,4941],[10,4942,10,4944],[10,4945,10,4947],[10,4954,10,4956]],"merged_total":3255,"flags":["merged_cut"]}
[{"$f":"'WP FR-16(7)(v)-KW & KWH @Gen'!A1","v":"DUKE ENERGY KENTUCKY, INC."},null,null,null,null,null,null,null,null,null,{"$f":"'WP FR-16(7)(v)-KW & KWH @Gen'!G1","v":"Work Paper FR-16(7)(v) "}]
[{"$f":"coss_type","v":"ELECTRIC COST OF SERVICE STUDY "},null,null,null,null,null,null,null,null,null,{"$f":"'WP FR-16(7)(v)-KW & KWH @Gen'!G2","v":"Witness Responsible:"}]
[{"$f":"case_name","v":"CASE NO: 2019-00271"},null,null,null,null,null,null,null,null,null,{"$f":"PROPER(Witness)","v":"James E. Ziolkowski"}]
[{"$f":"alloc_factors","v":"ALLOCATION FACTORS FOR COST OF SERVICE STUDY"},null,null,null,null,null,null,null,null,null,"Page 39"]
[{"$f":"'WP FR-16(7)(v)-KW & KWH @Gen'!A5","v":"TWELVE MONTHS ENDING DECEMBER 31, 2018"}]
[]
["MONTHLY STATISTICS"]
["RESIDENTIAL - RS RATE GROUP"]
["JANUARY THROUGH DECEMBER, 2016",null,null,null,null,null,null,null,null,null,null,null,null,"KWH","HOURS","KWH/HR","NCD",null,"GROUP ",null,"SYSTEM",null,"DIFFERENCE"]
[]
[null,"NUMBER OF CUSTOMERS",null,"SAMPLE AVG. USAGE","AVERAGE NCP","GROUP COINCIDENT DEMAND",null,"SYSTEM COINCIDENT DEMAND",null,"NCD LOAD FACTOR","GROUP COIN LOAD FACTOR","SYSTEM COIN LOAD FACTOR",null,null,null,null,"AVERAGE KW * POPULATION","LOAD FACTOR","COINCIDENT DEM KW * POPULTION","COIN LOAD FACTOR","COINCIDENT DEM KW * POPULTION","COIN LOAD FACTOR","NCD LOAD FACTOR","GROUP COIN LOAD FACTOR","SYSTEM COIN LOAD FACTOR"]
["DATE","OBSERVED","POPULATION","KWH","KW","KW","DATE-TIME","KW","DATE-TIME"]
[]
[]
["January",160,128648.99999233604,1244.423788759,6.1325049050000002,2.9005967250000002,"01/01/18-22:00",2.5765660229999998,"01/05/18-08:00",27.274541889999998,57.66443177,64.916350069000003,null,{"$f":"C15*D15","v":160093875.99051937},744,{"$f":"N15/O15","v":215179.94084747229},{"$f":"C15*E15","v":788940.62347634579},{"$f":"ROUND(P15/Q15*100,2)","v":27.27},{"$f":"C15*F15","v":373158.868052295},{"$f":"ROUND(P15/S15*100,3)","v":57.664000000000001},{"$f":"C15*H15","v":331472.6422731803},{"$f":"ROUND(P15/U15*100,3)","v":64.915999999999997},{"$f":"J15-R15","v":4.5418899999987161E-3},{"$f":"K15-T15","v":4.3176999999872123E-4},{"$f":"L15-V15","v":3.5006900000666974E-4}]
[]
["February",160,128654.00000179419,974.69807778999996,6.2361953760000004,2.4445316350000001,"02/03/18-11:00",2.3290190009999998,"02/02/18-08:00",23.258468996000001,59.334211402999998,62.277017379999997,null,{"$f":"C17*D17","v":125398806.50174345},672,{"$f":"N17/O17","v":186605.36681807062},{"$f":"C17*E17","v":802311.47991509293},{"$f":"ROUND(P17/Q17*100,2)","v":23.26},{"$f":"C17*F17","v":314498.77297367598},{"$f":"ROUND(P17/S17*100,3)","v":59.334000000000003},{"$f":"C17*H17","v":299637.6105588327},{"$f":"ROUND(P17/U17*100,3)","v":62.277000000000001},{"$f":"J17-R17","v":-1.53100400000028E-3},{"$f":"K17-T17","v":2.1140299999444778E-4},{"$f":"L17-V17","v":1.7379999995625894E-5}]
[]
["March",159,128508.00003463236,870.08240343,4.9013399949999998,1.830599764,"03/08/18-20:00",1.830599764,"03/08/18-20:00",23.860119827999998,63.884286379000002,63.884286379000002,null,{"$f":"C19*D19","v":111812549.53011546},744,{"$f":"N19/O19","v":150285.68485230571},{"$f":"C19*E19","v":629861.40024720493},{"$f":"ROUND(P19/Q19*100,2)","v":23.86},{"$f":"C19*F19","v":235246.71453550999},{"$f":"ROUND(P19/S19*100,3)","v":63.884},{"$f":"C19*H19","v":235246.71453550999},{"$f":"ROUND(P19/U19*100,3)","v":63.884},{"$f":"J19-R19","v":1.198279999989893E-4},{"$f":"K19-T19","v":2.8637900000205718E-4},{"$f":"L19-V19","v":2.8637900000205718E-4}]
[]
["April",160,128450.99996753322,802.61956342500002,5.8204976510000002,1.915743545,"04/16/18-21:00",1.264867934,"04/17/18-11:00",19.152132006999999,58.18886337,88.131682670999993,null,{"$f":"C21*D21","v":103097285.5154462},720,{"$f":"N21/O21","v":143190.6743270086},{"$f":"C21*E21","v":747648.74357962818},{"$f":"ROUND(P21/Q21*100,2)","v":19.149999999999999},{"$f":"C21*F21","v":246079.17403659699},{"$f":"ROUND(P21/S21*100,3)","v":58.189},{"$f":"C21*H21","v":162473.55094916781},{"$f":"ROUND(P21/U21*100,3)","v":88.132000000000005},{"$f":"J21-R21","v":2.1320070000001579E-3},{"$f":"K21-T21","v":-1.3663000000008196E-4},{"$f":"L21-V21","v":-3.1732900001202324E-4}]
[]
["May",159,128331.999999669,907.13633150600003,5.3164793499999998,2.5558964460000002,"05/15/18-18:00",2.3653544869999998,"05/15/18-17:00",22.933772192999999,47.704173019000002,51.546999390000003,null,{"$f":"C23*D23","v":116414619.69452773},744,{"$f":"N23/O23","v":156471.26303027919},{"$f":"C23*E23","v":682274.42794244026},{"$f":"ROUND(P23/Q23*100,2)","v":22.93},{"$f":"C23*F23","v":328003.30270722602},{"$f":"ROUND(P23/S23*100,3)","v":47.704000000000001},{"$f":"C23*H23","v":303550.67202490102},{"$f":"ROUND(P23/U23*100,3)","v":51.546999999999997},{"$f":"J23-R23","v":3.7721929999996462E-3},{"$f":"K23-T23","v":1.7301900000177284E-4},{"$f":"L23-V23","v":-6.0999999362820745E-7}]
[]
["June",160,127996.99998067197,1156.6747350830001,5.8755455200000002,3.194738444,"06/17/18-17:00",2.9604475419999998,"06/19/18-17:00",27.342017556999998,50.285577865999997,54.265196899000003,null,{"$f":"C25*D25","v":148050896.04406253},720,{"$f":"N25/O25","v":205626.24450564239},{"$f":"C25*E25","v":752052.19980987732},{"$f":"ROUND(P25/Q25*100,2)","v":27.34},{"$f":"C25*F25","v":408916.93655491999},{"$f":"ROUND(P25/S25*100,3)","v":50.286000000000001},{"$f":"C25*H25","v":378928.40397615434},{"$f":"ROUND(P25/U25*100,3)","v":54.265000000000001},{"$f":"J25-R25","v":2.0175569999985044E-3},{"$f":"K25-T25","v":-4.2213400000434831E-4},{"$f":"L25-V25","v":1.9689900000230409E-4}]
[]
["July",159,128064.99999125788,1174.1654472340001,5.4858326890000004,2.8154528910000001,"07/14/18-17:00",2.7583232180000001,"07/10/18-17:00",28.768273735000001,56.054191838999998,57.215171675999997,null,{"$f":"C27*D27","v":150369497.98975754},744,{"$f":"N27/O27","v":202109.54030881388},{"$f":"C27*E27","v":702543.16326882725},{"$f":"ROUND(P27/Q27*100,2)","v":28.77},{"$f":"C27*F27","v":360560.97446130199},{"$f":"ROUND(P27/S27*100,3)","v":56.054000000000002},{"$f":"C27*H27","v":353244.66288905643},{"$f":"ROUND(P27/U27*100,3)","v":57.215000000000003},{"$f":"J27-R27","v":-1.7262649999985058E-3},{"$f":"K27-T27","v":1.918389999957526E-4},{"$f":"L27-V27","v":1.7167599999368122E-4}]
[]
["August",160,128279.00002137729,1115.2573414200001,5.6058970979999998,2.7588158470000002,"08/05/18-17:00",2.6339010310000002,"08/28/18-18:00",26.739730979000001,54.334971447000001,56.911849955999998,null,{"$f":"C29*D29","v":143064096.52385736},744,{"$f":"N29/O29","v":192290.45231701256},{"$f":"C29*E29","v":719118.87395418086},{"$f":"ROUND(P29/Q29*100,2)","v":26.74},{"$f":"C29*F29","v":353898.13809628901},{"$f":"ROUND(P29/S29*100,3)","v":54.335000000000001},{"$f":"C29*H29","v":337874.19041195465},{"$f":"ROUND(P29/U29*100,3)","v":56.911999999999999},{"$f":"J29-R29","v":-2.6902099999759344E-4},{"$f":"K29-T29","v":-2.8552999999931217E-5},{"$f":"L29-V29","v":-1.5004400000151463E-4}]
[]
["September",161,128526.99999481613,1000.625720666,5.9945606480000002,3.1420514220000002,"09/03/18-18:00",2.5919408060000002,"09/04/18-16:00",23.183649760000002,44.230910280000003,53.618429175999999,null,{"$f":"C31*D31","v":128607421.99485187},720,{"$f":"N31/O31","v":178621.41943729427},{"$f":"C31*E31","v":770462.89637442096},{"$f":"ROUND(P31/Q31*100,2)","v":23.18},{"$f":"C31*F31","v":403838.44309910602},{"$f":"ROUND(P31/S31*100,3)","v":44.231000000000002},{"$f":"C31*H31","v":333134.37595932576},{"$f":"ROUND(P31/U31*100,3)","v":53.618000000000002},{"$f":"J31-R31","v":3.6497600000018338E-3},{"$f":"K31-T31","v":-8.9719999998294497E-5},{"$f":"L31-V31","v":4.2917599999725553E-4}]
[]
["October",161,128789.00000356771,831.58575654799995,6.004686392,2.4704849370000002,"10/07/18-18:00",2.055875264,"10/08/18-15:00",18.614174297000002,45.243052255999999,54.367247401999997,null,{"$f":"C33*D33","v":107099098.00302722},744,{"$f":"N33/O33","v":143950.40054170325},{"$f":"C33*E33","v":773337.55576071097},{"$f":"ROUND(P33/Q33*100,2)","v":18.61},{"$f":"C33*F33","v":318171.28456010699},{"$f":"ROUND(P33/S33*100,3)","v":45.243000000000002},{"$f":"C33*H33","v":264774.11938263074},{"$f":"ROUND(P33/U33*100,3)","v":54.366999999999997},{"$f":"J33-R33","v":4.1742970000022694E-3},{"$f":"K33-T33","v":5.2255999996475566E-5},{"$f":"L33-V33","v":2.4740199999939705E-4}]
[]
["November",162,128808.99999181343,927.76263502300003,5.8053218600000003,2.4331321890000002,"11/27/18-20:00",2.226022081,"11/27/18-19:00",22.196171830000001,52.958865992,57.886183004999999,null,{"$f":"C35*D35","v":119504177.24708241},720,{"$f":"N35/O35","v":165978.02395428112},{"$f":"C35*E35","v":747777.70341721433},{"$f":"ROUND(P35/Q35*100,2)","v":22.2},{"$f":"C35*F35","v":313409.32411298202},{"$f":"ROUND(P35/S35*100,3)","v":52.959000000000003},{"$f":"C35*H35","v":286731.67821330548},{"$f":"ROUND(P35/U35*100,3)","v":57.886000000000003},{"$f":"J35-R35","v":-3.8281699999984653E-3},{"$f":"K35-T35","v":-1.3400800000340496E-4},{"$f":"L35-V35","v":1.8300499999668318E-4}]
[]
["December",161,129037.00002590912,1112.4852670079999,6.1887931170000003,2.3155556329999998,"12/09/18-22:00",2.165747707,"12/11/18-08:00",24.161025716000001,64.575252474999999,69.042016834999998,null,{"$f":"C37*D37","v":143551761.42773479},744,{"$f":"N37/O37","v":192945.91589749299},{"$f":"C37*E37","v":798583.29759867524},{"$f":"ROUND(P37/Q37*100,2)","v":24.16},{"$f":"C37*F37","v":298792.35227541497},{"$f":"ROUND(P37/S37*100,3)","v":64.575000000000003},{"$f":"C37*H37","v":279461.5869242716},{"$f":"ROUND(P37/U37*100,3)","v":69.042000000000002},{"$f":"J37-R37","v":1.025716000000898E-3},{"$f":"K37-T37","v":2.5247499999636602E-4},{"$f":"L37-V37","v":1.683499999671767E-5}]
[]
[]
["Note:  All hours are in EST"]
[]
[]
[]
[]
[]
[]
[]
[]
[]
[]
[]
[]
[]
[]
[]
[]
[]
[]
[]
[]
[]
[]
[]
[]
[]
[]
[]
[]
[]
[]
[]
[]
[]
[]
[]
[]
[]
[]
[]
[]
[]
[]
[]
[]
[]
[]
[]
[]
[]
[]
[]
[]
[]
[]
[]
[]
[]
[]
[]
[]
[]
[]
[]
[]
[]
[]
[]
[]
[]
[]
[]
[]
[]
[]
[]
[]
[]
[]
[]
[]
[]
[]
[]
[]
[]
[]
[]
[]
[]
[]
[]
[]
[]
[]
[]
[]
[]
[]
[]
[]
[]
[]
[]
[]
[]
[]
[]
[]
[]
[]
[]
[]
[]
[]
[]
[]
[]
[]
[]
[]
[]
[]
[]
[]
[]
[]
[]
[]
[]
[]
[]
[]
[]
[]
[]
[]
[]
[]
[]
[]
[]
[]
[]
[]
[]
[]
[]
[]
[]
[]
[]
[]
[]
[]
[]
[]
[]
[]
[]
[]
[]
[]
[]
[]
[]
[]
[]
[]
[]
[]
[]
[]
[]
[]
[]
[]
[]
[]
[]
[]
[]
[]
[]
[]
[]
[]
[]
[]
[]
[]
[]
[]
[]
[]
[]
[]
[]
[]
[]
[]
[]
[]
[]
[]
[]
[]
[]
[]
[]
[]
[]
[]
[]
[]
[]
[]
[]
[]
[]
[]
[]
[]
[]
[]
[]
[]
[]
[]
[]
[]
[]
[]
[]
[]
[]
[]
[]
[]
[]
[]
[]
[]
[]
[]
[]
[]
[]
[]
[]
[]
[]
[]
[]
[]
[]
[]
[]
[]
[]
[]
[]
[]
[]
[]
[]
[]
[]
[]
[]
[]
[]
[]
[]
[]
[]
[]
[]
[]
[]
[]
[]
[]
[]
[]
[]
[]
[]
[]
[]
[]
[]
[]
[]
[]
[]
[]
[]
[]
[]
[]
[]
[]
[]
[]
[]
[]
[]
[]
[]
[]
[]
[]
[]
[]
[]
[]
[]
[]
[]
[]
[]
[]
[]
[]
[]
[]
[]
[]
[]
[]
[]
[]
[]
[]
[]
[]
[]
[]
[]
[]
[]
[]
[]
[]
[]
[]
[]
[]
[]
[]
[]
[]
[]
[]
[]
[]
[]
[]
[]
[]
[]
[]
[]
[]
[]
[]
[]
[]
[]
[]
[]
[]
[]
[]
[]
[]
[]
[]
[]
[]
[]
[]
[]
[]
[]
[]
[]
[]
[]
[]
[]
[]
[]
[]
[]
[]
[]
[]
[]
[]
[]
[]
[]
[]
[]
[]
[]
[]
[]
[]
[]
[]
[]
[]
[]
[]
[]
[]
[]
[]
[]
[]
[]
[]
[]
[]
[]
[]
[]
[]
[]
[]
[]
[]
[]
[]
[]
[]
[]
[]
[]
[]
[]
[]
[]
[]
[]
[]
[]
[]
[]
[]
[]
[]
[]
[]
[]
[]
[]
[]
[]
[]
[]
[]
[]
[]
[]
[]
[]
[]
[]
[]
[]
[]
[]
[]
[]
[]
[]
[]
[]
[]
[]
[]
[]
[]
[]
[]
[]
[]
[]
[]
[]
[]
[]
[]
[]
[]
[]
[]
[]
[]
[]
[]
[]
[]
[]
[]
[]
[]
[]
[]
[]
[null,null,null,null,null,null,0]

{"sheet":"WP FR-16(7)(v) LoadRes DS","index":54,"n_rows":554,"n_cols":25,"rows_kept":554,"cut":false,"hidden":false,"merged":[[10,33,10,35],[10,36,10,38],[10,39,10,41],[10,5,10,6],[10,7,10,8],[10,108,10,110],[10,111,10,113],[10,114,10,116],[10,123,10,125],[10,126,10,128],[10,129,10,131],[10,78,10,80],[10,81,10,83],[10,84,10,86],[10,93,10,95],[10,96,10,98],[10,99,10,101],[10,48,10,50],[10,51,10,53],[10,54,10,56],[10,63,10,65],[10,66,10,68],[10,69,10,71],[10,198,10,200],[10,201,10,203],[10,204,10,206],[10,213,10,215],[10,216,10,218],[10,219,10,221],[10,168,10,170],[10,171,10,173],[10,174,10,176],[10,183,10,185],[10,186,10,188],[10,189,10,191],[10,138,10,140],[10,141,10,143],[10,144,10,146],[10,153,10,155],[10,156,10,158],[10,159,10,161],[10,288,10,290],[10,291,10,293],[10,294,10,296],[10,303,10,305],[10,306,10,308],[10,309,10,311],[10,258,10,260],[10,261,10,263],[10,264,10,266],[10,273,10,275],[10,276,10,278],[10,279,10,281],[10,228,10,230],[10,231,10,233],[10,234,10,236],[10,243,10,245],[10,246,10,248],[10,249,10,251],[10,378,10,380],[10,381,10,383],[10,384,10,386],[10,393,10,395],[10,396,10,398],[10,399,10,401],[10,348,10,350],[10,351,10,353],[10,354,10,356],[10,363,10,365],[10,366,10,368],[10,369,10,371],[10,318,10,320],[10,321,10,323],[10,324,10,326],[10,333,10,335],[10,336,10,338],[10,339,10,341],[10,468,10,470],[10,471,10,473],[10,474,10,476],[10,483,10,485],[10,486,10,488],[10,489,10,491],[10,438,10,440],[10,441,10,443],[10,444,10,446],[10,453,10,455],[10,456,10,458],[10,459,10,461],[10,408,10,410],[10,411,10,413],[10,414,10,416],[10,423,10,425],[10,426,10,428],[10,429,10,431],[10,558,10,560],[10,561,10,563],[10,564,10,566],[10,573,10,575],[10,576,10,578],[10,579,10,581],[10,528,10,530],[10,531,10,533],[10,534,10,536],[10,543,10,545],[10,546,10,548],[10,549,10,551],[10,498,10,500],[10,501,10,503],[10,504,10,506],[10,513,10,515],[10,516,10,518],[10,519,10,521],[10,648,10,650],[10,651,10,653],[10,654,10,656],[10,663,10,665],[10,666,10,668],[10,669,10,671],[10,618,10,620],[10,621,10,623],[10,624,10,626],[10,633,10,635],[10,636,10,638],[10,639,10,641],[10,588,10,590],[10,591,10,593],[10,594,10,596],[10,603,10,605],[10,606,10,608],[10,609,10,611],[10,738,10,740],[10,741,10,743],[10,744,10,746],[10,753,10,755],[10,756,10,758],[10,759,10,761],[10,708,10,710],[10,711,10,713],[10,714,10,716],[10,723,10,725],[10,726,10,728],[10,729,10,731],[10,678,10,680],[10,681,10,683],[10,684,10,686],[10,693,10,695],[10,696,10,698],[10,699,10,701],[10,828,10,830],[10,831,10,833],[10,834,10,836],[10,843,10,845],[10,846,10,848],[10,849,10,851],[10,798,10,800],[10,801,10,803],[10,804,10,806],[10,813,10,815],[10,816,10,818],[10,819,10,821],[10,768,10,770],[10,771,10,773],[10,774,10,776],[10,783,10,785],[10,786,10,788],[10,789,10,791],[10,918,10,920],[10,921,10,923],[10,924,10,926],[10,933,10,935],[10,936,10,938],[10,939,10,941],[10,888,10,890],[10,891,10,893],[10,894,10,896],[10,903,10,905],[10,906,10,908],[10,909,10,911],[10,858,10,860],[10,861,10,863],[10,864,10,866],[10,873,10,875],[10,876,10,878],[10,879,10,881],[10,1008,10,1010],[10,1011,10,1013],[10,1014,10,1016],[10,1023,10,1025],[10,1026,10,1028],[10,1029,10,1031],[10,978,10,980],[10,981,10,983],[10,984,10,986],[10,993,10,995],[10,996,10,998],[10,999,10,1001],[10,948,10,950],[10,951,10,953],[10,954,10,956],[10,963,10,965],[10,966,10,968],[10,969,10,971],[10,1098,10,1100],[10,1101,10,1103],[10,1104,10,1106],[10,1113,10,1115],[10,1116,10,1118],[10,1119,10,1121],[10,1068,10,1070],[10,1071,10,1073],[10,1074,10,1076],[10,1083,10,1085],[10,1086,10,1088],[10,1089,10,1091],[10,1038,10,1040],[10,1041,10,1043],[10,1044,10,1046],[10,1053,10,1055],[10,1056,10,1058],[10,1059,10,1061],[10,1188,10,1190],[10,1191,10,1193],[10,1194,10,1196],[10,1203,10,1205],[10,1206,10,1208],[10,1209,10,1211],[10,1158,10,1160],[10,1161,10,1163],[10,1164,10,1166],[10,1173,10,1175],[10,1176,10,1178],[10,1179,10,1181],[10,1128,10,1130],[10,1131,10,1133],[10,1134,10,1136],[10,1143,10,1145],[10,1146,10,1148],[10,1149,10,1151],[10,1278,10,1280],[10,1281,10,1283],[10,1284,10,1286],[10,1293,10,1295],[10,1296,10,1298],[10,1299,10,1301],[10,1248,10,1250],[10,1251,10,1253],[10,1254,10,1256],[10,1263,10,1265],[10,1266,10,1268],[10,1269,10,1271],[10,1218,10,1220],[10,1221,10,1223],[10,1224,10,1226],[10,1233,10,1235],[10,1236,10,1238],[10,1239,10,1241],[10,1368,10,1370],[10,1371,10,1373],[10,1374,10,1376],[10,1383,10,1385],[10,1386,10,1388],[10,1389,10,1391],[10,1338,10,1340],[10,1341,10,1343],[10,1344,10,1346],[10,1353,10,1355],[10,1356,10,1358],[10,1359,10,1361],[10,1308,10,1310],[10,1311,10,1313],[10,1314,10,1316],[10,1323,10,1325],[10,1326,10,1328],[10,1329,10,1331],[10,1458,10,1460],[10,1461,10,1463],[10,1464,10,1466],[10,1473,10,1475],[10,1476,10,1478],[10,1479,10,1481],[10,1428,10,1430],[10,1431,10,1433],[10,1434,10,1436],[10,1443,10,1445],[10,1446,10,1448],[10,1449,10,1451],[10,1398,10,1400],[10,1401,10,1403],[10,1404,10,1406],[10,1413,10,1415],[10,1416,10,1418],[10,1419,10,1421],[10,1548,10,1550],[10,1551,10,1553],[10,1554,10,1556],[10,1563,10,1565],[10,1566,10,1568],[10,1569,10,1571],[10,1518,10,1520],[10,1521,10,1523],[10,1524,10,1526],[10,1533,10,1535],[10,1536,10,1538],[10,1539,10,1541],[10,1488,10,1490],[10,1491,10,1493],[10,1494,10,1496],[10,1503,10,1505],[10,1506,10,1508],[10,1509,10,1511],[10,1638,10,1640],[10,1641,10,1643],[10,1644,10,1646],[10,1653,10,1655],[10,1656,10,1658],[10,1659,10,1661],[10,1608,10,1610],[10,1611,10,1613],[10,1614,10,1616],[10,1623,10,1625],[10,1626,10,1628],[10,1629,10,1631],[10,1578,10,1580],[10,1581,10,1583],[10,1584,10,1586],[10,1593,10,1595],[10,1596,10,1598],[10,1599,10,1601],[10,1728,10,1730],[10,1731,10,1733],[10,1734,10,1736],[10,1743,10,1745],[10,1746,10,1748],[10,1749,10,1751],[10,1698,10,1700],[10,1701,10,1703],[10,1704,10,1706],[10,1713,10,1715],[10,1716,10,1718],[10,1719,10,1721],[10,1668,10,1670],[10,1671,10,1673],[10,1674,10,1676],[10,1683,10,1685],[10,1686,10,1688],[10,1689,10,1691],[10,1818,10,1820],[10,1821,10,1823],[10,1824,10,1826],[10,1833,10,1835],[10,1836,10,1838],[10,1839,10,1841],[10,1788,10,1790],[10,1791,10,1793],[10,1794,10,1796],[10,1803,10,1805],[10,1806,10,1808],[10,1809,10,1811],[10,1758,10,1760],[10,1761,10,1763],[10,1764,10,1766],[10,1773,10,1775],[10,1776,10,1778],[10,1779,10,1781],[10,1908,10,1910],[10,1911,10,1913],[10,1914,10,1916],[10,1923,10,1925],[10,1926,10,1928],[10,1929,10,1931],[10,1878,10,1880],[10,1881,10,1883],[10,1884,10,1886],[10,1893,10,1895],[10,1896,10,1898],[10,1899,10,1901],[10,1848,10,1850],[10,1851,10,1853],[10,1854,10,1856],[10,1863,10,1865],[10,1866,10,1868],[10,1869,10,1871],[10,1998,10,2000],[10,2001,10,2003],[10,2004,10,2006],[10,2013,10,2015],[10,2016,10,2018],[10,2019,10,2021],[10,1968,10,1970],[10,1971,10,1973],[10,1974,10,1976],[10,1983,10,1985],[10,1986,10,1988],[10,1989,10,1991],[10,1938,10,1940],[10,1941,10,1943],[10,1944,10,1946],[10,1953,10,1955],[10,1956,10,1958],[10,1959,10,1961],[10,2088,10,2090],[10,2091,10,2093],[10,2094,10,2096],[10,2103,10,2105],[10,2106,10,2108],[10,2109,10,2111],[10,2058,10,2060],[10,2061,10,2063],[10,2064,10,2066],[10,2073,10,2075],[10,2076,10,2078],[10,2079,10,2081],[10,2028,10,2030],[10,2031,10,2033],[10,2034,10,2036],[10,2043,10,2045],[10,2046,10,2048],[10,2049,10,2051],[10,2178,10,2180],[10,2181,10,2183],[10,2184,10,2186],[10,2193,10,2195],[10,2196,10,2198],[10,2199,10,2201],[10,2148,10,2150],[10,2151,10,2153],[10,2154,10,2156],[10,2163,10,2165],[10,2166,10,2168],[10,2169,10,2171],[10,2118,10,2120],[10,2121,10,2123],[10,2124,10,2126],[10,2133,10,2135],[10,2136,10,2138],[10,2139,10,2141],[10,2268,10,2270],[10,2271,10,2273],[10,2274,10,2276],[10,2283,10,2285],[10,2286,10,2288],[10,2289,10,2291],[10,2238,10,2240],[10,2241,10,2243],[10,2244,10,2246],[10,2253,10,2255],[10,2256,10,2258],[10,2259,10,2261],[10,2208,10,2210],[10,2211,10,2213],[10,2214,10,2216],[10,2223,10,2225],[10,2226,10,2228],[10,2229,10,2231],[10,2358,10,2360],[10,2361,10,2363],[10,2364,10,2366],[10,2373,10,2375],[10,2376,10,2378],[10,2379,10,2381],[10,2328,10,2330],[10,2331,10,2333],[10,2334,10,2336],[10,2343,10,2345],[10,2346,10,2348],[10,2349,10,2351],[10,2298,10,2300],[10,2301,10,2303],[10,2304,10,2306],[10,2313,10,2315],[10,2316,10,2318],[10,2319,10,2321],[10,2448,10,2450],[10,2451,10,2453],[10,2454,10,2456],[10,2463,10,2465],[10,2466,10,2468],[10,2469,10,2471],[10,2418,10,2420],[10,2421,10,2423],[10,2424,10,2426],[10,2433,10,2435],[10,2436,10,2438],[10,2439,10,2441],[10,2388,10,2390],[10,2391,10,2393],[10,2394,10,2396],[10,2403,10,2405],[10,2406,10,2408],[10,2409,10,2411],[10,2538,10,2540],[10,2541,10,2543],[10,2544,10,2546],[10,2553,10,2555],[10,2556,10,2558],[10,2559,10,2561],[10,2508,10,2510],[10,2511,10,2513],[10,2514,10,2516],[10,2523,10,2525],[10,2526,10,2528],[10,2529,10,2531],[10,2478,10,2480],[10,2481,10,2483],[10,2484,10,2486],[10,2493,10,2495],[10,2496,10,2498],[10,2499,10,2501],[10,2628,10,2630],[10,2631,10,2633],[10,2634,10,2636],[10,2643,10,2645],[10,2646,10,2648],[10,2649,10,2651],[10,2598,10,2600],[10,2601,10,2603],[10,2604,10,2606],[10,2613,10,2615],[10,2616,10,2618],[10,2619,10,2621],[10,2568,10,2570],[10,2571,10,2573],[10,2574,10,2576],[10,2583,10,2585],[10,2586,10,2588],[10,2589,10,2591],[10,2718,10,2720],[10,2721,10,2723],[10,2724,10,2726],[10,2733,10,2735],[10,2736,10,2738],[10,2739,10,2741],[10,2688,10,2690],[10,2691,10,2693],[10,2694,10,2696],[10,2703,10,2705],[10,2706,10,2708],[10,2709,10,2711],[10,2658,10,2660],[10,2661,10,2663],[10,2664,10,2666],[10,2673,10,2675],[10,2676,10,2678],[10,2679,10,2681],[10,2808,10,2810],[10,2811,10,2813],[10,2814,10,2816],[10,2823,10,2825],[10,2826,10,2828],[10,2829,10,2831],[10,2778,10,2780],[10,2781,10,2783],[10,2784,10,2786],[10,2793,10,2795],[10,2796,10,2798],[10,2799,10,2801],[10,2748,10,2750],[10,2751,10,2753],[10,2754,10,2756],[10,2763,10,2765],[10,2766,10,2768],[10,2769,10,2771],[10,2898,10,2900],[10,2901,10,2903],[10,2904,10,2906],[10,2913,10,2915],[10,2916,10,2918],[10,2919,10,2921],[10,2868,10,2870],[10,2871,10,2873],[10,2874,10,2876],[10,2883,10,2885],[10,2886,10,2888],[10,2889,10,2891],[10,2838,10,2840],[10,2841,10,2843],[10,2844,10,2846],[10,2853,10,2855],[10,2856,10,2858],[10,2859,10,2861],[10,2988,10,2990],[10,2991,10,2993],[10,2994,10,2996],[10,3003,10,3005],[10,3006,10,3008],[10,3009,10,3011],[10,2958,10,2960],[10,2961,10,2963],[10,2964,10,2966],[10,2973,10,2975],[10,2976,10,2978],[10,2979,10,2981],[10,2928,10,2930],[10,2931,10,2933],[10,2934,10,2936],[10,2943,10,2945],[10,2946,10,2948],[10,2949,10,2951],[10,3078,10,3080],[10,3081,10,3083],[10,3084,10,3086],[10,3093,10,3095],[10,3096,10,3098],[10,3099,10,3101],[10,3048,10,3050],[10,3051,10,3053],[10,3054,10,3056],[10,3063,10,3065],[10,3066,10,3068],[10,3069,10,3071],[10,3018,10,3020],[10,3021,10,3023],[10,3024,10,3026],[10,3033,10,3035],[10,3036,10,3038],[10,3039,10,3041],[10,3168,10,3170],[10,3171,10,3173],[10,3174,10,3176],[10,3183,10,3185],[10,3186,10,3188],[10,3189,10,3191],[10,3138,10,3140],[10,3141,10,3143],[10,3144,10,3146],[10,3153,10,3155],[10,3156,10,3158],[10,3159,10,3161],[10,3108,10,3110],[10,3111,10,3113],[10,3114,10,3116],[10,3123,10,3125],[10,3126,10,3128],[10,3129,10,3131],[10,3258,10,3260],[10,3261,10,3263],[10,3264,10,3266],[10,3273,10,3275],[10,3276,10,3278],[10,3279,10,3281],[10,3228,10,3230],[10,3231,10,3233],[10,3234,10,3236],[10,3243,10,3245],[10,3246,10,3248],[10,3249,10,3251],[10,3198,10,3200],[10,3201,10,3203],[10,3204,10,3206],[10,3213,10,3215],[10,3216,10,3218],[10,3219,10,3221],[10,3348,10,3350],[10,3351,10,3353],[10,3354,10,3356],[10,3363,10,3365],[10,3366,10,3368],[10,3369,10,3371],[10,3318,10,3320],[10,3321,10,3323],[10,3324,10,3326],[10,3333,10,3335],[10,3336,10,3338],[10,3339,10,3341],[10,3288,10,3290],[10,3291,10,3293],[10,3294,10,3296],[10,3303,10,3305],[10,3306,10,3308],[10,3309,10,3311],[10,3438,10,3440],[10,3441,10,3443],[10,3444,10,3446],[10,3453,10,3455],[10,3456,10,3458],[10,3459,10,3461],[10,3408,10,3410],[10,3411,10,3413],[10,3414,10,3416],[10,3423,10,3425],[10,3426,10,3428],[10,3429,10,3431],[10,3378,10,3380],[10,3381,10,3383],[10,3384,10,3386],[10,3393,10,3395],[10,3396,10,3398],[10,3399,10,3401],[10,3528,10,3530],[10,3531,10,3533],[10,3534,10,3536],[10,3543,10,3545],[10,3546,10,3548],[10,3549,10,3551],[10,3498,10,3500],[10,3501,10,3503],[10,3504,10,3506],[10,3513,10,3515],[10,3516,10,3518],[10,3519,10,3521],[10,3468,10,3470],[10,3471,10,3473],[10,3474,10,3476],[10,3483,10,3485],[10,3486,10,3488],[10,3489,10,3491],[10,3618,10,3620],[10,3621,10,3623],[10,3624,10,3626],[10,3633,10,3635],[10,3636,10,3638],[10,3639,10,3641],[10,3588,10,3590],[10,3591,10,3593],[10,3594,10,3596],[10,3603,10,3605],[10,3606,10,3608],[10,3609,10,3611],[10,3558,10,3560],[10,3561,10,3563],[10,3564,10,3566],[10,3573,10,3575],[10,3576,10,3578],[10,3579,10,3581],[10,3708,10,3710],[10,3711,10,3713],[10,3714,10,3716],[10,3723,10,3725],[10,3726,10,3728],[10,3729,10,3731],[10,3678,10,3680],[10,3681,10,3683],[10,3684,10,3686],[10,3693,10,3695],[10,3696,10,3698],[10,3699,10,3701],[10,3648,10,3650],[10,3651,10,3653],[10,3654,10,3656],[10,3663,10,3665],[10,3666,10,3668],[10,3669,10,3671],[10,3798,10,3800],[10,3801,10,3803],[10,3804,10,3806],[10,3813,10,3815],[10,3816,10,3818],[10,3819,10,3821],[10,3768,10,3770],[10,3771,10,3773],[10,3774,10,3776],[10,3783,10,3785],[10,3786,10,3788],[10,3789,10,3791],[10,3738,10,3740],[10,3741,10,3743],[10,3744,10,3746],[10,3753,10,3755],[10,3756,10,3758],[10,3759,10,3761],[10,3888,10,3890],[10,3891,10,3893],[10,3894,10,3896],[10,3903,10,3905],[10,3906,10,3908],[10,3909,10,3911],[10,3858,10,3860],[10,3861,10,3863],[10,3864,10,3866],[10,3873,10,3875],[10,3876,10,3878],[10,3879,10,3881],[10,3828,10,3830],[10,3831,10,3833],[10,3834,10,3836],[10,3843,10,3845],[10,3846,10,3848],[10,3849,10,3851],[10,3978,10,3980],[10,3981,10,3983],[10,3984,10,3986],[10,3993,10,3995],[10,3996,10,3998],[10,3999,10,4001],[10,3948,10,3950],[10,3951,10,3953],[10,3954,10,3956],[10,3963,10,3965],[10,3966,10,3968],[10,3969,10,3971],[10,3918,10,3920],[10,3921,10,3923],[10,3924,10,3926],[10,3933,10,3935],[10,3936,10,3938],[10,3939,10,3941],[10,4068,10,4070],[10,4071,10,4073],[10,4074,10,4076],[10,4083,10,4085],[10,4086,10,4088],[10,4089,10,4091],[10,4038,10,4040],[10,4041,10,4043],[10,4044,10,4046],[10,4053,10,4055],[10,4056,10,4058],[10,4059,10,4061],[10,4008,10,4010],[10,4011,10,4013],[10,4014,10,4016],[10,4023,10,4025],[10,4026,10,4028],[10,4029,10,4031],[10,4158,10,4160],[10,4161,10,4163],[10,4164,10,4166],[10,4173,10,4175],[10,4176,10,4178],[10,4179,10,4181],[10,4128,10,4130],[10,4131,10,4133],[10,4134,10,4136],[10,4143,10,4145],[10,4146,10,4148],[10,4149,10,4151],[10,4098,10,4100],[10,4101,10,4103],[10,4104,10,4106],[10,4113,10,4115],[10,4116,10,4118],[10,4119,10,4121],[10,4248,10,4250],[10,4251,10,4253],[10,4254,10,4256],[10,4263,10,4265],[10,4266,10,4268],[10,4269,10,4271],[10,4218,10,4220],[10,4221,10,4223],[10,4224,10,4226],[10,4233,10,4235],[10,4236,10,4238],[10,4239,10,4241],[10,4188,10,4190],[10,4191,10,4193],[10,4194,10,4196],[10,4203,10,4205],[10,4206,10,4208],[10,4209,10,4211],[10,4338,10,4340],[10,4341,10,4343],[10,4344,10,4346],[10,4353,10,4355],[10,4356,10,4358],[10,4359,10,4361],[10,4308,10,4310],[10,4311,10,4313],[10,4314,10,4316],[10,4323,10,4325],[10,4326,10,4328],[10,4329,10,4331],[10,4278,10,4280],[10,4281,10,4283],[10,4284,10,4286],[10,4293,10,4295],[10,4296,10,4298],[10,4299,10,4301],[10,4428,10,4430],[10,4431,10,4433],[10,4434,10,4436],[10,4443,10,4445],[10,4446,10,4448],[10,4449,10,4451],[10,4398,10,4400],[10,4401,10,4403],[10,4404,10,4406],[10,4413,10,4415],[10,4416,10,4418],[10,4419,10,4421],[10,4368,10,4370],[10,4371,10,4373],[10,4374,10,4376],[10,4383,10,4385],[10,4386,10,4388],[10,4389,10,4391],[10,4518,10,4520],[10,4521,10,4523],[10,4524,10,4526],[10,4533,10,4535],[10,4536,10,4538],[10,4539,10,4541],[10,4488,10,4490],[10,4491,10,4493],[10,4494,10,4496],[10,4503,10,4505],[10,4506,10,4508],[10,4509,10,4511],[10,4458,10,4460],[10,4461,10,4463],[10,4464,10,4466],[10,4473,10,4475],[10,4476,10,4478],[10,4479,10,4481],[10,4608,10,4610],[10,4611,10,4613],[10,4614,10,4616],[10,4623,10,4625],[10,4626,10,4628],[10,4629,10,4631],[10,4578,10,4580],[10,4581,10,4583],[10,4584,10,4586],[10,4593,10,4595],[10,4596,10,4598],[10,4599,10,4601],[10,4548,10,4550],[10,4551,10,4553],[10,4554,10,4556],[10,4563,10,4565],[10,4566,10,4568],[10,4569,10,4571],[10,4698,10,4700],[10,4701,10,4703],[10,4704,10,4706],[10,4713,10,4715],[10,4716,10,4718],[10,4719,10,4721],[10,4668,10,4670],[10,4671,10,4673],[10,4674,10,4676],[10,4683,10,4685],[10,4686,10,4688],[10,4689,10,4691],[10,4638,10,4640],[10,4641,10,4643],[10,4644,10,4646],[10,4653,10,4655],[10,4656,10,4658],[10,4659,10,4661],[10,4788,10,4790],[10,4791,10,4793],[10,4794,10,4796],[10,4803,10,4805],[10,4806,10,4808],[10,4809,10,4811],[10,4758,10,4760],[10,4761,10,4763],[10,4764,10,4766],[10,4773,10,4775],[10,4776,10,4778],[10,4779,10,4781],[10,4728,10,4730],[10,4731,10,4733],[10,4734,10,4736],[10,4743,10,4745],[10,4746,10,4748],[10,4749,10,4751],[10,4878,10,4880],[10,4881,10,4883],[10,4884,10,4886],[10,4893,10,4895],[10,4896,10,4898],[10,4899,10,4901],[10,4848,10,4850],[10,4851,10,4853],[10,4854,10,4856],[10,4863,10,4865],[10,4866,10,4868],[10,4869,10,4871],[10,4818,10,4820],[10,4821,10,4823],[10,4824,10,4826],[10,4833,10,4835],[10,4836,10,4838],[10,4839,10,4841],[10,4968,10,4970],[10,4971,10,4973],[10,4974,10,4976],[10,4983,10,4985],[10,4986,10,4988],[10,4989,10,4991],[10,4938,10,4940],[10,4941,10,4943],[10,4944,10,4946],[10,4953,10,4955],[10,4956,10,4958],[10,4959,10,4961],[10,4908,10,4910],[10,4911,10,4913],[10,4914,10,4916],[10,4923,10,4925],[10,4926,10,4928],[10,4929,10,4931],[10,5058,10,5060],[10,5061,10,5063],[10,5064,10,5066],[10,5073,10,5075],[10,5076,10,5078]],"merged_total":3266,"flags":["merged_cut"]}
[{"$f":"'WP FR-16(7)(v)-KW & KWH @Gen'!A1","v":"DUKE ENERGY KENTUCKY, INC."},null,null,null,null,null,null,null,null,null,{"$f":"'WP FR-16(7)(v)-KW & KWH @Gen'!G1","v":"Work Paper FR-16(7)(v) "}]
[{"$f":"coss_type","v":"ELECTRIC COST OF SERVICE STUDY "},null,null,null,null,null,null,null,null,null,{"$f":"'WP FR-16(7)(v)-KW & KWH @Gen'!G2","v":"Witness Responsible:"}]
[{"$f":"case_name","v":"CASE NO: 2019-00271"},null,null,null,null,null,null,null,null,null,{"$f":"PROPER(Witness)","v":"James E. Ziolkowski"}]
[{"$f":"alloc_factors","v":"ALLOCATION FACTORS FOR COST OF SERVICE STUDY"},null,null,null,null,null,null,null,null,null,"Page 40"]
[{"$f":"'WP FR-16(7)(v)-KW & KWH @Gen'!A5","v":"TWELVE MONTHS ENDING DECEMBER 31, 2018"}]
[]
["MONTHLY STATISTICS"]
["DISTRIBUTION SECONDARY - SMALL AND MEDIUM - DS < 500kw RATE GROUP"]
["JANUARY THROUGH DECEMBER, 2016",null,null,null,null,null,null,null,null,null,null,null,null,"KWH","HOURS","KWH/HR","NCD",null,"GROUP ",null,"SYSTEM",null,"DIFFERENCE"]
[]
[null,"NUMBER OF CUSTOMERS",null,"SAMPLE AVG. USAGE","AVERAGE NCP","GROUP COINCIDENT DEMAND",null,"SYSTEM COINCIDENT DEMAND",null,"NCD LOAD FACTOR","GROUP COIN LOAD FACTOR","SYSTEM COIN LOAD FACTOR",null,null,null,null,"AVERAGE KW * POPULATION","LOAD FACTOR","COINCIDENT DEM KW * POPULTION","COIN LOAD FACTOR","COINCIDENT DEM KW * POPULTION","COIN LOAD FACTOR","NCD LOAD FACTOR","GROUP COIN LOAD FACTOR","SYSTEM COIN LOAD FACTOR"]
["DATE","OBSERVED","POPULATION","KWH","KW","KW","DATE-TIME","KW","DATE-TIME"]
[]
[]
["January",353,12943,7401.0016415050613,19.09083501498586,13.81657865887669,"01/05/18-11:00",12.791707636971028,"01/05/18-08:00",52.106588547000001,71.997439431999993,77.765870935999999,null,{"$f":"C15*D15","v":95791164.246000007},744,{"$f":"N15/O15","v":128751.5648467742},{"$f":"C15*E15","v":247092.67759896198},{"$f":"ROUND(P15/Q15*100,2)","v":52.11},{"$f":"C15*F15","v":178827.977581841},{"$f":"ROUND(P15/S15*100,3)","v":71.997},{"$f":"C15*H15","v":165563.07194531601},{"$f":"ROUND(P15/U15*100,3)","v":77.766000000000005},{"$f":"J15-R15","v":-3.4114529999982324E-3},{"$f":"K15-T15","v":4.3943199999318949E-4},{"$f":"L15-V15","v":-1.2906400000645135E-4}]
[]
["February",354,12944,6603.9673952410467,20.484000738462992,13.674327438486095,"02/02/18-11:00",12.426156615445226,"02/02/18-08:00",47.975649672999999,71.867025838000004,79.085856853999999,null,{"$f":"C17*D17","v":85481753.964000106},672,{"$f":"N17/O17","v":127204.9910178573},{"$f":"C17*E17","v":265144.90555866499},{"$f":"ROUND(P17/Q17*100,2)","v":47.98},{"$f":"C17*F17","v":177000.49436376401},{"$f":"ROUND(P17/S17*100,3)","v":71.867000000000004},{"$f":"C17*H17","v":160844.171230323},{"$f":"ROUND(P17/U17*100,3)","v":79.085999999999999},{"$f":"J17-R17","v":-4.3503269999973782E-3},{"$f":"K17-T17","v":2.5837999999112071E-5},{"$f":"L17-V17","v":-1.4314599999920574E-4}]
[]
["March",356,12953,6647.2320461669187,17.888738735954991,12.421448819934225,"03/14/18-11:00",10.306363044256852,"03/08/18-20:00",49.944559015000003,71.927613312000005,86.688695483999993,null,{"$f":"C19*D19","v":86101596.694000095},744,{"$f":"N19/O19","v":115727.95254569905},{"$f":"C19*E19","v":231712.83284682501},{"$f":"ROUND(P19/Q19*100,2)","v":49.94},{"$f":"C19*F19","v":160895.02656460801},{"$f":"ROUND(P19/S19*100,3)","v":71.927999999999997},{"$f":"C19*H19","v":133498.320512259},{"$f":"ROUND(P19/U19*100,3)","v":86.688999999999993},{"$f":"J19-R19","v":4.5590150000052176E-3},{"$f":"K19-T19","v":-3.8668799999186376E-4},{"$f":"L19-V19","v":-3.0451599999992141E-4}]
[]
["April",355,12969,6572.9640386305882,20.407267644759582,13.0679087424675,"04/13/18-14:00",12.67983096870684,"04/17/18-11:00",44.734635126999997,69.859048607000005,71.997148406999997,null,{"$f":"C21*D21","v":85244770.617000103},720,{"$f":"N21/O21","v":118395.51474583348},{"$f":"C21*E21","v":264661.85408488702},{"$f":"ROUND(P21/Q21*100,2)","v":44.73},{"$f":"C21*F21","v":169477.70848106101},{"$f":"ROUND(P21/S21*100,3)","v":69.858999999999995},{"$f":"C21*H21","v":164444.72783315901},{"$f":"ROUND(P21/U21*100,3)","v":71.997},{"$f":"J21-R21","v":4.6351270000002387E-3},{"$f":"K21-T21","v":4.860700001074747E-5},{"$f":"L21-V21","v":1.4840699999751905E-4}]
[]
["May",354,12996,7595.3541174976917,21.217434879125268,16.681188220115267,"05/14/18-14:00",14.719247963960756,"05/15/18-17:00",48.115190906999999,61.199533049000003,69.356867433999994,null,{"$f":"C23*D23","v":98709222.111000001},744,{"$f":"N23/O23","v":132673.68563306451},{"$f":"C23*E23","v":275741.783689112},{"$f":"ROUND(P23/Q23*100,2)","v":48.12},{"$f":"C23*F23","v":216788.72210861801},{"$f":"ROUND(P23/S23*100,3)","v":61.2},{"$f":"C23*H23","v":191291.34653963399},{"$f":"ROUND(P23/U23*100,3)","v":69.356999999999999},{"$f":"J23-R23","v":-4.8090929999986542E-3},{"$f":"K23-T23","v":-4.6695099999993772E-4},{"$f":"L23-V23","v":-1.3256600000488561E-4}]
[]
["June",374,13048,8299.6563430410788,23.557091219111896,18.574761381508893,"06/19/18-14:00",16.77542125051778,"06/19/18-17:00",48.933462833999997,62.058942453,68.715415871000005,null,{"$f":"C25*D25","v":108293915.964},720,{"$f":"N25/O25","v":150408.21661666667},{"$f":"C25*E25","v":307372.92622697202},{"$f":"ROUND(P25/Q25*100,2)","v":48.93},{"$f":"C25*F25","v":242363.48650592804},{"$f":"ROUND(P25/S25*100,3)","v":62.058999999999997},{"$f":"C25*H25","v":218885.69647675601},{"$f":"ROUND(P25/U25*100,3)","v":68.715000000000003},{"$f":"J25-R25","v":3.4628339999969171E-3},{"$f":"K25-T25","v":-5.7546999997271087E-5},{"$f":"L25-V25","v":4.1587100000128885E-4}]
[]
["July",375,13065,8356.57089221569,22.669005531478302,18.013519660507921,"07/05/18-12:00",15.901578671814006,"07/10/18-17:00",49.547608554999996,62.352890137999999,70.634182654,null,{"$f":"C27*D27","v":109178598.70679799},744,{"$f":"N27/O27","v":146745.42836935213},{"$f":"C27*E27","v":296170.55726876401},{"$f":"ROUND(P27/Q27*100,2)","v":49.55},{"$f":"C27*F27","v":235346.63436453597},{"$f":"ROUND(P27/S27*100,3)","v":62.353000000000002},{"$f":"C27*H27","v":207754.12534725},{"$f":"ROUND(P27/U27*100,3)","v":70.634},{"$f":"J27-R27","v":-2.3914450000006582E-3},{"$f":"K27-T27","v":-1.0986200000218105E-4},{"$f":"L27-V27","v":1.8265399999961573E-4}]
[]
["August",374,13059,8383.72440442484,22.24737510658856,17.8651446678385,"08/27/18-14:00",15.135401677159047,"08/28/18-18:00",50.650680029,63.075037956000003,74.450926512999999,null,{"$f":"C29*D29","v":109483056.99738398},744,{"$f":"N29/O29","v":147154.6465018602},{"$f":"C29*E29","v":290528.47151693999},{"$f":"ROUND(P29/Q29*100,2)","v":50.65},{"$f":"C29*F29","v":233300.92421730296},{"$f":"ROUND(P29/S29*100,3)","v":63.075000000000003},{"$f":"C29*H29","v":197653.21050202},{"$f":"ROUND(P29/U29*100,3)","v":74.450999999999993},{"$f":"J29-R29","v":6.8002900000152522E-4},{"$f":"K29-T29","v":3.795599999989463E-5},{"$f":"L29-V29","v":-7.3486999994543112E-5}]
[]
["September",368,13024,7795.822152410934,23.522099792312037,19.01616706403432,"09/04/18-14:00",18.326913356168689,"09/04/18-16:00",46.031310396999999,56.938555129000001,59.07994738,null,{"$f":"C31*D31","v":101532787.713},720,{"$f":"N31/O31","v":141017.76071249999},{"$f":"C31*E31","v":306351.82769507199},{"$f":"ROUND(P31/Q31*100,2)","v":46.03},{"$f":"C31*F31","v":247666.55984198299},{"$f":"ROUND(P31/S31*100,3)","v":56.939},{"$f":"C31*H31","v":238689.71955074099},{"$f":"ROUND(P31/U31*100,3)","v":59.08},{"$f":"J31-R31","v":1.3103969999974652E-3},{"$f":"K31-T31","v":-4.4487099999912516E-4},{"$f":"L31-V31","v":-5.2619999998171352E-5}]
[]
["October",351,12980,6866.774059938366,21.35109268773806,16.242685300454085,"10/08/18-14:00",16.19351334859137,"10/08/18-15:00",43.227459885999998,56.822716540000002,56.995259941999997,null,{"$f":"C33*D33","v":89130727.297999993},744,{"$f":"N33/O33","v":119799.36464784945},{"$f":"C33*E33","v":277137.18308684003},{"$f":"ROUND(P33/Q33*100,2)","v":43.23},{"$f":"C33*F33","v":210830.05519989401},{"$f":"ROUND(P33/S33*100,3)","v":56.823},{"$f":"C33*H33","v":210191.803264716},{"$f":"ROUND(P33/U33*100,3)","v":56.994999999999997},{"$f":"J33-R33","v":-2.5401139999985389E-3},{"$f":"K33-T33","v":-2.8345999999856986E-4},{"$f":"L33-V33","v":2.5994199999956891E-4}]
[]
["November",350,13002,6685.8978500999847,19.176123994377864,13.273741176910628,"11/28/18-13:00",11.491155296979157,"11/27/18-19:00",48.424641178999998,69.957437865000003,80.809709695999999,null,{"$f":"C35*D35","v":86930043.847000003},720,{"$f":"N35/O35","v":120736.17200972223},{"$f":"C35*E35","v":249327.96417490099},{"$f":"ROUND(P35/Q35*100,2)","v":48.42},{"$f":"C35*F35","v":172585.18278219199},{"$f":"ROUND(P35/S35*100,3)","v":69.956999999999994},{"$f":"C35*H35","v":149408.00117132301},{"$f":"ROUND(P35/U35*100,3)","v":80.81},{"$f":"J35-R35","v":4.6411789999964981E-3},{"$f":"K35-T35","v":4.3786500000919659E-4},{"$f":"L35-V35","v":-2.9030400000351619E-4}]
[]
["December",353,12998,7106.4041305642486,19.225535011632022,13.474700507666794,"12/10/18-11:00",12.335827339026313,"12/11/18-08:00",49.681938365999997,70.885571443000003,77.429897424000004,null,{"$f":"C37*D37","v":92369040.889074102},744,{"$f":"N37/O37","v":124151.93667886304},{"$f":"C37*E37","v":249893.50408119304},{"$f":"ROUND(P37/Q37*100,2)","v":49.68},{"$f":"C37*F37","v":175144.157198653},{"$f":"ROUND(P37/S37*100,3)","v":70.885999999999996},{"$f":"C37*H37","v":160341.08375266401},{"$f":"ROUND(P37/U37*100,3)","v":77.430000000000007},{"$f":"J37-R37","v":1.9383659999974157E-3},{"$f":"K37-T37","v":-4.2855699999222452E-4},{"$f":"L37-V37","v":-1.0257600000329603E-4}]
[]
[]
["Note:  All hours are in EST"]
[]
[]
[]
[]
[]
[]
[]
[]
[]
[]
[]
[]
[]
[]
[]
[]
[]
[]
[]
[]
[]
[]
[]
[]
[]
[]
[]
[]
[]
[]
[]
[]
[]
[]
[]
[]
[]
[]
[]
[]
[]
[]
[]
[]
[]
[]
[]
[]
[]
[]
[]
[]
[]
[]
[]
[]
[]
[]
[]
[]
[]
[]
[]
[]
[]
[]
[]
[]
[]
[]
[]
[]
[]
[]
[]
[]
[]
[]
[]
[]
[]
[]
[]
[]
[]
[]
[]
[]
[]
[]
[]
[]
[]
[]
[]
[]
[]
[]
[]
[]
[]
[]
[]
[]
[]
[]
[]
[]
[]
[]
[]
[]
[]
[]
[]
[]
[]
[]
[]
[]
[]
[]
[]
[]
[]
[]
[]
[]
[]
[]
[]
[]
[]
[]
[]
[]
[]
[]
[]
[]
[]
[]
[]
[]
[]
[]
[]
[]
[]
[]
[]
[]
[]
[]
[]
[]
[]
[]
[]
[]
[]
[]
[]
[]
[]
[]
[]
[]
[]
[]
[]
[]
[]
[]
[]
[]
[]
[]
[]
[]
[]
[]
[]
[]
[]
[]
[]
[]
[]
[]
[]
[]
[]
[]
[]
[]
[]
[]
[]
[]
[]
[]
[]
[]
[]
[]
[]
[]
[]
[]
[]
[]
[]
[]
[]
[]
[]
[]
[]
[]
[]
[]
[]
[]
[]
[]
[]
[]
[]
[]
[]
[]
[]
[]
[]
[]
[]
[]
[]
[]
[]
[]
[]
[]
[]
[]
[]
[]
[]
[]
[]
[]
[]
[]
[]
[]
[]
[]
[]
[]
[]
[]
[]
[]
[]
[]
[]
[]
[]
[]
[]
[]
[]
[]
[]
[]
[]
[]
[]
[]
[]
[]
[]
[]
[]
[]
[]
[]
[]
[]
[]
[]
[]
[]
[]
[]
[]
[]
[]
[]
[]
[]
[]
[]
[]
[]
[]
[]
[]
[]
[]
[]
[]
[]
[]
[]
[]
[]
[]
[]
[]
[]
[]
[]
[]
[]
[]
[]
[]
[]
[]
[]
[]
[]
[]
[]
[]
[]
[]
[]
[]
[]
[]
[]
[]
[]
[]
[]
[]
[]
[]
[]
[]
[]
[]
[]
[]
[]
[]
[]
[]
[]
[]
[]
[]
[]
[]
[]
[]
[]
[]
[]
[]
[]
[]
[]
[]
[]
[]
[]
[]
[]
[]
[]
[]
[]
[]
[]
[]
[]
[]
[]
[]
[]
[]
[]
[]
[]
[]
[]
[]
[]
[]
[]
[]
[]
[]
[]
[]
[]
[]
[]
[]
[]
[]
[]
[]
[]
[]
[]
[]
[]
[]
[]
[]
[]
[]
[]
[]
[]
[]
[]
[]
[]
[]
[]
[]
[]
[]
[]
[]
[]
[]
[]
[]
[]
[]
[]
[]
[]
[]
[]
[]
[]
[]
[]
[]
[]
[]
[]
[]
[]
[]
[]
[]
[]
[]
[]
[]
[]
[]
[]
[]
[]
[]
[]
[]
[]
[]
[]
[]
[]
[]
[]
[]
[]
[]
[]
[]
[]
[]
[]
[]
[]
[]
[]
[]
[]
[]
[]
[]
[]
[]
[]
[]
[]
[]
[]
[]
[]
[]
[]
[]
[null,null,null,null,null,null,0]

{"sheet":"WP FR-16(7)(v) LoadRes DS_LG","index":55,"n_rows":554,"n_cols":25,"rows_kept":554,"cut":false,"hidden":false,"merged":[[10,46,10,48],[10,49,10,51],[10,52,10,54],[10,61,10,63],[10,64,10,66],[10,67,10,69],[10,5,10,6],[10,7,10,8],[10,136,10,138],[10,139,10,141],[10,142,10,144],[10,151,10,153],[10,154,10,156],[10,157,10,159],[10,106,10,108],[10,109,10,111],[10,112,10,114],[10,121,10,123],[10,124,10,126],[10,127,10,129],[10,76,10,78],[10,79,10,81],[10,82,10,84],[10,91,10,93],[10,94,10,96],[10,97,10,99],[10,226,10,228],[10,229,10,231],[10,232,10,234],[10,241,10,243],[10,244,10,246],[10,247,10,249],[10,196,10,198],[10,199,10,201],[10,202,10,204],[10,211,10,213],[10,214,10,216],[10,217,10,219],[10,166,10,168],[10,169,10,171],[10,172,10,174],[10,181,10,183],[10,184,10,186],[10,187,10,189],[10,316,10,318],[10,319,10,321],[10,322,10,324],[10,331,10,333],[10,334,10,336],[10,337,10,339],[10,286,10,288],[10,289,10,291],[10,292,10,294],[10,301,10,303],[10,304,10,306],[10,307,10,309],[10,256,10,258],[10,259,10,261],[10,262,10,264],[10,271,10,273],[10,274,10,276],[10,277,10,279],[10,406,10,408],[10,409,10,411],[10,412,10,414],[10,421,10,423],[10,424,10,426],[10,427,10,429],[10,376,10,378],[10,379,10,381],[10,382,10,384],[10,391,10,393],[10,394,10,396],[10,397,10,399],[10,346,10,348],[10,349,10,351],[10,352,10,354],[10,361,10,363],[10,364,10,366],[10,367,10,369],[10,496,10,498],[10,499,10,501],[10,502,10,504],[10,511,10,513],[10,514,10,516],[10,517,10,519],[10,466,10,468],[10,469,10,471],[10,472,10,474],[10,481,10,483],[10,484,10,486],[10,487,10,489],[10,436,10,438],[10,439,10,441],[10,442,10,444],[10,451,10,453],[10,454,10,456],[10,457,10,459],[10,586,10,588],[10,589,10,591],[10,592,10,594],[10,601,10,603],[10,604,10,606],[10,607,10,609],[10,556,10,558],[10,559,10,561],[10,562,10,564],[10,571,10,573],[10,574,10,576],[10,577,10,579],[10,526,10,528],[10,529,10,531],[10,532,10,534],[10,541,10,543],[10,544,10,546],[10,547,10,549],[10,676,10,678],[10,679,10,681],[10,682,10,684],[10,691,10,693],[10,694,10,696],[10,697,10,699],[10,646,10,648],[10,649,10,651],[10,652,10,654],[10,661,10,663],[10,664,10,666],[10,667,10,669],[10,616,10,618],[10,619,10,621],[10,622,10,624],[10,631,10,633],[10,634,10,636],[10,637,10,639],[10,766,10,768],[10,769,10,771],[10,772,10,774],[10,781,10,783],[10,784,10,786],[10,787,10,789],[10,736,10,738],[10,739,10,741],[10,742,10,744],[10,751,10,753],[10,754,10,756],[10,757,10,759],[10,706,10,708],[10,709,10,711],[10,712,10,714],[10,721,10,723],[10,724,10,726],[10,727,10,729],[10,856,10,858],[10,859,10,861],[10,862,10,864],[10,871,10,873],[10,874,10,876],[10,877,10,879],[10,826,10,828],[10,829,10,831],[10,832,10,834],[10,841,10,843],[10,844,10,846],[10,847,10,849],[10,796,10,798],[10,799,10,801],[10,802,10,804],[10,811,10,813],[10,814,10,816],[10,817,10,819],[10,946,10,948],[10,949,10,951],[10,952,10,954],[10,961,10,963],[10,964,10,966],[10,967,10,969],[10,916,10,918],[10,919,10,921],[10,922,10,924],[10,931,10,933],[10,934,10,936],[10,937,10,939],[10,886,10,888],[10,889,10,891],[10,892,10,894],[10,901,10,903],[10,904,10,906],[10,907,10,909],[10,1036,10,1038],[10,1039,10,1041],[10,1042,10,1044],[10,1051,10,1053],[10,1054,10,1056],[10,1057,10,1059],[10,1006,10,1008],[10,1009,10,1011],[10,1012,10,1014],[10,1021,10,1023],[10,1024,10,1026],[10,1027,10,1029],[10,976,10,978],[10,979,10,981],[10,982,10,984],[10,991,10,993],[10,994,10,996],[10,997,10,999],[10,1126,10,1128],[10,1129,10,1131],[10,1132,10,1134],[10,1141,10,1143],[10,1144,10,1146],[10,1147,10,1149],[10,1096,10,1098],[10,1099,10,1101],[10,1102,10,1104],[10,1111,10,1113],[10,1114,10,1116],[10,1117,10,1119],[10,1066,10,1068],[10,1069,10,1071],[10,1072,10,1074],[10,1081,10,1083],[10,1084,10,1086],[10,1087,10,1089],[10,1216,10,1218],[10,1219,10,1221],[10,1222,10,1224],[10,1231,10,1233],[10,1234,10,1236],[10,1237,10,1239],[10,1186,10,1188],[10,1189,10,1191],[10,1192,10,1194],[10,1201,10,1203],[10,1204,10,1206],[10,1207,10,1209],[10,1156,10,1158],[10,1159,10,1161],[10,1162,10,1164],[10,1171,10,1173],[10,1174,10,1176],[10,1177,10,1179],[10,1306,10,1308],[10,1309,10,1311],[10,1312,10,1314],[10,1321,10,1323],[10,1324,10,1326],[10,1327,10,1329],[10,1276,10,1278],[10,1279,10,1281],[10,1282,10,1284],[10,1291,10,1293],[10,1294,10,1296],[10,1297,10,1299],[10,1246,10,1248],[10,1249,10,1251],[10,1252,10,1254],[10,1261,10,1263],[10,1264,10,1266],[10,1267,10,1269],[10,1396,10,1398],[10,1399,10,1401],[10,1402,10,1404],[10,1411,10,1413],[10,1414,10,1416],[10,1417,10,1419],[10,1366,10,1368],[10,1369,10,1371],[10,1372,10,1374],[10,1381,10,1383],[10,1384,10,1386],[10,1387,10,1389],[10,1336,10,1338],[10,1339,10,1341],[10,1342,10,1344],[10,1351,10,1353],[10,1354,10,1356],[10,1357,10,1359],[10,1486,10,1488],[10,1489,10,1491],[10,1492,10,1494],[10,1501,10,1503],[10,1504,10,1506],[10,1507,10,1509],[10,1456,10,1458],[10,1459,10,1461],[10,1462,10,1464],[10,1471,10,1473],[10,1474,10,1476],[10,1477,10,1479],[10,1426,10,1428],[10,1429,10,1431],[10,1432,10,1434],[10,1441,10,1443],[10,1444,10,1446],[10,1447,10,1449],[10,1576,10,1578],[10,1579,10,1581],[10,1582,10,1584],[10,1591,10,1593],[10,1594,10,1596],[10,1597,10,1599],[10,1546,10,1548],[10,1549,10,1551],[10,1552,10,1554],[10,1561,10,1563],[10,1564,10,1566],[10,1567,10,1569],[10,1516,10,1518],[10,1519,10,1521],[10,1522,10,1524],[10,1531,10,1533],[10,1534,10,1536],[10,1537,10,1539],[10,1666,10,1668],[10,1669,10,1671],[10,1672,10,1674],[10,1681,10,1683],[10,1684,10,1686],[10,1687,10,1689],[10,1636,10,1638],[10,1639,10,1641],[10,1642,10,1644],[10,1651,10,1653],[10,1654,10,1656],[10,1657,10,1659],[10,1606,10,1608],[10,1609,10,1611],[10,1612,10,1614],[10,1621,10,1623],[10,1624,10,1626],[10,1627,10,1629],[10,1756,10,1758],[10,1759,10,1761],[10,1762,10,1764],[10,1771,10,1773],[10,1774,10,1776],[10,1777,10,1779],[10,1726,10,1728],[10,1729,10,1731],[10,1732,10,1734],[10,1741,10,1743],[10,1744,10,1746],[10,1747,10,1749],[10,1696,10,1698],[10,1699,10,1701],[10,1702,10,1704],[10,1711,10,1713],[10,1714,10,1716],[10,1717,10,1719],[10,1846,10,1848],[10,1849,10,1851],[10,1852,10,1854],[10,1861,10,1863],[10,1864,10,1866],[10,1867,10,1869],[10,1816,10,1818],[10,1819,10,1821],[10,1822,10,1824],[10,1831,10,1833],[10,1834,10,1836],[10,1837,10,1839],[10,1786,10,1788],[10,1789,10,1791],[10,1792,10,1794],[10,1801,10,1803],[10,1804,10,1806],[10,1807,10,1809],[10,1936,10,1938],[10,1939,10,1941],[10,1942,10,1944],[10,1951,10,1953],[10,1954,10,1956],[10,1957,10,1959],[10,1906,10,1908],[10,1909,10,1911],[10,1912,10,1914],[10,1921,10,1923],[10,1924,10,1926],[10,1927,10,1929],[10,1876,10,1878],[10,1879,10,1881],[10,1882,10,1884],[10,1891,10,1893],[10,1894,10,1896],[10,1897,10,1899],[10,2026,10,2028],[10,2029,10,2031],[10,2032,10,2034],[10,2041,10,2043],[10,2044,10,2046],[10,2047,10,2049],[10,1996,10,1998],[10,1999,10,2001],[10,2002,10,2004],[10,2011,10,2013],[10,2014,10,2016],[10,2017,10,2019],[10,1966,10,1968],[10,1969,10,1971],[10,1972,10,1974],[10,1981,10,1983],[10,1984,10,1986],[10,1987,10,1989],[10,2116,10,2118],[10,2119,10,2121],[10,2122,10,2124],[10,2131,10,2133],[10,2134,10,2136],[10,2137,10,2139],[10,2086,10,2088],[10,2089,10,2091],[10,2092,10,2094],[10,2101,10,2103],[10,2104,10,2106],[10,2107,10,2109],[10,2056,10,2058],[10,2059,10,2061],[10,2062,10,2064],[10,2071,10,2073],[10,2074,10,2076],[10,2077,10,2079],[10,2206,10,2208],[10,2209,10,2211],[10,2212,10,2214],[10,2221,10,2223],[10,2224,10,2226],[10,2227,10,2229],[10,2176,10,2178],[10,2179,10,2181],[10,2182,10,2184],[10,2191,10,2193],[10,2194,10,2196],[10,2197,10,2199],[10,2146,10,2148],[10,2149,10,2151],[10,2152,10,2154],[10,2161,10,2163],[10,2164,10,2166],[10,2167,10,2169],[10,2296,10,2298],[10,2299,10,2301],[10,2302,10,2304],[10,2311,10,2313],[10,2314,10,2316],[10,2317,10,2319],[10,2266,10,2268],[10,2269,10,2271],[10,2272,10,2274],[10,2281,10,2283],[10,2284,10,2286],[10,2287,10,2289],[10,2236,10,2238],[10,2239,10,2241],[10,2242,10,2244],[10,2251,10,2253],[10,2254,10,2256],[10,2257,10,2259],[10,2386,10,2388],[10,2389,10,2391],[10,2392,10,2394],[10,2401,10,2403],[10,2404,10,2406],[10,2407,10,2409],[10,2356,10,2358],[10,2359,10,2361],[10,2362,10,2364],[10,2371,10,2373],[10,2374,10,2376],[10,2377,10,2379],[10,2326,10,2328],[10,2329,10,2331],[10,2332,10,2334],[10,2341,10,2343],[10,2344,10,2346],[10,2347,10,2349],[10,2476,10,2478],[10,2479,10,2481],[10,2482,10,2484],[10,2491,10,2493],[10,2494,10,2496],[10,2497,10,2499],[10,2446,10,2448],[10,2449,10,2451],[10,2452,10,2454],[10,2461,10,2463],[10,2464,10,2466],[10,2467,10,2469],[10,2416,10,2418],[10,2419,10,2421],[10,2422,10,2424],[10,2431,10,2433],[10,2434,10,2436],[10,2437,10,2439],[10,2566,10,2568],[10,2569,10,2571],[10,2572,10,2574],[10,2581,10,2583],[10,2584,10,2586],[10,2587,10,2589],[10,2536,10,2538],[10,2539,10,2541],[10,2542,10,2544],[10,2551,10,2553],[10,2554,10,2556],[10,2557,10,2559],[10,2506,10,2508],[10,2509,10,2511],[10,2512,10,2514],[10,2521,10,2523],[10,2524,10,2526],[10,2527,10,2529],[10,2656,10,2658],[10,2659,10,2661],[10,2662,10,2664],[10,2671,10,2673],[10,2674,10,2676],[10,2677,10,2679],[10,2626,10,2628],[10,2629,10,2631],[10,2632,10,2634],[10,2641,10,2643],[10,2644,10,2646],[10,2647,10,2649],[10,2596,10,2598],[10,2599,10,2601],[10,2602,10,2604],[10,2611,10,2613],[10,2614,10,2616],[10,2617,10,2619],[10,2746,10,2748],[10,2749,10,2751],[10,2752,10,2754],[10,2761,10,2763],[10,2764,10,2766],[10,2767,10,2769],[10,2716,10,2718],[10,2719,10,2721],[10,2722,10,2724],[10,2731,10,2733],[10,2734,10,2736],[10,2737,10,2739],[10,2686,10,2688],[10,2689,10,2691],[10,2692,10,2694],[10,2701,10,2703],[10,2704,10,2706],[10,2707,10,2709],[10,2836,10,2838],[10,2839,10,2841],[10,2842,10,2844],[10,2851,10,2853],[10,2854,10,2856],[10,2857,10,2859],[10,2806,10,2808],[10,2809,10,2811],[10,2812,10,2814],[10,2821,10,2823],[10,2824,10,2826],[10,2827,10,2829],[10,2776,10,2778],[10,2779,10,2781],[10,2782,10,2784],[10,2791,10,2793],[10,2794,10,2796],[10,2797,10,2799],[10,2926,10,2928],[10,2929,10,2931],[10,2932,10,2934],[10,2941,10,2943],[10,2944,10,2946],[10,2947,10,2949],[10,2896,10,2898],[10,2899,10,2901],[10,2902,10,2904],[10,2911,10,2913],[10,2914,10,2916],[10,2917,10,2919],[10,2866,10,2868],[10,2869,10,2871],[10,2872,10,2874],[10,2881,10,2883],[10,2884,10,2886],[10,2887,10,2889],[10,3016,10,3018],[10,3019,10,3021],[10,3022,10,3024],[10,3031,10,3033],[10,3034,10,3036],[10,3037,10,3039],[10,2986,10,2988],[10,2989,10,2991],[10,2992,10,2994],[10,3001,10,3003],[10,3004,10,3006],[10,3007,10,3009],[10,2956,10,2958],[10,2959,10,2961],[10,2962,10,2964],[10,2971,10,2973],[10,2974,10,2976],[10,2977,10,2979],[10,3106,10,3108],[10,3109,10,3111],[10,3112,10,3114],[10,3121,10,3123],[10,3124,10,3126],[10,3127,10,3129],[10,3076,10,3078],[10,3079,10,3081],[10,3082,10,3084],[10,3091,10,3093],[10,3094,10,3096],[10,3097,10,3099],[10,3046,10,3048],[10,3049,10,3051],[10,3052,10,3054],[10,3061,10,3063],[10,3064,10,3066],[10,3067,10,3069],[10,3196,10,3198],[10,3199,10,3201],[10,3202,10,3204],[10,3211,10,3213],[10,3214,10,3216],[10,3217,10,3219],[10,3166,10,3168],[10,3169,10,3171],[10,3172,10,3174],[10,3181,10,3183],[10,3184,10,3186],[10,3187,10,3189],[10,3136,10,3138],[10,3139,10,3141],[10,3142,10,3144],[10,3151,10,3153],[10,3154,10,3156],[10,3157,10,3159],[10,3286,10,3288],[10,3289,10,3291],[10,3292,10,3294],[10,3301,10,3303],[10,3304,10,3306],[10,3307,10,3309],[10,3256,10,3258],[10,3259,10,3261],[10,3262,10,3264],[10,3271,10,3273],[10,3274,10,3276],[10,3277,10,3279],[10,3226,10,3228],[10,3229,10,3231],[10,3232,10,3234],[10,3241,10,3243],[10,3244,10,3246],[10,3247,10,3249],[10,3376,10,3378],[10,3379,10,3381],[10,3382,10,3384],[10,3391,10,3393],[10,3394,10,3396],[10,3397,10,3399],[10,3346,10,3348],[10,3349,10,3351],[10,3352,10,3354],[10,3361,10,3363],[10,3364,10,3366],[10,3367,10,3369],[10,3316,10,3318],[10,3319,10,3321],[10,3322,10,3324],[10,3331,10,3333],[10,3334,10,3336],[10,3337,10,3339],[10,3466,10,3468],[10,3469,10,3471],[10,3472,10,3474],[10,3481,10,3483],[10,3484,10,3486],[10,3487,10,3489],[10,3436,10,3438],[10,3439,10,3441],[10,3442,10,3444],[10,3451,10,3453],[10,3454,10,3456],[10,3457,10,3459],[10,3406,10,3408],[10,3409,10,3411],[10,3412,10,3414],[10,3421,10,3423],[10,3424,10,3426],[10,3427,10,3429],[10,3556,10,3558],[10,3559,10,3561],[10,3562,10,3564],[10,3571,10,3573],[10,3574,10,3576],[10,3577,10,3579],[10,3526,10,3528],[10,3529,10,3531],[10,3532,10,3534],[10,3541,10,3543],[10,3544,10,3546],[10,3547,10,3549],[10,3496,10,3498],[10,3499,10,3501],[10,3502,10,3504],[10,3511,10,3513],[10,3514,10,3516],[10,3517,10,3519],[10,3646,10,3648],[10,3649,10,3651],[10,3652,10,3654],[10,3661,10,3663],[10,3664,10,3666],[10,3667,10,3669],[10,3616,10,3618],[10,3619,10,3621],[10,3622,10,3624],[10,3631,10,3633],[10,3634,10,3636],[10,3637,10,3639],[10,3586,10,3588],[10,3589,10,3591],[10,3592,10,3594],[10,3601,10,3603],[10,3604,10,3606],[10,3607,10,3609],[10,3736,10,3738],[10,3739,10,3741],[10,3742,10,3744],[10,3751,10,3753],[10,3754,10,3756],[10,3757,10,3759],[10,3706,10,3708],[10,3709,10,3711],[10,3712,10,3714],[10,3721,10,3723],[10,3724,10,3726],[10,3727,10,3729],[10,3676,10,3678],[10,3679,10,3681],[10,3682,10,3684],[10,3691,10,3693],[10,3694,10,3696],[10,3697,10,3699],[10,3826,10,3828],[10,3829,10,3831],[10,3832,10,3834],[10,3841,10,3843],[10,3844,10,3846],[10,3847,10,3849],[10,3796,10,3798],[10,3799,10,3801],[10,3802,10,3804],[10,3811,10,3813],[10,3814,10,3816],[10,3817,10,3819],[10,3766,10,3768],[10,3769,10,3771],[10,3772,10,3774],[10,3781,10,3783],[10,3784,10,3786],[10,3787,10,3789],[10,3916,10,3918],[10,3919,10,3921],[10,3922,10,3924],[10,3931,10,3933],[10,3934,10,3936],[10,3937,10,3939],[10,3886,10,3888],[10,3889,10,3891],[10,3892,10,3894],[10,3901,10,3903],[10,3904,10,3906],[10,3907,10,3909],[10,3856,10,3858],[10,3859,10,3861],[10,3862,10,3864],[10,3871,10,3873],[10,3874,10,3876],[10,3877,10,3879],[10,4006,10,4008],[10,4009,10,4011],[10,4012,10,4014],[10,4021,10,4023],[10,4024,10,4026],[10,4027,10,4029],[10,3976,10,3978],[10,3979,10,3981],[10,3982,10,3984],[10,3991,10,3993],[10,3994,10,3996],[10,3997,10,3999],[10,3946,10,3948],[10,3949,10,3951],[10,3952,10,3954],[10,3961,10,3963],[10,3964,10,3966],[10,3967,10,3969],[10,4096,10,4098],[10,4099,10,4101],[10,4102,10,4104],[10,4111,10,4113],[10,4114,10,4116],[10,4117,10,4119],[10,4066,10,4068],[10,4069,10,4071],[10,4072,10,4074],[10,4081,10,4083],[10,4084,10,4086],[10,4087,10,4089],[10,4036,10,4038],[10,4039,10,4041],[10,4042,10,4044],[10,4051,10,4053],[10,4054,10,4056],[10,4057,10,4059],[10,4186,10,4188],[10,4189,10,4191],[10,4192,10,4194],[10,4201,10,4203],[10,4204,10,4206],[10,4207,10,4209],[10,4156,10,4158],[10,4159,10,4161],[10,4162,10,4164],[10,4171,10,4173],[10,4174,10,4176],[10,4177,10,4179],[10,4126,10,4128],[10,4129,10,4131],[10,4132,10,4134],[10,4141,10,4143],[10,4144,10,4146],[10,4147,10,4149],[10,4276,10,4278],[10,4279,10,4281],[10,4282,10,4284],[10,4291,10,4293],[10,4294,10,4296],[10,4297,10,4299],[10,4246,10,4248],[10,4249,10,4251],[10,4252,10,4254],[10,4261,10,4263],[10,4264,10,4266],[10,4267,10,4269],[10,4216,10,4218],[10,4219,10,4221],[10,4222,10,4224],[10,4231,10,4233],[10,4234,10,4236],[10,4237,10,4239],[10,4366,10,4368],[10,4369,10,4371],[10,4372,10,4374],[10,4381,10,4383],[10,4384,10,4386],[10,4387,10,4389],[10,4336,10,4338],[10,4339,10,4341],[10,4342,10,4344],[10,4351,10,4353],[10,4354,10,4356],[10,4357,10,4359],[10,4306,10,4308],[10,4309,10,4311],[10,4312,10,4314],[10,4321,10,4323],[10,4324,10,4326],[10,4327,10,4329],[10,4456,10,4458],[10,4459,10,4461],[10,4462,10,4464],[10,4471,10,4473],[10,4474,10,4476],[10,4477,10,4479],[10,4426,10,4428],[10,4429,10,4431],[10,4432,10,4434],[10,4441,10,4443],[10,4444,10,4446],[10,4447,10,4449],[10,4396,10,4398],[10,4399,10,4401],[10,4402,10,4404],[10,4411,10,4413],[10,4414,10,4416],[10,4417,10,4419],[10,4546,10,4548],[10,4549,10,4551],[10,4552,10,4554],[10,4561,10,4563],[10,4564,10,4566],[10,4567,10,4569],[10,4516,10,4518],[10,4519,10,4521],[10,4522,10,4524],[10,4531,10,4533],[10,4534,10,4536],[10,4537,10,4539],[10,4486,10,4488],[10,4489,10,4491],[10,4492,10,4494],[10,4501,10,4503],[10,4504,10,4506],[10,4507,10,4509],[10,4636,10,4638],[10,4639,10,4641],[10,4642,10,4644],[10,4651,10,4653],[10,4654,10,4656],[10,4657,10,4659],[10,4606,10,4608],[10,4609,10,4611],[10,4612,10,4614],[10,4621,10,4623],[10,4624,10,4626],[10,4627,10,4629],[10,4576,10,4578],[10,4579,10,4581],[10,4582,10,4584],[10,4591,10,4593],[10,4594,10,4596],[10,4597,10,4599],[10,4726,10,4728],[10,4729,10,4731],[10,4732,10,4734],[10,4741,10,4743],[10,4744,10,4746],[10,4747,10,4749],[10,4696,10,4698],[10,4699,10,4701],[10,4702,10,4704],[10,4711,10,4713],[10,4714,10,4716],[10,4717,10,4719],[10,4666,10,4668],[10,4669,10,4671],[10,4672,10,4674],[10,4681,10,4683],[10,4684,10,4686],[10,4687,10,4689],[10,4816,10,4818],[10,4819,10,4821],[10,4822,10,4824],[10,4831,10,4833],[10,4834,10,4836],[10,4837,10,4839],[10,4786,10,4788],[10,4789,10,4791],[10,4792,10,4794],[10,4801,10,4803],[10,4804,10,4806],[10,4807,10,4809],[10,4756,10,4758],[10,4759,10,4761],[10,4762,10,4764],[10,4771,10,4773],[10,4774,10,4776],[10,4777,10,4779],[10,4906,10,4908],[10,4909,10,4911],[10,4912,10,4914],[10,4921,10,4923],[10,4924,10,4926],[10,4927,10,4929],[10,4876,10,4878],[10,4879,10,4881],[10,4882,10,4884],[10,4891,10,4893],[10,4894,10,4896],[10,4897,10,4899],[10,4846,10,4848],[10,4849,10,4851],[10,4852,10,4854],[10,4861,10,4863],[10,4864,10,4866],[10,4867,10,4869],[10,4996,10,4998],[10,4999,10,5001],[10,5002,10,5004],[10,5011,10,5013],[10,5014,10,5016],[10,5017,10,5019],[10,4966,10,4968],[10,4969,10,4971],[10,4972,10,4974],[10,4981,10,4983],[10,4984,10,4986],[10,4987,10,4989],[10,4936,10,4938],[10,4939,10,4941],[10,4942,10,4944],[10,4951,10,4953],[10,4954,10,4956],[10,4957,10,4959],[10,5086,10,5088],[10,5089,10,5091]],"merged_total":3269,"flags":["merged_cut"]}
[{"$f":"'WP FR-16(7)(v)-KW & KWH @Gen'!A1","v":"DUKE ENERGY KENTUCKY, INC."},null,null,null,null,null,null,null,null,null,{"$f":"'WP FR-16(7)(v)-KW & KWH @Gen'!G1","v":"Work Paper FR-16(7)(v) "}]
[{"$f":"coss_type","v":"ELECTRIC COST OF SERVICE STUDY "},null,null,null,null,null,null,null,null,null,{"$f":"'WP FR-16(7)(v)-KW & KWH @Gen'!G2","v":"Witness Responsible:"}]
[{"$f":"case_name","v":"CASE NO: 2019-00271"},null,null,null,null,null,null,null,null,null,{"$f":"PROPER(Witness)","v":"James E. Ziolkowski"}]
[{"$f":"alloc_factors","v":"ALLOCATION FACTORS FOR COST OF SERVICE STUDY"},null,null,null,null,null,null,null,null,null,"Page 41"]
[{"$f":"'WP FR-16(7)(v)-KW & KWH @Gen'!A5","v":"TWELVE MONTHS ENDING DECEMBER 31, 2018"}]
[]
["MONTHLY STATISTICS"]
["DISTRIBUTION SECONDARY -  LARGE - DS >500kw RATE GROUP"]
["JANUARY THROUGH DECEMBER, 2016",null,null,null,null,null,null,null,null,null,null,null,null,"KWH","HOURS","KWH/HR","NCD",null,"GROUP ",null,"SYSTEM",null,"DIFFERENCE"]
[]
[null,"NUMBER OF CUSTOMERS",null,"SAMPLE AVG. USAGE","AVERAGE NCP","GROUP COINCIDENT DEMAND",null,"SYSTEM COINCIDENT DEMAND",null,"NCD LOAD FACTOR","GROUP COIN LOAD FACTOR","SYSTEM COIN LOAD FACTOR",null,null,null,null,"AVERAGE KW * POPULATION","LOAD FACTOR","COINCIDENT DEM KW * POPULTION","COIN LOAD FACTOR","COINCIDENT DEM KW * POPULTION","COIN LOAD FACTOR","NCD LOAD FACTOR","GROUP COIN LOAD FACTOR","SYSTEM COIN LOAD FACTOR"]
["DATE","OBSERVED","POPULATION","KWH","KW","KW","DATE-TIME","KW","DATE-TIME"]
[]
[]
["January",353,12943,7401.0016415050613,19.09083501498586,13.81657865887669,"01/05/18-11:00",12.791707636971028,"01/05/18-08:00",52.106588547000001,71.997439431999993,77.765870935999999,null,{"$f":"C15*D15","v":95791164.246000007},744,{"$f":"N15/O15","v":128751.5648467742},{"$f":"C15*E15","v":247092.67759896198},{"$f":"ROUND(P15/Q15*100,2)","v":52.11},{"$f":"C15*G15","v":{"$error":"#VALUE!"}},{"$f":"ROUND(P15/S15*100,3)","v":{"$error":"#VALUE!"}},{"$f":"C15*I15","v":{"$error":"#VALUE!"}},{"$f":"ROUND(P15/U15*100,3)","v":{"$error":"#VALUE!"}},{"$f":"J15-R15","v":-3.4114529999982324E-3},{"$f":"K15-T15","v":{"$error":"#VALUE!"}},{"$f":"L15-V15","v":{"$error":"#VALUE!"}}]
[]
["February",354,12944,6603.9673952410467,20.484000738462992,13.674327438486095,"02/02/18-11:00",12.426156615445226,"02/02/18-08:00",47.975649672999999,71.867025838000004,79.085856853999999,null,{"$f":"C17*D17","v":85481753.964000106},672,{"$f":"N17/O17","v":127204.9910178573},{"$f":"C17*E17","v":265144.90555866499},{"$f":"ROUND(P17/Q17*100,2)","v":47.98},{"$f":"C17*G17","v":{"$error":"#VALUE!"}},{"$f":"ROUND(P17/S17*100,3)","v":{"$error":"#VALUE!"}},{"$f":"C17*I17","v":{"$error":"#VALUE!"}},{"$f":"ROUND(P17/U17*100,3)","v":{"$error":"#VALUE!"}},{"$f":"J17-R17","v":-4.3503269999973782E-3},{"$f":"K17-T17","v":{"$error":"#VALUE!"}},{"$f":"L17-V17","v":{"$error":"#VALUE!"}}]
[]
["March",356,12953,6647.2320461669187,17.888738735954991,12.421448819934225,"03/14/18-11:00",10.306363044256852,"03/08/18-20:00",49.944559015000003,71.927613312000005,86.688695483999993,null,{"$f":"C19*D19","v":86101596.694000095},744,{"$f":"N19/O19","v":115727.95254569905},{"$f":"C19*E19","v":231712.83284682501},{"$f":"ROUND(P19/Q19*100,2)","v":49.94},{"$f":"C19*G19","v":{"$error":"#VALUE!"}},{"$f":"ROUND(P19/S19*100,3)","v":{"$error":"#VALUE!"}},{"$f":"C19*I19","v":{"$error":"#VALUE!"}},{"$f":"ROUND(P19/U19*100,3)","v":{"$error":"#VALUE!"}},{"$f":"J19-R19","v":4.5590150000052176E-3},{"$f":"K19-T19","v":{"$error":"#VALUE!"}},{"$f":"L19-V19","v":{"$error":"#VALUE!"}}]
[]
["April",355,12969,6572.9640386305882,20.407267644759582,13.0679087424675,"04/13/18-14:00",12.67983096870684,"04/17/18-11:00",44.734635126999997,69.859048607000005,71.997148406999997,null,{"$f":"C21*D21","v":85244770.617000103},720,{"$f":"N21/O21","v":118395.51474583348},{"$f":"C21*E21","v":264661.85408488702},{"$f":"ROUND(P21/Q21*100,2)","v":44.73},{"$f":"C21*G21","v":{"$error":"#VALUE!"}},{"$f":"ROUND(P21/S21*100,3)","v":{"$error":"#VALUE!"}},{"$f":"C21*I21","v":{"$error":"#VALUE!"}},{"$f":"ROUND(P21/U21*100,3)","v":{"$error":"#VALUE!"}},{"$f":"J21-R21","v":4.6351270000002387E-3},{"$f":"K21-T21","v":{"$error":"#VALUE!"}},{"$f":"L21-V21","v":{"$error":"#VALUE!"}}]
[]
["May",354,12996,7595.3541174976917,21.217434879125268,16.681188220115267,"05/14/18-14:00",14.719247963960756,"05/15/18-17:00",48.115190906999999,61.199533049000003,69.356867433999994,null,{"$f":"C23*D23","v":98709222.111000001},744,{"$f":"N23/O23","v":132673.68563306451},{"$f":"C23*E23","v":275741.783689112},{"$f":"ROUND(P23/Q23*100,2)","v":48.12},{"$f":"C23*G23","v":{"$error":"#VALUE!"}},{"$f":"ROUND(P23/S23*100,3)","v":{"$error":"#VALUE!"}},{"$f":"C23*I23","v":{"$error":"#VALUE!"}},{"$f":"ROUND(P23/U23*100,3)","v":{"$error":"#VALUE!"}},{"$f":"J23-R23","v":-4.8090929999986542E-3},{"$f":"K23-T23","v":{"$error":"#VALUE!"}},{"$f":"L23-V23","v":{"$error":"#VALUE!"}}]
[]
["June",374,13048,8299.6563430410788,23.557091219111896,18.574761381508893,"06/19/18-14:00",16.77542125051778,"06/19/18-17:00",48.933462833999997,62.058942453,68.715415871000005,null,{"$f":"C25*D25","v":108293915.964},720,{"$f":"N25/O25","v":150408.21661666667},{"$f":"C25*E25","v":307372.92622697202},{"$f":"ROUND(P25/Q25*100,2)","v":48.93},{"$f":"C25*G25","v":{"$error":"#VALUE!"}},{"$f":"ROUND(P25/S25*100,3)","v":{"$error":"#VALUE!"}},{"$f":"C25*I25","v":{"$error":"#VALUE!"}},{"$f":"ROUND(P25/U25*100,3)","v":{"$error":"#VALUE!"}},{"$f":"J25-R25","v":3.4628339999969171E-3},{"$f":"K25-T25","v":{"$error":"#VALUE!"}},{"$f":"L25-V25","v":{"$error":"#VALUE!"}}]
[]
["July",375,13065,8356.57089221569,22.669005531478302,18.013519660507921,"07/05/18-12:00",15.901578671814006,"07/10/18-17:00",49.547608554999996,62.352890137999999,70.634182654,null,{"$f":"C27*D27","v":109178598.70679799},744,{"$f":"N27/O27","v":146745.42836935213},{"$f":"C27*E27","v":296170.55726876401},{"$f":"ROUND(P27/Q27*100,2)","v":49.55},{"$f":"C27*G27","v":{"$error":"#VALUE!"}},{"$f":"ROUND(P27/S27*100,3)","v":{"$error":"#VALUE!"}},{"$f":"C27*I27","v":{"$error":"#VALUE!"}},{"$f":"ROUND(P27/U27*100,3)","v":{"$error":"#VALUE!"}},{"$f":"J27-R27","v":-2.3914450000006582E-3},{"$f":"K27-T27","v":{"$error":"#VALUE!"}},{"$f":"L27-V27","v":{"$error":"#VALUE!"}}]
[]
["August",374,13059,8383.72440442484,22.24737510658856,17.8651446678385,"08/27/18-14:00",15.135401677159047,"08/28/18-18:00",50.650680029,63.075037956000003,74.450926512999999,null,{"$f":"C29*D29","v":109483056.99738398},744,{"$f":"N29/O29","v":147154.6465018602},{"$f":"C29*E29","v":290528.47151693999},{"$f":"ROUND(P29/Q29*100,2)","v":50.65},{"$f":"C29*G29","v":{"$error":"#VALUE!"}},{"$f":"ROUND(P29/S29*100,3)","v":{"$error":"#VALUE!"}},{"$f":"C29*I29","v":{"$error":"#VALUE!"}},{"$f":"ROUND(P29/U29*100,3)","v":{"$error":"#VALUE!"}},{"$f":"J29-R29","v":6.8002900000152522E-4},{"$f":"K29-T29","v":{"$error":"#VALUE!"}},{"$f":"L29-V29","v":{"$error":"#VALUE!"}}]
[]
["September",368,13024,7795.822152410934,23.522099792312037,19.01616706403432,"09/04/18-14:00",18.326913356168689,"09/04/18-16:00",46.031310396999999,56.938555129000001,59.07994738,null,{"$f":"C31*D31","v":101532787.713},720,{"$f":"N31/O31","v":141017.76071249999},{"$f":"C31*E31","v":306351.82769507199},{"$f":"ROUND(P31/Q31*100,2)","v":46.03},{"$f":"C31*G31","v":{"$error":"#VALUE!"}},{"$f":"ROUND(P31/S31*100,3)","v":{"$error":"#VALUE!"}},{"$f":"C31*I31","v":{"$error":"#VALUE!"}},{"$f":"ROUND(P31/U31*100,3)","v":{"$error":"#VALUE!"}},{"$f":"J31-R31","v":1.3103969999974652E-3},{"$f":"K31-T31","v":{"$error":"#VALUE!"}},{"$f":"L31-V31","v":{"$error":"#VALUE!"}}]
[]
["October",351,12980,6866.774059938366,21.35109268773806,16.242685300454085,"10/08/18-14:00",16.19351334859137,"10/08/18-15:00",43.227459885999998,56.822716540000002,56.995259941999997,null,{"$f":"C33*D33","v":89130727.297999993},744,{"$f":"N33/O33","v":119799.36464784945},{"$f":"C33*E33","v":277137.18308684003},{"$f":"ROUND(P33/Q33*100,2)","v":43.23},{"$f":"C33*G33","v":{"$error":"#VALUE!"}},{"$f":"ROUND(P33/S33*100,3)","v":{"$error":"#VALUE!"}},{"$f":"C33*I33","v":{"$error":"#VALUE!"}},{"$f":"ROUND(P33/U33*100,3)","v":{"$error":"#VALUE!"}},{"$f":"J33-R33","v":-2.5401139999985389E-3},{"$f":"K33-T33","v":{"$error":"#VALUE!"}},{"$f":"L33-V33","v":{"$error":"#VALUE!"}}]
[]
["November",350,13002,6685.8978500999847,19.176123994377864,13.273741176910628,"11/28/18-13:00",11.491155296979157,"11/27/18-19:00",48.424641178999998,69.957437865000003,80.809709695999999,null,{"$f":"C35*D35","v":86930043.847000003},720,{"$f":"N35/O35","v":120736.17200972223},{"$f":"C35*E35","v":249327.96417490099},{"$f":"ROUND(P35/Q35*100,2)","v":48.42},{"$f":"C35*G35","v":{"$error":"#VALUE!"}},{"$f":"ROUND(P35/S35*100,3)","v":{"$error":"#VALUE!"}},{"$f":"C35*I35","v":{"$error":"#VALUE!"}},{"$f":"ROUND(P35/U35*100,3)","v":{"$error":"#VALUE!"}},{"$f":"J35-R35","v":4.6411789999964981E-3},{"$f":"K35-T35","v":{"$error":"#VALUE!"}},{"$f":"L35-V35","v":{"$error":"#VALUE!"}}]
[]
["December",353,12998,7106.4041305642486,19.225535011632022,13.474700507666794,"12/10/18-11:00",12.335827339026313,"12/11/18-08:00",49.681938365999997,70.885571443000003,77.429897424000004,null,{"$f":"C37*D37","v":92369040.889074102},744,{"$f":"N37/O37","v":124151.93667886304},{"$f":"C37*E37","v":249893.50408119304},{"$f":"ROUND(P37/Q37*100,2)","v":49.68},{"$f":"C37*G37","v":{"$error":"#VALUE!"}},{"$f":"ROUND(P37/S37*100,3)","v":{"$error":"#VALUE!"}},{"$f":"C37*I37","v":{"$error":"#VALUE!"}},{"$f":"ROUND(P37/U37*100,3)","v":{"$error":"#VALUE!"}},{"$f":"J37-R37","v":1.9383659999974157E-3},{"$f":"K37-T37","v":{"$error":"#VALUE!"}},{"$f":"L37-V37","v":{"$error":"#VALUE!"}}]
[]
[]
["Note:  All hours are in EST"]
[]
[]
[]
[]
[]
[]
[]
[]
[]
[]
[]
[]
[]
[]
[]
[]
[]
[]
[]
[]
[]
[]
[]
[]
[]
[]
[]
[]
[]
[]
[]
[]
[]
[]
[]
[]
[]
[]
[]
[]
[]
[]
[]
[]
[]
[]
[]
[]
[]
[]
[]
[]
[]
[]
[]
[]
[]
[]
[]
[]
[]
[]
[]
[]
[]
[]
[]
[]
[]
[]
[]
[]
[]
[]
[]
[]
[]
[]
[]
[]
[]
[]
[]
[]
[]
[]
[]
[]
[]
[]
[]
[]
[]
[]
[]
[]
[]
[]
[]
[]
[]
[]
[]
[]
[]
[]
[]
[]
[]
[]
[]
[]
[]
[]
[]
[]
[]
[]
[]
[]
[]
[]
[]
[]
[]
[]
[]
[]
[]
[]
[]
[]
[]
[]
[]
[]
[]
[]
[]
[]
[]
[]
[]
[]
[]
[]
[]
[]
[]
[]
[]
[]
[]
[]
[]
[]
[]
[]
[]
[]
[]
[]
[]
[]
[]
[]
[]
[]
[]
[]
[]
[]
[]
[]
[]
[]
[]
[]
[]
[]
[]
[]
[]
[]
[]
[]
[]
[]
[]
[]
[]
[]
[]
[]
[]
[]
[]
[]
[]
[]
[]
[]
[]
[]
[]
[]
[]
[]
[]
[]
[]
[]
[]
[]
[]
[]
[]
[]
[]
[]
[]
[]
[]
[]
[]
[]
[]
[]
[]
[]
[]
[]
[]
[]
[]
[]
[]
[]
[]
[]
[]
[]
[]
[]
[]
[]
[]
[]
[]
[]
[]
[]
[]
[]
[]
[]
[]
[]
[]
[]
[]
[]
[]
[]
[]
[]
[]
[]
[]
[]
[]
[]
[]
[]
[]
[]
[]
[]
[]
[]
[]
[]
[]
[]
[]
[]
[]
[]
[]
[]
[]
[]
[]
[]
[]
[]
[]
[]
[]
[]
[]
[]
[]
[]
[]
[]
[]
[]
[]
[]
[]
[]
[]
[]
[]
[]
[]
[]
[]
[]
[]
[]
[]
[]
[]
[]
[]
[]
[]
[]
[]
[]
[]
[]
[]
[]
[]
[]
[]
[]
[]
[]
[]
[]
[]
[]
[]
[]
[]
[]
[]
[]
[]
[]
[]
[]
[]
[]
[]
[]
[]
[]
[]
[]
[]
[]
[]
[]
[]
[]
[]
[]
[]
[]
[]
[]
[]
[]
[]
[]
[]
[]
[]
[]
[]
[]
[]
[]
[]
[]
[]
[]
[]
[]
[]
[]
[]
[]
[]
[]
[]
[]
[]
[]
[]
[]
[]
[]
[]
[]
[]
[]
[]
[]
[]
[]
[]
[]
[]
[]
[]
[]
[]
[]
[]
[]
[]
[]
[]
[]
[]
[]
[]
[]
[]
[]
[]
[]
[]
[]
[]
[]
[]
[]
[]
[]
[]
[]
[]
[]
[]
[]
[]
[]
[]
[]
[]
[]
[]
[]
[]
[]
[]
[]
[]
[]
[]
[]
[]
[]
[]
[]
[]
[]
[]
[]
[]
[]
[]
[]
[]
[]
[]
[]
[]
[]
[]
[]
[]
[]
[]
[]
[]
[]
[]
[]
[]
[]
[]
[]
[]
[]
[]
[]
[]
[]
[]
[]
[]
[]
[]
[]
[]
[null,null,null,null,null,null,0]

{"sheet":"WP FR-16(7)(v) LoadRes DP","index":56,"n_rows":554,"n_cols":25,"rows_kept":554,"cut":false,"hidden":false,"merged":[[10,5,10,6],[10,7,10,8]]}
[{"$f":"'WP FR-16(7)(v)-KW & KWH @Gen'!A1","v":"DUKE ENERGY KENTUCKY, INC."},null,null,null,null,null,null,null,null,null,{"$f":"'WP FR-16(7)(v)-KW & KWH @Gen'!G1","v":"Work Paper FR-16(7)(v) "}]
[{"$f":"coss_type","v":"ELECTRIC COST OF SERVICE STUDY "},null,null,null,null,null,null,null,null,null,{"$f":"'WP FR-16(7)(v)-KW & KWH @Gen'!G2","v":"Witness Responsible:"}]
[{"$f":"case_name","v":"CASE NO: 2019-00271"},null,null,null,null,null,null,null,null,null,{"$f":"PROPER(Witness)","v":"James E. Ziolkowski"}]
[{"$f":"alloc_factors","v":"ALLOCATION FACTORS FOR COST OF SERVICE STUDY"},null,null,null,null,null,null,null,null,null,"Page 42"]
[{"$f":"'WP FR-16(7)(v)-KW & KWH @Gen'!A5","v":"TWELVE MONTHS ENDING DECEMBER 31, 2018"}]
[]
["MONTHLY STATISTICS"]
["DISTRIBUTION PRIMARY - DP"]
["JANUARY THROUGH DECEMBER, 2016",null,null,null,null,null,null,null,null,null,null,null,null,"KWH","HOURS","KWH/HR","NCD",null,"GROUP ",null,"SYSTEM",null,"DIFFERENCE"]
[]
[null,"NUMBER OF CUSTOMERS",null,"SAMPLE AVG. USAGE","AVERAGE NCP","GROUP COINCIDENT DEMAND",null,"SYSTEM COINCIDENT DEMAND",null,"NCD LOAD FACTOR","GROUP COIN LOAD FACTOR","SYSTEM COIN LOAD FACTOR",null,null,null,null,"AVERAGE KW * POPULATION","LOAD FACTOR","COINCIDENT DEM KW * POPULTION","COIN LOAD FACTOR","COINCIDENT DEM KW * POPULTION","COIN LOAD FACTOR","NCD LOAD FACTOR","GROUP COIN LOAD FACTOR","SYSTEM COIN LOAD FACTOR"]
["DATE","OBSERVED","POPULATION","KWH","KW","KW","DATE-TIME","KW","DATE-TIME"]
[]
[]
["January",9,9,114603.46,238.588888889,192.09555555599999,"01/18/18-20:00",172.717777778,"01/05/18-08:00",64.561643805000003,80.187648358999994,89.184165395999997,null,{"$f":"C15*D15","v":1031431.14},744,{"$f":"N15/O15","v":1386.3321774193548},{"$f":"C15*E15","v":2147.3000000010002},{"$f":"ROUND(P15/Q15*100,2)","v":64.56},{"$f":"C15*F15","v":1728.8600000039999},{"$f":"ROUND(P15/S15*100,3)","v":80.188000000000002},{"$f":"C15*H15","v":1554.460000002},{"$f":"ROUND(P15/U15*100,3)","v":89.183999999999997},{"$f":"J15-R15","v":1.6438050000004978E-3},{"$f":"K15-T15","v":-3.5164100000883991E-4},{"$f":"L15-V15","v":1.6539599999987331E-4}]
[]
["February",9,9,97473.573333332999,229.14666666700001,180.24,"02/05/18-11:00",169.59555555599999,"02/02/18-08:00",63.300052506999997,80.476009941000001,85.526982025999999,null,{"$f":"C17*D17","v":877262.15999999701},672,{"$f":"N17/O17","v":1305.4496428571383},{"$f":"C17*E17","v":2062.3200000030001},{"$f":"ROUND(P17/Q17*100,2)","v":63.3},{"$f":"C17*F17","v":1622.16},{"$f":"ROUND(P17/S17*100,3)","v":80.475999999999999},{"$f":"C17*H17","v":1526.3600000039999},{"$f":"ROUND(P17/U17*100,3)","v":85.527000000000001},{"$f":"J17-R17","v":5.2506999999479831E-5},{"$f":"K17-T17","v":9.9410000018451683E-6},{"$f":"L17-V17","v":-1.7974000002141111E-5}]
[]
["March",9,9,103309.46444444401,212.337777778,170.437777778,"03/08/18-16:00",156.72888888899999,"03/08/18-20:00",65.394301712000001,81.470674435999996,88.596817110999993,null,{"$f":"C19*D19","v":929785.17999999609},744,{"$f":"N19/O19","v":1249.711263440855},{"$f":"C19*E19","v":1911.0400000019999},{"$f":"ROUND(P19/Q19*100,2)","v":65.39},{"$f":"C19*F19","v":1533.940000002},{"$f":"ROUND(P19/S19*100,3)","v":81.471000000000004},{"$f":"C19*H19","v":1410.5600000009999},{"$f":"ROUND(P19/U19*100,3)","v":88.596999999999994},{"$f":"J19-R19","v":4.3017120000001796E-3},{"$f":"K19-T19","v":-3.2556400000771646E-4},{"$f":"L19-V19","v":-1.8288900000129615E-4}]
[]
["April",10,10,88342.588000000003,210.756,178.555555556,"04/17/18-10:00",171.82666666700001,"04/17/18-11:00",58.218052577000002,76.352233284999997,79.342256336000005,null,{"$f":"C21*D21","v":883425.88},720,{"$f":"N21/O21","v":1226.9803888888889},{"$f":"C21*E21","v":2107.56},{"$f":"ROUND(P21/Q21*100,2)","v":58.22},{"$f":"C21*F21","v":1785.5555555599999},{"$f":"ROUND(P21/S21*100,3)","v":68.716999999999999},{"$f":"C21*H21","v":1718.2666666700002},{"$f":"ROUND(P21/U21*100,3)","v":71.408000000000001},{"$f":"J21-R21","v":-1.9474229999971726E-3},{"$f":"K21-T21","v":7.6352332849999982},{"$f":"L21-V21","v":7.9342563360000042}]
[]
["May",10,10,184774.88399999999,449.36399999999998,405.21,"05/15/18-12:00",346.548,"05/15/18-17:00",55.267742566999999,61.290032009999997,71.664917618999993,null,{"$f":"C23*D23","v":1847748.8399999999},744,{"$f":"N23/O23","v":2483.5333870967738},{"$f":"C23*E23","v":4493.6399999999994},{"$f":"ROUND(P23/Q23*100,2)","v":55.27},{"$f":"C23*F23","v":4052.1},{"$f":"ROUND(P23/S23*100,3)","v":61.29},{"$f":"C23*H23","v":3465.48},{"$f":"ROUND(P23/U23*100,3)","v":71.665000000000006},{"$f":"J23-R23","v":-2.2574330000040277E-3},{"$f":"K23-T23","v":3.2009999998194871E-5},{"$f":"L23-V23","v":-8.2381000012787808E-5}]
[]
["June",11,11,223235.03454545501,441.20363636399998,387.64,"06/19/18-16:00",364.66363636400001,"06/19/18-17:00",70.273368925,79.983659861999996,85.023190736000004,null,{"$f":"C25*D25","v":2455585.380000005},720,{"$f":"N25/O25","v":3410.5352500000072},{"$f":"C25*E25","v":4853.2400000039997},{"$f":"ROUND(P25/Q25*100,2)","v":70.27},{"$f":"C25*F25","v":4264.04},{"$f":"ROUND(P25/S25*100,3)","v":79.983999999999995},{"$f":"C25*H25","v":4011.3000000040001},{"$f":"ROUND(P25/U25*100,3)","v":85.022999999999996},{"$f":"J25-R25","v":3.3689250000037418E-3},{"$f":"K25-T25","v":-3.4013799999854655E-4},{"$f":"L25-V25","v":1.9073600000751867E-4}]
[]
["July",11,11,249564.60181818201,474.747272727,439.09090909100001,"07/10/18-12:00",396.48,"07/10/18-17:00",70.655759818999996,76.393358601000003,84.603584737000006,null,{"$f":"C27*D27","v":2745210.620000002},744,{"$f":"N27/O27","v":3689.7992204301104},{"$f":"C27*E27","v":5222.2199999969998},{"$f":"ROUND(P27/Q27*100,2)","v":70.66},{"$f":"C27*F27","v":4830.0000000010004},{"$f":"ROUND(P27/S27*100,3)","v":76.393000000000001},{"$f":"C27*H27","v":4361.2800000000007},{"$f":"ROUND(P27/U27*100,3)","v":84.603999999999999},{"$f":"J27-R27","v":-4.2401810000001205E-3},{"$f":"K27-T27","v":3.5860100000206785E-4},{"$f":"L27-V27","v":-4.1526299999361527E-4}]
[]
["August",11,11,237921.42727272701,445.44181818200002,404.36181818199998,"08/06/18-15:00",308.170909091,"08/28/18-18:00",71.790939144000006,79.084337402000003,103.769322535,null,{"$f":"C29*D29","v":2617135.6999999974},744,{"$f":"N29/O29","v":3517.6555107526847},{"$f":"C29*E29","v":4899.8600000020006},{"$f":"ROUND(P29/Q29*100,2)","v":71.790000000000006},{"$f":"C29*F29","v":4447.9800000019995},{"$f":"ROUND(P29/S29*100,3)","v":79.084000000000003},{"$f":"C29*H29","v":3389.8800000010001},{"$f":"ROUND(P29/U29*100,3)","v":103.76900000000001},{"$f":"J29-R29","v":9.391440000001694E-4},{"$f":"K29-T29","v":3.3740199999954257E-4},{"$f":"L29-V29","v":3.2253499999512769E-4}]
[]
["September",11,11,216471.461818182,455.77272727299999,397.89272727299999,"09/20/18-16:00",348.97272727299998,"09/04/18-16:00",65.965949714000004,75.561775190000006,86.154242031999999,null,{"$f":"C31*D31","v":2381186.0800000019},720,{"$f":"N31/O31","v":3307.2028888888917},{"$f":"C31*E31","v":5013.5000000029995},{"$f":"ROUND(P31/Q31*100,2)","v":65.97},{"$f":"C31*F31","v":4376.8200000030001},{"$f":"ROUND(P31/S31*100,3)","v":75.561999999999998},{"$f":"C31*H31","v":3838.7000000029998},{"$f":"ROUND(P31/U31*100,3)","v":86.153999999999996},{"$f":"J31-R31","v":-4.050285999994685E-3},{"$f":"K31-T31","v":-2.2480999999174855E-4},{"$f":"L31-V31","v":2.4203200000272318E-4}]
[]
["October",11,11,227097.816363636,480.24,384.04363636400001,"10/04/18-12:00",315.69818181800002,"10/08/18-15:00",63.559678595999998,79.480291192999999,96.686968144999994,null,{"$f":"C33*D33","v":2498075.9799999958},744,{"$f":"N33/O33","v":3357.6290053763382},{"$f":"C33*E33","v":5282.64},{"$f":"ROUND(P33/Q33*100,2)","v":63.56},{"$f":"C33*F33","v":4224.4800000040004},{"$f":"ROUND(P33/S33*100,3)","v":79.48},{"$f":"C33*H33","v":3472.6799999980003},{"$f":"ROUND(P33/U33*100,3)","v":96.686999999999998},{"$f":"J33-R33","v":-3.2140400000457703E-4},{"$f":"K33-T33","v":2.9119299999535997E-4},{"$f":"L33-V33","v":-3.1855000003133682E-5}]
[]
["November",11,11,228976.26,496.58181818200001,426.11454545499998,"11/19/18-12:00",310.247272727,"11/27/18-19:00",64.042333346000007,74.633120770999994,102.506165659,null,{"$f":"C35*D35","v":2518738.8600000003},720,{"$f":"N35/O35","v":3498.2484166666673},{"$f":"C35*E35","v":5462.4000000020005},{"$f":"ROUND(P35/Q35*100,2)","v":64.040000000000006},{"$f":"C35*F35","v":4687.2600000049997},{"$f":"ROUND(P35/S35*100,3)","v":74.632999999999996},{"$f":"C35*H35","v":3412.7199999969998},{"$f":"ROUND(P35/U35*100,3)","v":102.506},{"$f":"J35-R35","v":2.333346000000347E-3},{"$f":"K35-T35","v":1.2077099999885377E-4},{"$f":"L35-V35","v":1.6565900000387046E-4}]
[]
["December",11,11,242458.847272727,494.60545454499999,431.09272727299998,"12/04/18-13:00",400.98363636400001,"12/11/18-08:00",65.887980897999995,75.595232021000001,81.271532765000003,null,{"$f":"C37*D37","v":2667047.319999997},744,{"$f":"N37/O37","v":3584.7410215053724},{"$f":"C37*E37","v":5440.6599999949995},{"$f":"ROUND(P37/Q37*100,2)","v":65.89},{"$f":"C37*F37","v":4742.020000003},{"$f":"ROUND(P37/S37*100,3)","v":75.594999999999999},{"$f":"C37*H37","v":4410.8200000039997},{"$f":"ROUND(P37/U37*100,3)","v":81.272000000000006},{"$f":"J37-R37","v":-2.019102000005546E-3},{"$f":"K37-T37","v":2.3202100000219161E-4},{"$f":"L37-V37","v":-4.672350000021197E-4}]
[]
[]
["Note:  All hours are in EST"]
[]
[]
[]
[]
[]
[]
[]
[]
[]
[]
[]
[]
[]
[]
[]
[]
[]
[]
[]
[]
[]
[]
[]
[]
[]
[]
[]
[]
[]
[]
[]
[]
[]
[]
[]
[]
[]
[]
[]
[]
[]
[]
[]
[]
[]
[]
[]
[]
[]
[]
[]
[]
[]
[]
[]
[]
[]
[]
[]
[]
[]
[]
[]
[]
[]
[]
[]
[]
[]
[]
[]
[]
[]
[]
[]
[]
[]
[]
[]
[]
[]
[]
[]
[]
[]
[]
[]
[]
[]
[]
[]
[]
[]
[]
[]
[]
[]
[]
[]
[]
[]
[]
[]
[]
[]
[]
[]
[]
[]
[]
[]
[]
[]
[]
[]
[]
[]
[]
[]
[]
[]
[]
[]
[]
[]
[]
[]
[]
[]
[]
[]
[]
[]
[]
[]
[]
[]
[]
[]
[]
[]
[]
[]
[]
[]
[]
[]
[]
[]
[]
[]
[]
[]
[]
[]
[]
[]
[]
[]
[]
[]
[]
[]
[]
[]
[]
[]
[]
[]
[]
[]
[]
[]
[]
[]
[]
[]
[]
[]
[]
[]
[]
[]
[]
[]
[]
[]
[]
[]
[]
[]
[]
[]
[]
[]
[]
[]
[]
[]
[]
[]
[]
[]
[]
[]
[]
[]
[]
[]
[]
[]
[]
[]
[]
[]
[]
[]
[]
[]
[]
[]
[]
[]
[]
[]
[]
[]
[]
[]
[]
[]
[]
[]
[]
[]
[]
[]
[]
[]
[]
[]
[]
[]
[]
[]
[]
[]
[]
[]
[]
[]
[]
[]
[]
[]
[]
[]
[]
[]
[]
[]
[]
[]
[]
[]
[]
[]
[]
[]
[]
[]
[]
[]
[]
[]
[]
[]
[]
[]
[]
[]
[]
[]
[]
[]
[]
[]
[]
[]
[]
[]
[]
[]
[]
[]
[]
[]
[]
[]
[]
[]
[]
[]
[]
[]
[]
[]
[]
[]
[]
[]
[]
[]
[]
[]
[]
[]
[]
[]
[]
[]
[]
[]
[]
[]
[]
[]
[]
[]
[]
[]
[]
[]
[]
[]
[]
[]
[]
[]
[]
[]
[]
[]
[]
[]
[]
[]
[]
[]
[]
[]
[]
[]
[]
[]
[]
[]
[]
[]
[]
[]
[]
[]
[]
[]
[]
[]
[]
[]
[]
[]
[]
[]
[]
[]
[]
[]
[]
[]
[]
[]
[]
[]
[]
[]
[]
[]
[]
[]
[]
[]
[]
[]
[]
[]
[]
[]
[]
[]
[]
[]
[]
[]
[]
[]
[]
[]
[]
[]
[]
[]
[]
[]
[]
[]
[]
[]
[]
[]
[]
[]
[]
[]
[]
[]
[]
[]
[]
[]
[]
[]
[]
[]
[]
[]
[]
[]
[]
[]
[]
[]
[]
[]
[]
[]
[]
[]
[]
[]
[]
[]
[]
[]
[]
[]
[]
[]
[]
[]
[]
[]
[]
[]
[]
[]
[]
[]
[]
[]
[]
[]
[]
[]
[]
[]
[]
[]
[]
[]
[]
[]
[]
[]
[]
[]
[]
[]
[]
[]
[]
[]
[]
[]
[]
[]
[]
[]
[]
[]
[]
[]
[]
[]
[]
[]
[]
[]
[]
[]
[]
[]
[]
[]
[null,null,null,null,null,null,0]

{"sheet":"WP FR-16(7)(v) LoadRes DTSEC","index":57,"n_rows":554,"n_cols":25,"rows_kept":554,"cut":false,"hidden":false,"merged":[[10,5,10,6],[10,7,10,8]]}
[{"$f":"'WP FR-16(7)(v)-KW & KWH @Gen'!A1","v":"DUKE ENERGY KENTUCKY, INC."},null,null,null,null,null,null,null,null,null,{"$f":"'WP FR-16(7)(v)-KW & KWH @Gen'!G1","v":"Work Paper FR-16(7)(v) "}]
[{"$f":"coss_type","v":"ELECTRIC COST OF SERVICE STUDY "},null,null,null,null,null,null,null,null,null,{"$f":"'WP FR-16(7)(v)-KW & KWH @Gen'!G2","v":"Witness Responsible:"}]
[{"$f":"case_name","v":"CASE NO: 2019-00271"},null,null,null,null,null,null,null,null,null,{"$f":"PROPER(Witness)","v":"James E. Ziolkowski"}]
[{"$f":"alloc_factors","v":"ALLOCATION FACTORS FOR COST OF SERVICE STUDY"},null,null,null,null,null,null,null,null,null,"Page 43"]
[{"$f":"'WP FR-16(7)(v)-KW & KWH @Gen'!A5","v":"TWELVE MONTHS ENDING DECEMBER 31, 2018"}]
[]
["MONTHLY STATISTICS"]
["DT  - DISTRIBUTION SECONDARY"]
["JANUARY THROUGH DECEMBER, 2016",null,null,null,null,null,null,null,null,null,null,null,null,"KWH","HOURS","KWH/HR","NCD",null,"GROUP ",null,"SYSTEM",null,"DIFFERENCE"]
[]
[null,"NUMBER OF CUSTOMERS",null,"SAMPLE AVG. USAGE","AVERAGE NCP","GROUP COINCIDENT DEMAND",null,"SYSTEM COINCIDENT DEMAND",null,"NCD LOAD FACTOR","GROUP COIN LOAD FACTOR","SYSTEM COIN LOAD FACTOR",null,null,null,null,"AVERAGE KW * POPULATION","LOAD FACTOR","COINCIDENT DEM KW * POPULTION","COIN LOAD FACTOR","COINCIDENT DEM KW * POPULTION","COIN LOAD FACTOR","NCD LOAD FACTOR","GROUP COIN LOAD FACTOR","SYSTEM COIN LOAD FACTOR"]
["DATE","OBSERVED","POPULATION","KWH","KW","KW","DATE-TIME","KW","DATE-TIME"]
[]
[]
["January",153,153,364192.16363398702,727.36704575199997,612.75503268,"01/17/18-11:00",578.09196078399998,"01/05/18-08:00",67.298291714000001,79.886018094999997,84.676077422000006,null,{"$f":"C15*D15","v":55721401.036000013},744,{"$f":"N15/O15","v":74894.356231182814},{"$f":"C15*E15","v":111287.15800005599},{"$f":"ROUND(P15/Q15*100,2)","v":67.3},{"$f":"C15*F15","v":93751.520000039993},{"$f":"ROUND(P15/S15*100,3)","v":79.885999999999996},{"$f":"C15*H15","v":88448.069999952},{"$f":"ROUND(P15/U15*100,3)","v":84.676000000000002},{"$f":"J15-R15","v":-1.708285999995951E-3},{"$f":"K15-T15","v":1.8095000001494554E-5},{"$f":"L15-V15","v":7.7422000003934954E-5}]
[]
["February",153,153,327072.80899346399,727.02590849700005,611.04994771199995,"02/20/18-15:00",555.00266666699997,"02/02/18-08:00",66.946099704000005,79.652324887000006,87.696063245000005,null,{"$f":"C17*D17","v":50042139.775999993},672,{"$f":"N17/O17","v":74467.469904761892},{"$f":"C17*E17","v":111234.964000041},{"$f":"ROUND(P17/Q17*100,2)","v":66.95},{"$f":"C17*F17","v":93490.641999935993},{"$f":"ROUND(P17/S17*100,3)","v":79.652000000000001},{"$f":"C17*H17","v":84915.408000051},{"$f":"ROUND(P17/U17*100,3)","v":87.695999999999998},{"$f":"J17-R17","v":-3.9002959999976383E-3},{"$f":"K17-T17","v":3.2488700000499193E-4},{"$f":"L17-V17","v":6.3245000006872942E-5}]
[]
["March",153,153,352154.44524183002,696.73056209200001,585.45450980400005,"03/01/18-11:00",523.09703267999998,"03/08/18-20:00",67.9352813,80.847590945999997,90.485290049,null,{"$f":"C19*D19","v":53879630.121999994},744,{"$f":"N19/O19","v":72418.857690860212},{"$f":"C19*E19","v":106599.776000076},{"$f":"ROUND(P19/Q19*100,2)","v":67.94},{"$f":"C19*F19","v":89574.540000012013},{"$f":"ROUND(P19/S19*100,3)","v":80.847999999999999},{"$f":"C19*H19","v":80033.846000039994},{"$f":"ROUND(P19/U19*100,3)","v":90.484999999999999},{"$f":"J19-R19","v":-4.7186999999979662E-3},{"$f":"K19-T19","v":-4.0905400000212921E-4},{"$f":"L19-V19","v":2.9004900000018097E-4}]
[]
["April",153,153,338022.68686274497,713.47023529399996,576.67111111099996,"04/03/18-14:00",550.68159477100005,"04/17/18-11:00",65.801757488000007,81.411387692000005,85.253612692999994,null,{"$f":"C21*D21","v":51717471.089999981},720,{"$f":"N21/O21","v":71829.820958333308},{"$f":"C21*E21","v":109160.945999982},{"$f":"ROUND(P21/Q21*100,2)","v":65.8},{"$f":"C21*F21","v":88230.679999982996},{"$f":"ROUND(P21/S21*100,3)","v":81.411000000000001},{"$f":"C21*H21","v":84254.283999963009},{"$f":"ROUND(P21/U21*100,3)","v":85.254000000000005},{"$f":"J21-R21","v":1.7574880000097437E-3},{"$f":"K21-T21","v":3.8769200000388082E-4},{"$f":"L21-V21","v":-3.8730700001110563E-4}]
[]
["May",153,153,400525.37601307197,817.22681045800005,698.10027450999996,"05/30/18-13:00",643.87824836599998,"05/15/18-17:00",65.874069753000001,77.115076274000003,83.609061265999998,null,{"$f":"C23*D23","v":61280382.530000009},744,{"$f":"N23/O23","v":82366.105551075278},{"$f":"C23*E23","v":125035.702000074},{"$f":"ROUND(P23/Q23*100,2)","v":65.87},{"$f":"C23*F23","v":106809.34200003},{"$f":"ROUND(P23/S23*100,3)","v":77.114999999999995},{"$f":"C23*H23","v":98513.371999997995},{"$f":"ROUND(P23/U23*100,3)","v":83.608999999999995},{"$f":"J23-R23","v":4.0697529999960125E-3},{"$f":"K23-T23","v":7.6274000008424991E-5},{"$f":"L23-V23","v":6.1266000003001864E-5}]
[]
["June",152,152,406014.60330263199,833.91414473700002,726.10801315799995,"06/19/18-13:00",684.24481578899997,"06/19/18-17:00",67.621969816999993,77.661885151000007,82.413364083000005,null,{"$f":"C25*D25","v":61714219.702000067},720,{"$f":"N25/O25","v":85714.194030555649},{"$f":"C25*E25","v":126754.95000002401},{"$f":"ROUND(P25/Q25*100,2)","v":67.62},{"$f":"C25*F25","v":110368.418000016},{"$f":"ROUND(P25/S25*100,3)","v":77.662000000000006},{"$f":"C25*H25","v":104005.211999928},{"$f":"ROUND(P25/U25*100,3)","v":82.412999999999997},{"$f":"J25-R25","v":1.9698169999884385E-3},{"$f":"K25-T25","v":-1.1484899999913978E-4},{"$f":"L25-V25","v":3.6408300000800864E-4}]
[]
["July",152,152,416287.74923684198,830.52085526300004,725.35767105299999,"07/10/18-14:00",685.48453947400003,"07/10/18-17:00",67.370559224999994,77.138019904000004,81.624969266999997,null,{"$f":"C27*D27","v":63275737.883999981},744,{"$f":"N27/O27","v":85048.034790322548},{"$f":"C27*E27","v":126239.169999976},{"$f":"ROUND(P27/Q27*100,2)","v":67.37},{"$f":"C27*F27","v":110254.366000056},{"$f":"ROUND(P27/S27*100,3)","v":77.138000000000005},{"$f":"C27*H27","v":104193.650000048},{"$f":"ROUND(P27/U27*100,3)","v":81.625},{"$f":"J27-R27","v":5.5922499998928288E-4},{"$f":"K27-T27","v":1.9903999998405197E-5},{"$f":"L27-V27","v":-3.0733000002669542E-5}]
[]
["August",152,152,432137.66725,846.353236842,733.93589473700001,"08/29/18-13:00",665.95718421100003,"08/28/18-18:00",68.627397242000001,79.139091312999994,87.217348455000007,null,{"$f":"C29*D29","v":65684925.421999998},744,{"$f":"N29/O29","v":88286.190083333335},{"$f":"C29*E29","v":128645.691999984},{"$f":"ROUND(P29/Q29*100,2)","v":68.63},{"$f":"C29*F29","v":111558.256000024},{"$f":"ROUND(P29/S29*100,3)","v":79.138999999999996},{"$f":"C29*H29","v":101225.492000072},{"$f":"ROUND(P29/U29*100,3)","v":87.216999999999999},{"$f":"J29-R29","v":-2.6027579999947648E-3},{"$f":"K29-T29","v":9.1312999998649502E-5},{"$f":"L29-V29","v":3.484550000081299E-4}]
[]
["September",152,152,391550.42664473702,840.25057894700001,731.16200000000003,"09/05/18-13:00",679.22681578900006,"09/04/18-16:00",64.721173734999994,74.377502797999995,80.064571122000004,null,{"$f":"C31*D31","v":59515664.850000024},720,{"$f":"N31/O31","v":82660.645625000034},{"$f":"C31*E31","v":127718.08799994401},{"$f":"ROUND(P31/Q31*100,2)","v":64.72},{"$f":"C31*F31","v":111136.62400000001},{"$f":"ROUND(P31/S31*100,3)","v":74.378},{"$f":"C31*H31","v":103242.47599992801},{"$f":"ROUND(P31/U31*100,3)","v":80.064999999999998},{"$f":"J31-R31","v":1.1737349999947355E-3},{"$f":"K31-T31","v":-4.9720200000535897E-4},{"$f":"L31-V31","v":-4.2887799999391518E-4}]
[]
["October",152,152,380523.77035526303,809.22044736800001,695.04031578900003,"10/04/18-12:00",660.24319736799998,"10/08/18-15:00",63.203627916999999,73.586620655999994,77.464892121999995,null,{"$f":"C33*D33","v":57839613.093999982},744,{"$f":"N33/O33","v":77741.415448924701},{"$f":"C33*E33","v":123001.507999936},{"$f":"ROUND(P33/Q33*100,2)","v":63.2},{"$f":"C33*F33","v":105646.12799992801},{"$f":"ROUND(P33/S33*100,3)","v":73.587000000000003},{"$f":"C33*H33","v":100356.965999936},{"$f":"ROUND(P33/U33*100,3)","v":77.465000000000003},{"$f":"J33-R33","v":3.6279169999957617E-3},{"$f":"K33-T33","v":-3.7934400000949609E-4},{"$f":"L33-V33","v":-1.0787800000855441E-4}]
[]
["November",151,151,343221.990529801,726.94866225199996,603.61904635799999,"11/29/18-14:00",535.02505960300005,"11/27/18-19:00",65.575085810000004,78.973188793000006,89.098108679999996,null,{"$f":"C35*D35","v":51826520.569999948},720,{"$f":"N35/O35","v":71981.278569444374},{"$f":"C35*E35","v":109769.248000052},{"$f":"ROUND(P35/Q35*100,2)","v":65.58},{"$f":"C35*F35","v":91146.476000057999},{"$f":"ROUND(P35/S35*100,3)","v":78.972999999999999},{"$f":"C35*H35","v":80788.784000053012},{"$f":"ROUND(P35/U35*100,3)","v":89.097999999999999},{"$f":"J35-R35","v":-4.9141899999938232E-3},{"$f":"K35-T35","v":1.8879300000662624E-4},{"$f":"L35-V35","v":1.0867999999675249E-4}]
[]
["December",151,151,341774.29958940402,720.59855629100002,593.97831788099995,"12/18/18-10:00",573.71615894000001,"12/11/18-08:00",63.748956278000001,77.338523101000007,80.069918099999995,null,{"$f":"C37*D37","v":51607919.238000005},744,{"$f":"N37/O37","v":69365.482846774205},{"$f":"C37*E37","v":108810.381999941},{"$f":"ROUND(P37/Q37*100,2)","v":63.75},{"$f":"C37*F37","v":89690.726000030991},{"$f":"ROUND(P37/S37*100,3)","v":77.338999999999999},{"$f":"C37*H37","v":86631.139999940002},{"$f":"ROUND(P37/U37*100,3)","v":80.069999999999993},{"$f":"J37-R37","v":-1.0437219999985814E-3},{"$f":"K37-T37","v":-4.7689899999170393E-4},{"$f":"L37-V37","v":-8.1899999997858686E-5}]
[]
[]
["Note:  All hours are in EST"]
[]
[]
[]
[]
[]
[]
[]
[]
[]
[]
[]
[]
[]
[]
[]
[]
[]
[]
[]
[]
[]
[]
[]
[]
[]
[]
[]
[]
[]
[]
[]
[]
[]
[]
[]
[]
[]
[]
[]
[]
[]
[]
[]
[]
[]
[]
[]
[]
[]
[]
[]
[]
[]
[]
[]
[]
[]
[]
[]
[]
[]
[]
[]
[]
[]
[]
[]
[]
[]
[]
[]
[]
[]
[]
[]
[]
[]
[]
[]
[]
[]
[]
[]
[]
[]
[]
[]
[]
[]
[]
[]
[]
[]
[]
[]
[]
[]
[]
[]
[]
[]
[]
[]
[]
[]
[]
[]
[]
[]
[]
[]
[]
[]
[]
[]
[]
[]
[]
[]
[]
[]
[]
[]
[]
[]
[]
[]
[]
[]
[]
[]
[]
[]
[]
[]
[]
[]
[]
[]
[]
[]
[]
[]
[]
[]
[]
[]
[]
[]
[]
[]
[]
[]
[]
[]
[]
[]
[]
[]
[]
[]
[]
[]
[]
[]
[]
[]
[]
[]
[]
[]
[]
[]
[]
[]
[]
[]
[]
[]
[]
[]
[]
[]
[]
[]
[]
[]
[]
[]
[]
[]
[]
[]
[]
[]
[]
[]
[]
[]
[]
[]
[]
[]
[]
[]
[]
[]
[]
[]
[]
[]
[]
[]
[]
[]
[]
[]
[]
[]
[]
[]
[]
[]
[]
[]
[]
[]
[]
[]
[]
[]
[]
[]
[]
[]
[]
[]
[]
[]
[]
[]
[]
[]
[]
[]
[]
[]
[]
[]
[]
[]
[]
[]
[]
[]
[]
[]
[]
[]
[]
[]
[]
[]
[]
[]
[]
[]
[]
[]
[]
[]
[]
[]
[]
[]
[]
[]
[]
[]
[]
[]
[]
[]
[]
[]
[]
[]
[]
[]
[]
[]
[]
[]
[]
[]
[]
[]
[]
[]
[]
[]
[]
[]
[]
[]
[]
[]
[]
[]
[]
[]
[]
[]
[]
[]
[]
[]
[]
[]
[]
[]
[]
[]
[]
[]
[]
[]
[]
[]
[]
[]
[]
[]
[]
[]
[]
[]
[]
[]
[]
[]
[]
[]
[]
[]
[]
[]
[]
[]
[]
[]
[]
[]
[]
[]
[]
[]
[]
[]
[]
[]
[]
[]
[]
[]
[]
[]
[]
[]
[]
[]
[]
[]
[]
[]
[]
[]
[]
[]
[]
[]
[]
[]
[]
[]
[]
[]
[]
[]
[]
[]
[]
[]
[]
[]
[]
[]
[]
[]
[]
[]
[]
[]
[]
[]
[]
[]
[]
[]
[]
[]
[]
[]
[]
[]
[]
[]
[]
[]
[]
[]
[]
[]
[]
[]
[]
[]
[]
[]
[]
[]
[]
[]
[]
[]
[]
[]
[]
[]
[]
[]
[]
[]
[]
[]
[]
[]
[]
[]
[]
[]
[]
[]
[]
[]
[]
[]
[]
[]
[]
[]
[]
[]
[]
[]
[]
[]
[]
[]
[]
[]
[]
[]
[]
[]
[]
[]
[]
[]
[]
[]
[]
[]
[]
[]
[]
[]
[]
[]
[]
[]
[]
[]
[]
[]
[]
[]
[]
[]
[]
[]
[]
[]
[]
[]
[]
[]
[]
[]
[]
[]
[]
[]
[null,null,null,null,null,null,0]

{"sheet":"WP FR-16(7)(v) LoadRes DTPRI","index":58,"n_rows":554,"n_cols":25,"rows_kept":554,"cut":false,"hidden":false,"merged":[[10,5,10,6],[10,7,10,8]]}
[{"$f":"'WP FR-16(7)(v)-KW & KWH @Gen'!A1","v":"DUKE ENERGY KENTUCKY, INC."},null,null,null,null,null,null,null,null,null,{"$f":"'WP FR-16(7)(v)-KW & KWH @Gen'!G1","v":"Work Paper FR-16(7)(v) "}]
[{"$f":"coss_type","v":"ELECTRIC COST OF SERVICE STUDY "},null,null,null,null,null,null,null,null,null,{"$f":"'WP FR-16(7)(v)-KW & KWH @Gen'!G2","v":"Witness Responsible:"}]
[{"$f":"case_name","v":"CASE NO: 2019-00271"},null,null,null,null,null,null,null,null,null,{"$f":"PROPER(Witness)","v":"James E. Ziolkowski"}]
[{"$f":"alloc_factors","v":"ALLOCATION FACTORS FOR COST OF SERVICE STUDY"},null,null,null,null,null,null,null,null,null,"Page 44"]
[{"$f":"'WP FR-16(7)(v)-KW & KWH @Gen'!A5","v":"TWELVE MONTHS ENDING DECEMBER 31, 2018"}]
[]
["MONTHLY STATISTICS"]
["DT  - PRIMARY"]
["JANUARY THROUGH DECEMBER, 2016",null,null,null,null,null,null,null,null,null,null,null,null,"KWH","HOURS","KWH/HR","NCD",null,"GROUP ",null,"SYSTEM",null,"DIFFERENCE"]
[]
[null,"NUMBER OF CUSTOMERS",null,"SAMPLE AVG. USAGE","AVERAGE NCP","GROUP COINCIDENT DEMAND",null,"SYSTEM COINCIDENT DEMAND",null,"NCD LOAD FACTOR","GROUP COIN LOAD FACTOR","SYSTEM COIN LOAD FACTOR",null,null,null,null,"AVERAGE KW * POPULATION","LOAD FACTOR","COINCIDENT DEM KW * POPULTION","COIN LOAD FACTOR","COINCIDENT DEM KW * POPULTION","COIN LOAD FACTOR","NCD LOAD FACTOR","GROUP COIN LOAD FACTOR","SYSTEM COIN LOAD FACTOR"]
["DATE","OBSERVED","POPULATION","KWH","KW","KW","DATE-TIME","KW","DATE-TIME"]
[]
[]
["January",37,37,1061156.62216216,1975.086486486,1660.841621622,"01/10/18-16:00",1564.335135135,"01/05/18-08:00",72.213839355000005,85.877290400000007,91.175206031000002,null,{"$f":"C15*D15","v":39262795.019999921},744,{"$f":"N15/O15","v":52772.573951612794},{"$f":"C15*E15","v":73078.199999981996},{"$f":"ROUND(P15/Q15*100,2)","v":72.209999999999994},{"$f":"C15*F15","v":61451.140000013998},{"$f":"ROUND(P15/S15*100,3)","v":85.876999999999995},{"$f":"C15*H15","v":57880.399999994996},{"$f":"ROUND(P15/U15*100,3)","v":91.174999999999997},{"$f":"J15-R15","v":3.8393550000108689E-3},{"$f":"K15-T15","v":2.9040000001145927E-4},{"$f":"L15-V15","v":2.0603100000471386E-4}]
[]
["February",37,37,959386.92324324301,1989.8329729730001,1731.629189189,"02/20/18-16:00",1546.6562162160001,"02/02/18-08:00",71.747685928999999,82.446006389999994,92.306169722999996,null,{"$f":"C17*D17","v":35497316.159999989},672,{"$f":"N17/O17","v":52823.387142857129},{"$f":"C17*E17","v":73623.820000000997},{"$f":"ROUND(P17/Q17*100,2)","v":71.75},{"$f":"C17*F17","v":64070.279999992999},{"$f":"ROUND(P17/S17*100,3)","v":82.445999999999998},{"$f":"C17*H17","v":57226.279999992003},{"$f":"ROUND(P17/U17*100,3)","v":92.305999999999997},{"$f":"J17-R17","v":-2.3140710000006948E-3},{"$f":"K17-T17","v":6.3899999958039189E-6},{"$f":"L17-V17","v":1.6972299999906681E-4}]
[]
["March",37,37,1043325.68702703,1925.452432432,1638.102162162,"03/29/18-15:00",1502.5097297299999,"03/08/18-20:00",72.830647393999996,85.606350092,93.331806381000007,null,{"$f":"C19*D19","v":38603050.420000114},744,{"$f":"N19/O19","v":51885.820456989401},{"$f":"C19*E19","v":71241.739999983998},{"$f":"ROUND(P19/Q19*100,2)","v":72.83},{"$f":"C19*F19","v":60609.779999994003},{"$f":"ROUND(P19/S19*100,3)","v":85.605999999999995},{"$f":"C19*H19","v":55592.860000009998},{"$f":"ROUND(P19/U19*100,3)","v":93.331999999999994},{"$f":"J19-R19","v":6.4739399999780289E-4},{"$f":"K19-T19","v":3.5009200000502005E-4},{"$f":"L19-V19","v":-1.9361899998671106E-4}]
[]
["April",37,37,1014459.35621622,1995.417837838,1755.850810811,"04/03/18-14:00",1491.684324324,"04/17/18-11:00",70.610340418999996,80.244364692000005,94.455060302999996,null,{"$f":"C21*D21","v":37534996.180000141},720,{"$f":"N21/O21","v":52131.939138889087},{"$f":"C21*E21","v":73830.460000006002},{"$f":"ROUND(P21/Q21*100,2)","v":70.61},{"$f":"C21*F21","v":64966.480000006995},{"$f":"ROUND(P21/S21*100,3)","v":80.244},{"$f":"C21*H21","v":55192.319999988002},{"$f":"ROUND(P21/U21*100,3)","v":94.454999999999998},{"$f":"J21-R21","v":3.404189999969276E-4},{"$f":"K21-T21","v":3.6469200000510682E-4},{"$f":"L21-V21","v":6.0302999997929874E-5}]
[]
["May",37,37,1125148.8432432399,2144.5027027030001,1846.1745945949999,"05/30/18-15:00",1673.6789189189999,"05/15/18-17:00",70.519698129000005,81.915157793999995,90.357643585000005,null,{"$f":"C23*D23","v":41630507.199999876},744,{"$f":"N23/O23","v":55954.982795698757},{"$f":"C23*E23","v":79346.600000011007},{"$f":"ROUND(P23/Q23*100,2)","v":70.52},{"$f":"C23*F23","v":68308.460000014995},{"$f":"ROUND(P23/S23*100,3)","v":81.915000000000006},{"$f":"C23*H23","v":61926.120000002993},{"$f":"ROUND(P23/U23*100,3)","v":90.358000000000004},{"$f":"J23-R23","v":-3.0187099999068323E-4},{"$f":"K23-T23","v":1.5779399998905319E-4},{"$f":"L23-V23","v":-3.5641499999883308E-4}]
[]
["June",36,36,1174201.2166666701,2247.486666667,1968.351666667,"06/19/18-09:00",1906.0072222220001,"06/19/18-17:00",72.562611708999995,82.852828118000005,85.562898404999999,null,{"$f":"C25*D25","v":42271243.800000124},720,{"$f":"N25/O25","v":58710.060833333504},{"$f":"C25*E25","v":80909.520000011995},{"$f":"ROUND(P25/Q25*100,2)","v":72.56},{"$f":"C25*F25","v":70860.660000011994},{"$f":"ROUND(P25/S25*100,3)","v":82.852999999999994},{"$f":"C25*H25","v":68616.259999992006},{"$f":"ROUND(P25/U25*100,3)","v":85.563000000000002},{"$f":"J25-R25","v":2.6117089999928567E-3},{"$f":"K25-T25","v":-1.7188199998940945E-4},{"$f":"L25-V25","v":-1.0159500000384014E-4}]
[]
["July",36,36,1206015.94666667,2261.9372222219999,1962.5616666670001,"07/10/18-09:00",1854.4827777779999,"07/10/18-17:00",71.663756168999996,82.595579193999995,87.409233185999994,null,{"$f":"C27*D27","v":43416574.080000117},744,{"$f":"N27/O27","v":58355.610322580804},{"$f":"C27*E27","v":81429.739999992002},{"$f":"ROUND(P27/Q27*100,2)","v":71.66},{"$f":"C27*F27","v":70652.220000012006},{"$f":"ROUND(P27/S27*100,3)","v":82.596000000000004},{"$f":"C27*H27","v":66761.380000007994},{"$f":"ROUND(P27/U27*100,3)","v":87.409000000000006},{"$f":"J27-R27","v":3.7561689999989767E-3},{"$f":"K27-T27","v":-4.2080600000815593E-4},{"$f":"L27-V27","v":2.3318599998845002E-4}]
[]
["August",36,36,1239015.57333333,2260.5888888889999,1965.2105555559999,"08/28/18-14:00",1883.5611111109999,"08/28/18-18:00",73.668570200000005,84.741225709000005,88.414626036000001,null,{"$f":"C29*D29","v":44604560.639999881},744,{"$f":"N29/O29","v":59952.366451612746},{"$f":"C29*E29","v":81381.200000003999},{"$f":"ROUND(P29/Q29*100,2)","v":73.67},{"$f":"C29*F29","v":70747.580000015994},{"$f":"ROUND(P29/S29*100,3)","v":84.741},{"$f":"C29*H29","v":67808.199999995995},{"$f":"ROUND(P29/U29*100,3)","v":88.415000000000006},{"$f":"J29-R29","v":-1.429799999996817E-3},{"$f":"K29-T29","v":2.2570900000573602E-4},{"$f":"L29-V29","v":-3.7396400000488939E-4}]
[]
["September",36,36,1146435.7216666699,2249.734444444,1966.399444444,"09/20/18-15:00",1912.166111111,"09/04/18-16:00",70.775990453999995,80.973977090000005,83.270581273999994,null,{"$f":"C31*D31","v":41271685.980000116},720,{"$f":"N31/O31","v":57321.786083333493},{"$f":"C31*E31","v":80990.439999983995},{"$f":"ROUND(P31/Q31*100,2)","v":70.78},{"$f":"C31*F31","v":70790.379999983998},{"$f":"ROUND(P31/S31*100,3)","v":80.974000000000004},{"$f":"C31*H31","v":68837.979999995994},{"$f":"ROUND(P31/U31*100,3)","v":83.271000000000001},{"$f":"J31-R31","v":-4.0095460000060257E-3},{"$f":"K31-T31","v":-2.2909999998432795E-5},{"$f":"L31-V31","v":-4.1872600000658622E-4}]
[]
["October",36,36,1106755.3641975301,2150.9616666669999,1928.879444444,"10/03/18-15:00",1915.445555556,"10/08/18-15:00",69.158573920999999,77.121170974999998,77.662056742999994,null,{"$f":"C33*D33","v":39843193.111111082},744,{"$f":"N33/O33","v":53552.678912783711},{"$f":"C33*E33","v":77434.620000012001},{"$f":"ROUND(P33/Q33*100,2)","v":69.16},{"$f":"C33*F33","v":69439.659999983996},{"$f":"ROUND(P33/S33*100,3)","v":77.120999999999995},{"$f":"C33*H33","v":68956.040000016001},{"$f":"ROUND(P33/U33*100,3)","v":77.662000000000006},{"$f":"J33-R33","v":-1.4260789999980261E-3},{"$f":"K33-T33","v":1.7097500000318178E-4},{"$f":"L33-V33","v":5.6742999987591247E-5}]
[]
["November",36,36,999047.37787037005,1962.697777778,1739.8213580250001,"11/01/18-15:00",1506.5672222220001,"11/27/18-19:00",70.696865217999999,79.753349170000007,92.101154342000001,null,{"$f":"C35*D35","v":35965705.603333324},720,{"$f":"N35/O35","v":49952.368893518506},{"$f":"C35*E35","v":70657.120000007999},{"$f":"ROUND(P35/Q35*100,2)","v":70.7},{"$f":"C35*F35","v":62633.568888900001},{"$f":"ROUND(P35/S35*100,3)","v":79.753},{"$f":"C35*H35","v":54236.419999992002},{"$f":"ROUND(P35/U35*100,3)","v":92.100999999999999},{"$f":"J35-R35","v":-3.1347820000036108E-3},{"$f":"K35-T35","v":3.4917000000689313E-4},{"$f":"L35-V35","v":1.5434200000186138E-4}]
[]
["December",36,36,983969.751728395,1889.7983333330001,1592.6177777779999,"12/17/18-16:00",1548.9552469140001,"12/11/18-08:00",69.983128123,83.041895384,85.382711444999998,null,{"$f":"C37*D37","v":35422911.06222222},744,{"$f":"N37/O37","v":47611.439599761048},{"$f":"C37*E37","v":68032.739999988},{"$f":"ROUND(P37/Q37*100,2)","v":69.98},{"$f":"C37*F37","v":57334.240000007994},{"$f":"ROUND(P37/S37*100,3)","v":83.042000000000002},{"$f":"C37*H37","v":55762.388888904003},{"$f":"ROUND(P37/U37*100,3)","v":85.382999999999996},{"$f":"J37-R37","v":3.1281229999962079E-3},{"$f":"K37-T37","v":-1.0461600000155613E-4},{"$f":"L37-V37","v":-2.8855499999735912E-4}]
[]
["Note:  All hours are in EST"]
[]
[]
[]
[]
[]
[]
[]
[]
[]
[]
[]
[]
[]
[]
[]
[]
[]
[]
[]
[]
[]
[]
[]
[]
[]
[]
[]
[]
[]
[]
[]
[]
[]
[]
[]
[]
[]
[]
[]
[]
[]
[]
[]
[]
[]
[]
[]
[]
[]
[]
[]
[]
[]
[]
[]
[]
[]
[]
[]
[]
[]
[]
[]
[]
[]
[]
[]
[]
[]
[]
[]
[]
[]
[]
[]
[]
[]
[]
[]
[]
[]
[]
[]
[]
[]
[]
[]
[]
[]
[]
[]
[]
[]
[]
[]
[]
[]
[]
[]
[]
[]
[]
[]
[]
[]
[]
[]
[]
[]
[]
[]
[]
[]
[]
[]
[]
[]
[]
[]
[]
[]
[]
[]
[]
[]
[]
[]
[]
[]
[]
[]
[]
[]
[]
[]
[]
[]
[]
[]
[]
[]
[]
[]
[]
[]
[]
[]
[]
[]
[]
[]
[]
[]
[]
[]
[]
[]
[]
[]
[]
[]
[]
[]
[]
[]
[]
[]
[]
[]
[]
[]
[]
[]
[]
[]
[]
[]
[]
[]
[]
[]
[]
[]
[]
[]
[]
[]
[]
[]
[]
[]
[]
[]
[]
[]
[]
[]
[]
[]
[]
[]
[]
[]
[]
[]
[]
[]
[]
[]
[]
[]
[]
[]
[]
[]
[]
[]
[]
[]
[]
[]
[]
[]
[]
[]
[]
[]
[]
[]
[]
[]
[]
[]
[]
[]
[]
[]
[]
[]
[]
[]
[]
[]
[]
[]
[]
[]
[]
[]
[]
[]
[]
[]
[]
[]
[]
[]
[]
[]
[]
[]
[]
[]
[]
[]
[]
[]
[]
[]
[]
[]
[]
[]
[]
[]
[]
[]
[]
[]
[]
[]
[]
[]
[]
[]
[]
[]
[]
[]
[]
[]
[]
[]
[]
[]
[]
[]
[]
[]
[]
[]
[]
[]
[]
[]
[]
[]
[]
[]
[]
[]
[]
[]
[]
[]
[]
[]
[]
[]
[]
[]
[]
[]
[]
[]
[]
[]
[]
[]
[]
[]
[]
[]
[]
[]
[]
[]
[]
[]
[]
[]
[]
[]
[]
[]
[]
[]
[]
[]
[]
[]
[]
[]
[]
[]
[]
[]
[]
[]
[]
[]
[]
[]
[]
[]
[]
[]
[]
[]
[]
[]
[]
[]
[]
[]
[]
[]
[]
[]
[]
[]
[]
[]
[]
[]
[]
[]
[]
[]
[]
[]
[]
[]
[]
[]
[]
[]
[]
[]
[]
[]
[]
[]
[]
[]
[]
[]
[]
[]
[]
[]
[]
[]
[]
[]
[]
[]
[]
[]
[]
[]
[]
[]
[]
[]
[]
[]
[]
[]
[]
[]
[]
[]
[]
[]
[]
[]
[]
[]
[]
[]
[]
[]
[]
[]
[]
[]
[]
[]
[]
[]
[]
[]
[]
[]
[]
[]
[]
[]
[]
[]
[]
[]
[]
[]
[]
[]
[]
[]
[]
[]
[]
[]
[]
[]
[]
[]
[]
[]
[]
[]
[]
[]
[]
[]
[]
[]
[]
[]
[]
[]
[]
[]
[]
[]
[]
[]
[]
[]
[]
[]
[]
[]
[]
[]
[]
[]
[]
[]
[]
[]
[]
[]
[]
[null,null,null,null,null,null,0]

{"sheet":"WP FR-16(7)(v) LoadRes EH","index":59,"n_rows":554,"n_cols":25,"rows_kept":554,"cut":false,"hidden":false,"merged":[[10,5,10,6],[10,7,10,8]]}
[{"$f":"'WP FR-16(7)(v)-KW & KWH @Gen'!A1","v":"DUKE ENERGY KENTUCKY, INC."},null,null,null,null,null,null,null,null,null,{"$f":"'WP FR-16(7)(v)-KW & KWH @Gen'!G1","v":"Work Paper FR-16(7)(v) "}]
[{"$f":"coss_type","v":"ELECTRIC COST OF SERVICE STUDY "},null,null,null,null,null,null,null,null,null,{"$f":"'WP FR-16(7)(v)-KW & KWH @Gen'!G2","v":"Witness Responsible:"}]
[{"$f":"case_name","v":"CASE NO: 2019-00271"},null,null,null,null,null,null,null,null,null,{"$f":"PROPER(Witness)","v":"James E. Ziolkowski"}]
[{"$f":"alloc_factors","v":"ALLOCATION FACTORS FOR COST OF SERVICE STUDY"},null,null,null,null,null,null,null,null,null,"Page 45"]
[{"$f":"'WP FR-16(7)(v)-KW & KWH @Gen'!A5","v":"TWELVE MONTHS ENDING DECEMBER 31, 2018"}]
[]
["MONTHLY STATISTICS"]
["OPTIONAL RATE FOR ELECTRIC SPACE HEATING - EH RATE GROUP"]
["JANUARY THROUGH DECEMBER, 2016",null,null,null,null,null,null,null,null,null,null,null,null,"KWH","HOURS","KWH/HR","NCD",null,"GROUP ",null,"SYSTEM",null,"DIFFERENCE"]
[]
[null,"NUMBER OF CUSTOMERS",null,"SAMPLE AVG. USAGE","AVERAGE NCP","GROUP COINCIDENT DEMAND",null,"SYSTEM COINCIDENT DEMAND",null,"NCD LOAD FACTOR","GROUP COIN LOAD FACTOR","SYSTEM COIN LOAD FACTOR",null,null,null,null,"AVERAGE KW * POPULATION","LOAD FACTOR","COINCIDENT DEM KW * POPULTION","COIN LOAD FACTOR","COINCIDENT DEM KW * POPULTION","COIN LOAD FACTOR","NCD LOAD FACTOR","GROUP COIN LOAD FACTOR","SYSTEM COIN LOAD FACTOR"]
["DATE","OBSERVED","POPULATION","KWH","KW","KW","DATE-TIME","KW","DATE-TIME"]
[]
[]
["January",59,102,29594.883333333335,97.30312095156863,80.012966674264703,"01/05/18-08:00",80.012966674264703,"01/05/18-08:00",40.880568482999998,49.714528344000001,49.714528344000001,null,{"$f":"C15*D15","v":3018678.1},744,{"$f":"N15/O15","v":4057.3630376344086},{"$f":"C15*E15","v":9924.9183370600003},{"$f":"ROUND(P15/Q15*100,2)","v":40.880000000000003},{"$f":"C15*F15","v":8161.322600775},{"$f":"ROUND(P15/S15*100,3)","v":49.715000000000003},{"$f":"C15*H15","v":8161.322600775},{"$f":"ROUND(P15/U15*100,3)","v":49.715000000000003},{"$f":"J15-R15","v":5.6848299999501251E-4},{"$f":"K15-T15","v":-4.7165600000198538E-4},{"$f":"L15-V15","v":-4.7165600000198538E-4}]
[]
["February",59,102,23025.440215916766,91.175941131598051,74.297772503166669,"02/08/18-08:00",63.486200416225493,"02/02/18-08:00",37.580141773000001,46.117194077000001,53.970859361000002,null,{"$f":"C17*D17","v":2348594.9020235101},672,{"$f":"N17/O17","v":3494.9328899159377},{"$f":"C17*E17","v":9299.9459954230006},{"$f":"ROUND(P17/Q17*100,2)","v":37.58},{"$f":"C17*F17","v":7578.372795323},{"$f":"ROUND(P17/S17*100,3)","v":46.116999999999997},{"$f":"C17*H17","v":6475.5924424550003},{"$f":"ROUND(P17/U17*100,3)","v":53.970999999999997},{"$f":"J17-R17","v":1.4177300000284276E-4},{"$f":"K17-T17","v":1.9407700000328987E-4},{"$f":"L17-V17","v":-1.4063899999428031E-4}]
[]
["March",60,102,22298.174509803921,77.903418414421566,64.356985502303928,"03/14/18-08:00",33.243554870990195,"03/08/18-20:00",38.471565527999999,46.569404128999999,90.154812805000006,null,{"$f":"C19*D19","v":2274413.7999999998},744,{"$f":"N19/O19","v":3057.0077956989244},{"$f":"C19*E19","v":7946.1486782709999},{"$f":"ROUND(P19/Q19*100,2)","v":38.47},{"$f":"C19*F19","v":6564.4125212350009},{"$f":"ROUND(P19/S19*100,3)","v":46.569000000000003},{"$f":"C19*H19","v":3390.8425968409997},{"$f":"ROUND(P19/U19*100,3)","v":90.155000000000001},{"$f":"J19-R19","v":1.5655280000004268E-3},{"$f":"K19-T19","v":4.0412899999608953E-4},{"$f":"L19-V19","v":-1.871949999951994E-4}]
[]
["April",62,101,18336.651089108909,79.277950159306926,53.213762395227718,"04/17/18-07:00",48.241159645980204,"04/17/18-11:00",32.124406479000001,47.858993257999998,52.792203055999998,null,{"$f":"C21*D21","v":1852001.7599999998},720,{"$f":"N21/O21","v":2572.2246666666665},{"$f":"C21*E21","v":8007.0729660899997},{"$f":"ROUND(P21/Q21*100,2)","v":32.119999999999997},{"$f":"C21*F21","v":5374.5900019179999},{"$f":"ROUND(P21/S21*100,3)","v":47.859000000000002},{"$f":"C21*H21","v":4872.3571242440003},{"$f":"ROUND(P21/U21*100,3)","v":52.792000000000002},{"$f":"J21-R21","v":4.4064790000035714E-3},{"$f":"K21-T21","v":-6.7420000036122474E-6},{"$f":"L21-V21","v":2.0305599999659307E-4}]
[]
["May",62,100,18609.66,64.042087075799998,52.554940343830005,"05/14/18-12:00",28.959004541139997,"05/15/18-17:00",39.057102935000003,47.593972530999999,86.373769635000002,null,{"$f":"C23*D23","v":1860966},744,{"$f":"N23/O23","v":2501.2983870967741},{"$f":"C23*E23","v":6404.20870758},{"$f":"ROUND(P23/Q23*100,2)","v":39.06},{"$f":"C23*F23","v":5255.4940343830003},{"$f":"ROUND(P23/S23*100,3)","v":47.594000000000001},{"$f":"C23*H23","v":2895.9004541139998},{"$f":"ROUND(P23/U23*100,3)","v":86.373999999999995},{"$f":"J23-R23","v":-2.8970649999990883E-3},{"$f":"K23-T23","v":-2.746900000261121E-5},{"$f":"L23-V23","v":-2.3036499999307125E-4}]
[]
["June"]
[]
["July"]
[]
["August"]
[]
["September"]
[]
["October",62,98,17721.830565560304,69.214788729581642,50.323593445581629,"10/02/18-10:00",30.128600073969388,"10/08/18-15:00",34.414126195000001,47.332996528999999,79.059978493000003,null,{"$f":"C33*D33","v":1736739.3954249097},744,{"$f":"N33/O33","v":2334.3271443883195},{"$f":"C33*E33","v":6783.0492954990004},{"$f":"ROUND(P33/Q33*100,2)","v":34.409999999999997},{"$f":"C33*F33","v":4931.7121576669997},{"$f":"ROUND(P33/S33*100,3)","v":47.332999999999998},{"$f":"C33*H33","v":2952.6028072489999},{"$f":"ROUND(P33/U33*100,3)","v":79.06},{"$f":"J33-R33","v":4.1261950000048842E-3},{"$f":"K33-T33","v":-3.4709999994220198E-6},{"$f":"L33-V33","v":-2.1506999999587606E-5}]
[]
["November",62,98,21110.834285714285,80.120938499020411,64.093098461530616,"11/28/18-09:00",38.888609535102042,"11/27/18-19:00",36.595431511000001,45.746896122000003,75.396378335999998,null,{"$f":"C35*D35","v":2068861.76},720,{"$f":"N35/O35","v":2873.4191111111113},{"$f":"C35*E35","v":7851.8519729039999},{"$f":"ROUND(P35/Q35*100,2)","v":36.6},{"$f":"C35*F35","v":6281.1236492300004},{"$f":"ROUND(P35/S35*100,3)","v":45.747},{"$f":"C35*H35","v":3811.0837344400002},{"$f":"ROUND(P35/U35*100,3)","v":75.396000000000001},{"$f":"J35-R35","v":-4.5684890000003975E-3},{"$f":"K35-T35","v":-1.0387799999733716E-4},{"$f":"L35-V35","v":3.7833599999714806E-4}]
[]
["December",62,97,24067.611949352369,85.451122899587631,71.136679803742268,"12/10/18-08:00",70.421659265432993,"12/11/18-08:00",37.856659684,45.474347244000001,45.936067297000001,null,{"$f":"C37*D37","v":2334558.3590871799},744,{"$f":"N37/O37","v":3137.8472568376073},{"$f":"C37*E37","v":8288.7589212599996},{"$f":"ROUND(P37/Q37*100,2)","v":37.86},{"$f":"C37*F37","v":6900.2579409629998},{"$f":"ROUND(P37/S37*100,3)","v":45.473999999999997},{"$f":"C37*H37","v":6830.9009487470003},{"$f":"ROUND(P37/U37*100,3)","v":45.936},{"$f":"J37-R37","v":-3.3403159999991772E-3},{"$f":"K37-T37","v":3.4724400000385458E-4},{"$f":"L37-V37","v":6.7297000001076412E-5}]
[]
[]
["Note:  All hours are in EST"]
[]
[]
[]
[]
[]
[]
[]
[]
[]
[]
[]
[]
[]
[]
[]
[]
[]
[]
[]
[]
[]
[]
[]
[]
[]
[]
[]
[]
[]
[]
[]
[]
[]
[]
[]
[]
[]
[]
[]
[]
[]
[]
[]
[]
[]
[]
[]
[]
[]
[]
[]
[]
[]
[]
[]
[]
[]
[]
[]
[]
[]
[]
[]
[]
[]
[]
[]
[]
[]
[]
[]
[]
[]
[]
[]
[]
[]
[]
[]
[]
[]
[]
[]
[]
[]
[]
[]
[]
[]
[]
[]
[]
[]
[]
[]
[]
[]
[]
[]
[]
[]
[]
[]
[]
[]
[]
[]
[]
[]
[]
[]
[]
[]
[]
[]
[]
[]
[]
[]
[]
[]
[]
[]
[]
[]
[]
[]
[]
[]
[]
[]
[]
[]
[]
[]
[]
[]
[]
[]
[]
[]
[]
[]
[]
[]
[]
[]
[]
[]
[]
[]
[]
[]
[]
[]
[]
[]
[]
[]
[]
[]
[]
[]
[]
[]
[]
[]
[]
[]
[]
[]
[]
[]
[]
[]
[]
[]
[]
[]
[]
[]
[]
[]
[]
[]
[]
[]
[]
[]
[]
[]
[]
[]
[]
[]
[]
[]
[]
[]
[]
[]
[]
[]
[]
[]
[]
[]
[]
[]
[]
[]
[]
[]
[]
[]
[]
[]
[]
[]
[]
[]
[]
[]
[]
[]
[]
[]
[]
[]
[]
[]
[]
[]
[]
[]
[]
[]
[]
[]
[]
[]
[]
[]
[]
[]
[]
[]
[]
[]
[]
[]
[]
[]
[]
[]
[]
[]
[]
[]
[]
[]
[]
[]
[]
[]
[]
[]
[]
[]
[]
[]
[]
[]
[]
[]
[]
[]
[]
[]
[]
[]
[]
[]
[]
[]
[]
[]
[]
[]
[]
[]
[]
[]
[]
[]
[]
[]
[]
[]
[]
[]
[]
[]
[]
[]
[]
[]
[]
[]
[]
[]
[]
[]
[]
[]
[]
[]
[]
[]
[]
[]
[]
[]
[]
[]
[]
[]
[]
[]
[]
[]
[]
[]
[]
[]
[]
[]
[]
[]
[]
[]
[]
[]
[]
[]
[]
[]
[]
[]
[]
[]
[]
[]
[]
[]
[]
[]
[]
[]
[]
[]
[]
[]
[]
[]
[]
[]
[]
[]
[]
[]
[]
[]
[]
[]
[]
[]
[]
[]
[]
[]
[]
[]
[]
[]
[]
[]
[]
[]
[]
[]
[]
[]
[]
[]
[]
[]
[]
[]
[]
[]
[]
[]
[]
[]
[]
[]
[]
[]
[]
[]
[]
[]
[]
[]
[]
[]
[]
[]
[]
[]
[]
[]
[]
[]
[]
[]
[]
[]
[]
[]
[]
[]
[]
[]
[]
[]
[]
[]
[]
[]
[]
[]
[]
[]
[]
[]
[]
[]
[]
[]
[]
[]
[]
[]
[]
[]
[]
[]
[]
[]
[]
[]
[]
[]
[]
[]
[]
[]
[]
[]
[]
[]
[]
[]
[]
[]
[]
[]
[]
[]
[]
[]
[]
[]
[]
[]
[]
[]
[]
[]
[]
[]
[]
[]
[]
[]
[]
[]
[]
[]
[]
[]
[]
[]
[]
[]
[]
[]
[]
[]
[]
[]
[null,null,null,null,null,null,0]

{"sheet":"WP FR-16(7)(v) LoadRes TT","index":60,"n_rows":554,"n_cols":25,"rows_kept":554,"cut":false,"hidden":false,"merged":[[10,5,10,6],[10,7,10,8]]}
[{"$f":"'WP FR-16(7)(v)-KW & KWH @Gen'!A1","v":"DUKE ENERGY KENTUCKY, INC."},null,null,null,null,null,null,null,null,null,{"$f":"'WP FR-16(7)(v)-KW & KWH @Gen'!G1","v":"Work Paper FR-16(7)(v) "}]
[{"$f":"coss_type","v":"ELECTRIC COST OF SERVICE STUDY "},null,null,null,null,null,null,null,null,null,{"$f":"'WP FR-16(7)(v)-KW & KWH @Gen'!G2","v":"Witness Responsible:"}]
[{"$f":"case_name","v":"CASE NO: 2019-00271"},null,null,null,null,null,null,null,null,null,{"$f":"PROPER(Witness)","v":"James E. Ziolkowski"}]
[{"$f":"alloc_factors","v":"ALLOCATION FACTORS FOR COST OF SERVICE STUDY"},null,null,null,null,null,null,null,null,null,"Page 46"]
[{"$f":"'WP FR-16(7)(v)-KW & KWH @Gen'!A5","v":"TWELVE MONTHS ENDING DECEMBER 31, 2018"}]
[]
["MONTHLY STATISTICS"]
["TRANSMISSION - TT"]
["JANUARY THROUGH DECEMBER, 2016",null,null,null,null,null,null,null,null,null,null,null,null,"KWH","HOURS","KWH/HR","NCD",null,"GROUP ",null,"SYSTEM",null,"DIFFERENCE"]
[]
[null,"NUMBER OF CUSTOMERS",null,"SAMPLE AVG. USAGE","AVERAGE NCP","GROUP COINCIDENT DEMAND",null,"SYSTEM COINCIDENT DEMAND",null,"NCD LOAD FACTOR","GROUP COIN LOAD FACTOR","SYSTEM COIN LOAD FACTOR",null,null,null,null,"AVERAGE KW * POPULATION","LOAD FACTOR","COINCIDENT DEM KW * POPULTION","COIN LOAD FACTOR","COINCIDENT DEM KW * POPULTION","COIN LOAD FACTOR","NCD LOAD FACTOR","GROUP COIN LOAD FACTOR","SYSTEM COIN LOAD FACTOR"]
["DATE","OBSERVED","POPULATION","KWH","KW","KW","DATE-TIME","KW","DATE-TIME"]
[]
[]
["January",13,13,1543222.4123076899,3125.8523076920001,2731.7538461539998,"01/17/18-10:00",2289.7046153850001,"01/05/18-08:00",66.357059395999997,75.93010898,90.589137940000001,null,{"$f":"C15*D15","v":20061891.35999997},744,{"$f":"N15/O15","v":26964.907741935443},{"$f":"C15*E15","v":40636.079999996},{"$f":"ROUND(P15/Q15*100,2)","v":66.36},{"$f":"C15*F15","v":35512.800000001997},{"$f":"ROUND(P15/S15*100,3)","v":75.930000000000007},{"$f":"C15*H15","v":29766.160000005002},{"$f":"ROUND(P15/U15*100,3)","v":90.588999999999999},{"$f":"J15-R15","v":-2.9406040000026223E-3},{"$f":"K15-T15","v":1.0897999999315289E-4},{"$f":"L15-V15","v":1.3794000000189044E-4}]
[]
["February",13,13,1434603.42769231,3118.6338461539999,2739.3415384619998,"02/12/18-11:00",2143.6738461539999,"02/02/18-08:00",68.453901118999994,77.932105191000005,99.587282512000002,null,{"$f":"C17*D17","v":18649844.560000028},672,{"$f":"N17/O17","v":27752.744880952425},{"$f":"C17*E17","v":40542.240000001999},{"$f":"ROUND(P17/Q17*100,2)","v":68.45},{"$f":"C17*F17","v":35611.440000005998},{"$f":"ROUND(P17/S17*100,3)","v":77.932000000000002},{"$f":"C17*H17","v":27867.760000001999},{"$f":"ROUND(P17/U17*100,3)","v":99.587000000000003},{"$f":"J17-R17","v":3.9011189999911267E-3},{"$f":"K17-T17","v":1.0519100000294657E-4},{"$f":"L17-V17","v":2.8251199999829169E-4}]
[]
["March",13,13,1606428.4738461501,3040.0184615379999,2689.661538462,"03/22/18-09:00",2298.4553846150002,"03/08/18-20:00",71.025162628999993,80.276942856000005,93.940394522999995,null,{"$f":"C19*D19","v":20883570.159999952},744,{"$f":"N19/O19","v":28069.314731182731},{"$f":"C19*E19","v":39520.239999993995},{"$f":"ROUND(P19/Q19*100,2)","v":71.03},{"$f":"C19*F19","v":34965.600000006001},{"$f":"ROUND(P19/S19*100,3)","v":80.277000000000001},{"$f":"C19*H19","v":29879.919999995003},{"$f":"ROUND(P19/U19*100,3)","v":93.94},{"$f":"J19-R19","v":-4.8373710000078063E-3},{"$f":"K19-T19","v":-5.714399999590114E-5},{"$f":"L19-V19","v":3.9452299999709339E-4}]
[]
["April",13,13,1467161.1815384601,3068.695384615,2677.8707692309999,"04/16/18-11:00",2417.9138461540001,"04/17/18-11:00",66.403588752000005,76.094929100000002,84.276115399999995,null,{"$f":"C21*D21","v":19073095.359999981},720,{"$f":"N21/O21","v":26490.410222222195},{"$f":"C21*E21","v":39893.039999995002},{"$f":"ROUND(P21/Q21*100,2)","v":66.400000000000006},{"$f":"C21*F21","v":34812.320000002997},{"$f":"ROUND(P21/S21*100,3)","v":76.094999999999999},{"$f":"C21*H21","v":31432.880000002002},{"$f":"ROUND(P21/U21*100,3)","v":84.275999999999996},{"$f":"J21-R21","v":3.5887519999988626E-3},{"$f":"K21-T21","v":-7.0899999997209306E-5},{"$f":"L21-V21","v":1.1539999999854444E-4}]
[]
["May",13,13,1552886.08615385,3054.135384615,2673.2,"05/17/18-11:00",2260.4430769229998,"05/15/18-17:00",68.340535652,78.079174076000001,92.336431856999994,null,{"$f":"C23*D23","v":20187519.120000049},744,{"$f":"N23/O23","v":27133.762258064584},{"$f":"C23*E23","v":39703.759999995003},{"$f":"ROUND(P23/Q23*100,2)","v":68.34},{"$f":"C23*F23","v":34751.599999999999},{"$f":"ROUND(P23/S23*100,3)","v":78.078999999999994},{"$f":"C23*H23","v":29385.759999998998},{"$f":"ROUND(P23/U23*100,3)","v":92.335999999999999},{"$f":"J23-R23","v":5.3565199999638935E-4},{"$f":"K23-T23","v":1.74076000007517E-4},{"$f":"L23-V23","v":4.318569999952615E-4}]
[]
["June",13,13,1587820.16,3215.4769230769998,2735.8953846149998,"06/18/18-08:00",2355.92,"06/19/18-17:00",68.584095938000004,80.606363466000005,93.606989107000004,null,{"$f":"C25*D25","v":20641662.079999998},720,{"$f":"N25/O25","v":28668.975111111107},{"$f":"C25*E25","v":41801.200000001001},{"$f":"ROUND(P25/Q25*100,2)","v":68.58},{"$f":"C25*F25","v":35566.639999994994},{"$f":"ROUND(P25/S25*100,3)","v":80.605999999999995},{"$f":"C25*H25","v":30626.959999999999},{"$f":"ROUND(P25/U25*100,3)","v":93.606999999999999},{"$f":"J25-R25","v":4.0959380000060719E-3},{"$f":"K25-T25","v":3.6346600001024854E-4},{"$f":"L25-V25","v":-1.0892999995348873E-5}]
[]
["July",13,13,1576138.69538461,3163.2184615380002,2741.8092307689999,"07/19/18-13:00",2351.4830769230002,"07/10/18-17:00",66.971852061000007,77.265258451999998,90.090632979999995,null,{"$f":"C27*D27","v":20489803.039999928},744,{"$f":"N27/O27","v":27540.057849462268},{"$f":"C27*E27","v":41121.839999994001},{"$f":"ROUND(P27/Q27*100,2)","v":66.97},{"$f":"C27*F27","v":35643.519999996999},{"$f":"ROUND(P27/S27*100,3)","v":77.265000000000001},{"$f":"C27*H27","v":30569.279999999002},{"$f":"ROUND(P27/U27*100,3)","v":90.090999999999994},{"$f":"J27-R27","v":1.8520610000081206E-3},{"$f":"K27-T27","v":2.5845199999707802E-4},{"$f":"L27-V27","v":-3.6701999999877444E-4}]
[]
["August",13,13,1611028.35692308,3206.3261538460001,2775.9630769229998,"08/20/18-13:00",2233.101538462,"08/28/18-18:00",67.534012164999993,78.003944388999997,96.966513053,null,{"$f":"C29*D29","v":20943368.640000042},744,{"$f":"N29/O29","v":28149.68903225812},{"$f":"C29*E29","v":41682.239999998004},{"$f":"ROUND(P29/Q29*100,2)","v":67.53},{"$f":"C29*F29","v":36087.519999999},{"$f":"ROUND(P29/S29*100,3)","v":78.004000000000005},{"$f":"C29*H29","v":29030.320000005999},{"$f":"ROUND(P29/U29*100,3)","v":96.966999999999999},{"$f":"J29-R29","v":4.0121649999917963E-3},{"$f":"K29-T29","v":-5.5611000007615985E-5},{"$f":"L29-V29","v":-4.8694699999884961E-4}]
[]
["September",13,13,1509313.29230769,3206.8184615380001,2789.249230769,"09/07/18-12:00",1955.3292307690001,"09/04/18-16:00",65.369102949999998,75.155294062999999,107.20795396299999,null,{"$f":"C31*D31","v":19621072.799999971},720,{"$f":"N31/O31","v":27251.489999999958},{"$f":"C31*E31","v":41688.639999994004},{"$f":"ROUND(P31/Q31*100,2)","v":65.37},{"$f":"C31*F31","v":36260.239999997},{"$f":"ROUND(P31/S31*100,3)","v":75.155000000000001},{"$f":"C31*H31","v":25419.279999997001},{"$f":"ROUND(P31/U31*100,3)","v":107.208},{"$f":"J31-R31","v":-8.9705000000606105E-4},{"$f":"K31-T31","v":2.9406299999834573E-4},{"$f":"L31-V31","v":-4.603700000416211E-5}]
[]
["October",13,13,1521165.90615385,3085.033846154,2626.08,"10/10/18-08:00",2483.6738461539999,"10/08/18-15:00",66.274081025000001,77.856646822000002,82.320705434999994,null,{"$f":"C33*D33","v":19775156.78000005},744,{"$f":"N33/O33","v":26579.511801075336},{"$f":"C33*E33","v":40105.440000002003},{"$f":"ROUND(P33/Q33*100,2)","v":66.27},{"$f":"C33*F33","v":34139.040000000001},{"$f":"ROUND(P33/S33*100,3)","v":77.856999999999999},{"$f":"C33*H33","v":32287.760000001999},{"$f":"ROUND(P33/U33*100,3)","v":82.320999999999998},{"$f":"J33-R33","v":4.0810250000049564E-3},{"$f":"K33-T33","v":-3.5317799999745603E-4},{"$f":"L33-V33","v":-2.9456500000435426E-4}]
[]
["November",13,13,1502761.91384615,3229.8030769229999,2722.6523076919998,"11/14/18-10:00",2313.316923077,"11/27/18-19:00",64.622185164000001,76.659414751,90.224097873000005,null,{"$f":"C35*D35","v":19535904.879999951},720,{"$f":"N35/O35","v":27133.201222222153},{"$f":"C35*E35","v":41987.439999998998},{"$f":"ROUND(P35/Q35*100,2)","v":64.62},{"$f":"C35*F35","v":35394.479999995994},{"$f":"ROUND(P35/S35*100,3)","v":76.659000000000006},{"$f":"C35*H35","v":30073.120000000999},{"$f":"ROUND(P35/U35*100,3)","v":90.224000000000004},{"$f":"J35-R35","v":2.1851639999965755E-3},{"$f":"K35-T35","v":4.1475099999388476E-4},{"$f":"L35-V35","v":9.7873000001413857E-5}]
[]
["December",13,13,1489761.8276923101,3143.587692308,2807.6184615379998,"12/07/18-08:00",2566.7815384619998,"12/11/18-08:00",63.696904428000003,71.319093937000005,78.010848136999996,null,{"$f":"C37*D37","v":19366903.760000031},744,{"$f":"N37/O37","v":26030.784623655956},{"$f":"C37*E37","v":40866.640000004001},{"$f":"ROUND(P37/Q37*100,2)","v":63.7},{"$f":"C37*F37","v":36499.039999993998},{"$f":"ROUND(P37/S37*100,3)","v":71.319000000000003},{"$f":"C37*H37","v":33368.160000005999},{"$f":"ROUND(P37/U37*100,3)","v":78.010999999999996},{"$f":"J37-R37","v":-3.0955719999994358E-3},{"$f":"K37-T37","v":9.3937000002597415E-5},{"$f":"L37-V37","v":-1.5186299999925268E-4}]
[]
[]
["Note:  All hours are in EST."]
[]
[]
[]
[]
[]
[]
[]
[]
[]
[]
[]
[]
[]
[]
[]
[]
[]
[]
[]
[]
[]
[]
[]
[]
[]
[]
[]
[]
[]
[]
[]
[]
[]
[]
[]
[]
[]
[]
[]
[]
[]
[]
[]
[]
[]
[]
[]
[]
[]
[]
[]
[]
[]
[]
[]
[]
[]
[]
[]
[]
[]
[]
[]
[]
[]
[]
[]
[]
[]
[]
[]
[]
[]
[]
[]
[]
[]
[]
[]
[]
[]
[]
[]
[]
[]
[]
[]
[]
[]
[]
[]
[]
[]
[]
[]
[]
[]
[]
[]
[]
[]
[]
[]
[]
[]
[]
[]
[]
[]
[]
[]
[]
[]
[]
[]
[]
[]
[]
[]
[]
[]
[]
[]
[]
[]
[]
[]
[]
[]
[]
[]
[]
[]
[]
[]
[]
[]
[]
[]
[]
[]
[]
[]
[]
[]
[]
[]
[]
[]
[]
[]
[]
[]
[]
[]
[]
[]
[]
[]
[]
[]
[]
[]
[]
[]
[]
[]
[]
[]
[]
[]
[]
[]
[]
[]
[]
[]
[]
[]
[]
[]
[]
[]
[]
[]
[]
[]
[]
[]
[]
[]
[]
[]
[]
[]
[]
[]
[]
[]
[]
[]
[]
[]
[]
[]
[]
[]
[]
[]
[]
[]
[]
[]
[]
[]
[]
[]
[]
[]
[]
[]
[]
[]
[]
[]
[]
[]
[]
[]
[]
[]
[]
[]
[]
[]
[]
[]
[]
[]
[]
[]
[]
[]
[]
[]
[]
[]
[]
[]
[]
[]
[]
[]
[]
[]
[]
[]
[]
[]
[]
[]
[]
[]
[]
[]
[]
[]
[]
[]
[]
[]
[]
[]
[]
[]
[]
[]
[]
[]
[]
[]
[]
[]
[]
[]
[]
[]
[]
[]
[]
[]
[]
[]
[]
[]
[]
[]
[]
[]
[]
[]
[]
[]
[]
[]
[]
[]
[]
[]
[]
[]
[]
[]
[]
[]
[]
[]
[]
[]
[]
[]
[]
[]
[]
[]
[]
[]
[]
[]
[]
[]
[]
[]
[]
[]
[]
[]
[]
[]
[]
[]
[]
[]
[]
[]
[]
[]
[]
[]
[]
[]
[]
[]
[]
[]
[]
[]
[]
[]
[]
[]
[]
[]
[]
[]
[]
[]
[]
[]
[]
[]
[]
[]
[]
[]
[]
[]
[]
[]
[]
[]
[]
[]
[]
[]
[]
[]
[]
[]
[]
[]
[]
[]
[]
[]
[]
[]
[]
[]
[]
[]
[]
[]
[]
[]
[]
[]
[]
[]
[]
[]
[]
[]
[]
[]
[]
[]
[]
[]
[]
[]
[]
[]
[]
[]
[]
[]
[]
[]
[]
[]
[]
[]
[]
[]
[]
[]
[]
[]
[]
[]
[]
[]
[]
[]
[]
[]
[]
[]
[]
[]
[]
[]
[]
[]
[]
[]
[]
[]
[]
[]
[]
[]
[]
[]
[]
[]
[]
[]
[]
[]
[]
[]
[]
[]
[]
[]
[]
[]
[]
[]
[]
[]
[]
[]
[]
[]
[]
[]
[]
[]
[]
[]
[]
[]
[]
[]
[]
[]
[]
[]
[]
[]
[]
[]
[]
[]
[]
[]
[]
[]
[]
[]
[null,null,null,null,null,null,0]

{"sheet":"WP FR-16(7)(v) Conduct&dev","index":61,"n_rows":554,"n_cols":9,"rows_kept":554,"cut":false,"hidden":false,"merged":[]}
[{"$f":"'WP FR-16(7)(v)-KW & KWH @Gen'!A1","v":"DUKE ENERGY KENTUCKY, INC."},null,null,null,null,null,{"$f":"'WP FR-16(7)(v)-KW & KWH @Gen'!G1","v":"Work Paper FR-16(7)(v) "}]
[{"$f":"coss_type","v":"ELECTRIC COST OF SERVICE STUDY "},null,null,null,null,null,{"$f":"'WP FR-16(7)(v)-KW & KWH @Gen'!G2","v":"Witness Responsible:"}]
[{"$f":"case_name","v":"CASE NO: 2019-00271"},null,null,null,null,null,{"$f":"PROPER(Witness)","v":"James E. Ziolkowski"}]
[{"$f":"alloc_factors","v":"ALLOCATION FACTORS FOR COST OF SERVICE STUDY"},null,null,null,null,null,"Page 47"]
[{"$f":"'WP FR-16(7)(v)-KW & KWH @Gen'!A5","v":"TWELVE MONTHS ENDING DECEMBER 31, 2018"}]
[]
["COST SUPPORT FOR PRIMARY AND SECONDARY LINE ALLOCATION"]
[" "]
[]
[]
[null,null,"Conductors and Devices"]
[null,null,"Overhead (365)","%","Underground (367)","%","Total (a)","%"]
["Secondary",null,575,{"$f":"ROUND(C13/C15,2)","v":0.28999999999999998},151,{"$f":"ROUND(E13/E15,2)","v":0.17},{"$f":"E13+C13","v":726},{"$f":"ROUND(G13/G15,2)","v":0.25},"(b)"]
["Primary",null,1435,{"$f":"ROUND(C14/C15,2)","v":0.71},727,{"$f":"ROUND(E14/E15,2)","v":0.83},{"$f":"E14+C14","v":2162},{"$f":"ROUND(G14/G15,2)","v":0.75},"(b)"]
["Total",null,{"$f":"C13+C14","v":2010},{"$f":"D14+D13","v":1},{"$f":"E13+E14","v":878},{"$f":"F14+F13","v":1},{"$f":"G13+G14","v":2888},{"$f":"H14+H13","v":1}]
[]
[]
[]
["Source: Circuit Miles Report"]
["            "]
["(a) Ties to FERC Form 1, page 206."]
["(b) To Work Paper FR-16(7)(v), Page 7."]
[]
[]
[]
[]
[]
[]
[]
[]
[]
[null," "]
[]
[]
[]
[]
[]
[]
[]
[]
[]
[]
[]
[]
[]
[]
[]
[]
[]
[]
[]
[]
[]
[]
[]
[]
[]
[]
[]
[]
[]
[]
[]
[]
[]
[]
[]
[]
[]
[]
[]
[]
[]
[]
[]
[]
[]
[]
[]
[]
[]
[]
[]
[]
[]
[]
[]
[]
[]
[]
[]
[]
[]
[]
[]
[]
[]
[]
[]
[]
[]
[]
[]
[]
[]
[]
[]
[]
[]
[]
[]
[]
[]
[]
[]
[]
[]
[]
[]
[]
[]
[]
[]
[]
[]
[]
[]
[]
[]
[]
[]
[]
[]
[]
[]
[]
[]
[]
[]
[]
[]
[]
[]
[]
[]
[]
[]
[]
[]
[]
[]
[]
[]
[]
[]
[]
[]
[]
[]
[]
[]
[]
[]
[]
[]
[]
[]
[]
[]
[]
[]
[]
[]
[]
[]
[]
[]
[]
[]
[]
[]
[]
[]
[]
[]
[]
[]
[]
[]
[]
[]
[]
[]
[]
[]
[]
[]
[]
[]
[]
[]
[]
[]
[]
[]
[]
[]
[]
[]
[]
[]
[]
[]
[]
[]
[]
[]
[]
[]
[]
[]
[]
[]
[]
[]
[]
[]
[]
[]
[]
[]
[]
[]
[]
[]
[]
[]
[]
[]
[]
[]
[]
[]
[]
[]
[]
[]
[]
[]
[]
[]
[]
[]
[]
[]
[]
[]
[]
[]
[]
[]
[]
[]
[]
[]
[]
[]
[]
[]
[]
[]
[]
[]
[]
[]
[]
[]
[]
[]
[]
[]
[]
[]
[]
[]
[]
[]
[]
[]
[]
[]
[]
[]
[]
[]
[]
[]
[]
[]
[]
[]
[]
[]
[]
[]
[]
[]
[]
[]
[]
[]
[]
[]
[]
[]
[]
[]
[]
[]
[]
[]
[]
[]
[]
[]
[]
[]
[]
[]
[]
[]
[]
[]
[]
[]
[]
[]
[]
[]
[]
[]
[]
[]
[]
[]
[]
[]
[]
[]
[]
[]
[]
[]
[]
[]
[]
[]
[]
[]
[]
[]
[]
[]
[]
[]
[]
[]
[]
[]
[]
[]
[]
[]
[]
[]
[]
[]
[]
[]
[]
[]
[]
[]
[]
[]
[]
[]
[]
[]
[]
[]
[]
[]
[]
[]
[]
[]
[]
[]
[]
[]
[]
[]
[]
[]
[]
[]
[]
[]
[]
[]
[]
[]
[]
[]
[]
[]
[]
[]
[]
[]
[]
[]
[]
[]
[]
[]
[]
[]
[]
[]
[]
[]
[]
[]
[]
[]
[]
[]
[]
[]
[]
[]
[]
[]
[]
[]
[]
[]
[]
[]
[]
[]
[]
[]
[]
[]
[]
[]
[]
[]
[]
[]
[]
[]
[]
[]
[]
[]
[]
[]
[]
[]
[]
[]
[]
[]
[]
[]
[]
[]
[]
[]
[]
[]
[]
[]
[]
[]
[]
[]
[]
[]
[]
[]
[]
[]
[]
[]
[]
[]
[]
[]
[]
[]
[]
[]
[]
[]
[]
[]
[]
[]
[]
[]
[]
[]
[]
[]
[]
[]
[]
[]
[]
[]
[]
[]
[]
[]
[]
[]
[]
[]
[]
[]
[]
[]
[]
[]
[]
[]
[]
[]
[]
[]
[]
[]
[]
[]
[]
[]
[]
[]
[null,null,null,null,null,null,null,0]

{"sheet":"WP FR-16(7)(v) Serv cost wgt","index":62,"n_rows":557,"n_cols":16,"rows_kept":557,"cut":false,"hidden":false,"merged":[[11,3,11,9],[12,3,12,4],[12,6,12,7]]}
[{"$f":"'WP FR-16(7)(v)-KW & KWH @Gen'!A1","v":"DUKE ENERGY KENTUCKY, INC."},null,null,null,null,null,null,null,null,{"$f":"'WP FR-16(7)(v)-KW & KWH @Gen'!G1","v":"Work Paper FR-16(7)(v) "}]
[{"$f":"coss_type","v":"ELECTRIC COST OF SERVICE STUDY "},null,null,null,null,null,null,null,null,{"$f":"'WP FR-16(7)(v)-KW & KWH @Gen'!G2","v":"Witness Responsible:"}]
[{"$f":"case_name","v":"CASE NO: 2019-00271"},null,null,null,null,null,null,null,null,{"$f":"PROPER(Witness)","v":"James E. Ziolkowski"}]
[{"$f":"alloc_factors","v":"ALLOCATION FACTORS FOR COST OF SERVICE STUDY"},null,null,null,null,null,null,null,null,"Page 48"]
[{"$f":"'WP FR-16(7)(v)-KW & KWH @Gen'!A5","v":"TWELVE MONTHS ENDING DECEMBER 31, 2018"}]
[]
["COST SUPPORT FOR SERVICE COST WEIGHTING  "]
[]
[]
[]
[]
[null,null,null,"SERVICE COST WEIGHTING"]
[null,null,null,"Overhead",null,null,"Underground (c)",null,null,"Weighted"]
[null,"Size in",null,null,"Service",null,null,"Service",null,"Service",null,"Weighting"]
[null,"KVA",null,"Cost (a)","Weighting",null,"Cost (a)","Weighting",null,"Cost (d)",null,"Factor (f)"]
[null,"(1)",null,"(2)","(3)",null,"(4)","(5)",null,"(6)",null,"(7)"]
[]
[null,15,null,{"$f":"'Input Data'!D112","v":0},{"$f":"$G$30","v":0.88429999999999997},null,{"$f":"'Input Data'!E112","v":0},{"$f":"$G$31","v":0.11570000000000003},null,{"$f":"ROUND(D18*E18,0)+ROUND(G18*H18,0)","v":0},null,{"$f":"ROUND(J18/$J$18,0)","v":{"$error":"#DIV/0!"}}]
[null,25,null,{"$f":"'Input Data'!D113","v":1704},{"$f":"$G$30","v":0.88429999999999997},null,{"$f":"'Input Data'!E113","v":2779},{"$f":"$G$31","v":0.11570000000000003},null,1829,null,{"$f":"ROUND(J19/$J$19,0)","v":1}]
[null,50,null,{"$f":"'Input Data'!D114","v":1979},{"$f":"$G$30","v":0.88429999999999997},null,{"$f":"'Input Data'!E114","v":2015},{"$f":"$G$31","v":0.11570000000000003},null,1983,null,{"$f":"ROUND(J20/$J$19,0)","v":1}]
[null,100,null,{"$f":"'Input Data'!D115","v":3398},{"$f":"$G$30","v":0.88429999999999997},null,{"$f":"'Input Data'!E115","v":3627},{"$f":"$G$31","v":0.11570000000000003},null,3425,null,{"$f":"ROUND(J21/$J$19,0)","v":2}]
[null,150,"(e)",{"$f":"'Input Data'!D116","v":5969},{"$f":"$G$30","v":0.88429999999999997},null,{"$f":"'Input Data'!E116","v":10519},{"$f":"$G$31","v":0.11570000000000003},null,6495,null,{"$f":"ROUND(J22/$J$19,0)","v":4}]
[null,300,{"$f":"C22","v":"(e)"},{"$f":"'Input Data'!D117","v":10094},{"$f":"$G$30","v":0.88429999999999997},null,{"$f":"'Input Data'!E117","v":12645},{"$f":"$G$31","v":0.11570000000000003},null,10389,null,{"$f":"ROUND(J23/$J$19,0)","v":6}]
[]
[]
[]
[null,null,null,null,null,null,null,null,null,null,null,null,null,null,"# of Services / ","Minimum"]
[null,null,null,"Services","Net Plant (b)",null,"Percent",null,null,null,null,null,null,null,"Customers","Size"]
[]
[null,null,null,"Overhead",{"$f":"'Input Data'!D120","v":18784974},null,{"$f":"ROUND(E30/E33,4)","v":0.88429999999999997},null,null,null,null,null,null,null,null,{"$f":"ROUND(O30*$D$19,0)","v":0}]
[null,null,null,"Underground",{"$f":"'Input Data'!E121","v":2458590},null,{"$f":"1-G30","v":0.11570000000000003}," ",null,null,null,null,null,null,null,{"$f":"ROUND(O31*$G$19,0)","v":0}]
[]
[null,null,null,"   Total",{"$f":"E30+E31","v":21243564},null,{"$f":"G30+G31","v":1}]
[]
[]
[]
[null,"Sources:","(a)","Engineering Standards & Support"]
[null,null,"(b)","Fixed Asset Accounting - Account 369"]
[null,null,"(c)","Customers own underground service except for some underground services in Park Hill in Covington, KY"]
[null,null,"(d)","Column (2) * column (3) + column (4) * column (5)."]
[null,null,"(e)","Services for KVA  sizes 150 and 300 are based on average of costs for 120/208 and 277/480 voltages."]
[null,null,"(f)","Weighting Factor Calculation: ",null,null,"Weighted Service Cost by transformer size "]
[null,null,null,null,null,null,"Weighted Service Cost of lowest transformer size (25 kva)"]
[]
[]
[]
[]
[]
[]
[]
[]
[]
[]
[]
[]
[]
[]
[]
[]
[]
[]
[]
[]
[]
[]
[]
[]
[]
[]
[]
[]
[]
[]
[]
[]
[]
[]
[]
[]
[]
[]
[]
[]
[]
[]
[]
[]
[]
[]
[]
[]
[]
[]
[]
[]
[]
[]
[]
[]
[]
[]
[]
[]
[]
[]
[]
[]
[]
[]
[]
[]
[]
[]
[]
[]
[]
[]
[]
[]
[]
[]
[]
[]
[]
[]
[]
[]
[]
[]
[]
[]
[]
[]
[]
[]
[]
[]
[]
[]
[]
[]
[]
[]
[]
[]
[]
[]
[]
[]
[]
[]
[]
[]
[]
[]
[]
[]
[]
[]
[]
[]
[]
[]
[]
[]
[]
[]
[]
[]
[]
[]
[]
[]
[]
[]
[]
[]
[]
[]
[]
[]
[]
[]
[]
[]
[]
[]
[]
[]
[]
[]
[]
[]
[]
[]
[]
[]
[]
[]
[]
[]
[]
[]
[]
[]
[]
[]
[]
[]
[]
[]
[]
[]
[]
[]
[]
[]
[]
[]
[]
[]
[]
[]
[]
[]
[]
[]
[]
[]
[]
[]
[]
[]
[]
[]
[]
[]
[]
[]
[]
[]
[]
[]
[]
[]
[]
[]
[]
[]
[]
[]
[]
[]
[]
[]
[]
[]
[]
[]
[]
[]
[]
[]
[]
[]
[]
[]
[]
[]
[]
[]
[]
[]
[]
[]
[]
[]
[]
[]
[]
[]
[]
[]
[]
[]
[]
[]
[]
[]
[]
[]
[]
[]
[]
[]
[]
[]
[]
[]
[]
[]
[]
[]
[]
[]
[]
[]
[]
[]
[]
[]
[]
[]
[]
[]
[]
[]
[]
[]
[]
[]
[]
[]
[]
[]
[]
[]
[]
[]
[]
[]
[]
[]
[]
[]
[]
[]
[]
[]
[]
[]
[]
[]
[]
[]
[]
[]
[]
[]
[]
[]
[]
[]
[]
[]
[]
[]
[]
[]
[]
[]
[]
[]
[]
[]
[]
[]
[]
[]
[]
[]
[]
[]
[]
[]
[]
[]
[]
[]
[]
[]
[]
[]
[]
[]
[]
[]
[]
[]
[]
[]
[]
[]
[]
[]
[]
[]
[]
[]
[]
[]
[]
[]
[]
[]
[]
[]
[]
[]
[]
[]
[]
[]
[]
[]
[]
[]
[]
[]
[]
[]
[]
[]
[]
[]
[]
[]
[]
[]
[]
[]
[]
[]
[]
[]
[]
[]
[]
[]
[]
[]
[]
[]
[]
[]
[]
[]
[]
[]
[]
[]
[]
[]
[]
[]
[]
[]
[]
[]
[]
[]
[]
[]
[]
[]
[]
[]
[]
[]
[]
[]
[]
[]
[]
[]
[]
[]
[]
[]
[]
[]
[]
[]
[]
[]
[]
[]
[]
[]
[]
[]
[]
[]
[]
[]
[]
[]
[]
[]
[]
[]
[]
[]
[]
[]
[]
[]
[]
[]
[]
[]
[]
[]
[]
[]
[]
[]
[]
[]
[]
[]
[]
[]
[]
[]
[]
[]
[]
[]
[]
[]
[]
[]
[]
[]
[]
[]
[]
[]
[]
[]
[]
[]
[]
[]
[]
[]
[]
[]
[]
[]
[]
[]
[]
[]
[]
[null,null,null,null,null,0]

{"sheet":"WP FR-16(7)(v) BurnHours","index":63,"n_rows":557,"n_cols":14,"rows_kept":557,"cut":false,"hidden":false,"merged":[]}
[{"$f":"'WP FR-16(7)(v)-KW & KWH @Gen'!A1","v":"DUKE ENERGY KENTUCKY, INC."},null,null,null,null,null,null,null,null,{"$f":"'WP FR-16(7)(v)-KW & KWH @Gen'!G1","v":"Work Paper FR-16(7)(v) "}]
[{"$f":"coss_type","v":"ELECTRIC COST OF SERVICE STUDY "},null,null,null,null,null,null,null,null,{"$f":"'WP FR-16(7)(v)-KW & KWH @Gen'!G2","v":"Witness Responsible:"}]
[{"$f":"case_name","v":"CASE NO: 2019-00271"},null,null,null,null,null,null,null,null,{"$f":"PROPER(Witness)","v":"James E. Ziolkowski"}]
[{"$f":"alloc_factors","v":"ALLOCATION FACTORS FOR COST OF SERVICE STUDY"},null,null,null,null,null,null,null,null,"Page 49"]
[{"$f":"'WP FR-16(7)(v)-KW & KWH @Gen'!A5","v":"TWELVE MONTHS ENDING DECEMBER 31, 2018"}]
[]
["LIGHTING"]
[null,null,null," "]
[null,null,null,null,null,null,null,null,null,null,null,null,null,"Used in formula in col I & J"]
[]
[null,"Peak",null,"LT","BURN",null,"APPROX.","APPROX."," + 30 minutes"," -  30 minutes",null,"LIGHT ON ",null,"00:30"]
["Month","Day","Hour","KWH","HOURS (a)",null,"SUNSET(b)","SUNRISE (b)","Light on at:","Lights off at:",null,"AT PEAK"]
[null,null,null,null,null,null," "]
[{"$f":"'WP FR-16(7)(v) RS - KW'!B20","v":"JANUARY"},{"$f":"VALUE(LEFT(VLOOKUP(A14,CoinPeakTable,9,FALSE),5))","v":"2020-01-05"},{"$f":"VALUE(RIGHT(VLOOKUP(A14,CoinPeakTable,9,FALSE),5))","v":0.33333333333333331},{"$f":"SUM('WP FR-16(7)(v) KWH'!B$21:B$21)","v":1303907},432,null,{"$f":"'Input Data'!D133","v":1741},{"$f":"'Input Data'!E133","v":754},{"$f":"VALUE(VALUE(IF(LEN(G14)=4,LEFT(G14,2),LEFT(G14,1))&\":\"&IF(LEN(G14)=4,RIGHT(G14,2),RIGHT(G14,2)))+VALUE($N$11))","v":0.75763888888888897},{"$f":"VALUE(VALUE(IF(LEN(H14)=4,LEFT(H14,2),LEFT(H14,1))&\":\"&IF(LEN(H14)=4,RIGHT(H14,2),RIGHT(H14,2)))-VALUE($N$11))","v":0.30833333333333335},null,{"$f":"IF(OR(C14>I14,C14<J14),\"y\",\"n\")","v":"n"}]
[{"$f":"'WP FR-16(7)(v) RS - KW'!B21","v":"FEBRUARY"},"2020-02-02",0.33333333333333331,{"$f":"SUM('WP FR-16(7)(v) KWH'!C$21:C$21)","v":1841369},362,null,{"$f":"'Input Data'!D134","v":1816},{"$f":"'Input Data'!E134","v":730},{"$f":"VALUE(VALUE(IF(LEN(G15)=4,LEFT(G15,2),LEFT(G15,1))&\":\"&IF(LEN(G15)=4,RIGHT(G15,2),RIGHT(G15,2)))+VALUE($N$11))","v":0.78194444444444444},{"$f":"VALUE(VALUE(IF(LEN(H15)=4,LEFT(H15,2),LEFT(H15,1))&\":\"&IF(LEN(H15)=4,RIGHT(H15,2),RIGHT(H15,2)))-VALUE($N$11))","v":0.29166666666666669},null,"n"]
[{"$f":"'WP FR-16(7)(v) RS - KW'!B22","v":"MARCH"},"2020-03-08",0.83333333333333337,{"$f":"SUM('WP FR-16(7)(v) KWH'!D$21:D$21)","v":1574392},363,null,{"$f":"'Input Data'!D135","v":1842},{"$f":"'Input Data'!E135","v":633},0.8,0.25208333333333333,null,"y"]
[{"$f":"'WP FR-16(7)(v) RS - KW'!B23","v":"APRIL"},"2020-04-17",0.45833333333333331,{"$f":"SUM('WP FR-16(7)(v) KWH'!E$21:E$21)","v":1567513},313,null,{"$f":"'Input Data'!D136","v":1916},{"$f":"'Input Data'!E136","v":629},0.82361111111111107,0.24930555555555553,null,"n"]
[{"$f":"'WP FR-16(7)(v) RS - KW'!B24","v":"MAY"},"2020-05-15",0.70833333333333337,{"$f":"SUM('WP FR-16(7)(v) KWH'!F$21:F$21)","v":1574736},287,null,{"$f":"'Input Data'!D137","v":1945},{"$f":"'Input Data'!E137","v":525},0.84375,0.2048611111111111,null,"n"]
[{"$f":"'WP FR-16(7)(v) RS - KW'!B25","v":"JUNE"},"2020-06-19",0.70833333333333337,{"$f":"SUM('WP FR-16(7)(v) KWH'!G$21:G$21)","v":750766},259,null,{"$f":"'Input Data'!D138","v":2011},{"$f":"'Input Data'!E138","v":313},0.8618055555555556,0.11319444444444444,null,"n"]
[{"$f":"'WP FR-16(7)(v) RS - KW'!B26","v":"JULY"},"2020-07-10",0.70833333333333337,{"$f":"SUM('WP FR-16(7)(v) KWH'!H$21:H$21)","v":1951974},275,null,{"$f":"'Input Data'!D139","v":2021},{"$f":"'Input Data'!E139","v":525},0.86875000000000013,0.2048611111111111,null,"n"]
[{"$f":"'WP FR-16(7)(v) RS - KW'!B27","v":"AUGUST"},"2020-08-28",0.75,{"$f":"SUM('WP FR-16(7)(v) KWH'!I$21:I$21)","v":1532991},305,null,{"$f":"'Input Data'!D140","v":1932},{"$f":"'Input Data'!E140","v":538},0.83472222222222237,0.21388888888888885,null,"n"]
[{"$f":"'WP FR-16(7)(v) RS - KW'!B28","v":"SEPTEMBER"},"2020-09-04",0.66666666666666663,{"$f":"SUM('WP FR-16(7)(v) KWH'!J$21:J$21)","v":1518293},333,null,{"$f":"'Input Data'!D141","v":1832},{"$f":"'Input Data'!E141","v":620},0.79305555555555562,0.24305555555555555,null,"n"]
[{"$f":"'WP FR-16(7)(v) RS - KW'!B29","v":"OCTOBER"},"2020-10-08",0.625,{"$f":"SUM('WP FR-16(7)(v) KWH'!K$21:K$21)","v":1138261},384,null,{"$f":"'Input Data'!D142","v":1730},{"$f":"'Input Data'!E142","v":639},0.75,0.25625000000000003,null,"n"]
[{"$f":"'WP FR-16(7)(v) RS - KW'!B30","v":"NOVEMBER"},"2020-11-27",0.79166666666666663,{"$f":"SUM('WP FR-16(7)(v) KWH'!L$21:L$21)","v":1846880},406,null,{"$f":"'Input Data'!D143","v":1725},{"$f":"'Input Data'!E143","v":721},0.7465277777777779,0.28541666666666665,null,"y"]
[{"$f":"'WP FR-16(7)(v) RS - KW'!B31","v":"DECEMBER"},"2020-12-11",0.33333333333333331,{"$f":"SUM('WP FR-16(7)(v) KWH'!M$21:M$21)","v":1513539},441,null,{"$f":"'Input Data'!D144","v":1718},{"$f":"'Input Data'!E144","v":750},0.7416666666666667,0.30555555555555558,null,"n"]
[null,null,null,{"$f":"SUM(D14:D25)","v":18114621},{"$f":"SUM(E14:E25)","v":4160}]
[]
["(a)","Street Lights burn from dawn until dusk, a total of 4,160 hours per year.     "]
["(b)","Based on monthly average of 2016 Sunrise/Sunset chart using EST."]
[null,"If sunrise/sunset light time > 30 min after hour, used next hour."]
[null," "]
[]
[]
[null,null,null,null,null,null,null,null,null,null,null," "]
[]
[]
[]
[]
[]
[]
[]
[]
[]
[]
[]
[]
[]
[]
[]
[]
[]
[]
[]
[]
[]
[]
[]
[]
[]
[]
[]
[]
[]
[]
[]
[]
[]
[]
[]
[]
[]
[]
[]
[]
[]
[]
[]
[]
[]
[]
[]
[]
[]
[]
[]
[]
[]
[]
[]
[]
[]
[]
[]
[]
[]
[]
[]
[]
[]
[]
[]
[]
[]
[]
[]
[]
[]
[]
[]
[]
[]
[]
[]
[]
[]
[]
[]
[]
[]
[]
[]
[]
[]
[]
[]
[]
[]
[]
[]
[]
[]
[]
[]
[]
[]
[]
[]
[]
[]
[]
[]
[]
[]
[]
[]
[]
[]
[]
[]
[]
[]
[]
[]
[]
[]
[]
[]
[]
[]
[]
[]
[]
[]
[]
[]
[]
[]
[]
[]
[]
[]
[]
[]
[]
[]
[]
[]
[]
[]
[]
[]
[]
[]
[]
[]
[]
[]
[]
[]
[]
[]
[]
[]
[]
[]
[]
[]
[]
[]
[]
[]
[]
[]
[]
[]
[]
[]
[]
[]
[]
[]
[]
[]
[]
[]
[]
[]
[]
[]
[]
[]
[]
[]
[]
[]
[]
[]
[]
[]
[]
[]
[]
[]
[]
[]
[]
[]
[]
[]
[]
[]
[]
[]
[]
[]
[]
[]
[]
[]
[]
[]
[]
[]
[]
[]
[]
[]
[]
[]
[]
[]
[]
[]
[]
[]
[]
[]
[]
[]
[]
[]
[]
[]
[]
[]
[]
[]
[]
[]
[]
[]
[]
[]
[]
[]
[]
[]
[]
[]
[]
[]
[]
[]
[]
[]
[]
[]
[]
[]
[]
[]
[]
[]
[]
[]
[]
[]
[]
[]
[]
[]
[]
[]
[]
[]
[]
[]
[]
[]
[]
[]
[]
[]
[]
[]
[]
[]
[]
[]
[]
[]
[]
[]
[]
[]
[]
[]
[]
[]
[]
[]
[]
[]
[]
[]
[]
[]
[]
[]
[]
[]
[]
[]
[]
[]
[]
[]
[]
[]
[]
[]
[]
[]
[]
[]
[]
[]
[]
[]
[]
[]
[]
[]
[]
[]
[]
[]
[]
[]
[]
[]
[]
[]
[]
[]
[]
[]
[]
[]
[]
[]
[]
[]
[]
[]
[]
[]
[]
[]
[]
[]
[]
[]
[]
[]
[]
[]
[]
[]
[]
[]
[]
[]
[]
[]
[]
[]
[]
[]
[]
[]
[]
[]
[]
[]
[]
[]
[]
[]
[]
[]
[]
[]
[]
[]
[]
[]
[]
[]
[]
[]
[]
[]
[]
[]
[]
[]
[]
[]
[]
[]
[]
[]
[]
[]
[]
[]
[]
[]
[]
[]
[]
[]
[]
[]
[]
[]
[]
[]
[]
[]
[]
[]
[]
[]
[]
[]
[]
[]
[]
[]
[]
[]
[]
[]
[]
[]
[]
[]
[]
[]
[]
[]
[]
[]
[]
[]
[]
[]
[]
[]
[]
[]
[]
[]
[]
[]
[]
[]
[]
[]
[]
[]
[]
[]
[]
[]
[]
[]
[]
[]
[]
[]
[]
[]
[]
[]
[]
[]
[]
[]
[]
[]
[]
[]
[]
[]
[]
[]
[]
[]
[]
[]
[]
[]
[]
[]
[]
[]
[]
[]
[]
[]
[]
[]
[]
[null,null,null,null,null,0]

{"sheet":"WP FR-16(7)(v) KWH","index":64,"n_rows":559,"n_cols":15,"rows_kept":559,"cut":false,"hidden":false,"merged":[]}
[{"$f":"'WP FR-16(7)(v)-KW & KWH @Gen'!A1","v":"DUKE ENERGY KENTUCKY, INC."},null,null,null,null,null,null,null,null,null,null,null,{"$f":"'WP FR-16(7)(v)-KW & KWH @Gen'!G1","v":"Work Paper FR-16(7)(v) "}]
[{"$f":"coss_type","v":"ELECTRIC COST OF SERVICE STUDY "},null,null,null,null,null,null,null,null,null,null,null,{"$f":"'WP FR-16(7)(v)-KW & KWH @Gen'!G2","v":"Witness Responsible:"}]
[{"$f":"case_name","v":"CASE NO: 2019-00271"},null,null,null,null,null,null,null,null,null,null,null,{"$f":"PROPER(Witness)","v":"James E. Ziolkowski"}]
[{"$f":"alloc_factors","v":"ALLOCATION FACTORS FOR COST OF SERVICE STUDY"},null,null,null,null,null,null,null,null,null,null,null,"Page 50"]
[{"$f":"'WP FR-16(7)(v)-KW & KWH @Gen'!A5","v":"TWELVE MONTHS ENDING DECEMBER 31, 2018"}]
[]
["ELECTRIC KWH",null,"2018 Data"]
[]
["Rate Group","Jan","Feb","Mar","Apr","May","Jun","Jul","Aug","Sep","Oct","Nov","Dec","Total"]
[]
["RS",182516347,137671405,113126208,110498891,95656110,137155984,158944123,141794873,144333320,112881524,101316672,137578627,{"$f":"SUM(B11:M11)","v":1573474084}]
["DS",{"$f":"B32","v":97733179},86465800,81700181,83491963,84129399,104158501,108149587,102713219,106481080,91214350,80308328,90687869,1117233456]
["DT-Secondary",{"$f":"B36","v":55289209},{"$f":"C36","v":53956409},51731472,52717641,54267526,62792708,62559076,61099876,64125671,57026029,53853026,55541499,684960142]
["DT-Primary",{"$f":"B40","v":38465859},{"$f":"C40","v":37222330},36815258,37942615,38571881,42184861,42626567,42623310,42999613,39917796,37945202,38416382,475731674]
["EH",3239766,2518499,2293362,2077538,1755828,0,null,null,null,1704560,1755034,2409354,17753941]
["SP",24824,22274,23279,26707,17857,20482,27702,25313,25533,35094,25621,15584,290270]
["GSFL",520821,520821,520954,521206,521206,521206,521206,521206,521206,521206,521206,521206,6253450]
["DP",{"$f":"B45","v":1033548},935338,878917,907590,1031960,2281381,2583273,2670956,2396718,2289439,2511982,2787805,22308907]
["WS",21920,73680,165000,81880,20760,8440,7800,12000,14640,12280,16800,31560,{"$f":"SUM(B19:M19)","v":466760}]
["TT",{"$f":"B49","v":20136925},19286277,19958893,19831721,19710326,19960444,20518011,20066446,20402161,19097423,20587259,20771139,{"$f":"SUM(B20:M20)","v":240327025}]
["Lighting  ",1303907,1841369,1574392,1567513,1574736,750766,1951974,1532991,1518293,1138261,1846880,1513539,18114621]
["Interdepartmental Sales",60315,84723,70924,47062,38868,91941,45341,46356,67817,45888,50311,39736,689282]
[]
["TOTAL",{"$f":"SUM(B11:B23)","v":400346620},340598925,308858840,309712327,297296457,369926714,397934660,373106546,382886052,325883850,300738321,350314300,4157603612," "]
[null,null,null,null,null,null,null,null,null,null,null,null,null,4157605247,"F/S"]
[null,null,null,null,null,null,null,null,null,null,null,null,null,{"$f":"N24-N25","v":-1635}]
[]
[]
["DS",93049650,82447849,77733494,79559327,80165048,99210901,103094719,98035000,101422415,87030318,76477579,86440290,{"$f":"SUM(B29:M29)","v":1064666590}]
["DS - LMR",4592033,3951333,3903994,3858736,3899429,4863984,4974556,4609148,5052538,4058488,3775027,4183482,{"$f":"SUM(B30:M30)","v":51722748}]
["RTP - DS - Incremental",91496,66618,62693,73900,64922,83616,80312,69071,6127,125544,55722,64097,{"$f":"SUM(B31:M31)","v":844118}]
["Total DS",{"$f":"SUM(B29:B31)","v":97733179},86465800,81700181,83491963,84129399,104158501,108149587,102713219,106481080,91214350,80308328,90687869,1117233456]
[]
["DT Sec Volt",55121465,53826833,51777495,52715694,54151368,62709682,62223120,60935751,63829564,56519825,53498081,55322186,{"$f":"SUM(B34:M34)","v":682631064}]
["RTP - DT Sec volt-incremental",167744,129576,-46023,1947,116158,83026,335956,164125,296107,506204,354945,219313,{"$f":"SUM(B35:M35)","v":2329078}]
["DT-Secondary",{"$f":"SUM(B34:B35)","v":55289209},{"$f":"SUM(C34:C35)","v":53956409},51731472,52717641,54267526,62792708,62559076,61099876,64125671,57026029,53853026,55541499,{"$f":"SUM(B36:M36)","v":684960142}]
[]
["DT Pri Volt",38465859,37222330,36815258,37942615,38571881,42184861,42626567,42623310,42999613,39917796,37945202,38416382,{"$f":"SUM(B38:M38)","v":475731674}]
["RTP - DT Pri volt-incremental",null,null,null,null,null,null,null,null,null,null,null,null,{"$f":"SUM(B39:M39)","v":0}]
["DT-Primary",{"$f":"SUM(B38:B39)","v":38465859},37222330,36815258,37942615,38571881,42184861,42626567,42623310,42999613,39917796,37945202,38416382,{"$f":"SUM(B40:M40)","v":475731674}]
["Total DT",{"$f":"B36+B40","v":93755068},{"$f":"C36+C40","v":91178739},88546730,90660256,92839407,104977569,105185643,103723186,107125284,96943825,91798228,93957881,1160691816]
[]
["DP",904652,777524,715290,733061,893638,2144624,2436200,2530854,2260044,2158198,2384200,2701241,{"$f":"SUM(B43:M43)","v":20639526}]
["DP-L",128896,157814,163627,174529,138322,136757,147073,140102,136674,131241,127782,86564,{"$f":"SUM(B44:M44)","v":1669381}]
["Total DP",{"$f":"SUM(B43:B44)","v":1033548},935338,878917,907590,1031960,2281381,2583273,2670956,2396718,2289439,2511982,2787805,22308907]
[]
["TT",19295877,18094456,18885733,18886548,18670526,18937868,19075004,18644336,18633408,17757865,19540074,19783732,{"$f":"SUM(B47:M47)","v":226205427}]
["RTP - TT - Incremental",841048,1191821,1073160,945173,1039800,1022576,1443007,1422110,1768753,1339558,1047185,987407,{"$f":"SUM(B48:M48)","v":14121598}]
["Total TT",{"$f":"SUM(B47:B48)","v":20136925},19286277,19958893,19831721,19710326,19960444,20518011,20066446,20402161,19097423,20587259,20771139,240327025]
[]
["Source: Revenue Stats File"]
[]
[]
[]
[]
[]
[]
[]
[]
[]
[]
[]
[]
[]
[]
[]
[]
[]
[]
[]
[]
[]
[]
[]
[]
[]
[]
[]
[]
[]
[]
[]
[]
[]
[]
[]
[]
[]
[]
[]
[]
[]
[]
[]
[]
[]
[]
[]
[]
[]
[]
[]
[]
[]
[]
[]
[]
[]
[]
[]
[]
[]
[]
[]
[]
[]
[]
[]
[]
[]
[]
[]
[]
[]
[]
[]
[]
[]
[]
[]
[]
[]
[]
[]
[]
[]
[]
[]
[]
[]
[]
[]
[]
[]
[]
[]
[]
[]
[]
[]
[]
[]
[]
[]
[]
[]
[]
[]
[]
[]
[]
[]
[]
[]
[]
[]
[]
[]
[]
[]
[]
[]
[]
[]
[]
[]
[]
[]
[]
[]
[]
[]
[]
[]
[]
[]
[]
[]
[]
[]
[]
[]
[]
[]
[]
[]
[]
[]
[]
[]
[]
[]
[]
[]
[]
[]
[]
[]
[]
[]
[]
[]
[]
[]
[]
[]
[]
[]
[]
[]
[]
[]
[]
[]
[]
[]
[]
[]
[]
[]
[]
[]
[]
[]
[]
[]
[]
[]
[]
[]
[]
[]
[]
[]
[]
[]
[]
[]
[]
[]
[]
[]
[]
[]
[]
[]
[]
[]
[]
[]
[]
[]
[]
[]
[]
[]
[]
[]
[]
[]
[]
[]
[]
[]
[]
[]
[]
[]
[]
[]
[]
[]
[]
[]
[]
[]
[]
[]
[]
[]
[]
[]
[]
[]
[]
[]
[]
[]
[]
[]
[]
[]
[]
[]
[]
[]
[]
[]
[]
[]
[]
[]
[]
[]
[]
[]
[]
[]
[]
[]
[]
[]
[]
[]
[]
[]
[]
[]
[]
[]
[]
[]
[]
[]
[]
[]
[]
[]
[]
[]
[]
[]
[]
[]
[]
[]
[]
[]
[]
[]
[]
[]
[]
[]
[]
[]
[]
[]
[]
[]
[]
[]
[]
[]
[]
[]
[]
[]
[]
[]
[]
[]
[]
[]
[]
[]
[]
[]
[]
[]
[]
[]
[]
[]
[]
[]
[]
[]
[]
[]
[]
[]
[]
[]
[]
[]
[]
[]
[]
[]
[]
[]
[]
[]
[]
[]
[]
[]
[]
[]
[]
[]
[]
[]
[]
[]
[]
[]
[]
[]
[]
[]
[]
[]
[]
[]
[]
[]
[]
[]
[]
[]
[]
[]
[]
[]
[]
[]
[]
[]
[]
[]
[]
[]
[]
[]
[]
[]
[]
[]
[]
[]
[]
[]
[]
[]
[]
[]
[]
[]
[]
[]
[]
[]
[]
[]
[]
[]
[]
[]
[]
[]
[]
[]
[]
[]
[]
[]
[]
[]
[]
[]
[]
[]
[]
[]
[]
[]
[]
[]
[]
[]
[]
[]
[]
[]
[]
[]
[]
[]
[]
[]
[]
[]
[]
[]
[]
[]
[]
[]
[]
[]
[]
[]
[]
[]
[]
[]
[]
[]
[]
[]
[]
[]
[]
[]
[]
[]
[]
[]
[]
[]
[]
[]
[]
[]
[]
[]
[]
[]
[]
[]
[]
[]
[]
[]
[]
[]
[]
[]
[]
[]
[]
[]
[]
[]
[]
[]
[null,null,null,null,null,0]

{"sheet":"WP FR-16(7)(v) AVG CUST","index":65,"n_rows":565,"n_cols":18,"rows_kept":565,"cut":false,"hidden":false,"merged":[]}
[{"$f":"'WP FR-16(7)(v)-KW & KWH @Gen'!A1","v":"DUKE ENERGY KENTUCKY, INC."},null,null,null,null,null,null,null,null,null,null,null,null,{"$f":"'WP FR-16(7)(v)-KW & KWH @Gen'!G1","v":"Work Paper FR-16(7)(v) "}]
[{"$f":"coss_type","v":"ELECTRIC COST OF SERVICE STUDY "},null,null,null,null,null,null,null,null,null,null,null,null,{"$f":"'WP FR-16(7)(v)-KW & KWH @Gen'!G2","v":"Witness Responsible:"}]
[{"$f":"case_name","v":"CASE NO: 2019-00271"},null,null,null,null,null,null,null,null,null,null,null,null,{"$f":"PROPER(Witness)","v":"James E. Ziolkowski"}]
[{"$f":"alloc_factors","v":"ALLOCATION FACTORS FOR COST OF SERVICE STUDY"},null,null,null,null,null,null,null,null,null,null,null,null,"Page 51"]
[{"$f":"'WP FR-16(7)(v)-KW & KWH @Gen'!A5","v":"TWELVE MONTHS ENDING DECEMBER 31, 2018"}]
[null,null,null,null,null,null,null,null,null,null,null,null,null,null,null,null,"Used for Acct","Used for Acct"]
["ELECTRIC CUSTOMERS",null,"2018 Data",null,null,null,null,null,null,null,null,null,null,null,null,null,"901-913 Alloc","901-913 Alloc"]
[null,null,null,null,null,null,null,null,null,null,null,null,null,null,null,null,"Total","Non-Res"]
["RATE","Jan","Feb","Mar","Apr","May","Jun","Jul","Aug","Sep","Oct","Nov","Dec","Total","Avg",null,"%","%"]
[]
["RS",128639,128643,128638,128334,128518,128057,127805,128184,128181,128627,128776,128775,{"$f":"SUM(B11:M11)","v":1541177},{"$f":"ROUND(N11/12,0)","v":128431},null,{"$f":"1-SUM(Q12:Q25)","v":0.90189999999999992},{"$f":"1-SUM(R12:R25)","v":0}]
["DS",{"$f":"B34+B35","v":12896},{"$f":"C34+C35","v":12894},12905,12908,12937,13034,13074,13067,13058,12934,12934,12976,{"$f":"SUM(B12:M12)","v":155617},12968,null,{"$f":"ROUND(O12/$O$28,4)","v":9.11E-2},{"$f":"1-SUM(R13:R25)","v":0.92879999999999996}]
["DS-RTP ",{"$f":"B36","v":4},{"$f":"C36","v":4},4,4,4,4,4,4,2,4,4,4,{"$f":"SUM(B13:M13)","v":46},4,null,{"$f":"ROUND(O13/$O$28,4)","v":0},{"$f":"ROUND(O13/($O$28-$O$11),4)","v":2.9999999999999997E-4}]
["DT-Secondary",{"$f":"B39","v":156},{"$f":"C39","v":156},156,156,153,155,155,155,155,153,153,154,1857,155,null,1.1000000000000001E-3,1.11E-2]
["DT-Sec-RTP",{"$f":"B40","v":4},{"$f":"C40","v":4},4,4,4,4,4,4,4,5,4,4,{"$f":"SUM(B15:M15)","v":49},4,null,0,2.9999999999999997E-4]
["DT-Primary",{"$f":"B43","v":38},{"$f":"C43","v":38},38,38,38,37,37,37,37,37,37,36,448,37,null,2.9999999999999997E-4,2.7000000000000001E-3]
["DT-Pri-RTP ",{"$f":"B44","v":0},{"$f":"C44","v":0},0,0,0,0,0,0,0,0,0,0,{"$f":"SUM(B17:M17)","v":0},0,null,0,0]
["EH",157,157,157,157,155,2,null,null,null,149,148,148,1230,103,null,6.9999999999999999E-4,7.4000000000000003E-3]
["SP",15,15,15,15,14,15,14,14,14,14,14,14,173,{"$f":"ROUND(N19/12,0)","v":14},null,1E-4,1E-3]
["GSFL",171,171,172,172,172,172,172,172,172,172,172,172,2062,172,null,1.1999999999999999E-3,1.23E-2]
["DP",{"$f":"B50","v":9},{"$f":"C50","v":9},9,9,10,11,11,11,11,11,11,11,123,10,null,1E-4,6.9999999999999999E-4]
["WS",11,11,11,11,11,11,11,11,11,11,11,11,132,11,null,1E-4,8.0000000000000004E-4]
["TT",{"$f":"B52","v":11},{"$f":"C52","v":11},11,11,11,11,11,11,11,11,11,11,132,11,null,1E-4,8.0000000000000004E-4]
["TT-RTP ",{"$f":"B53","v":4},{"$f":"C53","v":4},4,4,4,4,4,4,4,4,4,4,{"$f":"SUM(B24:M24)","v":48},{"$f":"ROUND(N24/12,0)","v":4},null,0,2.9999999999999997E-4]
["LIGHTING",{"$f":"B31-SUM(B11:B24)","v":420},{"$f":"C31-SUM(C11:C24)","v":427},426,440,432,484,498,498,533,550,471,435,5614,468,null,3.3E-3,3.3500000000000002E-2]
[]
[]
["TOTAL",{"$f":"SUM(B11:B25)","v":142535},{"$f":"SUM(C11:C25)","v":142544},142550,142263,142463,142001,141800,142172,142193,142682,142750,142755,{"$f":"SUM(N11:N25)","v":1708708},142392,null,{"$f":"SUM(Q11:Q25)","v":0.99999999999999978},{"$f":"SUM(R11:R25)","v":0.99999999999999989}]
[]
[]
["Per F/S",142535,142544,142550,142263,142463,142001,141800,142172,142193,142682,142750,142755,{"$f":"SUM(B31:M31)","v":1708708},{"$f":"ROUND(N31/12,0)","v":142392}]
["Forced lighting customers in order to agree with financial statements"]
[]
["DS ",12745,12745,12755,12756,12789,12880,12920,12916,12904,12783,12783,12829,{"$f":"SUM(B34:M34)","v":153805},{"$f":"ROUND(N34/12,0)","v":12817}]
["DS - LMR",151,149,150,152,148,154,154,151,154,151,151,147,{"$f":"SUM(B35:M35)","v":1812},{"$f":"ROUND(N35/12,0)","v":151}]
["RTP - DS - Incremental",4,4,4,4,4,4,4,4,2,4,4,4,{"$f":"SUM(B36:M36)","v":46},{"$f":"ROUND(N36/12,0)","v":4}]
["Total DS",{"$f":"SUM(B34:B36)","v":12900},12898,12909,12912,12941,13038,13078,13071,13060,12938,12938,12980,{"$f":"SUM(B37:M37)","v":155663},{"$f":"ROUND(N37/12,0)","v":12972}]
[]
["DT Sec Volt",156,156,156,156,153,155,155,155,155,153,153,154,{"$f":"SUM(B39:M39)","v":1857},{"$f":"ROUND(N39/12,0)","v":155}]
["RTP - DT Sec volt-incremental",4,4,4,4,4,4,4,4,4,5,4,4,{"$f":"SUM(B40:M40)","v":49},{"$f":"ROUND(N40/12,0)","v":4}]
["DT-Secondary",{"$f":"SUM(B39:B40)","v":160},{"$f":"SUM(C39:C40)","v":160},160,160,157,159,159,159,159,158,157,158,{"$f":"SUM(B41:M41)","v":1906},{"$f":"SUM(C41:N41)","v":3652}]
[]
["DT Pri Volt",38,38,38,38,38,37,37,37,37,37,37,36,{"$f":"SUM(B43:M43)","v":448},{"$f":"ROUND(N43/12,0)","v":37}]
["RTP - DT Pri volt-incremental",0,0,0,0,0,0,0,0,0,0,0,0,{"$f":"SUM(B44:M44)","v":0},{"$f":"ROUND(N44/12,0)","v":0}]
["DT-Primary",{"$f":"SUM(B43:B44)","v":38},{"$f":"SUM(C43:C44)","v":38},38,38,38,37,37,37,37,37,37,36,{"$f":"SUM(B45:M45)","v":448},{"$f":"SUM(C45:N45)","v":858}]
["Total DT",{"$f":"B41+B45","v":198},{"$f":"C41+C45","v":198},198,198,195,196,196,196,196,195,194,194,2354,4510]
[]
["DP",7,7,7,7,8,9,9,9,9,9,9,9,{"$f":"SUM(B48:M48)","v":99},{"$f":"ROUND(N48/12,0)","v":8}]
["DP-L",2,2,2,2,2,2,2,2,2,2,2,2,{"$f":"SUM(B49:M49)","v":24},{"$f":"ROUND(N49/12,0)","v":2}]
["Total DP",{"$f":"SUM(B48:B49)","v":9},9,9,9,10,11,11,11,11,11,11,11,123,10]
[]
["TT",11,11,11,11,11,11,11,11,11,11,11,11,{"$f":"SUM(B52:M52)","v":132},{"$f":"ROUND(N52/12,0)","v":11}]
["RTP - TT - Incremental",4,4,4,4,4,4,4,4,4,4,4,4,{"$f":"SUM(B53:M53)","v":48},{"$f":"ROUND(N53/12,0)","v":4}]
["Total TT",{"$f":"SUM(B52:B53)","v":15},15,15,15,15,15,15,15,15,15,15,15,180,15]
[]
[]
[]
[]
[]
[]
[]
[]
[]
[]
[]
[]
[]
[]
[]
[]
[]
[]
[]
[]
[]
[]
[]
[]
[]
[]
[]
[]
[]
[]
[]
[]
[]
[]
[]
[]
[]
[]
[]
[]
[]
[]
[]
[]
[]
[]
[]
[]
[]
[]
[]
[]
[]
[]
[]
[]
[]
[]
[]
[]
[]
[]
[]
[]
[]
[]
[]
[]
[]
[]
[]
[]
[]
[]
[]
[]
[]
[]
[]
[]
[]
[]
[]
[]
[]
[]
[]
[]
[]
[]
[]
[]
[]
[]
[]
[]
[]
[]
[]
[]
[]
[]
[]
[]
[]
[]
[]
[]
[]
[]
[]
[]
[]
[]
[]
[]
[]
[]
[]
[]
[]
[]
[]
[]
[]
[]
[]
[]
[]
[]
[]
[]
[]
[]
[]
[]
[]
[]
[]
[]
[]
[]
[]
[]
[]
[]
[]
[]
[]
[]
[]
[]
[]
[]
[]
[]
[]
[]
[]
[]
[]
[]
[]
[]
[]
[]
[]
[]
[]
[]
[]
[]
[]
[]
[]
[]
[]
[]
[]
[]
[]
[]
[]
[]
[]
[]
[]
[]
[]
[]
[]
[]
[]
[]
[]
[]
[]
[]
[]
[]
[]
[]
[]
[]
[]
[]
[]
[]
[]
[]
[]
[]
[]
[]
[]
[]
[]
[]
[]
[]
[]
[]
[]
[]
[]
[]
[]
[]
[]
[]
[]
[]
[]
[]
[]
[]
[]
[]
[]
[]
[]
[]
[]
[]
[]
[]
[]
[]
[]
[]
[]
[]
[]
[]
[]
[]
[]
[]
[]
[]
[]
[]
[]
[]
[]
[]
[]
[]
[]
[]
[]
[]
[]
[]
[]
[]
[]
[]
[]
[]
[]
[]
[]
[]
[]
[]
[]
[]
[]
[]
[]
[]
[]
[]
[]
[]
[]
[]
[]
[]
[]
[]
[]
[]
[]
[]
[]
[]
[]
[]
[]
[]
[]
[]
[]
[]
[]
[]
[]
[]
[]
[]
[]
[]
[]
[]
[]
[]
[]
[]
[]
[]
[]
[]
[]
[]
[]
[]
[]
[]
[]
[]
[]
[]
[]
[]
[]
[]
[]
[]
[]
[]
[]
[]
[]
[]
[]
[]
[]
[]
[]
[]
[]
[]
[]
[]
[]
[]
[]
[]
[]
[]
[]
[]
[]
[]
[]
[]
[]
[]
[]
[]
[]
[]
[]
[]
[]
[]
[]
[]
[]
[]
[]
[]
[]
[]
[]
[]
[]
[]
[]
[]
[]
[]
[]
[]
[]
[]
[]
[]
[]
[]
[]
[]
[]
[]
[]
[]
[]
[]
[]
[]
[]
[]
[]
[]
[]
[]
[]
[]
[]
[]
[]
[]
[]
[]
[]
[]
[]
[]
[]
[]
[]
[]
[]
[]
[]
[]
[]
[]
[]
[]
[]
[]
[]
[]
[]
[]
[]
[]
[]
[]
[]
[]
[]
[]
[]
[]
[]
[]
[]
[]
[]
[]
[]
[]
[]
[]
[]
[]
[]
[]
[]
[]
[]
[]
[]
[]
[]
[]
[]
[]
[]
[]
[]
[]
[]
[]
[]
[]
[]
[]
[]
[]
[]
[]
[]
[]
[]
[]
[null,null,null,null,null,0]

{"sheet":"WP FR-16(7)(v) Min Siz Trans 1","index":66,"n_rows":42,"n_cols":10,"rows_kept":42,"cut":false,"hidden":false,"merged":[]}
[{"$f":"co_name","v":"DUKE ENERGY KENTUCKY, INC."},null,null,null,null,null,null,{"$f":"'WP FR-16(7)(v)-KW & KWH @Gen'!G1","v":"Work Paper FR-16(7)(v) "}]
[{"$f":"coss_type","v":"ELECTRIC COST OF SERVICE STUDY "},null,null,null,null,null,null,{"$f":"'WP FR-16(7)(v)-KW & KWH @Gen'!G2","v":"Witness Responsible:"}]
[{"$f":"case_name","v":"CASE NO: 2019-00271"},null,null,null,null,null,null,{"$f":"PROPER(Witness)","v":"James E. Ziolkowski"}]
[{"$f":"alloc_factors","v":"ALLOCATION FACTORS FOR COST OF SERVICE STUDY"},null,null,null,null,null,null,"Page 52"]
[{"$f":"time_period","v":"TWELVE MONTHS ENDING DECEMBER 31, 2018"}]
[]
["LINE TRANSFORMERS MINIMUM SIZE STUDY - DEMAND/CUSTOMER ALLOCATION"]
[]
[]
[]
["Line"]
["No.","Line Transformers",null,"Source",null,"Demand Alloc","Customer Alloc","TOTAL"]
[null,"(1)",null,"(2)",null,"(3)","(4)","(5)"]
[null,null,null,null,null,null,null,"(3) + (4)"]
[]
[1,"Demand / Customer %",null,"See note (a) below",null,{"$f":"ROUND($G$39,9)","v":0.75473762},{"$f":"ROUND($G$37,9)","v":0.24526238}]
[2,"Gross Plant",null,"Line 1 * Line 21",null,{"$f":"ROUND(F16*G36,0)","v":47116092},{"$f":"ROUND(G16*G36,0)","v":15311023},{"$f":"IF(SUM(F17:G17)=G36,F17+G17,\"error\")","v":62427115}]
[3]
[4,null,null,null,null,"   To FR-16(7)(v)-1, P. 2","   To FR-16(7)(v)-1, P. 2"]
[5]
[6]
[7,"Demand / Customer %",null,"See note (a) below",null,{"$f":"F16","v":0.75473762},{"$f":"G16","v":0.24526238}]
[8,"Depreciation Reserve",null,"Line 7 * Line 26 ; note (b)",null,{"$f":"ROUND(F16*G41,0)","v":20506142},{"$f":"ROUND(G16*G41,0)","v":6663753},{"$f":"IF(SUM(F23:G23)=G41,F23+G23,\"error\")","v":27169895}]
[9]
[10,null,null,null,null,"   To FR-16(7)(v)-1, P. 3","   To FR-16(7)(v)-1, P. 3"]
[11]
[12]
[13,"Demand / Customer %",null,"See note (a) below",null,{"$f":"F16","v":0.75473762},{"$f":"G16","v":0.24526238}]
[14,"Maint Line Transformers",null,"Line 13 * Line 27 ; note (c)",null,{"$f":"ROUND(F16*G42,0)","v":271379},{"$f":"ROUND(G16*G42,0)","v":88189},{"$f":"IF(SUM(F29:G29)=G42,F29+G29,\"error\")","v":359568}]
[]
[null,null,null,null,null,"   To FR-16(7)(v)-1, P. 8","   To FR-16(7)(v)-1, P. 8"]
[]
[]
[null,"(a)  Customer Percentage:",null,null,null,"Source:"]
[null,"        Customer portion of FERC 368 Line Transformers",null,null,null,"WP FR-16(7)(v), page 54.",{"$f":"'WP FR-16(7)(v) Min Siz Trans 2'!F142","v":15311022.77085427}]
[null,"         Total Gross Plant FERC 368 Line Transformers",null,null,null,"Schedule B-2.1",{"$f":"'[3]SCH B-2.1'!$I$410+'[3]SCH B-2.1'!$I$411","v":62427115},null,null,"Linked to Sch. B-2.1"]
[null,"         Customer Allocation %",null,null,null,null,{"$f":"G35/G36","v":0.24526237951015789}]
[]
[null,"        Demand Allocation %",null,null,null,"(100% - Cust %)",{"$f":"1-G37","v":0.75473762048984216}]
[]
[null,"(b)  Depreciation Reserve FERC 368 Line Transformers",null,null,null,"Schedule B 3",{"$f":"'[3]SCH B-3'!$K$435+'[3]SCH B-3'!$K$436","v":27169895},null,null,"Linked to Sch. B-3"]
[null,"(c)  Maint Line Transformers FERC 595 Line Transformers",null,null,null,"Schedule C-2.1",{"$f":"'[3]SCH_C2.1 - Forecasted Period'!$J$188","v":359568},null,null,"Linked to Sch. C-2.1"]

{"sheet":"WP FR-16(7)(v) Min Siz Trans 2","index":67,"n_rows":150,"n_cols":8,"rows_kept":150,"cut":false,"hidden":false,"merged":[]}
[{"$f":"co_name","v":"DUKE ENERGY KENTUCKY, INC."},null,null,null,null,null,null,{"$f":"'WP FR-16(7)(v)-KW & KWH @Gen'!$G$1","v":"Work Paper FR-16(7)(v) "}]
[{"$f":"coss_type","v":"ELECTRIC COST OF SERVICE STUDY "},null,null,null,null,null,null,{"$f":"'WP FR-16(7)(v)-KW & KWH @Gen'!$G$2","v":"Witness Responsible:"}]
[{"$f":"case_name","v":"CASE NO: 2019-00271"},null,null,null,null,null,null,{"$f":"PROPER(Witness)","v":"James E. Ziolkowski"}]
[{"$f":"alloc_factors","v":"ALLOCATION FACTORS FOR COST OF SERVICE STUDY"},null,null,null,null,null,null,"Page 53"]
[{"$f":"time_period","v":"TWELVE MONTHS ENDING DECEMBER 31, 2018"}]
["TRANSFORMERS MINIMUM SIZE STUDY TO DETERMINE DEMAND/CUSTOMER"]
[]
["Line"]
["No.",null,"MINIMUM SIZE STUDY - FERC 368 LINE TRANSFORMERS"]
[1,null,{"$f":"'Minimum Size Summary'!D20","v":"25 kVa"},{"$f":"'Minimum Size Summary'!F20","v":1633},"(a)"]
[2,null,"Cost Year",{"$f":"RIGHT(time_period,4)","v":"2018"}," "]
[3,null,"Handy Whitman at Cost Year",{"$f":"D140","v":995},"(b)"]
[4]
[5,"Year","Quantity (c)","Handy-Whitman Factor (d)","Cost in Year","Minimum Size Cost"]
[6,null,"(1)","(2)","(3)","(4)"]
[7,null,null,null,{"$f":"\"(Col(2) / \"&TEXT($D$12,\"$###\")&\" * \"&TEXT($D$10,\"$#,###\")","v":"(Col(2) / $995 * $1,633"},"(1) * (3)"]
[8]
[9,1910,1,48,{"$f":"D18/$D$12*$D$10","v":78.777889447236177},{"$f":"C18*E18","v":78.777889447236177}]
[10,1911,0,48,78.777889447236177,0]
[11,1912,0,48,78.777889447236177,0]
[12,1913,0,48,78.777889447236177,0]
[13,1914,0,48,78.777889447236177,0]
[14,1915,0,48,78.777889447236177,0]
[15,1916,1,48,78.777889447236177,78.777889447236177]
[16,1917,1,51,83.701507537688443,83.701507537688443]
[17,1918,0,69,113.24321608040201,0]
[18,1919,0,72,118.16683417085427,0]
[19,1920,4,77,126.37286432160805,505.49145728643219]
[20,1921,1,79,129.65527638190954,129.65527638190954]
[21,1922,3,69,113.24321608040201,339.72964824120601]
[22,1923,3,67,109.96080402010051,329.88241206030153]
[23,1924,0,69,113.24321608040201,{"$f":"C33*E32","v":226.48643216080401}]
[24,1925,2,68,111.60201005025125,334.80603015075377]
[25,1926,3,63,103.39597989949748,413.5839195979899]
[26,1927,4,59,96.83115577889447,96.83115577889447]
[27,1928,1,58,95.189949748743715,190.37989949748743]
[28,1929,2,62,101.75477386934674,305.26432160804018]
[29,1930,3,61,100.11356783919598,0]
[30,1931,0,59,96.83115577889447,193.66231155778894]
[31,1932,2,57,93.548743718592974,93.548743718592974]
[32,1933,1,59,96.83115577889447,0]
[33,1934,0,61,100.11356783919598,100.11356783919598]
[34,1935,1,62,101.75477386934674,508.7738693467337]
[35,1936,5,62,101.75477386934674,305.26432160804018]
[36,1937,3,66,108.31959798994976,216.63919597989951]
[37,1938,2,67,109.96080402010051,219.92160804020102]
[38,1939,2,67,109.96080402010051,989.64723618090466]
[39,1940,9,67,109.96080402010051,879.68643216080409]
[40,1941,8,69,113.24321608040201,339.72964824120601]
[41,1942,3,68,111.60201005025125,334.80603015075377]
[42,1943,3,64,105.03718592964825,210.07437185929649]
[43,1944,2,64,105.03718592964825,630.22311557788953]
[44,1945,6,64,105.03718592964825,525.1859296482412]
[45,1946,5,72,118.16683417085427,2008.8361809045227]
[46,1947,17,90,147.70854271356785,1181.6683417085428]
[47,1948,8,93,152.63216080402009,1831.5859296482411]
[48,1949,12,96,157.55577889447235,3308.6713567839192]
[49,1950,21,100,164.12060301507537,4923.6180904522616]
[50,1951,30,113,185.45628140703519,5934.6010050251261]
[51,1952,32,113,185.45628140703519,3338.2130653266336]
[52,1953,18,121,198.5859296482412,7943.437185929648]
[53,1954,40,123,201.86834170854272,14130.78391959799]
[54,1955,70,123,201.86834170854272,16149.467336683418]
[55,1956,80,127,208.43316582914571,6252.9949748743711]
[56,1957,30,135,221.56281407035178,13293.768844221107]
[57,1958,60,130,213.356783919598,17921.969849246234]
[58,1959,84,125,205.1507537688442,18463.567839195977]
[59,1960,90,122,200.22713567839196,23026.120603015075]
[60,1961,115,118,193.66231155778894,25757.087437185928]
[61,1962,133,107,175.60904522613066,30204.755778894472]
[62,1963,172,100,164.12060301507537,51041.507537688442]
[63,1964,311,100,164.12060301507537,35778.291457286432]
[64,1965,218,101,165.76180904522613,88848.329648241212]
[65,1966,536,101,165.76180904522613,52878.017085427135]
[66,1967,319,105,172.32663316582915,74445.105527638196]
[67,1968,432,109,178.89145728643214,{"$f":"C77*E76","v":134526.37587939698}]
[68,1969,752,106,173.96783919597991,{"$f":"C78*E77","v":0}]
[]
[]
[{"$f":"co_name","v":"DUKE ENERGY KENTUCKY, INC."},null,null,null,null,null,null,{"$f":"'WP FR-16(7)(v)-KW & KWH @Gen'!$G$1","v":"Work Paper FR-16(7)(v) "}]
[{"$f":"coss_type","v":"ELECTRIC COST OF SERVICE STUDY "},null,null,null,null,null,null,{"$f":"'WP FR-16(7)(v)-KW & KWH @Gen'!$G$2","v":"Witness Responsible:"}]
[{"$f":"case_name","v":"CASE NO: 2019-00271"},null,null,null,null,null,null,{"$f":"PROPER(Witness)","v":"James E. Ziolkowski"}]
[{"$f":"alloc_factors","v":"ALLOCATION FACTORS FOR COST OF SERVICE STUDY"},null,null,null,null,null,null,"Page 54"]
[{"$f":"time_period","v":"TWELVE MONTHS ENDING DECEMBER 31, 2018"}]
["TRANSFORMERS MINIMUM SIZE STUDY TO DETERMINE DEMAND/CUSTOMER"]
[]
["Line"]
["No.","Year","Quantity (c)","Handy-Whitman Factor (d)","Cost in Year","Minimum Size Cost"]
[null,null,"(1)","(2)","(3)","(4)"]
[null,null,null,null,{"$f":"\"(Col(2) / \"&TEXT($D$12,\"$###\")&\" * \"&TEXT($D$10,\"$#,###\")","v":"(Col(2) / $995 * $1,633"},"(1) * (3)"]
[]
[69,1970,953,105,{"$f":"D92/$D$12*$D$10","v":172.32663316582915},{"$f":"C92*E92","v":164227.28140703519}]
[70,1971,1060,104,170.6854271356784,180926.55276381911]
[71,1972,1471,100,164.12060301507537,241421.40703517589]
[72,1973,1239,100,164.12060301507537,203345.42713567839]
[73,1974,1203,110,180.53266331658293,217180.79396984927]
[74,1975,499,133,218.28040201005027,108921.92060301508]
[75,1976,307,136,223.2040201005025,68523.634170854275]
[76,1977,596,147,241.25728643216078,143789.34271356784]
[77,1978,696,158,259.31055276381909,{"$f":"C99*E100","v":154549.08944723618}]
[78,1979,575,166,272.44020100502513,{"$f":"C100*E101","v":189618.37989949749}]
[79,1980,598,165,{"$f":"D102/$D$12*$D$10","v":270.79899497487435},{"$f":"C102*E102","v":161937.79899497487}]
[80,1981,648,194,318.39396984924622,206319.29246231154]
[81,1982,375,208,341.37085427135679,128014.0703517588]
[82,1983,642,210,344.6532663316583,221267.39698492462]
[83,1984,612,211,346.29447236180903,211932.21708542714]
[84,1985,513,212,347.93567839195981,178491.00301507537]
[85,1986,663,213,349.57688442211054,231769.47437185928]
[86,1987,460,211,346.29447236180903,159295.45728643215]
[87,1988,1139,212,347.93567839195981,396298.73768844223]
[88,1989,1283,221,362.70653266331658,465352.4814070352]
[89,1990,818,224,367.63015075376887,300721.46331658296]
[90,1991,860,222,364.34773869346736,313339.05527638196]
[91,1992,800,223,365.98894472361809,292791.15577889449]
[92,1993,969,226,370.91256281407038,359414.27336683421]
[93,1994,1490,230,377.47738693467335,562441.30653266329]
[94,1995,540,225,369.2713567839196,199406.53266331658]
[95,1996,793,219,359.42412060301507,285023.32763819094]
[96,1997,1088,206,338.08844221105528,367840.22512562817,"January","July"]
[97,1998,791,{"$f":"(G120+H120)/2","v":208.5},342.19145728643218,270673.44271356787,208,209]
[98,1999,795,211,346.29447236180903,275304.10552763817,214,208]
[99,2000,642,208,341.37085427135679,219160.08844221107,208,208]
[100,2001,246,214,351.21809045226132,86399.650251256287,211,217]
[101,2002,430,222.5,365.1683417085427,157022.38693467336,221,224]
[102,2003,674,226,370.91256281407038,249995.06733668345,223,229]
[103,2004,812,228.5,375.01557788944723,304512.64924623113,217,240]
[104,2005,532,254,416.86633165829141,221772.88844221103,250,258]
[105,2006,510,322,528.46834170854277,269518.85427135683,299,345]
[106,2007,589,401,658.12361809045228,387634.81105527637,397,405]
[107,2008,57,560,919.0753768844221,52387.296482412057,615,505]
[108,2009,76,547,897.73969849246225,68228.217085427124,534,560]
[109,2010,776,602.5,988.82663316582921,767329.46733668342,588,617]
[110,2011,74,{"$f":"(G133+H133)/2","v":640},1050.3718592964824,77727.517587939699,630,650]
[111,2012,290,681.5,{"$f":"D134/$D$12*$D$10","v":1118.4819095477387},{"$f":"C134*E134","v":324359.75376884424},673,690]
[112,2013,103,746.5,1225.1603015075375,{"$f":"C135*E135","v":126191.51105527637},737,756]
[113,2014,959,809,1327.7356783919597,{"$f":"C136*E136","v":1273298.5155778893},799,819]
[114,2015,494,855,1403.2311557788944,{"$f":"C137*E137","v":693196.1909547738},854,856]
[115,2016,1470,883,1449.1849246231156,{"$f":"C138*E138","v":2130301.8391959802},884,882]
[116,2017,1795,932,1529.6040201005026,{"$f":"C139*E139","v":2745639.216080402},918,946]
[117,2018,2,995,1633,3266,982,1008]
[]
[118,null,{"$f":"SUM(C18:C140)","v":38668},null,null,{"$f":"SUM(F18:F138)","v":15311022.77085427},"  Customer Component of "]
[null,null,null,null,null,null,"  FERC 368 Transformers"]
[null,null,null,null,null,"to WP FR-16(7)(v), P.53."]
[]
[null,"(a)","Fully loaded installed cost of 15kVa minimum size overhead transformer.  Source:  Engineering Standards."]
[null,"(b)",{"$f":"\"Handy Whitman Index for Utility Plant Materials/Line Transformers. \"&TEXT(D133,\"$###\")&\" is Handy Whitman at Cost Year \"&RIGHT(time_period,4)&\".\"","v":"Handy Whitman Index for Utility Plant Materials/Line Transformers. $640 is Handy Whitman at Cost Year 2018."}]
[null,"(c)","Asset Accounting.  Includes all Overhead and Pad-mounted Transformers."]
[null,"(d)","Handy Whitman Index for Utility Plant Materials/Line Transformers"]
[null,null,"Handy Whitman Index unavailable for years 1910 and 1911 so used the index for 1912 for those years."]

{"sheet":"WP FR-16(7)(v) MinSizPrimPole1","index":68,"n_rows":41,"n_cols":10,"rows_kept":41,"cut":false,"hidden":false,"merged":[]}
[{"$f":"co_name","v":"DUKE ENERGY KENTUCKY, INC."},null,null,null,null,null,null,{"$f":"'WP FR-16(7)(v)-KW & KWH @Gen'!$G$1","v":"Work Paper FR-16(7)(v) "}]
[{"$f":"coss_type","v":"ELECTRIC COST OF SERVICE STUDY "},null,null,null,null,null,null,{"$f":"'WP FR-16(7)(v)-KW & KWH @Gen'!$G$2","v":"Witness Responsible:"}]
[{"$f":"case_name","v":"CASE NO: 2019-00271"},null,null,null,null,null,null,{"$f":"PROPER(Witness)","v":"James E. Ziolkowski"}]
[{"$f":"alloc_factors","v":"ALLOCATION FACTORS FOR COST OF SERVICE STUDY"},null,null,null,null,null,null,"Page 55"]
[{"$f":"time_period","v":"TWELVE MONTHS ENDING DECEMBER 31, 2018"}]
["DISTRIBUTION PRIMARY POLE - MINIMUM SIZE STUDY - DEMAND/CUSTOMER ALLOCATION"]
[]
[]
[]
["Line"]
["No.","Line Transformers",null,"Source",null,"Demand Alloc","Customer Alloc","TOTAL"]
[null,"(1)",null,"(2)",null,"(3)","(4)","(5)"]
[null,null,null,null,null,null,null,"(3) + (4)"]
[]
[1,"Demand / Customer %",null,"See note (a) below",null,{"$f":"ROUND($G$38,9)","v":0.68604078599999996},{"$f":"ROUND($G$36,9)","v":0.31395921399999999}]
[2,"Gross Plant",null,"Line 1 * Line 21",null,{"$f":"ROUND(F15*G35,0)","v":33009975},{"$f":"ROUND(G15*G35,0)","v":15106661},{"$f":"IF(SUM(F16:G16)=G35,F16+G16,\"error\")","v":48116636}]
[3]
[4,null,null,null,null,"   To Sch. E-3.2, P. 2","   To Sch. E-3.2, P. 2"]
[5]
[6]
[7,"Demand / Customer %",null,"See note (a) below",null,{"$f":"F15","v":0.68604078599999996},{"$f":"G15","v":0.31395921399999999}]
[8,"Depreciation Reserve",null,"Line 7 * Line 26 ; note (b)",null,{"$f":"ROUND(F21*G40,0)","v":15103464},{"$f":"ROUND(G21*G40,0)","v":6911939},{"$f":"IF(SUM(F22:G22)=G40,F22+G22,\"error\")","v":22015403}]
[9]
[10,null,null,null,null,"   To Sch. E-3.2, P. 3","   To Sch. E-3.2, P. 3"]
[11]
[12]
[13,"Demand / Customer %",null,"See note (a) below",null,{"$f":"F15","v":0.68604078599999996},{"$f":"G15","v":0.31395921399999999}]
[14,"Maint Structures",null,"Line 13 * Line 27 ; note (c)",null,{"$f":"ROUND(F27*G41,0)","v":5902},{"$f":"ROUND(G27*G41,0)","v":2701},{"$f":"IF(SUM(F28:G28)=G41,F28+G28,\"error\")","v":8603}]
[15]
[16,null,null,null,null,"   To Sch. E-3.2, P. 9","   To Sch. E-3.2, P. 9"]
[17]
[18]
[19,"(a)  Customer Percentage:",null,null,null,"Source:"]
[20,"        Customer portion of FERC 364 Primary Poles",null,null,null,"WPE 3.2d, p. 12",{"$f":"'WP FR-16(7)(v) MinSizPrimPole2'!F136","v":15106661.241560388}]
[21,"         Total Gross Plant FERC 364 Primary Poles",null,null,null,"Schedule B-2.1",{"$f":"ROUND(('[3]SCH B-2.1'!$I$405)*PrimaryCM,0)","v":48116636},null,null,"Linked to Sch. B-2.1"]
[22,"         Customer Allocation %",null,null,null,null,{"$f":"G34/G35","v":0.31395921447127745}]
[23]
[24,"        Demand Allocation %",null,null,null,"(100% - Cust %)",{"$f":"1-G36","v":0.6860407855287225}]
[25]
[26,"(b)  Depreciation Reserve FERC 364 Primary Poles",null,null,null,"Schedule B-3",{"$f":"ROUND(('[3]SCH B-3'!$K$430)*PrimaryCM,0)","v":22015403},null,null,"Linked to Sch. B-3"]
[27,"(c)  Maint Structures - FERC 591 ",null,null,null,"Schedule C-2.1",{"$f":"ROUND(('[3]SCH_C2.1 - Forecasted Period'!$J$184)*PrimaryCM,0)","v":8603},null,null,"Linked to Sch. C-2.1"]

{"sheet":"WP FR-16(7)(v) MinSizPrimPole2","index":69,"n_rows":144,"n_cols":8,"rows_kept":144,"cut":false,"hidden":false,"merged":[]}
[{"$f":"co_name","v":"DUKE ENERGY KENTUCKY, INC."},null,null,null,null,null,null,{"$f":"'WP FR-16(7)(v)-KW & KWH @Gen'!$G$1","v":"Work Paper FR-16(7)(v) "}]
[{"$f":"coss_type","v":"ELECTRIC COST OF SERVICE STUDY "},null,null,null,null,null,null,{"$f":"'WP FR-16(7)(v)-KW & KWH @Gen'!$G$2","v":"Witness Responsible:"}]
[{"$f":"case_name","v":"CASE NO: 2019-00271"},null,null,null,null,null,null,{"$f":"PROPER(Witness)","v":"James E. Ziolkowski"}]
[{"$f":"alloc_factors","v":"ALLOCATION FACTORS FOR COST OF SERVICE STUDY"},null,null,null,null,null,null,"Page 56"]
[{"$f":"time_period","v":"TWELVE MONTHS ENDING DECEMBER 31, 2018"}]
["DISTRIBUTION PRIMARY POLE - MINIMUM SIZE STUDY - DEMAND/CUSTOMER ALLOCATION"]
[]
["Line"]
["No.",null,"MINIMUM SIZE STUDY - FERC 364 POLES"]
[1,null,{"$f":"'Minimum Size Summary'!D8","v":"40 ft, Class 4, Wood"},{"$f":"'Minimum Size Summary'!F8","v":905},"(a)"]
[2,null,"Cost Year",{"$f":"RIGHT(time_period,4)","v":"2018"}," "]
[3,null,"Handy Whitman at Cost Year",{"$f":"D135","v":666.5},"(b)"]
[4]
[5,"Year","Quantity (c)","Handy-Whitman Factor (d)","Cost in Year","Minimum Size Cost"]
[6,null,"(1)","(2)","(3)","(4)"]
[7,null,null,null,{"$f":"\"(Col(2) / \"&TEXT(D12,\"$###\")&\" * \"&TEXT(D10,\"$#,###\")","v":"(Col(2) / $667 * $905"},"(1) * (3)"]
[8]
[9,1915,1,28,{"$f":"D18/$D$12*$D$10","v":38.019504876219052},{"$f":"C18*E18","v":38.019504876219052}]
[10,1916,null,28,38.019504876219052,0]
[11,1917,1,28,38.019504876219052,38.019504876219052]
[12,1918,1,28,38.019504876219052,38.019504876219052]
[13,1919,1,28,38.019504876219052,38.019504876219052]
[14,1920,0,28,38.019504876219052,0]
[15,1921,1,28,38.019504876219052,38.019504876219052]
[16,1922,1,28,38.019504876219052,38.019504876219052]
[17,1923,1,28,38.019504876219052,38.019504876219052]
[18,1924,1,28,38.019504876219052,38.019504876219052]
[19,1925,9,28,38.019504876219052,342.17554388597148]
[20,1926,7,28,38.019504876219052,266.13653413353336]
[21,1927,14,27,36.661665416354083,513.26331582895716]
[22,1928,20,26,35.303825956489128,706.07651912978258]
[23,1929,18,25,33.945986496624158,611.02775693923491]
[24,1930,36,24,32.588147036759189,1173.1732933233309]
[25,1931,87,23,31.230307576894226,2717.0367591897975]
[26,1932,84,21,28.514628657164288,2395.2288072018]
[27,1933,138,22,29.872468117029257,4122.4006001500375]
[28,1934,132,23,31.230307576894226,4122.4006001500375]
[29,1935,114,24,32.588147036759189,3715.0487621905477]
[30,1936,30,23,31.230307576894226,936.90922730682678]
[31,1937,104,24,32.588147036759189,3389.1672918229556]
[32,1938,104,23,31.230307576894226,3247.9519879969994]
[33,1939,61,23,31.230307576894226,1905.0487621905479]
[34,1940,128,23,31.230307576894226,3997.479369842461]
[35,1941,86,24,32.588147036759189,2802.5806451612902]
[36,1942,122,27,36.661665416354083,4472.7231807951985]
[37,1943,23,28,38.019504876219052,874.4486121530382]
[38,1944,54,33,44.808702175543885,2419.6699174793698]
[39,1945,120,39,52.955738934733688,6354.6886721680421]
[40,1946,50,37,50.240060015003749,2512.0030007501873]
[41,1947,77,41,55.67141785446362,4286.6991747936991]
[42,1948,99,43,58.387096774193544,5780.322580645161]
[43,1949,141,43,58.387096774193544,8232.5806451612898]
[44,1950,206,42,57.029257314328575,11748.027006751687]
[45,1951,229,44,59.744936234058514,13681.590397599401]
[46,1952,291,46,62.460615153788453,18176.03900975244]
[47,1953,280,49,66.53413353338334,18629.557389347334]
[48,1954,318,51,69.249812453113279,22021.440360090022]
[49,1955,394,51,69.249812453113279,27284.426106526633]
[50,1956,365,55,74.681170292573142,27258.627156789196]
[51,1957,412,59,80.11252813203302,33006.361590397602]
[52,1958,400,60,81.470367591897968,32588.147036759186]
[53,1959,382,57,77.396849212303081,29565.596399099777]
[54,1960,291,57,77.396849212303081,22522.483120780198]
[55,1961,438,56,76.039009752438105,33305.086271567889]
[56,1962,269,56,76.039009752438105,20454.493623405851]
[57,1963,236,56,76.039009752438105,17945.206301575392]
[58,1964,475,56,76.039009752438105,36118.529632408099]
[59,1965,477,56,76.039009752438105,36270.607651912978]
[60,1966,378,58,78.754688672168044,29769.272318079522]
[61,1967,414,61,82.828207051762931,34290.877719429853]
[62,1968,525,62,84.186046511627907,44197.674418604649]
[63,1969,491,66,89.617404351087771,44002.145536384094]
[]
[]
[{"$f":"co_name","v":"DUKE ENERGY KENTUCKY, INC."},null,null,null,null,null,null,{"$f":"'WP FR-16(7)(v)-KW & KWH @Gen'!$G$1","v":"Work Paper FR-16(7)(v) "}]
[{"$f":"coss_type","v":"ELECTRIC COST OF SERVICE STUDY "},null,null,null,null,null,null,{"$f":"'WP FR-16(7)(v)-KW & KWH @Gen'!$G$2","v":"Witness Responsible:"}]
[{"$f":"case_name","v":"CASE NO: 2019-00271"},null,null,null,null,null,null,{"$f":"PROPER(Witness)","v":"James E. Ziolkowski"}]
[{"$f":"alloc_factors","v":"ALLOCATION FACTORS FOR COST OF SERVICE STUDY"},null,null,null,null,null,null,"Page 57"]
[{"$f":"time_period","v":"TWELVE MONTHS ENDING DECEMBER 31, 2018"}]
["DISTRIBUTION PRIMARY POLE - MINIMUM SIZE STUDY - DEMAND/CUSTOMER ALLOCATION"]
[]
["Line"]
["No.","Year","Quantity (c)","Handy-Whitman Factor (d)","Cost in Year","Minimum Size Cost"]
[null,null,"(1)","(2)","(3)","(4)"]
[null,null,null,null,{"$f":"\"(Col(2) / \"&TEXT($D$12,\"$###\")&\" * \"&TEXT($D$10,\"$#,###\")","v":"(Col(2) / $667 * $905"},"(1) * (3)"]
[]
[64,1970,550,69,93.690922730682672,51530.007501875472]
[65,1971,499,73,99.122280570142536,49462.018004501122]
[66,1972,587,77,104.5536384096024,61372.985746436607]
[67,1973,600,100,135.78394598649663,81470.367591897986]
[68,1974,428,150,203.67591897974495,{"$f":"C91*E91","v":87173.293323330843}]
[69,1975,337,205,278.35708927231809,{"$f":"C92*E92","v":93806.3390847712}]
[70,1976,383,192,260.70517629407351,{"$f":"C93*E93","v":99850.082520630152}]
[71,1977,501,190,257.98949737434361,{"$f":"C94*E94","v":129252.73818454615}]
[72,1978,446,206,279.71492873218301,{"$f":"C94*E95","v":140137.1792948237}]
[73,1979,514,234,{"$f":"D96/$D$12*$D$10","v":317.73443360840207},{"$f":"C95*E96","v":141709.55738934732}]
[74,1980,722,265,359.82745686421606,{"$f":"C97*E97","v":259795.42385596401}]
[75,1981,494,289,392.41560390097527,193853.30832708179]
[76,1982,389,291,395.13128282070517,153706.06901725431]
[77,1983,453,280,380.19504876219054,172228.35708927232]
[78,1984,362,276,374.76369092273069,135664.45611402852]
[79,1985,386,283,384.26856714178541,148327.66691672915]
[80,1986,452,289,392.41560390097527,177371.85296324082]
[81,1987,593,284,385.62640660165044,228676.4591147787]
[82,1988,414,289,392.41560390097527,162460.06001500375]
[83,1989,656,300,407.3518379594899,267222.80570142536]
[84,1990,435,310,420.93023255813955,183104.65116279072]
[85,1991,620,323,438.58214553638408,271920.93023255811]
[86,1992,616,332,450.80270067516881,277694.46361590398]
[87,1993,599,367,498.32708177044265,298497.92198049516]
[88,1994,672,416,564.86121530382604,379586.73668417108]
[89,1995,521,445,604.23855963991002,314808.28957239311]
[90,1996,370,463,628.67966991747937,232611.47786946737]
[91,1997,323,473,642.25806451612902,207449.35483870967]
[92,1998,347,471,639.54238559639907,221921.20780195048]
[93,1999,435,473,642.25806451612902,279382.25806451612]
[94,2000,445,471,639.54238559639907,284596.3615903976,"January","July"]
[95,2001,343,{"$f":"(G118+H118)/2","v":483.5},656.51537884471122,225184.77494373595,474,493]
[96,2002,73,502,681.63540885221312,49759.384846211557,496,508]
[97,2003,169,513,696.57164291072775,117720.60765191299,508,518]
[98,2004,526,527.5,716.26031507876962,376752.9257314328,514,541]
[99,2005,583,547.5,743.41710427606904,433412.17179294827,541,554]
[100,2006,700,581.5,789.5836459114779,552708.55213803449,562,601]
[101,2007,822,602,817.41935483870964,671918.70967741928,600,604]
[102,2008,-633,627,851.36534133533382,-538914.26106526633,611,643]
[103,2009,431,659,894.81620405101273,385665.78394598648,653,665]
[104,2010,277,679,921.97299324831215,255386.51912978248,672,686]
[105,2011,158,671,911.11027756939234,143955.42385596398,664,678]
[106,2012,482,692,939.62490622655662,452899.20480120031,687,697]
[107,2013,465,700,950.48762190547643,441976.74418604653,700,700]
[108,2014,315,675,916.54163540885213,288710.61515378841,675,675]
[109,2015,704,664,901.60540135033762,634730.20255063765,670,658]
[110,2016,581,{"$f":"(G133+H133)/2","v":677},{"$f":"D133/$D$12*$D$10","v":919.2573143285822},{"$f":"C133*E133","v":534088.49962490622},676,678]
[111,2017,2172,700,{"$f":"D134/$D$12*$D$10","v":950.48762190547643},{"$f":"C134*E134","v":2064459.1147786947},670,730]
[112,2018,1773,666.5,{"$f":"D135/$D$12*$D$10","v":905},{"$f":"C135*E135","v":1604565},665,668]
[113,null,{"$f":"SUM(C18:C135)","v":34227},null,null,{"$f":"SUM(F18:F135)","v":15106661.241560388},"Customer Component of FERC 364 Primary Poles"]
[]
[null,null,null,null,null,"to WPE-3.2d, pg 11"]
[]
[null,"(a)","Fully loaded installed cost of 40 ft., class 4, wood pole.  Source:  Engineering Standards."]
[null,"(b)",{"$f":"\"Handy Whitman Index for Utility Plant Materials/Treated Pine Poles. \"&TEXT(D132,\"$###\")&\" is Handy Whitman at Cost Year \"&RIGHT(time_period,4)&\".\"","v":"Handy Whitman Index for Utility Plant Materials/Treated Pine Poles. $664 is Handy Whitman at Cost Year 2018."}]
[null,"(c)","Asset Accounting.  Includes all Distribution Primary wood poles."]
[null,"(d)","Handy Whitman Index for Utility Plant Materials/Treated Pine Poles. "]
[null,null,"Handy Whitman Index unavailable for years 1915 and 1925 so used the index for 1926 for those years."]

{"sheet":"WP FR-16(7)(v) MinSizSecPole1","index":70,"n_rows":41,"n_cols":10,"rows_kept":41,"cut":false,"hidden":false,"merged":[]}
[{"$f":"co_name","v":"DUKE ENERGY KENTUCKY, INC."},null,null,null,null,null,null,{"$f":"'WP FR-16(7)(v)-KW & KWH @Gen'!$G$1","v":"Work Paper FR-16(7)(v) "}]
[{"$f":"coss_type","v":"ELECTRIC COST OF SERVICE STUDY "},null,null,null,null,null,null,{"$f":"'WP FR-16(7)(v)-KW & KWH @Gen'!$G$2","v":"Witness Responsible:"}]
[{"$f":"case_name","v":"CASE NO: 2019-00271"},null,null,null,null,null,null,{"$f":"PROPER(Witness)","v":"James E. Ziolkowski"}]
[{"$f":"alloc_factors","v":"ALLOCATION FACTORS FOR COST OF SERVICE STUDY"},null,null,null,null,null,null,"Page 58"]
[{"$f":"time_period","v":"TWELVE MONTHS ENDING DECEMBER 31, 2018"}]
["DISTRIBUTION SECONDARY POLE - MINIMUM SIZE STUDY - DEMAND/CUSTOMER ALLOCATION"]
[]
[]
[]
["Line"]
["No.","Line Transformers",null,"Source",null,"Demand Alloc","Customer Alloc","TOTAL"]
[null,"(1)",null,"(2)",null,"(3)","(4)","(5)"]
[null,null,null,null,null,null,null,"(3) + (4)"]
[]
[1,"Demand / Customer %",null,"See note (a) below",null,{"$f":"ROUND($G$38,9)","v":0.78709457999999999},{"$f":"ROUND($G$36,9)","v":0.21290542000000001}]
[2,"Gross Plant",null,"Line 1 * Line 21",null,{"$f":"ROUND(F15*G35,0)","v":12624115},{"$f":"ROUND(G15*G35,0)","v":3414764},{"$f":"IF(SUM(F16:G16)=G35,F16+G16,\"error\")","v":16038879}]
[3]
[4,null,null,null,null,"   To Sch. E-3.2, P. 2","   To Sch. E-3.2, P. 2"]
[5]
[6]
[7,"Demand / Customer %",null,"See note (a) below",null,{"$f":"F15","v":0.78709457999999999},{"$f":"G15","v":0.21290542000000001}]
[8,"Depreciation Reserve",null,"Line 7 * Line 26 ; note (b)",null,{"$f":"ROUND(F21*G40,0)","v":5776068},{"$f":"ROUND(G21*G40,0)","v":1562400},{"$f":"IF(SUM(F22:G22)=G40,F22+G22,\"error\")","v":7338468}]
[9]
[10,null,null,null,null,"   To Sch. E-3.2, P. 3","   To Sch. E-3.2, P. 3"]
[11]
[12]
[13,"Demand / Customer %",null,"See note (a) below",null,{"$f":"F15","v":0.78709457999999999},{"$f":"G15","v":0.21290542000000001}]
[14,"Maint Structures",null,"Line 13 * Line 27 ; note (c)",null,{"$f":"ROUND(F27*G41,0)","v":2257},{"$f":"ROUND(G27*G41,0)","v":611},{"$f":"IF(SUM(F28:G28)=G41,F28+G28,\"error\")","v":2868}]
[15]
[16,null,null,null,null,"   To Sch. E-3.2, P. 9","   To Sch. E-3.2, P. 9"]
[17]
[18]
[19,"(a)  Customer Percentage:",null,null,null,"Source:"]
[20,"        Customer portion of FERC 364 Secondary Poles",null,null,null,"WPE 3.2d, p. 14",{"$f":"'WP FR-16(7)(v) MinSizSecPole2'!F136","v":3414764.2775693927}]
[21,"         Total Gross Plant FERC 364 Secondary Poles",null,null,null,"Schedule B-2.1",{"$f":"ROUND(('[3]SCH B-2.1'!$I$405)*Secondarycm,0)","v":16038879},null,null,"Linked to Sch. B-2.1"]
[22,"         Customer Allocation %",null,null,null,null,{"$f":"G34/G35","v":0.21290542048290237}]
[23]
[24,"        Demand Allocation %",null,null,null,"(100% - Cust %)",{"$f":"1-G36","v":0.7870945795170976}]
[25]
[26,"(b)  Depreciation Reserve FERC 364 Secondary Poles",null,null,null,"Schedule B-3",{"$f":"ROUND(('[3]SCH B-3'!$K$430)*Secondarycm,0)","v":7338468},null,null,"Linked to Sch. B-3"]
[27,"(c)  Maint Structures - FERC 591 ",null,null,null,"Schedule C-2.1",{"$f":"ROUND(('[3]SCH_C2.1 - Forecasted Period'!$J$184)*Secondarycm,0)","v":2868},null,null,"Linked to Sch. C-2.1"]

{"sheet":"WP FR-16(7)(v) MinSizSecPole2","index":71,"n_rows":144,"n_cols":8,"rows_kept":144,"cut":false,"hidden":false,"merged":[]}
[{"$f":"co_name","v":"DUKE ENERGY KENTUCKY, INC."},null,null,null,null,null,null,{"$f":"'WP FR-16(7)(v)-KW & KWH @Gen'!$G$1","v":"Work Paper FR-16(7)(v) "}]
[{"$f":"coss_type","v":"ELECTRIC COST OF SERVICE STUDY "},null,null,null,null,null,null,{"$f":"'WP FR-16(7)(v)-KW & KWH @Gen'!$G$2","v":"Witness Responsible:"}]
[{"$f":"case_name","v":"CASE NO: 2019-00271"},null,null,null,null,null,null,{"$f":"PROPER(Witness)","v":"James E. Ziolkowski"}]
[{"$f":"alloc_factors","v":"ALLOCATION FACTORS FOR COST OF SERVICE STUDY"},null,null,null,null,null,null,"Page 59"]
[{"$f":"time_period","v":"TWELVE MONTHS ENDING DECEMBER 31, 2018"}]
["DISTRIBUTION SECONDARY POLE - MINIMUM SIZE STUDY - DEMAND/CUSTOMER ALLOCATION"]
[]
["Line"]
["No.",null,"MINIMUM SIZE STUDY - FERC 364 POLES"]
[1,null,{"$f":"'Minimum Size Summary'!D9","v":"35 ft, Class 5, Wood"},{"$f":"'Minimum Size Summary'!F9","v":582},"(a)"]
[2,null,"Cost Year",{"$f":"RIGHT(time_period,4)","v":"2018"}," "]
[3,null,"Handy Whitman at Cost Year",{"$f":"D135","v":666.5},"(b)"]
[4]
[5,"Year","Quantity (c)","Handy-Whitman Factor (d)","Cost in Year","Minimum Size Cost"]
[6,null,"(1)","(2)","(3)","(4)"]
[7,null,null,null,{"$f":"\"(Col(2) / \"&TEXT(D12,\"$###\")&\" * \"&TEXT(D10,\"$#,###\")","v":"(Col(2) / $667 * $582"},"(1) * (3)"]
[8]
[9,1915,0,28,{"$f":"D18/$D$12*$D$10","v":24.450112528132031},{"$f":"C18*E18","v":0}]
[10,1916,0,28,{"$f":"D19/$D$12*$D$10","v":24.450112528132031},{"$f":"C19*E19","v":0}]
[11,1917,0,28,{"$f":"D20/$D$12*$D$10","v":24.450112528132031},{"$f":"C20*E20","v":0}]
[12,1918,0,28,{"$f":"D21/$D$12*$D$10","v":24.450112528132031},{"$f":"C21*E21","v":0}]
[13,1919,0,28,24.450112528132031,0]
[14,1920,0,28,24.450112528132031,0]
[15,1921,0,28,24.450112528132031,0]
[16,1922,0,28,24.450112528132031,0]
[17,1923,0,28,24.450112528132031,0]
[18,1924,1,28,24.450112528132031,24.450112528132031]
[19,1925,3,28,24.450112528132031,73.350337584396101]
[20,1926,3,28,24.450112528132031,73.350337584396101]
[21,1927,5,27,23.576894223555886,117.88447111777943]
[22,1928,7,26,22.703675918979748,158.92573143285824]
[23,1929,6,25,21.830457614403599,130.98274568642159]
[24,1930,12,24,20.957239309827454,251.48687171792943]
[25,1931,31,23,20.084021005251316,622.60465116279079]
[26,1932,29,21,18.337584396099025,531.78994748687171]
[27,1933,49,22,19.21080270067517,941.32933233308336]
[28,1934,46,23,20.084021005251316,923.86496624156052]
[29,1935,40,24,20.957239309827454,838.28957239309818]
[30,1936,11,23,20.084021005251316,220.92423105776447]
[31,1937,37,24,20.957239309827454,775.41785446361575]
[32,1938,36,23,20.084021005251316,723.02475618904737]
[33,1939,21,23,20.084021005251316,421.76444111027763]
[34,1940,45,23,20.084021005251316,903.78094523630921]
[35,1941,30,24,20.957239309827454,628.71717929482361]
[36,1942,43,27,23.576894223555886,1013.8064516129031]
[37,1943,8,28,24.450112528132031,195.60090022505625]
[38,1944,19,33,28.81620405101275,547.50787696924226]
[39,1945,42,39,34.055513878469618,1430.3315828957241]
[40,1946,17,37,32.309077269317328,549.25431357839454]
[41,1947,27,41,35.801950487621909,966.65266316579152]
[42,1948,35,43,37.548387096774192,1314.1935483870968]
[43,1949,50,43,37.548387096774192,1877.4193548387095]
[44,1950,73,42,36.67516879219805,2677.2873218304576]
[45,1951,80,44,38.421605401350341,3073.7284321080274]
[46,1952,102,46,40.168042010502631,4097.1402850712684]
[47,1953,99,49,42.787696924231057,4235.9819954988743]
[48,1954,112,51,44.534133533383347,4987.822955738935]
[49,1955,139,51,44.534133533383347,6190.2445611402854]
[50,1956,128,55,48.027006751687921,6147.4568642160539]
[51,1957,145,59,51.519879969992502,7470.3825956489127]
[52,1958,141,60,52.393098274568636,7387.426856714178]
[53,1959,134,57,49.773443360840211,6669.6414103525885]
[54,1960,102,57,49.773443360840211,5076.8912228057015]
[55,1961,154,56,48.900225056264063,7530.6346586646659]
[56,1962,95,56,48.900225056264063,4645.5213803450861]
[57,1963,83,56,48.900225056264063,4058.718679669917]
[58,1964,167,56,48.900225056264063,8166.3375843960985]
[59,1965,167,56,48.900225056264063,8166.3375843960985]
[60,1966,133,58,50.646661665416353,6736.0060015003746]
[61,1967,145,61,53.266316579144785,7723.6159039759941]
[62,1968,185,62,54.139534883720927,10015.813953488372]
[63,1969,173,66,57.632408102025501,9970.4066016504112]
[64,1970,193,69,60.25206301575394,11628.64816204051]
[65,1971,176,73,63.744936234058514,11219.108777194298]
[66,1972,206,77,67.237809452363095,13850.988747186797]
[]
[]
[{"$f":"co_name","v":"DUKE ENERGY KENTUCKY, INC."},null,null,null,null,null,null,{"$f":"'WP FR-16(7)(v)-KW & KWH @Gen'!$G$1","v":"Work Paper FR-16(7)(v) "}]
[{"$f":"coss_type","v":"ELECTRIC COST OF SERVICE STUDY "},null,null,null,null,null,null,{"$f":"'WP FR-16(7)(v)-KW & KWH @Gen'!$G$2","v":"Witness Responsible:"}]
[{"$f":"case_name","v":"CASE NO: 2019-00271"},null,null,null,null,null,null,{"$f":"PROPER(Witness)","v":"James E. Ziolkowski"}]
[{"$f":"alloc_factors","v":"ALLOCATION FACTORS FOR COST OF SERVICE STUDY"},null,null,null,null,null,null,"Page 60"]
[{"$f":"time_period","v":"TWELVE MONTHS ENDING DECEMBER 31, 2018"}]
["DISTRIBUTION SECONDARY POLE - MINIMUM SIZE STUDY - DEMAND/CUSTOMER ALLOCATION"]
[]
["Line"]
["No.","Year","Quantity (c)","Handy-Whitman Factor (d)","Cost in Year","Minimum Size Cost"]
[null,null,"(1)","(2)","(3)","(4)"]
[null,null,null,null,{"$f":"\"(Col(2) / \"&TEXT($D$12,\"$###\")&\" * \"&TEXT($D$10,\"$#,###\")","v":"(Col(2) / $667 * $582"},"(1) * (3)"]
[]
[67,1973,211,100,87.321830457614396,18424.906226556639]
[68,1974,150,150,130.98274568642159,{"$f":"C91*E91","v":19647.41185296324}]
[69,1975,119,205,179.00975243810953,{"$f":"C92*E92","v":21302.160540135035}]
[70,1976,134,192,167.65791447861963,{"$f":"C93*E93","v":22466.160540135032}]
[71,1977,176,190,165.91147786946738,{"$f":"C94*E94","v":29200.420105026256}]
[72,1978,157,206,179.88297074268567,{"$f":"C94*E95","v":31659.402850712679}]
[73,1979,180,234,204.3330832708177,{"$f":"C95*E96","v":32080.294073518377}]
[74,1980,254,265,231.40285071267817,{"$f":"C97*E97","v":58776.324081020255}]
[75,1981,173,289,252.36009002250563,43658.295573893476]
[76,1982,137,291,{"$f":"D99/$D$12*$D$10","v":254.10652663165791},34812.594148537137]
[77,1983,159,280,244.50112528132033,38875.678919729929]
[78,1984,127,276,241.00825206301576,30608.048012003001]
[79,1985,135,283,247.12078019504875,33361.305326331581]
[80,1986,159,289,252.36009002250563,40125.254313578393]
[81,1987,208,284,247.99399849962492,51582.751687921984]
[82,1988,146,289,252.36009002250563,36844.573143285823]
[83,1989,231,300,261.96549137284319,60514.028507126779]
[84,1990,153,310,270.69767441860466,41416.744186046511]
[85,1991,218,323,282.04951237809451,61486.793698424604]
[86,1992,217,332,289.90847711927984,62910.139534883725]
[87,1993,211,367,320.47111777944491,67619.40585146287]
[88,1994,236,416,363.25881470367597,85729.080270067527]
[89,1995,183,445,388.58214553638413,71110.532633158291]
[90,1996,130,463,404.30007501875474,52559.009752438113]
[91,1997,113,473,413.03225806451616,46672.645161290326]
[92,1998,122,471,411.28582145536382,50176.870217554388]
[93,1999,153,473,413.03225806451616,63193.93548387097]
[94,2000,157,471,411.28582145536382,64571.873968492117,"January","July"]
[95,2001,120,{"$f":"(G118+H118)/2","v":483.5},422.20105026256567,50664.126031507883,474,493]
[96,2002,26,502,438.35558889722432,11397.245311327832,496,508]
[97,2003,59,513,447.96099024756188,26429.698424606151,508,518]
[98,2004,185,527.5,460.62265566391596,85215.191297824451,514,541]
[99,2005,205,547.5,478.08702175543891,98007.839459864976,541,554]
[100,2006,246,581.5,507.77644411102773,124913.00525131282,562,601]
[101,2007,289,602,525.67741935483866,151920.77419354836,600,604]
[102,2008,-222,627,547.50787696924237,-121546.74868717181,611,643]
[103,2009,151,659,575.45086271567891,86893.080270067512,653,665]
[104,2010,97,679,592.91522880720186,57512.777194298578,672,686]
[105,2011,55,671,585.92948237059261,32226.121530382592,664,678]
[106,2012,170,692,604.26706676669164,102725.40135033758,687,697]
[107,2013,164,700,611.25281320330089,100245.46136534134,700,700]
[108,2014,111,675,589.42235558889718,65425.881470367589,675,675]
[109,2015,248,664,579.81695423855967,143794.60465116281,670,658]
[110,2016,204,{"$f":"(G133+H133)/2","v":677},{"$f":"D133/$D$12*$D$10","v":591.16879219804957},{"$f":"C133*E133","v":120598.43360840212},676,678]
[111,2017,763,{"$f":"(G134+H134)/2","v":700},{"$f":"D134/$D$12*$D$10","v":611.25281320330089},{"$f":"C134*E134","v":466385.89647411858},670,730]
[112,2018,623,666.5,{"$f":"D135/$D$12*$D$10","v":582},{"$f":"C135*E135","v":362586},665,668]
[113,null,{"$f":"SUM(C18:C135)","v":12028},null,null,{"$f":"SUM(F18:F135)","v":3414764.2775693927},"Customer Component of FERC 364 Secondary Poles"]
[]
[null,null,null,null,null,"to WPE-3.2d, pg 13"]
[]
[null,"(a)","Fully loaded installed cost of 35 ft., class 5, wood pole.  Source:  Engineering Standards."]
[null,"(b)",{"$f":"\"Handy Whitman Index for Utility Plant Materials/Treated Pine Poles. \"&TEXT(D132,\"$###\")&\" is Handy Whitman at Cost Year \"&RIGHT(time_period,4)&\".\"","v":"Handy Whitman Index for Utility Plant Materials/Treated Pine Poles. $664 is Handy Whitman at Cost Year 2018."}]
[null,"(c)","Asset Accounting.  Includes all Distribution Secondary wood poles."]
[null,"(d)","Handy Whitman Index for Utility Plant Materials/Treated Pine Poles. "]
[null,null,"Handy Whitman Index unavailable for years 1915 and 1925 so used the index for 1926 for those years."]

{"sheet":"WP FR-16(7)(v) MinSizOHPRIM1","index":72,"n_rows":41,"n_cols":10,"rows_kept":41,"cut":false,"hidden":false,"merged":[]}
[{"$f":"co_name","v":"DUKE ENERGY KENTUCKY, INC."},null,null,null,null,null,null,{"$f":"'WP FR-16(7)(v)-KW & KWH @Gen'!$G$1","v":"Work Paper FR-16(7)(v) "}]
[{"$f":"coss_type","v":"ELECTRIC COST OF SERVICE STUDY "},null,null,null,null,null,null,{"$f":"'WP FR-16(7)(v)-KW & KWH @Gen'!$G$2","v":"Witness Responsible:"}]
[{"$f":"case_name","v":"CASE NO: 2019-00271"},null,null,null,null,null,null,{"$f":"PROPER(Witness)","v":"James E. Ziolkowski"}]
[{"$f":"alloc_factors","v":"ALLOCATION FACTORS FOR COST OF SERVICE STUDY"},null,null,null,null,null,null,"Page 61"]
[{"$f":"time_period","v":"TWELVE MONTHS ENDING DECEMBER 31, 2018"}]
["OVERHEAD LINES / PRIMARY - MINIMUM SIZE STUDY - DEMAND/CUSTOMER ALLOCATION"]
[]
[]
[]
["Line"]
["No.","Overhead Lines - Primary",null,"Source",null,"Demand Alloc","Customer Alloc","TOTAL"]
[null,"(1)",null,"(2)",null,"(3)","(4)","(5)"]
[null,null,null,null,null,null,null,"(3) + (4)"]
[]
[1,"Demand / Customer %",null,"See note (a) below",null,{"$f":"ROUND($G$38,9)","v":0.82076538300000002},{"$f":"ROUND($G$36,9)","v":0.17923461700000001}]
[2,"Gross Plant",null,"Line 1 * Line 21",null,{"$f":"ROUND(F15*G35,0)","v":75222822},{"$f":"ROUND(G15*G35,0)","v":16426781},{"$f":"IF(SUM(F16:G16)=G35,F16+G16,\"error\")","v":91649603}]
[3]
[4,null,null,null,null,"   To Sch. E-3.2, P. 2","   To Sch. E-3.2, P. 2"]
[5]
[6]
[7,"Demand / Customer %",null,"See note (a) below",null,{"$f":"F15","v":0.82076538300000002},{"$f":"G15","v":0.17923461700000001}]
[8,"Depreciation Reserve",null,"Line 7 * Line 26 ; note (b)",null,{"$f":"ROUND(F21*G40,0)","v":22430547},{"$f":"ROUND(G21*G40,0)","v":4898270},{"$f":"IF(SUM(F22:G22)=G40,F22+G22,\"error\")","v":27328817}]
[9]
[10,null,null,null,null,"   To Sch. E-3.2, P. 3","   To Sch. E-3.2, P. 3"]
[11]
[12]
[13,"Demand / Customer %",null,"See note (a) below",null,{"$f":"F15","v":0.82076538300000002},{"$f":"G15","v":0.17923461700000001}]
[14,"O&M Overhead Lines",null,"Line 13 * Line 27 ; note (c)",null,{"$f":"ROUND(F27*G41,0)","v":5171363},{"$f":"ROUND(G27*G41,0)","v":1129296},{"$f":"IF(SUM(F28:G28)=G41,F28+G28,\"error\")","v":6300659}]
[15]
[16,null,null,null,null,"   To Sch. E-3.2, P. 9","   To Sch. E-3.2, P. 9"]
[17]
[18]
[19,"(a)  Customer Percentage:",null,null,null,"Source:"]
[20,"        Customer portion of FERC 365 Overhead Lines / Primary",null,null,null,"WPE 3.2d, p. 16",{"$f":"'WP FR-16(7)(v) MinSizeOHPRIM2'!F126","v":16426781.466582596}]
[21,"         Total Gross Plant FERC 365 Overhead Lines / Primary",null,null,null,"Schedule B-2.1",{"$f":"ROUND(('[3]SCH B-2.1'!$I$406+'[3]SCH B-2.1'!$I$407)*OHPRIM,0)","v":91649603},null,null,"Linked to Sch. B-2.1"]
[22,"         Customer Allocation %",null,null,null,null,{"$f":"G34/G35","v":0.17923461672368179}]
[23]
[24,"        Demand Allocation %",null,null,null,"(100% - Cust %)",{"$f":"1-G36","v":0.82076538327631821}]
[25]
[26,"(b)  Depreciation Reserve FERC 365 Overhead Lines / Primary",null,null,null,"Schedule B-3",{"$f":"ROUND(('[3]SCH B-3'!$K$431+'[3]SCH B-3'!$K$432)*OHPRIM,0)","v":27328817},null,null,"Linked to Sch. B-3"]
[27,"(c)  Overhead Lines - FERC 583 & 593 ",null,null,null,"Schedule C-2.1",{"$f":"ROUND(('[3]SCH_C2.1 - Forecasted Period'!$J$172+'[3]SCH_C2.1 - Forecasted Period'!$J$186)*OHPRIM,0)","v":6300659},null,null,"Linked to Sch. C-2.1"]

{"sheet":"WP FR-16(7)(v) MinSizeOHPRIM2","index":73,"n_rows":133,"n_cols":8,"rows_kept":133,"cut":false,"hidden":false,"merged":[]}
[{"$f":"co_name","v":"DUKE ENERGY KENTUCKY, INC."},null,null,null,null,null,null,{"$f":"'WP FR-16(7)(v)-KW & KWH @Gen'!$G$1","v":"Work Paper FR-16(7)(v) "}]
[{"$f":"coss_type","v":"ELECTRIC COST OF SERVICE STUDY "},null,null,null,null,null,null,{"$f":"'WP FR-16(7)(v)-KW & KWH @Gen'!$G$2","v":"Witness Responsible:"}]
[{"$f":"case_name","v":"CASE NO: 2019-00271"},null,null,null,null,null,null,{"$f":"PROPER(Witness)","v":"James E. Ziolkowski"}]
[{"$f":"alloc_factors","v":"ALLOCATION FACTORS FOR COST OF SERVICE STUDY"},null,null,null,null,null,null,"Page 62"]
[{"$f":"time_period","v":"TWELVE MONTHS ENDING DECEMBER 31, 2018"}]
["OVERHEAD LINES / PRIMARY - MINIMUM SIZE STUDY - DEMAND/CUSTOMER ALLOCATION"]
[]
["Line"]
["No.",null,"MINIMUM SIZE STUDY - FERC 365 OVERHEAD LINES / PRIMARY"]
[1,null,{"$f":"'Minimum Size Summary'!D12","v":"1/0 ACSR Primary OH Conductor"},{"$f":"'Minimum Size Summary'!F12","v":12267},"(a)"]
[2,null,"Cost Year",{"$f":"RIGHT(time_period,4)","v":"2018"}," "]
[3,null,"Handy Whitman at Cost Year",{"$f":"D125","v":793},"(b)"]
[4]
[5,"Year","Quantity (c)","Handy-Whitman Factor (d)","Cost in Year","Minimum Size Cost"]
[6,null,"(1)","(2)","(3)","(4)"]
[7,null,null,null,{"$f":"\"(Col(2) / \"&TEXT($D$12,\"$###\")&\" * \"&TEXT($D$10,\"$#,###\")","v":"(Col(2) / $793 * $12,267"},"(1) * (3)"]
[8]
[9,1925,251,29,{"$f":"D18/$D$12*$D$10","v":448.60403530895331},{"$f":"C18*E18","v":112599.61286254728}]
[10,1926,0,26,402.19672131147541,0]
[11,1927,0,24,371.25851197982348,0]
[12,1928,0,28,433.1349306431274,0]
[13,1929,0,34,525.9495586380832,0]
[14,1930,0,23,355.78940731399746,0]
[15,1931,0,19,293.91298865069353,0]
[16,1932,1,17,262.9747793190416,262.9747793190416]
[17,1933,0,20,309.38209331651956,{"$f":"C26*E26","v":0}]
[18,1934,0,25,386.72761664564945,0]
[19,1935,0,24,371.25851197982348,0]
[20,1936,0,26,402.19672131147541,0]
[21,1937,0,28,433.1349306431274,0]
[22,1938,30,24,371.25851197982348,11137.755359394705]
[23,1939,12,24,371.25851197982348,4455.102143757882]
[24,1940,1,26,402.19672131147541,402.19672131147541]
[25,1941,16,25,386.72761664564945,6187.6418663303912]
[26,1942,8,27,417.66582597730144,3341.3266078184115]
[27,1943,6,28,433.1349306431274,2598.8095838587642]
[28,1944,2,28,433.1349306431274,866.26986128625481]
[29,1945,6,28,433.1349306431274,2598.8095838587642]
[30,1946,5,35,541.41866330390928,2707.0933165195465]
[31,1947,20,43,665.17150063051702,13303.430012610341]
[32,1948,13,46,711.57881462799492,9250.5245901639337]
[33,1949,21,43,665.17150063051702,13968.601513240857]
[34,1950,40,46,711.57881462799492,28463.152585119795]
[35,1951,40,52,804.39344262295083,32175.737704918032]
[36,1952,50,56,866.26986128625481,43313.493064312737]
[37,1953,33,61,943.61538461538464,31139.307692307691]
[38,1954,55,59,912.67717528373271,50197.244640605299]
[39,1955,54,67,1036.4300126103403,55967.22068095838]
[40,1956,46,72,1113.7755359394705,51233.674653215639]
[41,1957,48,63,974.55359394703669,46778.572509457765]
[42,1958,56,58,897.20807061790663,50243.65195460277]
[43,1959,45,63,974.55359394703669,43854.911727616651]
[44,1960,47,64,990.02269861286254,46531.066834804536]
[45,1961,77,62,959.08448928121061,73849.505674653221]
[46,1962,84,62,959.08448928121061,80563.097099621693]
[47,1963,92,62,959.08448928121061,88235.773013871381]
[48,1964,117,64,990.02269861286254,115832.65573770492]
[49,1965,104,71,1098.3064312736444,114223.86885245903]
[50,1966,95,75,1160.1828499369483,110217.37074401008]
[51,1967,78,78,1206.5901639344263,94114.032786885247]
[52,1968,84,75,1160.1828499369483,97455.359394703657]
[53,1969,79,84,1299.4047919293821,102652.97856242118]
[54,1970,105,97,1500.5031525851198,157552.83102143757]
[55,1971,95,107,1655.1941992433797,157243.44892812107]
[56,1972,90,102,1577.8486759142495,142006.38083228245]
[57,1973,141,100,1546.9104665825978,218114.37578814628]
[58,1974,115,121,1871.7616645649432,215252.59142496847]
[59,1975,74,166,2567.871374527112,190022.48171500629]
[60,1976,61,203,3140.2282471626736,191553.92307692309]
[61,1977,53,220,3403.2030264817149,180369.76040353091]
[62,1978,47,192,2970.0680958385879,{"$f":"C70*E71","v":157413.60907944516}]
[63,1979,84,210,3248.511979823455,{"$f":"C71*E72","v":152680.0630517024}]
[]
[]
[{"$f":"co_name","v":"DUKE ENERGY KENTUCKY, INC."},null,null,null,null,null,null,{"$f":"'WP FR-16(7)(v)-KW & KWH @Gen'!$G$1","v":"Work Paper FR-16(7)(v) "}]
[{"$f":"coss_type","v":"ELECTRIC COST OF SERVICE STUDY "},null,null,null,null,null,null,{"$f":"'WP FR-16(7)(v)-KW & KWH @Gen'!$G$2","v":"Witness Responsible:"}]
[{"$f":"case_name","v":"CASE NO: 2019-00271"},null,null,null,null,null,null,{"$f":"PROPER(Witness)","v":"James E. Ziolkowski"}]
[{"$f":"alloc_factors","v":"ALLOCATION FACTORS FOR COST OF SERVICE STUDY"},null,null,null,null,null,null,"Page 63"]
[{"$f":"time_period","v":"TWELVE MONTHS ENDING DECEMBER 31, 2018"}]
["OVERHEAD LINES / PRIMARY - MINIMUM SIZE STUDY - DEMAND/CUSTOMER ALLOCATION"]
[]
["Line"]
["No.","Year","Quantity (c)","Handy-Whitman Factor (d)","Cost in Year","Minimum Size Cost"]
[null,null,"(1)","(2)","(3)","(4)"]
[null,null,null,null,{"$f":"\"(Col(2) / \"&TEXT($D$12,\"$###\")&\" * \"&TEXT($D$10,\"$#,###\")","v":"(Col(2) / $793 * $12,267"},"(1) * (3)"]
[]
[64,1980,80,246,3805.3997477931903,{"$f":"C87*E87","v":304431.97982345521}]
[65,1981,43,257,3975.559899117276,170949.07566204286]
[66,1982,39,252,3898.2143757881468,152030.36065573772]
[67,1983,67,266,4114.7818411097105,275690.38335435058]
[68,1984,41,259,4006.4981084489282,164266.42244640607]
[69,1985,41,249,3851.8070617906678,157924.08953341737]
[70,1986,54,244,3774.4615384615386,203820.92307692309]
[71,1987,65,229,3542.4249684741485,230257.62295081964]
[72,1988,43,349,5398.7175283732658,232144.85372005042]
[73,1989,74,366,{"$f":"D96/$D$12*$D$10","v":5661.6923076923076},418965.23076923075]
[74,1990,53,354,5476.0630517023956,290231.34174022696]
[75,1991,80,363,5615.2849936948296,449222.79949558637]
[76,1992,63,366,5661.6923076923076,356686.61538461538]
[77,1993,59,322,4981.0517023959646,293882.05044136191]
[78,1994,105,341,5274.9646910466581,553871.29255989916]
[79,1995,56,386,5971.0744010088274,334380.16645649436]
[80,1996,32,386,5971.0744010088274,191074.38083228248]
[81,1997,29,387,5986.5435056746528,173609.76166456493]
[82,1998,41,399,6172.1727616645649,253059.08322824715]
[83,1999,52,345,5336.8411097099624,277515.73770491802]
[84,2000,28,381,5893.7288776796977,165024.40857503153,"January","July"]
[85,2001,25,{"$f":"(G108+H108)/2","v":401.5},6210.8455233291297,155271.13808322823,398,405]
[86,2002,18,393.5,6087.092686002522,109567.66834804539,405,382]
[87,2003,20,384.5,5947.8707440100889,118957.41488020177,384,385]
[88,2004,31,419,6481.5548549810846,200928.20050441363,395,443]
[89,2005,34,491,7595.3303909205551,258241.23329129888,467,515]
[90,2006,64,624,9652.7213114754104,617774.16393442627,600,648]
[91,2007,49,703.5,10882.515132408576,533243.24148802029,692,715]
[92,2008,-30,845.5,13079.127994955863,-392373.83984867588,793,898]
[93,2009,16,718.5,11114.551702395966,177832.82723833545,898,539]
[94,2010,11,671.5,10387.503783102144,114262.54161412358,661,682]
[95,2011,13,722,11168.693568726356,145193.01639344264,672,772]
[96,2012,38,651.5,10078.121689785623,382968.62421185366,647,656]
[97,2013,21,698,10797.435056746532,226746.13619167716,686,710]
[98,2014,6,725.5,11222.835435056748,67337.012610340491,716,735]
[99,2015,43,748.5,11578.624842370744,497880.86822194199,747,750]
[100,2016,36,768,{"$f":"D123/$D$12*$D$10","v":11880.272383354351},{"$f":"C123*E123","v":427689.80580075667},768,768]
[101,2017,135,743,11493.544766708701,1551628.5435056747,741,745]
[102,2018,186,793,12267,2281662,785,801]
[103,null,{"$f":"SUM(C18:C125)","v":4442},null,null,{"$f":"SUM(F18:F125)","v":16426781.466582596},"Customer Component of FERC 365 Overhead Lines / Primary"]
[]
[null,null,null,null,null,"to WPE-3.2d, pg 15"]
[]
[null,"(a)","Fully loaded installed cost of 1/0 Aluminum Conductor Steel Reinforced.  Source:  Engineering Standards."]
[null,"(b)",{"$f":"\"Handy Whitman Index for Utility Plant Materials/Overhead Conductor - Distribution. \"&TEXT(D122,\"$###\")&\" is Handy Whitman at Cost Year \"&RIGHT(time_period,4)&\".\"","v":"Handy Whitman Index for Utility Plant Materials/Overhead Conductor - Distribution. $749 is Handy Whitman at Cost Year 2018."}]
[null,"(c)","Asset Accounting.  Includes Overhead Lines Allocated to Primary based on Circuit Miles."]
[null,"(d)","Handy Whitman Index for Utility Plant Materials/Overhead Conductor - Distribution. "]

{"sheet":"WP FR-16(7)(v) MinSizOHSEC1","index":74,"n_rows":41,"n_cols":10,"rows_kept":41,"cut":false,"hidden":false,"merged":[]}
[{"$f":"co_name","v":"DUKE ENERGY KENTUCKY, INC."},null,null,null,null,null,null,{"$f":"'WP FR-16(7)(v)-KW & KWH @Gen'!$G$1","v":"Work Paper FR-16(7)(v) "}]
[{"$f":"coss_type","v":"ELECTRIC COST OF SERVICE STUDY "},null,null,null,null,null,null,{"$f":"'WP FR-16(7)(v)-KW & KWH @Gen'!$G$2","v":"Witness Responsible:"}]
[{"$f":"case_name","v":"CASE NO: 2019-00271"},null,null,null,null,null,null,{"$f":"PROPER(Witness)","v":"James E. Ziolkowski"}]
[{"$f":"alloc_factors","v":"ALLOCATION FACTORS FOR COST OF SERVICE STUDY"},null,null,null,null,null,null,"Page 64"]
[{"$f":"time_period","v":"TWELVE MONTHS ENDING DECEMBER 31, 2018"}]
["OVERHEAD LINES / SECONDARY - MINIMUM SIZE STUDY - DEMAND/CUSTOMER ALLOCATION"]
[]
[]
[]
["Line"]
["No.","Overhead Lines - Secondary",null,"Source",null,"Demand Alloc","Customer Alloc","TOTAL"]
[null,"(1)",null,"(2)",null,"(3)","(4)","(5)"]
[null,null,null,null,null,null,null,"(3) + (4)"]
[]
[1,"Demand / Customer %",null,"See note (a) below",null,{"$f":"ROUND($G$38,9)","v":0.81822861899999999},{"$f":"ROUND($G$36,9)","v":0.18177138100000001}]
[2,"Gross Plant",null,"Line 1 * Line 21",null,{"$f":"ROUND(F15*G35,0)","v":30629852},{"$f":"ROUND(G15*G35,0)","v":6804493},{"$f":"IF(SUM(F16:G16)=G35,F16+G16,\"error\")","v":37434345}]
[3]
[4,null,null,null,null,"   To Sch. E-3.2, P. 2","   To Sch. E-3.2, P. 2"]
[5]
[6]
[7,"Demand / Customer %",null,"See note (a) below",null,{"$f":"F15","v":0.81822861899999999},{"$f":"G15","v":0.18177138100000001}]
[8,"Depreciation Reserve",null,"Line 7 * Line 26 ; note (b)",null,{"$f":"ROUND(F21*G40,0)","v":9133457},{"$f":"ROUND(G21*G40,0)","v":2029018},{"$f":"IF(SUM(F22:G22)=G40,F22+G22,\"error\")","v":11162475}]
[9]
[10,null,null,null,null,"   To Sch. E-3.2, P. 3","   To Sch. E-3.2, P. 3"]
[11]
[12]
[13,"Demand / Customer %",null,"See note (a) below",null,{"$f":"F15","v":0.81822861899999999},{"$f":"G15","v":0.18177138100000001}]
[14,"O&M Overhead Lines",null,"Line 13 * Line 27 ; note (c)",null,{"$f":"ROUND(F27*G41,0)","v":2105718},{"$f":"ROUND(G27*G41,0)","v":467790},{"$f":"IF(SUM(F28:G28)=G41,F28+G28,\"error\")","v":2573508}]
[15]
[16,null,null,null,null,"   To Sch. E-3.2, P. 9","   To Sch. E-3.2, P. 9"]
[17]
[18]
[19,"(a)  Customer Percentage:",null,null,null,"Source:"]
[20,"        Customer portion of FERC 365 Overhead Lines / Secondary",null,null,null,"WPE 3.2d, p. 18",{"$f":"'WP FR-16(7)(v) MinSizOHSEC2'!F126","v":6804492.5958385887}]
[21,"         Total Gross Plant FERC 365 Overhead Lines / Secondary",null,null,null,"Schedule B-2.1",{"$f":"ROUND(('[3]SCH B-2.1'!$I$406+'[3]SCH B-2.1'!$I$407)*OHSEC,0)","v":37434345},null,null,"Linked to Sch. B-2.1"]
[22,"         Customer Allocation %",null,null,null,null,{"$f":"G34/G35","v":0.18177138122327474}]
[23]
[24,"        Demand Allocation %",null,null,null,"(100% - Cust %)",{"$f":"1-G36","v":0.81822861877672526}]
[25]
[26,"(b)  Depreciation Reserve FERC 365 Overhead Lines / Secondary",null,null,null,"Schedule B-3",{"$f":"ROUND(('[3]SCH B-3'!$K$431+'[3]SCH B-3'!$K$432)*OHSEC,0)","v":11162475},null,null,"Linked to Sch. B-3"]
[27,"(c)  Overhead Lines - FERC 583 & 593 ",null,null,null,"Schedule C-2.1",{"$f":"ROUND(('[3]SCH_C2.1 - Forecasted Period'!$J$172+'[3]SCH_C2.1 - Forecasted Period'!$J$186)*OHSEC,0)","v":2573508},null,null,"Linked to Sch. C-2.1"]

{"sheet":"WP FR-16(7)(v) MinSizOHSEC2","index":75,"n_rows":133,"n_cols":8,"rows_kept":133,"cut":false,"hidden":false,"merged":[]}
[{"$f":"co_name","v":"DUKE ENERGY KENTUCKY, INC."},null,null,null,null,null,null,{"$f":"'WP FR-16(7)(v)-KW & KWH @Gen'!$G$1","v":"Work Paper FR-16(7)(v) "}]
[{"$f":"coss_type","v":"ELECTRIC COST OF SERVICE STUDY "},null,null,null,null,null,null,{"$f":"'WP FR-16(7)(v)-KW & KWH @Gen'!$G$2","v":"Witness Responsible:"}]
[{"$f":"case_name","v":"CASE NO: 2019-00271"},null,null,null,null,null,null,{"$f":"PROPER(Witness)","v":"James E. Ziolkowski"}]
[{"$f":"alloc_factors","v":"ALLOCATION FACTORS FOR COST OF SERVICE STUDY"},null,null,null,null,null,null,"Page 65"]
[{"$f":"time_period","v":"TWELVE MONTHS ENDING DECEMBER 31, 2018"}]
["OVERHEAD LINES / SECONDARY - MINIMUM SIZE STUDY - DEMAND/CUSTOMER ALLOCATION"]
[]
["Line"]
["No.",null,"MINIMUM SIZE STUDY - FERC 365 OVERHEAD LINES / SECONDARY"]
[1,null,{"$f":"'Minimum Size Summary'!D13","v":"#2 ALTX Secondary OH Conductor"},{"$f":"'Minimum Size Summary'!F13","v":14429},"(a)"]
[2,null,"Cost Year",{"$f":"RIGHT(time_period,4)","v":"2018"}," "]
[3,null,"Handy Whitman at Cost Year",{"$f":"D125","v":793},"(b)"]
[4]
[5,"Year","Quantity (c)","Handy-Whitman Factor (d)","Cost in Year","Minimum Size Cost"]
[6,null,"(1)","(2)","(3)","(4)"]
[7,null,null,null,{"$f":"\"(Col(2) / \"&TEXT($D$12,\"$###\")&\" * \"&TEXT($D$10,\"$#,###\")","v":"(Col(2) / $793 * $14,429"},"(1) * (3)"]
[8]
[9,1925,88,29,{"$f":"D18/$D$12*$D$10","v":527.66834804539724},{"$f":"C18*E18","v":46434.814627994958}]
[10,1926,0,26,473.08196721311475,0]
[11,1927,0,24,436.69104665825978,0]
[12,1928,0,28,509.47288776796978,0]
[13,1929,0,34,618.6456494325347,0]
[14,1930,0,23,418.49558638083226,0]
[15,1931,0,19,345.71374527112232,0]
[16,1932,0,17,309.32282471626735,0]
[17,1933,0,20,363.90920554854983,0]
[18,1934,0,25,454.88650693568729,0]
[19,1935,0,24,436.69104665825978,0]
[20,1936,0,26,473.08196721311475,0]
[21,1937,0,28,509.47288776796978,0]
[22,1938,11,24,436.69104665825978,4803.6015132408575]
[23,1939,4,24,436.69104665825978,1746.7641866330391]
[24,1940,0,26,473.08196721311475,0]
[25,1941,5,25,454.88650693568729,2274.4325346784362]
[26,1942,3,27,491.27742749054227,1473.8322824716267]
[27,1943,2,28,509.47288776796978,1018.9457755359396]
[28,1944,1,28,509.47288776796978,509.47288776796978]
[29,1945,2,28,509.47288776796978,1018.9457755359396]
[30,1946,2,35,636.84110970996221,1273.6822194199244]
[31,1947,7,43,782.4047919293821,5476.8335435056742]
[32,1948,5,46,836.99117276166453,4184.9558638083226]
[33,1949,7,43,782.4047919293821,5476.8335435056742]
[34,1950,14,46,836.99117276166453,11717.876418663303]
[35,1951,14,52,946.1639344262295,13246.295081967213]
[36,1952,18,56,1018.9457755359396,18341.023959646911]
[37,1953,12,61,1109.9230769230769,13319.076923076922]
[38,1954,19,59,1073.5321563682219,20397.110970996215]
[39,1955,19,67,1219.0958385876418,23162.820933165192]
[40,1956,16,72,1310.0731399747795,20961.170239596471]
[41,1957,17,63,1146.3139974779319,19487.337957124844]
[42,1958,20,58,1055.3366960907945,21106.733921815889]
[43,1959,16,63,1146.3139974779319,18341.023959646911]
[44,1960,16,64,1164.5094577553593,18632.151324085749]
[45,1961,27,62,1128.1185372005043,30459.200504413617]
[46,1962,29,62,1128.1185372005043,32715.437578814624]
[47,1963,32,62,1128.1185372005043,36099.793190416138]
[48,1964,41,64,1164.5094577553593,47744.887767969733]
[49,1965,37,71,1291.8776796973518,47799.474148802015]
[50,1966,33,75,1364.6595208070619,45033.764186633045]
[51,1967,27,78,1419.2459016393443,38319.639344262294]
[52,1968,30,75,1364.6595208070619,40939.785624211858]
[53,1969,28,84,1528.4186633039092,42795.722572509454]
[54,1970,37,97,1764.9596469104665,65303.506935687263]
[55,1971,33,107,1946.9142496847414,64248.170239596468]
[56,1972,31,102,1855.936948297604,57534.045397225724]
[57,1973,50,100,1819.5460277427492,90977.301387137457]
[58,1974,40,121,2201.6506935687262,{"$f":"C67*E67","v":88066.027742749051}]
[59,1975,26,166,3020.4464060529631,{"$f":"C68*E68","v":78531.606557377047}]
[60,1976,22,203,3693.6784363177808,{"$f":"C69*E69","v":81260.925598991176}]
[61,1977,18,220,4003.0012610340477,{"$f":"C70*E70","v":72054.022698612855}]
[62,1978,17,192,3493.5283732660782,{"$f":"C70*E71","v":62883.51071878941}]
[63,1979,30,210,3821.0466582597728,{"$f":"C71*E72","v":64957.793190416138}]
[]
[]
[{"$f":"co_name","v":"DUKE ENERGY KENTUCKY, INC."},null,null,null,null,null,null,{"$f":"'WP FR-16(7)(v)-KW & KWH @Gen'!$G$1","v":"Work Paper FR-16(7)(v) "}]
[{"$f":"coss_type","v":"ELECTRIC COST OF SERVICE STUDY "},null,null,null,null,null,null,{"$f":"'WP FR-16(7)(v)-KW & KWH @Gen'!$G$2","v":"Witness Responsible:"}]
[{"$f":"case_name","v":"CASE NO: 2019-00271"},null,null,null,null,null,null,{"$f":"PROPER(Witness)","v":"James E. Ziolkowski"}]
[{"$f":"alloc_factors","v":"ALLOCATION FACTORS FOR COST OF SERVICE STUDY"},null,null,null,null,null,null,"Page 66"]
[{"$f":"time_period","v":"TWELVE MONTHS ENDING DECEMBER 31, 2018"}]
["OVERHEAD LINES / SECONDARY - MINIMUM SIZE STUDY - DEMAND/CUSTOMER ALLOCATION"]
[]
["Line"]
["No.","Year","Quantity (c)","Handy-Whitman Factor (d)","Cost in Year","Minimum Size Cost"]
[null,null,"(1)","(2)","(3)","(4)"]
[null,null,null,null,{"$f":"\"(Col(2) / \"&TEXT($D$12,\"$###\")&\" * \"&TEXT($D$10,\"$#,###\")","v":"(Col(2) / $793 * $14,429"},"(1) * (3)"]
[]
[64,1980,28,246,4476.083228247162,{"$f":"C87*E87","v":125330.33039092054}]
[65,1981,15,257,4676.233291298865,70143.499369482975]
[66,1982,14,252,4585.2559899117277,64193.583858764192]
[67,1983,23,266,4839.9924337957127,111319.8259773014]
[68,1984,15,259,4712.6242118537202,70689.363177805804]
[69,1985,14,249,4530.6696090794449,63429.374527112232]
[70,1986,19,244,4439.6923076923076,84354.153846153844]
[71,1987,23,229,4166.760403530895,95835.489281210583]
[72,1988,15,349,6350.215636822194,95253.234552332913]
[73,1989,26,366,{"$f":"D96/$D$12*$D$10","v":6659.5384615384619},173148]
[74,1990,18,354,6441.1929382093313,115941.47288776796]
[75,1991,28,363,6604.952080706179,184938.65825977302]
[76,1992,22,366,6659.5384615384619,{"$f":"C99*E99","v":146509.84615384616}]
[77,1993,21,322,5858.9382093316526,123037.7023959647]
[78,1994,37,341,6204.6519546027748,229572.12232030267]
[79,1995,20,386,7023.4476670870117,140468.95334174024]
[80,1996,11,386,7023.4476670870117,77257.924337957127]
[81,1997,10,387,7041.6431273644384,70416.431273644383]
[82,1998,15,399,7259.9886506935682,108899.82976040352]
[83,1999,18,345,6277.4337957124844,112993.80832282471]
[84,2000,10,381,6932.4703656998736,69324.703656998739,"January","July"]
[85,2001,9,{"$f":"(G108+H108)/2","v":401.5},7305.4773013871372,65749.295712484236,398,405]
[86,2002,6,393.5,7159.913619167718,42959.48171500631,405,382]
[87,2003,7,384.5,6996.1544766708703,48973.081336696094,384,385]
[88,2004,11,419,7623.8978562421189,83862.876418663305,395,443]
[89,2005,12,491,8933.9709962168981,107207.65195460277,467,515]
[90,2006,23,624,11353.967213114754,261141.24590163934,600,648]
[91,2007,17,703.5,12800.50630517024,217608.60718789409,692,715]
[92,2008,-10,845.5,15384.261664564943,-153842.61664564942,793,898]
[93,2009,6,718.5,13073.438209331653,78440.629255989916,898,539]
[94,2010,4,671.5,12218.25157629256,48873.006305170238,661,682]
[95,2011,4,722,13137.122320302649,52548.489281210597,672,772]
[96,2012,13,651.5,11854.342370744009,154106.45081967211,647,656]
[97,2013,8,698,12700.431273644388,101603.4501891551,686,710]
[98,2014,2,725.5,13200.806431273644,26401.612862547288,716,735]
[99,2015,15,748.5,13619.302017654476,204289.53026481715,747,750]
[100,2016,13,{"$f":"(G123+H123)/2","v":768},{"$f":"D123/$D$12*$D$10","v":13974.113493064313},{"$f":"C123*E123","v":181663.47540983607},768,768]
[101,2017,47,743,13519.226986128626,635403.66834804544,741,745]
[102,2018,66,793,14429,952314,785,801]
[103,null,{"$f":"SUM(C18:C125)","v":1561},null,null,{"$f":"SUM(F18:F125)","v":6804492.5958385887},"Customer Component of FERC 365 Overhead Lines / Secondary"]
[]
[null,null,null,null,null,"to WPE-3.2d, pg 17"]
[]
[null,"(a)","Fully loaded installed cost of 1/0 Aluminum Conductor Steel Reinforced.  Source:  Engineering Standards."]
[null,"(b)",{"$f":"\"Handy Whitman Index for Utility Plant Materials/Overhead Conductor - Distribution. \"&TEXT(D122,\"$###\")&\" is Handy Whitman at Cost Year \"&RIGHT(time_period,4)&\".\"","v":"Handy Whitman Index for Utility Plant Materials/Overhead Conductor - Distribution. $749 is Handy Whitman at Cost Year 2018."}]
[null,"(c)","Asset Accounting.  Includes Overhead Lines Allocated to Secondary based on Circuit Miles."]
[null,"(d)","Handy Whitman Index for Utility Plant Materials/Overhead Conductor - Distribution. "]

{"sheet":"WP FR-16(7)(v) MinSizUGPRIM1","index":76,"n_rows":41,"n_cols":10,"rows_kept":41,"cut":false,"hidden":false,"merged":[]}
[{"$f":"co_name","v":"DUKE ENERGY KENTUCKY, INC."},null,null,null,null,null,null,{"$f":"'WP FR-16(7)(v)-KW & KWH @Gen'!$G$1","v":"Work Paper FR-16(7)(v) "}]
[{"$f":"coss_type","v":"ELECTRIC COST OF SERVICE STUDY "},null,null,null,null,null,null,{"$f":"'WP FR-16(7)(v)-KW & KWH @Gen'!$G$2","v":"Witness Responsible:"}]
[{"$f":"case_name","v":"CASE NO: 2019-00271"},null,null,null,null,null,null,{"$f":"PROPER(Witness)","v":"James E. Ziolkowski"}]
[{"$f":"alloc_factors","v":"ALLOCATION FACTORS FOR COST OF SERVICE STUDY"},null,null,null,null,null,null,"Page 67"]
[{"$f":"time_period","v":"TWELVE MONTHS ENDING DECEMBER 31, 2018"}]
["UNDERGROUND LINES / PRIMARY - MINIMUM SIZE STUDY - DEMAND/CUSTOMER ALLOCATION"]
[]
[]
[]
["Line"]
["No.","Underground Lines - Primary",null,"Source",null,"Demand Alloc","Customer Alloc","TOTAL"]
[null,"(1)",null,"(2)",null,"(3)","(4)","(5)"]
[null,null,null,null,null,null,null,"(3) + (4)"]
[]
[1,"Demand / Customer %",null,"See note (a) below",null,{"$f":"ROUND($G$38,9)","v":0.76304481800000001},{"$f":"ROUND($G$36,9)","v":0.23695518199999999}]
[2,"Gross Plant",null,"Line 1 * Line 21",null,{"$f":"ROUND(F15*G35,0)","v":56141307},{"$f":"ROUND(G15*G35,0)","v":17434066},{"$f":"IF(SUM(F16:G16)=G35,F16+G16,\"error\")","v":73575373}]
[3]
[4,null,null,null,null,"   To Sch. E-3.2, P. 2","   To Sch. E-3.2, P. 2"]
[5]
[6]
[7,"Demand / Customer %",null,"See note (a) below",null,{"$f":"F15","v":0.76304481800000001},{"$f":"G15","v":0.23695518199999999}]
[8,"Depreciation Reserve",null,"Line 7 * Line 26 ; note (b)",null,{"$f":"ROUND(F21*G40,0)","v":16606325},{"$f":"ROUND(G21*G40,0)","v":5156912},{"$f":"IF(SUM(F22:G22)=G40,F22+G22,\"error\")","v":21763237}]
[9]
[10,null,null,null,null,"   To Sch. E-3.2, P. 3","   To Sch. E-3.2, P. 3"]
[11]
[12]
[13,"Demand / Customer %",null,"See note (a) below",null,{"$f":"F15","v":0.76304481800000001},{"$f":"G15","v":0.23695518199999999}]
[14,"O&M Underground Lines",null,"Line 13 * Line 27 ; note (c)",null,{"$f":"ROUND(F27*G41,0)","v":674043},{"$f":"ROUND(G27*G41,0)","v":209317},{"$f":"IF(SUM(F28:G28)=G41,F28+G28,\"error\")","v":883360}]
[15]
[16,null,null,null,null,"   To Sch. E-3.2, P. 9","   To Sch. E-3.2, P. 9"]
[17]
[18]
[19,"(a)  Customer Percentage:",null,null,null,"Source:"]
[20,"        Customer portion of FERC 367 Underground Lines / Primary",null,null,null,"WPE 3.2d, p. 20",{"$f":"'WP FR-16(7)(v) MinSizUGPRIM2'!F140","v":17434065.934686676}]
[21,"         Total Gross Plant FERC 367 Underground Lines / Primary",null,null,null,"Schedule B-2.1",{"$f":"ROUND(('[3]SCH B-2.1'!$I$409+'[3]SCH B-2.1'!$I$408)*UGPRIM,0)","v":73575373},null,null,"Linked to Sch. B-2.1"]
[22,"         Customer Allocation %",null,null,null,null,{"$f":"G34/G35","v":0.23695518247235628}]
[23]
[24,"        Demand Allocation %",null,null,null,"(100% - Cust %)",{"$f":"1-G36","v":0.76304481752764375}]
[25]
[26,"(b)  Depreciation Reserve FERC 367 Underground Lines / Primary",null,null,null,"Schedule B-3",{"$f":"ROUND(('[3]SCH B-3'!$K$433+'[3]SCH B-3'!$K$434)*UGPRIM,0)","v":21763237},null,null,"Linked to Sch. B-3"]
[27,"(c)  Underground Lines - FERC 584 & 594 ",null,null,null,"Schedule C-2.1",{"$f":"ROUND(('[3]SCH_C2.1 - Forecasted Period'!$J$173+'[3]SCH_C2.1 - Forecasted Period'!$J$187)*UGPRIM,0)","v":883360},null,null,"Linked to Sch. C-2.1"]

{"sheet":"WP FR-16(7)(v) MinSizUGPRIM2","index":77,"n_rows":147,"n_cols":8,"rows_kept":147,"cut":false,"hidden":false,"merged":[]}
[{"$f":"co_name","v":"DUKE ENERGY KENTUCKY, INC."},null,null,null,null,null,null,{"$f":"'WP FR-16(7)(v)-KW & KWH @Gen'!$G$1","v":"Work Paper FR-16(7)(v) "}]
[{"$f":"coss_type","v":"ELECTRIC COST OF SERVICE STUDY "},null,null,null,null,null,null,{"$f":"'WP FR-16(7)(v)-KW & KWH @Gen'!$G$2","v":"Witness Responsible:"}]
[{"$f":"case_name","v":"CASE NO: 2019-00271"},null,null,null,null,null,null,{"$f":"PROPER(Witness)","v":"James E. Ziolkowski"}]
[{"$f":"alloc_factors","v":"ALLOCATION FACTORS FOR COST OF SERVICE STUDY"},null,null,null,null,null,null,"Page 68"]
[{"$f":"time_period","v":"TWELVE MONTHS ENDING DECEMBER 31, 2018"}]
["UNDERGROUND LINES / PRIMARY - MINIMUM SIZE STUDY - DEMAND/CUSTOMER ALLOCATION"]
[]
["Line"]
["No.",null,"MINIMUM SIZE STUDY - FERC 367 UNDERGROUND LINES / PRIMARY"]
[1,null,{"$f":"'Minimum Size Summary'!D16","v":"1/0 ALTRXPE 15KV Primary UG cable"},{"$f":"'Minimum Size Summary'!F16","v":24564},"(a)"]
[2,null,"Cost Year",{"$f":"RIGHT(time_period,4)","v":"2018"}," "]
[3,null,"Handy Whitman at Cost Year",{"$f":"D139","v":566.5},"(b)"]
[4]
[5,"Year","Quantity (c)","Handy-Whitman Factor (d)","Cost in Year","Minimum Size Cost"]
[6,null,"(1)","(2)","(3)","(4)"]
[7,null,null,null,{"$f":"\"(Col(2) / \"&TEXT($D$12,\"$###\")&\" * \"&TEXT($D$10,\"$#,###\")","v":"(Col(2) / $567 * $24,564"},"(1) * (3)"]
[8,1910,0,16,{"$f":"D17/$D$12*$D$10","v":693.7758164165931},{"$f":"C17*E17","v":0}]
[9,1911,0,16,693.7758164165931,0]
[10,1912,0,16,693.7758164165931,0]
[11,1913,0,15,650.41482789055613,0]
[12,1914,0,14,607.05383936451904,0]
[13,1915,0,14,607.05383936451904,0]
[14,1916,0,22,953.94174757281542,0]
[15,1917,0,25,1084.0247131509268,0]
[16,1918,0,28,1214.1076787290381,0]
[17,1919,0,30,1300.8296557811123,0]
[18,1920,0,29,1257.4686672550752,0]
[19,1921,0,22,953.94174757281542,0]
[20,1922,0,22,953.94174757281542,0]
[21,1923,0,28,1214.1076787290381,0]
[22,1924,0,25,1084.0247131509268,0]
[23,1925,0,25,1084.0247131509268,0]
[24,1926,0,24,1040.6637246248897,0]
[25,1927,0,22,953.94174757281542,0]
[26,1928,0,25,1084.0247131509268,0]
[27,1929,0,29,1257.4686672550752,0]
[28,1930,0,22,953.94174757281542,0]
[29,1931,0,21,910.58075904677844,0]
[30,1932,0,20,867.21977052074135,0]
[31,1933,0,22,953.94174757281542,0]
[32,1934,0,25,1084.0247131509268,0]
[33,1935,0,25,1084.0247131509268,0]
[34,1936,0,27,1170.746690203001,0]
[35,1937,0,29,1257.4686672550752,0]
[36,1938,0,26,1127.3857016769639,0]
[37,1939,0,26,1127.3857016769639,0]
[38,1940,1,27,1170.746690203001,1170.746690203001]
[39,1941,0,31,1344.1906443071491,0]
[40,1942,0,32,1387.5516328331862,0]
[41,1943,0,32,1387.5516328331862,0]
[42,1944,0,31,1344.1906443071491,0]
[43,1945,0,31,1344.1906443071491,0]
[44,1946,0,36,1560.9955869373343,0]
[45,1947,0,44,1907.8834951456308,0]
[46,1948,0,54,2341.493380406002,0]
[47,1949,0,59,2558.298323036187,0]
[48,1950,1,59,2558.298323036187,2558.298323036187]
[49,1951,0,63,2731.7422771403353,0]
[50,1952,0,64,2775.1032656663724,0]
[51,1953,0,64,2775.1032656663724,0]
[52,1954,0,64,2775.1032656663724,0]
[53,1955,1,71,3078.630185348632,3078.630185348632]
[54,1956,1,78,3382.1571050308917,3382.1571050308917]
[55,1957,0,69,2991.9082082965579,0]
[56,1958,0,67,2905.1862312444837,0]
[57,1959,0,70,3035.2691968225949,0]
[58,1960,0,71,3078.630185348632,0]
[59,1961,1,69,2991.9082082965579,2991.9082082965579]
[60,1962,0,67,2905.1862312444837,0]
[61,1963,1,68,2948.5472197705208,2948.5472197705208]
[62,1964,2,74,3208.7131509267433,6417.4263018534866]
[63,1965,1,82,3555.6010591350396,3555.6010591350396]
[]
[]
[{"$f":"co_name","v":"DUKE ENERGY KENTUCKY, INC."},null,null,null,null,null,null,{"$f":"'WP FR-16(7)(v)-KW & KWH @Gen'!$G$1","v":"Work Paper FR-16(7)(v) "}]
[{"$f":"coss_type","v":"ELECTRIC COST OF SERVICE STUDY "},null,null,null,null,null,null,{"$f":"'WP FR-16(7)(v)-KW & KWH @Gen'!$G$2","v":"Witness Responsible:"}]
[{"$f":"case_name","v":"CASE NO: 2019-00271"},null,null,null,null,null,null,{"$f":"PROPER(Witness)","v":"James E. Ziolkowski"}]
[{"$f":"alloc_factors","v":"ALLOCATION FACTORS FOR COST OF SERVICE STUDY"},null,null,null,null,null,null,"Page 69"]
[{"$f":"time_period","v":"TWELVE MONTHS ENDING DECEMBER 31, 2018"}]
["UNDERGROUND LINES / PRIMARY - MINIMUM SIZE STUDY - DEMAND/CUSTOMER ALLOCATION"]
[]
["Line"]
["No.","Year","Quantity (c)","Handy-Whitman Factor (d)","Cost in Year","Minimum Size Cost"]
[null,null,"(1)","(2)","(3)","(4)"]
[null,null,null,null,{"$f":"\"(Col(2) / \"&TEXT($D$12,\"$###\")&\" * \"&TEXT($D$10,\"$#,###\")","v":"(Col(2) / $567 * $24,564"},"(1) * (3)"]
[]
[64,1966,1,83,3598.9620476610771,3598.9620476610771]
[65,1967,1,85,3685.6840247131508,3685.6840247131508]
[66,1968,1,76,3295.435127978817,3295.435127978817]
[67,1969,1,86,3729.0450132391879,3729.0450132391879]
[68,1970,4,94,4075.9329214474847,16303.731685789939]
[69,1971,4,92,3989.2109443954109,15956.843777581644]
[70,1972,4,100,4336.0988526037072,17344.395410414829]
[71,1973,18,100,4336.0988526037072,78049.779346866737]
[72,1974,10,135,{"$f":"D95/$D$12*$D$10","v":5853.733451015004},{"$f":"C95*E95","v":58537.334510150038}]
[73,1975,7,130,5636.928508384819,{"$f":"C96*E96","v":39458.499558693729}]
[74,1976,16,132,5723.6504854368932,{"$f":"C97*E97","v":91578.407766990291}]
[75,1977,18,140,6070.5383936451899,{"$f":"C98*E98","v":109269.69108561342}]
[76,1978,8,148,6417.4263018534866,{"$f":"C98*E99","v":115513.67343336275}]
[77,1979,23,196,8498.753751103266,{"$f":"C99*E100","v":67990.030008826128}]
[78,1980,13,231,10016.388349514562,{"$f":"C101*E101","v":130213.04854368931}]
[79,1981,7,222,9626.1394527802295,67382.976169461603]
[80,1982,6,206,8932.363636363636,53594.181818181816]
[81,1983,11,201,8715.5586937334519,95871.145631067979]
[82,1984,16,196,8498.753751103266,135980.06001765226]
[83,1985,12,202,8758.9196822594877,105107.03618711384]
[84,1986,18,216,9365.9735216240078,168587.52338923214]
[85,1987,35,222,9626.1394527802295,336914.88084730803]
[86,1988,32,223,9669.500441306267,309424.01412180054]
[87,1989,37,243,10536.720211827009,389858.64783759933]
[88,1990,36,254,11013.691085613416,396492.879082083]
[89,1991,27,258,11187.135039717563,302052.64607237419]
[90,1992,31,259,11230.4960282436,348145.37687555159]
[91,1993,36,254,11013.691085613416,396492.879082083]
[92,1994,37,253,10970.330097087379,405902.21359223302]
[93,1995,25,263,11403.939982347749,285098.49955869373]
[94,1996,30,266,11534.02294792586,346020.68843777577]
[95,1997,38,263,11403.939982347749,433349.71932921448]
[96,1998,33,265,11490.661959399824,379191.84466019418]
[97,1999,55,268,11620.744924977935,639140.97087378637]
[98,2000,50,270,11707.466902030008,585373.3451015004,"January","July"]
[99,2001,44,{"$f":"(G122+H122)/2","v":263.5},11425.620476610769,502727.30097087385,277,250]
[100,2002,14,248,10753.525154457193,150549.3521624007,250,246]
[101,2003,20,239.5,10384.956751985877,207699.13503971754,239,240]
[102,2004,35,249,10796.88614298323,377891.01500441309,236,262]
[103,2005,73,301.5,13073.338040600176,954353.6769638129,295,308]
[104,2006,92,342.5,14851.138570167697,1366304.7484554281,342,343]
[105,2007,107,458,19859.332744924981,2124948.6037069731,457,459]
[106,2008,-120,520,22547.714033539276,-2705725.684024713,499,541]
[107,2009,20,620,26883.812886142987,537676.25772285974,631,609]
[108,2010,12,516.5,22395.950573698148,268751.40688437776,515,518]
[109,2011,10,570,24715.763459841131,247157.63459841133,563,577]
[110,2012,29,634,27490.866725507502,797235.13503971754,621,647]
[111,2013,10,635.5,27555.908208296561,275559.08208296564,617,654]
[112,2014,11,638,27664.310679611648,304307.41747572814,631,645]
[113,2015,16,629.5,27295.742277140336,436731.87643424538,622,637]
[114,2016,21,{"$f":"(G137+H137)/2","v":589},{"$f":"D137/$D$12*$D$10","v":25539.622241835837},{"$f":"C137*E137","v":536332.06707855256},589,589]
[115,2017,87,550.5,23870.224183583407,2076709.5039717564,539,562]
[116,2018,82,566.5,24564,2014248,561,572]
[117,null,{"$f":"SUM(C17:C139)","v":1273},null,null,{"$f":"SUM(F17:F139)","v":17434065.934686676},"Customer Component of FERC 367 Overhead Lines / Primary"]
[]
[null,null,null,null,null,"to WPE-3.2d, pg 19"]
[]
[null,"(a)","Fully loaded installed cost of 1/0 Aluminum Conductor Steel Reinforced.  Source:  Engineering Standards."]
[null,"(b)",{"$f":"\"Handy Whitman Index for Utility Plant Materials/Underground Conductor - Distribution. \"&TEXT(D136,\"$###\")&\" is Handy Whitman at Cost Year \"&RIGHT(time_period,4)&\".\"","v":"Handy Whitman Index for Utility Plant Materials/Underground Conductor - Distribution. $630 is Handy Whitman at Cost Year 2018."}]
[null,"(c)","Asset Accounting.  Includes Underground Lines Allocated to Primary based on Circuit Miles."]
[null,"(d)","Handy Whitman Index for Utility Plant Materials/Underground Conductor - Distribution. "]

{"sheet":"WP FR-16(7)(v) MinSizUGSEC1","index":78,"n_rows":41,"n_cols":10,"rows_kept":41,"cut":false,"hidden":false,"merged":[]}
[{"$f":"co_name","v":"DUKE ENERGY KENTUCKY, INC."},null,null,null,null,null,null,{"$f":"'WP FR-16(7)(v)-KW & KWH @Gen'!$G$1","v":"Work Paper FR-16(7)(v) "}]
[{"$f":"coss_type","v":"ELECTRIC COST OF SERVICE STUDY "},null,null,null,null,null,null,{"$f":"'WP FR-16(7)(v)-KW & KWH @Gen'!$G$2","v":"Witness Responsible:"}]
[{"$f":"case_name","v":"CASE NO: 2019-00271"},null,null,null,null,null,null,{"$f":"PROPER(Witness)","v":"James E. Ziolkowski"}]
[{"$f":"alloc_factors","v":"ALLOCATION FACTORS FOR COST OF SERVICE STUDY"},null,null,null,null,null,null,"Page 70"]
[{"$f":"time_period","v":"TWELVE MONTHS ENDING DECEMBER 31, 2018"}]
["UNDERGROUND LINES / SECONDARY - MINIMUM SIZE STUDY - DEMAND/CUSTOMER ALLOCATION"]
[]
[]
[]
["Line"]
["No.","Underground Lines - Secondary",null,"Source",null,"Demand Alloc","Customer Alloc","TOTAL"]
[null,"(1)",null,"(2)",null,"(3)","(4)","(5)"]
[null,null,null,null,null,null,null,"(3) + (4)"]
[]
[1,"Demand / Customer %",null,"See note (a) below",null,{"$f":"ROUND($G$38,9)","v":0.63822349899999997},{"$f":"ROUND($G$36,9)","v":0.36177650099999997}]
[2,"Gross Plant",null,"Line 1 * Line 21",null,{"$f":"ROUND(F15*G35,0)","v":9617808},{"$f":"ROUND(G15*G35,0)","v":5451847},{"$f":"IF(SUM(F16:G16)=G35,F16+G16,\"error\")","v":15069655}]
[3]
[4,null,null,null,null,"   To Sch. E-3.2, P. 2","   To Sch. E-3.2, P. 2"]
[5]
[6]
[7,"Demand / Customer %",null,"See note (a) below",null,{"$f":"F15","v":0.63822349899999997},{"$f":"G15","v":0.36177650099999997}]
[8,"Depreciation Reserve",null,"Line 7 * Line 26 ; note (b)",null,{"$f":"ROUND(F21*G40,0)","v":2844900},{"$f":"ROUND(G21*G40,0)","v":1612630},{"$f":"IF(SUM(F22:G22)=G40,F22+G22,\"error\")","v":4457530}]
[9]
[10,null,null,null,null,"   To Sch. E-3.2, P. 3","   To Sch. E-3.2, P. 3"]
[11]
[12]
[13,"Demand / Customer %",null,"See note (a) below",null,{"$f":"F15","v":0.63822349899999997},{"$f":"G15","v":0.36177650099999997}]
[14,"O&M Underground Lines",null,"Line 13 * Line 27 ; note (c)",null,{"$f":"ROUND(F27*G41,0)","v":115473},{"$f":"ROUND(G27*G41,0)","v":65456},{"$f":"IF(SUM(F28:G28)=G41,F28+G28,\"error\")","v":180929}]
[15]
[16,null,null,null,null,"   To Sch. E-3.2, P. 9","   To Sch. E-3.2, P. 9"]
[17]
[18]
[19,"(a)  Customer Percentage:",null,null,null,"Source:"]
[20,"        Customer portion of FERC 367 Underground Lines / Secondary",null,null,null,"WPE 3.2d, p. 22",{"$f":"'WP FR-16(7)(v) MinSizUGSEC2'!F140","v":5451847.0609002644}]
[21,"         Total Gross Plant FERC 367 Underground Lines / Secondary",null,null,null,"Schedule B-2.1",{"$f":"ROUND(('[3]SCH B-2.1'!$I$409+'[3]SCH B-2.1'!$I$408)*UGSEC,0)","v":15069655},null,null,"Linked to Sch. B-2.1"]
[22,"         Customer Allocation %",null,null,null,null,{"$f":"G34/G35","v":0.36177650124706001}]
[23]
[24,"        Demand Allocation %",null,null,null,"(100% - Cust %)",{"$f":"1-G36","v":0.63822349875294004}]
[25]
[26,"(b)  Depreciation Reserve FERC 367 Underground Lines / Secondary",null,null,null,"Schedule B-3",{"$f":"ROUND(('[3]SCH B-3'!$K$433+'[3]SCH B-3'!$K$434)*UGSEC,0)","v":4457530},null,null,"Linked to Sch. B-3"]
[27,"(c)  Underground Lines - FERC 584 & 594 ",null,null,null,"Schedule C-2.1",{"$f":"ROUND(('[3]SCH_C2.1 - Forecasted Period'!$J$173+'[3]SCH_C2.1 - Forecasted Period'!$J$187)*UGSEC,0)","v":180929},null,null,"Linked to Sch. C-2.1"]

{"sheet":"WP FR-16(7)(v) MinSizUGSEC2","index":79,"n_rows":147,"n_cols":8,"rows_kept":147,"cut":false,"hidden":false,"merged":[]}
[{"$f":"co_name","v":"DUKE ENERGY KENTUCKY, INC."},null,null,null,null,null,null,{"$f":"'WP FR-16(7)(v)-KW & KWH @Gen'!$G$1","v":"Work Paper FR-16(7)(v) "}]
[{"$f":"coss_type","v":"ELECTRIC COST OF SERVICE STUDY "},null,null,null,null,null,null,{"$f":"'WP FR-16(7)(v)-KW & KWH @Gen'!$G$2","v":"Witness Responsible:"}]
[{"$f":"case_name","v":"CASE NO: 2019-00271"},null,null,null,null,null,null,{"$f":"PROPER(Witness)","v":"James E. Ziolkowski"}]
[{"$f":"alloc_factors","v":"ALLOCATION FACTORS FOR COST OF SERVICE STUDY"},null,null,null,null,null,null,"Page 71"]
[{"$f":"time_period","v":"TWELVE MONTHS ENDING DECEMBER 31, 2018"}]
["UNDERGROUND LINES / SECONDARY - MINIMUM SIZE STUDY - DEMAND/CUSTOMER ALLOCATION"]
[]
["Line"]
["No.",null,"MINIMUM SIZE STUDY - FERC 367 UNDERGROUND LINES / SECONDARY"]
[1,null,{"$f":"'Minimum Size Summary'!D17","v":"4/0 ALTX Secondary UG cable"},{"$f":"'Minimum Size Summary'!F17","v":21740},"(a)"]
[2,null,"Cost Year",{"$f":"RIGHT(time_period,4)","v":"2018"}," "]
[3,null,"Handy Whitman at Cost Year",{"$f":"D139","v":566.5},"(b)"]
[4]
[5,"Year","Quantity (c)","Handy-Whitman Factor (d)","Cost in Year","Minimum Size Cost"]
[6,null,"(1)","(2)","(3)","(4)"]
[7,null,null,null,{"$f":"\"(Col(2) / \"&TEXT($D$12,\"$###\")&\" * \"&TEXT($D$10,\"$#,###\")","v":"(Col(2) / $567 * $21,740"},"(1) * (3)"]
[8,1910,0,16,{"$f":"D17/$D$12*$D$10","v":614.01588702559582},{"$f":"C17*E17","v":0}]
[9,1911,0,16,614.01588702559582,0]
[10,1912,0,16,614.01588702559582,0]
[11,1913,0,15,575.63989408649604,0]
[12,1914,0,14,537.26390114739627,0]
[13,1915,0,14,537.26390114739627,0]
[14,1916,0,22,844.27184466019412,0]
[15,1917,0,25,959.39982347749344,0]
[16,1918,0,28,1074.5278022947925,0]
[17,1919,0,30,1151.2797881729921,0]
[18,1920,0,29,1112.9037952338924,0]
[19,1921,0,22,844.27184466019412,0]
[20,1922,0,22,844.27184466019412,0]
[21,1923,0,28,1074.5278022947925,0]
[22,1924,0,25,959.39982347749344,0]
[23,1925,0,25,959.39982347749344,0]
[24,1926,0,24,921.02383053839367,0]
[25,1927,0,22,844.27184466019412,0]
[26,1928,0,25,959.39982347749344,0]
[27,1929,0,29,1112.9037952338924,0]
[28,1930,0,22,844.27184466019412,0]
[29,1931,0,21,805.89585172109435,0]
[30,1932,0,20,767.51985878199469,0]
[31,1933,0,22,844.27184466019412,0]
[32,1934,0,25,959.39982347749344,0]
[33,1935,0,25,959.39982347749344,0]
[34,1936,0,27,1036.1518093556929,0]
[35,1937,0,29,1112.9037952338924,0]
[36,1938,0,26,997.77581641659322,0]
[37,1939,0,26,997.77581641659322,0]
[38,1940,0,27,1036.1518093556929,0]
[39,1941,0,31,1189.6557811120917,0]
[40,1942,0,32,1228.0317740511916,0]
[41,1943,0,32,1228.0317740511916,0]
[42,1944,0,31,1189.6557811120917,0]
[43,1945,0,31,1189.6557811120917,0]
[44,1946,0,36,1381.5357458075903,0]
[45,1947,0,44,1688.5436893203882,0]
[46,1948,0,54,2072.3036187113858,0]
[47,1949,0,59,2264.1835834068843,0]
[48,1950,0,59,2264.1835834068843,0]
[49,1951,0,63,2417.6875551632834,0]
[50,1952,0,64,2456.0635481023833,0]
[51,1953,0,64,2456.0635481023833,0]
[52,1954,0,64,2456.0635481023833,0]
[53,1955,1,71,2724.6954986760816,2724.6954986760816]
[54,1956,0,78,2993.3274492497794,0]
[55,1957,0,69,2647.9435127978818,0]
[56,1958,0,67,2571.191526919682,0]
[57,1959,0,70,2686.3195057369817,0]
[58,1960,0,71,2724.6954986760816,0]
[59,1961,0,69,2647.9435127978818,0]
[60,1962,0,67,2571.191526919682,0]
[61,1963,0,68,2609.5675198587819,0]
[62,1964,1,74,2839.8234774933803,2839.8234774933803]
[63,1965,0,82,3146.8314210061785,0]
[]
[]
[{"$f":"co_name","v":"DUKE ENERGY KENTUCKY, INC."},null,null,null,null,null,null,{"$f":"'WP FR-16(7)(v)-KW & KWH @Gen'!$G$1","v":"Work Paper FR-16(7)(v) "}]
[{"$f":"coss_type","v":"ELECTRIC COST OF SERVICE STUDY "},null,null,null,null,null,null,{"$f":"'WP FR-16(7)(v)-KW & KWH @Gen'!$G$2","v":"Witness Responsible:"}]
[{"$f":"case_name","v":"CASE NO: 2019-00271"},null,null,null,null,null,null,{"$f":"PROPER(Witness)","v":"James E. Ziolkowski"}]
[{"$f":"alloc_factors","v":"ALLOCATION FACTORS FOR COST OF SERVICE STUDY"},null,null,null,null,null,null,"Page 72"]
[{"$f":"time_period","v":"TWELVE MONTHS ENDING DECEMBER 31, 2018"}]
["UNDERGROUND LINES / SECONDARY - MINIMUM SIZE STUDY - DEMAND/CUSTOMER ALLOCATION"]
[]
["Line"]
["No.","Year","Quantity (c)","Handy-Whitman Factor (d)","Cost in Year","Minimum Size Cost"]
[null,null,"(1)","(2)","(3)","(4)"]
[null,null,null,null,{"$f":"\"(Col(2) / \"&TEXT($D$12,\"$###\")&\" * \"&TEXT($D$10,\"$#,###\")","v":"(Col(2) / $567 * $21,740"},"(1) * (3)"]
[]
[64,1966,0,83,3185.2074139452784,0]
[65,1967,0,85,3261.9593998234773,0]
[66,1968,0,76,2916.5754633715796,0]
[67,1969,1,86,3300.3353927625772,3300.3353927625772]
[68,1970,1,94,3607.3433362753749,3607.3433362753749]
[69,1971,2,92,3530.591350397176,7061.1827007943521]
[70,1972,2,100,3837.5992939099738,7675.1985878199475]
[71,1973,7,100,3837.5992939099738,26863.195057369816]
[72,1974,4,135,{"$f":"D95/$D$12*$D$10","v":5180.7590467784639},{"$f":"C95*E95","v":20723.036187113856}]
[73,1975,2,130,4988.8790820829654,{"$f":"C96*E96","v":9977.7581641659308}]
[74,1976,5,132,5065.6310679611652,{"$f":"C97*E97","v":25328.155339805824}]
[75,1977,6,140,5372.6390114739634,{"$f":"C98*E98","v":32235.834068843782}]
[76,1978,3,148,5679.6469549867606,{"$f":"C98*E99","v":34077.881729920562}]
[77,1979,8,196,7521.694616063548,{"$f":"C99*E100","v":22565.083848190643}]
[78,1980,4,231,8864.8543689320377,{"$f":"C101*E101","v":35459.417475728151}]
[79,1981,2,222,8519.4704324801405,17038.940864960281]
[80,1982,2,206,7905.454545454546,15810.909090909092]
[81,1983,4,201,7713.5745807590465,30854.298323036186]
[82,1984,5,196,7521.694616063548,37608.473080317737]
[83,1985,4,202,7751.9505736981464,31007.802294792586]
[84,1986,6,216,8289.214474845543,49735.286849073258]
[85,1987,12,222,8519.4704324801405,102233.64518976168]
[86,1988,11,223,8557.8464254192404,94136.310679611648]
[87,1989,13,243,9325.3662842012363,121229.76169461607]
[88,1990,12,254,9747.5022065313333,116970.02647837601]
[89,1991,10,258,9901.006178287731,99010.06178287731]
[90,1992,11,259,9939.3821712268309,{"$f":"C113*E113","v":109333.20388349514}]
[91,1993,13,254,9747.5022065313333,126717.52868490733]
[92,1994,13,253,9709.1262135922334,126218.64077669903]
[93,1995,9,263,10092.88614298323,90835.975286849076]
[94,1996,11,266,10208.014121800528,112288.15533980582]
[95,1997,14,263,10092.88614298323,141300.40600176522]
[96,1998,12,265,10169.63812886143,122035.65754633717]
[97,1999,19,268,10284.766107678728,195410.55604589582]
[98,2000,17,270,10361.518093556928,176145.80759046777,"January","July"]
[99,2001,15,{"$f":"(G122+H122)/2","v":263.5},10112.074139452781,151681.11209179173,277,250]
[100,2002,5,248,9517.246248896734,47586.231244483672,250,246]
[101,2003,7,239.5,9191.0503089143858,64337.352162400697,239,240]
[102,2004,12,249,9555.6222418358338,114667.46690203001,236,262]
[103,2005,26,301.5,11570.36187113857,300829.40864960279,295,308]
[104,2006,33,342.5,13143.77758164166,433744.66019417479,342,343]
[105,2007,38,458,17576.204766107679,667895.78111209185,457,459]
[106,2008,-42,520,19955.516328331862,-838131.6857899382,499,541]
[107,2009,7,620,23793.115622241839,166551.80935569288,631,609]
[108,2010,4,516.5,19821.200353045013,79284.801412180052,515,518]
[109,2011,4,570,21874.315975286849,87497.263901147395,563,577]
[110,2012,10,634,24330.379523389234,243303.79523389234,621,647]
[111,2013,3,635.5,24387.943512797883,73163.830538393653,617,654]
[112,2014,4,638,24483.88349514563,97935.533980582521,631,645]
[113,2015,6,629.5,24157.687555163284,144946.1253309797,622,637]
[114,2016,8,{"$f":"(G137+H137)/2","v":589},{"$f":"D137/$D$12*$D$10","v":22603.459841129745},{"$f":"C137*E137","v":180827.67872903796},589,589]
[115,2017,31,550.5,21125.984112974405,654905.5075022066,539,562]
[116,2018,29,566.5,21740,630460,561,572]
[117,null,{"$f":"SUM(C17:C139)","v":447},null,null,{"$f":"SUM(F17:F139)","v":5451847.0609002644},"Customer Component of FERC 365 Overhead Lines / Secondary"]
[]
[null,null,null,null,null,"to WPE-3.2d, pg 21"]
[]
[null,"(a)","Fully loaded installed cost of 2/0 Aluminum.  Source:  Engineering Standards."]
[null,"(b)",{"$f":"\"Handy Whitman Index for Utility Plant Materials/Underground Conductor - Distribution. \"&TEXT(D136,\"$###\")&\" is Handy Whitman at Cost Year \"&RIGHT(time_period,4)&\".\"","v":"Handy Whitman Index for Utility Plant Materials/Underground Conductor - Distribution. $630 is Handy Whitman at Cost Year 2018."}]
[null,"(c)","Asset Accounting.  Includes Underground Lines Allocated to Secondary based on Circuit Miles."]
[null,"(d)","Handy Whitman Index for Utility Plant Materials/Underground Conductor - Distribution. "]

{"sheet":"Minimum Size Summary","index":80,"n_rows":20,"n_cols":13,"rows_kept":20,"cut":false,"hidden":false,"merged":[]}
["Summary of Minimum Size Studies for Testimony"]
[]
[]
[null,null,"WPE-3.2d","Minimum","Cost"]
["Account","Class of Property","Reference","Size","Per","Loaded Cost",null,"Quantity",null,"Loaded Cost",null,"Customer","Demand"]
[]
[null,"Poles, Towers & Fixtures"]
[364,"Primary","pages 55-57","40 ft, Class 4, Wood","Pole",905,null,{"$f":"'WP FR-16(7)(v) MinSizPrimPole2'!C136","v":34227},null,{"$f":"'WP FR-16(7)(v) MinSizPrimPole1'!G35","v":48116636},null,{"$f":"'WP FR-16(7)(v) MinSizPrimPole1'!G36","v":0.31395921447127745},{"$f":"1-L8","v":0.6860407855287225}]
[364,"Secondary","pages 58-60","35 ft, Class 5, Wood","Pole",582,null,{"$f":"'WP FR-16(7)(v) MinSizSecPole2'!C136","v":12028},null,{"$f":"'WP FR-16(7)(v) MinSizSecPole1'!G35","v":16038879},null,{"$f":"'WP FR-16(7)(v) MinSizSecPole1'!G36","v":0.21290542048290237},{"$f":"1-L9","v":0.7870945795170976}]
[null,null,null,null,null,null,null,{"$f":"SUM(H8:H9)","v":46255},null,{"$f":"SUM(J8:J9)","v":64155515}]
[null,"Overhead Conductors"]
[365,"Primary","pages 61-63","1/0 ACSR Primary OH Conductor","Mile of Conductor",{"$f":"ROUND(232.33*5280/100,0)","v":12267},null,{"$f":"'WP FR-16(7)(v) MinSizeOHPRIM2'!C126","v":4442},null,{"$f":"'WP FR-16(7)(v) MinSizOHPRIM1'!G35","v":91649603},null,{"$f":"'WP FR-16(7)(v) MinSizOHPRIM1'!G36","v":0.17923461672368179},{"$f":"1-L12","v":0.82076538327631821}]
[365,"Secondary","pages 64-66","#2 ALTX Secondary OH Conductor","Mile of Conductor",{"$f":"ROUND(273.27*5280/100,0)","v":14429},null,{"$f":"'WP FR-16(7)(v) MinSizOHSEC2'!C126","v":1561},null,{"$f":"'WP FR-16(7)(v) MinSizOHSEC1'!G35","v":37434345},null,{"$f":"'WP FR-16(7)(v) MinSizOHSEC1'!G36","v":0.18177138122327474},{"$f":"1-L13","v":0.81822861877672526}]
[null,null,null,null,null,null,null,{"$f":"SUM(H12:H13)","v":6003},null,{"$f":"SUM(J12:J13)","v":129083948}]
[null,"Underground Conductors"]
[367,"Primary","pages 67-69","1/0 ALTRXPE 15KV Primary UG cable","Mile of Conductor",{"$f":"ROUND(465.22*5280/100,0)","v":24564},null,{"$f":"'WP FR-16(7)(v) MinSizUGPRIM2'!C140","v":1273},null,{"$f":"'WP FR-16(7)(v) MinSizUGPRIM1'!G35","v":73575373},null,{"$f":"'WP FR-16(7)(v) MinSizUGPRIM1'!G36","v":0.23695518247235628},{"$f":"1-L16","v":0.76304481752764375}]
[367,"Secondary","pages 70-72","4/0 ALTX Secondary UG cable","Mile of Conductor",{"$f":"ROUND(411.74*5280/100,0)","v":21740},null,{"$f":"'WP FR-16(7)(v) MinSizUGSEC2'!C140","v":447},null,{"$f":"'WP FR-16(7)(v) MinSizUGSEC1'!G35","v":15069655},null,{"$f":"'WP FR-16(7)(v) MinSizUGSEC1'!G36","v":0.36177650124706001},{"$f":"1-L17","v":0.63822349875294004}]
[null,null,null,null,null,null,null,{"$f":"SUM(H16:H17)","v":1720},null,{"$f":"SUM(J16:J17)","v":88645028}]
[]
[368,"Line Transformer","pages 52-54","25 kVa","Transformer",1633,null,{"$f":"'WP FR-16(7)(v) Min Siz Trans 2'!C142","v":38668},null,{"$f":"'WP FR-16(7)(v) Min Siz Trans 1'!G36","v":62427115},null,{"$f":"'WP FR-16(7)(v) Min Siz Trans 1'!G37","v":0.24526237951015789},{"$f":"1-L20","v":0.75473762048984216}]

{"sheet":"WP FR-16(7)(v) A&G WP","index":81,"n_rows":554,"n_cols":11,"rows_kept":554,"cut":false,"hidden":false,"merged":[[23,2,23,4]]}
[{"$f":"co_name","v":"DUKE ENERGY KENTUCKY, INC."},null,null,null,null,null,{"$f":"'WP FR-16(7)(v)-KW & KWH @Gen'!G1","v":"Work Paper FR-16(7)(v) "}]
[{"$f":"coss_type","v":"ELECTRIC COST OF SERVICE STUDY "},null,null,null,null,null,"Witness Responsible:"]
[{"$f":"case_name","v":"CASE NO: 2019-00271"},null,null,null,null,null,{"$f":"PROPER(Witness)","v":"James E. Ziolkowski"}]
[{"$f":"alloc_factors","v":"ALLOCATION FACTORS FOR COST OF SERVICE STUDY"},null,null,null,null,null,"Page 73"]
[{"$f":"time_period","v":"TWELVE MONTHS ENDING DECEMBER 31, 2018"}]
["GENERAL & COMMON PLANT, ACCUMULATED DEPRECIATION, A & G EXPENSES"]
[]
["Functionalized based on Functional Payroll Costs for the Twelve Months ended December 2018"]
[]
[]
["Function","Labor Dollars (a)","Functional Labor Ratio","Original Cost General Plant (b)","Accumulated Depreciation General Plant (b)","Original Cost Common Plant (b)","Accumulated Depreciation Common Plant (b)","Functional A & G Expenses Less Reg Commission Exp. (c)"]
["Prod Plant (Operation)",6130301,{"$f":"1-SUM(C13:C18)","v":0.29448999999999992},{"$f":"D19-SUM(D13:D18)","v":16704047},{"$f":"E19-SUM(E13:E18)","v":5383063},{"$f":"F19-SUM(F13:F18)","v":9454192},{"$f":"G19-SUM(G13:G18)","v":7273485},{"$f":"H19-SUM(H13:H18)","v":9286338}]
["Prod Plant Energy Related (Maintenace)",7162881,{"$f":"ROUND(B13/$B$19,5)","v":0.34410000000000002},{"$f":"ROUND(($B13/$B$19)*D$19,0)","v":19517654},{"$f":"ROUND(($B13/$B$19)*E$19,0)","v":6289780},{"$f":"ROUND(($B13/$B$19)*F$19,0)","v":11046644},{"$f":"ROUND(($B13/$B$19)*G$19,0)","v":8498622},{"$f":"ROUND((B13/B$19)*H$19,0)","v":10850517}]
["Trans Plant",968723,4.6539999999999998E-2,2639608,850643,1493971,1149371,1467447]
["Dist Plant",3967747,0.19061,10811448,3484108,6119086,4707656,6010445]
["Customer Acctg",2427717,0.11663,6615123,2131797,3744042,2880440,3677568]
["Cust Service & Info",158818,7.6299999999999996E-3,{"$f":"ROUND(($B17/$B$19)*D$19,0)","v":432753},139459,244930,188435,240582]
["Sales",0,0,0,0,0,0,0]
["Total O&M excl A&G",{"$f":"SUM(B12:B18)","v":20816187},{"$f":"SUM(C12:C18)","v":1},{"$f":"'[3]SCH B-3.2 - Proposed'!$F$239","v":56720633},{"$f":"'[3]SCH B-3'!$K$496","v":18278850},{"$f":"'[3]SCH B-2.1'!$I$511","v":32102865},{"$f":"'[3]SCH B-3'!$K$549","v":24698009},{"$f":"[3]SCH_C2!$H$35+[3]SCH_C2!$H$36","v":31532897},null,null,"Link to SFR model"]
["A&G",8417662]
["Total O&M",{"$f":"B20+B19","v":29233849}]
[]
[]
[]
[]
["(a) Source: FERC Form 1 - P. 354-355."]
["(b) Source: Schedule B-3.2",null,null,null,null," "]
["(c) Source: Schedule C-2.1"]
[]
[]
[null,null,null,null,null," "]
[]
[]
["Distribution Net Plant"]
[null,null,"Amount","Ratio"]
["Demand",null,{"$f":"'FR-16(7)(v)-1 Functional'!F248-'WP FR-16(7)(v) A&G WP'!C37","v":355790161},{"$f":"ROUND(C36/C38,2)","v":0.82}]
["Customer",null,{"$f":"'FR-16(7)(v)-1 Functional'!F229+'FR-16(7)(v)-1 Functional'!F231+'FR-16(7)(v)-1 Functional'!F233+'FR-16(7)(v)-1 Functional'!F235+'FR-16(7)(v)-1 Functional'!F237+'FR-16(7)(v)-1 Functional'!F239+'FR-16(7)(v)-1 Functional'!F241+'FR-16(7)(v)-1 Functional'!F242+'FR-16(7)(v)-1 Functional'!F243","v":78289944},{"$f":"ROUND(C37/C38,2)","v":0.18},null," "]
[null,null,{"$f":"SUM(C36:C37)","v":434080105},{"$f":"SUM(D36:D37)","v":1}]
[]
[]
[null,null,null,null,null," "]
[]
[]
[]
[null,null,null,null,null," "]
[]
[]
[]
[null,null,null,null,null," "]
[]
[]
[]
[]
[null,null,null,null,null," "]
[]
[]
[]
[]
[]
[]
[]
[]
[]
[]
[]
[]
[]
[]
[]
[]
[]
[]
[]
[]
[]
[]
[]
[]
[]
[]
[]
[]
[]
[]
[]
[]
[]
[]
[]
[]
[]
[]
[]
[]
[]
[]
[]
[]
[]
[]
[]
[]
[]
[]
[]
[]
[]
[]
[]
[]
[]
[]
[]
[]
[]
[]
[]
[]
[]
[]
[]
[]
[]
[]
[]
[]
[]
[]
[]
[]
[]
[]
[]
[]
[]
[]
[]
[]
[]
[]
[]
[]
[]
[]
[]
[]
[]
[]
[]
[]
[]
[]
[]
[]
[]
[]
[]
[]
[]
[]
[]
[]
[]
[]
[]
[]
[]
[]
[]
[]
[]
[]
[]
[]
[]
[]
[]
[]
[]
[]
[]
[]
[]
[]
[]
[]
[]
[]
[]
[]
[]
[]
[]
[]
[]
[]
[]
[]
[]
[]
[]
[]
[]
[]
[]
[]
[]
[]
[]
[]
[]
[]
[]
[]
[]
[]
[]
[]
[]
[]
[]
[]
[]
[]
[]
[]
[]
[]
[]
[]
[]
[]
[]
[]
[]
[]
[]
[]
[]
[]
[]
[]
[]
[]
[]
[]
[]
[]
[]
[]
[]
[]
[]
[]
[]
[]
[]
[]
[]
[]
[]
[]
[]
[]
[]
[]
[]
[]
[]
[]
[]
[]
[]
[]
[]
[]
[]
[]
[]
[]
[]
[]
[]
[]
[]
[]
[]
[]
[]
[]
[]
[]
[]
[]
[]
[]
[]
[]
[]
[]
[]
[]
[]
[]
[]
[]
[]
[]
[]
[]
[]
[]
[]
[]
[]
[]
[]
[]
[]
[]
[]
[]
[]
[]
[]
[]
[]
[]
[]
[]
[]
[]
[]
[]
[]
[]
[]
[]
[]
[]
[]
[]
[]
[]
[]
[]
[]
[]
[]
[]
[]
[]
[]
[]
[]
[]
[]
[]
[]
[]
[]
[]
[]
[]
[]
[]
[]
[]
[]
[]
[]
[]
[]
[]
[]
[]
[]
[]
[]
[]
[]
[]
[]
[]
[]
[]
[]
[]
[]
[]
[]
[]
[]
[]
[]
[]
[]
[]
[]
[]
[]
[]
[]
[]
[]
[]
[]
[]
[]
[]
[]
[]
[]
[]
[]
[]
[]
[]
[]
[]
[]
[]
[]
[]
[]
[]
[]
[]
[]
[]
[]
[]
[]
[]
[]
[]
[]
[]
[]
[]
[]
[]
[]
[]
[]
[]
[]
[]
[]
[]
[]
[]
[]
[]
[]
[]
[]
[]
[]
[]
[]
[]
[]
[]
[]
[]
[]
[]
[]
[]
[]
[]
[]
[]
[]
[]
[]
[]
[]
[]
[]
[]
[]
[]
[]
[]
[]
[]
[]
[]
[]
[]
[]
[]
[]
[]
[]
[]
[]
[]
[]
[]
[]
[]
[]
[]
[]
[]
[]
[]
[]
[]
[]
[]
[]
[]
[]
[]
[]
[]
[]
[]
[]
[]
[]
[]
[]
[]
[]
[]
[]
[]
[]
[]
[]
[]
[]
[]
[]
[]
[]
[]
[]
[]
[]
[]
[]
[]
[]
[]
[]
[]
[]
[null,null,null,null,null,0]

{"sheet":"WP FR-16(7)(v) Pres NOI","index":82,"n_rows":557,"n_cols":19,"rows_kept":557,"cut":false,"hidden":false,"merged":[]}
[{"$f":"co_name","v":"DUKE ENERGY KENTUCKY, INC."},null,null,null,null,null,null,null,null,null,null,null,null,null,null,null,null,{"$f":"'WP FR-16(7)(v)-KW & KWH @Gen'!G1","v":"Work Paper FR-16(7)(v) "}]
[{"$f":"coss_type","v":"ELECTRIC COST OF SERVICE STUDY "},null,null,null,null,null,null,null,null,null,null,null,null,null,null,null,null,"Witness Responsible:"]
[{"$f":"case_name","v":"CASE NO: 2019-00271"},null,null,null,null,null,null,null,null,null,null,null,null,null,null,null,null,{"$f":"PROPER(Witness)","v":"James E. Ziolkowski"}]
[{"$f":"test_period","v":"TWELVE MONTHS ENDING MARCH 31, 2021"},null,null,null,null,null,null,null,null,null,null,null,null,null,null,null,null,"Page 2"]
["COMPUTATION OF PRESENT RETURN EARNED (PRESENT NOI)"]
[]
[{"$f":"data_filing","v":"DATA: 12 MONTHS ACTUAL  & 0 MONTHS ESTIMATED"}]
[]
[null,null,null,null,null,null,null,{"$f":"'FR-16(7)(v)-3 PROD Demand'!H7","v":"DS"},{"$f":"'FR-16(7)(v)-3 PROD Demand'!I7","v":"GSFL"},{"$f":"'FR-16(7)(v)-3 PROD Demand'!J7","v":"EH"},{"$f":"'FR-16(7)(v)-3 PROD Demand'!K7","v":"SP"},{"$f":"'FR-16(7)(v)-3 PROD Demand'!L7","v":"DT SEC"},{"$f":"'FR-16(7)(v)-3 PROD Demand'!M7","v":"DT PRI"},{"$f":"'FR-16(7)(v)-3 PROD Demand'!N7","v":"DP"},{"$f":"'FR-16(7)(v)-3 PROD Demand'!O7","v":"TT"},null,{"$f":"'FR-16(7)(v)-3 PROD Demand'!Q7","v":"OTHER"}]
["Line",null,null,"SCHEDULE",null,null,{"$f":"'FR-16(7)(v)-3 PROD Demand'!G8","v":"RS"},{"$f":"'FR-16(7)(v)-3 PROD Demand'!H8","v":"SECONDARY"},{"$f":"'FR-16(7)(v)-3 PROD Demand'!I8","v":"SECONDARY"},{"$f":"'FR-16(7)(v)-3 PROD Demand'!J8","v":"SECONDARY"},{"$f":"'FR-16(7)(v)-3 PROD Demand'!K8","v":"SECONDARY"},{"$f":"'FR-16(7)(v)-3 PROD Demand'!L8","v":"SECONDARY"},{"$f":"'FR-16(7)(v)-3 PROD Demand'!M8","v":"PRIMARY"},{"$f":"'FR-16(7)(v)-3 PROD Demand'!N8","v":"PRIMARY"},{"$f":"'FR-16(7)(v)-3 PROD Demand'!O8","v":"TRANSMISSION"},{"$f":"'FR-16(7)(v)-3 PROD Demand'!P8","v":"LT"},{"$f":"'FR-16(7)(v)-3 PROD Demand'!Q8","v":"WATER"},{"$f":"'FR-16(7)(v)-3 PROD Demand'!R8","v":"TOTAL"},{"$f":"'FR-16(7)(v)-3 PROD Demand'!S8","v":"ALL"}]
["No.","SUMMARY OF RESULTS",null,"REFERENCE",null,"TOTAL",{"$f":"'FR-16(7)(v)-3 PROD Demand'!G9","v":"RESIDENTIAL"},{"$f":"'FR-16(7)(v)-3 PROD Demand'!H9","v":"DISTRIBUTION"},{"$f":"'FR-16(7)(v)-3 PROD Demand'!I9","v":"DISTRIBUTION"},{"$f":"'FR-16(7)(v)-3 PROD Demand'!J9","v":"DISTRIBUTION"},{"$f":"'FR-16(7)(v)-3 PROD Demand'!K9","v":"DISTRIBUTION"},{"$f":"'FR-16(7)(v)-3 PROD Demand'!L9","v":"DISTRIBUTION"},{"$f":"'FR-16(7)(v)-3 PROD Demand'!M9","v":"DISTRIBUTION"},{"$f":"'FR-16(7)(v)-3 PROD Demand'!N9","v":"DISTRIBUTION"},{"$f":"'FR-16(7)(v)-3 PROD Demand'!O9","v":"TIME OF DAY"},{"$f":"'FR-16(7)(v)-3 PROD Demand'!P9","v":"LIGHTING"},{"$f":"'FR-16(7)(v)-3 PROD Demand'!Q9","v":"PUMPING"},{"$f":"'FR-16(7)(v)-3 PROD Demand'!R9","v":"AT ISSUE"},{"$f":"'FR-16(7)(v)-3 PROD Demand'!S9","v":"OTHER"}]
[null,null,"Schedule 1"]
[1,"NET INCOME COMPUTATION"]
[2,null,"GROSS GAS PLANT IN SERVICE","FR-16(7)(v)-14, P. 2",null,{"$f":"'FR-16(7)(v)-14 TOTAL CLASS'!F12","v":1949359835},{"$f":"'FR-16(7)(v)-14 TOTAL CLASS'!G12","v":950855827},{"$f":"'FR-16(7)(v)-14 TOTAL CLASS'!H12","v":502749698},{"$f":"'FR-16(7)(v)-14 TOTAL CLASS'!I12","v":2477965},{"$f":"'FR-16(7)(v)-14 TOTAL CLASS'!J12","v":9708499},{"$f":"'FR-16(7)(v)-14 TOTAL CLASS'!K12","v":145103},{"$f":"'FR-16(7)(v)-14 TOTAL CLASS'!L12","v":244536260},{"$f":"'FR-16(7)(v)-14 TOTAL CLASS'!M12","v":161404647},{"$f":"'FR-16(7)(v)-14 TOTAL CLASS'!N12","v":7890667},{"$f":"'FR-16(7)(v)-14 TOTAL CLASS'!O12","v":57809196},{"$f":"'FR-16(7)(v)-14 TOTAL CLASS'!P12","v":11570718},{"$f":"'FR-16(7)(v)-14 TOTAL CLASS'!Q12","v":211255},{"$f":"SUM(G14:Q14)","v":1949359835},{"$f":"F14-R14","v":0}]
[3,null,"TOTAL DEPRECIATION RESERVE","FR-16(7)(v)-14, P. 3",null,{"$f":"'FR-16(7)(v)-14 TOTAL CLASS'!F13","v":-795436883},{"$f":"'FR-16(7)(v)-14 TOTAL CLASS'!G13","v":-380312223},{"$f":"'FR-16(7)(v)-14 TOTAL CLASS'!H13","v":-206121793},{"$f":"'FR-16(7)(v)-14 TOTAL CLASS'!I13","v":-1018710},{"$f":"'FR-16(7)(v)-14 TOTAL CLASS'!J13","v":-3935495},{"$f":"'FR-16(7)(v)-14 TOTAL CLASS'!K13","v":-58030},{"$f":"'FR-16(7)(v)-14 TOTAL CLASS'!L13","v":-100888198},{"$f":"'FR-16(7)(v)-14 TOTAL CLASS'!M13","v":-66655247},{"$f":"'FR-16(7)(v)-14 TOTAL CLASS'!N13","v":-3242856},{"$f":"'FR-16(7)(v)-14 TOTAL CLASS'!O13","v":-27423884},{"$f":"'FR-16(7)(v)-14 TOTAL CLASS'!P13","v":-5694343},{"$f":"'FR-16(7)(v)-14 TOTAL CLASS'!Q13","v":-86104},{"$f":"SUM(G15:Q15)","v":-795436883},{"$f":"F15-R15","v":0}]
[4,null,"TOTAL RATE BASE ADJUSTMENTS","FR-16(7)(v)-14, P. 7",null,{"$f":"'FR-16(7)(v)-14 TOTAL CLASS'!F14","v":-207495126},{"$f":"'FR-16(7)(v)-14 TOTAL CLASS'!G14","v":-101954929},{"$f":"'FR-16(7)(v)-14 TOTAL CLASS'!H14","v":-54305934},{"$f":"'FR-16(7)(v)-14 TOTAL CLASS'!I14","v":-262084},{"$f":"'FR-16(7)(v)-14 TOTAL CLASS'!J14","v":-1090391},{"$f":"'FR-16(7)(v)-14 TOTAL CLASS'!K14","v":-15539},{"$f":"'FR-16(7)(v)-14 TOTAL CLASS'!L14","v":-26018763},{"$f":"'FR-16(7)(v)-14 TOTAL CLASS'!M14","v":-17070734},{"$f":"'FR-16(7)(v)-14 TOTAL CLASS'!N14","v":-842034},{"$f":"'FR-16(7)(v)-14 TOTAL CLASS'!O14","v":-4751970},{"$f":"'FR-16(7)(v)-14 TOTAL CLASS'!P14","v":-1160255},{"$f":"'FR-16(7)(v)-14 TOTAL CLASS'!Q14","v":-22493},{"$f":"SUM(G16:Q16)","v":-207495126},{"$f":"F16-R16","v":0}]
[5,null,"  TOTAL RATE BASE",null,null,{"$f":"SUM(F12:F16)","v":946427826},{"$f":"SUM(G12:G16)","v":468588675},{"$f":"SUM(H12:H16)","v":242321971},{"$f":"SUM(I12:I16)","v":1197171},{"$f":"SUM(J12:J16)","v":4682613},71534,117629299,77678666,3805777,25633342,4716120,{"$f":"SUM(Q12:Q16)","v":102658},{"$f":"SUM(R12:R16)","v":946427826},{"$f":"SUM(S12:S16)","v":0}]
[6]
[7,"OPERATING EXPENSES"]
[8,null,"TOTAL O&M EXPENSE","FR-16(7)(v)-14, P. 9",null,{"$f":"'FR-16(7)(v)-14 TOTAL CLASS'!F18","v":209792284},{"$f":"'FR-16(7)(v)-14 TOTAL CLASS'!G18","v":92724430},{"$f":"'FR-16(7)(v)-14 TOTAL CLASS'!H18","v":53105892},{"$f":"'FR-16(7)(v)-14 TOTAL CLASS'!I18","v":288008},{"$f":"'FR-16(7)(v)-14 TOTAL CLASS'!J18","v":891508},{"$f":"'FR-16(7)(v)-14 TOTAL CLASS'!K18","v":15359},{"$f":"'FR-16(7)(v)-14 TOTAL CLASS'!L18","v":30098766},{"$f":"'FR-16(7)(v)-14 TOTAL CLASS'!M18","v":20687129},{"$f":"'FR-16(7)(v)-14 TOTAL CLASS'!N18","v":986111},{"$f":"'FR-16(7)(v)-14 TOTAL CLASS'!O18","v":9537511},{"$f":"'FR-16(7)(v)-14 TOTAL CLASS'!P18","v":1433909},{"$f":"'FR-16(7)(v)-14 TOTAL CLASS'!Q18","v":23661},{"$f":"SUM(G20:Q20)","v":209792284},{"$f":"F20-R20","v":0}]
[9,null,"TOTAL DEPRECIATION EXPENSE","FR-16(7)(v)-14, P. 10",null,{"$f":"'FR-16(7)(v)-14 TOTAL CLASS'!F19","v":58197795},{"$f":"'FR-16(7)(v)-14 TOTAL CLASS'!G19","v":27967520},{"$f":"'FR-16(7)(v)-14 TOTAL CLASS'!H19","v":15181448},{"$f":"'FR-16(7)(v)-14 TOTAL CLASS'!I19","v":74513},{"$f":"'FR-16(7)(v)-14 TOTAL CLASS'!J19","v":290337},{"$f":"'FR-16(7)(v)-14 TOTAL CLASS'!K19","v":4328},{"$f":"'FR-16(7)(v)-14 TOTAL CLASS'!L19","v":7431765},{"$f":"'FR-16(7)(v)-14 TOTAL CLASS'!M19","v":4911695},{"$f":"'FR-16(7)(v)-14 TOTAL CLASS'!N19","v":239418},{"$f":"'FR-16(7)(v)-14 TOTAL CLASS'!O19","v":1872107},{"$f":"'FR-16(7)(v)-14 TOTAL CLASS'!P19","v":218310},{"$f":"'FR-16(7)(v)-14 TOTAL CLASS'!Q19","v":6354},{"$f":"SUM(G21:Q21)","v":58197795},{"$f":"F21-R21","v":0}]
[10,null,"TOTAL OTHER TAX & MISC EXPENSE","FR-16(7)(v)-14, P. 11",null,{"$f":"'FR-16(7)(v)-14 TOTAL CLASS'!F20","v":14578329},{"$f":"'FR-16(7)(v)-14 TOTAL CLASS'!G20","v":7330086},{"$f":"'FR-16(7)(v)-14 TOTAL CLASS'!H20","v":3678419},{"$f":"'FR-16(7)(v)-14 TOTAL CLASS'!I20","v":18179},{"$f":"'FR-16(7)(v)-14 TOTAL CLASS'!J20","v":70934},{"$f":"'FR-16(7)(v)-14 TOTAL CLASS'!K20","v":1098},{"$f":"'FR-16(7)(v)-14 TOTAL CLASS'!L20","v":1783674},{"$f":"'FR-16(7)(v)-14 TOTAL CLASS'!M20","v":1177258},{"$f":"'FR-16(7)(v)-14 TOTAL CLASS'!N20","v":57726},{"$f":"'FR-16(7)(v)-14 TOTAL CLASS'!O20","v":382604},{"$f":"'FR-16(7)(v)-14 TOTAL CLASS'!P20","v":76794},{"$f":"'FR-16(7)(v)-14 TOTAL CLASS'!Q20","v":1557},{"$f":"SUM(G22:Q22)","v":14578329},{"$f":"F22-R22","v":0}]
[11,null,"  TOTAL OP EXP EXCL INC & REV TAX",null,null,{"$f":"SUM(F19:F22)","v":282568408},128022036,71965759,380700,{"$f":"SUM(J19:J22)","v":1252779},20785,39314205,26776082,1283255,11792222,1729013,31572,282568408,0]
[12,null,"NET FED INCOME TAX EXP ALLOWABLE","FR-16(7)(v)-14, P. 12",null,{"$f":"'FR-16(7)(v)-14 TOTAL CLASS'!F22","v":7123621},{"$f":"'FR-16(7)(v)-14 TOTAL CLASS'!G22","v":2291207},{"$f":"'FR-16(7)(v)-14 TOTAL CLASS'!H22","v":1993614},{"$f":"'FR-16(7)(v)-14 TOTAL CLASS'!I22","v":11923},{"$f":"'FR-16(7)(v)-14 TOTAL CLASS'!J22","v":29653},{"$f":"'FR-16(7)(v)-14 TOTAL CLASS'!K22","v":560},{"$f":"'FR-16(7)(v)-14 TOTAL CLASS'!L22","v":1309753},{"$f":"'FR-16(7)(v)-14 TOTAL CLASS'!M22","v":927754},{"$f":"'FR-16(7)(v)-14 TOTAL CLASS'!N22","v":43507},{"$f":"'FR-16(7)(v)-14 TOTAL CLASS'!O22","v":435199},{"$f":"'FR-16(7)(v)-14 TOTAL CLASS'!P22","v":79367},{"$f":"'FR-16(7)(v)-14 TOTAL CLASS'!Q22","v":908},{"$f":"SUM(G24:Q24)","v":7123445},{"$f":"F24-R24","v":176}]
[13,null,"NET STATE INCOME TAX ALLOWABLE","FR-16(7)(v)-14, P. 13",null,{"$f":"'FR-16(7)(v)-14 TOTAL CLASS'!F23","v":2461566},{"$f":"'FR-16(7)(v)-14 TOTAL CLASS'!G23","v":1822464},{"$f":"'FR-16(7)(v)-14 TOTAL CLASS'!H23","v":285271},{"$f":"'FR-16(7)(v)-14 TOTAL CLASS'!I23","v":1796},{"$f":"'FR-16(7)(v)-14 TOTAL CLASS'!J23","v":3750},{"$f":"'FR-16(7)(v)-14 TOTAL CLASS'!K23","v":152},{"$f":"'FR-16(7)(v)-14 TOTAL CLASS'!L23","v":155077},{"$f":"'FR-16(7)(v)-14 TOTAL CLASS'!M23","v":110081},{"$f":"'FR-16(7)(v)-14 TOTAL CLASS'!N23","v":5432},{"$f":"'FR-16(7)(v)-14 TOTAL CLASS'!O23","v":45260},{"$f":"'FR-16(7)(v)-14 TOTAL CLASS'!P23","v":32071},{"$f":"'FR-16(7)(v)-14 TOTAL CLASS'!Q23","v":203},{"$f":"SUM(G25:Q25)","v":2461557},{"$f":"F25-R25","v":9}]
[14,null,"AFUDC OFFSET","FR-16(7)(v)-14, P. 1",null,{"$f":"'FR-16(7)(v)-14 TOTAL CLASS'!F24","v":0},{"$f":"'FR-16(7)(v)-14 TOTAL CLASS'!G24","v":0},{"$f":"'FR-16(7)(v)-14 TOTAL CLASS'!H24","v":0},{"$f":"'FR-16(7)(v)-14 TOTAL CLASS'!I24","v":0},{"$f":"'FR-16(7)(v)-14 TOTAL CLASS'!J24","v":0},{"$f":"'FR-16(7)(v)-14 TOTAL CLASS'!K24","v":0},{"$f":"'FR-16(7)(v)-14 TOTAL CLASS'!L24","v":0},{"$f":"'FR-16(7)(v)-14 TOTAL CLASS'!M24","v":0},{"$f":"'FR-16(7)(v)-14 TOTAL CLASS'!N24","v":0},{"$f":"'FR-16(7)(v)-14 TOTAL CLASS'!O24","v":0},{"$f":"'FR-16(7)(v)-14 TOTAL CLASS'!P24","v":0},{"$f":"'FR-16(7)(v)-14 TOTAL CLASS'!Q24","v":0},{"$f":"SUM(G26:Q26)","v":0},{"$f":"F26-R26","v":0}]
[15,null,"REVENUE TAX","FR-16(7)(v)-14, P. 14",null,{"$f":"'FR-16(7)(v)-14 TOTAL CLASS'!F25","v":0},{"$f":"'FR-16(7)(v)-14 TOTAL CLASS'!G25","v":0},{"$f":"'FR-16(7)(v)-14 TOTAL CLASS'!H25","v":0},{"$f":"'FR-16(7)(v)-14 TOTAL CLASS'!I25","v":0},{"$f":"'FR-16(7)(v)-14 TOTAL CLASS'!J25","v":0},{"$f":"'FR-16(7)(v)-14 TOTAL CLASS'!K25","v":0},{"$f":"'FR-16(7)(v)-14 TOTAL CLASS'!L25","v":0},{"$f":"'FR-16(7)(v)-14 TOTAL CLASS'!M25","v":0},{"$f":"'FR-16(7)(v)-14 TOTAL CLASS'!N25","v":0},{"$f":"'FR-16(7)(v)-14 TOTAL CLASS'!O25","v":0},{"$f":"'FR-16(7)(v)-14 TOTAL CLASS'!P25","v":0},{"$f":"'FR-16(7)(v)-14 TOTAL CLASS'!Q25","v":0},{"$f":"SUM(G27:Q27)","v":0},{"$f":"F27-R27","v":0}]
[16,null,"  TOTAL OPERATING EXPENSE",null,null,{"$f":"SUM(F23:F27)","v":292153595},132135707,74244644,394419,{"$f":"SUM(J23:J27)","v":1286182},21497,40779035,27813917,1332194,12272681,1840451,32683,292153410,185]
[17]
[18,"RETURN ON RATE BASE",null,"FR-16(7)(v)-14, P. 7",null,{"$f":"'FR-16(7)(v)-14 TOTAL CLASS'!F28","v":63514771},{"$f":"'FR-16(7)(v)-14 TOTAL CLASS'!G28","v":31416824},{"$f":"'FR-16(7)(v)-14 TOTAL CLASS'!H28","v":16275026},{"$f":"'FR-16(7)(v)-14 TOTAL CLASS'!I28","v":80246},{"$f":"'FR-16(7)(v)-14 TOTAL CLASS'!J28","v":314751},{"$f":"'FR-16(7)(v)-14 TOTAL CLASS'!K28","v":4820},{"$f":"'FR-16(7)(v)-14 TOTAL CLASS'!L28","v":7904870},{"$f":"'FR-16(7)(v)-14 TOTAL CLASS'!M28","v":5220166},{"$f":"'FR-16(7)(v)-14 TOTAL CLASS'!N28","v":255798},{"$f":"'FR-16(7)(v)-14 TOTAL CLASS'!O28","v":1720370},{"$f":"'FR-16(7)(v)-14 TOTAL CLASS'!P28","v":314977},{"$f":"'FR-16(7)(v)-14 TOTAL CLASS'!Q28","v":6924},{"$f":"SUM(G30:Q30)","v":63514772},{"$f":"'FR-16(7)(v)-1 Functional'!K429","v":0}]
[19,"TOTAL OTHER OPERATING REVENUES",null,"FR-16(7)(v)-14, P. 14",null,{"$f":"'FR-16(7)(v)-14 TOTAL CLASS'!F29","v":-1695053},{"$f":"'FR-16(7)(v)-14 TOTAL CLASS'!G29","v":-935653},{"$f":"'FR-16(7)(v)-14 TOTAL CLASS'!H29","v":-406615},{"$f":"'FR-16(7)(v)-14 TOTAL CLASS'!I29","v":-2052},{"$f":"'FR-16(7)(v)-14 TOTAL CLASS'!J29","v":-8323},{"$f":"'FR-16(7)(v)-14 TOTAL CLASS'!K29","v":-136},{"$f":"'FR-16(7)(v)-14 TOTAL CLASS'!L29","v":-187913},{"$f":"'FR-16(7)(v)-14 TOTAL CLASS'!M29","v":-123253},{"$f":"'FR-16(7)(v)-14 TOTAL CLASS'!N29","v":-6206},{"$f":"'FR-16(7)(v)-14 TOTAL CLASS'!O29","v":-7206},{"$f":"'FR-16(7)(v)-14 TOTAL CLASS'!P29","v":-17517},{"$f":"'FR-16(7)(v)-14 TOTAL CLASS'!Q29","v":-179},{"$f":"SUM(G31:Q31)","v":-1695053},{"$f":"-'FR-16(7)(v)-1 Functional'!K750","v":0}]
[20,null,"TOTAL ELECTRIC COST OF SERVICE",null,null,{"$f":"SUM(F28:F31)","v":353973313},162616878,90113055,472613,{"$f":"SUM(J28:J31)","v":1592610},26181,48495992,32910830,1581786,13985845,2137911,39428,353973129,185]
[21,"ADJUSTMENT FOR INTERCLASS SUBSIDIZATION",null,0,null,0,0,0,0,0,0,0,0,0,0,0,0,0,0]
[22,"REQUESTED REVENUES",null,"Line 21 + Line 22",null,{"$f":"F32+F33","v":353973313},{"$f":"G32+G33","v":162616878},90113055,472613,1592610,26181,48495992,32910830,1581786,13985845,2137911,39428,353973129,185]
[23,{"$f":"\"PROPOSED REVENUES - ELIM \"&TEXT('WP FR-16(7)(v) Rate Incr'!I11,\"#.00%\")&\" OF SUBSIDY\"","v":"PROPOSED REVENUES - ELIM 5.00% OF SUBSIDY"},null,"Set Equal to Present Rev",null,{"$f":"'FR-16(7)(v)-14 TOTAL CLASS'!F42","v":309580654},{"$f":"'FR-16(7)(v)-14 TOTAL CLASS'!G42","v":123883637},{"$f":"'FR-16(7)(v)-14 TOTAL CLASS'!H42","v":90318223},{"$f":"'FR-16(7)(v)-14 TOTAL CLASS'!I42","v":577046},{"$f":"'FR-16(7)(v)-14 TOTAL CLASS'!J42","v":600937},{"$f":"'FR-16(7)(v)-14 TOTAL CLASS'!K42","v":29960},{"$f":"'FR-16(7)(v)-14 TOTAL CLASS'!L42","v":46910116},{"$f":"'FR-16(7)(v)-14 TOTAL CLASS'!M42","v":29943872},{"$f":"'FR-16(7)(v)-14 TOTAL CLASS'!N42","v":1361377},{"$f":"'FR-16(7)(v)-14 TOTAL CLASS'!O42","v":14062168},{"$f":"'FR-16(7)(v)-14 TOTAL CLASS'!P42","v":1876470},{"$f":"'FR-16(7)(v)-14 TOTAL CLASS'!Q42","v":16848},{"$f":"SUM(G35:Q35)","v":309580654},{"$f":"'FR-16(7)(v)-4 PROD Energy'!S867","v":0}]
[24,null,"EXCESS REVENUES","Line 22 - Line 23",null,{"$f":"F34-F35","v":44392659},{"$f":"G34-G35","v":38733241},-205168,-104433,991673,-3779,1585876,2966958,220409,-76323,261441,22580,{"$f":"R34-R35","v":44392475},{"$f":"S34-S35","v":185}]
[25]
[26,"TOTAL RETURN EARNED (To WP FR-16(7)(v), Page 1)",null,"Line 16 + Line 41",null,{"$f":"F30+F55","v":30187079},2337934,16429056,158649,-429746,7657,6714275,2992726,90326,1777669,118700,-10028,30187218,-138]
[27,"RATE OF RETURN EARNED",null,null,null,{"$f":"IF('FR-16(7)(v)-14 TOTAL CLASS'!F431=0,0,ROUND(F38/'FR-16(7)(v)-14 TOTAL CLASS'!F431,5))","v":3.1899999999999998E-2},{"$f":"IF('FR-16(7)(v)-14 TOTAL CLASS'!G431=0,0,ROUND(G38/'FR-16(7)(v)-14 TOTAL CLASS'!G431,5))","v":4.9899999999999996E-3},{"$f":"IF('FR-16(7)(v)-14 TOTAL CLASS'!H431=0,0,ROUND(H38/'FR-16(7)(v)-14 TOTAL CLASS'!H431,5))","v":6.7750000000000005E-2},{"$f":"IF('FR-16(7)(v)-14 TOTAL CLASS'!I431=0,0,ROUND(I38/'FR-16(7)(v)-14 TOTAL CLASS'!I431,5))","v":0.13267999999999999},{"$f":"IF('FR-16(7)(v)-14 TOTAL CLASS'!J431=0,0,ROUND(J38/'FR-16(7)(v)-14 TOTAL CLASS'!J431,5))","v":-9.1630000000000003E-2},{"$f":"IF('FR-16(7)(v)-14 TOTAL CLASS'!K431=0,0,ROUND(K38/'FR-16(7)(v)-14 TOTAL CLASS'!K431,5))","v":0.1066},{"$f":"IF('FR-16(7)(v)-14 TOTAL CLASS'!L431=0,0,ROUND(L38/'FR-16(7)(v)-14 TOTAL CLASS'!L431,5))","v":5.7000000000000002E-2},{"$f":"IF('FR-16(7)(v)-14 TOTAL CLASS'!M431=0,0,ROUND(M38/'FR-16(7)(v)-14 TOTAL CLASS'!M431,5))","v":3.8469999999999997E-2},{"$f":"IF('FR-16(7)(v)-14 TOTAL CLASS'!N431=0,0,ROUND(N38/'FR-16(7)(v)-14 TOTAL CLASS'!N431,5))","v":2.3699999999999999E-2},{"$f":"IF('FR-16(7)(v)-14 TOTAL CLASS'!O431=0,0,ROUND(O38/'FR-16(7)(v)-14 TOTAL CLASS'!O431,5))","v":6.9349999999999995E-2},{"$f":"IF('FR-16(7)(v)-14 TOTAL CLASS'!P431=0,0,ROUND(P38/'FR-16(7)(v)-14 TOTAL CLASS'!P431,5))","v":2.529E-2},{"$f":"IF('FR-16(7)(v)-14 TOTAL CLASS'!Q431=0,0,ROUND(Q38/'FR-16(7)(v)-14 TOTAL CLASS'!Q431,5))","v":-9.7189999999999999E-2},{"$f":"IF('FR-16(7)(v)-14 TOTAL CLASS'!R431=0,0,ROUND(R38/'FR-16(7)(v)-14 TOTAL CLASS'!R431,5))","v":3.1899999999999998E-2},{"$f":"IF('FR-16(7)(v)-14 TOTAL CLASS'!S431=0,0,ROUND(S38/'FR-16(7)(v)-14 TOTAL CLASS'!S431,5))","v":0}]
[28,"TOTAL RATE OF RETURN ALLOWABLE",null,null,null,{"$f":"'FR-16(7)(v)-1 Functional'!$F$811","v":6.7110000000000003E-2},{"$f":"'FR-16(7)(v)-1 Functional'!$F$811","v":6.7110000000000003E-2},{"$f":"'FR-16(7)(v)-1 Functional'!$F$811","v":6.7110000000000003E-2},{"$f":"'FR-16(7)(v)-1 Functional'!$F$811","v":6.7110000000000003E-2},{"$f":"'FR-16(7)(v)-1 Functional'!$F$811","v":6.7110000000000003E-2},{"$f":"'FR-16(7)(v)-1 Functional'!$F$811","v":6.7110000000000003E-2},{"$f":"'FR-16(7)(v)-1 Functional'!$F$811","v":6.7110000000000003E-2},{"$f":"'FR-16(7)(v)-1 Functional'!$F$811","v":6.7110000000000003E-2},{"$f":"'FR-16(7)(v)-1 Functional'!$F$811","v":6.7110000000000003E-2},{"$f":"'FR-16(7)(v)-1 Functional'!$F$811","v":6.7110000000000003E-2},{"$f":"'FR-16(7)(v)-1 Functional'!$F$811","v":6.7110000000000003E-2},{"$f":"'FR-16(7)(v)-1 Functional'!$F$811","v":6.7110000000000003E-2},null,{"$f":"'FR-16(7)(v)-1 Functional'!$F$811","v":6.7110000000000003E-2}]
[29,"RETURN EARNED ON COMMON EQUITY",null,null,null,{"$f":"IF('FR-16(7)(v)-14 TOTAL CLASS'!$F$793=0,0,(F39-'FR-16(7)(v)-14 TOTAL CLASS'!$F$806-'FR-16(7)(v)-14 TOTAL CLASS'!$F$807-'FR-16(7)(v)-14 TOTAL CLASS'!$F$809)*'FR-16(7)(v)-14 TOTAL CLASS'!$F$796/'FR-16(7)(v)-14 TOTAL CLASS'!$F$793)","v":2.508585084710533E-2},{"$f":"IF('FR-16(7)(v)-14 TOTAL CLASS'!$F$793=0,0,(G39-'FR-16(7)(v)-14 TOTAL CLASS'!$F$806-'FR-16(7)(v)-14 TOTAL CLASS'!$F$807-'FR-16(7)(v)-14 TOTAL CLASS'!$F$809)*'FR-16(7)(v)-14 TOTAL CLASS'!$F$796/'FR-16(7)(v)-14 TOTAL CLASS'!$F$793)","v":-3.0704252152531412E-2},{"$f":"IF('FR-16(7)(v)-14 TOTAL CLASS'!$F$793=0,0,(H39-'FR-16(7)(v)-14 TOTAL CLASS'!$F$806-'FR-16(7)(v)-14 TOTAL CLASS'!$F$807-'FR-16(7)(v)-14 TOTAL CLASS'!$F$809)*'FR-16(7)(v)-14 TOTAL CLASS'!$F$796/'FR-16(7)(v)-14 TOTAL CLASS'!$F$793)","v":9.9410458522206702E-2},{"$f":"IF('FR-16(7)(v)-14 TOTAL CLASS'!$F$793=0,0,(I39-'FR-16(7)(v)-14 TOTAL CLASS'!$F$806-'FR-16(7)(v)-14 TOTAL CLASS'!$F$807-'FR-16(7)(v)-14 TOTAL CLASS'!$F$809)*'FR-16(7)(v)-14 TOTAL CLASS'!$F$796/'FR-16(7)(v)-14 TOTAL CLASS'!$F$793)","v":0.23402403666291324},{"$f":"IF('FR-16(7)(v)-14 TOTAL CLASS'!$F$793=0,0,(J39-'FR-16(7)(v)-14 TOTAL CLASS'!$F$806-'FR-16(7)(v)-14 TOTAL CLASS'!$F$807-'FR-16(7)(v)-14 TOTAL CLASS'!$F$809)*'FR-16(7)(v)-14 TOTAL CLASS'!$F$796/'FR-16(7)(v)-14 TOTAL CLASS'!$F$793)","v":-0.23101788098288825},{"$f":"IF('FR-16(7)(v)-14 TOTAL CLASS'!$F$793=0,0,(K39-'FR-16(7)(v)-14 TOTAL CLASS'!$F$806-'FR-16(7)(v)-14 TOTAL CLASS'!$F$807-'FR-16(7)(v)-14 TOTAL CLASS'!$F$809)*'FR-16(7)(v)-14 TOTAL CLASS'!$F$796/'FR-16(7)(v)-14 TOTAL CLASS'!$F$793)","v":0.17995469863873914},{"$f":"IF('FR-16(7)(v)-14 TOTAL CLASS'!$F$793=0,0,(L39-'FR-16(7)(v)-14 TOTAL CLASS'!$F$806-'FR-16(7)(v)-14 TOTAL CLASS'!$F$807-'FR-16(7)(v)-14 TOTAL CLASS'!$F$809)*'FR-16(7)(v)-14 TOTAL CLASS'!$F$796/'FR-16(7)(v)-14 TOTAL CLASS'!$F$793)","v":7.7123442273745346E-2},{"$f":"IF('FR-16(7)(v)-14 TOTAL CLASS'!$F$793=0,0,(M39-'FR-16(7)(v)-14 TOTAL CLASS'!$F$806-'FR-16(7)(v)-14 TOTAL CLASS'!$F$807-'FR-16(7)(v)-14 TOTAL CLASS'!$F$809)*'FR-16(7)(v)-14 TOTAL CLASS'!$F$796/'FR-16(7)(v)-14 TOTAL CLASS'!$F$793)","v":3.8706845893839388E-2},{"$f":"IF('FR-16(7)(v)-14 TOTAL CLASS'!$F$793=0,0,(N39-'FR-16(7)(v)-14 TOTAL CLASS'!$F$806-'FR-16(7)(v)-14 TOTAL CLASS'!$F$807-'FR-16(7)(v)-14 TOTAL CLASS'!$F$809)*'FR-16(7)(v)-14 TOTAL CLASS'!$F$796/'FR-16(7)(v)-14 TOTAL CLASS'!$F$793)","v":8.0855221738603926E-3},{"$f":"IF('FR-16(7)(v)-14 TOTAL CLASS'!$F$793=0,0,(O39-'FR-16(7)(v)-14 TOTAL CLASS'!$F$806-'FR-16(7)(v)-14 TOTAL CLASS'!$F$807-'FR-16(7)(v)-14 TOTAL CLASS'!$F$809)*'FR-16(7)(v)-14 TOTAL CLASS'!$F$796/'FR-16(7)(v)-14 TOTAL CLASS'!$F$793)","v":0.10272759582430326},{"$f":"IF('FR-16(7)(v)-14 TOTAL CLASS'!$F$793=0,0,(P39-'FR-16(7)(v)-14 TOTAL CLASS'!$F$806-'FR-16(7)(v)-14 TOTAL CLASS'!$F$807-'FR-16(7)(v)-14 TOTAL CLASS'!$F$809)*'FR-16(7)(v)-14 TOTAL CLASS'!$F$796/'FR-16(7)(v)-14 TOTAL CLASS'!$F$793)","v":1.1381927367818864E-2},{"$f":"IF('FR-16(7)(v)-14 TOTAL CLASS'!$F$793=0,0,(Q39-'FR-16(7)(v)-14 TOTAL CLASS'!$F$806-'FR-16(7)(v)-14 TOTAL CLASS'!$F$807-'FR-16(7)(v)-14 TOTAL CLASS'!$F$809)*'FR-16(7)(v)-14 TOTAL CLASS'!$F$796/'FR-16(7)(v)-14 TOTAL CLASS'!$F$793)","v":-0.24254493310767386},{"$f":"IF('FR-16(7)(v)-14 TOTAL CLASS'!F793=0,0,(R39-'FR-16(7)(v)-14 TOTAL CLASS'!$F$806-'FR-16(7)(v)-14 TOTAL CLASS'!$F$807-'FR-16(7)(v)-14 TOTAL CLASS'!$F$809)*'FR-16(7)(v)-14 TOTAL CLASS'!$F$796/'FR-16(7)(v)-14 TOTAL CLASS'!$F$793)","v":2.508585084710533E-2},{"$f":"IF('FR-16(7)(v)-14 TOTAL CLASS'!F793=0,0,(S39-'FR-16(7)(v)-14 TOTAL CLASS'!$F$806-'FR-16(7)(v)-14 TOTAL CLASS'!$F$807-'FR-16(7)(v)-14 TOTAL CLASS'!$F$809)*'FR-16(7)(v)-14 TOTAL CLASS'!$F$796/'FR-16(7)(v)-14 TOTAL CLASS'!$F$793)","v":-4.1049574113445099E-2}]
[30,"ALLOWED RETURN ON COMMON EQUITY",null,null,null,{"$f":"IF('FR-16(7)(v)-1 Functional'!$F$793=0,0,($G$40-'FR-16(7)(v)-1 Functional'!$F$806-'FR-16(7)(v)-1 Functional'!$F$807-'FR-16(7)(v)-1 Functional'!$F$809)*'FR-16(7)(v)-1 Functional'!$F$796/'FR-16(7)(v)-1 Functional'!$F$793)","v":9.8000675168815637E-2},{"$f":"IF('FR-16(7)(v)-1 Functional'!$F$793=0,0,($G$40-'FR-16(7)(v)-1 Functional'!$F$806-'FR-16(7)(v)-1 Functional'!$F$807-'FR-16(7)(v)-1 Functional'!$F$809)*'FR-16(7)(v)-1 Functional'!$F$796/'FR-16(7)(v)-1 Functional'!$F$793)","v":9.8000675168815637E-2},{"$f":"IF('FR-16(7)(v)-1 Functional'!$F$793=0,0,($G$40-'FR-16(7)(v)-1 Functional'!$F$806-'FR-16(7)(v)-1 Functional'!$F$807-'FR-16(7)(v)-1 Functional'!$F$809)*'FR-16(7)(v)-1 Functional'!$F$796/'FR-16(7)(v)-1 Functional'!$F$793)","v":9.8000675168815637E-2},{"$f":"IF('FR-16(7)(v)-1 Functional'!$F$793=0,0,($G$40-'FR-16(7)(v)-1 Functional'!$F$806-'FR-16(7)(v)-1 Functional'!$F$807-'FR-16(7)(v)-1 Functional'!$F$809)*'FR-16(7)(v)-1 Functional'!$F$796/'FR-16(7)(v)-1 Functional'!$F$793)","v":9.8000675168815637E-2},{"$f":"IF('FR-16(7)(v)-1 Functional'!$F$793=0,0,($G$40-'FR-16(7)(v)-1 Functional'!$F$806-'FR-16(7)(v)-1 Functional'!$F$807-'FR-16(7)(v)-1 Functional'!$F$809)*'FR-16(7)(v)-1 Functional'!$F$796/'FR-16(7)(v)-1 Functional'!$F$793)","v":9.8000675168815637E-2},{"$f":"IF('FR-16(7)(v)-1 Functional'!$F$793=0,0,($G$40-'FR-16(7)(v)-1 Functional'!$F$806-'FR-16(7)(v)-1 Functional'!$F$807-'FR-16(7)(v)-1 Functional'!$F$809)*'FR-16(7)(v)-1 Functional'!$F$796/'FR-16(7)(v)-1 Functional'!$F$793)","v":9.8000675168815637E-2},{"$f":"IF('FR-16(7)(v)-1 Functional'!$F$793=0,0,($G$40-'FR-16(7)(v)-1 Functional'!$F$806-'FR-16(7)(v)-1 Functional'!$F$807-'FR-16(7)(v)-1 Functional'!$F$809)*'FR-16(7)(v)-1 Functional'!$F$796/'FR-16(7)(v)-1 Functional'!$F$793)","v":9.8000675168815637E-2},{"$f":"IF('FR-16(7)(v)-1 Functional'!$F$793=0,0,($G$40-'FR-16(7)(v)-1 Functional'!$F$806-'FR-16(7)(v)-1 Functional'!$F$807-'FR-16(7)(v)-1 Functional'!$F$809)*'FR-16(7)(v)-1 Functional'!$F$796/'FR-16(7)(v)-1 Functional'!$F$793)","v":9.8000675168815637E-2},{"$f":"IF('FR-16(7)(v)-1 Functional'!$F$793=0,0,($G$40-'FR-16(7)(v)-1 Functional'!$F$806-'FR-16(7)(v)-1 Functional'!$F$807-'FR-16(7)(v)-1 Functional'!$F$809)*'FR-16(7)(v)-1 Functional'!$F$796/'FR-16(7)(v)-1 Functional'!$F$793)","v":9.8000675168815637E-2},{"$f":"IF('FR-16(7)(v)-1 Functional'!$F$793=0,0,($G$40-'FR-16(7)(v)-1 Functional'!$F$806-'FR-16(7)(v)-1 Functional'!$F$807-'FR-16(7)(v)-1 Functional'!$F$809)*'FR-16(7)(v)-1 Functional'!$F$796/'FR-16(7)(v)-1 Functional'!$F$793)","v":9.8000675168815637E-2},{"$f":"IF('FR-16(7)(v)-1 Functional'!$F$793=0,0,($G$40-'FR-16(7)(v)-1 Functional'!$F$806-'FR-16(7)(v)-1 Functional'!$F$807-'FR-16(7)(v)-1 Functional'!$F$809)*'FR-16(7)(v)-1 Functional'!$F$796/'FR-16(7)(v)-1 Functional'!$F$793)","v":9.8000675168815637E-2},{"$f":"IF('FR-16(7)(v)-1 Functional'!$F$793=0,0,($G$40-'FR-16(7)(v)-1 Functional'!$F$806-'FR-16(7)(v)-1 Functional'!$F$807-'FR-16(7)(v)-1 Functional'!$F$809)*'FR-16(7)(v)-1 Functional'!$F$796/'FR-16(7)(v)-1 Functional'!$F$793)","v":9.8000675168815637E-2},null,{"$f":"IF('FR-16(7)(v)-1 Functional'!F793=0,0,(S40-'FR-16(7)(v)-1 Functional'!$F$806-'FR-16(7)(v)-1 Functional'!$F$807-'FR-16(7)(v)-1 Functional'!$F$809)*'FR-16(7)(v)-1 Functional'!$F$796/'FR-16(7)(v)-1 Functional'!$F$793)","v":9.8000675168815637E-2}]
[31]
[32,"PRESENT REVENUES"]
[33,"PRESENT REVENUES",null,null,null,{"$f":"'FR-16(7)(v)-14 TOTAL CLASS'!F42","v":309580654},{"$f":"'FR-16(7)(v)-14 TOTAL CLASS'!G42","v":123883637},{"$f":"'FR-16(7)(v)-14 TOTAL CLASS'!H42","v":90318223},{"$f":"'FR-16(7)(v)-14 TOTAL CLASS'!I42","v":577046},{"$f":"'FR-16(7)(v)-14 TOTAL CLASS'!J42","v":600937},{"$f":"'FR-16(7)(v)-14 TOTAL CLASS'!K42","v":29960},{"$f":"'FR-16(7)(v)-14 TOTAL CLASS'!L42","v":46910116},{"$f":"'FR-16(7)(v)-14 TOTAL CLASS'!M42","v":29943872},{"$f":"'FR-16(7)(v)-14 TOTAL CLASS'!N42","v":1361377},{"$f":"'FR-16(7)(v)-14 TOTAL CLASS'!O42","v":14062168},{"$f":"'FR-16(7)(v)-14 TOTAL CLASS'!P42","v":1876470},{"$f":"'FR-16(7)(v)-14 TOTAL CLASS'!Q42","v":16848},{"$f":"'FR-16(7)(v)-14 TOTAL CLASS'!R42","v":309580654},{"$f":"'FR-16(7)(v)-14 TOTAL CLASS'!S42","v":0}]
[34,"REVENUE INCREASE JUSTIFIED",null,null,null,{"$f":"F32-F45","v":44392659},38733241,-205168,-104433,991673,-3779,1585876,2966958,220409,-76323,261441,22580,44392475,185]
[35,"REVENUE INCREASE REQUESTED",null,null,null,{"$f":"F35-F45","v":0},0,0,0,0,0,0,0,0,0,0,0,0,0]
[36]
[37,"PROPOSED REVENUES = CURRENT REVENUES"]
[38,"PROPOSED REVENUES",null,null,null,{"$f":"'FR-16(7)(v)-14 TOTAL CLASS'!F42","v":309580654},{"$f":"'FR-16(7)(v)-14 TOTAL CLASS'!G42","v":123883637},{"$f":"'FR-16(7)(v)-14 TOTAL CLASS'!H42","v":90318223},{"$f":"'FR-16(7)(v)-14 TOTAL CLASS'!I42","v":577046},{"$f":"'FR-16(7)(v)-14 TOTAL CLASS'!J42","v":600937},{"$f":"'FR-16(7)(v)-14 TOTAL CLASS'!K42","v":29960},{"$f":"'FR-16(7)(v)-14 TOTAL CLASS'!L42","v":46910116},{"$f":"'FR-16(7)(v)-14 TOTAL CLASS'!M42","v":29943872},{"$f":"'FR-16(7)(v)-14 TOTAL CLASS'!N42","v":1361377},{"$f":"'FR-16(7)(v)-14 TOTAL CLASS'!O42","v":14062168},{"$f":"'FR-16(7)(v)-14 TOTAL CLASS'!P42","v":1876470},{"$f":"'FR-16(7)(v)-14 TOTAL CLASS'!Q42","v":16848},{"$f":"SUM(G50:Q50)","v":309580654},{"$f":"'FR-16(7)(v)-14 TOTAL CLASS'!S42","v":0}]
[39,"TOTAL ELECTRIC COST OF SERVICE",null,null,null,{"$f":"-'FR-16(7)(v)-14 TOTAL CLASS'!F30","v":-353973313},{"$f":"-'FR-16(7)(v)-14 TOTAL CLASS'!G30","v":-162616878},{"$f":"-'FR-16(7)(v)-14 TOTAL CLASS'!H30","v":-90113055},{"$f":"-'FR-16(7)(v)-14 TOTAL CLASS'!I30","v":-472613},{"$f":"-'FR-16(7)(v)-14 TOTAL CLASS'!J30","v":-1592610},{"$f":"-'FR-16(7)(v)-14 TOTAL CLASS'!K30","v":-26181},{"$f":"-'FR-16(7)(v)-14 TOTAL CLASS'!L30","v":-48495992},{"$f":"-'FR-16(7)(v)-14 TOTAL CLASS'!M30","v":-32910830},{"$f":"-'FR-16(7)(v)-14 TOTAL CLASS'!N30","v":-1581786},{"$f":"-'FR-16(7)(v)-14 TOTAL CLASS'!O30","v":-13985845},{"$f":"-'FR-16(7)(v)-14 TOTAL CLASS'!P30","v":-2137911},{"$f":"-'FR-16(7)(v)-14 TOTAL CLASS'!Q30","v":-39428},{"$f":"-'FR-16(7)(v)-14 TOTAL CLASS'!R30","v":-353973129},{"$f":"-'FR-16(7)(v)-14 TOTAL CLASS'!S30","v":-184}]
[40,"EXCESS REVENUES",null,null,null,{"$f":"F51+F50","v":-44392659},{"$f":"G51+G50","v":-38733241},{"$f":"H51+H50","v":205168},{"$f":"I51+I50","v":104433},{"$f":"J51+J50","v":-991673},3779,-1585876,-2966958,-220409,76323,-261441,{"$f":"Q51+Q50","v":-22580},{"$f":"SUM(G52:Q52)","v":-44392475},{"$f":"S51+S50","v":-184}]
[41,"COMPOSITE TAX RATE",null,null,null,{"$f":"CompositeTaxRate","v":0.24925115},0.24925115,0.24925115,0.24925115,0.24925115,0.24925115,0.24925115,0.24925115,0.24925115,0.24925115,0.24925115,0.24925115,0.24925115,0.24925115]
[42,"EXCESS TAX",null,null,null,{"$f":"ROUND(F53*F52,0)","v":-11064921},{"$f":"F54-SUM(H54:Q54)","v":-9654351},{"$f":"ROUND(H53*H52,0)","v":51138},{"$f":"ROUND(I53*I52,0)","v":26030},{"$f":"ROUND(J53*J52,0)","v":-247176},942,-395281,-739518,-54937,19024,-65164,{"$f":"ROUND(Q53*Q52,0)","v":-5628},{"$f":"SUM(G54:Q54)","v":-11064921},{"$f":"ROUND(S53*S52,0)","v":-46}]
[43,"EXCESS RETURN",null,null,null,{"$f":"R55+S55","v":-33327692},{"$f":"G52-G54","v":-29078890},{"$f":"H52-H54","v":154030},{"$f":"I52-I54","v":78403},{"$f":"J52-J54","v":-744497},2837,-1190595,-2227440,-165472,57299,-196277,{"$f":"Q52-Q54","v":-16952},{"$f":"SUM(G55:Q55)","v":-33327554},{"$f":"S52-S54","v":-138}]
[]
[]
[]
[]
[]
[]
[]
[]
[]
[]
[]
[]
[]
[]
[]
[]
[]
[]
[]
[]
[]
[]
[]
[]
[]
[]
[]
[]
[]
[]
[]
[]
[]
[]
[]
[]
[]
[]
[]
[]
[]
[]
[]
[]
[]
[]
[]
[]
[]
[]
[]
[]
[]
[]
[]
[]
[]
[]
[]
[]
[]
[]
[]
[]
[]
[]
[]
[]
[]
[]
[]
[]
[]
[]
[]
[]
[]
[]
[]
[]
[]
[]
[]
[]
[]
[]
[]
[]
[]
[]
[]
[]
[]
[]
[]
[]
[]
[]
[]
[]
[]
[]
[]
[]
[]
[]
[]
[]
[]
[]
[]
[]
[]
[]
[]
[]
[]
[]
[]
[]
[]
[]
[]
[]
[]
[]
[]
[]
[]
[]
[]
[]
[]
[]
[]
[]
[]
[]
[]
[]
[]
[]
[]
[]
[]
[]
[]
[]
[]
[]
[]
[]
[]
[]
[]
[]
[]
[]
[]
[]
[]
[]
[]
[]
[]
[]
[]
[]
[]
[]
[]
[]
[]
[]
[]
[]
[]
[]
[]
[]
[]
[]
[]
[]
[]
[]
[]
[]
[]
[]
[]
[]
[]
[]
[]
[]
[]
[]
[]
[]
[]
[]
[]
[]
[]
[]
[]
[]
[]
[]
[]
[]
[]
[]
[]
[]
[]
[]
[]
[]
[]
[]
[]
[]
[]
[]
[]
[]
[]
[]
[]
[]
[]
[]
[]
[]
[]
[]
[]
[]
[]
[]
[]
[]
[]
[]
[]
[]
[]
[]
[]
[]
[]
[]
[]
[]
[]
[]
[]
[]
[]
[]
[]
[]
[]
[]
[]
[]
[]
[]
[]
[]
[]
[]
[]
[]
[]
[]
[]
[]
[]
[]
[]
[]
[]
[]
[]
[]
[]
[]
[]
[]
[]
[]
[]
[]
[]
[]
[]
[]
[]
[]
[]
[]
[]
[]
[]
[]
[]
[]
[]
[]
[]
[]
[]
[]
[]
[]
[]
[]
[]
[]
[]
[]
[]
[]
[]
[]
[]
[]
[]
[]
[]
[]
[]
[]
[]
[]
[]
[]
[]
[]
[]
[]
[]
[]
[]
[]
[]
[]
[]
[]
[]
[]
[]
[]
[]
[]
[]
[]
[]
[]
[]
[]
[]
[]
[]
[]
[]
[]
[]
[]
[]
[]
[]
[]
[]
[]
[]
[]
[]
[]
[]
[]
[]
[]
[]
[]
[]
[]
[]
[]
[]
[]
[]
[]
[]
[]
[]
[]
[]
[]
[]
[]
[]
[]
[]
[]
[]
[]
[]
[]
[]
[]
[]
[]
[]
[]
[]
[]
[]
[]
[]
[]
[]
[]
[]
[]
[]
[]
[]
[]
[]
[]
[]
[]
[]
[]
[]
[]
[]
[]
[]
[]
[]
[]
[]
[]
[]
[]
[]
[]
[]
[]
[]
[]
[]
[]
[]
[]
[]
[]
[]
[]
[]
[]
[]
[]
[]
[]
[]
[]
[]
[]
[]
[]
[]
[]
[]
[]
[]
[]
[]
[]
[]
[]
[]
[]
[]
[]
[]
[]
[]
[]
[]
[]
[]
[]
[]
[]
[]
[null,null,null,null,null,0]

{"sheet":"WP FR-16(7)(v) Rate Incr","index":83,"n_rows":556,"n_cols":22,"rows_kept":556,"cut":false,"hidden":false,"merged":[]}
[{"$f":"co_name","v":"DUKE ENERGY KENTUCKY, INC."},null,null,null,null,null,null,null,null,null,null,null,"Work Paper FR-16(7)(v) "]
[{"$f":"coss_type","v":"ELECTRIC COST OF SERVICE STUDY "},null,null,null,null,null,null,null,null,null,null,null,"Witness Responsible:"]
[{"$f":"case_name","v":"CASE NO: 2019-00271"},null,null,null,null,null,null,null,null,null,null,null,{"$f":"PROPER(Witness)","v":"James E. Ziolkowski"}]
["CALCULATION PROPOSED REVENUE DISTRIBUTION",null,null,null,null,null,null,null,null,null,null,null,"Page 1"]
["REFLECTING A PROPOSED REVENUE SUBSIDY/EXCESS ELIMINATION COMPONENT"]
[]
[]
[null,null,null,null,null,null,"Present","Inter Class","Inter Class"]
[null,null,"Jurisdictional",null,null,null,"Revenues","Subsidization","Subsidization","Rate Increase","Proposed Revenues","Proposed","ROR","Proposed Increase"]
[null,null,"Electric","Present","Net Operating","Present","At Average","Overcollected","times","(Allocated to class",{"$f":"TEXT(1-I11,\"0.00%\")&\"  Interclass\"","v":"95.00%  Interclass"},"Percent","At Proposed","Less",null,"Inter Class Subsidization"]
["Line",null,"Rate Base","Revenues","Income","ROR","ROR","(Undercollected)",0.05,"based on Rate Base)","Subsidization","Increase","Rates","(Subsidy) Excess",null,null,"Functionalized",null,null,"Classified"]
["No.","Rate Class","(A)","(B)","(C)","(D)","(E)","(F)","(G)","(H)","(I)","(J)","(K)","(L)",null,"Total","Production","Storage","Distribution","Demand","Commodity","Customer"]
[null,null,"FR-16(7)(v)-14, page1","FR-16(7)(v)-14, page1","Work Paper FR-16(7)(v), Page 2","(C) / (A)","(B) + (((D) Line 5 * (C))/(1-CompositeTaxRate))","(B) - (E)",{"$f":"H12&\" * \"&TEXT(I11,\"0.00%\")","v":"(F) * 5.00%"},"(H) Line 5 * ((A) / (A) Line 5)","(B) - (G) + (H)","((H) - (G)) / (B)","((((H) - (G))*(1-CompositeTaxRate)+ (C)) / (A)","(H) - (G)",null,null,"100% Commodity"]
[]
[1,"Rate RS",{"$f":"'FR-16(7)(v)-14 TOTAL CLASS'!$G$431","v":468139197},{"$f":"'FR-16(7)(v)-14 TOTAL CLASS'!G42","v":123883637},{"$f":"'WP FR-16(7)(v) Pres NOI'!G38","v":2337934},{"$f":"IF(C15=0,0,ROUND(E15/C15,6))","v":4.9940000000000002E-3},{"$f":"G27-SUM(G16:G26)","v":140658637},{"$f":"D15-G15","v":-16775000},{"$f":"0-SUM(I16:I26)","v":-838750},{"$f":"(ROUND(C15/C$27,6)*$J$27)","v":21958296.062442001},{"$f":"D15-I15+J15-120934","v":146559749.062442},{"$f":"IF(K15=0,0,ROUND((K15-D15)/D15,6))","v":0.18304400000000001},{"$f":"ROUND((((J15-I15)*(1-CompositeTaxRate))+E15)/C15,8)","v":4.1553430000000002E-2},{"$f":"J15-I15","v":22797046.062442001},null,{"$f":"H15-I15","v":-15936250},{"$f":"-SUM(Q16:Q25)","v":-9336840},-707888,-5891522,-11703103,0,-4233147]
[2,"Rate DS",{"$f":"'FR-16(7)(v)-14 TOTAL CLASS'!$H$431","v":242512699},{"$f":"'FR-16(7)(v)-14 TOTAL CLASS'!H42","v":90318223},{"$f":"'WP FR-16(7)(v) Pres NOI'!H38","v":16429056},{"$f":"IF(C16=0,0,ROUND(E16/C16,6))","v":6.7745E-2},{"$f":"ROUND(D16-(E16/(1-CompositeTaxRate))+(C16*$F$27/(1-CompositeTaxRate)),0)","v":78737943},{"$f":"D16-G16","v":11580280},{"$f":"ROUND(H16*$I$11,0)","v":579014},{"$f":"(ROUND(C16/C$27,6)*$J$27)","v":11375174.942160001},{"$f":"D16-I16+J16","v":101114383.94216},{"$f":"IF(K16=0,0,ROUND((K16-D16)/D16,6))","v":0.119535},0.10116691,{"$f":"J16-I16","v":10796160.942160001},null,{"$f":"H16-I16","v":11001266},{"$f":"ROUND(VLOOKUP($Q$29,ALLOCTABLE_FUNCTIONAL,3,FALSE)*P16,0)","v":6445498},{"$f":"ROUND(VLOOKUP($Q$29,ALLOCTABLE_FUNCTIONAL,4,FALSE)*P16,0)","v":488676},{"$f":"ROUND(VLOOKUP($Q$29,ALLOCTABLE_FUNCTIONAL,5,FALSE)*P16,0)","v":4067092},{"$f":"ROUND(VLOOKUP($Q$29,Alloctable_Classified_Distribution,3,FALSE)*P16,0)","v":8079000},{"$f":"ROUND(VLOOKUP($Q$29,Alloctable_Classified_Distribution,4,FALSE)*P16,0)","v":0},{"$f":"ROUND(VLOOKUP($Q$29,Alloctable_Classified_Distribution,5,FALSE)*P16,0)","v":2922266}]
[3,"Rate GS-FL",{"$f":"'FR-16(7)(v)-14 TOTAL CLASS'!$I$431","v":1195755},{"$f":"'FR-16(7)(v)-14 TOTAL CLASS'!I$42","v":577046},{"$f":"'WP FR-16(7)(v) Pres NOI'!I$38","v":158649},{"$f":"IF(C17=0,0,ROUND(E17/C17,6))","v":0.13267699999999999},416527,{"$f":"D17-G17","v":160519},{"$f":"ROUND(H17*$I$11,0)","v":8026},{"$f":"(ROUND(C17/C$27,6)*$J$27)","v":56067.928316999998},{"$f":"D17-I17+J17","v":625087.92831700004},{"$f":"IF(K17=0,0,ROUND((K17-D17)/D17,6))","v":8.3254999999999996E-2},0.16283972999999999,{"$f":"J17-I17","v":48041.928316999998},null,{"$f":"H17-I17","v":152493},89344,6774,56376,111986,0,40507]
[4,"Rate EH",{"$f":"'FR-16(7)(v)-14 TOTAL CLASS'!$J$431","v":4690079},{"$f":"'FR-16(7)(v)-14 TOTAL CLASS'!J$42","v":600937},{"$f":"'WP FR-16(7)(v) Pres NOI'!J$38","v":-429746},{"$f":"IF(C18=0,0,ROUND(E18/C18,6))","v":-9.1629000000000002E-2},1372621,{"$f":"D18-G18","v":-771684},{"$f":"ROUND(H18*$I$11,0)","v":-38584},{"$f":"(ROUND(C18/C$27,6)*$J$27)","v":220010.01800400001},{"$f":"D18-I18+J18","v":859531.01800399995},{"$f":"IF(K18=0,0,ROUND((K18-D18)/D18,6))","v":0.43031799999999998},-5.0235149999999999E-2,{"$f":"J18-I18","v":258594.01800400001},null,{"$f":"H18-I18","v":-733100},-429514,-32564,-271022,-538367,0,-194733]
[5,"Rate SP",{"$f":"'FR-16(7)(v)-14 TOTAL CLASS'!$K$431","v":71826},{"$f":"'FR-16(7)(v)-14 TOTAL CLASS'!K$42","v":29960},{"$f":"'WP FR-16(7)(v) Pres NOI'!K$38","v":7657},0.10660500000000001,22812,7148,357,3373.8420840000003,32976.842084000004,0.10069599999999999,0.13813787,3016.8420840000003,null,6791,3979,302,2511,4987,0,1804]
[6,"Rate DT - Secondary",{"$f":"'FR-16(7)(v)-14 TOTAL CLASS'!$L$431","v":117789743},{"$f":"'FR-16(7)(v)-14 TOTAL CLASS'!L$42","v":46910116},{"$f":"'WP FR-16(7)(v) Pres NOI'!L$38","v":6714275},5.7001999999999997E-2,42971037,3939079,196954,5524977.1611629995,52238139.161163002,0.113579,9.096108E-2,5328023.1611629995,null,3742125,2192462,166225,1383438,2748104,0,994021]
[7,"Rate DT-Primary",{"$f":"'FR-16(7)(v)-14 TOTAL CLASS'!$M$431","v":77785206},{"$f":"'FR-16(7)(v)-14 TOTAL CLASS'!M$42","v":29943872},{"$f":"'WP FR-16(7)(v) Pres NOI'!M$38","v":2992726},3.8474000000000001E-2,29262296,681576,34079,3648543.8578919997,33558336.857891999,0.120708,7.3359469999999996E-2,3614464.8578919997,null,647497,379360,28762,239375,475502,0,171995]
[8,"Rate DP",{"$f":"'FR-16(7)(v)-14 TOTAL CLASS'!$N$431","v":3811616},{"$f":"'FR-16(7)(v)-14 TOTAL CLASS'!N$42","v":1361377},{"$f":"'WP FR-16(7)(v) Pres NOI'!N$38","v":90326},2.3698E-2,1403001,-41624,-2081,178769.23779300001,1542227.2377929999,0.13284399999999999,5.931844E-2,180850.23779300001,null,-39543,-23168,-1757,-14619,-29039,0,-10504]
[9,"Rate TT",{"$f":"'FR-16(7)(v)-14 TOTAL CLASS'!$O$431","v":25635088},{"$f":"'FR-16(7)(v)-14 TOTAL CLASS'!O$42","v":14062168},{"$f":"'WP FR-16(7)(v) Pres NOI'!O$38","v":1777669},6.9345000000000004E-2,12783427,1278741,63937,1202419.561674,15200650.561674001,8.0961000000000005E-2,0.10268673,1138482.561674,null,1214804,711738,53962,449105,892116,0,322688]
[10,"Lighting",{"$f":"'FR-16(7)(v)-14 TOTAL CLASS'!$P$431","v":4693439},{"$f":"'FR-16(7)(v)-14 TOTAL CLASS'!P$42","v":1876470},{"$f":"'WP FR-16(7)(v) Pres NOI'!P$38","v":118700},2.5291000000000001E-2,1917764,-41294,-2065,220143.195981,2098678.1959810001,0.118418,6.0834399999999997E-2,222208.195981,null,-39229,-22984,-1743,-14503,-28809,0,-10420]
[11,"Other - Water Pumping",{"$f":"'FR-16(7)(v)-14 TOTAL CLASS'!$Q$431","v":103178},{"$f":"'FR-16(7)(v)-14 TOTAL CLASS'!Q42","v":16848},{"$f":"'WP FR-16(7)(v) Pres NOI'!Q38","v":-10028},{"$f":"IF(C25=0,0,ROUND(E25/C25,6))","v":-9.7191E-2},34589,{"$f":"D25-G25","v":-17741},{"$f":"ROUND(H25*$I$11,0)","v":-887},{"$f":"(ROUND(C25/C$27,6)*$J$27)","v":4838.7998310000003},{"$f":"D25-I25+J25","v":22573.799831},0.33984999999999999,-5.5528910000000001E-2,{"$f":"J25-I25","v":5725.7998310000003},null,{"$f":"H25-I25","v":-16854},-9875,-749,-6231,-12377,0,-4477]
[12," "," "," "," "," "," "," "," "," "," "," ",null,null,null,{"$f":"I26","v":" "}]
[13,"     Total",{"$f":"SUM(C15:C26)","v":946427826},{"$f":"SUM(D15:D25)","v":309580654},{"$f":"SUM(E15:E26)","v":30187218},{"$f":"ROUND(E27/C27,9)","v":3.1895953999999997E-2},{"$f":"D27","v":309580654},{"$f":"SUM(H15:H26)","v":0},{"$f":"SUM(I15:I26)","v":0},{"$f":"'Rev req link'!D71","v":44392659},{"$f":"SUM(K15:K26)","v":353852334.60734099},{"$f":"ROUND((K27-D27)/D27,6)","v":0.14300499999999999},{"$f":"ROUND((((J27-I27)*(1-CompositeTaxRate))+E27)/C27,8)","v":6.711019E-2},{"$f":"SUM(N15:N26)","v":44392614.607341006},null,{"$f":"SUM(P15:P26)","v":0},0,0,0,0,0,0]
[14,null,null,null,null,null,null,null,null," "]
[15,"Tax Complement",{"$f":"1-CompositeTaxRate","v":0.75074885000000002},null,null,null,null,null,null,null,{"$f":"K27-D27","v":44271680.607340991},null,null,null,null,"Allocation Factor","RB99"]
[16]
[17,"Note: (E) Present Revenues at Average ROR is calculated by subtracting Present Revenue, grossed up for taxes, from Present Distribution Revenues and then adding Current Operating Income at the average rate of return, grossed-up for taxes."]
[18]
[19]
[20,"MISCELLANEOUS REVENUES: "]
[21,"PJM AND TRANSMISSION",null,169500,null,null,null,null,null,null,{"$f":"D35","v":169500}]
[22,"BAD CHECK CHARGES",null,40932,null,null,null,null,null,null,{"$f":"D36","v":40932}]
[23,"RECONNECTION CHARGES",null,45600,null,null,null,null,null,null,61738]
[24,"POLE AND LINE ATTACHMENTS",null,215037,null,null,null,null,null,null,319833]
[25,"RENTS",null,1058004,null,null,null,null,null,null,1058004]
[26,"OTHER MISCELLANEOUS",null,{"$f":"233372-67392","v":165980},null,null,null,null,null,null,165980]
[27,"RESERVED",null,0,null,null,null,null,null,null,0]
[28,"TOTAL MISC",null,{"$f":"SUM(D35:D41)","v":1695053},null,null,null,null,null,null,{"$f":"SUM(K35:K41)","v":1815987}]
[29]
[30,"    Total Company",null,{"$f":"D27+D42+D43","v":311275707},null,null,null,null,null,null,{"$f":"K27+K42+K43","v":355668321.60734099},{"$f":"ROUND((K44-D44)/D44,6)","v":0.14261499999999999}]
[]
[null,null,null,null,{"$f":"E27+120934","v":30308152},null,null,null,null,null,{"$f":"K44-D44","v":44392614.607340991}]
[]
[]
[]
[]
[]
[]
[]
[]
[]
[]
[]
[]
[]
[]
[]
[]
[]
[]
[]
[]
[]
[]
[]
[]
[]
[]
[]
[]
[]
[]
[]
[]
[]
[]
[]
[]
[]
[]
[]
[]
[]
[]
[]
[]
[]
[]
[]
[]
[]
[]
[]
[]
[]
[]
[]
[]
[]
[]
[]
[]
[]
[]
[]
[]
[]
[]
[]
[]
[]
[]
[]
[]
[]
[]
[]
[]
[]
[]
[]
[]
[]
[]
[]
[]
[]
[]
[]
[]
[]
[]
[]
[]
[]
[]
[]
[]
[]
[]
[]
[]
[]
[]
[]
[]
[]
[]
[]
[]
[]
[]
[]
[]
[]
[]
[]
[]
[]
[]
[]
[]
[]
[]
[]
[]
[]
[]
[]
[]
[]
[]
[]
[]
[]
[]
[]
[]
[]
[]
[]
[]
[]
[]
[]
[]
[]
[]
[]
[]
[]
[]
[]
[]
[]
[]
[]
[]
[]
[]
[]
[]
[]
[]
[]
[]
[]
[]
[]
[]
[]
[]
[]
[]
[]
[]
[]
[]
[]
[]
[]
[]
[]
[]
[]
[]
[]
[]
[]
[]
[]
[]
[]
[]
[]
[]
[]
[]
[]
[]
[]
[]
[]
[]
[]
[]
[]
[]
[]
[]
[]
[]
[]
[]
[]
[]
[]
[]
[]
[]
[]
[]
[]
[]
[]
[]
[]
[]
[]
[]
[]
[]
[]
[]
[]
[]
[]
[]
[]
[]
[]
[]
[]
[]
[]
[]
[]
[]
[]
[]
[]
[]
[]
[]
[]
[]
[]
[]
[]
[]
[]
[]
[]
[]
[]
[]
[]
[]
[]
[]
[]
[]
[]
[]
[]
[]
[]
[]
[]
[]
[]
[]
[]
[]
[]
[]
[]
[]
[]
[]
[]
[]
[]
[]
[]
[]
[]
[]
[]
[]
[]
[]
[]
[]
[]
[]
[]
[]
[]
[]
[]
[]
[]
[]
[]
[]
[]
[]
[]
[]
[]
[]
[]
[]
[]
[]
[]
[]
[]
[]
[]
[]
[]
[]
[]
[]
[]
[]
[]
[]
[]
[]
[]
[]
[]
[]
[]
[]
[]
[]
[]
[]
[]
[]
[]
[]
[]
[]
[]
[]
[]
[]
[]
[]
[]
[]
[]
[]
[]
[]
[]
[]
[]
[]
[]
[]
[]
[]
[]
[]
[]
[]
[]
[]
[]
[]
[]
[]
[]
[]
[]
[]
[]
[]
[]
[]
[]
[]
[]
[]
[]
[]
[]
[]
[]
[]
[]
[]
[]
[]
[]
[]
[]
[]
[]
[]
[]
[]
[]
[]
[]
[]
[]
[]
[]
[]
[]
[]
[]
[]
[]
[]
[]
[]
[]
[]
[]
[]
[]
[]
[]
[]
[]
[]
[]
[]
[]
[]
[]
[]
[]
[]
[]
[]
[]
[]
[]
[]
[]
[]
[]
[]
[]
[]
[]
[]
[]
[]
[]
[]
[]
[]
[]
[]
[]
[]
[]
[]
[]
[]
[]
[]
[]
[]
[]
[]
[]
[]
[]
[]
[]
[]
[]
[]
[]
[]
[]
[]
[]
[]
[]
[]
[]
[]
[]
[]
[]
[]
[]
[]
[]
[null,null,null,null,null,0]